{"text_format":"1","workbook":"xlsx","n_sheets":204,"sheets":["REVISION LOG","FileNameSAP","MAX.ALL.NON-SALARY","Position Type Worksheet","DISCIPLINE SELECTION","OVERALL SUMMARY","Acct Initiation Request","PEF CLASSIFICATION SHEET","PM","PM-Exp","PM-Other","PM-Other-Exp","EN-Natural","EN-Natural-Exp","EN-Comm","EN-Comm-Exp","EN-PI","EN-PI-Exp","EN-Noise","EN-Noise-Exp","EN-Air","EN-Air-Exp","EnvPolicy","EnvPolicy-Exp","Geotech","GeotechFieldCosts","Hydraulics","IM-PublicTransp","IM-PublicTransp-Exp","IM-BikePed-Exp","LocationSurveys","SUE-Cover","SUE-Manhours","SUE-Estimate","PavementMarking","RD-Data","RD-Corr_Mod-PROJ.WS","RD-Workdays","RD-Supp","RD-Lighting","RD-CLASS","RD-Exp","ErosionControl","Rail","Rail-Exp","Signing","SignalComms","ITS","MunicipalSignalSystem","Signals","Structures","WZTC","WZTC-Exp","CongMgt","CongMgt-HCSSynchroSidra","CongMgt-TransModeler","CongMgt-Exp","TransPlan","TransPlan-Exp","Forecast","Forecast-Exp","UT-Coord","UT-Design","Ferry","Ferry-Exp","Aviation","Aviation-Exp","PM-Sub1","PM-Exp-Sub1","PM-Sub2","PM-Exp-Sub2","IM-BikePed","PM-Other-Sub1","PM-Other-Exp-Sub1","EN-Natural-Sub1","EN-Natural-Exp-Sub1","EN-Natural-Sub2","EN-Natural-Exp-Sub2","EN-Natural-Sub3","EN-Natural-Exp-Sub3","EN-Comm-Sub1","EN-Comm-Exp-Sub1","EN-PI-Sub1","EN-PI-Exp-Sub1","EN-PI-Sub2","EN-PI-Exp-Sub2","EN-PI-Sub3","EN-PI-Exp-Sub3","EN-Noise-Sub1","EN-Noise-Exp_Sub1","EN-Air-Sub1","EN-Air-Exp-Sub1","EnvPolicy-Sub1","EnvPolicy-Exp-Sub1","EnvPolicy-Sub2","EnvPolicy-Exp-Sub2","EnvPolicy-Sub3","EnvPolicy-Exp-Sub3","Geotech-Sub1","GeotechFieldCosts-Sub1","Hydraulics-Sub1","IM-PublicTransp-Sub1","IM-PublicTransp-Exp-Sub1","IM-PublicTransp-Sub2","IM-PublicTransp-Exp-Sub2","IM-PublicTransp-Sub3","IM-PublicTransp-Exp-Sub3","IM-BikePed-Sub1","IM-BikePed-Exp-Sub1","IM-BikePed-Sub2","IM-BikePed-Exp-Sub2","IM-BikePed-Sub3","IM-BikePed-Exp-Sub3","IM-BikePed-Sub4","IM-BikePed-Exp-Sub4","LS-Sub1","LS-Sub2","SUE-Cover-Sub1","SUE-Manhours-Sub1","SUE-Estimate-Sub1","SUE-Cover-Sub2","SUE-Manhours-Sub2","SUE-Estimate-Sub2","Pavement-Sub1","RD-Data-Sub1","RD-Corr_Mod-PROJ.WS-Sub1","RD-Workdays-Sub1","RD-Supp-Sub1","RD-Lighting-Sub1","RD-CLASS-Sub1","RD-Exp-Sub1","RD-Data-Sub2","RD-Corr_Mod-PROJ.WS-Sub2","RD-Workdays-Sub2","RD-Supp-Sub2","RD-Lighting-Sub2","RD-CLASS-Sub2","RD-Exp-Sub2","ErosionControl-Sub1","Rail-Sub1","Rail-Exp-Sub1","Rail-Sub2","Rail-Exp-Sub2","Rail-Sub3","Rail-Exp-Sub3","Rail-Sub4","Rail-Exp-Sub4","Rail-Sub5","Rail-Exp-Sub5","Rail-Sub6","Rail-Exp-Sub6","Rail-Sub7","Rail-Exp-Sub7","Rail-Sub8","Rail-Exp-Sub8","Rail-Sub9","Rail-Exp-Sub9","Rail-Sub10","Rail-Exp-Sub10","Signing-Sub1","ITS-Sub1","ITS-Sub2","ITS-Sub3","ITS-Sub4","MunicipalSignalSystem-Sub1","MunicipalSignalSystem-Sub2","MunicipalSignalSystem-Sub3","MunicipalSignalSystem-Sub4","ST-Sub1","WZTC-Sub1","WZTC-Exp-Sub1","TransPlan-Sub1","TransPlan-Exp-Sub1","TransPlan-Sub2","TransPlan-Exp-Sub2","TransPlan-Sub3","TransPlan-Exp-Sub3","Forecast-Sub1","Forecast-Exp-Sub1","Forecast-Sub2","Forecast-Exp-Sub2","Forecast-Sub3","Forecast-Exp-Sub3","UT-Coord-Sub1","UT-Design-Sub1","Ferry-Sub1","Ferry-Exp-Sub1","Ferry-Sub2","Ferry-Exp-Sub2","Ferry-Sub3","Ferry-Exp-Sub3","Ferry-Sub4","Ferry-Exp-Sub4","Ferry-Sub5","Ferry-Exp-Sub5","Aviation-Sub1","Aviation-Exp-Sub1","Aviation-Sub2","Aviation-Exp-Sub2","Aviation-Sub3","Aviation-Exp-Sub3","Aviation-Sub4","Aviation-Exp-Sub4","Right of Way"],"not_rendered":{"charts":0,"images":2,"macros":1,"external_links":0,"defined_names":1435,"comments":0,"pivot_tables":0},"unopened":[],"bounds":{"document_bytes":16777216,"sheet_cells":100000,"rows_first":2000,"rows_last":500,"rows_between":2000,"halvings":0,"cell_chars":16384,"cell_head_chars":4096},"cells_cut":0,"cells_raw":0,"read":"whole","date_system":"1900"}

{"sheet":"REVISION LOG","index":0,"n_rows":30,"n_cols":4,"rows_kept":30,"cut":false,"hidden":true,"merged":[]}
["VERSION:","CORRECTIONS?","FORMULA OR NUMBER?","REVISION DESCRIPTION:"]
["2014.04.02.RJS","NO",null,"FULL INTEGRATION OF 'PEF CLASSIFICATION SHEET' TAB."]
["2014.04.03.RJS","YES","NUMBER:  \"POSTAGE\".","REVISIONS TO ALL MULTI-MODAL TABS:  I.E. ENTER MANHOURS IN LIEU OF MANDAYS (AND ASSOCIATED FORMULAE UPDATES); REMOVED TRAFFIC COUNTS SECTION AND REPLACED WITH \"FREE-FORM\" DIRECT COST LINE ITEMS; COSMETIC CHANGES.\n\nCHANGES TO 'OVERALL SUMMARY' TAB:  ADDED CELL NAMES:  TIP.NUMBER, WBS.NUMBER, COUNTY, PROJECT.DESCRIPTION AND TASK.ORDER_SCOPE -- INTEGRATED THE ABOVE CELL NAMES INTO 'PEF CLASSIFICATION SHEET' TAB AND BOTH MULTI-MODAL MANDAY TABS.\n\nCHANGED \"POSTAGE\" FROM $0.44 TO $0.49 ON 'MAX.ALL.NON-SALARY DIRECTS' TAB."]
["2014.05.02.RJS","NO","SHEET PROTECTION","PROTECTED 'GEOTECHNICAL' tab and 'B.3. MOBILIZATION AND TRAVEL' tab."]
["2014.05.09.RJS","YES","FORMULA","MODIFIED \"FEE FORMULA\" ON 'PEF CLASSIFICATION SHEET' FOR MULTI-MODAL PEFs THAT USE FULLY-LOADED RATES."]
["2014.05.13.RJS","NO","CELL PROTECTION","UNPROTECTED \"FREE-FORM CELLS\" IN PROJECT PHASE COLUMN (COLUMN C) ON 'ROADWAY_PEF ESTIMATE' TAB."]
["2014.05.15.RJS","YES","FORMULA","CORRECTED FORMULA FOR MANHOUR TOTAL ON 'ROADWAY_CORR.MOD.-BRG.PRJ. ONLY' TAB."]
["2014.05.19.RJS","YES","FORMULA and FORMATTING","ADDED formulae to and CHANGED formatting of cells in the \"B.  ** TRAVEL AND MISCELLANEOUS COSTS\" section, \"2.  MISCELLANEOUS\" subsection, of the 'WZTCU_Non-Salary Costs' tab."]
["2014.05.29.RJS","YES","FORMULAE","CORRECTED \"Button59_Click\" Macro to reference correct cell range \"F20:G77\" -- for copying Initial Values on the 'OVERALL SUMMARY' tab.\nCORRECTED 'Final Column' formulae ('OVERALL SUMMARY' tab) to correclty reference the 'Multi-Modal…*' cell names.\nADDED and CORRECTED 'Final Column' formulae ('OVERALL SUMMARY' tab) be correct (i.e. Photogrammetry and Geotechnical)."]
["2014.(09.26).RJS","NO","SHEET PROTECTION","CHANGED.\nMONDAY, 10-27-2014:  RE-FORMATTED 'MULTI-MODAL--PRIME MANDAYS' TAB AND 'MULTI-MODAL--SUB MANDAYS' TAB TO ALLOW \"COPYING OF TASKS\" INTO THE \"TASK LIST COLUMN\" (COLUMN 'A')."]
["2018.(0201) RJS.LEP","NO","UPDATE & FORMAT CORRECTION","January 31, 2018 Maximum Allowable Non-Salary Direct Costs updated \n& Print format of PEF CLASSIFICATION SHEET corrected."]
["2018.(0201) RJS.LEP","NO","FEE UPDATE","PER \"180124 TS Neg and Fee Memo\" AND \"180124 Fee Negotiation Form\", modified percentage options to 0.5% incremental value."]
["2018.(0309).RJS.LEP","NO","HYDRAULICS LIST CORRECTION, ROW multi-parcel change, Tax excluded from lodging (added instruction on tax accounting)","List box was not referencing the correct list, this was corrected. - Hydraulics\nMore ROW functions were added and multi-parcel capability added - ROW\nLodging taxes included removed - All units (Instructions indicate how to account for Lodging Taxes)"]
["2018.(0315).RJS.LEP","YES","PDEA - PLANNING - CONGESTION MANAGEMENT & SUB1 version:  Formulas not referencing % workload distribution (incorrect row referenced)","Cell E17, E37, E56, and E88 were referencing the wrong % row.  Changed E17 and E37 to reference E123.  Changed E56 and E88 to reference E124.  In the prior state those cells were always flagging as 0 even if workload distributed to that classification."]
["2018.(0323).RJS.LEP","NO","Formula","New hotel rules.  Lump Sum remains lump sum current hotel rate.  Cost Plus for estimates, utilize Lump Sum hotel rate, which has the hotel rate for Lump Sum contracts and a factor for taxes.  The difference between the hotel Lump Sum rate and the hotel Cost Plus rate is the estimated taxes.  Rules approved by OIG Consultant leadership."]
["2018.(0410).RJS.LEP","NO","Print Format - Cong. Mgmt","Auto-print format correction"]
["2018.(0601).RJS.LEP","YES","Merge Macro - Cong. Mgmt Expenses","Corrected Macro so that it merges the data correctly (Miscellaneous and Review by Unit Head date fields).  (Note:  Planning Congestion Management did not have the same issue).  If input values in row 10 to 14 the summation equation was removed and protected where the totals were all 0'ed, if input values in Miscellaneous the data just had to be manually keyed to match."]
["2018.(0918).RJS.LEP","NO","More Classifications & Make another unit overridable","Added 5 blank classifications for Aviation.  Made PDEA-Planning-Roadway overridable to another work group as needed.  I was told PDEA-Planning Other was not enough so I modified one more such as PDEA-Planning Other.  Provided 8 locations to key a Classification type needed, and left Roadway classifications on the automatic list of classifications."]
["2018.(1106).RJS.LEP","NO","Maximum Allowable Non-Salary Direct Cost update","Modified based on November 2, 2018 announcement on rates."]
["2019.(0107).RJS.LEP","NO","Maximum Allowable Non-Salary Direct Cost update & PDEA - Planning - Hydraulics update and SUB1 add","Modified based on January 4, 2019 announcement on rates.  Merged Planning and Design into the most easily to digest worksheet tab of PDEA - Planning - Hydraulics worksheet, retited to be Planning and Design.  Duplicated to create a Subconsultant for PDEA-Planning-Hydraulics."]
["2019.(0110).RJS.LEP","YES","Fix delete unused button on OVERALL SUMMARY, missed equation add when added PDEA-Planning & Design Hydraulics-SUB1","Correct equation for PDEA-Planning-Hydrualics SUB1 so when not used and \"Delete Unused\" is used the summation of cost does not fault.  This action was missed during the 1/7 Hydraulics change request."]
["2019.(0315).RJS.LEP","NO","PDEA-Planning & Design Hydraulics and PDEA-Planning & Design Hydraulics-SUB1","Functionality and format changes requested.  Rework percent based on Design only subtotals not Planning and Design.  Subtotals per task, changed from Manhours to Mandays.  Standardized font size.  Hiding all unused sections vs. having standing section headers exposed revealing no input in those sections.  \n\nAlso, corrected Hydraulics test data found to still be in there $88 direct cost.  Removed travel section test data inputs to remedy. (posted later than 0315 and 2 weeks with this error but kept the same date format)"]
["2019.(0529).RJS.LEP","NO","CONGMGMT, PDEA Planning Congestion Management, PDEA Planning Congestion Management Sub 1.  Utility Design, Utility Coordination.","Formula changes to method used to form congestion management estimates.  Current worksheet tabs edited to reflect the equation changes required.  Syncho Sidra changed from a 10/19/17 version to a 2/20/19 version for the embedded equations.  TransModeler changed from a 7/19/16 version to a 3/4/19 version for the embedded equations.  Corrected the 3 existing Congestion Management disciplines.  \n\nWidened Utility Coordination and Design columns based on request and ### issue reported."]
["2019.(0529).RJS.LEP","YES","All ITS and ITS Sub worksheets.  Signals Comm Fiber Radio, SUE, SUE Sub 1, SUE Sub 2","Reported ITS had to fix the fee calculation, forced 9% not value changed on PEF Classificiation Sheet.  SUE and Signals Com Fiber Radio had the same issue."]
["2019.(0614).RJS.LEP","YES","Acct Initiation Request","There are instances that happen with enough consistency to warrant a change regarding the AIR form regarding times when the initial estimate does not report any Direct cost and the final estimate does report Direct cost for a discipline.  Had to change formula to account for that instance so the correct value populates the AIR form.  Before the initial estimate value was populated when it should have been the final estimate value."]
["2019.(0619).RJS.LEP","YES","CONGMGMT, PDEA Planning Congestion Management, PDEA Planning Congestion Management Sub 1","Template provided to update these tabs had one cell with a miscalculation, so updated to match the corrected file."]
["2019.(0709).RJS.LEP","YES","maximum allowable non-salary direct costs","Meal and Lodging update"]
["2019.(0710).RJS.LEP","No","Planning Hydraulics, Planning Hydraulics Sub","Planning Hydraulics \"merge\" macro correction"]
["2021.(12.02).RJS.LEP","YES","PDEA- tabs","Changed \"Header\" \"name, etc. cells\" from referencing PDEA-Planning tab to actual cell values (copy/paste values)."]
["2022.0511.SPM",null,null,"Complete overhaul of the spreadsheet by Sean Murphy at HDR "]

{"sheet":"FileNameSAP","index":1,"n_rows":51,"n_cols":20,"rows_kept":51,"cut":false,"hidden":true,"merged":[[15,2,15,3],[15,4,15,9],[7,0,15,0],[7,4,7,9],[7,2,7,3],[8,2,8,3],[11,2,11,4],[12,2,12,3],[13,2,13,3],[8,4,8,9],[13,4,13,9],[0,0,2,0],[3,0,5,0],[12,4,12,9],[9,4,9,9],[14,2,14,3],[14,4,14,9],[10,4,10,9],[11,5,11,9],[9,2,9,3]]}
["FIRM","Please Name the file \"Project name or TIP – Firm – DOT SAP Department Code – Supp or TO or PO number - PEF - Estimate Submittal Number\"",null,null,null,null,null,null,null,null,null,null,null,null,null,"Discipline Managing Project","SAP Code"]
[null,"This project file name:",null,null,{"$f":"CONCATENATE(IF(E9<>\"\",E9,E8),\" - \",E10,\" - \",F12,IF(E13=\"\",\"\",\" - \"),IF(E13=\"\",\"\",C13),E13,IF(E14=\"\",\"\",\" - \"),IF(E14=\"\",\"\",\"TO \"),E14, IF(E15=\"\",\"\",\" - \"),IF(E15=\"\",\"\",\"PO \"),IF(E15=\"\",\"\",E15),\" - PEF\",\" \",E16)","v":" -  -  - PEF "}]
[null,null,"An example is:  B-2500 - AECOM - PDV - Supp 4 - PEF InitialV2",null,null,null,null,null,null,null,null,null,null,null,null,"Aviation","ARN"]
["DOT","Please name the file \"Project Name or TIP - Firm - DOT SAP Department Code - Supp or TO or PO number - DOT - Estimate Submittal Number\"",null,null,null,null,null,null,null,null,null,null,null,null,null,"IM-Bike Ped","BCA","Discipline Rename","Bicycle and Pedestrian"]
[null,"This project file name:",null,null,{"$f":"CONCATENATE(IF(E9<>\"\",E9,E8),\" - \",E10,\" - \",F12,IF(E13=\"\",\"\",\" - \"),IF(E13=\"\",\"\",C13),E13,IF(E14=\"\",\"\",\" - \"),IF(E14=\"\",\"\",\"TO \"),E14, IF(E15=\"\",\"\",\" - \"),IF(E15=\"\",\"\",\"PO \"),IF(E15=\"\",\"\",E15),\" - DOT\",\" \",E16)","v":" -  -  - DOT "},null,null,null,null,null,null,null,null,null,null,"TM-Congestion Management","TRA (cm)"]
[null,null,"An example is:  B-2500 - AECOM - PDV - Supp 4 - DOT InitialV2",null,null,null,null,null,null,null,null,null,null,null,null,"RE-Erosion Control","RDE"]
[null,null,null,null,null,null,null,null,null,null,null,null,null,null,null,"Ferry","FDA"]
["Where it can be found on OVERALL SUMMARY (Cell)","C9","Project Name",null,{"$f":"IF('OVERALL SUMMARY'!C9=\"\",\"\",'OVERALL SUMMARY'!C9)","v":""},null,null,null,null,null,null,null,null,null,null,"PD-Final Pavement Marking & Markers","TRA (sign)"]
[null,"C3","TIP",null,{"$f":"IF('OVERALL SUMMARY'!C3=\"\",\"\",'OVERALL SUMMARY'!C3)","v":""},null,null,null,null,null,null,null,null,null,null,"GT-Geotechnical","GTA"]
[null,"C255","Firm",null,{"$f":"IF('OVERALL SUMMARY'!C230=\"\",\"\",'OVERALL SUMMARY'!C230)","v":""},null,null,null,null,null,null,null,null,null,null,"PM-Hydraulics","HDA"]
[null,"C254","Managing DOT Unit",null,{"$f":"IF('OVERALL SUMMARY'!C229=\"\",\"\",'OVERALL SUMMARY'!C229)","v":""},null,null,null,null,null,null,null,null,null,null,"SG-ITS","TRA (ITS)"]
[null,"N/A","DOT SAP Department Code",null,null,{"$f":"IF(E11=\"\",\"\",VLOOKUP(E11,P2:Q51,2,FALSE))","v":""},null,null,null,null,null,null,null,null,null,"LS-Location Surveys","LSA"]
[null,"H267","Supp",null,{"$f":"IF('OVERALL SUMMARY'!H242=\"\",\"\",'OVERALL SUMMARY'!H242)","v":""},null,null,null,null,null,null,null,null,null,null,"SG-Municipal Signal Systems","TRA (signals)"]
[null,"C6","Task Order Number",null,{"$f":"IF('OVERALL SUMMARY'!C6=\"\",\"\",'OVERALL SUMMARY'!C6)","v":""},null,null,null,null,null,null,null,null,null,null,"EN-Air Quality","PDA","Discipline Rename","PDEA-HES-Air Quality"]
[null,"C267","PO Number",null,{"$f":"IF('OVERALL SUMMARY'!C242=\"\",\"\",'OVERALL SUMMARY'!C242)","v":""},null,null,null,null,null,null,null,null,null,null,"EN-Community Studies","PDA","Discipline Rename","PDEA-HES-Community Studies"]
[null,"C8","Est. Submittal #",null,{"$f":"IF('OVERALL SUMMARY'!C8=\"\",\"\",'OVERALL SUMMARY'!C8)","v":""},null,null,null,null,null,null,null,null,null,null,"EN-Noise","PDA","Discipline Rename","PDEA-HES-Noise"]
[null,null,null,null,null,null,null,null,null,null,null,null,null,null,null,"EN-Public Involvement","PDA","Discipline Rename","PDEA-HES-Public Involvement"]
[null,null,null,null,null,null,null,null,null,null,null,null,null,null,null,"EN-Natural Env","PDA","Discipline Rename","PDEA-NES"]
[null,null,null,null,null,null,null,null,null,null,null,null,null,null,null,"PM-Project Mgmt","PDA","Discipline Rename","PDEA-Other"]
[null,null,null,null,null,null,null,null,null,null,null,null,null,null,null,"EP-Env Policy","PDA","Discipline Rename","PDEA-Planning"]
[null,null,null,null,null,null,null,null,null,null,null,null,null,null,null,"PM-Cong. Management","PDA","Discipline Rename","PDEA-Planning-Congestion Management"]
[null,null,null,null,null,null,null,null,null,null,null,null,null,null,null,"PM-Hydraulics","HDA","Discipline Rename","PDEA-Planning and Design-Hydraulics","PDA"]
[null,null,null,null,null,null,null,null,null,null,null,null,null,null,null,"PM-Other","PDA","Discipline Rename","PDEA-Planning-Roadway"]
[null,null,null,null,null,null,null,null,null,null,null,null,null,null,null,"IM-Public Transp","PBT","Discipline Rename","Public Transporation"]
[null,null,null,null,null,null,null,null,null,null,null,null,null,null,null,"RR-Rail","RLA"]
[null,null,null,null,null,null,null,null,null,null,null,null,null,null,null,"Right of Way","ROW","Added per AIR list"]
[null,null,null,null,null,null,null,null,null,null,null,null,null,null,null,"RD-Roadway","DSA"]
[null,null,null,null,null,null,null,null,null,null,null,null,null,null,null,"SG-Signal Communications","TRA (signals)"]
[null,null,null,null,null,null,null,null,null,null,null,null,null,null,null,"SS-Signals","TRA (signals)"]
[null,null,null,null,null,null,null,null,null,null,null,null,null,null,null,"SD-Signing","TRA (sign)"]
[null,null,null,null,null,null,null,null,null,null,null,null,null,null,null,"ST-Structures","STA"]
[null,null,null,null,null,null,null,null,null,null,null,null,null,null,null,"LS-SUE","LSA"]
[null,null,null,null,null,null,null,null,null,null,null,null,null,null,null,"TP-Traffic Forecast","SPL"]
[null,null,null,null,null,null,null,null,null,null,null,null,null,null,null,"TP-Transportation Planning","SPL"]
[null,null,null,null,null,null,null,null,null,null,null,null,null,null,null,"UT-Utilities Coordination","RWA"]
[null,null,null,null,null,null,null,null,null,null,null,null,null,null,null,"UT-Utilities Design","PSU"]
[null,null,null,null,null,null,null,null,null,null,null,null,null,null,null,"TM-Work Zone Traffic Control (WZTC)","TRA (wz)"]
[null,null,null,null,null,null,null,null,null,null,null,null,null,null,null,"Division 1","D1A"]
[null,null,null,null,null,null,null,null,null,null,null,null,null,null,null,"Division 2","D2A"]
[null,null,null,null,null,null,null,null,null,null,null,null,null,null,null,"Division 3","D3A"]
[null,null,null,null,null,null,null,null,null,null,null,null,null,null,null,"Division 4","D4A"]
[null,null,null,null,null,null,null,null,null,null,null,null,null,null,null,"Division 5","D5A"]
[null,null,null,null,null,null,null,null,null,null,null,null,null,null,null,"Division 6","D6A"]
[null,null,null,null,null,null,null,null,null,null,null,null,null,null,null,"Division 7","D7A"]
[null,null,null,null,null,null,null,null,null,null,null,null,null,null,null,"Division 8","D8A"]
[null,null,null,null,null,null,null,null,null,null,null,null,null,null,null,"Division 9","D9A"]
[null,null,null,null,null,null,null,null,null,null,null,null,null,null,null,"Division 10","DAA"]
[null,null,null,null,null,null,null,null,null,null,null,null,null,null,null,"Division 11","DBA"]
[null,null,null,null,null,null,null,null,null,null,null,null,null,null,null,"Division 12","DCA"]
[null,null,null,null,null,null,null,null,null,null,null,null,null,null,null,"Division 13","DDA"]
[null,null,null,null,null,null,null,null,null,null,null,null,null,null,null,"Division 14","DEA"]

{"sheet":"MAX.ALL.NON-SALARY","index":2,"n_rows":56,"n_cols":18,"rows_kept":56,"cut":false,"hidden":true,"merged":[[45,1,45,11],[18,7,18,9],[19,7,19,9],[24,2,24,5],[26,2,26,5],[41,1,41,11],[43,1,43,11],[38,15,38,18],[21,15,21,18],[32,7,39,10],[8,1,8,11],[3,1,3,11],[4,1,4,11],[5,1,5,11],[6,1,6,11],[7,1,7,11],[16,7,16,9],[17,7,17,9],[9,1,9,11],[10,1,10,11],[12,7,12,9],[14,7,14,9],[15,7,15,9]]}
[]
[]
[]
[null,"STATE OF NORTH CAROLINA"]
[null,"DEPARTMENT OF TRANSPORTATION"]
[null,"           ROY COOPER                                                                                                                                           J.R. \"JOEY\" HOPKINS"]
[null,"GOVERNOR                                                                                                                                                                                                                                 SECRETARY"]
[null,"2025-01-01"]
[null,"MAXIMUM ALLOWABLE NON-SALARY DIRECT COSTS"]
[]
[null,"CONSULTANTS ARE LIMITED TO THE LOWER OF THEIR ACTUAL RATES OR THE RATES IMPOSED BELOW"]
[null,"REPRODUCTION:",null,null,null,null,null,"42” x 72”",null,null,"11”x17”"]
[null,null,"XEROX COPIES",null,null,0.14000000000000001,null,null,null,null,0.34]
[null,null,"BLUEPRINTS",null,null,0.35,null,1.3]
[null,null,"BOND",null,null,0.42]
[null,null,"BOND (34” X 68”)",null,null,3.5]
[null,null,"VELLUMS",null,null,3]
[null,null,"STICK-ONS",null,null,1]
[null,null,"COVERS",null,null,0.5]
[null,null,"BINDING",null,null,0.5]
[null,null,"MYLARS",null,null,7.32,null,28.12,"(3’x4’)"]
[null,null,null,null,null,null,null,null,null,null,null,null,null,null,null,"ADDITIONAL PDEA DIRECT COSTS"]
[null,"COMPUTER:","CADD",null,0,"/HR (Recovered Through Overhead)",null,null,null,null,null,null,null,null,null,null,"Parking:",3]
[null,null,null,null,null,null,null,null,null,null,null,null,null,null,null,null,"8 1/2 x 11 Color Copies @",0.83]
[null,"OTHER:","FILM & DEVELOPING",null,null,null,20,"/ROLL",null,null,null,null,null,null,null,null,"11 x 17 Color Copies @",1.66]
[null,null,null,null,null,null,null,null,null,null,null,null,null,null,null,null,"SQ. FT. of Plots (B & W or Color) -- <65 SQ. FT.*",6.5]
[null,"MILEAGE:","SEDAN",null,null,null,0.7,"/MILE",null,null,null,null,null,null,null,null,"SQ. FT. of Plots (B & W or Color) -- >65 SQ. FT.*",1.5]
[null,null,"CARRYALL",null,null,null,0.72,"/MILE",null,null,null,null,null,null,null,null,"County Tax Maps:",7]
[null,null,"CAR RENTAL",null,50,"/DAY",null,null,null,null,null,null,null,null,null,null,"USGS Maps:",7]
[null,null,null,null,null,null,null,null,null,null,null,null,null,null,null,null,"Prints  - 24 x 36 @",3]
[null,null,0.2,"PER MILE FOR GAS IF RENTING",null,null,null,null,null,null,null,null,null,null,null,null,"SQ. FT. Foam Mounting Board @",1.25]
[null,null,null,null,null,null,null,null,null,null,null,null,null,null,null,null,"Misc. Workshop Supplies @",50]
[null,"PER DIEM:","BREAKFAST",null,10.1,null,null,"1 Hotel reimbursement is limited to actual costs not to exceed: $89.10/day+ tax for in state; $105.20/day + tax for out of state.\n\n$95.00 per day for hotel will be proposed for ALL NCDOT proposals.",null,null,null,null,null,null,null,null,"Laser Peel & Stick (box)",4]
[null,null,"LUNCH",null,13.3,null,null,null,null,null,null,null,null,null,null,null,"Notice or Newsletter @",0.49]
[null,null,"DINNER",null,23.1]
[null,null,"HOTEL",null,89.1,"*"]
[]
[null,null,null,"OTHER HOTEL",105.2,"out-of-state"]
[null,null,null,"OTHER HOTEL",95,"LUMP SUM",null,null,null,null,null,null,null,null,null,"ADDITIONAL WZTCU DIRECT COSTS"]
[null,null,null,null,null,null,null,null,null,null,null,null,null,null,null,null,"Full-Size Bond (COLOR)",3]
[]
[null,"* Subsistence is an allowance related to lodging and meals (including gratuities).\n* Payment of sales tax, lodging tax, local tax or service fees applied to the cost of lodging is allowed in addition to the lodging\n rate and is to be paid as a lodging expense.\n* Reimbursement of actual costs of overnight lodging, whether in-state or out-of-state, must be documented by a receipt of\n actual lodging expenses from a commercial establishment.\n* Out of State travel status only applicable when performing contracted services for NCDOT & requires travel outside of NC.\n Travel status begins when employee(s) leaves the state and remains in effect until returning to the state.\n* All subsistence rates comply with NC GS 138-6, the NC Office of State Budget & Management Budget Manual and the\n NCDOT Travel Policy and Reimbursement Procedures."]
[]
[null,"5.2.6 Meals during Overnight Travel An employee may be reimbursed for meals, including lunches, while on official state business when the employee is in overnight travel status. Employees may be reimbursed for meals for partial days of travel when in overnight travel status and the partial day is the day of departure or the day of return. \n\nThe following applies: \n* Breakfast: depart duty station prior to 6:00 am. \n* Lunch: depart duty station prior to Noon (day of departure) or return to duty station after 2:00 p.m. (day of return). \n* Dinner: depart duty station prior to 5:00 p.m. (day of departure) or return to duty station after 8:00 p.m. (day of return). \n\nTravel must involve a destination located at least 35 miles from employee's regularly assigned duty station or home, whichever is less."]
[]
[null,"5.2.7 Meals during Daily Travel\nNCDOT has set an individual agency policy to allow for employee reimbursement of breakfast and dinner meals for day\ntravel when employees are not in overnight travel status. By state statute, lunches cannot be reimbursed unless the\nemployee is in overnight travel status or otherwise specified in G.S 138-6.\n\nAgency policy should incorporate the following departure times and return times:\n* Breakfast (morning): depart duty station prior to 6:00 am and extend the workday by 2 hours.\n* Dinner (evening): return to duty station after 8:00 pm and extend the workday by 3 hours.\n\nTravel must involve a destination located at least 35 miles from employee's regularly assigned duty station or home,\nwhichever is less.\n\nThe Internal Revenue Service (IRS) considers meal reimbursement outside of overnight travel status as taxable\ncompensation payments. If an employee receives breakfast or dinner under this section, then the payment must be\ntreated as employee compensation for purposes of withholding federal, state, and FICA taxes. "]
[]
[null,"ALL OTHER COSTS MUST SHOW SUPPORTING DOCUMENTATION"]
[]
[null,"ADDRESS ANY QUESTIONS TO THE CONSULTANT, UTILITY, RAIL, TURNPIKE AUDIT UNIT:"]
[]
[]
[null,"John Stroud - Lead Auditor",null,null,null,"919-707-4580"]
[]
[null,"Shanna Cofield - Sr. Auditor",null,null,null,"919-707-4579"]
[null,"Geavonda Chestnut - Sr. Auditor",null,null,null,"919-707-4597"]

{"sheet":"Position Type Worksheet","index":3,"n_rows":93,"n_cols":21,"rows_kept":93,"cut":false,"hidden":true,"merged":[]}
["Roadway",null,"Structures",null,"Signing",null,"PDEA-Planning-ROADWAY",null,"PDEA-Planning-CONGESTION MANAGEMENT",null,"PDEA-HEU-Noise",null,"PDEA-HEU-Public Involvement",null,"Utilities Coordination",null,"RAIL",null,"PUBLIC TRANSPORTATION",null,"BICYCLE AND PEDESTRIAN"]
["PROJECT ENGINEER",null,"Trans. Eng. Supervisor III",null,"TEM I",null,"Roadway Design Proj. Eng (ES-A)",null,"Traffic Unit Head (TM-1)",null,"Section Head (E/A Man. -C)",null,"Section Head (E/A Man. -C)",null,"Utility Coordination Supervisor",null,"TRANSPORTATION DIRECTOR (TD I)",null,"TRANSPORTATION DIRECTOR (TD I)",null,"PLANNING DIRECTOR"]
["DESIGN ENGINEER",null,"Trans. Eng. Supervisor II",null,"TES III",null,"Roadway Design Eng (E-A)",null,"Project Engineer Sup. (TES-3)",null,"Group Leader (E/A Sup. - A)",null,"Group Leader (E/A Sup. - A)",null,"Senior Utility Coordinator",null,"TRANS. ENG. MANAGER 2 (TEM II)",null,"TRANSPORTATION DIRECTOR (TD II)",null,"EXECUTIVE DIRECTOR"]
["SENIOR TECHNICIAN",null,"Trans. Engineer III",null,"TE II",null,"Roadway Design Eng. (E-J)",null,"Project Engineer Sup. (TES-2)",null,"Project Engineer (E-A)",null,"Project Engineer (E-A, E-J, E-C)",null,"Utility Coordinator",null,"TRANS. ENG. MANAGER 1 (TEM I)",null,"TRANS. ENG. MANAGER 2 (TEM II)",null,"DIRECTOR"]
["ENGINEER ADVANCED",null,"Trans. Engineer II",null,"TE I",null,"Roadway Design Eng. (E-C)",null,"Project Engineer (TE-3)",null,"Project Engineer (E-J)",null,"Community Planner (CP-2)",null,"Junior Technician",null,"TRANS. ENG. SUPERVISOR 3 (TES III)",null,"TRANS. ENG. MANAGER 1 (TEM I)",null,"PRINCIPAL PLANNER"]
[{"$f":"IF(ROADWAY_CONSULTANT_CLASSIFICATION.1_TITLE=\"\",\"\",ROADWAY_CONSULTANT_CLASSIFICATION.1_TITLE)","v":""},null,"Trans. Engineer I",null,"TT V",null,"Roadway Design Tech. (ET-A)",null,"Project Engineer (TE-2)",null,"Project Engineer (E-C)",null,"Public Inv. Eng. (E-A)",null,{"$f":"'PEF CLASSIFICATION SHEET'!C485","v":"MISCELLANEOUS1"},null,"TRANS. ENG. SUPERVISOR 2 (TES II)",null,"TRANS. ENG. SUPERVISOR 3 (TES III)",null,"PLANNING MANAGER"]
[{"$f":"IF(ROADWAY_CONSULTANT_CLASSIFICATION.2_TITLE=\"\",\"\",ROADWAY_CONSULTANT_CLASSIFICATION.2_TITLE)","v":""},null,"Trans. Technician V",null,null,null,"Roadway Design Tech. (ET-J)",null,"Project Engineer (TE-1)",null,"Design Engineer",null,"Administrative Assistant (AA-I)",null,{"$f":"'PEF CLASSIFICATION SHEET'!C486","v":"MISCELLANEOUS2"},null,"TRANS. ENG. 3 (ENVIRO. SPVR. 3) (TE III) (ES III)",null,"TRANS. ENG. SUPERVISOR 2 (TES II)",null,"PLANNER III"]
[{"$f":"IF(ROADWAY_CONSULTANT_CLASSIFICATION.3_TITLE=\"\",\"\",ROADWAY_CONSULTANT_CLASSIFICATION.3_TITLE)","v":""},null,null,null,null,null,"Roadway Design Tech. (ET-C)",null,null,null,"Planner",null,null,null,{"$f":"'PEF CLASSIFICATION SHEET'!C487","v":"MISCELLANEOUS3"},null,"TRANS. ENG. 2 (ENVIRO. SPVR. 2) (TE II) (ES II)",null,"TRANS. ENG. 3 (ENVIRO. SPVR. 3) (TE III) (ES III)",null,"SENIOR PLANNER"]
[null,null,null,null,"Geotechnical ",null,"PROJECT ENGINEER",null,null,null,"Eng. Tech. (ET-A)",null,null,null,null,null,"TRANS. TECH. 6 (TT VI)",null,"TRANS. ENG. 2 (ENVIRO. SPVR. 2) (TE II) (ES II)",null,"PLANNER II"]
[null,null,"Location Surveys",null,{"$f":"IF(GEOTECHNICAL_CONSULTANT_CLASSIFICATION.1_TITLE=\"\",\"\",GEOTECHNICAL_CONSULTANT_CLASSIFICATION.1_TITLE)","v":""},null,"DESIGN ENGINEER",null,null,null,"Administrative Assistant (AA-I)",null,null,null,null,null,"TRANS. ENG. 1 (TRANS. PLANNER 3) (TE I) (TP III)",null,"TRANS. TECH. 6 (TT VI)",null,"ASSOCIATE PLANNER"]
["WZTC",null,"Project Engineer Manager",null,{"$f":"IF(GEOTECHNICAL_CONSULTANT_CLASSIFICATION.2_TITLE=\"\",\"\",GEOTECHNICAL_CONSULTANT_CLASSIFICATION.2_TITLE)","v":""},null,"SENIOR TECHNICIAN",null,null,null,null,null,null,null,"Utilities Design",null,"TRANS. TECH. 5 (TT V)",null,"TRANS. ENG. 1 (TRANS. PLANNER 3) (TE I) (TP III)",null,"PLANNER I"]
["TEM I",null,"Project Survey Supervisor",null,{"$f":"IF(GEOTECHNICAL_CONSULTANT_CLASSIFICATION.3_TITLE=\"\",\"\",GEOTECHNICAL_CONSULTANT_CLASSIFICATION.3_TITLE)","v":""},null,"ENGINEER ADVANCED",null,null,null,null,null,null,null,"Utility Design Supervisor",null,"TRANS. TECH. 4 (TRANS. PLANNER 2) (TT IV) (TP II)",null,"TRANS. TECH. 5 (TT V)",null,"ASSISTANT PLANNER"]
["TES III",null,"Advanced Survey Coordinator",null,{"$f":"IF(GEOTECHNICAL_CONSULTANT_CLASSIFICATION.4_TITLE=\"\",\"\",GEOTECHNICAL_CONSULTANT_CLASSIFICATION.4_TITLE)","v":""},null,{"$f":"IF(ROADWAY_CONSULTANT_CLASSIFICATION.1_TITLE=\"\",\"\",ROADWAY_CONSULTANT_CLASSIFICATION.1_TITLE)","v":""},null," ",null,null,null,null,null,"Senior Utility Engineer",null,"TRANS. TECH. 3 (TRANS. PLANNER 1) (TT III) (TP I)",null,"TRANS. TECH. 4 (TRANS. PLANNER 2) (TT IV) (TP II)",null,"PLANNING TECHNICIAN"]
["TES II",null,"Survey Crew Leader",null,{"$f":"IF(GEOTECHNICAL_CONSULTANT_CLASSIFICATION.5_TITLE=\"\",\"\",GEOTECHNICAL_CONSULTANT_CLASSIFICATION.5_TITLE)","v":""},null,{"$f":"IF(ROADWAY_CONSULTANT_CLASSIFICATION.2_TITLE=\"\",\"\",ROADWAY_CONSULTANT_CLASSIFICATION.2_TITLE)","v":""},null,null,null,null,null,null,null,"Utility Engineer",null,"TRANS. TECH. 2 (PLANNING TECH.) (TT II) (PT)",null,"TRANS. TECH. 3 (TRANS. PLANNER 1) (TT III) (TP I)",null,"PLANNING INTERN"]
["TE III",null,"Assistant Survey Crew Leader",null,{"$f":"IF(GEOTECHNICAL_CONSULTANT_CLASSIFICATION.6_TITLE=\"\",\"\",GEOTECHNICAL_CONSULTANT_CLASSIFICATION.6_TITLE)","v":""},null,{"$f":"IF(ROADWAY_CONSULTANT_CLASSIFICATION.3_TITLE=\"\",\"\",ROADWAY_CONSULTANT_CLASSIFICATION.3_TITLE)","v":""},null,null,null,null,null,null,null,"Junior Technician",null,"ADMIN. ASSISTANT 3 (AA III)",null,"TRANS. TECH. 2 (PLANNING TECH.) (TT II) (PT)",null,"GIS ANALYST"]
["TE II",null,"Survey Crew Member",null,{"$f":"IF(GEOTECHNICAL_CONSULTANT_CLASSIFICATION.7_TITLE=\"\",\"\",GEOTECHNICAL_CONSULTANT_CLASSIFICATION.7_TITLE)","v":""},null,{"$f":"IF(PLANNINGROADWAY_CONSULTANT_CLASSIFICATION.1_TITLE=\"\",\"\",PLANNINGROADWAY_CONSULTANT_CLASSIFICATION.1_TITLE)","v":""},null,"PDEA-NEU",null,null,null,null,null,{"$f":"'PEF CLASSIFICATION SHEET'!C499","v":"MISCELLANEOUS1"},null,"TRANS. TECH. 1 (TT I)",null,"ADMIN. ASSISTANT 3 (AA III)"]
["TE I",null,null,null,{"$f":"IF(GEOTECHNICAL_CONSULTANT_CLASSIFICATION.8_TITLE=\"\",\"\",GEOTECHNICAL_CONSULTANT_CLASSIFICATION.8_TITLE)","v":""},null,{"$f":"IF(PLANNINGROADWAY_CONSULTANT_CLASSIFICATION.2_TITLE=\"\",\"\",PLANNINGROADWAY_CONSULTANT_CLASSIFICATION.2_TITLE)","v":""},null,"Section Head (E/A Man. -C)",null,null,null,null,null,{"$f":"'PEF CLASSIFICATION SHEET'!C500","v":"MISCELLANEOUS2"},null,null,null,"TRANS. TECH. 1 (TT I)",null,"TRAFFIC FORECAST"]
[null,null,null,null,{"$f":"IF(GEOTECHNICAL_CONSULTANT_CLASSIFICATION.9_TITLE=\"\",\"\",GEOTECHNICAL_CONSULTANT_CLASSIFICATION.9_TITLE)","v":""},null,{"$f":"IF(PLANNINGROADWAY_CONSULTANT_CLASSIFICATION.3_TITLE=\"\",\"\",PLANNINGROADWAY_CONSULTANT_CLASSIFICATION.3_TITLE)","v":""},null,"Project Engineer (E-A-Sup-A)",null,null,null,"PDEA-HEU-Community Studies",null,{"$f":"'PEF CLASSIFICATION SHEET'!C501","v":"MISCELLANEOUS3"},null,null,null,null,null,"Trans. Director I"]
[null,null,"PHOTOGRAMMETRY",null,{"$f":"IF(GEOTECHNICAL_CONSULTANT_CLASSIFICATION.10_TITLE=\"\",\"\",GEOTECHNICAL_CONSULTANT_CLASSIFICATION.10_TITLE)","v":""},null,{"$f":"IF(PLANNINGROADWAY_CONSULTANT_CLASSIFICATION.4_TITLE=\"\",\"\",PLANNINGROADWAY_CONSULTANT_CLASSIFICATION.4_TITLE)","v":""},null,"Project Engineer (E-A)",null,null,null,"HES Manager (E/A Man. -A)",null,null,null,"FERRY",null,null,null,"Trans. Eng. Manager I"]
[null,null,"ES  Eng Supervisor",null,{"$f":"IF(GEOTECHNICAL_CONSULTANT_CLASSIFICATION.11_TITLE=\"\",\"\",GEOTECHNICAL_CONSULTANT_CLASSIFICATION.11_TITLE)","v":""},null,{"$f":"IF(PLANNINGROADWAY_CONSULTANT_CLASSIFICATION.5_TITLE=\"\",\"\",PLANNINGROADWAY_CONSULTANT_CLASSIFICATION.5_TITLE)","v":""},null,"Project Engineer (E-J)",null,"PDEA-HEU-Archaeology",null,"CS Group Leader (CPSC)",null,null,null,"TRANSPORTATION DIRECTOR (TD I)",null,"AVIATION",null,"Trans. Eng. Supervisor II"]
[null,null,"E2   Engineer II",null,{"$f":"IF(GEOTECHNICAL_CONSULTANT_CLASSIFICATION.12_TITLE=\"\",\"\",GEOTECHNICAL_CONSULTANT_CLASSIFICATION.11_TITLE)","v":""},null,{"$f":"IF(PLANNINGROADWAY_CONSULTANT_CLASSIFICATION.6_TITLE=\"\",\"\",PLANNINGROADWAY_CONSULTANT_CLASSIFICATION.6_TITLE)","v":""},null,"Project Engineer (E-C)",null,"BRANCH MAN.(TD-1)",null,"Community Planner (CP-III)",null,"SUE",null,"TRANS. ENG. MANAGER 2 (TEM II)",null,"TRANSPORTATION DIRECTOR (TD I)",null,"Trans. Eng. Supervisor III"]
["Pavement Marking",null,"E1    Engineer  I",null,null,null,{"$f":"IF(PLANNINGROADWAY_CONSULTANT_CLASSIFICATION.7_TITLE=\"\",\"\",PLANNINGROADWAY_CONSULTANT_CLASSIFICATION.7_TITLE)","v":""},null,"Group Leader (EPS - III)",null,"UNIT HEAD(TM-1)",null,"Community Planner (CP-II)",null,"SR CADD TECHNICIAN",null,"TRANS. ENG. MANAGER 1 (TEM I)",null,"TRANS. ENG. MANAGER 2 (TEM II)",null,"Trans. Eng. I"]
["TEM I",null,"ET6 Eng. Tech.  VI",null,null,null,{"$f":"IF(PLANNINGROADWAY_CONSULTANT_CLASSIFICATION.8_TITLE=\"\",\"\",PLANNINGROADWAY_CONSULTANT_CLASSIFICATION.8_TITLE)","v":""},null,"Env. Supervisor (EPS-2)",null,"GROUP MAN.(TES-3)",null,"Community Planner (CP-I)",null,"PROJECT MANAGER",null,"TRANS. ENG. SUPERVISOR 3 (TES III)",null,"TRANS. ENG. MANAGER 1 (TEM I)",null,"Trans. Eng. II"]
["TES III",null,"ET4 Eng. Tech.  IV ",null,"PDEA-Planning",null,null,null,"Env. Program Consultant (EPC)",null,"PROJ. ENG.(TE-3)(TE-2)",null,"Administrative Assistant (AA-I)",null,"CADD TECHNICIAN",null,"TRANS. ENG. SUPERVISOR 2 (TES II)",null,"TRANS. ENG. SUPERVISOR 3 (TES III)",null,"Trans. Eng. III"]
["TE II",null,"ET3 Eng. Tech.  III",null,"Section Head (E/A Man. -C)",null,null,null,"Env. Snr. Specialist (ESS)",null,"DRAFT& REPO.TECH.(TT-2)",null,null,null,"SURVEY ANALYST",null,"TRANS. ENG. 3 (ENVIRO. SPVR. 3) (TE III) (ES III)",null,"TRANS. ENG. SUPERVISOR 2 (TES II)",null,"Trans. Tech III"]
["TE I",null,"ET2   Eng. Tech.  II",null,"Group Leader (E/A Sup. - A)",null,null,null,"Env. Specialist (ES)",null,"COMM.PLNR(CP-2)",null,null,null,"SUE PROJ. ANALYST",null,"TRANS. ENG. 2 (ENVIRO. SPVR. 2) (TE II) (ES II)",null,"TRANS. ENG. 3 (ENVIRO. SPVR. 3) (TE III) (ES III)"]
["TT V",null,"ET1   Eng. Tech.  I",null,"Project Engineer (E-A)",null,null,null,"Administrative Assistant (AA-I)",null,"ENV.SPVR./ENGR.(TE-3)(ES-3)",null,null,null,"TECHNICIAN II",null,"TRANS. TECH. 6 (TT VI)",null,"TRANS. ENG. 2 (ENVIRO. SPVR. 2) (TE II) (ES II)"]
[null,null,null,null,"Project Engineer (E-J)",null,"PDEA-Planning-HYDRAULICS",null,"Professional Land Surveyor",null,"ENV.SPEC.(ES-3)(ES-2)",null,null,null,"TECHNICIAN I",null,"TRANS. ENG. 1 (TRANS. PLANNER 3) (TE I) (TP III)",null,"TRANS. TECH. 6 (TT VI)",null,"TRANSPORTATION PLANNING"]
[null,null,null,null,"Project Engineer (E-C)",null,"ESA",null,"Survey Crew Leader",null,"ARCH. & HISTORIC SPVR.",null,null,null,"ACCOUNTING CLERK",null,"TRANS. TECH. 5 (TT V)",null,"TRANS. ENG. 1 (TRANS. PLANNER 3) (TE I) (TP III)",null,"Trans. Director I"]
["Hydraulics",null,"Signals",null,"GIS Technician (ET-J)",null,"EA",null,"Survey Crew Member",null,"ARCH. & HISTORIC SPEC. (ARCH-2)(HPRS-2)",null,null,null,"PRINCIPAL / PROF. ENGR.",null,"TRANS. TECH. 4 (TRANS. PLANNER 2) (TT IV) (TP II)",null,"TRANS. TECH. 5 (TT V)",null,"Trans. Eng. Manager I"]
["ESA",null,"TEM II",null,"Office Assistant (PA-IV)",null,"EJ",null,null,null,"TRANS.ENG.SPVR.(TE-3))",null,null,null,null,null,"TRANS. TECH. 3 (TRANS. PLANNER 1) (TT III) (TP I)",null,"TRANS. TECH. 4 (TRANS. PLANNER 2) (TT IV) (TP II)",null,"Trans. Eng. Supervisor II"]
["EA",null,"TES III",null,null,null,"EC",null,null,null,"TRANS.ENG.(TE-1)",null,null,null,null,null,"TRANS. TECH. 2 (PLANNING TECH.) (TT II) (PT)",null,"TRANS. TECH. 3 (TRANS. PLANNER 1) (TT III) (TP I)",null,"Trans. Eng. Supervisor III"]
["EJ",null,"TES II",null,null,null,"ETJ",null,"PDEA-NEU Subconsultant",null,"ENV.TECH 3 (TT-3)",null,null,null,null,null,"ADMIN. ASSISTANT 3 (AA III)",null,"TRANS. TECH. 2 (PLANNING TECH.) (TT II) (PT)",null,"Trans. Eng. I"]
["EC",null,"TE III",null,null,null,"ETC",null,"Section Head (E/A Man. -C)",null,"WORD.PROC.SPVR.(WP-2)",null,null,null,null,null,"TRANS. TECH. 1 (TT I)",null,"ADMIN. ASSISTANT 3 (AA III)",null,"Trans. Eng. II"]
["ETJ",null,"TE II",null,null,null,null,null,"Project Engineer (E-A-Sup-A)",null,null,null,null,null,null,null,null,null,"TRANS. TECH. 1 (TT I)",null,"Trans. Eng. III"]
["ETC",null,"TE I",null,null,null,"PDEA-Planning-AIR QUALITY",null,"Project Engineer (E-A)",null,null,null,null,null,null,null,null,null,{"$f":"IF(AVIATION_CONSULTANT_CLASSIFICATION.1_TITLE=\"\",\"\",AVIATION_CONSULTANT_CLASSIFICATION.1_TITLE)","v":""},null,"Trans. Tech III"]
[null,null,"TEES",null,null,null,"Section Head (E/A Man. -C)",null,"Project Engineer (E-J)",null,"PDEA-HEU-Architecture",null,null,null,null,null,null,null,{"$f":"IF(AVIATION_CONSULTANT_CLASSIFICATION.2_TITLE=\"\",\"\",AVIATION_CONSULTANT_CLASSIFICATION.2_TITLE)","v":""},null,{"$f":"IF(TRANSPORTATION_PLANNING_CONSULTANT_CLASSIFICATION.1_TITLE=\"\",\"\",TRANSPORTATION_PLANNING_CONSULTANT_CLASSIFICATION.1_TITLE)","v":""}]
[null,null,"TEE II",null,null,null,"Group Leader (E/A Sup. - A)",null,"Project Engineer (E-C)",null,"BRANCH MAN.(TD-1)",null,null,null,null,null,null,null,{"$f":"IF(AVIATION_CONSULTANT_CLASSIFICATION.3_TITLE=\"\",\"\",AVIATION_CONSULTANT_CLASSIFICATION.3_TITLE)","v":""},null,{"$f":"IF(TRANSPORTATION_PLANNING_CONSULTANT_CLASSIFICATION.2_TITLE=\"\",\"\",TRANSPORTATION_PLANNING_CONSULTANT_CLASSIFICATION.2_TITLE)","v":""}]
["Erosion Control",null,"TEE I",null,null,null,"Project Engineer (E-A)",null,"Group Leader (EPS - III)",null,"UNIT HEAD(TM-1)",null,null,null,null,null,null,null,{"$f":"IF(AVIATION_CONSULTANT_CLASSIFICATION.4_TITLE=\"\",\"\",AVIATION_CONSULTANT_CLASSIFICATION.4_TITLE)","v":""},null,{"$f":"IF(TRANSPORTATION_PLANNING_CONSULTANT_CLASSIFICATION.3_TITLE=\"\",\"\",TRANSPORTATION_PLANNING_CONSULTANT_CLASSIFICATION.3_TITLE)","v":""}]
["PROJECT MANAGER",null,"Env. Snr. Specialist (ESS)",null,null,null,"Project Engineer (E-J)",null,"Env. Supervisor (EPS-2)",null,"GROUP MAN.(TES-3)",null,null,null,null,null,null,null,{"$f":"IF(AVIATION_CONSULTANT_CLASSIFICATION.5_TITLE=\"\",\"\",AVIATION_CONSULTANT_CLASSIFICATION.5_TITLE)","v":""},null,{"$f":"IF(TRANSPORTATION_PLANNING_CONSULTANT_CLASSIFICATION.4_TITLE=\"\",\"\",TRANSPORTATION_PLANNING_CONSULTANT_CLASSIFICATION.4_TITLE)","v":""}]
["PROJECT ENGINEER",null,"Env. Specialist (ES)",null,null,null,"Project Engineer (E-C)",null,"Env. Program Consultant (EPC)",null,"PROJ. ENG.(TE-3)(TE-2)",null,null,null,null,null,null,null,null,null,{"$f":"IF(TRANSPORTATION_PLANNING_CONSULTANT_CLASSIFICATION.5_TITLE=\"\",\"\",TRANSPORTATION_PLANNING_CONSULTANT_CLASSIFICATION.5_TITLE)","v":""}]
["DESIGN ENGINEER",null,"Eng. Tech. (ET-A)",null,null,null,"Eng. Tech. (ET-A)",null,"Env. Snr. Specialist (ESS)",null,"DRAFT& REPO.TECH.(TT-2)",null,null,null,null,null,null,null,null,null,{"$f":"IF(TRANSPORTATION_PLANNING_CONSULTANT_CLASSIFICATION.6_TITLE=\"\",\"\",TRANSPORTATION_PLANNING_CONSULTANT_CLASSIFICATION.6_TITLE)","v":""}]
["SENIOR TECH.",null,"ADMIN I",null,null,null,"Administrative Assistant (AA-I)",null,"Env. Specialist (ES)",null,"COMM.PLNR(CP-2)",null,null,null,null,null,null,null,null,null,{"$f":"IF(TRANSPORTATION_PLANNING_CONSULTANT_CLASSIFICATION.7_TITLE=\"\",\"\",TRANSPORTATION_PLANNING_CONSULTANT_CLASSIFICATION.7_TITLE)","v":""}]
["TECH. / DRAFT.",null,null,null,null,null,null,null,"Administrative Assistant (AA-I)",null,"ENV.SPVR./ENGR.(TE-3)(ES-3)",null,null,null,null,null,null,null,null,null,{"$f":"IF(TRANSPORTATION_PLANNING_CONSULTANT_CLASSIFICATION.8_TITLE=\"\",\"\",TRANSPORTATION_PLANNING_CONSULTANT_CLASSIFICATION.8_TITLE)","v":""}]
[null,null,null,null,null,null,null,null,"Professional Land Surveyor",null,"ENV.SPEC.(ES-3)(ES-2)"]
[null,null,null,null,null,null,null,null,"Survey Crew Leader",null,"ARCH. & HISTORIC SPVR."]
[null,null,null,null,null,null,null,null,"Survey Crew Member",null,"ARCH. & HISTORIC SPEC. (ARCH-2)(HPRS-2)"]
[null,null,null,null,null,null,null,null,null,null,"TRANS.ENG.SPVR.(TE-3))"]
[null,null,null,null,null,null,null,null,null,null,"TRANS.ENG.(TE-1)"]
[null,null,null,null,null,null,null,null,"PDEA-OTHER",null,"ENV.TECH 3 (TT-3)"]
[null,null,null,null,null,null,null,null,"Administrative Assistant (AA-I)",null,"WORD.PROC.SPVR.(WP-2)"]
[null,null,null,null,null,null,null,null,"Community Planner (CP-2)"]
[null,null,null,null,null,null," ",null,"Community Planner (CP-I)"]
[null,null,null,null,null,null," ",null,"Community Planner (CP-II)"]
[null,null,null,null,null,null,null,null,"Community Planner (CP-III)"]
[null,null,null,null,null,null,null,null,"CS Group Leader (CPSC)"]
[null,null,null,null,null,null,null,null,"Eng. Tech. (ET-A)"]
[null,null,null,null,null,null,null,null,"Env. Specialist (EPC, ES)"]
[null,null,null,null,null,null,null,null,"Env. Specialist (EPS-IV, EPS-2)"]
[null,null,null,null,null,null,null,null,"Env. Supervisor (EPS-IV, EPS-III)"]
[null,null,null,null,null,null,null,null,"GIS Technician (ET-J)"]
[null,null,null,null,null,null,null,null,"Group Leader (E/A Sup. - A)"]
[null,null,null,null,null,null,null,null,"HES Manager (E/A Man. -A)"]
[null,null,null,null,null,null,null,null,"Hydraulic Design Eng (E-A)"]
[null,null,null,null,null,null,null,null,"Hydraulic Design Eng. (E-C)"]
[null,null,null,null,null,null,null,null,"Hydraulic Design Eng. (E-J)"]
[null,null,null,null,null,null,null,null,"Hydraulic Design Proj. Eng (ES-A)"]
[null,null,null,null,null,null,null,null,"Hydraulic Design Tech. (ET-A)"]
[null,null,null,null,null,null,null,null,"Hydraulic Design Tech. (ET-C)"]
[null,null,null,null,null,null,null,null,"Hydraulic Design Tech. (ET-J)"]
[null,null,null,null,null,null,null,null,"Office Assistant (PA-IV)"]
[null,null,null,null,null,null,null,null,"Professional Land Surveyor"]
[null,null,null,null,null,null,null,null,"Project Engineer (E-A)"]
[null,null,null,null,null,null,null,null,"Project Engineer (E-A, E-J, E-C)"]
[null,null,null,null,null,null,null,null,"Project Engineer (E-C)"]
[null,null,null,null,null,null,null,null,"Project Engineer (E-J)"]
[null,null,null,null,null,null,null,null,"Project Engineer (TE-1)"]
[null,null,null,null,null,null,null,null,"Project Engineer (TE-2)"]
[null,null,null,null,null,null,null,null,"Project Engineer (TE-3)"]
[null,null,null,null,null,null," ",null,"Project Engineer Sup. (TES-2)"]
[null,null,null,null,null,null,null,null,"Project Engineer Sup. (TES-3)"]
[null,null,null,null,null,null,null,null,"Public Inv. Eng. (E-A)"]
[null,null,null,null,null,null,null,null,"Roadway Design Eng (E-A)"]
[null,null,null,null,null,null,null,null,"Roadway Design Eng. (E-C)"]
[null,null,null,null,null,null,null,null,"Roadway Design Eng. (E-J)"]
[null,null,null,null,null,null,null,null,"Roadway Design Proj. Eng (ES-A)"]
[null,null,null,null,null,null,null,null,"Roadway Design Tech. (ET-A)"]
[null,null,null,null,null,null,null,null,"Roadway Design Tech. (ET-C)"]
[null,null,null,null,null,null,null,null,"Roadway Design Tech. (ET-J)"]
[null,null,null,null,null,null,null,null,"Section Head (E/A Man. -C)"]
[null,null,null,null,null,null,null,null,"Survey Crew Leader"]
[null,null,null,null,null,null,null,null,"Survey Crew Member"]
[null,null,null,null,null,null,null,null,"Traffic Unit Head (TM-1)"]

{"sheet":"DISCIPLINE SELECTION","index":4,"n_rows":218,"n_cols":12,"rows_kept":218,"cut":false,"hidden":false,"merged":[[108,0,109,0],[108,2,109,2],[138,0,139,0],[138,2,139,2],[194,0,195,0],[194,2,195,2],[196,0,197,0],[196,2,197,2],[9,9,9,11],[9,6,9,8],[12,2,13,2],[64,2,65,2],[14,2,15,2],[26,2,27,2],[16,2,17,2],[18,2,19,2],[20,2,21,2],[22,2,23,2],[62,2,63,2],[32,2,33,2],[34,2,35,2],[24,2,25,2],[36,2,37,2],[38,2,39,2],[46,2,47,2],[30,2,31,2],[42,2,43,2],[60,2,61,2],[40,2,41,2],[44,2,45,2],[58,2,59,2],[28,2,29,2],[186,0,187,0],[48,2,49,2],[56,2,57,2],[50,2,51,2],[52,2,53,2],[54,2,55,2],[70,2,71,2],[38,0,39,0],[66,2,67,2],[68,2,69,2],[160,2,161,2],[162,2,163,2],[164,2,165,2],[110,2,111,2],[112,2,113,2],[114,2,115,2],[188,0,189,0],[72,2,73,2],[74,2,75,2],[76,2,77,2],[78,2,79,2],[80,2,81,2],[100,2,101,2],[102,2,103,2],[104,2,105,2],[82,2,83,2],[126,0,127,0],[84,2,85,2],[86,2,87,2],[88,2,89,2],[90,2,91,2],[92,2,93,2],[94,2,95,2],[96,2,97,2],[98,2,99,2],[154,2,155,2],[142,2,143,2],[144,2,145,2],[146,2,147,2],[106,2,107,2],[190,0,191,0],[192,0,193,0],[116,0,117,0],[42,0,43,0],[60,0,61,0],[40,0,41,0],[56,0,57,0],[52,0,53,0],[54,0,55,0],[158,0,159,0],[140,0,141,0],[102,0,103,0],[100,0,101,0],[92,0,93,0],[80,0,81,0],[104,0,105,0],[106,0,107,0],[72,0,73,0],[74,0,75,0],[46,0,47,0],[70,0,71,0],[62,0,63,0],[66,0,67,0],[184,0,185,0],[216,0,217,0],[82,0,83,0],[98,0,99,0],[86,0,87,0],[142,0,143,0],[114,0,115,0],[208,0,209,0],[90,0,91,0],[204,0,205,0],[88,0,89,0],[210,0,211,0],[130,0,131,0],[206,0,207,0],[212,0,213,0],[128,0,129,0],[84,0,85,0],[96,0,97,0],[94,0,95,0],[214,0,215,0],[202,0,203,0],[154,0,155,0],[156,0,157,0],[122,0,123,0],[198,0,199,0],[200,0,201,0],[144,0,145,0],[146,0,147,0],[148,0,149,0],[150,0,151,0],[118,0,119,0],[120,0,121,0],[110,0,111,0],[112,0,113,0],[170,0,171,0],[174,0,175,0],[172,0,173,0],[176,0,177,0],[132,0,133,0],[124,0,125,0],[162,0,163,0],[166,0,167,0],[160,0,161,0],[136,0,137,0],[178,0,179,0],[168,0,169,0],[152,0,153,0],[164,0,165,0],[180,0,181,0],[0,0,0,1],[182,0,183,0],[22,0,23,0],[68,0,69,0],[34,0,35,0],[78,0,79,0],[76,0,77,0],[30,0,31,0],[44,0,45,0],[58,0,59,0],[36,0,37,0],[14,0,15,0],[28,0,29,0],[26,0,27,0],[48,0,49,0],[20,0,21,0],[18,0,19,0],[50,0,51,0],[134,0,135,0],[64,0,65,0],[16,0,17,0],[24,0,25,0],[12,0,13,0],[32,0,33,0],[116,2,117,2],[118,2,119,2],[120,2,121,2],[122,2,123,2],[124,2,125,2],[126,2,127,2],[128,2,129,2],[130,2,131,2],[140,2,141,2],[148,2,149,2],[150,2,151,2],[152,2,153,2],[156,2,157,2],[158,2,159,2],[134,2,135,2],[136,2,137,2],[132,2,133,2],[204,2,205,2],[206,2,207,2],[208,2,209,2],[210,2,211,2],[212,2,213,2],[214,2,215,2],[216,2,217,2],[166,2,167,2],[168,2,169,2],[170,2,171,2],[172,2,173,2],[174,2,175,2],[176,2,177,2],[198,2,199,2],[200,2,201,2],[202,2,203,2],[182,2,183,2],[184,2,185,2],[186,2,187,2],[188,2,189,2],[190,2,191,2],[192,2,193,2],[180,2,181,2],[178,2,179,2]]}
["FORM LAST UPDATED 09/05/2024"]
[]
[]
[]
[]
[]
[]
[]
[null,null,null,null,null,null,null,null,null,null,null,"TEST IF THIS CAN JUST BE DELETED?"]
["All buttons are the same","CTRL + D at any time to return to discipline selection",null,null,null,"Sorted list of prime disciplines (do not delete)","Used for disipline selection buttons  and merge function",null,null,"Used for merge funtion to work with 2020 and older manday sheets"]
[null,null,null,null,null,"These red columnns get hidden in production",null,null,null,"These red columnns get hidden in production"]
["Selected","        Discipline Selection","Navigation\nCTRL + D to return to \nDiscipline Selection",null,"\"Prime\" Consultant Disciplines Selected Listing (Must have Prime Consultant per discipline listed below prior to selecting any Subconsultant versions.)",null,"Is Prime? (TRUE/ FALSE)","If discipline name changes, place old name here. Merge functionality supports only ONE displine name change, so use sparingly","List of worksheet names to effect seperated by a comma and a space. If deleting a sheet leave NULL in its place to maintain backwards compatibility of merge. If adding a sheet, add only to end","Old PEF Lbound","Old PEF Ubound","OLD List of worksheet names to effect seperated by a comma and a space. If a sheet gets added in col I add a corresponding NULL entry in this list to maintain backwards compatibility of merge"]
[true,"PM-Project Mgmt",null,null,"PM-Project Mgmt","PM-Project Mgmt",true,"PDEA-Other","PM, PM-Exp",381,393,"PDEA-Other, PDEA-OtherExpenses "]
[]
[false,"PM-Other",null,null,null,null,true,"PDEA-Planning-Roadway","PM-Other, PM-Other-Exp",243,255,"PDEA-Planning-ROADWAY, PDEA-Planning-ROADWAYExpenses"]
[null,{"$f":"'OVERALL SUMMARY'!B23","v":""}]
[false,"EN-Natural Env",null,null,null,null,true,"PDEA-NES","EN-Natural, EN-Natural-Exp",288,300,"PDEA-NES, PDEA-NESExpenses"]
[]
[false,"EN-Community Studies",null,null,null,null,true,"PDEA-HES-Community Studies","EN-Comm, EN-Comm-Exp",360,380,"PDEA-HES-CommunityStudies, PDEA-HES-CommunityStudiesExpens"]
[]
[false,"EN-Public Involvement",null,null,null,null,true,"PDEA-HES-Public Involvement","EN-PI, EN-PI-Exp",339,359,"PDEA-HES-PublicInvolvement, PDEA-HES-PublicInvolvementExpen"]
[]
[false,"EN-Noise",null,null,null,null,true,"PDEA-HES-Noise","EN-Noise, EN-Noise-Exp",320,338,"PDEA-HES-Noise, PDEA-HES-NoiseExpenses"]
[]
[false,"EN-Air Quality",null,null,null,null,true,"PDEA-HES-Air Quality","EN-Air, EN-Air-Exp",301,319,"PDEA-HES-AIRQUALITY, PDEA-HES-AIRQUALITYExpense"]
[]
[false,"EP-Env Policy",null,null,null,null,true,"PDEA-Planning","EnvPolicy, EnvPolicy-Exp",224,242,"PDEA-PlanningMandays, PDEA-PlanningExpenses"]
[]
[false,"GT-Geotechnical",null,null,null,null,true,"Geotechnical ","Geotech, GeotechFieldCosts",108,121,"NULL, NULL"]
[]
[false,"HY-Hydraulics",null,null,null,null,true,"Hydraulics","Hydraulics",57,69,"NULL"]
[]
[false,"IM-Public Transp",null,null,null,null,true,"Public Transportation","IM-PublicTransp, IM-PublicTransp-Exp",485,506,"PUBLIC TRANS--PRIME MANDAYS, PUBLIC TRANS--PRIME DIRECTS"]
[]
[false,"IM-Bike Ped",null,null,null,null,true,"Bicycle and Pedestrian","IM-BikePed, IM-BikePed-Exp",529,550,"BIKE AND PED--PRIME MANDAYS, BIKE AND PED--PRIME DIRECTS"]
[]
[false,"LS-Location Surveys",null,null,null,null,true,"Location Surveys","LocationSurveys",95,107,"LOCATIONSURVEYS"]
[]
[false,"LS-SUE",null,null,null,null,true,"SUE","SUE-Cover, SUE-Manhours, SUE-Estimate",422,440,"SUE_ESTIMATE CoverSheet, SUE_MANHOURS, SUE_SUEESTIMATE"]
[]
[false,"PD-Final Pavement Marking & Markers",null,null,null,null,true,"Final Pavement Marking & Markers","PavementMarking",45,56,"PAVEMENT MARKING AND MARKERS"]
[]
[false,"RD-Roadway",null,null,null,null,true,"Roadway","RD-Data, RD-Workdays, RD-Supp, RD-Corr_Mod-PROJ.WS, RD-Lighting, RD-CLASS, RD-Exp",19,29,"NULL, NULL, NULL, NULL, NULL, NULL, NULL"]
[]
[false,"RE-Erosion Control",null,null,null,null,true,"Erosion Control","ErosionControl",70,81,"EC_V.Erosion Control"]
[]
[false,"RR-Rail",null,null,null,null,true,"Rail","Rail, Rail-Exp",441,462,"RAIL--PRIME MANDAYS, RAIL--PRIME DIRECTS"]
[]
[false,"SD-Signing",null,null,null,null,true,"Signing","Signing",127,138,"SIGNING"]
[]
[false,"SG-Signal Communications",null,null,null,null,true,"Signal Communications","SignalComms",154,168,"SIGNAL COMM FIBER-RADIO"]
[]
[false,"SG-ITS",null,null,null,null,true,"ITS","ITS",169,183,"ITS"]
[]
[false,"SG-Municipal Signal Systems",null,null,null,null,true,"Municipal Signal Systems","MunicipalSignalSystem",184,210,"MUNICIPAL SIGNAL SYSTEM"]
[]
[false,"SS-Signals",null,null,null,null,true,"Signals","Signals",139,153,"SIGNALS"]
[]
[false,"ST-Structures",null,null,null,null,true,"Structures","Structures",82,94,"STRUCTURES"]
[]
[false,"TM-Work Zone Traffic Control (WZTC)",null,null,null,null,true,"Work Zone Traffic Control (WZTC)","WZTC, WZTC-Exp",30,44,"WZTCU_Salary & Total Costs, WZTCU_Non-Salary Costs"]
[]
[false,"TM-Congestion Management",null,null,null,null,true,"Congestion Management","CongMgt, CongMgt-HCSSynchroSidra, CongMgt-TransModeler, CongMgt-Exp",211,223,"CONGMGMT, CONGMGMTInputsHCS Synchro Sidra, CONGMGMTInputsTransModeler, CONGMGMTExpenses"]
[]
[false,"TP-Transportation Planning",null,null,null,null,true,"Transportation Planning","TransPlan, TransPlan-Exp",570,587,"TRANS PLANNING--PRIME MANDAYS, TRANS PLANNING--PRIME DIRECTS"]
[]
[false,"TP-Traffic Forecast",null,null,null,null,true,"Traffic Forecast","Forecast, Forecast-Exp",551,569,"TRAFFIC FORECAST--PRIME MANDAYS, TRAFFIC FORECAST--PRIME DIRECTS"]
[]
[false,"UT-Utilities Coordination",null,null,null,null,true,"Utilities Coordination","UT-Coord",394,407,"UTILITIES COORDINATION Estimate"]
[]
[false,"UT-Utilities Design",null,null,null,null,true,"Utilities Design","UT-Design",408,421,"UTILITIES DESIGN Estimate"]
[]
[false,"Ferry",null,null,null,null,true,null,"Ferry, Ferry-Exp",463,484,"FERRY--PRIME MANDAYS, FERRY--PRIME DIRECTS"]
[null,{"$f":"IF('OVERALL SUMMARY'!B81=\"\",\"Marine Construction or Vessel Design (Select On Ferry Worksheet)\",'OVERALL SUMMARY'!B81)","v":"Marine Construction or Vessel Design (Select On Ferry Worksheet)"}]
[false,"Aviation",null,null,null,null,true,null,"Aviation, Aviation-Exp",507,528,"AVIATION--PRIME MANDAYS, AVIATION--PRIME DIRECTS"]
[]
[false,"PM-Project Mgmt--SUB1",null,null,null,null,null,"PDEA-Other--SUB1","PM-Sub1, PM-Exp-Sub1",1235,1247,"PDEA-Other-SUB1, PDEA-OtherExpenses-SUB1"]
[null,{"$f":"'OVERALL SUMMARY'!B85","v":""}]
[false,"PM-Project Mgmt--SUB2",null,null,null,null,null,"PDEA-Other--SUB2","PM-Sub2, PM-Exp-Sub2",1248,1260,"PDEA-Other-SUB2, PDEA-OtherExpenses-SUB2"]
[null,{"$f":"'OVERALL SUMMARY'!B87","v":""}]
[false,"PM-Other--SUB1",null,null,null,null,null,"PDEA-Planning-Roadway--SUB1","PM-Other-Sub1, PM-Other-Exp-Sub1",1016,1028,"PDEA-Planning-ROADWAY-SUB1, PDEA-Planning-ROADWAYExpen-SUB1"]
[null,{"$f":"'OVERALL SUMMARY'!B89","v":""}]
[false,"EN-Natural Env--SUB1",null,null,null,null,null,"PDEA-NES--SUB1","EN-Natural-Sub1, EN-Natural-Exp-Sub1",1074,1086,"PDEA-NES-SUB1, PDEA-NESExpenses-SUB1"]
[]
[false,"EN-Natural Env--SUB2",null,null,null,null,null,"PDEA-NES--SUB2","EN-Natural-Sub2, EN-Natural-Exp-Sub2",1087,1099,"PDEA-NES-SUB2, PDEA-NESExpenses-SUB2"]
[]
[false,"EN-Natural Env--SUB3",null,null,null,null,null,"PDEA-NES--SUB3","EN-Natural-Sub3, EN-Natural-Exp-Sub3",1100,1112,"PDEA-NES-SUB3, PDEA-NESExpenses-SUB3"]
[]
[false,"EN-Community Studies--SUB1",null,null,null,null,null,"PDEA-HES-Community Studies--SUB1","EN-Comm-Sub1, EN-Comm-Exp-Sub1",1214,1234,"PDEA-HES-CommunityStudies-SUB1, PDEA-HES-CommunityStdiesEx-SUB1"]
[]
[false,"EN-Public Involvement--SUB1",null,null,null,null,null,"PDEA-HES-Public Involvement--SUB1","EN-PI-Sub1, EN-PI-Exp-Sub1",1151,1171,"PDEA-HES-PublicInvolvement-SUB1, PDEA-HES-PublcInvolvmntExp-SUB1"]
[]
[false,"EN-Public Involvement--SUB2",null,null,null,null,null,"PDEA-HES-Public Involvement--SUB2","EN-PI-Sub2, EN-PI-Exp-Sub2",1172,1192,"PDEA-HES-PublicInvolvement-SUB2, PDEA-HES-PublcInvolvmntExp-SUB2"]
[]
[false,"EN-Public Involvement--SUB3",null,null,null,null,null,"PDEA-HES-Public Involvement--SUB3","EN-PI-Sub3, EN-PI-Exp-Sub3",1193,1213,"PDEA-HES-PublicInvolvement-SUB3, PDEA-HES-PublcInvolvmntExp-SUB3"]
[]
[false,"EN-Noise--SUB1",null,null,null,null,null,"PDEA-HES-Noise--SUB1","EN-Noise-Sub1, EN-Noise-Exp_Sub1",1132,1150,"PDEA-HES-Noise-SUB1, PDEA-HES-NoiseExpenses-SUB1"]
[]
[false,"EN-Air Quality--SUB1",null,null,null,null,null,"PDEA-HES-Air Quality--SUB1","EN-Air-Sub1, EN-Air-Exp-Sub1",1113,1131,"PDEA-HES-AIRQUALITY-SUB1, PDEA-HES-AIRQUALITYExpense-SUB1"]
[]
[false,"EP-Env Policy--SUB1",null,null,null,null,null,"PDEA-Planning--SUB1","EnvPolicy-Sub1, EnvPolicy-Exp-Sub1",959,977,"PDEA-PlanningMandays-SUB1, PDEA-PlanningExpenses-SUB1"]
[]
[false,"EP-Env Policy--SUB2",null,null,null,null,null,"PDEA-Planning--SUB2","EnvPolicy-Sub2, EnvPolicy-Exp-Sub2",978,996,"PDEA-PlanningMandays-SUB2, PDEA-PlanningExpenses-SUB2"]
[]
[false,"EP-Env Policy--SUB3",null,null,null,null,null,"PDEA-Planning--SUB3","EnvPolicy-Sub3, EnvPolicy-Exp-Sub3",997,1015,"PDEA-PlanningMandays-SUB3, PDEA-PlanningExpenses-SUB3"]
[]
[false,"GT-Geotechnical--SUB1",null,null,null,null,null,"Geotechnical--SUB1","Geotech-Sub1, GeotechFieldCosts-Sub1",676,689,"GeotechSummaryAndLabor-SUB1, GeotechFieldCosts-SUB1"]
[]
[false,"HY-Hydraulics--SUB1",null,null,null,null,null,null,"Hydraulics-Sub1",null,null,"NULL"]
[]
[false,"IM-Public Transp--SUB1",null,null,null,null,null,"Public Transportation--SUB1","IM-PublicTransp-Sub1, IM-PublicTransp-Exp-Sub1",1698,1719,"PUBLIC TRANS--MANDAYS-SUB1, PUBLIC TRANS--DIRECTS-SUB1"]
[]
[false,"IM-Public Transp--SUB2",null,null,null,null,null,"Public Transportation--SUB2","IM-PublicTransp-Sub2, IM-PublicTransp-Exp-Sub2",1720,1741,"PUBLIC TRANS--MANDAYS-SUB2, PUBLIC TRANS--DIRECTS-SUB2"]
[]
[false,"IM-Public Transp--SUB3",null,null,null,null,null,"Public Transportation--SUB3","IM-PublicTransp-Sub3, IM-PublicTransp-Exp-Sub3",1742,1763,"PUBLIC TRANS--MANDAYS-SUB3, PUBLIC TRANS--DIRECTS-SUB3"]
[]
[false,"IM-Bike Ped--SUB1",null,null,null,null,null,"Bicycle and Pedestrian--SUB1","IM-BikePed-Sub1, IM-BikePed-Exp-Sub1",1852,1873,"BIKE AND PED--MANDAYS-SUB1, BIKE AND PED--DIRECTS-SUB1"]
[]
[false,"IM-Bike Ped--SUB2",null,null,null,null,null,"Bicycle and Pedestrian--SUB2","IM-BikePed-Sub2, IM-BikePed-Exp-Sub2",1874,1895,"BIKE AND PED--MANDAYS-SUB2, BIKE AND PED--DIRECTS-SUB2"]
[]
[false,"IM-Bike Ped--SUB3",null,null,null,null,null,"Bicycle and Pedestrian--SUB3","IM-BikePed-Sub3, IM-BikePed-Exp-Sub3",1896,1917,"BIKE AND PED--MANDAYS-SUB3, BIKE AND PED--DIRECTS-SUB3"]
[]
[false,"IM-Bike Ped--SUB4",null,null,null,null,null,"Bicycle and Pedestrian--SUB4","IM-BikePed-Sub4, IM-BikePed-Exp-Sub4",1918,1939,"BIKE AND PED--MANDAYS-SUB4, BIKE AND PED--DIRECTS-SUB4"]
[]
[false,"LS-Location Surveys--SUB1",null,null,null,null,null,"Location Surveys--SUB1","LS-Sub1",650,662,"LOCATIONSURVEYS-SUB1"]
[]
[false,"LS-Location Surveys--SUB2",null,null,null,null,null,"Location Surveys--SUB2","LS-Sub2",663,675,"LOCATIONSURVEYS-SUB2"]
[]
[false,"LS-SUE--SUB1",null,null,null,null,null,"SUE--SUB1","SUE-Cover-Sub1, SUE-Manhours-Sub1, SUE-Estimate-Sub1",1330,1348,"SUE_ESTIMATE CoverSheet-SUB1, SUE_MANHOURS-SUB1, SUE_SUEESTIMATE-SUB1"]
[]
[false,"LS-SUE--SUB2",null,null,null,null,null,"SUE--SUB2","SUE-Cover-Sub2, SUE-Manhours-Sub2, SUE-Estimate-Sub2",1349,1367,"SUE_ESTIMATE CoverSheet-SUB2, SUE_MANHOURS-SUB2, SUE_SUEESTIMATE-SUB2"]
[]
[false,"PD-Final Pavement Marking & Markers--SUB1",null,null,null,null,null,"Final Pavement Marking & Markers--SUB1","Pavement-Sub1",625,636,"PAVEMENT MARKING & MARKERS-SUB1"]
[]
[false,"RD-Roadway--SUB1",null,null,null,null,null,"Roadway--SUB1","RD-Data-Sub1, RD-Workdays-Sub1, RD-Supp-Sub1, RD-Corr_Mod-PROJ.WS-Sub1, RD-Lighting-Sub1, RD-CLASS-Sub1, RD-Exp-Sub1",588,598,"NULL, NULL, NULL, NULL, NULL, NULL"]
[]
[false,"RD-Roadway--SUB2",null,null,null,null,null,"Roadway--SUB2","RD-Data-Sub2, RD-Workdays-Sub2, RD-Supp-Sub2, RD-Corr_Mod-PROJ.WS-Sub2, RD-Lighting-Sub2, RD-CLASS-Sub2, RD-Exp-Sub2",599,609,"NULL, NULL, NULL, NULL, NULL, NULL"]
[]
[false,"RE-Erosion Control--SUB1",null,null,null,null,null,null,"ErosionControl-Sub1",null,null,"NULL"]
[]
[false,"RR-Rail--SUB1",null,null,null,null,null,"Rail--SUB1","Rail-Sub1, Rail-Exp-Sub1",1368,1389,"RAIL--MANDAYS-SUB1, RAIL--DIRECTS-SUB1"]
[]
[false,"RR-Rail--SUB2",null,null,null,null,null,"Rail--SUB2","Rail-Sub2, Rail-Exp-Sub2",1390,1411,"RAIL--MANDAYS-SUB2, RAIL--DIRECTS-SUB2"]
[]
[false,"RR-Rail--SUB3",null,null,null,null,null,"Rail--SUB3","Rail-Sub3, Rail-Exp-Sub3",1412,1433,"RAIL--MANDAYS-SUB3, RAIL--DIRECTS-SUB3"]
[]
[false,"RR-Rail--SUB4",null,null,null,null,null,"Rail--SUB4","Rail-Sub4, Rail-Exp-Sub4",1434,1455,"RAIL--MANDAYS-SUB4, RAIL--DIRECTS-SUB4"]
[]
[false,"RR-Rail--SUB5",null,null,null,null,null,"Rail--SUB5","Rail-Sub5, Rail-Exp-Sub5",1456,1477,"RAIL--MANDAYS-SUB5, RAIL--DIRECTS-SUB5"]
[]
[false,"RR-Rail--SUB6",null,null,null,null,null,"Rail--SUB6","Rail-Sub6, Rail-Exp-Sub6",1478,1499,"RAIL--MANDAYS-SUB6, RAIL--DIRECTS-SUB6"]
[]
[false,"RR-Rail--SUB7",null,null,null,null,null,"Rail--SUB7","Rail-Sub7, Rail-Exp-Sub7",1500,1521,"RAIL--MANDAYS-SUB7, RAIL--DIRECTS-SUB7"]
[]
[false,"RR-Rail--SUB8",null,null,null,null,null,"Rail--SUB8","Rail-Sub8, Rail-Exp-Sub8",1522,1543,"RAIL--MANDAYS-SUB8, RAIL--DIRECTS-SUB8"]
[]
[false,"RR-Rail--SUB9",null,null,null,null,null,"Rail--SUB9","Rail-Sub9, Rail-Exp-Sub9",1544,1565,"RAIL--MANDAYS-SUB9, RAIL--DIRECTS-SUB9"]
[]
[false,"RR-Rail--SUB10",null,null,null,null,null,"Rail--SUB10","Rail-Sub10, Rail-Exp-Sub10",1566,1587,"RAIL--MANDAYS-SUB10, RAIL--DIRECTS-SUB10"]
[]
[false,"SD-Signing--SUB1",null,null,null,null,null,"Signing--SUB1","Signing-Sub1",695,706,"SIGNING-SUB1"]
[]
[false,"SG-ITS--SUB1",null,null,null,null,null,"ITS--SUB1","ITS-Sub1",707,721,"ITS-SUB1"]
[]
[false,"SG-ITS--SUB2",null,null,null,null,null,"ITS--SUB2","ITS-Sub2",722,736,"ITS-SUB2"]
[]
[false,"SG-ITS--SUB3",null,null,null,null,null,"ITS--SUB3","ITS-Sub3",737,751,"ITS-SUB3"]
[]
[false,"SG-ITS--SUB4",null,null,null,null,null,"ITS--SUB4","ITS-Sub4",752,766,"ITS-SUB4"]
[]
[false,"SG-Municipal Signal Systems--SUB1",null,null,null,null,null,"Municipal Signal Systems--SUB1","MunicipalSignalSystem-Sub1",797,823,"MUNICIPAL SIGNAL SYSTEM-SUB1"]
[]
[false,"SG-Municipal Signal Systems--SUB2",null,null,null,null,null,"Municipal Signal Systems--SUB2","MunicipalSignalSystem-Sub2",824,850,"MUNICIPAL SIGNAL SYSTEM-SUB2"]
[]
[false,"SG-Municipal Signal Systems--SUB3",null,null,null,null,null,"Municipal Signal Systems--SUB3","MunicipalSignalSystem-Sub3",851,877,"MUNICIPAL SIGNAL SYSTEM-SUB3"]
[]
[false,"SG-Municipal Signal Systems--SUB4",null,null,null,null,null,"Municipal Signal Systems--SUB4","MunicipalSignalSystem-Sub4",878,904,"MUNICIPAL SIGNAL SYSTEM-SUB4"]
[]
[false,"ST-Structures--SUB1",null,null,null,null,null,"Structures--SUB1","ST-Sub1",637,649,"STRUCTURES-SUB1"]
[]
[false,"TM-Work Zone Traffic Control (WZTC)--SUB1",null,null,null,null,null,"Work Zone Traffic Control (WZTC)--SUB1","WZTC-Sub1, WZTC-Exp-Sub1",610,624,"WZTCU_Salary & Total Costs-SUB1, WZTCU_Non-Salary Costs-SUB1"]
[]
[false,"TP-Transportation Planning--SUB1",null,null,null,null,null,"Transportation Planning--SUB1","TransPlan-Sub1, TransPlan-Exp-Sub1",1997,2014,"TRANS PLANNING--MANDAYS-SUB1, TRANS PLANNING--DIRECTS-SUB1"]
[]
[false,"TP-Transportation Planning--SUB2",null,null,null,null,null,"Transportation Planning--SUB2","TransPlan-Sub2, TransPlan-Exp-Sub2",2015,2032,"TRANS PLANNING--MANDAYS-SUB2, TRANS PLANNING--DIRECTS-SUB2"]
[]
[false,"TP-Transportation Planning--SUB3",null,null,null,null,null,"Transportation Planning--SUB3","TransPlan-Sub3, TransPlan-Exp-Sub3",2033,2050,"TRANS PLANNING--MANDAYS-SUB3, TRANS PLANNING--DIRECTS-SUB3"]
[]
[false,"TP-Traffic Forecast--SUB1",null,null,null,null,null,"Traffic Forecast--SUB1","Forecast-Sub1, Forecast-Exp-Sub1",1940,1958,"TRAFFIC FORECAST--MANDAYS-SUB1, TRAFFIC FORECAST--DIRECTS-SUB1"]
[]
[false,"TP-Traffic Forecast--SUB2",null,null,null,null,null,"Traffic Forecast--SUB2","Forecast-Sub2, Forecast-Exp-Sub2",1959,1977,"TRAFFIC FORECAST--MANDAYS-SUB2, TRAFFIC FORECAST--DIRECTS-SUB2"]
[]
[false,"TP-Traffic Forecast--SUB3",null,null,null,null,null,"Traffic Forecast--SUB3","Forecast-Sub3, Forecast-Exp-Sub3",1978,1996,"TRAFFIC FORECAST--MANDAYS-SUB3, TRAFFIC FORECAST--DIRECTS-SUB3"]
[]
[false,"UT-Utilities Coordination--SUB1",null,null,null,null,null,null,"UT-Coord-Sub1",null,null,"NULL"]
[]
[false,"UT-Utilities Design--SUB1",null,null,null,null,null,null,"UT-Design-Sub1",null,null,"NULL"]
[]
[false,"Ferry--SUB1",null,null,null,null,null,null,"Ferry-Sub1, Ferry-Exp-Sub1",1588,1609,"FERRY--MANDAYS-SUB1, FERRY--DIRECTS-SUB1"]
[null,{"$f":"IF('OVERALL SUMMARY'!B207=\"\",\"Marine Construction or Vessel Design (Select On Ferry Worksheet)\",'OVERALL SUMMARY'!B207)","v":"Marine Construction or Vessel Design (Select On Ferry Worksheet)"}]
[false,"Ferry--SUB2",null,null,null,null,null,null,"Ferry-Sub2, Ferry-Exp-Sub2",1610,1631,"FERRY--MANDAYS-SUB2, FERRY--DIRECTS-SUB2"]
[null,{"$f":"IF('OVERALL SUMMARY'!B209=\"\",\"Marine Construction or Vessel Design (Select On Ferry Worksheet)\",'OVERALL SUMMARY'!B209)","v":"Marine Construction or Vessel Design (Select On Ferry Worksheet)"}]
[false,"Ferry--SUB3",null,null,null,null,null,null,"Ferry-Sub3, Ferry-Exp-Sub3",1632,1653,"FERRY--MANDAYS-SUB3, FERRY--DIRECTS-SUB3"]
[null,{"$f":"IF('OVERALL SUMMARY'!B211=\"\",\"Marine Construction or Vessel Design (Select On Ferry Worksheet)\",'OVERALL SUMMARY'!B211)","v":"Marine Construction or Vessel Design (Select On Ferry Worksheet)"}]
[false,"Ferry--SUB4",null,null,null,null,null,null,"Ferry-Sub4, Ferry-Exp-Sub4",1654,1675,"FERRY--MANDAYS-SUB4, FERRY--DIRECTS-SUB4"]
[null,{"$f":"IF('OVERALL SUMMARY'!B213=\"\",\"Marine Construction or Vessel Design (Select On Ferry Worksheet)\",'OVERALL SUMMARY'!B213)","v":"Marine Construction or Vessel Design (Select On Ferry Worksheet)"}]
[false,"Ferry--SUB5",null,null,null,null,null,null,"Ferry-Sub5, Ferry-Exp-Sub5",1676,1697,"FERRY--MANDAYS-SUB5, FERRY--DIRECTS-SUB5"]
[null,{"$f":"IF('OVERALL SUMMARY'!B215=\"\",\"Marine Construction or Vessel Design (Select On Ferry Worksheet)\",'OVERALL SUMMARY'!B215)","v":"Marine Construction or Vessel Design (Select On Ferry Worksheet)"}]
[false,"Aviation--SUB1",null,null,null,null,null,null,"Aviation-Sub1, Aviation-Exp-Sub1",1764,1785,"AVIATION--MANDAYS-SUB1, AVIATION--DIRECTS-SUB1"]
[]
[false,"Aviation--SUB2",null,null,null,null,null,null,"Aviation-Sub2, Aviation-Exp-Sub2",1786,1807,"AVIATION--MANDAYS-SUB2, AVIATION--DIRECTS-SUB2"]
[]
[false,"Aviation--SUB3",null,null,null,null,null,null,"Aviation-Sub3, Aviation-Exp-Sub3",1808,1829,"AVIATION--MANDAYS-SUB3, AVIATION--DIRECTS-SUB3"]
[]
[false,"Aviation--SUB4",null,null,null,null,null,null,"Aviation-Sub4, Aviation-Exp-Sub4",1830,1851,"AVIATION--MANDAYS-SUB4, AVIATION--DIRECTS-SUB4"]
[]
[false,"Right of Way",null,null,null,null,true,null,"Right of Way",null,null,"Right of Way"]
[null,"* Note:  No data required on the PEF CLASSIFICATION SHEET"]

{"sheet":"OVERALL SUMMARY","index":5,"n_rows":248,"n_cols":18,"rows_kept":248,"cut":false,"hidden":false,"merged":[[244,1,244,8],[245,2,245,8],[247,2,247,8],[246,2,246,8],[248,2,248,8],[245,1,246,1],[247,1,248,1],[231,5,232,6],[241,2,241,3],[231,4,232,4],[235,2,235,5],[241,7,241,8],[241,5,241,6],[16,15,17,17],[237,1,239,1],[1,1,1,8],[226,1,226,8],[17,6,17,8],[17,1,17,2],[225,1,225,2],[17,3,17,5],[5,2,5,3],[3,2,3,3],[7,2,7,3],[4,2,4,3],[9,2,12,8],[234,2,234,5],[237,2,239,8],[231,2,232,3],[13,2,16,8],[229,2,229,6],[2,2,2,3],[6,2,6,3],[228,2,228,6],[8,2,8,3],[7,4,8,6],[7,7,8,8],[2,4,6,6],[6,7,6,8],[2,7,5,8]]}
[null,null,null,null,null,null,null,"Version:","2025.01.09.RJS"]
[null,"OVERALL SUMMARY"]
[null,"TIP NUMBER:",null,null,"When initial estimate is complete, lock initial estimates",null,null,null,null,null,null,null,null,"Dropdowns for contract and payment"]
[null,"WBS NUMBER(s):\nFirm team: fill out WBS Number(s) section on \"Acct Initiation Request\" worksheet tab.  \nDOT team: the Project Manager fills out the entire \"Acct Initiation Request\" worksheet tab.",{"$f":"CONCATENATE((IF('Acct Initiation Request'!A29=\"\",\"\",CONCATENATE('Acct Initiation Request'!A29,\" : \"))),(IF('Acct Initiation Request'!A30=\"\",\"\",CONCATENATE('Acct Initiation Request'!A30,\" : \"))),(IF('Acct Initiation Request'!A31=\"\",\"\",CONCATENATE('Acct Initiation Request'!A31,\" : \"))),(IF('Acct Initiation Request'!A32=\"\",\"\",CONCATENATE('Acct Initiation Request'!A32,\" : \"))),(IF('Acct Initiation Request'!A33=\"\",\"\",CONCATENATE('Acct Initiation Request'!A33,\" : \"))),(IF('Acct Initiation Request'!A34=\"\",\"\",CONCATENATE('Acct Initiation Request'!A34,\" : \"))),(IF('Acct Initiation Request'!A35=\"\",\"\",CONCATENATE('Acct Initiation Request'!A35,\" : \"))),(IF('Acct Initiation Request'!A36=\"\",\"\",CONCATENATE('Acct Initiation Request'!A36,\" : \"))),(IF('Acct Initiation Request'!A37=\"\",\"\",CONCATENATE('Acct Initiation Request'!A37,\" : \"))),(IF('Acct Initiation Request'!A38=\"\",\"\",CONCATENATE('Acct Initiation Request'!A38,\" : \"))),(IF('Acct Initiation Request'!A39=\"\",\"\",CONCATENATE('Acct Initiation Request'!A39,\" : \"))),(IF('Acct Initiation Request'!A40=\"\",\"\",CONCATENATE('Acct Initiation Request'!A40,\" : \"))),(IF('Acct Initiation Request'!A41=\"\",\"\",CONCATENATE('Acct Initiation Request'!A41,\" : \"))),(IF('Acct Initiation Request'!A42=\"\",\"\",CONCATENATE('Acct Initiation Request'!A42,\" : \"))),(IF('Acct Initiation Request'!A43=\"\",\"\",CONCATENATE('Acct Initiation Request'!A43,\" : \"))),(IF('Acct Initiation Request'!A44=\"\",\"\",CONCATENATE('Acct Initiation Request'!A44,\" : \"))),(IF('Acct Initiation Request'!A45=\"\",\"\",CONCATENATE('Acct Initiation Request'!A45,\" : \"))),(IF('Acct Initiation Request'!A46=\"\",\"\",CONCATENATE('Acct Initiation Request'!A46,\" : \"))),(IF('Acct Initiation Request'!A47=\"\",\"\",CONCATENATE('Acct Initiation Request'!A47,\" : \"))),(IF('Acct Initiation Request'!A48=\"\",\"\",CONCATENATE('Acct Initiation Request'!A48,\" : \"))),(IF('Acct Initiation Request'!A49=\"\",\"\",CONCATENATE('Acct Initiation Request'!A49,\" : \"))),(IF('Acct Initiation Request'!A50=\"\",\"\",CONCATENATE('Acct Initiation Request'!A50,\" : \"))),(IF('Acct Initiation Request'!A51=\"\",\"\",CONCATENATE('Acct Initiation Request'!A51,\" : \"))),(IF('Acct Initiation Request'!A52=\"\",\"\",CONCATENATE('Acct Initiation Request'!A52,\" : \"))),(IF('Acct Initiation Request'!A53=\"\",\"\",CONCATENATE('Acct Initiation Request'!A53,\" : \"))),(IF('Acct Initiation Request'!A54=\"\",\"\",CONCATENATE('Acct Initiation Request'!A54,\" : \"))),(IF('Acct Initiation Request'!A55=\"\",\"\",CONCATENATE('Acct Initiation Request'!A55,\" : \"))),(IF('Acct Initiation Request'!A56=\"\",\"\",CONCATENATE('Acct Initiation Request'!A56,\" : \"))),(IF('Acct Initiation Request'!A57=\"\",\"\",CONCATENATE('Acct Initiation Request'!A57,\" : \"))),(IF('Acct Initiation Request'!A58=\"\",\"\",CONCATENATE('Acct Initiation Request'!A58,\" : \"))),(IF('Acct Initiation Request'!A59=\"\",\"\",CONCATENATE('Acct Initiation Request'!A59,\" : \"))),(IF('Acct Initiation Request'!A60=\"\",\"\",CONCATENATE('Acct Initiation Request'!A60,\" : \"))),(IF('Acct Initiation Request'!A61=\"\",\"\",CONCATENATE('Acct Initiation Request'!A61,\" : \"))),(IF('Acct Initiation Request'!A62=\"\",\"\",CONCATENATE('Acct Initiation Request'!A62,\" : \"))),(IF('Acct Initiation Request'!A63=\"\",\"\",CONCATENATE('Acct Initiation Request'!A63,\" : \"))),(IF('Acct Initiation Request'!A64=\"\",\"\",CONCATENATE('Acct Initiation Request'!A64,\" : \"))),(IF('Acct Initiation Request'!A65=\"\",\"\",CONCATENATE('Acct Initiation Request'!A65,\" : \"))),(IF('Acct Initiation Request'!A66=\"\",\"\",CONCATENATE('Acct Initiation Request'!A66,\" : \"))),(IF('Acct Initiation Request'!A67=\"\",\"\",CONCATENATE('Acct Initiation Request'!A67,\" : \"))),(IF('Acct Initiation Request'!A68=\"\",\"\",CONCATENATE('Acct Initiation Request'!A68,\" : \"))),(IF('Acct Initiation Request'!A69=\"\",\"\",CONCATENATE('Acct Initiation Request'!A69,\" : \"))),(IF('Acct Initiation Request'!A70=\"\",\"\",CONCATENATE('Acct Initiation Request'!A70,\" : \"))),(IF('Acct Initiation Request'!A71=\"\",\"\",CONCATENATE('Acct Initiation Request'!A71,\" : \"))),(IF('Acct Initiation Request'!A72=\"\",\"\",CONCATENATE('Acct Initiation Request'!A72,\" : \"))),(IF('Acct Initiation Request'!A73=\"\",\"\",CONCATENATE('Acct Initiation Request'!A73,\" : \"))),(IF('Acct Initiation Request'!A74=\"\",\"\",CONCATENATE('Acct Initiation Request'!A74,\" : \"))),\"\")","v":""}]
[null,"COUNTY: ",null,null,null,null,null,null,null,null,null,null,null,"COST PLUS","Purchase Order under Limited Services Contract"]
[null,"TASK ORDER NUMBER:  (if applicable)",null,null,null,null,null,null,null,null,null,null,null,"LUMP SUM","Limited Services Contract"]
[null,"FA NUMBER:  (if applicable)",null,null,null,null,null,null,null,null,null,null,1,null,"Stand Alone Purchase Order"]
[null,"ESTIMATE SUBMITTAL NUMBER:  \n(Version Control-if needed) (Ex.  InitialV2 (initial estimate version 2))",null,null,"       WBS NUMBER(s):\n           Firm: fill out WBS Number(s) section on \"Acct Initiation Request\" \n           DOT: the Project Manager fills out the entire \"Acct Initiation Request\"",null,null,{"$f":"WBS.NUMBER","v":""},null,null,null,null,null,null,"Supplemental Agreement"]
[null,"OTHER PROJECT IDENTIFIER INFORMATION: (if needed)"]
[null,"DESCRIPTION: "]
[null,"(List the project parameters; "]
[null,"where the project starts and stops)"]
[]
[null,"DISCIPLINE USED:  ","PM-Project Mgmt"]
[null,"(List each discipline that will"]
[null,"be involved in this project)"]
[null,null,null,null,null,null,null,null,null,null,null,null,null,null,null,"Orange cells are special, all others are equal to standard"]
[null,"DISCIPLINE",null,"INITIAL",null,null,"FINAL",null,null,null,null,null,null,null,{"$f":"\"Number of prime disiplines below: \" & ROUND( SUMPRODUCT(1/COUNTIF(O20:O224,O20:O224)),0)","v":"Number of prime disiplines below: 33"}]
[null,"ITEM",null,"WD","COST","COST/WORKDAY","WD","COST","COST/WORKDAY",null,null,null,null,"Selected?","PrimeName (Removes --SUBx)","3pef","4pef","Standard"]
["PDEA-Other","PM-Project Mgmt",null,{"$f":"IF(N20=\"FALSE\",0,PDEA_OTHER_MANDAYS)","v":0},{"$f":"IF(N20=\"FALSE\",0,ROUND(PDEA_OTHER_SALARY_TOTAL,2))","v":0},{"$f":"IF(N20=\"FALSE\",0,IF(D20=0,0,E20/D20))","v":0},{"$f":"IF($H$7=\"\",\"\",IF(N20=\"FALSE\",0,PDEA_OTHER_MANDAYS))","v":""},{"$f":"IF($H$7=\"\",\"\",IF(N20=\"FALSE\",0,ROUND(PDEA_OTHER_SALARY_TOTAL,2)))","v":""},{"$f":"IF(G20=\"\",\"\",IF(N20=\"FALSE\",0,IF(G20=0,0,H20/G20)))","v":""},null,null,null,null,"TRUE",{"$f":"IFERROR(LEFT(B20,FIND(\"--SUB\",B20)-1),B20)","v":"PM-Project Mgmt"},{"$f":"R20","v":0},{"$f":"R20","v":0},{"$f":"IF($H$7=\"\",E20,H20)","v":0}]
["PDEA-Other",null,"Direct Costs",null,{"$f":"IF(N20=\"FALSE\",0,ROUND(PDEA_OTHER_DIRECT_NONSALARY_TOTAL,2))","v":0},null,null,{"$f":"IF($H$7=\"\",\"\",IF(N20=\"FALSE\",0,ROUND(PDEA_OTHER_DIRECT_NONSALARY_TOTAL,2)))","v":""},null,null,null,null,null,null,{"$f":"O20","v":"PM-Project Mgmt"},0,0,0]
["PDEA-Planning-Roadway","PM-Other",null,{"$f":"IF(N22=\"FALSE\",0,PDEA_PLANNING_ROADWAY_MANDAYS)","v":0},{"$f":"IF(N22=\"FALSE\",0,ROUND(PDEA_PLANNING_ROADWAY_SALARY_TOTAL,2))","v":0},{"$f":"IF(N22=\"FALSE\",0,IF(D22=0,0,E22/D22))","v":0},{"$f":"IF($H$7=\"\",\"\",IF(N22=\"FALSE\",0,PDEA_PLANNING_ROADWAY_MANDAYS))","v":""},{"$f":"IF($H$7=\"\",\"\",IF(N22=\"FALSE\",0,ROUND(PDEA_PLANNING_ROADWAY_SALARY_TOTAL,2)))","v":""},{"$f":"IF(G22=\"\",\"\",IF(N22=\"FALSE\",0,IF(G22=0,0,H22/G22)))","v":""},null,null,null,null,"FALSE",{"$f":"IFERROR(LEFT(B22,FIND(\"--SUB\",B22)-1),B22)","v":"PM-Other"},0,0,0]
["PDEA-Planning-Roadway",{"$f":"IF('PEF CLASSIFICATION SHEET'!B34=\"PM-Other\",\"\",'PEF CLASSIFICATION SHEET'!B34)","v":""},"Direct Costs",null,{"$f":"IF(N22=\"FALSE\",0,ROUND(PDEA_PLANNING_ROADWAY_DIRECT_NONSALARY_TOTAL,2))","v":0},null,null,{"$f":"IF($H$7=\"\",\"\",IF(N22=\"FALSE\",0,ROUND(PDEA_PLANNING_ROADWAY_DIRECT_NONSALARY_TOTAL,2)))","v":""},null,null,null,null,null,null,{"$f":"O22","v":"PM-Other"},0,0,0]
["PDEA-NES","EN-Natural Env",null,{"$f":"IF(N24=\"FALSE\",0,PDEA_NEU_MANDAYS)","v":0},{"$f":"IF(N24=\"FALSE\",0,ROUND(PDEA_NEU_SALARY_TOTAL,2))","v":0},{"$f":"IF(N24=\"FALSE\",0,IF(D24=0,0,E24/D24))","v":0},{"$f":"IF($H$7=\"\",\"\",IF(N24=\"FALSE\",0,PDEA_NEU_MANDAYS))","v":""},{"$f":"IF($H$7=\"\",\"\",IF(N24=\"FALSE\",0,ROUND(PDEA_NEU_SALARY_TOTAL,2)))","v":""},{"$f":"IF(G24=\"\",\"\",IF(N24=\"FALSE\",0,IF(G24=0,0,H24/G24)))","v":""},null,null,null,null,"FALSE",{"$f":"IFERROR(LEFT(B24,FIND(\"--SUB\",B24)-1),B24)","v":"EN-Natural Env"},0,0,0]
["PDEA-NES",null,"Direct Costs",null,{"$f":"IF(N24=\"FALSE\",0,ROUND(PDEA_NEU_DIRECT_NONSALARY_TOTAL,2))","v":0},null,null,{"$f":"IF($H$7=\"\",\"\",IF(N24=\"FALSE\",0,ROUND(PDEA_NEU_DIRECT_NONSALARY_TOTAL,2)))","v":""},null,null,null,null,null,null,{"$f":"O24","v":"EN-Natural Env"},0,0,0]
["PDEA-HES-Community Studies","EN-Community Studies",null,{"$f":"IF(N26=\"FALSE\",0,PDEA_HEU_COMMUNITY_STUDIES_MANDAYS)","v":0},{"$f":"IF(N26=\"FALSE\",0,ROUND(PDEA_HEU_COMMUNITY_STUDIES_SALARY_TOTAL,2))","v":0},{"$f":"IF(N26=\"FALSE\",0,IF(D26=0,0,E26/D26))","v":0},{"$f":"IF($H$7=\"\",\"\",IF(N26=\"FALSE\",0,PDEA_HEU_COMMUNITY_STUDIES_MANDAYS))","v":""},{"$f":"IF($H$7=\"\",\"\",IF(N26=\"FALSE\",0,ROUND(PDEA_HEU_COMMUNITY_STUDIES_SALARY_TOTAL,2)))","v":""},{"$f":"IF(G26=\"\",\"\",IF(N26=\"FALSE\",0,IF(G26=0,0,H26/G26)))","v":""},null,null,null,null,"FALSE",{"$f":"IFERROR(LEFT(B26,FIND(\"--SUB\",B26)-1),B26)","v":"EN-Community Studies"},0,0,0]
["PDEA-HES-Community Studies",null,"Direct Costs",null,{"$f":"IF(N26=\"FALSE\",0,ROUND(PDEA_HEU_COMMUNITY_STUDIES_DIRECT_NONSALARY_TOTAL,2))","v":0},null,null,{"$f":"IF($H$7=\"\",\"\",IF(N26=\"FALSE\",0,ROUND(PDEA_HEU_COMMUNITY_STUDIES_DIRECT_NONSALARY_TOTAL,2)))","v":""},null,null,null,null,null,null,{"$f":"O26","v":"EN-Community Studies"},0,0,0]
["PDEA-HES-Public Involvement","EN-Public Involvement",null,{"$f":"IF(N28=\"FALSE\",0,PDEA_HEU_PUBLIC_INVOLVEMENT_MANDAYS)","v":0},{"$f":"IF(N28=\"FALSE\",0,ROUND(PDEA_HEU_PUBLIC_INVOLVEMENT_SALARY_TOTAL,2))","v":0},{"$f":"IF(N28=\"FALSE\",0,IF(D28=0,0,E28/D28))","v":0},{"$f":"IF($H$7=\"\",\"\",IF(N28=\"FALSE\",0,PDEA_HEU_PUBLIC_INVOLVEMENT_MANDAYS))","v":""},{"$f":"IF($H$7=\"\",\"\",IF(N28=\"FALSE\",0,ROUND(PDEA_HEU_PUBLIC_INVOLVEMENT_SALARY_TOTAL,2)))","v":""},{"$f":"IF(G28=\"\",\"\",IF(N28=\"FALSE\",0,IF(G28=0,0,H28/G28)))","v":""},null,null,null,null,"FALSE",{"$f":"IFERROR(LEFT(B28,FIND(\"--SUB\",B28)-1),B28)","v":"EN-Public Involvement"},0,0,0]
["PDEA-HES-Public Involvement",null,"Direct Costs",null,{"$f":"IF(N28=\"FALSE\",0,ROUND(PDEA_HEU_PUBLIC_INVOLVEMENT_DIRECT_NONSALARY_TOTAL,2))","v":0},null,null,{"$f":"IF($H$7=\"\",\"\",IF(N28=\"FALSE\",0,ROUND(PDEA_HEU_PUBLIC_INVOLVEMENT_DIRECT_NONSALARY_TOTAL,2)))","v":""},null,null,null,null,null,null,{"$f":"O28","v":"EN-Public Involvement"},0,0,0]
["PDEA-HES-Noise","EN-Noise",null,{"$f":"IF(N30=\"FALSE\",0,PDEA_HEU_NOISE_MANDAYS)","v":0},{"$f":"IF(N30=\"FALSE\",0,ROUND(PDEA_HEU_NOISE_SALARY_TOTAL,2))","v":0},{"$f":"IF(N30=\"FALSE\",0,IF(D30=0,0,E30/D30))","v":0},{"$f":"IF($H$7=\"\",\"\",IF(N30=\"FALSE\",0,PDEA_HEU_NOISE_MANDAYS))","v":""},{"$f":"IF($H$7=\"\",\"\",IF(N30=\"FALSE\",0,ROUND(PDEA_HEU_NOISE_SALARY_TOTAL,2)))","v":""},{"$f":"IF(G30=\"\",\"\",IF(N30=\"FALSE\",0,IF(G30=0,0,H30/G30)))","v":""},null,null,null,null,"FALSE",{"$f":"IFERROR(LEFT(B30,FIND(\"--SUB\",B30)-1),B30)","v":"EN-Noise"},0,0,0]
["PDEA-HES-Noise",null,"Direct Costs",null,{"$f":"IF(N30=\"FALSE\",0,ROUND(PDEA_HEU_NOISE_DIRECT_NONSALARY_TOTAL,2))","v":0},null,null,{"$f":"IF($H$7=\"\",\"\",IF(N30=\"FALSE\",0,ROUND(PDEA_HEU_NOISE_DIRECT_NONSALARY_TOTAL,2)))","v":""},null,null,null,null,null,null,{"$f":"O30","v":"EN-Noise"},0,0,0]
["PDEA-HES-Air Quality","EN-Air Quality",null,{"$f":"IF(N32=\"FALSE\",0,PDEA_PLANNING_AIR.QUALITY_MANDAYS)","v":0},{"$f":"IF(N32=\"FALSE\",0,ROUND(PDEA_PLANNING_AIR.QUALITY_SALARY_TOTAL,2))","v":0},{"$f":"IF(N32=\"FALSE\",0,IF(D32=0,0,E32/D32))","v":0},{"$f":"IF($H$7=\"\",\"\",IF(N32=\"FALSE\",0,PDEA_PLANNING_AIR.QUALITY_MANDAYS))","v":""},{"$f":"IF($H$7=\"\",\"\",IF(N32=\"FALSE\",0,ROUND(PDEA_PLANNING_AIR.QUALITY_SALARY_TOTAL,2)))","v":""},{"$f":"IF(G32=\"\",\"\",IF(N32=\"FALSE\",0,IF(G32=0,0,H32/G32)))","v":""},null,null,null,null,"FALSE",{"$f":"IFERROR(LEFT(B32,FIND(\"--SUB\",B32)-1),B32)","v":"EN-Air Quality"},0,0,0]
["PDEA-HES-Air Quality",null,"Direct Costs",null,{"$f":"IF(N32=\"FALSE\",0,ROUND(PDEA_PLANNING_AIR.QUALITY_DIRECT_NONSALARY_TOTAL,2))","v":0},null,null,{"$f":"IF($H$7=\"\",\"\",IF(N32=\"FALSE\",0,ROUND(PDEA_PLANNING_AIR.QUALITY_DIRECT_NONSALARY_TOTAL,2)))","v":""},null,null,null,null,null,null,{"$f":"O32","v":"EN-Air Quality"},0,0,0]
["PDEA-Planning","EP-Env Policy",null,{"$f":"IF(N34=\"FALSE\",0,PDEA_PLANNING_MANDAYS)","v":0},{"$f":"IF(N34=\"FALSE\",0,ROUND(PDEA_PLANNING_SALARY_TOTAL,2))","v":0},{"$f":"IF(N34=\"FALSE\",0,IF(D34=0,0,E34/D34))","v":0},{"$f":"IF($H$7=\"\",\"\",IF(N34=\"FALSE\",0,PDEA_PLANNING_MANDAYS))","v":""},{"$f":"IF($H$7=\"\",\"\",IF(N34=\"FALSE\",0,ROUND(PDEA_PLANNING_SALARY_TOTAL,2)))","v":""},{"$f":"IF(G34=\"\",\"\",IF(N34=\"FALSE\",0,IF(G34=0,0,H34/G34)))","v":""},null,null,null,null,"FALSE",{"$f":"IFERROR(LEFT(B34,FIND(\"--SUB\",B34)-1),B34)","v":"EP-Env Policy"},0,0,0]
["PDEA-Planning",null,"Direct Costs",null,{"$f":"IF(N34=\"FALSE\",0,ROUND(PDEA_PLANNING_DIRECT_NONSALARY_TOTAL,2))","v":0},null,null,{"$f":"IF($H$7=\"\",\"\",IF(N34=\"FALSE\",0,ROUND(PDEA_PLANNING_DIRECT_NONSALARY_TOTAL,2)))","v":""},null,null,null,null,null,null,{"$f":"O34","v":"EP-Env Policy"},0,0,0]
["Geotechnical ","GT-Geotechnical","(Boring and Lab)",{"$f":"IF(N36=\"FALSE\",0,GEOTECHNICAL_MANDAYS)","v":0},{"$f":"IF(N36=\"FALSE\",0,ROUND(GEOTECHNICAL_SALARY_TOTAL,2))","v":0},{"$f":"IF(N36=\"FALSE\",0,IF(D36=0,0,E36/D36))","v":0},{"$f":"IF($H$7=\"\",\"\",IF(N36=\"FALSE\",0,GEOTECHNICAL_MANDAYS))","v":""},{"$f":"IF($H$7=\"\",\"\",IF(N36=\"FALSE\",0,ROUND(GEOTECHNICAL_SALARY_TOTAL,2)))","v":""},{"$f":"IF(G36=\"\",\"\",IF(N36=\"FALSE\",0,IF(G36=0,0,H36/G36)))","v":""},null,null,null,null,"FALSE",{"$f":"IFERROR(LEFT(B36,FIND(\"--SUB\",B36)-1),B36)","v":"GT-Geotechnical"},0,0,0]
["Geotechnical ",null,"Foundations",null,{"$f":"IF(N36=\"FALSE\",0,ROUND(GEOTECHNICAL_DIRECT_NONSALARY_TOTAL,2))","v":0},null,null,{"$f":"IF($H$7=\"\",\"\",IF(N36=\"FALSE\",0,ROUND(GEOTECHNICAL_DIRECT_NONSALARY_TOTAL,2)))","v":""},null,null,null,null,null,null,{"$f":"O36","v":"GT-Geotechnical"},0,0,0]
["Hydraulics","HY-Hydraulics",null,{"$f":"IF(N38=\"FALSE\",0,HYDRAULICS_MANDAYS)","v":0},{"$f":"IF(N38=\"FALSE\",0,ROUND(HYDRAULICS_SALARY_TOTAL,2))","v":0},{"$f":"IF(N38=\"FALSE\",0,IF(D38=0,0,E38/D38))","v":0},{"$f":"IF($H$7=\"\",\"\",IF(N38=\"FALSE\",0,HYDRAULICS_MANDAYS))","v":""},{"$f":"IF($H$7=\"\",\"\",IF(N38=\"FALSE\",0,ROUND(HYDRAULICS_SALARY_TOTAL,2)))","v":""},{"$f":"IF(G38=\"\",\"\",IF(N38=\"FALSE\",0,IF(G38=0,0,H38/G38)))","v":""},null,null,null,null,"FALSE",{"$f":"IFERROR(LEFT(B38,FIND(\"--SUB\",B38)-1),B38)","v":"HY-Hydraulics"},{"$f":"IF(E38=0,0,IF(H38=\"\",E38*((Hydraulics!P84/(Hydraulics!P84+Hydraulics!P113))),H38*((Hydraulics!P84/(Hydraulics!P84+Hydraulics!P113)))))","v":0},{"$f":"IF(E38=0,0,IF(H38=\"\",E38*((Hydraulics!P113/(Hydraulics!P84+Hydraulics!P113))),H38*((Hydraulics!P113/(Hydraulics!P84+Hydraulics!P113)))))","v":0},0]
["Hydraulics",null,"Direct Costs",null,{"$f":"IF(N38=\"FALSE\",0,ROUND(HYDRAULICS_DIRECT_NONSALARY_TOTAL,2)+ROUND(HYDRAULICS_SUBCONSULTANT_FEES,2))","v":0},null,null,{"$f":"IF($H$7=\"\",\"\",IF(N38=\"FALSE\",0,(ROUND(HYDRAULICS_DIRECT_NONSALARY_TOTAL,2)+ROUND(HYDRAULICS_SUBCONSULTANT_FEES,2))))","v":""},null,null,null,null,null,null,{"$f":"O38","v":"HY-Hydraulics"},0,0,0]
["Public Transporation","IM-Public Transp",null,{"$f":"IF(N40=\"FALSE\",0,PUBLIC.TRANSPORTATION.PRIME_MANDAYS)","v":0},{"$f":"IF(N40=\"FALSE\",0,ROUND(PUBLIC.TRANSPORTATION.PRIME_SALARY_TOTAL,2))","v":0},{"$f":"IF(N40=\"FALSE\",0,IF(D40=0,0,E40/D40))","v":0},{"$f":"IF($H$7=\"\",\"\",IF(N40=\"FALSE\",0,PUBLIC.TRANSPORTATION.PRIME_MANDAYS))","v":""},{"$f":"IF($H$7=\"\",\"\",IF(N40=\"FALSE\",0,ROUND(PUBLIC.TRANSPORTATION.PRIME_SALARY_TOTAL,2)))","v":""},{"$f":"IF(G40=\"\",\"\",IF(N40=\"FALSE\",0,IF(G40=0,0,H40/G40)))","v":""},null,null,null,null,"FALSE",{"$f":"IFERROR(LEFT(B40,FIND(\"--SUB\",B40)-1),B40)","v":"IM-Public Transp"},{"$f":"R40","v":0},{"$f":"R40","v":0},0]
["Public Transporation",null,"Direct Costs",null,{"$f":"IF(N40=\"FALSE\",0,ROUND(PUBLIC.TRANSPORTATION.PRIME_DIRECT_NONSALARY_TOTAL,2))","v":0},null,null,{"$f":"IF($H$7=\"\",\"\",IF(N40=\"FALSE\",0,ROUND(PUBLIC.TRANSPORTATION.PRIME_DIRECT_NONSALARY_TOTAL,2)))","v":""},null,null,null,null,null,null,{"$f":"O40","v":"IM-Public Transp"},0,0,0]
["Bicycle and Pedestrian","IM-Bike Ped",null,{"$f":"IF(N42=\"FALSE\",0,BIKEANDPED.PRIME_MANDAYS)","v":0},{"$f":"IF(N42=\"FALSE\",0,ROUND(BIKEANDPED.PRIME_SALARY_TOTAL,2))","v":0},{"$f":"IF(N42=\"FALSE\",0,IF(D42=0,0,E42/D42))","v":0},{"$f":"IF($H$7=\"\",\"\",IF(N42=\"FALSE\",0,BIKEANDPED.PRIME_MANDAYS))","v":""},{"$f":"IF($H$7=\"\",\"\",IF(N42=\"FALSE\",0,ROUND(BIKEANDPED.PRIME_SALARY_TOTAL,2)))","v":""},{"$f":"IF(G42=\"\",\"\",IF(N42=\"FALSE\",0,IF(G42=0,0,H42/G42)))","v":""},null,null,null,null,"FALSE",{"$f":"IFERROR(LEFT(B42,FIND(\"--SUB\",B42)-1),B42)","v":"IM-Bike Ped"},0,0,0]
["Bicycle and Pedestrian",null,"Direct Costs",null,{"$f":"IF(N42=\"FALSE\",0,ROUND(BIKEANDPED.PRIME_DIRECT_NONSALARY_TOTAL,2))","v":0},null,null,{"$f":"IF($H$7=\"\",\"\",IF(N42=\"FALSE\",0,ROUND(BIKEANDPED.PRIME_DIRECT_NONSALARY_TOTAL,2)))","v":""},null,null,null,null,null,null,{"$f":"O42","v":"IM-Bike Ped"},0,0,0]
["Location Surveys","LS-Location Surveys",null,{"$f":"IF(N44=\"FALSE\",0,LOCATION.SURVEYS_MANDAYS)","v":0},{"$f":"IF(N44=\"FALSE\",0,ROUND(LOCATION.SURVEYS_SALARY_TOTAL,2))","v":0},{"$f":"IF(N44=\"FALSE\",0,IF(D44=0,0,E44/D44))","v":0},{"$f":"IF($H$7=\"\",\"\",IF(N44=\"FALSE\",0,LOCATION.SURVEYS_MANDAYS))","v":""},{"$f":"IF($H$7=\"\",\"\",IF(N44=\"FALSE\",0,ROUND(LOCATION.SURVEYS_SALARY_TOTAL,2)))","v":""},{"$f":"IF(G44=\"\",\"\",IF(N44=\"FALSE\",0,IF(G44=0,0,H44/G44)))","v":""},null,null,null,null,"FALSE",{"$f":"IFERROR(LEFT(B44,FIND(\"--SUB\",B44)-1),B44)","v":"LS-Location Surveys"},0,0,0]
["Location Surveys",null,"Direct Costs",null,{"$f":"IF(N44=\"FALSE\",0,ROUND(LOCATION.SURVEYS_DIRECT_NONSALARY_TOTAL,2))","v":0},null,null,{"$f":"IF($H$7=\"\",\"\",IF(N44=\"FALSE\",0,ROUND(LOCATION.SURVEYS_DIRECT_NONSALARY_TOTAL,2)))","v":""},null,null,null,null,null,null,{"$f":"O44","v":"LS-Location Surveys"},0,0,0]
["SUE","LS-SUE",null,{"$f":"IF(N46=\"FALSE\",0,SUE_MANDAYS)","v":0},{"$f":"IF(N46=\"FALSE\",0,ROUND(SUE_SALARY_TOTAL,2))","v":0},{"$f":"IF(N46=\"FALSE\",0,IF(D46=0,0,E46/D46))","v":0},{"$f":"IF($H$7=\"\",\"\",IF(N46=\"FALSE\",0,SUE_MANDAYS))","v":""},{"$f":"IF($H$7=\"\",\"\",IF(N46=\"FALSE\",0,ROUND(SUE_SALARY_TOTAL,2)))","v":""},{"$f":"IF(G46=\"\",\"\",IF(N46=\"FALSE\",0,IF(G46=0,0,H46/G46)))","v":""},null,null,null,null,"FALSE",{"$f":"IFERROR(LEFT(B46,FIND(\"--SUB\",B46)-1),B46)","v":"LS-SUE"},0,0,0]
["SUE",null,"Direct Costs",null,{"$f":"IF(N46=\"FALSE\",0,ROUND(SUE_DIRECT_NONSALARY_TOTAL,2))","v":0},null,null,{"$f":"IF($H$7=\"\",\"\",IF(N46=\"FALSE\",0,ROUND(SUE_DIRECT_NONSALARY_TOTAL,2)))","v":""},null,null,null,null,null,null,{"$f":"O46","v":"LS-SUE"},0,0,0]
["Final Pavement Marking & Markers","PD-Final Pavement Marking & Markers",null,{"$f":"IF(N48=\"FALSE\",0,PAVEMENT.MARKING_MANDAYS)","v":0},{"$f":"IF(N48=\"FALSE\",0,ROUND(PAVEMENT.MARKING_SALARY_TOTAL,2))","v":0},{"$f":"IF(N48=\"FALSE\",0,IF(D48=0,0,E48/D48))","v":0},{"$f":"IF($H$7=\"\",\"\",IF(N48=\"FALSE\",0,PAVEMENT.MARKING_MANDAYS))","v":""},{"$f":"IF($H$7=\"\",\"\",IF(N48=\"FALSE\",0,ROUND(PAVEMENT.MARKING_SALARY_TOTAL,2)))","v":""},{"$f":"IF(G48=\"\",\"\",IF(N48=\"FALSE\",0,IF(G48=0,0,H48/G48)))","v":""},null,null,null,null,"FALSE",{"$f":"IFERROR(LEFT(B48,FIND(\"--SUB\",B48)-1),B48)","v":"PD-Final Pavement Marking & Markers"},0,0,0]
["Final Pavement Marking & Markers",null,"Direct Costs",null,{"$f":"IF(N48=\"FALSE\",0,ROUND(PAVEMENT.MARKING_DIRECT_NONSALARY_TOTAL,2))","v":0},null,null,{"$f":"IF($H$7=\"\",\"\",IF(N48=\"FALSE\",0,ROUND(PAVEMENT.MARKING_DIRECT_NONSALARY_TOTAL,2)))","v":""},null,null,null,null,null,null,{"$f":"O48","v":"PD-Final Pavement Marking & Markers"},0,0,0]
["Roadway","RD-Roadway",null,{"$f":"IF(N50=\"FALSE\",0,ROADWAY_MANDAYS)","v":0},{"$f":"IF(N50=\"FALSE\",0,ROUND(ROADWAY_SALARY_TOTAL,2))","v":0},{"$f":"IF(N50=\"FALSE\",0,IF(D50=0,0,E50/D50))","v":0},{"$f":"IF($H$7=\"\",\"\",IF(N50=\"FALSE\",0,ROADWAY_MANDAYS))","v":""},{"$f":"IF($H$7=\"\",\"\",IF(N50=\"FALSE\",0,ROUND(ROADWAY_SALARY_TOTAL,2)))","v":""},{"$f":"IF(G50=\"\",\"\",IF(N50=\"FALSE\",0,IF(G50=0,0,H50/G50)))","v":""},null,null,null,null,"FALSE",{"$f":"IFERROR(LEFT(B50,FIND(\"--SUB\",B50)-1),B50)","v":"RD-Roadway"},{"$f":"'RD-CLASS'!H95","v":0},{"$f":"'RD-CLASS'!H118","v":0},0]
["Roadway",null,"Direct Costs",null,{"$f":"IF(N50=\"FALSE\",0,ROUND(ROADWAY_DIRECT_NONSALARY_TOTAL,2))","v":0},null,null,{"$f":"IF($H$7=\"\",\"\",IF(N50=\"FALSE\",0,ROUND(ROADWAY_DIRECT_NONSALARY_TOTAL,2)))","v":""},null,null,null,null,null,null,{"$f":"O50","v":"RD-Roadway"},0,{"$f":"'RD-CLASS'!H119","v":0},0]
["Erosion Control","RE-Erosion Control",null,{"$f":"IF(N52=\"FALSE\",0,EROSION.CONTROL_MANDAYS)","v":0},{"$f":"IF(N52=\"FALSE\",0,ROUND(EROSION.CONTROL_SALARY_TOTAL,2))","v":0},{"$f":"IF(N52=\"FALSE\",0,IF(D52=0,0,E52/D52))","v":0},{"$f":"IF($H$7=\"\",\"\",IF(N52=\"FALSE\",0,EROSION.CONTROL_MANDAYS))","v":""},{"$f":"IF($H$7=\"\",\"\",IF(N52=\"FALSE\",0,ROUND(EROSION.CONTROL_SALARY_TOTAL,2)))","v":""},{"$f":"IF(G52=\"\",\"\",IF(N52=\"FALSE\",0,IF(G52=0,0,H52/G52)))","v":""},null,null,null,null,"FALSE",{"$f":"IFERROR(LEFT(B52,FIND(\"--SUB\",B52)-1),B52)","v":"RE-Erosion Control"},{"$f":"R52","v":0},{"$f":"R52","v":0},{"$f":"IF($H$7=\"\",E52,H52)","v":0}]
["Erosion Control",null,"Direct Costs",null,{"$f":"IF(N52=\"FALSE\",0,ROUND(EROSION.CONTROL_DIRECT_NONSALARY_TOTAL,2))","v":0},null,null,{"$f":"IF($H$7=\"\",\"\",IF(N52=\"FALSE\",0,ROUND(EROSION.CONTROL_DIRECT_NONSALARY_TOTAL,2)))","v":""},null,null,null,null,null,null,{"$f":"O52","v":"RE-Erosion Control"},0,0,0]
["Rail","RR-Rail",null,{"$f":"IF(N54=\"FALSE\",0,RAIL.PRIME_MANDAYS)","v":0},{"$f":"IF(N54=\"FALSE\",0,ROUND(RAIL.PRIME_SALARY_TOTAL,2))","v":0},{"$f":"IF(N54=\"FALSE\",0,IF(D54=0,0,E54/D54))","v":0},{"$f":"IF($H$7=\"\",\"\",IF(N54=\"FALSE\",0,RAIL.PRIME_MANDAYS))","v":""},{"$f":"IF($H$7=\"\",\"\",IF(N54=\"FALSE\",0,ROUND(RAIL.PRIME_SALARY_TOTAL,2)))","v":""},{"$f":"IF(G54=\"\",\"\",IF(N54=\"FALSE\",0,IF(G54=0,0,H54/G54)))","v":""},null,null,null,null,"FALSE",{"$f":"IFERROR(LEFT(B54,FIND(\"--SUB\",B54)-1),B54)","v":"RR-Rail"},0,0,0]
["Rail",null,"Direct Costs",null,{"$f":"IF(N54=\"FALSE\",0,ROUND(RAIL.PRIME_DIRECT_NONSALARY_TOTAL,2))","v":0},null,null,{"$f":"IF($H$7=\"\",\"\",IF(N54=\"FALSE\",0,ROUND(RAIL.PRIME_DIRECT_NONSALARY_TOTAL,2)))","v":""},null,null,null,null,null,null,{"$f":"O54","v":"RR-Rail"},0,0,0]
["Signing","SD-Signing",null,{"$f":"IF(N56=\"FALSE\",0,SIGNING_MANDAYS)","v":0},{"$f":"IF(N56=\"FALSE\",0,ROUND(SIGNING_SALARY_TOTAL,2))","v":0},{"$f":"IF(N56=\"FALSE\",0,IF(D56=0,0,E56/D56))","v":0},{"$f":"IF($H$7=\"\",\"\",IF(N56=\"FALSE\",0,SIGNING_MANDAYS))","v":""},{"$f":"IF($H$7=\"\",\"\",IF(N56=\"FALSE\",0,ROUND(SIGNING_SALARY_TOTAL,2)))","v":""},{"$f":"IF(G56=\"\",\"\",IF(N56=\"FALSE\",0,IF(G56=0,0,H56/G56)))","v":""},null,null,null,null,"FALSE",{"$f":"IFERROR(LEFT(B56,FIND(\"--SUB\",B56)-1),B56)","v":"SD-Signing"},0,0,0]
["Signing",null,"Direct Costs",null,{"$f":"IF(N56=\"FALSE\",0,ROUND(SIGNING_DIRECT_NONSALARY_TOTAL,2))","v":0},null,null,{"$f":"IF($H$7=\"\",\"\",IF(N56=\"FALSE\",0,ROUND(SIGNING_DIRECT_NONSALARY_TOTAL,2)))","v":""},null,null,null,null,null,null,{"$f":"O56","v":"SD-Signing"},0,0,0]
["Signal Communications","SG-Signal Communications",null,{"$f":"IF(N58=\"FALSE\",0,COMM.FIBER.RADIO_MANDAYS)","v":0},{"$f":"IF(N58=\"FALSE\",0,ROUND(COMM.FIBER.RADIO_SALARY_TOTAL,2))","v":0},{"$f":"IF(N58=\"FALSE\",0,IF(D58=0,0,E58/D58))","v":0},{"$f":"IF($H$7=\"\",\"\",IF(N58=\"FALSE\",0,COMM.FIBER.RADIO_MANDAYS))","v":""},{"$f":"IF($H$7=\"\",\"\",IF(N58=\"FALSE\",0,ROUND(COMM.FIBER.RADIO_SALARY_TOTAL,2)))","v":""},{"$f":"IF(G58=\"\",\"\",IF(N58=\"FALSE\",0,IF(G58=0,0,H58/G58)))","v":""},null,null,null,null,"FALSE",{"$f":"IFERROR(LEFT(B58,FIND(\"--SUB\",B58)-1),B58)","v":"SG-Signal Communications"},0,0,0]
["Signal Communications",null,"Direct Costs",null,{"$f":"IF(N58=\"FALSE\",0,ROUND(COMM.FIBER.RADIO_DIRECT_NONSALARY_TOTAL,2))","v":0},null,null,{"$f":"IF($H$7=\"\",\"\",IF(N58=\"FALSE\",0,ROUND(COMM.FIBER.RADIO_DIRECT_NONSALARY_TOTAL,2)))","v":""},null,null,null,null,null,null,{"$f":"O58","v":"SG-Signal Communications"},0,0,0]
["ITS","SG-ITS",null,{"$f":"IF(N60=\"FALSE\",0,ITS_MANDAYS)","v":0},{"$f":"IF(N60=\"FALSE\",0,ROUND(ITS_SALARY_TOTAL,2))","v":0},{"$f":"IF(N60=\"FALSE\",0,IF(D60=0,0,E60/D60))","v":0},{"$f":"IF($H$7=\"\",\"\",IF(N60=\"FALSE\",0,ITS_MANDAYS))","v":""},{"$f":"IF($H$7=\"\",\"\",IF(N60=\"FALSE\",0,ROUND(ITS_SALARY_TOTAL,2)))","v":""},{"$f":"IF(G60=\"\",\"\",IF(N60=\"FALSE\",0,IF(G60=0,0,H60/G60)))","v":""},null,null,null,null,"FALSE",{"$f":"IFERROR(LEFT(B60,FIND(\"--SUB\",B60)-1),B60)","v":"SG-ITS"},0,0,0]
["ITS",null,"Direct Costs",null,{"$f":"IF(N60=\"FALSE\",0,ROUND(ITS_DIRECT_NONSALARY_TOTAL,2))","v":0},null,null,{"$f":"IF($H$7=\"\",\"\",IF(N60=\"FALSE\",0,ROUND(ITS_DIRECT_NONSALARY_TOTAL,2)))","v":""},null,null,null,null,null,null,{"$f":"O60","v":"SG-ITS"},0,0,0]
["Municipal Signal Systems","SG-Municipal Signal Systems",null,{"$f":"IF(N62=\"FALSE\",0,MUNICIPAL.SIGNAL.SYSTEM_MANDAYS)","v":0},{"$f":"IF(N62=\"FALSE\",0,ROUND(MUNICIPAL.SIGNAL.SYSTEM_SALARY_TOTAL,2))","v":0},{"$f":"IF(N62=\"FALSE\",0,IF(D62=0,0,E62/D62))","v":0},{"$f":"IF($H$7=\"\",\"\",IF(N62=\"FALSE\",0,MUNICIPAL.SIGNAL.SYSTEM_MANDAYS))","v":""},{"$f":"IF($H$7=\"\",\"\",IF(N62=\"FALSE\",0,ROUND(MUNICIPAL.SIGNAL.SYSTEM_SALARY_TOTAL,2)))","v":""},{"$f":"IF(G62=\"\",\"\",IF(N62=\"FALSE\",0,IF(G62=0,0,H62/G62)))","v":""},null,null,null,null,"FALSE",{"$f":"IFERROR(LEFT(B62,FIND(\"--SUB\",B62)-1),B62)","v":"SG-Municipal Signal Systems"},0,0,0]
["Municipal Signal Systems",null,"Direct Costs",null,{"$f":"IF(N62=\"FALSE\",0,ROUND(MUNICIPAL.SIGNAL.SYSTEM_DIRECT_NONSALARY_TOTAL,2))","v":0},null,null,{"$f":"IF($H$7=\"\",\"\",IF(N62=\"FALSE\",0,ROUND(MUNICIPAL.SIGNAL.SYSTEM_DIRECT_NONSALARY_TOTAL,2)))","v":""},null,null,null,null,null,null,{"$f":"O62","v":"SG-Municipal Signal Systems"},0,0,0]
["Signals","SS-Signals",null,{"$f":"IF(N64=\"FALSE\",0,SIGNALS_MANDAYS)","v":0},{"$f":"IF(N64=\"FALSE\",0,ROUND(SIGNALS_SALARY_TOTAL,2))","v":0},{"$f":"IF(N64=\"FALSE\",0,IF(D64=0,0,E64/D64))","v":0},{"$f":"IF($H$7=\"\",\"\",IF(N64=\"FALSE\",0,SIGNALS_MANDAYS))","v":""},{"$f":"IF($H$7=\"\",\"\",IF(N64=\"FALSE\",0,ROUND(SIGNALS_SALARY_TOTAL,2)))","v":""},{"$f":"IF(G64=\"\",\"\",IF(N64=\"FALSE\",0,IF(G64=0,0,H64/G64)))","v":""},null,null,null,null,"FALSE",{"$f":"IFERROR(LEFT(B64,FIND(\"--SUB\",B64)-1),B64)","v":"SS-Signals"},0,0,0]
["Signals",null,"Direct Costs",null,{"$f":"IF(N64=\"FALSE\",0,ROUND(SIGNALS_DIRECT_NONSALARY_TOTAL,2))","v":0},null,null,{"$f":"IF($H$7=\"\",\"\",IF(N64=\"FALSE\",0,ROUND(SIGNALS_DIRECT_NONSALARY_TOTAL,2)))","v":""},null,null,null,null,null,null,{"$f":"O64","v":"SS-Signals"},0,0,0]
["Structures","ST-Structures",null,{"$f":"IF(N66=\"FALSE\",0,STRUCTURES_MANDAYS)","v":0},{"$f":"IF(N66=\"FALSE\",0,ROUND(STRUCTURES_SALARY_TOTAL,2))","v":0},{"$f":"IF(N66=\"FALSE\",0,IF(D66=0,0,E66/D66))","v":0},{"$f":"IF($H$7=\"\",\"\",IF(N66=\"FALSE\",0,STRUCTURES_MANDAYS))","v":""},{"$f":"IF($H$7=\"\",\"\",IF(N66=\"FALSE\",0,ROUND(STRUCTURES_SALARY_TOTAL,2)))","v":""},{"$f":"IF(G66=\"\",\"\",IF(N66=\"FALSE\",0,IF(G66=0,0,H66/G66)))","v":""},null,null,null,null,"FALSE",{"$f":"IFERROR(LEFT(B66,FIND(\"--SUB\",B66)-1),B66)","v":"ST-Structures"},0,0,0]
["Structures",null,"Direct Costs",null,{"$f":"IF(N66=\"FALSE\",0,ROUND(STRUCTURES_DIRECT_NONSALARY_TOTAL,2))","v":0},null,null,{"$f":"IF($H$7=\"\",\"\",IF(N66=\"FALSE\",0,ROUND(STRUCTURES_DIRECT_NONSALARY_TOTAL,2)))","v":""},null,null,null,null,null,null,{"$f":"O66","v":"ST-Structures"},0,0,0]
["Work Zone Traffic Control (WZTC)","TM-Work Zone Traffic Control (WZTC)",null,{"$f":"IF(N68=\"FALSE\",0,WZTCU_MANDAYS)","v":0},{"$f":"IF(N68=\"FALSE\",0,ROUND(WZTCU_SALARY_TOTAL,2))","v":0},{"$f":"IF(N68=\"FALSE\",0,IF(D68=0,0,E68/D68))","v":0},{"$f":"IF($H$7=\"\",\"\",IF(N68=\"FALSE\",0,WZTCU_MANDAYS))","v":""},{"$f":"IF($H$7=\"\",\"\",IF(N68=\"FALSE\",0,ROUND(WZTCU_SALARY_TOTAL,2)))","v":""},{"$f":"IF(G68=\"\",\"\",IF(N68=\"FALSE\",0,IF(G68=0,0,H68/G68)))","v":""},null,null,null,null,"FALSE",{"$f":"IFERROR(LEFT(B68,FIND(\"--SUB\",B68)-1),B68)","v":"TM-Work Zone Traffic Control (WZTC)"},{"$f":"R68","v":0},0,0]
["Work Zone Traffic Control (WZTC)",null,"Direct Costs",null,{"$f":"IF(N68=\"FALSE\",0,ROUND(WZTCU_DIRECT_NONSALARY_TOTAL,2))","v":0},null,null,{"$f":"IF($H$7=\"\",\"\",IF(N68=\"FALSE\",0,ROUND(WZTCU_DIRECT_NONSALARY_TOTAL,2)))","v":""},null,null,null,null,null,null,{"$f":"O68","v":"TM-Work Zone Traffic Control (WZTC)"},{"$f":"R69","v":0},0,0]
["Congestion Management","TM-Congestion Management",null,{"$f":"IF(N70=\"FALSE\",0,CONGESTION.MANAGEMENT_MANDAYS)","v":0},{"$f":"IF(N70=\"FALSE\",0,ROUND(CONGESTION.MANAGEMENT_SALARY_TOTAL,2))","v":0},{"$f":"IF(N70=\"FALSE\",0,IF(D70=0,0,E70/D70))","v":0},{"$f":"IF($H$7=\"\",\"\",IF(N70=\"FALSE\",0,CONGESTION.MANAGEMENT_MANDAYS))","v":""},{"$f":"IF($H$7=\"\",\"\",IF(N70=\"FALSE\",0,ROUND(CONGESTION.MANAGEMENT_SALARY_TOTAL,2)))","v":""},{"$f":"IF(G70=\"\",\"\",IF(N70=\"FALSE\",0,IF(G70=0,0,H70/G70)))","v":""},null,null,null,null,"FALSE",{"$f":"IFERROR(LEFT(B70,FIND(\"--SUB\",B70)-1),B70)","v":"TM-Congestion Management"},0,0,0]
["Congestion Management",null,"Direct Costs",null,{"$f":"IF(N70=\"FALSE\",0,ROUND(CONGESTION.MANAGEMENT_DIRECT_NONSALARY_TOTAL,2))","v":0},null,null,{"$f":"IF($H$7=\"\",\"\",IF(N70=\"FALSE\",0,ROUND(CONGESTION.MANAGEMENT_DIRECT_NONSALARY_TOTAL,2)))","v":""},null,null,null,null,null,null,{"$f":"O70","v":"TM-Congestion Management"},0,0,0]
["Transportation Planning","TP-Transportation Planning",null,{"$f":"IF(N72=\"FALSE\",0,TRANSPORTATIONPLANNING.PRIME_MANDAYS)","v":0},{"$f":"IF(N72=\"FALSE\",0,ROUND(TRANSPORTATIONPLANNING.PRIME_SALARY_TOTAL,2))","v":0},{"$f":"IF(N72=\"FALSE\",0,IF(D72=0,0,E72/D72))","v":0},{"$f":"IF($H$7=\"\",\"\",IF(N72=\"FALSE\",0,TRANSPORTATIONPLANNING.PRIME_MANDAYS))","v":""},{"$f":"IF($H$7=\"\",\"\",IF(N72=\"FALSE\",0,ROUND(TRANSPORTATIONPLANNING.PRIME_SALARY_TOTAL,2)))","v":""},{"$f":"IF(G72=\"\",\"\",IF(N72=\"FALSE\",0,IF(G72=0,0,H72/G72)))","v":""},null,null,null,null,"FALSE",{"$f":"IFERROR(LEFT(B72,FIND(\"--SUB\",B72)-1),B72)","v":"TP-Transportation Planning"},0,0,0]
["Transportation Planning",null,"Direct Costs",null,{"$f":"IF(N72=\"FALSE\",0,ROUND(TRANSPORTATIONPLANNING.PRIME_DIRECT_NONSALARY_TOTAL,2))","v":0},null,null,{"$f":"IF($H$7=\"\",\"\",IF(N72=\"FALSE\",0,ROUND(TRANSPORTATIONPLANNING.PRIME_DIRECT_NONSALARY_TOTAL,2)))","v":""},null,null,null,null,null,null,{"$f":"O72","v":"TP-Transportation Planning"},0,0,0]
["Traffic Forecast","TP-Traffic Forecast",null,{"$f":"IF(N74=\"FALSE\",0,TRAFFICFORECAST.PRIME_MANDAYS)","v":0},{"$f":"IF(N74=\"FALSE\",0,ROUND(TRAFFICFORECAST.PRIME_SALARY_TOTAL,2))","v":0},{"$f":"IF(N74=\"FALSE\",0,IF(D74=0,0,E74/D74))","v":0},{"$f":"IF($H$7=\"\",\"\",IF(N74=\"FALSE\",0,TRAFFICFORECAST.PRIME_MANDAYS))","v":""},{"$f":"IF($H$7=\"\",\"\",IF(N74=\"FALSE\",0,ROUND(TRAFFICFORECAST.PRIME_SALARY_TOTAL,2)))","v":""},{"$f":"IF(G74=\"\",\"\",IF(N74=\"FALSE\",0,IF(G74=0,0,H74/G74)))","v":""},null,null,null,null,"FALSE",{"$f":"IFERROR(LEFT(B74,FIND(\"--SUB\",B74)-1),B74)","v":"TP-Traffic Forecast"},0,0,0]
["Traffic Forecast",null,"Direct Costs",null,{"$f":"IF(N74=\"FALSE\",0,ROUND(TRAFFICFORECAST.PRIME_DIRECT_NONSALARY_TOTAL,2))","v":0},null,null,{"$f":"IF($H$7=\"\",\"\",IF(N74=\"FALSE\",0,ROUND(TRAFFICFORECAST.PRIME_DIRECT_NONSALARY_TOTAL,2)))","v":""},null,null,null,null,null,null,{"$f":"O74","v":"TP-Traffic Forecast"},0,0,0]
["Utilities Coordination","UT-Utilities Coordination",null,{"$f":"IF(N76=\"FALSE\",0,UTILITIES.COORDINATION_MANDAYS)","v":0},{"$f":"IF(N76=\"FALSE\",0,ROUND(UTILITIES.COORDINATION_SALARY_TOTAL,2))","v":0},{"$f":"IF(N76=\"FALSE\",0,IF(D76=0,0,E76/D76))","v":0},{"$f":"IF($H$7=\"\",\"\",IF(N76=\"FALSE\",0,UTILITIES.COORDINATION_MANDAYS))","v":""},{"$f":"IF($H$7=\"\",\"\",IF(N76=\"FALSE\",0,ROUND(UTILITIES.COORDINATION_SALARY_TOTAL,2)))","v":""},{"$f":"IF(G76=\"\",\"\",IF(N76=\"FALSE\",0,IF(G76=0,0,H76/G76)))","v":""},null,null,null,null,"FALSE",{"$f":"IFERROR(LEFT(B76,FIND(\"--SUB\",B76)-1),B76)","v":"UT-Utilities Coordination"},{"$f":"R76","v":0},{"$f":"R76","v":0},0]
["Utilities Coordination",null,"Direct Costs",null,{"$f":"IF(N76=\"FALSE\",0,ROUND(UTILITIES.COORDINATION_DIRECT_NONSALARY_TOTAL,2))","v":0},null,null,{"$f":"IF($H$7=\"\",\"\",IF(N76=\"FALSE\",0,ROUND(UTILITIES.COORDINATION_DIRECT_NONSALARY_TOTAL,2)))","v":""},null,null,null,null,null,null,{"$f":"O76","v":"UT-Utilities Coordination"},0,0,0]
["Utilities Design","UT-Utilities Design",null,{"$f":"IF(N78=\"FALSE\",0,UTILITIES.DESIGN_MANDAYS)","v":0},{"$f":"IF(N78=\"FALSE\",0,ROUND(UTILITIES.DESIGN_SALARY_TOTAL,2))","v":0},{"$f":"IF(N78=\"FALSE\",0,IF(D78=0,0,E78/D78))","v":0},{"$f":"IF($H$7=\"\",\"\",IF(N78=\"FALSE\",0,UTILITIES.DESIGN_MANDAYS))","v":""},{"$f":"IF($H$7=\"\",\"\",IF(N78=\"FALSE\",0,ROUND(UTILITIES.DESIGN_SALARY_TOTAL,2)))","v":""},{"$f":"IF(G78=\"\",\"\",IF(N78=\"FALSE\",0,IF(G78=0,0,H78/G78)))","v":""},null,null,null,null,"FALSE",{"$f":"IFERROR(LEFT(B78,FIND(\"--SUB\",B78)-1),B78)","v":"UT-Utilities Design"},{"$f":"R78","v":0},{"$f":"R78","v":0},{"$f":"IF($H$7=\"\",E78,H78)","v":0}]
["Utilities Design",null,"Direct Costs",null,{"$f":"IF(N78=\"FALSE\",0,ROUND(UTILITIES.DESIGN_DIRECT_NONSALARY_TOTAL,2))","v":0},null,null,{"$f":"IF($H$7=\"\",\"\",IF(N78=\"FALSE\",0,ROUND(UTILITIES.DESIGN_DIRECT_NONSALARY_TOTAL,2)))","v":""},null,null,null,null,null,null,{"$f":"O78","v":"UT-Utilities Design"},0,0,0]
["Ferry","Ferry",null,{"$f":"IF(N80=\"FALSE\",0,FERRY.PRIME_MANDAYS)","v":0},{"$f":"IF(N80=\"FALSE\",0,ROUND(FERRY.PRIME_SALARY_TOTAL,2))","v":0},{"$f":"IF(N80=\"FALSE\",0,IF(D80=0,0,E80/D80))","v":0},{"$f":"IF($H$7=\"\",\"\",IF(N80=\"FALSE\",0,FERRY.PRIME_MANDAYS))","v":""},{"$f":"IF($H$7=\"\",\"\",IF(N80=\"FALSE\",0,ROUND(FERRY.PRIME_SALARY_TOTAL,2)))","v":""},{"$f":"IF(G80=\"\",\"\",IF(N80=\"FALSE\",0,IF(G80=0,0,H80/G80)))","v":""},null,null,null,null,"FALSE",{"$f":"IFERROR(LEFT(B80,FIND(\"--SUB\",B80)-1),B80)","v":"Ferry"},0,0,{"$f":"IF($H$7=\"\",E80,H80)","v":0}]
["Ferry",{"$f":"IF('PEF CLASSIFICATION SHEET'!B509=\"Ferry\",\"\",'PEF CLASSIFICATION SHEET'!B509)","v":""},"Direct Costs",null,{"$f":"IF(N80=\"FALSE\",0,ROUND(FERRY.PRIME_DIRECT_NONSALARY_TOTAL,2))","v":0},null,null,{"$f":"IF($H$7=\"\",\"\",IF(N80=\"FALSE\",0,ROUND(FERRY.PRIME_DIRECT_NONSALARY_TOTAL,2)))","v":""},null,null,null,null,null,null,{"$f":"O80","v":"Ferry"},0,0,0]
["Aviation","Aviation",null,{"$f":"IF(N82=\"FALSE\",0,AVIATION.PRIME_MANDAYS)","v":0},{"$f":"IF(N82=\"FALSE\",0,ROUND(AVIATION.PRIME_SALARY_TOTAL,2))","v":0},{"$f":"IF(N82=\"FALSE\",0,IF(D82=0,0,E82/D82))","v":0},{"$f":"IF($H$7=\"\",\"\",IF(N82=\"FALSE\",0,AVIATION.PRIME_MANDAYS))","v":""},{"$f":"IF($H$7=\"\",\"\",IF(N82=\"FALSE\",0,ROUND(AVIATION.PRIME_SALARY_TOTAL,2)))","v":""},{"$f":"IF(G82=\"\",\"\",IF(N82=\"FALSE\",0,IF(G82=0,0,H82/G82)))","v":""},null,null,null,null,"FALSE",{"$f":"IFERROR(LEFT(B82,FIND(\"--SUB\",B82)-1),B82)","v":"Aviation"},0,0,0]
["Aviation",null,"Direct Costs",null,{"$f":"IF(N82=\"FALSE\",0,ROUND(AVIATION.PRIME_DIRECT_NONSALARY_TOTAL,2))","v":0},null,null,{"$f":"IF($H$7=\"\",\"\",IF(N82=\"FALSE\",0,ROUND(AVIATION.PRIME_DIRECT_NONSALARY_TOTAL,2)))","v":""},null,null,null,null,null,null,{"$f":"O82","v":"Aviation"},0,0,0]
["PDEA-Other","PM-Project Mgmt--SUB1",null,{"$f":"IF(N84=\"FALSE\",0,PDEA_OTHER_SUB1_MANDAYS)","v":0},{"$f":"IF(N84=\"FALSE\",0,ROUND(PDEA_OTHER_SUB1_SALARY_TOTAL,2))","v":0},0,{"$f":"IF($H$7=\"\",\"\",IF(N84=\"FALSE\",0,PDEA_OTHER_SUB1_MANDAYS))","v":""},{"$f":"IF($H$7=\"\",\"\",IF(N84=\"FALSE\",0,ROUND(PDEA_OTHER_SUB1_SALARY_TOTAL,2)))","v":""},{"$f":"IF(G84=\"\",\"\",IF(N84=\"FALSE\",0,IF(G84=0,0,H84/G84)))","v":""},null,null,null,null,"FALSE",{"$f":"IFERROR(LEFT(B84,FIND(\"--SUB\",B84)-1),B84)","v":"PM-Project Mgmt"},0,0,0]
["PDEA-Other",{"$f":"IF(PDEA_OTHER_SUB1_CONSULTANT_DISCIPLINE=\"Project Mgmt--SUB1\",\"\",PDEA_OTHER_SUB1_CONSULTANT_DISCIPLINE)","v":""},"Direct Costs",null,{"$f":"IF(N84=\"FALSE\",0,ROUND(PDEA_OTHER_SUB1_DIRECT_NONSALARY_TOTAL,2))","v":0},null,null,{"$f":"IF($H$7=\"\",\"\",IF(N84=\"FALSE\",0,ROUND(PDEA_OTHER_SUB1_DIRECT_NONSALARY_TOTAL,2)))","v":""},null,null,null,null,null,null,{"$f":"O84","v":"PM-Project Mgmt"},0,0,0]
["PDEA-Other","PM-Project Mgmt--SUB2",null,{"$f":"IF(N86=\"FALSE\",0,PDEA_OTHER_SUB2_MANDAYS)","v":0},{"$f":"IF(N86=\"FALSE\",0,ROUND(PDEA_OTHER_SUB2_SALARY_TOTAL,2))","v":0},0,{"$f":"IF($H$7=\"\",\"\",IF(N86=\"FALSE\",0,PDEA_OTHER_SUB2_MANDAYS))","v":""},{"$f":"IF($H$7=\"\",\"\",IF(N86=\"FALSE\",0,ROUND(PDEA_OTHER_SUB2_SALARY_TOTAL,2)))","v":""},{"$f":"IF(G86=\"\",\"\",IF(N86=\"FALSE\",0,IF(G86=0,0,H86/G86)))","v":""},null,null,null,null,"FALSE",{"$f":"IFERROR(LEFT(B86,FIND(\"--SUB\",B86)-1),B86)","v":"PM-Project Mgmt"},0,0,0]
["PDEA-Other",{"$f":"IF(PDEA_OTHER_SUB2_CONSULTANT_DISCIPLINE=\"Project Mgmt--SUB2\",\"\",PDEA_OTHER_SUB2_CONSULTANT_DISCIPLINE)","v":""},"Direct Costs",null,{"$f":"IF(N86=\"FALSE\",0,ROUND(PDEA_OTHER_SUB2_DIRECT_NONSALARY_TOTAL,2))","v":0},null,null,{"$f":"IF($H$7=\"\",\"\",IF(N86=\"FALSE\",0,ROUND(PDEA_OTHER_SUB2_DIRECT_NONSALARY_TOTAL,2)))","v":""},null,null,null,null,null,null,{"$f":"O86","v":"PM-Project Mgmt"},0,0,0]
["PDEA-Planning-Roadway","PM-Other--SUB1",null,{"$f":"IF(N88=\"FALSE\",0,PDEA_PLANNING_ROADWAY_SUB1_MANDAYS)","v":0},{"$f":"IF(N88=\"FALSE\",0,ROUND(PDEA_PLANNING_ROADWAY_SUB1_SALARY_TOTAL,2))","v":0},0,{"$f":"IF($H$7=\"\",\"\",IF(N88=\"FALSE\",0,PDEA_PLANNING_ROADWAY_SUB1_MANDAYS))","v":""},{"$f":"IF($H$7=\"\",\"\",IF(N88=\"FALSE\",0,ROUND(PDEA_PLANNING_ROADWAY_SUB1_SALARY_TOTAL,2)))","v":""},{"$f":"IF(G88=\"\",\"\",IF(N88=\"FALSE\",0,IF(G88=0,0,H88/G88)))","v":""},null,null,null,null,"FALSE",{"$f":"IFERROR(LEFT(B88,FIND(\"--SUB\",B88)-1),B88)","v":"PM-Other"},0,0,0]
["PDEA-Planning-Roadway",{"$f":"IF('PEF CLASSIFICATION SHEET'!B579=\"PM-Other--SUB1\",\"\",'PEF CLASSIFICATION SHEET'!B579)","v":""},"Direct Costs",null,{"$f":"IF(N88=\"FALSE\",0,ROUND(PDEA_PLANNING_ROADWAY_SUB1_DIRECT_NONSALARY_TOTAL,2))","v":0},null,null,{"$f":"IF($H$7=\"\",\"\",IF(N88=\"FALSE\",0,ROUND(PDEA_PLANNING_ROADWAY_SUB1_DIRECT_NONSALARY_TOTAL,2)))","v":""},null,null,null,null,null,null,{"$f":"O88","v":"PM-Other"},0,0,0]
["PDEA-NES","EN-Natural Env--SUB1",null,{"$f":"IF(N90=\"FALSE\",0,PDEA_NEU_SUB1_MANDAYS)","v":0},{"$f":"IF(N90=\"FALSE\",0,ROUND(PDEA_NEU_SUB1_SALARY_TOTAL,2))","v":0},0,{"$f":"IF($H$7=\"\",\"\",IF(N90=\"FALSE\",0,PDEA_NEU_SUB1_MANDAYS))","v":""},{"$f":"IF($H$7=\"\",\"\",IF(N90=\"FALSE\",0,ROUND(PDEA_NEU_SUB1_SALARY_TOTAL,2)))","v":""},{"$f":"IF(G90=\"\",\"\",IF(N90=\"FALSE\",0,IF(G90=0,0,H90/G90)))","v":""},null,null,null,null,"FALSE",{"$f":"IFERROR(LEFT(B90,FIND(\"--SUB\",B90)-1),B90)","v":"EN-Natural Env"},0,0,0]
["PDEA-NES",null,"Direct Costs",null,{"$f":"IF(N90=\"FALSE\",0,ROUND(PDEA_NEU_SUB1_DIRECT_NONSALARY_TOTAL,2))","v":0},null,null,{"$f":"IF($H$7=\"\",\"\",IF(N90=\"FALSE\",0,ROUND(PDEA_NEU_SUB1_DIRECT_NONSALARY_TOTAL,2)))","v":""},null,null,null,null,null,null,{"$f":"O90","v":"EN-Natural Env"},0,0,0]
["PDEA-NES","EN-Natural Env--SUB2",null,{"$f":"IF(N92=\"FALSE\",0,PDEA_NEU_SUB2_MANDAYS)","v":0},{"$f":"IF(N92=\"FALSE\",0,ROUND(PDEA_NEU_SUB2_SALARY_TOTAL,2))","v":0},0,{"$f":"IF($H$7=\"\",\"\",IF(N92=\"FALSE\",0,PDEA_NEU_SUB2_MANDAYS))","v":""},{"$f":"IF($H$7=\"\",\"\",IF(N92=\"FALSE\",0,ROUND(PDEA_NEU_SUB2_SALARY_TOTAL,2)))","v":""},{"$f":"IF(G92=\"\",\"\",IF(N92=\"FALSE\",0,IF(G92=0,0,H92/G92)))","v":""},null,null,null,null,"FALSE",{"$f":"IFERROR(LEFT(B92,FIND(\"--SUB\",B92)-1),B92)","v":"EN-Natural Env"},0,0,0]
["PDEA-NES",null,"Direct Costs",null,{"$f":"IF(N92=\"FALSE\",0,ROUND(PDEA_NEU_SUB2_DIRECT_NONSALARY_TOTAL,2))","v":0},null,null,{"$f":"IF($H$7=\"\",\"\",IF(N92=\"FALSE\",0,ROUND(PDEA_NEU_SUB2_DIRECT_NONSALARY_TOTAL,2)))","v":""},null,null,null,null,null,null,{"$f":"O92","v":"EN-Natural Env"},0,0,0]
["PDEA-NES","EN-Natural Env--SUB3",null,{"$f":"IF(N94=\"FALSE\",0,PDEA_NEU_SUB3_MANDAYS)","v":0},{"$f":"IF(N94=\"FALSE\",0,ROUND(PDEA_NEU_SUB3_SALARY_TOTAL,2))","v":0},0,{"$f":"IF($H$7=\"\",\"\",IF(N94=\"FALSE\",0,PDEA_NEU_SUB3_MANDAYS))","v":""},{"$f":"IF($H$7=\"\",\"\",IF(N94=\"FALSE\",0,ROUND(PDEA_NEU_SUB3_SALARY_TOTAL,2)))","v":""},{"$f":"IF(G94=\"\",\"\",IF(N94=\"FALSE\",0,IF(G94=0,0,H94/G94)))","v":""},null,null,null,null,"FALSE",{"$f":"IFERROR(LEFT(B94,FIND(\"--SUB\",B94)-1),B94)","v":"EN-Natural Env"},0,0,0]
["PDEA-NES",null,"Direct Costs",null,{"$f":"IF(N94=\"FALSE\",0,ROUND(PDEA_NEU_SUB3_DIRECT_NONSALARY_TOTAL,2))","v":0},null,null,{"$f":"IF($H$7=\"\",\"\",IF(N94=\"FALSE\",0,ROUND(PDEA_NEU_SUB3_DIRECT_NONSALARY_TOTAL,2)))","v":""},null,null,null,null,null,null,{"$f":"O94","v":"EN-Natural Env"},0,0,0]
["PDEA-HES-Community Studies","EN-Community Studies--SUB1",null,{"$f":"IF(N96=\"FALSE\",0,PDEA_HEU_COMMUNITY_STUDIES_SUB1_MANDAYS)","v":0},{"$f":"IF(N96=\"FALSE\",0,ROUND(PDEA_HEU_COMMUNITY_STUDIES_SUB1_SALARY_TOTAL,2))","v":0},0,{"$f":"IF($H$7=\"\",\"\",IF(N96=\"FALSE\",0,PDEA_HEU_COMMUNITY_STUDIES_SUB1_MANDAYS))","v":""},{"$f":"IF($H$7=\"\",\"\",IF(N96=\"FALSE\",0,ROUND(PDEA_HEU_COMMUNITY_STUDIES_SUB1_SALARY_TOTAL,2)))","v":""},{"$f":"IF(G96=\"\",\"\",IF(N96=\"FALSE\",0,IF(G96=0,0,H96/G96)))","v":""},null,null,null,null,"FALSE",{"$f":"IFERROR(LEFT(B96,FIND(\"--SUB\",B96)-1),B96)","v":"EN-Community Studies"},0,0,0]
["PDEA-HES-Community Studies",null,"Direct Costs",null,{"$f":"IF(N96=\"FALSE\",0,ROUND(PDEA_HEU_COMMUNITY_STUDIES_SUB1_DIRECT_NONSALARY_TOTAL,2))","v":0},null,null,{"$f":"IF($H$7=\"\",\"\",IF(N96=\"FALSE\",0,ROUND(PDEA_HEU_COMMUNITY_STUDIES_SUB1_DIRECT_NONSALARY_TOTAL,2)))","v":""},null,null,null,null,null,null,{"$f":"O96","v":"EN-Community Studies"},0,0,0]
["PDEA-HES-Public Involvement","EN-Public Involvement--SUB1",null,{"$f":"IF(N98=\"FALSE\",0,PDEA_HEU_PUBLIC_INVOLVEMENT_SUB1_MANDAYS)","v":0},{"$f":"IF(N98=\"FALSE\",0,ROUND(PDEA_HEU_PUBLIC_INVOLVEMENT_SUB1_SALARY_TOTAL,2))","v":0},0,{"$f":"IF($H$7=\"\",\"\",IF(N98=\"FALSE\",0,PDEA_HEU_PUBLIC_INVOLVEMENT_SUB1_MANDAYS))","v":""},{"$f":"IF($H$7=\"\",\"\",IF(N98=\"FALSE\",0,ROUND(PDEA_HEU_PUBLIC_INVOLVEMENT_SUB1_SALARY_TOTAL,2)))","v":""},{"$f":"IF(G98=\"\",\"\",IF(N98=\"FALSE\",0,IF(G98=0,0,H98/G98)))","v":""},null,null,null,null,"FALSE",{"$f":"IFERROR(LEFT(B98,FIND(\"--SUB\",B98)-1),B98)","v":"EN-Public Involvement"},0,0,0]
["PDEA-HES-Public Involvement",null,"Direct Costs",null,{"$f":"IF(N98=\"FALSE\",0,ROUND(PDEA_HEU_PUBLIC_INVOLVEMENT_SUB1_DIRECT_NONSALARY_TOTAL,2))","v":0},null,null,{"$f":"IF($H$7=\"\",\"\",IF(N98=\"FALSE\",0,ROUND(PDEA_HEU_PUBLIC_INVOLVEMENT_SUB1_DIRECT_NONSALARY_TOTAL,2)))","v":""},null,null,null,null,null,null,{"$f":"O98","v":"EN-Public Involvement"},0,0,0]
["PDEA-HES-Public Involvement","EN-Public Involvement--SUB2",null,{"$f":"IF(N100=\"FALSE\",0,PDEA_HEU_PUBLIC_INVOLVEMENT_SUB2_MANDAYS)","v":0},{"$f":"IF(N100=\"FALSE\",0,ROUND(PDEA_HEU_PUBLIC_INVOLVEMENT_SUB2_SALARY_TOTAL,2))","v":0},0,{"$f":"IF($H$7=\"\",\"\",IF(N100=\"FALSE\",0,PDEA_HEU_PUBLIC_INVOLVEMENT_SUB2_MANDAYS))","v":""},{"$f":"IF($H$7=\"\",\"\",IF(N100=\"FALSE\",0,ROUND(PDEA_HEU_PUBLIC_INVOLVEMENT_SUB2_SALARY_TOTAL,2)))","v":""},{"$f":"IF(G100=\"\",\"\",IF(N100=\"FALSE\",0,IF(G100=0,0,H100/G100)))","v":""},null,null,null,null,"FALSE",{"$f":"IFERROR(LEFT(B100,FIND(\"--SUB\",B100)-1),B100)","v":"EN-Public Involvement"},0,0,0]
["PDEA-HES-Public Involvement",null,"Direct Costs",null,{"$f":"IF(N100=\"FALSE\",0,ROUND(PDEA_HEU_PUBLIC_INVOLVEMENT_SUB2_DIRECT_NONSALARY_TOTAL,2))","v":0},null,null,{"$f":"IF($H$7=\"\",\"\",IF(N100=\"FALSE\",0,ROUND(PDEA_HEU_PUBLIC_INVOLVEMENT_SUB2_DIRECT_NONSALARY_TOTAL,2)))","v":""},null,null,null,null,null,null,{"$f":"O100","v":"EN-Public Involvement"},0,0,0]
["PDEA-HES-Public Involvement","EN-Public Involvement--SUB3",null,{"$f":"IF(N102=\"FALSE\",0,PDEA_HEU_PUBLIC_INVOLVEMENT_SUB3_MANDAYS)","v":0},{"$f":"IF(N102=\"FALSE\",0,ROUND(PDEA_HEU_PUBLIC_INVOLVEMENT_SUB3_SALARY_TOTAL,2))","v":0},0,{"$f":"IF($H$7=\"\",\"\",IF(N102=\"FALSE\",0,PDEA_HEU_PUBLIC_INVOLVEMENT_SUB3_MANDAYS))","v":""},{"$f":"IF($H$7=\"\",\"\",IF(N102=\"FALSE\",0,ROUND(PDEA_HEU_PUBLIC_INVOLVEMENT_SUB3_SALARY_TOTAL,2)))","v":""},{"$f":"IF(G102=\"\",\"\",IF(N102=\"FALSE\",0,IF(G102=0,0,H102/G102)))","v":""},null,null,null,null,"FALSE",{"$f":"IFERROR(LEFT(B102,FIND(\"--SUB\",B102)-1),B102)","v":"EN-Public Involvement"},0,0,0]
["PDEA-HES-Public Involvement",null,"Direct Costs",null,{"$f":"IF(N102=\"FALSE\",0,ROUND(PDEA_HEU_PUBLIC_INVOLVEMENT_SUB3_DIRECT_NONSALARY_TOTAL,2))","v":0},null,null,{"$f":"IF($H$7=\"\",\"\",IF(N102=\"FALSE\",0,ROUND(PDEA_HEU_PUBLIC_INVOLVEMENT_SUB3_DIRECT_NONSALARY_TOTAL,2)))","v":""},null,null,null,null,null,null,{"$f":"O102","v":"EN-Public Involvement"},0,0,0]
["PDEA-HES-Noise","EN-Noise--SUB1",null,{"$f":"IF(N104=\"FALSE\",0,PDEA_HEU_NOISE_SUB1_MANDAYS)","v":0},{"$f":"IF(N104=\"FALSE\",0,ROUND(PDEA_HEU_NOISE_SUB1_SALARY_TOTAL,2))","v":0},0,{"$f":"IF($H$7=\"\",\"\",IF(N104=\"FALSE\",0,PDEA_HEU_NOISE_SUB1_MANDAYS))","v":""},{"$f":"IF($H$7=\"\",\"\",IF(N104=\"FALSE\",0,ROUND(PDEA_HEU_NOISE_SUB1_SALARY_TOTAL,2)))","v":""},{"$f":"IF(G104=\"\",\"\",IF(N104=\"FALSE\",0,IF(G104=0,0,H104/G104)))","v":""},null,null,null,null,"FALSE",{"$f":"IFERROR(LEFT(B104,FIND(\"--SUB\",B104)-1),B104)","v":"EN-Noise"},0,0,0]
["PDEA-HES-Noise",null,"Direct Costs",null,{"$f":"IF(N104=\"FALSE\",0,ROUND(PDEA_HEU_NOISE_SUB1_DIRECT_NONSALARY_TOTAL,2))","v":0},null,null,{"$f":"IF($H$7=\"\",\"\",IF(N104=\"FALSE\",0,ROUND(PDEA_HEU_NOISE_SUB1_DIRECT_NONSALARY_TOTAL,2)))","v":""},null,null,null,null,null,null,{"$f":"O104","v":"EN-Noise"},0,0,0]
["PDEA-HES-Air Quality","EN-Air Quality--SUB1",null,{"$f":"IF(N106=\"FALSE\",0,PDEA_PLANNING_AIR.QUALITY_SUB1_MANDAYS)","v":0},{"$f":"IF(N106=\"FALSE\",0,ROUND(PDEA_PLANNING_AIR.QUALITY_SUB1_SALARY_TOTAL,2))","v":0},0,{"$f":"IF($H$7=\"\",\"\",IF(N106=\"FALSE\",0,PDEA_PLANNING_AIR.QUALITY_SUB1_MANDAYS))","v":""},{"$f":"IF($H$7=\"\",\"\",IF(N106=\"FALSE\",0,ROUND(PDEA_PLANNING_AIR.QUALITY_SUB1_SALARY_TOTAL,2)))","v":""},{"$f":"IF(G106=\"\",\"\",IF(N106=\"FALSE\",0,IF(G106=0,0,H106/G106)))","v":""},null,null,null,null,"FALSE",{"$f":"IFERROR(LEFT(B106,FIND(\"--SUB\",B106)-1),B106)","v":"EN-Air Quality"},0,0,0]
["PDEA-HES-Air Quality",null,"Direct Costs",null,{"$f":"IF(N106=\"FALSE\",0,ROUND(PDEA_PLANNING_AIR.QUALITY_SUB1_DIRECT_NONSALARY_TOTAL,2))","v":0},null,null,{"$f":"IF($H$7=\"\",\"\",IF(N106=\"FALSE\",0,ROUND(PDEA_PLANNING_AIR.QUALITY_SUB1_DIRECT_NONSALARY_TOTAL,2)))","v":""},null,null,null,null,null,null,{"$f":"O106","v":"EN-Air Quality"},0,0,0]
["PDEA-Planning","EP-Env Policy--SUB1",null,{"$f":"IF(N108=\"FALSE\",0,PDEA_PLANNING_SUB1_MANDAYS)","v":0},{"$f":"IF(N108=\"FALSE\",0,ROUND(PDEA_PLANNING_SUB1_SALARY_TOTAL,2))","v":0},0,{"$f":"IF($H$7=\"\",\"\",IF(N108=\"FALSE\",0,PDEA_PLANNING_SUB1_MANDAYS))","v":""},{"$f":"IF($H$7=\"\",\"\",IF(N108=\"FALSE\",0,ROUND(PDEA_PLANNING_SUB1_SALARY_TOTAL,2)))","v":""},{"$f":"IF(G108=\"\",\"\",IF(N108=\"FALSE\",0,IF(G108=0,0,H108/G108)))","v":""},null,null,null,null,"FALSE",{"$f":"IFERROR(LEFT(B108,FIND(\"--SUB\",B108)-1),B108)","v":"EP-Env Policy"},0,0,0]
["PDEA-Planning",null,"Direct Costs",null,{"$f":"IF(N108=\"FALSE\",0,ROUND(PDEA_PLANNING_DIRECT_NONSALARY_TOTAL_SUB1,2))","v":0},null,null,{"$f":"IF($H$7=\"\",\"\",IF(N108=\"FALSE\",0,ROUND(PDEA_PLANNING_DIRECT_NONSALARY_TOTAL_SUB1,2)))","v":""},null,null,null,null,null,null,{"$f":"O108","v":"EP-Env Policy"},0,0,0]
["PDEA-Planning","EP-Env Policy--SUB2",null,{"$f":"IF(N110=\"FALSE\",0,PDEA_PLANNING_SUB2_MANDAYS)","v":0},{"$f":"IF(N110=\"FALSE\",0,ROUND(PDEA_PLANNING_SUB2_SALARY_TOTAL,2))","v":0},0,{"$f":"IF($H$7=\"\",\"\",IF(N110=\"FALSE\",0,PDEA_PLANNING_SUB2_MANDAYS))","v":""},{"$f":"IF($H$7=\"\",\"\",IF(N110=\"FALSE\",0,ROUND(PDEA_PLANNING_SUB2_SALARY_TOTAL,2)))","v":""},{"$f":"IF(G110=\"\",\"\",IF(N110=\"FALSE\",0,IF(G110=0,0,H110/G110)))","v":""},null,null,null,null,"FALSE",{"$f":"IFERROR(LEFT(B110,FIND(\"--SUB\",B110)-1),B110)","v":"EP-Env Policy"},{"$f":"R110","v":0},{"$f":"R110","v":0},0]
["PDEA-Planning",null,"Direct Costs",null,{"$f":"IF(N110=\"FALSE\",0,ROUND(PDEA_PLANNING_DIRECT_NONSALARY_TOTAL_SUB2,2))","v":0},null,null,{"$f":"IF($H$7=\"\",\"\",IF(N110=\"FALSE\",0,ROUND(PDEA_PLANNING_DIRECT_NONSALARY_TOTAL_SUB2,2)))","v":""},null,null,null,null,null,null,{"$f":"O110","v":"EP-Env Policy"},0,0,0]
["PDEA-Planning","EP-Env Policy--SUB3",null,{"$f":"IF(N112=\"FALSE\",0,PDEA_PLANNING_SUB3_MANDAYS)","v":0},{"$f":"IF(N112=\"FALSE\",0,ROUND(PDEA_PLANNING_SUB3_SALARY_TOTAL,2))","v":0},0,{"$f":"IF($H$7=\"\",\"\",IF(N112=\"FALSE\",0,PDEA_PLANNING_SUB3_MANDAYS))","v":""},{"$f":"IF($H$7=\"\",\"\",IF(N112=\"FALSE\",0,ROUND(PDEA_PLANNING_SUB3_SALARY_TOTAL,2)))","v":""},{"$f":"IF(G112=\"\",\"\",IF(N112=\"FALSE\",0,IF(G112=0,0,H112/G112)))","v":""},null,null,null,null,"FALSE",{"$f":"IFERROR(LEFT(B112,FIND(\"--SUB\",B112)-1),B112)","v":"EP-Env Policy"},0,0,{"$f":"IF($H$7=\"\",E112,H112)","v":0}]
["PDEA-Planning",null,"Direct Costs",null,{"$f":"IF(N112=\"FALSE\",0,ROUND(PDEA_PLANNING_DIRECT_NONSALARY_TOTAL_SUB3,2))","v":0},null,null,{"$f":"IF($H$7=\"\",\"\",IF(N112=\"FALSE\",0,ROUND(PDEA_PLANNING_DIRECT_NONSALARY_TOTAL_SUB3,2)))","v":""},null,null,null,null,null,null,{"$f":"O112","v":"EP-Env Policy"},0,0,0]
["Geotechnical ","GT-Geotechnical--SUB1","(Boring and Lab)",{"$f":"IF(N114=\"FALSE\",0,GEOTECHNICAL_SUB1_MANDAYS)","v":0},{"$f":"IF(N114=\"FALSE\",0,ROUND(GEOTECHNICAL_SUB1_SALARY_TOTAL,2))","v":0},0,{"$f":"IF($H$7=\"\",\"\",IF(N114=\"FALSE\",0,GEOTECHNICAL_SUB1_MANDAYS))","v":""},{"$f":"IF($H$7=\"\",\"\",IF(N114=\"FALSE\",0,ROUND(GEOTECHNICAL_SUB1_SALARY_TOTAL,2)))","v":""},{"$f":"IF(G114=\"\",\"\",IF(N114=\"FALSE\",0,IF(G114=0,0,H114/G114)))","v":""},null,null,null,null,"FALSE",{"$f":"IFERROR(LEFT(B114,FIND(\"--SUB\",B114)-1),B114)","v":"GT-Geotechnical"},0,0,0]
["Geotechnical ",null,"Foundations",null,{"$f":"IF(N114=\"FALSE\",0,ROUND(GEOTECHNICAL_SUB1_DIRECT_NONSALARY_TOTAL,2))","v":0},null,null,{"$f":"IF($H$7=\"\",\"\",IF(N114=\"FALSE\",0,ROUND(GEOTECHNICAL_SUB1_DIRECT_NONSALARY_TOTAL,2)))","v":""},null,null,null,null,null,null,{"$f":"O114","v":"GT-Geotechnical"},0,0,0]
["Hydraulics","HY-Hydraulics--SUB1",null,{"$f":"IF(N116=\"FALSE\",0,HYDRAULICS_SUB1_MANDAYS)","v":0},{"$f":"IF(N116=\"FALSE\",0,ROUND(HYDRAULICS_SUB1_SALARY_TOTAL,2))","v":0},{"$f":"IF(N116=\"FALSE\",0,IF(D116=0,0,E116/D116))","v":0},{"$f":"IF($H$7=\"\",\"\",IF(N116=\"FALSE\",0,HYDRAULICS_SUB1_MANDAYS))","v":""},{"$f":"IF($H$7=\"\",\"\",IF(N116=\"FALSE\",0,ROUND(HYDRAULICS_SUB1_SALARY_TOTAL,2)))","v":""},{"$f":"IF(G116=\"\",\"\",IF(N116=\"FALSE\",0,IF(G116=0,0,H116/G116)))","v":""},null,null,null,null,"FALSE",{"$f":"IFERROR(LEFT(B116,FIND(\"--SUB\",B116)-1),B116)","v":"HY-Hydraulics"},{"$f":"IF(E116=0,0,IF(H116=\"\",E116*(('Hydraulics-Sub1'!P84/('Hydraulics-Sub1'!P84+'Hydraulics-Sub1'!P113))),H38*(('Hydraulics-Sub1'!P84/('Hydraulics-Sub1'!P84+'Hydraulics-Sub1'!P113)))))","v":0},{"$f":"IF(E116=0,0,IF(H116=\"\",E116*(('Hydraulics-Sub1'!P113/('Hydraulics-Sub1'!P84+'Hydraulics-Sub1'!P113))),H116*(('Hydraulics-Sub1'!P113/('Hydraulics-Sub1'!P84+'Hydraulics-Sub1'!P113)))))","v":0},0]
["Hydraulics",null,"Direct Costs",null,{"$f":"IF(N116=\"FALSE\",0,ROUND(HYDRAULICS_SUB1_DIRECT_NONSALARY_TOTAL,2))","v":0},null,null,{"$f":"IF($H$7=\"\",\"\",IF(N116=\"FALSE\",0,(ROUND(HYDRAULICS_SUB1_DIRECT_NONSALARY_TOTAL,2))))","v":""},null,null,null,null,null,null,{"$f":"O116","v":"HY-Hydraulics"},0,0,0]
["Public Transporation","IM-Public Transp--SUB1",null,{"$f":"IF(N118=\"FALSE\",0,PUBLIC.TRANSPORTATION.SUB1_MANDAYS)","v":0},{"$f":"IF(N118=\"FALSE\",0,ROUND(PUBLIC.TRANSPORTATION.SUB1_SALARY_TOTAL,2))","v":0},0,{"$f":"IF($H$7=\"\",\"\",IF(N118=\"FALSE\",0,PUBLIC.TRANSPORTATION.SUB1_MANDAYS))","v":""},{"$f":"IF($H$7=\"\",\"\",IF(N118=\"FALSE\",0,ROUND(PUBLIC.TRANSPORTATION.SUB1_SALARY_TOTAL,2)))","v":""},{"$f":"IF(G118=\"\",\"\",IF(N118=\"FALSE\",0,IF(G118=0,0,H118/G118)))","v":""},null,null,null,null,"FALSE",{"$f":"IFERROR(LEFT(B118,FIND(\"--SUB\",B118)-1),B118)","v":"IM-Public Transp"},0,0,0]
["Public Transporation",null,"Direct Costs",null,{"$f":"IF(N118=\"FALSE\",0,ROUND(PUBLIC.TRANSPORTATION.SUB1_DIRECT_NONSALARY_TOTAL,2))","v":0},null,null,{"$f":"IF($H$7=\"\",\"\",IF(N118=\"FALSE\",0,ROUND(PUBLIC.TRANSPORTATION.SUB1_DIRECT_NONSALARY_TOTAL,2)))","v":""},null,null,null,null,null,null,{"$f":"O118","v":"IM-Public Transp"},0,0,0]
["Public Transporation","IM-Public Transp--SUB2",null,{"$f":"IF(N120=\"FALSE\",0,PUBLIC.TRANSPORTATION.SUB2_MANDAYS)","v":0},{"$f":"IF(N120=\"FALSE\",0,ROUND(PUBLIC.TRANSPORTATION.SUB2_SALARY_TOTAL,2))","v":0},0,{"$f":"IF($H$7=\"\",\"\",IF(N120=\"FALSE\",0,PUBLIC.TRANSPORTATION.SUB2_MANDAYS))","v":""},{"$f":"IF($H$7=\"\",\"\",IF(N120=\"FALSE\",0,ROUND(PUBLIC.TRANSPORTATION.SUB2_SALARY_TOTAL,2)))","v":""},{"$f":"IF(G120=\"\",\"\",IF(N120=\"FALSE\",0,IF(G120=0,0,H120/G120)))","v":""},null,null,null,null,"FALSE",{"$f":"IFERROR(LEFT(B120,FIND(\"--SUB\",B120)-1),B120)","v":"IM-Public Transp"},0,0,0]
["Public Transporation",null,"Direct Costs",null,{"$f":"IF(N120=\"FALSE\",0,ROUND(PUBLIC.TRANSPORTATION.SUB2_DIRECT_NONSALARY_TOTAL,2))","v":0},null,null,{"$f":"IF($H$7=\"\",\"\",IF(N120=\"FALSE\",0,ROUND(PUBLIC.TRANSPORTATION.SUB2_DIRECT_NONSALARY_TOTAL,2)))","v":""},null,null,null,null,null,null,{"$f":"O120","v":"IM-Public Transp"},0,0,0]
["Public Transporation","IM-Public Transp--SUB3",null,{"$f":"IF(N122=\"FALSE\",0,PUBLIC.TRANSPORTATION.SUB3_MANDAYS)","v":0},{"$f":"IF(N122=\"FALSE\",0,ROUND(PUBLIC.TRANSPORTATION.SUB3_SALARY_TOTAL,2))","v":0},0,{"$f":"IF($H$7=\"\",\"\",IF(N122=\"FALSE\",0,PUBLIC.TRANSPORTATION.SUB3_MANDAYS))","v":""},{"$f":"IF($H$7=\"\",\"\",IF(N122=\"FALSE\",0,ROUND(PUBLIC.TRANSPORTATION.SUB3_SALARY_TOTAL,2)))","v":""},{"$f":"IF(G122=\"\",\"\",IF(N122=\"FALSE\",0,IF(G122=0,0,H122/G122)))","v":""},null,null,null,null,"FALSE",{"$f":"IFERROR(LEFT(B122,FIND(\"--SUB\",B122)-1),B122)","v":"IM-Public Transp"},0,0,0]
["Public Transporation",null,"Direct Costs",null,{"$f":"IF(N122=\"FALSE\",0,ROUND(PUBLIC.TRANSPORTATION.SUB3_DIRECT_NONSALARY_TOTAL,2))","v":0},null,null,{"$f":"IF($H$7=\"\",\"\",IF(N122=\"FALSE\",0,ROUND(PUBLIC.TRANSPORTATION.SUB3_DIRECT_NONSALARY_TOTAL,2)))","v":""},null,null,null,null,null,null,{"$f":"O122","v":"IM-Public Transp"},0,0,0]
["Bicycle and Pedestrian","IM-Bike Ped--SUB1",null,{"$f":"IF(N124=\"FALSE\",0,BIKEANDPED.SUB1_MANDAYS)","v":0},{"$f":"IF(N124=\"FALSE\",0,ROUND(BIKEANDPED.SUB1_SALARY_TOTAL,2))","v":0},0,{"$f":"IF($H$7=\"\",\"\",IF(N124=\"FALSE\",0,BIKEANDPED.SUB1_MANDAYS))","v":""},{"$f":"IF($H$7=\"\",\"\",IF(N124=\"FALSE\",0,ROUND(BIKEANDPED.SUB1_SALARY_TOTAL,2)))","v":""},{"$f":"IF(G124=\"\",\"\",IF(N124=\"FALSE\",0,IF(G124=0,0,H124/G124)))","v":""},null,null,null,null,"FALSE",{"$f":"IFERROR(LEFT(B124,FIND(\"--SUB\",B124)-1),B124)","v":"IM-Bike Ped"},0,0,0]
["Bicycle and Pedestrian",null,"Direct Costs",null,{"$f":"IF(N124=\"FALSE\",0,ROUND(BIKEANDPED.SUB1_DIRECT_NONSALARY_TOTAL,2))","v":0},null,null,{"$f":"IF($H$7=\"\",\"\",IF(N124=\"FALSE\",0,ROUND(BIKEANDPED.SUB1_DIRECT_NONSALARY_TOTAL,2)))","v":""},null,null,null,null,null,null,{"$f":"O124","v":"IM-Bike Ped"},0,0,0]
["Bicycle and Pedestrian","IM-Bike Ped--SUB2",null,{"$f":"IF(N126=\"FALSE\",0,BIKEANDPED.SUB2_MANDAYS)","v":0},{"$f":"IF(N126=\"FALSE\",0,ROUND(BIKEANDPED.SUB2_SALARY_TOTAL,2))","v":0},0,{"$f":"IF($H$7=\"\",\"\",IF(N126=\"FALSE\",0,BIKEANDPED.SUB2_MANDAYS))","v":""},{"$f":"IF($H$7=\"\",\"\",IF(N126=\"FALSE\",0,ROUND(BIKEANDPED.SUB2_SALARY_TOTAL,2)))","v":""},{"$f":"IF(G126=\"\",\"\",IF(N126=\"FALSE\",0,IF(G126=0,0,H126/G126)))","v":""},null,null,null,null,"FALSE",{"$f":"IFERROR(LEFT(B126,FIND(\"--SUB\",B126)-1),B126)","v":"IM-Bike Ped"},0,0,0]
["Bicycle and Pedestrian",null,"Direct Costs",null,{"$f":"IF(N126=\"FALSE\",0,ROUND(BIKEANDPED.SUB2_DIRECT_NONSALARY_TOTAL,2))","v":0},null,null,{"$f":"IF($H$7=\"\",\"\",IF(N126=\"FALSE\",0,ROUND(BIKEANDPED.SUB2_DIRECT_NONSALARY_TOTAL,2)))","v":""},null,null,null,null,null,null,{"$f":"O126","v":"IM-Bike Ped"},0,0,0]
["Bicycle and Pedestrian","IM-Bike Ped--SUB3",null,{"$f":"IF(N128=\"FALSE\",0,BIKEANDPED.SUB3_MANDAYS)","v":0},{"$f":"IF(N128=\"FALSE\",0,ROUND(BIKEANDPED.SUB3_SALARY_TOTAL,2))","v":0},0,{"$f":"IF($H$7=\"\",\"\",IF(N128=\"FALSE\",0,BIKEANDPED.SUB3_MANDAYS))","v":""},{"$f":"IF($H$7=\"\",\"\",IF(N128=\"FALSE\",0,ROUND(BIKEANDPED.SUB3_SALARY_TOTAL,2)))","v":""},{"$f":"IF(G128=\"\",\"\",IF(N128=\"FALSE\",0,IF(G128=0,0,H128/G128)))","v":""},null,null,null,null,"FALSE",{"$f":"IFERROR(LEFT(B128,FIND(\"--SUB\",B128)-1),B128)","v":"IM-Bike Ped"},0,0,0]
["Bicycle and Pedestrian",null,"Direct Costs",null,{"$f":"IF(N128=\"FALSE\",0,ROUND(BIKEANDPED.SUB3_DIRECT_NONSALARY_TOTAL,2))","v":0},null,null,{"$f":"IF($H$7=\"\",\"\",IF(N128=\"FALSE\",0,ROUND(BIKEANDPED.SUB3_DIRECT_NONSALARY_TOTAL,2)))","v":""},null,null,null,null,null,null,{"$f":"O128","v":"IM-Bike Ped"},0,0,0]
["Bicycle and Pedestrian","IM-Bike Ped--SUB4",null,{"$f":"IF(N130=\"FALSE\",0,BIKEANDPED.SUB4_MANDAYS)","v":0},{"$f":"IF(N130=\"FALSE\",0,ROUND(BIKEANDPED.SUB4_SALARY_TOTAL,2))","v":0},0,{"$f":"IF($H$7=\"\",\"\",IF(N130=\"FALSE\",0,BIKEANDPED.SUB4_MANDAYS))","v":""},{"$f":"IF($H$7=\"\",\"\",IF(N130=\"FALSE\",0,ROUND(BIKEANDPED.SUB4_SALARY_TOTAL,2)))","v":""},{"$f":"IF(G130=\"\",\"\",IF(N130=\"FALSE\",0,IF(G130=0,0,H130/G130)))","v":""},null,null,null,null,"FALSE",{"$f":"IFERROR(LEFT(B130,FIND(\"--SUB\",B130)-1),B130)","v":"IM-Bike Ped"},0,0,0]
["Bicycle and Pedestrian",null,"Direct Costs",null,{"$f":"IF(N130=\"FALSE\",0,ROUND(BIKEANDPED.SUB4_DIRECT_NONSALARY_TOTAL,2))","v":0},null,null,{"$f":"IF($H$7=\"\",\"\",IF(N130=\"FALSE\",0,ROUND(BIKEANDPED.SUB4_DIRECT_NONSALARY_TOTAL,2)))","v":""},null,null,null,null,null,null,{"$f":"O130","v":"IM-Bike Ped"},0,0,0]
["Location Surveys","LS-Location Surveys--SUB1",null,{"$f":"IF(N132=\"FALSE\",0,LOCATION.SURVEYS_SUB1_MANDAYS)","v":0},{"$f":"IF(N132=\"FALSE\",0,ROUND(LOCATION.SURVEYS_SUB1_SALARY_TOTAL,2))","v":0},0,{"$f":"IF($H$7=\"\",\"\",IF(N132=\"FALSE\",0,LOCATION.SURVEYS_SUB1_MANDAYS))","v":""},{"$f":"IF($H$7=\"\",\"\",IF(N132=\"FALSE\",0,ROUND(LOCATION.SURVEYS_SUB1_SALARY_TOTAL,2)))","v":""},{"$f":"IF(G132=\"\",\"\",IF(N132=\"FALSE\",0,IF(G132=0,0,H132/G132)))","v":""},null,null,null,null,"FALSE",{"$f":"IFERROR(LEFT(B132,FIND(\"--SUB\",B132)-1),B132)","v":"LS-Location Surveys"},0,0,0]
["Location Surveys",null,"Direct Costs",null,{"$f":"IF(N132=\"FALSE\",0,ROUND(LOCATION.SURVEYS_SUB1_DIRECT_NONSALARY_TOTAL,2))","v":0},null,null,{"$f":"IF($H$7=\"\",\"\",IF(N132=\"FALSE\",0,ROUND(LOCATION.SURVEYS_SUB1_DIRECT_NONSALARY_TOTAL,2)))","v":""},null,null,null,null,null,null,{"$f":"O132","v":"LS-Location Surveys"},0,0,0]
["Location Surveys","LS-Location Surveys--SUB2",null,{"$f":"IF(N134=\"FALSE\",0,LOCATION.SURVEYS_SUB2_MANDAYS)","v":0},{"$f":"IF(N134=\"FALSE\",0,ROUND(LOCATION.SURVEYS_SUB2_SALARY_TOTAL,2))","v":0},0,{"$f":"IF($H$7=\"\",\"\",IF(N134=\"FALSE\",0,LOCATION.SURVEYS_SUB2_MANDAYS))","v":""},{"$f":"IF($H$7=\"\",\"\",IF(N134=\"FALSE\",0,ROUND(LOCATION.SURVEYS_SUB2_SALARY_TOTAL,2)))","v":""},{"$f":"IF(G134=\"\",\"\",IF(N134=\"FALSE\",0,IF(G134=0,0,H134/G134)))","v":""},null,null,null,null,"FALSE",{"$f":"IFERROR(LEFT(B134,FIND(\"--SUB\",B134)-1),B134)","v":"LS-Location Surveys"},0,0,0]
["Location Surveys",null,"Direct Costs",null,{"$f":"IF(N134=\"FALSE\",0,ROUND(LOCATION.SURVEYS_SUB2_DIRECT_NONSALARY_TOTAL,2))","v":0},null,null,{"$f":"IF($H$7=\"\",\"\",IF(N134=\"FALSE\",0,ROUND(LOCATION.SURVEYS_SUB2_DIRECT_NONSALARY_TOTAL,2)))","v":""},null,null,null,null,null,null,{"$f":"O134","v":"LS-Location Surveys"},0,0,0]
["SUE","LS-SUE--SUB1",null,{"$f":"IF(N136=\"FALSE\",0,SUE_SUB1_MANDAYS)","v":0},{"$f":"IF(N136=\"FALSE\",0,ROUND(SUE_SUB1_SALARY_TOTAL,2))","v":0},0,{"$f":"IF($H$7=\"\",\"\",IF(N136=\"FALSE\",0,SUE_SUB1_MANDAYS))","v":""},{"$f":"IF($H$7=\"\",\"\",IF(N136=\"FALSE\",0,ROUND(SUE_SUB1_SALARY_TOTAL,2)))","v":""},{"$f":"IF(G136=\"\",\"\",IF(N136=\"FALSE\",0,IF(G136=0,0,H136/G136)))","v":""},null,null,null,null,"FALSE",{"$f":"IFERROR(LEFT(B136,FIND(\"--SUB\",B136)-1),B136)","v":"LS-SUE"},0,0,0]
["SUE",null,"Direct Costs",null,{"$f":"IF(N136=\"FALSE\",0,ROUND(SUE_SUB1_DIRECT_NONSALARY_TOTAL,2))","v":0},null,null,{"$f":"IF($H$7=\"\",\"\",IF(N136=\"FALSE\",0,ROUND(SUE_SUB1_DIRECT_NONSALARY_TOTAL,2)))","v":""},null,null,null,null,null,null,{"$f":"O136","v":"LS-SUE"},0,0,0]
["SUE","LS-SUE--SUB2",null,{"$f":"IF(N138=\"FALSE\",0,SUE_SUB2_MANDAYS)","v":0},{"$f":"IF(N138=\"FALSE\",0,ROUND(SUE_SUB2_SALARY_TOTAL,2))","v":0},0,{"$f":"IF($H$7=\"\",\"\",IF(N138=\"FALSE\",0,SUE_SUB2_MANDAYS))","v":""},{"$f":"IF($H$7=\"\",\"\",IF(N138=\"FALSE\",0,ROUND(SUE_SUB2_SALARY_TOTAL,2)))","v":""},{"$f":"IF(G138=\"\",\"\",IF(N138=\"FALSE\",0,IF(G138=0,0,H138/G138)))","v":""},null,null,null,null,"FALSE",{"$f":"IFERROR(LEFT(B138,FIND(\"--SUB\",B138)-1),B138)","v":"LS-SUE"},0,0,0]
["SUE",null,"Direct Costs",null,{"$f":"IF(N138=\"FALSE\",0,ROUND(SUE_SUB2_DIRECT_NONSALARY_TOTAL,2))","v":0},null,null,{"$f":"IF($H$7=\"\",\"\",IF(N138=\"FALSE\",0,ROUND(SUE_SUB2_DIRECT_NONSALARY_TOTAL,2)))","v":""},null,null,null,null,null,null,{"$f":"O138","v":"LS-SUE"},0,0,0]
["Final Pavement Marking & Markers","PD-Final Pavement Marking & Markers--SUB1",null,{"$f":"IF(N140=\"FALSE\",0,PAVEMENT.MARKING_SUB1_MANDAYS)","v":0},{"$f":"IF(N140=\"FALSE\",0,ROUND(PAVEMENT.MARKING_SUB1_SALARY_TOTAL,2))","v":0},0,{"$f":"IF($H$7=\"\",\"\",IF(N140=\"FALSE\",0,PAVEMENT.MARKING_SUB1_MANDAYS))","v":""},{"$f":"IF($H$7=\"\",\"\",IF(N140=\"FALSE\",0,ROUND(PAVEMENT.MARKING_SUB1_SALARY_TOTAL,2)))","v":""},{"$f":"IF(G140=\"\",\"\",IF(N140=\"FALSE\",0,IF(G140=0,0,H140/G140)))","v":""},null,null,null,null,"FALSE",{"$f":"IFERROR(LEFT(B140,FIND(\"--SUB\",B140)-1),B140)","v":"PD-Final Pavement Marking & Markers"},0,0,0]
["Final Pavement Marking & Markers",null,"Direct Costs",null,{"$f":"IF(N140=\"FALSE\",0,ROUND(PAVEMENT.MARKING_SUB1_DIRECT_NONSALARY_TOTAL,2))","v":0},null,null,{"$f":"IF($H$7=\"\",\"\",IF(N140=\"FALSE\",0,ROUND(PAVEMENT.MARKING_SUB1_DIRECT_NONSALARY_TOTAL,2)))","v":""},null,null,null,null,null,null,{"$f":"O140","v":"PD-Final Pavement Marking & Markers"},0,0,0]
["Roadway","RD-Roadway--SUB1",null,{"$f":"IF(N142=\"FALSE\",0,ROADWAY_SUB1_MANDAYS)","v":0},{"$f":"IF(N142=\"FALSE\",0,ROUND(ROADWAY_SUB1_SALARY_TOTAL,2))","v":0},0,{"$f":"IF($H$7=\"\",\"\",IF(N142=\"FALSE\",0,ROADWAY_SUB1_MANDAYS))","v":""},{"$f":"IF($H$7=\"\",\"\",IF(N142=\"FALSE\",0,ROUND(ROADWAY_SUB1_SALARY_TOTAL,2)))","v":""},{"$f":"IF(G142=\"\",\"\",IF(N142=\"FALSE\",0,IF(G142=0,0,H142/G142)))","v":""},null,null,null,null,"FALSE",{"$f":"IFERROR(LEFT(B142,FIND(\"--SUB\",B142)-1),B142)","v":"RD-Roadway"},{"$f":"'RD-CLASS-Sub1'!H95","v":0},{"$f":"'RD-CLASS-Sub1'!H118","v":0},0]
["Roadway",null,"Direct Costs",null,{"$f":"IF(N142=\"FALSE\",0,ROUND(ROADWAY_SUB1_DIRECT_NONSALARY_TOTAL,2))","v":0},null,null,{"$f":"IF($H$7=\"\",\"\",IF(N142=\"FALSE\",0,ROUND(ROADWAY_SUB1_DIRECT_NONSALARY_TOTAL,2)))","v":""},null,null,null,null,null,null,{"$f":"O142","v":"RD-Roadway"},0,{"$f":"'RD-CLASS-Sub1'!H119","v":0},0]
["Roadway","RD-Roadway--SUB2",null,{"$f":"IF(N144=\"FALSE\",0,ROADWAY_SUB2_MANDAYS)","v":0},{"$f":"IF(N144=\"FALSE\",0,ROUND(ROADWAY_SUB2_SALARY_TOTAL,2))","v":0},0,{"$f":"IF($H$7=\"\",\"\",IF(N144=\"FALSE\",0,ROADWAY_SUB2_MANDAYS))","v":""},{"$f":"IF($H$7=\"\",\"\",IF(N144=\"FALSE\",0,ROUND(ROADWAY_SUB2_SALARY_TOTAL,2)))","v":""},{"$f":"IF(G144=\"\",\"\",IF(N144=\"FALSE\",0,IF(G144=0,0,H144/G144)))","v":""},null,null,null,null,"FALSE",{"$f":"IFERROR(LEFT(B144,FIND(\"--SUB\",B144)-1),B144)","v":"RD-Roadway"},{"$f":"'RD-CLASS-Sub2'!H95","v":0},{"$f":"'RD-CLASS-Sub2'!H118","v":0},0]
["Roadway",null,"Direct Costs",null,{"$f":"IF(N144=\"FALSE\",0,ROUND(ROADWAY_SUB2_DIRECT_NONSALARY_TOTAL,2))","v":0},null,null,{"$f":"IF($H$7=\"\",\"\",IF(N144=\"FALSE\",0,ROUND(ROADWAY_SUB2_DIRECT_NONSALARY_TOTAL,2)))","v":""},null,null,null,null,null,null,{"$f":"O144","v":"RD-Roadway"},0,{"$f":"'RD-CLASS-Sub2'!H119","v":0},0]
["Erosion Control","RE-Erosion Control--SUB1",null,{"$f":"IF(N146=\"FALSE\",0,EROSION.CONTROL_SUB1_MANDAYS)","v":0},{"$f":"IF(N146=\"FALSE\",0,ROUND(EROSION.CONTROL_SUB1_SALARY_TOTAL,2))","v":0},{"$f":"IF(N146=\"FALSE\",0,IF(D146=0,0,E146/D146))","v":0},{"$f":"IF($H$7=\"\",\"\",IF(N146=\"FALSE\",0,EROSION.CONTROL_MANDAYS))","v":""},{"$f":"IF($H$7=\"\",\"\",IF(N146=\"FALSE\",0,ROUND(EROSION.CONTROL_SALARY_TOTAL,2)))","v":""},{"$f":"IF(G146=\"\",\"\",IF(N146=\"FALSE\",0,IF(G146=0,0,H146/G146)))","v":""},null,null,null,null,"FALSE",{"$f":"IFERROR(LEFT(B146,FIND(\"--SUB\",B146)-1),B146)","v":"RE-Erosion Control"},{"$f":"R146","v":0},{"$f":"R146","v":0},0]
["Erosion Control",null,"Direct Costs",null,{"$f":"IF(N146=\"FALSE\",0,ROUND(EROSION.CONTROL_SUB1_DIRECT_NONSALARY_TOTAL,2))","v":0},null,null,{"$f":"IF($H$7=\"\",\"\",IF(N146=\"FALSE\",0,ROUND(EROSION.CONTROL_DIRECT_NONSALARY_TOTAL,2)))","v":""},null,null,null,null,null,null,{"$f":"O146","v":"RE-Erosion Control"},0,0,0]
["Rail","RR-Rail--SUB1",null,{"$f":"IF(N148=\"FALSE\",0,RAIL.SUB1_MANDAYS)","v":0},{"$f":"IF(N148=\"FALSE\",0,ROUND(RAIL.SUB1_SALARY_TOTAL,2))","v":0},0,{"$f":"IF($H$7=\"\",\"\",IF(N148=\"FALSE\",0,RAIL.SUB1_MANDAYS))","v":""},{"$f":"IF($H$7=\"\",\"\",IF(N148=\"FALSE\",0,ROUND(RAIL.SUB1_SALARY_TOTAL,2)))","v":""},{"$f":"IF(G148=\"\",\"\",IF(N148=\"FALSE\",0,IF(G148=0,0,H148/G148)))","v":""},null,null,null,null,"FALSE",{"$f":"IFERROR(LEFT(B148,FIND(\"--SUB\",B148)-1),B148)","v":"RR-Rail"},{"$f":"R148","v":0},{"$f":"R148","v":0},{"$f":"IF($H$7=\"\",E148,H148)","v":0}]
["Rail",null,"Direct Costs",null,{"$f":"IF(N148=\"FALSE\",0,ROUND(RAIL.SUB1_DIRECT_NONSALARY_TOTAL,2))","v":0},null,null,{"$f":"IF($H$7=\"\",\"\",IF(N148=\"FALSE\",0,ROUND(RAIL.SUB1_DIRECT_NONSALARY_TOTAL,2)))","v":""},null,null,null,null,null,null,{"$f":"O148","v":"RR-Rail"},0,0,0]
["Rail","RR-Rail--SUB2",null,{"$f":"IF(N150=\"FALSE\",0,RAIL.SUB2_MANDAYS)","v":0},{"$f":"IF(N150=\"FALSE\",0,ROUND(RAIL.SUB2_SALARY_TOTAL,2))","v":0},{"$f":"IF(N150=\"FALSE\",0,IF(D150=0,0,E150/D150))","v":0},{"$f":"IF($H$7=\"\",\"\",IF(N150=\"FALSE\",0,RAIL.SUB2_MANDAYS))","v":""},{"$f":"IF($H$7=\"\",\"\",IF(N150=\"FALSE\",0,ROUND(RAIL.SUB2_SALARY_TOTAL,2)))","v":""},{"$f":"IF(G150=\"\",\"\",IF(N150=\"FALSE\",0,IF(G150=0,0,H150/G150)))","v":""},null,null,null,null,"FALSE",{"$f":"IFERROR(LEFT(B150,FIND(\"--SUB\",B150)-1),B150)","v":"RR-Rail"},0,0,0]
["Rail",null,"Direct Costs",null,{"$f":"IF(N150=\"FALSE\",0,ROUND(RAIL.SUB2_DIRECT_NONSALARY_TOTAL,2))","v":0},null,null,{"$f":"IF($H$7=\"\",\"\",IF(N150=\"FALSE\",0,ROUND(RAIL.SUB2_DIRECT_NONSALARY_TOTAL,2)))","v":""},null,null,null,null,null,null,{"$f":"O150","v":"RR-Rail"},0,0,0]
["Rail","RR-Rail--SUB3",null,{"$f":"IF(N152=\"FALSE\",0,RAIL.SUB3_MANDAYS)","v":0},{"$f":"IF(N152=\"FALSE\",0,ROUND(RAIL.SUB3_SALARY_TOTAL,2))","v":0},0,{"$f":"IF($H$7=\"\",\"\",IF(N152=\"FALSE\",0,RAIL.SUB3_MANDAYS))","v":""},{"$f":"IF($H$7=\"\",\"\",IF(N152=\"FALSE\",0,ROUND(RAIL.SUB3_SALARY_TOTAL,2)))","v":""},{"$f":"IF(G152=\"\",\"\",IF(N152=\"FALSE\",0,IF(G152=0,0,H152/G152)))","v":""},null,null,null,null,"FALSE",{"$f":"IFERROR(LEFT(B152,FIND(\"--SUB\",B152)-1),B152)","v":"RR-Rail"},0,0,0]
["Rail",null,"Direct Costs",null,{"$f":"IF(N152=\"FALSE\",0,ROUND(RAIL.SUB3_DIRECT_NONSALARY_TOTAL,2))","v":0},null,null,{"$f":"IF($H$7=\"\",\"\",IF(N152=\"FALSE\",0,ROUND(RAIL.SUB3_DIRECT_NONSALARY_TOTAL,2)))","v":""},null,null,null,null,null,null,{"$f":"O152","v":"RR-Rail"},0,0,0]
["Rail","RR-Rail--SUB4",null,{"$f":"IF(N154=\"FALSE\",0,RAIL.SUB4_MANDAYS)","v":0},{"$f":"IF(N154=\"FALSE\",0,ROUND(RAIL.SUB4_SALARY_TOTAL,2))","v":0},0,{"$f":"IF($H$7=\"\",\"\",IF(N154=\"FALSE\",0,RAIL.SUB4_MANDAYS))","v":""},{"$f":"IF($H$7=\"\",\"\",IF(N154=\"FALSE\",0,ROUND(RAIL.SUB4_SALARY_TOTAL,2)))","v":""},{"$f":"IF(G154=\"\",\"\",IF(N154=\"FALSE\",0,IF(G154=0,0,H154/G154)))","v":""},null,null,null,null,"FALSE",{"$f":"IFERROR(LEFT(B154,FIND(\"--SUB\",B154)-1),B154)","v":"RR-Rail"},0,0,0]
["Rail",null,"Direct Costs",null,{"$f":"IF(N154=\"FALSE\",0,ROUND(RAIL.SUB4_DIRECT_NONSALARY_TOTAL,2))","v":0},null,null,{"$f":"IF($H$7=\"\",\"\",IF(N154=\"FALSE\",0,ROUND(RAIL.SUB4_DIRECT_NONSALARY_TOTAL,2)))","v":""},null,null,null,null,null,null,{"$f":"O154","v":"RR-Rail"},0,0,0]
["Rail","RR-Rail--SUB5",null,{"$f":"IF(N156=\"FALSE\",0,RAIL.SUB5_MANDAYS)","v":0},{"$f":"IF(N156=\"FALSE\",0,ROUND(RAIL.SUB5_SALARY_TOTAL,2))","v":0},0,{"$f":"IF($H$7=\"\",\"\",IF(N156=\"FALSE\",0,RAIL.SUB5_MANDAYS))","v":""},{"$f":"IF($H$7=\"\",\"\",IF(N156=\"FALSE\",0,ROUND(RAIL.SUB5_SALARY_TOTAL,2)))","v":""},{"$f":"IF(G156=\"\",\"\",IF(N156=\"FALSE\",0,IF(G156=0,0,H156/G156)))","v":""},null,null,null,null,"FALSE",{"$f":"IFERROR(LEFT(B156,FIND(\"--SUB\",B156)-1),B156)","v":"RR-Rail"},0,0,0]
["Rail",null,"Direct Costs",null,{"$f":"IF(N156=\"FALSE\",0,ROUND(RAIL.SUB5_DIRECT_NONSALARY_TOTAL,2))","v":0},null,null,{"$f":"IF($H$7=\"\",\"\",IF(N156=\"FALSE\",0,ROUND(RAIL.SUB5_DIRECT_NONSALARY_TOTAL,2)))","v":""},null,null,null,null,null,null,{"$f":"O156","v":"RR-Rail"},0,0,0]
["Rail","RR-Rail--SUB6",null,{"$f":"IF(N158=\"FALSE\",0,RAIL.SUB6_MANDAYS)","v":0},{"$f":"IF(N158=\"FALSE\",0,ROUND(RAIL.SUB6_SALARY_TOTAL,2))","v":0},0,{"$f":"IF($H$7=\"\",\"\",IF(N158=\"FALSE\",0,RAIL.SUB6_MANDAYS))","v":""},{"$f":"IF($H$7=\"\",\"\",IF(N158=\"FALSE\",0,ROUND(RAIL.SUB6_SALARY_TOTAL,2)))","v":""},{"$f":"IF(G158=\"\",\"\",IF(N158=\"FALSE\",0,IF(G158=0,0,H158/G158)))","v":""},null,null,null,null,"FALSE",{"$f":"IFERROR(LEFT(B158,FIND(\"--SUB\",B158)-1),B158)","v":"RR-Rail"},0,0,0]
["Rail",null,"Direct Costs",null,{"$f":"IF(N158=\"FALSE\",0,ROUND(RAIL.SUB6_DIRECT_NONSALARY_TOTAL,2))","v":0},null,null,{"$f":"IF($H$7=\"\",\"\",IF(N158=\"FALSE\",0,ROUND(RAIL.SUB6_DIRECT_NONSALARY_TOTAL,2)))","v":""},null,null,null,null,null,null,{"$f":"O158","v":"RR-Rail"},0,0,0]
["Rail","RR-Rail--SUB7",null,{"$f":"IF(N160=\"FALSE\",0,RAIL.SUB7_MANDAYS)","v":0},{"$f":"IF(N160=\"FALSE\",0,ROUND(RAIL.SUB7_SALARY_TOTAL,2))","v":0},0,{"$f":"IF($H$7=\"\",\"\",IF(N160=\"FALSE\",0,RAIL.SUB7_MANDAYS))","v":""},{"$f":"IF($H$7=\"\",\"\",IF(N160=\"FALSE\",0,ROUND(RAIL.SUB7_SALARY_TOTAL,2)))","v":""},{"$f":"IF(G160=\"\",\"\",IF(N160=\"FALSE\",0,IF(G160=0,0,H160/G160)))","v":""},null,null,null,null,"FALSE",{"$f":"IFERROR(LEFT(B160,FIND(\"--SUB\",B160)-1),B160)","v":"RR-Rail"},0,0,0]
["Rail",null,"Direct Costs",null,{"$f":"IF(N160=\"FALSE\",0,ROUND(RAIL.SUB7_DIRECT_NONSALARY_TOTAL,2))","v":0},null,null,{"$f":"IF($H$7=\"\",\"\",IF(N160=\"FALSE\",0,ROUND(RAIL.SUB7_DIRECT_NONSALARY_TOTAL,2)))","v":""},null,null,null,null,null,null,{"$f":"O160","v":"RR-Rail"},0,0,0]
["Rail","RR-Rail--SUB8",null,{"$f":"IF(N162=\"FALSE\",0,RAIL.SUB8_MANDAYS)","v":0},{"$f":"IF(N162=\"FALSE\",0,ROUND(RAIL.SUB8_SALARY_TOTAL,2))","v":0},0,{"$f":"IF($H$7=\"\",\"\",IF(N162=\"FALSE\",0,RAIL.SUB8_MANDAYS))","v":""},{"$f":"IF($H$7=\"\",\"\",IF(N162=\"FALSE\",0,ROUND(RAIL.SUB8_SALARY_TOTAL,2)))","v":""},{"$f":"IF(G162=\"\",\"\",IF(N162=\"FALSE\",0,IF(G162=0,0,H162/G162)))","v":""},null,null,null,null,"FALSE",{"$f":"IFERROR(LEFT(B162,FIND(\"--SUB\",B162)-1),B162)","v":"RR-Rail"},0,0,0]
["Rail",null,"Direct Costs",null,{"$f":"IF(N162=\"FALSE\",0,ROUND(RAIL.SUB8_DIRECT_NONSALARY_TOTAL,2))","v":0},null,null,{"$f":"IF($H$7=\"\",\"\",IF(N162=\"FALSE\",0,ROUND(RAIL.SUB8_DIRECT_NONSALARY_TOTAL,2)))","v":""},null,null,null,null,null,null,{"$f":"O162","v":"RR-Rail"},0,0,0]
["Rail","RR-Rail--SUB9",null,{"$f":"IF(N164=\"FALSE\",0,RAIL.SUB9_MANDAYS)","v":0},{"$f":"IF(N164=\"FALSE\",0,ROUND(RAIL.SUB9_SALARY_TOTAL,2))","v":0},0,{"$f":"IF($H$7=\"\",\"\",IF(N164=\"FALSE\",0,RAIL.SUB9_MANDAYS))","v":""},{"$f":"IF($H$7=\"\",\"\",IF(N164=\"FALSE\",0,ROUND(RAIL.SUB9_SALARY_TOTAL,2)))","v":""},{"$f":"IF(G164=\"\",\"\",IF(N164=\"FALSE\",0,IF(G164=0,0,H164/G164)))","v":""},null,null,null,null,"FALSE",{"$f":"IFERROR(LEFT(B164,FIND(\"--SUB\",B164)-1),B164)","v":"RR-Rail"},0,0,0]
["Rail",null,"Direct Costs",null,{"$f":"IF(N164=\"FALSE\",0,ROUND(RAIL.SUB9_DIRECT_NONSALARY_TOTAL,2))","v":0},null,null,{"$f":"IF($H$7=\"\",\"\",IF(N164=\"FALSE\",0,ROUND(RAIL.SUB9_DIRECT_NONSALARY_TOTAL,2)))","v":""},null,null,null,null,null,null,{"$f":"O164","v":"RR-Rail"},0,0,0]
["Rail","RR-Rail--SUB10",null,{"$f":"IF(N166=\"FALSE\",0,RAIL.SUB10_MANDAYS)","v":0},{"$f":"IF(N166=\"FALSE\",0,ROUND(RAIL.SUB10_SALARY_TOTAL,2))","v":0},0,{"$f":"IF($H$7=\"\",\"\",IF(N166=\"FALSE\",0,RAIL.SUB10_MANDAYS))","v":""},{"$f":"IF($H$7=\"\",\"\",IF(N166=\"FALSE\",0,ROUND(RAIL.SUB10_SALARY_TOTAL,2)))","v":""},{"$f":"IF(G166=\"\",\"\",IF(N166=\"FALSE\",0,IF(G166=0,0,H166/G166)))","v":""},null,null,null,null,"FALSE",{"$f":"IFERROR(LEFT(B166,FIND(\"--SUB\",B166)-1),B166)","v":"RR-Rail"},{"$f":"R166","v":0},{"$f":"R166","v":0},0]
["Rail",null,"Direct Costs",null,{"$f":"IF(N166=\"FALSE\",0,ROUND(RAIL.SUB10_DIRECT_NONSALARY_TOTAL,2))","v":0},null,null,{"$f":"IF($H$7=\"\",\"\",IF(N166=\"FALSE\",0,ROUND(RAIL.SUB10_DIRECT_NONSALARY_TOTAL,2)))","v":""},null,null,null,null,null,null,{"$f":"O166","v":"RR-Rail"},{"$f":"R167","v":0},{"$f":"R167","v":0},0]
["Signing","SD-Signing--SUB1",null,{"$f":"IF(N168=\"FALSE\",0,SIGNING_SUB1_MANDAYS)","v":0},{"$f":"IF(N168=\"FALSE\",0,ROUND(SIGNING_SUB1_SALARY_TOTAL,2))","v":0},0,{"$f":"IF($H$7=\"\",\"\",IF(N168=\"FALSE\",0,SIGNING_SUB1_MANDAYS))","v":""},{"$f":"IF($H$7=\"\",\"\",IF(N168=\"FALSE\",0,ROUND(SIGNING_SUB1_SALARY_TOTAL,2)))","v":""},{"$f":"IF(G168=\"\",\"\",IF(N168=\"FALSE\",0,IF(G168=0,0,H168/G168)))","v":""},null,null,null,null,"FALSE",{"$f":"IFERROR(LEFT(B168,FIND(\"--SUB\",B168)-1),B168)","v":"SD-Signing"},{"$f":"R168","v":0},{"$f":"R168","v":0},0]
["Signing",null,"Direct Costs",null,{"$f":"IF(N168=\"FALSE\",0,ROUND(SIGNING_SUB1_DIRECT_NONSALARY_TOTAL,2))","v":0},null,null,{"$f":"IF($H$7=\"\",\"\",IF(N168=\"FALSE\",0,ROUND(SIGNING_SUB1_DIRECT_NONSALARY_TOTAL,2)))","v":""},null,null,null,null,null,null,{"$f":"O168","v":"SD-Signing"},0,0,0]
["ITS","SG-ITS--SUB1",null,{"$f":"IF(N170=\"FALSE\",0,ITS_SUB1_MANDAYS)","v":0},{"$f":"IF(N170=\"FALSE\",0,ROUND(ITS_SUB1_SALARY_TOTAL,2))","v":0},0,{"$f":"IF($H$7=\"\",\"\",IF(N170=\"FALSE\",0,ITS_SUB1_MANDAYS))","v":""},{"$f":"IF($H$7=\"\",\"\",IF(N170=\"FALSE\",0,ROUND(ITS_SUB1_SALARY_TOTAL,2)))","v":""},{"$f":"IF(G170=\"\",\"\",IF(N170=\"FALSE\",0,IF(G170=0,0,H170/G170)))","v":""},null,null,null,null,"FALSE",{"$f":"IFERROR(LEFT(B170,FIND(\"--SUB\",B170)-1),B170)","v":"SG-ITS"},0,0,0]
["ITS",null,"Direct Costs",null,{"$f":"IF(N170=\"FALSE\",0,ROUND(ITS_SUB1_DIRECT_NONSALARY_TOTAL,2))","v":0},null,null,{"$f":"IF($H$7=\"\",\"\",IF(N170=\"FALSE\",0,ROUND(ITS_SUB1_DIRECT_NONSALARY_TOTAL,2)))","v":""},null,null,null,null,null,null,{"$f":"O170","v":"SG-ITS"},0,0,0]
["ITS","SG-ITS--SUB2",null,{"$f":"IF(N172=\"FALSE\",0,ITS_SUB2_MANDAYS)","v":0},{"$f":"IF(N172=\"FALSE\",0,ROUND(ITS_SUB2_SALARY_TOTAL,2))","v":0},0,{"$f":"IF($H$7=\"\",\"\",IF(N172=\"FALSE\",0,ITS_SUB2_MANDAYS))","v":""},{"$f":"IF($H$7=\"\",\"\",IF(N172=\"FALSE\",0,ROUND(ITS_SUB2_SALARY_TOTAL,2)))","v":""},{"$f":"IF(G172=\"\",\"\",IF(N172=\"FALSE\",0,IF(G172=0,0,H172/G172)))","v":""},null,null,null,null,"FALSE",{"$f":"IFERROR(LEFT(B172,FIND(\"--SUB\",B172)-1),B172)","v":"SG-ITS"},0,0,0]
["ITS",null,"Direct Costs",null,{"$f":"IF(N172=\"FALSE\",0,ROUND(ITS_SUB2_DIRECT_NONSALARY_TOTAL,2))","v":0},null,null,{"$f":"IF($H$7=\"\",\"\",IF(N172=\"FALSE\",0,ROUND(ITS_SUB2_DIRECT_NONSALARY_TOTAL,2)))","v":""},null,null,null,null,null,null,{"$f":"O172","v":"SG-ITS"},0,0,0]
["ITS","SG-ITS--SUB3",null,{"$f":"IF(N174=\"FALSE\",0,ITS_SUB3_MANDAYS)","v":0},{"$f":"IF(N174=\"FALSE\",0,ROUND(ITS_SUB3_SALARY_TOTAL,2))","v":0},0,{"$f":"IF($H$7=\"\",\"\",IF(N174=\"FALSE\",0,ITS_SUB3_MANDAYS))","v":""},{"$f":"IF($H$7=\"\",\"\",IF(N174=\"FALSE\",0,ROUND(ITS_SUB3_SALARY_TOTAL,2)))","v":""},{"$f":"IF(G174=\"\",\"\",IF(N174=\"FALSE\",0,IF(G174=0,0,H174/G174)))","v":""},null,null,null,null,"FALSE",{"$f":"IFERROR(LEFT(B174,FIND(\"--SUB\",B174)-1),B174)","v":"SG-ITS"},0,0,0]
["ITS",null,"Direct Costs",null,{"$f":"IF(N174=\"FALSE\",0,ROUND(ITS_SUB3_DIRECT_NONSALARY_TOTAL,2))","v":0},null,null,{"$f":"IF($H$7=\"\",\"\",IF(N174=\"FALSE\",0,ROUND(ITS_SUB3_DIRECT_NONSALARY_TOTAL,2)))","v":""},null,null,null,null,null,null,{"$f":"O174","v":"SG-ITS"},0,0,0]
["ITS","SG-ITS--SUB4",null,{"$f":"IF(N176=\"FALSE\",0,ITS_SUB4_MANDAYS)","v":0},{"$f":"IF(N176=\"FALSE\",0,ROUND(ITS_SUB4_SALARY_TOTAL,2))","v":0},0,{"$f":"IF($H$7=\"\",\"\",IF(N176=\"FALSE\",0,ITS_SUB4_MANDAYS))","v":""},{"$f":"IF($H$7=\"\",\"\",IF(N176=\"FALSE\",0,ROUND(ITS_SUB4_SALARY_TOTAL,2)))","v":""},{"$f":"IF(G176=\"\",\"\",IF(N176=\"FALSE\",0,IF(G176=0,0,H176/G176)))","v":""},null,null,null,null,"FALSE",{"$f":"IFERROR(LEFT(B176,FIND(\"--SUB\",B176)-1),B176)","v":"SG-ITS"},0,0,0]
["ITS",null,"Direct Costs",null,{"$f":"IF(N176=\"FALSE\",0,ROUND(ITS_SUB4_DIRECT_NONSALARY_TOTAL,2))","v":0},null,null,{"$f":"IF($H$7=\"\",\"\",IF(N176=\"FALSE\",0,ROUND(ITS_SUB4_DIRECT_NONSALARY_TOTAL,2)))","v":""},null,null,null,null,null,null,{"$f":"O176","v":"SG-ITS"},0,0,0]
["Municipal Signal Systems","SG-Municipal Signal Systems--SUB1",null,{"$f":"IF(N178=\"FALSE\",0,MUNICIPAL.SIGNAL.SYSTEM_SUB1_MANDAYS)","v":0},{"$f":"IF(N178=\"FALSE\",0,ROUND(MUNICIPAL.SIGNAL.SYSTEM_SUB1_SALARY_TOTAL,2))","v":0},0,{"$f":"IF($H$7=\"\",\"\",IF(N178=\"FALSE\",0,MUNICIPAL.SIGNAL.SYSTEM_SUB1_MANDAYS))","v":""},{"$f":"IF($H$7=\"\",\"\",IF(N178=\"FALSE\",0,ROUND(MUNICIPAL.SIGNAL.SYSTEM_SUB1_SALARY_TOTAL,2)))","v":""},{"$f":"IF(G178=\"\",\"\",IF(N178=\"FALSE\",0,IF(G178=0,0,H178/G178)))","v":""},null,null,null,null,"FALSE",{"$f":"IFERROR(LEFT(B178,FIND(\"--SUB\",B178)-1),B178)","v":"SG-Municipal Signal Systems"},0,0,0]
["Municipal Signal Systems",null,"Direct Costs",null,{"$f":"IF(N178=\"FALSE\",0,ROUND(MUNICIPAL.SIGNAL.SYSTEM_SUB1_DIRECT_NONSALARY_TOTAL,2))","v":0},null,null,{"$f":"IF($H$7=\"\",\"\",IF(N178=\"FALSE\",0,ROUND(MUNICIPAL.SIGNAL.SYSTEM_SUB1_DIRECT_NONSALARY_TOTAL,2)))","v":""},null,null,null,null,null,null,{"$f":"O178","v":"SG-Municipal Signal Systems"},0,0,0]
["Municipal Signal Systems","SG-Municipal Signal Systems--SUB2",null,{"$f":"IF(N180=\"FALSE\",0,MUNICIPAL.SIGNAL.SYSTEM_SUB2_MANDAYS)","v":0},{"$f":"IF(N180=\"FALSE\",0,ROUND(MUNICIPAL.SIGNAL.SYSTEM_SUB2_SALARY_TOTAL,2))","v":0},0,{"$f":"IF($H$7=\"\",\"\",IF(N180=\"FALSE\",0,MUNICIPAL.SIGNAL.SYSTEM_SUB2_MANDAYS))","v":""},{"$f":"IF($H$7=\"\",\"\",IF(N180=\"FALSE\",0,ROUND(MUNICIPAL.SIGNAL.SYSTEM_SUB2_SALARY_TOTAL,2)))","v":""},{"$f":"IF(G180=\"\",\"\",IF(N180=\"FALSE\",0,IF(G180=0,0,H180/G180)))","v":""},null,null,null,null,"FALSE",{"$f":"IFERROR(LEFT(B180,FIND(\"--SUB\",B180)-1),B180)","v":"SG-Municipal Signal Systems"},0,0,{"$f":"IF($H$7=\"\",E180,H180)","v":0}]
["Municipal Signal Systems",null,"Direct Costs",null,{"$f":"IF(N180=\"FALSE\",0,ROUND(MUNICIPAL.SIGNAL.SYSTEM_SUB2_DIRECT_NONSALARY_TOTAL,2))","v":0},null,null,{"$f":"IF($H$7=\"\",\"\",IF(N180=\"FALSE\",0,ROUND(MUNICIPAL.SIGNAL.SYSTEM_SUB2_DIRECT_NONSALARY_TOTAL,2)))","v":""},null,null,null,null,null,null,{"$f":"O180","v":"SG-Municipal Signal Systems"},0,0,0]
["Municipal Signal Systems","SG-Municipal Signal Systems--SUB3",null,{"$f":"IF(N182=\"FALSE\",0,MUNICIPAL.SIGNAL.SYSTEM_SUB3_MANDAYS)","v":0},{"$f":"IF(N182=\"FALSE\",0,ROUND(MUNICIPAL.SIGNAL.SYSTEM_SUB3_SALARY_TOTAL,2))","v":0},0,{"$f":"IF($H$7=\"\",\"\",IF(N182=\"FALSE\",0,MUNICIPAL.SIGNAL.SYSTEM_SUB3_MANDAYS))","v":""},{"$f":"IF($H$7=\"\",\"\",IF(N182=\"FALSE\",0,ROUND(MUNICIPAL.SIGNAL.SYSTEM_SUB3_SALARY_TOTAL,2)))","v":""},{"$f":"IF(G182=\"\",\"\",IF(N182=\"FALSE\",0,IF(G182=0,0,H182/G182)))","v":""},null,null,null,null,"FALSE",{"$f":"IFERROR(LEFT(B182,FIND(\"--SUB\",B182)-1),B182)","v":"SG-Municipal Signal Systems"},0,0,0]
["Municipal Signal Systems",null,"Direct Costs",null,{"$f":"IF(N182=\"FALSE\",0,ROUND(MUNICIPAL.SIGNAL.SYSTEM_SUB3_DIRECT_NONSALARY_TOTAL,2))","v":0},null,null,{"$f":"IF($H$7=\"\",\"\",IF(N182=\"FALSE\",0,ROUND(MUNICIPAL.SIGNAL.SYSTEM_SUB3_DIRECT_NONSALARY_TOTAL,2)))","v":""},null,null,null,null,null,null,{"$f":"O182","v":"SG-Municipal Signal Systems"},0,0,0]
["Municipal Signal Systems","SG-Municipal Signal Systems--SUB4",null,{"$f":"IF(N184=\"FALSE\",0,MUNICIPAL.SIGNAL.SYSTEM_SUB4_MANDAYS)","v":0},{"$f":"IF(N184=\"FALSE\",0,ROUND(MUNICIPAL.SIGNAL.SYSTEM_SUB4_SALARY_TOTAL,2))","v":0},0,{"$f":"IF($H$7=\"\",\"\",IF(N184=\"FALSE\",0,MUNICIPAL.SIGNAL.SYSTEM_SUB4_MANDAYS))","v":""},{"$f":"IF($H$7=\"\",\"\",IF(N184=\"FALSE\",0,ROUND(MUNICIPAL.SIGNAL.SYSTEM_SUB4_SALARY_TOTAL,2)))","v":""},{"$f":"IF(G184=\"\",\"\",IF(N184=\"FALSE\",0,IF(G184=0,0,H184/G184)))","v":""},null,null,null,null,"FALSE",{"$f":"IFERROR(LEFT(B184,FIND(\"--SUB\",B184)-1),B184)","v":"SG-Municipal Signal Systems"},0,0,0]
["Municipal Signal Systems",null,"Direct Costs",null,{"$f":"IF(N184=\"FALSE\",0,ROUND(MUNICIPAL.SIGNAL.SYSTEM_SUB4_DIRECT_NONSALARY_TOTAL,2))","v":0},null,null,{"$f":"IF($H$7=\"\",\"\",IF(N184=\"FALSE\",0,ROUND(MUNICIPAL.SIGNAL.SYSTEM_SUB4_DIRECT_NONSALARY_TOTAL,2)))","v":""},null,null,null,null,null,null,{"$f":"O184","v":"SG-Municipal Signal Systems"},0,0,0]
["Structures","ST-Structures--SUB1",null,{"$f":"IF(N186=\"FALSE\",0,STRUCTURES_SUB1_MANDAYS)","v":0},{"$f":"IF(N186=\"FALSE\",0,ROUND(STRUCTURES_SUB1_SALARY_TOTAL,2))","v":0},0,{"$f":"IF($H$7=\"\",\"\",IF(N186=\"FALSE\",0,STRUCTURES_SUB1_MANDAYS))","v":""},{"$f":"IF($H$7=\"\",\"\",IF(N186=\"FALSE\",0,ROUND(STRUCTURES_SUB1_SALARY_TOTAL,2)))","v":""},{"$f":"IF(G186=\"\",\"\",IF(N186=\"FALSE\",0,IF(G186=0,0,H186/G186)))","v":""},null,null,null,null,"FALSE",{"$f":"IFERROR(LEFT(B186,FIND(\"--SUB\",B186)-1),B186)","v":"ST-Structures"},0,0,0]
["Structures",null,"Direct Costs",null,{"$f":"IF(N186=\"FALSE\",0,ROUND(STRUCTURES_SUB1_DIRECT_NONSALARY_TOTAL,2))","v":0},null,null,{"$f":"IF($H$7=\"\",\"\",IF(N186=\"FALSE\",0,ROUND(STRUCTURES_SUB1_DIRECT_NONSALARY_TOTAL,2)))","v":""},null,null,null,null,null,null,{"$f":"O186","v":"ST-Structures"},0,0,0]
["Work Zone Traffic Control (WZTC)","TM-Work Zone Traffic Control (WZTC)--SUB1",null,{"$f":"IF(N188=\"FALSE\",0,WZTCU_SUB1_MANDAYS)","v":0},{"$f":"IF(N188=\"FALSE\",0,ROUND(WZTCU_SUB1_SALARY_TOTAL,2))","v":0},0,{"$f":"IF($H$7=\"\",\"\",IF(N188=\"FALSE\",0,WZTCU_SUB1_MANDAYS))","v":""},{"$f":"IF($H$7=\"\",\"\",IF(N188=\"FALSE\",0,ROUND(WZTCU_SUB1_SALARY_TOTAL,2)))","v":""},{"$f":"IF(G188=\"\",\"\",IF(N188=\"FALSE\",0,IF(G188=0,0,H188/G188)))","v":""},null,null,null,null,"FALSE",{"$f":"IFERROR(LEFT(B188,FIND(\"--SUB\",B188)-1),B188)","v":"TM-Work Zone Traffic Control (WZTC)"},0,0,0]
["Work Zone Traffic Control (WZTC)",null,"Direct Costs",null,{"$f":"IF(N188=\"FALSE\",0,ROUND(WZTCU_SUB1_DIRECT_NONSALARY_TOTAL,2))","v":0},null,null,{"$f":"IF($H$7=\"\",\"\",IF(N188=\"FALSE\",0,ROUND(WZTCU_SUB1_DIRECT_NONSALARY_TOTAL,2)))","v":""},null,null,null,null,null,null,{"$f":"O188","v":"TM-Work Zone Traffic Control (WZTC)"},0,0,0]
["Transportation Planning","TP-Transportation Planning--SUB1",null,{"$f":"IF(N190=\"FALSE\",0,TRANSPORTATIONPLANNING.SUB1_MANDAYS)","v":0},{"$f":"IF(N190=\"FALSE\",0,ROUND(TRANSPORTATIONPLANNING.SUB1_SALARY_TOTAL,2))","v":0},0,{"$f":"IF($H$7=\"\",\"\",IF(N190=\"FALSE\",0,TRANSPORTATIONPLANNING.SUB1_MANDAYS))","v":""},{"$f":"IF($H$7=\"\",\"\",IF(N190=\"FALSE\",0,ROUND(TRANSPORTATIONPLANNING.SUB1_SALARY_TOTAL,2)))","v":""},{"$f":"IF(G190=\"\",\"\",IF(N190=\"FALSE\",0,IF(G190=0,0,H190/G190)))","v":""},null,null,null,null,"FALSE",{"$f":"IFERROR(LEFT(B190,FIND(\"--SUB\",B190)-1),B190)","v":"TP-Transportation Planning"},0,0,0]
["Transportation Planning",null,"Direct Costs",null,{"$f":"IF(N190=\"FALSE\",0,ROUND(TRANSPORTATIONPLANNING.SUB1_DIRECT_NONSALARY_TOTAL,2))","v":0},null,null,{"$f":"IF($H$7=\"\",\"\",IF(N190=\"FALSE\",0,ROUND(TRANSPORTATIONPLANNING.SUB1_DIRECT_NONSALARY_TOTAL,2)))","v":""},null,null,null,null,null,null,{"$f":"O190","v":"TP-Transportation Planning"},0,0,0]
["Transportation Planning","TP-Transportation Planning--SUB2",null,{"$f":"IF(N192=\"FALSE\",0,TRANSPORTATIONPLANNING.SUB2_MANDAYS)","v":0},{"$f":"IF(N192=\"FALSE\",0,ROUND(TRANSPORTATIONPLANNING.SUB2_SALARY_TOTAL,2))","v":0},0,{"$f":"IF($H$7=\"\",\"\",IF(N192=\"FALSE\",0,TRANSPORTATIONPLANNING.SUB2_MANDAYS))","v":""},{"$f":"IF($H$7=\"\",\"\",IF(N192=\"FALSE\",0,ROUND(TRANSPORTATIONPLANNING.SUB2_SALARY_TOTAL,2)))","v":""},{"$f":"IF(G192=\"\",\"\",IF(N192=\"FALSE\",0,IF(G192=0,0,H192/G192)))","v":""},null,null,null,null,"FALSE",{"$f":"IFERROR(LEFT(B192,FIND(\"--SUB\",B192)-1),B192)","v":"TP-Transportation Planning"},0,0,0]
["Transportation Planning",null,"Direct Costs",null,{"$f":"IF(N192=\"FALSE\",0,ROUND(TRANSPORTATIONPLANNING.SUB2_DIRECT_NONSALARY_TOTAL,2))","v":0},null,null,{"$f":"IF($H$7=\"\",\"\",IF(N192=\"FALSE\",0,ROUND(TRANSPORTATIONPLANNING.SUB2_DIRECT_NONSALARY_TOTAL,2)))","v":""},null,null,null,null,null,null,{"$f":"O192","v":"TP-Transportation Planning"},0,0,0]
["Transportation Planning","TP-Transportation Planning--SUB3",null,{"$f":"IF(N194=\"FALSE\",0,TRANSPORTATIONPLANNING.SUB3_MANDAYS)","v":0},{"$f":"IF(N194=\"FALSE\",0,ROUND(TRANSPORTATIONPLANNING.SUB3_SALARY_TOTAL,2))","v":0},0,{"$f":"IF($H$7=\"\",\"\",IF(N194=\"FALSE\",0,TRANSPORTATIONPLANNING.SUB3_MANDAYS))","v":""},{"$f":"IF($H$7=\"\",\"\",IF(N194=\"FALSE\",0,ROUND(TRANSPORTATIONPLANNING.SUB3_SALARY_TOTAL,2)))","v":""},{"$f":"IF(G194=\"\",\"\",IF(N194=\"FALSE\",0,IF(G194=0,0,H194/G194)))","v":""},null,null,null,null,"FALSE",{"$f":"IFERROR(LEFT(B194,FIND(\"--SUB\",B194)-1),B194)","v":"TP-Transportation Planning"},0,0,0]
["Transportation Planning",null,"Direct Costs",null,{"$f":"IF(N194=\"FALSE\",0,ROUND(TRANSPORTATIONPLANNING.SUB3_DIRECT_NONSALARY_TOTAL,2))","v":0},null,null,{"$f":"IF($H$7=\"\",\"\",IF(N194=\"FALSE\",0,ROUND(TRANSPORTATIONPLANNING.SUB3_DIRECT_NONSALARY_TOTAL,2)))","v":""},null,null,null,null,null,null,{"$f":"O194","v":"TP-Transportation Planning"},0,0,0]
["Traffic Forecast","TP-Traffic Forecast--SUB1",null,{"$f":"IF(N196=\"FALSE\",0,TRAFFICFORECAST.SUB1_MANDAYS)","v":0},{"$f":"IF(N196=\"FALSE\",0,ROUND(TRAFFICFORECAST.SUB1_SALARY_TOTAL,2))","v":0},0,{"$f":"IF($H$7=\"\",\"\",IF(N196=\"FALSE\",0,TRAFFICFORECAST.SUB1_MANDAYS))","v":""},{"$f":"IF($H$7=\"\",\"\",IF(N196=\"FALSE\",0,ROUND(TRAFFICFORECAST.SUB1_SALARY_TOTAL,2)))","v":""},{"$f":"IF(G196=\"\",\"\",IF(N196=\"FALSE\",0,IF(G196=0,0,H196/G196)))","v":""},null,null,null,null,"FALSE",{"$f":"IFERROR(LEFT(B196,FIND(\"--SUB\",B196)-1),B196)","v":"TP-Traffic Forecast"},0,0,0]
["Traffic Forecast",null,"Direct Costs",null,{"$f":"IF(N196=\"FALSE\",0,ROUND(TRAFFICFORECAST.SUB1_DIRECT_NONSALARY_TOTAL,2))","v":0},null,null,{"$f":"IF($H$7=\"\",\"\",IF(N196=\"FALSE\",0,ROUND(TRAFFICFORECAST.SUB1_DIRECT_NONSALARY_TOTAL,2)))","v":""},null,null,null,null,null,null,{"$f":"O196","v":"TP-Traffic Forecast"},0,0,0]
["Traffic Forecast","TP-Traffic Forecast--SUB2",null,{"$f":"IF(N198=\"FALSE\",0,TRAFFICFORECAST.SUB2_MANDAYS)","v":0},{"$f":"IF(N198=\"FALSE\",0,ROUND(TRAFFICFORECAST.SUB2_SALARY_TOTAL,2))","v":0},0,{"$f":"IF($H$7=\"\",\"\",IF(N198=\"FALSE\",0,TRAFFICFORECAST.SUB2_MANDAYS))","v":""},{"$f":"IF($H$7=\"\",\"\",IF(N198=\"FALSE\",0,ROUND(TRAFFICFORECAST.SUB2_SALARY_TOTAL,2)))","v":""},{"$f":"IF(G198=\"\",\"\",IF(N198=\"FALSE\",0,IF(G198=0,0,H198/G198)))","v":""},null,null,null,null,"FALSE",{"$f":"IFERROR(LEFT(B198,FIND(\"--SUB\",B198)-1),B198)","v":"TP-Traffic Forecast"},0,0,0]
["Traffic Forecast",null,"Direct Costs",null,{"$f":"IF(N198=\"FALSE\",0,ROUND(TRAFFICFORECAST.SUB2_DIRECT_NONSALARY_TOTAL,2))","v":0},null,null,{"$f":"IF($H$7=\"\",\"\",IF(N198=\"FALSE\",0,ROUND(TRAFFICFORECAST.SUB2_DIRECT_NONSALARY_TOTAL,2)))","v":""},null,null,null,null,null,null,{"$f":"O198","v":"TP-Traffic Forecast"},0,0,0]
["Traffic Forecast","TP-Traffic Forecast--SUB3",null,{"$f":"IF(N200=\"FALSE\",0,TRAFFICFORECAST.SUB3_MANDAYS)","v":0},{"$f":"IF(N200=\"FALSE\",0,ROUND(TRAFFICFORECAST.SUB3_SALARY_TOTAL,2))","v":0},0,{"$f":"IF($H$7=\"\",\"\",IF(N200=\"FALSE\",0,TRAFFICFORECAST.SUB3_MANDAYS))","v":""},{"$f":"IF($H$7=\"\",\"\",IF(N200=\"FALSE\",0,ROUND(TRAFFICFORECAST.SUB3_SALARY_TOTAL,2)))","v":""},{"$f":"IF(G200=\"\",\"\",IF(N200=\"FALSE\",0,IF(G200=0,0,H200/G200)))","v":""},null,null,null,null,"FALSE",{"$f":"IFERROR(LEFT(B200,FIND(\"--SUB\",B200)-1),B200)","v":"TP-Traffic Forecast"},{"$f":"R200","v":0},{"$f":"R200","v":0},{"$f":"IF($H$7=\"\",E200,H200)","v":0}]
["Traffic Forecast",null,"Direct Costs",null,{"$f":"IF(N200=\"FALSE\",0,ROUND(TRAFFICFORECAST.SUB3_DIRECT_NONSALARY_TOTAL,2))","v":0},null,null,{"$f":"IF($H$7=\"\",\"\",IF(N200=\"FALSE\",0,ROUND(TRAFFICFORECAST.SUB3_DIRECT_NONSALARY_TOTAL,2)))","v":""},null,null,null,null,null,null,{"$f":"O200","v":"TP-Traffic Forecast"},0,0,0]
["Utilities Coordination","UT-Utilities Coordination--SUB1",null,{"$f":"IF(N202=\"FALSE\",0,UTILITIES.COORDINATION_SUB1_MANDAYS)","v":0},{"$f":"IF(N202=\"FALSE\",0,ROUND(UTILITIES.COORDINATION_SUB1_SALARY_TOTAL,2))","v":0},{"$f":"IF(N202=\"FALSE\",0,IF(D202=0,0,E202/D202))","v":0},{"$f":"IF($H$7=\"\",\"\",IF(N202=\"FALSE\",0,UTILITIES.COORDINATION_SUB1_MANDAYS))","v":""},{"$f":"IF($H$7=\"\",\"\",IF(N202=\"FALSE\",0,ROUND(UTILITIES.COORDINATION_SUB1_SALARY_TOTAL,2)))","v":""},{"$f":"IF(G202=\"\",\"\",IF(N202=\"FALSE\",0,IF(G202=0,0,H202/G202)))","v":""},null,null,null,null,"FALSE",{"$f":"IFERROR(LEFT(B202,FIND(\"--SUB\",B202)-1),B202)","v":"UT-Utilities Coordination"},0,0,0]
["Utilities Coordination",null,"Direct Costs",null,{"$f":"IF(N202=\"FALSE\",0,ROUND(UTILITIES.COORDINATION_SUB1_DIRECT_NONSALARY_TOTAL,2))","v":0},null,null,{"$f":"IF($H$7=\"\",\"\",IF(N202=\"FALSE\",0,ROUND(UTILITIES.COORDINATION_SUB1_DIRECT_NONSALARY_TOTAL,2)))","v":""},null,null,null,null,null,null,{"$f":"O202","v":"UT-Utilities Coordination"},0,0,0]
["Utilities Design","UT-Utilities Design--SUB1",null,{"$f":"IF(N204=\"FALSE\",0,UTILITIES.DESIGN_SUB1_MANDAYS)","v":0},{"$f":"IF(N204=\"FALSE\",0,ROUND(UTILITIES.DESIGN_SUB1_SALARY_TOTAL,2))","v":0},{"$f":"IF(N204=\"FALSE\",0,IF(D204=0,0,E204/D204))","v":0},{"$f":"IF($H$7=\"\",\"\",IF(N204=\"FALSE\",0,UTILITIES.DESIGN_SUB1_MANDAYS))","v":""},{"$f":"IF($H$7=\"\",\"\",IF(N204=\"FALSE\",0,ROUND(UTILITIES.DESIGN_SUB1_SALARY_TOTAL,2)))","v":""},{"$f":"IF(G204=\"\",\"\",IF(N204=\"FALSE\",0,IF(G204=0,0,H204/G204)))","v":""},null,null,null,null,"FALSE",{"$f":"IFERROR(LEFT(B204,FIND(\"--SUB\",B204)-1),B204)","v":"UT-Utilities Design"},0,0,0]
["Utilities Design",null,"Direct Costs",null,{"$f":"IF(N204=\"FALSE\",0,ROUND(UTILITIES.DESIGN_SUB1_DIRECT_NONSALARY_TOTAL,2))","v":0},null,null,{"$f":"IF($H$7=\"\",\"\",IF(N204=\"FALSE\",0,ROUND(UTILITIES.DESIGN_SUB1_DIRECT_NONSALARY_TOTAL,2)))","v":""},null,null,null,null,null,null,{"$f":"O204","v":"UT-Utilities Design"},0,0,0]
["Ferry","Ferry--SUB1",null,{"$f":"IF(N206=\"FALSE\",0,FERRY.SUB1_MANDAYS)","v":0},{"$f":"IF(N206=\"FALSE\",0,ROUND(FERRY.SUB1_SALARY_TOTAL,2))","v":0},0,{"$f":"IF($H$7=\"\",\"\",IF(N206=\"FALSE\",0,FERRY.SUB1_MANDAYS))","v":""},{"$f":"IF($H$7=\"\",\"\",IF(N206=\"FALSE\",0,ROUND(FERRY.SUB1_SALARY_TOTAL,2)))","v":""},{"$f":"IF(G206=\"\",\"\",IF(N206=\"FALSE\",0,IF(G206=0,0,H206/G206)))","v":""},null,null,null,null,"FALSE",{"$f":"IFERROR(LEFT(B206,FIND(\"--SUB\",B206)-1),B206)","v":"Ferry"},{"$f":"R206","v":0},{"$f":"R206","v":0},{"$f":"IF($H$7=\"\",E206,H206)","v":0}]
["Ferry",{"$f":"IF('PEF CLASSIFICATION SHEET'!B1668=\"Ferry--SUB1\",\"\",'PEF CLASSIFICATION SHEET'!B1668)","v":""},"Direct Costs",null,{"$f":"IF(N206=\"FALSE\",0,ROUND(FERRY.SUB1_DIRECT_NONSALARY_TOTAL,2))","v":0},null,null,{"$f":"IF($H$7=\"\",\"\",IF(N206=\"FALSE\",0,ROUND(FERRY.SUB1_DIRECT_NONSALARY_TOTAL,2)))","v":""},null,null,null,null,null,null,{"$f":"O206","v":"Ferry"},0,0,{"$f":"IF($H$7=\"\",E207,H207)","v":0}]
["Ferry","Ferry--SUB2",null,{"$f":"IF(N208=\"FALSE\",0,FERRY.SUB2_MANDAYS)","v":0},{"$f":"IF(N208=\"FALSE\",0,ROUND(FERRY.SUB2_SALARY_TOTAL,2))","v":0},0,{"$f":"IF($H$7=\"\",\"\",IF(N208=\"FALSE\",0,FERRY.SUB2_MANDAYS))","v":""},{"$f":"IF($H$7=\"\",\"\",IF(N208=\"FALSE\",0,ROUND(FERRY.SUB2_SALARY_TOTAL,2)))","v":""},{"$f":"IF(G208=\"\",\"\",IF(N208=\"FALSE\",0,IF(G208=0,0,H208/G208)))","v":""},null,null,null,null,"FALSE",{"$f":"IFERROR(LEFT(B208,FIND(\"--SUB\",B208)-1),B208)","v":"Ferry"},0,0,{"$f":"IF($H$7=\"\",E208,H208)","v":0}]
["Ferry",{"$f":"IF('PEF CLASSIFICATION SHEET'!B1690=\"Ferry--SUB2\",\"\",'PEF CLASSIFICATION SHEET'!B1690)","v":""},"Direct Costs",null,{"$f":"IF(N208=\"FALSE\",0,ROUND(FERRY.SUB2_DIRECT_NONSALARY_TOTAL,2))","v":0},null,null,{"$f":"IF($H$7=\"\",\"\",IF(N208=\"FALSE\",0,ROUND(FERRY.SUB2_DIRECT_NONSALARY_TOTAL,2)))","v":""},null,null,null,null,null,null,{"$f":"O208","v":"Ferry"},0,0,{"$f":"IF($H$7=\"\",E209,H209)","v":0}]
["Ferry","Ferry--SUB3",null,{"$f":"IF(N210=\"FALSE\",0,FERRY.SUB3_MANDAYS)","v":0},{"$f":"IF(N210=\"FALSE\",0,ROUND(FERRY.SUB3_SALARY_TOTAL,2))","v":0},0,{"$f":"IF($H$7=\"\",\"\",IF(N210=\"FALSE\",0,FERRY.SUB3_MANDAYS))","v":""},{"$f":"IF($H$7=\"\",\"\",IF(N210=\"FALSE\",0,ROUND(FERRY.SUB3_SALARY_TOTAL,2)))","v":""},{"$f":"IF(G210=\"\",\"\",IF(N210=\"FALSE\",0,IF(G210=0,0,H210/G210)))","v":""},null,null,null,null,"FALSE",{"$f":"IFERROR(LEFT(B210,FIND(\"--SUB\",B210)-1),B210)","v":"Ferry"},0,0,{"$f":"IF($H$7=\"\",E210,H210)","v":0}]
["Ferry",{"$f":"IF('PEF CLASSIFICATION SHEET'!B1712=\"Ferry--SUB3\",\"\",'PEF CLASSIFICATION SHEET'!B1712)","v":""},"Direct Costs",null,{"$f":"IF(N210=\"FALSE\",0,ROUND(FERRY.SUB3_DIRECT_NONSALARY_TOTAL,2))","v":0},null,null,{"$f":"IF($H$7=\"\",\"\",IF(N210=\"FALSE\",0,ROUND(FERRY.SUB3_DIRECT_NONSALARY_TOTAL,2)))","v":""},null,null,null,null,null,null,{"$f":"O210","v":"Ferry"},0,0,0]
["Ferry","Ferry--SUB4",null,{"$f":"IF(N212=\"FALSE\",0,FERRY.SUB4_MANDAYS)","v":0},{"$f":"IF(N212=\"FALSE\",0,ROUND(FERRY.SUB4_SALARY_TOTAL,2))","v":0},0,{"$f":"IF($H$7=\"\",\"\",IF(N212=\"FALSE\",0,FERRY.SUB4_MANDAYS))","v":""},{"$f":"IF($H$7=\"\",\"\",IF(N212=\"FALSE\",0,ROUND(FERRY.SUB4_SALARY_TOTAL,2)))","v":""},{"$f":"IF(G212=\"\",\"\",IF(N212=\"FALSE\",0,IF(G212=0,0,H212/G212)))","v":""},null,null,null,null,"FALSE",{"$f":"IFERROR(LEFT(B212,FIND(\"--SUB\",B212)-1),B212)","v":"Ferry"},0,0,{"$f":"IF($H$7=\"\",E212,H212)","v":0}]
["Ferry",{"$f":"IF('PEF CLASSIFICATION SHEET'!B1734=\"Ferry--SUB4\",\"\",'PEF CLASSIFICATION SHEET'!B1734)","v":""},"Direct Costs",null,{"$f":"IF(N212=\"FALSE\",0,ROUND(FERRY.SUB4_DIRECT_NONSALARY_TOTAL,2))","v":0},null,null,{"$f":"IF($H$7=\"\",\"\",IF(N212=\"FALSE\",0,ROUND(FERRY.SUB4_DIRECT_NONSALARY_TOTAL,2)))","v":""},null,null,null,null,null,null,{"$f":"O212","v":"Ferry"},0,0,0]
["Ferry","Ferry--SUB5",null,{"$f":"IF(N214=\"FALSE\",0,FERRY.SUB5_MANDAYS)","v":0},{"$f":"IF(N214=\"FALSE\",0,ROUND(FERRY.SUB5_SALARY_TOTAL,2))","v":0},0,{"$f":"IF($H$7=\"\",\"\",IF(N214=\"FALSE\",0,FERRY.SUB5_MANDAYS))","v":""},{"$f":"IF($H$7=\"\",\"\",IF(N214=\"FALSE\",0,ROUND(FERRY.SUB5_SALARY_TOTAL,2)))","v":""},{"$f":"IF(G214=\"\",\"\",IF(N214=\"FALSE\",0,IF(G214=0,0,H214/G214)))","v":""},null,null,null,null,"FALSE",{"$f":"IFERROR(LEFT(B214,FIND(\"--SUB\",B214)-1),B214)","v":"Ferry"},0,0,0]
["Ferry",{"$f":"IF('PEF CLASSIFICATION SHEET'!B1756=\"Ferry--SUB5\",\"\",'PEF CLASSIFICATION SHEET'!B1756)","v":""},"Direct Costs",null,{"$f":"IF(N214=\"FALSE\",0,ROUND(FERRY.SUB5_DIRECT_NONSALARY_TOTAL,2))","v":0},null,null,{"$f":"IF($H$7=\"\",\"\",IF(N214=\"FALSE\",0,ROUND(FERRY.SUB5_DIRECT_NONSALARY_TOTAL,2)))","v":""},null,null,null,null,null,null,{"$f":"O214","v":"Ferry"},0,0,0]
["Aviation","Aviation--SUB1",null,{"$f":"IF(N216=\"FALSE\",0,AVIATION.SUB1_MANDAYS)","v":0},{"$f":"IF(N216=\"FALSE\",0,ROUND(AVIATION.SUB1_SALARY_TOTAL,2))","v":0},0,{"$f":"IF($H$7=\"\",\"\",IF(N216=\"FALSE\",0,AVIATION.SUB1_MANDAYS))","v":""},{"$f":"IF($H$7=\"\",\"\",IF(N216=\"FALSE\",0,ROUND(AVIATION.SUB1_SALARY_TOTAL,2)))","v":""},{"$f":"IF(G216=\"\",\"\",IF(N216=\"FALSE\",0,IF(G216=0,0,H216/G216)))","v":""},null,null,null,null,"FALSE",{"$f":"IFERROR(LEFT(B216,FIND(\"--SUB\",B216)-1),B216)","v":"Aviation"},0,0,0]
["Aviation",null,"Direct Costs",null,{"$f":"IF(N216=\"FALSE\",0,ROUND(AVIATION.SUB1_DIRECT_NONSALARY_TOTAL,2))","v":0},null,null,{"$f":"IF($H$7=\"\",\"\",IF(N216=\"FALSE\",0,ROUND(AVIATION.SUB1_DIRECT_NONSALARY_TOTAL,2)))","v":""},null,null,null,null,null,null,{"$f":"O216","v":"Aviation"},0,0,0]
["Aviation","Aviation--SUB2",null,{"$f":"IF(N218=\"FALSE\",0,AVIATION.SUB2_MANDAYS)","v":0},{"$f":"IF(N218=\"FALSE\",0,ROUND(AVIATION.SUB2_SALARY_TOTAL,2))","v":0},{"$f":"IF(N218=\"FALSE\",0,IF(D218=0,0,E218/D218))","v":0},{"$f":"IF($H$7=\"\",\"\",IF(N218=\"FALSE\",0,AVIATION.SUB2_MANDAYS))","v":""},{"$f":"IF($H$7=\"\",\"\",IF(N218=\"FALSE\",0,ROUND(AVIATION.SUB2_SALARY_TOTAL,2)))","v":""},{"$f":"IF(G218=\"\",\"\",IF(N218=\"FALSE\",0,IF(G218=0,0,H218/G218)))","v":""},null,null,null,null,"FALSE",{"$f":"IFERROR(LEFT(B218,FIND(\"--SUB\",B218)-1),B218)","v":"Aviation"},0,0,0]
["Aviation",null,"Direct Costs",null,{"$f":"IF(N218=\"FALSE\",0,ROUND(AVIATION.SUB2_DIRECT_NONSALARY_TOTAL,2))","v":0},null,null,{"$f":"IF($H$7=\"\",\"\",IF(N218=\"FALSE\",0,ROUND(AVIATION.SUB2_DIRECT_NONSALARY_TOTAL,2)))","v":""},null,null,null,null,null,null,{"$f":"O218","v":"Aviation"},0,0,0]
["Aviation","Aviation--SUB3",null,{"$f":"IF(N220=\"FALSE\",0,AVIATION.SUB3_MANDAYS)","v":0},{"$f":"IF(N220=\"FALSE\",0,ROUND(AVIATION.SUB3_SALARY_TOTAL,2))","v":0},0,{"$f":"IF($H$7=\"\",\"\",IF(N220=\"FALSE\",0,AVIATION.SUB3_MANDAYS))","v":""},{"$f":"IF($H$7=\"\",\"\",IF(N220=\"FALSE\",0,ROUND(AVIATION.SUB3_SALARY_TOTAL,2)))","v":""},{"$f":"IF(G220=\"\",\"\",IF(N220=\"FALSE\",0,IF(G220=0,0,H220/G220)))","v":""},null,null,null,null,"FALSE",{"$f":"IFERROR(LEFT(B220,FIND(\"--SUB\",B220)-1),B220)","v":"Aviation"},0,0,0]
["Aviation",null,"Direct Costs",null,{"$f":"IF(N220=\"FALSE\",0,ROUND(AVIATION.SUB3_DIRECT_NONSALARY_TOTAL,2))","v":0},null,null,{"$f":"IF($H$7=\"\",\"\",IF(N220=\"FALSE\",0,ROUND(AVIATION.SUB3_DIRECT_NONSALARY_TOTAL,2)))","v":""},null,null,null,null,null,null,{"$f":"O220","v":"Aviation"},0,0,0]
["Aviation","Aviation--SUB4",null,{"$f":"IF(N222=\"FALSE\",0,AVIATION.SUB4_MANDAYS)","v":0},{"$f":"IF(N222=\"FALSE\",0,ROUND(AVIATION.SUB4_SALARY_TOTAL,2))","v":0},0,{"$f":"IF($H$7=\"\",\"\",IF(N222=\"FALSE\",0,AVIATION.SUB4_MANDAYS))","v":""},{"$f":"IF($H$7=\"\",\"\",IF(N222=\"FALSE\",0,ROUND(AVIATION.SUB4_SALARY_TOTAL,2)))","v":""},{"$f":"IF(G222=\"\",\"\",IF(N222=\"FALSE\",0,IF(G222=0,0,H222/G222)))","v":""},null,null,null,null,"FALSE",{"$f":"IFERROR(LEFT(B222,FIND(\"--SUB\",B222)-1),B222)","v":"Aviation"},0,0,0]
["Aviation",null,"Direct Costs",null,{"$f":"IF(N222=\"FALSE\",0,ROUND(AVIATION.SUB4_DIRECT_NONSALARY_TOTAL,2))","v":0},null,null,{"$f":"IF($H$7=\"\",\"\",IF(N222=\"FALSE\",0,ROUND(AVIATION.SUB4_DIRECT_NONSALARY_TOTAL,2)))","v":""},null,null,null,null,null,null,{"$f":"O222","v":"Aviation"},0,0,0]
[null,"Right of Way",null,null,{"$f":"IF(N224=\"FALSE\",0,ROUND(RIGHTOFWAY.PRIME_SALARY_TOTAL,2))","v":0},null,null,{"$f":"IF($H$7=\"\",\"\",IF(N224=\"FALSE\",0,ROUND(RIGHTOFWAY.PRIME_SALARY_TOTAL,2)))","v":""},null,null,null,null,null,"FALSE",{"$f":"IFERROR(LEFT(B224,FIND(\"--SUB\",B224)-1),B224)","v":"Right of Way"},{"$f":"R224","v":0},{"$f":"R224","v":0},{"$f":"IF($H$7=\"\",E224,H224)","v":0}]
[null,null,null,null,null,null,null,{"$f":"\"\"","v":""}]
[null,"Grand Total - All Disciplines",null,{"$f":"SUM(D20:D223)","v":0},{"$f":"SUM(E20:E224)","v":0},null,{"$f":"IF($H$7=\"\",\"\",SUM(G20:G223))","v":""},{"$f":"IF($H$7=\"\",\"\",SUM(H20:H224))","v":""}]
[]
[null,"Labor, Overhead & Fee"]
[null,"MANAGING DOT DISCIPLINE:"]
[null,"ENGINEERING FIRM:"]
[]
[null,"ENGINEERING FIRM CONTRACT NUMBER:",null,null,"CONTRACT TYPE:",null,null,"PAYMENT TYPE:"]
[]
[]
[null,"SCOPE/WORKDAY ESTIMATE PREPARED BY:",null,null,null,null,null,"DATE:"]
[null,"SCOPE/WORKDAY ESTIMATE APPROVED BY: ",null,null,null,null,null,"DATE:"]
[]
[null,"REASON FOR SUPPLEMENTAL: \n(If this is a supplemental to the original Scope of Services, state reason for supplemental.)"]
[]
[]
[]
[null,"PO NUMBER: (If Available)",null,null,null,"SUPPLEMENTAL NUMBER:\n(If Applicable)"]
[]
[null,"                                                                                              FILE NAME:     Project Name or TIP – Firm – DOT SAP Department Code – Supp or TO or PO number - PEF or DOT - Estimate Submittal Number"]
[null,"(Use buttons or copy and paste special values in the space below to transfer the file name as a value which can be used to rename this file.)             "]
[null,"FIRM FILE NAME :     ",{"$f":"FileNameSAP!E2","v":" -  -  - PEF "}]
[]
[null,"DOT FILE NAME:     ",{"$f":"FileNameSAP!E5","v":" -  -  - DOT "}]

{"sheet":"Acct Initiation Request","index":6,"n_rows":79,"n_cols":16,"rows_kept":79,"cut":false,"hidden":false,"merged":[[62,1,62,3],[62,10,62,12],[59,1,59,3],[59,10,59,12],[37,10,37,12],[38,10,38,12],[54,10,54,12],[61,1,61,3],[61,10,61,12],[51,1,51,3],[51,10,51,12],[52,1,52,3],[52,10,52,12],[53,1,53,3],[53,10,53,12],[54,1,54,3],[50,1,50,3],[50,10,50,12],[39,1,39,3],[44,10,44,12],[44,1,44,3],[42,1,42,3],[41,1,41,3],[49,1,49,3],[78,2,78,8],[78,12,78,13],[72,1,72,3],[72,10,72,12],[73,1,73,3],[73,10,73,12],[69,1,69,3],[69,10,69,12],[70,1,70,3],[70,10,70,12],[71,1,71,3],[71,10,71,12],[75,8,75,10],[76,8,76,10],[67,1,67,3],[67,10,67,12],[68,1,68,3],[68,10,68,12],[76,1,76,7],[75,1,75,7],[55,1,55,3],[55,10,55,12],[56,1,56,3],[56,10,56,12],[60,1,60,3],[60,10,60,12],[57,1,57,3],[57,10,57,12],[58,1,58,3],[58,10,58,12],[65,10,65,12],[66,1,66,3],[66,10,66,12],[64,1,64,3],[64,10,64,12],[65,1,65,3],[63,1,63,3],[63,10,63,12],[0,0,0,13],[2,0,2,13],[3,0,3,13],[12,4,12,13],[13,4,13,13],[5,10,5,12],[4,0,4,13],[1,0,1,13],[15,2,15,7],[49,10,49,12],[48,1,48,3],[43,1,43,3],[43,10,43,12],[42,10,42,12],[39,10,39,12],[34,10,34,12],[35,10,35,12],[36,10,36,12],[38,1,38,3],[41,10,41,12],[40,10,40,12],[45,10,45,12],[45,1,45,3],[47,10,47,12],[47,1,47,3],[46,10,46,12],[46,1,46,3],[48,10,48,12],[37,1,37,3],[30,1,30,3],[40,1,40,3],[35,1,35,3],[36,1,36,3],[26,4,26,9],[26,2,26,3],[30,10,30,12],[31,1,31,3],[31,10,31,12],[32,1,32,3],[32,10,32,12],[33,1,33,3],[33,10,33,12],[27,10,27,12],[27,1,27,3],[28,1,28,3],[28,10,28,12],[29,1,29,3],[29,10,29,12],[34,1,34,3],[25,2,25,6],[22,0,22,1],[22,2,22,13],[19,0,19,1],[19,2,19,8],[6,2,6,8],[7,5,7,8],[8,5,8,8],[10,2,10,8],[10,11,10,13],[15,11,15,13],[19,11,19,13],[19,9,19,10],[15,9,15,10],[10,9,10,10],[6,9,6,10],[6,11,7,13]]}
["Account Initiation Request"]
["NOTE:  If this is the Firm, please go to cell B29 and fill out WBS number(s) only.  After completing WBS number entry, the remainder of this worksheet can be ignored."]
["If this is NCDOT, all information on this worksheet is to be filled out in its entirety by the NCDOT PROJECT MANAGER for the NCDOT estimate."]
[]
[]
[]
["Primary Consultant:",null,{"$f":"PRIMARY.CONSULTANT","v":0},null,null,null,null,null,null,"NCDOT Unit:",null,{"$f":"Managing_DOT_Unit","v":0}]
["Primary Consultant Project Manager Name:"]
["Primary Consultant Project Manager Email:"]
[]
["Contract #:",null,{"$f":"CONTRACT.NUM","v":0},null,null,null,null,null,null,"P.O. #:",null,{"$f":"PO_NUMBER","v":0}]
[]
["DOT Project Manager Name:"]
["DOT Project Manager Tel. #:"]
[]
["Project Name:",null,{"$f":"IF(L16>0,\"This field does not need to be filled out as there is a TIP number.\",\"Please override this statement and provide the project name since there is no TIP number indicated on the Overall Summary worksheet.\")","v":"Please override this statement and provide the project name since there is no TIP number indicated on the Overall Summary worksheet."},null,null,null,null,null,"OR","T.I.P. Number:",null,{"$f":"TIP.NUMBER","v":0}]
[]
[]
[]
["Project Description:",null,{"$f":"PROJECT.DESCRIPTION","v":0},null,null,null,null,null,null,"Payment Type:",null,{"$f":"PAYMENT_TYPE","v":0}]
[]
[]
["Disciplines Used:",null,{"$f":"'OVERALL SUMMARY'!C14","v":"PM-Project Mgmt"}]
[]
[]
[]
["Total Utilization:",null,{"$f":"SUM(E29:E74)","v":0},null,{"$f":"IF(C27=0,\"DOT : Repeat the WBS number for each Discipline, Cost Center, and Function Code that the WBS number is being applied to AND complete all workday estimates to incur a proper Percent Utilization\",IF(C27=100%,\"Utilization properly distributed across WBS number(s) assigned to this project, but manday estimates were completed for all disciplines selected.\",\"The Total Utilization is not 100% because a WBS number was not assigned to all Disciplines, Cost Centers, and Function Codes.\"))","v":"DOT : Repeat the WBS number for each Discipline, Cost Center, and Function Code that the WBS number is being applied to AND complete all workday estimates to incur a proper Percent Utilization"}]
[null,"WBS Number \n(This column is the only column required by both the Firm and DOT estimates)",null,null,"% Utilization","$'s Allotted to WBS","Discipline SAP Code","Discipline \nOnly 1 Unit Per WBS number","Discipline Cost ","% Utilization","Cost Center",null,null,"Function Code","Variance (COLUMN HIDDEN)","Note"]
[{"$f":"IF(B29=B30,\"\",B29)","v":""},null,null,null,{"$f":"IF(B29=B30,\"\",SUMIF($B$29:$B$74,B29,$J$29:$J$74))","v":""},{"$f":"IF(B29=B30,\"\",SUMIF($B$29:$B$74,B29,$I$29:$I$74))","v":""},{"$f":"IF(H29=\"\",\"\",VLOOKUP(H29,FileNameSAP!$P$3:$Q$37,2,FALSE))","v":""},null,{"$f":"IF(H29=\"\",\"\",IF(N29=\"3PEF\",(((SUMIF('OVERALL SUMMARY'!$O$20:$O$260,H29,'OVERALL SUMMARY'!$P$20:$P$260)))/(IF(H29=\"RD-Roadway\",1,IF(H29=\"HY-Hydraulics\",1,COUNTIF($H$29:$H$74,H29))))),IF(N29=\"4PEF\",(((SUMIF('OVERALL SUMMARY'!$O$20:$O$260,H29,'OVERALL SUMMARY'!$Q$20:$Q$260)))/(IF(H29=\"RD-Roadway\",1,IF(H29=\"HY-Hydraulics\",1,COUNTIF($H$29:$H$74,H29))))),(((SUMIF('OVERALL SUMMARY'!$O$20:$O$260,H29,'OVERALL SUMMARY'!$R$20:$R$260))/(COUNTIF($H$29:$H$74,H29)))))))","v":""},{"$f":"IF(I29=\"\",\"\",IF(I29=0,0,IF('OVERALL SUMMARY'!$H$7<>\"\",I29/'OVERALL SUMMARY'!$H$226,I29/'OVERALL SUMMARY'!$E$226)))","v":""},null,null,null,null,{"$f":"(SUMIF($H$29:$I$74,H29,$I$29:$I$74)-(SUMIF('OVERALL SUMMARY'!$O$20:$O$260,H29,'OVERALL SUMMARY'!$R$20:$R$260)))","v":0},{"$f":"IF(H29=\"\",\"\",IF(N29=\"\",\"Enter Function Code\",IF(O29=0,\"\",CONCATENATE(H29,\" discipline variance from Overall Summary: \",\"$\",O29))))","v":""}]
[{"$f":"IF(B30=B31,\"\",B30)","v":""},null,null,null,{"$f":"IF(B30=B31,\"\",SUMIF($B$29:$B$74,B30,$J$29:$J$74))","v":""},{"$f":"IF(B30=B31,\"\",SUMIF($B$29:$B$74,B30,$I$29:$I$74))","v":""},{"$f":"IF(H30=\"\",\"\",VLOOKUP(H30,FileNameSAP!$P$3:$Q$37,2,FALSE))","v":""},null,{"$f":"IF(H30=\"\",\"\",IF(N30=\"3PEF\",(((SUMIF('OVERALL SUMMARY'!$O$20:$O$260,H30,'OVERALL SUMMARY'!$P$20:$P$260)))/(IF(H30=\"RD-Roadway\",1,IF(H30=\"Hydraulics\",1,COUNTIF($H$29:$H$74,H30))))),IF(N30=\"4PEF\",(((SUMIF('OVERALL SUMMARY'!$O$20:$O$260,H30,'OVERALL SUMMARY'!$Q$20:$Q$260)))/(IF(H30=\"Roadway\",1,IF(H30=\"Hydraulics\",1,COUNTIF($H$29:$H$74,H30))))),(((SUMIF('OVERALL SUMMARY'!$O$20:$O$260,H30,'OVERALL SUMMARY'!$R$20:$R$260))/(COUNTIF($H$29:$H$74,H30)))))))","v":""},{"$f":"IF(I30=\"\",\"\",IF(I30=0,0,IF('OVERALL SUMMARY'!$H$7<>\"\",I30/'OVERALL SUMMARY'!$H$226,I30/'OVERALL SUMMARY'!$E$226)))","v":""},null,null,null,null,{"$f":"(SUMIF($H$29:$I$74,H30,$I$29:$I$74)-(SUMIF('OVERALL SUMMARY'!$O$20:$O$260,H30,'OVERALL SUMMARY'!$R$20:$R$260)))","v":0},""]
[{"$f":"IF(B31=B32,\"\",B31)","v":""},null,null,null,"","",{"$f":"IF(H31=\"\",\"\",VLOOKUP(H31,FileNameSAP!$P$3:$Q$37,2,FALSE))","v":""},null,{"$f":"IF(H31=\"\",\"\",IF(N31=\"3PEF\",(((SUMIF('OVERALL SUMMARY'!$O$20:$O$260,H31,'OVERALL SUMMARY'!$P$20:$P$260)))/(IF(H31=\"Roadway\",1,IF(H31=\"Hydraulics\",1,COUNTIF($H$29:$H$74,H31))))),IF(N31=\"4PEF\",(((SUMIF('OVERALL SUMMARY'!$O$20:$O$260,H31,'OVERALL SUMMARY'!$Q$20:$Q$260)))/(IF(H31=\"Roadway\",1,IF(H31=\"Hydraulics\",1,COUNTIF($H$29:$H$74,H31))))),(((SUMIF('OVERALL SUMMARY'!$O$20:$O$260,H31,'OVERALL SUMMARY'!$R$20:$R$260))/(COUNTIF($H$29:$H$74,H31)))))))","v":""},{"$f":"IF(I31=\"\",\"\",IF(I31=0,0,IF('OVERALL SUMMARY'!$H$7<>\"\",I31/'OVERALL SUMMARY'!$H$226,I31/'OVERALL SUMMARY'!$E$226)))","v":""},null,null,null,null,{"$f":"(SUMIF($H$29:$I$74,H31,$I$29:$I$74)-(SUMIF('OVERALL SUMMARY'!$O$20:$O$260,H31,'OVERALL SUMMARY'!$R$20:$R$260)))","v":0},""]
["",null,null,null,{"$f":"IF(B32=B33,\"\",SUMIF($B$29:$B$74,B32,$J$29:$J$74))","v":""},"",{"$f":"IF(H32=\"\",\"\",VLOOKUP(H32,FileNameSAP!$P$3:$Q$37,2,FALSE))","v":""},"",{"$f":"IF(H32=\"\",\"\",IF(N32=\"3PEF\",(((SUMIF('OVERALL SUMMARY'!$O$20:$O$260,H32,'OVERALL SUMMARY'!$P$20:$P$260)))/(IF(H32=\"Roadway\",1,IF(H32=\"Hydraulics\",1,COUNTIF($H$29:$H$74,H32))))),IF(N32=\"4PEF\",(((SUMIF('OVERALL SUMMARY'!$O$20:$O$260,H32,'OVERALL SUMMARY'!$Q$20:$Q$260)))/(IF(H32=\"Roadway\",1,IF(H32=\"Hydraulics\",1,COUNTIF($H$29:$H$74,H32))))),(((SUMIF('OVERALL SUMMARY'!$O$20:$O$260,H32,'OVERALL SUMMARY'!$R$20:$R$260))/(COUNTIF($H$29:$H$74,H32)))))))","v":""},{"$f":"IF(I32=\"\",\"\",IF(I32=0,0,IF('OVERALL SUMMARY'!$H$7<>\"\",I32/'OVERALL SUMMARY'!$H$226,I32/'OVERALL SUMMARY'!$E$226)))","v":""},null,null,null,null,{"$f":"(SUMIF($H$29:$I$74,H32,$I$29:$I$74)-(SUMIF('OVERALL SUMMARY'!$O$20:$O$260,H32,'OVERALL SUMMARY'!$R$20:$R$260)))","v":0},""]
["",null,null,null,"","",{"$f":"IF(H33=\"\",\"\",VLOOKUP(H33,FileNameSAP!$P$3:$Q$37,2,FALSE))","v":""},"",{"$f":"IF(H33=\"\",\"\",IF(N33=\"3PEF\",(((SUMIF('OVERALL SUMMARY'!$O$20:$O$260,H33,'OVERALL SUMMARY'!$P$20:$P$260)))/(IF(H33=\"Roadway\",1,IF(H33=\"Hydraulics\",1,COUNTIF($H$29:$H$74,H33))))),IF(N33=\"4PEF\",(((SUMIF('OVERALL SUMMARY'!$O$20:$O$260,H33,'OVERALL SUMMARY'!$Q$20:$Q$260)))/(IF(H33=\"Roadway\",1,IF(H33=\"Hydraulics\",1,COUNTIF($H$29:$H$74,H33))))),(((SUMIF('OVERALL SUMMARY'!$O$20:$O$260,H33,'OVERALL SUMMARY'!$R$20:$R$260))/(COUNTIF($H$29:$H$74,H33)))))))","v":""},{"$f":"IF(I33=\"\",\"\",IF(I33=0,0,IF('OVERALL SUMMARY'!$H$7<>\"\",I33/'OVERALL SUMMARY'!$H$226,I33/'OVERALL SUMMARY'!$E$226)))","v":""},null,null,null,null,{"$f":"(SUMIF($H$29:$I$74,H33,$I$29:$I$74)-(SUMIF('OVERALL SUMMARY'!$O$20:$O$260,H33,'OVERALL SUMMARY'!$R$20:$R$260)))","v":0},""]
["",null,null,null,"","",{"$f":"IF(H34=\"\",\"\",VLOOKUP(H34,FileNameSAP!$P$3:$Q$37,2,FALSE))","v":""},"",{"$f":"IF(H34=\"\",\"\",IF(N34=\"3PEF\",(((SUMIF('OVERALL SUMMARY'!$O$20:$O$260,H34,'OVERALL SUMMARY'!$P$20:$P$260)))/(IF(H34=\"Roadway\",1,IF(H34=\"Hydraulics\",1,COUNTIF($H$29:$H$74,H34))))),IF(N34=\"4PEF\",(((SUMIF('OVERALL SUMMARY'!$O$20:$O$260,H34,'OVERALL SUMMARY'!$Q$20:$Q$260)))/(IF(H34=\"Roadway\",1,IF(H34=\"Hydraulics\",1,COUNTIF($H$29:$H$74,H34))))),(((SUMIF('OVERALL SUMMARY'!$O$20:$O$260,H34,'OVERALL SUMMARY'!$R$20:$R$260))/(COUNTIF($H$29:$H$74,H34)))))))","v":""},{"$f":"IF(I34=\"\",\"\",IF(I34=0,0,IF('OVERALL SUMMARY'!$H$7<>\"\",I34/'OVERALL SUMMARY'!$H$226,I34/'OVERALL SUMMARY'!$E$226)))","v":""},null,null,null,null,{"$f":"(SUMIF($H$29:$I$74,H34,$I$29:$I$74)-(SUMIF('OVERALL SUMMARY'!$O$20:$O$260,H34,'OVERALL SUMMARY'!$R$20:$R$260)))","v":0},""]
["",null,null,null,"","",{"$f":"IF(H35=\"\",\"\",VLOOKUP(H35,FileNameSAP!$P$3:$Q$37,2,FALSE))","v":""},"",{"$f":"IF(H35=\"\",\"\",IF(N35=\"3PEF\",(((SUMIF('OVERALL SUMMARY'!$O$20:$O$260,H35,'OVERALL SUMMARY'!$P$20:$P$260)))/(IF(H35=\"Roadway\",1,IF(H35=\"Hydraulics\",1,COUNTIF($H$29:$H$74,H35))))),IF(N35=\"4PEF\",(((SUMIF('OVERALL SUMMARY'!$O$20:$O$260,H35,'OVERALL SUMMARY'!$Q$20:$Q$260)))/(IF(H35=\"Roadway\",1,IF(H35=\"Hydraulics\",1,COUNTIF($H$29:$H$74,H35))))),(((SUMIF('OVERALL SUMMARY'!$O$20:$O$260,H35,'OVERALL SUMMARY'!$R$20:$R$260))/(COUNTIF($H$29:$H$74,H35)))))))","v":""},{"$f":"IF(I35=\"\",\"\",IF(I35=0,0,IF('OVERALL SUMMARY'!$H$7<>\"\",I35/'OVERALL SUMMARY'!$H$226,I35/'OVERALL SUMMARY'!$E$226)))","v":""},null,null,null,null,{"$f":"(SUMIF($H$29:$I$74,H35,$I$29:$I$74)-(SUMIF('OVERALL SUMMARY'!$O$20:$O$260,H35,'OVERALL SUMMARY'!$R$20:$R$260)))","v":0},""]
["",null,null,null,"","",{"$f":"IF(H36=\"\",\"\",VLOOKUP(H36,FileNameSAP!$P$3:$Q$37,2,FALSE))","v":""},"",{"$f":"IF(H36=\"\",\"\",IF(N36=\"3PEF\",(((SUMIF('OVERALL SUMMARY'!$O$20:$O$260,H36,'OVERALL SUMMARY'!$P$20:$P$260)))/(IF(H36=\"Roadway\",1,IF(H36=\"Hydraulics\",1,COUNTIF($H$29:$H$74,H36))))),IF(N36=\"4PEF\",(((SUMIF('OVERALL SUMMARY'!$O$20:$O$260,H36,'OVERALL SUMMARY'!$Q$20:$Q$260)))/(IF(H36=\"Roadway\",1,IF(H36=\"Hydraulics\",1,COUNTIF($H$29:$H$74,H36))))),(((SUMIF('OVERALL SUMMARY'!$O$20:$O$260,H36,'OVERALL SUMMARY'!$R$20:$R$260))/(COUNTIF($H$29:$H$74,H36)))))))","v":""},{"$f":"IF(I36=\"\",\"\",IF(I36=0,0,IF('OVERALL SUMMARY'!$H$7<>\"\",I36/'OVERALL SUMMARY'!$H$226,I36/'OVERALL SUMMARY'!$E$226)))","v":""},null,null,null,null,{"$f":"(SUMIF($H$29:$I$74,H36,$I$29:$I$74)-(SUMIF('OVERALL SUMMARY'!$O$20:$O$260,H36,'OVERALL SUMMARY'!$R$20:$R$260)))","v":0},""]
["",null,null,null,"","",{"$f":"IF(H37=\"\",\"\",VLOOKUP(H37,FileNameSAP!$P$3:$Q$37,2,FALSE))","v":""},"",{"$f":"IF(H37=\"\",\"\",IF(N37=\"3PEF\",(((SUMIF('OVERALL SUMMARY'!$O$20:$O$260,H37,'OVERALL SUMMARY'!$P$20:$P$260)))/(IF(H37=\"Roadway\",1,IF(H37=\"Hydraulics\",1,COUNTIF($H$29:$H$74,H37))))),IF(N37=\"4PEF\",(((SUMIF('OVERALL SUMMARY'!$O$20:$O$260,H37,'OVERALL SUMMARY'!$Q$20:$Q$260)))/(IF(H37=\"Roadway\",1,IF(H37=\"Hydraulics\",1,COUNTIF($H$29:$H$74,H37))))),(((SUMIF('OVERALL SUMMARY'!$O$20:$O$260,H37,'OVERALL SUMMARY'!$R$20:$R$260))/(COUNTIF($H$29:$H$74,H37)))))))","v":""},{"$f":"IF(I37=\"\",\"\",IF(I37=0,0,IF('OVERALL SUMMARY'!$H$7<>\"\",I37/'OVERALL SUMMARY'!$H$226,I37/'OVERALL SUMMARY'!$E$226)))","v":""},null,null,null,null,{"$f":"(SUMIF($H$29:$I$74,H37,$I$29:$I$74)-(SUMIF('OVERALL SUMMARY'!$O$20:$O$260,H37,'OVERALL SUMMARY'!$R$20:$R$260)))","v":0},""]
["",null,null,null,"","",{"$f":"IF(H38=\"\",\"\",VLOOKUP(H38,FileNameSAP!$P$3:$Q$37,2,FALSE))","v":""},"",{"$f":"IF(H38=\"\",\"\",IF(N38=\"3PEF\",(((SUMIF('OVERALL SUMMARY'!$O$20:$O$260,H38,'OVERALL SUMMARY'!$P$20:$P$260)))/(IF(H38=\"Roadway\",1,IF(H38=\"Hydraulics\",1,COUNTIF($H$29:$H$74,H38))))),IF(N38=\"4PEF\",(((SUMIF('OVERALL SUMMARY'!$O$20:$O$260,H38,'OVERALL SUMMARY'!$Q$20:$Q$260)))/(IF(H38=\"Roadway\",1,IF(H38=\"Hydraulics\",1,COUNTIF($H$29:$H$74,H38))))),(((SUMIF('OVERALL SUMMARY'!$O$20:$O$260,H38,'OVERALL SUMMARY'!$R$20:$R$260))/(COUNTIF($H$29:$H$74,H38)))))))","v":""},{"$f":"IF(I38=\"\",\"\",IF(I38=0,0,IF('OVERALL SUMMARY'!$H$7<>\"\",I38/'OVERALL SUMMARY'!$H$226,I38/'OVERALL SUMMARY'!$E$226)))","v":""},null,null,null,null,{"$f":"(SUMIF($H$29:$I$74,H38,$I$29:$I$74)-(SUMIF('OVERALL SUMMARY'!$O$20:$O$260,H38,'OVERALL SUMMARY'!$R$20:$R$260)))","v":0},""]
["",null,null,null,"","",{"$f":"IF(H39=\"\",\"\",VLOOKUP(H39,FileNameSAP!$P$3:$Q$37,2,FALSE))","v":""},"",{"$f":"IF(H39=\"\",\"\",IF(N39=\"3PEF\",(((SUMIF('OVERALL SUMMARY'!$O$20:$O$260,H39,'OVERALL SUMMARY'!$P$20:$P$260)))/(IF(H39=\"Roadway\",1,IF(H39=\"Hydraulics\",1,COUNTIF($H$29:$H$74,H39))))),IF(N39=\"4PEF\",(((SUMIF('OVERALL SUMMARY'!$O$20:$O$260,H39,'OVERALL SUMMARY'!$Q$20:$Q$260)))/(IF(H39=\"Roadway\",1,IF(H39=\"Hydraulics\",1,COUNTIF($H$29:$H$74,H39))))),(((SUMIF('OVERALL SUMMARY'!$O$20:$O$260,H39,'OVERALL SUMMARY'!$R$20:$R$260))/(COUNTIF($H$29:$H$74,H39)))))))","v":""},{"$f":"IF(I39=\"\",\"\",IF(I39=0,0,IF('OVERALL SUMMARY'!$H$7<>\"\",I39/'OVERALL SUMMARY'!$H$226,I39/'OVERALL SUMMARY'!$E$226)))","v":""},null,null,null,null,{"$f":"(SUMIF($H$29:$I$74,H39,$I$29:$I$74)-(SUMIF('OVERALL SUMMARY'!$O$20:$O$260,H39,'OVERALL SUMMARY'!$R$20:$R$260)))","v":0},""]
["",null,null,null,"","",{"$f":"IF(H40=\"\",\"\",VLOOKUP(H40,FileNameSAP!$P$3:$Q$37,2,FALSE))","v":""},"",{"$f":"IF(H40=\"\",\"\",IF(N40=\"3PEF\",(((SUMIF('OVERALL SUMMARY'!$O$20:$O$260,H40,'OVERALL SUMMARY'!$P$20:$P$260)))/(IF(H40=\"Roadway\",1,IF(H40=\"Hydraulics\",1,COUNTIF($H$29:$H$74,H40))))),IF(N40=\"4PEF\",(((SUMIF('OVERALL SUMMARY'!$O$20:$O$260,H40,'OVERALL SUMMARY'!$Q$20:$Q$260)))/(IF(H40=\"Roadway\",1,IF(H40=\"Hydraulics\",1,COUNTIF($H$29:$H$74,H40))))),(((SUMIF('OVERALL SUMMARY'!$O$20:$O$260,H40,'OVERALL SUMMARY'!$R$20:$R$260))/(COUNTIF($H$29:$H$74,H40)))))))","v":""},{"$f":"IF(I40=\"\",\"\",IF(I40=0,0,IF('OVERALL SUMMARY'!$H$7<>\"\",I40/'OVERALL SUMMARY'!$H$226,I40/'OVERALL SUMMARY'!$E$226)))","v":""},null,null,null,null,{"$f":"(SUMIF($H$29:$I$74,H40,$I$29:$I$74)-(SUMIF('OVERALL SUMMARY'!$O$20:$O$260,H40,'OVERALL SUMMARY'!$R$20:$R$260)))","v":0},""]
["",null,null,null,"","",{"$f":"IF(H41=\"\",\"\",VLOOKUP(H41,FileNameSAP!$P$3:$Q$37,2,FALSE))","v":""},"",{"$f":"IF(H41=\"\",\"\",IF(N41=\"3PEF\",(((SUMIF('OVERALL SUMMARY'!$O$20:$O$260,H41,'OVERALL SUMMARY'!$P$20:$P$260)))/(IF(H41=\"Roadway\",1,IF(H41=\"Hydraulics\",1,COUNTIF($H$29:$H$74,H41))))),IF(N41=\"4PEF\",(((SUMIF('OVERALL SUMMARY'!$O$20:$O$260,H41,'OVERALL SUMMARY'!$Q$20:$Q$260)))/(IF(H41=\"Roadway\",1,IF(H41=\"Hydraulics\",1,COUNTIF($H$29:$H$74,H41))))),(((SUMIF('OVERALL SUMMARY'!$O$20:$O$260,H41,'OVERALL SUMMARY'!$R$20:$R$260))/(COUNTIF($H$29:$H$74,H41)))))))","v":""},{"$f":"IF(I41=\"\",\"\",IF(I41=0,0,IF('OVERALL SUMMARY'!$H$7<>\"\",I41/'OVERALL SUMMARY'!$H$226,I41/'OVERALL SUMMARY'!$E$226)))","v":""},null,null,null,null,{"$f":"(SUMIF($H$29:$I$74,H41,$I$29:$I$74)-(SUMIF('OVERALL SUMMARY'!$O$20:$O$260,H41,'OVERALL SUMMARY'!$R$20:$R$260)))","v":0},""]
["",null,null,null,"","",{"$f":"IF(H42=\"\",\"\",VLOOKUP(H42,FileNameSAP!$P$3:$Q$37,2,FALSE))","v":""},"",{"$f":"IF(H42=\"\",\"\",IF(N42=\"3PEF\",(((SUMIF('OVERALL SUMMARY'!$O$20:$O$260,H42,'OVERALL SUMMARY'!$P$20:$P$260)))/(IF(H42=\"Roadway\",1,IF(H42=\"Hydraulics\",1,COUNTIF($H$29:$H$74,H42))))),IF(N42=\"4PEF\",(((SUMIF('OVERALL SUMMARY'!$O$20:$O$260,H42,'OVERALL SUMMARY'!$Q$20:$Q$260)))/(IF(H42=\"Roadway\",1,IF(H42=\"Hydraulics\",1,COUNTIF($H$29:$H$74,H42))))),(((SUMIF('OVERALL SUMMARY'!$O$20:$O$260,H42,'OVERALL SUMMARY'!$R$20:$R$260))/(COUNTIF($H$29:$H$74,H42)))))))","v":""},{"$f":"IF(I42=\"\",\"\",IF(I42=0,0,IF('OVERALL SUMMARY'!$H$7<>\"\",I42/'OVERALL SUMMARY'!$H$226,I42/'OVERALL SUMMARY'!$E$226)))","v":""},null,null,null,null,{"$f":"(SUMIF($H$29:$I$74,H42,$I$29:$I$74)-(SUMIF('OVERALL SUMMARY'!$O$20:$O$260,H42,'OVERALL SUMMARY'!$R$20:$R$260)))","v":0},""]
["",null,null,null,"","",{"$f":"IF(H43=\"\",\"\",VLOOKUP(H43,FileNameSAP!$P$3:$Q$37,2,FALSE))","v":""},"",{"$f":"IF(H43=\"\",\"\",IF(N43=\"3PEF\",(((SUMIF('OVERALL SUMMARY'!$O$20:$O$260,H43,'OVERALL SUMMARY'!$P$20:$P$260)))/(IF(H43=\"Roadway\",1,IF(H43=\"Hydraulics\",1,COUNTIF($H$29:$H$74,H43))))),IF(N43=\"4PEF\",(((SUMIF('OVERALL SUMMARY'!$O$20:$O$260,H43,'OVERALL SUMMARY'!$Q$20:$Q$260)))/(IF(H43=\"Roadway\",1,IF(H43=\"Hydraulics\",1,COUNTIF($H$29:$H$74,H43))))),(((SUMIF('OVERALL SUMMARY'!$O$20:$O$260,H43,'OVERALL SUMMARY'!$R$20:$R$260))/(COUNTIF($H$29:$H$74,H43)))))))","v":""},{"$f":"IF(I43=\"\",\"\",IF(I43=0,0,IF('OVERALL SUMMARY'!$H$7<>\"\",I43/'OVERALL SUMMARY'!$H$226,I43/'OVERALL SUMMARY'!$E$226)))","v":""},null,null,null,null,{"$f":"(SUMIF($H$29:$I$74,H43,$I$29:$I$74)-(SUMIF('OVERALL SUMMARY'!$O$20:$O$260,H43,'OVERALL SUMMARY'!$R$20:$R$260)))","v":0},""]
["",null,null,null,"","",{"$f":"IF(H44=\"\",\"\",VLOOKUP(H44,FileNameSAP!$P$3:$Q$37,2,FALSE))","v":""},"",{"$f":"IF(H44=\"\",\"\",IF(N44=\"3PEF\",(((SUMIF('OVERALL SUMMARY'!$O$20:$O$260,H44,'OVERALL SUMMARY'!$P$20:$P$260)))/(IF(H44=\"Roadway\",1,IF(H44=\"Hydraulics\",1,COUNTIF($H$29:$H$74,H44))))),IF(N44=\"4PEF\",(((SUMIF('OVERALL SUMMARY'!$O$20:$O$260,H44,'OVERALL SUMMARY'!$Q$20:$Q$260)))/(IF(H44=\"Roadway\",1,IF(H44=\"Hydraulics\",1,COUNTIF($H$29:$H$74,H44))))),(((SUMIF('OVERALL SUMMARY'!$O$20:$O$260,H44,'OVERALL SUMMARY'!$R$20:$R$260))/(COUNTIF($H$29:$H$74,H44)))))))","v":""},{"$f":"IF(I44=\"\",\"\",IF(I44=0,0,IF('OVERALL SUMMARY'!$H$7<>\"\",I44/'OVERALL SUMMARY'!$H$226,I44/'OVERALL SUMMARY'!$E$226)))","v":""},null,null,null,null,{"$f":"(SUMIF($H$29:$I$74,H44,$I$29:$I$74)-(SUMIF('OVERALL SUMMARY'!$O$20:$O$260,H44,'OVERALL SUMMARY'!$R$20:$R$260)))","v":0},""]
["",null,null,null,"","",{"$f":"IF(H45=\"\",\"\",VLOOKUP(H45,FileNameSAP!$P$3:$Q$37,2,FALSE))","v":""},"",{"$f":"IF(H45=\"\",\"\",IF(N45=\"3PEF\",(((SUMIF('OVERALL SUMMARY'!$O$20:$O$260,H45,'OVERALL SUMMARY'!$P$20:$P$260)))/(IF(H45=\"Roadway\",1,IF(H45=\"Hydraulics\",1,COUNTIF($H$29:$H$74,H45))))),IF(N45=\"4PEF\",(((SUMIF('OVERALL SUMMARY'!$O$20:$O$260,H45,'OVERALL SUMMARY'!$Q$20:$Q$260)))/(IF(H45=\"Roadway\",1,IF(H45=\"Hydraulics\",1,COUNTIF($H$29:$H$74,H45))))),(((SUMIF('OVERALL SUMMARY'!$O$20:$O$260,H45,'OVERALL SUMMARY'!$R$20:$R$260))/(COUNTIF($H$29:$H$74,H45)))))))","v":""},{"$f":"IF(I45=\"\",\"\",IF(I45=0,0,IF('OVERALL SUMMARY'!$H$7<>\"\",I45/'OVERALL SUMMARY'!$H$226,I45/'OVERALL SUMMARY'!$E$226)))","v":""},null,null,null,null,{"$f":"(SUMIF($H$29:$I$74,H45,$I$29:$I$74)-(SUMIF('OVERALL SUMMARY'!$O$20:$O$260,H45,'OVERALL SUMMARY'!$R$20:$R$260)))","v":0},""]
["",null,null,null,"","",{"$f":"IF(H46=\"\",\"\",VLOOKUP(H46,FileNameSAP!$P$3:$Q$37,2,FALSE))","v":""},"",{"$f":"IF(H46=\"\",\"\",IF(N46=\"3PEF\",(((SUMIF('OVERALL SUMMARY'!$O$20:$O$260,H46,'OVERALL SUMMARY'!$P$20:$P$260)))/(IF(H46=\"Roadway\",1,IF(H46=\"Hydraulics\",1,COUNTIF($H$29:$H$74,H46))))),IF(N46=\"4PEF\",(((SUMIF('OVERALL SUMMARY'!$O$20:$O$260,H46,'OVERALL SUMMARY'!$Q$20:$Q$260)))/(IF(H46=\"Roadway\",1,IF(H46=\"Hydraulics\",1,COUNTIF($H$29:$H$74,H46))))),(((SUMIF('OVERALL SUMMARY'!$O$20:$O$260,H46,'OVERALL SUMMARY'!$R$20:$R$260))/(COUNTIF($H$29:$H$74,H46)))))))","v":""},{"$f":"IF(I46=\"\",\"\",IF(I46=0,0,IF('OVERALL SUMMARY'!$H$7<>\"\",I46/'OVERALL SUMMARY'!$H$226,I46/'OVERALL SUMMARY'!$E$226)))","v":""},null,null,null,null,{"$f":"(SUMIF($H$29:$I$74,H46,$I$29:$I$74)-(SUMIF('OVERALL SUMMARY'!$O$20:$O$260,H46,'OVERALL SUMMARY'!$R$20:$R$260)))","v":0},""]
["",null,null,null,"","",{"$f":"IF(H47=\"\",\"\",VLOOKUP(H47,FileNameSAP!$P$3:$Q$37,2,FALSE))","v":""},"",{"$f":"IF(H47=\"\",\"\",IF(N47=\"3PEF\",(((SUMIF('OVERALL SUMMARY'!$O$20:$O$260,H47,'OVERALL SUMMARY'!$P$20:$P$260)))/(IF(H47=\"Roadway\",1,IF(H47=\"Hydraulics\",1,COUNTIF($H$29:$H$74,H47))))),IF(N47=\"4PEF\",(((SUMIF('OVERALL SUMMARY'!$O$20:$O$260,H47,'OVERALL SUMMARY'!$Q$20:$Q$260)))/(IF(H47=\"Roadway\",1,IF(H47=\"Hydraulics\",1,COUNTIF($H$29:$H$74,H47))))),(((SUMIF('OVERALL SUMMARY'!$O$20:$O$260,H47,'OVERALL SUMMARY'!$R$20:$R$260))/(COUNTIF($H$29:$H$74,H47)))))))","v":""},{"$f":"IF(I47=\"\",\"\",IF(I47=0,0,IF('OVERALL SUMMARY'!$H$7<>\"\",I47/'OVERALL SUMMARY'!$H$226,I47/'OVERALL SUMMARY'!$E$226)))","v":""},null,null,null,null,{"$f":"(SUMIF($H$29:$I$74,H47,$I$29:$I$74)-(SUMIF('OVERALL SUMMARY'!$O$20:$O$260,H47,'OVERALL SUMMARY'!$R$20:$R$260)))","v":0},""]
["",null,null,null,"","",{"$f":"IF(H48=\"\",\"\",VLOOKUP(H48,FileNameSAP!$P$3:$Q$37,2,FALSE))","v":""},"",{"$f":"IF(H48=\"\",\"\",IF(N48=\"3PEF\",(((SUMIF('OVERALL SUMMARY'!$O$20:$O$260,H48,'OVERALL SUMMARY'!$P$20:$P$260)))/(IF(H48=\"Roadway\",1,IF(H48=\"Hydraulics\",1,COUNTIF($H$29:$H$74,H48))))),IF(N48=\"4PEF\",(((SUMIF('OVERALL SUMMARY'!$O$20:$O$260,H48,'OVERALL SUMMARY'!$Q$20:$Q$260)))/(IF(H48=\"Roadway\",1,IF(H48=\"Hydraulics\",1,COUNTIF($H$29:$H$74,H48))))),(((SUMIF('OVERALL SUMMARY'!$O$20:$O$260,H48,'OVERALL SUMMARY'!$R$20:$R$260))/(COUNTIF($H$29:$H$74,H48)))))))","v":""},{"$f":"IF(I48=\"\",\"\",IF(I48=0,0,IF('OVERALL SUMMARY'!$H$7<>\"\",I48/'OVERALL SUMMARY'!$H$226,I48/'OVERALL SUMMARY'!$E$226)))","v":""},null,null,null,null,{"$f":"(SUMIF($H$29:$I$74,H48,$I$29:$I$74)-(SUMIF('OVERALL SUMMARY'!$O$20:$O$260,H48,'OVERALL SUMMARY'!$R$20:$R$260)))","v":0},""]
["",null,null,null,"","",{"$f":"IF(H49=\"\",\"\",VLOOKUP(H49,FileNameSAP!$P$3:$Q$37,2,FALSE))","v":""},"",{"$f":"IF(H49=\"\",\"\",IF(N49=\"3PEF\",(((SUMIF('OVERALL SUMMARY'!$O$20:$O$260,H49,'OVERALL SUMMARY'!$P$20:$P$260)))/(IF(H49=\"Roadway\",1,IF(H49=\"Hydraulics\",1,COUNTIF($H$29:$H$74,H49))))),IF(N49=\"4PEF\",(((SUMIF('OVERALL SUMMARY'!$O$20:$O$260,H49,'OVERALL SUMMARY'!$Q$20:$Q$260)))/(IF(H49=\"Roadway\",1,IF(H49=\"Hydraulics\",1,COUNTIF($H$29:$H$74,H49))))),(((SUMIF('OVERALL SUMMARY'!$O$20:$O$260,H49,'OVERALL SUMMARY'!$R$20:$R$260))/(COUNTIF($H$29:$H$74,H49)))))))","v":""},{"$f":"IF(I49=\"\",\"\",IF(I49=0,0,IF('OVERALL SUMMARY'!$H$7<>\"\",I49/'OVERALL SUMMARY'!$H$226,I49/'OVERALL SUMMARY'!$E$226)))","v":""},null,null,null,null,{"$f":"(SUMIF($H$29:$I$74,H49,$I$29:$I$74)-(SUMIF('OVERALL SUMMARY'!$O$20:$O$260,H49,'OVERALL SUMMARY'!$R$20:$R$260)))","v":0},""]
["",null,null,null,"","",{"$f":"IF(H50=\"\",\"\",VLOOKUP(H50,FileNameSAP!$P$3:$Q$37,2,FALSE))","v":""},"",{"$f":"IF(H50=\"\",\"\",IF(N50=\"3PEF\",(((SUMIF('OVERALL SUMMARY'!$O$20:$O$260,H50,'OVERALL SUMMARY'!$P$20:$P$260)))/(IF(H50=\"Roadway\",1,IF(H50=\"Hydraulics\",1,COUNTIF($H$29:$H$74,H50))))),IF(N50=\"4PEF\",(((SUMIF('OVERALL SUMMARY'!$O$20:$O$260,H50,'OVERALL SUMMARY'!$Q$20:$Q$260)))/(IF(H50=\"Roadway\",1,IF(H50=\"Hydraulics\",1,COUNTIF($H$29:$H$74,H50))))),(((SUMIF('OVERALL SUMMARY'!$O$20:$O$260,H50,'OVERALL SUMMARY'!$R$20:$R$260))/(COUNTIF($H$29:$H$74,H50)))))))","v":""},{"$f":"IF(I50=\"\",\"\",IF(I50=0,0,IF('OVERALL SUMMARY'!$H$7<>\"\",I50/'OVERALL SUMMARY'!$H$226,I50/'OVERALL SUMMARY'!$E$226)))","v":""},null,null,null,null,{"$f":"(SUMIF($H$29:$I$74,H50,$I$29:$I$74)-(SUMIF('OVERALL SUMMARY'!$O$20:$O$260,H50,'OVERALL SUMMARY'!$R$20:$R$260)))","v":0},""]
["",null,null,null,"","",{"$f":"IF(H51=\"\",\"\",VLOOKUP(H51,FileNameSAP!$P$3:$Q$37,2,FALSE))","v":""},"",{"$f":"IF(H51=\"\",\"\",IF(N51=\"3PEF\",(((SUMIF('OVERALL SUMMARY'!$O$20:$O$260,H51,'OVERALL SUMMARY'!$P$20:$P$260)))/(IF(H51=\"Roadway\",1,IF(H51=\"Hydraulics\",1,COUNTIF($H$29:$H$74,H51))))),IF(N51=\"4PEF\",(((SUMIF('OVERALL SUMMARY'!$O$20:$O$260,H51,'OVERALL SUMMARY'!$Q$20:$Q$260)))/(IF(H51=\"Roadway\",1,IF(H51=\"Hydraulics\",1,COUNTIF($H$29:$H$74,H51))))),(((SUMIF('OVERALL SUMMARY'!$O$20:$O$260,H51,'OVERALL SUMMARY'!$R$20:$R$260))/(COUNTIF($H$29:$H$74,H51)))))))","v":""},{"$f":"IF(I51=\"\",\"\",IF(I51=0,0,IF('OVERALL SUMMARY'!$H$7<>\"\",I51/'OVERALL SUMMARY'!$H$226,I51/'OVERALL SUMMARY'!$E$226)))","v":""},null,null,null,null,{"$f":"(SUMIF($H$29:$I$74,H51,$I$29:$I$74)-(SUMIF('OVERALL SUMMARY'!$O$20:$O$260,H51,'OVERALL SUMMARY'!$R$20:$R$260)))","v":0},""]
["",null,null,null,"","",{"$f":"IF(H52=\"\",\"\",VLOOKUP(H52,FileNameSAP!$P$3:$Q$37,2,FALSE))","v":""},"",{"$f":"IF(H52=\"\",\"\",IF(N52=\"3PEF\",(((SUMIF('OVERALL SUMMARY'!$O$20:$O$260,H52,'OVERALL SUMMARY'!$P$20:$P$260)))/(IF(H52=\"Roadway\",1,IF(H52=\"Hydraulics\",1,COUNTIF($H$29:$H$74,H52))))),IF(N52=\"4PEF\",(((SUMIF('OVERALL SUMMARY'!$O$20:$O$260,H52,'OVERALL SUMMARY'!$Q$20:$Q$260)))/(IF(H52=\"Roadway\",1,IF(H52=\"Hydraulics\",1,COUNTIF($H$29:$H$74,H52))))),(((SUMIF('OVERALL SUMMARY'!$O$20:$O$260,H52,'OVERALL SUMMARY'!$R$20:$R$260))/(COUNTIF($H$29:$H$74,H52)))))))","v":""},{"$f":"IF(I52=\"\",\"\",IF(I52=0,0,IF('OVERALL SUMMARY'!$H$7<>\"\",I52/'OVERALL SUMMARY'!$H$226,I52/'OVERALL SUMMARY'!$E$226)))","v":""},null,null,null,null,{"$f":"(SUMIF($H$29:$I$74,H52,$I$29:$I$74)-(SUMIF('OVERALL SUMMARY'!$O$20:$O$260,H52,'OVERALL SUMMARY'!$R$20:$R$260)))","v":0},""]
["",null,null,null,"","",{"$f":"IF(H53=\"\",\"\",VLOOKUP(H53,FileNameSAP!$P$3:$Q$37,2,FALSE))","v":""},"",{"$f":"IF(H53=\"\",\"\",IF(N53=\"3PEF\",(((SUMIF('OVERALL SUMMARY'!$O$20:$O$260,H53,'OVERALL SUMMARY'!$P$20:$P$260)))/(IF(H53=\"Roadway\",1,IF(H53=\"Hydraulics\",1,COUNTIF($H$29:$H$74,H53))))),IF(N53=\"4PEF\",(((SUMIF('OVERALL SUMMARY'!$O$20:$O$260,H53,'OVERALL SUMMARY'!$Q$20:$Q$260)))/(IF(H53=\"Roadway\",1,IF(H53=\"Hydraulics\",1,COUNTIF($H$29:$H$74,H53))))),(((SUMIF('OVERALL SUMMARY'!$O$20:$O$260,H53,'OVERALL SUMMARY'!$R$20:$R$260))/(COUNTIF($H$29:$H$74,H53)))))))","v":""},{"$f":"IF(I53=\"\",\"\",IF(I53=0,0,IF('OVERALL SUMMARY'!$H$7<>\"\",I53/'OVERALL SUMMARY'!$H$226,I53/'OVERALL SUMMARY'!$E$226)))","v":""},null,null,null,null,{"$f":"(SUMIF($H$29:$I$74,H53,$I$29:$I$74)-(SUMIF('OVERALL SUMMARY'!$O$20:$O$260,H53,'OVERALL SUMMARY'!$R$20:$R$260)))","v":0},""]
["",null,null,null,"","",{"$f":"IF(H54=\"\",\"\",VLOOKUP(H54,FileNameSAP!$P$3:$Q$37,2,FALSE))","v":""},"",{"$f":"IF(H54=\"\",\"\",IF(N54=\"3PEF\",(((SUMIF('OVERALL SUMMARY'!$O$20:$O$260,H54,'OVERALL SUMMARY'!$P$20:$P$260)))/(IF(H54=\"Roadway\",1,IF(H54=\"Hydraulics\",1,COUNTIF($H$29:$H$74,H54))))),IF(N54=\"4PEF\",(((SUMIF('OVERALL SUMMARY'!$O$20:$O$260,H54,'OVERALL SUMMARY'!$Q$20:$Q$260)))/(IF(H54=\"Roadway\",1,IF(H54=\"Hydraulics\",1,COUNTIF($H$29:$H$74,H54))))),(((SUMIF('OVERALL SUMMARY'!$O$20:$O$260,H54,'OVERALL SUMMARY'!$R$20:$R$260))/(COUNTIF($H$29:$H$74,H54)))))))","v":""},{"$f":"IF(I54=\"\",\"\",IF(I54=0,0,IF('OVERALL SUMMARY'!$H$7<>\"\",I54/'OVERALL SUMMARY'!$H$226,I54/'OVERALL SUMMARY'!$E$226)))","v":""},null,null,null,null,{"$f":"(SUMIF($H$29:$I$74,H54,$I$29:$I$74)-(SUMIF('OVERALL SUMMARY'!$O$20:$O$260,H54,'OVERALL SUMMARY'!$R$20:$R$260)))","v":0},""]
["",null,null,null,"","",{"$f":"IF(H55=\"\",\"\",VLOOKUP(H55,FileNameSAP!$P$3:$Q$37,2,FALSE))","v":""},"",{"$f":"IF(H55=\"\",\"\",IF(N55=\"3PEF\",(((SUMIF('OVERALL SUMMARY'!$O$20:$O$260,H55,'OVERALL SUMMARY'!$P$20:$P$260)))/(IF(H55=\"Roadway\",1,IF(H55=\"Hydraulics\",1,COUNTIF($H$29:$H$74,H55))))),IF(N55=\"4PEF\",(((SUMIF('OVERALL SUMMARY'!$O$20:$O$260,H55,'OVERALL SUMMARY'!$Q$20:$Q$260)))/(IF(H55=\"Roadway\",1,IF(H55=\"Hydraulics\",1,COUNTIF($H$29:$H$74,H55))))),(((SUMIF('OVERALL SUMMARY'!$O$20:$O$260,H55,'OVERALL SUMMARY'!$R$20:$R$260))/(COUNTIF($H$29:$H$74,H55)))))))","v":""},{"$f":"IF(I55=\"\",\"\",IF(I55=0,0,IF('OVERALL SUMMARY'!$H$7<>\"\",I55/'OVERALL SUMMARY'!$H$226,I55/'OVERALL SUMMARY'!$E$226)))","v":""},null,null,null,null,{"$f":"(SUMIF($H$29:$I$74,H55,$I$29:$I$74)-(SUMIF('OVERALL SUMMARY'!$O$20:$O$260,H55,'OVERALL SUMMARY'!$R$20:$R$260)))","v":0},""]
["",null,null,null,"","",{"$f":"IF(H56=\"\",\"\",VLOOKUP(H56,FileNameSAP!$P$3:$Q$37,2,FALSE))","v":""},"",{"$f":"IF(H56=\"\",\"\",IF(N56=\"3PEF\",(((SUMIF('OVERALL SUMMARY'!$O$20:$O$260,H56,'OVERALL SUMMARY'!$P$20:$P$260)))/(IF(H56=\"Roadway\",1,IF(H56=\"Hydraulics\",1,COUNTIF($H$29:$H$74,H56))))),IF(N56=\"4PEF\",(((SUMIF('OVERALL SUMMARY'!$O$20:$O$260,H56,'OVERALL SUMMARY'!$Q$20:$Q$260)))/(IF(H56=\"Roadway\",1,IF(H56=\"Hydraulics\",1,COUNTIF($H$29:$H$74,H56))))),(((SUMIF('OVERALL SUMMARY'!$O$20:$O$260,H56,'OVERALL SUMMARY'!$R$20:$R$260))/(COUNTIF($H$29:$H$74,H56)))))))","v":""},{"$f":"IF(I56=\"\",\"\",IF(I56=0,0,IF('OVERALL SUMMARY'!$H$7<>\"\",I56/'OVERALL SUMMARY'!$H$226,I56/'OVERALL SUMMARY'!$E$226)))","v":""},null,null,null,null,{"$f":"(SUMIF($H$29:$I$74,H56,$I$29:$I$74)-(SUMIF('OVERALL SUMMARY'!$O$20:$O$260,H56,'OVERALL SUMMARY'!$R$20:$R$260)))","v":0},""]
["",null,null,null,"","",{"$f":"IF(H57=\"\",\"\",VLOOKUP(H57,FileNameSAP!$P$3:$Q$37,2,FALSE))","v":""},"",{"$f":"IF(H57=\"\",\"\",IF(N57=\"3PEF\",(((SUMIF('OVERALL SUMMARY'!$O$20:$O$260,H57,'OVERALL SUMMARY'!$P$20:$P$260)))/(IF(H57=\"Roadway\",1,IF(H57=\"Hydraulics\",1,COUNTIF($H$29:$H$74,H57))))),IF(N57=\"4PEF\",(((SUMIF('OVERALL SUMMARY'!$O$20:$O$260,H57,'OVERALL SUMMARY'!$Q$20:$Q$260)))/(IF(H57=\"Roadway\",1,IF(H57=\"Hydraulics\",1,COUNTIF($H$29:$H$74,H57))))),(((SUMIF('OVERALL SUMMARY'!$O$20:$O$260,H57,'OVERALL SUMMARY'!$R$20:$R$260))/(COUNTIF($H$29:$H$74,H57)))))))","v":""},{"$f":"IF(I57=\"\",\"\",IF(I57=0,0,IF('OVERALL SUMMARY'!$H$7<>\"\",I57/'OVERALL SUMMARY'!$H$226,I57/'OVERALL SUMMARY'!$E$226)))","v":""},null,null,null,null,{"$f":"(SUMIF($H$29:$I$74,H57,$I$29:$I$74)-(SUMIF('OVERALL SUMMARY'!$O$20:$O$260,H57,'OVERALL SUMMARY'!$R$20:$R$260)))","v":0},""]
["",null,null,null,"","",{"$f":"IF(H58=\"\",\"\",VLOOKUP(H58,FileNameSAP!$P$3:$Q$37,2,FALSE))","v":""},"",{"$f":"IF(H58=\"\",\"\",IF(N58=\"3PEF\",(((SUMIF('OVERALL SUMMARY'!$O$20:$O$260,H58,'OVERALL SUMMARY'!$P$20:$P$260)))/(IF(H58=\"Roadway\",1,IF(H58=\"Hydraulics\",1,COUNTIF($H$29:$H$74,H58))))),IF(N58=\"4PEF\",(((SUMIF('OVERALL SUMMARY'!$O$20:$O$260,H58,'OVERALL SUMMARY'!$Q$20:$Q$260)))/(IF(H58=\"Roadway\",1,IF(H58=\"Hydraulics\",1,COUNTIF($H$29:$H$74,H58))))),(((SUMIF('OVERALL SUMMARY'!$O$20:$O$260,H58,'OVERALL SUMMARY'!$R$20:$R$260))/(COUNTIF($H$29:$H$74,H58)))))))","v":""},{"$f":"IF(I58=\"\",\"\",IF(I58=0,0,IF('OVERALL SUMMARY'!$H$7<>\"\",I58/'OVERALL SUMMARY'!$H$226,I58/'OVERALL SUMMARY'!$E$226)))","v":""},null,null,null,null,{"$f":"(SUMIF($H$29:$I$74,H58,$I$29:$I$74)-(SUMIF('OVERALL SUMMARY'!$O$20:$O$260,H58,'OVERALL SUMMARY'!$R$20:$R$260)))","v":0},""]
["",null,null,null,"","",{"$f":"IF(H59=\"\",\"\",VLOOKUP(H59,FileNameSAP!$P$3:$Q$37,2,FALSE))","v":""},"",{"$f":"IF(H59=\"\",\"\",IF(N59=\"3PEF\",(((SUMIF('OVERALL SUMMARY'!$O$20:$O$260,H59,'OVERALL SUMMARY'!$P$20:$P$260)))/(IF(H59=\"Roadway\",1,IF(H59=\"Hydraulics\",1,COUNTIF($H$29:$H$74,H59))))),IF(N59=\"4PEF\",(((SUMIF('OVERALL SUMMARY'!$O$20:$O$260,H59,'OVERALL SUMMARY'!$Q$20:$Q$260)))/(IF(H59=\"Roadway\",1,IF(H59=\"Hydraulics\",1,COUNTIF($H$29:$H$74,H59))))),(((SUMIF('OVERALL SUMMARY'!$O$20:$O$260,H59,'OVERALL SUMMARY'!$R$20:$R$260))/(COUNTIF($H$29:$H$74,H59)))))))","v":""},{"$f":"IF(I59=\"\",\"\",IF(I59=0,0,IF('OVERALL SUMMARY'!$H$7<>\"\",I59/'OVERALL SUMMARY'!$H$226,I59/'OVERALL SUMMARY'!$E$226)))","v":""},null,null,null,null,{"$f":"(SUMIF($H$29:$I$74,H59,$I$29:$I$74)-(SUMIF('OVERALL SUMMARY'!$O$20:$O$260,H59,'OVERALL SUMMARY'!$R$20:$R$260)))","v":0},""]
["",null,null,null,"","",{"$f":"IF(H60=\"\",\"\",VLOOKUP(H60,FileNameSAP!$P$3:$Q$37,2,FALSE))","v":""},"",{"$f":"IF(H60=\"\",\"\",IF(N60=\"3PEF\",(((SUMIF('OVERALL SUMMARY'!$O$20:$O$260,H60,'OVERALL SUMMARY'!$P$20:$P$260)))/(IF(H60=\"Roadway\",1,IF(H60=\"Hydraulics\",1,COUNTIF($H$29:$H$74,H60))))),IF(N60=\"4PEF\",(((SUMIF('OVERALL SUMMARY'!$O$20:$O$260,H60,'OVERALL SUMMARY'!$Q$20:$Q$260)))/(IF(H60=\"Roadway\",1,IF(H60=\"Hydraulics\",1,COUNTIF($H$29:$H$74,H60))))),(((SUMIF('OVERALL SUMMARY'!$O$20:$O$260,H60,'OVERALL SUMMARY'!$R$20:$R$260))/(COUNTIF($H$29:$H$74,H60)))))))","v":""},{"$f":"IF(I60=\"\",\"\",IF(I60=0,0,IF('OVERALL SUMMARY'!$H$7<>\"\",I60/'OVERALL SUMMARY'!$H$226,I60/'OVERALL SUMMARY'!$E$226)))","v":""},null,null,null,null,{"$f":"(SUMIF($H$29:$I$74,H60,$I$29:$I$74)-(SUMIF('OVERALL SUMMARY'!$O$20:$O$260,H60,'OVERALL SUMMARY'!$R$20:$R$260)))","v":0},""]
["",null,null,null,"","",{"$f":"IF(H61=\"\",\"\",VLOOKUP(H61,FileNameSAP!$P$3:$Q$37,2,FALSE))","v":""},"",{"$f":"IF(H61=\"\",\"\",IF(N61=\"3PEF\",(((SUMIF('OVERALL SUMMARY'!$O$20:$O$260,H61,'OVERALL SUMMARY'!$P$20:$P$260)))/(IF(H61=\"Roadway\",1,IF(H61=\"Hydraulics\",1,COUNTIF($H$29:$H$74,H61))))),IF(N61=\"4PEF\",(((SUMIF('OVERALL SUMMARY'!$O$20:$O$260,H61,'OVERALL SUMMARY'!$Q$20:$Q$260)))/(IF(H61=\"Roadway\",1,IF(H61=\"Hydraulics\",1,COUNTIF($H$29:$H$74,H61))))),(((SUMIF('OVERALL SUMMARY'!$O$20:$O$260,H61,'OVERALL SUMMARY'!$R$20:$R$260))/(COUNTIF($H$29:$H$74,H61)))))))","v":""},{"$f":"IF(I61=\"\",\"\",IF(I61=0,0,IF('OVERALL SUMMARY'!$H$7<>\"\",I61/'OVERALL SUMMARY'!$H$226,I61/'OVERALL SUMMARY'!$E$226)))","v":""},null,null,null,null,{"$f":"(SUMIF($H$29:$I$74,H61,$I$29:$I$74)-(SUMIF('OVERALL SUMMARY'!$O$20:$O$260,H61,'OVERALL SUMMARY'!$R$20:$R$260)))","v":0},""]
["",null,null,null,"","",{"$f":"IF(H62=\"\",\"\",VLOOKUP(H62,FileNameSAP!$P$3:$Q$37,2,FALSE))","v":""},"",{"$f":"IF(H62=\"\",\"\",IF(N62=\"3PEF\",(((SUMIF('OVERALL SUMMARY'!$O$20:$O$260,H62,'OVERALL SUMMARY'!$P$20:$P$260)))/(IF(H62=\"Roadway\",1,IF(H62=\"Hydraulics\",1,COUNTIF($H$29:$H$74,H62))))),IF(N62=\"4PEF\",(((SUMIF('OVERALL SUMMARY'!$O$20:$O$260,H62,'OVERALL SUMMARY'!$Q$20:$Q$260)))/(IF(H62=\"Roadway\",1,IF(H62=\"Hydraulics\",1,COUNTIF($H$29:$H$74,H62))))),(((SUMIF('OVERALL SUMMARY'!$O$20:$O$260,H62,'OVERALL SUMMARY'!$R$20:$R$260))/(COUNTIF($H$29:$H$74,H62)))))))","v":""},{"$f":"IF(I62=\"\",\"\",IF(I62=0,0,IF('OVERALL SUMMARY'!$H$7<>\"\",I62/'OVERALL SUMMARY'!$H$226,I62/'OVERALL SUMMARY'!$E$226)))","v":""},null,null,null,null,{"$f":"(SUMIF($H$29:$I$74,H62,$I$29:$I$74)-(SUMIF('OVERALL SUMMARY'!$O$20:$O$260,H62,'OVERALL SUMMARY'!$R$20:$R$260)))","v":0},""]
["",null,null,null,"","",{"$f":"IF(H63=\"\",\"\",VLOOKUP(H63,FileNameSAP!$P$3:$Q$37,2,FALSE))","v":""},"",{"$f":"IF(H63=\"\",\"\",IF(N63=\"3PEF\",(((SUMIF('OVERALL SUMMARY'!$O$20:$O$260,H63,'OVERALL SUMMARY'!$P$20:$P$260)))/(IF(H63=\"Roadway\",1,IF(H63=\"Hydraulics\",1,COUNTIF($H$29:$H$74,H63))))),IF(N63=\"4PEF\",(((SUMIF('OVERALL SUMMARY'!$O$20:$O$260,H63,'OVERALL SUMMARY'!$Q$20:$Q$260)))/(IF(H63=\"Roadway\",1,IF(H63=\"Hydraulics\",1,COUNTIF($H$29:$H$74,H63))))),(((SUMIF('OVERALL SUMMARY'!$O$20:$O$260,H63,'OVERALL SUMMARY'!$R$20:$R$260))/(COUNTIF($H$29:$H$74,H63)))))))","v":""},{"$f":"IF(I63=\"\",\"\",IF(I63=0,0,IF('OVERALL SUMMARY'!$H$7<>\"\",I63/'OVERALL SUMMARY'!$H$226,I63/'OVERALL SUMMARY'!$E$226)))","v":""},null,null,null,null,{"$f":"(SUMIF($H$29:$I$74,H63,$I$29:$I$74)-(SUMIF('OVERALL SUMMARY'!$O$20:$O$260,H63,'OVERALL SUMMARY'!$R$20:$R$260)))","v":0},""]
["",null,null,null,"","",{"$f":"IF(H64=\"\",\"\",VLOOKUP(H64,FileNameSAP!$P$3:$Q$37,2,FALSE))","v":""},null,{"$f":"IF(H64=\"\",\"\",IF(N64=\"3PEF\",(((SUMIF('OVERALL SUMMARY'!$O$20:$O$260,H64,'OVERALL SUMMARY'!$P$20:$P$260)))/(IF(H64=\"Roadway\",1,IF(H64=\"Hydraulics\",1,COUNTIF($H$29:$H$74,H64))))),IF(N64=\"4PEF\",(((SUMIF('OVERALL SUMMARY'!$O$20:$O$260,H64,'OVERALL SUMMARY'!$Q$20:$Q$260)))/(IF(H64=\"Roadway\",1,IF(H64=\"Hydraulics\",1,COUNTIF($H$29:$H$74,H64))))),(((SUMIF('OVERALL SUMMARY'!$O$20:$O$260,H64,'OVERALL SUMMARY'!$R$20:$R$260))/(COUNTIF($H$29:$H$74,H64)))))))","v":""},{"$f":"IF(I64=\"\",\"\",IF(I64=0,0,IF('OVERALL SUMMARY'!$H$7<>\"\",I64/'OVERALL SUMMARY'!$H$226,I64/'OVERALL SUMMARY'!$E$226)))","v":""},null,null,null,null,{"$f":"(SUMIF($H$29:$I$74,H64,$I$29:$I$74)-(SUMIF('OVERALL SUMMARY'!$O$20:$O$260,H64,'OVERALL SUMMARY'!$R$20:$R$260)))","v":0},""]
["",null,null,null,"","",{"$f":"IF(H65=\"\",\"\",VLOOKUP(H65,FileNameSAP!$P$3:$Q$37,2,FALSE))","v":""},null,{"$f":"IF(H65=\"\",\"\",IF(N65=\"3PEF\",(((SUMIF('OVERALL SUMMARY'!$O$20:$O$260,H65,'OVERALL SUMMARY'!$P$20:$P$260)))/(IF(H65=\"Roadway\",1,IF(H65=\"Hydraulics\",1,COUNTIF($H$29:$H$74,H65))))),IF(N65=\"4PEF\",(((SUMIF('OVERALL SUMMARY'!$O$20:$O$260,H65,'OVERALL SUMMARY'!$Q$20:$Q$260)))/(IF(H65=\"Roadway\",1,IF(H65=\"Hydraulics\",1,COUNTIF($H$29:$H$74,H65))))),(((SUMIF('OVERALL SUMMARY'!$O$20:$O$260,H65,'OVERALL SUMMARY'!$R$20:$R$260))/(COUNTIF($H$29:$H$74,H65)))))))","v":""},{"$f":"IF(I65=\"\",\"\",IF(I65=0,0,IF('OVERALL SUMMARY'!$H$7<>\"\",I65/'OVERALL SUMMARY'!$H$226,I65/'OVERALL SUMMARY'!$E$226)))","v":""},null,null,null,null,{"$f":"(SUMIF($H$29:$I$74,H65,$I$29:$I$74)-(SUMIF('OVERALL SUMMARY'!$O$20:$O$260,H65,'OVERALL SUMMARY'!$R$20:$R$260)))","v":0},""]
["",null,null,null,"","",{"$f":"IF(H66=\"\",\"\",VLOOKUP(H66,FileNameSAP!$P$3:$Q$37,2,FALSE))","v":""},null,{"$f":"IF(H66=\"\",\"\",IF(N66=\"3PEF\",(((SUMIF('OVERALL SUMMARY'!$O$20:$O$260,H66,'OVERALL SUMMARY'!$P$20:$P$260)))/(IF(H66=\"Roadway\",1,IF(H66=\"Hydraulics\",1,COUNTIF($H$29:$H$74,H66))))),IF(N66=\"4PEF\",(((SUMIF('OVERALL SUMMARY'!$O$20:$O$260,H66,'OVERALL SUMMARY'!$Q$20:$Q$260)))/(IF(H66=\"Roadway\",1,IF(H66=\"Hydraulics\",1,COUNTIF($H$29:$H$74,H66))))),(((SUMIF('OVERALL SUMMARY'!$O$20:$O$260,H66,'OVERALL SUMMARY'!$R$20:$R$260))/(COUNTIF($H$29:$H$74,H66)))))))","v":""},{"$f":"IF(I66=\"\",\"\",IF(I66=0,0,IF('OVERALL SUMMARY'!$H$7<>\"\",I66/'OVERALL SUMMARY'!$H$226,I66/'OVERALL SUMMARY'!$E$226)))","v":""},null,null,null,null,{"$f":"(SUMIF($H$29:$I$74,H66,$I$29:$I$74)-(SUMIF('OVERALL SUMMARY'!$O$20:$O$260,H66,'OVERALL SUMMARY'!$R$20:$R$260)))","v":0},""]
["",null,null,null,"","",{"$f":"IF(H67=\"\",\"\",VLOOKUP(H67,FileNameSAP!$P$3:$Q$37,2,FALSE))","v":""},null,{"$f":"IF(H67=\"\",\"\",IF(N67=\"3PEF\",(((SUMIF('OVERALL SUMMARY'!$O$20:$O$260,H67,'OVERALL SUMMARY'!$P$20:$P$260)))/(IF(H67=\"Roadway\",1,IF(H67=\"Hydraulics\",1,COUNTIF($H$29:$H$74,H67))))),IF(N67=\"4PEF\",(((SUMIF('OVERALL SUMMARY'!$O$20:$O$260,H67,'OVERALL SUMMARY'!$Q$20:$Q$260)))/(IF(H67=\"Roadway\",1,IF(H67=\"Hydraulics\",1,COUNTIF($H$29:$H$74,H67))))),(((SUMIF('OVERALL SUMMARY'!$O$20:$O$260,H67,'OVERALL SUMMARY'!$R$20:$R$260))/(COUNTIF($H$29:$H$74,H67)))))))","v":""},{"$f":"IF(I67=\"\",\"\",IF(I67=0,0,IF('OVERALL SUMMARY'!$H$7<>\"\",I67/'OVERALL SUMMARY'!$H$226,I67/'OVERALL SUMMARY'!$E$226)))","v":""},null,null,null,null,{"$f":"(SUMIF($H$29:$I$74,H67,$I$29:$I$74)-(SUMIF('OVERALL SUMMARY'!$O$20:$O$260,H67,'OVERALL SUMMARY'!$R$20:$R$260)))","v":0},""]
["",null,null,null,"","",{"$f":"IF(H68=\"\",\"\",VLOOKUP(H68,FileNameSAP!$P$3:$Q$37,2,FALSE))","v":""},null,{"$f":"IF(H68=\"\",\"\",IF(N68=\"3PEF\",(((SUMIF('OVERALL SUMMARY'!$O$20:$O$260,H68,'OVERALL SUMMARY'!$P$20:$P$260)))/(IF(H68=\"Roadway\",1,IF(H68=\"Hydraulics\",1,COUNTIF($H$29:$H$74,H68))))),IF(N68=\"4PEF\",(((SUMIF('OVERALL SUMMARY'!$O$20:$O$260,H68,'OVERALL SUMMARY'!$Q$20:$Q$260)))/(IF(H68=\"Roadway\",1,IF(H68=\"Hydraulics\",1,COUNTIF($H$29:$H$74,H68))))),(((SUMIF('OVERALL SUMMARY'!$O$20:$O$260,H68,'OVERALL SUMMARY'!$R$20:$R$260))/(COUNTIF($H$29:$H$74,H68)))))))","v":""},{"$f":"IF(I68=\"\",\"\",IF(I68=0,0,IF('OVERALL SUMMARY'!$H$7<>\"\",I68/'OVERALL SUMMARY'!$H$226,I68/'OVERALL SUMMARY'!$E$226)))","v":""},null,null,null,null,{"$f":"(SUMIF($H$29:$I$74,H68,$I$29:$I$74)-(SUMIF('OVERALL SUMMARY'!$O$20:$O$260,H68,'OVERALL SUMMARY'!$R$20:$R$260)))","v":0},""]
["",null,null,null,"","",{"$f":"IF(H69=\"\",\"\",VLOOKUP(H69,FileNameSAP!$P$3:$Q$37,2,FALSE))","v":""},null,{"$f":"IF(H69=\"\",\"\",IF(N69=\"3PEF\",(((SUMIF('OVERALL SUMMARY'!$O$20:$O$260,H69,'OVERALL SUMMARY'!$P$20:$P$260)))/(IF(H69=\"Roadway\",1,IF(H69=\"Hydraulics\",1,COUNTIF($H$29:$H$74,H69))))),IF(N69=\"4PEF\",(((SUMIF('OVERALL SUMMARY'!$O$20:$O$260,H69,'OVERALL SUMMARY'!$Q$20:$Q$260)))/(IF(H69=\"Roadway\",1,IF(H69=\"Hydraulics\",1,COUNTIF($H$29:$H$74,H69))))),(((SUMIF('OVERALL SUMMARY'!$O$20:$O$260,H69,'OVERALL SUMMARY'!$R$20:$R$260))/(COUNTIF($H$29:$H$74,H69)))))))","v":""},{"$f":"IF(I69=\"\",\"\",IF(I69=0,0,IF('OVERALL SUMMARY'!$H$7<>\"\",I69/'OVERALL SUMMARY'!$H$226,I69/'OVERALL SUMMARY'!$E$226)))","v":""},null,null,null,null,{"$f":"(SUMIF($H$29:$I$74,H69,$I$29:$I$74)-(SUMIF('OVERALL SUMMARY'!$O$20:$O$260,H69,'OVERALL SUMMARY'!$R$20:$R$260)))","v":0},""]
["",null,null,null,"","",{"$f":"IF(H70=\"\",\"\",VLOOKUP(H70,FileNameSAP!$P$3:$Q$37,2,FALSE))","v":""},null,{"$f":"IF(H70=\"\",\"\",IF(N70=\"3PEF\",(((SUMIF('OVERALL SUMMARY'!$O$20:$O$260,H70,'OVERALL SUMMARY'!$P$20:$P$260)))/(IF(H70=\"Roadway\",1,IF(H70=\"Hydraulics\",1,COUNTIF($H$29:$H$74,H70))))),IF(N70=\"4PEF\",(((SUMIF('OVERALL SUMMARY'!$O$20:$O$260,H70,'OVERALL SUMMARY'!$Q$20:$Q$260)))/(IF(H70=\"Roadway\",1,IF(H70=\"Hydraulics\",1,COUNTIF($H$29:$H$74,H70))))),(((SUMIF('OVERALL SUMMARY'!$O$20:$O$260,H70,'OVERALL SUMMARY'!$R$20:$R$260))/(COUNTIF($H$29:$H$74,H70)))))))","v":""},{"$f":"IF(I70=\"\",\"\",IF(I70=0,0,IF('OVERALL SUMMARY'!$H$7<>\"\",I70/'OVERALL SUMMARY'!$H$226,I70/'OVERALL SUMMARY'!$E$226)))","v":""},null,null,null,null,{"$f":"(SUMIF($H$29:$I$74,H70,$I$29:$I$74)-(SUMIF('OVERALL SUMMARY'!$O$20:$O$260,H70,'OVERALL SUMMARY'!$R$20:$R$260)))","v":0},""]
["",null,null,null,"","",{"$f":"IF(H71=\"\",\"\",VLOOKUP(H71,FileNameSAP!$P$3:$Q$37,2,FALSE))","v":""},null,{"$f":"IF(H71=\"\",\"\",IF(N71=\"3PEF\",(((SUMIF('OVERALL SUMMARY'!$O$20:$O$260,H71,'OVERALL SUMMARY'!$P$20:$P$260)))/(IF(H71=\"Roadway\",1,IF(H71=\"Hydraulics\",1,COUNTIF($H$29:$H$74,H71))))),IF(N71=\"4PEF\",(((SUMIF('OVERALL SUMMARY'!$O$20:$O$260,H71,'OVERALL SUMMARY'!$Q$20:$Q$260)))/(IF(H71=\"Roadway\",1,IF(H71=\"Hydraulics\",1,COUNTIF($H$29:$H$74,H71))))),(((SUMIF('OVERALL SUMMARY'!$O$20:$O$260,H71,'OVERALL SUMMARY'!$R$20:$R$260))/(COUNTIF($H$29:$H$74,H71)))))))","v":""},{"$f":"IF(I71=\"\",\"\",IF(I71=0,0,IF('OVERALL SUMMARY'!$H$7<>\"\",I71/'OVERALL SUMMARY'!$H$226,I71/'OVERALL SUMMARY'!$E$226)))","v":""},null,null,null,null,{"$f":"(SUMIF($H$29:$I$74,H71,$I$29:$I$74)-(SUMIF('OVERALL SUMMARY'!$O$20:$O$260,H71,'OVERALL SUMMARY'!$R$20:$R$260)))","v":0},""]
["",null,null,null,"","",{"$f":"IF(H72=\"\",\"\",VLOOKUP(H72,FileNameSAP!$P$3:$Q$37,2,FALSE))","v":""},null,{"$f":"IF(H72=\"\",\"\",IF(N72=\"3PEF\",(((SUMIF('OVERALL SUMMARY'!$O$20:$O$260,H72,'OVERALL SUMMARY'!$P$20:$P$260)))/(IF(H72=\"Roadway\",1,IF(H72=\"Hydraulics\",1,COUNTIF($H$29:$H$74,H72))))),IF(N72=\"4PEF\",(((SUMIF('OVERALL SUMMARY'!$O$20:$O$260,H72,'OVERALL SUMMARY'!$Q$20:$Q$260)))/(IF(H72=\"Roadway\",1,IF(H72=\"Hydraulics\",1,COUNTIF($H$29:$H$74,H72))))),(((SUMIF('OVERALL SUMMARY'!$O$20:$O$260,H72,'OVERALL SUMMARY'!$R$20:$R$260))/(COUNTIF($H$29:$H$74,H72)))))))","v":""},{"$f":"IF(I72=\"\",\"\",IF(I72=0,0,IF('OVERALL SUMMARY'!$H$7<>\"\",I72/'OVERALL SUMMARY'!$H$226,I72/'OVERALL SUMMARY'!$E$226)))","v":""},null,null,null,null,{"$f":"(SUMIF($H$29:$I$74,H72,$I$29:$I$74)-(SUMIF('OVERALL SUMMARY'!$O$20:$O$260,H72,'OVERALL SUMMARY'!$R$20:$R$260)))","v":0},""]
["",null,null,null,"","",{"$f":"IF(H73=\"\",\"\",VLOOKUP(H73,FileNameSAP!$P$3:$Q$37,2,FALSE))","v":""},null,{"$f":"IF(H73=\"\",\"\",IF(N73=\"3PEF\",(((SUMIF('OVERALL SUMMARY'!$O$20:$O$260,H73,'OVERALL SUMMARY'!$P$20:$P$260)))/(IF(H73=\"Roadway\",1,IF(H73=\"Hydraulics\",1,COUNTIF($H$29:$H$74,H73))))),IF(N73=\"4PEF\",(((SUMIF('OVERALL SUMMARY'!$O$20:$O$260,H73,'OVERALL SUMMARY'!$Q$20:$Q$260)))/(IF(H73=\"Roadway\",1,IF(H73=\"Hydraulics\",1,COUNTIF($H$29:$H$74,H73))))),(((SUMIF('OVERALL SUMMARY'!$O$20:$O$260,H73,'OVERALL SUMMARY'!$R$20:$R$260))/(COUNTIF($H$29:$H$74,H73)))))))","v":""},{"$f":"IF(I73=\"\",\"\",IF(I73=0,0,IF('OVERALL SUMMARY'!$H$7<>\"\",I73/'OVERALL SUMMARY'!$H$226,I73/'OVERALL SUMMARY'!$E$226)))","v":""},null,null,null,null,{"$f":"(SUMIF($H$29:$I$74,H73,$I$29:$I$74)-(SUMIF('OVERALL SUMMARY'!$O$20:$O$260,H73,'OVERALL SUMMARY'!$R$20:$R$260)))","v":0},""]
["",null,null,null,"","",{"$f":"IF(H74=\"\",\"\",VLOOKUP(H74,FileNameSAP!$P$3:$Q$37,2,FALSE))","v":""},null,{"$f":"IF(H74=\"\",\"\",IF(N74=\"3PEF\",(((SUMIF('OVERALL SUMMARY'!$O$20:$O$260,H74,'OVERALL SUMMARY'!$P$20:$P$260)))/(IF(H74=\"Roadway\",1,IF(H74=\"Hydraulics\",1,COUNTIF($H$29:$H$74,H74))))),IF(N74=\"4PEF\",(((SUMIF('OVERALL SUMMARY'!$O$20:$O$260,H74,'OVERALL SUMMARY'!$Q$20:$Q$260)))/(IF(H74=\"Roadway\",1,IF(H74=\"Hydraulics\",1,COUNTIF($H$29:$H$74,H74))))),(((SUMIF('OVERALL SUMMARY'!$O$20:$O$260,H74,'OVERALL SUMMARY'!$R$20:$R$260))/(COUNTIF($H$29:$H$74,H74)))))))","v":""},{"$f":"IF(I74=\"\",\"\",IF(I74=0,0,IF('OVERALL SUMMARY'!$H$7<>\"\",I74/'OVERALL SUMMARY'!$H$226,I74/'OVERALL SUMMARY'!$E$226)))","v":""},null,null,null,null,{"$f":"(SUMIF($H$29:$I$74,H74,$I$29:$I$74)-(SUMIF('OVERALL SUMMARY'!$O$20:$O$260,H74,'OVERALL SUMMARY'!$R$20:$R$260)))","v":0},""]
[]
[null,"Supplemental Number:",null,null,null,null,null,null,"Fiscal # (If available):"]
[null,{"$f":"IF(REASON.FOR.SUPPLEMENTAL=\"\",\"\",CONCATENATE(\"Contract Number:  \",'OVERALL SUMMARY'!C232,\"  PO Number:  \",'OVERALL SUMMARY'!C242))","v":""}]
[]
["Approved by:",null,{"$f":"IF(SCOPE.MANDAY.ESTIMATE.APPROVED.BY=\"\",\"\",SCOPE.MANDAY.ESTIMATE.APPROVED.BY)","v":""},null,null,null,null,null,null,null,"Date:",null,{"$f":"IF(SCOPE.MANDAY.ESTIMATE.APPROVED.BY.DATE=\"\",\"\",SCOPE.MANDAY.ESTIMATE.APPROVED.BY.DATE)","v":""}]

{"sheet":"PEF CLASSIFICATION SHEET","index":7,"n_rows":1844,"n_cols":11,"rows_kept":1844,"cut":false,"hidden":false,"merged":[[2,2,2,6],[15,2,15,4],[1,2,1,6],[3,2,3,6],[9,2,9,7],[5,2,5,7]]}
[null,null,null,null,null,null,null,null,null,null,0]
[null,"TIP NUMBER:           ",{"$f":"TIP.NUMBER","v":0},null,null,null,null,null,null,null,0.09]
[null,"WBS NUMBER(s):",{"$f":"WBS.NUMBER","v":""},null,null,null,null,null,null,null,9.5000000000000001E-2]
[null,"COUNTY:",{"$f":"COUNTY","v":0},null,null,null,null,null,null,null,0.1]
[null,null,null,null,null,null,null,null,null,null,0.105]
[null,"DESCRIPTION:",{"$f":"PROJECT.DESCRIPTION","v":0},null,null,null,null,null,null,null,0.11]
[null,null,null,null,null,null,null,null,null,null,0.115]
[null,null,null,null,null,null,null,null,null,null,0.12]
[null,null,null,null,null,null,null,null,null,null,0.125]
[null,"DISCIPLINE(S) SELECTED:",{"$f":"TASK.ORDER_SCOPE","v":"PM-Project Mgmt"},null,null,null,null,null,null,null,0.13]
[null,null,null,null,null,null,null,null,null,null,0.13500000000000001]
[null,null,null,null,null,null,null,null,null,null,0.14000000000000001]
[null,null,null,null,null,null,null,null,null,null,0.14499999999999999]
[null,null,null,null,null,null,null,null,null,null,0.15]
[null,null,"** PLEASE NOTE:  Rates (Salary, Overhead, Cost of Capital) in this Estimate should match those Rates (Salary, Overhead, Cost of Capital) in CRS (Consultant Rate System)."]
[null,"PRIMARY CONSULTANT OR NCDOT UNIT:","ENTER PRIMARY CONSULTANT NAME OR NCDOT UNIT/DIVISION",null,null,null,"STANDARD FEE IS 9% UNLESS APPROVED IN WRITING by NCDOT."]
[null,"DISCIPLINE ","CLASSIFICATION","EMPLOYEE NAME / INITIALS      \n(First initial, Last initial) Name as submitted to NCDOT","RAW HOURLY RATE**","OVERHEAD**","FEE","COST OF CAPITAL**"]
[null,"(Unit(s) selected to complete the scope & workday estimate(s) for this project.  These are the same units which were selected on the \"DISCIPLINE SELECTION\" worksheet.)","(List the consultant name that is being selected to compare scope and workday estimates with NCDOT for this DISCIPLINE.  Indicate the classification or classification equivalent of each employee that will be involved in the scope of this project.)","Eg.  (JH) John Hancock II \n(List the name of each employee that will be involved on this project next to their respective classification or classification equivalent.  This field is optional if an NCDOT unit is indicated in row 16.  All firms will need to document this unless the raw hourly rate in the contract is based on the classification.)  \nNote:  Just initials will populate on the following sheets.  i.e. (JH) ","(For Consultants, this is the rate approved by NCDOT for the employee indicated and the consultant name indicated OR the classification rate contracted.  For NCDOT units, this is the rate approved for the classification or employee name indicated.)","(This is the rate approved by NCDOT for the consultant indicated in column C for this DISCIPLINE.)","(This is the rate approved by NCDOT for the consultant indicated in column C for this DISCIPLINE.)","(This is the rate approved by NCDOT for the consultant indicated in column C for this DISCIPLINE.)"]
[]
[null,"PM-Project Mgmt","CONSULTANT NAME","VENDOR NUMBER",null,null,0.09]
[null,"Project Mgmt"]
[]
[]
[]
[]
[]
[]
[]
[]
[]
[]
[]
[null,"PM-Other","CONSULTANT NAME","VENDOR NUMBER",null,null,0.09]
[null,"PM-Other"]
[null,"For Planning-Roadway or Repurposed Function"]
[null,"If needed, List Additional Classifications"]
[]
[]
[]
[]
[]
[]
[]
[]
[]
[null,"EN-Natural Env","CONSULTANT NAME","VENDOR NUMBER",null,null,0.09]
[]
[]
[]
[]
[]
[]
[]
[]
[]
[]
[]
[]
[null,"EN-Community Studies","CONSULTANT NAME","VENDOR NUMBER",null,null,0.09]
[]
[]
[]
[]
[]
[]
[]
[]
[]
[]
[]
[]
[]
[]
[]
[]
[]
[]
[]
[]
[null,"EN-Public Involvement","CONSULTANT NAME","VENDOR NUMBER",null,null,0.09]
[]
[]
[]
[]
[]
[]
[]
[]
[]
[]
[]
[]
[]
[]
[]
[]
[]
[]
[]
[]
[null,"EN-Noise","CONSULTANT NAME","VENDOR NUMBER",null,null,0.09]
[]
[]
[]
[]
[]
[]
[]
[]
[]
[]
[]
[]
[]
[]
[]
[]
[]
[]
[null,"EN-Air Quality","CONSULTANT NAME","VENDOR NUMBER",null,null,0.09]
[]
[]
[]
[]
[]
[]
[]
[]
[]
[]
[]
[]
[]
[]
[]
[]
[]
[]
[null,"EP-Env Policy","CONSULTANT NAME","VENDOR NUMBER",null,null,0.09]
[]
[]
[]
[]
[]
[]
[]
[]
[]
[]
[]
[]
[]
[]
[]
[]
[]
[]
[null,"GT-Geotechnical","CONSULTANT NAME","VENDOR NUMBER",null,null,0.09]
[]
[]
[]
[]
[]
[]
[]
[]
[]
[]
[]
[]
[]
[null,"HY-Hydraulics","CONSULTANT NAME","VENDOR NUMBER",null,null,0.09]
[null,null,"ESA"]
[null,null,"EA"]
[null,null,"EJ"]
[null,null,"EC"]
[null,null,"ETJ"]
[null,null,"ETC"]
[]
[]
[]
[]
[]
[]
[null,"IM-Public Transp","CONSULTANT NAME","VENDOR NUMBER",null,null,{"$f":"IF(F185<=0,0,0.09)","v":0}]
[null,null,null,null,null,null,"FEE = 0% if using fully-loaded rates."]
[]
[]
[]
[]
[]
[]
[]
[]
[]
[]
[]
[]
[]
[]
[]
[]
[]
[]
[]
[]
[null,"IM-Bike Ped","CONSULTANT NAME","VENDOR NUMBER",null,null,0.09]
[null,null,null,null,null,null,"FEE = 0% if using fully-loaded rates."]
[]
[]
[]
[]
[]
[]
[]
[]
[]
[]
[]
[]
[]
[]
[]
[]
[]
[]
[]
[]
[null,"LS-Location Surveys","CONSULTANT NAME","VENDOR NUMBER",null,null,0.09]
[null,null,"Project Engineer Manager"]
[null,null,"Project Survey Supervisor"]
[null,null,"Advanced Survey Coordinator"]
[null,null,"Survey Crew Leader"]
[null,null,"Assistant Survey Crew Leader"]
[null,null,"Survey Crew Member"]
[]
[]
[]
[]
[]
[]
[null,"LS-SUE","CONSULTANT NAME","VENDOR NUMBER",null,null,0.09]
[null,null,"SR CADD TECHNICIAN"]
[null,null,"PROJECT MANAGER"]
[null,null,"CADD TECHNICIAN"]
[null,null,"SURVEY ANALYST"]
[null,null,"SUE PROJ. ANALYST"]
[null,null,"TECHNICIAN II"]
[null,null,"TECHNICIAN I"]
[null,null,"ACCOUNTING CLERK"]
[null,null,"PRINCIPAL / PROF. ENGR."]
[]
[]
[]
[]
[]
[]
[]
[]
[]
[null,"PD-Final Pavement Marking & Markers","CONSULTANT NAME","VENDOR NUMBER",null,null,0.09]
[null,null,"TEM I"]
[null,null,"TES III"]
[null,null,"TE II"]
[null,null,"TE I"]
[null,null,"TT V"]
[]
[]
[]
[]
[]
[]
[null,"RD-Roadway","CONSULTANT NAME","VENDOR NUMBER",null,null,0.09]
[]
[null,"For Roadway"]
[null,"If needed, List Additional Classifications"]
[]
[]
[]
[]
[]
[]
[]
[null,"RE-Erosion Control","CONSULTANT NAME","VENDOR NUMBER",null,null,0.09]
[null,null,"PROJECT MANAGER"]
[null,null,"PROJECT ENGINEER"]
[null,null,"DESIGN ENGINEER"]
[null,null,"SENIOR TECH."]
[null,null,"TECH. / DRAFT."]
[]
[]
[]
[]
[]
[]
[null,"RR-Rail","CONSULTANT NAME","VENDOR NUMBER",null,null,0.09]
[null,null,null,null,null,null,"FEE = 0% if using fully-loaded rates."]
[]
[]
[]
[]
[]
[]
[]
[]
[]
[]
[]
[]
[]
[]
[]
[]
[]
[]
[]
[]
[null,"SD-Signing","CONSULTANT NAME","VENDOR NUMBER",null,null,0.09]
[null,null,"TEM I"]
[null,null,"TES III"]
[null,null,"TE II"]
[null,null,"TE I"]
[null,null,"TT V"]
[]
[]
[]
[]
[]
[]
[null,"SG-Signal Communications","CONSULTANT NAME","VENDOR NUMBER",null,null,0.09]
[]
[]
[]
[]
[]
[]
[]
[]
[]
[]
[]
[]
[]
[]
[null,"SG-ITS","CONSULTANT NAME","VENDOR NUMBER",null,null,0.09]
[]
[]
[]
[]
[]
[]
[]
[]
[]
[]
[]
[]
[]
[]
[null,"SG-Municipal Signal Systems","CONSULTANT NAME","VENDOR NUMBER",null,null,0.09]
[]
[]
[]
[]
[]
[]
[]
[]
[]
[]
[]
[]
[]
[]
[]
[]
[]
[]
[]
[]
[]
[]
[]
[]
[]
[]
[null,"SS-Signals","CONSULTANT NAME","VENDOR NUMBER",null,null,0.09]
[]
[]
[]
[]
[]
[]
[]
[]
[]
[]
[]
[]
[]
[]
[null,"ST-Structures","CONSULTANT NAME","VENDOR NUMBER",null,null,0.09]
[]
[]
[]
[]
[]
[]
[]
[]
[]
[]
[]
[]
[null,"TM-Work Zone Traffic Control (WZTC)","CONSULTANT NAME","VENDOR NUMBER",null,null,0.09]
[]
[]
[]
[]
[]
[]
[]
[]
[]
[]
[]
[]
[]
[]
[null,"TM-Congestion Management","CONSULTANT NAME","VENDOR NUMBER",null,null,0.09]
[null,null,"Traffic Unit Head (TM-1)"]
[null,null,"Project Engineer Sup. (TES-3)"]
[null,null,"Project Engineer Sup. (TES-2)"]
[null,null,"Project Engineer (TE-3)"]
[null,null,"Project Engineer (TE-2)"]
[null,null,"Project Engineer (TE-1)"]
[]
[]
[]
[]
[]
[]
[null,"TP-Transportation Planning","CONSULTANT NAME","VENDOR NUMBER",null,null,0.09]
[]
[null,"For Transportation Planning"]
[null,"If needed, List Additional Classifications"]
[]
[]
[]
[]
[]
[]
[]
[]
[]
[]
[]
[]
[]
[]
[null,"TP-Traffic Forecast","CONSULTANT NAME","VENDOR NUMBER",null,null,0.09]
[]
[]
[]
[]
[]
[]
[]
[]
[]
[]
[]
[]
[]
[]
[]
[]
[]
[]
[null,"UT-Utilities Coordination","CONSULTANT NAME","VENDOR NUMBER",null,null,0.09]
[null,null,"Utility Coordination Supervisor"]
[null,null,"Senior Utility Coordinator"]
[null,null,"Utility Coordinator"]
[null,null,"Junior Technician"]
[null,null,"MISCELLANEOUS1"]
[null,null,"MISCELLANEOUS2"]
[null,null,"MISCELLANEOUS3"]
[]
[]
[]
[]
[]
[]
[null,"UT-Utilities Design","CONSULTANT NAME","VENDOR NUMBER",null,null,0.09]
[null,null,"Utility Design Supervisor"]
[null,null,"Senior Utility Engineer"]
[null,null,"Utility Engineer"]
[null,null,"Junior Technician"]
[null,null,"MISCELLANEOUS1"]
[null,null,"MISCELLANEOUS2"]
[null,null,"MISCELLANEOUS3"]
[]
[]
[]
[]
[]
[]
[null,"Ferry","CONSULTANT NAME","VENDOR NUMBER",null,null,{"$f":"IF(F508<=0,0,0.09)","v":0}]
[null,{"$f":"IF(Ferry!B1=\"Ferry (Select One Below)\",\"Ferry\",Ferry!B1)","v":"Ferry"},null,null,null,null,"FEE = 0% if using fully-loaded rates."]
[]
[]
[]
[]
[]
[]
[]
[]
[]
[]
[]
[]
[]
[]
[]
[]
[]
[]
[]
[]
[null,"Aviation","CONSULTANT NAME","VENDOR NUMBER",null,null,{"$f":"IF(F530<=0,0,0.09)","v":0}]
[null,null,null,null,null,null,"FEE = 0% if using fully-loaded rates."]
[null,"For Aviation"]
[null,"If needed, List Additional Classifications"]
[]
[]
[]
[]
[]
[]
[]
[]
[]
[]
[]
[]
[]
[]
[]
[]
[]
[]
[null,"PM-Project Mgmt--SUB1","CONSULTANT NAME","VENDOR NUMBER",null,null,0.09]
[null,"Project Mgmt--SUB1"]
[]
[]
[]
[]
[]
[]
[]
[]
[]
[]
[]
[null,"PM-Project Mgmt--SUB2","CONSULTANT NAME","VENDOR NUMBER",null,null,0.09]
[null,"Project Mgmt--SUB2"]
[]
[]
[]
[]
[]
[]
[]
[]
[]
[]
[]
[null,"PM-Other--SUB1","CONSULTANT NAME","VENDOR NUMBER",null,null,0.09]
[null,{"$f":"CONCATENATE(B34,\"--SUB1\")","v":"PM-Other--SUB1"}]
[]
[]
[]
[]
[]
[]
[]
[]
[]
[]
[]
[null,"EN-Natural Env--SUB1","CONSULTANT NAME","VENDOR NUMBER",null,null,0.09]
[]
[]
[]
[]
[]
[]
[]
[]
[]
[]
[]
[]
[null,"EN-Natural Env--SUB2","CONSULTANT NAME","VENDOR NUMBER",null,null,0.09]
[]
[]
[]
[]
[]
[]
[]
[]
[]
[]
[]
[]
[null,"EN-Natural Env--SUB3","CONSULTANT NAME","VENDOR NUMBER",null,null,0.09]
[]
[]
[]
[]
[]
[]
[]
[]
[]
[]
[]
[]
[null,"EN-Community Studies--SUB1","CONSULTANT NAME","VENDOR NUMBER",null,null,0.09]
[]
[]
[]
[]
[]
[]
[]
[]
[]
[]
[]
[]
[]
[]
[]
[]
[]
[]
[]
[]
[null,"EN-Public Involvement--SUB1","CONSULTANT NAME","VENDOR NUMBER",null,null,0.09]
[]
[]
[]
[]
[]
[]
[]
[]
[]
[]
[]
[]
[]
[]
[]
[]
[]
[]
[]
[]
[null,"EN-Public Involvement--SUB2","CONSULTANT NAME","VENDOR NUMBER",null,null,0.09]
[]
[]
[]
[]
[]
[]
[]
[]
[]
[]
[]
[]
[]
[]
[]
[]
[]
[]
[]
[]
[null,"EN-Public Involvement--SUB3","CONSULTANT NAME","VENDOR NUMBER",null,null,0.09]
[]
[]
[]
[]
[]
[]
[]
[]
[]
[]
[]
[]
[]
[]
[]
[]
[]
[]
[]
[]
[null,"EN-Noise--SUB1","CONSULTANT NAME","VENDOR NUMBER",null,null,0.09]
[]
[]
[]
[]
[]
[]
[]
[]
[]
[]
[]
[]
[]
[]
[]
[]
[]
[]
[null,"EN-Air Quality--SUB1","CONSULTANT NAME","VENDOR NUMBER",null,null,0.09]
[]
[]
[]
[]
[]
[]
[]
[]
[]
[]
[]
[]
[]
[]
[]
[]
[]
[]
[null,"EP-Env Policy--SUB1","CONSULTANT NAME","VENDOR NUMBER",null,null,0.09]
[]
[]
[]
[]
[]
[]
[]
[]
[]
[]
[]
[]
[]
[]
[]
[]
[]
[]
[null,"EP-Env Policy--SUB2","CONSULTANT NAME","VENDOR NUMBER",null,null,0.09]
[]
[]
[]
[]
[]
[]
[]
[]
[]
[]
[]
[]
[]
[]
[]
[]
[]
[]
[null,"EP-Env Policy--SUB3","CONSULTANT NAME","VENDOR NUMBER",null,null,0.09]
[]
[]
[]
[]
[]
[]
[]
[]
[]
[]
[]
[]
[]
[]
[]
[]
[]
[]
[null,"GT-Geotechnical--SUB1","CONSULTANT NAME","VENDOR NUMBER",null,null,0.09]
[]
[]
[]
[]
[]
[]
[]
[]
[]
[]
[]
[]
[]
[null,"HY-Hydraulics--SUB1","CONSULTANT NAME","VENDOR NUMBER",null,null,0.09]
[null,null,"ESA"]
[null,null,"EA"]
[null,null,"EJ"]
[null,null,"EC"]
[null,null,"ETJ"]
[null,null,"ETC"]
[]
[]
[]
[]
[]
[]
[null,"IM-Public Transp--SUB1","CONSULTANT NAME","VENDOR NUMBER",null,null,{"$f":"IF(F836<=0,0,0.09)","v":0}]
[null,null,null,null,null,null,"FEE = 0% if using fully-loaded rates."]
[]
[]
[]
[]
[]
[]
[]
[]
[]
[]
[]
[]
[]
[]
[]
[]
[]
[]
[]
[]
[null,"IM-Public Transp--SUB2","CONSULTANT NAME","VENDOR NUMBER",null,null,{"$f":"IF(F858<=0,0,0.09)","v":0}]
[null,null,null,null,null,null,"FEE = 0% if using fully-loaded rates."]
[]
[]
[]
[]
[]
[]
[]
[]
[]
[]
[]
[]
[]
[]
[]
[]
[]
[]
[]
[]
[null,"IM-Public Transp--SUB3","CONSULTANT NAME","VENDOR NUMBER",null,null,{"$f":"IF(F880<=0,0,0.09)","v":0}]
[null,null,null,null,null,null,"FEE = 0% if using fully-loaded rates."]
[]
[]
[]
[]
[]
[]
[]
[]
[]
[]
[]
[]
[]
[]
[]
[]
[]
[]
[]
[]
[null,"IM-Bike Ped--SUB1","CONSULTANT NAME","VENDOR NUMBER",null,null,0.09]
[null,null,null,null,null,null,"FEE = 0% if using fully-loaded rates."]
[]
[]
[]
[]
[]
[]
[]
[]
[]
[]
[]
[]
[]
[]
[]
[]
[]
[]
[]
[]
[null,"IM-Bike Ped--SUB2","CONSULTANT NAME","VENDOR NUMBER",null,null,0.09]
[null,null,null,null,null,null,"FEE = 0% if using fully-loaded rates."]
[]
[]
[]
[]
[]
[]
[]
[]
[]
[]
[]
[]
[]
[]
[]
[]
[]
[]
[]
[]
[null,"IM-Bike Ped--SUB3","CONSULTANT NAME","VENDOR NUMBER",null,null,0.09]
[null,null,null,null,null,null,"FEE = 0% if using fully-loaded rates."]
[]
[]
[]
[]
[]
[]
[]
[]
[]
[]
[]
[]
[]
[]
[]
[]
[]
[]
[]
[]
[null,"IM-Bike Ped--SUB4","CONSULTANT NAME","VENDOR NUMBER",null,null,0.09]
[null,null,null,null,null,null,"FEE = 0% if using fully-loaded rates."]
[]
[]
[]
[]
[]
[]
[]
[]
[]
[]
[]
[]
[]
[]
[]
[]
[]
[]
[]
[]
[null,"LS-Location Surveys--SUB1","CONSULTANT NAME","VENDOR NUMBER",null,null,0.09]
[null,null,"Project Engineer Manager"]
[null,null,"Project Survey Supervisor"]
[null,null,"Advanced Survey Coordinator"]
[null,null,"Survey Crew Leader"]
[null,null,"Assistant Survey Crew Leader"]
[null,null,"Survey Crew Member"]
[]
[]
[]
[]
[]
[]
[null,"LS-Location Surveys--SUB2","CONSULTANT NAME","VENDOR NUMBER",null,null,0.09]
[null,null,"Project Engineer Manager"]
[null,null,"Project Survey Supervisor"]
[null,null,"Advanced Survey Coordinator"]
[null,null,"Survey Crew Leader"]
[null,null,"Assistant Survey Crew Leader"]
[null,null,"Survey Crew Member"]
[]
[]
[]
[]
[]
[]
[null,"LS-SUE--SUB1","CONSULTANT NAME","VENDOR NUMBER",null,null,0.09]
[null,null,"SR CADD TECHNICIAN"]
[null,null,"PROJECT MANAGER"]
[null,null,"CADD TECHNICIAN"]
[null,null,"SURVEY ANALYST"]
[null,null,"SUE PROJ. ANALYST"]
[null,null,"TECHNICIAN II"]
[null,null,"TECHNICIAN I"]
[null,null,"ACCOUNTING CLERK"]
[null,null,"PRINCIPAL / PROF. ENGR."]
[]
[]
[]
[]
[]
[]
[]
[]
[]
[null,"LS-SUE--SUB2","CONSULTANT NAME","VENDOR NUMBER",null,null,0.09]
[null,null,"SR CADD TECHNICIAN"]
[null,null,"PROJECT MANAGER"]
[null,null,"CADD TECHNICIAN"]
[null,null,"SURVEY ANALYST"]
[null,null,"SUE PROJ. ANALYST"]
[null,null,"TECHNICIAN II"]
[null,null,"TECHNICIAN I"]
[null,null,"ACCOUNTING CLERK"]
[null,null,"PRINCIPAL / PROF. ENGR."]
[]
[]
[]
[]
[]
[]
[]
[]
[]
[null,"PD-Final Pavement Marking & Markers--SUB1","CONSULTANT NAME","VENDOR NUMBER",null,null,0.09]
[null,null,"TEM I"]
[null,null,"TES III"]
[null,null,"TE II"]
[null,null,"TE I"]
[null,null,"TT V"]
[]
[]
[]
[]
[]
[]
[null,"RD-Roadway--SUB1","CONSULTANT NAME","VENDOR NUMBER",null,null,0.09]
[]
[]
[]
[]
[]
[]
[]
[]
[]
[]
[null,"RD-Roadway--SUB2","CONSULTANT NAME","VENDOR NUMBER",null,null,0.09]
[]
[]
[]
[]
[]
[]
[]
[]
[]
[]
[null,"RE-Erosion Control--SUB1","CONSULTANT NAME","VENDOR NUMBER",null,null,0.09]
[null,null,"PROJECT MANAGER"]
[null,null,"PROJECT ENGINEER"]
[null,null,"DESIGN ENGINEER"]
[null,null,"SENIOR TECH."]
[null,null,"TECH. / DRAFT."]
[]
[]
[]
[]
[]
[]
[null,"RR-Rail--SUB1","CONSULTANT NAME","VENDOR NUMBER",null,null,0.09]
[null,null,null,null,null,null,"FEE = 0% if using fully-loaded rates."]
[]
[]
[]
[]
[]
[]
[]
[]
[]
[]
[]
[]
[]
[]
[]
[]
[]
[]
[]
[]
[null,"RR-Rail--SUB2","CONSULTANT NAME","VENDOR NUMBER",null,null,0.09]
[null,null,null,null,null,null,"FEE = 0% if using fully-loaded rates."]
[]
[]
[]
[]
[]
[]
[]
[]
[]
[]
[]
[]
[]
[]
[]
[]
[]
[]
[]
[]
[null,"RR-Rail--SUB3","CONSULTANT NAME","VENDOR NUMBER",null,null,0.09]
[null,null,null,null,null,null,"FEE = 0% if using fully-loaded rates."]
[]
[]
[]
[]
[]
[]
[]
[]
[]
[]
[]
[]
[]
[]
[]
[]
[]
[]
[]
[]
[null,"RR-Rail--SUB4","CONSULTANT NAME","VENDOR NUMBER",null,null,0.09]
[null,null,null,null,null,null,"FEE = 0% if using fully-loaded rates."]
[]
[]
[]
[]
[]
[]
[]
[]
[]
[]
[]
[]
[]
[]
[]
[]
[]
[]
[]
[]
[null,"RR-Rail--SUB5","CONSULTANT NAME","VENDOR NUMBER",null,null,0.09]
[null,null,null,null,null,null,"FEE = 0% if using fully-loaded rates."]
[]
[]
[]
[]
[]
[]
[]
[]
[]
[]
[]
[]
[]
[]
[]
[]
[]
[]
[]
[]
[null,"RR-Rail--SUB6","CONSULTANT NAME","VENDOR NUMBER",null,null,0.09]
[null,null,null,null,null,null,"FEE = 0% if using fully-loaded rates."]
[]
[]
[]
[]
[]
[]
[]
[]
[]
[]
[]
[]
[]
[]
[]
[]
[]
[]
[]
[]
[null,"RR-Rail--SUB7","CONSULTANT NAME","VENDOR NUMBER",null,null,0.09]
[null,null,null,null,null,null,"FEE = 0% if using fully-loaded rates."]
[]
[]
[]
[]
[]
[]
[]
[]
[]
[]
[]
[]
[]
[]
[]
[]
[]
[]
[]
[]
[null,"RR-Rail--SUB8","CONSULTANT NAME","VENDOR NUMBER",null,null,0.09]
[null,null,null,null,null,null,"FEE = 0% if using fully-loaded rates."]
[]
[]
[]
[]
[]
[]
[]
[]
[]
[]
[]
[]
[]
[]
[]
[]
[]
[]
[]
[]
[null,"RR-Rail--SUB9","CONSULTANT NAME","VENDOR NUMBER",null,null,0.09]
[null,null,null,null,null,null,"FEE = 0% if using fully-loaded rates."]
[]
[]
[]
[]
[]
[]
[]
[]
[]
[]
[]
[]
[]
[]
[]
[]
[]
[]
[]
[]
[null,"RR-Rail--SUB10","CONSULTANT NAME","VENDOR NUMBER",null,null,0.09]
[null,null,null,null,null,null,"FEE = 0% if using fully-loaded rates."]
[]
[]
[]
[]
[]
[]
[]
[]
[]
[]
[]
[]
[]
[]
[]
[]
[]
[]
[]
[]
[null,"SD-Signing--SUB1","CONSULTANT NAME","VENDOR NUMBER",null,null,0.09]
[null,null,"TEM I"]
[null,null,"TES III"]
[null,null,"TE II"]
[null,null,"TE I"]
[null,null,"TT V"]
[]
[]
[]
[]
[]
[]
[null,"SG-ITS--SUB1","CONSULTANT NAME","VENDOR NUMBER",null,null,0.09]
[]
[]
[]
[]
[]
[]
[]
[]
[]
[]
[]
[]
[]
[]
[null,"SG-ITS--SUB2","CONSULTANT NAME","VENDOR NUMBER",null,null,0.09]
[]
[]
[]
[]
[]
[]
[]
[]
[]
[]
[]
[]
[]
[]
[null,"SG-ITS--SUB3","CONSULTANT NAME","VENDOR NUMBER",null,null,0.09]
[]
[]
[]
[]
[]
[]
[]
[]
[]
[]
[]
[]
[]
[]
[null,"SG-ITS--SUB4","CONSULTANT NAME","VENDOR NUMBER",null,null,0.09]
[]
[]
[]
[]
[]
[]
[]
[]
[]
[]
[]
[]
[]
[]
[null,"SG-Municipal Signal Systems--SUB1","CONSULTANT NAME","VENDOR NUMBER",null,null,0.09]
[]
[]
[]
[]
[]
[]
[]
[]
[]
[]
[]
[]
[]
[]
[]
[]
[]
[]
[]
[]
[]
[]
[]
[]
[]
[]
[null,"SG-Municipal Signal Systems--SUB2","CONSULTANT NAME","VENDOR NUMBER",null,null,0.09]
[]
[]
[]
[]
[]
[]
[]
[]
[]
[]
[]
[]
[]
[]
[]
[]
[]
[]
[]
[]
[]
[]
[]
[]
[]
[]
[null,"SG-Municipal Signal Systems--SUB3","CONSULTANT NAME","VENDOR NUMBER",null,null,0.09]
[]
[]
[]
[]
[]
[]
[]
[]
[]
[]
[]
[]
[]
[]
[]
[]
[]
[]
[]
[]
[]
[]
[]
[]
[]
[]
[null,"SG-Municipal Signal Systems--SUB4","CONSULTANT NAME","VENDOR NUMBER",null,null,0.09]
[]
[]
[]
[]
[]
[]
[]
[]
[]
[]
[]
[]
[]
[]
[]
[]
[]
[]
[]
[]
[]
[]
[]
[]
[]
[]
[null,"ST-Structures--SUB1","CONSULTANT NAME","VENDOR NUMBER",null,null,0.09]
[]
[]
[]
[]
[]
[]
[]
[]
[]
[]
[]
[]
[null,"TM-Work Zone Traffic Control (WZTC)--SUB1","CONSULTANT NAME","VENDOR NUMBER",null,null,0.09]
[]
[]
[]
[]
[]
[]
[]
[]
[]
[]
[]
[]
[]
[]
[null,"TP-Transportation Planning--SUB1","CONSULTANT NAME","VENDOR NUMBER",null,null,0.09]
[]
[]
[]
[]
[]
[]
[]
[]
[]
[]
[]
[]
[]
[]
[]
[]
[]
[null,"TP-Transportation Planning--SUB2","CONSULTANT NAME","VENDOR NUMBER",null,null,0.09]
[]
[]
[]
[]
[]
[]
[]
[]
[]
[]
[]
[]
[]
[]
[]
[]
[]
[null,"TP-Transportation Planning--SUB3","CONSULTANT NAME","VENDOR NUMBER",null,null,0.09]
[]
[]
[]
[]
[]
[]
[]
[]
[]
[]
[]
[]
[]
[]
[]
[]
[]
[null,"TP-Traffic Forecast--SUB1","CONSULTANT NAME","VENDOR NUMBER",null,null,0.09]
[]
[]
[]
[]
[]
[]
[]
[]
[]
[]
[]
[]
[]
[]
[]
[]
[]
[]
[null,"TP-Traffic Forecast--SUB2","CONSULTANT NAME","VENDOR NUMBER",null,null,0.09]
[]
[]
[]
[]
[]
[]
[]
[]
[]
[]
[]
[]
[]
[]
[]
[]
[]
[]
[null,"TP-Traffic Forecast--SUB3","CONSULTANT NAME","VENDOR NUMBER",null,null,0.09]
[]
[]
[]
[]
[]
[]
[]
[]
[]
[]
[]
[]
[]
[]
[]
[]
[]
[]
[null,"UT-Utilities Coordination--SUB1","CONSULTANT NAME","VENDOR NUMBER",null,null,0.09]
[null,null,"Utility Coordination Supervisor"]
[null,null,"Senior Utility Coordinator"]
[null,null,"Utility Coordinator"]
[null,null,"Junior Technician"]
[null,null,"MISCELLANEOUS1"]
[null,null,"MISCELLANEOUS2"]
[null,null,"MISCELLANEOUS3"]
[]
[]
[]
[]
[]
[]
[null,"UT-Utilities Design--SUB1","CONSULTANT NAME","VENDOR NUMBER",null,null,0.09]
[null,null,"Utility Design Supervisor"]
[null,null,"Senior Utility Engineer"]
[null,null,"Utility Engineer"]
[null,null,"Junior Technician"]
[null,null,"MISCELLANEOUS1"]
[null,null,"MISCELLANEOUS2"]
[null,null,"MISCELLANEOUS3"]
[]
[]
[]
[]
[]
[]
[null,"Ferry--SUB1","CONSULTANT NAME","VENDOR NUMBER",null,null,{"$f":"IF(F1667<=0,0,0.09)","v":0}]
[null,{"$f":"CONCATENATE(IF('Ferry-Sub1'!$B$1=\"Ferry (Select One Below)\",\"Ferry\",'Ferry-Sub1'!$B$1),\"--SUB1\")","v":"Ferry--SUB1"},null,null,null,null,"FEE = 0% if using fully-loaded rates."]
[]
[]
[]
[]
[]
[]
[]
[]
[]
[]
[]
[]
[]
[]
[]
[]
[]
[]
[]
[]
[null,"Ferry--SUB2","CONSULTANT NAME","VENDOR NUMBER",null,null,{"$f":"IF(F1689<=0,0,0.09)","v":0}]
[null,{"$f":"CONCATENATE(IF('Ferry-Sub2'!$B$1=\"Ferry (Select One Below)\",\"Ferry\",'Ferry-Sub2'!$B$1),\"--SUB2\")","v":"Ferry--SUB2"},null,null,null,null,"FEE = 0% if using fully-loaded rates."]
[]
[]
[]
[]
[]
[]
[]
[]
[]
[]
[]
[]
[]
[]
[]
[]
[]
[]
[]
[]
[null,"Ferry--SUB3","CONSULTANT NAME","VENDOR NUMBER",null,null,{"$f":"IF(F1711<=0,0,0.09)","v":0}]
[null,{"$f":"CONCATENATE(IF('Ferry-Sub3'!$B$1=\"Ferry (Select One Below)\",\"Ferry\",'Ferry-Sub3'!$B$1),\"--SUB3\")","v":"Ferry--SUB3"},null,null,null,null,"FEE = 0% if using fully-loaded rates."]
[]
[]
[]
[]
[]
[]
[]
[]
[]
[]
[]
[]
[]
[]
[]
[]
[]
[]
[]
[]
[null,"Ferry--SUB4","CONSULTANT NAME","VENDOR NUMBER",null,null,{"$f":"IF(F1733<=0,0,0.09)","v":0}]
[null,{"$f":"CONCATENATE(IF('Ferry-Sub4'!$B$1=\"Ferry (Select One Below)\",\"Ferry\",'Ferry-Sub4'!$B$1),\"--SUB4\")","v":"Ferry--SUB4"},null,null,null,null,"FEE = 0% if using fully-loaded rates."]
[]
[]
[]
[]
[]
[]
[]
[]
[]
[]
[]
[]
[]
[]
[]
[]
[]
[]
[]
[]
[null,"Ferry--SUB5","CONSULTANT NAME","VENDOR NUMBER",null,null,{"$f":"IF(F1755<=0,0,0.09)","v":0}]
[null,{"$f":"CONCATENATE(IF('Ferry-Sub5'!$B$1=\"Ferry (Select One Below)\",\"Ferry\",'Ferry-Sub5'!$B$1),\"--SUB5\")","v":"Ferry--SUB5"},null,null,null,null,"FEE = 0% if using fully-loaded rates."]
[]
[]
[]
[]
[]
[]
[]
[]
[]
[]
[]
[]
[]
[]
[]
[]
[]
[]
[]
[]
[null,"Aviation--SUB1","CONSULTANT NAME","VENDOR NUMBER",null,null,{"$f":"IF(F1777<=0,0,0.09)","v":0}]
[null,null,null,null,null,null,"FEE = 0% if using fully-loaded rates."]
[]
[]
[]
[]
[]
[]
[]
[]
[]
[]
[]
[]
[]
[]
[]
[]
[]
[]
[]
[]
[null,"Aviation--SUB2","CONSULTANT NAME","VENDOR NUMBER",null,null,{"$f":"IF(F1799<=0,0,0.09)","v":0}]
[null,null,null,null,null,null,"FEE = 0% if using fully-loaded rates."]
[]
[]
[]
[]
[]
[]
[]
[]
[]
[]
[]
[]
[]
[]
[]
[]
[]
[]
[]
[]
[null,"Aviation--SUB3","CONSULTANT NAME","VENDOR NUMBER",null,null,{"$f":"IF(F1821<=0,0,0.09)","v":0}]
[null,null,null,null,null,null,"FEE = 0% if using fully-loaded rates."]
[]
[]
[]
[]
[]
[]
[]
[]
[]
[]
[]
[]
[]
[]
[]
[]
[]
[]
[]
[]
[null,"Aviation--SUB4","CONSULTANT NAME","VENDOR NUMBER",null,null,{"$f":"IF(F1843<=0,0,0.09)","v":0}]
[null,null,null,null,null,null,"FEE = 0% if using fully-loaded rates."]

{"sheet":"PM","index":8,"n_rows":144,"n_cols":19,"rows_kept":144,"cut":false,"hidden":false,"merged":[[3,17,3,18],[6,3,10,3],[6,4,10,4],[6,5,10,5],[6,6,10,6],[6,7,10,7],[6,8,10,8],[110,17,110,18],[112,17,112,18],[60,17,60,18],[62,17,62,18],[63,17,63,18],[64,17,64,18],[65,17,65,18],[99,17,99,18],[100,17,100,18],[101,17,101,18],[103,17,103,18],[104,17,104,18],[93,17,93,18],[94,17,94,18],[95,17,95,18],[96,17,96,18],[98,17,98,18],[102,17,102,18],[107,17,107,18],[105,17,105,18],[106,17,106,18],[57,17,57,18],[58,17,58,18],[59,17,59,18],[84,17,84,18],[85,17,85,18],[86,17,86,18],[87,17,87,18],[89,17,89,18],[90,17,90,18],[91,17,91,18],[92,17,92,18],[83,17,83,18],[75,17,75,18],[76,17,76,18],[77,17,77,18],[15,17,15,18],[19,17,19,18],[23,17,23,18],[46,17,46,18],[51,17,51,18],[56,17,56,18],[61,17,61,18],[66,17,66,18],[32,17,32,18],[20,17,20,18],[21,17,21,18],[22,17,22,18],[24,17,24,18],[25,17,25,18],[26,17,26,18],[27,17,27,18],[28,17,28,18],[29,17,29,18],[30,17,30,18],[31,17,31,18],[114,17,114,18],[116,17,116,18],[118,17,118,18],[111,17,111,18],[113,17,113,18],[2,15,2,16],[3,15,3,16],[133,1,134,1],[133,3,134,4],[55,17,55,18],[108,17,108,18],[45,17,45,18],[47,17,47,18],[48,17,48,18],[49,17,49,18],[50,17,50,18],[67,17,67,18],[68,17,68,18],[69,17,69,18],[71,17,71,18],[72,17,72,18],[73,17,73,18],[88,17,88,18],[11,17,11,18],[136,3,136,6],[136,8,136,18],[115,17,115,18],[117,17,117,18],[119,17,119,18],[143,8,143,14],[143,15,143,16],[137,8,137,14],[137,15,137,16],[138,8,138,14],[138,15,138,16],[141,8,141,18],[142,8,142,14],[142,15,142,16],[109,17,109,18],[44,17,44,18],[33,17,33,18],[34,17,34,18],[35,17,35,18],[36,17,36,18],[37,17,37,18],[38,17,38,18],[39,17,39,18],[40,17,40,18],[41,17,41,18],[42,17,42,18],[43,17,43,18],[52,17,52,18],[53,17,53,18],[54,17,54,18],[78,17,78,18],[79,17,79,18],[80,17,80,18],[81,17,81,18],[82,17,82,18],[70,17,70,18],[74,17,74,18],[97,17,97,18],[2,20,2,21],[0,0,1,4],[0,5,1,18],[2,1,2,4],[2,6,2,7],[2,10,2,11],[2,17,2,18],[18,17,18,18],[3,1,3,4],[3,6,3,7],[3,10,3,11],[3,20,3,21],[9,17,9,18],[12,17,12,18],[13,17,13,18],[14,17,14,18],[16,17,16,18],[17,17,17,18],[4,3,4,13],[6,9,10,9],[6,10,10,10],[6,11,10,11],[6,12,10,12],[6,13,10,13]]}
[{"$f":"PDEA_OTHER_CONSULTANT_DISCIPLINE","v":"Project Mgmt"},null,null,null,null,"DESIGN BREAKDOWN WORKSHEET - Project Mgmt"]
[]
["PROJECT DESCRIPTION: ",{"$f":"PROJECT.DESCRIPTION","v":0},null,null,null,"FIRM:  ",{"$f":"PDEA_OTHER_CONSULTANT_NAME","v":"CONSULTANT NAME"},null,"TASK ORDER NUMBER:",null,{"$f":"TASK.ORDER.NUMBER","v":0},null,null,null,null,"DATE PREPARED:",null,{"$f":"IF(SCOPE.MANDAY.ESTIMATE.PREPARED.BY.DATE=\"\",\"\",SCOPE.MANDAY.ESTIMATE.PREPARED.BY.DATE)","v":""}]
["PREPARED BY:  ",{"$f":"IF(SCOPE.MANDAY.ESTIMATE.PREPARED.BY=\"\",\"\",SCOPE.MANDAY.ESTIMATE.PREPARED.BY)","v":""},null,null,null,"TIP NUMBER:",{"$f":"TIP.NUMBER","v":0},null,"WBS NUMBER:",null,{"$f":"WBS.NUMBER","v":""},null,null,null,null,"REVISION DATE:",null,{"$f":"IF(SCOPE.MANDAY.ESTIMATE.APPROVED.BY.DATE=\"\",\"\",SCOPE.MANDAY.ESTIMATE.APPROVED.BY.DATE)","v":""}]
[null,null,null,"ESTIMATED WORK DAYS"]
[null,null,"Employee",{"$f":"IF('PEF CLASSIFICATION SHEET'!$D21=\"\",\"\",LEFT('PEF CLASSIFICATION SHEET'!$D21,4))","v":""},{"$f":"IF('PEF CLASSIFICATION SHEET'!$D22=\"\",\"\",LEFT('PEF CLASSIFICATION SHEET'!$D22,4))","v":""},{"$f":"IF('PEF CLASSIFICATION SHEET'!$D23=\"\",\"\",LEFT('PEF CLASSIFICATION SHEET'!$D23,4))","v":""},{"$f":"IF('PEF CLASSIFICATION SHEET'!$D24=\"\",\"\",LEFT('PEF CLASSIFICATION SHEET'!$D24,4))","v":""},{"$f":"IF('PEF CLASSIFICATION SHEET'!$D25=\"\",\"\",LEFT('PEF CLASSIFICATION SHEET'!$D25,4))","v":""},{"$f":"IF('PEF CLASSIFICATION SHEET'!$D26=\"\",\"\",LEFT('PEF CLASSIFICATION SHEET'!$D26,4))","v":""},{"$f":"IF('PEF CLASSIFICATION SHEET'!$D27=\"\",\"\",LEFT('PEF CLASSIFICATION SHEET'!$D27,4))","v":""},{"$f":"IF('PEF CLASSIFICATION SHEET'!D28=\"\",\"\",LEFT('PEF CLASSIFICATION SHEET'!D28,4))","v":""},{"$f":"IF('PEF CLASSIFICATION SHEET'!D29=\"\",\"\",LEFT('PEF CLASSIFICATION SHEET'!D29,4))","v":""},{"$f":"IF('PEF CLASSIFICATION SHEET'!D30=\"\",\"\",LEFT('PEF CLASSIFICATION SHEET'!D30,4))","v":""},{"$f":"IF('PEF CLASSIFICATION SHEET'!D31=\"\",\"\",LEFT('PEF CLASSIFICATION SHEET'!D31,4))","v":""}]
[null,null,null,{"$f":"IF('PEF CLASSIFICATION SHEET'!$C21=\"\",\"\",'PEF CLASSIFICATION SHEET'!$C21)","v":""},{"$f":"IF('PEF CLASSIFICATION SHEET'!$C22=\"\",\"\",'PEF CLASSIFICATION SHEET'!$C22)","v":""},{"$f":"IF('PEF CLASSIFICATION SHEET'!$C23=\"\",\"\",'PEF CLASSIFICATION SHEET'!$C23)","v":""},{"$f":"IF('PEF CLASSIFICATION SHEET'!$C24=\"\",\"\",'PEF CLASSIFICATION SHEET'!$C24)","v":""},{"$f":"IF('PEF CLASSIFICATION SHEET'!$C25=\"\",\"\",'PEF CLASSIFICATION SHEET'!$C25)","v":""},{"$f":"IF('PEF CLASSIFICATION SHEET'!$C26=\"\",\"\",'PEF CLASSIFICATION SHEET'!$C26)","v":""},{"$f":"IF('PEF CLASSIFICATION SHEET'!$C27=\"\",\"\",'PEF CLASSIFICATION SHEET'!$C27)","v":""},{"$f":"IF('PEF CLASSIFICATION SHEET'!C28=\"\",\"\",'PEF CLASSIFICATION SHEET'!C28)","v":""},{"$f":"IF('PEF CLASSIFICATION SHEET'!C29=\"\",\"\",'PEF CLASSIFICATION SHEET'!C29)","v":""},{"$f":"IF('PEF CLASSIFICATION SHEET'!C30=\"\",\"\",'PEF CLASSIFICATION SHEET'!C30)","v":""},{"$f":"IF('PEF CLASSIFICATION SHEET'!C31=\"\",\"\",'PEF CLASSIFICATION SHEET'!C31)","v":""}]
[null,null,"Classification",null,null,null,null,null,null,null,null,null,null,null,"SUB-","%","PEF"]
[null,null,null,null,null,null,null,null,null,null,null,null,null,null,"TOTAL","OF","ESTIMATE"]
["TASK","TASK DESCRIPTION",null,null,null,null,null,null,null,null,null,null,null,null,null,"PROJECT",null,"COMMENTS"]
["NO."]
["2PM1/3PM1/4PM1","Project Management ",null,null,null,null,null,null,null,null,null,null,null,null,{"$f":"IF(B12=\"\",0,IF((SUM(D12:N12)=0),\"\",SUM(D12:N12)))","v":""},{"$f":"IF(O12=\"\",\"\",SUM((O12/$O$121)))","v":""}]
[1,"Project Management and Coordination ",null,null,null,null,null,null,null,null,null,null,null,null,{"$f":"IF($B13=\"\",0,IF((SUM($D13:N13)=0),\"\",SUM($D13:N13)))","v":""},{"$f":"IF(O13=\"\",\"\",SUM((O13/O$121)))","v":""}]
[null,"Coordination with NCDOT PM",null,null,null,null,null,null,null,null,null,null,null,null,{"$f":"IF(B14=\"\",0,IF((SUM(D14:N14)=0),\"\",SUM(D14:N14)))","v":""},{"$f":"IF(O14=\"\",\"\",SUM((O14/$O$121)))","v":""}]
[null,"Coordination with other NCDOT disciplines/units",null,null,null,null,null,null,null,null,null,null,null,null,"",""]
[null,"Coordination with external stakeholders and agencies",null,null,null,null,null,null,null,null,null,null,null,null,"",""]
[null,"Internal coordination with project team",null,null,null,null,null,null,null,null,null,null,null,null,"",""]
[null,"Document all meetings and calls",null,null,null,null,null,null,null,null,null,null,null,null,"",""]
[null,"Maintain administrative record and internal project files",null,null,null,null,null,null,null,null,null,null,null,null,"",""]
[null,"Maintain Connect/SharePoint files and ATLAS Workbench",null,null,null,null,null,null,null,null,null,null,null,null,"",""]
[null,"Prepare for and attend meetings",null,null,null,null,null,null,null,null,null,null,null,null,"",""]
[null,null,null,null,null,null,null,null,null,null,null,null,null,null,0,{"$error":"#DIV/0!"}]
[null,null,null,null,null,null,null,null,null,null,null,null,null,null,0,{"$error":"#DIV/0!"}]
[null,null,null,null,null,null,null,null,null,null,null,null,null,null,0,{"$error":"#DIV/0!"}]
[2,"Project Schedule",null,null,null,null,null,null,null,null,null,null,null,null,"",""]
[null,"Develop Schedule",null,null,null,null,null,null,null,null,null,null,null,null,"",""]
[null,"Maintain Schedule",null,null,null,null,null,null,null,null,null,null,null,null,"",""]
[null,null,null,null,null,null,null,null,null,null,null,null,null,null,0,{"$error":"#DIV/0!"}]
[null,null,null,null,null,null,null,null,null,null,null,null,null,null,0,{"$error":"#DIV/0!"}]
[null,null,null,null,null,null,null,null,null,null,null,null,null,null,0,{"$error":"#DIV/0!"}]
[null,null,null,null,null,null,null,null,null,null,null,null,null,null,0,{"$error":"#DIV/0!"}]
[3,"Monthly PM Status Reports and Invoicing",null,null,null,null,null,null,null,null,null,null,null,null,"",""]
[null,null,null,null,null,null,null,null,null,null,null,null,null,null,0,{"$error":"#DIV/0!"}]
[null,null,null,null,null,null,null,null,null,null,null,null,null,null,0,{"$error":"#DIV/0!"}]
[null,null,null,null,null,null,null,null,null,null,null,null,null,null,0,{"$error":"#DIV/0!"}]
[null,null,null,null,null,null,null,null,null,null,null,null,null,null,0,{"$error":"#DIV/0!"}]
[null,null,null,null,null,null,null,null,null,null,null,null,null,null,0,{"$error":"#DIV/0!"}]
[null,null,null,null,null,null,null,null,null,null,null,null,null,null,0,{"$error":"#DIV/0!"}]
[4,"QC/QA Procedures",null,null,null,null,null,null,null,null,null,null,null,null,"",""]
[null,null,null,null,null,null,null,null,null,null,null,null,null,null,0,{"$error":"#DIV/0!"}]
[null,null,null,null,null,null,null,null,null,null,null,null,null,null,0,{"$error":"#DIV/0!"}]
[null,null,null,null,null,null,null,null,null,null,null,null,null,null,0,{"$error":"#DIV/0!"}]
[null,null,null,null,null,null,null,null,null,null,null,null,null,null,0,{"$error":"#DIV/0!"}]
[null,null,null,null,null,null,null,null,null,null,null,null,null,null,0,{"$error":"#DIV/0!"}]
[null,null,null,null,null,null,null,null,null,null,null,null,null,null,0,{"$error":"#DIV/0!"}]
[5,"Value Management Tasks",null,null,null,null,null,null,null,null,null,null,null,null,"",""]
[null,null,null,null,null,null,null,null,null,null,null,null,null,null,0,{"$error":"#DIV/0!"}]
[null,null,null,null,null,null,null,null,null,null,null,null,null,null,0,{"$error":"#DIV/0!"}]
[null,null,null,null,null,null,null,null,null,null,null,null,null,null,0,{"$error":"#DIV/0!"}]
[null,null,null,null,null,null,null,null,null,null,null,null,null,null,0,{"$error":"#DIV/0!"}]
[null,null,null,null,null,null,null,null,null,null,null,null,null,null,0,{"$error":"#DIV/0!"}]
[null,null,null,null,null,null,null,null,null,null,null,null,null,null,0,{"$error":"#DIV/0!"}]
[null,"Other Tasks",null,null,null,null,null,null,null,null,null,null,null,null,"",""]
[null,null,null,null,null,null,null,null,null,null,null,null,null,null,0,{"$error":"#DIV/0!"}]
[null,null,null,null,null,null,null,null,null,null,null,null,null,null,0,{"$error":"#DIV/0!"}]
[null,null,null,null,null,null,null,null,null,null,null,null,null,null,0,{"$error":"#DIV/0!"}]
[null,null,null,null,null,null,null,null,null,null,null,null,null,null,0,{"$error":"#DIV/0!"}]
[null,null,null,null,null,null,null,null,null,null,null,null,null,null,0,{"$error":"#DIV/0!"}]
[null,null,null,null,null,null,null,null,null,null,null,null,null,null,0,{"$error":"#DIV/0!"}]
[null,null,null,null,null,null,null,null,null,null,null,null,null,null,0,{"$error":"#DIV/0!"}]
[null,null,null,null,null,null,null,null,null,null,null,null,null,null,0,{"$error":"#DIV/0!"}]
[null,null,null,null,null,null,null,null,null,null,null,null,null,null,0,{"$error":"#DIV/0!"}]
[null,null,null,null,null,null,null,null,null,null,null,null,null,null,0,{"$error":"#DIV/0!"}]
[null,null,null,null,null,null,null,null,null,null,null,null,null,null,0,{"$error":"#DIV/0!"}]
[null,null,null,null,null,null,null,null,null,null,null,null,null,null,0,{"$error":"#DIV/0!"}]
[null,null,null,null,null,null,null,null,null,null,null,null,null,null,0,{"$error":"#DIV/0!"}]
[null,null,null,null,null,null,null,null,null,null,null,null,null,null,0,{"$error":"#DIV/0!"}]
[null,null,null,null,null,null,null,null,null,null,null,null,null,null,0,{"$error":"#DIV/0!"}]
[null,null,null,null,null,null,null,null,null,null,null,null,null,null,0,{"$error":"#DIV/0!"}]
[null,null,null,null,null,null,null,null,null,null,null,null,null,null,0,{"$error":"#DIV/0!"}]
[null,null,null,null,null,null,null,null,null,null,null,null,null,null,0,{"$error":"#DIV/0!"}]
[null,null,null,null,null,null,null,null,null,null,null,null,null,null,0,{"$error":"#DIV/0!"}]
[null,null,null,null,null,null,null,null,null,null,null,null,null,null,0,{"$error":"#DIV/0!"}]
[null,null,null,null,null,null,null,null,null,null,null,null,null,null,0,{"$error":"#DIV/0!"}]
[null,null,null,null,null,null,null,null,null,null,null,null,null,null,0,{"$error":"#DIV/0!"}]
[null,null,null,null,null,null,null,null,null,null,null,null,null,null,0,{"$error":"#DIV/0!"}]
[null,null,null,null,null,null,null,null,null,null,null,null,null,null,0,{"$f":"IF(O77=\"\",\"\",SUM((O77/$O$121)))","v":{"$error":"#DIV/0!"}}]
[null,null,null,null,null,null,null,null,null,null,null,null,null,null,{"$f":"IF(B78=\"\",0,IF((SUM(D78:N78)=0),\"\",SUM(D78:N78)))","v":0},{"$error":"#DIV/0!"}]
[null,null,null,null,null,null,null,null,null,null,null,null,null,null,0,{"$error":"#DIV/0!"}]
[null,null,null,null,null,null,null,null,null,null,null,null,null,null,0,{"$error":"#DIV/0!"}]
[null,null,null,null,null,null,null,null,null,null,null,null,null,null,0,{"$error":"#DIV/0!"}]
[null,null,null,null,null,null,null,null,null,null,null,null,null,null,0,{"$error":"#DIV/0!"}]
[null,null,null,null,null,null,null,null,null,null,null,null,null,null,0,{"$error":"#DIV/0!"}]
[null,null,null,null,null,null,null,null,null,null,null,null,null,null,0,{"$error":"#DIV/0!"}]
[null,null,null,null,null,null,null,null,null,null,null,null,null,null,0,{"$error":"#DIV/0!"}]
[null,null,null,null,null,null,null,null,null,null,null,null,null,null,0,{"$error":"#DIV/0!"}]
[null,null,null,null,null,null,null,null,null,null,null,null,null,null,0,{"$error":"#DIV/0!"}]
[null,null,null,null,null,null,null,null,null,null,null,null,null,null,0,{"$error":"#DIV/0!"}]
[null,null,null,null,null,null,null,null,null,null,null,null,null,null,0,{"$error":"#DIV/0!"}]
[null,null,null,null,null,null,null,null,null,null,null,null,null,null,0,{"$error":"#DIV/0!"}]
[null,null,null,null,null,null,null,null,null,null,null,null,null,null,0,{"$error":"#DIV/0!"}]
[null,null,null,null,null,null,null,null,null,null,null,null,null,null,0,{"$error":"#DIV/0!"}]
[null,null,null,null,null,null,null,null,null,null,null,null,null,null,0,{"$error":"#DIV/0!"}]
[null,null,null,null,null,null,null,null,null,null,null,null,null,null,0,{"$error":"#DIV/0!"}]
[null,null,null,null,null,null,null,null,null,null,null,null,null,null,0,{"$error":"#DIV/0!"}]
[null,null,null,null,null,null,null,null,null,null,null,null,null,null,0,{"$error":"#DIV/0!"}]
[null,null,null,null,null,null,null,null,null,null,null,null,null,null,0,{"$error":"#DIV/0!"}]
[null,null,null,null,null,null,null,null,null,null,null,null,null,null,0,{"$error":"#DIV/0!"}]
[null,null,null,null,null,null,null,null,null,null,null,null,null,null,0,{"$error":"#DIV/0!"}]
[null,null,null,null,null,null,null,null,null,null,null,null,null,null,0,{"$error":"#DIV/0!"}]
[null,null,null,null,null,null,null,null,null,null,null,null,null,null,0,{"$error":"#DIV/0!"}]
[null,null,null,null,null,null,null,null,null,null,null,null,null,null,0,{"$error":"#DIV/0!"}]
[null,null,null,null,null,null,null,null,null,null,null,null,null,null,0,{"$error":"#DIV/0!"}]
[null,null,null,null,null,null,null,null,null,null,null,null,null,null,0,{"$error":"#DIV/0!"}]
[null,null,null,null,null,null,null,null,null,null,null,null,null,null,0,{"$error":"#DIV/0!"}]
[null,null,null,null,null,null,null,null,null,null,null,null,null,null,0,{"$error":"#DIV/0!"}]
[null,null,null,null,null,null,null,null,null,null,null,null,null,null,0,{"$error":"#DIV/0!"}]
[null,null,null,null,null,null,null,null,null,null,null,null,null,null,0,{"$error":"#DIV/0!"}]
[null,null,null,null,null,null,null,null,null,null,null,null,null,null,0,{"$error":"#DIV/0!"}]
[null,null,null,null,null,null,null,null,null,null,null,null,null,null,0,{"$error":"#DIV/0!"}]
[null,null,null,null,null,null,null,null,null,null,null,null,null,null,0,{"$error":"#DIV/0!"}]
[null,null,null,null,null,null,null,null,null,null,null,null,null,null,0,{"$error":"#DIV/0!"}]
[null,null,null,null,null,null,null,null,null,null,null,null,null,null,0,{"$error":"#DIV/0!"}]
[null,null,null,null,null,null,null,null,null,null,null,null,null,null,0,{"$error":"#DIV/0!"}]
[null,null,null,null,null,null,null,null,null,null,null,null,null,null,0,{"$error":"#DIV/0!"}]
[null,null,null,null,null,null,null,null,null,null,null,null,null,null,0,{"$error":"#DIV/0!"}]
[null,null,null,null,null,null,null,null,null,null,null,null,null,null,0,{"$error":"#DIV/0!"}]
[null,null,null,null,null,null,null,null,null,null,null,null,null,null,0,{"$error":"#DIV/0!"}]
[null,null,null,null,null,null,null,null,null,null,null,null,null,null,0,{"$error":"#DIV/0!"}]
[null,null,null,null,null,null,null,null,null,null,null,null,null,null,0,{"$error":"#DIV/0!"}]
[null,"TOTAL WORKDAYS/CATEGORY:",null,{"$f":"SUM(D12:D120)","v":0},{"$f":"SUM(E12:E120)","v":0},0,0,0,0,0,0,0,{"$f":"SUM(M12:M120)","v":0},{"$f":"SUM(N12:N120)","v":0},{"$f":"SUM(O12:O120)","v":0},{"$f":"SUM(P12:P120)","v":{"$error":"#DIV/0!"}},{"$f":"SUM(Q12:Q120)","v":0}]
[null,"HOURLY SALARY RATE:",null,{"$f":"'PEF CLASSIFICATION SHEET'!$E21","v":0},{"$f":"'PEF CLASSIFICATION SHEET'!$E22","v":0},{"$f":"'PEF CLASSIFICATION SHEET'!$E23","v":0},{"$f":"'PEF CLASSIFICATION SHEET'!$E24","v":0},{"$f":"'PEF CLASSIFICATION SHEET'!$E25","v":0},{"$f":"'PEF CLASSIFICATION SHEET'!$E26","v":0},{"$f":"'PEF CLASSIFICATION SHEET'!$E27","v":0},{"$f":"'PEF CLASSIFICATION SHEET'!E28","v":0},{"$f":"'PEF CLASSIFICATION SHEET'!E29","v":0},{"$f":"'PEF CLASSIFICATION SHEET'!E30","v":0},{"$f":"'PEF CLASSIFICATION SHEET'!E31","v":0}]
[null,"RATES PER DAY:",null,{"$f":"D122*8","v":0},0,0,0,0,0,{"$f":"J122*8","v":0},0,0,0,{"$f":"N122*8","v":0}]
[null,"PAYROLL BURDEN:",null,{"$f":"SUM(D121*D123)","v":0},0,0,0,0,0,{"$f":"SUM(J121*J123)","v":0},0,0,0,{"$f":"SUM(N121*N123)","v":0}]
[null,"TOTAL WORKDAYS:",null,{"$f":"SUM(D121:N121)","v":0}]
[null,"TOTAL PAYROLL BURDEN:",null,{"$f":"SUM(D124:N124)","v":0}]
[null,"AVERAGE COST PER HOUR:",null,{"$f":"SUM(D126/(D125*8))","v":{"$error":"#DIV/0!"}}]
[null,"GENERAL OVERHEAD:",{"$f":"PDEA_OTHER_CONSULTANT_OVERHEAD","v":0},{"$f":"SUM(D126*C128)","v":0}]
[null,"SUBTOTAL:",null,{"$f":"SUM(D126+D128)","v":0}]
[null,"COMPARATIVE FEE:",{"$f":"PDEA_OTHER_CONSULTANT_FEE","v":0.09},{"$f":"SUM(D129*C130)","v":0}]
[null,"FACILITIES COST OF CAPITAL:",{"$f":"PDEA_OTHER_CONSULTANT_COSTofCAPITAL","v":0},{"$f":"SUM(D126*C131)","v":0}]
[null,"TOTAL:",null,{"$f":"SUM(D129:D131)","v":0}]
[null,"DIRECT EXPENSES:",null,{"$f":"PDEA_OTHER_DIRECT_NONSALARY_TOTAL","v":0}]
[null,"OTHER GRAND TOTAL:",null,{"$f":"SUM(D132:D133)","v":0}]
[]
[]
[null,"Costs",null,"Workdays",null,null,null,null,"Dollars"]
[null,null,null,{"$f":"PDEA_OTHER_CONSULTANT_DISCIPLINE","v":"Project Mgmt"},"PEF","Delta ","Delta %",null,{"$f":"PDEA_OTHER_CONSULTANT_DISCIPLINE","v":"Project Mgmt"},null,null,null,null,null,null,"PEF",null,"Delta ","Delta %"]
[null,null,null,null,null,{"$f":"SUM(E139-D139)","v":0},{"$f":"SUM((F139/D139)*100)","v":{"$error":"#DIV/0!"}},null,null,null,null,null,null,null,null,null,null,{"$f":"SUM(P139-I139)","v":0},{"$f":"SUM((R139/I139)*100)","v":{"$error":"#DIV/0!"}}]
[]
[]
[null,null,null,null,null,null,null,"Directs","Dollars"]
[null,null,null,null,null,null,null,null,{"$f":"PDEA_OTHER_CONSULTANT_DISCIPLINE","v":"Project Mgmt"},null,null,null,null,null,null,"PEF",null,"Delta ","Delta %"]
[null,null,null,null,null,null,null,null,null,null,null,null,null,null,null,null,null,{"$f":"SUM(P144-I144)","v":0},{"$f":"SUM((R144/I144)*100)","v":{"$error":"#DIV/0!"}}]

{"sheet":"PM-Exp","index":9,"n_rows":96,"n_cols":8,"rows_kept":96,"cut":false,"hidden":false,"merged":[[6,1,6,3],[6,4,6,6],[0,0,0,2],[0,3,0,7],[3,1,3,7],[4,1,4,3],[4,6,4,7],[5,1,5,3],[5,6,5,7],[2,1,2,3]]}
[{"$f":"PDEA_OTHER_CONSULTANT_DISCIPLINE","v":"Project Mgmt"},null,null,"DIRECT EXPENSES - Project Management"]
[]
["FIRM:",{"$f":"PM!G3","v":"CONSULTANT NAME"}]
["PROJECT DESCRIPTION: ",{"$f":"PROJECT.DESCRIPTION","v":0}]
["PREPARED BY:  ",{"$f":"PDEA.OTHER.PREPARED.BY","v":""},null,null,"TASK ORDER NUMBER:",null,{"$f":"TASK.ORDER.NUMBER","v":0}]
["TIP NUMBER:",{"$f":"TIP.NUMBER","v":0},null,null,"WBS NUMBER:",null,{"$f":"WBS.NUMBER","v":""}]
["DATE PREPARED:",{"$f":"IF(PM!R3=\"\",\"\",MAX(PM!R3:'PM'!R4))","v":""},null,null,"REVIEWED BY UNIT HEAD ON:",null,null,{"$f":"IF(SCOPE.MANDAY.ESTIMATE.APPROVED.BY.DATE=\"\",\"\",SCOPE.MANDAY.ESTIMATE.APPROVED.BY.DATE)","v":""}]
["GENERAL PROJECT WORK:","ITEM","QTY","DESCRIPTION",null,null,"UNIT COST "]
[null,"Travel:"]
[null,"Sedan",null,"Trip(s) @",null,"miles @",{"$f":"SEDAN","v":0.7},{"$f":"SUM(C10*E10*G10)","v":0}]
[null,"Carry All",null,"Trip(s) @",null,"miles @",{"$f":"CARRYALL","v":0.72},{"$f":"SUM(C11*E11*G11)","v":0}]
[null,"Car Rental",null,null,null,"days @ ",{"$f":"CARRENTAL","v":50},{"$f":"SUM(E12*G12)","v":0}]
[null,"Gas for Rental",null,null,null,"miles @",{"$f":"GASforRENTAL","v":0.2},{"$f":"SUM(E13*G13)","v":0}]
[null,"Parking:",null,"Trip(s) @",null,null,{"$f":"PARKING","v":3},{"$f":"SUM(C14*G14)","v":0}]
[null,"Per Diem:",null,"Breakfast",null,null,{"$f":"BREAKFAST","v":10.1},0]
[null,null,null,"Lunch",null,null,{"$f":"LUNCH","v":13.3},0]
[null,null,null,"Dinner",null,null,{"$f":"DINNER","v":23.1},0]
[null,null,null,"Lodging",null,null,{"$f":"LODGING_LUMP.SUM","v":95},0]
[null,"Reproduction:",null,"8 1/2 x 11 B & W Copies @",null,null,{"$f":"LETTERCOPIES","v":0.14000000000000001},0]
[null,null,null,"11 x 17 B & W Copies @",null,null,{"$f":"LEDGERCOPIES","v":0.34},0]
[null,null,null,"8 1/2 x 11 Color Copies @",null,null,{"$f":"LETTERCOLOR","v":0.83},0]
[null,null,null,"11 x 17 Color Copies @",null,null,{"$f":"LEDGERCOLOR","v":1.66},0]
[null,null,null,"SQ. FT. of Plots (B & W or Color)",null,"<65 SQ. FT.*",{"$f":"ROLLPLOTSshort","v":6.5},0]
[null,null,null,"SQ. FT. of Plots (B & W or Color)",null,">65 SQ. FT.*",{"$f":"ROLLPLOTSlong","v":1.5},0]
[null,null,null,"Cover(s) @",null,null,{"$f":"COVERS","v":0.5},0]
[null,null,null,"Binder(s) @",null,null,{"$f":"BINDERS","v":0.5},0]
[null,null,null,"Blueprints - 8 1/2 x 11 @",null,null,{"$f":"BLUEPRINTSLETTER","v":0.35},0]
[null,null,null,"Blueprints - 42 x 72 @",null,null,{"$f":"BLUEPRINTSLARGE","v":1.3},0]
[null,"Film and Developing:",null,"Roll(s) @",null,null,{"$f":"FILM","v":20},0]
[null,null,null,null,null,"Subtotal",null,{"$f":"SUM(H10:H29)","v":0}]
["MAPS AND DOCUMENTS:","ITEM","QTY","DESCRIPTION",null,null,"UNIT COST "]
[null,"County Tax Maps:",null,"Map(s) @",null,null,{"$f":"County_Tax_Maps","v":7},{"$f":"SUM(C32*G32)","v":0}]
[null,"USGS Maps:",null,"Map(s) @",null,null,{"$f":"USGSMAPS","v":7},{"$f":"SUM(C33*G33)","v":0}]
[null,null,null,null,null,"Subtotal",null,{"$f":"SUM(H32:H33)","v":0}]
["TECHNICAL REPORTS:","ITEM","QTY","DESCRIPTION",null,null,"UNIT COST "]
[null,"Reproduction:",null,"8 1/2 x 11 B & W Copies @",null,null,{"$f":"LETTERCOPIES","v":0.14000000000000001},{"$f":"SUM(C36*G36)","v":0}]
[null,null,null,"11 x 17 B & W Copies @",null,null,{"$f":"LEDGERCOPIES","v":0.34},0]
[null,null,null,"8 1/2 x 11 Color Copies @",null,null,{"$f":"LETTERCOLOR","v":0.83},0]
[null,null,null,"11 x 17 Color Copies @",null,null,{"$f":"LEDGERCOLOR","v":1.66},0]
[null,null,null,"SQ. FT. of Plots (B & W or Color)",null,"<65 SQ. FT.*",{"$f":"ROLLPLOTSshort","v":6.5},0]
[null,null,null,"SQ. FT. of Plots (B & W or Color)",null,">65 SQ. FT.*",{"$f":"ROLLPLOTSlong","v":1.5},0]
[null,null,null,"Cover(s) @",null,null,{"$f":"COVERS","v":0.5},0]
[null,null,null,"Binder(s) @",null,null,{"$f":"BINDERS","v":0.5},0]
[null,null,null,null,null,"Subtotal",null,{"$f":"SUM(H36:H43)","v":0}]
["DESIGN:","ITEM","QTY","DESCRIPTION",null,null,"UNIT COST "]
[null,"Reproduction:",null,"8 1/2 x 11 B & W Copies @",null,null,{"$f":"LETTERCOPIES","v":0.14000000000000001},{"$f":"SUM(C46*G46)","v":0}]
[null,null,null,"11 x 17 B & W Copies @",null,null,{"$f":"LEDGERCOPIES","v":0.34},0]
[null,null,null,"Blueprints - 8 1/2 x 11 @",null,null,{"$f":"BLUEPRINTSLETTER","v":0.35},0]
[null,null,null,"Mylar - 8 1/2 x 11 @",null,null,{"$f":"MYLARSLETTER","v":7.32},0]
[null,null,null,"Mylar - 36 x 48 @",null,null,{"$f":"MYLARSLARGE","v":28.12},0]
[null,null,null,"Prints  - 24 x 36 @",null,null,{"$f":"PRINTSLARGE","v":3},0]
[null,null,null,"Blueprints - 42 x 72 @",null,null,{"$f":"BLUEPRINTSLARGE","v":1.3},0]
[null,null,null,"SQ. FT. of Plots (B & W or Color)",null,"<65 SQ. FT.*",{"$f":"ROLLPLOTSshort","v":6.5},0]
[null,null,null,"SQ. FT. of Plots (B & W or Color)",null,">65 SQ. FT.*",{"$f":"ROLLPLOTSlong","v":1.5},0]
[null,null,null,"USGS Map(s)",null,null,{"$f":"USGSMAPS","v":7},0]
[null,null,null,null,null,"Subtotal",null,{"$f":"SUM(H46:H55)","v":0}]
["MEETINGS & PUBLIC INVOLVEMENT:","ITEM","QTY","DESCRIPTION",null,null,"UNIT COST "]
[null,"Travel:"]
[null,"Sedan",null,"Trip(s) @",null,"miles @",{"$f":"SEDAN","v":0.7},{"$f":"SUM(C59*E59*G59)","v":0}]
[null,"CarryAll",null,"Trip(s) @",null,"miles @",{"$f":"CARRYALL","v":0.72},{"$f":"SUM(C60*E60*G60)","v":0}]
[null,"Car Rental",null,null,null,"days @",{"$f":"CARRENTAL","v":50},{"$f":"SUM(E61*G61)","v":0}]
[null,"Gas for Rental",null,null,null,"miles @",{"$f":"GASforRENTAL","v":0.2},{"$f":"SUM(E62*G62)","v":0}]
[null,"Parking:",null,"Trip(s) @",null,null,{"$f":"PARKING","v":3},{"$f":"SUM(C63*G63)","v":0}]
[null,"Per Diem:",null,"Breakfast",null,null,{"$f":"BREAKFAST","v":10.1},{"$f":"SUM(C64*G64)","v":0}]
[null,null,null,"Lunch",null,null,{"$f":"LUNCH","v":13.3},{"$f":"SUM(C65*G65)","v":0}]
[null,null,null,"Dinner",null,null,{"$f":"DINNER","v":23.1},{"$f":"SUM(C66*G66)","v":0}]
[null,null,null,"Lodging",null,null,{"$f":"LODGING_LUMP.SUM","v":95},{"$f":"SUM(C67*G67)","v":0}]
[null,"Workshop "]
[null,"  - Reproduction",null,"8 1/2 x 11 B & W Copies @",null,"Handouts",{"$f":"LETTERCOPIES","v":0.14000000000000001},{"$f":"SUM(C69*E69*G69)","v":0}]
[null,null,null,"11 x 17 B & W Copies @",null,"Handouts",{"$f":"LEDGERCOPIES","v":0.34},{"$f":"SUM(C70*E70*G70)","v":0}]
[null,null,null,"8 1/2 x 11 Color Copies @",null,null,{"$f":"LETTERCOLOR","v":0.83},{"$f":"SUM(C71*G71)","v":0}]
[null,null,null,"11 x 17 Color Copies @",null,null,{"$f":"LEDGERCOLOR","v":1.66},0]
[null,null,null,"SQ. FT. of Plots (B & W or Color)",null,"<65 SQ. FT.*",{"$f":"ROLLPLOTSshort","v":6.5},0]
[null,null,null,"SQ. FT. of Plots (B & W or Color)",null,">65 SQ. FT.*",{"$f":"ROLLPLOTSlong","v":1.5},0]
[null,null,null,"SQ. FT. Foam Mounting Board @",null,null,{"$f":"FOAMMOUNTINGBOARD","v":1.25},0]
[null,"Presentation Materials:",null,"Misc. Workshop Supplies @",null,"per workshop",{"$f":"MISCWORKSHOPSUPPLIES","v":50},0]
[null,"Mailing Labels:",null,"Laser Peel & Stick (box)",null,"750 per box",{"$f":"LASERPEELandSTICK","v":4},0]
[null,"Postage:"]
[null,"  - Public Workshops:",null,"Notice or Newsletter @",null,"copies @",{"$f":"POSTAGE","v":0.49},{"$f":"SUM(C79*E79*G79)","v":0}]
[null,null,null,null,null,"Subtotal",null,{"$f":"SUM(H58:H79)","v":0}]
["Miscellaneous Other","ITEM","QTY","DESCRIPTION",null,null,"UNIT COST "]
[null,null,null,null,null,null,null,{"$f":"SUM(C82*G82)","v":0}]
[null,null,null,null,null,null,null,{"$f":"SUM(C83*G83)","v":0}]
[null,null,null,null,null,null,null,0]
[null,null,null,null,null,null,null,0]
[null,null,null,null,null,null,null,0]
[null,null,null,null,null,null,null,0]
[null,null,null,null,null,null,null,0]
[null,null,null,null,null,null,null,{"$f":"SUM(C89*G89)","v":0}]
[null,null,null,null,null,null,null,{"$f":"SUM(C90*G90)","v":0}]
[null,null,null,null,null,null,null,{"$f":"SUM(C91*G91)","v":0}]
[null,null,null,null,null,"Subtotal",null,{"$f":"SUM(H82:H91)","v":0}]
[]
[null,null,null,null,null,"TOTAL",null,{"$f":"SUM(H30+H34+H44+H56+H80+H92)","v":0}]
[]
[null,"* Sum of all plots "]

{"sheet":"PM-Other","index":10,"n_rows":145,"n_cols":19,"rows_kept":145,"cut":false,"hidden":true,"merged":[[56,17,56,18],[61,17,61,18],[66,17,66,18],[70,17,70,18],[74,17,74,18],[97,17,97,18],[102,17,102,18],[95,17,95,18],[98,17,98,18],[99,17,99,18],[100,17,100,18],[101,17,101,18],[91,17,91,18],[92,17,92,18],[93,17,93,18],[94,17,94,18],[77,17,77,18],[86,17,86,18],[87,17,87,18],[88,17,88,18],[89,17,89,18],[90,17,90,18],[57,17,57,18],[58,17,58,18],[59,17,59,18],[60,17,60,18],[62,17,62,18],[63,17,63,18],[64,17,64,18],[65,17,65,18],[0,0,1,18],[2,1,2,4],[2,6,2,7],[2,10,2,11],[2,15,2,16],[3,15,3,16],[2,17,2,18],[3,17,3,18],[4,3,4,13],[22,17,22,18],[24,17,24,18],[11,17,11,18],[15,17,15,18],[19,17,19,18],[23,17,23,18],[3,1,3,4],[3,6,3,7],[3,10,3,11],[6,9,10,9],[6,10,10,10],[6,11,10,11],[6,12,10,12],[6,13,10,13],[6,3,10,3],[6,4,10,4],[6,5,10,5],[6,6,10,6],[6,7,10,7],[6,8,10,8],[9,17,9,18],[12,17,12,18],[13,17,13,18],[14,17,14,18],[16,17,16,18],[17,17,17,18],[18,17,18,18],[20,17,20,18],[21,17,21,18],[46,17,46,18],[51,17,51,18],[50,17,50,18],[38,17,38,18],[39,17,39,18],[40,17,40,18],[41,17,41,18],[42,17,42,18],[25,17,25,18],[37,17,37,18],[26,17,26,18],[27,17,27,18],[28,17,28,18],[29,17,29,18],[30,17,30,18],[31,17,31,18],[32,17,32,18],[33,17,33,18],[34,17,34,18],[35,17,35,18],[36,17,36,18],[43,17,43,18],[44,17,44,18],[45,17,45,18],[47,17,47,18],[48,17,48,18],[49,17,49,18],[108,17,108,18],[67,17,67,18],[68,17,68,18],[69,17,69,18],[71,17,71,18],[72,17,72,18],[73,17,73,18],[75,17,75,18],[81,17,81,18],[82,17,82,18],[83,17,83,18],[84,17,84,18],[85,17,85,18],[76,17,76,18],[52,17,52,18],[53,17,53,18],[54,17,54,18],[55,17,55,18],[78,17,78,18],[79,17,79,18],[80,17,80,18],[144,8,144,14],[144,15,144,16],[109,17,109,18],[111,17,111,18],[113,17,113,18],[119,17,119,18],[110,17,110,18],[112,17,112,18],[114,17,114,18],[116,17,116,18],[118,17,118,18],[115,17,115,18],[117,17,117,18],[142,8,142,18],[143,8,143,14],[143,15,143,16],[106,17,106,18],[96,17,96,18],[107,17,107,18],[103,17,103,18],[104,17,104,18],[105,17,105,18],[133,1,134,1],[133,3,134,4],[139,8,139,14],[139,15,139,16],[137,3,137,6],[137,8,137,18],[138,8,138,14],[138,15,138,16]]}
[{"$f":"CONCATENATE('PEF CLASSIFICATION SHEET'!B34,\" Breakdown Worksheet\")","v":"PM-Other Breakdown Worksheet"}]
[]
["PROJECT DESCRIPTION: ",{"$f":"PROJECT.DESCRIPTION","v":0},null,null,null,"FIRM:  ",{"$f":"PDEA_PLANNING_ROADWAY_CONSULTANT_NAME","v":"CONSULTANT NAME"},null,"TASK ORDER NUMBER:",null,{"$f":"TASK.ORDER.NUMBER","v":0},null,null,null,null,"DATE PREPARED:",null,{"$f":"IF(SCOPE.MANDAY.ESTIMATE.PREPARED.BY.DATE=\"\",\"\",SCOPE.MANDAY.ESTIMATE.PREPARED.BY.DATE)","v":""}]
["PREPARED BY:  ",{"$f":"IF(SCOPE.MANDAY.ESTIMATE.PREPARED.BY=\"\",\"\",SCOPE.MANDAY.ESTIMATE.PREPARED.BY)","v":""},null,null,null,"TIP NUMBER:",{"$f":"TIP.NUMBER","v":0},null,"WBS NUMBER:",null,{"$f":"WBS.NUMBER","v":""},null,null,null,null,"REVISION DATE:",null,{"$f":"IF(SCOPE.MANDAY.ESTIMATE.APPROVED.BY.DATE=\"\",\"\",SCOPE.MANDAY.ESTIMATE.APPROVED.BY.DATE)","v":""}]
[null,null,null,"ESTIMATED WORK DAYS"]
[null,null,"Employee",{"$f":"IF('PEF CLASSIFICATION SHEET'!$D34=\"\",\"\",LEFT('PEF CLASSIFICATION SHEET'!$D34,4))","v":""},{"$f":"IF('PEF CLASSIFICATION SHEET'!$D35=\"\",\"\",LEFT('PEF CLASSIFICATION SHEET'!$D35,4))","v":""},{"$f":"IF('PEF CLASSIFICATION SHEET'!$D36=\"\",\"\",LEFT('PEF CLASSIFICATION SHEET'!$D36,4))","v":""},{"$f":"IF('PEF CLASSIFICATION SHEET'!$D37=\"\",\"\",LEFT('PEF CLASSIFICATION SHEET'!$D37,4))","v":""},{"$f":"IF('PEF CLASSIFICATION SHEET'!$D38=\"\",\"\",LEFT('PEF CLASSIFICATION SHEET'!$D38,4))","v":""},{"$f":"IF('PEF CLASSIFICATION SHEET'!$D39=\"\",\"\",LEFT('PEF CLASSIFICATION SHEET'!$D39,4))","v":""},{"$f":"IF('PEF CLASSIFICATION SHEET'!$D40=\"\",\"\",LEFT('PEF CLASSIFICATION SHEET'!$D40,4))","v":""},{"$f":"IF('PEF CLASSIFICATION SHEET'!D41=\"\",\"\",LEFT('PEF CLASSIFICATION SHEET'!D41,4))","v":""},{"$f":"IF('PEF CLASSIFICATION SHEET'!D42=\"\",\"\",LEFT('PEF CLASSIFICATION SHEET'!D42,4))","v":""},{"$f":"IF('PEF CLASSIFICATION SHEET'!D43=\"\",\"\",LEFT('PEF CLASSIFICATION SHEET'!D43,4))","v":""},{"$f":"IF('PEF CLASSIFICATION SHEET'!D44=\"\",\"\",LEFT('PEF CLASSIFICATION SHEET'!D44,4))","v":""}]
[null,null,null,{"$f":"IF('PEF CLASSIFICATION SHEET'!$C34=\"\",\"\",'PEF CLASSIFICATION SHEET'!$C34)","v":""},{"$f":"IF('PEF CLASSIFICATION SHEET'!$C35=\"\",\"\",'PEF CLASSIFICATION SHEET'!$C35)","v":""},{"$f":"IF('PEF CLASSIFICATION SHEET'!$C36=\"\",\"\",'PEF CLASSIFICATION SHEET'!$C36)","v":""},{"$f":"IF('PEF CLASSIFICATION SHEET'!$C37=\"\",\"\",'PEF CLASSIFICATION SHEET'!$C37)","v":""},{"$f":"IF('PEF CLASSIFICATION SHEET'!$C38=\"\",\"\",'PEF CLASSIFICATION SHEET'!$C38)","v":""},{"$f":"IF('PEF CLASSIFICATION SHEET'!$C39=\"\",\"\",'PEF CLASSIFICATION SHEET'!$C39)","v":""},{"$f":"IF('PEF CLASSIFICATION SHEET'!$C40=\"\",\"\",'PEF CLASSIFICATION SHEET'!$C40)","v":""},{"$f":"IF('PEF CLASSIFICATION SHEET'!C41=\"\",\"\",'PEF CLASSIFICATION SHEET'!C41)","v":""},{"$f":"IF('PEF CLASSIFICATION SHEET'!C42=\"\",\"\",'PEF CLASSIFICATION SHEET'!C42)","v":""},{"$f":"IF('PEF CLASSIFICATION SHEET'!C43=\"\",\"\",'PEF CLASSIFICATION SHEET'!C43)","v":""},{"$f":"IF('PEF CLASSIFICATION SHEET'!C44=\"\",\"\",'PEF CLASSIFICATION SHEET'!C44)","v":""}]
[null,null,"Classification",null,null,null,null,null,null,null,null,null,null,null,"SUB-","%","PEF"]
[null,null,null,null,null,null,null,null,null,null,null,null,null,null,"TOTAL","OF","ESTIMATE"]
["TASK","TASK DESCRIPTION",null,null,null,null,null,null,null,null,null,null,null,null,null,"PROJECT",null,"COMMENTS"]
["NO."]
[null,null,null,null,null,null,null,null,null,null,null,null,null,null,{"$f":"IF(B12=\"\",0,IF((SUM(D12:N12)=0),\"\",SUM(D12:N12)))","v":0},{"$f":"IF(O12=\"\",\"\",SUM((O12/$O$121)))","v":{"$error":"#DIV/0!"}}]
[null,null,null,null,null,null,null,null,null,null,null,null,null,null,{"$f":"IF(B13=\"\",0,IF((SUM(D13:N13)=0),\"\",SUM(D13:N13)))","v":0},{"$f":"IF(O13=\"\",\"\",SUM((O13/$O$121)))","v":{"$error":"#DIV/0!"}}]
[null,null,null,null,null,null,null,null,null,null,null,null,null,null,{"$f":"IF(B14=\"\",0,IF((SUM(D14:N14)=0),\"\",SUM(D14:N14)))","v":0},{"$f":"IF(O14=\"\",\"\",SUM((O14/$O$121)))","v":{"$error":"#DIV/0!"}}]
[null,null,null,null,null,null,null,null,null,null,null,null,null,null,0,{"$error":"#DIV/0!"}]
[null,null,null,null,null,null,null,null,null,null,null,null,null,null,0,{"$error":"#DIV/0!"}]
[null,null,null,null,null,null,null,null,null,null,null,null,null,null,0,{"$error":"#DIV/0!"}]
[null,null,null,null,null,null,null,null,null,null,null,null,null,null,0,{"$error":"#DIV/0!"}]
[null,null,null,null,null,null,null,null,null,null,null,null,null,null,0,{"$error":"#DIV/0!"}]
[null,null,null,null,null,null,null,null,null,null,null,null,null,null,0,{"$error":"#DIV/0!"}]
[null,null,null,null,null,null,null,null,null,null,null,null,null,null,0,{"$error":"#DIV/0!"}]
[null,null,null,null,null,null,null,null,null,null,null,null,null,null,0,{"$error":"#DIV/0!"}]
[null,null,null,null,null,null,null,null,null,null,null,null,null,null,0,{"$error":"#DIV/0!"}]
[null,null,null,null,null,null,null,null,null,null,null,null,null,null,0,{"$error":"#DIV/0!"}]
[null,null,null,null,null,null,null,null,null,null,null,null,null,null,0,{"$error":"#DIV/0!"}]
[null,null,null,null,null,null,null,null,null,null,null,null,null,null,0,{"$error":"#DIV/0!"}]
[null,null,null,null,null,null,null,null,null,null,null,null,null,null,0,{"$error":"#DIV/0!"}]
[null,null,null,null,null,null,null,null,null,null,null,null,null,null,0,{"$error":"#DIV/0!"}]
[null,null,null,null,null,null,null,null,null,null,null,null,null,null,0,{"$error":"#DIV/0!"}]
[null,null,null,null,null,null,null,null,null,null,null,null,null,null,0,{"$error":"#DIV/0!"}]
[null,null,null,null,null,null,null,null,null,null,null,null,null,null,0,{"$error":"#DIV/0!"}]
[null,null,null,null,null,null,null,null,null,null,null,null,null,null,0,{"$error":"#DIV/0!"}]
[null,null,null,null,null,null,null,null,null,null,null,null,null,null,0,{"$error":"#DIV/0!"}]
[null,null,null,null,null,null,null,null,null,null,null,null,null,null,0,{"$error":"#DIV/0!"}]
[null,null,null,null,null,null,null,null,null,null,null,null,null,null,0,{"$error":"#DIV/0!"}]
[null,null,null,null,null,null,null,null,null,null,null,null,null,null,0,{"$error":"#DIV/0!"}]
[null,null,null,null,null,null,null,null,null,null,null,null,null,null,0,{"$error":"#DIV/0!"}]
[null,null,null,null,null,null,null,null,null,null,null,null,null,null,0,{"$error":"#DIV/0!"}]
[null,null,null,null,null,null,null,null,null,null,null,null,null,null,0,{"$error":"#DIV/0!"}]
[null,null,null,null,null,null,null,null,null,null,null,null,null,null,0,{"$error":"#DIV/0!"}]
[null,null,null,null,null,null,null,null,null,null,null,null,null,null,0,{"$error":"#DIV/0!"}]
[null,null,null,null,null,null,null,null,null,null,null,null,null,null,0,{"$error":"#DIV/0!"}]
[null,null,null,null,null,null,null,null,null,null,null,null,null,null,0,{"$error":"#DIV/0!"}]
[null,null,null,null,null,null,null,null,null,null,null,null,null,null,0,{"$error":"#DIV/0!"}]
[null,null,null,null,null,null,null,null,null,null,null,null,null,null,0,{"$error":"#DIV/0!"}]
[null,null,null,null,null,null,null,null,null,null,null,null,null,null,0,{"$error":"#DIV/0!"}]
[null,null,null,null,null,null,null,null,null,null,null,null,null,null,0,{"$error":"#DIV/0!"}]
[null,null,null,null,null,null,null,null,null,null,null,null,null,null,0,{"$error":"#DIV/0!"}]
[null,null,null,null,null,null,null,null,null,null,null,null,null,null,0,{"$error":"#DIV/0!"}]
[null,null,null,null,null,null,null,null,null,null,null,null,null,null,0,{"$error":"#DIV/0!"}]
[null,null,null,null,null,null,null,null,null,null,null,null,null,null,0,{"$error":"#DIV/0!"}]
[null,null,null,null,null,null,null,null,null,null,null,null,null,null,0,{"$error":"#DIV/0!"}]
[null,null,null,null,null,null,null,null,null,null,null,null,null,null,0,{"$error":"#DIV/0!"}]
[null,null,null,null,null,null,null,null,null,null,null,null,null,null,0,{"$error":"#DIV/0!"}]
[null,null,null,null,null,null,null,null,null,null,null,null,null,null,0,{"$error":"#DIV/0!"}]
[null,null,null,null,null,null,null,null,null,null,null,null,null,null,0,{"$error":"#DIV/0!"}]
[null,null,null,null,null,null,null,null,null,null,null,null,null,null,0,{"$error":"#DIV/0!"}]
[null,null,null,null,null,null,null,null,null,null,null,null,null,null,0,{"$error":"#DIV/0!"}]
[null,null,null,null,null,null,null,null,null,null,null,null,null,null,0,{"$error":"#DIV/0!"}]
[null,null,null,null,null,null,null,null,null,null,null,null,null,null,0,{"$error":"#DIV/0!"}]
[null,null,null,null,null,null,null,null,null,null,null,null,null,null,0,{"$error":"#DIV/0!"}]
[null,null,null,null,null,null,null,null,null,null,null,null,null,null,0,{"$error":"#DIV/0!"}]
[null,null,null,null,null,null,null,null,null,null,null,null,null,null,0,{"$error":"#DIV/0!"}]
[null,null,null,null,null,null,null,null,null,null,null,null,null,null,0,{"$error":"#DIV/0!"}]
[null,null,null,null,null,null,null,null,null,null,null,null,null,null,0,{"$error":"#DIV/0!"}]
[null,null,null,null,null,null,null,null,null,null,null,null,null,null,0,{"$error":"#DIV/0!"}]
[null,null,null,null,null,null,null,null,null,null,null,null,null,null,0,{"$error":"#DIV/0!"}]
[null,null,null,null,null,null,null,null,null,null,null,null,null,null,0,{"$error":"#DIV/0!"}]
[null,null,null,null,null,null,null,null,null,null,null,null,null,null,0,{"$error":"#DIV/0!"}]
[null,null,null,null,null,null,null,null,null,null,null,null,null,null,0,{"$error":"#DIV/0!"}]
[null,null,null,null,null,null,null,null,null,null,null,null,null,null,0,{"$error":"#DIV/0!"}]
[null,null,null,null,null,null,null,null,null,null,null,null,null,null,0,{"$error":"#DIV/0!"}]
[null,null,null,null,null,null,null,null,null,null,null,null,null,null,0,{"$error":"#DIV/0!"}]
[null,null,null,null,null,null,null,null,null,null,null,null,null,null,0,{"$error":"#DIV/0!"}]
[null,null,null,null,null,null,null,null,null,null,null,null,null,null,0,{"$error":"#DIV/0!"}]
[null,null,null,null,null,null,null,null,null,null,null,null,null,null,0,{"$error":"#DIV/0!"}]
[null,null,null,null,null,null,null,null,null,null,null,null,null,null,0,{"$error":"#DIV/0!"}]
[null,null,null,null,null,null,null,null,null,null,null,null,null,null,{"$f":"IF(B78=\"\",0,IF((SUM(D78:N78)=0),\"\",SUM(D78:N78)))","v":0},{"$f":"IF(O78=\"\",\"\",SUM((O78/$O$121)))","v":{"$error":"#DIV/0!"}}]
[null,null,null,null,null,null,null,null,null,null,null,null,null,null,0,{"$error":"#DIV/0!"}]
[null,null,null,null,null,null,null,null,null,null,null,null,null,null,0,{"$error":"#DIV/0!"}]
[null,null,null,null,null,null,null,null,null,null,null,null,null,null,0,{"$error":"#DIV/0!"}]
[null,null,null,null,null,null,null,null,null,null,null,null,null,null,0,{"$error":"#DIV/0!"}]
[null,null,null,null,null,null,null,null,null,null,null,null,null,null,0,{"$error":"#DIV/0!"}]
[null,null,null,null,null,null,null,null,null,null,null,null,null,null,0,{"$error":"#DIV/0!"}]
[null,null,null,null,null,null,null,null,null,null,null,null,null,null,0,{"$error":"#DIV/0!"}]
[null,null,null,null,null,null,null,null,null,null,null,null,null,null,0,{"$error":"#DIV/0!"}]
[null,null,null,null,null,null,null,null,null,null,null,null,null,null,0,{"$error":"#DIV/0!"}]
[null,null,null,null,null,null,null,null,null,null,null,null,null,null,0,{"$error":"#DIV/0!"}]
[null,null,null,null,null,null,null,null,null,null,null,null,null,null,0,{"$error":"#DIV/0!"}]
[null,null,null,null,null,null,null,null,null,null,null,null,null,null,0,{"$error":"#DIV/0!"}]
[null,null,null,null,null,null,null,null,null,null,null,null,null,null,0,{"$error":"#DIV/0!"}]
[null,null,null,null,null,null,null,null,null,null,null,null,null,null,0,{"$error":"#DIV/0!"}]
[null,null,null,null,null,null,null,null,null,null,null,null,null,null,0,{"$error":"#DIV/0!"}]
[null,null,null,null,null,null,null,null,null,null,null,null,null,null,0,{"$error":"#DIV/0!"}]
[null,null,null,null,null,null,null,null,null,null,null,null,null,null,0,{"$error":"#DIV/0!"}]
[null,null,null,null,null,null,null,null,null,null,null,null,null,null,0,{"$error":"#DIV/0!"}]
[null,null,null,null,null,null,null,null,null,null,null,null,null,null,0,{"$error":"#DIV/0!"}]
[null,null,null,null,null,null,null,null,null,null,null,null,null,null,0,{"$error":"#DIV/0!"}]
[null,null,null,null,null,null,null,null,null,null,null,null,null,null,0,{"$error":"#DIV/0!"}]
[null,null,null,null,null,null,null,null,null,null,null,null,null,null,0,{"$error":"#DIV/0!"}]
[null,null,null,null,null,null,null,null,null,null,null,null,null,null,0,{"$error":"#DIV/0!"}]
[null,null,null,null,null,null,null,null,null,null,null,null,null,null,0,{"$error":"#DIV/0!"}]
[null,null,null,null,null,null,null,null,null,null,null,null,null,null,0,{"$error":"#DIV/0!"}]
[null,null,null,null,null,null,null,null,null,null,null,null,null,null,0,{"$error":"#DIV/0!"}]
[null,null,null,null,null,null,null,null,null,null,null,null,null,null,0,{"$error":"#DIV/0!"}]
[null,null,null,null,null,null,null,null,null,null,null,null,null,null,0,{"$error":"#DIV/0!"}]
[null,null,null,null,null,null,null,null,null,null,null,null,null,null,0,{"$error":"#DIV/0!"}]
[null,null,null,null,null,null,null,null,null,null,null,null,null,null,0,{"$error":"#DIV/0!"}]
[null,null,null,null,null,null,null,null,null,null,null,null,null,null,0,{"$error":"#DIV/0!"}]
[null,null,null,null,null,null,null,null,null,null,null,null,null,null,0,{"$error":"#DIV/0!"}]
[null,null,null,null,null,null,null,null,null,null,null,null,null,null,0,{"$error":"#DIV/0!"}]
[null,null,null,null,null,null,null,null,null,null,null,null,null,null,0,{"$error":"#DIV/0!"}]
[null,null,null,null,null,null,null,null,null,null,null,null,null,null,0,{"$error":"#DIV/0!"}]
[null,null,null,null,null,null,null,null,null,null,null,null,null,null,0,{"$error":"#DIV/0!"}]
[null,null,null,null,null,null,null,null,null,null,null,null,null,null,0,{"$error":"#DIV/0!"}]
[null,null,null,null,null,null,null,null,null,null,null,null,null,null,0,{"$error":"#DIV/0!"}]
[null,null,null,null,null,null,null,null,null,null,null,null,null,null,0,{"$error":"#DIV/0!"}]
[null,null,null,null,null,null,null,null,null,null,null,null,null,null,0,{"$error":"#DIV/0!"}]
[null,null,null,null,null,null,null,null,null,null,null,null,null,null,{"$f":"IF(B119=\"\",0,IF((SUM(D119:N119)=0),\"\",SUM(D119:N119)))","v":0},{"$f":"IF(O119=\"\",\"\",SUM((O119/$O$121)))","v":{"$error":"#DIV/0!"}}]
[null,null,null,null,null,null,null,null,null,null,null,null,null,null,{"$f":"IF(B120=\"\",0,IF((SUM(D120:N120)=0),\"\",SUM(D120:N120)))","v":0},{"$f":"IF(O120=\"\",\"\",SUM((O120/$O$121)))","v":{"$error":"#DIV/0!"}}]
[null,"TOTAL WORKDAYS/CATEGORY:",null,{"$f":"(SUM(D12:D120))","v":0},0,0,0,0,0,0,0,0,0,0,0,{"$f":"SUM(P12:P120)","v":{"$error":"#DIV/0!"}},{"$f":"(SUM(Q12:Q120))","v":0}]
[null,"HOURLY SALARY RATE:",null,{"$f":"'PEF CLASSIFICATION SHEET'!$E34","v":0},{"$f":"'PEF CLASSIFICATION SHEET'!$E35","v":0},{"$f":"'PEF CLASSIFICATION SHEET'!$E36","v":0},{"$f":"'PEF CLASSIFICATION SHEET'!$E37","v":0},{"$f":"'PEF CLASSIFICATION SHEET'!$E38","v":0},{"$f":"'PEF CLASSIFICATION SHEET'!$E39","v":0},{"$f":"'PEF CLASSIFICATION SHEET'!$E40","v":0},{"$f":"'PEF CLASSIFICATION SHEET'!E41","v":0},{"$f":"'PEF CLASSIFICATION SHEET'!E42","v":0},{"$f":"'PEF CLASSIFICATION SHEET'!E43","v":0},{"$f":"'PEF CLASSIFICATION SHEET'!E44","v":0}]
[null,"RATES PER DAY:",null,{"$f":"D122*8","v":0},0,0,0,0,0,{"$f":"J122*8","v":0},0,0,0,0]
[null,"PAYROLL BURDEN:",null,{"$f":"SUM(D121*D123)","v":0},0,0,0,0,0,{"$f":"SUM(J121*J123)","v":0},0,0,0,0]
[null,"TOTAL WORKDAYS:",null,{"$f":"SUM(D121:N121)","v":0}]
[null,"TOTAL PAYROLL BURDEN:",null,{"$f":"SUM(D124:N124)","v":0}]
[null,"AVERAGE COST PER HOUR:",null,{"$f":"SUM(D126/(D125*8))","v":{"$error":"#DIV/0!"}}]
[null,"GENERAL OVERHEAD:",{"$f":"PDEA_PLANNING_ROADWAY_CONSULTANT_OVERHEAD","v":0},{"$f":"SUM(D126*C128)","v":0}]
[null,"SUBTOTAL:",null,{"$f":"SUM(D126+D128)","v":0}]
[null,"COMPARATIVE FEE:",{"$f":"PDEA_PLANNING_ROADWAY_CONSULTANT_FEE","v":0.09},{"$f":"SUM(D129*C130)","v":0}]
[null,"FACILITIES COST OF CAPITAL:",{"$f":"PDEA_PLANNING_ROADWAY_CONSULTANT_COSTofCAPITAL","v":0},{"$f":"SUM(D126*C131)","v":0}]
[null,"TOTAL:",null,{"$f":"SUM(D129:D131)","v":0}]
[null,"DIRECT EXPENSES:",null,{"$f":"PDEA_PLANNING_ROADWAY_DIRECT_NONSALARY_TOTAL","v":0}]
[null,"ROADWAY GRAND TOTAL:",null,{"$f":"SUM(D132:D133)","v":0}]
[]
[]
[]
[null,"Costs",null,"Workdays",null,null,null,null,"Dollars"]
[null,null,null,"PM Roadway","PEF","Delta ","Delta %",null,"PM Roadway",null,null,null,null,null,null,"PEF",null,"Delta ","Delta %"]
[null,null,null,null,null,{"$f":"SUM(E140-D140)","v":0},{"$f":"SUM((F140/D140)*100)","v":{"$error":"#DIV/0!"}},null,null,null,null,null,null,null,null,null,null,{"$f":"SUM(P140-I140)","v":0},{"$f":"SUM((R140/I140)*100)","v":{"$error":"#DIV/0!"}}]
[]
[]
[null,null,null,null,null,null,null,"Directs","Dollars"]
[null,null,null,null,null,null,null,null,"PM Roadway",null,null,null,null,null,null,"PEF",null,"Delta ","Delta %"]
[null,null,null,null,null,null,null,null,null,null,null,null,null,null,null,null,null,{"$f":"SUM(P145-I145)","v":0},{"$f":"SUM((R145/I145)*100)","v":{"$error":"#DIV/0!"}}]

{"sheet":"PM-Other-Exp","index":11,"n_rows":96,"n_cols":8,"rows_kept":96,"cut":false,"hidden":true,"merged":[[0,0,0,7],[6,1,6,3],[6,4,6,6],[3,1,3,7],[4,1,4,3],[4,6,4,7],[5,1,5,3],[5,6,5,7],[2,1,2,3]]}
[{"$f":"CONCATENATE('PEF CLASSIFICATION SHEET'!B34,\" DIRECT EXPENSES\")","v":"PM-Other DIRECT EXPENSES"}]
[]
["FIRM:",{"$f":"'PM-Other'!G3","v":"CONSULTANT NAME"}]
["PROJECT DESCRIPTION: ",{"$f":"PROJECT.DESCRIPTION","v":0}]
["PREPARED BY:  ",{"$f":"PDEA.ROADWAY.PREPARED.BY","v":""},null,null,"TASK ORDER NUMBER:",null,{"$f":"TASK.ORDER.NUMBER","v":0}]
["TIP NUMBER:",{"$f":"TIP.NUMBER","v":0},null,null,"WBS NUMBER:",null,{"$f":"WBS.NUMBER","v":""}]
["DATE PREPARED:",{"$f":"IF('PM-Other'!R3=\"\",\"\",MAX('PM-Other'!R3:'PM-Other'!R4))","v":""},null,null,"REVIEWED BY UNIT HEAD ON:",null,null,{"$f":"IF(SCOPE.MANDAY.ESTIMATE.APPROVED.BY.DATE=\"\",\"\",SCOPE.MANDAY.ESTIMATE.APPROVED.BY.DATE)","v":""}]
["GENERAL PROJECT WORK:","ITEM","QTY","DESCRIPTION",null,null,"UNIT COST "]
[null,"Travel:"]
[null,"Sedan",null,"Trip(s) @",null,"miles @",{"$f":"SEDAN","v":0.7},{"$f":"SUM(C10*E10*G10)","v":0}]
[null,"Carry All",null,"Trip(s) @",null,"miles @",{"$f":"CARRYALL","v":0.72},{"$f":"SUM(C11*E11*G11)","v":0}]
[null,"Car Rental",null,null,null,"days @ ",{"$f":"CARRENTAL","v":50},{"$f":"SUM(E12*G12)","v":0}]
[null,"Gas for Rental",null,null,null,"miles @",{"$f":"GASforRENTAL","v":0.2},{"$f":"SUM(E13*G13)","v":0}]
[null,"Parking:",null,"Trip(s) @",null,null,{"$f":"PARKING","v":3},{"$f":"SUM(C14*G14)","v":0}]
[null,"Per Diem:",null,"Breakfast",null,null,{"$f":"BREAKFAST","v":10.1},{"$f":"SUM(C15*G15)","v":0}]
[null,null,null,"Lunch",null,null,{"$f":"LUNCH","v":13.3},0]
[null,null,null,"Dinner",null,null,{"$f":"DINNER","v":23.1},0]
[null,null,null,"Lodging",null,null,{"$f":"LODGING_LUMP.SUM","v":95},0]
[null,"Reproduction:",null,"8 1/2 x 11 B & W Copies @",null,null,{"$f":"LETTERCOPIES","v":0.14000000000000001},0]
[null,null,null,"11 x 17 B & W Copies @",null,null,{"$f":"LEDGERCOPIES","v":0.34},0]
[null,null,null,"8 1/2 x 11 Color Copies @",null,null,{"$f":"LETTERCOLOR","v":0.83},0]
[null,null,null,"11 x 17 Color Copies @",null,null,{"$f":"LEDGERCOLOR","v":1.66},0]
[null,null,null,"SQ. FT. of Plots (B & W or Color)",null,"<65 SQ. FT.*",{"$f":"ROLLPLOTSshort","v":6.5},0]
[null,null,null,"SQ. FT. of Plots (B & W or Color)",null,">65 SQ. FT.*",{"$f":"ROLLPLOTSlong","v":1.5},0]
[null,null,null,"Cover(s) @",null,null,{"$f":"COVERS","v":0.5},0]
[null,null,null,"Binder(s) @",null,null,{"$f":"BINDERS","v":0.5},0]
[null,null,null,"Blueprints - 8 1/2 x 11 @",null,null,{"$f":"BLUEPRINTSLETTER","v":0.35},0]
[null,null,null,"Blueprints - 42 x 72 @",null,null,{"$f":"BLUEPRINTSLARGE","v":1.3},0]
[null,"Film and Developing:",null,"Roll(s) @",null,null,{"$f":"FILM","v":20},0]
[null,null,null,null,null,"Subtotal",null,{"$f":"SUM(H10:H29)","v":0}]
["MAPS AND DOCUMENTS:","ITEM","QTY","DESCRIPTION",null,null,"UNIT COST "]
[null,"County Tax Maps:",null,"Map(s) @",null,null,{"$f":"County_Tax_Maps","v":7},{"$f":"SUM(C32*G32)","v":0}]
[null,"USGS Maps:",null,"Map(s) @",null,null,{"$f":"USGSMAPS","v":7},{"$f":"SUM(C33*G33)","v":0}]
[null,null,null,null,null,"Subtotal",null,{"$f":"SUM(H32:H33)","v":0}]
["TECHNICAL REPORTS:","ITEM","QTY","DESCRIPTION",null,null,"UNIT COST "]
[null,"Reproduction:",null,"8 1/2 x 11 B & W Copies @",null,null,{"$f":"LETTERCOPIES","v":0.14000000000000001},{"$f":"SUM(C36*G36)","v":0}]
[null,null,null,"11 x 17 B & W Copies @",null,null,{"$f":"LEDGERCOPIES","v":0.34},0]
[null,null,null,"8 1/2 x 11 Color Copies @",null,null,{"$f":"LETTERCOLOR","v":0.83},0]
[null,null,null,"11 x 17 Color Copies @",null,null,{"$f":"LEDGERCOLOR","v":1.66},0]
[null,null,null,"SQ. FT. of Plots (B & W or Color)",null,"<65 SQ. FT.*",{"$f":"ROLLPLOTSshort","v":6.5},0]
[null,null,null,"SQ. FT. of Plots (B & W or Color)",null,">65 SQ. FT.*",{"$f":"ROLLPLOTSlong","v":1.5},0]
[null,null,null,"Cover(s) @",null,null,{"$f":"COVERS","v":0.5},0]
[null,null,null,"Binder(s) @",null,null,{"$f":"BINDERS","v":0.5},0]
[null,null,null,null,null,"Subtotal",null,{"$f":"SUM(H36:H43)","v":0}]
["DESIGN:","ITEM","QTY","DESCRIPTION",null,null,"UNIT COST "]
[null,"Reproduction:",null,"8 1/2 x 11 B & W Copies @",null,null,{"$f":"LETTERCOPIES","v":0.14000000000000001},{"$f":"SUM(C46*G46)","v":0}]
[null,null,null,"11 x 17 B & W Copies @",null,null,{"$f":"LEDGERCOPIES","v":0.34},0]
[null,null,null,"Blueprints - 8 1/2 x 11 @",null,null,{"$f":"BLUEPRINTSLETTER","v":0.35},0]
[null,null,null,"Mylar - 8 1/2 x 11 @",null,null,{"$f":"MYLARSLETTER","v":7.32},0]
[null,null,null,"Mylar - 36 x 48 @",null,null,{"$f":"MYLARSLARGE","v":28.12},0]
[null,null,null,"Prints  - 24 x 36 @",null,null,{"$f":"PRINTSLARGE","v":3},0]
[null,null,null,"Blueprints - 42 x 72 @",null,null,{"$f":"BLUEPRINTSLARGE","v":1.3},0]
[null,null,null,"SQ. FT. of Plots (B & W or Color)",null,"<65 SQ. FT.*",{"$f":"ROLLPLOTSshort","v":6.5},0]
[null,null,null,"SQ. FT. of Plots (B & W or Color)",null,">65 SQ. FT.*",{"$f":"ROLLPLOTSlong","v":1.5},0]
[null,null,null,"USGS Map(s)",null,null,{"$f":"USGSMAPS","v":7},0]
[null,null,null,null,null,"Subtotal",null,{"$f":"SUM(H46:H55)","v":0}]
["MEETINGS & PUBLIC INVOLVEMENT:","ITEM","QTY","DESCRIPTION",null,null,"UNIT COST "]
[null,"Travel:"]
[null,"Sedan",null,"Trip(s) @",null,"miles @",{"$f":"SEDAN","v":0.7},{"$f":"SUM(C59*E59*G59)","v":0}]
[null,"CarryAll",null,"Trip(s) @",null,"miles @",{"$f":"CARRYALL","v":0.72},{"$f":"SUM(C60*E60*G60)","v":0}]
[null,"Car Rental",null,null,null,"days @",{"$f":"CARRENTAL","v":50},{"$f":"SUM(E61*G61)","v":0}]
[null,"Gas for Rental",null,null,null,"miles @",{"$f":"GASforRENTAL","v":0.2},{"$f":"SUM(E62*G62)","v":0}]
[null,"Parking:",null,"Trip(s) @",null,null,{"$f":"PARKING","v":3},{"$f":"SUM(C63*G63)","v":0}]
[null,"Per Diem:",null,"Breakfast",null,null,{"$f":"BREAKFAST","v":10.1},{"$f":"SUM(C64*G64)","v":0}]
[null,null,null,"Lunch",null,null,{"$f":"LUNCH","v":13.3},{"$f":"SUM(C65*G65)","v":0}]
[null,null,null,"Dinner",null,null,{"$f":"DINNER","v":23.1},{"$f":"SUM(C66*G66)","v":0}]
[null,null,null,"Lodging",null,null,{"$f":"LODGING_LUMP.SUM","v":95},{"$f":"SUM(C67*G67)","v":0}]
[null,"Workshop "]
[null,"  - Reproduction",null,"8 1/2 x 11 B & W Copies @",null,"Handouts",{"$f":"LETTERCOPIES","v":0.14000000000000001},{"$f":"SUM(C69*E69*G69)","v":0}]
[null,null,null,"11 x 17 B & W Copies @",null,"Handouts",{"$f":"LEDGERCOPIES","v":0.34},{"$f":"SUM(C70*E70*G70)","v":0}]
[null,null,null,"8 1/2 x 11 Color Copies @",null,null,{"$f":"LETTERCOLOR","v":0.83},{"$f":"SUM(C71*G71)","v":0}]
[null,null,null,"11 x 17 Color Copies @",null,null,{"$f":"LEDGERCOLOR","v":1.66},0]
[null,null,null,"SQ. FT. of Plots (B & W or Color)",null,"<65 SQ. FT.*",{"$f":"ROLLPLOTSshort","v":6.5},0]
[null,null,null,"SQ. FT. of Plots (B & W or Color)",null,">65 SQ. FT.*",{"$f":"ROLLPLOTSlong","v":1.5},0]
[null,null,null,"SQ. FT. Foam Mounting Board @",null,null,{"$f":"FOAMMOUNTINGBOARD","v":1.25},0]
[null,"Presentation Materials:",null,"Misc. Workshop Supplies @",null,"per workshop",{"$f":"MISCWORKSHOPSUPPLIES","v":50},0]
[null,"Mailing Labels:",null,"Laser Peel & Stick (box)",null,"750 per box",{"$f":"LASERPEELandSTICK","v":4},0]
[null,"Postage:"]
[null,"  - Public Workshops:",null,"Notice or Newsletter @",null,"copies @",{"$f":"POSTAGE","v":0.49},{"$f":"SUM(C79*E79*G79)","v":0}]
[null,null,null,null,null,"Subtotal",null,{"$f":"SUM(H58:H79)","v":0}]
["Miscellaneous Other","ITEM","QTY","DESCRIPTION",null,null,"UNIT COST "]
[null,null,null,null,null,null,null,{"$f":"SUM(C82*G82)","v":0}]
[null,null,null,null,null,null,null,{"$f":"SUM(C83*G83)","v":0}]
[null,null,null,null,null,null,null,0]
[null,null,null,null,null,null,null,0]
[null,null,null,null,null,null,null,0]
[null,null,null,null,null,null,null,0]
[null,null,null,null,null,null,null,0]
[null,null,null,null,null,null,null,{"$f":"SUM(C89*G89)","v":0}]
[null,null,null,null,null,null,null,{"$f":"SUM(C90*G90)","v":0}]
[null,null,null,null,null,null,null,{"$f":"SUM(C91*G91)","v":0}]
[null,null,null,null,null,"Subtotal",null,{"$f":"SUM(H82:H91)","v":0}]
[]
[null,null,null,null,null,"TOTAL",null,{"$f":"SUM(H30+H34+H44+H56+H80+H92)","v":0}]
[]
[null,"* Sum of all plots "]

{"sheet":"EN-Natural","index":12,"n_rows":145,"n_cols":22,"rows_kept":145,"cut":false,"hidden":true,"merged":[[88,17,88,18],[89,17,89,18],[90,17,90,18],[91,17,91,18],[92,17,92,18],[93,17,93,18],[94,17,94,18],[68,17,68,18],[83,17,83,18],[74,17,74,18],[75,17,75,18],[76,17,76,18],[77,17,77,18],[78,17,78,18],[69,17,69,18],[70,17,70,18],[71,17,71,18],[21,17,21,18],[9,17,9,18],[20,17,20,18],[11,17,11,18],[12,17,12,18],[13,17,13,18],[14,17,14,18],[62,17,62,18],[63,17,63,18],[54,17,54,18],[55,17,55,18],[56,17,56,18],[57,17,57,18],[58,17,58,18],[33,17,33,18],[22,17,22,18],[23,17,23,18],[24,17,24,18],[25,17,25,18],[26,17,26,18],[27,17,27,18],[28,17,28,18],[29,17,29,18],[30,17,30,18],[31,17,31,18],[32,17,32,18],[49,17,49,18],[50,17,50,18],[51,17,51,18],[52,17,52,18],[53,17,53,18],[133,1,134,1],[133,3,134,4],[95,17,95,18],[114,17,114,18],[106,17,106,18],[107,17,107,18],[108,17,108,18],[109,17,109,18],[110,17,110,18],[101,17,101,18],[102,17,102,18],[103,17,103,18],[104,17,104,18],[111,17,111,18],[112,17,112,18],[113,17,113,18],[72,17,72,18],[137,3,137,6],[137,8,137,18],[138,8,138,14],[138,15,138,16],[139,8,139,14],[139,15,139,16],[142,8,142,18],[59,17,59,18],[60,17,60,18],[61,17,61,18],[84,17,84,18],[79,17,79,18],[80,17,80,18],[81,17,81,18],[82,17,82,18],[85,17,85,18],[86,17,86,18],[87,17,87,18],[73,17,73,18],[105,17,105,18],[64,17,64,18],[65,17,65,18],[66,17,66,18],[67,17,67,18],[144,8,144,14],[144,15,144,16],[143,8,143,14],[143,15,143,16],[115,17,115,18],[116,17,116,18],[96,17,96,18],[97,17,97,18],[98,17,98,18],[99,17,99,18],[100,17,100,18],[117,17,117,18],[118,17,118,18],[2,20,2,21],[2,17,2,18],[4,3,4,13],[3,1,3,4],[3,6,3,7],[3,10,3,11],[3,20,3,21],[3,17,3,18],[119,17,119,18],[34,17,34,18],[35,17,35,18],[36,17,36,18],[37,17,37,18],[38,17,38,18],[39,17,39,18],[40,17,40,18],[41,17,41,18],[42,17,42,18],[43,17,43,18],[44,17,44,18],[45,17,45,18],[46,17,46,18],[47,17,47,18],[48,17,48,18],[15,17,15,18],[16,17,16,18],[17,17,17,18],[18,17,18,18],[19,17,19,18],[2,14,2,16],[3,14,3,16],[0,0,0,18],[2,1,2,4],[2,6,2,7],[2,10,2,11],[6,9,10,9],[6,10,10,10],[6,11,10,11],[6,12,10,12],[6,13,10,13],[6,8,10,8],[6,3,10,3],[6,4,10,4],[6,5,10,5],[6,6,10,6],[6,7,10,7]]}
["NATURAL ENVIRONMENT BREAKDOWN WORKSHEET"]
[]
["PROJECT DESCRIPTION: ",{"$f":"PROJECT.DESCRIPTION","v":0},null,null,null,"FIRM:  ",{"$f":"PDEA_NEU_CONSULTANT_NAME","v":"CONSULTANT NAME"},null,"TASK ORDER NUMBER:",null,{"$f":"TASK.ORDER.NUMBER","v":0},null,null,null,"DATE PREPARED:"]
["PREPARED BY:  ",{"$f":"IF(SCOPE.MANDAY.ESTIMATE.PREPARED.BY=\"\",\"\",SCOPE.MANDAY.ESTIMATE.PREPARED.BY)","v":""},null,null,null,"TIP NUMBER:",{"$f":"TIP.NUMBER","v":0},null,"WBS NUMBER:",null,{"$f":"WBS.NUMBER","v":""},null,null,null,"REVISION DATE:"]
[null,null,null,"ESTIMATED WORK DAYS"]
[null,null,"Employee",{"$f":"IF('PEF CLASSIFICATION SHEET'!$D47=\"\",\"\",'PEF CLASSIFICATION SHEET'!$D47)","v":""},{"$f":"IF('PEF CLASSIFICATION SHEET'!$D48=\"\",\"\",LEFT('PEF CLASSIFICATION SHEET'!$D48,4))","v":""},{"$f":"IF('PEF CLASSIFICATION SHEET'!$D49=\"\",\"\",LEFT('PEF CLASSIFICATION SHEET'!$D49,4))","v":""},{"$f":"IF('PEF CLASSIFICATION SHEET'!$D50=\"\",\"\",LEFT('PEF CLASSIFICATION SHEET'!$D50,4))","v":""},{"$f":"IF('PEF CLASSIFICATION SHEET'!$D51=\"\",\"\",LEFT('PEF CLASSIFICATION SHEET'!$D51,4))","v":""},{"$f":"IF('PEF CLASSIFICATION SHEET'!$D52=\"\",\"\",LEFT('PEF CLASSIFICATION SHEET'!$D52,4))","v":""},{"$f":"IF('PEF CLASSIFICATION SHEET'!$D53=\"\",\"\",LEFT('PEF CLASSIFICATION SHEET'!$D53,4))","v":""},{"$f":"IF('PEF CLASSIFICATION SHEET'!D54=\"\",\"\",LEFT('PEF CLASSIFICATION SHEET'!D54,4))","v":""},{"$f":"IF('PEF CLASSIFICATION SHEET'!D55=\"\",\"\",LEFT('PEF CLASSIFICATION SHEET'!D55,4))","v":""},{"$f":"IF('PEF CLASSIFICATION SHEET'!D56=\"\",\"\",LEFT('PEF CLASSIFICATION SHEET'!D56,4))","v":""},{"$f":"IF('PEF CLASSIFICATION SHEET'!D57=\"\",\"\",LEFT('PEF CLASSIFICATION SHEET'!D57,4))","v":""}]
[null,null,null,{"$f":"IF('PEF CLASSIFICATION SHEET'!$C47=\"\",\"\",'PEF CLASSIFICATION SHEET'!$C47)","v":""},{"$f":"IF('PEF CLASSIFICATION SHEET'!$C48=\"\",\"\",'PEF CLASSIFICATION SHEET'!$C48)","v":""},{"$f":"IF('PEF CLASSIFICATION SHEET'!$C49=\"\",\"\",'PEF CLASSIFICATION SHEET'!$C49)","v":""},{"$f":"IF('PEF CLASSIFICATION SHEET'!$C50=\"\",\"\",'PEF CLASSIFICATION SHEET'!$C50)","v":""},{"$f":"IF('PEF CLASSIFICATION SHEET'!$C51=\"\",\"\",'PEF CLASSIFICATION SHEET'!$C51)","v":""},{"$f":"IF('PEF CLASSIFICATION SHEET'!$C52=\"\",\"\",'PEF CLASSIFICATION SHEET'!$C52)","v":""},{"$f":"IF('PEF CLASSIFICATION SHEET'!$C53=\"\",\"\",'PEF CLASSIFICATION SHEET'!$C53)","v":""},{"$f":"IF('PEF CLASSIFICATION SHEET'!C54=\"\",\"\",'PEF CLASSIFICATION SHEET'!C54)","v":""},{"$f":"IF('PEF CLASSIFICATION SHEET'!C55=\"\",\"\",'PEF CLASSIFICATION SHEET'!C55)","v":""},{"$f":"IF('PEF CLASSIFICATION SHEET'!C56=\"\",\"\",'PEF CLASSIFICATION SHEET'!C56)","v":""},{"$f":"IF('PEF CLASSIFICATION SHEET'!C57=\"\",\"\",'PEF CLASSIFICATION SHEET'!C57)","v":""}]
[null,null,"Classification",null,null,null,null,null,null,null,null,null,null,null,"SUB-","%","PEF"]
[null,null,null,null,null,null,null,null,null,null,null,null,null,null,"TOTAL","OF","ESTIMATE"]
["TASK","TASK DESCRIPTION",null,null,null,null,null,null,null,null,null,null,null,null,null,"PROJECT",null,"COMMENTS"]
["NO."]
["2EN1","Assess Natural Environmental Impacts",null,null,null,null,null,null,null,null,null,null,null,null,{"$f":"IF(B12=\"\",0,IF((SUM(D12:N12)=0),\"\",SUM(D12:N12)))","v":""},{"$f":"IF(O12=\"\",\"\",SUM((O12/$O$121)))","v":""}]
[1,"Pre-Field Work",null,null,null,null,null,null,null,null,null,null,null,null,{"$f":"IF(B13=\"\",0,IF((SUM(D13:N13)=0),\"\",SUM(D13:N13)))","v":""},{"$f":"IF(O13=\"\",\"\",SUM((O13/$O$121)))","v":""}]
[2,"Landowner Letter Delivery",null,null,null,null,null,null,null,null,null,null,null,null,"",""]
[3,"NRTR Field Work ",null,null,null,null,null,null,null,null,null,null,null,null,"",""]
[4,"Threatened and Endangered Species Surveys",null,null,null,null,null,null,null,null,null,null,null,null,"",""]
[5,"WEX file ",null,null,null,null,null,null,null,null,null,null,null,null,"",""]
[6,"WET file",null,null,null,null,null,null,null,null,null,null,null,null,"",""]
[7,"Preliminary Jurisdictional Package (PJD)",null,null,null,null,null,null,null,null,null,null,null,null,"",""]
[8,"Approved Jurisdictional Package (AJD)",null,null,null,null,null,null,null,null,null,null,null,null,"","",null,null,null,null,null,"Y"]
[9,"NRTR",null,null,null,null,null,null,null,null,null,null,null,null,"","",null,null,null,null,null,"N"]
[10,"Task Management ",null,null,null,null,null,null,null,null,null,null,null,null,"",""]
[11,"Complete QC/QA Procedures",null,null,null,null,null,null,null,null,null,null,null,null,"",""]
[null,"Other Tasks (i.e Additional Biological Surveys work)",null,null,null,null,null,null,null,null,null,null,null,null,"",""]
[null,null,null,null,null,null,null,null,null,null,null,null,null,null,0,{"$error":"#DIV/0!"}]
[null,null,null,null,null,null,null,null,null,null,null,null,null,null,0,{"$error":"#DIV/0!"}]
[null,null,null,null,null,null,null,null,null,null,null,null,null,null,0,{"$error":"#DIV/0!"}]
[null,null,null,null,null,null,null,null,null,null,null,null,null,null,0,{"$error":"#DIV/0!"}]
[null,null,null,null,null,null,null,null,null,null,null,null,null,null,0,{"$error":"#DIV/0!"}]
[null,null,null,null,null,null,null,null,null,null,null,null,null,null,0,{"$error":"#DIV/0!"}]
[null,null,null,null,null,null,null,null,null,null,null,null,null,null,0,{"$error":"#DIV/0!"}]
[null,null,null,null,null,null,null,null,null,null,null,null,null,null,0,{"$error":"#DIV/0!"}]
[null,null,null,null,null,null,null,null,null,null,null,null,null,null,0,{"$error":"#DIV/0!"}]
["3EN3","Apply for Permits",null,null,null,null,null,null,null,null,null,null,null,null,"",""]
[1,"Review Project Documents",null,null,null,null,null,null,null,null,null,null,null,null,"",""]
[2,"Prepare Section 404/401 Permit Application ",null,null,null,null,null,null,null,null,null,null,null,null,"",""]
[3,"CAMA Major Permit Application",null,null,null,null,null,null,null,null,null,null,null,null,"",""]
[4,"Other Permit Applications",null,null,null,null,null,null,null,null,null,null,null,null,"",""]
[5,"Task Management ",null,null,null,null,null,null,null,null,null,null,null,null,"",""]
[6,"Complete QC/QA Procedures",null,null,null,null,null,null,null,null,null,null,null,null,"",""]
[null,"Other Tasks:",null,null,null,null,null,null,null,null,null,null,null,null,"",""]
[null,null,null,null,null,null,null,null,null,null,null,null,null,null,0,{"$error":"#DIV/0!"}]
[null,null,null,null,null,null,null,null,null,null,null,null,null,null,0,{"$error":"#DIV/0!"}]
[null,null,null,null,null,null,null,null,null,null,null,null,null,null,0,{"$error":"#DIV/0!"}]
["4EN1","Secure Permits",null,null,null,null,null,null,null,null,null,null,null,null,"",""]
[1,"Receive issued permits, review conditions, and update Project Special Commitments",null,null,null,null,null,null,null,null,null,null,null,null,"",""]
[2,"Permit Package",null,null,null,null,null,null,null,null,null,null,null,null,"",""]
[3,"Task Management ",null,null,null,null,null,null,null,null,null,null,null,null,"",""]
[4,"Complete QC/QA Procedures",null,null,null,null,null,null,null,null,null,null,null,null,"",""]
[null,"Other Tasks:",null,null,null,null,null,null,null,null,null,null,null,null,"",""]
[null,null,null,null,null,null,null,null,null,null,null,null,null,null,0,{"$error":"#DIV/0!"}]
[null,null,null,null,null,null,null,null,null,null,null,null,null,null,0,{"$error":"#DIV/0!"}]
[null,null,null,null,null,null,null,null,null,null,null,null,null,null,0,{"$error":"#DIV/0!"}]
[null,null,null,null,null,null,null,null,null,null,null,null,null,null,0,{"$error":"#DIV/0!"}]
[null,null,null,null,null,null,null,null,null,null,null,null,null,null,0,{"$error":"#DIV/0!"}]
[null,null,null,null,null,null,null,null,null,null,null,null,null,null,0,{"$error":"#DIV/0!"}]
[null,null,null,null,null,null,null,null,null,null,null,null,null,null,0,{"$error":"#DIV/0!"}]
[null,null,null,null,null,null,null,null,null,null,null,null,null,null,0,{"$error":"#DIV/0!"}]
[null,null,null,null,null,null,null,null,null,null,null,null,null,null,0,{"$error":"#DIV/0!"}]
[null,null,null,null,null,null,null,null,null,null,null,null,null,null,0,{"$error":"#DIV/0!"}]
[null,null,null,null,null,null,null,null,null,null,null,null,null,null,0,{"$error":"#DIV/0!"}]
[null,null,null,null,null,null,null,null,null,null,null,null,null,null,0,{"$error":"#DIV/0!"}]
[null,null,null,null,null,null,null,null,null,null,null,null,null,null,0,{"$error":"#DIV/0!"}]
[null,null,null,null,null,null,null,null,null,null,null,null,null,null,0,{"$error":"#DIV/0!"}]
[null,null,null,null,null,null,null,null,null,null,null,null,null,null,0,{"$error":"#DIV/0!"}]
[null,null,null,null,null,null,null,null,null,null,null,null,null,null,0,{"$error":"#DIV/0!"}]
[null,null,null,null,null,null,null,null,null,null,null,null,null,null,0,{"$error":"#DIV/0!"}]
[null,null,null,null,null,null,null,null,null,null,null,null,null,null,0,{"$error":"#DIV/0!"}]
[null,null,null,null,null,null,null,null,null,null,null,null,null,null,0,{"$error":"#DIV/0!"}]
[null,null,null,null,null,null,null,null,null,null,null,null,null,null,0,{"$error":"#DIV/0!"}]
[null,null,null,null,null,null,null,null,null,null,null,null,null,null,0,{"$error":"#DIV/0!"}]
[null,null,null,null,null,null,null,null,null,null,null,null,null,null,0,{"$error":"#DIV/0!"}]
[null,null,null,null,null,null,null,null,null,null,null,null,null,null,0,{"$error":"#DIV/0!"}]
[null,null,null,null,null,null,null,null,null,null,null,null,null,null,0,{"$error":"#DIV/0!"}]
[null,null,null,null,null,null,null,null,null,null,null,null,null,null,0,{"$error":"#DIV/0!"}]
[null,null,null,null,null,null,null,null,null,null,null,null,null,null,0,{"$error":"#DIV/0!"}]
[null,null,null,null,null,null,null,null,null,null,null,null,null,null,{"$f":"IF(B77=\"\",0,IF((SUM(D77:N77)=0),\"\",SUM(D77:N77)))","v":0},{"$f":"IF(O77=\"\",\"\",SUM((O77/$O$121)))","v":{"$error":"#DIV/0!"}}]
[null,null,null,null,null,null,null,null,null,null,null,null,null,null,0,{"$error":"#DIV/0!"}]
[null,null,null,null,null,null,null,null,null,null,null,null,null,null,0,{"$error":"#DIV/0!"}]
[null,null,null,null,null,null,null,null,null,null,null,null,null,null,0,{"$error":"#DIV/0!"}]
[null,null,null,null,null,null,null,null,null,null,null,null,null,null,0,{"$error":"#DIV/0!"}]
[null,null,null,null,null,null,null,null,null,null,null,null,null,null,0,{"$error":"#DIV/0!"}]
[null,null,null,null,null,null,null,null,null,null,null,null,null,null,0,{"$error":"#DIV/0!"}]
[null,null,null,null,null,null,null,null,null,null,null,null,null,null,0,{"$error":"#DIV/0!"}]
[null,null,null,null,null,null,null,null,null,null,null,null,null,null,0,{"$error":"#DIV/0!"}]
[null,null,null,null,null,null,null,null,null,null,null,null,null,null,0,{"$error":"#DIV/0!"}]
[null,null,null,null,null,null,null,null,null,null,null,null,null,null,0,{"$error":"#DIV/0!"}]
[null,null,null,null,null,null,null,null,null,null,null,null,null,null,0,{"$error":"#DIV/0!"}]
[null,null,null,null,null,null,null,null,null,null,null,null,null,null,0,{"$error":"#DIV/0!"}]
[null,null,null,null,null,null,null,null,null,null,null,null,null,null,0,{"$error":"#DIV/0!"}]
[null,null,null,null,null,null,null,null,null,null,null,null,null,null,0,{"$error":"#DIV/0!"}]
[null,null,null,null,null,null,null,null,null,null,null,null,null,null,0,{"$error":"#DIV/0!"}]
[null,null,null,null,null,null,null,null,null,null,null,null,null,null,0,{"$error":"#DIV/0!"}]
[null,null,null,null,null,null,null,null,null,null,null,null,null,null,0,{"$error":"#DIV/0!"}]
[null,null,null,null,null,null,null,null,null,null,null,null,null,null,0,{"$error":"#DIV/0!"}]
[null,null,null,null,null,null,null,null,null,null,null,null,null,null,0,{"$error":"#DIV/0!"}]
[null,null,null,null,null,null,null,null,null,null,null,null,null,null,0,{"$error":"#DIV/0!"}]
[null,null,null,null,null,null,null,null,null,null,null,null,null,null,0,{"$error":"#DIV/0!"}]
[null,null,null,null,null,null,null,null,null,null,null,null,null,null,0,{"$error":"#DIV/0!"}]
[null,null,null,null,null,null,null,null,null,null,null,null,null,null,0,{"$error":"#DIV/0!"}]
[null,null,null,null,null,null,null,null,null,null,null,null,null,null,0,{"$error":"#DIV/0!"}]
[null,null,null,null,null,null,null,null,null,null,null,null,null,null,0,{"$error":"#DIV/0!"}]
[null,null,null,null,null,null,null,null,null,null,null,null,null,null,0,{"$error":"#DIV/0!"}]
[null,null,null,null,null,null,null,null,null,null,null,null,null,null,0,{"$error":"#DIV/0!"}]
[null,null,null,null,null,null,null,null,null,null,null,null,null,null,0,{"$error":"#DIV/0!"}]
[null,null,null,null,null,null,null,null,null,null,null,null,null,null,0,{"$error":"#DIV/0!"}]
[null,null,null,null,null,null,null,null,null,null,null,null,null,null,0,{"$error":"#DIV/0!"}]
[null,null,null,null,null,null,null,null,null,null,null,null,null,null,0,{"$error":"#DIV/0!"}]
[null,null,null,null,null,null,null,null,null,null,null,null,null,null,0,{"$error":"#DIV/0!"}]
[null,null,null,null,null,null,null,null,null,null,null,null,null,null,0,{"$error":"#DIV/0!"}]
[null,null,null,null,null,null,null,null,null,null,null,null,null,null,0,{"$error":"#DIV/0!"}]
[null,null,null,null,null,null,null,null,null,null,null,null,null,null,0,{"$error":"#DIV/0!"}]
[null,null,null,null,null,null,null,null,null,null,null,null,null,null,0,{"$error":"#DIV/0!"}]
[null,null,null,null,null,null,null,null,null,null,null,null,null,null,0,{"$error":"#DIV/0!"}]
[null,null,null,null,null,null,null,null,null,null,null,null,null,null,0,{"$error":"#DIV/0!"}]
[null,null,null,null,null,null,null,null,null,null,null,null,null,null,0,{"$error":"#DIV/0!"}]
[null,null,null,null,null,null,null,null,null,null,null,null,null,null,0,{"$error":"#DIV/0!"}]
[null,null,null,null,null,null,null,null,null,null,null,null,null,null,0,{"$error":"#DIV/0!"}]
[null,null,null,null,null,null,null,null,null,null,null,null,null,null,0,{"$error":"#DIV/0!"}]
[null,null,null,null,null,null,null,null,null,null,null,null,null,null,0,{"$error":"#DIV/0!"}]
[null,"TOTAL WORKDAYS/CATEGORY:",null,{"$f":"SUM(D12:D120)","v":0},{"$f":"SUM(E12:E120)","v":0},0,0,0,0,0,0,0,{"$f":"SUM(M12:M120)","v":0},{"$f":"SUM(N12:N120)","v":0},{"$f":"SUM(O12:O120)","v":0},{"$f":"SUM(P12:P120)","v":{"$error":"#DIV/0!"}},{"$f":"SUM(Q12:Q120)","v":0}]
[null,"HOURLY SALARY RATE:",null,{"$f":"'PEF CLASSIFICATION SHEET'!$E47","v":0},{"$f":"'PEF CLASSIFICATION SHEET'!$E48","v":0},{"$f":"'PEF CLASSIFICATION SHEET'!$E49","v":0},{"$f":"'PEF CLASSIFICATION SHEET'!$E50","v":0},{"$f":"'PEF CLASSIFICATION SHEET'!$E51","v":0},{"$f":"'PEF CLASSIFICATION SHEET'!$E52","v":0},{"$f":"'PEF CLASSIFICATION SHEET'!$E53","v":0},{"$f":"'PEF CLASSIFICATION SHEET'!E54","v":0},{"$f":"'PEF CLASSIFICATION SHEET'!E55","v":0},{"$f":"'PEF CLASSIFICATION SHEET'!E56","v":0},{"$f":"'PEF CLASSIFICATION SHEET'!E57","v":0}]
[null,"RATES PER DAY:",null,{"$f":"D122*8","v":0},0,0,0,0,0,{"$f":"J122*8","v":0},0,0,0,0]
[null,"PAYROLL BURDEN:",null,{"$f":"SUM(D121*D123)","v":0},0,0,0,0,0,{"$f":"SUM(J121*J123)","v":0},0,0,0,0]
[null,"TOTAL WORKDAYS:",null,{"$f":"SUM(D121:N121)","v":0}]
[null,"TOTAL PAYROLL BURDEN:",null,{"$f":"SUM(D124:N124)","v":0}]
[null,"AVERAGE COST PER HOUR:",null,{"$f":"SUM(D126/(D125*8))","v":{"$error":"#DIV/0!"}}]
[null,"GENERAL OVERHEAD:",{"$f":"PDEA_NEU_CONSULTANT_OVERHEAD","v":0},{"$f":"SUM(D126*C128)","v":0}]
[null,"SUBTOTAL:",null,{"$f":"SUM(D126+D128)","v":0}]
[null,"COMPARATIVE FEE:",{"$f":"PDEA_NEU_CONSULTANT_FEE","v":0.09},{"$f":"SUM(D129*C130)","v":0}]
[null,"FACILITIES COST OF CAPITAL:",{"$f":"PDEA_NEU_CONSULTANT_COSTofCAPITAL","v":0},{"$f":"SUM(D126*C131)","v":0},null,null,"     ","PDEA RELATED DATA :"]
[null,"TOTAL:",null,{"$f":"SUM(D129:D131)","v":0},null,null,null,"  SIZE OF STUDY AREA (SQUARE FEET)"]
[null,"DIRECT EXPENSES:",null,{"$f":"PDEA_NEU_DIRECT_NONSALARY_TOTAL","v":0},null,null,null,"  JURISDICTIONAL RESOURCES PRESENT"]
[null,"NES GRAND TOTAL:",null,{"$f":"SUM(D132:D133)","v":0},null,null,null,"  POTENTIAL ENDANGERED SPECIES"]
[]
[]
[]
[null,"Costs",null,"Workdays",null,null,null,null,"Dollars"]
[null,null,null,"EN Natural ","PEF","Delta ","Delta %",null,"EN Natural ",null,null,null,null,null,null,"PEF",null,"Delta ","Delta %"]
[null,null,null,null,null,{"$f":"SUM(E140-D140)","v":0},{"$f":"SUM((F140/D140)*100)","v":{"$error":"#DIV/0!"}},null,null,null,null,null,null,null,null,null,null,{"$f":"SUM(P140-I140)","v":0},{"$f":"SUM((R140/I140)*100)","v":{"$error":"#DIV/0!"}}]
[]
[]
[null,null,null,null,null,null,null,"Directs","Dollars"]
[null,null,null,null,null,null,null,null,"EN Natural ",null,null,null,null,null,null,"PEF",null,"Delta ","Delta %"]
[null,null,null,null,null,null,null,null,null,null,null,null,null,null,null,null,null,{"$f":"SUM(P145-I145)","v":0},{"$f":"SUM((R145/I145)*100)","v":{"$error":"#DIV/0!"}}]

{"sheet":"EN-Natural-Exp","index":13,"n_rows":48,"n_cols":8,"rows_kept":48,"cut":false,"hidden":true,"merged":[[2,1,2,3],[0,0,0,7],[6,1,6,3],[6,4,6,6],[3,1,3,7],[4,1,4,3],[4,6,4,7],[5,1,5,3],[5,6,5,7]]}
["NATURAL ENVIRONMENT DIRECT EXPENSES"]
[]
["FIRM:",{"$f":"'EN-Natural'!G3","v":"CONSULTANT NAME"}]
["PROJECT DESCRIPTION: ",{"$f":"PROJECT.DESCRIPTION","v":0}]
["PREPARED BY:  ",{"$f":"NEU.PREPARED.BY","v":""},null,null,"TASK ORDER NUMBER:",null,{"$f":"TASK.ORDER.NUMBER","v":0}]
["TIP NUMBER:",{"$f":"TIP.NUMBER","v":0},null,null,"WBS NUMBER:",null,{"$f":"WBS.NUMBER","v":""}]
["DATE PREPARED:",{"$f":"IF('EN-Natural'!R3=\"\",\"\",MAX('EN-Natural'!R3:'EN-Natural'!R4))","v":""},null,null,"REVIEWED BY UNIT HEAD ON:",null,null,{"$f":"IF(SCOPE.MANDAY.ESTIMATE.APPROVED.BY.DATE=\"\",\"\",SCOPE.MANDAY.ESTIMATE.APPROVED.BY.DATE)","v":""}]
["GENERAL PROJECT WORK:","ITEM","QTY","DESCRIPTION",null,null,"UNIT COST "]
[null,"Travel:"]
[null,"Sedan",0,"Trip(s) @",0,"miles @",{"$f":"SEDAN","v":0.7},{"$f":"SUM(C10*E10*G10)","v":0}]
[null,"Carry All",0,"Trip(s) @",0,"miles @",{"$f":"CARRYALL","v":0.72},{"$f":"SUM(C11*E11*G11)","v":0}]
[null,"Car Rental",null,null,0,"days @ ",{"$f":"CARRENTAL","v":50},{"$f":"SUM(E12*G12)","v":0}]
[null,"Gas for Rental",null,null,0,"miles @",{"$f":"GASforRENTAL","v":0.2},{"$f":"SUM(E13*G13)","v":0}]
[null,"Parking:",0,"Trip(s) @",null,null,{"$f":"PARKING","v":3},{"$f":"SUM(C14*G14)","v":0}]
[null,"Per Diem:",0,"Breakfast",null,null,{"$f":"BREAKFAST","v":10.1},{"$f":"SUM(C15*G15)","v":0}]
[null,null,0,"Lunch",null,null,{"$f":"LUNCH","v":13.3},{"$f":"SUM(C16*G16)","v":0}]
[null,null,0,"Dinner",null,null,{"$f":"DINNER","v":23.1},{"$f":"SUM(C17*G17)","v":0}]
[null,null,0,"Lodging",null,null,{"$f":"LODGING_LUMP.SUM","v":95},{"$f":"SUM(C18*G18)","v":0}]
[null,null,null,null,null,"Subtotal",null,{"$f":"SUM(H10:H18)","v":0}]
["TECHNICAL REPORTS:","ITEM","QTY","DESCRIPTION",null,null,"UNIT COST "]
[null,"Reproduction:",0,"8 1/2 x 11 B & W Copies @",null,null,{"$f":"LETTERCOPIES","v":0.14000000000000001},{"$f":"SUM(C21*G21)","v":0}]
[null,null,0,"11 x 17 B & W Copies @",null,null,{"$f":"LEDGERCOPIES","v":0.34},0]
[null,null,0,"8 1/2 x 11 Color Copies @",null,null,{"$f":"LETTERCOLOR","v":0.83},0]
[null,null,0,"11 x 17 Color Copies @",null,null,{"$f":"LEDGERCOLOR","v":1.66},0]
[null,null,0,"Blueprints - 8 1/2 x 11 @",null,null,{"$f":"BLUEPRINTSLETTER","v":0.35},0]
[null,null,0,"Prints  - 24 x 36 @",null,null,{"$f":"BLUEPRINTSLARGE","v":1.3},0]
[null,null,0,"SQ. FT. of Plots (B & W or Color)",null,"<65 SQ. FT.*",{"$f":"ROLLPLOTSshort","v":6.5},0]
[null,null,0,"SQ. FT. of Plots (B & W or Color)",null,">65 SQ. FT.*",{"$f":"ROLLPLOTSlong","v":1.5},0]
[null,null,0,"Cover(s) @",null,null,{"$f":"COVERS","v":0.5},0]
[null,null,0,"Binder(s) @",null,null,{"$f":"BINDERS","v":0.5},0]
[null,null,0,"Postage",0,"copies @",{"$f":"POSTAGE","v":0.49},{"$f":"SUM(C31*E31*G31)","v":0}]
[null,null,null,null,null,"Subtotal",null,{"$f":"SUM(H21:H31)","v":0}]
["Miscellaneous Other","ITEM","QTY","DESCRIPTION",null,null,"UNIT COST "]
[null,null,null,null,null,null,null,{"$f":"SUM(C34*G34)","v":0}]
[null,null,null,null,null,null,null,{"$f":"SUM(C35*G35)","v":0}]
[null,null,null,null,null,null,null,0]
[null,null,null,null,null,null,null,0]
[null,null,null,null,null,null,null,0]
[null,null,null,null,null,null,null,0]
[null,null,null,null,null,null,null,0]
[null,null,null,null,null,null,null,{"$f":"SUM(C41*G41)","v":0}]
[null,null,null,null,null,null,null,{"$f":"SUM(C42*G42)","v":0}]
[null,null,null,null,null,null,null,{"$f":"SUM(C43*G43)","v":0}]
[null,null,null,null,null,"Subtotal",null,{"$f":"SUM(H34:H43)","v":0}]
[]
[null,null,null,null,null,"TOTAL",null,{"$f":"SUM(H19+H32+H44)","v":0}]
[]
[null,"* Sum of all plots "]

{"sheet":"EN-Comm","index":14,"n_rows":178,"n_cols":27,"rows_kept":178,"cut":false,"hidden":true,"merged":[[122,26,122,27],[123,26,123,27],[95,26,95,27],[96,26,96,27],[106,26,106,27],[107,26,107,27],[108,26,108,27],[147,26,147,27],[148,26,148,27],[97,26,97,27],[98,26,98,27],[99,26,99,27],[100,26,100,27],[101,26,101,27],[102,26,102,27],[103,26,103,27],[104,26,104,27],[105,26,105,27],[62,26,62,27],[3,13,3,14],[0,0,1,27],[6,3,9,3],[6,4,9,4],[6,5,9,5],[6,6,9,6],[6,7,9,7],[6,8,9,8],[6,9,9,9],[6,10,9,10],[18,26,18,27],[22,26,22,27],[51,26,51,27],[52,26,52,27],[53,26,53,27],[54,26,54,27],[56,26,56,27],[57,26,57,27],[43,26,43,27],[44,26,44,27],[46,26,46,27],[47,26,47,27],[48,26,48,27],[50,26,50,27],[55,26,55,27],[58,26,58,27],[60,26,60,27],[66,26,66,27],[139,26,139,27],[141,26,141,27],[143,26,143,27],[145,26,145,27],[121,26,121,27],[126,26,126,27],[131,26,131,27],[134,26,134,27],[129,26,129,27],[130,26,130,27],[132,26,132,27],[133,26,133,27],[135,26,135,27],[137,26,137,27],[77,26,77,27],[78,26,78,27],[79,26,79,27],[80,26,80,27],[136,26,136,27],[177,8,177,9],[177,10,177,11],[172,8,172,9],[172,10,172,11],[175,8,175,13],[176,8,176,9],[176,10,176,11],[124,26,124,27],[125,26,125,27],[127,26,127,27],[128,26,128,27],[151,26,151,27],[150,26,150,27],[138,26,138,27],[140,26,140,27],[142,26,142,27],[144,26,144,27],[146,26,146,27],[149,26,149,27],[170,3,170,6],[170,8,170,13],[171,8,171,9],[171,10,171,11],[81,26,81,27],[82,26,82,27],[83,26,83,27],[84,26,84,27],[85,26,85,27],[86,26,86,27],[87,26,87,27],[115,26,115,27],[116,26,116,27],[117,26,117,27],[118,26,118,27],[119,26,119,27],[120,26,120,27],[88,26,88,27],[89,26,89,27],[90,26,90,27],[91,26,91,27],[92,26,92,27],[93,26,93,27],[94,26,94,27],[166,1,167,1],[166,3,167,4],[59,26,59,27],[61,26,61,27],[152,26,152,27],[63,26,63,27],[64,26,64,27],[65,26,65,27],[67,26,67,27],[68,26,68,27],[69,26,69,27],[71,26,71,27],[72,26,72,27],[73,26,73,27],[74,26,74,27],[70,26,70,27],[109,26,109,27],[110,26,110,27],[111,26,111,27],[112,26,112,27],[113,26,113,27],[114,26,114,27],[75,26,75,27],[76,26,76,27],[49,26,49,27],[45,26,45,27],[37,26,37,27],[38,26,38,27],[39,26,39,27],[40,26,40,27],[41,26,41,27],[42,26,42,27],[31,26,31,27],[32,26,32,27],[33,26,33,27],[34,26,34,27],[35,26,35,27],[36,26,36,27],[25,26,25,27],[26,26,26,27],[27,26,27,27],[28,26,28,27],[29,26,29,27],[30,26,30,27],[17,26,17,27],[19,26,19,27],[20,26,20,27],[21,26,21,27],[23,26,23,27],[24,26,24,27],[8,26,8,27],[11,26,11,27],[12,26,12,27],[13,26,13,27],[15,26,15,27],[16,26,16,27],[10,26,10,27],[14,26,14,27],[4,3,4,21],[6,17,9,17],[6,20,9,20],[6,21,9,21],[6,14,9,14],[6,15,9,15],[6,16,9,16],[6,19,9,19],[6,18,9,18],[6,11,9,11],[6,12,9,12],[6,13,9,13],[2,1,2,4],[2,6,2,7],[2,10,2,11],[2,23,2,24],[3,1,3,4],[3,6,3,7],[3,10,3,11],[3,23,3,24],[2,13,2,14]]}
["COMMUNITY STUDIES BREAKDOWN WORKSHEET"]
[]
["PROJECT DESCRIPTION: ",{"$f":"PROJECT.DESCRIPTION","v":0},null,null,null,"FIRM:  ",{"$f":"PDEA_HEU_COMMUNITY.STUDIES_CONSULTANT_NAME","v":"CONSULTANT NAME"},null,"TASK ORDER NUMBER:",null,{"$f":"TASK.ORDER.NUMBER","v":0},null,"DATE PREPARED:",{"$f":"IF(SCOPE.MANDAY.ESTIMATE.PREPARED.BY.DATE=\"\",\"\",SCOPE.MANDAY.ESTIMATE.PREPARED.BY.DATE)","v":""}]
["PREPARED BY:  ",{"$f":"IF(SCOPE.MANDAY.ESTIMATE.PREPARED.BY=\"\",\"\",SCOPE.MANDAY.ESTIMATE.PREPARED.BY)","v":""},null,null,null,"TIP NUMBER:",{"$f":"TIP.NUMBER","v":0},null,"WBS NUMBER:",null,{"$f":"WBS.NUMBER","v":""},null,"REVISION DATE:",{"$f":"IF(SCOPE.MANDAY.ESTIMATE.APPROVED.BY.DATE=\"\",\"\",SCOPE.MANDAY.ESTIMATE.APPROVED.BY.DATE)","v":""}]
[null,null,null,"ESTIMATED WORK DAYS"]
[null,null,"Employee",{"$f":"IF('PEF CLASSIFICATION SHEET'!$D60=\"\",\"\",LEFT('PEF CLASSIFICATION SHEET'!$D60,4))","v":""},{"$f":"IF('PEF CLASSIFICATION SHEET'!$D61=\"\",\"\",LEFT('PEF CLASSIFICATION SHEET'!$D61,4))","v":""},{"$f":"IF('PEF CLASSIFICATION SHEET'!$D62=\"\",\"\",LEFT('PEF CLASSIFICATION SHEET'!$D62,4))","v":""},{"$f":"IF('PEF CLASSIFICATION SHEET'!$D63=\"\",\"\",LEFT('PEF CLASSIFICATION SHEET'!$D63,4))","v":""},{"$f":"IF('PEF CLASSIFICATION SHEET'!$D64=\"\",\"\",LEFT('PEF CLASSIFICATION SHEET'!$D64,4))","v":""},{"$f":"IF('PEF CLASSIFICATION SHEET'!$D65=\"\",\"\",LEFT('PEF CLASSIFICATION SHEET'!$D65,4))","v":""},{"$f":"IF('PEF CLASSIFICATION SHEET'!$D66=\"\",\"\",LEFT('PEF CLASSIFICATION SHEET'!$D66,4))","v":""},{"$f":"IF('PEF CLASSIFICATION SHEET'!$D67=\"\",\"\",LEFT('PEF CLASSIFICATION SHEET'!$D67,4))","v":""},{"$f":"IF('PEF CLASSIFICATION SHEET'!$D68=\"\",\"\",LEFT('PEF CLASSIFICATION SHEET'!$D68,4))","v":""},{"$f":"IF('PEF CLASSIFICATION SHEET'!$D69=\"\",\"\",LEFT('PEF CLASSIFICATION SHEET'!$D69,4))","v":""},{"$f":"IF('PEF CLASSIFICATION SHEET'!$D70=\"\",\"\",LEFT('PEF CLASSIFICATION SHEET'!$D70,4))","v":""},{"$f":"IF('PEF CLASSIFICATION SHEET'!$D71=\"\",\"\",LEFT('PEF CLASSIFICATION SHEET'!$D71,4))","v":""},{"$f":"IF('PEF CLASSIFICATION SHEET'!$D72=\"\",\"\",LEFT('PEF CLASSIFICATION SHEET'!$D72,4))","v":""},{"$f":"IF('PEF CLASSIFICATION SHEET'!$D73=\"\",\"\",LEFT('PEF CLASSIFICATION SHEET'!$D73,4))","v":""},{"$f":"IF('PEF CLASSIFICATION SHEET'!$D74=\"\",\"\",LEFT('PEF CLASSIFICATION SHEET'!$D74,4))","v":""},{"$f":"IF('PEF CLASSIFICATION SHEET'!D75=\"\",\"\",LEFT('PEF CLASSIFICATION SHEET'!D75,4))","v":""},{"$f":"IF('PEF CLASSIFICATION SHEET'!D76=\"\",\"\",LEFT('PEF CLASSIFICATION SHEET'!D76,4))","v":""},{"$f":"IF('PEF CLASSIFICATION SHEET'!D77=\"\",\"\",LEFT('PEF CLASSIFICATION SHEET'!D77,4))","v":""},{"$f":"IF('PEF CLASSIFICATION SHEET'!D78=\"\",\"\",LEFT('PEF CLASSIFICATION SHEET'!D78,4))","v":""}]
[null,null,null,{"$f":"IF('PEF CLASSIFICATION SHEET'!$C60=\"\",\"\",'PEF CLASSIFICATION SHEET'!$C60)","v":""},{"$f":"IF('PEF CLASSIFICATION SHEET'!$C61=\"\",\"\",'PEF CLASSIFICATION SHEET'!$C61)","v":""},{"$f":"IF('PEF CLASSIFICATION SHEET'!$C62=\"\",\"\",'PEF CLASSIFICATION SHEET'!$C62)","v":""},{"$f":"IF('PEF CLASSIFICATION SHEET'!$C63=\"\",\"\",'PEF CLASSIFICATION SHEET'!$C63)","v":""},{"$f":"IF('PEF CLASSIFICATION SHEET'!$C64=\"\",\"\",'PEF CLASSIFICATION SHEET'!$C64)","v":""},{"$f":"IF('PEF CLASSIFICATION SHEET'!$C65=\"\",\"\",'PEF CLASSIFICATION SHEET'!$C65)","v":""},{"$f":"IF('PEF CLASSIFICATION SHEET'!$C66=\"\",\"\",'PEF CLASSIFICATION SHEET'!$C66)","v":""},{"$f":"IF('PEF CLASSIFICATION SHEET'!$C67=\"\",\"\",'PEF CLASSIFICATION SHEET'!$C67)","v":""},{"$f":"IF('PEF CLASSIFICATION SHEET'!$C68=\"\",\"\",'PEF CLASSIFICATION SHEET'!$C68)","v":""},{"$f":"IF('PEF CLASSIFICATION SHEET'!$C69=\"\",\"\",'PEF CLASSIFICATION SHEET'!$C69)","v":""},{"$f":"IF('PEF CLASSIFICATION SHEET'!$C70=\"\",\"\",'PEF CLASSIFICATION SHEET'!$C70)","v":""},{"$f":"IF('PEF CLASSIFICATION SHEET'!$C71=\"\",\"\",'PEF CLASSIFICATION SHEET'!$C71)","v":""},{"$f":"IF('PEF CLASSIFICATION SHEET'!$C72=\"\",\"\",'PEF CLASSIFICATION SHEET'!$C72)","v":""},{"$f":"IF('PEF CLASSIFICATION SHEET'!$C73=\"\",\"\",'PEF CLASSIFICATION SHEET'!$C73)","v":""},{"$f":"IF('PEF CLASSIFICATION SHEET'!$C74=\"\",\"\",'PEF CLASSIFICATION SHEET'!$C74)","v":""},{"$f":"IF('PEF CLASSIFICATION SHEET'!C75=\"\",\"\",'PEF CLASSIFICATION SHEET'!C75)","v":""},{"$f":"IF('PEF CLASSIFICATION SHEET'!C76=\"\",\"\",'PEF CLASSIFICATION SHEET'!C76)","v":""},{"$f":"IF('PEF CLASSIFICATION SHEET'!C77=\"\",\"\",'PEF CLASSIFICATION SHEET'!C77)","v":""},{"$f":"IF('PEF CLASSIFICATION SHEET'!C78=\"\",\"\",'PEF CLASSIFICATION SHEET'!C78)","v":""},null,"SUB-","%","PEF"]
[null,null,"Classification",null,null,null,null,null,null,null,null,null,null,null,null,null,null,null,null,null,null,null,null,"TOTAL","OF","ESTIMATE"]
["TASK","TASK DESCRIPTION",null,null,null,null,null,null,null,null,null,null,null,null,null,null,null,null,null,null,null,null,null,null,"PROJECT",null,"COMMENTS"]
["NO."]
["2EN2","Assess Human Environmental Impacts"]
[1,"Direct and Indirect Screening Tool (DIST)",null,null,null,null,null,null,null,null,null,null,null,null,null,null,null,null,null,null,null,null,null,{"$f":"IF($B12=\"\",0,IF((SUM($D12:W12)=0),\"\",SUM($D12:W12)))","v":""},{"$f":"IF(X12=\"\",\"\",SUM((X12/X$154)))","v":""}]
[1.1000000000000001,"DIST Project Initiation & Set-up",null,null,null,null,null,null,null,null,null,null,null,null,null,null,null,null,null,null,null,null,null,{"$f":"IF($B13=\"\",0,IF((SUM($D13:W13)=0),\"\",SUM($D13:W13)))","v":""},{"$f":"IF(X13=\"\",\"\",SUM((X13/X$154)))","v":""}]
[1.2,"DIST Data Gathering",null,null,null,null,null,null,null,null,null,null,null,null,null,null,null,null,null,null,null,null,null,{"$f":"IF($B14=\"\",0,IF((SUM($D14:W14)=0),\"\",SUM($D14:W14)))","v":""},""]
[1.3,"DIST Project Documentation",null,null,null,null,null,null,null,null,null,null,null,null,null,null,null,null,null,null,null,null,null,{"$f":"IF($B15=\"\",0,IF((SUM($D15:W15)=0),\"\",SUM($D15:W15)))","v":""},""]
[1.4,"DIST Deliverables",null,null,null,null,null,null,null,null,null,null,null,null,null,null,null,null,null,null,null,null,null,{"$f":"IF($B16=\"\",0,IF((SUM($D16:W16)=0),\"\",SUM($D16:W16)))","v":""},""]
[null,"Task Management",null,null,null,null,null,null,null,null,null,null,null,null,null,null,null,null,null,null,null,null,null,{"$f":"IF($B17=\"\",0,IF((SUM($D17:W17)=0),\"\",SUM($D17:W17)))","v":""},""]
[null,"Complete QC/QC Procedures",null,null,null,null,null,null,null,null,null,null,null,null,null,null,null,null,null,null,null,null,null,{"$f":"IF($B18=\"\",0,IF((SUM($D18:W18)=0),\"\",SUM($D18:W18)))","v":""},""]
[null,null,null,null,null,null,null,null,null,null,null,null,null,null,null,null,null,null,null,null,null,null,null,{"$f":"IF($B19=\"\",0,IF((SUM($D19:W19)=0),\"\",SUM($D19:W19)))","v":0},{"$error":"#DIV/0!"}]
[null,null,null,null,null,null,null,null,null,null,null,null,null,null,null,null,null,null,null,null,null,null,null,{"$f":"IF($B20=\"\",0,IF((SUM($D20:W20)=0),\"\",SUM($D20:W20)))","v":0},{"$error":"#DIV/0!"}]
[null,null,null,null,null,null,null,null,null,null,null,null,null,null,null,null,null,null,null,null,null,null,null,{"$f":"IF($B21=\"\",0,IF((SUM($D21:W21)=0),\"\",SUM($D21:W21)))","v":0},{"$error":"#DIV/0!"}]
[null,null,null,null,null,null,null,null,null,null,null,null,null,null,null,null,null,null,null,null,null,null,null,{"$f":"IF($B22=\"\",0,IF((SUM($D22:W22)=0),\"\",SUM($D22:W22)))","v":0},{"$error":"#DIV/0!"}]
[null,null,null,null,null,null,null,null,null,null,null,null,null,null,null,null,null,null,null,null,null,null,null,{"$f":"IF($B23=\"\",0,IF((SUM($D23:W23)=0),\"\",SUM($D23:W23)))","v":0},{"$error":"#DIV/0!"}]
[2,"Short Form Community Impacts Assessment (CIA)",null,null,null,null,null,null,null,null,null,null,null,null,null,null,null,null,null,null,null,null,null,{"$f":"IF($B24=\"\",0,IF((SUM($D24:W24)=0),\"\",SUM($D24:W24)))","v":""},""]
[2.1,"CIA Project Initiation & Set-up",null,null,null,null,null,null,null,null,null,null,null,null,null,null,null,null,null,null,null,null,null,{"$f":"IF($B25=\"\",0,IF((SUM($D25:W25)=0),\"\",SUM($D25:W25)))","v":""},""]
[2.2000000000000002,"CIA Data Gathering",null,null,null,null,null,null,null,null,null,null,null,null,null,null,null,null,null,null,null,null,null,{"$f":"IF($B26=\"\",0,IF((SUM($D26:W26)=0),\"\",SUM($D26:W26)))","v":""},""]
[2.2999999999999998,"Short Form CIA Project Documentation",null,null,null,null,null,null,null,null,null,null,null,null,null,null,null,null,null,null,null,null,null,{"$f":"IF($B27=\"\",0,IF((SUM($D27:W27)=0),\"\",SUM($D27:W27)))","v":""},""]
[2.4,"Short Form CIA Deliverables",null,null,null,null,null,null,null,null,null,null,null,null,null,null,null,null,null,null,null,null,null,{"$f":"IF($B28=\"\",0,IF((SUM($D28:W28)=0),\"\",SUM($D28:W28)))","v":""},""]
[null,"Task Management",null,null,null,null,null,null,null,null,null,null,null,null,null,null,null,null,null,null,null,null,null,{"$f":"IF($B29=\"\",0,IF((SUM($D29:W29)=0),\"\",SUM($D29:W29)))","v":""},""]
[null,"Complete QC/QC Procedures",null,null,null,null,null,null,null,null,null,null,null,null,null,null,null,null,null,null,null,null,null,{"$f":"IF($B30=\"\",0,IF((SUM($D30:W30)=0),\"\",SUM($D30:W30)))","v":""},""]
[null,null,null,null,null,null,null,null,null,null,null,null,null,null,null,null,null,null,null,null,null,null,null,{"$f":"IF($B31=\"\",0,IF((SUM($D31:W31)=0),\"\",SUM($D31:W31)))","v":0},{"$error":"#DIV/0!"}]
[null,null,null,null,null,null,null,null,null,null,null,null,null,null,null,null,null,null,null,null,null,null,null,{"$f":"IF($B32=\"\",0,IF((SUM($D32:W32)=0),\"\",SUM($D32:W32)))","v":0},{"$error":"#DIV/0!"}]
[null,null,null,null,null,null,null,null,null,null,null,null,null,null,null,null,null,null,null,null,null,null,null,{"$f":"IF($B33=\"\",0,IF((SUM($D33:W33)=0),\"\",SUM($D33:W33)))","v":0},{"$error":"#DIV/0!"}]
[null,null,null,null,null,null,null,null,null,null,null,null,null,null,null,null,null,null,null,null,null,null,null,{"$f":"IF($B34=\"\",0,IF((SUM($D34:W34)=0),\"\",SUM($D34:W34)))","v":0},{"$error":"#DIV/0!"}]
[null,null,null,null,null,null,null,null,null,null,null,null,null,null,null,null,null,null,null,null,null,null,null,{"$f":"IF($B35=\"\",0,IF((SUM($D35:W35)=0),\"\",SUM($D35:W35)))","v":0},{"$error":"#DIV/0!"}]
[null,null,null,null,null,null,null,null,null,null,null,null,null,null,null,null,null,null,null,null,null,null,null,{"$f":"IF($B36=\"\",0,IF((SUM($D36:W36)=0),\"\",SUM($D36:W36)))","v":0},{"$error":"#DIV/0!"}]
[null,null,null,null,null,null,null,null,null,null,null,null,null,null,null,null,null,null,null,null,null,null,null,{"$f":"IF($B37=\"\",0,IF((SUM($D37:W37)=0),\"\",SUM($D37:W37)))","v":0},{"$error":"#DIV/0!"}]
[3,"Checkbox Community Characteristics Report (CCR) and Community Impacts Assessment (CIA)",null,null,null,null,null,null,null,null,null,null,null,null,null,null,null,null,null,null,null,null,null,{"$f":"IF($B38=\"\",0,IF((SUM($D38:W38)=0),\"\",SUM($D38:W38)))","v":""},""]
[3.1,"CCR Project Initiation & Set-up",null,null,null,null,null,null,null,null,null,null,null,null,null,null,null,null,null,null,null,null,null,{"$f":"IF($B39=\"\",0,IF((SUM($D39:W39)=0),\"\",SUM($D39:W39)))","v":""},""]
[3.2,"CCR Data Gathering",null,null,null,null,null,null,null,null,null,null,null,null,null,null,null,null,null,null,null,null,null,{"$f":"IF($B40=\"\",0,IF((SUM($D40:W40)=0),\"\",SUM($D40:W40)))","v":""},""]
[3.3,"CCR Project Documentation",null,null,null,null,null,null,null,null,null,null,null,null,null,null,null,null,null,null,null,null,null,{"$f":"IF($B41=\"\",0,IF((SUM($D41:W41)=0),\"\",SUM($D41:W41)))","v":""},""]
[3.4,"CCR Deliverables",null,null,null,null,null,null,null,null,null,null,null,null,null,null,null,null,null,null,null,null,null,{"$f":"IF($B42=\"\",0,IF((SUM($D42:W42)=0),\"\",SUM($D42:W42)))","v":""},""]
[3.5,"CIA Project Initiation & Set-up",null,null,null,null,null,null,null,null,null,null,null,null,null,null,null,null,null,null,null,null,null,{"$f":"IF($B43=\"\",0,IF((SUM($D43:W43)=0),\"\",SUM($D43:W43)))","v":""},""]
[3.6,"CIA Project Documentation",null,null,null,null,null,null,null,null,null,null,null,null,null,null,null,null,null,null,null,null,null,{"$f":"IF($B44=\"\",0,IF((SUM($D44:W44)=0),\"\",SUM($D44:W44)))","v":""},""]
[3.7,"CIA Deliverables",null,null,null,null,null,null,null,null,null,null,null,null,null,null,null,null,null,null,null,null,null,{"$f":"IF($B45=\"\",0,IF((SUM($D45:W45)=0),\"\",SUM($D45:W45)))","v":""},""]
[null,"Task Management",null,null,null,null,null,null,null,null,null,null,null,null,null,null,null,null,null,null,null,null,null,{"$f":"IF($B46=\"\",0,IF((SUM($D46:W46)=0),\"\",SUM($D46:W46)))","v":""},""]
[null,"Complete QC/QC Procedures",null,null,null,null,null,null,null,null,null,null,null,null,null,null,null,null,null,null,null,null,null,{"$f":"IF($B47=\"\",0,IF((SUM($D47:W47)=0),\"\",SUM($D47:W47)))","v":""},""]
[null,null,null,null,null,null,null,null,null,null,null,null,null,null,null,null,null,null,null,null,null,null,null,{"$f":"IF($B48=\"\",0,IF((SUM($D48:W48)=0),\"\",SUM($D48:W48)))","v":0},{"$error":"#DIV/0!"}]
[null,null,null,null,null,null,null,null,null,null,null,null,null,null,null,null,null,null,null,null,null,null,null,{"$f":"IF($B49=\"\",0,IF((SUM($D49:W49)=0),\"\",SUM($D49:W49)))","v":0},{"$error":"#DIV/0!"}]
[null,null,null,null,null,null,null,null,null,null,null,null,null,null,null,null,null,null,null,null,null,null,null,{"$f":"IF($B50=\"\",0,IF((SUM($D50:W50)=0),\"\",SUM($D50:W50)))","v":0},{"$error":"#DIV/0!"}]
[null,null,null,null,null,null,null,null,null,null,null,null,null,null,null,null,null,null,null,null,null,null,null,{"$f":"IF($B51=\"\",0,IF((SUM($D51:W51)=0),\"\",SUM($D51:W51)))","v":0},{"$error":"#DIV/0!"}]
[null,null,null,null,null,null,null,null,null,null,null,null,null,null,null,null,null,null,null,null,null,null,null,{"$f":"IF($B52=\"\",0,IF((SUM($D52:W52)=0),\"\",SUM($D52:W52)))","v":0},{"$error":"#DIV/0!"}]
[null,null,null,null,null,null,null,null,null,null,null,null,null,null,null,null,null,null,null,null,null,null,null,{"$f":"IF($B53=\"\",0,IF((SUM($D53:W53)=0),\"\",SUM($D53:W53)))","v":0},{"$error":"#DIV/0!"}]
[null,null,null,null,null,null,null,null,null,null,null,null,null,null,null,null,null,null,null,null,null,null,null,{"$f":"IF($B54=\"\",0,IF((SUM($D54:W54)=0),\"\",SUM($D54:W54)))","v":0},{"$error":"#DIV/0!"}]
[null,null,null,null,null,null,null,null,null,null,null,null,null,null,null,null,null,null,null,null,null,null,null,{"$f":"IF($B55=\"\",0,IF((SUM($D55:W55)=0),\"\",SUM($D55:W55)))","v":0},{"$error":"#DIV/0!"}]
[4,"Narrative Community Characteristics Report (CCR) and Community Impacts Assessment (CIA)",null,null,null,null,null,null,null,null,null,null,null,null,null,null,null,null,null,null,null,null,null,{"$f":"IF($B56=\"\",0,IF((SUM($D56:W56)=0),\"\",SUM($D56:W56)))","v":""},""]
[4.0999999999999996,"CCR Project Initiation & Set-up",null,null,null,null,null,null,null,null,null,null,null,null,null,null,null,null,null,null,null,null,null,{"$f":"IF($B57=\"\",0,IF((SUM($D57:W57)=0),\"\",SUM($D57:W57)))","v":""},""]
[4.2,"CCR Data Gathering",null,null,null,null,null,null,null,null,null,null,null,null,null,null,null,null,null,null,null,null,null,{"$f":"IF($B58=\"\",0,IF((SUM($D58:W58)=0),\"\",SUM($D58:W58)))","v":""},""]
[4.3,"CCR Project Documentation",null,null,null,null,null,null,null,null,null,null,null,null,null,null,null,null,null,null,null,null,null,{"$f":"IF($B59=\"\",0,IF((SUM($D59:W59)=0),\"\",SUM($D59:W59)))","v":""},""]
[4.4000000000000004,"CCR Deliverables",null,null,null,null,null,null,null,null,null,null,null,null,null,null,null,null,null,null,null,null,null,{"$f":"IF($B60=\"\",0,IF((SUM($D60:W60)=0),\"\",SUM($D60:W60)))","v":""},""]
[4.5,"CIA Project Initiation & Set-up",null,null,null,null,null,null,null,null,null,null,null,null,null,null,null,null,null,null,null,null,null,{"$f":"IF($B61=\"\",0,IF((SUM($D61:W61)=0),\"\",SUM($D61:W61)))","v":""},""]
[4.5999999999999996,"CIA Project Documentation",null,null,null,null,null,null,null,null,null,null,null,null,null,null,null,null,null,null,null,null,null,{"$f":"IF($B62=\"\",0,IF((SUM($D62:W62)=0),\"\",SUM($D62:W62)))","v":""},""]
[4.7,"CIA Deliverables",null,null,null,null,null,null,null,null,null,null,null,null,null,null,null,null,null,null,null,null,null,{"$f":"IF($B63=\"\",0,IF((SUM($D63:W63)=0),\"\",SUM($D63:W63)))","v":""},""]
[null,"Task Management",null,null,null,null,null,null,null,null,null,null,null,null,null,null,null,null,null,null,null,null,null,{"$f":"IF($B64=\"\",0,IF((SUM($D64:W64)=0),\"\",SUM($D64:W64)))","v":""},""]
[null,"Complete QC/QC Procedures",null,null,null,null,null,null,null,null,null,null,null,null,null,null,null,null,null,null,null,null,null,{"$f":"IF($B65=\"\",0,IF((SUM($D65:W65)=0),\"\",SUM($D65:W65)))","v":""},""]
[null,null,null,null,null,null,null,null,null,null,null,null,null,null,null,null,null,null,null,null,null,null,null,{"$f":"IF($B66=\"\",0,IF((SUM($D66:W66)=0),\"\",SUM($D66:W66)))","v":0},{"$error":"#DIV/0!"}]
[null,null,null,null,null,null,null,null,null,null,null,null,null,null,null,null,null,null,null,null,null,null,null,{"$f":"IF($B67=\"\",0,IF((SUM($D67:W67)=0),\"\",SUM($D67:W67)))","v":0},{"$error":"#DIV/0!"}]
[null,null,null,null,null,null,null,null,null,null,null,null,null,null,null,null,null,null,null,null,null,null,null,{"$f":"IF($B68=\"\",0,IF((SUM($D68:W68)=0),\"\",SUM($D68:W68)))","v":0},{"$error":"#DIV/0!"}]
[null,null,null,null,null,null,null,null,null,null,null,null,null,null,null,null,null,null,null,null,null,null,null,{"$f":"IF($B69=\"\",0,IF((SUM($D69:W69)=0),\"\",SUM($D69:W69)))","v":0},{"$error":"#DIV/0!"}]
[null,null,null,null,null,null,null,null,null,null,null,null,null,null,null,null,null,null,null,null,null,null,null,{"$f":"IF($B70=\"\",0,IF((SUM($D70:W70)=0),\"\",SUM($D70:W70)))","v":0},{"$error":"#DIV/0!"}]
[null,null,null,null,null,null,null,null,null,null,null,null,null,null,null,null,null,null,null,null,null,null,null,{"$f":"IF($B71=\"\",0,IF((SUM($D71:W71)=0),\"\",SUM($D71:W71)))","v":0},{"$error":"#DIV/0!"}]
[null,null,null,null,null,null,null,null,null,null,null,null,null,null,null,null,null,null,null,null,null,null,null,{"$f":"IF($B72=\"\",0,IF((SUM($D72:W72)=0),\"\",SUM($D72:W72)))","v":0},{"$error":"#DIV/0!"}]
[5,"Short Form Indirect and Cumulative Effects (ICE)",null,null,null,null,null,null,null,null,null,null,null,null,null,null,null,null,null,null,null,null,null,{"$f":"IF($B73=\"\",0,IF((SUM($D73:W73)=0),\"\",SUM($D73:W73)))","v":""},""]
[5.0999999999999996,"Project Initiation & Set-up",null,null,null,null,null,null,null,null,null,null,null,null,null,null,null,null,null,null,null,null,null,{"$f":"IF($B74=\"\",0,IF((SUM($D74:W74)=0),\"\",SUM($D74:W74)))","v":""},""]
[5.2,"Conduct Base Screening",null,null,null,null,null,null,null,null,null,null,null,null,null,null,null,null,null,null,null,null,null,{"$f":"IF($B75=\"\",0,IF((SUM($D75:W75)=0),\"\",SUM($D75:W75)))","v":""},""]
[5.3,"Conduct Analytical Screening",null,null,null,null,null,null,null,null,null,null,null,null,null,null,null,null,null,null,null,null,null,{"$f":"IF($B76=\"\",0,IF((SUM($D76:W76)=0),\"\",SUM($D76:W76)))","v":""},""]
[5.4,"Analyze and Evaluate Data",null,null,null,null,null,null,null,null,null,null,null,null,null,null,null,null,null,null,null,null,null,{"$f":"IF($B77=\"\",0,IF((SUM($D77:W77)=0),\"\",SUM($D77:W77)))","v":""},{"$f":"IF(X77=\"\",\"\",SUM((X77/X$154)))","v":""}]
[5.5,"ICE Report Deliverables",null,null,null,null,null,null,null,null,null,null,null,null,null,null,null,null,null,null,null,null,null,{"$f":"IF($B78=\"\",0,IF((SUM($D78:W78)=0),\"\",SUM($D78:W78)))","v":""},""]
[null,"Task Management",null,null,null,null,null,null,null,null,null,null,null,null,null,null,null,null,null,null,null,null,null,{"$f":"IF($B79=\"\",0,IF((SUM($D79:W79)=0),\"\",SUM($D79:W79)))","v":""},""]
[null,"Complete QC/QC Procedures",null,null,null,null,null,null,null,null,null,null,null,null,null,null,null,null,null,null,null,null,null,{"$f":"IF($B80=\"\",0,IF((SUM($D80:W80)=0),\"\",SUM($D80:W80)))","v":""},""]
[null,null,null,null,null,null,null,null,null,null,null,null,null,null,null,null,null,null,null,null,null,null,null,{"$f":"IF($B81=\"\",0,IF((SUM($D81:W81)=0),\"\",SUM($D81:W81)))","v":0},{"$error":"#DIV/0!"}]
[null,null,null,null,null,null,null,null,null,null,null,null,null,null,null,null,null,null,null,null,null,null,null,{"$f":"IF($B82=\"\",0,IF((SUM($D82:W82)=0),\"\",SUM($D82:W82)))","v":0},{"$error":"#DIV/0!"}]
[null,null,null,null,null,null,null,null,null,null,null,null,null,null,null,null,null,null,null,null,null,null,null,{"$f":"IF($B83=\"\",0,IF((SUM($D83:W83)=0),\"\",SUM($D83:W83)))","v":0},{"$error":"#DIV/0!"}]
[null,null,null,null,null,null,null,null,null,null,null,null,null,null,null,null,null,null,null,null,null,null,null,{"$f":"IF($B84=\"\",0,IF((SUM($D84:W84)=0),\"\",SUM($D84:W84)))","v":0},{"$error":"#DIV/0!"}]
[null,null,null,null,null,null,null,null,null,null,null,null,null,null,null,null,null,null,null,null,null,null,null,{"$f":"IF($B85=\"\",0,IF((SUM($D85:W85)=0),\"\",SUM($D85:W85)))","v":0},{"$error":"#DIV/0!"}]
[null,null,null,null,null,null,null,null,null,null,null,null,null,null,null,null,null,null,null,null,null,null,null,{"$f":"IF($B86=\"\",0,IF((SUM($D86:W86)=0),\"\",SUM($D86:W86)))","v":0},{"$error":"#DIV/0!"}]
[null,null,null,null,null,null,null,null,null,null,null,null,null,null,null,null,null,null,null,null,null,null,null,{"$f":"IF($B87=\"\",0,IF((SUM($D87:W87)=0),\"\",SUM($D87:W87)))","v":0},{"$error":"#DIV/0!"}]
[null,null,null,null,null,null,null,null,null,null,null,null,null,null,null,null,null,null,null,null,null,null,null,{"$f":"IF($B88=\"\",0,IF((SUM($D88:W88)=0),\"\",SUM($D88:W88)))","v":0},{"$error":"#DIV/0!"}]
[6,"Checkbox Indirect and Cumulative Effects (ICE)",null,null,null,null,null,null,null,null,null,null,null,null,null,null,null,null,null,null,null,null,null,{"$f":"IF($B89=\"\",0,IF((SUM($D89:W89)=0),\"\",SUM($D89:W89)))","v":""},""]
[6.1,"Project Initiation & Set-up",null,null,null,null,null,null,null,null,null,null,null,null,null,null,null,null,null,null,null,null,null,{"$f":"IF($B90=\"\",0,IF((SUM($D90:W90)=0),\"\",SUM($D90:W90)))","v":""},""]
[6.2,"Conduct Base Screening",null,null,null,null,null,null,null,null,null,null,null,null,null,null,null,null,null,null,null,null,null,{"$f":"IF($B91=\"\",0,IF((SUM($D91:W91)=0),\"\",SUM($D91:W91)))","v":""},""]
[6.3,"Conduct Analytical Screening",null,null,null,null,null,null,null,null,null,null,null,null,null,null,null,null,null,null,null,null,null,{"$f":"IF($B92=\"\",0,IF((SUM($D92:W92)=0),\"\",SUM($D92:W92)))","v":""},""]
[6.4,"Analyze and Evaluate Data",null,null,null,null,null,null,null,null,null,null,null,null,null,null,null,null,null,null,null,null,null,{"$f":"IF($B93=\"\",0,IF((SUM($D93:W93)=0),\"\",SUM($D93:W93)))","v":""},""]
[6.5,"ICE Report Deliverables",null,null,null,null,null,null,null,null,null,null,null,null,null,null,null,null,null,null,null,null,null,{"$f":"IF($B94=\"\",0,IF((SUM($D94:W94)=0),\"\",SUM($D94:W94)))","v":""},""]
[null,"Task Management",null,null,null,null,null,null,null,null,null,null,null,null,null,null,null,null,null,null,null,null,null,{"$f":"IF($B95=\"\",0,IF((SUM($D95:W95)=0),\"\",SUM($D95:W95)))","v":""},""]
[null,"Complete QC/QC Procedures",null,null,null,null,null,null,null,null,null,null,null,null,null,null,null,null,null,null,null,null,null,{"$f":"IF($B96=\"\",0,IF((SUM($D96:W96)=0),\"\",SUM($D96:W96)))","v":""},""]
[null,null,null,null,null,null,null,null,null,null,null,null,null,null,null,null,null,null,null,null,null,null,null,{"$f":"IF($B97=\"\",0,IF((SUM($D97:W97)=0),\"\",SUM($D97:W97)))","v":0},{"$error":"#DIV/0!"}]
[null,null,null,null,null,null,null,null,null,null,null,null,null,null,null,null,null,null,null,null,null,null,null,{"$f":"IF($B98=\"\",0,IF((SUM($D98:W98)=0),\"\",SUM($D98:W98)))","v":0},{"$error":"#DIV/0!"}]
[null,null,null,null,null,null,null,null,null,null,null,null,null,null,null,null,null,null,null,null,null,null,null,{"$f":"IF($B99=\"\",0,IF((SUM($D99:W99)=0),\"\",SUM($D99:W99)))","v":0},{"$error":"#DIV/0!"}]
[null,null,null,null,null,null,null,null,null,null,null,null,null,null,null,null,null,null,null,null,null,null,null,{"$f":"IF($B100=\"\",0,IF((SUM($D100:W100)=0),\"\",SUM($D100:W100)))","v":0},{"$error":"#DIV/0!"}]
[null,null,null,null,null,null,null,null,null,null,null,null,null,null,null,null,null,null,null,null,null,null,null,{"$f":"IF($B101=\"\",0,IF((SUM($D101:W101)=0),\"\",SUM($D101:W101)))","v":0},{"$error":"#DIV/0!"}]
[7,"Narrative Indirect and Cumulative Effects (ICE)",null,null,null,null,null,null,null,null,null,null,null,null,null,null,null,null,null,null,null,null,null,{"$f":"IF($B102=\"\",0,IF((SUM($D102:W102)=0),\"\",SUM($D102:W102)))","v":""},""]
[7.1,"Project Initiation & Set-up",null,null,null,null,null,null,null,null,null,null,null,null,null,null,null,null,null,null,null,null,null,{"$f":"IF($B103=\"\",0,IF((SUM($D103:W103)=0),\"\",SUM($D103:W103)))","v":""},""]
[7.2,"Conduct Base Screening",null,null,null,null,null,null,null,null,null,null,null,null,null,null,null,null,null,null,null,null,null,{"$f":"IF($B104=\"\",0,IF((SUM($D104:W104)=0),\"\",SUM($D104:W104)))","v":""},""]
[7.3,"Conduct Analytical Screening",null,null,null,null,null,null,null,null,null,null,null,null,null,null,null,null,null,null,null,null,null,{"$f":"IF($B105=\"\",0,IF((SUM($D105:W105)=0),\"\",SUM($D105:W105)))","v":""},""]
[7.4,"Analyze and Evaluate Data",null,null,null,null,null,null,null,null,null,null,null,null,null,null,null,null,null,null,null,null,null,{"$f":"IF($B106=\"\",0,IF((SUM($D106:W106)=0),\"\",SUM($D106:W106)))","v":""},""]
[7.5,"ICE Report Deliverables",null,null,null,null,null,null,null,null,null,null,null,null,null,null,null,null,null,null,null,null,null,{"$f":"IF($B107=\"\",0,IF((SUM($D107:W107)=0),\"\",SUM($D107:W107)))","v":""},""]
[null,"Task Management",null,null,null,null,null,null,null,null,null,null,null,null,null,null,null,null,null,null,null,null,null,{"$f":"IF($B108=\"\",0,IF((SUM($D108:W108)=0),\"\",SUM($D108:W108)))","v":""},""]
[null,"Complete QC/QC Procedures",null,null,null,null,null,null,null,null,null,null,null,null,null,null,null,null,null,null,null,null,null,{"$f":"IF($B109=\"\",0,IF((SUM($D109:W109)=0),\"\",SUM($D109:W109)))","v":""},""]
[null,null,null,null,null,null,null,null,null,null,null,null,null,null,null,null,null,null,null,null,null,null,null,{"$f":"IF($B110=\"\",0,IF((SUM($D110:W110)=0),\"\",SUM($D110:W110)))","v":0},{"$error":"#DIV/0!"}]
[null,null,null,null,null,null,null,null,null,null,null,null,null,null,null,null,null,null,null,null,null,null,null,{"$f":"IF($B111=\"\",0,IF((SUM($D111:W111)=0),\"\",SUM($D111:W111)))","v":0},{"$error":"#DIV/0!"}]
[null,null,null,null,null,null,null,null,null,null,null,null,null,null,null,null,null,null,null,null,null,null,null,{"$f":"IF($B112=\"\",0,IF((SUM($D112:W112)=0),\"\",SUM($D112:W112)))","v":0},{"$error":"#DIV/0!"}]
[null,null,null,null,null,null,null,null,null,null,null,null,null,null,null,null,null,null,null,null,null,null,null,{"$f":"IF($B113=\"\",0,IF((SUM($D113:W113)=0),\"\",SUM($D113:W113)))","v":0},{"$error":"#DIV/0!"}]
[null,null,null,null,null,null,null,null,null,null,null,null,null,null,null,null,null,null,null,null,null,null,null,{"$f":"IF($B114=\"\",0,IF((SUM($D114:W114)=0),\"\",SUM($D114:W114)))","v":0},{"$error":"#DIV/0!"}]
[null,null,null,null,null,null,null,null,null,null,null,null,null,null,null,null,null,null,null,null,null,null,null,{"$f":"IF($B115=\"\",0,IF((SUM($D115:W115)=0),\"\",SUM($D115:W115)))","v":0},{"$error":"#DIV/0!"}]
[null,null,null,null,null,null,null,null,null,null,null,null,null,null,null,null,null,null,null,null,null,null,null,{"$f":"IF($B116=\"\",0,IF((SUM($D116:W116)=0),\"\",SUM($D116:W116)))","v":0},{"$error":"#DIV/0!"}]
[8,"Short Form Land Use Scenario Assessment (LUSA)",null,null,null,null,null,null,null,null,null,null,null,null,null,null,null,null,null,null,null,null,null,{"$f":"IF($B117=\"\",0,IF((SUM($D117:W117)=0),\"\",SUM($D117:W117)))","v":""},""]
[8.1,"Project Initiation & Set-up",null,null,null,null,null,null,null,null,null,null,null,null,null,null,null,null,null,null,null,null,null,{"$f":"IF($B118=\"\",0,IF((SUM($D118:W118)=0),\"\",SUM($D118:W118)))","v":""},""]
[8.1999999999999993,"Verify and Update Information from ICE Screening Report",null,null,null,null,null,null,null,null,null,null,null,null,null,null,null,null,null,null,null,null,null,{"$f":"IF($B119=\"\",0,IF((SUM($D119:W119)=0),\"\",SUM($D119:W119)))","v":""},""]
[8.3000000000000007,"Create Land Use Development Scenarios",null,null,null,null,null,null,null,null,null,null,null,null,null,null,null,null,null,null,null,null,null,{"$f":"IF($B120=\"\",0,IF((SUM($D120:W120)=0),\"\",SUM($D120:W120)))","v":""},""]
[8.4,"Land Use Scenario Assessment",null,null,null,null,null,null,null,null,null,null,null,null,null,null,null,null,null,null,null,null,null,{"$f":"IF($B121=\"\",0,IF((SUM($D121:W121)=0),\"\",SUM($D121:W121)))","v":""},""]
[8.5,"Indirect and Cumulative Effects Summary",null,null,null,null,null,null,null,null,null,null,null,null,null,null,null,null,null,null,null,null,null,{"$f":"IF($B122=\"\",0,IF((SUM($D122:W122)=0),\"\",SUM($D122:W122)))","v":""},""]
[8.6,"Land Use Scenario Assessment Report Deliverables",null,null,null,null,null,null,null,null,null,null,null,null,null,null,null,null,null,null,null,null,null,{"$f":"IF($B123=\"\",0,IF((SUM($D123:W123)=0),\"\",SUM($D123:W123)))","v":""},""]
[null,"Task Management",null,null,null,null,null,null,null,null,null,null,null,null,null,null,null,null,null,null,null,null,null,{"$f":"IF($B124=\"\",0,IF((SUM($D124:W124)=0),\"\",SUM($D124:W124)))","v":""},""]
[null,"Complete QC/QC Procedures",null,null,null,null,null,null,null,null,null,null,null,null,null,null,null,null,null,null,null,null,null,{"$f":"IF($B125=\"\",0,IF((SUM($D125:W125)=0),\"\",SUM($D125:W125)))","v":""},""]
[null,null,null,null,null,null,null,null,null,null,null,null,null,null,null,null,null,null,null,null,null,null,null,{"$f":"IF($B126=\"\",0,IF((SUM($D126:W126)=0),\"\",SUM($D126:W126)))","v":0},{"$error":"#DIV/0!"}]
[null,null,null,null,null,null,null,null,null,null,null,null,null,null,null,null,null,null,null,null,null,null,null,{"$f":"IF($B127=\"\",0,IF((SUM($D127:W127)=0),\"\",SUM($D127:W127)))","v":0},{"$error":"#DIV/0!"}]
[null,null,null,null,null,null,null,null,null,null,null,null,null,null,null,null,null,null,null,null,null,null,null,{"$f":"IF($B128=\"\",0,IF((SUM($D128:W128)=0),\"\",SUM($D128:W128)))","v":0},{"$error":"#DIV/0!"}]
[null,null,null,null,null,null,null,null,null,null,null,null,null,null,null,null,null,null,null,null,null,null,null,{"$f":"IF($B129=\"\",0,IF((SUM($D129:W129)=0),\"\",SUM($D129:W129)))","v":0},{"$error":"#DIV/0!"}]
[null,null,null,null,null,null,null,null,null,null,null,null,null,null,null,null,null,null,null,null,null,null,null,{"$f":"IF($B130=\"\",0,IF((SUM($D130:W130)=0),\"\",SUM($D130:W130)))","v":0},{"$error":"#DIV/0!"}]
[null,null,null,null,null,null,null,null,null,null,null,null,null,null,null,null,null,null,null,null,null,null,null,{"$f":"IF($B131=\"\",0,IF((SUM($D131:W131)=0),\"\",SUM($D131:W131)))","v":0},{"$error":"#DIV/0!"}]
[null,null,null,null,null,null,null,null,null,null,null,null,null,null,null,null,null,null,null,null,null,null,null,{"$f":"IF($B132=\"\",0,IF((SUM($D132:W132)=0),\"\",SUM($D132:W132)))","v":0},{"$error":"#DIV/0!"}]
[null,null,null,null,null,null,null,null,null,null,null,null,null,null,null,null,null,null,null,null,null,null,null,{"$f":"IF($B133=\"\",0,IF((SUM($D133:W133)=0),\"\",SUM($D133:W133)))","v":0},{"$error":"#DIV/0!"}]
[9,"Land Use Scenario Assessment (LUSA)",null,null,null,null,null,null,null,null,null,null,null,null,null,null,null,null,null,null,null,null,null,{"$f":"IF($B134=\"\",0,IF((SUM($D134:W134)=0),\"\",SUM($D134:W134)))","v":""},""]
[9.1,"Project Initiation & Set-up",null,null,null,null,null,null,null,null,null,null,null,null,null,null,null,null,null,null,null,null,null,{"$f":"IF($B135=\"\",0,IF((SUM($D135:W135)=0),\"\",SUM($D135:W135)))","v":""},""]
[9.1999999999999993,"Verify and Update Information from ICE Screening Report",null,null,null,null,null,null,null,null,null,null,null,null,null,null,null,null,null,null,null,null,null,{"$f":"IF($B136=\"\",0,IF((SUM($D136:W136)=0),\"\",SUM($D136:W136)))","v":""},""]
[9.3000000000000007,"Land Use Development Scenarios",null,null,null,null,null,null,null,null,null,null,null,null,null,null,null,null,null,null,null,null,null,{"$f":"IF($B137=\"\",0,IF((SUM($D137:W137)=0),\"\",SUM($D137:W137)))","v":""},""]
[9.4,"Land Use Scenario Assessment",null,null,null,null,null,null,null,null,null,null,null,null,null,null,null,null,null,null,null,null,null,{"$f":"IF($B138=\"\",0,IF((SUM($D138:W138)=0),\"\",SUM($D138:W138)))","v":""},""]
[9.5,"Indirect and Cumulative Effects Summary",null,null,null,null,null,null,null,null,null,null,null,null,null,null,null,null,null,null,null,null,null,{"$f":"IF($B139=\"\",0,IF((SUM($D139:W139)=0),\"\",SUM($D139:W139)))","v":""},""]
[9.6,"Land Use Scenario Assessment Report Deliverables",null,null,null,null,null,null,null,null,null,null,null,null,null,null,null,null,null,null,null,null,null,{"$f":"IF($B140=\"\",0,IF((SUM($D140:W140)=0),\"\",SUM($D140:W140)))","v":""},""]
[null,"Task Management",null,null,null,null,null,null,null,null,null,null,null,null,null,null,null,null,null,null,null,null,null,{"$f":"IF($B141=\"\",0,IF((SUM($D141:W141)=0),\"\",SUM($D141:W141)))","v":""},{"$f":"IF(X141=\"\",\"\",SUM((X141/X$154)))","v":""}]
[null,"Complete QC/QC Procedures",null,null,null,null,null,null,null,null,null,null,null,null,null,null,null,null,null,null,null,null,null,{"$f":"IF($B142=\"\",0,IF((SUM($D142:W142)=0),\"\",SUM($D142:W142)))","v":""},""]
[null,null,null,null,null,null,null,null,null,null,null,null,null,null,null,null,null,null,null,null,null,null,null,{"$f":"IF($B143=\"\",0,IF((SUM($D143:W143)=0),\"\",SUM($D143:W143)))","v":0},{"$error":"#DIV/0!"}]
[null,null,null,null,null,null,null,null,null,null,null,null,null,null,null,null,null,null,null,null,null,null,null,{"$f":"IF($B144=\"\",0,IF((SUM($D144:W144)=0),\"\",SUM($D144:W144)))","v":0},{"$error":"#DIV/0!"}]
[null,null,null,null,null,null,null,null,null,null,null,null,null,null,null,null,null,null,null,null,null,null,null,{"$f":"IF($B145=\"\",0,IF((SUM($D145:W145)=0),\"\",SUM($D145:W145)))","v":0},{"$error":"#DIV/0!"}]
[null,null,null,null,null,null,null,null,null,null,null,null,null,null,null,null,null,null,null,null,null,null,null,{"$f":"IF($B146=\"\",0,IF((SUM($D146:W146)=0),\"\",SUM($D146:W146)))","v":0},{"$error":"#DIV/0!"}]
[null,null,null,null,null,null,null,null,null,null,null,null,null,null,null,null,null,null,null,null,null,null,null,{"$f":"IF($B147=\"\",0,IF((SUM($D147:W147)=0),\"\",SUM($D147:W147)))","v":0},{"$error":"#DIV/0!"}]
[null,"Other Tasks:",null,null,null,null,null,null,null,null,null,null,null,null,null,null,null,null,null,null,null,null,null,{"$f":"IF($B148=\"\",0,IF((SUM($D148:W148)=0),\"\",SUM($D148:W148)))","v":""},""]
[null,null,null,null,null,null,null,null,null,null,null,null,null,null,null,null,null,null,null,null,null,null,null,{"$f":"IF($B149=\"\",0,IF((SUM($D149:W149)=0),\"\",SUM($D149:W149)))","v":0},{"$error":"#DIV/0!"}]
[null,null,null,null,null,null,null,null,null,null,null,null,null,null,null,null,null,null,null,null,null,null,null,{"$f":"IF($B150=\"\",0,IF((SUM($D150:W150)=0),\"\",SUM($D150:W150)))","v":0},{"$error":"#DIV/0!"}]
[null,null,null,null,null,null,null,null,null,null,null,null,null,null,null,null,null,null,null,null,null,null,null,{"$f":"IF($B151=\"\",0,IF((SUM($D151:W151)=0),\"\",SUM($D151:W151)))","v":0},{"$error":"#DIV/0!"}]
[null,null,null,null,null,null,null,null,null,null,null,null,null,null,null,null,null,null,null,null,null,null,null,{"$f":"IF($B152=\"\",0,IF((SUM($D152:W152)=0),\"\",SUM($D152:W152)))","v":0},{"$error":"#DIV/0!"}]
[null,null,null,null,null,null,null,null,null,null,null,null,null,null,null,null,null,null,null,null,null,null,null,{"$f":"IF($B153=\"\",0,IF((SUM($D153:W153)=0),\"\",SUM($D153:W153)))","v":0},{"$error":"#DIV/0!"}]
[null,"TOTAL WORKDAYS/CATEGORY:",null,{"$f":"SUM(D12:D153)","v":0},0,0,0,0,0,0,0,0,0,0,0,0,0,0,0,0,{"$f":"SUM(U12:U153)","v":0},{"$f":"SUM(V12:V153)","v":0},null,{"$f":"SUM(X12:X153)","v":0},{"$f":"SUM(Y12:Y153)","v":{"$error":"#DIV/0!"}},{"$f":"SUM(Z12:Z153)","v":0}]
[null,"HOURLY SALARY RATE:",null,{"$f":"'PEF CLASSIFICATION SHEET'!$E60","v":0},{"$f":"'PEF CLASSIFICATION SHEET'!$E61","v":0},{"$f":"'PEF CLASSIFICATION SHEET'!$E62","v":0},{"$f":"'PEF CLASSIFICATION SHEET'!$E63","v":0},{"$f":"'PEF CLASSIFICATION SHEET'!$E64","v":0},{"$f":"'PEF CLASSIFICATION SHEET'!$E65","v":0},{"$f":"'PEF CLASSIFICATION SHEET'!$E66","v":0},{"$f":"'PEF CLASSIFICATION SHEET'!$E67","v":0},{"$f":"'PEF CLASSIFICATION SHEET'!$E68","v":0},{"$f":"'PEF CLASSIFICATION SHEET'!$E69","v":0},{"$f":"'PEF CLASSIFICATION SHEET'!$E70","v":0},{"$f":"'PEF CLASSIFICATION SHEET'!$E71","v":0},{"$f":"'PEF CLASSIFICATION SHEET'!$E72","v":0},{"$f":"'PEF CLASSIFICATION SHEET'!$E73","v":0},{"$f":"'PEF CLASSIFICATION SHEET'!$E74","v":0},{"$f":"'PEF CLASSIFICATION SHEET'!E75","v":0},{"$f":"'PEF CLASSIFICATION SHEET'!E76","v":0},{"$f":"'PEF CLASSIFICATION SHEET'!E77","v":0},{"$f":"'PEF CLASSIFICATION SHEET'!E78","v":0}]
[null,"RATES PER DAY:",null,{"$f":"D155*8","v":0},0,0,0,0,0,0,0,0,0,0,0,0,0,0,{"$f":"S155*8","v":0},0,0,0]
[null,"PAYROLL BURDEN:",null,{"$f":"SUM(D154*D156)","v":0},0,0,0,0,0,0,0,0,0,0,0,0,0,0,{"$f":"SUM(S154*S156)","v":0},0,0,0]
[null,"TOTAL WORKDAYS:",null,{"$f":"SUM(D154:V154)","v":0}]
[null,"TOTAL PAYROLL BURDEN:",null,{"$f":"SUM(D157:V157)","v":0}]
[null,"AVERAGE COST PER HOUR:",null,{"$f":"SUM(D159/(D158*8))","v":{"$error":"#DIV/0!"}}]
[null,"GENERAL OVERHEAD:",{"$f":"PDEA_HEU_COMMUNITY_STUDIES_CONSULTANT_OVERHEAD","v":0},{"$f":"SUM(D159*C161)","v":0}]
[null,"SUBTOTAL:",null,{"$f":"SUM(D159+D161)","v":0}]
[null,"COMPARATIVE FEE:",{"$f":"PDEA_HEU_COMMUNITY_STUDIES_CONSULTANT_FEE","v":0.09},{"$f":"SUM(D162*C163)","v":0}]
[null,"FACILITIES COST OF CAPITAL:",{"$f":"PDEA_HEU_COMMUNITY_STUDIES_CONSULTANT_COSTofCAPITAL","v":0},{"$f":"SUM(D159*C164)","v":0}]
[null,"TOTAL:",null,{"$f":"SUM(D162:D164)","v":0}]
[null,"DIRECT EXPENSES:",null,{"$f":"PDEA_HEU_COMMUNITY_STUDIES_DIRECT_NONSALARY_TOTAL","v":0}]
[null,"COMMUNITY STUDIES GRAND TOTAL:",null,{"$f":"SUM(D165:D166)","v":0}]
[]
[]
[]
[null,"Costs",null,"Workdays",null,null,null,null,"Dollars"]
[null,null,null,"EN Community Studies","PEF","Delta ","Delta %",null,"EN Community Studies",null,"PEF",null,"Delta ","Delta %"]
[null,null,null,null,null,{"$f":"SUM(E173-D173)","v":0},{"$f":"SUM((F173/D173)*100)","v":{"$error":"#DIV/0!"}},null,null,null,null,null,{"$f":"SUM(K173-I173)","v":0},{"$f":"SUM((M173/I173)*100)","v":{"$error":"#DIV/0!"}}]
[]
[]
[null,null,null,null,null,null,null,"Directs","Dollars"]
[null,null,null,null,null,null,null,null,"EN Community Studies",null,"PEF",null,"Delta ","Delta %"]
[null,null,null,null,null,null,null,null,null,null,null,null,{"$f":"SUM(K178-I178)","v":0},{"$f":"SUM((M178/I178)*100)","v":{"$error":"#DIV/0!"}}]

{"sheet":"EN-Comm-Exp","index":15,"n_rows":96,"n_cols":8,"rows_kept":96,"cut":false,"hidden":true,"merged":[[6,1,6,3],[6,4,6,6],[0,0,0,7],[3,1,3,7],[4,1,4,3],[5,1,5,3],[4,5,4,7],[5,5,5,7],[2,1,2,3]]}
["COMMUNITY STUDIES DIRECT EXPENSES"]
[]
["FIRM:",{"$f":"'EN-Comm'!G3","v":"CONSULTANT NAME"}]
["PROJECT DESCRIPTION: ",{"$f":"PROJECT.DESCRIPTION","v":0}]
["PREPARED BY:  ",{"$f":"COMMUNITY.STUDIES.PREPARED.BY","v":""},null,null,"TASK ORDER NUMBER:",{"$f":"TASK.ORDER.NUMBER","v":0}]
["TIP NUMBER:",{"$f":"TIP.NUMBER","v":0},null,null,"WBS NUMBER:",{"$f":"WBS.NUMBER","v":""}]
["DATE PREPARED:",{"$f":"IF('EN-Comm'!N3=\"\",\"\",MAX('EN-Comm'!N3:'EN-Comm'!N4))","v":""},null,null,"REVIEWED BY UNIT HEAD ON:",null,null,{"$f":"IF(SCOPE.MANDAY.ESTIMATE.APPROVED.BY.DATE=\"\",\"\",SCOPE.MANDAY.ESTIMATE.APPROVED.BY.DATE)","v":""}]
["GENERAL PROJECT WORK:","ITEM","QTY","DESCRIPTION",null,null,"UNIT COST "]
[null,"Travel:"]
[null,"Sedan",null,"Trip(s) @",null,"miles @",{"$f":"SEDAN","v":0.7},{"$f":"SUM(C10*E10*G10)","v":0}]
[null,"Carry All",null,"Trip(s) @",null,"miles @",{"$f":"CARRYALL","v":0.72},{"$f":"SUM(C11*E11*G11)","v":0}]
[null,"Car Rental",null,null,null,"days @ ",{"$f":"CARRENTAL","v":50},{"$f":"SUM(E12*G12)","v":0}]
[null,"Gas for Rental",null,null,null,"miles @",{"$f":"GASforRENTAL","v":0.2},{"$f":"SUM(E13*G13)","v":0}]
[null,"Parking:",null,"Trip(s) @",null,null,{"$f":"PARKING","v":3},{"$f":"SUM(C14*G14)","v":0}]
[null,"Per Diem:",null,"Breakfast",null,null,{"$f":"BREAKFAST","v":10.1},{"$f":"SUM(C15*G15)","v":0}]
[null,null,null,"Lunch",null,null,{"$f":"LUNCH","v":13.3},0]
[null,null,null,"Dinner",null,null,{"$f":"DINNER","v":23.1},0]
[null,null,null,"Lodging",null,null,{"$f":"LODGING_LUMP.SUM","v":95},0]
[null,"Reproduction:",null,"8 1/2 x 11 B & W Copies @",null,null,{"$f":"LETTERCOPIES","v":0.14000000000000001},0]
[null,null,null,"11 x 17 B & W Copies @",null,null,{"$f":"LEDGERCOPIES","v":0.34},0]
[null,null,null,"8 1/2 x 11 Color Copies @",null,null,{"$f":"LETTERCOLOR","v":0.83},0]
[null,null,null,"11 x 17 Color Copies @",null,null,{"$f":"LEDGERCOLOR","v":1.66},0]
[null,null,null,"SQ. FT. of Plots (B & W or Color)",null,"<65 SQ. FT.*",{"$f":"ROLLPLOTSshort","v":6.5},0]
[null,null,null,"SQ. FT. of Plots (B & W or Color)",null,">65 SQ. FT.*",{"$f":"ROLLPLOTSlong","v":1.5},0]
[null,null,null,"Cover(s) @",null,null,{"$f":"COVERS","v":0.5},0]
[null,null,null,"Binder(s) @",null,null,{"$f":"BINDERS","v":0.5},0]
[null,null,null,"Blueprints - 8 1/2 x 11 @",null,null,{"$f":"BLUEPRINTSLETTER","v":0.35},0]
[null,null,null,"Blueprints - 42 x 72 @",null,null,{"$f":"BLUEPRINTSLARGE","v":1.3},0]
[null,"Film and Developing:",null,"Roll(s) @",null,null,{"$f":"FILM","v":20},0]
[null,null,null,null,null,"Subtotal",null,{"$f":"SUM(H10:H29)","v":0}]
["MAPS AND DOCUMENTS:","ITEM","QTY","DESCRIPTION",null,null,"UNIT COST "]
[null,"County Tax Maps:",null,"Map(s) @",null,null,{"$f":"County_Tax_Maps","v":7},{"$f":"SUM(C32*G32)","v":0}]
[null,"USGS Maps:",null,"Map(s) @",null,null,{"$f":"USGSMAPS","v":7},{"$f":"SUM(C33*G33)","v":0}]
[null,null,null,null,null,"Subtotal",null,{"$f":"SUM(H32:H33)","v":0}]
["TECHNICAL REPORTS:","ITEM","QTY","DESCRIPTION",null,null,"UNIT COST "]
[null,"Reproduction:",null,"8 1/2 x 11 B & W Copies @",null,null,{"$f":"LETTERCOPIES","v":0.14000000000000001},{"$f":"SUM(C36*G36)","v":0}]
[null,null,null,"11 x 17 B & W Copies @",null,null,{"$f":"LEDGERCOPIES","v":0.34},0]
[null,null,null,"8 1/2 x 11 Color Copies @",null,null,{"$f":"LETTERCOLOR","v":0.83},0]
[null,null,null,"11 x 17 Color Copies @",null,null,{"$f":"LEDGERCOLOR","v":1.66},0]
[null,null,null,"SQ. FT. of Plots (B & W or Color)",null,"<65 SQ. FT.*",{"$f":"ROLLPLOTSshort","v":6.5},0]
[null,null,null,"SQ. FT. of Plots (B & W or Color)",null,">65 SQ. FT.*",{"$f":"ROLLPLOTSlong","v":1.5},0]
[null,null,null,"Cover(s) @",null,null,{"$f":"COVERS","v":0.5},0]
[null,null,null,"Binder(s) @",null,null,{"$f":"BINDERS","v":0.5},0]
[null,null,null,null,null,"Subtotal",null,{"$f":"SUM(H36:H43)","v":0}]
["DESIGN:","ITEM","QTY","DESCRIPTION",null,null,"UNIT COST "]
[null,"Reproduction:",null,"8 1/2 x 11 B & W Copies @",null,null,{"$f":"LETTERCOPIES","v":0.14000000000000001},{"$f":"SUM(C46*G46)","v":0}]
[null,null,null,"11 x 17 B & W Copies @",null,null,{"$f":"LEDGERCOPIES","v":0.34},0]
[null,null,null,"Blueprints - 8 1/2 x 11 @",null,null,{"$f":"BLUEPRINTSLETTER","v":0.35},0]
[null,null,null,"Mylar - 8 1/2 x 11 @",null,null,{"$f":"MYLARSLETTER","v":7.32},0]
[null,null,null,"Mylar - 36 x 48 @",null,null,{"$f":"MYLARSLARGE","v":28.12},0]
[null,null,null,"Prints  - 24 x 36 @",null,null,{"$f":"PRINTSLARGE","v":3},0]
[null,null,null,"Blueprints - 42 x 72 @",null,null,{"$f":"BLUEPRINTSLARGE","v":1.3},0]
[null,null,null,"SQ. FT. of Plots (B & W or Color)",null,"<65 SQ. FT.*",{"$f":"ROLLPLOTSshort","v":6.5},0]
[null,null,null,"SQ. FT. of Plots (B & W or Color)",null,">65 SQ. FT.*",{"$f":"ROLLPLOTSlong","v":1.5},0]
[null,null,null,"USGS Map(s)",null,null,{"$f":"USGSMAPS","v":7},0]
[null,null,null,null,null,"Subtotal",null,{"$f":"SUM(H46:H55)","v":0}]
["MEETINGS & PUBLIC INVOLVEMENT:","ITEM","QTY","DESCRIPTION",null,null,"UNIT COST "]
[null,"Travel:"]
[null,"Sedan",null,"Trip(s) @",null,"miles @",{"$f":"SEDAN","v":0.7},{"$f":"SUM(C59*E59*G59)","v":0}]
[null,"CarryAll",null,"Trip(s) @",null,"miles @",{"$f":"CARRYALL","v":0.72},{"$f":"SUM(C60*E60*G60)","v":0}]
[null,"Car Rental",null,null,null,"days @",{"$f":"CARRENTAL","v":50},{"$f":"SUM(E61*G61)","v":0}]
[null,"Gas for Rental",null,null,null,"miles @",{"$f":"GASforRENTAL","v":0.2},{"$f":"SUM(E62*G62)","v":0}]
[null,"Parking:",null,"Trip(s) @",null,null,{"$f":"PARKING","v":3},{"$f":"SUM(C63*G63)","v":0}]
[null,"Per Diem:",null,"Breakfast",null,null,{"$f":"BREAKFAST","v":10.1},{"$f":"SUM(C64*G64)","v":0}]
[null,null,null,"Lunch",null,null,{"$f":"LUNCH","v":13.3},{"$f":"SUM(C65*G65)","v":0}]
[null,null,null,"Dinner",null,null,{"$f":"DINNER","v":23.1},{"$f":"SUM(C66*G66)","v":0}]
[null,null,null,"Lodging",null,null,{"$f":"LODGING_LUMP.SUM","v":95},{"$f":"SUM(C67*G67)","v":0}]
[null,"Workshop "]
[null,"  - Reproduction",null,"8 1/2 x 11 B & W Copies @",null,"Handouts",{"$f":"LETTERCOPIES","v":0.14000000000000001},{"$f":"SUM(C69*E69*G69)","v":0}]
[null,null,null,"11 x 17 B & W Copies @",null,"Handouts",{"$f":"LEDGERCOPIES","v":0.34},{"$f":"SUM(C70*E70*G70)","v":0}]
[null,null,null,"8 1/2 x 11 Color Copies @",null,null,{"$f":"LETTERCOLOR","v":0.83},{"$f":"SUM(C71*G71)","v":0}]
[null,null,null,"11 x 17 Color Copies @",null,null,{"$f":"LEDGERCOLOR","v":1.66},0]
[null,null,null,"SQ. FT. of Plots (B & W or Color)",null,"<65 SQ. FT.*",{"$f":"ROLLPLOTSshort","v":6.5},0]
[null,null,null,"SQ. FT. of Plots (B & W or Color)",null,">65 SQ. FT.*",{"$f":"ROLLPLOTSlong","v":1.5},0]
[null,null,null,"SQ. FT. Foam Mounting Board @",null,null,{"$f":"FOAMMOUNTINGBOARD","v":1.25},0]
[null,"Presentation Materials:",null,"Misc. Workshop Supplies @",null,"per workshop",{"$f":"MISCWORKSHOPSUPPLIES","v":50},0]
[null,"Mailing Labels:",null,"Laser Peel & Stick (box)",null,"750 per box",{"$f":"LASERPEELandSTICK","v":4},0]
[null,"Postage:"]
[null,"  - Public Workshops:",null,"Notice or Newsletter @",null,"copies @",{"$f":"POSTAGE","v":0.49},{"$f":"SUM(C79*E79*G79)","v":0}]
[null,null,null,null,null,"Subtotal",null,{"$f":"SUM(H58:H79)","v":0}]
["Miscellaneous Other","ITEM","QTY","DESCRIPTION",null,null,"UNIT COST "]
[null,null,null,null,null,null,null,{"$f":"SUM(C82*G82)","v":0}]
[null,null,null,null,null,null,null,{"$f":"SUM(C83*G83)","v":0}]
[null,null,null,null,null,null,null,0]
[null,null,null,null,null,null,null,0]
[null,null,null,null,null,null,null,0]
[null,null,null,null,null,null,null,0]
[null,null,null,null,null,null,null,0]
[null,null,null,null,null,null,null,{"$f":"SUM(C89*G89)","v":0}]
[null,null,null,null,null,null,null,{"$f":"SUM(C90*G90)","v":0}]
[null,null,null,null,null,null,null,{"$f":"SUM(C91*G91)","v":0}]
[null,null,null,null,null,"Subtotal",null,{"$f":"SUM(H82:H91)","v":0}]
[]
[null,null,null,null,null,"TOTAL",null,{"$f":"SUM(H30+H34+H44+H56+H80+H92)","v":0}]
[]
[null,"* Sum of all plots "]

{"sheet":"EN-PI","index":16,"n_rows":229,"n_cols":26,"rows_kept":229,"cut":false,"hidden":true,"merged":[[136,25,136,26],[115,25,115,26],[73,25,73,26],[0,0,1,26],[6,3,9,3],[6,4,9,4],[6,5,9,5],[6,6,9,6],[148,25,148,26],[138,25,138,26],[139,25,139,26],[143,25,143,26],[144,25,144,26],[145,25,145,26],[140,25,140,26],[141,25,141,26],[68,25,68,26],[70,25,70,26],[71,25,71,26],[72,25,72,26],[53,25,53,26],[64,25,64,26],[65,25,65,26],[66,25,66,26],[196,25,196,26],[197,25,197,26],[14,25,14,26],[18,25,18,26],[30,25,30,26],[86,25,86,26],[111,25,111,26],[190,25,190,26],[191,25,191,26],[192,25,192,26],[186,25,186,26],[187,25,187,26],[180,25,180,26],[181,25,181,26],[182,25,182,26],[105,25,105,26],[128,25,128,26],[129,25,129,26],[130,25,130,26],[131,25,131,26],[132,25,132,26],[126,25,126,26],[146,25,146,26],[147,25,147,26],[226,8,226,13],[227,8,227,9],[227,10,227,11],[198,25,198,26],[200,25,200,26],[202,25,202,26],[228,8,228,9],[228,10,228,11],[223,8,223,9],[223,10,223,11],[221,3,221,6],[221,8,221,13],[222,8,222,9],[222,10,222,11],[91,25,91,26],[92,25,92,26],[93,25,93,26],[95,25,95,26],[96,25,96,26],[97,25,97,26],[98,25,98,26],[101,25,101,26],[102,25,102,26],[103,25,103,26],[104,25,104,26],[153,25,153,26],[154,25,154,26],[155,25,155,26],[156,25,156,26],[134,25,134,26],[133,25,133,26],[112,25,112,26],[113,25,113,26],[114,25,114,26],[217,1,218,1],[217,3,218,4],[199,25,199,26],[201,25,201,26],[203,25,203,26],[74,25,74,26],[85,25,85,26],[158,25,158,26],[159,25,159,26],[87,25,87,26],[88,25,88,26],[89,25,89,26],[90,25,90,26],[135,25,135,26],[137,25,137,26],[151,25,151,26],[152,25,152,26],[194,25,194,26],[195,25,195,26],[183,25,183,26],[184,25,184,26],[116,25,116,26],[189,25,189,26],[75,25,75,26],[67,25,67,26],[55,25,55,26],[56,25,56,26],[57,25,57,26],[60,25,60,26],[61,25,61,26],[62,25,62,26],[63,25,63,26],[58,25,58,26],[59,25,59,26],[17,25,17,26],[27,25,27,26],[28,25,28,26],[29,25,29,26],[32,25,32,26],[19,25,19,26],[20,25,20,26],[21,25,21,26],[22,25,22,26],[23,25,23,26],[24,25,24,26],[25,25,25,26],[26,25,26,26],[11,25,11,26],[12,25,12,26],[13,25,13,26],[15,25,15,26],[16,25,16,26],[4,3,4,21],[6,17,9,17],[6,20,9,20],[6,21,9,21],[6,7,9,7],[6,11,9,11],[6,12,9,12],[6,13,9,13],[6,19,9,19],[6,18,9,18],[6,8,9,8],[6,9,9,9],[6,10,9,10],[6,14,9,14],[6,15,9,15],[6,16,9,16],[2,1,2,4],[2,6,2,7],[2,10,2,11],[2,22,2,23],[3,1,3,4],[3,6,3,7],[3,10,3,11],[3,22,3,23],[8,25,8,26],[2,13,2,14],[3,13,3,14],[36,25,36,26],[37,25,37,26],[38,25,38,26],[39,25,39,26],[40,25,40,26],[33,25,33,26],[34,25,34,26],[35,25,35,26],[54,25,54,26],[46,25,46,26],[47,25,47,26],[48,25,48,26],[49,25,49,26],[50,25,50,26],[51,25,51,26],[41,25,41,26],[42,25,42,26],[43,25,43,26],[44,25,44,26],[45,25,45,26],[76,25,76,26],[77,25,77,26],[80,25,80,26],[81,25,81,26],[82,25,82,26],[83,25,83,26],[78,25,78,26],[79,25,79,26],[99,25,99,26],[94,25,94,26],[100,25,100,26],[117,25,117,26],[118,25,118,26],[121,25,121,26],[122,25,122,26],[123,25,123,26],[124,25,124,26],[125,25,125,26],[119,25,119,26],[120,25,120,26],[107,25,107,26],[108,25,108,26],[109,25,109,26],[110,25,110,26],[172,25,172,26],[173,25,173,26],[174,25,174,26],[149,25,149,26],[150,25,150,26],[185,25,185,26],[175,25,175,26],[176,25,176,26],[167,25,167,26],[168,25,168,26],[170,25,170,26],[171,25,171,26],[160,25,160,26],[161,25,161,26],[164,25,164,26],[165,25,165,26],[166,25,166,26],[162,25,162,26],[163,25,163,26],[177,25,177,26],[179,25,179,26],[178,25,178,26],[157,25,157,26]]}
["PUBLIC INVOLVEMENT BREAKDOWN WORKSHEET"]
[]
["PROJECT DESCRIPTION: ",{"$f":"PROJECT.DESCRIPTION","v":0},null,null,null,"FIRM:  ",{"$f":"PDEA_HEU_PUBLIC.INVOLVEMENT_CONSULTANT_NAME","v":"CONSULTANT NAME"},null,"TASK ORDER NUMBER:",null,{"$f":"TASK.ORDER.NUMBER","v":0},null,"DATE PREPARED:",{"$f":"IF(SCOPE.MANDAY.ESTIMATE.PREPARED.BY.DATE=\"\",\"\",SCOPE.MANDAY.ESTIMATE.PREPARED.BY.DATE)","v":""}]
["PREPARED BY:  ",{"$f":"IF(SCOPE.MANDAY.ESTIMATE.PREPARED.BY=\"\",\"\",SCOPE.MANDAY.ESTIMATE.PREPARED.BY)","v":""},null,null,null,"TIP NUMBER:",{"$f":"TIP.NUMBER","v":0},null,"WBS NUMBER:",null,{"$f":"WBS.NUMBER","v":""},null,"REVISION DATE:",{"$f":"IF(SCOPE.MANDAY.ESTIMATE.APPROVED.BY.DATE=\"\",\"\",SCOPE.MANDAY.ESTIMATE.APPROVED.BY.DATE)","v":""}]
[null,null,null,"ESTIMATED WORK DAYS"]
[null,null,"Employee",{"$f":"IF('PEF CLASSIFICATION SHEET'!$D81=\"\",\"\",LEFT('PEF CLASSIFICATION SHEET'!$D81,4))","v":""},{"$f":"IF('PEF CLASSIFICATION SHEET'!$D82=\"\",\"\",LEFT('PEF CLASSIFICATION SHEET'!$D82,4))","v":""},{"$f":"IF('PEF CLASSIFICATION SHEET'!$D83=\"\",\"\",LEFT('PEF CLASSIFICATION SHEET'!$D83,4))","v":""},{"$f":"IF('PEF CLASSIFICATION SHEET'!$D84=\"\",\"\",LEFT('PEF CLASSIFICATION SHEET'!$D84,4))","v":""},{"$f":"IF('PEF CLASSIFICATION SHEET'!$D85=\"\",\"\",LEFT('PEF CLASSIFICATION SHEET'!$D85,4))","v":""},{"$f":"IF('PEF CLASSIFICATION SHEET'!$D86=\"\",\"\",LEFT('PEF CLASSIFICATION SHEET'!$D86,4))","v":""},{"$f":"IF('PEF CLASSIFICATION SHEET'!$D87=\"\",\"\",LEFT('PEF CLASSIFICATION SHEET'!$D87,4))","v":""},{"$f":"IF('PEF CLASSIFICATION SHEET'!$D88=\"\",\"\",LEFT('PEF CLASSIFICATION SHEET'!$D88,4))","v":""},{"$f":"IF('PEF CLASSIFICATION SHEET'!$D89=\"\",\"\",LEFT('PEF CLASSIFICATION SHEET'!$D89,4))","v":""},{"$f":"IF('PEF CLASSIFICATION SHEET'!$D90=\"\",\"\",LEFT('PEF CLASSIFICATION SHEET'!$D90,4))","v":""},{"$f":"IF('PEF CLASSIFICATION SHEET'!$D91=\"\",\"\",LEFT('PEF CLASSIFICATION SHEET'!$D91,4))","v":""},{"$f":"IF('PEF CLASSIFICATION SHEET'!$D92=\"\",\"\",LEFT('PEF CLASSIFICATION SHEET'!$D92,4))","v":""},{"$f":"IF('PEF CLASSIFICATION SHEET'!$D93=\"\",\"\",LEFT('PEF CLASSIFICATION SHEET'!$D93,4))","v":""},{"$f":"IF('PEF CLASSIFICATION SHEET'!$D94=\"\",\"\",LEFT('PEF CLASSIFICATION SHEET'!$D94,4))","v":""},{"$f":"IF('PEF CLASSIFICATION SHEET'!D95=\"\",\"\",LEFT('PEF CLASSIFICATION SHEET'!D95,4))","v":""},{"$f":"IF('PEF CLASSIFICATION SHEET'!$D96=\"\",\"\",LEFT('PEF CLASSIFICATION SHEET'!$D96,4))","v":""},{"$f":"IF('PEF CLASSIFICATION SHEET'!D97=\"\",\"\",LEFT('PEF CLASSIFICATION SHEET'!D97,4))","v":""},{"$f":"IF('PEF CLASSIFICATION SHEET'!D98=\"\",\"\",LEFT('PEF CLASSIFICATION SHEET'!D98,4))","v":""},{"$f":"IF('PEF CLASSIFICATION SHEET'!D99=\"\",\"\",LEFT('PEF CLASSIFICATION SHEET'!D99,4))","v":""}]
[null,null,null,{"$f":"IF('PEF CLASSIFICATION SHEET'!$C81=\"\",\"\",'PEF CLASSIFICATION SHEET'!$C81)","v":""},{"$f":"IF('PEF CLASSIFICATION SHEET'!$C82=\"\",\"\",'PEF CLASSIFICATION SHEET'!$C82)","v":""},{"$f":"IF('PEF CLASSIFICATION SHEET'!$C83=\"\",\"\",'PEF CLASSIFICATION SHEET'!$C83)","v":""},{"$f":"IF('PEF CLASSIFICATION SHEET'!$C84=\"\",\"\",'PEF CLASSIFICATION SHEET'!$C84)","v":""},{"$f":"IF('PEF CLASSIFICATION SHEET'!$C85=\"\",\"\",'PEF CLASSIFICATION SHEET'!$C85)","v":""},{"$f":"IF('PEF CLASSIFICATION SHEET'!$C86=\"\",\"\",'PEF CLASSIFICATION SHEET'!$C86)","v":""},{"$f":"IF('PEF CLASSIFICATION SHEET'!$C87=\"\",\"\",'PEF CLASSIFICATION SHEET'!$C87)","v":""},{"$f":"IF('PEF CLASSIFICATION SHEET'!$C88=\"\",\"\",'PEF CLASSIFICATION SHEET'!$C88)","v":""},{"$f":"IF('PEF CLASSIFICATION SHEET'!$C89=\"\",\"\",'PEF CLASSIFICATION SHEET'!$C89)","v":""},{"$f":"IF('PEF CLASSIFICATION SHEET'!$C90=\"\",\"\",'PEF CLASSIFICATION SHEET'!$C90)","v":""},{"$f":"IF('PEF CLASSIFICATION SHEET'!$C91=\"\",\"\",'PEF CLASSIFICATION SHEET'!$C91)","v":""},{"$f":"IF('PEF CLASSIFICATION SHEET'!$C92=\"\",\"\",'PEF CLASSIFICATION SHEET'!$C92)","v":""},{"$f":"IF('PEF CLASSIFICATION SHEET'!$C93=\"\",\"\",'PEF CLASSIFICATION SHEET'!$C93)","v":""},{"$f":"IF('PEF CLASSIFICATION SHEET'!$C94=\"\",\"\",'PEF CLASSIFICATION SHEET'!$C94)","v":""},{"$f":"IF('PEF CLASSIFICATION SHEET'!C95=\"\",\"\",'PEF CLASSIFICATION SHEET'!C95)","v":""},{"$f":"IF('PEF CLASSIFICATION SHEET'!$C96=\"\",\"\",'PEF CLASSIFICATION SHEET'!$C96)","v":""},{"$f":"IF('PEF CLASSIFICATION SHEET'!C97=\"\",\"\",'PEF CLASSIFICATION SHEET'!C97)","v":""},{"$f":"IF('PEF CLASSIFICATION SHEET'!C98=\"\",\"\",'PEF CLASSIFICATION SHEET'!C98)","v":""},{"$f":"IF('PEF CLASSIFICATION SHEET'!C99=\"\",\"\",'PEF CLASSIFICATION SHEET'!C99)","v":""},"SUB-","%","PEF"]
[null,null,"Classification",null,null,null,null,null,null,null,null,null,null,null,null,null,null,null,null,null,null,null,"TOTAL","OF","ESTIMATE"]
["TASK","TASK DESCRIPTION",null,null,null,null,null,null,null,null,null,null,null,null,null,null,null,null,null,null,null,null,null,"PROJECT",null,"COMMENTS"]
["NO."]
["2PI1","Continue Public Engagement",null,null,null,null,null,null,null,null,null,null,null,null,null,null,null,null,null,null,null,null,{"$f":"IF(B11=\"\",0,IF((SUM(D11:V11)=0),\"\",SUM(D11:V11)))","v":""}]
[1,"Public Involvement Plan (PIP)",null,null,null,null,null,null,null,null,null,null,null,null,null,null,null,null,null,null,null,null,{"$f":"IF(B12=\"\",0,IF((SUM(D12:V12)=0),\"\",SUM(D12:V12)))","v":""},{"$f":"IF(W12=\"\",\"\",SUM((W12/$W$205)))","v":""}]
[null,"Submit ETRACS for PI Team to review draft or develop PIP",null,null,null,null,null,null,null,null,null,null,null,null,null,null,null,null,null,null,null,null,{"$f":"IF(B13=\"\",0,IF((SUM(D13:V13)=0),\"\",SUM(D13:V13)))","v":""},{"$f":"IF(W13=\"\",\"\",SUM((W13/$W$205)))","v":""}]
[null,"Prepare and submit draft and final PIP (if PIP is to be prepared by PEF)",null,null,null,null,null,null,null,null,null,null,null,null,null,null,null,null,null,null,null,null,"",""]
[null,null,null,null,null,null,null,null,null,null,null,null,null,null,null,null,null,null,null,null,null,null,0,{"$error":"#DIV/0!"}]
[null,null,null,null,null,null,null,null,null,null,null,null,null,null,null,null,null,null,null,null,null,null,0,{"$error":"#DIV/0!"}]
[null,null,null,null,null,null,null,null,null,null,null,null,null,null,null,null,null,null,null,null,null,null,0,{"$error":"#DIV/0!"}]
[null,null,null,null,null,null,null,null,null,null,null,null,null,null,null,null,null,null,null,null,null,null,0,{"$error":"#DIV/0!"}]
[null,null,null,null,null,null,null,null,null,null,null,null,null,null,null,null,null,null,null,null,null,null,0,{"$error":"#DIV/0!"}]
[null,null,null,null,null,null,null,null,null,null,null,null,null,null,null,null,null,null,null,null,null,null,0,{"$error":"#DIV/0!"}]
[null,null,null,null,null,null,null,null,null,null,null,null,null,null,null,null,null,null,null,null,null,null,0,{"$error":"#DIV/0!"}]
[null,null,null,null,null,null,null,null,null,null,null,null,null,null,null,null,null,null,null,null,null,null,0,{"$error":"#DIV/0!"}]
[null,null,null,null,null,null,null,null,null,null,null,null,null,null,null,null,null,null,null,null,null,null,0,{"$error":"#DIV/0!"}]
[null,null,null,null,null,null,null,null,null,null,null,null,null,null,null,null,null,null,null,null,null,null,0,{"$error":"#DIV/0!"}]
[null,null,null,null,null,null,null,null,null,null,null,null,null,null,null,null,null,null,null,null,null,null,0,{"$error":"#DIV/0!"}]
[null,null,null,null,null,null,null,null,null,null,null,null,null,null,null,null,null,null,null,null,null,null,0,{"$error":"#DIV/0!"}]
[null,null,null,null,null,null,null,null,null,null,null,null,null,null,null,null,null,null,null,null,null,null,0,{"$error":"#DIV/0!"}]
[null,null,null,null,null,null,null,null,null,null,null,null,null,null,null,null,null,null,null,null,null,null,0,{"$error":"#DIV/0!"}]
[null,null,null,null,null,null,null,null,null,null,null,null,null,null,null,null,null,null,null,null,null,null,0,{"$error":"#DIV/0!"}]
[null,null,null,null,null,null,null,null,null,null,null,null,null,null,null,null,null,null,null,null,null,null,0,{"$error":"#DIV/0!"}]
[null,null,null,null,null,null,null,null,null,null,null,null,null,null,null,null,null,null,null,null,null,null,0,{"$error":"#DIV/0!"}]
[2,"Project Mailing List",null,null,null,null,null,null,null,null,null,null,null,null,null,null,null,null,null,null,null,null,"",""]
[null,"Submit ETRACS request and study area Shapefile for project mailing list ",null,null,null,null,null,null,null,null,null,null,null,null,null,null,null,null,null,null,null,null,"",""]
[null,"Create project mailing list  ",null,null,null,null,null,null,null,null,null,null,null,null,null,null,null,null,null,null,null,null,"",""]
[null,null,null,null,null,null,null,null,null,null,null,null,null,null,null,null,null,null,null,null,null,null,0,{"$error":"#DIV/0!"}]
[null,null,null,null,null,null,null,null,null,null,null,null,null,null,null,null,null,null,null,null,null,null,0,{"$error":"#DIV/0!"}]
[null,null,null,null,null,null,null,null,null,null,null,null,null,null,null,null,null,null,null,null,null,null,0,{"$error":"#DIV/0!"}]
[null,null,null,null,null,null,null,null,null,null,null,null,null,null,null,null,null,null,null,null,null,null,0,{"$error":"#DIV/0!"}]
[null,null,null,null,null,null,null,null,null,null,null,null,null,null,null,null,null,null,null,null,null,null,0,{"$error":"#DIV/0!"}]
[null,null,null,null,null,null,null,null,null,null,null,null,null,null,null,null,null,null,null,null,null,null,0,{"$error":"#DIV/0!"}]
[null,null,null,null,null,null,null,null,null,null,null,null,null,null,null,null,null,null,null,null,null,null,0,{"$error":"#DIV/0!"}]
[null,null,null,null,null,null,null,null,null,null,null,null,null,null,null,null,null,null,null,null,null,null,0,{"$error":"#DIV/0!"}]
[null,null,null,null,null,null,null,null,null,null,null,null,null,null,null,null,null,null,null,null,null,null,0,{"$error":"#DIV/0!"}]
[null,null,null,null,null,null,null,null,null,null,null,null,null,null,null,null,null,null,null,null,null,null,0,{"$error":"#DIV/0!"}]
[null,null,null,null,null,null,null,null,null,null,null,null,null,null,null,null,null,null,null,null,null,null,0,{"$error":"#DIV/0!"}]
[null,null,null,null,null,null,null,null,null,null,null,null,null,null,null,null,null,null,null,null,null,null,0,{"$error":"#DIV/0!"}]
[null,null,null,null,null,null,null,null,null,null,null,null,null,null,null,null,null,null,null,null,null,null,0,{"$error":"#DIV/0!"}]
[null,null,null,null,null,null,null,null,null,null,null,null,null,null,null,null,null,null,null,null,null,null,0,{"$error":"#DIV/0!"}]
[null,null,null,null,null,null,null,null,null,null,null,null,null,null,null,null,null,null,null,null,null,null,0,{"$error":"#DIV/0!"}]
[null,null,null,null,null,null,null,null,null,null,null,null,null,null,null,null,null,null,null,null,null,null,0,{"$error":"#DIV/0!"}]
[null,null,null,null,null,null,null,null,null,null,null,null,null,null,null,null,null,null,null,null,null,null,0,{"$error":"#DIV/0!"}]
[null,null,null,null,null,null,null,null,null,null,null,null,null,null,null,null,null,null,null,null,null,null,0,{"$error":"#DIV/0!"}]
[3,"Project Website",null,null,null,null,null,null,null,null,null,null,null,null,null,null,null,null,null,null,null,null,"",""]
[null,"Submit request for project website or PublicInput.com site",null,null,null,null,null,null,null,null,null,null,null,null,null,null,null,null,null,null,null,null,"",""]
[null,"Provide updates at project milestones",null,null,null,null,null,null,null,null,null,null,null,null,null,null,null,null,null,null,null,null,"",""]
[null,null,null,null,null,null,null,null,null,null,null,null,null,null,null,null,null,null,null,null,null,null,0,{"$error":"#DIV/0!"}]
[null,null,null,null,null,null,null,null,null,null,null,null,null,null,null,null,null,null,null,null,null,null,0,{"$error":"#DIV/0!"}]
[null,null,null,null,null,null,null,null,null,null,null,null,null,null,null,null,null,null,null,null,null,null,0,{"$error":"#DIV/0!"}]
[null,null,null,null,null,null,null,null,null,null,null,null,null,null,null,null,null,null,null,null,null,null,0,{"$error":"#DIV/0!"}]
[null,null,null,null,null,null,null,null,null,null,null,null,null,null,null,null,null,null,null,null,null,null,0,{"$error":"#DIV/0!"}]
[null,null,null,null,null,null,null,null,null,null,null,null,null,null,null,null,null,null,null,null,null,null,0,{"$error":"#DIV/0!"}]
[null,null,null,null,null,null,null,null,null,null,null,null,null,null,null,null,null,null,null,null,null,null,0,{"$error":"#DIV/0!"}]
[null,null,null,null,null,null,null,null,null,null,null,null,null,null,null,null,null,null,null,null,null,null,0,{"$error":"#DIV/0!"}]
[null,null,null,null,null,null,null,null,null,null,null,null,null,null,null,null,null,null,null,null,null,null,0,{"$error":"#DIV/0!"}]
[null,null,null,null,null,null,null,null,null,null,null,null,null,null,null,null,null,null,null,null,null,null,0,{"$error":"#DIV/0!"}]
[null,null,null,null,null,null,null,null,null,null,null,null,null,null,null,null,null,null,null,null,null,null,0,{"$error":"#DIV/0!"}]
[null,null,null,null,null,null,null,null,null,null,null,null,null,null,null,null,null,null,null,null,null,null,0,{"$error":"#DIV/0!"}]
[null,null,null,null,null,null,null,null,null,null,null,null,null,null,null,null,null,null,null,null,null,null,0,{"$error":"#DIV/0!"}]
[null,null,null,null,null,null,null,null,null,null,null,null,null,null,null,null,null,null,null,null,null,null,0,{"$error":"#DIV/0!"}]
[4,"Newsletter/Postcards",null,null,null,null,null,null,null,null,null,null,null,null,null,null,null,null,null,null,null,null,"",""]
[null,"Prepare and submit draft Newsletter/Postcard (using NCDOT templates)",null,null,null,null,null,null,null,null,null,null,null,null,null,null,null,null,null,null,null,null,"",""]
[null,"Revise and resubmit Newsletter/Postcard for approval",null,null,null,null,null,null,null,null,null,null,null,null,null,null,null,null,null,null,null,null,"",""]
[null,"Reproduce and distribute approved Newsletter /Postcard (insert #copies)",null,null,null,null,null,null,null,null,null,null,null,null,null,null,null,null,null,null,null,null,"",""]
[null,null,null,null,null,null,null,null,null,null,null,null,null,null,null,null,null,null,null,null,null,null,0,{"$error":"#DIV/0!"}]
[null,null,null,null,null,null,null,null,null,null,null,null,null,null,null,null,null,null,null,null,null,null,0,{"$error":"#DIV/0!"}]
[null,null,null,null,null,null,null,null,null,null,null,null,null,null,null,null,null,null,null,null,null,null,0,{"$error":"#DIV/0!"}]
[null,null,null,null,null,null,null,null,null,null,null,null,null,null,null,null,null,null,null,null,null,null,{"$f":"IF(B77=\"\",0,IF((SUM(D77:V77)=0),\"\",SUM(D77:V77)))","v":0},{"$f":"IF(W77=\"\",\"\",SUM((W77/$W$205)))","v":{"$error":"#DIV/0!"}}]
[null,null,null,null,null,null,null,null,null,null,null,null,null,null,null,null,null,null,null,null,null,null,0,{"$error":"#DIV/0!"}]
[null,null,null,null,null,null,null,null,null,null,null,null,null,null,null,null,null,null,null,null,null,null,0,{"$error":"#DIV/0!"}]
[null,null,null,null,null,null,null,null,null,null,null,null,null,null,null,null,null,null,null,null,null,null,0,{"$error":"#DIV/0!"}]
[null,null,null,null,null,null,null,null,null,null,null,null,null,null,null,null,null,null,null,null,null,null,0,{"$error":"#DIV/0!"}]
[null,null,null,null,null,null,null,null,null,null,null,null,null,null,null,null,null,null,null,null,null,null,0,{"$error":"#DIV/0!"}]
[null,null,null,null,null,null,null,null,null,null,null,null,null,null,null,null,null,null,null,null,null,null,0,{"$error":"#DIV/0!"}]
[null,null,null,null,null,null,null,null,null,null,null,null,null,null,null,null,null,null,null,null,null,null,0,{"$error":"#DIV/0!"}]
[5,"Public Meeting(s)/Hearing(s)",null,null,null,null,null,null,null,null,null,null,null,null,null,null,null,null,null,null,null,null,"",""]
[null,"In-person Open House  (X hr meeting) ",null,null,null,null,null,null,null,null,null,null,null,null,null,null,null,null,null,null,null,null,"",""]
[null,"Virtual Meeting (X  hr meeting)",null,null,null,null,null,null,null,null,null,null,null,null,null,null,null,null,null,null,null,null,"",""]
[null,"Formal Presentation",null,null,null,null,null,null,null,null,null,null,null,null,null,null,null,null,null,null,null,null,"",""]
[null,"Submit meeting request via ETRACS (6 weeks prior to meeting date)",null,null,null,null,null,null,null,null,null,null,null,null,null,null,null,null,null,null,null,null,"",""]
[null,"Coordinate with NCDOT PI and Division on venue and dates ",null,null,null,null,null,null,null,null,null,null,null,null,null,null,null,null,null,null,null,null,"",""]
[null,"Prepare and submit public meeting maps",null,null,null,null,null,null,null,null,null,null,null,null,null,null,null,null,null,null,null,null,"",""]
[null,"Schedule and attend map review meeting",null,null,null,null,null,null,null,null,null,null,null,null,null,null,null,null,null,null,null,null,"",""]
[null,"Revise and resubmit public meeting maps",null,null,null,null,null,null,null,null,null,null,null,null,null,null,null,null,null,null,null,null,"",""]
[null,"Prepare and submit draft public meeting handout",null,null,null,null,null,null,null,null,null,null,null,null,null,null,null,null,null,null,null,null,"",""]
[null,"Revise and resubmit public meeting handout for approval",null,null,null,null,null,null,null,null,null,null,null,null,null,null,null,null,null,null,null,null,{"$f":"IF(B95=\"\",0,IF((SUM(D95:V95)=0),\"\",SUM(D95:V95)))","v":""},{"$f":"IF(W95=\"\",\"\",SUM((W95/$W$205)))","v":""}]
[null,"Reproduce public meeting handout (insert # copies)",null,null,null,null,null,null,null,null,null,null,null,null,null,null,null,null,null,null,null,null,"",""]
[null,"Prepare and submit draft public meeting displays",null,null,null,null,null,null,null,null,null,null,null,null,null,null,null,null,null,null,null,null,"",""]
[null,"Revise and resubmit public meeting displays",null,null,null,null,null,null,null,null,null,null,null,null,null,null,null,null,null,null,null,null,"",""]
[null,"Provide digital copies of handout, displays, and public meeting maps to NCDOT PI for web posting",null,null,null,null,null,null,null,null,null,null,null,null,null,null,null,null,null,null,null,null,"",""]
[null,null,null,null,null,null,null,null,null,null,null,null,null,null,null,null,null,null,null,null,null,null,0,{"$error":"#DIV/0!"}]
[null,null,null,null,null,null,null,null,null,null,null,null,null,null,null,null,null,null,null,null,null,null,0,{"$error":"#DIV/0!"}]
[null,null,null,null,null,null,null,null,null,null,null,null,null,null,null,null,null,null,null,null,null,null,0,{"$error":"#DIV/0!"}]
[null,null,null,null,null,null,null,null,null,null,null,null,null,null,null,null,null,null,null,null,null,null,0,{"$error":"#DIV/0!"}]
[null,null,null,null,null,null,null,null,null,null,null,null,null,null,null,null,null,null,null,null,null,null,0,{"$error":"#DIV/0!"}]
[null,null,null,null,null,null,null,null,null,null,null,null,null,null,null,null,null,null,null,null,null,null,0,{"$error":"#DIV/0!"}]
[null,null,null,null,null,null,null,null,null,null,null,null,null,null,null,null,null,null,null,null,null,null,0,{"$error":"#DIV/0!"}]
[6,"Local Officials Information Meeting (LOIM)",null,null,null,null,null,null,null,null,null,null,null,null,null,null,null,null,null,null,null,null,"",""]
[null,"Coordinate with NCDOT PI on schedule and invitees",null,null,null,null,null,null,null,null,null,null,null,null,null,null,null,null,null,null,null,null,"",""]
[null,"Prepare and submit draft LOIM Invitation letter",null,null,null,null,null,null,null,null,null,null,null,null,null,null,null,null,null,null,null,null,"",""]
[null,"Revise and resubmit LOIM Invitation letter for approval",null,null,null,null,null,null,null,null,null,null,null,null,null,null,null,null,null,null,null,null,"",""]
[null,"Prepare and submit draft PowerPoint presentation",null,null,null,null,null,null,null,null,null,null,null,null,null,null,null,null,null,null,null,null,"",""]
[null,"Revise and resubmit PowerPoint presentation",null,null,null,null,null,null,null,null,null,null,null,null,null,null,null,null,null,null,null,null,"",""]
[null,"Prepare and submit draft local officials meeting handout (only when no public meeting is held)",null,null,null,null,null,null,null,null,null,null,null,null,null,null,null,null,null,null,null,null,"",""]
[null,"Revise and resubmit local officials meeting handout for approval",null,null,null,null,null,null,null,null,null,null,null,null,null,null,null,null,null,null,null,null,"",""]
[null,"Prepare and submit draft and final meeting summary",null,null,null,null,null,null,null,null,null,null,null,null,null,null,null,null,null,null,null,null,"",""]
[null,null,null,null,null,null,null,null,null,null,null,null,null,null,null,null,null,null,null,null,null,null,0,{"$error":"#DIV/0!"}]
[null,null,null,null,null,null,null,null,null,null,null,null,null,null,null,null,null,null,null,null,null,null,0,{"$error":"#DIV/0!"}]
[null,null,null,null,null,null,null,null,null,null,null,null,null,null,null,null,null,null,null,null,null,null,0,{"$error":"#DIV/0!"}]
[null,null,null,null,null,null,null,null,null,null,null,null,null,null,null,null,null,null,null,null,null,null,0,{"$error":"#DIV/0!"}]
[null,null,null,null,null,null,null,null,null,null,null,null,null,null,null,null,null,null,null,null,null,null,0,{"$error":"#DIV/0!"}]
[null,null,null,null,null,null,null,null,null,null,null,null,null,null,null,null,null,null,null,null,null,null,0,{"$error":"#DIV/0!"}]
[null,null,null,null,null,null,null,null,null,null,null,null,null,null,null,null,null,null,null,null,null,null,0,{"$error":"#DIV/0!"}]
[null,null,null,null,null,null,null,null,null,null,null,null,null,null,null,null,null,null,null,null,null,null,0,{"$error":"#DIV/0!"}]
[null,null,null,null,null,null,null,null,null,null,null,null,null,null,null,null,null,null,null,null,null,null,0,{"$error":"#DIV/0!"}]
[null,null,null,null,null,null,null,null,null,null,null,null,null,null,null,null,null,null,null,null,null,null,0,{"$error":"#DIV/0!"}]
[null,null,null,null,null,null,null,null,null,null,null,null,null,null,null,null,null,null,null,null,null,null,0,{"$error":"#DIV/0!"}]
[null,null,null,null,null,null,null,null,null,null,null,null,null,null,null,null,null,null,null,null,null,null,0,{"$error":"#DIV/0!"}]
[7,"Public Comments",null,null,null,null,null,null,null,null,null,null,null,null,null,null,null,null,null,null,null,null,"",""]
[null,"Collect public comments",null,null,null,null,null,null,null,null,null,null,null,null,null,null,null,null,null,null,null,null,"",""]
[null,"Compile comments in a database and prepare draft responses as needed (export from PublicInput.com site)",null,null,null,null,null,null,null,null,null,null,null,null,null,null,null,null,null,null,null,null,"",""]
[null,"Submit draft database and responses",null,null,null,null,null,null,null,null,null,null,null,null,null,null,null,null,null,null,null,null,"",""]
[null,"Revise and resubmit database and responses",null,null,null,null,null,null,null,null,null,null,null,null,null,null,null,null,null,null,null,null,"",""]
[null,"Prepare for and attend post-public meeting/hearing meeting",null,null,null,null,null,null,null,null,null,null,null,null,null,null,null,null,null,null,null,null,"",""]
[null,null,null,null,null,null,null,null,null,null,null,null,null,null,null,null,null,null,null,null,null,null,0,{"$error":"#DIV/0!"}]
[null,null,null,null,null,null,null,null,null,null,null,null,null,null,null,null,null,null,null,null,null,null,0,{"$error":"#DIV/0!"}]
[null,null,null,null,null,null,null,null,null,null,null,null,null,null,null,null,null,null,null,null,null,null,0,{"$error":"#DIV/0!"}]
[null,null,null,null,null,null,null,null,null,null,null,null,null,null,null,null,null,null,null,null,null,null,0,{"$error":"#DIV/0!"}]
[null,null,null,null,null,null,null,null,null,null,null,null,null,null,null,null,null,null,null,null,null,null,0,{"$error":"#DIV/0!"}]
[null,null,null,null,null,null,null,null,null,null,null,null,null,null,null,null,null,null,null,null,null,null,0,{"$error":"#DIV/0!"}]
[null,null,null,null,null,null,null,null,null,null,null,null,null,null,null,null,null,null,null,null,null,null,0,{"$error":"#DIV/0!"}]
[null,null,null,null,null,null,null,null,null,null,null,null,null,null,null,null,null,null,null,null,null,null,{"$f":"IF(B141=\"\",0,IF((SUM(D141:V141)=0),\"\",SUM(D141:V141)))","v":0},{"$f":"IF(W141=\"\",\"\",SUM((W141/$W$205)))","v":{"$error":"#DIV/0!"}}]
[null,null,null,null,null,null,null,null,null,null,null,null,null,null,null,null,null,null,null,null,null,null,0,{"$error":"#DIV/0!"}]
[8,"Public Engagement Summary",null,null,null,null,null,null,null,null,null,null,null,null,null,null,null,null,null,null,null,null,"",""]
[null,"Prepare and submit draft public engagement summary, including comment summary and responses using NCDOT template",null,null,null,null,null,null,null,null,null,null,null,null,null,null,null,null,null,null,null,null,"",""]
[null,"Revise and resubmit public engagement summary",null,null,null,null,null,null,null,null,null,null,null,null,null,null,null,null,null,null,null,null,"",""]
[null,null,null,null,null,null,null,null,null,null,null,null,null,null,null,null,null,null,null,null,null,null,0,{"$error":"#DIV/0!"}]
[null,null,null,null,null,null,null,null,null,null,null,null,null,null,null,null,null,null,null,null,null,null,0,{"$error":"#DIV/0!"}]
[null,null,null,null,null,null,null,null,null,null,null,null,null,null,null,null,null,null,null,null,null,null,0,{"$error":"#DIV/0!"}]
[null,null,null,null,null,null,null,null,null,null,null,null,null,null,null,null,null,null,null,null,null,null,0,{"$error":"#DIV/0!"}]
[null,null,null,null,null,null,null,null,null,null,null,null,null,null,null,null,null,null,null,null,null,null,0,{"$error":"#DIV/0!"}]
[null,null,null,null,null,null,null,null,null,null,null,null,null,null,null,null,null,null,null,null,null,null,0,{"$error":"#DIV/0!"}]
[null,null,null,null,null,null,null,null,null,null,null,null,null,null,null,null,null,null,null,null,null,null,0,{"$error":"#DIV/0!"}]
[null,null,null,null,null,null,null,null,null,null,null,null,null,null,null,null,null,null,null,null,null,null,0,{"$error":"#DIV/0!"}]
[null,null,null,null,null,null,null,null,null,null,null,null,null,null,null,null,null,null,null,null,null,null,0,{"$error":"#DIV/0!"}]
[null,null,null,null,null,null,null,null,null,null,null,null,null,null,null,null,null,null,null,null,null,null,0,{"$error":"#DIV/0!"}]
[null,null,null,null,null,null,null,null,null,null,null,null,null,null,null,null,null,null,null,null,null,null,0,{"$error":"#DIV/0!"}]
[null,null,null,null,null,null,null,null,null,null,null,null,null,null,null,null,null,null,null,null,null,null,0,{"$error":"#DIV/0!"}]
[null,null,null,null,null,null,null,null,null,null,null,null,null,null,null,null,null,null,null,null,null,null,0,{"$error":"#DIV/0!"}]
[null,null,null,null,null,null,null,null,null,null,null,null,null,null,null,null,null,null,null,null,null,null,0,{"$error":"#DIV/0!"}]
[null,null,null,null,null,null,null,null,null,null,null,null,null,null,null,null,null,null,null,null,null,null,0,{"$error":"#DIV/0!"}]
[null,null,null,null,null,null,null,null,null,null,null,null,null,null,null,null,null,null,null,null,null,null,0,{"$error":"#DIV/0!"}]
[null,null,null,null,null,null,null,null,null,null,null,null,null,null,null,null,null,null,null,null,null,null,0,{"$error":"#DIV/0!"}]
[null,null,null,null,null,null,null,null,null,null,null,null,null,null,null,null,null,null,null,null,null,null,0,{"$error":"#DIV/0!"}]
[null,null,null,null,null,null,null,null,null,null,null,null,null,null,null,null,null,null,null,null,null,null,0,{"$error":"#DIV/0!"}]
[null,null,null,null,null,null,null,null,null,null,null,null,null,null,null,null,null,null,null,null,null,null,0,{"$error":"#DIV/0!"}]
[null,null,null,null,null,null,null,null,null,null,null,null,null,null,null,null,null,null,null,null,null,null,0,{"$error":"#DIV/0!"}]
[null,null,null,null,null,null,null,null,null,null,null,null,null,null,null,null,null,null,null,null,null,null,0,{"$error":"#DIV/0!"}]
[null,null,null,null,null,null,null,null,null,null,null,null,null,null,null,null,null,null,null,null,null,null,0,{"$error":"#DIV/0!"}]
[null,null,null,null,null,null,null,null,null,null,null,null,null,null,null,null,null,null,null,null,null,null,0,{"$error":"#DIV/0!"}]
[9,"Project Visualizations ",null,null,null,null,null,null,null,null,null,null,null,null,null,null,null,null,null,null,null,null,"",""]
[null,"Renderings (digital static image)",null,null,null,null,null,null,null,null,null,null,null,null,null,null,null,null,null,null,null,null,"",""]
[null,"Level I ",null,null,null,null,null,null,null,null,null,null,null,null,null,null,null,null,null,null,null,null,"",""]
[null,"Level II",null,null,null,null,null,null,null,null,null,null,null,null,null,null,null,null,null,null,null,null,"",""]
[null,"Level III",null,null,null,null,null,null,null,null,null,null,null,null,null,null,null,null,null,null,null,null,"",""]
[null,"Animations (video with motion)",null,null,null,null,null,null,null,null,null,null,null,null,null,null,null,null,null,null,null,null,"",""]
[null,"Level I",null,null,null,null,null,null,null,null,null,null,null,null,null,null,null,null,null,null,null,null,"",""]
[null,"Level II",null,null,null,null,null,null,null,null,null,null,null,null,null,null,null,null,null,null,null,null,"",""]
[null,"Level III",null,null,null,null,null,null,null,null,null,null,null,null,null,null,null,null,null,null,null,null,"",""]
[null,"Level IV",null,null,null,null,null,null,null,null,null,null,null,null,null,null,null,null,null,null,null,null,"",""]
[null,"Level V",null,null,null,null,null,null,null,null,null,null,null,null,null,null,null,null,null,null,null,null,"",""]
[null,"Level VI",null,null,null,null,null,null,null,null,null,null,null,null,null,null,null,null,null,null,null,null,"",""]
[null,"Level VII",null,null,null,null,null,null,null,null,null,null,null,null,null,null,null,null,null,null,null,null,"",""]
[null,"Video Production",null,null,null,null,null,null,null,null,null,null,null,null,null,null,null,null,null,null,null,null,"",""]
[null,"Level I",null,null,null,null,null,null,null,null,null,null,null,null,null,null,null,null,null,null,null,null,"",""]
[null,"Level II",null,null,null,null,null,null,null,null,null,null,null,null,null,null,null,null,null,null,null,null,"",""]
[null,"Virtual 3D Models",null,null,null,null,null,null,null,null,null,null,null,null,null,null,null,null,null,null,null,null,"",""]
[null,null,null,null,null,null,null,null,null,null,null,null,null,null,null,null,null,null,null,null,null,null,0,{"$error":"#DIV/0!"}]
[null,null,null,null,null,null,null,null,null,null,null,null,null,null,null,null,null,null,null,null,null,null,0,{"$error":"#DIV/0!"}]
[10,"Task Management",null,null,null,null,null,null,null,null,null,null,null,null,null,null,null,null,null,null,null,null,"",""]
[null,null,null,null,null,null,null,null,null,null,null,null,null,null,null,null,null,null,null,null,null,null,0,{"$error":"#DIV/0!"}]
[null,null,null,null,null,null,null,null,null,null,null,null,null,null,null,null,null,null,null,null,null,null,0,{"$error":"#DIV/0!"}]
[null,null,null,null,null,null,null,null,null,null,null,null,null,null,null,null,null,null,null,null,null,null,0,{"$error":"#DIV/0!"}]
[null,null,null,null,null,null,null,null,null,null,null,null,null,null,null,null,null,null,null,null,null,null,0,{"$error":"#DIV/0!"}]
[11,"Complete QA/QC Procedures ",null,null,null,null,null,null,null,null,null,null,null,null,null,null,null,null,null,null,null,null,"",""]
[null,"Other Tasks: (i.e. small group meetings)",null,null,null,null,null,null,null,null,null,null,null,null,null,null,null,null,null,null,null,null,"",""]
[null,null,null,null,null,null,null,null,null,null,null,null,null,null,null,null,null,null,null,null,null,null,0,{"$error":"#DIV/0!"}]
[null,null,null,null,null,null,null,null,null,null,null,null,null,null,null,null,null,null,null,null,null,null,0,{"$error":"#DIV/0!"}]
[null,null,null,null,null,null,null,null,null,null,null,null,null,null,null,null,null,null,null,null,null,null,0,{"$error":"#DIV/0!"}]
[null,null,null,null,null,null,null,null,null,null,null,null,null,null,null,null,null,null,null,null,null,null,0,{"$error":"#DIV/0!"}]
[null,null,null,null,null,null,null,null,null,null,null,null,null,null,null,null,null,null,null,null,null,null,0,{"$error":"#DIV/0!"}]
[null,null,null,null,null,null,null,null,null,null,null,null,null,null,null,null,null,null,null,null,null,null,0,{"$error":"#DIV/0!"}]
[null,null,null,null,null,null,null,null,null,null,null,null,null,null,null,null,null,null,null,null,null,null,0,{"$error":"#DIV/0!"}]
[null,null,null,null,null,null,null,null,null,null,null,null,null,null,null,null,null,null,null,null,null,null,0,{"$error":"#DIV/0!"}]
[null,null,null,null,null,null,null,null,null,null,null,null,null,null,null,null,null,null,null,null,null,null,0,{"$error":"#DIV/0!"}]
[null,"TOTAL WORKDAYS/CATEGORY:",null,{"$f":"SUM(D12:D204)","v":0},0,0,0,0,0,0,0,0,0,0,0,0,0,0,0,0,{"$f":"SUM(U12:U204)","v":0},{"$f":"SUM(V12:V204)","v":0},{"$f":"SUM(W12:W204)","v":0},{"$f":"SUM(X12:X204)","v":{"$error":"#DIV/0!"}},{"$f":"SUM(Y12:Y204)","v":0}]
[null,"HOURLY SALARY RATE:",null,{"$f":"'PEF CLASSIFICATION SHEET'!$E81","v":0},{"$f":"'PEF CLASSIFICATION SHEET'!$E82","v":0},{"$f":"'PEF CLASSIFICATION SHEET'!$E83","v":0},{"$f":"'PEF CLASSIFICATION SHEET'!$E84","v":0},{"$f":"'PEF CLASSIFICATION SHEET'!$E85","v":0},{"$f":"'PEF CLASSIFICATION SHEET'!$E86","v":0},{"$f":"'PEF CLASSIFICATION SHEET'!$E87","v":0},{"$f":"'PEF CLASSIFICATION SHEET'!$E88","v":0},{"$f":"'PEF CLASSIFICATION SHEET'!$E89","v":0},{"$f":"'PEF CLASSIFICATION SHEET'!$E90","v":0},{"$f":"'PEF CLASSIFICATION SHEET'!$E91","v":0},{"$f":"'PEF CLASSIFICATION SHEET'!$E92","v":0},{"$f":"'PEF CLASSIFICATION SHEET'!$E93","v":0},{"$f":"'PEF CLASSIFICATION SHEET'!$E94","v":0},{"$f":"'PEF CLASSIFICATION SHEET'!$E95","v":0},{"$f":"'PEF CLASSIFICATION SHEET'!E96","v":0},{"$f":"'PEF CLASSIFICATION SHEET'!E97","v":0},{"$f":"'PEF CLASSIFICATION SHEET'!E98","v":0},{"$f":"'PEF CLASSIFICATION SHEET'!E99","v":0}]
[null,"RATES PER DAY:",null,{"$f":"D206*8","v":0},0,0,0,0,0,0,0,0,0,0,0,0,0,0,{"$f":"S206*8","v":0},0,0,0]
[null,"PAYROLL BURDEN:",null,{"$f":"SUM(D205*D207)","v":0},0,0,0,0,0,0,0,0,0,0,0,0,0,0,{"$f":"SUM(S205*S207)","v":0},0,0,0]
[null,"TOTAL WORKDAYS:",null,{"$f":"SUM(D205:V205)","v":0}]
[null,"TOTAL PAYROLL BURDEN:",null,{"$f":"SUM(D208:V208)","v":0}]
[null,"AVERAGE COST PER HOUR:",null,{"$f":"SUM(D210/(D209*8))","v":{"$error":"#DIV/0!"}}]
[null,"GENERAL OVERHEAD:",{"$f":"PDEA_HEU_PUBLIC_INVOLVEMENT_CONSULTANT_OVERHEAD","v":0},{"$f":"SUM(D210*C212)","v":0}]
[null,"SUBTOTAL:",null,{"$f":"SUM(D210+D212)","v":0}]
[null,"COMPARATIVE FEE:",{"$f":"PDEA_HEU_PUBLIC_INVOLVEMENT_CONSULTANT_FEE","v":0.09},{"$f":"SUM(D213*C214)","v":0}]
[null,"FACILITIES COST OF CAPITAL:",{"$f":"PDEA_HEU_PUBLIC_INVOLVEMENT_CONSULTANT_COSTofCAPITAL","v":0},{"$f":"SUM(D210*C215)","v":0}]
[null,"TOTAL:",null,{"$f":"SUM(D213:D215)","v":0}]
[null,"DIRECT EXPENSES:",null,{"$f":"PDEA_HEU_PUBLIC_INVOLVEMENT_DIRECT_NONSALARY_TOTAL","v":0}]
[null,"PUBLIC INVOLVEMENT GRAND TOTAL:",null,{"$f":"SUM(D216:D217)","v":0}]
[]
[]
[]
[null,"Costs",null,"Workdays",null,null,null,null,"Dollars"]
[null,null,null,"EN Public Involvement","PEF","Delta ","Delta %",null,"EN Public Involvement",null,"PEF",null,"Delta ","Delta %"]
[null,null,null,null,null,{"$f":"SUM(E224-D224)","v":0},{"$f":"SUM((F224/D224)*100)","v":{"$error":"#DIV/0!"}},null,null,null,null,null,{"$f":"SUM(K224-I224)","v":0},{"$f":"SUM((M224/I224)*100)","v":{"$error":"#DIV/0!"}}]
[]
[]
[null,null,null,null,null,null,null,"Directs","Dollars"]
[null,null,null,null,null,null,null,null,"EN Public Involvement",null,"PEF",null,"Delta ","Delta %"]
[null,null,null,null,null,null,null,null,null,null,null,null,{"$f":"SUM(K229-I229)","v":0},{"$f":"SUM((M229/I229)*100)","v":{"$error":"#DIV/0!"}}]

{"sheet":"EN-PI-Exp","index":17,"n_rows":100,"n_cols":8,"rows_kept":100,"cut":false,"hidden":true,"merged":[[6,1,6,3],[6,4,6,6],[0,0,0,7],[3,1,3,7],[4,1,4,3],[4,6,4,7],[5,1,5,3],[5,5,5,7],[2,1,2,3]]}
["PUBLIC INVOLVEMENT DIRECT EXPENSES"]
[]
["FIRM:",{"$f":"'EN-PI'!G3","v":"CONSULTANT NAME"}]
["PROJECT DESCRIPTION: ",{"$f":"PROJECT.DESCRIPTION","v":0}]
["PREPARED BY:  ",{"$f":"PUBLIC.INVOLVEMENT.PREPARED.BY","v":""},null,null,"TASK ORDER NUMBER:",null,{"$f":"TASK.ORDER.NUMBER","v":0}]
["TIP NUMBER:",{"$f":"TIP.NUMBER","v":0},null,null,"WBS NUMBER:",{"$f":"WBS.NUMBER","v":""}]
["DATE PREPARED:",{"$f":"IF('EN-PI'!N3=\"\",\"\",MAX('EN-PI'!N3:'EN-PI'!N4))","v":""},null,null,"REVIEWED BY UNIT HEAD ON:",null,null,{"$f":"IF(SCOPE.MANDAY.ESTIMATE.APPROVED.BY.DATE=\"\",\"\",SCOPE.MANDAY.ESTIMATE.APPROVED.BY.DATE)","v":""}]
["GENERAL PROJECT WORK:","ITEM","QTY","DESCRIPTION",null,null,"UNIT COST "]
[null,"Travel:"]
[null,"Sedan",null,"Trip(s) @",null,"miles @",{"$f":"SEDAN","v":0.7},{"$f":"SUM(C10*E10*G10)","v":0}]
[null,"Carry All",null,"Trip(s) @",null,"miles @",{"$f":"CARRYALL","v":0.72},{"$f":"SUM(C11*E11*G11)","v":0}]
[null,"Car Rental",null,null,null,"days @ ",{"$f":"CARRENTAL","v":50},{"$f":"SUM(E12*G12)","v":0}]
[null,"Gas for Rental",null,null,null,"miles @",{"$f":"GASforRENTAL","v":0.2},{"$f":"SUM(E13*G13)","v":0}]
[null,"Parking:",null,"Trip(s) @",null,null,{"$f":"PARKING","v":3},{"$f":"SUM(C14*G14)","v":0}]
[null,"Per Diem:",null,"Breakfast",null,null,{"$f":"BREAKFAST","v":10.1},{"$f":"SUM(C15*G15)","v":0}]
[null,null,null,"Lunch",null,null,{"$f":"LUNCH","v":13.3},0]
[null,null,null,"Dinner",null,null,{"$f":"DINNER","v":23.1},0]
[null,null,null,"Lodging",null,null,{"$f":"LODGING_LUMP.SUM","v":95},0]
[null,"Reproduction:",null,"8 1/2 x 11 B & W Copies @",null,null,{"$f":"LETTERCOPIES","v":0.14000000000000001},0]
[null,null,null,"11 x 17 B & W Copies @",null,null,{"$f":"LEDGERCOPIES","v":0.34},0]
[null,null,null,"8 1/2 x 11 Color Copies @",null,null,{"$f":"LETTERCOLOR","v":0.83},0]
[null,null,null,"11 x 17 Color Copies @",null,null,{"$f":"LEDGERCOLOR","v":1.66},0]
[null,null,null,"SQ. FT. of Plots (B & W or Color)",null,"<65 SQ. FT.*",{"$f":"ROLLPLOTSshort","v":6.5},0]
[null,null,null,"SQ. FT. of Plots (B & W or Color)",null,">65 SQ. FT.*",{"$f":"ROLLPLOTSlong","v":1.5},0]
[null,null,null,"Cover(s) @",null,null,{"$f":"COVERS","v":0.5},0]
[null,null,null,"Binder(s) @",null,null,{"$f":"BINDERS","v":0.5},0]
[null,null,null,"Blueprints - 8 1/2 x 11 @",null,null,{"$f":"BLUEPRINTSLETTER","v":0.35},0]
[null,null,null,"Blueprints - 42 x 72 @",null,null,{"$f":"BLUEPRINTSLARGE","v":1.3},0]
[null,"Film and Developing:",null,"Roll(s) @",null,null,{"$f":"FILM","v":20},0]
[null,null,null,null,null,"Subtotal",null,{"$f":"SUM(H10:H29)","v":0}]
["MAPS AND DOCUMENTS:","ITEM","QTY","DESCRIPTION",null,null,"UNIT COST "]
[null,"County Tax Maps:",null,"Map(s) @",null,null,{"$f":"County_Tax_Maps","v":7},{"$f":"SUM(C32*G32)","v":0}]
[null,"USGS Maps:",null,"Map(s) @",null,null,{"$f":"USGSMAPS","v":7},{"$f":"SUM(C33*G33)","v":0}]
[null,null,null,null,null,"Subtotal",null,{"$f":"SUM(H32:H33)","v":0}]
["TECHNICAL REPORTS:","ITEM","QTY","DESCRIPTION",null,null,"UNIT COST "]
[null,"Reproduction:",null,"8 1/2 x 11 B & W Copies @",null,null,{"$f":"LETTERCOPIES","v":0.14000000000000001},{"$f":"SUM(C36*G36)","v":0}]
[null,null,null,"11 x 17 B & W Copies @",null,null,{"$f":"LEDGERCOPIES","v":0.34},0]
[null,null,null,"8 1/2 x 11 Color Copies @",null,null,{"$f":"LETTERCOLOR","v":0.83},0]
[null,null,null,"11 x 17 Color Copies @",null,null,{"$f":"LEDGERCOLOR","v":1.66},0]
[null,null,null,"SQ. FT. of Plots (B & W or Color)",null,"<65 SQ. FT.*",{"$f":"ROLLPLOTSshort","v":6.5},0]
[null,null,null,"SQ. FT. of Plots (B & W or Color)",null,">65 SQ. FT.*",{"$f":"ROLLPLOTSlong","v":1.5},0]
[null,null,null,"Cover(s) @",null,null,{"$f":"COVERS","v":0.5},0]
[null,null,null,"Binder(s) @",null,null,{"$f":"BINDERS","v":0.5},0]
[null,null,null,null,null,"Subtotal",null,{"$f":"SUM(H36:H43)","v":0}]
["DESIGN:","ITEM","QTY","DESCRIPTION",null,null,"UNIT COST "]
[null,"Reproduction:",null,"8 1/2 x 11 B & W Copies @",null,null,{"$f":"LETTERCOPIES","v":0.14000000000000001},{"$f":"SUM(C46*G46)","v":0}]
[null,null,null,"11 x 17 B & W Copies @",null,null,{"$f":"LEDGERCOPIES","v":0.34},0]
[null,null,null,"Blueprints - 8 1/2 x 11 @",null,null,{"$f":"BLUEPRINTSLETTER","v":0.35},0]
[null,null,null,"Mylar - 8 1/2 x 11 @",null,null,{"$f":"MYLARSLETTER","v":7.32},0]
[null,null,null,"Mylar - 36 x 48 @",null,null,{"$f":"MYLARSLARGE","v":28.12},0]
[null,null,null,"Prints  - 24 x 36 @",null,null,{"$f":"PRINTSLARGE","v":3},0]
[null,null,null,"Blueprints - 42 x 72 @",null,null,{"$f":"BLUEPRINTSLARGE","v":1.3},0]
[null,null,null,"SQ. FT. of Plots (B & W or Color)",null,"<65 SQ. FT.*",{"$f":"ROLLPLOTSshort","v":6.5},0]
[null,null,null,"SQ. FT. of Plots (B & W or Color)",null,">65 SQ. FT.*",{"$f":"ROLLPLOTSlong","v":1.5},0]
[null,null,null,"USGS Map(s)",null,null,{"$f":"USGSMAPS","v":7},0]
[null,null,null,null,null,"Subtotal",null,{"$f":"SUM(H46:H55)","v":0}]
["MEETINGS & PUBLIC INVOLVEMENT:","ITEM","QTY","DESCRIPTION",null,null,"UNIT COST "]
[null,"Travel:"]
[null,"Sedan",null,"Trip(s) @",null,"miles @",{"$f":"SEDAN","v":0.7},{"$f":"SUM(C59*E59*G59)","v":0}]
[null,"CarryAll",null,"Trip(s) @",null,"miles @",{"$f":"CARRYALL","v":0.72},{"$f":"SUM(C60*E60*G60)","v":0}]
[null,"Car Rental",null,null,null,"days @",{"$f":"CARRENTAL","v":50},{"$f":"SUM(E61*G61)","v":0}]
[null,"Gas for Rental",null,null,null,"miles @",{"$f":"GASforRENTAL","v":0.2},{"$f":"SUM(E62*G62)","v":0}]
[null,"Parking:",null,"Trip(s) @",null,null,{"$f":"PARKING","v":3},{"$f":"SUM(C63*G63)","v":0}]
[null,"Per Diem:",null,"Breakfast",null,null,{"$f":"BREAKFAST","v":10.1},{"$f":"SUM(C64*G64)","v":0}]
[null,null,null,"Lunch",null,null,{"$f":"LUNCH","v":13.3},{"$f":"SUM(C65*G65)","v":0}]
[null,null,null,"Dinner",null,null,{"$f":"DINNER","v":23.1},{"$f":"SUM(C66*G66)","v":0}]
[null,null,null,"Lodging",null,null,{"$f":"LODGING_LUMP.SUM","v":95},{"$f":"SUM(C67*G67)","v":0}]
[null,"Workshop "]
[null,"  - Reproduction",null,"8 1/2 x 11 B & W Copies @",null,"Handouts",{"$f":"LETTERCOPIES","v":0.14000000000000001},{"$f":"SUM(C69*E69*G69)","v":0}]
[null,null,null,"11 x 17 B & W Copies @",null,"Handouts",{"$f":"LEDGERCOPIES","v":0.34},{"$f":"SUM(C70*E70*G70)","v":0}]
[null,null,null,"8 1/2 x 11 Color Copies @",null,null,{"$f":"LETTERCOLOR","v":0.83},{"$f":"SUM(C71*G71)","v":0}]
[null,null,null,"11 x 17 Color Copies @",null,null,{"$f":"LEDGERCOLOR","v":1.66},0]
[null,null,null,"SQ. FT. of Plots (B & W or Color)",null,"<65 SQ. FT.*",{"$f":"ROLLPLOTSshort","v":6.5},0]
[null,null,null,"SQ. FT. of Plots (B & W or Color)",null,">65 SQ. FT.*",{"$f":"ROLLPLOTSlong","v":1.5},0]
[null,null,null,"SQ. FT. Foam Mounting Board @",null,null,{"$f":"FOAMMOUNTINGBOARD","v":1.25},0]
[null,"Presentation Materials:",null,"Misc. Workshop Supplies @",null,"per workshop",{"$f":"MISCWORKSHOPSUPPLIES","v":50},0]
[null,null,null,null,null,null,null,0]
[null,null,null,null,null,null,null,0]
[null,null,null,null,null,null,null,{"$f":"SUM(C79*G79)","v":0}]
[null,null,null,null,null,null,null,0]
[null,"Mailing Labels:",null,"Laser Peel & Stick (box)",null,"750 per box",{"$f":"LASERPEELandSTICK","v":4},0]
[null,"Postage:"]
[null,"  - Public Workshops:",null,"Notice or Newsletter @",null,"copies @",{"$f":"POSTAGE","v":0.49},{"$f":"SUM(C83*E83*G83)","v":0}]
[null,null,null,null,null,"Subtotal",null,{"$f":"SUM(H58:H83)","v":0}]
["Miscellaneous Other","ITEM","QTY","DESCRIPTION",null,null,"UNIT COST "]
[null,null,null,null,null,null,null,{"$f":"SUM(C86*G86)","v":0}]
[null,null,null,null,null,null,null,{"$f":"SUM(C87*G87)","v":0}]
[null,null,null,null,null,null,null,0]
[null,null,null,null,null,null,null,0]
[null,null,null,null,null,null,null,0]
[null,null,null,null,null,null,null,0]
[null,null,null,null,null,null,null,0]
[null,null,null,null,null,null,null,{"$f":"SUM(C93*G93)","v":0}]
[null,null,null,null,null,null,null,{"$f":"SUM(C94*G94)","v":0}]
[null,null,null,null,null,null,null,{"$f":"SUM(C95*G95)","v":0}]
[null,null,null,null,null,"Subtotal",null,{"$f":"SUM(H86:H95)","v":0}]
[]
[null,null,null,null,null,"TOTAL",null,{"$f":"SUM(H30+H34+H44+H56+H84+H96)","v":0}]
[]
[null,"* Sum of all plots "]

{"sheet":"EN-Noise","index":18,"n_rows":277,"n_cols":24,"rows_kept":277,"cut":false,"hidden":true,"merged":[[30,23,30,24],[244,23,244,24],[245,23,245,24],[246,23,246,24],[247,23,247,24],[248,23,248,24],[239,23,239,24],[240,23,240,24],[241,23,241,24],[242,23,242,24],[243,23,243,24],[204,23,204,24],[206,23,206,24],[207,23,207,24],[208,23,208,24],[209,23,209,24],[210,23,210,24],[211,23,211,24],[193,23,193,24],[203,23,203,24],[183,23,183,24],[184,23,184,24],[186,23,186,24],[187,23,187,24],[200,23,200,24],[201,23,201,24],[202,23,202,24],[127,23,127,24],[128,23,128,24],[129,23,129,24],[130,23,130,24],[131,23,131,24],[132,23,132,24],[133,23,133,24],[161,23,161,24],[162,23,162,24],[145,23,145,24],[146,23,146,24],[159,23,159,24],[163,23,163,24],[164,23,164,24],[165,23,165,24],[166,23,166,24],[169,23,169,24],[171,23,171,24],[172,23,172,24],[188,23,188,24],[189,23,189,24],[118,23,118,24],[119,23,119,24],[120,23,120,24],[122,23,122,24],[123,23,123,24],[124,23,124,24],[126,23,126,24],[196,23,196,24],[199,23,199,24],[190,23,190,24],[191,23,191,24],[192,23,192,24],[181,23,181,24],[182,23,182,24],[194,23,194,24],[195,23,195,24],[109,23,109,24],[110,23,110,24],[111,23,111,24],[112,23,112,24],[113,23,113,24],[114,23,114,24],[115,23,115,24],[116,23,116,24],[117,23,117,24],[99,23,99,24],[101,23,101,24],[102,23,102,24],[103,23,103,24],[104,23,104,24],[105,23,105,24],[106,23,106,24],[107,23,107,24],[108,23,108,24],[222,23,222,24],[238,23,238,24],[236,23,236,24],[221,23,221,24],[234,23,234,24],[235,23,235,24],[226,23,226,24],[230,23,230,24],[232,23,232,24],[225,23,225,24],[27,23,27,24],[29,23,29,24],[142,23,142,24],[24,23,24,24],[147,23,147,24],[148,23,148,24],[149,23,149,24],[33,23,33,24],[43,23,43,24],[37,23,37,24],[40,23,40,24],[50,23,50,24],[51,23,51,24],[52,23,52,24],[53,23,53,24],[54,23,54,24],[55,23,55,24],[56,23,56,24],[57,23,57,24],[58,23,58,24],[73,23,73,24],[75,23,75,24],[76,23,76,24],[77,23,77,24],[59,23,59,24],[60,23,60,24],[61,23,61,24],[41,23,41,24],[36,23,36,24],[138,23,138,24],[153,23,153,24],[154,23,154,24],[44,23,44,24],[48,23,48,24],[152,23,152,24],[38,23,38,24],[78,23,78,24],[79,23,79,24],[80,23,80,24],[82,23,82,24],[86,23,86,24],[87,23,87,24],[88,23,88,24],[89,23,89,24],[90,23,90,24],[91,23,91,24],[92,23,92,24],[94,23,94,24],[212,23,212,24],[135,23,135,24],[140,23,140,24],[141,23,141,24],[150,23,150,24],[151,23,151,24],[62,23,62,24],[63,23,63,24],[65,23,65,24],[66,23,66,24],[67,23,67,24],[68,23,68,24],[69,23,69,24],[70,23,70,24],[71,23,71,24],[72,23,72,24],[173,23,173,24],[174,23,174,24],[175,23,175,24],[176,23,176,24],[95,23,95,24],[96,23,96,24],[97,23,97,24],[98,23,98,24],[5,3,5,19],[7,15,10,15],[7,16,10,16],[7,17,10,17],[7,18,10,18],[7,19,10,19],[7,14,10,14],[7,13,10,13],[7,3,10,3],[7,4,10,4],[7,5,10,5],[7,6,10,6],[7,7,10,7],[7,8,10,8],[7,9,10,9],[7,10,10,10],[7,11,10,11],[7,12,10,12],[274,8,274,13],[275,8,275,9],[275,10,275,11],[276,8,276,9],[276,10,276,11],[269,3,269,6],[269,8,269,13],[270,8,270,9],[270,10,270,11],[271,8,271,9],[271,10,271,11],[265,1,266,1],[265,3,266,4],[156,23,156,24],[158,23,158,24],[251,23,251,24],[231,23,231,24],[220,23,220,24],[233,23,233,24],[250,23,250,24],[229,23,229,24],[217,23,217,24],[157,23,157,24],[213,23,213,24],[219,23,219,24],[218,23,218,24],[237,23,237,24],[227,23,227,24],[228,23,228,24],[214,23,214,24],[215,23,215,24],[177,23,177,24],[178,23,178,24],[179,23,179,24],[180,23,180,24],[9,23,9,24],[143,23,143,24],[45,23,45,24],[46,23,46,24],[47,23,47,24],[134,23,134,24],[144,23,144,24],[35,23,35,24],[16,23,16,24],[17,23,17,24],[31,23,31,24],[32,23,32,24],[22,23,22,24],[26,23,26,24],[42,23,42,24],[15,23,15,24],[23,23,23,24],[21,23,21,24],[136,23,136,24],[28,23,28,24],[137,23,137,24],[19,23,19,24],[20,23,20,24],[25,23,25,24],[0,0,1,24],[3,1,3,4],[3,6,3,7],[3,10,3,11],[3,20,3,21],[2,1,2,4],[2,6,2,7],[2,10,2,11],[2,20,2,21],[2,13,2,14],[3,13,3,14]]}
["NOISE DESIGN BREAKDOWN WORKSHEET"]
[]
["PROJECT DESCRIPTION: ",{"$f":"PROJECT.DESCRIPTION","v":0},null,null,null,"FIRM:  ",{"$f":"PDEA_HEU_NOISE_CONSULTANT_NAME","v":"CONSULTANT NAME"},null,"TASK ORDER NUMBER:",null,{"$f":"TASK.ORDER.NUMBER","v":0},null,"DATE PREPARED:",{"$f":"IF(SCOPE.MANDAY.ESTIMATE.PREPARED.BY.DATE=\"\",\"\",SCOPE.MANDAY.ESTIMATE.PREPARED.BY.DATE)","v":""}]
["PREPARED BY:  ",{"$f":"IF(SCOPE.MANDAY.ESTIMATE.PREPARED.BY=\"\",\"\",SCOPE.MANDAY.ESTIMATE.PREPARED.BY)","v":""},null,null,null,"TIP NUMBER:",{"$f":"TIP.NUMBER","v":0},null,"WBS NUMBER:",null,{"$f":"WBS.NUMBER","v":""},null,"REVISION DATE:",{"$f":"IF(SCOPE.MANDAY.ESTIMATE.APPROVED.BY.DATE=\"\",\"\",SCOPE.MANDAY.ESTIMATE.APPROVED.BY.DATE)","v":""}]
[]
[null,null,null,"ESTIMATED WORK DAYS"]
[null,null,"Employee",{"$f":"IF('PEF CLASSIFICATION SHEET'!$D102=\"\",\"\",LEFT('PEF CLASSIFICATION SHEET'!$D102,4))","v":""},{"$f":"IF('PEF CLASSIFICATION SHEET'!$D103=\"\",\"\",LEFT('PEF CLASSIFICATION SHEET'!$D103,4))","v":""},{"$f":"IF('PEF CLASSIFICATION SHEET'!$D104=\"\",\"\",LEFT('PEF CLASSIFICATION SHEET'!$D104,4))","v":""},{"$f":"IF('PEF CLASSIFICATION SHEET'!$D105=\"\",\"\",LEFT('PEF CLASSIFICATION SHEET'!$D105,4))","v":""},{"$f":"IF('PEF CLASSIFICATION SHEET'!$D106=\"\",\"\",LEFT('PEF CLASSIFICATION SHEET'!$D106,4))","v":""},{"$f":"IF('PEF CLASSIFICATION SHEET'!$D107=\"\",\"\",LEFT('PEF CLASSIFICATION SHEET'!$D107,4))","v":""},{"$f":"IF('PEF CLASSIFICATION SHEET'!$D108=\"\",\"\",LEFT('PEF CLASSIFICATION SHEET'!$D108,4))","v":""},{"$f":"IF('PEF CLASSIFICATION SHEET'!$D109=\"\",\"\",LEFT('PEF CLASSIFICATION SHEET'!$D109,4))","v":""},{"$f":"IF('PEF CLASSIFICATION SHEET'!$D110=\"\",\"\",LEFT('PEF CLASSIFICATION SHEET'!$D110,4))","v":""},{"$f":"IF('PEF CLASSIFICATION SHEET'!$D111=\"\",\"\",LEFT('PEF CLASSIFICATION SHEET'!$D111,4))","v":""},{"$f":"IF('PEF CLASSIFICATION SHEET'!$D112=\"\",\"\",LEFT('PEF CLASSIFICATION SHEET'!$D112,4))","v":""},{"$f":"IF('PEF CLASSIFICATION SHEET'!$D113=\"\",\"\",LEFT('PEF CLASSIFICATION SHEET'!$D113,4))","v":""},{"$f":"IF('PEF CLASSIFICATION SHEET'!$D114=\"\",\"\",LEFT('PEF CLASSIFICATION SHEET'!$D114,4))","v":""},{"$f":"IF('PEF CLASSIFICATION SHEET'!D115=\"\",\"\",LEFT('PEF CLASSIFICATION SHEET'!D115,4))","v":""},{"$f":"IF('PEF CLASSIFICATION SHEET'!D116=\"\",\"\",LEFT('PEF CLASSIFICATION SHEET'!D116,4))","v":""},{"$f":"IF('PEF CLASSIFICATION SHEET'!D117=\"\",\"\",LEFT('PEF CLASSIFICATION SHEET'!D117,4))","v":""},{"$f":"IF('PEF CLASSIFICATION SHEET'!D118=\"\",\"\",LEFT('PEF CLASSIFICATION SHEET'!D118,4))","v":""}]
[null,null,null,{"$f":"IF('PEF CLASSIFICATION SHEET'!$C102=\"\",\"\",'PEF CLASSIFICATION SHEET'!$C102)","v":""},{"$f":"IF('PEF CLASSIFICATION SHEET'!$C103=\"\",\"\",'PEF CLASSIFICATION SHEET'!$C103)","v":""},{"$f":"IF('PEF CLASSIFICATION SHEET'!$C104=\"\",\"\",'PEF CLASSIFICATION SHEET'!$C104)","v":""},{"$f":"IF('PEF CLASSIFICATION SHEET'!$C105=\"\",\"\",'PEF CLASSIFICATION SHEET'!$C105)","v":""},{"$f":"IF('PEF CLASSIFICATION SHEET'!$C106=\"\",\"\",'PEF CLASSIFICATION SHEET'!$C106)","v":""},{"$f":"IF('PEF CLASSIFICATION SHEET'!$C107=\"\",\"\",'PEF CLASSIFICATION SHEET'!$C107)","v":""},{"$f":"IF('PEF CLASSIFICATION SHEET'!$C108=\"\",\"\",'PEF CLASSIFICATION SHEET'!$C108)","v":""},{"$f":"IF('PEF CLASSIFICATION SHEET'!$C109=\"\",\"\",'PEF CLASSIFICATION SHEET'!$C109)","v":""},{"$f":"IF('PEF CLASSIFICATION SHEET'!$C110=\"\",\"\",'PEF CLASSIFICATION SHEET'!$C110)","v":""},{"$f":"IF('PEF CLASSIFICATION SHEET'!$C111=\"\",\"\",'PEF CLASSIFICATION SHEET'!$C111)","v":""},{"$f":"IF('PEF CLASSIFICATION SHEET'!$C112=\"\",\"\",'PEF CLASSIFICATION SHEET'!$C112)","v":""},{"$f":"IF('PEF CLASSIFICATION SHEET'!$C113=\"\",\"\",'PEF CLASSIFICATION SHEET'!$C113)","v":""},{"$f":"IF('PEF CLASSIFICATION SHEET'!$C114=\"\",\"\",'PEF CLASSIFICATION SHEET'!$C114)","v":""},{"$f":"IF('PEF CLASSIFICATION SHEET'!C115=\"\",\"\",'PEF CLASSIFICATION SHEET'!C115)","v":""},{"$f":"IF('PEF CLASSIFICATION SHEET'!C116=\"\",\"\",'PEF CLASSIFICATION SHEET'!C116)","v":""},{"$f":"IF('PEF CLASSIFICATION SHEET'!C117=\"\",\"\",'PEF CLASSIFICATION SHEET'!C117)","v":""},{"$f":"IF('PEF CLASSIFICATION SHEET'!C118=\"\",\"\",'PEF CLASSIFICATION SHEET'!C118)","v":""},"SUB-","%","PEF"]
[null,null,"Classification",null,null,null,null,null,null,null,null,null,null,null,null,null,null,null,null,null,"TOTAL","OF","ESTIMATE"]
["TASK","TASK DESCRIPTION",null,null,null,null,null,null,null,null,null,null,null,null,null,null,null,null,null,null,null,"PROJECT",null,"COMMENTS"]
["NO."]
["2EN2","Assess Human Environmental Impacts-Noise",null,null,null,null,null,null,null,null,null,null,null,null,null,null,null,null,null,null,{"$f":"IF(B12=\"\",0,IF((SUM(D12:T12)=0),\"\",SUM(D12:T12)))","v":""},{"$f":"IF(U12=\"\",\"\",SUM((U12/$U$253)))","v":""}]
["3.0","Traffic Noise",null,null,null,null,null,null,null,null,null,null,null,null,null,null,null,null,null,null,"",{"$f":"IF(U13=\"\",\"\",SUM((U13/$U$253)))","v":""}]
[3.1,"Project Initiation",null,null,null,null,null,null,null,null,null,null,null,null,null,null,null,null,null,null,"",{"$f":"IF(U14=\"\",\"\",SUM((U14/$U$253)))","v":""}]
["3.1.1","Obtain Existing Project Information (aerial imagery, project survey files, project design files, existing surface/contour data that encompasses the entire traffic noise study area)",null,null,null,null,null,null,null,null,null,null,null,null,null,null,null,null,null,null,{"$f":"IF(B15=\"\",0,IF((SUM(D15:T15)=0),\"\",SUM(D15:T15)))","v":""},{"$f":"IF(U15=\"\",\"\",SUM((U15/$U$253)))","v":""}]
["3.1.2","Project Area Reconnaissance (if applicable)",null,null,null,null,null,null,null,null,null,null,null,null,null,null,null,null,null,null,{"$f":"IF(B16=\"\",0,IF((SUM(D16:T16)=0),\"\",SUM(D16:T16)))","v":""},{"$f":"IF(U16=\"\",\"\",SUM((U16/$U$253)))","v":""}]
["3.1.3 ","Identify Current Noise Sensitive Land Uses within the initial noise area study limit appropriate for the roadway functional classification (Traffic Noise Manual Table 7.1)",null,null,null,null,null,null,null,null,null,null,null,null,null,null,null,null,null,null,"",""]
["3.1.4","Identify Future Noise Sensitive Land Uses Likely to be Permitted Prior to DoPK",null,null,null,null,null,null,null,null,null,null,null,null,null,null,null,null,null,null,"",""]
[null,null,null,null,null,null,null,null,null,null,null,null,null,null,null,null,null,null,null,null,0,{"$error":"#DIV/0!"}]
[3.2,"Noise Analysis Work Plan",null,null,null,null,null,null,null,null,null,null,null,null,null,null,null,null,null,null,"",""]
["3.2.1","Draft Noise Analysis Work Plan",null,null,null,null,null,null,null,null,null,null,null,null,null,null,null,null,null,null,"",""]
["3.2.1.1","Memo",null,null,null,null,null,null,null,null,null,null,null,null,null,null,null,null,null,null,"",""]
["3.2.1.2","Figures",null,null,null,null,null,null,null,null,null,null,null,null,null,null,null,null,null,null,"",""]
["3.2.1.3"," QC/QA ",null,null,null,null,null,null,null,null,null,null,null,null,null,null,null,null,null,null,"",""]
["3.2.2","Coordinate with non-residential property owners to obtain usage data for ER calculations, window condition/building type information for NAC D receptors, etc.",null,null,null,null,null,null,null,null,null,null,null,null,null,null,null,null,null,null,"",""]
["3.2.3","Work Plan Meeting with NCDOT",null,null,null,null,null,null,null,null,null,null,null,null,null,null,null,null,null,null,"",""]
["3.2.4","Revised Noise Analysis Work Plan",null,null,null,null,null,null,null,null,null,null,null,null,null,null,null,null,null,null,"",""]
["3.2.4.1","Address Comments (including Memo and Figures)",null,null,null,null,null,null,null,null,null,null,null,null,null,null,null,null,null,null,"",""]
["3.2.4.2","Prepare Comment Response Matrix",null,null,null,null,null,null,null,null,null,null,null,null,null,null,null,null,null,null,"",""]
["3.2.4.3"," QC/QA",null,null,null,null,null,null,null,null,null,null,null,null,null,null,null,null,null,null,"",""]
["3.2.5","Final Noise Analysis Work Plan",null,null,null,null,null,null,null,null,null,null,null,null,null,null,null,null,null,null,"",""]
["3.2.5.1","Address Comments (including Memo and Figures)",null,null,null,null,null,null,null,null,null,null,null,null,null,null,null,null,null,null,"",""]
["3.2.5.2","Prepare Comment Response Matrix",null,null,null,null,null,null,null,null,null,null,null,null,null,null,null,null,null,null,"",""]
["3.2.5.3","QC/QA",null,null,null,null,null,null,null,null,null,null,null,null,null,null,null,null,null,null,"",""]
[null,null,null,null,null,null,null,null,null,null,null,null,null,null,null,null,null,null,null,null,0,{"$error":"#DIV/0!"}]
[3.3,"Ambient Noise Measurements",null,null,null,null,null,null,null,null,null,null,null,null,null,null,null,null,null,null,"",""]
["3.3.1","Preparation (securing/testing SLMs and other equipment, preparing field data sheets and other materials, etc.)",null,null,null,null,null,null,null,null,null,null,null,null,null,null,null,null,null,null,"",""]
["3.3.2","Noise Monitoring/Field Work",null,null,null,null,null,null,null,null,null,null,null,null,null,null,null,null,null,null,"",""]
["3.3.3","Post-Processing (extracting data, despiking, calculating hourly equivalent noise levels, calculating rolling loudest hour, etc.)",null,null,null,null,null,null,null,null,null,null,null,null,null,null,null,null,null,null,"",""]
[null,null,null,null,null,null,null,null,null,null,null,null,null,null,null,null,null,null,null,null,0,{"$error":"#DIV/0!"}]
[3.4,"Baseline TNM Models",null,null,null,null,null,null,null,null,null,null,null,null,null,null,null,null,null,null,"",""]
["3.4.1","Traffic Calculations",null,null,null,null,null,null,null,null,null,null,null,null,null,null,null,null,null,null,"",""]
["3.4.2","Roadways",null,null,null,null,null,null,null,null,null,null,null,null,null,null,null,null,null,null,"",""]
["3.4.2.1","Input Observed Traffic Volumes and Speeds for Validation Models",null,null,null,null,null,null,null,null,null,null,null,null,null,null,null,null,null,null,"",""]
["3.4.3","Receptors (all the noise-sensitive receptors to be included in the analysis)",null,null,null,null,null,null,null,null,null,null,null,null,null,null,null,null,null,null,"",""]
["3.4.3.1","TNM receivers representing the SLM setup sites during field work for Validation Models",null,null,null,null,null,null,null,null,null,null,null,null,null,null,null,null,null,null,"",""]
["3.4.4","Structures (individual buildings, shoulder/median safety barriers, retaining walls, existing noise walls, etc.)",null,null,null,null,null,null,null,null,null,null,null,null,null,null,null,null,null,null,"",""]
["3.4.5","Additional TNM Elements (Terrain Lines, Ground Zones, etc.)",null,null,null,null,null,null,null,null,null,null,null,null,null,null,null,null,null,null,"",""]
["3.4.5.1","Validation-only TNM elements (Tree Zones, Building Rows representing privacy fences, etc.)",null,null,null,null,null,null,null,null,null,null,null,null,null,null,null,null,null,null,"",""]
["3.4.6","Run TNM Models",null,null,null,null,null,null,null,null,null,null,null,null,null,null,null,null,null,null,"",""]
["3.4.6.1","QC/QA TNM input",null,null,null,null,null,null,null,null,null,null,null,null,null,null,null,null,null,null,"",""]
["3.4.6.2","Troubleshooting",null,null,null,null,null,null,null,null,null,null,null,null,null,null,null,null,null,null,"",""]
["3.4.6.3","Validation Model QC/QA, Troubleshooting, and Adjustments (if necessary)",null,null,null,null,null,null,null,null,null,null,null,null,null,null,null,null,null,null,"",""]
[null,null,null,null,null,null,null,null,null,null,null,null,null,null,null,null,null,null,null,null,0,{"$error":"#DIV/0!"}]
[3.5,"TNM Validation Memorandum",null,null,null,null,null,null,null,null,null,null,null,null,null,null,null,null,null,null,"",""]
["3.5.1","Draft Validation Memo",null,null,null,null,null,null,null,null,null,null,null,null,null,null,null,null,null,null,"",""]
["3.5.1.1","Memo",null,null,null,null,null,null,null,null,null,null,null,null,null,null,null,null,null,null,"",""]
["3.5.1.2","Appendices and Supporting Documents",null,null,null,null,null,null,null,null,null,null,null,null,null,null,null,null,null,null,"",""]
["3.5.1.3","QC/QA",null,null,null,null,null,null,null,null,null,null,null,null,null,null,null,null,null,null,"",""]
["3.5.2","Revised Validation Memo",null,null,null,null,null,null,null,null,null,null,null,null,null,null,null,null,null,null,"",""]
["3.5.2.1","Address Comments (including Memo, Appendices, Supporting Documents, and Modeling)",null,null,null,null,null,null,null,null,null,null,null,null,null,null,null,null,null,null,"",""]
["3.5.2.2","Prepare Comment Response Matrix",null,null,null,null,null,null,null,null,null,null,null,null,null,null,null,null,null,null,"",""]
["3.5.2.3","QC/QA",null,null,null,null,null,null,null,null,null,null,null,null,null,null,null,null,null,null,"",""]
["3.5.3","Final Validation Memo",null,null,null,null,null,null,null,null,null,null,null,null,null,null,null,null,null,null,"",""]
["3.5.3.1","Validation Review with NCDOT – if applicable",null,null,null,null,null,null,null,null,null,null,null,null,null,null,null,null,null,null,"",""]
["3.5.3.2","Address Comments (including Memo, Appendices, Supporting Documents, and Modeling)",null,null,null,null,null,null,null,null,null,null,null,null,null,null,null,null,null,null,"",""]
["3.5.3.3","Prepare Comment Response Matrix",null,null,null,null,null,null,null,null,null,null,null,null,null,null,null,null,null,null,"",""]
["3.5.3.4","QC/QA",null,null,null,null,null,null,null,null,null,null,null,null,null,null,null,null,null,null,"",""]
[null,null,null,null,null,null,null,null,null,null,null,null,null,null,null,null,null,null,null,null,0,{"$error":"#DIV/0!"}]
[3.6,"No-Build Condition TNM Models ",null,null,null,null,null,null,null,null,null,null,null,null,null,null,null,null,null,null,"",""]
["3.6.1","Traffic Calculations",null,null,null,null,null,null,null,null,null,null,null,null,null,null,null,null,null,null,"",""]
["3.6.2","Run TNM Models",null,null,null,null,null,null,null,null,null,null,null,null,null,null,null,null,null,null,"",""]
["3.6.2.1","QC/QA TNM input",null,null,null,null,null,null,null,null,null,null,null,null,null,null,null,null,null,null,"",""]
["3.6.2.2","Troubleshooting",null,null,null,null,null,null,null,null,null,null,null,null,null,null,null,null,null,null,"",""]
[null,null,null,null,null,null,null,null,null,null,null,null,null,null,null,null,null,null,null,null,0,{"$error":"#DIV/0!"}]
[3.7,"Build Condition TNM Models",null,null,null,null,null,null,null,null,null,null,null,null,null,null,null,null,null,null,"",""]
["3.7.1","Roadways",null,null,null,null,null,null,null,null,null,null,null,null,null,null,null,null,null,null,"",""]
["3.7.2","Traffic Calculations",null,null,null,null,null,null,null,null,null,null,null,null,null,null,null,null,null,null,"",""]
["3.7.3","Remove Displaced Receptors due to ROW acquisition ",null,null,null,null,null,null,null,null,null,null,null,null,null,null,null,null,null,null,"",""]
["3.7.4","Additional TNM Elements (Barriers, Terrain Lines, Ground Zones, etc.) ",null,null,null,null,null,null,null,null,null,null,null,null,null,null,null,null,null,null,{"$f":"IF(B80=\"\",0,IF((SUM(D80:T80)=0),\"\",SUM(D80:T80)))","v":""},{"$f":"IF(U80=\"\",\"\",SUM((U80/$U$253)))","v":""}]
["3.7.5","Run TNM Models",null,null,null,null,null,null,null,null,null,null,null,null,null,null,null,null,null,null,"",""]
["3.7.5.1","QC/QA TNM input",null,null,null,null,null,null,null,null,null,null,null,null,null,null,null,null,null,null,"",""]
["3.7.5.2","Troubleshooting",null,null,null,null,null,null,null,null,null,null,null,null,null,null,null,null,null,null,"",""]
["3.7.6","Noise Level Contour TNM Models",null,null,null,null,null,null,null,null,null,null,null,null,null,null,null,null,null,null,"",""]
["3.7.7","ER Calculations",null,null,null,null,null,null,null,null,null,null,null,null,null,null,null,null,null,null,"",""]
[null,null,null,null,null,null,null,null,null,null,null,null,null,null,null,null,null,null,null,null,0,{"$error":"#DIV/0!"}]
[3.8,"Noise Abatement",null,null,null,null,null,null,null,null,null,null,null,null,null,null,null,null,null,null,"",""]
["3.8.1","Barrier Input/Optimization",null,null,null,null,null,null,null,null,null,null,null,null,null,null,null,null,null,null,"",""]
["3.8.2","Run TNM models",null,null,null,null,null,null,null,null,null,null,null,null,null,null,null,null,null,null,"",""]
["3.8.2.1","QC/QA TNM Barriers",null,null,null,null,null,null,null,null,null,null,null,null,null,null,null,null,null,null,"",""]
["3.8.2.2","Troubleshooting",null,null,null,null,null,null,null,null,null,null,null,null,null,null,null,null,null,null,"",""]
["3.8.3","Parallel Barriers",null,null,null,null,null,null,null,null,null,null,null,null,null,null,null,null,null,null,"",""]
[null,null,null,null,null,null,null,null,null,null,null,null,null,null,null,null,null,null,null,null,0,{"$error":"#DIV/0!"}]
[3.9,"Noise Report",null,null,null,null,null,null,null,null,null,null,null,null,null,null,null,null,null,null,"",""]
["3.9.1","Draft 1 of TNR",null,null,null,null,null,null,null,null,null,null,null,null,null,null,null,null,null,null,"",""]
["3.9.1.1","Noise Analysis Review with NCDOT",null,null,null,null,null,null,null,null,null,null,null,null,null,null,null,null,null,null,"",""]
["3.9.1.2","Text, Tables, Figures",null,null,null,null,null,null,null,null,null,null,null,null,null,null,null,null,null,null,"",""]
["3.9.1.3","Consideration of non-traffic noise sources",null,null,null,null,null,null,null,null,null,null,null,null,null,null,null,null,null,null,"",""]
["3.9.1.4","Appendices (field data, Noise Level Tables, Barrier Performance Tables,  Traffic Volumes, Noise Policy)",null,null,null,null,null,null,null,null,null,null,null,null,null,null,null,null,null,null,"",""]
["3.9.1.5","QC/QA",null,null,null,null,null,null,null,null,null,null,null,null,null,null,null,null,null,null,"",""]
["3.9.2","Draft 2 of TNR ",null,null,null,null,null,null,null,null,null,null,null,null,null,null,null,null,null,null,"",""]
["3.9.2.1","Address Comments (including Text, Tables, Figures, Appendices, Modeling)",null,null,null,null,null,null,null,null,null,null,null,null,null,null,null,null,null,null,"",""]
["3.9.2.2","Prepare Comment Response Matrix",null,null,null,null,null,null,null,null,null,null,null,null,null,null,null,null,null,null,"",""]
["3.9.2.3","QC/QA",null,null,null,null,null,null,null,null,null,null,null,null,null,null,null,null,null,null,"",""]
["3.9.3","Draft 3 of TNR ",null,null,null,null,null,null,null,null,null,null,null,null,null,null,null,null,null,null,"",""]
["3.9.3.1","Address Comments (including Text, Tables, Figures, Appendices, Modeling)",null,null,null,null,null,null,null,null,null,null,null,null,null,null,null,null,null,null,"",""]
["3.9.3.2","Prepare Comment Response Matrix",null,null,null,null,null,null,null,null,null,null,null,null,null,null,null,null,null,null,"",""]
["3.9.3.3","QC/QA",null,null,null,null,null,null,null,null,null,null,null,null,null,null,null,null,null,null,"",""]
["3.9.4","Final TNR",null,null,null,null,null,null,null,null,null,null,null,null,null,null,null,null,null,null,"",""]
["3.9.4.1","Address Comments (including Text, Tables, Figures, Appendices, Modeling)",null,null,null,null,null,null,null,null,null,null,null,null,null,null,null,null,null,null,"",""]
["3.9.4.2","Prepare Comment Response Matrix",null,null,null,null,null,null,null,null,null,null,null,null,null,null,null,null,null,null,"",""]
["3.9.4.3","QC/QA",null,null,null,null,null,null,null,null,null,null,null,null,null,null,null,null,null,null,"",""]
["3.9.5","Prepare “Streamlined Traffic Noise Text”",null,null,null,null,null,null,null,null,null,null,null,null,null,null,null,null,null,null,"",""]
[null,null,null,null,null,null,null,null,null,null,null,null,null,null,null,null,null,null,null,null,0,{"$error":"#DIV/0!"}]
[3.1,"Task Management",null,null,null,null,null,null,null,null,null,null,null,null,null,null,null,null,null,null,"",""]
["3.10.1","Public Involvement (Hearings, Meetings, etc.)",null,null,null,null,null,null,null,null,null,null,null,null,null,null,null,null,null,null,"",""]
["3.10.2","Administration & Coordination with NCDOT (other than above meetings)",null,null,null,null,null,null,null,null,null,null,null,null,null,null,null,null,null,null,"",""]
[null,null,null,null,null,null,null,null,null,null,null,null,null,null,null,null,null,null,null,null,0,{"$error":"#DIV/0!"}]
[3.11," Other Tasks",null,null,null,null,null,null,null,null,null,null,null,null,null,null,null,null,null,null,"",""]
["",null,null,null,null,null,null,null,null,null,null,null,null,null,null,null,null,null,null,null,0,{"$error":"#DIV/0!"}]
["",null,null,null,null,null,null,null,null,null,null,null,null,null,null,null,null,null,null,null,0,{"$error":"#DIV/0!"}]
["",null,null,null,null,null,null,null,null,null,null,null,null,null,null,null,null,null,null,null,0,{"$error":"#DIV/0!"}]
["",null,null,null,null,null,null,null,null,null,null,null,null,null,null,null,null,null,null,null,0,{"$error":"#DIV/0!"}]
["",null,null,null,null,null,null,null,null,null,null,null,null,null,null,null,null,null,null,null,0,{"$error":"#DIV/0!"}]
["",null,null,null,null,null,null,null,null,null,null,null,null,null,null,null,null,null,null,null,0,{"$error":"#DIV/0!"}]
["3EN1/3EN2","Develop Noise Report or Addendum/Document Noise Abatement Strategy",null,null,null,null,null,null,null,null,null,null,null,null,null,null,null,null,null,null,"",""]
["1.0 ","Project Initiation",null,null,null,null,null,null,null,null,null,null,null,null,null,null,null,null,null,null,"",""]
[1.1000000000000001,"Obtain Existing Project Information (aerial imagery, project survey files, project design files, existing surface/contour data that encompasses the entire traffic noise study area)",null,null,null,null,null,null,null,null,null,null,null,null,null,null,null,null,null,null,"",""]
[1.2,"Project Area Reconnaissance (if applicable)",null,null,null,null,null,null,null,null,null,null,null,null,null,null,null,null,null,null,"",""]
[1.3,"Identify Current Noise Sensitive Land Uses within the initial noise area study limit appropriate for the roadway functional classification ",null,null,null,null,null,null,null,null,null,null,null,null,null,null,null,null,null,null,"",""]
[1.4,"Identify Future Noise Sensitive Land Uses Permitted Prior to DoPK",null,null,null,null,null,null,null,null,null,null,null,null,null,null,null,null,null,null,"",""]
["","",null,null,null,null,null,null,null,null,null,null,null,null,null,null,null,null,null,null,0,{"$error":"#DIV/0!"}]
["2.0 ","Noise Analysis Work Plan (if applicable)",null,null,null,null,null,null,null,null,null,null,null,null,null,null,null,null,null,null,"",""]
[2.1,"Draft Noise Analysis Work Plan",null,null,null,null,null,null,null,null,null,null,null,null,null,null,null,null,null,null,"",""]
["2.1.1 ","Memo",null,null,null,null,null,null,null,null,null,null,null,null,null,null,null,null,null,null,"",""]
["2.1.2 ","Figures",null,null,null,null,null,null,null,null,null,null,null,null,null,null,null,null,null,null,"",""]
["2.1.3 ","QC/QA",null,null,null,null,null,null,null,null,null,null,null,null,null,null,null,null,null,null,"",""]
["2.2 ","Coordination with property owners - with non-residential property owners to obtain usage data for ER calculations, window condition/building type information for NAC D receptors, etc.",null,null,null,null,null,null,null,null,null,null,null,null,null,null,null,null,null,null,"",""]
["2.3 ","Work Plan Meeting with NCDOT",null,null,null,null,null,null,null,null,null,null,null,null,null,null,null,null,null,null,"",""]
["2.4 ","Revised Noise Analysis Work Plan",null,null,null,null,null,null,null,null,null,null,null,null,null,null,null,null,null,null,"",""]
["2.4.1 ","Address Comments (including Memo and Figures)",null,null,null,null,null,null,null,null,null,null,null,null,null,null,null,null,null,null,"",""]
["2.4.2 ","Prepare Comment Response Matrix ",null,null,null,null,null,null,null,null,null,null,null,null,null,null,null,null,null,null,"",""]
["2.4.3 ","QC/QA ",null,null,null,null,null,null,null,null,null,null,null,null,null,null,null,null,null,null,"",""]
["2.5 ","Final Noise Analysis Work Plan",null,null,null,null,null,null,null,null,null,null,null,null,null,null,null,null,null,null,{"$f":"IF(B144=\"\",0,IF((SUM(D144:T144)=0),\"\",SUM(D144:T144)))","v":""},{"$f":"IF(U144=\"\",\"\",SUM((U144/$U$253)))","v":""}]
["2.5.1 ","Address Comments (including Memo and Figures)",null,null,null,null,null,null,null,null,null,null,null,null,null,null,null,null,null,null,"",""]
["2.5.2 ","Prepare Comment Response Matrix",null,null,null,null,null,null,null,null,null,null,null,null,null,null,null,null,null,null,"",""]
["2.5.3 ","QC/QA",null,null,null,null,null,null,null,null,null,null,null,null,null,null,null,null,null,null,"",""]
["","",null,null,null,null,null,null,null,null,null,null,null,null,null,null,null,null,null,null,0,{"$error":"#DIV/0!"}]
["3.0 ","Ambient Noise Measurements (if applicable)",null,null,null,null,null,null,null,null,null,null,null,null,null,null,null,null,null,null,"",""]
[3.1,"Preparation (securing/testing SLMs and other equipment, preparing field data sheets and other materials, etc.)",null,null,null,null,null,null,null,null,null,null,null,null,null,null,null,null,null,null,"",""]
[3.2,"Noise Monitoring/Field Work",null,null,null,null,null,null,null,null,null,null,null,null,null,null,null,null,null,null,"",""]
[3.3,"Post-Processing (extracting data, despiking, calculating hourly equivalent noise levels, calculating rolling loudest hour, etc.)",null,null,null,null,null,null,null,null,null,null,null,null,null,null,null,null,null,null,"",""]
["","",null,null,null,null,null,null,null,null,null,null,null,null,null,null,null,null,null,null,0,{"$error":"#DIV/0!"}]
["4.0 ","Baseline TNM Models",null,null,null,null,null,null,null,null,null,null,null,null,null,null,null,null,null,null,"",""]
[4.0999999999999996,"Traffic Calculations",null,null,null,null,null,null,null,null,null,null,null,null,null,null,null,null,null,null,"",""]
[4.2,"Roadways",null,null,null,null,null,null,null,null,null,null,null,null,null,null,null,null,null,null,"",""]
["4.2.1","Input Observed Traffic Volumes and Speeds for Validation Models (if applicable)",null,null,null,null,null,null,null,null,null,null,null,null,null,null,null,null,null,null,"",""]
[4.3,"Receptors (all the noise-sensitive receptors to be included in the analysis)",null,null,null,null,null,null,null,null,null,null,null,null,null,null,null,null,null,null,"",""]
["4.3.1","TNM receivers representing the SLM setup sites during field work for Validation Models (if applicable)",null,null,null,null,null,null,null,null,null,null,null,null,null,null,null,null,null,null,"",""]
[4.4000000000000004,"Structures (individual buildings, shoulder/median safety barriers, retaining walls, existing noise walls, etc.)",null,null,null,null,null,null,null,null,null,null,null,null,null,null,null,null,null,null,"",""]
[4.5,"Additional TNM Elements (Terrain Lines, Ground Zones, etc.)",null,null,null,null,null,null,null,null,null,null,null,null,null,null,null,null,null,null,"",""]
["4.5.1","Validation-only TNM elements (Tree Zones, Building Rows representing privacy fences, etc.) (if applicable)",null,null,null,null,null,null,null,null,null,null,null,null,null,null,null,null,null,null,"",""]
[4.5999999999999996,"Run TNM Models",null,null,null,null,null,null,null,null,null,null,null,null,null,null,null,null,null,null,"",""]
["4.6.1 ","QC/QA TNM input",null,null,null,null,null,null,null,null,null,null,null,null,null,null,null,null,null,null,"",""]
["4.6.2 ","Troubleshooting",null,null,null,null,null,null,null,null,null,null,null,null,null,null,null,null,null,null,"",""]
["4.6.3 ","Validation Model QC/QA, Troubleshooting, and Adjustments (if necessary)",null,null,null,null,null,null,null,null,null,null,null,null,null,null,null,null,null,null,"",""]
["","",null,null,null,null,null,null,null,null,null,null,null,null,null,null,null,null,null,null,0,{"$error":"#DIV/0!"}]
["5.0 ","TNM Validation Memorandum (if applicable)",null,null,null,null,null,null,null,null,null,null,null,null,null,null,null,null,null,null,"",""]
[5.0999999999999996,"Draft Validation Memo",null,null,null,null,null,null,null,null,null,null,null,null,null,null,null,null,null,null,"",""]
["5.1.1 ","Memo",null,null,null,null,null,null,null,null,null,null,null,null,null,null,null,null,null,null,"",""]
["5.1.2 ","Appendices and Supporting Documents",null,null,null,null,null,null,null,null,null,null,null,null,null,null,null,null,null,null,"",""]
["5.1.3 ","QC/QA",null,null,null,null,null,null,null,null,null,null,null,null,null,null,null,null,null,null,"",""]
[5.2,"Revised Validation Memo",null,null,null,null,null,null,null,null,null,null,null,null,null,null,null,null,null,null,"",""]
["5.2.1 ","Address comments (including Memo, Appendices, Supporting Documents, and Modeling)",null,null,null,null,null,null,null,null,null,null,null,null,null,null,null,null,null,null,"",""]
["5.2.2","Prepare Comment Response Matrix",null,null,null,null,null,null,null,null,null,null,null,null,null,null,null,null,null,null,"",""]
["5.2.3 ","QC/QA",null,null,null,null,null,null,null,null,null,null,null,null,null,null,null,null,null,null,"",""]
[5.3,"Final Validation Memo",null,null,null,null,null,null,null,null,null,null,null,null,null,null,null,null,null,null,"",""]
["5.3.1 ","Validation Review with NCDOT – if applicable",null,null,null,null,null,null,null,null,null,null,null,null,null,null,null,null,null,null,"",""]
["5.3.2 ","Address Comments (including Memo, Appendices, Supporting Documents, and Modeling)",null,null,null,null,null,null,null,null,null,null,null,null,null,null,null,null,null,null,"",""]
["5.3.3","Prepare Comment Response Matrix",null,null,null,null,null,null,null,null,null,null,null,null,null,null,null,null,null,null,"",""]
["5.3.4 ","QC/QA",null,null,null,null,null,null,null,null,null,null,null,null,null,null,null,null,null,null,"",""]
["","",null,null,null,null,null,null,null,null,null,null,null,null,null,null,null,null,null,null,0,{"$error":"#DIV/0!"}]
["6.0","No-Build Condition TNM Models (if applicable)",null,null,null,null,null,null,null,null,null,null,null,null,null,null,null,null,null,null,"",""]
[6.1,"Traffic Calculations",null,null,null,null,null,null,null,null,null,null,null,null,null,null,null,null,null,null,"",""]
[6.2,"Run TNM Models",null,null,null,null,null,null,null,null,null,null,null,null,null,null,null,null,null,null,"",""]
["6.2.1 ","QC/QA TNM input",null,null,null,null,null,null,null,null,null,null,null,null,null,null,null,null,null,null,"",""]
["6.2.2 ","Troubleshooting",null,null,null,null,null,null,null,null,null,null,null,null,null,null,null,null,null,null,"",""]
["","",null,null,null,null,null,null,null,null,null,null,null,null,null,null,null,null,null,null,0,{"$error":"#DIV/0!"}]
[7,"Build Condition TNM Models",null,null,null,null,null,null,null,null,null,null,null,null,null,null,null,null,null,null,"",""]
[7.1,"Roadways",null,null,null,null,null,null,null,null,null,null,null,null,null,null,null,null,null,null,"",""]
[7.2,"Traffic Calculations",null,null,null,null,null,null,null,null,null,null,null,null,null,null,null,null,null,null,"",""]
[7.3,"Remove Displaced Receptors due to ROW acquisition",null,null,null,null,null,null,null,null,null,null,null,null,null,null,null,null,null,null,"",""]
[7.4,"Additional TNM Elements (Barriers, Terrain Lines, Ground Zones, Tree Zones, etc.)",null,null,null,null,null,null,null,null,null,null,null,null,null,null,null,null,null,null,"",""]
[7.5,"Run TNM Models",null,null,null,null,null,null,null,null,null,null,null,null,null,null,null,null,null,null,"",""]
["7.5.1 ","QC/QA TNM input",null,null,null,null,null,null,null,null,null,null,null,null,null,null,null,null,null,null,"",""]
["7.5.2 ","Troubleshooting",null,null,null,null,null,null,null,null,null,null,null,null,null,null,null,null,null,null,"",""]
[7.6,"Noise Level Contour TNM Models",null,null,null,null,null,null,null,null,null,null,null,null,null,null,null,null,null,null,"",""]
[7.7,"ER Calculations",null,null,null,null,null,null,null,null,null,null,null,null,null,null,null,null,null,null,"",""]
["","",null,null,null,null,null,null,null,null,null,null,null,null,null,null,null,null,null,null,0,{"$error":"#DIV/0!"}]
[8,"Noise Abatement",null,null,null,null,null,null,null,null,null,null,null,null,null,null,null,null,null,null,"",""]
[8.1,"Barrier Input and Optimization",null,null,null,null,null,null,null,null,null,null,null,null,null,null,null,null,null,null,"",""]
[8.1999999999999993,"Run TNM models",null,null,null,null,null,null,null,null,null,null,null,null,null,null,null,null,null,null,"",""]
["8.2.1 ","QC/QA TNM input",null,null,null,null,null,null,null,null,null,null,null,null,null,null,null,null,null,null,"",""]
["8.2.2 ","Troubleshooting",null,null,null,null,null,null,null,null,null,null,null,null,null,null,null,null,null,null,"",""]
[8.3000000000000007,"Parallel Barriers",null,null,null,null,null,null,null,null,null,null,null,null,null,null,null,null,null,null,"",""]
[8.4,"DNR Abatement Review Meeting with NCDOT",null,null,null,null,null,null,null,null,null,null,null,null,null,null,null,null,null,null,"",""]
["","",null,null,null,null,null,null,null,null,null,null,null,null,null,null,null,null,null,null,0,{"$error":"#DIV/0!"}]
[9,"Noise Report",null,null,null,null,null,null,null,null,null,null,null,null,null,null,null,null,null,null,{"$f":"IF(B208=\"\",0,IF((SUM(D208:T208)=0),\"\",SUM(D208:T208)))","v":""},{"$f":"IF(U208=\"\",\"\",SUM((U208/$U$253)))","v":""}]
[9.1,"Draft 1 of DNR",null,null,null,null,null,null,null,null,null,null,null,null,null,null,null,null,null,null,"",""]
["9.1.1 ","Text, Tables, Figures",null,null,null,null,null,null,null,null,null,null,null,null,null,null,null,null,null,null,"",""]
["9.1.2 ","Consideration of non-traffic noise sources",null,null,null,null,null,null,null,null,null,null,null,null,null,null,null,null,null,null,"",""]
["9.1.3 ","Appendices (field data, Noise Level Tables, Barrier Performance Tables, Traffic Volumes, Envelope Drawings, Noise Policy)",null,null,null,null,null,null,null,null,null,null,null,null,null,null,null,null,null,null,"",""]
["9.1.4 ","Noise Wall Envelope Drawings",null,null,null,null,null,null,null,null,null,null,null,null,null,null,null,null,null,null,"",""]
["9.1.5 ","QC/QA",null,null,null,null,null,null,null,null,null,null,null,null,null,null,null,null,null,null,"",""]
[9.1999999999999993,"Draft 2 of DNR ",null,null,null,null,null,null,null,null,null,null,null,null,null,null,null,null,null,null,"",""]
["9.2.1 ","Address Comments (includes modeling, reporting, tables, figures and envelope drawings), including feasibility review comments",null,null,null,null,null,null,null,null,null,null,null,null,null,null,null,null,null,null,"",""]
["9.2.2 ","Prepare Comment Response Matrix",null,null,null,null,null,null,null,null,null,null,null,null,null,null,null,null,null,null,"",""]
["9.2.3 ","QC/QA",null,null,null,null,null,null,null,null,null,null,null,null,null,null,null,null,null,null,"",""]
[9.3000000000000007,"Draft 3 of DNR ",null,null,null,null,null,null,null,null,null,null,null,null,null,null,null,null,null,null,"",""]
["9.3.1 ","Address Comments (includes modeling, reporting, tables, figures and envelope drawings), including feasibility review comments",null,null,null,null,null,null,null,null,null,null,null,null,null,null,null,null,null,null,"",""]
["9.3.2 ","Prepare Comment Response Matrix",null,null,null,null,null,null,null,null,null,null,null,null,null,null,null,null,null,null,"",""]
["9.3.3 ","QC/QA",null,null,null,null,null,null,null,null,null,null,null,null,null,null,null,null,null,null,"",""]
[9.4,"Final DNR",null,null,null,null,null,null,null,null,null,null,null,null,null,null,null,null,null,null,"",""]
["9.4.1 ","Address Comments (includes modeling, reporting, tables, figures and envelope drawings)",null,null,null,null,null,null,null,null,null,null,null,null,null,null,null,null,null,null,"",""]
["9.4.2 ","Prepare Comment Response Matrix",null,null,null,null,null,null,null,null,null,null,null,null,null,null,null,null,null,null,"",""]
["9.4.3 ","QC/QA",null,null,null,null,null,null,null,null,null,null,null,null,null,null,null,null,null,null,"",""]
[9.5,"Prepare and submit recommended noise wall shape files",null,null,null,null,null,null,null,null,null,null,null,null,null,null,null,null,null,null,"",""]
["","",null,null,null,null,null,null,null,null,null,null,null,null,null,null,null,null,null,null,0,{"$error":"#DIV/0!"}]
[10,"Conduct Noise-Related Public Balloting Process",null,null,null,null,null,null,null,null,null,null,null,null,null,null,null,null,null,null,"",""]
[10.1,"Draft Balloting Figures",null,null,null,null,null,null,null,null,null,null,null,null,null,null,null,null,null,null,"",""]
["10.1.1 ","Prepare draft balloting figures for NCDOT review",null,null,null,null,null,null,null,null,null,null,null,null,null,null,null,null,null,null,"",""]
["10.1.2 ","QC/QA",null,null,null,null,null,null,null,null,null,null,null,null,null,null,null,null,null,null,"",""]
[10.199999999999999,"Final Balloting Figures",null,null,null,null,null,null,null,null,null,null,null,null,null,null,null,null,null,null,"",""]
["10.2.1 ","Address Comments",null,null,null,null,null,null,null,null,null,null,null,null,null,null,null,null,null,null,"",""]
["10.2.2 ","Prepare Comment Response Matrix",null,null,null,null,null,null,null,null,null,null,null,null,null,null,null,null,null,null,"",""]
["10.2.3 ","QC/QA ",null,null,null,null,null,null,null,null,null,null,null,null,null,null,null,null,null,null,"",""]
[10.3,"Prepare slides and display boards for use at public meeting (if applicable)",null,null,null,null,null,null,null,null,null,null,null,null,null,null,null,null,null,null,"",""]
["","",null,null,null,null,null,null,null,null,null,null,null,null,null,null,null,null,null,null,0,{"$error":"#DIV/0!"}]
[11,"Task Management",null,null,null,null,null,null,null,null,null,null,null,null,null,null,null,null,null,null,"",""]
[11.1,"Public Involvement (Hearings, Meetings, etc.)",null,null,null,null,null,null,null,null,null,null,null,null,null,null,null,null,null,null,"",""]
[11.2,"Administration & Coordination with NCDOT (other than above meetings)",null,null,null,null,null,null,null,null,null,null,null,null,null,null,null,null,null,null,"",""]
["","",null,null,null,null,null,null,null,null,null,null,null,null,null,null,null,null,null,null,0,{"$error":"#DIV/0!"}]
[12,"Other Tasks",null,null,null,null,null,null,null,null,null,null,null,null,null,null,null,null,null,null,"",""]
[null,null,null,null,null,null,null,null,null,null,null,null,null,null,null,null,null,null,null,null,{"$f":"IF(B244=\"\",0,IF((SUM(D244:T244)=0),\"\",SUM(D244:T244)))","v":0},{"$f":"IF(U244=\"\",\"\",SUM((U244/$U$253)))","v":{"$error":"#DIV/0!"}}]
[null,null,null,null,null,null,null,null,null,null,null,null,null,null,null,null,null,null,null,null,0,{"$error":"#DIV/0!"}]
[null,null,null,null,null,null,null,null,null,null,null,null,null,null,null,null,null,null,null,null,0,{"$error":"#DIV/0!"}]
[null,null,null,null,null,null,null,null,null,null,null,null,null,null,null,null,null,null,null,null,0,{"$error":"#DIV/0!"}]
[null,null,null,null,null,null,null,null,null,null,null,null,null,null,null,null,null,null,null,null,0,{"$error":"#DIV/0!"}]
[null,null,null,null,null,null,null,null,null,null,null,null,null,null,null,null,null,null,null,null,0,{"$error":"#DIV/0!"}]
[null,null,null,null,null,null,null,null,null,null,null,null,null,null,null,null,null,null,null,null,0,{"$error":"#DIV/0!"}]
[null,null,null,null,null,null,null,null,null,null,null,null,null,null,null,null,null,null,null,null,{"$f":"IF(B251=\"\",0,IF((SUM(D251:T251)=0),\"\",SUM(D251:T251)))","v":0},{"$error":"#DIV/0!"}]
[null,null,null,null,null,null,null,null,null,null,null,null,null,null,null,null,null,null,null,null,{"$f":"IF(B252=\"\",0,IF((SUM(D252:T252)=0),\"\",SUM(D252:T252)))","v":0},{"$error":"#DIV/0!"}]
[null,"TOTAL WORKDAYS/CATEGORY:",null,{"$f":"SUM(D12:D252)","v":0},0,0,0,0,0,0,0,0,0,0,0,0,0,0,0,0,0,{"$error":"#DIV/0!"},0]
[null,"HOURLY SALARY RATE:",null,{"$f":"'PEF CLASSIFICATION SHEET'!$E102","v":0},{"$f":"'PEF CLASSIFICATION SHEET'!$E103","v":0},{"$f":"'PEF CLASSIFICATION SHEET'!$E104","v":0},{"$f":"'PEF CLASSIFICATION SHEET'!$E105","v":0},{"$f":"'PEF CLASSIFICATION SHEET'!$E106","v":0},{"$f":"'PEF CLASSIFICATION SHEET'!$E107","v":0},{"$f":"'PEF CLASSIFICATION SHEET'!$E108","v":0},{"$f":"'PEF CLASSIFICATION SHEET'!$E109","v":0},{"$f":"'PEF CLASSIFICATION SHEET'!$E110","v":0},{"$f":"'PEF CLASSIFICATION SHEET'!$E111","v":0},{"$f":"'PEF CLASSIFICATION SHEET'!$E112","v":0},{"$f":"'PEF CLASSIFICATION SHEET'!$E113","v":0},{"$f":"'PEF CLASSIFICATION SHEET'!$E114","v":0},{"$f":"'PEF CLASSIFICATION SHEET'!E115","v":0},{"$f":"'PEF CLASSIFICATION SHEET'!E116","v":0},{"$f":"'PEF CLASSIFICATION SHEET'!E117","v":0},{"$f":"'PEF CLASSIFICATION SHEET'!E118","v":0}]
[null,"RATES PER DAY:",null,{"$f":"D254*8","v":0},0,0,0,0,0,0,0,0,0,0,0,{"$f":"P254*8","v":0},0,0,0,0]
[null,"PAYROLL BURDEN:",null,{"$f":"SUM(D253*D255)","v":0},0,0,0,0,0,0,0,0,0,0,0,{"$f":"SUM(P253*P255)","v":0},0,0,0,0]
[null,"TOTAL WORKDAYS:",null,{"$f":"SUM(D253:T253)","v":0}]
[null,"TOTAL PAYROLL BURDEN:",null,{"$f":"SUM(D256:T256)","v":0}]
[null,"AVERAGE COST PER HOUR:",null,{"$f":"SUM(D258/(D257*8))","v":{"$error":"#DIV/0!"}}]
[null,"GENERAL OVERHEAD:",{"$f":"PDEA_HEU_NOISE_CONSULTANT_OVERHEAD","v":0},{"$f":"SUM(D258*C260)","v":0}]
[null,"SUBTOTAL:",null,{"$f":"SUM(D258+D260)","v":0}]
[null,"COMPARATIVE FEE:",{"$f":"PDEA_HEU_NOISE_CONSULTANT_FEE","v":0.09},{"$f":"SUM(D261*C262)","v":0}]
[null,"FACILITIES COST OF CAPITAL:",{"$f":"PDEA_HEU_NOISE_CONSULTANT_COSTofCAPITAL","v":0},{"$f":"SUM(D258*C263)","v":0}]
[null,"TOTAL:",null,{"$f":"SUM(D261:D263)","v":0}]
[null,"DIRECT EXPENSES:",null,{"$f":"PDEA_HEU_NOISE_DIRECT_NONSALARY_TOTAL","v":0}]
[null,"NOISE GRAND TOTAL:",null,{"$f":"SUM(D264:D265)","v":0}]
[]
[]
[]
[null,"Costs",null,"Workdays",null,null,null,null,"Dollars"]
[null,null,null,"HES Noise","PEF","Delta ","Delta %",null,"HES Noise",null,"PEF",null,"Delta ","Delta %"]
[null,null,null,null,null,{"$f":"SUM(E272-D272)","v":0},{"$f":"SUM((F272/D272)*100)","v":{"$error":"#DIV/0!"}},null,null,null,null,null,{"$f":"SUM(K272-I272)","v":0},{"$f":"SUM((M272/I272)*100)","v":{"$error":"#DIV/0!"}}]
[]
[]
[null,null,null,null,null,null,null,"Directs","Dollars"]
[null,null,null,null,null,null,null,null,"HES Noise",null,"PEF",null,"Delta ","Delta %"]
[null,null,null,null,null,null,null,null,null,null,null,null,{"$f":"SUM(K277-I277)","v":0},{"$f":"SUM((M277/I277)*100)","v":{"$error":"#DIV/0!"}}]

{"sheet":"EN-Noise-Exp","index":19,"n_rows":110,"n_cols":8,"rows_kept":110,"cut":false,"hidden":true,"merged":[[0,0,0,7],[6,1,6,3],[6,4,6,6],[3,1,3,7],[4,1,4,3],[4,6,4,7],[5,1,5,3],[5,6,5,7],[2,1,2,3]]}
["NOISE DIRECT EXPENSES"]
[]
["FIRM:",{"$f":"'EN-Noise'!G3","v":"CONSULTANT NAME"}]
["PROJECT DESCRIPTION: ",{"$f":"PROJECT.DESCRIPTION","v":0}]
["PREPARED BY:  ",{"$f":"NOISE.PREPARED.BY","v":""},null,null,"TASK ORDER NUMBER:",null,{"$f":"TASK.ORDER.NUMBER","v":0}]
["TIP NUMBER:",{"$f":"TIP.NUMBER","v":0},null,null,"WBS NUMBER:",null,{"$f":"WBS.NUMBER","v":""}]
["DATE PREPARED:",{"$f":"IF('EN-Noise'!N3=\"\",\"\",MAX('EN-Noise'!N3:'EN-Noise'!N4))","v":""},null,null,"REVIEWED BY UNIT HEAD ON:",null,null,{"$f":"IF(SCOPE.MANDAY.ESTIMATE.APPROVED.BY.DATE=\"\",\"\",SCOPE.MANDAY.ESTIMATE.APPROVED.BY.DATE)","v":""}]
["GENERAL PROJECT WORK:","ITEM","QTY","DESCRIPTION",null,null,"UNIT COST "]
[null,"Noise Meter Equipment Rental"]
["Note:  Noise meter rentals must include rental quotes on rental firm letterhead.","Noise Meter Rental",null,null,null,"days @ ",null,{"$f":"SUM(C10*E10*G10)","v":0}]
[null,"Firm-Owned Meters",null,null,null,null,25,{"$f":"SUM(C11*G11)","v":0}]
[null,"Batteries for Noise Meter Rental",null,null,null,null,null,{"$f":"SUM(C12*G12)","v":0}]
[null,"Tripod Rental",null,null,null,"days @ ",null,{"$f":"SUM(C13*E13*G13)","v":0}]
[null,"Processing Fee for Rental",null,null,null,null,null,{"$f":"SUM(C14*G14)","v":0}]
[null,"Shipping Fee for Rental",null,null,null,null,null,0]
[null,null,null,null,null,"days @ ",null,{"$f":"SUM(E16*G16)","v":0}]
[null,"Travel:"]
[null,"Sedan",null,"Trip(s) @",null,"miles @",{"$f":"SEDAN","v":0.7},{"$f":"SUM(C18*E18*G18)","v":0}]
[null,"Carry All",null,"Trip(s) @",null,"miles @",{"$f":"CARRYALL","v":0.72},{"$f":"SUM(C19*E19*G19)","v":0}]
[null,"Car Rental",null,null,null,"days @ ",{"$f":"CARRENTAL","v":50},{"$f":"SUM(E20*G20)","v":0}]
[null,"Gas for Rental",null,null,null,"miles @",{"$f":"GASforRENTAL","v":0.2},{"$f":"SUM(E21*G21)","v":0}]
[null,"Parking:",null,"Trip(s) @",null,null,{"$f":"PARKING","v":3},{"$f":"SUM(C22*G22)","v":0}]
[null,"Per Diem:",null,"Breakfast",null,null,{"$f":"BREAKFAST","v":10.1},{"$f":"SUM(C23*G23)","v":0}]
[null,null,null,"Lunch",null,null,{"$f":"LUNCH","v":13.3},0]
[null,null,null,"Dinner",null,null,{"$f":"DINNER","v":23.1},0]
[null,null,null,"Lodging",null,null,{"$f":"LODGING_LUMP.SUM","v":95},0]
[null,"Incidentals:"]
[null,null,null,null,null,null,null,{"$f":"SUM(C28*E28*G28)","v":0}]
[null,null,null,null,null,null,null,0]
[null,"Reproduction:",null,"8 1/2 x 11 B & W Copies @",null,null,{"$f":"LETTERCOPIES","v":0.14000000000000001},0]
[null,null,null,"11 x 17 B & W Copies @",null,null,{"$f":"LEDGERCOPIES","v":0.34},0]
[null,null,null,"8 1/2 x 11 Color Copies @",null,null,{"$f":"LETTERCOLOR","v":0.83},0]
[null,null,null,"11 x 17 Color Copies @",null,null,{"$f":"LEDGERCOLOR","v":1.66},0]
[null,null,null,"SQ. FT. of Plots (B & W or Color)",null,"<65 SQ. FT.*",{"$f":"ROLLPLOTSshort","v":6.5},0]
[null,null,null,"SQ. FT. of Plots (B & W or Color)",null,">65 SQ. FT.*",{"$f":"ROLLPLOTSlong","v":1.5},0]
[null,null,null,"Cover(s) @",null,null,{"$f":"COVERS","v":0.5},0]
[null,null,null,"Binder(s) @",null,null,{"$f":"BINDERS","v":0.5},0]
[null,null,null,"Blueprints - 8 1/2 x 11 @",null,null,{"$f":"BLUEPRINTSLETTER","v":0.35},0]
[null,null,null,"Blueprints - 42 x 72 @",null,null,{"$f":"BLUEPRINTSLARGE","v":1.3},0]
[null,"Film and Developing:",null,"Roll(s) @",null,null,{"$f":"FILM","v":20},0]
[null,null,null,null,null,"Subtotal",null,{"$f":"SUM(H9:H40)","v":0}]
["MAPS AND DOCUMENTS:","ITEM","QTY","DESCRIPTION",null,null,"UNIT COST "]
[null,"County Tax Maps:",null,"Map(s) @",null,null,{"$f":"County_Tax_Maps","v":7},{"$f":"SUM(C43*G43)","v":0}]
[null,"USGS Maps:",null,"Map(s) @",null,null,{"$f":"USGSMAPS","v":7},{"$f":"SUM(C44*G44)","v":0}]
[null,null,null,null,null,"Subtotal",null,{"$f":"SUM(H43:H44)","v":0}]
["TECHNICAL REPORTS:","ITEM","QTY","DESCRIPTION",null,null,"UNIT COST "]
[null,"Reproduction:",null,"8 1/2 x 11 B & W Copies @",null,null,{"$f":"LETTERCOPIES","v":0.14000000000000001},{"$f":"SUM(C47*G47)","v":0}]
[null,null,null,"11 x 17 B & W Copies @",null,null,{"$f":"LEDGERCOPIES","v":0.34},0]
[null,null,null,"8 1/2 x 11 Color Copies @",null,null,{"$f":"LETTERCOLOR","v":0.83},0]
[null,null,null,"11 x 17 Color Copies @",null,null,{"$f":"LEDGERCOLOR","v":1.66},0]
[null,null,null,"SQ. FT. of Plots (B & W or Color)",null,"<65 SQ. FT.*",{"$f":"ROLLPLOTSshort","v":6.5},0]
[null,null,null,"SQ. FT. of Plots (B & W or Color)",null,">65 SQ. FT.*",{"$f":"ROLLPLOTSlong","v":1.5},0]
[null,null,null,"Cover(s) @",null,null,{"$f":"COVERS","v":0.5},0]
[null,null,null,"Binder(s) @",null,null,{"$f":"BINDERS","v":0.5},0]
[null,"Incidentals:"]
[null,null,null,null,null,null,null,{"$f":"SUM(C56*E56*G56)","v":0}]
[null,null,null,null,null,null,null,0]
[null,null,null,null,null,"Subtotal",null,{"$f":"SUM(H47:H57)","v":0}]
["DESIGN:","ITEM","QTY","DESCRIPTION",null,null,"UNIT COST "]
[null,"Reproduction:",null,"8 1/2 x 11 B & W Copies @",null,null,{"$f":"LETTERCOPIES","v":0.14000000000000001},{"$f":"SUM(C60*G60)","v":0}]
[null,null,null,"11 x 17 B & W Copies @",null,null,{"$f":"LEDGERCOPIES","v":0.34},0]
[null,null,null,"Blueprints - 8 1/2 x 11 @",null,null,{"$f":"BLUEPRINTSLETTER","v":0.35},0]
[null,null,null,"Mylar - 8 1/2 x 11 @",null,null,{"$f":"MYLARSLETTER","v":7.32},0]
[null,null,null,"Mylar - 36 x 48 @",null,null,{"$f":"MYLARSLARGE","v":28.12},0]
[null,null,null,"Prints  - 24 x 36 @",null,null,{"$f":"PRINTSLARGE","v":3},0]
[null,null,null,"Blueprints - 42 x 72 @",null,null,{"$f":"BLUEPRINTSLARGE","v":1.3},0]
[null,null,null,"SQ. FT. of Plots (B & W or Color)",null,"<65 SQ. FT.*",{"$f":"ROLLPLOTSshort","v":6.5},0]
[null,null,null,"SQ. FT. of Plots (B & W or Color)",null,">65 SQ. FT.*",{"$f":"ROLLPLOTSlong","v":1.5},0]
[null,null,null,"USGS Map(s)",null,null,{"$f":"USGSMAPS","v":7},0]
[null,null,null,null,null,"Subtotal",null,{"$f":"SUM(H60:H69)","v":0}]
["MEETINGS & PUBLIC INVOLVEMENT:","ITEM","QTY","DESCRIPTION",null,null,"UNIT COST "]
[null,"Travel:"]
[null,"Sedan",null,"Trip(s) @",null,"miles @",{"$f":"SEDAN","v":0.7},{"$f":"SUM(C73*E73*G73)","v":0}]
[null,"CarryAll",null,"Trip(s) @",null,"miles @",{"$f":"CARRYALL","v":0.72},{"$f":"SUM(C74*E74*G74)","v":0}]
[null,"Car Rental",null,null,null,"days @",{"$f":"CARRENTAL","v":50},{"$f":"SUM(E75*G75)","v":0}]
[null,"Gas for Rental",null,null,null,"miles @",{"$f":"GASforRENTAL","v":0.2},{"$f":"SUM(E76*G76)","v":0}]
[null,"Parking:",null,"Trip(s) @",null,null,{"$f":"PARKING","v":3},{"$f":"SUM(C77*G77)","v":0}]
[null,"Per Diem:",null,"Breakfast",null,null,{"$f":"BREAKFAST","v":10.1},{"$f":"SUM(C78*G78)","v":0}]
[null,null,null,"Lunch",null,null,{"$f":"LUNCH","v":13.3},{"$f":"SUM(C79*G79)","v":0}]
[null,null,null,"Dinner",null,null,{"$f":"DINNER","v":23.1},{"$f":"SUM(C80*G80)","v":0}]
[null,null,null,"Lodging",null,null,{"$f":"LODGING_LUMP.SUM","v":95},{"$f":"SUM(C81*G81)","v":0}]
[null,"Workshop "]
[null,"  - Reproduction",null,"8 1/2 x 11 B & W Copies @",null,"Handouts",{"$f":"LETTERCOPIES","v":0.14000000000000001},{"$f":"SUM(C83*E83*G83)","v":0}]
[null,null,null,"11 x 17 B & W Copies @",null,"Handouts",{"$f":"LEDGERCOPIES","v":0.34},{"$f":"SUM(C84*E84*G84)","v":0}]
[null,null,null,"8 1/2 x 11 Color Copies @",null,null,{"$f":"LETTERCOLOR","v":0.83},{"$f":"SUM(C85*G85)","v":0}]
[null,null,null,"11 x 17 Color Copies @",null,null,{"$f":"LEDGERCOLOR","v":1.66},0]
[null,null,null,"SQ. FT. of Plots (B & W or Color)",null,"<65 SQ. FT.*",{"$f":"ROLLPLOTSshort","v":6.5},0]
[null,null,null,"SQ. FT. of Plots (B & W or Color)",null,">65 SQ. FT.*",{"$f":"ROLLPLOTSlong","v":1.5},0]
[null,null,null,"SQ. FT. Foam Mounting Board @",null,null,{"$f":"FOAMMOUNTINGBOARD","v":1.25},0]
[null,"Presentation Materials:",null,"Misc. Workshop Supplies @",null,"per workshop",{"$f":"MISCWORKSHOPSUPPLIES","v":50},0]
[null,"Mailing Labels:",null,"Laser Peel & Stick (box)",null,"750 per box",{"$f":"LASERPEELandSTICK","v":4},0]
[null,"Postage:"]
[null,"  - Public Workshops:",null,"Notice or Newsletter @",null,"copies @",{"$f":"POSTAGE","v":0.49},{"$f":"SUM(C93*E93*G93)","v":0}]
[null,null,null,null,null,"Subtotal",null,{"$f":"SUM(H72:H93)","v":0}]
["Miscellaneous Other","ITEM","QTY","DESCRIPTION",null,null,"UNIT COST "]
[null,null,null,null,null,null,null,{"$f":"SUM(C96*G96)","v":0}]
[null,null,null,null,null,null,null,{"$f":"SUM(C97*G97)","v":0}]
[null,null,null,null,null,null,null,0]
[null,null,null,null,null,null,null,0]
[null,null,null,null,null,null,null,0]
[null,null,null,null,null,null,null,0]
[null,null,null,null,null,null,null,0]
[null,null,null,null,null,null,null,{"$f":"SUM(C103*G103)","v":0}]
[null,null,null,null,null,null,null,{"$f":"SUM(C104*G104)","v":0}]
[null,null,null,null,null,null,null,{"$f":"SUM(C105*G105)","v":0}]
[null,null,null,null,null,"Subtotal",null,{"$f":"SUM(H96:H105)","v":0}]
[]
[null,null,null,null,null,"TOTAL",null,{"$f":"SUM(H41+H45+H58+H70+H94+H106)","v":0}]
[]
[null,"* Sum of all plots "]

{"sheet":"EN-Air","index":20,"n_rows":147,"n_cols":24,"rows_kept":147,"cut":false,"hidden":true,"merged":[[7,6,10,6],[7,7,10,7],[83,23,83,24],[96,23,96,24],[28,23,28,24],[77,23,77,24],[37,23,37,24],[38,23,38,24],[39,23,39,24],[95,23,95,24],[17,23,17,24],[13,23,13,24],[14,23,14,24],[15,23,15,24],[9,23,9,24],[23,23,23,24],[16,23,16,24],[18,23,18,24],[19,23,19,24],[20,23,20,24],[29,23,29,24],[27,23,27,24],[91,23,91,24],[7,15,10,15],[100,23,100,24],[36,23,36,24],[35,23,35,24],[30,23,30,24],[31,23,31,24],[32,23,32,24],[94,23,94,24],[93,23,93,24],[57,23,57,24],[73,23,73,24],[74,23,74,24],[81,23,81,24],[82,23,82,24],[86,23,86,24],[87,23,87,24],[97,23,97,24],[72,23,72,24],[48,23,48,24],[53,23,53,24],[62,23,62,24],[68,23,68,24],[66,23,66,24],[70,23,70,24],[55,23,55,24],[7,16,10,16],[7,17,10,17],[7,18,10,18],[7,19,10,19],[47,23,47,24],[25,23,25,24],[84,23,84,24],[85,23,85,24],[26,23,26,24],[71,23,71,24],[58,23,58,24],[45,23,45,24],[46,23,46,24],[24,23,24,24],[42,23,42,24],[41,23,41,24],[12,23,12,24],[146,8,146,9],[146,10,146,11],[139,3,139,6],[139,8,139,13],[140,8,140,9],[140,10,140,11],[141,8,141,9],[141,10,141,11],[109,23,109,24],[144,8,144,13],[145,8,145,9],[145,10,145,11],[120,23,120,24],[118,23,118,24],[110,23,110,24],[111,23,111,24],[101,23,101,24],[102,23,102,24],[104,23,104,24],[92,23,92,24],[98,23,98,24],[33,23,33,24],[117,23,117,24],[119,23,119,24],[115,23,115,24],[113,23,113,24],[114,23,114,24],[34,23,34,24],[44,23,44,24],[43,23,43,24],[40,23,40,24],[80,23,80,24],[54,23,54,24],[103,23,103,24],[106,23,106,24],[105,23,105,24],[107,23,107,24],[108,23,108,24],[89,23,89,24],[90,23,90,24],[135,1,136,1],[135,3,136,4],[49,23,49,24],[50,23,50,24],[51,23,51,24],[52,23,52,24],[112,23,112,24],[116,23,116,24],[65,23,65,24],[121,23,121,24],[59,23,59,24],[60,23,60,24],[61,23,61,24],[63,23,63,24],[64,23,64,24],[67,23,67,24],[69,23,69,24],[99,23,99,24],[56,23,56,24],[88,23,88,24],[75,23,75,24],[76,23,76,24],[78,23,78,24],[79,23,79,24],[0,0,1,24],[3,1,3,4],[3,6,3,7],[3,10,3,11],[3,20,3,21],[21,23,21,24],[22,23,22,24],[5,3,5,19],[3,13,3,14],[2,1,2,4],[2,6,2,7],[2,10,2,11],[2,20,2,21],[2,13,2,14],[7,13,10,13],[7,14,10,14],[7,8,10,8],[7,9,10,9],[7,10,10,10],[7,11,10,11],[7,12,10,12],[7,3,10,3],[7,4,10,4],[7,5,10,5]]}
["AIR QUALITY DESIGN BREAKDOWN WORKSHEET"]
[]
["PROJECT DESCRIPTION: ",{"$f":"PROJECT.DESCRIPTION","v":0},null,null,null,"FIRM:  ",{"$f":"PDEA_PLANNING_AIR.QUALITY_CONSULTANT_NAME","v":"CONSULTANT NAME"},null,"TASK ORDER NUMBER:",null,{"$f":"TASK.ORDER.NUMBER","v":0},null,"DATE PREPARED:",{"$f":"IF(SCOPE.MANDAY.ESTIMATE.PREPARED.BY.DATE=\"\",\"\",SCOPE.MANDAY.ESTIMATE.PREPARED.BY.DATE)","v":""}]
["PREPARED BY:  ",{"$f":"IF(SCOPE.MANDAY.ESTIMATE.PREPARED.BY=\"\",\"\",SCOPE.MANDAY.ESTIMATE.PREPARED.BY)","v":""},null,null,null,"TIP NUMBER:",{"$f":"TIP.NUMBER","v":0},null,"WBS NUMBER:",null,{"$f":"WBS.NUMBER","v":""},null,"REVISION DATE:",{"$f":"IF(SCOPE.MANDAY.ESTIMATE.APPROVED.BY.DATE=\"\",\"\",SCOPE.MANDAY.ESTIMATE.APPROVED.BY.DATE)","v":""}]
[]
[null,null,null,"ESTIMATED WORK DAYS"]
[null,null,"Employee",{"$f":"IF('PEF CLASSIFICATION SHEET'!$D121=\"\",\"\",LEFT('PEF CLASSIFICATION SHEET'!$D121,4))","v":""},{"$f":"IF('PEF CLASSIFICATION SHEET'!$D122=\"\",\"\",LEFT('PEF CLASSIFICATION SHEET'!$D122,4))","v":""},{"$f":"IF('PEF CLASSIFICATION SHEET'!$D123=\"\",\"\",LEFT('PEF CLASSIFICATION SHEET'!$D123,4))","v":""},{"$f":"IF('PEF CLASSIFICATION SHEET'!$D124=\"\",\"\",LEFT('PEF CLASSIFICATION SHEET'!$D124,4))","v":""},{"$f":"IF('PEF CLASSIFICATION SHEET'!$D125=\"\",\"\",LEFT('PEF CLASSIFICATION SHEET'!$D125,4))","v":""},{"$f":"IF('PEF CLASSIFICATION SHEET'!$D126=\"\",\"\",LEFT('PEF CLASSIFICATION SHEET'!$D126,4))","v":""},{"$f":"IF('PEF CLASSIFICATION SHEET'!$D127=\"\",\"\",LEFT('PEF CLASSIFICATION SHEET'!$D127,4))","v":""},{"$f":"IF('PEF CLASSIFICATION SHEET'!$D128=\"\",\"\",LEFT('PEF CLASSIFICATION SHEET'!$D128,4))","v":""},{"$f":"IF('PEF CLASSIFICATION SHEET'!$D129=\"\",\"\",LEFT('PEF CLASSIFICATION SHEET'!$D129,4))","v":""},{"$f":"IF('PEF CLASSIFICATION SHEET'!$D130=\"\",\"\",LEFT('PEF CLASSIFICATION SHEET'!$D130,4))","v":""},{"$f":"IF('PEF CLASSIFICATION SHEET'!$D131=\"\",\"\",LEFT('PEF CLASSIFICATION SHEET'!$D131,4))","v":""},{"$f":"IF('PEF CLASSIFICATION SHEET'!$D132=\"\",\"\",LEFT('PEF CLASSIFICATION SHEET'!$D132,4))","v":""},{"$f":"IF('PEF CLASSIFICATION SHEET'!$D133=\"\",\"\",LEFT('PEF CLASSIFICATION SHEET'!$D133,4))","v":""},{"$f":"IF('PEF CLASSIFICATION SHEET'!D134=\"\",\"\",LEFT('PEF CLASSIFICATION SHEET'!D134,4))","v":""},{"$f":"IF('PEF CLASSIFICATION SHEET'!D135=\"\",\"\",LEFT('PEF CLASSIFICATION SHEET'!D135,4))","v":""},{"$f":"IF('PEF CLASSIFICATION SHEET'!D136=\"\",\"\",LEFT('PEF CLASSIFICATION SHEET'!D136,4))","v":""},{"$f":"IF('PEF CLASSIFICATION SHEET'!D137=\"\",\"\",LEFT('PEF CLASSIFICATION SHEET'!D137,4))","v":""}]
[null,null,null,{"$f":"IF('PEF CLASSIFICATION SHEET'!$C121=\"\",\"\",'PEF CLASSIFICATION SHEET'!$C121)","v":""},{"$f":"IF('PEF CLASSIFICATION SHEET'!$C122=\"\",\"\",'PEF CLASSIFICATION SHEET'!$C122)","v":""},{"$f":"IF('PEF CLASSIFICATION SHEET'!$C123=\"\",\"\",'PEF CLASSIFICATION SHEET'!$C123)","v":""},{"$f":"IF('PEF CLASSIFICATION SHEET'!$C124=\"\",\"\",'PEF CLASSIFICATION SHEET'!$C124)","v":""},{"$f":"IF('PEF CLASSIFICATION SHEET'!$C125=\"\",\"\",'PEF CLASSIFICATION SHEET'!$C125)","v":""},{"$f":"IF('PEF CLASSIFICATION SHEET'!$C126=\"\",\"\",'PEF CLASSIFICATION SHEET'!$C126)","v":""},{"$f":"IF('PEF CLASSIFICATION SHEET'!$C127=\"\",\"\",'PEF CLASSIFICATION SHEET'!$C127)","v":""},{"$f":"IF('PEF CLASSIFICATION SHEET'!$C128=\"\",\"\",'PEF CLASSIFICATION SHEET'!$C128)","v":""},{"$f":"IF('PEF CLASSIFICATION SHEET'!$C129=\"\",\"\",'PEF CLASSIFICATION SHEET'!$C129)","v":""},{"$f":"IF('PEF CLASSIFICATION SHEET'!$C130=\"\",\"\",'PEF CLASSIFICATION SHEET'!$C130)","v":""},{"$f":"IF('PEF CLASSIFICATION SHEET'!$C131=\"\",\"\",'PEF CLASSIFICATION SHEET'!$C131)","v":""},{"$f":"IF('PEF CLASSIFICATION SHEET'!$C132=\"\",\"\",'PEF CLASSIFICATION SHEET'!$C132)","v":""},{"$f":"IF('PEF CLASSIFICATION SHEET'!$C133=\"\",\"\",'PEF CLASSIFICATION SHEET'!$C133)","v":""},{"$f":"IF('PEF CLASSIFICATION SHEET'!C134=\"\",\"\",'PEF CLASSIFICATION SHEET'!C134)","v":""},{"$f":"IF('PEF CLASSIFICATION SHEET'!C135=\"\",\"\",'PEF CLASSIFICATION SHEET'!C135)","v":""},{"$f":"IF('PEF CLASSIFICATION SHEET'!C136=\"\",\"\",'PEF CLASSIFICATION SHEET'!C136)","v":""},{"$f":"IF('PEF CLASSIFICATION SHEET'!C137=\"\",\"\",'PEF CLASSIFICATION SHEET'!C137)","v":""},"SUB-","%","PEF"]
[null,null,"Classification",null,null,null,null,null,null,null,null,null,null,null,null,null,null,null,null,null,"TOTAL","OF","ESTIMATE"]
["TASK","TASK DESCRIPTION",null,null,null,null,null,null,null,null,null,null,null,null,null,null,null,null,null,null,null,"PROJECT",null,"COMMENTS"]
["NO."]
["2EN2","Assess Human Environmental Impacts-Air Quality"]
[17,"Project-Level Air Quality Analysis",null,null,null,null,null,null,null,null,null,null,null,null,null,null,null,null,null,null,{"$f":"IF(B13=\"\",0,IF((SUM(D13:T13)=0),\"\",SUM(D13:T13)))","v":""},{"$f":"IF(U13=\"\",\"\",SUM((U13/U$123)))","v":""}]
[null,"Task Management ",null,null,null,null,null,null,null,null,null,null,null,null,null,null,null,null,null,null,{"$f":"IF(B14=\"\",0,IF((SUM(D14:T14)=0),\"\",SUM(D14:T14)))","v":""},{"$f":"IF(U14=\"\",\"\",SUM((U14/U$123)))","v":""}]
[null,"Complete QC/QA Procedures",null,null,null,null,null,null,null,null,null,null,null,null,null,null,null,null,null,null,"",""]
[null,"Other Tasks:",null,null,null,null,null,null,null,null,null,null,null,null,null,null,null,null,null,null,"",""]
[null,null,null,null,null,null,null,null,null,null,null,null,null,null,null,null,null,null,null,null,0,{"$error":"#DIV/0!"}]
[null,null,null,null,null,null,null,null,null,null,null,null,null,null,null,null,null,null,null,null,0,{"$error":"#DIV/0!"}]
[null,null,null,null,null,null,null,null,null,null,null,null,null,null,null,null,null,null,null,null,0,{"$error":"#DIV/0!"}]
[null,null,null,null,null,null,null,null,null,null,null,null,null,null,null,null,null,null,null,null,0,{"$error":"#DIV/0!"}]
[null,null,null,null,null,null,null,null,null,null,null,null,null,null,null,null,null,null,null,null,0,{"$error":"#DIV/0!"}]
[null,null,null,null,null,null,null,null,null,null,null,null,null,null,null,null,null,null,null,null,0,{"$error":"#DIV/0!"}]
[null,null,null,null,null,null,null,null,null,null,null,null,null,null,null,null,null,null,null,null,0,{"$error":"#DIV/0!"}]
[null,null,null,null,null,null,null,null,null,null,null,null,null,null,null,null,null,null,null,null,0,{"$error":"#DIV/0!"}]
[null,null,null,null,null,null,null,null,null,null,null,null,null,null,null,null,null,null,null,null,0,{"$error":"#DIV/0!"}]
[null,null,null,null,null,null,null,null,null,null,null,null,null,null,null,null,null,null,null,null,0,{"$error":"#DIV/0!"}]
[null,null,null,null,null,null,null,null,null,null,null,null,null,null,null,null,null,null,null,null,0,{"$error":"#DIV/0!"}]
[null,null,null,null,null,null,null,null,null,null,null,null,null,null,null,null,null,null,null,null,0,{"$error":"#DIV/0!"}]
[null,null,null,null,null,null,null,null,null,null,null,null,null,null,null,null,null,null,null,null,0,{"$error":"#DIV/0!"}]
[null,null,null,null,null,null,null,null,null,null,null,null,null,null,null,null,null,null,null,null,0,{"$error":"#DIV/0!"}]
[null,null,null,null,null,null,null,null,null,null,null,null,null,null,null,null,null,null,null,null,0,{"$error":"#DIV/0!"}]
[null,null,null,null,null,null,null,null,null,null,null,null,null,null,null,null,null,null,null,null,0,{"$error":"#DIV/0!"}]
[null,null,null,null,null,null,null,null,null,null,null,null,null,null,null,null,null,null,null,null,0,{"$error":"#DIV/0!"}]
[null,null,null,null,null,null,null,null,null,null,null,null,null,null,null,null,null,null,null,null,0,{"$error":"#DIV/0!"}]
[null,null,null,null,null,null,null,null,null,null,null,null,null,null,null,null,null,null,null,null,0,{"$error":"#DIV/0!"}]
[null,null,null,null,null,null,null,null,null,null,null,null,null,null,null,null,null,null,null,null,0,{"$error":"#DIV/0!"}]
[null,null,null,null,null,null,null,null,null,null,null,null,null,null,null,null,null,null,null,null,0,{"$error":"#DIV/0!"}]
[null,null,null,null,null,null,null,null,null,null,null,null,null,null,null,null,null,null,null,null,0,{"$error":"#DIV/0!"}]
[null,null,null,null,null,null,null,null,null,null,null,null,null,null,null,null,null,null,null,null,0,{"$error":"#DIV/0!"}]
[null,null,null,null,null,null,null,null,null,null,null,null,null,null,null,null,null,null,null,null,0,{"$error":"#DIV/0!"}]
[null,null,null,null,null,null,null,null,null,null,null,null,null,null,null,null,null,null,null,null,0,{"$error":"#DIV/0!"}]
[null,null,null,null,null,null,null,null,null,null,null,null,null,null,null,null,null,null,null,null,0,{"$error":"#DIV/0!"}]
[null,null,null,null,null,null,null,null,null,null,null,null,null,null,null,null,null,null,null,null,0,{"$error":"#DIV/0!"}]
[null,null,null,null,null,null,null,null,null,null,null,null,null,null,null,null,null,null,null,null,0,{"$error":"#DIV/0!"}]
[null,null,null,null,null,null,null,null,null,null,null,null,null,null,null,null,null,null,null,null,0,{"$error":"#DIV/0!"}]
[null,null,null,null,null,null,null,null,null,null,null,null,null,null,null,null,null,null,null,null,0,{"$error":"#DIV/0!"}]
[null,null,null,null,null,null,null,null,null,null,null,null,null,null,null,null,null,null,null,null,0,{"$error":"#DIV/0!"}]
[null,null,null,null,null,null,null,null,null,null,null,null,null,null,null,null,null,null,null,null,0,{"$error":"#DIV/0!"}]
[null,null,null,null,null,null,null,null,null,null,null,null,null,null,null,null,null,null,null,null,0,{"$error":"#DIV/0!"}]
[null,null,null,null,null,null,null,null,null,null,null,null,null,null,null,null,null,null,null,null,0,{"$error":"#DIV/0!"}]
[null,null,null,null,null,null,null,null,null,null,null,null,null,null,null,null,null,null,null,null,0,{"$error":"#DIV/0!"}]
[null,null,null,null,null,null,null,null,null,null,null,null,null,null,null,null,null,null,null,null,0,{"$error":"#DIV/0!"}]
[null,null,null,null,null,null,null,null,null,null,null,null,null,null,null,null,null,null,null,null,0,{"$error":"#DIV/0!"}]
[null,null,null,null,null,null,null,null,null,null,null,null,null,null,null,null,null,null,null,null,0,{"$error":"#DIV/0!"}]
[null,null,null,null,null,null,null,null,null,null,null,null,null,null,null,null,null,null,null,null,0,{"$error":"#DIV/0!"}]
[null,null,null,null,null,null,null,null,null,null,null,null,null,null,null,null,null,null,null,null,0,{"$error":"#DIV/0!"}]
[null,null,null,null,null,null,null,null,null,null,null,null,null,null,null,null,null,null,null,null,0,{"$error":"#DIV/0!"}]
[null,null,null,null,null,null,null,null,null,null,null,null,null,null,null,null,null,null,null,null,0,{"$error":"#DIV/0!"}]
[null,null,null,null,null,null,null,null,null,null,null,null,null,null,null,null,null,null,null,null,0,{"$error":"#DIV/0!"}]
[null,null,null,null,null,null,null,null,null,null,null,null,null,null,null,null,null,null,null,null,0,{"$error":"#DIV/0!"}]
[null,null,null,null,null,null,null,null,null,null,null,null,null,null,null,null,null,null,null,null,0,{"$error":"#DIV/0!"}]
[null,null,null,null,null,null,null,null,null,null,null,null,null,null,null,null,null,null,null,null,0,{"$error":"#DIV/0!"}]
[null,null,null,null,null,null,null,null,null,null,null,null,null,null,null,null,null,null,null,null,0,{"$error":"#DIV/0!"}]
[null,null,null,null,null,null,null,null,null,null,null,null,null,null,null,null,null,null,null,null,0,{"$error":"#DIV/0!"}]
[null,null,null,null,null,null,null,null,null,null,null,null,null,null,null,null,null,null,null,null,0,{"$error":"#DIV/0!"}]
[null,null,null,null,null,null,null,null,null,null,null,null,null,null,null,null,null,null,null,null,0,{"$error":"#DIV/0!"}]
[null,null,null,null,null,null,null,null,null,null,null,null,null,null,null,null,null,null,null,null,0,{"$error":"#DIV/0!"}]
[null,null,null,null,null,null,null,null,null,null,null,null,null,null,null,null,null,null,null,null,0,{"$error":"#DIV/0!"}]
[null,null,null,null,null,null,null,null,null,null,null,null,null,null,null,null,null,null,null,null,0,{"$error":"#DIV/0!"}]
[null,null,null,null,null,null,null,null,null,null,null,null,null,null,null,null,null,null,null,null,0,{"$error":"#DIV/0!"}]
[null,null,null,null,null,null,null,null,null,null,null,null,null,null,null,null,null,null,null,null,0,{"$error":"#DIV/0!"}]
[null,null,null,null,null,null,null,null,null,null,null,null,null,null,null,null,null,null,null,null,0,{"$error":"#DIV/0!"}]
[null,null,null,null,null,null,null,null,null,null,null,null,null,null,null,null,null,null,null,null,0,{"$error":"#DIV/0!"}]
[null,null,null,null,null,null,null,null,null,null,null,null,null,null,null,null,null,null,null,null,0,{"$error":"#DIV/0!"}]
[null,null,null,null,null,null,null,null,null,null,null,null,null,null,null,null,null,null,null,null,0,{"$error":"#DIV/0!"}]
[null,null,null,null,null,null,null,null,null,null,null,null,null,null,null,null,null,null,null,null,0,{"$error":"#DIV/0!"}]
[null,null,null,null,null,null,null,null,null,null,null,null,null,null,null,null,null,null,null,null,0,{"$error":"#DIV/0!"}]
[null,null,null,null,null,null,null,null,null,null,null,null,null,null,null,null,null,null,null,null,{"$f":"IF(B78=\"\",0,IF((SUM(D78:T78)=0),\"\",SUM(D78:T78)))","v":0},{"$f":"IF(U78=\"\",\"\",SUM((U78/U$123)))","v":{"$error":"#DIV/0!"}}]
[null,null,null,null,null,null,null,null,null,null,null,null,null,null,null,null,null,null,null,null,0,{"$error":"#DIV/0!"}]
[null,null,null,null,null,null,null,null,null,null,null,null,null,null,null,null,null,null,null,null,0,{"$error":"#DIV/0!"}]
[null,null,null,null,null,null,null,null,null,null,null,null,null,null,null,null,null,null,null,null,0,{"$error":"#DIV/0!"}]
[null,null,null,null,null,null,null,null,null,null,null,null,null,null,null,null,null,null,null,null,0,{"$error":"#DIV/0!"}]
[null,null,null,null,null,null,null,null,null,null,null,null,null,null,null,null,null,null,null,null,0,{"$error":"#DIV/0!"}]
[null,null,null,null,null,null,null,null,null,null,null,null,null,null,null,null,null,null,null,null,0,{"$error":"#DIV/0!"}]
[null,null,null,null,null,null,null,null,null,null,null,null,null,null,null,null,null,null,null,null,0,{"$error":"#DIV/0!"}]
[null,null,null,null,null,null,null,null,null,null,null,null,null,null,null,null,null,null,null,null,0,{"$error":"#DIV/0!"}]
[null,null,null,null,null,null,null,null,null,null,null,null,null,null,null,null,null,null,null,null,0,{"$error":"#DIV/0!"}]
[null,null,null,null,null,null,null,null,null,null,null,null,null,null,null,null,null,null,null,null,0,{"$error":"#DIV/0!"}]
[null,null,null,null,null,null,null,null,null,null,null,null,null,null,null,null,null,null,null,null,0,{"$error":"#DIV/0!"}]
[null,null,null,null,null,null,null,null,null,null,null,null,null,null,null,null,null,null,null,null,0,{"$error":"#DIV/0!"}]
[null,null,null,null,null,null,null,null,null,null,null,null,null,null,null,null,null,null,null,null,0,{"$error":"#DIV/0!"}]
[null,null,null,null,null,null,null,null,null,null,null,null,null,null,null,null,null,null,null,null,0,{"$error":"#DIV/0!"}]
[null,null,null,null,null,null,null,null,null,null,null,null,null,null,null,null,null,null,null,null,0,{"$error":"#DIV/0!"}]
[null,null,null,null,null,null,null,null,null,null,null,null,null,null,null,null,null,null,null,null,0,{"$error":"#DIV/0!"}]
[null,null,null,null,null,null,null,null,null,null,null,null,null,null,null,null,null,null,null,null,0,{"$error":"#DIV/0!"}]
[null,null,null,null,null,null,null,null,null,null,null,null,null,null,null,null,null,null,null,null,0,{"$error":"#DIV/0!"}]
[null,null,null,null,null,null,null,null,null,null,null,null,null,null,null,null,null,null,null,null,0,{"$error":"#DIV/0!"}]
[null,null,null,null,null,null,null,null,null,null,null,null,null,null,null,null,null,null,null,null,0,{"$error":"#DIV/0!"}]
[null,null,null,null,null,null,null,null,null,null,null,null,null,null,null,null,null,null,null,null,0,{"$error":"#DIV/0!"}]
[null,null,null,null,null,null,null,null,null,null,null,null,null,null,null,null,null,null,null,null,0,{"$error":"#DIV/0!"}]
[null,null,null,null,null,null,null,null,null,null,null,null,null,null,null,null,null,null,null,null,0,{"$error":"#DIV/0!"}]
[null,null,null,null,null,null,null,null,null,null,null,null,null,null,null,null,null,null,null,null,0,{"$error":"#DIV/0!"}]
[null,null,null,null,null,null,null,null,null,null,null,null,null,null,null,null,null,null,null,null,0,{"$error":"#DIV/0!"}]
[null,null,null,null,null,null,null,null,null,null,null,null,null,null,null,null,null,null,null,null,0,{"$error":"#DIV/0!"}]
[null,null,null,null,null,null,null,null,null,null,null,null,null,null,null,null,null,null,null,null,0,{"$error":"#DIV/0!"}]
[null,null,null,null,null,null,null,null,null,null,null,null,null,null,null,null,null,null,null,null,0,{"$error":"#DIV/0!"}]
[null,null,null,null,null,null,null,null,null,null,null,null,null,null,null,null,null,null,null,null,0,{"$error":"#DIV/0!"}]
[null,null,null,null,null,null,null,null,null,null,null,null,null,null,null,null,null,null,null,null,0,{"$error":"#DIV/0!"}]
[null,null,null,null,null,null,null,null,null,null,null,null,null,null,null,null,null,null,null,null,0,{"$error":"#DIV/0!"}]
[null,null,null,null,null,null,null,null,null,null,null,null,null,null,null,null,null,null,null,null,0,{"$error":"#DIV/0!"}]
[null,null,null,null,null,null,null,null,null,null,null,null,null,null,null,null,null,null,null,null,0,{"$error":"#DIV/0!"}]
[null,null,null,null,null,null,null,null,null,null,null,null,null,null,null,null,null,null,null,null,0,{"$error":"#DIV/0!"}]
[null,null,null,null,null,null,null,null,null,null,null,null,null,null,null,null,null,null,null,null,0,{"$error":"#DIV/0!"}]
[null,null,null,null,null,null,null,null,null,null,null,null,null,null,null,null,null,null,null,null,0,{"$error":"#DIV/0!"}]
[null,null,null,null,null,null,null,null,null,null,null,null,null,null,null,null,null,null,null,null,0,{"$error":"#DIV/0!"}]
[null,null,null,null,null,null,null,null,null,null,null,null,null,null,null,null,null,null,null,null,0,{"$error":"#DIV/0!"}]
[null,null,null,null,null,null,null,null,null,null,null,null,null,null,null,null,null,null,null,null,0,{"$error":"#DIV/0!"}]
[null,null,null,null,null,null,null,null,null,null,null,null,null,null,null,null,null,null,null,null,0,{"$error":"#DIV/0!"}]
[null,null,null,null,null,null,null,null,null,null,null,null,null,null,null,null,null,null,null,null,0,{"$error":"#DIV/0!"}]
[null,null,null,null,null,null,null,null,null,null,null,null,null,null,null,null,null,null,null,null,0,{"$error":"#DIV/0!"}]
[null,null,null,null,null,null,null,null,null,null,null,null,null,null,null,null,null,null,null,null,0,{"$error":"#DIV/0!"}]
[null,null,null,null,null,null,null,null,null,null,null,null,null,null,null,null,null,null,null,null,0,{"$error":"#DIV/0!"}]
[null,"TOTAL WORKDAYS/CATEGORY:",null,{"$f":"(SUM(D12:D122))","v":0},0,0,0,0,0,0,0,0,0,0,0,0,0,0,0,0,0,{"$f":"SUM(V12:V122)","v":{"$error":"#DIV/0!"}},{"$f":"(SUM(W12:W122))","v":0}]
[null,"HOURLY SALARY RATE:",null,{"$f":"'PEF CLASSIFICATION SHEET'!$E121","v":0},{"$f":"'PEF CLASSIFICATION SHEET'!$E122","v":0},{"$f":"'PEF CLASSIFICATION SHEET'!$E123","v":0},{"$f":"'PEF CLASSIFICATION SHEET'!$E124","v":0},{"$f":"'PEF CLASSIFICATION SHEET'!$E125","v":0},{"$f":"'PEF CLASSIFICATION SHEET'!$E126","v":0},{"$f":"'PEF CLASSIFICATION SHEET'!$E127","v":0},{"$f":"'PEF CLASSIFICATION SHEET'!$E128","v":0},{"$f":"'PEF CLASSIFICATION SHEET'!$E129","v":0},{"$f":"'PEF CLASSIFICATION SHEET'!$E130","v":0},{"$f":"'PEF CLASSIFICATION SHEET'!$E131","v":0},{"$f":"'PEF CLASSIFICATION SHEET'!$E132","v":0},{"$f":"'PEF CLASSIFICATION SHEET'!$E133","v":0},{"$f":"'PEF CLASSIFICATION SHEET'!E134","v":0},{"$f":"'PEF CLASSIFICATION SHEET'!E135","v":0},{"$f":"'PEF CLASSIFICATION SHEET'!E136","v":0},{"$f":"'PEF CLASSIFICATION SHEET'!E137","v":0}]
[null,"RATES PER DAY:",null,{"$f":"D124*8","v":0},0,0,0,0,0,0,0,0,0,0,0,{"$f":"P124*8","v":0},0,0,0,0]
[null,"PAYROLL BURDEN:",null,{"$f":"SUM(D123*D125)","v":0},0,0,0,0,0,0,0,0,0,0,0,{"$f":"SUM(P123*P125)","v":0},0,0,0,0]
[null,"TOTAL WORKDAYS:",null,{"$f":"SUM(D123:T123)","v":0}]
[null,"TOTAL PAYROLL BURDEN:",null,{"$f":"SUM(D126:T126)","v":0}]
[null,"AVERAGE COST PER HOUR:",null,{"$f":"SUM(D128/(D127*8))","v":{"$error":"#DIV/0!"}}]
[null,"GENERAL OVERHEAD:",{"$f":"PDEA_PLANNING_AIR.QUALITY_CONSULTANT_OVERHEAD","v":0},{"$f":"SUM(D128*C130)","v":0}]
[null,"SUBTOTAL:",null,{"$f":"SUM(D128+D130)","v":0}]
[null,"COMPARATIVE FEE:",{"$f":"PDEA_PLANNING_AIR.QUALITY_CONSULTANT_FEE","v":0.09},{"$f":"SUM(D131*C132)","v":0}]
[null,"FACILITIES COST OF CAPITAL:",{"$f":"PDEA_PLANNING_AIR.QUALITY_CONSULTANT_COSTofCAPITAL","v":0},{"$f":"SUM(D128*C133)","v":0}]
[null,"TOTAL:",null,{"$f":"SUM(D131:D133)","v":0}]
[null,"DIRECT EXPENSES:",null,{"$f":"PDEA_PLANNING_AIR.QUALITY_DIRECT_NONSALARY_TOTAL","v":0}]
[null,"AIR QUALITY GRAND TOTAL:",null,{"$f":"SUM(D134:D135)","v":0}]
[]
[]
[]
[null,"Costs",null,"Workdays",null,null,null,null,"Dollars"]
[null,null,null,"EN Air Quality","PEF","Delta ","Delta %",null,"EN Air Quality",null,"PEF",null,"Delta ","Delta %"]
[null,null,null,null,null,{"$f":"SUM(E142-D142)","v":0},{"$f":"SUM((F142/D142)*100)","v":{"$error":"#DIV/0!"}},null,null,null,null,null,{"$f":"SUM(K142-I142)","v":0},{"$f":"SUM((M142/I142)*100)","v":{"$error":"#DIV/0!"}}]
[]
[]
[null,null,null,null,null,null,null,"Directs","Dollars"]
[null,null,null,null,null,null,null,null,"EN Air Quality",null,"PEF",null,"Delta ","Delta %"]
[null,null,null,null,null,null,null,null,null,null,null,null,{"$f":"SUM(K147-I147)","v":0},{"$f":"SUM((M147/I147)*100)","v":{"$error":"#DIV/0!"}}]

{"sheet":"EN-Air-Exp","index":21,"n_rows":102,"n_cols":8,"rows_kept":102,"cut":false,"hidden":true,"merged":[[0,0,0,7],[6,1,6,3],[6,4,6,6],[3,1,3,7],[4,1,4,3],[4,6,4,7],[5,1,5,3],[5,6,5,7],[2,1,2,3]]}
["AIR QUALITY DIRECT EXPENSES"]
[]
["FIRM:",{"$f":"'EN-Air'!G3","v":"CONSULTANT NAME"}]
["PROJECT DESCRIPTION: ",{"$f":"PROJECT.DESCRIPTION","v":0}]
["PREPARED BY:  ",{"$f":"AIR.QUALITY.PREPARED.BY","v":""},null,null,"TASK ORDER NUMBER:",null,{"$f":"TASK.ORDER.NUMBER","v":0}]
["TIP NUMBER:",{"$f":"TIP.NUMBER","v":0},null,null,"WBS NUMBER:",null,{"$f":"WBS.NUMBER","v":""}]
["DATE PREPARED:",{"$f":"IF('EN-Air'!N3=\"\",\"\",MAX('EN-Air'!N3:'EN-Air'!N4))","v":""},null,null,"REVIEWED BY UNIT HEAD ON:",null,null,{"$f":"IF(SCOPE.MANDAY.ESTIMATE.APPROVED.BY.DATE=\"\",\"\",SCOPE.MANDAY.ESTIMATE.APPROVED.BY.DATE)","v":""}]
["GENERAL PROJECT WORK:","ITEM","QTY","DESCRIPTION",null,null,"UNIT COST "]
[null,"Travel:"]
[null,"Sedan",null,"Trip(s) @",null,"miles @",{"$f":"SEDAN","v":0.7},{"$f":"SUM(C10*E10*G10)","v":0}]
[null,"Carry All",null,"Trip(s) @",null,"miles @",{"$f":"CARRYALL","v":0.72},{"$f":"SUM(C11*E11*G11)","v":0}]
[null,"Car Rental",null,null,null,"days @ ",{"$f":"CARRENTAL","v":50},{"$f":"SUM(E12*G12)","v":0}]
[null,"Gas for Rental",null,null,null,"miles @",{"$f":"GASforRENTAL","v":0.2},{"$f":"SUM(E13*G13)","v":0}]
[null,"Parking:",null,"Trip(s) @",null,null,{"$f":"PARKING","v":3},{"$f":"SUM(C14*G14)","v":0}]
[null,"Per Diem:",null,"Breakfast",null,null,{"$f":"BREAKFAST","v":10.1},{"$f":"SUM(C15*G15)","v":0}]
[null,null,null,"Lunch",null,null,{"$f":"LUNCH","v":13.3},0]
[null,null,null,"Dinner",null,null,{"$f":"DINNER","v":23.1},0]
[null,null,null,"Lodging",null,null,{"$f":"LODGING_LUMP.SUM","v":95},0]
[null,"Incidentals:"]
[null,null,null,null,null,null,null,{"$f":"SUM(C20*E20*G20)","v":0}]
[null,null,null,null,null,null,null,0]
[null,"Reproduction:",null,"8 1/2 x 11 B & W Copies @",null,null,{"$f":"LETTERCOPIES","v":0.14000000000000001},0]
[null,null,null,"11 x 17 B & W Copies @",null,null,{"$f":"LEDGERCOPIES","v":0.34},0]
[null,null,null,"8 1/2 x 11 Color Copies @",null,null,{"$f":"LETTERCOLOR","v":0.83},0]
[null,null,null,"11 x 17 Color Copies @",null,null,{"$f":"LEDGERCOLOR","v":1.66},0]
[null,null,null,"SQ. FT. of Plots (B & W or Color)",null,"<65 SQ. FT.*",{"$f":"ROLLPLOTSshort","v":6.5},0]
[null,null,null,"SQ. FT. of Plots (B & W or Color)",null,">65 SQ. FT.*",{"$f":"ROLLPLOTSlong","v":1.5},0]
[null,null,null,"Cover(s) @",null,null,{"$f":"COVERS","v":0.5},0]
[null,null,null,"Binder(s) @",null,null,{"$f":"BINDERS","v":0.5},0]
[null,null,null,"Blueprints - 8 1/2 x 11 @",null,null,{"$f":"BLUEPRINTSLETTER","v":0.35},0]
[null,null,null,"Blueprints - 42 x 72 @",null,null,{"$f":"BLUEPRINTSLARGE","v":1.3},0]
[null,"Film and Developing:",null,"Roll(s) @",null,null,{"$f":"FILM","v":20},0]
[null,null,null,null,null,"Subtotal",null,{"$f":"SUM(H9:H32)","v":0}]
["MAPS AND DOCUMENTS:","ITEM","QTY","DESCRIPTION",null,null,"UNIT COST "]
[null,"County Tax Maps:",null,"Map(s) @",null,null,{"$f":"County_Tax_Maps","v":7},{"$f":"SUM(C35*G35)","v":0}]
[null,"USGS Maps:",null,"Map(s) @",null,null,{"$f":"USGSMAPS","v":7},{"$f":"SUM(C36*G36)","v":0}]
[null,null,null,null,null,"Subtotal",null,{"$f":"SUM(H35:H36)","v":0}]
["TECHNICAL REPORTS:","ITEM","QTY","DESCRIPTION",null,null,"UNIT COST "]
[null,"Reproduction:",null,"8 1/2 x 11 B & W Copies @",null,null,{"$f":"LETTERCOPIES","v":0.14000000000000001},{"$f":"SUM(C39*G39)","v":0}]
[null,null,null,"11 x 17 B & W Copies @",null,null,{"$f":"LEDGERCOPIES","v":0.34},0]
[null,null,null,"8 1/2 x 11 Color Copies @",null,null,{"$f":"LETTERCOLOR","v":0.83},0]
[null,null,null,"11 x 17 Color Copies @",null,null,{"$f":"LEDGERCOLOR","v":1.66},0]
[null,null,null,"SQ. FT. of Plots (B & W or Color)",null,"<65 SQ. FT.*",{"$f":"ROLLPLOTSshort","v":6.5},0]
[null,null,null,"SQ. FT. of Plots (B & W or Color)",null,">65 SQ. FT.*",{"$f":"ROLLPLOTSlong","v":1.5},0]
[null,null,null,"Cover(s) @",null,null,{"$f":"COVERS","v":0.5},0]
[null,null,null,"Binder(s) @",null,null,{"$f":"BINDERS","v":0.5},0]
[null,"Incidentals:"]
[null,null,null,null,null,null,null,{"$f":"SUM(C48*E48*G48)","v":0}]
[null,null,null,null,null,null,null,0]
[null,null,null,null,null,"Subtotal",null,{"$f":"SUM(H39:H49)","v":0}]
["DESIGN:","ITEM","QTY","DESCRIPTION",null,null,"UNIT COST "]
[null,"Reproduction:",null,"8 1/2 x 11 B & W Copies @",null,null,{"$f":"LETTERCOPIES","v":0.14000000000000001},{"$f":"SUM(C52*G52)","v":0}]
[null,null,null,"11 x 17 B & W Copies @",null,null,{"$f":"LEDGERCOPIES","v":0.34},0]
[null,null,null,"Blueprints - 8 1/2 x 11 @",null,null,{"$f":"BLUEPRINTSLETTER","v":0.35},0]
[null,null,null,"Mylar - 8 1/2 x 11 @",null,null,{"$f":"MYLARSLETTER","v":7.32},0]
[null,null,null,"Mylar - 36 x 48 @",null,null,{"$f":"MYLARSLARGE","v":28.12},0]
[null,null,null,"Prints  - 24 x 36 @",null,null,{"$f":"PRINTSLARGE","v":3},0]
[null,null,null,"Blueprints - 42 x 72 @",null,null,{"$f":"BLUEPRINTSLARGE","v":1.3},0]
[null,null,null,"SQ. FT. of Plots (B & W or Color)",null,"<65 SQ. FT.*",{"$f":"ROLLPLOTSshort","v":6.5},0]
[null,null,null,"SQ. FT. of Plots (B & W or Color)",null,">65 SQ. FT.*",{"$f":"ROLLPLOTSlong","v":1.5},0]
[null,null,null,"USGS Map(s)",null,null,{"$f":"USGSMAPS","v":7},0]
[null,null,null,null,null,"Subtotal",null,{"$f":"SUM(H52:H61)","v":0}]
["MEETINGS & PUBLIC INVOLVEMENT:","ITEM","QTY","DESCRIPTION",null,null,"UNIT COST "]
[null,"Travel:"]
[null,"Sedan",null,"Trip(s) @",null,"miles @",{"$f":"SEDAN","v":0.7},{"$f":"SUM(C65*E65*G65)","v":0}]
[null,"CarryAll",null,"Trip(s) @",null,"miles @",{"$f":"CARRYALL","v":0.72},{"$f":"SUM(C66*E66*G66)","v":0}]
[null,"Car Rental",null,null,null,"days @",{"$f":"CARRENTAL","v":50},{"$f":"SUM(E67*G67)","v":0}]
[null,"Gas for Rental",null,null,null,"miles @",{"$f":"GASforRENTAL","v":0.2},{"$f":"SUM(E68*G68)","v":0}]
[null,"Parking:",null,"Trip(s) @",null,null,{"$f":"PARKING","v":3},{"$f":"SUM(C69*G69)","v":0}]
[null,"Per Diem:",null,"Breakfast",null,null,{"$f":"BREAKFAST","v":10.1},{"$f":"SUM(C70*G70)","v":0}]
[null,null,null,"Lunch",null,null,{"$f":"LUNCH","v":13.3},{"$f":"SUM(C71*G71)","v":0}]
[null,null,null,"Dinner",null,null,{"$f":"DINNER","v":23.1},{"$f":"SUM(C72*G72)","v":0}]
[null,null,null,"Lodging",null,null,{"$f":"LODGING_LUMP.SUM","v":95},{"$f":"SUM(C73*G73)","v":0}]
[null,"Workshop "]
[null,"  - Reproduction",null,"8 1/2 x 11 B & W Copies @",null,"Handouts",{"$f":"LETTERCOPIES","v":0.14000000000000001},{"$f":"SUM(C75*E75*G75)","v":0}]
[null,null,null,"11 x 17 B & W Copies @",null,"Handouts",{"$f":"LEDGERCOPIES","v":0.34},{"$f":"SUM(C76*E76*G76)","v":0}]
[null,null,null,"8 1/2 x 11 Color Copies @",null,null,{"$f":"LETTERCOLOR","v":0.83},{"$f":"SUM(C77*G77)","v":0}]
[null,null,null,"11 x 17 Color Copies @",null,null,{"$f":"LEDGERCOLOR","v":1.66},0]
[null,null,null,"SQ. FT. of Plots (B & W or Color)",null,"<65 SQ. FT.*",{"$f":"ROLLPLOTSshort","v":6.5},0]
[null,null,null,"SQ. FT. of Plots (B & W or Color)",null,">65 SQ. FT.*",{"$f":"ROLLPLOTSlong","v":1.5},0]
[null,null,null,"SQ. FT. Foam Mounting Board @",null,null,{"$f":"FOAMMOUNTINGBOARD","v":1.25},0]
[null,"Presentation Materials:",null,"Misc. Workshop Supplies @",null,"per workshop",{"$f":"MISCWORKSHOPSUPPLIES","v":50},0]
[null,"Mailing Labels:",null,"Laser Peel & Stick (box)",null,"750 per box",{"$f":"LASERPEELandSTICK","v":4},0]
[null,"Postage:"]
[null,"  - Public Workshops:",null,"Notice or Newsletter @",null,"copies @",{"$f":"POSTAGE","v":0.49},{"$f":"SUM(C85*E85*G85)","v":0}]
[null,null,null,null,null,"Subtotal",null,{"$f":"SUM(H64:H85)","v":0}]
["Miscellaneous Other","ITEM","QTY","DESCRIPTION",null,null,"UNIT COST "]
[null,null,null,null,null,null,null,{"$f":"SUM(C88*G88)","v":0}]
[null,null,null,null,null,null,null,{"$f":"SUM(C89*G89)","v":0}]
[null,null,null,null,null,null,null,0]
[null,null,null,null,null,null,null,0]
[null,null,null,null,null,null,null,0]
[null,null,null,null,null,null,null,0]
[null,null,null,null,null,null,null,0]
[null,null,null,null,null,null,null,{"$f":"SUM(C95*G95)","v":0}]
[null,null,null,null,null,null,null,{"$f":"SUM(C96*G96)","v":0}]
[null,null,null,null,null,null,null,{"$f":"SUM(C97*G97)","v":0}]
[null,null,null,null,null,"Subtotal",null,{"$f":"SUM(H88:H97)","v":0}]
[]
[null,null,null,null,null,"TOTAL",null,{"$f":"SUM(H33+H37+H50+H62+H86+H98)","v":0}]
[]
[null,"* Sum of all plots "]

{"sheet":"EnvPolicy","index":22,"n_rows":145,"n_cols":26,"rows_kept":145,"cut":false,"hidden":true,"merged":[[117,23,117,24],[116,23,116,24],[118,23,118,24],[119,23,119,24],[0,0,1,24],[2,9,2,10],[2,11,2,12],[7,3,10,3],[7,4,10,4],[7,5,10,5],[7,6,10,6],[7,7,10,7],[7,8,10,8],[7,9,10,9],[7,10,10,10],[7,11,10,11],[112,23,112,24],[113,23,113,24],[114,23,114,24],[115,23,115,24],[107,23,107,24],[108,23,108,24],[109,23,109,24],[110,23,110,24],[111,23,111,24],[103,23,103,24],[104,23,104,24],[105,23,105,24],[106,23,106,24],[98,23,98,24],[99,23,99,24],[100,23,100,24],[101,23,101,24],[102,23,102,24],[93,23,93,24],[94,23,94,24],[95,23,95,24],[96,23,96,24],[97,23,97,24],[88,23,88,24],[89,23,89,24],[90,23,90,24],[91,23,91,24],[92,23,92,24],[83,23,83,24],[84,23,84,24],[85,23,85,24],[86,23,86,24],[87,23,87,24],[78,23,78,24],[79,23,79,24],[80,23,80,24],[81,23,81,24],[82,23,82,24],[73,23,73,24],[74,23,74,24],[75,23,75,24],[76,23,76,24],[77,23,77,24],[68,23,68,24],[69,23,69,24],[70,23,70,24],[71,23,71,24],[72,23,72,24],[63,23,63,24],[64,23,64,24],[65,23,65,24],[66,23,66,24],[67,23,67,24],[58,23,58,24],[59,23,59,24],[60,23,60,24],[61,23,61,24],[62,23,62,24],[53,23,53,24],[54,23,54,24],[55,23,55,24],[56,23,56,24],[57,23,57,24],[48,23,48,24],[49,23,49,24],[50,23,50,24],[51,23,51,24],[52,23,52,24],[29,23,29,24],[30,23,30,24],[31,23,31,24],[32,23,32,24],[43,23,43,24],[44,23,44,24],[45,23,45,24],[46,23,46,24],[47,23,47,24],[38,23,38,24],[39,23,39,24],[40,23,40,24],[41,23,41,24],[42,23,42,24],[15,23,15,24],[16,23,16,24],[17,23,17,24],[9,23,9,24],[11,23,11,24],[12,23,12,24],[127,13,128,14],[127,15,128,16],[23,23,23,24],[24,23,24,24],[25,23,25,24],[26,23,26,24],[27,23,27,24],[18,23,18,24],[19,23,19,24],[20,23,20,24],[21,23,21,24],[22,23,22,24],[33,23,33,24],[34,23,34,24],[35,23,35,24],[36,23,36,24],[37,23,37,24],[28,23,28,24],[137,5,137,8],[137,10,137,21],[138,10,138,11],[138,12,138,13],[138,14,138,20],[133,1,134,1],[133,3,134,4],[144,10,144,11],[144,12,144,13],[144,14,144,20],[139,10,139,11],[139,12,139,13],[139,14,139,20],[142,10,142,21],[143,10,143,11],[143,12,143,13],[143,14,143,20],[2,1,2,4],[2,6,2,8],[2,21,2,22],[2,23,2,24],[129,13,130,14],[129,15,130,16],[3,21,3,22],[3,23,3,24],[3,7,3,8],[3,9,3,10],[3,11,3,12],[7,12,10,12],[7,13,10,13],[7,14,10,14],[5,3,5,19],[7,15,10,15],[7,16,10,16],[7,17,10,17],[7,18,10,18],[7,19,10,19],[3,1,3,4],[3,5,3,6],[13,23,13,24],[14,23,14,24]]}
["ENVIRONMENTAL POLICY BREAKDOWN WORKSHEET"]
[]
["PROJECT DESCRIPTION: ",{"$f":"PROJECT.DESCRIPTION","v":0},null,null,null,"FIRM:  ",{"$f":"PDEA_PLANNING_CONSULTANT_NAME","v":"CONSULTANT NAME"},null,null,"TASK ORDER NUMBER:",null,{"$f":"TASK.ORDER.NUMBER","v":0},null,null,null,null,null,null,null,null,null,"DATE PREPARED:",null,{"$f":"IF(SCOPE.MANDAY.ESTIMATE.PREPARED.BY.DATE=\"\",\"\",SCOPE.MANDAY.ESTIMATE.PREPARED.BY.DATE)","v":""}]
["PREPARED BY:  ",{"$f":"IF(SCOPE.MANDAY.ESTIMATE.PREPARED.BY=\"\",\"\",SCOPE.MANDAY.ESTIMATE.PREPARED.BY)","v":""},null,null,null,"TIP NUMBER:",null,{"$f":"TIP.NUMBER","v":0},null,"WBS NUMBER:",null,{"$f":"WBS.NUMBER","v":""},null,null,null,null,null,null,null,null,null,"REVISION DATE:",null,{"$f":"IF(SCOPE.MANDAY.ESTIMATE.APPROVED.BY.DATE=\"\",\"\",SCOPE.MANDAY.ESTIMATE.APPROVED.BY.DATE)","v":""}]
[null,null,null,null,null,null,null,null,null,null,null,null,null,null,null,null,null,null,null,null,null,null,null,null,null," "]
[null,null,null,"ESTIMATED WORK DAYS"]
[null,null,"Employee",{"$f":"IF('PEF CLASSIFICATION SHEET'!$D140=\"\",\"\",LEFT('PEF CLASSIFICATION SHEET'!$D140,4))","v":""},{"$f":"IF('PEF CLASSIFICATION SHEET'!$D141=\"\",\"\",LEFT('PEF CLASSIFICATION SHEET'!$D141,4))","v":""},{"$f":"IF('PEF CLASSIFICATION SHEET'!$D142=\"\",\"\",LEFT('PEF CLASSIFICATION SHEET'!$D142,4))","v":""},{"$f":"IF('PEF CLASSIFICATION SHEET'!$D143=\"\",\"\",LEFT('PEF CLASSIFICATION SHEET'!$D143,4))","v":""},{"$f":"IF('PEF CLASSIFICATION SHEET'!$D144=\"\",\"\",LEFT('PEF CLASSIFICATION SHEET'!$D144,4))","v":""},{"$f":"IF('PEF CLASSIFICATION SHEET'!$D145=\"\",\"\",LEFT('PEF CLASSIFICATION SHEET'!$D145,4))","v":""},{"$f":"IF('PEF CLASSIFICATION SHEET'!$D146=\"\",\"\",LEFT('PEF CLASSIFICATION SHEET'!$D146,4))","v":""},{"$f":"IF('PEF CLASSIFICATION SHEET'!$D147=\"\",\"\",LEFT('PEF CLASSIFICATION SHEET'!$D147,4))","v":""},{"$f":"IF('PEF CLASSIFICATION SHEET'!$D148=\"\",\"\",LEFT('PEF CLASSIFICATION SHEET'!$D148,4))","v":""},{"$f":"IF('PEF CLASSIFICATION SHEET'!$D149=\"\",\"\",LEFT('PEF CLASSIFICATION SHEET'!$D149,4))","v":""},{"$f":"IF('PEF CLASSIFICATION SHEET'!$D150=\"\",\"\",LEFT('PEF CLASSIFICATION SHEET'!$D150,4))","v":""},{"$f":"IF('PEF CLASSIFICATION SHEET'!$D151=\"\",\"\",LEFT('PEF CLASSIFICATION SHEET'!$D151,4))","v":""},{"$f":"IF('PEF CLASSIFICATION SHEET'!$D152=\"\",\"\",LEFT('PEF CLASSIFICATION SHEET'!$D152,4))","v":""},{"$f":"IF('PEF CLASSIFICATION SHEET'!$D153=\"\",\"\",LEFT('PEF CLASSIFICATION SHEET'!$D153,4))","v":""},{"$f":"IF('PEF CLASSIFICATION SHEET'!D154=\"\",\"\",LEFT('PEF CLASSIFICATION SHEET'!D154,4))","v":""},{"$f":"IF('PEF CLASSIFICATION SHEET'!D155=\"\",\"\",LEFT('PEF CLASSIFICATION SHEET'!D155,4))","v":""},{"$f":"IF('PEF CLASSIFICATION SHEET'!D156=\"\",\"\",LEFT('PEF CLASSIFICATION SHEET'!D156,4))","v":""}]
[null,null,null,{"$f":"IF('PEF CLASSIFICATION SHEET'!$C140=\"\",\"\",'PEF CLASSIFICATION SHEET'!$C140)","v":""},{"$f":"IF('PEF CLASSIFICATION SHEET'!$C141=\"\",\"\",'PEF CLASSIFICATION SHEET'!$C141)","v":""},{"$f":"IF('PEF CLASSIFICATION SHEET'!$C142=\"\",\"\",'PEF CLASSIFICATION SHEET'!$C142)","v":""},{"$f":"IF('PEF CLASSIFICATION SHEET'!$C143=\"\",\"\",'PEF CLASSIFICATION SHEET'!$C143)","v":""},{"$f":"IF('PEF CLASSIFICATION SHEET'!$C144=\"\",\"\",'PEF CLASSIFICATION SHEET'!$C144)","v":""},{"$f":"IF('PEF CLASSIFICATION SHEET'!$C145=\"\",\"\",'PEF CLASSIFICATION SHEET'!$C145)","v":""},{"$f":"IF('PEF CLASSIFICATION SHEET'!$C146=\"\",\"\",'PEF CLASSIFICATION SHEET'!$C146)","v":""},{"$f":"IF('PEF CLASSIFICATION SHEET'!$C147=\"\",\"\",'PEF CLASSIFICATION SHEET'!$C147)","v":""},{"$f":"IF('PEF CLASSIFICATION SHEET'!$C148=\"\",\"\",'PEF CLASSIFICATION SHEET'!$C148)","v":""},{"$f":"IF('PEF CLASSIFICATION SHEET'!$C149=\"\",\"\",'PEF CLASSIFICATION SHEET'!$C149)","v":""},{"$f":"IF('PEF CLASSIFICATION SHEET'!$C150=\"\",\"\",'PEF CLASSIFICATION SHEET'!$C150)","v":""},{"$f":"IF('PEF CLASSIFICATION SHEET'!$C151=\"\",\"\",'PEF CLASSIFICATION SHEET'!$C151)","v":""},{"$f":"IF('PEF CLASSIFICATION SHEET'!$C152=\"\",\"\",'PEF CLASSIFICATION SHEET'!$C152)","v":""},{"$f":"IF('PEF CLASSIFICATION SHEET'!$C153=\"\",\"\",'PEF CLASSIFICATION SHEET'!$C153)","v":""},{"$f":"IF('PEF CLASSIFICATION SHEET'!$C154=\"\",\"\",'PEF CLASSIFICATION SHEET'!$C154)","v":""},{"$f":"IF('PEF CLASSIFICATION SHEET'!$C155=\"\",\"\",'PEF CLASSIFICATION SHEET'!$C155)","v":""},{"$f":"IF('PEF CLASSIFICATION SHEET'!$C156=\"\",\"\",'PEF CLASSIFICATION SHEET'!$C156)","v":""},"SUB-","%","PEF"]
[null,null,"Classification",null,null,null,null,null,null,null,null,null,null,null,null,null,null,null,null,null,"TOTAL","OF","ESTIMATE"]
["TASK","TASK DESCRIPTION",null,null,null,null,null,null,null,null,null,null,null,null,null,null,null,null,null,null,null,"PROJECT",null,"COMMENTS"]
["NO."]
[null,null,null,null,null,null,null,null,null,null,null,null,null,null,null,null,null,null,null,null,{"$f":"IF(B12=\"\",0,IF((SUM(D12:T12)=0),\"\",SUM(D12:T12)))","v":0},{"$f":"IF(U12=0,\"\",SUM((U12/$U$121)))","v":""}]
["1EP1","MERGER SCREENING",null,null,null,null,null,null,null,null,null,null,null,null,null,null,null,null,null,null,{"$f":"IF(B13=\"\",0,IF((SUM(D13:T13)=0),\"\",SUM(D13:T13)))","v":""},{"$f":"IF(U13=\"\",\"\",SUM((U13/$U$121)))","v":""}]
[1.1000000000000001,"Merger Pre-Screening",null,null,null,null,null,null,null,null,null,null,null,null,null,null,null,null,null,null,{"$f":"IF(B14=\"\",0,IF((SUM(D14:T14)=0),\"\",SUM(D14:T14)))","v":""},{"$f":"IF(U14=\"\",\"\",SUM((U14/$U$121)))","v":""}]
[1.2,"Merger Screening",null,null,null,null,null,null,null,null,null,null,null,null,null,null,null,null,null,null,"",""]
[1.3,"Screening/CP1",null,null,null,null,null,null,null,null,null,null,null,null,null,null,null,null,null,null,"",""]
[1.4,"Merger Plan",null,null,null,null,null,null,null,null,null,null,null,null,null,null,null,null,null,null,"",""]
[null,null,null,null,null,null,null,null,null,null,null,null,null,null,null,null,null,null,null,null,{"$f":"IF(B18=\"\",0,IF((SUM(D18:T18)=0),\"\",SUM(D18:T18)))","v":0},{"$error":"#DIV/0!"}]
[null,null,null,null,null,null,null,null,null,null,null,null,null,null,null,null,null,null,null,null,0,{"$error":"#DIV/0!"}]
[2,"INITIATE ENVIRONMENTAL DOCUMENTATION",null,null,null,null,null,null,null,null,null,null,null,null,null,null,null,null,null,null,"",""]
[2.1,"PSR Coordination",null,null,null,null,null,null,null,null,null,null,null,null,null,null,null,null,null,null,"",""]
[2.2000000000000002,"Project Initiation Meeting/Coordination",null,null,null,null,null,null,null,null,null,null,null,null,null,null,null,null,null,null,"",""]
[null,null,null,null,null,null,null,null,null,null,null,null,null,null,null,null,null,null,null,null,0,{"$error":"#DIV/0!"}]
[3,"TASK MANAGEMENT",null,null,null,null,null,null,null,null,null,null,null,null,null,null,null,null,null,null,"",""]
[null,null,null,null,null,null,null,null,null,null,null,null,null,null,null,null,null,null,null,null,0,{"$error":"#DIV/0!"}]
[4,"COMPLETE QC PROCEDURES",null,null,null,null,null,null,null,null,null,null,null,null,null,null,null,null,null,null,"",""]
[null,null,null,null,null,null,null,null,null,null,null,null,null,null,null,null,null,null,null,null,0,{"$error":"#DIV/0!"}]
[null,null,null,null,null,null,null,null,null,null,null,null,null,null,null,null,null,null,null,null,0,{"$error":"#DIV/0!"}]
[null,null,null,null,null,null,null,null,null,null,null,null,null,null,null,null,null,null,null,null,0,{"$error":"#DIV/0!"}]
[null,null,null,null,null,null,null,null,null,null,null,null,null,null,null,null,null,null,null,null,0,{"$error":"#DIV/0!"}]
[null,null,null,null,null,null,null,null,null,null,null,null,null,null,null,null,null,null,null,null,0,{"$error":"#DIV/0!"}]
["2EP1","PROJECT INITIATION (if not under 1EP1 above)",null,null,null,null,null,null,null,null,null,null,null,null,null,null,null,null,null,null,"",""]
[null,"Prepare/Update initiation/scoping materials",null,null,null,null,null,null,null,null,null,null,null,null,null,null,null,null,null,null,"",""]
[null,"Attend/Conduct Scoping meeting with internal/external partners",null,null,null,null,null,null,null,null,null,null,null,null,null,null,null,null,null,null,"",""]
[null,null,null,null,null,null,null,null,null,null,null,null,null,null,null,null,null,null,null,null,0,{"$error":"#DIV/0!"}]
[null,null,null,null,null,null,null,null,null,null,null,null,null,null,null,null,null,null,null,null,0,{"$error":"#DIV/0!"}]
[null,null,null,null,null,null,null,null,null,null,null,null,null,null,null,null,null,null,null,null,0,{"$error":"#DIV/0!"}]
[1,"MERGER PREPARATION",null,null,null,null,null,null,null,null,null,null,null,null,null,null,null,null,null,null,"",""]
["1.1/1.2","Setup and Prepare Materials",null,null,null,null,null,null,null,null,null,null,null,null,null,null,null,null,null,null,"",""]
[1.3,"Pre-Meeting",null,null,null,null,null,null,null,null,null,null,null,null,null,null,null,null,null,null,"",""]
[1.4,"Other Meetings",null,null,null,null,null,null,null,null,null,null,null,null,null,null,null,null,null,null,"",""]
[null,null,null,null,null,null,null,null,null,null,null,null,null,null,null,null,null,null,null,null,0,{"$error":"#DIV/0!"}]
[2,"MERGER CONCURRENCE",null,null,null,null,null,null,null,null,null,null,null,null,null,null,null,null,null,null,"",""]
[2.1,"Distribute Materials and Provide Coordination",null,null,null,null,null,null,null,null,null,null,null,null,null,null,null,null,null,null,"",""]
[2.2000000000000002,"Concurrence Meeting",null,null,null,null,null,null,null,null,null,null,null,null,null,null,null,null,null,null,"",""]
[null,null,null,null,null,null,null,null,null,null,null,null,null,null,null,null,null,null,null,null,0,{"$error":"#DIV/0!"}]
[null,null,null,null,null,null,null,null,null,null,null,null,null,null,null,null,null,null,null,null,0,{"$error":"#DIV/0!"}]
[null,null,null,null,null,null,null,null,null,null,null,null,null,null,null,null,null,null,null,null,0,{"$error":"#DIV/0!"}]
[null,null,null,null,null,null,null,null,null,null,null,null,null,null,null,null,null,null,null,null,0,{"$error":"#DIV/0!"}]
[null,null,null,null,null,null,null,null,null,null,null,null,null,null,null,null,null,null,null,null,0,{"$error":"#DIV/0!"}]
[3,"ENVIRONMENTAL (NEPA/SEPA) DOCUMENTATION",null,null,null,null,null,null,null,null,null,null,null,null,null,null,null,null,null,null,"",""]
[3.1,"4(f) De Minimis Coordination",null,null,null,null,null,null,null,null,null,null,null,null,null,null,null,null,null,null,"",""]
[null,"4(f) Programmatic Evaluation",null,null,null,null,null,null,null,null,null,null,null,null,null,null,null,null,null,null,"",""]
[null,null,null,null,null,null,null,null,null,null,null,null,null,null,null,null,null,null,null,null,0,{"$error":"#DIV/0!"}]
[3.2,"Other Supporting Documentation",null,null,null,null,null,null,null,null,null,null,null,null,null,null,null,null,null,null,"",""]
[null,null,null,null,null,null,null,null,null,null,null,null,null,null,null,null,null,null,null,null,0,{"$error":"#DIV/0!"}]
[null,null,null,null,null,null,null,null,null,null,null,null,null,null,null,null,null,null,null,null,0,{"$error":"#DIV/0!"}]
[3.3,"Draft Environmental Document(ation)",null,null,null,null,null,null,null,null,null,null,null,null,null,null,null,null,null,null,"",""]
[null,"Prepare draft",null,null,null,null,null,null,null,null,null,null,null,null,null,null,null,null,null,null,"",""]
[null,"Submit draft for review and address revisions",null,null,null,null,null,null,null,null,null,null,null,null,null,null,null,null,null,null,"",""]
[null,null,null,null,null,null,null,null,null,null,null,null,null,null,null,null,null,null,null,null,0,{"$error":"#DIV/0!"}]
[3.4,"Final Environmental Document(ation)",null,null,null,null,null,null,null,null,null,null,null,null,null,null,null,null,null,null,"",""]
[null,"Acquire signatures",null,null,null,null,null,null,null,null,null,null,null,null,null,null,null,null,null,null,"",""]
[null,"Upload and distribute (as appropriate) ",null,null,null,null,null,null,null,null,null,null,null,null,null,null,null,null,null,null,"",""]
[null,null,null,null,null,null,null,null,null,null,null,null,null,null,null,null,null,null,null,null,0,{"$error":"#DIV/0!"}]
[4,"TASK MANAGEMENT",null,null,null,null,null,null,null,null,null,null,null,null,null,null,null,null,null,null,"",""]
[null,null,null,null,null,null,null,null,null,null,null,null,null,null,null,null,null,null,null,null,0,{"$error":"#DIV/0!"}]
[5,"COMPLETE QC PROCEDURES",null,null,null,null,null,null,null,null,null,null,null,null,null,null,null,null,null,null,"",""]
[null,null,null,null,null,null,null,null,null,null,null,null,null,null,null,null,null,null,null,null,0,{"$error":"#DIV/0!"}]
[null,null,null,null,null,null,null,null,null,null,null,null,null,null,null,null,null,null,null,null,0,{"$error":"#DIV/0!"}]
[null,null,null,null,null,null,null,null,null,null,null,null,null,null,null,null,null,null,null,null,0,{"$error":"#DIV/0!"}]
[null,null,null,null,null,null,null,null,null,null,null,null,null,null,null,null,null,null,null,null,0,{"$error":"#DIV/0!"}]
[null,null,null,null,null,null,null,null,null,null,null,null,null,null,null,null,null,null,null,null,0,{"$error":"#DIV/0!"}]
[null,null,null,null,null,null,null,null,null,null,null,null,null,null,null,null,null,null,null,null,0,{"$error":"#DIV/0!"}]
[null,null,null,null,null,null,null,null,null,null,null,null,null,null,null,null,null,null,null,null,0,{"$error":"#DIV/0!"}]
[null,null,null,null,null,null,null,null,null,null,null,null,null,null,null,null,null,null,null,null,0,{"$error":"#DIV/0!"}]
[null,null,null,null,null,null,null,null,null,null,null,null,null,null,null,null,null,null,null,null,0,{"$error":"#DIV/0!"}]
[null,null,null,null,null,null,null,null,null,null,null,null,null,null,null,null,null,null,null,null,0,{"$f":"IF(U78=\"\",\"\",SUM((U78/$U$121)))","v":{"$error":"#DIV/0!"}}]
[null,null,null,null,null,null,null,null,null,null,null,null,null,null,null,null,null,null,null,null,0,{"$error":"#DIV/0!"}]
[null,null,null,null,null,null,null,null,null,null,null,null,null,null,null,null,null,null,null,null,0,{"$error":"#DIV/0!"}]
[null,null,null,null,null,null,null,null,null,null,null,null,null,null,null,null,null,null,null,null,0,{"$error":"#DIV/0!"}]
[null,null,null,null,null,null,null,null,null,null,null,null,null,null,null,null,null,null,null,null,{"$f":"IF(B82=\"\",0,IF((SUM(D82:T82)=0),\"\",SUM(D82:T82)))","v":0},{"$error":"#DIV/0!"}]
[null,null,null,null,null,null,null,null,null,null,null,null,null,null,null,null,null,null,null,null,0,{"$error":"#DIV/0!"}]
[null,null,null,null,null,null,null,null,null,null,null,null,null,null,null,null,null,null,null,null,0,{"$error":"#DIV/0!"}]
[null,null,null,null,null,null,null,null,null,null,null,null,null,null,null,null,null,null,null,null,0,{"$error":"#DIV/0!"}]
[null,null,null,null,null,null,null,null,null,null,null,null,null,null,null,null,null,null,null,null,0,{"$error":"#DIV/0!"}]
["3EP1","Right-of-Way Consultation",null,null,null,null,null,null,null,null,null,null,null,null,null,null,null,null,null,null,"",""]
[1,"Data Collection",null,null,null,null,null,null,null,null,null,null,null,null,null,null,null,null,null,null,"",""]
[2,"Prepare Draft ROW Consultation",null,null,null,null,null,null,null,null,null,null,null,null,null,null,null,null,null,null,"",""]
[3,"Submit Final ROW Consultation",null,null,null,null,null,null,null,null,null,null,null,null,null,null,null,null,null,null,"",""]
[4,"Task Mngmt",null,null,null,null,null,null,null,null,null,null,null,null,null,null,null,null,null,null,"",""]
[5,"Complete QC Procedures",null,null,null,null,null,null,null,null,null,null,null,null,null,null,null,null,null,null,"",""]
[null,null,null,null,null,null,null,null,null,null,null,null,null,null,null,null,null,null,null,null,0,{"$error":"#DIV/0!"}]
[null,null,null,null,null,null,null,null,null,null,null,null,null,null,null,null,null,null,null,null,0,{"$error":"#DIV/0!"}]
[null,null,null,null,null,null,null,null,null,null,null,null,null,null,null,null,null,null,null,null,0,{"$error":"#DIV/0!"}]
[null,null,null,null,null,null,null,null,null,null,null,null,null,null,null,null,null,null,null,null,0,{"$error":"#DIV/0!"}]
["4EP1","CONSTRUCTION Consultation",null,null,null,null,null,null,null,null,null,null,null,null,null,null,null,null,null,null,"",""]
[1,"Data Collection",null,null,null,null,null,null,null,null,null,null,null,null,null,null,null,null,null,null,"",""]
[2,"Prepare Draft Construction Consultation",null,null,null,null,null,null,null,null,null,null,null,null,null,null,null,null,null,null,"",""]
[3,"Submit Final Construction Consultation",null,null,null,null,null,null,null,null,null,null,null,null,null,null,null,null,null,null,"",""]
[4,"Task Mngmt",null,null,null,null,null,null,null,null,null,null,null,null,null,null,null,null,null,null,"",""]
[5,"Complete QC Procedures",null,null,null,null,null,null,null,null,null,null,null,null,null,null,null,null,null,null,"",""]
[null,null,null,null,null,null,null,null,null,null,null,null,null,null,null,null,null,null,null,null,0,{"$error":"#DIV/0!"}]
[null,null,null,null,null,null,null,null,null,null,null,null,null,null,null,null,null,null,null,null,0,{"$error":"#DIV/0!"}]
[null,null,null,null,null,null,null,null,null,null,null,null,null,null,null,null,null,null,null,null,0,{"$error":"#DIV/0!"}]
[null,null,null,null,null,null,null,null,null,null,null,null,null,null,null,null,null,null,null,null,0,{"$error":"#DIV/0!"}]
[null,null,null,null,null,null,null,null,null,null,null,null,null,null,null,null,null,null,null,null,0,{"$error":"#DIV/0!"}]
[null,null,null,null,null,null,null,null,null,null,null,null,null,null,null,null,null,null,null,null,0,{"$error":"#DIV/0!"}]
[null,null,null,null,null,null,null,null,null,null,null,null,null,null,null,null,null,null,null,null,0,{"$error":"#DIV/0!"}]
[null,null,null,null,null,null,null,null,null,null,null,null,null,null,null,null,null,null,null,null,0,{"$error":"#DIV/0!"}]
[null,null,null,null,null,null,null,null,null,null,null,null,null,null,null,null,null,null,null,null,0,{"$error":"#DIV/0!"}]
[null,null,null,null,null,null,null,null,null,null,null,null,null,null,null,null,null,null,null,null,0,{"$error":"#DIV/0!"}]
[null,null,null,null,null,null,null,null,null,null,null,null,null,null,null,null,null,null,null,null,0,{"$error":"#DIV/0!"}]
[null,null,null,null,null,null,null,null,null,null,null,null,null,null,null,null,null,null,null,null,0,{"$error":"#DIV/0!"}]
[null,null,null,null,null,null,null,null,null,null,null,null,null,null,null,null,null,null,null,null,0,{"$error":"#DIV/0!"}]
[null,null,null,null,null,null,null,null,null,null,null,null,null,null,null,null,null,null,null,null,0,{"$error":"#DIV/0!"}]
[null,null,null,null,null,null,null,null,null,null,null,null,null,null,null,null,null,null,null,null,0,{"$error":"#DIV/0!"}]
[null,null,null,null,null,null,null,null,null,null,null,null,null,null,null,null,null,null,null,null,{"$f":"IF(B118=\"\",0,IF((SUM(D118:T118)=0),\"\",SUM(D118:T118)))","v":0},{"$error":"#DIV/0!"}]
[null,null,null,null,null,null,null,null,null,null,null,null,null,null,null,null,null,null,null,null,0,{"$error":"#DIV/0!"}]
[null,null,null,null,null,null,null,null,null,null,null,null,null,null,null,null,null,null,null,null,0,{"$error":"#DIV/0!"}]
[null,"TOTAL WORKDAYS/CATEGORY:",null,{"$f":"(SUM(D12:D120))","v":0},0,0,0,0,0,0,0,0,0,0,0,0,0,0,0,0,0,{"$f":"SUM(V12:V120)","v":{"$error":"#DIV/0!"}},{"$f":"(SUM(W12:W120))","v":0}]
[null,"HOURLY SALARY RATE:",null,{"$f":"'PEF CLASSIFICATION SHEET'!$E140","v":0},{"$f":"'PEF CLASSIFICATION SHEET'!$E141","v":0},{"$f":"'PEF CLASSIFICATION SHEET'!$E142","v":0},{"$f":"'PEF CLASSIFICATION SHEET'!$E143","v":0},{"$f":"'PEF CLASSIFICATION SHEET'!$E144","v":0},{"$f":"'PEF CLASSIFICATION SHEET'!$E145","v":0},{"$f":"'PEF CLASSIFICATION SHEET'!$E146","v":0},{"$f":"'PEF CLASSIFICATION SHEET'!$E147","v":0},{"$f":"'PEF CLASSIFICATION SHEET'!$E148","v":0},{"$f":"'PEF CLASSIFICATION SHEET'!$E149","v":0},{"$f":"'PEF CLASSIFICATION SHEET'!$E150","v":0},{"$f":"'PEF CLASSIFICATION SHEET'!$E151","v":0},{"$f":"'PEF CLASSIFICATION SHEET'!$E152","v":0},{"$f":"'PEF CLASSIFICATION SHEET'!$E153","v":0},{"$f":"'PEF CLASSIFICATION SHEET'!E154","v":0},{"$f":"'PEF CLASSIFICATION SHEET'!E155","v":0},{"$f":"'PEF CLASSIFICATION SHEET'!E156","v":0}]
[null,"RATES PER DAY:",null,{"$f":"D122*8","v":0},0,0,0,0,0,0,0,0,0,0,0,0,0,0,0,0]
[null,"PAYROLL BURDEN:",null,{"$f":"SUM(D121*D123)","v":0},0,0,0,0,0,0,0,0,0,0,0,0,0,0,0,0]
[null,"TOTAL WORKDAYS:",null,{"$f":"SUM(D121:T121)","v":0}]
[null,"TOTAL PAYROLL BURDEN:",null,{"$f":"SUM(D124:T124)","v":0}]
[null,"AVERAGE COST PER HOUR:",null,{"$f":"SUM(D126/(D125*8))","v":{"$error":"#DIV/0!"}}]
[null,"GENERAL OVERHEAD:",{"$f":"PDEA_PLANNING_CONSULTANT_OVERHEAD","v":0},{"$f":"SUM(D126*C128)","v":0},null,null,null,null,null,null,null,null,null,"REVIEWED BY GROUP MNGT:"]
[null,"SUBTOTAL:",null,{"$f":"SUM(D128+D126)","v":0}]
[null,"COMPARATIVE FEE:",{"$f":"PDEA_PLANNING_CONSULTANT_FEE","v":0.09},{"$f":"SUM(D129*C130)","v":0},null,null,null,null,null,null,null,null,null,"REVIEWED BY UNIT HEAD:"]
[null,"FACILITIES COST OF CAPITAL:",{"$f":"PDEA_PLANNING_CONSULTANT_COSTofCAPITAL","v":0},{"$f":"SUM(D126*C131)","v":0}]
[null,"TOTAL:",null,{"$f":"SUM(D129:D131)","v":0}]
[null,"DIRECT EXPENSES:",null,{"$f":"PDEA_PLANNING_DIRECT_NONSALARY_TOTAL","v":0}]
[null,"PLANNING GRAND TOTAL:",null,{"$f":"SUM(D132:D133)","v":0}]
[]
[]
[]
[null,null,null,null,"Costs","Workdays",null,null,null,null,"Dollars"]
[null,null,null,null,null,"EnvPolicy","PEF","Delta ","Delta %",null,"Environmental Policy",null,"PEF",null,"Delta ",null,null,null,null,null,null,"Delta %"]
[null,null,null,null,null,null,null,{"$f":"SUM(G140-F140)","v":0},{"$f":"SUM((H140/F140)*100)","v":{"$error":"#DIV/0!"}},null,null,null,null,null,{"$f":"SUM(M140-K140)","v":0},null,null,null,null,null,null,{"$f":"SUM((O140/K140)*100)","v":{"$error":"#DIV/0!"}}]
[]
[]
[null,null,null,null,null,null,null,null,null,"Directs","Dollars"]
[null,null,null,null,null,null,null,null,null,null,"Environmental Policy",null,"PEF",null,"Delta ",null,null,null,null,null,null,"Delta %"]
[null,null,null,null,null,null,null,null,null,null,null,null,null,null,{"$f":"SUM(M145-K145)","v":0},null,null,null,null,null,null,{"$f":"SUM((O145/K145)*100)","v":{"$error":"#DIV/0!"}}]

{"sheet":"EnvPolicy-Exp","index":23,"n_rows":104,"n_cols":8,"rows_kept":104,"cut":false,"hidden":true,"merged":[[6,1,6,3],[6,4,6,6],[0,0,0,7],[3,1,3,7],[4,1,4,3],[4,6,4,7],[5,1,5,3],[5,6,5,7],[2,1,2,3]]}
["ENVIRONMENTAL POLICY DIRECT EXPENSES"]
[]
["FIRM:",{"$f":"EnvPolicy!G3","v":"CONSULTANT NAME"}]
["PROJECT DESCRIPTION: ",{"$f":"PROJECT.DESCRIPTION","v":0}]
["PREPARED BY:  ",{"$f":"PDEA.PREPARED.BY","v":""},null,null,"TASK ORDER NUMBER:",null,{"$f":"TASK.ORDER.NUMBER","v":0}]
["TIP NUMBER:",{"$f":"TIP.NUMBER","v":0},null,null,"WBS NUMBER:",null,{"$f":"WBS.NUMBER","v":""}]
["DATE PREPARED:",{"$f":"IF(EnvPolicy!X3=\"\",\"\",MAX(EnvPolicy!X3:'EnvPolicy'!X4))","v":""},null,null,"REVIEWED BY UNIT HEAD ON:",null,null,{"$f":"IF(SCOPE.MANDAY.ESTIMATE.APPROVED.BY.DATE=\"\",\"\",SCOPE.MANDAY.ESTIMATE.APPROVED.BY.DATE)","v":""}]
["GENERAL PROJECT WORK:","ITEM","QTY","DESCRIPTION",null,null,"UNIT COST "]
[null,"Travel:"]
[null,"Sedan",null,"Trip(s) @",null,"miles @",{"$f":"SEDAN","v":0.7},{"$f":"SUM(C10*E10*G10)","v":0}]
[null,"Carry All",null,"Trip(s) @",null,"miles @",{"$f":"CARRYALL","v":0.72},{"$f":"SUM(C11*E11*G11)","v":0}]
[null,"Car Rental",null,null,null,"days @ ",{"$f":"CARRENTAL","v":50},{"$f":"SUM(E12*G12)","v":0}]
[null,"Gas for Rental",null,null,null,"miles @",{"$f":"GASforRENTAL","v":0.2},{"$f":"SUM(E13*G13)","v":0}]
[null,"Parking:",null,"Trip(s) @",null,null,{"$f":"PARKING","v":3},{"$f":"SUM(C14*G14)","v":0}]
[null,"Per Diem:",null,"Breakfast",null,null,{"$f":"BREAKFAST","v":10.1},{"$f":"SUM(C15*G15)","v":0}]
[null,null,null,"Lunch",null,null,{"$f":"LUNCH","v":13.3},0]
[null,null,null,"Dinner",null,null,{"$f":"DINNER","v":23.1},0]
[null,null,null,"Lodging",null,null,{"$f":"LODGING_LUMP.SUM","v":95},0]
[null,"Reproduction:",null,"8 1/2 x 11 B & W Copies @",null,null,{"$f":"LETTERCOPIES","v":0.14000000000000001},0]
[null,null,null,"11 x 17 B & W Copies @",null,null,{"$f":"LEDGERCOPIES","v":0.34},0]
[null,null,null,"8 1/2 x 11 Color Copies @",null,null,{"$f":"LETTERCOLOR","v":0.83},0]
[null,null,null,"11 x 17 Color Copies @",null,null,{"$f":"LEDGERCOLOR","v":1.66},0]
[null,null,null,"SQ. FT. of Plots (B & W or Color)",null,"<65 SQ. FT.*",{"$f":"ROLLPLOTSshort","v":6.5},0]
[null,null,null,"SQ. FT. of Plots (B & W or Color)",null,">65 SQ. FT.*",{"$f":"ROLLPLOTSlong","v":1.5},0]
[null,null,null,"Cover(s) @",null,null,{"$f":"COVERS","v":0.5},0]
[null,null,null,"Binder(s) @",null,null,{"$f":"BINDERS","v":0.5},0]
[null,null,null,"Blueprints - 8 1/2 x 11 @",null,null,{"$f":"BLUEPRINTSLETTER","v":0.35},0]
[null,null,null,"Blueprints - 42 x 72 @",null,null,{"$f":"BLUEPRINTSLARGE","v":1.3},0]
[null,"Film and Developing:",null,"Roll(s) @",null,null,{"$f":"FILM","v":20},0]
[null,null,null,null,null,"Subtotal",null,{"$f":"SUM(H10:H29)","v":0}]
["MAPS AND DOCUMENTS:","ITEM","QTY","DESCRIPTION",null,null,"UNIT COST "]
[null,"County Tax Maps:",null,"Map(s) @",null,null,{"$f":"County_Tax_Maps","v":7},{"$f":"SUM(C32*G32)","v":0}]
[null,"USGS Maps:",null,"Map(s) @",null,null,{"$f":"USGSMAPS","v":7},{"$f":"SUM(C33*G33)","v":0}]
[null,null,null,null,null,"Subtotal",null,{"$f":"SUM(H32:H33)","v":0}]
["TECHNICAL REPORTS:","ITEM","QTY","DESCRIPTION",null,null,"UNIT COST "]
[null,"Reproduction:",null,"8 1/2 x 11 B & W Copies @",null,null,{"$f":"LETTERCOPIES","v":0.14000000000000001},{"$f":"SUM(C36*G36)","v":0}]
[null,null,null,"11 x 17 B & W Copies @",null,null,{"$f":"LEDGERCOPIES","v":0.34},0]
[null,null,null,"8 1/2 x 11 Color Copies @",null,null,{"$f":"LETTERCOLOR","v":0.83},0]
[null,null,null,"11 x 17 Color Copies @",null,null,{"$f":"LEDGERCOLOR","v":1.66},0]
[null,null,null,"SQ. FT. of Plots (B & W or Color)",null,"<65 SQ. FT.*",{"$f":"ROLLPLOTSshort","v":6.5},0]
[null,null,null,"SQ. FT. of Plots (B & W or Color)",null,">65 SQ. FT.*",{"$f":"ROLLPLOTSlong","v":1.5},0]
[null,null,null,"Cover(s) @",null,null,{"$f":"COVERS","v":0.5},0]
[null,null,null,"Binder(s) @",null,null,{"$f":"BINDERS","v":0.5},0]
[null,null,null,null,null,"Subtotal",null,{"$f":"SUM(H36:H43)","v":0}]
["DESIGN:","ITEM","QTY","DESCRIPTION",null,null,"UNIT COST "]
[null,"Reproduction:",null,"8 1/2 x 11 B & W Copies @",null,null,{"$f":"LETTERCOPIES","v":0.14000000000000001},{"$f":"SUM(C46*G46)","v":0}]
[null,null,null,"11 x 17 B & W Copies @",null,null,{"$f":"LEDGERCOPIES","v":0.34},0]
[null,null,null,"Blueprints - 8 1/2 x 11 @",null,null,{"$f":"BLUEPRINTSLETTER","v":0.35},0]
[null,null,null,"Mylar - 8 1/2 x 11 @",null,null,{"$f":"MYLARSLETTER","v":7.32},0]
[null,null,null,"Mylar - 36 x 48 @",null,null,{"$f":"MYLARSLARGE","v":28.12},0]
[null,null,null,"Prints  - 24 x 36 @",null,null,{"$f":"PRINTSLARGE","v":3},0]
[null,null,null,"Blueprints - 42 x 72 @",null,null,{"$f":"BLUEPRINTSLARGE","v":1.3},0]
[null,null,null,"SQ. FT. of Plots (B & W or Color)",null,"<65 SQ. FT.*",{"$f":"ROLLPLOTSshort","v":6.5},0]
[null,null,null,"SQ. FT. of Plots (B & W or Color)",null,">65 SQ. FT.*",{"$f":"ROLLPLOTSlong","v":1.5},0]
[null,null,null,"USGS Map(s)",null,null,{"$f":"USGSMAPS","v":7},0]
[null,null,null,null,null,"Subtotal",null,{"$f":"SUM(H46:H55)","v":0}]
["ENVIRONMENTAL DOCUMENT(S):","ITEM","QTY","DESCRIPTION",null,null,"UNIT COST "]
[null,"Reproduction:",null,"8 1/2 x 11 B & W Copies @",null,null,{"$f":"LETTERCOPIES","v":0.14000000000000001},{"$f":"SUM(C58*G58)","v":0}]
[null,null,null,"11 x 17 B & W Copies @",null,null,{"$f":"LEDGERCOPIES","v":0.34},0]
[null,null,null,"8 1/2 x 11 Color Copies @",null,null,{"$f":"LETTERCOLOR","v":0.83},0]
[null,null,null,"11 x 17 Color Copies @",null,null,{"$f":"LEDGERCOLOR","v":1.66},0]
[" ",null,null,"Cover(s) @",null,null,{"$f":"COVERS","v":0.5},0]
[null,null,null,"Binder(s) @",null,null,{"$f":"BINDERS","v":0.5},0]
[null,null,null,null,null,"Subtotal",null,{"$f":"SUM(H58:H63)","v":0}]
["MEETINGS & PUBLIC INVOLVEMENT:","ITEM","QTY","DESCRIPTION",null,null,"UNIT COST "]
[null,"Travel:"]
[null,"Sedan",null,"Trip(s) @",null,"miles @",{"$f":"SEDAN","v":0.7},{"$f":"SUM(C67*E67*G67)","v":0}]
[null,"CarryAll",null,"Trip(s) @",null,"miles @",{"$f":"CARRYALL","v":0.72},{"$f":"SUM(C68*E68*G68)","v":0}]
[null,"Car Rental",null,null,null,"days @",{"$f":"CARRENTAL","v":50},{"$f":"SUM(E69*G69)","v":0}]
[null,"Gas for Rental",null,null,null,"miles @",{"$f":"GASforRENTAL","v":0.2},{"$f":"SUM(E70*G70)","v":0}]
[null,"Parking:",null,"Trip(s) @",null,null,{"$f":"PARKING","v":3},{"$f":"SUM(C71*G71)","v":0}]
[null,"Per Diem:",null,"Breakfast",null,null,{"$f":"BREAKFAST","v":10.1},{"$f":"SUM(C72*G72)","v":0}]
[null,null,null,"Lunch",null,null,{"$f":"LUNCH","v":13.3},{"$f":"SUM(C73*G73)","v":0}]
[null,null,null,"Dinner",null,null,{"$f":"DINNER","v":23.1},{"$f":"SUM(C74*G74)","v":0}]
[null,null,null,"Lodging",null,null,{"$f":"LODGING_LUMP.SUM","v":95},{"$f":"SUM(C75*G75)","v":0}]
[null,"Workshop "]
[null,"  - Reproduction",null,"8 1/2 x 11 B & W Copies @",null,"Handouts",{"$f":"LETTERCOPIES","v":0.14000000000000001},{"$f":"SUM(C77*E77*G77)","v":0}]
[null,null,null,"11 x 17 B & W Copies @",null,"Handouts",{"$f":"LEDGERCOPIES","v":0.34},{"$f":"SUM(C78*E78*G78)","v":0}]
[null,null,null,"8 1/2 x 11 Color Copies @",null,null,{"$f":"LETTERCOLOR","v":0.83},{"$f":"SUM(C79*G79)","v":0}]
[null,null,null,"11 x 17 Color Copies @",null,null,{"$f":"LEDGERCOLOR","v":1.66},0]
[null,null,null,"SQ. FT. of Plots (B & W or Color)",null,"<65 SQ. FT.*",{"$f":"ROLLPLOTSshort","v":6.5},0]
[null,null,null,"SQ. FT. of Plots (B & W or Color)",null,">65 SQ. FT.*",{"$f":"ROLLPLOTSlong","v":1.5},0]
[null,null,null,"SQ. FT. Foam Mounting Board @",null,null,{"$f":"FOAMMOUNTINGBOARD","v":1.25},0]
[null,"Presentation Materials:",null,"Misc. Workshop Supplies @",null,"per workshop",{"$f":"MISCWORKSHOPSUPPLIES","v":50},0]
[null,"Mailing Labels:",null,"Laser Peel & Stick (box)",null,"750 per box",{"$f":"LASERPEELandSTICK","v":4},0]
[null,"Postage:"]
[null,"  - Public Workshops:",null,"Notice or Newsletter @",null,"copies @",{"$f":"POSTAGE","v":0.49},{"$f":"SUM(C87*E87*G87)","v":0}]
[null,null,null,null,null,"Subtotal",null,{"$f":"SUM(H66:H87)","v":0}]
["Miscellaneous Other","ITEM","QTY","DESCRIPTION",null,null,"UNIT COST "]
[null,null,null,null,null,null,null,{"$f":"SUM(C90*G90)","v":0}]
[null,null,null,null,null,null,null,{"$f":"SUM(C91*G91)","v":0}]
[null,null,null,null,null,null,null,0]
[null,null,null,null,null,null,null,0]
[null,null,null,null,null,null,null,0]
[null,null,null,null,null,null,null,0]
[null,null,null,null,null,null,null,0]
[null,null,null,null,null,null,null,{"$f":"SUM(C97*G97)","v":0}]
[null,null,null,null,null,null,null,{"$f":"SUM(C98*G98)","v":0}]
[null,null,null,null,null,null,null,{"$f":"SUM(C99*G99)","v":0}]
[null,null,null,null,null,"Subtotal",null,{"$f":"SUM(H90:H99)","v":0}]
[]
[null,null,null,null,null,"TOTAL",null,{"$f":"SUM(H30+H34+H44+H56+H64+H88+H100)","v":0}]
[]
[null,"* Sum of all plots "]

{"sheet":"Geotech","index":24,"n_rows":86,"n_cols":15,"rows_kept":86,"cut":false,"hidden":true,"merged":[[17,3,17,5],[17,6,17,8],[19,0,20,0],[14,0,14,1],[14,2,14,3],[14,6,14,10],[14,11,14,12],[15,6,15,10],[15,11,15,12],[12,2,12,3],[12,6,12,10],[12,11,12,12],[13,2,13,3],[13,6,13,10],[13,11,13,12],[10,2,10,3],[10,6,10,10],[10,11,10,12],[11,0,11,1],[11,2,11,3],[11,6,11,10],[11,11,11,12],[8,0,8,1],[8,2,8,3],[8,6,8,10],[8,11,8,12],[9,0,9,1],[9,2,9,3],[9,6,9,10],[9,11,9,12],[6,0,6,1],[6,2,6,3],[6,6,6,10],[6,11,6,12],[7,0,7,1],[7,2,7,3],[7,6,7,10],[7,11,7,12],[4,1,4,2],[4,3,4,4],[4,5,4,6],[4,7,4,9],[4,10,4,12],[0,0,0,12],[1,0,3,0],[1,1,3,4],[1,5,1,6],[1,7,1,12],[2,5,2,6],[2,7,2,12],[3,5,3,6],[3,7,3,8],[3,9,3,10],[3,11,3,12]]}
["Geotech Summary & Labor Expenses"]
["PROJECT DESCRIPTION: ",{"$f":"PROJECT.DESCRIPTION","v":0},null,null,null,"FIRM: ",null,{"$f":"GEOTECHNICAL_CONSULTANT_NAME","v":"CONSULTANT NAME"}]
[null,null,null,null,null,"PREPARED BY: ",null,{"$f":"IF(SCOPE.MANDAY.ESTIMATE.PREPARED.BY=\"\",\"\",SCOPE.MANDAY.ESTIMATE.PREPARED.BY)","v":""}]
[null,null,null,null,null,"DATE PREPARED: ",null,{"$f":"IF(SCOPE.MANDAY.ESTIMATE.PREPARED.BY.DATE=\"\",\"\",SCOPE.MANDAY.ESTIMATE.PREPARED.BY.DATE)","v":""},null,"REVISION DATE: ",null,{"$f":"IF(SCOPE.MANDAY.ESTIMATE.APPROVED.BY.DATE=\"\",\"\",SCOPE.MANDAY.ESTIMATE.APPROVED.BY.DATE)","v":""}]
["WBS ELEMENT: ",{"$f":"WBS.NUMBER","v":""},null,"TIP: ",null,{"$f":"TIP.NUMBER","v":0},null,"MMS TASK NUMBER:",null,null,{"$f":"TASK.ORDER.NUMBER","v":0}]
[]
["TOTAL WORK HOURS:",null,{"$f":"SUM(B22:M22)","v":0},null,null,null,"MOBILIZATION AND TRAVEL TOTAL:",null,null,null,null,{"$f":"GeotechTotalB03","v":0}]
["TOTAL WORKDAYS (8 HOUR DAYS):",null,{"$f":"ROUND(GEOTECHNICAL_HOURS/8,2)","v":0},null,null,null,"DRILLING TOTAL:",null,null,null,null,{"$f":"GeotechTotalB04a+GeotechTotalB04b+GeotechTotalB04c+GeotechTotalB04d","v":0}]
["TOTAL PAYROLL BURDEN:",null,{"$f":"ROUND(SUM(B24:M24),2)","v":0},null,null,null,"PAVEMENT INVESTIGATION TOTAL:",null,null,null,null,{"$f":"GeotechTotalB05","v":0}]
["AVERAGE COST PER HOUR:",null,{"$f":"IF((C8=0),\"$0.00 \",(SUM(C9/(C8*8))))","v":"$0.00 "},null,null,null,"INVESTIGATION EQUIPMENT TOTAL:",null,null,null,null,{"$f":"GeotechTotalB06","v":0}]
["OVERHEAD @ X%:",{"$f":"GEOTECHNICAL_CONSULTANT_OVERHEAD","v":0},{"$f":"ROUND(C9*B11,2)","v":0},null,null,null,"TESTING EQUIPMENT TOTAL:",null,null,null,null,{"$f":"GeotechTotalB07","v":0}]
["SUBTOTAL:",null,{"$f":"ROUND(C11+C9,2)","v":0},null,null,null,"GEOENVIRONMENTAL TOTAL:",null,null,null,null,{"$f":"GeotechTotalB08","v":0}]
["FIXED FEE @ X%:",{"$f":"GEOTECHNICAL_CONSULTANT_FEE","v":0.09},{"$f":"ROUND(C12*B13,2)","v":0},null,null,null,"GEOPHYSICAL:",null,null,null,null,{"$f":"GeotechTotalB09","v":0}]
["COST OF CAPITAL @ X%:",{"$f":"GEOTECHNICAL_CONSULTANT_COSTofCAPITAL","v":0},{"$f":"ROUND(C9*B14,2)","v":0},null,null,null,"LABORATORY TESTING:",null,null,null,null,{"$f":"GeotechTotalB10","v":0}]
["PAYROLL TOTAL:",null,{"$f":"ROUND(SUM(C12:D14),2)","v":0},null,null,null,"MISCELLANEOUS:",null,null,null,null,{"$f":"GeotechTotalB11","v":0}]
[null,null,null,null,null,null,"DIRECT EXPENSES TOTAL:",null,null,null,null,{"$f":"ROUND(SUM(L7:M15),2)","v":0}]
["Show Rows 25:86"]
["Hide Unused Rows 26:85",null,null,"TOTAL",null,null,{"$f":"ROUND(C15+L16,2)","v":0}]
[]
["EMPLOYEES'  INFORMATION\n\nNAME             POSITION",{"$f":"GEOTECHNICAL_CONSULTANT_CLASSIFICATION.1_TITLE","v":0},{"$f":"GEOTECHNICAL_CONSULTANT_CLASSIFICATION.2_TITLE","v":0},{"$f":"GEOTECHNICAL_CONSULTANT_CLASSIFICATION.3_TITLE","v":0},{"$f":"GEOTECHNICAL_CONSULTANT_CLASSIFICATION.4_TITLE","v":0},{"$f":"GEOTECHNICAL_CONSULTANT_CLASSIFICATION.5_TITLE","v":0},{"$f":"GEOTECHNICAL_CONSULTANT_CLASSIFICATION.6_TITLE","v":0},{"$f":"GEOTECHNICAL_CONSULTANT_CLASSIFICATION.7_TITLE","v":0},{"$f":"GEOTECHNICAL_CONSULTANT_CLASSIFICATION.8_TITLE","v":0},{"$f":"GEOTECHNICAL_CONSULTANT_CLASSIFICATION.9_TITLE","v":0},{"$f":"GEOTECHNICAL_CONSULTANT_CLASSIFICATION.10_TITLE","v":0},{"$f":"GEOTECHNICAL_CONSULTANT_CLASSIFICATION.11_TITLE","v":0},{"$f":"GEOTECHNICAL_CONSULTANT_CLASSIFICATION.12_TITLE","v":0}]
[null,{"$f":"GEOTECHNICAL_CONSULTANT_CLASSIFICATION.1_NAME","v":0},{"$f":"GEOTECHNICAL_CONSULTANT_CLASSIFICATION.2_NAME","v":0},{"$f":"GEOTECHNICAL_CONSULTANT_CLASSIFICATION.3_NAME","v":0},{"$f":"GEOTECHNICAL_CONSULTANT_CLASSIFICATION.4_NAME","v":0},{"$f":"GEOTECHNICAL_CONSULTANT_CLASSIFICATION.5_NAME","v":0},{"$f":"GEOTECHNICAL_CONSULTANT_CLASSIFICATION.6_NAME","v":0},{"$f":"GEOTECHNICAL_CONSULTANT_CLASSIFICATION.7_NAME","v":0},{"$f":"GEOTECHNICAL_CONSULTANT_CLASSIFICATION.8_NAME","v":0},{"$f":"GEOTECHNICAL_CONSULTANT_CLASSIFICATION.9_NAME","v":0},{"$f":"GEOTECHNICAL_CONSULTANT_CLASSIFICATION.10_NAME","v":0},{"$f":"GEOTECHNICAL_CONSULTANT_CLASSIFICATION.11_NAME","v":0},{"$f":"GEOTECHNICAL_CONSULTANT_CLASSIFICATION.12_NAME","v":0}]
["TOTAL HOURS:",{"$f":"B86","v":0},{"$f":"C86","v":0},0,0,0,0,0,0,0,0,0,0]
["HOURLY SALARY RATE:",{"$f":"GEOTECHNICAL_CONSULTANT_CLASSIFICATION.1_RATE","v":0},{"$f":"GEOTECHNICAL_CONSULTANT_CLASSIFICATION.2_RATE","v":0},{"$f":"GEOTECHNICAL_CONSULTANT_CLASSIFICATION.3_RATE","v":0},{"$f":"GEOTECHNICAL_CONSULTANT_CLASSIFICATION.4_RATE","v":0},{"$f":"GEOTECHNICAL_CONSULTANT_CLASSIFICATION.5_RATE","v":0},{"$f":"GEOTECHNICAL_CONSULTANT_CLASSIFICATION.6_RATE","v":0},{"$f":"GEOTECHNICAL_CONSULTANT_CLASSIFICATION.7_RATE","v":0},{"$f":"GEOTECHNICAL_CONSULTANT_CLASSIFICATION.8_RATE","v":0},{"$f":"GEOTECHNICAL_CONSULTANT_CLASSIFICATION.9_RATE","v":0},{"$f":"GEOTECHNICAL_CONSULTANT_CLASSIFICATION.10_RATE","v":0},{"$f":"GEOTECHNICAL_CONSULTANT_CLASSIFICATION.11_RATE","v":0},{"$f":"GEOTECHNICAL_CONSULTANT_CLASSIFICATION.12_RATE","v":0}]
["PAYROLL BURDEN",{"$f":"SUM(B22*B23)","v":0},0,0,0,0,0,0,0,0,0,0,0]
["Task",{"$f":"B$20","v":0},{"$f":"C$20","v":0},0,0,0,0,0,0,0,0,0,0,"Total","Notes"]
["Field - Project Management",null,null,null,null,null,null,null,null,null,null,null,null,{"$f":"SUM(B26:M26)","v":0}]
["Field - Scoping/Site Visit/Meeting",null,null,null,null,null,null,null,null,null,null,null,null,0]
["Field - Boring Plan",null,null,null,null,null,null,null,null,null,null,null,null,0]
["Field - GPS Setup",null,null,null,null,null,null,null,null,null,null,null,null,0]
["Field - Property Owner Contacts",null,null,null,null,null,null,null,null,null,null,null,null,0]
["Field - Utility Locate Tickets",null,null,null,null,null,null,null,null,null,null,null,null,0]
["Field - Administration/Project Setup",null,null,null,null,null,null,null,null,null,null,null,null,0]
["Field - Boring Layout",null,null,null,null,null,null,null,null,null,null,null,null,0]
["Field - Property Owner Contacts",null,null,null,null,null,null,null,null,null,null,null,null,0]
["Field - Site Supervision",null,null,null,null,null,null,null,null,null,null,null,null,0]
["Field - Boring Hub Survey",null,null,null,null,null,null,null,null,null,null,null,null,0]
["Field - Travel",null,null,null,null,null,null,null,null,null,null,null,null,0]
["Field - Utility Coordination",null,null,null,null,null,null,null,null,null,null,null,null,0]
["Field - Sample Delivery",null,null,null,null,null,null,null,null,null,null,null,null,0]
["Structure - Inventory Preparation",null,null,null,null,null,null,null,null,null,null,null,null,0]
["Structure - Foundation Recs Report",null,null,null,null,null,null,null,null,null,null,null,null,0]
["Structure - Slope Stability Analysis",null,null,null,null,null,null,null,null,null,null,null,null,0]
["Structure - Lateral Stability Analysis",null,null,null,null,null,null,null,null,null,null,null,null,0]
["Structure - Pile Driveability Analysis",null,null,null,null,null,null,null,null,null,null,null,null,0]
["Structure - Axial Capacity Analysis",null,null,null,null,null,null,null,null,null,null,null,null,0]
["Structure - Spread Footing Bearing Capacity",null,null,null,null,null,null,null,null,null,null,null,null,0]
["Structure - Settlement Analysis",null,null,null,null,null,null,null,null,null,null,null,null,0]
["Roadway - Inventory Preparation",null,null,null,null,null,null,null,null,null,null,null,null,0]
["Roadway - Written Recs Report 8 1/2 x 11",null,null,null,null,null,null,null,null,null,null,null,null,0]
["Roadway - Rec. Graphics Report 11 x 17",null,null,null,null,null,null,null,null,null,null,null,null,0]
["Roadway - Slope Stability Analysis",null,null,null,null,null,null,null,null,null,null,null,null,0]
["Roadway - Settlement Analysis",null,null,null,null,null,null,null,null,null,null,null,null,0]
["Roadway - Ground Improvement",null,null,null,null,null,null,null,null,null,null,null,null,0]
["Roadway - Reinforced Slope Design",null,null,null,null,null,null,null,null,null,null,null,null,0]
["Roadway - Rock Plating/Embankment Design",null,null,null,null,null,null,null,null,null,null,null,null,0]
["Wall - Wall Inventory Preparation",null,null,null,null,null,null,null,null,null,null,null,null,{"$f":"SUM(B56:M56)","v":0}]
["Wall - Written Recs Report 8.5 x 11",null,null,null,null,null,null,null,null,null,null,null,null,0]
["Wall - Global Stability Analysis",null,null,null,null,null,null,null,null,null,null,null,null,0]
["Wall - Internal Stability Analysis",null,null,null,null,null,null,null,null,null,null,null,null,0]
["Wall - Plan Preparation",null,null,null,null,null,null,null,null,null,null,null,null,0]
["Wall - Soil Parameter Analysis",null,null,null,null,null,null,null,null,null,null,null,null,0]
["Misc - Special Provision Preparation",null,null,null,null,null,null,null,null,null,null,null,null,0]
["Misc - Report Review/Seal & Sign",null,null,null,null,null,null,null,null,null,null,null,null,0]
[null,null,null,null,null,null,null,null,null,null,null,null,null,0]
[null,null,null,null,null,null,null,null,null,null,null,null,null,0]
[null,null,null,null,null,null,null,null,null,null,null,null,null,0]
[null,null,null,null,null,null,null,null,null,null,null,null,null,0]
[null,null,null,null,null,null,null,null,null,null,null,null,null,0]
[null,null,null,null,null,null,null,null,null,null,null,null,null,0]
[null,null,null,null,null,null,null,null,null,null,null,null,null,0]
[null,null,null,null,null,null,null,null,null,null,null,null,null,0]
[null,null,null,null,null,null,null,null,null,null,null,null,null,0]
[null,null,null,null,null,null,null,null,null,null,null,null,null,0]
[null,null,null,null,null,null,null,null,null,null,null,null,null,0]
[null,null,null,null,null,null,null,null,null,null,null,null,null,0]
[null,null,null,null,null,null,null,null,null,null,null,null,null,0]
[null,null,null,null,null,null,null,null,null,null,null,null,null,{"$f":"SUM(B77:M77)","v":0}]
[null,null,null,null,null,null,null,null,null,null,null,null,null,0]
[null,null,null,null,null,null,null,null,null,null,null,null,null,{"$f":"SUM(B79:M79)","v":0}]
[null,null,null,null,null,null,null,null,null,null,null,null,null,0]
[null,null,null,null,null,null,null,null,null,null,null,null,null,{"$f":"SUM(B81:M81)","v":0}]
[null,null,null,null,null,null,null,null,null,null,null,null,null,0]
[null,null,null,null,null,null,null,null,null,null,null,null,null,{"$f":"SUM(B83:M83)","v":0}]
[null,null,null,null,null,null,null,null,null,null,null,null,null,0]
[null,null,null,null,null,null,null,null,null,null,null,null,null,{"$f":"SUM(B85:M85)","v":0}]
["Total",{"$f":"SUM(B26:B85)","v":0},{"$f":"SUM(C26:C85)","v":0},0,0,0,0,0,0,0,0,0,0,{"$f":"SUM(B26:M85)","v":0}]

{"sheet":"GeotechFieldCosts","index":25,"n_rows":410,"n_cols":7,"rows_kept":410,"cut":false,"hidden":true,"merged":[[17,0,17,1],[16,0,16,1],[14,0,14,1],[15,0,15,1],[408,0,408,1],[409,3,409,6],[402,0,402,1],[403,0,403,1],[404,0,404,1],[405,0,405,1],[406,0,406,1],[407,0,407,1],[396,0,396,1],[397,0,397,1],[398,0,398,1],[399,0,399,1],[400,0,400,1],[401,0,401,1],[393,0,393,1],[394,0,394,1],[395,0,395,1],[384,0,384,1],[385,0,385,1],[386,0,386,1],[390,0,390,1],[391,0,391,1],[392,0,392,1],[363,0,363,1],[367,0,367,1],[368,0,368,1],[369,0,369,1],[378,0,378,1],[379,0,379,1],[380,0,380,1],[381,0,381,1],[382,0,382,1],[387,0,387,1],[388,0,388,1],[389,0,389,1],[383,0,383,1],[373,0,373,1],[374,0,374,1],[375,0,375,1],[376,0,376,1],[377,0,377,1],[372,0,372,1],[358,0,358,1],[359,0,359,1],[360,0,360,1],[361,0,361,1],[362,0,362,1],[351,0,351,1],[352,0,352,1],[353,0,353,1],[354,0,354,1],[355,0,355,1],[357,0,357,1],[356,0,356,1],[345,0,345,1],[346,0,346,1],[347,0,347,1],[348,0,348,1],[349,0,349,1],[350,0,350,1],[339,0,339,1],[340,0,340,1],[341,0,341,1],[342,0,342,1],[343,0,343,1],[344,0,344,1],[333,0,333,1],[334,0,334,1],[335,0,335,1],[336,0,336,1],[337,0,337,1],[338,0,338,1],[327,0,327,1],[328,0,328,1],[329,0,329,1],[330,0,330,1],[331,0,331,1],[332,0,332,1],[312,0,312,1],[313,0,313,1],[314,0,314,1],[321,0,321,1],[322,0,322,1],[323,0,323,1],[315,0,315,1],[316,0,316,1],[317,0,317,1],[318,0,318,1],[319,0,319,1],[320,0,320,1],[308,0,308,1],[297,0,297,1],[298,0,298,1],[299,0,299,1],[300,0,300,1],[301,0,301,1],[309,0,309,1],[310,0,310,1],[311,0,311,1],[291,0,291,1],[292,0,292,1],[293,0,293,1],[294,0,294,1],[295,0,295,1],[296,0,296,1],[286,0,286,1],[287,0,287,1],[288,0,288,1],[289,0,289,1],[290,0,290,1],[283,0,283,1],[284,0,284,1],[285,0,285,1],[274,0,274,1],[275,0,275,1],[276,0,276,1],[277,0,277,1],[278,0,278,1],[279,0,279,1],[256,0,256,1],[257,0,257,1],[261,0,261,1],[246,0,246,1],[247,0,247,1],[248,0,248,1],[249,0,249,1],[250,0,250,1],[255,0,255,1],[251,0,251,1],[253,0,253,1],[254,0,254,1],[252,0,252,1],[240,0,240,1],[241,0,241,1],[242,0,242,1],[243,0,243,1],[244,0,244,1],[245,0,245,1],[234,0,234,1],[235,0,235,1],[236,0,236,1],[237,0,237,1],[238,0,238,1],[239,0,239,1],[228,0,228,1],[229,0,229,1],[230,0,230,1],[231,0,231,1],[232,0,232,1],[233,0,233,1],[221,0,221,1],[222,0,222,1],[226,0,226,1],[227,0,227,1],[223,0,223,1],[224,0,224,1],[225,0,225,1],[215,0,215,1],[216,0,216,1],[217,0,217,1],[218,0,218,1],[219,0,219,1],[220,0,220,1],[209,0,209,1],[210,0,210,1],[211,0,211,1],[212,0,212,1],[213,0,213,1],[214,0,214,1],[202,0,202,1],[206,0,206,1],[207,0,207,1],[208,0,208,1],[196,0,196,1],[197,0,197,1],[198,0,198,1],[199,0,199,1],[200,0,200,1],[201,0,201,1],[203,0,203,1],[204,0,204,1],[205,0,205,1],[192,0,192,1],[195,0,195,1],[186,0,186,1],[187,0,187,1],[188,0,188,1],[189,0,189,1],[190,0,190,1],[191,0,191,1],[193,0,193,1],[194,0,194,1],[180,3,180,6],[182,0,182,6],[183,0,183,1],[184,0,184,1],[185,0,185,1],[174,0,174,1],[175,0,175,1],[176,0,176,1],[177,0,177,1],[178,0,178,1],[179,0,179,1],[168,0,168,1],[169,0,169,1],[170,0,170,1],[171,0,171,1],[172,0,172,1],[173,0,173,1],[163,0,163,1],[164,0,164,1],[165,0,165,1],[166,0,166,1],[167,0,167,1],[124,3,124,6],[126,0,126,6],[127,0,127,1],[137,0,137,1],[138,0,138,1],[140,0,140,1],[141,0,141,1],[142,0,142,1],[133,0,133,1],[128,0,128,1],[129,0,129,1],[132,0,132,1],[134,3,134,6],[136,0,136,6],[130,0,130,1],[131,0,131,1],[139,0,139,1],[117,0,117,1],[118,0,118,1],[122,0,122,1],[123,0,123,1],[112,0,112,1],[114,0,114,1],[116,0,116,1],[120,0,120,1],[121,0,121,1],[113,0,113,1],[108,0,108,1],[109,0,109,1],[110,0,110,1],[111,0,111,1],[83,0,83,1],[84,0,84,1],[85,0,85,1],[86,0,86,1],[87,0,87,1],[89,0,89,1],[98,0,98,1],[99,0,99,1],[106,0,106,1],[101,0,101,1],[102,0,102,1],[103,0,103,1],[104,0,104,1],[105,0,105,1],[90,0,90,1],[91,0,91,1],[92,0,92,1],[93,0,93,1],[94,0,94,1],[39,0,39,1],[56,0,56,1],[57,0,57,1],[58,0,58,1],[59,0,59,1],[46,0,46,1],[47,0,47,1],[54,0,54,1],[107,0,107,1],[95,0,95,1],[96,0,96,1],[97,0,97,1],[78,0,78,1],[77,0,77,1],[55,0,55,1],[48,0,48,1],[49,0,49,1],[50,0,50,1],[51,0,51,1],[53,0,53,1],[88,0,88,1],[62,0,62,1],[63,0,63,1],[70,0,70,1],[0,0,0,6],[1,0,1,6],[2,0,2,6],[4,0,4,6],[5,0,5,1],[6,0,6,1],[41,0,41,1],[42,0,42,1],[29,0,29,1],[35,0,35,1],[21,0,21,1],[22,0,22,1],[23,0,23,1],[28,0,28,1],[12,0,12,1],[18,0,18,1],[19,0,19,1],[20,0,20,1],[36,0,36,1],[37,0,37,1],[38,0,38,1],[40,0,40,1],[34,0,34,1],[7,0,7,1],[8,0,8,1],[9,0,9,1],[10,0,10,1],[13,0,13,1],[11,0,11,1],[151,0,151,6],[152,0,152,1],[153,0,153,1],[79,0,79,1],[30,3,30,6],[32,0,32,6],[33,0,33,1],[80,3,80,6],[82,0,82,6],[66,0,66,1],[67,0,67,1],[60,0,60,1],[61,0,61,1],[68,0,68,1],[69,0,69,1],[43,0,43,1],[44,0,44,1],[45,0,45,1],[100,0,100,1],[258,3,258,6],[260,0,260,6],[302,3,302,6],[304,0,304,6],[305,0,305,1],[306,0,306,1],[307,0,307,1],[324,3,324,6],[326,0,326,6],[268,0,268,1],[269,0,269,1],[270,0,270,1],[271,0,271,1],[272,0,272,1],[273,0,273,1],[262,0,262,1],[263,0,263,1],[264,0,264,1],[265,0,265,1],[266,0,266,1],[267,0,267,1],[280,0,280,1],[281,0,281,1],[282,0,282,1],[52,0,52,1],[74,0,74,1],[75,0,75,1],[76,0,76,1],[64,0,64,1],[364,3,364,6],[366,0,366,6],[370,0,370,1],[371,0,371,1],[154,0,154,1],[160,3,160,6],[162,0,162,6],[143,0,143,1],[145,0,145,1],[146,0,146,1],[147,0,147,1],[148,0,148,1],[157,0,157,1],[158,0,158,1],[159,0,159,1],[149,3,149,6],[144,0,144,1],[155,0,155,1],[156,0,156,1]]}
["Geotech Direct Expenses"]
[{"$f":"\"TIP: \"&TIP.NUMBER","v":"TIP: "}]
[{"$f":"\"Firm: \"&GEOTECHNICAL_CONSULTANT_NAME","v":"Firm: CONSULTANT NAME"}]
[]
["Mobilization and Travel"]
["Item",null,"Quantity","Unit","ID","Rate","Total"]
["Truck, ATV, or Track Drill Rig",null,null,"each",1001,null,{"$f":"IF(ISBLANK(C7),\"\",ROUND(C7*F7,2))","v":""}]
["CPT Rig / Direct Push Rig",null,null,"each",1002,null,{"$f":"IF(ISBLANK(C8),\"\",ROUND(C8*F8,2))","v":""}]
["Truck, ATV, or Track Drill Rig / CPT Rig / Direct Push Rig - outside 50 mile\nradius of base",null,null,"miles",1004,null,""]
["Marsh Buggy with Drill Rig/Marsh Master/Amphibious ATV",null,null,"each",1006,null,""]
["Marsh Buggy with Drill Rig/Marsh Master/Amphibious ATV - outside 50 mile\nradius of base",null,null,"miles",1005,null,""]
["Marsh Buggy with Drill Rig/Marsh Master/Amphibious ATV Daily\nRate from Section B.2",null,null,"each",null,{"$f":"F121","v":0},""]
["Barge Including Drill Rig, Support Boat Daily Rate from Section B.2",null,null,"each",null,{"$f":"F129","v":0},""]
["Crew Travel Time",null,null,"hours",1007,125,""]
["Per Diem - Breakfast",null,null,"each",1006,{"$f":"BREAKFAST","v":10.1},{"$f":"IF(ISBLANK(C15),\"\",ROUND(C15*F15,2))","v":""}]
["Per Diem - Lunch",null,null,"each",1006,{"$f":"LUNCH","v":13.3},""]
["Per Diem - Dinner",null,null,"each",1006,{"$f":"DINNER","v":23.1},""]
["Per Diem - Hotel (LUMP SUM)",null,null,"each",1006,{"$f":"LODGING_LUMP.SUM","v":95},{"$f":"IF(ISBLANK(C18),\"\",ROUND(C18*F18,2))","v":""}]
["Per Diem @ Lump Sum Rate",null,null,"days",null,{"$f":"BREAKFAST+LUNCH+DINNER+LODGING_LUMP.SUM","v":141.5},""]
["Sedan Mileage",null,null,"miles",null,{"$f":"SEDAN","v":0.7},""]
["Carryall Mileage",null,null,"miles",null,{"$f":"CARRYALL","v":0.72},""]
["Car Rental",null,null,"days",null,{"$f":"CARRENTAL","v":50},""]
["Car Rental Mileage - Gas for Rental",null,null,"miles",null,{"$f":"GASforRENTAL","v":0.2},""]
[null,null,null,null,1334,null,""]
[null,null,null,null,null,null,""]
[null,null,null,null,1335,null,""]
[null,null,null,null,1336,null,""]
[null,null,null,null,null,null,""]
[null,null,null,null,1337,null,""]
[null,null,null,null,1338,null,""]
[null,null,"Total",{"$f":"SUM(G7:G30)","v":0}]
[]
["Drilling - Truck/ATV/Track"]
["Item",null,"Quantity","Unit","ID","Rate","Total"]
["Auger Borings w/o SPT (not applicable to water)",null,null,"feet",1012,null,{"$f":"IF(ISBLANK(C35),\"\",ROUND(C35*F35,2))","v":""}]
["SPT Borings - 0'-60'",null,null,"feet",1013,null,""]
["SPT Borings - 60'-120'",null,null,"feet",1014,null,""]
["SPT Borings - 120'+",null,null,"each",1015,null,""]
["SPT Extra Drives (interval <5 feet) - 11'-60'",null,null,"each",1016,null,""]
["SPT Extra Drives (interval <5 feet) - 60'-120'",null,null,"each",1016,null,""]
["SPT Extra Drives (interval <5 feet) - 120'+",null,null,"feet",1017,null,""]
["Hard Drilling N>100 BPF - 0'-60'",null,null,"feet",1018,null,""]
["Hard Drilling N>100 BPF - 60'-120'",null,null,"feet",1019,null,""]
["Hard Drilling N>100 BPF - 120'+",null,null,"feet",1020,null,""]
["Installation of 3\" to 4\" Steel Casing w/ SPT - 0'-60'",null,null,"feet",1021,null,""]
["Installation of 3\" to 4\" Steel Casing w/ SPT - 60'-120'",null,null,"feet",1022,null,""]
["Installation of 3\" to 4\" Steel Casing w/ SPT - 120'+",null,null,"feet",1017,null,""]
["Installation of 3\" to 4\" Steel Casing w/o SPT - 0'-60'",null,null,"feet",1018,null,""]
["Installation of 3\" to 4\" Steel Casing w/o SPT - 60'-120'",null,null,"feet",1017,null,""]
["Installation of 3\" to 4\" Steel Casing w/o SPT - 120'+",null,null,"feet",1018,null,""]
["Installation of 3\" to 4\" Steel Casing using casing advancer w/ SPT - 0'-60'",null,null,"feet",1019,null,""]
["Installation of 3\" to 4\" Steel Casing using casing advancer w/ SPT - 60'-120'",null,null,"feet",1020,null,""]
["Installation of 3\" to 4\" Steel Casing using casing advancer w/ SPT - 120'+",null,null,"feet",1021,null,""]
["Installation of 3\" to 4\" Steel Casing using casing advancer w/o SPT - 0'-60'",null,null,"feet",1022,null,""]
["Installation of 3\" to 4\" Steel Casing using casing advancer w/o SPT - 60'-120'",null,null,"feet",1021,null,""]
["Installation of 3\" to 4\" Steel Casing using casing advancer w/o SPT - 120'+",null,null,"feet",1022,null,""]
["Rock Coring N - 0'-60'",null,null,"feet",1017,null,""]
["Rock Coring N - 60'-120'",null,null,"feet",1018,null,""]
["Rock Coring N - 120'+",null,null,"feet",1019,null,""]
["Rock Coring H - 0'-60'",null,null,"feet",1020,null,""]
["Rock Coring H - 60'-120'",null,null,"feet",1021,null,""]
["Rock Coring H - 120'+",null,null,"feet",1022,null,""]
["SPT between core runs - 0'-60'",null,null,"each",1023,null,""]
["SPT between core runs - 60'-120'",null,null,"each",1024,null,""]
["SPT between core runs - 120'+",null,null,"each",1024,null,""]
["Miscellaneous"]
["Backfill borings with bentonite",null,null,"feet",1032,null,""]
["Grouting w/ Portland Cement Slurry",null,null,"feet",1033,null,""]
["Collection of Undisturbed Sample",null,null,"each",1036,null,""]
["Core and Patch Wood & Asphalt Bridge Deck",null,null,"each",1339,null,""]
["Core and Patch Concrete Bridge Deck",null,null,"each",1340,null,""]
[null,null,null,null,null,null,""]
[null,null,null,null,null,null,""]
[null,null,null,null,null,null,""]
[null,null,null,null,1341,null,""]
[null,null,null,null,1342,null,""]
[null,null,null,null,1343,null,""]
[null,null,null,null,1341,null,""]
[null,null,null,null,1342,null,""]
[null,null,null,null,1343,null,""]
[null,null,"Total",{"$f":"SUM(G35:G80)","v":0}]
[]
["Drilling - Marsh Buggy Incl. Marsh Master/Amphibious ATV"]
["Item",null,"Quantity","Unit","ID","Rate","Total"]
["Auger Borings w/o SPT (not applicable to water)",null,null,"feet",1316,null,{"$f":"IF(ISBLANK(C85),\"\",ROUND(C85*F85,2))","v":""}]
["SPT Borings - 0'-60'",null,null,"feet",1317,null,""]
["SPT Borings - 60'-120'",null,null,"feet",1318,null,""]
["SPT Borings - 120'+",null,null,"each",1319,null,""]
["SPT Extra Drives (interval <5 feet) - 11'-60'",null,null,"each",1320,null,""]
["SPT Extra Drives (interval <5 feet) - 60'-120'",null,null,"each",1320,null,""]
["SPT Extra Drives (interval <5 feet) - 120'+",null,null,"feet",1321,null,""]
["Hard Drilling N>100 BPF - 0'-60'",null,null,"feet",1322,null,""]
["Hard Drilling N>100 BPF - 60'-120'",null,null,"feet",1323,null,""]
["Hard Drilling N>100 BPF - 120'+",null,null,"feet",1324,null,""]
["Installation of 3\" to 4\" Steel Casing w/ SPT - 0'-60'",null,null,"feet",1321,null,""]
["Installation of 3\" to 4\" Steel Casing w/ SPT - 60'-120'",null,null,"feet",1322,null,""]
["Installation of 3\" to 4\" Steel Casing w/ SPT - 120'+",null,null,"feet",1323,null,""]
["Installation of 3\" to 4\" Steel Casing w/o SPT - 0'-60'",null,null,"feet",1324,null,""]
["Installation of 3\" to 4\" Steel Casing w/o SPT - 60'-120'",null,null,"feet",1325,null,""]
["Installation of 3\" to 4\" Steel Casing w/o SPT - 120'+",null,null,"feet",1326,null,""]
["Installation of 3\" to 4\" Steel Casing using casing advancer w/ SPT - 0'-60'",null,null,"feet",1321,null,""]
["Installation of 3\" to 4\" Steel Casing using casing advancer w/ SPT - 60'-120'",null,null,"feet",1322,null,""]
["Installation of 3\" to 4\" Steel Casing using casing advancer w/ SPT - 120'+",null,null,"feet",1323,null,""]
["Installation of 3\" to 4\" Steel Casing using casing advancer w/o SPT - 0'-60'",null,null,"feet",1324,null,""]
["Installation of 3\" to 4\" Steel Casing using casing advancer w/o SPT - 60'-120'",null,null,"feet",1325,null,""]
["Installation of 3\" to 4\" Steel Casing using casing advancer w/o SPT - 120'+",null,null,"feet",1326,null,""]
["Rock Coring N - 0'-60'",null,null,"feet",1321,null,""]
["Rock Coring N - 60'-120'",null,null,"feet",1322,null,""]
["Rock Coring N - 120'+",null,null,"feet",1323,null,""]
["Rock Coring H - 0'-60'",null,null,"feet",1324,null,""]
["Rock Coring H - 60'-120'",null,null,"feet",1325,null,""]
["Rock Coring H - 120'+",null,null,"feet",1326,null,""]
["SPT between core runs - 0'-60'",null,null,"each",1327,null,""]
["SPT between core runs - 60'-120'",null,null,"each",1328,null,""]
["SPT between core runs - 120'+",null,null,"each",1328,null,""]
["Miscellaneous"]
["Backfill borings with bentonite",null,null,"feet",1329,null,""]
["Grouting w/ Portland Cement Slurry",null,null,"feet",1332,null,""]
["Collection of Undisturbed Sample",null,null,"each",1333,null,""]
["Daily Rates"]
["Marsh Buggy including Argo/ATV/Marsh Master",null,null,"days",1329,null,""]
["Marsh Buggy including Argo/ATV/Marsh Master - Non-operational Delays",null,null,"days",1332,{"$f":"IF(F121=\"\",\"\",F121/2)","v":""},{"$f":"IF(ISBLANK(C122),\"\",ROUND(C122*F122,2))","v":""}]
[null,null,null,null,1342,null,{"$f":"IF(ISBLANK(C123),\"\",ROUND(C123*F123,2))","v":""}]
[null,null,null,null,1343,null,""]
[null,null,"Total",{"$f":"SUM(G85:G124)","v":0}]
[]
["Drilling - Barge Including Drill Rig and Support Boat"]
["Item",null,"Quantity","Unit","ID","Rate","Total"]
["Barge including drill rig & support boat",null,null,"days",1031,null,{"$f":"IF(ISBLANK(C129),\"\",ROUND(C129*F129,2))","v":""}]
["Barge including drill rig & support boat: Non-operational Delays",null,null,"days",1274,{"$f":"IF(F129=\"\",\"\",F129/2)","v":""},""]
[null,null,null,null,1362,null,""]
[null,null,null,null,1363,null,""]
[null,null,null,null,1362,null,""]
[null,null,null,null,1363,null,""]
[null,null,"Total",{"$f":"SUM(G129:G134)","v":0}]
[]
["Drilling - CPT / Direct Push"]
["Item",null,"Quantity","Unit","ID","Rate","Total"]
["CPT Rig",null,null,"days",1025,null,{"$f":"IF(ISBLANK(C139),\"\",ROUND(C139*F139,2))","v":""}]
["CPT Rig: Non-operational Delays",null,null,"days",1026,{"$f":"IF(F139=\"\",\"\",F139/2)","v":""},""]
["Direct Push Rig",null,null,"days",1027,null,""]
["Direct Push Rig: Non-operational Delays",null,null,"days",1028,{"$f":"IF(F141=\"\",\"\",F141/2)","v":""},""]
["Soundings",null,null,"feet",1029,null,""]
["Seismic Acquisition",null,null,"each",1030,null,""]
["Pore Pressure Dissipation Test",null,null,"hours",1030,null,""]
[null,null,null,null,1360,null,""]
[null,null,null,null,1361,null,""]
[null,null,null,null,1362,null,""]
[null,null,null,null,1363,null,""]
[null,null,"Total",{"$f":"SUM(G139:G149)","v":0}]
[]
["Pavement Design Investigations"]
["Item",null,"Quantity","Unit","ID","Rate","Total"]
["Pavement and Subgrade / Full Depth Reclamation Investigation",null,null,"days",1040,null,{"$f":"IF(ISBLANK(C154),\"\",ROUND(C154*F154,2))","v":""}]
["Pavement and Subgrade / Full Depth Reclamation Investigation",null,null,"nights",1041,null,""]
["Pavement and Subgrade / Full Depth Reclamation Investigation - Non-operational Delays",null,null,"days",1040,{"$f":"IF(F154=\"\",\"\",F154/2)","v":""},""]
["Pavement and Subgrade / Full Depth Reclamation Investigation - Non-operational Delays",null,null,"nights",1041,{"$f":"IF(F155=\"\",\"\",F155/2)","v":""},""]
[null,null,null,null,1366,null,""]
[null,null,null,null,1367,null,""]
[null,null,null,null,1368,null,""]
[null,null,"Total",{"$f":"SUM(G154:G160)","v":0}]
[]
["Investigation Equipment"]
["Item",null,"Quantity","Unit","ID","Rate","Total"]
["Amoozemeter/Guelph Permeameter",null,null,"days",1042,null,{"$f":"IF(ISBLANK(C165),\"\",ROUND(C165*F165,2))","v":""}]
["Coring Machine",null,null,"days",1043,null,""]
["Dilatometer",null,null,"days",1044,null,""]
["Pneumatic Piezometer (0 to 60 ft)",null,null,"days",1045,null,""]
["Pneumatic Piezometer (60+ ft)",null,null,"days",1046,null,""]
["Pneumatic Piezometer Monitor",null,null,"days",1047,null,""]
["Pressuremeter - \"Pencel\"",null,null,"days",1048,null,""]
["Pressuremeter - \"Texam\"",null,null,"days",1049,null,""]
["Truck, Boom",null,null,"hours",1050,null,""]
["Truck, Water",null,null,"days",1051,null,""]
["Vane Shear (ex. Geonor H60, H70)",null,null,"days",1052,null,""]
[null,null,null,null,1369,null,""]
[null,null,null,null,1370,null,""]
[null,null,null,null,1371,null,""]
[null,null,null,null,1372,null,""]
[null,null,null,null,1373,null,""]
[null,null,"Total",{"$f":"SUM(G165:G180)","v":0}]
[]
["Testing Equipment"]
["Item",null,"Quantity","Unit","ID","Rate","Total"]
["Crosshole Sonic Logging Equipment",null,null,"days",1053,null,{"$f":"IF(ISBLANK(C185),\"\",ROUND(C185*F185,2))","v":""}]
["Tomographic Imaging",null,null,"shaft",1054,null,""]
["Thermal Integrity Profiler (TIP) per Shaft",null,null,"shaft",1374,null,""]
["High Strain Dynamic Testing"]
["PDA Equipment",null,null,"days",1055,null,""]
["PDA Equipment",null,null,"weeks",1056,null,""]
["SPT Hammer Energy Measurement - Main Unit and Instrumented Rod",null,null,"days",1275,null,""]
["SPT Hammer Energy Measurement - Main Unit and Instrumented Rod",null,null,"weeks",1276,null,""]
["Saximeter",null,null,"weeks",1277,null,""]
["Low Strain Integrity (SIT/PIT)"]
["SIT/PIT Equipment",null,null,"days",1058,null,""]
["PET (Pulse Echo Tester)",null,null,"days",1059,null,""]
["Drilled Shaft Inspection Device"]
["Mini SID Equipment",null,null,"days",1060,null,""]
["Mini SID Equipment",null,null,"weeks",1061,null,""]
["Rapid Load Test"]
["Rapid Load Test Equipment Preparation (Per Project)",null,null,"each",1062,null,""]
["Rapid Load Test Device - 4 MN (500 Ton)",null,null,"each",1063,null,""]
["Rapid Load Test Device - 14 MN (1600 Ton)",null,null,"each",1064,null,""]
["Rapid Load Test Device - 18 MN (1800 Ton)",null,null,"each",1065,null,""]
["Rapid Load Test Device - 20 MN (2000 Ton)",null,null,"each",1066,null,""]
["Rapid Load Test Device - 40 MN (4500 Ton)",null,null,"each",1067,null,""]
["Rapid Load Test Reload - 4 MN (500 Ton)",null,null,"each",1068,null,""]
["Rapid Load Test Reload - 14 MN (1600 Ton)",null,null,"each",1069,null,""]
["Rapid Load Test Reload - 18 MN (1800 Ton)",null,null,"each",1070,null,""]
["Rapid Load Test Reload - 20 MN (2000 Ton)",null,null,"each",1071,null,""]
["Rapid Load Test Reload - 40 MN (4500 Ton)",null,null,"each",1072,null,""]
["Drop Hammer High Strain Dynamic Test"]
["Drop Hammer High Strain Dynamic Test Equipment Preparation (Per Project)",null,null,"each",1073,null,""]
["Drop Hammer High Strain Dynamic Test - 7.5 Ton",null,null,"days",1074,null,""]
["Drop Hammer High Strain Dynamic Test - 15 Ton",null,null,"days",1075,null,""]
["Drop Hammer High Strain Dynamic Test - 20 Ton",null,null,"days",1076,null,""]
["Drop Hammer High Strain Dynamic Test - 40 Ton",null,null,"days",1077,null,""]
["CAPWAP Analysis",null,null,"each",1078,null,""]
["Static Load Testing"]
["Equipment Preparation (Per Project)",null,null,"each",1079,null,""]
["Data Acquisition System",null,null,"days",1080,null,""]
["Load Cell (500 Ton)",null,null,"tests",1081,null,""]
["Load Cell (1000 Ton)",null,null,"tests",1082,null,""]
["Load Cell (1500 Ton)",null,null,"tests",1083,null,""]
["Load Cell Readout Box",null,null,"tests",1084,null,""]
["LVDT's or VWDT's (3 in travel)",null,null,"tests",1085,null,""]
["LVDT's or VWDT's (6 in travel)",null,null,"tests",1086,null,""]
["LVDT's or VWDT's (12 in travel)",null,null,"tests",1087,null,""]
["LVDT's or VWDT's (30 in travel)",null,null,"tests",1088,null,""]
["Dial Gages (6 in travel - set of 2)",null,null,"tests",1089,null,""]
["Hydraulic Pressure Transducer",null,null,"tests",1090,null,""]
["EL sensors (4 probes)",null,null,"tests",1092,null,""]
["Instrumentation and Data Acquisition"]
["Inclinometer (standard)",null,null,"tests",1091,null,""]
["Data Acquisition System",null,null,"days",1093,null,""]
["Micro-10 Data Logger",null,null,"days",1094,null,""]
["Sisterbar Strain Gage (quarter bridge)",null,null,"each",1095,null,""]
["Sisterbar Strain Gage (full bridge)",null,null,"each",1096,null,""]
["Instrumentation Cable",null,null,"each",1097,null,""]
["Instrumentation Cable",null,null,"feet",1098,null,""]
["Weldable Strain Gage (quarter bridge)",null,null,"each",1099,null,""]
["Weldable Strain Gage (full bridge)",null,null,"each",1100,null,""]
["Low Voltage Welding Unit",null,null,"days",1101,null,""]
["Piezometer Transducer",null,null,"each",1102,null,""]
["Strain Transducer",null,null,"each",1103,null,""]
["Accelerometer Transducer",null,null,"each",1104,null,""]
["EL Tiltimeter",null,null,"days",1105,null,""]
["Vibration Monitoring"]
["Vibration Monitoring Equipment",null,null,"days",1106,null,{"$f":"IF(ISBLANK(C249),\"\",ROUND(C249*F249,2))","v":""}]
["Vibration Monitoring Equipment",null,null,"weeks",1107,null,""]
["Vibration Monitoring Equipment",null,null,"months",1108,null,""]
[null,null,null,null,1375,null,""]
[null,null,null,null,1378,null,""]
[null,null,null,null,1377,null,""]
[null,null,null,null,1378,null,""]
[null,null,null,null,1375,null,""]
[null,null,null,null,1377,null,""]
[null,null,null,null,1378,null,""]
[null,null,"Total",{"$f":"SUM(G185:G258)","v":0}]
[]
["Geoenvironmental"]
["Item",null,"Quantity","Unit","ID","Rate","Total"]
["Geoenvironmental"]
["Bailer, Polyethylene Disposable",null,null,"each",1110,null,{"$f":"IF(ISBLANK(C264),\"\",ROUND(C264*F264,2))","v":""}]
["Bailer, Teflon (decon included)",null,null,"each",1111,null,""]
["Meter, Conductivity",null,null,"days",1114,null,""]
["Meter, Dissolved Oxygen",null,null,"days",1115,null,""]
["Meter, Explosimeter",null,null,"days",1116,null,""]
["Meter, Four Gas",null,null,"days",1117,null,""]
["Meter, Multimeter",null,null,"days",1118,null,""]
["Meter, pH",null,null,"days",1119,null,""]
["Meter, pH/Conductivity",null,null,"days",1120,null,""]
["Meter, pH/Conductivity/Temp",null,null,"days",1121,null,""]
["Meter, Redox (ORP)",null,null,"days",1122,null,""]
["Meter, Temperature",null,null,"days",1123,null,""]
["Meter, Turbidity",null,null,"days",1124,null,""]
["Personal Protection, Level C",null,null,"days",1125,null,""]
["Personal Protection, Level D",null,null,"days",1126,null,""]
["Probe, Oil/Water Interface",null,null,"days",1128,null,""]
["Probe, Water Level",null,null,"days",1129,null,""]
["Pump, Grundfos with Control Box",null,null,"days",1130,null,""]
["Pump, Peristaltic",null,null,"days",1132,null,""]
["Pump, Submersible (2” – 4”)",null,null,"days",1133,null,""]
["Pump, Trash",null,null,"days",1134,null,""]
["Vapor Analyzer, Flame Ionization",null,null,"days",1137,null,""]
["Vapor Analyzer, Photoionization",null,null,"days",null,null,""]
["Vapor Analyzer, Toxic (FID-PID Combo)",null,null,"days",1140,null,""]
["Monitoring Wells"]
["Concrete Pad (Flush or Stickup with manway)",null,null,"each",1143,null,""]
["Type II 2\" Diameter PVC",null,null,"feet",1144,null,""]
["Type II 4\" Diameter PVC",null,null,"feet",1145,null,""]
["Type III 2\" Diameter PVC Inner Casing",null,null,"feet",1146,null,""]
["Type III 4\" Diameter PVC Inner Casing",null,null,"feet",1147,null,""]
["Well Abandonment 1” Diameter",null,null,"feet",1150,null,""]
["Well Abandonment 2\" Diameter",null,null,"feet",1151,null,""]
["Well Abandonment 4\" Diameter",null,null,"feet",1152,null,""]
["Well Abandonment 6\" Diameter",null,null,"feet",1153,null,""]
[null,null,null,null,1379,null,""]
[null,null,null,null,1380,null,""]
[null,null,null,null,1381,null,""]
[null,null,null,null,1382,null,""]
[null,null,null,null,1383,null,""]
[null,null,"Total",{"$f":"SUM(G264:G302)","v":0}]
[]
["Geophysical"]
["Item",null,"Quantity","Unit","ID","Rate","Total"]
["AGI Sting R1 Resistivity Meter with 4 electrodes",null,null,"days",1155,null,{"$f":"IF(ISBLANK(C307),\"\",ROUND(C307*F307,2))","v":""}]
["AGI Sting/Swift Resistivity Imaging System",null,null,"days",1156,null,""]
["AGI Supersting R8 Resistivity Imaging System",null,null,"days",1157,null,""]
["Geode Seismograph",null,null,"days",1158,null,""]
["Geophones and cables",null,null,"days",1159,null,""]
["GPR w/ one antenna",null,null,"days",1160,null,""]
["Metal Detector, Fisher Gemini-3 or equivalent",null,null,"days",1161,null,""]
["Metal Detector, Geonics EM61 Time Domain or equivalent",null,null,"days",1162,null,""]
["Metal Detector, Schonstedt or equivalent",null,null,"days",1163,null,""]
["Resistivity Meter with 4 electrodes",null,null,"days",1166,null,""]
["Seismic Land Streamer",null,null,"days",1167,null,""]
["Terrain Conductivity Unit, Geonics EM34 or equivalent",null,null,"days",1168,null,""]
["Terrain Conductivity Unit, Geonics EM31 or equivalent",null,null,"days",1169,null,""]
[null,null,null,null,1384,null,""]
[null,null,null,null,1385,null,""]
[null,null,null,null,1386,null,""]
[null,null,null,null,1387,null,""]
[null,null,null,null,1388,null,""]
[null,null,"Total",{"$f":"SUM(G307:G324)","v":0}]
[]
["Laboratory Testing"]
["Item",null,"Quantity","Unit","ID","Rate","Total"]
["Tier I Tests"]
["Classification of Soils and Soil-Aggregate Mixtures (AASHTO M 145)\n(AASHTO M 145)",null,null,"each",1170,null,{"$f":"IF(ISBLANK(C330),\"\",ROUND(C330*F330,2))","v":""}]
["Materials Finer than No. 200 Sieve by Washing (AASHTO T 11)",null,null,"each",1171,null,""]
["Sieve Analysis of Fine and Coarse Aggregates (AASHTO T 27)",null,null,"each",1172,null,""]
["Moisture Content of Soils (AASHTO T 265)",null,null,"each",1173,null,""]
["Organic Content by Loss on Ignition (AASHTO T 267)",null,null,"each",1174,null,""]
["pH of Soil (AASHTO T 289)",null,null,"each",1175,null,""]
["Tier II Tests"]
["California Bearing Ratio (AASHTO T 193)",null,null,"each",1176,null,""]
["Moisture-Density Relations of Soils using a 5.5 lb Rammer and a 12-in. Drop / Standard Proctor Compaction Test (AASHTO T 99)",null,null,"each",1177,null,""]
["Moisture-Density Relations of Soils using a 10 lb Rammer and a 18-in. Drop / Modified Proctor Compaction Test (AASHTO T 180 NCMod)",null,null,"each",1389,null,""]
["Specific Gravity of Soils (AASHTO T 100)",null,null,"each",1178,null,""]
["Compressive Strength of Molded Soil-Cement Cylinders (ASTM D1633)",null,null,"each",1179,null,""]
["Compressive Strength of Molded Soil-Lime Cylinders (ASTM D5102)",null,null,"each",1180,null,""]
["Tier III Tests"]
["One-Dimensional Consolidation Properties of Soils (AASHTO T 216)",null,null,"each",1390,null,""]
["Unconsolidated Undrained Compressive Strength of Cohesive Soils in Triaxial Compression w/o Pore Pressure (AASHTO T 296)",null,null,"each",1391,null,""]
["Unconsolidated Undrained Compressive Strength of Cohesive Soils in Triaxial Compression w/ Pore Pressure (AASHTO T 296)",null,null,"each",1391,null,{"$f":"IF(ISBLANK(C346),\"\",ROUND(C346*F346,2))","v":""}]
["Remolded Unconsolidated Undrained Compressive Strength of Cohesive Soils in Triaxial Compression w/o Pore Pressure (AASHTO T 296)",null,null,"each",1181,null,""]
["Remolded Unconsolidated Undrained Compressive Strength of Cohesive Soils in Triaxial Compression w/ Pore Pressure (AASHTO T 296)",null,null,"each",1182,null,""]
["Consolidated Undrained Triaxial Compression Test for Cohesive Soils\n(ASTM D4767)",null,null,"each",1183,null,""]
["Remolded Consolidated Undrained Triaxial Compression Test for Cohesive Soils\n(ASTM D4767)",null,null,"each",1184,null,""]
["Unconfined Compressive Strength of Cohesive Soil \n(AASHTO T 208)",null,null,"each",1185,null,""]
["Permeability of Granular Soils (Constant Head) \n(AASHTO T 215)",null,null,"each",1186,null,""]
["Tier IV Tests",null,null,null,null,null,""]
["Compressive Strength of Cylindrical Concrete Specimens (AASHTO T 22)",null,null,"each",1188,null,""]
["Compressive Strength of Hydraulic Cement Mortar (using 50-mm or 2-in. Cube Specimens)\n(AASHTO T 106)",null,null,"each",1189,null,""]
["Rock Tests"]
["Compressive Strength and Elastic Moduli of Intact Rock Core Specimens Under Varying States of Stress and Temperatures (ASTM D7012)"]
["  Method A",null,null,"each",1190,null,""]
["  Method B",null,null,"each",1191,null,""]
["  Method C",null,null,"each",1192,null,""]
["  Method D",null,null,"each",1193,null,""]
["Splitting Tensile Strength of Intact Rock Core Specimens (ASTM D3967)",null,null,"each",1194,null,""]
[null,null,null,null,1393,null,""]
[null,null,null,null,1393,null,""]
[null,null,"Total",{"$f":"SUM(G330:G364)","v":0}]
[]
["Miscellaneous"]
["Item",null,"Quantity","Unit","ID","Rate","Total"]
["Crew Time",null,null,"hours",1195,245,{"$f":"IF(ISBLANK(C369),\"\",ROUND(C369*F369,2))","v":""}]
[null,null,null,null,1394,null,""]
[null,null,null,null,1395,null,""]
[null,null,null,null,1396,null,""]
[null,null,null,null,1397,null,""]
[null,null,null,null,1398,null,""]
[null,null,null,null,1399,null,""]
[null,null,null,null,1400,null,""]
[null,null,null,null,1401,null,""]
[null,null,null,null,1402,null,""]
[null,null,null,null,1403,null,""]
[null,null,null,null,1394,null,""]
[null,null,null,null,1395,null,""]
[null,null,null,null,1396,null,""]
[null,null,null,null,1397,null,""]
[null,null,null,null,1398,null,""]
[null,null,null,null,1399,null,""]
[null,null,null,null,1400,null,""]
[null,null,null,null,1401,null,""]
[null,null,null,null,1402,null,""]
[null,null,null,null,1403,null,""]
[null,null,null,null,1394,null,""]
[null,null,null,null,1395,null,""]
[null,null,null,null,1396,null,""]
[null,null,null,null,1397,null,""]
[null,null,null,null,1398,null,""]
[null,null,null,null,1399,null,""]
[null,null,null,null,1400,null,""]
[null,null,null,null,1401,null,""]
[null,null,null,null,1402,null,""]
[null,null,null,null,1403,null,""]
[null,null,null,null,1394,null,""]
[null,null,null,null,1395,null,""]
[null,null,null,null,1396,null,""]
[null,null,null,null,1397,null,""]
[null,null,null,null,1398,null,""]
[null,null,null,null,1399,null,""]
[null,null,null,null,1400,null,""]
[null,null,null,null,1401,null,""]
[null,null,null,null,1402,null,""]
[null,null,null,null,1403,null,""]
[null,null,"Total",{"$f":"SUM(G369:G409)","v":0}]

{"sheet":"Hydraulics","index":26,"n_rows":194,"n_cols":24,"rows_kept":194,"cut":false,"hidden":true,"merged":[[4,17,4,20],[5,17,5,20],[4,2,4,3],[5,2,5,3],[167,16,171,22],[6,2,6,3],[7,2,7,4],[13,2,13,12],[163,16,164,22],[165,16,165,22],[166,16,166,22],[9,2,9,8],[8,2,8,8],[165,1,165,2],[166,1,166,2],[167,1,167,2],[180,2,180,3],[134,1,135,1],[134,3,135,4],[13,14,15,14],[3,2,3,3],[13,13,15,13],[116,2,116,4]]}
[]
[null,"HYDRAULICS DESIGN ESTIMATE"]
[]
[null,"DATE:",{"$f":"IF(SCOPE.MANDAY.ESTIMATE.PREPARED.BY.DATE=\"\",\"\",SCOPE.MANDAY.ESTIMATE.PREPARED.BY.DATE)","v":""}]
[null,"TIP:",{"$f":"TIP.NUMBER","v":0},null,null,null,null,"ESTIMATE TYPE:",{"$f":"IF('OVERALL SUMMARY'!F232=\"Supplemental Agreement\",\"Supplemental Estimate\",\"Project Estimate\")","v":"Project Estimate"},null,null,null,null,null,null,null,null,"<==== check if for project estimate"]
[null,"COUNTY:",{"$f":"COUNTY","v":0},null,null,null,null,"SUPPLEMENTAL NUMBER",null,null,null,null,null,null,null,null,null,"<==== put est. # if supplemental est."]
[null,"COMPILED BY:",{"$f":"IF(SCOPE.MANDAY.ESTIMATE.PREPARED.BY=\"\",\"\",SCOPE.MANDAY.ESTIMATE.PREPARED.BY)","v":""},null,null,null,null,"CONTRACT NUMBER",{"$f":"CONTRACT.NUM","v":0}]
[null,"CONSULTANT:",{"$f":"HYDRAULICS_CONSULTANT_NAME","v":"CONSULTANT NAME"}]
[null,"PROJECT DESCRIPTION:",{"$f":"IF(PROJECT.DESCRIPTION=\"\",\"\",PROJECT.DESCRIPTION)","v":""}]
[null,"PROJECT SCOPE:",{"$f":"IF(TASK.ORDER_SCOPE=\"\",\"\",TASK.ORDER_SCOPE)","v":"PM-Project Mgmt"}]
[]
[]
[]
[null,null,"ESTIMATED WORKHOURS",null,null,null,null,null,null,null,null,null,null,"TOTAL","NOTES"]
[null,"EMPLOYEE",{"$f":"IF('PEF CLASSIFICATION SHEET'!D173=\"\",\"\",LEFT('PEF CLASSIFICATION SHEET'!D173,4))","v":""},{"$f":"IF('PEF CLASSIFICATION SHEET'!D174=\"\",\"\",LEFT('PEF CLASSIFICATION SHEET'!D174,4))","v":""},{"$f":"IF('PEF CLASSIFICATION SHEET'!D175=\"\",\"\",LEFT('PEF CLASSIFICATION SHEET'!D175,4))","v":""},{"$f":"IF('PEF CLASSIFICATION SHEET'!D176=\"\",\"\",LEFT('PEF CLASSIFICATION SHEET'!D176,4))","v":""},{"$f":"IF('PEF CLASSIFICATION SHEET'!D177=\"\",\"\",LEFT('PEF CLASSIFICATION SHEET'!D177,4))","v":""},{"$f":"IF('PEF CLASSIFICATION SHEET'!D178=\"\",\"\",LEFT('PEF CLASSIFICATION SHEET'!D178,4))","v":""},{"$f":"IF('PEF CLASSIFICATION SHEET'!D179=\"\",\"\",LEFT('PEF CLASSIFICATION SHEET'!D179,4))","v":""},{"$f":"IF('PEF CLASSIFICATION SHEET'!D180=\"\",\"\",LEFT('PEF CLASSIFICATION SHEET'!D180,4))","v":""},{"$f":"IF('PEF CLASSIFICATION SHEET'!D181=\"\",\"\",LEFT('PEF CLASSIFICATION SHEET'!D181,4))","v":""},{"$f":"IF('PEF CLASSIFICATION SHEET'!D182=\"\",\"\",LEFT('PEF CLASSIFICATION SHEET'!D182,4))","v":""},{"$f":"IF('PEF CLASSIFICATION SHEET'!D183=\"\",\"\",LEFT('PEF CLASSIFICATION SHEET'!D183,4))","v":""}]
[null,"TASKS                                                        CLASSIFICATION",{"$f":"IF('PEF CLASSIFICATION SHEET'!C173=\"\",\"\",'PEF CLASSIFICATION SHEET'!C173)","v":"ESA"},{"$f":"IF('PEF CLASSIFICATION SHEET'!C174=\"\",\"\",'PEF CLASSIFICATION SHEET'!C174)","v":"EA"},{"$f":"IF('PEF CLASSIFICATION SHEET'!C175=\"\",\"\",'PEF CLASSIFICATION SHEET'!C175)","v":"EJ"},{"$f":"IF('PEF CLASSIFICATION SHEET'!C176=\"\",\"\",'PEF CLASSIFICATION SHEET'!C176)","v":"EC"},{"$f":"IF('PEF CLASSIFICATION SHEET'!C177=\"\",\"\",'PEF CLASSIFICATION SHEET'!C177)","v":"ETJ"},{"$f":"IF('PEF CLASSIFICATION SHEET'!C178=\"\",\"\",'PEF CLASSIFICATION SHEET'!C178)","v":"ETC"},{"$f":"IF('PEF CLASSIFICATION SHEET'!C179=\"\",\"\",'PEF CLASSIFICATION SHEET'!C179)","v":""},{"$f":"IF('PEF CLASSIFICATION SHEET'!C180=\"\",\"\",'PEF CLASSIFICATION SHEET'!C180)","v":""},{"$f":"IF('PEF CLASSIFICATION SHEET'!C181=\"\",\"\",'PEF CLASSIFICATION SHEET'!C181)","v":""},{"$f":"IF('PEF CLASSIFICATION SHEET'!C182=\"\",\"\",'PEF CLASSIFICATION SHEET'!C182)","v":""},{"$f":"IF('PEF CLASSIFICATION SHEET'!C183=\"\",\"\",'PEF CLASSIFICATION SHEET'!C183)","v":""}]
[null,"2PEF",null,null,null,null,null,null,null,null,null,null,null,0]
["2HY1","Develop Preliminary Hydraulic Recommendations",null,null,null,null,null,null,null,null,null,null,null,"-"]
[1," Hydraulic Planning Report",null,null,null,null,null,null,null,null,null,null,null,"-"]
["Subtask","Research and Data Collection ",null,null,null,null,null,null,null,null,null,null,null,{"$f":"(SUM(C20:M20))/8","v":0},null,null,null,null,null,null,null,null,null,"Y"]
["Subtask","Hydraulics Field Review ",null,null,null,null,null,null,null,null,null,null,null,0,null,null,null,null,null,null,null,null,null,"N"]
["Subtask","Preliminary Design Calculations and Structure Sizing",null,null,null,null,null,null,null,null,null,null,null,0]
["Subtask","Prepare Hydraulics Planning Report",null,null,null,null,null,null,null,null,null,null,null,0]
["Subtask","Preliminary Hydroplaning Assessment",null,null,null,null,null,null,null,null,null,null,null,0]
[2,"Preliminary Stormwater Management Plan",null,null,null,null,null,null,null,null,null,null,null,0]
[3,"NEPA/Section 404 Merger Support",null,null,null,null,null,null,null,null,null,null,null,0]
[4,"Task Management",null,null,null,null,null,null,null,null,null,null,null,0]
[5,"Complete QC Procedures ",null,null,null,null,null,null,null,null,null,null,null,0]
[null,"Other Tasks:",null,null,null,null,null,null,null,null,null,null,null,0]
[null,null,null,null,null,null,null,null,null,null,null,null,null,0]
[null,null,null,null,null,null,null,null,null,null,null,null,null,0]
[null,null,null,null,null,null,null,null,null,null,null,null,null,0]
[null,null,null,null,null,null,null,null,null,null,null,null,null,0]
[null,"2PEF SUBTOTAL",{"$f":"SUM(C19:C33)","v":0},{"$f":"SUM(D19:D33)","v":0},0,0,0,0,0,0,0,0,0,null,null,{"$f":"SUM(C34:M34)/8","v":0}]
[null,null,null,null,null,null,null,null,null,null,null,null,null,null,null,"WORKDAYS"]
[null,"3PEF",null,null,null,null,null,null,null,null,null,null,null,"-"]
["2HY2","Complete Drainage for Field Inspection ",null,null,null,null,null,null,null,null,null,null,null,"-"]
[1,"Review and provide comments on Design Recommendations Plan Set(s)",null,null,null,null,null,null,null,null,null,null,null,"-"]
["Subtask","Review/provide comments on Design Recommendations Plan Set(s)",null,null,null,null,null,null,null,null,null,null,null,{"$f":"(SUM(C39:M39))/8","v":0}]
["Subtask","Final Hydroplaning Assessment",null,null,null,null,null,null,null,null,null,null,null,0]
[2,"Hydraulics Pre-Design Meeting",null,null,null,null,null,null,null,null,null,null,null,0]
[3,"Field Reconnaissance and Survey",null,null,null,null,null,null,null,null,null,null,null,"-"]
["Subtask","Bridges (0) ",null,null,null,null,null,null,null,null,null,null,null,0]
["Subtask","Box Culverts  (0)",null,null,null,null,null,null,null,null,null,null,null,0]
["Subtask","Pipe Drainage, Ditches -L-",null,null,null,null,null,null,null,null,null,null,null,0]
["Subtask","Pipe Drainage, Ditches -Y-",null,null,null,null,null,null,null,null,null,null,null,0]
["Subtask","Travel",null,null,null,null,null,null,null,null,null,null,null,0]
[4,"Hydraulic Design Report(s) ",null,null,null,null,null,null,null,null,null,null,null,"-"]
["Subtask","Bridges (0) ",null,null,null,null,null,null,null,null,null,null,null,0]
["Subtask","Box Culverts with a Model (0)",null,null,null,null,null,null,null,null,null,null,null,{"$f":"(SUM(C50:M50))/8","v":0}]
["Subtask","Box Culverts without a Model (0)",null,null,null,null,null,null,null,null,null,null,null,0]
["Subtask","Detour structures",null,null,null,null,null,null,null,null,null,null,null,0]
[5,"Merger CP 4B Support and Meeting (Preliminary Hydraulic Design Review)",null,null,null,null,null,null,null,null,null,null,null,0]
[6,"Redline Drainage Plans for Field Inspection",null,null,null,null,null,null,null,null,null,null,null,"-"]
["Subtask","Pipes, Storm Drainage , Ditches -L-",null,null,null,null,null,null,null,null,null,null,null,0]
["Subtask","Pipes, Storm  Drainage , Ditches -Y-",null,null,null,null,null,null,null,null,null,null,null,0]
["Subtask","Temporary Drainage",null,null,null,null,null,null,null,null,null,null,null,0]
["Subtask","Outlet Analysis (0)",null,null,null,null,null,null,null,null,null,null,null,0]
["Subtask","Design of Structural BMPs",null,null,null,null,null,null,null,null,null,null,null,0]
["Subtask","CADD",null,null,null,null,null,null,null,null,null,null,null,0]
[7,"Field Inspection",null,null,null,null,null,null,null,null,null,null,null,0]
[8,"Coordinate Railroad Drainage Design",null,null,null,null,null,null,null,null,null,null,null,0]
[9,"Task Management",null,null,null,null,null,null,null,null,null,null,null,0]
[10,"Complete QC Procedures ",null,null,null,null,null,null,null,null,null,null,null,0]
[null,"Other Tasks:",null,null,null,null,null,null,null,null,null,null,null,0]
[null,null,null,null,null,null,null,null,null,null,null,null,null,0]
[null,null,null,null,null,null,null,null,null,null,null,null,null,0]
[null,null,null,null,null,null,null,null,null,null,null,null,null,0]
[null,null,null,null,null,null,null,null,null,null,null,null,null,0]
[null,null,null,null,null,null,null,null,null,null,null,null,null,0]
[null,null,null,null,null,null,null,null,null,null,null,null,null,0]
[null,null,null,null,null,null,null,null,null,null,null,null,null,0]
[null,null,null,null,null,null,null,null,null,null,null,null,null,0]
[null,null,null,null,null,null,null,null,null,null,null,null,null,{"$f":"(SUM(C74:M74))/8","v":0}]
[null,null,null,null,null,null,null,null,null,null,null,null,null,0]
[null,null,null,null,null,null,null,null,null,null,null,null,null,0]
[null,null,null,null,null,null,null,null,null,null,null,null,null,{"$f":"(SUM(C77:M77))/8","v":0}]
[null,null,null,null,null,null,null,null,null,null,null,null,null,0]
[null,null,null,null,null,null,null,null,null,null,null,null,null,0]
[null,null,null,null,null,null,null,null,null,null,null,null,null,0]
[null,null,null,null,null,null,null,null,null,null,null,null,null,0]
[null,null,null,null,null,null,null,null,null,null,null,null,null,0]
[null,null,null,null,null,null,null,null,null,null,null,null,null,0]
[null,"3PEF SUBTOTAL",{"$f":"SUM(C38:C83)","v":0},0,0,0,0,{"$f":"SUM(H38:H83)","v":0},{"$f":"SUM(I38:I83)","v":0},0,0,0,0,null,null,{"$f":"SUM(C84:M84)/8","v":0}]
[null,null,null,null,null,null,null,null,null,null,null,null,null,null,null,"WORKDAYS"]
[null,"4PEF",null,null,null,null,null,null,null,null,null,null,null,"-"]
["3HY1"," Complete Hydraulic Design ",null,null,null,null,null,null,null,null,null,null,null,"-"]
[1,"Complete Final Drainage Design",null,null,null,null,null,null,null,null,null,null,null,{"$f":"(SUM(C88:M88))/8","v":0}]
[2,"FEMA Compliance Packages - SFCs (0) CLOMRs (0)",null,null,null,null,null,null,null,null,null,null,null,0]
[3,"Hydraulic Summary Sheet(s) ",null,null,null,null,null,null,null,null,null,null,null,0]
[4,"Stormwater Management Plan",null,null,null,null,null,null,null,null,null,null,null,0]
[5,"Environmental Permit Drawing Package",null,null,null,null,null,null,null,null,null,null,null,0]
[6,"Merger CP 4C Meeting",null,null,null,null,null,null,null,null,null,null,null,0]
[7,"Task Management",null,null,null,null,null,null,null,null,null,null,null,0]
[8,"Complete QC Procedures  ",null,null,null,null,null,null,null,null,null,null,null,0]
[null,"Other Tasks:",null,null,null,null,null,null,null,null,null,null,null,0]
[null,null,null,null,null,null,null,null,null,null,null,null,null,{"$f":"(SUM(C97:M97))/8","v":0}]
[null,null,null,null,null,null,null,null,null,null,null,null,null,0]
[null,null,null,null,null,null,null,null,null,null,null,null,null,0]
[null,null,null,null,null,null,null,null,null,null,null,null,null,0]
[null,null,null,null,null,null,null,null,null,null,null,null,null,0]
[null,null,null,null,null,null,null,null,null,null,null,null,null,0]
[null,null,null,null,null,null,null,null,null,null,null,null,null,0]
[null,null,null,null,null,null,null,null,null,null,null,null,null,0]
["4HY1","Complete Open Hydraulic Tasks ",null,null,null,null,null,null,null,null,null,null,null,"-"]
[null,"Other Tasks:",null,null,null,null,null,null,null,null,null,null,null,0]
[null,null,null,null,null,null,null,null,null,null,null,null,null,0]
[null,null,null,null,null,null,null,null,null,null,null,null,null,0]
[null,null,null,null,null,null,null,null,null,null,null,null,null,0]
[null,null,null,null,null,null,null,null,null,null,null,null,null,0]
[null,null,null,null,null,null,null,null,null,null,null,null,null,0]
[null,null,null,null,null,null,null,null,null,null,null,null,null,0]
[null,"4PEF SUBTOTAL",{"$f":"SUM(C87:C112)","v":0},0,0,0,0,0,0,0,0,0,0,null,null,{"$f":"SUM(C113:M113)/8","v":0}]
[null,null,null,null,null,null,null,null,null,null,null,null,null,null,null,"WORKDAYS"]
[null,"2PEF, 3PEF, 4PEF SUBTOTAL",{"$f":"C113+C84+C34","v":0},{"$f":"D113+D84+D34","v":0},0,0,0,0,0,0,0,0,0,null,null,{"$f":"SUM(C115:M115)/8","v":0}]
[null,null,null,null,null,null,null,null,null,null,null,null,null,null,null,"WORKDAYS"]
[null,"REVIEW AND REWORK  R/W & FINAL PLAN DEVELOPMENT (Phase 3 & 4)","PERCENT FOR REVIEW AND REWORK",null,null,0]
[null,"Review and Rework",{"$f":"ROUND(C115*$F$117,0)","v":0},0,0,0,0,0,0,0,0,0,0,{"$f":"IF(F117=0,0,\"\")","v":0},null,"WORKDAYS"]
[null,"TOTAL WORKHOURS:",{"$f":"C118+C115","v":0},{"$f":"D118+D115","v":0},{"$f":"E118+E115","v":0},0,0,0,0,0,0,0,{"$f":"M118+M115","v":0},null,{"$f":"SUM(C119:M119)","v":0},{"$f":"SUM(C119:M119)/8","v":0}]
[null,"TOTAL WORKDAYS:",{"$f":"C119/8","v":0},{"$f":"D119/8","v":0},0,0,0,0,0,0,0,0,0]
[null,"HOURLY SALARY RATE:",{"$f":"IF('PEF CLASSIFICATION SHEET'!E173=\"\",0,'PEF CLASSIFICATION SHEET'!E173)","v":0},{"$f":"IF('PEF CLASSIFICATION SHEET'!E174=\"\",0,'PEF CLASSIFICATION SHEET'!E174)","v":0},{"$f":"IF('PEF CLASSIFICATION SHEET'!E175=\"\",0,'PEF CLASSIFICATION SHEET'!E175)","v":0},{"$f":"IF('PEF CLASSIFICATION SHEET'!E176=\"\",0,'PEF CLASSIFICATION SHEET'!E176)","v":0},{"$f":"IF('PEF CLASSIFICATION SHEET'!E177=\"\",0,'PEF CLASSIFICATION SHEET'!E177)","v":0},{"$f":"IF('PEF CLASSIFICATION SHEET'!E178=\"\",0,'PEF CLASSIFICATION SHEET'!E178)","v":0},{"$f":"IF('PEF CLASSIFICATION SHEET'!E179=\"\",0,'PEF CLASSIFICATION SHEET'!E179)","v":0},{"$f":"IF('PEF CLASSIFICATION SHEET'!E180=\"\",0,'PEF CLASSIFICATION SHEET'!E180)","v":0},{"$f":"IF('PEF CLASSIFICATION SHEET'!E181=\"\",0,'PEF CLASSIFICATION SHEET'!E181)","v":0},{"$f":"IF('PEF CLASSIFICATION SHEET'!E182=\"\",0,'PEF CLASSIFICATION SHEET'!E182)","v":0},{"$f":"IF('PEF CLASSIFICATION SHEET'!E183=\"\",0,'PEF CLASSIFICATION SHEET'!E183)","v":0}]
[null,"RATES PER DAY:",{"$f":"C121*8","v":0},0,0,0,0,0,0,0,0,0,0]
[null,"PAYROLL BURDEN:",{"$f":"C120*C122","v":0},{"$f":"D120*D122","v":0},0,0,0,0,0,0,0,0,0]
[null,"TOTAL WORKDAYS:",null,{"$f":"SUM(C120:M120)","v":0}]
[null,"TOTAL PAYROLL BURDEN:",null,{"$f":"SUM(C123:M123)","v":0}]
[null,"AVERAGE COST PER HOUR:",null,{"$f":"SUM(D125/(D124*8))","v":{"$error":"#DIV/0!"}}]
[null,"COST PER WORKDAY:",null,{"$f":"HYDRAULICS_SALARY_TOTAL/HYDRAULICS_MANDAYS","v":{"$error":"#DIV/0!"}}]
[null,"GENERAL OVERHEAD:",{"$f":"HYDRAULICS_CONSULTANT_OVERHEAD","v":0},{"$f":"SUM(D125*C128)","v":0}]
[null,"SUBTOTAL:",null,{"$f":"SUM(D125+D128)","v":0}]
[null,"COMPARATIVE FEE:",{"$f":"HYDRAULICS_CONSULTANT_FEE","v":0.09},{"$f":"SUM(D129*C130)","v":0}]
[null,"FACILITIES COST OF CAPITAL:",{"$f":"HYDRAULICS_CONSULTANT_COSTofCAPITAL","v":0},{"$f":"SUM(D125*C131)","v":0}]
[null,"TOTAL DIRECT AND INDIRECT SALARY COST:",null,{"$f":"SUM(D129:D131)","v":0}]
[null,"DIRECT EXPENSES:",null,{"$f":"HYDRAULICS_DIRECT_NONSALARY_TOTAL","v":0}]
[null,"SUBCONSULTANT FEES (IF NO SEPARATE ESTIMATE):"]
[null,"HYDRAULICS GRAND TOTAL:",null,{"$f":"SUM(D132:D134)","v":0}]
[]
[]
[]
[]
[]
[]
[]
[]
[]
[]
[]
[]
[]
[]
[]
[]
[]
[]
[]
[]
[]
[]
[]
[]
[null,null,"TIP:",{"$f":"C5","v":0},null,"Date:",{"$f":"C4","v":""}]
[]
[null,"TRAVEL EXPENSE:"]
[]
[null,"MILEAGE:",null,"# field trips",0,"# meeting trips",0,"# local trips",0,null,null,null,null,null,null,null,"<====== These fields are to calculate total miles for each type below.   <====== All miles are one way."]
[null,null,null,"Miles to site\n(one way)",0,"Miles to meeting\n(one way)",0,"Local Miles \n(one way)",0]
[null,"Carryall (survey trip)",null,{"$f":"CARRYALL","v":0.72},"(per mile) X",{"$f":"E164*E165*2","v":0},"Miles =",{"$f":"D166*F166","v":0},null,null,null,null,null,null,null,null,"<====== use carryall for field work"]
[null,"Sedan (meeting trip)",null,{"$f":"SEDAN","v":0.7},"(per mile) X",{"$f":"G164*G165*2","v":0},"Miles =",{"$f":"D167*F167","v":0},null,null,null,null,null,null,null,null,"<====== use sedan for meetings,plan field inspections etc."]
[null,"Sedan (Local Mileage)",null,{"$f":"SEDAN","v":0.7},"(per mile) X",{"$f":"I164*I165*2","v":0},"Miles =",0,null,null,null,null,null,null,null,null,"<====== local mileage from our office to their office (deliveries, informal meetings etc. "]
[]
[]
[]
[null,"PER DIEM EXPENSE:"]
[null,"LODGING + MEALS (BREAKFAST, LUNCH, DINNER)",null,"# of People X",{"$f":"BREAKFAST+LUNCH+DINNER+(IF('OVERALL SUMMARY'!I232=\"COST PLUS\",LODGING_COST.PLUS,LODGING_LUMP.SUM))","v":141.5},"(per day) X",null,"# of Days =",{"$f":"E173*G173*C173","v":0}]
[null,"BREAKFAST",null,"# of People X",{"$f":"BREAKFAST","v":10.1},"(per day) X",null,"# of Days =",{"$f":"E174*G174*C174","v":0}]
[null,"LUNCH",null,"# of People X",{"$f":"LUNCH","v":13.3},"(per day) X",null,"# of Days =",{"$f":"E175*G175*C175","v":0}]
[null,"DINNER",null,"# of People X",{"$f":"DINNER","v":23.1},"(per day) X",null,"# of Days =",{"$f":"E176*G176*C176","v":0}]
[null,"LODGING",null,"# of People X",{"$f":"LODGING_LUMP.SUM","v":95},"(per day) X",null,"# of Days =",{"$f":"E177*G177*C177","v":0}]
[]
[]
[]
[null,"MISCELLANEOUS EXPENSES:"]
[null,"Description","Quantity","Unit of Measure",null,"Cost Per Unit"]
[null,null,null,null,"X",null,"=",{"$f":"C183*F183","v":0}]
[null,null,null,null,"X",null,"=",{"$f":"C184*F184","v":0}]
[null,null,null,null,"X",null,"=",{"$f":"C185*F185","v":0}]
[null,null,null,null,"X",null,"=",{"$f":"C186*F186","v":0}]
[null,null,null,null,"X",null,"=",{"$f":"C187*F187","v":0}]
[null,"Total Miscellaneous Expenses",null,null,null,null,null,{"$f":"SUM(H183:H187)","v":0}]
[]
[]
[null,"SUBTOTAL:",null,null,null,null,{"$f":"SUM(H166,H167,H168,I173:I177,H188)","v":0}]
[]
[]
[null,"    PROJECT ESTIMATE TOTAL:",null,null,null,{"$f":"D132+G191","v":0}]

{"sheet":"IM-PublicTransp","index":27,"n_rows":135,"n_cols":27,"rows_kept":135,"cut":false,"hidden":true,"merged":[[140,8,140,9],[140,10,140,11],[143,8,143,13],[144,8,144,9],[144,10,144,11],[145,8,145,9],[145,10,145,11],[119,26,119,27],[134,1,135,1],[134,3,135,4],[138,3,138,6],[138,8,138,13],[139,8,139,9],[139,10,139,11],[113,26,113,27],[114,26,114,27],[115,26,115,27],[116,26,116,27],[117,26,117,27],[118,26,118,27],[107,26,107,27],[108,26,108,27],[109,26,109,27],[110,26,110,27],[111,26,111,27],[112,26,112,27],[101,26,101,27],[102,26,102,27],[103,26,103,27],[104,26,104,27],[105,26,105,27],[106,26,106,27],[95,26,95,27],[96,26,96,27],[97,26,97,27],[98,26,98,27],[99,26,99,27],[100,26,100,27],[89,26,89,27],[90,26,90,27],[91,26,91,27],[92,26,92,27],[93,26,93,27],[94,26,94,27],[83,26,83,27],[84,26,84,27],[85,26,85,27],[86,26,86,27],[87,26,87,27],[88,26,88,27],[77,26,77,27],[78,26,78,27],[79,26,79,27],[80,26,80,27],[81,26,81,27],[82,26,82,27],[71,26,71,27],[72,26,72,27],[73,26,73,27],[74,26,74,27],[75,26,75,27],[76,26,76,27],[65,26,65,27],[66,26,66,27],[67,26,67,27],[68,26,68,27],[69,26,69,27],[70,26,70,27],[59,26,59,27],[60,26,60,27],[61,26,61,27],[62,26,62,27],[63,26,63,27],[64,26,64,27],[53,26,53,27],[54,26,54,27],[55,26,55,27],[56,26,56,27],[57,26,57,27],[58,26,58,27],[47,26,47,27],[48,26,48,27],[49,26,49,27],[50,26,50,27],[51,26,51,27],[52,26,52,27],[41,26,41,27],[42,26,42,27],[43,26,43,27],[44,26,44,27],[45,26,45,27],[46,26,46,27],[35,26,35,27],[36,26,36,27],[37,26,37,27],[38,26,38,27],[39,26,39,27],[40,26,40,27],[29,26,29,27],[30,26,30,27],[31,26,31,27],[32,26,32,27],[33,26,33,27],[34,26,34,27],[23,26,23,27],[24,26,24,27],[25,26,25,27],[26,26,26,27],[27,26,27,27],[28,26,28,27],[19,26,19,27],[20,26,20,27],[21,26,21,27],[22,26,22,27],[11,26,11,27],[12,26,12,27],[13,26,13,27],[14,26,14,27],[15,26,15,27],[16,26,16,27],[8,26,8,27],[6,12,9,12],[6,13,9,13],[6,14,9,14],[6,15,9,15],[6,16,9,16],[6,17,9,17],[17,26,17,27],[18,26,18,27],[10,26,10,27],[4,3,4,22],[6,3,9,3],[6,4,9,4],[6,5,9,5],[6,6,9,6],[6,7,9,7],[6,8,9,8],[6,9,9,9],[6,10,9,10],[6,11,9,11],[6,18,9,18],[6,19,9,19],[6,20,9,20],[6,21,9,21],[6,22,9,22],[0,0,1,13],[2,1,2,4],[2,6,2,7],[2,10,2,11],[2,15,2,16],[3,1,3,4],[3,6,3,7],[3,10,3,11],[3,15,3,16]]}
["PUBLIC TRANSPORTATION--PRIME BREAKDOWN WORKSHEET -- ENTER WORKHOURS"]
[]
["PROJECT DESCRIPTION: ",{"$f":"PROJECT.DESCRIPTION","v":0},null,null,null,"FIRM:  ",{"$f":"PUBLIC.TRANSPORTATION.PRIME_CONSULTANT_NAME","v":"CONSULTANT NAME"},null,"TASK ORDER NUMBER:",null,{"$f":"TASK.ORDER.NUMBER","v":0},null,"DATE PREPARED:",{"$f":"IF(SCOPE.MANDAY.ESTIMATE.PREPARED.BY.DATE=\"\",\"\",SCOPE.MANDAY.ESTIMATE.PREPARED.BY.DATE)","v":""}]
["PREPARED BY:  ",{"$f":"IF(SCOPE.MANDAY.ESTIMATE.PREPARED.BY=\"\",\"\",SCOPE.MANDAY.ESTIMATE.PREPARED.BY)","v":""},null,null,null,"TIP NUMBER:",{"$f":"TIP.NUMBER","v":0},null,"WBS NUMBER:",null,{"$f":"WBS.NUMBER","v":""},null,"REVISION DATE:",{"$f":"IF(SCOPE.MANDAY.ESTIMATE.APPROVED.BY.DATE=\"\",\"\",SCOPE.MANDAY.ESTIMATE.APPROVED.BY.DATE)","v":""}]
[null,null,null,"ESTIMATED WORKHOURS"]
[null,null,"EMPLOYEE NAMES",{"$f":"IF('PEF CLASSIFICATION SHEET'!D186=\"\",\"\",LEFT('PEF CLASSIFICATION SHEET'!D186,4))","v":""},{"$f":"IF('PEF CLASSIFICATION SHEET'!D187=\"\",\"\",LEFT('PEF CLASSIFICATION SHEET'!D187,4))","v":""},{"$f":"IF('PEF CLASSIFICATION SHEET'!D188=\"\",\"\",LEFT('PEF CLASSIFICATION SHEET'!D188,4))","v":""},{"$f":"IF('PEF CLASSIFICATION SHEET'!D189=\"\",\"\",LEFT('PEF CLASSIFICATION SHEET'!D189,4))","v":""},{"$f":"IF('PEF CLASSIFICATION SHEET'!D190=\"\",\"\",LEFT('PEF CLASSIFICATION SHEET'!D190,4))","v":""},{"$f":"IF('PEF CLASSIFICATION SHEET'!D191=\"\",\"\",LEFT('PEF CLASSIFICATION SHEET'!D191,4))","v":""},{"$f":"IF('PEF CLASSIFICATION SHEET'!D192=\"\",\"\",LEFT('PEF CLASSIFICATION SHEET'!D192,4))","v":""},{"$f":"IF('PEF CLASSIFICATION SHEET'!D193=\"\",\"\",LEFT('PEF CLASSIFICATION SHEET'!D193,4))","v":""},{"$f":"IF('PEF CLASSIFICATION SHEET'!D194=\"\",\"\",LEFT('PEF CLASSIFICATION SHEET'!D194,4))","v":""},{"$f":"IF('PEF CLASSIFICATION SHEET'!D195=\"\",\"\",LEFT('PEF CLASSIFICATION SHEET'!D195,4))","v":""},{"$f":"IF('PEF CLASSIFICATION SHEET'!D196=\"\",\"\",LEFT('PEF CLASSIFICATION SHEET'!D196,4))","v":""},{"$f":"IF('PEF CLASSIFICATION SHEET'!D197=\"\",\"\",LEFT('PEF CLASSIFICATION SHEET'!D197,4))","v":""},{"$f":"IF('PEF CLASSIFICATION SHEET'!D198=\"\",\"\",LEFT('PEF CLASSIFICATION SHEET'!D198,4))","v":""},{"$f":"IF('PEF CLASSIFICATION SHEET'!D199=\"\",\"\",LEFT('PEF CLASSIFICATION SHEET'!D199,4))","v":""},{"$f":"IF('PEF CLASSIFICATION SHEET'!D200=\"\",\"\",LEFT('PEF CLASSIFICATION SHEET'!D200,4))","v":""},{"$f":"IF('PEF CLASSIFICATION SHEET'!D201=\"\",\"\",LEFT('PEF CLASSIFICATION SHEET'!D201,4))","v":""},{"$f":"IF('PEF CLASSIFICATION SHEET'!D202=\"\",\"\",LEFT('PEF CLASSIFICATION SHEET'!D202,4))","v":""},{"$f":"IF('PEF CLASSIFICATION SHEET'!D203=\"\",\"\",LEFT('PEF CLASSIFICATION SHEET'!D203,4))","v":""},{"$f":"IF('PEF CLASSIFICATION SHEET'!D204=\"\",\"\",LEFT('PEF CLASSIFICATION SHEET'!D204,4))","v":""},{"$f":"IF('PEF CLASSIFICATION SHEET'!D205=\"\",\"\",LEFT('PEF CLASSIFICATION SHEET'!D205,4))","v":""}]
[null,null,null,{"$f":"IF('PEF CLASSIFICATION SHEET'!C186=\"\",\"\",'PEF CLASSIFICATION SHEET'!C186)","v":""},{"$f":"IF('PEF CLASSIFICATION SHEET'!C187=\"\",\"\",'PEF CLASSIFICATION SHEET'!C187)","v":""},{"$f":"IF('PEF CLASSIFICATION SHEET'!C188=\"\",\"\",'PEF CLASSIFICATION SHEET'!C188)","v":""},{"$f":"IF('PEF CLASSIFICATION SHEET'!C189=\"\",\"\",'PEF CLASSIFICATION SHEET'!C189)","v":""},{"$f":"IF('PEF CLASSIFICATION SHEET'!C190=\"\",\"\",'PEF CLASSIFICATION SHEET'!C190)","v":""},{"$f":"IF('PEF CLASSIFICATION SHEET'!C191=\"\",\"\",'PEF CLASSIFICATION SHEET'!C191)","v":""},{"$f":"IF('PEF CLASSIFICATION SHEET'!C192=\"\",\"\",'PEF CLASSIFICATION SHEET'!C192)","v":""},{"$f":"IF('PEF CLASSIFICATION SHEET'!C193=\"\",\"\",'PEF CLASSIFICATION SHEET'!C193)","v":""},{"$f":"IF('PEF CLASSIFICATION SHEET'!C194=\"\",\"\",'PEF CLASSIFICATION SHEET'!C194)","v":""},{"$f":"IF('PEF CLASSIFICATION SHEET'!C195=\"\",\"\",'PEF CLASSIFICATION SHEET'!C195)","v":""},{"$f":"IF('PEF CLASSIFICATION SHEET'!C196=\"\",\"\",'PEF CLASSIFICATION SHEET'!C196)","v":""},{"$f":"IF('PEF CLASSIFICATION SHEET'!C197=\"\",\"\",'PEF CLASSIFICATION SHEET'!C197)","v":""},{"$f":"IF('PEF CLASSIFICATION SHEET'!C198=\"\",\"\",'PEF CLASSIFICATION SHEET'!C198)","v":""},{"$f":"IF('PEF CLASSIFICATION SHEET'!C199=\"\",\"\",'PEF CLASSIFICATION SHEET'!C199)","v":""},{"$f":"IF('PEF CLASSIFICATION SHEET'!C200=\"\",\"\",'PEF CLASSIFICATION SHEET'!C200)","v":""},{"$f":"IF('PEF CLASSIFICATION SHEET'!C201=\"\",\"\",'PEF CLASSIFICATION SHEET'!C201)","v":""},{"$f":"IF('PEF CLASSIFICATION SHEET'!C202=\"\",\"\",'PEF CLASSIFICATION SHEET'!C202)","v":""},{"$f":"IF('PEF CLASSIFICATION SHEET'!C203=\"\",\"\",'PEF CLASSIFICATION SHEET'!C203)","v":""},{"$f":"IF('PEF CLASSIFICATION SHEET'!C204=\"\",\"\",'PEF CLASSIFICATION SHEET'!C204)","v":""},{"$f":"IF('PEF CLASSIFICATION SHEET'!C205=\"\",\"\",'PEF CLASSIFICATION SHEET'!C205)","v":""},"SUB-","%","PEF"]
[null,null,null,null,null,null,null,null,null,null,null,null,null,null,null,null,null,null,null,null,null,null,null,"TOTAL","OF","ESTIMATE"]
["TASK","TASK DESCRIPTION","CLASSIFICATION",null,null,null,null,null,null,null,null,null,null,null,null,null,null,null,null,null,null,null,null,null,"PROJECT",null,"COMMENTS"]
["NO."]
[null,"Proficiency Reviews (PR’s)",null,null,null,null,null,null,null,null,null,null,null,null,null,null,null,null,null,null,null,null,null,{"$f":"IF(B11=\"\",0,IF((SUM(D11:W11)=0),\"\",SUM(D11:W11)))","v":""},{"$f":"IF(X11=\"\",\"\",SUM((X11/$X$121)))","v":""}]
[null,"Proficiency Reviews (PR’s)",null,null,null,null,null,null,null,null,null,null,null,null,null,null,null,null,null,null,null,null,null,{"$f":"IF(B12=\"\",0,IF((SUM(D12:W12)=0),\"\",SUM(D12:W12)))","v":""},{"$f":"IF(X12=\"\",\"\",SUM((X12/$X$121)))","v":""}]
[1,"Training",null,null,null,null,null,null,null,null,null,null,null,null,null,null,null,null,null,null,null,null,null,"",""]
[null,null,null,null,null,null,null,null,null,null,null,null,null,null,null,null,null,null,null,null,null,null,null,0,{"$error":"#DIV/0!"}]
[null,null,null,null,null,null,null,null,null,null,null,null,null,null,null,null,null,null,null,null,null,null,null,0,{"$error":"#DIV/0!"}]
[null,null,null,null,null,null,null,null,null,null,null,null,null,null,null,null,null,null,null,null,null,null,null,0,{"$error":"#DIV/0!"}]
[null,null,null,null,null,null,null,null,null,null,null,null,null,null,null,null,null,null,null,null,null,null,null,0,{"$error":"#DIV/0!"}]
[null,null,null,null,null,null,null,null,null,null,null,null,null,null,null,null,null,null,null,null,null,null,null,0,{"$error":"#DIV/0!"}]
[2,"Desk Reviews (XX Reviews)",null,null,null,null,null,null,null,null,null,null,null,null,null,null,null,null,null,null,null,null,null,"",""]
[null,null,null,null,null,null,null,null,null,null,null,null,null,null,null,null,null,null,null,null,null,null,null,0,{"$error":"#DIV/0!"}]
[null,null,null,null,null,null,null,null,null,null,null,null,null,null,null,null,null,null,null,null,null,null,null,0,{"$error":"#DIV/0!"}]
[null,null,null,null,null,null,null,null,null,null,null,null,null,null,null,null,null,null,null,null,null,null,null,0,{"$error":"#DIV/0!"}]
[null,null,null,null,null,null,null,null,null,null,null,null,null,null,null,null,null,null,null,null,null,null,null,0,{"$error":"#DIV/0!"}]
[null,null,null,null,null,null,null,null,null,null,null,null,null,null,null,null,null,null,null,null,null,null,null,0,{"$error":"#DIV/0!"}]
[3,"On-Site Reviews (XX Reviews)",null,null,null,null,null,null,null,null,null,null,null,null,null,null,null,null,null,null,null,null,null,"",""]
[null,null,null,null,null,null,null,null,null,null,null,null,null,null,null,null,null,null,null,null,null,null,null,0,{"$error":"#DIV/0!"}]
[null,null,null,null,null,null,null,null,null,null,null,null,null,null,null,null,null,null,null,null,null,null,null,0,{"$error":"#DIV/0!"}]
[null,null,null,null,null,null,null,null,null,null,null,null,null,null,null,null,null,null,null,null,null,null,null,0,{"$error":"#DIV/0!"}]
[null,null,null,null,null,null,null,null,null,null,null,null,null,null,null,null,null,null,null,null,null,null,null,0,{"$error":"#DIV/0!"}]
[null,null,null,null,null,null,null,null,null,null,null,null,null,null,null,null,null,null,null,null,null,null,null,0,{"$error":"#DIV/0!"}]
[4,"Follow Up and Final Reports (XX Reviews)",null,null,null,null,null,null,null,null,null,null,null,null,null,null,null,null,null,null,null,null,null,"",""]
[null,null,null,null,null,null,null,null,null,null,null,null,null,null,null,null,null,null,null,null,null,null,null,0,{"$error":"#DIV/0!"}]
[null,null,null,null,null,null,null,null,null,null,null,null,null,null,null,null,null,null,null,null,null,null,null,0,{"$error":"#DIV/0!"}]
[null,null,null,null,null,null,null,null,null,null,null,null,null,null,null,null,null,null,null,null,null,null,null,0,{"$error":"#DIV/0!"}]
[null,null,null,null,null,null,null,null,null,null,null,null,null,null,null,null,null,null,null,null,null,null,null,0,{"$error":"#DIV/0!"}]
[null,null,null,null,null,null,null,null,null,null,null,null,null,null,null,null,null,null,null,null,null,null,null,0,{"$error":"#DIV/0!"}]
[5,"Inventory of Best Practices (XX Reviews)",null,null,null,null,null,null,null,null,null,null,null,null,null,null,null,null,null,null,null,null,null,"",""]
[null,null,null,null,null,null,null,null,null,null,null,null,null,null,null,null,null,null,null,null,null,null,null,0,{"$error":"#DIV/0!"}]
[null,null,null,null,null,null,null,null,null,null,null,null,null,null,null,null,null,null,null,null,null,null,null,0,{"$error":"#DIV/0!"}]
[null,null,null,null,null,null,null,null,null,null,null,null,null,null,null,null,null,null,null,null,null,null,null,0,{"$error":"#DIV/0!"}]
[null,null,null,null,null,null,null,null,null,null,null,null,null,null,null,null,null,null,null,null,null,null,null,0,{"$error":"#DIV/0!"}]
[null,null,null,null,null,null,null,null,null,null,null,null,null,null,null,null,null,null,null,null,null,null,null,0,{"$error":"#DIV/0!"}]
[null,null,null,null,null,null,null,null,null,null,null,null,null,null,null,null,null,null,null,null,null,null,null,0,{"$error":"#DIV/0!"}]
[null,null,null,null,null,null,null,null,null,null,null,null,null,null,null,null,null,null,null,null,null,null,null,0,{"$error":"#DIV/0!"}]
[null,null,null,null,null,null,null,null,null,null,null,null,null,null,null,null,null,null,null,null,null,null,null,0,{"$error":"#DIV/0!"}]
[null,null,null,null,null,null,null,null,null,null,null,null,null,null,null,null,null,null,null,null,null,null,null,0,{"$error":"#DIV/0!"}]
[null,null,null,null,null,null,null,null,null,null,null,null,null,null,null,null,null,null,null,null,null,null,null,0,{"$error":"#DIV/0!"}]
[null,null,null,null,null,null,null,null,null,null,null,null,null,null,null,null,null,null,null,null,null,null,null,0,{"$error":"#DIV/0!"}]
[null,null,null,null,null,null,null,null,null,null,null,null,null,null,null,null,null,null,null,null,null,null,null,0,{"$error":"#DIV/0!"}]
[null,null,null,null,null,null,null,null,null,null,null,null,null,null,null,null,null,null,null,null,null,null,null,0,{"$error":"#DIV/0!"}]
[null,null,null,null,null,null,null,null,null,null,null,null,null,null,null,null,null,null,null,null,null,null,null,0,{"$error":"#DIV/0!"}]
[null,null,null,null,null,null,null,null,null,null,null,null,null,null,null,null,null,null,null,null,null,null,null,0,{"$error":"#DIV/0!"}]
[null,null,null,null,null,null,null,null,null,null,null,null,null,null,null,null,null,null,null,null,null,null,null,0,{"$error":"#DIV/0!"}]
[null,null,null,null,null,null,null,null,null,null,null,null,null,null,null,null,null,null,null,null,null,null,null,0,{"$error":"#DIV/0!"}]
[null,null,null,null,null,null,null,null,null,null,null,null,null,null,null,null,null,null,null,null,null,null,null,0,{"$error":"#DIV/0!"}]
[null,null,null,null,null,null,null,null,null,null,null,null,null,null,null,null,null,null,null,null,null,null,null,0,{"$error":"#DIV/0!"}]
[null,null,null,null,null,null,null,null,null,null,null,null,null,null,null,null,null,null,null,null,null,null,null,0,{"$error":"#DIV/0!"}]
[null,null,null,null,null,null,null,null,null,null,null,null,null,null,null,null,null,null,null,null,null,null,null,0,{"$error":"#DIV/0!"}]
[null,null,null,null,null,null,null,null,null,null,null,null,null,null,null,null,null,null,null,null,null,null,null,0,{"$error":"#DIV/0!"}]
[null,null,null,null,null,null,null,null,null,null,null,null,null,null,null,null,null,null,null,null,null,null,null,0,{"$error":"#DIV/0!"}]
[null,null,null,null,null,null,null,null,null,null,null,null,null,null,null,null,null,null,null,null,null,null,null,0,{"$error":"#DIV/0!"}]
[null,null,null,null,null,null,null,null,null,null,null,null,null,null,null,null,null,null,null,null,null,null,null,0,{"$error":"#DIV/0!"}]
[null,null,null,null,null,null,null,null,null,null,null,null,null,null,null,null,null,null,null,null,null,null,null,0,{"$error":"#DIV/0!"}]
[null,null,null,null,null,null,null,null,null,null,null,null,null,null,null,null,null,null,null,null,null,null,null,0,{"$error":"#DIV/0!"}]
[null,"Community Connectivity Plans (CCP’s)",null,null,null,null,null,null,null,null,null,null,null,null,null,null,null,null,null,null,null,null,null,"",""]
[null,"Community Connectivity Plans (CCP’s)",null,null,null,null,null,null,null,null,null,null,null,null,null,null,null,null,null,null,null,null,null,"",""]
[1,"Introduction ",null,null,null,null,null,null,null,null,null,null,null,null,null,null,null,null,null,null,null,null,null,"",""]
[2,"Current Performance and Service Area Trends",null,null,null,null,null,null,null,null,null,null,null,null,null,null,null,null,null,null,null,null,null,"",""]
[3,"Public Input",null,null,null,null,null,null,null,null,null,null,null,null,null,null,null,null,null,null,null,null,null,"",""]
[4,"Service and Connectivity Plan",null,null,null,null,null,null,null,null,null,null,null,null,null,null,null,null,null,null,null,null,null,"",""]
[5,"Asset Enhancement Plan",null,null,null,null,null,null,null,null,null,null,null,null,null,null,null,null,null,null,null,null,null,"",""]
[6,"Financial Plan",null,null,null,null,null,null,null,null,null,null,null,null,null,null,null,null,null,null,null,null,null,"",""]
[7,"Assessment and Strategies Plan & Success Plan",null,null,null,null,null,null,null,null,null,null,null,null,null,null,null,null,null,null,null,null,null,"",""]
[8,"Draft and Final CCP",null,null,null,null,null,null,null,null,null,null,null,null,null,null,null,null,null,null,null,null,null,"",""]
[null,null,null,null,null,null,null,null,null,null,null,null,null,null,null,null,null,null,null,null,null,null,null,0,{"$error":"#DIV/0!"}]
[null,null,null,null,null,null,null,null,null,null,null,null,null,null,null,null,null,null,null,null,null,null,null,{"$f":"IF(B76=\"\",0,IF((SUM(D76:W76)=0),\"\",SUM(D76:W76)))","v":0},{"$f":"IF(X76=\"\",\"\",SUM((X76/$X$121)))","v":{"$error":"#DIV/0!"}}]
[null,null,null,null,null,null,null,null,null,null,null,null,null,null,null,null,null,null,null,null,null,null,null,0,{"$error":"#DIV/0!"}]
[null,null,null,null,null,null,null,null,null,null,null,null,null,null,null,null,null,null,null,null,null,null,null,0,{"$error":"#DIV/0!"}]
[null,null,null,null,null,null,null,null,null,null,null,null,null,null,null,null,null,null,null,null,null,null,null,0,{"$error":"#DIV/0!"}]
[null,null,null,null,null,null,null,null,null,null,null,null,null,null,null,null,null,null,null,null,null,null,null,0,{"$error":"#DIV/0!"}]
[null,null,null,null,null,null,null,null,null,null,null,null,null,null,null,null,null,null,null,null,null,null,null,0,{"$error":"#DIV/0!"}]
[null,null,null,null,null,null,null,null,null,null,null,null,null,null,null,null,null,null,null,null,null,null,null,0,{"$error":"#DIV/0!"}]
[null,null,null,null,null,null,null,null,null,null,null,null,null,null,null,null,null,null,null,null,null,null,null,0,{"$error":"#DIV/0!"}]
[null,null,null,null,null,null,null,null,null,null,null,null,null,null,null,null,null,null,null,null,null,null,null,0,{"$error":"#DIV/0!"}]
[null,null,null,null,null,null,null,null,null,null,null,null,null,null,null,null,null,null,null,null,null,null,null,0,{"$error":"#DIV/0!"}]
[null,null,null,null,null,null,null,null,null,null,null,null,null,null,null,null,null,null,null,null,null,null,null,0,{"$error":"#DIV/0!"}]
[null,null,null,null,null,null,null,null,null,null,null,null,null,null,null,null,null,null,null,null,null,null,null,0,{"$error":"#DIV/0!"}]
[null,null,null,null,null,null,null,null,null,null,null,null,null,null,null,null,null,null,null,null,null,null,null,0,{"$error":"#DIV/0!"}]
[null,null,null,null,null,null,null,null,null,null,null,null,null,null,null,null,null,null,null,null,null,null,null,0,{"$error":"#DIV/0!"}]
[null,null,null,null,null,null,null,null,null,null,null,null,null,null,null,null,null,null,null,null,null,null,null,0,{"$error":"#DIV/0!"}]
[null,null,null,null,null,null,null,null,null,null,null,null,null,null,null,null,null,null,null,null,null,null,null,0,{"$error":"#DIV/0!"}]
[null,null,null,null,null,null,null,null,null,null,null,null,null,null,null,null,null,null,null,null,null,null,null,0,{"$error":"#DIV/0!"}]
[null,null,null,null,null,null,null,null,null,null,null,null,null,null,null,null,null,null,null,null,null,null,null,0,{"$error":"#DIV/0!"}]
[null,null,null,null,null,null,null,null,null,null,null,null,null,null,null,null,null,null,null,null,null,null,null,0,{"$error":"#DIV/0!"}]
[null,null,null,null,null,null,null,null,null,null,null,null,null,null,null,null,null,null,null,null,null,null,null,0,{"$error":"#DIV/0!"}]
[null,null,null,null,null,null,null,null,null,null,null,null,null,null,null,null,null,null,null,null,null,null,null,0,{"$error":"#DIV/0!"}]
[null,null,null,null,null,null,null,null,null,null,null,null,null,null,null,null,null,null,null,null,null,null,null,0,{"$error":"#DIV/0!"}]
[null,null,null,null,null,null,null,null,null,null,null,null,null,null,null,null,null,null,null,null,null,null,null,0,{"$error":"#DIV/0!"}]
[null,null,null,null,null,null,null,null,null,null,null,null,null,null,null,null,null,null,null,null,null,null,null,0,{"$error":"#DIV/0!"}]
[null,null,null,null,null,null,null,null,null,null,null,null,null,null,null,null,null,null,null,null,null,null,null,0,{"$error":"#DIV/0!"}]
[null,null,null,null,null,null,null,null,null,null,null,null,null,null,null,null,null,null,null,null,null,null,null,0,{"$error":"#DIV/0!"}]
[null,null,null,null,null,null,null,null,null,null,null,null,null,null,null,null,null,null,null,null,null,null,null,0,{"$error":"#DIV/0!"}]
[null,null,null,null,null,null,null,null,null,null,null,null,null,null,null,null,null,null,null,null,null,null,null,0,{"$error":"#DIV/0!"}]
[null,null,null,null,null,null,null,null,null,null,null,null,null,null,null,null,null,null,null,null,null,null,null,0,{"$error":"#DIV/0!"}]
[null,null,null,null,null,null,null,null,null,null,null,null,null,null,null,null,null,null,null,null,null,null,null,0,{"$error":"#DIV/0!"}]
[null,null,null,null,null,null,null,null,null,null,null,null,null,null,null,null,null,null,null,null,null,null,null,0,{"$error":"#DIV/0!"}]
[null,null,null,null,null,null,null,null,null,null,null,null,null,null,null,null,null,null,null,null,null,null,null,0,{"$error":"#DIV/0!"}]
[null,null,null,null,null,null,null,null,null,null,null,null,null,null,null,null,null,null,null,null,null,null,null,0,{"$error":"#DIV/0!"}]
[null,null,null,null,null,null,null,null,null,null,null,null,null,null,null,null,null,null,null,null,null,null,null,0,{"$error":"#DIV/0!"}]
[null,null,null,null,null,null,null,null,null,null,null,null,null,null,null,null,null,null,null,null,null,null,null,0,{"$error":"#DIV/0!"}]
[null,null,null,null,null,null,null,null,null,null,null,null,null,null,null,null,null,null,null,null,null,null,null,0,{"$error":"#DIV/0!"}]
[null,null,null,null,null,null,null,null,null,null,null,null,null,null,null,null,null,null,null,null,null,null,null,0,{"$error":"#DIV/0!"}]
[null,null,null,null,null,null,null,null,null,null,null,null,null,null,null,null,null,null,null,null,null,null,null,0,{"$error":"#DIV/0!"}]
[null,null,null,null,null,null,null,null,null,null,null,null,null,null,null,null,null,null,null,null,null,null,null,0,{"$error":"#DIV/0!"}]
[null,null,null,null,null,null,null,null,null,null,null,null,null,null,null,null,null,null,null,null,null,null,null,0,{"$error":"#DIV/0!"}]
[null,null,null,null,null,null,null,null,null,null,null,null,null,null,null,null,null,null,null,null,null,null,null,0,{"$error":"#DIV/0!"}]
[null,null,null,null,null,null,null,null,null,null,null,null,null,null,null,null,null,null,null,null,null,null,null,0,{"$error":"#DIV/0!"}]
[null,null,null,null,null,null,null,null,null,null,null,null,null,null,null,null,null,null,null,null,null,null,null,0,{"$error":"#DIV/0!"}]
[null,null,null,null,null,null,null,null,null,null,null,null,null,null,null,null,null,null,null,null,null,null,null,0,{"$error":"#DIV/0!"}]
[null,null,null,null,null,null,null,null,null,null,null,null,null,null,null,null,null,null,null,null,null,null,null,0,{"$error":"#DIV/0!"}]
[null,"TOTAL WORKHOURS/CATEGORY:",null,{"$f":"SUM(D11:D120)","v":0},0,0,0,0,0,0,0,0,0,0,0,0,0,0,0,0,0,0,0,{"$f":"SUM(X11:X120)","v":0},{"$f":"SUM(Y11:Y120)","v":{"$error":"#DIV/0!"}},{"$f":"SUM(Z12:Z120)","v":0}]
[null,"TOTAL WORKDAYS/CATEGORY:",null,{"$f":"D121/8","v":0},{"$f":"E121/8","v":0},0,0,0,0,0,0,0,0,0,0,0,0,0,0,0,0,0,0]
[null,"HOURLY SALARY RATE:",null,{"$f":"'PEF CLASSIFICATION SHEET'!E186","v":0},{"$f":"'PEF CLASSIFICATION SHEET'!E187","v":0},{"$f":"'PEF CLASSIFICATION SHEET'!E188","v":0},{"$f":"'PEF CLASSIFICATION SHEET'!E189","v":0},{"$f":"'PEF CLASSIFICATION SHEET'!E190","v":0},{"$f":"'PEF CLASSIFICATION SHEET'!E191","v":0},{"$f":"'PEF CLASSIFICATION SHEET'!E192","v":0},{"$f":"'PEF CLASSIFICATION SHEET'!E193","v":0},{"$f":"'PEF CLASSIFICATION SHEET'!E194","v":0},{"$f":"'PEF CLASSIFICATION SHEET'!E195","v":0},{"$f":"'PEF CLASSIFICATION SHEET'!E196","v":0},{"$f":"'PEF CLASSIFICATION SHEET'!E197","v":0},{"$f":"'PEF CLASSIFICATION SHEET'!E198","v":0},{"$f":"'PEF CLASSIFICATION SHEET'!E199","v":0},{"$f":"'PEF CLASSIFICATION SHEET'!E200","v":0},{"$f":"'PEF CLASSIFICATION SHEET'!E201","v":0},{"$f":"'PEF CLASSIFICATION SHEET'!E202","v":0},{"$f":"'PEF CLASSIFICATION SHEET'!E203","v":0},{"$f":"'PEF CLASSIFICATION SHEET'!E204","v":0},{"$f":"'PEF CLASSIFICATION SHEET'!E205","v":0}]
[null,"RATES PER DAY:",null,{"$f":"D123*8","v":0},0,0,0,0,0,0,0,0,0,0,0,0,0,0,0,0,0,0,0]
[null,"PAYROLL BURDEN:",null,{"$f":"SUM(D121*D123)","v":0},{"$f":"SUM(E121*E123)","v":0},0,0,0,0,0,0,0,0,0,0,0,0,0,0,0,0,0,0]
[null,"TOTAL WORKDAYS:",null,{"$f":"SUM(D122:W122)","v":0}]
[null,"TOTAL PAYROLL BURDEN:",null,{"$f":"SUM(D125:W125)","v":0}]
[null,"AVERAGE COST PER HOUR:",null,{"$f":"SUM(D127/(D126*8))","v":{"$error":"#DIV/0!"}},null,null,null,null,null,null,null,null,null,null,null,null,null,null,null,null,null,null,null," "]
[null,"GENERAL OVERHEAD:",{"$f":"PUBLIC.TRANSPORTATION.PRIME_CONSULTANT_OVERHEAD","v":0},{"$f":"SUM(D127*C129)","v":0}]
[null,"SUBTOTAL:",null,{"$f":"SUM(D127+D129)","v":0}]
[null,"COMPARATIVE FEE:",{"$f":"PUBLIC.TRANSPORTATION.PRIME_CONSULTANT_FEE","v":0},{"$f":"SUM(D130*C131)","v":0}]
[null,"FACILITIES COST OF CAPITAL:",{"$f":"PUBLIC.TRANSPORTATION.PRIME_CONSULTANT_COSTofCAPITAL","v":0},{"$f":"SUM(D127*C132)","v":0}]
[null,"TOTAL:",null,{"$f":"SUM(D130:D132)","v":0}]
[null,"DIRECT EXPENSES:",null,{"$f":"PUBLIC.TRANSPORTATION.PRIME_DIRECT_NONSALARY_TOTAL","v":0}]
[null,"PUBLIC TRANSPORTATION GRAND TOTAL:",null,{"$f":"SUM(D133:D134)","v":0}]

{"sheet":"IM-PublicTransp-Exp","index":28,"n_rows":46,"n_cols":8,"rows_kept":46,"cut":false,"hidden":true,"merged":[[0,0,0,7],[1,3,1,7]]}
["PUBLIC TRANSPORTATION--PRIME DIRECT EXPENSES"]
["TIP NUMBER",{"$f":"TIP.NUMBER","v":0},"FIRM:",{"$f":"'IM-PublicTransp'!G3","v":"CONSULTANT NAME"}]
[]
["GENERAL PROJECT WORK:","ITEM","QTY","DESCRIPTION",null,null,"UNIT COST "]
[null,"Travel:"]
[null,"Sedan",0,"Trip(s) @",0,"miles @",{"$f":"SEDAN","v":0.7},{"$f":"SUM(C6*E6*G6)","v":0}]
[null,"Carry All",0,"Trip(s) @",0,"miles @",{"$f":"CARRYALL","v":0.72},{"$f":"SUM(C7*E7*G7)","v":0}]
[null,"Car Rental",null,null,0,"days @ ",{"$f":"CARRENTAL","v":50},{"$f":"SUM(E8*G8)","v":0}]
[null,"Gas for Rental",null,null,0,"miles @",{"$f":"GASforRENTAL","v":0.2},{"$f":"SUM(E9*G9)","v":0}]
[null,"Parking:",0,"Trip(s) @",null,null,{"$f":"PARKING","v":3},{"$f":"SUM(C10*G10)","v":0}]
[null,"Per Diem:",0,"Breakfast",null,null,{"$f":"BREAKFAST","v":10.1},{"$f":"SUM(C11*G11)","v":0}]
[null,null,0,"Lunch",null,null,{"$f":"LUNCH","v":13.3},0]
[null,null,0,"Dinner",null,null,{"$f":"DINNER","v":23.1},0]
[null,null,0,"Lodging",null,null,{"$f":"LODGING_LUMP.SUM","v":95},0]
[null,"Reproduction:",0,"8 1/2 x 11 B & W Copies @",null,null,{"$f":"LETTERCOPIES","v":0.14000000000000001},0]
[null,null,0,"11 x 17 B & W Copies @",null,null,{"$f":"LEDGERCOPIES","v":0.34},0]
[null,null,0,"8 1/2 x 11 Color Copies @",null,null,{"$f":"LETTERCOLOR","v":0.83},0]
[null,null,0,"11 x 17 Color Copies @",null,null,{"$f":"LEDGERCOLOR","v":1.66},0]
[null,null,0,"SQ. FT. of Plots (B & W or Color)",null,"<65 SQ. FT.*",{"$f":"ROLLPLOTSshort","v":6.5},0]
[null,null,0,"SQ. FT. of Plots (B & W or Color)",null,">65 SQ. FT.*",{"$f":"ROLLPLOTSlong","v":1.5},0]
[null,null,0,"Cover(s) @",null,null,{"$f":"COVERS","v":0.5},0]
[null,null,0,"Binder(s) @",null,null,{"$f":"BINDERS","v":0.5},0]
[null,null,0,"Blueprints - 8 1/2 x 11 @",null,null,{"$f":"BLUEPRINTSLETTER","v":0.35},0]
[null,null,0,"Blueprints - 42 x 72 @",null,null,{"$f":"BLUEPRINTSLARGE","v":1.3},0]
[null,"Film and Developing:",0,"Roll(s) @",null,null,{"$f":"FILM","v":20},0]
[null,null,null,null,null,"Subtotal",null,{"$f":"SUM(H6:H25)","v":0}]
["MAPS AND DOCUMENTS:","ITEM","QTY","DESCRIPTION",null,null,"UNIT COST "]
[null,"County Tax Maps:",0,"Map(s) @",null,null,{"$f":"County_Tax_Maps","v":7},{"$f":"SUM(C28*G28)","v":0}]
[null,"USGS Maps:",0,"Map(s) @",null,null,{"$f":"USGSMAPS","v":7},{"$f":"SUM(C29*G29)","v":0}]
[null,null,null,null,null,"Subtotal",null,{"$f":"SUM(H28:H29)","v":0}]
["Miscellaneous Other","ITEM","QTY","DESCRIPTION",null,null,"UNIT COST "]
[null,null,null,null,null,null,null,{"$f":"SUM(C32*G32)","v":0}]
[null,null,null,null,null,null,null,{"$f":"SUM(C33*G33)","v":0}]
[null,null,null,null,null,null,null,0]
[null,null,null,null,null,null,null,0]
[null,null,null,null,null,null,null,0]
[null,null,null,null,null,null,null,0]
[null,null,null,null,null,null,null,0]
[null,null,null,null,null,null,null,{"$f":"SUM(C39*G39)","v":0}]
[null,null,null,null,null,null,null,{"$f":"SUM(C40*G40)","v":0}]
[null,null,null,null,null,null,null,{"$f":"SUM(C41*G41)","v":0}]
[null,null,null,null,null,"Subtotal",null,{"$f":"SUM(H32:H41)","v":0}]
[]
[null,null,null,null,null,"TOTAL",null,{"$f":"SUM(H26+H30+H42)","v":0}]
[]
[null,"* Sum of all plots "]

{"sheet":"IM-BikePed-Exp","index":29,"n_rows":46,"n_cols":8,"rows_kept":46,"cut":false,"hidden":true,"merged":[[0,0,0,7],[1,3,1,7]]}
["BICYCLE AND PEDESTRIAN--PRIME DIRECT EXPENSES"]
["TIP NUMBER",{"$f":"TIP.NUMBER","v":0},"FIRM:",{"$f":"'IM-BikePed'!G3","v":"CONSULTANT NAME"}]
[]
["GENERAL PROJECT WORK:","ITEM","QTY","DESCRIPTION",null,null,"UNIT COST "]
[null,"Travel:"]
[null,"Sedan",0,"Trip(s) @",0,"miles @",{"$f":"SEDAN","v":0.7},{"$f":"SUM(C6*E6*G6)","v":0}]
[null,"Carry All",0,"Trip(s) @",0,"miles @",{"$f":"CARRYALL","v":0.72},{"$f":"SUM(C7*E7*G7)","v":0}]
[null,"Car Rental",null,null,0,"days @ ",{"$f":"CARRENTAL","v":50},{"$f":"SUM(E8*G8)","v":0}]
[null,"Gas for Rental",null,null,0,"miles @",{"$f":"GASforRENTAL","v":0.2},{"$f":"SUM(E9*G9)","v":0}]
[null,"Parking:",0,"Trip(s) @",null,null,{"$f":"PARKING","v":3},{"$f":"SUM(C10*G10)","v":0}]
[null,"Per Diem:",0,"Breakfast",null,null,{"$f":"BREAKFAST","v":10.1},{"$f":"SUM(C11*G11)","v":0}]
[null,null,0,"Lunch",null,null,{"$f":"LUNCH","v":13.3},0]
[null,null,0,"Dinner",null,null,{"$f":"DINNER","v":23.1},0]
[null,null,0,"Lodging",null,null,{"$f":"LODGING_LUMP.SUM","v":95},0]
[null,"Reproduction:",0,"8 1/2 x 11 B & W Copies @",null,null,{"$f":"LETTERCOPIES","v":0.14000000000000001},0]
[null,null,0,"11 x 17 B & W Copies @",null,null,{"$f":"LEDGERCOPIES","v":0.34},0]
[null,null,0,"8 1/2 x 11 Color Copies @",null,null,{"$f":"LETTERCOLOR","v":0.83},0]
[null,null,0,"11 x 17 Color Copies @",null,null,{"$f":"LEDGERCOLOR","v":1.66},0]
[null,null,0,"SQ. FT. of Plots (B & W or Color)",null,"<65 SQ. FT.*",{"$f":"ROLLPLOTSshort","v":6.5},0]
[null,null,0,"SQ. FT. of Plots (B & W or Color)",null,">65 SQ. FT.*",{"$f":"ROLLPLOTSlong","v":1.5},0]
[null,null,0,"Cover(s) @",null,null,{"$f":"COVERS","v":0.5},0]
[null,null,0,"Binder(s) @",null,null,{"$f":"BINDERS","v":0.5},0]
[null,null,0,"Blueprints - 8 1/2 x 11 @",null,null,{"$f":"BLUEPRINTSLETTER","v":0.35},0]
[null,null,0,"Blueprints - 42 x 72 @",null,null,{"$f":"BLUEPRINTSLARGE","v":1.3},0]
[null,"Film and Developing:",0,"Roll(s) @",null,null,{"$f":"FILM","v":20},0]
[null,null,null,null,null,"Subtotal",null,{"$f":"SUM(H6:H25)","v":0}]
["MAPS AND DOCUMENTS:","ITEM","QTY","DESCRIPTION",null,null,"UNIT COST "]
[null,"County Tax Maps:",0,"Map(s) @",null,null,{"$f":"County_Tax_Maps","v":7},{"$f":"SUM(C28*G28)","v":0}]
[null,"USGS Maps:",0,"Map(s) @",null,null,{"$f":"USGSMAPS","v":7},{"$f":"SUM(C29*G29)","v":0}]
[null,null,null,null,null,"Subtotal",null,{"$f":"SUM(H28:H29)","v":0}]
["Miscellaneous Other","ITEM","QTY","DESCRIPTION",null,null,"UNIT COST "]
[null,null,null,null,null,null,null,{"$f":"SUM(C32*G32)","v":0}]
[null,null,null,null,null,null,null,{"$f":"SUM(C33*G33)","v":0}]
[null,null,null,null,null,null,null,0]
[null,null,null,null,null,null,null,0]
[null,null,null,null,null,null,null,0]
[null,null,null,null,null,null,null,0]
[null,null,null,null,null,null,null,0]
[null,null,null,null,null,null,null,{"$f":"SUM(C39*G39)","v":0}]
[null,null,null,null,null,null,null,{"$f":"SUM(C40*G40)","v":0}]
[null,null,null,null,null,null,null,{"$f":"SUM(C41*G41)","v":0}]
[null,null,null,null,null,"Subtotal",null,{"$f":"SUM(H32:H41)","v":0}]
[]
[null,null,null,null,null,"TOTAL",null,{"$f":"SUM(H26+H30+H42)","v":0}]
[]
[null,"* Sum of all plots "]

{"sheet":"LocationSurveys","index":30,"n_rows":149,"n_cols":18,"rows_kept":149,"cut":false,"hidden":true,"merged":[[148,1,148,3],[9,1,9,2],[144,7,145,8],[1,4,1,8],[0,4,0,8],[146,7,146,8],[9,4,9,7],[5,4,5,7],[15,3,16,14],[137,0,137,1],[138,0,138,1],[139,0,139,1],[140,0,140,1],[141,0,141,1]]}
[null,null,null,null,"NORTH CAROLINA DEPARTMENT OF TRANSPORTATION",null,null,null,null,null,null,null,null,null,null,null,null,{"$f":"IF(C8=\"FT\",1,2)","v":2}]
[null,null,null,null,"      LOCATION AND SURVEYS PEF COST ESTIMATE"]
[null,null,null,null,null,null,null,null,null,null,null,null,null,null,null,null,null,"MI"]
[null,null,null,"DATE:",{"$f":"IF(SCOPE.MANDAY.ESTIMATE.PREPARED.BY.DATE=\"\",\"\",SCOPE.MANDAY.ESTIMATE.PREPARED.BY.DATE)","v":""},null,null,null,null,null,null,null,null,null,null,null," ","FT"]
[null,null,null,null,null,null,null,null,null,null,null,null,null,null,null,null," "]
["TIP NO.:",{"$f":"IF(TIP.NUMBER=\"\",\"\",TIP.NUMBER)","v":""},null,"FIRM:",{"$f":"LOCATION_SURVEYS_CONSULTANT_NAME","v":"CONSULTANT NAME"},null,null,null,null,null,null,null,null,null,null,null," "]
[]
["LS NO.:",null,"MI"]
[]
["WBS:",{"$f":"IF(WBS.NUMBER=\"\",\"\",WBS.NUMBER)","v":""},null,"COUNTY:",{"$f":"IF(COUNTY=\"\",\"\",COUNTY)","v":""}]
[]
["LENGTH:"]
[null,"L-LINE:",null,{"$f":"IF(C8=\"MI\",\"MI\",\"FT\")","v":"MI"},null,null,"RAMPS:",null,{"$f":"IF(C8=\"MI\",\"MI\",\"FT\")","v":"MI"}]
[null,"Y-LINE(S):",null,{"$f":"IF(C8=\"MI\",\"MI\",\"FT\")","v":"MI"},null,null,"RAILROADS:",null,{"$f":"IF(C8=\"MI\",\"MI\",\"FT\")","v":"MI"}]
[]
[null,null,"PROJECT DESCRIPTION:",{"$f":"IF(PROJECT.DESCRIPTION=\"\",\"\",PROJECT.DESCRIPTION)","v":""}]
[]
[]
[null,null,null,"ESTIMATED WORKHOURS"]
["TASKS & PARAMETERS",null,null,"PEM","PSS","ASC","SCL","ASCL","SCM",{"$f":"IF('PEF CLASSIFICATION SHEET'!C236=\"\",\"\",IF('PEF CLASSIFICATION SHEET'!C236=\"Project Engineer Manager\",\"PEM\",IF('PEF CLASSIFICATION SHEET'!C236=\"Project Survey Supervisor\",\"PSS\",IF('PEF CLASSIFICATION SHEET'!C236=\"Advanced Survey Coordinator\",\"ASC\",IF('PEF CLASSIFICATION SHEET'!C236=\"Survey Crew Leader\",\"SCL\",IF('PEF CLASSIFICATION SHEET'!C236=\"Assistant Survey Crew Leader\",\"ASCL\",IF('PEF CLASSIFICATION SHEET'!C236=\"Survey Crew Member\",\"SCM\",\"N/A\")))))))","v":""},{"$f":"IF('PEF CLASSIFICATION SHEET'!C237=\"\",\"\",IF('PEF CLASSIFICATION SHEET'!C237=\"Project Engineer Manager\",\"PEM\",IF('PEF CLASSIFICATION SHEET'!C237=\"Project Survey Supervisor\",\"PSS\",IF('PEF CLASSIFICATION SHEET'!C237=\"Advanced Survey Coordinator\",\"ASC\",IF('PEF CLASSIFICATION SHEET'!C237=\"Survey Crew Leader\",\"SCL\",IF('PEF CLASSIFICATION SHEET'!C237=\"Assistant Survey Crew Leader\",\"ASCL\",IF('PEF CLASSIFICATION SHEET'!C237=\"Survey Crew Member\",\"SCM\",\"N/A\")))))))","v":""},{"$f":"IF('PEF CLASSIFICATION SHEET'!C238=\"\",\"\",IF('PEF CLASSIFICATION SHEET'!C238=\"Project Engineer Manager\",\"PEM\",IF('PEF CLASSIFICATION SHEET'!C238=\"Project Survey Supervisor\",\"PSS\",IF('PEF CLASSIFICATION SHEET'!C238=\"Advanced Survey Coordinator\",\"ASC\",IF('PEF CLASSIFICATION SHEET'!C238=\"Survey Crew Leader\",\"SCL\",IF('PEF CLASSIFICATION SHEET'!C238=\"Assistant Survey Crew Leader\",\"ASCL\",IF('PEF CLASSIFICATION SHEET'!C238=\"Survey Crew Member\",\"SCM\",\"N/A\")))))))","v":""},{"$f":"IF('PEF CLASSIFICATION SHEET'!C239=\"\",\"\",IF('PEF CLASSIFICATION SHEET'!C239=\"Project Engineer Manager\",\"PEM\",IF('PEF CLASSIFICATION SHEET'!C239=\"Project Survey Supervisor\",\"PSS\",IF('PEF CLASSIFICATION SHEET'!C239=\"Advanced Survey Coordinator\",\"ASC\",IF('PEF CLASSIFICATION SHEET'!C239=\"Survey Crew Leader\",\"SCL\",IF('PEF CLASSIFICATION SHEET'!C239=\"Assistant Survey Crew Leader\",\"ASCL\",IF('PEF CLASSIFICATION SHEET'!C239=\"Survey Crew Member\",\"SCM\",\"N/A\")))))))","v":""},{"$f":"IF('PEF CLASSIFICATION SHEET'!C240=\"\",\"\",IF('PEF CLASSIFICATION SHEET'!C240=\"Project Engineer Manager\",\"PEM\",IF('PEF CLASSIFICATION SHEET'!C240=\"Project Survey Supervisor\",\"PSS\",IF('PEF CLASSIFICATION SHEET'!C240=\"Advanced Survey Coordinator\",\"ASC\",IF('PEF CLASSIFICATION SHEET'!C240=\"Survey Crew Leader\",\"SCL\",IF('PEF CLASSIFICATION SHEET'!C240=\"Assistant Survey Crew Leader\",\"ASCL\",IF('PEF CLASSIFICATION SHEET'!C240=\"Survey Crew Member\",\"SCM\",\"N/A\")))))))","v":""},"TOTAL","NOTES"]
["1. Courthouse Research"]
[null,"No. of Properties:",null,null,null,null,null,null,null,null,null,null,null,null,{"$f":"SUM(D22:N22)","v":0},null,null,2]
["2. Contacting Property Owners",null,null,null,null,null,null,null,null,null,null,null,null,null,null,null,null,"10. Obtain STA Levels w/ EP Shots"]
[null,"No. of Property Owners:",null,null,null,null,null,null,null,null,null,null,null,null,{"$f":"SUM(D24:N24)","v":0},null,null,"10.  Pavement DTM's"]
["3. NC Grid Tie (Horiz.) to NAD 1983"]
[null,"Approx. Length:",null,null,null,null,null,null,null,null,null,null,null,null,{"$f":"SUM(D26:N26)","v":0},null,null,1]
["4. Vertical Control Tie to NAVD 1988",null,null,null,null,null,null,null,null,null,null,null,null,null,null,null,null,"11.  Obtain STA Levels w/out EP Shots"]
[null,"Approx. Length:",null,null,null,null,null,null,null,null,null,null,null,null,{"$f":"SUM(D28:N28)","v":0},null,null,"11.  Obtain Random Baseline XYZ Shots"]
["5. Baseline Traverse"]
[null,"Approx. Length:",null,null,null,null,null,null,null,null,null,null,null,null,{"$f":"SUM(D30:N30)","v":0}]
["6. Intermediate Staking of Baseline"]
[null,"Approx. Length:",null,null,null,null,null,null,null,null,null,null,null,null,{"$f":"SUM(D32:N32)","v":0}]
["7. Compute Best-Fit Alignment (Graphically)"]
["   ","Approx. Length:",null,null,null,null,null,null,null,null,null,null,null,null,{"$f":"SUM(D34:N34)","v":0}]
["8. Hub & Stake Design -L- & -Y- Alignments"]
["   ","Approx. Length -L-:"]
[null,"Approx. Length -Y-:",null,null,null,null,null,null,null,null,null,null,null,null,{"$f":"SUM(D36:N37)","v":0}]
["9. Establish/Elevate Temp. Bench Marks"]
[null,"No. of TBM's:",null,null,null,null,null,null,null,null,null,null,null,null,{"$f":"SUM(D39:N39)","v":0}]
["10. Pavement DTMs"]
[null,"Approx. Length:",null,null,null,null,null,null,null,null,null,null,null,null,{"$f":"SUM(D41:N41)","v":0}]
["11. Hydrographic Surveys & -T- Lines"]
[null,"Approx. Length:",null,null,null,null,null,null,null,null,null,null,null,null,{"$f":"SUM(D43:N43)","v":0}]
["12. Suppl. Info for DTM's (Obscured Areas)"]
[null,"No. of Acres / Hectares:",null,null,null,null,null,null,null,null,null,null,null,null,{"$f":"SUM(D45:N45)","v":0}]
["13. Field Property Ties & Recon"]
[null,"No. of Properties:",null,null,null,null,null,null,null,null,null,null,null,null,{"$f":"SUM(D47:N47)","v":0}]
["14. Property Analysis and Computations"]
[null,"No. of Properties:",null,null,null,null,null,null,null,null,null,null,null,null,{"$f":"SUM(D49:N49)","v":0}]
["15. Property Line Ties to Design Alignment"]
[null,"No. of Properties:",null,null,null,null,null,null,null,null,null,null,null,null,{"$f":"SUM(D51:N51)","v":0}]
["16. Property Strip Maps"]
[null,"No. of Maps:",null,null,null,null,null,null,null,null,null,null,null,null,{"$f":"SUM(D53:N53)","v":0}]
["17. Data for Appraisal Report"]
[null,"                     No. of Properties:",null,null,null,null,null,null,null,null,null,null,null,null,{"$f":"SUM(D55:N55)","v":0}]
["18. Classif. of Features on Aerial Maps"]
[null,"                             No. of Maps:"]
[null,"   Scale:",null,null,null,null,null,null,null,null,null,null,null,null,{"$f":"SUM(D58:N58)","v":0}]
["19. Field Loc. of Topo & Plan. Features"]
[null,"             (Dense, Med., or LT.):",null,null,null,null,null,null,null,null,null,null,null,null,{"$f":"SUM(D60:N60)","v":0}]
["20. Loc. of Non-Gravity U/G Utilities"]
[null,"             (Dense, Med., or LT.):",null,null,null,null,null,null,null,null,null,null,null,null,{"$f":"SUM(D62:N62)","v":0}]
["21. Loc. of Gravity Utilities & Pipe Inverts"]
[null,"             (Dense, Med., or LT.):",null,null,null,null,null,null,null,null,null,null,null,null,{"$f":"SUM(D64:N64)","v":0}]
["22. Mapping Pre. Prop. from Tax Map Info."]
[null,"                   No. of  Properties:",null,null,null,null,null,null,null,null,null,null,null,null,{"$f":"SUM(D66:N66)","v":0}]
["23. Pole Data Sheets"]
[null,"                (Dense, Med., LT.):",null,null,null,null,null,null,null,null,null,null,null,null,{"$f":"SUM(D68:N68)","v":0}]
["24. Setting Photo Con. Panels"]
[null,"                         No. of Points:",null,null,null,null,null,null,null,null,null,null,null,null,{"$f":"SUM(D70:N70)","v":0}]
["25. Photogrammetric Control"]
[null,"                          No. of Points:",null,null,null,null,null,null,null,null,null,null,null,null,{"$f":"SUM(D72:N72)","v":0}]
["26. Staking and Flagging R/W & Easements"]
[null,"No. of R/W Points:"]
[null,"No. of EASEMENT Points:",null,null,null,null,null,null,null,null,null,null,null,null,{"$f":"SUM(D74:N75)","v":0}]
["27. Production of Base Mapping"]
[null,"                           No. of Sheets:",null,null,null,null,null,null,null,null,null,null,null,null,{"$f":"SUM(D77:N77)","v":0}]
["28. GPS Points"]
[null,"                          No. of Points:",null,null,null,null,null,null,null,null,null,null,null,null,{"$f":"SUM(D79:N79)","v":0}]
["29. Misc. Staking"]
[null,"                          No. of Points:",null,null,null,null,null,null,null,null,null,null,null,null,{"$f":"SUM(D81:N81)","v":0}]
["33. Travel ","Hrs R.T.",null,null,null,null,null,null,null,null,null,null,null,null,{"$f":"SUM(D82:N82)","v":0}]
["34. Project Mgmt. & Supervision",null,null,null,null,null,null,null,null,null,null,null,null,null,{"$f":"SUM(D83:N83)","v":0}]
["35. Traffic Control & Safety",null,null,null,null,null,null,null,null,null,null,null,null,null,{"$f":"SUM(D84:N84)","v":0}]
[]
[null,"Property 1 Description"]
[null,"Property 2 Description",null,null,null,null,null,null,null,null,null,null,null,null,{"$f":"SUM(D86:N87)","v":0}]
[]
[null,"Property 1 Description"]
[null,"Property 2 Description",null,null,null,null,null,null,null,null,null,null,null,null,{"$f":"SUM(D89:N90)","v":0}]
[]
[null,"Property 1 Description"]
[null,"Property 2 Description",null,null,null,null,null,null,null,null,null,null,null,null,{"$f":"SUM(D92:N93)","v":0}]
[]
[null,"Property 1 Description"]
[null,"Property 2 Description",null,null,null,null,null,null,null,null,null,null,null,null,{"$f":"SUM(D95:N96)","v":0}]
[]
[null,"Property 1 Description"]
[null,"Property 2 Description",null,null,null,null,null,null,null,null,null,null,null,null,{"$f":"SUM(D98:N99)","v":0}]
[null,null,"TOTAL WORKHOURS:",{"$f":"SUM(D21:D99)","v":0},0,0,0,0,0,0,0,0,0,0,{"$f":"SUM(D100:N100)","v":0}]
[]
[null,"Classification",null,"Employee Name","Hours","Rate","Cost"]
["Project Engineer Manager",null,null,{"$f":"LOCATION_SURVEYS_CONSULTANT_PEM_NAME","v":0},{"$f":"D100","v":0},{"$f":"LOCATION_SURVEYS_CONSULTANT_PEM_RATE","v":0},{"$f":"E103*F103","v":0}]
["Project Survey Supervisor",null,null,{"$f":"LOCATION_SURVEYS_CONSULTANT_PSS_NAME","v":0},{"$f":"E100","v":0},{"$f":"LOCATION_SURVEYS_CONSULTANT_PSS_RATE","v":0},0]
["Advanced Survey Coordinator",null,null,{"$f":"LOCATION_SURVEYS_CONSULTANT_ASC_NAME","v":0},{"$f":"F100","v":0},{"$f":"LOCATION_SURVEYS_CONSULTANT_ASC_RATE","v":0},0,null,"TOTAL"]
["Survey Crew Leader",null,null,{"$f":"LOCATION_SURVEYS_CONSULTANT_SCL_NAME","v":0},{"$f":"G100","v":0},{"$f":"LOCATION_SURVEYS_CONSULTANT_SCL_RATE","v":0},0,null,"WORKHOURS"]
["Assistant Survey Crew Leader",null,null,{"$f":"LOCATION_SURVEYS_CONSULTANT_ASCL_NAME","v":0},{"$f":"H100","v":0},{"$f":"LOCATION_SURVEYS_CONSULTANT_ASCL_RATE","v":0},0,null,{"$f":"SUM(E103:E113)","v":0}]
["Survey Crew Member",null,null,{"$f":"LOCATION_SURVEYS_CONSULTANT_SCM_NAME","v":0},{"$f":"I100","v":0},{"$f":"LOCATION_SURVEYS_CONSULTANT_SCM_RATE","v":0},0]
[{"$f":"IF('PEF CLASSIFICATION SHEET'!C236=\"\",\"\",'PEF CLASSIFICATION SHEET'!C236)","v":""},null,null,{"$f":"'PEF CLASSIFICATION SHEET'!D236","v":0},{"$f":"J100","v":0},{"$f":"'PEF CLASSIFICATION SHEET'!E236","v":0},{"$f":"E109*F109","v":0},null,"TOTAL DIRECT"]
[{"$f":"IF('PEF CLASSIFICATION SHEET'!C237=\"\",\"\",'PEF CLASSIFICATION SHEET'!C237)","v":""},null,null,{"$f":"'PEF CLASSIFICATION SHEET'!D237","v":0},{"$f":"K100","v":0},{"$f":"'PEF CLASSIFICATION SHEET'!E237","v":0},0,null,"SALARY COSTS"]
[{"$f":"IF('PEF CLASSIFICATION SHEET'!C238=\"\",\"\",'PEF CLASSIFICATION SHEET'!C238)","v":""},null,null,{"$f":"'PEF CLASSIFICATION SHEET'!D238","v":0},{"$f":"L100","v":0},{"$f":"'PEF CLASSIFICATION SHEET'!E238","v":0},0,null,{"$f":"SUM(G103:G113)","v":0}]
[{"$f":"IF('PEF CLASSIFICATION SHEET'!C239=\"\",\"\",'PEF CLASSIFICATION SHEET'!C239)","v":""},null,null,{"$f":"'PEF CLASSIFICATION SHEET'!D239","v":0},{"$f":"M100","v":0},{"$f":"'PEF CLASSIFICATION SHEET'!E239","v":0},0]
[{"$f":"IF('PEF CLASSIFICATION SHEET'!C240=\"\",\"\",'PEF CLASSIFICATION SHEET'!C240)","v":""},null,null,{"$f":"'PEF CLASSIFICATION SHEET'!D240","v":0},{"$f":"N100","v":0},{"$f":"'PEF CLASSIFICATION SHEET'!E240","v":0},0]
[null,null,null,null,null,null,null,null,"TOTAL"]
["INDIRECT SALARY COSTS",null,null,null,null,null,null,null,"WORKDAYS"]
["Total Dir. Salary Costs",null,{"$f":"I111","v":0},null,null,null,null,null,{"$f":"I107/8","v":0}]
["Overhead (%)",null,{"$f":"LOCATION_SURVEYS_CONSULTANT_OVERHEAD","v":0},null,null,{"$f":"C116*C117","v":0}]
["Fee (%)",null,{"$f":"LOCATION_SURVEYS_CONSULTANT_FEE","v":0.09},null,null,{"$f":"P118*C118","v":0},null,null,null,null,null,null,null,null,null,{"$f":"SUM(C116,F117)","v":0}]
["Cost of Capt. (%)",null,{"$f":"LOCATION_SURVEYS_CONSULTANT_COSTofCAPITAL","v":0},null,null,{"$f":"C116*C119","v":0},null,null,"TOTAL DIR. and"]
[null,null,null,null,"Total Indirect Salary Costs:",{"$f":"SUM(F116:F119)","v":0},null,null,"INDIR. SALARY COSTS"]
[null,null,null,null,null,null,null,null,{"$f":"I111+F120","v":0}]
[]
["DIRECT COSTS"]
["Carry-all $/Day",{"$f":"50*B125","v":36},null,"Days = ",{"$f":"B124*C124","v":0}]
["or $/Mi",{"$f":"CARRYALL","v":0.72},null,"Miles=",{"$f":"B125*C125","v":0}]
["Sedan       $/Day",{"$f":"50*B127","v":35},null,"Days =",{"$f":"B126*C126","v":0}]
["or $/ Mi",{"$f":"SEDAN","v":0.7},null,"Miles=",{"$f":"B127*C127","v":0}]
[null,null,null,"Misc. Survey Supplies=     ",null,null,null,null,"TOTAL DIRECT COSTS"]
["PER DIEM EXPENSES",null,null,null,null,null,null,null,{"$f":"SUM(E124:E128)","v":0}]
[null,null,"$ / Day",null,"Persons",null,"Days"]
["Lodging",null,{"$f":"LODGING_LUMP.SUM","v":95},null,null,"x",null,null,"TOTAL PER DIEM"]
["Breakfast",null,{"$f":"BREAKFAST","v":10.1},null,null,"x",null,null,{"$f":"(C131*E131*G131)+(C132*E132*G132)+(C133*E133*G133)+(C134*E134*G134)","v":0},null,null," "]
["Lunch",null,{"$f":"LUNCH","v":13.3},null,null,"x"]
["Dinner",null,{"$f":"DINNER","v":23.1},null,null,"x"]
[]
["MISCELLANEOUS EXPENSES"]
["Description",null,"Quantity","Unit of Measure",null,"Cost Per Unit"]
[null,null,null,null,"x",null,null,null,"TOTAL MISC. EXPENSES"]
[null,null,null,null,"x",null,null,null,{"$f":"(C138*F138)+(C139*F139)+(C140*F140)+(C141*F141)+(C142*F142)","v":0},null,null," "]
[null,null,null,null,"x"]
[null,null,null,null,"x"]
[null,null,null,null,"x"]
[]
["Cost per ",{"$f":"IF(C8=\"MI\",\"MI\",\"FT\")","v":"MI"},{"$f":"IF(NOT(SUM($C$13,$C$14,$H$13,$H$14)=0),$I$149/SUM($C$13,$C$14,$H$13,$H$14),\"\")","v":""}]
["Workhours per ",{"$f":"IF(C8=\"MI\",\"MI\",\"FT\")","v":"MI"},{"$f":"IF(NOT(SUM($C$13,$C$14,$H$13,$H$14)=0),$I$107/SUM($C$13,$C$14,$H$13,$H$14),\"\")","v":""},null,null,null,null,"TOTAL DIRECT NON-SALARY COSTS"]
[]
[null,null,null,null,null,null,null,{"$f":"I129+I132+I139","v":0}]
[]
["ESTIMATE BY:",{"$f":"IF(SCOPE.MANDAY.ESTIMATE.PREPARED.BY=\"\",\"\",SCOPE.MANDAY.ESTIMATE.PREPARED.BY)","v":""},null,null,null,null,null,"             PROJECT ESTIMATE TOTAL:     ",{"$f":"SUM(I121,I129,I132,I139)","v":0}]

{"sheet":"SUE-Cover","index":31,"n_rows":28,"n_cols":13,"rows_kept":28,"cut":false,"hidden":true,"merged":[[19,3,20,8],[12,1,13,2],[1,0,1,8],[0,0,0,8]]}
["NORTH CAROLINA DEPARTMENT OF TRANSPORTATION"]
["LOCATION AND SURVEYS SUBSURFACE UTILITY ENGINEERING (SUE) COST ESTIMATE"]
[]
[null,null,null,"DATE:",{"$f":"IF(SCOPE.MANDAY.ESTIMATE.PREPARED.BY.DATE=\"\",\"\",SCOPE.MANDAY.ESTIMATE.PREPARED.BY.DATE)","v":""},null,null,null,null,null,null,null,"MI"]
[null,null,null,null,null,null,null,null,null,null,null,null,"FT"]
["CONTRACT:",{"$f":"CONTRACT.NUM","v":0},null,"FIRM:",{"$f":"SUE_CONSULTANT_NAME","v":"CONSULTANT NAME"}]
[]
["PUR. ORDER:",null,null,"ADDRESS:"]
[]
[]
["ESTIMATE PREPARED BY: ",null,null,{"$f":"IF(SCOPE.MANDAY.ESTIMATE.PREPARED.BY=\"\",\"\",SCOPE.MANDAY.ESTIMATE.PREPARED.BY)","v":""}]
[]
[null,{"$f":"WBS.NUMBER","v":""}]
["WBS:",null,null,"COUNTY:",{"$f":"IF(COUNTY=\"\",\"\",COUNTY)","v":""},"ROUTE:",null,"TIP NO.:",{"$f":"IF(TIP.NUMBER=\"\",\"\",TIP.NUMBER)","v":""}]
[]
["LENGTH:",{"$f":"SUM(C17+C18+H17+H18)","v":0},{"$f":"D17","v":"MI"},null,null,null,null,"LS NO.:"]
[null,"L-LINE:",null,"MI",null,null,"RAMPS",null,{"$f":"D17","v":"MI"}]
[null,"Y-LINE(S):",null,{"$f":"D17","v":"MI"},null,null,"RAILROADS:",null,{"$f":"D17","v":"MI"}]
[]
["PROJECT DESCRIPTION:",null,null,{"$f":"PROJECT.DESCRIPTION","v":0}]
[]
[]
[]
[]
[]
[]
[]
[null,null,null,null,"TOTAL PROJECT ESTIMATE:",null,null,{"$f":"'SUE-Estimate'!F191","v":0}]

{"sheet":"SUE-Manhours","index":32,"n_rows":51,"n_cols":21,"rows_kept":51,"cut":false,"hidden":true,"merged":[[45,0,45,1],[30,2,30,18],[41,0,41,1],[32,13,34,13],[32,12,34,12],[32,11,34,11],[32,17,34,17],[32,18,34,18],[42,0,42,1],[43,0,43,1],[44,0,44,1],[32,10,34,10],[32,9,34,9],[32,8,34,8],[32,7,34,7],[32,16,34,16],[23,20,24,20],[6,8,6,10],[14,14,16,14],[14,15,16,15],[14,16,16,16],[14,17,16,17],[14,13,16,13],[14,12,16,12],[14,11,16,11],[14,18,16,18],[14,10,16,10],[14,9,16,9],[14,20,16,20],[32,15,34,15],[32,6,34,6],[9,2,10,19],[12,2,12,18],[3,1,3,19],[5,8,5,10],[32,0,32,1],[31,0,31,1],[14,8,16,8],[13,0,13,1],[14,0,14,1],[32,5,34,5],[32,4,34,4],[32,3,34,3],[32,2,34,2],[14,4,16,4],[50,19,50,20],[18,0,18,1],[19,0,19,1],[20,0,20,1],[21,0,21,1],[22,0,22,1],[35,0,35,1],[36,0,36,1],[37,0,37,1],[38,0,38,1],[39,0,39,1],[40,0,40,1],[27,10,28,10],[32,14,34,14],[32,20,34,20],[46,20,47,20],[14,3,16,3],[14,2,16,2],[14,7,16,7],[14,6,16,6],[14,5,16,5]]}
["NORTH CAROLINA DEPARTMENT OF TRANSPORTATION"]
["     LOCATION AND SURVEYS SUE COST ESTIMATE"]
[]
[null,"SECTION A:"]
[]
[null,null,null,null,null,null,null,"TIP NUMBER:",{"$f":"TIP.NUMBER","v":0}]
[null,null,null,null,null,null,null,"PEF NAME:",{"$f":"'SUE-Cover'!E6","v":"CONSULTANT NAME"}]
[]
[null,"1. MOBILIZATION FOR PROJECTS WORKHOURS BY CLASSIFICATION:"]
[null,null,{"$f":"'SUE-Cover'!D20","v":0}]
["DESCRIPTION:"]
[]
[null,null,"ESTIMATE WORKHOURS"]
["Employee Name",null,{"$f":"SUE_CONSULTANT_SR.CADD.TECHNICIAN_NAME","v":0},{"$f":"SUE_CONSULTANT_PROJECT.MANAGER_NAME","v":0},{"$f":"SUE_CONSULTANT_CADD.TECHNICIAN_NAME","v":0},{"$f":"SUE_CONSULTANT_SURVEY.ANALYST_NAME","v":0},{"$f":"SUE_CONSULTANT_SUE.PROJ.ANALYST_NAME","v":0},{"$f":"SUE_CONSULTANT_TECHNICIAN.II_NAME","v":0},{"$f":"SUE_CONSULTANT_TECHNICIAN.I_NAME","v":0},{"$f":"SUE_CONSULTANT_ACCOUNTING.CLERK_NAME","v":0},{"$f":"SUE_CONSULTANT_PRINCIPAL.PROF.ENGR_NAME","v":0},{"$f":"IF('SUE-Estimate'!A27=\"\",\"\",LEFT('SUE-Estimate'!A27,4))","v":""},{"$f":"IF('SUE-Estimate'!A28=\"\",\"\",LEFT('SUE-Estimate'!A28,4))","v":""},{"$f":"IF('SUE-Estimate'!A29=\"\",\"\",LEFT('SUE-Estimate'!A29,4))","v":""},{"$f":"IF('SUE-Estimate'!A30=\"\",\"\",LEFT('SUE-Estimate'!A30,4))","v":""},{"$f":"IF('SUE-Estimate'!A31=\"\",\"\",LEFT('SUE-Estimate'!A31,4))","v":""},{"$f":"IF('SUE-Estimate'!A32=\"\",\"\",LEFT('SUE-Estimate'!A32,4))","v":""},{"$f":"IF('SUE-Estimate'!A33=\"\",\"\",LEFT('SUE-Estimate'!A33,4))","v":""},{"$f":"IF('SUE-Estimate'!A34=\"\",\"\",LEFT('SUE-Estimate'!A34,4))","v":""}]
["Classification",null,{"$f":"'SUE-Estimate'!B18","v":"SR CADD TECHNICIAN"},{"$f":"'SUE-Estimate'!B19","v":"PROJECT MANAGER"},{"$f":"'SUE-Estimate'!B20","v":"CADD TECHNICIAN"},{"$f":"'SUE-Estimate'!B21","v":"SURVEY ANALYST"},{"$f":"'SUE-Estimate'!B22","v":"SUE PROJ. ANALYST"},{"$f":"'SUE-Estimate'!B23","v":"TECHNICIAN II"},{"$f":"'SUE-Estimate'!B24","v":"TECHNICIAN I"},{"$f":"'SUE-Estimate'!B25","v":"ACCOUNTING CLERK"},{"$f":"'SUE-Estimate'!B26","v":"PRINCIPAL / PROF. ENGR."},{"$f":"'SUE-Estimate'!B27","v":""},{"$f":"'SUE-Estimate'!B28","v":""},{"$f":"'SUE-Estimate'!B29","v":""},{"$f":"'SUE-Estimate'!B30","v":""},{"$f":"'SUE-Estimate'!B31","v":""},{"$f":"'SUE-Estimate'!B32","v":""},{"$f":"'SUE-Estimate'!B33","v":""},{"$f":"'SUE-Estimate'!B34","v":""},null,"NOTES"]
["TASKS &"]
["PARAMETERS",null,null,null,null,null,null,null,null,null,null,null,null,null,null,null,null,null,null,"TOTAL"]
["TRAVEL",null,null,null,null,null,null,null,null,null,null,null,null,null,null,null,null,null,null,{"$f":"SUM(C18:S18)","v":0}]
[null,null,null,null,null,null,null,null,null,null,null,null,null,null,null,null,null,null,null,0]
[null,null,null,null,null,null,null,null,null,null,null,null,null,null,null,null,null,null,null,0]
[null,null,null,null,null,null,null,null,null,null,null,null,null,null,null,null,null,null,null,0]
[null,null,null,null,null,null,null,null,null,null,null,null,null,null,null,null,null,null,null,0]
[null,null,null,null,null,null,null,null,null,null,null,null,null,null,null,null,null,null,null,0]
["TOTAL",null,{"$f":"SUM(C18:C23)","v":0},0,0,0,0,0,0,0,0,0,0,0,0,0,0,0,0,0,{"$f":"T24/8","v":0}]
[]
[null,null,null,null,null,null,null,null,null,null,null,null,null,null,null,null,null,null,null,null,"WORKDAYS"]
[null,"2. TASK/PARAMETER WORKHOURS BY CLASSIFICATION:"]
[null,null,null,"Choose","Records Research For Quality Level D Mapping",null,null,null,null,null,"via X selection"]
[null,null,null,"One","Special Projects Authorized by PEF Coordinator"]
[]
[null,null,"ESTIMATE WORKHOURS",null,null,null,null,null,null,null,null,null,null,null,null,null,null,null,null,null,"X"]
["Employee Name",null,{"$f":"C14","v":0},0,0,0,0,0,0,0,0,{"$f":"L14","v":""},{"$f":"M14","v":""},"","","","","",""]
["Classification",null,{"$f":"C15","v":"SR CADD TECHNICIAN"},{"$f":"D15","v":"PROJECT MANAGER"},{"$f":"E15","v":"CADD TECHNICIAN"},{"$f":"F15","v":"SURVEY ANALYST"},{"$f":"G15","v":"SUE PROJ. ANALYST"},{"$f":"H15","v":"TECHNICIAN II"},{"$f":"I15","v":"TECHNICIAN I"},{"$f":"J15","v":"ACCOUNTING CLERK"},{"$f":"K15","v":"PRINCIPAL / PROF. ENGR."},{"$f":"L15","v":""},"","","","","","","",null,"NOTES"]
["TASKS &"]
["PARAMETERS",null,null,null,null,null,null,null,null,null,null,null,null,null,null,null,null,null,null,"TOTAL"]
["Utility Records Research & Retrieval",null,null,null,null,null,null,null,null,null,null,null,null,null,null,null,null,null,null,{"$f":"SUM(C36:S36)","v":0}]
["Hourly Field SUE Investigations",null,null,null,null,null,null,null,null,null,null,null,null,null,null,null,null,null,null,0]
["Mapping of SUE Utility Data",null,null,null,null,null,null,null,null,null,null,null,null,null,null,null,null,null,null,0]
["Hourly Field Aerial Investigations",null,null,null,null,null,null,null,null,null,null,null,null,null,null,null,null,null,null,0]
["Mapping of Aerial Utility Data",null,null,null,null,null,null,null,null,null,null,null,null,null,null,null,null,null,null,0]
["Preparation of Final SUE Deliverable",null,null,null,null,null,null,null,null,null,null,null,null,null,null,null,null,null,null,0]
[null,null,null,null,null,null,null,null,null,null,null,null,null,null,null,null,null,null,null,0]
[null,null,null,null,null,null,null,null,null,null,null,null,null,null,null,null,null,null,null,0]
[null,null,null,null,null,null,null,null,null,null,null,null,null,null,null,null,null,null,null,0]
[null,null,null,null,null,null,null,null,null,null,null,null,null,null,null,null,null,null,null,0]
[null,null,null,null,null,null,null,null,null,null,null,null,null,null,null,null,null,null,null,0]
["TOTAL",null,{"$f":"SUM(C36:C46)","v":0},0,0,0,0,0,0,0,0,0,0,0,0,0,0,0,0,0,{"$f":"T47/8","v":0}]
[]
[null,null,null,null,null,null,null,null,null,null,null,null,null,null,null,null,null,null,null,null,"WORKDAYS"]
[null,null,null,null,null,null,null,null,null,null,null,null,null,null,null,null,null,null,null,null,{"$f":"SUM(U24,U47)","v":0}]
[null,null,null,null,null,null,null,null,null,null,null,null,null,null,null,null,null,null,null,"TOTAL WORKDAYS"]

{"sheet":"SUE-Estimate","index":33,"n_rows":191,"n_cols":12,"rows_kept":191,"cut":false,"hidden":true,"merged":[[7,1,8,1],[7,2,8,9],[5,4,5,6],[3,2,3,5],[106,4,106,5],[81,4,81,5],[100,1,100,2],[101,1,101,2],[3,7,3,8],[154,1,154,2],[83,2,83,3],[84,2,84,3],[85,2,85,3],[108,2,108,3],[109,2,109,3],[110,2,110,3],[142,2,144,9],[122,1,122,2],[123,1,123,2],[124,1,124,2],[125,1,125,2],[126,1,126,2],[97,1,97,2],[98,1,98,2],[99,1,99,2],[177,1,177,2],[178,1,178,2],[172,1,172,2],[173,1,173,2],[174,1,174,2],[175,1,175,2],[176,1,176,2]]}
[null,null,null,"NORTH CAROLINA DEPARTMENT OF TRANSPORTATION"]
[null,null,null,"     LOCATION AND SURVEYS SUE COST ESTIMATE"]
[]
[null,"PEF NAME:",{"$f":"'SUE-Cover'!E6","v":"CONSULTANT NAME"},null,null,null,"TIP NUMBER:",{"$f":"TIP.NUMBER","v":0}]
[]
[null,"CONTRACT:",{"$f":"'SUE-Cover'!B6","v":0},"WBS:",{"$f":"'SUE-Cover'!B13","v":""},null,null,"LENGTH:",{"$f":"'SUE-Cover'!B16","v":0}]
[]
[null,"PROJECT DESCRIPTION:",{"$f":"'SUE-Cover'!D20","v":0}]
[]
[]
[null,"SECTION A cont.:"]
[null,"TASK & PARAMETERS"]
[null,"(Direct & Indirect Cost based on negotiated contract items.)"]
[]
[null,"1. MOBILIZATION FOR PROJECTS WORKHOURS BY CLASSIFICATION:"]
[null," (See Section D for Tasks & Parameters)"]
["EMPLOYEE NAME",null,null,null,null,"RATE"]
[{"$f":"SUE_CONSULTANT_SR.CADD.TECHNICIAN_NAME","v":0},{"$f":"IF('PEF CLASSIFICATION SHEET'!C243=\"\",\"\",'PEF CLASSIFICATION SHEET'!C243)","v":"SR CADD TECHNICIAN"},null,{"$f":"'SUE-Manhours'!C24","v":0},"HRS. X",{"$f":"SUE_CONSULTANT_SR.CADD.TECHNICIAN_RATE","v":0},"PER HR.",null,"=",{"$f":"IF(D18=0,0,ROUND((D18*F18),2))","v":0}]
[{"$f":"SUE_CONSULTANT_PROJECT.MANAGER_NAME","v":0},{"$f":"IF('PEF CLASSIFICATION SHEET'!C244=\"\",\"\",'PEF CLASSIFICATION SHEET'!C244)","v":"PROJECT MANAGER"},null,{"$f":"'SUE-Manhours'!D24","v":0},"HRS. X",{"$f":"SUE_CONSULTANT_PROJECT.MANAGER_RATE","v":0},"PER HR.",null,"=",0]
[{"$f":"SUE_CONSULTANT_CADD.TECHNICIAN_NAME","v":0},{"$f":"IF('PEF CLASSIFICATION SHEET'!C245=\"\",\"\",'PEF CLASSIFICATION SHEET'!C245)","v":"CADD TECHNICIAN"},null,{"$f":"'SUE-Manhours'!E24","v":0},"HRS. X",{"$f":"SUE_CONSULTANT_CADD.TECHNICIAN_RATE","v":0},"PER HR.",null,"=",0]
[{"$f":"SUE_CONSULTANT_SURVEY.ANALYST_NAME","v":0},{"$f":"IF('PEF CLASSIFICATION SHEET'!C246=\"\",\"\",'PEF CLASSIFICATION SHEET'!C246)","v":"SURVEY ANALYST"},null,{"$f":"'SUE-Manhours'!F24","v":0},"HRS. X",{"$f":"SUE_CONSULTANT_SURVEY.ANALYST_RATE","v":0},"PER HR.",null,"=",0]
[{"$f":"SUE_CONSULTANT_SUE.PROJ.ANALYST_NAME","v":0},{"$f":"IF('PEF CLASSIFICATION SHEET'!C247=\"\",\"\",'PEF CLASSIFICATION SHEET'!C247)","v":"SUE PROJ. ANALYST"},null,{"$f":"'SUE-Manhours'!G24","v":0},"HRS. X",{"$f":"SUE_CONSULTANT_SUE.PROJ.ANALYST_RATE","v":0},"PER HR.",null,"=",0]
[{"$f":"SUE_CONSULTANT_TECHNICIAN.II_NAME","v":0},{"$f":"IF('PEF CLASSIFICATION SHEET'!C248=\"\",\"\",'PEF CLASSIFICATION SHEET'!C248)","v":"TECHNICIAN II"},null,{"$f":"'SUE-Manhours'!H24","v":0},"HRS. X",{"$f":"SUE_CONSULTANT_TECHNICIAN.II_RATE","v":0},"PER HR.",null,"=",0]
[{"$f":"SUE_CONSULTANT_TECHNICIAN.I_NAME","v":0},{"$f":"IF('PEF CLASSIFICATION SHEET'!C249=\"\",\"\",'PEF CLASSIFICATION SHEET'!C249)","v":"TECHNICIAN I"},null,{"$f":"'SUE-Manhours'!I24","v":0},"HRS. X",{"$f":"SUE_CONSULTANT_TECHNICIAN.I_RATE","v":0},"PER HR.",null,"=",0]
[{"$f":"SUE_CONSULTANT_ACCOUNTING.CLERK_NAME","v":0},{"$f":"IF('PEF CLASSIFICATION SHEET'!C250=\"\",\"\",'PEF CLASSIFICATION SHEET'!C250)","v":"ACCOUNTING CLERK"},null,{"$f":"'SUE-Manhours'!J24","v":0},"HRS. X",{"$f":"SUE_CONSULTANT_ACCOUNTING.CLERK_RATE","v":0},"PER HR.",null,"=",0]
[{"$f":"SUE_CONSULTANT_PRINCIPAL.PROF.ENGR_NAME","v":0},{"$f":"IF('PEF CLASSIFICATION SHEET'!C251=\"\",\"\",'PEF CLASSIFICATION SHEET'!C251)","v":"PRINCIPAL / PROF. ENGR."},null,{"$f":"'SUE-Manhours'!K24","v":0},"HRS. X",{"$f":"SUE_CONSULTANT_PRINCIPAL.PROF.ENGR_RATE","v":0},"PER HR.",null,"=",0]
[{"$f":"LEFT('PEF CLASSIFICATION SHEET'!D252,4)","v":""},{"$f":"IF('PEF CLASSIFICATION SHEET'!C252=\"\",\"\",'PEF CLASSIFICATION SHEET'!C252)","v":""},null,{"$f":"'SUE-Manhours'!L24","v":0},"HRS. X",{"$f":"'PEF CLASSIFICATION SHEET'!E252","v":0},"PER HR.",null,"=",0]
[{"$f":"LEFT('PEF CLASSIFICATION SHEET'!D253,4)","v":""},{"$f":"IF('PEF CLASSIFICATION SHEET'!C253=\"\",\"\",'PEF CLASSIFICATION SHEET'!C253)","v":""},null,{"$f":"'SUE-Manhours'!M24","v":0},"HRS. X",{"$f":"'PEF CLASSIFICATION SHEET'!E253","v":0},"PER HR.",null,"=",0]
[{"$f":"LEFT('PEF CLASSIFICATION SHEET'!D254,4)","v":""},{"$f":"IF('PEF CLASSIFICATION SHEET'!C254=\"\",\"\",'PEF CLASSIFICATION SHEET'!C254)","v":""},null,{"$f":"'SUE-Manhours'!N24","v":0},"HRS. X",{"$f":"'PEF CLASSIFICATION SHEET'!E254","v":0},"PER HR.",null,"=",0]
[{"$f":"LEFT('PEF CLASSIFICATION SHEET'!D255,4)","v":""},{"$f":"IF('PEF CLASSIFICATION SHEET'!C255=\"\",\"\",'PEF CLASSIFICATION SHEET'!C255)","v":""},null,{"$f":"'SUE-Manhours'!O24","v":0},"HRS. X",{"$f":"'PEF CLASSIFICATION SHEET'!E255","v":0},"PER HR.",null,"=",0]
[{"$f":"LEFT('PEF CLASSIFICATION SHEET'!D256,4)","v":""},{"$f":"IF('PEF CLASSIFICATION SHEET'!C256=\"\",\"\",'PEF CLASSIFICATION SHEET'!C256)","v":""},null,{"$f":"'SUE-Manhours'!P24","v":0},"HRS. X",{"$f":"'PEF CLASSIFICATION SHEET'!E256","v":0},"PER HR.",null,"=",0]
[{"$f":"LEFT('PEF CLASSIFICATION SHEET'!D257,4)","v":""},{"$f":"IF('PEF CLASSIFICATION SHEET'!C257=\"\",\"\",'PEF CLASSIFICATION SHEET'!C257)","v":""},null,{"$f":"'SUE-Manhours'!Q24","v":0},"HRS. X",{"$f":"'PEF CLASSIFICATION SHEET'!E257","v":0},"PER HR.",null,"=",0]
[{"$f":"LEFT('PEF CLASSIFICATION SHEET'!D258,4)","v":""},{"$f":"IF('PEF CLASSIFICATION SHEET'!C258=\"\",\"\",'PEF CLASSIFICATION SHEET'!C258)","v":""},null,{"$f":"'SUE-Manhours'!R24","v":0},"HRS. X",{"$f":"'PEF CLASSIFICATION SHEET'!E258","v":0},"PER HR.",null,"=",0]
[{"$f":"LEFT('PEF CLASSIFICATION SHEET'!D259,4)","v":""},{"$f":"IF('PEF CLASSIFICATION SHEET'!C259=\"\",\"\",'PEF CLASSIFICATION SHEET'!C259)","v":""},null,{"$f":"'SUE-Manhours'!S24","v":0},"HRS. X",{"$f":"'PEF CLASSIFICATION SHEET'!E259","v":0},"PER HR.",null,"=",0]
[null,null,"TOTAL HRS =",{"$f":"SUM(D18:D29)","v":0},null,null,"TOTAL",null,"=",{"$f":"SUM(J18:J34)","v":0}]
[]
[null,"                                          TOTAL DIRECT & INDIRECT SALARY COST"]
[null,"COST",null,null,null,null,"RATE",null,null,"TOTAL"]
[null,"TOTAL DIRECT LABOR",null,null,null,null,null,null,null,{"$f":"SUM(J35:J36)","v":0}]
[null,"OVERHEAD (PERCENT)",null,null,null,null,{"$f":"SUE_CONSULTANT_OVERHEAD","v":0},null,null,{"$f":"ROUND((J39*G40),2)","v":0}]
[null,"SUBTOTAL",null,null,null,null,null,null,null,{"$f":"SUM(J39:J40)","v":0}]
[null,"FEE (PERCENT)",null,null,null,null,{"$f":"SUE_CONSULTANT_FEE","v":0.09},null,null,{"$f":"ROUND((J41*G42),2)","v":0}]
[null,"COST OF CAPITAL",null,null,null,null,{"$f":"SUE_CONSULTANT_COSTofCAPITAL","v":0},null,null,{"$f":"ROUND((J39*G43),2)","v":0}]
[null,"TOTAL",null,null,null,null,null,null,null,{"$f":"SUM(J41:J43)","v":0}]
[]
[null,"2. TASK/PARAMETER WORKHOURS BY CLASSIFICATION:"]
[]
[null,"Records Research For Quality Level D Mapping",null,null,{"$f":"'SUE-Manhours'!$J$28","v":0},{"$f":"'SUE-Manhours'!J30","v":0},null,"Special Projects Authorized by PEF Coordinator",null,null,null,{"$f":"'SUE-Manhours'!$J$29","v":0}]
[]
["EMPLOYEE NAME"]
[{"$f":"A18","v":0},"SR CADD TECHNICIAN",null,{"$f":"'SUE-Manhours'!C47","v":0},"HRS. X",{"$f":"F18","v":0},"PER HR.",null,"=",{"$f":"ROUND((D51*F51),2)","v":0}]
[0,"PROJECT MANAGER",null,{"$f":"'SUE-Manhours'!D47","v":0},"HRS. X",0,"PER HR.",null,"=",0]
[0,"CADD TECHNICIAN",null,{"$f":"'SUE-Manhours'!E47","v":0},"HRS. X",0,"PER HR.",null,"=",0]
[0,"SURVEY ANALYST",null,{"$f":"'SUE-Manhours'!F47","v":0},"HRS. X",0,"PER HR.",null,"=",0]
[0,"SUE PROJ. ANALYST",null,{"$f":"'SUE-Manhours'!G47","v":0},"HRS. X",0,"PER HR.",null,"=",0]
[{"$f":"A23","v":0},"TECHNICIAN II",null,{"$f":"'SUE-Manhours'!H47","v":0},"HRS. X",0,"PER HR.",null,"=",0]
[0,"TECHNICIAN I",null,{"$f":"'SUE-Manhours'!I47","v":0},"HRS. X",0,"PER HR.",null,"=",0]
[0,"ACCOUNTING CLERK",null,{"$f":"'SUE-Manhours'!J47","v":0},"HRS. X",0,"PER HR.",null,"=",0]
[0,"PRINCIPAL / PROF. ENGR.",null,{"$f":"'SUE-Manhours'!K47","v":0},"HRS. X",0,"PER HR.",null,"=",0]
["",{"$f":"B27","v":""},null,{"$f":"'SUE-Manhours'!L47","v":0},"HRS. X",0,"PER HR.",null,"=",0]
["","",null,{"$f":"'SUE-Manhours'!M47","v":0},"HRS. X",0,"PER HR.",null,"=",0]
["","",null,{"$f":"'SUE-Manhours'!N47","v":0},"HRS. X",0,"PER HR.",null,"=",0]
["","",null,{"$f":"'SUE-Manhours'!N49","v":0},"HRS. X",0,"PER HR.",null,"=",0]
["","",null,{"$f":"'SUE-Manhours'!N51","v":0},"HRS. X",0,"PER HR.",null,"=",0]
["","",null,{"$f":"'SUE-Manhours'!N53","v":0},"HRS. X",0,"PER HR.",null,"=",0]
["","",null,{"$f":"'SUE-Manhours'!N55","v":0},"HRS. X",0,"PER HR.",null,"=",0]
["","",null,{"$f":"'SUE-Manhours'!N57","v":0},"HRS. X",0,"PER HR.",null,"=",0]
[]
[null,null,"TOTAL HRS =",{"$f":"SUM(D51:D67)","v":0},null,null,null,"TOTAL","=",{"$f":"SUM(J51:J67)","v":0}]
[]
[null,"                                          TOTAL DIRECT & INDIRECT SALARY COST"]
[null,"COST",null,null,null,null,"RATE",null,null,"TOTAL"]
[null,"TOTAL DIRECT LABOR",null,null,null,null,null,null,null,{"$f":"SUM(J69:J70)","v":0}]
[null,"OVERHEAD (PERCENT)",null,null,null,null,{"$f":"G40","v":0},null,null,{"$f":"ROUND((J73*G74),2)","v":0}]
[null,"SUBTOTAL",null,null,null,null,null,null,null,{"$f":"SUM(J73:J74)","v":0}]
[null,"FEE (PERCENT)",null,null,null,null,{"$f":"G42","v":0.09},null,null,{"$f":"ROUND((J75*G76),2)","v":0}]
[null,"COST OF CAPITAL",null,null,null,null,{"$f":"G43","v":0},null,null,{"$f":"ROUND((J73*G77),2)","v":0}]
[null,"TOTAL",null,null,null,null,null,null,null,{"$f":"SUM(J75:J77)","v":0}]
[]
[null,"4.  QUALITY LEVEL C MAPPING :",null,null,"TOTAL LINEAR FOOT ESTIMATE"]
[]
[null,null,null,null,"LN FT RANGE"]
[null,"LINEAR FEET RANGE VALUES",null,null,"> or >/=","< or </=","RATE"]
[null,null,"lower range",null,0,{"$f":"E85","v":0},null,null,null,null,null,0]
[null,null,"mid range",null,null,0]
[null,null,"upper range",null,{"$f":"F85","v":0}]
[]
[null,null,"UTILITY",null,"LN FT",null,"RATE",null,null,"FEE"]
[null,"SEWER FORCE MAIN",null,null,null,null,{"$f":"IF(E89<$F$84,$G$84,IF(E89>$E$86,$G$86,$G$85))","v":0},null,null,{"$f":"ROUND((E89*G89),2)","v":0}]
[null,"WATER",null,null,null,null,0,null,null,0]
[null,"TELEPHONE (Fiber Optic)",null,null,null,null,0," ",null,0]
[null,"TELEPHONE (Dir Bur)",null,null,null,null,0,null,null,0]
[null,"TELEPHONE (Duct)",null,null,null,null,0,null,null,0]
[null,"GAS",null,null,null,null,0,null,null,0]
[null,"ELECTRIC",null,null,null,null,0,null,null,0]
[null,"CABLE (Fiber Optic)",null,null,null,null,0,null,null,0]
[null,"CABLE (Dir Bur)",null,null,null,null,0,null,null,0]
[null,null,null,null,null,null,0,null,null,0]
[null,null,null,null,null,null,0,null,null,0]
[null,null,null,null,null,null,0,null,null,0]
[null,null,null,null,null,null,0,null,null,0]
[null,null,null,null,null,null,0,null,null,0]
[null,null,null,null,{"$f":"SUM(E89:E102)","v":0},null,null,"TOTAL","=",{"$f":"SUM(J89:J102)","v":0}]
[]
[null,"5. QUALITY LEVEL B SERVICES:",null,null,"TOTAL DESIGNATING LF ESTIMATE"]
[]
[null,null,null,null,"LN FT RANGE"]
[null,"LINEAR FEET RANGE VALUES",null,null,"> or >/=","< or </=","RATE"]
[null,null,"lower range",null,0,{"$f":"E110","v":0},null,null,null,null,null,0]
[null,null,"mid range",null,null,0]
[null,null,"upper range",null,{"$f":"F110","v":0}]
[]
[null,null,"UTILITY",null,"LN FT",null,"RATE",null,null,"FEE"]
[null,"SEWER FORCE MAIN",null,null,null,null,{"$f":"IF(E114<$F$109,$G$109,IF(E114>$E$111,$G$111,$G$110))","v":0},null,null,{"$f":"ROUND((E114*G114),2)","v":0}]
[null,"WATER",null,null,null,null,0,null,null,0]
[null,"TELEPHONE (Fiber Optic)",null,null,null,null,0," ",null,0]
[null,"TELEPHONE (Dir Bur)",null,null,null,null,0,null,null,0]
[null,"TELEPHONE (Duct)",null,null,null,null,0,null,null,0]
[null,"GAS",null,null,null,null,0,null,null,0]
[null,"ELECTRIC",null,null,null,null,0,null,null,0]
[null,"CABLE (Fiber Optic)",null,null,null,null,0,null,null,0]
[null,"CABLE (Dir Bur)",null,null,null,null,0,null,null,0]
[null,null,null,null,null,null,0,null,null,0]
[null,null,null,null,null,null,0,null,null,0]
[null,null,null,null,null,null,0,null,null,0]
[null,null,null,null,null,null,0,null,null,0]
[null,null,null,null,null,null,0,null,null,0]
[null,null,null,null,{"$f":"SUM(E114:E127)","v":0},null,null,"TOTAL","=",{"$f":"SUM(J114:J127)","v":0}]
[]
[null,"6. QUALITY LEVEL A SERVICES:",null,null,"TOTAL LOCATING SERVICES"]
[]
[null,"     A.  LESS THAN 10 TEST HOLES:",null,null,null,"AT ",null,"PER TEST HOLE =",null,{"$f":"SUM(E132*G132)","v":0}]
[null,"     B.  10 OR MORE TEST HOLES:",null,null,null,"AT ",null,"PER TEST HOLE =",null,{"$f":"SUM(E133*G133)","v":0}]
[null,"     C. EXTRA DEPTH BELOW 6 FEET:",null,null,null,"AT ",null,"PER FT =",null,{"$f":"SUM(E134*G134)","v":0}]
[null,null,null,null,null,null,null,"TOTAL","=",{"$f":"SUM(J132:J134)","v":0}]
[]
[]
[null,null,null,null,"TOTAL OF SECTION A: =",null,null,{"$f":"SUM(J44,J78,J103,J128,J135)","v":0}]
[]
[]
[null,"SECTION B:","DIRECT COSTS"]
[]
[null,null,{"$f":"'SUE-Cover'!D20","v":0}]
[]
[null,"DESCRIPTION:"]
[]
[null,"(1) VEHICLE USAGE:"]
[]
[null,"AUTOMOBILE:",null,null,"MILES AT  ",{"$f":"SEDAN","v":0.7},null,"PER MILE","=",{"$f":"SUM(D149*F149)","v":0}]
[null,"CARRYALL:",null,null,"MILES AT ",{"$f":"CARRYALL","v":0.72},null,"PER MILE ","=",{"$f":"SUM(D150*F150)","v":0}]
[null,"VACUUM TRUCK:",null,null,"MILES AT",null,null,"PER MILE","=",{"$f":"SUM(D151*F151)","v":0}]
[null,null,null,null,null,null,"TOTAL MILEAGE=",null,null,{"$f":"SUM(J149:J151)","v":0}]
[null,"(2) PER DIEM:"]
[]
[null,"MEALS (BREAKFAST+LUNCH+DINNER):",null,null,"DAYS AT  ",{"$f":"BREAKFAST+LUNCH+DINNER","v":46.5},null,"PER DAY","=",{"$f":"SUM(D155*F155)","v":0}]
[null,"BREAKFAST:",null,null,"DAYS AT  ",{"$f":"BREAKFAST","v":10.1},null,"PER DAY","=",{"$f":"SUM(D156*F156)","v":0}]
[null,"LUNCH:",null,null,"DAYS AT  ",{"$f":"LUNCH","v":13.3},null,"PER DAY","=",{"$f":"SUM(D157*F157)","v":0}]
[null,"DINNER:",null,null,"DAYS AT  ",{"$f":"DINNER","v":23.1},null,"PER DAY","=",{"$f":"SUM(D158*F158)","v":0}]
[null,"LODGING:",null,null,"DAYS AT",{"$f":"LODGING_LUMP.SUM","v":95},null,"PER DAY","=",{"$f":"SUM(D159*F159)","v":0}]
[null,null,null,null,null,null,null,"TOTAL PER DIEM","=",{"$f":"SUM(J155:J159)","v":0}]
[null,"(3) REPRODUCTION:"]
[]
[null,"XEROX COPIES",null,null,"AT",{"$f":"LETTERCOPIES","v":0.14000000000000001},null,"PER COPY","=",{"$f":"SUM(D163*F163)","v":0}]
[null,"BLUEPRINTS",null,null,"AT",{"$f":"BLUEPRINTSLETTER","v":0.35},null,"PER SHEET","=",0]
[null,"BOND",null,null,"AT",{"$f":"BOND.REGULAR","v":0.42},null,"PER SHEET","=",0]
[null,"MYLARS",null,null,"AT",{"$f":"MYLARSLETTER","v":7.32},null,"PER SHEET","=",0]
[null,"VELLUMS",null,null,"AT",{"$f":"VELLUMS","v":3},null,"PER SHEET","=",0]
[null,"STICK-ONS",null,null,"AT",{"$f":"STICK.ONS","v":1},null,"PER SHEET","=",0]
[null,"COVERS & BINDINGS",null,null,"AT  ",{"$f":"COVERS+BINDERS","v":1},null,"PER SHEET","=",0]
[null,null,null,null,null,null,null,"TOTAL REPRODUCTIONS","=",{"$f":"SUM(J163:J169)","v":0}]
[null,"(4) MISCELLANEOUS OTHER:"]
[]
[null,null,null,null,"AT",null,null,null,"=",{"$f":"SUM(D173*F173)","v":0}]
[null,null,null,null,"AT",null,null,null,"=",{"$f":"SUM(D174*F174)","v":0}]
[null,null,null,null,"AT",null,null,null,"=",0]
[null,null,null,null,"AT",null,null,null,"=",0]
[null,null,null,null,"AT",null,null,null,"=",0]
[null,null,null,null,"AT",null,null,null,"=",0]
[null,null,null,null,"AT  ",null,null,null,"=",0]
[null,null,null,null,null,null,null,"TOTAL","=",{"$f":"SUM(J173:J179)","v":0}]
[]
[]
[null,null,null,null,null,"TOTAL SECTION B (DIRECT COST)","=",{"$f":"SUM(J152,J160,J170,J180)","v":0}]
[]
[]
[null,"PROJECT ESTIMATE TOTALS"]
[]
[null,"SECTION A TOTAL =",null,null,null,{"$f":"SUM(H138)","v":0}]
[null,"SECTION B TOTAL = ",null,null,null,{"$f":"SUM(H183)","v":0}]
[]
[null,"TOTAL PROJECT ESTIMATE =",null,null,null,{"$f":"SUM(F188,F189)","v":0}]

{"sheet":"PavementMarking","index":34,"n_rows":119,"n_cols":20,"rows_kept":119,"cut":false,"hidden":true,"merged":[[6,1,6,2],[7,1,7,2],[8,0,8,2],[31,0,31,2],[6,3,6,5],[17,3,17,12],[20,0,20,2],[23,0,23,2],[21,0,21,2],[24,0,24,2],[27,0,27,2],[28,0,28,2],[29,0,29,2],[118,3,118,5],[26,0,26,2],[68,0,68,1],[33,0,33,2],[35,0,35,2],[37,0,37,2]]}
["MDEST6.XLS",null,"PAVEMENT MARKING AND MARKERS ESTIMATE WORKSHEET ",null,null,null,null,null,null,null,null,null,null,null,null,null,null,null,null,0]
["REV 06/15/23",null,null,null,null,null,null,null,null,null,null,null,null,null,null,null,null,null,null,1]
[]
[null,null," DATE:",{"$f":"IF(SCOPE.MANDAY.ESTIMATE.PREPARED.BY.DATE=\"\",\"\",SCOPE.MANDAY.ESTIMATE.PREPARED.BY.DATE)","v":""}]
[null,null,"TIP #:",{"$f":"IF(TIP.NUMBER=\"\",\"\",TIP.NUMBER)","v":""}]
[]
[null,"CONSULTANT:",null,{"$f":"PAVEMENT.MARKING_CONSULTANT_NAME","v":"CONSULTANT NAME"}]
[null,"LSC#:",null,{"$f":"IF(CONTRACT.NUM=\"\",\"\",CONTRACT.NUM)","v":""}]
["   PREL EST WORKDAYS:",null,null,{"$f":"O42","v":0}]
[]
[]
[" ","EST RDWY SHEETS:",null,null,0,"# DAYS FIELD TRIPS:",null,0]
[null,"TOTAL PLAN SHEETS:",null,null,0,null,null,null,null," "]
[null,"# Y-LINES - INTERCHANGE:",null,null,0]
[null,"# Y-LINES - AT GRADE:",null,null,0]
[null,null,null,null,null,null,"  MILEAGE PER TRIP:",0,"MILES"]
[]
[null,null,null,"ESTIMATED WORKHOURS"]
[null,null,"EMPLOYEE",{"$f":"IF('PEF CLASSIFICATION SHEET'!D262=\"\",\"\",LEFT('PEF CLASSIFICATION SHEET'!D262,4))","v":""},{"$f":"IF('PEF CLASSIFICATION SHEET'!D263=\"\",\"\",LEFT('PEF CLASSIFICATION SHEET'!D263,4))","v":""},{"$f":"IF('PEF CLASSIFICATION SHEET'!D264=\"\",\"\",LEFT('PEF CLASSIFICATION SHEET'!D264,4))","v":""},{"$f":"IF('PEF CLASSIFICATION SHEET'!D265=\"\",\"\",LEFT('PEF CLASSIFICATION SHEET'!D265,4))","v":""},{"$f":"IF('PEF CLASSIFICATION SHEET'!D266=\"\",\"\",LEFT('PEF CLASSIFICATION SHEET'!D266,4))","v":""},{"$f":"IF('PEF CLASSIFICATION SHEET'!D267=\"\",\"\",LEFT('PEF CLASSIFICATION SHEET'!D267,4))","v":""},{"$f":"IF('PEF CLASSIFICATION SHEET'!D268=\"\",\"\",LEFT('PEF CLASSIFICATION SHEET'!D268,4))","v":""},{"$f":"IF('PEF CLASSIFICATION SHEET'!D269=\"\",\"\",LEFT('PEF CLASSIFICATION SHEET'!D269,4))","v":""},{"$f":"IF('PEF CLASSIFICATION SHEET'!D270=\"\",\"\",LEFT('PEF CLASSIFICATION SHEET'!D270,4))","v":""},{"$f":"IF('PEF CLASSIFICATION SHEET'!D271=\"\",\"\",LEFT('PEF CLASSIFICATION SHEET'!D271,4))","v":""}]
["TASK",null,null,{"$f":"IF('PEF CLASSIFICATION SHEET'!C262=\"\",\"\",'PEF CLASSIFICATION SHEET'!C262)","v":"TEM I"},{"$f":"IF('PEF CLASSIFICATION SHEET'!C263=\"\",\"\",'PEF CLASSIFICATION SHEET'!C263)","v":"TES III"},{"$f":"IF('PEF CLASSIFICATION SHEET'!C264=\"\",\"\",'PEF CLASSIFICATION SHEET'!C264)","v":"TE II"},{"$f":"IF('PEF CLASSIFICATION SHEET'!C265=\"\",\"\",'PEF CLASSIFICATION SHEET'!C265)","v":"TE I"},{"$f":"IF('PEF CLASSIFICATION SHEET'!C266=\"\",\"\",'PEF CLASSIFICATION SHEET'!C266)","v":"TT V"},{"$f":"IF('PEF CLASSIFICATION SHEET'!C267=\"\",\"\",'PEF CLASSIFICATION SHEET'!C267)","v":""},{"$f":"IF('PEF CLASSIFICATION SHEET'!C268=\"\",\"\",'PEF CLASSIFICATION SHEET'!C268)","v":""},{"$f":"IF('PEF CLASSIFICATION SHEET'!C269=\"\",\"\",'PEF CLASSIFICATION SHEET'!C269)","v":""},{"$f":"IF('PEF CLASSIFICATION SHEET'!C270=\"\",\"\",'PEF CLASSIFICATION SHEET'!C270)","v":""},{"$f":"IF('PEF CLASSIFICATION SHEET'!C271=\"\",\"\",'PEF CLASSIFICATION SHEET'!C271)","v":""}," ","TOTAL","NOTES"]
["PRELIMINARY PLAN/MARKING (2SD1)"]
["  Setup & Concept (i.e. obtain pavement marking recommendation letter, set up strip map including proposed pavement markings and delineation, etc.)",null,null,null,null,null,null,null,null,null,null,null,null,null,{"$f":"SUM(D22:M22)","v":0}]
[{"$f":"SUM(O22:O23)","v":0},"HR"]
["MARKING ROADWAY SHEETS (3SD1)"]
["Prepare Marking Plans sheets (callouts, station location, notes,\npavement marking schedule)",null,null,null,null,null,null,null,null,null,null,null,null,null,{"$f":"SUM(D25:M25)","v":0}]
[{"$f":"SUM(O25:O26)","v":0},"HR"]
["MISCELLANEOUS (3SD1)"]
["Alternative Design Markings",null,null,null,null,null,null,null,null,null,null,null,null,null,{"$f":"SUM(D28:M28)","v":0}]
["Curb Ramps",null,null,null,null,null,null,null,null,null,null,null,null,null,0]
["Special Provision",null,null,null,null,null,null,null,null,null,null,null,null,null,0]
[{"$f":"SUM(O28:O30)","v":0},"HR"]
["FINALIZE QUANTITIES (3SD1)"]
[{"$f":"SUM(O33:O33)","v":0},"HR",null,null,null,null,null,null,null,null,null,null,null,null,{"$f":"SUM(D32:M32)","v":0}]
["QC/QA (3SD1)"]
[{"$f":"SUM(O35:O35)","v":0},"HR",null,null,null,null,null,null,null,null,null,null,null,null,{"$f":"SUM(D34:M34)","v":0}]
["ELECTRONIC SUBMITTAL (2SD1,3SD1)"]
[{"$f":"SUM(O37:O37)","v":0},"HR",null,null,null,null,null,null,null,null,null,null,null,null,{"$f":"SUM(D36:M36)","v":0}]
["MEETINGS, ADMIN (2SD1,3SD1)"]
[{"$f":"SUM(O39:O39)","v":0},"HR",null,null,null,null,null,null,null,null,null,null,null,null,{"$f":"SUM(D38:M38)","v":0}]
["TOTAL WORK-HRS (SQUAD)",null,null,{"$f":"SUM(D22:D39)","v":0},0,0,0,0,0,0,0,0,0,null,{"$f":"SUM(O22:O39)","v":0}]
["TOTAL WORKDAYS (SQUAD)",null,null,{"$f":"D40/8","v":0},0,0,0,0,{"$f":"I40/8","v":0},0,0,0,0,null,0]
["TOTAL WORKDAYS",null,null,null,null,null,null,null,null,null,null,null,null,null,{"$f":"O41","v":0}]
[" "]
[]
[]
[null,null,null,"AVERAGE STANDARD RATE PER HOUR"]
[]
[null,null,"A","B","        C","     D",null,null,"    (B*C)/D"]
["CLASSIFICATION"," NO.WORKDAYS",null,"% TOT WD","      RATE","  FACTOR",null,null,"  AVG STD RATE"]
[{"$f":"D20","v":"TEM I"},null,{"$f":"D41","v":0},{"$f":"IF(ISERR(+C50/C$62),0,+C50/C$62)","v":0},{"$f":"'PEF CLASSIFICATION SHEET'!E262","v":0},1,null,null,{"$f":"IF(ISERR(+D50*E50/F50),0,+D50*E50/F50)","v":0}]
[{"$f":"E20","v":"TES III"},null,{"$f":"E41","v":0},0,{"$f":"'PEF CLASSIFICATION SHEET'!E263","v":0},{"$f":"$F$50","v":1},null,null,0]
[{"$f":"F20","v":"TE II"},null,{"$f":"F41","v":0},0,{"$f":"'PEF CLASSIFICATION SHEET'!E264","v":0},1,null,null,0]
[{"$f":"G20","v":"TE I"},null,{"$f":"G41","v":0},0,{"$f":"'PEF CLASSIFICATION SHEET'!E265","v":0},1,null,null,0]
[{"$f":"H20","v":"TT V"},null,{"$f":"H41","v":0},0,{"$f":"'PEF CLASSIFICATION SHEET'!E266","v":0},1,null,null,0]
[{"$f":"I20","v":""},null,{"$f":"I41","v":0},0,{"$f":"'PEF CLASSIFICATION SHEET'!E267","v":0},1,null,null,0]
[{"$f":"J20","v":""},null,{"$f":"J41","v":0},0,{"$f":"'PEF CLASSIFICATION SHEET'!E268","v":0},1,null,null,0]
[{"$f":"K20","v":""},null,{"$f":"K41","v":0},0,{"$f":"'PEF CLASSIFICATION SHEET'!E269","v":0},1,null,null,0]
[{"$f":"L20","v":""},null,{"$f":"L41","v":0},0,{"$f":"'PEF CLASSIFICATION SHEET'!E270","v":0},1,null,null,0]
[{"$f":"M20","v":""},null,{"$f":"M41","v":0},0,{"$f":"'PEF CLASSIFICATION SHEET'!E271","v":0},1,null,null,0]
[" "," "," "," "," "," "," ",null," "]
[null,null,"_________"," ________",null,null,null,null,"   ___________"]
["  TOTAL",null,{"$f":"SUM(C50:C61)","v":0},{"$f":"SUM(D50:D61)","v":0},null,null,null,null,{"$f":"SUM(I50:I61)","v":0}]
[]
[]
[]
[null,null," SALARIES","    =","(AVG STD RATE)(WORKDAYS)(8 HRS)=",null,null,null,{"$f":"C62*I62*8","v":0}]
[null,null," OVERHEAD","    =",{"$f":"PAVEMENT.MARKING_CONSULTANT_OVERHEAD","v":0},"(SALARIES)          =",null,null,{"$f":"I66*E67","v":0}]
[null,null,"      FEE","    =",{"$f":"PAVEMENT.MARKING_CONSULTANT_FEE","v":0.09},"(SALARIES+OVERHEAD)      =",null,null,{"$f":"(+I66+I67)*E68","v":0}]
["COST OF CAPITAL",null,{"$f":"PAVEMENT.MARKING_CONSULTANT_COSTofCAPITAL","v":0},"    =",null,null,null,null,{"$f":"I66*(C69)","v":0}]
[" TOT. DIR. SALARY COST",null,null,"    =","(SALARIES+OVERHEAD+FEE)       =",null,null,null,{"$f":"SUM(I66:I69)","v":0}]
[]
[]
[]
[null,null,null,null,"     TIP #:",{"$f":"D5","v":""}]
[]
["     DIRECT NON-SALARY COSTS:________________________"]
[null,null,null,null,null,null,null,"   RATE","COST "]
["              TRAVEL:",null,"TRAVEL:",{"$f":"($H$12)","v":0},"TRIPS x",null,null," "," "]
[null,null,null,null,{"$f":"$H$16","v":0},"MILES RNDTRP",null,{"$f":"SEDAN","v":0.7},{"$f":"IF(ISERR(+D78*E79*H79),0,+D78*E79*H79)","v":0}]
[null,null,"1/2 SIZE COPY:",null,"SETS  x"]
[null,null,null,null,{"$f":"$E$13","v":0},"SHEETS/SET",null,{"$f":"LEDGERCOPIES","v":0.34},{"$f":"IF(ISERR(+D80*E81*H81),0,+D80*E81*H81)","v":0}]
[null,null,"ORIGINAL:",null,"SETS  x"]
[null,null,null,null,{"$f":"$E$13","v":0},"SHEETS/SET",null,{"$f":"BOND.REGULAR","v":0.42},{"$f":"IF(ISERR(+D82*E83*H83),0,+D82*E83*H83)","v":0}]
[]
[null,null,"TRIPS:",null,"BREAKFAST","EACH",null,{"$f":"BREAKFAST","v":10.1},{"$f":"IF(ISERR(+D85*H85),0,+D85*H85)","v":0}]
[]
[null,null,null,null,"LUNCH","EACH",null,{"$f":"LUNCH","v":13.3},{"$f":"IF(ISERR(+D87*H87),0,+D87*H87)","v":0}]
[]
[null,null,null,null,"DINNER","EACH",null,{"$f":"DINNER","v":23.1},{"$f":"IF(ISERR(+D89*H89),0,+D89*H89)","v":0}]
[]
[null,null,null,null,"LODGING","EACH",null,{"$f":"LODGING_LUMP.SUM","v":95},{"$f":"IF(ISERR(+D91*H91),0,+D91*H91)","v":0}]
[]
["            MISCELLANEOUS:",null,null,null,null,null,null,null,{"$f":"IF(ISERR(+D93*H93),0,+D93*H93)","v":0}]
[]
[null,null,null,null,null,null,null,null,{"$f":"IF(ISERR(+D95*H95),0,+D95*H95)","v":0}]
[]
[null,null,null,null,null,null,null,null,{"$f":"IF(ISERR(+D97*H97),0,+D97*H97)","v":0}]
[]
[null,null,null,null,null,null,null,null,{"$f":"IF(ISERR(+D99*H99),0,+D99*H99)","v":0}]
[]
[null,null,null,null,null,null,null,null,{"$f":"IF(ISERR(+D101*H101),0,+D101*H101)","v":0}]
[]
[" TOTAL DIRECT NON-SALARY COST - - - - - - - - - - - - - - - - - -",null,null,null,null,null,null,"=",{"$f":"SUM(I79:I101)","v":0}]
[]
[]
[]
[null,null,null,null,"          TOTAL ESTIMATE  ",null,null,"=",{"$f":"I70+I103","v":0}]
[null,null,null,null,"          COST PER WORKDAY  ",null,null,"=",{"$f":"IF(ISERR(+I107/C62),0,+I107/C62)","v":0}]
[]
[]
[null,null,null,null,"          CONSULTANT'S TOTAL =",null,null,null,{"$f":"I107","v":0}]
[]
[null," CONSULTANT'S TOTAL - TOTAL COST IN_HOUSE ESTIMATE"]
[null," ------------------------------------------------- =",null,null,null,null,null,null,{"$f":"IF(+I111=0,\"       \",IF(ISERR((+I111-(+I70+I103))/(+I70+I103)),0,(+I111-(+I70+I103))/(+I70+I103)))","v":"       "}]
[null,null,"      TOTAL COST IN_HOUSE ESTIMATE"]
[]
[]
[]
[" ESTIMATE PREPARED BY:",null,null,{"$f":"IF(SCOPE.MANDAY.ESTIMATE.PREPARED.BY=\"\",\"\",SCOPE.MANDAY.ESTIMATE.PREPARED.BY)","v":""},null,null,null,"DATE:",{"$f":"IF(D4=\"\",\"\",D4)","v":""}]

{"sheet":"RD-Data","index":35,"n_rows":64,"n_cols":22,"rows_kept":64,"cut":false,"hidden":true,"merged":[[19,10,19,12],[20,10,20,12],[21,10,21,12],[22,10,22,12],[35,17,37,17],[17,3,17,13],[1,1,1,15],[8,4,10,13],[12,4,14,13],[4,4,4,11],[3,4,3,9],[5,4,5,11],[15,4,15,13],[6,4,6,11]]}
[]
[null,"ROADWAY PROJECT DATA"]
[]
[null,null,null,"TIP NUMBER :",{"$f":"IF(TIP.NUMBER=\"\",\"\",TIP.NUMBER)","v":""},null,null,null,null,null,null,null,"ESTIMATE SUBMITTAL NUMBER :",{"$f":"IF(ESTIMATE.SUBMITTAL.NUMBER=\"\",\"\",ESTIMATE.SUBMITTAL.NUMBER)","v":""}]
[null,null,null,"WBS NUMBER :",{"$f":"IF(WBS.NUMBER=\"\",\"\",WBS.NUMBER)","v":""}]
[null,null,null,"FA NUMBER :",{"$f":"IF(FA.NUMBER=\"\",\"\",FA.NUMBER)","v":""}]
[null,null,null,"COUNTY :",{"$f":"IF(COUNTY=\"\",\"\",COUNTY)","v":""}]
[]
[null,null,null,"DESCRIPTION :",{"$f":"IF(PROJECT.DESCRIPTION=\"\",\"\",PROJECT.DESCRIPTION)","v":""}]
[]
[]
[]
[null,null,null,"DISCIPLINE(S) SELECTED :  ",{"$f":"IF(TASK.ORDER_SCOPE=\"\",\"\",TASK.ORDER_SCOPE)","v":"PM-Project Mgmt"}]
[]
[]
[null,null,null,"CONSULTANT :",{"$f":"IF(PRIMARY.CONSULTANT=\"\",\"\",PRIMARY.CONSULTANT)","v":""}]
[]
[null,null,null,"(ENGLISH UNITS)",null,null,null,null,null,null,null,null,null,null,null,null,null,null,null,"(ENGLISH UNITS)"]
[null,null,"     ","TYPE OF FACILITY (Y/N) :",null,null,null,null,null,"     ","NUMBER OF TYPICAL SECTIONS :",null,null,null,null,null,null,null,null,"(METRIC UNITS)"]
[null,null,null,"  BRIDGE PROJECT",null,null,null,null,null,null,"  BASIC SHOULDER ( 2 & 3 LANES )",null,null,null,null,null,null,"TYPICALS TOTAL",null,null,null,"Y"]
[null,null,null,"  2 & 3-LANE SHOULDER",null,null,null,null,null,null,"  BASIC CURB & GUTTER ( 3 LANES )",null,null,null,null,null,null,{"$f":"SUM(N20:N23)","v":0},null,null,null,"N"]
[null,null,null,"  3-LANE C&G",null,null,null,null,null,null,"  MEDIAN SHOULDER ( 4 LANES & UP )"]
[null,null,null,"  MEDIAN DIVIDED ",null,null,null,null,null,null,"  MEDIAN CURB & GUTTER ( 4 LANES & UP )",null,null,null,null,null,null,"LENGTH TOTAL"]
[null,null,null,"  DIVIDED WITH RAISED MEDIAN",null,null,null,null,null,null,null,null,null,null,null,null,null,{"$f":"SUM(G28:G32)","v":0}]
[null,null,null,"  SUPERSTREET",null,null,null,null,null,null," NUMBER OF :"]
[null,null,null,null,null,null,null,null,null,null,"  -Y- LINES > 300'",null,null,null,null,null,null,"# XS"]
[null,null,null," DESIGN LENGTHS:",null,"UNIT:",{"$f":"IF($D$18=\"(ENGLISH UNITS)\",\"FEET\",\"METER\")","v":"FEET"},null,null,null,"  -Y- LINES < 300'",null,null,null,null,null,null,{"$f":"G28/50+1","v":1},"  -L-"]
[null,null,null,"  -L-",null,null,null,null,null,null,"  RAMPS, LOOPS",null,null,null,null,null,null,{"$f":"G29/50+1","v":1},"  DETOURS"]
[null,null,null,"  DETOURS",null,null,null,null,null,null,"  FLYOVERS, C-D's",null,null,null,null,null,null,{"$f":"G30/50+1","v":1},"  -Y- LINES > 300'"]
[null,null,null,"  -Y- LINES > 300'",null,null,null,null,null,null,"  GORE AREAS",null,null,null,null,null,null,{"$f":"G31/50+1","v":1},"  RAMPS, LOOPS, FLYOVERS, C-D's"]
[null,null,null,"  RAMPS, LOOPS, FLYOVERS, C-D's",null,null,null,null,null,null,"  SERVICE ROADS",null,null,null,null,null,null,{"$f":"G32/50+1","v":1},"  SERVICE ROADS"]
[null,null,null,"  SERVICE ROADS",null,null,null,null,null,null,"  DRIVEWAYS >100' (REQUIRES GRADE)"]
[null,null,null,"  TOTAL C&G SECTION",null,null,null,null,null,null,"  BRIDGE SITES OVER ROADWAYS",null,null,null,null,null,null,"# XS TOTAL"]
[null,null,null,"  TOTAL SHOULDER SECTION",null,null,null,null,null,null,"  BRIDGE SITES OVER WATERWAYS",null,null,null,null,null,null,{"$f":"SUM(R27:R31)","v":5}]
[null,null,null,null,null,null,null,null,null,null,"  WALLS"]
[null,null,"                                             ","SCALE :  ",null,"UNIT:",{"$f":"IF($D$18=\"(ENGLISH UNITS)\",\"FEET\",\"METER\")","v":"FEET"},null,null,null,"  PARCELS",null,null,null,null,null,null,"#\nINTERSECTIONS \nTOTAL"]
[null,null,null,"  PLAN",null,"1\" =",null,null,null,null,"  SUB-CONSULTANTS"]
[null,null,null,"  PROFILE",null,"                1\" =",null,"H"]
[null,null,null,"  PROFILE",null,"                1\" =",null,"V",null,"     ","NUMBER OF AT GRADE INTERSECTIONS :",null,null,null,null,null,null,{"$f":"SUM(N40:N45)","v":0}]
[null,null,null,"  X-SECTIONS",null,"1\" =",null,null,null,null,"  4 LEG ( WITH BULB )"]
[null,null,null,null,null,null,null,null,null,null,"  4 LEG ( WITHOUT BULB )",null,null,null,null,null,null,"SHEETS TOTAL"]
[null,null,"     ","PUBLIC HEARING / WORKSHOP (Y/N) :",null,null,null,null,null,null,"  T ( WITH BULB )",null,null,null,null,null,null,{"$f":"R24","v":0}]
[null,null,null,"  PREPARE MAP",null,null,null,null,null,null,"  T ( WITHOUT BULB )"]
[null,null,null,"  ATTEND MAP REVIEW MEETING",null,null,null,null,null,null,"  ROUNDABOUT"]
[null,null,null,"  ATTEND HEARING / WORKSHOP",null,null,null,null,null,null,"  LEFTOVER"]
[null,null,null,"  OVERNIGHT STAY"]
[null,null,null,"  ATTEND POST PUBLIC HEARING MEETING",null,null,null,null,null,"     ","NUMBER OF INTERCHANGES : "]
[null,null,null,null,null,null,null,null,null,null,"  DIAMOND"]
[null,null,null,"DESIGN EXCEPTION PACKAGE (Y/N) :",null,null,null,null,null,null,"  CLOVERLEAF"]
[null,null,null,null,null,null,null,null,null,null,"  SPUI"]
[null,null,null,"CAPACITY ANALYSIS (Y/N) :",null,null,null,null,null,null,"  DDI"]
[null,null,null,null,null,null,null,null,null,null,"  MULTILEVEL"]
[null,null,null,"CONSTRUCTION PHASING NARRATIVE (Y/N) :"]
[null,null,null,null,null,null,null,null,null,"     ","NUMBER OF PLAN SHEETS :"]
[null,null,null,"WALLS REQUIRING ENVELOPE                UNIT:",null,null,{"$f":"IF($D$18=\"(ENGLISH UNITS)\",\"FEET\",\"METER\")","v":"FEET"},null,null,null,"  -L-"]
[null,null,null,"  NOISE",null,null,null,null,null,null,"  -Y-"]
[null,null,null,"  RETAINING (ROADWAY PAY ITEM)",null,null,null,null,null,null,"  SERVICE ROADS"]
[null,null,null,null,null,null,null,null,null,null,"  DETOURS"]
[null,null,null,"NUMBER OF FIELD INSPECTIONS :",null,null,null,null,null,null,"  INTERCHANGE DETAIL"]
[null,null,null,"  OVERNIGHT STAY (Y/N)"]
[null,null,null,null,null,null,null,null,null,null,"NUMBER OF X-SECTIONS PER SHEET :"]
[null,null,"     ","PLAN PREPARATION STAGE (Y/N) :"]
[null,null,null,"  R/W"]
[null,null,null,"  LET"]

{"sheet":"RD-Corr_Mod-PROJ.WS","index":36,"n_rows":39,"n_cols":22,"rows_kept":39,"cut":false,"hidden":true,"merged":[[9,1,9,2],[10,1,10,2],[11,1,11,2],[8,1,8,2],[2,1,4,2],[5,1,5,2],[6,1,6,2],[7,1,7,2],[12,1,12,2],[13,1,13,2],[26,1,26,2],[15,1,15,2],[16,1,16,2],[17,1,17,2],[18,1,18,2],[19,1,19,2],[20,1,20,2],[21,1,21,2],[22,1,22,2],[23,1,23,2],[24,1,24,2],[25,1,25,2],[14,1,14,2],[38,1,39,1],[27,1,27,2],[28,1,28,2],[29,1,29,2],[30,1,30,2],[31,1,31,2],[32,1,32,2],[33,1,33,2],[34,1,34,2],[35,1,35,2],[36,1,36,2],[37,1,37,2],[0,9,0,10],[0,12,0,13],[38,12,39,12],[38,3,39,4],[38,5,39,5],[38,6,39,6],[38,7,39,7],[38,10,39,10],[38,11,39,11],[2,3,4,3],[2,4,4,4],[2,5,3,7],[2,10,3,12],[2,13,4,13],[2,8,4,8],[2,9,4,9]]}
[null,"Roadway Corridor Modeling Project Worksheet",null,null,null,null,null,null,"TIP NUMBER:",{"$f":"TIP.NUMBER","v":0},null,"FIRM:",{"$f":"ROADWAY_CONSULTANT_NAME","v":"CONSULTANT NAME"}]
[]
[null,"Group #",null,"Corridor #","Alignment","Corridor Type",null,null,"Begin Station","End Station","Corridor Length (Miles)",null,null,"Typical Section/Template Type"]
[]
[null,null,null,null,null,"Major","Minor","Detour",null,null,"Major","Minor","Detour"]
[null,null,null,{"$f":"IF(E6=\"\",\"\",1)","v":""},null,null,null,null,null,null,{"$f":"IF(F6=\"\",\"\",IFERROR(IF(COUNTIF(F6,\"*\"),($J6-$I6)/5280,0),0))","v":""},"","",null,null,null,null,null,null,null,null,"None or NA"]
[null,null,null,{"$f":"IF(E7=\"\",\"\",MAX(D6)+1)","v":""},null,null,null,null,null,null,"","","",null,null,null,null,null,null,null,null,"Undivided Facility  - Shoulder Section"]
[null,null,null,{"$f":"IF(E8=\"\",\"\",MAX($D$6:D7)+1)","v":""},null,null,null,null,null,null,{"$f":"IF(F8=\"\",\"\",IFERROR(IF(COUNTIF(F8,\"*\"),($J8-$I8)/5280,0),0))","v":""},{"$f":"IF(G8=\"\",\"\",IFERROR(IF(COUNTIF(G8,\"*\"),($J8-$I8)/5280,0),0))","v":""},{"$f":"IF(H8=\"\",\"\",IFERROR(IF(COUNTIF(H8,\"*\"),($J8-$I8)/5280,0),0))","v":""},null,null,null,null,null,null,null,null,"Undivided Facility  - Curb and Gutter Section"]
[null,null,null,{"$f":"IF(E9=\"\",\"\",MAX($D$6:D8)+1)","v":""},null,null,null,null,null,null,"","","",null,null,null,null,null,null,null,null,"Divided Facility - Median Ditch"]
[null,null,null,{"$f":"IF(E10=\"\",\"\",MAX($D$6:D9)+1)","v":""},null,null,null,null,null,null,"","","",null,null,null,null,null,null,null,null,"Divided Facility - Median Barrier"]
[null,null,null,{"$f":"IF(E11=\"\",\"\",MAX($D$6:D10)+1)","v":""},null,null,null,null,null,null,"","","",null,null,null,null,null,null,null,null,"Divided Facility - Raised Median"]
[null,null,null,{"$f":"IF(E12=\"\",\"\",MAX($D$6:D11)+1)","v":""},null,null,null,null,null,null,"","","",null,null,null,null,null,null,null,null,"Interchange - Ramp/Loop"]
[null,null,null,{"$f":"IF(E13=\"\",\"\",MAX($D$6:D12)+1)","v":""},null,null,null,null,null,null,"","","",null,null,null,null,null,null,null,null,"Roundabout"]
[null,null,null,{"$f":"IF(E14=\"\",\"\",MAX($D$6:D13)+1)","v":""},null,null,null,null,null,null,"","","",null,null,null,null,null,null,null,null,"Driveways"]
[null,null,null,{"$f":"IF(E15=\"\",\"\",MAX($D$6:D14)+1)","v":""},null,null,null,null,null,null,"","","",null,null,null,null,null,null,null,null,"Detour"]
[null,null,null,{"$f":"IF(E16=\"\",\"\",MAX($D$6:D15)+1)","v":""},null,null,null,null,null,null,"","","",null,null,null,null,null,null,null,null,"Costomize"]
[null,null,null,{"$f":"IF(E17=\"\",\"\",MAX($D$6:D16)+1)","v":""},null,null,null,null,null,null,"","",""]
[null,null,null,{"$f":"IF(E18=\"\",\"\",MAX($D$6:D17)+1)","v":""},null,null,null,null,null,null,"","",""]
[null,null,null,{"$f":"IF(E19=\"\",\"\",MAX($D$6:D18)+1)","v":""},null,null,null,null,null,null,"","","",null,null,null,null,null,null,null,null,"X"]
[null,null,null,{"$f":"IF(E20=\"\",\"\",MAX($D$6:D19)+1)","v":""},null,null,null,null,null,null,"","",""]
[null,null,null,{"$f":"IF(E21=\"\",\"\",MAX($D$6:D20)+1)","v":""},null,null,null,null,null,null,"","",""]
[null,null,null,{"$f":"IF(E22=\"\",\"\",MAX($D$6:D21)+1)","v":""},null,null,null,null,null,null,"","",""]
[null,null,null,{"$f":"IF(E23=\"\",\"\",MAX($D$6:D22)+1)","v":""},null,null,null,null,null,null,"","",""]
[null,null,null,{"$f":"IF(E24=\"\",\"\",MAX($D$6:D23)+1)","v":""},null,null,null,null,null,null,"","",""]
[null,null,null,{"$f":"IF(E25=\"\",\"\",MAX($D$6:D24)+1)","v":""},null,null,null,null,null,null,"","",""]
[null,null,null,{"$f":"IF(E26=\"\",\"\",MAX($D$6:D25)+1)","v":""},null,null,null,null,null,null,"","",""]
[null,null,null,{"$f":"IF(E27=\"\",\"\",MAX($D$6:D26)+1)","v":""},null,null,null,null,null,null,"","",""]
[null,null,null,{"$f":"IF(E28=\"\",\"\",MAX($D$6:D27)+1)","v":""},null,null,null,null,null,null,"","",""]
[null,null,null,{"$f":"IF(E29=\"\",\"\",MAX($D$6:D28)+1)","v":""},null,null,null,null,null,null,"","",""]
[null,null,null,{"$f":"IF(E30=\"\",\"\",MAX($D$6:D29)+1)","v":""},null,null,null,null,null,null,"","",""]
[null,null,null,{"$f":"IF(E31=\"\",\"\",MAX($D$6:D30)+1)","v":""},null,null,null,null,null,null,"","",""]
[null,null,null,{"$f":"IF(E32=\"\",\"\",MAX($D$6:D31)+1)","v":""},null,null,null,null,null,null,"","",""]
[null,null,null,{"$f":"IF(E33=\"\",\"\",MAX($D$6:D32)+1)","v":""},null,null,null,null,null,null,"","",""]
[null,null,null,{"$f":"IF(E34=\"\",\"\",MAX($D$6:D33)+1)","v":""},null,null,null,null,null,null,"","",""]
[null,null,null,{"$f":"IF(E35=\"\",\"\",MAX($D$6:D34)+1)","v":""},null,null,null,null,null,null,"","",""]
[null,null,null,{"$f":"IF(E36=\"\",\"\",MAX($D$6:D35)+1)","v":""},null,null,null,null,null,null,"","",""]
[null,null,null,{"$f":"IF(E37=\"\",\"\",MAX($D$6:D36)+1)","v":""},null,null,null,null,null,null,"","",""]
[null,null,null,{"$f":"IF(E38=\"\",\"\",MAX($D$6:D37)+1)","v":""},null,null,null,null,null,null,{"$f":"IF(F38=\"\",\"\",IFERROR(IF(COUNTIF(F38,\"*\"),($J38-$I38)/5280,0),0))","v":""},{"$f":"IF(G38=\"\",\"\",IFERROR(IF(COUNTIF(G38,\"*\"),($J38-$I38)/5280,0),0))","v":""},{"$f":"IF(H38=\"\",\"\",IFERROR(IF(COUNTIF(H38,\"*\"),($J38-$I38)/5280,0),0))","v":""}]
[null,null,null,"Sheet Total:",null,{"$f":"COUNTA(F6:F38)","v":0},{"$f":"COUNTA(G6:G38)","v":0},0,null,null,{"$f":"SUM(K6:K38)","v":0},{"$f":"SUM(L6:L38)","v":0},0]

{"sheet":"RD-Workdays","index":37,"n_rows":91,"n_cols":14,"rows_kept":91,"cut":false,"hidden":true,"merged":[[4,13,6,13],[84,2,86,2],[84,4,84,12],[88,2,90,2],[88,4,88,12],[80,2,82,2],[51,4,51,12],[4,4,4,12],[67,4,67,12],[7,4,7,12],[4,0,5,2],[80,4,80,12]]}
[null,null,"Roadway Workday Estimate"]
[null,null,{"$f":"TIP.NUMBER","v":0},"TIP NUMBER"]
[null,null,{"$f":"ROADWAY_CONSULTANT_NAME","v":"CONSULTANT NAME"},"FIRM"]
[]
["Note:  The tasks listed below in green are standard tasks following standard scopes.  The tasks should not be modified unless this is a supplemental. In that case they can be written over or deleted but do not cut/paste. Keep tasks in the correct phase 2RD1/2RDs, 3RD1, 4RD1.",null,null,"TOTAL","WORKDAYS",null,null,null,null,null,null,null,null,"NOTES:"]
[null,null,null,"EMPLOYEE",{"$f":"IF('PEF CLASSIFICATION SHEET'!D274=\"\",\"\",LEFT('PEF CLASSIFICATION SHEET'!D274,4))","v":""},{"$f":"IF('PEF CLASSIFICATION SHEET'!D275=\"\",\"\",LEFT('PEF CLASSIFICATION SHEET'!D275,4))","v":""},{"$f":"IF('PEF CLASSIFICATION SHEET'!D276=\"\",\"\",LEFT('PEF CLASSIFICATION SHEET'!D276,4))","v":""},{"$f":"IF('PEF CLASSIFICATION SHEET'!D277=\"\",\"\",LEFT('PEF CLASSIFICATION SHEET'!D277,4))","v":""},{"$f":"IF('PEF CLASSIFICATION SHEET'!D278=\"\",\"\",LEFT('PEF CLASSIFICATION SHEET'!D278,4))","v":""},{"$f":"IF('PEF CLASSIFICATION SHEET'!D279=\"\",\"\",LEFT('PEF CLASSIFICATION SHEET'!D279,4))","v":""},{"$f":"IF('PEF CLASSIFICATION SHEET'!D280=\"\",\"\",LEFT('PEF CLASSIFICATION SHEET'!D280,4))","v":""},{"$f":"IF('PEF CLASSIFICATION SHEET'!D281=\"\",\"\",LEFT('PEF CLASSIFICATION SHEET'!D281,4))","v":""},{"$f":"IF('PEF CLASSIFICATION SHEET'!D282=\"\",\"\",LEFT('PEF CLASSIFICATION SHEET'!D282,4))","v":""}]
["Phase","ID","Description","CLASSIFICATION",{"$f":"IF('PEF CLASSIFICATION SHEET'!C274=\"\",\"\",'PEF CLASSIFICATION SHEET'!C274)","v":""},{"$f":"IF('PEF CLASSIFICATION SHEET'!C275=\"\",\"\",'PEF CLASSIFICATION SHEET'!C275)","v":""},{"$f":"IF('PEF CLASSIFICATION SHEET'!C276=\"\",\"\",'PEF CLASSIFICATION SHEET'!C276)","v":""},{"$f":"IF('PEF CLASSIFICATION SHEET'!C277=\"\",\"\",'PEF CLASSIFICATION SHEET'!C277)","v":""},{"$f":"IF('PEF CLASSIFICATION SHEET'!C278=\"\",\"\",'PEF CLASSIFICATION SHEET'!C278)","v":""},{"$f":"IF('PEF CLASSIFICATION SHEET'!C279=\"\",\"\",'PEF CLASSIFICATION SHEET'!C279)","v":""},{"$f":"IF('PEF CLASSIFICATION SHEET'!C280=\"\",\"\",'PEF CLASSIFICATION SHEET'!C280)","v":""},{"$f":"IF('PEF CLASSIFICATION SHEET'!C281=\"\",\"\",'PEF CLASSIFICATION SHEET'!C281)","v":""},{"$f":"IF('PEF CLASSIFICATION SHEET'!C282=\"\",\"\",'PEF CLASSIFICATION SHEET'!C282)","v":""}]
[null,null,"2RD2","WORKDAYS"]
["2RD1",1,"Design Criteria and Associated Typical Sections",{"$f":"SUM(E9:M9)","v":0}]
["2RD1","2.1.1","Horizontal and Vertical Layout for L",0]
["2RD1","2.1.2","Horizontal and Vertical Layout for Y lines, service roads, loops, ramps",0]
["2RD1","2.1.3","Horizontal and Vertical Layout for Detours",0]
["2RD1","2.2.1","3D Model for mainline and y-lines",0]
["2RD1","2.2.2","3D Model for intersections, driveways, and small y-lines",0]
["2RD1",2.2999999999999998,"Right of Way and Easement Layout",0]
["2RD1",2.4,"Maintenance of Traffic Narrative",0]
["2RD1","2.5.1","Potential Retaining Wall Location Evaluation",0]
["2RD1","2.5.2","Incorporate retaining walls into plans and develop retaining wall envelopes",0]
["2RD1",2.6,"Design Public Meeting/Hearing Maps",0]
["2RD1","2.7.1","Prepare Title Sheet, Typical Sections, and Earthwork summary",0]
["2RD1","2.7.2","Sheeting for Plans, Profiles, Cross sections",0]
["2RD1","2.7.3","Complete the Draft Design Recommendation Plan Set and QC",0]
["2RD1",2.8,"Design Recommendation Plan Set Review and Finalization",0]
["2RD1","3.1.1","Complete Design Exception Checklist",0]
["2RD1","3.1.2","Formalize Design Exceptions",0]
["2RD1",4,"Prepare and submit design review request for NCDOT IMD review of roadway design plans",0]
["2RD1",5,"Value Engineering Study Coordination (in support of 2VM1)",0]
["2RD1",7,"Location and Design Approval (LADA) (EA and EIS projects only)",0]
["2RD1",8,"Task Management",0]
["2RD1",9,"Complete QC Procedures",0]
["2RD1",10.1,"2RD1 Misc. Item:",0]
["2RD1",10.199999999999999,"2RD1 Misc. Item:",0]
["2RD1",10.3,"2RD1 Misc. Item:",0]
["2RD1",10.4,"2RD1 Misc. Item:",0]
["2RD1",10.5,"2RD1 Misc. Item:",0]
["2RD2","1.1.1","Incorporate Geotechnical Recommendations",0]
["2RD2","1.1.2","Incoporate Hydro into Plans, Profiles, and X-sections",0]
["2RD2","1.1.3","Refine Right of Way and Easements on Plans",0]
["2RD2","1.1.4","Complete the Field Inspection Plan Set submittal (PDFs and supporting electronic files)",0]
["2RD2",1.2,"Attend Field Inspection Review Meeting",0]
["2RD2",2,"VMO Constructability Review (see 2VM3)",0]
["2RD2",3,"Construction Estimate Quantities",0]
["2RD2",4,"Task Management",0]
["2RD2",5,"Complete QC Procedures",0]
["2RD2",6,"2RD2 Misc. Item:",0]
["2RD2",6.1,"2RD2 Misc. Item:",0]
["2RD2",6.2,"2RD2 Misc. Item:",0]
["2RD2",6.3,"2RD2 Misc. Item:",{"$f":"SUM(E48:M48)","v":0}]
["2RD2",6.4,"2RD2 Misc. Item:",0]
[null,null,"TOTAL STAGE 2 WORKDAYS",{"$f":"SUM(E50:M50)","v":0},{"$f":"SUM(E9:E49)","v":0},0,0,0,0,0,0,0,0]
[null,null,null,null," "]
[null,null,"3RD1","WORKDAYS",null,null,null,null,null,null,null,null,null,"NOTES:"]
["3RD1",1.1000000000000001,"Incorporate noise wall locations from Design Noise Report",{"$f":"SUM(E53:M53)","v":0}]
["3RD1",1.2,"Complete Right-of-Way Plan Set (PDFs and supporting electronic files)",0]
["3RD1",1.3,"Attend Plan-in-Hand Review Meeting",{"$f":"SUM(E55:M55)","v":0}]
["3RD1",2,"Pavement Management Coordination",{"$f":"SUM(E56:M56)","v":0}]
["3RD1",3,"Construction Estimate Quantities",{"$f":"SUM(E57:M57)","v":0}]
["3RD1",4,"Conduct Permit Drawing Consistency Review",0]
["3RD1",6,"Task Management",0]
["3RD1",7,"Complete QC Procedures",0]
["3RD1",8.1,"3RD1 Misc. Item:",{"$f":"SUM(E61:M61)","v":0}]
["3RD1",8.1999999999999993,"3RD1 Misc. Item:",0]
["3RD1",8.3000000000000007,"3RD1 Misc. Item:",0]
["3RD1",8.4,"3RD1 Misc. Item:",0]
["3RD1",8.5,"3RD1 Misc. Item:",{"$f":"SUM(E65:M65)","v":0}]
[null,null,"TOTAL STAGE 3 WORKDAYS",{"$f":"SUM(E66:M66)","v":0},{"$f":"SUM(E53:E65)","v":0},0,0,0,0,0,0,0,0]
[]
[null,null,"4RD1","WORKDAYS",null,null,null,null,null,null,null,null,null,"NOTES:"]
["4RD1",1,"Review Set of Final Plans",{"$f":"SUM(E69:M69)","v":0}]
["4RD1",2,"Final Construction Quantities",{"$f":"SUM(E70:M70)","v":0}]
["4RD1",3,"Sealed Contract Roadway Design Plans",0]
["4RD1",4,"Task Management",0]
["4RD1",5,"Complete QC Procedures",0]
["4RD1",6.1,"4RD1 Misc. Item:",{"$f":"SUM(E74:M74)","v":0}]
["4RD1",6.2,"4RD1 Misc. Item:",{"$f":"SUM(E75:M75)","v":0}]
["4RD1",6.3,"4RD1 Misc. Item:",0]
["4RD1",6.4,"4RD1 Misc. Item:",0]
["4RD1",6.5,"4RD1 Misc. Item:",{"$f":"SUM(E78:M78)","v":0}]
[null,null,"TOTAL STAGE 4 WORKDAYS",{"$f":"SUM(E79:M79)","v":0},{"$f":"SUM(E69:E78)","v":0},0,0,0,0,0,0,0,0]
[]
[null,null,"TOTAL ESTIMATED WORKDAYS:  ","TOTAL","WORKDAYS"]
[null,null,null,"CLASSIFICATION",{"$f":"$E$7","v":""},{"$f":"$F$7","v":""},{"$f":"$G$7","v":""},{"$f":"$H$7","v":""},{"$f":"$I$7","v":""},{"$f":"$J$7","v":""},{"$f":"$K$7","v":""},{"$f":"$L$7","v":""},{"$f":"$M$7","v":""}]
[null,null,null,{"$f":"SUM(E83:M83)","v":0},{"$f":"E87+E91","v":0},{"$f":"F87+F91","v":0},0,0,0,0,0,0,0]
[]
[null,null,"TOTAL ESTIMATED WORKDAYS \nFOR 3PEF COSTS (Stage 2 & 3):  ","TOTAL","WORKDAYS"]
[null,null,null,"CLASSIFICATION",{"$f":"$E$7","v":""},{"$f":"$F$7","v":""},{"$f":"$G$7","v":""},{"$f":"$H$7","v":""},{"$f":"$I$7","v":""},{"$f":"$J$7","v":""},{"$f":"$K$7","v":""},{"$f":"$L$7","v":""},{"$f":"$M$7","v":""}]
[null,null,null,{"$f":"SUM(E87:M87)","v":0},{"$f":"E50+E66","v":0},0,0,0,0,0,0,0,0]
[]
[null,null,"TOTAL ESTIMATED WORKDAYS\nFOR 4PEF PLAN COSTS (Stage 4):  ","TOTAL","WORKDAYS"]
[null,null,null,"CLASSIFICATION",{"$f":"$E$7","v":""},{"$f":"$F$7","v":""},{"$f":"$G$7","v":""},{"$f":"$H$7","v":""},{"$f":"$I$7","v":""},{"$f":"$J$7","v":""},{"$f":"$K$7","v":""},{"$f":"$L$7","v":""},{"$f":"$M$7","v":""}]
[null,null,null,{"$f":"SUM(E91:M91)","v":0},{"$f":"E79","v":0},{"$f":"F79","v":0},0,0,0,0,0,0,0]

{"sheet":"RD-Supp","index":38,"n_rows":91,"n_cols":14,"rows_kept":91,"cut":false,"hidden":true,"merged":[[88,2,90,2],[88,4,88,12],[80,2,82,2],[80,4,80,12],[3,4,3,13],[4,13,6,13],[4,4,4,12],[7,4,7,12],[51,4,51,12],[67,4,67,12],[4,0,5,2],[84,2,86,2],[84,4,84,12]]}
[null,null,"Roadway Supplemental Workday Estimate"]
[null,null,{"$f":"TIP.NUMBER","v":0},"TIP NUMBER"]
[null,null,{"$f":"ROADWAY_CONSULTANT_NAME","v":"CONSULTANT NAME"},"FIRM"]
[null,null,null,null,{"$f":"IF(REASON.FOR.SUPPLEMENTAL=\"\",\"SUPPLEMENTAL REASON, Key the reason on the OVERALL SUMMARY worksheet\",CONCATENATE(\"Supplemental Reason:  \",REASON.FOR.SUPPLEMENTAL))","v":"SUPPLEMENTAL REASON, Key the reason on the OVERALL SUMMARY worksheet"}]
["Note:  The tasks listed below in green are standard tasks following standard scopes.  The tasks should not be modified unless this is a supplemental. In that case they can be written over or deleted but do not cut/paste. Keep tasks in the correct phase 2RD1/2RDs, 3RD1, 4RD1.",null,null,"TOTAL","WORKDAYS",null,null,null,null,null,null,null,null,"NOTES:"]
[null,null,null,"EMPLOYEE",{"$f":"IF('PEF CLASSIFICATION SHEET'!D274=\"\",\"\",LEFT('PEF CLASSIFICATION SHEET'!D274,4))","v":""},{"$f":"IF('PEF CLASSIFICATION SHEET'!D275=\"\",\"\",LEFT('PEF CLASSIFICATION SHEET'!D275,4))","v":""},{"$f":"IF('PEF CLASSIFICATION SHEET'!D276=\"\",\"\",LEFT('PEF CLASSIFICATION SHEET'!D276,4))","v":""},{"$f":"IF('PEF CLASSIFICATION SHEET'!D277=\"\",\"\",LEFT('PEF CLASSIFICATION SHEET'!D277,4))","v":""},{"$f":"IF('PEF CLASSIFICATION SHEET'!D278=\"\",\"\",LEFT('PEF CLASSIFICATION SHEET'!D278,4))","v":""},{"$f":"IF('PEF CLASSIFICATION SHEET'!D279=\"\",\"\",LEFT('PEF CLASSIFICATION SHEET'!D279,4))","v":""},{"$f":"IF('PEF CLASSIFICATION SHEET'!D280=\"\",\"\",LEFT('PEF CLASSIFICATION SHEET'!D280,4))","v":""},{"$f":"IF('PEF CLASSIFICATION SHEET'!D281=\"\",\"\",LEFT('PEF CLASSIFICATION SHEET'!D281,4))","v":""},{"$f":"IF('PEF CLASSIFICATION SHEET'!D282=\"\",\"\",LEFT('PEF CLASSIFICATION SHEET'!D282,4))","v":""}]
["Phase","ID","Description","CLASSIFICATION",{"$f":"IF('PEF CLASSIFICATION SHEET'!C274=\"\",\"\",'PEF CLASSIFICATION SHEET'!C274)","v":""},{"$f":"IF('PEF CLASSIFICATION SHEET'!C275=\"\",\"\",'PEF CLASSIFICATION SHEET'!C275)","v":""},{"$f":"IF('PEF CLASSIFICATION SHEET'!C276=\"\",\"\",'PEF CLASSIFICATION SHEET'!C276)","v":""},{"$f":"IF('PEF CLASSIFICATION SHEET'!C277=\"\",\"\",'PEF CLASSIFICATION SHEET'!C277)","v":""},{"$f":"IF('PEF CLASSIFICATION SHEET'!C278=\"\",\"\",'PEF CLASSIFICATION SHEET'!C278)","v":""},{"$f":"IF('PEF CLASSIFICATION SHEET'!C279=\"\",\"\",'PEF CLASSIFICATION SHEET'!C279)","v":""},{"$f":"IF('PEF CLASSIFICATION SHEET'!C280=\"\",\"\",'PEF CLASSIFICATION SHEET'!C280)","v":""},{"$f":"IF('PEF CLASSIFICATION SHEET'!C281=\"\",\"\",'PEF CLASSIFICATION SHEET'!C281)","v":""},{"$f":"IF('PEF CLASSIFICATION SHEET'!C282=\"\",\"\",'PEF CLASSIFICATION SHEET'!C282)","v":""}]
[null,null,"2RD2 - SUPPLEMENTAL","WORKDAYS"]
["2RD1",1,"Design Criteria and Associated Typical Sections",{"$f":"SUM(E9:M9)","v":0}]
["2RD1","2.1.1","Horizontal and Vertical Layout for L",0]
["2RD1","2.1.2","Horizontal and Vertical Layout for Y lines, service roads, loops, ramps",0]
["2RD1","2.1.3","Horizontal and Vertical Layout for Detours",0]
["2RD1","2.2.1","3D Model for mainline and y-lines",0]
["2RD1","2.2.2","3D Model for intersections, driveways, and small y-lines",0]
["2RD1",2.2999999999999998,"Right of Way and Easement Layout",0]
["2RD1",2.4,"Maintenance of Traffic Narrative",0]
["2RD1","2.5.1","Potential Retaining Wall Location Evaluation",0]
["2RD1","2.5.2","Incorporate retaining walls into plans and develop retaining wall envelopes",0]
["2RD1",2.6,"Design Public Meeting/Hearing Maps",0]
["2RD1","2.7.1","Prepare Title Sheet, Typical Sections, and Earthwork summary",0]
["2RD1","2.7.2","Sheeting for Plans, Profiles, Cross sections",0]
["2RD1","2.7.3","Complete the Draft Design Recommendation Plan Set and QC",0]
["2RD1",2.8,"Design Recommendation Plan Set Review and Finalization",0]
["2RD1","3.1.1","Complete Design Exception Checklist",0]
["2RD1","3.1.2","Formalize Design Exceptions",0]
["2RD1",4,"Prepare and submit design review request for NCDOT IMD review of roadway design plans",0]
["2RD1",5,"Value Engineering Study Coordination (in support of 2VM1)",0]
["2RD1",7,"Location and Design Approval (LADA) (EA and EIS projects only)",0]
["2RD1",8,"Task Management",0]
["2RD1",9,"Complete QC Procedures",0]
["2RD1",10.1,"2RD1 Misc. Item:",0]
["2RD1",10.199999999999999,"2RD1 Misc. Item:",0]
["2RD1",10.3,"2RD1 Misc. Item:",0]
["2RD1",10.4,"2RD1 Misc. Item:",0]
["2RD1",10.5,"2RD1 Misc. Item:",0]
["2RD2","1.1.1","Incorporate Geotechnical Recommendations",0]
["2RD2","1.1.2","Incoporate Hydro into Plans, Profiles, and X-sections",0]
["2RD2","1.1.3","Refine Right of Way and Easements on Plans",0]
["2RD2","1.1.4","Complete the Field Inspection Plan Set submittal (PDFs and supporting electronic files)",0]
["2RD2",1.2,"Attend Field Inspection Review Meeting",0]
["2RD2",2,"VMO Constructability Review (see 2VM3)",0]
["2RD2",3,"Construction Estimate Quantities",0]
["2RD2",4,"Task Management",0]
["2RD2",5,"Complete QC Procedures",0]
["2RD2",6,"2RD2 Misc. Item:",0]
["2RD2",6.1,"2RD2 Misc. Item:",0]
["2RD2",6.2,"2RD2 Misc. Item:",0]
["2RD2",6.3,"2RD2 Misc. Item:",0]
["2RD2",6.4,"2RD2 Misc. Item:",{"$f":"SUM(E49:M49)","v":0}]
[null,null,"TOTAL STAGE 2 WORKDAYS",0,{"$f":"SUM(E9:E49)","v":0},0,0,0,0,0,0,0,0]
[null,null,null,null," "]
[null,null,"3RD1  - SUPPLEMENTAL","WORKDAYS",null,null,null,null,null,null,null,null,null,"NOTES:"]
["3RD1",1.1000000000000001,"Incorporate noise wall locations from Design Noise Report",{"$f":"SUM(E53:M53)","v":0}]
["3RD1",1.2,"Complete Right-of-Way Plan Set (PDFs and supporting electronic files)",0]
["3RD1",1.3,"Attend Plan-in-Hand Review Meeting",0]
["3RD1",2,"Pavement Management Coordination",0]
["3RD1",3,"Construction Estimate Quantities",0]
["3RD1",4,"Conduct Permit Drawing Consistency Review",0]
["3RD1",6,"Task Management",0]
["3RD1",7,"Complete QC Procedures",0]
["3RD1",8.1,"3RD1 Misc. Item:",0]
["3RD1",8.1999999999999993,"3RD1 Misc. Item:",0]
["3RD1",8.3000000000000007,"3RD1 Misc. Item:",0]
["3RD1",8.4,"3RD1 Misc. Item:",0]
["3RD1",8.5,"3RD1 Misc. Item:",{"$f":"SUM(E65:M65)","v":0}]
[null,null,"TOTAL STAGE 3 WORKDAYS",{"$f":"SUM(E66:M66)","v":0},{"$f":"SUM(E53:E65)","v":0},0,0,0,0,0,0,0,0]
[]
[null,null,"4RD1  - SUPPLEMENTAL","WORKDAYS",null,null,null,null,null,null,null,null,null,"NOTES:"]
["4RD1",1,"Review Set of Final Plans",{"$f":"SUM(E69:M69)","v":0}]
["4RD1",2,"Final Construction Quantities",0]
["4RD1",3,"Sealed Contract Roadway Design Plans",0]
["4RD1",4,"Task Management",0]
["4RD1",5,"Complete QC Procedures",0]
["4RD1",6.1,"4RD1 Misc. Item:",{"$f":"SUM(E74:M74)","v":0}]
["4RD1",6.2,"4RD1 Misc. Item:",{"$f":"SUM(E75:M75)","v":0}]
["4RD1",6.3,"4RD1 Misc. Item:",0]
["4RD1",6.4,"4RD1 Misc. Item:",0]
["4RD1",6.5,"4RD1 Misc. Item:",{"$f":"SUM(E78:M78)","v":0}]
[null,null,"TOTAL STAGE 4 WORKDAYS",{"$f":"SUM(E79:M79)","v":0},{"$f":"SUM(E69:E78)","v":0},0,0,0,0,0,0,0,0]
[]
[null,null,"TOTAL ESTIMATED WORKDAYS:  ","TOTAL","WORKDAYS"]
[null,null,null,"CLASSIFICATION",{"$f":"$E$7","v":""},{"$f":"$F$7","v":""},{"$f":"$G$7","v":""},{"$f":"$H$7","v":""},{"$f":"$I$7","v":""},{"$f":"$J$7","v":""},{"$f":"$K$7","v":""},{"$f":"$L$7","v":""},{"$f":"$M$7","v":""}]
[null,null,null,{"$f":"SUM(E83:M83)","v":0},{"$f":"E87+E91","v":0},{"$f":"F87+F91","v":0},0,0,0,0,0,0,0]
[]
[null,null,"TOTAL ESTIMATED WORKDAYS \nFOR 3PEF COSTS (Stage 2 & 3):  ","TOTAL","WORKDAYS"]
[null,null,null,"CLASSIFICATION",{"$f":"$E$7","v":""},{"$f":"$F$7","v":""},{"$f":"$G$7","v":""},{"$f":"$H$7","v":""},{"$f":"$I$7","v":""},{"$f":"$J$7","v":""},{"$f":"$K$7","v":""},{"$f":"$L$7","v":""},{"$f":"$M$7","v":""}]
[null,null,null,{"$f":"SUM(E87:M87)","v":0},{"$f":"E50+E66","v":0},0,0,0,0,0,0,0,0]
[]
[null,null,"TOTAL ESTIMATED WORKDAYS\nFOR 4PEF PLAN COSTS (Stage 4):  ","TOTAL","WORKDAYS"]
[null,null,null,"CLASSIFICATION",{"$f":"$E$7","v":""},{"$f":"$F$7","v":""},{"$f":"$G$7","v":""},{"$f":"$H$7","v":""},{"$f":"$I$7","v":""},{"$f":"$J$7","v":""},{"$f":"$K$7","v":""},{"$f":"$L$7","v":""},{"$f":"$M$7","v":""}]
[null,null,null,{"$f":"SUM(E91:M91)","v":0},{"$f":"E79","v":0},{"$f":"F79","v":0},0,0,0,0,0,0,0]

{"sheet":"RD-Lighting","index":39,"n_rows":28,"n_cols":14,"rows_kept":28,"cut":false,"hidden":true,"merged":[[25,2,27,2],[25,4,25,12],[4,0,5,2],[4,4,4,12],[4,13,6,13],[7,4,7,12],[16,4,16,12]]}
[null,null,"Roadway Lighting Workday Estimate"]
[null,null,{"$f":"TIP.NUMBER","v":0},"TIP NUMBER"]
[null,null,{"$f":"ROADWAY_CONSULTANT_NAME","v":"CONSULTANT NAME"},"FIRM"]
[]
["Note:  The tasks listed below in green are standard tasks following standard scopes.  The tasks should not be modified unless this is a supplemental. In that case they can be written over or deleted but do not cut/paste. Keep tasks in the correct phase 2RD1/2RDs, 3RD1, 4RD1.",null,null,"TOTAL","WORKDAYS",null,null,null,null,null,null,null,null,"NOTES:"]
[null,null,null,"EMPLOYEE",{"$f":"IF('PEF CLASSIFICATION SHEET'!D274=\"\",\"\",LEFT('PEF CLASSIFICATION SHEET'!D274,4))","v":""},{"$f":"IF('PEF CLASSIFICATION SHEET'!D275=\"\",\"\",LEFT('PEF CLASSIFICATION SHEET'!D275,4))","v":""},{"$f":"IF('PEF CLASSIFICATION SHEET'!D276=\"\",\"\",LEFT('PEF CLASSIFICATION SHEET'!D276,4))","v":""},{"$f":"IF('PEF CLASSIFICATION SHEET'!D277=\"\",\"\",LEFT('PEF CLASSIFICATION SHEET'!D277,4))","v":""},{"$f":"IF('PEF CLASSIFICATION SHEET'!D278=\"\",\"\",LEFT('PEF CLASSIFICATION SHEET'!D278,4))","v":""},{"$f":"IF('PEF CLASSIFICATION SHEET'!D279=\"\",\"\",LEFT('PEF CLASSIFICATION SHEET'!D279,4))","v":""},{"$f":"IF('PEF CLASSIFICATION SHEET'!D280=\"\",\"\",LEFT('PEF CLASSIFICATION SHEET'!D280,4))","v":""},{"$f":"IF('PEF CLASSIFICATION SHEET'!D281=\"\",\"\",LEFT('PEF CLASSIFICATION SHEET'!D281,4))","v":""},{"$f":"IF('PEF CLASSIFICATION SHEET'!D282=\"\",\"\",LEFT('PEF CLASSIFICATION SHEET'!D282,4))","v":""}]
["Phase","ID","Description","CLASSIFICATION",{"$f":"IF('PEF CLASSIFICATION SHEET'!C274=\"\",\"\",'PEF CLASSIFICATION SHEET'!C274)","v":""},{"$f":"IF('PEF CLASSIFICATION SHEET'!C275=\"\",\"\",'PEF CLASSIFICATION SHEET'!C275)","v":""},{"$f":"IF('PEF CLASSIFICATION SHEET'!C276=\"\",\"\",'PEF CLASSIFICATION SHEET'!C276)","v":""},{"$f":"IF('PEF CLASSIFICATION SHEET'!C277=\"\",\"\",'PEF CLASSIFICATION SHEET'!C277)","v":""},{"$f":"IF('PEF CLASSIFICATION SHEET'!C278=\"\",\"\",'PEF CLASSIFICATION SHEET'!C278)","v":""},{"$f":"IF('PEF CLASSIFICATION SHEET'!C279=\"\",\"\",'PEF CLASSIFICATION SHEET'!C279)","v":""},{"$f":"IF('PEF CLASSIFICATION SHEET'!C280=\"\",\"\",'PEF CLASSIFICATION SHEET'!C280)","v":""},{"$f":"IF('PEF CLASSIFICATION SHEET'!C281=\"\",\"\",'PEF CLASSIFICATION SHEET'!C281)","v":""},{"$f":"IF('PEF CLASSIFICATION SHEET'!C282=\"\",\"\",'PEF CLASSIFICATION SHEET'!C282)","v":""}]
[null,null,"2RD2","WORKDAYS"]
["2RD1",6.1,"Initial Lighting Assessment",{"$f":"SUM(E9:M9)","v":0}]
["2RD1",6.2,"Lighting Evaluation ",0]
["2RD1",6.3,"Coordinate with local government on lighting needs",0]
["2RD1",6.4,"2RD1 Misc. Item:",0]
["2RD1",6.5,"2RD1 Misc. Item:",0]
["2RD1",6.6,"2RD1 Misc. Item:",0]
[null,null,"TOTAL STAGE 2 WORKDAYS",{"$f":"SUM(E15:M15)","v":0},{"$f":"SUM(E9:E14)","v":0},0,0,0,0,0,0,0,0]
[null,null,null,null," "]
[null,null,"3RD1","WORKDAYS",null,null,null,null,null,null,null,null,null,"NOTES:"]
["3RD1",5.0999999999999996,"Complete Lighting Layout",{"$f":"SUM(E18:M18)","v":0}]
["3RD1",5.2,"Lighting Design Package",0]
["3RD1",5.3,"3RD1 Misc. Item:",0]
["3RD1",5.4,"3RD1 Misc. Item:",0]
["3RD1",5.5,"3RD1 Misc. Item:",0]
["3RD1",5.6,"3RD1 Misc. Item:",{"$f":"SUM(E23:M23)","v":0}]
[null,null,"TOTAL STAGE 3 WORKDAYS",{"$f":"SUM(E24:M24)","v":0},{"$f":"SUM(E18:E23)","v":0},0,0,0,0,0,0,0,0]
[]
[null,null,"TOTAL ESTIMATED WORKDAYS:  ","TOTAL","WORKDAYS"]
[null,null,null,"CLASSIFICATION",{"$f":"$E$7","v":""},{"$f":"$F$7","v":""},{"$f":"$G$7","v":""},{"$f":"$H$7","v":""},{"$f":"$I$7","v":""},{"$f":"$J$7","v":""},{"$f":"$K$7","v":""},{"$f":"$L$7","v":""},{"$f":"$M$7","v":""}]
[null,null,null,{"$f":"SUM(E28:M28)","v":0},{"$f":"E15+E24","v":0},{"$f":"F15+F24","v":0},0,0,0,0,0,0,0]

{"sheet":"RD-CLASS","index":40,"n_rows":120,"n_cols":11,"rows_kept":120,"cut":false,"hidden":true,"merged":[[118,1,118,6],[119,1,119,6],[95,1,95,6],[28,1,28,7],[5,1,5,7],[7,1,7,2],[8,1,8,2],[9,1,9,2],[10,1,10,2],[11,1,11,2],[17,1,17,3],[23,1,23,6],[24,1,24,6],[25,1,25,6],[15,1,15,2],[12,1,12,2],[13,1,13,2],[14,1,14,2],[16,1,16,2],[32,1,32,2],[33,1,33,2],[34,1,34,2],[35,1,35,2],[36,1,36,2],[65,1,65,3],[71,1,71,6],[39,1,39,2],[40,1,40,2],[41,1,41,2],[42,1,42,3],[48,1,48,6],[63,1,63,2],[64,1,64,2],[3,5,3,7],[52,1,52,7],[60,1,60,2],[61,1,61,2],[62,1,62,2],[55,1,55,2],[56,1,56,2],[57,1,57,2],[58,1,58,2],[59,1,59,2],[53,1,53,7],[37,1,37,2],[38,1,38,2],[27,2,27,7],[29,1,29,7],[30,1,30,7],[75,1,75,7],[76,1,76,7],[78,1,78,2],[79,1,79,2],[80,1,80,2],[81,1,81,2],[82,1,82,2],[83,1,83,2],[84,1,84,2],[85,1,85,2],[86,1,86,2],[87,1,87,2],[88,1,88,3],[94,1,94,6],[98,1,98,7],[99,1,99,7],[101,1,101,2],[102,1,102,2],[103,1,103,2],[104,1,104,2],[110,1,110,2],[111,1,111,3],[117,1,117,6],[105,1,105,2],[106,1,106,2],[107,1,107,2],[108,1,108,2],[109,1,109,2]]}
[null,null,null,null,null,null,null,null,null,null,true]
[null,null,null,null,null,null,"TIP NUMBER :",{"$f":"TIP.NUMBER","v":0}]
[null,null,null,null,null,null,"COUNTY :",{"$f":"COUNTY","v":0}]
[null,null,null,null,"FIRM:",{"$f":"ROADWAY_CONSULTANT_NAME","v":"CONSULTANT NAME"}]
[]
[null,{"$f":"IF(K1=TRUE,\"ROADWAY INITIAL PEF DIRECT & IN-DIRECT SALARY COST\",\"ROADWAY FINAL PEF DIRECT & IN-DIRECT SALARY COST\")","v":"ROADWAY INITIAL PEF DIRECT & IN-DIRECT SALARY COST"}]
[]
[null,"CLASSIFICATION",null,"EMPLOYEE NAME","WORKDAYS",null,"RATE / HOUR","COST"]
[null,{"$f":"'RD-Workdays'!$E$7","v":""},null,{"$f":"'PEF CLASSIFICATION SHEET'!$D$274","v":0},{"$f":"IF(B9=\"\",0,SUM('RD-Workdays'!$E$83,'RD-Supp'!$E$83,'RD-Lighting'!$E$28))","v":0},"x",{"$f":"'PEF CLASSIFICATION SHEET'!$E$274","v":0},{"$f":"E9*8*G9","v":0}]
[null,{"$f":"'RD-Workdays'!$F$7","v":""},null,{"$f":"'PEF CLASSIFICATION SHEET'!$D$275","v":0},{"$f":"IF(B10=\"\",0,SUM('RD-Workdays'!$F$83,'RD-Supp'!$F$83,'RD-Lighting'!$F$28))","v":0},"x",{"$f":"'PEF CLASSIFICATION SHEET'!$E$275","v":0},0]
[null,{"$f":"'RD-Workdays'!$G$7","v":""},null,{"$f":"'PEF CLASSIFICATION SHEET'!$D$276","v":0},{"$f":"IF(B11=\"\",0,SUM('RD-Workdays'!$G$83,'RD-Supp'!$G$83,'RD-Lighting'!$G$28))","v":0},"x",{"$f":"'PEF CLASSIFICATION SHEET'!$E$276","v":0},0]
[null,{"$f":"'RD-Workdays'!$H$7","v":""},null,{"$f":"'PEF CLASSIFICATION SHEET'!$D$277","v":0},{"$f":"IF(B12=\"\",0,SUM('RD-Workdays'!$H$83,'RD-Supp'!$H$83,'RD-Lighting'!$H$28))","v":0},"x",{"$f":"'PEF CLASSIFICATION SHEET'!$E$277","v":0},{"$f":"E12*8*G12","v":0}]
[null,{"$f":"'RD-Workdays'!$I$7","v":""},null,{"$f":"'PEF CLASSIFICATION SHEET'!$D$278","v":0},{"$f":"IF(B13=\"\",0,SUM('RD-Workdays'!$I$83,'RD-Supp'!$I$83,'RD-Lighting'!$I$28))","v":0},"x",{"$f":"'PEF CLASSIFICATION SHEET'!$E$278","v":0},{"$f":"E13*8*G13","v":0}]
[null,{"$f":"'RD-Workdays'!$J$7","v":""},null,{"$f":"'PEF CLASSIFICATION SHEET'!$D$279","v":0},{"$f":"IF(B14=\"\",0,SUM('RD-Workdays'!$J$83,'RD-Supp'!$J$83,'RD-Lighting'!$J$28))","v":0},"x",{"$f":"'PEF CLASSIFICATION SHEET'!$E$279","v":0},0]
[null,{"$f":"'RD-Workdays'!$K$7","v":""},null,{"$f":"'PEF CLASSIFICATION SHEET'!$D$280","v":0},{"$f":"IF(B15=\"\",0,SUM('RD-Workdays'!$K$83,'RD-Supp'!$K$83,'RD-Lighting'!$K$28))","v":0},"x",{"$f":"'PEF CLASSIFICATION SHEET'!$E$280","v":0},0]
[null,{"$f":"'RD-Workdays'!$L$7","v":""},null,{"$f":"'PEF CLASSIFICATION SHEET'!$D$281","v":0},{"$f":"IF(B16=\"\",0,SUM('RD-Workdays'!$L$83,'RD-Supp'!$L$83,'RD-Lighting'!$L$28))","v":0},"x",{"$f":"'PEF CLASSIFICATION SHEET'!$E$281","v":0},0]
[null,{"$f":"'RD-Workdays'!$M$7","v":""},null,{"$f":"'PEF CLASSIFICATION SHEET'!$D$282","v":0},{"$f":"IF(B17=\"\",0,SUM('RD-Workdays'!$M$83,'RD-Supp'!$M$83,'RD-Lighting'!$M$28))","v":0},"x",{"$f":"'PEF CLASSIFICATION SHEET'!$E$282","v":0},{"$f":"E17*8*G17","v":0}]
[null,"TOTAL NUMBER OF WORKDAYS  ",null,null,{"$f":"SUM(E9:E17)","v":0}]
[null,"Total Direct Salary",null,null,null,null,null,{"$f":"SUM(H9:H17)","v":0}]
[null,"Overhead ",null,null,null,null,{"$f":"ROADWAY_CONSULTANT_OVERHEAD","v":0},{"$f":"H19*G20","v":0}]
[null,"Subtotal",null,null,null,null,null,{"$f":"H19+H20","v":0}]
[null,"Fee",null,null,null,null,{"$f":"ROADWAY_CONSULTANT_FEE","v":0.09},{"$f":"H21*G22","v":0}]
[null,"Cost of Capital",null,null,null,null,{"$f":"ROADWAY_CONSULTANT_COSTofCAPITAL","v":0},{"$f":"H19*G23","v":0}]
[null,"TOTAL DIRECT & INDIRECT SALARY COSTS",null,null,null,null,null,{"$f":"SUM(H21:H23)","v":0}]
[null,"TOTAL DIRECT NON-SALARY COST",null,null,null,null,null,{"$f":"ROADWAY_DIRECT_NONSALARY_TOTAL","v":0}]
[null,"TOTAL ROADWAY COST",null,null,null,null,null,{"$f":"ROADWAY_SALARY_TOTAL+H25","v":0}]
[]
[null,null,"Notes:\nRate = Rate Per Workhour\nDirect Salary = Workdays x Rate x 8\nOH = OH Rate (as approved by the Fiscal Section) x Total Direct Salary\nSubtotal = Direct Salary + OH\nFee = 9% x Subtotal\nCOC = COC Rate (as approved by the Fiscal Section) x Total Direct Salary\nTotal Direct and Indirect Salary Costs  =  Subtotal + Fee + COC\nTotal Direct Non-Salary Costs is calculated on the \"TRAVEL & MISC.\" tab\nTotal Roadway Costs =  Total Direct & Indirect Salary Costs + Total Direct Non-Salary Costs"]
[]
[null,"SUPPLEMENTAL ONLY"]
[null,{"$f":"IF(K1=TRUE,\"INITIAL PEF DIRECT & IN-DIRECT SALARY COST\",\"FINAL PEF DIRECT & IN-DIRECT SALARY COST\")","v":"INITIAL PEF DIRECT & IN-DIRECT SALARY COST"}]
[]
[null,"CLASSIFICATION",null,"EMPLOYEE NAME","WORKDAYS",null,"RATE / HOUR","COST"]
[null,{"$f":"'RD-Workdays'!$E$7","v":""},null,{"$f":"'PEF CLASSIFICATION SHEET'!$D$274","v":0},{"$f":"IF(B34=\"\",0,'RD-Supp'!$E$83)","v":0},"x",{"$f":"'PEF CLASSIFICATION SHEET'!$E$274","v":0},{"$f":"E34*8*G34","v":0}]
[null,{"$f":"'RD-Workdays'!$F$7","v":""},null,{"$f":"'PEF CLASSIFICATION SHEET'!$D$275","v":0},{"$f":"IF(B35=\"\",0,'RD-Supp'!$F$83)","v":0},"x",{"$f":"'PEF CLASSIFICATION SHEET'!$E$275","v":0},0]
[null,{"$f":"'RD-Workdays'!$G$7","v":""},null,{"$f":"'PEF CLASSIFICATION SHEET'!$D$276","v":0},{"$f":"IF(B36=\"\",0,'RD-Supp'!$G$83)","v":0},"x",{"$f":"'PEF CLASSIFICATION SHEET'!$E$276","v":0},0]
[null,{"$f":"'RD-Workdays'!$H$7","v":""},null,{"$f":"'PEF CLASSIFICATION SHEET'!$D$277","v":0},{"$f":"IF(B37=\"\",0,'RD-Supp'!$H$83)","v":0},"x",{"$f":"'PEF CLASSIFICATION SHEET'!$E$277","v":0},{"$f":"E37*8*G37","v":0}]
[null,{"$f":"'RD-Workdays'!$I$7","v":""},null,{"$f":"'PEF CLASSIFICATION SHEET'!$D$278","v":0},{"$f":"IF(B38=\"\",0,'RD-Supp'!$I$83)","v":0},"x",{"$f":"'PEF CLASSIFICATION SHEET'!$E$278","v":0},{"$f":"E38*8*G38","v":0}]
[null,{"$f":"'RD-Workdays'!$J$7","v":""},null,{"$f":"'PEF CLASSIFICATION SHEET'!$D$279","v":0},{"$f":"IF(B39=\"\",0,'RD-Supp'!$J$83)","v":0},"x",{"$f":"'PEF CLASSIFICATION SHEET'!$E$279","v":0},0]
[null,{"$f":"'RD-Workdays'!$K$7","v":""},null,{"$f":"'PEF CLASSIFICATION SHEET'!$D$280","v":0},{"$f":"IF(B40=\"\",0,'RD-Supp'!$K$83)","v":0},"x",{"$f":"'PEF CLASSIFICATION SHEET'!$E$280","v":0},0]
[null,{"$f":"'RD-Workdays'!$L$7","v":""},null,{"$f":"'PEF CLASSIFICATION SHEET'!$D$281","v":0},{"$f":"IF(B41=\"\",0,'RD-Supp'!$L$83)","v":0},"x",{"$f":"'PEF CLASSIFICATION SHEET'!$E$281","v":0},0]
[null,{"$f":"'RD-Workdays'!$M$7","v":""},null,{"$f":"'PEF CLASSIFICATION SHEET'!$D$282","v":0},{"$f":"IF(B42=\"\",0,'RD-Supp'!$M$83)","v":0},"x",{"$f":"'PEF CLASSIFICATION SHEET'!$E$282","v":0},{"$f":"E42*8*G42","v":0}]
[null,"TOTAL NUMBER OF WORKDAYS  ",null,null,{"$f":"SUM(E34:E42)","v":0}]
[null,"Total Direct Salary",null,null,null,null,null,{"$f":"SUM(H34:H42)","v":0}]
[null,"Overhead ",null,null,null,null,{"$f":"ROADWAY_CONSULTANT_OVERHEAD","v":0},{"$f":"H44*G45","v":0}]
[null,"Subtotal",null,null,null,null,null,{"$f":"H44+H45","v":0}]
[null,"Fee",null,null,null,null,{"$f":"ROADWAY_CONSULTANT_FEE","v":0.09},{"$f":"H46*G47","v":0}]
[null,"Cost of Capital",null,null,null,null,{"$f":"ROADWAY_CONSULTANT_COSTofCAPITAL","v":0},{"$f":"H44*G48","v":0}]
[null,"TOTAL DIRECT & INDIRECT SALARY COSTS",null,null,null,null,null,{"$f":"SUM(H46:H48)","v":0}]
[]
[]
[]
[null,"EXCLUDING SUPPLEMENTAL"]
[null,{"$f":"IF(K1=TRUE,\"INITIAL PEF DIRECT & IN-DIRECT SALARY COST\",\"FINAL PEF DIRECT & IN-DIRECT SALARY COST\")","v":"INITIAL PEF DIRECT & IN-DIRECT SALARY COST"}]
[]
[null,"CLASSIFICATION",null,"EMPLOYEE NAME","WORKDAYS",null,"RATE / HOUR","COST"]
[null,{"$f":"'RD-Workdays'!$E$7","v":""},null,{"$f":"'PEF CLASSIFICATION SHEET'!$D$274","v":0},{"$f":"IF(B57=\"\",0,'RD-Workdays'!$E$83+'RD-Lighting'!$E$28)","v":0},"x",{"$f":"'PEF CLASSIFICATION SHEET'!$E$274","v":0},{"$f":"E57*8*G57","v":0}]
[null,{"$f":"'RD-Workdays'!$F$7","v":""},null,{"$f":"'PEF CLASSIFICATION SHEET'!$D$275","v":0},{"$f":"IF(B58=\"\",0,'RD-Workdays'!$F$83+'RD-Lighting'!$F$28)","v":0},"x",{"$f":"'PEF CLASSIFICATION SHEET'!$E$275","v":0},0]
[null,{"$f":"'RD-Workdays'!$G$7","v":""},null,{"$f":"'PEF CLASSIFICATION SHEET'!$D$276","v":0},{"$f":"IF(B59=\"\",0,'RD-Workdays'!$G$83+'RD-Lighting'!$G$28)","v":0},"x",{"$f":"'PEF CLASSIFICATION SHEET'!$E$276","v":0},0]
[null,{"$f":"'RD-Workdays'!$H$7","v":""},null,{"$f":"'PEF CLASSIFICATION SHEET'!$D$277","v":0},{"$f":"IF(B60=\"\",0,'RD-Workdays'!$H$83+'RD-Lighting'!$H$28)","v":0},"x",{"$f":"'PEF CLASSIFICATION SHEET'!$E$277","v":0},{"$f":"E60*8*G60","v":0}]
[null,{"$f":"'RD-Workdays'!$I$7","v":""},null,{"$f":"'PEF CLASSIFICATION SHEET'!$D$278","v":0},{"$f":"IF(B61=\"\",0,'RD-Workdays'!$I$83+'RD-Lighting'!$I$28)","v":0},"x",{"$f":"'PEF CLASSIFICATION SHEET'!$E$278","v":0},{"$f":"E61*8*G61","v":0}]
[null,{"$f":"'RD-Workdays'!$J$7","v":""},null,{"$f":"'PEF CLASSIFICATION SHEET'!$D$279","v":0},{"$f":"IF(B62=\"\",0,'RD-Workdays'!$J$83+'RD-Lighting'!$J$28)","v":0},"x",{"$f":"'PEF CLASSIFICATION SHEET'!$E$279","v":0},0]
[null,{"$f":"'RD-Workdays'!$K$7","v":""},null,{"$f":"'PEF CLASSIFICATION SHEET'!$D$280","v":0},{"$f":"IF(B63=\"\",0,'RD-Workdays'!$K$83+'RD-Lighting'!$K$28)","v":0},"x",{"$f":"'PEF CLASSIFICATION SHEET'!$E$280","v":0},0]
[null,{"$f":"'RD-Workdays'!$L$7","v":""},null,{"$f":"'PEF CLASSIFICATION SHEET'!$D$281","v":0},{"$f":"IF(B64=\"\",0,'RD-Workdays'!$L$83+'RD-Lighting'!$L$28)","v":0},"x",{"$f":"'PEF CLASSIFICATION SHEET'!$E$281","v":0},0]
[null,{"$f":"'RD-Workdays'!$M$7","v":""},null,{"$f":"'PEF CLASSIFICATION SHEET'!$D$282","v":0},{"$f":"IF(B65=\"\",0,'RD-Workdays'!$M$83+'RD-Lighting'!$M$28)","v":0},"x",{"$f":"'PEF CLASSIFICATION SHEET'!$E$282","v":0},{"$f":"E65*8*G65","v":0}]
[null,"TOTAL NUMBER OF WORKDAYS  ",null,null,{"$f":"SUM(E57:E65)","v":0}]
[null,"Total Direct Salary",null,null,null,null,null,{"$f":"SUM(H57:H65)","v":0}]
[null,"Overhead ",null,null,null,null,{"$f":"ROADWAY_CONSULTANT_OVERHEAD","v":0},{"$f":"H67*G68","v":0}]
[null,"Subtotal",null,null,null,null,null,{"$f":"H67+H68","v":0}]
[null,"Fee",null,null,null,null,{"$f":"ROADWAY_CONSULTANT_FEE","v":0.09},{"$f":"H69*G70","v":0}]
[null,"Cost of Capital",null,null,null,null,{"$f":"ROADWAY_CONSULTANT_COSTofCAPITAL","v":0},{"$f":"H67*G71","v":0}]
[null,"TOTAL DIRECT & INDIRECT SALARY COSTS",null,null,null,null,null,{"$f":"SUM(H69:H71)","v":0}]
[]
[]
[]
[null,"RIGHT OF WAY PLAN COSTS"]
[null,{"$f":"IF(K1=TRUE,\"INITIAL PEF DIRECT & IN-DIRECT SALARY COST\",\"FINAL PEF DIRECT & IN-DIRECT SALARY COST\")","v":"INITIAL PEF DIRECT & IN-DIRECT SALARY COST"}]
[]
[null,"CLASSIFICATION",null,"EMPLOYEE NAME","WORKDAYS",null,"RATE / HOUR","COST"]
[null,{"$f":"'RD-Workdays'!$E$7","v":""},null,{"$f":"'PEF CLASSIFICATION SHEET'!$D$274","v":0},{"$f":"IF(B80=\"\",0,'RD-Workdays'!$E$87+'RD-Supp'!$E$87+'RD-Lighting'!$E$28)","v":0},"x",{"$f":"'PEF CLASSIFICATION SHEET'!$E$274","v":0},{"$f":"E80*8*G80","v":0}]
[null,{"$f":"'RD-Workdays'!$F$7","v":""},null,{"$f":"'PEF CLASSIFICATION SHEET'!$D$275","v":0},{"$f":"IF(B81=\"\",0,'RD-Workdays'!$F$87+'RD-Supp'!$F$87+'RD-Lighting'!$F$28)","v":0},"x",{"$f":"'PEF CLASSIFICATION SHEET'!$E$275","v":0},0]
[null,{"$f":"'RD-Workdays'!$G$7","v":""},null,{"$f":"'PEF CLASSIFICATION SHEET'!$D$276","v":0},{"$f":"IF(B82=\"\",0,'RD-Workdays'!$G$87+'RD-Supp'!$G$87+'RD-Lighting'!$G$28)","v":0},"x",{"$f":"'PEF CLASSIFICATION SHEET'!$E$276","v":0},0]
[null,{"$f":"'RD-Workdays'!$H$7","v":""},null,{"$f":"'PEF CLASSIFICATION SHEET'!$D$277","v":0},{"$f":"IF(B83=\"\",0,'RD-Workdays'!$H$87+'RD-Supp'!$H$87+'RD-Lighting'!$H$28)","v":0},"x",{"$f":"'PEF CLASSIFICATION SHEET'!$E$277","v":0},{"$f":"E83*8*G83","v":0}]
[null,{"$f":"'RD-Workdays'!$I$7","v":""},null,{"$f":"'PEF CLASSIFICATION SHEET'!$D$278","v":0},{"$f":"IF(B84=\"\",0,'RD-Workdays'!$I$87+'RD-Supp'!$I$87+'RD-Lighting'!$I$28)","v":0},"x",{"$f":"'PEF CLASSIFICATION SHEET'!$E$278","v":0},{"$f":"E84*8*G84","v":0}]
[null,{"$f":"'RD-Workdays'!$J$7","v":""},null,{"$f":"'PEF CLASSIFICATION SHEET'!$D$279","v":0},{"$f":"IF(B85=\"\",0,'RD-Workdays'!$J$87+'RD-Supp'!$J$87+'RD-Lighting'!$J$28)","v":0},"x",{"$f":"'PEF CLASSIFICATION SHEET'!$E$279","v":0},0]
[null,{"$f":"'RD-Workdays'!$K$7","v":""},null,{"$f":"'PEF CLASSIFICATION SHEET'!$D$280","v":0},{"$f":"IF(B86=\"\",0,'RD-Workdays'!$K$87+'RD-Supp'!$K$87+'RD-Lighting'!$K$28)","v":0},"x",{"$f":"'PEF CLASSIFICATION SHEET'!$E$280","v":0},0]
[null,{"$f":"'RD-Workdays'!$L$7","v":""},null,{"$f":"'PEF CLASSIFICATION SHEET'!$D$281","v":0},{"$f":"IF(B87=\"\",0,'RD-Workdays'!$L$87+'RD-Supp'!$L$87+'RD-Lighting'!$L$28)","v":0},"x",{"$f":"'PEF CLASSIFICATION SHEET'!$E$281","v":0},0]
[null,{"$f":"'RD-Workdays'!$M$7","v":""},null,{"$f":"'PEF CLASSIFICATION SHEET'!$D$282","v":0},{"$f":"IF(B88=\"\",0,'RD-Workdays'!$M$87+'RD-Supp'!$M$87+'RD-Lighting'!$M$28)","v":0},"x",{"$f":"'PEF CLASSIFICATION SHEET'!$E$282","v":0},{"$f":"E88*8*G88","v":0}]
[null,"TOTAL NUMBER OF WORKDAYS  ",null,null,{"$f":"SUM(E80:E88)","v":0}]
[null,"Total Direct Salary",null,null,null,null,null,{"$f":"SUM(H80:H88)","v":0}]
[null,"Overhead ",null,null,null,null,{"$f":"ROADWAY_CONSULTANT_OVERHEAD","v":0},{"$f":"H90*G91","v":0}]
[null,"Subtotal",null,null,null,null,null,{"$f":"H90+H91","v":0}]
[null,"Fee",null,null,null,null,{"$f":"ROADWAY_CONSULTANT_FEE","v":0.09},{"$f":"H92*G93","v":0}]
[null,"Cost of Capital",null,null,null,null,{"$f":"ROADWAY_CONSULTANT_COSTofCAPITAL","v":0},{"$f":"H90*G94","v":0}]
[null,"TOTAL DIRECT & INDIRECT SALARY COSTS",null,null,null,null,null,{"$f":"SUM(H92:H94)","v":0}]
[null,"TOTAL ROADWAY RIGHT OF WAY PLAN COST",null,null,null,null,null,{"$f":"H95","v":0}]
[]
[]
[null,"FINAL PLAN COSTS"]
[null,{"$f":"IF(K1=TRUE,\"INITIAL PEF DIRECT & IN-DIRECT SALARY COST\",\"FINAL PEF DIRECT & IN-DIRECT SALARY COST\")","v":"INITIAL PEF DIRECT & IN-DIRECT SALARY COST"}]
[]
[null,"CLASSIFICATION",null,"EMPLOYEE NAME","WORKDAYS",null,"RATE / HOUR","COST"]
[null,{"$f":"'RD-Workdays'!$E$7","v":""},null,{"$f":"'PEF CLASSIFICATION SHEET'!$D$274","v":0},{"$f":"IF(B103=\"\",0,'RD-Workdays'!$E$91+'RD-Supp'!$E$91)","v":0},"x",{"$f":"'PEF CLASSIFICATION SHEET'!$E$274","v":0},{"$f":"E103*8*G103","v":0}]
[null,{"$f":"'RD-Workdays'!$F$7","v":""},null,{"$f":"'PEF CLASSIFICATION SHEET'!$D$275","v":0},{"$f":"IF(B104=\"\",0,'RD-Workdays'!$F$91+'RD-Supp'!$F$91)","v":0},"x",{"$f":"'PEF CLASSIFICATION SHEET'!$E$275","v":0},0]
[null,{"$f":"'RD-Workdays'!$G$7","v":""},null,{"$f":"'PEF CLASSIFICATION SHEET'!$D$276","v":0},{"$f":"IF(B105=\"\",0,'RD-Workdays'!$G$91+'RD-Supp'!$G$91)","v":0},"x",{"$f":"'PEF CLASSIFICATION SHEET'!$E$276","v":0},0]
[null,{"$f":"'RD-Workdays'!$H$7","v":""},null,{"$f":"'PEF CLASSIFICATION SHEET'!$D$277","v":0},{"$f":"IF(B106=\"\",0,'RD-Workdays'!$H$91+'RD-Supp'!$H$91)","v":0},"x",{"$f":"'PEF CLASSIFICATION SHEET'!$E$277","v":0},{"$f":"E106*8*G106","v":0}]
[null,{"$f":"'RD-Workdays'!$I$7","v":""},null,{"$f":"'PEF CLASSIFICATION SHEET'!$D$278","v":0},{"$f":"IF(B107=\"\",0,'RD-Workdays'!$I$91+'RD-Supp'!$I$91)","v":0},"x",{"$f":"'PEF CLASSIFICATION SHEET'!$E$278","v":0},{"$f":"E107*8*G107","v":0}]
[null,{"$f":"'RD-Workdays'!$J$7","v":""},null,{"$f":"'PEF CLASSIFICATION SHEET'!$D$279","v":0},{"$f":"IF(B108=\"\",0,'RD-Workdays'!$J$91+'RD-Supp'!$J$91)","v":0},"x",{"$f":"'PEF CLASSIFICATION SHEET'!$E$279","v":0},0]
[null,{"$f":"'RD-Workdays'!$K$7","v":""},null,{"$f":"'PEF CLASSIFICATION SHEET'!$D$280","v":0},{"$f":"IF(B109=\"\",0,'RD-Workdays'!$K$91+'RD-Supp'!$K$91)","v":0},"x",{"$f":"'PEF CLASSIFICATION SHEET'!$E$280","v":0},0]
[null,{"$f":"'RD-Workdays'!$L$7","v":""},null,{"$f":"'PEF CLASSIFICATION SHEET'!$D$281","v":0},{"$f":"IF(B110=\"\",0,'RD-Workdays'!$L$91+'RD-Supp'!$L$91)","v":0},"x",{"$f":"'PEF CLASSIFICATION SHEET'!$E$281","v":0},0]
[null,{"$f":"'RD-Workdays'!$M$7","v":""},null,{"$f":"'PEF CLASSIFICATION SHEET'!$D$282","v":0},{"$f":"IF(B111=\"\",0,'RD-Workdays'!$M$91+'RD-Supp'!$M$91)","v":0},"x",{"$f":"'PEF CLASSIFICATION SHEET'!$E$282","v":0},{"$f":"E111*8*G111","v":0}]
[null,"TOTAL NUMBER OF WORKDAYS  ",null,null,{"$f":"SUM(E103:E111)","v":0}]
[null,"Total Direct Salary",null,null,null,null,null,{"$f":"SUM(H103:H111)","v":0}]
[null,"Overhead ",null,null,null,null,{"$f":"ROADWAY_CONSULTANT_OVERHEAD","v":0},{"$f":"H113*G114","v":0}]
[null,"Subtotal",null,null,null,null,null,{"$f":"H113+H114","v":0}]
[null,"Fee",null,null,null,null,{"$f":"ROADWAY_CONSULTANT_FEE","v":0.09},{"$f":"H115*G116","v":0}]
[null,"Cost of Capital",null,null,null,null,{"$f":"ROADWAY_CONSULTANT_COSTofCAPITAL","v":0},{"$f":"H113*G117","v":0}]
[null,"TOTAL DIRECT & INDIRECT SALARY COSTS",null,null,null,null,null,{"$f":"SUM(H115:H117)","v":0}]
[null,"TOTAL DIRECT NON-SALARY COST",null,null,null,null,null,{"$f":"ROADWAY_DIRECT_NONSALARY_TOTAL","v":0}]
[null,"TOTAL ROADWAY FINAL PLAN COST",null,null,null,null,null,{"$f":"H118+H119","v":0}]

{"sheet":"RD-Exp","index":41,"n_rows":81,"n_cols":13,"rows_kept":81,"cut":false,"hidden":true,"merged":[[60,2,60,13],[69,2,69,13],[77,2,77,13],[0,1,0,13],[1,9,1,13],[1,5,1,8],[1,3,1,4],[41,3,41,12],[35,2,35,13],[40,2,40,10],[3,2,3,13],[4,1,4,2],[4,3,4,4]]}
[null,"ROADWAY TRAVEL AND MISCELLANEOUS COSTS"]
[null,"FIRM:",null,{"$f":"ROADWAY_CONSULTANT_NAME","v":"CONSULTANT NAME"},null,"TIP NUMBER:",null,null,null,{"$f":"TIP.NUMBER","v":0}]
[]
[null,"(A)","*  BOND (includes DOT and Firm's Record Sets)"]
[null,null,null,"SUBMITTAL",null,null,"NO.\nSHTS.",null,"SETS",null,null,null,"TOTAL\nSHTS."]
[null,null,null,"Stage 1 (1RD1)"]
[null,null,null,"Plans",null,null,null,"x",null,null,null,"=",{"$f":"G7*I7","v":0}]
[null,null,null,"Interchange Sheets",null,null,null,"x",null,null,null,"=",{"$f":"G8*I8","v":0}]
[null,null,null,"Cross-Sections (11x17)",null,null,null,"x",null,null,null,"=",{"$f":"G9*I9","v":0}]
[]
[null,null,null,"Stage 2 (2RD1, 2RD2)"]
[null,null,null,"Plans",null,null,null,"x",null,null,null,"=",{"$f":"G12*I12","v":0}]
[null,null,null,"Interchange Sheets",null,null,null,"x",null,null,null,"=",{"$f":"G13*I13","v":0}]
[null,null,null,"Cross-Sections (11x17)",null,null,null,"x",null,null,null,"=",{"$f":"G14*I14","v":0}]
[]
[null,null,null,"Stage 3 (3RD1)"]
[null,null,null,"Plans",null,null,null,"x",null,null,null,"=",{"$f":"G17*I17","v":0}]
[null,null,null,"Interchange Sheets",null,null,null,"x",null,null,null,"=",{"$f":"G18*I18","v":0}]
[null,null,null,"Cross-Sections (11x17)",null,null,null,"x",null,null,null,"=",{"$f":"G19*I19","v":0}]
[]
[null,null,null,"Stage 4 (4RD1)"]
[null,null,null,"Plans",null,null,null,"x",null,null,null,"=",{"$f":"G22*I22","v":0}]
[null,null,null,"Interchange Sheets",null,null,null,"x",null,null,null,"=",{"$f":"G23*I23","v":0}]
[null,null,null,"Cross-Sections (11x17)",null,null,null,"x",null,null,null,"=",{"$f":"G24*I24","v":0}]
[]
[null,null,null,"PEF's Work Sets "]
[null,null,null,"Plans",null,null,null,"x",null,null,null,"=",{"$f":"G27*I27","v":0}]
[null,null,null,"Interchange Sheets",null,null,null,"x",null,null,null,"=",{"$f":"G28*I28","v":0}]
[null,null,null,"Cross-Sections (11x17)",null,null,null,"x",null,null,null,"=",{"$f":"G29*I29","v":0}]
[]
[]
[null,"+",null,"TOTAL PLANS (22\" x 34\")",null,null,{"$f":"SUM(M7,M12,M17,M22,M27)","v":0},"x",{"$f":"BOND.REGULAR","v":0.42}," / sheet",null,"=",{"$f":"G32*I32","v":0}]
[null,"+",null,"TOTAL INTERCHANGE SHEETS (34\" x 68\")",null,null,{"$f":"M8+M13+M18+M23+M28","v":0},"x",{"$f":"BOND.LARGE","v":3.5}," / sheet",null,"=",{"$f":"G33*I33","v":0}]
[null,"+",null,"TOTAL CROSS-SECTIONS (11\" x 17\")",null,null,{"$f":"SUM(M9,M14,M19,M24,M29)","v":0},"x",{"$f":"LEDGERCOPIES","v":0.34}," / sheet",null,"=",{"$f":"G34*I34","v":0}]
[]
[null,"(B)","XEROX"]
[]
[null,"+",null,"TOTAL XEROX COPIES (Say)",null,null,null,"x",{"$f":"LETTERCOPIES","v":0.14000000000000001}," / sheet",null,"=",{"$f":"G38*I38","v":0}]
[null,"+",null,"COVERS & BINDING (Say)",null,null,null,"x",{"$f":"COVERS+BINDERS","v":1}," / set",null,"=",{"$f":"G39*I39","v":0}]
[]
[null," ","                          TOTAL REPRODUCTION  (A + B)",null,null,null,null,null,null,null,null,"=",{"$f":"M32+M33+M34+M38+M39","v":0}]
[null,"(C)",null,"TRAVEL"]
[null,null,null,"PURPOSE of TRIP","TRIPS",null,"MILES",null,"TOTAL",null,"RATE",null,"COSTS"]
[]
[null,"+",null,"Preliminary Field Review",null,"x",null,"=",{"$f":"E45*G45","v":0},"x",{"$f":"SEDAN","v":0.7},"=",{"$f":"I45*K45","v":0}]
[null,"+",null,"Public Meeting/Hearing/Workshops",null,"x",null,"=",0,"x",0.7,"=",0]
[null,"+",null,"Field Inspections (Preliminary, Combined, Final)",null,"x",null,"=",0,"x",0.7,"=",0]
[null,"+",null,"Scheduled Reviews/Miscellaneous Meetings with NCDOT",null,"x",null,"=",0,"x",0.7,"=",0]
[null,"+",null,"Miscellaneous Local Meetings",null,"x",null,"=",0,"x",0.7,"=",0]
[null,"+",null,null,null,"x",null,"=",0,"x",0.7,"=",0]
[null,"+",null,null,null,"x",null,"=",{"$f":"E51*G51","v":0},"x",0.7,"=",{"$f":"I51*K51","v":0}]
[]
[null,null,null,"PER DIEM","TRIPS",null,"# ATTEND",null,"TOTAL",null,"RATE",null,"COSTS"]
[]
[null,"+",null,"Breakfast",null,"x",null,"=",{"$f":"E55*G55","v":0},"x",{"$f":"BREAKFAST","v":10.1},"=",{"$f":"I55*K55","v":0}]
[null,"+",null,"Lunch",null,"x",null,"=",{"$f":"E56*G56","v":0},"x",{"$f":"LUNCH","v":13.3},"=",{"$f":"I56*K56","v":0}]
[null,"+",null,"Dinner",null,"x",null,"=",{"$f":"E57*G57","v":0},"x",{"$f":"DINNER","v":23.1},"=",{"$f":"I57*K57","v":0}]
[null,"+",null,"Lodging",null,"x",null,"=",{"$f":"E58*G58","v":0},"x",{"$f":"LODGING_LUMP.SUM","v":95},"=",{"$f":"I58*K58","v":0}]
[]
[]
[null,"(D)","MISC."]
[null,null,null,"LIST",null,null,null,null,"NUMBER",null,"RATE",null,"COSTS"]
[]
[null,"+",null,"Postage",null,null,null,null,null,"x",null,"=",{"$f":"I64*K64","v":0}]
[null,"+",null,null,null,null,null,null,null,"x",null,"=",{"$f":"I65*K65","v":0}]
[null,"+",null,null,null,null,null,null,null,"x",null,"=",0]
[]
[null,null,null,"TOTAL TRAVEL & MISCELLANEOUS COSTS (C + D)",null,null,null,null,null,null,null,"=",{"$f":"SUM(M45:M51,M55:M58,M64:M66)","v":0}]
[]
[null,null,"TOTALS"]
[]
[null,null,null,"TOTAL REPRODUCTION   ",null,null,null,null,null,null,null,"=",{"$f":"'RD-Exp'!M41","v":0}]
[]
[null,null,null,"TOTAL TRAVEL & MISCELLANEOUS COSTS (C + D)",null,null,null,null,null,null,null,"=",{"$f":"M68","v":0}]
[]
[null,null,null,"TOTAL DIRECT NON-SALARY COSTS",null,null,null,null,null,null,null,"=",{"$f":"M74+M72","v":0}]
[]
[null,null,"NOTES"]
[]
[null,"*",null,"Use only items that are not included in overhead."]
[null,"+",null,"See DOT Guidelines for current maximum allowable non-salary direct costs."]

{"sheet":"ErosionControl","index":42,"n_rows":136,"n_cols":16384,"rows_kept":136,"cut":false,"hidden":true,"merged":[[56,1,56,3],[57,1,57,3],[58,1,58,3],[51,1,51,3],[52,1,52,3],[53,1,53,3],[54,1,54,3],[55,1,55,3],[46,1,46,3],[47,1,47,3],[48,1,48,3],[49,1,49,3],[50,1,50,3],[41,1,41,3],[42,1,42,3],[43,1,43,3],[44,1,44,3],[45,1,45,3],[36,1,36,3],[37,1,37,3],[38,1,38,3],[39,1,39,3],[40,1,40,3],[31,1,31,3],[32,1,32,3],[33,1,33,3],[34,1,34,3],[35,1,35,3],[67,6,67,7],[16,3,17,13],[22,4,23,4],[21,4,21,13],[22,13,23,13],[22,8,23,8],[22,7,23,7],[22,6,23,6],[22,5,23,5],[63,11,64,11],[63,12,64,12],[63,0,64,3],[63,4,64,4],[63,13,64,13],[61,9,62,9],[61,10,62,10],[63,5,64,5],[63,6,64,6],[63,7,64,7],[63,8,64,8],[59,14,60,14],[61,8,62,8],[61,11,62,11],[61,12,62,12],[63,9,64,9],[63,10,64,10],[61,13,62,13],[61,0,62,3],[61,4,62,4],[61,5,62,5],[61,6,62,6],[61,7,62,7],[21,15,24,15],[0,7,0,8],[4,3,4,5],[6,3,6,5],[24,0,24,3],[1,5,1,8],[22,10,23,10],[22,9,23,9],[22,11,23,11],[22,12,23,12],[8,3,8,4],[10,3,10,4],[12,3,12,4],[14,3,14,4],[21,14,24,14],[30,1,30,3],[25,1,25,3],[26,1,26,3],[27,1,27,3],[28,1,28,3],[29,1,29,3]]}
[]
["EROSION CONTROL",null,null,null,"PEF NAME:",{"$f":"EROSION.CONTROL_CONSULTANT_NAME","v":"CONSULTANT NAME"}]
[]
[]
["PREPARED BY: ",null," ",{"$f":"IF(SCOPE.MANDAY.ESTIMATE.PREPARED.BY=\"\",\"\",SCOPE.MANDAY.ESTIMATE.PREPARED.BY)","v":""},null,null,null,"DATE:",{"$f":"IF(SCOPE.MANDAY.ESTIMATE.PREPARED.BY.DATE=\"\",\"\",SCOPE.MANDAY.ESTIMATE.PREPARED.BY.DATE)","v":""}]
[]
["SUBMITTED BY:  ",null,null,{"$f":"IF(SCOPE.MANDAY.ESTIMATE.APPROVED.BY=\"\",\"\",SCOPE.MANDAY.ESTIMATE.APPROVED.BY)","v":""},null,null,null,"DATE:",{"$f":"IF(SCOPE.MANDAY.ESTIMATE.APPROVED.BY.DATE=\"\",\"\",SCOPE.MANDAY.ESTIMATE.APPROVED.BY.DATE)","v":""}]
[]
["TIP NUMBER: ",null," ",{"$f":"TIP.NUMBER","v":0}]
[]
["PROJECT NUMBER:",null," ",{"$f":"PROJECT.NUMBER","v":0}]
[]
["COUNTY:",null," ",{"$f":"COUNTY","v":0}]
[]
["FA NUMBER:",null," ",{"$f":"FA.NUMBER","v":0}]
[]
["PROJECT DESCRIPTION:",null,null,{"$f":"PROJECT.DESCRIPTION","v":0}]
[]
[]
[null,null," "]
[]
[null,null,null,null,"ESTIMATED WORKHOURS",null,null,null,null,null,null,null,null,null,"TOTAL","NOTES"]
[null,null,"  CLASSIFICATION",null,{"$f":"IF('PEF CLASSIFICATION SHEET'!C285=\"\",\"\",'PEF CLASSIFICATION SHEET'!C285)","v":"PROJECT MANAGER"},{"$f":"IF('PEF CLASSIFICATION SHEET'!C286=\"\",\"\",'PEF CLASSIFICATION SHEET'!C286)","v":"PROJECT ENGINEER"},{"$f":"IF('PEF CLASSIFICATION SHEET'!C287=\"\",\"\",'PEF CLASSIFICATION SHEET'!C287)","v":"DESIGN ENGINEER"},{"$f":"IF('PEF CLASSIFICATION SHEET'!C288=\"\",\"\",'PEF CLASSIFICATION SHEET'!C288)","v":"SENIOR TECH."},{"$f":"IF('PEF CLASSIFICATION SHEET'!C289=\"\",\"\",'PEF CLASSIFICATION SHEET'!C289)","v":"TECH. / DRAFT."},{"$f":"IF('PEF CLASSIFICATION SHEET'!C290=\"\",\"\",'PEF CLASSIFICATION SHEET'!C290)","v":""},{"$f":"IF('PEF CLASSIFICATION SHEET'!C291=\"\",\"\",'PEF CLASSIFICATION SHEET'!C291)","v":""},{"$f":"IF('PEF CLASSIFICATION SHEET'!C292=\"\",\"\",'PEF CLASSIFICATION SHEET'!C292)","v":""},{"$f":"IF('PEF CLASSIFICATION SHEET'!C293=\"\",\"\",'PEF CLASSIFICATION SHEET'!C293)","v":""},{"$f":"IF('PEF CLASSIFICATION SHEET'!C294=\"\",\"\",'PEF CLASSIFICATION SHEET'!C294)","v":""}]
["TASK"]
["EMPLOYEE NAME",null,null,null,{"$f":"IF('PEF CLASSIFICATION SHEET'!D285=\"\",\"\",LEFT('PEF CLASSIFICATION SHEET'!D285,4))","v":""},{"$f":"IF('PEF CLASSIFICATION SHEET'!D286=\"\",\"\",LEFT('PEF CLASSIFICATION SHEET'!D286,4))","v":""},{"$f":"IF('PEF CLASSIFICATION SHEET'!D287=\"\",\"\",LEFT('PEF CLASSIFICATION SHEET'!D287,4))","v":""},{"$f":"IF('PEF CLASSIFICATION SHEET'!D288=\"\",\"\",LEFT('PEF CLASSIFICATION SHEET'!D288,4))","v":""},{"$f":"IF('PEF CLASSIFICATION SHEET'!D289=\"\",\"\",LEFT('PEF CLASSIFICATION SHEET'!D289,4))","v":""},{"$f":"IF('PEF CLASSIFICATION SHEET'!D290=\"\",\"\",LEFT('PEF CLASSIFICATION SHEET'!D290,4))","v":""},{"$f":"IF('PEF CLASSIFICATION SHEET'!D291=\"\",\"\",LEFT('PEF CLASSIFICATION SHEET'!D291,4))","v":""},{"$f":"IF('PEF CLASSIFICATION SHEET'!D292=\"\",\"\",LEFT('PEF CLASSIFICATION SHEET'!D292,4))","v":""},{"$f":"IF('PEF CLASSIFICATION SHEET'!D293=\"\",\"\",LEFT('PEF CLASSIFICATION SHEET'!D293,4))","v":""},{"$f":"IF('PEF CLASSIFICATION SHEET'!D294=\"\",\"\",LEFT('PEF CLASSIFICATION SHEET'!D294,4))","v":""}]
["2RE1","Initiate Erosion Control and Sediment Plans",null,null,null,null,null,null,null,null,null,null,null,null,{"$f":"SUM(E26:N26)","v":0},null,null,null,null,null,null,null,null,null,null,null,null,null,null,null,null,null,null,null,null,null,null,null,null,null,null,null,null,null,null,null,null,null,null,null,null,null,null,null,null,null,null,null,null,null,null,null,null,null,null,null,null,null,null,null,null,null,null,null,null,null,null,null,null,null,null,null,null,null,null,null,null,null,null,null,null,null,null,null,null,null,null,null,null,null,null,null,null,null,null,null,null,null,null,null,null,null,null,null,null,null,null,null,null,null,null,null,null,null,null,null,null,null,null,null,null,null,null,null,null,null,null,null,null,null,null,null,null,null,null,null,null,null,null,null,null,null,null,null,null,null,null,null,null,null,null,null,null,null,null,null,null,null,null,null,null,null,null,null,null,null,null,null,null,null,null,null,null,null,null,null,null,null,null,null,null,null,null,null,null,null,null,null,null,null,null,null,null,null,null,null,null,null,null,null,null,null,null,null,null,null,null,null,null,null,null,null,null,null,null,null,null,null,null,null,null,null,null,null,null,null,null,null,null,null,null,null,null,null,null,null,null,null,null,null,null,null,null,null,null,null,null,null,null,null,null,null,null,null,null,null,null,null,null,null,null,null,null,null,null,null,null,null,null,null,null,null,null,null,null,null,null,null,null,null,null,null,null,null,null,null,null,null,null,null,null,null,null,null,null,null,null,null,null,null,null,null,null,null,null,null,null,null,null,null,null,null,null,null,null,null,null,null,null,null,null,null,null,null,null,null,null,null,null,null,null,null,null,null,null,null,null,null,null,null,null,null,null,null,null,null,null,null,null,null,null,null,null,null,null,null,null,null,null,null,null,null,null,null,null,null,null,null,null,null,null,null,null,null,null,null,null,null,null,null,null,null,null,null,null,null,null,null,null,null,null,null,null,null,null,null,null,null,null,null,null,null,null,null,null,null,null,null,null,null,null,null,null,null,null,null,null,null,null,null,null,null,null,null,null,null,null,null,null,null,null,null,null,null,null,null,null,null,null,null,null,null,null,null,null,null,null,null,null,null,null,null,null,null,null,null,null,null,null,null,null,null,null,null,null,null,null,null,null,null,null,null,null,null,null,null,null,null,null,null,null,null,null,null,null,null,null,null,null,null,null,null,null,null,null,null,null,null,null,null,null,null,null,null,null,null,null,null,null,null,null,null,null,null,null,null,null,null,null,null,null,null,null,null,null,null,null,null,null,null,null,null,null,null,null,null,null,null,null,null,null,null,null,null,null,null,null,null,null,null,null,null,null,null,null,null,null,null,null,null,null,null,null,null,null,null,null,null,null,null,null,null,null,null,null,null,null,null,null,null,null,null,null,null,null,null,null,null,null,null,null,null,null,null,null,null,null,null,null,null,null,null,null,null,null,null,null,null,null,null,null,null,null,null,null,null,null,null,null,null,null,null,null,null,null,null,null,null,null,null,null,null,null,null,null,null,null,null,null,null,null,null,null,null,null,null,null,null,null,null,null,null,null,null,null,null,null,null,null,null,null,null,null,null,null,null,null,null,null,null,null,null,null,null,null,null,null,null,null,null,null,null,null,null,null,null,null,null,null,null,null,null,null,null,null,null,null,null,null,null,null,null,null,null,null,null,null,null,null,null,null,null,null,null,null,null,null,null,null,null,null,null,null,null,null,null,null,null,null,null,null,null,null,null,null,null,null,null,null,null,null,null,null,null,null,null,null,null,null,null,null,null,null,null,null,null,null,null,null,null,null,null,null,null,null,null,null,null,null,null,null,null,null,null,null,null,null,null,null,null,null,null,null,null,null,null,null,null,null,null,null,null,null,null,null,null,null,null,null,null,null,null,null,null,null,null,null,null,null,null,null,null,null,null,null,null,null,null,null,null,null,null,null,null,null,null,null,null,null,null,null,null,null,null,null,null,null,null,null,null,null,null,null,null,null,null,null,null,null,null,null,null,null,null,null,null,null,null,null,null,null,null,null,null,null,null,null,null,null,null,null,null,null,null,null,null,null,null,null,null,null,null,null,null,null,null,null,null,null,null,null,null,null,null,null,null,null,null,null,null,null,null,null,null,null,null,null,null,null,null,null,null,null,null,null,null,null,null,null,null,null,null,null,null,null,null,null,null,null,null,null,null,null,null,null,null,null,null,null,null,null,null,null,null,null,null,null,null,null,null,null,null,null,null,null,null,null,null,null,null,null,null,null,null,null,null,null,null,null,null,null,null,null,null,null,null,null,null,null,null,null,null,null,null,null,null,null,null,null,null,null,null,null,null,null,null,null,null,null,null,null,null,null,null,null,null,null,null,null,null,null,null,null,null,null,null,null,null,null,null,null,null,null,null,null,null,null,null,null,null,null,null,null,null,null,null,null,null,null,null,null,null,null,null,null,null,null,null,null,null,null,null,null,null,null,null,null,null,null,null,null,null,null,null,null,null,null,null,null,null,null,null,null,null,null,null,null,null,null,null,null,null,null,null,null,null,null,null,null,null,null,null,null,null,null,null,null,null,null,null,null,null,null,null,null,null,null,null,null,null,null,null,null,null,null,null,null,null,null,null,null,null,null,null,null,null,null,null,null,null,null,null,null,null,null,null,null,null,null,null,null,null,null,null,null,null,null,null,null,null,null,null,null,null,null,null,null,null,null,null,null,null,null,null,null,null,null,null,null,null,null,null,null,null,null,null,null,null,null,null,null,null,null,null,null,null,null,null,null,null,null,null,null,null,null,null,null,null,null,null,null,null,null,null,null,null,null,null,null,null,null,null,null,null,null,null,null,null,null,null,null,null,null,null,null,null,null,null,null,null,null,null,null,null,null,null,null,null,null,null,null,null,null,null,null,null,null,null,null,null,null,null,null,null,null,null,null,null,null,null,null,null,null,null,null,null,null,null,null,null,null,null,null,null,null,null,null,null,null,null,null,null,null,null,null,null,null,null,null,null,null,null,null,null,null,null,null,null,null,null,null,null,null,null,null,null,null,null,null,null,null,null,null,null,null,null,null,null,null,null,null,null,null,null,null,null,null,null,null,null,null,null,null,null,null,null,null,null,null,null,null,null,null,null,null,null,null,null,null,null,null,null,null,null,null,null,null,null,null,null,null,null,null,null,null,null,null,null,null,null,null,null,null,null,null,null,null,null,null,null,null,null,null,null,null,null,null,null,null,null,null,null,null,null,null,null,null,null,null,null,null,null,null,null,null,null,null,null,null,null,null,null,null,null,null,null,null,null,null,null,null,null,null,null,null,null,null,null,null,null,null,null,null,null,null,null,null,null,null,null,null,null,null,null,null,null,null,null,null,null,null,null,null,null,null,null,null,null,null,null,null,null,null,null,null,null,null,null,null,null,null,null,null,null,null,null,null,null,null,null,null,null,null,null,null,null,null,null,null,null,null,null,null,null,null,null,null,null,null,null,null,null,null,null,null,null,null,null,null,null,null,null,null,null,null,null,null,null,null,null,null,null,null,null,null,null,null,null,null,null,null,null,null,null,null,null,null,null,null,null,null,null,null,null,null,null,null,null,null,null,null,null,null,null,null,null,null,null,null,null,null,null,null,null,null,null,null,null,null,null,null,null,null,null,null,null,null,null,null,null,null,null,null,null,null,null,null,null,null,null,null,null,null,null,null,null,null,null,null,null,null,null,null,null,null,null,null,null,null,null,null,null,null,null,null,null,null,null,null,null,null,null,null,null,null,null,null,null,null,null,null,null,null,null,null,null,null,null,null,null,null,null,null,null,null,null,null,null,null,null,null,null,null,null,null,null,null,null,null,null,null,null,null,null,null,null,null,null,null,null,null,null,null,null,null,null,null,null,null,null,null,null,null,null,null,null,null,null,null,null,null,null,null,null,null,null,null,null,null,null,null,null,null,null,null,null,null,null,null,null,null,null,null,null,null,null,null,null,null,null,null,null,null,null,null,null,null,null,null,null,null,null,null,null,null,null,null,null,null,null,null,null,null,null,null,null,null,null,null,null,null,null,null,null,null,null,null,null,null,null,null,null,null,null,null,null,null,null,null,null,null,null,null,null,null,null,null,null,null,null,null,null,null,null,null,null,null,null,null,null,null,null,null,null,null,null,null,null,null,null,null,null,null,null,null,null,null,null,null,null,null,null,null,null,null,null,null,null,null,null,null,null,null,null,null,null,null,null,null,null,null,null,null,null,null,null,null,null,null,null,null,null,null,null,null,null,null,null,null,null,null,null,null,null,null,null,null,null,null,null,null,null,null,null,null,null,null,null,null,null,null,null,null,null,null,null,null,null,null,null,null,null,null,null,null,null,null,null,null,null,null,null,null,null,null,null,null,null,null,null,null,null,null,null,null,null,null,null,null,null,null,null,null,null,null,null,null,null,null,null,null,null,null,null,null,null,null,null,null,null,null,null,null,null,null,null,null,null,null,null,null,null,null,null,null,null,null,null,null,null,null,null,null,null,null,null,null,null,null,null,null,null,null,null,null,null,null,null,null,null,null,null,null,null,null,null,null,null,null,null,null,null,null,null,null,null,null,null,null,null,null,null,null,null,null,null,null,null,null,null,null,null,null,null,null,null,null,null,null,null,null,null,null,null,null,null,null,null,null,null,null,null,null,null,null,null,null,null,null,null,null,null,null,null,null,null,null,null,null,null,null,null,null,null,null,null,null,null,null,null,null,null,null,null,null,null,null,null,null,null,null,null,null,null,null,null,null,null,null,null,null,null,null,null,null,null,null,null,null,null,null,null,null,null,null,null,null,null,null,null,null,null,null,null,null,null,null,null,null,null,null,null,null,null,null,null,null,null,null,null,null,null,null,null,null,null,null,null,null,null,null,null,null,null,null,null,null,null,null,null,null,null,null,null,null,null,null,null,null,null,null,null,null,null,null,null,null,null,null,null,null,null,null,null,null,null,null,null,null,null,null,null,null,null,null,null,null,null,null,null,null,null,null,null,null,null,null,null,null,null,null,null,null,null,null,null,null,null,null,null,null,null,null,null,null,null,null,null,null,null,null,null,null,null,null,null,null,null,null,null,null,null,null,null,null,null,null,null,null,null,null,null,null,null,null,null,null,null,null,null,null,null,null,null,null,null,null,null,null,null,null,null,null,null,null,null,null,null,null,null,null,null,null,null,null,null,null,null,null,null,null,null,null,null,null,null,null,null,null,null,null,null,null,null,null,null,null,null,null,null,null,null,null,null,null,null,null,null,null,null,null,null,null,null,null,null,null,null,null,null,null,null,null,null,null,null,null,null,null,null,null,null,null,null,null,null,null,null,null,null,null,null,null,null,null,null,null,null,null,null,null,null,null,null,null,null,null,null,null,null,null,null,null,null,null,null,null,null,null,null,null,null,null,null,null,null,null,null,null,null,null,null,null,null,null,null,null,null,null,null,null,null,null,null,null,null,null,null,null,null,null,null,null,null,null,null,null,null,null,null,null,null,null,null,null,null,null,null,null,null,null,null,null,null,null,null,null,null,null,null,null,null,null,null,null,null,null,null,null,null,null,null,null,null,null,null,null,null,null,null,null,null,null,null,null,null,null,null,null,null,null,null,null,null,null,null,null,null,null,null,null,null,null,null,null,null,null,null,null,null,null,null,null,null,null,null,null,null,null,null,null,null,null,null,null,null,null,null,null,null,null,null,null,null,null,null,null,null,null,null,null,null,null,null,null,null,null,null,null,null,null,null,null,null,null,null,null,null,null,null,null,null,null,null,null,null,null,null,null,null,null,null,null,null,null,null,null,null,null,null,null,null,null,null,null,null,null,null,null,null,null,null,null,null,null,null,null,null,null,null,null,null,null,null,null,null,null,null,null,null,null,null,null,null,null,null,null,null,null,null,null,null,null,null,null,null,null,null,null,null,null,null,null,null,null,null,null,null,null,null,null,null,null,null,null,null,null,null,null,null,null,null,null,null,null,null,null,null,null,null,null,null,null,null,null,null,null,null,null,null,null,null,null,null,null,null,null,null,null,null,null,null,null,null,null,null,null,null,null,null,null,null,null,null,null,null,null,null,null,null,null,null,null,null,null,null,null,null,null,null,null,null,null,null,null,null,null,null,null,null,null,null,null,null,null,null,null,null,null,null,null,null,null,null,null,null,null,null,null,null,null,null,null,null,null,null,null,null,null,null,null,null,null,null,null,null,null,null,null,null,null,null,null,null,null,null,null,null,null,null,null,null,null,null,null,null,null,null,null,null,null,null,null,null,null,null,null,null,null,null,null,null,null,null,null,null,null,null,null,null,null,null,null,null,null,null,null,null,null,null,null,null,null,null,null,null,null,null,null,null,null,null,null,null,null,null,null,null,null,null,null,null,null,null,null,null,null,null,null,null,null,null,null,null,null,null,null,null,null,null,null,null,null,null,null,null,null,null,null,null,null,null,null,null,null,null,null,null,null,null,null,null,null,null,null,null,null,null,null,null,null,null,null,null,null,null,null,null,null,null,null,null,null,null,null,null,null,null,null,null,null,null,null,null,null,null,null,null,null,null,null,null,null,null,null,null,null,null,null,null,null,null,null,null,null,null,null,null,null,null,null,null,null,null,null,null,null,null,null,null,null,null,null,null,null,null,null,null,null,null,null,null,null,null,null,null,null,null,null,null,null,null,null,null,null,null,null,null,null,null,null,null,null,null,null,null,null,null,null,null,null,null,null,null,null,null,null,null,null,null,null,null,null,null,null,null,null,null,null,null,null,null,null,null,null,null,null,null,null,null,null,null,null,null,null,null,null,null,null,null,null,null,null,null,null,null,null,null,null,null,null,null,null,null,null,null,null,null,null,null,null,null,null,null,null,null,null,null,null,null,null,null,null,null,null,null,null,null,null,null,null,null,null,null,null,null,null,null,null,null,null,null,null,null,null,null,null,null,null,null,null,null,null,null,null,null,null,null,null,null,null,null,null,null,null,null,null,null,null,null,null,null,null,null,null,null,null,null,null,null,null,null,null,null,null,null,null,null,null,null,null,null,null,null,null,null,null,null,null,null,null,null,null,null,null,null,null,null,null,null,null,null,null,null,null,null,null,null,null,null,null,null,null,null,null,null,null,null,null,null,null,null,null,null,null,null,null,null,null,null,null,null,null,null,null,null,null,null,null,null,null,null,null,null,null,null,null,null,null,null,null,null,null,null,null,null,null,null,null,null,null,null,null,null,null,null,null,null,null,null,null,null,null,null,null,null,null,null,null,null,null,null,null,null,null,null,null,null,null,null,null,null,null,null,null,null,null,null,null,null,null,null,null,null,null,null,null,null,null,null,null,null,null,null,null,null,null,null,null,null,null,null,null,null,null,null,null,null,null,null,null,null,null,null,null,null,null,null,null,null,null,null,null,null,null,null,null,null,null,null,null,null,null,null,null,null,null,null,null,null,null,null,null,null,null,null,null,null,null,null,null,null,null,null,null,null,null,null,null,null,null,null,null,null,null,null,null,null,null,null,null,null,null,null,null,null,null,null,null,null,null,null,null,null,null,null,null,null,null,null,null,null,null,null,null,null,null,null,null,null,null,null,null,null,null,null,null,null,null,null,null,null,null,null,null,null,null,null,null,null,null,null,null,null,null,null,null,null,null,null,null,null,null,null,null,null,null,null,null,null,null,null,null,null,null,null,null,null,null,null,null,null,null,null,null,null,null,null,null,null,null,null,null,null,null,null,null,null,null,null,null,null,null,null,null,null,null,null,null,null,null,null,null,null,null,null,null,null,null,null,null,null,null,null,null,null,null,null,null,null,null,null,null,null,null,null,null,null,null,null,null,null,null,null,null,null,null,null,null,null,null,null,null,null,null,null,null,null,null,null,null,null,null,null,null,null,null,null,null,null,null,null,null,null,null,null,null,null,null,null,null,null,null,null,null,null,null,null,null,null,null,null,null,null,null,null,null,null,null,null,null,null,null,null,null,null,null,null,null,null,null,null,null,null,null,null,null,null,null,null,null,null,null,null,null,null,null,null,null,null,null,null,null,null,null,null,null,null,null,null,null,null,null,null,null,null,null,null,null,null,null,null,null,null,null,null,null,null,null,null,null,null,null,null,null,null,null,null,null,null,null,null,null,null,null,null,null,null,null,null,null,null,null,null,null,null,null,null,null,null,null,null,null,null,null,null,null,null,null,null,null,null,null,null,null,null,null,null,null,null,null,null,null,null,null,null,null,null,null,null,null,null,null,null,null,null,null,null,null,null,null,null,null,null,null,null,null,null,null,null,null,null,null,null,null,null,null,null,null,null,null,null,null,null,null,null,null,null,null,null,null,null,null,null,null,null,null,null,null,null,null,null,null,null,null,null,null,null,null,null,null,null,null,null,null,null,null,null,null,null,null,null,null,null,null,null,null,null,null,null,null,null,null,null,null,null,null,null,null,null,null,null,null,null,null,null,null,null,null,null,null,null,null,null,null,null,null,null,null,null,null,null,null,null,null,null,null,null,null,null,null,null,null,null,null,null,null,null,null,null,null,null,null,null,null,null,null,null,null,null,null,null,null,null,null,null,null,null,null,null,null,null,null,null,null,null,null,null,null,null,null,null,null,null,null,null,null,null,null,null,null,null,null,null,null,null,null,null,null,null,null,null,null,null,null,null,null,null,null,null,null,null,null,null,null,null,null,null,null,null,null,null,null,null,null,null,null,null,null,null,null,null,null,null,null,null,null,null,null,null,null,null,null,null,null,null,null,null,null,null,null,null,null,null,null,null,null,null,null,null,null,null,null,null,null,null,null,null,null,null,null,null,null,null,null,null,null,null,null,null,null,null,null,null,null,null,null,null,null,null,null,null,null,null,null,null,null,null,null,null,null,null,null,null,null,null,null,null,null,null,null,null,null,null,null,null,null,null,null,null,null,null,null,null,null,null,null,null,null,null,null,null,null,null,null,null,null,null,null,null,null,null,null,null,null,null,null,null,null,null,null,null,null,null,null,null,null,null,null,null,null,null,null,null,null,null,null,null,null,null,null,null,null,null,null,null,null,null,null,null,null,null,null,null,null,null,null,null,null,null,null,null,null,null,null,null,null,null,null,null,null,null,null,null,null,null,null,null,null,null,null,null,null,null,null,null,null,null,null,null,null,null,null,null,null,null,null,null,null,null,null,null,null,null,null,null,null,null,null,null,null,null,null,null,null,null,null,null,null,null,null,null,null,null,null,null,null,null,null,null,null,null,null,null,null,null,null,null,null,null,null,null,null,null,null,null,null,null,null,null,null,null,null,null,null,null,null,null,null,null,null,null,null,null,null,null,null,null,null,null,null,null,null,null,null,null,null,null,null,null,null,null,null,null,null,null,null,null,null,null,null,null,null,null,null,null,null,null,null,null,null,null,null,null,null,null,null,null,null,null,null,null,null,null,null,null,null,null,null,null,null,null,null,null,null,null,null,null,null,null,null,null,null,null,null,null,null,null,null,null,null,null,null,null,null,null,null,null,null,null,null,null,null,null,null,null,null,null,null,null,null,null,null,null,null,null,null,null,null,null,null,null,null,null,null,null,null,null,null,null,null,null,null,null,null,null,null,null,null,null,null,null,null,null,null,null,null,null,null,null,null,null,null,null,null,null,null,null,null,null,null,null,null,null,null,null,null,null,null,null,null,null,null,null,null,null,null,null,null,null,null,null,null,null,null,null,null,null,null,null,null,null,null,null,null,null,null,null,null,null,null,null,null,null,null,null,null,null,null,null,null,null,null,null,null,null,null,null,null,null,null,null,null,null,null,null,null,null,null,null,null,null,null,null,null,null,null,null,null,null,null,null,null,null,null,null,null,null,null,null,null,null,null,null,null,null,null,null,null,null,null,null,null,null,null,null,null,null,null,null,null,null,null,null,null,null,null,null,null,null,null,null,null,null,null,null,null,null,null,null,null,null,null,null,null,null,null,null,null,null,null,null,null,null,null,null,null,null,null,null,null,null,null,null,null,null,null,null,null,null,null,null,null,null,null,null,null,null,null,null,null,null,null,null,null,null,null,null,null,null,null,null,null,null,null,null,null,null,null,null,null,null,null,null,null,null,null,null,null,null,null,null,null,null,null,null,null,null,null,null,null,null,null,null,null,null,null,null,null,null,null,null,null,null,null,null,null,null,null,null,null,null,null,null,null,null,null,null,null,null,null,null,null,null,null,null,null,null,null,null,null,null,null,null,null,null,null,null,null,null,null,null,null,null,null,null,null,null,null,null,null,null,null,null,null,null,null,null,null,null,null,null,null,null,null,null,null,null,null,null,null,null,null,null,null,null,null,null,null,null,null,null,null,null,null,null,null,null,null,null,null,null,null,null,null,null,null,null,null,null,null,null,null,null,null,null,null,null,null,null,null,null,null,null,null,null,null,null,null,null,null,null,null,null,null,null,null,null,null,null,null,null,null,null,null,null,null,null,null,null,null,null,null,null,null,null,null,null,null,null,null,null,null,null,null,null,null,null,null,null,null,null,null,null,null,null,null,null,null,null,null,null,null,null,null,null,null,null,null,null,null,null,null,null,null,null,null,null,null,null,null,null,null,null,null,null,null,null,null,null,null,null,null,null,null,null,null,null,null,null,null,null,null,null,null,null,null,null,null,null,null,null,null,null,null,null,null,null,null,null,null,null,null,null,null,null,null,null,null,null,null,null,null,null,null,null,null,null,null,null,null,null,null,null,null,null,null,null,null,null,null,null,null,null,null,null,null,null,null,null,null,null,null,null,null,null,null,null,null,null,null,null,null,null,null,null,null,null,null,null,null,null,null,null,null,null,null,null,null,null,null,null,null,null,null,null,null,null,null,null,null,null,null,null,null,null,null,null,null,null,null,null,null,null,null,null,null,null,null,null,null,null,null,null,null,null,null,null,null,null,null,null,null,null,null,null,null,null,null,null,null,null,null,null,null,null,null,null,null,null,null,null,null,null,null,null,null,null,null,null,null,null,null,null,null,null,null,null,null,null,null,null,null,null,null,null,null,null,null,null,null,null,null,null,null,null,null,null,null,null,null,null,null,null,null,null,null,null,null,null,null,null,null,null,null,null,null,null,null,null,null,null,null,null,null,null,null,null,null,null,null,null,null,null,null,null,null,null,null,null,null,null,null,null,null,null,null,null,null,null,null,null,null,null,null,null,null,null,null,null,null,null,null,null,null,null,null,null,null,null,null,null,null,null,null,null,null,null,null,null,null,null,null,null,null,null,null,null,null,null,null,null,null,null,null,null,null,null,null,null,null,null,null,null,null,null,null,null,null,null,null,null,null,null,null,null,null,null,null,null,null,null,null,null,null,null,null,null,null,null,null,null,null,null,null,null,null,null,null,null,null,null,null,null,null,null,null,null,null,null,null,null,null,null,null,null,null,null,null,null,null,null,null,null,null,null,null,null,null,null,null,null,null,null,null,null,null,null,null,null,null,null,null,null,null,null,null,null,null,null,null,null,null,null,null,null,null,null,null,null,null,null,null,null,null,null,null,null,null,null,null,null,null,null,null,null,null,null,null,null,null,null,null,null,null,null,null,null,null,null,null,null,null,null,null,null,null,null,null,null,null,null,null,null,null,null,null,null,null,null,null,null,null,null,null,null,null,null,null,null,null,null,null,null,null,null,null,null,null,null,null,null,null,null,null,null,null,null,null,null,null,null,null,null,null,null,null,null,null,null,null,null,null,null,null,null,null,null,null,null,null,null,null,null,null,null,null,null,null,null,null,null,null,null,null,null,null,null,null,null,null,null,null,null,null,null,null,null,null,null,null,null,null,null,null,null,null,null,null,null,null,null,null,null,null,null,null,null,null,null,null,null,null,null,null,null,null,null,null,null,null,null,null,null,null,null,null,null,null,null,null,null,null,null,null,null,null,null,null,null,null,null,null,null,null,null,null,null,null,null,null,null,null,null,null,null,null,null,null,null,null,null,null,null,null,null,null,null,null,null,null,null,null,null,null,null,null,null,null,null,null,null,null,null,null,null,null,null,null,null,null,null,null,null,null,null,null,null,null,null,null,null,null,null,null,null,null,null,null,null,null,null,null,null,null,null,null,null,null,null,null,null,null,null,null,null,null,null,null,null,null,null,null,null,null,null,null,null,null,null,null,null,null,null,null,null,null,null,null,null,null,null,null,null,null,null,null,null,null,null,null,null,null,null,null,null,null,null,null,null,null,null,null,null,null,null,null,null,null,null,null,null,null,null,null,null,null,null,null,null,null,null,null,null,null,null,null,null,null,null,null,null,null,null,null,null,null,null,null,null,null,null,null,null,null,null,null,null,null,null,null,null,null,null,null,null,null,null,null,null,null,null,null,null,null,null,null,null,null,null,null,null,null,null,null,null,null,null,null,null,null,null,null,null,null,null,null,null,null,null,null,null,null,null,null,null,null,null,null,null,null,null,null,null,null,null,null,null,null,null,null,null,null,null,null,null,null,null,null,null,null,null,null,null,null,null,null,null,null,null,null,null,null,null,null,null,null,null,null,null,null,null,null,null,null,null,null,null,null,null,null,null,null,null,null,null,null,null,null,null,null,null,null,null,null,null,null,null,null,null,null,null,null,null,null,null,null,null,null,null,null,null,null,null,null,null,null,null,null,null,null,null,null,null,null,null,null,null,null,null,null,null,null,null,null,null,null,null,null,null,null,null,null,null,null,null,null,null,null,null,null,null,null,null,null,null,null,null,null,null,null,null,null,null,null,null,null,null,null,null,null,null,null,null,null,null,null,null,null,null,null,null,null,null,null,null,null,null,null,null,null,null,null,null,null,null,null,null,null,null,null,null,null,null,null,null,null,null,null,null,null,null,null,null,null,null,null,null,null,null,null,null,null,null,null,null,null,null,null,null,null,null,null,null,null,null,null,null,null,null,null,null,null,null,null,null,null,null,null,null,null,null,null,null,null,null,null,null,null,null,null,null,null,null,null,null,null,null,null,null,null,null,null,null,null,null,null,null,null,null,null,null,null,null,null,null,null,null,null,null,null,null,null,null,null,null,null,null,null,null,null,null,null,null,null,null,null,null,null,null,null,null,null,null,null,null,null,null,null,null,null,null,null,null,null,null,null,null,null,null,null,null,null,null,null,null,null,null,null,null,null,null,null,null,null,null,null,null,null,null,null,null,null,null,null,null,null,null,null,null,null,null,null,null,null,null,null,null,null,null,null,null,null,null,null,null,null,null,null,null,null,null,null,null,null,null,null,null,null,null,null,null,null,null,null,null,null,null,null,null,null,null,null,null,null,null,null,null,null,null,null,null,null,null,null,null,null,null,null,null,null,null,null,null,null,null,null,null,null,null,null,null,null,null,null,null,null,null,null,null,null,null,null,null,null,null,null,null,null,null,null,null,null,null,null,null,null,null,null,null,null,null,null,null,null,null,null,null,null,null,null,null,null,null,null,null,null,null,null,null,null,null,null,null,null,null,null,null,null,null,null,null,null,null,null,null,null,null,null,null,null,null,null,null,null,null,null,null,null,null,null,null,null,null,null,null,null,null,null,null,null,null,null,null,null,null,null,null,null,null,null,null,null,null,null,null,null,null,null,null,null,null,null,null,null,null,null,null,null,null,null,null,null,null,null,null,null,null,null,null,null,null,null,null,null,null,null,null,null,null,null,null,null,null,null,null,null,null,null,null,null,null,null,null,null,null,null,null,null,null,null,null,null,null,null,null,null,null,null,null,null,null,null,null,null,null,null,null,null,null,null,null,null,null,null,null,null,null,null,null,null,null,null,null,null,null,null,null,null,null,null,null,null,null,null,null,null,null,null,null,null,null,null,null,null,null,null,null,null,null,null,null,null,null,null,null,null,null,null,null,null,null,null,null,null,null,null,null,null,null,null,null,null,null,null,null,null,null,null,null,null,null,null,null,null,null,null,null,null,null,null,null,null,null,null,null,null,null,null,null,null,null,null,null,null,null,null,null,null,null,null,null,null,null,null,null,null,null,null,null,null,null,null,null,null,null,null,null,null,null,null,null,null,null,null,null,null,null,null,null,null,null,null,null,null,null,null,null,null,null,null,null,null,null,null,null,null,null,null,null,null,null,null,null,null,null,null,null,null,null,null,null,null,null,null,null,null,null,null,null,null,null,null,null,null,null,null,null,null,null,null,null,null,null,null,null,null,null,null,null,null,null,null,null,null,null,null,null,null,null,null,null,null,null,null,null,null,null,null,null,null,null,null,null,null,null,null,null,null,null,null,null,null,null,null,null,null,null,null,null,null,null,null,null,null,null,null,null,null,null,null,null,null,null,null,null,null,null,null,null,null,null,null,null,null,null,null,null,null,null,null,null,null,null,null,null,null,null,null,null,null,null,null,null,null,null,null,null,null,null,null,null,null,null,null,null,null,null,null,null,null,null,null,null,null,null,null,null,null,null,null,null,null,null,null,null,null,null,null,null,null,null,null,null,null,null,null,null,null,null,null,null,null,null,null,null,null,null,null,null,null,null,null,null,null,null,null,null,null,null,null,null,null,null,null,null,null,null,null,null,null,null,null,null,null,null,null,null,null,null,null,null,null,null,null,null,null,null,null,null,null,null,null,null,null,null,null,null,null,null,null,null,null,null,null,null,null,null,null,null,null,null,null,null,null,null,null,null,null,null,null,null,null,null,null,null,null,null,null,null,null,null,null,null,null,null,null,null,null,null,null,null,null,null,null,null,null,null,null,null,null,null,null,null,null,null,null,null,null,null,null,null,null,null,null,null,null,null,null,null,null,null,null,null,null,null,null,null,null,null,null,null,null,null,null,null,null,null,null,null,null,null,null,null,null,null,null,null,null,null,null,null,null,null,null,null,null,null,null,null,null,null,null,null,null,null,null,null,null,null,null,null,null,null,null,null,null,null,null,null,null,null,null,null,null,null,null,null,null,null,null,null,null,null,null,null,null,null,null,null,null,null,null,null,null,null,null,null,null,null,null,null,null,null,null,null,null,null,null,null,null,null,null,null,null,null,null,null,null,null,null,null,null,null,null,null,null,null,null,null,null,null,null,null,null,null,null,null,null,null,null,null,null,null,null,null,null,null,null,null,null,null,null,null,null,null,null,null,null,null,null,null,null,null,null,null,null,null,null,null,null,null,null,null,null,null,null,null,null,null,null,null,null,null,null,null,null,null,null,null,null,null,null,null,null,null,null,null,null,null,null,null,null,null,null,null,null,null,null,null,null,null,null,null,null,null,null,null,null,null,null,null,null,null,null,null,null,null,null,null,null,null,null,null,null,null,null,null,null,null,null,null,null,null,null,null,null,null,null,null,null,null,null,null,null,null,null,null,null,null,null,null,null,null,null,null,null,null,null,null,null,null,null,null,null,null,null,null,null,null,null,null,null,null,null,null,null,null,null,null,null,null,null,null,null,null,null,null,null,null,null,null,null,null,null,null,null,null,null,null,null,null,null,null,null,null,null,null,null,null,null,null,null,null,null,null,null,null,null,null,null,null,null,null,null,null,null,null,null,null,null,null,null,null,null,null,null,null,null,null,null,null,null,null,null,null,null,null,null,null,null,null,null,null,null,null,null,null,null,null,null,null,null,null,null,null,null,null,null,null,null,null,null,null,null,null,null,null,null,null,null,null,null,null,null,null,null,null,null,null,null,null,null,null,null,null,null,null,null,null,null,null,null,null,null,null,null,null,null,null,null,null,null,null,null,null,null,null,null,null,null,null,null,null,null,null,null,null,null,null,null,null,null,null,null,null,null,null,null,null,null,null,null,null,null,null,null,null,null,null,null,null,null,null,null,null,null,null,null,null,null,null,null,null,null,null,null,null,null,null,null,null,null,null,null,null,null,null,null,null,null,null,null,null,null,null,null,null,null,null,null,null,null,null,null,null,null,null,null,null,null,null,null,null,null,null,null,null,null,null,null,null,null,null,null,null,null,null,null,null,null,null,null,null,null,null,null,null,null,null,null,null,null,null,null,null,null,null,null,null,null,null,null,null,null,null,null,null,null,null,null,null,null,null,null,null,null,null,null,null,null,null,null,null,null,null,null,null,null,null,null,null,null,null,null,null,null,null,null,null,null,null,null,null,null,null,null,null,null,null,null,null,null,null,null,null,null,null,null,null,null,null,null,null,null,null,null,null,null,null,null,null,null,null,null,null,null,null,null,null,null,null,null,null,null,null,null,null,null,null,null,null,null,null,null,null,null,null,null,null,null,null,null,null,null,null,null,null,null,null,null,null,null,null,null,null,null,null,null,null,null,null,null,null,null,null,null,null,null,null,null,null,null,null,null,null,null,null,null,null,null,null,null,null,null,null,null,null,null,null,null,null,null,null,null,null,null,null,null,null,null,null,null,null,null,null,null,null,null,null,null,null,null,null,null,null,null,null,null,null,null,null,null,null,null,null,null,null,null,null,null,null,null,null,null,null,null,null,null,null,null,null,null,null,null,null,null,null,null,null,null,null,null,null,null,null,null,null,null,null,null,null,null,null,null,null,null,null,null,null,null,null,null,null,null,null,null,null,null,null,null,null,null,null,null,null,null,null,null,null,null,null,null,null,null,null,null,null,null,null,null,null,null,null,null,null,null,null,null,null,null,null,null,null,null,null,null,null,null,null,null,null,null,null,null,null,null,null,null,null,null,null,null,null,null,null,null,null,null,null,null,null,null,null,null,null,null,null,null,null,null,null,null,null,null,null,null,null,null,null,null,null,null,null,null,null,null,null,null,null,null,null,null,null,null,null,null,null,null,null,null,null,null,null,null,null,null,null,null,null,null,null,null,null,null,null,null,null,null,null,null,null,null,null,null,null,null,null,null,null,null,null,null,null,null,null,null,null,null,null,null,null,null,null,null,null,null,null,null,null,null,null,null,null,null,null,null,null,null,null,null,null,null,null,null,null,null,null,null,null,null,null,null,null,null,null,null,null,null,null,null,null,null,null,null,null,null,null,null,null,null,null,null,null,null,null,null,null,null,null,null,null,null,null,null,null,null,null,null,null,null,null,null,null,null,null,null,null,null,null,null,null,null,null,null,null,null,null,null,null,null,null,null,null,null,null,null,null,null,null,null,null,null,null,null,null,null,null,null,null,null,null,null,null,null,null,null,null,null,null,null,null,null,null,null,null,null,null,null,null,null,null,null,null,null,null,null,null,null,null,null,null,null,null,null,null,null,null,null,null,null,null,null,null,null,null,null,null,null,null,null,null,null,null,null,null,null,null,null,null,null,null,null,null,null,null,null,null,null,null,null,null,null,null,null,null,null,null,null,null,null,null,null,null,null,null,null,null,null,null,null,null,null,null,null,null,null,null,null,null,null,null,null,null,null,null,null,null,null,null,null,null,null,null,null,null,null,null,null,null,null,null,null,null,null,null,null,null,null,null,null,null,null,null,null,null,null,null,null,null,null,null,null,null,null,null,null,null,null,null,null,null,null,null,null,null,null,null,null,null,null,null,null,null,null,null,null,null,null,null,null,null,null,null,null,null,null,null,null,null,null,null,null,null,null,null,null,null,null,null,null,null,null,null,null,null,null,null,null,null,null,null,null,null,null,null,null,null,null,null,null,null,null,null,null,null,null,null,null,null,null,null,null,null,null,null,null,null,null,null,null,null,null,null,null,null,null,null,null,null,null,null,null,null,null,null,null,null,null,null,null,null,null,null,null,null,null,null,null,null,null,null,null,null,null,null,null,null,null,null,null,null,null,null,null,null,null,null,null,null,null,null,null,null,null,null,null,null,null,null,null,null,null,null,null,null,null,null,null,null,null,null,null,null,null,null,null,null,null,null,null,null,null,null,null,null,null,null,null,null,null,null,null,null,null,null,null,null,null,null,null,null,null,null,null,null,null,null,null,null,null,null,null,null,null,null,null,null,null,null,null,null,null,null,null,null,null,null,null,null,null,null,null,null,null,null,null,null,null,null,null,null,null,null,null,null,null,null,null,null,null,null,null,null,null,null,null,null,null,null,null,null,null,null,null,null,null,null,null,null,null,null,null,null,null,null,null,null,null,null,null,null,null,null,null,null,null,null,null,null,null,null,null,null,null,null,null,null,null,null,null,null,null,null,null,null,null,null,null,null,null,null,null,null,null,null,null,null,null,null,null,null,null,null,null,null,null,null,null,null,null,null,null,null,null,null,null,null,null,null,null,null,null,null,null,null,null,null,null,null,null,null,null,null,null,null,null,null,null,null,null,null,null,null,null,null,null,null,null,null,null,null,null,null,null,null,null,null,null,null,null,null,null,null,null,null,null,null,null,null,null,null,null,null,null,null,null,null,null,null,null,null,null,null,null,null,null,null,null,null,null,null,null,null,null,null,null,null,null,null,null,null,null,null,null,null,null,null,null,null,null,null,null,null,null,null,null,null,null,null,null,null,null,null,null,null,null,null,null,null,null,null,null,null,null,null,null,null,null,null,null,null,null,null,null,null,null,null,null,null,null,null,null,null,null,null,null,null,null,null,null,null,null,null,null,null,null,null,null,null,null,null,null,null,null,null,null,null,null,null,null,null,null,null,null,null,null,null,null,null,null,null,null,null,null,null,null,null,null,null,null,null,null,null,null,null,null,null,null,null,null,null,null,null,null,null,null,null,null,null,null,null,null,null,null,null,null,null,null,null,null,null,null,null,null,null,null,null,null,null,null,null,null,null,null,null,null,null,null,null,null,null,null,null,null,null,null,null,null,null,null,null,null,null,null,null,null,null,null,null,null,null,null,null,null,null,null,null,null,null,null,null,null,null,null,null,null,null,null,null,null,null,null,null,null,null,null,null,null,null,null,null,null,null,null,null,null,null,null,null,null,null,null,null,null,null,null,null,null,null,null,null,null,null,null,null,null,null,null,null,null,null,null,null,null,null,null,null,null,null,null,null,null,null,null,null,null,null,null,null,null,null,null,null,null,null,null,null,null,null,null,null,null,null,null,null,null,null,null,null,null,null,null,null,null,null,null,null,null,null,null,null,null,null,null,null,null,null,null,null,null,null,null,null,null,null,null,null,null,null,null,null,null,null,null,null,null,null,null,null,null,null,null,null,null,null,null,null,null,null,null,null,null,null,null,null,null,null,null,null,null,null,null,null,null,null,null,null,null,null,null,null,null,null,null,null,null,null,null,null,null,null,null,null,null,null,null,null,null,null,null,null,null,null,null,null,null,null,null,null,null,null,null,null,null,null,null,null,null,null,null,null,null,null,null,null,null,null,null,null,null,null,null,null,null,null,null,null,null,null,null,null,null,null,null,null,null,null,null,null,null,null,null,null,null,null,null,null,null,null,null,null,null,null,null,null,null,null,null,null,null,null,null,null,null,null,null,null,null,null,null,null,null,null,null,null,null,null,null,null,null,null,null,null,null,null,null,null,null,null,null,null,null,null,null,null,null,null,null,null,null,null,null,null,null,null,null,null,null,null,null,null,null,null,null,null,null,null,null,null,null,null,null,null,null,null,null,null,null,null,null,null,null,null,null,null,null,null,null,null,null,null,null,null,null,null,null,null,null,null,null,null,null,null,null,null,null,null,null,null,null,null,null,null,null,null,null,null,null,null,null,null,null,null,null,null,null,null,null,null,null,null,null,null,null,null,null,null,null,null,null,null,null,null,null,null,null,null,null,null,null,null,null,null,null,null,null,null,null,null,null,null,null,null,null,null,null,null,null,null,null,null,null,null,null,null,null,null,null,null,null,null,null,null,null,null,null,null,null,null,null,null,null,null,null,null,null,null,null,null,null,null,null,null,null,null,null,null,null,null,null,null,null,null,null,null,null,null,null,null,null,null,null,null,null,null,null,null,null,null,null,null,null,null,null,null,null,null,null,null,null,null,null,null,null,null,null,null,null,null,null,null,null,null,null,null,null,null,null,null,null,null,null,null,null,null,null,null,null,null,null,null,null,null,null,null,null,null,null,null,null,null,null,null,null,null,null,null,null,null,null,null,null,null,null,null,null,null,null,null,null,null,null,null,null,null,null,null,null,null,null,null,null,null,null,null,null,null,null,null,null,null,null,null,null,null,null,null,null,null,null,null,null,null,null,null,null,null,null,null,null,null,null,null,null,null,null,null,null,null,null,null,null,null,null,null,null,null,null,null,null,null,null,null,null,null,null,null,null,null,null,null,null,null,null,null,null,null,null,null,null,null,null,null,null,null,null,null,null,null,null,null,null,null,null,null,null,null,null,null,null,null,null,null,null,null,null,null,null,null,null,null,null,null,null,null,null,null,null,null,null,null,null,null,null,null,null,null,null,null,null,null,null,null,null,null,null,null,null,null,null,null,null,null,null,null,null,null,null,null,null,null,null,null,null,null,null,null,null,null,null,null,null,null,null,null,null,null,null,null,null,null,null,null,null,null,null,null,null,null,null,null,null,null,null,null,null,null,null,null,null,null,null,null,null,null,null,null,null,null,null,null,null,null,null,null,null,null,null,null,null,null,null,null,null,null,null,null,null,null,null,null,null,null,null,null,null,null,null,null,null,null,null,null,null,null,null,null,null,null,null,null,null,null,null,null,null,null,null,null,null,null,null,null,null,null,null,null,null,null,null,null,null,null,null,null,null,null,null,null,null,null,null,null,null,null,null,null,null,null,null,null,null,null,null,null,null,null,null,null,null,null,null,null,null,null,null,null,null,null,null,null,null,null,null,null,null,null,null,null,null,null,null,null,null,null,null,null,null,null,null,null,null,null,null,null,null,null,null,null,null,null,null,null,null,null,null,null,null,null,null,null,null,null,null,null,null,null,null,null,null,null,null,null,null,null,null,null,null,null,null,null,null,null,null,null,null,null,null,null,null,null,null,null,null,null,null,null,null,null,null,null,null,null,null,null,null,null,null,null,null,null,null,null,null,null,null,null,null,null,null,null,null,null,null,null,null,null,null,null,null,null,null,null,null,null,null,null,null,null,null,null,null,null,null,null,null,null,null,null,null,null,null,null,null,null,null,null,null,null,null,null,null,null,null,null,null,null,null,null,null,null,null,null,null,null,null,null,null,null,null,null,null,null,null,null,null,null,null,null,null,null,null,null,null,null,null,null,null,null,null,null,null,null,null,null,null,null,null,null,null,null,null,null,null,null,null,null,null,null,null,null,null,null,null,null,null,null,null,null,null,null,null,null,null,null,null,null,null,null,null,null,null,null,null,null,null,null,null,null,null,null,null,null,null,null,null,null,null,null,null,null,null,null,null,null,null,null,null,null,null,null,null,null,null,null,null,null,null,null,null,null,null,null,null,null,null,null,null,null,null,null,null,null,null,null,null,null,null,null,null,null,null,null,null,null,null,null,null,null,null,null,null,null,null,null,null,null,null,null,null,null,null,null,null,null,null,null,null,null,null,null,null,null,null,null,null,null,null,null,null,null,null,null,null,null,null,null,null,null,null,null,null,null,null,null,null,null,null,null,null,null,null,null,null,null,null,null,null,null,null,null,null,null,null,null,null,null,null,null,null,null,null,null,null,null,null,null,null,null,null,null,null,null,null,null,null,null,null,null,null,null,null,null,null,null,null,null,null,null,null,null,null,null,null,null,null,null,null,null,null,null,null,null,null,null,null,null,null,null,null,null,null,null,null,null,null,null,null,null,null,null,null,null,null,null,null,null,null,null,null,null,null,null,null,null,null,null,null,null,null,null,null,null,null,null,null,null,null,null,null,null,null,null,null,null,null,null,null,null,null,null,null,null,null,null,null,null,null,null,null,null,null,null,null,null,null,null,null,null,null,null,null,null,null,null,null,null,null,null,null,null,null,null,null,null,null,null,null,null,null,null,null,null,null,null,null,null,null,null,null,null,null,null,null,null,null,null,null,null,null,null,null,null,null,null,null,null,null,null,null,null,null,null,null,null,null,null,null,null,null,null,null,null,null,null,null,null,null,null,null,null,null,null,null,null,null,null,null,null,null,null,null,null,null,null,null,null,null,null,null,null,null,null,null,null,null,null,null,null,null,null,null,null,null,null,null,null,null,null,null,null,null,null,null,null,null,null,null,null,null,null,null,null,null,null,null,null,null,null,null,null,null,null,null,null,null,null,null,null,null,null,null,null,null,null,null,null,null,null,null,null,null,null,null,null,null,null,null,null,null,null,null,null,null,null,null,null,null,null,null,null,null,null,null,null,null,null,null,null,null,null,null,null,null,null,null,null,null,null,null,null,null,null,null,null,null,null,null,null,null,null,null,null,null,null,null,null,null,null,null,null,null,null,null,null,null,null,null,null,null,null,null,null,null,null,null,null,null,null,null,null,null,null,null,null,null,null,null,null,null,null,null,null,null,null,null,null,null,null,null,null,null,null,null,null,null,null,null,null,null,null,null,null,null,null,null,null,null,null,null,null,null,null,null,null,null,null,null,null,null,null,null,null,null,null,null,null,null,null,null,null,null,null,null,null,null,null,null,null,null,null,null,null,null,null,null,null,null,null,null,null,null,null,null,null,null,null,null,null,null,null,null,null,null,null,null,null,null,null,null,null,null,null,null,null,null,null,null,null,null,null,null,null,null,null,null,null,null,null,null,null,null,null,null,null,null,null,null,null,null,null,null,null,null,null,null,null,null,null,null,null,null,null,null,null,null,null,null,null,null,null,null,null,null,null,null,null,null,null,null,null,null,null,null,null,null,null,null,null,null,null,null,null,null,null,null,null,null,null,null,null,null,null,null,null,null,null,null,null,null,null,null,null,null,null,null,null,null,null,null,null,null,null,null,null,null,null,null,null,null,null,null,null,null,null,null,null,null,null,null,null,null,null,null,null,null,null,null,null,null,null,null,null,null,null,null,null,null,null,null,null,null,null,null,null,null,null,null,null,null,null,null,null,null,null,null,null,null,null,null,null,null,null,null,null,null,null,null,null,null,null,null,null,null,null,null,null,null,null,null,null,null,null,null,null,null,null,null,null,null,null,null,null,null,null,null,null,null,null,null,null,null,null,null,null,null,null,null,null,null,null,null,null,null,null,null,null,null,null,null,null,null,null,null,null,null,null,null,null,null,null,null,null,null,null,null,null,null,null,null,null,null,null,null,null,null,null,null,null,null,null,null,null,null,null,null,null,null,null,null,null,null,null,null,null,null,null,null,null,null,null,null,null,null,null,null,null,null,null,null,null,null,null,null,null,null,null,null,null,null,null,null,null,null,null,null,null,null,null,null,null,null,null,null,null,null,null,null,null,null,null,null,null,null,null,null,null,null,null,null,null,null,null,null,null,null,null,null,null,null,null,null,null,null,null,null,null,null,null,null,null,null,null,null,null,null,null,null,null,null,null,null,null,null,null,null,null,null,null,null,null,null,null,null,null,null,null,null,null,null,null,null,null,null,null,null,null,null,null,null,null,null,null,null,null,null,null,null,null,null,null,null,null,null,null,null,null,null,null,null,null,null,null,null,null,null,null,null,null,null,null,null,null,null,null,null,null,null,null,null,null,null,null,null,null,null,null,null,null,null,null,null,null,null,null,null,null,null,null,null,null,null,null,null,null,null,null,null,null,null,null,null,null,null,null,null,null,null,null,null,null,null,null,null,null,null,null,null,null,null,null,null,null,null,null,null,null,null,null,null,null,null,null,null,null,null,null,null,null,null,null,null,null,null,null,null,null,null,null,null,null,null,null,null,null,null,null,null,null,null,null,null,null,null,null,null,null,null,null,null,null,null,null,null,null,null,null,null,null,null,null,null,null,null,null,null,null,null,null,null,null,null,null,null,null,null,null,null,null,null,null,null,null,null,null,null,null,null,null,null,null,null,null,null,null,null,null,null,null,null,null,null,null,null,null,null,null,null,null,null,null,null,null,null,null,null,null,null,null,null,null,null,null,null,null,null,null,null,null,null,null,null,null,null,null,null,null,null,null,null,null,null,null,null,null,null,null,null,null,null,null,null,null,null,null,null,null,null,null,null,null,null,null,null,null,null,null,null,null,null,null,null,null,null,null,null,null,null,null,null,null,null,null,null,null,null,null,null,null,null,null,null,null,null,null,null,null,null,null,null,null,null,null,null,null,null,null,null,null,null,null,null,null,null,null,null,null,null,null,null,null,null,null,null,null,null,null,null,null,null,null,null,null,null,null,null,null,null,null,null,null,null,null,null,null,null,null,null,null,null,null,null,null,null,null,null,null,null,null,null,null,null,null,null,null,null,null,null,null,null,null,null,null,null,null,null,null,null,null,null,null,null,null,null,null,null,null,null,null,null,null,null,null,null,null,null,null,null,null,null,null,null,null,null,null,null,null,null,null,null,null,null,null,null,null,null,null,null,null,null,null,null,null,null,null,null,null,null,null,null,null,null,null,null,null,null,null,null,null,null,null,null,null,null,null,null,null,null,null,null,null,null,null,null,null,null,null,null,null,null,null,null,null,null,null,null,null,null,null,null,null,null,null,null,null,null,null,null,null,null,null,null,null,null,null,null,null,null,null,null,null,null,null,null,null,null,null,null,null,null,null,null,null,null,null,null,null,null,null,null,null,null,null,null,null,null,null,null,null,null,null,null,null,null,null,null,null,null,null,null,null,null,null,null,null,null,null,null,null,null,null,null,null,null,null,null,null,null,null,null,null,null,null,null,null,null,null,null,null,null,null,null,null,null,null,null,null,null,null,null,null,null,null,null,null,null,null,null,null,null,null,null,null,null,null,null,null,null,null,null,null,null,null,null,null,null,null,null,null,null,null,null,null,null,null,null,null,null,null,null,null,null,null,null,null,null,null,null,null,null,null,null,null,null,null,null,null,null,null,null,null,null,null,null,null,null,null,null,null,null,null,null,null,null,null,null,null,null,null,null,null,null,null,null,null,null,null,null,null,null,null,null,null,null,null,null,null,null,null,null,null,null,null,null,null,null,null,null,null,null,null,null,null,null,null,null,null,null,null,null,null,null,null,null,null,null,null,null,null,null,null,null,null,null,null,null,null,null,null,null,null,null,null,null,null,null,null,null,null,null,null,null,null,null,null,null,null,null,null,null,null,null,null,null,null,null,null,null,null,null,null,null,null,null,null,null,null,null,null,null,null,null,null,null,null,null,null,null,null,null,null,null,null,null,null,null,null,null,null,null,null,null,null,null,null,null,null,null,null,null,null,null,null,null,null,null,null,null,null,null,null,null,null,null,null,null,null,null,null,null,null,null,null,null,null,null,null,null,null,null,null,null,null,null,null,null,null,null,null,null,null,null,null,null,null,null,null,null,null,null,null,null,null,null,null,null,null,null,null,null,null,null,null,null,null,null,null,null,null,null,null,null,null,null,null,null,null,null,null,null,null,null,null,null,null,null,null,null,null,null,null,null,null,null,null,null,null,null,null,null,null,null,null,null,null,null,null,null,null,null,null,null,null,null,null,null,null,null,null,null,null,null,null,null,null,null,null,null,null,null,null,null,null,null,null,null,null,null,null,null,null,null,null,null,null,null,null,null,null,null,null,null,null,null,null,null,null,null,null,null,null,null,null,null,null,null,null,null,null,null,null,null,null,null,null,null,null,null,null,null,null,null,null,null,null,null,null,null,null,null,null,null,null,null,null,null,null,null,null,null,null,null,null,null,null,null,null,null,null,null,null,null,null,null,null,null,null,null,null,null,null,null,null,null,null,null,null,null,null,null,null,null,null,null,null,null,null,null,null,null,null,null,null,null,null,null,null,null,null,null,null,null,null,null,null,null,null,null,null,null,null,null,null,null,null,null,null,null,null,null,null,null,null,null,null,null,null,null,null,null,null,null,null,null,null,null,null,null,null,null,null,null,null,null,null,null,null,null,null,null,null,null,null,null,null,null,null,null,null,null,null,null,null,null,null,null,null,null,null,null,null,null,null,null,null,null,null,null,null,null,null,null,null,null,null,null,null,null,null,null,null,null,null,null,null,null,null,null,null,null,null,null,null,null,null,null,null,null,null,null,null,null,null,null,null,null,null,null,null,null,null,null,null,null,null,null,null,null,null,null,null,null,null,null,null,null,null,null,null,null,null,null,null,null,null,null,null,null,null,null,null,null,null,null,null,null,null,null,null,null,null,null,null,null,null,null,null,null,null,null,null,null,null,null,null,null,null,null,null,null,null,null,null,null,null,null,null,null,null,null,null,null,null,null,null,null,null,null,null,null,null,null,null,null,null,null,null,null,null,null,null,null,null,null,null,null,null,null,null,null,null,null,null,null,null,null,null,null,null,null,null,null,null,null,null,null,null,null,null,null,null,null,null,null,null,null,null,null,null,null,null,null,null,null,null,null,null,null,null,null,null,null,null,null,null,null,null,null,null,null,null,null,null,null,null,null,null,null,null,null,null,null,null,null,null,null,null,null,null,null,null,null,null,null,null,null,null,null,null,null,null,null,null,null,null,null,null,null,null,null,null,null,null,null,null,null,null,null,null,null,null,null,null,null,null,null,null,null,null,null,null,null,null,null,null,null,null,null,null,null,null,null,null,null,null,null,null,null,null,null,null,null,null,null,null,null,null,null,null,null,null,null,null,null,null,null,null,null,null,null,null,null,null,null,null,null,null,null,null,null,null,null,null,null,null,null,null,null,null,null,null,null,null,null,null,null,null,null,null,null,null,null,null,null,null,null,null,null,null,null,null,null,null,null,null,null,null,null,null,null,null,null,null,null,null,null,null,null,null,null,null,null,null,null,null,null,null,null,null,null,null,null,null,null,null,null,null,null,null,null,null,null,null,null,null,null,null,null,null,null,null,null,null,null,null,null,null,null,null,null,null,null,null,null,null,null,null,null,null,null,null,null,null,null,null,null,null,null,null,null,null,null,null,null,null,null,null,null,null,null,null,null,null,null,null,null,null,null,null,null,null,null,null,null,null,null,null,null,null,null,null,null,null,null,null,null,null,null,null,null,null,null,null,null,null,null,null,null,null,null,null,null,null,null,null,null,null,null,null,null,null,null,null,null,null,null,null,null,null,null,null,null,null,null,null,null,null,null,null,null,null,null,null,null,null,null,null,null,null,null,null,null,null,null,null,null,null,null,null,null,null,null,null,null,null,null,null,null,null,null,null,null,null,null,null,null,null,null,null,null,null,null,null,null,null,null,null,null,null,null,null,null,null,null,null,null,null,null,null,null,null,null,null,null,null,null,null,null,null,null,null,null,null,null,null,null,null,null,null,null,null,null,null,null,null,null,null,null,null,null,null,null,null,null,null,null,null,null,null,null,null,null,null,null,null,null,null,null,null,null,null,null,null,null,null,null,null,null,null,null,null,null,null,null,null,null,null,null,null,null,null,null,null,null,null,null,null,null,null,null,null,null,null,null,null,null,null,null,null,null,null,null,null,null,null,null,null,null,null,null,null,null,null,null,null,null,null,null,null,null,null,null,null,null,null,null,null,null,null,null,null,null,null,null,null,null,null,null,null,null,null,null,null,null,null,null,null,null,null,null,null,null,null,null,null,null,null,null,null,null,null,null,null,null,null,null,null,null,null,null,null,null,null,null,null,null,null,null,null,null,null,null,null,null,null,null,null,null,null,null,null,null,null,null,null,null,null,null,null,null,null,null,null,null,null,null,null,null,null,null,null,null,null,null,null,null,null,null,null,null,null,null,null,null,null,null,null,null,null,null,null,null,null,null,null,null,null,null,null,null,null,null,null,null,null,null,null,null,null,null,null,null,null,null,null,null,null,null,null,null,null,null,null,null,null,null,null,null,null,null,null,null,null,null,null,null,null,null,null,null,null,null,null,null,null,null,null,null,null,null,null,null,null,null,null,null,null,null,null,null,null,null,null,null,null,null,null,null,null,null,null,null,null,null,null,null,null,null,null,null,null,null,null,null,null,null,null,null,null,null,null,null,null,null,null,null,null,null,null,null,null,null,null,null,null,null,null,null,null,null,null,null,null,null,null,null,null,null,null,null,null,null,null,null,null,null,null,null,null,null,null,null,null,null,null,null,null,null,null,null,null,null,null,null,null,null,null,null,null,null,null,null,null,null,null,null,null,null,null,null,null,null,null,null,null,null,null,null,null,null,null,null,null,null,null,null,null,null,null,null,null,null,null,null,null,null,null,null,null,null,null,null,null,null,null,null,null,null,null,null,null,null,null,null,null,null,null,null,null,null,null,null,null,null,null,null,null,null,null,null,null,null,null,null,null,null,null,null,null,null,null,null,null,null,null,null,null,null,null,null,null,null,null,null,null,null,null,null,null,null,null,null,null,null,null,null,null,null,null,null,null,null,null,null,null,null,null,null,null,null,null,null,null,null,null,null,null,null,null,null,null,null,null,null,null,null,null,null,null,null,null,null,null,null,null,null,null,null,null,null,null,null,null,null,null,null,null,null,null,null,null,null,null,null,null,null,null,null,null,null,null,null,null,null,null,null,null,null,null,null,null,null,null,null,null,null,null,null,null,null,null,null,null,null,null,null,null,null,null,null,null,null,null,null,null,null,null,null,null,null,null,null,null,null,null,null,null,null,null,null,null,null,null,null,null,null,null,null,null,null,null,null,null,null,null,null,null,null,null,null,null,null,null,null,null,null,null,null,null,null,null,null,null,null,null,null,null,null,null,null,null,null,null,null,null,null,null,null,null,null,null,null,null,null,null,null,null,null,null,null,null,null,null,null,null,null,null,null,null,null,null,null,null,null,null,null,null,null,null,null,null,null,null,null,null,null,null,null,null,null,null,null,null,null,null,null,null,null,null,null,null,null,null,null,null,null,null,null,null,null,null,null,null,null,null,null,null,null,null,null,null,null,null,null,null,null,null,null,null,null,null,null,null,null,null,null,null,null,null,null,null,null,null,null,null,null,null,null,null,null,null,null,null,null,null,null,null,null,null,null,null,null,null,null,null,null,null,null,null,null,null,null,null,null,null,null,null,null,null,null,null,null,null,null,null,null,null,null,null,null,null,null,null,null,null,null,null,null,null,null,null,null,null,null,null,null,null,null,null,null,null,null,null,null,null,null,null,null,null,null,null,null,null,null,null,null,null,null,null,null,null,null,null,null,null,null,null,null,null,null,null,null,null,null,null,null,null,null,null,null,null,null,null,null,null,null,null,null,null,null,null,null,null,null,null,null,null,null,null,null,null,null,null,null,null,null,null,null,null,null,null,null,null,null,null,null,null,null,null,null,null,null,null,null,null,null,null,null,null,null,null,null,null,null,null,null,null,null,null,null,null,null,null,null,null,null,null,null,null,null,null,null,null,null,null,null,null,null,null,null,null,null,null,null,null,null,null,null,null,null,null,null,null,null,null,null,null,null,null,null,null,null,null,null,null,null,null,null,null,null,null,null,null,null,null,null,null,null,null,null,null,null,null,null,null,null,null,null,null,null,null,null,null,null,null,null,null,null,null,null,null,null,null,null,null,null,null,null,null,null,null,null,null,null,null,null,null,null,null,null,null,null,null,null,null,null,null,null,null,null,null,null,null,null,null,null,null,null,null,null,null,null,null,null,null,null,null,null,null,null,null,null,null,null,null,null,null,null,null,null,null,null,null,null,null,null,null,null,null,null,null,null,null,null,null,null,null,null,null,null,null,null,null,null,null,null,null,null,null,null,null,null,null,null,null,null,null,null,null,null,null,null,null,null,null,null,null,null,null,null,null,null,null,null,null,null,null,null,null,null,null,null,null,null,null,null,null,null,null,null,null,null,null,null,null,null,null,null,null,null,null,null,null,null,null,null,null,null,null,null,null,null,null,null,null,null,null,null,null,null,null,null,null,null,null,null,null,null,null,null,null,null,null,null,null,null,null,null,null,null,null,null,null,null,null,null,null,null,null,null,null,null,null,null,null,null,null,null,null,null,null,null,null,null,null,null,null,null,null,null,null,null,null,null,null,null,null,null,null,null,null,null,null,null,null,null,null,null,null,null,null,null,null,null,null,null,null,null,null,null,null,null,null,null,null,null,null,null,null,null,null,null,null,null,null,null,null,null,null,null,null,null,null,null,null,null,null,null,null,null,null,null,null,null,null,null,null,null,null,null,null,null,null,null,null,null,null,null,null,null,null,null,null,null,null,null,null,null,null,null,null,null,null,null,null,null,null,null,null,null,null,null,null,null,null,null,null,null,null,null,null,null,null,null,null,null,null,null,null,null,null,null,null,null,null,null,null,null,null,null,null,null,null,null,null,null,null,null,null,null,null,null,null,null,null,null,null,null,null,null,null,null,null,null,null,null,null,null,null,null,null,null,null,null,null,null,null,null,null,null,null,null,null,null,null,null,null,null,null,null,null,null,null,null,null,null,null,null,null,null,null,null,null,null,null,null,null,null,null,null,null,null,null,null,null,null,null,null,null,null,null,null,null,null,null,null,null,null,null,null,null,null,null,null,null,null,null,null,null,null,null,null,null,null,null,null,null,null,null,null,null,null,null,null,null,null,null,null,null,null,null,null,null,null,null,null,null,null,null,null,null,null,null,null,null,null,null,null,null,null,null,null,null,null,null,null,null,null,null,null,null,null,null,null,null,null,null,null,null,null,null,null,null,null,null,null,null,null,null,null,null,null,null,null,null,null,null,null,null,null,null,null,null,null,null,null,null,null,null,null,null,null,null,null,null,null,null,null,null,null,null,null,null,null,null,null,null,null,null,null,null,null,null,null,null,null,null,null,null,null,null,null,null,null,null,null,null,null,null,null,null,null,null,null,null,null,null,null,null,null,null,null,null,null,null,null,null,null,null,null,null,null,null,null,null,null,null,null,null,null,null,null,null,null,null,null,null,null,null,null,null,null,null,null,null,null,null,null,null,null,null,null,null,null,null,null,null,null,null,null,null,null,null,null,null,null,null,null,null,null,null,null,null,null,null,null,null,null,null,null,null,null,null,null,null,null,null,null,null,null,null,null,null,null,null,null,null,null,null,null,null,null,null,null,null,null,null,null,null,null,null,null,null,null,null,null,null,null,null,null,null,null,null,null,null,null,null,null,null,null,null,null,null,null,null,null,null,null,null,null,null,null,null,null,null,null,null,null,null,null,null,null,null,null,null,null,null,null,null,null,null,null,null,null,null,null,null,null,null,null,null,null,null,null,null,null,null,null,null,null,null,null,null,null,null,null,null,null,null,null,null,null,null,null,null,null,null,null,null,null,null,null,null,null,null,null,null,null,null,null,null,null,null,null,null,null,null,null,null,null,null,null,null,null,null,null,null,null,null,null,null,null,null,null,null,null,null,null,null,null,null,null,null,null,null,null,null,null,null,null,null,null,null,null,null,null,null,null,null,null,null,null,null,null,null,null,null,null,null,null,null,null,null,null,null,null,null,null,null,null,null,null,null,null,null,null,null,null,null,null,null,null,null,null,null,null,null,null,null,null,null,null,null,null,null,null,null,null,null,null,null,null,null,null,null,null,null,null,null,null,null,null,null,null,null,null,null,null,null,null,null,null,null,null,null,null,null,null,null,null,null,null,null,null,null,null,null,null,null,null,null,null,null,null,null,null,null,null,null,null,null,null,null,null,null,null,null,null,null,null,null,null,null,null,null,null,null,null,null,null,null,null,null,null,null,null,null,null,null,null,null,null,null,null,null,null,null,null,null,null,null,null,null,null,null,null,null,null,null,null,null,null,null,null,null,null,null,null,null,null,null,null,null,null,null,null,null,null,null,null,null,null,null,null,null,null,null,null,null,null,null,null,null,null,null,null,null,null,null,null,null,null,null,null,null,null,null,null,null,null,null,null,null,null,null,null,null,null,null,null,null,null,null,null,null,null,null,null,null,null,null,null,null,null,null,null,null,null,null,null,null,null,null,null,null,null,null,null,null,null,null,null,null,null,null,null,null,null,null,null,null,null,null,null,null,null,null,null,null,null,null,null,null,null,null,null,null,null,null,null,null,null,null,null,null,null,null,null,null,null,null,null,null,null,null,null,null,null,null,null,null,null,null,null,null,null,null,null,null,null,null,null,null,null,null,null,null,null,null,null,null,null,null,null,null,null,null,null,null,null,null,null,null,null,null,null,null,null,null,null,null,null,null,null,null,null,null,null,null,null,null,null,null,null,null,null,null,null,null,null,null,null,null,null,null,null,null,null,null,null,null,null,null,null,null,null,null,null,null,null,null,null,null,null,null,null,null,null,null,null,null,null,null,null,null,null,null,null,null,null,null,null,null,null,null,null,null,null,null,null,null,null,null,null,null,null,null,null,null,null,null,null,null,null,null,null,null,null,null,null,null,null,null,null,null,null,null,null,null,null,null,null,null,null,null,null,null,null,null,null,null,null,null,null,null,null,null,null,null,null,null,null,null,null,null,null,null,null,null,null,null,null,null,null,null,null,null,null,null,null,null,null,null,null,null,null,null,null,null,null,null,null,null,null,null,null,null,null,null,null,null,null,null,null,null,null,null,null,null,null,null,null,null,null,null,null,null,null,null,null,null,null,null,null,null,null,null,null,null,null,null,null,null,null,null,null,null,null,null,null,null,null,null,null,null,null,null,null,null,null,null,null,null,null,null,null,null,null,null,null,null,null,null,null,null,null,null,null,null,null,null,null,null,null,null,null,null,null,null,null,null,null,null,null,null,null,null,null,null,null,null,null,null,null,null,null,null,null,null,null,null,null,null,null,null,null,null,null,null,null,null,null,null,null,null,null,null,null,null,null,null,null,null,null,null,null,null,null,null,null,null,null,null,null,null,null,null,null,null,null,null,null,null,null,null,null,null,null,null,null,null,null,null,null,null,null,null,null,null,null,null,null,null,null,null,null,null,null,null,null,null,null,null,null,null,null,null,null,null,null,null,null,null,null,null,null,null,null,null,null,null,null,null,null,null,null,null,null,null,null,null,null,null,null,null,null,null,null,null,null,null,null,null,null,null,null,null,null,null,null,null,null,null,null,null,null,null,null,null,null,null,null,null,null,null,null,null,null,null,null,null,null,null,null,null,null,null,null,null,null,null,null,null,null,null,null,null,null,null,null,null,null,null,null,null,null,null,null,null,null,null,null,null,null,null,null,null,null,null,null,null,null,null,null,null,null,null,null,null,null,null,null,null,null,null,null,null,null,null,null,null,null,null,null,null,null,null,null,null,null,null,null,null,null,null,null,null,null,null,null,null,null,null,null,null,null,null,null,null,null,null,null,null,null,null,null,null,null,null,null,null,null,null,null,null,null,null,null,null,null,null,null,null,null,null,null,null,null,null,null,null,null,null,null,null,null,null,null,null,null,null,null,null,null,null,null,null,null,null,null,null,null,null,null,null,null,null,null,null,null,null,null,null,null,null,null,null,null,null,null,null,null,null,null,null,null,null,null,null,null,null,null,null,null,null,null,null,null,null,null,null,null,null,null,null,null,null,null,null,null,null,null,null,null,null,null,null,null,null,null,null,null,null,null,null,null,null,null,null,null,null,null,null,null,null,null,null,null,null,null,null,null,null,null,null,null,null,null,null,null,null,null,null,null,null,null,null,null,null,null,null,null,null,null,null,null,null,null,null,null,null,null,null,null,null,null,null,null,null,null,null,null,null,null,null,null,null,null,null,null,null,null,null,null,null,null,null,null,null,null,null,null,null,null,null,null,null,null,null,null,null,null,null,null,null,null,null,null,null,null,null,null,null,null,null,null,null,null,null,null,null,null,null,null,null,null,null,null,null,null,null,null,null,null,null,null,null,null,null,null,null,null,null,null,null,null,null,null,null,null,null,null,null,null,null,null,null,null,null,null,null,null,null,null,null,null,null,null,null,null,null,null,null,null,null,null,null,null,null,null,null,null,null,null,null,null,null,null,null,null,null,null,null,null,null,null,null,null,null,null,null,null,null,null,null,null,null,null,null,null,null,null,null,null,null,null,null,null,null,null,null,null,null,null,null,null,null,null,null,null,null,null,null,null,null,null,null,null,null,null,null,null,null,null,null,null,null,null,null,null,null,null,null,null,null,null,null,null,null,null,null,null,null,null,null,null,null,null,null,null,null,null,null,null,null,null,null,null,null,null,null,null,null,null,null,null,null,null,null,null,null,null,null,null,null,null,null,null,null,null,null,null,null,null,null,null,null,null,null,null,null,null,null,null,null,null,null,null,null,null,null,null,null,null,null,null,null,null,null,null,null,null,null,null,null,null,null,null,null,null,null,null,null,null,null,null,null,null,null,null,null,null,null,null,null,null,null,null,null,null,null,null,null,null,null,null,null,null,null,null,null,null,null,null,null,null,null,null,null,null,null,null,null,null,null,null,null,null,null,null,null,null,null,null,null,null,null,null,null,null,null,null,null,null,null,null,null,null,null,null,null,null,null,null,null,null,null,null,null,null,null,null,null,null,null,null,null,null,null,null,null,null,null,null,null,null,null,null,null,null,null,null,null,null,null,null,null,null,null,null,null,null,null,null,null,null,null,null,null,null,null,null,null,null,null,null,null,null,null,null,null,null,null,null,null,null,null,null,null,null,null,null,null,null,null,null,null,null,null,null,null,null,null,null,null,null,null,null,null,null,null,null,null,null,null,null,null,null,null,null,null,null,null,null,null,null,null,null,null,null,null,null,null,null,null,null,null,null,null,null,null,null,null,null,null,null,null,null,null,null,null,null,null,null,null,null,null,null,null,null,null,null,null,null,null,null,null,null,null,null,null,null,null,null,null,null,null,null,null,null,null,null,null,null,null,null,null,null,null,null,null,null,null,null,null,null,null,null,null,null,null,null,null,null,null,null,null,null,null,null,null,null,null,null,null,null,null,null,null,null,null,null,null,null,null,null,null,null,null,null,null,null,null,null,null,null,null,null,null,null,null,null,null,null,null,null,null,null,null,null,null,null,null,null,null,null,null,null,null,null,null,null,null,null,null,null,null,null,null,null,null,null,null,null,null,null,null,null,null,null,null,null,null,null,null,null,null,null,null,null,null,null,null,null,null,null,null,null,null,null,null,null,null,null,null,null,null,null,null,null,null,null,null,null,null,null,null,null,null,null,null,null,null,null,null,null,null,null,null,null,null,null,null,null,null,null,null,null,null,null,null,null,null,null,null,null,null,null,null,null,null,null,null,null,null,null,null,null,null,null,null,null,null,null,null,null,null,null,null,null,null,null,null,null,null,null,null,null,null,null,null,null,null,null,null,null,null,null,null,null,null,null,null,null,null,null,null,null,null,null,null,null,null,null,null,null,null,null,null,null,null,null,null,null,null,null,null,null,null,null,null,null,null,null,null,null,null,null,null,null,null,null,null,null,null,null,null,null,null,null,null,null,null,null,null,null,null,null,null,null,null,null,null,null,null,null,null,null,null,null,null,null,null,null,null,null,null,null,null,null,null,null,null,null,null,null,null,null,null,null,null,null,null,null,null,null,null,null,null,null,null,null,null,null,null,null,null,null,null,null,null,null,null,null,null,null,null,null,null,null,null,null,null,null,null,null,null,null,null,null,null,null,null,null,null,null,null,null,null,null,null,null,null,null,null,null,null,null,null,null,null,null,null,null,null,null,null,null,null,null,null,null,null,null,null,null,null,null,null,null,null,null,null,null,null,null,null,null,null,null,null,null,null,null,null,null,null,null,null,null,null,null,null,null,null,null,null,null,null,null,null,null,null,null,null,null,null,null,null,null,null,null,null,null,null,null,null,null,null,null,null,null,null,null,null,null,null,null,null,null,null,null,null,null,null,null,null,null,null,null,null,null,null,null,null,null,null,null,null,null,null,null,null,null,null,null,null,null,null,null,null,null,null,null,null,null,null,null,null,null,null,null,null,null,null,null,null,null,null,null,null,null,null,null,null,null,null,null,null,null,null,null,null,null,null,null,null,null,null,null,null,null,null,null,null,null,null,null,null,null,null,null,null,null,null,null,null,null,null,null,null,null,null,null,null,null,null,null,null,null,null,null,null,null,null,null,null,null,null,null,null,null,null,null,null,null,null,null,null,null,null,null,null,null,null,null,null,null,null,null,null,null,null,null,null,null,null,null,null,null,null,null,null,null,null,null,null,null,null,null,null,null,null,null,null,null,null,null,null,null,null,null,null,null,null,null,null,null,null,null,null,null,null,null,null,null,null,null,null,null,null,null,null,null,null,null,null,null,null,null,null,null,null,null,null,null,null,null,null,null,null,null,null,null,null,null,null,null,null,null,null,null,null,null,null,null,null,null,null,null,null,null,null,null,null,null,null,null,null,null,null,null,null,null,null,null,null,null,null,null,null,null,null,null,null,null,null,null,null,null,null,null,null,null,null,null,null,null,null,null,null,null,null,null,null,null,null,null,null,null,null,null,null,null,null,null,null,null,null,null,null,null,null,null,null,null,null,null,null,null,null,null,null,null,null,null,null,null,null,null,null,null,null,null,null,null,null,null,null,null,null,null,null,null,null,null,null,null,null,null,null,null,null,null,null,null,null,null,null,null,null,null,null,null,null,null,null,null,null,null,null,null,null,null,null,null,null,null,null,null,null,null,null,null,null,null,null,null,null,null,null,null,null,null,null,null,null,null,null,null,null,null,null,null,null,null,null,null,null,null,null,null,null,null,null,null,null,null,null,null,null,null,null,null,null,null,null,null,null,null,null,null,null,null,null,null,null,null,null,null,null,null,null,null,null,null,null,null,null,null,null,null,null,null,null,null,null,null,null,null,null,null,null,null,null,null,null,null,null,null,null,null,null,null,null,null,null,null,null,null,null,null,null,null,null,null,null,null,null,null,null,null,null,null,null,null,null,null,null,null,null,null,null,null,null,null,null,null,null,null,null,null,null,null,null,null,null,null,null,null,null,null,null,null,null,null,null,null,null,null,null,null,null,null,null,null,null,null,null,null,null,null,null,null,null,null,null,null,null,null,null,null,null,null,null,null,null,null,null,null,null,null,null,null,null,null,null,null,null,null,null,null,null,null,null,null,null,null,null,null,null,null,null,null,null,null,null,null,null,null,null,null,null,null,null,null,null,null,null,null,null,null,null,null,null,null,null,null,null,null,null,null,null,null,null,null,null,null,null,null,null,null,null,null,null,null,null,null,null,null,null,null,null,null,null,null,null,null,null,null,null,null,null,null,null,null,null,null,null,null,null,null,null,null,null,null,null,null,null,null,null,null,null,null,null,null,null,null,null,null,null,null,null,null,null,null,null,null,null,null,null,null,null,null,null,null,null,null,null,null,null,null,null,null,null,null,null,null,null,null,null,null,null,null,null,null,null,null,null,null,null,null,null,null,null,null,null,null,null,null,null,null,null,null,null,null,null,null,null,null,null,null,{"$f":"SUM(O26:XFC26)","v":0}]
["1.0","Document Review and Surface Water Delineation for Design Requirements",null,null,null,null,null,null,null,null,null,null,null,null,{"$f":"SUM(E27:N27)","v":0}]
["Subtask","Review project’s environmental documents for commitments related to E&SC design, mitigation, landscaping, and vegetation re-establishment",null,null,null,null,null,null,null,null,null,null,null,null,0]
["Subtask","Water Quality Worksheet ",null,null,null,null,null,null,null,null,null,null,null,null,0]
["Subtask","Environmental Document Review ",null,null,null,null,null,null,null,null,null,null,null,null,0]
["Subtask","Conduct Site Visit",null,null,null,null,null,null,null,null,null,null,null,null,0]
["2.0","Pre-Design Meeting ",null,null,null,null,null,null,null,null,null,null,null,null,0]
["3.0","Field Inspection Plans for Clearing & Grubbing and Final Construction Phases ",null,null,null,null,null,null,null,null,null,null,null,null,0]
["4.0","Design Pipe/Culvert Construction Sequences",null,null,null,null,null,null,null,null,null,null,null,null,0]
["5.0","Review Field Inspection E&SC Plan Set and Attend Field Inspection",null,null,null,null,null,null,null,null,null,null,null,null,0]
["6.0","ROW/Easement Request File ",null,null,null,null,null,null,null,null,null,null,null,null,0]
["7.0","Task Management",null,null,null,null,null,null,null,null,null,null,null,null,0]
["8.0","Complete QC/QA Procedures",null,null,null,null,null,null,null,null,null,null,null,null,0]
[null,null,null,null,null,null,null,null,null,null,null,null,null,null,{"$f":"SUM(E39:N39)","v":0}]
[null,null,null,null,null,null,null,null,null,null,null,null,null,null,0]
[null,null,null,null,null,null,null,null,null,null,null,null,null,null,0]
[null,null,null,null,null,null,null,null,null,null,null,null,null,null,0]
[null,null,null,null,null,null,null,null,null,null,null,null,null,null,0]
[null,null,null,null,null,null,null,null,null,null,null,null,null,null,0]
["3RE1","Complete Erosion and Sediment Plans ",null,null,null,null,null,null,null,null,null,null,null,null,0]
["1.0","Complete E&SC Plans for Clearing and Grubbing Construction Phase ",null,null,null,null,null,null,null,null,null,null,null,null,0]
["Subtask","E&SC Plans for Clearing and Grubbing (C&G)",null,null,null,null,null,null,null,null,null,null,null,null,0]
["Subtask","E&SC Plans for Intermediate Construction Phase",null,null,null,null,null,null,null,null,null,null,null,null,0]
["Subtask","E&SC Plans for Final Construction Phase",null,null,null,null,null,null,null,null,null,null,null,null,0]
["Subtask","Calculate Matting Requirements for Ditches and Slopes",null,null,null,null,null,null,null,null,null,null,null,null,0]
["Subtask","Add details, notes, and vegetation management Plans",null,null,null,null,null,null,null,null,null,null,null,null,0]
["2.0","Calculate Final E&SC Quantities and Develop Project Specific E&SC Special Provisions",null,null,null,null,null,null,null,null,null,null,null,null,0]
["3.0","Apply for other Applicable Permits Related to the E&SC Plans",null,null,null,null,null,null,null,null,null,null,null,null,0]
["4.0","Task Management ",null,null,null,null,null,null,null,null,null,null,null,null,0]
["5.0","Complete QC/QA Procedures",null,null,null,null,null,null,null,null,null,null,null,null,0]
[null,null,null,null,null,null,null,null,null,null,null,null,null,null,{"$f":"SUM(E56:N56)","v":0}]
[null,null,null,null,null,null,null,null,null,null,null,null,null,null,0]
[null,null,null,null,null,null,null,null,null,null,null,null,null,null,0]
[null,null,null,null,null,null,null,null,null,null,null,null,null,null,0]
[null,null,null,null," ",null,null,null,null,null,null,null,null,null,{"$f":"SUM(E61:N61)","v":0}]
["TOTAL WORKHOURS",null,null,null,{"$f":"SUM(E26:E59)","v":0},0,0,0,0,0,0,0,0,0,null,{"$f":"SUM(E61:N61)/8","v":0}]
["Rates",null,null,null,{"$f":"'PEF CLASSIFICATION SHEET'!E285","v":0},{"$f":"'PEF CLASSIFICATION SHEET'!E286","v":0},{"$f":"'PEF CLASSIFICATION SHEET'!E287","v":0},{"$f":"'PEF CLASSIFICATION SHEET'!E288","v":0},{"$f":"'PEF CLASSIFICATION SHEET'!E289","v":0},{"$f":"'PEF CLASSIFICATION SHEET'!E290","v":0},{"$f":"'PEF CLASSIFICATION SHEET'!E291","v":0},{"$f":"'PEF CLASSIFICATION SHEET'!E292","v":0},{"$f":"'PEF CLASSIFICATION SHEET'!E293","v":0},{"$f":"'PEF CLASSIFICATION SHEET'!E294","v":0},"WORKHOURS","WORKDAYS"]
[]
["Cost",null,null,null,{"$f":"E61*E62","v":0},{"$f":"F61*F62","v":0},{"$f":"G61*G62","v":0},{"$f":"H61*H62","v":0},{"$f":"I61*I62","v":0},{"$f":"J61*J62","v":0},0,0,0,{"$f":"N61*N62","v":0}]
[]
[]
[]
[null,null,null,null,null,null,"Total Salary Cost",null,{"$f":"SUM(E64,F64,G64,H64,I64,J64,K64,L64,M64,N64)","v":0}]
[]
[null,null,null,null,null,null,"Overhead Rate",{"$f":"EROSION.CONTROL_CONSULTANT_OVERHEAD","v":0},{"$f":"I68*H70","v":0}]
[]
[null,null,null,null,null,null,null,"Subtotal",{"$f":"I68+I70","v":0}]
[]
[null,null,null,null,null,null,"Fee",{"$f":"EROSION.CONTROL_CONSULTANT_FEE","v":0.09},{"$f":"I72*H74","v":0}]
[]
[null,null,null,null,null,null,"Cost of Capital",{"$f":"EROSION.CONTROL_CONSULTANT_COSTofCAPITAL","v":0},{"$f":"I68*H76","v":0}]
[]
[null,null,null,null,null,null,null,"TOTAL SALARY COST",{"$f":"I72+I74+I76","v":0}]
[]
[]
[]
["EROSION CONTROL DIRECT COSTS"]
[]
["A.","PRINTING"]
[null,null,null,null,"No, of Sets","Sheets per Set","Total Sheets","Cost per Sheet","Cost"]
[null,"Full-size Field Inspection Plans",null,null,null,null,{"$f":"E86*F86","v":0},{"$f":"BOND.REGULAR","v":0.42},{"$f":"G86*H86","v":0}]
[]
[null,"Half-size Field Inspection Plans",null,null,null,null,{"$f":"E88*F88","v":0},{"$f":"LEDGERCOPIES","v":0.34},{"$f":"G88*H88","v":0}]
[]
[null,"Full-size Final Review Plans",null,null,null,null,{"$f":"E90*F90","v":0},{"$f":"BOND.REGULAR","v":0.42},{"$f":"G90*H90","v":0}]
[]
[null,"Half-size Final Review Plans",null,null,null,null,{"$f":"E92*F92","v":0},{"$f":"LEDGERCOPIES","v":0.34},{"$f":"G92*H92","v":0}]
[]
[null,"Full-size Final Plans",null,null,null,null,{"$f":"E94*F94","v":0},{"$f":"BOND.REGULAR","v":0.42},{"$f":"G94*H94","v":0}]
[]
[null,"Half-size Final Plans",null,null,null,null,{"$f":"E96*F96","v":0},{"$f":"LEDGERCOPIES","v":0.34},{"$f":"G96*H96","v":0}]
[]
["B.","COPIES"]
[null,null,null,null,null,null,"# Copies"]
[null,"Misc. =                # Copies @ Cost/Copy =",null,null,null,null,null,{"$f":"LETTERCOPIES","v":0.14000000000000001},{"$f":"G100*H100","v":0}]
[]
["C.","TRAVEL"]
[]
[null,"Field =     #      Trips @                         Miles per Trip"]
[null,null,null,null,null,null,null,{"$f":"SEDAN","v":0.7},{"$f":"C105*E105*H105","v":0}]
[null,"Meetings =    #    Trips @                     Miles per Trip"]
[null,null,null,null,null,null,null,{"$f":"CARRYALL","v":0.72},{"$f":"C107*E107*H107","v":0}]
[]
["D. ","PER DIEM"]
[null,null,null,"Quantity"]
[null,"Breakfast",null,null,null,null,null,{"$f":"BREAKFAST","v":10.1},{"$f":"D111*H111","v":0}]
[]
[null,"Lunch",null,null,null,null,null,{"$f":"LUNCH","v":13.3},{"$f":"D113*H113","v":0}]
[]
[null,"Dinner",null,null,null,null,null,{"$f":"DINNER","v":23.1},{"$f":"D115*H115","v":0}]
[]
[null,"Lodging",null,null,null,null,null,{"$f":"LODGING_LUMP.SUM","v":95},{"$f":"D117*H117","v":0}]
[]
["E. ","MISCELLANEOUS EXPENSES"]
[null,"Description",null,null,"Quantity","Unit of Measure",null,"Cost Per Unit"]
[null,null,null,null,null,null,null,null,{"$f":"E121*H121","v":0}]
[]
[null,null,null,null,null,null,null,null,{"$f":"E123*H123","v":0}]
[]
[null,null,null,null,null,null,null,null,{"$f":"E125*H125","v":0}]
[]
[null,null,null,null,null,null,null,null,{"$f":"E127*H127","v":0}]
[]
[null,null,null,null,null,null,null,null,{"$f":"E129*H129","v":0}]
[]
[null,"TOTAL DIRECT NON-SALARY COSTS   =",null,null,null,null,null,null,{"$f":"SUM(I84:I130)","v":0}]
[]
[]
[]
[]
[null,"TOTAL DIRECT SALARY AND NON-SALARY COSTS =",null,null,null,null,null,null,{"$f":"EROSION.CONTROL_SALARY_TOTAL+EROSION.CONTROL_DIRECT_NONSALARY_TOTAL","v":0}]

{"sheet":"Rail","index":43,"n_rows":275,"n_cols":47,"rows_kept":275,"cut":false,"hidden":true,"merged":[[148,26,148,27],[140,26,140,27],[151,26,151,27],[136,26,136,27],[137,26,137,27],[142,26,142,27],[143,26,143,27],[155,26,155,27],[157,26,157,27],[156,26,156,27],[8,26,8,27],[119,26,119,27],[127,26,127,27],[128,26,128,27],[130,26,130,27],[163,26,163,27],[170,26,170,27],[171,26,171,27],[168,26,168,27],[169,26,169,27],[10,26,10,27],[154,26,154,27],[138,26,138,27],[139,26,139,27],[160,26,160,27],[129,26,129,27],[152,26,152,27],[153,26,153,27],[141,26,141,27],[149,26,149,27],[150,26,150,27],[145,26,145,27],[146,26,146,27],[147,26,147,27],[0,0,1,13],[2,1,2,4],[2,6,2,7],[2,10,2,11],[2,15,2,16],[3,1,3,4],[3,6,3,7],[3,10,3,11],[3,15,3,16],[192,26,192,27],[193,26,193,27],[196,26,196,27],[235,26,235,27],[159,26,159,27],[232,26,232,27],[233,26,233,27],[186,26,186,27],[187,26,187,27],[164,26,164,27],[165,26,165,27],[166,26,166,27],[185,26,185,27],[161,26,161,27],[162,26,162,27],[173,26,173,27],[184,26,184,27],[172,26,172,27],[174,26,174,27],[181,26,181,27],[221,26,221,27],[188,26,188,27],[189,26,189,27],[190,26,190,27],[195,26,195,27],[227,26,227,27],[204,26,204,27],[226,26,226,27],[228,26,228,27],[229,26,229,27],[230,26,230,27],[234,26,234,27],[197,26,197,27],[198,26,198,27],[199,26,199,27],[200,26,200,27],[201,26,201,27],[202,26,202,27],[203,26,203,27],[205,26,205,27],[206,26,206,27],[207,26,207,27],[208,26,208,27],[209,26,209,27],[210,26,210,27],[211,26,211,27],[212,26,212,27],[213,26,213,27],[274,1,275,1],[274,3,275,4],[278,8,278,13],[243,26,243,27],[255,26,255,27],[256,26,256,27],[257,26,257,27],[237,26,237,27],[258,26,258,27],[239,26,239,27],[240,26,240,27],[241,26,241,27],[242,26,242,27],[259,26,259,27],[238,26,238,27],[254,26,254,27],[253,26,253,27],[244,26,244,27],[248,26,248,27],[249,26,249,27],[250,26,250,27],[245,26,245,27],[247,26,247,27],[246,26,246,27],[284,8,284,9],[284,10,284,11],[285,8,285,9],[285,10,285,11],[120,26,120,27],[121,26,121,27],[122,26,122,27],[123,26,123,27],[124,26,124,27],[125,26,125,27],[126,26,126,27],[131,26,131,27],[132,26,132,27],[133,26,133,27],[134,26,134,27],[135,26,135,27],[279,8,279,9],[279,10,279,11],[280,8,280,9],[280,10,280,11],[283,8,283,13],[231,26,231,27],[144,26,144,27],[194,26,194,27],[4,3,4,22],[6,3,9,3],[6,4,9,4],[6,5,9,5],[6,6,9,6],[6,7,9,7],[6,8,9,8],[6,9,9,9],[6,10,9,10],[6,11,9,11],[6,12,9,12],[6,13,9,13],[6,14,9,14],[6,15,9,15],[6,16,9,16],[6,22,9,22],[6,17,9,17],[6,18,9,18],[6,19,9,19],[6,20,9,20],[6,21,9,21],[11,26,11,27],[12,26,12,27],[13,26,13,27],[14,26,14,27],[15,26,15,27],[16,26,16,27],[17,26,17,27],[18,26,18,27],[19,26,19,27],[20,26,20,27],[21,26,21,27],[22,26,22,27],[23,26,23,27],[24,26,24,27],[25,26,25,27],[26,26,26,27],[27,26,27,27],[28,26,28,27],[29,26,29,27],[30,26,30,27],[31,26,31,27],[32,26,32,27],[33,26,33,27],[34,26,34,27],[35,26,35,27],[36,26,36,27],[37,26,37,27],[38,26,38,27],[39,26,39,27],[40,26,40,27],[41,26,41,27],[42,26,42,27],[43,26,43,27],[44,26,44,27],[45,26,45,27],[46,26,46,27],[47,26,47,27],[48,26,48,27],[49,26,49,27],[50,26,50,27],[51,26,51,27],[52,26,52,27],[53,26,53,27],[54,26,54,27],[55,26,55,27],[56,26,56,27],[57,26,57,27],[58,26,58,27],[59,26,59,27],[60,26,60,27],[61,26,61,27],[62,26,62,27],[63,26,63,27],[64,26,64,27],[65,26,65,27],[66,26,66,27],[67,26,67,27],[68,26,68,27],[69,26,69,27],[70,26,70,27],[71,26,71,27],[72,26,72,27],[73,26,73,27],[74,26,74,27],[75,26,75,27],[76,26,76,27],[77,26,77,27],[78,26,78,27],[79,26,79,27],[80,26,80,27],[81,26,81,27],[82,26,82,27],[95,26,95,27],[96,26,96,27],[97,26,97,27],[98,26,98,27],[99,26,99,27],[100,26,100,27],[83,26,83,27],[84,26,84,27],[85,26,85,27],[86,26,86,27],[87,26,87,27],[88,26,88,27],[89,26,89,27],[90,26,90,27],[91,26,91,27],[216,26,216,27],[217,26,217,27],[218,26,218,27],[219,26,219,27],[220,26,220,27],[236,26,236,27],[9,0,9,1],[191,26,191,27],[115,26,115,27],[116,26,116,27],[117,26,117,27],[118,26,118,27],[101,26,101,27],[102,26,102,27],[103,26,103,27],[104,26,104,27],[105,26,105,27],[106,26,106,27],[107,26,107,27],[108,26,108,27],[109,26,109,27],[92,26,92,27],[93,26,93,27],[94,26,94,27],[3,26,3,27],[222,26,222,27],[223,26,223,27],[224,26,224,27],[225,26,225,27],[251,26,251,27],[252,26,252,27],[158,26,158,27],[182,26,182,27],[183,26,183,27],[175,26,175,27],[176,26,176,27],[177,26,177,27],[178,26,178,27],[179,26,179,27],[180,26,180,27],[167,26,167,27],[110,26,110,27],[111,26,111,27],[112,26,112,27],[113,26,113,27],[114,26,114,27],[214,26,214,27],[215,26,215,27]]}
["                                      RAIL DIVISION BREAKDOWN WORKSHEET -- ENTER WORKHOURS"]
[]
["PROJECT DESCRIPTION: ",{"$f":"PROJECT.DESCRIPTION","v":0},null,null,null,"FIRM:  ",{"$f":"RAIL.PRIME_CONSULTANT_NAME","v":"CONSULTANT NAME"},null,"TASK ORDER NUMBER:",null,{"$f":"TASK.ORDER.NUMBER","v":0},null,"DATE PREPARED:",{"$f":"IF(SCOPE.MANDAY.ESTIMATE.PREPARED.BY.DATE=\"\",\"\",SCOPE.MANDAY.ESTIMATE.PREPARED.BY.DATE)","v":""}]
["PREPARED BY:  ",{"$f":"IF(SCOPE.MANDAY.ESTIMATE.PREPARED.BY=\"\",\"\",SCOPE.MANDAY.ESTIMATE.PREPARED.BY)","v":""},null,null,null,"TIP NUMBER:",{"$f":"TIP.NUMBER","v":0},null,"WBS NUMBER:",null,{"$f":"WBS.NUMBER","v":""},null,"REVISION DATE:",{"$f":"IF(SCOPE.MANDAY.ESTIMATE.APPROVED.BY.DATE=\"\",\"\",SCOPE.MANDAY.ESTIMATE.APPROVED.BY.DATE)","v":""},null,null,null,null,null,null,null,null,null,null,null,"TASK TYPE:","Select Task Type"]
[null,null,null,"ESTIMATED WORKHOURS"]
[null,null,"EMPLOYEE NAMES",{"$f":"IF('PEF CLASSIFICATION SHEET'!D297=\"\",\"\",LEFT('PEF CLASSIFICATION SHEET'!D297,4))","v":""},{"$f":"IF('PEF CLASSIFICATION SHEET'!D298=\"\",\"\",LEFT('PEF CLASSIFICATION SHEET'!D298,4))","v":""},{"$f":"IF('PEF CLASSIFICATION SHEET'!D299=\"\",\"\",LEFT('PEF CLASSIFICATION SHEET'!D299,4))","v":""},{"$f":"IF('PEF CLASSIFICATION SHEET'!D300=\"\",\"\",LEFT('PEF CLASSIFICATION SHEET'!D300,4))","v":""},{"$f":"IF('PEF CLASSIFICATION SHEET'!D301=\"\",\"\",LEFT('PEF CLASSIFICATION SHEET'!D301,4))","v":""},{"$f":"IF('PEF CLASSIFICATION SHEET'!D302=\"\",\"\",LEFT('PEF CLASSIFICATION SHEET'!D302,4))","v":""},{"$f":"IF('PEF CLASSIFICATION SHEET'!D303=\"\",\"\",LEFT('PEF CLASSIFICATION SHEET'!D303,4))","v":""},{"$f":"IF('PEF CLASSIFICATION SHEET'!D304=\"\",\"\",LEFT('PEF CLASSIFICATION SHEET'!D304,4))","v":""},{"$f":"IF('PEF CLASSIFICATION SHEET'!D305=\"\",\"\",LEFT('PEF CLASSIFICATION SHEET'!D305,4))","v":""},{"$f":"IF('PEF CLASSIFICATION SHEET'!D306=\"\",\"\",LEFT('PEF CLASSIFICATION SHEET'!D306,4))","v":""},{"$f":"IF('PEF CLASSIFICATION SHEET'!D307=\"\",\"\",LEFT('PEF CLASSIFICATION SHEET'!D307,4))","v":""},{"$f":"IF('PEF CLASSIFICATION SHEET'!D308=\"\",\"\",LEFT('PEF CLASSIFICATION SHEET'!D308,4))","v":""},{"$f":"IF('PEF CLASSIFICATION SHEET'!D309=\"\",\"\",LEFT('PEF CLASSIFICATION SHEET'!D309,4))","v":""},{"$f":"IF('PEF CLASSIFICATION SHEET'!D310=\"\",\"\",LEFT('PEF CLASSIFICATION SHEET'!D310,4))","v":""},{"$f":"IF('PEF CLASSIFICATION SHEET'!D311=\"\",\"\",LEFT('PEF CLASSIFICATION SHEET'!D311,4))","v":""},{"$f":"IF('PEF CLASSIFICATION SHEET'!D312=\"\",\"\",LEFT('PEF CLASSIFICATION SHEET'!D312,4))","v":""},{"$f":"IF('PEF CLASSIFICATION SHEET'!D313=\"\",\"\",LEFT('PEF CLASSIFICATION SHEET'!D313,4))","v":""},{"$f":"IF('PEF CLASSIFICATION SHEET'!D314=\"\",\"\",LEFT('PEF CLASSIFICATION SHEET'!D314,4))","v":""},{"$f":"IF('PEF CLASSIFICATION SHEET'!D315=\"\",\"\",LEFT('PEF CLASSIFICATION SHEET'!D315,4))","v":""},{"$f":"IF('PEF CLASSIFICATION SHEET'!D316=\"\",\"\",LEFT('PEF CLASSIFICATION SHEET'!D316,4))","v":""}]
[null,null,null,{"$f":"IF('PEF CLASSIFICATION SHEET'!C297=\"\",\"\",'PEF CLASSIFICATION SHEET'!C297)","v":""},{"$f":"IF('PEF CLASSIFICATION SHEET'!C298=\"\",\"\",'PEF CLASSIFICATION SHEET'!C298)","v":""},{"$f":"IF('PEF CLASSIFICATION SHEET'!C299=\"\",\"\",'PEF CLASSIFICATION SHEET'!C299)","v":""},{"$f":"IF('PEF CLASSIFICATION SHEET'!C300=\"\",\"\",'PEF CLASSIFICATION SHEET'!C300)","v":""},{"$f":"IF('PEF CLASSIFICATION SHEET'!C301=\"\",\"\",'PEF CLASSIFICATION SHEET'!C301)","v":""},{"$f":"IF('PEF CLASSIFICATION SHEET'!C302=\"\",\"\",'PEF CLASSIFICATION SHEET'!C302)","v":""},{"$f":"IF('PEF CLASSIFICATION SHEET'!C303=\"\",\"\",'PEF CLASSIFICATION SHEET'!C303)","v":""},{"$f":"IF('PEF CLASSIFICATION SHEET'!C304=\"\",\"\",'PEF CLASSIFICATION SHEET'!C304)","v":""},{"$f":"IF('PEF CLASSIFICATION SHEET'!C305=\"\",\"\",'PEF CLASSIFICATION SHEET'!C305)","v":""},{"$f":"IF('PEF CLASSIFICATION SHEET'!C306=\"\",\"\",'PEF CLASSIFICATION SHEET'!C306)","v":""},{"$f":"IF('PEF CLASSIFICATION SHEET'!C307=\"\",\"\",'PEF CLASSIFICATION SHEET'!C307)","v":""},{"$f":"IF('PEF CLASSIFICATION SHEET'!C308=\"\",\"\",'PEF CLASSIFICATION SHEET'!C308)","v":""},{"$f":"IF('PEF CLASSIFICATION SHEET'!C309=\"\",\"\",'PEF CLASSIFICATION SHEET'!C309)","v":""},{"$f":"IF('PEF CLASSIFICATION SHEET'!C310=\"\",\"\",'PEF CLASSIFICATION SHEET'!C310)","v":""},{"$f":"IF('PEF CLASSIFICATION SHEET'!C311=\"\",\"\",'PEF CLASSIFICATION SHEET'!C311)","v":""},{"$f":"IF('PEF CLASSIFICATION SHEET'!C312=\"\",\"\",'PEF CLASSIFICATION SHEET'!C312)","v":""},{"$f":"IF('PEF CLASSIFICATION SHEET'!C313=\"\",\"\",'PEF CLASSIFICATION SHEET'!C313)","v":""},{"$f":"IF('PEF CLASSIFICATION SHEET'!C314=\"\",\"\",'PEF CLASSIFICATION SHEET'!C314)","v":""},{"$f":"IF('PEF CLASSIFICATION SHEET'!C315=\"\",\"\",'PEF CLASSIFICATION SHEET'!C315)","v":""},{"$f":"IF('PEF CLASSIFICATION SHEET'!C316=\"\",\"\",'PEF CLASSIFICATION SHEET'!C316)","v":""},"SUB-","%","PEF"]
[null,null,null,null,null,null,null,null,null,null,null,null,null,null,null,null,null,null,null,null,null,null,null,"TOTAL","OF","ESTIMATE"]
["TASK NO.","TASK DESCRIPTION","CLASSIFICATION",null,null,null,null,null,null,null,null,null,null,null,null,null,null,null,null,null,null,null,null,null,"PROJECT",null,"COMMENTS",null,null,null,null,null,null,null,"Select Task Type","Grade Separation","CEI","Track Design","Signal Design","Environmental","Planning"]
[{"$f":"IF($AA$4=\"Select Task Type\",\"Select the TASK TYPE from drop down list in cell AA4 to populate the task list\",IF($AA$4=\"Grade Separation\",\"You selected Grade Separation\",IF($AA$4=\"CEI\",\"You selected CEI\",IF($AA$4=\"Track Design\",\"You selected Track Design.  When the task is ALL CAPS, this is a header row, if you choose to key mandays associated with that header row the row total will not be displayed but the column and overall total will sum appropriately\",IF($AA$4=\"Signal Design\",\"You selected Signal Design, note that this is initially a blank task list; so please create a task list from scratch\",IF($AA$4=\"Environmental\",\"You selected Environmental.  When the task is ALL CAPS, this is a header row, if you choose to key mandays associated with that header row the row total will not be displayed but the column and overall total will sum appropriately\",IF($AA$4=\"Planning\",\"You selected Planning.  When the task is ALL CAPS, this is a header row, if you choose to key mandays associated with that header row the row total will not be displayed but the column and overall total will sum appropriately\",\"Select the TASK TYPE from drop down list in cell AA4 to populate the task list\")))))))","v":"Select the TASK TYPE from drop down list in cell AA4 to populate the task list"},null,null,null,null,null,null,null,null,null,null,null,null,null,null,null,null,null,null,null,null,null,null,null,null,null,null,null,null,null,null,null,null,null,null,"Grade Separation","Grade Separation","CEI","CEI","Track Design","Track Design","Signal Design","Signal Design","Environmental","Environmental","Planning","Planning"]
[{"$f":"IF(AG11=0,\"\",AG11)","v":""},{"$f":"IF(AH11=0,\"\",AH11)","v":""},null,null,null,null,null,null,null,null,null,null,null,null,null,null,null,null,null,null,null,null,null,{"$f":"IF(B11=\"\",0,IF(B11=\"DEMAND ASSESSMENT\",\"\",IF(B11=\"PROJECT SCOPING AND DATA COLLECTION\",\"\",IF(B11=\"PROJECT MANAGEMENT/PROJECT ADMINISTRATION\",\"\",IF((SUM(D11:W11)=0),0,SUM(D11:W11))))))","v":0},{"$f":"IF(SUM(D11:W11)=0,\"\",((SUM(D11:W11))/$X$261))","v":""},null,null,null,null,null,null,null,{"$f":"IF($AA$4=\"Select Task Type\",\"\",IF($AA$4=\"Grade Separation\",AJ11,IF($AA$4=\"CEI\",AL11,IF($AA$4=\"Track Design\",AN11,IF($AA$4=\"Signal Design\",AP11,IF($AA$4=\"Environmental\",AR11,IF($AA$4=\"Planning\",AT11,\"\")))))))","v":""},{"$f":"IF($AA$4=\"Select Task Type\",\"\",IF($AA$4=\"Grade Separation\",AK11,IF($AA$4=\"CEI\",AM11,IF($AA$4=\"Track Design\",AO11,IF($AA$4=\"Signal Design\",AQ11,IF($AA$4=\"Environmental\",AS11,IF($AA$4=\"Planning\",AU11,\"\")))))))","v":""},null,1,"Project Familiarization",1,"Project management and document review",1,"PROJECT MANAGEMENT/PROJECT ADMINISTRATION",null,null,"A","PROJECT SCOPING AND DATA COLLECTION",1,"DEMAND ASSESSMENT"]
[{"$f":"IF(AG12=0,\"\",AG12)","v":""},{"$f":"IF(AH12=0,\"\",AH12)","v":""},null,null,null,null,null,null,null,null,null,null,null,null,null,null,null,null,null,null,null,null,null,{"$f":"IF(B12=\"\",0,IF((SUM(D12:W12)=0),0,SUM(D12:W12)))","v":0},{"$f":"IF(SUM(D12:W12)=0,\"\",((SUM(D12:W12))/$X$261))","v":""},null,null,null,null,null,null,null,{"$f":"IF($AA$4=\"Select Task Type\",\"\",IF($AA$4=\"Grade Separation\",AJ12,IF($AA$4=\"CEI\",AL12,IF($AA$4=\"Track Design\",AN12,IF($AA$4=\"Signal Design\",AP12,IF($AA$4=\"Environmental\",AR12,IF($AA$4=\"Planning\",AT12,\"\")))))))","v":""},{"$f":"IF($AA$4=\"Select Task Type\",\"\",IF($AA$4=\"Grade Separation\",AK12,IF($AA$4=\"CEI\",AM12,IF($AA$4=\"Track Design\",AO12,IF($AA$4=\"Signal Design\",AQ12,IF($AA$4=\"Environmental\",AS12,IF($AA$4=\"Planning\",AU12,\"\")))))))","v":""},null,2,"Conceptual Design",2,"Track inspection",null,null,null,null,"A.1","Study Area Definition",null,"Review previous studies"]
["","",null,null,null,null,null,null,null,null,null,null,null,null,null,null,null,null,null,null,null,null,null,0,{"$f":"IF(SUM(D13:W13)=0,\"\",((SUM(D13:W13))/$X$261))","v":""},null,null,null,null,null,null,null,"","",null,3,"Construction Cost Estimate",3,"Roadway inspection",null,null,null,null,"A.2","Study Area Field Visit",null,"Interview XX, XX, and XX on near-term rail intermodal and break bulk plans"]
["","",null,null,null,null,null,null,null,null,null,null,null,null,null,null,null,null,null,null,null,null,null,0,"",null,null,null,null,null,null,null,"","",null,4,"Project Coordination",null,null,null,null,null,null,"A.3","Community Characteristics Report",null,"Estimate effects of various rail entities"]
["","",null,null,null,null,null,null,null,null,null,null,null,null,null,null,null,null,null,null,null,null,null,0,"",null,null,null,null,null,null,null,"","",null,null,null,null,null,null,null,null,null,"A.4","Local Land Use and Transportation Plans",null,"Estimate future growth in other bulk and break bulk commodities"]
["","",null,null,null,null,null,null,null,null,null,null,null,null,null,null,null,null,null,null,null,null,null,0,"",null,null,null,null,null,null,null,"","",null,null,null,null,null,null,null,null,null,"A.5","State and Federal Data Sources",null,"Incorporate State Freight Plan into market forecasts "]
["","",null,null,null,null,null,null,null,null,null,null,null,null,null,null,null,null,null,null,null,null,null,0,"",null,null,null,null,null,null,null,"","",null,null,null,null,null,null,null,null,null,"A.6 ","GeoEnvironmental Review",null,"Project port continued share against market growth"]
["","",null,null,null,null,null,null,null,null,null,null,null,null,null,null,null,null,null,null,null,null,null,0,"",null,null,null,null,null,null,null,"","",null,null,null,null,null,null,null,null,null,"A.7","GIS Data Layers and Aerial Photography",null,"Combine forecasts from various groups into a base line forecast"]
["","",null,null,null,null,null,null,null,null,null,null,null,null,null,null,null,null,null,null,null,null,null,0,"",null,null,null,null,null,null,null,"","",null,null,null,null,null,null,null,null,null,"A.8","Evaluation of Existing Transportation Facilities",null,"Develop an updated base forecast"]
["","",null,null,null,null,null,null,null,null,null,null,null,null,null,null,null,null,null,null,null,null,null,0,"",null,null,null,null,null,null,null,"","",null,null,null,null,null,null,null,null,null,"A.9","Traffic Forecast Request",null,"Compare with freight forecast in NC State Freight Plan, contrast against existing port rail capacity, identify delta required to accommodate additional traffic"]
["","",null,null,null,null,null,null,null,null,null,null,null,null,null,null,null,null,null,null,null,null,null,0,"",null,null,null,null,null,null,null,"","",null,null,null,null,null,null,null,null,null,"A.10","Project Data Sheet",null,"Add in empty return exports and revise forecast"]
["","",null,null,null,null,null,null,null,null,null,null,null,null,null,null,null,null,null,null,null,null,null,{"$f":"IF(B22=\"\",0,IF(B22=\"FUNCTIONAL TRACK DESIGN\",\"\",IF((SUM(D22:W22)=0),0,SUM(D22:W22))))","v":0},"",null,null,null,null,null,null,null,"","",null,null,null,null,null,2,"FUNCTIONAL TRACK DESIGN",null,null,"A.11","Start of Study Letters",null,"Develop near-term outlook of market demand and system requirements"]
["","",null,null,null,null,null,null,null,null,null,null,null,null,null,null,null,null,null,null,null,null,null,{"$f":"IF(B23=\"\",0,IF((SUM(D23:W23)=0),0,SUM(D23:W23)))","v":0},"",null,null,null,null,null,null,null,"","",null,null,null,null,null,null,null,null,null,"A.12","Kickoff/Scoping Meeting",null,"Review operations and plans for XX, suggest if port rail facilities can accommodate projected growth"]
["","",null,null,null,null,null,null,null,null,null,null,null,null,null,null,null,null,null,null,null,null,null,{"$f":"IF(B24=\"\",0,IF((SUM(D24:W24)=0),0,SUM(D24:W24)))","v":0},"",null,null,null,null,null,null,null,"","",null,null,null,null,null,null,null,null,null,"A.13",null,null,"Identify conceptual rail capacity and prospects for service assuming successful XX service"]
["","",null,null,null,null,null,null,null,null,null,null,null,null,null,null,null,null,null,null,null,null,null,{"$f":"IF(B25=\"\",0,IF((SUM(D25:W25)=0),0,SUM(D25:W25)))","v":0},"",null,null,null,null,null,null,null,"","",null,null,null,null,null,null,null,null,null,"A.14",null,null,"Evaluate rail operations @ port to identify conflicts and opportunities to serve both intermodal and break bulk rail customers"]
["","",null,null,null,null,null,null,null,null,null,null,null,null,null,null,null,null,null,null,null,null,null,{"$f":"IF(B26=\"\",0,IF((SUM(D26:W26)=0),0,SUM(D26:W26)))","v":0},"",null,null,null,null,null,null,null,"","",null,null,null,null,null,null,null,null,null,"A.15",null,null,"Develop near-term outlook of market demand and system requirements"]
["","",null,null,null,null,null,null,null,null,null,null,null,null,null,null,null,null,null,null,null,null,null,{"$f":"IF(B27=\"\",0,IF((SUM(D27:W27)=0),\"\",SUM(D27:W27)))","v":0},"",null,null,null,null,null,null,null,"","",null,null,null,null,null,null,null,null,null,"A.16"]
["","",null,null,null,null,null,null,null,null,null,null,null,null,null,null,null,null,null,null,null,null,null,0,"",null,null,null,null,null,null,null,"","",null,null,null,null,null,null,null,null,null,"A.17"]
["","",null,null,null,null,null,null,null,null,null,null,null,null,null,null,null,null,null,null,null,null,null,{"$f":"IF(B29=\"\",0,IF(B29=\"TRAFFIC CAPACITY ANALYSIS AND ACCIDENT ANALYSIS\",\"\",IF((SUM(D29:W29)=0),0,SUM(D29:W29))))","v":0},"",null,null,null,null,null,null,null,"","",null,null,null,null,null,null,null,null,null,"B","TRAFFIC CAPACITY ANALYSIS AND ACCIDENT ANALYSIS"]
["","",null,null,null,null,null,null,null,null,null,null,null,null,null,null,null,null,null,null,null,null,null,{"$f":"IF(B30=\"\",0,IF((SUM(D30:W30)=0),0,SUM(D30:W30)))","v":0},"",null,null,null,null,null,null,null,"","",null,null,null,null,null,null,null,null,null,"B.1","Coordinate with Stantec & incorporate the analysis"]
["","",null,null,null,null,null,null,null,null,null,null,null,null,null,null,null,null,null,null,null,null,null,{"$f":"IF(B31=\"\",0,IF((SUM(D31:W31)=0),0,SUM(D31:W31)))","v":0},"",null,null,null,null,null,null,null,"","",null,null,null,null,null,null,null,null,null,"B.2"]
["","",null,null,null,null,null,null,null,null,null,null,null,null,null,null,null,null,null,null,null,null,null,{"$f":"IF(B32=\"\",0,IF(B32=\"PORT MASTER PLAN REVIEW\",\"\",IF((SUM(D32:W32)=0),0,SUM(D32:W32))))","v":0},"",null,null,null,null,null,null,null,"","",null,null,null,null,null,null,null,null,null,"B.3",null,2,"PORT MASTER PLAN REVIEW"]
["","",null,null,null,null,null,null,null,null,null,null,null,null,null,null,null,null,null,null,null,null,null,{"$f":"IF(B33=\"\",0,IF(B33=\"PRELIMINARY TRACK DESIGN\",\"\",IF((SUM(D33:W33)=0),0,SUM(D33:W33))))","v":0},"",null,null,null,null,null,null,null,"","",null,null,null,null,null,3,"PRELIMINARY TRACK DESIGN",null,null,"B.4",null,null,"Identify area needed to accommodate each targeted market"]
["","",null,null,null,null,null,null,null,null,null,null,null,null,null,null,null,null,null,null,null,null,null,{"$f":"IF(B34=\"\",0,IF((SUM(D34:W34)=0),0,SUM(D34:W34)))","v":0},"",null,null,null,null,null,null,null,"","",null,null,null,null,null,null,null,null,null,"B.5",null,null,"Assess ability to meet current and projected needs"]
["","",null,null,null,null,null,null,null,null,null,null,null,null,null,null,null,null,null,null,null,null,null,{"$f":"IF(B35=\"\",0,IF((SUM(D35:W35)=0),0,SUM(D35:W35)))","v":0},"",null,null,null,null,null,null,null,"","",null,null,null,null,null,null,null,null,null,"B.6",null,null,"Coordinate with Port regarding future Port plans"]
["","",null,null,null,null,null,null,null,null,null,null,null,null,null,null,null,null,null,null,null,null,null,{"$f":"IF(B36=\"\",0,IF(B36=\"PROJECT PURPOSE AND NEED\",\"\",IF((SUM(D36:W36)=0),0,SUM(D36:W36))))","v":0},"",null,null,null,null,null,null,null,"","",null,null,null,null,null,null,null,null,null,"C","PROJECT PURPOSE AND NEED",null,"Develop recommendations to layout and/or processes to meet anticipated needs while not conflicting or constraining future activities"]
["","",null,null,null,null,null,null,null,null,null,null,null,null,null,null,null,null,null,null,null,null,null,{"$f":"IF(B37=\"\",0,IF((SUM(D37:W37)=0),0,SUM(D37:W37)))","v":0},"",null,null,null,null,null,null,null,"","",null,null,null,null,null,null,null,null,null,"C.1","Preliminary Purpose and Need",null,"Prepare draft port layout"]
["","",null,null,null,null,null,null,null,null,null,null,null,null,null,null,null,null,null,null,null,null,null,0,"",null,null,null,null,null,null,null,"","",null,null,null,null,null,null,null,null,null,"C.2","Final Purpose and Need Memorandum",null,"Revise per NCDOT comments and prepare final port layout"]
["","",null,null,null,null,null,null,null,null,null,null,null,null,null,null,null,null,null,null,null,null,null,0,"",null,null,null,null,null,null,null,"","",null,null,null,null,null,null,null,null,null,"C.3"]
["","",null,null,null,null,null,null,null,null,null,null,null,null,null,null,null,null,null,null,null,null,null,0,"",null,null,null,null,null,null,null,"","",null,null,null,null,null,null,null,null,null,"C.4"]
["","",null,null,null,null,null,null,null,null,null,null,null,null,null,null,null,null,null,null,null,null,null,0,"",null,null,null,null,null,null,null,"","",null,null,null,null,null,null,null,null,null,"C.5"]
["","",null,null,null,null,null,null,null,null,null,null,null,null,null,null,null,null,null,null,null,null,null,0,"",null,null,null,null,null,null,null,"","",null,null,null,null,null,null,null,null,null,"C.6"]
["","",null,null,null,null,null,null,null,null,null,null,null,null,null,null,null,null,null,null,null,null,null,0,"",null,null,null,null,null,null,null,"","",null,null,null,null,null,null,null,null,null,"C.7"]
["","",null,null,null,null,null,null,null,null,null,null,null,null,null,null,null,null,null,null,null,null,null,{"$f":"IF(B44=\"\",0,IF(B44=\"RAIL INVENTORY AND REVIEW OF EXISTING OPERATIONS\",\"\",IF(B44=\"DEVELOPMENT AND EVALUATION OF DESIGN ALTERNATIVES\",\"\",IF(B44=\"FINAL TRACK DESIGN\",\"\",IF((SUM(D44:W44)=0),0,SUM(D44:W44))))))","v":0},"",null,null,null,null,null,null,null,"","",null,null,null,null,null,4,"FINAL TRACK DESIGN",null,null,"D","DEVELOPMENT AND EVALUATION OF DESIGN ALTERNATIVES",3,"RAIL INVENTORY AND REVIEW OF EXISTING OPERATIONS"]
["","",null,null,null,null,null,null,null,null,null,null,null,null,null,null,null,null,null,null,null,null,null,{"$f":"IF(B45=\"\",0,IF((SUM(D45:W45)=0),0,SUM(D45:W45)))","v":0},"",null,null,null,null,null,null,null,"","",null,null,null,null,null,null,null,null,null,"D.1","Collaboration on Development of Design Alternatives",null,"Review Port facilities on the ground, identify acreage which could accommodate additional functions in support of rail operations"]
["","",null,null,null,null,null,null,null,null,null,null,null,null,null,null,null,null,null,null,null,null,null,0,"",null,null,null,null,null,null,null,"","",null,null,null,null,null,null,null,null,null,"D.2","Qualitative Screening of Design Alternatives",null,"Review XX and XX track charts and track maps for Port"]
["","",null,null,null,null,null,null,null,null,null,null,null,null,null,null,null,null,null,null,null,null,null,0,"",null,null,null,null,null,null,null,"","",null,null,null,null,null,null,null,null,null,"D.3",null,null,"Review any related TSS"]
["","",null,null,null,null,null,null,null,null,null,null,null,null,null,null,null,null,null,null,null,null,null,0,"",null,null,null,null,null,null,null,"","",null,null,null,null,null,null,null,null,null,"D.4",null,null,"Conduct a windshield survey of XX line at Port and document observations"]
["","",null,null,null,null,null,null,null,null,null,null,null,null,null,null,null,null,null,null,null,null,null,0,"",null,null,null,null,null,null,null,"","",null,null,null,null,null,null,null,null,null,"D.5",null,null,"Identify opportunities to locate a future passing siding."]
["","",null,null,null,null,null,null,null,null,null,null,null,null,null,null,null,null,null,null,null,null,null,0,"",null,null,null,null,null,null,null,"","",null,null,null,null,null,null,null,null,null,"D.6"]
["","",null,null,null,null,null,null,null,null,null,null,null,null,null,null,null,null,null,null,null,null,null,0,"",null,null,null,null,null,null,null,"","",null,null,null,null,null,null,null,null,null,"D.7"]
["","",null,null,null,null,null,null,null,null,null,null,null,null,null,null,null,null,null,null,null,null,null,{"$f":"IF(B52=\"\",0,IF(B52=\"BIOTIC RESOURCES\",\"\",IF((SUM(D52:W52)=0),0,SUM(D52:W52))))","v":0},"",null,null,null,null,null,null,null,"","",null,null,null,null,null,null,null,null,null,"E.3","BIOTIC RESOURCES"]
["","",null,null,null,null,null,null,null,null,null,null,null,null,null,null,null,null,null,null,null,null,null,{"$f":"IF(B53=\"\",0,IF((SUM(D53:W53)=0),0,SUM(D53:W53)))","v":0},"",null,null,null,null,null,null,null,"","",null,null,null,null,null,null,null,null,null,"E.3.a","Terrestrial Communities"]
["","",null,null,null,null,null,null,null,null,null,null,null,null,null,null,null,null,null,null,null,null,null,{"$f":"IF(B54=\"\",0,IF((SUM(D54:W54)=0),0,SUM(D54:W54)))","v":0},"",null,null,null,null,null,null,null,"","",null,null,null,null,null,null,null,null,null,"E.3.b","Terrestrial Wildlife"]
["","",null,null,null,null,null,null,null,null,null,null,null,null,null,null,null,null,null,null,null,null,null,{"$f":"IF(B55=\"\",0,IF(B55=\"CAPACITY AND VELOCITY\",\"\",IF((SUM(D55:W55)=0),0,SUM(D55:W55))))","v":0},"",null,null,null,null,null,null,null,"","",null,null,null,null,null,null,null,null,null,"E.3.c","Aquatic Communities and Wildlife",4,"CAPACITY AND VELOCITY"]
["","",null,null,null,null,null,null,null,null,null,null,null,null,null,null,null,null,null,null,null,null,null,{"$f":"IF(B56=\"\",0,IF((SUM(D56:W56)=0),0,SUM(D56:W56)))","v":0},"",null,null,null,null,null,null,null,"","",null,null,null,null,null,null,null,null,null,"E.3.d","Invasive Species",null,"Develop a level of service (LOS) classification for XX"]
["","",null,null,null,null,null,null,null,null,null,null,null,null,null,null,null,null,null,null,null,null,null,0,"",null,null,null,null,null,null,null,"","",null,null,null,null,null,null,null,null,null,"E.3.e",null,null,"Identify theoretical capacity XX based upon tonnage (GMT), GMT per train, and number of trains"]
["","",null,null,null,null,null,null,null,null,null,null,null,null,null,null,null,null,null,null,null,null,null,0,"",null,null,null,null,null,null,null,"","",null,null,null,null,null,null,null,null,null,"E.3.f",null,null,"Compare theoretical capacity with forecast train volumes"]
["","",null,null,null,null,null,null,null,null,null,null,null,null,null,null,null,null,null,null,null,null,null,0,"",null,null,null,null,null,null,null,"","",null,null,null,null,null,null,null,null,null,"E.3.g",null,null,"Observe operations to develop an estimate of current velocity (travel time over mileage) to/from XX"]
["","",null,null,null,null,null,null,null,null,null,null,null,null,null,null,null,null,null,null,null,null,null,0,"",null,null,null,null,null,null,null,"","",null,null,null,null,null,null,null,null,null,"E.3.h",null,null,"Review XX track charts and operating rules, assess for potential changes which could more effectively utilize existing capacity"]
["","",null,null,null,null,null,null,null,null,null,null,null,null,null,null,null,null,null,null,null,null,null,0,"",null,null,null,null,null,null,null,"","",null,null,null,null,null,null,null,null,null,"E.3.i",null,null,"Review related TSS to identify projects which could increase operating speeds and improve velocity"]
["","",null,null,null,null,null,null,null,null,null,null,null,null,null,null,null,null,null,null,null,null,null,{"$f":"IF(B62=\"\",0,IF(B62=\"JURISDICTIONAL ISSUES\",\"\",IF((SUM(D62:W62)=0),0,SUM(D62:W62))))","v":0},"",null,null,null,null,null,null,null,"","",null,null,null,null,null,null,null,null,null,"E.4","JURISDICTIONAL ISSUES"]
["","",null,null,null,null,null,null,null,null,null,null,null,null,null,null,null,null,null,null,null,null,null,{"$f":"IF(B63=\"\",0,IF((SUM(D63:W63)=0),0,SUM(D63:W63)))","v":0},"",null,null,null,null,null,null,null,"","",null,null,null,null,null,null,null,null,null,"E.4.a","Clean Water Act (CWA) Waters of the US"]
["","",null,null,null,null,null,null,null,null,null,null,null,null,null,null,null,null,null,null,null,null,null,{"$f":"IF(B64=\"\",0,IF((SUM(D64:W64)=0),0,SUM(D64:W64)))","v":0},"",null,null,null,null,null,null,null,"","",null,null,null,null,null,null,null,null,null,"E.4.b","CWA Permits"]
["","",null,null,null,null,null,null,null,null,null,null,null,null,null,null,null,null,null,null,null,null,null,{"$f":"IF(B65=\"\",0,IF((SUM(D65:W65)=0),0,SUM(D65:W65)))","v":0},"",null,null,null,null,null,null,null,"","",null,null,null,null,null,null,null,null,null,"E.4.c","Construction Moratoria"]
["","",null,null,null,null,null,null,null,null,null,null,null,null,null,null,null,null,null,null,null,null,null,{"$f":"IF(B66=\"\",0,IF((SUM(D66:W66)=0),0,SUM(D66:W66)))","v":0},"",null,null,null,null,null,null,null,"","",null,null,null,null,null,null,null,null,null,"E.4.d","Rivers and Harbors Act Section 10 Navigable Waters"]
["","",null,null,null,null,null,null,null,null,null,null,null,null,null,null,null,null,null,null,null,null,null,{"$f":"IF(B67=\"\",0,IF(B67=\"RAIL INFRASTRUCTURE IMPROVEMENTS\",\"\",IF((SUM(D67:W67)=0),0,SUM(D67:W67))))","v":0},"",null,null,null,null,null,null,null,"","",null,null,null,null,null,null,null,null,null,"E.4.e","Wetland and Stream Mitigation",5,"RAIL INFRASTRUCTURE IMPROVEMENTS"]
["","",null,null,null,null,null,null,null,null,null,null,null,null,null,null,null,null,null,null,null,null,null,{"$f":"IF(B68=\"\",0,IF((SUM(D68:W68)=0),0,SUM(D68:W68)))","v":0},"",null,null,null,null,null,null,null,"","",null,null,null,null,null,null,null,null,null,"E.4.f","Endangered Species Act Protected Species",null,"Review existing infrastructure"]
["","",null,null,null,null,null,null,null,null,null,null,null,null,null,null,null,null,null,null,null,null,null,0,"",null,null,null,null,null,null,null,"","",null,null,null,null,null,null,null,null,null,"E.4.g","Essential Fish Habitat",null,"Determine potential needs based on growth"]
["","",null,null,null,null,null,null,null,null,null,null,null,null,null,null,null,null,null,null,null,null,null,0,"",null,null,null,null,null,null,null,"","",null,null,null,null,null,null,null,null,null,"E.4.h",null,null,"Suggest potential enhancements to address future needs (X scenarios)"]
["","",null,null,null,null,null,null,null,null,null,null,null,null,null,null,null,null,null,null,null,null,null,0,"",null,null,null,null,null,null,null,"","",null,null,null,null,null,null,null,null,null,"E.4.i",null,null,"Coordinate with NCDOT and others to consider the capacity of XX"]
["","",null,null,null,null,null,null,null,null,null,null,null,null,null,null,null,null,null,null,null,null,null,0,"",null,null,null,null,null,null,null,"","",null,null,null,null,null,null,null,null,null,"E.4.j",null,null,"Develop conceptual recommendations to improve efficiency of operations between XX and YY"]
["","",null,null,null,null,null,null,null,null,null,null,null,null,null,null,null,null,null,null,null,null,null,0,"",null,null,null,null,null,null,null,"","",null,null,null,null,null,null,null,null,null,"E.4.k"]
["","",null,null,null,null,null,null,null,null,null,null,null,null,null,null,null,null,null,null,null,null,null,0,"",null,null,null,null,null,null,null,"","",null,null,null,null,null,null,null,null,null,"E.4.l"]
["","",null,null,null,null,null,null,null,null,null,null,null,null,null,null,null,null,null,null,null,null,null,0,"",null,null,null,null,null,null,null,"","",null,null,null,null,null,null,null,null,null,"E.5","NRTR Document"]
[{"$f":"IF(AG76=0,\"\",AG76)","v":""},{"$f":"IF(AH76=0,\"\",AH76)","v":""},null,null,null,null,null,null,null,null,null,null,null,null,null,null,null,null,null,null,null,null,null,0,"",null,null,null,null,null,null,null,{"$f":"IF($AA$4=\"Select Task Type\",\"\",IF($AA$4=\"Grade Separation\",AJ76,IF($AA$4=\"CEI\",AL76,IF($AA$4=\"Track Design\",AN76,IF($AA$4=\"Signal Design\",AP76,IF($AA$4=\"Environmental\",AR76,IF($AA$4=\"Planning\",AT76,\"\")))))))","v":""},{"$f":"IF($AA$4=\"Select Task Type\",\"\",IF($AA$4=\"Grade Separation\",AK76,IF($AA$4=\"CEI\",AM76,IF($AA$4=\"Track Design\",AO76,IF($AA$4=\"Signal Design\",AQ76,IF($AA$4=\"Environmental\",AS76,IF($AA$4=\"Planning\",AU76,\"\")))))))","v":""},null,null,null,null,null,null,null,null,null,"E.5.a"]
["","",null,null,null,null,null,null,null,null,null,null,null,null,null,null,null,null,null,null,null,null,null,0,{"$f":"IF(SUM(D77:W77)=0,\"\",((SUM(D77:W77))/$X$261))","v":""},null,null,null,null,null,null,null,"","",null,null,null,null,null,null,null,null,null,"E.5.b"]
["","",null,null,null,null,null,null,null,null,null,null,null,null,null,null,null,null,null,null,null,null,null,{"$f":"IF(B78=\"\",0,IF(B78=\"DEVELOP SUGGESTIONS FOR OPERATIONAL AND LOGISTICAL ENHANCEMENTS\",\"\",IF((SUM(D78:W78)=0),0,SUM(D78:W78))))","v":0},"",null,null,null,null,null,null,null,"","",null,null,null,null,null,null,null,null,null,"E.5.c",null,6,"DEVELOP SUGGESTIONS FOR OPERATIONAL AND LOGISTICAL ENHANCEMENTS"]
["","",null,null,null,null,null,null,null,null,null,null,null,null,null,null,null,null,null,null,null,null,null,{"$f":"IF(B79=\"\",0,IF((SUM(D79:W79)=0),0,SUM(D79:W79)))","v":0},"",null,null,null,null,null,null,null,"","",null,null,null,null,null,null,null,null,null,"E.5.d",null,null,"Study current operations and suggest changes that might enhance efficiency or reduce costs"]
["","",null,null,null,null,null,null,null,null,null,null,null,null,null,null,null,null,null,null,null,null,null,0,"",null,null,null,null,null,null,null,"","",null,null,null,null,null,null,null,null,null,"E.5.e",null,null,"Coordinate with NCAG to assure changes are allowable"]
["","",null,null,null,null,null,null,null,null,null,null,null,null,null,null,null,null,null,null,null,null,null,0,"",null,null,null,null,null,null,null,"","",null,null,null,null,null,null,null,null,null,"E.6","Jurisdictional Features Verification",null,"Develop option for development of temporary dray Port to XX"]
["","",null,null,null,null,null,null,null,null,null,null,null,null,null,null,null,null,null,null,null,null,null,0,"",null,null,null,null,null,null,null,"","",null,null,null,null,null,null,null,null,null,"E.6.a",null,null,"Summarize potential changes and corresponding actions"]
["","",null,null,null,null,null,null,null,null,null,null,null,null,null,null,null,null,null,null,null,null,null,0,"",null,null,null,null,null,null,null,"","",null,null,null,null,null,null,null,null,null,"E.6.b"]
["","",null,null,null,null,null,null,null,null,null,null,null,null,null,null,null,null,null,null,null,null,null,0,"",null,null,null,null,null,null,null,"","",null,null,null,null,null,null,null,null,null,"E.6.c"]
["","",null,null,null,null,null,null,null,null,null,null,null,null,null,null,null,null,null,null,null,null,null,0,"",null,null,null,null,null,null,null,"","",null,null,null,null,null,null,null,null,null,"E.6.d"]
["","",null,null,null,null,null,null,null,null,null,null,null,null,null,null,null,null,null,null,null,null,null,0,"",null,null,null,null,null,null,null,"","",null,null,null,null,null,null,null,null,null,"E.6.e"]
["","",null,null,null,null,null,null,null,null,null,null,null,null,null,null,null,null,null,null,null,null,null,{"$f":"IF(B87=\"\",0,IF(B87=\"HUMAN ENVIRONMENT FIELD WORK, ANALYSIS, AND DOCUMENTATION\",\"\",IF((SUM(D87:W87)=0),0,SUM(D87:W87))))","v":0},"",null,null,null,null,null,null,null,"","",null,null,null,null,null,null,null,null,null,"F","HUMAN ENVIRONMENT FIELD WORK, ANALYSIS, AND DOCUMENTATION"]
["","",null,null,null,null,null,null,null,null,null,null,null,null,null,null,null,null,null,null,null,null,null,{"$f":"IF(B88=\"\",0,IF(B88=\"ENVIRONMENTAL SCREENING\",\"\",IF((SUM(D88:W88)=0),0,SUM(D88:W88))))","v":0},"",null,null,null,null,null,null,null,"","",null,null,null,null,null,null,null,null,null,"F.1","Community Impact Assessment",7,"ENVIRONMENTAL SCREENING"]
["","",null,null,null,null,null,null,null,null,null,null,null,null,null,null,null,null,null,null,null,null,null,{"$f":"IF(B89=\"\",0,IF((SUM(D89:W89)=0),0,SUM(D89:W89)))","v":0},"",null,null,null,null,null,null,null,"","",null,null,null,null,null,null,null,null,null,"F.1.a","Identify Community Impact Study Area",null,"Develop GIS map of available data"]
["","",null,null,null,null,null,null,null,null,null,null,null,null,null,null,null,null,null,null,null,null,null,0,"",null,null,null,null,null,null,null,"","",null,null,null,null,null,null,null,null,null,"F.1.b","Community Field Review",null,"Develop list of \"red flag\" issues"]
["","",null,null,null,null,null,null,null,null,null,null,null,null,null,null,null,null,null,null,null,null,null,0,"",null,null,null,null,null,null,null,"","",null,null,null,null,null,null,null,null,null,"F.1.c","Socioeconomic Data"]
["","",null,null,null,null,null,null,null,null,null,null,null,null,null,null,null,null,null,null,null,null,null,0,"",null,null,null,null,null,null,null,"","",null,null,null,null,null,null,null,null,null,"F.1.d","Community Facilities and Services"]
["","",null,null,null,null,null,null,null,null,null,null,null,null,null,null,null,null,null,null,null,null,null,0,"",null,null,null,null,null,null,null,"","",null,null,null,null,null,null,null,null,null,"F.1.e","Local/Regional Land Use and Development Plans"]
["","",null,null,null,null,null,null,null,null,null,null,null,null,null,null,null,null,null,null,null,null,null,0,"",null,null,null,null,null,null,null,"","",null,null,null,null,null,null,null,null,null,"F.1.f","Project Impact Assessment"]
["","",null,null,null,null,null,null,null,null,null,null,null,null,null,null,null,null,null,null,null,null,null,0,"",null,null,null,null,null,null,null,"","",null,null,null,null,null,null,null,null,null,"F.1.g","Community Impact Assessment Report"]
["","",null,null,null,null,null,null,null,null,null,null,null,null,null,null,null,null,null,null,null,null,null,{"$f":"IF(B96=\"\",0,IF(B96=\"ESTIMATE PROJECT SCENARIO BENEFITS\",\"\",IF((SUM(D96:W96)=0),0,SUM(D96:W96))))","v":0},"",null,null,null,null,null,null,null,"","",null,null,null,null,null,null,null,null,null,"F.1.h",null,8,"ESTIMATE PROJECT SCENARIO BENEFITS"]
["","",null,null,null,null,null,null,null,null,null,null,null,null,null,null,null,null,null,null,null,null,null,{"$f":"IF(B97=\"\",0,IF((SUM(D97:W97)=0),0,SUM(D97:W97)))","v":0},"",null,null,null,null,null,null,null,"","",null,null,null,null,null,null,null,null,null,"F.1.i",null,null,"Develop near-term project feasibility criteria and apply to the identified program of projects"]
["","",null,null,null,null,null,null,null,null,null,null,null,null,null,null,null,null,null,null,null,null,null,{"$f":"IF(B98=\"\",0,IF((SUM(D98:W98)=0),0,SUM(D98:W98)))","v":0},"",null,null,null,null,null,null,null,"","",null,null,null,null,null,null,null,null,null,"F.1.j",null,null,"Develop ranked list ordered according to project feasibility criteria"]
["","",null,null,null,null,null,null,null,null,null,null,null,null,null,null,null,null,null,null,null,null,null,{"$f":"IF(B99=\"\",0,IF((SUM(D99:W99)=0),0,SUM(D99:W99)))","v":0},"",null,null,null,null,null,null,null,"","",null,null,null,null,null,null,null,null,null,"F.1.k",null,null,"Perform Benefit Cost Analyses (BCA)  for up to five projects using the OMB BCA methodology"]
["","",null,null,null,null,null,null,null,null,null,null,null,null,null,null,null,null,null,null,null,null,null,{"$f":"IF(B100=\"\",0,IF((SUM(D100:W100)=0),0,SUM(D100:W100)))","v":0},"",null,null,null,null,null,null,null,"","",null,null,null,null,null,null,null,null,null,"F.1.l",null,null,"Revise per NCDOT comments"]
["","",null,null,null,null,null,null,null,null,null,null,null,null,null,null,null,null,null,null,null,null,null,{"$f":"IF(B101=\"\",0,IF(B101=\"INDIRECT AND CUMULATIVE EFFECTS SCREENING\",\"\",IF((SUM(D101:W101)=0),0,SUM(D101:W101))))","v":0},"",null,null,null,null,null,null,null,"","",null,null,null,null,null,null,null,null,null,"F.2","INDIRECT AND CUMULATIVE EFFECTS SCREENING"]
["","",null,null,null,null,null,null,null,null,null,null,null,null,null,null,null,null,null,null,null,null,null,{"$f":"IF(B102=\"\",0,IF((SUM(D102:W102)=0),0,SUM(D102:W102)))","v":0},"",null,null,null,null,null,null,null,"","",null,null,null,null,null,null,null,null,null,"F.2.a","Determine Future Land Use Study Area"]
["","",null,null,null,null,null,null,null,null,null,null,null,null,null,null,null,null,null,null,null,null,null,{"$f":"IF(B103=\"\",0,IF((SUM(D103:W103)=0),0,SUM(D103:W103)))","v":0},"",null,null,null,null,null,null,null,"","",null,null,null,null,null,null,null,null,null,"F.2.b","Determine ICE Study Time Horizon"]
["","",null,null,null,null,null,null,null,null,null,null,null,null,null,null,null,null,null,null,null,null,null,{"$f":"IF(B104=\"\",0,IF((SUM(D104:W104)=0),0,SUM(D104:W104)))","v":0},"",null,null,null,null,null,null,null,"","",null,null,null,null,null,null,null,null,null,"F.2.c","Identify Study Area Conditions and Trends"]
["","",null,null,null,null,null,null,null,null,null,null,null,null,null,null,null,null,null,null,null,null,null,{"$f":"IF(B105=\"\",0,IF((SUM(D105:W105)=0),0,SUM(D105:W105)))","v":0},"",null,null,null,null,null,null,null,"","",null,null,null,null,null,null,null,null,null,"F.2.d","Inventory of Notable Features"]
["","",null,null,null,null,null,null,null,null,null,null,null,null,null,null,null,null,null,null,null,null,null,{"$f":"IF(B106=\"\",0,IF(B106=\"GENERATE DATA NEEDED FOR SCORING IN STI\",\"\",IF((SUM(D106:W106)=0),0,SUM(D106:W106))))","v":0},"",null,null,null,null,null,null,null,"","",null,null,null,null,null,null,null,null,null,"F.2.e","Identify Impact-Causing Activities",9,"GENERATE DATA NEEDED FOR SCORING IN STI"]
["","",null,null,null,null,null,null,null,null,null,null,null,null,null,null,null,null,null,null,null,null,null,{"$f":"IF(B107=\"\",0,IF((SUM(D107:W107)=0),0,SUM(D107:W107)))","v":0},"",null,null,null,null,null,null,null,"","",null,null,null,null,null,null,null,null,null,"F.2.f","Analyze and Evaluate ICE Data",null,"Develop list of alternative solutions"]
["","",null,null,null,null,null,null,null,null,null,null,null,null,null,null,null,null,null,null,null,null,null,0,"",null,null,null,null,null,null,null,"","",null,null,null,null,null,null,null,null,null,"F.2.g","Land Use Development Scenarios",null,"Develop ranking procedure and criteria"]
["","",null,null,null,null,null,null,null,null,null,null,null,null,null,null,null,null,null,null,null,null,null,0,"",null,null,null,null,null,null,null,"","",null,null,null,null,null,null,null,null,null,"F.2.h","Indirect and Cumulative Effects Screening",null,"Adjust per NCDOT comments"]
["","",null,null,null,null,null,null,null,null,null,null,null,null,null,null,null,null,null,null,null,null,null,0,"",null,null,null,null,null,null,null,"","",null,null,null,null,null,null,null,null,null,"F.2.i",null,null,"Apply procedure/criteria to project alternatives"]
["","",null,null,null,null,null,null,null,null,null,null,null,null,null,null,null,null,null,null,null,null,null,0,"",null,null,null,null,null,null,null,"","",null,null,null,null,null,null,null,null,null,"F.2.j",null,null,"Review resulting list"]
["","",null,null,null,null,null,null,null,null,null,null,null,null,null,null,null,null,null,null,null,null,null,0,"",null,null,null,null,null,null,null,"","",null,null,null,null,null,null,null,null,null,"F.2.k",null,null,"Suggest revisions to procedure as needed"]
["","",null,null,null,null,null,null,null,null,null,null,null,null,null,null,null,null,null,null,null,null,null,0,"",null,null,null,null,null,null,null,"","",null,null,null,null,null,null,null,null,null,"F.2.l",null,null,"Revise criteria and redevelop list"]
["","",null,null,null,null,null,null,null,null,null,null,null,null,null,null,null,null,null,null,null,null,null,0,"",null,null,null,null,null,null,null,"","",null,null,null,null,null,null,null,null,null,"F.2.m",null,null,"Suggest project timing"]
["","",null,null,null,null,null,null,null,null,null,null,null,null,null,null,null,null,null,null,null,null,null,{"$f":"IF(B115=\"\",0,IF(B115=\"NOISE AND VIBRATION IMPACT ANALYSIS\",\"\",IF((SUM(D115:W115)=0),0,SUM(D115:W115))))","v":0},"",null,null,null,null,null,null,null,"","",null,null,null,null,null,null,null,null,null,"F.3.","NOISE AND VIBRATION IMPACT ANALYSIS",null,"Suggest project funding source(s)"]
["","",null,null,null,null,null,null,null,null,null,null,null,null,null,null,null,null,null,null,null,null,null,{"$f":"IF(B116=\"\",0,IF((SUM(D116:W116)=0),0,SUM(D116:W116)))","v":0},"",null,null,null,null,null,null,null,"","",null,null,null,null,null,null,null,null,null,"F.3.a","Coordination",null,"Develop opinion of cost for highest 5 ranking projects"]
["","",null,null,null,null,null,null,null,null,null,null,null,null,null,null,null,null,null,null,null,null,null,0,"",null,null,null,null,null,null,null,"","",null,null,null,null,null,null,null,null,null,null,"Initial Meeting with Rail Division",null,"Develop estimate of benefits for highest 5 ranking projects"]
["","",null,null,null,null,null,null,null,null,null,null,null,null,null,null,null,null,null,null,null,null,null,0,"",null,null,null,null,null,null,null,"","",null,null,null,null,null,null,null,null,null,"F.3.b","Data Compilation"]
["","",null,null,null,null,null,null,null,null,null,null,null,null,null,null,null,null,null,null,null,null,null,0,"",null,null,null,null,null,null,null,"","",null,null,null,null,null,null,null,null,null,null,"Project Area Reconnaissance, if applicable"]
["","",null,null,null,null,null,null,null,null,null,null,null,null,null,null,null,null,null,null,null,null,null,0,"",null,null,null,null,null,null,null,"","",null,null,null,null,null,null,null,null,null,null,"Identify noise sensitive land uses"]
["","",null,null,null,null,null,null,null,null,null,null,null,null,null,null,null,null,null,null,null,null,null,0,"",null,null,null,null,null,null,null,"","",null,null,null,null,null,null,null,null,null,null,"Prepare Noise Analysis Work Plan"]
["","",null,null,null,null,null,null,null,null,null,null,null,null,null,null,null,null,null,null,null,null,null,0,"",null,null,null,null,null,null,null,"","",null,null,null,null,null,null,null,null,null,"F.3.c","Selection of Analysis Sites"]
["","",null,null,null,null,null,null,null,null,null,null,null,null,null,null,null,null,null,null,null,null,null,{"$f":"IF(B123=\"\",0,IF(B123=\"IDENTIFY POTENTIAL PROJECTS FOR FEDERAL PROGRAMS\",\"\",IF((SUM(D123:W123)=0),0,SUM(D123:W123))))","v":0},"",null,null,null,null,null,null,null,"","",null,null,null,null,null,null,null,null,null,"F.3.d","Noise Analysis",10,"IDENTIFY POTENTIAL PROJECTS FOR FEDERAL PROGRAMS"]
["","",null,null,null,null,null,null,null,null,null,null,null,null,null,null,null,null,null,null,null,null,null,{"$f":"IF(B124=\"\",0,IF((SUM(D124:W124)=0),0,SUM(D124:W124)))","v":0},"",null,null,null,null,null,null,null,"","",null,null,null,null,null,null,null,null,null,null,"Monitoring / Fieldwork / Processing",null,"Research and prepare a technical memoranda identifying existing federal grant and loan programs for ports and rail improvements"]
["","",null,null,null,null,null,null,null,null,null,null,null,null,null,null,null,null,null,null,null,null,null,0,"",null,null,null,null,null,null,null,"","",null,null,null,null,null,null,null,null,null,null,"Traffic noise analysis",null,"Screen the program of projects for federal grant and loan program eligibility "]
["","",null,null,null,null,null,null,null,null,null,null,null,null,null,null,null,null,null,null,null,null,null,0,"",null,null,null,null,null,null,null,"","",null,null,null,null,null,null,null,null,null,null,"Rail noise analysis",null,"Recommend federal funding resources applicable to candidate projects"]
["","",null,null,null,null,null,null,null,null,null,null,null,null,null,null,null,null,null,null,null,null,null,0,"",null,null,null,null,null,null,null,"","",null,null,null,null,null,null,null,null,null,"F.3.e","Determination of Impacts"]
["","",null,null,null,null,null,null,null,null,null,null,null,null,null,null,null,null,null,null,null,null,null,0,"",null,null,null,null,null,null,null,"","",null,null,null,null,null,null,null,null,null,null,"Traffic noise analysis"]
["","",null,null,null,null,null,null,null,null,null,null,null,null,null,null,null,null,null,null,null,null,null,0,"",null,null,null,null,null,null,null,"","",null,null,null,null,null,null,null,null,null,null,"Rail noise analysis"]
["","",null,null,null,null,null,null,null,null,null,null,null,null,null,null,null,null,null,null,null,null,null,0,"",null,null,null,null,null,null,null,"","",null,null,null,null,null,null,null,null,null,null,"Traffic and rail noise impact assessment"]
["","",null,null,null,null,null,null,null,null,null,null,null,null,null,null,null,null,null,null,null,null,null,0,"",null,null,null,null,null,null,null,"","",null,null,null,null,null,null,null,null,null,"F.3.f","Noise Abatement Considerations"]
["","",null,null,null,null,null,null,null,null,null,null,null,null,null,null,null,null,null,null,null,null,null,{"$f":"IF(B132=\"\",0,IF(B132=\"PREPARE PROGRAM OF PROJECTS\",\"\",IF((SUM(D132:W132)=0),0,SUM(D132:W132))))","v":0},"",null,null,null,null,null,null,null,"","",null,null,null,null,null,null,null,null,null,null,"Noise barrier analysis",11,"PREPARE PROGRAM OF PROJECTS"]
["","",null,null,null,null,null,null,null,null,null,null,null,null,null,null,null,null,null,null,null,null,null,{"$f":"IF(B133=\"\",0,IF((SUM(D133:W133)=0),0,SUM(D133:W133)))","v":0},"",null,null,null,null,null,null,null,"","",null,null,null,null,null,null,null,null,null,null,"QA/Review",null,"Develop ranked list of projects based on benefit data"]
["","",null,null,null,null,null,null,null,null,null,null,null,null,null,null,null,null,null,null,null,null,null,0,"",null,null,null,null,null,null,null,"","",null,null,null,null,null,null,null,null,null,"F.3.g","Vibration Analysis",null,"Develop timing plan "]
["","",null,null,null,null,null,null,null,null,null,null,null,null,null,null,null,null,null,null,null,null,null,0,"",null,null,null,null,null,null,null,"","",null,null,null,null,null,null,null,null,null,"F.3.h","Noise and Vibration Technical Report",null,"Develop list of possible funding sources (limited to most likely source)"]
["","",null,null,null,null,null,null,null,null,null,null,null,null,null,null,null,null,null,null,null,null,null,0,"",null,null,null,null,null,null,null,"","",null,null,null,null,null,null,null,null,null,null,"Draft Report - text, tables, figures",null,"Calculate ranking based on criteria and or weighting data provided by NCDOT"]
["","",null,null,null,null,null,null,null,null,null,null,null,null,null,null,null,null,null,null,null,null,null,0,"",null,null,null,null,null,null,null,"","",null,null,null,null,null,null,null,null,null,null,"Draft Report - Appendices",null,"Submit draft list to NCDOT"]
["","",null,null,null,null,null,null,null,null,null,null,null,null,null,null,null,null,null,null,null,null,null,0,"",null,null,null,null,null,null,null,"","",null,null,null,null,null,null,null,null,null,null,"QA/Review",null,"Revise based on NCDOT comments"]
["","",null,null,null,null,null,null,null,null,null,null,null,null,null,null,null,null,null,null,null,null,null,0,"",null,null,null,null,null,null,null,"","",null,null,null,null,null,null,null,null,null,null,"Prepare Comment/Response Matrix"]
[{"$f":"IF(AG140=0,\"\",AG140)","v":""},{"$f":"IF(AH140=0,\"\",AH140)","v":""},null,null,null,null,null,null,null,null,null,null,null,null,null,null,null,null,null,null,null,null,null,0,"",null,null,null,null,null,null,null,{"$f":"IF($AA$4=\"Select Task Type\",\"\",IF($AA$4=\"Grade Separation\",AJ140,IF($AA$4=\"CEI\",AL140,IF($AA$4=\"Track Design\",AN140,IF($AA$4=\"Signal Design\",AP140,IF($AA$4=\"Environmental\",AR140,IF($AA$4=\"Planning\",AT140,\"\")))))))","v":""},{"$f":"IF($AA$4=\"Select Task Type\",\"\",IF($AA$4=\"Grade Separation\",AK140,IF($AA$4=\"CEI\",AM140,IF($AA$4=\"Track Design\",AO140,IF($AA$4=\"Signal Design\",AQ140,IF($AA$4=\"Environmental\",AS140,IF($AA$4=\"Planning\",AU140,\"\")))))))","v":""},null,null,null,null,null,null,null,null,null,null,"Prepare Final Report (includes QA/Review)"]
["","",null,null,null,null,null,null,null,null,null,null,null,null,null,null,null,null,null,null,null,null,null,0,{"$f":"IF(SUM(D141:W141)=0,\"\",((SUM(D141:W141))/$X$261))","v":""},null,null,null,null,null,null,null,"","",null,null,null,null,null,null,null,null,null,"F.3.i"]
["","",null,null,null,null,null,null,null,null,null,null,null,null,null,null,null,null,null,null,null,null,null,0,"",null,null,null,null,null,null,null,"","",null,null,null,null,null,null,null,null,null,"F.3.j"]
["","",null,null,null,null,null,null,null,null,null,null,null,null,null,null,null,null,null,null,null,null,null,0,"",null,null,null,null,null,null,null,"","",null,null,null,null,null,null,null,null,null,"F.3.k"]
["","",null,null,null,null,null,null,null,null,null,null,null,null,null,null,null,null,null,null,null,null,null,{"$f":"IF(B144=\"\",0,IF(B144=\"STAKEHOLDER INVOLVEMENT\",\"\",IF((SUM(D144:W144)=0),0,SUM(D144:W144))))","v":0},"",null,null,null,null,null,null,null,"","",null,null,null,null,null,null,null,null,null,"F.3.l",null,12,"STAKEHOLDER INVOLVEMENT"]
["","",null,null,null,null,null,null,null,null,null,null,null,null,null,null,null,null,null,null,null,null,null,{"$f":"IF(B145=\"\",0,IF((SUM(D145:W145)=0),0,SUM(D145:W145)))","v":0},"",null,null,null,null,null,null,null,"","",null,null,null,null,null,null,null,null,null,"F.3.m",null,null,"Attend 2 meetings (facilitated by others)"]
["","",null,null,null,null,null,null,null,null,null,null,null,null,null,null,null,null,null,null,null,null,null,{"$f":"IF(B146=\"\",0,IF(B146=\"AIR QUALITY ANALYSIS\",\"\",IF((SUM(D146:W146)=0),0,SUM(D146:W146))))","v":0},"",null,null,null,null,null,null,null,"","",null,null,null,null,null,null,null,null,null,"F.4","AIR QUALITY ANALYSIS",null,"Coordinate with NCDOT to discuss results of stakeholder interaction"]
["","",null,null,null,null,null,null,null,null,null,null,null,null,null,null,null,null,null,null,null,null,null,{"$f":"IF(B147=\"\",0,IF((SUM(D147:W147)=0),0,SUM(D147:W147)))","v":0},"",null,null,null,null,null,null,null,"","",null,null,null,null,null,null,null,null,null,"F.4.a","Data Compilation"]
["","",null,null,null,null,null,null,null,null,null,null,null,null,null,null,null,null,null,null,null,null,null,{"$f":"IF(B148=\"\",0,IF((SUM(D148:W148)=0),0,SUM(D148:W148)))","v":0},"",null,null,null,null,null,null,null,"","",null,null,null,null,null,null,null,null,null,"F.4.b","Attainment Status and Conformity"]
["","",null,null,null,null,null,null,null,null,null,null,null,null,null,null,null,null,null,null,null,null,null,{"$f":"IF(B149=\"\",0,IF((SUM(D149:W149)=0),0,SUM(D149:W149)))","v":0},"",null,null,null,null,null,null,null,"","",null,null,null,null,null,null,null,null,null,"F.4.c","Carbon Monoxide Air Quality Analysis"]
["","",null,null,null,null,null,null,null,null,null,null,null,null,null,null,null,null,null,null,null,null,null,{"$f":"IF(B150=\"\",0,IF((SUM(D150:W150)=0),0,SUM(D150:W150)))","v":0},"",null,null,null,null,null,null,null,"","",null,null,null,null,null,null,null,null,null,"F.4.d","Particulate Matter"]
["","",null,null,null,null,null,null,null,null,null,null,null,null,null,null,null,null,null,null,null,null,null,{"$f":"IF(B151=\"\",0,IF((SUM(D151:W151)=0),0,SUM(D151:W151)))","v":0},"",null,null,null,null,null,null,null,"","",null,null,null,null,null,null,null,null,null,"F.4.e","Mobile Source Air Toxics (MSATs)"]
["","",null,null,null,null,null,null,null,null,null,null,null,null,null,null,null,null,null,null,null,null,null,{"$f":"IF(B152=\"\",0,IF(B152=\"SCHEDULE\",\"\",IF((SUM(D152:W152)=0),0,SUM(D152:W152))))","v":0},"",null,null,null,null,null,null,null,"","",null,null,null,null,null,null,null,null,null,"F.4.f","Greenhouse Gas Emissions (GHGs)",13,"SCHEDULE"]
["","",null,null,null,null,null,null,null,null,null,null,null,null,null,null,null,null,null,null,null,null,null,{"$f":"IF(B153=\"\",0,IF((SUM(D153:W153)=0),0,SUM(D153:W153)))","v":0},"",null,null,null,null,null,null,null,"","",null,null,null,null,null,null,null,null,null,"F.4.g","Air Quality Technical Report",null,"Develop schedule of deliverable and review tasks"]
["","",null,null,null,null,null,null,null,null,null,null,null,null,null,null,null,null,null,null,null,null,null,0,"",null,null,null,null,null,null,null,"","",null,null,null,null,null,null,null,null,null,"F.4.h",null,null,"Update schedule as needed"]
["","",null,null,null,null,null,null,null,null,null,null,null,null,null,null,null,null,null,null,null,null,null,0,"",null,null,null,null,null,null,null,"","",null,null,null,null,null,null,null,null,null,"F.4.i"]
["","",null,null,null,null,null,null,null,null,null,null,null,null,null,null,null,null,null,null,null,null,null,0,"",null,null,null,null,null,null,null,"","",null,null,null,null,null,null,null,null,null,"F.4.j"]
["","",null,null,null,null,null,null,null,null,null,null,null,null,null,null,null,null,null,null,null,null,null,0,"",null,null,null,null,null,null,null,"","",null,null,null,null,null,null,null,null,null,"F.4.k"]
["","",null,null,null,null,null,null,null,null,null,null,null,null,null,null,null,null,null,null,null,null,null,0,"",null,null,null,null,null,null,null,"","",null,null,null,null,null,null,null,null,null,"F.4.l"]
["","",null,null,null,null,null,null,null,null,null,null,null,null,null,null,null,null,null,null,null,null,null,{"$f":"IF(B159=\"\",0,IF(B159=\"CULTURAL RESOURCES ANALYSIS\",\"\",IF((SUM(D159:W159)=0),0,SUM(D159:W159))))","v":0},"",null,null,null,null,null,null,null,"","",null,null,null,null,null,null,null,null,null,"F.5","CULTURAL RESOURCES ANALYSIS"]
["","",null,null,null,null,null,null,null,null,null,null,null,null,null,null,null,null,null,null,null,null,null,{"$f":"IF(B160=\"\",0,IF(B160=\"REPORT\",\"\",IF((SUM(D160:W160)=0),0,SUM(D160:W160))))","v":0},"",null,null,null,null,null,null,null,"","",null,null,null,null,null,null,null,null,null,"F.5.a","Phase 1 Historic Architectural Analysis",14,"REPORT"]
["","",null,null,null,null,null,null,null,null,null,null,null,null,null,null,null,null,null,null,null,null,null,{"$f":"IF(B161=\"\",0,IF(B161=\"ARCHAEOLOGICAL ANALYSIS\",\"\",IF((SUM(D161:W161)=0),0,SUM(D161:W161))))","v":0},"",null,null,null,null,null,null,null,"","",null,null,null,null,null,null,null,null,null,"F.5.b","ARCHAEOLOGICAL ANALYSIS",null,"Prepare draft report (electronic version only) for NCDOT review"]
["","",null,null,null,null,null,null,null,null,null,null,null,null,null,null,null,null,null,null,null,null,null,{"$f":"IF(B162=\"\",0,IF((SUM(D162:W162)=0),0,SUM(D162:W162)))","v":0},"",null,null,null,null,null,null,null,"","",null,null,null,null,null,null,null,null,null,null,"Conduct Background Research of information from NC OSA/ SHPO",null,"Revise per NCDOT comments"]
["","",null,null,null,null,null,null,null,null,null,null,null,null,null,null,null,null,null,null,null,null,null,0,"",null,null,null,null,null,null,null,"","",null,null,null,null,null,null,null,null,null,null,"Collect previously recorded sites and surveys in study area",null,"Prepare final report"]
["","",null,null,null,null,null,null,null,null,null,null,null,null,null,null,null,null,null,null,null,null,null,0,"",null,null,null,null,null,null,null,"","",null,null,null,null,null,null,null,null,null,null,"Prepare Archaeological Overview Report"]
["","",null,null,null,null,null,null,null,null,null,null,null,null,null,null,null,null,null,null,null,null,null,0,"",null,null,null,null,null,null,null,"","",null,null,null,null,null,null,null,null,null,null," known archaeological resources in alternatives or study area"]
["","",null,null,null,null,null,null,null,null,null,null,null,null,null,null,null,null,null,null,null,null,null,0,"",null,null,null,null,null,null,null,"","",null,null,null,null,null,null,null,null,null,null," sites of value for reasons other than recoverable information"]
["","",null,null,null,null,null,null,null,null,null,null,null,null,null,null,null,null,null,null,null,null,null,0,"",null,null,null,null,null,null,null,"","",null,null,null,null,null,null,null,null,null,null," assessment of potential for archaeological sites in areas not previously surveyed"]
["","",null,null,null,null,null,null,null,null,null,null,null,null,null,null,null,null,null,null,null,null,null,0,"",null,null,null,null,null,null,null,"","",null,null,null,null,null,null,null,null,null,null," recommendations regarding need for archaeological survey"]
["","",null,null,null,null,null,null,null,null,null,null,null,null,null,null,null,null,null,null,null,null,null,{"$f":"IF(B169=\"\",0,IF(B169=\"PROJECT COORDINATION\",\"\",IF((SUM(D169:W169)=0),0,SUM(D169:W169))))","v":0},"",null,null,null,null,null,null,null,"","",null,null,null,null,null,null,null,null,null,null,"Graphics showing alternatives, previously studied areas, and known sites",15,"PROJECT COORDINATION"]
["","",null,null,null,null,null,null,null,null,null,null,null,null,null,null,null,null,null,null,null,null,null,{"$f":"IF(B170=\"\",0,IF((SUM(D170:W170)=0),0,SUM(D170:W170)))","v":0},"",null,null,null,null,null,null,null,"","",null,null,null,null,null,null,null,null,null,null,"Submit Draft Archaeological Overview Report",null,"Coordinate internally with staff and subconsultants"]
["","",null,null,null,null,null,null,null,null,null,null,null,null,null,null,null,null,null,null,null,null,null,0,"",null,null,null,null,null,null,null,"","",null,null,null,null,null,null,null,null,null,null,"Address NCDOT comments on Draft Archaeological Overview Report"]
["","",null,null,null,null,null,null,null,null,null,null,null,null,null,null,null,null,null,null,null,null,null,0,"",null,null,null,null,null,null,null,"","",null,null,null,null,null,null,null,null,null,null,"Submit Final Archaeological Overview Report"]
["","",null,null,null,null,null,null,null,null,null,null,null,null,null,null,null,null,null,null,null,null,null,0,"",null,null,null,null,null,null,null,"","",null,null,null,null,null,null,null,null,null,null,"Meeting attendance and coordination"]
["","",null,null,null,null,null,null,null,null,null,null,null,null,null,null,null,null,null,null,null,null,null,0,"",null,null,null,null,null,null,null,"","",null,null,null,null,null,null,null,null,null,"F.5.c"]
["","",null,null,null,null,null,null,null,null,null,null,null,null,null,null,null,null,null,null,null,null,null,0,"",null,null,null,null,null,null,null,"","",null,null,null,null,null,null,null,null,null,"F.5.d"]
["","",null,null,null,null,null,null,null,null,null,null,null,null,null,null,null,null,null,null,null,null,null,{"$f":"IF(B176=\"\",0,IF(B176=\"TRUCK ALTERNATIVE ROUTE ANALYSIS\",\"\",IF((SUM(D176:W176)=0),0,SUM(D176:W176))))","v":0},"",null,null,null,null,null,null,null,"","",null,null,null,null,null,null,null,null,null,"F.5.e",null,16,"TRUCK ALTERNATIVE ROUTE ANALYSIS"]
["","",null,null,null,null,null,null,null,null,null,null,null,null,null,null,null,null,null,null,null,null,null,{"$f":"IF(B177=\"\",0,IF((SUM(D177:W177)=0),0,SUM(D177:W177)))","v":0},"",null,null,null,null,null,null,null,"","",null,null,null,null,null,null,null,null,null,"F.5.f",null,null,"Truck Alternative Route Analysis (XX to the Port)"]
["","",null,null,null,null,null,null,null,null,null,null,null,null,null,null,null,null,null,null,null,null,null,{"$f":"IF(B178=\"\",0,IF((SUM(D178:W178)=0),0,SUM(D178:W178)))","v":0},"",null,null,null,null,null,null,null,"","",null,null,null,null,null,null,null,null,null,"F.5.g"]
["","",null,null,null,null,null,null,null,null,null,null,null,null,null,null,null,null,null,null,null,null,null,{"$f":"IF(B179=\"\",0,IF(B179=\"OTHER PHYSICAL FEATURES ANALYSIS\",\"\",IF((SUM(D179:W179)=0),0,SUM(D179:W179))))","v":0},"",null,null,null,null,null,null,null,"","",null,null,null,null,null,null,null,null,null,"G","OTHER PHYSICAL FEATURES ANALYSIS"]
["","",null,null,null,null,null,null,null,null,null,null,null,null,null,null,null,null,null,null,null,null,null,{"$f":"IF(B180=\"\",0,IF((SUM(D180:W180)=0),0,SUM(D180:W180)))","v":0},"",null,null,null,null,null,null,null,"","",null,null,null,null,null,null,null,null,null,"G.1","Identify Potential Floodplain and Floodway Impacts"]
["","",null,null,null,null,null,null,null,null,null,null,null,null,null,null,null,null,null,null,null,null,null,{"$f":"IF(B181=\"\",0,IF((SUM(D181:W181)=0),0,SUM(D181:W181)))","v":0},"",null,null,null,null,null,null,null,"","",null,null,null,null,null,null,null,null,null,"G.2","Farmland Assessment"]
["","",null,null,null,null,null,null,null,null,null,null,null,null,null,null,null,null,null,null,null,null,null,{"$f":"IF(B182=\"\",0,IF(B182=\"FEASIBILITY STUDY\",\"\",IF((SUM(D182:W182)=0),0,SUM(D182:W182))))","v":0},"",null,null,null,null,null,null,null,"","",null,null,null,null,null,null,null,null,null,"G.3","Hazardous Materials Assessment",17,"FEASIBILITY STUDY"]
["","",null,null,null,null,null,null,null,null,null,null,null,null,null,null,null,null,null,null,null,null,null,{"$f":"IF(B183=\"\",0,IF((SUM(D183:W183)=0),0,SUM(D183:W183)))","v":0},"",null,null,null,null,null,null,null,"","",null,null,null,null,null,null,null,null,null,"G.4","Visual Impact Analysis"]
["","",null,null,null,null,null,null,null,null,null,null,null,null,null,null,null,null,null,null,null,null,null,0,"",null,null,null,null,null,null,null,"","",null,null,null,null,null,null,null,null,null,"G.5","Identify Potential Public Utility Impacts"]
["","",null,null,null,null,null,null,null,null,null,null,null,null,null,null,null,null,null,null,null,null,null,0,"",null,null,null,null,null,null,null,"","",null,null,null,null,null,null,null,null,null,"G.6"]
["","",null,null,null,null,null,null,null,null,null,null,null,null,null,null,null,null,null,null,null,null,null,0,"",null,null,null,null,null,null,null,"","",null,null,null,null,null,null,null,null,null,"G.7"]
["","",null,null,null,null,null,null,null,null,null,null,null,null,null,null,null,null,null,null,null,null,null,0,"",null,null,null,null,null,null,null,"","",null,null,null,null,null,null,null,null,null,"G.8"]
["","",null,null,null,null,null,null,null,null,null,null,null,null,null,null,null,null,null,null,null,null,null,0,"",null,null,null,null,null,null,null,"","",null,null,null,null,null,null,null,null,null,"G.9"]
["","",null,null,null,null,null,null,null,null,null,null,null,null,null,null,null,null,null,null,null,null,null,0,"",null,null,null,null,null,null,null,"","",null,null,null,null,null,null,null,null,null,"G.10"]
["","",null,null,null,null,null,null,null,null,null,null,null,null,null,null,null,null,null,null,null,null,null,{"$f":"IF(B190=\"\",0,IF(B190=\"SECTION 4(F) AND SECTION 6(F)\",\"\",IF((SUM(D190:W190)=0),0,SUM(D190:W190))))","v":0},"",null,null,null,null,null,null,null,"","",null,null,null,null,null,null,null,null,null,"H","SECTION 4(F) AND SECTION 6(F)"]
["","",null,null,null,null,null,null,null,null,null,null,null,null,null,null,null,null,null,null,null,null,null,{"$f":"IF(B191=\"\",0,IF((SUM(D191:W191)=0),0,SUM(D191:W191)))","v":0},"",null,null,null,null,null,null,null,"","",null,null,null,null,null,null,null,null,null,"H.1"]
["","",null,null,null,null,null,null,null,null,null,null,null,null,null,null,null,null,null,null,null,null,null,{"$f":"IF(B192=\"\",0,IF((SUM(D192:W192)=0),0,SUM(D192:W192)))","v":0},"",null,null,null,null,null,null,null,"","",null,null,null,null,null,null,null,null,null,"H.2"]
["","",null,null,null,null,null,null,null,null,null,null,null,null,null,null,null,null,null,null,null,null,null,{"$f":"IF(B193=\"\",0,IF((SUM(D193:W193)=0),0,SUM(D193:W193)))","v":0},"",null,null,null,null,null,null,null,"","",null,null,null,null,null,null,null,null,null,"H.3"]
["","",null,null,null,null,null,null,null,null,null,null,null,null,null,null,null,null,null,null,null,null,null,{"$f":"IF(B194=\"\",0,IF((SUM(D194:W194)=0),0,SUM(D194:W194)))","v":0},"",null,null,null,null,null,null,null,"","",null,null,null,null,null,null,null,null,null,"H.4"]
["","",null,null,null,null,null,null,null,null,null,null,null,null,null,null,null,null,null,null,null,null,null,{"$f":"IF(B195=\"\",0,IF((SUM(D195:W195)=0),0,SUM(D195:W195)))","v":0},"",null,null,null,null,null,null,null,"","",null,null,null,null,null,null,null,null,null,"H.5"]
["","",null,null,null,null,null,null,null,null,null,null,null,null,null,null,null,null,null,null,null,null,null,{"$f":"IF(B196=\"\",0,IF(B196=\"DRAFT ENVIRONMENTAL DOCUMENT\",\"\",IF((SUM(D196:W196)=0),0,SUM(D196:W196))))","v":0},"",null,null,null,null,null,null,null,"","",null,null,null,null,null,null,null,null,null,"I","DRAFT ENVIRONMENTAL DOCUMENT"]
["","",null,null,null,null,null,null,null,null,null,null,null,null,null,null,null,null,null,null,null,null,null,{"$f":"IF(B197=\"\",0,IF((SUM(D197:W197)=0),0,SUM(D197:W197)))","v":0},"",null,null,null,null,null,null,null,"","",null,null,null,null,null,null,null,null,null,"I.1","Purpose and Need"]
["","",null,null,null,null,null,null,null,null,null,null,null,null,null,null,null,null,null,null,null,null,null,0,"",null,null,null,null,null,null,null,"","",null,null,null,null,null,null,null,null,null,"I.2","Alternatives Considered"]
["","",null,null,null,null,null,null,null,null,null,null,null,null,null,null,null,null,null,null,null,null,null,0,"",null,null,null,null,null,null,null,"","",null,null,null,null,null,null,null,null,null,"I.3","Human Environment"]
["","",null,null,null,null,null,null,null,null,null,null,null,null,null,null,null,null,null,null,null,null,null,0,"",null,null,null,null,null,null,null,"","",null,null,null,null,null,null,null,null,null,"I.4","Physical Environment"]
["","",null,null,null,null,null,null,null,null,null,null,null,null,null,null,null,null,null,null,null,null,null,0,"",null,null,null,null,null,null,null,"","",null,null,null,null,null,null,null,null,null,"I.5","Cultural Resources"]
["","",null,null,null,null,null,null,null,null,null,null,null,null,null,null,null,null,null,null,null,null,null,0,"",null,null,null,null,null,null,null,"","",null,null,null,null,null,null,null,null,null,"I.6","Natural Resources"]
["","",null,null,null,null,null,null,null,null,null,null,null,null,null,null,null,null,null,null,null,null,null,0,"",null,null,null,null,null,null,null,"","",null,null,null,null,null,null,null,null,null,"I.7","Environmental Impacts"]
[{"$f":"IF(AG204=0,\"\",AG204)","v":""},{"$f":"IF(AH204=0,\"\",AH204)","v":""},null,null,null,null,null,null,null,null,null,null,null,null,null,null,null,null,null,null,null,null,null,0,"",null,null,null,null,null,null,null,{"$f":"IF($AA$4=\"Select Task Type\",\"\",IF($AA$4=\"Grade Separation\",AJ204,IF($AA$4=\"CEI\",AL204,IF($AA$4=\"Track Design\",AN204,IF($AA$4=\"Signal Design\",AP204,IF($AA$4=\"Environmental\",AR204,IF($AA$4=\"Planning\",AT204,\"\")))))))","v":""},{"$f":"IF($AA$4=\"Select Task Type\",\"\",IF($AA$4=\"Grade Separation\",AK204,IF($AA$4=\"CEI\",AM204,IF($AA$4=\"Track Design\",AO204,IF($AA$4=\"Signal Design\",AQ204,IF($AA$4=\"Environmental\",AS204,IF($AA$4=\"Planning\",AU204,\"\")))))))","v":""},null,null,null,null,null,null,null,null,null,"I.8","Indirect and Cumulative Effects"]
["","",null,null,null,null,null,null,null,null,null,null,null,null,null,null,null,null,null,null,null,null,null,0,{"$f":"IF(SUM(D205:W205)=0,\"\",((SUM(D205:W205))/$X$261))","v":""},null,null,null,null,null,null,null,"","",null,null,null,null,null,null,null,null,null,"I.9","Other Impact Considerations"]
["","",null,null,null,null,null,null,null,null,null,null,null,null,null,null,null,null,null,null,null,null,null,0,"",null,null,null,null,null,null,null,"","",null,null,null,null,null,null,null,null,null,"I.10","Public Involvement ad Agency Coordination"]
["","",null,null,null,null,null,null,null,null,null,null,null,null,null,null,null,null,null,null,null,null,null,0,"",null,null,null,null,null,null,null,"","",null,null,null,null,null,null,null,null,null,"I.11","Compile Draft EA & Final EA"]
["","",null,null,null,null,null,null,null,null,null,null,null,null,null,null,null,null,null,null,null,null,null,0,"",null,null,null,null,null,null,null,"","",null,null,null,null,null,null,null,null,null,"I.12","Review and Distribution of EA"]
["","",null,null,null,null,null,null,null,null,null,null,null,null,null,null,null,null,null,null,null,null,null,0,"",null,null,null,null,null,null,null,"","",null,null,null,null,null,null,null,null,null,"I.13"]
["","",null,null,null,null,null,null,null,null,null,null,null,null,null,null,null,null,null,null,null,null,null,0,"",null,null,null,null,null,null,null,"","",null,null,null,null,null,null,null,null,null,"I.14"]
["","",null,null,null,null,null,null,null,null,null,null,null,null,null,null,null,null,null,null,null,null,null,0,"",null,null,null,null,null,null,null,"","",null,null,null,null,null,null,null,null,null,"I.15"]
["","",null,null,null,null,null,null,null,null,null,null,null,null,null,null,null,null,null,null,null,null,null,0,"",null,null,null,null,null,null,null,"","",null,null,null,null,null,null,null,null,null,"I.16"]
["","",null,null,null,null,null,null,null,null,null,null,null,null,null,null,null,null,null,null,null,null,null,0,"",null,null,null,null,null,null,null,"","",null,null,null,null,null,null,null,null,null,"I.17"]
["","",null,null,null,null,null,null,null,null,null,null,null,null,null,null,null,null,null,null,null,null,null,{"$f":"IF(B214=\"\",0,IF(B214=\"FINAL ENVIRONMENTAL DOCUMENT\",\"\",IF((SUM(D214:W214)=0),0,SUM(D214:W214))))","v":0},"",null,null,null,null,null,null,null,"","",null,null,null,null,null,null,null,null,null,"J","FINAL ENVIRONMENTAL DOCUMENT"]
["","",null,null,null,null,null,null,null,null,null,null,null,null,null,null,null,null,null,null,null,null,null,{"$f":"IF(B215=\"\",0,IF((SUM(D215:W215)=0),0,SUM(D215:W215)))","v":0},"",null,null,null,null,null,null,null,"","",null,null,null,null,null,null,null,null,null,"J.1","Compile FONSI"]
["","",null,null,null,null,null,null,null,null,null,null,null,null,null,null,null,null,null,null,null,null,null,0,"",null,null,null,null,null,null,null,"","",null,null,null,null,null,null,null,null,null,"J.2","Alternative Selection"]
["","",null,null,null,null,null,null,null,null,null,null,null,null,null,null,null,null,null,null,null,null,null,0,"",null,null,null,null,null,null,null,"","",null,null,null,null,null,null,null,null,null,"J.3","Prepare Draft & Final Finding of No Significant Impact (FONSI)"]
["","",null,null,null,null,null,null,null,null,null,null,null,null,null,null,null,null,null,null,null,null,null,0,"",null,null,null,null,null,null,null,"","",null,null,null,null,null,null,null,null,null,"J.4"]
["","",null,null,null,null,null,null,null,null,null,null,null,null,null,null,null,null,null,null,null,null,null,0,"",null,null,null,null,null,null,null,"","",null,null,null,null,null,null,null,null,null,"J.5"]
["","",null,null,null,null,null,null,null,null,null,null,null,null,null,null,null,null,null,null,null,null,null,0,"",null,null,null,null,null,null,null,"","",null,null,null,null,null,null,null,null,null,"J.6"]
["","",null,null,null,null,null,null,null,null,null,null,null,null,null,null,null,null,null,null,null,null,null,0,"",null,null,null,null,null,null,null,"","",null,null,null,null,null,null,null,null,null,"J.7"]
["","",null,null,null,null,null,null,null,null,null,null,null,null,null,null,null,null,null,null,null,null,null,0,"",null,null,null,null,null,null,null,"","",null,null,null,null,null,null,null,null,null,"J.8"]
["","",null,null,null,null,null,null,null,null,null,null,null,null,null,null,null,null,null,null,null,null,null,{"$f":"IF(B223=\"\",0,IF(B223=\"PUBLIC INVOLVEMENT\",\"\",IF((SUM(D223:W223)=0),0,SUM(D223:W223))))","v":0},"",null,null,null,null,null,null,null,"","",null,null,null,null,null,null,null,null,null,"K","PUBLIC INVOLVEMENT"]
["","",null,null,null,null,null,null,null,null,null,null,null,null,null,null,null,null,null,null,null,null,null,{"$f":"IF(B224=\"\",0,IF((SUM(D224:W224)=0),0,SUM(D224:W224)))","v":0},"",null,null,null,null,null,null,null,"","",null,null,null,null,null,null,null,null,null,"K.1","Informal Stakeholder Coordination"]
["","",null,null,null,null,null,null,null,null,null,null,null,null,null,null,null,null,null,null,null,null,null,0,"",null,null,null,null,null,null,null,"","",null,null,null,null,null,null,null,null,null,"K.2","Public Information Meeting"]
["","",null,null,null,null,null,null,null,null,null,null,null,null,null,null,null,null,null,null,null,null,null,0,"",null,null,null,null,null,null,null,"","",null,null,null,null,null,null,null,null,null,"K.3","Public Hearing"]
["","",null,null,null,null,null,null,null,null,null,null,null,null,null,null,null,null,null,null,null,null,null,0,"",null,null,null,null,null,null,null,"","",null,null,null,null,null,null,null,null,null,"K.4","Local Offical Information Meeting"]
["","",null,null,null,null,null,null,null,null,null,null,null,null,null,null,null,null,null,null,null,null,null,0,"",null,null,null,null,null,null,null,"","",null,null,null,null,null,null,null,null,null,"K.5","Mailer"]
["","",null,null,null,null,null,null,null,null,null,null,null,null,null,null,null,null,null,null,null,null,null,0,"",null,null,null,null,null,null,null,"","",null,null,null,null,null,null,null,null,null,"K.6","Meeting Maps"]
["","",null,null,null,null,null,null,null,null,null,null,null,null,null,null,null,null,null,null,null,null,null,0,"",null,null,null,null,null,null,null,"","",null,null,null,null,null,null,null,null,null,"K.7","Meeting Displays"]
["","",null,null,null,null,null,null,null,null,null,null,null,null,null,null,null,null,null,null,null,null,null,0,"",null,null,null,null,null,null,null,"","",null,null,null,null,null,null,null,null,null,"K.8"]
["","",null,null,null,null,null,null,null,null,null,null,null,null,null,null,null,null,null,null,null,null,null,0,"",null,null,null,null,null,null,null,"","",null,null,null,null,null,null,null,null,null,"K.9"]
["","",null,null,null,null,null,null,null,null,null,null,null,null,null,null,null,null,null,null,null,null,null,0,"",null,null,null,null,null,null,null,"","",null,null,null,null,null,null,null,null,null,"K.10"]
["","",null,null,null,null,null,null,null,null,null,null,null,null,null,null,null,null,null,null,null,null,null,0,"",null,null,null,null,null,null,null,"","",null,null,null,null,null,null,null,null,null,"K.11"]
["","",null,null,null,null,null,null,null,null,null,null,null,null,null,null,null,null,null,null,null,null,null,0,"",null,null,null,null,null,null,null,"","",null,null,null,null,null,null,null,null,null,"K.12"]
["","",null,null,null,null,null,null,null,null,null,null,null,null,null,null,null,null,null,null,null,null,null,{"$f":"IF(B236=\"\",0,IF(B236=\"PROJECT COORDINATION AND MANAGEMENT\",\"\",IF((SUM(D236:W236)=0),0,SUM(D236:W236))))","v":0},"",null,null,null,null,null,null,null,"","",null,null,null,null,null,null,null,null,null,"L","PROJECT COORDINATION AND MANAGEMENT"]
["","",null,null,null,null,null,null,null,null,null,null,null,null,null,null,null,null,null,null,null,null,null,{"$f":"IF(B237=\"\",0,IF((SUM(D237:W237)=0),0,SUM(D237:W237)))","v":0},"",null,null,null,null,null,null,null,"","",null,null,null,null,null,null,null,null,null,"L.1","Project Schedule"]
["","",null,null,null,null,null,null,null,null,null,null,null,null,null,null,null,null,null,null,null,null,null,0,"",null,null,null,null,null,null,null,"","",null,null,null,null,null,null,null,null,null,"L.2","Coordination with NCDOT"]
["","",null,null,null,null,null,null,null,null,null,null,null,null,null,null,null,null,null,null,null,null,null,0,"",null,null,null,null,null,null,null,"","",null,null,null,null,null,null,null,null,null,"L.3","General Coordination"]
["","",null,null,null,null,null,null,null,null,null,null,null,null,null,null,null,null,null,null,null,null,null,0,"",null,null,null,null,null,null,null,"","",null,null,null,null,null,null,null,null,null,"L.4"]
["","",null,null,null,null,null,null,null,null,null,null,null,null,null,null,null,null,null,null,null,null,null,0,"",null,null,null,null,null,null,null,"","",null,null,null,null,null,null,null,null,null,"L.5"]
["","",null,null,null,null,null,null,null,null,null,null,null,null,null,null,null,null,null,null,null,null,null,0,"",null,null,null,null,null,null,null,"","",null,null,null,null,null,null,null,null,null,"L.6"]
["","",null,null,null,null,null,null,null,null,null,null,null,null,null,null,null,null,null,null,null,null,null,0,"",null,null,null,null,null,null,null,"","",null,null,null,null,null,null,null,null,null,"L.7"]
["","",null,null,null,null,null,null,null,null,null,null,null,null,null,null,null,null,null,null,null,null,null,0,"",null,null,null,null,null,null,null,"","",null,null,null,null,null,null,null,null,null,"L.8"]
["","",null,null,null,null,null,null,null,null,null,null,null,null,null,null,null,null,null,null,null,null,null,0,"",null,null,null,null,null,null,null,"",""]
["","",null,null,null,null,null,null,null,null,null,null,null,null,null,null,null,null,null,null,null,null,null,0,"",null,null,null,null,null,null,null,"",""]
["","",null,null,null,null,null,null,null,null,null,null,null,null,null,null,null,null,null,null,null,null,null,0,"",null,null,null,null,null,null,null,"",""]
["","",null,null,null,null,null,null,null,null,null,null,null,null,null,null,null,null,null,null,null,null,null,0,"",null,null,null,null,null,null,null,"",""]
["","",null,null,null,null,null,null,null,null,null,null,null,null,null,null,null,null,null,null,null,null,null,0,"",null,null,null,null,null,null,null,"",""]
["","",null,null,null,null,null,null,null,null,null,null,null,null,null,null,null,null,null,null,null,null,null,0,"",null,null,null,null,null,null,null,"",""]
["","",null,null,null,null,null,null,null,null,null,null,null,null,null,null,null,null,null,null,null,null,null,0,"",null,null,null,null,null,null,null,"",""]
["","",null,null,null,null,null,null,null,null,null,null,null,null,null,null,null,null,null,null,null,null,null,0,"",null,null,null,null,null,null,null,"",""]
["","",null,null,null,null,null,null,null,null,null,null,null,null,null,null,null,null,null,null,null,null,null,0,"",null,null,null,null,null,null,null,"",""]
["","",null,null,null,null,null,null,null,null,null,null,null,null,null,null,null,null,null,null,null,null,null,0,"",null,null,null,null,null,null,null,"",""]
["","",null,null,null,null,null,null,null,null,null,null,null,null,null,null,null,null,null,null,null,null,null,0,"",null,null,null,null,null,null,null,"",""]
["","",null,null,null,null,null,null,null,null,null,null,null,null,null,null,null,null,null,null,null,null,null,0,"",null,null,null,null,null,null,null,"",""]
["","",null,null,null,null,null,null,null,null,null,null,null,null,null,null,null,null,null,null,null,null,null,0,"",null,null,null,null,null,null,null,"",""]
["","",null,null,null,null,null,null,null,null,null,null,null,null,null,null,null,null,null,null,null,null,null,0,"",null,null,null,null,null,null,null,"",""]
["","",null,null,null,null,null,null,null,null,null,null,null,null,null,null,null,null,null,null,null,null,null,0,{"$f":"IF(SUM(D259:W259)=0,\"\",((SUM(D259:W259))/$X$261))","v":""},null,null,null,null,null,null,null,"",""]
["","",null,null,null,null,null,null,null,null,null,null,null,null,null,null,null,null,null,null,null,null,null,0,{"$f":"IF(SUM(D260:W260)=0,\"\",((SUM(D260:W260))/$X$261))","v":""},null,null,null,null,null,null,null,"",""]
[null,"TOTAL WORKHOURS/CATEGORY:",null,{"$f":"SUM(D11:D260)","v":0},0,0,0,0,0,0,0,0,0,0,0,0,0,0,0,0,0,0,0,{"$f":"SUM(D261:W261)","v":0},0,0]
[null,"TOTAL WORKDAYS/CATEGORY:",null,{"$f":"D261/8","v":0},{"$f":"E261/8","v":0},0,0,0,0,0,0,0,0,0,0,0,0,{"$f":"R261/8","v":0},0,0,0,0,0]
[null,"HOURLY SALARY RATE:",null,{"$f":"'PEF CLASSIFICATION SHEET'!E297","v":0},{"$f":"'PEF CLASSIFICATION SHEET'!E298","v":0},{"$f":"'PEF CLASSIFICATION SHEET'!E299","v":0},{"$f":"'PEF CLASSIFICATION SHEET'!E300","v":0},{"$f":"'PEF CLASSIFICATION SHEET'!E301","v":0},{"$f":"'PEF CLASSIFICATION SHEET'!E302","v":0},{"$f":"'PEF CLASSIFICATION SHEET'!E303","v":0},{"$f":"'PEF CLASSIFICATION SHEET'!E304","v":0},{"$f":"'PEF CLASSIFICATION SHEET'!E305","v":0},{"$f":"'PEF CLASSIFICATION SHEET'!E306","v":0},{"$f":"'PEF CLASSIFICATION SHEET'!E307","v":0},{"$f":"'PEF CLASSIFICATION SHEET'!E308","v":0},{"$f":"'PEF CLASSIFICATION SHEET'!E309","v":0},{"$f":"'PEF CLASSIFICATION SHEET'!E310","v":0},{"$f":"'PEF CLASSIFICATION SHEET'!E311","v":0},{"$f":"'PEF CLASSIFICATION SHEET'!E312","v":0},{"$f":"'PEF CLASSIFICATION SHEET'!E313","v":0},{"$f":"'PEF CLASSIFICATION SHEET'!E314","v":0},{"$f":"'PEF CLASSIFICATION SHEET'!E315","v":0},{"$f":"'PEF CLASSIFICATION SHEET'!E316","v":0}]
[null,"RATES PER DAY:",null,{"$f":"D263*8","v":0},0,0,0,0,0,0,0,0,{"$f":"M263*8","v":0},0,0,0,0,{"$f":"R263*8","v":0},0,0,0,0,0]
[null,"PAYROLL BURDEN:",null,{"$f":"SUM(D261*D263)","v":0},{"$f":"SUM(E261*E263)","v":0},0,0,0,0,0,0,0,0,0,0,0,0,{"$f":"SUM(R261*R263)","v":0},0,0,0,0,0]
[null,"TOTAL WORKDAYS:",null,{"$f":"SUM(D262:W262)","v":0}]
[null,"TOTAL PAYROLL BURDEN:",null,{"$f":"SUM(D265:W265)","v":0}]
[null,"AVERAGE COST PER HOUR:",null,{"$f":"SUM(D267/(D266*8))","v":{"$error":"#DIV/0!"}}]
[null,"GENERAL OVERHEAD:",{"$f":"RAIL.PRIME_CONSULTANT_OVERHEAD","v":0},{"$f":"SUM(D267*C269)","v":0}]
[null,"SUBTOTAL:",null,{"$f":"SUM(D267+D269)","v":0}]
[null,"COMPARATIVE FEE:",{"$f":"RAIL.PRIME_CONSULTANT_FEE","v":0.09},{"$f":"SUM(D270*C271)","v":0}]
[null,"FACILITIES COST OF CAPITAL:",{"$f":"RAIL.PRIME_COSTofCAPITAL","v":0},{"$f":"SUM(D267*C272)","v":0}]
[null,"TOTAL:",null,{"$f":"SUM(D270:D272)","v":0}]
[null,"DIRECT EXPENSES:",null,{"$f":"RAIL.PRIME_DIRECT_NONSALARY_TOTAL","v":0}]
[null,"RAIL GRAND TOTAL:",null,{"$f":"SUM(D273:D274)","v":0}]

{"sheet":"Rail-Exp","index":44,"n_rows":46,"n_cols":8,"rows_kept":46,"cut":false,"hidden":true,"merged":[[0,0,0,7],[1,3,1,7]]}
["RAIL--PRIME DIRECT EXPENSES"]
["TIP NUMBER",{"$f":"TIP.NUMBER","v":0},"FIRM:",{"$f":"Rail!G3","v":"CONSULTANT NAME"}]
[]
["GENERAL PROJECT WORK:","ITEM","QTY","DESCRIPTION",null,null,"UNIT COST "]
[null,"Travel:"]
[null,"Sedan",0,"Trip(s) @",0,"miles @",{"$f":"SEDAN","v":0.7},{"$f":"SUM(C6*E6*G6)","v":0}]
[null,"Carry All",0,"Trip(s) @",0,"miles @",{"$f":"CARRYALL","v":0.72},{"$f":"SUM(C7*E7*G7)","v":0}]
[null,"Car Rental",null,null,0,"days @ ",{"$f":"CARRENTAL","v":50},{"$f":"SUM(E8*G8)","v":0}]
[null,"Gas for Rental",null,null,0,"miles @",{"$f":"GASforRENTAL","v":0.2},{"$f":"SUM(E9*G9)","v":0}]
[null,"Parking:",0,"Trip(s) @",null,null,{"$f":"PARKING","v":3},{"$f":"SUM(C10*G10)","v":0}]
[null,"Per Diem:",0,"Breakfast",null,null,{"$f":"BREAKFAST","v":10.1},{"$f":"SUM(C11*G11)","v":0}]
[null,null,0,"Lunch",null,null,{"$f":"LUNCH","v":13.3},0]
[null,null,0,"Dinner",null,null,{"$f":"DINNER","v":23.1},0]
[null,null,0,"Lodging",null,null,{"$f":"LODGING_LUMP.SUM","v":95},0]
[null,"Reproduction:",0,"8 1/2 x 11 B & W Copies @",null,null,{"$f":"LETTERCOPIES","v":0.14000000000000001},0]
[null,null,0,"11 x 17 B & W Copies @",null,null,{"$f":"LEDGERCOPIES","v":0.34},0]
[null,null,0,"8 1/2 x 11 Color Copies @",null,null,{"$f":"LETTERCOLOR","v":0.83},0]
[null,null,0,"11 x 17 Color Copies @",null,null,{"$f":"LEDGERCOLOR","v":1.66},0]
[null,null,0,"SQ. FT. of Plots (B & W or Color)",null,"<65 SQ. FT.*",{"$f":"ROLLPLOTSshort","v":6.5},0]
[null,null,0,"SQ. FT. of Plots (B & W or Color)",null,">65 SQ. FT.*",{"$f":"ROLLPLOTSlong","v":1.5},0]
[null,null,0,"Cover(s) @",null,null,{"$f":"COVERS","v":0.5},0]
[null,null,0,"Binder(s) @",null,null,{"$f":"BINDERS","v":0.5},0]
[null,null,0,"Blueprints - 8 1/2 x 11 @",null,null,{"$f":"BLUEPRINTSLETTER","v":0.35},0]
[null,null,0,"Blueprints - 42 x 72 @",null,null,{"$f":"BLUEPRINTSLARGE","v":1.3},0]
[null,"Film and Developing:",0,"Roll(s) @",null,null,{"$f":"FILM","v":20},0]
[null,null,null,null,null,"Subtotal",null,{"$f":"SUM(H6:H25)","v":0}]
["MAPS AND DOCUMENTS:","ITEM","QTY","DESCRIPTION",null,null,"UNIT COST ","-"]
[null,"County Tax Maps:",0,"Map(s) @",null,null,{"$f":"County_Tax_Maps","v":7},{"$f":"SUM(C28*G28)","v":0}]
[null,"USGS Maps:",0,"Map(s) @",null,null,{"$f":"USGSMAPS","v":7},{"$f":"SUM(C29*G29)","v":0}]
[null,null,null,null,null,"Subtotal",null,{"$f":"SUM(H28:H29)","v":0}]
["Miscellaneous Other","ITEM","QTY","DESCRIPTION",null,null,"UNIT COST ","-"]
[null,null,null,null,null,null,null,{"$f":"SUM(C32*G32)","v":0}]
[null,null,null,null,null,null,null,{"$f":"SUM(C33*G33)","v":0}]
[null,null,null,null,null,null,null,0]
[null,null,null,null,null,null,null,0]
[null,null,null,null,null,null,null,0]
[null,null,null,null,null,null,null,0]
[null,null,null,null,null,null,null,0]
[null,null,null,null,null,null,null,{"$f":"SUM(C39*G39)","v":0}]
[null,null,null,null,null,null,null,{"$f":"SUM(C40*G40)","v":0}]
[null,null,null,null,null,null,null,{"$f":"SUM(C41*G41)","v":0}]
[null,null,null,null,null,"Subtotal",null,{"$f":"SUM(H32:H41)","v":0}]
[null,null,null,null,null,null,null,"-"]
[null,null,null,null,null,"TOTAL",null,{"$f":"SUM(H26+H30+H42)","v":0}]
[null,null,null,null,null,null,null,"-"]
[null,"* Sum of all plots ",null,null,null,null,null,"-"]

{"sheet":"Signing","index":45,"n_rows":136,"n_cols":20,"rows_kept":136,"cut":false,"hidden":true,"merged":[[135,3,135,5],[42,0,42,2],[45,0,45,2],[48,0,48,2],[51,0,51,2],[14,13,14,14],[21,3,21,12],[6,0,6,2],[7,0,7,2],[8,0,8,2],[17,1,17,4],[40,0,40,2],[36,0,36,2],[37,0,37,2],[8,4,8,6],[32,0,32,2],[33,0,33,2],[24,0,24,2],[28,0,28,2],[31,0,31,2],[35,0,35,2],[39,0,39,2],[25,0,25,2],[26,0,26,2],[29,0,29,2]]}
["MDEST6.XLS",null,null,"SIGNING ESTIMATE WORKSHEET "]
["REV 06/15/23"]
[]
[null,null," DATE:",{"$f":"IF(SCOPE.MANDAY.ESTIMATE.PREPARED.BY.DATE=\"\",\"\",SCOPE.MANDAY.ESTIMATE.PREPARED.BY.DATE)","v":""}]
[null,null,"TIP #:",{"$f":"IF(TIP.NUMBER=\"\",\"\",TIP.NUMBER)","v":""}]
[]
["CONSULTANT:",null,null,{"$f":"SIGNING_CONSULTANT_NAME","v":"CONSULTANT NAME"}]
["          PROJECT #:",null,null,"XXXXXX"]
["   PREL EST WORKDAYS:",null,null,{"$f":"O57","v":0}]
[]
[null,null,null,null,null,null,null,null,{"$f":"IF(E14=0,0,1)","v":0},">UTILITY"]
[" ","EST SIGNING RDWY SHEETS:",null,null,null,"# DAYS FIELD TRIPS:",null,null,"(PRELIM)"]
[null,"TOTAL SIGN PLAN SHEETS:",null,null,null,"# DAYS FIELD TRIPS:",null,null,"(SUPPORTS)"," ",null,null,null,"TOTAL # OF SIGNS"]
[null,"# OH STRUCTURES:",null,null,null,"# A&B GRND-MT SIGNS:",null,null,null,null,null,null,null,"NEEDING SUPPORTS:"]
[null,null,null,null,null,"# A&B OVERHEAD SIGNS:",null,null,null,null,null,null,null,{"$f":"SUM(H14,H17)","v":0}]
[null,"# Y-LINES - INTERCHANGE:",null,null,null,"# D SIGNS"]
[null,"# Y-LINES - AT GRADE:",null,null,null,"SIGNS / SUPPORTS ONLY"]
[null,"(only count -Y-lines requiring more than a stop sign)",null,null,null,"TOT.# A,B,D SIGNS:",null,{"$f":"SUM(H14:H16)","v":0}]
[]
[null,null,null,"    ALLOWED ROUNDTRIP MILEAGE PER TRIP:",null,null,null,null,"MILES"]
[]
[null,null,null,"ESTIMATED WORKHOURS"]
[null,null,"EMPLOYEE",{"$f":"IF('PEF CLASSIFICATION SHEET'!D319=\"\",\"\",LEFT('PEF CLASSIFICATION SHEET'!D319,4))","v":""},{"$f":"IF('PEF CLASSIFICATION SHEET'!D320=\"\",\"\",LEFT('PEF CLASSIFICATION SHEET'!D320,4))","v":""},{"$f":"IF('PEF CLASSIFICATION SHEET'!D321=\"\",\"\",LEFT('PEF CLASSIFICATION SHEET'!D321,4))","v":""},{"$f":"IF('PEF CLASSIFICATION SHEET'!D322=\"\",\"\",LEFT('PEF CLASSIFICATION SHEET'!D322,4))","v":""},{"$f":"IF('PEF CLASSIFICATION SHEET'!D323=\"\",\"\",LEFT('PEF CLASSIFICATION SHEET'!D323,4))","v":""},{"$f":"IF('PEF CLASSIFICATION SHEET'!D324=\"\",\"\",LEFT('PEF CLASSIFICATION SHEET'!D324,4))","v":""},{"$f":"IF('PEF CLASSIFICATION SHEET'!D325=\"\",\"\",LEFT('PEF CLASSIFICATION SHEET'!D325,4))","v":""},{"$f":"IF('PEF CLASSIFICATION SHEET'!D326=\"\",\"\",LEFT('PEF CLASSIFICATION SHEET'!D326,4))","v":""},{"$f":"IF('PEF CLASSIFICATION SHEET'!D327=\"\",\"\",LEFT('PEF CLASSIFICATION SHEET'!D327,4))","v":""},{"$f":"IF('PEF CLASSIFICATION SHEET'!D328=\"\",\"\",LEFT('PEF CLASSIFICATION SHEET'!D328,4))","v":""}]
["TASK",null,null,{"$f":"IF('PEF CLASSIFICATION SHEET'!C319=\"\",\"\",'PEF CLASSIFICATION SHEET'!C319)","v":"TEM I"},{"$f":"IF('PEF CLASSIFICATION SHEET'!C320=\"\",\"\",'PEF CLASSIFICATION SHEET'!C320)","v":"TES III"},{"$f":"IF('PEF CLASSIFICATION SHEET'!C321=\"\",\"\",'PEF CLASSIFICATION SHEET'!C321)","v":"TE II"},{"$f":"IF('PEF CLASSIFICATION SHEET'!C322=\"\",\"\",'PEF CLASSIFICATION SHEET'!C322)","v":"TE I"},{"$f":"IF('PEF CLASSIFICATION SHEET'!C323=\"\",\"\",'PEF CLASSIFICATION SHEET'!C323)","v":"TT V"},{"$f":"IF('PEF CLASSIFICATION SHEET'!C324=\"\",\"\",'PEF CLASSIFICATION SHEET'!C324)","v":""},{"$f":"IF('PEF CLASSIFICATION SHEET'!C325=\"\",\"\",'PEF CLASSIFICATION SHEET'!C325)","v":""},{"$f":"IF('PEF CLASSIFICATION SHEET'!C326=\"\",\"\",'PEF CLASSIFICATION SHEET'!C326)","v":""},{"$f":"IF('PEF CLASSIFICATION SHEET'!C327=\"\",\"\",'PEF CLASSIFICATION SHEET'!C327)","v":""},{"$f":"IF('PEF CLASSIFICATION SHEET'!C328=\"\",\"\",'PEF CLASSIFICATION SHEET'!C328)","v":""}," ","TOTAL","NOTES"]
["PRELIMINARY SIGNING (2SD1)"]
["Field Investigation/Trip",null,null,null,null,null,null,null,null,null,null,null,null,null,{"$f":"SUM(D26:M26)","v":0}]
["Preliminary Signing Concept/Layout\nDocument Conflicts",null,null,null,null,null,null,null,null,null,null,null,null,null,{"$f":"SUM(D27:M27)","v":0}]
[{"$f":"SUM(O26:O27)","v":0},"HR"]
["SIGN DESIGNS (3SD1)"]
["Design Sign Panels (Complete sign\n designs for type \"A\",\"B\" &\"D\" signs) ",null,null,null,null,null,null,null,null,null,null,null,null,null,{"$f":"SUM(D30:M30)","v":0}]
[{"$f":"SUM(O30:O30)","v":0},"HR"]
["SUPPORT DESIGN (3SD1)"]
["Determine preliminary S-Dimensions",null,null,null,null,null,null,null,null,null,null,null,null,null,{"$f":"SUM(D33:M33)","v":0}]
["Prepare preliminary support chart",null,null,null,null,null,null,null,null,null,null,null,null,null,0]
[{"$f":"SUM(O33:O34)","v":0},"HR"]
["SIGNING PLAN SHEETS (3SD1)"]
["Prepare signing plans (plan view\nsheets with notes, stationing)",null,null,null,null,null,null,null,null,null,null,null,null,null,{"$f":"SUM(D37:M37)","v":0}]
["Prepare sheets for type \"E\" & \"F\"\nsigns, cover sheet and support chart",null,null,null,null,null,null,null,null,null,null,null,null,null,0]
[{"$f":"SUM(O37:O38)","v":0},"HR"]
["OVERHEAD DRAWINGS (3SD1)"]
["Prepare structure line drawings (i.e.\nwindload, lanes, structures, slopes,\nS-Dimensions, signs, vertical clearances, lateral offsets, request structure numbers)",null,null,null,null,null,null,null,null,null,null,null,null,null,{"$f":"SUM(D41:M41)","v":0}]
[{"$f":"SUM(O41:O41)","v":0},"HR"]
["QUANTITIES/CALC SHEETS (3SD1)   \nPROJECT SPECIAL PROVISIONS      "]
[{"$f":"SUM(O44:O44)","v":0},"HR",null,null,null,null,null,null,null,null,null,null,null,null,{"$f":"SUM(D43:M43)","v":0}]
[]
["QC/QA (3SD1)",null,null,null,null,null,null,null,null,null,null,null,null,null,null,null,null,null,null," "]
[{"$f":"SUM(O47:O47)","v":0},"HR",null,null,null,null,null,null,null,null,null,null,null,null,{"$f":"SUM(D46:M46)","v":0}]
[]
["ELECTRONIC SUBMITTAL (2SD1,3SD1)"]
[{"$f":"SUM(O50:O50)","v":0},"HR",null,null,null,null,null,null,null,null,null,null,null,null,{"$f":"SUM(D49:M49)","v":0}]
[]
["MEETINGS, ADMIN (2SD1,3SD1)"]
[{"$f":"SUM(O53:O53)","v":0},"HR",null,null,null,null,null,null,null,null,null,null,null,null,{"$f":"SUM(D52:M52)","v":0}]
["TOTAL WORKHOURS (SQUADS)",null,null,{"$f":"SUM(D26:D53)","v":0},{"$f":"SUM(E26:E53)","v":0},0,0,0,0,0,0,0,0,null,{"$f":"SUM(O26:O53)","v":0}]
["TOTAL WORKDAYS (SQUADS)",null,null,{"$f":"D54/8","v":0},0,0,0,0,{"$f":"I54/8","v":0},0,0,0,0,null,0]
[null,null,null,"---","---","---","---","---","---","---","---","---","---",null,"---"]
["TOTAL WORKDAYS",null,null,null,null,null,null,null,null,null,null,null,null,null,{"$f":"O55","v":0}]
[" "]
[]
[]
[null,null,null,"AVERAGE STANDARD RATE PER HOUR"]
[]
[null,null,"A","B","        C","     D","EMPLOYEE",null,"    (B*C)/D"]
["CLASSIFICATION"," NO.WORKDAYS",null,"% TOT WD","      RATE","  FACTOR","NAMES",null,"  AVG STD RATE"]
[{"$f":"IF('PEF CLASSIFICATION SHEET'!C319=\"\",\"\",'PEF CLASSIFICATION SHEET'!C319)","v":"TEM I"},null,{"$f":"D55","v":0},{"$f":"IF(ISERR(+C65/C$77),0,+C65/C$77)","v":0},{"$f":"'PEF CLASSIFICATION SHEET'!E319","v":0},1,{"$f":"D23","v":""},null,{"$f":"IF(ISERR(+D65*E65/F65),0,+D65*E65/F65)","v":0}]
[{"$f":"IF('PEF CLASSIFICATION SHEET'!C320=\"\",\"\",'PEF CLASSIFICATION SHEET'!C320)","v":"TES III"},null,{"$f":"E55","v":0},{"$f":"IF(ISERR(+C66/C$77),0,+C66/C$77)","v":0},{"$f":"'PEF CLASSIFICATION SHEET'!E320","v":0},{"$f":"$F$65","v":1},{"$f":"E23","v":""},null,{"$f":"IF(ISERR(+D66*E66/F66),0,+D66*E66/F66)","v":0}]
[{"$f":"IF('PEF CLASSIFICATION SHEET'!C321=\"\",\"\",'PEF CLASSIFICATION SHEET'!C321)","v":"TE II"},null,{"$f":"F55","v":0},{"$f":"IF(ISERR(+C67/C$77),0,+C67/C$77)","v":0},{"$f":"'PEF CLASSIFICATION SHEET'!E321","v":0},{"$f":"$F$65","v":1},{"$f":"F23","v":""},null,{"$f":"IF(ISERR(+D67*E67/F67),0,+D67*E67/F67)","v":0}]
[{"$f":"IF('PEF CLASSIFICATION SHEET'!C322=\"\",\"\",'PEF CLASSIFICATION SHEET'!C322)","v":"TE I"},null,{"$f":"G55","v":0},{"$f":"IF(ISERR(+C68/C$77),0,+C68/C$77)","v":0},{"$f":"'PEF CLASSIFICATION SHEET'!E322","v":0},{"$f":"$F$65","v":1},{"$f":"G23","v":""},null,{"$f":"IF(ISERR(+D68*E68/F68),0,+D68*E68/F68)","v":0}]
[{"$f":"IF('PEF CLASSIFICATION SHEET'!C323=\"\",\"\",'PEF CLASSIFICATION SHEET'!C323)","v":"TT V"},null,{"$f":"H55","v":0},{"$f":"IF(ISERR(+C69/C$77),0,+C69/C$77)","v":0},{"$f":"'PEF CLASSIFICATION SHEET'!E323","v":0},{"$f":"$F$65","v":1},{"$f":"H23","v":""},null,{"$f":"IF(ISERR(+D69*E69/F69),0,+D69*E69/F69)","v":0}]
[{"$f":"IF('PEF CLASSIFICATION SHEET'!C324=\"\",\"\",'PEF CLASSIFICATION SHEET'!C324)","v":""},null,{"$f":"I55","v":0},{"$f":"IF(ISERR(+C70/C$77),0,+C70/C$77)","v":0},{"$f":"'PEF CLASSIFICATION SHEET'!E324","v":0},{"$f":"$F$65","v":1},{"$f":"I23","v":""},null,{"$f":"IF(ISERR(+D70*E70/F70),0,+D70*E70/F70)","v":0}]
[{"$f":"IF('PEF CLASSIFICATION SHEET'!C325=\"\",\"\",'PEF CLASSIFICATION SHEET'!C325)","v":""},null,{"$f":"J55","v":0},0,{"$f":"'PEF CLASSIFICATION SHEET'!E325","v":0},1,{"$f":"J23","v":""},null,0]
[{"$f":"IF('PEF CLASSIFICATION SHEET'!C326=\"\",\"\",'PEF CLASSIFICATION SHEET'!C326)","v":""},null,{"$f":"K55","v":0},0,{"$f":"'PEF CLASSIFICATION SHEET'!E326","v":0},1,{"$f":"K23","v":""},null,0]
[{"$f":"IF('PEF CLASSIFICATION SHEET'!C327=\"\",\"\",'PEF CLASSIFICATION SHEET'!C327)","v":""},null,{"$f":"L55","v":0},0,{"$f":"'PEF CLASSIFICATION SHEET'!E327","v":0},1,{"$f":"L23","v":""},null,0]
[{"$f":"IF('PEF CLASSIFICATION SHEET'!C328=\"\",\"\",'PEF CLASSIFICATION SHEET'!C328)","v":""},null,{"$f":"M55","v":0},0,{"$f":"'PEF CLASSIFICATION SHEET'!E328","v":0},1,{"$f":"M23","v":""},null,0]
[" "," "," "," "," "," "," ",null," "]
[null,null,"_________"," ________",null,null,null,null,"   ___________"]
["  TOTAL",null,{"$f":"SUM(C65:C76)","v":0},{"$f":"SUM(D65:D76)","v":0},null,null,null,null,{"$f":"SUM(I65:I76)","v":0}]
[]
[]
[]
[null,null," SALARIES","    =","(AVG STD RATE)(WORKDAYS)(8 HRS)=",null,null,null,{"$f":"C77*I77*8","v":0}]
[null,null," OVERHEAD","    =","(XXX.XX%)(SALARIES)          =",null,null,{"$f":"SIGNING_CONSULTANT_OVERHEAD","v":0},{"$f":"I81*H82","v":0}]
[null,null,"      FEE","    =","(9%)(SALARIES+OVERHEAD)      =",null,null,{"$f":"SIGNING_CONSULTANT_FEE","v":0.09},{"$f":"(+I81+I82)*H83","v":0}]
[null,null,"FACILITIES COST OF CAPITAL","    =",null,null,null,{"$f":"SIGNING_CONSULTANT_COSTofCAPITAL","v":0},{"$f":"I81*(H84)","v":0}]
[" TOT. DIR. SALARY COST",null,null,"    =","(SALARIES+OVERHEAD+FEE)       =",null,null,null,{"$f":"SUM(I81:I84)","v":0}]
[]
[]
[]
[null,null,null,null,"     TIP #:",{"$f":"$D$5","v":""}]
[]
["     DIRECT NON-SALARY COSTS:________________________"]
[null,null,null,null,null,null,null,"   RATE","COST "]
["              TRAVEL:",null,null,{"$f":"($H$12+$H$13+(IF($E$14=0,0,1)))","v":0},"TRIPS x",null,null," "," "]
[null,null,null,null,{"$f":"$H$20","v":0},"MILES RNDTRP",null,{"$f":"SEDAN","v":0.7},{"$f":"IF(ISERR(+D93*E94*H94),0,+D93*E94*H94)","v":0}]
["            1/2 SIZE COPY:",null,null,null,"SETS  x"]
[null,null,null,null,{"$f":"$E$13","v":0},"SHEETS/SET",null,{"$f":"LEDGERCOPIES","v":0.34},{"$f":"IF(ISERR(+D95*E96*H96),0,+D95*E96*H96)","v":0}]
["              ORIGINAL:",null,null,null,"SETS  x"]
[null,null,null,null,{"$f":"$E$13","v":0},"SHEETS/SET",null,{"$f":"BOND.REGULAR","v":0.42},{"$f":"IF(ISERR(+D97*E98*H98),0,+D97*E98*H98)","v":0}]
["               XEROX:",null,null,null,"SETS  x"]
[null,null,null,null,{"$f":"$H$18","v":0},"SHEETS/SET",null,{"$f":"LETTERCOPIES","v":0.14000000000000001},{"$f":"IF(ISERR(+D99*E100*H100),0,+D99*E100*H100)","v":0}]
[]
[null,null,"TRIPS:",null,"BREAKFAST","EACH",null,{"$f":"BREAKFAST","v":10.1},{"$f":"IF(ISERR(+D102*H102),0,+D102*H102)","v":0}]
[]
[null,null,null,null,"LUNCH","EACH",null,{"$f":"LUNCH","v":13.3},{"$f":"IF(ISERR(+D104*H104),0,+D104*H104)","v":0}]
[]
[null,null,null,null,"DINNER","EACH",null,{"$f":"DINNER","v":23.1},{"$f":"IF(ISERR(+D106*H106),0,+D106*H106)","v":0}]
[]
[null,null,null,null,"LODGING","EACH",null,{"$f":"LODGING_LUMP.SUM","v":95},{"$f":"IF(ISERR(+D108*H108),0,+D108*H108)","v":0}]
[]
[null,"MISCELLANEOUS:",null,null,null,null,null,null,{"$f":"IF(ISERR(+D110*H110),0,+D110*H110)","v":0}]
[]
[null,null,null,null,null,null,null,null,{"$f":"IF(ISERR(+D112*H112),0,+D112*H112)","v":0}]
[]
[null,null,null,null,null,null,null,null,{"$f":"IF(ISERR(+D114*H114),0,+D114*H114)","v":0}]
[]
[null,null,null,null,null,null,null,null,{"$f":"IF(ISERR(+D116*H116),0,+D116*H116)","v":0}]
[]
[null,null,null,null,null,null,null,null,{"$f":"IF(ISERR(+D118*H118),0,+D118*H118)","v":0}]
[]
[" TOTAL DIRECT NON-SALARY COST - - - - - - - - - - - - - - - - - -",null,null,null,null,null,null,"=",{"$f":"SUM(I94:I118)","v":0}]
[]
[]
[]
[null,null,null,null,"          TOTAL ESTIMATE  ",null,null,"=",{"$f":"I85+I120","v":0}]
[null,null,null,null,"          COST PER WORKDAY  ",null,null,"=",{"$f":"IF(ISERR(+I124/C77),0,+I124/C77)","v":0}]
[]
[]
[null,null,null,null,"          CONSULTANT'S TOTAL =",null,null,null,{"$f":"I124","v":0}]
[]
[null," CONSULTANT'S TOTAL - TOTAL COST IN_HOUSE ESTIMATE"]
[null," ------------------------------------------------- =",null,null,null,null,null,null,{"$f":"IF(+I128=0,\"       \",IF(ISERR((+I128-(+I85+I120))/(+I85+I120)),0,(+I128-(+I85+I120))/(+I85+I120)))","v":"       "}]
[null,null,"      TOTAL COST IN_HOUSE ESTIMATE"]
[]
[]
[]
[" ESTIMATE PREPARED BY:",null,null,null,null,null,null,"DATE:",{"$f":"IF(D4=\"\",\"\",D4)","v":""}]

{"sheet":"SignalComms","index":46,"n_rows":93,"n_cols":23,"rows_kept":93,"cut":false,"hidden":true,"merged":[[4,1,4,4],[4,5,4,16],[0,1,0,16],[2,1,2,16],[3,1,3,16],[1,3,1,11],[11,0,12,0],[11,17,12,17],[5,1,5,16],[6,1,6,16],[7,1,7,16],[9,2,9,14],[11,16,12,16]]}
["ITS - FIBER","FIBER AND/OR WIRELESS COMMUNICATIONS"]
["ITS - FIBER WITH WIRELESS",null,null,"ITS - FIBER WITH WIRELESS"]
["ITS - FIBER WITH WIRELESS","SCOPING ESTIMATE PREPARED"]
[null,"FOR"]
[null,{"$f":"CONCATENATE(IF(TIP.NUMBER=\"\",\"TIP\",CONCATENATE(\"TIP:  \",TIP.NUMBER)),IF(TIP.NUMBER=\"\",\"\",\"   \"))","v":"TIP"},null,null,null,{"$f":"CONCATENATE(IF(WBS.NUMBER=\"\",\"\",\"   \"),IF(WBS.NUMBER=\"\",\"WBS\",CONCATENATE(\"WBS:  \",WBS.NUMBER)))","v":"WBS"}]
[null,{"$f":"IF(COUNTY=\"\",\"COUNTY\",CONCATENATE(\"COUNTY:  \",COUNTY))","v":"COUNTY"}]
[null,{"$f":"IF(PROJECT.DESCRIPTION=\"\",\"PROJECT DESCRIPTION\",CONCATENATE(\"Project Description:  \",PROJECT.DESCRIPTION))","v":"PROJECT DESCRIPTION"}]
[null,{"$f":"IF(SIGNAL_COMMUNICATION_CONSULTANT_NAME=\"CONSULTANT NAME\",\"CONSULTANT NAME\", CONCATENATE(\"FIRM:  \",SIGNAL_COMMUNICATION_CONSULTANT_NAME))","v":"CONSULTANT NAME"}]
[null,null,null,null,null,null,null,null,null,null,null,null,null,null,null,"Prepared By:",{"$f":"IF(SCOPE.MANDAY.ESTIMATE.PREPARED.BY=\"\",\"\",SCOPE.MANDAY.ESTIMATE.PREPARED.BY)","v":""}," ",null,null,null,null," "]
[null,null,"ESTIMATED WORK HOURS",null,null,null,null,null,null,null,null,null,null,null,null,"Date:",{"$f":"IF(SCOPE.MANDAY.ESTIMATE.PREPARED.BY.DATE=\"\",\"\",SCOPE.MANDAY.ESTIMATE.PREPARED.BY.DATE)","v":""},null,null,null,null,null," "]
[null,"POSITION",{"$f":"IF('PEF CLASSIFICATION SHEET'!C331=\"\",\"\",'PEF CLASSIFICATION SHEET'!C331)","v":""},{"$f":"IF('PEF CLASSIFICATION SHEET'!C332=\"\",\"\",'PEF CLASSIFICATION SHEET'!C332)","v":""},{"$f":"IF('PEF CLASSIFICATION SHEET'!C333=\"\",\"\",'PEF CLASSIFICATION SHEET'!C333)","v":""},{"$f":"IF('PEF CLASSIFICATION SHEET'!C334=\"\",\"\",'PEF CLASSIFICATION SHEET'!C334)","v":""},{"$f":"IF('PEF CLASSIFICATION SHEET'!C335=\"\",\"\",'PEF CLASSIFICATION SHEET'!C335)","v":""},{"$f":"IF('PEF CLASSIFICATION SHEET'!C336=\"\",\"\",'PEF CLASSIFICATION SHEET'!C336)","v":""},{"$f":"IF('PEF CLASSIFICATION SHEET'!C337=\"\",\"\",'PEF CLASSIFICATION SHEET'!C337)","v":""},{"$f":"IF('PEF CLASSIFICATION SHEET'!C338=\"\",\"\",'PEF CLASSIFICATION SHEET'!C338)","v":""},{"$f":"IF('PEF CLASSIFICATION SHEET'!C339=\"\",\"\",'PEF CLASSIFICATION SHEET'!C339)","v":""},{"$f":"IF('PEF CLASSIFICATION SHEET'!C340=\"\",\"\",'PEF CLASSIFICATION SHEET'!C340)","v":""},{"$f":"IF('PEF CLASSIFICATION SHEET'!C341=\"\",\"\",'PEF CLASSIFICATION SHEET'!C341)","v":""},{"$f":"IF('PEF CLASSIFICATION SHEET'!C342=\"\",\"\",'PEF CLASSIFICATION SHEET'!C342)","v":""},{"$f":"IF('PEF CLASSIFICATION SHEET'!C343=\"\",\"\",'PEF CLASSIFICATION SHEET'!C343)","v":""}," "]
["TASK NUMBER","EMPLOYEE NAME",{"$f":"LEFT('PEF CLASSIFICATION SHEET'!D331,4)","v":""},{"$f":"LEFT('PEF CLASSIFICATION SHEET'!D332,4)","v":""},{"$f":"LEFT('PEF CLASSIFICATION SHEET'!D333,4)","v":""},{"$f":"LEFT('PEF CLASSIFICATION SHEET'!D334,4)","v":""},{"$f":"LEFT('PEF CLASSIFICATION SHEET'!D335,4)","v":""},{"$f":"LEFT('PEF CLASSIFICATION SHEET'!D336,4)","v":""},{"$f":"LEFT('PEF CLASSIFICATION SHEET'!D337,4)","v":""},{"$f":"LEFT('PEF CLASSIFICATION SHEET'!D338,4)","v":""},{"$f":"LEFT('PEF CLASSIFICATION SHEET'!D339,4)","v":""},{"$f":"LEFT('PEF CLASSIFICATION SHEET'!D340,4)","v":""},{"$f":"LEFT('PEF CLASSIFICATION SHEET'!D341,4)","v":""},{"$f":"LEFT('PEF CLASSIFICATION SHEET'!D342,4)","v":""},{"$f":"LEFT('PEF CLASSIFICATION SHEET'!D343,4)","v":""},null,"SUBTOTAL OF HOURS BY TASK","NOTES"]
[null,"RATE",{"$f":"'PEF CLASSIFICATION SHEET'!E331","v":0},{"$f":"'PEF CLASSIFICATION SHEET'!E332","v":0},{"$f":"'PEF CLASSIFICATION SHEET'!E333","v":0},{"$f":"'PEF CLASSIFICATION SHEET'!E334","v":0},{"$f":"'PEF CLASSIFICATION SHEET'!E335","v":0},{"$f":"'PEF CLASSIFICATION SHEET'!E336","v":0},{"$f":"'PEF CLASSIFICATION SHEET'!E337","v":0},{"$f":"'PEF CLASSIFICATION SHEET'!E338","v":0},{"$f":"'PEF CLASSIFICATION SHEET'!E339","v":0},{"$f":"'PEF CLASSIFICATION SHEET'!E340","v":0},{"$f":"'PEF CLASSIFICATION SHEET'!E341","v":0},{"$f":"'PEF CLASSIFICATION SHEET'!E342","v":0},{"$f":"'PEF CLASSIFICATION SHEET'!E343","v":0}]
["Task 1.0","SCOPING"," "," ",null,null,null,null,null,null,null,null,null,null,null," ",null,null," "]
[1.1000000000000001,"Coordination and Discussions with NCDOT",null,null,null,null,null,null,null,null,null,null,null,null,null,null,{"$f":"SUM(C15:P15)","v":0}]
["Task 2.0","CADD"," ",null," "]
[2.1,"Develop Base Map Drawings for Cable Routing Plans/Radio Plans",null,null,null,null,null,null,null,null,null,null,null,null,null,null,{"$f":"SUM(C17:P17)","v":0}]
["Task 3.0","FIELD SURVEY FOR UTILITY MAKE-READY PLANS"]
[3.1,"Field Survey to Identify Possible Cable Routing Path, Utility Conflicts and if Applicable, Verify Elements Involved with Tying the Intersections into an Existing System",null,null,null,null,null,null,null,null,null,null,null,null,null,null,{"$f":"SUM(C19:P19)","v":0}]
["Task 4.0","UTILITY MAKE-READY PLANS",null,null,null,null,null,null,null,null,null,null,null,null,null,null," "]
[4.0999999999999996,"Develop 1st Draft \"Utility Make-Ready Plans\"",null,null,null,null,null,null,null,null,null,null,null,null,null,null,{"$f":"SUM(C21:P21)","v":0}]
[4.2,"Coordination and discussions with Utility Companies",null,null,null,null,null,null,null,null,null,null,null,null,null,null,0]
[4.3,"Field Meeting with Utility Company's Field Agents",null,null,null,null,null,null,null,null,null,null,null,null,null,null,0]
[4.4000000000000004,"Develop Final \"Utility Make-Ready Plans\"",null,null,null,null,null,null,null,null,null,null,null,null,null,null,0]
["Task 5.0","RADIO SIGNAL ANALYSIS"]
[5.0999999999999996,"Division / Firm:  to provide Bucket Truck",null,null,null,null,null,null,null,null,null,null,null,null,null,null,{"$f":"SUM(C26:P26)","v":0}]
[5.2,"FIRM Perform Wireless Signal Strength Field Survey",null,null,null,null,null,null,null,null,null,null,null,null,null,null,0]
["Task 6.0","PRELIMINARY DESIGN (FIBER)"]
[6.1,"Develop Preliminary Plans and Details for Communications Cable Routing Plans",null,null,null,null,null,null,null,null,null,null,null,null,null,null,{"$f":"SUM(C29:P29)","v":0}]
[6.2,"Prepare Preliminary Splice Plans",null,null,null,null,null,null,null,null,null,null,null,null,null,null,0]
["Task 7.0","PRELIMINARY DESIGN (Wireless)"]
[7.1,"Develop Preliminary Plans and Details for Wireless System",null,null,null,null,null,null,null,null,null,null,null,null,null,null,{"$f":"SUM(C32:P32)","v":0}]
["Task 8.0","PRELIMINARY SPECIFICATIONS AND QUANTITIES"]
[8.1,"Develop Preliminary Specifications",null,null,null,null,null,null,null,null,null,null,null,null,null,null,{"$f":"SUM(C34:P34)","v":0}]
[8.1999999999999993,"Develop Preliminary Quantities Estimate",null,null,null,null,null,null,null,null,null,null,null,null,null,null,0]
[8.3000000000000007,"Preliminary Quality Control & Review",null,null,null,null,null,null,null,null,null,null,null,null,null,null,0]
["Task 9.0","RAILROAD WIRE LINE AGREEMENTS"]
[9.1,"PREPARE WIRELINE AGREEMENT AND DRAWINGS (NCDOT will Submit Information to RR)",null,null,null,null,null,null,null,null,null,null,null,null,null,null,{"$f":"SUM(C38:P38)","v":0}]
["Task 10.0","FINAL DESIGN - REVIEW AND ADDRESS NCDOT COMMENTS"]
[10.1,"Prepare Final Plans and Details for Communications Cable Routing and Wireless Communications",null,null,null,null,null,null,null,null,null,null,null,null,null,null,{"$f":"SUM(C40:P40)","v":0}]
[10.199999999999999,"Prepare Final Splice Plans",null,null,null,null,null,null,null,null,null,null,null,null,null,null,0]
[10.3,"Prepare Final Specifications",null,null,null,null,null,null,null,null,null,null,null,null,null,null,0]
[10.4,"Prepare Final Quantities Estimate",null,null,null,null,null,null,null,null,null,null,null,null,null,null,0]
[10.5,"Final Quality Control & Review",null,null,null,null,null,null,null,null,null,null,null,null,null,null,0]
["Task 11.0","FINAL SUBMITTAL - MAKE COPIES AND FINAL DOCUMENTATION TRANSFER TO NCDOT"]
[11.1,"Submit Final Plans and Data",null,null,null,null,null,null,null,null,null,null,null,null,null,null,{"$f":"SUM(C46:P46)","v":0}]
["Task 12.0","MISCELLANEOUS"]
[12.1,null,null,null,null,null,null,null,null,null,null,null,null,null,null,null,{"$f":"SUM(C48:P48)","v":0}]
[12.2,null,null,null,null,null,null,null,null,null,null,null,null,null,null,null,{"$f":"SUM(C49:P49)","v":0}]
[12.3,null,null,null,null,null,null,null,null,null,null,null,null,null,null,null,0]
[12.4,null,null,null,null,null,null,null,null,null,null,null,null,null,null,null,0]
[12.5,null,null,null,null,null,null,null,null,null,null,null,null,null,null,null,0]
[]
[null,"TOTAL HOURS",{"$f":"SUM(C14:C53)","v":0},0,0,0,0,0,0,0,0,0,0,0,0,0,{"$f":"SUM(C54:P54)","v":0}]
[null,"TOTAL WORKDAYS",{"$f":"C54/8","v":0},0,0,0,0,0,{"$f":"I54/8","v":0},0,0,0,0,0,0,0,{"$f":"SUM(C55:P55)","v":0}]
[null,"TOTAL RAW LABOR",{"$f":"C13*C54","v":0},0,0,0,0,0,0,0,0,0,0,0,0,0,{"$f":"SUM(C56:P56)","v":0}]
[]
[null,"Contract Overhead Rate",{"$f":"SIGNAL_COMMUNICATION_CONSULTANT_OVERHEAD","v":0},null,null,null,null,null,null,null,null,null,null,null,null,null,{"$f":"C58","v":0}]
[null,"Overhead Cost",null,null,null,null,null,null,null,null,null,null,null,null,null,null,{"$f":"Q56*Q58","v":0}]
[null,"Fee",{"$f":"SIGNAL_COMMUNICATION_CONSULTANT_FEE","v":0.09},null,null,null,null,null,null,null,null,null,null,null,null,null,{"$f":"(Q56+Q59)*C60","v":0}]
[null,"FCCM",{"$f":"SIGNAL_COMMUNICATION_CONSULTANT_COSTofCAPITAL","v":0},null,null,null,null,null,null,null,null,null,null,null,null,null,{"$f":"Q56*C61","v":0}]
[]
[null,"TOTAL RAW LABOR",null,null,null,null,null,null,null,null,null,null,null,null,null,null,{"$f":"Q56+Q59+Q60+Q61","v":0}]
[null,"DIRECT EXPENSES",null,null,null,null,null,null,null,null,null,null,null,null,null,null,{"$f":"COMM.FIBER.RADIO_DIRECT_NONSALARY_TOTAL","v":0}]
[null,"CABLE ROUTING ESTIMATE",null,null,null,null,null,null,null,null,null,null,null,null,null,null,{"$f":"SUM(Q63:Q64)","v":0}]
[]
[]
[]
[]
[]
[null,null,"Direct Cost Computation"]
[null,null,null,"Qty.",null,"Unit Cost","Sub-Total"]
[null,null,"Mileage (4 trips)",null,"miles",{"$f":"SEDAN","v":0.7},{"$f":"D73*$F73","v":0}]
[null,null,"Lodging",null,"nights",{"$f":"LODGING_LUMP.SUM","v":95},0]
[null,null,"Breakfast",null,"meal",{"$f":"BREAKFAST","v":10.1},0]
[null,null,"Lunch",null,"meal",{"$f":"LUNCH","v":13.3},0]
[null,null,"Dinner",null,"meal",{"$f":"DINNER","v":23.1},0]
[null,null,"Full Size Plans",null,"sheets",{"$f":"BOND.REGULAR","v":0.42},0]
[null,null,"Half Size Plans",null,"sheets",{"$f":"LEDGERCOPIES","v":0.34},0]
[null,null,"Letter Size",null,"sheets",{"$f":"LETTERCOPIES","v":0.14000000000000001},0]
[null,null,"GPS Rental",null,"NAME",null,0]
[null,null,"MISCELLANEOUS",null,"NAME",null,0]
[null,null,null,null,"NAME",null,0]
[null,null,null,null,"NAME",null,0]
[null,null,null,null,"NAME",null,0]
[null,null,null,null,"NAME",null,{"$f":"D86*$F86","v":0}]
[null,null,null,null,"NAME",null,0]
[null,null,null,null,"NAME",null,0]
[null,null,null,null,"NAME",null,0]
[null,null,null,null,"NAME",null,0]
[null,null,null,null,"NAME",null,0]
[null,null,null,null,"NAME",null,0]
[null,null,"Total Phase Cost",null,null,null,{"$f":"SUM(G73:G92)","v":0}]

{"sheet":"ITS","index":47,"n_rows":157,"n_cols":23,"rows_kept":157,"cut":false,"hidden":true,"merged":[[11,0,12,0],[11,17,12,17],[0,1,0,16],[1,1,1,16],[2,1,2,16],[3,1,3,16],[4,1,4,4],[4,5,4,16],[5,1,5,16],[6,1,6,16],[7,1,7,16],[9,2,9,14],[11,16,12,16],[8,1,8,14],[11,15,12,15]]}
[null,"ITS Design"]
[null,"ITS"]
[null,"SCOPING ESTIMATE PREPARED"]
[null,"FOR"]
[null,{"$f":"CONCATENATE(IF(TIP.NUMBER=\"\",\"TIP\",CONCATENATE(\"TIP:  \",TIP.NUMBER)),IF(TIP.NUMBER=\"\",\"\",\"   \"))","v":"TIP"},null,null,null,{"$f":"Signals!J3","v":"WBS"}]
[null,{"$f":"IF(COUNTY=\"\",\"COUNTY\",CONCATENATE(\"COUNTY:  \",COUNTY))","v":"COUNTY"}]
[null,{"$f":"IF(PROJECT.DESCRIPTION=\"\",\"PROJECT DESCRIPTION\",CONCATENATE(\"Project Description:  \",PROJECT.DESCRIPTION))","v":"PROJECT DESCRIPTION"}]
[null,{"$f":"IF(ITS_CONSULTANT_NAME=\"CONSULTANT NAME\",\"CONSULTANT NAME\", CONCATENATE(\"FIRM:  \",ITS_CONSULTANT_NAME))","v":"CONSULTANT NAME"}]
[null,null,null,null,null,null,null,null,null,null,null,null,null,null,null,"Prepared By:",{"$f":"IF(SCOPE.MANDAY.ESTIMATE.PREPARED.BY=\"\",\"\",SCOPE.MANDAY.ESTIMATE.PREPARED.BY)","v":""}," ",null,null,null,null," "]
[null,null,"ESTIMATED WORK HOURS",null,null,null,null,null,null,null,null,null,null,null,null,"Date:",{"$f":"IF(SCOPE.MANDAY.ESTIMATE.PREPARED.BY.DATE=\"\",\"\",SCOPE.MANDAY.ESTIMATE.PREPARED.BY.DATE)","v":""},null,null,null,null,null," "]
[null,"POSITION",{"$f":"IF('PEF CLASSIFICATION SHEET'!C346=\"\",\"\",'PEF CLASSIFICATION SHEET'!C346)","v":""},{"$f":"IF('PEF CLASSIFICATION SHEET'!C347=\"\",\"\",'PEF CLASSIFICATION SHEET'!C347)","v":""},{"$f":"IF('PEF CLASSIFICATION SHEET'!C348=\"\",\"\",'PEF CLASSIFICATION SHEET'!C348)","v":""},{"$f":"IF('PEF CLASSIFICATION SHEET'!C349=\"\",\"\",'PEF CLASSIFICATION SHEET'!C349)","v":""},{"$f":"IF('PEF CLASSIFICATION SHEET'!C350=\"\",\"\",'PEF CLASSIFICATION SHEET'!C350)","v":""},{"$f":"IF('PEF CLASSIFICATION SHEET'!C351=\"\",\"\",'PEF CLASSIFICATION SHEET'!C351)","v":""},{"$f":"IF('PEF CLASSIFICATION SHEET'!C352=\"\",\"\",'PEF CLASSIFICATION SHEET'!C352)","v":""},{"$f":"IF('PEF CLASSIFICATION SHEET'!C353=\"\",\"\",'PEF CLASSIFICATION SHEET'!C353)","v":""},{"$f":"IF('PEF CLASSIFICATION SHEET'!C354=\"\",\"\",'PEF CLASSIFICATION SHEET'!C354)","v":""},{"$f":"IF('PEF CLASSIFICATION SHEET'!C355=\"\",\"\",'PEF CLASSIFICATION SHEET'!C355)","v":""},{"$f":"IF('PEF CLASSIFICATION SHEET'!C356=\"\",\"\",'PEF CLASSIFICATION SHEET'!C356)","v":""},{"$f":"IF('PEF CLASSIFICATION SHEET'!C357=\"\",\"\",'PEF CLASSIFICATION SHEET'!C357)","v":""},{"$f":"IF('PEF CLASSIFICATION SHEET'!C358=\"\",\"\",'PEF CLASSIFICATION SHEET'!C358)","v":""}," "]
["TASK NUMBER","EMPLOYEE NAME",{"$f":"LEFT('PEF CLASSIFICATION SHEET'!D346,4)","v":""},{"$f":"LEFT('PEF CLASSIFICATION SHEET'!D347,4)","v":""},{"$f":"LEFT('PEF CLASSIFICATION SHEET'!D348,4)","v":""},{"$f":"LEFT('PEF CLASSIFICATION SHEET'!D349,4)","v":""},{"$f":"LEFT('PEF CLASSIFICATION SHEET'!D350,4)","v":""},{"$f":"LEFT('PEF CLASSIFICATION SHEET'!D351,4)","v":""},{"$f":"LEFT('PEF CLASSIFICATION SHEET'!D352,4)","v":""},{"$f":"LEFT('PEF CLASSIFICATION SHEET'!D353,4)","v":""},{"$f":"LEFT('PEF CLASSIFICATION SHEET'!D354,4)","v":""},{"$f":"LEFT('PEF CLASSIFICATION SHEET'!D355,4)","v":""},{"$f":"LEFT('PEF CLASSIFICATION SHEET'!D356,4)","v":""},{"$f":"LEFT('PEF CLASSIFICATION SHEET'!D357,4)","v":""},{"$f":"LEFT('PEF CLASSIFICATION SHEET'!D358,4)","v":""},"SUBTOTAL RAW LABOR ($)","SUBTOTAL OF HOURS BY TASK","NOTES"]
[null,"RATE",{"$f":"'PEF CLASSIFICATION SHEET'!E346","v":0},{"$f":"'PEF CLASSIFICATION SHEET'!E347","v":0},{"$f":"'PEF CLASSIFICATION SHEET'!E348","v":0},{"$f":"'PEF CLASSIFICATION SHEET'!E349","v":0},{"$f":"'PEF CLASSIFICATION SHEET'!E350","v":0},{"$f":"'PEF CLASSIFICATION SHEET'!E351","v":0},{"$f":"'PEF CLASSIFICATION SHEET'!E352","v":0},{"$f":"'PEF CLASSIFICATION SHEET'!E353","v":0},{"$f":"'PEF CLASSIFICATION SHEET'!E354","v":0},{"$f":"'PEF CLASSIFICATION SHEET'!E355","v":0},{"$f":"'PEF CLASSIFICATION SHEET'!E356","v":0},{"$f":"'PEF CLASSIFICATION SHEET'!E357","v":0},{"$f":"'PEF CLASSIFICATION SHEET'!E358","v":0}]
["Task 1.0","Project Coordination"," "," ",null,null,null,null,null,null,null,null,null,null,null," ",null,null," "]
[1.1000000000000001,"Project Kick-Off Meeting",null,null,null,null,null,null,null,null,null,null,null,null,null,null,{"$f":"SUM(C15:P15)","v":0}]
[1.2,"Technology Review Meeting with Division",null,null,null,null,null,null,null,null,null,null,null,null,null,null,{"$f":"SUM(C16:P16)","v":0}]
[1.3,"90% PS&E Design Review Meeting",null,null,null,null,null,null,null,null,null,null,null,null,null,null,0]
[1.4,"100% PS&E Final Design Review Meeting",null,null,null,null,null,null,null,null,null,null,null,null,null,null,0]
[1.5,"Miscellaneous Coordination",null,null,null,null,null,null,null,null,null,null,null,null,null,null,0]
[1.6,null,null,null,null,null,null,null,null,null,null,null,null,null,null,null,0]
[1.7,null,null,null,null,null,null,null,null,null,null,null,null,null,null,null,0]
[1.8,null,null,null,null,null,null,null,null,null,null,null,null,null,null,null,0]
[1.9,null,null,null,null,null,null,null,null,null,null,null,null,null,null,null,0]
["1.10",null,null,null,null,null,null,null,null,null,null,null,null,null,null,null,0]
[null,"Subtotal (Hours)",{"$f":"SUM(C15:C24)","v":0},{"$f":"SUM(D15:D24)","v":0},0,0,0,0,0,0,0,0,0,0,0,null,{"$f":"SUM(Q15:Q24)","v":0}]
[null,"Subtotal (Dollars)",{"$f":"C25*C$13","v":0},{"$f":"D25*D$13","v":0},0,0,0,0,0,0,0,0,0,0,0,{"$f":"SUM(C26:O26)","v":0}]
["Task 2.0     ","Preliminary Design"," ",null," "]
[2.1,"ITS Device Site Selections",null,null,null,null,null,null,null,null,null,null,null,null,null,null,{"$f":"SUM(C28:P28)","v":0}]
[2.2000000000000002,"Communication Design",null,null,null,null,null,null,null,null,null,null,null,null,null,null,{"$f":"SUM(C29:P29)","v":0}]
[2.2999999999999998,"Utility Coordination & Field Work (Power Service)",null,null,null,null,null,null,null,null,null,null,null,null,null,null,0]
[2.4,"Utility Coordination & Field Work (Utility Make-Ready)",null,null,null,null,null,null,null,null,null,null,null,null,null,null,0]
[2.5,null,null,null,null,null,null,null,null,null,null,null,null,null,null,null,0]
[2.6,null,null,null,null,null,null,null,null,null,null,null,null,null,null,null,0]
[2.7,null,null,null,null,null,null,null,null,null,null,null,null,null,null,null,0]
[2.8,null,null,null,null,null,null,null,null,null,null,null,null,null,null,null,0]
[2.9,null,null,null,null,null,null,null,null,null,null,null,null,null,null,null,0]
[null,"Subtotal (Hours)",{"$f":"SUM(C28:C36)","v":0},{"$f":"SUM(D28:D36)","v":0},0,0,0,0,0,0,0,0,0,0,0,null,{"$f":"SUM(Q28:Q36)","v":0}]
[null,"Subtotal (Dollars)",{"$f":"C37*C$13","v":0},{"$f":"D37*D$13","v":0},0,0,0,0,0,0,0,0,0,0,0,{"$f":"SUM(C38:O38)","v":0}]
["Task 3.0     ","Prepare Plans, Specifications & Estimate"]
[3.1,"Prepare Base Mapping",null,null,null,null,null,null,null,null,null,null,null,null,null,null,{"$f":"SUM(C40:P40)","v":0}]
[3.2,"Prepare Cable Routing Sheets & ITS Device Sheets",null,null,null,null,null,null,null,null,null,null,null,null,null,null,{"$f":"SUM(C41:P41)","v":0}]
[3.3,"Prepare Detail Drawings ",null,null,null,null,null,null,null,null,null,null,null,null,null,null,0]
[3.4,"Prepare Splice Diagrams ",null,null,null,null,null,null,null,null,null,null,null,null,null,null,0]
[3.5,"Prepare Project Special Provisions & Revisions",null,null,null,null,null,null,null,null,null,null,null,null,null,null,0]
[3.6,"Prepare Quantities & Engineer's Estimate",null,null,null,null,null,null,null,null,null,null,null,null,null,null,0]
[3.7,"Submit 90% PS&E",null,null,null,null,null,null,null,null,null,null,null,null,null,null,0]
[3.8,"Submit 100% PS&E",null,null,null,null,null,null,null,null,null,null,null,null,null,null,0]
[3.9,"Submit 100% Unsealed PS&E",null,null,null,null,null,null,null,null,null,null,null,null,null,null,0]
["3.10","Submit Final Sealed PS&E",null,null,null,null,null,null,null,null,null,null,null,null,null,null,0]
["3.11",null,null,null,null,null,null,null,null,null,null,null,null,null,null,null,{"$f":"SUM(C50:P50)","v":0}]
["3.12",null,null,null,null,null,null,null,null,null,null,null,null,null,null,null,0]
["3.13",null,null,null,null,null,null,null,null,null,null,null,null,null,null,null,0]
["3.14",null,null,null,null,null,null,null,null,null,null,null,null,null,null,null,0]
["3.15",null,null,null,null,null,null,null,null,null,null,null,null,null,null,null,0]
[null,"Subtotal (Hours)",{"$f":"SUM(C40:C54)","v":0},{"$f":"SUM(D40:D54)","v":0},0,0,0,0,0,0,0,0,0,0,0,null,{"$f":"SUM(Q40:Q54)","v":0}]
[null,"Subtotal (Dollars)",{"$f":"C55*C$13","v":0},{"$f":"D55*D$13","v":0},0,0,0,0,0,0,0,0,0,0,0,{"$f":"SUM(C56:O56)","v":0}]
["Task 4.0     ","REPLACE FIELD WITH CATEGORY NAME OF YOUR CHOOSING HERE",null,null,null,null,null,null,null,null,null,null,null,null,null,null,{"$f":"IF(B57=\"REPLACE FIELD WITH CATEGORY NAME OF YOUR CHOOSING HERE\",0,\"\")","v":0}]
[4.0999999999999996,null,null,null,null,null,null,null,null,null,null,null,null,null,null,null,{"$f":"SUM(C58:P58)","v":0}]
[4.2,null,null,null,null,null,null,null,null,null,null,null,null,null,null,null,0]
[4.3,null,null,null,null,null,null,null,null,null,null,null,null,null,null,null,0]
[4.4000000000000004,null,null,null,null,null,null,null,null,null,null,null,null,null,null,null,0]
[4.5,null,null,null,null,null,null,null,null,null,null,null,null,null,null,null,0]
[4.5999999999999996,null,null,null,null,null,null,null,null,null,null,null,null,null,null,null,0]
[4.7,null,null,null,null,null,null,null,null,null,null,null,null,null,null,null,0]
[4.8,null,null,null,null,null,null,null,null,null,null,null,null,null,null,null,0]
[4.9000000000000004,null,null,null,null,null,null,null,null,null,null,null,null,null,null,null,0]
["4.10",null,null,null,null,null,null,null,null,null,null,null,null,null,null,null,0]
[null,"Subtotal (Hours)",{"$f":"SUM(C58:C67)","v":0},{"$f":"SUM(D58:D67)","v":0},{"$f":"SUM(E58:E67)","v":0},{"$f":"SUM(F58:F67)","v":0},{"$f":"SUM(G58:G67)","v":0},{"$f":"SUM(H58:H67)","v":0},{"$f":"SUM(I58:I67)","v":0},{"$f":"SUM(J58:J67)","v":0},{"$f":"SUM(K58:K67)","v":0},{"$f":"SUM(L58:L67)","v":0},{"$f":"SUM(M58:M67)","v":0},{"$f":"SUM(N58:N67)","v":0},{"$f":"SUM(O58:O67)","v":0},null,{"$f":"SUM(Q58:Q67)","v":0}]
[null,"Subtotal (Dollars)",{"$f":"C68*C$13","v":0},{"$f":"D68*D$13","v":0},0,0,0,0,0,0,0,0,0,0,0,{"$f":"SUM(C69:O69)","v":0}]
["Task 5.0     ","REPLACE FIELD WITH CATEGORY NAME OF YOUR CHOOSING HERE",null,null,null,null,null,null,null,null,null,null,null,null,null,null,{"$f":"IF(B70=\"REPLACE FIELD WITH CATEGORY NAME OF YOUR CHOOSING HERE\",0,\"\")","v":0}]
[5.0999999999999996,null,null,null,null,null,null,null,null,null,null,null,null,null,null,null,{"$f":"SUM(C71:P71)","v":0}]
[5.2,null,null,null,null,null,null,null,null,null,null,null,null,null,null,null,0]
[5.3,null,null,null,null,null,null,null,null,null,null,null,null,null,null,null,0]
[5.4,null,null,null,null,null,null,null,null,null,null,null,null,null,null,null,0]
[5.5,null,null,null,null,null,null,null,null,null,null,null,null,null,null,null,0]
[5.6,null,null,null,null,null,null,null,null,null,null,null,null,null,null,null,0]
[5.7,null,null,null,null,null,null,null,null,null,null,null,null,null,null,null,0]
[5.8,null,null,null,null,null,null,null,null,null,null,null,null,null,null,null,0]
[5.9,null,null,null,null,null,null,null,null,null,null,null,null,null,null,null,0]
["5.10",null,null,null,null,null,null,null,null,null,null,null,null,null,null,null,0]
[null,"Subtotal (Hours)",{"$f":"SUM(C71:C80)","v":0},{"$f":"SUM(D71:D80)","v":0},{"$f":"SUM(E71:E80)","v":0},{"$f":"SUM(F71:F80)","v":0},{"$f":"SUM(G71:G80)","v":0},{"$f":"SUM(H71:H80)","v":0},{"$f":"SUM(I71:I80)","v":0},{"$f":"SUM(J71:J80)","v":0},{"$f":"SUM(K71:K80)","v":0},{"$f":"SUM(L71:L80)","v":0},{"$f":"SUM(M71:M80)","v":0},{"$f":"SUM(N71:N80)","v":0},{"$f":"SUM(O71:O80)","v":0},null,{"$f":"SUM(Q71:Q80)","v":0}]
[null,"Subtotal (Dollars)",{"$f":"C81*C$13","v":0},{"$f":"D81*D$13","v":0},0,0,0,0,0,0,0,0,0,0,0,{"$f":"SUM(C82:O82)","v":0}]
["Task 6.0     ","REPLACE FIELD WITH CATEGORY NAME OF YOUR CHOOSING HERE",null,null,null,null,null,null,null,null,null,null,null,null,null,null,{"$f":"IF(B83=\"REPLACE FIELD WITH CATEGORY NAME OF YOUR CHOOSING HERE\",0,\"\")","v":0}]
[6.1,null,null,null,null,null,null,null,null,null,null,null,null,null,null,null,{"$f":"SUM(C84:P84)","v":0}]
[6.2,null,null,null,null,null,null,null,null,null,null,null,null,null,null,null,0]
[6.3,null,null,null,null,null,null,null,null,null,null,null,null,null,null,null,0]
[6.4,null,null,null,null,null,null,null,null,null,null,null,null,null,null,null,0]
[6.5,null,null,null,null,null,null,null,null,null,null,null,null,null,null,null,0]
[6.6,null,null,null,null,null,null,null,null,null,null,null,null,null,null,null,0]
[6.7,null,null,null,null,null,null,null,null,null,null,null,null,null,null,null,0]
[6.8,null,null,null,null,null,null,null,null,null,null,null,null,null,null,null,0]
[6.9,null,null,null,null,null,null,null,null,null,null,null,null,null,null,null,0]
["6.10",null,null,null,null,null,null,null,null,null,null,null,null,null,null,null,0]
[null,"Subtotal (Hours)",{"$f":"SUM(C84:C93)","v":0},{"$f":"SUM(D84:D93)","v":0},{"$f":"SUM(E84:E93)","v":0},{"$f":"SUM(F84:F93)","v":0},{"$f":"SUM(G84:G93)","v":0},{"$f":"SUM(H84:H93)","v":0},{"$f":"SUM(I84:I93)","v":0},{"$f":"SUM(J84:J93)","v":0},{"$f":"SUM(K84:K93)","v":0},{"$f":"SUM(L84:L93)","v":0},{"$f":"SUM(M84:M93)","v":0},{"$f":"SUM(N84:N93)","v":0},{"$f":"SUM(O84:O93)","v":0},null,{"$f":"SUM(Q84:Q93)","v":0}]
[null,"Subtotal (Dollars)",{"$f":"C94*C$13","v":0},{"$f":"D94*D$13","v":0},0,0,0,0,0,0,0,0,0,0,0,{"$f":"SUM(C95:O95)","v":0}]
["Task 7.0     ","REPLACE FIELD WITH CATEGORY NAME OF YOUR CHOOSING HERE",null,null,null,null,null,null,null,null,null,null,null,null,null,null,{"$f":"IF(B96=\"REPLACE FIELD WITH CATEGORY NAME OF YOUR CHOOSING HERE\",0,\"\")","v":0}]
[7.1,null,null,null,null,null,null,null,null,null,null,null,null,null,null,null,{"$f":"SUM(C97:P97)","v":0}]
[7.2,null,null,null,null,null,null,null,null,null,null,null,null,null,null,null,0]
[7.3,null,null,null,null,null,null,null,null,null,null,null,null,null,null,null,0]
[7.4,null,null,null,null,null,null,null,null,null,null,null,null,null,null,null,0]
[7.5,null,null,null,null,null,null,null,null,null,null,null,null,null,null,null,0]
[7.6,null,null,null,null,null,null,null,null,null,null,null,null,null,null,null,0]
[7.7,null,null,null,null,null,null,null,null,null,null,null,null,null,null,null,0]
[7.8,null,null,null,null,null,null,null,null,null,null,null,null,null,null,null,0]
[7.9,null,null,null,null,null,null,null,null,null,null,null,null,null,null,null,0]
["7.10",null,null,null,null,null,null,null,null,null,null,null,null,null,null,null,0]
[null,"Subtotal (Hours)",{"$f":"SUM(C97:C106)","v":0},{"$f":"SUM(D97:D106)","v":0},{"$f":"SUM(E97:E106)","v":0},{"$f":"SUM(F97:F106)","v":0},{"$f":"SUM(G97:G106)","v":0},{"$f":"SUM(H97:H106)","v":0},{"$f":"SUM(I97:I106)","v":0},{"$f":"SUM(J97:J106)","v":0},{"$f":"SUM(K97:K106)","v":0},{"$f":"SUM(L97:L106)","v":0},{"$f":"SUM(M97:M106)","v":0},{"$f":"SUM(N97:N106)","v":0},{"$f":"SUM(O97:O106)","v":0},null,{"$f":"SUM(Q97:Q106)","v":0}]
[null,"Subtotal (Dollars)",{"$f":"C107*C$13","v":0},{"$f":"D107*D$13","v":0},0,0,0,0,0,0,0,0,0,0,0,{"$f":"SUM(C108:O108)","v":0}]
["Task 8.0     ","REPLACE FIELD WITH CATEGORY NAME OF YOUR CHOOSING HERE",null,null,null,null,null,null,null,null,null,null,null,null,null,null,{"$f":"IF(B109=\"REPLACE FIELD WITH CATEGORY NAME OF YOUR CHOOSING HERE\",0,\"\")","v":0}]
[8.1,null,null,null,null,null,null,null,null,null,null,null,null,null,null,null,{"$f":"SUM(C110:P110)","v":0}]
[8.1999999999999993,null,null,null,null,null,null,null,null,null,null,null,null,null,null,null,0]
[8.3000000000000007,null,null,null,null,null,null,null,null,null,null,null,null,null,null,null,0]
[8.4,null,null,null,null,null,null,null,null,null,null,null,null,null,null,null,0]
[8.5,null,null,null,null,null,null,null,null,null,null,null,null,null,null,null,0]
[8.6,null,null,null,null,null,null,null,null,null,null,null,null,null,null,null,0]
[8.6999999999999993,null,null,null,null,null,null,null,null,null,null,null,null,null,null,null,0]
[8.8000000000000007,null,null,null,null,null,null,null,null,null,null,null,null,null,null,null,0]
[8.9,null,null,null,null,null,null,null,null,null,null,null,null,null,null,null,0]
["8.10",null,null,null,null,null,null,null,null,null,null,null,null,null,null,null,0]
[null,"Subtotal (Hours)",{"$f":"SUM(C110:C119)","v":0},{"$f":"SUM(D110:D119)","v":0},{"$f":"SUM(E110:E119)","v":0},{"$f":"SUM(F110:F119)","v":0},{"$f":"SUM(G110:G119)","v":0},{"$f":"SUM(H110:H119)","v":0},{"$f":"SUM(I110:I119)","v":0},{"$f":"SUM(J110:J119)","v":0},{"$f":"SUM(K110:K119)","v":0},{"$f":"SUM(L110:L119)","v":0},{"$f":"SUM(M110:M119)","v":0},{"$f":"SUM(N110:N119)","v":0},{"$f":"SUM(O110:O119)","v":0},null,{"$f":"SUM(Q110:Q119)","v":0}]
[null,"Subtotal (Dollars)",{"$f":"C120*C$13","v":0},{"$f":"D120*D$13","v":0},0,0,0,0,0,0,0,0,0,0,0,{"$f":"SUM(C121:O121)","v":0}]
[]
[null,"TOTAL HOURS",{"$f":"SUM(C25,C37,C55,C68,C81,C94,C107,C120)","v":0},{"$f":"SUM(D25,D37,D55,D68,D81,D94,D107,D120)","v":0},0,0,0,0,0,0,0,0,0,0,{"$f":"SUM(O25,O37,O55,O68,O81,O94,O107,O120)","v":0},null,{"$f":"SUM(Q25,Q37,Q55,Q68,Q81,Q94,Q107,Q120)","v":0}]
[null,"TOTAL WORKDAYS",{"$f":"C123/8","v":0},0,0,0,0,0,0,0,0,0,0,0,0,null,{"$f":"SUM(C124:P124)","v":0}]
[null,"TOTAL RAW LABOR",{"$f":"C13*C123","v":0},0,0,0,0,0,0,0,0,0,0,0,0,0,0]
[]
[null,"Contract Overhead Rate",{"$f":"ITS_CONSULTANT_OVERHEAD","v":0},null,null,null,null,null,null,null,null,null,null,null,null,null,{"$f":"C127","v":0}]
[null,"Overhead Cost",null,null,null,null,null,null,null,null,null,null,null,null,null,null,{"$f":"Q125*Q127","v":0}]
[null,"Fee",{"$f":"ITS_CONSULTANT_FEE","v":0.09},null,null,null,null,null,null,null,null,null,null,null,null,null,{"$f":"(Q125+Q128)*C129","v":0}]
[null,"FCCM",{"$f":"ITS_CONSULTANT_COSTofCAPITAL","v":0},null,null,null,null,null,null,null,null,null,null,null,null,null,{"$f":"Q125*C130","v":0}]
[]
[null,"TOTAL RAW LABOR",null,null,null,null,null,null,null,null,null,null,null,null,null,null,{"$f":"Q125+Q128+Q129+Q130","v":0}]
[null,"DIRECT EXPENSES",null,null,null,null,null,null,null,null,null,null,null,null,null,null,{"$f":"ITS_DIRECT_NONSALARY_TOTAL","v":0}]
[null,"CABLE ROUTING ESTIMATE",null,null,null,null,null,null,null,null,null,null,null,null,null,null,{"$f":"SUM(Q132:Q133)","v":0}]
[]
[]
[]
[]
[]
[null,null,"Direct Cost Computation"]
[null,null,null,"Qty.",null,"Unit Cost","Sub-Total"]
[null,null,"Mileage",null,"miles",{"$f":"SEDAN","v":0.7},{"$f":"D142*$F142","v":0}]
[null,null,"Lodging",null,"nights",{"$f":"LODGING_LUMP.SUM","v":95},0]
[null,null,"Breakfast",null,"meal",{"$f":"BREAKFAST","v":10.1},0]
[null,null,"Lunch",null,"meal",{"$f":"LUNCH","v":13.3},0]
[null,null,"Dinner",null,"meal",{"$f":"DINNER","v":23.1},0]
[null,null,"Full Size Plans",null,"sheets",{"$f":"BOND.REGULAR","v":0.42},0]
[null,null,"Half Size Plans",null,"sheets",{"$f":"LEDGERCOPIES","v":0.34},0]
[null,null,"Letter Size",null,"sheets",{"$f":"LETTERCOPIES","v":0.14000000000000001},0]
[null,null,"GPS Rental",null,"days",null,0]
[null,null,"OTDR Test",null,"each",null,0]
[null,null,"MISCELLANEOUS",null,"NAME",null,0]
[null,null,null,null,"NAME",null,0]
[null,null,null,null,"NAME",null,0]
[null,null,null,null,"NAME",null,0]
[null,null,null,null,"NAME",null,0]
[null,null,"Total Phase Cost",null,null,null,{"$f":"SUM(G142:G156)","v":0}]

{"sheet":"MunicipalSignalSystem","index":48,"n_rows":1300,"n_cols":57,"rows_kept":1300,"cut":false,"hidden":true,"merged":[[581,0,581,3],[11,55,12,55],[11,54,12,54],[575,0,575,3],[576,0,576,3],[473,0,473,3],[474,0,474,3],[475,0,475,3],[439,0,439,3],[440,0,440,3],[441,0,441,3],[405,0,405,3],[406,0,406,3],[407,0,407,3],[371,0,371,3],[187,0,187,3],[188,0,188,3],[372,0,372,3],[189,0,189,3],[219,0,219,3],[220,0,220,3],[221,0,221,3],[202,0,202,3],[203,0,203,3],[589,0,589,2],[10,4,10,5],[12,4,12,5],[11,4,11,5],[10,6,10,7],[11,6,11,7],[12,6,12,7],[585,4,585,5],[586,4,586,5],[587,4,587,5],[588,4,588,5],[589,4,589,5],[12,0,13,0],[12,1,13,1],[12,2,13,2],[12,3,13,3],[583,0,583,2],[584,0,584,2],[585,0,585,2],[586,0,586,2],[587,0,587,2],[588,0,588,2],[579,0,579,3],[580,0,580,3],[584,4,584,5],[10,24,10,25],[11,24,11,25],[12,24,12,25],[10,26,10,27],[11,26,11,27],[12,26,12,27],[10,20,10,21],[11,20,11,21],[12,20,12,21],[10,22,10,23],[11,22,11,23],[12,22,12,23],[10,16,10,17],[11,16,11,17],[12,16,12,17],[10,18,10,19],[11,18,11,19],[12,18,12,19],[10,12,10,13],[11,12,11,13],[12,12,12,13],[10,14,10,15],[11,14,11,15],[10,28,10,29],[11,28,11,29],[12,28,12,29],[12,14,12,15],[10,8,10,9],[11,8,11,9],[12,8,12,9],[10,10,10,11],[11,10,11,11],[12,10,12,11],[204,0,204,3],[139,0,139,3],[114,0,114,3],[115,0,115,3],[116,0,116,3],[249,0,249,3],[250,0,250,3],[251,0,251,3],[373,0,373,3],[356,0,356,3],[357,0,357,3],[358,0,358,3],[342,0,342,3],[343,0,343,3],[344,0,344,3],[176,0,176,3],[158,0,158,3],[159,0,159,3],[160,0,160,3],[174,0,174,3],[175,0,175,3],[577,0,577,3],[541,0,541,3],[542,0,542,3],[543,0,543,3],[507,0,507,3],[508,0,508,3],[509,0,509,3],[312,0,312,3],[313,0,313,3],[314,0,314,3],[4,0,4,9],[52,0,52,3],[53,0,53,3],[54,0,54,3],[27,0,27,3],[28,0,28,3],[29,0,29,3],[137,0,137,3],[138,0,138,3],[9,1,9,3],[10,30,10,31],[11,30,11,31],[12,30,12,31],[10,32,10,33],[11,32,11,33],[12,32,12,33],[10,34,10,35],[11,34,11,35],[12,34,12,35],[12,46,12,47],[12,48,12,49],[12,50,12,51],[10,36,10,37],[11,36,11,37],[12,36,12,37],[10,38,10,39],[11,38,11,39],[12,38,12,39],[10,40,10,41],[11,40,11,41],[12,40,12,41],[596,0,596,15],[0,0,0,31],[9,4,9,69],[8,1,8,3],[1,0,1,31],[7,0,7,31],[6,0,6,31],[5,0,5,31],[4,10,4,31],[12,52,12,53],[10,52,10,53],[11,46,11,47],[11,48,11,49],[11,50,11,51],[11,52,11,53],[10,42,10,43],[11,42,11,43],[12,42,12,43],[10,44,10,45],[11,44,11,45],[12,44,12,45],[10,46,10,47],[10,48,10,49],[10,50,10,51]]}
["MUNICIPAL SIGNAL SYSTEM Design"]
["MUNICIPAL SIGNAL SYSTEM "]
["SCOPING ESTIMATE PREPARED for"]
[]
[{"$f":"CONCATENATE(IF(TIP.NUMBER=\"\",\"TIP\",CONCATENATE(\"TIP:  \",TIP.NUMBER)),IF(TIP.NUMBER=\"\",\"\",\"   \"))","v":"TIP"},null,null,null,null,null,null,null,null,null,{"$f":"CONCATENATE(IF(WBS.NUMBER=\"\",\"\",\"   \"),IF(WBS.NUMBER=\"\",\"WBS\",CONCATENATE(\"WBS:  \",WBS.NUMBER)))","v":"WBS"}]
[{"$f":"IF(COUNTY=\"\",\"COUNTY\",CONCATENATE(\"COUNTY:  \",COUNTY))","v":"COUNTY"}]
[{"$f":"IF(PROJECT.DESCRIPTION=\"\",\"PROJECT DESCRIPTION\",CONCATENATE(\"Project Description:  \",PROJECT.DESCRIPTION))","v":"PROJECT DESCRIPTION"}]
[{"$f":"IF(MUNICIPAL_SIGNAL_SYSTEM_CONSULTANT_NAME=\"CONSULTANT NAME\",\"CONSULTANT NAME\", CONCATENATE(\"FIRM:  \",MUNICIPAL_SIGNAL_SYSTEM_CONSULTANT_NAME))","v":"CONSULTANT NAME"}]
["Prepared By:",null,null,null,null,null,null,null,null,null,null,null,null,null,null,null,null,null,null,null,null,null,null,null,null,null,null,null,null,null,null,null," "," ",null,null,null,null," "]
["Date:",null,null,null,"ESTIMATED WORK HOURS"]
[null,null,null,"POSITION",{"$f":"IF('PEF CLASSIFICATION SHEET'!C361=\"\",\"\",'PEF CLASSIFICATION SHEET'!C361)","v":""},null,{"$f":"IF('PEF CLASSIFICATION SHEET'!C362=\"\",\"\",'PEF CLASSIFICATION SHEET'!C362)","v":""},null,{"$f":"IF('PEF CLASSIFICATION SHEET'!C363=\"\",\"\",'PEF CLASSIFICATION SHEET'!C363)","v":""},null,{"$f":"IF('PEF CLASSIFICATION SHEET'!C364=\"\",\"\",'PEF CLASSIFICATION SHEET'!C364)","v":""},null,{"$f":"IF('PEF CLASSIFICATION SHEET'!C365=\"\",\"\",'PEF CLASSIFICATION SHEET'!C365)","v":""},null,{"$f":"IF('PEF CLASSIFICATION SHEET'!C366=\"\",\"\",'PEF CLASSIFICATION SHEET'!C366)","v":""},null,{"$f":"IF('PEF CLASSIFICATION SHEET'!C367=\"\",\"\",'PEF CLASSIFICATION SHEET'!C367)","v":""},null,{"$f":"IF('PEF CLASSIFICATION SHEET'!C368=\"\",\"\",'PEF CLASSIFICATION SHEET'!C368)","v":""},null,{"$f":"IF('PEF CLASSIFICATION SHEET'!C369=\"\",\"\",'PEF CLASSIFICATION SHEET'!C369)","v":""},null,{"$f":"IF('PEF CLASSIFICATION SHEET'!C370=\"\",\"\",'PEF CLASSIFICATION SHEET'!C370)","v":""},null,{"$f":"IF('PEF CLASSIFICATION SHEET'!C371=\"\",\"\",'PEF CLASSIFICATION SHEET'!C371)","v":""},null,{"$f":"IF('PEF CLASSIFICATION SHEET'!C372=\"\",\"\",'PEF CLASSIFICATION SHEET'!C372)","v":""},null,{"$f":"IF('PEF CLASSIFICATION SHEET'!$C373=\"\",\"\",'PEF CLASSIFICATION SHEET'!$C373)","v":""},null,{"$f":"IF('PEF CLASSIFICATION SHEET'!$C374=\"\",\"\",'PEF CLASSIFICATION SHEET'!$C374)","v":""},null,{"$f":"IF('PEF CLASSIFICATION SHEET'!$C375=\"\",\"\",'PEF CLASSIFICATION SHEET'!$C375)","v":""},null,{"$f":"IF('PEF CLASSIFICATION SHEET'!$C376=\"\",\"\",'PEF CLASSIFICATION SHEET'!$C376)","v":""},null,{"$f":"IF('PEF CLASSIFICATION SHEET'!$C377=\"\",\"\",'PEF CLASSIFICATION SHEET'!$C377)","v":""},null,{"$f":"IF('PEF CLASSIFICATION SHEET'!$C378=\"\",\"\",'PEF CLASSIFICATION SHEET'!$C378)","v":""},null,{"$f":"IF('PEF CLASSIFICATION SHEET'!$C379=\"\",\"\",'PEF CLASSIFICATION SHEET'!$C379)","v":""},null,{"$f":"IF('PEF CLASSIFICATION SHEET'!$C380=\"\",\"\",'PEF CLASSIFICATION SHEET'!$C380)","v":""},null,{"$f":"IF('PEF CLASSIFICATION SHEET'!$C381=\"\",\"\",'PEF CLASSIFICATION SHEET'!$C381)","v":""},null,{"$f":"IF('PEF CLASSIFICATION SHEET'!$C382=\"\",\"\",'PEF CLASSIFICATION SHEET'!$C382)","v":""},null,{"$f":"IF('PEF CLASSIFICATION SHEET'!$C383=\"\",\"\",'PEF CLASSIFICATION SHEET'!$C383)","v":""},null,{"$f":"IF('PEF CLASSIFICATION SHEET'!$C384=\"\",\"\",'PEF CLASSIFICATION SHEET'!$C384)","v":""},null,{"$f":"IF('PEF CLASSIFICATION SHEET'!$C385=\"\",\"\",'PEF CLASSIFICATION SHEET'!$C385)","v":""}]
[null,null,null,"EMPLOYEE NAME & RATE",{"$f":"LEFT('PEF CLASSIFICATION SHEET'!D361,4)","v":""},null,{"$f":"LEFT('PEF CLASSIFICATION SHEET'!D362,4)","v":""},null,{"$f":"LEFT('PEF CLASSIFICATION SHEET'!D363,4)","v":""},null,{"$f":"LEFT('PEF CLASSIFICATION SHEET'!D364,4)","v":""},null,{"$f":"LEFT('PEF CLASSIFICATION SHEET'!D365,4)","v":""},null,{"$f":"LEFT('PEF CLASSIFICATION SHEET'!D366,4)","v":""},null,{"$f":"LEFT('PEF CLASSIFICATION SHEET'!D367,4)","v":""},null,{"$f":"LEFT('PEF CLASSIFICATION SHEET'!D368,4)","v":""},null,{"$f":"LEFT('PEF CLASSIFICATION SHEET'!D369,4)","v":""},null,{"$f":"LEFT('PEF CLASSIFICATION SHEET'!D370,4)","v":""},null,{"$f":"LEFT('PEF CLASSIFICATION SHEET'!D371,4)","v":""},null,{"$f":"LEFT('PEF CLASSIFICATION SHEET'!D372,4)","v":""},null,{"$f":"LEFT('PEF CLASSIFICATION SHEET'!$D373,4)","v":""},null,{"$f":"LEFT('PEF CLASSIFICATION SHEET'!$D374,4)","v":""},null,{"$f":"LEFT('PEF CLASSIFICATION SHEET'!$D375,4)","v":""},null,{"$f":"LEFT('PEF CLASSIFICATION SHEET'!$D376,4)","v":""},null,{"$f":"LEFT('PEF CLASSIFICATION SHEET'!$D377,4)","v":""},null,{"$f":"LEFT('PEF CLASSIFICATION SHEET'!$D378,4)","v":""},null,{"$f":"LEFT('PEF CLASSIFICATION SHEET'!$D379,4)","v":""},null,{"$f":"LEFT('PEF CLASSIFICATION SHEET'!$D380,4)","v":""},null,{"$f":"LEFT('PEF CLASSIFICATION SHEET'!$D381,4)","v":""},null,{"$f":"LEFT('PEF CLASSIFICATION SHEET'!$D382,4)","v":""},null,{"$f":"LEFT('PEF CLASSIFICATION SHEET'!$D383,4)","v":""},null,{"$f":"LEFT('PEF CLASSIFICATION SHEET'!$D384,4)","v":""},null,{"$f":"LEFT('PEF CLASSIFICATION SHEET'!$D385,4)","v":""},null,"SUBTOTAL OF HOURS BY TASK","NOTES"]
["TASK NUMBER","PROJECT TASK","QTY","UNIT",{"$f":"'PEF CLASSIFICATION SHEET'!E361","v":0},null,{"$f":"'PEF CLASSIFICATION SHEET'!E362","v":0},null,{"$f":"'PEF CLASSIFICATION SHEET'!E363","v":0},null,{"$f":"'PEF CLASSIFICATION SHEET'!E364","v":0},null,{"$f":"'PEF CLASSIFICATION SHEET'!E365","v":0},null,{"$f":"'PEF CLASSIFICATION SHEET'!E366","v":0},null,{"$f":"'PEF CLASSIFICATION SHEET'!E367","v":0},null,{"$f":"'PEF CLASSIFICATION SHEET'!E368","v":0},null,{"$f":"'PEF CLASSIFICATION SHEET'!E369","v":0},null,{"$f":"'PEF CLASSIFICATION SHEET'!E370","v":0},null,{"$f":"'PEF CLASSIFICATION SHEET'!E371","v":0},null,{"$f":"'PEF CLASSIFICATION SHEET'!E372","v":0},null,{"$f":"'PEF CLASSIFICATION SHEET'!$E373","v":0},null,{"$f":"'PEF CLASSIFICATION SHEET'!$E374","v":0},null,{"$f":"'PEF CLASSIFICATION SHEET'!$E375","v":0},null,{"$f":"'PEF CLASSIFICATION SHEET'!$E376","v":0},null,{"$f":"'PEF CLASSIFICATION SHEET'!$E377","v":0},null,{"$f":"'PEF CLASSIFICATION SHEET'!$E378","v":0},null,{"$f":"'PEF CLASSIFICATION SHEET'!$E379","v":0},null,{"$f":"'PEF CLASSIFICATION SHEET'!$E380","v":0},null,{"$f":"'PEF CLASSIFICATION SHEET'!$E381","v":0},null,{"$f":"'PEF CLASSIFICATION SHEET'!$E382","v":0},null,{"$f":"'PEF CLASSIFICATION SHEET'!$E383","v":0},null,{"$f":"'PEF CLASSIFICATION SHEET'!$E384","v":0},null,{"$f":"'PEF CLASSIFICATION SHEET'!$E385","v":0}]
[null,null,null,null,"Hrs Per Unit","Total Hrs","Hrs Per Unit","Total Hrs","Hrs Per Unit","Total Hrs","Hrs Per Unit","Total Hrs","Hrs Per Unit","Total Hrs","Hrs Per Unit","Total Hrs","Hrs Per Unit","Total Hrs","Hrs Per Unit","Total Hrs","Hrs Per Unit","Total Hrs","Hrs Per Unit","Total Hrs","Hrs Per Unit","Total Hrs","Hrs Per Unit","Total Hrs","Hrs Per Unit","Total Hrs","Hrs Per Unit","Total Hrs","Hrs Per Unit","Total Hrs","Hrs Per Unit","Total Hrs","Hrs Per Unit","Total Hrs","Hrs Per Unit","Total Hrs","Hrs Per Unit","Total Hrs","Hrs Per Unit","Total Hrs","Hrs Per Unit","Total Hrs","Hrs Per Unit","Total Hrs","Hrs Per Unit","Total Hrs","Hrs Per Unit","Total Hrs","Hrs Per Unit","Total Hrs"]
["Task 1.0","PROJECT MANAGEMENT",null,null," ",null," ",null,null,null,null,null,null,null,null,null,null,null,null,null,null,null,null,null,null,null,null,null,null,null,null,null,null,null,null,null,null,null,null,null,null,null,null,null,null,null,null,null,null,null,null,null,null,null,null,null," "]
[1.1000000000000001,"Project Work Plan",null,null,{"$f":"IF($C$16=\"\",\"\",F16/$C$16)","v":""},null,{"$f":"IF($C$16=\"\",\"\",H16/$C$16)","v":""},null,{"$f":"IF($C$16=\"\",\"\",J16/$C$16)","v":""},null,{"$f":"IF($C$16=\"\",\"\",L16/$C$16)","v":""},null,{"$f":"IF($C$16=\"\",\"\",N16/$C$16)","v":""},null,{"$f":"IF($C$16=\"\",\"\",P16/$C$16)","v":""},null,{"$f":"IF($C$16=\"\",\"\",R16/$C$16)","v":""},null,{"$f":"IF($C$16=\"\",\"\",T16/$C$16)","v":""},null,{"$f":"IF($C$16=\"\",\"\",V16/$C$16)","v":""},null,{"$f":"IF($C$16=\"\",\"\",X16/$C$16)","v":""},null,{"$f":"IF($C$16=\"\",\"\",Z16/$C$16)","v":""},null,{"$f":"IF($C$16=\"\",\"\",AB16/$C$16)","v":""},null,{"$f":"IF($C$16=\"\",\"\",AD16/$C$16)","v":""},null,{"$f":"IF($C$16=\"\",\"\",AF16/$C$16)","v":""},null,{"$f":"IF($C$16=\"\",\"\",AH16/$C$16)","v":""},null,{"$f":"IF($C$16=\"\",\"\",AJ16/$C$16)","v":""},null,{"$f":"IF($C$16=\"\",\"\",AL16/$C$16)","v":""},null,{"$f":"IF($C$16=\"\",\"\",AN16/$C$16)","v":""},null,{"$f":"IF($C$16=\"\",\"\",AP16/$C$16)","v":""},null,{"$f":"IF($C$16=\"\",\"\",AR16/$C$16)","v":""},null,{"$f":"IF($C$16=\"\",\"\",AT16/$C$16)","v":""},null,{"$f":"IF($C$16=\"\",\"\",AV16/$C$16)","v":""},null,{"$f":"IF($C$16=\"\",\"\",AX16/$C$16)","v":""},null,{"$f":"IF($C$16=\"\",\"\",AZ16/$C$16)","v":""},null,{"$f":"IF($C$16=\"\",\"\",BB16/$C$16)","v":""},null,{"$f":"SUM(BB16,AZ16,AX16,AV16,AT16,AR16,AP16,AN16,AL16,AJ16,AH16,AF16,AD16,AB16,Z16,X16,V16,T16,R16,P16,N16,L16,J16,H16,F16)","v":0}]
[1.2,"Project Meetings",null,null,{"$f":"IF($C$17=\"\",\"\",F17/$C$17)","v":""},null,{"$f":"IF($C$17=\"\",\"\",H17/$C$17)","v":""},null,{"$f":"IF($C$17=\"\",\"\",J17/$C$17)","v":""},null,{"$f":"IF($C$17=\"\",\"\",L17/$C$17)","v":""},null,{"$f":"IF($C$17=\"\",\"\",N17/$C$17)","v":""},null,{"$f":"IF($C$17=\"\",\"\",P17/$C$17)","v":""},null,{"$f":"IF($C$17=\"\",\"\",R17/$C$17)","v":""},null,{"$f":"IF($C$17=\"\",\"\",T17/$C$17)","v":""},null,{"$f":"IF($C$17=\"\",\"\",V17/$C$17)","v":""},null,{"$f":"IF($C$17=\"\",\"\",X17/$C$17)","v":""},null,{"$f":"IF($C$17=\"\",\"\",Z17/$C$17)","v":""},null,{"$f":"IF($C$17=\"\",\"\",AB17/$C$17)","v":""},null,{"$f":"IF($C$17=\"\",\"\",AD17/$C$17)","v":""},null,{"$f":"IF($C$17=\"\",\"\",AF17/$C$17)","v":""},null,{"$f":"IF($C$17=\"\",\"\",AH17/$C$17)","v":""},null,{"$f":"IF($C$17=\"\",\"\",AJ17/$C$17)","v":""},null,{"$f":"IF($C$17=\"\",\"\",AL17/$C$17)","v":""},null,{"$f":"IF($C$17=\"\",\"\",AN17/$C$17)","v":""},null,{"$f":"IF($C$17=\"\",\"\",AP17/$C$17)","v":""},null,{"$f":"IF($C$17=\"\",\"\",AR17/$C$17)","v":""},null,{"$f":"IF($C$17=\"\",\"\",AT17/$C$17)","v":""},null,{"$f":"IF($C$17=\"\",\"\",AV17/$C$17)","v":""},null,{"$f":"IF($C$17=\"\",\"\",AX17/$C$17)","v":""},null,{"$f":"IF($C$17=\"\",\"\",AZ17/$C$17)","v":""},null,{"$f":"IF($C$17=\"\",\"\",BB17/$C$17)","v":""},null,{"$f":"SUM(BB17,AZ17,AX17,AV17,AT17,AR17,AP17,AN17,AL17,AJ17,AH17,AF17,AD17,AB17,Z17,X17,V17,T17,R17,P17,N17,L17,J17,H17,F17)","v":0}]
[1.3,"Project Status Reports & Invoices",null,null,{"$f":"IF($C$18=\"\",\"\",F18/$C$18)","v":""},null,{"$f":"IF($C$18=\"\",\"\",H18/$C$18)","v":""},null,{"$f":"IF($C$18=\"\",\"\",J18/$C$18)","v":""},null,{"$f":"IF($C$18=\"\",\"\",L18/$C$18)","v":""},null,{"$f":"IF($C$18=\"\",\"\",N18/$C$18)","v":""},null,{"$f":"IF($C$18=\"\",\"\",P18/$C$18)","v":""},null,{"$f":"IF($C$18=\"\",\"\",R18/$C$18)","v":""},null,{"$f":"IF($C$18=\"\",\"\",T18/$C$18)","v":""},null,{"$f":"IF($C$18=\"\",\"\",V18/$C$18)","v":""},null,{"$f":"IF($C$18=\"\",\"\",X18/$C$18)","v":""},null,{"$f":"IF($C$18=\"\",\"\",Z18/$C$18)","v":""},null,{"$f":"IF($C$18=\"\",\"\",AB18/$C$18)","v":""},null,{"$f":"IF($C$18=\"\",\"\",AD18/$C$18)","v":""},null,{"$f":"IF($C$18=\"\",\"\",AF18/$C$18)","v":""},null,{"$f":"IF($C$18=\"\",\"\",AH18/$C$18)","v":""},null,{"$f":"IF($C$18=\"\",\"\",AJ18/$C$18)","v":""},null,{"$f":"IF($C$18=\"\",\"\",AL18/$C$18)","v":""},null,{"$f":"IF($C$18=\"\",\"\",AN18/$C$18)","v":""},null,{"$f":"IF($C$18=\"\",\"\",AP18/$C$18)","v":""},null,{"$f":"IF($C$18=\"\",\"\",AR18/$C$18)","v":""},null,{"$f":"IF($C$18=\"\",\"\",AT18/$C$18)","v":""},null,{"$f":"IF($C$18=\"\",\"\",AV18/$C$18)","v":""},null,{"$f":"IF($C$18=\"\",\"\",AX18/$C$18)","v":""},null,{"$f":"IF($C$18=\"\",\"\",AZ18/$C$18)","v":""},null,{"$f":"IF($C$18=\"\",\"\",BB18/$C$18)","v":""},null,0]
[1.4,"Project Records and Files/Project Web Site",null,null,{"$f":"IF($C$19=\"\",\"\",F19/$C$19)","v":""},null,{"$f":"IF($C$19=\"\",\"\",H19/$C$19)","v":""},null,{"$f":"IF($C$19=\"\",\"\",J19/$C$19)","v":""},null,{"$f":"IF($C$19=\"\",\"\",L19/$C$19)","v":""},null,{"$f":"IF($C$19=\"\",\"\",N19/$C$19)","v":""},null,{"$f":"IF($C$19=\"\",\"\",P19/$C$19)","v":""},null,{"$f":"IF($C$19=\"\",\"\",R19/$C$19)","v":""},null,{"$f":"IF($C$19=\"\",\"\",T19/$C$19)","v":""},null,{"$f":"IF($C$19=\"\",\"\",V19/$C$19)","v":""},null,{"$f":"IF($C$19=\"\",\"\",X19/$C$19)","v":""},null,{"$f":"IF($C$19=\"\",\"\",Z19/$C$19)","v":""},null,{"$f":"IF($C$19=\"\",\"\",AB19/$C$19)","v":""},null,{"$f":"IF($C$19=\"\",\"\",AD19/$C$19)","v":""},null,{"$f":"IF($C$19=\"\",\"\",AF19/$C$19)","v":""},null,{"$f":"IF($C$19=\"\",\"\",AH19/$C$19)","v":""},null,{"$f":"IF($C$19=\"\",\"\",AJ19/$C$19)","v":""},null,{"$f":"IF($C$19=\"\",\"\",AL19/$C$19)","v":""},null,{"$f":"IF($C$19=\"\",\"\",AN19/$C$19)","v":""},null,{"$f":"IF($C$19=\"\",\"\",AP19/$C$19)","v":""},null,{"$f":"IF($C$19=\"\",\"\",AR19/$C$19)","v":""},null,{"$f":"IF($C$19=\"\",\"\",AT19/$C$19)","v":""},null,{"$f":"IF($C$19=\"\",\"\",AV19/$C$19)","v":""},null,{"$f":"IF($C$19=\"\",\"\",AX19/$C$19)","v":""},null,{"$f":"IF($C$19=\"\",\"\",AZ19/$C$19)","v":""},null,{"$f":"IF($C$19=\"\",\"\",BB19/$C$19)","v":""},null,0]
[1.5,"Subconsultant Management and Coordination",null,null,{"$f":"IF($C$20=\"\",\"\",F20/$C$20)","v":""},null,{"$f":"IF($C$20=\"\",\"\",H20/$C$20)","v":""},null,{"$f":"IF($C$20=\"\",\"\",J20/$C$20)","v":""},null,{"$f":"IF($C$20=\"\",\"\",L20/$C$20)","v":""},null,{"$f":"IF($C$20=\"\",\"\",N20/$C$20)","v":""},null,{"$f":"IF($C$20=\"\",\"\",P20/$C$20)","v":""},null,{"$f":"IF($C$20=\"\",\"\",R20/$C$20)","v":""},null,{"$f":"IF($C$20=\"\",\"\",T20/$C$20)","v":""},null,{"$f":"IF($C$20=\"\",\"\",V20/$C$20)","v":""},null,{"$f":"IF($C$20=\"\",\"\",X20/$C$20)","v":""},null,{"$f":"IF($C$20=\"\",\"\",Z20/$C$20)","v":""},null,{"$f":"IF($C$20=\"\",\"\",AB20/$C$20)","v":""},null,{"$f":"IF($C$20=\"\",\"\",AD20/$C$20)","v":""},null,{"$f":"IF($C$20=\"\",\"\",AF20/$C$20)","v":""},null,{"$f":"IF($C$20=\"\",\"\",AH20/$C$20)","v":""},null,{"$f":"IF($C$20=\"\",\"\",AJ20/$C$20)","v":""},null,{"$f":"IF($C$20=\"\",\"\",AL20/$C$20)","v":""},null,{"$f":"IF($C$20=\"\",\"\",AN20/$C$20)","v":""},null,{"$f":"IF($C$20=\"\",\"\",AP20/$C$20)","v":""},null,{"$f":"IF($C$20=\"\",\"\",AR20/$C$20)","v":""},null,{"$f":"IF($C$20=\"\",\"\",AT20/$C$20)","v":""},null,{"$f":"IF($C$20=\"\",\"\",AV20/$C$20)","v":""},null,{"$f":"IF($C$20=\"\",\"\",AX20/$C$20)","v":""},null,{"$f":"IF($C$20=\"\",\"\",AZ20/$C$20)","v":""},null,{"$f":"IF($C$20=\"\",\"\",BB20/$C$20)","v":""},null,0]
[null,null,null,null,{"$f":"IF($C$21=\"\",\"\",F21/$C$21)","v":""},null,{"$f":"IF($C$21=\"\",\"\",H21/$C$21)","v":""},null,{"$f":"IF($C$21=\"\",\"\",J21/$C$21)","v":""},null,{"$f":"IF($C$21=\"\",\"\",L21/$C$21)","v":""},null,{"$f":"IF($C$21=\"\",\"\",N21/$C$21)","v":""},null,{"$f":"IF($C$21=\"\",\"\",P21/$C$21)","v":""},null,{"$f":"IF($C$21=\"\",\"\",R21/$C$21)","v":""},null,{"$f":"IF($C$21=\"\",\"\",T21/$C$21)","v":""},null,{"$f":"IF($C$21=\"\",\"\",V21/$C$21)","v":""},null,{"$f":"IF($C$21=\"\",\"\",X21/$C$21)","v":""},null,{"$f":"IF($C$21=\"\",\"\",Z21/$C$21)","v":""},null,{"$f":"IF($C$21=\"\",\"\",AB21/$C$21)","v":""},null,{"$f":"IF($C$21=\"\",\"\",AD21/$C$21)","v":""},null,{"$f":"IF($C$21=\"\",\"\",AF21/$C$21)","v":""},null,{"$f":"IF($C$21=\"\",\"\",AH21/$C$21)","v":""},null,{"$f":"IF($C$21=\"\",\"\",AJ21/$C$21)","v":""},null,{"$f":"IF($C$21=\"\",\"\",AL21/$C$21)","v":""},null,{"$f":"IF($C$21=\"\",\"\",AN21/$C$21)","v":""},null,{"$f":"IF($C$21=\"\",\"\",AP21/$C$21)","v":""},null,{"$f":"IF($C$21=\"\",\"\",AR21/$C$21)","v":""},null,{"$f":"IF($C$21=\"\",\"\",AT21/$C$21)","v":""},null,{"$f":"IF($C$21=\"\",\"\",AV21/$C$21)","v":""},null,{"$f":"IF($C$21=\"\",\"\",AX21/$C$21)","v":""},null,{"$f":"IF($C$21=\"\",\"\",AZ21/$C$21)","v":""},null,{"$f":"IF($C$21=\"\",\"\",BB21/$C$21)","v":""},null,0]
[null,null,null,null,{"$f":"IF($C$22=\"\",\"\",F22/$C$22)","v":""},null,{"$f":"IF($C$22=\"\",\"\",H22/$C$22)","v":""},null,{"$f":"IF($C$22=\"\",\"\",J22/$C$22)","v":""},null,{"$f":"IF($C$22=\"\",\"\",L22/$C$22)","v":""},null,{"$f":"IF($C$22=\"\",\"\",N22/$C$22)","v":""},null,{"$f":"IF($C$22=\"\",\"\",P22/$C$22)","v":""},null,{"$f":"IF($C$22=\"\",\"\",R22/$C$22)","v":""},null,{"$f":"IF($C$22=\"\",\"\",T22/$C$22)","v":""},null,{"$f":"IF($C$22=\"\",\"\",V22/$C$22)","v":""},null,{"$f":"IF($C$22=\"\",\"\",X22/$C$22)","v":""},null,{"$f":"IF($C$22=\"\",\"\",Z22/$C$22)","v":""},null,{"$f":"IF($C$22=\"\",\"\",AB22/$C$22)","v":""},null,{"$f":"IF($C$22=\"\",\"\",AD22/$C$22)","v":""},null,{"$f":"IF($C$22=\"\",\"\",AF22/$C$22)","v":""},null,{"$f":"IF($C$22=\"\",\"\",AH22/$C$22)","v":""},null,{"$f":"IF($C$22=\"\",\"\",AJ22/$C$22)","v":""},null,{"$f":"IF($C$22=\"\",\"\",AL22/$C$22)","v":""},null,{"$f":"IF($C$22=\"\",\"\",AN22/$C$22)","v":""},null,{"$f":"IF($C$22=\"\",\"\",AP22/$C$22)","v":""},null,{"$f":"IF($C$22=\"\",\"\",AR22/$C$22)","v":""},null,{"$f":"IF($C$22=\"\",\"\",AT22/$C$22)","v":""},null,{"$f":"IF($C$22=\"\",\"\",AV22/$C$22)","v":""},null,{"$f":"IF($C$22=\"\",\"\",AX22/$C$22)","v":""},null,{"$f":"IF($C$22=\"\",\"\",AZ22/$C$22)","v":""},null,{"$f":"IF($C$22=\"\",\"\",BB22/$C$22)","v":""},null,0]
[null,null,null,null,{"$f":"IF($C$23=\"\",\"\",F23/$C$23)","v":""},null,{"$f":"IF($C$23=\"\",\"\",H23/$C$23)","v":""},null,{"$f":"IF($C$23=\"\",\"\",J23/$C$23)","v":""},null,{"$f":"IF($C$23=\"\",\"\",L23/$C$23)","v":""},null,{"$f":"IF($C$23=\"\",\"\",N23/$C$23)","v":""},null,{"$f":"IF($C$23=\"\",\"\",P23/$C$23)","v":""},null,{"$f":"IF($C$23=\"\",\"\",R23/$C$23)","v":""},null,{"$f":"IF($C$23=\"\",\"\",T23/$C$23)","v":""},null,{"$f":"IF($C$23=\"\",\"\",V23/$C$23)","v":""},null,{"$f":"IF($C$23=\"\",\"\",X23/$C$23)","v":""},null,{"$f":"IF($C$23=\"\",\"\",Z23/$C$23)","v":""},null,{"$f":"IF($C$23=\"\",\"\",AB23/$C$23)","v":""},null,{"$f":"IF($C$23=\"\",\"\",AD23/$C$23)","v":""},null,{"$f":"IF($C$23=\"\",\"\",AF23/$C$23)","v":""},null,{"$f":"IF($C$23=\"\",\"\",AH23/$C$23)","v":""},null,{"$f":"IF($C$23=\"\",\"\",AJ23/$C$23)","v":""},null,{"$f":"IF($C$23=\"\",\"\",AL23/$C$23)","v":""},null,{"$f":"IF($C$23=\"\",\"\",AN23/$C$23)","v":""},null,{"$f":"IF($C$23=\"\",\"\",AP23/$C$23)","v":""},null,{"$f":"IF($C$23=\"\",\"\",AR23/$C$23)","v":""},null,{"$f":"IF($C$23=\"\",\"\",AT23/$C$23)","v":""},null,{"$f":"IF($C$23=\"\",\"\",AV23/$C$23)","v":""},null,{"$f":"IF($C$23=\"\",\"\",AX23/$C$23)","v":""},null,{"$f":"IF($C$23=\"\",\"\",AZ23/$C$23)","v":""},null,{"$f":"IF($C$23=\"\",\"\",BB23/$C$23)","v":""},null,0]
[null,null,null,null,{"$f":"IF($C$24=\"\",\"\",F24/$C$24)","v":""},null,{"$f":"IF($C$24=\"\",\"\",H24/$C$24)","v":""},null,{"$f":"IF($C$24=\"\",\"\",J24/$C$24)","v":""},null,{"$f":"IF($C$24=\"\",\"\",L24/$C$24)","v":""},null,{"$f":"IF($C$24=\"\",\"\",N24/$C$24)","v":""},null,{"$f":"IF($C$24=\"\",\"\",P24/$C$24)","v":""},null,{"$f":"IF($C$24=\"\",\"\",R24/$C$24)","v":""},null,{"$f":"IF($C$24=\"\",\"\",T24/$C$24)","v":""},null,{"$f":"IF($C$24=\"\",\"\",V24/$C$24)","v":""},null,{"$f":"IF($C$24=\"\",\"\",X24/$C$24)","v":""},null,{"$f":"IF($C$24=\"\",\"\",Z24/$C$24)","v":""},null,{"$f":"IF($C$24=\"\",\"\",AB24/$C$24)","v":""},null,{"$f":"IF($C$24=\"\",\"\",AD24/$C$24)","v":""},null,{"$f":"IF($C$24=\"\",\"\",AF24/$C$24)","v":""},null,{"$f":"IF($C$24=\"\",\"\",AH24/$C$24)","v":""},null,{"$f":"IF($C$24=\"\",\"\",AJ24/$C$24)","v":""},null,{"$f":"IF($C$24=\"\",\"\",AL24/$C$24)","v":""},null,{"$f":"IF($C$24=\"\",\"\",AN24/$C$24)","v":""},null,{"$f":"IF($C$24=\"\",\"\",AP24/$C$24)","v":""},null,{"$f":"IF($C$24=\"\",\"\",AR24/$C$24)","v":""},null,{"$f":"IF($C$24=\"\",\"\",AT24/$C$24)","v":""},null,{"$f":"IF($C$24=\"\",\"\",AV24/$C$24)","v":""},null,{"$f":"IF($C$24=\"\",\"\",AX24/$C$24)","v":""},null,{"$f":"IF($C$24=\"\",\"\",AZ24/$C$24)","v":""},null,{"$f":"IF($C$24=\"\",\"\",BB24/$C$24)","v":""},null,0]
[null,null,null,null,{"$f":"IF($C$25=\"\",\"\",F25/$C$25)","v":""},null,{"$f":"IF($C$25=\"\",\"\",H25/$C$25)","v":""},null,{"$f":"IF($C$25=\"\",\"\",J25/$C$25)","v":""},null,{"$f":"IF($C$25=\"\",\"\",L25/$C$25)","v":""},null,{"$f":"IF($C$25=\"\",\"\",N25/$C$25)","v":""},null,{"$f":"IF($C$25=\"\",\"\",P25/$C$25)","v":""},null,{"$f":"IF($C$25=\"\",\"\",R25/$C$25)","v":""},null,{"$f":"IF($C$25=\"\",\"\",T25/$C$25)","v":""},null,{"$f":"IF($C$25=\"\",\"\",V25/$C$25)","v":""},null,{"$f":"IF($C$25=\"\",\"\",X25/$C$25)","v":""},null,{"$f":"IF($C$25=\"\",\"\",Z25/$C$25)","v":""},null,{"$f":"IF($C$25=\"\",\"\",AB25/$C$25)","v":""},null,{"$f":"IF($C$25=\"\",\"\",AD25/$C$25)","v":""},null,{"$f":"IF($C$25=\"\",\"\",AF25/$C$25)","v":""},null,{"$f":"IF($C$25=\"\",\"\",AH25/$C$25)","v":""},null,{"$f":"IF($C$25=\"\",\"\",AJ25/$C$25)","v":""},null,{"$f":"IF($C$25=\"\",\"\",AL25/$C$25)","v":""},null,{"$f":"IF($C$25=\"\",\"\",AN25/$C$25)","v":""},null,{"$f":"IF($C$25=\"\",\"\",AP25/$C$25)","v":""},null,{"$f":"IF($C$25=\"\",\"\",AR25/$C$25)","v":""},null,{"$f":"IF($C$25=\"\",\"\",AT25/$C$25)","v":""},null,{"$f":"IF($C$25=\"\",\"\",AV25/$C$25)","v":""},null,{"$f":"IF($C$25=\"\",\"\",AX25/$C$25)","v":""},null,{"$f":"IF($C$25=\"\",\"\",AZ25/$C$25)","v":""},null,{"$f":"IF($C$25=\"\",\"\",BB25/$C$25)","v":""},null,0]
[null,null,null,null,{"$f":"IF($C$26=\"\",\"\",F26/$C$26)","v":""},null,{"$f":"IF($C$26=\"\",\"\",H26/$C$26)","v":""},null,{"$f":"IF($C$26=\"\",\"\",J26/$C$26)","v":""},null,{"$f":"IF($C$26=\"\",\"\",L26/$C$26)","v":""},null,{"$f":"IF($C$26=\"\",\"\",N26/$C$26)","v":""},null,{"$f":"IF($C$26=\"\",\"\",P26/$C$26)","v":""},null,{"$f":"IF($C$26=\"\",\"\",R26/$C$26)","v":""},null,{"$f":"IF($C$26=\"\",\"\",T26/$C$26)","v":""},null,{"$f":"IF($C$26=\"\",\"\",V26/$C$26)","v":""},null,{"$f":"IF($C$26=\"\",\"\",X26/$C$26)","v":""},null,{"$f":"IF($C$26=\"\",\"\",Z26/$C$26)","v":""},null,{"$f":"IF($C$26=\"\",\"\",AB26/$C$26)","v":""},null,{"$f":"IF($C$26=\"\",\"\",AD26/$C$26)","v":""},null,{"$f":"IF($C$26=\"\",\"\",AF26/$C$26)","v":""},null,{"$f":"IF($C$26=\"\",\"\",AH26/$C$26)","v":""},null,{"$f":"IF($C$26=\"\",\"\",AJ26/$C$26)","v":""},null,{"$f":"IF($C$26=\"\",\"\",AL26/$C$26)","v":""},null,{"$f":"IF($C$26=\"\",\"\",AN26/$C$26)","v":""},null,{"$f":"IF($C$26=\"\",\"\",AP26/$C$26)","v":""},null,{"$f":"IF($C$26=\"\",\"\",AR26/$C$26)","v":""},null,{"$f":"IF($C$26=\"\",\"\",AT26/$C$26)","v":""},null,{"$f":"IF($C$26=\"\",\"\",AV26/$C$26)","v":""},null,{"$f":"IF($C$26=\"\",\"\",AX26/$C$26)","v":""},null,{"$f":"IF($C$26=\"\",\"\",AZ26/$C$26)","v":""},null,{"$f":"IF($C$26=\"\",\"\",BB26/$C$26)","v":""},null,{"$f":"SUM(BB26,AZ26,AX26,AV26,AT26,AR26,AP26,AN26,AL26,AJ26,AH26,AF26,AD26,AB26,Z26,X26,V26,T26,R26,P26,N26,L26,J26,H26,F26)","v":0}]
[null,null,null,null,{"$f":"IF($C$27=\"\",\"\",F27/$C$27)","v":""},null,{"$f":"IF($C$27=\"\",\"\",H27/$C$27)","v":""},null,{"$f":"IF($C$27=\"\",\"\",J27/$C$27)","v":""},null,{"$f":"IF($C$27=\"\",\"\",L27/$C$27)","v":""},null,{"$f":"IF($C$27=\"\",\"\",N27/$C$27)","v":""},null,{"$f":"IF($C$27=\"\",\"\",P27/$C$27)","v":""},null,{"$f":"IF($C$27=\"\",\"\",R27/$C$27)","v":""},null,{"$f":"IF($C$27=\"\",\"\",T27/$C$27)","v":""},null,{"$f":"IF($C$27=\"\",\"\",V27/$C$27)","v":""},null,{"$f":"IF($C$27=\"\",\"\",X27/$C$27)","v":""},null,{"$f":"IF($C$27=\"\",\"\",Z27/$C$27)","v":""},null,{"$f":"IF($C$27=\"\",\"\",AB27/$C$27)","v":""},null,{"$f":"IF($C$27=\"\",\"\",AD27/$C$27)","v":""},null,{"$f":"IF($C$27=\"\",\"\",AF27/$C$27)","v":""},null,{"$f":"IF($C$27=\"\",\"\",AH27/$C$27)","v":""},null,{"$f":"IF($C$27=\"\",\"\",AJ27/$C$27)","v":""},null,{"$f":"IF($C$27=\"\",\"\",AL27/$C$27)","v":""},null,{"$f":"IF($C$27=\"\",\"\",AN27/$C$27)","v":""},null,{"$f":"IF($C$27=\"\",\"\",AP27/$C$27)","v":""},null,{"$f":"IF($C$27=\"\",\"\",AR27/$C$27)","v":""},null,{"$f":"IF($C$27=\"\",\"\",AT27/$C$27)","v":""},null,{"$f":"IF($C$27=\"\",\"\",AV27/$C$27)","v":""},null,{"$f":"IF($C$27=\"\",\"\",AX27/$C$27)","v":""},null,{"$f":"IF($C$27=\"\",\"\",AZ27/$C$27)","v":""},null,{"$f":"IF($C$27=\"\",\"\",BB27/$C$27)","v":""},null,{"$f":"SUM(BB27,AZ27,AX27,AV27,AT27,AR27,AP27,AN27,AL27,AJ27,AH27,AF27,AD27,AB27,Z27,X27,V27,T27,R27,P27,N27,L27,J27,H27,F27)","v":0}]
["TOTAL HOURS",null,null,null,null,{"$f":"SUM(F16:F27)","v":0},null,{"$f":"SUM(H16:H27)","v":0},null,{"$f":"SUM(J16:J27)","v":0},null,{"$f":"SUM(L16:L27)","v":0},null,{"$f":"SUM(N16:N27)","v":0},null,{"$f":"SUM(P16:P27)","v":0},null,{"$f":"SUM(R16:R27)","v":0},null,{"$f":"SUM(T16:T27)","v":0},null,{"$f":"SUM(V16:V27)","v":0},null,{"$f":"SUM(X16:X27)","v":0},null,{"$f":"SUM(Z16:Z27)","v":0},null,{"$f":"SUM(AB16:AB27)","v":0},null,{"$f":"SUM(AD16:AD27)","v":0},null,{"$f":"SUM(AF16:AF27)","v":0},null,{"$f":"SUM(AH16:AH27)","v":0},null,{"$f":"SUM(AJ16:AJ27)","v":0},null,{"$f":"SUM(AL16:AL27)","v":0},null,{"$f":"SUM(AN16:AN27)","v":0},null,{"$f":"SUM(AP16:AP27)","v":0},null,{"$f":"SUM(AR16:AR27)","v":0},null,{"$f":"SUM(AT16:AT27)","v":0},null,{"$f":"SUM(AV16:AV27)","v":0},null,{"$f":"SUM(AX16:AX27)","v":0},null,{"$f":"SUM(AZ16:AZ27)","v":0},null,{"$f":"SUM(BB16:BB27)","v":0},{"$f":"SUM(E28:BB28)","v":0}]
["TOTAL WORKDAYS",null,null,null,null,{"$f":"F28/8","v":0},null,{"$f":"H28/8","v":0},null,{"$f":"J28/8","v":0},null,{"$f":"L28/8","v":0},null,{"$f":"N28/8","v":0},null,{"$f":"P28/8","v":0},null,{"$f":"R28/8","v":0},null,{"$f":"T28/8","v":0},null,{"$f":"V28/8","v":0},null,{"$f":"X28/8","v":0},null,{"$f":"Z28/8","v":0},null,{"$f":"AB28/8","v":0},null,{"$f":"AD28/8","v":0},null,0,null,{"$f":"AH28/8","v":0},null,0,null,{"$f":"AL28/8","v":0},null,0,null,{"$f":"AP28/8","v":0},null,0,null,{"$f":"AT28/8","v":0},null,{"$f":"AV28/8","v":0},null,{"$f":"AX28/8","v":0},null,{"$f":"AZ28/8","v":0},null,{"$f":"BB28/8","v":0},{"$f":"SUM(E29:BB29)","v":0}]
["TOTAL RAW LABOR",null,null,null,null,{"$f":"$E$13*F28","v":0},null,{"$f":"$G$13*H28","v":0},null,{"$f":"$I$13*J28","v":0},null,{"$f":"$K$13*L28","v":0},null,{"$f":"$M$13*N28","v":0},null,{"$f":"$O$13*P28","v":0},null,{"$f":"$Q$13*R28","v":0},null,{"$f":"$S$13*T28","v":0},null,{"$f":"$U$13*V28","v":0},null,{"$f":"$W$13*X28","v":0},null,{"$f":"$Y$13*Z28","v":0},null,{"$f":"$AA$13*AB28","v":0},null,{"$f":"$AC$13*AD28","v":0},null,{"$f":"$AC$13*AF28","v":0},null,{"$f":"$AC$13*AH28","v":0},null,{"$f":"$AC$13*AJ28","v":0},null,{"$f":"$AC$13*AL28","v":0},null,{"$f":"$AC$13*AN28","v":0},null,{"$f":"$AC$13*AP28","v":0},null,{"$f":"$AC$13*AR28","v":0},null,{"$f":"$AC$13*AT28","v":0},null,{"$f":"$AC$13*AV28","v":0},null,{"$f":"$AC$13*AX28","v":0},null,{"$f":"$AC$13*AZ28","v":0},null,{"$f":"$AC$13*BB28","v":0},{"$f":"SUM(E30:BB30)","v":0}]
["Task 2.0     ","FUNCTIONAL DESIGN",null,null," ",null," ",null," ",null," ",null," ",null," ",null," ",null," ",null," ",null," ",null," ",null," ",null," ",null," ",null," ",null," ",null," ",null," ",null," ",null," ",null," ",null," ",null," ",null," ",null," "]
[2.1,"Systems Engineering Document/Project Architecture"]
["    2.1.1","    Summarize Existing System Operations and   \n    Functionality",null,null,{"$f":"IF($C$33=\"\",\"\",F33/$C$33)","v":""},null,{"$f":"IF($C$33=\"\",\"\",H33/$C$33)","v":""},null,{"$f":"IF($C$33=\"\",\"\",J33/$C$33)","v":""},null,{"$f":"IF($C$33=\"\",\"\",L33/$C$33)","v":""},null,{"$f":"IF($C$33=\"\",\"\",N33/$C$33)","v":""},null,{"$f":"IF($C$33=\"\",\"\",P33/$C$33)","v":""},null,{"$f":"IF($C$33=\"\",\"\",R33/$C$33)","v":""},null,{"$f":"IF($C$33=\"\",\"\",T33/$C$33)","v":""},null,{"$f":"IF($C$33=\"\",\"\",V33/$C$33)","v":""},null,{"$f":"IF($C$33=\"\",\"\",X33/$C$33)","v":""},null,{"$f":"IF($C$33=\"\",\"\",Z33/$C$33)","v":""},null,{"$f":"IF($C$33=\"\",\"\",AB33/$C$33)","v":""},null,{"$f":"IF($C$33=\"\",\"\",AD33/$C$33)","v":""},null,{"$f":"IF($C$33=\"\",\"\",AF33/$C$33)","v":""},null,{"$f":"IF($C$33=\"\",\"\",AH33/$C$33)","v":""},null,{"$f":"IF($C$33=\"\",\"\",AJ33/$C$33)","v":""},null,{"$f":"IF($C$33=\"\",\"\",AL33/$C$33)","v":""},null,{"$f":"IF($C$33=\"\",\"\",AN33/$C$33)","v":""},null,{"$f":"IF($C$33=\"\",\"\",AP33/$C$33)","v":""},null,{"$f":"IF($C$33=\"\",\"\",AR33/$C$33)","v":""},null,{"$f":"IF($C$33=\"\",\"\",AT33/$C$33)","v":""},null,{"$f":"IF($C$33=\"\",\"\",AV33/$C$33)","v":""},null,{"$f":"IF($C$33=\"\",\"\",AX33/$C$33)","v":""},null,{"$f":"IF($C$33=\"\",\"\",AZ33/$C$33)","v":""},null,{"$f":"IF($C$33=\"\",\"\",BB33/$C$33)","v":""},null,{"$f":"SUM(BB33,AZ33,AX33,AV33,AT33,AR33,AP33,AN33,AL33,AJ33,AH33,AF33,AD33,AB33,Z33,X33,V33,T33,R33,P33,N33,L33,J33,H33,F33)","v":0}]
["    2.1.2    ","    Summarize Proposed System Functional Needs \n    and Boundaries",null,null,{"$f":"IF($C$34=\"\",\"\",F34/$C$34)","v":""},null,{"$f":"IF($C$34=\"\",\"\",H34/$C$34)","v":""},null,{"$f":"IF($C$34=\"\",\"\",J34/$C$34)","v":""},null,{"$f":"IF($C$34=\"\",\"\",L34/$C$34)","v":""},null,{"$f":"IF($C$34=\"\",\"\",N34/$C$34)","v":""},null,{"$f":"IF($C$34=\"\",\"\",P34/$C$34)","v":""},null,{"$f":"IF($C$34=\"\",\"\",R34/$C$34)","v":""},null,{"$f":"IF($C$34=\"\",\"\",T34/$C$34)","v":""},null,{"$f":"IF($C$34=\"\",\"\",V34/$C$34)","v":""},null,{"$f":"IF($C$34=\"\",\"\",X34/$C$34)","v":""},null,{"$f":"IF($C$34=\"\",\"\",Z34/$C$34)","v":""},null,{"$f":"IF($C$34=\"\",\"\",AB34/$C$34)","v":""},null,{"$f":"IF($C$34=\"\",\"\",AD34/$C$34)","v":""},null,{"$f":"IF($C$34=\"\",\"\",AF34/$C$34)","v":""},null,{"$f":"IF($C$34=\"\",\"\",AH34/$C$34)","v":""},null,{"$f":"IF($C$34=\"\",\"\",AJ34/$C$34)","v":""},null,{"$f":"IF($C$34=\"\",\"\",AL34/$C$34)","v":""},null,{"$f":"IF($C$34=\"\",\"\",AN34/$C$34)","v":""},null,{"$f":"IF($C$34=\"\",\"\",AP34/$C$34)","v":""},null,{"$f":"IF($C$34=\"\",\"\",AR34/$C$34)","v":""},null,{"$f":"IF($C$34=\"\",\"\",AT34/$C$34)","v":""},null,{"$f":"IF($C$34=\"\",\"\",AV34/$C$34)","v":""},null,{"$f":"IF($C$34=\"\",\"\",AX34/$C$34)","v":""},null,{"$f":"IF($C$34=\"\",\"\",AZ34/$C$34)","v":""},null,{"$f":"IF($C$34=\"\",\"\",BB34/$C$34)","v":""},null,0]
["    2.1.3","    Summarize Proposed System Concept of \n    Operations",null,null,{"$f":"IF($C$35=\"\",\"\",F35/$C$35)","v":""},null,{"$f":"IF($C$35=\"\",\"\",H35/$C$35)","v":""},null,{"$f":"IF($C$35=\"\",\"\",J35/$C$35)","v":""},null,{"$f":"IF($C$35=\"\",\"\",L35/$C$35)","v":""},null,{"$f":"IF($C$35=\"\",\"\",N35/$C$35)","v":""},null,{"$f":"IF($C$35=\"\",\"\",P35/$C$35)","v":""},null,{"$f":"IF($C$35=\"\",\"\",R35/$C$35)","v":""},null,{"$f":"IF($C$35=\"\",\"\",T35/$C$35)","v":""},null,{"$f":"IF($C$35=\"\",\"\",V35/$C$35)","v":""},null,{"$f":"IF($C$35=\"\",\"\",X35/$C$35)","v":""},null,{"$f":"IF($C$35=\"\",\"\",Z35/$C$35)","v":""},null,{"$f":"IF($C$35=\"\",\"\",AB35/$C$35)","v":""},null,{"$f":"IF($C$35=\"\",\"\",AD35/$C$35)","v":""},null,{"$f":"IF($C$35=\"\",\"\",AF35/$C$35)","v":""},null,{"$f":"IF($C$35=\"\",\"\",AH35/$C$35)","v":""},null,{"$f":"IF($C$35=\"\",\"\",AJ35/$C$35)","v":""},null,{"$f":"IF($C$35=\"\",\"\",AL35/$C$35)","v":""},null,{"$f":"IF($C$35=\"\",\"\",AN35/$C$35)","v":""},null,{"$f":"IF($C$35=\"\",\"\",AP35/$C$35)","v":""},null,{"$f":"IF($C$35=\"\",\"\",AR35/$C$35)","v":""},null,{"$f":"IF($C$35=\"\",\"\",AT35/$C$35)","v":""},null,{"$f":"IF($C$35=\"\",\"\",AV35/$C$35)","v":""},null,{"$f":"IF($C$35=\"\",\"\",AX35/$C$35)","v":""},null,{"$f":"IF($C$35=\"\",\"\",AZ35/$C$35)","v":""},null,{"$f":"IF($C$35=\"\",\"\",BB35/$C$35)","v":""},null,0]
["    2.1.4","    Reference Project Architecture & Ensure \n    Regional Architecture Compliance",null,null,{"$f":"IF($C$36=\"\",\"\",F36/$C$36)","v":""},null,{"$f":"IF($C$36=\"\",\"\",H36/$C$36)","v":""},null,{"$f":"IF($C$36=\"\",\"\",J36/$C$36)","v":""},null,{"$f":"IF($C$36=\"\",\"\",L36/$C$36)","v":""},null,{"$f":"IF($C$36=\"\",\"\",N36/$C$36)","v":""},null,{"$f":"IF($C$36=\"\",\"\",P36/$C$36)","v":""},null,{"$f":"IF($C$36=\"\",\"\",R36/$C$36)","v":""},null,{"$f":"IF($C$36=\"\",\"\",T36/$C$36)","v":""},null,{"$f":"IF($C$36=\"\",\"\",V36/$C$36)","v":""},null,{"$f":"IF($C$36=\"\",\"\",X36/$C$36)","v":""},null,{"$f":"IF($C$36=\"\",\"\",Z36/$C$36)","v":""},null,{"$f":"IF($C$36=\"\",\"\",AB36/$C$36)","v":""},null,{"$f":"IF($C$36=\"\",\"\",AD36/$C$36)","v":""},null,{"$f":"IF($C$36=\"\",\"\",AF36/$C$36)","v":""},null,{"$f":"IF($C$36=\"\",\"\",AH36/$C$36)","v":""},null,{"$f":"IF($C$36=\"\",\"\",AJ36/$C$36)","v":""},null,{"$f":"IF($C$36=\"\",\"\",AL36/$C$36)","v":""},null,{"$f":"IF($C$36=\"\",\"\",AN36/$C$36)","v":""},null,{"$f":"IF($C$36=\"\",\"\",AP36/$C$36)","v":""},null,{"$f":"IF($C$36=\"\",\"\",AR36/$C$36)","v":""},null,{"$f":"IF($C$36=\"\",\"\",AT36/$C$36)","v":""},null,{"$f":"IF($C$36=\"\",\"\",AV36/$C$36)","v":""},null,{"$f":"IF($C$36=\"\",\"\",AX36/$C$36)","v":""},null,{"$f":"IF($C$36=\"\",\"\",AZ36/$C$36)","v":""},null,{"$f":"IF($C$36=\"\",\"\",BB36/$C$36)","v":""},null,0]
["    2.1.5","    Develop Draft Systems Engineering Document",null,null,{"$f":"IF($C$37=\"\",\"\",F37/$C$37)","v":""},null,{"$f":"IF($C$37=\"\",\"\",H37/$C$37)","v":""},null,{"$f":"IF($C$37=\"\",\"\",J37/$C$37)","v":""},null,{"$f":"IF($C$37=\"\",\"\",L37/$C$37)","v":""},null,{"$f":"IF($C$37=\"\",\"\",N37/$C$37)","v":""},null,{"$f":"IF($C$37=\"\",\"\",P37/$C$37)","v":""},null,{"$f":"IF($C$37=\"\",\"\",R37/$C$37)","v":""},null,{"$f":"IF($C$37=\"\",\"\",T37/$C$37)","v":""},null,{"$f":"IF($C$37=\"\",\"\",V37/$C$37)","v":""},null,{"$f":"IF($C$37=\"\",\"\",X37/$C$37)","v":""},null,{"$f":"IF($C$37=\"\",\"\",Z37/$C$37)","v":""},null,{"$f":"IF($C$37=\"\",\"\",AB37/$C$37)","v":""},null,{"$f":"IF($C$37=\"\",\"\",AD37/$C$37)","v":""},null,{"$f":"IF($C$37=\"\",\"\",AF37/$C$37)","v":""},null,{"$f":"IF($C$37=\"\",\"\",AH37/$C$37)","v":""},null,{"$f":"IF($C$37=\"\",\"\",AJ37/$C$37)","v":""},null,{"$f":"IF($C$37=\"\",\"\",AL37/$C$37)","v":""},null,{"$f":"IF($C$37=\"\",\"\",AN37/$C$37)","v":""},null,{"$f":"IF($C$37=\"\",\"\",AP37/$C$37)","v":""},null,{"$f":"IF($C$37=\"\",\"\",AR37/$C$37)","v":""},null,{"$f":"IF($C$37=\"\",\"\",AT37/$C$37)","v":""},null,{"$f":"IF($C$37=\"\",\"\",AV37/$C$37)","v":""},null,{"$f":"IF($C$37=\"\",\"\",AX37/$C$37)","v":""},null,{"$f":"IF($C$37=\"\",\"\",AZ37/$C$37)","v":""},null,{"$f":"IF($C$37=\"\",\"\",BB37/$C$37)","v":""},null,0]
["    2.1.6","    Finalize Systems Engineering Document",null,null,{"$f":"IF($C$38=\"\",\"\",F38/$C$38)","v":""},null,{"$f":"IF($C$38=\"\",\"\",H38/$C$38)","v":""},null,{"$f":"IF($C$38=\"\",\"\",J38/$C$38)","v":""},null,{"$f":"IF($C$38=\"\",\"\",L38/$C$38)","v":""},null,{"$f":"IF($C$38=\"\",\"\",N38/$C$38)","v":""},null,{"$f":"IF($C$38=\"\",\"\",P38/$C$38)","v":""},null,{"$f":"IF($C$38=\"\",\"\",R38/$C$38)","v":""},null,{"$f":"IF($C$38=\"\",\"\",T38/$C$38)","v":""},null,{"$f":"IF($C$38=\"\",\"\",V38/$C$38)","v":""},null,{"$f":"IF($C$38=\"\",\"\",X38/$C$38)","v":""},null,{"$f":"IF($C$38=\"\",\"\",Z38/$C$38)","v":""},null,{"$f":"IF($C$38=\"\",\"\",AB38/$C$38)","v":""},null,{"$f":"IF($C$38=\"\",\"\",AD38/$C$38)","v":""},null,{"$f":"IF($C$38=\"\",\"\",AF38/$C$38)","v":""},null,{"$f":"IF($C$38=\"\",\"\",AH38/$C$38)","v":""},null,{"$f":"IF($C$38=\"\",\"\",AJ38/$C$38)","v":""},null,{"$f":"IF($C$38=\"\",\"\",AL38/$C$38)","v":""},null,{"$f":"IF($C$38=\"\",\"\",AN38/$C$38)","v":""},null,{"$f":"IF($C$38=\"\",\"\",AP38/$C$38)","v":""},null,{"$f":"IF($C$38=\"\",\"\",AR38/$C$38)","v":""},null,{"$f":"IF($C$38=\"\",\"\",AT38/$C$38)","v":""},null,{"$f":"IF($C$38=\"\",\"\",AV38/$C$38)","v":""},null,{"$f":"IF($C$38=\"\",\"\",AX38/$C$38)","v":""},null,{"$f":"IF($C$38=\"\",\"\",AZ38/$C$38)","v":""},null,{"$f":"IF($C$38=\"\",\"\",BB38/$C$38)","v":""},null,0]
["    2.1.7",null,null,null,{"$f":"IF($C$39=\"\",\"\",F39/$C$39)","v":""},null,{"$f":"IF($C$39=\"\",\"\",H39/$C$39)","v":""},null,{"$f":"IF($C$39=\"\",\"\",J39/$C$39)","v":""},null,{"$f":"IF($C$39=\"\",\"\",L39/$C$39)","v":""},null,{"$f":"IF($C$39=\"\",\"\",N39/$C$39)","v":""},null,{"$f":"IF($C$39=\"\",\"\",P39/$C$39)","v":""},null,{"$f":"IF($C$39=\"\",\"\",R39/$C$39)","v":""},null,{"$f":"IF($C$39=\"\",\"\",T39/$C$39)","v":""},null,{"$f":"IF($C$39=\"\",\"\",V39/$C$39)","v":""},null,{"$f":"IF($C$39=\"\",\"\",X39/$C$39)","v":""},null,{"$f":"IF($C$39=\"\",\"\",Z39/$C$39)","v":""},null,{"$f":"IF($C$39=\"\",\"\",AB39/$C$39)","v":""},null,{"$f":"IF($C$39=\"\",\"\",AD39/$C$39)","v":""},null,{"$f":"IF($C$39=\"\",\"\",AF39/$C$39)","v":""},null,{"$f":"IF($C$39=\"\",\"\",AH39/$C$39)","v":""},null,{"$f":"IF($C$39=\"\",\"\",AJ39/$C$39)","v":""},null,{"$f":"IF($C$39=\"\",\"\",AL39/$C$39)","v":""},null,{"$f":"IF($C$39=\"\",\"\",AN39/$C$39)","v":""},null,{"$f":"IF($C$39=\"\",\"\",AP39/$C$39)","v":""},null,{"$f":"IF($C$39=\"\",\"\",AR39/$C$39)","v":""},null,{"$f":"IF($C$39=\"\",\"\",AT39/$C$39)","v":""},null,{"$f":"IF($C$39=\"\",\"\",AV39/$C$39)","v":""},null,{"$f":"IF($C$39=\"\",\"\",AX39/$C$39)","v":""},null,{"$f":"IF($C$39=\"\",\"\",AZ39/$C$39)","v":""},null,{"$f":"IF($C$39=\"\",\"\",BB39/$C$39)","v":""},null,0]
["    2.1.8",null,null,null,{"$f":"IF($C$40=\"\",\"\",F40/$C$40)","v":""},null,{"$f":"IF($C$40=\"\",\"\",H40/$C$40)","v":""},null,{"$f":"IF($C$40=\"\",\"\",J40/$C$40)","v":""},null,{"$f":"IF($C$40=\"\",\"\",L40/$C$40)","v":""},null,{"$f":"IF($C$40=\"\",\"\",N40/$C$40)","v":""},null,{"$f":"IF($C$40=\"\",\"\",P40/$C$40)","v":""},null,{"$f":"IF($C$40=\"\",\"\",R40/$C$40)","v":""},null,{"$f":"IF($C$40=\"\",\"\",T40/$C$40)","v":""},null,{"$f":"IF($C$40=\"\",\"\",V40/$C$40)","v":""},null,{"$f":"IF($C$40=\"\",\"\",X40/$C$40)","v":""},null,{"$f":"IF($C$40=\"\",\"\",Z40/$C$40)","v":""},null,{"$f":"IF($C$40=\"\",\"\",AB40/$C$40)","v":""},null,{"$f":"IF($C$40=\"\",\"\",AD40/$C$40)","v":""},null,{"$f":"IF($C$40=\"\",\"\",AF40/$C$40)","v":""},null,{"$f":"IF($C$40=\"\",\"\",AH40/$C$40)","v":""},null,{"$f":"IF($C$40=\"\",\"\",AJ40/$C$40)","v":""},null,{"$f":"IF($C$40=\"\",\"\",AL40/$C$40)","v":""},null,{"$f":"IF($C$40=\"\",\"\",AN40/$C$40)","v":""},null,{"$f":"IF($C$40=\"\",\"\",AP40/$C$40)","v":""},null,{"$f":"IF($C$40=\"\",\"\",AR40/$C$40)","v":""},null,{"$f":"IF($C$40=\"\",\"\",AT40/$C$40)","v":""},null,{"$f":"IF($C$40=\"\",\"\",AV40/$C$40)","v":""},null,{"$f":"IF($C$40=\"\",\"\",AX40/$C$40)","v":""},null,{"$f":"IF($C$40=\"\",\"\",AZ40/$C$40)","v":""},null,{"$f":"IF($C$40=\"\",\"\",BB40/$C$40)","v":""},null,0]
["    2.1.9",null,null,null,{"$f":"IF($C$41=\"\",\"\",F41/$C$41)","v":""},null,{"$f":"IF($C$41=\"\",\"\",H41/$C$41)","v":""},null,{"$f":"IF($C$41=\"\",\"\",J41/$C$41)","v":""},null,{"$f":"IF($C$41=\"\",\"\",L41/$C$41)","v":""},null,{"$f":"IF($C$41=\"\",\"\",N41/$C$41)","v":""},null,{"$f":"IF($C$41=\"\",\"\",P41/$C$41)","v":""},null,{"$f":"IF($C$41=\"\",\"\",R41/$C$41)","v":""},null,{"$f":"IF($C$41=\"\",\"\",T41/$C$41)","v":""},null,{"$f":"IF($C$41=\"\",\"\",V41/$C$41)","v":""},null,{"$f":"IF($C$41=\"\",\"\",X41/$C$41)","v":""},null,{"$f":"IF($C$41=\"\",\"\",Z41/$C$41)","v":""},null,{"$f":"IF($C$41=\"\",\"\",AB41/$C$41)","v":""},null,{"$f":"IF($C$41=\"\",\"\",AD41/$C$41)","v":""},null,{"$f":"IF($C$41=\"\",\"\",AF41/$C$41)","v":""},null,{"$f":"IF($C$41=\"\",\"\",AH41/$C$41)","v":""},null,{"$f":"IF($C$41=\"\",\"\",AJ41/$C$41)","v":""},null,{"$f":"IF($C$41=\"\",\"\",AL41/$C$41)","v":""},null,{"$f":"IF($C$41=\"\",\"\",AN41/$C$41)","v":""},null,{"$f":"IF($C$41=\"\",\"\",AP41/$C$41)","v":""},null,{"$f":"IF($C$41=\"\",\"\",AR41/$C$41)","v":""},null,{"$f":"IF($C$41=\"\",\"\",AT41/$C$41)","v":""},null,{"$f":"IF($C$41=\"\",\"\",AV41/$C$41)","v":""},null,{"$f":"IF($C$41=\"\",\"\",AX41/$C$41)","v":""},null,{"$f":"IF($C$41=\"\",\"\",AZ41/$C$41)","v":""},null,{"$f":"IF($C$41=\"\",\"\",BB41/$C$41)","v":""},null,0]
[2.2000000000000002,"System Maintenance and Staffing Plan",null,null,{"$f":"IF($C$42=\"\",\"\",F42/$C$42)","v":""},null,{"$f":"IF($C$42=\"\",\"\",H42/$C$42)","v":""},null,{"$f":"IF($C$42=\"\",\"\",J42/$C$42)","v":""},null,{"$f":"IF($C$42=\"\",\"\",L42/$C$42)","v":""},null,{"$f":"IF($C$42=\"\",\"\",N42/$C$42)","v":""},null,{"$f":"IF($C$42=\"\",\"\",P42/$C$42)","v":""},null,{"$f":"IF($C$42=\"\",\"\",R42/$C$42)","v":""},null,{"$f":"IF($C$42=\"\",\"\",T42/$C$42)","v":""},null,{"$f":"IF($C$42=\"\",\"\",V42/$C$42)","v":""},null,{"$f":"IF($C$42=\"\",\"\",X42/$C$42)","v":""},null,{"$f":"IF($C$42=\"\",\"\",Z42/$C$42)","v":""},null,{"$f":"IF($C$42=\"\",\"\",AB42/$C$42)","v":""},null,{"$f":"IF($C$42=\"\",\"\",AD42/$C$42)","v":""},null,{"$f":"IF($C$42=\"\",\"\",AF42/$C$42)","v":""},null,{"$f":"IF($C$42=\"\",\"\",AH42/$C$42)","v":""},null,{"$f":"IF($C$42=\"\",\"\",AJ42/$C$42)","v":""},null,{"$f":"IF($C$42=\"\",\"\",AL42/$C$42)","v":""},null,{"$f":"IF($C$42=\"\",\"\",AN42/$C$42)","v":""},null,{"$f":"IF($C$42=\"\",\"\",AP42/$C$42)","v":""},null,{"$f":"IF($C$42=\"\",\"\",AR42/$C$42)","v":""},null,{"$f":"IF($C$42=\"\",\"\",AT42/$C$42)","v":""},null,{"$f":"IF($C$42=\"\",\"\",AV42/$C$42)","v":""},null,{"$f":"IF($C$42=\"\",\"\",AX42/$C$42)","v":""},null,{"$f":"IF($C$42=\"\",\"\",AZ42/$C$42)","v":""},null,{"$f":"IF($C$42=\"\",\"\",BB42/$C$42)","v":""},null,0]
[2.2999999999999998,"Municipal Remote Monitoring  Center Requirements",null,null,{"$f":"IF($C$43=\"\",\"\",F43/$C$43)","v":""},null,{"$f":"IF($C$43=\"\",\"\",H43/$C$43)","v":""},null,{"$f":"IF($C$43=\"\",\"\",J43/$C$43)","v":""},null,{"$f":"IF($C$43=\"\",\"\",L43/$C$43)","v":""},null,{"$f":"IF($C$43=\"\",\"\",N43/$C$43)","v":""},null,{"$f":"IF($C$43=\"\",\"\",P43/$C$43)","v":""},null,{"$f":"IF($C$43=\"\",\"\",R43/$C$43)","v":""},null,{"$f":"IF($C$43=\"\",\"\",T43/$C$43)","v":""},null,{"$f":"IF($C$43=\"\",\"\",V43/$C$43)","v":""},null,{"$f":"IF($C$43=\"\",\"\",X43/$C$43)","v":""},null,{"$f":"IF($C$43=\"\",\"\",Z43/$C$43)","v":""},null,{"$f":"IF($C$43=\"\",\"\",AB43/$C$43)","v":""},null,{"$f":"IF($C$43=\"\",\"\",AD43/$C$43)","v":""},null,{"$f":"IF($C$43=\"\",\"\",AF43/$C$43)","v":""},null,{"$f":"IF($C$43=\"\",\"\",AH43/$C$43)","v":""},null,{"$f":"IF($C$43=\"\",\"\",AJ43/$C$43)","v":""},null,{"$f":"IF($C$43=\"\",\"\",AL43/$C$43)","v":""},null,{"$f":"IF($C$43=\"\",\"\",AN43/$C$43)","v":""},null,{"$f":"IF($C$43=\"\",\"\",AP43/$C$43)","v":""},null,{"$f":"IF($C$43=\"\",\"\",AR43/$C$43)","v":""},null,{"$f":"IF($C$43=\"\",\"\",AT43/$C$43)","v":""},null,{"$f":"IF($C$43=\"\",\"\",AV43/$C$43)","v":""},null,{"$f":"IF($C$43=\"\",\"\",AX43/$C$43)","v":""},null,{"$f":"IF($C$43=\"\",\"\",AZ43/$C$43)","v":""},null,{"$f":"IF($C$43=\"\",\"\",BB43/$C$43)","v":""},null,0]
[2.4,"Traffic Management Center Modifications",null,null,{"$f":"IF($C$44=\"\",\"\",F44/$C$44)","v":""},null,{"$f":"IF($C$44=\"\",\"\",H44/$C$44)","v":""},null,{"$f":"IF($C$44=\"\",\"\",J44/$C$44)","v":""},null,{"$f":"IF($C$44=\"\",\"\",L44/$C$44)","v":""},null,{"$f":"IF($C$44=\"\",\"\",N44/$C$44)","v":""},null,{"$f":"IF($C$44=\"\",\"\",P44/$C$44)","v":""},null,{"$f":"IF($C$44=\"\",\"\",R44/$C$44)","v":""},null,{"$f":"IF($C$44=\"\",\"\",T44/$C$44)","v":""},null,{"$f":"IF($C$44=\"\",\"\",V44/$C$44)","v":""},null,{"$f":"IF($C$44=\"\",\"\",X44/$C$44)","v":""},null,{"$f":"IF($C$44=\"\",\"\",Z44/$C$44)","v":""},null,{"$f":"IF($C$44=\"\",\"\",AB44/$C$44)","v":""},null,{"$f":"IF($C$44=\"\",\"\",AD44/$C$44)","v":""},null,{"$f":"IF($C$44=\"\",\"\",AF44/$C$44)","v":""},null,{"$f":"IF($C$44=\"\",\"\",AH44/$C$44)","v":""},null,{"$f":"IF($C$44=\"\",\"\",AJ44/$C$44)","v":""},null,{"$f":"IF($C$44=\"\",\"\",AL44/$C$44)","v":""},null,{"$f":"IF($C$44=\"\",\"\",AN44/$C$44)","v":""},null,{"$f":"IF($C$44=\"\",\"\",AP44/$C$44)","v":""},null,{"$f":"IF($C$44=\"\",\"\",AR44/$C$44)","v":""},null,{"$f":"IF($C$44=\"\",\"\",AT44/$C$44)","v":""},null,{"$f":"IF($C$44=\"\",\"\",AV44/$C$44)","v":""},null,{"$f":"IF($C$44=\"\",\"\",AX44/$C$44)","v":""},null,{"$f":"IF($C$44=\"\",\"\",AZ44/$C$44)","v":""},null,{"$f":"IF($C$44=\"\",\"\",BB44/$C$44)","v":""},null,0]
[2.5,"Emergency Vehicle Preemption/ Transit Priority Requirements",null,null,{"$f":"IF($C$45=\"\",\"\",F45/$C$45)","v":""},null,{"$f":"IF($C$45=\"\",\"\",H45/$C$45)","v":""},null,{"$f":"IF($C$45=\"\",\"\",J45/$C$45)","v":""},null,{"$f":"IF($C$45=\"\",\"\",L45/$C$45)","v":""},null,{"$f":"IF($C$45=\"\",\"\",N45/$C$45)","v":""},null,{"$f":"IF($C$45=\"\",\"\",P45/$C$45)","v":""},null,{"$f":"IF($C$45=\"\",\"\",R45/$C$45)","v":""},null,{"$f":"IF($C$45=\"\",\"\",T45/$C$45)","v":""},null,{"$f":"IF($C$45=\"\",\"\",V45/$C$45)","v":""},null,{"$f":"IF($C$45=\"\",\"\",X45/$C$45)","v":""},null,{"$f":"IF($C$45=\"\",\"\",Z45/$C$45)","v":""},null,{"$f":"IF($C$45=\"\",\"\",AB45/$C$45)","v":""},null,{"$f":"IF($C$45=\"\",\"\",AD45/$C$45)","v":""},null,{"$f":"IF($C$45=\"\",\"\",AF45/$C$45)","v":""},null,{"$f":"IF($C$45=\"\",\"\",AH45/$C$45)","v":""},null,{"$f":"IF($C$45=\"\",\"\",AJ45/$C$45)","v":""},null,{"$f":"IF($C$45=\"\",\"\",AL45/$C$45)","v":""},null,{"$f":"IF($C$45=\"\",\"\",AN45/$C$45)","v":""},null,{"$f":"IF($C$45=\"\",\"\",AP45/$C$45)","v":""},null,{"$f":"IF($C$45=\"\",\"\",AR45/$C$45)","v":""},null,{"$f":"IF($C$45=\"\",\"\",AT45/$C$45)","v":""},null,{"$f":"IF($C$45=\"\",\"\",AV45/$C$45)","v":""},null,{"$f":"IF($C$45=\"\",\"\",AX45/$C$45)","v":""},null,{"$f":"IF($C$45=\"\",\"\",AZ45/$C$45)","v":""},null,{"$f":"IF($C$45=\"\",\"\",BB45/$C$45)","v":""},null,0]
[null,null,null,null,{"$f":"IF($C$46=\"\",\"\",F46/$C$46)","v":""},null,{"$f":"IF($C$46=\"\",\"\",H46/$C$46)","v":""},null,{"$f":"IF($C$46=\"\",\"\",J46/$C$46)","v":""},null,{"$f":"IF($C$46=\"\",\"\",L46/$C$46)","v":""},null,{"$f":"IF($C$46=\"\",\"\",N46/$C$46)","v":""},null,{"$f":"IF($C$46=\"\",\"\",P46/$C$46)","v":""},null,{"$f":"IF($C$46=\"\",\"\",R46/$C$46)","v":""},null,{"$f":"IF($C$46=\"\",\"\",T46/$C$46)","v":""},null,{"$f":"IF($C$46=\"\",\"\",V46/$C$46)","v":""},null,{"$f":"IF($C$46=\"\",\"\",X46/$C$46)","v":""},null,{"$f":"IF($C$46=\"\",\"\",Z46/$C$46)","v":""},null,{"$f":"IF($C$46=\"\",\"\",AB46/$C$46)","v":""},null,{"$f":"IF($C$46=\"\",\"\",AD46/$C$46)","v":""},null,{"$f":"IF($C$46=\"\",\"\",AF46/$C$46)","v":""},null,{"$f":"IF($C$46=\"\",\"\",AH46/$C$46)","v":""},null,{"$f":"IF($C$46=\"\",\"\",AJ46/$C$46)","v":""},null,{"$f":"IF($C$46=\"\",\"\",AL46/$C$46)","v":""},null,{"$f":"IF($C$46=\"\",\"\",AN46/$C$46)","v":""},null,{"$f":"IF($C$46=\"\",\"\",AP46/$C$46)","v":""},null,{"$f":"IF($C$46=\"\",\"\",AR46/$C$46)","v":""},null,{"$f":"IF($C$46=\"\",\"\",AT46/$C$46)","v":""},null,{"$f":"IF($C$46=\"\",\"\",AV46/$C$46)","v":""},null,{"$f":"IF($C$46=\"\",\"\",AX46/$C$46)","v":""},null,{"$f":"IF($C$46=\"\",\"\",AZ46/$C$46)","v":""},null,{"$f":"IF($C$46=\"\",\"\",BB46/$C$46)","v":""},null,0]
[null,null,null,null,{"$f":"IF($C$47=\"\",\"\",F47/$C$47)","v":""},null,{"$f":"IF($C$47=\"\",\"\",H47/$C$47)","v":""},null,{"$f":"IF($C$47=\"\",\"\",J47/$C$47)","v":""},null,{"$f":"IF($C$47=\"\",\"\",L47/$C$47)","v":""},null,{"$f":"IF($C$47=\"\",\"\",N47/$C$47)","v":""},null,{"$f":"IF($C$47=\"\",\"\",P47/$C$47)","v":""},null,{"$f":"IF($C$47=\"\",\"\",R47/$C$47)","v":""},null,{"$f":"IF($C$47=\"\",\"\",T47/$C$47)","v":""},null,{"$f":"IF($C$47=\"\",\"\",V47/$C$47)","v":""},null,{"$f":"IF($C$47=\"\",\"\",X47/$C$47)","v":""},null,{"$f":"IF($C$47=\"\",\"\",Z47/$C$47)","v":""},null,{"$f":"IF($C$47=\"\",\"\",AB47/$C$47)","v":""},null,{"$f":"IF($C$47=\"\",\"\",AD47/$C$47)","v":""},null,{"$f":"IF($C$47=\"\",\"\",AF47/$C$47)","v":""},null,{"$f":"IF($C$47=\"\",\"\",AH47/$C$47)","v":""},null,{"$f":"IF($C$47=\"\",\"\",AJ47/$C$47)","v":""},null,{"$f":"IF($C$47=\"\",\"\",AL47/$C$47)","v":""},null,{"$f":"IF($C$47=\"\",\"\",AN47/$C$47)","v":""},null,{"$f":"IF($C$47=\"\",\"\",AP47/$C$47)","v":""},null,{"$f":"IF($C$47=\"\",\"\",AR47/$C$47)","v":""},null,{"$f":"IF($C$47=\"\",\"\",AT47/$C$47)","v":""},null,{"$f":"IF($C$47=\"\",\"\",AV47/$C$47)","v":""},null,{"$f":"IF($C$47=\"\",\"\",AX47/$C$47)","v":""},null,{"$f":"IF($C$47=\"\",\"\",AZ47/$C$47)","v":""},null,{"$f":"IF($C$47=\"\",\"\",BB47/$C$47)","v":""},null,0]
[null,null,null,null,{"$f":"IF($C$48=\"\",\"\",F48/$C$48)","v":""},null,{"$f":"IF($C$48=\"\",\"\",H48/$C$48)","v":""},null,{"$f":"IF($C$48=\"\",\"\",J48/$C$48)","v":""},null,{"$f":"IF($C$48=\"\",\"\",L48/$C$48)","v":""},null,{"$f":"IF($C$48=\"\",\"\",N48/$C$48)","v":""},null,{"$f":"IF($C$48=\"\",\"\",P48/$C$48)","v":""},null,{"$f":"IF($C$48=\"\",\"\",R48/$C$48)","v":""},null,{"$f":"IF($C$48=\"\",\"\",T48/$C$48)","v":""},null,{"$f":"IF($C$48=\"\",\"\",V48/$C$48)","v":""},null,{"$f":"IF($C$48=\"\",\"\",X48/$C$48)","v":""},null,{"$f":"IF($C$48=\"\",\"\",Z48/$C$48)","v":""},null,{"$f":"IF($C$48=\"\",\"\",AB48/$C$48)","v":""},null,{"$f":"IF($C$48=\"\",\"\",AD48/$C$48)","v":""},null,{"$f":"IF($C$48=\"\",\"\",AF48/$C$48)","v":""},null,{"$f":"IF($C$48=\"\",\"\",AH48/$C$48)","v":""},null,{"$f":"IF($C$48=\"\",\"\",AJ48/$C$48)","v":""},null,{"$f":"IF($C$48=\"\",\"\",AL48/$C$48)","v":""},null,{"$f":"IF($C$48=\"\",\"\",AN48/$C$48)","v":""},null,{"$f":"IF($C$48=\"\",\"\",AP48/$C$48)","v":""},null,{"$f":"IF($C$48=\"\",\"\",AR48/$C$48)","v":""},null,{"$f":"IF($C$48=\"\",\"\",AT48/$C$48)","v":""},null,{"$f":"IF($C$48=\"\",\"\",AV48/$C$48)","v":""},null,{"$f":"IF($C$48=\"\",\"\",AX48/$C$48)","v":""},null,{"$f":"IF($C$48=\"\",\"\",AZ48/$C$48)","v":""},null,{"$f":"IF($C$48=\"\",\"\",BB48/$C$48)","v":""},null,0]
[null,null,null,null,{"$f":"IF($C$49=\"\",\"\",F49/$C$49)","v":""},null,{"$f":"IF($C$49=\"\",\"\",H49/$C$49)","v":""},null,{"$f":"IF($C$49=\"\",\"\",J49/$C$49)","v":""},null,{"$f":"IF($C$49=\"\",\"\",L49/$C$49)","v":""},null,{"$f":"IF($C$49=\"\",\"\",N49/$C$49)","v":""},null,{"$f":"IF($C$49=\"\",\"\",P49/$C$49)","v":""},null,{"$f":"IF($C$49=\"\",\"\",R49/$C$49)","v":""},null,{"$f":"IF($C$49=\"\",\"\",T49/$C$49)","v":""},null,{"$f":"IF($C$49=\"\",\"\",V49/$C$49)","v":""},null,{"$f":"IF($C$49=\"\",\"\",X49/$C$49)","v":""},null,{"$f":"IF($C$49=\"\",\"\",Z49/$C$49)","v":""},null,{"$f":"IF($C$49=\"\",\"\",AB49/$C$49)","v":""},null,{"$f":"IF($C$49=\"\",\"\",AD49/$C$49)","v":""},null,{"$f":"IF($C$49=\"\",\"\",AF49/$C$49)","v":""},null,{"$f":"IF($C$49=\"\",\"\",AH49/$C$49)","v":""},null,{"$f":"IF($C$49=\"\",\"\",AJ49/$C$49)","v":""},null,{"$f":"IF($C$49=\"\",\"\",AL49/$C$49)","v":""},null,{"$f":"IF($C$49=\"\",\"\",AN49/$C$49)","v":""},null,{"$f":"IF($C$49=\"\",\"\",AP49/$C$49)","v":""},null,{"$f":"IF($C$49=\"\",\"\",AR49/$C$49)","v":""},null,{"$f":"IF($C$49=\"\",\"\",AT49/$C$49)","v":""},null,{"$f":"IF($C$49=\"\",\"\",AV49/$C$49)","v":""},null,{"$f":"IF($C$49=\"\",\"\",AX49/$C$49)","v":""},null,{"$f":"IF($C$49=\"\",\"\",AZ49/$C$49)","v":""},null,{"$f":"IF($C$49=\"\",\"\",BB49/$C$49)","v":""},null,0]
[null,null,null,null,{"$f":"IF($C$50=\"\",\"\",F50/$C$50)","v":""},null,{"$f":"IF($C$50=\"\",\"\",H50/$C$50)","v":""},null,{"$f":"IF($C$50=\"\",\"\",J50/$C$50)","v":""},null,{"$f":"IF($C$50=\"\",\"\",L50/$C$50)","v":""},null,{"$f":"IF($C$50=\"\",\"\",N50/$C$50)","v":""},null,{"$f":"IF($C$50=\"\",\"\",P50/$C$50)","v":""},null,{"$f":"IF($C$50=\"\",\"\",R50/$C$50)","v":""},null,{"$f":"IF($C$50=\"\",\"\",T50/$C$50)","v":""},null,{"$f":"IF($C$50=\"\",\"\",V50/$C$50)","v":""},null,{"$f":"IF($C$50=\"\",\"\",X50/$C$50)","v":""},null,{"$f":"IF($C$50=\"\",\"\",Z50/$C$50)","v":""},null,{"$f":"IF($C$50=\"\",\"\",AB50/$C$50)","v":""},null,{"$f":"IF($C$50=\"\",\"\",AD50/$C$50)","v":""},null,{"$f":"IF($C$50=\"\",\"\",AF50/$C$50)","v":""},null,{"$f":"IF($C$50=\"\",\"\",AH50/$C$50)","v":""},null,{"$f":"IF($C$50=\"\",\"\",AJ50/$C$50)","v":""},null,{"$f":"IF($C$50=\"\",\"\",AL50/$C$50)","v":""},null,{"$f":"IF($C$50=\"\",\"\",AN50/$C$50)","v":""},null,{"$f":"IF($C$50=\"\",\"\",AP50/$C$50)","v":""},null,{"$f":"IF($C$50=\"\",\"\",AR50/$C$50)","v":""},null,{"$f":"IF($C$50=\"\",\"\",AT50/$C$50)","v":""},null,{"$f":"IF($C$50=\"\",\"\",AV50/$C$50)","v":""},null,{"$f":"IF($C$50=\"\",\"\",AX50/$C$50)","v":""},null,{"$f":"IF($C$50=\"\",\"\",AZ50/$C$50)","v":""},null,{"$f":"IF($C$50=\"\",\"\",BB50/$C$50)","v":""},null,0]
[null,null,null,null,{"$f":"IF($C$51=\"\",\"\",F51/$C$51)","v":""},null,{"$f":"IF($C$51=\"\",\"\",H51/$C$51)","v":""},null,{"$f":"IF($C$51=\"\",\"\",J51/$C$51)","v":""},null,{"$f":"IF($C$51=\"\",\"\",L51/$C$51)","v":""},null,{"$f":"IF($C$51=\"\",\"\",N51/$C$51)","v":""},null,{"$f":"IF($C$51=\"\",\"\",P51/$C$51)","v":""},null,{"$f":"IF($C$51=\"\",\"\",R51/$C$51)","v":""},null,{"$f":"IF($C$51=\"\",\"\",T51/$C$51)","v":""},null,{"$f":"IF($C$51=\"\",\"\",V51/$C$51)","v":""},null,{"$f":"IF($C$51=\"\",\"\",X51/$C$51)","v":""},null,{"$f":"IF($C$51=\"\",\"\",Z51/$C$51)","v":""},null,{"$f":"IF($C$51=\"\",\"\",AB51/$C$51)","v":""},null,{"$f":"IF($C$51=\"\",\"\",AD51/$C$51)","v":""},null,{"$f":"IF($C$51=\"\",\"\",AF51/$C$51)","v":""},null,{"$f":"IF($C$51=\"\",\"\",AH51/$C$51)","v":""},null,{"$f":"IF($C$51=\"\",\"\",AJ51/$C$51)","v":""},null,{"$f":"IF($C$51=\"\",\"\",AL51/$C$51)","v":""},null,{"$f":"IF($C$51=\"\",\"\",AN51/$C$51)","v":""},null,{"$f":"IF($C$51=\"\",\"\",AP51/$C$51)","v":""},null,{"$f":"IF($C$51=\"\",\"\",AR51/$C$51)","v":""},null,{"$f":"IF($C$51=\"\",\"\",AT51/$C$51)","v":""},null,{"$f":"IF($C$51=\"\",\"\",AV51/$C$51)","v":""},null,{"$f":"IF($C$51=\"\",\"\",AX51/$C$51)","v":""},null,{"$f":"IF($C$51=\"\",\"\",AZ51/$C$51)","v":""},null,{"$f":"IF($C$51=\"\",\"\",BB51/$C$51)","v":""},null,0]
[null,null,null,null,{"$f":"IF($C$52=\"\",\"\",F52/$C$52)","v":""},null,{"$f":"IF($C$52=\"\",\"\",H52/$C$52)","v":""},null,{"$f":"IF($C$52=\"\",\"\",J52/$C$52)","v":""},null,{"$f":"IF($C$52=\"\",\"\",L52/$C$52)","v":""},null,{"$f":"IF($C$52=\"\",\"\",N52/$C$52)","v":""},null,{"$f":"IF($C$52=\"\",\"\",P52/$C$52)","v":""},null,{"$f":"IF($C$52=\"\",\"\",R52/$C$52)","v":""},null,{"$f":"IF($C$52=\"\",\"\",T52/$C$52)","v":""},null,{"$f":"IF($C$52=\"\",\"\",V52/$C$52)","v":""},null,{"$f":"IF($C$52=\"\",\"\",X52/$C$52)","v":""},null,{"$f":"IF($C$52=\"\",\"\",Z52/$C$52)","v":""},null,{"$f":"IF($C$52=\"\",\"\",AB52/$C$52)","v":""},null,{"$f":"IF($C$52=\"\",\"\",AD52/$C$52)","v":""},null,{"$f":"IF($C$52=\"\",\"\",AF52/$C$52)","v":""},null,{"$f":"IF($C$52=\"\",\"\",AH52/$C$52)","v":""},null,{"$f":"IF($C$52=\"\",\"\",AJ52/$C$52)","v":""},null,{"$f":"IF($C$52=\"\",\"\",AL52/$C$52)","v":""},null,{"$f":"IF($C$52=\"\",\"\",AN52/$C$52)","v":""},null,{"$f":"IF($C$52=\"\",\"\",AP52/$C$52)","v":""},null,{"$f":"IF($C$52=\"\",\"\",AR52/$C$52)","v":""},null,{"$f":"IF($C$52=\"\",\"\",AT52/$C$52)","v":""},null,{"$f":"IF($C$52=\"\",\"\",AV52/$C$52)","v":""},null,{"$f":"IF($C$52=\"\",\"\",AX52/$C$52)","v":""},null,{"$f":"IF($C$52=\"\",\"\",AZ52/$C$52)","v":""},null,{"$f":"IF($C$52=\"\",\"\",BB52/$C$52)","v":""},null,{"$f":"SUM(BB52,AZ52,AX52,AV52,AT52,AR52,AP52,AN52,AL52,AJ52,AH52,AF52,AD52,AB52,Z52,X52,V52,T52,R52,P52,N52,L52,J52,H52,F52)","v":0}]
["TOTAL HOURS",null,null,null,null,{"$f":"SUM(F32:F52)","v":0},null,{"$f":"SUM(H32:H52)","v":0},null,{"$f":"SUM(J32:J52)","v":0},null,{"$f":"SUM(L32:L52)","v":0},null,{"$f":"SUM(N32:N52)","v":0},null,{"$f":"SUM(P32:P52)","v":0},null,{"$f":"SUM(R32:R52)","v":0},null,{"$f":"SUM(T32:T52)","v":0},null,{"$f":"SUM(V32:V52)","v":0},null,{"$f":"SUM(X32:X52)","v":0},null,{"$f":"SUM(Z32:Z52)","v":0},null,{"$f":"SUM(AB32:AB52)","v":0},null,{"$f":"SUM(AD32:AD52)","v":0},null,{"$f":"SUM(AF32:AF52)","v":0},null,{"$f":"SUM(AH32:AH52)","v":0},null,{"$f":"SUM(AJ32:AJ52)","v":0},null,{"$f":"SUM(AL32:AL52)","v":0},null,{"$f":"SUM(AN32:AN52)","v":0},null,{"$f":"SUM(AP32:AP52)","v":0},null,{"$f":"SUM(AR32:AR52)","v":0},null,{"$f":"SUM(AT32:AT52)","v":0},null,{"$f":"SUM(AV32:AV52)","v":0},null,{"$f":"SUM(AX32:AX52)","v":0},null,{"$f":"SUM(AZ32:AZ52)","v":0},null,0,{"$f":"SUM(E53:BB53)","v":0}]
["TOTAL WORKDAYS",null,null,null,null,{"$f":"F53/8","v":0},null,{"$f":"H53/8","v":0},null,{"$f":"J53/8","v":0},null,{"$f":"L53/8","v":0},null,{"$f":"N53/8","v":0},null,{"$f":"P53/8","v":0},null,{"$f":"R53/8","v":0},null,{"$f":"T53/8","v":0},null,{"$f":"V53/8","v":0},null,{"$f":"X53/8","v":0},null,{"$f":"Z53/8","v":0},null,{"$f":"AB53/8","v":0},null,{"$f":"AD53/8","v":0},null,0,null,{"$f":"AH53/8","v":0},null,0,null,{"$f":"AL53/8","v":0},null,0,null,{"$f":"AP53/8","v":0},null,0,null,{"$f":"AT53/8","v":0},null,{"$f":"AV53/8","v":0},null,{"$f":"AX53/8","v":0},null,{"$f":"AZ53/8","v":0},null,0,{"$f":"SUM(E54:BB54)","v":0}]
["TOTAL RAW LABOR",null,null,null,null,{"$f":"$E$13*F53","v":0},null,{"$f":"$G$13*H53","v":0},null,{"$f":"$I$13*J53","v":0},null,{"$f":"$K$13*L53","v":0},null,{"$f":"$M$13*N53","v":0},null,{"$f":"$O$13*P53","v":0},null,{"$f":"$Q$13*R53","v":0},null,{"$f":"$S$13*T53","v":0},null,{"$f":"$U$13*V53","v":0},null,{"$f":"$W$13*X53","v":0},null,{"$f":"$Y$13*Z53","v":0},null,{"$f":"$AA$13*AB53","v":0},null,{"$f":"$AC$13*AD53","v":0},null,{"$f":"$AC$13*AF53","v":0},null,{"$f":"$AC$13*AH53","v":0},null,{"$f":"$AC$13*AJ53","v":0},null,{"$f":"$AC$13*AL53","v":0},null,{"$f":"$AC$13*AN53","v":0},null,{"$f":"$AC$13*AP53","v":0},null,{"$f":"$AC$13*AR53","v":0},null,{"$f":"$AC$13*AT53","v":0},null,{"$f":"$AC$13*AV53","v":0},null,{"$f":"$AC$13*AX53","v":0},null,{"$f":"$AC$13*AZ53","v":0},null,0,{"$f":"SUM(E55:BB55)","v":0}]
["Task 3.0     ","PROGRAMMATIC CATEGORICAL EXCLUSION & SUPPORTING TASKS"]
[3.1,"Misc. Coordination/Administration",null,null,{"$f":"IF($C$57=\"\",\"\",F57/$C$57)","v":""},null,{"$f":"IF($C$57=\"\",\"\",H57/$C$57)","v":""},null,{"$f":"IF($C$57=\"\",\"\",J57/$C$57)","v":""},null,{"$f":"IF($C$57=\"\",\"\",L57/$C$57)","v":""},null,{"$f":"IF($C$57=\"\",\"\",N57/$C$57)","v":""},null,{"$f":"IF($C$57=\"\",\"\",P57/$C$57)","v":""},null,{"$f":"IF($C$57=\"\",\"\",R57/$C$57)","v":""},null,{"$f":"IF($C$57=\"\",\"\",T57/$C$57)","v":""},null,{"$f":"IF($C$57=\"\",\"\",V57/$C$57)","v":""},null,{"$f":"IF($C$57=\"\",\"\",X57/$C$57)","v":""},null,{"$f":"IF($C$57=\"\",\"\",Z57/$C$57)","v":""},null,{"$f":"IF($C$57=\"\",\"\",AB57/$C$57)","v":""},null,{"$f":"IF($C$57=\"\",\"\",AD57/$C$57)","v":""},null,{"$f":"IF($C$57=\"\",\"\",AF57/$C$57)","v":""},null,{"$f":"IF($C$57=\"\",\"\",AH57/$C$57)","v":""},null,{"$f":"IF($C$57=\"\",\"\",AJ57/$C$57)","v":""},null,{"$f":"IF($C$57=\"\",\"\",AL57/$C$57)","v":""},null,{"$f":"IF($C$57=\"\",\"\",AN57/$C$57)","v":""},null,{"$f":"IF($C$57=\"\",\"\",AP57/$C$57)","v":""},null,{"$f":"IF($C$57=\"\",\"\",AR57/$C$57)","v":""},null,{"$f":"IF($C$57=\"\",\"\",AT57/$C$57)","v":""},null,{"$f":"IF($C$57=\"\",\"\",AV57/$C$57)","v":""},null,{"$f":"IF($C$57=\"\",\"\",AX57/$C$57)","v":""},null,{"$f":"IF($C$57=\"\",\"\",AZ57/$C$57)","v":""},null,{"$f":"IF($C$57=\"\",\"\",BB57/$C$57)","v":""},null,{"$f":"SUM(BB57,AZ57,AX57,AV57,AT57,AR57,AP57,AN57,AL57,AJ57,AH57,AF57,AD57,AB57,Z57,X57,V57,T57,R57,P57,N57,L57,J57,H57,F57)","v":0}]
[3.2,"Vicintiy Map/Base Mapping / Other Graphics"]
["    3.2.1","    Create Vicinity Map",null,null,{"$f":"IF($C$59=\"\",\"\",F59/$C$59)","v":""},null,{"$f":"IF($C$59=\"\",\"\",H59/$C$59)","v":""},null,{"$f":"IF($C$59=\"\",\"\",J59/$C$59)","v":""},null,{"$f":"IF($C$59=\"\",\"\",L59/$C$59)","v":""},null,{"$f":"IF($C$59=\"\",\"\",N59/$C$59)","v":""},null,{"$f":"IF($C$59=\"\",\"\",P59/$C$59)","v":""},null,{"$f":"IF($C$59=\"\",\"\",R59/$C$59)","v":""},null,{"$f":"IF($C$59=\"\",\"\",T59/$C$59)","v":""},null,{"$f":"IF($C$59=\"\",\"\",V59/$C$59)","v":""},null,{"$f":"IF($C$59=\"\",\"\",X59/$C$59)","v":""},null,{"$f":"IF($C$59=\"\",\"\",Z59/$C$59)","v":""},null,{"$f":"IF($C$59=\"\",\"\",AB59/$C$59)","v":""},null,{"$f":"IF($C$59=\"\",\"\",AD59/$C$59)","v":""},null,{"$f":"IF($C$59=\"\",\"\",AF59/$C$59)","v":""},null,{"$f":"IF($C$59=\"\",\"\",AH59/$C$59)","v":""},null,{"$f":"IF($C$59=\"\",\"\",AJ59/$C$59)","v":""},null,{"$f":"IF($C$59=\"\",\"\",AL59/$C$59)","v":""},null,{"$f":"IF($C$59=\"\",\"\",AN59/$C$59)","v":""},null,{"$f":"IF($C$59=\"\",\"\",AP59/$C$59)","v":""},null,{"$f":"IF($C$59=\"\",\"\",AR59/$C$59)","v":""},null,{"$f":"IF($C$59=\"\",\"\",AT59/$C$59)","v":""},null,{"$f":"IF($C$59=\"\",\"\",AV59/$C$59)","v":""},null,{"$f":"IF($C$59=\"\",\"\",AX59/$C$59)","v":""},null,{"$f":"IF($C$59=\"\",\"\",AZ59/$C$59)","v":""},null,{"$f":"IF($C$59=\"\",\"\",BB59/$C$59)","v":""},null,{"$f":"SUM(BB59,AZ59,AX59,AV59,AT59,AR59,AP59,AN59,AL59,AJ59,AH59,AF59,AD59,AB59,Z59,X59,V59,T59,R59,P59,N59,L59,J59,H59,F59)","v":0}]
["    3.2.2","    Digitize Feasibility Study Map (cable routing,\n    signals, camera locations)",null,null,{"$f":"IF($C$60=\"\",\"\",F60/$C$60)","v":""},null,{"$f":"IF($C$60=\"\",\"\",H60/$C$60)","v":""},null,{"$f":"IF($C$60=\"\",\"\",J60/$C$60)","v":""},null,{"$f":"IF($C$60=\"\",\"\",L60/$C$60)","v":""},null,{"$f":"IF($C$60=\"\",\"\",N60/$C$60)","v":""},null,{"$f":"IF($C$60=\"\",\"\",P60/$C$60)","v":""},null,{"$f":"IF($C$60=\"\",\"\",R60/$C$60)","v":""},null,{"$f":"IF($C$60=\"\",\"\",T60/$C$60)","v":""},null,{"$f":"IF($C$60=\"\",\"\",V60/$C$60)","v":""},null,{"$f":"IF($C$60=\"\",\"\",X60/$C$60)","v":""},null,{"$f":"IF($C$60=\"\",\"\",Z60/$C$60)","v":""},null,{"$f":"IF($C$60=\"\",\"\",AB60/$C$60)","v":""},null,{"$f":"IF($C$60=\"\",\"\",AD60/$C$60)","v":""},null,{"$f":"IF($C$60=\"\",\"\",AF60/$C$60)","v":""},null,{"$f":"IF($C$60=\"\",\"\",AH60/$C$60)","v":""},null,{"$f":"IF($C$60=\"\",\"\",AJ60/$C$60)","v":""},null,{"$f":"IF($C$60=\"\",\"\",AL60/$C$60)","v":""},null,{"$f":"IF($C$60=\"\",\"\",AN60/$C$60)","v":""},null,{"$f":"IF($C$60=\"\",\"\",AP60/$C$60)","v":""},null,{"$f":"IF($C$60=\"\",\"\",AR60/$C$60)","v":""},null,{"$f":"IF($C$60=\"\",\"\",AT60/$C$60)","v":""},null,{"$f":"IF($C$60=\"\",\"\",AV60/$C$60)","v":""},null,{"$f":"IF($C$60=\"\",\"\",AX60/$C$60)","v":""},null,{"$f":"IF($C$60=\"\",\"\",AZ60/$C$60)","v":""},null,{"$f":"IF($C$60=\"\",\"\",BB60/$C$60)","v":""},null,0]
["    3.2.3","    Add Planimetrics to Base Map",null,null,{"$f":"IF($C$61=\"\",\"\",F61/$C$61)","v":""},null,{"$f":"IF($C$61=\"\",\"\",H61/$C$61)","v":""},null,{"$f":"IF($C$61=\"\",\"\",J61/$C$61)","v":""},null,{"$f":"IF($C$61=\"\",\"\",L61/$C$61)","v":""},null,{"$f":"IF($C$61=\"\",\"\",N61/$C$61)","v":""},null,{"$f":"IF($C$61=\"\",\"\",P61/$C$61)","v":""},null,{"$f":"IF($C$61=\"\",\"\",R61/$C$61)","v":""},null,{"$f":"IF($C$61=\"\",\"\",T61/$C$61)","v":""},null,{"$f":"IF($C$61=\"\",\"\",V61/$C$61)","v":""},null,{"$f":"IF($C$61=\"\",\"\",X61/$C$61)","v":""},null,{"$f":"IF($C$61=\"\",\"\",Z61/$C$61)","v":""},null,{"$f":"IF($C$61=\"\",\"\",AB61/$C$61)","v":""},null,{"$f":"IF($C$61=\"\",\"\",AD61/$C$61)","v":""},null,{"$f":"IF($C$61=\"\",\"\",AF61/$C$61)","v":""},null,{"$f":"IF($C$61=\"\",\"\",AH61/$C$61)","v":""},null,{"$f":"IF($C$61=\"\",\"\",AJ61/$C$61)","v":""},null,{"$f":"IF($C$61=\"\",\"\",AL61/$C$61)","v":""},null,{"$f":"IF($C$61=\"\",\"\",AN61/$C$61)","v":""},null,{"$f":"IF($C$61=\"\",\"\",AP61/$C$61)","v":""},null,{"$f":"IF($C$61=\"\",\"\",AR61/$C$61)","v":""},null,{"$f":"IF($C$61=\"\",\"\",AT61/$C$61)","v":""},null,{"$f":"IF($C$61=\"\",\"\",AV61/$C$61)","v":""},null,{"$f":"IF($C$61=\"\",\"\",AX61/$C$61)","v":""},null,{"$f":"IF($C$61=\"\",\"\",AZ61/$C$61)","v":""},null,{"$f":"IF($C$61=\"\",\"\",BB61/$C$61)","v":""},null,0]
["    3.2.4","    Env. Features Layers (index, historic \n    districts/boundaries/structures, verify \n    community resources/correct autolabeling)",null,null,{"$f":"IF($C$62=\"\",\"\",F62/$C$62)","v":""},null,{"$f":"IF($C$62=\"\",\"\",H62/$C$62)","v":""},null,{"$f":"IF($C$62=\"\",\"\",J62/$C$62)","v":""},null,{"$f":"IF($C$62=\"\",\"\",L62/$C$62)","v":""},null,{"$f":"IF($C$62=\"\",\"\",N62/$C$62)","v":""},null,{"$f":"IF($C$62=\"\",\"\",P62/$C$62)","v":""},null,{"$f":"IF($C$62=\"\",\"\",R62/$C$62)","v":""},null,{"$f":"IF($C$62=\"\",\"\",T62/$C$62)","v":""},null,{"$f":"IF($C$62=\"\",\"\",V62/$C$62)","v":""},null,{"$f":"IF($C$62=\"\",\"\",X62/$C$62)","v":""},null,{"$f":"IF($C$62=\"\",\"\",Z62/$C$62)","v":""},null,{"$f":"IF($C$62=\"\",\"\",AB62/$C$62)","v":""},null,{"$f":"IF($C$62=\"\",\"\",AD62/$C$62)","v":""},null,{"$f":"IF($C$62=\"\",\"\",AF62/$C$62)","v":""},null,{"$f":"IF($C$62=\"\",\"\",AH62/$C$62)","v":""},null,{"$f":"IF($C$62=\"\",\"\",AJ62/$C$62)","v":""},null,{"$f":"IF($C$62=\"\",\"\",AL62/$C$62)","v":""},null,{"$f":"IF($C$62=\"\",\"\",AN62/$C$62)","v":""},null,{"$f":"IF($C$62=\"\",\"\",AP62/$C$62)","v":""},null,{"$f":"IF($C$62=\"\",\"\",AR62/$C$62)","v":""},null,{"$f":"IF($C$62=\"\",\"\",AT62/$C$62)","v":""},null,{"$f":"IF($C$62=\"\",\"\",AV62/$C$62)","v":""},null,{"$f":"IF($C$62=\"\",\"\",AX62/$C$62)","v":""},null,{"$f":"IF($C$62=\"\",\"\",AZ62/$C$62)","v":""},null,{"$f":"IF($C$62=\"\",\"\",BB62/$C$62)","v":""},null,0]
["    3.2.5","    Modifications Following Field Work",null,null,{"$f":"IF($C$63=\"\",\"\",F63/$C$63)","v":""},null,{"$f":"IF($C$63=\"\",\"\",H63/$C$63)","v":""},null,{"$f":"IF($C$63=\"\",\"\",J63/$C$63)","v":""},null,{"$f":"IF($C$63=\"\",\"\",L63/$C$63)","v":""},null,{"$f":"IF($C$63=\"\",\"\",N63/$C$63)","v":""},null,{"$f":"IF($C$63=\"\",\"\",P63/$C$63)","v":""},null,{"$f":"IF($C$63=\"\",\"\",R63/$C$63)","v":""},null,{"$f":"IF($C$63=\"\",\"\",T63/$C$63)","v":""},null,{"$f":"IF($C$63=\"\",\"\",V63/$C$63)","v":""},null,{"$f":"IF($C$63=\"\",\"\",X63/$C$63)","v":""},null,{"$f":"IF($C$63=\"\",\"\",Z63/$C$63)","v":""},null,{"$f":"IF($C$63=\"\",\"\",AB63/$C$63)","v":""},null,{"$f":"IF($C$63=\"\",\"\",AD63/$C$63)","v":""},null,{"$f":"IF($C$63=\"\",\"\",AF63/$C$63)","v":""},null,{"$f":"IF($C$63=\"\",\"\",AH63/$C$63)","v":""},null,{"$f":"IF($C$63=\"\",\"\",AJ63/$C$63)","v":""},null,{"$f":"IF($C$63=\"\",\"\",AL63/$C$63)","v":""},null,{"$f":"IF($C$63=\"\",\"\",AN63/$C$63)","v":""},null,{"$f":"IF($C$63=\"\",\"\",AP63/$C$63)","v":""},null,{"$f":"IF($C$63=\"\",\"\",AR63/$C$63)","v":""},null,{"$f":"IF($C$63=\"\",\"\",AT63/$C$63)","v":""},null,{"$f":"IF($C$63=\"\",\"\",AV63/$C$63)","v":""},null,{"$f":"IF($C$63=\"\",\"\",AX63/$C$63)","v":""},null,{"$f":"IF($C$63=\"\",\"\",AZ63/$C$63)","v":""},null,{"$f":"IF($C$63=\"\",\"\",BB63/$C$63)","v":""},null,0]
["    3.2.6","    Quad Map (needed for Archaeological and \n    Historic Architecture packets)",null,null,{"$f":"IF($C$64=\"\",\"\",F64/$C$64)","v":""},null,{"$f":"IF($C$64=\"\",\"\",H64/$C$64)","v":""},null,{"$f":"IF($C$64=\"\",\"\",J64/$C$64)","v":""},null,{"$f":"IF($C$64=\"\",\"\",L64/$C$64)","v":""},null,{"$f":"IF($C$64=\"\",\"\",N64/$C$64)","v":""},null,{"$f":"IF($C$64=\"\",\"\",P64/$C$64)","v":""},null,{"$f":"IF($C$64=\"\",\"\",R64/$C$64)","v":""},null,{"$f":"IF($C$64=\"\",\"\",T64/$C$64)","v":""},null,{"$f":"IF($C$64=\"\",\"\",V64/$C$64)","v":""},null,{"$f":"IF($C$64=\"\",\"\",X64/$C$64)","v":""},null,{"$f":"IF($C$64=\"\",\"\",Z64/$C$64)","v":""},null,{"$f":"IF($C$64=\"\",\"\",AB64/$C$64)","v":""},null,{"$f":"IF($C$64=\"\",\"\",AD64/$C$64)","v":""},null,{"$f":"IF($C$64=\"\",\"\",AF64/$C$64)","v":""},null,{"$f":"IF($C$64=\"\",\"\",AH64/$C$64)","v":""},null,{"$f":"IF($C$64=\"\",\"\",AJ64/$C$64)","v":""},null,{"$f":"IF($C$64=\"\",\"\",AL64/$C$64)","v":""},null,{"$f":"IF($C$64=\"\",\"\",AN64/$C$64)","v":""},null,{"$f":"IF($C$64=\"\",\"\",AP64/$C$64)","v":""},null,{"$f":"IF($C$64=\"\",\"\",AR64/$C$64)","v":""},null,{"$f":"IF($C$64=\"\",\"\",AT64/$C$64)","v":""},null,{"$f":"IF($C$64=\"\",\"\",AV64/$C$64)","v":""},null,{"$f":"IF($C$64=\"\",\"\",AX64/$C$64)","v":""},null,{"$f":"IF($C$64=\"\",\"\",AZ64/$C$64)","v":""},null,{"$f":"IF($C$64=\"\",\"\",BB64/$C$64)","v":""},null,0]
["    3.2.7",null,null,null,{"$f":"IF($C$65=\"\",\"\",F65/$C$65)","v":""},null,{"$f":"IF($C$65=\"\",\"\",H65/$C$65)","v":""},null,{"$f":"IF($C$65=\"\",\"\",J65/$C$65)","v":""},null,{"$f":"IF($C$65=\"\",\"\",L65/$C$65)","v":""},null,{"$f":"IF($C$65=\"\",\"\",N65/$C$65)","v":""},null,{"$f":"IF($C$65=\"\",\"\",P65/$C$65)","v":""},null,{"$f":"IF($C$65=\"\",\"\",R65/$C$65)","v":""},null,{"$f":"IF($C$65=\"\",\"\",T65/$C$65)","v":""},null,{"$f":"IF($C$65=\"\",\"\",V65/$C$65)","v":""},null,{"$f":"IF($C$65=\"\",\"\",X65/$C$65)","v":""},null,{"$f":"IF($C$65=\"\",\"\",Z65/$C$65)","v":""},null,{"$f":"IF($C$65=\"\",\"\",AB65/$C$65)","v":""},null,{"$f":"IF($C$65=\"\",\"\",AD65/$C$65)","v":""},null,{"$f":"IF($C$65=\"\",\"\",AF65/$C$65)","v":""},null,{"$f":"IF($C$65=\"\",\"\",AH65/$C$65)","v":""},null,{"$f":"IF($C$65=\"\",\"\",AJ65/$C$65)","v":""},null,{"$f":"IF($C$65=\"\",\"\",AL65/$C$65)","v":""},null,{"$f":"IF($C$65=\"\",\"\",AN65/$C$65)","v":""},null,{"$f":"IF($C$65=\"\",\"\",AP65/$C$65)","v":""},null,{"$f":"IF($C$65=\"\",\"\",AR65/$C$65)","v":""},null,{"$f":"IF($C$65=\"\",\"\",AT65/$C$65)","v":""},null,{"$f":"IF($C$65=\"\",\"\",AV65/$C$65)","v":""},null,{"$f":"IF($C$65=\"\",\"\",AX65/$C$65)","v":""},null,{"$f":"IF($C$65=\"\",\"\",AZ65/$C$65)","v":""},null,{"$f":"IF($C$65=\"\",\"\",BB65/$C$65)","v":""},null,0]
["    3.2.8",null,null,null,{"$f":"IF($C$66=\"\",\"\",F66/$C$66)","v":""},null,{"$f":"IF($C$66=\"\",\"\",H66/$C$66)","v":""},null,{"$f":"IF($C$66=\"\",\"\",J66/$C$66)","v":""},null,{"$f":"IF($C$66=\"\",\"\",L66/$C$66)","v":""},null,{"$f":"IF($C$66=\"\",\"\",N66/$C$66)","v":""},null,{"$f":"IF($C$66=\"\",\"\",P66/$C$66)","v":""},null,{"$f":"IF($C$66=\"\",\"\",R66/$C$66)","v":""},null,{"$f":"IF($C$66=\"\",\"\",T66/$C$66)","v":""},null,{"$f":"IF($C$66=\"\",\"\",V66/$C$66)","v":""},null,{"$f":"IF($C$66=\"\",\"\",X66/$C$66)","v":""},null,{"$f":"IF($C$66=\"\",\"\",Z66/$C$66)","v":""},null,{"$f":"IF($C$66=\"\",\"\",AB66/$C$66)","v":""},null,{"$f":"IF($C$66=\"\",\"\",AD66/$C$66)","v":""},null,{"$f":"IF($C$66=\"\",\"\",AF66/$C$66)","v":""},null,{"$f":"IF($C$66=\"\",\"\",AH66/$C$66)","v":""},null,{"$f":"IF($C$66=\"\",\"\",AJ66/$C$66)","v":""},null,{"$f":"IF($C$66=\"\",\"\",AL66/$C$66)","v":""},null,{"$f":"IF($C$66=\"\",\"\",AN66/$C$66)","v":""},null,{"$f":"IF($C$66=\"\",\"\",AP66/$C$66)","v":""},null,{"$f":"IF($C$66=\"\",\"\",AR66/$C$66)","v":""},null,{"$f":"IF($C$66=\"\",\"\",AT66/$C$66)","v":""},null,{"$f":"IF($C$66=\"\",\"\",AV66/$C$66)","v":""},null,{"$f":"IF($C$66=\"\",\"\",AX66/$C$66)","v":""},null,{"$f":"IF($C$66=\"\",\"\",AZ66/$C$66)","v":""},null,{"$f":"IF($C$66=\"\",\"\",BB66/$C$66)","v":""},null,0]
["    3.2.9",null,null,null,{"$f":"IF($C$67=\"\",\"\",F67/$C$67)","v":""},null,{"$f":"IF($C$67=\"\",\"\",H67/$C$67)","v":""},null,{"$f":"IF($C$67=\"\",\"\",J67/$C$67)","v":""},null,{"$f":"IF($C$67=\"\",\"\",L67/$C$67)","v":""},null,{"$f":"IF($C$67=\"\",\"\",N67/$C$67)","v":""},null,{"$f":"IF($C$67=\"\",\"\",P67/$C$67)","v":""},null,{"$f":"IF($C$67=\"\",\"\",R67/$C$67)","v":""},null,{"$f":"IF($C$67=\"\",\"\",T67/$C$67)","v":""},null,{"$f":"IF($C$67=\"\",\"\",V67/$C$67)","v":""},null,{"$f":"IF($C$67=\"\",\"\",X67/$C$67)","v":""},null,{"$f":"IF($C$67=\"\",\"\",Z67/$C$67)","v":""},null,{"$f":"IF($C$67=\"\",\"\",AB67/$C$67)","v":""},null,{"$f":"IF($C$67=\"\",\"\",AD67/$C$67)","v":""},null,{"$f":"IF($C$67=\"\",\"\",AF67/$C$67)","v":""},null,{"$f":"IF($C$67=\"\",\"\",AH67/$C$67)","v":""},null,{"$f":"IF($C$67=\"\",\"\",AJ67/$C$67)","v":""},null,{"$f":"IF($C$67=\"\",\"\",AL67/$C$67)","v":""},null,{"$f":"IF($C$67=\"\",\"\",AN67/$C$67)","v":""},null,{"$f":"IF($C$67=\"\",\"\",AP67/$C$67)","v":""},null,{"$f":"IF($C$67=\"\",\"\",AR67/$C$67)","v":""},null,{"$f":"IF($C$67=\"\",\"\",AT67/$C$67)","v":""},null,{"$f":"IF($C$67=\"\",\"\",AV67/$C$67)","v":""},null,{"$f":"IF($C$67=\"\",\"\",AX67/$C$67)","v":""},null,{"$f":"IF($C$67=\"\",\"\",AZ67/$C$67)","v":""},null,{"$f":"IF($C$67=\"\",\"\",BB67/$C$67)","v":""},null,0]
[3.3,"Historic Architecture"]
["    3.3.1","    Attend meetings with Local \n    Commission/NCDOT Historian/SHPO and \n    summarize (assume up to 3 meetings)",null,null,{"$f":"IF($C$69=\"\",\"\",F69/$C$69)","v":""},null,{"$f":"IF($C$69=\"\",\"\",H69/$C$69)","v":""},null,{"$f":"IF($C$69=\"\",\"\",J69/$C$69)","v":""},null,{"$f":"IF($C$69=\"\",\"\",L69/$C$69)","v":""},null,{"$f":"IF($C$69=\"\",\"\",N69/$C$69)","v":""},null,{"$f":"IF($C$69=\"\",\"\",P69/$C$69)","v":""},null,{"$f":"IF($C$69=\"\",\"\",R69/$C$69)","v":""},null,{"$f":"IF($C$69=\"\",\"\",T69/$C$69)","v":""},null,{"$f":"IF($C$69=\"\",\"\",V69/$C$69)","v":""},null,{"$f":"IF($C$69=\"\",\"\",X69/$C$69)","v":""},null,{"$f":"IF($C$69=\"\",\"\",Z69/$C$69)","v":""},null,{"$f":"IF($C$69=\"\",\"\",AB69/$C$69)","v":""},null,{"$f":"IF($C$69=\"\",\"\",AD69/$C$69)","v":""},null,{"$f":"IF($C$69=\"\",\"\",AF69/$C$69)","v":""},null,{"$f":"IF($C$69=\"\",\"\",AH69/$C$69)","v":""},null,{"$f":"IF($C$69=\"\",\"\",AJ69/$C$69)","v":""},null,{"$f":"IF($C$69=\"\",\"\",AL69/$C$69)","v":""},null,{"$f":"IF($C$69=\"\",\"\",AN69/$C$69)","v":""},null,{"$f":"IF($C$69=\"\",\"\",AP69/$C$69)","v":""},null,{"$f":"IF($C$69=\"\",\"\",AR69/$C$69)","v":""},null,{"$f":"IF($C$69=\"\",\"\",AT69/$C$69)","v":""},null,{"$f":"IF($C$69=\"\",\"\",AV69/$C$69)","v":""},null,{"$f":"IF($C$69=\"\",\"\",AX69/$C$69)","v":""},null,{"$f":"IF($C$69=\"\",\"\",AZ69/$C$69)","v":""},null,{"$f":"IF($C$69=\"\",\"\",BB69/$C$69)","v":""},null,{"$f":"SUM(BB69,AZ69,AX69,AV69,AT69,AR69,AP69,AN69,AL69,AJ69,AH69,AF69,AD69,AB69,Z69,X69,V69,T69,R69,P69,N69,L69,J69,H69,F69)","v":0}]
["    3.3.2","     PA Request Packet (Vicinity Map, PSA Map, \n    Quad Sheet, PA Cultural Resources Screening \n    Checklist)",null,null,{"$f":"IF($C$70=\"\",\"\",F70/$C$70)","v":""},null,{"$f":"IF($C$70=\"\",\"\",H70/$C$70)","v":""},null,{"$f":"IF($C$70=\"\",\"\",J70/$C$70)","v":""},null,{"$f":"IF($C$70=\"\",\"\",L70/$C$70)","v":""},null,{"$f":"IF($C$70=\"\",\"\",N70/$C$70)","v":""},null,{"$f":"IF($C$70=\"\",\"\",P70/$C$70)","v":""},null,{"$f":"IF($C$70=\"\",\"\",R70/$C$70)","v":""},null,{"$f":"IF($C$70=\"\",\"\",T70/$C$70)","v":""},null,{"$f":"IF($C$70=\"\",\"\",V70/$C$70)","v":""},null,{"$f":"IF($C$70=\"\",\"\",X70/$C$70)","v":""},null,{"$f":"IF($C$70=\"\",\"\",Z70/$C$70)","v":""},null,{"$f":"IF($C$70=\"\",\"\",AB70/$C$70)","v":""},null,{"$f":"IF($C$70=\"\",\"\",AD70/$C$70)","v":""},null,{"$f":"IF($C$70=\"\",\"\",AF70/$C$70)","v":""},null,{"$f":"IF($C$70=\"\",\"\",AH70/$C$70)","v":""},null,{"$f":"IF($C$70=\"\",\"\",AJ70/$C$70)","v":""},null,{"$f":"IF($C$70=\"\",\"\",AL70/$C$70)","v":""},null,{"$f":"IF($C$70=\"\",\"\",AN70/$C$70)","v":""},null,{"$f":"IF($C$70=\"\",\"\",AP70/$C$70)","v":""},null,{"$f":"IF($C$70=\"\",\"\",AR70/$C$70)","v":""},null,{"$f":"IF($C$70=\"\",\"\",AT70/$C$70)","v":""},null,{"$f":"IF($C$70=\"\",\"\",AV70/$C$70)","v":""},null,{"$f":"IF($C$70=\"\",\"\",AX70/$C$70)","v":""},null,{"$f":"IF($C$70=\"\",\"\",AZ70/$C$70)","v":""},null,{"$f":"IF($C$70=\"\",\"\",BB70/$C$70)","v":""},null,0]
["    3.3.3","    NCDOT Review of PA Request Packet/Address \n    comments/Submit to \"PA Tracker\"",null,null,{"$f":"IF($C$71=\"\",\"\",F71/$C$71)","v":""},null,{"$f":"IF($C$71=\"\",\"\",H71/$C$71)","v":""},null,{"$f":"IF($C$71=\"\",\"\",J71/$C$71)","v":""},null,{"$f":"IF($C$71=\"\",\"\",L71/$C$71)","v":""},null,{"$f":"IF($C$71=\"\",\"\",N71/$C$71)","v":""},null,{"$f":"IF($C$71=\"\",\"\",P71/$C$71)","v":""},null,{"$f":"IF($C$71=\"\",\"\",R71/$C$71)","v":""},null,{"$f":"IF($C$71=\"\",\"\",T71/$C$71)","v":""},null,{"$f":"IF($C$71=\"\",\"\",V71/$C$71)","v":""},null,{"$f":"IF($C$71=\"\",\"\",X71/$C$71)","v":""},null,{"$f":"IF($C$71=\"\",\"\",Z71/$C$71)","v":""},null,{"$f":"IF($C$71=\"\",\"\",AB71/$C$71)","v":""},null,{"$f":"IF($C$71=\"\",\"\",AD71/$C$71)","v":""},null,{"$f":"IF($C$71=\"\",\"\",AF71/$C$71)","v":""},null,{"$f":"IF($C$71=\"\",\"\",AH71/$C$71)","v":""},null,{"$f":"IF($C$71=\"\",\"\",AJ71/$C$71)","v":""},null,{"$f":"IF($C$71=\"\",\"\",AL71/$C$71)","v":""},null,{"$f":"IF($C$71=\"\",\"\",AN71/$C$71)","v":""},null,{"$f":"IF($C$71=\"\",\"\",AP71/$C$71)","v":""},null,{"$f":"IF($C$71=\"\",\"\",AR71/$C$71)","v":""},null,{"$f":"IF($C$71=\"\",\"\",AT71/$C$71)","v":""},null,{"$f":"IF($C$71=\"\",\"\",AV71/$C$71)","v":""},null,{"$f":"IF($C$71=\"\",\"\",AX71/$C$71)","v":""},null,{"$f":"IF($C$71=\"\",\"\",AZ71/$C$71)","v":""},null,{"$f":"IF($C$71=\"\",\"\",BB71/$C$71)","v":""},null,0]
["    3.3.4","    Coordination/Tabular Summaries of Signal \n    System Work Task",null,null,{"$f":"IF($C$72=\"\",\"\",F72/$C$72)","v":""},null,{"$f":"IF($C$72=\"\",\"\",H72/$C$72)","v":""},null,{"$f":"IF($C$72=\"\",\"\",J72/$C$72)","v":""},null,{"$f":"IF($C$72=\"\",\"\",L72/$C$72)","v":""},null,{"$f":"IF($C$72=\"\",\"\",N72/$C$72)","v":""},null,{"$f":"IF($C$72=\"\",\"\",P72/$C$72)","v":""},null,{"$f":"IF($C$72=\"\",\"\",R72/$C$72)","v":""},null,{"$f":"IF($C$72=\"\",\"\",T72/$C$72)","v":""},null,{"$f":"IF($C$72=\"\",\"\",V72/$C$72)","v":""},null,{"$f":"IF($C$72=\"\",\"\",X72/$C$72)","v":""},null,{"$f":"IF($C$72=\"\",\"\",Z72/$C$72)","v":""},null,{"$f":"IF($C$72=\"\",\"\",AB72/$C$72)","v":""},null,{"$f":"IF($C$72=\"\",\"\",AD72/$C$72)","v":""},null,{"$f":"IF($C$72=\"\",\"\",AF72/$C$72)","v":""},null,{"$f":"IF($C$72=\"\",\"\",AH72/$C$72)","v":""},null,{"$f":"IF($C$72=\"\",\"\",AJ72/$C$72)","v":""},null,{"$f":"IF($C$72=\"\",\"\",AL72/$C$72)","v":""},null,{"$f":"IF($C$72=\"\",\"\",AN72/$C$72)","v":""},null,{"$f":"IF($C$72=\"\",\"\",AP72/$C$72)","v":""},null,{"$f":"IF($C$72=\"\",\"\",AR72/$C$72)","v":""},null,{"$f":"IF($C$72=\"\",\"\",AT72/$C$72)","v":""},null,{"$f":"IF($C$72=\"\",\"\",AV72/$C$72)","v":""},null,{"$f":"IF($C$72=\"\",\"\",AX72/$C$72)","v":""},null,{"$f":"IF($C$72=\"\",\"\",AZ72/$C$72)","v":""},null,{"$f":"IF($C$72=\"\",\"\",BB72/$C$72)","v":""},null,0]
["    3.3.5",null,null,null,{"$f":"IF($C$73=\"\",\"\",F73/$C$73)","v":""},null,{"$f":"IF($C$73=\"\",\"\",H73/$C$73)","v":""},null,{"$f":"IF($C$73=\"\",\"\",J73/$C$73)","v":""},null,{"$f":"IF($C$73=\"\",\"\",L73/$C$73)","v":""},null,{"$f":"IF($C$73=\"\",\"\",N73/$C$73)","v":""},null,{"$f":"IF($C$73=\"\",\"\",P73/$C$73)","v":""},null,{"$f":"IF($C$73=\"\",\"\",R73/$C$73)","v":""},null,{"$f":"IF($C$73=\"\",\"\",T73/$C$73)","v":""},null,{"$f":"IF($C$73=\"\",\"\",V73/$C$73)","v":""},null,{"$f":"IF($C$73=\"\",\"\",X73/$C$73)","v":""},null,{"$f":"IF($C$73=\"\",\"\",Z73/$C$73)","v":""},null,{"$f":"IF($C$73=\"\",\"\",AB73/$C$73)","v":""},null,{"$f":"IF($C$73=\"\",\"\",AD73/$C$73)","v":""},null,{"$f":"IF($C$73=\"\",\"\",AF73/$C$73)","v":""},null,{"$f":"IF($C$73=\"\",\"\",AH73/$C$73)","v":""},null,{"$f":"IF($C$73=\"\",\"\",AJ73/$C$73)","v":""},null,{"$f":"IF($C$73=\"\",\"\",AL73/$C$73)","v":""},null,{"$f":"IF($C$73=\"\",\"\",AN73/$C$73)","v":""},null,{"$f":"IF($C$73=\"\",\"\",AP73/$C$73)","v":""},null,{"$f":"IF($C$73=\"\",\"\",AR73/$C$73)","v":""},null,{"$f":"IF($C$73=\"\",\"\",AT73/$C$73)","v":""},null,{"$f":"IF($C$73=\"\",\"\",AV73/$C$73)","v":""},null,{"$f":"IF($C$73=\"\",\"\",AX73/$C$73)","v":""},null,{"$f":"IF($C$73=\"\",\"\",AZ73/$C$73)","v":""},null,{"$f":"IF($C$73=\"\",\"\",BB73/$C$73)","v":""},null,0]
["    3.3.6",null,null,null,{"$f":"IF($C$74=\"\",\"\",F74/$C$74)","v":""},null,{"$f":"IF($C$74=\"\",\"\",H74/$C$74)","v":""},null,{"$f":"IF($C$74=\"\",\"\",J74/$C$74)","v":""},null,{"$f":"IF($C$74=\"\",\"\",L74/$C$74)","v":""},null,{"$f":"IF($C$74=\"\",\"\",N74/$C$74)","v":""},null,{"$f":"IF($C$74=\"\",\"\",P74/$C$74)","v":""},null,{"$f":"IF($C$74=\"\",\"\",R74/$C$74)","v":""},null,{"$f":"IF($C$74=\"\",\"\",T74/$C$74)","v":""},null,{"$f":"IF($C$74=\"\",\"\",V74/$C$74)","v":""},null,{"$f":"IF($C$74=\"\",\"\",X74/$C$74)","v":""},null,{"$f":"IF($C$74=\"\",\"\",Z74/$C$74)","v":""},null,{"$f":"IF($C$74=\"\",\"\",AB74/$C$74)","v":""},null,{"$f":"IF($C$74=\"\",\"\",AD74/$C$74)","v":""},null,{"$f":"IF($C$74=\"\",\"\",AF74/$C$74)","v":""},null,{"$f":"IF($C$74=\"\",\"\",AH74/$C$74)","v":""},null,{"$f":"IF($C$74=\"\",\"\",AJ74/$C$74)","v":""},null,{"$f":"IF($C$74=\"\",\"\",AL74/$C$74)","v":""},null,{"$f":"IF($C$74=\"\",\"\",AN74/$C$74)","v":""},null,{"$f":"IF($C$74=\"\",\"\",AP74/$C$74)","v":""},null,{"$f":"IF($C$74=\"\",\"\",AR74/$C$74)","v":""},null,{"$f":"IF($C$74=\"\",\"\",AT74/$C$74)","v":""},null,{"$f":"IF($C$74=\"\",\"\",AV74/$C$74)","v":""},null,{"$f":"IF($C$74=\"\",\"\",AX74/$C$74)","v":""},null,{"$f":"IF($C$74=\"\",\"\",AZ74/$C$74)","v":""},null,{"$f":"IF($C$74=\"\",\"\",BB74/$C$74)","v":""},null,0]
["    3.3.7",null,null,null,{"$f":"IF($C$75=\"\",\"\",F75/$C$75)","v":""},null,{"$f":"IF($C$75=\"\",\"\",H75/$C$75)","v":""},null,{"$f":"IF($C$75=\"\",\"\",J75/$C$75)","v":""},null,{"$f":"IF($C$75=\"\",\"\",L75/$C$75)","v":""},null,{"$f":"IF($C$75=\"\",\"\",N75/$C$75)","v":""},null,{"$f":"IF($C$75=\"\",\"\",P75/$C$75)","v":""},null,{"$f":"IF($C$75=\"\",\"\",R75/$C$75)","v":""},null,{"$f":"IF($C$75=\"\",\"\",T75/$C$75)","v":""},null,{"$f":"IF($C$75=\"\",\"\",V75/$C$75)","v":""},null,{"$f":"IF($C$75=\"\",\"\",X75/$C$75)","v":""},null,{"$f":"IF($C$75=\"\",\"\",Z75/$C$75)","v":""},null,{"$f":"IF($C$75=\"\",\"\",AB75/$C$75)","v":""},null,{"$f":"IF($C$75=\"\",\"\",AD75/$C$75)","v":""},null,{"$f":"IF($C$75=\"\",\"\",AF75/$C$75)","v":""},null,{"$f":"IF($C$75=\"\",\"\",AH75/$C$75)","v":""},null,{"$f":"IF($C$75=\"\",\"\",AJ75/$C$75)","v":""},null,{"$f":"IF($C$75=\"\",\"\",AL75/$C$75)","v":""},null,{"$f":"IF($C$75=\"\",\"\",AN75/$C$75)","v":""},null,{"$f":"IF($C$75=\"\",\"\",AP75/$C$75)","v":""},null,{"$f":"IF($C$75=\"\",\"\",AR75/$C$75)","v":""},null,{"$f":"IF($C$75=\"\",\"\",AT75/$C$75)","v":""},null,{"$f":"IF($C$75=\"\",\"\",AV75/$C$75)","v":""},null,{"$f":"IF($C$75=\"\",\"\",AX75/$C$75)","v":""},null,{"$f":"IF($C$75=\"\",\"\",AZ75/$C$75)","v":""},null,{"$f":"IF($C$75=\"\",\"\",BB75/$C$75)","v":""},null,0]
[3.4,"Noise Impacts / Air Quality",null,null,{"$f":"IF($C$76=\"\",\"\",F76/$C$76)","v":""},null,{"$f":"IF($C$76=\"\",\"\",H76/$C$76)","v":""},null,{"$f":"IF($C$76=\"\",\"\",J76/$C$76)","v":""},null,{"$f":"IF($C$76=\"\",\"\",L76/$C$76)","v":""},null,{"$f":"IF($C$76=\"\",\"\",N76/$C$76)","v":""},null,{"$f":"IF($C$76=\"\",\"\",P76/$C$76)","v":""},null,{"$f":"IF($C$76=\"\",\"\",R76/$C$76)","v":""},null,{"$f":"IF($C$76=\"\",\"\",T76/$C$76)","v":""},null,{"$f":"IF($C$76=\"\",\"\",V76/$C$76)","v":""},null,{"$f":"IF($C$76=\"\",\"\",X76/$C$76)","v":""},null,{"$f":"IF($C$76=\"\",\"\",Z76/$C$76)","v":""},null,{"$f":"IF($C$76=\"\",\"\",AB76/$C$76)","v":""},null,{"$f":"IF($C$76=\"\",\"\",AD76/$C$76)","v":""},null,{"$f":"IF($C$76=\"\",\"\",AF76/$C$76)","v":""},null,{"$f":"IF($C$76=\"\",\"\",AH76/$C$76)","v":""},null,{"$f":"IF($C$76=\"\",\"\",AJ76/$C$76)","v":""},null,{"$f":"IF($C$76=\"\",\"\",AL76/$C$76)","v":""},null,{"$f":"IF($C$76=\"\",\"\",AN76/$C$76)","v":""},null,{"$f":"IF($C$76=\"\",\"\",AP76/$C$76)","v":""},null,{"$f":"IF($C$76=\"\",\"\",AR76/$C$76)","v":""},null,{"$f":"IF($C$76=\"\",\"\",AT76/$C$76)","v":""},null,{"$f":"IF($C$76=\"\",\"\",AV76/$C$76)","v":""},null,{"$f":"IF($C$76=\"\",\"\",AX76/$C$76)","v":""},null,{"$f":"IF($C$76=\"\",\"\",AZ76/$C$76)","v":""},null,{"$f":"IF($C$76=\"\",\"\",BB76/$C$76)","v":""},null,0]
[3.5,"Community Studies"]
["    3.5.1","    Obtain GIS Data Sets (minority, low income, \n    LEP)/create census demographic tables",null,null,{"$f":"IF($C$78=\"\",\"\",F78/$C$78)","v":""},null,{"$f":"IF($C$78=\"\",\"\",H78/$C$78)","v":""},null,{"$f":"IF($C$78=\"\",\"\",J78/$C$78)","v":""},null,{"$f":"IF($C$78=\"\",\"\",L78/$C$78)","v":""},null,{"$f":"IF($C$78=\"\",\"\",N78/$C$78)","v":""},null,{"$f":"IF($C$78=\"\",\"\",P78/$C$78)","v":""},null,{"$f":"IF($C$78=\"\",\"\",R78/$C$78)","v":""},null,{"$f":"IF($C$78=\"\",\"\",T78/$C$78)","v":""},null,{"$f":"IF($C$78=\"\",\"\",V78/$C$78)","v":""},null,{"$f":"IF($C$78=\"\",\"\",X78/$C$78)","v":""},null,{"$f":"IF($C$78=\"\",\"\",Z78/$C$78)","v":""},null,{"$f":"IF($C$78=\"\",\"\",AB78/$C$78)","v":""},null,{"$f":"IF($C$78=\"\",\"\",AD78/$C$78)","v":""},null,{"$f":"IF($C$78=\"\",\"\",AF78/$C$78)","v":""},null,{"$f":"IF($C$78=\"\",\"\",AH78/$C$78)","v":""},null,{"$f":"IF($C$78=\"\",\"\",AJ78/$C$78)","v":""},null,{"$f":"IF($C$78=\"\",\"\",AL78/$C$78)","v":""},null,{"$f":"IF($C$78=\"\",\"\",AN78/$C$78)","v":""},null,{"$f":"IF($C$78=\"\",\"\",AP78/$C$78)","v":""},null,{"$f":"IF($C$78=\"\",\"\",AR78/$C$78)","v":""},null,{"$f":"IF($C$78=\"\",\"\",AT78/$C$78)","v":""},null,{"$f":"IF($C$78=\"\",\"\",AV78/$C$78)","v":""},null,{"$f":"IF($C$78=\"\",\"\",AX78/$C$78)","v":""},null,{"$f":"IF($C$78=\"\",\"\",AZ78/$C$78)","v":""},null,{"$f":"IF($C$78=\"\",\"\",BB78/$C$78)","v":""},null,{"$f":"SUM(BB78,AZ78,AX78,AV78,AT78,AR78,AP78,AN78,AL78,AJ78,AH78,AF78,AD78,AB78,Z78,X78,V78,T78,R78,P78,N78,L78,J78,H78,F78)","v":0}]
["    3.5.2","    Q/C tables",null,null,{"$f":"IF($C$79=\"\",\"\",F79/$C$79)","v":""},null,{"$f":"IF($C$79=\"\",\"\",H79/$C$79)","v":""},null,{"$f":"IF($C$79=\"\",\"\",J79/$C$79)","v":""},null,{"$f":"IF($C$79=\"\",\"\",L79/$C$79)","v":""},null,{"$f":"IF($C$79=\"\",\"\",N79/$C$79)","v":""},null,{"$f":"IF($C$79=\"\",\"\",P79/$C$79)","v":""},null,{"$f":"IF($C$79=\"\",\"\",R79/$C$79)","v":""},null,{"$f":"IF($C$79=\"\",\"\",T79/$C$79)","v":""},null,{"$f":"IF($C$79=\"\",\"\",V79/$C$79)","v":""},null,{"$f":"IF($C$79=\"\",\"\",X79/$C$79)","v":""},null,{"$f":"IF($C$79=\"\",\"\",Z79/$C$79)","v":""},null,{"$f":"IF($C$79=\"\",\"\",AB79/$C$79)","v":""},null,{"$f":"IF($C$79=\"\",\"\",AD79/$C$79)","v":""},null,{"$f":"IF($C$79=\"\",\"\",AF79/$C$79)","v":""},null,{"$f":"IF($C$79=\"\",\"\",AH79/$C$79)","v":""},null,{"$f":"IF($C$79=\"\",\"\",AJ79/$C$79)","v":""},null,{"$f":"IF($C$79=\"\",\"\",AL79/$C$79)","v":""},null,{"$f":"IF($C$79=\"\",\"\",AN79/$C$79)","v":""},null,{"$f":"IF($C$79=\"\",\"\",AP79/$C$79)","v":""},null,{"$f":"IF($C$79=\"\",\"\",AR79/$C$79)","v":""},null,{"$f":"IF($C$79=\"\",\"\",AT79/$C$79)","v":""},null,{"$f":"IF($C$79=\"\",\"\",AV79/$C$79)","v":""},null,{"$f":"IF($C$79=\"\",\"\",AX79/$C$79)","v":""},null,{"$f":"IF($C$79=\"\",\"\",AZ79/$C$79)","v":""},null,{"$f":"IF($C$79=\"\",\"\",BB79/$C$79)","v":""},null,0]
["    3.5.3","    Develop mapping of DSA",null,null,{"$f":"IF($C$80=\"\",\"\",F80/$C$80)","v":""},null,{"$f":"IF($C$80=\"\",\"\",H80/$C$80)","v":""},null,{"$f":"IF($C$80=\"\",\"\",J80/$C$80)","v":""},null,{"$f":"IF($C$80=\"\",\"\",L80/$C$80)","v":""},null,{"$f":"IF($C$80=\"\",\"\",N80/$C$80)","v":""},null,{"$f":"IF($C$80=\"\",\"\",P80/$C$80)","v":""},null,{"$f":"IF($C$80=\"\",\"\",R80/$C$80)","v":""},null,{"$f":"IF($C$80=\"\",\"\",T80/$C$80)","v":""},null,{"$f":"IF($C$80=\"\",\"\",V80/$C$80)","v":""},null,{"$f":"IF($C$80=\"\",\"\",X80/$C$80)","v":""},null,{"$f":"IF($C$80=\"\",\"\",Z80/$C$80)","v":""},null,{"$f":"IF($C$80=\"\",\"\",AB80/$C$80)","v":""},null,{"$f":"IF($C$80=\"\",\"\",AD80/$C$80)","v":""},null,{"$f":"IF($C$80=\"\",\"\",AF80/$C$80)","v":""},null,{"$f":"IF($C$80=\"\",\"\",AH80/$C$80)","v":""},null,{"$f":"IF($C$80=\"\",\"\",AJ80/$C$80)","v":""},null,{"$f":"IF($C$80=\"\",\"\",AL80/$C$80)","v":""},null,{"$f":"IF($C$80=\"\",\"\",AN80/$C$80)","v":""},null,{"$f":"IF($C$80=\"\",\"\",AP80/$C$80)","v":""},null,{"$f":"IF($C$80=\"\",\"\",AR80/$C$80)","v":""},null,{"$f":"IF($C$80=\"\",\"\",AT80/$C$80)","v":""},null,{"$f":"IF($C$80=\"\",\"\",AV80/$C$80)","v":""},null,{"$f":"IF($C$80=\"\",\"\",AX80/$C$80)","v":""},null,{"$f":"IF($C$80=\"\",\"\",AZ80/$C$80)","v":""},null,{"$f":"IF($C$80=\"\",\"\",BB80/$C$80)","v":""},null,0]
["    3.5.4","    Assess potential for community impacts",null,null,{"$f":"IF($C$81=\"\",\"\",F81/$C$81)","v":""},null,{"$f":"IF($C$81=\"\",\"\",H81/$C$81)","v":""},null,{"$f":"IF($C$81=\"\",\"\",J81/$C$81)","v":""},null,{"$f":"IF($C$81=\"\",\"\",L81/$C$81)","v":""},null,{"$f":"IF($C$81=\"\",\"\",N81/$C$81)","v":""},null,{"$f":"IF($C$81=\"\",\"\",P81/$C$81)","v":""},null,{"$f":"IF($C$81=\"\",\"\",R81/$C$81)","v":""},null,{"$f":"IF($C$81=\"\",\"\",T81/$C$81)","v":""},null,{"$f":"IF($C$81=\"\",\"\",V81/$C$81)","v":""},null,{"$f":"IF($C$81=\"\",\"\",X81/$C$81)","v":""},null,{"$f":"IF($C$81=\"\",\"\",Z81/$C$81)","v":""},null,{"$f":"IF($C$81=\"\",\"\",AB81/$C$81)","v":""},null,{"$f":"IF($C$81=\"\",\"\",AD81/$C$81)","v":""},null,{"$f":"IF($C$81=\"\",\"\",AF81/$C$81)","v":""},null,{"$f":"IF($C$81=\"\",\"\",AH81/$C$81)","v":""},null,{"$f":"IF($C$81=\"\",\"\",AJ81/$C$81)","v":""},null,{"$f":"IF($C$81=\"\",\"\",AL81/$C$81)","v":""},null,{"$f":"IF($C$81=\"\",\"\",AN81/$C$81)","v":""},null,{"$f":"IF($C$81=\"\",\"\",AP81/$C$81)","v":""},null,{"$f":"IF($C$81=\"\",\"\",AR81/$C$81)","v":""},null,{"$f":"IF($C$81=\"\",\"\",AT81/$C$81)","v":""},null,{"$f":"IF($C$81=\"\",\"\",AV81/$C$81)","v":""},null,{"$f":"IF($C$81=\"\",\"\",AX81/$C$81)","v":""},null,{"$f":"IF($C$81=\"\",\"\",AZ81/$C$81)","v":""},null,{"$f":"IF($C$81=\"\",\"\",BB81/$C$81)","v":""},null,0]
["    3.5.5","    Document findings in memo/Submit to     \n    NCDOT/Address Comments/Finalize",null,null,{"$f":"IF($C$82=\"\",\"\",F82/$C$82)","v":""},null,{"$f":"IF($C$82=\"\",\"\",H82/$C$82)","v":""},null,{"$f":"IF($C$82=\"\",\"\",J82/$C$82)","v":""},null,{"$f":"IF($C$82=\"\",\"\",L82/$C$82)","v":""},null,{"$f":"IF($C$82=\"\",\"\",N82/$C$82)","v":""},null,{"$f":"IF($C$82=\"\",\"\",P82/$C$82)","v":""},null,{"$f":"IF($C$82=\"\",\"\",R82/$C$82)","v":""},null,{"$f":"IF($C$82=\"\",\"\",T82/$C$82)","v":""},null,{"$f":"IF($C$82=\"\",\"\",V82/$C$82)","v":""},null,{"$f":"IF($C$82=\"\",\"\",X82/$C$82)","v":""},null,{"$f":"IF($C$82=\"\",\"\",Z82/$C$82)","v":""},null,{"$f":"IF($C$82=\"\",\"\",AB82/$C$82)","v":""},null,{"$f":"IF($C$82=\"\",\"\",AD82/$C$82)","v":""},null,{"$f":"IF($C$82=\"\",\"\",AF82/$C$82)","v":""},null,{"$f":"IF($C$82=\"\",\"\",AH82/$C$82)","v":""},null,{"$f":"IF($C$82=\"\",\"\",AJ82/$C$82)","v":""},null,{"$f":"IF($C$82=\"\",\"\",AL82/$C$82)","v":""},null,{"$f":"IF($C$82=\"\",\"\",AN82/$C$82)","v":""},null,{"$f":"IF($C$82=\"\",\"\",AP82/$C$82)","v":""},null,{"$f":"IF($C$82=\"\",\"\",AR82/$C$82)","v":""},null,{"$f":"IF($C$82=\"\",\"\",AT82/$C$82)","v":""},null,{"$f":"IF($C$82=\"\",\"\",AV82/$C$82)","v":""},null,{"$f":"IF($C$82=\"\",\"\",AX82/$C$82)","v":""},null,{"$f":"IF($C$82=\"\",\"\",AZ82/$C$82)","v":""},null,{"$f":"IF($C$82=\"\",\"\",BB82/$C$82)","v":""},null,0]
["    3.5.6","    Review project/environmental mapping for \n    Section 4(f)/6(f) properties",null,null,{"$f":"IF($C$83=\"\",\"\",F83/$C$83)","v":""},null,{"$f":"IF($C$83=\"\",\"\",H83/$C$83)","v":""},null,{"$f":"IF($C$83=\"\",\"\",J83/$C$83)","v":""},null,{"$f":"IF($C$83=\"\",\"\",L83/$C$83)","v":""},null,{"$f":"IF($C$83=\"\",\"\",N83/$C$83)","v":""},null,{"$f":"IF($C$83=\"\",\"\",P83/$C$83)","v":""},null,{"$f":"IF($C$83=\"\",\"\",R83/$C$83)","v":""},null,{"$f":"IF($C$83=\"\",\"\",T83/$C$83)","v":""},null,{"$f":"IF($C$83=\"\",\"\",V83/$C$83)","v":""},null,{"$f":"IF($C$83=\"\",\"\",X83/$C$83)","v":""},null,{"$f":"IF($C$83=\"\",\"\",Z83/$C$83)","v":""},null,{"$f":"IF($C$83=\"\",\"\",AB83/$C$83)","v":""},null,{"$f":"IF($C$83=\"\",\"\",AD83/$C$83)","v":""},null,{"$f":"IF($C$83=\"\",\"\",AF83/$C$83)","v":""},null,{"$f":"IF($C$83=\"\",\"\",AH83/$C$83)","v":""},null,{"$f":"IF($C$83=\"\",\"\",AJ83/$C$83)","v":""},null,{"$f":"IF($C$83=\"\",\"\",AL83/$C$83)","v":""},null,{"$f":"IF($C$83=\"\",\"\",AN83/$C$83)","v":""},null,{"$f":"IF($C$83=\"\",\"\",AP83/$C$83)","v":""},null,{"$f":"IF($C$83=\"\",\"\",AR83/$C$83)","v":""},null,{"$f":"IF($C$83=\"\",\"\",AT83/$C$83)","v":""},null,{"$f":"IF($C$83=\"\",\"\",AV83/$C$83)","v":""},null,{"$f":"IF($C$83=\"\",\"\",AX83/$C$83)","v":""},null,{"$f":"IF($C$83=\"\",\"\",AZ83/$C$83)","v":""},null,{"$f":"IF($C$83=\"\",\"\",BB83/$C$83)","v":""},null,0]
["    3.5.7","    Hold meetings with County Parks and \n    Recreation and summarize ",null,null,{"$f":"IF($C$84=\"\",\"\",F84/$C$84)","v":""},null,{"$f":"IF($C$84=\"\",\"\",H84/$C$84)","v":""},null,{"$f":"IF($C$84=\"\",\"\",J84/$C$84)","v":""},null,{"$f":"IF($C$84=\"\",\"\",L84/$C$84)","v":""},null,{"$f":"IF($C$84=\"\",\"\",N84/$C$84)","v":""},null,{"$f":"IF($C$84=\"\",\"\",P84/$C$84)","v":""},null,{"$f":"IF($C$84=\"\",\"\",R84/$C$84)","v":""},null,{"$f":"IF($C$84=\"\",\"\",T84/$C$84)","v":""},null,{"$f":"IF($C$84=\"\",\"\",V84/$C$84)","v":""},null,{"$f":"IF($C$84=\"\",\"\",X84/$C$84)","v":""},null,{"$f":"IF($C$84=\"\",\"\",Z84/$C$84)","v":""},null,{"$f":"IF($C$84=\"\",\"\",AB84/$C$84)","v":""},null,{"$f":"IF($C$84=\"\",\"\",AD84/$C$84)","v":""},null,{"$f":"IF($C$84=\"\",\"\",AF84/$C$84)","v":""},null,{"$f":"IF($C$84=\"\",\"\",AH84/$C$84)","v":""},null,{"$f":"IF($C$84=\"\",\"\",AJ84/$C$84)","v":""},null,{"$f":"IF($C$84=\"\",\"\",AL84/$C$84)","v":""},null,{"$f":"IF($C$84=\"\",\"\",AN84/$C$84)","v":""},null,{"$f":"IF($C$84=\"\",\"\",AP84/$C$84)","v":""},null,{"$f":"IF($C$84=\"\",\"\",AR84/$C$84)","v":""},null,{"$f":"IF($C$84=\"\",\"\",AT84/$C$84)","v":""},null,{"$f":"IF($C$84=\"\",\"\",AV84/$C$84)","v":""},null,{"$f":"IF($C$84=\"\",\"\",AX84/$C$84)","v":""},null,{"$f":"IF($C$84=\"\",\"\",AZ84/$C$84)","v":""},null,{"$f":"IF($C$84=\"\",\"\",BB84/$C$84)","v":""},null,0]
["    3.5.8",null,null,null,{"$f":"IF($C$85=\"\",\"\",F85/$C$85)","v":""},null,{"$f":"IF($C$85=\"\",\"\",H85/$C$85)","v":""},null,{"$f":"IF($C$85=\"\",\"\",J85/$C$85)","v":""},null,{"$f":"IF($C$85=\"\",\"\",L85/$C$85)","v":""},null,{"$f":"IF($C$85=\"\",\"\",N85/$C$85)","v":""},null,{"$f":"IF($C$85=\"\",\"\",P85/$C$85)","v":""},null,{"$f":"IF($C$85=\"\",\"\",R85/$C$85)","v":""},null,{"$f":"IF($C$85=\"\",\"\",T85/$C$85)","v":""},null,{"$f":"IF($C$85=\"\",\"\",V85/$C$85)","v":""},null,{"$f":"IF($C$85=\"\",\"\",X85/$C$85)","v":""},null,{"$f":"IF($C$85=\"\",\"\",Z85/$C$85)","v":""},null,{"$f":"IF($C$85=\"\",\"\",AB85/$C$85)","v":""},null,{"$f":"IF($C$85=\"\",\"\",AD85/$C$85)","v":""},null,{"$f":"IF($C$85=\"\",\"\",AF85/$C$85)","v":""},null,{"$f":"IF($C$85=\"\",\"\",AH85/$C$85)","v":""},null,{"$f":"IF($C$85=\"\",\"\",AJ85/$C$85)","v":""},null,{"$f":"IF($C$85=\"\",\"\",AL85/$C$85)","v":""},null,{"$f":"IF($C$85=\"\",\"\",AN85/$C$85)","v":""},null,{"$f":"IF($C$85=\"\",\"\",AP85/$C$85)","v":""},null,{"$f":"IF($C$85=\"\",\"\",AR85/$C$85)","v":""},null,{"$f":"IF($C$85=\"\",\"\",AT85/$C$85)","v":""},null,{"$f":"IF($C$85=\"\",\"\",AV85/$C$85)","v":""},null,{"$f":"IF($C$85=\"\",\"\",AX85/$C$85)","v":""},null,{"$f":"IF($C$85=\"\",\"\",AZ85/$C$85)","v":""},null,{"$f":"IF($C$85=\"\",\"\",BB85/$C$85)","v":""},null,0]
["    3.5.9",null,null,null,{"$f":"IF($C$86=\"\",\"\",F86/$C$86)","v":""},null,{"$f":"IF($C$86=\"\",\"\",H86/$C$86)","v":""},null,{"$f":"IF($C$86=\"\",\"\",J86/$C$86)","v":""},null,{"$f":"IF($C$86=\"\",\"\",L86/$C$86)","v":""},null,{"$f":"IF($C$86=\"\",\"\",N86/$C$86)","v":""},null,{"$f":"IF($C$86=\"\",\"\",P86/$C$86)","v":""},null,{"$f":"IF($C$86=\"\",\"\",R86/$C$86)","v":""},null,{"$f":"IF($C$86=\"\",\"\",T86/$C$86)","v":""},null,{"$f":"IF($C$86=\"\",\"\",V86/$C$86)","v":""},null,{"$f":"IF($C$86=\"\",\"\",X86/$C$86)","v":""},null,{"$f":"IF($C$86=\"\",\"\",Z86/$C$86)","v":""},null,{"$f":"IF($C$86=\"\",\"\",AB86/$C$86)","v":""},null,{"$f":"IF($C$86=\"\",\"\",AD86/$C$86)","v":""},null,{"$f":"IF($C$86=\"\",\"\",AF86/$C$86)","v":""},null,{"$f":"IF($C$86=\"\",\"\",AH86/$C$86)","v":""},null,{"$f":"IF($C$86=\"\",\"\",AJ86/$C$86)","v":""},null,{"$f":"IF($C$86=\"\",\"\",AL86/$C$86)","v":""},null,{"$f":"IF($C$86=\"\",\"\",AN86/$C$86)","v":""},null,{"$f":"IF($C$86=\"\",\"\",AP86/$C$86)","v":""},null,{"$f":"IF($C$86=\"\",\"\",AR86/$C$86)","v":""},null,{"$f":"IF($C$86=\"\",\"\",AT86/$C$86)","v":""},null,{"$f":"IF($C$86=\"\",\"\",AV86/$C$86)","v":""},null,{"$f":"IF($C$86=\"\",\"\",AX86/$C$86)","v":""},null,{"$f":"IF($C$86=\"\",\"\",AZ86/$C$86)","v":""},null,{"$f":"IF($C$86=\"\",\"\",BB86/$C$86)","v":""},null,0]
["    3.5.10",null,null,null,{"$f":"IF($C$87=\"\",\"\",F87/$C$87)","v":""},null,{"$f":"IF($C$87=\"\",\"\",H87/$C$87)","v":""},null,{"$f":"IF($C$87=\"\",\"\",J87/$C$87)","v":""},null,{"$f":"IF($C$87=\"\",\"\",L87/$C$87)","v":""},null,{"$f":"IF($C$87=\"\",\"\",N87/$C$87)","v":""},null,{"$f":"IF($C$87=\"\",\"\",P87/$C$87)","v":""},null,{"$f":"IF($C$87=\"\",\"\",R87/$C$87)","v":""},null,{"$f":"IF($C$87=\"\",\"\",T87/$C$87)","v":""},null,{"$f":"IF($C$87=\"\",\"\",V87/$C$87)","v":""},null,{"$f":"IF($C$87=\"\",\"\",X87/$C$87)","v":""},null,{"$f":"IF($C$87=\"\",\"\",Z87/$C$87)","v":""},null,{"$f":"IF($C$87=\"\",\"\",AB87/$C$87)","v":""},null,{"$f":"IF($C$87=\"\",\"\",AD87/$C$87)","v":""},null,{"$f":"IF($C$87=\"\",\"\",AF87/$C$87)","v":""},null,{"$f":"IF($C$87=\"\",\"\",AH87/$C$87)","v":""},null,{"$f":"IF($C$87=\"\",\"\",AJ87/$C$87)","v":""},null,{"$f":"IF($C$87=\"\",\"\",AL87/$C$87)","v":""},null,{"$f":"IF($C$87=\"\",\"\",AN87/$C$87)","v":""},null,{"$f":"IF($C$87=\"\",\"\",AP87/$C$87)","v":""},null,{"$f":"IF($C$87=\"\",\"\",AR87/$C$87)","v":""},null,{"$f":"IF($C$87=\"\",\"\",AT87/$C$87)","v":""},null,{"$f":"IF($C$87=\"\",\"\",AV87/$C$87)","v":""},null,{"$f":"IF($C$87=\"\",\"\",AX87/$C$87)","v":""},null,{"$f":"IF($C$87=\"\",\"\",AZ87/$C$87)","v":""},null,{"$f":"IF($C$87=\"\",\"\",BB87/$C$87)","v":""},null,0]
[3.6,"Hazardous Materials"]
["    3.6.1","    Coordinate with GeoEnvironmental Unit for \n    requirements/Prepare Memo ",null,null,{"$f":"IF($C$89=\"\",\"\",F89/$C$89)","v":""},null,{"$f":"IF($C$89=\"\",\"\",H89/$C$89)","v":""},null,{"$f":"IF($C$89=\"\",\"\",J89/$C$89)","v":""},null,{"$f":"IF($C$89=\"\",\"\",L89/$C$89)","v":""},null,{"$f":"IF($C$89=\"\",\"\",N89/$C$89)","v":""},null,{"$f":"IF($C$89=\"\",\"\",P89/$C$89)","v":""},null,{"$f":"IF($C$89=\"\",\"\",R89/$C$89)","v":""},null,{"$f":"IF($C$89=\"\",\"\",T89/$C$89)","v":""},null,{"$f":"IF($C$89=\"\",\"\",V89/$C$89)","v":""},null,{"$f":"IF($C$89=\"\",\"\",X89/$C$89)","v":""},null,{"$f":"IF($C$89=\"\",\"\",Z89/$C$89)","v":""},null,{"$f":"IF($C$89=\"\",\"\",AB89/$C$89)","v":""},null,{"$f":"IF($C$89=\"\",\"\",AD89/$C$89)","v":""},null,{"$f":"IF($C$89=\"\",\"\",AF89/$C$89)","v":""},null,{"$f":"IF($C$89=\"\",\"\",AH89/$C$89)","v":""},null,{"$f":"IF($C$89=\"\",\"\",AJ89/$C$89)","v":""},null,{"$f":"IF($C$89=\"\",\"\",AL89/$C$89)","v":""},null,{"$f":"IF($C$89=\"\",\"\",AN89/$C$89)","v":""},null,{"$f":"IF($C$89=\"\",\"\",AP89/$C$89)","v":""},null,{"$f":"IF($C$89=\"\",\"\",AR89/$C$89)","v":""},null,{"$f":"IF($C$89=\"\",\"\",AT89/$C$89)","v":""},null,{"$f":"IF($C$89=\"\",\"\",AV89/$C$89)","v":""},null,{"$f":"IF($C$89=\"\",\"\",AX89/$C$89)","v":""},null,{"$f":"IF($C$89=\"\",\"\",AZ89/$C$89)","v":""},null,{"$f":"IF($C$89=\"\",\"\",BB89/$C$89)","v":""},null,{"$f":"SUM(BB89,AZ89,AX89,AV89,AT89,AR89,AP89,AN89,AL89,AJ89,AH89,AF89,AD89,AB89,Z89,X89,V89,T89,R89,P89,N89,L89,J89,H89,F89)","v":0}]
["    3.6.2",null,null,null,{"$f":"IF($C$90=\"\",\"\",F90/$C$90)","v":""},null,{"$f":"IF($C$90=\"\",\"\",H90/$C$90)","v":""},null,{"$f":"IF($C$90=\"\",\"\",J90/$C$90)","v":""},null,{"$f":"IF($C$90=\"\",\"\",L90/$C$90)","v":""},null,{"$f":"IF($C$90=\"\",\"\",N90/$C$90)","v":""},null,{"$f":"IF($C$90=\"\",\"\",P90/$C$90)","v":""},null,{"$f":"IF($C$90=\"\",\"\",R90/$C$90)","v":""},null,{"$f":"IF($C$90=\"\",\"\",T90/$C$90)","v":""},null,{"$f":"IF($C$90=\"\",\"\",V90/$C$90)","v":""},null,{"$f":"IF($C$90=\"\",\"\",X90/$C$90)","v":""},null,{"$f":"IF($C$90=\"\",\"\",Z90/$C$90)","v":""},null,{"$f":"IF($C$90=\"\",\"\",AB90/$C$90)","v":""},null,{"$f":"IF($C$90=\"\",\"\",AD90/$C$90)","v":""},null,{"$f":"IF($C$90=\"\",\"\",AF90/$C$90)","v":""},null,{"$f":"IF($C$90=\"\",\"\",AH90/$C$90)","v":""},null,{"$f":"IF($C$90=\"\",\"\",AJ90/$C$90)","v":""},null,{"$f":"IF($C$90=\"\",\"\",AL90/$C$90)","v":""},null,{"$f":"IF($C$90=\"\",\"\",AN90/$C$90)","v":""},null,{"$f":"IF($C$90=\"\",\"\",AP90/$C$90)","v":""},null,{"$f":"IF($C$90=\"\",\"\",AR90/$C$90)","v":""},null,{"$f":"IF($C$90=\"\",\"\",AT90/$C$90)","v":""},null,{"$f":"IF($C$90=\"\",\"\",AV90/$C$90)","v":""},null,{"$f":"IF($C$90=\"\",\"\",AX90/$C$90)","v":""},null,{"$f":"IF($C$90=\"\",\"\",AZ90/$C$90)","v":""},null,{"$f":"IF($C$90=\"\",\"\",BB90/$C$90)","v":""},null,0]
["    3.6.3",null,null,null,{"$f":"IF($C$91=\"\",\"\",F91/$C$91)","v":""},null,{"$f":"IF($C$91=\"\",\"\",H91/$C$91)","v":""},null,{"$f":"IF($C$91=\"\",\"\",J91/$C$91)","v":""},null,{"$f":"IF($C$91=\"\",\"\",L91/$C$91)","v":""},null,{"$f":"IF($C$91=\"\",\"\",N91/$C$91)","v":""},null,{"$f":"IF($C$91=\"\",\"\",P91/$C$91)","v":""},null,{"$f":"IF($C$91=\"\",\"\",R91/$C$91)","v":""},null,{"$f":"IF($C$91=\"\",\"\",T91/$C$91)","v":""},null,{"$f":"IF($C$91=\"\",\"\",V91/$C$91)","v":""},null,{"$f":"IF($C$91=\"\",\"\",X91/$C$91)","v":""},null,{"$f":"IF($C$91=\"\",\"\",Z91/$C$91)","v":""},null,{"$f":"IF($C$91=\"\",\"\",AB91/$C$91)","v":""},null,{"$f":"IF($C$91=\"\",\"\",AD91/$C$91)","v":""},null,{"$f":"IF($C$91=\"\",\"\",AF91/$C$91)","v":""},null,{"$f":"IF($C$91=\"\",\"\",AH91/$C$91)","v":""},null,{"$f":"IF($C$91=\"\",\"\",AJ91/$C$91)","v":""},null,{"$f":"IF($C$91=\"\",\"\",AL91/$C$91)","v":""},null,{"$f":"IF($C$91=\"\",\"\",AN91/$C$91)","v":""},null,{"$f":"IF($C$91=\"\",\"\",AP91/$C$91)","v":""},null,{"$f":"IF($C$91=\"\",\"\",AR91/$C$91)","v":""},null,{"$f":"IF($C$91=\"\",\"\",AT91/$C$91)","v":""},null,{"$f":"IF($C$91=\"\",\"\",AV91/$C$91)","v":""},null,{"$f":"IF($C$91=\"\",\"\",AX91/$C$91)","v":""},null,{"$f":"IF($C$91=\"\",\"\",AZ91/$C$91)","v":""},null,{"$f":"IF($C$91=\"\",\"\",BB91/$C$91)","v":""},null,0]
["    3.6.4",null,null,null,{"$f":"IF($C$92=\"\",\"\",F92/$C$92)","v":""},null,{"$f":"IF($C$92=\"\",\"\",H92/$C$92)","v":""},null,{"$f":"IF($C$92=\"\",\"\",J92/$C$92)","v":""},null,{"$f":"IF($C$92=\"\",\"\",L92/$C$92)","v":""},null,{"$f":"IF($C$92=\"\",\"\",N92/$C$92)","v":""},null,{"$f":"IF($C$92=\"\",\"\",P92/$C$92)","v":""},null,{"$f":"IF($C$92=\"\",\"\",R92/$C$92)","v":""},null,{"$f":"IF($C$92=\"\",\"\",T92/$C$92)","v":""},null,{"$f":"IF($C$92=\"\",\"\",V92/$C$92)","v":""},null,{"$f":"IF($C$92=\"\",\"\",X92/$C$92)","v":""},null,{"$f":"IF($C$92=\"\",\"\",Z92/$C$92)","v":""},null,{"$f":"IF($C$92=\"\",\"\",AB92/$C$92)","v":""},null,{"$f":"IF($C$92=\"\",\"\",AD92/$C$92)","v":""},null,{"$f":"IF($C$92=\"\",\"\",AF92/$C$92)","v":""},null,{"$f":"IF($C$92=\"\",\"\",AH92/$C$92)","v":""},null,{"$f":"IF($C$92=\"\",\"\",AJ92/$C$92)","v":""},null,{"$f":"IF($C$92=\"\",\"\",AL92/$C$92)","v":""},null,{"$f":"IF($C$92=\"\",\"\",AN92/$C$92)","v":""},null,{"$f":"IF($C$92=\"\",\"\",AP92/$C$92)","v":""},null,{"$f":"IF($C$92=\"\",\"\",AR92/$C$92)","v":""},null,{"$f":"IF($C$92=\"\",\"\",AT92/$C$92)","v":""},null,{"$f":"IF($C$92=\"\",\"\",AV92/$C$92)","v":""},null,{"$f":"IF($C$92=\"\",\"\",AX92/$C$92)","v":""},null,{"$f":"IF($C$92=\"\",\"\",AZ92/$C$92)","v":""},null,{"$f":"IF($C$92=\"\",\"\",BB92/$C$92)","v":""},null,0]
[3.7,"Natural Systems Studies"]
["    3.7.1","    Background data collection",null,null,{"$f":"IF($C$94=\"\",\"\",F94/$C$94)","v":""},null,{"$f":"IF($C$94=\"\",\"\",H94/$C$94)","v":""},null,{"$f":"IF($C$94=\"\",\"\",J94/$C$94)","v":""},null,{"$f":"IF($C$94=\"\",\"\",L94/$C$94)","v":""},null,{"$f":"IF($C$94=\"\",\"\",N94/$C$94)","v":""},null,{"$f":"IF($C$94=\"\",\"\",P94/$C$94)","v":""},null,{"$f":"IF($C$94=\"\",\"\",R94/$C$94)","v":""},null,{"$f":"IF($C$94=\"\",\"\",T94/$C$94)","v":""},null,{"$f":"IF($C$94=\"\",\"\",V94/$C$94)","v":""},null,{"$f":"IF($C$94=\"\",\"\",X94/$C$94)","v":""},null,{"$f":"IF($C$94=\"\",\"\",Z94/$C$94)","v":""},null,{"$f":"IF($C$94=\"\",\"\",AB94/$C$94)","v":""},null,{"$f":"IF($C$94=\"\",\"\",AD94/$C$94)","v":""},null,{"$f":"IF($C$94=\"\",\"\",AF94/$C$94)","v":""},null,{"$f":"IF($C$94=\"\",\"\",AH94/$C$94)","v":""},null,{"$f":"IF($C$94=\"\",\"\",AJ94/$C$94)","v":""},null,{"$f":"IF($C$94=\"\",\"\",AL94/$C$94)","v":""},null,{"$f":"IF($C$94=\"\",\"\",AN94/$C$94)","v":""},null,{"$f":"IF($C$94=\"\",\"\",AP94/$C$94)","v":""},null,{"$f":"IF($C$94=\"\",\"\",AR94/$C$94)","v":""},null,{"$f":"IF($C$94=\"\",\"\",AT94/$C$94)","v":""},null,{"$f":"IF($C$94=\"\",\"\",AV94/$C$94)","v":""},null,{"$f":"IF($C$94=\"\",\"\",AX94/$C$94)","v":""},null,{"$f":"IF($C$94=\"\",\"\",AZ94/$C$94)","v":""},null,{"$f":"IF($C$94=\"\",\"\",BB94/$C$94)","v":""},null,{"$f":"SUM(BB94,AZ94,AX94,AV94,AT94,AR94,AP94,AN94,AL94,AJ94,AH94,AF94,AD94,AB94,Z94,X94,V94,T94,R94,P94,N94,L94,J94,H94,F94)","v":0}]
["    3.7.2","    Desktop resource prediction (WOUS, Federally \n    Protected Species)",null,null,{"$f":"IF($C$95=\"\",\"\",F95/$C$95)","v":""},null,{"$f":"IF($C$95=\"\",\"\",H95/$C$95)","v":""},null,{"$f":"IF($C$95=\"\",\"\",J95/$C$95)","v":""},null,{"$f":"IF($C$95=\"\",\"\",L95/$C$95)","v":""},null,{"$f":"IF($C$95=\"\",\"\",N95/$C$95)","v":""},null,{"$f":"IF($C$95=\"\",\"\",P95/$C$95)","v":""},null,{"$f":"IF($C$95=\"\",\"\",R95/$C$95)","v":""},null,{"$f":"IF($C$95=\"\",\"\",T95/$C$95)","v":""},null,{"$f":"IF($C$95=\"\",\"\",V95/$C$95)","v":""},null,{"$f":"IF($C$95=\"\",\"\",X95/$C$95)","v":""},null,{"$f":"IF($C$95=\"\",\"\",Z95/$C$95)","v":""},null,{"$f":"IF($C$95=\"\",\"\",AB95/$C$95)","v":""},null,{"$f":"IF($C$95=\"\",\"\",AD95/$C$95)","v":""},null,{"$f":"IF($C$95=\"\",\"\",AF95/$C$95)","v":""},null,{"$f":"IF($C$95=\"\",\"\",AH95/$C$95)","v":""},null,{"$f":"IF($C$95=\"\",\"\",AJ95/$C$95)","v":""},null,{"$f":"IF($C$95=\"\",\"\",AL95/$C$95)","v":""},null,{"$f":"IF($C$95=\"\",\"\",AN95/$C$95)","v":""},null,{"$f":"IF($C$95=\"\",\"\",AP95/$C$95)","v":""},null,{"$f":"IF($C$95=\"\",\"\",AR95/$C$95)","v":""},null,{"$f":"IF($C$95=\"\",\"\",AT95/$C$95)","v":""},null,{"$f":"IF($C$95=\"\",\"\",AV95/$C$95)","v":""},null,{"$f":"IF($C$95=\"\",\"\",AX95/$C$95)","v":""},null,{"$f":"IF($C$95=\"\",\"\",AZ95/$C$95)","v":""},null,{"$f":"IF($C$95=\"\",\"\",BB95/$C$95)","v":""},null,0]
["    3.7.3","    Memo Development",null,null,{"$f":"IF($C$96=\"\",\"\",F96/$C$96)","v":""},null,{"$f":"IF($C$96=\"\",\"\",H96/$C$96)","v":""},null,{"$f":"IF($C$96=\"\",\"\",J96/$C$96)","v":""},null,{"$f":"IF($C$96=\"\",\"\",L96/$C$96)","v":""},null,{"$f":"IF($C$96=\"\",\"\",N96/$C$96)","v":""},null,{"$f":"IF($C$96=\"\",\"\",P96/$C$96)","v":""},null,{"$f":"IF($C$96=\"\",\"\",R96/$C$96)","v":""},null,{"$f":"IF($C$96=\"\",\"\",T96/$C$96)","v":""},null,{"$f":"IF($C$96=\"\",\"\",V96/$C$96)","v":""},null,{"$f":"IF($C$96=\"\",\"\",X96/$C$96)","v":""},null,{"$f":"IF($C$96=\"\",\"\",Z96/$C$96)","v":""},null,{"$f":"IF($C$96=\"\",\"\",AB96/$C$96)","v":""},null,{"$f":"IF($C$96=\"\",\"\",AD96/$C$96)","v":""},null,{"$f":"IF($C$96=\"\",\"\",AF96/$C$96)","v":""},null,{"$f":"IF($C$96=\"\",\"\",AH96/$C$96)","v":""},null,{"$f":"IF($C$96=\"\",\"\",AJ96/$C$96)","v":""},null,{"$f":"IF($C$96=\"\",\"\",AL96/$C$96)","v":""},null,{"$f":"IF($C$96=\"\",\"\",AN96/$C$96)","v":""},null,{"$f":"IF($C$96=\"\",\"\",AP96/$C$96)","v":""},null,{"$f":"IF($C$96=\"\",\"\",AR96/$C$96)","v":""},null,{"$f":"IF($C$96=\"\",\"\",AT96/$C$96)","v":""},null,{"$f":"IF($C$96=\"\",\"\",AV96/$C$96)","v":""},null,{"$f":"IF($C$96=\"\",\"\",AX96/$C$96)","v":""},null,{"$f":"IF($C$96=\"\",\"\",AZ96/$C$96)","v":""},null,{"$f":"IF($C$96=\"\",\"\",BB96/$C$96)","v":""},null,0]
["    3.7.4","    Field Visit (10 cabinet intersections)",null,null,{"$f":"IF($C$97=\"\",\"\",F97/$C$97)","v":""},null,{"$f":"IF($C$97=\"\",\"\",H97/$C$97)","v":""},null,{"$f":"IF($C$97=\"\",\"\",J97/$C$97)","v":""},null,{"$f":"IF($C$97=\"\",\"\",L97/$C$97)","v":""},null,{"$f":"IF($C$97=\"\",\"\",N97/$C$97)","v":""},null,{"$f":"IF($C$97=\"\",\"\",P97/$C$97)","v":""},null,{"$f":"IF($C$97=\"\",\"\",R97/$C$97)","v":""},null,{"$f":"IF($C$97=\"\",\"\",T97/$C$97)","v":""},null,{"$f":"IF($C$97=\"\",\"\",V97/$C$97)","v":""},null,{"$f":"IF($C$97=\"\",\"\",X97/$C$97)","v":""},null,{"$f":"IF($C$97=\"\",\"\",Z97/$C$97)","v":""},null,{"$f":"IF($C$97=\"\",\"\",AB97/$C$97)","v":""},null,{"$f":"IF($C$97=\"\",\"\",AD97/$C$97)","v":""},null,{"$f":"IF($C$97=\"\",\"\",AF97/$C$97)","v":""},null,{"$f":"IF($C$97=\"\",\"\",AH97/$C$97)","v":""},null,{"$f":"IF($C$97=\"\",\"\",AJ97/$C$97)","v":""},null,{"$f":"IF($C$97=\"\",\"\",AL97/$C$97)","v":""},null,{"$f":"IF($C$97=\"\",\"\",AN97/$C$97)","v":""},null,{"$f":"IF($C$97=\"\",\"\",AP97/$C$97)","v":""},null,{"$f":"IF($C$97=\"\",\"\",AR97/$C$97)","v":""},null,{"$f":"IF($C$97=\"\",\"\",AT97/$C$97)","v":""},null,{"$f":"IF($C$97=\"\",\"\",AV97/$C$97)","v":""},null,{"$f":"IF($C$97=\"\",\"\",AX97/$C$97)","v":""},null,{"$f":"IF($C$97=\"\",\"\",AZ97/$C$97)","v":""},null,{"$f":"IF($C$97=\"\",\"\",BB97/$C$97)","v":""},null,0]
["    3.7.5",null,null,null,{"$f":"IF($C$98=\"\",\"\",F98/$C$98)","v":""},null,{"$f":"IF($C$98=\"\",\"\",H98/$C$98)","v":""},null,{"$f":"IF($C$98=\"\",\"\",J98/$C$98)","v":""},null,{"$f":"IF($C$98=\"\",\"\",L98/$C$98)","v":""},null,{"$f":"IF($C$98=\"\",\"\",N98/$C$98)","v":""},null,{"$f":"IF($C$98=\"\",\"\",P98/$C$98)","v":""},null,{"$f":"IF($C$98=\"\",\"\",R98/$C$98)","v":""},null,{"$f":"IF($C$98=\"\",\"\",T98/$C$98)","v":""},null,{"$f":"IF($C$98=\"\",\"\",V98/$C$98)","v":""},null,{"$f":"IF($C$98=\"\",\"\",X98/$C$98)","v":""},null,{"$f":"IF($C$98=\"\",\"\",Z98/$C$98)","v":""},null,{"$f":"IF($C$98=\"\",\"\",AB98/$C$98)","v":""},null,{"$f":"IF($C$98=\"\",\"\",AD98/$C$98)","v":""},null,{"$f":"IF($C$98=\"\",\"\",AF98/$C$98)","v":""},null,{"$f":"IF($C$98=\"\",\"\",AH98/$C$98)","v":""},null,{"$f":"IF($C$98=\"\",\"\",AJ98/$C$98)","v":""},null,{"$f":"IF($C$98=\"\",\"\",AL98/$C$98)","v":""},null,{"$f":"IF($C$98=\"\",\"\",AN98/$C$98)","v":""},null,{"$f":"IF($C$98=\"\",\"\",AP98/$C$98)","v":""},null,{"$f":"IF($C$98=\"\",\"\",AR98/$C$98)","v":""},null,{"$f":"IF($C$98=\"\",\"\",AT98/$C$98)","v":""},null,{"$f":"IF($C$98=\"\",\"\",AV98/$C$98)","v":""},null,{"$f":"IF($C$98=\"\",\"\",AX98/$C$98)","v":""},null,{"$f":"IF($C$98=\"\",\"\",AZ98/$C$98)","v":""},null,{"$f":"IF($C$98=\"\",\"\",BB98/$C$98)","v":""},null,0]
["    3.7.6",null,null,null,{"$f":"IF($C$99=\"\",\"\",F99/$C$99)","v":""},null,{"$f":"IF($C$99=\"\",\"\",H99/$C$99)","v":""},null,{"$f":"IF($C$99=\"\",\"\",J99/$C$99)","v":""},null,{"$f":"IF($C$99=\"\",\"\",L99/$C$99)","v":""},null,{"$f":"IF($C$99=\"\",\"\",N99/$C$99)","v":""},null,{"$f":"IF($C$99=\"\",\"\",P99/$C$99)","v":""},null,{"$f":"IF($C$99=\"\",\"\",R99/$C$99)","v":""},null,{"$f":"IF($C$99=\"\",\"\",T99/$C$99)","v":""},null,{"$f":"IF($C$99=\"\",\"\",V99/$C$99)","v":""},null,{"$f":"IF($C$99=\"\",\"\",X99/$C$99)","v":""},null,{"$f":"IF($C$99=\"\",\"\",Z99/$C$99)","v":""},null,{"$f":"IF($C$99=\"\",\"\",AB99/$C$99)","v":""},null,{"$f":"IF($C$99=\"\",\"\",AD99/$C$99)","v":""},null,{"$f":"IF($C$99=\"\",\"\",AF99/$C$99)","v":""},null,{"$f":"IF($C$99=\"\",\"\",AH99/$C$99)","v":""},null,{"$f":"IF($C$99=\"\",\"\",AJ99/$C$99)","v":""},null,{"$f":"IF($C$99=\"\",\"\",AL99/$C$99)","v":""},null,{"$f":"IF($C$99=\"\",\"\",AN99/$C$99)","v":""},null,{"$f":"IF($C$99=\"\",\"\",AP99/$C$99)","v":""},null,{"$f":"IF($C$99=\"\",\"\",AR99/$C$99)","v":""},null,{"$f":"IF($C$99=\"\",\"\",AT99/$C$99)","v":""},null,{"$f":"IF($C$99=\"\",\"\",AV99/$C$99)","v":""},null,{"$f":"IF($C$99=\"\",\"\",AX99/$C$99)","v":""},null,{"$f":"IF($C$99=\"\",\"\",AZ99/$C$99)","v":""},null,{"$f":"IF($C$99=\"\",\"\",BB99/$C$99)","v":""},null,0]
["    3.7.7",null,null,null,{"$f":"IF($C$100=\"\",\"\",F100/$C$100)","v":""},null,{"$f":"IF($C$100=\"\",\"\",H100/$C$100)","v":""},null,{"$f":"IF($C$100=\"\",\"\",J100/$C$100)","v":""},null,{"$f":"IF($C$100=\"\",\"\",L100/$C$100)","v":""},null,{"$f":"IF($C$100=\"\",\"\",N100/$C$100)","v":""},null,{"$f":"IF($C$100=\"\",\"\",P100/$C$100)","v":""},null,{"$f":"IF($C$100=\"\",\"\",R100/$C$100)","v":""},null,{"$f":"IF($C$100=\"\",\"\",T100/$C$100)","v":""},null,{"$f":"IF($C$100=\"\",\"\",V100/$C$100)","v":""},null,{"$f":"IF($C$100=\"\",\"\",X100/$C$100)","v":""},null,{"$f":"IF($C$100=\"\",\"\",Z100/$C$100)","v":""},null,{"$f":"IF($C$100=\"\",\"\",AB100/$C$100)","v":""},null,{"$f":"IF($C$100=\"\",\"\",AD100/$C$100)","v":""},null,{"$f":"IF($C$100=\"\",\"\",AF100/$C$100)","v":""},null,{"$f":"IF($C$100=\"\",\"\",AH100/$C$100)","v":""},null,{"$f":"IF($C$100=\"\",\"\",AJ100/$C$100)","v":""},null,{"$f":"IF($C$100=\"\",\"\",AL100/$C$100)","v":""},null,{"$f":"IF($C$100=\"\",\"\",AN100/$C$100)","v":""},null,{"$f":"IF($C$100=\"\",\"\",AP100/$C$100)","v":""},null,{"$f":"IF($C$100=\"\",\"\",AR100/$C$100)","v":""},null,{"$f":"IF($C$100=\"\",\"\",AT100/$C$100)","v":""},null,{"$f":"IF($C$100=\"\",\"\",AV100/$C$100)","v":""},null,{"$f":"IF($C$100=\"\",\"\",AX100/$C$100)","v":""},null,{"$f":"IF($C$100=\"\",\"\",AZ100/$C$100)","v":""},null,{"$f":"IF($C$100=\"\",\"\",BB100/$C$100)","v":""},null,0]
[3.8,"PCE Documentation"]
["    3.8.1","    Draft v1 to NCDOT/Address Comments",null,null,{"$f":"IF($C$102=\"\",\"\",F102/$C$102)","v":""},null,{"$f":"IF($C$102=\"\",\"\",H102/$C$102)","v":""},null,{"$f":"IF($C$102=\"\",\"\",J102/$C$102)","v":""},null,{"$f":"IF($C$102=\"\",\"\",L102/$C$102)","v":""},null,{"$f":"IF($C$102=\"\",\"\",N102/$C$102)","v":""},null,{"$f":"IF($C$102=\"\",\"\",P102/$C$102)","v":""},null,{"$f":"IF($C$102=\"\",\"\",R102/$C$102)","v":""},null,{"$f":"IF($C$102=\"\",\"\",T102/$C$102)","v":""},null,{"$f":"IF($C$102=\"\",\"\",V102/$C$102)","v":""},null,{"$f":"IF($C$102=\"\",\"\",X102/$C$102)","v":""},null,{"$f":"IF($C$102=\"\",\"\",Z102/$C$102)","v":""},null,{"$f":"IF($C$102=\"\",\"\",AB102/$C$102)","v":""},null,{"$f":"IF($C$102=\"\",\"\",AD102/$C$102)","v":""},null,{"$f":"IF($C$102=\"\",\"\",AF102/$C$102)","v":""},null,{"$f":"IF($C$102=\"\",\"\",AH102/$C$102)","v":""},null,{"$f":"IF($C$102=\"\",\"\",AJ102/$C$102)","v":""},null,{"$f":"IF($C$102=\"\",\"\",AL102/$C$102)","v":""},null,{"$f":"IF($C$102=\"\",\"\",AN102/$C$102)","v":""},null,{"$f":"IF($C$102=\"\",\"\",AP102/$C$102)","v":""},null,{"$f":"IF($C$102=\"\",\"\",AR102/$C$102)","v":""},null,{"$f":"IF($C$102=\"\",\"\",AT102/$C$102)","v":""},null,{"$f":"IF($C$102=\"\",\"\",AV102/$C$102)","v":""},null,{"$f":"IF($C$102=\"\",\"\",AX102/$C$102)","v":""},null,{"$f":"IF($C$102=\"\",\"\",AZ102/$C$102)","v":""},null,{"$f":"IF($C$102=\"\",\"\",BB102/$C$102)","v":""},null,{"$f":"SUM(BB102,AZ102,AX102,AV102,AT102,AR102,AP102,AN102,AL102,AJ102,AH102,AF102,AD102,AB102,Z102,X102,V102,T102,R102,P102,N102,L102,J102,H102,F102)","v":0}]
["    3.8.2","    Draft v2 to FHWA/Address Comments",null,null,{"$f":"IF($C$103=\"\",\"\",F103/$C$103)","v":""},null,{"$f":"IF($C$103=\"\",\"\",H103/$C$103)","v":""},null,{"$f":"IF($C$103=\"\",\"\",J103/$C$103)","v":""},null,{"$f":"IF($C$103=\"\",\"\",L103/$C$103)","v":""},null,{"$f":"IF($C$103=\"\",\"\",N103/$C$103)","v":""},null,{"$f":"IF($C$103=\"\",\"\",P103/$C$103)","v":""},null,{"$f":"IF($C$103=\"\",\"\",R103/$C$103)","v":""},null,{"$f":"IF($C$103=\"\",\"\",T103/$C$103)","v":""},null,{"$f":"IF($C$103=\"\",\"\",V103/$C$103)","v":""},null,{"$f":"IF($C$103=\"\",\"\",X103/$C$103)","v":""},null,{"$f":"IF($C$103=\"\",\"\",Z103/$C$103)","v":""},null,{"$f":"IF($C$103=\"\",\"\",AB103/$C$103)","v":""},null,{"$f":"IF($C$103=\"\",\"\",AD103/$C$103)","v":""},null,{"$f":"IF($C$103=\"\",\"\",AF103/$C$103)","v":""},null,{"$f":"IF($C$103=\"\",\"\",AH103/$C$103)","v":""},null,{"$f":"IF($C$103=\"\",\"\",AJ103/$C$103)","v":""},null,{"$f":"IF($C$103=\"\",\"\",AL103/$C$103)","v":""},null,{"$f":"IF($C$103=\"\",\"\",AN103/$C$103)","v":""},null,{"$f":"IF($C$103=\"\",\"\",AP103/$C$103)","v":""},null,{"$f":"IF($C$103=\"\",\"\",AR103/$C$103)","v":""},null,{"$f":"IF($C$103=\"\",\"\",AT103/$C$103)","v":""},null,{"$f":"IF($C$103=\"\",\"\",AV103/$C$103)","v":""},null,{"$f":"IF($C$103=\"\",\"\",AX103/$C$103)","v":""},null,{"$f":"IF($C$103=\"\",\"\",AZ103/$C$103)","v":""},null,{"$f":"IF($C$103=\"\",\"\",BB103/$C$103)","v":""},null,0]
["    3.8.3","    Finalize and distribute copies of PCE Document",null,null,{"$f":"IF($C$104=\"\",\"\",F104/$C$104)","v":""},null,{"$f":"IF($C$104=\"\",\"\",H104/$C$104)","v":""},null,{"$f":"IF($C$104=\"\",\"\",J104/$C$104)","v":""},null,{"$f":"IF($C$104=\"\",\"\",L104/$C$104)","v":""},null,{"$f":"IF($C$104=\"\",\"\",N104/$C$104)","v":""},null,{"$f":"IF($C$104=\"\",\"\",P104/$C$104)","v":""},null,{"$f":"IF($C$104=\"\",\"\",R104/$C$104)","v":""},null,{"$f":"IF($C$104=\"\",\"\",T104/$C$104)","v":""},null,{"$f":"IF($C$104=\"\",\"\",V104/$C$104)","v":""},null,{"$f":"IF($C$104=\"\",\"\",X104/$C$104)","v":""},null,{"$f":"IF($C$104=\"\",\"\",Z104/$C$104)","v":""},null,{"$f":"IF($C$104=\"\",\"\",AB104/$C$104)","v":""},null,{"$f":"IF($C$104=\"\",\"\",AD104/$C$104)","v":""},null,{"$f":"IF($C$104=\"\",\"\",AF104/$C$104)","v":""},null,{"$f":"IF($C$104=\"\",\"\",AH104/$C$104)","v":""},null,{"$f":"IF($C$104=\"\",\"\",AJ104/$C$104)","v":""},null,{"$f":"IF($C$104=\"\",\"\",AL104/$C$104)","v":""},null,{"$f":"IF($C$104=\"\",\"\",AN104/$C$104)","v":""},null,{"$f":"IF($C$104=\"\",\"\",AP104/$C$104)","v":""},null,{"$f":"IF($C$104=\"\",\"\",AR104/$C$104)","v":""},null,{"$f":"IF($C$104=\"\",\"\",AT104/$C$104)","v":""},null,{"$f":"IF($C$104=\"\",\"\",AV104/$C$104)","v":""},null,{"$f":"IF($C$104=\"\",\"\",AX104/$C$104)","v":""},null,{"$f":"IF($C$104=\"\",\"\",AZ104/$C$104)","v":""},null,{"$f":"IF($C$104=\"\",\"\",BB104/$C$104)","v":""},null,0]
["    3.8.4",null,null,null,{"$f":"IF($C$105=\"\",\"\",F105/$C$105)","v":""},null,{"$f":"IF($C$105=\"\",\"\",H105/$C$105)","v":""},null,{"$f":"IF($C$105=\"\",\"\",J105/$C$105)","v":""},null,{"$f":"IF($C$105=\"\",\"\",L105/$C$105)","v":""},null,{"$f":"IF($C$105=\"\",\"\",N105/$C$105)","v":""},null,{"$f":"IF($C$105=\"\",\"\",P105/$C$105)","v":""},null,{"$f":"IF($C$105=\"\",\"\",R105/$C$105)","v":""},null,{"$f":"IF($C$105=\"\",\"\",T105/$C$105)","v":""},null,{"$f":"IF($C$105=\"\",\"\",V105/$C$105)","v":""},null,{"$f":"IF($C$105=\"\",\"\",X105/$C$105)","v":""},null,{"$f":"IF($C$105=\"\",\"\",Z105/$C$105)","v":""},null,{"$f":"IF($C$105=\"\",\"\",AB105/$C$105)","v":""},null,{"$f":"IF($C$105=\"\",\"\",AD105/$C$105)","v":""},null,{"$f":"IF($C$105=\"\",\"\",AF105/$C$105)","v":""},null,{"$f":"IF($C$105=\"\",\"\",AH105/$C$105)","v":""},null,{"$f":"IF($C$105=\"\",\"\",AJ105/$C$105)","v":""},null,{"$f":"IF($C$105=\"\",\"\",AL105/$C$105)","v":""},null,{"$f":"IF($C$105=\"\",\"\",AN105/$C$105)","v":""},null,{"$f":"IF($C$105=\"\",\"\",AP105/$C$105)","v":""},null,{"$f":"IF($C$105=\"\",\"\",AR105/$C$105)","v":""},null,{"$f":"IF($C$105=\"\",\"\",AT105/$C$105)","v":""},null,{"$f":"IF($C$105=\"\",\"\",AV105/$C$105)","v":""},null,{"$f":"IF($C$105=\"\",\"\",AX105/$C$105)","v":""},null,{"$f":"IF($C$105=\"\",\"\",AZ105/$C$105)","v":""},null,{"$f":"IF($C$105=\"\",\"\",BB105/$C$105)","v":""},null,0]
["    3.8.5",null,null,null,{"$f":"IF($C$106=\"\",\"\",F106/$C$106)","v":""},null,{"$f":"IF($C$106=\"\",\"\",H106/$C$106)","v":""},null,{"$f":"IF($C$106=\"\",\"\",J106/$C$106)","v":""},null,{"$f":"IF($C$106=\"\",\"\",L106/$C$106)","v":""},null,{"$f":"IF($C$106=\"\",\"\",N106/$C$106)","v":""},null,{"$f":"IF($C$106=\"\",\"\",P106/$C$106)","v":""},null,{"$f":"IF($C$106=\"\",\"\",R106/$C$106)","v":""},null,{"$f":"IF($C$106=\"\",\"\",T106/$C$106)","v":""},null,{"$f":"IF($C$106=\"\",\"\",V106/$C$106)","v":""},null,{"$f":"IF($C$106=\"\",\"\",X106/$C$106)","v":""},null,{"$f":"IF($C$106=\"\",\"\",Z106/$C$106)","v":""},null,{"$f":"IF($C$106=\"\",\"\",AB106/$C$106)","v":""},null,{"$f":"IF($C$106=\"\",\"\",AD106/$C$106)","v":""},null,{"$f":"IF($C$106=\"\",\"\",AF106/$C$106)","v":""},null,{"$f":"IF($C$106=\"\",\"\",AH106/$C$106)","v":""},null,{"$f":"IF($C$106=\"\",\"\",AJ106/$C$106)","v":""},null,{"$f":"IF($C$106=\"\",\"\",AL106/$C$106)","v":""},null,{"$f":"IF($C$106=\"\",\"\",AN106/$C$106)","v":""},null,{"$f":"IF($C$106=\"\",\"\",AP106/$C$106)","v":""},null,{"$f":"IF($C$106=\"\",\"\",AR106/$C$106)","v":""},null,{"$f":"IF($C$106=\"\",\"\",AT106/$C$106)","v":""},null,{"$f":"IF($C$106=\"\",\"\",AV106/$C$106)","v":""},null,{"$f":"IF($C$106=\"\",\"\",AX106/$C$106)","v":""},null,{"$f":"IF($C$106=\"\",\"\",AZ106/$C$106)","v":""},null,{"$f":"IF($C$106=\"\",\"\",BB106/$C$106)","v":""},null,0]
["    3.8.6",null,null,null,{"$f":"IF($C$107=\"\",\"\",F107/$C$107)","v":""},null,{"$f":"IF($C$107=\"\",\"\",H107/$C$107)","v":""},null,{"$f":"IF($C$107=\"\",\"\",J107/$C$107)","v":""},null,{"$f":"IF($C$107=\"\",\"\",L107/$C$107)","v":""},null,{"$f":"IF($C$107=\"\",\"\",N107/$C$107)","v":""},null,{"$f":"IF($C$107=\"\",\"\",P107/$C$107)","v":""},null,{"$f":"IF($C$107=\"\",\"\",R107/$C$107)","v":""},null,{"$f":"IF($C$107=\"\",\"\",T107/$C$107)","v":""},null,{"$f":"IF($C$107=\"\",\"\",V107/$C$107)","v":""},null,{"$f":"IF($C$107=\"\",\"\",X107/$C$107)","v":""},null,{"$f":"IF($C$107=\"\",\"\",Z107/$C$107)","v":""},null,{"$f":"IF($C$107=\"\",\"\",AB107/$C$107)","v":""},null,{"$f":"IF($C$107=\"\",\"\",AD107/$C$107)","v":""},null,{"$f":"IF($C$107=\"\",\"\",AF107/$C$107)","v":""},null,{"$f":"IF($C$107=\"\",\"\",AH107/$C$107)","v":""},null,{"$f":"IF($C$107=\"\",\"\",AJ107/$C$107)","v":""},null,{"$f":"IF($C$107=\"\",\"\",AL107/$C$107)","v":""},null,{"$f":"IF($C$107=\"\",\"\",AN107/$C$107)","v":""},null,{"$f":"IF($C$107=\"\",\"\",AP107/$C$107)","v":""},null,{"$f":"IF($C$107=\"\",\"\",AR107/$C$107)","v":""},null,{"$f":"IF($C$107=\"\",\"\",AT107/$C$107)","v":""},null,{"$f":"IF($C$107=\"\",\"\",AV107/$C$107)","v":""},null,{"$f":"IF($C$107=\"\",\"\",AX107/$C$107)","v":""},null,{"$f":"IF($C$107=\"\",\"\",AZ107/$C$107)","v":""},null,{"$f":"IF($C$107=\"\",\"\",BB107/$C$107)","v":""},null,0]
[null,null,null,null,{"$f":"IF($C$108=\"\",\"\",F108/$C$108)","v":""},null,{"$f":"IF($C$108=\"\",\"\",H108/$C$108)","v":""},null,{"$f":"IF($C$108=\"\",\"\",J108/$C$108)","v":""},null,{"$f":"IF($C$108=\"\",\"\",L108/$C$108)","v":""},null,{"$f":"IF($C$108=\"\",\"\",N108/$C$108)","v":""},null,{"$f":"IF($C$108=\"\",\"\",P108/$C$108)","v":""},null,{"$f":"IF($C$108=\"\",\"\",R108/$C$108)","v":""},null,{"$f":"IF($C$108=\"\",\"\",T108/$C$108)","v":""},null,{"$f":"IF($C$108=\"\",\"\",V108/$C$108)","v":""},null,{"$f":"IF($C$108=\"\",\"\",X108/$C$108)","v":""},null,{"$f":"IF($C$108=\"\",\"\",Z108/$C$108)","v":""},null,{"$f":"IF($C$108=\"\",\"\",AB108/$C$108)","v":""},null,{"$f":"IF($C$108=\"\",\"\",AD108/$C$108)","v":""},null,{"$f":"IF($C$108=\"\",\"\",AF108/$C$108)","v":""},null,{"$f":"IF($C$108=\"\",\"\",AH108/$C$108)","v":""},null,{"$f":"IF($C$108=\"\",\"\",AJ108/$C$108)","v":""},null,{"$f":"IF($C$108=\"\",\"\",AL108/$C$108)","v":""},null,{"$f":"IF($C$108=\"\",\"\",AN108/$C$108)","v":""},null,{"$f":"IF($C$108=\"\",\"\",AP108/$C$108)","v":""},null,{"$f":"IF($C$108=\"\",\"\",AR108/$C$108)","v":""},null,{"$f":"IF($C$108=\"\",\"\",AT108/$C$108)","v":""},null,{"$f":"IF($C$108=\"\",\"\",AV108/$C$108)","v":""},null,{"$f":"IF($C$108=\"\",\"\",AX108/$C$108)","v":""},null,{"$f":"IF($C$108=\"\",\"\",AZ108/$C$108)","v":""},null,{"$f":"IF($C$108=\"\",\"\",BB108/$C$108)","v":""},null,0]
[null,null,null,null,{"$f":"IF($C$109=\"\",\"\",F109/$C$109)","v":""},null,{"$f":"IF($C$109=\"\",\"\",H109/$C$109)","v":""},null,{"$f":"IF($C$109=\"\",\"\",J109/$C$109)","v":""},null,{"$f":"IF($C$109=\"\",\"\",L109/$C$109)","v":""},null,{"$f":"IF($C$109=\"\",\"\",N109/$C$109)","v":""},null,{"$f":"IF($C$109=\"\",\"\",P109/$C$109)","v":""},null,{"$f":"IF($C$109=\"\",\"\",R109/$C$109)","v":""},null,{"$f":"IF($C$109=\"\",\"\",T109/$C$109)","v":""},null,{"$f":"IF($C$109=\"\",\"\",V109/$C$109)","v":""},null,{"$f":"IF($C$109=\"\",\"\",X109/$C$109)","v":""},null,{"$f":"IF($C$109=\"\",\"\",Z109/$C$109)","v":""},null,{"$f":"IF($C$109=\"\",\"\",AB109/$C$109)","v":""},null,{"$f":"IF($C$109=\"\",\"\",AD109/$C$109)","v":""},null,{"$f":"IF($C$109=\"\",\"\",AF109/$C$109)","v":""},null,{"$f":"IF($C$109=\"\",\"\",AH109/$C$109)","v":""},null,{"$f":"IF($C$109=\"\",\"\",AJ109/$C$109)","v":""},null,{"$f":"IF($C$109=\"\",\"\",AL109/$C$109)","v":""},null,{"$f":"IF($C$109=\"\",\"\",AN109/$C$109)","v":""},null,{"$f":"IF($C$109=\"\",\"\",AP109/$C$109)","v":""},null,{"$f":"IF($C$109=\"\",\"\",AR109/$C$109)","v":""},null,{"$f":"IF($C$109=\"\",\"\",AT109/$C$109)","v":""},null,{"$f":"IF($C$109=\"\",\"\",AV109/$C$109)","v":""},null,{"$f":"IF($C$109=\"\",\"\",AX109/$C$109)","v":""},null,{"$f":"IF($C$109=\"\",\"\",AZ109/$C$109)","v":""},null,{"$f":"IF($C$109=\"\",\"\",BB109/$C$109)","v":""},null,0]
[null,null,null,null,{"$f":"IF($C$110=\"\",\"\",F110/$C$110)","v":""},null,{"$f":"IF($C$110=\"\",\"\",H110/$C$110)","v":""},null,{"$f":"IF($C$110=\"\",\"\",J110/$C$110)","v":""},null,{"$f":"IF($C$110=\"\",\"\",L110/$C$110)","v":""},null,{"$f":"IF($C$110=\"\",\"\",N110/$C$110)","v":""},null,{"$f":"IF($C$110=\"\",\"\",P110/$C$110)","v":""},null,{"$f":"IF($C$110=\"\",\"\",R110/$C$110)","v":""},null,{"$f":"IF($C$110=\"\",\"\",T110/$C$110)","v":""},null,{"$f":"IF($C$110=\"\",\"\",V110/$C$110)","v":""},null,{"$f":"IF($C$110=\"\",\"\",X110/$C$110)","v":""},null,{"$f":"IF($C$110=\"\",\"\",Z110/$C$110)","v":""},null,{"$f":"IF($C$110=\"\",\"\",AB110/$C$110)","v":""},null,{"$f":"IF($C$110=\"\",\"\",AD110/$C$110)","v":""},null,{"$f":"IF($C$110=\"\",\"\",AF110/$C$110)","v":""},null,{"$f":"IF($C$110=\"\",\"\",AH110/$C$110)","v":""},null,{"$f":"IF($C$110=\"\",\"\",AJ110/$C$110)","v":""},null,{"$f":"IF($C$110=\"\",\"\",AL110/$C$110)","v":""},null,{"$f":"IF($C$110=\"\",\"\",AN110/$C$110)","v":""},null,{"$f":"IF($C$110=\"\",\"\",AP110/$C$110)","v":""},null,{"$f":"IF($C$110=\"\",\"\",AR110/$C$110)","v":""},null,{"$f":"IF($C$110=\"\",\"\",AT110/$C$110)","v":""},null,{"$f":"IF($C$110=\"\",\"\",AV110/$C$110)","v":""},null,{"$f":"IF($C$110=\"\",\"\",AX110/$C$110)","v":""},null,{"$f":"IF($C$110=\"\",\"\",AZ110/$C$110)","v":""},null,{"$f":"IF($C$110=\"\",\"\",BB110/$C$110)","v":""},null,0]
[null,null,null,null,{"$f":"IF($C$111=\"\",\"\",F111/$C$111)","v":""},null,{"$f":"IF($C$111=\"\",\"\",H111/$C$111)","v":""},null,{"$f":"IF($C$111=\"\",\"\",J111/$C$111)","v":""},null,{"$f":"IF($C$111=\"\",\"\",L111/$C$111)","v":""},null,{"$f":"IF($C$111=\"\",\"\",N111/$C$111)","v":""},null,{"$f":"IF($C$111=\"\",\"\",P111/$C$111)","v":""},null,{"$f":"IF($C$111=\"\",\"\",R111/$C$111)","v":""},null,{"$f":"IF($C$111=\"\",\"\",T111/$C$111)","v":""},null,{"$f":"IF($C$111=\"\",\"\",V111/$C$111)","v":""},null,{"$f":"IF($C$111=\"\",\"\",X111/$C$111)","v":""},null,{"$f":"IF($C$111=\"\",\"\",Z111/$C$111)","v":""},null,{"$f":"IF($C$111=\"\",\"\",AB111/$C$111)","v":""},null,{"$f":"IF($C$111=\"\",\"\",AD111/$C$111)","v":""},null,{"$f":"IF($C$111=\"\",\"\",AF111/$C$111)","v":""},null,{"$f":"IF($C$111=\"\",\"\",AH111/$C$111)","v":""},null,{"$f":"IF($C$111=\"\",\"\",AJ111/$C$111)","v":""},null,{"$f":"IF($C$111=\"\",\"\",AL111/$C$111)","v":""},null,{"$f":"IF($C$111=\"\",\"\",AN111/$C$111)","v":""},null,{"$f":"IF($C$111=\"\",\"\",AP111/$C$111)","v":""},null,{"$f":"IF($C$111=\"\",\"\",AR111/$C$111)","v":""},null,{"$f":"IF($C$111=\"\",\"\",AT111/$C$111)","v":""},null,{"$f":"IF($C$111=\"\",\"\",AV111/$C$111)","v":""},null,{"$f":"IF($C$111=\"\",\"\",AX111/$C$111)","v":""},null,{"$f":"IF($C$111=\"\",\"\",AZ111/$C$111)","v":""},null,{"$f":"IF($C$111=\"\",\"\",BB111/$C$111)","v":""},null,0]
[null,null,null,null,{"$f":"IF($C$112=\"\",\"\",F112/$C$112)","v":""},null,{"$f":"IF($C$112=\"\",\"\",H112/$C$112)","v":""},null,{"$f":"IF($C$112=\"\",\"\",J112/$C$112)","v":""},null,{"$f":"IF($C$112=\"\",\"\",L112/$C$112)","v":""},null,{"$f":"IF($C$112=\"\",\"\",N112/$C$112)","v":""},null,{"$f":"IF($C$112=\"\",\"\",P112/$C$112)","v":""},null,{"$f":"IF($C$112=\"\",\"\",R112/$C$112)","v":""},null,{"$f":"IF($C$112=\"\",\"\",T112/$C$112)","v":""},null,{"$f":"IF($C$112=\"\",\"\",V112/$C$112)","v":""},null,{"$f":"IF($C$112=\"\",\"\",X112/$C$112)","v":""},null,{"$f":"IF($C$112=\"\",\"\",Z112/$C$112)","v":""},null,{"$f":"IF($C$112=\"\",\"\",AB112/$C$112)","v":""},null,{"$f":"IF($C$112=\"\",\"\",AD112/$C$112)","v":""},null,{"$f":"IF($C$112=\"\",\"\",AF112/$C$112)","v":""},null,{"$f":"IF($C$112=\"\",\"\",AH112/$C$112)","v":""},null,{"$f":"IF($C$112=\"\",\"\",AJ112/$C$112)","v":""},null,{"$f":"IF($C$112=\"\",\"\",AL112/$C$112)","v":""},null,{"$f":"IF($C$112=\"\",\"\",AN112/$C$112)","v":""},null,{"$f":"IF($C$112=\"\",\"\",AP112/$C$112)","v":""},null,{"$f":"IF($C$112=\"\",\"\",AR112/$C$112)","v":""},null,{"$f":"IF($C$112=\"\",\"\",AT112/$C$112)","v":""},null,{"$f":"IF($C$112=\"\",\"\",AV112/$C$112)","v":""},null,{"$f":"IF($C$112=\"\",\"\",AX112/$C$112)","v":""},null,{"$f":"IF($C$112=\"\",\"\",AZ112/$C$112)","v":""},null,{"$f":"IF($C$112=\"\",\"\",BB112/$C$112)","v":""},null,0]
[null,null,null,null,{"$f":"IF($C$113=\"\",\"\",F113/$C$113)","v":""},null,{"$f":"IF($C$113=\"\",\"\",H113/$C$113)","v":""},null,{"$f":"IF($C$113=\"\",\"\",J113/$C$113)","v":""},null,{"$f":"IF($C$113=\"\",\"\",L113/$C$113)","v":""},null,{"$f":"IF($C$113=\"\",\"\",N113/$C$113)","v":""},null,{"$f":"IF($C$113=\"\",\"\",P113/$C$113)","v":""},null,{"$f":"IF($C$113=\"\",\"\",R113/$C$113)","v":""},null,{"$f":"IF($C$113=\"\",\"\",T113/$C$113)","v":""},null,{"$f":"IF($C$113=\"\",\"\",V113/$C$113)","v":""},null,{"$f":"IF($C$113=\"\",\"\",X113/$C$113)","v":""},null,{"$f":"IF($C$113=\"\",\"\",Z113/$C$113)","v":""},null,{"$f":"IF($C$113=\"\",\"\",AB113/$C$113)","v":""},null,{"$f":"IF($C$113=\"\",\"\",AD113/$C$113)","v":""},null,{"$f":"IF($C$113=\"\",\"\",AF113/$C$113)","v":""},null,{"$f":"IF($C$113=\"\",\"\",AH113/$C$113)","v":""},null,{"$f":"IF($C$113=\"\",\"\",AJ113/$C$113)","v":""},null,{"$f":"IF($C$113=\"\",\"\",AL113/$C$113)","v":""},null,{"$f":"IF($C$113=\"\",\"\",AN113/$C$113)","v":""},null,{"$f":"IF($C$113=\"\",\"\",AP113/$C$113)","v":""},null,{"$f":"IF($C$113=\"\",\"\",AR113/$C$113)","v":""},null,{"$f":"IF($C$113=\"\",\"\",AT113/$C$113)","v":""},null,{"$f":"IF($C$113=\"\",\"\",AV113/$C$113)","v":""},null,{"$f":"IF($C$113=\"\",\"\",AX113/$C$113)","v":""},null,{"$f":"IF($C$113=\"\",\"\",AZ113/$C$113)","v":""},null,{"$f":"IF($C$113=\"\",\"\",BB113/$C$113)","v":""},null,0]
[null,null,null,null,{"$f":"IF($C$114=\"\",\"\",F114/$C$114)","v":""},null,{"$f":"IF($C$114=\"\",\"\",H114/$C$114)","v":""},null,{"$f":"IF($C$114=\"\",\"\",J114/$C$114)","v":""},null,{"$f":"IF($C$114=\"\",\"\",L114/$C$114)","v":""},null,{"$f":"IF($C$114=\"\",\"\",N114/$C$114)","v":""},null,{"$f":"IF($C$114=\"\",\"\",P114/$C$114)","v":""},null,{"$f":"IF($C$114=\"\",\"\",R114/$C$114)","v":""},null,{"$f":"IF($C$114=\"\",\"\",T114/$C$114)","v":""},null,{"$f":"IF($C$114=\"\",\"\",V114/$C$114)","v":""},null,{"$f":"IF($C$114=\"\",\"\",X114/$C$114)","v":""},null,{"$f":"IF($C$114=\"\",\"\",Z114/$C$114)","v":""},null,{"$f":"IF($C$114=\"\",\"\",AB114/$C$114)","v":""},null,{"$f":"IF($C$114=\"\",\"\",AD114/$C$114)","v":""},null,{"$f":"IF($C$114=\"\",\"\",AF114/$C$114)","v":""},null,{"$f":"IF($C$114=\"\",\"\",AH114/$C$114)","v":""},null,{"$f":"IF($C$114=\"\",\"\",AJ114/$C$114)","v":""},null,{"$f":"IF($C$114=\"\",\"\",AL114/$C$114)","v":""},null,{"$f":"IF($C$114=\"\",\"\",AN114/$C$114)","v":""},null,{"$f":"IF($C$114=\"\",\"\",AP114/$C$114)","v":""},null,{"$f":"IF($C$114=\"\",\"\",AR114/$C$114)","v":""},null,{"$f":"IF($C$114=\"\",\"\",AT114/$C$114)","v":""},null,{"$f":"IF($C$114=\"\",\"\",AV114/$C$114)","v":""},null,{"$f":"IF($C$114=\"\",\"\",AX114/$C$114)","v":""},null,{"$f":"IF($C$114=\"\",\"\",AZ114/$C$114)","v":""},null,{"$f":"IF($C$114=\"\",\"\",BB114/$C$114)","v":""},null,{"$f":"SUM(BB114,AZ114,AX114,AV114,AT114,AR114,AP114,AN114,AL114,AJ114,AH114,AF114,AD114,AB114,Z114,X114,V114,T114,R114,P114,N114,L114,J114,H114,F114)","v":0}]
["TOTAL HOURS",null,null,null,null,{"$f":"SUM(F57:F114)","v":0},null,{"$f":"SUM(H57:H114)","v":0},null,{"$f":"SUM(J57:J114)","v":0},null,{"$f":"SUM(L57:L114)","v":0},null,{"$f":"SUM(N57:N114)","v":0},null,{"$f":"SUM(P57:P114)","v":0},null,{"$f":"SUM(R57:R114)","v":0},null,{"$f":"SUM(T57:T114)","v":0},null,{"$f":"SUM(V57:V114)","v":0},null,{"$f":"SUM(X57:X114)","v":0},null,{"$f":"SUM(Z57:Z114)","v":0},null,{"$f":"SUM(AB57:AB114)","v":0},null,{"$f":"SUM(AD57:AD114)","v":0},null,{"$f":"SUM(AF57:AF114)","v":0},null,{"$f":"SUM(AH57:AH114)","v":0},null,{"$f":"SUM(AJ57:AJ114)","v":0},null,{"$f":"SUM(AL57:AL114)","v":0},null,{"$f":"SUM(AN57:AN114)","v":0},null,{"$f":"SUM(AP57:AP114)","v":0},null,{"$f":"SUM(AR57:AR114)","v":0},null,{"$f":"SUM(AT57:AT114)","v":0},null,{"$f":"SUM(AV57:AV114)","v":0},null,{"$f":"SUM(AX57:AX114)","v":0},null,{"$f":"SUM(AZ57:AZ114)","v":0},null,0,{"$f":"SUM(E115:BB115)","v":0}]
["TOTAL WORKDAYS",null,null,null,null,{"$f":"F115/8","v":0},null,{"$f":"H115/8","v":0},null,{"$f":"J115/8","v":0},null,{"$f":"L115/8","v":0},null,{"$f":"N115/8","v":0},null,{"$f":"P115/8","v":0},null,{"$f":"R115/8","v":0},null,{"$f":"T115/8","v":0},null,{"$f":"V115/8","v":0},null,{"$f":"X115/8","v":0},null,{"$f":"Z115/8","v":0},null,{"$f":"AB115/8","v":0},null,{"$f":"AD115/8","v":0},null,0,null,{"$f":"AH115/8","v":0},null,0,null,{"$f":"AL115/8","v":0},null,0,null,{"$f":"AP115/8","v":0},null,0,null,{"$f":"AT115/8","v":0},null,{"$f":"AV115/8","v":0},null,{"$f":"AX115/8","v":0},null,{"$f":"AZ115/8","v":0},null,0,{"$f":"SUM(E116:BB116)","v":0}]
["TOTAL RAW LABOR",null,null,null,null,{"$f":"$E$13*F115","v":0},null,{"$f":"$G$13*H115","v":0},null,{"$f":"$I$13*J115","v":0},null,{"$f":"$K$13*L115","v":0},null,{"$f":"$M$13*N115","v":0},null,{"$f":"$O$13*P115","v":0},null,{"$f":"$Q$13*R115","v":0},null,{"$f":"$S$13*T115","v":0},null,{"$f":"$U$13*V115","v":0},null,{"$f":"$W$13*X115","v":0},null,{"$f":"$Y$13*Z115","v":0},null,{"$f":"$AA$13*AB115","v":0},null,{"$f":"$AC$13*AD115","v":0},null,{"$f":"$AC$13*AF115","v":0},null,{"$f":"$AC$13*AH115","v":0},null,{"$f":"$AC$13*AJ115","v":0},null,{"$f":"$AC$13*AL115","v":0},null,{"$f":"$AC$13*AN115","v":0},null,{"$f":"$AC$13*AP115","v":0},null,{"$f":"$AC$13*AR115","v":0},null,{"$f":"$AC$13*AT115","v":0},null,{"$f":"$AC$13*AV115","v":0},null,{"$f":"$AC$13*AX115","v":0},null,{"$f":"$AC$13*AZ115","v":0},null,0,{"$f":"SUM(E117:BB117)","v":0}]
["Task 4.0     ","COMMUNICATIONS SYSTEM",null,null,null,null,null,null,null,null,null,null,null,null,null,null,null,null,null,null,null,null,null,null,null,null,null,null,null,null,null,null,null,null,null,null,null,null,null,null,null,null,null,null,null,null,null,null,null,null,null,null,null,null," "]
[4.0999999999999996,"Legacy Systems Review",null,null,{"$f":"IF($C$119=\"\",\"\",F119/$C$119)","v":""},null,{"$f":"IF($C$119=\"\",\"\",H119/$C$119)","v":""},null,{"$f":"IF($C$119=\"\",\"\",J119/$C$119)","v":""},null,{"$f":"IF($C$119=\"\",\"\",L119/$C$119)","v":""},null,{"$f":"IF($C$119=\"\",\"\",N119/$C$119)","v":""},null,{"$f":"IF($C$119=\"\",\"\",P119/$C$119)","v":""},null,{"$f":"IF($C$119=\"\",\"\",R119/$C$119)","v":""},null,{"$f":"IF($C$119=\"\",\"\",T119/$C$119)","v":""},null,{"$f":"IF($C$119=\"\",\"\",V119/$C$119)","v":""},null,{"$f":"IF($C$119=\"\",\"\",X119/$C$119)","v":""},null,{"$f":"IF($C$119=\"\",\"\",Z119/$C$119)","v":""},null,{"$f":"IF($C$119=\"\",\"\",AB119/$C$119)","v":""},null,{"$f":"IF($C$119=\"\",\"\",AD119/$C$119)","v":""},null,{"$f":"IF($C$119=\"\",\"\",AF119/$C$119)","v":""},null,{"$f":"IF($C$119=\"\",\"\",AH119/$C$119)","v":""},null,{"$f":"IF($C$119=\"\",\"\",AJ119/$C$119)","v":""},null,{"$f":"IF($C$119=\"\",\"\",AL119/$C$119)","v":""},null,{"$f":"IF($C$119=\"\",\"\",AN119/$C$119)","v":""},null,{"$f":"IF($C$119=\"\",\"\",AP119/$C$119)","v":""},null,{"$f":"IF($C$119=\"\",\"\",AR119/$C$119)","v":""},null,{"$f":"IF($C$119=\"\",\"\",AT119/$C$119)","v":""},null,{"$f":"IF($C$119=\"\",\"\",AV119/$C$119)","v":""},null,{"$f":"IF($C$119=\"\",\"\",AX119/$C$119)","v":""},null,{"$f":"IF($C$119=\"\",\"\",AZ119/$C$119)","v":""},null,{"$f":"IF($C$119=\"\",\"\",BB119/$C$119)","v":""},null,{"$f":"SUM(BB119,AZ119,AX119,AV119,AT119,AR119,AP119,AN119,AL119,AJ119,AH119,AF119,AD119,AB119,Z119,X119,V119,T119,R119,P119,N119,L119,J119,H119,F119)","v":0}]
[4.2,"Technology Review"]
["    4.2.1","    Wireless Site Surveys (Wireless Tests)",null,null,{"$f":"IF($C$121=\"\",\"\",F121/$C$121)","v":""},null,{"$f":"IF($C$121=\"\",\"\",H121/$C$121)","v":""},null,{"$f":"IF($C$121=\"\",\"\",J121/$C$121)","v":""},null,{"$f":"IF($C$121=\"\",\"\",L121/$C$121)","v":""},null,{"$f":"IF($C$121=\"\",\"\",N121/$C$121)","v":""},null,{"$f":"IF($C$121=\"\",\"\",P121/$C$121)","v":""},null,{"$f":"IF($C$121=\"\",\"\",R121/$C$121)","v":""},null,{"$f":"IF($C$121=\"\",\"\",T121/$C$121)","v":""},null,{"$f":"IF($C$121=\"\",\"\",V121/$C$121)","v":""},null,{"$f":"IF($C$121=\"\",\"\",X121/$C$121)","v":""},null,{"$f":"IF($C$121=\"\",\"\",Z121/$C$121)","v":""},null,{"$f":"IF($C$121=\"\",\"\",AB121/$C$121)","v":""},null,{"$f":"IF($C$121=\"\",\"\",AD121/$C$121)","v":""},null,{"$f":"IF($C$121=\"\",\"\",AF121/$C$121)","v":""},null,{"$f":"IF($C$121=\"\",\"\",AH121/$C$121)","v":""},null,{"$f":"IF($C$121=\"\",\"\",AJ121/$C$121)","v":""},null,{"$f":"IF($C$121=\"\",\"\",AL121/$C$121)","v":""},null,{"$f":"IF($C$121=\"\",\"\",AN121/$C$121)","v":""},null,{"$f":"IF($C$121=\"\",\"\",AP121/$C$121)","v":""},null,{"$f":"IF($C$121=\"\",\"\",AR121/$C$121)","v":""},null,{"$f":"IF($C$121=\"\",\"\",AT121/$C$121)","v":""},null,{"$f":"IF($C$121=\"\",\"\",AV121/$C$121)","v":""},null,{"$f":"IF($C$121=\"\",\"\",AX121/$C$121)","v":""},null,{"$f":"IF($C$121=\"\",\"\",AZ121/$C$121)","v":""},null,{"$f":"IF($C$121=\"\",\"\",BB121/$C$121)","v":""},null,{"$f":"SUM(BB121,AZ121,AX121,AV121,AT121,AR121,AP121,AN121,AL121,AJ121,AH121,AF121,AD121,AB121,Z121,X121,V121,T121,R121,P121,N121,L121,J121,H121,F121)","v":0}]
["    4.2.2","    Alternatives Evaluation",null,null,{"$f":"IF($C$122=\"\",\"\",F122/$C$122)","v":""},null,{"$f":"IF($C$122=\"\",\"\",H122/$C$122)","v":""},null,{"$f":"IF($C$122=\"\",\"\",J122/$C$122)","v":""},null,{"$f":"IF($C$122=\"\",\"\",L122/$C$122)","v":""},null,{"$f":"IF($C$122=\"\",\"\",N122/$C$122)","v":""},null,{"$f":"IF($C$122=\"\",\"\",P122/$C$122)","v":""},null,{"$f":"IF($C$122=\"\",\"\",R122/$C$122)","v":""},null,{"$f":"IF($C$122=\"\",\"\",T122/$C$122)","v":""},null,{"$f":"IF($C$122=\"\",\"\",V122/$C$122)","v":""},null,{"$f":"IF($C$122=\"\",\"\",X122/$C$122)","v":""},null,{"$f":"IF($C$122=\"\",\"\",Z122/$C$122)","v":""},null,{"$f":"IF($C$122=\"\",\"\",AB122/$C$122)","v":""},null,{"$f":"IF($C$122=\"\",\"\",AD122/$C$122)","v":""},null,{"$f":"IF($C$122=\"\",\"\",AF122/$C$122)","v":""},null,{"$f":"IF($C$122=\"\",\"\",AH122/$C$122)","v":""},null,{"$f":"IF($C$122=\"\",\"\",AJ122/$C$122)","v":""},null,{"$f":"IF($C$122=\"\",\"\",AL122/$C$122)","v":""},null,{"$f":"IF($C$122=\"\",\"\",AN122/$C$122)","v":""},null,{"$f":"IF($C$122=\"\",\"\",AP122/$C$122)","v":""},null,{"$f":"IF($C$122=\"\",\"\",AR122/$C$122)","v":""},null,{"$f":"IF($C$122=\"\",\"\",AT122/$C$122)","v":""},null,{"$f":"IF($C$122=\"\",\"\",AV122/$C$122)","v":""},null,{"$f":"IF($C$122=\"\",\"\",AX122/$C$122)","v":""},null,{"$f":"IF($C$122=\"\",\"\",AZ122/$C$122)","v":""},null,{"$f":"IF($C$122=\"\",\"\",BB122/$C$122)","v":""},null,0]
["    4.2.3",null,null,null,{"$f":"IF($C$123=\"\",\"\",F123/$C$123)","v":""},null,{"$f":"IF($C$123=\"\",\"\",H123/$C$123)","v":""},null,{"$f":"IF($C$123=\"\",\"\",J123/$C$123)","v":""},null,{"$f":"IF($C$123=\"\",\"\",L123/$C$123)","v":""},null,{"$f":"IF($C$123=\"\",\"\",N123/$C$123)","v":""},null,{"$f":"IF($C$123=\"\",\"\",P123/$C$123)","v":""},null,{"$f":"IF($C$123=\"\",\"\",R123/$C$123)","v":""},null,{"$f":"IF($C$123=\"\",\"\",T123/$C$123)","v":""},null,{"$f":"IF($C$123=\"\",\"\",V123/$C$123)","v":""},null,{"$f":"IF($C$123=\"\",\"\",X123/$C$123)","v":""},null,{"$f":"IF($C$123=\"\",\"\",Z123/$C$123)","v":""},null,{"$f":"IF($C$123=\"\",\"\",AB123/$C$123)","v":""},null,{"$f":"IF($C$123=\"\",\"\",AD123/$C$123)","v":""},null,{"$f":"IF($C$123=\"\",\"\",AF123/$C$123)","v":""},null,{"$f":"IF($C$123=\"\",\"\",AH123/$C$123)","v":""},null,{"$f":"IF($C$123=\"\",\"\",AJ123/$C$123)","v":""},null,{"$f":"IF($C$123=\"\",\"\",AL123/$C$123)","v":""},null,{"$f":"IF($C$123=\"\",\"\",AN123/$C$123)","v":""},null,{"$f":"IF($C$123=\"\",\"\",AP123/$C$123)","v":""},null,{"$f":"IF($C$123=\"\",\"\",AR123/$C$123)","v":""},null,{"$f":"IF($C$123=\"\",\"\",AT123/$C$123)","v":""},null,{"$f":"IF($C$123=\"\",\"\",AV123/$C$123)","v":""},null,{"$f":"IF($C$123=\"\",\"\",AX123/$C$123)","v":""},null,{"$f":"IF($C$123=\"\",\"\",AZ123/$C$123)","v":""},null,{"$f":"IF($C$123=\"\",\"\",BB123/$C$123)","v":""},null,0]
["    4.2.4",null,null,null,{"$f":"IF($C$124=\"\",\"\",F124/$C$124)","v":""},null,{"$f":"IF($C$124=\"\",\"\",H124/$C$124)","v":""},null,{"$f":"IF($C$124=\"\",\"\",J124/$C$124)","v":""},null,{"$f":"IF($C$124=\"\",\"\",L124/$C$124)","v":""},null,{"$f":"IF($C$124=\"\",\"\",N124/$C$124)","v":""},null,{"$f":"IF($C$124=\"\",\"\",P124/$C$124)","v":""},null,{"$f":"IF($C$124=\"\",\"\",R124/$C$124)","v":""},null,{"$f":"IF($C$124=\"\",\"\",T124/$C$124)","v":""},null,{"$f":"IF($C$124=\"\",\"\",V124/$C$124)","v":""},null,{"$f":"IF($C$124=\"\",\"\",X124/$C$124)","v":""},null,{"$f":"IF($C$124=\"\",\"\",Z124/$C$124)","v":""},null,{"$f":"IF($C$124=\"\",\"\",AB124/$C$124)","v":""},null,{"$f":"IF($C$124=\"\",\"\",AD124/$C$124)","v":""},null,{"$f":"IF($C$124=\"\",\"\",AF124/$C$124)","v":""},null,{"$f":"IF($C$124=\"\",\"\",AH124/$C$124)","v":""},null,{"$f":"IF($C$124=\"\",\"\",AJ124/$C$124)","v":""},null,{"$f":"IF($C$124=\"\",\"\",AL124/$C$124)","v":""},null,{"$f":"IF($C$124=\"\",\"\",AN124/$C$124)","v":""},null,{"$f":"IF($C$124=\"\",\"\",AP124/$C$124)","v":""},null,{"$f":"IF($C$124=\"\",\"\",AR124/$C$124)","v":""},null,{"$f":"IF($C$124=\"\",\"\",AT124/$C$124)","v":""},null,{"$f":"IF($C$124=\"\",\"\",AV124/$C$124)","v":""},null,{"$f":"IF($C$124=\"\",\"\",AX124/$C$124)","v":""},null,{"$f":"IF($C$124=\"\",\"\",AZ124/$C$124)","v":""},null,{"$f":"IF($C$124=\"\",\"\",BB124/$C$124)","v":""},null,0]
["    4.2.5",null,null,null,{"$f":"IF($C$125=\"\",\"\",F125/$C$125)","v":""},null,{"$f":"IF($C$125=\"\",\"\",H125/$C$125)","v":""},null,{"$f":"IF($C$125=\"\",\"\",J125/$C$125)","v":""},null,{"$f":"IF($C$125=\"\",\"\",L125/$C$125)","v":""},null,{"$f":"IF($C$125=\"\",\"\",N125/$C$125)","v":""},null,{"$f":"IF($C$125=\"\",\"\",P125/$C$125)","v":""},null,{"$f":"IF($C$125=\"\",\"\",R125/$C$125)","v":""},null,{"$f":"IF($C$125=\"\",\"\",T125/$C$125)","v":""},null,{"$f":"IF($C$125=\"\",\"\",V125/$C$125)","v":""},null,{"$f":"IF($C$125=\"\",\"\",X125/$C$125)","v":""},null,{"$f":"IF($C$125=\"\",\"\",Z125/$C$125)","v":""},null,{"$f":"IF($C$125=\"\",\"\",AB125/$C$125)","v":""},null,{"$f":"IF($C$125=\"\",\"\",AD125/$C$125)","v":""},null,{"$f":"IF($C$125=\"\",\"\",AF125/$C$125)","v":""},null,{"$f":"IF($C$125=\"\",\"\",AH125/$C$125)","v":""},null,{"$f":"IF($C$125=\"\",\"\",AJ125/$C$125)","v":""},null,{"$f":"IF($C$125=\"\",\"\",AL125/$C$125)","v":""},null,{"$f":"IF($C$125=\"\",\"\",AN125/$C$125)","v":""},null,{"$f":"IF($C$125=\"\",\"\",AP125/$C$125)","v":""},null,{"$f":"IF($C$125=\"\",\"\",AR125/$C$125)","v":""},null,{"$f":"IF($C$125=\"\",\"\",AT125/$C$125)","v":""},null,{"$f":"IF($C$125=\"\",\"\",AV125/$C$125)","v":""},null,{"$f":"IF($C$125=\"\",\"\",AX125/$C$125)","v":""},null,{"$f":"IF($C$125=\"\",\"\",AZ125/$C$125)","v":""},null,{"$f":"IF($C$125=\"\",\"\",BB125/$C$125)","v":""},null,0]
[4.3,"Migration Plan",null,null,{"$f":"IF($C$126=\"\",\"\",F126/$C$126)","v":""},null,{"$f":"IF($C$126=\"\",\"\",H126/$C$126)","v":""},null,{"$f":"IF($C$126=\"\",\"\",J126/$C$126)","v":""},null,{"$f":"IF($C$126=\"\",\"\",L126/$C$126)","v":""},null,{"$f":"IF($C$126=\"\",\"\",N126/$C$126)","v":""},null,{"$f":"IF($C$126=\"\",\"\",P126/$C$126)","v":""},null,{"$f":"IF($C$126=\"\",\"\",R126/$C$126)","v":""},null,{"$f":"IF($C$126=\"\",\"\",T126/$C$126)","v":""},null,{"$f":"IF($C$126=\"\",\"\",V126/$C$126)","v":""},null,{"$f":"IF($C$126=\"\",\"\",X126/$C$126)","v":""},null,{"$f":"IF($C$126=\"\",\"\",Z126/$C$126)","v":""},null,{"$f":"IF($C$126=\"\",\"\",AB126/$C$126)","v":""},null,{"$f":"IF($C$126=\"\",\"\",AD126/$C$126)","v":""},null,{"$f":"IF($C$126=\"\",\"\",AF126/$C$126)","v":""},null,{"$f":"IF($C$126=\"\",\"\",AH126/$C$126)","v":""},null,{"$f":"IF($C$126=\"\",\"\",AJ126/$C$126)","v":""},null,{"$f":"IF($C$126=\"\",\"\",AL126/$C$126)","v":""},null,{"$f":"IF($C$126=\"\",\"\",AN126/$C$126)","v":""},null,{"$f":"IF($C$126=\"\",\"\",AP126/$C$126)","v":""},null,{"$f":"IF($C$126=\"\",\"\",AR126/$C$126)","v":""},null,{"$f":"IF($C$126=\"\",\"\",AT126/$C$126)","v":""},null,{"$f":"IF($C$126=\"\",\"\",AV126/$C$126)","v":""},null,{"$f":"IF($C$126=\"\",\"\",AX126/$C$126)","v":""},null,{"$f":"IF($C$126=\"\",\"\",AZ126/$C$126)","v":""},null,{"$f":"IF($C$126=\"\",\"\",BB126/$C$126)","v":""},null,0]
[4.4000000000000004,"Bandwidth Analysis",null,null,{"$f":"IF($C$127=\"\",\"\",F127/$C$127)","v":""},null,{"$f":"IF($C$127=\"\",\"\",H127/$C$127)","v":""},null,{"$f":"IF($C$127=\"\",\"\",J127/$C$127)","v":""},null,{"$f":"IF($C$127=\"\",\"\",L127/$C$127)","v":""},null,{"$f":"IF($C$127=\"\",\"\",N127/$C$127)","v":""},null,{"$f":"IF($C$127=\"\",\"\",P127/$C$127)","v":""},null,{"$f":"IF($C$127=\"\",\"\",R127/$C$127)","v":""},null,{"$f":"IF($C$127=\"\",\"\",T127/$C$127)","v":""},null,{"$f":"IF($C$127=\"\",\"\",V127/$C$127)","v":""},null,{"$f":"IF($C$127=\"\",\"\",X127/$C$127)","v":""},null,{"$f":"IF($C$127=\"\",\"\",Z127/$C$127)","v":""},null,{"$f":"IF($C$127=\"\",\"\",AB127/$C$127)","v":""},null,{"$f":"IF($C$127=\"\",\"\",AD127/$C$127)","v":""},null,{"$f":"IF($C$127=\"\",\"\",AF127/$C$127)","v":""},null,{"$f":"IF($C$127=\"\",\"\",AH127/$C$127)","v":""},null,{"$f":"IF($C$127=\"\",\"\",AJ127/$C$127)","v":""},null,{"$f":"IF($C$127=\"\",\"\",AL127/$C$127)","v":""},null,{"$f":"IF($C$127=\"\",\"\",AN127/$C$127)","v":""},null,{"$f":"IF($C$127=\"\",\"\",AP127/$C$127)","v":""},null,{"$f":"IF($C$127=\"\",\"\",AR127/$C$127)","v":""},null,{"$f":"IF($C$127=\"\",\"\",AT127/$C$127)","v":""},null,{"$f":"IF($C$127=\"\",\"\",AV127/$C$127)","v":""},null,{"$f":"IF($C$127=\"\",\"\",AX127/$C$127)","v":""},null,{"$f":"IF($C$127=\"\",\"\",AZ127/$C$127)","v":""},null,{"$f":"IF($C$127=\"\",\"\",BB127/$C$127)","v":""},null,0]
[4.5,"Block Diagrams",null,null,{"$f":"IF($C$128=\"\",\"\",F128/$C$128)","v":""},null,{"$f":"IF($C$128=\"\",\"\",H128/$C$128)","v":""},null,{"$f":"IF($C$128=\"\",\"\",J128/$C$128)","v":""},null,{"$f":"IF($C$128=\"\",\"\",L128/$C$128)","v":""},null,{"$f":"IF($C$128=\"\",\"\",N128/$C$128)","v":""},null,{"$f":"IF($C$128=\"\",\"\",P128/$C$128)","v":""},null,{"$f":"IF($C$128=\"\",\"\",R128/$C$128)","v":""},null,{"$f":"IF($C$128=\"\",\"\",T128/$C$128)","v":""},null,{"$f":"IF($C$128=\"\",\"\",V128/$C$128)","v":""},null,{"$f":"IF($C$128=\"\",\"\",X128/$C$128)","v":""},null,{"$f":"IF($C$128=\"\",\"\",Z128/$C$128)","v":""},null,{"$f":"IF($C$128=\"\",\"\",AB128/$C$128)","v":""},null,{"$f":"IF($C$128=\"\",\"\",AD128/$C$128)","v":""},null,{"$f":"IF($C$128=\"\",\"\",AF128/$C$128)","v":""},null,{"$f":"IF($C$128=\"\",\"\",AH128/$C$128)","v":""},null,{"$f":"IF($C$128=\"\",\"\",AJ128/$C$128)","v":""},null,{"$f":"IF($C$128=\"\",\"\",AL128/$C$128)","v":""},null,{"$f":"IF($C$128=\"\",\"\",AN128/$C$128)","v":""},null,{"$f":"IF($C$128=\"\",\"\",AP128/$C$128)","v":""},null,{"$f":"IF($C$128=\"\",\"\",AR128/$C$128)","v":""},null,{"$f":"IF($C$128=\"\",\"\",AT128/$C$128)","v":""},null,{"$f":"IF($C$128=\"\",\"\",AV128/$C$128)","v":""},null,{"$f":"IF($C$128=\"\",\"\",AX128/$C$128)","v":""},null,{"$f":"IF($C$128=\"\",\"\",AZ128/$C$128)","v":""},null,{"$f":"IF($C$128=\"\",\"\",BB128/$C$128)","v":""},null,0]
[4.5999999999999996,"Prepare Communications Technical Memorandum",null,null,{"$f":"IF($C$129=\"\",\"\",F129/$C$129)","v":""},null,{"$f":"IF($C$129=\"\",\"\",H129/$C$129)","v":""},null,{"$f":"IF($C$129=\"\",\"\",J129/$C$129)","v":""},null,{"$f":"IF($C$129=\"\",\"\",L129/$C$129)","v":""},null,{"$f":"IF($C$129=\"\",\"\",N129/$C$129)","v":""},null,{"$f":"IF($C$129=\"\",\"\",P129/$C$129)","v":""},null,{"$f":"IF($C$129=\"\",\"\",R129/$C$129)","v":""},null,{"$f":"IF($C$129=\"\",\"\",T129/$C$129)","v":""},null,{"$f":"IF($C$129=\"\",\"\",V129/$C$129)","v":""},null,{"$f":"IF($C$129=\"\",\"\",X129/$C$129)","v":""},null,{"$f":"IF($C$129=\"\",\"\",Z129/$C$129)","v":""},null,{"$f":"IF($C$129=\"\",\"\",AB129/$C$129)","v":""},null,{"$f":"IF($C$129=\"\",\"\",AD129/$C$129)","v":""},null,{"$f":"IF($C$129=\"\",\"\",AF129/$C$129)","v":""},null,{"$f":"IF($C$129=\"\",\"\",AH129/$C$129)","v":""},null,{"$f":"IF($C$129=\"\",\"\",AJ129/$C$129)","v":""},null,{"$f":"IF($C$129=\"\",\"\",AL129/$C$129)","v":""},null,{"$f":"IF($C$129=\"\",\"\",AN129/$C$129)","v":""},null,{"$f":"IF($C$129=\"\",\"\",AP129/$C$129)","v":""},null,{"$f":"IF($C$129=\"\",\"\",AR129/$C$129)","v":""},null,{"$f":"IF($C$129=\"\",\"\",AT129/$C$129)","v":""},null,{"$f":"IF($C$129=\"\",\"\",AV129/$C$129)","v":""},null,{"$f":"IF($C$129=\"\",\"\",AX129/$C$129)","v":""},null,{"$f":"IF($C$129=\"\",\"\",AZ129/$C$129)","v":""},null,{"$f":"IF($C$129=\"\",\"\",BB129/$C$129)","v":""},null,0]
[4.7,"Quality Reviews",null,null,{"$f":"IF($C$130=\"\",\"\",F130/$C$130)","v":""},null,{"$f":"IF($C$130=\"\",\"\",H130/$C$130)","v":""},null,{"$f":"IF($C$130=\"\",\"\",J130/$C$130)","v":""},null,{"$f":"IF($C$130=\"\",\"\",L130/$C$130)","v":""},null,{"$f":"IF($C$130=\"\",\"\",N130/$C$130)","v":""},null,{"$f":"IF($C$130=\"\",\"\",P130/$C$130)","v":""},null,{"$f":"IF($C$130=\"\",\"\",R130/$C$130)","v":""},null,{"$f":"IF($C$130=\"\",\"\",T130/$C$130)","v":""},null,{"$f":"IF($C$130=\"\",\"\",V130/$C$130)","v":""},null,{"$f":"IF($C$130=\"\",\"\",X130/$C$130)","v":""},null,{"$f":"IF($C$130=\"\",\"\",Z130/$C$130)","v":""},null,{"$f":"IF($C$130=\"\",\"\",AB130/$C$130)","v":""},null,{"$f":"IF($C$130=\"\",\"\",AD130/$C$130)","v":""},null,{"$f":"IF($C$130=\"\",\"\",AF130/$C$130)","v":""},null,{"$f":"IF($C$130=\"\",\"\",AH130/$C$130)","v":""},null,{"$f":"IF($C$130=\"\",\"\",AJ130/$C$130)","v":""},null,{"$f":"IF($C$130=\"\",\"\",AL130/$C$130)","v":""},null,{"$f":"IF($C$130=\"\",\"\",AN130/$C$130)","v":""},null,{"$f":"IF($C$130=\"\",\"\",AP130/$C$130)","v":""},null,{"$f":"IF($C$130=\"\",\"\",AR130/$C$130)","v":""},null,{"$f":"IF($C$130=\"\",\"\",AT130/$C$130)","v":""},null,{"$f":"IF($C$130=\"\",\"\",AV130/$C$130)","v":""},null,{"$f":"IF($C$130=\"\",\"\",AX130/$C$130)","v":""},null,{"$f":"IF($C$130=\"\",\"\",AZ130/$C$130)","v":""},null,{"$f":"IF($C$130=\"\",\"\",BB130/$C$130)","v":""},null,0]
[null,null,null,null,{"$f":"IF($C$131=\"\",\"\",F131/$C$131)","v":""},null,{"$f":"IF($C$131=\"\",\"\",H131/$C$131)","v":""},null,{"$f":"IF($C$131=\"\",\"\",J131/$C$131)","v":""},null,{"$f":"IF($C$131=\"\",\"\",L131/$C$131)","v":""},null,{"$f":"IF($C$131=\"\",\"\",N131/$C$131)","v":""},null,{"$f":"IF($C$131=\"\",\"\",P131/$C$131)","v":""},null,{"$f":"IF($C$131=\"\",\"\",R131/$C$131)","v":""},null,{"$f":"IF($C$131=\"\",\"\",T131/$C$131)","v":""},null,{"$f":"IF($C$131=\"\",\"\",V131/$C$131)","v":""},null,{"$f":"IF($C$131=\"\",\"\",X131/$C$131)","v":""},null,{"$f":"IF($C$131=\"\",\"\",Z131/$C$131)","v":""},null,{"$f":"IF($C$131=\"\",\"\",AB131/$C$131)","v":""},null,{"$f":"IF($C$131=\"\",\"\",AD131/$C$131)","v":""},null,{"$f":"IF($C$131=\"\",\"\",AF131/$C$131)","v":""},null,{"$f":"IF($C$131=\"\",\"\",AH131/$C$131)","v":""},null,{"$f":"IF($C$131=\"\",\"\",AJ131/$C$131)","v":""},null,{"$f":"IF($C$131=\"\",\"\",AL131/$C$131)","v":""},null,{"$f":"IF($C$131=\"\",\"\",AN131/$C$131)","v":""},null,{"$f":"IF($C$131=\"\",\"\",AP131/$C$131)","v":""},null,{"$f":"IF($C$131=\"\",\"\",AR131/$C$131)","v":""},null,{"$f":"IF($C$131=\"\",\"\",AT131/$C$131)","v":""},null,{"$f":"IF($C$131=\"\",\"\",AV131/$C$131)","v":""},null,{"$f":"IF($C$131=\"\",\"\",AX131/$C$131)","v":""},null,{"$f":"IF($C$131=\"\",\"\",AZ131/$C$131)","v":""},null,{"$f":"IF($C$131=\"\",\"\",BB131/$C$131)","v":""},null,0]
[null,null,null,null,{"$f":"IF($C$132=\"\",\"\",F132/$C$132)","v":""},null,{"$f":"IF($C$132=\"\",\"\",H132/$C$132)","v":""},null,{"$f":"IF($C$132=\"\",\"\",J132/$C$132)","v":""},null,{"$f":"IF($C$132=\"\",\"\",L132/$C$132)","v":""},null,{"$f":"IF($C$132=\"\",\"\",N132/$C$132)","v":""},null,{"$f":"IF($C$132=\"\",\"\",P132/$C$132)","v":""},null,{"$f":"IF($C$132=\"\",\"\",R132/$C$132)","v":""},null,{"$f":"IF($C$132=\"\",\"\",T132/$C$132)","v":""},null,{"$f":"IF($C$132=\"\",\"\",V132/$C$132)","v":""},null,{"$f":"IF($C$132=\"\",\"\",X132/$C$132)","v":""},null,{"$f":"IF($C$132=\"\",\"\",Z132/$C$132)","v":""},null,{"$f":"IF($C$132=\"\",\"\",AB132/$C$132)","v":""},null,{"$f":"IF($C$132=\"\",\"\",AD132/$C$132)","v":""},null,{"$f":"IF($C$132=\"\",\"\",AF132/$C$132)","v":""},null,{"$f":"IF($C$132=\"\",\"\",AH132/$C$132)","v":""},null,{"$f":"IF($C$132=\"\",\"\",AJ132/$C$132)","v":""},null,{"$f":"IF($C$132=\"\",\"\",AL132/$C$132)","v":""},null,{"$f":"IF($C$132=\"\",\"\",AN132/$C$132)","v":""},null,{"$f":"IF($C$132=\"\",\"\",AP132/$C$132)","v":""},null,{"$f":"IF($C$132=\"\",\"\",AR132/$C$132)","v":""},null,{"$f":"IF($C$132=\"\",\"\",AT132/$C$132)","v":""},null,{"$f":"IF($C$132=\"\",\"\",AV132/$C$132)","v":""},null,{"$f":"IF($C$132=\"\",\"\",AX132/$C$132)","v":""},null,{"$f":"IF($C$132=\"\",\"\",AZ132/$C$132)","v":""},null,{"$f":"IF($C$132=\"\",\"\",BB132/$C$132)","v":""},null,0]
[null,null,null,null,{"$f":"IF($C$133=\"\",\"\",F133/$C$133)","v":""},null,{"$f":"IF($C$133=\"\",\"\",H133/$C$133)","v":""},null,{"$f":"IF($C$133=\"\",\"\",J133/$C$133)","v":""},null,{"$f":"IF($C$133=\"\",\"\",L133/$C$133)","v":""},null,{"$f":"IF($C$133=\"\",\"\",N133/$C$133)","v":""},null,{"$f":"IF($C$133=\"\",\"\",P133/$C$133)","v":""},null,{"$f":"IF($C$133=\"\",\"\",R133/$C$133)","v":""},null,{"$f":"IF($C$133=\"\",\"\",T133/$C$133)","v":""},null,{"$f":"IF($C$133=\"\",\"\",V133/$C$133)","v":""},null,{"$f":"IF($C$133=\"\",\"\",X133/$C$133)","v":""},null,{"$f":"IF($C$133=\"\",\"\",Z133/$C$133)","v":""},null,{"$f":"IF($C$133=\"\",\"\",AB133/$C$133)","v":""},null,{"$f":"IF($C$133=\"\",\"\",AD133/$C$133)","v":""},null,{"$f":"IF($C$133=\"\",\"\",AF133/$C$133)","v":""},null,{"$f":"IF($C$133=\"\",\"\",AH133/$C$133)","v":""},null,{"$f":"IF($C$133=\"\",\"\",AJ133/$C$133)","v":""},null,{"$f":"IF($C$133=\"\",\"\",AL133/$C$133)","v":""},null,{"$f":"IF($C$133=\"\",\"\",AN133/$C$133)","v":""},null,{"$f":"IF($C$133=\"\",\"\",AP133/$C$133)","v":""},null,{"$f":"IF($C$133=\"\",\"\",AR133/$C$133)","v":""},null,{"$f":"IF($C$133=\"\",\"\",AT133/$C$133)","v":""},null,{"$f":"IF($C$133=\"\",\"\",AV133/$C$133)","v":""},null,{"$f":"IF($C$133=\"\",\"\",AX133/$C$133)","v":""},null,{"$f":"IF($C$133=\"\",\"\",AZ133/$C$133)","v":""},null,{"$f":"IF($C$133=\"\",\"\",BB133/$C$133)","v":""},null,0]
[null,null,null,null,{"$f":"IF($C$134=\"\",\"\",F134/$C$134)","v":""},null,{"$f":"IF($C$134=\"\",\"\",H134/$C$134)","v":""},null,{"$f":"IF($C$134=\"\",\"\",J134/$C$134)","v":""},null,{"$f":"IF($C$134=\"\",\"\",L134/$C$134)","v":""},null,{"$f":"IF($C$134=\"\",\"\",N134/$C$134)","v":""},null,{"$f":"IF($C$134=\"\",\"\",P134/$C$134)","v":""},null,{"$f":"IF($C$134=\"\",\"\",R134/$C$134)","v":""},null,{"$f":"IF($C$134=\"\",\"\",T134/$C$134)","v":""},null,{"$f":"IF($C$134=\"\",\"\",V134/$C$134)","v":""},null,{"$f":"IF($C$134=\"\",\"\",X134/$C$134)","v":""},null,{"$f":"IF($C$134=\"\",\"\",Z134/$C$134)","v":""},null,{"$f":"IF($C$134=\"\",\"\",AB134/$C$134)","v":""},null,{"$f":"IF($C$134=\"\",\"\",AD134/$C$134)","v":""},null,{"$f":"IF($C$134=\"\",\"\",AF134/$C$134)","v":""},null,{"$f":"IF($C$134=\"\",\"\",AH134/$C$134)","v":""},null,{"$f":"IF($C$134=\"\",\"\",AJ134/$C$134)","v":""},null,{"$f":"IF($C$134=\"\",\"\",AL134/$C$134)","v":""},null,{"$f":"IF($C$134=\"\",\"\",AN134/$C$134)","v":""},null,{"$f":"IF($C$134=\"\",\"\",AP134/$C$134)","v":""},null,{"$f":"IF($C$134=\"\",\"\",AR134/$C$134)","v":""},null,{"$f":"IF($C$134=\"\",\"\",AT134/$C$134)","v":""},null,{"$f":"IF($C$134=\"\",\"\",AV134/$C$134)","v":""},null,{"$f":"IF($C$134=\"\",\"\",AX134/$C$134)","v":""},null,{"$f":"IF($C$134=\"\",\"\",AZ134/$C$134)","v":""},null,{"$f":"IF($C$134=\"\",\"\",BB134/$C$134)","v":""},null,0]
[null,null,null,null,{"$f":"IF($C$135=\"\",\"\",F135/$C$135)","v":""},null,{"$f":"IF($C$135=\"\",\"\",H135/$C$135)","v":""},null,{"$f":"IF($C$135=\"\",\"\",J135/$C$135)","v":""},null,{"$f":"IF($C$135=\"\",\"\",L135/$C$135)","v":""},null,{"$f":"IF($C$135=\"\",\"\",N135/$C$135)","v":""},null,{"$f":"IF($C$135=\"\",\"\",P135/$C$135)","v":""},null,{"$f":"IF($C$135=\"\",\"\",R135/$C$135)","v":""},null,{"$f":"IF($C$135=\"\",\"\",T135/$C$135)","v":""},null,{"$f":"IF($C$135=\"\",\"\",V135/$C$135)","v":""},null,{"$f":"IF($C$135=\"\",\"\",X135/$C$135)","v":""},null,{"$f":"IF($C$135=\"\",\"\",Z135/$C$135)","v":""},null,{"$f":"IF($C$135=\"\",\"\",AB135/$C$135)","v":""},null,{"$f":"IF($C$135=\"\",\"\",AD135/$C$135)","v":""},null,{"$f":"IF($C$135=\"\",\"\",AF135/$C$135)","v":""},null,{"$f":"IF($C$135=\"\",\"\",AH135/$C$135)","v":""},null,{"$f":"IF($C$135=\"\",\"\",AJ135/$C$135)","v":""},null,{"$f":"IF($C$135=\"\",\"\",AL135/$C$135)","v":""},null,{"$f":"IF($C$135=\"\",\"\",AN135/$C$135)","v":""},null,{"$f":"IF($C$135=\"\",\"\",AP135/$C$135)","v":""},null,{"$f":"IF($C$135=\"\",\"\",AR135/$C$135)","v":""},null,{"$f":"IF($C$135=\"\",\"\",AT135/$C$135)","v":""},null,{"$f":"IF($C$135=\"\",\"\",AV135/$C$135)","v":""},null,{"$f":"IF($C$135=\"\",\"\",AX135/$C$135)","v":""},null,{"$f":"IF($C$135=\"\",\"\",AZ135/$C$135)","v":""},null,{"$f":"IF($C$135=\"\",\"\",BB135/$C$135)","v":""},null,0]
[null,null,null,null,{"$f":"IF($C$136=\"\",\"\",F136/$C$136)","v":""},null,{"$f":"IF($C$136=\"\",\"\",H136/$C$136)","v":""},null,{"$f":"IF($C$136=\"\",\"\",J136/$C$136)","v":""},null,{"$f":"IF($C$136=\"\",\"\",L136/$C$136)","v":""},null,{"$f":"IF($C$136=\"\",\"\",N136/$C$136)","v":""},null,{"$f":"IF($C$136=\"\",\"\",P136/$C$136)","v":""},null,{"$f":"IF($C$136=\"\",\"\",R136/$C$136)","v":""},null,{"$f":"IF($C$136=\"\",\"\",T136/$C$136)","v":""},null,{"$f":"IF($C$136=\"\",\"\",V136/$C$136)","v":""},null,{"$f":"IF($C$136=\"\",\"\",X136/$C$136)","v":""},null,{"$f":"IF($C$136=\"\",\"\",Z136/$C$136)","v":""},null,{"$f":"IF($C$136=\"\",\"\",AB136/$C$136)","v":""},null,{"$f":"IF($C$136=\"\",\"\",AD136/$C$136)","v":""},null,{"$f":"IF($C$136=\"\",\"\",AF136/$C$136)","v":""},null,{"$f":"IF($C$136=\"\",\"\",AH136/$C$136)","v":""},null,{"$f":"IF($C$136=\"\",\"\",AJ136/$C$136)","v":""},null,{"$f":"IF($C$136=\"\",\"\",AL136/$C$136)","v":""},null,{"$f":"IF($C$136=\"\",\"\",AN136/$C$136)","v":""},null,{"$f":"IF($C$136=\"\",\"\",AP136/$C$136)","v":""},null,{"$f":"IF($C$136=\"\",\"\",AR136/$C$136)","v":""},null,{"$f":"IF($C$136=\"\",\"\",AT136/$C$136)","v":""},null,{"$f":"IF($C$136=\"\",\"\",AV136/$C$136)","v":""},null,{"$f":"IF($C$136=\"\",\"\",AX136/$C$136)","v":""},null,{"$f":"IF($C$136=\"\",\"\",AZ136/$C$136)","v":""},null,{"$f":"IF($C$136=\"\",\"\",BB136/$C$136)","v":""},null,0]
[null,null,null,null,{"$f":"IF($C$137=\"\",\"\",F137/$C$137)","v":""},null,{"$f":"IF($C$137=\"\",\"\",H137/$C$137)","v":""},null,{"$f":"IF($C$137=\"\",\"\",J137/$C$137)","v":""},null,{"$f":"IF($C$137=\"\",\"\",L137/$C$137)","v":""},null,{"$f":"IF($C$137=\"\",\"\",N137/$C$137)","v":""},null,{"$f":"IF($C$137=\"\",\"\",P137/$C$137)","v":""},null,{"$f":"IF($C$137=\"\",\"\",R137/$C$137)","v":""},null,{"$f":"IF($C$137=\"\",\"\",T137/$C$137)","v":""},null,{"$f":"IF($C$137=\"\",\"\",V137/$C$137)","v":""},null,{"$f":"IF($C$137=\"\",\"\",X137/$C$137)","v":""},null,{"$f":"IF($C$137=\"\",\"\",Z137/$C$137)","v":""},null,{"$f":"IF($C$137=\"\",\"\",AB137/$C$137)","v":""},null,{"$f":"IF($C$137=\"\",\"\",AD137/$C$137)","v":""},null,{"$f":"IF($C$137=\"\",\"\",AF137/$C$137)","v":""},null,{"$f":"IF($C$137=\"\",\"\",AH137/$C$137)","v":""},null,{"$f":"IF($C$137=\"\",\"\",AJ137/$C$137)","v":""},null,{"$f":"IF($C$137=\"\",\"\",AL137/$C$137)","v":""},null,{"$f":"IF($C$137=\"\",\"\",AN137/$C$137)","v":""},null,{"$f":"IF($C$137=\"\",\"\",AP137/$C$137)","v":""},null,{"$f":"IF($C$137=\"\",\"\",AR137/$C$137)","v":""},null,{"$f":"IF($C$137=\"\",\"\",AT137/$C$137)","v":""},null,{"$f":"IF($C$137=\"\",\"\",AV137/$C$137)","v":""},null,{"$f":"IF($C$137=\"\",\"\",AX137/$C$137)","v":""},null,{"$f":"IF($C$137=\"\",\"\",AZ137/$C$137)","v":""},null,{"$f":"IF($C$137=\"\",\"\",BB137/$C$137)","v":""},null,{"$f":"SUM(BB137,AZ137,AX137,AV137,AT137,AR137,AP137,AN137,AL137,AJ137,AH137,AF137,AD137,AB137,Z137,X137,V137,T137,R137,P137,N137,L137,J137,H137,F137)","v":0}]
["TOTAL HOURS",null,null,null,null,{"$f":"SUM(F119:F137)","v":0},null,{"$f":"SUM(H119:H137)","v":0},null,{"$f":"SUM(J119:J137)","v":0},null,{"$f":"SUM(L119:L137)","v":0},null,{"$f":"SUM(N119:N137)","v":0},null,{"$f":"SUM(P119:P137)","v":0},null,{"$f":"SUM(R119:R137)","v":0},null,{"$f":"SUM(T119:T137)","v":0},null,{"$f":"SUM(V119:V137)","v":0},null,{"$f":"SUM(X119:X137)","v":0},null,{"$f":"SUM(Z119:Z137)","v":0},null,{"$f":"SUM(AB119:AB137)","v":0},null,{"$f":"SUM(AD119:AD137)","v":0},null,{"$f":"SUM(AF119:AF137)","v":0},null,{"$f":"SUM(AH119:AH137)","v":0},null,{"$f":"SUM(AJ119:AJ137)","v":0},null,{"$f":"SUM(AL119:AL137)","v":0},null,{"$f":"SUM(AN119:AN137)","v":0},null,{"$f":"SUM(AP119:AP137)","v":0},null,{"$f":"SUM(AR119:AR137)","v":0},null,{"$f":"SUM(AT119:AT137)","v":0},null,{"$f":"SUM(AV119:AV137)","v":0},null,{"$f":"SUM(AX119:AX137)","v":0},null,{"$f":"SUM(AZ119:AZ137)","v":0},null,0,{"$f":"SUM(E138:BB138)","v":0}]
["TOTAL WORKDAYS",null,null,null,null,{"$f":"F138/8","v":0},null,{"$f":"H138/8","v":0},null,{"$f":"J138/8","v":0},null,{"$f":"L138/8","v":0},null,{"$f":"N138/8","v":0},null,{"$f":"P138/8","v":0},null,{"$f":"R138/8","v":0},null,{"$f":"T138/8","v":0},null,{"$f":"V138/8","v":0},null,{"$f":"X138/8","v":0},null,{"$f":"Z138/8","v":0},null,{"$f":"AB138/8","v":0},null,{"$f":"AD138/8","v":0},null,0,null,{"$f":"AH138/8","v":0},null,0,null,{"$f":"AL138/8","v":0},null,0,null,{"$f":"AP138/8","v":0},null,0,null,{"$f":"AT138/8","v":0},null,{"$f":"AV138/8","v":0},null,{"$f":"AX138/8","v":0},null,{"$f":"AZ138/8","v":0},null,0,{"$f":"SUM(E139:BB139)","v":0}]
["TOTAL RAW LABOR",null,null,null,null,{"$f":"$E$13*F138","v":0},null,{"$f":"$G$13*H138","v":0},null,{"$f":"$I$13*J138","v":0},null,{"$f":"$K$13*L138","v":0},null,{"$f":"$M$13*N138","v":0},null,{"$f":"$O$13*P138","v":0},null,{"$f":"$Q$13*R138","v":0},null,{"$f":"$S$13*T138","v":0},null,{"$f":"$U$13*V138","v":0},null,{"$f":"$W$13*X138","v":0},null,{"$f":"$Y$13*Z138","v":0},null,{"$f":"$AA$13*AB138","v":0},null,{"$f":"$AC$13*AD138","v":0},null,{"$f":"$AC$13*AF138","v":0},null,{"$f":"$AC$13*AH138","v":0},null,{"$f":"$AC$13*AJ138","v":0},null,{"$f":"$AC$13*AL138","v":0},null,{"$f":"$AC$13*AN138","v":0},null,{"$f":"$AC$13*AP138","v":0},null,{"$f":"$AC$13*AR138","v":0},null,{"$f":"$AC$13*AT138","v":0},null,{"$f":"$AC$13*AV138","v":0},null,{"$f":"$AC$13*AX138","v":0},null,{"$f":"$AC$13*AZ138","v":0},null,0,{"$f":"SUM(E140:BB140)","v":0}]
["Task 5.0     ","FIELD EQUIPMENT INVENTORIES"]
[5.0999999999999996,"Existing Data Collection",null,null,{"$f":"IF($C$142=\"\",\"\",F142/$C$142)","v":""},null,{"$f":"IF($C$142=\"\",\"\",H142/$C$142)","v":""},null,{"$f":"IF($C$142=\"\",\"\",J142/$C$142)","v":""},null,{"$f":"IF($C$142=\"\",\"\",L142/$C$142)","v":""},null,{"$f":"IF($C$142=\"\",\"\",N142/$C$142)","v":""},null,{"$f":"IF($C$142=\"\",\"\",P142/$C$142)","v":""},null,{"$f":"IF($C$142=\"\",\"\",R142/$C$142)","v":""},null,{"$f":"IF($C$142=\"\",\"\",T142/$C$142)","v":""},null,{"$f":"IF($C$142=\"\",\"\",V142/$C$142)","v":""},null,{"$f":"IF($C$142=\"\",\"\",X142/$C$142)","v":""},null,{"$f":"IF($C$142=\"\",\"\",Z142/$C$142)","v":""},null,{"$f":"IF($C$142=\"\",\"\",AB142/$C$142)","v":""},null,{"$f":"IF($C$142=\"\",\"\",AD142/$C$142)","v":""},null,{"$f":"IF($C$142=\"\",\"\",AF142/$C$142)","v":""},null,{"$f":"IF($C$142=\"\",\"\",AH142/$C$142)","v":""},null,{"$f":"IF($C$142=\"\",\"\",AJ142/$C$142)","v":""},null,{"$f":"IF($C$142=\"\",\"\",AL142/$C$142)","v":""},null,{"$f":"IF($C$142=\"\",\"\",AN142/$C$142)","v":""},null,{"$f":"IF($C$142=\"\",\"\",AP142/$C$142)","v":""},null,{"$f":"IF($C$142=\"\",\"\",AR142/$C$142)","v":""},null,{"$f":"IF($C$142=\"\",\"\",AT142/$C$142)","v":""},null,{"$f":"IF($C$142=\"\",\"\",AV142/$C$142)","v":""},null,{"$f":"IF($C$142=\"\",\"\",AX142/$C$142)","v":""},null,{"$f":"IF($C$142=\"\",\"\",AZ142/$C$142)","v":""},null,{"$f":"IF($C$142=\"\",\"\",BB142/$C$142)","v":""},null,{"$f":"SUM(BB142,AZ142,AX142,AV142,AT142,AR142,AP142,AN142,AL142,AJ142,AH142,AF142,AD142,AB142,Z142,X142,V142,T142,R142,P142,N142,L142,J142,H142,F142)","v":0}]
[5.2,"Signal Inventories"]
["    5.2.1","    Inventory Existing NCDOT Signals",null,null,{"$f":"IF($C$144=\"\",\"\",F144/$C$144)","v":""},null,{"$f":"IF($C$144=\"\",\"\",H144/$C$144)","v":""},null,{"$f":"IF($C$144=\"\",\"\",J144/$C$144)","v":""},null,{"$f":"IF($C$144=\"\",\"\",L144/$C$144)","v":""},null,{"$f":"IF($C$144=\"\",\"\",N144/$C$144)","v":""},null,{"$f":"IF($C$144=\"\",\"\",P144/$C$144)","v":""},null,{"$f":"IF($C$144=\"\",\"\",R144/$C$144)","v":""},null,{"$f":"IF($C$144=\"\",\"\",T144/$C$144)","v":""},null,{"$f":"IF($C$144=\"\",\"\",V144/$C$144)","v":""},null,{"$f":"IF($C$144=\"\",\"\",X144/$C$144)","v":""},null,{"$f":"IF($C$144=\"\",\"\",Z144/$C$144)","v":""},null,{"$f":"IF($C$144=\"\",\"\",AB144/$C$144)","v":""},null,{"$f":"IF($C$144=\"\",\"\",AD144/$C$144)","v":""},null,{"$f":"IF($C$144=\"\",\"\",AF144/$C$144)","v":""},null,{"$f":"IF($C$144=\"\",\"\",AH144/$C$144)","v":""},null,{"$f":"IF($C$144=\"\",\"\",AJ144/$C$144)","v":""},null,{"$f":"IF($C$144=\"\",\"\",AL144/$C$144)","v":""},null,{"$f":"IF($C$144=\"\",\"\",AN144/$C$144)","v":""},null,{"$f":"IF($C$144=\"\",\"\",AP144/$C$144)","v":""},null,{"$f":"IF($C$144=\"\",\"\",AR144/$C$144)","v":""},null,{"$f":"IF($C$144=\"\",\"\",AT144/$C$144)","v":""},null,{"$f":"IF($C$144=\"\",\"\",AV144/$C$144)","v":""},null,{"$f":"IF($C$144=\"\",\"\",AX144/$C$144)","v":""},null,{"$f":"IF($C$144=\"\",\"\",AZ144/$C$144)","v":""},null,{"$f":"IF($C$144=\"\",\"\",BB144/$C$144)","v":""},null,{"$f":"SUM(BB144,AZ144,AX144,AV144,AT144,AR144,AP144,AN144,AL144,AJ144,AH144,AF144,AD144,AB144,Z144,X144,V144,T144,R144,P144,N144,L144,J144,H144,F144)","v":0}]
["    5.2.2","    Inventory Existing City Signals",null,null,{"$f":"IF($C$145=\"\",\"\",F145/$C$145)","v":""},null,{"$f":"IF($C$145=\"\",\"\",H145/$C$145)","v":""},null,{"$f":"IF($C$145=\"\",\"\",J145/$C$145)","v":""},null,{"$f":"IF($C$145=\"\",\"\",L145/$C$145)","v":""},null,{"$f":"IF($C$145=\"\",\"\",N145/$C$145)","v":""},null,{"$f":"IF($C$145=\"\",\"\",P145/$C$145)","v":""},null,{"$f":"IF($C$145=\"\",\"\",R145/$C$145)","v":""},null,{"$f":"IF($C$145=\"\",\"\",T145/$C$145)","v":""},null,{"$f":"IF($C$145=\"\",\"\",V145/$C$145)","v":""},null,{"$f":"IF($C$145=\"\",\"\",X145/$C$145)","v":""},null,{"$f":"IF($C$145=\"\",\"\",Z145/$C$145)","v":""},null,{"$f":"IF($C$145=\"\",\"\",AB145/$C$145)","v":""},null,{"$f":"IF($C$145=\"\",\"\",AD145/$C$145)","v":""},null,{"$f":"IF($C$145=\"\",\"\",AF145/$C$145)","v":""},null,{"$f":"IF($C$145=\"\",\"\",AH145/$C$145)","v":""},null,{"$f":"IF($C$145=\"\",\"\",AJ145/$C$145)","v":""},null,{"$f":"IF($C$145=\"\",\"\",AL145/$C$145)","v":""},null,{"$f":"IF($C$145=\"\",\"\",AN145/$C$145)","v":""},null,{"$f":"IF($C$145=\"\",\"\",AP145/$C$145)","v":""},null,{"$f":"IF($C$145=\"\",\"\",AR145/$C$145)","v":""},null,{"$f":"IF($C$145=\"\",\"\",AT145/$C$145)","v":""},null,{"$f":"IF($C$145=\"\",\"\",AV145/$C$145)","v":""},null,{"$f":"IF($C$145=\"\",\"\",AX145/$C$145)","v":""},null,{"$f":"IF($C$145=\"\",\"\",AZ145/$C$145)","v":""},null,{"$f":"IF($C$145=\"\",\"\",BB145/$C$145)","v":""},null,0]
["    5.2.3",null,null,null,{"$f":"IF($C$146=\"\",\"\",F146/$C$146)","v":""},null,{"$f":"IF($C$146=\"\",\"\",H146/$C$146)","v":""},null,{"$f":"IF($C$146=\"\",\"\",J146/$C$146)","v":""},null,{"$f":"IF($C$146=\"\",\"\",L146/$C$146)","v":""},null,{"$f":"IF($C$146=\"\",\"\",N146/$C$146)","v":""},null,{"$f":"IF($C$146=\"\",\"\",P146/$C$146)","v":""},null,{"$f":"IF($C$146=\"\",\"\",R146/$C$146)","v":""},null,{"$f":"IF($C$146=\"\",\"\",T146/$C$146)","v":""},null,{"$f":"IF($C$146=\"\",\"\",V146/$C$146)","v":""},null,{"$f":"IF($C$146=\"\",\"\",X146/$C$146)","v":""},null,{"$f":"IF($C$146=\"\",\"\",Z146/$C$146)","v":""},null,{"$f":"IF($C$146=\"\",\"\",AB146/$C$146)","v":""},null,{"$f":"IF($C$146=\"\",\"\",AD146/$C$146)","v":""},null,{"$f":"IF($C$146=\"\",\"\",AF146/$C$146)","v":""},null,{"$f":"IF($C$146=\"\",\"\",AH146/$C$146)","v":""},null,{"$f":"IF($C$146=\"\",\"\",AJ146/$C$146)","v":""},null,{"$f":"IF($C$146=\"\",\"\",AL146/$C$146)","v":""},null,{"$f":"IF($C$146=\"\",\"\",AN146/$C$146)","v":""},null,{"$f":"IF($C$146=\"\",\"\",AP146/$C$146)","v":""},null,{"$f":"IF($C$146=\"\",\"\",AR146/$C$146)","v":""},null,{"$f":"IF($C$146=\"\",\"\",AT146/$C$146)","v":""},null,{"$f":"IF($C$146=\"\",\"\",AV146/$C$146)","v":""},null,{"$f":"IF($C$146=\"\",\"\",AX146/$C$146)","v":""},null,{"$f":"IF($C$146=\"\",\"\",AZ146/$C$146)","v":""},null,{"$f":"IF($C$146=\"\",\"\",BB146/$C$146)","v":""},null,0]
["    5.2.4",null,null,null,{"$f":"IF($C$147=\"\",\"\",F147/$C$147)","v":""},null,{"$f":"IF($C$147=\"\",\"\",H147/$C$147)","v":""},null,{"$f":"IF($C$147=\"\",\"\",J147/$C$147)","v":""},null,{"$f":"IF($C$147=\"\",\"\",L147/$C$147)","v":""},null,{"$f":"IF($C$147=\"\",\"\",N147/$C$147)","v":""},null,{"$f":"IF($C$147=\"\",\"\",P147/$C$147)","v":""},null,{"$f":"IF($C$147=\"\",\"\",R147/$C$147)","v":""},null,{"$f":"IF($C$147=\"\",\"\",T147/$C$147)","v":""},null,{"$f":"IF($C$147=\"\",\"\",V147/$C$147)","v":""},null,{"$f":"IF($C$147=\"\",\"\",X147/$C$147)","v":""},null,{"$f":"IF($C$147=\"\",\"\",Z147/$C$147)","v":""},null,{"$f":"IF($C$147=\"\",\"\",AB147/$C$147)","v":""},null,{"$f":"IF($C$147=\"\",\"\",AD147/$C$147)","v":""},null,{"$f":"IF($C$147=\"\",\"\",AF147/$C$147)","v":""},null,{"$f":"IF($C$147=\"\",\"\",AH147/$C$147)","v":""},null,{"$f":"IF($C$147=\"\",\"\",AJ147/$C$147)","v":""},null,{"$f":"IF($C$147=\"\",\"\",AL147/$C$147)","v":""},null,{"$f":"IF($C$147=\"\",\"\",AN147/$C$147)","v":""},null,{"$f":"IF($C$147=\"\",\"\",AP147/$C$147)","v":""},null,{"$f":"IF($C$147=\"\",\"\",AR147/$C$147)","v":""},null,{"$f":"IF($C$147=\"\",\"\",AT147/$C$147)","v":""},null,{"$f":"IF($C$147=\"\",\"\",AV147/$C$147)","v":""},null,{"$f":"IF($C$147=\"\",\"\",AX147/$C$147)","v":""},null,{"$f":"IF($C$147=\"\",\"\",AZ147/$C$147)","v":""},null,{"$f":"IF($C$147=\"\",\"\",BB147/$C$147)","v":""},null,0]
["    5.2.5",null,null,null,{"$f":"IF($C$148=\"\",\"\",F148/$C$148)","v":""},null,{"$f":"IF($C$148=\"\",\"\",H148/$C$148)","v":""},null,{"$f":"IF($C$148=\"\",\"\",J148/$C$148)","v":""},null,{"$f":"IF($C$148=\"\",\"\",L148/$C$148)","v":""},null,{"$f":"IF($C$148=\"\",\"\",N148/$C$148)","v":""},null,{"$f":"IF($C$148=\"\",\"\",P148/$C$148)","v":""},null,{"$f":"IF($C$148=\"\",\"\",R148/$C$148)","v":""},null,{"$f":"IF($C$148=\"\",\"\",T148/$C$148)","v":""},null,{"$f":"IF($C$148=\"\",\"\",V148/$C$148)","v":""},null,{"$f":"IF($C$148=\"\",\"\",X148/$C$148)","v":""},null,{"$f":"IF($C$148=\"\",\"\",Z148/$C$148)","v":""},null,{"$f":"IF($C$148=\"\",\"\",AB148/$C$148)","v":""},null,{"$f":"IF($C$148=\"\",\"\",AD148/$C$148)","v":""},null,{"$f":"IF($C$148=\"\",\"\",AF148/$C$148)","v":""},null,{"$f":"IF($C$148=\"\",\"\",AH148/$C$148)","v":""},null,{"$f":"IF($C$148=\"\",\"\",AJ148/$C$148)","v":""},null,{"$f":"IF($C$148=\"\",\"\",AL148/$C$148)","v":""},null,{"$f":"IF($C$148=\"\",\"\",AN148/$C$148)","v":""},null,{"$f":"IF($C$148=\"\",\"\",AP148/$C$148)","v":""},null,{"$f":"IF($C$148=\"\",\"\",AR148/$C$148)","v":""},null,{"$f":"IF($C$148=\"\",\"\",AT148/$C$148)","v":""},null,{"$f":"IF($C$148=\"\",\"\",AV148/$C$148)","v":""},null,{"$f":"IF($C$148=\"\",\"\",AX148/$C$148)","v":""},null,{"$f":"IF($C$148=\"\",\"\",AZ148/$C$148)","v":""},null,{"$f":"IF($C$148=\"\",\"\",BB148/$C$148)","v":""},null,0]
[5.3,"Cabinet Replacement and Foundation Requirements",null,null,{"$f":"IF($C$149=\"\",\"\",F149/$C$149)","v":""},null,{"$f":"IF($C$149=\"\",\"\",H149/$C$149)","v":""},null,{"$f":"IF($C$149=\"\",\"\",J149/$C$149)","v":""},null,{"$f":"IF($C$149=\"\",\"\",L149/$C$149)","v":""},null,{"$f":"IF($C$149=\"\",\"\",N149/$C$149)","v":""},null,{"$f":"IF($C$149=\"\",\"\",P149/$C$149)","v":""},null,{"$f":"IF($C$149=\"\",\"\",R149/$C$149)","v":""},null,{"$f":"IF($C$149=\"\",\"\",T149/$C$149)","v":""},null,{"$f":"IF($C$149=\"\",\"\",V149/$C$149)","v":""},null,{"$f":"IF($C$149=\"\",\"\",X149/$C$149)","v":""},null,{"$f":"IF($C$149=\"\",\"\",Z149/$C$149)","v":""},null,{"$f":"IF($C$149=\"\",\"\",AB149/$C$149)","v":""},null,{"$f":"IF($C$149=\"\",\"\",AD149/$C$149)","v":""},null,{"$f":"IF($C$149=\"\",\"\",AF149/$C$149)","v":""},null,{"$f":"IF($C$149=\"\",\"\",AH149/$C$149)","v":""},null,{"$f":"IF($C$149=\"\",\"\",AJ149/$C$149)","v":""},null,{"$f":"IF($C$149=\"\",\"\",AL149/$C$149)","v":""},null,{"$f":"IF($C$149=\"\",\"\",AN149/$C$149)","v":""},null,{"$f":"IF($C$149=\"\",\"\",AP149/$C$149)","v":""},null,{"$f":"IF($C$149=\"\",\"\",AR149/$C$149)","v":""},null,{"$f":"IF($C$149=\"\",\"\",AT149/$C$149)","v":""},null,{"$f":"IF($C$149=\"\",\"\",AV149/$C$149)","v":""},null,{"$f":"IF($C$149=\"\",\"\",AX149/$C$149)","v":""},null,{"$f":"IF($C$149=\"\",\"\",AZ149/$C$149)","v":""},null,{"$f":"IF($C$149=\"\",\"\",BB149/$C$149)","v":""},null,0]
[5.4,"Inventory CCTV Camera Assemblies",null,null,{"$f":"IF($C$150=\"\",\"\",F150/$C$150)","v":""},null,{"$f":"IF($C$150=\"\",\"\",H150/$C$150)","v":""},null,{"$f":"IF($C$150=\"\",\"\",J150/$C$150)","v":""},null,{"$f":"IF($C$150=\"\",\"\",L150/$C$150)","v":""},null,{"$f":"IF($C$150=\"\",\"\",N150/$C$150)","v":""},null,{"$f":"IF($C$150=\"\",\"\",P150/$C$150)","v":""},null,{"$f":"IF($C$150=\"\",\"\",R150/$C$150)","v":""},null,{"$f":"IF($C$150=\"\",\"\",T150/$C$150)","v":""},null,{"$f":"IF($C$150=\"\",\"\",V150/$C$150)","v":""},null,{"$f":"IF($C$150=\"\",\"\",X150/$C$150)","v":""},null,{"$f":"IF($C$150=\"\",\"\",Z150/$C$150)","v":""},null,{"$f":"IF($C$150=\"\",\"\",AB150/$C$150)","v":""},null,{"$f":"IF($C$150=\"\",\"\",AD150/$C$150)","v":""},null,{"$f":"IF($C$150=\"\",\"\",AF150/$C$150)","v":""},null,{"$f":"IF($C$150=\"\",\"\",AH150/$C$150)","v":""},null,{"$f":"IF($C$150=\"\",\"\",AJ150/$C$150)","v":""},null,{"$f":"IF($C$150=\"\",\"\",AL150/$C$150)","v":""},null,{"$f":"IF($C$150=\"\",\"\",AN150/$C$150)","v":""},null,{"$f":"IF($C$150=\"\",\"\",AP150/$C$150)","v":""},null,{"$f":"IF($C$150=\"\",\"\",AR150/$C$150)","v":""},null,{"$f":"IF($C$150=\"\",\"\",AT150/$C$150)","v":""},null,{"$f":"IF($C$150=\"\",\"\",AV150/$C$150)","v":""},null,{"$f":"IF($C$150=\"\",\"\",AX150/$C$150)","v":""},null,{"$f":"IF($C$150=\"\",\"\",AZ150/$C$150)","v":""},null,{"$f":"IF($C$150=\"\",\"\",BB150/$C$150)","v":""},null,0]
[5.5,"Compile and Summarize Inventory Data",null,null,{"$f":"IF($C$151=\"\",\"\",F151/$C$151)","v":""},null,{"$f":"IF($C$151=\"\",\"\",H151/$C$151)","v":""},null,{"$f":"IF($C$151=\"\",\"\",J151/$C$151)","v":""},null,{"$f":"IF($C$151=\"\",\"\",L151/$C$151)","v":""},null,{"$f":"IF($C$151=\"\",\"\",N151/$C$151)","v":""},null,{"$f":"IF($C$151=\"\",\"\",P151/$C$151)","v":""},null,{"$f":"IF($C$151=\"\",\"\",R151/$C$151)","v":""},null,{"$f":"IF($C$151=\"\",\"\",T151/$C$151)","v":""},null,{"$f":"IF($C$151=\"\",\"\",V151/$C$151)","v":""},null,{"$f":"IF($C$151=\"\",\"\",X151/$C$151)","v":""},null,{"$f":"IF($C$151=\"\",\"\",Z151/$C$151)","v":""},null,{"$f":"IF($C$151=\"\",\"\",AB151/$C$151)","v":""},null,{"$f":"IF($C$151=\"\",\"\",AD151/$C$151)","v":""},null,{"$f":"IF($C$151=\"\",\"\",AF151/$C$151)","v":""},null,{"$f":"IF($C$151=\"\",\"\",AH151/$C$151)","v":""},null,{"$f":"IF($C$151=\"\",\"\",AJ151/$C$151)","v":""},null,{"$f":"IF($C$151=\"\",\"\",AL151/$C$151)","v":""},null,{"$f":"IF($C$151=\"\",\"\",AN151/$C$151)","v":""},null,{"$f":"IF($C$151=\"\",\"\",AP151/$C$151)","v":""},null,{"$f":"IF($C$151=\"\",\"\",AR151/$C$151)","v":""},null,{"$f":"IF($C$151=\"\",\"\",AT151/$C$151)","v":""},null,{"$f":"IF($C$151=\"\",\"\",AV151/$C$151)","v":""},null,{"$f":"IF($C$151=\"\",\"\",AX151/$C$151)","v":""},null,{"$f":"IF($C$151=\"\",\"\",AZ151/$C$151)","v":""},null,{"$f":"IF($C$151=\"\",\"\",BB151/$C$151)","v":""},null,0]
[null,null,null,null,{"$f":"IF($C$152=\"\",\"\",F152/$C$152)","v":""},null,{"$f":"IF($C$152=\"\",\"\",H152/$C$152)","v":""},null,{"$f":"IF($C$152=\"\",\"\",J152/$C$152)","v":""},null,{"$f":"IF($C$152=\"\",\"\",L152/$C$152)","v":""},null,{"$f":"IF($C$152=\"\",\"\",N152/$C$152)","v":""},null,{"$f":"IF($C$152=\"\",\"\",P152/$C$152)","v":""},null,{"$f":"IF($C$152=\"\",\"\",R152/$C$152)","v":""},null,{"$f":"IF($C$152=\"\",\"\",T152/$C$152)","v":""},null,{"$f":"IF($C$152=\"\",\"\",V152/$C$152)","v":""},null,{"$f":"IF($C$152=\"\",\"\",X152/$C$152)","v":""},null,{"$f":"IF($C$152=\"\",\"\",Z152/$C$152)","v":""},null,{"$f":"IF($C$152=\"\",\"\",AB152/$C$152)","v":""},null,{"$f":"IF($C$152=\"\",\"\",AD152/$C$152)","v":""},null,{"$f":"IF($C$152=\"\",\"\",AF152/$C$152)","v":""},null,{"$f":"IF($C$152=\"\",\"\",AH152/$C$152)","v":""},null,{"$f":"IF($C$152=\"\",\"\",AJ152/$C$152)","v":""},null,{"$f":"IF($C$152=\"\",\"\",AL152/$C$152)","v":""},null,{"$f":"IF($C$152=\"\",\"\",AN152/$C$152)","v":""},null,{"$f":"IF($C$152=\"\",\"\",AP152/$C$152)","v":""},null,{"$f":"IF($C$152=\"\",\"\",AR152/$C$152)","v":""},null,{"$f":"IF($C$152=\"\",\"\",AT152/$C$152)","v":""},null,{"$f":"IF($C$152=\"\",\"\",AV152/$C$152)","v":""},null,{"$f":"IF($C$152=\"\",\"\",AX152/$C$152)","v":""},null,{"$f":"IF($C$152=\"\",\"\",AZ152/$C$152)","v":""},null,{"$f":"IF($C$152=\"\",\"\",BB152/$C$152)","v":""},null,0]
[null,null,null,null,{"$f":"IF($C$153=\"\",\"\",F153/$C$153)","v":""},null,{"$f":"IF($C$153=\"\",\"\",H153/$C$153)","v":""},null,{"$f":"IF($C$153=\"\",\"\",J153/$C$153)","v":""},null,{"$f":"IF($C$153=\"\",\"\",L153/$C$153)","v":""},null,{"$f":"IF($C$153=\"\",\"\",N153/$C$153)","v":""},null,{"$f":"IF($C$153=\"\",\"\",P153/$C$153)","v":""},null,{"$f":"IF($C$153=\"\",\"\",R153/$C$153)","v":""},null,{"$f":"IF($C$153=\"\",\"\",T153/$C$153)","v":""},null,{"$f":"IF($C$153=\"\",\"\",V153/$C$153)","v":""},null,{"$f":"IF($C$153=\"\",\"\",X153/$C$153)","v":""},null,{"$f":"IF($C$153=\"\",\"\",Z153/$C$153)","v":""},null,{"$f":"IF($C$153=\"\",\"\",AB153/$C$153)","v":""},null,{"$f":"IF($C$153=\"\",\"\",AD153/$C$153)","v":""},null,{"$f":"IF($C$153=\"\",\"\",AF153/$C$153)","v":""},null,{"$f":"IF($C$153=\"\",\"\",AH153/$C$153)","v":""},null,{"$f":"IF($C$153=\"\",\"\",AJ153/$C$153)","v":""},null,{"$f":"IF($C$153=\"\",\"\",AL153/$C$153)","v":""},null,{"$f":"IF($C$153=\"\",\"\",AN153/$C$153)","v":""},null,{"$f":"IF($C$153=\"\",\"\",AP153/$C$153)","v":""},null,{"$f":"IF($C$153=\"\",\"\",AR153/$C$153)","v":""},null,{"$f":"IF($C$153=\"\",\"\",AT153/$C$153)","v":""},null,{"$f":"IF($C$153=\"\",\"\",AV153/$C$153)","v":""},null,{"$f":"IF($C$153=\"\",\"\",AX153/$C$153)","v":""},null,{"$f":"IF($C$153=\"\",\"\",AZ153/$C$153)","v":""},null,{"$f":"IF($C$153=\"\",\"\",BB153/$C$153)","v":""},null,0]
[null,null,null,null,{"$f":"IF($C$154=\"\",\"\",F154/$C$154)","v":""},null,{"$f":"IF($C$154=\"\",\"\",H154/$C$154)","v":""},null,{"$f":"IF($C$154=\"\",\"\",J154/$C$154)","v":""},null,{"$f":"IF($C$154=\"\",\"\",L154/$C$154)","v":""},null,{"$f":"IF($C$154=\"\",\"\",N154/$C$154)","v":""},null,{"$f":"IF($C$154=\"\",\"\",P154/$C$154)","v":""},null,{"$f":"IF($C$154=\"\",\"\",R154/$C$154)","v":""},null,{"$f":"IF($C$154=\"\",\"\",T154/$C$154)","v":""},null,{"$f":"IF($C$154=\"\",\"\",V154/$C$154)","v":""},null,{"$f":"IF($C$154=\"\",\"\",X154/$C$154)","v":""},null,{"$f":"IF($C$154=\"\",\"\",Z154/$C$154)","v":""},null,{"$f":"IF($C$154=\"\",\"\",AB154/$C$154)","v":""},null,{"$f":"IF($C$154=\"\",\"\",AD154/$C$154)","v":""},null,{"$f":"IF($C$154=\"\",\"\",AF154/$C$154)","v":""},null,{"$f":"IF($C$154=\"\",\"\",AH154/$C$154)","v":""},null,{"$f":"IF($C$154=\"\",\"\",AJ154/$C$154)","v":""},null,{"$f":"IF($C$154=\"\",\"\",AL154/$C$154)","v":""},null,{"$f":"IF($C$154=\"\",\"\",AN154/$C$154)","v":""},null,{"$f":"IF($C$154=\"\",\"\",AP154/$C$154)","v":""},null,{"$f":"IF($C$154=\"\",\"\",AR154/$C$154)","v":""},null,{"$f":"IF($C$154=\"\",\"\",AT154/$C$154)","v":""},null,{"$f":"IF($C$154=\"\",\"\",AV154/$C$154)","v":""},null,{"$f":"IF($C$154=\"\",\"\",AX154/$C$154)","v":""},null,{"$f":"IF($C$154=\"\",\"\",AZ154/$C$154)","v":""},null,{"$f":"IF($C$154=\"\",\"\",BB154/$C$154)","v":""},null,0]
[null,null,null,null,{"$f":"IF($C$155=\"\",\"\",F155/$C$155)","v":""},null,{"$f":"IF($C$155=\"\",\"\",H155/$C$155)","v":""},null,{"$f":"IF($C$155=\"\",\"\",J155/$C$155)","v":""},null,{"$f":"IF($C$155=\"\",\"\",L155/$C$155)","v":""},null,{"$f":"IF($C$155=\"\",\"\",N155/$C$155)","v":""},null,{"$f":"IF($C$155=\"\",\"\",P155/$C$155)","v":""},null,{"$f":"IF($C$155=\"\",\"\",R155/$C$155)","v":""},null,{"$f":"IF($C$155=\"\",\"\",T155/$C$155)","v":""},null,{"$f":"IF($C$155=\"\",\"\",V155/$C$155)","v":""},null,{"$f":"IF($C$155=\"\",\"\",X155/$C$155)","v":""},null,{"$f":"IF($C$155=\"\",\"\",Z155/$C$155)","v":""},null,{"$f":"IF($C$155=\"\",\"\",AB155/$C$155)","v":""},null,{"$f":"IF($C$155=\"\",\"\",AD155/$C$155)","v":""},null,{"$f":"IF($C$155=\"\",\"\",AF155/$C$155)","v":""},null,{"$f":"IF($C$155=\"\",\"\",AH155/$C$155)","v":""},null,{"$f":"IF($C$155=\"\",\"\",AJ155/$C$155)","v":""},null,{"$f":"IF($C$155=\"\",\"\",AL155/$C$155)","v":""},null,{"$f":"IF($C$155=\"\",\"\",AN155/$C$155)","v":""},null,{"$f":"IF($C$155=\"\",\"\",AP155/$C$155)","v":""},null,{"$f":"IF($C$155=\"\",\"\",AR155/$C$155)","v":""},null,{"$f":"IF($C$155=\"\",\"\",AT155/$C$155)","v":""},null,{"$f":"IF($C$155=\"\",\"\",AV155/$C$155)","v":""},null,{"$f":"IF($C$155=\"\",\"\",AX155/$C$155)","v":""},null,{"$f":"IF($C$155=\"\",\"\",AZ155/$C$155)","v":""},null,{"$f":"IF($C$155=\"\",\"\",BB155/$C$155)","v":""},null,0]
[null,null,null,null,{"$f":"IF($C$156=\"\",\"\",F156/$C$156)","v":""},null,{"$f":"IF($C$156=\"\",\"\",H156/$C$156)","v":""},null,{"$f":"IF($C$156=\"\",\"\",J156/$C$156)","v":""},null,{"$f":"IF($C$156=\"\",\"\",L156/$C$156)","v":""},null,{"$f":"IF($C$156=\"\",\"\",N156/$C$156)","v":""},null,{"$f":"IF($C$156=\"\",\"\",P156/$C$156)","v":""},null,{"$f":"IF($C$156=\"\",\"\",R156/$C$156)","v":""},null,{"$f":"IF($C$156=\"\",\"\",T156/$C$156)","v":""},null,{"$f":"IF($C$156=\"\",\"\",V156/$C$156)","v":""},null,{"$f":"IF($C$156=\"\",\"\",X156/$C$156)","v":""},null,{"$f":"IF($C$156=\"\",\"\",Z156/$C$156)","v":""},null,{"$f":"IF($C$156=\"\",\"\",AB156/$C$156)","v":""},null,{"$f":"IF($C$156=\"\",\"\",AD156/$C$156)","v":""},null,{"$f":"IF($C$156=\"\",\"\",AF156/$C$156)","v":""},null,{"$f":"IF($C$156=\"\",\"\",AH156/$C$156)","v":""},null,{"$f":"IF($C$156=\"\",\"\",AJ156/$C$156)","v":""},null,{"$f":"IF($C$156=\"\",\"\",AL156/$C$156)","v":""},null,{"$f":"IF($C$156=\"\",\"\",AN156/$C$156)","v":""},null,{"$f":"IF($C$156=\"\",\"\",AP156/$C$156)","v":""},null,{"$f":"IF($C$156=\"\",\"\",AR156/$C$156)","v":""},null,{"$f":"IF($C$156=\"\",\"\",AT156/$C$156)","v":""},null,{"$f":"IF($C$156=\"\",\"\",AV156/$C$156)","v":""},null,{"$f":"IF($C$156=\"\",\"\",AX156/$C$156)","v":""},null,{"$f":"IF($C$156=\"\",\"\",AZ156/$C$156)","v":""},null,{"$f":"IF($C$156=\"\",\"\",BB156/$C$156)","v":""},null,0]
[null,null,null,null,{"$f":"IF($C$157=\"\",\"\",F157/$C$157)","v":""},null,{"$f":"IF($C$157=\"\",\"\",H157/$C$157)","v":""},null,{"$f":"IF($C$157=\"\",\"\",J157/$C$157)","v":""},null,{"$f":"IF($C$157=\"\",\"\",L157/$C$157)","v":""},null,{"$f":"IF($C$157=\"\",\"\",N157/$C$157)","v":""},null,{"$f":"IF($C$157=\"\",\"\",P157/$C$157)","v":""},null,{"$f":"IF($C$157=\"\",\"\",R157/$C$157)","v":""},null,{"$f":"IF($C$157=\"\",\"\",T157/$C$157)","v":""},null,{"$f":"IF($C$157=\"\",\"\",V157/$C$157)","v":""},null,{"$f":"IF($C$157=\"\",\"\",X157/$C$157)","v":""},null,{"$f":"IF($C$157=\"\",\"\",Z157/$C$157)","v":""},null,{"$f":"IF($C$157=\"\",\"\",AB157/$C$157)","v":""},null,{"$f":"IF($C$157=\"\",\"\",AD157/$C$157)","v":""},null,{"$f":"IF($C$157=\"\",\"\",AF157/$C$157)","v":""},null,{"$f":"IF($C$157=\"\",\"\",AH157/$C$157)","v":""},null,{"$f":"IF($C$157=\"\",\"\",AJ157/$C$157)","v":""},null,{"$f":"IF($C$157=\"\",\"\",AL157/$C$157)","v":""},null,{"$f":"IF($C$157=\"\",\"\",AN157/$C$157)","v":""},null,{"$f":"IF($C$157=\"\",\"\",AP157/$C$157)","v":""},null,{"$f":"IF($C$157=\"\",\"\",AR157/$C$157)","v":""},null,{"$f":"IF($C$157=\"\",\"\",AT157/$C$157)","v":""},null,{"$f":"IF($C$157=\"\",\"\",AV157/$C$157)","v":""},null,{"$f":"IF($C$157=\"\",\"\",AX157/$C$157)","v":""},null,{"$f":"IF($C$157=\"\",\"\",AZ157/$C$157)","v":""},null,{"$f":"IF($C$157=\"\",\"\",BB157/$C$157)","v":""},null,0]
[null,null,null,null,{"$f":"IF($C$158=\"\",\"\",F158/$C$158)","v":""},null,{"$f":"IF($C$158=\"\",\"\",H158/$C$158)","v":""},null,{"$f":"IF($C$158=\"\",\"\",J158/$C$158)","v":""},null,{"$f":"IF($C$158=\"\",\"\",L158/$C$158)","v":""},null,{"$f":"IF($C$158=\"\",\"\",N158/$C$158)","v":""},null,{"$f":"IF($C$158=\"\",\"\",P158/$C$158)","v":""},null,{"$f":"IF($C$158=\"\",\"\",R158/$C$158)","v":""},null,{"$f":"IF($C$158=\"\",\"\",T158/$C$158)","v":""},null,{"$f":"IF($C$158=\"\",\"\",V158/$C$158)","v":""},null,{"$f":"IF($C$158=\"\",\"\",X158/$C$158)","v":""},null,{"$f":"IF($C$158=\"\",\"\",Z158/$C$158)","v":""},null,{"$f":"IF($C$158=\"\",\"\",AB158/$C$158)","v":""},null,{"$f":"IF($C$158=\"\",\"\",AD158/$C$158)","v":""},null,{"$f":"IF($C$158=\"\",\"\",AF158/$C$158)","v":""},null,{"$f":"IF($C$158=\"\",\"\",AH158/$C$158)","v":""},null,{"$f":"IF($C$158=\"\",\"\",AJ158/$C$158)","v":""},null,{"$f":"IF($C$158=\"\",\"\",AL158/$C$158)","v":""},null,{"$f":"IF($C$158=\"\",\"\",AN158/$C$158)","v":""},null,{"$f":"IF($C$158=\"\",\"\",AP158/$C$158)","v":""},null,{"$f":"IF($C$158=\"\",\"\",AR158/$C$158)","v":""},null,{"$f":"IF($C$158=\"\",\"\",AT158/$C$158)","v":""},null,{"$f":"IF($C$158=\"\",\"\",AV158/$C$158)","v":""},null,{"$f":"IF($C$158=\"\",\"\",AX158/$C$158)","v":""},null,{"$f":"IF($C$158=\"\",\"\",AZ158/$C$158)","v":""},null,{"$f":"IF($C$158=\"\",\"\",BB158/$C$158)","v":""},null,{"$f":"SUM(BB158,AZ158,AX158,AV158,AT158,AR158,AP158,AN158,AL158,AJ158,AH158,AF158,AD158,AB158,Z158,X158,V158,T158,R158,P158,N158,L158,J158,H158,F158)","v":0}]
["TOTAL HOURS",null,null,null,null,{"$f":"SUM(F142:F158)","v":0},null,{"$f":"SUM(H142:H158)","v":0},null,{"$f":"SUM(J142:J158)","v":0},null,{"$f":"SUM(L142:L158)","v":0},null,{"$f":"SUM(N142:N158)","v":0},null,{"$f":"SUM(P142:P158)","v":0},null,{"$f":"SUM(R142:R158)","v":0},null,{"$f":"SUM(T142:T158)","v":0},null,{"$f":"SUM(V142:V158)","v":0},null,{"$f":"SUM(X142:X158)","v":0},null,{"$f":"SUM(Z142:Z158)","v":0},null,{"$f":"SUM(AB142:AB158)","v":0},null,{"$f":"SUM(AD142:AD158)","v":0},null,{"$f":"SUM(AF142:AF158)","v":0},null,{"$f":"SUM(AH142:AH158)","v":0},null,{"$f":"SUM(AJ142:AJ158)","v":0},null,{"$f":"SUM(AL142:AL158)","v":0},null,{"$f":"SUM(AN142:AN158)","v":0},null,{"$f":"SUM(AP142:AP158)","v":0},null,{"$f":"SUM(AR142:AR158)","v":0},null,{"$f":"SUM(AT142:AT158)","v":0},null,{"$f":"SUM(AV142:AV158)","v":0},null,{"$f":"SUM(AX142:AX158)","v":0},null,{"$f":"SUM(AZ142:AZ158)","v":0},null,0,{"$f":"SUM(E159:BB159)","v":0}]
["TOTAL WORKDAYS",null,null,null,null,{"$f":"F159/8","v":0},null,{"$f":"H159/8","v":0},null,{"$f":"J159/8","v":0},null,{"$f":"L159/8","v":0},null,{"$f":"N159/8","v":0},null,{"$f":"P159/8","v":0},null,{"$f":"R159/8","v":0},null,{"$f":"T159/8","v":0},null,{"$f":"V159/8","v":0},null,{"$f":"X159/8","v":0},null,{"$f":"Z159/8","v":0},null,{"$f":"AB159/8","v":0},null,{"$f":"AD159/8","v":0},null,0,null,{"$f":"AH159/8","v":0},null,0,null,{"$f":"AL159/8","v":0},null,0,null,{"$f":"AP159/8","v":0},null,0,null,{"$f":"AT159/8","v":0},null,{"$f":"AV159/8","v":0},null,{"$f":"AX159/8","v":0},null,{"$f":"AZ159/8","v":0},null,0,{"$f":"SUM(E160:BB160)","v":0}]
["TOTAL RAW LABOR",null,null,null,null,{"$f":"$E$13*F159","v":0},null,{"$f":"$G$13*H159","v":0},null,{"$f":"$I$13*J159","v":0},null,{"$f":"$K$13*L159","v":0},null,{"$f":"$M$13*N159","v":0},null,{"$f":"$O$13*P159","v":0},null,{"$f":"$Q$13*R159","v":0},null,{"$f":"$S$13*T159","v":0},null,{"$f":"$U$13*V159","v":0},null,{"$f":"$W$13*X159","v":0},null,{"$f":"$Y$13*Z159","v":0},null,{"$f":"$AA$13*AB159","v":0},null,{"$f":"$AC$13*AD159","v":0},null,{"$f":"$AC$13*AF159","v":0},null,{"$f":"$AC$13*AH159","v":0},null,{"$f":"$AC$13*AJ159","v":0},null,{"$f":"$AC$13*AL159","v":0},null,{"$f":"$AC$13*AN159","v":0},null,{"$f":"$AC$13*AP159","v":0},null,{"$f":"$AC$13*AR159","v":0},null,{"$f":"$AC$13*AT159","v":0},null,{"$f":"$AC$13*AV159","v":0},null,{"$f":"$AC$13*AX159","v":0},null,{"$f":"$AC$13*AZ159","v":0},null,0,{"$f":"SUM(E161:BB161)","v":0}]
["Task 6.0     ","CCTV MONITORING SYSTEM"]
[6.1,"Identification of Preliminary CCTV Locations",null,null,{"$f":"IF($C$163=\"\",\"\",F163/$C$163)","v":""},null,{"$f":"IF($C$163=\"\",\"\",H163/$C$163)","v":""},null,{"$f":"IF($C$163=\"\",\"\",J163/$C$163)","v":""},null,{"$f":"IF($C$163=\"\",\"\",L163/$C$163)","v":""},null,{"$f":"IF($C$163=\"\",\"\",N163/$C$163)","v":""},null,{"$f":"IF($C$163=\"\",\"\",P163/$C$163)","v":""},null,{"$f":"IF($C$163=\"\",\"\",R163/$C$163)","v":""},null,{"$f":"IF($C$163=\"\",\"\",T163/$C$163)","v":""},null,{"$f":"IF($C$163=\"\",\"\",V163/$C$163)","v":""},null,{"$f":"IF($C$163=\"\",\"\",X163/$C$163)","v":""},null,{"$f":"IF($C$163=\"\",\"\",Z163/$C$163)","v":""},null,{"$f":"IF($C$163=\"\",\"\",AB163/$C$163)","v":""},null,{"$f":"IF($C$163=\"\",\"\",AD163/$C$163)","v":""},null,{"$f":"IF($C$163=\"\",\"\",AF163/$C$163)","v":""},null,{"$f":"IF($C$163=\"\",\"\",AH163/$C$163)","v":""},null,{"$f":"IF($C$163=\"\",\"\",AJ163/$C$163)","v":""},null,{"$f":"IF($C$163=\"\",\"\",AL163/$C$163)","v":""},null,{"$f":"IF($C$163=\"\",\"\",AN163/$C$163)","v":""},null,{"$f":"IF($C$163=\"\",\"\",AP163/$C$163)","v":""},null,{"$f":"IF($C$163=\"\",\"\",AR163/$C$163)","v":""},null,{"$f":"IF($C$163=\"\",\"\",AT163/$C$163)","v":""},null,{"$f":"IF($C$163=\"\",\"\",AV163/$C$163)","v":""},null,{"$f":"IF($C$163=\"\",\"\",AX163/$C$163)","v":""},null,{"$f":"IF($C$163=\"\",\"\",AZ163/$C$163)","v":""},null,{"$f":"IF($C$163=\"\",\"\",BB163/$C$163)","v":""},null,{"$f":"SUM(BB163,AZ163,AX163,AV163,AT163,AR163,AP163,AN163,AL163,AJ163,AH163,AF163,AD163,AB163,Z163,X163,V163,T163,R163,P163,N163,L163,J163,H163,F163)","v":0}]
[6.2,"Bucket Truck Surveys of Candidate Sites",null,null,{"$f":"IF($C$164=\"\",\"\",F164/$C$164)","v":""},null,{"$f":"IF($C$164=\"\",\"\",H164/$C$164)","v":""},null,{"$f":"IF($C$164=\"\",\"\",J164/$C$164)","v":""},null,{"$f":"IF($C$164=\"\",\"\",L164/$C$164)","v":""},null,{"$f":"IF($C$164=\"\",\"\",N164/$C$164)","v":""},null,{"$f":"IF($C$164=\"\",\"\",P164/$C$164)","v":""},null,{"$f":"IF($C$164=\"\",\"\",R164/$C$164)","v":""},null,{"$f":"IF($C$164=\"\",\"\",T164/$C$164)","v":""},null,{"$f":"IF($C$164=\"\",\"\",V164/$C$164)","v":""},null,{"$f":"IF($C$164=\"\",\"\",X164/$C$164)","v":""},null,{"$f":"IF($C$164=\"\",\"\",Z164/$C$164)","v":""},null,{"$f":"IF($C$164=\"\",\"\",AB164/$C$164)","v":""},null,{"$f":"IF($C$164=\"\",\"\",AD164/$C$164)","v":""},null,{"$f":"IF($C$164=\"\",\"\",AF164/$C$164)","v":""},null,{"$f":"IF($C$164=\"\",\"\",AH164/$C$164)","v":""},null,{"$f":"IF($C$164=\"\",\"\",AJ164/$C$164)","v":""},null,{"$f":"IF($C$164=\"\",\"\",AL164/$C$164)","v":""},null,{"$f":"IF($C$164=\"\",\"\",AN164/$C$164)","v":""},null,{"$f":"IF($C$164=\"\",\"\",AP164/$C$164)","v":""},null,{"$f":"IF($C$164=\"\",\"\",AR164/$C$164)","v":""},null,{"$f":"IF($C$164=\"\",\"\",AT164/$C$164)","v":""},null,{"$f":"IF($C$164=\"\",\"\",AV164/$C$164)","v":""},null,{"$f":"IF($C$164=\"\",\"\",AX164/$C$164)","v":""},null,{"$f":"IF($C$164=\"\",\"\",AZ164/$C$164)","v":""},null,{"$f":"IF($C$164=\"\",\"\",BB164/$C$164)","v":""},null,0]
[6.3,"Compile and Analyze Site Survey Data",null,null,{"$f":"IF($C$165=\"\",\"\",F165/$C$165)","v":""},null,{"$f":"IF($C$165=\"\",\"\",H165/$C$165)","v":""},null,{"$f":"IF($C$165=\"\",\"\",J165/$C$165)","v":""},null,{"$f":"IF($C$165=\"\",\"\",L165/$C$165)","v":""},null,{"$f":"IF($C$165=\"\",\"\",N165/$C$165)","v":""},null,{"$f":"IF($C$165=\"\",\"\",P165/$C$165)","v":""},null,{"$f":"IF($C$165=\"\",\"\",R165/$C$165)","v":""},null,{"$f":"IF($C$165=\"\",\"\",T165/$C$165)","v":""},null,{"$f":"IF($C$165=\"\",\"\",V165/$C$165)","v":""},null,{"$f":"IF($C$165=\"\",\"\",X165/$C$165)","v":""},null,{"$f":"IF($C$165=\"\",\"\",Z165/$C$165)","v":""},null,{"$f":"IF($C$165=\"\",\"\",AB165/$C$165)","v":""},null,{"$f":"IF($C$165=\"\",\"\",AD165/$C$165)","v":""},null,{"$f":"IF($C$165=\"\",\"\",AF165/$C$165)","v":""},null,{"$f":"IF($C$165=\"\",\"\",AH165/$C$165)","v":""},null,{"$f":"IF($C$165=\"\",\"\",AJ165/$C$165)","v":""},null,{"$f":"IF($C$165=\"\",\"\",AL165/$C$165)","v":""},null,{"$f":"IF($C$165=\"\",\"\",AN165/$C$165)","v":""},null,{"$f":"IF($C$165=\"\",\"\",AP165/$C$165)","v":""},null,{"$f":"IF($C$165=\"\",\"\",AR165/$C$165)","v":""},null,{"$f":"IF($C$165=\"\",\"\",AT165/$C$165)","v":""},null,{"$f":"IF($C$165=\"\",\"\",AV165/$C$165)","v":""},null,{"$f":"IF($C$165=\"\",\"\",AX165/$C$165)","v":""},null,{"$f":"IF($C$165=\"\",\"\",AZ165/$C$165)","v":""},null,{"$f":"IF($C$165=\"\",\"\",BB165/$C$165)","v":""},null,0]
[6.4,"Prepare CCTV Site Study Technical Memorandum",null,null,{"$f":"IF($C$166=\"\",\"\",F166/$C$166)","v":""},null,{"$f":"IF($C$166=\"\",\"\",H166/$C$166)","v":""},null,{"$f":"IF($C$166=\"\",\"\",J166/$C$166)","v":""},null,{"$f":"IF($C$166=\"\",\"\",L166/$C$166)","v":""},null,{"$f":"IF($C$166=\"\",\"\",N166/$C$166)","v":""},null,{"$f":"IF($C$166=\"\",\"\",P166/$C$166)","v":""},null,{"$f":"IF($C$166=\"\",\"\",R166/$C$166)","v":""},null,{"$f":"IF($C$166=\"\",\"\",T166/$C$166)","v":""},null,{"$f":"IF($C$166=\"\",\"\",V166/$C$166)","v":""},null,{"$f":"IF($C$166=\"\",\"\",X166/$C$166)","v":""},null,{"$f":"IF($C$166=\"\",\"\",Z166/$C$166)","v":""},null,{"$f":"IF($C$166=\"\",\"\",AB166/$C$166)","v":""},null,{"$f":"IF($C$166=\"\",\"\",AD166/$C$166)","v":""},null,{"$f":"IF($C$166=\"\",\"\",AF166/$C$166)","v":""},null,{"$f":"IF($C$166=\"\",\"\",AH166/$C$166)","v":""},null,{"$f":"IF($C$166=\"\",\"\",AJ166/$C$166)","v":""},null,{"$f":"IF($C$166=\"\",\"\",AL166/$C$166)","v":""},null,{"$f":"IF($C$166=\"\",\"\",AN166/$C$166)","v":""},null,{"$f":"IF($C$166=\"\",\"\",AP166/$C$166)","v":""},null,{"$f":"IF($C$166=\"\",\"\",AR166/$C$166)","v":""},null,{"$f":"IF($C$166=\"\",\"\",AT166/$C$166)","v":""},null,{"$f":"IF($C$166=\"\",\"\",AV166/$C$166)","v":""},null,{"$f":"IF($C$166=\"\",\"\",AX166/$C$166)","v":""},null,{"$f":"IF($C$166=\"\",\"\",AZ166/$C$166)","v":""},null,{"$f":"IF($C$166=\"\",\"\",BB166/$C$166)","v":""},null,0]
[6.5,"Requirements for System Expansion/Field Investigation",null,null,{"$f":"IF($C$167=\"\",\"\",F167/$C$167)","v":""},null,{"$f":"IF($C$167=\"\",\"\",H167/$C$167)","v":""},null,{"$f":"IF($C$167=\"\",\"\",J167/$C$167)","v":""},null,{"$f":"IF($C$167=\"\",\"\",L167/$C$167)","v":""},null,{"$f":"IF($C$167=\"\",\"\",N167/$C$167)","v":""},null,{"$f":"IF($C$167=\"\",\"\",P167/$C$167)","v":""},null,{"$f":"IF($C$167=\"\",\"\",R167/$C$167)","v":""},null,{"$f":"IF($C$167=\"\",\"\",T167/$C$167)","v":""},null,{"$f":"IF($C$167=\"\",\"\",V167/$C$167)","v":""},null,{"$f":"IF($C$167=\"\",\"\",X167/$C$167)","v":""},null,{"$f":"IF($C$167=\"\",\"\",Z167/$C$167)","v":""},null,{"$f":"IF($C$167=\"\",\"\",AB167/$C$167)","v":""},null,{"$f":"IF($C$167=\"\",\"\",AD167/$C$167)","v":""},null,{"$f":"IF($C$167=\"\",\"\",AF167/$C$167)","v":""},null,{"$f":"IF($C$167=\"\",\"\",AH167/$C$167)","v":""},null,{"$f":"IF($C$167=\"\",\"\",AJ167/$C$167)","v":""},null,{"$f":"IF($C$167=\"\",\"\",AL167/$C$167)","v":""},null,{"$f":"IF($C$167=\"\",\"\",AN167/$C$167)","v":""},null,{"$f":"IF($C$167=\"\",\"\",AP167/$C$167)","v":""},null,{"$f":"IF($C$167=\"\",\"\",AR167/$C$167)","v":""},null,{"$f":"IF($C$167=\"\",\"\",AT167/$C$167)","v":""},null,{"$f":"IF($C$167=\"\",\"\",AV167/$C$167)","v":""},null,{"$f":"IF($C$167=\"\",\"\",AX167/$C$167)","v":""},null,{"$f":"IF($C$167=\"\",\"\",AZ167/$C$167)","v":""},null,{"$f":"IF($C$167=\"\",\"\",BB167/$C$167)","v":""},null,0]
[null,null,null,null,{"$f":"IF($C$168=\"\",\"\",F168/$C$168)","v":""},null,{"$f":"IF($C$168=\"\",\"\",H168/$C$168)","v":""},null,{"$f":"IF($C$168=\"\",\"\",J168/$C$168)","v":""},null,{"$f":"IF($C$168=\"\",\"\",L168/$C$168)","v":""},null,{"$f":"IF($C$168=\"\",\"\",N168/$C$168)","v":""},null,{"$f":"IF($C$168=\"\",\"\",P168/$C$168)","v":""},null,{"$f":"IF($C$168=\"\",\"\",R168/$C$168)","v":""},null,{"$f":"IF($C$168=\"\",\"\",T168/$C$168)","v":""},null,{"$f":"IF($C$168=\"\",\"\",V168/$C$168)","v":""},null,{"$f":"IF($C$168=\"\",\"\",X168/$C$168)","v":""},null,{"$f":"IF($C$168=\"\",\"\",Z168/$C$168)","v":""},null,{"$f":"IF($C$168=\"\",\"\",AB168/$C$168)","v":""},null,{"$f":"IF($C$168=\"\",\"\",AD168/$C$168)","v":""},null,{"$f":"IF($C$168=\"\",\"\",AF168/$C$168)","v":""},null,{"$f":"IF($C$168=\"\",\"\",AH168/$C$168)","v":""},null,{"$f":"IF($C$168=\"\",\"\",AJ168/$C$168)","v":""},null,{"$f":"IF($C$168=\"\",\"\",AL168/$C$168)","v":""},null,{"$f":"IF($C$168=\"\",\"\",AN168/$C$168)","v":""},null,{"$f":"IF($C$168=\"\",\"\",AP168/$C$168)","v":""},null,{"$f":"IF($C$168=\"\",\"\",AR168/$C$168)","v":""},null,{"$f":"IF($C$168=\"\",\"\",AT168/$C$168)","v":""},null,{"$f":"IF($C$168=\"\",\"\",AV168/$C$168)","v":""},null,{"$f":"IF($C$168=\"\",\"\",AX168/$C$168)","v":""},null,{"$f":"IF($C$168=\"\",\"\",AZ168/$C$168)","v":""},null,{"$f":"IF($C$168=\"\",\"\",BB168/$C$168)","v":""},null,0]
[null,null,null,null,{"$f":"IF($C$169=\"\",\"\",F169/$C$169)","v":""},null,{"$f":"IF($C$169=\"\",\"\",H169/$C$169)","v":""},null,{"$f":"IF($C$169=\"\",\"\",J169/$C$169)","v":""},null,{"$f":"IF($C$169=\"\",\"\",L169/$C$169)","v":""},null,{"$f":"IF($C$169=\"\",\"\",N169/$C$169)","v":""},null,{"$f":"IF($C$169=\"\",\"\",P169/$C$169)","v":""},null,{"$f":"IF($C$169=\"\",\"\",R169/$C$169)","v":""},null,{"$f":"IF($C$169=\"\",\"\",T169/$C$169)","v":""},null,{"$f":"IF($C$169=\"\",\"\",V169/$C$169)","v":""},null,{"$f":"IF($C$169=\"\",\"\",X169/$C$169)","v":""},null,{"$f":"IF($C$169=\"\",\"\",Z169/$C$169)","v":""},null,{"$f":"IF($C$169=\"\",\"\",AB169/$C$169)","v":""},null,{"$f":"IF($C$169=\"\",\"\",AD169/$C$169)","v":""},null,{"$f":"IF($C$169=\"\",\"\",AF169/$C$169)","v":""},null,{"$f":"IF($C$169=\"\",\"\",AH169/$C$169)","v":""},null,{"$f":"IF($C$169=\"\",\"\",AJ169/$C$169)","v":""},null,{"$f":"IF($C$169=\"\",\"\",AL169/$C$169)","v":""},null,{"$f":"IF($C$169=\"\",\"\",AN169/$C$169)","v":""},null,{"$f":"IF($C$169=\"\",\"\",AP169/$C$169)","v":""},null,{"$f":"IF($C$169=\"\",\"\",AR169/$C$169)","v":""},null,{"$f":"IF($C$169=\"\",\"\",AT169/$C$169)","v":""},null,{"$f":"IF($C$169=\"\",\"\",AV169/$C$169)","v":""},null,{"$f":"IF($C$169=\"\",\"\",AX169/$C$169)","v":""},null,{"$f":"IF($C$169=\"\",\"\",AZ169/$C$169)","v":""},null,{"$f":"IF($C$169=\"\",\"\",BB169/$C$169)","v":""},null,0]
[null,null,null,null,{"$f":"IF($C$170=\"\",\"\",F170/$C$170)","v":""},null,{"$f":"IF($C$170=\"\",\"\",H170/$C$170)","v":""},null,{"$f":"IF($C$170=\"\",\"\",J170/$C$170)","v":""},null,{"$f":"IF($C$170=\"\",\"\",L170/$C$170)","v":""},null,{"$f":"IF($C$170=\"\",\"\",N170/$C$170)","v":""},null,{"$f":"IF($C$170=\"\",\"\",P170/$C$170)","v":""},null,{"$f":"IF($C$170=\"\",\"\",R170/$C$170)","v":""},null,{"$f":"IF($C$170=\"\",\"\",T170/$C$170)","v":""},null,{"$f":"IF($C$170=\"\",\"\",V170/$C$170)","v":""},null,{"$f":"IF($C$170=\"\",\"\",X170/$C$170)","v":""},null,{"$f":"IF($C$170=\"\",\"\",Z170/$C$170)","v":""},null,{"$f":"IF($C$170=\"\",\"\",AB170/$C$170)","v":""},null,{"$f":"IF($C$170=\"\",\"\",AD170/$C$170)","v":""},null,{"$f":"IF($C$170=\"\",\"\",AF170/$C$170)","v":""},null,{"$f":"IF($C$170=\"\",\"\",AH170/$C$170)","v":""},null,{"$f":"IF($C$170=\"\",\"\",AJ170/$C$170)","v":""},null,{"$f":"IF($C$170=\"\",\"\",AL170/$C$170)","v":""},null,{"$f":"IF($C$170=\"\",\"\",AN170/$C$170)","v":""},null,{"$f":"IF($C$170=\"\",\"\",AP170/$C$170)","v":""},null,{"$f":"IF($C$170=\"\",\"\",AR170/$C$170)","v":""},null,{"$f":"IF($C$170=\"\",\"\",AT170/$C$170)","v":""},null,{"$f":"IF($C$170=\"\",\"\",AV170/$C$170)","v":""},null,{"$f":"IF($C$170=\"\",\"\",AX170/$C$170)","v":""},null,{"$f":"IF($C$170=\"\",\"\",AZ170/$C$170)","v":""},null,{"$f":"IF($C$170=\"\",\"\",BB170/$C$170)","v":""},null,0]
[null,null,null,null,{"$f":"IF($C$171=\"\",\"\",F171/$C$171)","v":""},null,{"$f":"IF($C$171=\"\",\"\",H171/$C$171)","v":""},null,{"$f":"IF($C$171=\"\",\"\",J171/$C$171)","v":""},null,{"$f":"IF($C$171=\"\",\"\",L171/$C$171)","v":""},null,{"$f":"IF($C$171=\"\",\"\",N171/$C$171)","v":""},null,{"$f":"IF($C$171=\"\",\"\",P171/$C$171)","v":""},null,{"$f":"IF($C$171=\"\",\"\",R171/$C$171)","v":""},null,{"$f":"IF($C$171=\"\",\"\",T171/$C$171)","v":""},null,{"$f":"IF($C$171=\"\",\"\",V171/$C$171)","v":""},null,{"$f":"IF($C$171=\"\",\"\",X171/$C$171)","v":""},null,{"$f":"IF($C$171=\"\",\"\",Z171/$C$171)","v":""},null,{"$f":"IF($C$171=\"\",\"\",AB171/$C$171)","v":""},null,{"$f":"IF($C$171=\"\",\"\",AD171/$C$171)","v":""},null,{"$f":"IF($C$171=\"\",\"\",AF171/$C$171)","v":""},null,{"$f":"IF($C$171=\"\",\"\",AH171/$C$171)","v":""},null,{"$f":"IF($C$171=\"\",\"\",AJ171/$C$171)","v":""},null,{"$f":"IF($C$171=\"\",\"\",AL171/$C$171)","v":""},null,{"$f":"IF($C$171=\"\",\"\",AN171/$C$171)","v":""},null,{"$f":"IF($C$171=\"\",\"\",AP171/$C$171)","v":""},null,{"$f":"IF($C$171=\"\",\"\",AR171/$C$171)","v":""},null,{"$f":"IF($C$171=\"\",\"\",AT171/$C$171)","v":""},null,{"$f":"IF($C$171=\"\",\"\",AV171/$C$171)","v":""},null,{"$f":"IF($C$171=\"\",\"\",AX171/$C$171)","v":""},null,{"$f":"IF($C$171=\"\",\"\",AZ171/$C$171)","v":""},null,{"$f":"IF($C$171=\"\",\"\",BB171/$C$171)","v":""},null,0]
[null,null,null,null,{"$f":"IF($C$172=\"\",\"\",F172/$C$172)","v":""},null,{"$f":"IF($C$172=\"\",\"\",H172/$C$172)","v":""},null,{"$f":"IF($C$172=\"\",\"\",J172/$C$172)","v":""},null,{"$f":"IF($C$172=\"\",\"\",L172/$C$172)","v":""},null,{"$f":"IF($C$172=\"\",\"\",N172/$C$172)","v":""},null,{"$f":"IF($C$172=\"\",\"\",P172/$C$172)","v":""},null,{"$f":"IF($C$172=\"\",\"\",R172/$C$172)","v":""},null,{"$f":"IF($C$172=\"\",\"\",T172/$C$172)","v":""},null,{"$f":"IF($C$172=\"\",\"\",V172/$C$172)","v":""},null,{"$f":"IF($C$172=\"\",\"\",X172/$C$172)","v":""},null,{"$f":"IF($C$172=\"\",\"\",Z172/$C$172)","v":""},null,{"$f":"IF($C$172=\"\",\"\",AB172/$C$172)","v":""},null,{"$f":"IF($C$172=\"\",\"\",AD172/$C$172)","v":""},null,{"$f":"IF($C$172=\"\",\"\",AF172/$C$172)","v":""},null,{"$f":"IF($C$172=\"\",\"\",AH172/$C$172)","v":""},null,{"$f":"IF($C$172=\"\",\"\",AJ172/$C$172)","v":""},null,{"$f":"IF($C$172=\"\",\"\",AL172/$C$172)","v":""},null,{"$f":"IF($C$172=\"\",\"\",AN172/$C$172)","v":""},null,{"$f":"IF($C$172=\"\",\"\",AP172/$C$172)","v":""},null,{"$f":"IF($C$172=\"\",\"\",AR172/$C$172)","v":""},null,{"$f":"IF($C$172=\"\",\"\",AT172/$C$172)","v":""},null,{"$f":"IF($C$172=\"\",\"\",AV172/$C$172)","v":""},null,{"$f":"IF($C$172=\"\",\"\",AX172/$C$172)","v":""},null,{"$f":"IF($C$172=\"\",\"\",AZ172/$C$172)","v":""},null,{"$f":"IF($C$172=\"\",\"\",BB172/$C$172)","v":""},null,0]
[null,null,null,null,{"$f":"IF($C$173=\"\",\"\",F173/$C$173)","v":""},null,{"$f":"IF($C$173=\"\",\"\",H173/$C$173)","v":""},null,{"$f":"IF($C$173=\"\",\"\",J173/$C$173)","v":""},null,{"$f":"IF($C$173=\"\",\"\",L173/$C$173)","v":""},null,{"$f":"IF($C$173=\"\",\"\",N173/$C$173)","v":""},null,{"$f":"IF($C$173=\"\",\"\",P173/$C$173)","v":""},null,{"$f":"IF($C$173=\"\",\"\",R173/$C$173)","v":""},null,{"$f":"IF($C$173=\"\",\"\",T173/$C$173)","v":""},null,{"$f":"IF($C$173=\"\",\"\",V173/$C$173)","v":""},null,{"$f":"IF($C$173=\"\",\"\",X173/$C$173)","v":""},null,{"$f":"IF($C$173=\"\",\"\",Z173/$C$173)","v":""},null,{"$f":"IF($C$173=\"\",\"\",AB173/$C$173)","v":""},null,{"$f":"IF($C$173=\"\",\"\",AD173/$C$173)","v":""},null,{"$f":"IF($C$173=\"\",\"\",AF173/$C$173)","v":""},null,{"$f":"IF($C$173=\"\",\"\",AH173/$C$173)","v":""},null,{"$f":"IF($C$173=\"\",\"\",AJ173/$C$173)","v":""},null,{"$f":"IF($C$173=\"\",\"\",AL173/$C$173)","v":""},null,{"$f":"IF($C$173=\"\",\"\",AN173/$C$173)","v":""},null,{"$f":"IF($C$173=\"\",\"\",AP173/$C$173)","v":""},null,{"$f":"IF($C$173=\"\",\"\",AR173/$C$173)","v":""},null,{"$f":"IF($C$173=\"\",\"\",AT173/$C$173)","v":""},null,{"$f":"IF($C$173=\"\",\"\",AV173/$C$173)","v":""},null,{"$f":"IF($C$173=\"\",\"\",AX173/$C$173)","v":""},null,{"$f":"IF($C$173=\"\",\"\",AZ173/$C$173)","v":""},null,{"$f":"IF($C$173=\"\",\"\",BB173/$C$173)","v":""},null,0]
[null,null,null,null,{"$f":"IF($C$174=\"\",\"\",F174/$C$174)","v":""},null,{"$f":"IF($C$174=\"\",\"\",H174/$C$174)","v":""},null,{"$f":"IF($C$174=\"\",\"\",J174/$C$174)","v":""},null,{"$f":"IF($C$174=\"\",\"\",L174/$C$174)","v":""},null,{"$f":"IF($C$174=\"\",\"\",N174/$C$174)","v":""},null,{"$f":"IF($C$174=\"\",\"\",P174/$C$174)","v":""},null,{"$f":"IF($C$174=\"\",\"\",R174/$C$174)","v":""},null,{"$f":"IF($C$174=\"\",\"\",T174/$C$174)","v":""},null,{"$f":"IF($C$174=\"\",\"\",V174/$C$174)","v":""},null,{"$f":"IF($C$174=\"\",\"\",X174/$C$174)","v":""},null,{"$f":"IF($C$174=\"\",\"\",Z174/$C$174)","v":""},null,{"$f":"IF($C$174=\"\",\"\",AB174/$C$174)","v":""},null,{"$f":"IF($C$174=\"\",\"\",AD174/$C$174)","v":""},null,{"$f":"IF($C$174=\"\",\"\",AF174/$C$174)","v":""},null,{"$f":"IF($C$174=\"\",\"\",AH174/$C$174)","v":""},null,{"$f":"IF($C$174=\"\",\"\",AJ174/$C$174)","v":""},null,{"$f":"IF($C$174=\"\",\"\",AL174/$C$174)","v":""},null,{"$f":"IF($C$174=\"\",\"\",AN174/$C$174)","v":""},null,{"$f":"IF($C$174=\"\",\"\",AP174/$C$174)","v":""},null,{"$f":"IF($C$174=\"\",\"\",AR174/$C$174)","v":""},null,{"$f":"IF($C$174=\"\",\"\",AT174/$C$174)","v":""},null,{"$f":"IF($C$174=\"\",\"\",AV174/$C$174)","v":""},null,{"$f":"IF($C$174=\"\",\"\",AX174/$C$174)","v":""},null,{"$f":"IF($C$174=\"\",\"\",AZ174/$C$174)","v":""},null,{"$f":"IF($C$174=\"\",\"\",BB174/$C$174)","v":""},null,{"$f":"SUM(BB174,AZ174,AX174,AV174,AT174,AR174,AP174,AN174,AL174,AJ174,AH174,AF174,AD174,AB174,Z174,X174,V174,T174,R174,P174,N174,L174,J174,H174,F174)","v":0}]
["TOTAL HOURS",null,null,null,null,{"$f":"SUM(F163:F174)","v":0},null,{"$f":"SUM(H163:H174)","v":0},null,{"$f":"SUM(J163:J174)","v":0},null,{"$f":"SUM(L163:L174)","v":0},null,{"$f":"SUM(N163:N174)","v":0},null,{"$f":"SUM(P163:P174)","v":0},null,{"$f":"SUM(R163:R174)","v":0},null,{"$f":"SUM(T163:T174)","v":0},null,{"$f":"SUM(V163:V174)","v":0},null,{"$f":"SUM(X163:X174)","v":0},null,{"$f":"SUM(Z163:Z174)","v":0},null,{"$f":"SUM(AB163:AB174)","v":0},null,{"$f":"SUM(AD163:AD174)","v":0},null,{"$f":"SUM(AF163:AF174)","v":0},null,{"$f":"SUM(AH163:AH174)","v":0},null,{"$f":"SUM(AJ163:AJ174)","v":0},null,{"$f":"SUM(AL163:AL174)","v":0},null,{"$f":"SUM(AN163:AN174)","v":0},null,{"$f":"SUM(AP163:AP174)","v":0},null,{"$f":"SUM(AR163:AR174)","v":0},null,{"$f":"SUM(AT163:AT174)","v":0},null,{"$f":"SUM(AV163:AV174)","v":0},null,{"$f":"SUM(AX163:AX174)","v":0},null,{"$f":"SUM(AZ163:AZ174)","v":0},null,0,{"$f":"SUM(E175:BB175)","v":0}]
["TOTAL WORKDAYS",null,null,null,null,{"$f":"F175/8","v":0},null,{"$f":"H175/8","v":0},null,{"$f":"J175/8","v":0},null,{"$f":"L175/8","v":0},null,{"$f":"N175/8","v":0},null,{"$f":"P175/8","v":0},null,{"$f":"R175/8","v":0},null,{"$f":"T175/8","v":0},null,{"$f":"V175/8","v":0},null,{"$f":"X175/8","v":0},null,{"$f":"Z175/8","v":0},null,{"$f":"AB175/8","v":0},null,{"$f":"AD175/8","v":0},null,0,null,{"$f":"AH175/8","v":0},null,0,null,{"$f":"AL175/8","v":0},null,0,null,{"$f":"AP175/8","v":0},null,0,null,{"$f":"AT175/8","v":0},null,{"$f":"AV175/8","v":0},null,{"$f":"AX175/8","v":0},null,{"$f":"AZ175/8","v":0},null,0,{"$f":"SUM(E176:BB176)","v":0}]
["TOTAL RAW LABOR",null,null,null,null,{"$f":"$E$13*F175","v":0},null,{"$f":"$G$13*H175","v":0},null,{"$f":"$I$13*J175","v":0},null,{"$f":"$K$13*L175","v":0},null,{"$f":"$M$13*N175","v":0},null,{"$f":"$O$13*P175","v":0},null,{"$f":"$Q$13*R175","v":0},null,{"$f":"$S$13*T175","v":0},null,{"$f":"$U$13*V175","v":0},null,{"$f":"$W$13*X175","v":0},null,{"$f":"$Y$13*Z175","v":0},null,{"$f":"$AA$13*AB175","v":0},null,{"$f":"$AC$13*AD175","v":0},null,{"$f":"$AC$13*AF175","v":0},null,{"$f":"$AC$13*AH175","v":0},null,{"$f":"$AC$13*AJ175","v":0},null,{"$f":"$AC$13*AL175","v":0},null,{"$f":"$AC$13*AN175","v":0},null,{"$f":"$AC$13*AP175","v":0},null,{"$f":"$AC$13*AR175","v":0},null,{"$f":"$AC$13*AT175","v":0},null,{"$f":"$AC$13*AV175","v":0},null,{"$f":"$AC$13*AX175","v":0},null,{"$f":"$AC$13*AZ175","v":0},null,0,{"$f":"SUM(E177:BB177)","v":0}]
["Task 7.0     ","SYSTEM BOUNDARIES AND SYSTEM DETECTOR LAYOUT"]
[7.1,"Identify System Boundary and Control Sections",null,null,{"$f":"IF($C$179=\"\",\"\",F179/$C$179)","v":""},null,{"$f":"IF($C$179=\"\",\"\",H179/$C$179)","v":""},null,{"$f":"IF($C$179=\"\",\"\",J179/$C$179)","v":""},null,{"$f":"IF($C$179=\"\",\"\",L179/$C$179)","v":""},null,{"$f":"IF($C$179=\"\",\"\",N179/$C$179)","v":""},null,{"$f":"IF($C$179=\"\",\"\",P179/$C$179)","v":""},null,{"$f":"IF($C$179=\"\",\"\",R179/$C$179)","v":""},null,{"$f":"IF($C$179=\"\",\"\",T179/$C$179)","v":""},null,{"$f":"IF($C$179=\"\",\"\",V179/$C$179)","v":""},null,{"$f":"IF($C$179=\"\",\"\",X179/$C$179)","v":""},null,{"$f":"IF($C$179=\"\",\"\",Z179/$C$179)","v":""},null,{"$f":"IF($C$179=\"\",\"\",AB179/$C$179)","v":""},null,{"$f":"IF($C$179=\"\",\"\",AD179/$C$179)","v":""},null,{"$f":"IF($C$179=\"\",\"\",AF179/$C$179)","v":""},null,{"$f":"IF($C$179=\"\",\"\",AH179/$C$179)","v":""},null,{"$f":"IF($C$179=\"\",\"\",AJ179/$C$179)","v":""},null,{"$f":"IF($C$179=\"\",\"\",AL179/$C$179)","v":""},null,{"$f":"IF($C$179=\"\",\"\",AN179/$C$179)","v":""},null,{"$f":"IF($C$179=\"\",\"\",AP179/$C$179)","v":""},null,{"$f":"IF($C$179=\"\",\"\",AR179/$C$179)","v":""},null,{"$f":"IF($C$179=\"\",\"\",AT179/$C$179)","v":""},null,{"$f":"IF($C$179=\"\",\"\",AV179/$C$179)","v":""},null,{"$f":"IF($C$179=\"\",\"\",AX179/$C$179)","v":""},null,{"$f":"IF($C$179=\"\",\"\",AZ179/$C$179)","v":""},null,{"$f":"IF($C$179=\"\",\"\",BB179/$C$179)","v":""},null,{"$f":"SUM(BB179,AZ179,AX179,AV179,AT179,AR179,AP179,AN179,AL179,AJ179,AH179,AF179,AD179,AB179,Z179,X179,V179,T179,R179,P179,N179,L179,J179,H179,F179)","v":0}]
[7.2,"Develop System-Wide System Detector Schematic",null,null,{"$f":"IF($C$180=\"\",\"\",F180/$C$180)","v":""},null,{"$f":"IF($C$180=\"\",\"\",H180/$C$180)","v":""},null,{"$f":"IF($C$180=\"\",\"\",J180/$C$180)","v":""},null,{"$f":"IF($C$180=\"\",\"\",L180/$C$180)","v":""},null,{"$f":"IF($C$180=\"\",\"\",N180/$C$180)","v":""},null,{"$f":"IF($C$180=\"\",\"\",P180/$C$180)","v":""},null,{"$f":"IF($C$180=\"\",\"\",R180/$C$180)","v":""},null,{"$f":"IF($C$180=\"\",\"\",T180/$C$180)","v":""},null,{"$f":"IF($C$180=\"\",\"\",V180/$C$180)","v":""},null,{"$f":"IF($C$180=\"\",\"\",X180/$C$180)","v":""},null,{"$f":"IF($C$180=\"\",\"\",Z180/$C$180)","v":""},null,{"$f":"IF($C$180=\"\",\"\",AB180/$C$180)","v":""},null,{"$f":"IF($C$180=\"\",\"\",AD180/$C$180)","v":""},null,{"$f":"IF($C$180=\"\",\"\",AF180/$C$180)","v":""},null,{"$f":"IF($C$180=\"\",\"\",AH180/$C$180)","v":""},null,{"$f":"IF($C$180=\"\",\"\",AJ180/$C$180)","v":""},null,{"$f":"IF($C$180=\"\",\"\",AL180/$C$180)","v":""},null,{"$f":"IF($C$180=\"\",\"\",AN180/$C$180)","v":""},null,{"$f":"IF($C$180=\"\",\"\",AP180/$C$180)","v":""},null,{"$f":"IF($C$180=\"\",\"\",AR180/$C$180)","v":""},null,{"$f":"IF($C$180=\"\",\"\",AT180/$C$180)","v":""},null,{"$f":"IF($C$180=\"\",\"\",AV180/$C$180)","v":""},null,{"$f":"IF($C$180=\"\",\"\",AX180/$C$180)","v":""},null,{"$f":"IF($C$180=\"\",\"\",AZ180/$C$180)","v":""},null,{"$f":"IF($C$180=\"\",\"\",BB180/$C$180)","v":""},null,0]
[null,null,null,null,{"$f":"IF($C$181=\"\",\"\",F181/$C$181)","v":""},null,{"$f":"IF($C$181=\"\",\"\",H181/$C$181)","v":""},null,{"$f":"IF($C$181=\"\",\"\",J181/$C$181)","v":""},null,{"$f":"IF($C$181=\"\",\"\",L181/$C$181)","v":""},null,{"$f":"IF($C$181=\"\",\"\",N181/$C$181)","v":""},null,{"$f":"IF($C$181=\"\",\"\",P181/$C$181)","v":""},null,{"$f":"IF($C$181=\"\",\"\",R181/$C$181)","v":""},null,{"$f":"IF($C$181=\"\",\"\",T181/$C$181)","v":""},null,{"$f":"IF($C$181=\"\",\"\",V181/$C$181)","v":""},null,{"$f":"IF($C$181=\"\",\"\",X181/$C$181)","v":""},null,{"$f":"IF($C$181=\"\",\"\",Z181/$C$181)","v":""},null,{"$f":"IF($C$181=\"\",\"\",AB181/$C$181)","v":""},null,{"$f":"IF($C$181=\"\",\"\",AD181/$C$181)","v":""},null,{"$f":"IF($C$181=\"\",\"\",AF181/$C$181)","v":""},null,{"$f":"IF($C$181=\"\",\"\",AH181/$C$181)","v":""},null,{"$f":"IF($C$181=\"\",\"\",AJ181/$C$181)","v":""},null,{"$f":"IF($C$181=\"\",\"\",AL181/$C$181)","v":""},null,{"$f":"IF($C$181=\"\",\"\",AN181/$C$181)","v":""},null,{"$f":"IF($C$181=\"\",\"\",AP181/$C$181)","v":""},null,{"$f":"IF($C$181=\"\",\"\",AR181/$C$181)","v":""},null,{"$f":"IF($C$181=\"\",\"\",AT181/$C$181)","v":""},null,{"$f":"IF($C$181=\"\",\"\",AV181/$C$181)","v":""},null,{"$f":"IF($C$181=\"\",\"\",AX181/$C$181)","v":""},null,{"$f":"IF($C$181=\"\",\"\",AZ181/$C$181)","v":""},null,{"$f":"IF($C$181=\"\",\"\",BB181/$C$181)","v":""},null,0]
[null,null,null,null,{"$f":"IF($C$182=\"\",\"\",F182/$C$182)","v":""},null,{"$f":"IF($C$182=\"\",\"\",H182/$C$182)","v":""},null,{"$f":"IF($C$182=\"\",\"\",J182/$C$182)","v":""},null,{"$f":"IF($C$182=\"\",\"\",L182/$C$182)","v":""},null,{"$f":"IF($C$182=\"\",\"\",N182/$C$182)","v":""},null,{"$f":"IF($C$182=\"\",\"\",P182/$C$182)","v":""},null,{"$f":"IF($C$182=\"\",\"\",R182/$C$182)","v":""},null,{"$f":"IF($C$182=\"\",\"\",T182/$C$182)","v":""},null,{"$f":"IF($C$182=\"\",\"\",V182/$C$182)","v":""},null,{"$f":"IF($C$182=\"\",\"\",X182/$C$182)","v":""},null,{"$f":"IF($C$182=\"\",\"\",Z182/$C$182)","v":""},null,{"$f":"IF($C$182=\"\",\"\",AB182/$C$182)","v":""},null,{"$f":"IF($C$182=\"\",\"\",AD182/$C$182)","v":""},null,{"$f":"IF($C$182=\"\",\"\",AF182/$C$182)","v":""},null,{"$f":"IF($C$182=\"\",\"\",AH182/$C$182)","v":""},null,{"$f":"IF($C$182=\"\",\"\",AJ182/$C$182)","v":""},null,{"$f":"IF($C$182=\"\",\"\",AL182/$C$182)","v":""},null,{"$f":"IF($C$182=\"\",\"\",AN182/$C$182)","v":""},null,{"$f":"IF($C$182=\"\",\"\",AP182/$C$182)","v":""},null,{"$f":"IF($C$182=\"\",\"\",AR182/$C$182)","v":""},null,{"$f":"IF($C$182=\"\",\"\",AT182/$C$182)","v":""},null,{"$f":"IF($C$182=\"\",\"\",AV182/$C$182)","v":""},null,{"$f":"IF($C$182=\"\",\"\",AX182/$C$182)","v":""},null,{"$f":"IF($C$182=\"\",\"\",AZ182/$C$182)","v":""},null,{"$f":"IF($C$182=\"\",\"\",BB182/$C$182)","v":""},null,0]
[null,null,null,null,{"$f":"IF($C$183=\"\",\"\",F183/$C$183)","v":""},null,{"$f":"IF($C$183=\"\",\"\",H183/$C$183)","v":""},null,{"$f":"IF($C$183=\"\",\"\",J183/$C$183)","v":""},null,{"$f":"IF($C$183=\"\",\"\",L183/$C$183)","v":""},null,{"$f":"IF($C$183=\"\",\"\",N183/$C$183)","v":""},null,{"$f":"IF($C$183=\"\",\"\",P183/$C$183)","v":""},null,{"$f":"IF($C$183=\"\",\"\",R183/$C$183)","v":""},null,{"$f":"IF($C$183=\"\",\"\",T183/$C$183)","v":""},null,{"$f":"IF($C$183=\"\",\"\",V183/$C$183)","v":""},null,{"$f":"IF($C$183=\"\",\"\",X183/$C$183)","v":""},null,{"$f":"IF($C$183=\"\",\"\",Z183/$C$183)","v":""},null,{"$f":"IF($C$183=\"\",\"\",AB183/$C$183)","v":""},null,{"$f":"IF($C$183=\"\",\"\",AD183/$C$183)","v":""},null,{"$f":"IF($C$183=\"\",\"\",AF183/$C$183)","v":""},null,{"$f":"IF($C$183=\"\",\"\",AH183/$C$183)","v":""},null,{"$f":"IF($C$183=\"\",\"\",AJ183/$C$183)","v":""},null,{"$f":"IF($C$183=\"\",\"\",AL183/$C$183)","v":""},null,{"$f":"IF($C$183=\"\",\"\",AN183/$C$183)","v":""},null,{"$f":"IF($C$183=\"\",\"\",AP183/$C$183)","v":""},null,{"$f":"IF($C$183=\"\",\"\",AR183/$C$183)","v":""},null,{"$f":"IF($C$183=\"\",\"\",AT183/$C$183)","v":""},null,{"$f":"IF($C$183=\"\",\"\",AV183/$C$183)","v":""},null,{"$f":"IF($C$183=\"\",\"\",AX183/$C$183)","v":""},null,{"$f":"IF($C$183=\"\",\"\",AZ183/$C$183)","v":""},null,{"$f":"IF($C$183=\"\",\"\",BB183/$C$183)","v":""},null,0]
[null,null,null,null,{"$f":"IF($C$184=\"\",\"\",F184/$C$184)","v":""},null,{"$f":"IF($C$184=\"\",\"\",H184/$C$184)","v":""},null,{"$f":"IF($C$184=\"\",\"\",J184/$C$184)","v":""},null,{"$f":"IF($C$184=\"\",\"\",L184/$C$184)","v":""},null,{"$f":"IF($C$184=\"\",\"\",N184/$C$184)","v":""},null,{"$f":"IF($C$184=\"\",\"\",P184/$C$184)","v":""},null,{"$f":"IF($C$184=\"\",\"\",R184/$C$184)","v":""},null,{"$f":"IF($C$184=\"\",\"\",T184/$C$184)","v":""},null,{"$f":"IF($C$184=\"\",\"\",V184/$C$184)","v":""},null,{"$f":"IF($C$184=\"\",\"\",X184/$C$184)","v":""},null,{"$f":"IF($C$184=\"\",\"\",Z184/$C$184)","v":""},null,{"$f":"IF($C$184=\"\",\"\",AB184/$C$184)","v":""},null,{"$f":"IF($C$184=\"\",\"\",AD184/$C$184)","v":""},null,{"$f":"IF($C$184=\"\",\"\",AF184/$C$184)","v":""},null,{"$f":"IF($C$184=\"\",\"\",AH184/$C$184)","v":""},null,{"$f":"IF($C$184=\"\",\"\",AJ184/$C$184)","v":""},null,{"$f":"IF($C$184=\"\",\"\",AL184/$C$184)","v":""},null,{"$f":"IF($C$184=\"\",\"\",AN184/$C$184)","v":""},null,{"$f":"IF($C$184=\"\",\"\",AP184/$C$184)","v":""},null,{"$f":"IF($C$184=\"\",\"\",AR184/$C$184)","v":""},null,{"$f":"IF($C$184=\"\",\"\",AT184/$C$184)","v":""},null,{"$f":"IF($C$184=\"\",\"\",AV184/$C$184)","v":""},null,{"$f":"IF($C$184=\"\",\"\",AX184/$C$184)","v":""},null,{"$f":"IF($C$184=\"\",\"\",AZ184/$C$184)","v":""},null,{"$f":"IF($C$184=\"\",\"\",BB184/$C$184)","v":""},null,0]
[null,null,null,null,{"$f":"IF($C$185=\"\",\"\",F185/$C$185)","v":""},null,{"$f":"IF($C$185=\"\",\"\",H185/$C$185)","v":""},null,{"$f":"IF($C$185=\"\",\"\",J185/$C$185)","v":""},null,{"$f":"IF($C$185=\"\",\"\",L185/$C$185)","v":""},null,{"$f":"IF($C$185=\"\",\"\",N185/$C$185)","v":""},null,{"$f":"IF($C$185=\"\",\"\",P185/$C$185)","v":""},null,{"$f":"IF($C$185=\"\",\"\",R185/$C$185)","v":""},null,{"$f":"IF($C$185=\"\",\"\",T185/$C$185)","v":""},null,{"$f":"IF($C$185=\"\",\"\",V185/$C$185)","v":""},null,{"$f":"IF($C$185=\"\",\"\",X185/$C$185)","v":""},null,{"$f":"IF($C$185=\"\",\"\",Z185/$C$185)","v":""},null,{"$f":"IF($C$185=\"\",\"\",AB185/$C$185)","v":""},null,{"$f":"IF($C$185=\"\",\"\",AD185/$C$185)","v":""},null,{"$f":"IF($C$185=\"\",\"\",AF185/$C$185)","v":""},null,{"$f":"IF($C$185=\"\",\"\",AH185/$C$185)","v":""},null,{"$f":"IF($C$185=\"\",\"\",AJ185/$C$185)","v":""},null,{"$f":"IF($C$185=\"\",\"\",AL185/$C$185)","v":""},null,{"$f":"IF($C$185=\"\",\"\",AN185/$C$185)","v":""},null,{"$f":"IF($C$185=\"\",\"\",AP185/$C$185)","v":""},null,{"$f":"IF($C$185=\"\",\"\",AR185/$C$185)","v":""},null,{"$f":"IF($C$185=\"\",\"\",AT185/$C$185)","v":""},null,{"$f":"IF($C$185=\"\",\"\",AV185/$C$185)","v":""},null,{"$f":"IF($C$185=\"\",\"\",AX185/$C$185)","v":""},null,{"$f":"IF($C$185=\"\",\"\",AZ185/$C$185)","v":""},null,{"$f":"IF($C$185=\"\",\"\",BB185/$C$185)","v":""},null,0]
[null,null,null,null,{"$f":"IF($C$186=\"\",\"\",F186/$C$186)","v":""},null,{"$f":"IF($C$186=\"\",\"\",H186/$C$186)","v":""},null,{"$f":"IF($C$186=\"\",\"\",J186/$C$186)","v":""},null,{"$f":"IF($C$186=\"\",\"\",L186/$C$186)","v":""},null,{"$f":"IF($C$186=\"\",\"\",N186/$C$186)","v":""},null,{"$f":"IF($C$186=\"\",\"\",P186/$C$186)","v":""},null,{"$f":"IF($C$186=\"\",\"\",R186/$C$186)","v":""},null,{"$f":"IF($C$186=\"\",\"\",T186/$C$186)","v":""},null,{"$f":"IF($C$186=\"\",\"\",V186/$C$186)","v":""},null,{"$f":"IF($C$186=\"\",\"\",X186/$C$186)","v":""},null,{"$f":"IF($C$186=\"\",\"\",Z186/$C$186)","v":""},null,{"$f":"IF($C$186=\"\",\"\",AB186/$C$186)","v":""},null,{"$f":"IF($C$186=\"\",\"\",AD186/$C$186)","v":""},null,{"$f":"IF($C$186=\"\",\"\",AF186/$C$186)","v":""},null,{"$f":"IF($C$186=\"\",\"\",AH186/$C$186)","v":""},null,{"$f":"IF($C$186=\"\",\"\",AJ186/$C$186)","v":""},null,{"$f":"IF($C$186=\"\",\"\",AL186/$C$186)","v":""},null,{"$f":"IF($C$186=\"\",\"\",AN186/$C$186)","v":""},null,{"$f":"IF($C$186=\"\",\"\",AP186/$C$186)","v":""},null,{"$f":"IF($C$186=\"\",\"\",AR186/$C$186)","v":""},null,{"$f":"IF($C$186=\"\",\"\",AT186/$C$186)","v":""},null,{"$f":"IF($C$186=\"\",\"\",AV186/$C$186)","v":""},null,{"$f":"IF($C$186=\"\",\"\",AX186/$C$186)","v":""},null,{"$f":"IF($C$186=\"\",\"\",AZ186/$C$186)","v":""},null,{"$f":"IF($C$186=\"\",\"\",BB186/$C$186)","v":""},null,0]
[null,null,null,null,{"$f":"IF($C$187=\"\",\"\",F187/$C$187)","v":""},null,{"$f":"IF($C$187=\"\",\"\",H187/$C$187)","v":""},null,{"$f":"IF($C$187=\"\",\"\",J187/$C$187)","v":""},null,{"$f":"IF($C$187=\"\",\"\",L187/$C$187)","v":""},null,{"$f":"IF($C$187=\"\",\"\",N187/$C$187)","v":""},null,{"$f":"IF($C$187=\"\",\"\",P187/$C$187)","v":""},null,{"$f":"IF($C$187=\"\",\"\",R187/$C$187)","v":""},null,{"$f":"IF($C$187=\"\",\"\",T187/$C$187)","v":""},null,{"$f":"IF($C$187=\"\",\"\",V187/$C$187)","v":""},null,{"$f":"IF($C$187=\"\",\"\",X187/$C$187)","v":""},null,{"$f":"IF($C$187=\"\",\"\",Z187/$C$187)","v":""},null,{"$f":"IF($C$187=\"\",\"\",AB187/$C$187)","v":""},null,{"$f":"IF($C$187=\"\",\"\",AD187/$C$187)","v":""},null,{"$f":"IF($C$187=\"\",\"\",AF187/$C$187)","v":""},null,{"$f":"IF($C$187=\"\",\"\",AH187/$C$187)","v":""},null,{"$f":"IF($C$187=\"\",\"\",AJ187/$C$187)","v":""},null,{"$f":"IF($C$187=\"\",\"\",AL187/$C$187)","v":""},null,{"$f":"IF($C$187=\"\",\"\",AN187/$C$187)","v":""},null,{"$f":"IF($C$187=\"\",\"\",AP187/$C$187)","v":""},null,{"$f":"IF($C$187=\"\",\"\",AR187/$C$187)","v":""},null,{"$f":"IF($C$187=\"\",\"\",AT187/$C$187)","v":""},null,{"$f":"IF($C$187=\"\",\"\",AV187/$C$187)","v":""},null,{"$f":"IF($C$187=\"\",\"\",AX187/$C$187)","v":""},null,{"$f":"IF($C$187=\"\",\"\",AZ187/$C$187)","v":""},null,{"$f":"IF($C$187=\"\",\"\",BB187/$C$187)","v":""},null,{"$f":"SUM(BB187,AZ187,AX187,AV187,AT187,AR187,AP187,AN187,AL187,AJ187,AH187,AF187,AD187,AB187,Z187,X187,V187,T187,R187,P187,N187,L187,J187,H187,F187)","v":0}]
["TOTAL HOURS",null,null,null,null,{"$f":"SUM(F179:F187)","v":0},null,{"$f":"SUM(H179:H187)","v":0},null,{"$f":"SUM(J179:J187)","v":0},null,{"$f":"SUM(L179:L187)","v":0},null,{"$f":"SUM(N179:N187)","v":0},null,{"$f":"SUM(P179:P187)","v":0},null,{"$f":"SUM(R179:R187)","v":0},null,{"$f":"SUM(T179:T187)","v":0},null,{"$f":"SUM(V179:V187)","v":0},null,{"$f":"SUM(X179:X187)","v":0},null,{"$f":"SUM(Z179:Z187)","v":0},null,{"$f":"SUM(AB179:AB187)","v":0},null,{"$f":"SUM(AD179:AD187)","v":0},null,{"$f":"SUM(AF179:AF187)","v":0},null,{"$f":"SUM(AH179:AH187)","v":0},null,{"$f":"SUM(AJ179:AJ187)","v":0},null,{"$f":"SUM(AL179:AL187)","v":0},null,{"$f":"SUM(AN179:AN187)","v":0},null,{"$f":"SUM(AP179:AP187)","v":0},null,{"$f":"SUM(AR179:AR187)","v":0},null,{"$f":"SUM(AT179:AT187)","v":0},null,{"$f":"SUM(AV179:AV187)","v":0},null,{"$f":"SUM(AX179:AX187)","v":0},null,{"$f":"SUM(AZ179:AZ187)","v":0},null,0,{"$f":"SUM(E188:BB188)","v":0}]
["TOTAL WORKDAYS",null,null,null,null,{"$f":"F188/8","v":0},null,{"$f":"H188/8","v":0},null,{"$f":"J188/8","v":0},null,{"$f":"L188/8","v":0},null,{"$f":"N188/8","v":0},null,{"$f":"P188/8","v":0},null,{"$f":"R188/8","v":0},null,{"$f":"T188/8","v":0},null,{"$f":"V188/8","v":0},null,{"$f":"X188/8","v":0},null,{"$f":"Z188/8","v":0},null,{"$f":"AB188/8","v":0},null,{"$f":"AD188/8","v":0},null,0,null,{"$f":"AH188/8","v":0},null,0,null,{"$f":"AL188/8","v":0},null,0,null,{"$f":"AP188/8","v":0},null,0,null,{"$f":"AT188/8","v":0},null,{"$f":"AV188/8","v":0},null,{"$f":"AX188/8","v":0},null,{"$f":"AZ188/8","v":0},null,0,{"$f":"SUM(E189:BB189)","v":0}]
["TOTAL RAW LABOR",null,null,null,null,{"$f":"$E$13*F188","v":0},null,{"$f":"$G$13*H188","v":0},null,{"$f":"$I$13*J188","v":0},null,{"$f":"$K$13*L188","v":0},null,{"$f":"$M$13*N188","v":0},null,{"$f":"$O$13*P188","v":0},null,{"$f":"$Q$13*R188","v":0},null,{"$f":"$S$13*T188","v":0},null,{"$f":"$U$13*V188","v":0},null,{"$f":"$W$13*X188","v":0},null,{"$f":"$Y$13*Z188","v":0},null,{"$f":"$AA$13*AB188","v":0},null,{"$f":"$AC$13*AD188","v":0},null,{"$f":"$AC$13*AF188","v":0},null,{"$f":"$AC$13*AH188","v":0},null,{"$f":"$AC$13*AJ188","v":0},null,{"$f":"$AC$13*AL188","v":0},null,{"$f":"$AC$13*AN188","v":0},null,{"$f":"$AC$13*AP188","v":0},null,{"$f":"$AC$13*AR188","v":0},null,{"$f":"$AC$13*AT188","v":0},null,{"$f":"$AC$13*AV188","v":0},null,{"$f":"$AC$13*AX188","v":0},null,{"$f":"$AC$13*AZ188","v":0},null,0,{"$f":"SUM(E190:BB190)","v":0}]
["Task 8.0     ","RAILROAD ENCROACHMENT PERMIT COORDINATION"]
[8.1,"Identify Railroad Crossings",null,null,{"$f":"IF($C$192=\"\",\"\",F192/$C$192)","v":""},null,{"$f":"IF($C$192=\"\",\"\",H192/$C$192)","v":""},null,{"$f":"IF($C$192=\"\",\"\",J192/$C$192)","v":""},null,{"$f":"IF($C$192=\"\",\"\",L192/$C$192)","v":""},null,{"$f":"IF($C$192=\"\",\"\",N192/$C$192)","v":""},null,{"$f":"IF($C$192=\"\",\"\",P192/$C$192)","v":""},null,{"$f":"IF($C$192=\"\",\"\",R192/$C$192)","v":""},null,{"$f":"IF($C$192=\"\",\"\",T192/$C$192)","v":""},null,{"$f":"IF($C$192=\"\",\"\",V192/$C$192)","v":""},null,{"$f":"IF($C$192=\"\",\"\",X192/$C$192)","v":""},null,{"$f":"IF($C$192=\"\",\"\",Z192/$C$192)","v":""},null,{"$f":"IF($C$192=\"\",\"\",AB192/$C$192)","v":""},null,{"$f":"IF($C$192=\"\",\"\",AD192/$C$192)","v":""},null,{"$f":"IF($C$192=\"\",\"\",AF192/$C$192)","v":""},null,{"$f":"IF($C$192=\"\",\"\",AH192/$C$192)","v":""},null,{"$f":"IF($C$192=\"\",\"\",AJ192/$C$192)","v":""},null,{"$f":"IF($C$192=\"\",\"\",AL192/$C$192)","v":""},null,{"$f":"IF($C$192=\"\",\"\",AN192/$C$192)","v":""},null,{"$f":"IF($C$192=\"\",\"\",AP192/$C$192)","v":""},null,{"$f":"IF($C$192=\"\",\"\",AR192/$C$192)","v":""},null,{"$f":"IF($C$192=\"\",\"\",AT192/$C$192)","v":""},null,{"$f":"IF($C$192=\"\",\"\",AV192/$C$192)","v":""},null,{"$f":"IF($C$192=\"\",\"\",AX192/$C$192)","v":""},null,{"$f":"IF($C$192=\"\",\"\",AZ192/$C$192)","v":""},null,{"$f":"IF($C$192=\"\",\"\",BB192/$C$192)","v":""},null,{"$f":"SUM(BB192,AZ192,AX192,AV192,AT192,AR192,AP192,AN192,AL192,AJ192,AH192,AF192,AD192,AB192,Z192,X192,V192,T192,R192,P192,N192,L192,J192,H192,F192)","v":0}]
[8.1999999999999993,"Collect Railroad Encroachment Data",null,null,{"$f":"IF($C$193=\"\",\"\",F193/$C$193)","v":""},null,{"$f":"IF($C$193=\"\",\"\",H193/$C$193)","v":""},null,{"$f":"IF($C$193=\"\",\"\",J193/$C$193)","v":""},null,{"$f":"IF($C$193=\"\",\"\",L193/$C$193)","v":""},null,{"$f":"IF($C$193=\"\",\"\",N193/$C$193)","v":""},null,{"$f":"IF($C$193=\"\",\"\",P193/$C$193)","v":""},null,{"$f":"IF($C$193=\"\",\"\",R193/$C$193)","v":""},null,{"$f":"IF($C$193=\"\",\"\",T193/$C$193)","v":""},null,{"$f":"IF($C$193=\"\",\"\",V193/$C$193)","v":""},null,{"$f":"IF($C$193=\"\",\"\",X193/$C$193)","v":""},null,{"$f":"IF($C$193=\"\",\"\",Z193/$C$193)","v":""},null,{"$f":"IF($C$193=\"\",\"\",AB193/$C$193)","v":""},null,{"$f":"IF($C$193=\"\",\"\",AD193/$C$193)","v":""},null,{"$f":"IF($C$193=\"\",\"\",AF193/$C$193)","v":""},null,{"$f":"IF($C$193=\"\",\"\",AH193/$C$193)","v":""},null,{"$f":"IF($C$193=\"\",\"\",AJ193/$C$193)","v":""},null,{"$f":"IF($C$193=\"\",\"\",AL193/$C$193)","v":""},null,{"$f":"IF($C$193=\"\",\"\",AN193/$C$193)","v":""},null,{"$f":"IF($C$193=\"\",\"\",AP193/$C$193)","v":""},null,{"$f":"IF($C$193=\"\",\"\",AR193/$C$193)","v":""},null,{"$f":"IF($C$193=\"\",\"\",AT193/$C$193)","v":""},null,{"$f":"IF($C$193=\"\",\"\",AV193/$C$193)","v":""},null,{"$f":"IF($C$193=\"\",\"\",AX193/$C$193)","v":""},null,{"$f":"IF($C$193=\"\",\"\",AZ193/$C$193)","v":""},null,{"$f":"IF($C$193=\"\",\"\",BB193/$C$193)","v":""},null,0]
[8.3000000000000007,"Prepare Figures & Exhibits for Permits",null,null,{"$f":"IF($C$194=\"\",\"\",F194/$C$194)","v":""},null,{"$f":"IF($C$194=\"\",\"\",H194/$C$194)","v":""},null,{"$f":"IF($C$194=\"\",\"\",J194/$C$194)","v":""},null,{"$f":"IF($C$194=\"\",\"\",L194/$C$194)","v":""},null,{"$f":"IF($C$194=\"\",\"\",N194/$C$194)","v":""},null,{"$f":"IF($C$194=\"\",\"\",P194/$C$194)","v":""},null,{"$f":"IF($C$194=\"\",\"\",R194/$C$194)","v":""},null,{"$f":"IF($C$194=\"\",\"\",T194/$C$194)","v":""},null,{"$f":"IF($C$194=\"\",\"\",V194/$C$194)","v":""},null,{"$f":"IF($C$194=\"\",\"\",X194/$C$194)","v":""},null,{"$f":"IF($C$194=\"\",\"\",Z194/$C$194)","v":""},null,{"$f":"IF($C$194=\"\",\"\",AB194/$C$194)","v":""},null,{"$f":"IF($C$194=\"\",\"\",AD194/$C$194)","v":""},null,{"$f":"IF($C$194=\"\",\"\",AF194/$C$194)","v":""},null,{"$f":"IF($C$194=\"\",\"\",AH194/$C$194)","v":""},null,{"$f":"IF($C$194=\"\",\"\",AJ194/$C$194)","v":""},null,{"$f":"IF($C$194=\"\",\"\",AL194/$C$194)","v":""},null,{"$f":"IF($C$194=\"\",\"\",AN194/$C$194)","v":""},null,{"$f":"IF($C$194=\"\",\"\",AP194/$C$194)","v":""},null,{"$f":"IF($C$194=\"\",\"\",AR194/$C$194)","v":""},null,{"$f":"IF($C$194=\"\",\"\",AT194/$C$194)","v":""},null,{"$f":"IF($C$194=\"\",\"\",AV194/$C$194)","v":""},null,{"$f":"IF($C$194=\"\",\"\",AX194/$C$194)","v":""},null,{"$f":"IF($C$194=\"\",\"\",AZ194/$C$194)","v":""},null,{"$f":"IF($C$194=\"\",\"\",BB194/$C$194)","v":""},null,0]
[8.4,"Complete the Permit Forms",null,null,{"$f":"IF($C$195=\"\",\"\",F195/$C$195)","v":""},null,{"$f":"IF($C$195=\"\",\"\",H195/$C$195)","v":""},null,{"$f":"IF($C$195=\"\",\"\",J195/$C$195)","v":""},null,{"$f":"IF($C$195=\"\",\"\",L195/$C$195)","v":""},null,{"$f":"IF($C$195=\"\",\"\",N195/$C$195)","v":""},null,{"$f":"IF($C$195=\"\",\"\",P195/$C$195)","v":""},null,{"$f":"IF($C$195=\"\",\"\",R195/$C$195)","v":""},null,{"$f":"IF($C$195=\"\",\"\",T195/$C$195)","v":""},null,{"$f":"IF($C$195=\"\",\"\",V195/$C$195)","v":""},null,{"$f":"IF($C$195=\"\",\"\",X195/$C$195)","v":""},null,{"$f":"IF($C$195=\"\",\"\",Z195/$C$195)","v":""},null,{"$f":"IF($C$195=\"\",\"\",AB195/$C$195)","v":""},null,{"$f":"IF($C$195=\"\",\"\",AD195/$C$195)","v":""},null,{"$f":"IF($C$195=\"\",\"\",AF195/$C$195)","v":""},null,{"$f":"IF($C$195=\"\",\"\",AH195/$C$195)","v":""},null,{"$f":"IF($C$195=\"\",\"\",AJ195/$C$195)","v":""},null,{"$f":"IF($C$195=\"\",\"\",AL195/$C$195)","v":""},null,{"$f":"IF($C$195=\"\",\"\",AN195/$C$195)","v":""},null,{"$f":"IF($C$195=\"\",\"\",AP195/$C$195)","v":""},null,{"$f":"IF($C$195=\"\",\"\",AR195/$C$195)","v":""},null,{"$f":"IF($C$195=\"\",\"\",AT195/$C$195)","v":""},null,{"$f":"IF($C$195=\"\",\"\",AV195/$C$195)","v":""},null,{"$f":"IF($C$195=\"\",\"\",AX195/$C$195)","v":""},null,{"$f":"IF($C$195=\"\",\"\",AZ195/$C$195)","v":""},null,{"$f":"IF($C$195=\"\",\"\",BB195/$C$195)","v":""},null,0]
[null,null,null,null,{"$f":"IF($C$196=\"\",\"\",F196/$C$196)","v":""},null,{"$f":"IF($C$196=\"\",\"\",H196/$C$196)","v":""},null,{"$f":"IF($C$196=\"\",\"\",J196/$C$196)","v":""},null,{"$f":"IF($C$196=\"\",\"\",L196/$C$196)","v":""},null,{"$f":"IF($C$196=\"\",\"\",N196/$C$196)","v":""},null,{"$f":"IF($C$196=\"\",\"\",P196/$C$196)","v":""},null,{"$f":"IF($C$196=\"\",\"\",R196/$C$196)","v":""},null,{"$f":"IF($C$196=\"\",\"\",T196/$C$196)","v":""},null,{"$f":"IF($C$196=\"\",\"\",V196/$C$196)","v":""},null,{"$f":"IF($C$196=\"\",\"\",X196/$C$196)","v":""},null,{"$f":"IF($C$196=\"\",\"\",Z196/$C$196)","v":""},null,{"$f":"IF($C$196=\"\",\"\",AB196/$C$196)","v":""},null,{"$f":"IF($C$196=\"\",\"\",AD196/$C$196)","v":""},null,{"$f":"IF($C$196=\"\",\"\",AF196/$C$196)","v":""},null,{"$f":"IF($C$196=\"\",\"\",AH196/$C$196)","v":""},null,{"$f":"IF($C$196=\"\",\"\",AJ196/$C$196)","v":""},null,{"$f":"IF($C$196=\"\",\"\",AL196/$C$196)","v":""},null,{"$f":"IF($C$196=\"\",\"\",AN196/$C$196)","v":""},null,{"$f":"IF($C$196=\"\",\"\",AP196/$C$196)","v":""},null,{"$f":"IF($C$196=\"\",\"\",AR196/$C$196)","v":""},null,{"$f":"IF($C$196=\"\",\"\",AT196/$C$196)","v":""},null,{"$f":"IF($C$196=\"\",\"\",AV196/$C$196)","v":""},null,{"$f":"IF($C$196=\"\",\"\",AX196/$C$196)","v":""},null,{"$f":"IF($C$196=\"\",\"\",AZ196/$C$196)","v":""},null,{"$f":"IF($C$196=\"\",\"\",BB196/$C$196)","v":""},null,0]
[null,null,null,null,{"$f":"IF($C$197=\"\",\"\",F197/$C$197)","v":""},null,{"$f":"IF($C$197=\"\",\"\",H197/$C$197)","v":""},null,{"$f":"IF($C$197=\"\",\"\",J197/$C$197)","v":""},null,{"$f":"IF($C$197=\"\",\"\",L197/$C$197)","v":""},null,{"$f":"IF($C$197=\"\",\"\",N197/$C$197)","v":""},null,{"$f":"IF($C$197=\"\",\"\",P197/$C$197)","v":""},null,{"$f":"IF($C$197=\"\",\"\",R197/$C$197)","v":""},null,{"$f":"IF($C$197=\"\",\"\",T197/$C$197)","v":""},null,{"$f":"IF($C$197=\"\",\"\",V197/$C$197)","v":""},null,{"$f":"IF($C$197=\"\",\"\",X197/$C$197)","v":""},null,{"$f":"IF($C$197=\"\",\"\",Z197/$C$197)","v":""},null,{"$f":"IF($C$197=\"\",\"\",AB197/$C$197)","v":""},null,{"$f":"IF($C$197=\"\",\"\",AD197/$C$197)","v":""},null,{"$f":"IF($C$197=\"\",\"\",AF197/$C$197)","v":""},null,{"$f":"IF($C$197=\"\",\"\",AH197/$C$197)","v":""},null,{"$f":"IF($C$197=\"\",\"\",AJ197/$C$197)","v":""},null,{"$f":"IF($C$197=\"\",\"\",AL197/$C$197)","v":""},null,{"$f":"IF($C$197=\"\",\"\",AN197/$C$197)","v":""},null,{"$f":"IF($C$197=\"\",\"\",AP197/$C$197)","v":""},null,{"$f":"IF($C$197=\"\",\"\",AR197/$C$197)","v":""},null,{"$f":"IF($C$197=\"\",\"\",AT197/$C$197)","v":""},null,{"$f":"IF($C$197=\"\",\"\",AV197/$C$197)","v":""},null,{"$f":"IF($C$197=\"\",\"\",AX197/$C$197)","v":""},null,{"$f":"IF($C$197=\"\",\"\",AZ197/$C$197)","v":""},null,{"$f":"IF($C$197=\"\",\"\",BB197/$C$197)","v":""},null,0]
[null,null,null,null,{"$f":"IF($C$198=\"\",\"\",F198/$C$198)","v":""},null,{"$f":"IF($C$198=\"\",\"\",H198/$C$198)","v":""},null,{"$f":"IF($C$198=\"\",\"\",J198/$C$198)","v":""},null,{"$f":"IF($C$198=\"\",\"\",L198/$C$198)","v":""},null,{"$f":"IF($C$198=\"\",\"\",N198/$C$198)","v":""},null,{"$f":"IF($C$198=\"\",\"\",P198/$C$198)","v":""},null,{"$f":"IF($C$198=\"\",\"\",R198/$C$198)","v":""},null,{"$f":"IF($C$198=\"\",\"\",T198/$C$198)","v":""},null,{"$f":"IF($C$198=\"\",\"\",V198/$C$198)","v":""},null,{"$f":"IF($C$198=\"\",\"\",X198/$C$198)","v":""},null,{"$f":"IF($C$198=\"\",\"\",Z198/$C$198)","v":""},null,{"$f":"IF($C$198=\"\",\"\",AB198/$C$198)","v":""},null,{"$f":"IF($C$198=\"\",\"\",AD198/$C$198)","v":""},null,{"$f":"IF($C$198=\"\",\"\",AF198/$C$198)","v":""},null,{"$f":"IF($C$198=\"\",\"\",AH198/$C$198)","v":""},null,{"$f":"IF($C$198=\"\",\"\",AJ198/$C$198)","v":""},null,{"$f":"IF($C$198=\"\",\"\",AL198/$C$198)","v":""},null,{"$f":"IF($C$198=\"\",\"\",AN198/$C$198)","v":""},null,{"$f":"IF($C$198=\"\",\"\",AP198/$C$198)","v":""},null,{"$f":"IF($C$198=\"\",\"\",AR198/$C$198)","v":""},null,{"$f":"IF($C$198=\"\",\"\",AT198/$C$198)","v":""},null,{"$f":"IF($C$198=\"\",\"\",AV198/$C$198)","v":""},null,{"$f":"IF($C$198=\"\",\"\",AX198/$C$198)","v":""},null,{"$f":"IF($C$198=\"\",\"\",AZ198/$C$198)","v":""},null,{"$f":"IF($C$198=\"\",\"\",BB198/$C$198)","v":""},null,0]
[null,null,null,null,{"$f":"IF($C$199=\"\",\"\",F199/$C$199)","v":""},null,{"$f":"IF($C$199=\"\",\"\",H199/$C$199)","v":""},null,{"$f":"IF($C$199=\"\",\"\",J199/$C$199)","v":""},null,{"$f":"IF($C$199=\"\",\"\",L199/$C$199)","v":""},null,{"$f":"IF($C$199=\"\",\"\",N199/$C$199)","v":""},null,{"$f":"IF($C$199=\"\",\"\",P199/$C$199)","v":""},null,{"$f":"IF($C$199=\"\",\"\",R199/$C$199)","v":""},null,{"$f":"IF($C$199=\"\",\"\",T199/$C$199)","v":""},null,{"$f":"IF($C$199=\"\",\"\",V199/$C$199)","v":""},null,{"$f":"IF($C$199=\"\",\"\",X199/$C$199)","v":""},null,{"$f":"IF($C$199=\"\",\"\",Z199/$C$199)","v":""},null,{"$f":"IF($C$199=\"\",\"\",AB199/$C$199)","v":""},null,{"$f":"IF($C$199=\"\",\"\",AD199/$C$199)","v":""},null,{"$f":"IF($C$199=\"\",\"\",AF199/$C$199)","v":""},null,{"$f":"IF($C$199=\"\",\"\",AH199/$C$199)","v":""},null,{"$f":"IF($C$199=\"\",\"\",AJ199/$C$199)","v":""},null,{"$f":"IF($C$199=\"\",\"\",AL199/$C$199)","v":""},null,{"$f":"IF($C$199=\"\",\"\",AN199/$C$199)","v":""},null,{"$f":"IF($C$199=\"\",\"\",AP199/$C$199)","v":""},null,{"$f":"IF($C$199=\"\",\"\",AR199/$C$199)","v":""},null,{"$f":"IF($C$199=\"\",\"\",AT199/$C$199)","v":""},null,{"$f":"IF($C$199=\"\",\"\",AV199/$C$199)","v":""},null,{"$f":"IF($C$199=\"\",\"\",AX199/$C$199)","v":""},null,{"$f":"IF($C$199=\"\",\"\",AZ199/$C$199)","v":""},null,{"$f":"IF($C$199=\"\",\"\",BB199/$C$199)","v":""},null,0]
[null,null,null,null,{"$f":"IF($C$200=\"\",\"\",F200/$C$200)","v":""},null,{"$f":"IF($C$200=\"\",\"\",H200/$C$200)","v":""},null,{"$f":"IF($C$200=\"\",\"\",J200/$C$200)","v":""},null,{"$f":"IF($C$200=\"\",\"\",L200/$C$200)","v":""},null,{"$f":"IF($C$200=\"\",\"\",N200/$C$200)","v":""},null,{"$f":"IF($C$200=\"\",\"\",P200/$C$200)","v":""},null,{"$f":"IF($C$200=\"\",\"\",R200/$C$200)","v":""},null,{"$f":"IF($C$200=\"\",\"\",T200/$C$200)","v":""},null,{"$f":"IF($C$200=\"\",\"\",V200/$C$200)","v":""},null,{"$f":"IF($C$200=\"\",\"\",X200/$C$200)","v":""},null,{"$f":"IF($C$200=\"\",\"\",Z200/$C$200)","v":""},null,{"$f":"IF($C$200=\"\",\"\",AB200/$C$200)","v":""},null,{"$f":"IF($C$200=\"\",\"\",AD200/$C$200)","v":""},null,{"$f":"IF($C$200=\"\",\"\",AF200/$C$200)","v":""},null,{"$f":"IF($C$200=\"\",\"\",AH200/$C$200)","v":""},null,{"$f":"IF($C$200=\"\",\"\",AJ200/$C$200)","v":""},null,{"$f":"IF($C$200=\"\",\"\",AL200/$C$200)","v":""},null,{"$f":"IF($C$200=\"\",\"\",AN200/$C$200)","v":""},null,{"$f":"IF($C$200=\"\",\"\",AP200/$C$200)","v":""},null,{"$f":"IF($C$200=\"\",\"\",AR200/$C$200)","v":""},null,{"$f":"IF($C$200=\"\",\"\",AT200/$C$200)","v":""},null,{"$f":"IF($C$200=\"\",\"\",AV200/$C$200)","v":""},null,{"$f":"IF($C$200=\"\",\"\",AX200/$C$200)","v":""},null,{"$f":"IF($C$200=\"\",\"\",AZ200/$C$200)","v":""},null,{"$f":"IF($C$200=\"\",\"\",BB200/$C$200)","v":""},null,0]
[null,null,null,null,{"$f":"IF($C$201=\"\",\"\",F201/$C$201)","v":""},null,{"$f":"IF($C$201=\"\",\"\",H201/$C$201)","v":""},null,{"$f":"IF($C$201=\"\",\"\",J201/$C$201)","v":""},null,{"$f":"IF($C$201=\"\",\"\",L201/$C$201)","v":""},null,{"$f":"IF($C$201=\"\",\"\",N201/$C$201)","v":""},null,{"$f":"IF($C$201=\"\",\"\",P201/$C$201)","v":""},null,{"$f":"IF($C$201=\"\",\"\",R201/$C$201)","v":""},null,{"$f":"IF($C$201=\"\",\"\",T201/$C$201)","v":""},null,{"$f":"IF($C$201=\"\",\"\",V201/$C$201)","v":""},null,{"$f":"IF($C$201=\"\",\"\",X201/$C$201)","v":""},null,{"$f":"IF($C$201=\"\",\"\",Z201/$C$201)","v":""},null,{"$f":"IF($C$201=\"\",\"\",AB201/$C$201)","v":""},null,{"$f":"IF($C$201=\"\",\"\",AD201/$C$201)","v":""},null,{"$f":"IF($C$201=\"\",\"\",AF201/$C$201)","v":""},null,{"$f":"IF($C$201=\"\",\"\",AH201/$C$201)","v":""},null,{"$f":"IF($C$201=\"\",\"\",AJ201/$C$201)","v":""},null,{"$f":"IF($C$201=\"\",\"\",AL201/$C$201)","v":""},null,{"$f":"IF($C$201=\"\",\"\",AN201/$C$201)","v":""},null,{"$f":"IF($C$201=\"\",\"\",AP201/$C$201)","v":""},null,{"$f":"IF($C$201=\"\",\"\",AR201/$C$201)","v":""},null,{"$f":"IF($C$201=\"\",\"\",AT201/$C$201)","v":""},null,{"$f":"IF($C$201=\"\",\"\",AV201/$C$201)","v":""},null,{"$f":"IF($C$201=\"\",\"\",AX201/$C$201)","v":""},null,{"$f":"IF($C$201=\"\",\"\",AZ201/$C$201)","v":""},null,{"$f":"IF($C$201=\"\",\"\",BB201/$C$201)","v":""},null,0]
[null,null,null,null,{"$f":"IF($C$202=\"\",\"\",F202/$C$202)","v":""},null,{"$f":"IF($C$202=\"\",\"\",H202/$C$202)","v":""},null,{"$f":"IF($C$202=\"\",\"\",J202/$C$202)","v":""},null,{"$f":"IF($C$202=\"\",\"\",L202/$C$202)","v":""},null,{"$f":"IF($C$202=\"\",\"\",N202/$C$202)","v":""},null,{"$f":"IF($C$202=\"\",\"\",P202/$C$202)","v":""},null,{"$f":"IF($C$202=\"\",\"\",R202/$C$202)","v":""},null,{"$f":"IF($C$202=\"\",\"\",T202/$C$202)","v":""},null,{"$f":"IF($C$202=\"\",\"\",V202/$C$202)","v":""},null,{"$f":"IF($C$202=\"\",\"\",X202/$C$202)","v":""},null,{"$f":"IF($C$202=\"\",\"\",Z202/$C$202)","v":""},null,{"$f":"IF($C$202=\"\",\"\",AB202/$C$202)","v":""},null,{"$f":"IF($C$202=\"\",\"\",AD202/$C$202)","v":""},null,{"$f":"IF($C$202=\"\",\"\",AF202/$C$202)","v":""},null,{"$f":"IF($C$202=\"\",\"\",AH202/$C$202)","v":""},null,{"$f":"IF($C$202=\"\",\"\",AJ202/$C$202)","v":""},null,{"$f":"IF($C$202=\"\",\"\",AL202/$C$202)","v":""},null,{"$f":"IF($C$202=\"\",\"\",AN202/$C$202)","v":""},null,{"$f":"IF($C$202=\"\",\"\",AP202/$C$202)","v":""},null,{"$f":"IF($C$202=\"\",\"\",AR202/$C$202)","v":""},null,{"$f":"IF($C$202=\"\",\"\",AT202/$C$202)","v":""},null,{"$f":"IF($C$202=\"\",\"\",AV202/$C$202)","v":""},null,{"$f":"IF($C$202=\"\",\"\",AX202/$C$202)","v":""},null,{"$f":"IF($C$202=\"\",\"\",AZ202/$C$202)","v":""},null,{"$f":"IF($C$202=\"\",\"\",BB202/$C$202)","v":""},null,{"$f":"SUM(BB202,AZ202,AX202,AV202,AT202,AR202,AP202,AN202,AL202,AJ202,AH202,AF202,AD202,AB202,Z202,X202,V202,T202,R202,P202,N202,L202,J202,H202,F202)","v":0}]
["TOTAL HOURS",null,null,null,null,{"$f":"SUM(F192:F202)","v":0},null,{"$f":"SUM(H192:H202)","v":0},null,{"$f":"SUM(J192:J202)","v":0},null,{"$f":"SUM(L192:L202)","v":0},null,{"$f":"SUM(N192:N202)","v":0},null,{"$f":"SUM(P192:P202)","v":0},null,{"$f":"SUM(R192:R202)","v":0},null,{"$f":"SUM(T192:T202)","v":0},null,{"$f":"SUM(V192:V202)","v":0},null,{"$f":"SUM(X192:X202)","v":0},null,{"$f":"SUM(Z192:Z202)","v":0},null,{"$f":"SUM(AB192:AB202)","v":0},null,{"$f":"SUM(AD192:AD202)","v":0},null,{"$f":"SUM(AF192:AF202)","v":0},null,{"$f":"SUM(AH192:AH202)","v":0},null,{"$f":"SUM(AJ192:AJ202)","v":0},null,{"$f":"SUM(AL192:AL202)","v":0},null,{"$f":"SUM(AN192:AN202)","v":0},null,{"$f":"SUM(AP192:AP202)","v":0},null,{"$f":"SUM(AR192:AR202)","v":0},null,{"$f":"SUM(AT192:AT202)","v":0},null,{"$f":"SUM(AV192:AV202)","v":0},null,{"$f":"SUM(AX192:AX202)","v":0},null,{"$f":"SUM(AZ192:AZ202)","v":0},null,0,{"$f":"SUM(E203:BB203)","v":0}]
["TOTAL WORKDAYS",null,null,null,null,{"$f":"F203/8","v":0},null,{"$f":"H203/8","v":0},null,{"$f":"J203/8","v":0},null,{"$f":"L203/8","v":0},null,{"$f":"N203/8","v":0},null,{"$f":"P203/8","v":0},null,{"$f":"R203/8","v":0},null,{"$f":"T203/8","v":0},null,{"$f":"V203/8","v":0},null,{"$f":"X203/8","v":0},null,{"$f":"Z203/8","v":0},null,{"$f":"AB203/8","v":0},null,{"$f":"AD203/8","v":0},null,0,null,{"$f":"AH203/8","v":0},null,0,null,{"$f":"AL203/8","v":0},null,0,null,{"$f":"AP203/8","v":0},null,0,null,{"$f":"AT203/8","v":0},null,{"$f":"AV203/8","v":0},null,{"$f":"AX203/8","v":0},null,{"$f":"AZ203/8","v":0},null,0,{"$f":"SUM(E204:BB204)","v":0}]
["TOTAL RAW LABOR",null,null,null,null,{"$f":"$E$13*F203","v":0},null,{"$f":"$G$13*H203","v":0},null,{"$f":"$I$13*J203","v":0},null,{"$f":"$K$13*L203","v":0},null,{"$f":"$M$13*N203","v":0},null,{"$f":"$O$13*P203","v":0},null,{"$f":"$Q$13*R203","v":0},null,{"$f":"$S$13*T203","v":0},null,{"$f":"$U$13*V203","v":0},null,{"$f":"$W$13*X203","v":0},null,{"$f":"$Y$13*Z203","v":0},null,{"$f":"$AA$13*AB203","v":0},null,{"$f":"$AC$13*AD203","v":0},null,{"$f":"$AC$13*AF203","v":0},null,{"$f":"$AC$13*AH203","v":0},null,{"$f":"$AC$13*AJ203","v":0},null,{"$f":"$AC$13*AL203","v":0},null,{"$f":"$AC$13*AN203","v":0},null,{"$f":"$AC$13*AP203","v":0},null,{"$f":"$AC$13*AR203","v":0},null,{"$f":"$AC$13*AT203","v":0},null,{"$f":"$AC$13*AV203","v":0},null,{"$f":"$AC$13*AX203","v":0},null,{"$f":"$AC$13*AZ203","v":0},null,0,{"$f":"SUM(E205:BB205)","v":0}]
["Task 9.0     ","BASIS OF DESIGN DOCUMENT (BODD)"]
[9.1,"Basis of Design Document (BODD)"]
["    9.1.1","    Prepare and Maintain BODD Notebook",null,null,{"$f":"IF($C$208=\"\",\"\",F208/$C$208)","v":""},null,{"$f":"IF($C$208=\"\",\"\",H208/$C$208)","v":""},null,{"$f":"IF($C$208=\"\",\"\",J208/$C$208)","v":""},null,{"$f":"IF($C$208=\"\",\"\",L208/$C$208)","v":""},null,{"$f":"IF($C$208=\"\",\"\",N208/$C$208)","v":""},null,{"$f":"IF($C$208=\"\",\"\",P208/$C$208)","v":""},null,{"$f":"IF($C$208=\"\",\"\",R208/$C$208)","v":""},null,{"$f":"IF($C$208=\"\",\"\",T208/$C$208)","v":""},null,{"$f":"IF($C$208=\"\",\"\",V208/$C$208)","v":""},null,{"$f":"IF($C$208=\"\",\"\",X208/$C$208)","v":""},null,{"$f":"IF($C$208=\"\",\"\",Z208/$C$208)","v":""},null,{"$f":"IF($C$208=\"\",\"\",AB208/$C$208)","v":""},null,{"$f":"IF($C$208=\"\",\"\",AD208/$C$208)","v":""},null,{"$f":"IF($C$208=\"\",\"\",AF208/$C$208)","v":""},null,{"$f":"IF($C$208=\"\",\"\",AH208/$C$208)","v":""},null,{"$f":"IF($C$208=\"\",\"\",AJ208/$C$208)","v":""},null,{"$f":"IF($C$208=\"\",\"\",AL208/$C$208)","v":""},null,{"$f":"IF($C$208=\"\",\"\",AN208/$C$208)","v":""},null,{"$f":"IF($C$208=\"\",\"\",AP208/$C$208)","v":""},null,{"$f":"IF($C$208=\"\",\"\",AR208/$C$208)","v":""},null,{"$f":"IF($C$208=\"\",\"\",AT208/$C$208)","v":""},null,{"$f":"IF($C$208=\"\",\"\",AV208/$C$208)","v":""},null,{"$f":"IF($C$208=\"\",\"\",AX208/$C$208)","v":""},null,{"$f":"IF($C$208=\"\",\"\",AZ208/$C$208)","v":""},null,{"$f":"IF($C$208=\"\",\"\",BB208/$C$208)","v":""},null,{"$f":"SUM(BB208,AZ208,AX208,AV208,AT208,AR208,AP208,AN208,AL208,AJ208,AH208,AF208,AD208,AB208,Z208,X208,V208,T208,R208,P208,N208,L208,J208,H208,F208)","v":0}]
["    9.1.2","    Prepare and Distribute Project Meeting Minutes",null,null,{"$f":"IF($C$209=\"\",\"\",F209/$C$209)","v":""},null,{"$f":"IF($C$209=\"\",\"\",H209/$C$209)","v":""},null,{"$f":"IF($C$209=\"\",\"\",J209/$C$209)","v":""},null,{"$f":"IF($C$209=\"\",\"\",L209/$C$209)","v":""},null,{"$f":"IF($C$209=\"\",\"\",N209/$C$209)","v":""},null,{"$f":"IF($C$209=\"\",\"\",P209/$C$209)","v":""},null,{"$f":"IF($C$209=\"\",\"\",R209/$C$209)","v":""},null,{"$f":"IF($C$209=\"\",\"\",T209/$C$209)","v":""},null,{"$f":"IF($C$209=\"\",\"\",V209/$C$209)","v":""},null,{"$f":"IF($C$209=\"\",\"\",X209/$C$209)","v":""},null,{"$f":"IF($C$209=\"\",\"\",Z209/$C$209)","v":""},null,{"$f":"IF($C$209=\"\",\"\",AB209/$C$209)","v":""},null,{"$f":"IF($C$209=\"\",\"\",AD209/$C$209)","v":""},null,{"$f":"IF($C$209=\"\",\"\",AF209/$C$209)","v":""},null,{"$f":"IF($C$209=\"\",\"\",AH209/$C$209)","v":""},null,{"$f":"IF($C$209=\"\",\"\",AJ209/$C$209)","v":""},null,{"$f":"IF($C$209=\"\",\"\",AL209/$C$209)","v":""},null,{"$f":"IF($C$209=\"\",\"\",AN209/$C$209)","v":""},null,{"$f":"IF($C$209=\"\",\"\",AP209/$C$209)","v":""},null,{"$f":"IF($C$209=\"\",\"\",AR209/$C$209)","v":""},null,{"$f":"IF($C$209=\"\",\"\",AT209/$C$209)","v":""},null,{"$f":"IF($C$209=\"\",\"\",AV209/$C$209)","v":""},null,{"$f":"IF($C$209=\"\",\"\",AX209/$C$209)","v":""},null,{"$f":"IF($C$209=\"\",\"\",AZ209/$C$209)","v":""},null,{"$f":"IF($C$209=\"\",\"\",BB209/$C$209)","v":""},null,0]
["    9.1.3",null,null,null,{"$f":"IF($C$210=\"\",\"\",F210/$C$210)","v":""},null,{"$f":"IF($C$210=\"\",\"\",H210/$C$210)","v":""},null,{"$f":"IF($C$210=\"\",\"\",J210/$C$210)","v":""},null,{"$f":"IF($C$210=\"\",\"\",L210/$C$210)","v":""},null,{"$f":"IF($C$210=\"\",\"\",N210/$C$210)","v":""},null,{"$f":"IF($C$210=\"\",\"\",P210/$C$210)","v":""},null,{"$f":"IF($C$210=\"\",\"\",R210/$C$210)","v":""},null,{"$f":"IF($C$210=\"\",\"\",T210/$C$210)","v":""},null,{"$f":"IF($C$210=\"\",\"\",V210/$C$210)","v":""},null,{"$f":"IF($C$210=\"\",\"\",X210/$C$210)","v":""},null,{"$f":"IF($C$210=\"\",\"\",Z210/$C$210)","v":""},null,{"$f":"IF($C$210=\"\",\"\",AB210/$C$210)","v":""},null,{"$f":"IF($C$210=\"\",\"\",AD210/$C$210)","v":""},null,{"$f":"IF($C$210=\"\",\"\",AF210/$C$210)","v":""},null,{"$f":"IF($C$210=\"\",\"\",AH210/$C$210)","v":""},null,{"$f":"IF($C$210=\"\",\"\",AJ210/$C$210)","v":""},null,{"$f":"IF($C$210=\"\",\"\",AL210/$C$210)","v":""},null,{"$f":"IF($C$210=\"\",\"\",AN210/$C$210)","v":""},null,{"$f":"IF($C$210=\"\",\"\",AP210/$C$210)","v":""},null,{"$f":"IF($C$210=\"\",\"\",AR210/$C$210)","v":""},null,{"$f":"IF($C$210=\"\",\"\",AT210/$C$210)","v":""},null,{"$f":"IF($C$210=\"\",\"\",AV210/$C$210)","v":""},null,{"$f":"IF($C$210=\"\",\"\",AX210/$C$210)","v":""},null,{"$f":"IF($C$210=\"\",\"\",AZ210/$C$210)","v":""},null,{"$f":"IF($C$210=\"\",\"\",BB210/$C$210)","v":""},null,0]
["    9.1.4",null,null,null,{"$f":"IF($C$211=\"\",\"\",F211/$C$211)","v":""},null,{"$f":"IF($C$211=\"\",\"\",H211/$C$211)","v":""},null,{"$f":"IF($C$211=\"\",\"\",J211/$C$211)","v":""},null,{"$f":"IF($C$211=\"\",\"\",L211/$C$211)","v":""},null,{"$f":"IF($C$211=\"\",\"\",N211/$C$211)","v":""},null,{"$f":"IF($C$211=\"\",\"\",P211/$C$211)","v":""},null,{"$f":"IF($C$211=\"\",\"\",R211/$C$211)","v":""},null,{"$f":"IF($C$211=\"\",\"\",T211/$C$211)","v":""},null,{"$f":"IF($C$211=\"\",\"\",V211/$C$211)","v":""},null,{"$f":"IF($C$211=\"\",\"\",X211/$C$211)","v":""},null,{"$f":"IF($C$211=\"\",\"\",Z211/$C$211)","v":""},null,{"$f":"IF($C$211=\"\",\"\",AB211/$C$211)","v":""},null,{"$f":"IF($C$211=\"\",\"\",AD211/$C$211)","v":""},null,{"$f":"IF($C$211=\"\",\"\",AF211/$C$211)","v":""},null,{"$f":"IF($C$211=\"\",\"\",AH211/$C$211)","v":""},null,{"$f":"IF($C$211=\"\",\"\",AJ211/$C$211)","v":""},null,{"$f":"IF($C$211=\"\",\"\",AL211/$C$211)","v":""},null,{"$f":"IF($C$211=\"\",\"\",AN211/$C$211)","v":""},null,{"$f":"IF($C$211=\"\",\"\",AP211/$C$211)","v":""},null,{"$f":"IF($C$211=\"\",\"\",AR211/$C$211)","v":""},null,{"$f":"IF($C$211=\"\",\"\",AT211/$C$211)","v":""},null,{"$f":"IF($C$211=\"\",\"\",AV211/$C$211)","v":""},null,{"$f":"IF($C$211=\"\",\"\",AX211/$C$211)","v":""},null,{"$f":"IF($C$211=\"\",\"\",AZ211/$C$211)","v":""},null,{"$f":"IF($C$211=\"\",\"\",BB211/$C$211)","v":""},null,0]
["    9.1.5",null,null,null,{"$f":"IF($C$212=\"\",\"\",F212/$C$212)","v":""},null,{"$f":"IF($C$212=\"\",\"\",H212/$C$212)","v":""},null,{"$f":"IF($C$212=\"\",\"\",J212/$C$212)","v":""},null,{"$f":"IF($C$212=\"\",\"\",L212/$C$212)","v":""},null,{"$f":"IF($C$212=\"\",\"\",N212/$C$212)","v":""},null,{"$f":"IF($C$212=\"\",\"\",P212/$C$212)","v":""},null,{"$f":"IF($C$212=\"\",\"\",R212/$C$212)","v":""},null,{"$f":"IF($C$212=\"\",\"\",T212/$C$212)","v":""},null,{"$f":"IF($C$212=\"\",\"\",V212/$C$212)","v":""},null,{"$f":"IF($C$212=\"\",\"\",X212/$C$212)","v":""},null,{"$f":"IF($C$212=\"\",\"\",Z212/$C$212)","v":""},null,{"$f":"IF($C$212=\"\",\"\",AB212/$C$212)","v":""},null,{"$f":"IF($C$212=\"\",\"\",AD212/$C$212)","v":""},null,{"$f":"IF($C$212=\"\",\"\",AF212/$C$212)","v":""},null,{"$f":"IF($C$212=\"\",\"\",AH212/$C$212)","v":""},null,{"$f":"IF($C$212=\"\",\"\",AJ212/$C$212)","v":""},null,{"$f":"IF($C$212=\"\",\"\",AL212/$C$212)","v":""},null,{"$f":"IF($C$212=\"\",\"\",AN212/$C$212)","v":""},null,{"$f":"IF($C$212=\"\",\"\",AP212/$C$212)","v":""},null,{"$f":"IF($C$212=\"\",\"\",AR212/$C$212)","v":""},null,{"$f":"IF($C$212=\"\",\"\",AT212/$C$212)","v":""},null,{"$f":"IF($C$212=\"\",\"\",AV212/$C$212)","v":""},null,{"$f":"IF($C$212=\"\",\"\",AX212/$C$212)","v":""},null,{"$f":"IF($C$212=\"\",\"\",AZ212/$C$212)","v":""},null,{"$f":"IF($C$212=\"\",\"\",BB212/$C$212)","v":""},null,0]
[null,null,null,null,{"$f":"IF($C$213=\"\",\"\",F213/$C$213)","v":""},null,{"$f":"IF($C$213=\"\",\"\",H213/$C$213)","v":""},null,{"$f":"IF($C$213=\"\",\"\",J213/$C$213)","v":""},null,{"$f":"IF($C$213=\"\",\"\",L213/$C$213)","v":""},null,{"$f":"IF($C$213=\"\",\"\",N213/$C$213)","v":""},null,{"$f":"IF($C$213=\"\",\"\",P213/$C$213)","v":""},null,{"$f":"IF($C$213=\"\",\"\",R213/$C$213)","v":""},null,{"$f":"IF($C$213=\"\",\"\",T213/$C$213)","v":""},null,{"$f":"IF($C$213=\"\",\"\",V213/$C$213)","v":""},null,{"$f":"IF($C$213=\"\",\"\",X213/$C$213)","v":""},null,{"$f":"IF($C$213=\"\",\"\",Z213/$C$213)","v":""},null,{"$f":"IF($C$213=\"\",\"\",AB213/$C$213)","v":""},null,{"$f":"IF($C$213=\"\",\"\",AD213/$C$213)","v":""},null,{"$f":"IF($C$213=\"\",\"\",AF213/$C$213)","v":""},null,{"$f":"IF($C$213=\"\",\"\",AH213/$C$213)","v":""},null,{"$f":"IF($C$213=\"\",\"\",AJ213/$C$213)","v":""},null,{"$f":"IF($C$213=\"\",\"\",AL213/$C$213)","v":""},null,{"$f":"IF($C$213=\"\",\"\",AN213/$C$213)","v":""},null,{"$f":"IF($C$213=\"\",\"\",AP213/$C$213)","v":""},null,{"$f":"IF($C$213=\"\",\"\",AR213/$C$213)","v":""},null,{"$f":"IF($C$213=\"\",\"\",AT213/$C$213)","v":""},null,{"$f":"IF($C$213=\"\",\"\",AV213/$C$213)","v":""},null,{"$f":"IF($C$213=\"\",\"\",AX213/$C$213)","v":""},null,{"$f":"IF($C$213=\"\",\"\",AZ213/$C$213)","v":""},null,{"$f":"IF($C$213=\"\",\"\",BB213/$C$213)","v":""},null,0]
[null,null,null,null,{"$f":"IF($C$214=\"\",\"\",F214/$C$214)","v":""},null,{"$f":"IF($C$214=\"\",\"\",H214/$C$214)","v":""},null,{"$f":"IF($C$214=\"\",\"\",J214/$C$214)","v":""},null,{"$f":"IF($C$214=\"\",\"\",L214/$C$214)","v":""},null,{"$f":"IF($C$214=\"\",\"\",N214/$C$214)","v":""},null,{"$f":"IF($C$214=\"\",\"\",P214/$C$214)","v":""},null,{"$f":"IF($C$214=\"\",\"\",R214/$C$214)","v":""},null,{"$f":"IF($C$214=\"\",\"\",T214/$C$214)","v":""},null,{"$f":"IF($C$214=\"\",\"\",V214/$C$214)","v":""},null,{"$f":"IF($C$214=\"\",\"\",X214/$C$214)","v":""},null,{"$f":"IF($C$214=\"\",\"\",Z214/$C$214)","v":""},null,{"$f":"IF($C$214=\"\",\"\",AB214/$C$214)","v":""},null,{"$f":"IF($C$214=\"\",\"\",AD214/$C$214)","v":""},null,{"$f":"IF($C$214=\"\",\"\",AF214/$C$214)","v":""},null,{"$f":"IF($C$214=\"\",\"\",AH214/$C$214)","v":""},null,{"$f":"IF($C$214=\"\",\"\",AJ214/$C$214)","v":""},null,{"$f":"IF($C$214=\"\",\"\",AL214/$C$214)","v":""},null,{"$f":"IF($C$214=\"\",\"\",AN214/$C$214)","v":""},null,{"$f":"IF($C$214=\"\",\"\",AP214/$C$214)","v":""},null,{"$f":"IF($C$214=\"\",\"\",AR214/$C$214)","v":""},null,{"$f":"IF($C$214=\"\",\"\",AT214/$C$214)","v":""},null,{"$f":"IF($C$214=\"\",\"\",AV214/$C$214)","v":""},null,{"$f":"IF($C$214=\"\",\"\",AX214/$C$214)","v":""},null,{"$f":"IF($C$214=\"\",\"\",AZ214/$C$214)","v":""},null,{"$f":"IF($C$214=\"\",\"\",BB214/$C$214)","v":""},null,0]
[null,null,null,null,{"$f":"IF($C$215=\"\",\"\",F215/$C$215)","v":""},null,{"$f":"IF($C$215=\"\",\"\",H215/$C$215)","v":""},null,{"$f":"IF($C$215=\"\",\"\",J215/$C$215)","v":""},null,{"$f":"IF($C$215=\"\",\"\",L215/$C$215)","v":""},null,{"$f":"IF($C$215=\"\",\"\",N215/$C$215)","v":""},null,{"$f":"IF($C$215=\"\",\"\",P215/$C$215)","v":""},null,{"$f":"IF($C$215=\"\",\"\",R215/$C$215)","v":""},null,{"$f":"IF($C$215=\"\",\"\",T215/$C$215)","v":""},null,{"$f":"IF($C$215=\"\",\"\",V215/$C$215)","v":""},null,{"$f":"IF($C$215=\"\",\"\",X215/$C$215)","v":""},null,{"$f":"IF($C$215=\"\",\"\",Z215/$C$215)","v":""},null,{"$f":"IF($C$215=\"\",\"\",AB215/$C$215)","v":""},null,{"$f":"IF($C$215=\"\",\"\",AD215/$C$215)","v":""},null,{"$f":"IF($C$215=\"\",\"\",AF215/$C$215)","v":""},null,{"$f":"IF($C$215=\"\",\"\",AH215/$C$215)","v":""},null,{"$f":"IF($C$215=\"\",\"\",AJ215/$C$215)","v":""},null,{"$f":"IF($C$215=\"\",\"\",AL215/$C$215)","v":""},null,{"$f":"IF($C$215=\"\",\"\",AN215/$C$215)","v":""},null,{"$f":"IF($C$215=\"\",\"\",AP215/$C$215)","v":""},null,{"$f":"IF($C$215=\"\",\"\",AR215/$C$215)","v":""},null,{"$f":"IF($C$215=\"\",\"\",AT215/$C$215)","v":""},null,{"$f":"IF($C$215=\"\",\"\",AV215/$C$215)","v":""},null,{"$f":"IF($C$215=\"\",\"\",AX215/$C$215)","v":""},null,{"$f":"IF($C$215=\"\",\"\",AZ215/$C$215)","v":""},null,{"$f":"IF($C$215=\"\",\"\",BB215/$C$215)","v":""},null,0]
[null,null,null,null,{"$f":"IF($C$216=\"\",\"\",F216/$C$216)","v":""},null,{"$f":"IF($C$216=\"\",\"\",H216/$C$216)","v":""},null,{"$f":"IF($C$216=\"\",\"\",J216/$C$216)","v":""},null,{"$f":"IF($C$216=\"\",\"\",L216/$C$216)","v":""},null,{"$f":"IF($C$216=\"\",\"\",N216/$C$216)","v":""},null,{"$f":"IF($C$216=\"\",\"\",P216/$C$216)","v":""},null,{"$f":"IF($C$216=\"\",\"\",R216/$C$216)","v":""},null,{"$f":"IF($C$216=\"\",\"\",T216/$C$216)","v":""},null,{"$f":"IF($C$216=\"\",\"\",V216/$C$216)","v":""},null,{"$f":"IF($C$216=\"\",\"\",X216/$C$216)","v":""},null,{"$f":"IF($C$216=\"\",\"\",Z216/$C$216)","v":""},null,{"$f":"IF($C$216=\"\",\"\",AB216/$C$216)","v":""},null,{"$f":"IF($C$216=\"\",\"\",AD216/$C$216)","v":""},null,{"$f":"IF($C$216=\"\",\"\",AF216/$C$216)","v":""},null,{"$f":"IF($C$216=\"\",\"\",AH216/$C$216)","v":""},null,{"$f":"IF($C$216=\"\",\"\",AJ216/$C$216)","v":""},null,{"$f":"IF($C$216=\"\",\"\",AL216/$C$216)","v":""},null,{"$f":"IF($C$216=\"\",\"\",AN216/$C$216)","v":""},null,{"$f":"IF($C$216=\"\",\"\",AP216/$C$216)","v":""},null,{"$f":"IF($C$216=\"\",\"\",AR216/$C$216)","v":""},null,{"$f":"IF($C$216=\"\",\"\",AT216/$C$216)","v":""},null,{"$f":"IF($C$216=\"\",\"\",AV216/$C$216)","v":""},null,{"$f":"IF($C$216=\"\",\"\",AX216/$C$216)","v":""},null,{"$f":"IF($C$216=\"\",\"\",AZ216/$C$216)","v":""},null,{"$f":"IF($C$216=\"\",\"\",BB216/$C$216)","v":""},null,0]
[null,null,null,null,{"$f":"IF($C$217=\"\",\"\",F217/$C$217)","v":""},null,{"$f":"IF($C$217=\"\",\"\",H217/$C$217)","v":""},null,{"$f":"IF($C$217=\"\",\"\",J217/$C$217)","v":""},null,{"$f":"IF($C$217=\"\",\"\",L217/$C$217)","v":""},null,{"$f":"IF($C$217=\"\",\"\",N217/$C$217)","v":""},null,{"$f":"IF($C$217=\"\",\"\",P217/$C$217)","v":""},null,{"$f":"IF($C$217=\"\",\"\",R217/$C$217)","v":""},null,{"$f":"IF($C$217=\"\",\"\",T217/$C$217)","v":""},null,{"$f":"IF($C$217=\"\",\"\",V217/$C$217)","v":""},null,{"$f":"IF($C$217=\"\",\"\",X217/$C$217)","v":""},null,{"$f":"IF($C$217=\"\",\"\",Z217/$C$217)","v":""},null,{"$f":"IF($C$217=\"\",\"\",AB217/$C$217)","v":""},null,{"$f":"IF($C$217=\"\",\"\",AD217/$C$217)","v":""},null,{"$f":"IF($C$217=\"\",\"\",AF217/$C$217)","v":""},null,{"$f":"IF($C$217=\"\",\"\",AH217/$C$217)","v":""},null,{"$f":"IF($C$217=\"\",\"\",AJ217/$C$217)","v":""},null,{"$f":"IF($C$217=\"\",\"\",AL217/$C$217)","v":""},null,{"$f":"IF($C$217=\"\",\"\",AN217/$C$217)","v":""},null,{"$f":"IF($C$217=\"\",\"\",AP217/$C$217)","v":""},null,{"$f":"IF($C$217=\"\",\"\",AR217/$C$217)","v":""},null,{"$f":"IF($C$217=\"\",\"\",AT217/$C$217)","v":""},null,{"$f":"IF($C$217=\"\",\"\",AV217/$C$217)","v":""},null,{"$f":"IF($C$217=\"\",\"\",AX217/$C$217)","v":""},null,{"$f":"IF($C$217=\"\",\"\",AZ217/$C$217)","v":""},null,{"$f":"IF($C$217=\"\",\"\",BB217/$C$217)","v":""},null,0]
[null,null,null,null,{"$f":"IF($C$218=\"\",\"\",F218/$C$218)","v":""},null,{"$f":"IF($C$218=\"\",\"\",H218/$C$218)","v":""},null,{"$f":"IF($C$218=\"\",\"\",J218/$C$218)","v":""},null,{"$f":"IF($C$218=\"\",\"\",L218/$C$218)","v":""},null,{"$f":"IF($C$218=\"\",\"\",N218/$C$218)","v":""},null,{"$f":"IF($C$218=\"\",\"\",P218/$C$218)","v":""},null,{"$f":"IF($C$218=\"\",\"\",R218/$C$218)","v":""},null,{"$f":"IF($C$218=\"\",\"\",T218/$C$218)","v":""},null,{"$f":"IF($C$218=\"\",\"\",V218/$C$218)","v":""},null,{"$f":"IF($C$218=\"\",\"\",X218/$C$218)","v":""},null,{"$f":"IF($C$218=\"\",\"\",Z218/$C$218)","v":""},null,{"$f":"IF($C$218=\"\",\"\",AB218/$C$218)","v":""},null,{"$f":"IF($C$218=\"\",\"\",AD218/$C$218)","v":""},null,{"$f":"IF($C$218=\"\",\"\",AF218/$C$218)","v":""},null,{"$f":"IF($C$218=\"\",\"\",AH218/$C$218)","v":""},null,{"$f":"IF($C$218=\"\",\"\",AJ218/$C$218)","v":""},null,{"$f":"IF($C$218=\"\",\"\",AL218/$C$218)","v":""},null,{"$f":"IF($C$218=\"\",\"\",AN218/$C$218)","v":""},null,{"$f":"IF($C$218=\"\",\"\",AP218/$C$218)","v":""},null,{"$f":"IF($C$218=\"\",\"\",AR218/$C$218)","v":""},null,{"$f":"IF($C$218=\"\",\"\",AT218/$C$218)","v":""},null,{"$f":"IF($C$218=\"\",\"\",AV218/$C$218)","v":""},null,{"$f":"IF($C$218=\"\",\"\",AX218/$C$218)","v":""},null,{"$f":"IF($C$218=\"\",\"\",AZ218/$C$218)","v":""},null,{"$f":"IF($C$218=\"\",\"\",BB218/$C$218)","v":""},null,0]
[null,null,null,null,{"$f":"IF($C$219=\"\",\"\",F219/$C$219)","v":""},null,{"$f":"IF($C$219=\"\",\"\",H219/$C$219)","v":""},null,{"$f":"IF($C$219=\"\",\"\",J219/$C$219)","v":""},null,{"$f":"IF($C$219=\"\",\"\",L219/$C$219)","v":""},null,{"$f":"IF($C$219=\"\",\"\",N219/$C$219)","v":""},null,{"$f":"IF($C$219=\"\",\"\",P219/$C$219)","v":""},null,{"$f":"IF($C$219=\"\",\"\",R219/$C$219)","v":""},null,{"$f":"IF($C$219=\"\",\"\",T219/$C$219)","v":""},null,{"$f":"IF($C$219=\"\",\"\",V219/$C$219)","v":""},null,{"$f":"IF($C$219=\"\",\"\",X219/$C$219)","v":""},null,{"$f":"IF($C$219=\"\",\"\",Z219/$C$219)","v":""},null,{"$f":"IF($C$219=\"\",\"\",AB219/$C$219)","v":""},null,{"$f":"IF($C$219=\"\",\"\",AD219/$C$219)","v":""},null,{"$f":"IF($C$219=\"\",\"\",AF219/$C$219)","v":""},null,{"$f":"IF($C$219=\"\",\"\",AH219/$C$219)","v":""},null,{"$f":"IF($C$219=\"\",\"\",AJ219/$C$219)","v":""},null,{"$f":"IF($C$219=\"\",\"\",AL219/$C$219)","v":""},null,{"$f":"IF($C$219=\"\",\"\",AN219/$C$219)","v":""},null,{"$f":"IF($C$219=\"\",\"\",AP219/$C$219)","v":""},null,{"$f":"IF($C$219=\"\",\"\",AR219/$C$219)","v":""},null,{"$f":"IF($C$219=\"\",\"\",AT219/$C$219)","v":""},null,{"$f":"IF($C$219=\"\",\"\",AV219/$C$219)","v":""},null,{"$f":"IF($C$219=\"\",\"\",AX219/$C$219)","v":""},null,{"$f":"IF($C$219=\"\",\"\",AZ219/$C$219)","v":""},null,{"$f":"IF($C$219=\"\",\"\",BB219/$C$219)","v":""},null,{"$f":"SUM(BB219,AZ219,AX219,AV219,AT219,AR219,AP219,AN219,AL219,AJ219,AH219,AF219,AD219,AB219,Z219,X219,V219,T219,R219,P219,N219,L219,J219,H219,F219)","v":0}]
["TOTAL HOURS",null,null,null,null,{"$f":"SUM(F207:F219)","v":0},null,{"$f":"SUM(H207:H219)","v":0},null,{"$f":"SUM(J207:J219)","v":0},null,{"$f":"SUM(L207:L219)","v":0},null,{"$f":"SUM(N207:N219)","v":0},null,{"$f":"SUM(P207:P219)","v":0},null,{"$f":"SUM(R207:R219)","v":0},null,{"$f":"SUM(T207:T219)","v":0},null,{"$f":"SUM(V207:V219)","v":0},null,{"$f":"SUM(X207:X219)","v":0},null,{"$f":"SUM(Z207:Z219)","v":0},null,{"$f":"SUM(AB207:AB219)","v":0},null,{"$f":"SUM(AD207:AD219)","v":0},null,{"$f":"SUM(AF207:AF219)","v":0},null,{"$f":"SUM(AH207:AH219)","v":0},null,{"$f":"SUM(AJ207:AJ219)","v":0},null,{"$f":"SUM(AL207:AL219)","v":0},null,{"$f":"SUM(AN207:AN219)","v":0},null,{"$f":"SUM(AP207:AP219)","v":0},null,{"$f":"SUM(AR207:AR219)","v":0},null,{"$f":"SUM(AT207:AT219)","v":0},null,{"$f":"SUM(AV207:AV219)","v":0},null,{"$f":"SUM(AX207:AX219)","v":0},null,{"$f":"SUM(AZ207:AZ219)","v":0},null,0,{"$f":"SUM(E220:BB220)","v":0}]
["TOTAL WORKDAYS",null,null,null,null,{"$f":"F220/8","v":0},null,{"$f":"H220/8","v":0},null,{"$f":"J220/8","v":0},null,{"$f":"L220/8","v":0},null,{"$f":"N220/8","v":0},null,{"$f":"P220/8","v":0},null,{"$f":"R220/8","v":0},null,{"$f":"T220/8","v":0},null,{"$f":"V220/8","v":0},null,{"$f":"X220/8","v":0},null,{"$f":"Z220/8","v":0},null,{"$f":"AB220/8","v":0},null,{"$f":"AD220/8","v":0},null,0,null,{"$f":"AH220/8","v":0},null,0,null,{"$f":"AL220/8","v":0},null,0,null,{"$f":"AP220/8","v":0},null,0,null,{"$f":"AT220/8","v":0},null,{"$f":"AV220/8","v":0},null,{"$f":"AX220/8","v":0},null,{"$f":"AZ220/8","v":0},null,0,{"$f":"SUM(E221:BB221)","v":0}]
["TOTAL RAW LABOR",null,null,null,null,{"$f":"$E$13*F220","v":0},null,{"$f":"$G$13*H220","v":0},null,{"$f":"$I$13*J220","v":0},null,{"$f":"$K$13*L220","v":0},null,{"$f":"$M$13*N220","v":0},null,{"$f":"$O$13*P220","v":0},null,{"$f":"$Q$13*R220","v":0},null,{"$f":"$S$13*T220","v":0},null,{"$f":"$U$13*V220","v":0},null,{"$f":"$W$13*X220","v":0},null,{"$f":"$Y$13*Z220","v":0},null,{"$f":"$AA$13*AB220","v":0},null,{"$f":"$AC$13*AD220","v":0},null,{"$f":"$AC$13*AF220","v":0},null,{"$f":"$AC$13*AH220","v":0},null,{"$f":"$AC$13*AJ220","v":0},null,{"$f":"$AC$13*AL220","v":0},null,{"$f":"$AC$13*AN220","v":0},null,{"$f":"$AC$13*AP220","v":0},null,{"$f":"$AC$13*AR220","v":0},null,{"$f":"$AC$13*AT220","v":0},null,{"$f":"$AC$13*AV220","v":0},null,{"$f":"$AC$13*AX220","v":0},null,{"$f":"$AC$13*AZ220","v":0},null,0,{"$f":"SUM(E222:BB222)","v":0}]
["Task 10.0     ","UTILITY MAKE-READY PLANS"]
[10.1,"Utility Partnering Meeting",null,null,{"$f":"IF($C$224=\"\",\"\",F224/$C$224)","v":""},null,{"$f":"IF($C$224=\"\",\"\",H224/$C$224)","v":""},null,{"$f":"IF($C$224=\"\",\"\",J224/$C$224)","v":""},null,{"$f":"IF($C$224=\"\",\"\",L224/$C$224)","v":""},null,{"$f":"IF($C$224=\"\",\"\",N224/$C$224)","v":""},null,{"$f":"IF($C$224=\"\",\"\",P224/$C$224)","v":""},null,{"$f":"IF($C$224=\"\",\"\",R224/$C$224)","v":""},null,{"$f":"IF($C$224=\"\",\"\",T224/$C$224)","v":""},null,{"$f":"IF($C$224=\"\",\"\",V224/$C$224)","v":""},null,{"$f":"IF($C$224=\"\",\"\",X224/$C$224)","v":""},null,{"$f":"IF($C$224=\"\",\"\",Z224/$C$224)","v":""},null,{"$f":"IF($C$224=\"\",\"\",AB224/$C$224)","v":""},null,{"$f":"IF($C$224=\"\",\"\",AD224/$C$224)","v":""},null,{"$f":"IF($C$224=\"\",\"\",AF224/$C$224)","v":""},null,{"$f":"IF($C$224=\"\",\"\",AH224/$C$224)","v":""},null,{"$f":"IF($C$224=\"\",\"\",AJ224/$C$224)","v":""},null,{"$f":"IF($C$224=\"\",\"\",AL224/$C$224)","v":""},null,{"$f":"IF($C$224=\"\",\"\",AN224/$C$224)","v":""},null,{"$f":"IF($C$224=\"\",\"\",AP224/$C$224)","v":""},null,{"$f":"IF($C$224=\"\",\"\",AR224/$C$224)","v":""},null,{"$f":"IF($C$224=\"\",\"\",AT224/$C$224)","v":""},null,{"$f":"IF($C$224=\"\",\"\",AV224/$C$224)","v":""},null,{"$f":"IF($C$224=\"\",\"\",AX224/$C$224)","v":""},null,{"$f":"IF($C$224=\"\",\"\",AZ224/$C$224)","v":""},null,{"$f":"IF($C$224=\"\",\"\",BB224/$C$224)","v":""},null,{"$f":"SUM(BB224,AZ224,AX224,AV224,AT224,AR224,AP224,AN224,AL224,AJ224,AH224,AF224,AD224,AB224,Z224,X224,V224,T224,R224,P224,N224,L224,J224,H224,F224)","v":0}]
[10.199999999999999,"Acquire & Format Area-Wide Base-Mapping",null,null,{"$f":"IF($C$225=\"\",\"\",F225/$C$225)","v":""},null,{"$f":"IF($C$225=\"\",\"\",H225/$C$225)","v":""},null,{"$f":"IF($C$225=\"\",\"\",J225/$C$225)","v":""},null,{"$f":"IF($C$225=\"\",\"\",L225/$C$225)","v":""},null,{"$f":"IF($C$225=\"\",\"\",N225/$C$225)","v":""},null,{"$f":"IF($C$225=\"\",\"\",P225/$C$225)","v":""},null,{"$f":"IF($C$225=\"\",\"\",R225/$C$225)","v":""},null,{"$f":"IF($C$225=\"\",\"\",T225/$C$225)","v":""},null,{"$f":"IF($C$225=\"\",\"\",V225/$C$225)","v":""},null,{"$f":"IF($C$225=\"\",\"\",X225/$C$225)","v":""},null,{"$f":"IF($C$225=\"\",\"\",Z225/$C$225)","v":""},null,{"$f":"IF($C$225=\"\",\"\",AB225/$C$225)","v":""},null,{"$f":"IF($C$225=\"\",\"\",AD225/$C$225)","v":""},null,{"$f":"IF($C$225=\"\",\"\",AF225/$C$225)","v":""},null,{"$f":"IF($C$225=\"\",\"\",AH225/$C$225)","v":""},null,{"$f":"IF($C$225=\"\",\"\",AJ225/$C$225)","v":""},null,{"$f":"IF($C$225=\"\",\"\",AL225/$C$225)","v":""},null,{"$f":"IF($C$225=\"\",\"\",AN225/$C$225)","v":""},null,{"$f":"IF($C$225=\"\",\"\",AP225/$C$225)","v":""},null,{"$f":"IF($C$225=\"\",\"\",AR225/$C$225)","v":""},null,{"$f":"IF($C$225=\"\",\"\",AT225/$C$225)","v":""},null,{"$f":"IF($C$225=\"\",\"\",AV225/$C$225)","v":""},null,{"$f":"IF($C$225=\"\",\"\",AX225/$C$225)","v":""},null,{"$f":"IF($C$225=\"\",\"\",AZ225/$C$225)","v":""},null,{"$f":"IF($C$225=\"\",\"\",BB225/$C$225)","v":""},null,0]
[10.3,"Preliminary Survey of Candidate Cable Routes ",null,null,{"$f":"IF($C$226=\"\",\"\",F226/$C$226)","v":""},null,{"$f":"IF($C$226=\"\",\"\",H226/$C$226)","v":""},null,{"$f":"IF($C$226=\"\",\"\",J226/$C$226)","v":""},null,{"$f":"IF($C$226=\"\",\"\",L226/$C$226)","v":""},null,{"$f":"IF($C$226=\"\",\"\",N226/$C$226)","v":""},null,{"$f":"IF($C$226=\"\",\"\",P226/$C$226)","v":""},null,{"$f":"IF($C$226=\"\",\"\",R226/$C$226)","v":""},null,{"$f":"IF($C$226=\"\",\"\",T226/$C$226)","v":""},null,{"$f":"IF($C$226=\"\",\"\",V226/$C$226)","v":""},null,{"$f":"IF($C$226=\"\",\"\",X226/$C$226)","v":""},null,{"$f":"IF($C$226=\"\",\"\",Z226/$C$226)","v":""},null,{"$f":"IF($C$226=\"\",\"\",AB226/$C$226)","v":""},null,{"$f":"IF($C$226=\"\",\"\",AD226/$C$226)","v":""},null,{"$f":"IF($C$226=\"\",\"\",AF226/$C$226)","v":""},null,{"$f":"IF($C$226=\"\",\"\",AH226/$C$226)","v":""},null,{"$f":"IF($C$226=\"\",\"\",AJ226/$C$226)","v":""},null,{"$f":"IF($C$226=\"\",\"\",AL226/$C$226)","v":""},null,{"$f":"IF($C$226=\"\",\"\",AN226/$C$226)","v":""},null,{"$f":"IF($C$226=\"\",\"\",AP226/$C$226)","v":""},null,{"$f":"IF($C$226=\"\",\"\",AR226/$C$226)","v":""},null,{"$f":"IF($C$226=\"\",\"\",AT226/$C$226)","v":""},null,{"$f":"IF($C$226=\"\",\"\",AV226/$C$226)","v":""},null,{"$f":"IF($C$226=\"\",\"\",AX226/$C$226)","v":""},null,{"$f":"IF($C$226=\"\",\"\",AZ226/$C$226)","v":""},null,{"$f":"IF($C$226=\"\",\"\",BB226/$C$226)","v":""},null,0]
[10.4,"Develop Preliminary Communications Routing Plan",null,null,{"$f":"IF($C$227=\"\",\"\",F227/$C$227)","v":""},null,{"$f":"IF($C$227=\"\",\"\",H227/$C$227)","v":""},null,{"$f":"IF($C$227=\"\",\"\",J227/$C$227)","v":""},null,{"$f":"IF($C$227=\"\",\"\",L227/$C$227)","v":""},null,{"$f":"IF($C$227=\"\",\"\",N227/$C$227)","v":""},null,{"$f":"IF($C$227=\"\",\"\",P227/$C$227)","v":""},null,{"$f":"IF($C$227=\"\",\"\",R227/$C$227)","v":""},null,{"$f":"IF($C$227=\"\",\"\",T227/$C$227)","v":""},null,{"$f":"IF($C$227=\"\",\"\",V227/$C$227)","v":""},null,{"$f":"IF($C$227=\"\",\"\",X227/$C$227)","v":""},null,{"$f":"IF($C$227=\"\",\"\",Z227/$C$227)","v":""},null,{"$f":"IF($C$227=\"\",\"\",AB227/$C$227)","v":""},null,{"$f":"IF($C$227=\"\",\"\",AD227/$C$227)","v":""},null,{"$f":"IF($C$227=\"\",\"\",AF227/$C$227)","v":""},null,{"$f":"IF($C$227=\"\",\"\",AH227/$C$227)","v":""},null,{"$f":"IF($C$227=\"\",\"\",AJ227/$C$227)","v":""},null,{"$f":"IF($C$227=\"\",\"\",AL227/$C$227)","v":""},null,{"$f":"IF($C$227=\"\",\"\",AN227/$C$227)","v":""},null,{"$f":"IF($C$227=\"\",\"\",AP227/$C$227)","v":""},null,{"$f":"IF($C$227=\"\",\"\",AR227/$C$227)","v":""},null,{"$f":"IF($C$227=\"\",\"\",AT227/$C$227)","v":""},null,{"$f":"IF($C$227=\"\",\"\",AV227/$C$227)","v":""},null,{"$f":"IF($C$227=\"\",\"\",AX227/$C$227)","v":""},null,{"$f":"IF($C$227=\"\",\"\",AZ227/$C$227)","v":""},null,{"$f":"IF($C$227=\"\",\"\",BB227/$C$227)","v":""},null,0]
[10.5,"Inventory of Existing Underground Conduits",null,null,{"$f":"IF($C$228=\"\",\"\",F228/$C$228)","v":""},null,{"$f":"IF($C$228=\"\",\"\",H228/$C$228)","v":""},null,{"$f":"IF($C$228=\"\",\"\",J228/$C$228)","v":""},null,{"$f":"IF($C$228=\"\",\"\",L228/$C$228)","v":""},null,{"$f":"IF($C$228=\"\",\"\",N228/$C$228)","v":""},null,{"$f":"IF($C$228=\"\",\"\",P228/$C$228)","v":""},null,{"$f":"IF($C$228=\"\",\"\",R228/$C$228)","v":""},null,{"$f":"IF($C$228=\"\",\"\",T228/$C$228)","v":""},null,{"$f":"IF($C$228=\"\",\"\",V228/$C$228)","v":""},null,{"$f":"IF($C$228=\"\",\"\",X228/$C$228)","v":""},null,{"$f":"IF($C$228=\"\",\"\",Z228/$C$228)","v":""},null,{"$f":"IF($C$228=\"\",\"\",AB228/$C$228)","v":""},null,{"$f":"IF($C$228=\"\",\"\",AD228/$C$228)","v":""},null,{"$f":"IF($C$228=\"\",\"\",AF228/$C$228)","v":""},null,{"$f":"IF($C$228=\"\",\"\",AH228/$C$228)","v":""},null,{"$f":"IF($C$228=\"\",\"\",AJ228/$C$228)","v":""},null,{"$f":"IF($C$228=\"\",\"\",AL228/$C$228)","v":""},null,{"$f":"IF($C$228=\"\",\"\",AN228/$C$228)","v":""},null,{"$f":"IF($C$228=\"\",\"\",AP228/$C$228)","v":""},null,{"$f":"IF($C$228=\"\",\"\",AR228/$C$228)","v":""},null,{"$f":"IF($C$228=\"\",\"\",AT228/$C$228)","v":""},null,{"$f":"IF($C$228=\"\",\"\",AV228/$C$228)","v":""},null,{"$f":"IF($C$228=\"\",\"\",AX228/$C$228)","v":""},null,{"$f":"IF($C$228=\"\",\"\",AZ228/$C$228)","v":""},null,{"$f":"IF($C$228=\"\",\"\",BB228/$C$228)","v":""},null,0]
[10.6,"Create Cable Routing Base Sheets",null,null,{"$f":"IF($C$229=\"\",\"\",F229/$C$229)","v":""},null,{"$f":"IF($C$229=\"\",\"\",H229/$C$229)","v":""},null,{"$f":"IF($C$229=\"\",\"\",J229/$C$229)","v":""},null,{"$f":"IF($C$229=\"\",\"\",L229/$C$229)","v":""},null,{"$f":"IF($C$229=\"\",\"\",N229/$C$229)","v":""},null,{"$f":"IF($C$229=\"\",\"\",P229/$C$229)","v":""},null,{"$f":"IF($C$229=\"\",\"\",R229/$C$229)","v":""},null,{"$f":"IF($C$229=\"\",\"\",T229/$C$229)","v":""},null,{"$f":"IF($C$229=\"\",\"\",V229/$C$229)","v":""},null,{"$f":"IF($C$229=\"\",\"\",X229/$C$229)","v":""},null,{"$f":"IF($C$229=\"\",\"\",Z229/$C$229)","v":""},null,{"$f":"IF($C$229=\"\",\"\",AB229/$C$229)","v":""},null,{"$f":"IF($C$229=\"\",\"\",AD229/$C$229)","v":""},null,{"$f":"IF($C$229=\"\",\"\",AF229/$C$229)","v":""},null,{"$f":"IF($C$229=\"\",\"\",AH229/$C$229)","v":""},null,{"$f":"IF($C$229=\"\",\"\",AJ229/$C$229)","v":""},null,{"$f":"IF($C$229=\"\",\"\",AL229/$C$229)","v":""},null,{"$f":"IF($C$229=\"\",\"\",AN229/$C$229)","v":""},null,{"$f":"IF($C$229=\"\",\"\",AP229/$C$229)","v":""},null,{"$f":"IF($C$229=\"\",\"\",AR229/$C$229)","v":""},null,{"$f":"IF($C$229=\"\",\"\",AT229/$C$229)","v":""},null,{"$f":"IF($C$229=\"\",\"\",AV229/$C$229)","v":""},null,{"$f":"IF($C$229=\"\",\"\",AX229/$C$229)","v":""},null,{"$f":"IF($C$229=\"\",\"\",AZ229/$C$229)","v":""},null,{"$f":"IF($C$229=\"\",\"\",BB229/$C$229)","v":""},null,0]
[10.7,"Create Master Cable Routing Sheet Key",null,null,{"$f":"IF($C$230=\"\",\"\",F230/$C$230)","v":""},null,{"$f":"IF($C$230=\"\",\"\",H230/$C$230)","v":""},null,{"$f":"IF($C$230=\"\",\"\",J230/$C$230)","v":""},null,{"$f":"IF($C$230=\"\",\"\",L230/$C$230)","v":""},null,{"$f":"IF($C$230=\"\",\"\",N230/$C$230)","v":""},null,{"$f":"IF($C$230=\"\",\"\",P230/$C$230)","v":""},null,{"$f":"IF($C$230=\"\",\"\",R230/$C$230)","v":""},null,{"$f":"IF($C$230=\"\",\"\",T230/$C$230)","v":""},null,{"$f":"IF($C$230=\"\",\"\",V230/$C$230)","v":""},null,{"$f":"IF($C$230=\"\",\"\",X230/$C$230)","v":""},null,{"$f":"IF($C$230=\"\",\"\",Z230/$C$230)","v":""},null,{"$f":"IF($C$230=\"\",\"\",AB230/$C$230)","v":""},null,{"$f":"IF($C$230=\"\",\"\",AD230/$C$230)","v":""},null,{"$f":"IF($C$230=\"\",\"\",AF230/$C$230)","v":""},null,{"$f":"IF($C$230=\"\",\"\",AH230/$C$230)","v":""},null,{"$f":"IF($C$230=\"\",\"\",AJ230/$C$230)","v":""},null,{"$f":"IF($C$230=\"\",\"\",AL230/$C$230)","v":""},null,{"$f":"IF($C$230=\"\",\"\",AN230/$C$230)","v":""},null,{"$f":"IF($C$230=\"\",\"\",AP230/$C$230)","v":""},null,{"$f":"IF($C$230=\"\",\"\",AR230/$C$230)","v":""},null,{"$f":"IF($C$230=\"\",\"\",AT230/$C$230)","v":""},null,{"$f":"IF($C$230=\"\",\"\",AV230/$C$230)","v":""},null,{"$f":"IF($C$230=\"\",\"\",AX230/$C$230)","v":""},null,{"$f":"IF($C$230=\"\",\"\",AZ230/$C$230)","v":""},null,{"$f":"IF($C$230=\"\",\"\",BB230/$C$230)","v":""},null,0]
[10.8,"Field Survey Aerial Routes",null,null,{"$f":"IF($C$231=\"\",\"\",F231/$C$231)","v":""},null,{"$f":"IF($C$231=\"\",\"\",H231/$C$231)","v":""},null,{"$f":"IF($C$231=\"\",\"\",J231/$C$231)","v":""},null,{"$f":"IF($C$231=\"\",\"\",L231/$C$231)","v":""},null,{"$f":"IF($C$231=\"\",\"\",N231/$C$231)","v":""},null,{"$f":"IF($C$231=\"\",\"\",P231/$C$231)","v":""},null,{"$f":"IF($C$231=\"\",\"\",R231/$C$231)","v":""},null,{"$f":"IF($C$231=\"\",\"\",T231/$C$231)","v":""},null,{"$f":"IF($C$231=\"\",\"\",V231/$C$231)","v":""},null,{"$f":"IF($C$231=\"\",\"\",X231/$C$231)","v":""},null,{"$f":"IF($C$231=\"\",\"\",Z231/$C$231)","v":""},null,{"$f":"IF($C$231=\"\",\"\",AB231/$C$231)","v":""},null,{"$f":"IF($C$231=\"\",\"\",AD231/$C$231)","v":""},null,{"$f":"IF($C$231=\"\",\"\",AF231/$C$231)","v":""},null,{"$f":"IF($C$231=\"\",\"\",AH231/$C$231)","v":""},null,{"$f":"IF($C$231=\"\",\"\",AJ231/$C$231)","v":""},null,{"$f":"IF($C$231=\"\",\"\",AL231/$C$231)","v":""},null,{"$f":"IF($C$231=\"\",\"\",AN231/$C$231)","v":""},null,{"$f":"IF($C$231=\"\",\"\",AP231/$C$231)","v":""},null,{"$f":"IF($C$231=\"\",\"\",AR231/$C$231)","v":""},null,{"$f":"IF($C$231=\"\",\"\",AT231/$C$231)","v":""},null,{"$f":"IF($C$231=\"\",\"\",AV231/$C$231)","v":""},null,{"$f":"IF($C$231=\"\",\"\",AX231/$C$231)","v":""},null,{"$f":"IF($C$231=\"\",\"\",AZ231/$C$231)","v":""},null,{"$f":"IF($C$231=\"\",\"\",BB231/$C$231)","v":""},null,0]
[10.9,"Preliminary Utility Make-Ready Plans",null,null,{"$f":"IF($C$232=\"\",\"\",F232/$C$232)","v":""},null,{"$f":"IF($C$232=\"\",\"\",H232/$C$232)","v":""},null,{"$f":"IF($C$232=\"\",\"\",J232/$C$232)","v":""},null,{"$f":"IF($C$232=\"\",\"\",L232/$C$232)","v":""},null,{"$f":"IF($C$232=\"\",\"\",N232/$C$232)","v":""},null,{"$f":"IF($C$232=\"\",\"\",P232/$C$232)","v":""},null,{"$f":"IF($C$232=\"\",\"\",R232/$C$232)","v":""},null,{"$f":"IF($C$232=\"\",\"\",T232/$C$232)","v":""},null,{"$f":"IF($C$232=\"\",\"\",V232/$C$232)","v":""},null,{"$f":"IF($C$232=\"\",\"\",X232/$C$232)","v":""},null,{"$f":"IF($C$232=\"\",\"\",Z232/$C$232)","v":""},null,{"$f":"IF($C$232=\"\",\"\",AB232/$C$232)","v":""},null,{"$f":"IF($C$232=\"\",\"\",AD232/$C$232)","v":""},null,{"$f":"IF($C$232=\"\",\"\",AF232/$C$232)","v":""},null,{"$f":"IF($C$232=\"\",\"\",AH232/$C$232)","v":""},null,{"$f":"IF($C$232=\"\",\"\",AJ232/$C$232)","v":""},null,{"$f":"IF($C$232=\"\",\"\",AL232/$C$232)","v":""},null,{"$f":"IF($C$232=\"\",\"\",AN232/$C$232)","v":""},null,{"$f":"IF($C$232=\"\",\"\",AP232/$C$232)","v":""},null,{"$f":"IF($C$232=\"\",\"\",AR232/$C$232)","v":""},null,{"$f":"IF($C$232=\"\",\"\",AT232/$C$232)","v":""},null,{"$f":"IF($C$232=\"\",\"\",AV232/$C$232)","v":""},null,{"$f":"IF($C$232=\"\",\"\",AX232/$C$232)","v":""},null,{"$f":"IF($C$232=\"\",\"\",AZ232/$C$232)","v":""},null,{"$f":"IF($C$232=\"\",\"\",BB232/$C$232)","v":""},null,0]
["10.10","Make-Ready Walk-Throughs"]
["    10.10.1","    Coordinate and Schedule Utility Make-Ready \n    Walk-Throughs",null,null,{"$f":"IF($C$234=\"\",\"\",F234/$C$234)","v":""},null,{"$f":"IF($C$234=\"\",\"\",H234/$C$234)","v":""},null,{"$f":"IF($C$234=\"\",\"\",J234/$C$234)","v":""},null,{"$f":"IF($C$234=\"\",\"\",L234/$C$234)","v":""},null,{"$f":"IF($C$234=\"\",\"\",N234/$C$234)","v":""},null,{"$f":"IF($C$234=\"\",\"\",P234/$C$234)","v":""},null,{"$f":"IF($C$234=\"\",\"\",R234/$C$234)","v":""},null,{"$f":"IF($C$234=\"\",\"\",T234/$C$234)","v":""},null,{"$f":"IF($C$234=\"\",\"\",V234/$C$234)","v":""},null,{"$f":"IF($C$234=\"\",\"\",X234/$C$234)","v":""},null,{"$f":"IF($C$234=\"\",\"\",Z234/$C$234)","v":""},null,{"$f":"IF($C$234=\"\",\"\",AB234/$C$234)","v":""},null,{"$f":"IF($C$234=\"\",\"\",AD234/$C$234)","v":""},null,{"$f":"IF($C$234=\"\",\"\",AF234/$C$234)","v":""},null,{"$f":"IF($C$234=\"\",\"\",AH234/$C$234)","v":""},null,{"$f":"IF($C$234=\"\",\"\",AJ234/$C$234)","v":""},null,{"$f":"IF($C$234=\"\",\"\",AL234/$C$234)","v":""},null,{"$f":"IF($C$234=\"\",\"\",AN234/$C$234)","v":""},null,{"$f":"IF($C$234=\"\",\"\",AP234/$C$234)","v":""},null,{"$f":"IF($C$234=\"\",\"\",AR234/$C$234)","v":""},null,{"$f":"IF($C$234=\"\",\"\",AT234/$C$234)","v":""},null,{"$f":"IF($C$234=\"\",\"\",AV234/$C$234)","v":""},null,{"$f":"IF($C$234=\"\",\"\",AX234/$C$234)","v":""},null,{"$f":"IF($C$234=\"\",\"\",AZ234/$C$234)","v":""},null,{"$f":"IF($C$234=\"\",\"\",BB234/$C$234)","v":""},null,{"$f":"SUM(BB234,AZ234,AX234,AV234,AT234,AR234,AP234,AN234,AL234,AJ234,AH234,AF234,AD234,AB234,Z234,X234,V234,T234,R234,P234,N234,L234,J234,H234,F234)","v":0}]
["    10.10.2","    Conduct Utility Make-Ready Walk-Throughs",null,null,{"$f":"IF($C$235=\"\",\"\",F235/$C$235)","v":""},null,{"$f":"IF($C$235=\"\",\"\",H235/$C$235)","v":""},null,{"$f":"IF($C$235=\"\",\"\",J235/$C$235)","v":""},null,{"$f":"IF($C$235=\"\",\"\",L235/$C$235)","v":""},null,{"$f":"IF($C$235=\"\",\"\",N235/$C$235)","v":""},null,{"$f":"IF($C$235=\"\",\"\",P235/$C$235)","v":""},null,{"$f":"IF($C$235=\"\",\"\",R235/$C$235)","v":""},null,{"$f":"IF($C$235=\"\",\"\",T235/$C$235)","v":""},null,{"$f":"IF($C$235=\"\",\"\",V235/$C$235)","v":""},null,{"$f":"IF($C$235=\"\",\"\",X235/$C$235)","v":""},null,{"$f":"IF($C$235=\"\",\"\",Z235/$C$235)","v":""},null,{"$f":"IF($C$235=\"\",\"\",AB235/$C$235)","v":""},null,{"$f":"IF($C$235=\"\",\"\",AD235/$C$235)","v":""},null,{"$f":"IF($C$235=\"\",\"\",AF235/$C$235)","v":""},null,{"$f":"IF($C$235=\"\",\"\",AH235/$C$235)","v":""},null,{"$f":"IF($C$235=\"\",\"\",AJ235/$C$235)","v":""},null,{"$f":"IF($C$235=\"\",\"\",AL235/$C$235)","v":""},null,{"$f":"IF($C$235=\"\",\"\",AN235/$C$235)","v":""},null,{"$f":"IF($C$235=\"\",\"\",AP235/$C$235)","v":""},null,{"$f":"IF($C$235=\"\",\"\",AR235/$C$235)","v":""},null,{"$f":"IF($C$235=\"\",\"\",AT235/$C$235)","v":""},null,{"$f":"IF($C$235=\"\",\"\",AV235/$C$235)","v":""},null,{"$f":"IF($C$235=\"\",\"\",AX235/$C$235)","v":""},null,{"$f":"IF($C$235=\"\",\"\",AZ235/$C$235)","v":""},null,{"$f":"IF($C$235=\"\",\"\",BB235/$C$235)","v":""},null,0]
["    10.10.3",null,null,null,{"$f":"IF($C$236=\"\",\"\",F236/$C$236)","v":""},null,{"$f":"IF($C$236=\"\",\"\",H236/$C$236)","v":""},null,{"$f":"IF($C$236=\"\",\"\",J236/$C$236)","v":""},null,{"$f":"IF($C$236=\"\",\"\",L236/$C$236)","v":""},null,{"$f":"IF($C$236=\"\",\"\",N236/$C$236)","v":""},null,{"$f":"IF($C$236=\"\",\"\",P236/$C$236)","v":""},null,{"$f":"IF($C$236=\"\",\"\",R236/$C$236)","v":""},null,{"$f":"IF($C$236=\"\",\"\",T236/$C$236)","v":""},null,{"$f":"IF($C$236=\"\",\"\",V236/$C$236)","v":""},null,{"$f":"IF($C$236=\"\",\"\",X236/$C$236)","v":""},null,{"$f":"IF($C$236=\"\",\"\",Z236/$C$236)","v":""},null,{"$f":"IF($C$236=\"\",\"\",AB236/$C$236)","v":""},null,{"$f":"IF($C$236=\"\",\"\",AD236/$C$236)","v":""},null,{"$f":"IF($C$236=\"\",\"\",AF236/$C$236)","v":""},null,{"$f":"IF($C$236=\"\",\"\",AH236/$C$236)","v":""},null,{"$f":"IF($C$236=\"\",\"\",AJ236/$C$236)","v":""},null,{"$f":"IF($C$236=\"\",\"\",AL236/$C$236)","v":""},null,{"$f":"IF($C$236=\"\",\"\",AN236/$C$236)","v":""},null,{"$f":"IF($C$236=\"\",\"\",AP236/$C$236)","v":""},null,{"$f":"IF($C$236=\"\",\"\",AR236/$C$236)","v":""},null,{"$f":"IF($C$236=\"\",\"\",AT236/$C$236)","v":""},null,{"$f":"IF($C$236=\"\",\"\",AV236/$C$236)","v":""},null,{"$f":"IF($C$236=\"\",\"\",AX236/$C$236)","v":""},null,{"$f":"IF($C$236=\"\",\"\",AZ236/$C$236)","v":""},null,{"$f":"IF($C$236=\"\",\"\",BB236/$C$236)","v":""},null,0]
["    10.10.4",null,null,null,{"$f":"IF($C$237=\"\",\"\",F237/$C$237)","v":""},null,{"$f":"IF($C$237=\"\",\"\",H237/$C$237)","v":""},null,{"$f":"IF($C$237=\"\",\"\",J237/$C$237)","v":""},null,{"$f":"IF($C$237=\"\",\"\",L237/$C$237)","v":""},null,{"$f":"IF($C$237=\"\",\"\",N237/$C$237)","v":""},null,{"$f":"IF($C$237=\"\",\"\",P237/$C$237)","v":""},null,{"$f":"IF($C$237=\"\",\"\",R237/$C$237)","v":""},null,{"$f":"IF($C$237=\"\",\"\",T237/$C$237)","v":""},null,{"$f":"IF($C$237=\"\",\"\",V237/$C$237)","v":""},null,{"$f":"IF($C$237=\"\",\"\",X237/$C$237)","v":""},null,{"$f":"IF($C$237=\"\",\"\",Z237/$C$237)","v":""},null,{"$f":"IF($C$237=\"\",\"\",AB237/$C$237)","v":""},null,{"$f":"IF($C$237=\"\",\"\",AD237/$C$237)","v":""},null,{"$f":"IF($C$237=\"\",\"\",AF237/$C$237)","v":""},null,{"$f":"IF($C$237=\"\",\"\",AH237/$C$237)","v":""},null,{"$f":"IF($C$237=\"\",\"\",AJ237/$C$237)","v":""},null,{"$f":"IF($C$237=\"\",\"\",AL237/$C$237)","v":""},null,{"$f":"IF($C$237=\"\",\"\",AN237/$C$237)","v":""},null,{"$f":"IF($C$237=\"\",\"\",AP237/$C$237)","v":""},null,{"$f":"IF($C$237=\"\",\"\",AR237/$C$237)","v":""},null,{"$f":"IF($C$237=\"\",\"\",AT237/$C$237)","v":""},null,{"$f":"IF($C$237=\"\",\"\",AV237/$C$237)","v":""},null,{"$f":"IF($C$237=\"\",\"\",AX237/$C$237)","v":""},null,{"$f":"IF($C$237=\"\",\"\",AZ237/$C$237)","v":""},null,{"$f":"IF($C$237=\"\",\"\",BB237/$C$237)","v":""},null,0]
["    10.10.5",null,null,null,{"$f":"IF($C$238=\"\",\"\",F238/$C$238)","v":""},null,{"$f":"IF($C$238=\"\",\"\",H238/$C$238)","v":""},null,{"$f":"IF($C$238=\"\",\"\",J238/$C$238)","v":""},null,{"$f":"IF($C$238=\"\",\"\",L238/$C$238)","v":""},null,{"$f":"IF($C$238=\"\",\"\",N238/$C$238)","v":""},null,{"$f":"IF($C$238=\"\",\"\",P238/$C$238)","v":""},null,{"$f":"IF($C$238=\"\",\"\",R238/$C$238)","v":""},null,{"$f":"IF($C$238=\"\",\"\",T238/$C$238)","v":""},null,{"$f":"IF($C$238=\"\",\"\",V238/$C$238)","v":""},null,{"$f":"IF($C$238=\"\",\"\",X238/$C$238)","v":""},null,{"$f":"IF($C$238=\"\",\"\",Z238/$C$238)","v":""},null,{"$f":"IF($C$238=\"\",\"\",AB238/$C$238)","v":""},null,{"$f":"IF($C$238=\"\",\"\",AD238/$C$238)","v":""},null,{"$f":"IF($C$238=\"\",\"\",AF238/$C$238)","v":""},null,{"$f":"IF($C$238=\"\",\"\",AH238/$C$238)","v":""},null,{"$f":"IF($C$238=\"\",\"\",AJ238/$C$238)","v":""},null,{"$f":"IF($C$238=\"\",\"\",AL238/$C$238)","v":""},null,{"$f":"IF($C$238=\"\",\"\",AN238/$C$238)","v":""},null,{"$f":"IF($C$238=\"\",\"\",AP238/$C$238)","v":""},null,{"$f":"IF($C$238=\"\",\"\",AR238/$C$238)","v":""},null,{"$f":"IF($C$238=\"\",\"\",AT238/$C$238)","v":""},null,{"$f":"IF($C$238=\"\",\"\",AV238/$C$238)","v":""},null,{"$f":"IF($C$238=\"\",\"\",AX238/$C$238)","v":""},null,{"$f":"IF($C$238=\"\",\"\",AZ238/$C$238)","v":""},null,{"$f":"IF($C$238=\"\",\"\",BB238/$C$238)","v":""},null,0]
[10.11,"Draft Final Utility Make-Ready Plans",null,null,{"$f":"IF($C$239=\"\",\"\",F239/$C$239)","v":""},null,{"$f":"IF($C$239=\"\",\"\",H239/$C$239)","v":""},null,{"$f":"IF($C$239=\"\",\"\",J239/$C$239)","v":""},null,{"$f":"IF($C$239=\"\",\"\",L239/$C$239)","v":""},null,{"$f":"IF($C$239=\"\",\"\",N239/$C$239)","v":""},null,{"$f":"IF($C$239=\"\",\"\",P239/$C$239)","v":""},null,{"$f":"IF($C$239=\"\",\"\",R239/$C$239)","v":""},null,{"$f":"IF($C$239=\"\",\"\",T239/$C$239)","v":""},null,{"$f":"IF($C$239=\"\",\"\",V239/$C$239)","v":""},null,{"$f":"IF($C$239=\"\",\"\",X239/$C$239)","v":""},null,{"$f":"IF($C$239=\"\",\"\",Z239/$C$239)","v":""},null,{"$f":"IF($C$239=\"\",\"\",AB239/$C$239)","v":""},null,{"$f":"IF($C$239=\"\",\"\",AD239/$C$239)","v":""},null,{"$f":"IF($C$239=\"\",\"\",AF239/$C$239)","v":""},null,{"$f":"IF($C$239=\"\",\"\",AH239/$C$239)","v":""},null,{"$f":"IF($C$239=\"\",\"\",AJ239/$C$239)","v":""},null,{"$f":"IF($C$239=\"\",\"\",AL239/$C$239)","v":""},null,{"$f":"IF($C$239=\"\",\"\",AN239/$C$239)","v":""},null,{"$f":"IF($C$239=\"\",\"\",AP239/$C$239)","v":""},null,{"$f":"IF($C$239=\"\",\"\",AR239/$C$239)","v":""},null,{"$f":"IF($C$239=\"\",\"\",AT239/$C$239)","v":""},null,{"$f":"IF($C$239=\"\",\"\",AV239/$C$239)","v":""},null,{"$f":"IF($C$239=\"\",\"\",AX239/$C$239)","v":""},null,{"$f":"IF($C$239=\"\",\"\",AZ239/$C$239)","v":""},null,{"$f":"IF($C$239=\"\",\"\",BB239/$C$239)","v":""},null,0]
[10.119999999999999,"Final Utility Make-Ready Plans",null,null,{"$f":"IF($C$240=\"\",\"\",F240/$C$240)","v":""},null,{"$f":"IF($C$240=\"\",\"\",H240/$C$240)","v":""},null,{"$f":"IF($C$240=\"\",\"\",J240/$C$240)","v":""},null,{"$f":"IF($C$240=\"\",\"\",L240/$C$240)","v":""},null,{"$f":"IF($C$240=\"\",\"\",N240/$C$240)","v":""},null,{"$f":"IF($C$240=\"\",\"\",P240/$C$240)","v":""},null,{"$f":"IF($C$240=\"\",\"\",R240/$C$240)","v":""},null,{"$f":"IF($C$240=\"\",\"\",T240/$C$240)","v":""},null,{"$f":"IF($C$240=\"\",\"\",V240/$C$240)","v":""},null,{"$f":"IF($C$240=\"\",\"\",X240/$C$240)","v":""},null,{"$f":"IF($C$240=\"\",\"\",Z240/$C$240)","v":""},null,{"$f":"IF($C$240=\"\",\"\",AB240/$C$240)","v":""},null,{"$f":"IF($C$240=\"\",\"\",AD240/$C$240)","v":""},null,{"$f":"IF($C$240=\"\",\"\",AF240/$C$240)","v":""},null,{"$f":"IF($C$240=\"\",\"\",AH240/$C$240)","v":""},null,{"$f":"IF($C$240=\"\",\"\",AJ240/$C$240)","v":""},null,{"$f":"IF($C$240=\"\",\"\",AL240/$C$240)","v":""},null,{"$f":"IF($C$240=\"\",\"\",AN240/$C$240)","v":""},null,{"$f":"IF($C$240=\"\",\"\",AP240/$C$240)","v":""},null,{"$f":"IF($C$240=\"\",\"\",AR240/$C$240)","v":""},null,{"$f":"IF($C$240=\"\",\"\",AT240/$C$240)","v":""},null,{"$f":"IF($C$240=\"\",\"\",AV240/$C$240)","v":""},null,{"$f":"IF($C$240=\"\",\"\",AX240/$C$240)","v":""},null,{"$f":"IF($C$240=\"\",\"\",AZ240/$C$240)","v":""},null,{"$f":"IF($C$240=\"\",\"\",BB240/$C$240)","v":""},null,0]
[10.130000000000001,"Review and Compile UMR Cost Estimates",null,null,{"$f":"IF($C$241=\"\",\"\",F241/$C$241)","v":""},null,{"$f":"IF($C$241=\"\",\"\",H241/$C$241)","v":""},null,{"$f":"IF($C$241=\"\",\"\",J241/$C$241)","v":""},null,{"$f":"IF($C$241=\"\",\"\",L241/$C$241)","v":""},null,{"$f":"IF($C$241=\"\",\"\",N241/$C$241)","v":""},null,{"$f":"IF($C$241=\"\",\"\",P241/$C$241)","v":""},null,{"$f":"IF($C$241=\"\",\"\",R241/$C$241)","v":""},null,{"$f":"IF($C$241=\"\",\"\",T241/$C$241)","v":""},null,{"$f":"IF($C$241=\"\",\"\",V241/$C$241)","v":""},null,{"$f":"IF($C$241=\"\",\"\",X241/$C$241)","v":""},null,{"$f":"IF($C$241=\"\",\"\",Z241/$C$241)","v":""},null,{"$f":"IF($C$241=\"\",\"\",AB241/$C$241)","v":""},null,{"$f":"IF($C$241=\"\",\"\",AD241/$C$241)","v":""},null,{"$f":"IF($C$241=\"\",\"\",AF241/$C$241)","v":""},null,{"$f":"IF($C$241=\"\",\"\",AH241/$C$241)","v":""},null,{"$f":"IF($C$241=\"\",\"\",AJ241/$C$241)","v":""},null,{"$f":"IF($C$241=\"\",\"\",AL241/$C$241)","v":""},null,{"$f":"IF($C$241=\"\",\"\",AN241/$C$241)","v":""},null,{"$f":"IF($C$241=\"\",\"\",AP241/$C$241)","v":""},null,{"$f":"IF($C$241=\"\",\"\",AR241/$C$241)","v":""},null,{"$f":"IF($C$241=\"\",\"\",AT241/$C$241)","v":""},null,{"$f":"IF($C$241=\"\",\"\",AV241/$C$241)","v":""},null,{"$f":"IF($C$241=\"\",\"\",AX241/$C$241)","v":""},null,{"$f":"IF($C$241=\"\",\"\",AZ241/$C$241)","v":""},null,{"$f":"IF($C$241=\"\",\"\",BB241/$C$241)","v":""},null,0]
[10.14,"Deliverables (3 submittals)",null,null,{"$f":"IF($C$242=\"\",\"\",F242/$C$242)","v":""},null,{"$f":"IF($C$242=\"\",\"\",H242/$C$242)","v":""},null,{"$f":"IF($C$242=\"\",\"\",J242/$C$242)","v":""},null,{"$f":"IF($C$242=\"\",\"\",L242/$C$242)","v":""},null,{"$f":"IF($C$242=\"\",\"\",N242/$C$242)","v":""},null,{"$f":"IF($C$242=\"\",\"\",P242/$C$242)","v":""},null,{"$f":"IF($C$242=\"\",\"\",R242/$C$242)","v":""},null,{"$f":"IF($C$242=\"\",\"\",T242/$C$242)","v":""},null,{"$f":"IF($C$242=\"\",\"\",V242/$C$242)","v":""},null,{"$f":"IF($C$242=\"\",\"\",X242/$C$242)","v":""},null,{"$f":"IF($C$242=\"\",\"\",Z242/$C$242)","v":""},null,{"$f":"IF($C$242=\"\",\"\",AB242/$C$242)","v":""},null,{"$f":"IF($C$242=\"\",\"\",AD242/$C$242)","v":""},null,{"$f":"IF($C$242=\"\",\"\",AF242/$C$242)","v":""},null,{"$f":"IF($C$242=\"\",\"\",AH242/$C$242)","v":""},null,{"$f":"IF($C$242=\"\",\"\",AJ242/$C$242)","v":""},null,{"$f":"IF($C$242=\"\",\"\",AL242/$C$242)","v":""},null,{"$f":"IF($C$242=\"\",\"\",AN242/$C$242)","v":""},null,{"$f":"IF($C$242=\"\",\"\",AP242/$C$242)","v":""},null,{"$f":"IF($C$242=\"\",\"\",AR242/$C$242)","v":""},null,{"$f":"IF($C$242=\"\",\"\",AT242/$C$242)","v":""},null,{"$f":"IF($C$242=\"\",\"\",AV242/$C$242)","v":""},null,{"$f":"IF($C$242=\"\",\"\",AX242/$C$242)","v":""},null,{"$f":"IF($C$242=\"\",\"\",AZ242/$C$242)","v":""},null,{"$f":"IF($C$242=\"\",\"\",BB242/$C$242)","v":""},null,0]
[null,null,null,null,{"$f":"IF($C$243=\"\",\"\",F243/$C$243)","v":""},null,{"$f":"IF($C$243=\"\",\"\",H243/$C$243)","v":""},null,{"$f":"IF($C$243=\"\",\"\",J243/$C$243)","v":""},null,{"$f":"IF($C$243=\"\",\"\",L243/$C$243)","v":""},null,{"$f":"IF($C$243=\"\",\"\",N243/$C$243)","v":""},null,{"$f":"IF($C$243=\"\",\"\",P243/$C$243)","v":""},null,{"$f":"IF($C$243=\"\",\"\",R243/$C$243)","v":""},null,{"$f":"IF($C$243=\"\",\"\",T243/$C$243)","v":""},null,{"$f":"IF($C$243=\"\",\"\",V243/$C$243)","v":""},null,{"$f":"IF($C$243=\"\",\"\",X243/$C$243)","v":""},null,{"$f":"IF($C$243=\"\",\"\",Z243/$C$243)","v":""},null,{"$f":"IF($C$243=\"\",\"\",AB243/$C$243)","v":""},null,{"$f":"IF($C$243=\"\",\"\",AD243/$C$243)","v":""},null,{"$f":"IF($C$243=\"\",\"\",AF243/$C$243)","v":""},null,{"$f":"IF($C$243=\"\",\"\",AH243/$C$243)","v":""},null,{"$f":"IF($C$243=\"\",\"\",AJ243/$C$243)","v":""},null,{"$f":"IF($C$243=\"\",\"\",AL243/$C$243)","v":""},null,{"$f":"IF($C$243=\"\",\"\",AN243/$C$243)","v":""},null,{"$f":"IF($C$243=\"\",\"\",AP243/$C$243)","v":""},null,{"$f":"IF($C$243=\"\",\"\",AR243/$C$243)","v":""},null,{"$f":"IF($C$243=\"\",\"\",AT243/$C$243)","v":""},null,{"$f":"IF($C$243=\"\",\"\",AV243/$C$243)","v":""},null,{"$f":"IF($C$243=\"\",\"\",AX243/$C$243)","v":""},null,{"$f":"IF($C$243=\"\",\"\",AZ243/$C$243)","v":""},null,{"$f":"IF($C$243=\"\",\"\",BB243/$C$243)","v":""},null,0]
[null,null,null,null,{"$f":"IF($C$244=\"\",\"\",F244/$C$244)","v":""},null,{"$f":"IF($C$244=\"\",\"\",H244/$C$244)","v":""},null,{"$f":"IF($C$244=\"\",\"\",J244/$C$244)","v":""},null,{"$f":"IF($C$244=\"\",\"\",L244/$C$244)","v":""},null,{"$f":"IF($C$244=\"\",\"\",N244/$C$244)","v":""},null,{"$f":"IF($C$244=\"\",\"\",P244/$C$244)","v":""},null,{"$f":"IF($C$244=\"\",\"\",R244/$C$244)","v":""},null,{"$f":"IF($C$244=\"\",\"\",T244/$C$244)","v":""},null,{"$f":"IF($C$244=\"\",\"\",V244/$C$244)","v":""},null,{"$f":"IF($C$244=\"\",\"\",X244/$C$244)","v":""},null,{"$f":"IF($C$244=\"\",\"\",Z244/$C$244)","v":""},null,{"$f":"IF($C$244=\"\",\"\",AB244/$C$244)","v":""},null,{"$f":"IF($C$244=\"\",\"\",AD244/$C$244)","v":""},null,{"$f":"IF($C$244=\"\",\"\",AF244/$C$244)","v":""},null,{"$f":"IF($C$244=\"\",\"\",AH244/$C$244)","v":""},null,{"$f":"IF($C$244=\"\",\"\",AJ244/$C$244)","v":""},null,{"$f":"IF($C$244=\"\",\"\",AL244/$C$244)","v":""},null,{"$f":"IF($C$244=\"\",\"\",AN244/$C$244)","v":""},null,{"$f":"IF($C$244=\"\",\"\",AP244/$C$244)","v":""},null,{"$f":"IF($C$244=\"\",\"\",AR244/$C$244)","v":""},null,{"$f":"IF($C$244=\"\",\"\",AT244/$C$244)","v":""},null,{"$f":"IF($C$244=\"\",\"\",AV244/$C$244)","v":""},null,{"$f":"IF($C$244=\"\",\"\",AX244/$C$244)","v":""},null,{"$f":"IF($C$244=\"\",\"\",AZ244/$C$244)","v":""},null,{"$f":"IF($C$244=\"\",\"\",BB244/$C$244)","v":""},null,0]
[null,null,null,null,{"$f":"IF($C$245=\"\",\"\",F245/$C$245)","v":""},null,{"$f":"IF($C$245=\"\",\"\",H245/$C$245)","v":""},null,{"$f":"IF($C$245=\"\",\"\",J245/$C$245)","v":""},null,{"$f":"IF($C$245=\"\",\"\",L245/$C$245)","v":""},null,{"$f":"IF($C$245=\"\",\"\",N245/$C$245)","v":""},null,{"$f":"IF($C$245=\"\",\"\",P245/$C$245)","v":""},null,{"$f":"IF($C$245=\"\",\"\",R245/$C$245)","v":""},null,{"$f":"IF($C$245=\"\",\"\",T245/$C$245)","v":""},null,{"$f":"IF($C$245=\"\",\"\",V245/$C$245)","v":""},null,{"$f":"IF($C$245=\"\",\"\",X245/$C$245)","v":""},null,{"$f":"IF($C$245=\"\",\"\",Z245/$C$245)","v":""},null,{"$f":"IF($C$245=\"\",\"\",AB245/$C$245)","v":""},null,{"$f":"IF($C$245=\"\",\"\",AD245/$C$245)","v":""},null,{"$f":"IF($C$245=\"\",\"\",AF245/$C$245)","v":""},null,{"$f":"IF($C$245=\"\",\"\",AH245/$C$245)","v":""},null,{"$f":"IF($C$245=\"\",\"\",AJ245/$C$245)","v":""},null,{"$f":"IF($C$245=\"\",\"\",AL245/$C$245)","v":""},null,{"$f":"IF($C$245=\"\",\"\",AN245/$C$245)","v":""},null,{"$f":"IF($C$245=\"\",\"\",AP245/$C$245)","v":""},null,{"$f":"IF($C$245=\"\",\"\",AR245/$C$245)","v":""},null,{"$f":"IF($C$245=\"\",\"\",AT245/$C$245)","v":""},null,{"$f":"IF($C$245=\"\",\"\",AV245/$C$245)","v":""},null,{"$f":"IF($C$245=\"\",\"\",AX245/$C$245)","v":""},null,{"$f":"IF($C$245=\"\",\"\",AZ245/$C$245)","v":""},null,{"$f":"IF($C$245=\"\",\"\",BB245/$C$245)","v":""},null,0]
[null,null,null,null,{"$f":"IF($C$246=\"\",\"\",F246/$C$246)","v":""},null,{"$f":"IF($C$246=\"\",\"\",H246/$C$246)","v":""},null,{"$f":"IF($C$246=\"\",\"\",J246/$C$246)","v":""},null,{"$f":"IF($C$246=\"\",\"\",L246/$C$246)","v":""},null,{"$f":"IF($C$246=\"\",\"\",N246/$C$246)","v":""},null,{"$f":"IF($C$246=\"\",\"\",P246/$C$246)","v":""},null,{"$f":"IF($C$246=\"\",\"\",R246/$C$246)","v":""},null,{"$f":"IF($C$246=\"\",\"\",T246/$C$246)","v":""},null,{"$f":"IF($C$246=\"\",\"\",V246/$C$246)","v":""},null,{"$f":"IF($C$246=\"\",\"\",X246/$C$246)","v":""},null,{"$f":"IF($C$246=\"\",\"\",Z246/$C$246)","v":""},null,{"$f":"IF($C$246=\"\",\"\",AB246/$C$246)","v":""},null,{"$f":"IF($C$246=\"\",\"\",AD246/$C$246)","v":""},null,{"$f":"IF($C$246=\"\",\"\",AF246/$C$246)","v":""},null,{"$f":"IF($C$246=\"\",\"\",AH246/$C$246)","v":""},null,{"$f":"IF($C$246=\"\",\"\",AJ246/$C$246)","v":""},null,{"$f":"IF($C$246=\"\",\"\",AL246/$C$246)","v":""},null,{"$f":"IF($C$246=\"\",\"\",AN246/$C$246)","v":""},null,{"$f":"IF($C$246=\"\",\"\",AP246/$C$246)","v":""},null,{"$f":"IF($C$246=\"\",\"\",AR246/$C$246)","v":""},null,{"$f":"IF($C$246=\"\",\"\",AT246/$C$246)","v":""},null,{"$f":"IF($C$246=\"\",\"\",AV246/$C$246)","v":""},null,{"$f":"IF($C$246=\"\",\"\",AX246/$C$246)","v":""},null,{"$f":"IF($C$246=\"\",\"\",AZ246/$C$246)","v":""},null,{"$f":"IF($C$246=\"\",\"\",BB246/$C$246)","v":""},null,0]
[null,null,null,null,{"$f":"IF($C$247=\"\",\"\",F247/$C$247)","v":""},null,{"$f":"IF($C$247=\"\",\"\",H247/$C$247)","v":""},null,{"$f":"IF($C$247=\"\",\"\",J247/$C$247)","v":""},null,{"$f":"IF($C$247=\"\",\"\",L247/$C$247)","v":""},null,{"$f":"IF($C$247=\"\",\"\",N247/$C$247)","v":""},null,{"$f":"IF($C$247=\"\",\"\",P247/$C$247)","v":""},null,{"$f":"IF($C$247=\"\",\"\",R247/$C$247)","v":""},null,{"$f":"IF($C$247=\"\",\"\",T247/$C$247)","v":""},null,{"$f":"IF($C$247=\"\",\"\",V247/$C$247)","v":""},null,{"$f":"IF($C$247=\"\",\"\",X247/$C$247)","v":""},null,{"$f":"IF($C$247=\"\",\"\",Z247/$C$247)","v":""},null,{"$f":"IF($C$247=\"\",\"\",AB247/$C$247)","v":""},null,{"$f":"IF($C$247=\"\",\"\",AD247/$C$247)","v":""},null,{"$f":"IF($C$247=\"\",\"\",AF247/$C$247)","v":""},null,{"$f":"IF($C$247=\"\",\"\",AH247/$C$247)","v":""},null,{"$f":"IF($C$247=\"\",\"\",AJ247/$C$247)","v":""},null,{"$f":"IF($C$247=\"\",\"\",AL247/$C$247)","v":""},null,{"$f":"IF($C$247=\"\",\"\",AN247/$C$247)","v":""},null,{"$f":"IF($C$247=\"\",\"\",AP247/$C$247)","v":""},null,{"$f":"IF($C$247=\"\",\"\",AR247/$C$247)","v":""},null,{"$f":"IF($C$247=\"\",\"\",AT247/$C$247)","v":""},null,{"$f":"IF($C$247=\"\",\"\",AV247/$C$247)","v":""},null,{"$f":"IF($C$247=\"\",\"\",AX247/$C$247)","v":""},null,{"$f":"IF($C$247=\"\",\"\",AZ247/$C$247)","v":""},null,{"$f":"IF($C$247=\"\",\"\",BB247/$C$247)","v":""},null,0]
[null,null,null,null,{"$f":"IF($C$248=\"\",\"\",F248/$C$248)","v":""},null,{"$f":"IF($C$248=\"\",\"\",H248/$C$248)","v":""},null,{"$f":"IF($C$248=\"\",\"\",J248/$C$248)","v":""},null,{"$f":"IF($C$248=\"\",\"\",L248/$C$248)","v":""},null,{"$f":"IF($C$248=\"\",\"\",N248/$C$248)","v":""},null,{"$f":"IF($C$248=\"\",\"\",P248/$C$248)","v":""},null,{"$f":"IF($C$248=\"\",\"\",R248/$C$248)","v":""},null,{"$f":"IF($C$248=\"\",\"\",T248/$C$248)","v":""},null,{"$f":"IF($C$248=\"\",\"\",V248/$C$248)","v":""},null,{"$f":"IF($C$248=\"\",\"\",X248/$C$248)","v":""},null,{"$f":"IF($C$248=\"\",\"\",Z248/$C$248)","v":""},null,{"$f":"IF($C$248=\"\",\"\",AB248/$C$248)","v":""},null,{"$f":"IF($C$248=\"\",\"\",AD248/$C$248)","v":""},null,{"$f":"IF($C$248=\"\",\"\",AF248/$C$248)","v":""},null,{"$f":"IF($C$248=\"\",\"\",AH248/$C$248)","v":""},null,{"$f":"IF($C$248=\"\",\"\",AJ248/$C$248)","v":""},null,{"$f":"IF($C$248=\"\",\"\",AL248/$C$248)","v":""},null,{"$f":"IF($C$248=\"\",\"\",AN248/$C$248)","v":""},null,{"$f":"IF($C$248=\"\",\"\",AP248/$C$248)","v":""},null,{"$f":"IF($C$248=\"\",\"\",AR248/$C$248)","v":""},null,{"$f":"IF($C$248=\"\",\"\",AT248/$C$248)","v":""},null,{"$f":"IF($C$248=\"\",\"\",AV248/$C$248)","v":""},null,{"$f":"IF($C$248=\"\",\"\",AX248/$C$248)","v":""},null,{"$f":"IF($C$248=\"\",\"\",AZ248/$C$248)","v":""},null,{"$f":"IF($C$248=\"\",\"\",BB248/$C$248)","v":""},null,0]
[null,null,null,null,{"$f":"IF($C$249=\"\",\"\",F249/$C$249)","v":""},null,{"$f":"IF($C$249=\"\",\"\",H249/$C$249)","v":""},null,{"$f":"IF($C$249=\"\",\"\",J249/$C$249)","v":""},null,{"$f":"IF($C$249=\"\",\"\",L249/$C$249)","v":""},null,{"$f":"IF($C$249=\"\",\"\",N249/$C$249)","v":""},null,{"$f":"IF($C$249=\"\",\"\",P249/$C$249)","v":""},null,{"$f":"IF($C$249=\"\",\"\",R249/$C$249)","v":""},null,{"$f":"IF($C$249=\"\",\"\",T249/$C$249)","v":""},null,{"$f":"IF($C$249=\"\",\"\",V249/$C$249)","v":""},null,{"$f":"IF($C$249=\"\",\"\",X249/$C$249)","v":""},null,{"$f":"IF($C$249=\"\",\"\",Z249/$C$249)","v":""},null,{"$f":"IF($C$249=\"\",\"\",AB249/$C$249)","v":""},null,{"$f":"IF($C$249=\"\",\"\",AD249/$C$249)","v":""},null,{"$f":"IF($C$249=\"\",\"\",AF249/$C$249)","v":""},null,{"$f":"IF($C$249=\"\",\"\",AH249/$C$249)","v":""},null,{"$f":"IF($C$249=\"\",\"\",AJ249/$C$249)","v":""},null,{"$f":"IF($C$249=\"\",\"\",AL249/$C$249)","v":""},null,{"$f":"IF($C$249=\"\",\"\",AN249/$C$249)","v":""},null,{"$f":"IF($C$249=\"\",\"\",AP249/$C$249)","v":""},null,{"$f":"IF($C$249=\"\",\"\",AR249/$C$249)","v":""},null,{"$f":"IF($C$249=\"\",\"\",AT249/$C$249)","v":""},null,{"$f":"IF($C$249=\"\",\"\",AV249/$C$249)","v":""},null,{"$f":"IF($C$249=\"\",\"\",AX249/$C$249)","v":""},null,{"$f":"IF($C$249=\"\",\"\",AZ249/$C$249)","v":""},null,{"$f":"IF($C$249=\"\",\"\",BB249/$C$249)","v":""},null,{"$f":"SUM(BB249,AZ249,AX249,AV249,AT249,AR249,AP249,AN249,AL249,AJ249,AH249,AF249,AD249,AB249,Z249,X249,V249,T249,R249,P249,N249,L249,J249,H249,F249)","v":0}]
["TOTAL HOURS",null,null,null,null,{"$f":"SUM(F224:F249)","v":0},null,{"$f":"SUM(H224:H249)","v":0},null,{"$f":"SUM(J224:J249)","v":0},null,{"$f":"SUM(L224:L249)","v":0},null,{"$f":"SUM(N224:N249)","v":0},null,{"$f":"SUM(P224:P249)","v":0},null,{"$f":"SUM(R224:R249)","v":0},null,{"$f":"SUM(T224:T249)","v":0},null,{"$f":"SUM(V224:V249)","v":0},null,{"$f":"SUM(X224:X249)","v":0},null,{"$f":"SUM(Z224:Z249)","v":0},null,{"$f":"SUM(AB224:AB249)","v":0},null,{"$f":"SUM(AD224:AD249)","v":0},null,{"$f":"SUM(AF224:AF249)","v":0},null,{"$f":"SUM(AH224:AH249)","v":0},null,{"$f":"SUM(AJ224:AJ249)","v":0},null,{"$f":"SUM(AL224:AL249)","v":0},null,{"$f":"SUM(AN224:AN249)","v":0},null,{"$f":"SUM(AP224:AP249)","v":0},null,{"$f":"SUM(AR224:AR249)","v":0},null,{"$f":"SUM(AT224:AT249)","v":0},null,{"$f":"SUM(AV224:AV249)","v":0},null,{"$f":"SUM(AX224:AX249)","v":0},null,{"$f":"SUM(AZ224:AZ249)","v":0},null,0,{"$f":"SUM(E250:BB250)","v":0}]
["TOTAL WORKDAYS",null,null,null,null,{"$f":"F250/8","v":0},null,{"$f":"H250/8","v":0},null,{"$f":"J250/8","v":0},null,{"$f":"L250/8","v":0},null,{"$f":"N250/8","v":0},null,{"$f":"P250/8","v":0},null,{"$f":"R250/8","v":0},null,{"$f":"T250/8","v":0},null,{"$f":"V250/8","v":0},null,{"$f":"X250/8","v":0},null,{"$f":"Z250/8","v":0},null,{"$f":"AB250/8","v":0},null,{"$f":"AD250/8","v":0},null,0,null,{"$f":"AH250/8","v":0},null,0,null,{"$f":"AL250/8","v":0},null,0,null,{"$f":"AP250/8","v":0},null,0,null,{"$f":"AT250/8","v":0},null,{"$f":"AV250/8","v":0},null,{"$f":"AX250/8","v":0},null,{"$f":"AZ250/8","v":0},null,0,{"$f":"SUM(E251:BB251)","v":0}]
["TOTAL RAW LABOR",null,null,null,null,{"$f":"$E$13*F250","v":0},null,{"$f":"$G$13*H250","v":0},null,{"$f":"$I$13*J250","v":0},null,{"$f":"$K$13*L250","v":0},null,{"$f":"$M$13*N250","v":0},null,{"$f":"$O$13*P250","v":0},null,{"$f":"$Q$13*R250","v":0},null,{"$f":"$S$13*T250","v":0},null,{"$f":"$U$13*V250","v":0},null,{"$f":"$W$13*X250","v":0},null,{"$f":"$Y$13*Z250","v":0},null,{"$f":"$AA$13*AB250","v":0},null,{"$f":"$AC$13*AD250","v":0},null,{"$f":"$AC$13*AF250","v":0},null,{"$f":"$AC$13*AH250","v":0},null,{"$f":"$AC$13*AJ250","v":0},null,{"$f":"$AC$13*AL250","v":0},null,{"$f":"$AC$13*AN250","v":0},null,{"$f":"$AC$13*AP250","v":0},null,{"$f":"$AC$13*AR250","v":0},null,{"$f":"$AC$13*AT250","v":0},null,{"$f":"$AC$13*AV250","v":0},null,{"$f":"$AC$13*AX250","v":0},null,{"$f":"$AC$13*AZ250","v":0},null,0,{"$f":"SUM(E252:BB252)","v":0}]
["Task 11.0     ","SIGNAL SYSTEM CONSTRUCTION PLANS"]
[11.1,"Preliminary Plans"]
["    11.1.1","    Title Sheet",null,null,{"$f":"IF($C$255=\"\",\"\",F255/$C$255)","v":""},null,{"$f":"IF($C$255=\"\",\"\",H255/$C$255)","v":""},null,{"$f":"IF($C$255=\"\",\"\",J255/$C$255)","v":""},null,{"$f":"IF($C$255=\"\",\"\",L255/$C$255)","v":""},null,{"$f":"IF($C$255=\"\",\"\",N255/$C$255)","v":""},null,{"$f":"IF($C$255=\"\",\"\",P255/$C$255)","v":""},null,{"$f":"IF($C$255=\"\",\"\",R255/$C$255)","v":""},null,{"$f":"IF($C$255=\"\",\"\",T255/$C$255)","v":""},null,{"$f":"IF($C$255=\"\",\"\",V255/$C$255)","v":""},null,{"$f":"IF($C$255=\"\",\"\",X255/$C$255)","v":""},null,{"$f":"IF($C$255=\"\",\"\",Z255/$C$255)","v":""},null,{"$f":"IF($C$255=\"\",\"\",AB255/$C$255)","v":""},null,{"$f":"IF($C$255=\"\",\"\",AD255/$C$255)","v":""},null,{"$f":"IF($C$255=\"\",\"\",AF255/$C$255)","v":""},null,{"$f":"IF($C$255=\"\",\"\",AH255/$C$255)","v":""},null,{"$f":"IF($C$255=\"\",\"\",AJ255/$C$255)","v":""},null,{"$f":"IF($C$255=\"\",\"\",AL255/$C$255)","v":""},null,{"$f":"IF($C$255=\"\",\"\",AN255/$C$255)","v":""},null,{"$f":"IF($C$255=\"\",\"\",AP255/$C$255)","v":""},null,{"$f":"IF($C$255=\"\",\"\",AR255/$C$255)","v":""},null,{"$f":"IF($C$255=\"\",\"\",AT255/$C$255)","v":""},null,{"$f":"IF($C$255=\"\",\"\",AV255/$C$255)","v":""},null,{"$f":"IF($C$255=\"\",\"\",AX255/$C$255)","v":""},null,{"$f":"IF($C$255=\"\",\"\",AZ255/$C$255)","v":""},null,{"$f":"IF($C$255=\"\",\"\",BB255/$C$255)","v":""},null,{"$f":"SUM(BB255,AZ255,AX255,AV255,AT255,AR255,AP255,AN255,AL255,AJ255,AH255,AF255,AD255,AB255,Z255,X255,V255,T255,R255,P255,N255,L255,J255,H255,F255)","v":0}]
["    11.1.2","    Legend and General Notes",null,null,{"$f":"IF($C$256=\"\",\"\",F256/$C$256)","v":""},null,{"$f":"IF($C$256=\"\",\"\",H256/$C$256)","v":""},null,{"$f":"IF($C$256=\"\",\"\",J256/$C$256)","v":""},null,{"$f":"IF($C$256=\"\",\"\",L256/$C$256)","v":""},null,{"$f":"IF($C$256=\"\",\"\",N256/$C$256)","v":""},null,{"$f":"IF($C$256=\"\",\"\",P256/$C$256)","v":""},null,{"$f":"IF($C$256=\"\",\"\",R256/$C$256)","v":""},null,{"$f":"IF($C$256=\"\",\"\",T256/$C$256)","v":""},null,{"$f":"IF($C$256=\"\",\"\",V256/$C$256)","v":""},null,{"$f":"IF($C$256=\"\",\"\",X256/$C$256)","v":""},null,{"$f":"IF($C$256=\"\",\"\",Z256/$C$256)","v":""},null,{"$f":"IF($C$256=\"\",\"\",AB256/$C$256)","v":""},null,{"$f":"IF($C$256=\"\",\"\",AD256/$C$256)","v":""},null,{"$f":"IF($C$256=\"\",\"\",AF256/$C$256)","v":""},null,{"$f":"IF($C$256=\"\",\"\",AH256/$C$256)","v":""},null,{"$f":"IF($C$256=\"\",\"\",AJ256/$C$256)","v":""},null,{"$f":"IF($C$256=\"\",\"\",AL256/$C$256)","v":""},null,{"$f":"IF($C$256=\"\",\"\",AN256/$C$256)","v":""},null,{"$f":"IF($C$256=\"\",\"\",AP256/$C$256)","v":""},null,{"$f":"IF($C$256=\"\",\"\",AR256/$C$256)","v":""},null,{"$f":"IF($C$256=\"\",\"\",AT256/$C$256)","v":""},null,{"$f":"IF($C$256=\"\",\"\",AV256/$C$256)","v":""},null,{"$f":"IF($C$256=\"\",\"\",AX256/$C$256)","v":""},null,{"$f":"IF($C$256=\"\",\"\",AZ256/$C$256)","v":""},null,{"$f":"IF($C$256=\"\",\"\",BB256/$C$256)","v":""},null,0]
["    11.1.3","    Temporary Traffic Control Plans",null,null,{"$f":"IF($C$257=\"\",\"\",F257/$C$257)","v":""},null,{"$f":"IF($C$257=\"\",\"\",H257/$C$257)","v":""},null,{"$f":"IF($C$257=\"\",\"\",J257/$C$257)","v":""},null,{"$f":"IF($C$257=\"\",\"\",L257/$C$257)","v":""},null,{"$f":"IF($C$257=\"\",\"\",N257/$C$257)","v":""},null,{"$f":"IF($C$257=\"\",\"\",P257/$C$257)","v":""},null,{"$f":"IF($C$257=\"\",\"\",R257/$C$257)","v":""},null,{"$f":"IF($C$257=\"\",\"\",T257/$C$257)","v":""},null,{"$f":"IF($C$257=\"\",\"\",V257/$C$257)","v":""},null,{"$f":"IF($C$257=\"\",\"\",X257/$C$257)","v":""},null,{"$f":"IF($C$257=\"\",\"\",Z257/$C$257)","v":""},null,{"$f":"IF($C$257=\"\",\"\",AB257/$C$257)","v":""},null,{"$f":"IF($C$257=\"\",\"\",AD257/$C$257)","v":""},null,{"$f":"IF($C$257=\"\",\"\",AF257/$C$257)","v":""},null,{"$f":"IF($C$257=\"\",\"\",AH257/$C$257)","v":""},null,{"$f":"IF($C$257=\"\",\"\",AJ257/$C$257)","v":""},null,{"$f":"IF($C$257=\"\",\"\",AL257/$C$257)","v":""},null,{"$f":"IF($C$257=\"\",\"\",AN257/$C$257)","v":""},null,{"$f":"IF($C$257=\"\",\"\",AP257/$C$257)","v":""},null,{"$f":"IF($C$257=\"\",\"\",AR257/$C$257)","v":""},null,{"$f":"IF($C$257=\"\",\"\",AT257/$C$257)","v":""},null,{"$f":"IF($C$257=\"\",\"\",AV257/$C$257)","v":""},null,{"$f":"IF($C$257=\"\",\"\",AX257/$C$257)","v":""},null,{"$f":"IF($C$257=\"\",\"\",AZ257/$C$257)","v":""},null,{"$f":"IF($C$257=\"\",\"\",BB257/$C$257)","v":""},null,0]
["    11.1.4","    Summary of Quantities",null,null,{"$f":"IF($C$258=\"\",\"\",F258/$C$258)","v":""},null,{"$f":"IF($C$258=\"\",\"\",H258/$C$258)","v":""},null,{"$f":"IF($C$258=\"\",\"\",J258/$C$258)","v":""},null,{"$f":"IF($C$258=\"\",\"\",L258/$C$258)","v":""},null,{"$f":"IF($C$258=\"\",\"\",N258/$C$258)","v":""},null,{"$f":"IF($C$258=\"\",\"\",P258/$C$258)","v":""},null,{"$f":"IF($C$258=\"\",\"\",R258/$C$258)","v":""},null,{"$f":"IF($C$258=\"\",\"\",T258/$C$258)","v":""},null,{"$f":"IF($C$258=\"\",\"\",V258/$C$258)","v":""},null,{"$f":"IF($C$258=\"\",\"\",X258/$C$258)","v":""},null,{"$f":"IF($C$258=\"\",\"\",Z258/$C$258)","v":""},null,{"$f":"IF($C$258=\"\",\"\",AB258/$C$258)","v":""},null,{"$f":"IF($C$258=\"\",\"\",AD258/$C$258)","v":""},null,{"$f":"IF($C$258=\"\",\"\",AF258/$C$258)","v":""},null,{"$f":"IF($C$258=\"\",\"\",AH258/$C$258)","v":""},null,{"$f":"IF($C$258=\"\",\"\",AJ258/$C$258)","v":""},null,{"$f":"IF($C$258=\"\",\"\",AL258/$C$258)","v":""},null,{"$f":"IF($C$258=\"\",\"\",AN258/$C$258)","v":""},null,{"$f":"IF($C$258=\"\",\"\",AP258/$C$258)","v":""},null,{"$f":"IF($C$258=\"\",\"\",AR258/$C$258)","v":""},null,{"$f":"IF($C$258=\"\",\"\",AT258/$C$258)","v":""},null,{"$f":"IF($C$258=\"\",\"\",AV258/$C$258)","v":""},null,{"$f":"IF($C$258=\"\",\"\",AX258/$C$258)","v":""},null,{"$f":"IF($C$258=\"\",\"\",AZ258/$C$258)","v":""},null,{"$f":"IF($C$258=\"\",\"\",BB258/$C$258)","v":""},null,0]
["    11.1.5","    Summary of Work by CableRouting Sheet",null,null,{"$f":"IF($C$259=\"\",\"\",F259/$C$259)","v":""},null,{"$f":"IF($C$259=\"\",\"\",H259/$C$259)","v":""},null,{"$f":"IF($C$259=\"\",\"\",J259/$C$259)","v":""},null,{"$f":"IF($C$259=\"\",\"\",L259/$C$259)","v":""},null,{"$f":"IF($C$259=\"\",\"\",N259/$C$259)","v":""},null,{"$f":"IF($C$259=\"\",\"\",P259/$C$259)","v":""},null,{"$f":"IF($C$259=\"\",\"\",R259/$C$259)","v":""},null,{"$f":"IF($C$259=\"\",\"\",T259/$C$259)","v":""},null,{"$f":"IF($C$259=\"\",\"\",V259/$C$259)","v":""},null,{"$f":"IF($C$259=\"\",\"\",X259/$C$259)","v":""},null,{"$f":"IF($C$259=\"\",\"\",Z259/$C$259)","v":""},null,{"$f":"IF($C$259=\"\",\"\",AB259/$C$259)","v":""},null,{"$f":"IF($C$259=\"\",\"\",AD259/$C$259)","v":""},null,{"$f":"IF($C$259=\"\",\"\",AF259/$C$259)","v":""},null,{"$f":"IF($C$259=\"\",\"\",AH259/$C$259)","v":""},null,{"$f":"IF($C$259=\"\",\"\",AJ259/$C$259)","v":""},null,{"$f":"IF($C$259=\"\",\"\",AL259/$C$259)","v":""},null,{"$f":"IF($C$259=\"\",\"\",AN259/$C$259)","v":""},null,{"$f":"IF($C$259=\"\",\"\",AP259/$C$259)","v":""},null,{"$f":"IF($C$259=\"\",\"\",AR259/$C$259)","v":""},null,{"$f":"IF($C$259=\"\",\"\",AT259/$C$259)","v":""},null,{"$f":"IF($C$259=\"\",\"\",AV259/$C$259)","v":""},null,{"$f":"IF($C$259=\"\",\"\",AX259/$C$259)","v":""},null,{"$f":"IF($C$259=\"\",\"\",AZ259/$C$259)","v":""},null,{"$f":"IF($C$259=\"\",\"\",BB259/$C$259)","v":""},null,0]
["    11.1.6","    Communications Cable Schematic",null,null,{"$f":"IF($C$260=\"\",\"\",F260/$C$260)","v":""},null,{"$f":"IF($C$260=\"\",\"\",H260/$C$260)","v":""},null,{"$f":"IF($C$260=\"\",\"\",J260/$C$260)","v":""},null,{"$f":"IF($C$260=\"\",\"\",L260/$C$260)","v":""},null,{"$f":"IF($C$260=\"\",\"\",N260/$C$260)","v":""},null,{"$f":"IF($C$260=\"\",\"\",P260/$C$260)","v":""},null,{"$f":"IF($C$260=\"\",\"\",R260/$C$260)","v":""},null,{"$f":"IF($C$260=\"\",\"\",T260/$C$260)","v":""},null,{"$f":"IF($C$260=\"\",\"\",V260/$C$260)","v":""},null,{"$f":"IF($C$260=\"\",\"\",X260/$C$260)","v":""},null,{"$f":"IF($C$260=\"\",\"\",Z260/$C$260)","v":""},null,{"$f":"IF($C$260=\"\",\"\",AB260/$C$260)","v":""},null,{"$f":"IF($C$260=\"\",\"\",AD260/$C$260)","v":""},null,{"$f":"IF($C$260=\"\",\"\",AF260/$C$260)","v":""},null,{"$f":"IF($C$260=\"\",\"\",AH260/$C$260)","v":""},null,{"$f":"IF($C$260=\"\",\"\",AJ260/$C$260)","v":""},null,{"$f":"IF($C$260=\"\",\"\",AL260/$C$260)","v":""},null,{"$f":"IF($C$260=\"\",\"\",AN260/$C$260)","v":""},null,{"$f":"IF($C$260=\"\",\"\",AP260/$C$260)","v":""},null,{"$f":"IF($C$260=\"\",\"\",AR260/$C$260)","v":""},null,{"$f":"IF($C$260=\"\",\"\",AT260/$C$260)","v":""},null,{"$f":"IF($C$260=\"\",\"\",AV260/$C$260)","v":""},null,{"$f":"IF($C$260=\"\",\"\",AX260/$C$260)","v":""},null,{"$f":"IF($C$260=\"\",\"\",AZ260/$C$260)","v":""},null,{"$f":"IF($C$260=\"\",\"\",BB260/$C$260)","v":""},null,0]
["    11.1.7","    Communications Ring Schematics",null,null,{"$f":"IF($C$261=\"\",\"\",F261/$C$261)","v":""},null,{"$f":"IF($C$261=\"\",\"\",H261/$C$261)","v":""},null,{"$f":"IF($C$261=\"\",\"\",J261/$C$261)","v":""},null,{"$f":"IF($C$261=\"\",\"\",L261/$C$261)","v":""},null,{"$f":"IF($C$261=\"\",\"\",N261/$C$261)","v":""},null,{"$f":"IF($C$261=\"\",\"\",P261/$C$261)","v":""},null,{"$f":"IF($C$261=\"\",\"\",R261/$C$261)","v":""},null,{"$f":"IF($C$261=\"\",\"\",T261/$C$261)","v":""},null,{"$f":"IF($C$261=\"\",\"\",V261/$C$261)","v":""},null,{"$f":"IF($C$261=\"\",\"\",X261/$C$261)","v":""},null,{"$f":"IF($C$261=\"\",\"\",Z261/$C$261)","v":""},null,{"$f":"IF($C$261=\"\",\"\",AB261/$C$261)","v":""},null,{"$f":"IF($C$261=\"\",\"\",AD261/$C$261)","v":""},null,{"$f":"IF($C$261=\"\",\"\",AF261/$C$261)","v":""},null,{"$f":"IF($C$261=\"\",\"\",AH261/$C$261)","v":""},null,{"$f":"IF($C$261=\"\",\"\",AJ261/$C$261)","v":""},null,{"$f":"IF($C$261=\"\",\"\",AL261/$C$261)","v":""},null,{"$f":"IF($C$261=\"\",\"\",AN261/$C$261)","v":""},null,{"$f":"IF($C$261=\"\",\"\",AP261/$C$261)","v":""},null,{"$f":"IF($C$261=\"\",\"\",AR261/$C$261)","v":""},null,{"$f":"IF($C$261=\"\",\"\",AT261/$C$261)","v":""},null,{"$f":"IF($C$261=\"\",\"\",AV261/$C$261)","v":""},null,{"$f":"IF($C$261=\"\",\"\",AX261/$C$261)","v":""},null,{"$f":"IF($C$261=\"\",\"\",AZ261/$C$261)","v":""},null,{"$f":"IF($C$261=\"\",\"\",BB261/$C$261)","v":""},null,0]
["    11.1.8","    Summary of Fiber Optic Cables",null,null,{"$f":"IF($C$262=\"\",\"\",F262/$C$262)","v":""},null,{"$f":"IF($C$262=\"\",\"\",H262/$C$262)","v":""},null,{"$f":"IF($C$262=\"\",\"\",J262/$C$262)","v":""},null,{"$f":"IF($C$262=\"\",\"\",L262/$C$262)","v":""},null,{"$f":"IF($C$262=\"\",\"\",N262/$C$262)","v":""},null,{"$f":"IF($C$262=\"\",\"\",P262/$C$262)","v":""},null,{"$f":"IF($C$262=\"\",\"\",R262/$C$262)","v":""},null,{"$f":"IF($C$262=\"\",\"\",T262/$C$262)","v":""},null,{"$f":"IF($C$262=\"\",\"\",V262/$C$262)","v":""},null,{"$f":"IF($C$262=\"\",\"\",X262/$C$262)","v":""},null,{"$f":"IF($C$262=\"\",\"\",Z262/$C$262)","v":""},null,{"$f":"IF($C$262=\"\",\"\",AB262/$C$262)","v":""},null,{"$f":"IF($C$262=\"\",\"\",AD262/$C$262)","v":""},null,{"$f":"IF($C$262=\"\",\"\",AF262/$C$262)","v":""},null,{"$f":"IF($C$262=\"\",\"\",AH262/$C$262)","v":""},null,{"$f":"IF($C$262=\"\",\"\",AJ262/$C$262)","v":""},null,{"$f":"IF($C$262=\"\",\"\",AL262/$C$262)","v":""},null,{"$f":"IF($C$262=\"\",\"\",AN262/$C$262)","v":""},null,{"$f":"IF($C$262=\"\",\"\",AP262/$C$262)","v":""},null,{"$f":"IF($C$262=\"\",\"\",AR262/$C$262)","v":""},null,{"$f":"IF($C$262=\"\",\"\",AT262/$C$262)","v":""},null,{"$f":"IF($C$262=\"\",\"\",AV262/$C$262)","v":""},null,{"$f":"IF($C$262=\"\",\"\",AX262/$C$262)","v":""},null,{"$f":"IF($C$262=\"\",\"\",AZ262/$C$262)","v":""},null,{"$f":"IF($C$262=\"\",\"\",BB262/$C$262)","v":""},null,0]
["    11.1.9","    System Detector Schematic",null,null,{"$f":"IF($C$263=\"\",\"\",F263/$C$263)","v":""},null,{"$f":"IF($C$263=\"\",\"\",H263/$C$263)","v":""},null,{"$f":"IF($C$263=\"\",\"\",J263/$C$263)","v":""},null,{"$f":"IF($C$263=\"\",\"\",L263/$C$263)","v":""},null,{"$f":"IF($C$263=\"\",\"\",N263/$C$263)","v":""},null,{"$f":"IF($C$263=\"\",\"\",P263/$C$263)","v":""},null,{"$f":"IF($C$263=\"\",\"\",R263/$C$263)","v":""},null,{"$f":"IF($C$263=\"\",\"\",T263/$C$263)","v":""},null,{"$f":"IF($C$263=\"\",\"\",V263/$C$263)","v":""},null,{"$f":"IF($C$263=\"\",\"\",X263/$C$263)","v":""},null,{"$f":"IF($C$263=\"\",\"\",Z263/$C$263)","v":""},null,{"$f":"IF($C$263=\"\",\"\",AB263/$C$263)","v":""},null,{"$f":"IF($C$263=\"\",\"\",AD263/$C$263)","v":""},null,{"$f":"IF($C$263=\"\",\"\",AF263/$C$263)","v":""},null,{"$f":"IF($C$263=\"\",\"\",AH263/$C$263)","v":""},null,{"$f":"IF($C$263=\"\",\"\",AJ263/$C$263)","v":""},null,{"$f":"IF($C$263=\"\",\"\",AL263/$C$263)","v":""},null,{"$f":"IF($C$263=\"\",\"\",AN263/$C$263)","v":""},null,{"$f":"IF($C$263=\"\",\"\",AP263/$C$263)","v":""},null,{"$f":"IF($C$263=\"\",\"\",AR263/$C$263)","v":""},null,{"$f":"IF($C$263=\"\",\"\",AT263/$C$263)","v":""},null,{"$f":"IF($C$263=\"\",\"\",AV263/$C$263)","v":""},null,{"$f":"IF($C$263=\"\",\"\",AX263/$C$263)","v":""},null,{"$f":"IF($C$263=\"\",\"\",AZ263/$C$263)","v":""},null,{"$f":"IF($C$263=\"\",\"\",BB263/$C$263)","v":""},null,0]
["    11.1.10","    TMC Block Diagram",null,null,{"$f":"IF($C$264=\"\",\"\",F264/$C$264)","v":""},null,{"$f":"IF($C$264=\"\",\"\",H264/$C$264)","v":""},null,{"$f":"IF($C$264=\"\",\"\",J264/$C$264)","v":""},null,{"$f":"IF($C$264=\"\",\"\",L264/$C$264)","v":""},null,{"$f":"IF($C$264=\"\",\"\",N264/$C$264)","v":""},null,{"$f":"IF($C$264=\"\",\"\",P264/$C$264)","v":""},null,{"$f":"IF($C$264=\"\",\"\",R264/$C$264)","v":""},null,{"$f":"IF($C$264=\"\",\"\",T264/$C$264)","v":""},null,{"$f":"IF($C$264=\"\",\"\",V264/$C$264)","v":""},null,{"$f":"IF($C$264=\"\",\"\",X264/$C$264)","v":""},null,{"$f":"IF($C$264=\"\",\"\",Z264/$C$264)","v":""},null,{"$f":"IF($C$264=\"\",\"\",AB264/$C$264)","v":""},null,{"$f":"IF($C$264=\"\",\"\",AD264/$C$264)","v":""},null,{"$f":"IF($C$264=\"\",\"\",AF264/$C$264)","v":""},null,{"$f":"IF($C$264=\"\",\"\",AH264/$C$264)","v":""},null,{"$f":"IF($C$264=\"\",\"\",AJ264/$C$264)","v":""},null,{"$f":"IF($C$264=\"\",\"\",AL264/$C$264)","v":""},null,{"$f":"IF($C$264=\"\",\"\",AN264/$C$264)","v":""},null,{"$f":"IF($C$264=\"\",\"\",AP264/$C$264)","v":""},null,{"$f":"IF($C$264=\"\",\"\",AR264/$C$264)","v":""},null,{"$f":"IF($C$264=\"\",\"\",AT264/$C$264)","v":""},null,{"$f":"IF($C$264=\"\",\"\",AV264/$C$264)","v":""},null,{"$f":"IF($C$264=\"\",\"\",AX264/$C$264)","v":""},null,{"$f":"IF($C$264=\"\",\"\",AZ264/$C$264)","v":""},null,{"$f":"IF($C$264=\"\",\"\",BB264/$C$264)","v":""},null,0]
["    11.1.11","    System-Wide Block Diagrams",null,null,{"$f":"IF($C$265=\"\",\"\",F265/$C$265)","v":""},null,{"$f":"IF($C$265=\"\",\"\",H265/$C$265)","v":""},null,{"$f":"IF($C$265=\"\",\"\",J265/$C$265)","v":""},null,{"$f":"IF($C$265=\"\",\"\",L265/$C$265)","v":""},null,{"$f":"IF($C$265=\"\",\"\",N265/$C$265)","v":""},null,{"$f":"IF($C$265=\"\",\"\",P265/$C$265)","v":""},null,{"$f":"IF($C$265=\"\",\"\",R265/$C$265)","v":""},null,{"$f":"IF($C$265=\"\",\"\",T265/$C$265)","v":""},null,{"$f":"IF($C$265=\"\",\"\",V265/$C$265)","v":""},null,{"$f":"IF($C$265=\"\",\"\",X265/$C$265)","v":""},null,{"$f":"IF($C$265=\"\",\"\",Z265/$C$265)","v":""},null,{"$f":"IF($C$265=\"\",\"\",AB265/$C$265)","v":""},null,{"$f":"IF($C$265=\"\",\"\",AD265/$C$265)","v":""},null,{"$f":"IF($C$265=\"\",\"\",AF265/$C$265)","v":""},null,{"$f":"IF($C$265=\"\",\"\",AH265/$C$265)","v":""},null,{"$f":"IF($C$265=\"\",\"\",AJ265/$C$265)","v":""},null,{"$f":"IF($C$265=\"\",\"\",AL265/$C$265)","v":""},null,{"$f":"IF($C$265=\"\",\"\",AN265/$C$265)","v":""},null,{"$f":"IF($C$265=\"\",\"\",AP265/$C$265)","v":""},null,{"$f":"IF($C$265=\"\",\"\",AR265/$C$265)","v":""},null,{"$f":"IF($C$265=\"\",\"\",AT265/$C$265)","v":""},null,{"$f":"IF($C$265=\"\",\"\",AV265/$C$265)","v":""},null,{"$f":"IF($C$265=\"\",\"\",AX265/$C$265)","v":""},null,{"$f":"IF($C$265=\"\",\"\",AZ265/$C$265)","v":""},null,{"$f":"IF($C$265=\"\",\"\",BB265/$C$265)","v":""},null,0]
["    11.1.12","    Sheet Layout Key for UMR/Cable Routing \n    Sheets",null,null,{"$f":"IF($C$266=\"\",\"\",F266/$C$266)","v":""},null,{"$f":"IF($C$266=\"\",\"\",H266/$C$266)","v":""},null,{"$f":"IF($C$266=\"\",\"\",J266/$C$266)","v":""},null,{"$f":"IF($C$266=\"\",\"\",L266/$C$266)","v":""},null,{"$f":"IF($C$266=\"\",\"\",N266/$C$266)","v":""},null,{"$f":"IF($C$266=\"\",\"\",P266/$C$266)","v":""},null,{"$f":"IF($C$266=\"\",\"\",R266/$C$266)","v":""},null,{"$f":"IF($C$266=\"\",\"\",T266/$C$266)","v":""},null,{"$f":"IF($C$266=\"\",\"\",V266/$C$266)","v":""},null,{"$f":"IF($C$266=\"\",\"\",X266/$C$266)","v":""},null,{"$f":"IF($C$266=\"\",\"\",Z266/$C$266)","v":""},null,{"$f":"IF($C$266=\"\",\"\",AB266/$C$266)","v":""},null,{"$f":"IF($C$266=\"\",\"\",AD266/$C$266)","v":""},null,{"$f":"IF($C$266=\"\",\"\",AF266/$C$266)","v":""},null,{"$f":"IF($C$266=\"\",\"\",AH266/$C$266)","v":""},null,{"$f":"IF($C$266=\"\",\"\",AJ266/$C$266)","v":""},null,{"$f":"IF($C$266=\"\",\"\",AL266/$C$266)","v":""},null,{"$f":"IF($C$266=\"\",\"\",AN266/$C$266)","v":""},null,{"$f":"IF($C$266=\"\",\"\",AP266/$C$266)","v":""},null,{"$f":"IF($C$266=\"\",\"\",AR266/$C$266)","v":""},null,{"$f":"IF($C$266=\"\",\"\",AT266/$C$266)","v":""},null,{"$f":"IF($C$266=\"\",\"\",AV266/$C$266)","v":""},null,{"$f":"IF($C$266=\"\",\"\",AX266/$C$266)","v":""},null,{"$f":"IF($C$266=\"\",\"\",AZ266/$C$266)","v":""},null,{"$f":"IF($C$266=\"\",\"\",BB266/$C$266)","v":""},null,0]
["    11.1.13","    Construction Notes",null,null,{"$f":"IF($C$267=\"\",\"\",F267/$C$267)","v":""},null,{"$f":"IF($C$267=\"\",\"\",H267/$C$267)","v":""},null,{"$f":"IF($C$267=\"\",\"\",J267/$C$267)","v":""},null,{"$f":"IF($C$267=\"\",\"\",L267/$C$267)","v":""},null,{"$f":"IF($C$267=\"\",\"\",N267/$C$267)","v":""},null,{"$f":"IF($C$267=\"\",\"\",P267/$C$267)","v":""},null,{"$f":"IF($C$267=\"\",\"\",R267/$C$267)","v":""},null,{"$f":"IF($C$267=\"\",\"\",T267/$C$267)","v":""},null,{"$f":"IF($C$267=\"\",\"\",V267/$C$267)","v":""},null,{"$f":"IF($C$267=\"\",\"\",X267/$C$267)","v":""},null,{"$f":"IF($C$267=\"\",\"\",Z267/$C$267)","v":""},null,{"$f":"IF($C$267=\"\",\"\",AB267/$C$267)","v":""},null,{"$f":"IF($C$267=\"\",\"\",AD267/$C$267)","v":""},null,{"$f":"IF($C$267=\"\",\"\",AF267/$C$267)","v":""},null,{"$f":"IF($C$267=\"\",\"\",AH267/$C$267)","v":""},null,{"$f":"IF($C$267=\"\",\"\",AJ267/$C$267)","v":""},null,{"$f":"IF($C$267=\"\",\"\",AL267/$C$267)","v":""},null,{"$f":"IF($C$267=\"\",\"\",AN267/$C$267)","v":""},null,{"$f":"IF($C$267=\"\",\"\",AP267/$C$267)","v":""},null,{"$f":"IF($C$267=\"\",\"\",AR267/$C$267)","v":""},null,{"$f":"IF($C$267=\"\",\"\",AT267/$C$267)","v":""},null,{"$f":"IF($C$267=\"\",\"\",AV267/$C$267)","v":""},null,{"$f":"IF($C$267=\"\",\"\",AX267/$C$267)","v":""},null,{"$f":"IF($C$267=\"\",\"\",AZ267/$C$267)","v":""},null,{"$f":"IF($C$267=\"\",\"\",BB267/$C$267)","v":""},null,0]
["    11.1.14","    Communications Cable Routing Sheets",null,null,{"$f":"IF($C$268=\"\",\"\",F268/$C$268)","v":""},null,{"$f":"IF($C$268=\"\",\"\",H268/$C$268)","v":""},null,{"$f":"IF($C$268=\"\",\"\",J268/$C$268)","v":""},null,{"$f":"IF($C$268=\"\",\"\",L268/$C$268)","v":""},null,{"$f":"IF($C$268=\"\",\"\",N268/$C$268)","v":""},null,{"$f":"IF($C$268=\"\",\"\",P268/$C$268)","v":""},null,{"$f":"IF($C$268=\"\",\"\",R268/$C$268)","v":""},null,{"$f":"IF($C$268=\"\",\"\",T268/$C$268)","v":""},null,{"$f":"IF($C$268=\"\",\"\",V268/$C$268)","v":""},null,{"$f":"IF($C$268=\"\",\"\",X268/$C$268)","v":""},null,{"$f":"IF($C$268=\"\",\"\",Z268/$C$268)","v":""},null,{"$f":"IF($C$268=\"\",\"\",AB268/$C$268)","v":""},null,{"$f":"IF($C$268=\"\",\"\",AD268/$C$268)","v":""},null,{"$f":"IF($C$268=\"\",\"\",AF268/$C$268)","v":""},null,{"$f":"IF($C$268=\"\",\"\",AH268/$C$268)","v":""},null,{"$f":"IF($C$268=\"\",\"\",AJ268/$C$268)","v":""},null,{"$f":"IF($C$268=\"\",\"\",AL268/$C$268)","v":""},null,{"$f":"IF($C$268=\"\",\"\",AN268/$C$268)","v":""},null,{"$f":"IF($C$268=\"\",\"\",AP268/$C$268)","v":""},null,{"$f":"IF($C$268=\"\",\"\",AR268/$C$268)","v":""},null,{"$f":"IF($C$268=\"\",\"\",AT268/$C$268)","v":""},null,{"$f":"IF($C$268=\"\",\"\",AV268/$C$268)","v":""},null,{"$f":"IF($C$268=\"\",\"\",AX268/$C$268)","v":""},null,{"$f":"IF($C$268=\"\",\"\",AZ268/$C$268)","v":""},null,{"$f":"IF($C$268=\"\",\"\",BB268/$C$268)","v":""},null,0]
["    11.1.15","    Typical Details",null,null,{"$f":"IF($C$269=\"\",\"\",F269/$C$269)","v":""},null,{"$f":"IF($C$269=\"\",\"\",H269/$C$269)","v":""},null,{"$f":"IF($C$269=\"\",\"\",J269/$C$269)","v":""},null,{"$f":"IF($C$269=\"\",\"\",L269/$C$269)","v":""},null,{"$f":"IF($C$269=\"\",\"\",N269/$C$269)","v":""},null,{"$f":"IF($C$269=\"\",\"\",P269/$C$269)","v":""},null,{"$f":"IF($C$269=\"\",\"\",R269/$C$269)","v":""},null,{"$f":"IF($C$269=\"\",\"\",T269/$C$269)","v":""},null,{"$f":"IF($C$269=\"\",\"\",V269/$C$269)","v":""},null,{"$f":"IF($C$269=\"\",\"\",X269/$C$269)","v":""},null,{"$f":"IF($C$269=\"\",\"\",Z269/$C$269)","v":""},null,{"$f":"IF($C$269=\"\",\"\",AB269/$C$269)","v":""},null,{"$f":"IF($C$269=\"\",\"\",AD269/$C$269)","v":""},null,{"$f":"IF($C$269=\"\",\"\",AF269/$C$269)","v":""},null,{"$f":"IF($C$269=\"\",\"\",AH269/$C$269)","v":""},null,{"$f":"IF($C$269=\"\",\"\",AJ269/$C$269)","v":""},null,{"$f":"IF($C$269=\"\",\"\",AL269/$C$269)","v":""},null,{"$f":"IF($C$269=\"\",\"\",AN269/$C$269)","v":""},null,{"$f":"IF($C$269=\"\",\"\",AP269/$C$269)","v":""},null,{"$f":"IF($C$269=\"\",\"\",AR269/$C$269)","v":""},null,{"$f":"IF($C$269=\"\",\"\",AT269/$C$269)","v":""},null,{"$f":"IF($C$269=\"\",\"\",AV269/$C$269)","v":""},null,{"$f":"IF($C$269=\"\",\"\",AX269/$C$269)","v":""},null,{"$f":"IF($C$269=\"\",\"\",AZ269/$C$269)","v":""},null,{"$f":"IF($C$269=\"\",\"\",BB269/$C$269)","v":""},null,0]
["    11.1.16","    Summary of Work by CCTV Location",null,null,{"$f":"IF($C$270=\"\",\"\",F270/$C$270)","v":""},null,{"$f":"IF($C$270=\"\",\"\",H270/$C$270)","v":""},null,{"$f":"IF($C$270=\"\",\"\",J270/$C$270)","v":""},null,{"$f":"IF($C$270=\"\",\"\",L270/$C$270)","v":""},null,{"$f":"IF($C$270=\"\",\"\",N270/$C$270)","v":""},null,{"$f":"IF($C$270=\"\",\"\",P270/$C$270)","v":""},null,{"$f":"IF($C$270=\"\",\"\",R270/$C$270)","v":""},null,{"$f":"IF($C$270=\"\",\"\",T270/$C$270)","v":""},null,{"$f":"IF($C$270=\"\",\"\",V270/$C$270)","v":""},null,{"$f":"IF($C$270=\"\",\"\",X270/$C$270)","v":""},null,{"$f":"IF($C$270=\"\",\"\",Z270/$C$270)","v":""},null,{"$f":"IF($C$270=\"\",\"\",AB270/$C$270)","v":""},null,{"$f":"IF($C$270=\"\",\"\",AD270/$C$270)","v":""},null,{"$f":"IF($C$270=\"\",\"\",AF270/$C$270)","v":""},null,{"$f":"IF($C$270=\"\",\"\",AH270/$C$270)","v":""},null,{"$f":"IF($C$270=\"\",\"\",AJ270/$C$270)","v":""},null,{"$f":"IF($C$270=\"\",\"\",AL270/$C$270)","v":""},null,{"$f":"IF($C$270=\"\",\"\",AN270/$C$270)","v":""},null,{"$f":"IF($C$270=\"\",\"\",AP270/$C$270)","v":""},null,{"$f":"IF($C$270=\"\",\"\",AR270/$C$270)","v":""},null,{"$f":"IF($C$270=\"\",\"\",AT270/$C$270)","v":""},null,{"$f":"IF($C$270=\"\",\"\",AV270/$C$270)","v":""},null,{"$f":"IF($C$270=\"\",\"\",AX270/$C$270)","v":""},null,{"$f":"IF($C$270=\"\",\"\",AZ270/$C$270)","v":""},null,{"$f":"IF($C$270=\"\",\"\",BB270/$C$270)","v":""},null,0]
["    11.1.17","    CCTV Site Plans",null,null,{"$f":"IF($C$271=\"\",\"\",F271/$C$271)","v":""},null,{"$f":"IF($C$271=\"\",\"\",H271/$C$271)","v":""},null,{"$f":"IF($C$271=\"\",\"\",J271/$C$271)","v":""},null,{"$f":"IF($C$271=\"\",\"\",L271/$C$271)","v":""},null,{"$f":"IF($C$271=\"\",\"\",N271/$C$271)","v":""},null,{"$f":"IF($C$271=\"\",\"\",P271/$C$271)","v":""},null,{"$f":"IF($C$271=\"\",\"\",R271/$C$271)","v":""},null,{"$f":"IF($C$271=\"\",\"\",T271/$C$271)","v":""},null,{"$f":"IF($C$271=\"\",\"\",V271/$C$271)","v":""},null,{"$f":"IF($C$271=\"\",\"\",X271/$C$271)","v":""},null,{"$f":"IF($C$271=\"\",\"\",Z271/$C$271)","v":""},null,{"$f":"IF($C$271=\"\",\"\",AB271/$C$271)","v":""},null,{"$f":"IF($C$271=\"\",\"\",AD271/$C$271)","v":""},null,{"$f":"IF($C$271=\"\",\"\",AF271/$C$271)","v":""},null,{"$f":"IF($C$271=\"\",\"\",AH271/$C$271)","v":""},null,{"$f":"IF($C$271=\"\",\"\",AJ271/$C$271)","v":""},null,{"$f":"IF($C$271=\"\",\"\",AL271/$C$271)","v":""},null,{"$f":"IF($C$271=\"\",\"\",AN271/$C$271)","v":""},null,{"$f":"IF($C$271=\"\",\"\",AP271/$C$271)","v":""},null,{"$f":"IF($C$271=\"\",\"\",AR271/$C$271)","v":""},null,{"$f":"IF($C$271=\"\",\"\",AT271/$C$271)","v":""},null,{"$f":"IF($C$271=\"\",\"\",AV271/$C$271)","v":""},null,{"$f":"IF($C$271=\"\",\"\",AX271/$C$271)","v":""},null,{"$f":"IF($C$271=\"\",\"\",AZ271/$C$271)","v":""},null,{"$f":"IF($C$271=\"\",\"\",BB271/$C$271)","v":""},null,0]
["    11.1.18","    Wireless Design",null,null,{"$f":"IF($C$272=\"\",\"\",F272/$C$272)","v":""},null,{"$f":"IF($C$272=\"\",\"\",H272/$C$272)","v":""},null,{"$f":"IF($C$272=\"\",\"\",J272/$C$272)","v":""},null,{"$f":"IF($C$272=\"\",\"\",L272/$C$272)","v":""},null,{"$f":"IF($C$272=\"\",\"\",N272/$C$272)","v":""},null,{"$f":"IF($C$272=\"\",\"\",P272/$C$272)","v":""},null,{"$f":"IF($C$272=\"\",\"\",R272/$C$272)","v":""},null,{"$f":"IF($C$272=\"\",\"\",T272/$C$272)","v":""},null,{"$f":"IF($C$272=\"\",\"\",V272/$C$272)","v":""},null,{"$f":"IF($C$272=\"\",\"\",X272/$C$272)","v":""},null,{"$f":"IF($C$272=\"\",\"\",Z272/$C$272)","v":""},null,{"$f":"IF($C$272=\"\",\"\",AB272/$C$272)","v":""},null,{"$f":"IF($C$272=\"\",\"\",AD272/$C$272)","v":""},null,{"$f":"IF($C$272=\"\",\"\",AF272/$C$272)","v":""},null,{"$f":"IF($C$272=\"\",\"\",AH272/$C$272)","v":""},null,{"$f":"IF($C$272=\"\",\"\",AJ272/$C$272)","v":""},null,{"$f":"IF($C$272=\"\",\"\",AL272/$C$272)","v":""},null,{"$f":"IF($C$272=\"\",\"\",AN272/$C$272)","v":""},null,{"$f":"IF($C$272=\"\",\"\",AP272/$C$272)","v":""},null,{"$f":"IF($C$272=\"\",\"\",AR272/$C$272)","v":""},null,{"$f":"IF($C$272=\"\",\"\",AT272/$C$272)","v":""},null,{"$f":"IF($C$272=\"\",\"\",AV272/$C$272)","v":""},null,{"$f":"IF($C$272=\"\",\"\",AX272/$C$272)","v":""},null,{"$f":"IF($C$272=\"\",\"\",AZ272/$C$272)","v":""},null,{"$f":"IF($C$272=\"\",\"\",BB272/$C$272)","v":""},null,0]
["    11.1.19","    Municipal Remote Monitoring Station Details",null,null,{"$f":"IF($C$273=\"\",\"\",F273/$C$273)","v":""},null,{"$f":"IF($C$273=\"\",\"\",H273/$C$273)","v":""},null,{"$f":"IF($C$273=\"\",\"\",J273/$C$273)","v":""},null,{"$f":"IF($C$273=\"\",\"\",L273/$C$273)","v":""},null,{"$f":"IF($C$273=\"\",\"\",N273/$C$273)","v":""},null,{"$f":"IF($C$273=\"\",\"\",P273/$C$273)","v":""},null,{"$f":"IF($C$273=\"\",\"\",R273/$C$273)","v":""},null,{"$f":"IF($C$273=\"\",\"\",T273/$C$273)","v":""},null,{"$f":"IF($C$273=\"\",\"\",V273/$C$273)","v":""},null,{"$f":"IF($C$273=\"\",\"\",X273/$C$273)","v":""},null,{"$f":"IF($C$273=\"\",\"\",Z273/$C$273)","v":""},null,{"$f":"IF($C$273=\"\",\"\",AB273/$C$273)","v":""},null,{"$f":"IF($C$273=\"\",\"\",AD273/$C$273)","v":""},null,{"$f":"IF($C$273=\"\",\"\",AF273/$C$273)","v":""},null,{"$f":"IF($C$273=\"\",\"\",AH273/$C$273)","v":""},null,{"$f":"IF($C$273=\"\",\"\",AJ273/$C$273)","v":""},null,{"$f":"IF($C$273=\"\",\"\",AL273/$C$273)","v":""},null,{"$f":"IF($C$273=\"\",\"\",AN273/$C$273)","v":""},null,{"$f":"IF($C$273=\"\",\"\",AP273/$C$273)","v":""},null,{"$f":"IF($C$273=\"\",\"\",AR273/$C$273)","v":""},null,{"$f":"IF($C$273=\"\",\"\",AT273/$C$273)","v":""},null,{"$f":"IF($C$273=\"\",\"\",AV273/$C$273)","v":""},null,{"$f":"IF($C$273=\"\",\"\",AX273/$C$273)","v":""},null,{"$f":"IF($C$273=\"\",\"\",AZ273/$C$273)","v":""},null,{"$f":"IF($C$273=\"\",\"\",BB273/$C$273)","v":""},null,0]
["    11.1.20","    TMC Modifications",null,null,{"$f":"IF($C$274=\"\",\"\",F274/$C$274)","v":""},null,{"$f":"IF($C$274=\"\",\"\",H274/$C$274)","v":""},null,{"$f":"IF($C$274=\"\",\"\",J274/$C$274)","v":""},null,{"$f":"IF($C$274=\"\",\"\",L274/$C$274)","v":""},null,{"$f":"IF($C$274=\"\",\"\",N274/$C$274)","v":""},null,{"$f":"IF($C$274=\"\",\"\",P274/$C$274)","v":""},null,{"$f":"IF($C$274=\"\",\"\",R274/$C$274)","v":""},null,{"$f":"IF($C$274=\"\",\"\",T274/$C$274)","v":""},null,{"$f":"IF($C$274=\"\",\"\",V274/$C$274)","v":""},null,{"$f":"IF($C$274=\"\",\"\",X274/$C$274)","v":""},null,{"$f":"IF($C$274=\"\",\"\",Z274/$C$274)","v":""},null,{"$f":"IF($C$274=\"\",\"\",AB274/$C$274)","v":""},null,{"$f":"IF($C$274=\"\",\"\",AD274/$C$274)","v":""},null,{"$f":"IF($C$274=\"\",\"\",AF274/$C$274)","v":""},null,{"$f":"IF($C$274=\"\",\"\",AH274/$C$274)","v":""},null,{"$f":"IF($C$274=\"\",\"\",AJ274/$C$274)","v":""},null,{"$f":"IF($C$274=\"\",\"\",AL274/$C$274)","v":""},null,{"$f":"IF($C$274=\"\",\"\",AN274/$C$274)","v":""},null,{"$f":"IF($C$274=\"\",\"\",AP274/$C$274)","v":""},null,{"$f":"IF($C$274=\"\",\"\",AR274/$C$274)","v":""},null,{"$f":"IF($C$274=\"\",\"\",AT274/$C$274)","v":""},null,{"$f":"IF($C$274=\"\",\"\",AV274/$C$274)","v":""},null,{"$f":"IF($C$274=\"\",\"\",AX274/$C$274)","v":""},null,{"$f":"IF($C$274=\"\",\"\",AZ274/$C$274)","v":""},null,{"$f":"IF($C$274=\"\",\"\",BB274/$C$274)","v":""},null,0]
["    11.1.21","    Special Details",null,null,{"$f":"IF($C$275=\"\",\"\",F275/$C$275)","v":""},null,{"$f":"IF($C$275=\"\",\"\",H275/$C$275)","v":""},null,{"$f":"IF($C$275=\"\",\"\",J275/$C$275)","v":""},null,{"$f":"IF($C$275=\"\",\"\",L275/$C$275)","v":""},null,{"$f":"IF($C$275=\"\",\"\",N275/$C$275)","v":""},null,{"$f":"IF($C$275=\"\",\"\",P275/$C$275)","v":""},null,{"$f":"IF($C$275=\"\",\"\",R275/$C$275)","v":""},null,{"$f":"IF($C$275=\"\",\"\",T275/$C$275)","v":""},null,{"$f":"IF($C$275=\"\",\"\",V275/$C$275)","v":""},null,{"$f":"IF($C$275=\"\",\"\",X275/$C$275)","v":""},null,{"$f":"IF($C$275=\"\",\"\",Z275/$C$275)","v":""},null,{"$f":"IF($C$275=\"\",\"\",AB275/$C$275)","v":""},null,{"$f":"IF($C$275=\"\",\"\",AD275/$C$275)","v":""},null,{"$f":"IF($C$275=\"\",\"\",AF275/$C$275)","v":""},null,{"$f":"IF($C$275=\"\",\"\",AH275/$C$275)","v":""},null,{"$f":"IF($C$275=\"\",\"\",AJ275/$C$275)","v":""},null,{"$f":"IF($C$275=\"\",\"\",AL275/$C$275)","v":""},null,{"$f":"IF($C$275=\"\",\"\",AN275/$C$275)","v":""},null,{"$f":"IF($C$275=\"\",\"\",AP275/$C$275)","v":""},null,{"$f":"IF($C$275=\"\",\"\",AR275/$C$275)","v":""},null,{"$f":"IF($C$275=\"\",\"\",AT275/$C$275)","v":""},null,{"$f":"IF($C$275=\"\",\"\",AV275/$C$275)","v":""},null,{"$f":"IF($C$275=\"\",\"\",AX275/$C$275)","v":""},null,{"$f":"IF($C$275=\"\",\"\",AZ275/$C$275)","v":""},null,{"$f":"IF($C$275=\"\",\"\",BB275/$C$275)","v":""},null,0]
["    11.1.22","    Splice Diagrams",null,null,{"$f":"IF($C$276=\"\",\"\",F276/$C$276)","v":""},null,{"$f":"IF($C$276=\"\",\"\",H276/$C$276)","v":""},null,{"$f":"IF($C$276=\"\",\"\",J276/$C$276)","v":""},null,{"$f":"IF($C$276=\"\",\"\",L276/$C$276)","v":""},null,{"$f":"IF($C$276=\"\",\"\",N276/$C$276)","v":""},null,{"$f":"IF($C$276=\"\",\"\",P276/$C$276)","v":""},null,{"$f":"IF($C$276=\"\",\"\",R276/$C$276)","v":""},null,{"$f":"IF($C$276=\"\",\"\",T276/$C$276)","v":""},null,{"$f":"IF($C$276=\"\",\"\",V276/$C$276)","v":""},null,{"$f":"IF($C$276=\"\",\"\",X276/$C$276)","v":""},null,{"$f":"IF($C$276=\"\",\"\",Z276/$C$276)","v":""},null,{"$f":"IF($C$276=\"\",\"\",AB276/$C$276)","v":""},null,{"$f":"IF($C$276=\"\",\"\",AD276/$C$276)","v":""},null,{"$f":"IF($C$276=\"\",\"\",AF276/$C$276)","v":""},null,{"$f":"IF($C$276=\"\",\"\",AH276/$C$276)","v":""},null,{"$f":"IF($C$276=\"\",\"\",AJ276/$C$276)","v":""},null,{"$f":"IF($C$276=\"\",\"\",AL276/$C$276)","v":""},null,{"$f":"IF($C$276=\"\",\"\",AN276/$C$276)","v":""},null,{"$f":"IF($C$276=\"\",\"\",AP276/$C$276)","v":""},null,{"$f":"IF($C$276=\"\",\"\",AR276/$C$276)","v":""},null,{"$f":"IF($C$276=\"\",\"\",AT276/$C$276)","v":""},null,{"$f":"IF($C$276=\"\",\"\",AV276/$C$276)","v":""},null,{"$f":"IF($C$276=\"\",\"\",AX276/$C$276)","v":""},null,{"$f":"IF($C$276=\"\",\"\",AZ276/$C$276)","v":""},null,{"$f":"IF($C$276=\"\",\"\",BB276/$C$276)","v":""},null,0]
["    11.1.23","    Summary of Work by Intersection",null,null,{"$f":"IF($C$277=\"\",\"\",F277/$C$277)","v":""},null,{"$f":"IF($C$277=\"\",\"\",H277/$C$277)","v":""},null,{"$f":"IF($C$277=\"\",\"\",J277/$C$277)","v":""},null,{"$f":"IF($C$277=\"\",\"\",L277/$C$277)","v":""},null,{"$f":"IF($C$277=\"\",\"\",N277/$C$277)","v":""},null,{"$f":"IF($C$277=\"\",\"\",P277/$C$277)","v":""},null,{"$f":"IF($C$277=\"\",\"\",R277/$C$277)","v":""},null,{"$f":"IF($C$277=\"\",\"\",T277/$C$277)","v":""},null,{"$f":"IF($C$277=\"\",\"\",V277/$C$277)","v":""},null,{"$f":"IF($C$277=\"\",\"\",X277/$C$277)","v":""},null,{"$f":"IF($C$277=\"\",\"\",Z277/$C$277)","v":""},null,{"$f":"IF($C$277=\"\",\"\",AB277/$C$277)","v":""},null,{"$f":"IF($C$277=\"\",\"\",AD277/$C$277)","v":""},null,{"$f":"IF($C$277=\"\",\"\",AF277/$C$277)","v":""},null,{"$f":"IF($C$277=\"\",\"\",AH277/$C$277)","v":""},null,{"$f":"IF($C$277=\"\",\"\",AJ277/$C$277)","v":""},null,{"$f":"IF($C$277=\"\",\"\",AL277/$C$277)","v":""},null,{"$f":"IF($C$277=\"\",\"\",AN277/$C$277)","v":""},null,{"$f":"IF($C$277=\"\",\"\",AP277/$C$277)","v":""},null,{"$f":"IF($C$277=\"\",\"\",AR277/$C$277)","v":""},null,{"$f":"IF($C$277=\"\",\"\",AT277/$C$277)","v":""},null,{"$f":"IF($C$277=\"\",\"\",AV277/$C$277)","v":""},null,{"$f":"IF($C$277=\"\",\"\",AX277/$C$277)","v":""},null,{"$f":"IF($C$277=\"\",\"\",AZ277/$C$277)","v":""},null,{"$f":"IF($C$277=\"\",\"\",BB277/$C$277)","v":""},null,0]
["    11.1.24","    Incorporate NCDOT Traffic Signal Design Plans",null,null,{"$f":"IF($C$278=\"\",\"\",F278/$C$278)","v":""},null,{"$f":"IF($C$278=\"\",\"\",H278/$C$278)","v":""},null,{"$f":"IF($C$278=\"\",\"\",J278/$C$278)","v":""},null,{"$f":"IF($C$278=\"\",\"\",L278/$C$278)","v":""},null,{"$f":"IF($C$278=\"\",\"\",N278/$C$278)","v":""},null,{"$f":"IF($C$278=\"\",\"\",P278/$C$278)","v":""},null,{"$f":"IF($C$278=\"\",\"\",R278/$C$278)","v":""},null,{"$f":"IF($C$278=\"\",\"\",T278/$C$278)","v":""},null,{"$f":"IF($C$278=\"\",\"\",V278/$C$278)","v":""},null,{"$f":"IF($C$278=\"\",\"\",X278/$C$278)","v":""},null,{"$f":"IF($C$278=\"\",\"\",Z278/$C$278)","v":""},null,{"$f":"IF($C$278=\"\",\"\",AB278/$C$278)","v":""},null,{"$f":"IF($C$278=\"\",\"\",AD278/$C$278)","v":""},null,{"$f":"IF($C$278=\"\",\"\",AF278/$C$278)","v":""},null,{"$f":"IF($C$278=\"\",\"\",AH278/$C$278)","v":""},null,{"$f":"IF($C$278=\"\",\"\",AJ278/$C$278)","v":""},null,{"$f":"IF($C$278=\"\",\"\",AL278/$C$278)","v":""},null,{"$f":"IF($C$278=\"\",\"\",AN278/$C$278)","v":""},null,{"$f":"IF($C$278=\"\",\"\",AP278/$C$278)","v":""},null,{"$f":"IF($C$278=\"\",\"\",AR278/$C$278)","v":""},null,{"$f":"IF($C$278=\"\",\"\",AT278/$C$278)","v":""},null,{"$f":"IF($C$278=\"\",\"\",AV278/$C$278)","v":""},null,{"$f":"IF($C$278=\"\",\"\",AX278/$C$278)","v":""},null,{"$f":"IF($C$278=\"\",\"\",AZ278/$C$278)","v":""},null,{"$f":"IF($C$278=\"\",\"\",BB278/$C$278)","v":""},null,0]
["    11.1.25","    City Traffic Signal Plans"]
["        11.1.25.1","        Intersection Base Mapping",null,null,{"$f":"IF($C$280=\"\",\"\",F280/$C$280)","v":""},null,{"$f":"IF($C$280=\"\",\"\",H280/$C$280)","v":""},null,{"$f":"IF($C$280=\"\",\"\",J280/$C$280)","v":""},null,{"$f":"IF($C$280=\"\",\"\",L280/$C$280)","v":""},null,{"$f":"IF($C$280=\"\",\"\",N280/$C$280)","v":""},null,{"$f":"IF($C$280=\"\",\"\",P280/$C$280)","v":""},null,{"$f":"IF($C$280=\"\",\"\",R280/$C$280)","v":""},null,{"$f":"IF($C$280=\"\",\"\",T280/$C$280)","v":""},null,{"$f":"IF($C$280=\"\",\"\",V280/$C$280)","v":""},null,{"$f":"IF($C$280=\"\",\"\",X280/$C$280)","v":""},null,{"$f":"IF($C$280=\"\",\"\",Z280/$C$280)","v":""},null,{"$f":"IF($C$280=\"\",\"\",AB280/$C$280)","v":""},null,{"$f":"IF($C$280=\"\",\"\",AD280/$C$280)","v":""},null,{"$f":"IF($C$280=\"\",\"\",AF280/$C$280)","v":""},null,{"$f":"IF($C$280=\"\",\"\",AH280/$C$280)","v":""},null,{"$f":"IF($C$280=\"\",\"\",AJ280/$C$280)","v":""},null,{"$f":"IF($C$280=\"\",\"\",AL280/$C$280)","v":""},null,{"$f":"IF($C$280=\"\",\"\",AN280/$C$280)","v":""},null,{"$f":"IF($C$280=\"\",\"\",AP280/$C$280)","v":""},null,{"$f":"IF($C$280=\"\",\"\",AR280/$C$280)","v":""},null,{"$f":"IF($C$280=\"\",\"\",AT280/$C$280)","v":""},null,{"$f":"IF($C$280=\"\",\"\",AV280/$C$280)","v":""},null,{"$f":"IF($C$280=\"\",\"\",AX280/$C$280)","v":""},null,{"$f":"IF($C$280=\"\",\"\",AZ280/$C$280)","v":""},null,{"$f":"IF($C$280=\"\",\"\",BB280/$C$280)","v":""},null,{"$f":"SUM(BB280,AZ280,AX280,AV280,AT280,AR280,AP280,AN280,AL280,AJ280,AH280,AF280,AD280,AB280,Z280,X280,V280,T280,R280,P280,N280,L280,J280,H280,F280)","v":0}]
["        11.1.25.2","        Plans",null,null,{"$f":"IF($C$281=\"\",\"\",F281/$C$281)","v":""},null,{"$f":"IF($C$281=\"\",\"\",H281/$C$281)","v":""},null,{"$f":"IF($C$281=\"\",\"\",J281/$C$281)","v":""},null,{"$f":"IF($C$281=\"\",\"\",L281/$C$281)","v":""},null,{"$f":"IF($C$281=\"\",\"\",N281/$C$281)","v":""},null,{"$f":"IF($C$281=\"\",\"\",P281/$C$281)","v":""},null,{"$f":"IF($C$281=\"\",\"\",R281/$C$281)","v":""},null,{"$f":"IF($C$281=\"\",\"\",T281/$C$281)","v":""},null,{"$f":"IF($C$281=\"\",\"\",V281/$C$281)","v":""},null,{"$f":"IF($C$281=\"\",\"\",X281/$C$281)","v":""},null,{"$f":"IF($C$281=\"\",\"\",Z281/$C$281)","v":""},null,{"$f":"IF($C$281=\"\",\"\",AB281/$C$281)","v":""},null,{"$f":"IF($C$281=\"\",\"\",AD281/$C$281)","v":""},null,{"$f":"IF($C$281=\"\",\"\",AF281/$C$281)","v":""},null,{"$f":"IF($C$281=\"\",\"\",AH281/$C$281)","v":""},null,{"$f":"IF($C$281=\"\",\"\",AJ281/$C$281)","v":""},null,{"$f":"IF($C$281=\"\",\"\",AL281/$C$281)","v":""},null,{"$f":"IF($C$281=\"\",\"\",AN281/$C$281)","v":""},null,{"$f":"IF($C$281=\"\",\"\",AP281/$C$281)","v":""},null,{"$f":"IF($C$281=\"\",\"\",AR281/$C$281)","v":""},null,{"$f":"IF($C$281=\"\",\"\",AT281/$C$281)","v":""},null,{"$f":"IF($C$281=\"\",\"\",AV281/$C$281)","v":""},null,{"$f":"IF($C$281=\"\",\"\",AX281/$C$281)","v":""},null,{"$f":"IF($C$281=\"\",\"\",AZ281/$C$281)","v":""},null,{"$f":"IF($C$281=\"\",\"\",BB281/$C$281)","v":""},null,0]
["        11.1.25.3","        Local Controller Timings",null,null,{"$f":"IF($C$282=\"\",\"\",F282/$C$282)","v":""},null,{"$f":"IF($C$282=\"\",\"\",H282/$C$282)","v":""},null,{"$f":"IF($C$282=\"\",\"\",J282/$C$282)","v":""},null,{"$f":"IF($C$282=\"\",\"\",L282/$C$282)","v":""},null,{"$f":"IF($C$282=\"\",\"\",N282/$C$282)","v":""},null,{"$f":"IF($C$282=\"\",\"\",P282/$C$282)","v":""},null,{"$f":"IF($C$282=\"\",\"\",R282/$C$282)","v":""},null,{"$f":"IF($C$282=\"\",\"\",T282/$C$282)","v":""},null,{"$f":"IF($C$282=\"\",\"\",V282/$C$282)","v":""},null,{"$f":"IF($C$282=\"\",\"\",X282/$C$282)","v":""},null,{"$f":"IF($C$282=\"\",\"\",Z282/$C$282)","v":""},null,{"$f":"IF($C$282=\"\",\"\",AB282/$C$282)","v":""},null,{"$f":"IF($C$282=\"\",\"\",AD282/$C$282)","v":""},null,{"$f":"IF($C$282=\"\",\"\",AF282/$C$282)","v":""},null,{"$f":"IF($C$282=\"\",\"\",AH282/$C$282)","v":""},null,{"$f":"IF($C$282=\"\",\"\",AJ282/$C$282)","v":""},null,{"$f":"IF($C$282=\"\",\"\",AL282/$C$282)","v":""},null,{"$f":"IF($C$282=\"\",\"\",AN282/$C$282)","v":""},null,{"$f":"IF($C$282=\"\",\"\",AP282/$C$282)","v":""},null,{"$f":"IF($C$282=\"\",\"\",AR282/$C$282)","v":""},null,{"$f":"IF($C$282=\"\",\"\",AT282/$C$282)","v":""},null,{"$f":"IF($C$282=\"\",\"\",AV282/$C$282)","v":""},null,{"$f":"IF($C$282=\"\",\"\",AX282/$C$282)","v":""},null,{"$f":"IF($C$282=\"\",\"\",AZ282/$C$282)","v":""},null,{"$f":"IF($C$282=\"\",\"\",BB282/$C$282)","v":""},null,0]
["        11.1.25.4","        Preemption (Fire Station)",null,null,{"$f":"IF($C$283=\"\",\"\",F283/$C$283)","v":""},null,{"$f":"IF($C$283=\"\",\"\",H283/$C$283)","v":""},null,{"$f":"IF($C$283=\"\",\"\",J283/$C$283)","v":""},null,{"$f":"IF($C$283=\"\",\"\",L283/$C$283)","v":""},null,{"$f":"IF($C$283=\"\",\"\",N283/$C$283)","v":""},null,{"$f":"IF($C$283=\"\",\"\",P283/$C$283)","v":""},null,{"$f":"IF($C$283=\"\",\"\",R283/$C$283)","v":""},null,{"$f":"IF($C$283=\"\",\"\",T283/$C$283)","v":""},null,{"$f":"IF($C$283=\"\",\"\",V283/$C$283)","v":""},null,{"$f":"IF($C$283=\"\",\"\",X283/$C$283)","v":""},null,{"$f":"IF($C$283=\"\",\"\",Z283/$C$283)","v":""},null,{"$f":"IF($C$283=\"\",\"\",AB283/$C$283)","v":""},null,{"$f":"IF($C$283=\"\",\"\",AD283/$C$283)","v":""},null,{"$f":"IF($C$283=\"\",\"\",AF283/$C$283)","v":""},null,{"$f":"IF($C$283=\"\",\"\",AH283/$C$283)","v":""},null,{"$f":"IF($C$283=\"\",\"\",AJ283/$C$283)","v":""},null,{"$f":"IF($C$283=\"\",\"\",AL283/$C$283)","v":""},null,{"$f":"IF($C$283=\"\",\"\",AN283/$C$283)","v":""},null,{"$f":"IF($C$283=\"\",\"\",AP283/$C$283)","v":""},null,{"$f":"IF($C$283=\"\",\"\",AR283/$C$283)","v":""},null,{"$f":"IF($C$283=\"\",\"\",AT283/$C$283)","v":""},null,{"$f":"IF($C$283=\"\",\"\",AV283/$C$283)","v":""},null,{"$f":"IF($C$283=\"\",\"\",AX283/$C$283)","v":""},null,{"$f":"IF($C$283=\"\",\"\",AZ283/$C$283)","v":""},null,{"$f":"IF($C$283=\"\",\"\",BB283/$C$283)","v":""},null,0]
["        11.1.25.5","        Signal Quantity Estimates",null,null,{"$f":"IF($C$284=\"\",\"\",F284/$C$284)","v":""},null,{"$f":"IF($C$284=\"\",\"\",H284/$C$284)","v":""},null,{"$f":"IF($C$284=\"\",\"\",J284/$C$284)","v":""},null,{"$f":"IF($C$284=\"\",\"\",L284/$C$284)","v":""},null,{"$f":"IF($C$284=\"\",\"\",N284/$C$284)","v":""},null,{"$f":"IF($C$284=\"\",\"\",P284/$C$284)","v":""},null,{"$f":"IF($C$284=\"\",\"\",R284/$C$284)","v":""},null,{"$f":"IF($C$284=\"\",\"\",T284/$C$284)","v":""},null,{"$f":"IF($C$284=\"\",\"\",V284/$C$284)","v":""},null,{"$f":"IF($C$284=\"\",\"\",X284/$C$284)","v":""},null,{"$f":"IF($C$284=\"\",\"\",Z284/$C$284)","v":""},null,{"$f":"IF($C$284=\"\",\"\",AB284/$C$284)","v":""},null,{"$f":"IF($C$284=\"\",\"\",AD284/$C$284)","v":""},null,{"$f":"IF($C$284=\"\",\"\",AF284/$C$284)","v":""},null,{"$f":"IF($C$284=\"\",\"\",AH284/$C$284)","v":""},null,{"$f":"IF($C$284=\"\",\"\",AJ284/$C$284)","v":""},null,{"$f":"IF($C$284=\"\",\"\",AL284/$C$284)","v":""},null,{"$f":"IF($C$284=\"\",\"\",AN284/$C$284)","v":""},null,{"$f":"IF($C$284=\"\",\"\",AP284/$C$284)","v":""},null,{"$f":"IF($C$284=\"\",\"\",AR284/$C$284)","v":""},null,{"$f":"IF($C$284=\"\",\"\",AT284/$C$284)","v":""},null,{"$f":"IF($C$284=\"\",\"\",AV284/$C$284)","v":""},null,{"$f":"IF($C$284=\"\",\"\",AX284/$C$284)","v":""},null,{"$f":"IF($C$284=\"\",\"\",AZ284/$C$284)","v":""},null,{"$f":"IF($C$284=\"\",\"\",BB284/$C$284)","v":""},null,0]
["        11.1.25.6","        Electrical & Programming Details - No \n        Preemption",null,null,{"$f":"IF($C$285=\"\",\"\",F285/$C$285)","v":""},null,{"$f":"IF($C$285=\"\",\"\",H285/$C$285)","v":""},null,{"$f":"IF($C$285=\"\",\"\",J285/$C$285)","v":""},null,{"$f":"IF($C$285=\"\",\"\",L285/$C$285)","v":""},null,{"$f":"IF($C$285=\"\",\"\",N285/$C$285)","v":""},null,{"$f":"IF($C$285=\"\",\"\",P285/$C$285)","v":""},null,{"$f":"IF($C$285=\"\",\"\",R285/$C$285)","v":""},null,{"$f":"IF($C$285=\"\",\"\",T285/$C$285)","v":""},null,{"$f":"IF($C$285=\"\",\"\",V285/$C$285)","v":""},null,{"$f":"IF($C$285=\"\",\"\",X285/$C$285)","v":""},null,{"$f":"IF($C$285=\"\",\"\",Z285/$C$285)","v":""},null,{"$f":"IF($C$285=\"\",\"\",AB285/$C$285)","v":""},null,{"$f":"IF($C$285=\"\",\"\",AD285/$C$285)","v":""},null,{"$f":"IF($C$285=\"\",\"\",AF285/$C$285)","v":""},null,{"$f":"IF($C$285=\"\",\"\",AH285/$C$285)","v":""},null,{"$f":"IF($C$285=\"\",\"\",AJ285/$C$285)","v":""},null,{"$f":"IF($C$285=\"\",\"\",AL285/$C$285)","v":""},null,{"$f":"IF($C$285=\"\",\"\",AN285/$C$285)","v":""},null,{"$f":"IF($C$285=\"\",\"\",AP285/$C$285)","v":""},null,{"$f":"IF($C$285=\"\",\"\",AR285/$C$285)","v":""},null,{"$f":"IF($C$285=\"\",\"\",AT285/$C$285)","v":""},null,{"$f":"IF($C$285=\"\",\"\",AV285/$C$285)","v":""},null,{"$f":"IF($C$285=\"\",\"\",AX285/$C$285)","v":""},null,{"$f":"IF($C$285=\"\",\"\",AZ285/$C$285)","v":""},null,{"$f":"IF($C$285=\"\",\"\",BB285/$C$285)","v":""},null,0]
["        11.1.25.7","        Electrical & Programming Details - With \n        Preemption",null,null,{"$f":"IF($C$286=\"\",\"\",F286/$C$286)","v":""},null,{"$f":"IF($C$286=\"\",\"\",H286/$C$286)","v":""},null,{"$f":"IF($C$286=\"\",\"\",J286/$C$286)","v":""},null,{"$f":"IF($C$286=\"\",\"\",L286/$C$286)","v":""},null,{"$f":"IF($C$286=\"\",\"\",N286/$C$286)","v":""},null,{"$f":"IF($C$286=\"\",\"\",P286/$C$286)","v":""},null,{"$f":"IF($C$286=\"\",\"\",R286/$C$286)","v":""},null,{"$f":"IF($C$286=\"\",\"\",T286/$C$286)","v":""},null,{"$f":"IF($C$286=\"\",\"\",V286/$C$286)","v":""},null,{"$f":"IF($C$286=\"\",\"\",X286/$C$286)","v":""},null,{"$f":"IF($C$286=\"\",\"\",Z286/$C$286)","v":""},null,{"$f":"IF($C$286=\"\",\"\",AB286/$C$286)","v":""},null,{"$f":"IF($C$286=\"\",\"\",AD286/$C$286)","v":""},null,{"$f":"IF($C$286=\"\",\"\",AF286/$C$286)","v":""},null,{"$f":"IF($C$286=\"\",\"\",AH286/$C$286)","v":""},null,{"$f":"IF($C$286=\"\",\"\",AJ286/$C$286)","v":""},null,{"$f":"IF($C$286=\"\",\"\",AL286/$C$286)","v":""},null,{"$f":"IF($C$286=\"\",\"\",AN286/$C$286)","v":""},null,{"$f":"IF($C$286=\"\",\"\",AP286/$C$286)","v":""},null,{"$f":"IF($C$286=\"\",\"\",AR286/$C$286)","v":""},null,{"$f":"IF($C$286=\"\",\"\",AT286/$C$286)","v":""},null,{"$f":"IF($C$286=\"\",\"\",AV286/$C$286)","v":""},null,{"$f":"IF($C$286=\"\",\"\",AX286/$C$286)","v":""},null,{"$f":"IF($C$286=\"\",\"\",AZ286/$C$286)","v":""},null,{"$f":"IF($C$286=\"\",\"\",BB286/$C$286)","v":""},null,0]
["        11.1.25.8",null,null,null,{"$f":"IF($C$287=\"\",\"\",F287/$C$287)","v":""},null,{"$f":"IF($C$287=\"\",\"\",H287/$C$287)","v":""},null,{"$f":"IF($C$287=\"\",\"\",J287/$C$287)","v":""},null,{"$f":"IF($C$287=\"\",\"\",L287/$C$287)","v":""},null,{"$f":"IF($C$287=\"\",\"\",N287/$C$287)","v":""},null,{"$f":"IF($C$287=\"\",\"\",P287/$C$287)","v":""},null,{"$f":"IF($C$287=\"\",\"\",R287/$C$287)","v":""},null,{"$f":"IF($C$287=\"\",\"\",T287/$C$287)","v":""},null,{"$f":"IF($C$287=\"\",\"\",V287/$C$287)","v":""},null,{"$f":"IF($C$287=\"\",\"\",X287/$C$287)","v":""},null,{"$f":"IF($C$287=\"\",\"\",Z287/$C$287)","v":""},null,{"$f":"IF($C$287=\"\",\"\",AB287/$C$287)","v":""},null,{"$f":"IF($C$287=\"\",\"\",AD287/$C$287)","v":""},null,{"$f":"IF($C$287=\"\",\"\",AF287/$C$287)","v":""},null,{"$f":"IF($C$287=\"\",\"\",AH287/$C$287)","v":""},null,{"$f":"IF($C$287=\"\",\"\",AJ287/$C$287)","v":""},null,{"$f":"IF($C$287=\"\",\"\",AL287/$C$287)","v":""},null,{"$f":"IF($C$287=\"\",\"\",AN287/$C$287)","v":""},null,{"$f":"IF($C$287=\"\",\"\",AP287/$C$287)","v":""},null,{"$f":"IF($C$287=\"\",\"\",AR287/$C$287)","v":""},null,{"$f":"IF($C$287=\"\",\"\",AT287/$C$287)","v":""},null,{"$f":"IF($C$287=\"\",\"\",AV287/$C$287)","v":""},null,{"$f":"IF($C$287=\"\",\"\",AX287/$C$287)","v":""},null,{"$f":"IF($C$287=\"\",\"\",AZ287/$C$287)","v":""},null,{"$f":"IF($C$287=\"\",\"\",BB287/$C$287)","v":""},null,0]
["        11.1.25.9",null,null,null,{"$f":"IF($C$288=\"\",\"\",F288/$C$288)","v":""},null,{"$f":"IF($C$288=\"\",\"\",H288/$C$288)","v":""},null,{"$f":"IF($C$288=\"\",\"\",J288/$C$288)","v":""},null,{"$f":"IF($C$288=\"\",\"\",L288/$C$288)","v":""},null,{"$f":"IF($C$288=\"\",\"\",N288/$C$288)","v":""},null,{"$f":"IF($C$288=\"\",\"\",P288/$C$288)","v":""},null,{"$f":"IF($C$288=\"\",\"\",R288/$C$288)","v":""},null,{"$f":"IF($C$288=\"\",\"\",T288/$C$288)","v":""},null,{"$f":"IF($C$288=\"\",\"\",V288/$C$288)","v":""},null,{"$f":"IF($C$288=\"\",\"\",X288/$C$288)","v":""},null,{"$f":"IF($C$288=\"\",\"\",Z288/$C$288)","v":""},null,{"$f":"IF($C$288=\"\",\"\",AB288/$C$288)","v":""},null,{"$f":"IF($C$288=\"\",\"\",AD288/$C$288)","v":""},null,{"$f":"IF($C$288=\"\",\"\",AF288/$C$288)","v":""},null,{"$f":"IF($C$288=\"\",\"\",AH288/$C$288)","v":""},null,{"$f":"IF($C$288=\"\",\"\",AJ288/$C$288)","v":""},null,{"$f":"IF($C$288=\"\",\"\",AL288/$C$288)","v":""},null,{"$f":"IF($C$288=\"\",\"\",AN288/$C$288)","v":""},null,{"$f":"IF($C$288=\"\",\"\",AP288/$C$288)","v":""},null,{"$f":"IF($C$288=\"\",\"\",AR288/$C$288)","v":""},null,{"$f":"IF($C$288=\"\",\"\",AT288/$C$288)","v":""},null,{"$f":"IF($C$288=\"\",\"\",AV288/$C$288)","v":""},null,{"$f":"IF($C$288=\"\",\"\",AX288/$C$288)","v":""},null,{"$f":"IF($C$288=\"\",\"\",AZ288/$C$288)","v":""},null,{"$f":"IF($C$288=\"\",\"\",BB288/$C$288)","v":""},null,0]
["        11.1.25.10",null,null,null,{"$f":"IF($C$289=\"\",\"\",F289/$C$289)","v":""},null,{"$f":"IF($C$289=\"\",\"\",H289/$C$289)","v":""},null,{"$f":"IF($C$289=\"\",\"\",J289/$C$289)","v":""},null,{"$f":"IF($C$289=\"\",\"\",L289/$C$289)","v":""},null,{"$f":"IF($C$289=\"\",\"\",N289/$C$289)","v":""},null,{"$f":"IF($C$289=\"\",\"\",P289/$C$289)","v":""},null,{"$f":"IF($C$289=\"\",\"\",R289/$C$289)","v":""},null,{"$f":"IF($C$289=\"\",\"\",T289/$C$289)","v":""},null,{"$f":"IF($C$289=\"\",\"\",V289/$C$289)","v":""},null,{"$f":"IF($C$289=\"\",\"\",X289/$C$289)","v":""},null,{"$f":"IF($C$289=\"\",\"\",Z289/$C$289)","v":""},null,{"$f":"IF($C$289=\"\",\"\",AB289/$C$289)","v":""},null,{"$f":"IF($C$289=\"\",\"\",AD289/$C$289)","v":""},null,{"$f":"IF($C$289=\"\",\"\",AF289/$C$289)","v":""},null,{"$f":"IF($C$289=\"\",\"\",AH289/$C$289)","v":""},null,{"$f":"IF($C$289=\"\",\"\",AJ289/$C$289)","v":""},null,{"$f":"IF($C$289=\"\",\"\",AL289/$C$289)","v":""},null,{"$f":"IF($C$289=\"\",\"\",AN289/$C$289)","v":""},null,{"$f":"IF($C$289=\"\",\"\",AP289/$C$289)","v":""},null,{"$f":"IF($C$289=\"\",\"\",AR289/$C$289)","v":""},null,{"$f":"IF($C$289=\"\",\"\",AT289/$C$289)","v":""},null,{"$f":"IF($C$289=\"\",\"\",AV289/$C$289)","v":""},null,{"$f":"IF($C$289=\"\",\"\",AX289/$C$289)","v":""},null,{"$f":"IF($C$289=\"\",\"\",AZ289/$C$289)","v":""},null,{"$f":"IF($C$289=\"\",\"\",BB289/$C$289)","v":""},null,0]
["    11.1.26","    Preliminary PS&E On-Site Work Sessions",null,null,{"$f":"IF($C$290=\"\",\"\",F290/$C$290)","v":""},null,{"$f":"IF($C$290=\"\",\"\",H290/$C$290)","v":""},null,{"$f":"IF($C$290=\"\",\"\",J290/$C$290)","v":""},null,{"$f":"IF($C$290=\"\",\"\",L290/$C$290)","v":""},null,{"$f":"IF($C$290=\"\",\"\",N290/$C$290)","v":""},null,{"$f":"IF($C$290=\"\",\"\",P290/$C$290)","v":""},null,{"$f":"IF($C$290=\"\",\"\",R290/$C$290)","v":""},null,{"$f":"IF($C$290=\"\",\"\",T290/$C$290)","v":""},null,{"$f":"IF($C$290=\"\",\"\",V290/$C$290)","v":""},null,{"$f":"IF($C$290=\"\",\"\",X290/$C$290)","v":""},null,{"$f":"IF($C$290=\"\",\"\",Z290/$C$290)","v":""},null,{"$f":"IF($C$290=\"\",\"\",AB290/$C$290)","v":""},null,{"$f":"IF($C$290=\"\",\"\",AD290/$C$290)","v":""},null,{"$f":"IF($C$290=\"\",\"\",AF290/$C$290)","v":""},null,{"$f":"IF($C$290=\"\",\"\",AH290/$C$290)","v":""},null,{"$f":"IF($C$290=\"\",\"\",AJ290/$C$290)","v":""},null,{"$f":"IF($C$290=\"\",\"\",AL290/$C$290)","v":""},null,{"$f":"IF($C$290=\"\",\"\",AN290/$C$290)","v":""},null,{"$f":"IF($C$290=\"\",\"\",AP290/$C$290)","v":""},null,{"$f":"IF($C$290=\"\",\"\",AR290/$C$290)","v":""},null,{"$f":"IF($C$290=\"\",\"\",AT290/$C$290)","v":""},null,{"$f":"IF($C$290=\"\",\"\",AV290/$C$290)","v":""},null,{"$f":"IF($C$290=\"\",\"\",AX290/$C$290)","v":""},null,{"$f":"IF($C$290=\"\",\"\",AZ290/$C$290)","v":""},null,{"$f":"IF($C$290=\"\",\"\",BB290/$C$290)","v":""},null,0]
["    11.1.27",null,null,null,{"$f":"IF($C$291=\"\",\"\",F291/$C$291)","v":""},null,{"$f":"IF($C$291=\"\",\"\",H291/$C$291)","v":""},null,{"$f":"IF($C$291=\"\",\"\",J291/$C$291)","v":""},null,{"$f":"IF($C$291=\"\",\"\",L291/$C$291)","v":""},null,{"$f":"IF($C$291=\"\",\"\",N291/$C$291)","v":""},null,{"$f":"IF($C$291=\"\",\"\",P291/$C$291)","v":""},null,{"$f":"IF($C$291=\"\",\"\",R291/$C$291)","v":""},null,{"$f":"IF($C$291=\"\",\"\",T291/$C$291)","v":""},null,{"$f":"IF($C$291=\"\",\"\",V291/$C$291)","v":""},null,{"$f":"IF($C$291=\"\",\"\",X291/$C$291)","v":""},null,{"$f":"IF($C$291=\"\",\"\",Z291/$C$291)","v":""},null,{"$f":"IF($C$291=\"\",\"\",AB291/$C$291)","v":""},null,{"$f":"IF($C$291=\"\",\"\",AD291/$C$291)","v":""},null,{"$f":"IF($C$291=\"\",\"\",AF291/$C$291)","v":""},null,{"$f":"IF($C$291=\"\",\"\",AH291/$C$291)","v":""},null,{"$f":"IF($C$291=\"\",\"\",AJ291/$C$291)","v":""},null,{"$f":"IF($C$291=\"\",\"\",AL291/$C$291)","v":""},null,{"$f":"IF($C$291=\"\",\"\",AN291/$C$291)","v":""},null,{"$f":"IF($C$291=\"\",\"\",AP291/$C$291)","v":""},null,{"$f":"IF($C$291=\"\",\"\",AR291/$C$291)","v":""},null,{"$f":"IF($C$291=\"\",\"\",AT291/$C$291)","v":""},null,{"$f":"IF($C$291=\"\",\"\",AV291/$C$291)","v":""},null,{"$f":"IF($C$291=\"\",\"\",AX291/$C$291)","v":""},null,{"$f":"IF($C$291=\"\",\"\",AZ291/$C$291)","v":""},null,{"$f":"IF($C$291=\"\",\"\",BB291/$C$291)","v":""},null,0]
["    11.1.28",null,null,null,{"$f":"IF($C$292=\"\",\"\",F292/$C$292)","v":""},null,{"$f":"IF($C$292=\"\",\"\",H292/$C$292)","v":""},null,{"$f":"IF($C$292=\"\",\"\",J292/$C$292)","v":""},null,{"$f":"IF($C$292=\"\",\"\",L292/$C$292)","v":""},null,{"$f":"IF($C$292=\"\",\"\",N292/$C$292)","v":""},null,{"$f":"IF($C$292=\"\",\"\",P292/$C$292)","v":""},null,{"$f":"IF($C$292=\"\",\"\",R292/$C$292)","v":""},null,{"$f":"IF($C$292=\"\",\"\",T292/$C$292)","v":""},null,{"$f":"IF($C$292=\"\",\"\",V292/$C$292)","v":""},null,{"$f":"IF($C$292=\"\",\"\",X292/$C$292)","v":""},null,{"$f":"IF($C$292=\"\",\"\",Z292/$C$292)","v":""},null,{"$f":"IF($C$292=\"\",\"\",AB292/$C$292)","v":""},null,{"$f":"IF($C$292=\"\",\"\",AD292/$C$292)","v":""},null,{"$f":"IF($C$292=\"\",\"\",AF292/$C$292)","v":""},null,{"$f":"IF($C$292=\"\",\"\",AH292/$C$292)","v":""},null,{"$f":"IF($C$292=\"\",\"\",AJ292/$C$292)","v":""},null,{"$f":"IF($C$292=\"\",\"\",AL292/$C$292)","v":""},null,{"$f":"IF($C$292=\"\",\"\",AN292/$C$292)","v":""},null,{"$f":"IF($C$292=\"\",\"\",AP292/$C$292)","v":""},null,{"$f":"IF($C$292=\"\",\"\",AR292/$C$292)","v":""},null,{"$f":"IF($C$292=\"\",\"\",AT292/$C$292)","v":""},null,{"$f":"IF($C$292=\"\",\"\",AV292/$C$292)","v":""},null,{"$f":"IF($C$292=\"\",\"\",AX292/$C$292)","v":""},null,{"$f":"IF($C$292=\"\",\"\",AZ292/$C$292)","v":""},null,{"$f":"IF($C$292=\"\",\"\",BB292/$C$292)","v":""},null,0]
["    11.1.29",null,null,null,{"$f":"IF($C$293=\"\",\"\",F293/$C$293)","v":""},null,{"$f":"IF($C$293=\"\",\"\",H293/$C$293)","v":""},null,{"$f":"IF($C$293=\"\",\"\",J293/$C$293)","v":""},null,{"$f":"IF($C$293=\"\",\"\",L293/$C$293)","v":""},null,{"$f":"IF($C$293=\"\",\"\",N293/$C$293)","v":""},null,{"$f":"IF($C$293=\"\",\"\",P293/$C$293)","v":""},null,{"$f":"IF($C$293=\"\",\"\",R293/$C$293)","v":""},null,{"$f":"IF($C$293=\"\",\"\",T293/$C$293)","v":""},null,{"$f":"IF($C$293=\"\",\"\",V293/$C$293)","v":""},null,{"$f":"IF($C$293=\"\",\"\",X293/$C$293)","v":""},null,{"$f":"IF($C$293=\"\",\"\",Z293/$C$293)","v":""},null,{"$f":"IF($C$293=\"\",\"\",AB293/$C$293)","v":""},null,{"$f":"IF($C$293=\"\",\"\",AD293/$C$293)","v":""},null,{"$f":"IF($C$293=\"\",\"\",AF293/$C$293)","v":""},null,{"$f":"IF($C$293=\"\",\"\",AH293/$C$293)","v":""},null,{"$f":"IF($C$293=\"\",\"\",AJ293/$C$293)","v":""},null,{"$f":"IF($C$293=\"\",\"\",AL293/$C$293)","v":""},null,{"$f":"IF($C$293=\"\",\"\",AN293/$C$293)","v":""},null,{"$f":"IF($C$293=\"\",\"\",AP293/$C$293)","v":""},null,{"$f":"IF($C$293=\"\",\"\",AR293/$C$293)","v":""},null,{"$f":"IF($C$293=\"\",\"\",AT293/$C$293)","v":""},null,{"$f":"IF($C$293=\"\",\"\",AV293/$C$293)","v":""},null,{"$f":"IF($C$293=\"\",\"\",AX293/$C$293)","v":""},null,{"$f":"IF($C$293=\"\",\"\",AZ293/$C$293)","v":""},null,{"$f":"IF($C$293=\"\",\"\",BB293/$C$293)","v":""},null,0]
[11.2,"Draft Final Plans"]
["    11.2.1","    Revise and Submit Draft Final Plans",null,null,{"$f":"IF($C$295=\"\",\"\",F295/$C$295)","v":""},null,{"$f":"IF($C$295=\"\",\"\",H295/$C$295)","v":""},null,{"$f":"IF($C$295=\"\",\"\",J295/$C$295)","v":""},null,{"$f":"IF($C$295=\"\",\"\",L295/$C$295)","v":""},null,{"$f":"IF($C$295=\"\",\"\",N295/$C$295)","v":""},null,{"$f":"IF($C$295=\"\",\"\",P295/$C$295)","v":""},null,{"$f":"IF($C$295=\"\",\"\",R295/$C$295)","v":""},null,{"$f":"IF($C$295=\"\",\"\",T295/$C$295)","v":""},null,{"$f":"IF($C$295=\"\",\"\",V295/$C$295)","v":""},null,{"$f":"IF($C$295=\"\",\"\",X295/$C$295)","v":""},null,{"$f":"IF($C$295=\"\",\"\",Z295/$C$295)","v":""},null,{"$f":"IF($C$295=\"\",\"\",AB295/$C$295)","v":""},null,{"$f":"IF($C$295=\"\",\"\",AD295/$C$295)","v":""},null,{"$f":"IF($C$295=\"\",\"\",AF295/$C$295)","v":""},null,{"$f":"IF($C$295=\"\",\"\",AH295/$C$295)","v":""},null,{"$f":"IF($C$295=\"\",\"\",AJ295/$C$295)","v":""},null,{"$f":"IF($C$295=\"\",\"\",AL295/$C$295)","v":""},null,{"$f":"IF($C$295=\"\",\"\",AN295/$C$295)","v":""},null,{"$f":"IF($C$295=\"\",\"\",AP295/$C$295)","v":""},null,{"$f":"IF($C$295=\"\",\"\",AR295/$C$295)","v":""},null,{"$f":"IF($C$295=\"\",\"\",AT295/$C$295)","v":""},null,{"$f":"IF($C$295=\"\",\"\",AV295/$C$295)","v":""},null,{"$f":"IF($C$295=\"\",\"\",AX295/$C$295)","v":""},null,{"$f":"IF($C$295=\"\",\"\",AZ295/$C$295)","v":""},null,{"$f":"IF($C$295=\"\",\"\",BB295/$C$295)","v":""},null,{"$f":"SUM(BB295,AZ295,AX295,AV295,AT295,AR295,AP295,AN295,AL295,AJ295,AH295,AF295,AD295,AB295,Z295,X295,V295,T295,R295,P295,N295,L295,J295,H295,F295)","v":0}]
["    11.2.2",null,null,null,{"$f":"IF($C$296=\"\",\"\",F296/$C$296)","v":""},null,{"$f":"IF($C$296=\"\",\"\",H296/$C$296)","v":""},null,{"$f":"IF($C$296=\"\",\"\",J296/$C$296)","v":""},null,{"$f":"IF($C$296=\"\",\"\",L296/$C$296)","v":""},null,{"$f":"IF($C$296=\"\",\"\",N296/$C$296)","v":""},null,{"$f":"IF($C$296=\"\",\"\",P296/$C$296)","v":""},null,{"$f":"IF($C$296=\"\",\"\",R296/$C$296)","v":""},null,{"$f":"IF($C$296=\"\",\"\",T296/$C$296)","v":""},null,{"$f":"IF($C$296=\"\",\"\",V296/$C$296)","v":""},null,{"$f":"IF($C$296=\"\",\"\",X296/$C$296)","v":""},null,{"$f":"IF($C$296=\"\",\"\",Z296/$C$296)","v":""},null,{"$f":"IF($C$296=\"\",\"\",AB296/$C$296)","v":""},null,{"$f":"IF($C$296=\"\",\"\",AD296/$C$296)","v":""},null,{"$f":"IF($C$296=\"\",\"\",AF296/$C$296)","v":""},null,{"$f":"IF($C$296=\"\",\"\",AH296/$C$296)","v":""},null,{"$f":"IF($C$296=\"\",\"\",AJ296/$C$296)","v":""},null,{"$f":"IF($C$296=\"\",\"\",AL296/$C$296)","v":""},null,{"$f":"IF($C$296=\"\",\"\",AN296/$C$296)","v":""},null,{"$f":"IF($C$296=\"\",\"\",AP296/$C$296)","v":""},null,{"$f":"IF($C$296=\"\",\"\",AR296/$C$296)","v":""},null,{"$f":"IF($C$296=\"\",\"\",AT296/$C$296)","v":""},null,{"$f":"IF($C$296=\"\",\"\",AV296/$C$296)","v":""},null,{"$f":"IF($C$296=\"\",\"\",AX296/$C$296)","v":""},null,{"$f":"IF($C$296=\"\",\"\",AZ296/$C$296)","v":""},null,{"$f":"IF($C$296=\"\",\"\",BB296/$C$296)","v":""},null,0]
["    11.2.3",null,null,null,{"$f":"IF($C$297=\"\",\"\",F297/$C$297)","v":""},null,{"$f":"IF($C$297=\"\",\"\",H297/$C$297)","v":""},null,{"$f":"IF($C$297=\"\",\"\",J297/$C$297)","v":""},null,{"$f":"IF($C$297=\"\",\"\",L297/$C$297)","v":""},null,{"$f":"IF($C$297=\"\",\"\",N297/$C$297)","v":""},null,{"$f":"IF($C$297=\"\",\"\",P297/$C$297)","v":""},null,{"$f":"IF($C$297=\"\",\"\",R297/$C$297)","v":""},null,{"$f":"IF($C$297=\"\",\"\",T297/$C$297)","v":""},null,{"$f":"IF($C$297=\"\",\"\",V297/$C$297)","v":""},null,{"$f":"IF($C$297=\"\",\"\",X297/$C$297)","v":""},null,{"$f":"IF($C$297=\"\",\"\",Z297/$C$297)","v":""},null,{"$f":"IF($C$297=\"\",\"\",AB297/$C$297)","v":""},null,{"$f":"IF($C$297=\"\",\"\",AD297/$C$297)","v":""},null,{"$f":"IF($C$297=\"\",\"\",AF297/$C$297)","v":""},null,{"$f":"IF($C$297=\"\",\"\",AH297/$C$297)","v":""},null,{"$f":"IF($C$297=\"\",\"\",AJ297/$C$297)","v":""},null,{"$f":"IF($C$297=\"\",\"\",AL297/$C$297)","v":""},null,{"$f":"IF($C$297=\"\",\"\",AN297/$C$297)","v":""},null,{"$f":"IF($C$297=\"\",\"\",AP297/$C$297)","v":""},null,{"$f":"IF($C$297=\"\",\"\",AR297/$C$297)","v":""},null,{"$f":"IF($C$297=\"\",\"\",AT297/$C$297)","v":""},null,{"$f":"IF($C$297=\"\",\"\",AV297/$C$297)","v":""},null,{"$f":"IF($C$297=\"\",\"\",AX297/$C$297)","v":""},null,{"$f":"IF($C$297=\"\",\"\",AZ297/$C$297)","v":""},null,{"$f":"IF($C$297=\"\",\"\",BB297/$C$297)","v":""},null,0]
["    11.2.4",null,null,null,{"$f":"IF($C$298=\"\",\"\",F298/$C$298)","v":""},null,{"$f":"IF($C$298=\"\",\"\",H298/$C$298)","v":""},null,{"$f":"IF($C$298=\"\",\"\",J298/$C$298)","v":""},null,{"$f":"IF($C$298=\"\",\"\",L298/$C$298)","v":""},null,{"$f":"IF($C$298=\"\",\"\",N298/$C$298)","v":""},null,{"$f":"IF($C$298=\"\",\"\",P298/$C$298)","v":""},null,{"$f":"IF($C$298=\"\",\"\",R298/$C$298)","v":""},null,{"$f":"IF($C$298=\"\",\"\",T298/$C$298)","v":""},null,{"$f":"IF($C$298=\"\",\"\",V298/$C$298)","v":""},null,{"$f":"IF($C$298=\"\",\"\",X298/$C$298)","v":""},null,{"$f":"IF($C$298=\"\",\"\",Z298/$C$298)","v":""},null,{"$f":"IF($C$298=\"\",\"\",AB298/$C$298)","v":""},null,{"$f":"IF($C$298=\"\",\"\",AD298/$C$298)","v":""},null,{"$f":"IF($C$298=\"\",\"\",AF298/$C$298)","v":""},null,{"$f":"IF($C$298=\"\",\"\",AH298/$C$298)","v":""},null,{"$f":"IF($C$298=\"\",\"\",AJ298/$C$298)","v":""},null,{"$f":"IF($C$298=\"\",\"\",AL298/$C$298)","v":""},null,{"$f":"IF($C$298=\"\",\"\",AN298/$C$298)","v":""},null,{"$f":"IF($C$298=\"\",\"\",AP298/$C$298)","v":""},null,{"$f":"IF($C$298=\"\",\"\",AR298/$C$298)","v":""},null,{"$f":"IF($C$298=\"\",\"\",AT298/$C$298)","v":""},null,{"$f":"IF($C$298=\"\",\"\",AV298/$C$298)","v":""},null,{"$f":"IF($C$298=\"\",\"\",AX298/$C$298)","v":""},null,{"$f":"IF($C$298=\"\",\"\",AZ298/$C$298)","v":""},null,{"$f":"IF($C$298=\"\",\"\",BB298/$C$298)","v":""},null,0]
[11.3,"Final Plans"]
["    11.3.1","    Field Check Final Plans",null,null,{"$f":"IF($C$300=\"\",\"\",F300/$C$300)","v":""},null,{"$f":"IF($C$300=\"\",\"\",H300/$C$300)","v":""},null,{"$f":"IF($C$300=\"\",\"\",J300/$C$300)","v":""},null,{"$f":"IF($C$300=\"\",\"\",L300/$C$300)","v":""},null,{"$f":"IF($C$300=\"\",\"\",N300/$C$300)","v":""},null,{"$f":"IF($C$300=\"\",\"\",P300/$C$300)","v":""},null,{"$f":"IF($C$300=\"\",\"\",R300/$C$300)","v":""},null,{"$f":"IF($C$300=\"\",\"\",T300/$C$300)","v":""},null,{"$f":"IF($C$300=\"\",\"\",V300/$C$300)","v":""},null,{"$f":"IF($C$300=\"\",\"\",X300/$C$300)","v":""},null,{"$f":"IF($C$300=\"\",\"\",Z300/$C$300)","v":""},null,{"$f":"IF($C$300=\"\",\"\",AB300/$C$300)","v":""},null,{"$f":"IF($C$300=\"\",\"\",AD300/$C$300)","v":""},null,{"$f":"IF($C$300=\"\",\"\",AF300/$C$300)","v":""},null,{"$f":"IF($C$300=\"\",\"\",AH300/$C$300)","v":""},null,{"$f":"IF($C$300=\"\",\"\",AJ300/$C$300)","v":""},null,{"$f":"IF($C$300=\"\",\"\",AL300/$C$300)","v":""},null,{"$f":"IF($C$300=\"\",\"\",AN300/$C$300)","v":""},null,{"$f":"IF($C$300=\"\",\"\",AP300/$C$300)","v":""},null,{"$f":"IF($C$300=\"\",\"\",AR300/$C$300)","v":""},null,{"$f":"IF($C$300=\"\",\"\",AT300/$C$300)","v":""},null,{"$f":"IF($C$300=\"\",\"\",AV300/$C$300)","v":""},null,{"$f":"IF($C$300=\"\",\"\",AX300/$C$300)","v":""},null,{"$f":"IF($C$300=\"\",\"\",AZ300/$C$300)","v":""},null,{"$f":"IF($C$300=\"\",\"\",BB300/$C$300)","v":""},null,{"$f":"SUM(BB300,AZ300,AX300,AV300,AT300,AR300,AP300,AN300,AL300,AJ300,AH300,AF300,AD300,AB300,Z300,X300,V300,T300,R300,P300,N300,L300,J300,H300,F300)","v":0}]
["    11.3.2","    Perform Final Revisions and Submit Final Plans",null,null,{"$f":"IF($C$301=\"\",\"\",F301/$C$301)","v":""},null,{"$f":"IF($C$301=\"\",\"\",H301/$C$301)","v":""},null,{"$f":"IF($C$301=\"\",\"\",J301/$C$301)","v":""},null,{"$f":"IF($C$301=\"\",\"\",L301/$C$301)","v":""},null,{"$f":"IF($C$301=\"\",\"\",N301/$C$301)","v":""},null,{"$f":"IF($C$301=\"\",\"\",P301/$C$301)","v":""},null,{"$f":"IF($C$301=\"\",\"\",R301/$C$301)","v":""},null,{"$f":"IF($C$301=\"\",\"\",T301/$C$301)","v":""},null,{"$f":"IF($C$301=\"\",\"\",V301/$C$301)","v":""},null,{"$f":"IF($C$301=\"\",\"\",X301/$C$301)","v":""},null,{"$f":"IF($C$301=\"\",\"\",Z301/$C$301)","v":""},null,{"$f":"IF($C$301=\"\",\"\",AB301/$C$301)","v":""},null,{"$f":"IF($C$301=\"\",\"\",AD301/$C$301)","v":""},null,{"$f":"IF($C$301=\"\",\"\",AF301/$C$301)","v":""},null,{"$f":"IF($C$301=\"\",\"\",AH301/$C$301)","v":""},null,{"$f":"IF($C$301=\"\",\"\",AJ301/$C$301)","v":""},null,{"$f":"IF($C$301=\"\",\"\",AL301/$C$301)","v":""},null,{"$f":"IF($C$301=\"\",\"\",AN301/$C$301)","v":""},null,{"$f":"IF($C$301=\"\",\"\",AP301/$C$301)","v":""},null,{"$f":"IF($C$301=\"\",\"\",AR301/$C$301)","v":""},null,{"$f":"IF($C$301=\"\",\"\",AT301/$C$301)","v":""},null,{"$f":"IF($C$301=\"\",\"\",AV301/$C$301)","v":""},null,{"$f":"IF($C$301=\"\",\"\",AX301/$C$301)","v":""},null,{"$f":"IF($C$301=\"\",\"\",AZ301/$C$301)","v":""},null,{"$f":"IF($C$301=\"\",\"\",BB301/$C$301)","v":""},null,0]
["    11.3.3",null,null,null,{"$f":"IF($C$302=\"\",\"\",F302/$C$302)","v":""},null,{"$f":"IF($C$302=\"\",\"\",H302/$C$302)","v":""},null,{"$f":"IF($C$302=\"\",\"\",J302/$C$302)","v":""},null,{"$f":"IF($C$302=\"\",\"\",L302/$C$302)","v":""},null,{"$f":"IF($C$302=\"\",\"\",N302/$C$302)","v":""},null,{"$f":"IF($C$302=\"\",\"\",P302/$C$302)","v":""},null,{"$f":"IF($C$302=\"\",\"\",R302/$C$302)","v":""},null,{"$f":"IF($C$302=\"\",\"\",T302/$C$302)","v":""},null,{"$f":"IF($C$302=\"\",\"\",V302/$C$302)","v":""},null,{"$f":"IF($C$302=\"\",\"\",X302/$C$302)","v":""},null,{"$f":"IF($C$302=\"\",\"\",Z302/$C$302)","v":""},null,{"$f":"IF($C$302=\"\",\"\",AB302/$C$302)","v":""},null,{"$f":"IF($C$302=\"\",\"\",AD302/$C$302)","v":""},null,{"$f":"IF($C$302=\"\",\"\",AF302/$C$302)","v":""},null,{"$f":"IF($C$302=\"\",\"\",AH302/$C$302)","v":""},null,{"$f":"IF($C$302=\"\",\"\",AJ302/$C$302)","v":""},null,{"$f":"IF($C$302=\"\",\"\",AL302/$C$302)","v":""},null,{"$f":"IF($C$302=\"\",\"\",AN302/$C$302)","v":""},null,{"$f":"IF($C$302=\"\",\"\",AP302/$C$302)","v":""},null,{"$f":"IF($C$302=\"\",\"\",AR302/$C$302)","v":""},null,{"$f":"IF($C$302=\"\",\"\",AT302/$C$302)","v":""},null,{"$f":"IF($C$302=\"\",\"\",AV302/$C$302)","v":""},null,{"$f":"IF($C$302=\"\",\"\",AX302/$C$302)","v":""},null,{"$f":"IF($C$302=\"\",\"\",AZ302/$C$302)","v":""},null,{"$f":"IF($C$302=\"\",\"\",BB302/$C$302)","v":""},null,0]
["    11.3.4",null,null,null,{"$f":"IF($C$303=\"\",\"\",F303/$C$303)","v":""},null,{"$f":"IF($C$303=\"\",\"\",H303/$C$303)","v":""},null,{"$f":"IF($C$303=\"\",\"\",J303/$C$303)","v":""},null,{"$f":"IF($C$303=\"\",\"\",L303/$C$303)","v":""},null,{"$f":"IF($C$303=\"\",\"\",N303/$C$303)","v":""},null,{"$f":"IF($C$303=\"\",\"\",P303/$C$303)","v":""},null,{"$f":"IF($C$303=\"\",\"\",R303/$C$303)","v":""},null,{"$f":"IF($C$303=\"\",\"\",T303/$C$303)","v":""},null,{"$f":"IF($C$303=\"\",\"\",V303/$C$303)","v":""},null,{"$f":"IF($C$303=\"\",\"\",X303/$C$303)","v":""},null,{"$f":"IF($C$303=\"\",\"\",Z303/$C$303)","v":""},null,{"$f":"IF($C$303=\"\",\"\",AB303/$C$303)","v":""},null,{"$f":"IF($C$303=\"\",\"\",AD303/$C$303)","v":""},null,{"$f":"IF($C$303=\"\",\"\",AF303/$C$303)","v":""},null,{"$f":"IF($C$303=\"\",\"\",AH303/$C$303)","v":""},null,{"$f":"IF($C$303=\"\",\"\",AJ303/$C$303)","v":""},null,{"$f":"IF($C$303=\"\",\"\",AL303/$C$303)","v":""},null,{"$f":"IF($C$303=\"\",\"\",AN303/$C$303)","v":""},null,{"$f":"IF($C$303=\"\",\"\",AP303/$C$303)","v":""},null,{"$f":"IF($C$303=\"\",\"\",AR303/$C$303)","v":""},null,{"$f":"IF($C$303=\"\",\"\",AT303/$C$303)","v":""},null,{"$f":"IF($C$303=\"\",\"\",AV303/$C$303)","v":""},null,{"$f":"IF($C$303=\"\",\"\",AX303/$C$303)","v":""},null,{"$f":"IF($C$303=\"\",\"\",AZ303/$C$303)","v":""},null,{"$f":"IF($C$303=\"\",\"\",BB303/$C$303)","v":""},null,0]
["    11.3.5",null,null,null,{"$f":"IF($C$304=\"\",\"\",F304/$C$304)","v":""},null,{"$f":"IF($C$304=\"\",\"\",H304/$C$304)","v":""},null,{"$f":"IF($C$304=\"\",\"\",J304/$C$304)","v":""},null,{"$f":"IF($C$304=\"\",\"\",L304/$C$304)","v":""},null,{"$f":"IF($C$304=\"\",\"\",N304/$C$304)","v":""},null,{"$f":"IF($C$304=\"\",\"\",P304/$C$304)","v":""},null,{"$f":"IF($C$304=\"\",\"\",R304/$C$304)","v":""},null,{"$f":"IF($C$304=\"\",\"\",T304/$C$304)","v":""},null,{"$f":"IF($C$304=\"\",\"\",V304/$C$304)","v":""},null,{"$f":"IF($C$304=\"\",\"\",X304/$C$304)","v":""},null,{"$f":"IF($C$304=\"\",\"\",Z304/$C$304)","v":""},null,{"$f":"IF($C$304=\"\",\"\",AB304/$C$304)","v":""},null,{"$f":"IF($C$304=\"\",\"\",AD304/$C$304)","v":""},null,{"$f":"IF($C$304=\"\",\"\",AF304/$C$304)","v":""},null,{"$f":"IF($C$304=\"\",\"\",AH304/$C$304)","v":""},null,{"$f":"IF($C$304=\"\",\"\",AJ304/$C$304)","v":""},null,{"$f":"IF($C$304=\"\",\"\",AL304/$C$304)","v":""},null,{"$f":"IF($C$304=\"\",\"\",AN304/$C$304)","v":""},null,{"$f":"IF($C$304=\"\",\"\",AP304/$C$304)","v":""},null,{"$f":"IF($C$304=\"\",\"\",AR304/$C$304)","v":""},null,{"$f":"IF($C$304=\"\",\"\",AT304/$C$304)","v":""},null,{"$f":"IF($C$304=\"\",\"\",AV304/$C$304)","v":""},null,{"$f":"IF($C$304=\"\",\"\",AX304/$C$304)","v":""},null,{"$f":"IF($C$304=\"\",\"\",AZ304/$C$304)","v":""},null,{"$f":"IF($C$304=\"\",\"\",BB304/$C$304)","v":""},null,0]
[11.4,"Quality Reviews",null,null,{"$f":"IF($C$305=\"\",\"\",F305/$C$305)","v":""},null,{"$f":"IF($C$305=\"\",\"\",H305/$C$305)","v":""},null,{"$f":"IF($C$305=\"\",\"\",J305/$C$305)","v":""},null,{"$f":"IF($C$305=\"\",\"\",L305/$C$305)","v":""},null,{"$f":"IF($C$305=\"\",\"\",N305/$C$305)","v":""},null,{"$f":"IF($C$305=\"\",\"\",P305/$C$305)","v":""},null,{"$f":"IF($C$305=\"\",\"\",R305/$C$305)","v":""},null,{"$f":"IF($C$305=\"\",\"\",T305/$C$305)","v":""},null,{"$f":"IF($C$305=\"\",\"\",V305/$C$305)","v":""},null,{"$f":"IF($C$305=\"\",\"\",X305/$C$305)","v":""},null,{"$f":"IF($C$305=\"\",\"\",Z305/$C$305)","v":""},null,{"$f":"IF($C$305=\"\",\"\",AB305/$C$305)","v":""},null,{"$f":"IF($C$305=\"\",\"\",AD305/$C$305)","v":""},null,{"$f":"IF($C$305=\"\",\"\",AF305/$C$305)","v":""},null,{"$f":"IF($C$305=\"\",\"\",AH305/$C$305)","v":""},null,{"$f":"IF($C$305=\"\",\"\",AJ305/$C$305)","v":""},null,{"$f":"IF($C$305=\"\",\"\",AL305/$C$305)","v":""},null,{"$f":"IF($C$305=\"\",\"\",AN305/$C$305)","v":""},null,{"$f":"IF($C$305=\"\",\"\",AP305/$C$305)","v":""},null,{"$f":"IF($C$305=\"\",\"\",AR305/$C$305)","v":""},null,{"$f":"IF($C$305=\"\",\"\",AT305/$C$305)","v":""},null,{"$f":"IF($C$305=\"\",\"\",AV305/$C$305)","v":""},null,{"$f":"IF($C$305=\"\",\"\",AX305/$C$305)","v":""},null,{"$f":"IF($C$305=\"\",\"\",AZ305/$C$305)","v":""},null,{"$f":"IF($C$305=\"\",\"\",BB305/$C$305)","v":""},null,0]
[null,null,null,null,{"$f":"IF($C$306=\"\",\"\",F306/$C$306)","v":""},null,{"$f":"IF($C$306=\"\",\"\",H306/$C$306)","v":""},null,{"$f":"IF($C$306=\"\",\"\",J306/$C$306)","v":""},null,{"$f":"IF($C$306=\"\",\"\",L306/$C$306)","v":""},null,{"$f":"IF($C$306=\"\",\"\",N306/$C$306)","v":""},null,{"$f":"IF($C$306=\"\",\"\",P306/$C$306)","v":""},null,{"$f":"IF($C$306=\"\",\"\",R306/$C$306)","v":""},null,{"$f":"IF($C$306=\"\",\"\",T306/$C$306)","v":""},null,{"$f":"IF($C$306=\"\",\"\",V306/$C$306)","v":""},null,{"$f":"IF($C$306=\"\",\"\",X306/$C$306)","v":""},null,{"$f":"IF($C$306=\"\",\"\",Z306/$C$306)","v":""},null,{"$f":"IF($C$306=\"\",\"\",AB306/$C$306)","v":""},null,{"$f":"IF($C$306=\"\",\"\",AD306/$C$306)","v":""},null,{"$f":"IF($C$306=\"\",\"\",AF306/$C$306)","v":""},null,{"$f":"IF($C$306=\"\",\"\",AH306/$C$306)","v":""},null,{"$f":"IF($C$306=\"\",\"\",AJ306/$C$306)","v":""},null,{"$f":"IF($C$306=\"\",\"\",AL306/$C$306)","v":""},null,{"$f":"IF($C$306=\"\",\"\",AN306/$C$306)","v":""},null,{"$f":"IF($C$306=\"\",\"\",AP306/$C$306)","v":""},null,{"$f":"IF($C$306=\"\",\"\",AR306/$C$306)","v":""},null,{"$f":"IF($C$306=\"\",\"\",AT306/$C$306)","v":""},null,{"$f":"IF($C$306=\"\",\"\",AV306/$C$306)","v":""},null,{"$f":"IF($C$306=\"\",\"\",AX306/$C$306)","v":""},null,{"$f":"IF($C$306=\"\",\"\",AZ306/$C$306)","v":""},null,{"$f":"IF($C$306=\"\",\"\",BB306/$C$306)","v":""},null,0]
[null,null,null,null,{"$f":"IF($C$307=\"\",\"\",F307/$C$307)","v":""},null,{"$f":"IF($C$307=\"\",\"\",H307/$C$307)","v":""},null,{"$f":"IF($C$307=\"\",\"\",J307/$C$307)","v":""},null,{"$f":"IF($C$307=\"\",\"\",L307/$C$307)","v":""},null,{"$f":"IF($C$307=\"\",\"\",N307/$C$307)","v":""},null,{"$f":"IF($C$307=\"\",\"\",P307/$C$307)","v":""},null,{"$f":"IF($C$307=\"\",\"\",R307/$C$307)","v":""},null,{"$f":"IF($C$307=\"\",\"\",T307/$C$307)","v":""},null,{"$f":"IF($C$307=\"\",\"\",V307/$C$307)","v":""},null,{"$f":"IF($C$307=\"\",\"\",X307/$C$307)","v":""},null,{"$f":"IF($C$307=\"\",\"\",Z307/$C$307)","v":""},null,{"$f":"IF($C$307=\"\",\"\",AB307/$C$307)","v":""},null,{"$f":"IF($C$307=\"\",\"\",AD307/$C$307)","v":""},null,{"$f":"IF($C$307=\"\",\"\",AF307/$C$307)","v":""},null,{"$f":"IF($C$307=\"\",\"\",AH307/$C$307)","v":""},null,{"$f":"IF($C$307=\"\",\"\",AJ307/$C$307)","v":""},null,{"$f":"IF($C$307=\"\",\"\",AL307/$C$307)","v":""},null,{"$f":"IF($C$307=\"\",\"\",AN307/$C$307)","v":""},null,{"$f":"IF($C$307=\"\",\"\",AP307/$C$307)","v":""},null,{"$f":"IF($C$307=\"\",\"\",AR307/$C$307)","v":""},null,{"$f":"IF($C$307=\"\",\"\",AT307/$C$307)","v":""},null,{"$f":"IF($C$307=\"\",\"\",AV307/$C$307)","v":""},null,{"$f":"IF($C$307=\"\",\"\",AX307/$C$307)","v":""},null,{"$f":"IF($C$307=\"\",\"\",AZ307/$C$307)","v":""},null,{"$f":"IF($C$307=\"\",\"\",BB307/$C$307)","v":""},null,0]
[null,null,null,null,{"$f":"IF($C$308=\"\",\"\",F308/$C$308)","v":""},null,{"$f":"IF($C$308=\"\",\"\",H308/$C$308)","v":""},null,{"$f":"IF($C$308=\"\",\"\",J308/$C$308)","v":""},null,{"$f":"IF($C$308=\"\",\"\",L308/$C$308)","v":""},null,{"$f":"IF($C$308=\"\",\"\",N308/$C$308)","v":""},null,{"$f":"IF($C$308=\"\",\"\",P308/$C$308)","v":""},null,{"$f":"IF($C$308=\"\",\"\",R308/$C$308)","v":""},null,{"$f":"IF($C$308=\"\",\"\",T308/$C$308)","v":""},null,{"$f":"IF($C$308=\"\",\"\",V308/$C$308)","v":""},null,{"$f":"IF($C$308=\"\",\"\",X308/$C$308)","v":""},null,{"$f":"IF($C$308=\"\",\"\",Z308/$C$308)","v":""},null,{"$f":"IF($C$308=\"\",\"\",AB308/$C$308)","v":""},null,{"$f":"IF($C$308=\"\",\"\",AD308/$C$308)","v":""},null,{"$f":"IF($C$308=\"\",\"\",AF308/$C$308)","v":""},null,{"$f":"IF($C$308=\"\",\"\",AH308/$C$308)","v":""},null,{"$f":"IF($C$308=\"\",\"\",AJ308/$C$308)","v":""},null,{"$f":"IF($C$308=\"\",\"\",AL308/$C$308)","v":""},null,{"$f":"IF($C$308=\"\",\"\",AN308/$C$308)","v":""},null,{"$f":"IF($C$308=\"\",\"\",AP308/$C$308)","v":""},null,{"$f":"IF($C$308=\"\",\"\",AR308/$C$308)","v":""},null,{"$f":"IF($C$308=\"\",\"\",AT308/$C$308)","v":""},null,{"$f":"IF($C$308=\"\",\"\",AV308/$C$308)","v":""},null,{"$f":"IF($C$308=\"\",\"\",AX308/$C$308)","v":""},null,{"$f":"IF($C$308=\"\",\"\",AZ308/$C$308)","v":""},null,{"$f":"IF($C$308=\"\",\"\",BB308/$C$308)","v":""},null,0]
[null,null,null,null,{"$f":"IF($C$309=\"\",\"\",F309/$C$309)","v":""},null,{"$f":"IF($C$309=\"\",\"\",H309/$C$309)","v":""},null,{"$f":"IF($C$309=\"\",\"\",J309/$C$309)","v":""},null,{"$f":"IF($C$309=\"\",\"\",L309/$C$309)","v":""},null,{"$f":"IF($C$309=\"\",\"\",N309/$C$309)","v":""},null,{"$f":"IF($C$309=\"\",\"\",P309/$C$309)","v":""},null,{"$f":"IF($C$309=\"\",\"\",R309/$C$309)","v":""},null,{"$f":"IF($C$309=\"\",\"\",T309/$C$309)","v":""},null,{"$f":"IF($C$309=\"\",\"\",V309/$C$309)","v":""},null,{"$f":"IF($C$309=\"\",\"\",X309/$C$309)","v":""},null,{"$f":"IF($C$309=\"\",\"\",Z309/$C$309)","v":""},null,{"$f":"IF($C$309=\"\",\"\",AB309/$C$309)","v":""},null,{"$f":"IF($C$309=\"\",\"\",AD309/$C$309)","v":""},null,{"$f":"IF($C$309=\"\",\"\",AF309/$C$309)","v":""},null,{"$f":"IF($C$309=\"\",\"\",AH309/$C$309)","v":""},null,{"$f":"IF($C$309=\"\",\"\",AJ309/$C$309)","v":""},null,{"$f":"IF($C$309=\"\",\"\",AL309/$C$309)","v":""},null,{"$f":"IF($C$309=\"\",\"\",AN309/$C$309)","v":""},null,{"$f":"IF($C$309=\"\",\"\",AP309/$C$309)","v":""},null,{"$f":"IF($C$309=\"\",\"\",AR309/$C$309)","v":""},null,{"$f":"IF($C$309=\"\",\"\",AT309/$C$309)","v":""},null,{"$f":"IF($C$309=\"\",\"\",AV309/$C$309)","v":""},null,{"$f":"IF($C$309=\"\",\"\",AX309/$C$309)","v":""},null,{"$f":"IF($C$309=\"\",\"\",AZ309/$C$309)","v":""},null,{"$f":"IF($C$309=\"\",\"\",BB309/$C$309)","v":""},null,0]
[null,null,null,null,{"$f":"IF($C$310=\"\",\"\",F310/$C$310)","v":""},null,{"$f":"IF($C$310=\"\",\"\",H310/$C$310)","v":""},null,{"$f":"IF($C$310=\"\",\"\",J310/$C$310)","v":""},null,{"$f":"IF($C$310=\"\",\"\",L310/$C$310)","v":""},null,{"$f":"IF($C$310=\"\",\"\",N310/$C$310)","v":""},null,{"$f":"IF($C$310=\"\",\"\",P310/$C$310)","v":""},null,{"$f":"IF($C$310=\"\",\"\",R310/$C$310)","v":""},null,{"$f":"IF($C$310=\"\",\"\",T310/$C$310)","v":""},null,{"$f":"IF($C$310=\"\",\"\",V310/$C$310)","v":""},null,{"$f":"IF($C$310=\"\",\"\",X310/$C$310)","v":""},null,{"$f":"IF($C$310=\"\",\"\",Z310/$C$310)","v":""},null,{"$f":"IF($C$310=\"\",\"\",AB310/$C$310)","v":""},null,{"$f":"IF($C$310=\"\",\"\",AD310/$C$310)","v":""},null,{"$f":"IF($C$310=\"\",\"\",AF310/$C$310)","v":""},null,{"$f":"IF($C$310=\"\",\"\",AH310/$C$310)","v":""},null,{"$f":"IF($C$310=\"\",\"\",AJ310/$C$310)","v":""},null,{"$f":"IF($C$310=\"\",\"\",AL310/$C$310)","v":""},null,{"$f":"IF($C$310=\"\",\"\",AN310/$C$310)","v":""},null,{"$f":"IF($C$310=\"\",\"\",AP310/$C$310)","v":""},null,{"$f":"IF($C$310=\"\",\"\",AR310/$C$310)","v":""},null,{"$f":"IF($C$310=\"\",\"\",AT310/$C$310)","v":""},null,{"$f":"IF($C$310=\"\",\"\",AV310/$C$310)","v":""},null,{"$f":"IF($C$310=\"\",\"\",AX310/$C$310)","v":""},null,{"$f":"IF($C$310=\"\",\"\",AZ310/$C$310)","v":""},null,{"$f":"IF($C$310=\"\",\"\",BB310/$C$310)","v":""},null,0]
[null,null,null,null,{"$f":"IF($C$311=\"\",\"\",F311/$C$311)","v":""},null,{"$f":"IF($C$311=\"\",\"\",H311/$C$311)","v":""},null,{"$f":"IF($C$311=\"\",\"\",J311/$C$311)","v":""},null,{"$f":"IF($C$311=\"\",\"\",L311/$C$311)","v":""},null,{"$f":"IF($C$311=\"\",\"\",N311/$C$311)","v":""},null,{"$f":"IF($C$311=\"\",\"\",P311/$C$311)","v":""},null,{"$f":"IF($C$311=\"\",\"\",R311/$C$311)","v":""},null,{"$f":"IF($C$311=\"\",\"\",T311/$C$311)","v":""},null,{"$f":"IF($C$311=\"\",\"\",V311/$C$311)","v":""},null,{"$f":"IF($C$311=\"\",\"\",X311/$C$311)","v":""},null,{"$f":"IF($C$311=\"\",\"\",Z311/$C$311)","v":""},null,{"$f":"IF($C$311=\"\",\"\",AB311/$C$311)","v":""},null,{"$f":"IF($C$311=\"\",\"\",AD311/$C$311)","v":""},null,{"$f":"IF($C$311=\"\",\"\",AF311/$C$311)","v":""},null,{"$f":"IF($C$311=\"\",\"\",AH311/$C$311)","v":""},null,{"$f":"IF($C$311=\"\",\"\",AJ311/$C$311)","v":""},null,{"$f":"IF($C$311=\"\",\"\",AL311/$C$311)","v":""},null,{"$f":"IF($C$311=\"\",\"\",AN311/$C$311)","v":""},null,{"$f":"IF($C$311=\"\",\"\",AP311/$C$311)","v":""},null,{"$f":"IF($C$311=\"\",\"\",AR311/$C$311)","v":""},null,{"$f":"IF($C$311=\"\",\"\",AT311/$C$311)","v":""},null,{"$f":"IF($C$311=\"\",\"\",AV311/$C$311)","v":""},null,{"$f":"IF($C$311=\"\",\"\",AX311/$C$311)","v":""},null,{"$f":"IF($C$311=\"\",\"\",AZ311/$C$311)","v":""},null,{"$f":"IF($C$311=\"\",\"\",BB311/$C$311)","v":""},null,0]
[null,null,null,null,{"$f":"IF($C$312=\"\",\"\",F312/$C$312)","v":""},null,{"$f":"IF($C$312=\"\",\"\",H312/$C$312)","v":""},null,{"$f":"IF($C$312=\"\",\"\",J312/$C$312)","v":""},null,{"$f":"IF($C$312=\"\",\"\",L312/$C$312)","v":""},null,{"$f":"IF($C$312=\"\",\"\",N312/$C$312)","v":""},null,{"$f":"IF($C$312=\"\",\"\",P312/$C$312)","v":""},null,{"$f":"IF($C$312=\"\",\"\",R312/$C$312)","v":""},null,{"$f":"IF($C$312=\"\",\"\",T312/$C$312)","v":""},null,{"$f":"IF($C$312=\"\",\"\",V312/$C$312)","v":""},null,{"$f":"IF($C$312=\"\",\"\",X312/$C$312)","v":""},null,{"$f":"IF($C$312=\"\",\"\",Z312/$C$312)","v":""},null,{"$f":"IF($C$312=\"\",\"\",AB312/$C$312)","v":""},null,{"$f":"IF($C$312=\"\",\"\",AD312/$C$312)","v":""},null,{"$f":"IF($C$312=\"\",\"\",AF312/$C$312)","v":""},null,{"$f":"IF($C$312=\"\",\"\",AH312/$C$312)","v":""},null,{"$f":"IF($C$312=\"\",\"\",AJ312/$C$312)","v":""},null,{"$f":"IF($C$312=\"\",\"\",AL312/$C$312)","v":""},null,{"$f":"IF($C$312=\"\",\"\",AN312/$C$312)","v":""},null,{"$f":"IF($C$312=\"\",\"\",AP312/$C$312)","v":""},null,{"$f":"IF($C$312=\"\",\"\",AR312/$C$312)","v":""},null,{"$f":"IF($C$312=\"\",\"\",AT312/$C$312)","v":""},null,{"$f":"IF($C$312=\"\",\"\",AV312/$C$312)","v":""},null,{"$f":"IF($C$312=\"\",\"\",AX312/$C$312)","v":""},null,{"$f":"IF($C$312=\"\",\"\",AZ312/$C$312)","v":""},null,{"$f":"IF($C$312=\"\",\"\",BB312/$C$312)","v":""},null,{"$f":"SUM(BB312,AZ312,AX312,AV312,AT312,AR312,AP312,AN312,AL312,AJ312,AH312,AF312,AD312,AB312,Z312,X312,V312,T312,R312,P312,N312,L312,J312,H312,F312)","v":0}]
["TOTAL HOURS",null,null,null,null,{"$f":"SUM(F254:F312)","v":0},null,{"$f":"SUM(H254:H312)","v":0},null,{"$f":"SUM(J254:J312)","v":0},null,{"$f":"SUM(L254:L312)","v":0},null,{"$f":"SUM(N254:N312)","v":0},null,{"$f":"SUM(P254:P312)","v":0},null,{"$f":"SUM(R254:R312)","v":0},null,{"$f":"SUM(T254:T312)","v":0},null,{"$f":"SUM(V254:V312)","v":0},null,{"$f":"SUM(X254:X312)","v":0},null,{"$f":"SUM(Z254:Z312)","v":0},null,{"$f":"SUM(AB254:AB312)","v":0},null,{"$f":"SUM(AD254:AD312)","v":0},null,{"$f":"SUM(AF254:AF312)","v":0},null,{"$f":"SUM(AH254:AH312)","v":0},null,{"$f":"SUM(AJ254:AJ312)","v":0},null,{"$f":"SUM(AL254:AL312)","v":0},null,{"$f":"SUM(AN254:AN312)","v":0},null,{"$f":"SUM(AP254:AP312)","v":0},null,{"$f":"SUM(AR254:AR312)","v":0},null,{"$f":"SUM(AT254:AT312)","v":0},null,{"$f":"SUM(AV254:AV312)","v":0},null,{"$f":"SUM(AX254:AX312)","v":0},null,{"$f":"SUM(AZ254:AZ312)","v":0},null,0,{"$f":"SUM(E313:BB313)","v":0}]
["TOTAL WORKDAYS",null,null,null,null,{"$f":"F313/8","v":0},null,{"$f":"H313/8","v":0},null,{"$f":"J313/8","v":0},null,{"$f":"L313/8","v":0},null,{"$f":"N313/8","v":0},null,{"$f":"P313/8","v":0},null,{"$f":"R313/8","v":0},null,{"$f":"T313/8","v":0},null,{"$f":"V313/8","v":0},null,{"$f":"X313/8","v":0},null,{"$f":"Z313/8","v":0},null,{"$f":"AB313/8","v":0},null,{"$f":"AD313/8","v":0},null,0,null,{"$f":"AH313/8","v":0},null,0,null,{"$f":"AL313/8","v":0},null,0,null,{"$f":"AP313/8","v":0},null,0,null,{"$f":"AT313/8","v":0},null,{"$f":"AV313/8","v":0},null,{"$f":"AX313/8","v":0},null,{"$f":"AZ313/8","v":0},null,0,{"$f":"SUM(E314:BB314)","v":0}]
["TOTAL RAW LABOR",null,null,null,null,{"$f":"$E$13*F313","v":0},null,{"$f":"$G$13*H313","v":0},null,{"$f":"$I$13*J313","v":0},null,{"$f":"$K$13*L313","v":0},null,{"$f":"$M$13*N313","v":0},null,{"$f":"$O$13*P313","v":0},null,{"$f":"$Q$13*R313","v":0},null,{"$f":"$S$13*T313","v":0},null,{"$f":"$U$13*V313","v":0},null,{"$f":"$W$13*X313","v":0},null,{"$f":"$Y$13*Z313","v":0},null,{"$f":"$AA$13*AB313","v":0},null,{"$f":"$AC$13*AD313","v":0},null,{"$f":"$AC$13*AF313","v":0},null,{"$f":"$AC$13*AH313","v":0},null,{"$f":"$AC$13*AJ313","v":0},null,{"$f":"$AC$13*AL313","v":0},null,{"$f":"$AC$13*AN313","v":0},null,{"$f":"$AC$13*AP313","v":0},null,{"$f":"$AC$13*AR313","v":0},null,{"$f":"$AC$13*AT313","v":0},null,{"$f":"$AC$13*AV313","v":0},null,{"$f":"$AC$13*AX313","v":0},null,{"$f":"$AC$13*AZ313","v":0},null,0,{"$f":"SUM(E315:BB315)","v":0}]
["Task 12.0     ","PROJECT SPECIAL PROVISIONS"]
[12.1,"Preliminary Project Special Provisions"]
["    12.1.1","    General Requirements:\n          -  Summary of Work\n          -  Construction Staging/Migration\n          -  Work within Historic Districts\n          -  Railroad Requirements\n          -  Documentation",null,null,{"$f":"IF($C$318=\"\",\"\",F318/$C$318)","v":""},null,{"$f":"IF($C$318=\"\",\"\",H318/$C$318)","v":""},null,{"$f":"IF($C$318=\"\",\"\",J318/$C$318)","v":""},null,{"$f":"IF($C$318=\"\",\"\",L318/$C$318)","v":""},null,{"$f":"IF($C$318=\"\",\"\",N318/$C$318)","v":""},null,{"$f":"IF($C$318=\"\",\"\",P318/$C$318)","v":""},null,{"$f":"IF($C$318=\"\",\"\",R318/$C$318)","v":""},null,{"$f":"IF($C$318=\"\",\"\",T318/$C$318)","v":""},null,{"$f":"IF($C$318=\"\",\"\",V318/$C$318)","v":""},null,{"$f":"IF($C$318=\"\",\"\",X318/$C$318)","v":""},null,{"$f":"IF($C$318=\"\",\"\",Z318/$C$318)","v":""},null,{"$f":"IF($C$318=\"\",\"\",AB318/$C$318)","v":""},null,{"$f":"IF($C$318=\"\",\"\",AD318/$C$318)","v":""},null,{"$f":"IF($C$318=\"\",\"\",AF318/$C$318)","v":""},null,{"$f":"IF($C$318=\"\",\"\",AH318/$C$318)","v":""},null,{"$f":"IF($C$318=\"\",\"\",AJ318/$C$318)","v":""},null,{"$f":"IF($C$318=\"\",\"\",AL318/$C$318)","v":""},null,{"$f":"IF($C$318=\"\",\"\",AN318/$C$318)","v":""},null,{"$f":"IF($C$318=\"\",\"\",AP318/$C$318)","v":""},null,{"$f":"IF($C$318=\"\",\"\",AR318/$C$318)","v":""},null,{"$f":"IF($C$318=\"\",\"\",AT318/$C$318)","v":""},null,{"$f":"IF($C$318=\"\",\"\",AV318/$C$318)","v":""},null,{"$f":"IF($C$318=\"\",\"\",AX318/$C$318)","v":""},null,{"$f":"IF($C$318=\"\",\"\",AZ318/$C$318)","v":""},null,{"$f":"IF($C$318=\"\",\"\",BB318/$C$318)","v":""},null,{"$f":"SUM(BB318,AZ318,AX318,AV318,AT318,AR318,AP318,AN318,AL318,AJ318,AH318,AF318,AD318,AB318,Z318,X318,V318,T318,R318,P318,N318,L318,J318,H318,F318)","v":0}]
["    12.1.2","    Temporary Traffic Control (Maintenance of \n    Traffic)",null,null,{"$f":"IF($C$319=\"\",\"\",F319/$C$319)","v":""},null,{"$f":"IF($C$319=\"\",\"\",H319/$C$319)","v":""},null,{"$f":"IF($C$319=\"\",\"\",J319/$C$319)","v":""},null,{"$f":"IF($C$319=\"\",\"\",L319/$C$319)","v":""},null,{"$f":"IF($C$319=\"\",\"\",N319/$C$319)","v":""},null,{"$f":"IF($C$319=\"\",\"\",P319/$C$319)","v":""},null,{"$f":"IF($C$319=\"\",\"\",R319/$C$319)","v":""},null,{"$f":"IF($C$319=\"\",\"\",T319/$C$319)","v":""},null,{"$f":"IF($C$319=\"\",\"\",V319/$C$319)","v":""},null,{"$f":"IF($C$319=\"\",\"\",X319/$C$319)","v":""},null,{"$f":"IF($C$319=\"\",\"\",Z319/$C$319)","v":""},null,{"$f":"IF($C$319=\"\",\"\",AB319/$C$319)","v":""},null,{"$f":"IF($C$319=\"\",\"\",AD319/$C$319)","v":""},null,{"$f":"IF($C$319=\"\",\"\",AF319/$C$319)","v":""},null,{"$f":"IF($C$319=\"\",\"\",AH319/$C$319)","v":""},null,{"$f":"IF($C$319=\"\",\"\",AJ319/$C$319)","v":""},null,{"$f":"IF($C$319=\"\",\"\",AL319/$C$319)","v":""},null,{"$f":"IF($C$319=\"\",\"\",AN319/$C$319)","v":""},null,{"$f":"IF($C$319=\"\",\"\",AP319/$C$319)","v":""},null,{"$f":"IF($C$319=\"\",\"\",AR319/$C$319)","v":""},null,{"$f":"IF($C$319=\"\",\"\",AT319/$C$319)","v":""},null,{"$f":"IF($C$319=\"\",\"\",AV319/$C$319)","v":""},null,{"$f":"IF($C$319=\"\",\"\",AX319/$C$319)","v":""},null,{"$f":"IF($C$319=\"\",\"\",AZ319/$C$319)","v":""},null,{"$f":"IF($C$319=\"\",\"\",BB319/$C$319)","v":""},null,0]
["    12.1.3","    Central Software",null,null,{"$f":"IF($C$320=\"\",\"\",F320/$C$320)","v":""},null,{"$f":"IF($C$320=\"\",\"\",H320/$C$320)","v":""},null,{"$f":"IF($C$320=\"\",\"\",J320/$C$320)","v":""},null,{"$f":"IF($C$320=\"\",\"\",L320/$C$320)","v":""},null,{"$f":"IF($C$320=\"\",\"\",N320/$C$320)","v":""},null,{"$f":"IF($C$320=\"\",\"\",P320/$C$320)","v":""},null,{"$f":"IF($C$320=\"\",\"\",R320/$C$320)","v":""},null,{"$f":"IF($C$320=\"\",\"\",T320/$C$320)","v":""},null,{"$f":"IF($C$320=\"\",\"\",V320/$C$320)","v":""},null,{"$f":"IF($C$320=\"\",\"\",X320/$C$320)","v":""},null,{"$f":"IF($C$320=\"\",\"\",Z320/$C$320)","v":""},null,{"$f":"IF($C$320=\"\",\"\",AB320/$C$320)","v":""},null,{"$f":"IF($C$320=\"\",\"\",AD320/$C$320)","v":""},null,{"$f":"IF($C$320=\"\",\"\",AF320/$C$320)","v":""},null,{"$f":"IF($C$320=\"\",\"\",AH320/$C$320)","v":""},null,{"$f":"IF($C$320=\"\",\"\",AJ320/$C$320)","v":""},null,{"$f":"IF($C$320=\"\",\"\",AL320/$C$320)","v":""},null,{"$f":"IF($C$320=\"\",\"\",AN320/$C$320)","v":""},null,{"$f":"IF($C$320=\"\",\"\",AP320/$C$320)","v":""},null,{"$f":"IF($C$320=\"\",\"\",AR320/$C$320)","v":""},null,{"$f":"IF($C$320=\"\",\"\",AT320/$C$320)","v":""},null,{"$f":"IF($C$320=\"\",\"\",AV320/$C$320)","v":""},null,{"$f":"IF($C$320=\"\",\"\",AX320/$C$320)","v":""},null,{"$f":"IF($C$320=\"\",\"\",AZ320/$C$320)","v":""},null,{"$f":"IF($C$320=\"\",\"\",BB320/$C$320)","v":""},null,0]
["    12.1.4","    Central Site Equipment & Building Modifications",null,null,{"$f":"IF($C$321=\"\",\"\",F321/$C$321)","v":""},null,{"$f":"IF($C$321=\"\",\"\",H321/$C$321)","v":""},null,{"$f":"IF($C$321=\"\",\"\",J321/$C$321)","v":""},null,{"$f":"IF($C$321=\"\",\"\",L321/$C$321)","v":""},null,{"$f":"IF($C$321=\"\",\"\",N321/$C$321)","v":""},null,{"$f":"IF($C$321=\"\",\"\",P321/$C$321)","v":""},null,{"$f":"IF($C$321=\"\",\"\",R321/$C$321)","v":""},null,{"$f":"IF($C$321=\"\",\"\",T321/$C$321)","v":""},null,{"$f":"IF($C$321=\"\",\"\",V321/$C$321)","v":""},null,{"$f":"IF($C$321=\"\",\"\",X321/$C$321)","v":""},null,{"$f":"IF($C$321=\"\",\"\",Z321/$C$321)","v":""},null,{"$f":"IF($C$321=\"\",\"\",AB321/$C$321)","v":""},null,{"$f":"IF($C$321=\"\",\"\",AD321/$C$321)","v":""},null,{"$f":"IF($C$321=\"\",\"\",AF321/$C$321)","v":""},null,{"$f":"IF($C$321=\"\",\"\",AH321/$C$321)","v":""},null,{"$f":"IF($C$321=\"\",\"\",AJ321/$C$321)","v":""},null,{"$f":"IF($C$321=\"\",\"\",AL321/$C$321)","v":""},null,{"$f":"IF($C$321=\"\",\"\",AN321/$C$321)","v":""},null,{"$f":"IF($C$321=\"\",\"\",AP321/$C$321)","v":""},null,{"$f":"IF($C$321=\"\",\"\",AR321/$C$321)","v":""},null,{"$f":"IF($C$321=\"\",\"\",AT321/$C$321)","v":""},null,{"$f":"IF($C$321=\"\",\"\",AV321/$C$321)","v":""},null,{"$f":"IF($C$321=\"\",\"\",AX321/$C$321)","v":""},null,{"$f":"IF($C$321=\"\",\"\",AZ321/$C$321)","v":""},null,{"$f":"IF($C$321=\"\",\"\",BB321/$C$321)","v":""},null,0]
["    12.1.5","    CCTV Monitoring System\n          -  Central Equipment\n          -  Field Equipment\n          -  Integration and Software Modification",null,null,{"$f":"IF($C$322=\"\",\"\",F322/$C$322)","v":""},null,{"$f":"IF($C$322=\"\",\"\",H322/$C$322)","v":""},null,{"$f":"IF($C$322=\"\",\"\",J322/$C$322)","v":""},null,{"$f":"IF($C$322=\"\",\"\",L322/$C$322)","v":""},null,{"$f":"IF($C$322=\"\",\"\",N322/$C$322)","v":""},null,{"$f":"IF($C$322=\"\",\"\",P322/$C$322)","v":""},null,{"$f":"IF($C$322=\"\",\"\",R322/$C$322)","v":""},null,{"$f":"IF($C$322=\"\",\"\",T322/$C$322)","v":""},null,{"$f":"IF($C$322=\"\",\"\",V322/$C$322)","v":""},null,{"$f":"IF($C$322=\"\",\"\",X322/$C$322)","v":""},null,{"$f":"IF($C$322=\"\",\"\",Z322/$C$322)","v":""},null,{"$f":"IF($C$322=\"\",\"\",AB322/$C$322)","v":""},null,{"$f":"IF($C$322=\"\",\"\",AD322/$C$322)","v":""},null,{"$f":"IF($C$322=\"\",\"\",AF322/$C$322)","v":""},null,{"$f":"IF($C$322=\"\",\"\",AH322/$C$322)","v":""},null,{"$f":"IF($C$322=\"\",\"\",AJ322/$C$322)","v":""},null,{"$f":"IF($C$322=\"\",\"\",AL322/$C$322)","v":""},null,{"$f":"IF($C$322=\"\",\"\",AN322/$C$322)","v":""},null,{"$f":"IF($C$322=\"\",\"\",AP322/$C$322)","v":""},null,{"$f":"IF($C$322=\"\",\"\",AR322/$C$322)","v":""},null,{"$f":"IF($C$322=\"\",\"\",AT322/$C$322)","v":""},null,{"$f":"IF($C$322=\"\",\"\",AV322/$C$322)","v":""},null,{"$f":"IF($C$322=\"\",\"\",AX322/$C$322)","v":""},null,{"$f":"IF($C$322=\"\",\"\",AZ322/$C$322)","v":""},null,{"$f":"IF($C$322=\"\",\"\",BB322/$C$322)","v":""},null,0]
["    12.1.6","    Ethernet Fiber-Optic Communications Network\n          -  Electronics\n          -  Drop Cables and Splice Centers\n          -  Communications Hubs ",null,null,{"$f":"IF($C$323=\"\",\"\",F323/$C$323)","v":""},null,{"$f":"IF($C$323=\"\",\"\",H323/$C$323)","v":""},null,{"$f":"IF($C$323=\"\",\"\",J323/$C$323)","v":""},null,{"$f":"IF($C$323=\"\",\"\",L323/$C$323)","v":""},null,{"$f":"IF($C$323=\"\",\"\",N323/$C$323)","v":""},null,{"$f":"IF($C$323=\"\",\"\",P323/$C$323)","v":""},null,{"$f":"IF($C$323=\"\",\"\",R323/$C$323)","v":""},null,{"$f":"IF($C$323=\"\",\"\",T323/$C$323)","v":""},null,{"$f":"IF($C$323=\"\",\"\",V323/$C$323)","v":""},null,{"$f":"IF($C$323=\"\",\"\",X323/$C$323)","v":""},null,{"$f":"IF($C$323=\"\",\"\",Z323/$C$323)","v":""},null,{"$f":"IF($C$323=\"\",\"\",AB323/$C$323)","v":""},null,{"$f":"IF($C$323=\"\",\"\",AD323/$C$323)","v":""},null,{"$f":"IF($C$323=\"\",\"\",AF323/$C$323)","v":""},null,{"$f":"IF($C$323=\"\",\"\",AH323/$C$323)","v":""},null,{"$f":"IF($C$323=\"\",\"\",AJ323/$C$323)","v":""},null,{"$f":"IF($C$323=\"\",\"\",AL323/$C$323)","v":""},null,{"$f":"IF($C$323=\"\",\"\",AN323/$C$323)","v":""},null,{"$f":"IF($C$323=\"\",\"\",AP323/$C$323)","v":""},null,{"$f":"IF($C$323=\"\",\"\",AR323/$C$323)","v":""},null,{"$f":"IF($C$323=\"\",\"\",AT323/$C$323)","v":""},null,{"$f":"IF($C$323=\"\",\"\",AV323/$C$323)","v":""},null,{"$f":"IF($C$323=\"\",\"\",AX323/$C$323)","v":""},null,{"$f":"IF($C$323=\"\",\"\",AZ323/$C$323)","v":""},null,{"$f":"IF($C$323=\"\",\"\",BB323/$C$323)","v":""},null,0]
["    12.1.7","    Wireless Communications Network\n      -  Electronics\n      -  Hardware\n      -  Software ",null,null,{"$f":"IF($C$324=\"\",\"\",F324/$C$324)","v":""},null,{"$f":"IF($C$324=\"\",\"\",H324/$C$324)","v":""},null,{"$f":"IF($C$324=\"\",\"\",J324/$C$324)","v":""},null,{"$f":"IF($C$324=\"\",\"\",L324/$C$324)","v":""},null,{"$f":"IF($C$324=\"\",\"\",N324/$C$324)","v":""},null,{"$f":"IF($C$324=\"\",\"\",P324/$C$324)","v":""},null,{"$f":"IF($C$324=\"\",\"\",R324/$C$324)","v":""},null,{"$f":"IF($C$324=\"\",\"\",T324/$C$324)","v":""},null,{"$f":"IF($C$324=\"\",\"\",V324/$C$324)","v":""},null,{"$f":"IF($C$324=\"\",\"\",X324/$C$324)","v":""},null,{"$f":"IF($C$324=\"\",\"\",Z324/$C$324)","v":""},null,{"$f":"IF($C$324=\"\",\"\",AB324/$C$324)","v":""},null,{"$f":"IF($C$324=\"\",\"\",AD324/$C$324)","v":""},null,{"$f":"IF($C$324=\"\",\"\",AF324/$C$324)","v":""},null,{"$f":"IF($C$324=\"\",\"\",AH324/$C$324)","v":""},null,{"$f":"IF($C$324=\"\",\"\",AJ324/$C$324)","v":""},null,{"$f":"IF($C$324=\"\",\"\",AL324/$C$324)","v":""},null,{"$f":"IF($C$324=\"\",\"\",AN324/$C$324)","v":""},null,{"$f":"IF($C$324=\"\",\"\",AP324/$C$324)","v":""},null,{"$f":"IF($C$324=\"\",\"\",AR324/$C$324)","v":""},null,{"$f":"IF($C$324=\"\",\"\",AT324/$C$324)","v":""},null,{"$f":"IF($C$324=\"\",\"\",AV324/$C$324)","v":""},null,{"$f":"IF($C$324=\"\",\"\",AX324/$C$324)","v":""},null,{"$f":"IF($C$324=\"\",\"\",AZ324/$C$324)","v":""},null,{"$f":"IF($C$324=\"\",\"\",BB324/$C$324)","v":""},null,0]
["    12.1.8","    Training",null,null,{"$f":"IF($C$325=\"\",\"\",F325/$C$325)","v":""},null,{"$f":"IF($C$325=\"\",\"\",H325/$C$325)","v":""},null,{"$f":"IF($C$325=\"\",\"\",J325/$C$325)","v":""},null,{"$f":"IF($C$325=\"\",\"\",L325/$C$325)","v":""},null,{"$f":"IF($C$325=\"\",\"\",N325/$C$325)","v":""},null,{"$f":"IF($C$325=\"\",\"\",P325/$C$325)","v":""},null,{"$f":"IF($C$325=\"\",\"\",R325/$C$325)","v":""},null,{"$f":"IF($C$325=\"\",\"\",T325/$C$325)","v":""},null,{"$f":"IF($C$325=\"\",\"\",V325/$C$325)","v":""},null,{"$f":"IF($C$325=\"\",\"\",X325/$C$325)","v":""},null,{"$f":"IF($C$325=\"\",\"\",Z325/$C$325)","v":""},null,{"$f":"IF($C$325=\"\",\"\",AB325/$C$325)","v":""},null,{"$f":"IF($C$325=\"\",\"\",AD325/$C$325)","v":""},null,{"$f":"IF($C$325=\"\",\"\",AF325/$C$325)","v":""},null,{"$f":"IF($C$325=\"\",\"\",AH325/$C$325)","v":""},null,{"$f":"IF($C$325=\"\",\"\",AJ325/$C$325)","v":""},null,{"$f":"IF($C$325=\"\",\"\",AL325/$C$325)","v":""},null,{"$f":"IF($C$325=\"\",\"\",AN325/$C$325)","v":""},null,{"$f":"IF($C$325=\"\",\"\",AP325/$C$325)","v":""},null,{"$f":"IF($C$325=\"\",\"\",AR325/$C$325)","v":""},null,{"$f":"IF($C$325=\"\",\"\",AT325/$C$325)","v":""},null,{"$f":"IF($C$325=\"\",\"\",AV325/$C$325)","v":""},null,{"$f":"IF($C$325=\"\",\"\",AX325/$C$325)","v":""},null,{"$f":"IF($C$325=\"\",\"\",AZ325/$C$325)","v":""},null,{"$f":"IF($C$325=\"\",\"\",BB325/$C$325)","v":""},null,0]
["    12.1.9","    Testing & Acceptance",null,null,{"$f":"IF($C$326=\"\",\"\",F326/$C$326)","v":""},null,{"$f":"IF($C$326=\"\",\"\",H326/$C$326)","v":""},null,{"$f":"IF($C$326=\"\",\"\",J326/$C$326)","v":""},null,{"$f":"IF($C$326=\"\",\"\",L326/$C$326)","v":""},null,{"$f":"IF($C$326=\"\",\"\",N326/$C$326)","v":""},null,{"$f":"IF($C$326=\"\",\"\",P326/$C$326)","v":""},null,{"$f":"IF($C$326=\"\",\"\",R326/$C$326)","v":""},null,{"$f":"IF($C$326=\"\",\"\",T326/$C$326)","v":""},null,{"$f":"IF($C$326=\"\",\"\",V326/$C$326)","v":""},null,{"$f":"IF($C$326=\"\",\"\",X326/$C$326)","v":""},null,{"$f":"IF($C$326=\"\",\"\",Z326/$C$326)","v":""},null,{"$f":"IF($C$326=\"\",\"\",AB326/$C$326)","v":""},null,{"$f":"IF($C$326=\"\",\"\",AD326/$C$326)","v":""},null,{"$f":"IF($C$326=\"\",\"\",AF326/$C$326)","v":""},null,{"$f":"IF($C$326=\"\",\"\",AH326/$C$326)","v":""},null,{"$f":"IF($C$326=\"\",\"\",AJ326/$C$326)","v":""},null,{"$f":"IF($C$326=\"\",\"\",AL326/$C$326)","v":""},null,{"$f":"IF($C$326=\"\",\"\",AN326/$C$326)","v":""},null,{"$f":"IF($C$326=\"\",\"\",AP326/$C$326)","v":""},null,{"$f":"IF($C$326=\"\",\"\",AR326/$C$326)","v":""},null,{"$f":"IF($C$326=\"\",\"\",AT326/$C$326)","v":""},null,{"$f":"IF($C$326=\"\",\"\",AV326/$C$326)","v":""},null,{"$f":"IF($C$326=\"\",\"\",AX326/$C$326)","v":""},null,{"$f":"IF($C$326=\"\",\"\",AZ326/$C$326)","v":""},null,{"$f":"IF($C$326=\"\",\"\",BB326/$C$326)","v":""},null,0]
["    12.1.10","    Incorporate & Edit Prior Project Special \n    Provisions",null,null,{"$f":"IF($C$327=\"\",\"\",F327/$C$327)","v":""},null,{"$f":"IF($C$327=\"\",\"\",H327/$C$327)","v":""},null,{"$f":"IF($C$327=\"\",\"\",J327/$C$327)","v":""},null,{"$f":"IF($C$327=\"\",\"\",L327/$C$327)","v":""},null,{"$f":"IF($C$327=\"\",\"\",N327/$C$327)","v":""},null,{"$f":"IF($C$327=\"\",\"\",P327/$C$327)","v":""},null,{"$f":"IF($C$327=\"\",\"\",R327/$C$327)","v":""},null,{"$f":"IF($C$327=\"\",\"\",T327/$C$327)","v":""},null,{"$f":"IF($C$327=\"\",\"\",V327/$C$327)","v":""},null,{"$f":"IF($C$327=\"\",\"\",X327/$C$327)","v":""},null,{"$f":"IF($C$327=\"\",\"\",Z327/$C$327)","v":""},null,{"$f":"IF($C$327=\"\",\"\",AB327/$C$327)","v":""},null,{"$f":"IF($C$327=\"\",\"\",AD327/$C$327)","v":""},null,{"$f":"IF($C$327=\"\",\"\",AF327/$C$327)","v":""},null,{"$f":"IF($C$327=\"\",\"\",AH327/$C$327)","v":""},null,{"$f":"IF($C$327=\"\",\"\",AJ327/$C$327)","v":""},null,{"$f":"IF($C$327=\"\",\"\",AL327/$C$327)","v":""},null,{"$f":"IF($C$327=\"\",\"\",AN327/$C$327)","v":""},null,{"$f":"IF($C$327=\"\",\"\",AP327/$C$327)","v":""},null,{"$f":"IF($C$327=\"\",\"\",AR327/$C$327)","v":""},null,{"$f":"IF($C$327=\"\",\"\",AT327/$C$327)","v":""},null,{"$f":"IF($C$327=\"\",\"\",AV327/$C$327)","v":""},null,{"$f":"IF($C$327=\"\",\"\",AX327/$C$327)","v":""},null,{"$f":"IF($C$327=\"\",\"\",AZ327/$C$327)","v":""},null,{"$f":"IF($C$327=\"\",\"\",BB327/$C$327)","v":""},null,0]
["    12.1.11","    Incorporate  ITSS Unit PSPs Version Updates",null,null,{"$f":"IF($C$328=\"\",\"\",F328/$C$328)","v":""},null,{"$f":"IF($C$328=\"\",\"\",H328/$C$328)","v":""},null,{"$f":"IF($C$328=\"\",\"\",J328/$C$328)","v":""},null,{"$f":"IF($C$328=\"\",\"\",L328/$C$328)","v":""},null,{"$f":"IF($C$328=\"\",\"\",N328/$C$328)","v":""},null,{"$f":"IF($C$328=\"\",\"\",P328/$C$328)","v":""},null,{"$f":"IF($C$328=\"\",\"\",R328/$C$328)","v":""},null,{"$f":"IF($C$328=\"\",\"\",T328/$C$328)","v":""},null,{"$f":"IF($C$328=\"\",\"\",V328/$C$328)","v":""},null,{"$f":"IF($C$328=\"\",\"\",X328/$C$328)","v":""},null,{"$f":"IF($C$328=\"\",\"\",Z328/$C$328)","v":""},null,{"$f":"IF($C$328=\"\",\"\",AB328/$C$328)","v":""},null,{"$f":"IF($C$328=\"\",\"\",AD328/$C$328)","v":""},null,{"$f":"IF($C$328=\"\",\"\",AF328/$C$328)","v":""},null,{"$f":"IF($C$328=\"\",\"\",AH328/$C$328)","v":""},null,{"$f":"IF($C$328=\"\",\"\",AJ328/$C$328)","v":""},null,{"$f":"IF($C$328=\"\",\"\",AL328/$C$328)","v":""},null,{"$f":"IF($C$328=\"\",\"\",AN328/$C$328)","v":""},null,{"$f":"IF($C$328=\"\",\"\",AP328/$C$328)","v":""},null,{"$f":"IF($C$328=\"\",\"\",AR328/$C$328)","v":""},null,{"$f":"IF($C$328=\"\",\"\",AT328/$C$328)","v":""},null,{"$f":"IF($C$328=\"\",\"\",AV328/$C$328)","v":""},null,{"$f":"IF($C$328=\"\",\"\",AX328/$C$328)","v":""},null,{"$f":"IF($C$328=\"\",\"\",AZ328/$C$328)","v":""},null,{"$f":"IF($C$328=\"\",\"\",BB328/$C$328)","v":""},null,0]
["    12.1.12","    Miscellaneous Project Special Provisions",null,null,{"$f":"IF($C$329=\"\",\"\",F329/$C$329)","v":""},null,{"$f":"IF($C$329=\"\",\"\",H329/$C$329)","v":""},null,{"$f":"IF($C$329=\"\",\"\",J329/$C$329)","v":""},null,{"$f":"IF($C$329=\"\",\"\",L329/$C$329)","v":""},null,{"$f":"IF($C$329=\"\",\"\",N329/$C$329)","v":""},null,{"$f":"IF($C$329=\"\",\"\",P329/$C$329)","v":""},null,{"$f":"IF($C$329=\"\",\"\",R329/$C$329)","v":""},null,{"$f":"IF($C$329=\"\",\"\",T329/$C$329)","v":""},null,{"$f":"IF($C$329=\"\",\"\",V329/$C$329)","v":""},null,{"$f":"IF($C$329=\"\",\"\",X329/$C$329)","v":""},null,{"$f":"IF($C$329=\"\",\"\",Z329/$C$329)","v":""},null,{"$f":"IF($C$329=\"\",\"\",AB329/$C$329)","v":""},null,{"$f":"IF($C$329=\"\",\"\",AD329/$C$329)","v":""},null,{"$f":"IF($C$329=\"\",\"\",AF329/$C$329)","v":""},null,{"$f":"IF($C$329=\"\",\"\",AH329/$C$329)","v":""},null,{"$f":"IF($C$329=\"\",\"\",AJ329/$C$329)","v":""},null,{"$f":"IF($C$329=\"\",\"\",AL329/$C$329)","v":""},null,{"$f":"IF($C$329=\"\",\"\",AN329/$C$329)","v":""},null,{"$f":"IF($C$329=\"\",\"\",AP329/$C$329)","v":""},null,{"$f":"IF($C$329=\"\",\"\",AR329/$C$329)","v":""},null,{"$f":"IF($C$329=\"\",\"\",AT329/$C$329)","v":""},null,{"$f":"IF($C$329=\"\",\"\",AV329/$C$329)","v":""},null,{"$f":"IF($C$329=\"\",\"\",AX329/$C$329)","v":""},null,{"$f":"IF($C$329=\"\",\"\",AZ329/$C$329)","v":""},null,{"$f":"IF($C$329=\"\",\"\",BB329/$C$329)","v":""},null,0]
["    12.1.13",null,null,null,{"$f":"IF($C$330=\"\",\"\",F330/$C$330)","v":""},null,{"$f":"IF($C$330=\"\",\"\",H330/$C$330)","v":""},null,{"$f":"IF($C$330=\"\",\"\",J330/$C$330)","v":""},null,{"$f":"IF($C$330=\"\",\"\",L330/$C$330)","v":""},null,{"$f":"IF($C$330=\"\",\"\",N330/$C$330)","v":""},null,{"$f":"IF($C$330=\"\",\"\",P330/$C$330)","v":""},null,{"$f":"IF($C$330=\"\",\"\",R330/$C$330)","v":""},null,{"$f":"IF($C$330=\"\",\"\",T330/$C$330)","v":""},null,{"$f":"IF($C$330=\"\",\"\",V330/$C$330)","v":""},null,{"$f":"IF($C$330=\"\",\"\",X330/$C$330)","v":""},null,{"$f":"IF($C$330=\"\",\"\",Z330/$C$330)","v":""},null,{"$f":"IF($C$330=\"\",\"\",AB330/$C$330)","v":""},null,{"$f":"IF($C$330=\"\",\"\",AD330/$C$330)","v":""},null,{"$f":"IF($C$330=\"\",\"\",AF330/$C$330)","v":""},null,{"$f":"IF($C$330=\"\",\"\",AH330/$C$330)","v":""},null,{"$f":"IF($C$330=\"\",\"\",AJ330/$C$330)","v":""},null,{"$f":"IF($C$330=\"\",\"\",AL330/$C$330)","v":""},null,{"$f":"IF($C$330=\"\",\"\",AN330/$C$330)","v":""},null,{"$f":"IF($C$330=\"\",\"\",AP330/$C$330)","v":""},null,{"$f":"IF($C$330=\"\",\"\",AR330/$C$330)","v":""},null,{"$f":"IF($C$330=\"\",\"\",AT330/$C$330)","v":""},null,{"$f":"IF($C$330=\"\",\"\",AV330/$C$330)","v":""},null,{"$f":"IF($C$330=\"\",\"\",AX330/$C$330)","v":""},null,{"$f":"IF($C$330=\"\",\"\",AZ330/$C$330)","v":""},null,{"$f":"IF($C$330=\"\",\"\",BB330/$C$330)","v":""},null,0]
["    12.1.14",null,null,null,{"$f":"IF($C$331=\"\",\"\",F331/$C$331)","v":""},null,{"$f":"IF($C$331=\"\",\"\",H331/$C$331)","v":""},null,{"$f":"IF($C$331=\"\",\"\",J331/$C$331)","v":""},null,{"$f":"IF($C$331=\"\",\"\",L331/$C$331)","v":""},null,{"$f":"IF($C$331=\"\",\"\",N331/$C$331)","v":""},null,{"$f":"IF($C$331=\"\",\"\",P331/$C$331)","v":""},null,{"$f":"IF($C$331=\"\",\"\",R331/$C$331)","v":""},null,{"$f":"IF($C$331=\"\",\"\",T331/$C$331)","v":""},null,{"$f":"IF($C$331=\"\",\"\",V331/$C$331)","v":""},null,{"$f":"IF($C$331=\"\",\"\",X331/$C$331)","v":""},null,{"$f":"IF($C$331=\"\",\"\",Z331/$C$331)","v":""},null,{"$f":"IF($C$331=\"\",\"\",AB331/$C$331)","v":""},null,{"$f":"IF($C$331=\"\",\"\",AD331/$C$331)","v":""},null,{"$f":"IF($C$331=\"\",\"\",AF331/$C$331)","v":""},null,{"$f":"IF($C$331=\"\",\"\",AH331/$C$331)","v":""},null,{"$f":"IF($C$331=\"\",\"\",AJ331/$C$331)","v":""},null,{"$f":"IF($C$331=\"\",\"\",AL331/$C$331)","v":""},null,{"$f":"IF($C$331=\"\",\"\",AN331/$C$331)","v":""},null,{"$f":"IF($C$331=\"\",\"\",AP331/$C$331)","v":""},null,{"$f":"IF($C$331=\"\",\"\",AR331/$C$331)","v":""},null,{"$f":"IF($C$331=\"\",\"\",AT331/$C$331)","v":""},null,{"$f":"IF($C$331=\"\",\"\",AV331/$C$331)","v":""},null,{"$f":"IF($C$331=\"\",\"\",AX331/$C$331)","v":""},null,{"$f":"IF($C$331=\"\",\"\",AZ331/$C$331)","v":""},null,{"$f":"IF($C$331=\"\",\"\",BB331/$C$331)","v":""},null,0]
["    12.1.15",null,null,null,{"$f":"IF($C$332=\"\",\"\",F332/$C$332)","v":""},null,{"$f":"IF($C$332=\"\",\"\",H332/$C$332)","v":""},null,{"$f":"IF($C$332=\"\",\"\",J332/$C$332)","v":""},null,{"$f":"IF($C$332=\"\",\"\",L332/$C$332)","v":""},null,{"$f":"IF($C$332=\"\",\"\",N332/$C$332)","v":""},null,{"$f":"IF($C$332=\"\",\"\",P332/$C$332)","v":""},null,{"$f":"IF($C$332=\"\",\"\",R332/$C$332)","v":""},null,{"$f":"IF($C$332=\"\",\"\",T332/$C$332)","v":""},null,{"$f":"IF($C$332=\"\",\"\",V332/$C$332)","v":""},null,{"$f":"IF($C$332=\"\",\"\",X332/$C$332)","v":""},null,{"$f":"IF($C$332=\"\",\"\",Z332/$C$332)","v":""},null,{"$f":"IF($C$332=\"\",\"\",AB332/$C$332)","v":""},null,{"$f":"IF($C$332=\"\",\"\",AD332/$C$332)","v":""},null,{"$f":"IF($C$332=\"\",\"\",AF332/$C$332)","v":""},null,{"$f":"IF($C$332=\"\",\"\",AH332/$C$332)","v":""},null,{"$f":"IF($C$332=\"\",\"\",AJ332/$C$332)","v":""},null,{"$f":"IF($C$332=\"\",\"\",AL332/$C$332)","v":""},null,{"$f":"IF($C$332=\"\",\"\",AN332/$C$332)","v":""},null,{"$f":"IF($C$332=\"\",\"\",AP332/$C$332)","v":""},null,{"$f":"IF($C$332=\"\",\"\",AR332/$C$332)","v":""},null,{"$f":"IF($C$332=\"\",\"\",AT332/$C$332)","v":""},null,{"$f":"IF($C$332=\"\",\"\",AV332/$C$332)","v":""},null,{"$f":"IF($C$332=\"\",\"\",AX332/$C$332)","v":""},null,{"$f":"IF($C$332=\"\",\"\",AZ332/$C$332)","v":""},null,{"$f":"IF($C$332=\"\",\"\",BB332/$C$332)","v":""},null,0]
[12.2,"Draft Final Project Special Provisions",null,null,{"$f":"IF($C$333=\"\",\"\",F333/$C$333)","v":""},null,{"$f":"IF($C$333=\"\",\"\",H333/$C$333)","v":""},null,{"$f":"IF($C$333=\"\",\"\",J333/$C$333)","v":""},null,{"$f":"IF($C$333=\"\",\"\",L333/$C$333)","v":""},null,{"$f":"IF($C$333=\"\",\"\",N333/$C$333)","v":""},null,{"$f":"IF($C$333=\"\",\"\",P333/$C$333)","v":""},null,{"$f":"IF($C$333=\"\",\"\",R333/$C$333)","v":""},null,{"$f":"IF($C$333=\"\",\"\",T333/$C$333)","v":""},null,{"$f":"IF($C$333=\"\",\"\",V333/$C$333)","v":""},null,{"$f":"IF($C$333=\"\",\"\",X333/$C$333)","v":""},null,{"$f":"IF($C$333=\"\",\"\",Z333/$C$333)","v":""},null,{"$f":"IF($C$333=\"\",\"\",AB333/$C$333)","v":""},null,{"$f":"IF($C$333=\"\",\"\",AD333/$C$333)","v":""},null,{"$f":"IF($C$333=\"\",\"\",AF333/$C$333)","v":""},null,{"$f":"IF($C$333=\"\",\"\",AH333/$C$333)","v":""},null,{"$f":"IF($C$333=\"\",\"\",AJ333/$C$333)","v":""},null,{"$f":"IF($C$333=\"\",\"\",AL333/$C$333)","v":""},null,{"$f":"IF($C$333=\"\",\"\",AN333/$C$333)","v":""},null,{"$f":"IF($C$333=\"\",\"\",AP333/$C$333)","v":""},null,{"$f":"IF($C$333=\"\",\"\",AR333/$C$333)","v":""},null,{"$f":"IF($C$333=\"\",\"\",AT333/$C$333)","v":""},null,{"$f":"IF($C$333=\"\",\"\",AV333/$C$333)","v":""},null,{"$f":"IF($C$333=\"\",\"\",AX333/$C$333)","v":""},null,{"$f":"IF($C$333=\"\",\"\",AZ333/$C$333)","v":""},null,{"$f":"IF($C$333=\"\",\"\",BB333/$C$333)","v":""},null,0]
[12.3,"Final Project Special Provisions",null,null,{"$f":"IF($C$334=\"\",\"\",F334/$C$334)","v":""},null,{"$f":"IF($C$334=\"\",\"\",H334/$C$334)","v":""},null,{"$f":"IF($C$334=\"\",\"\",J334/$C$334)","v":""},null,{"$f":"IF($C$334=\"\",\"\",L334/$C$334)","v":""},null,{"$f":"IF($C$334=\"\",\"\",N334/$C$334)","v":""},null,{"$f":"IF($C$334=\"\",\"\",P334/$C$334)","v":""},null,{"$f":"IF($C$334=\"\",\"\",R334/$C$334)","v":""},null,{"$f":"IF($C$334=\"\",\"\",T334/$C$334)","v":""},null,{"$f":"IF($C$334=\"\",\"\",V334/$C$334)","v":""},null,{"$f":"IF($C$334=\"\",\"\",X334/$C$334)","v":""},null,{"$f":"IF($C$334=\"\",\"\",Z334/$C$334)","v":""},null,{"$f":"IF($C$334=\"\",\"\",AB334/$C$334)","v":""},null,{"$f":"IF($C$334=\"\",\"\",AD334/$C$334)","v":""},null,{"$f":"IF($C$334=\"\",\"\",AF334/$C$334)","v":""},null,{"$f":"IF($C$334=\"\",\"\",AH334/$C$334)","v":""},null,{"$f":"IF($C$334=\"\",\"\",AJ334/$C$334)","v":""},null,{"$f":"IF($C$334=\"\",\"\",AL334/$C$334)","v":""},null,{"$f":"IF($C$334=\"\",\"\",AN334/$C$334)","v":""},null,{"$f":"IF($C$334=\"\",\"\",AP334/$C$334)","v":""},null,{"$f":"IF($C$334=\"\",\"\",AR334/$C$334)","v":""},null,{"$f":"IF($C$334=\"\",\"\",AT334/$C$334)","v":""},null,{"$f":"IF($C$334=\"\",\"\",AV334/$C$334)","v":""},null,{"$f":"IF($C$334=\"\",\"\",AX334/$C$334)","v":""},null,{"$f":"IF($C$334=\"\",\"\",AZ334/$C$334)","v":""},null,{"$f":"IF($C$334=\"\",\"\",BB334/$C$334)","v":""},null,0]
[12.4,"Quality Reviews ",null,null,{"$f":"IF($C$335=\"\",\"\",F335/$C$335)","v":""},null,{"$f":"IF($C$335=\"\",\"\",H335/$C$335)","v":""},null,{"$f":"IF($C$335=\"\",\"\",J335/$C$335)","v":""},null,{"$f":"IF($C$335=\"\",\"\",L335/$C$335)","v":""},null,{"$f":"IF($C$335=\"\",\"\",N335/$C$335)","v":""},null,{"$f":"IF($C$335=\"\",\"\",P335/$C$335)","v":""},null,{"$f":"IF($C$335=\"\",\"\",R335/$C$335)","v":""},null,{"$f":"IF($C$335=\"\",\"\",T335/$C$335)","v":""},null,{"$f":"IF($C$335=\"\",\"\",V335/$C$335)","v":""},null,{"$f":"IF($C$335=\"\",\"\",X335/$C$335)","v":""},null,{"$f":"IF($C$335=\"\",\"\",Z335/$C$335)","v":""},null,{"$f":"IF($C$335=\"\",\"\",AB335/$C$335)","v":""},null,{"$f":"IF($C$335=\"\",\"\",AD335/$C$335)","v":""},null,{"$f":"IF($C$335=\"\",\"\",AF335/$C$335)","v":""},null,{"$f":"IF($C$335=\"\",\"\",AH335/$C$335)","v":""},null,{"$f":"IF($C$335=\"\",\"\",AJ335/$C$335)","v":""},null,{"$f":"IF($C$335=\"\",\"\",AL335/$C$335)","v":""},null,{"$f":"IF($C$335=\"\",\"\",AN335/$C$335)","v":""},null,{"$f":"IF($C$335=\"\",\"\",AP335/$C$335)","v":""},null,{"$f":"IF($C$335=\"\",\"\",AR335/$C$335)","v":""},null,{"$f":"IF($C$335=\"\",\"\",AT335/$C$335)","v":""},null,{"$f":"IF($C$335=\"\",\"\",AV335/$C$335)","v":""},null,{"$f":"IF($C$335=\"\",\"\",AX335/$C$335)","v":""},null,{"$f":"IF($C$335=\"\",\"\",AZ335/$C$335)","v":""},null,{"$f":"IF($C$335=\"\",\"\",BB335/$C$335)","v":""},null,0]
[null,null,null,null,{"$f":"IF($C$336=\"\",\"\",F336/$C$336)","v":""},null,{"$f":"IF($C$336=\"\",\"\",H336/$C$336)","v":""},null,{"$f":"IF($C$336=\"\",\"\",J336/$C$336)","v":""},null,{"$f":"IF($C$336=\"\",\"\",L336/$C$336)","v":""},null,{"$f":"IF($C$336=\"\",\"\",N336/$C$336)","v":""},null,{"$f":"IF($C$336=\"\",\"\",P336/$C$336)","v":""},null,{"$f":"IF($C$336=\"\",\"\",R336/$C$336)","v":""},null,{"$f":"IF($C$336=\"\",\"\",T336/$C$336)","v":""},null,{"$f":"IF($C$336=\"\",\"\",V336/$C$336)","v":""},null,{"$f":"IF($C$336=\"\",\"\",X336/$C$336)","v":""},null,{"$f":"IF($C$336=\"\",\"\",Z336/$C$336)","v":""},null,{"$f":"IF($C$336=\"\",\"\",AB336/$C$336)","v":""},null,{"$f":"IF($C$336=\"\",\"\",AD336/$C$336)","v":""},null,{"$f":"IF($C$336=\"\",\"\",AF336/$C$336)","v":""},null,{"$f":"IF($C$336=\"\",\"\",AH336/$C$336)","v":""},null,{"$f":"IF($C$336=\"\",\"\",AJ336/$C$336)","v":""},null,{"$f":"IF($C$336=\"\",\"\",AL336/$C$336)","v":""},null,{"$f":"IF($C$336=\"\",\"\",AN336/$C$336)","v":""},null,{"$f":"IF($C$336=\"\",\"\",AP336/$C$336)","v":""},null,{"$f":"IF($C$336=\"\",\"\",AR336/$C$336)","v":""},null,{"$f":"IF($C$336=\"\",\"\",AT336/$C$336)","v":""},null,{"$f":"IF($C$336=\"\",\"\",AV336/$C$336)","v":""},null,{"$f":"IF($C$336=\"\",\"\",AX336/$C$336)","v":""},null,{"$f":"IF($C$336=\"\",\"\",AZ336/$C$336)","v":""},null,{"$f":"IF($C$336=\"\",\"\",BB336/$C$336)","v":""},null,0]
[null,null,null,null,{"$f":"IF($C$337=\"\",\"\",F337/$C$337)","v":""},null,{"$f":"IF($C$337=\"\",\"\",H337/$C$337)","v":""},null,{"$f":"IF($C$337=\"\",\"\",J337/$C$337)","v":""},null,{"$f":"IF($C$337=\"\",\"\",L337/$C$337)","v":""},null,{"$f":"IF($C$337=\"\",\"\",N337/$C$337)","v":""},null,{"$f":"IF($C$337=\"\",\"\",P337/$C$337)","v":""},null,{"$f":"IF($C$337=\"\",\"\",R337/$C$337)","v":""},null,{"$f":"IF($C$337=\"\",\"\",T337/$C$337)","v":""},null,{"$f":"IF($C$337=\"\",\"\",V337/$C$337)","v":""},null,{"$f":"IF($C$337=\"\",\"\",X337/$C$337)","v":""},null,{"$f":"IF($C$337=\"\",\"\",Z337/$C$337)","v":""},null,{"$f":"IF($C$337=\"\",\"\",AB337/$C$337)","v":""},null,{"$f":"IF($C$337=\"\",\"\",AD337/$C$337)","v":""},null,{"$f":"IF($C$337=\"\",\"\",AF337/$C$337)","v":""},null,{"$f":"IF($C$337=\"\",\"\",AH337/$C$337)","v":""},null,{"$f":"IF($C$337=\"\",\"\",AJ337/$C$337)","v":""},null,{"$f":"IF($C$337=\"\",\"\",AL337/$C$337)","v":""},null,{"$f":"IF($C$337=\"\",\"\",AN337/$C$337)","v":""},null,{"$f":"IF($C$337=\"\",\"\",AP337/$C$337)","v":""},null,{"$f":"IF($C$337=\"\",\"\",AR337/$C$337)","v":""},null,{"$f":"IF($C$337=\"\",\"\",AT337/$C$337)","v":""},null,{"$f":"IF($C$337=\"\",\"\",AV337/$C$337)","v":""},null,{"$f":"IF($C$337=\"\",\"\",AX337/$C$337)","v":""},null,{"$f":"IF($C$337=\"\",\"\",AZ337/$C$337)","v":""},null,{"$f":"IF($C$337=\"\",\"\",BB337/$C$337)","v":""},null,0]
[null,null,null,null,{"$f":"IF($C$338=\"\",\"\",F338/$C$338)","v":""},null,{"$f":"IF($C$338=\"\",\"\",H338/$C$338)","v":""},null,{"$f":"IF($C$338=\"\",\"\",J338/$C$338)","v":""},null,{"$f":"IF($C$338=\"\",\"\",L338/$C$338)","v":""},null,{"$f":"IF($C$338=\"\",\"\",N338/$C$338)","v":""},null,{"$f":"IF($C$338=\"\",\"\",P338/$C$338)","v":""},null,{"$f":"IF($C$338=\"\",\"\",R338/$C$338)","v":""},null,{"$f":"IF($C$338=\"\",\"\",T338/$C$338)","v":""},null,{"$f":"IF($C$338=\"\",\"\",V338/$C$338)","v":""},null,{"$f":"IF($C$338=\"\",\"\",X338/$C$338)","v":""},null,{"$f":"IF($C$338=\"\",\"\",Z338/$C$338)","v":""},null,{"$f":"IF($C$338=\"\",\"\",AB338/$C$338)","v":""},null,{"$f":"IF($C$338=\"\",\"\",AD338/$C$338)","v":""},null,{"$f":"IF($C$338=\"\",\"\",AF338/$C$338)","v":""},null,{"$f":"IF($C$338=\"\",\"\",AH338/$C$338)","v":""},null,{"$f":"IF($C$338=\"\",\"\",AJ338/$C$338)","v":""},null,{"$f":"IF($C$338=\"\",\"\",AL338/$C$338)","v":""},null,{"$f":"IF($C$338=\"\",\"\",AN338/$C$338)","v":""},null,{"$f":"IF($C$338=\"\",\"\",AP338/$C$338)","v":""},null,{"$f":"IF($C$338=\"\",\"\",AR338/$C$338)","v":""},null,{"$f":"IF($C$338=\"\",\"\",AT338/$C$338)","v":""},null,{"$f":"IF($C$338=\"\",\"\",AV338/$C$338)","v":""},null,{"$f":"IF($C$338=\"\",\"\",AX338/$C$338)","v":""},null,{"$f":"IF($C$338=\"\",\"\",AZ338/$C$338)","v":""},null,{"$f":"IF($C$338=\"\",\"\",BB338/$C$338)","v":""},null,0]
[null,null,null,null,{"$f":"IF($C$339=\"\",\"\",F339/$C$339)","v":""},null,{"$f":"IF($C$339=\"\",\"\",H339/$C$339)","v":""},null,{"$f":"IF($C$339=\"\",\"\",J339/$C$339)","v":""},null,{"$f":"IF($C$339=\"\",\"\",L339/$C$339)","v":""},null,{"$f":"IF($C$339=\"\",\"\",N339/$C$339)","v":""},null,{"$f":"IF($C$339=\"\",\"\",P339/$C$339)","v":""},null,{"$f":"IF($C$339=\"\",\"\",R339/$C$339)","v":""},null,{"$f":"IF($C$339=\"\",\"\",T339/$C$339)","v":""},null,{"$f":"IF($C$339=\"\",\"\",V339/$C$339)","v":""},null,{"$f":"IF($C$339=\"\",\"\",X339/$C$339)","v":""},null,{"$f":"IF($C$339=\"\",\"\",Z339/$C$339)","v":""},null,{"$f":"IF($C$339=\"\",\"\",AB339/$C$339)","v":""},null,{"$f":"IF($C$339=\"\",\"\",AD339/$C$339)","v":""},null,{"$f":"IF($C$339=\"\",\"\",AF339/$C$339)","v":""},null,{"$f":"IF($C$339=\"\",\"\",AH339/$C$339)","v":""},null,{"$f":"IF($C$339=\"\",\"\",AJ339/$C$339)","v":""},null,{"$f":"IF($C$339=\"\",\"\",AL339/$C$339)","v":""},null,{"$f":"IF($C$339=\"\",\"\",AN339/$C$339)","v":""},null,{"$f":"IF($C$339=\"\",\"\",AP339/$C$339)","v":""},null,{"$f":"IF($C$339=\"\",\"\",AR339/$C$339)","v":""},null,{"$f":"IF($C$339=\"\",\"\",AT339/$C$339)","v":""},null,{"$f":"IF($C$339=\"\",\"\",AV339/$C$339)","v":""},null,{"$f":"IF($C$339=\"\",\"\",AX339/$C$339)","v":""},null,{"$f":"IF($C$339=\"\",\"\",AZ339/$C$339)","v":""},null,{"$f":"IF($C$339=\"\",\"\",BB339/$C$339)","v":""},null,0]
[null,null,null,null,{"$f":"IF($C$340=\"\",\"\",F340/$C$340)","v":""},null,{"$f":"IF($C$340=\"\",\"\",H340/$C$340)","v":""},null,{"$f":"IF($C$340=\"\",\"\",J340/$C$340)","v":""},null,{"$f":"IF($C$340=\"\",\"\",L340/$C$340)","v":""},null,{"$f":"IF($C$340=\"\",\"\",N340/$C$340)","v":""},null,{"$f":"IF($C$340=\"\",\"\",P340/$C$340)","v":""},null,{"$f":"IF($C$340=\"\",\"\",R340/$C$340)","v":""},null,{"$f":"IF($C$340=\"\",\"\",T340/$C$340)","v":""},null,{"$f":"IF($C$340=\"\",\"\",V340/$C$340)","v":""},null,{"$f":"IF($C$340=\"\",\"\",X340/$C$340)","v":""},null,{"$f":"IF($C$340=\"\",\"\",Z340/$C$340)","v":""},null,{"$f":"IF($C$340=\"\",\"\",AB340/$C$340)","v":""},null,{"$f":"IF($C$340=\"\",\"\",AD340/$C$340)","v":""},null,{"$f":"IF($C$340=\"\",\"\",AF340/$C$340)","v":""},null,{"$f":"IF($C$340=\"\",\"\",AH340/$C$340)","v":""},null,{"$f":"IF($C$340=\"\",\"\",AJ340/$C$340)","v":""},null,{"$f":"IF($C$340=\"\",\"\",AL340/$C$340)","v":""},null,{"$f":"IF($C$340=\"\",\"\",AN340/$C$340)","v":""},null,{"$f":"IF($C$340=\"\",\"\",AP340/$C$340)","v":""},null,{"$f":"IF($C$340=\"\",\"\",AR340/$C$340)","v":""},null,{"$f":"IF($C$340=\"\",\"\",AT340/$C$340)","v":""},null,{"$f":"IF($C$340=\"\",\"\",AV340/$C$340)","v":""},null,{"$f":"IF($C$340=\"\",\"\",AX340/$C$340)","v":""},null,{"$f":"IF($C$340=\"\",\"\",AZ340/$C$340)","v":""},null,{"$f":"IF($C$340=\"\",\"\",BB340/$C$340)","v":""},null,0]
[null,null,null,null,{"$f":"IF($C$341=\"\",\"\",F341/$C$341)","v":""},null,{"$f":"IF($C$341=\"\",\"\",H341/$C$341)","v":""},null,{"$f":"IF($C$341=\"\",\"\",J341/$C$341)","v":""},null,{"$f":"IF($C$341=\"\",\"\",L341/$C$341)","v":""},null,{"$f":"IF($C$341=\"\",\"\",N341/$C$341)","v":""},null,{"$f":"IF($C$341=\"\",\"\",P341/$C$341)","v":""},null,{"$f":"IF($C$341=\"\",\"\",R341/$C$341)","v":""},null,{"$f":"IF($C$341=\"\",\"\",T341/$C$341)","v":""},null,{"$f":"IF($C$341=\"\",\"\",V341/$C$341)","v":""},null,{"$f":"IF($C$341=\"\",\"\",X341/$C$341)","v":""},null,{"$f":"IF($C$341=\"\",\"\",Z341/$C$341)","v":""},null,{"$f":"IF($C$341=\"\",\"\",AB341/$C$341)","v":""},null,{"$f":"IF($C$341=\"\",\"\",AD341/$C$341)","v":""},null,{"$f":"IF($C$341=\"\",\"\",AF341/$C$341)","v":""},null,{"$f":"IF($C$341=\"\",\"\",AH341/$C$341)","v":""},null,{"$f":"IF($C$341=\"\",\"\",AJ341/$C$341)","v":""},null,{"$f":"IF($C$341=\"\",\"\",AL341/$C$341)","v":""},null,{"$f":"IF($C$341=\"\",\"\",AN341/$C$341)","v":""},null,{"$f":"IF($C$341=\"\",\"\",AP341/$C$341)","v":""},null,{"$f":"IF($C$341=\"\",\"\",AR341/$C$341)","v":""},null,{"$f":"IF($C$341=\"\",\"\",AT341/$C$341)","v":""},null,{"$f":"IF($C$341=\"\",\"\",AV341/$C$341)","v":""},null,{"$f":"IF($C$341=\"\",\"\",AX341/$C$341)","v":""},null,{"$f":"IF($C$341=\"\",\"\",AZ341/$C$341)","v":""},null,{"$f":"IF($C$341=\"\",\"\",BB341/$C$341)","v":""},null,0]
[null,null,null,null,{"$f":"IF($C$342=\"\",\"\",F342/$C$342)","v":""},null,{"$f":"IF($C$342=\"\",\"\",H342/$C$342)","v":""},null,{"$f":"IF($C$342=\"\",\"\",J342/$C$342)","v":""},null,{"$f":"IF($C$342=\"\",\"\",L342/$C$342)","v":""},null,{"$f":"IF($C$342=\"\",\"\",N342/$C$342)","v":""},null,{"$f":"IF($C$342=\"\",\"\",P342/$C$342)","v":""},null,{"$f":"IF($C$342=\"\",\"\",R342/$C$342)","v":""},null,{"$f":"IF($C$342=\"\",\"\",T342/$C$342)","v":""},null,{"$f":"IF($C$342=\"\",\"\",V342/$C$342)","v":""},null,{"$f":"IF($C$342=\"\",\"\",X342/$C$342)","v":""},null,{"$f":"IF($C$342=\"\",\"\",Z342/$C$342)","v":""},null,{"$f":"IF($C$342=\"\",\"\",AB342/$C$342)","v":""},null,{"$f":"IF($C$342=\"\",\"\",AD342/$C$342)","v":""},null,{"$f":"IF($C$342=\"\",\"\",AF342/$C$342)","v":""},null,{"$f":"IF($C$342=\"\",\"\",AH342/$C$342)","v":""},null,{"$f":"IF($C$342=\"\",\"\",AJ342/$C$342)","v":""},null,{"$f":"IF($C$342=\"\",\"\",AL342/$C$342)","v":""},null,{"$f":"IF($C$342=\"\",\"\",AN342/$C$342)","v":""},null,{"$f":"IF($C$342=\"\",\"\",AP342/$C$342)","v":""},null,{"$f":"IF($C$342=\"\",\"\",AR342/$C$342)","v":""},null,{"$f":"IF($C$342=\"\",\"\",AT342/$C$342)","v":""},null,{"$f":"IF($C$342=\"\",\"\",AV342/$C$342)","v":""},null,{"$f":"IF($C$342=\"\",\"\",AX342/$C$342)","v":""},null,{"$f":"IF($C$342=\"\",\"\",AZ342/$C$342)","v":""},null,{"$f":"IF($C$342=\"\",\"\",BB342/$C$342)","v":""},null,{"$f":"SUM(BB342,AZ342,AX342,AV342,AT342,AR342,AP342,AN342,AL342,AJ342,AH342,AF342,AD342,AB342,Z342,X342,V342,T342,R342,P342,N342,L342,J342,H342,F342)","v":0}]
["TOTAL HOURS",null,null,null,null,{"$f":"SUM(F317:F342)","v":0},null,{"$f":"SUM(H317:H342)","v":0},null,{"$f":"SUM(J317:J342)","v":0},null,{"$f":"SUM(L317:L342)","v":0},null,{"$f":"SUM(N317:N342)","v":0},null,{"$f":"SUM(P317:P342)","v":0},null,{"$f":"SUM(R317:R342)","v":0},null,{"$f":"SUM(T317:T342)","v":0},null,{"$f":"SUM(V317:V342)","v":0},null,{"$f":"SUM(X317:X342)","v":0},null,{"$f":"SUM(Z317:Z342)","v":0},null,{"$f":"SUM(AB317:AB342)","v":0},null,{"$f":"SUM(AD317:AD342)","v":0},null,{"$f":"SUM(AF317:AF342)","v":0},null,{"$f":"SUM(AH317:AH342)","v":0},null,{"$f":"SUM(AJ317:AJ342)","v":0},null,{"$f":"SUM(AL317:AL342)","v":0},null,{"$f":"SUM(AN317:AN342)","v":0},null,{"$f":"SUM(AP317:AP342)","v":0},null,{"$f":"SUM(AR317:AR342)","v":0},null,{"$f":"SUM(AT317:AT342)","v":0},null,{"$f":"SUM(AV317:AV342)","v":0},null,{"$f":"SUM(AX317:AX342)","v":0},null,{"$f":"SUM(AZ317:AZ342)","v":0},null,0,{"$f":"SUM(E343:BB343)","v":0}]
["TOTAL WORKDAYS",null,null,null,null,{"$f":"F343/8","v":0},null,{"$f":"H343/8","v":0},null,{"$f":"J343/8","v":0},null,{"$f":"L343/8","v":0},null,{"$f":"N343/8","v":0},null,{"$f":"P343/8","v":0},null,{"$f":"R343/8","v":0},null,{"$f":"T343/8","v":0},null,{"$f":"V343/8","v":0},null,{"$f":"X343/8","v":0},null,{"$f":"Z343/8","v":0},null,{"$f":"AB343/8","v":0},null,{"$f":"AD343/8","v":0},null,0,null,{"$f":"AH343/8","v":0},null,0,null,{"$f":"AL343/8","v":0},null,0,null,{"$f":"AP343/8","v":0},null,0,null,{"$f":"AT343/8","v":0},null,{"$f":"AV343/8","v":0},null,{"$f":"AX343/8","v":0},null,{"$f":"AZ343/8","v":0},null,0,{"$f":"SUM(E344:BB344)","v":0}]
["TOTAL RAW LABOR",null,null,null,null,{"$f":"$E$13*F343","v":0},null,{"$f":"$G$13*H343","v":0},null,{"$f":"$I$13*J343","v":0},null,{"$f":"$K$13*L343","v":0},null,{"$f":"$M$13*N343","v":0},null,{"$f":"$O$13*P343","v":0},null,{"$f":"$Q$13*R343","v":0},null,{"$f":"$S$13*T343","v":0},null,{"$f":"$U$13*V343","v":0},null,{"$f":"$W$13*X343","v":0},null,{"$f":"$Y$13*Z343","v":0},null,{"$f":"$AA$13*AB343","v":0},null,{"$f":"$AC$13*AD343","v":0},null,{"$f":"$AC$13*AF343","v":0},null,{"$f":"$AC$13*AH343","v":0},null,{"$f":"$AC$13*AJ343","v":0},null,{"$f":"$AC$13*AL343","v":0},null,{"$f":"$AC$13*AN343","v":0},null,{"$f":"$AC$13*AP343","v":0},null,{"$f":"$AC$13*AR343","v":0},null,{"$f":"$AC$13*AT343","v":0},null,{"$f":"$AC$13*AV343","v":0},null,{"$f":"$AC$13*AX343","v":0},null,{"$f":"$AC$13*AZ343","v":0},null,0,{"$f":"SUM(E345:BB345)","v":0}]
["Task 13.0     ","ENGINEER'S OPINION OF PROBABLE COST"]
[13.1,"Preliminary Engineer's Opinion of Probable Construction Cost",null,null,{"$f":"IF($C$347=\"\",\"\",F347/$C$347)","v":""},null,{"$f":"IF($C$347=\"\",\"\",H347/$C$347)","v":""},null,{"$f":"IF($C$347=\"\",\"\",J347/$C$347)","v":""},null,{"$f":"IF($C$347=\"\",\"\",L347/$C$347)","v":""},null,{"$f":"IF($C$347=\"\",\"\",N347/$C$347)","v":""},null,{"$f":"IF($C$347=\"\",\"\",P347/$C$347)","v":""},null,{"$f":"IF($C$347=\"\",\"\",R347/$C$347)","v":""},null,{"$f":"IF($C$347=\"\",\"\",T347/$C$347)","v":""},null,{"$f":"IF($C$347=\"\",\"\",V347/$C$347)","v":""},null,{"$f":"IF($C$347=\"\",\"\",X347/$C$347)","v":""},null,{"$f":"IF($C$347=\"\",\"\",Z347/$C$347)","v":""},null,{"$f":"IF($C$347=\"\",\"\",AB347/$C$347)","v":""},null,{"$f":"IF($C$347=\"\",\"\",AD347/$C$347)","v":""},null,{"$f":"IF($C$347=\"\",\"\",AF347/$C$347)","v":""},null,{"$f":"IF($C$347=\"\",\"\",AH347/$C$347)","v":""},null,{"$f":"IF($C$347=\"\",\"\",AJ347/$C$347)","v":""},null,{"$f":"IF($C$347=\"\",\"\",AL347/$C$347)","v":""},null,{"$f":"IF($C$347=\"\",\"\",AN347/$C$347)","v":""},null,{"$f":"IF($C$347=\"\",\"\",AP347/$C$347)","v":""},null,{"$f":"IF($C$347=\"\",\"\",AR347/$C$347)","v":""},null,{"$f":"IF($C$347=\"\",\"\",AT347/$C$347)","v":""},null,{"$f":"IF($C$347=\"\",\"\",AV347/$C$347)","v":""},null,{"$f":"IF($C$347=\"\",\"\",AX347/$C$347)","v":""},null,{"$f":"IF($C$347=\"\",\"\",AZ347/$C$347)","v":""},null,{"$f":"IF($C$347=\"\",\"\",BB347/$C$347)","v":""},null,{"$f":"SUM(BB347,AZ347,AX347,AV347,AT347,AR347,AP347,AN347,AL347,AJ347,AH347,AF347,AD347,AB347,Z347,X347,V347,T347,R347,P347,N347,L347,J347,H347,F347)","v":0}]
[13.2,"Draft Final Engineer's Opinion of Probable Construction Cost",null,null,{"$f":"IF($C$348=\"\",\"\",F348/$C$348)","v":""},null,{"$f":"IF($C$348=\"\",\"\",H348/$C$348)","v":""},null,{"$f":"IF($C$348=\"\",\"\",J348/$C$348)","v":""},null,{"$f":"IF($C$348=\"\",\"\",L348/$C$348)","v":""},null,{"$f":"IF($C$348=\"\",\"\",N348/$C$348)","v":""},null,{"$f":"IF($C$348=\"\",\"\",P348/$C$348)","v":""},null,{"$f":"IF($C$348=\"\",\"\",R348/$C$348)","v":""},null,{"$f":"IF($C$348=\"\",\"\",T348/$C$348)","v":""},null,{"$f":"IF($C$348=\"\",\"\",V348/$C$348)","v":""},null,{"$f":"IF($C$348=\"\",\"\",X348/$C$348)","v":""},null,{"$f":"IF($C$348=\"\",\"\",Z348/$C$348)","v":""},null,{"$f":"IF($C$348=\"\",\"\",AB348/$C$348)","v":""},null,{"$f":"IF($C$348=\"\",\"\",AD348/$C$348)","v":""},null,{"$f":"IF($C$348=\"\",\"\",AF348/$C$348)","v":""},null,{"$f":"IF($C$348=\"\",\"\",AH348/$C$348)","v":""},null,{"$f":"IF($C$348=\"\",\"\",AJ348/$C$348)","v":""},null,{"$f":"IF($C$348=\"\",\"\",AL348/$C$348)","v":""},null,{"$f":"IF($C$348=\"\",\"\",AN348/$C$348)","v":""},null,{"$f":"IF($C$348=\"\",\"\",AP348/$C$348)","v":""},null,{"$f":"IF($C$348=\"\",\"\",AR348/$C$348)","v":""},null,{"$f":"IF($C$348=\"\",\"\",AT348/$C$348)","v":""},null,{"$f":"IF($C$348=\"\",\"\",AV348/$C$348)","v":""},null,{"$f":"IF($C$348=\"\",\"\",AX348/$C$348)","v":""},null,{"$f":"IF($C$348=\"\",\"\",AZ348/$C$348)","v":""},null,{"$f":"IF($C$348=\"\",\"\",BB348/$C$348)","v":""},null,0]
[13.3,"Final Engineer's Opinion of Probable Construction Cost",null,null,{"$f":"IF($C$349=\"\",\"\",F349/$C$349)","v":""},null,{"$f":"IF($C$349=\"\",\"\",H349/$C$349)","v":""},null,{"$f":"IF($C$349=\"\",\"\",J349/$C$349)","v":""},null,{"$f":"IF($C$349=\"\",\"\",L349/$C$349)","v":""},null,{"$f":"IF($C$349=\"\",\"\",N349/$C$349)","v":""},null,{"$f":"IF($C$349=\"\",\"\",P349/$C$349)","v":""},null,{"$f":"IF($C$349=\"\",\"\",R349/$C$349)","v":""},null,{"$f":"IF($C$349=\"\",\"\",T349/$C$349)","v":""},null,{"$f":"IF($C$349=\"\",\"\",V349/$C$349)","v":""},null,{"$f":"IF($C$349=\"\",\"\",X349/$C$349)","v":""},null,{"$f":"IF($C$349=\"\",\"\",Z349/$C$349)","v":""},null,{"$f":"IF($C$349=\"\",\"\",AB349/$C$349)","v":""},null,{"$f":"IF($C$349=\"\",\"\",AD349/$C$349)","v":""},null,{"$f":"IF($C$349=\"\",\"\",AF349/$C$349)","v":""},null,{"$f":"IF($C$349=\"\",\"\",AH349/$C$349)","v":""},null,{"$f":"IF($C$349=\"\",\"\",AJ349/$C$349)","v":""},null,{"$f":"IF($C$349=\"\",\"\",AL349/$C$349)","v":""},null,{"$f":"IF($C$349=\"\",\"\",AN349/$C$349)","v":""},null,{"$f":"IF($C$349=\"\",\"\",AP349/$C$349)","v":""},null,{"$f":"IF($C$349=\"\",\"\",AR349/$C$349)","v":""},null,{"$f":"IF($C$349=\"\",\"\",AT349/$C$349)","v":""},null,{"$f":"IF($C$349=\"\",\"\",AV349/$C$349)","v":""},null,{"$f":"IF($C$349=\"\",\"\",AX349/$C$349)","v":""},null,{"$f":"IF($C$349=\"\",\"\",AZ349/$C$349)","v":""},null,{"$f":"IF($C$349=\"\",\"\",BB349/$C$349)","v":""},null,0]
[null,null,null,null,{"$f":"IF($C$350=\"\",\"\",F350/$C$350)","v":""},null,{"$f":"IF($C$350=\"\",\"\",H350/$C$350)","v":""},null,{"$f":"IF($C$350=\"\",\"\",J350/$C$350)","v":""},null,{"$f":"IF($C$350=\"\",\"\",L350/$C$350)","v":""},null,{"$f":"IF($C$350=\"\",\"\",N350/$C$350)","v":""},null,{"$f":"IF($C$350=\"\",\"\",P350/$C$350)","v":""},null,{"$f":"IF($C$350=\"\",\"\",R350/$C$350)","v":""},null,{"$f":"IF($C$350=\"\",\"\",T350/$C$350)","v":""},null,{"$f":"IF($C$350=\"\",\"\",V350/$C$350)","v":""},null,{"$f":"IF($C$350=\"\",\"\",X350/$C$350)","v":""},null,{"$f":"IF($C$350=\"\",\"\",Z350/$C$350)","v":""},null,{"$f":"IF($C$350=\"\",\"\",AB350/$C$350)","v":""},null,{"$f":"IF($C$350=\"\",\"\",AD350/$C$350)","v":""},null,{"$f":"IF($C$350=\"\",\"\",AF350/$C$350)","v":""},null,{"$f":"IF($C$350=\"\",\"\",AH350/$C$350)","v":""},null,{"$f":"IF($C$350=\"\",\"\",AJ350/$C$350)","v":""},null,{"$f":"IF($C$350=\"\",\"\",AL350/$C$350)","v":""},null,{"$f":"IF($C$350=\"\",\"\",AN350/$C$350)","v":""},null,{"$f":"IF($C$350=\"\",\"\",AP350/$C$350)","v":""},null,{"$f":"IF($C$350=\"\",\"\",AR350/$C$350)","v":""},null,{"$f":"IF($C$350=\"\",\"\",AT350/$C$350)","v":""},null,{"$f":"IF($C$350=\"\",\"\",AV350/$C$350)","v":""},null,{"$f":"IF($C$350=\"\",\"\",AX350/$C$350)","v":""},null,{"$f":"IF($C$350=\"\",\"\",AZ350/$C$350)","v":""},null,{"$f":"IF($C$350=\"\",\"\",BB350/$C$350)","v":""},null,0]
[null,null,null,null,{"$f":"IF($C$351=\"\",\"\",F351/$C$351)","v":""},null,{"$f":"IF($C$351=\"\",\"\",H351/$C$351)","v":""},null,{"$f":"IF($C$351=\"\",\"\",J351/$C$351)","v":""},null,{"$f":"IF($C$351=\"\",\"\",L351/$C$351)","v":""},null,{"$f":"IF($C$351=\"\",\"\",N351/$C$351)","v":""},null,{"$f":"IF($C$351=\"\",\"\",P351/$C$351)","v":""},null,{"$f":"IF($C$351=\"\",\"\",R351/$C$351)","v":""},null,{"$f":"IF($C$351=\"\",\"\",T351/$C$351)","v":""},null,{"$f":"IF($C$351=\"\",\"\",V351/$C$351)","v":""},null,{"$f":"IF($C$351=\"\",\"\",X351/$C$351)","v":""},null,{"$f":"IF($C$351=\"\",\"\",Z351/$C$351)","v":""},null,{"$f":"IF($C$351=\"\",\"\",AB351/$C$351)","v":""},null,{"$f":"IF($C$351=\"\",\"\",AD351/$C$351)","v":""},null,{"$f":"IF($C$351=\"\",\"\",AF351/$C$351)","v":""},null,{"$f":"IF($C$351=\"\",\"\",AH351/$C$351)","v":""},null,{"$f":"IF($C$351=\"\",\"\",AJ351/$C$351)","v":""},null,{"$f":"IF($C$351=\"\",\"\",AL351/$C$351)","v":""},null,{"$f":"IF($C$351=\"\",\"\",AN351/$C$351)","v":""},null,{"$f":"IF($C$351=\"\",\"\",AP351/$C$351)","v":""},null,{"$f":"IF($C$351=\"\",\"\",AR351/$C$351)","v":""},null,{"$f":"IF($C$351=\"\",\"\",AT351/$C$351)","v":""},null,{"$f":"IF($C$351=\"\",\"\",AV351/$C$351)","v":""},null,{"$f":"IF($C$351=\"\",\"\",AX351/$C$351)","v":""},null,{"$f":"IF($C$351=\"\",\"\",AZ351/$C$351)","v":""},null,{"$f":"IF($C$351=\"\",\"\",BB351/$C$351)","v":""},null,0]
[null,null,null,null,{"$f":"IF($C$352=\"\",\"\",F352/$C$352)","v":""},null,{"$f":"IF($C$352=\"\",\"\",H352/$C$352)","v":""},null,{"$f":"IF($C$352=\"\",\"\",J352/$C$352)","v":""},null,{"$f":"IF($C$352=\"\",\"\",L352/$C$352)","v":""},null,{"$f":"IF($C$352=\"\",\"\",N352/$C$352)","v":""},null,{"$f":"IF($C$352=\"\",\"\",P352/$C$352)","v":""},null,{"$f":"IF($C$352=\"\",\"\",R352/$C$352)","v":""},null,{"$f":"IF($C$352=\"\",\"\",T352/$C$352)","v":""},null,{"$f":"IF($C$352=\"\",\"\",V352/$C$352)","v":""},null,{"$f":"IF($C$352=\"\",\"\",X352/$C$352)","v":""},null,{"$f":"IF($C$352=\"\",\"\",Z352/$C$352)","v":""},null,{"$f":"IF($C$352=\"\",\"\",AB352/$C$352)","v":""},null,{"$f":"IF($C$352=\"\",\"\",AD352/$C$352)","v":""},null,{"$f":"IF($C$352=\"\",\"\",AF352/$C$352)","v":""},null,{"$f":"IF($C$352=\"\",\"\",AH352/$C$352)","v":""},null,{"$f":"IF($C$352=\"\",\"\",AJ352/$C$352)","v":""},null,{"$f":"IF($C$352=\"\",\"\",AL352/$C$352)","v":""},null,{"$f":"IF($C$352=\"\",\"\",AN352/$C$352)","v":""},null,{"$f":"IF($C$352=\"\",\"\",AP352/$C$352)","v":""},null,{"$f":"IF($C$352=\"\",\"\",AR352/$C$352)","v":""},null,{"$f":"IF($C$352=\"\",\"\",AT352/$C$352)","v":""},null,{"$f":"IF($C$352=\"\",\"\",AV352/$C$352)","v":""},null,{"$f":"IF($C$352=\"\",\"\",AX352/$C$352)","v":""},null,{"$f":"IF($C$352=\"\",\"\",AZ352/$C$352)","v":""},null,{"$f":"IF($C$352=\"\",\"\",BB352/$C$352)","v":""},null,0]
[null,null,null,null,{"$f":"IF($C$353=\"\",\"\",F353/$C$353)","v":""},null,{"$f":"IF($C$353=\"\",\"\",H353/$C$353)","v":""},null,{"$f":"IF($C$353=\"\",\"\",J353/$C$353)","v":""},null,{"$f":"IF($C$353=\"\",\"\",L353/$C$353)","v":""},null,{"$f":"IF($C$353=\"\",\"\",N353/$C$353)","v":""},null,{"$f":"IF($C$353=\"\",\"\",P353/$C$353)","v":""},null,{"$f":"IF($C$353=\"\",\"\",R353/$C$353)","v":""},null,{"$f":"IF($C$353=\"\",\"\",T353/$C$353)","v":""},null,{"$f":"IF($C$353=\"\",\"\",V353/$C$353)","v":""},null,{"$f":"IF($C$353=\"\",\"\",X353/$C$353)","v":""},null,{"$f":"IF($C$353=\"\",\"\",Z353/$C$353)","v":""},null,{"$f":"IF($C$353=\"\",\"\",AB353/$C$353)","v":""},null,{"$f":"IF($C$353=\"\",\"\",AD353/$C$353)","v":""},null,{"$f":"IF($C$353=\"\",\"\",AF353/$C$353)","v":""},null,{"$f":"IF($C$353=\"\",\"\",AH353/$C$353)","v":""},null,{"$f":"IF($C$353=\"\",\"\",AJ353/$C$353)","v":""},null,{"$f":"IF($C$353=\"\",\"\",AL353/$C$353)","v":""},null,{"$f":"IF($C$353=\"\",\"\",AN353/$C$353)","v":""},null,{"$f":"IF($C$353=\"\",\"\",AP353/$C$353)","v":""},null,{"$f":"IF($C$353=\"\",\"\",AR353/$C$353)","v":""},null,{"$f":"IF($C$353=\"\",\"\",AT353/$C$353)","v":""},null,{"$f":"IF($C$353=\"\",\"\",AV353/$C$353)","v":""},null,{"$f":"IF($C$353=\"\",\"\",AX353/$C$353)","v":""},null,{"$f":"IF($C$353=\"\",\"\",AZ353/$C$353)","v":""},null,{"$f":"IF($C$353=\"\",\"\",BB353/$C$353)","v":""},null,0]
[null,null,null,null,{"$f":"IF($C$354=\"\",\"\",F354/$C$354)","v":""},null,{"$f":"IF($C$354=\"\",\"\",H354/$C$354)","v":""},null,{"$f":"IF($C$354=\"\",\"\",J354/$C$354)","v":""},null,{"$f":"IF($C$354=\"\",\"\",L354/$C$354)","v":""},null,{"$f":"IF($C$354=\"\",\"\",N354/$C$354)","v":""},null,{"$f":"IF($C$354=\"\",\"\",P354/$C$354)","v":""},null,{"$f":"IF($C$354=\"\",\"\",R354/$C$354)","v":""},null,{"$f":"IF($C$354=\"\",\"\",T354/$C$354)","v":""},null,{"$f":"IF($C$354=\"\",\"\",V354/$C$354)","v":""},null,{"$f":"IF($C$354=\"\",\"\",X354/$C$354)","v":""},null,{"$f":"IF($C$354=\"\",\"\",Z354/$C$354)","v":""},null,{"$f":"IF($C$354=\"\",\"\",AB354/$C$354)","v":""},null,{"$f":"IF($C$354=\"\",\"\",AD354/$C$354)","v":""},null,{"$f":"IF($C$354=\"\",\"\",AF354/$C$354)","v":""},null,{"$f":"IF($C$354=\"\",\"\",AH354/$C$354)","v":""},null,{"$f":"IF($C$354=\"\",\"\",AJ354/$C$354)","v":""},null,{"$f":"IF($C$354=\"\",\"\",AL354/$C$354)","v":""},null,{"$f":"IF($C$354=\"\",\"\",AN354/$C$354)","v":""},null,{"$f":"IF($C$354=\"\",\"\",AP354/$C$354)","v":""},null,{"$f":"IF($C$354=\"\",\"\",AR354/$C$354)","v":""},null,{"$f":"IF($C$354=\"\",\"\",AT354/$C$354)","v":""},null,{"$f":"IF($C$354=\"\",\"\",AV354/$C$354)","v":""},null,{"$f":"IF($C$354=\"\",\"\",AX354/$C$354)","v":""},null,{"$f":"IF($C$354=\"\",\"\",AZ354/$C$354)","v":""},null,{"$f":"IF($C$354=\"\",\"\",BB354/$C$354)","v":""},null,0]
[null,null,null,null,{"$f":"IF($C$355=\"\",\"\",F355/$C$355)","v":""},null,{"$f":"IF($C$355=\"\",\"\",H355/$C$355)","v":""},null,{"$f":"IF($C$355=\"\",\"\",J355/$C$355)","v":""},null,{"$f":"IF($C$355=\"\",\"\",L355/$C$355)","v":""},null,{"$f":"IF($C$355=\"\",\"\",N355/$C$355)","v":""},null,{"$f":"IF($C$355=\"\",\"\",P355/$C$355)","v":""},null,{"$f":"IF($C$355=\"\",\"\",R355/$C$355)","v":""},null,{"$f":"IF($C$355=\"\",\"\",T355/$C$355)","v":""},null,{"$f":"IF($C$355=\"\",\"\",V355/$C$355)","v":""},null,{"$f":"IF($C$355=\"\",\"\",X355/$C$355)","v":""},null,{"$f":"IF($C$355=\"\",\"\",Z355/$C$355)","v":""},null,{"$f":"IF($C$355=\"\",\"\",AB355/$C$355)","v":""},null,{"$f":"IF($C$355=\"\",\"\",AD355/$C$355)","v":""},null,{"$f":"IF($C$355=\"\",\"\",AF355/$C$355)","v":""},null,{"$f":"IF($C$355=\"\",\"\",AH355/$C$355)","v":""},null,{"$f":"IF($C$355=\"\",\"\",AJ355/$C$355)","v":""},null,{"$f":"IF($C$355=\"\",\"\",AL355/$C$355)","v":""},null,{"$f":"IF($C$355=\"\",\"\",AN355/$C$355)","v":""},null,{"$f":"IF($C$355=\"\",\"\",AP355/$C$355)","v":""},null,{"$f":"IF($C$355=\"\",\"\",AR355/$C$355)","v":""},null,{"$f":"IF($C$355=\"\",\"\",AT355/$C$355)","v":""},null,{"$f":"IF($C$355=\"\",\"\",AV355/$C$355)","v":""},null,{"$f":"IF($C$355=\"\",\"\",AX355/$C$355)","v":""},null,{"$f":"IF($C$355=\"\",\"\",AZ355/$C$355)","v":""},null,{"$f":"IF($C$355=\"\",\"\",BB355/$C$355)","v":""},null,0]
[null,null,null,null,{"$f":"IF($C$356=\"\",\"\",F356/$C$356)","v":""},null,{"$f":"IF($C$356=\"\",\"\",H356/$C$356)","v":""},null,{"$f":"IF($C$356=\"\",\"\",J356/$C$356)","v":""},null,{"$f":"IF($C$356=\"\",\"\",L356/$C$356)","v":""},null,{"$f":"IF($C$356=\"\",\"\",N356/$C$356)","v":""},null,{"$f":"IF($C$356=\"\",\"\",P356/$C$356)","v":""},null,{"$f":"IF($C$356=\"\",\"\",R356/$C$356)","v":""},null,{"$f":"IF($C$356=\"\",\"\",T356/$C$356)","v":""},null,{"$f":"IF($C$356=\"\",\"\",V356/$C$356)","v":""},null,{"$f":"IF($C$356=\"\",\"\",X356/$C$356)","v":""},null,{"$f":"IF($C$356=\"\",\"\",Z356/$C$356)","v":""},null,{"$f":"IF($C$356=\"\",\"\",AB356/$C$356)","v":""},null,{"$f":"IF($C$356=\"\",\"\",AD356/$C$356)","v":""},null,{"$f":"IF($C$356=\"\",\"\",AF356/$C$356)","v":""},null,{"$f":"IF($C$356=\"\",\"\",AH356/$C$356)","v":""},null,{"$f":"IF($C$356=\"\",\"\",AJ356/$C$356)","v":""},null,{"$f":"IF($C$356=\"\",\"\",AL356/$C$356)","v":""},null,{"$f":"IF($C$356=\"\",\"\",AN356/$C$356)","v":""},null,{"$f":"IF($C$356=\"\",\"\",AP356/$C$356)","v":""},null,{"$f":"IF($C$356=\"\",\"\",AR356/$C$356)","v":""},null,{"$f":"IF($C$356=\"\",\"\",AT356/$C$356)","v":""},null,{"$f":"IF($C$356=\"\",\"\",AV356/$C$356)","v":""},null,{"$f":"IF($C$356=\"\",\"\",AX356/$C$356)","v":""},null,{"$f":"IF($C$356=\"\",\"\",AZ356/$C$356)","v":""},null,{"$f":"IF($C$356=\"\",\"\",BB356/$C$356)","v":""},null,{"$f":"SUM(BB356,AZ356,AX356,AV356,AT356,AR356,AP356,AN356,AL356,AJ356,AH356,AF356,AD356,AB356,Z356,X356,V356,T356,R356,P356,N356,L356,J356,H356,F356)","v":0}]
["TOTAL HOURS",null,null,null,null,{"$f":"SUM(F347:F356)","v":0},null,{"$f":"SUM(H347:H356)","v":0},null,{"$f":"SUM(J347:J356)","v":0},null,{"$f":"SUM(L347:L356)","v":0},null,{"$f":"SUM(N347:N356)","v":0},null,{"$f":"SUM(P347:P356)","v":0},null,{"$f":"SUM(R347:R356)","v":0},null,{"$f":"SUM(T347:T356)","v":0},null,{"$f":"SUM(V347:V356)","v":0},null,{"$f":"SUM(X347:X356)","v":0},null,{"$f":"SUM(Z347:Z356)","v":0},null,{"$f":"SUM(AB347:AB356)","v":0},null,{"$f":"SUM(AD347:AD356)","v":0},null,{"$f":"SUM(AF347:AF356)","v":0},null,{"$f":"SUM(AH347:AH356)","v":0},null,{"$f":"SUM(AJ347:AJ356)","v":0},null,{"$f":"SUM(AL347:AL356)","v":0},null,{"$f":"SUM(AN347:AN356)","v":0},null,{"$f":"SUM(AP347:AP356)","v":0},null,{"$f":"SUM(AR347:AR356)","v":0},null,{"$f":"SUM(AT347:AT356)","v":0},null,{"$f":"SUM(AV347:AV356)","v":0},null,{"$f":"SUM(AX347:AX356)","v":0},null,{"$f":"SUM(AZ347:AZ356)","v":0},null,0,{"$f":"SUM(E357:BB357)","v":0}]
["TOTAL WORKDAYS",null,null,null,null,{"$f":"F357/8","v":0},null,{"$f":"H357/8","v":0},null,{"$f":"J357/8","v":0},null,{"$f":"L357/8","v":0},null,{"$f":"N357/8","v":0},null,{"$f":"P357/8","v":0},null,{"$f":"R357/8","v":0},null,{"$f":"T357/8","v":0},null,{"$f":"V357/8","v":0},null,{"$f":"X357/8","v":0},null,{"$f":"Z357/8","v":0},null,{"$f":"AB357/8","v":0},null,{"$f":"AD357/8","v":0},null,0,null,{"$f":"AH357/8","v":0},null,0,null,{"$f":"AL357/8","v":0},null,0,null,{"$f":"AP357/8","v":0},null,0,null,{"$f":"AT357/8","v":0},null,{"$f":"AV357/8","v":0},null,{"$f":"AX357/8","v":0},null,{"$f":"AZ357/8","v":0},null,0,{"$f":"SUM(E358:BB358)","v":0}]
["TOTAL RAW LABOR",null,null,null,null,{"$f":"$E$13*F357","v":0},null,{"$f":"$G$13*H357","v":0},null,{"$f":"$I$13*J357","v":0},null,{"$f":"$K$13*L357","v":0},null,{"$f":"$M$13*N357","v":0},null,{"$f":"$O$13*P357","v":0},null,{"$f":"$Q$13*R357","v":0},null,{"$f":"$S$13*T357","v":0},null,{"$f":"$U$13*V357","v":0},null,{"$f":"$W$13*X357","v":0},null,{"$f":"$Y$13*Z357","v":0},null,{"$f":"$AA$13*AB357","v":0},null,{"$f":"$AC$13*AD357","v":0},null,{"$f":"$AC$13*AF357","v":0},null,{"$f":"$AC$13*AH357","v":0},null,{"$f":"$AC$13*AJ357","v":0},null,{"$f":"$AC$13*AL357","v":0},null,{"$f":"$AC$13*AN357","v":0},null,{"$f":"$AC$13*AP357","v":0},null,{"$f":"$AC$13*AR357","v":0},null,{"$f":"$AC$13*AT357","v":0},null,{"$f":"$AC$13*AV357","v":0},null,{"$f":"$AC$13*AX357","v":0},null,{"$f":"$AC$13*AZ357","v":0},null,0,{"$f":"SUM(E359:BB359)","v":0}]
["Task 14.0     ","PREPARE PS&E DELIVERABLES AND FINAL DOCUMENTATION"]
[14.1,"Prepare PS&E Submittal Deliverables",null,null,{"$f":"IF($C$361=\"\",\"\",F361/$C$361)","v":""},null,{"$f":"IF($C$361=\"\",\"\",H361/$C$361)","v":""},null,{"$f":"IF($C$361=\"\",\"\",J361/$C$361)","v":""},null,{"$f":"IF($C$361=\"\",\"\",L361/$C$361)","v":""},null,{"$f":"IF($C$361=\"\",\"\",N361/$C$361)","v":""},null,{"$f":"IF($C$361=\"\",\"\",P361/$C$361)","v":""},null,{"$f":"IF($C$361=\"\",\"\",R361/$C$361)","v":""},null,{"$f":"IF($C$361=\"\",\"\",T361/$C$361)","v":""},null,{"$f":"IF($C$361=\"\",\"\",V361/$C$361)","v":""},null,{"$f":"IF($C$361=\"\",\"\",X361/$C$361)","v":""},null,{"$f":"IF($C$361=\"\",\"\",Z361/$C$361)","v":""},null,{"$f":"IF($C$361=\"\",\"\",AB361/$C$361)","v":""},null,{"$f":"IF($C$361=\"\",\"\",AD361/$C$361)","v":""},null,{"$f":"IF($C$361=\"\",\"\",AF361/$C$361)","v":""},null,{"$f":"IF($C$361=\"\",\"\",AH361/$C$361)","v":""},null,{"$f":"IF($C$361=\"\",\"\",AJ361/$C$361)","v":""},null,{"$f":"IF($C$361=\"\",\"\",AL361/$C$361)","v":""},null,{"$f":"IF($C$361=\"\",\"\",AN361/$C$361)","v":""},null,{"$f":"IF($C$361=\"\",\"\",AP361/$C$361)","v":""},null,{"$f":"IF($C$361=\"\",\"\",AR361/$C$361)","v":""},null,{"$f":"IF($C$361=\"\",\"\",AT361/$C$361)","v":""},null,{"$f":"IF($C$361=\"\",\"\",AV361/$C$361)","v":""},null,{"$f":"IF($C$361=\"\",\"\",AX361/$C$361)","v":""},null,{"$f":"IF($C$361=\"\",\"\",AZ361/$C$361)","v":""},null,{"$f":"IF($C$361=\"\",\"\",BB361/$C$361)","v":""},null,{"$f":"SUM(BB361,AZ361,AX361,AV361,AT361,AR361,AP361,AN361,AL361,AJ361,AH361,AF361,AD361,AB361,Z361,X361,V361,T361,R361,P361,N361,L361,J361,H361,F361)","v":0}]
[14.2,"PS&E Submittal Review Meetings",null,null,{"$f":"IF($C$362=\"\",\"\",F362/$C$362)","v":""},null,{"$f":"IF($C$362=\"\",\"\",H362/$C$362)","v":""},null,{"$f":"IF($C$362=\"\",\"\",J362/$C$362)","v":""},null,{"$f":"IF($C$362=\"\",\"\",L362/$C$362)","v":""},null,{"$f":"IF($C$362=\"\",\"\",N362/$C$362)","v":""},null,{"$f":"IF($C$362=\"\",\"\",P362/$C$362)","v":""},null,{"$f":"IF($C$362=\"\",\"\",R362/$C$362)","v":""},null,{"$f":"IF($C$362=\"\",\"\",T362/$C$362)","v":""},null,{"$f":"IF($C$362=\"\",\"\",V362/$C$362)","v":""},null,{"$f":"IF($C$362=\"\",\"\",X362/$C$362)","v":""},null,{"$f":"IF($C$362=\"\",\"\",Z362/$C$362)","v":""},null,{"$f":"IF($C$362=\"\",\"\",AB362/$C$362)","v":""},null,{"$f":"IF($C$362=\"\",\"\",AD362/$C$362)","v":""},null,{"$f":"IF($C$362=\"\",\"\",AF362/$C$362)","v":""},null,{"$f":"IF($C$362=\"\",\"\",AH362/$C$362)","v":""},null,{"$f":"IF($C$362=\"\",\"\",AJ362/$C$362)","v":""},null,{"$f":"IF($C$362=\"\",\"\",AL362/$C$362)","v":""},null,{"$f":"IF($C$362=\"\",\"\",AN362/$C$362)","v":""},null,{"$f":"IF($C$362=\"\",\"\",AP362/$C$362)","v":""},null,{"$f":"IF($C$362=\"\",\"\",AR362/$C$362)","v":""},null,{"$f":"IF($C$362=\"\",\"\",AT362/$C$362)","v":""},null,{"$f":"IF($C$362=\"\",\"\",AV362/$C$362)","v":""},null,{"$f":"IF($C$362=\"\",\"\",AX362/$C$362)","v":""},null,{"$f":"IF($C$362=\"\",\"\",AZ362/$C$362)","v":""},null,{"$f":"IF($C$362=\"\",\"\",BB362/$C$362)","v":""},null,0]
[14.3,"Prepare CD/DVD/USB Jump Drive of PS&E Files",null,null,{"$f":"IF($C$363=\"\",\"\",F363/$C$363)","v":""},null,{"$f":"IF($C$363=\"\",\"\",H363/$C$363)","v":""},null,{"$f":"IF($C$363=\"\",\"\",J363/$C$363)","v":""},null,{"$f":"IF($C$363=\"\",\"\",L363/$C$363)","v":""},null,{"$f":"IF($C$363=\"\",\"\",N363/$C$363)","v":""},null,{"$f":"IF($C$363=\"\",\"\",P363/$C$363)","v":""},null,{"$f":"IF($C$363=\"\",\"\",R363/$C$363)","v":""},null,{"$f":"IF($C$363=\"\",\"\",T363/$C$363)","v":""},null,{"$f":"IF($C$363=\"\",\"\",V363/$C$363)","v":""},null,{"$f":"IF($C$363=\"\",\"\",X363/$C$363)","v":""},null,{"$f":"IF($C$363=\"\",\"\",Z363/$C$363)","v":""},null,{"$f":"IF($C$363=\"\",\"\",AB363/$C$363)","v":""},null,{"$f":"IF($C$363=\"\",\"\",AD363/$C$363)","v":""},null,{"$f":"IF($C$363=\"\",\"\",AF363/$C$363)","v":""},null,{"$f":"IF($C$363=\"\",\"\",AH363/$C$363)","v":""},null,{"$f":"IF($C$363=\"\",\"\",AJ363/$C$363)","v":""},null,{"$f":"IF($C$363=\"\",\"\",AL363/$C$363)","v":""},null,{"$f":"IF($C$363=\"\",\"\",AN363/$C$363)","v":""},null,{"$f":"IF($C$363=\"\",\"\",AP363/$C$363)","v":""},null,{"$f":"IF($C$363=\"\",\"\",AR363/$C$363)","v":""},null,{"$f":"IF($C$363=\"\",\"\",AT363/$C$363)","v":""},null,{"$f":"IF($C$363=\"\",\"\",AV363/$C$363)","v":""},null,{"$f":"IF($C$363=\"\",\"\",AX363/$C$363)","v":""},null,{"$f":"IF($C$363=\"\",\"\",AZ363/$C$363)","v":""},null,{"$f":"IF($C$363=\"\",\"\",BB363/$C$363)","v":""},null,0]
[14.4,"Electronic transfer of files to the Department",null,null,{"$f":"IF($C$364=\"\",\"\",F364/$C$364)","v":""},null,{"$f":"IF($C$364=\"\",\"\",H364/$C$364)","v":""},null,{"$f":"IF($C$364=\"\",\"\",J364/$C$364)","v":""},null,{"$f":"IF($C$364=\"\",\"\",L364/$C$364)","v":""},null,{"$f":"IF($C$364=\"\",\"\",N364/$C$364)","v":""},null,{"$f":"IF($C$364=\"\",\"\",P364/$C$364)","v":""},null,{"$f":"IF($C$364=\"\",\"\",R364/$C$364)","v":""},null,{"$f":"IF($C$364=\"\",\"\",T364/$C$364)","v":""},null,{"$f":"IF($C$364=\"\",\"\",V364/$C$364)","v":""},null,{"$f":"IF($C$364=\"\",\"\",X364/$C$364)","v":""},null,{"$f":"IF($C$364=\"\",\"\",Z364/$C$364)","v":""},null,{"$f":"IF($C$364=\"\",\"\",AB364/$C$364)","v":""},null,{"$f":"IF($C$364=\"\",\"\",AD364/$C$364)","v":""},null,{"$f":"IF($C$364=\"\",\"\",AF364/$C$364)","v":""},null,{"$f":"IF($C$364=\"\",\"\",AH364/$C$364)","v":""},null,{"$f":"IF($C$364=\"\",\"\",AJ364/$C$364)","v":""},null,{"$f":"IF($C$364=\"\",\"\",AL364/$C$364)","v":""},null,{"$f":"IF($C$364=\"\",\"\",AN364/$C$364)","v":""},null,{"$f":"IF($C$364=\"\",\"\",AP364/$C$364)","v":""},null,{"$f":"IF($C$364=\"\",\"\",AR364/$C$364)","v":""},null,{"$f":"IF($C$364=\"\",\"\",AT364/$C$364)","v":""},null,{"$f":"IF($C$364=\"\",\"\",AV364/$C$364)","v":""},null,{"$f":"IF($C$364=\"\",\"\",AX364/$C$364)","v":""},null,{"$f":"IF($C$364=\"\",\"\",AZ364/$C$364)","v":""},null,{"$f":"IF($C$364=\"\",\"\",BB364/$C$364)","v":""},null,0]
[null,null,null,null,{"$f":"IF($C$365=\"\",\"\",F365/$C$365)","v":""},null,{"$f":"IF($C$365=\"\",\"\",H365/$C$365)","v":""},null,{"$f":"IF($C$365=\"\",\"\",J365/$C$365)","v":""},null,{"$f":"IF($C$365=\"\",\"\",L365/$C$365)","v":""},null,{"$f":"IF($C$365=\"\",\"\",N365/$C$365)","v":""},null,{"$f":"IF($C$365=\"\",\"\",P365/$C$365)","v":""},null,{"$f":"IF($C$365=\"\",\"\",R365/$C$365)","v":""},null,{"$f":"IF($C$365=\"\",\"\",T365/$C$365)","v":""},null,{"$f":"IF($C$365=\"\",\"\",V365/$C$365)","v":""},null,{"$f":"IF($C$365=\"\",\"\",X365/$C$365)","v":""},null,{"$f":"IF($C$365=\"\",\"\",Z365/$C$365)","v":""},null,{"$f":"IF($C$365=\"\",\"\",AB365/$C$365)","v":""},null,{"$f":"IF($C$365=\"\",\"\",AD365/$C$365)","v":""},null,{"$f":"IF($C$365=\"\",\"\",AF365/$C$365)","v":""},null,{"$f":"IF($C$365=\"\",\"\",AH365/$C$365)","v":""},null,{"$f":"IF($C$365=\"\",\"\",AJ365/$C$365)","v":""},null,{"$f":"IF($C$365=\"\",\"\",AL365/$C$365)","v":""},null,{"$f":"IF($C$365=\"\",\"\",AN365/$C$365)","v":""},null,{"$f":"IF($C$365=\"\",\"\",AP365/$C$365)","v":""},null,{"$f":"IF($C$365=\"\",\"\",AR365/$C$365)","v":""},null,{"$f":"IF($C$365=\"\",\"\",AT365/$C$365)","v":""},null,{"$f":"IF($C$365=\"\",\"\",AV365/$C$365)","v":""},null,{"$f":"IF($C$365=\"\",\"\",AX365/$C$365)","v":""},null,{"$f":"IF($C$365=\"\",\"\",AZ365/$C$365)","v":""},null,{"$f":"IF($C$365=\"\",\"\",BB365/$C$365)","v":""},null,0]
[null,null,null,null,{"$f":"IF($C$366=\"\",\"\",F366/$C$366)","v":""},null,{"$f":"IF($C$366=\"\",\"\",H366/$C$366)","v":""},null,{"$f":"IF($C$366=\"\",\"\",J366/$C$366)","v":""},null,{"$f":"IF($C$366=\"\",\"\",L366/$C$366)","v":""},null,{"$f":"IF($C$366=\"\",\"\",N366/$C$366)","v":""},null,{"$f":"IF($C$366=\"\",\"\",P366/$C$366)","v":""},null,{"$f":"IF($C$366=\"\",\"\",R366/$C$366)","v":""},null,{"$f":"IF($C$366=\"\",\"\",T366/$C$366)","v":""},null,{"$f":"IF($C$366=\"\",\"\",V366/$C$366)","v":""},null,{"$f":"IF($C$366=\"\",\"\",X366/$C$366)","v":""},null,{"$f":"IF($C$366=\"\",\"\",Z366/$C$366)","v":""},null,{"$f":"IF($C$366=\"\",\"\",AB366/$C$366)","v":""},null,{"$f":"IF($C$366=\"\",\"\",AD366/$C$366)","v":""},null,{"$f":"IF($C$366=\"\",\"\",AF366/$C$366)","v":""},null,{"$f":"IF($C$366=\"\",\"\",AH366/$C$366)","v":""},null,{"$f":"IF($C$366=\"\",\"\",AJ366/$C$366)","v":""},null,{"$f":"IF($C$366=\"\",\"\",AL366/$C$366)","v":""},null,{"$f":"IF($C$366=\"\",\"\",AN366/$C$366)","v":""},null,{"$f":"IF($C$366=\"\",\"\",AP366/$C$366)","v":""},null,{"$f":"IF($C$366=\"\",\"\",AR366/$C$366)","v":""},null,{"$f":"IF($C$366=\"\",\"\",AT366/$C$366)","v":""},null,{"$f":"IF($C$366=\"\",\"\",AV366/$C$366)","v":""},null,{"$f":"IF($C$366=\"\",\"\",AX366/$C$366)","v":""},null,{"$f":"IF($C$366=\"\",\"\",AZ366/$C$366)","v":""},null,{"$f":"IF($C$366=\"\",\"\",BB366/$C$366)","v":""},null,0]
[null,null,null,null,{"$f":"IF($C$367=\"\",\"\",F367/$C$367)","v":""},null,{"$f":"IF($C$367=\"\",\"\",H367/$C$367)","v":""},null,{"$f":"IF($C$367=\"\",\"\",J367/$C$367)","v":""},null,{"$f":"IF($C$367=\"\",\"\",L367/$C$367)","v":""},null,{"$f":"IF($C$367=\"\",\"\",N367/$C$367)","v":""},null,{"$f":"IF($C$367=\"\",\"\",P367/$C$367)","v":""},null,{"$f":"IF($C$367=\"\",\"\",R367/$C$367)","v":""},null,{"$f":"IF($C$367=\"\",\"\",T367/$C$367)","v":""},null,{"$f":"IF($C$367=\"\",\"\",V367/$C$367)","v":""},null,{"$f":"IF($C$367=\"\",\"\",X367/$C$367)","v":""},null,{"$f":"IF($C$367=\"\",\"\",Z367/$C$367)","v":""},null,{"$f":"IF($C$367=\"\",\"\",AB367/$C$367)","v":""},null,{"$f":"IF($C$367=\"\",\"\",AD367/$C$367)","v":""},null,{"$f":"IF($C$367=\"\",\"\",AF367/$C$367)","v":""},null,{"$f":"IF($C$367=\"\",\"\",AH367/$C$367)","v":""},null,{"$f":"IF($C$367=\"\",\"\",AJ367/$C$367)","v":""},null,{"$f":"IF($C$367=\"\",\"\",AL367/$C$367)","v":""},null,{"$f":"IF($C$367=\"\",\"\",AN367/$C$367)","v":""},null,{"$f":"IF($C$367=\"\",\"\",AP367/$C$367)","v":""},null,{"$f":"IF($C$367=\"\",\"\",AR367/$C$367)","v":""},null,{"$f":"IF($C$367=\"\",\"\",AT367/$C$367)","v":""},null,{"$f":"IF($C$367=\"\",\"\",AV367/$C$367)","v":""},null,{"$f":"IF($C$367=\"\",\"\",AX367/$C$367)","v":""},null,{"$f":"IF($C$367=\"\",\"\",AZ367/$C$367)","v":""},null,{"$f":"IF($C$367=\"\",\"\",BB367/$C$367)","v":""},null,0]
[null,null,null,null,{"$f":"IF($C$368=\"\",\"\",F368/$C$368)","v":""},null,{"$f":"IF($C$368=\"\",\"\",H368/$C$368)","v":""},null,{"$f":"IF($C$368=\"\",\"\",J368/$C$368)","v":""},null,{"$f":"IF($C$368=\"\",\"\",L368/$C$368)","v":""},null,{"$f":"IF($C$368=\"\",\"\",N368/$C$368)","v":""},null,{"$f":"IF($C$368=\"\",\"\",P368/$C$368)","v":""},null,{"$f":"IF($C$368=\"\",\"\",R368/$C$368)","v":""},null,{"$f":"IF($C$368=\"\",\"\",T368/$C$368)","v":""},null,{"$f":"IF($C$368=\"\",\"\",V368/$C$368)","v":""},null,{"$f":"IF($C$368=\"\",\"\",X368/$C$368)","v":""},null,{"$f":"IF($C$368=\"\",\"\",Z368/$C$368)","v":""},null,{"$f":"IF($C$368=\"\",\"\",AB368/$C$368)","v":""},null,{"$f":"IF($C$368=\"\",\"\",AD368/$C$368)","v":""},null,{"$f":"IF($C$368=\"\",\"\",AF368/$C$368)","v":""},null,{"$f":"IF($C$368=\"\",\"\",AH368/$C$368)","v":""},null,{"$f":"IF($C$368=\"\",\"\",AJ368/$C$368)","v":""},null,{"$f":"IF($C$368=\"\",\"\",AL368/$C$368)","v":""},null,{"$f":"IF($C$368=\"\",\"\",AN368/$C$368)","v":""},null,{"$f":"IF($C$368=\"\",\"\",AP368/$C$368)","v":""},null,{"$f":"IF($C$368=\"\",\"\",AR368/$C$368)","v":""},null,{"$f":"IF($C$368=\"\",\"\",AT368/$C$368)","v":""},null,{"$f":"IF($C$368=\"\",\"\",AV368/$C$368)","v":""},null,{"$f":"IF($C$368=\"\",\"\",AX368/$C$368)","v":""},null,{"$f":"IF($C$368=\"\",\"\",AZ368/$C$368)","v":""},null,{"$f":"IF($C$368=\"\",\"\",BB368/$C$368)","v":""},null,0]
[null,null,null,null,{"$f":"IF($C$369=\"\",\"\",F369/$C$369)","v":""},null,{"$f":"IF($C$369=\"\",\"\",H369/$C$369)","v":""},null,{"$f":"IF($C$369=\"\",\"\",J369/$C$369)","v":""},null,{"$f":"IF($C$369=\"\",\"\",L369/$C$369)","v":""},null,{"$f":"IF($C$369=\"\",\"\",N369/$C$369)","v":""},null,{"$f":"IF($C$369=\"\",\"\",P369/$C$369)","v":""},null,{"$f":"IF($C$369=\"\",\"\",R369/$C$369)","v":""},null,{"$f":"IF($C$369=\"\",\"\",T369/$C$369)","v":""},null,{"$f":"IF($C$369=\"\",\"\",V369/$C$369)","v":""},null,{"$f":"IF($C$369=\"\",\"\",X369/$C$369)","v":""},null,{"$f":"IF($C$369=\"\",\"\",Z369/$C$369)","v":""},null,{"$f":"IF($C$369=\"\",\"\",AB369/$C$369)","v":""},null,{"$f":"IF($C$369=\"\",\"\",AD369/$C$369)","v":""},null,{"$f":"IF($C$369=\"\",\"\",AF369/$C$369)","v":""},null,{"$f":"IF($C$369=\"\",\"\",AH369/$C$369)","v":""},null,{"$f":"IF($C$369=\"\",\"\",AJ369/$C$369)","v":""},null,{"$f":"IF($C$369=\"\",\"\",AL369/$C$369)","v":""},null,{"$f":"IF($C$369=\"\",\"\",AN369/$C$369)","v":""},null,{"$f":"IF($C$369=\"\",\"\",AP369/$C$369)","v":""},null,{"$f":"IF($C$369=\"\",\"\",AR369/$C$369)","v":""},null,{"$f":"IF($C$369=\"\",\"\",AT369/$C$369)","v":""},null,{"$f":"IF($C$369=\"\",\"\",AV369/$C$369)","v":""},null,{"$f":"IF($C$369=\"\",\"\",AX369/$C$369)","v":""},null,{"$f":"IF($C$369=\"\",\"\",AZ369/$C$369)","v":""},null,{"$f":"IF($C$369=\"\",\"\",BB369/$C$369)","v":""},null,0]
[null,null,null,null,{"$f":"IF($C$370=\"\",\"\",F370/$C$370)","v":""},null,{"$f":"IF($C$370=\"\",\"\",H370/$C$370)","v":""},null,{"$f":"IF($C$370=\"\",\"\",J370/$C$370)","v":""},null,{"$f":"IF($C$370=\"\",\"\",L370/$C$370)","v":""},null,{"$f":"IF($C$370=\"\",\"\",N370/$C$370)","v":""},null,{"$f":"IF($C$370=\"\",\"\",P370/$C$370)","v":""},null,{"$f":"IF($C$370=\"\",\"\",R370/$C$370)","v":""},null,{"$f":"IF($C$370=\"\",\"\",T370/$C$370)","v":""},null,{"$f":"IF($C$370=\"\",\"\",V370/$C$370)","v":""},null,{"$f":"IF($C$370=\"\",\"\",X370/$C$370)","v":""},null,{"$f":"IF($C$370=\"\",\"\",Z370/$C$370)","v":""},null,{"$f":"IF($C$370=\"\",\"\",AB370/$C$370)","v":""},null,{"$f":"IF($C$370=\"\",\"\",AD370/$C$370)","v":""},null,{"$f":"IF($C$370=\"\",\"\",AF370/$C$370)","v":""},null,{"$f":"IF($C$370=\"\",\"\",AH370/$C$370)","v":""},null,{"$f":"IF($C$370=\"\",\"\",AJ370/$C$370)","v":""},null,{"$f":"IF($C$370=\"\",\"\",AL370/$C$370)","v":""},null,{"$f":"IF($C$370=\"\",\"\",AN370/$C$370)","v":""},null,{"$f":"IF($C$370=\"\",\"\",AP370/$C$370)","v":""},null,{"$f":"IF($C$370=\"\",\"\",AR370/$C$370)","v":""},null,{"$f":"IF($C$370=\"\",\"\",AT370/$C$370)","v":""},null,{"$f":"IF($C$370=\"\",\"\",AV370/$C$370)","v":""},null,{"$f":"IF($C$370=\"\",\"\",AX370/$C$370)","v":""},null,{"$f":"IF($C$370=\"\",\"\",AZ370/$C$370)","v":""},null,{"$f":"IF($C$370=\"\",\"\",BB370/$C$370)","v":""},null,0]
[null,null,null,null,{"$f":"IF($C$371=\"\",\"\",F371/$C$371)","v":""},null,{"$f":"IF($C$371=\"\",\"\",H371/$C$371)","v":""},null,{"$f":"IF($C$371=\"\",\"\",J371/$C$371)","v":""},null,{"$f":"IF($C$371=\"\",\"\",L371/$C$371)","v":""},null,{"$f":"IF($C$371=\"\",\"\",N371/$C$371)","v":""},null,{"$f":"IF($C$371=\"\",\"\",P371/$C$371)","v":""},null,{"$f":"IF($C$371=\"\",\"\",R371/$C$371)","v":""},null,{"$f":"IF($C$371=\"\",\"\",T371/$C$371)","v":""},null,{"$f":"IF($C$371=\"\",\"\",V371/$C$371)","v":""},null,{"$f":"IF($C$371=\"\",\"\",X371/$C$371)","v":""},null,{"$f":"IF($C$371=\"\",\"\",Z371/$C$371)","v":""},null,{"$f":"IF($C$371=\"\",\"\",AB371/$C$371)","v":""},null,{"$f":"IF($C$371=\"\",\"\",AD371/$C$371)","v":""},null,{"$f":"IF($C$371=\"\",\"\",AF371/$C$371)","v":""},null,{"$f":"IF($C$371=\"\",\"\",AH371/$C$371)","v":""},null,{"$f":"IF($C$371=\"\",\"\",AJ371/$C$371)","v":""},null,{"$f":"IF($C$371=\"\",\"\",AL371/$C$371)","v":""},null,{"$f":"IF($C$371=\"\",\"\",AN371/$C$371)","v":""},null,{"$f":"IF($C$371=\"\",\"\",AP371/$C$371)","v":""},null,{"$f":"IF($C$371=\"\",\"\",AR371/$C$371)","v":""},null,{"$f":"IF($C$371=\"\",\"\",AT371/$C$371)","v":""},null,{"$f":"IF($C$371=\"\",\"\",AV371/$C$371)","v":""},null,{"$f":"IF($C$371=\"\",\"\",AX371/$C$371)","v":""},null,{"$f":"IF($C$371=\"\",\"\",AZ371/$C$371)","v":""},null,{"$f":"IF($C$371=\"\",\"\",BB371/$C$371)","v":""},null,{"$f":"SUM(BB371,AZ371,AX371,AV371,AT371,AR371,AP371,AN371,AL371,AJ371,AH371,AF371,AD371,AB371,Z371,X371,V371,T371,R371,P371,N371,L371,J371,H371,F371)","v":0}]
["TOTAL HOURS",null,null,null,null,{"$f":"SUM(F361:F371)","v":0},null,{"$f":"SUM(H361:H371)","v":0},null,{"$f":"SUM(J361:J371)","v":0},null,{"$f":"SUM(L361:L371)","v":0},null,{"$f":"SUM(N361:N371)","v":0},null,{"$f":"SUM(P361:P371)","v":0},null,{"$f":"SUM(R361:R371)","v":0},null,{"$f":"SUM(T361:T371)","v":0},null,{"$f":"SUM(V361:V371)","v":0},null,{"$f":"SUM(X361:X371)","v":0},null,{"$f":"SUM(Z361:Z371)","v":0},null,{"$f":"SUM(AB361:AB371)","v":0},null,{"$f":"SUM(AD361:AD371)","v":0},null,{"$f":"SUM(AF361:AF371)","v":0},null,{"$f":"SUM(AH361:AH371)","v":0},null,{"$f":"SUM(AJ361:AJ371)","v":0},null,{"$f":"SUM(AL361:AL371)","v":0},null,{"$f":"SUM(AN361:AN371)","v":0},null,{"$f":"SUM(AP361:AP371)","v":0},null,{"$f":"SUM(AR361:AR371)","v":0},null,{"$f":"SUM(AT361:AT371)","v":0},null,{"$f":"SUM(AV361:AV371)","v":0},null,{"$f":"SUM(AX361:AX371)","v":0},null,{"$f":"SUM(AZ361:AZ371)","v":0},null,{"$f":"SUM(BB361:BB371)","v":0},{"$f":"SUM(E372:BB372)","v":0}]
["TOTAL WORKDAYS",null,null,null,null,{"$f":"F372/8","v":0},null,{"$f":"H372/8","v":0},null,{"$f":"J372/8","v":0},null,{"$f":"L372/8","v":0},null,{"$f":"N372/8","v":0},null,{"$f":"P372/8","v":0},null,{"$f":"R372/8","v":0},null,{"$f":"T372/8","v":0},null,{"$f":"V372/8","v":0},null,{"$f":"X372/8","v":0},null,{"$f":"Z372/8","v":0},null,{"$f":"AB372/8","v":0},null,{"$f":"AD372/8","v":0},null,0,null,{"$f":"AH372/8","v":0},null,0,null,{"$f":"AL372/8","v":0},null,0,null,{"$f":"AP372/8","v":0},null,0,null,{"$f":"AT372/8","v":0},null,{"$f":"AV372/8","v":0},null,{"$f":"AX372/8","v":0},null,{"$f":"AZ372/8","v":0},null,{"$f":"BB372/8","v":0},{"$f":"SUM(E373:BB373)","v":0}]
["TOTAL RAW LABOR",null,null,null,null,{"$f":"$E$13*F372","v":0},null,{"$f":"$G$13*H372","v":0},null,{"$f":"$I$13*J372","v":0},null,{"$f":"$K$13*L372","v":0},null,{"$f":"$M$13*N372","v":0},null,{"$f":"$O$13*P372","v":0},null,{"$f":"$Q$13*R372","v":0},null,{"$f":"$S$13*T372","v":0},null,{"$f":"$U$13*V372","v":0},null,{"$f":"$W$13*X372","v":0},null,{"$f":"$Y$13*Z372","v":0},null,{"$f":"$AA$13*AB372","v":0},null,{"$f":"$AC$13*AD372","v":0},null,{"$f":"$AC$13*AF372","v":0},null,{"$f":"$AC$13*AH372","v":0},null,{"$f":"$AC$13*AJ372","v":0},null,{"$f":"$AC$13*AL372","v":0},null,{"$f":"$AC$13*AN372","v":0},null,{"$f":"$AC$13*AP372","v":0},null,{"$f":"$AC$13*AR372","v":0},null,{"$f":"$AC$13*AT372","v":0},null,{"$f":"$AC$13*AV372","v":0},null,{"$f":"$AC$13*AX372","v":0},null,{"$f":"$AC$13*AZ372","v":0},null,{"$f":"$AC$13*BB372","v":0},{"$f":"SUM(E374:BB374)","v":0}]
["Task 15.0     ","REPLACE FIELD WITH CATEGORY NAME OF YOUR CHOOSING HERE",null,null,null,null,null,null,null,null,null,null,null,null,null,null,null,null,null,null,null,null,null,null,null,null,null,null,null,null,null,null,null,null,null,null,null,null,null,null,null,null,null,null,null,null,null,null,null,null,null,null,null,null,{"$f":"IF(B375=\"REPLACE FIELD WITH CATEGORY NAME OF YOUR CHOOSING HERE\",0,\"\")","v":0}]
[null,null,null,null,{"$f":"IF($C$376=\"\",\"\",F376/$C$376)","v":""},null,{"$f":"IF($C$376=\"\",\"\",H376/$C$376)","v":""},null,{"$f":"IF($C$376=\"\",\"\",J376/$C$376)","v":""},null,{"$f":"IF($C$376=\"\",\"\",L376/$C$376)","v":""},null,{"$f":"IF($C$376=\"\",\"\",N376/$C$376)","v":""},null,{"$f":"IF($C$376=\"\",\"\",P376/$C$376)","v":""},null,{"$f":"IF($C$376=\"\",\"\",R376/$C$376)","v":""},null,{"$f":"IF($C$376=\"\",\"\",T376/$C$376)","v":""},null,{"$f":"IF($C$376=\"\",\"\",V376/$C$376)","v":""},null,{"$f":"IF($C$376=\"\",\"\",X376/$C$376)","v":""},null,{"$f":"IF($C$376=\"\",\"\",Z376/$C$376)","v":""},null,{"$f":"IF($C$376=\"\",\"\",AB376/$C$376)","v":""},null,{"$f":"IF($C$376=\"\",\"\",AD376/$C$376)","v":""},null,{"$f":"IF($C$376=\"\",\"\",AF376/$C$376)","v":""},null,{"$f":"IF($C$376=\"\",\"\",AH376/$C$376)","v":""},null,{"$f":"IF($C$376=\"\",\"\",AJ376/$C$376)","v":""},null,{"$f":"IF($C$376=\"\",\"\",AL376/$C$376)","v":""},null,{"$f":"IF($C$376=\"\",\"\",AN376/$C$376)","v":""},null,{"$f":"IF($C$376=\"\",\"\",AP376/$C$376)","v":""},null,{"$f":"IF($C$376=\"\",\"\",AR376/$C$376)","v":""},null,{"$f":"IF($C$376=\"\",\"\",AT376/$C$376)","v":""},null,{"$f":"IF($C$376=\"\",\"\",AV376/$C$376)","v":""},null,{"$f":"IF($C$376=\"\",\"\",AX376/$C$376)","v":""},null,{"$f":"IF($C$376=\"\",\"\",AZ376/$C$376)","v":""},null,{"$f":"IF($C$376=\"\",\"\",BB376/$C$376)","v":""},null,{"$f":"SUM(BB376,AZ376,AX376,AV376,AT376,AR376,AP376,AN376,AL376,AJ376,AH376,AF376,AD376,AB376,Z376,X376,V376,T376,R376,P376,N376,L376,J376,H376,F376)","v":0}]
[null,null,null,null,{"$f":"IF($C$377=\"\",\"\",F377/$C$377)","v":""},null,{"$f":"IF($C$377=\"\",\"\",H377/$C$377)","v":""},null,{"$f":"IF($C$377=\"\",\"\",J377/$C$377)","v":""},null,{"$f":"IF($C$377=\"\",\"\",L377/$C$377)","v":""},null,{"$f":"IF($C$377=\"\",\"\",N377/$C$377)","v":""},null,{"$f":"IF($C$377=\"\",\"\",P377/$C$377)","v":""},null,{"$f":"IF($C$377=\"\",\"\",R377/$C$377)","v":""},null,{"$f":"IF($C$377=\"\",\"\",T377/$C$377)","v":""},null,{"$f":"IF($C$377=\"\",\"\",V377/$C$377)","v":""},null,{"$f":"IF($C$377=\"\",\"\",X377/$C$377)","v":""},null,{"$f":"IF($C$377=\"\",\"\",Z377/$C$377)","v":""},null,{"$f":"IF($C$377=\"\",\"\",AB377/$C$377)","v":""},null,{"$f":"IF($C$377=\"\",\"\",AD377/$C$377)","v":""},null,{"$f":"IF($C$377=\"\",\"\",AF377/$C$377)","v":""},null,{"$f":"IF($C$377=\"\",\"\",AH377/$C$377)","v":""},null,{"$f":"IF($C$377=\"\",\"\",AJ377/$C$377)","v":""},null,{"$f":"IF($C$377=\"\",\"\",AL377/$C$377)","v":""},null,{"$f":"IF($C$377=\"\",\"\",AN377/$C$377)","v":""},null,{"$f":"IF($C$377=\"\",\"\",AP377/$C$377)","v":""},null,{"$f":"IF($C$377=\"\",\"\",AR377/$C$377)","v":""},null,{"$f":"IF($C$377=\"\",\"\",AT377/$C$377)","v":""},null,{"$f":"IF($C$377=\"\",\"\",AV377/$C$377)","v":""},null,{"$f":"IF($C$377=\"\",\"\",AX377/$C$377)","v":""},null,{"$f":"IF($C$377=\"\",\"\",AZ377/$C$377)","v":""},null,{"$f":"IF($C$377=\"\",\"\",BB377/$C$377)","v":""},null,0]
[null,null,null,null,{"$f":"IF($C$378=\"\",\"\",F378/$C$378)","v":""},null,{"$f":"IF($C$378=\"\",\"\",H378/$C$378)","v":""},null,{"$f":"IF($C$378=\"\",\"\",J378/$C$378)","v":""},null,{"$f":"IF($C$378=\"\",\"\",L378/$C$378)","v":""},null,{"$f":"IF($C$378=\"\",\"\",N378/$C$378)","v":""},null,{"$f":"IF($C$378=\"\",\"\",P378/$C$378)","v":""},null,{"$f":"IF($C$378=\"\",\"\",R378/$C$378)","v":""},null,{"$f":"IF($C$378=\"\",\"\",T378/$C$378)","v":""},null,{"$f":"IF($C$378=\"\",\"\",V378/$C$378)","v":""},null,{"$f":"IF($C$378=\"\",\"\",X378/$C$378)","v":""},null,{"$f":"IF($C$378=\"\",\"\",Z378/$C$378)","v":""},null,{"$f":"IF($C$378=\"\",\"\",AB378/$C$378)","v":""},null,{"$f":"IF($C$378=\"\",\"\",AD378/$C$378)","v":""},null,{"$f":"IF($C$378=\"\",\"\",AF378/$C$378)","v":""},null,{"$f":"IF($C$378=\"\",\"\",AH378/$C$378)","v":""},null,{"$f":"IF($C$378=\"\",\"\",AJ378/$C$378)","v":""},null,{"$f":"IF($C$378=\"\",\"\",AL378/$C$378)","v":""},null,{"$f":"IF($C$378=\"\",\"\",AN378/$C$378)","v":""},null,{"$f":"IF($C$378=\"\",\"\",AP378/$C$378)","v":""},null,{"$f":"IF($C$378=\"\",\"\",AR378/$C$378)","v":""},null,{"$f":"IF($C$378=\"\",\"\",AT378/$C$378)","v":""},null,{"$f":"IF($C$378=\"\",\"\",AV378/$C$378)","v":""},null,{"$f":"IF($C$378=\"\",\"\",AX378/$C$378)","v":""},null,{"$f":"IF($C$378=\"\",\"\",AZ378/$C$378)","v":""},null,{"$f":"IF($C$378=\"\",\"\",BB378/$C$378)","v":""},null,0]
[null,null,null,null,{"$f":"IF($C$379=\"\",\"\",F379/$C$379)","v":""},null,{"$f":"IF($C$379=\"\",\"\",H379/$C$379)","v":""},null,{"$f":"IF($C$379=\"\",\"\",J379/$C$379)","v":""},null,{"$f":"IF($C$379=\"\",\"\",L379/$C$379)","v":""},null,{"$f":"IF($C$379=\"\",\"\",N379/$C$379)","v":""},null,{"$f":"IF($C$379=\"\",\"\",P379/$C$379)","v":""},null,{"$f":"IF($C$379=\"\",\"\",R379/$C$379)","v":""},null,{"$f":"IF($C$379=\"\",\"\",T379/$C$379)","v":""},null,{"$f":"IF($C$379=\"\",\"\",V379/$C$379)","v":""},null,{"$f":"IF($C$379=\"\",\"\",X379/$C$379)","v":""},null,{"$f":"IF($C$379=\"\",\"\",Z379/$C$379)","v":""},null,{"$f":"IF($C$379=\"\",\"\",AB379/$C$379)","v":""},null,{"$f":"IF($C$379=\"\",\"\",AD379/$C$379)","v":""},null,{"$f":"IF($C$379=\"\",\"\",AF379/$C$379)","v":""},null,{"$f":"IF($C$379=\"\",\"\",AH379/$C$379)","v":""},null,{"$f":"IF($C$379=\"\",\"\",AJ379/$C$379)","v":""},null,{"$f":"IF($C$379=\"\",\"\",AL379/$C$379)","v":""},null,{"$f":"IF($C$379=\"\",\"\",AN379/$C$379)","v":""},null,{"$f":"IF($C$379=\"\",\"\",AP379/$C$379)","v":""},null,{"$f":"IF($C$379=\"\",\"\",AR379/$C$379)","v":""},null,{"$f":"IF($C$379=\"\",\"\",AT379/$C$379)","v":""},null,{"$f":"IF($C$379=\"\",\"\",AV379/$C$379)","v":""},null,{"$f":"IF($C$379=\"\",\"\",AX379/$C$379)","v":""},null,{"$f":"IF($C$379=\"\",\"\",AZ379/$C$379)","v":""},null,{"$f":"IF($C$379=\"\",\"\",BB379/$C$379)","v":""},null,0]
[null,null,null,null,{"$f":"IF($C$380=\"\",\"\",F380/$C$380)","v":""},null,{"$f":"IF($C$380=\"\",\"\",H380/$C$380)","v":""},null,{"$f":"IF($C$380=\"\",\"\",J380/$C$380)","v":""},null,{"$f":"IF($C$380=\"\",\"\",L380/$C$380)","v":""},null,{"$f":"IF($C$380=\"\",\"\",N380/$C$380)","v":""},null,{"$f":"IF($C$380=\"\",\"\",P380/$C$380)","v":""},null,{"$f":"IF($C$380=\"\",\"\",R380/$C$380)","v":""},null,{"$f":"IF($C$380=\"\",\"\",T380/$C$380)","v":""},null,{"$f":"IF($C$380=\"\",\"\",V380/$C$380)","v":""},null,{"$f":"IF($C$380=\"\",\"\",X380/$C$380)","v":""},null,{"$f":"IF($C$380=\"\",\"\",Z380/$C$380)","v":""},null,{"$f":"IF($C$380=\"\",\"\",AB380/$C$380)","v":""},null,{"$f":"IF($C$380=\"\",\"\",AD380/$C$380)","v":""},null,{"$f":"IF($C$380=\"\",\"\",AF380/$C$380)","v":""},null,{"$f":"IF($C$380=\"\",\"\",AH380/$C$380)","v":""},null,{"$f":"IF($C$380=\"\",\"\",AJ380/$C$380)","v":""},null,{"$f":"IF($C$380=\"\",\"\",AL380/$C$380)","v":""},null,{"$f":"IF($C$380=\"\",\"\",AN380/$C$380)","v":""},null,{"$f":"IF($C$380=\"\",\"\",AP380/$C$380)","v":""},null,{"$f":"IF($C$380=\"\",\"\",AR380/$C$380)","v":""},null,{"$f":"IF($C$380=\"\",\"\",AT380/$C$380)","v":""},null,{"$f":"IF($C$380=\"\",\"\",AV380/$C$380)","v":""},null,{"$f":"IF($C$380=\"\",\"\",AX380/$C$380)","v":""},null,{"$f":"IF($C$380=\"\",\"\",AZ380/$C$380)","v":""},null,{"$f":"IF($C$380=\"\",\"\",BB380/$C$380)","v":""},null,0]
[null,null,null,null,{"$f":"IF($C$381=\"\",\"\",F381/$C$381)","v":""},null,{"$f":"IF($C$381=\"\",\"\",H381/$C$381)","v":""},null,{"$f":"IF($C$381=\"\",\"\",J381/$C$381)","v":""},null,{"$f":"IF($C$381=\"\",\"\",L381/$C$381)","v":""},null,{"$f":"IF($C$381=\"\",\"\",N381/$C$381)","v":""},null,{"$f":"IF($C$381=\"\",\"\",P381/$C$381)","v":""},null,{"$f":"IF($C$381=\"\",\"\",R381/$C$381)","v":""},null,{"$f":"IF($C$381=\"\",\"\",T381/$C$381)","v":""},null,{"$f":"IF($C$381=\"\",\"\",V381/$C$381)","v":""},null,{"$f":"IF($C$381=\"\",\"\",X381/$C$381)","v":""},null,{"$f":"IF($C$381=\"\",\"\",Z381/$C$381)","v":""},null,{"$f":"IF($C$381=\"\",\"\",AB381/$C$381)","v":""},null,{"$f":"IF($C$381=\"\",\"\",AD381/$C$381)","v":""},null,{"$f":"IF($C$381=\"\",\"\",AF381/$C$381)","v":""},null,{"$f":"IF($C$381=\"\",\"\",AH381/$C$381)","v":""},null,{"$f":"IF($C$381=\"\",\"\",AJ381/$C$381)","v":""},null,{"$f":"IF($C$381=\"\",\"\",AL381/$C$381)","v":""},null,{"$f":"IF($C$381=\"\",\"\",AN381/$C$381)","v":""},null,{"$f":"IF($C$381=\"\",\"\",AP381/$C$381)","v":""},null,{"$f":"IF($C$381=\"\",\"\",AR381/$C$381)","v":""},null,{"$f":"IF($C$381=\"\",\"\",AT381/$C$381)","v":""},null,{"$f":"IF($C$381=\"\",\"\",AV381/$C$381)","v":""},null,{"$f":"IF($C$381=\"\",\"\",AX381/$C$381)","v":""},null,{"$f":"IF($C$381=\"\",\"\",AZ381/$C$381)","v":""},null,{"$f":"IF($C$381=\"\",\"\",BB381/$C$381)","v":""},null,0]
[null,null,null,null,{"$f":"IF($C$382=\"\",\"\",F382/$C$382)","v":""},null,{"$f":"IF($C$382=\"\",\"\",H382/$C$382)","v":""},null,{"$f":"IF($C$382=\"\",\"\",J382/$C$382)","v":""},null,{"$f":"IF($C$382=\"\",\"\",L382/$C$382)","v":""},null,{"$f":"IF($C$382=\"\",\"\",N382/$C$382)","v":""},null,{"$f":"IF($C$382=\"\",\"\",P382/$C$382)","v":""},null,{"$f":"IF($C$382=\"\",\"\",R382/$C$382)","v":""},null,{"$f":"IF($C$382=\"\",\"\",T382/$C$382)","v":""},null,{"$f":"IF($C$382=\"\",\"\",V382/$C$382)","v":""},null,{"$f":"IF($C$382=\"\",\"\",X382/$C$382)","v":""},null,{"$f":"IF($C$382=\"\",\"\",Z382/$C$382)","v":""},null,{"$f":"IF($C$382=\"\",\"\",AB382/$C$382)","v":""},null,{"$f":"IF($C$382=\"\",\"\",AD382/$C$382)","v":""},null,{"$f":"IF($C$382=\"\",\"\",AF382/$C$382)","v":""},null,{"$f":"IF($C$382=\"\",\"\",AH382/$C$382)","v":""},null,{"$f":"IF($C$382=\"\",\"\",AJ382/$C$382)","v":""},null,{"$f":"IF($C$382=\"\",\"\",AL382/$C$382)","v":""},null,{"$f":"IF($C$382=\"\",\"\",AN382/$C$382)","v":""},null,{"$f":"IF($C$382=\"\",\"\",AP382/$C$382)","v":""},null,{"$f":"IF($C$382=\"\",\"\",AR382/$C$382)","v":""},null,{"$f":"IF($C$382=\"\",\"\",AT382/$C$382)","v":""},null,{"$f":"IF($C$382=\"\",\"\",AV382/$C$382)","v":""},null,{"$f":"IF($C$382=\"\",\"\",AX382/$C$382)","v":""},null,{"$f":"IF($C$382=\"\",\"\",AZ382/$C$382)","v":""},null,{"$f":"IF($C$382=\"\",\"\",BB382/$C$382)","v":""},null,0]
[null,null,null,null,{"$f":"IF($C$383=\"\",\"\",F383/$C$383)","v":""},null,{"$f":"IF($C$383=\"\",\"\",H383/$C$383)","v":""},null,{"$f":"IF($C$383=\"\",\"\",J383/$C$383)","v":""},null,{"$f":"IF($C$383=\"\",\"\",L383/$C$383)","v":""},null,{"$f":"IF($C$383=\"\",\"\",N383/$C$383)","v":""},null,{"$f":"IF($C$383=\"\",\"\",P383/$C$383)","v":""},null,{"$f":"IF($C$383=\"\",\"\",R383/$C$383)","v":""},null,{"$f":"IF($C$383=\"\",\"\",T383/$C$383)","v":""},null,{"$f":"IF($C$383=\"\",\"\",V383/$C$383)","v":""},null,{"$f":"IF($C$383=\"\",\"\",X383/$C$383)","v":""},null,{"$f":"IF($C$383=\"\",\"\",Z383/$C$383)","v":""},null,{"$f":"IF($C$383=\"\",\"\",AB383/$C$383)","v":""},null,{"$f":"IF($C$383=\"\",\"\",AD383/$C$383)","v":""},null,{"$f":"IF($C$383=\"\",\"\",AF383/$C$383)","v":""},null,{"$f":"IF($C$383=\"\",\"\",AH383/$C$383)","v":""},null,{"$f":"IF($C$383=\"\",\"\",AJ383/$C$383)","v":""},null,{"$f":"IF($C$383=\"\",\"\",AL383/$C$383)","v":""},null,{"$f":"IF($C$383=\"\",\"\",AN383/$C$383)","v":""},null,{"$f":"IF($C$383=\"\",\"\",AP383/$C$383)","v":""},null,{"$f":"IF($C$383=\"\",\"\",AR383/$C$383)","v":""},null,{"$f":"IF($C$383=\"\",\"\",AT383/$C$383)","v":""},null,{"$f":"IF($C$383=\"\",\"\",AV383/$C$383)","v":""},null,{"$f":"IF($C$383=\"\",\"\",AX383/$C$383)","v":""},null,{"$f":"IF($C$383=\"\",\"\",AZ383/$C$383)","v":""},null,{"$f":"IF($C$383=\"\",\"\",BB383/$C$383)","v":""},null,0]
[null,null,null,null,{"$f":"IF($C$384=\"\",\"\",F384/$C$384)","v":""},null,{"$f":"IF($C$384=\"\",\"\",H384/$C$384)","v":""},null,{"$f":"IF($C$384=\"\",\"\",J384/$C$384)","v":""},null,{"$f":"IF($C$384=\"\",\"\",L384/$C$384)","v":""},null,{"$f":"IF($C$384=\"\",\"\",N384/$C$384)","v":""},null,{"$f":"IF($C$384=\"\",\"\",P384/$C$384)","v":""},null,{"$f":"IF($C$384=\"\",\"\",R384/$C$384)","v":""},null,{"$f":"IF($C$384=\"\",\"\",T384/$C$384)","v":""},null,{"$f":"IF($C$384=\"\",\"\",V384/$C$384)","v":""},null,{"$f":"IF($C$384=\"\",\"\",X384/$C$384)","v":""},null,{"$f":"IF($C$384=\"\",\"\",Z384/$C$384)","v":""},null,{"$f":"IF($C$384=\"\",\"\",AB384/$C$384)","v":""},null,{"$f":"IF($C$384=\"\",\"\",AD384/$C$384)","v":""},null,{"$f":"IF($C$384=\"\",\"\",AF384/$C$384)","v":""},null,{"$f":"IF($C$384=\"\",\"\",AH384/$C$384)","v":""},null,{"$f":"IF($C$384=\"\",\"\",AJ384/$C$384)","v":""},null,{"$f":"IF($C$384=\"\",\"\",AL384/$C$384)","v":""},null,{"$f":"IF($C$384=\"\",\"\",AN384/$C$384)","v":""},null,{"$f":"IF($C$384=\"\",\"\",AP384/$C$384)","v":""},null,{"$f":"IF($C$384=\"\",\"\",AR384/$C$384)","v":""},null,{"$f":"IF($C$384=\"\",\"\",AT384/$C$384)","v":""},null,{"$f":"IF($C$384=\"\",\"\",AV384/$C$384)","v":""},null,{"$f":"IF($C$384=\"\",\"\",AX384/$C$384)","v":""},null,{"$f":"IF($C$384=\"\",\"\",AZ384/$C$384)","v":""},null,{"$f":"IF($C$384=\"\",\"\",BB384/$C$384)","v":""},null,0]
[null,null,null,null,{"$f":"IF($C$385=\"\",\"\",F385/$C$385)","v":""},null,{"$f":"IF($C$385=\"\",\"\",H385/$C$385)","v":""},null,{"$f":"IF($C$385=\"\",\"\",J385/$C$385)","v":""},null,{"$f":"IF($C$385=\"\",\"\",L385/$C$385)","v":""},null,{"$f":"IF($C$385=\"\",\"\",N385/$C$385)","v":""},null,{"$f":"IF($C$385=\"\",\"\",P385/$C$385)","v":""},null,{"$f":"IF($C$385=\"\",\"\",R385/$C$385)","v":""},null,{"$f":"IF($C$385=\"\",\"\",T385/$C$385)","v":""},null,{"$f":"IF($C$385=\"\",\"\",V385/$C$385)","v":""},null,{"$f":"IF($C$385=\"\",\"\",X385/$C$385)","v":""},null,{"$f":"IF($C$385=\"\",\"\",Z385/$C$385)","v":""},null,{"$f":"IF($C$385=\"\",\"\",AB385/$C$385)","v":""},null,{"$f":"IF($C$385=\"\",\"\",AD385/$C$385)","v":""},null,{"$f":"IF($C$385=\"\",\"\",AF385/$C$385)","v":""},null,{"$f":"IF($C$385=\"\",\"\",AH385/$C$385)","v":""},null,{"$f":"IF($C$385=\"\",\"\",AJ385/$C$385)","v":""},null,{"$f":"IF($C$385=\"\",\"\",AL385/$C$385)","v":""},null,{"$f":"IF($C$385=\"\",\"\",AN385/$C$385)","v":""},null,{"$f":"IF($C$385=\"\",\"\",AP385/$C$385)","v":""},null,{"$f":"IF($C$385=\"\",\"\",AR385/$C$385)","v":""},null,{"$f":"IF($C$385=\"\",\"\",AT385/$C$385)","v":""},null,{"$f":"IF($C$385=\"\",\"\",AV385/$C$385)","v":""},null,{"$f":"IF($C$385=\"\",\"\",AX385/$C$385)","v":""},null,{"$f":"IF($C$385=\"\",\"\",AZ385/$C$385)","v":""},null,{"$f":"IF($C$385=\"\",\"\",BB385/$C$385)","v":""},null,0]
[null,null,null,null,{"$f":"IF($C$386=\"\",\"\",F386/$C$386)","v":""},null,{"$f":"IF($C$386=\"\",\"\",H386/$C$386)","v":""},null,{"$f":"IF($C$386=\"\",\"\",J386/$C$386)","v":""},null,{"$f":"IF($C$386=\"\",\"\",L386/$C$386)","v":""},null,{"$f":"IF($C$386=\"\",\"\",N386/$C$386)","v":""},null,{"$f":"IF($C$386=\"\",\"\",P386/$C$386)","v":""},null,{"$f":"IF($C$386=\"\",\"\",R386/$C$386)","v":""},null,{"$f":"IF($C$386=\"\",\"\",T386/$C$386)","v":""},null,{"$f":"IF($C$386=\"\",\"\",V386/$C$386)","v":""},null,{"$f":"IF($C$386=\"\",\"\",X386/$C$386)","v":""},null,{"$f":"IF($C$386=\"\",\"\",Z386/$C$386)","v":""},null,{"$f":"IF($C$386=\"\",\"\",AB386/$C$386)","v":""},null,{"$f":"IF($C$386=\"\",\"\",AD386/$C$386)","v":""},null,{"$f":"IF($C$386=\"\",\"\",AF386/$C$386)","v":""},null,{"$f":"IF($C$386=\"\",\"\",AH386/$C$386)","v":""},null,{"$f":"IF($C$386=\"\",\"\",AJ386/$C$386)","v":""},null,{"$f":"IF($C$386=\"\",\"\",AL386/$C$386)","v":""},null,{"$f":"IF($C$386=\"\",\"\",AN386/$C$386)","v":""},null,{"$f":"IF($C$386=\"\",\"\",AP386/$C$386)","v":""},null,{"$f":"IF($C$386=\"\",\"\",AR386/$C$386)","v":""},null,{"$f":"IF($C$386=\"\",\"\",AT386/$C$386)","v":""},null,{"$f":"IF($C$386=\"\",\"\",AV386/$C$386)","v":""},null,{"$f":"IF($C$386=\"\",\"\",AX386/$C$386)","v":""},null,{"$f":"IF($C$386=\"\",\"\",AZ386/$C$386)","v":""},null,{"$f":"IF($C$386=\"\",\"\",BB386/$C$386)","v":""},null,0]
[null,null,null,null,{"$f":"IF($C$387=\"\",\"\",F387/$C$387)","v":""},null,{"$f":"IF($C$387=\"\",\"\",H387/$C$387)","v":""},null,{"$f":"IF($C$387=\"\",\"\",J387/$C$387)","v":""},null,{"$f":"IF($C$387=\"\",\"\",L387/$C$387)","v":""},null,{"$f":"IF($C$387=\"\",\"\",N387/$C$387)","v":""},null,{"$f":"IF($C$387=\"\",\"\",P387/$C$387)","v":""},null,{"$f":"IF($C$387=\"\",\"\",R387/$C$387)","v":""},null,{"$f":"IF($C$387=\"\",\"\",T387/$C$387)","v":""},null,{"$f":"IF($C$387=\"\",\"\",V387/$C$387)","v":""},null,{"$f":"IF($C$387=\"\",\"\",X387/$C$387)","v":""},null,{"$f":"IF($C$387=\"\",\"\",Z387/$C$387)","v":""},null,{"$f":"IF($C$387=\"\",\"\",AB387/$C$387)","v":""},null,{"$f":"IF($C$387=\"\",\"\",AD387/$C$387)","v":""},null,{"$f":"IF($C$387=\"\",\"\",AF387/$C$387)","v":""},null,{"$f":"IF($C$387=\"\",\"\",AH387/$C$387)","v":""},null,{"$f":"IF($C$387=\"\",\"\",AJ387/$C$387)","v":""},null,{"$f":"IF($C$387=\"\",\"\",AL387/$C$387)","v":""},null,{"$f":"IF($C$387=\"\",\"\",AN387/$C$387)","v":""},null,{"$f":"IF($C$387=\"\",\"\",AP387/$C$387)","v":""},null,{"$f":"IF($C$387=\"\",\"\",AR387/$C$387)","v":""},null,{"$f":"IF($C$387=\"\",\"\",AT387/$C$387)","v":""},null,{"$f":"IF($C$387=\"\",\"\",AV387/$C$387)","v":""},null,{"$f":"IF($C$387=\"\",\"\",AX387/$C$387)","v":""},null,{"$f":"IF($C$387=\"\",\"\",AZ387/$C$387)","v":""},null,{"$f":"IF($C$387=\"\",\"\",BB387/$C$387)","v":""},null,0]
[null,null,null,null,{"$f":"IF($C$388=\"\",\"\",F388/$C$388)","v":""},null,{"$f":"IF($C$388=\"\",\"\",H388/$C$388)","v":""},null,{"$f":"IF($C$388=\"\",\"\",J388/$C$388)","v":""},null,{"$f":"IF($C$388=\"\",\"\",L388/$C$388)","v":""},null,{"$f":"IF($C$388=\"\",\"\",N388/$C$388)","v":""},null,{"$f":"IF($C$388=\"\",\"\",P388/$C$388)","v":""},null,{"$f":"IF($C$388=\"\",\"\",R388/$C$388)","v":""},null,{"$f":"IF($C$388=\"\",\"\",T388/$C$388)","v":""},null,{"$f":"IF($C$388=\"\",\"\",V388/$C$388)","v":""},null,{"$f":"IF($C$388=\"\",\"\",X388/$C$388)","v":""},null,{"$f":"IF($C$388=\"\",\"\",Z388/$C$388)","v":""},null,{"$f":"IF($C$388=\"\",\"\",AB388/$C$388)","v":""},null,{"$f":"IF($C$388=\"\",\"\",AD388/$C$388)","v":""},null,{"$f":"IF($C$388=\"\",\"\",AF388/$C$388)","v":""},null,{"$f":"IF($C$388=\"\",\"\",AH388/$C$388)","v":""},null,{"$f":"IF($C$388=\"\",\"\",AJ388/$C$388)","v":""},null,{"$f":"IF($C$388=\"\",\"\",AL388/$C$388)","v":""},null,{"$f":"IF($C$388=\"\",\"\",AN388/$C$388)","v":""},null,{"$f":"IF($C$388=\"\",\"\",AP388/$C$388)","v":""},null,{"$f":"IF($C$388=\"\",\"\",AR388/$C$388)","v":""},null,{"$f":"IF($C$388=\"\",\"\",AT388/$C$388)","v":""},null,{"$f":"IF($C$388=\"\",\"\",AV388/$C$388)","v":""},null,{"$f":"IF($C$388=\"\",\"\",AX388/$C$388)","v":""},null,{"$f":"IF($C$388=\"\",\"\",AZ388/$C$388)","v":""},null,{"$f":"IF($C$388=\"\",\"\",BB388/$C$388)","v":""},null,0]
[null,null,null,null,{"$f":"IF($C$389=\"\",\"\",F389/$C$389)","v":""},null,{"$f":"IF($C$389=\"\",\"\",H389/$C$389)","v":""},null,{"$f":"IF($C$389=\"\",\"\",J389/$C$389)","v":""},null,{"$f":"IF($C$389=\"\",\"\",L389/$C$389)","v":""},null,{"$f":"IF($C$389=\"\",\"\",N389/$C$389)","v":""},null,{"$f":"IF($C$389=\"\",\"\",P389/$C$389)","v":""},null,{"$f":"IF($C$389=\"\",\"\",R389/$C$389)","v":""},null,{"$f":"IF($C$389=\"\",\"\",T389/$C$389)","v":""},null,{"$f":"IF($C$389=\"\",\"\",V389/$C$389)","v":""},null,{"$f":"IF($C$389=\"\",\"\",X389/$C$389)","v":""},null,{"$f":"IF($C$389=\"\",\"\",Z389/$C$389)","v":""},null,{"$f":"IF($C$389=\"\",\"\",AB389/$C$389)","v":""},null,{"$f":"IF($C$389=\"\",\"\",AD389/$C$389)","v":""},null,{"$f":"IF($C$389=\"\",\"\",AF389/$C$389)","v":""},null,{"$f":"IF($C$389=\"\",\"\",AH389/$C$389)","v":""},null,{"$f":"IF($C$389=\"\",\"\",AJ389/$C$389)","v":""},null,{"$f":"IF($C$389=\"\",\"\",AL389/$C$389)","v":""},null,{"$f":"IF($C$389=\"\",\"\",AN389/$C$389)","v":""},null,{"$f":"IF($C$389=\"\",\"\",AP389/$C$389)","v":""},null,{"$f":"IF($C$389=\"\",\"\",AR389/$C$389)","v":""},null,{"$f":"IF($C$389=\"\",\"\",AT389/$C$389)","v":""},null,{"$f":"IF($C$389=\"\",\"\",AV389/$C$389)","v":""},null,{"$f":"IF($C$389=\"\",\"\",AX389/$C$389)","v":""},null,{"$f":"IF($C$389=\"\",\"\",AZ389/$C$389)","v":""},null,{"$f":"IF($C$389=\"\",\"\",BB389/$C$389)","v":""},null,0]
[null,null,null,null,{"$f":"IF($C$390=\"\",\"\",F390/$C$390)","v":""},null,{"$f":"IF($C$390=\"\",\"\",H390/$C$390)","v":""},null,{"$f":"IF($C$390=\"\",\"\",J390/$C$390)","v":""},null,{"$f":"IF($C$390=\"\",\"\",L390/$C$390)","v":""},null,{"$f":"IF($C$390=\"\",\"\",N390/$C$390)","v":""},null,{"$f":"IF($C$390=\"\",\"\",P390/$C$390)","v":""},null,{"$f":"IF($C$390=\"\",\"\",R390/$C$390)","v":""},null,{"$f":"IF($C$390=\"\",\"\",T390/$C$390)","v":""},null,{"$f":"IF($C$390=\"\",\"\",V390/$C$390)","v":""},null,{"$f":"IF($C$390=\"\",\"\",X390/$C$390)","v":""},null,{"$f":"IF($C$390=\"\",\"\",Z390/$C$390)","v":""},null,{"$f":"IF($C$390=\"\",\"\",AB390/$C$390)","v":""},null,{"$f":"IF($C$390=\"\",\"\",AD390/$C$390)","v":""},null,{"$f":"IF($C$390=\"\",\"\",AF390/$C$390)","v":""},null,{"$f":"IF($C$390=\"\",\"\",AH390/$C$390)","v":""},null,{"$f":"IF($C$390=\"\",\"\",AJ390/$C$390)","v":""},null,{"$f":"IF($C$390=\"\",\"\",AL390/$C$390)","v":""},null,{"$f":"IF($C$390=\"\",\"\",AN390/$C$390)","v":""},null,{"$f":"IF($C$390=\"\",\"\",AP390/$C$390)","v":""},null,{"$f":"IF($C$390=\"\",\"\",AR390/$C$390)","v":""},null,{"$f":"IF($C$390=\"\",\"\",AT390/$C$390)","v":""},null,{"$f":"IF($C$390=\"\",\"\",AV390/$C$390)","v":""},null,{"$f":"IF($C$390=\"\",\"\",AX390/$C$390)","v":""},null,{"$f":"IF($C$390=\"\",\"\",AZ390/$C$390)","v":""},null,{"$f":"IF($C$390=\"\",\"\",BB390/$C$390)","v":""},null,0]
[null,null,null,null,{"$f":"IF($C$391=\"\",\"\",F391/$C$391)","v":""},null,{"$f":"IF($C$391=\"\",\"\",H391/$C$391)","v":""},null,{"$f":"IF($C$391=\"\",\"\",J391/$C$391)","v":""},null,{"$f":"IF($C$391=\"\",\"\",L391/$C$391)","v":""},null,{"$f":"IF($C$391=\"\",\"\",N391/$C$391)","v":""},null,{"$f":"IF($C$391=\"\",\"\",P391/$C$391)","v":""},null,{"$f":"IF($C$391=\"\",\"\",R391/$C$391)","v":""},null,{"$f":"IF($C$391=\"\",\"\",T391/$C$391)","v":""},null,{"$f":"IF($C$391=\"\",\"\",V391/$C$391)","v":""},null,{"$f":"IF($C$391=\"\",\"\",X391/$C$391)","v":""},null,{"$f":"IF($C$391=\"\",\"\",Z391/$C$391)","v":""},null,{"$f":"IF($C$391=\"\",\"\",AB391/$C$391)","v":""},null,{"$f":"IF($C$391=\"\",\"\",AD391/$C$391)","v":""},null,{"$f":"IF($C$391=\"\",\"\",AF391/$C$391)","v":""},null,{"$f":"IF($C$391=\"\",\"\",AH391/$C$391)","v":""},null,{"$f":"IF($C$391=\"\",\"\",AJ391/$C$391)","v":""},null,{"$f":"IF($C$391=\"\",\"\",AL391/$C$391)","v":""},null,{"$f":"IF($C$391=\"\",\"\",AN391/$C$391)","v":""},null,{"$f":"IF($C$391=\"\",\"\",AP391/$C$391)","v":""},null,{"$f":"IF($C$391=\"\",\"\",AR391/$C$391)","v":""},null,{"$f":"IF($C$391=\"\",\"\",AT391/$C$391)","v":""},null,{"$f":"IF($C$391=\"\",\"\",AV391/$C$391)","v":""},null,{"$f":"IF($C$391=\"\",\"\",AX391/$C$391)","v":""},null,{"$f":"IF($C$391=\"\",\"\",AZ391/$C$391)","v":""},null,{"$f":"IF($C$391=\"\",\"\",BB391/$C$391)","v":""},null,0]
[null,null,null,null,{"$f":"IF($C$392=\"\",\"\",F392/$C$392)","v":""},null,{"$f":"IF($C$392=\"\",\"\",H392/$C$392)","v":""},null,{"$f":"IF($C$392=\"\",\"\",J392/$C$392)","v":""},null,{"$f":"IF($C$392=\"\",\"\",L392/$C$392)","v":""},null,{"$f":"IF($C$392=\"\",\"\",N392/$C$392)","v":""},null,{"$f":"IF($C$392=\"\",\"\",P392/$C$392)","v":""},null,{"$f":"IF($C$392=\"\",\"\",R392/$C$392)","v":""},null,{"$f":"IF($C$392=\"\",\"\",T392/$C$392)","v":""},null,{"$f":"IF($C$392=\"\",\"\",V392/$C$392)","v":""},null,{"$f":"IF($C$392=\"\",\"\",X392/$C$392)","v":""},null,{"$f":"IF($C$392=\"\",\"\",Z392/$C$392)","v":""},null,{"$f":"IF($C$392=\"\",\"\",AB392/$C$392)","v":""},null,{"$f":"IF($C$392=\"\",\"\",AD392/$C$392)","v":""},null,{"$f":"IF($C$392=\"\",\"\",AF392/$C$392)","v":""},null,{"$f":"IF($C$392=\"\",\"\",AH392/$C$392)","v":""},null,{"$f":"IF($C$392=\"\",\"\",AJ392/$C$392)","v":""},null,{"$f":"IF($C$392=\"\",\"\",AL392/$C$392)","v":""},null,{"$f":"IF($C$392=\"\",\"\",AN392/$C$392)","v":""},null,{"$f":"IF($C$392=\"\",\"\",AP392/$C$392)","v":""},null,{"$f":"IF($C$392=\"\",\"\",AR392/$C$392)","v":""},null,{"$f":"IF($C$392=\"\",\"\",AT392/$C$392)","v":""},null,{"$f":"IF($C$392=\"\",\"\",AV392/$C$392)","v":""},null,{"$f":"IF($C$392=\"\",\"\",AX392/$C$392)","v":""},null,{"$f":"IF($C$392=\"\",\"\",AZ392/$C$392)","v":""},null,{"$f":"IF($C$392=\"\",\"\",BB392/$C$392)","v":""},null,0]
[null,null,null,null,{"$f":"IF($C$393=\"\",\"\",F393/$C$393)","v":""},null,{"$f":"IF($C$393=\"\",\"\",H393/$C$393)","v":""},null,{"$f":"IF($C$393=\"\",\"\",J393/$C$393)","v":""},null,{"$f":"IF($C$393=\"\",\"\",L393/$C$393)","v":""},null,{"$f":"IF($C$393=\"\",\"\",N393/$C$393)","v":""},null,{"$f":"IF($C$393=\"\",\"\",P393/$C$393)","v":""},null,{"$f":"IF($C$393=\"\",\"\",R393/$C$393)","v":""},null,{"$f":"IF($C$393=\"\",\"\",T393/$C$393)","v":""},null,{"$f":"IF($C$393=\"\",\"\",V393/$C$393)","v":""},null,{"$f":"IF($C$393=\"\",\"\",X393/$C$393)","v":""},null,{"$f":"IF($C$393=\"\",\"\",Z393/$C$393)","v":""},null,{"$f":"IF($C$393=\"\",\"\",AB393/$C$393)","v":""},null,{"$f":"IF($C$393=\"\",\"\",AD393/$C$393)","v":""},null,{"$f":"IF($C$393=\"\",\"\",AF393/$C$393)","v":""},null,{"$f":"IF($C$393=\"\",\"\",AH393/$C$393)","v":""},null,{"$f":"IF($C$393=\"\",\"\",AJ393/$C$393)","v":""},null,{"$f":"IF($C$393=\"\",\"\",AL393/$C$393)","v":""},null,{"$f":"IF($C$393=\"\",\"\",AN393/$C$393)","v":""},null,{"$f":"IF($C$393=\"\",\"\",AP393/$C$393)","v":""},null,{"$f":"IF($C$393=\"\",\"\",AR393/$C$393)","v":""},null,{"$f":"IF($C$393=\"\",\"\",AT393/$C$393)","v":""},null,{"$f":"IF($C$393=\"\",\"\",AV393/$C$393)","v":""},null,{"$f":"IF($C$393=\"\",\"\",AX393/$C$393)","v":""},null,{"$f":"IF($C$393=\"\",\"\",AZ393/$C$393)","v":""},null,{"$f":"IF($C$393=\"\",\"\",BB393/$C$393)","v":""},null,0]
[null,null,null,null,{"$f":"IF($C$394=\"\",\"\",F394/$C$394)","v":""},null,{"$f":"IF($C$394=\"\",\"\",H394/$C$394)","v":""},null,{"$f":"IF($C$394=\"\",\"\",J394/$C$394)","v":""},null,{"$f":"IF($C$394=\"\",\"\",L394/$C$394)","v":""},null,{"$f":"IF($C$394=\"\",\"\",N394/$C$394)","v":""},null,{"$f":"IF($C$394=\"\",\"\",P394/$C$394)","v":""},null,{"$f":"IF($C$394=\"\",\"\",R394/$C$394)","v":""},null,{"$f":"IF($C$394=\"\",\"\",T394/$C$394)","v":""},null,{"$f":"IF($C$394=\"\",\"\",V394/$C$394)","v":""},null,{"$f":"IF($C$394=\"\",\"\",X394/$C$394)","v":""},null,{"$f":"IF($C$394=\"\",\"\",Z394/$C$394)","v":""},null,{"$f":"IF($C$394=\"\",\"\",AB394/$C$394)","v":""},null,{"$f":"IF($C$394=\"\",\"\",AD394/$C$394)","v":""},null,{"$f":"IF($C$394=\"\",\"\",AF394/$C$394)","v":""},null,{"$f":"IF($C$394=\"\",\"\",AH394/$C$394)","v":""},null,{"$f":"IF($C$394=\"\",\"\",AJ394/$C$394)","v":""},null,{"$f":"IF($C$394=\"\",\"\",AL394/$C$394)","v":""},null,{"$f":"IF($C$394=\"\",\"\",AN394/$C$394)","v":""},null,{"$f":"IF($C$394=\"\",\"\",AP394/$C$394)","v":""},null,{"$f":"IF($C$394=\"\",\"\",AR394/$C$394)","v":""},null,{"$f":"IF($C$394=\"\",\"\",AT394/$C$394)","v":""},null,{"$f":"IF($C$394=\"\",\"\",AV394/$C$394)","v":""},null,{"$f":"IF($C$394=\"\",\"\",AX394/$C$394)","v":""},null,{"$f":"IF($C$394=\"\",\"\",AZ394/$C$394)","v":""},null,{"$f":"IF($C$394=\"\",\"\",BB394/$C$394)","v":""},null,0]
[null,null,null,null,{"$f":"IF($C$395=\"\",\"\",F395/$C$395)","v":""},null,{"$f":"IF($C$395=\"\",\"\",H395/$C$395)","v":""},null,{"$f":"IF($C$395=\"\",\"\",J395/$C$395)","v":""},null,{"$f":"IF($C$395=\"\",\"\",L395/$C$395)","v":""},null,{"$f":"IF($C$395=\"\",\"\",N395/$C$395)","v":""},null,{"$f":"IF($C$395=\"\",\"\",P395/$C$395)","v":""},null,{"$f":"IF($C$395=\"\",\"\",R395/$C$395)","v":""},null,{"$f":"IF($C$395=\"\",\"\",T395/$C$395)","v":""},null,{"$f":"IF($C$395=\"\",\"\",V395/$C$395)","v":""},null,{"$f":"IF($C$395=\"\",\"\",X395/$C$395)","v":""},null,{"$f":"IF($C$395=\"\",\"\",Z395/$C$395)","v":""},null,{"$f":"IF($C$395=\"\",\"\",AB395/$C$395)","v":""},null,{"$f":"IF($C$395=\"\",\"\",AD395/$C$395)","v":""},null,{"$f":"IF($C$395=\"\",\"\",AF395/$C$395)","v":""},null,{"$f":"IF($C$395=\"\",\"\",AH395/$C$395)","v":""},null,{"$f":"IF($C$395=\"\",\"\",AJ395/$C$395)","v":""},null,{"$f":"IF($C$395=\"\",\"\",AL395/$C$395)","v":""},null,{"$f":"IF($C$395=\"\",\"\",AN395/$C$395)","v":""},null,{"$f":"IF($C$395=\"\",\"\",AP395/$C$395)","v":""},null,{"$f":"IF($C$395=\"\",\"\",AR395/$C$395)","v":""},null,{"$f":"IF($C$395=\"\",\"\",AT395/$C$395)","v":""},null,{"$f":"IF($C$395=\"\",\"\",AV395/$C$395)","v":""},null,{"$f":"IF($C$395=\"\",\"\",AX395/$C$395)","v":""},null,{"$f":"IF($C$395=\"\",\"\",AZ395/$C$395)","v":""},null,{"$f":"IF($C$395=\"\",\"\",BB395/$C$395)","v":""},null,0]
[null,null,null,null,{"$f":"IF($C$396=\"\",\"\",F396/$C$396)","v":""},null,{"$f":"IF($C$396=\"\",\"\",H396/$C$396)","v":""},null,{"$f":"IF($C$396=\"\",\"\",J396/$C$396)","v":""},null,{"$f":"IF($C$396=\"\",\"\",L396/$C$396)","v":""},null,{"$f":"IF($C$396=\"\",\"\",N396/$C$396)","v":""},null,{"$f":"IF($C$396=\"\",\"\",P396/$C$396)","v":""},null,{"$f":"IF($C$396=\"\",\"\",R396/$C$396)","v":""},null,{"$f":"IF($C$396=\"\",\"\",T396/$C$396)","v":""},null,{"$f":"IF($C$396=\"\",\"\",V396/$C$396)","v":""},null,{"$f":"IF($C$396=\"\",\"\",X396/$C$396)","v":""},null,{"$f":"IF($C$396=\"\",\"\",Z396/$C$396)","v":""},null,{"$f":"IF($C$396=\"\",\"\",AB396/$C$396)","v":""},null,{"$f":"IF($C$396=\"\",\"\",AD396/$C$396)","v":""},null,{"$f":"IF($C$396=\"\",\"\",AF396/$C$396)","v":""},null,{"$f":"IF($C$396=\"\",\"\",AH396/$C$396)","v":""},null,{"$f":"IF($C$396=\"\",\"\",AJ396/$C$396)","v":""},null,{"$f":"IF($C$396=\"\",\"\",AL396/$C$396)","v":""},null,{"$f":"IF($C$396=\"\",\"\",AN396/$C$396)","v":""},null,{"$f":"IF($C$396=\"\",\"\",AP396/$C$396)","v":""},null,{"$f":"IF($C$396=\"\",\"\",AR396/$C$396)","v":""},null,{"$f":"IF($C$396=\"\",\"\",AT396/$C$396)","v":""},null,{"$f":"IF($C$396=\"\",\"\",AV396/$C$396)","v":""},null,{"$f":"IF($C$396=\"\",\"\",AX396/$C$396)","v":""},null,{"$f":"IF($C$396=\"\",\"\",AZ396/$C$396)","v":""},null,{"$f":"IF($C$396=\"\",\"\",BB396/$C$396)","v":""},null,0]
[null,null,null,null,{"$f":"IF($C$397=\"\",\"\",F397/$C$397)","v":""},null,{"$f":"IF($C$397=\"\",\"\",H397/$C$397)","v":""},null,{"$f":"IF($C$397=\"\",\"\",J397/$C$397)","v":""},null,{"$f":"IF($C$397=\"\",\"\",L397/$C$397)","v":""},null,{"$f":"IF($C$397=\"\",\"\",N397/$C$397)","v":""},null,{"$f":"IF($C$397=\"\",\"\",P397/$C$397)","v":""},null,{"$f":"IF($C$397=\"\",\"\",R397/$C$397)","v":""},null,{"$f":"IF($C$397=\"\",\"\",T397/$C$397)","v":""},null,{"$f":"IF($C$397=\"\",\"\",V397/$C$397)","v":""},null,{"$f":"IF($C$397=\"\",\"\",X397/$C$397)","v":""},null,{"$f":"IF($C$397=\"\",\"\",Z397/$C$397)","v":""},null,{"$f":"IF($C$397=\"\",\"\",AB397/$C$397)","v":""},null,{"$f":"IF($C$397=\"\",\"\",AD397/$C$397)","v":""},null,{"$f":"IF($C$397=\"\",\"\",AF397/$C$397)","v":""},null,{"$f":"IF($C$397=\"\",\"\",AH397/$C$397)","v":""},null,{"$f":"IF($C$397=\"\",\"\",AJ397/$C$397)","v":""},null,{"$f":"IF($C$397=\"\",\"\",AL397/$C$397)","v":""},null,{"$f":"IF($C$397=\"\",\"\",AN397/$C$397)","v":""},null,{"$f":"IF($C$397=\"\",\"\",AP397/$C$397)","v":""},null,{"$f":"IF($C$397=\"\",\"\",AR397/$C$397)","v":""},null,{"$f":"IF($C$397=\"\",\"\",AT397/$C$397)","v":""},null,{"$f":"IF($C$397=\"\",\"\",AV397/$C$397)","v":""},null,{"$f":"IF($C$397=\"\",\"\",AX397/$C$397)","v":""},null,{"$f":"IF($C$397=\"\",\"\",AZ397/$C$397)","v":""},null,{"$f":"IF($C$397=\"\",\"\",BB397/$C$397)","v":""},null,0]
[null,null,null,null,{"$f":"IF($C$398=\"\",\"\",F398/$C$398)","v":""},null,{"$f":"IF($C$398=\"\",\"\",H398/$C$398)","v":""},null,{"$f":"IF($C$398=\"\",\"\",J398/$C$398)","v":""},null,{"$f":"IF($C$398=\"\",\"\",L398/$C$398)","v":""},null,{"$f":"IF($C$398=\"\",\"\",N398/$C$398)","v":""},null,{"$f":"IF($C$398=\"\",\"\",P398/$C$398)","v":""},null,{"$f":"IF($C$398=\"\",\"\",R398/$C$398)","v":""},null,{"$f":"IF($C$398=\"\",\"\",T398/$C$398)","v":""},null,{"$f":"IF($C$398=\"\",\"\",V398/$C$398)","v":""},null,{"$f":"IF($C$398=\"\",\"\",X398/$C$398)","v":""},null,{"$f":"IF($C$398=\"\",\"\",Z398/$C$398)","v":""},null,{"$f":"IF($C$398=\"\",\"\",AB398/$C$398)","v":""},null,{"$f":"IF($C$398=\"\",\"\",AD398/$C$398)","v":""},null,{"$f":"IF($C$398=\"\",\"\",AF398/$C$398)","v":""},null,{"$f":"IF($C$398=\"\",\"\",AH398/$C$398)","v":""},null,{"$f":"IF($C$398=\"\",\"\",AJ398/$C$398)","v":""},null,{"$f":"IF($C$398=\"\",\"\",AL398/$C$398)","v":""},null,{"$f":"IF($C$398=\"\",\"\",AN398/$C$398)","v":""},null,{"$f":"IF($C$398=\"\",\"\",AP398/$C$398)","v":""},null,{"$f":"IF($C$398=\"\",\"\",AR398/$C$398)","v":""},null,{"$f":"IF($C$398=\"\",\"\",AT398/$C$398)","v":""},null,{"$f":"IF($C$398=\"\",\"\",AV398/$C$398)","v":""},null,{"$f":"IF($C$398=\"\",\"\",AX398/$C$398)","v":""},null,{"$f":"IF($C$398=\"\",\"\",AZ398/$C$398)","v":""},null,{"$f":"IF($C$398=\"\",\"\",BB398/$C$398)","v":""},null,0]
[null,null,null,null,{"$f":"IF($C$399=\"\",\"\",F399/$C$399)","v":""},null,{"$f":"IF($C$399=\"\",\"\",H399/$C$399)","v":""},null,{"$f":"IF($C$399=\"\",\"\",J399/$C$399)","v":""},null,{"$f":"IF($C$399=\"\",\"\",L399/$C$399)","v":""},null,{"$f":"IF($C$399=\"\",\"\",N399/$C$399)","v":""},null,{"$f":"IF($C$399=\"\",\"\",P399/$C$399)","v":""},null,{"$f":"IF($C$399=\"\",\"\",R399/$C$399)","v":""},null,{"$f":"IF($C$399=\"\",\"\",T399/$C$399)","v":""},null,{"$f":"IF($C$399=\"\",\"\",V399/$C$399)","v":""},null,{"$f":"IF($C$399=\"\",\"\",X399/$C$399)","v":""},null,{"$f":"IF($C$399=\"\",\"\",Z399/$C$399)","v":""},null,{"$f":"IF($C$399=\"\",\"\",AB399/$C$399)","v":""},null,{"$f":"IF($C$399=\"\",\"\",AD399/$C$399)","v":""},null,{"$f":"IF($C$399=\"\",\"\",AF399/$C$399)","v":""},null,{"$f":"IF($C$399=\"\",\"\",AH399/$C$399)","v":""},null,{"$f":"IF($C$399=\"\",\"\",AJ399/$C$399)","v":""},null,{"$f":"IF($C$399=\"\",\"\",AL399/$C$399)","v":""},null,{"$f":"IF($C$399=\"\",\"\",AN399/$C$399)","v":""},null,{"$f":"IF($C$399=\"\",\"\",AP399/$C$399)","v":""},null,{"$f":"IF($C$399=\"\",\"\",AR399/$C$399)","v":""},null,{"$f":"IF($C$399=\"\",\"\",AT399/$C$399)","v":""},null,{"$f":"IF($C$399=\"\",\"\",AV399/$C$399)","v":""},null,{"$f":"IF($C$399=\"\",\"\",AX399/$C$399)","v":""},null,{"$f":"IF($C$399=\"\",\"\",AZ399/$C$399)","v":""},null,{"$f":"IF($C$399=\"\",\"\",BB399/$C$399)","v":""},null,0]
[null,null,null,null,{"$f":"IF($C$400=\"\",\"\",F400/$C$400)","v":""},null,{"$f":"IF($C$400=\"\",\"\",H400/$C$400)","v":""},null,{"$f":"IF($C$400=\"\",\"\",J400/$C$400)","v":""},null,{"$f":"IF($C$400=\"\",\"\",L400/$C$400)","v":""},null,{"$f":"IF($C$400=\"\",\"\",N400/$C$400)","v":""},null,{"$f":"IF($C$400=\"\",\"\",P400/$C$400)","v":""},null,{"$f":"IF($C$400=\"\",\"\",R400/$C$400)","v":""},null,{"$f":"IF($C$400=\"\",\"\",T400/$C$400)","v":""},null,{"$f":"IF($C$400=\"\",\"\",V400/$C$400)","v":""},null,{"$f":"IF($C$400=\"\",\"\",X400/$C$400)","v":""},null,{"$f":"IF($C$400=\"\",\"\",Z400/$C$400)","v":""},null,{"$f":"IF($C$400=\"\",\"\",AB400/$C$400)","v":""},null,{"$f":"IF($C$400=\"\",\"\",AD400/$C$400)","v":""},null,{"$f":"IF($C$400=\"\",\"\",AF400/$C$400)","v":""},null,{"$f":"IF($C$400=\"\",\"\",AH400/$C$400)","v":""},null,{"$f":"IF($C$400=\"\",\"\",AJ400/$C$400)","v":""},null,{"$f":"IF($C$400=\"\",\"\",AL400/$C$400)","v":""},null,{"$f":"IF($C$400=\"\",\"\",AN400/$C$400)","v":""},null,{"$f":"IF($C$400=\"\",\"\",AP400/$C$400)","v":""},null,{"$f":"IF($C$400=\"\",\"\",AR400/$C$400)","v":""},null,{"$f":"IF($C$400=\"\",\"\",AT400/$C$400)","v":""},null,{"$f":"IF($C$400=\"\",\"\",AV400/$C$400)","v":""},null,{"$f":"IF($C$400=\"\",\"\",AX400/$C$400)","v":""},null,{"$f":"IF($C$400=\"\",\"\",AZ400/$C$400)","v":""},null,{"$f":"IF($C$400=\"\",\"\",BB400/$C$400)","v":""},null,0]
[null,null,null,null,{"$f":"IF($C$401=\"\",\"\",F401/$C$401)","v":""},null,{"$f":"IF($C$401=\"\",\"\",H401/$C$401)","v":""},null,{"$f":"IF($C$401=\"\",\"\",J401/$C$401)","v":""},null,{"$f":"IF($C$401=\"\",\"\",L401/$C$401)","v":""},null,{"$f":"IF($C$401=\"\",\"\",N401/$C$401)","v":""},null,{"$f":"IF($C$401=\"\",\"\",P401/$C$401)","v":""},null,{"$f":"IF($C$401=\"\",\"\",R401/$C$401)","v":""},null,{"$f":"IF($C$401=\"\",\"\",T401/$C$401)","v":""},null,{"$f":"IF($C$401=\"\",\"\",V401/$C$401)","v":""},null,{"$f":"IF($C$401=\"\",\"\",X401/$C$401)","v":""},null,{"$f":"IF($C$401=\"\",\"\",Z401/$C$401)","v":""},null,{"$f":"IF($C$401=\"\",\"\",AB401/$C$401)","v":""},null,{"$f":"IF($C$401=\"\",\"\",AD401/$C$401)","v":""},null,{"$f":"IF($C$401=\"\",\"\",AF401/$C$401)","v":""},null,{"$f":"IF($C$401=\"\",\"\",AH401/$C$401)","v":""},null,{"$f":"IF($C$401=\"\",\"\",AJ401/$C$401)","v":""},null,{"$f":"IF($C$401=\"\",\"\",AL401/$C$401)","v":""},null,{"$f":"IF($C$401=\"\",\"\",AN401/$C$401)","v":""},null,{"$f":"IF($C$401=\"\",\"\",AP401/$C$401)","v":""},null,{"$f":"IF($C$401=\"\",\"\",AR401/$C$401)","v":""},null,{"$f":"IF($C$401=\"\",\"\",AT401/$C$401)","v":""},null,{"$f":"IF($C$401=\"\",\"\",AV401/$C$401)","v":""},null,{"$f":"IF($C$401=\"\",\"\",AX401/$C$401)","v":""},null,{"$f":"IF($C$401=\"\",\"\",AZ401/$C$401)","v":""},null,{"$f":"IF($C$401=\"\",\"\",BB401/$C$401)","v":""},null,0]
[null,null,null,null,{"$f":"IF($C$402=\"\",\"\",F402/$C$402)","v":""},null,{"$f":"IF($C$402=\"\",\"\",H402/$C$402)","v":""},null,{"$f":"IF($C$402=\"\",\"\",J402/$C$402)","v":""},null,{"$f":"IF($C$402=\"\",\"\",L402/$C$402)","v":""},null,{"$f":"IF($C$402=\"\",\"\",N402/$C$402)","v":""},null,{"$f":"IF($C$402=\"\",\"\",P402/$C$402)","v":""},null,{"$f":"IF($C$402=\"\",\"\",R402/$C$402)","v":""},null,{"$f":"IF($C$402=\"\",\"\",T402/$C$402)","v":""},null,{"$f":"IF($C$402=\"\",\"\",V402/$C$402)","v":""},null,{"$f":"IF($C$402=\"\",\"\",X402/$C$402)","v":""},null,{"$f":"IF($C$402=\"\",\"\",Z402/$C$402)","v":""},null,{"$f":"IF($C$402=\"\",\"\",AB402/$C$402)","v":""},null,{"$f":"IF($C$402=\"\",\"\",AD402/$C$402)","v":""},null,{"$f":"IF($C$402=\"\",\"\",AF402/$C$402)","v":""},null,{"$f":"IF($C$402=\"\",\"\",AH402/$C$402)","v":""},null,{"$f":"IF($C$402=\"\",\"\",AJ402/$C$402)","v":""},null,{"$f":"IF($C$402=\"\",\"\",AL402/$C$402)","v":""},null,{"$f":"IF($C$402=\"\",\"\",AN402/$C$402)","v":""},null,{"$f":"IF($C$402=\"\",\"\",AP402/$C$402)","v":""},null,{"$f":"IF($C$402=\"\",\"\",AR402/$C$402)","v":""},null,{"$f":"IF($C$402=\"\",\"\",AT402/$C$402)","v":""},null,{"$f":"IF($C$402=\"\",\"\",AV402/$C$402)","v":""},null,{"$f":"IF($C$402=\"\",\"\",AX402/$C$402)","v":""},null,{"$f":"IF($C$402=\"\",\"\",AZ402/$C$402)","v":""},null,{"$f":"IF($C$402=\"\",\"\",BB402/$C$402)","v":""},null,0]
[null,null,null,null,{"$f":"IF($C$403=\"\",\"\",F403/$C$403)","v":""},null,{"$f":"IF($C$403=\"\",\"\",H403/$C$403)","v":""},null,{"$f":"IF($C$403=\"\",\"\",J403/$C$403)","v":""},null,{"$f":"IF($C$403=\"\",\"\",L403/$C$403)","v":""},null,{"$f":"IF($C$403=\"\",\"\",N403/$C$403)","v":""},null,{"$f":"IF($C$403=\"\",\"\",P403/$C$403)","v":""},null,{"$f":"IF($C$403=\"\",\"\",R403/$C$403)","v":""},null,{"$f":"IF($C$403=\"\",\"\",T403/$C$403)","v":""},null,{"$f":"IF($C$403=\"\",\"\",V403/$C$403)","v":""},null,{"$f":"IF($C$403=\"\",\"\",X403/$C$403)","v":""},null,{"$f":"IF($C$403=\"\",\"\",Z403/$C$403)","v":""},null,{"$f":"IF($C$403=\"\",\"\",AB403/$C$403)","v":""},null,{"$f":"IF($C$403=\"\",\"\",AD403/$C$403)","v":""},null,{"$f":"IF($C$403=\"\",\"\",AF403/$C$403)","v":""},null,{"$f":"IF($C$403=\"\",\"\",AH403/$C$403)","v":""},null,{"$f":"IF($C$403=\"\",\"\",AJ403/$C$403)","v":""},null,{"$f":"IF($C$403=\"\",\"\",AL403/$C$403)","v":""},null,{"$f":"IF($C$403=\"\",\"\",AN403/$C$403)","v":""},null,{"$f":"IF($C$403=\"\",\"\",AP403/$C$403)","v":""},null,{"$f":"IF($C$403=\"\",\"\",AR403/$C$403)","v":""},null,{"$f":"IF($C$403=\"\",\"\",AT403/$C$403)","v":""},null,{"$f":"IF($C$403=\"\",\"\",AV403/$C$403)","v":""},null,{"$f":"IF($C$403=\"\",\"\",AX403/$C$403)","v":""},null,{"$f":"IF($C$403=\"\",\"\",AZ403/$C$403)","v":""},null,{"$f":"IF($C$403=\"\",\"\",BB403/$C$403)","v":""},null,0]
[null,null,null,null,{"$f":"IF($C$404=\"\",\"\",F404/$C$404)","v":""},null,{"$f":"IF($C$404=\"\",\"\",H404/$C$404)","v":""},null,{"$f":"IF($C$404=\"\",\"\",J404/$C$404)","v":""},null,{"$f":"IF($C$404=\"\",\"\",L404/$C$404)","v":""},null,{"$f":"IF($C$404=\"\",\"\",N404/$C$404)","v":""},null,{"$f":"IF($C$404=\"\",\"\",P404/$C$404)","v":""},null,{"$f":"IF($C$404=\"\",\"\",R404/$C$404)","v":""},null,{"$f":"IF($C$404=\"\",\"\",T404/$C$404)","v":""},null,{"$f":"IF($C$404=\"\",\"\",V404/$C$404)","v":""},null,{"$f":"IF($C$404=\"\",\"\",X404/$C$404)","v":""},null,{"$f":"IF($C$404=\"\",\"\",Z404/$C$404)","v":""},null,{"$f":"IF($C$404=\"\",\"\",AB404/$C$404)","v":""},null,{"$f":"IF($C$404=\"\",\"\",AD404/$C$404)","v":""},null,{"$f":"IF($C$404=\"\",\"\",AF404/$C$404)","v":""},null,{"$f":"IF($C$404=\"\",\"\",AH404/$C$404)","v":""},null,{"$f":"IF($C$404=\"\",\"\",AJ404/$C$404)","v":""},null,{"$f":"IF($C$404=\"\",\"\",AL404/$C$404)","v":""},null,{"$f":"IF($C$404=\"\",\"\",AN404/$C$404)","v":""},null,{"$f":"IF($C$404=\"\",\"\",AP404/$C$404)","v":""},null,{"$f":"IF($C$404=\"\",\"\",AR404/$C$404)","v":""},null,{"$f":"IF($C$404=\"\",\"\",AT404/$C$404)","v":""},null,{"$f":"IF($C$404=\"\",\"\",AV404/$C$404)","v":""},null,{"$f":"IF($C$404=\"\",\"\",AX404/$C$404)","v":""},null,{"$f":"IF($C$404=\"\",\"\",AZ404/$C$404)","v":""},null,{"$f":"IF($C$404=\"\",\"\",BB404/$C$404)","v":""},null,0]
[null,null,null,null,{"$f":"IF($C$405=\"\",\"\",F405/$C$405)","v":""},null,{"$f":"IF($C$405=\"\",\"\",H405/$C$405)","v":""},null,{"$f":"IF($C$405=\"\",\"\",J405/$C$405)","v":""},null,{"$f":"IF($C$405=\"\",\"\",L405/$C$405)","v":""},null,{"$f":"IF($C$405=\"\",\"\",N405/$C$405)","v":""},null,{"$f":"IF($C$405=\"\",\"\",P405/$C$405)","v":""},null,{"$f":"IF($C$405=\"\",\"\",R405/$C$405)","v":""},null,{"$f":"IF($C$405=\"\",\"\",T405/$C$405)","v":""},null,{"$f":"IF($C$405=\"\",\"\",V405/$C$405)","v":""},null,{"$f":"IF($C$405=\"\",\"\",X405/$C$405)","v":""},null,{"$f":"IF($C$405=\"\",\"\",Z405/$C$405)","v":""},null,{"$f":"IF($C$405=\"\",\"\",AB405/$C$405)","v":""},null,{"$f":"IF($C$405=\"\",\"\",AD405/$C$405)","v":""},null,{"$f":"IF($C$405=\"\",\"\",AF405/$C$405)","v":""},null,{"$f":"IF($C$405=\"\",\"\",AH405/$C$405)","v":""},null,{"$f":"IF($C$405=\"\",\"\",AJ405/$C$405)","v":""},null,{"$f":"IF($C$405=\"\",\"\",AL405/$C$405)","v":""},null,{"$f":"IF($C$405=\"\",\"\",AN405/$C$405)","v":""},null,{"$f":"IF($C$405=\"\",\"\",AP405/$C$405)","v":""},null,{"$f":"IF($C$405=\"\",\"\",AR405/$C$405)","v":""},null,{"$f":"IF($C$405=\"\",\"\",AT405/$C$405)","v":""},null,{"$f":"IF($C$405=\"\",\"\",AV405/$C$405)","v":""},null,{"$f":"IF($C$405=\"\",\"\",AX405/$C$405)","v":""},null,{"$f":"IF($C$405=\"\",\"\",AZ405/$C$405)","v":""},null,{"$f":"IF($C$405=\"\",\"\",BB405/$C$405)","v":""},null,{"$f":"SUM(BB405,AZ405,AX405,AV405,AT405,AR405,AP405,AN405,AL405,AJ405,AH405,AF405,AD405,AB405,Z405,X405,V405,T405,R405,P405,N405,L405,J405,H405,F405)","v":0}]
["TOTAL HOURS",null,null,null,null,{"$f":"SUM(F376:F405)","v":0},null,{"$f":"SUM(H376:H405)","v":0},null,{"$f":"SUM(J376:J405)","v":0},null,{"$f":"SUM(L376:L405)","v":0},null,{"$f":"SUM(N376:N405)","v":0},null,{"$f":"SUM(P376:P405)","v":0},null,{"$f":"SUM(R376:R405)","v":0},null,{"$f":"SUM(T376:T405)","v":0},null,{"$f":"SUM(V376:V405)","v":0},null,{"$f":"SUM(X376:X405)","v":0},null,{"$f":"SUM(Z376:Z405)","v":0},null,{"$f":"SUM(AB376:AB405)","v":0},null,{"$f":"SUM(AD376:AD405)","v":0},null,{"$f":"SUM(AF376:AF405)","v":0},null,{"$f":"SUM(AH376:AH405)","v":0},null,{"$f":"SUM(AJ376:AJ405)","v":0},null,{"$f":"SUM(AL376:AL405)","v":0},null,{"$f":"SUM(AN376:AN405)","v":0},null,{"$f":"SUM(AP376:AP405)","v":0},null,{"$f":"SUM(AR376:AR405)","v":0},null,{"$f":"SUM(AT376:AT405)","v":0},null,{"$f":"SUM(AV376:AV405)","v":0},null,{"$f":"SUM(AX376:AX405)","v":0},null,{"$f":"SUM(AZ376:AZ405)","v":0},null,{"$f":"SUM(BB376:BB405)","v":0},{"$f":"SUM(E406:BB406)","v":0}]
["TOTAL WORKDAYS",null,null,null,null,{"$f":"F406/8","v":0},null,{"$f":"H406/8","v":0},null,{"$f":"J406/8","v":0},null,{"$f":"L406/8","v":0},null,{"$f":"N406/8","v":0},null,{"$f":"P406/8","v":0},null,{"$f":"R406/8","v":0},null,{"$f":"T406/8","v":0},null,{"$f":"V406/8","v":0},null,{"$f":"X406/8","v":0},null,{"$f":"Z406/8","v":0},null,{"$f":"AB406/8","v":0},null,{"$f":"AD406/8","v":0},null,0,null,{"$f":"AH406/8","v":0},null,0,null,{"$f":"AL406/8","v":0},null,0,null,{"$f":"AP406/8","v":0},null,0,null,{"$f":"AT406/8","v":0},null,{"$f":"AV406/8","v":0},null,{"$f":"AX406/8","v":0},null,{"$f":"AZ406/8","v":0},null,{"$f":"BB406/8","v":0},{"$f":"SUM(E407:BB407)","v":0}]
["TOTAL RAW LABOR",null,null,null,null,{"$f":"$E$13*F406","v":0},null,{"$f":"$G$13*H406","v":0},null,{"$f":"$I$13*J406","v":0},null,{"$f":"$K$13*L406","v":0},null,{"$f":"$M$13*N406","v":0},null,{"$f":"$O$13*P406","v":0},null,{"$f":"$Q$13*R406","v":0},null,{"$f":"$S$13*T406","v":0},null,{"$f":"$U$13*V406","v":0},null,{"$f":"$W$13*X406","v":0},null,{"$f":"$Y$13*Z406","v":0},null,{"$f":"$AA$13*AB406","v":0},null,{"$f":"$AC$13*AD406","v":0},null,{"$f":"$AC$13*AF406","v":0},null,{"$f":"$AC$13*AH406","v":0},null,{"$f":"$AC$13*AJ406","v":0},null,{"$f":"$AC$13*AL406","v":0},null,{"$f":"$AC$13*AN406","v":0},null,{"$f":"$AC$13*AP406","v":0},null,{"$f":"$AC$13*AR406","v":0},null,{"$f":"$AC$13*AT406","v":0},null,{"$f":"$AC$13*AV406","v":0},null,{"$f":"$AC$13*AX406","v":0},null,{"$f":"$AC$13*AZ406","v":0},null,{"$f":"$AC$13*BB406","v":0},{"$f":"SUM(E408:BB408)","v":0}]
["Task 16.0     ","REPLACE FIELD WITH CATEGORY NAME OF YOUR CHOOSING HERE",null,null,null,null,null,null,null,null,null,null,null,null,null,null,null,null,null,null,null,null,null,null,null,null,null,null,null,null,null,null,null,null,null,null,null,null,null,null,null,null,null,null,null,null,null,null,null,null,null,null,null,null,{"$f":"IF(B409=\"REPLACE FIELD WITH CATEGORY NAME OF YOUR CHOOSING HERE\",0,\"\")","v":0}]
[null,null,null,null,{"$f":"IF($C$410=\"\",\"\",F410/$C$410)","v":""},null,{"$f":"IF($C$410=\"\",\"\",H410/$C$410)","v":""},null,{"$f":"IF($C$410=\"\",\"\",J410/$C$410)","v":""},null,{"$f":"IF($C$410=\"\",\"\",L410/$C$410)","v":""},null,{"$f":"IF($C$410=\"\",\"\",N410/$C$410)","v":""},null,{"$f":"IF($C$410=\"\",\"\",P410/$C$410)","v":""},null,{"$f":"IF($C$410=\"\",\"\",R410/$C$410)","v":""},null,{"$f":"IF($C$410=\"\",\"\",T410/$C$410)","v":""},null,{"$f":"IF($C$410=\"\",\"\",V410/$C$410)","v":""},null,{"$f":"IF($C$410=\"\",\"\",X410/$C$410)","v":""},null,{"$f":"IF($C$410=\"\",\"\",Z410/$C$410)","v":""},null,{"$f":"IF($C$410=\"\",\"\",AB410/$C$410)","v":""},null,{"$f":"IF($C$410=\"\",\"\",AD410/$C$410)","v":""},null,{"$f":"IF($C$410=\"\",\"\",AF410/$C$410)","v":""},null,{"$f":"IF($C$410=\"\",\"\",AH410/$C$410)","v":""},null,{"$f":"IF($C$410=\"\",\"\",AJ410/$C$410)","v":""},null,{"$f":"IF($C$410=\"\",\"\",AL410/$C$410)","v":""},null,{"$f":"IF($C$410=\"\",\"\",AN410/$C$410)","v":""},null,{"$f":"IF($C$410=\"\",\"\",AP410/$C$410)","v":""},null,{"$f":"IF($C$410=\"\",\"\",AR410/$C$410)","v":""},null,{"$f":"IF($C$410=\"\",\"\",AT410/$C$410)","v":""},null,{"$f":"IF($C$410=\"\",\"\",AV410/$C$410)","v":""},null,{"$f":"IF($C$410=\"\",\"\",AX410/$C$410)","v":""},null,{"$f":"IF($C$410=\"\",\"\",AZ410/$C$410)","v":""},null,{"$f":"IF($C$410=\"\",\"\",BB410/$C$410)","v":""},null,{"$f":"SUM(BB410,AZ410,AX410,AV410,AT410,AR410,AP410,AN410,AL410,AJ410,AH410,AF410,AD410,AB410,Z410,X410,V410,T410,R410,P410,N410,L410,J410,H410,F410)","v":0}]
[null,null,null,null,{"$f":"IF($C$411=\"\",\"\",F411/$C$411)","v":""},null,{"$f":"IF($C$411=\"\",\"\",H411/$C$411)","v":""},null,{"$f":"IF($C$411=\"\",\"\",J411/$C$411)","v":""},null,{"$f":"IF($C$411=\"\",\"\",L411/$C$411)","v":""},null,{"$f":"IF($C$411=\"\",\"\",N411/$C$411)","v":""},null,{"$f":"IF($C$411=\"\",\"\",P411/$C$411)","v":""},null,{"$f":"IF($C$411=\"\",\"\",R411/$C$411)","v":""},null,{"$f":"IF($C$411=\"\",\"\",T411/$C$411)","v":""},null,{"$f":"IF($C$411=\"\",\"\",V411/$C$411)","v":""},null,{"$f":"IF($C$411=\"\",\"\",X411/$C$411)","v":""},null,{"$f":"IF($C$411=\"\",\"\",Z411/$C$411)","v":""},null,{"$f":"IF($C$411=\"\",\"\",AB411/$C$411)","v":""},null,{"$f":"IF($C$411=\"\",\"\",AD411/$C$411)","v":""},null,{"$f":"IF($C$411=\"\",\"\",AF411/$C$411)","v":""},null,{"$f":"IF($C$411=\"\",\"\",AH411/$C$411)","v":""},null,{"$f":"IF($C$411=\"\",\"\",AJ411/$C$411)","v":""},null,{"$f":"IF($C$411=\"\",\"\",AL411/$C$411)","v":""},null,{"$f":"IF($C$411=\"\",\"\",AN411/$C$411)","v":""},null,{"$f":"IF($C$411=\"\",\"\",AP411/$C$411)","v":""},null,{"$f":"IF($C$411=\"\",\"\",AR411/$C$411)","v":""},null,{"$f":"IF($C$411=\"\",\"\",AT411/$C$411)","v":""},null,{"$f":"IF($C$411=\"\",\"\",AV411/$C$411)","v":""},null,{"$f":"IF($C$411=\"\",\"\",AX411/$C$411)","v":""},null,{"$f":"IF($C$411=\"\",\"\",AZ411/$C$411)","v":""},null,{"$f":"IF($C$411=\"\",\"\",BB411/$C$411)","v":""},null,0]
[null,null,null,null,{"$f":"IF($C$412=\"\",\"\",F412/$C$412)","v":""},null,{"$f":"IF($C$412=\"\",\"\",H412/$C$412)","v":""},null,{"$f":"IF($C$412=\"\",\"\",J412/$C$412)","v":""},null,{"$f":"IF($C$412=\"\",\"\",L412/$C$412)","v":""},null,{"$f":"IF($C$412=\"\",\"\",N412/$C$412)","v":""},null,{"$f":"IF($C$412=\"\",\"\",P412/$C$412)","v":""},null,{"$f":"IF($C$412=\"\",\"\",R412/$C$412)","v":""},null,{"$f":"IF($C$412=\"\",\"\",T412/$C$412)","v":""},null,{"$f":"IF($C$412=\"\",\"\",V412/$C$412)","v":""},null,{"$f":"IF($C$412=\"\",\"\",X412/$C$412)","v":""},null,{"$f":"IF($C$412=\"\",\"\",Z412/$C$412)","v":""},null,{"$f":"IF($C$412=\"\",\"\",AB412/$C$412)","v":""},null,{"$f":"IF($C$412=\"\",\"\",AD412/$C$412)","v":""},null,{"$f":"IF($C$412=\"\",\"\",AF412/$C$412)","v":""},null,{"$f":"IF($C$412=\"\",\"\",AH412/$C$412)","v":""},null,{"$f":"IF($C$412=\"\",\"\",AJ412/$C$412)","v":""},null,{"$f":"IF($C$412=\"\",\"\",AL412/$C$412)","v":""},null,{"$f":"IF($C$412=\"\",\"\",AN412/$C$412)","v":""},null,{"$f":"IF($C$412=\"\",\"\",AP412/$C$412)","v":""},null,{"$f":"IF($C$412=\"\",\"\",AR412/$C$412)","v":""},null,{"$f":"IF($C$412=\"\",\"\",AT412/$C$412)","v":""},null,{"$f":"IF($C$412=\"\",\"\",AV412/$C$412)","v":""},null,{"$f":"IF($C$412=\"\",\"\",AX412/$C$412)","v":""},null,{"$f":"IF($C$412=\"\",\"\",AZ412/$C$412)","v":""},null,{"$f":"IF($C$412=\"\",\"\",BB412/$C$412)","v":""},null,0]
[null,null,null,null,{"$f":"IF($C$413=\"\",\"\",F413/$C$413)","v":""},null,{"$f":"IF($C$413=\"\",\"\",H413/$C$413)","v":""},null,{"$f":"IF($C$413=\"\",\"\",J413/$C$413)","v":""},null,{"$f":"IF($C$413=\"\",\"\",L413/$C$413)","v":""},null,{"$f":"IF($C$413=\"\",\"\",N413/$C$413)","v":""},null,{"$f":"IF($C$413=\"\",\"\",P413/$C$413)","v":""},null,{"$f":"IF($C$413=\"\",\"\",R413/$C$413)","v":""},null,{"$f":"IF($C$413=\"\",\"\",T413/$C$413)","v":""},null,{"$f":"IF($C$413=\"\",\"\",V413/$C$413)","v":""},null,{"$f":"IF($C$413=\"\",\"\",X413/$C$413)","v":""},null,{"$f":"IF($C$413=\"\",\"\",Z413/$C$413)","v":""},null,{"$f":"IF($C$413=\"\",\"\",AB413/$C$413)","v":""},null,{"$f":"IF($C$413=\"\",\"\",AD413/$C$413)","v":""},null,{"$f":"IF($C$413=\"\",\"\",AF413/$C$413)","v":""},null,{"$f":"IF($C$413=\"\",\"\",AH413/$C$413)","v":""},null,{"$f":"IF($C$413=\"\",\"\",AJ413/$C$413)","v":""},null,{"$f":"IF($C$413=\"\",\"\",AL413/$C$413)","v":""},null,{"$f":"IF($C$413=\"\",\"\",AN413/$C$413)","v":""},null,{"$f":"IF($C$413=\"\",\"\",AP413/$C$413)","v":""},null,{"$f":"IF($C$413=\"\",\"\",AR413/$C$413)","v":""},null,{"$f":"IF($C$413=\"\",\"\",AT413/$C$413)","v":""},null,{"$f":"IF($C$413=\"\",\"\",AV413/$C$413)","v":""},null,{"$f":"IF($C$413=\"\",\"\",AX413/$C$413)","v":""},null,{"$f":"IF($C$413=\"\",\"\",AZ413/$C$413)","v":""},null,{"$f":"IF($C$413=\"\",\"\",BB413/$C$413)","v":""},null,0]
[null,null,null,null,{"$f":"IF($C$414=\"\",\"\",F414/$C$414)","v":""},null,{"$f":"IF($C$414=\"\",\"\",H414/$C$414)","v":""},null,{"$f":"IF($C$414=\"\",\"\",J414/$C$414)","v":""},null,{"$f":"IF($C$414=\"\",\"\",L414/$C$414)","v":""},null,{"$f":"IF($C$414=\"\",\"\",N414/$C$414)","v":""},null,{"$f":"IF($C$414=\"\",\"\",P414/$C$414)","v":""},null,{"$f":"IF($C$414=\"\",\"\",R414/$C$414)","v":""},null,{"$f":"IF($C$414=\"\",\"\",T414/$C$414)","v":""},null,{"$f":"IF($C$414=\"\",\"\",V414/$C$414)","v":""},null,{"$f":"IF($C$414=\"\",\"\",X414/$C$414)","v":""},null,{"$f":"IF($C$414=\"\",\"\",Z414/$C$414)","v":""},null,{"$f":"IF($C$414=\"\",\"\",AB414/$C$414)","v":""},null,{"$f":"IF($C$414=\"\",\"\",AD414/$C$414)","v":""},null,{"$f":"IF($C$414=\"\",\"\",AF414/$C$414)","v":""},null,{"$f":"IF($C$414=\"\",\"\",AH414/$C$414)","v":""},null,{"$f":"IF($C$414=\"\",\"\",AJ414/$C$414)","v":""},null,{"$f":"IF($C$414=\"\",\"\",AL414/$C$414)","v":""},null,{"$f":"IF($C$414=\"\",\"\",AN414/$C$414)","v":""},null,{"$f":"IF($C$414=\"\",\"\",AP414/$C$414)","v":""},null,{"$f":"IF($C$414=\"\",\"\",AR414/$C$414)","v":""},null,{"$f":"IF($C$414=\"\",\"\",AT414/$C$414)","v":""},null,{"$f":"IF($C$414=\"\",\"\",AV414/$C$414)","v":""},null,{"$f":"IF($C$414=\"\",\"\",AX414/$C$414)","v":""},null,{"$f":"IF($C$414=\"\",\"\",AZ414/$C$414)","v":""},null,{"$f":"IF($C$414=\"\",\"\",BB414/$C$414)","v":""},null,0]
[null,null,null,null,{"$f":"IF($C$415=\"\",\"\",F415/$C$415)","v":""},null,{"$f":"IF($C$415=\"\",\"\",H415/$C$415)","v":""},null,{"$f":"IF($C$415=\"\",\"\",J415/$C$415)","v":""},null,{"$f":"IF($C$415=\"\",\"\",L415/$C$415)","v":""},null,{"$f":"IF($C$415=\"\",\"\",N415/$C$415)","v":""},null,{"$f":"IF($C$415=\"\",\"\",P415/$C$415)","v":""},null,{"$f":"IF($C$415=\"\",\"\",R415/$C$415)","v":""},null,{"$f":"IF($C$415=\"\",\"\",T415/$C$415)","v":""},null,{"$f":"IF($C$415=\"\",\"\",V415/$C$415)","v":""},null,{"$f":"IF($C$415=\"\",\"\",X415/$C$415)","v":""},null,{"$f":"IF($C$415=\"\",\"\",Z415/$C$415)","v":""},null,{"$f":"IF($C$415=\"\",\"\",AB415/$C$415)","v":""},null,{"$f":"IF($C$415=\"\",\"\",AD415/$C$415)","v":""},null,{"$f":"IF($C$415=\"\",\"\",AF415/$C$415)","v":""},null,{"$f":"IF($C$415=\"\",\"\",AH415/$C$415)","v":""},null,{"$f":"IF($C$415=\"\",\"\",AJ415/$C$415)","v":""},null,{"$f":"IF($C$415=\"\",\"\",AL415/$C$415)","v":""},null,{"$f":"IF($C$415=\"\",\"\",AN415/$C$415)","v":""},null,{"$f":"IF($C$415=\"\",\"\",AP415/$C$415)","v":""},null,{"$f":"IF($C$415=\"\",\"\",AR415/$C$415)","v":""},null,{"$f":"IF($C$415=\"\",\"\",AT415/$C$415)","v":""},null,{"$f":"IF($C$415=\"\",\"\",AV415/$C$415)","v":""},null,{"$f":"IF($C$415=\"\",\"\",AX415/$C$415)","v":""},null,{"$f":"IF($C$415=\"\",\"\",AZ415/$C$415)","v":""},null,{"$f":"IF($C$415=\"\",\"\",BB415/$C$415)","v":""},null,0]
[null,null,null,null,{"$f":"IF($C$416=\"\",\"\",F416/$C$416)","v":""},null,{"$f":"IF($C$416=\"\",\"\",H416/$C$416)","v":""},null,{"$f":"IF($C$416=\"\",\"\",J416/$C$416)","v":""},null,{"$f":"IF($C$416=\"\",\"\",L416/$C$416)","v":""},null,{"$f":"IF($C$416=\"\",\"\",N416/$C$416)","v":""},null,{"$f":"IF($C$416=\"\",\"\",P416/$C$416)","v":""},null,{"$f":"IF($C$416=\"\",\"\",R416/$C$416)","v":""},null,{"$f":"IF($C$416=\"\",\"\",T416/$C$416)","v":""},null,{"$f":"IF($C$416=\"\",\"\",V416/$C$416)","v":""},null,{"$f":"IF($C$416=\"\",\"\",X416/$C$416)","v":""},null,{"$f":"IF($C$416=\"\",\"\",Z416/$C$416)","v":""},null,{"$f":"IF($C$416=\"\",\"\",AB416/$C$416)","v":""},null,{"$f":"IF($C$416=\"\",\"\",AD416/$C$416)","v":""},null,{"$f":"IF($C$416=\"\",\"\",AF416/$C$416)","v":""},null,{"$f":"IF($C$416=\"\",\"\",AH416/$C$416)","v":""},null,{"$f":"IF($C$416=\"\",\"\",AJ416/$C$416)","v":""},null,{"$f":"IF($C$416=\"\",\"\",AL416/$C$416)","v":""},null,{"$f":"IF($C$416=\"\",\"\",AN416/$C$416)","v":""},null,{"$f":"IF($C$416=\"\",\"\",AP416/$C$416)","v":""},null,{"$f":"IF($C$416=\"\",\"\",AR416/$C$416)","v":""},null,{"$f":"IF($C$416=\"\",\"\",AT416/$C$416)","v":""},null,{"$f":"IF($C$416=\"\",\"\",AV416/$C$416)","v":""},null,{"$f":"IF($C$416=\"\",\"\",AX416/$C$416)","v":""},null,{"$f":"IF($C$416=\"\",\"\",AZ416/$C$416)","v":""},null,{"$f":"IF($C$416=\"\",\"\",BB416/$C$416)","v":""},null,0]
[null,null,null,null,{"$f":"IF($C$417=\"\",\"\",F417/$C$417)","v":""},null,{"$f":"IF($C$417=\"\",\"\",H417/$C$417)","v":""},null,{"$f":"IF($C$417=\"\",\"\",J417/$C$417)","v":""},null,{"$f":"IF($C$417=\"\",\"\",L417/$C$417)","v":""},null,{"$f":"IF($C$417=\"\",\"\",N417/$C$417)","v":""},null,{"$f":"IF($C$417=\"\",\"\",P417/$C$417)","v":""},null,{"$f":"IF($C$417=\"\",\"\",R417/$C$417)","v":""},null,{"$f":"IF($C$417=\"\",\"\",T417/$C$417)","v":""},null,{"$f":"IF($C$417=\"\",\"\",V417/$C$417)","v":""},null,{"$f":"IF($C$417=\"\",\"\",X417/$C$417)","v":""},null,{"$f":"IF($C$417=\"\",\"\",Z417/$C$417)","v":""},null,{"$f":"IF($C$417=\"\",\"\",AB417/$C$417)","v":""},null,{"$f":"IF($C$417=\"\",\"\",AD417/$C$417)","v":""},null,{"$f":"IF($C$417=\"\",\"\",AF417/$C$417)","v":""},null,{"$f":"IF($C$417=\"\",\"\",AH417/$C$417)","v":""},null,{"$f":"IF($C$417=\"\",\"\",AJ417/$C$417)","v":""},null,{"$f":"IF($C$417=\"\",\"\",AL417/$C$417)","v":""},null,{"$f":"IF($C$417=\"\",\"\",AN417/$C$417)","v":""},null,{"$f":"IF($C$417=\"\",\"\",AP417/$C$417)","v":""},null,{"$f":"IF($C$417=\"\",\"\",AR417/$C$417)","v":""},null,{"$f":"IF($C$417=\"\",\"\",AT417/$C$417)","v":""},null,{"$f":"IF($C$417=\"\",\"\",AV417/$C$417)","v":""},null,{"$f":"IF($C$417=\"\",\"\",AX417/$C$417)","v":""},null,{"$f":"IF($C$417=\"\",\"\",AZ417/$C$417)","v":""},null,{"$f":"IF($C$417=\"\",\"\",BB417/$C$417)","v":""},null,0]
[null,null,null,null,{"$f":"IF($C$418=\"\",\"\",F418/$C$418)","v":""},null,{"$f":"IF($C$418=\"\",\"\",H418/$C$418)","v":""},null,{"$f":"IF($C$418=\"\",\"\",J418/$C$418)","v":""},null,{"$f":"IF($C$418=\"\",\"\",L418/$C$418)","v":""},null,{"$f":"IF($C$418=\"\",\"\",N418/$C$418)","v":""},null,{"$f":"IF($C$418=\"\",\"\",P418/$C$418)","v":""},null,{"$f":"IF($C$418=\"\",\"\",R418/$C$418)","v":""},null,{"$f":"IF($C$418=\"\",\"\",T418/$C$418)","v":""},null,{"$f":"IF($C$418=\"\",\"\",V418/$C$418)","v":""},null,{"$f":"IF($C$418=\"\",\"\",X418/$C$418)","v":""},null,{"$f":"IF($C$418=\"\",\"\",Z418/$C$418)","v":""},null,{"$f":"IF($C$418=\"\",\"\",AB418/$C$418)","v":""},null,{"$f":"IF($C$418=\"\",\"\",AD418/$C$418)","v":""},null,{"$f":"IF($C$418=\"\",\"\",AF418/$C$418)","v":""},null,{"$f":"IF($C$418=\"\",\"\",AH418/$C$418)","v":""},null,{"$f":"IF($C$418=\"\",\"\",AJ418/$C$418)","v":""},null,{"$f":"IF($C$418=\"\",\"\",AL418/$C$418)","v":""},null,{"$f":"IF($C$418=\"\",\"\",AN418/$C$418)","v":""},null,{"$f":"IF($C$418=\"\",\"\",AP418/$C$418)","v":""},null,{"$f":"IF($C$418=\"\",\"\",AR418/$C$418)","v":""},null,{"$f":"IF($C$418=\"\",\"\",AT418/$C$418)","v":""},null,{"$f":"IF($C$418=\"\",\"\",AV418/$C$418)","v":""},null,{"$f":"IF($C$418=\"\",\"\",AX418/$C$418)","v":""},null,{"$f":"IF($C$418=\"\",\"\",AZ418/$C$418)","v":""},null,{"$f":"IF($C$418=\"\",\"\",BB418/$C$418)","v":""},null,0]
[null,null,null,null,{"$f":"IF($C$419=\"\",\"\",F419/$C$419)","v":""},null,{"$f":"IF($C$419=\"\",\"\",H419/$C$419)","v":""},null,{"$f":"IF($C$419=\"\",\"\",J419/$C$419)","v":""},null,{"$f":"IF($C$419=\"\",\"\",L419/$C$419)","v":""},null,{"$f":"IF($C$419=\"\",\"\",N419/$C$419)","v":""},null,{"$f":"IF($C$419=\"\",\"\",P419/$C$419)","v":""},null,{"$f":"IF($C$419=\"\",\"\",R419/$C$419)","v":""},null,{"$f":"IF($C$419=\"\",\"\",T419/$C$419)","v":""},null,{"$f":"IF($C$419=\"\",\"\",V419/$C$419)","v":""},null,{"$f":"IF($C$419=\"\",\"\",X419/$C$419)","v":""},null,{"$f":"IF($C$419=\"\",\"\",Z419/$C$419)","v":""},null,{"$f":"IF($C$419=\"\",\"\",AB419/$C$419)","v":""},null,{"$f":"IF($C$419=\"\",\"\",AD419/$C$419)","v":""},null,{"$f":"IF($C$419=\"\",\"\",AF419/$C$419)","v":""},null,{"$f":"IF($C$419=\"\",\"\",AH419/$C$419)","v":""},null,{"$f":"IF($C$419=\"\",\"\",AJ419/$C$419)","v":""},null,{"$f":"IF($C$419=\"\",\"\",AL419/$C$419)","v":""},null,{"$f":"IF($C$419=\"\",\"\",AN419/$C$419)","v":""},null,{"$f":"IF($C$419=\"\",\"\",AP419/$C$419)","v":""},null,{"$f":"IF($C$419=\"\",\"\",AR419/$C$419)","v":""},null,{"$f":"IF($C$419=\"\",\"\",AT419/$C$419)","v":""},null,{"$f":"IF($C$419=\"\",\"\",AV419/$C$419)","v":""},null,{"$f":"IF($C$419=\"\",\"\",AX419/$C$419)","v":""},null,{"$f":"IF($C$419=\"\",\"\",AZ419/$C$419)","v":""},null,{"$f":"IF($C$419=\"\",\"\",BB419/$C$419)","v":""},null,0]
[null,null,null,null,{"$f":"IF($C$420=\"\",\"\",F420/$C$420)","v":""},null,{"$f":"IF($C$420=\"\",\"\",H420/$C$420)","v":""},null,{"$f":"IF($C$420=\"\",\"\",J420/$C$420)","v":""},null,{"$f":"IF($C$420=\"\",\"\",L420/$C$420)","v":""},null,{"$f":"IF($C$420=\"\",\"\",N420/$C$420)","v":""},null,{"$f":"IF($C$420=\"\",\"\",P420/$C$420)","v":""},null,{"$f":"IF($C$420=\"\",\"\",R420/$C$420)","v":""},null,{"$f":"IF($C$420=\"\",\"\",T420/$C$420)","v":""},null,{"$f":"IF($C$420=\"\",\"\",V420/$C$420)","v":""},null,{"$f":"IF($C$420=\"\",\"\",X420/$C$420)","v":""},null,{"$f":"IF($C$420=\"\",\"\",Z420/$C$420)","v":""},null,{"$f":"IF($C$420=\"\",\"\",AB420/$C$420)","v":""},null,{"$f":"IF($C$420=\"\",\"\",AD420/$C$420)","v":""},null,{"$f":"IF($C$420=\"\",\"\",AF420/$C$420)","v":""},null,{"$f":"IF($C$420=\"\",\"\",AH420/$C$420)","v":""},null,{"$f":"IF($C$420=\"\",\"\",AJ420/$C$420)","v":""},null,{"$f":"IF($C$420=\"\",\"\",AL420/$C$420)","v":""},null,{"$f":"IF($C$420=\"\",\"\",AN420/$C$420)","v":""},null,{"$f":"IF($C$420=\"\",\"\",AP420/$C$420)","v":""},null,{"$f":"IF($C$420=\"\",\"\",AR420/$C$420)","v":""},null,{"$f":"IF($C$420=\"\",\"\",AT420/$C$420)","v":""},null,{"$f":"IF($C$420=\"\",\"\",AV420/$C$420)","v":""},null,{"$f":"IF($C$420=\"\",\"\",AX420/$C$420)","v":""},null,{"$f":"IF($C$420=\"\",\"\",AZ420/$C$420)","v":""},null,{"$f":"IF($C$420=\"\",\"\",BB420/$C$420)","v":""},null,0]
[null,null,null,null,{"$f":"IF($C$421=\"\",\"\",F421/$C$421)","v":""},null,{"$f":"IF($C$421=\"\",\"\",H421/$C$421)","v":""},null,{"$f":"IF($C$421=\"\",\"\",J421/$C$421)","v":""},null,{"$f":"IF($C$421=\"\",\"\",L421/$C$421)","v":""},null,{"$f":"IF($C$421=\"\",\"\",N421/$C$421)","v":""},null,{"$f":"IF($C$421=\"\",\"\",P421/$C$421)","v":""},null,{"$f":"IF($C$421=\"\",\"\",R421/$C$421)","v":""},null,{"$f":"IF($C$421=\"\",\"\",T421/$C$421)","v":""},null,{"$f":"IF($C$421=\"\",\"\",V421/$C$421)","v":""},null,{"$f":"IF($C$421=\"\",\"\",X421/$C$421)","v":""},null,{"$f":"IF($C$421=\"\",\"\",Z421/$C$421)","v":""},null,{"$f":"IF($C$421=\"\",\"\",AB421/$C$421)","v":""},null,{"$f":"IF($C$421=\"\",\"\",AD421/$C$421)","v":""},null,{"$f":"IF($C$421=\"\",\"\",AF421/$C$421)","v":""},null,{"$f":"IF($C$421=\"\",\"\",AH421/$C$421)","v":""},null,{"$f":"IF($C$421=\"\",\"\",AJ421/$C$421)","v":""},null,{"$f":"IF($C$421=\"\",\"\",AL421/$C$421)","v":""},null,{"$f":"IF($C$421=\"\",\"\",AN421/$C$421)","v":""},null,{"$f":"IF($C$421=\"\",\"\",AP421/$C$421)","v":""},null,{"$f":"IF($C$421=\"\",\"\",AR421/$C$421)","v":""},null,{"$f":"IF($C$421=\"\",\"\",AT421/$C$421)","v":""},null,{"$f":"IF($C$421=\"\",\"\",AV421/$C$421)","v":""},null,{"$f":"IF($C$421=\"\",\"\",AX421/$C$421)","v":""},null,{"$f":"IF($C$421=\"\",\"\",AZ421/$C$421)","v":""},null,{"$f":"IF($C$421=\"\",\"\",BB421/$C$421)","v":""},null,0]
[null,null,null,null,{"$f":"IF($C$422=\"\",\"\",F422/$C$422)","v":""},null,{"$f":"IF($C$422=\"\",\"\",H422/$C$422)","v":""},null,{"$f":"IF($C$422=\"\",\"\",J422/$C$422)","v":""},null,{"$f":"IF($C$422=\"\",\"\",L422/$C$422)","v":""},null,{"$f":"IF($C$422=\"\",\"\",N422/$C$422)","v":""},null,{"$f":"IF($C$422=\"\",\"\",P422/$C$422)","v":""},null,{"$f":"IF($C$422=\"\",\"\",R422/$C$422)","v":""},null,{"$f":"IF($C$422=\"\",\"\",T422/$C$422)","v":""},null,{"$f":"IF($C$422=\"\",\"\",V422/$C$422)","v":""},null,{"$f":"IF($C$422=\"\",\"\",X422/$C$422)","v":""},null,{"$f":"IF($C$422=\"\",\"\",Z422/$C$422)","v":""},null,{"$f":"IF($C$422=\"\",\"\",AB422/$C$422)","v":""},null,{"$f":"IF($C$422=\"\",\"\",AD422/$C$422)","v":""},null,{"$f":"IF($C$422=\"\",\"\",AF422/$C$422)","v":""},null,{"$f":"IF($C$422=\"\",\"\",AH422/$C$422)","v":""},null,{"$f":"IF($C$422=\"\",\"\",AJ422/$C$422)","v":""},null,{"$f":"IF($C$422=\"\",\"\",AL422/$C$422)","v":""},null,{"$f":"IF($C$422=\"\",\"\",AN422/$C$422)","v":""},null,{"$f":"IF($C$422=\"\",\"\",AP422/$C$422)","v":""},null,{"$f":"IF($C$422=\"\",\"\",AR422/$C$422)","v":""},null,{"$f":"IF($C$422=\"\",\"\",AT422/$C$422)","v":""},null,{"$f":"IF($C$422=\"\",\"\",AV422/$C$422)","v":""},null,{"$f":"IF($C$422=\"\",\"\",AX422/$C$422)","v":""},null,{"$f":"IF($C$422=\"\",\"\",AZ422/$C$422)","v":""},null,{"$f":"IF($C$422=\"\",\"\",BB422/$C$422)","v":""},null,0]
[null,null,null,null,{"$f":"IF($C$423=\"\",\"\",F423/$C$423)","v":""},null,{"$f":"IF($C$423=\"\",\"\",H423/$C$423)","v":""},null,{"$f":"IF($C$423=\"\",\"\",J423/$C$423)","v":""},null,{"$f":"IF($C$423=\"\",\"\",L423/$C$423)","v":""},null,{"$f":"IF($C$423=\"\",\"\",N423/$C$423)","v":""},null,{"$f":"IF($C$423=\"\",\"\",P423/$C$423)","v":""},null,{"$f":"IF($C$423=\"\",\"\",R423/$C$423)","v":""},null,{"$f":"IF($C$423=\"\",\"\",T423/$C$423)","v":""},null,{"$f":"IF($C$423=\"\",\"\",V423/$C$423)","v":""},null,{"$f":"IF($C$423=\"\",\"\",X423/$C$423)","v":""},null,{"$f":"IF($C$423=\"\",\"\",Z423/$C$423)","v":""},null,{"$f":"IF($C$423=\"\",\"\",AB423/$C$423)","v":""},null,{"$f":"IF($C$423=\"\",\"\",AD423/$C$423)","v":""},null,{"$f":"IF($C$423=\"\",\"\",AF423/$C$423)","v":""},null,{"$f":"IF($C$423=\"\",\"\",AH423/$C$423)","v":""},null,{"$f":"IF($C$423=\"\",\"\",AJ423/$C$423)","v":""},null,{"$f":"IF($C$423=\"\",\"\",AL423/$C$423)","v":""},null,{"$f":"IF($C$423=\"\",\"\",AN423/$C$423)","v":""},null,{"$f":"IF($C$423=\"\",\"\",AP423/$C$423)","v":""},null,{"$f":"IF($C$423=\"\",\"\",AR423/$C$423)","v":""},null,{"$f":"IF($C$423=\"\",\"\",AT423/$C$423)","v":""},null,{"$f":"IF($C$423=\"\",\"\",AV423/$C$423)","v":""},null,{"$f":"IF($C$423=\"\",\"\",AX423/$C$423)","v":""},null,{"$f":"IF($C$423=\"\",\"\",AZ423/$C$423)","v":""},null,{"$f":"IF($C$423=\"\",\"\",BB423/$C$423)","v":""},null,0]
[null,null,null,null,{"$f":"IF($C$424=\"\",\"\",F424/$C$424)","v":""},null,{"$f":"IF($C$424=\"\",\"\",H424/$C$424)","v":""},null,{"$f":"IF($C$424=\"\",\"\",J424/$C$424)","v":""},null,{"$f":"IF($C$424=\"\",\"\",L424/$C$424)","v":""},null,{"$f":"IF($C$424=\"\",\"\",N424/$C$424)","v":""},null,{"$f":"IF($C$424=\"\",\"\",P424/$C$424)","v":""},null,{"$f":"IF($C$424=\"\",\"\",R424/$C$424)","v":""},null,{"$f":"IF($C$424=\"\",\"\",T424/$C$424)","v":""},null,{"$f":"IF($C$424=\"\",\"\",V424/$C$424)","v":""},null,{"$f":"IF($C$424=\"\",\"\",X424/$C$424)","v":""},null,{"$f":"IF($C$424=\"\",\"\",Z424/$C$424)","v":""},null,{"$f":"IF($C$424=\"\",\"\",AB424/$C$424)","v":""},null,{"$f":"IF($C$424=\"\",\"\",AD424/$C$424)","v":""},null,{"$f":"IF($C$424=\"\",\"\",AF424/$C$424)","v":""},null,{"$f":"IF($C$424=\"\",\"\",AH424/$C$424)","v":""},null,{"$f":"IF($C$424=\"\",\"\",AJ424/$C$424)","v":""},null,{"$f":"IF($C$424=\"\",\"\",AL424/$C$424)","v":""},null,{"$f":"IF($C$424=\"\",\"\",AN424/$C$424)","v":""},null,{"$f":"IF($C$424=\"\",\"\",AP424/$C$424)","v":""},null,{"$f":"IF($C$424=\"\",\"\",AR424/$C$424)","v":""},null,{"$f":"IF($C$424=\"\",\"\",AT424/$C$424)","v":""},null,{"$f":"IF($C$424=\"\",\"\",AV424/$C$424)","v":""},null,{"$f":"IF($C$424=\"\",\"\",AX424/$C$424)","v":""},null,{"$f":"IF($C$424=\"\",\"\",AZ424/$C$424)","v":""},null,{"$f":"IF($C$424=\"\",\"\",BB424/$C$424)","v":""},null,0]
[null,null,null,null,{"$f":"IF($C$425=\"\",\"\",F425/$C$425)","v":""},null,{"$f":"IF($C$425=\"\",\"\",H425/$C$425)","v":""},null,{"$f":"IF($C$425=\"\",\"\",J425/$C$425)","v":""},null,{"$f":"IF($C$425=\"\",\"\",L425/$C$425)","v":""},null,{"$f":"IF($C$425=\"\",\"\",N425/$C$425)","v":""},null,{"$f":"IF($C$425=\"\",\"\",P425/$C$425)","v":""},null,{"$f":"IF($C$425=\"\",\"\",R425/$C$425)","v":""},null,{"$f":"IF($C$425=\"\",\"\",T425/$C$425)","v":""},null,{"$f":"IF($C$425=\"\",\"\",V425/$C$425)","v":""},null,{"$f":"IF($C$425=\"\",\"\",X425/$C$425)","v":""},null,{"$f":"IF($C$425=\"\",\"\",Z425/$C$425)","v":""},null,{"$f":"IF($C$425=\"\",\"\",AB425/$C$425)","v":""},null,{"$f":"IF($C$425=\"\",\"\",AD425/$C$425)","v":""},null,{"$f":"IF($C$425=\"\",\"\",AF425/$C$425)","v":""},null,{"$f":"IF($C$425=\"\",\"\",AH425/$C$425)","v":""},null,{"$f":"IF($C$425=\"\",\"\",AJ425/$C$425)","v":""},null,{"$f":"IF($C$425=\"\",\"\",AL425/$C$425)","v":""},null,{"$f":"IF($C$425=\"\",\"\",AN425/$C$425)","v":""},null,{"$f":"IF($C$425=\"\",\"\",AP425/$C$425)","v":""},null,{"$f":"IF($C$425=\"\",\"\",AR425/$C$425)","v":""},null,{"$f":"IF($C$425=\"\",\"\",AT425/$C$425)","v":""},null,{"$f":"IF($C$425=\"\",\"\",AV425/$C$425)","v":""},null,{"$f":"IF($C$425=\"\",\"\",AX425/$C$425)","v":""},null,{"$f":"IF($C$425=\"\",\"\",AZ425/$C$425)","v":""},null,{"$f":"IF($C$425=\"\",\"\",BB425/$C$425)","v":""},null,0]
[null,null,null,null,{"$f":"IF($C$426=\"\",\"\",F426/$C$426)","v":""},null,{"$f":"IF($C$426=\"\",\"\",H426/$C$426)","v":""},null,{"$f":"IF($C$426=\"\",\"\",J426/$C$426)","v":""},null,{"$f":"IF($C$426=\"\",\"\",L426/$C$426)","v":""},null,{"$f":"IF($C$426=\"\",\"\",N426/$C$426)","v":""},null,{"$f":"IF($C$426=\"\",\"\",P426/$C$426)","v":""},null,{"$f":"IF($C$426=\"\",\"\",R426/$C$426)","v":""},null,{"$f":"IF($C$426=\"\",\"\",T426/$C$426)","v":""},null,{"$f":"IF($C$426=\"\",\"\",V426/$C$426)","v":""},null,{"$f":"IF($C$426=\"\",\"\",X426/$C$426)","v":""},null,{"$f":"IF($C$426=\"\",\"\",Z426/$C$426)","v":""},null,{"$f":"IF($C$426=\"\",\"\",AB426/$C$426)","v":""},null,{"$f":"IF($C$426=\"\",\"\",AD426/$C$426)","v":""},null,{"$f":"IF($C$426=\"\",\"\",AF426/$C$426)","v":""},null,{"$f":"IF($C$426=\"\",\"\",AH426/$C$426)","v":""},null,{"$f":"IF($C$426=\"\",\"\",AJ426/$C$426)","v":""},null,{"$f":"IF($C$426=\"\",\"\",AL426/$C$426)","v":""},null,{"$f":"IF($C$426=\"\",\"\",AN426/$C$426)","v":""},null,{"$f":"IF($C$426=\"\",\"\",AP426/$C$426)","v":""},null,{"$f":"IF($C$426=\"\",\"\",AR426/$C$426)","v":""},null,{"$f":"IF($C$426=\"\",\"\",AT426/$C$426)","v":""},null,{"$f":"IF($C$426=\"\",\"\",AV426/$C$426)","v":""},null,{"$f":"IF($C$426=\"\",\"\",AX426/$C$426)","v":""},null,{"$f":"IF($C$426=\"\",\"\",AZ426/$C$426)","v":""},null,{"$f":"IF($C$426=\"\",\"\",BB426/$C$426)","v":""},null,0]
[null,null,null,null,{"$f":"IF($C$427=\"\",\"\",F427/$C$427)","v":""},null,{"$f":"IF($C$427=\"\",\"\",H427/$C$427)","v":""},null,{"$f":"IF($C$427=\"\",\"\",J427/$C$427)","v":""},null,{"$f":"IF($C$427=\"\",\"\",L427/$C$427)","v":""},null,{"$f":"IF($C$427=\"\",\"\",N427/$C$427)","v":""},null,{"$f":"IF($C$427=\"\",\"\",P427/$C$427)","v":""},null,{"$f":"IF($C$427=\"\",\"\",R427/$C$427)","v":""},null,{"$f":"IF($C$427=\"\",\"\",T427/$C$427)","v":""},null,{"$f":"IF($C$427=\"\",\"\",V427/$C$427)","v":""},null,{"$f":"IF($C$427=\"\",\"\",X427/$C$427)","v":""},null,{"$f":"IF($C$427=\"\",\"\",Z427/$C$427)","v":""},null,{"$f":"IF($C$427=\"\",\"\",AB427/$C$427)","v":""},null,{"$f":"IF($C$427=\"\",\"\",AD427/$C$427)","v":""},null,{"$f":"IF($C$427=\"\",\"\",AF427/$C$427)","v":""},null,{"$f":"IF($C$427=\"\",\"\",AH427/$C$427)","v":""},null,{"$f":"IF($C$427=\"\",\"\",AJ427/$C$427)","v":""},null,{"$f":"IF($C$427=\"\",\"\",AL427/$C$427)","v":""},null,{"$f":"IF($C$427=\"\",\"\",AN427/$C$427)","v":""},null,{"$f":"IF($C$427=\"\",\"\",AP427/$C$427)","v":""},null,{"$f":"IF($C$427=\"\",\"\",AR427/$C$427)","v":""},null,{"$f":"IF($C$427=\"\",\"\",AT427/$C$427)","v":""},null,{"$f":"IF($C$427=\"\",\"\",AV427/$C$427)","v":""},null,{"$f":"IF($C$427=\"\",\"\",AX427/$C$427)","v":""},null,{"$f":"IF($C$427=\"\",\"\",AZ427/$C$427)","v":""},null,{"$f":"IF($C$427=\"\",\"\",BB427/$C$427)","v":""},null,0]
[null,null,null,null,{"$f":"IF($C$428=\"\",\"\",F428/$C$428)","v":""},null,{"$f":"IF($C$428=\"\",\"\",H428/$C$428)","v":""},null,{"$f":"IF($C$428=\"\",\"\",J428/$C$428)","v":""},null,{"$f":"IF($C$428=\"\",\"\",L428/$C$428)","v":""},null,{"$f":"IF($C$428=\"\",\"\",N428/$C$428)","v":""},null,{"$f":"IF($C$428=\"\",\"\",P428/$C$428)","v":""},null,{"$f":"IF($C$428=\"\",\"\",R428/$C$428)","v":""},null,{"$f":"IF($C$428=\"\",\"\",T428/$C$428)","v":""},null,{"$f":"IF($C$428=\"\",\"\",V428/$C$428)","v":""},null,{"$f":"IF($C$428=\"\",\"\",X428/$C$428)","v":""},null,{"$f":"IF($C$428=\"\",\"\",Z428/$C$428)","v":""},null,{"$f":"IF($C$428=\"\",\"\",AB428/$C$428)","v":""},null,{"$f":"IF($C$428=\"\",\"\",AD428/$C$428)","v":""},null,{"$f":"IF($C$428=\"\",\"\",AF428/$C$428)","v":""},null,{"$f":"IF($C$428=\"\",\"\",AH428/$C$428)","v":""},null,{"$f":"IF($C$428=\"\",\"\",AJ428/$C$428)","v":""},null,{"$f":"IF($C$428=\"\",\"\",AL428/$C$428)","v":""},null,{"$f":"IF($C$428=\"\",\"\",AN428/$C$428)","v":""},null,{"$f":"IF($C$428=\"\",\"\",AP428/$C$428)","v":""},null,{"$f":"IF($C$428=\"\",\"\",AR428/$C$428)","v":""},null,{"$f":"IF($C$428=\"\",\"\",AT428/$C$428)","v":""},null,{"$f":"IF($C$428=\"\",\"\",AV428/$C$428)","v":""},null,{"$f":"IF($C$428=\"\",\"\",AX428/$C$428)","v":""},null,{"$f":"IF($C$428=\"\",\"\",AZ428/$C$428)","v":""},null,{"$f":"IF($C$428=\"\",\"\",BB428/$C$428)","v":""},null,0]
[null,null,null,null,{"$f":"IF($C$429=\"\",\"\",F429/$C$429)","v":""},null,{"$f":"IF($C$429=\"\",\"\",H429/$C$429)","v":""},null,{"$f":"IF($C$429=\"\",\"\",J429/$C$429)","v":""},null,{"$f":"IF($C$429=\"\",\"\",L429/$C$429)","v":""},null,{"$f":"IF($C$429=\"\",\"\",N429/$C$429)","v":""},null,{"$f":"IF($C$429=\"\",\"\",P429/$C$429)","v":""},null,{"$f":"IF($C$429=\"\",\"\",R429/$C$429)","v":""},null,{"$f":"IF($C$429=\"\",\"\",T429/$C$429)","v":""},null,{"$f":"IF($C$429=\"\",\"\",V429/$C$429)","v":""},null,{"$f":"IF($C$429=\"\",\"\",X429/$C$429)","v":""},null,{"$f":"IF($C$429=\"\",\"\",Z429/$C$429)","v":""},null,{"$f":"IF($C$429=\"\",\"\",AB429/$C$429)","v":""},null,{"$f":"IF($C$429=\"\",\"\",AD429/$C$429)","v":""},null,{"$f":"IF($C$429=\"\",\"\",AF429/$C$429)","v":""},null,{"$f":"IF($C$429=\"\",\"\",AH429/$C$429)","v":""},null,{"$f":"IF($C$429=\"\",\"\",AJ429/$C$429)","v":""},null,{"$f":"IF($C$429=\"\",\"\",AL429/$C$429)","v":""},null,{"$f":"IF($C$429=\"\",\"\",AN429/$C$429)","v":""},null,{"$f":"IF($C$429=\"\",\"\",AP429/$C$429)","v":""},null,{"$f":"IF($C$429=\"\",\"\",AR429/$C$429)","v":""},null,{"$f":"IF($C$429=\"\",\"\",AT429/$C$429)","v":""},null,{"$f":"IF($C$429=\"\",\"\",AV429/$C$429)","v":""},null,{"$f":"IF($C$429=\"\",\"\",AX429/$C$429)","v":""},null,{"$f":"IF($C$429=\"\",\"\",AZ429/$C$429)","v":""},null,{"$f":"IF($C$429=\"\",\"\",BB429/$C$429)","v":""},null,0]
[null,null,null,null,{"$f":"IF($C$430=\"\",\"\",F430/$C$430)","v":""},null,{"$f":"IF($C$430=\"\",\"\",H430/$C$430)","v":""},null,{"$f":"IF($C$430=\"\",\"\",J430/$C$430)","v":""},null,{"$f":"IF($C$430=\"\",\"\",L430/$C$430)","v":""},null,{"$f":"IF($C$430=\"\",\"\",N430/$C$430)","v":""},null,{"$f":"IF($C$430=\"\",\"\",P430/$C$430)","v":""},null,{"$f":"IF($C$430=\"\",\"\",R430/$C$430)","v":""},null,{"$f":"IF($C$430=\"\",\"\",T430/$C$430)","v":""},null,{"$f":"IF($C$430=\"\",\"\",V430/$C$430)","v":""},null,{"$f":"IF($C$430=\"\",\"\",X430/$C$430)","v":""},null,{"$f":"IF($C$430=\"\",\"\",Z430/$C$430)","v":""},null,{"$f":"IF($C$430=\"\",\"\",AB430/$C$430)","v":""},null,{"$f":"IF($C$430=\"\",\"\",AD430/$C$430)","v":""},null,{"$f":"IF($C$430=\"\",\"\",AF430/$C$430)","v":""},null,{"$f":"IF($C$430=\"\",\"\",AH430/$C$430)","v":""},null,{"$f":"IF($C$430=\"\",\"\",AJ430/$C$430)","v":""},null,{"$f":"IF($C$430=\"\",\"\",AL430/$C$430)","v":""},null,{"$f":"IF($C$430=\"\",\"\",AN430/$C$430)","v":""},null,{"$f":"IF($C$430=\"\",\"\",AP430/$C$430)","v":""},null,{"$f":"IF($C$430=\"\",\"\",AR430/$C$430)","v":""},null,{"$f":"IF($C$430=\"\",\"\",AT430/$C$430)","v":""},null,{"$f":"IF($C$430=\"\",\"\",AV430/$C$430)","v":""},null,{"$f":"IF($C$430=\"\",\"\",AX430/$C$430)","v":""},null,{"$f":"IF($C$430=\"\",\"\",AZ430/$C$430)","v":""},null,{"$f":"IF($C$430=\"\",\"\",BB430/$C$430)","v":""},null,0]
[null,null,null,null,{"$f":"IF($C$431=\"\",\"\",F431/$C$431)","v":""},null,{"$f":"IF($C$431=\"\",\"\",H431/$C$431)","v":""},null,{"$f":"IF($C$431=\"\",\"\",J431/$C$431)","v":""},null,{"$f":"IF($C$431=\"\",\"\",L431/$C$431)","v":""},null,{"$f":"IF($C$431=\"\",\"\",N431/$C$431)","v":""},null,{"$f":"IF($C$431=\"\",\"\",P431/$C$431)","v":""},null,{"$f":"IF($C$431=\"\",\"\",R431/$C$431)","v":""},null,{"$f":"IF($C$431=\"\",\"\",T431/$C$431)","v":""},null,{"$f":"IF($C$431=\"\",\"\",V431/$C$431)","v":""},null,{"$f":"IF($C$431=\"\",\"\",X431/$C$431)","v":""},null,{"$f":"IF($C$431=\"\",\"\",Z431/$C$431)","v":""},null,{"$f":"IF($C$431=\"\",\"\",AB431/$C$431)","v":""},null,{"$f":"IF($C$431=\"\",\"\",AD431/$C$431)","v":""},null,{"$f":"IF($C$431=\"\",\"\",AF431/$C$431)","v":""},null,{"$f":"IF($C$431=\"\",\"\",AH431/$C$431)","v":""},null,{"$f":"IF($C$431=\"\",\"\",AJ431/$C$431)","v":""},null,{"$f":"IF($C$431=\"\",\"\",AL431/$C$431)","v":""},null,{"$f":"IF($C$431=\"\",\"\",AN431/$C$431)","v":""},null,{"$f":"IF($C$431=\"\",\"\",AP431/$C$431)","v":""},null,{"$f":"IF($C$431=\"\",\"\",AR431/$C$431)","v":""},null,{"$f":"IF($C$431=\"\",\"\",AT431/$C$431)","v":""},null,{"$f":"IF($C$431=\"\",\"\",AV431/$C$431)","v":""},null,{"$f":"IF($C$431=\"\",\"\",AX431/$C$431)","v":""},null,{"$f":"IF($C$431=\"\",\"\",AZ431/$C$431)","v":""},null,{"$f":"IF($C$431=\"\",\"\",BB431/$C$431)","v":""},null,0]
[null,null,null,null,{"$f":"IF($C$432=\"\",\"\",F432/$C$432)","v":""},null,{"$f":"IF($C$432=\"\",\"\",H432/$C$432)","v":""},null,{"$f":"IF($C$432=\"\",\"\",J432/$C$432)","v":""},null,{"$f":"IF($C$432=\"\",\"\",L432/$C$432)","v":""},null,{"$f":"IF($C$432=\"\",\"\",N432/$C$432)","v":""},null,{"$f":"IF($C$432=\"\",\"\",P432/$C$432)","v":""},null,{"$f":"IF($C$432=\"\",\"\",R432/$C$432)","v":""},null,{"$f":"IF($C$432=\"\",\"\",T432/$C$432)","v":""},null,{"$f":"IF($C$432=\"\",\"\",V432/$C$432)","v":""},null,{"$f":"IF($C$432=\"\",\"\",X432/$C$432)","v":""},null,{"$f":"IF($C$432=\"\",\"\",Z432/$C$432)","v":""},null,{"$f":"IF($C$432=\"\",\"\",AB432/$C$432)","v":""},null,{"$f":"IF($C$432=\"\",\"\",AD432/$C$432)","v":""},null,{"$f":"IF($C$432=\"\",\"\",AF432/$C$432)","v":""},null,{"$f":"IF($C$432=\"\",\"\",AH432/$C$432)","v":""},null,{"$f":"IF($C$432=\"\",\"\",AJ432/$C$432)","v":""},null,{"$f":"IF($C$432=\"\",\"\",AL432/$C$432)","v":""},null,{"$f":"IF($C$432=\"\",\"\",AN432/$C$432)","v":""},null,{"$f":"IF($C$432=\"\",\"\",AP432/$C$432)","v":""},null,{"$f":"IF($C$432=\"\",\"\",AR432/$C$432)","v":""},null,{"$f":"IF($C$432=\"\",\"\",AT432/$C$432)","v":""},null,{"$f":"IF($C$432=\"\",\"\",AV432/$C$432)","v":""},null,{"$f":"IF($C$432=\"\",\"\",AX432/$C$432)","v":""},null,{"$f":"IF($C$432=\"\",\"\",AZ432/$C$432)","v":""},null,{"$f":"IF($C$432=\"\",\"\",BB432/$C$432)","v":""},null,0]
[null,null,null,null,{"$f":"IF($C$433=\"\",\"\",F433/$C$433)","v":""},null,{"$f":"IF($C$433=\"\",\"\",H433/$C$433)","v":""},null,{"$f":"IF($C$433=\"\",\"\",J433/$C$433)","v":""},null,{"$f":"IF($C$433=\"\",\"\",L433/$C$433)","v":""},null,{"$f":"IF($C$433=\"\",\"\",N433/$C$433)","v":""},null,{"$f":"IF($C$433=\"\",\"\",P433/$C$433)","v":""},null,{"$f":"IF($C$433=\"\",\"\",R433/$C$433)","v":""},null,{"$f":"IF($C$433=\"\",\"\",T433/$C$433)","v":""},null,{"$f":"IF($C$433=\"\",\"\",V433/$C$433)","v":""},null,{"$f":"IF($C$433=\"\",\"\",X433/$C$433)","v":""},null,{"$f":"IF($C$433=\"\",\"\",Z433/$C$433)","v":""},null,{"$f":"IF($C$433=\"\",\"\",AB433/$C$433)","v":""},null,{"$f":"IF($C$433=\"\",\"\",AD433/$C$433)","v":""},null,{"$f":"IF($C$433=\"\",\"\",AF433/$C$433)","v":""},null,{"$f":"IF($C$433=\"\",\"\",AH433/$C$433)","v":""},null,{"$f":"IF($C$433=\"\",\"\",AJ433/$C$433)","v":""},null,{"$f":"IF($C$433=\"\",\"\",AL433/$C$433)","v":""},null,{"$f":"IF($C$433=\"\",\"\",AN433/$C$433)","v":""},null,{"$f":"IF($C$433=\"\",\"\",AP433/$C$433)","v":""},null,{"$f":"IF($C$433=\"\",\"\",AR433/$C$433)","v":""},null,{"$f":"IF($C$433=\"\",\"\",AT433/$C$433)","v":""},null,{"$f":"IF($C$433=\"\",\"\",AV433/$C$433)","v":""},null,{"$f":"IF($C$433=\"\",\"\",AX433/$C$433)","v":""},null,{"$f":"IF($C$433=\"\",\"\",AZ433/$C$433)","v":""},null,{"$f":"IF($C$433=\"\",\"\",BB433/$C$433)","v":""},null,0]
[null,null,null,null,{"$f":"IF($C$434=\"\",\"\",F434/$C$434)","v":""},null,{"$f":"IF($C$434=\"\",\"\",H434/$C$434)","v":""},null,{"$f":"IF($C$434=\"\",\"\",J434/$C$434)","v":""},null,{"$f":"IF($C$434=\"\",\"\",L434/$C$434)","v":""},null,{"$f":"IF($C$434=\"\",\"\",N434/$C$434)","v":""},null,{"$f":"IF($C$434=\"\",\"\",P434/$C$434)","v":""},null,{"$f":"IF($C$434=\"\",\"\",R434/$C$434)","v":""},null,{"$f":"IF($C$434=\"\",\"\",T434/$C$434)","v":""},null,{"$f":"IF($C$434=\"\",\"\",V434/$C$434)","v":""},null,{"$f":"IF($C$434=\"\",\"\",X434/$C$434)","v":""},null,{"$f":"IF($C$434=\"\",\"\",Z434/$C$434)","v":""},null,{"$f":"IF($C$434=\"\",\"\",AB434/$C$434)","v":""},null,{"$f":"IF($C$434=\"\",\"\",AD434/$C$434)","v":""},null,{"$f":"IF($C$434=\"\",\"\",AF434/$C$434)","v":""},null,{"$f":"IF($C$434=\"\",\"\",AH434/$C$434)","v":""},null,{"$f":"IF($C$434=\"\",\"\",AJ434/$C$434)","v":""},null,{"$f":"IF($C$434=\"\",\"\",AL434/$C$434)","v":""},null,{"$f":"IF($C$434=\"\",\"\",AN434/$C$434)","v":""},null,{"$f":"IF($C$434=\"\",\"\",AP434/$C$434)","v":""},null,{"$f":"IF($C$434=\"\",\"\",AR434/$C$434)","v":""},null,{"$f":"IF($C$434=\"\",\"\",AT434/$C$434)","v":""},null,{"$f":"IF($C$434=\"\",\"\",AV434/$C$434)","v":""},null,{"$f":"IF($C$434=\"\",\"\",AX434/$C$434)","v":""},null,{"$f":"IF($C$434=\"\",\"\",AZ434/$C$434)","v":""},null,{"$f":"IF($C$434=\"\",\"\",BB434/$C$434)","v":""},null,0]
[null,null,null,null,{"$f":"IF($C$435=\"\",\"\",F435/$C$435)","v":""},null,{"$f":"IF($C$435=\"\",\"\",H435/$C$435)","v":""},null,{"$f":"IF($C$435=\"\",\"\",J435/$C$435)","v":""},null,{"$f":"IF($C$435=\"\",\"\",L435/$C$435)","v":""},null,{"$f":"IF($C$435=\"\",\"\",N435/$C$435)","v":""},null,{"$f":"IF($C$435=\"\",\"\",P435/$C$435)","v":""},null,{"$f":"IF($C$435=\"\",\"\",R435/$C$435)","v":""},null,{"$f":"IF($C$435=\"\",\"\",T435/$C$435)","v":""},null,{"$f":"IF($C$435=\"\",\"\",V435/$C$435)","v":""},null,{"$f":"IF($C$435=\"\",\"\",X435/$C$435)","v":""},null,{"$f":"IF($C$435=\"\",\"\",Z435/$C$435)","v":""},null,{"$f":"IF($C$435=\"\",\"\",AB435/$C$435)","v":""},null,{"$f":"IF($C$435=\"\",\"\",AD435/$C$435)","v":""},null,{"$f":"IF($C$435=\"\",\"\",AF435/$C$435)","v":""},null,{"$f":"IF($C$435=\"\",\"\",AH435/$C$435)","v":""},null,{"$f":"IF($C$435=\"\",\"\",AJ435/$C$435)","v":""},null,{"$f":"IF($C$435=\"\",\"\",AL435/$C$435)","v":""},null,{"$f":"IF($C$435=\"\",\"\",AN435/$C$435)","v":""},null,{"$f":"IF($C$435=\"\",\"\",AP435/$C$435)","v":""},null,{"$f":"IF($C$435=\"\",\"\",AR435/$C$435)","v":""},null,{"$f":"IF($C$435=\"\",\"\",AT435/$C$435)","v":""},null,{"$f":"IF($C$435=\"\",\"\",AV435/$C$435)","v":""},null,{"$f":"IF($C$435=\"\",\"\",AX435/$C$435)","v":""},null,{"$f":"IF($C$435=\"\",\"\",AZ435/$C$435)","v":""},null,{"$f":"IF($C$435=\"\",\"\",BB435/$C$435)","v":""},null,0]
[null,null,null,null,{"$f":"IF($C$436=\"\",\"\",F436/$C$436)","v":""},null,{"$f":"IF($C$436=\"\",\"\",H436/$C$436)","v":""},null,{"$f":"IF($C$436=\"\",\"\",J436/$C$436)","v":""},null,{"$f":"IF($C$436=\"\",\"\",L436/$C$436)","v":""},null,{"$f":"IF($C$436=\"\",\"\",N436/$C$436)","v":""},null,{"$f":"IF($C$436=\"\",\"\",P436/$C$436)","v":""},null,{"$f":"IF($C$436=\"\",\"\",R436/$C$436)","v":""},null,{"$f":"IF($C$436=\"\",\"\",T436/$C$436)","v":""},null,{"$f":"IF($C$436=\"\",\"\",V436/$C$436)","v":""},null,{"$f":"IF($C$436=\"\",\"\",X436/$C$436)","v":""},null,{"$f":"IF($C$436=\"\",\"\",Z436/$C$436)","v":""},null,{"$f":"IF($C$436=\"\",\"\",AB436/$C$436)","v":""},null,{"$f":"IF($C$436=\"\",\"\",AD436/$C$436)","v":""},null,{"$f":"IF($C$436=\"\",\"\",AF436/$C$436)","v":""},null,{"$f":"IF($C$436=\"\",\"\",AH436/$C$436)","v":""},null,{"$f":"IF($C$436=\"\",\"\",AJ436/$C$436)","v":""},null,{"$f":"IF($C$436=\"\",\"\",AL436/$C$436)","v":""},null,{"$f":"IF($C$436=\"\",\"\",AN436/$C$436)","v":""},null,{"$f":"IF($C$436=\"\",\"\",AP436/$C$436)","v":""},null,{"$f":"IF($C$436=\"\",\"\",AR436/$C$436)","v":""},null,{"$f":"IF($C$436=\"\",\"\",AT436/$C$436)","v":""},null,{"$f":"IF($C$436=\"\",\"\",AV436/$C$436)","v":""},null,{"$f":"IF($C$436=\"\",\"\",AX436/$C$436)","v":""},null,{"$f":"IF($C$436=\"\",\"\",AZ436/$C$436)","v":""},null,{"$f":"IF($C$436=\"\",\"\",BB436/$C$436)","v":""},null,0]
[null,null,null,null,{"$f":"IF($C$437=\"\",\"\",F437/$C$437)","v":""},null,{"$f":"IF($C$437=\"\",\"\",H437/$C$437)","v":""},null,{"$f":"IF($C$437=\"\",\"\",J437/$C$437)","v":""},null,{"$f":"IF($C$437=\"\",\"\",L437/$C$437)","v":""},null,{"$f":"IF($C$437=\"\",\"\",N437/$C$437)","v":""},null,{"$f":"IF($C$437=\"\",\"\",P437/$C$437)","v":""},null,{"$f":"IF($C$437=\"\",\"\",R437/$C$437)","v":""},null,{"$f":"IF($C$437=\"\",\"\",T437/$C$437)","v":""},null,{"$f":"IF($C$437=\"\",\"\",V437/$C$437)","v":""},null,{"$f":"IF($C$437=\"\",\"\",X437/$C$437)","v":""},null,{"$f":"IF($C$437=\"\",\"\",Z437/$C$437)","v":""},null,{"$f":"IF($C$437=\"\",\"\",AB437/$C$437)","v":""},null,{"$f":"IF($C$437=\"\",\"\",AD437/$C$437)","v":""},null,{"$f":"IF($C$437=\"\",\"\",AF437/$C$437)","v":""},null,{"$f":"IF($C$437=\"\",\"\",AH437/$C$437)","v":""},null,{"$f":"IF($C$437=\"\",\"\",AJ437/$C$437)","v":""},null,{"$f":"IF($C$437=\"\",\"\",AL437/$C$437)","v":""},null,{"$f":"IF($C$437=\"\",\"\",AN437/$C$437)","v":""},null,{"$f":"IF($C$437=\"\",\"\",AP437/$C$437)","v":""},null,{"$f":"IF($C$437=\"\",\"\",AR437/$C$437)","v":""},null,{"$f":"IF($C$437=\"\",\"\",AT437/$C$437)","v":""},null,{"$f":"IF($C$437=\"\",\"\",AV437/$C$437)","v":""},null,{"$f":"IF($C$437=\"\",\"\",AX437/$C$437)","v":""},null,{"$f":"IF($C$437=\"\",\"\",AZ437/$C$437)","v":""},null,{"$f":"IF($C$437=\"\",\"\",BB437/$C$437)","v":""},null,0]
[null,null,null,null,{"$f":"IF($C$438=\"\",\"\",F438/$C$438)","v":""},null,{"$f":"IF($C$438=\"\",\"\",H438/$C$438)","v":""},null,{"$f":"IF($C$438=\"\",\"\",J438/$C$438)","v":""},null,{"$f":"IF($C$438=\"\",\"\",L438/$C$438)","v":""},null,{"$f":"IF($C$438=\"\",\"\",N438/$C$438)","v":""},null,{"$f":"IF($C$438=\"\",\"\",P438/$C$438)","v":""},null,{"$f":"IF($C$438=\"\",\"\",R438/$C$438)","v":""},null,{"$f":"IF($C$438=\"\",\"\",T438/$C$438)","v":""},null,{"$f":"IF($C$438=\"\",\"\",V438/$C$438)","v":""},null,{"$f":"IF($C$438=\"\",\"\",X438/$C$438)","v":""},null,{"$f":"IF($C$438=\"\",\"\",Z438/$C$438)","v":""},null,{"$f":"IF($C$438=\"\",\"\",AB438/$C$438)","v":""},null,{"$f":"IF($C$438=\"\",\"\",AD438/$C$438)","v":""},null,{"$f":"IF($C$438=\"\",\"\",AF438/$C$438)","v":""},null,{"$f":"IF($C$438=\"\",\"\",AH438/$C$438)","v":""},null,{"$f":"IF($C$438=\"\",\"\",AJ438/$C$438)","v":""},null,{"$f":"IF($C$438=\"\",\"\",AL438/$C$438)","v":""},null,{"$f":"IF($C$438=\"\",\"\",AN438/$C$438)","v":""},null,{"$f":"IF($C$438=\"\",\"\",AP438/$C$438)","v":""},null,{"$f":"IF($C$438=\"\",\"\",AR438/$C$438)","v":""},null,{"$f":"IF($C$438=\"\",\"\",AT438/$C$438)","v":""},null,{"$f":"IF($C$438=\"\",\"\",AV438/$C$438)","v":""},null,{"$f":"IF($C$438=\"\",\"\",AX438/$C$438)","v":""},null,{"$f":"IF($C$438=\"\",\"\",AZ438/$C$438)","v":""},null,{"$f":"IF($C$438=\"\",\"\",BB438/$C$438)","v":""},null,0]
[null,null,null,null,{"$f":"IF($C$439=\"\",\"\",F439/$C$439)","v":""},null,{"$f":"IF($C$439=\"\",\"\",H439/$C$439)","v":""},null,{"$f":"IF($C$439=\"\",\"\",J439/$C$439)","v":""},null,{"$f":"IF($C$439=\"\",\"\",L439/$C$439)","v":""},null,{"$f":"IF($C$439=\"\",\"\",N439/$C$439)","v":""},null,{"$f":"IF($C$439=\"\",\"\",P439/$C$439)","v":""},null,{"$f":"IF($C$439=\"\",\"\",R439/$C$439)","v":""},null,{"$f":"IF($C$439=\"\",\"\",T439/$C$439)","v":""},null,{"$f":"IF($C$439=\"\",\"\",V439/$C$439)","v":""},null,{"$f":"IF($C$439=\"\",\"\",X439/$C$439)","v":""},null,{"$f":"IF($C$439=\"\",\"\",Z439/$C$439)","v":""},null,{"$f":"IF($C$439=\"\",\"\",AB439/$C$439)","v":""},null,{"$f":"IF($C$439=\"\",\"\",AD439/$C$439)","v":""},null,{"$f":"IF($C$439=\"\",\"\",AF439/$C$439)","v":""},null,{"$f":"IF($C$439=\"\",\"\",AH439/$C$439)","v":""},null,{"$f":"IF($C$439=\"\",\"\",AJ439/$C$439)","v":""},null,{"$f":"IF($C$439=\"\",\"\",AL439/$C$439)","v":""},null,{"$f":"IF($C$439=\"\",\"\",AN439/$C$439)","v":""},null,{"$f":"IF($C$439=\"\",\"\",AP439/$C$439)","v":""},null,{"$f":"IF($C$439=\"\",\"\",AR439/$C$439)","v":""},null,{"$f":"IF($C$439=\"\",\"\",AT439/$C$439)","v":""},null,{"$f":"IF($C$439=\"\",\"\",AV439/$C$439)","v":""},null,{"$f":"IF($C$439=\"\",\"\",AX439/$C$439)","v":""},null,{"$f":"IF($C$439=\"\",\"\",AZ439/$C$439)","v":""},null,{"$f":"IF($C$439=\"\",\"\",BB439/$C$439)","v":""},null,{"$f":"SUM(BB439,AZ439,AX439,AV439,AT439,AR439,AP439,AN439,AL439,AJ439,AH439,AF439,AD439,AB439,Z439,X439,V439,T439,R439,P439,N439,L439,J439,H439,F439)","v":0}]
["TOTAL HOURS",null,null,null,null,{"$f":"SUM(F410:F439)","v":0},null,{"$f":"SUM(H410:H439)","v":0},null,{"$f":"SUM(J410:J439)","v":0},null,{"$f":"SUM(L410:L439)","v":0},null,{"$f":"SUM(N410:N439)","v":0},null,{"$f":"SUM(P410:P439)","v":0},null,{"$f":"SUM(R410:R439)","v":0},null,{"$f":"SUM(T410:T439)","v":0},null,{"$f":"SUM(V410:V439)","v":0},null,{"$f":"SUM(X410:X439)","v":0},null,{"$f":"SUM(Z410:Z439)","v":0},null,{"$f":"SUM(AB410:AB439)","v":0},null,{"$f":"SUM(AD410:AD439)","v":0},null,{"$f":"SUM(AF410:AF439)","v":0},null,{"$f":"SUM(AH410:AH439)","v":0},null,{"$f":"SUM(AJ410:AJ439)","v":0},null,{"$f":"SUM(AL410:AL439)","v":0},null,{"$f":"SUM(AN410:AN439)","v":0},null,{"$f":"SUM(AP410:AP439)","v":0},null,{"$f":"SUM(AR410:AR439)","v":0},null,{"$f":"SUM(AT410:AT439)","v":0},null,{"$f":"SUM(AV410:AV439)","v":0},null,{"$f":"SUM(AX410:AX439)","v":0},null,{"$f":"SUM(AZ410:AZ439)","v":0},null,{"$f":"SUM(BB410:BB439)","v":0},{"$f":"SUM(E440:BB440)","v":0}]
["TOTAL WORKDAYS",null,null,null,null,{"$f":"F440/8","v":0},null,{"$f":"H440/8","v":0},null,{"$f":"J440/8","v":0},null,{"$f":"L440/8","v":0},null,{"$f":"N440/8","v":0},null,{"$f":"P440/8","v":0},null,{"$f":"R440/8","v":0},null,{"$f":"T440/8","v":0},null,{"$f":"V440/8","v":0},null,{"$f":"X440/8","v":0},null,{"$f":"Z440/8","v":0},null,{"$f":"AB440/8","v":0},null,{"$f":"AD440/8","v":0},null,0,null,{"$f":"AH440/8","v":0},null,0,null,{"$f":"AL440/8","v":0},null,0,null,{"$f":"AP440/8","v":0},null,0,null,{"$f":"AT440/8","v":0},null,{"$f":"AV440/8","v":0},null,{"$f":"AX440/8","v":0},null,{"$f":"AZ440/8","v":0},null,{"$f":"BB440/8","v":0},{"$f":"SUM(E441:BB441)","v":0}]
["TOTAL RAW LABOR",null,null,null,null,{"$f":"$E$13*F440","v":0},null,{"$f":"$G$13*H440","v":0},null,{"$f":"$I$13*J440","v":0},null,{"$f":"$K$13*L440","v":0},null,{"$f":"$M$13*N440","v":0},null,{"$f":"$O$13*P440","v":0},null,{"$f":"$Q$13*R440","v":0},null,{"$f":"$S$13*T440","v":0},null,{"$f":"$U$13*V440","v":0},null,{"$f":"$W$13*X440","v":0},null,{"$f":"$Y$13*Z440","v":0},null,{"$f":"$AA$13*AB440","v":0},null,{"$f":"$AC$13*AD440","v":0},null,{"$f":"$AC$13*AF440","v":0},null,{"$f":"$AC$13*AH440","v":0},null,{"$f":"$AC$13*AJ440","v":0},null,{"$f":"$AC$13*AL440","v":0},null,{"$f":"$AC$13*AN440","v":0},null,{"$f":"$AC$13*AP440","v":0},null,{"$f":"$AC$13*AR440","v":0},null,{"$f":"$AC$13*AT440","v":0},null,{"$f":"$AC$13*AV440","v":0},null,{"$f":"$AC$13*AX440","v":0},null,{"$f":"$AC$13*AZ440","v":0},null,{"$f":"$AC$13*BB440","v":0},{"$f":"SUM(E442:BB442)","v":0}]
["Task 17.0     ","REPLACE FIELD WITH CATEGORY NAME OF YOUR CHOOSING HERE",null,null,null,null,null,null,null,null,null,null,null,null,null,null,null,null,null,null,null,null,null,null,null,null,null,null,null,null,null,null,null,null,null,null,null,null,null,null,null,null,null,null,null,null,null,null,null,null,null,null,null,null,{"$f":"IF(B443=\"REPLACE FIELD WITH CATEGORY NAME OF YOUR CHOOSING HERE\",0,\"\")","v":0}]
[null,null,null,null,{"$f":"IF($C$444=\"\",\"\",F444/$C$444)","v":""},null,{"$f":"IF($C$444=\"\",\"\",H444/$C$444)","v":""},null,{"$f":"IF($C$444=\"\",\"\",J444/$C$444)","v":""},null,{"$f":"IF($C$444=\"\",\"\",L444/$C$444)","v":""},null,{"$f":"IF($C$444=\"\",\"\",N444/$C$444)","v":""},null,{"$f":"IF($C$444=\"\",\"\",P444/$C$444)","v":""},null,{"$f":"IF($C$444=\"\",\"\",R444/$C$444)","v":""},null,{"$f":"IF($C$444=\"\",\"\",T444/$C$444)","v":""},null,{"$f":"IF($C$444=\"\",\"\",V444/$C$444)","v":""},null,{"$f":"IF($C$444=\"\",\"\",X444/$C$444)","v":""},null,{"$f":"IF($C$444=\"\",\"\",Z444/$C$444)","v":""},null,{"$f":"IF($C$444=\"\",\"\",AB444/$C$444)","v":""},null,{"$f":"IF($C$444=\"\",\"\",AD444/$C$444)","v":""},null,{"$f":"IF($C$444=\"\",\"\",AF444/$C$444)","v":""},null,{"$f":"IF($C$444=\"\",\"\",AH444/$C$444)","v":""},null,{"$f":"IF($C$444=\"\",\"\",AJ444/$C$444)","v":""},null,{"$f":"IF($C$444=\"\",\"\",AL444/$C$444)","v":""},null,{"$f":"IF($C$444=\"\",\"\",AN444/$C$444)","v":""},null,{"$f":"IF($C$444=\"\",\"\",AP444/$C$444)","v":""},null,{"$f":"IF($C$444=\"\",\"\",AR444/$C$444)","v":""},null,{"$f":"IF($C$444=\"\",\"\",AT444/$C$444)","v":""},null,{"$f":"IF($C$444=\"\",\"\",AV444/$C$444)","v":""},null,{"$f":"IF($C$444=\"\",\"\",AX444/$C$444)","v":""},null,{"$f":"IF($C$444=\"\",\"\",AZ444/$C$444)","v":""},null,{"$f":"IF($C$444=\"\",\"\",BB444/$C$444)","v":""},null,{"$f":"SUM(BB444,AZ444,AX444,AV444,AT444,AR444,AP444,AN444,AL444,AJ444,AH444,AF444,AD444,AB444,Z444,X444,V444,T444,R444,P444,N444,L444,J444,H444,F444)","v":0}]
[null,null,null,null,{"$f":"IF($C$445=\"\",\"\",F445/$C$445)","v":""},null,{"$f":"IF($C$445=\"\",\"\",H445/$C$445)","v":""},null,{"$f":"IF($C$445=\"\",\"\",J445/$C$445)","v":""},null,{"$f":"IF($C$445=\"\",\"\",L445/$C$445)","v":""},null,{"$f":"IF($C$445=\"\",\"\",N445/$C$445)","v":""},null,{"$f":"IF($C$445=\"\",\"\",P445/$C$445)","v":""},null,{"$f":"IF($C$445=\"\",\"\",R445/$C$445)","v":""},null,{"$f":"IF($C$445=\"\",\"\",T445/$C$445)","v":""},null,{"$f":"IF($C$445=\"\",\"\",V445/$C$445)","v":""},null,{"$f":"IF($C$445=\"\",\"\",X445/$C$445)","v":""},null,{"$f":"IF($C$445=\"\",\"\",Z445/$C$445)","v":""},null,{"$f":"IF($C$445=\"\",\"\",AB445/$C$445)","v":""},null,{"$f":"IF($C$445=\"\",\"\",AD445/$C$445)","v":""},null,{"$f":"IF($C$445=\"\",\"\",AF445/$C$445)","v":""},null,{"$f":"IF($C$445=\"\",\"\",AH445/$C$445)","v":""},null,{"$f":"IF($C$445=\"\",\"\",AJ445/$C$445)","v":""},null,{"$f":"IF($C$445=\"\",\"\",AL445/$C$445)","v":""},null,{"$f":"IF($C$445=\"\",\"\",AN445/$C$445)","v":""},null,{"$f":"IF($C$445=\"\",\"\",AP445/$C$445)","v":""},null,{"$f":"IF($C$445=\"\",\"\",AR445/$C$445)","v":""},null,{"$f":"IF($C$445=\"\",\"\",AT445/$C$445)","v":""},null,{"$f":"IF($C$445=\"\",\"\",AV445/$C$445)","v":""},null,{"$f":"IF($C$445=\"\",\"\",AX445/$C$445)","v":""},null,{"$f":"IF($C$445=\"\",\"\",AZ445/$C$445)","v":""},null,{"$f":"IF($C$445=\"\",\"\",BB445/$C$445)","v":""},null,0]
[null,null,null,null,{"$f":"IF($C$446=\"\",\"\",F446/$C$446)","v":""},null,{"$f":"IF($C$446=\"\",\"\",H446/$C$446)","v":""},null,{"$f":"IF($C$446=\"\",\"\",J446/$C$446)","v":""},null,{"$f":"IF($C$446=\"\",\"\",L446/$C$446)","v":""},null,{"$f":"IF($C$446=\"\",\"\",N446/$C$446)","v":""},null,{"$f":"IF($C$446=\"\",\"\",P446/$C$446)","v":""},null,{"$f":"IF($C$446=\"\",\"\",R446/$C$446)","v":""},null,{"$f":"IF($C$446=\"\",\"\",T446/$C$446)","v":""},null,{"$f":"IF($C$446=\"\",\"\",V446/$C$446)","v":""},null,{"$f":"IF($C$446=\"\",\"\",X446/$C$446)","v":""},null,{"$f":"IF($C$446=\"\",\"\",Z446/$C$446)","v":""},null,{"$f":"IF($C$446=\"\",\"\",AB446/$C$446)","v":""},null,{"$f":"IF($C$446=\"\",\"\",AD446/$C$446)","v":""},null,{"$f":"IF($C$446=\"\",\"\",AF446/$C$446)","v":""},null,{"$f":"IF($C$446=\"\",\"\",AH446/$C$446)","v":""},null,{"$f":"IF($C$446=\"\",\"\",AJ446/$C$446)","v":""},null,{"$f":"IF($C$446=\"\",\"\",AL446/$C$446)","v":""},null,{"$f":"IF($C$446=\"\",\"\",AN446/$C$446)","v":""},null,{"$f":"IF($C$446=\"\",\"\",AP446/$C$446)","v":""},null,{"$f":"IF($C$446=\"\",\"\",AR446/$C$446)","v":""},null,{"$f":"IF($C$446=\"\",\"\",AT446/$C$446)","v":""},null,{"$f":"IF($C$446=\"\",\"\",AV446/$C$446)","v":""},null,{"$f":"IF($C$446=\"\",\"\",AX446/$C$446)","v":""},null,{"$f":"IF($C$446=\"\",\"\",AZ446/$C$446)","v":""},null,{"$f":"IF($C$446=\"\",\"\",BB446/$C$446)","v":""},null,0]
[null,null,null,null,{"$f":"IF($C$447=\"\",\"\",F447/$C$447)","v":""},null,{"$f":"IF($C$447=\"\",\"\",H447/$C$447)","v":""},null,{"$f":"IF($C$447=\"\",\"\",J447/$C$447)","v":""},null,{"$f":"IF($C$447=\"\",\"\",L447/$C$447)","v":""},null,{"$f":"IF($C$447=\"\",\"\",N447/$C$447)","v":""},null,{"$f":"IF($C$447=\"\",\"\",P447/$C$447)","v":""},null,{"$f":"IF($C$447=\"\",\"\",R447/$C$447)","v":""},null,{"$f":"IF($C$447=\"\",\"\",T447/$C$447)","v":""},null,{"$f":"IF($C$447=\"\",\"\",V447/$C$447)","v":""},null,{"$f":"IF($C$447=\"\",\"\",X447/$C$447)","v":""},null,{"$f":"IF($C$447=\"\",\"\",Z447/$C$447)","v":""},null,{"$f":"IF($C$447=\"\",\"\",AB447/$C$447)","v":""},null,{"$f":"IF($C$447=\"\",\"\",AD447/$C$447)","v":""},null,{"$f":"IF($C$447=\"\",\"\",AF447/$C$447)","v":""},null,{"$f":"IF($C$447=\"\",\"\",AH447/$C$447)","v":""},null,{"$f":"IF($C$447=\"\",\"\",AJ447/$C$447)","v":""},null,{"$f":"IF($C$447=\"\",\"\",AL447/$C$447)","v":""},null,{"$f":"IF($C$447=\"\",\"\",AN447/$C$447)","v":""},null,{"$f":"IF($C$447=\"\",\"\",AP447/$C$447)","v":""},null,{"$f":"IF($C$447=\"\",\"\",AR447/$C$447)","v":""},null,{"$f":"IF($C$447=\"\",\"\",AT447/$C$447)","v":""},null,{"$f":"IF($C$447=\"\",\"\",AV447/$C$447)","v":""},null,{"$f":"IF($C$447=\"\",\"\",AX447/$C$447)","v":""},null,{"$f":"IF($C$447=\"\",\"\",AZ447/$C$447)","v":""},null,{"$f":"IF($C$447=\"\",\"\",BB447/$C$447)","v":""},null,0]
[null,null,null,null,{"$f":"IF($C$448=\"\",\"\",F448/$C$448)","v":""},null,{"$f":"IF($C$448=\"\",\"\",H448/$C$448)","v":""},null,{"$f":"IF($C$448=\"\",\"\",J448/$C$448)","v":""},null,{"$f":"IF($C$448=\"\",\"\",L448/$C$448)","v":""},null,{"$f":"IF($C$448=\"\",\"\",N448/$C$448)","v":""},null,{"$f":"IF($C$448=\"\",\"\",P448/$C$448)","v":""},null,{"$f":"IF($C$448=\"\",\"\",R448/$C$448)","v":""},null,{"$f":"IF($C$448=\"\",\"\",T448/$C$448)","v":""},null,{"$f":"IF($C$448=\"\",\"\",V448/$C$448)","v":""},null,{"$f":"IF($C$448=\"\",\"\",X448/$C$448)","v":""},null,{"$f":"IF($C$448=\"\",\"\",Z448/$C$448)","v":""},null,{"$f":"IF($C$448=\"\",\"\",AB448/$C$448)","v":""},null,{"$f":"IF($C$448=\"\",\"\",AD448/$C$448)","v":""},null,{"$f":"IF($C$448=\"\",\"\",AF448/$C$448)","v":""},null,{"$f":"IF($C$448=\"\",\"\",AH448/$C$448)","v":""},null,{"$f":"IF($C$448=\"\",\"\",AJ448/$C$448)","v":""},null,{"$f":"IF($C$448=\"\",\"\",AL448/$C$448)","v":""},null,{"$f":"IF($C$448=\"\",\"\",AN448/$C$448)","v":""},null,{"$f":"IF($C$448=\"\",\"\",AP448/$C$448)","v":""},null,{"$f":"IF($C$448=\"\",\"\",AR448/$C$448)","v":""},null,{"$f":"IF($C$448=\"\",\"\",AT448/$C$448)","v":""},null,{"$f":"IF($C$448=\"\",\"\",AV448/$C$448)","v":""},null,{"$f":"IF($C$448=\"\",\"\",AX448/$C$448)","v":""},null,{"$f":"IF($C$448=\"\",\"\",AZ448/$C$448)","v":""},null,{"$f":"IF($C$448=\"\",\"\",BB448/$C$448)","v":""},null,0]
[null,null,null,null,{"$f":"IF($C$449=\"\",\"\",F449/$C$449)","v":""},null,{"$f":"IF($C$449=\"\",\"\",H449/$C$449)","v":""},null,{"$f":"IF($C$449=\"\",\"\",J449/$C$449)","v":""},null,{"$f":"IF($C$449=\"\",\"\",L449/$C$449)","v":""},null,{"$f":"IF($C$449=\"\",\"\",N449/$C$449)","v":""},null,{"$f":"IF($C$449=\"\",\"\",P449/$C$449)","v":""},null,{"$f":"IF($C$449=\"\",\"\",R449/$C$449)","v":""},null,{"$f":"IF($C$449=\"\",\"\",T449/$C$449)","v":""},null,{"$f":"IF($C$449=\"\",\"\",V449/$C$449)","v":""},null,{"$f":"IF($C$449=\"\",\"\",X449/$C$449)","v":""},null,{"$f":"IF($C$449=\"\",\"\",Z449/$C$449)","v":""},null,{"$f":"IF($C$449=\"\",\"\",AB449/$C$449)","v":""},null,{"$f":"IF($C$449=\"\",\"\",AD449/$C$449)","v":""},null,{"$f":"IF($C$449=\"\",\"\",AF449/$C$449)","v":""},null,{"$f":"IF($C$449=\"\",\"\",AH449/$C$449)","v":""},null,{"$f":"IF($C$449=\"\",\"\",AJ449/$C$449)","v":""},null,{"$f":"IF($C$449=\"\",\"\",AL449/$C$449)","v":""},null,{"$f":"IF($C$449=\"\",\"\",AN449/$C$449)","v":""},null,{"$f":"IF($C$449=\"\",\"\",AP449/$C$449)","v":""},null,{"$f":"IF($C$449=\"\",\"\",AR449/$C$449)","v":""},null,{"$f":"IF($C$449=\"\",\"\",AT449/$C$449)","v":""},null,{"$f":"IF($C$449=\"\",\"\",AV449/$C$449)","v":""},null,{"$f":"IF($C$449=\"\",\"\",AX449/$C$449)","v":""},null,{"$f":"IF($C$449=\"\",\"\",AZ449/$C$449)","v":""},null,{"$f":"IF($C$449=\"\",\"\",BB449/$C$449)","v":""},null,0]
[null,null,null,null,{"$f":"IF($C$450=\"\",\"\",F450/$C$450)","v":""},null,{"$f":"IF($C$450=\"\",\"\",H450/$C$450)","v":""},null,{"$f":"IF($C$450=\"\",\"\",J450/$C$450)","v":""},null,{"$f":"IF($C$450=\"\",\"\",L450/$C$450)","v":""},null,{"$f":"IF($C$450=\"\",\"\",N450/$C$450)","v":""},null,{"$f":"IF($C$450=\"\",\"\",P450/$C$450)","v":""},null,{"$f":"IF($C$450=\"\",\"\",R450/$C$450)","v":""},null,{"$f":"IF($C$450=\"\",\"\",T450/$C$450)","v":""},null,{"$f":"IF($C$450=\"\",\"\",V450/$C$450)","v":""},null,{"$f":"IF($C$450=\"\",\"\",X450/$C$450)","v":""},null,{"$f":"IF($C$450=\"\",\"\",Z450/$C$450)","v":""},null,{"$f":"IF($C$450=\"\",\"\",AB450/$C$450)","v":""},null,{"$f":"IF($C$450=\"\",\"\",AD450/$C$450)","v":""},null,{"$f":"IF($C$450=\"\",\"\",AF450/$C$450)","v":""},null,{"$f":"IF($C$450=\"\",\"\",AH450/$C$450)","v":""},null,{"$f":"IF($C$450=\"\",\"\",AJ450/$C$450)","v":""},null,{"$f":"IF($C$450=\"\",\"\",AL450/$C$450)","v":""},null,{"$f":"IF($C$450=\"\",\"\",AN450/$C$450)","v":""},null,{"$f":"IF($C$450=\"\",\"\",AP450/$C$450)","v":""},null,{"$f":"IF($C$450=\"\",\"\",AR450/$C$450)","v":""},null,{"$f":"IF($C$450=\"\",\"\",AT450/$C$450)","v":""},null,{"$f":"IF($C$450=\"\",\"\",AV450/$C$450)","v":""},null,{"$f":"IF($C$450=\"\",\"\",AX450/$C$450)","v":""},null,{"$f":"IF($C$450=\"\",\"\",AZ450/$C$450)","v":""},null,{"$f":"IF($C$450=\"\",\"\",BB450/$C$450)","v":""},null,0]
[null,null,null,null,{"$f":"IF($C$451=\"\",\"\",F451/$C$451)","v":""},null,{"$f":"IF($C$451=\"\",\"\",H451/$C$451)","v":""},null,{"$f":"IF($C$451=\"\",\"\",J451/$C$451)","v":""},null,{"$f":"IF($C$451=\"\",\"\",L451/$C$451)","v":""},null,{"$f":"IF($C$451=\"\",\"\",N451/$C$451)","v":""},null,{"$f":"IF($C$451=\"\",\"\",P451/$C$451)","v":""},null,{"$f":"IF($C$451=\"\",\"\",R451/$C$451)","v":""},null,{"$f":"IF($C$451=\"\",\"\",T451/$C$451)","v":""},null,{"$f":"IF($C$451=\"\",\"\",V451/$C$451)","v":""},null,{"$f":"IF($C$451=\"\",\"\",X451/$C$451)","v":""},null,{"$f":"IF($C$451=\"\",\"\",Z451/$C$451)","v":""},null,{"$f":"IF($C$451=\"\",\"\",AB451/$C$451)","v":""},null,{"$f":"IF($C$451=\"\",\"\",AD451/$C$451)","v":""},null,{"$f":"IF($C$451=\"\",\"\",AF451/$C$451)","v":""},null,{"$f":"IF($C$451=\"\",\"\",AH451/$C$451)","v":""},null,{"$f":"IF($C$451=\"\",\"\",AJ451/$C$451)","v":""},null,{"$f":"IF($C$451=\"\",\"\",AL451/$C$451)","v":""},null,{"$f":"IF($C$451=\"\",\"\",AN451/$C$451)","v":""},null,{"$f":"IF($C$451=\"\",\"\",AP451/$C$451)","v":""},null,{"$f":"IF($C$451=\"\",\"\",AR451/$C$451)","v":""},null,{"$f":"IF($C$451=\"\",\"\",AT451/$C$451)","v":""},null,{"$f":"IF($C$451=\"\",\"\",AV451/$C$451)","v":""},null,{"$f":"IF($C$451=\"\",\"\",AX451/$C$451)","v":""},null,{"$f":"IF($C$451=\"\",\"\",AZ451/$C$451)","v":""},null,{"$f":"IF($C$451=\"\",\"\",BB451/$C$451)","v":""},null,0]
[null,null,null,null,{"$f":"IF($C$452=\"\",\"\",F452/$C$452)","v":""},null,{"$f":"IF($C$452=\"\",\"\",H452/$C$452)","v":""},null,{"$f":"IF($C$452=\"\",\"\",J452/$C$452)","v":""},null,{"$f":"IF($C$452=\"\",\"\",L452/$C$452)","v":""},null,{"$f":"IF($C$452=\"\",\"\",N452/$C$452)","v":""},null,{"$f":"IF($C$452=\"\",\"\",P452/$C$452)","v":""},null,{"$f":"IF($C$452=\"\",\"\",R452/$C$452)","v":""},null,{"$f":"IF($C$452=\"\",\"\",T452/$C$452)","v":""},null,{"$f":"IF($C$452=\"\",\"\",V452/$C$452)","v":""},null,{"$f":"IF($C$452=\"\",\"\",X452/$C$452)","v":""},null,{"$f":"IF($C$452=\"\",\"\",Z452/$C$452)","v":""},null,{"$f":"IF($C$452=\"\",\"\",AB452/$C$452)","v":""},null,{"$f":"IF($C$452=\"\",\"\",AD452/$C$452)","v":""},null,{"$f":"IF($C$452=\"\",\"\",AF452/$C$452)","v":""},null,{"$f":"IF($C$452=\"\",\"\",AH452/$C$452)","v":""},null,{"$f":"IF($C$452=\"\",\"\",AJ452/$C$452)","v":""},null,{"$f":"IF($C$452=\"\",\"\",AL452/$C$452)","v":""},null,{"$f":"IF($C$452=\"\",\"\",AN452/$C$452)","v":""},null,{"$f":"IF($C$452=\"\",\"\",AP452/$C$452)","v":""},null,{"$f":"IF($C$452=\"\",\"\",AR452/$C$452)","v":""},null,{"$f":"IF($C$452=\"\",\"\",AT452/$C$452)","v":""},null,{"$f":"IF($C$452=\"\",\"\",AV452/$C$452)","v":""},null,{"$f":"IF($C$452=\"\",\"\",AX452/$C$452)","v":""},null,{"$f":"IF($C$452=\"\",\"\",AZ452/$C$452)","v":""},null,{"$f":"IF($C$452=\"\",\"\",BB452/$C$452)","v":""},null,0]
[null,null,null,null,{"$f":"IF($C$453=\"\",\"\",F453/$C$453)","v":""},null,{"$f":"IF($C$453=\"\",\"\",H453/$C$453)","v":""},null,{"$f":"IF($C$453=\"\",\"\",J453/$C$453)","v":""},null,{"$f":"IF($C$453=\"\",\"\",L453/$C$453)","v":""},null,{"$f":"IF($C$453=\"\",\"\",N453/$C$453)","v":""},null,{"$f":"IF($C$453=\"\",\"\",P453/$C$453)","v":""},null,{"$f":"IF($C$453=\"\",\"\",R453/$C$453)","v":""},null,{"$f":"IF($C$453=\"\",\"\",T453/$C$453)","v":""},null,{"$f":"IF($C$453=\"\",\"\",V453/$C$453)","v":""},null,{"$f":"IF($C$453=\"\",\"\",X453/$C$453)","v":""},null,{"$f":"IF($C$453=\"\",\"\",Z453/$C$453)","v":""},null,{"$f":"IF($C$453=\"\",\"\",AB453/$C$453)","v":""},null,{"$f":"IF($C$453=\"\",\"\",AD453/$C$453)","v":""},null,{"$f":"IF($C$453=\"\",\"\",AF453/$C$453)","v":""},null,{"$f":"IF($C$453=\"\",\"\",AH453/$C$453)","v":""},null,{"$f":"IF($C$453=\"\",\"\",AJ453/$C$453)","v":""},null,{"$f":"IF($C$453=\"\",\"\",AL453/$C$453)","v":""},null,{"$f":"IF($C$453=\"\",\"\",AN453/$C$453)","v":""},null,{"$f":"IF($C$453=\"\",\"\",AP453/$C$453)","v":""},null,{"$f":"IF($C$453=\"\",\"\",AR453/$C$453)","v":""},null,{"$f":"IF($C$453=\"\",\"\",AT453/$C$453)","v":""},null,{"$f":"IF($C$453=\"\",\"\",AV453/$C$453)","v":""},null,{"$f":"IF($C$453=\"\",\"\",AX453/$C$453)","v":""},null,{"$f":"IF($C$453=\"\",\"\",AZ453/$C$453)","v":""},null,{"$f":"IF($C$453=\"\",\"\",BB453/$C$453)","v":""},null,0]
[null,null,null,null,{"$f":"IF($C$454=\"\",\"\",F454/$C$454)","v":""},null,{"$f":"IF($C$454=\"\",\"\",H454/$C$454)","v":""},null,{"$f":"IF($C$454=\"\",\"\",J454/$C$454)","v":""},null,{"$f":"IF($C$454=\"\",\"\",L454/$C$454)","v":""},null,{"$f":"IF($C$454=\"\",\"\",N454/$C$454)","v":""},null,{"$f":"IF($C$454=\"\",\"\",P454/$C$454)","v":""},null,{"$f":"IF($C$454=\"\",\"\",R454/$C$454)","v":""},null,{"$f":"IF($C$454=\"\",\"\",T454/$C$454)","v":""},null,{"$f":"IF($C$454=\"\",\"\",V454/$C$454)","v":""},null,{"$f":"IF($C$454=\"\",\"\",X454/$C$454)","v":""},null,{"$f":"IF($C$454=\"\",\"\",Z454/$C$454)","v":""},null,{"$f":"IF($C$454=\"\",\"\",AB454/$C$454)","v":""},null,{"$f":"IF($C$454=\"\",\"\",AD454/$C$454)","v":""},null,{"$f":"IF($C$454=\"\",\"\",AF454/$C$454)","v":""},null,{"$f":"IF($C$454=\"\",\"\",AH454/$C$454)","v":""},null,{"$f":"IF($C$454=\"\",\"\",AJ454/$C$454)","v":""},null,{"$f":"IF($C$454=\"\",\"\",AL454/$C$454)","v":""},null,{"$f":"IF($C$454=\"\",\"\",AN454/$C$454)","v":""},null,{"$f":"IF($C$454=\"\",\"\",AP454/$C$454)","v":""},null,{"$f":"IF($C$454=\"\",\"\",AR454/$C$454)","v":""},null,{"$f":"IF($C$454=\"\",\"\",AT454/$C$454)","v":""},null,{"$f":"IF($C$454=\"\",\"\",AV454/$C$454)","v":""},null,{"$f":"IF($C$454=\"\",\"\",AX454/$C$454)","v":""},null,{"$f":"IF($C$454=\"\",\"\",AZ454/$C$454)","v":""},null,{"$f":"IF($C$454=\"\",\"\",BB454/$C$454)","v":""},null,0]
[null,null,null,null,{"$f":"IF($C$455=\"\",\"\",F455/$C$455)","v":""},null,{"$f":"IF($C$455=\"\",\"\",H455/$C$455)","v":""},null,{"$f":"IF($C$455=\"\",\"\",J455/$C$455)","v":""},null,{"$f":"IF($C$455=\"\",\"\",L455/$C$455)","v":""},null,{"$f":"IF($C$455=\"\",\"\",N455/$C$455)","v":""},null,{"$f":"IF($C$455=\"\",\"\",P455/$C$455)","v":""},null,{"$f":"IF($C$455=\"\",\"\",R455/$C$455)","v":""},null,{"$f":"IF($C$455=\"\",\"\",T455/$C$455)","v":""},null,{"$f":"IF($C$455=\"\",\"\",V455/$C$455)","v":""},null,{"$f":"IF($C$455=\"\",\"\",X455/$C$455)","v":""},null,{"$f":"IF($C$455=\"\",\"\",Z455/$C$455)","v":""},null,{"$f":"IF($C$455=\"\",\"\",AB455/$C$455)","v":""},null,{"$f":"IF($C$455=\"\",\"\",AD455/$C$455)","v":""},null,{"$f":"IF($C$455=\"\",\"\",AF455/$C$455)","v":""},null,{"$f":"IF($C$455=\"\",\"\",AH455/$C$455)","v":""},null,{"$f":"IF($C$455=\"\",\"\",AJ455/$C$455)","v":""},null,{"$f":"IF($C$455=\"\",\"\",AL455/$C$455)","v":""},null,{"$f":"IF($C$455=\"\",\"\",AN455/$C$455)","v":""},null,{"$f":"IF($C$455=\"\",\"\",AP455/$C$455)","v":""},null,{"$f":"IF($C$455=\"\",\"\",AR455/$C$455)","v":""},null,{"$f":"IF($C$455=\"\",\"\",AT455/$C$455)","v":""},null,{"$f":"IF($C$455=\"\",\"\",AV455/$C$455)","v":""},null,{"$f":"IF($C$455=\"\",\"\",AX455/$C$455)","v":""},null,{"$f":"IF($C$455=\"\",\"\",AZ455/$C$455)","v":""},null,{"$f":"IF($C$455=\"\",\"\",BB455/$C$455)","v":""},null,0]
[null,null,null,null,{"$f":"IF($C$456=\"\",\"\",F456/$C$456)","v":""},null,{"$f":"IF($C$456=\"\",\"\",H456/$C$456)","v":""},null,{"$f":"IF($C$456=\"\",\"\",J456/$C$456)","v":""},null,{"$f":"IF($C$456=\"\",\"\",L456/$C$456)","v":""},null,{"$f":"IF($C$456=\"\",\"\",N456/$C$456)","v":""},null,{"$f":"IF($C$456=\"\",\"\",P456/$C$456)","v":""},null,{"$f":"IF($C$456=\"\",\"\",R456/$C$456)","v":""},null,{"$f":"IF($C$456=\"\",\"\",T456/$C$456)","v":""},null,{"$f":"IF($C$456=\"\",\"\",V456/$C$456)","v":""},null,{"$f":"IF($C$456=\"\",\"\",X456/$C$456)","v":""},null,{"$f":"IF($C$456=\"\",\"\",Z456/$C$456)","v":""},null,{"$f":"IF($C$456=\"\",\"\",AB456/$C$456)","v":""},null,{"$f":"IF($C$456=\"\",\"\",AD456/$C$456)","v":""},null,{"$f":"IF($C$456=\"\",\"\",AF456/$C$456)","v":""},null,{"$f":"IF($C$456=\"\",\"\",AH456/$C$456)","v":""},null,{"$f":"IF($C$456=\"\",\"\",AJ456/$C$456)","v":""},null,{"$f":"IF($C$456=\"\",\"\",AL456/$C$456)","v":""},null,{"$f":"IF($C$456=\"\",\"\",AN456/$C$456)","v":""},null,{"$f":"IF($C$456=\"\",\"\",AP456/$C$456)","v":""},null,{"$f":"IF($C$456=\"\",\"\",AR456/$C$456)","v":""},null,{"$f":"IF($C$456=\"\",\"\",AT456/$C$456)","v":""},null,{"$f":"IF($C$456=\"\",\"\",AV456/$C$456)","v":""},null,{"$f":"IF($C$456=\"\",\"\",AX456/$C$456)","v":""},null,{"$f":"IF($C$456=\"\",\"\",AZ456/$C$456)","v":""},null,{"$f":"IF($C$456=\"\",\"\",BB456/$C$456)","v":""},null,0]
[null,null,null,null,{"$f":"IF($C$457=\"\",\"\",F457/$C$457)","v":""},null,{"$f":"IF($C$457=\"\",\"\",H457/$C$457)","v":""},null,{"$f":"IF($C$457=\"\",\"\",J457/$C$457)","v":""},null,{"$f":"IF($C$457=\"\",\"\",L457/$C$457)","v":""},null,{"$f":"IF($C$457=\"\",\"\",N457/$C$457)","v":""},null,{"$f":"IF($C$457=\"\",\"\",P457/$C$457)","v":""},null,{"$f":"IF($C$457=\"\",\"\",R457/$C$457)","v":""},null,{"$f":"IF($C$457=\"\",\"\",T457/$C$457)","v":""},null,{"$f":"IF($C$457=\"\",\"\",V457/$C$457)","v":""},null,{"$f":"IF($C$457=\"\",\"\",X457/$C$457)","v":""},null,{"$f":"IF($C$457=\"\",\"\",Z457/$C$457)","v":""},null,{"$f":"IF($C$457=\"\",\"\",AB457/$C$457)","v":""},null,{"$f":"IF($C$457=\"\",\"\",AD457/$C$457)","v":""},null,{"$f":"IF($C$457=\"\",\"\",AF457/$C$457)","v":""},null,{"$f":"IF($C$457=\"\",\"\",AH457/$C$457)","v":""},null,{"$f":"IF($C$457=\"\",\"\",AJ457/$C$457)","v":""},null,{"$f":"IF($C$457=\"\",\"\",AL457/$C$457)","v":""},null,{"$f":"IF($C$457=\"\",\"\",AN457/$C$457)","v":""},null,{"$f":"IF($C$457=\"\",\"\",AP457/$C$457)","v":""},null,{"$f":"IF($C$457=\"\",\"\",AR457/$C$457)","v":""},null,{"$f":"IF($C$457=\"\",\"\",AT457/$C$457)","v":""},null,{"$f":"IF($C$457=\"\",\"\",AV457/$C$457)","v":""},null,{"$f":"IF($C$457=\"\",\"\",AX457/$C$457)","v":""},null,{"$f":"IF($C$457=\"\",\"\",AZ457/$C$457)","v":""},null,{"$f":"IF($C$457=\"\",\"\",BB457/$C$457)","v":""},null,0]
[null,null,null,null,{"$f":"IF($C$458=\"\",\"\",F458/$C$458)","v":""},null,{"$f":"IF($C$458=\"\",\"\",H458/$C$458)","v":""},null,{"$f":"IF($C$458=\"\",\"\",J458/$C$458)","v":""},null,{"$f":"IF($C$458=\"\",\"\",L458/$C$458)","v":""},null,{"$f":"IF($C$458=\"\",\"\",N458/$C$458)","v":""},null,{"$f":"IF($C$458=\"\",\"\",P458/$C$458)","v":""},null,{"$f":"IF($C$458=\"\",\"\",R458/$C$458)","v":""},null,{"$f":"IF($C$458=\"\",\"\",T458/$C$458)","v":""},null,{"$f":"IF($C$458=\"\",\"\",V458/$C$458)","v":""},null,{"$f":"IF($C$458=\"\",\"\",X458/$C$458)","v":""},null,{"$f":"IF($C$458=\"\",\"\",Z458/$C$458)","v":""},null,{"$f":"IF($C$458=\"\",\"\",AB458/$C$458)","v":""},null,{"$f":"IF($C$458=\"\",\"\",AD458/$C$458)","v":""},null,{"$f":"IF($C$458=\"\",\"\",AF458/$C$458)","v":""},null,{"$f":"IF($C$458=\"\",\"\",AH458/$C$458)","v":""},null,{"$f":"IF($C$458=\"\",\"\",AJ458/$C$458)","v":""},null,{"$f":"IF($C$458=\"\",\"\",AL458/$C$458)","v":""},null,{"$f":"IF($C$458=\"\",\"\",AN458/$C$458)","v":""},null,{"$f":"IF($C$458=\"\",\"\",AP458/$C$458)","v":""},null,{"$f":"IF($C$458=\"\",\"\",AR458/$C$458)","v":""},null,{"$f":"IF($C$458=\"\",\"\",AT458/$C$458)","v":""},null,{"$f":"IF($C$458=\"\",\"\",AV458/$C$458)","v":""},null,{"$f":"IF($C$458=\"\",\"\",AX458/$C$458)","v":""},null,{"$f":"IF($C$458=\"\",\"\",AZ458/$C$458)","v":""},null,{"$f":"IF($C$458=\"\",\"\",BB458/$C$458)","v":""},null,0]
[null,null,null,null,{"$f":"IF($C$459=\"\",\"\",F459/$C$459)","v":""},null,{"$f":"IF($C$459=\"\",\"\",H459/$C$459)","v":""},null,{"$f":"IF($C$459=\"\",\"\",J459/$C$459)","v":""},null,{"$f":"IF($C$459=\"\",\"\",L459/$C$459)","v":""},null,{"$f":"IF($C$459=\"\",\"\",N459/$C$459)","v":""},null,{"$f":"IF($C$459=\"\",\"\",P459/$C$459)","v":""},null,{"$f":"IF($C$459=\"\",\"\",R459/$C$459)","v":""},null,{"$f":"IF($C$459=\"\",\"\",T459/$C$459)","v":""},null,{"$f":"IF($C$459=\"\",\"\",V459/$C$459)","v":""},null,{"$f":"IF($C$459=\"\",\"\",X459/$C$459)","v":""},null,{"$f":"IF($C$459=\"\",\"\",Z459/$C$459)","v":""},null,{"$f":"IF($C$459=\"\",\"\",AB459/$C$459)","v":""},null,{"$f":"IF($C$459=\"\",\"\",AD459/$C$459)","v":""},null,{"$f":"IF($C$459=\"\",\"\",AF459/$C$459)","v":""},null,{"$f":"IF($C$459=\"\",\"\",AH459/$C$459)","v":""},null,{"$f":"IF($C$459=\"\",\"\",AJ459/$C$459)","v":""},null,{"$f":"IF($C$459=\"\",\"\",AL459/$C$459)","v":""},null,{"$f":"IF($C$459=\"\",\"\",AN459/$C$459)","v":""},null,{"$f":"IF($C$459=\"\",\"\",AP459/$C$459)","v":""},null,{"$f":"IF($C$459=\"\",\"\",AR459/$C$459)","v":""},null,{"$f":"IF($C$459=\"\",\"\",AT459/$C$459)","v":""},null,{"$f":"IF($C$459=\"\",\"\",AV459/$C$459)","v":""},null,{"$f":"IF($C$459=\"\",\"\",AX459/$C$459)","v":""},null,{"$f":"IF($C$459=\"\",\"\",AZ459/$C$459)","v":""},null,{"$f":"IF($C$459=\"\",\"\",BB459/$C$459)","v":""},null,0]
[null,null,null,null,{"$f":"IF($C$460=\"\",\"\",F460/$C$460)","v":""},null,{"$f":"IF($C$460=\"\",\"\",H460/$C$460)","v":""},null,{"$f":"IF($C$460=\"\",\"\",J460/$C$460)","v":""},null,{"$f":"IF($C$460=\"\",\"\",L460/$C$460)","v":""},null,{"$f":"IF($C$460=\"\",\"\",N460/$C$460)","v":""},null,{"$f":"IF($C$460=\"\",\"\",P460/$C$460)","v":""},null,{"$f":"IF($C$460=\"\",\"\",R460/$C$460)","v":""},null,{"$f":"IF($C$460=\"\",\"\",T460/$C$460)","v":""},null,{"$f":"IF($C$460=\"\",\"\",V460/$C$460)","v":""},null,{"$f":"IF($C$460=\"\",\"\",X460/$C$460)","v":""},null,{"$f":"IF($C$460=\"\",\"\",Z460/$C$460)","v":""},null,{"$f":"IF($C$460=\"\",\"\",AB460/$C$460)","v":""},null,{"$f":"IF($C$460=\"\",\"\",AD460/$C$460)","v":""},null,{"$f":"IF($C$460=\"\",\"\",AF460/$C$460)","v":""},null,{"$f":"IF($C$460=\"\",\"\",AH460/$C$460)","v":""},null,{"$f":"IF($C$460=\"\",\"\",AJ460/$C$460)","v":""},null,{"$f":"IF($C$460=\"\",\"\",AL460/$C$460)","v":""},null,{"$f":"IF($C$460=\"\",\"\",AN460/$C$460)","v":""},null,{"$f":"IF($C$460=\"\",\"\",AP460/$C$460)","v":""},null,{"$f":"IF($C$460=\"\",\"\",AR460/$C$460)","v":""},null,{"$f":"IF($C$460=\"\",\"\",AT460/$C$460)","v":""},null,{"$f":"IF($C$460=\"\",\"\",AV460/$C$460)","v":""},null,{"$f":"IF($C$460=\"\",\"\",AX460/$C$460)","v":""},null,{"$f":"IF($C$460=\"\",\"\",AZ460/$C$460)","v":""},null,{"$f":"IF($C$460=\"\",\"\",BB460/$C$460)","v":""},null,0]
[null,null,null,null,{"$f":"IF($C$461=\"\",\"\",F461/$C$461)","v":""},null,{"$f":"IF($C$461=\"\",\"\",H461/$C$461)","v":""},null,{"$f":"IF($C$461=\"\",\"\",J461/$C$461)","v":""},null,{"$f":"IF($C$461=\"\",\"\",L461/$C$461)","v":""},null,{"$f":"IF($C$461=\"\",\"\",N461/$C$461)","v":""},null,{"$f":"IF($C$461=\"\",\"\",P461/$C$461)","v":""},null,{"$f":"IF($C$461=\"\",\"\",R461/$C$461)","v":""},null,{"$f":"IF($C$461=\"\",\"\",T461/$C$461)","v":""},null,{"$f":"IF($C$461=\"\",\"\",V461/$C$461)","v":""},null,{"$f":"IF($C$461=\"\",\"\",X461/$C$461)","v":""},null,{"$f":"IF($C$461=\"\",\"\",Z461/$C$461)","v":""},null,{"$f":"IF($C$461=\"\",\"\",AB461/$C$461)","v":""},null,{"$f":"IF($C$461=\"\",\"\",AD461/$C$461)","v":""},null,{"$f":"IF($C$461=\"\",\"\",AF461/$C$461)","v":""},null,{"$f":"IF($C$461=\"\",\"\",AH461/$C$461)","v":""},null,{"$f":"IF($C$461=\"\",\"\",AJ461/$C$461)","v":""},null,{"$f":"IF($C$461=\"\",\"\",AL461/$C$461)","v":""},null,{"$f":"IF($C$461=\"\",\"\",AN461/$C$461)","v":""},null,{"$f":"IF($C$461=\"\",\"\",AP461/$C$461)","v":""},null,{"$f":"IF($C$461=\"\",\"\",AR461/$C$461)","v":""},null,{"$f":"IF($C$461=\"\",\"\",AT461/$C$461)","v":""},null,{"$f":"IF($C$461=\"\",\"\",AV461/$C$461)","v":""},null,{"$f":"IF($C$461=\"\",\"\",AX461/$C$461)","v":""},null,{"$f":"IF($C$461=\"\",\"\",AZ461/$C$461)","v":""},null,{"$f":"IF($C$461=\"\",\"\",BB461/$C$461)","v":""},null,0]
[null,null,null,null,{"$f":"IF($C$462=\"\",\"\",F462/$C$462)","v":""},null,{"$f":"IF($C$462=\"\",\"\",H462/$C$462)","v":""},null,{"$f":"IF($C$462=\"\",\"\",J462/$C$462)","v":""},null,{"$f":"IF($C$462=\"\",\"\",L462/$C$462)","v":""},null,{"$f":"IF($C$462=\"\",\"\",N462/$C$462)","v":""},null,{"$f":"IF($C$462=\"\",\"\",P462/$C$462)","v":""},null,{"$f":"IF($C$462=\"\",\"\",R462/$C$462)","v":""},null,{"$f":"IF($C$462=\"\",\"\",T462/$C$462)","v":""},null,{"$f":"IF($C$462=\"\",\"\",V462/$C$462)","v":""},null,{"$f":"IF($C$462=\"\",\"\",X462/$C$462)","v":""},null,{"$f":"IF($C$462=\"\",\"\",Z462/$C$462)","v":""},null,{"$f":"IF($C$462=\"\",\"\",AB462/$C$462)","v":""},null,{"$f":"IF($C$462=\"\",\"\",AD462/$C$462)","v":""},null,{"$f":"IF($C$462=\"\",\"\",AF462/$C$462)","v":""},null,{"$f":"IF($C$462=\"\",\"\",AH462/$C$462)","v":""},null,{"$f":"IF($C$462=\"\",\"\",AJ462/$C$462)","v":""},null,{"$f":"IF($C$462=\"\",\"\",AL462/$C$462)","v":""},null,{"$f":"IF($C$462=\"\",\"\",AN462/$C$462)","v":""},null,{"$f":"IF($C$462=\"\",\"\",AP462/$C$462)","v":""},null,{"$f":"IF($C$462=\"\",\"\",AR462/$C$462)","v":""},null,{"$f":"IF($C$462=\"\",\"\",AT462/$C$462)","v":""},null,{"$f":"IF($C$462=\"\",\"\",AV462/$C$462)","v":""},null,{"$f":"IF($C$462=\"\",\"\",AX462/$C$462)","v":""},null,{"$f":"IF($C$462=\"\",\"\",AZ462/$C$462)","v":""},null,{"$f":"IF($C$462=\"\",\"\",BB462/$C$462)","v":""},null,0]
[null,null,null,null,{"$f":"IF($C$463=\"\",\"\",F463/$C$463)","v":""},null,{"$f":"IF($C$463=\"\",\"\",H463/$C$463)","v":""},null,{"$f":"IF($C$463=\"\",\"\",J463/$C$463)","v":""},null,{"$f":"IF($C$463=\"\",\"\",L463/$C$463)","v":""},null,{"$f":"IF($C$463=\"\",\"\",N463/$C$463)","v":""},null,{"$f":"IF($C$463=\"\",\"\",P463/$C$463)","v":""},null,{"$f":"IF($C$463=\"\",\"\",R463/$C$463)","v":""},null,{"$f":"IF($C$463=\"\",\"\",T463/$C$463)","v":""},null,{"$f":"IF($C$463=\"\",\"\",V463/$C$463)","v":""},null,{"$f":"IF($C$463=\"\",\"\",X463/$C$463)","v":""},null,{"$f":"IF($C$463=\"\",\"\",Z463/$C$463)","v":""},null,{"$f":"IF($C$463=\"\",\"\",AB463/$C$463)","v":""},null,{"$f":"IF($C$463=\"\",\"\",AD463/$C$463)","v":""},null,{"$f":"IF($C$463=\"\",\"\",AF463/$C$463)","v":""},null,{"$f":"IF($C$463=\"\",\"\",AH463/$C$463)","v":""},null,{"$f":"IF($C$463=\"\",\"\",AJ463/$C$463)","v":""},null,{"$f":"IF($C$463=\"\",\"\",AL463/$C$463)","v":""},null,{"$f":"IF($C$463=\"\",\"\",AN463/$C$463)","v":""},null,{"$f":"IF($C$463=\"\",\"\",AP463/$C$463)","v":""},null,{"$f":"IF($C$463=\"\",\"\",AR463/$C$463)","v":""},null,{"$f":"IF($C$463=\"\",\"\",AT463/$C$463)","v":""},null,{"$f":"IF($C$463=\"\",\"\",AV463/$C$463)","v":""},null,{"$f":"IF($C$463=\"\",\"\",AX463/$C$463)","v":""},null,{"$f":"IF($C$463=\"\",\"\",AZ463/$C$463)","v":""},null,{"$f":"IF($C$463=\"\",\"\",BB463/$C$463)","v":""},null,0]
[null,null,null,null,{"$f":"IF($C$464=\"\",\"\",F464/$C$464)","v":""},null,{"$f":"IF($C$464=\"\",\"\",H464/$C$464)","v":""},null,{"$f":"IF($C$464=\"\",\"\",J464/$C$464)","v":""},null,{"$f":"IF($C$464=\"\",\"\",L464/$C$464)","v":""},null,{"$f":"IF($C$464=\"\",\"\",N464/$C$464)","v":""},null,{"$f":"IF($C$464=\"\",\"\",P464/$C$464)","v":""},null,{"$f":"IF($C$464=\"\",\"\",R464/$C$464)","v":""},null,{"$f":"IF($C$464=\"\",\"\",T464/$C$464)","v":""},null,{"$f":"IF($C$464=\"\",\"\",V464/$C$464)","v":""},null,{"$f":"IF($C$464=\"\",\"\",X464/$C$464)","v":""},null,{"$f":"IF($C$464=\"\",\"\",Z464/$C$464)","v":""},null,{"$f":"IF($C$464=\"\",\"\",AB464/$C$464)","v":""},null,{"$f":"IF($C$464=\"\",\"\",AD464/$C$464)","v":""},null,{"$f":"IF($C$464=\"\",\"\",AF464/$C$464)","v":""},null,{"$f":"IF($C$464=\"\",\"\",AH464/$C$464)","v":""},null,{"$f":"IF($C$464=\"\",\"\",AJ464/$C$464)","v":""},null,{"$f":"IF($C$464=\"\",\"\",AL464/$C$464)","v":""},null,{"$f":"IF($C$464=\"\",\"\",AN464/$C$464)","v":""},null,{"$f":"IF($C$464=\"\",\"\",AP464/$C$464)","v":""},null,{"$f":"IF($C$464=\"\",\"\",AR464/$C$464)","v":""},null,{"$f":"IF($C$464=\"\",\"\",AT464/$C$464)","v":""},null,{"$f":"IF($C$464=\"\",\"\",AV464/$C$464)","v":""},null,{"$f":"IF($C$464=\"\",\"\",AX464/$C$464)","v":""},null,{"$f":"IF($C$464=\"\",\"\",AZ464/$C$464)","v":""},null,{"$f":"IF($C$464=\"\",\"\",BB464/$C$464)","v":""},null,0]
[null,null,null,null,{"$f":"IF($C$465=\"\",\"\",F465/$C$465)","v":""},null,{"$f":"IF($C$465=\"\",\"\",H465/$C$465)","v":""},null,{"$f":"IF($C$465=\"\",\"\",J465/$C$465)","v":""},null,{"$f":"IF($C$465=\"\",\"\",L465/$C$465)","v":""},null,{"$f":"IF($C$465=\"\",\"\",N465/$C$465)","v":""},null,{"$f":"IF($C$465=\"\",\"\",P465/$C$465)","v":""},null,{"$f":"IF($C$465=\"\",\"\",R465/$C$465)","v":""},null,{"$f":"IF($C$465=\"\",\"\",T465/$C$465)","v":""},null,{"$f":"IF($C$465=\"\",\"\",V465/$C$465)","v":""},null,{"$f":"IF($C$465=\"\",\"\",X465/$C$465)","v":""},null,{"$f":"IF($C$465=\"\",\"\",Z465/$C$465)","v":""},null,{"$f":"IF($C$465=\"\",\"\",AB465/$C$465)","v":""},null,{"$f":"IF($C$465=\"\",\"\",AD465/$C$465)","v":""},null,{"$f":"IF($C$465=\"\",\"\",AF465/$C$465)","v":""},null,{"$f":"IF($C$465=\"\",\"\",AH465/$C$465)","v":""},null,{"$f":"IF($C$465=\"\",\"\",AJ465/$C$465)","v":""},null,{"$f":"IF($C$465=\"\",\"\",AL465/$C$465)","v":""},null,{"$f":"IF($C$465=\"\",\"\",AN465/$C$465)","v":""},null,{"$f":"IF($C$465=\"\",\"\",AP465/$C$465)","v":""},null,{"$f":"IF($C$465=\"\",\"\",AR465/$C$465)","v":""},null,{"$f":"IF($C$465=\"\",\"\",AT465/$C$465)","v":""},null,{"$f":"IF($C$465=\"\",\"\",AV465/$C$465)","v":""},null,{"$f":"IF($C$465=\"\",\"\",AX465/$C$465)","v":""},null,{"$f":"IF($C$465=\"\",\"\",AZ465/$C$465)","v":""},null,{"$f":"IF($C$465=\"\",\"\",BB465/$C$465)","v":""},null,0]
[null,null,null,null,{"$f":"IF($C$466=\"\",\"\",F466/$C$466)","v":""},null,{"$f":"IF($C$466=\"\",\"\",H466/$C$466)","v":""},null,{"$f":"IF($C$466=\"\",\"\",J466/$C$466)","v":""},null,{"$f":"IF($C$466=\"\",\"\",L466/$C$466)","v":""},null,{"$f":"IF($C$466=\"\",\"\",N466/$C$466)","v":""},null,{"$f":"IF($C$466=\"\",\"\",P466/$C$466)","v":""},null,{"$f":"IF($C$466=\"\",\"\",R466/$C$466)","v":""},null,{"$f":"IF($C$466=\"\",\"\",T466/$C$466)","v":""},null,{"$f":"IF($C$466=\"\",\"\",V466/$C$466)","v":""},null,{"$f":"IF($C$466=\"\",\"\",X466/$C$466)","v":""},null,{"$f":"IF($C$466=\"\",\"\",Z466/$C$466)","v":""},null,{"$f":"IF($C$466=\"\",\"\",AB466/$C$466)","v":""},null,{"$f":"IF($C$466=\"\",\"\",AD466/$C$466)","v":""},null,{"$f":"IF($C$466=\"\",\"\",AF466/$C$466)","v":""},null,{"$f":"IF($C$466=\"\",\"\",AH466/$C$466)","v":""},null,{"$f":"IF($C$466=\"\",\"\",AJ466/$C$466)","v":""},null,{"$f":"IF($C$466=\"\",\"\",AL466/$C$466)","v":""},null,{"$f":"IF($C$466=\"\",\"\",AN466/$C$466)","v":""},null,{"$f":"IF($C$466=\"\",\"\",AP466/$C$466)","v":""},null,{"$f":"IF($C$466=\"\",\"\",AR466/$C$466)","v":""},null,{"$f":"IF($C$466=\"\",\"\",AT466/$C$466)","v":""},null,{"$f":"IF($C$466=\"\",\"\",AV466/$C$466)","v":""},null,{"$f":"IF($C$466=\"\",\"\",AX466/$C$466)","v":""},null,{"$f":"IF($C$466=\"\",\"\",AZ466/$C$466)","v":""},null,{"$f":"IF($C$466=\"\",\"\",BB466/$C$466)","v":""},null,0]
[null,null,null,null,{"$f":"IF($C$467=\"\",\"\",F467/$C$467)","v":""},null,{"$f":"IF($C$467=\"\",\"\",H467/$C$467)","v":""},null,{"$f":"IF($C$467=\"\",\"\",J467/$C$467)","v":""},null,{"$f":"IF($C$467=\"\",\"\",L467/$C$467)","v":""},null,{"$f":"IF($C$467=\"\",\"\",N467/$C$467)","v":""},null,{"$f":"IF($C$467=\"\",\"\",P467/$C$467)","v":""},null,{"$f":"IF($C$467=\"\",\"\",R467/$C$467)","v":""},null,{"$f":"IF($C$467=\"\",\"\",T467/$C$467)","v":""},null,{"$f":"IF($C$467=\"\",\"\",V467/$C$467)","v":""},null,{"$f":"IF($C$467=\"\",\"\",X467/$C$467)","v":""},null,{"$f":"IF($C$467=\"\",\"\",Z467/$C$467)","v":""},null,{"$f":"IF($C$467=\"\",\"\",AB467/$C$467)","v":""},null,{"$f":"IF($C$467=\"\",\"\",AD467/$C$467)","v":""},null,{"$f":"IF($C$467=\"\",\"\",AF467/$C$467)","v":""},null,{"$f":"IF($C$467=\"\",\"\",AH467/$C$467)","v":""},null,{"$f":"IF($C$467=\"\",\"\",AJ467/$C$467)","v":""},null,{"$f":"IF($C$467=\"\",\"\",AL467/$C$467)","v":""},null,{"$f":"IF($C$467=\"\",\"\",AN467/$C$467)","v":""},null,{"$f":"IF($C$467=\"\",\"\",AP467/$C$467)","v":""},null,{"$f":"IF($C$467=\"\",\"\",AR467/$C$467)","v":""},null,{"$f":"IF($C$467=\"\",\"\",AT467/$C$467)","v":""},null,{"$f":"IF($C$467=\"\",\"\",AV467/$C$467)","v":""},null,{"$f":"IF($C$467=\"\",\"\",AX467/$C$467)","v":""},null,{"$f":"IF($C$467=\"\",\"\",AZ467/$C$467)","v":""},null,{"$f":"IF($C$467=\"\",\"\",BB467/$C$467)","v":""},null,0]
[null,null,null,null,{"$f":"IF($C$468=\"\",\"\",F468/$C$468)","v":""},null,{"$f":"IF($C$468=\"\",\"\",H468/$C$468)","v":""},null,{"$f":"IF($C$468=\"\",\"\",J468/$C$468)","v":""},null,{"$f":"IF($C$468=\"\",\"\",L468/$C$468)","v":""},null,{"$f":"IF($C$468=\"\",\"\",N468/$C$468)","v":""},null,{"$f":"IF($C$468=\"\",\"\",P468/$C$468)","v":""},null,{"$f":"IF($C$468=\"\",\"\",R468/$C$468)","v":""},null,{"$f":"IF($C$468=\"\",\"\",T468/$C$468)","v":""},null,{"$f":"IF($C$468=\"\",\"\",V468/$C$468)","v":""},null,{"$f":"IF($C$468=\"\",\"\",X468/$C$468)","v":""},null,{"$f":"IF($C$468=\"\",\"\",Z468/$C$468)","v":""},null,{"$f":"IF($C$468=\"\",\"\",AB468/$C$468)","v":""},null,{"$f":"IF($C$468=\"\",\"\",AD468/$C$468)","v":""},null,{"$f":"IF($C$468=\"\",\"\",AF468/$C$468)","v":""},null,{"$f":"IF($C$468=\"\",\"\",AH468/$C$468)","v":""},null,{"$f":"IF($C$468=\"\",\"\",AJ468/$C$468)","v":""},null,{"$f":"IF($C$468=\"\",\"\",AL468/$C$468)","v":""},null,{"$f":"IF($C$468=\"\",\"\",AN468/$C$468)","v":""},null,{"$f":"IF($C$468=\"\",\"\",AP468/$C$468)","v":""},null,{"$f":"IF($C$468=\"\",\"\",AR468/$C$468)","v":""},null,{"$f":"IF($C$468=\"\",\"\",AT468/$C$468)","v":""},null,{"$f":"IF($C$468=\"\",\"\",AV468/$C$468)","v":""},null,{"$f":"IF($C$468=\"\",\"\",AX468/$C$468)","v":""},null,{"$f":"IF($C$468=\"\",\"\",AZ468/$C$468)","v":""},null,{"$f":"IF($C$468=\"\",\"\",BB468/$C$468)","v":""},null,0]
[null,null,null,null,{"$f":"IF($C$469=\"\",\"\",F469/$C$469)","v":""},null,{"$f":"IF($C$469=\"\",\"\",H469/$C$469)","v":""},null,{"$f":"IF($C$469=\"\",\"\",J469/$C$469)","v":""},null,{"$f":"IF($C$469=\"\",\"\",L469/$C$469)","v":""},null,{"$f":"IF($C$469=\"\",\"\",N469/$C$469)","v":""},null,{"$f":"IF($C$469=\"\",\"\",P469/$C$469)","v":""},null,{"$f":"IF($C$469=\"\",\"\",R469/$C$469)","v":""},null,{"$f":"IF($C$469=\"\",\"\",T469/$C$469)","v":""},null,{"$f":"IF($C$469=\"\",\"\",V469/$C$469)","v":""},null,{"$f":"IF($C$469=\"\",\"\",X469/$C$469)","v":""},null,{"$f":"IF($C$469=\"\",\"\",Z469/$C$469)","v":""},null,{"$f":"IF($C$469=\"\",\"\",AB469/$C$469)","v":""},null,{"$f":"IF($C$469=\"\",\"\",AD469/$C$469)","v":""},null,{"$f":"IF($C$469=\"\",\"\",AF469/$C$469)","v":""},null,{"$f":"IF($C$469=\"\",\"\",AH469/$C$469)","v":""},null,{"$f":"IF($C$469=\"\",\"\",AJ469/$C$469)","v":""},null,{"$f":"IF($C$469=\"\",\"\",AL469/$C$469)","v":""},null,{"$f":"IF($C$469=\"\",\"\",AN469/$C$469)","v":""},null,{"$f":"IF($C$469=\"\",\"\",AP469/$C$469)","v":""},null,{"$f":"IF($C$469=\"\",\"\",AR469/$C$469)","v":""},null,{"$f":"IF($C$469=\"\",\"\",AT469/$C$469)","v":""},null,{"$f":"IF($C$469=\"\",\"\",AV469/$C$469)","v":""},null,{"$f":"IF($C$469=\"\",\"\",AX469/$C$469)","v":""},null,{"$f":"IF($C$469=\"\",\"\",AZ469/$C$469)","v":""},null,{"$f":"IF($C$469=\"\",\"\",BB469/$C$469)","v":""},null,0]
[null,null,null,null,{"$f":"IF($C$470=\"\",\"\",F470/$C$470)","v":""},null,{"$f":"IF($C$470=\"\",\"\",H470/$C$470)","v":""},null,{"$f":"IF($C$470=\"\",\"\",J470/$C$470)","v":""},null,{"$f":"IF($C$470=\"\",\"\",L470/$C$470)","v":""},null,{"$f":"IF($C$470=\"\",\"\",N470/$C$470)","v":""},null,{"$f":"IF($C$470=\"\",\"\",P470/$C$470)","v":""},null,{"$f":"IF($C$470=\"\",\"\",R470/$C$470)","v":""},null,{"$f":"IF($C$470=\"\",\"\",T470/$C$470)","v":""},null,{"$f":"IF($C$470=\"\",\"\",V470/$C$470)","v":""},null,{"$f":"IF($C$470=\"\",\"\",X470/$C$470)","v":""},null,{"$f":"IF($C$470=\"\",\"\",Z470/$C$470)","v":""},null,{"$f":"IF($C$470=\"\",\"\",AB470/$C$470)","v":""},null,{"$f":"IF($C$470=\"\",\"\",AD470/$C$470)","v":""},null,{"$f":"IF($C$470=\"\",\"\",AF470/$C$470)","v":""},null,{"$f":"IF($C$470=\"\",\"\",AH470/$C$470)","v":""},null,{"$f":"IF($C$470=\"\",\"\",AJ470/$C$470)","v":""},null,{"$f":"IF($C$470=\"\",\"\",AL470/$C$470)","v":""},null,{"$f":"IF($C$470=\"\",\"\",AN470/$C$470)","v":""},null,{"$f":"IF($C$470=\"\",\"\",AP470/$C$470)","v":""},null,{"$f":"IF($C$470=\"\",\"\",AR470/$C$470)","v":""},null,{"$f":"IF($C$470=\"\",\"\",AT470/$C$470)","v":""},null,{"$f":"IF($C$470=\"\",\"\",AV470/$C$470)","v":""},null,{"$f":"IF($C$470=\"\",\"\",AX470/$C$470)","v":""},null,{"$f":"IF($C$470=\"\",\"\",AZ470/$C$470)","v":""},null,{"$f":"IF($C$470=\"\",\"\",BB470/$C$470)","v":""},null,0]
[null,null,null,null,{"$f":"IF($C$471=\"\",\"\",F471/$C$471)","v":""},null,{"$f":"IF($C$471=\"\",\"\",H471/$C$471)","v":""},null,{"$f":"IF($C$471=\"\",\"\",J471/$C$471)","v":""},null,{"$f":"IF($C$471=\"\",\"\",L471/$C$471)","v":""},null,{"$f":"IF($C$471=\"\",\"\",N471/$C$471)","v":""},null,{"$f":"IF($C$471=\"\",\"\",P471/$C$471)","v":""},null,{"$f":"IF($C$471=\"\",\"\",R471/$C$471)","v":""},null,{"$f":"IF($C$471=\"\",\"\",T471/$C$471)","v":""},null,{"$f":"IF($C$471=\"\",\"\",V471/$C$471)","v":""},null,{"$f":"IF($C$471=\"\",\"\",X471/$C$471)","v":""},null,{"$f":"IF($C$471=\"\",\"\",Z471/$C$471)","v":""},null,{"$f":"IF($C$471=\"\",\"\",AB471/$C$471)","v":""},null,{"$f":"IF($C$471=\"\",\"\",AD471/$C$471)","v":""},null,{"$f":"IF($C$471=\"\",\"\",AF471/$C$471)","v":""},null,{"$f":"IF($C$471=\"\",\"\",AH471/$C$471)","v":""},null,{"$f":"IF($C$471=\"\",\"\",AJ471/$C$471)","v":""},null,{"$f":"IF($C$471=\"\",\"\",AL471/$C$471)","v":""},null,{"$f":"IF($C$471=\"\",\"\",AN471/$C$471)","v":""},null,{"$f":"IF($C$471=\"\",\"\",AP471/$C$471)","v":""},null,{"$f":"IF($C$471=\"\",\"\",AR471/$C$471)","v":""},null,{"$f":"IF($C$471=\"\",\"\",AT471/$C$471)","v":""},null,{"$f":"IF($C$471=\"\",\"\",AV471/$C$471)","v":""},null,{"$f":"IF($C$471=\"\",\"\",AX471/$C$471)","v":""},null,{"$f":"IF($C$471=\"\",\"\",AZ471/$C$471)","v":""},null,{"$f":"IF($C$471=\"\",\"\",BB471/$C$471)","v":""},null,0]
[null,null,null,null,{"$f":"IF($C$472=\"\",\"\",F472/$C$472)","v":""},null,{"$f":"IF($C$472=\"\",\"\",H472/$C$472)","v":""},null,{"$f":"IF($C$472=\"\",\"\",J472/$C$472)","v":""},null,{"$f":"IF($C$472=\"\",\"\",L472/$C$472)","v":""},null,{"$f":"IF($C$472=\"\",\"\",N472/$C$472)","v":""},null,{"$f":"IF($C$472=\"\",\"\",P472/$C$472)","v":""},null,{"$f":"IF($C$472=\"\",\"\",R472/$C$472)","v":""},null,{"$f":"IF($C$472=\"\",\"\",T472/$C$472)","v":""},null,{"$f":"IF($C$472=\"\",\"\",V472/$C$472)","v":""},null,{"$f":"IF($C$472=\"\",\"\",X472/$C$472)","v":""},null,{"$f":"IF($C$472=\"\",\"\",Z472/$C$472)","v":""},null,{"$f":"IF($C$472=\"\",\"\",AB472/$C$472)","v":""},null,{"$f":"IF($C$472=\"\",\"\",AD472/$C$472)","v":""},null,{"$f":"IF($C$472=\"\",\"\",AF472/$C$472)","v":""},null,{"$f":"IF($C$472=\"\",\"\",AH472/$C$472)","v":""},null,{"$f":"IF($C$472=\"\",\"\",AJ472/$C$472)","v":""},null,{"$f":"IF($C$472=\"\",\"\",AL472/$C$472)","v":""},null,{"$f":"IF($C$472=\"\",\"\",AN472/$C$472)","v":""},null,{"$f":"IF($C$472=\"\",\"\",AP472/$C$472)","v":""},null,{"$f":"IF($C$472=\"\",\"\",AR472/$C$472)","v":""},null,{"$f":"IF($C$472=\"\",\"\",AT472/$C$472)","v":""},null,{"$f":"IF($C$472=\"\",\"\",AV472/$C$472)","v":""},null,{"$f":"IF($C$472=\"\",\"\",AX472/$C$472)","v":""},null,{"$f":"IF($C$472=\"\",\"\",AZ472/$C$472)","v":""},null,{"$f":"IF($C$472=\"\",\"\",BB472/$C$472)","v":""},null,0]
[null,null,null,null,{"$f":"IF($C$473=\"\",\"\",F473/$C$473)","v":""},null,{"$f":"IF($C$473=\"\",\"\",H473/$C$473)","v":""},null,{"$f":"IF($C$473=\"\",\"\",J473/$C$473)","v":""},null,{"$f":"IF($C$473=\"\",\"\",L473/$C$473)","v":""},null,{"$f":"IF($C$473=\"\",\"\",N473/$C$473)","v":""},null,{"$f":"IF($C$473=\"\",\"\",P473/$C$473)","v":""},null,{"$f":"IF($C$473=\"\",\"\",R473/$C$473)","v":""},null,{"$f":"IF($C$473=\"\",\"\",T473/$C$473)","v":""},null,{"$f":"IF($C$473=\"\",\"\",V473/$C$473)","v":""},null,{"$f":"IF($C$473=\"\",\"\",X473/$C$473)","v":""},null,{"$f":"IF($C$473=\"\",\"\",Z473/$C$473)","v":""},null,{"$f":"IF($C$473=\"\",\"\",AB473/$C$473)","v":""},null,{"$f":"IF($C$473=\"\",\"\",AD473/$C$473)","v":""},null,{"$f":"IF($C$473=\"\",\"\",AF473/$C$473)","v":""},null,{"$f":"IF($C$473=\"\",\"\",AH473/$C$473)","v":""},null,{"$f":"IF($C$473=\"\",\"\",AJ473/$C$473)","v":""},null,{"$f":"IF($C$473=\"\",\"\",AL473/$C$473)","v":""},null,{"$f":"IF($C$473=\"\",\"\",AN473/$C$473)","v":""},null,{"$f":"IF($C$473=\"\",\"\",AP473/$C$473)","v":""},null,{"$f":"IF($C$473=\"\",\"\",AR473/$C$473)","v":""},null,{"$f":"IF($C$473=\"\",\"\",AT473/$C$473)","v":""},null,{"$f":"IF($C$473=\"\",\"\",AV473/$C$473)","v":""},null,{"$f":"IF($C$473=\"\",\"\",AX473/$C$473)","v":""},null,{"$f":"IF($C$473=\"\",\"\",AZ473/$C$473)","v":""},null,{"$f":"IF($C$473=\"\",\"\",BB473/$C$473)","v":""},null,{"$f":"SUM(BB473,AZ473,AX473,AV473,AT473,AR473,AP473,AN473,AL473,AJ473,AH473,AF473,AD473,AB473,Z473,X473,V473,T473,R473,P473,N473,L473,J473,H473,F473)","v":0}]
["TOTAL HOURS",null,null,null,null,{"$f":"SUM(F444:F473)","v":0},null,{"$f":"SUM(H444:H473)","v":0},null,{"$f":"SUM(J444:J473)","v":0},null,{"$f":"SUM(L444:L473)","v":0},null,{"$f":"SUM(N444:N473)","v":0},null,{"$f":"SUM(P444:P473)","v":0},null,{"$f":"SUM(R444:R473)","v":0},null,{"$f":"SUM(T444:T473)","v":0},null,{"$f":"SUM(V444:V473)","v":0},null,{"$f":"SUM(X444:X473)","v":0},null,{"$f":"SUM(Z444:Z473)","v":0},null,{"$f":"SUM(AB444:AB473)","v":0},null,{"$f":"SUM(AD444:AD473)","v":0},null,{"$f":"SUM(AF444:AF473)","v":0},null,{"$f":"SUM(AH444:AH473)","v":0},null,{"$f":"SUM(AJ444:AJ473)","v":0},null,{"$f":"SUM(AL444:AL473)","v":0},null,{"$f":"SUM(AN444:AN473)","v":0},null,{"$f":"SUM(AP444:AP473)","v":0},null,{"$f":"SUM(AR444:AR473)","v":0},null,{"$f":"SUM(AT444:AT473)","v":0},null,{"$f":"SUM(AV444:AV473)","v":0},null,{"$f":"SUM(AX444:AX473)","v":0},null,{"$f":"SUM(AZ444:AZ473)","v":0},null,{"$f":"SUM(BB444:BB473)","v":0},{"$f":"SUM(E474:BB474)","v":0}]
["TOTAL WORKDAYS",null,null,null,null,{"$f":"F474/8","v":0},null,{"$f":"H474/8","v":0},null,{"$f":"J474/8","v":0},null,{"$f":"L474/8","v":0},null,{"$f":"N474/8","v":0},null,{"$f":"P474/8","v":0},null,{"$f":"R474/8","v":0},null,{"$f":"T474/8","v":0},null,{"$f":"V474/8","v":0},null,{"$f":"X474/8","v":0},null,{"$f":"Z474/8","v":0},null,{"$f":"AB474/8","v":0},null,{"$f":"AD474/8","v":0},null,0,null,{"$f":"AH474/8","v":0},null,0,null,{"$f":"AL474/8","v":0},null,0,null,{"$f":"AP474/8","v":0},null,0,null,{"$f":"AT474/8","v":0},null,{"$f":"AV474/8","v":0},null,{"$f":"AX474/8","v":0},null,{"$f":"AZ474/8","v":0},null,{"$f":"BB474/8","v":0},{"$f":"SUM(E475:BB475)","v":0}]
["TOTAL RAW LABOR",null,null,null,null,{"$f":"$E$13*F474","v":0},null,{"$f":"$G$13*H474","v":0},null,{"$f":"$I$13*J474","v":0},null,{"$f":"$K$13*L474","v":0},null,{"$f":"$M$13*N474","v":0},null,{"$f":"$O$13*P474","v":0},null,{"$f":"$Q$13*R474","v":0},null,{"$f":"$S$13*T474","v":0},null,{"$f":"$U$13*V474","v":0},null,{"$f":"$W$13*X474","v":0},null,{"$f":"$Y$13*Z474","v":0},null,{"$f":"$AA$13*AB474","v":0},null,{"$f":"$AC$13*AD474","v":0},null,{"$f":"$AC$13*AF474","v":0},null,{"$f":"$AC$13*AH474","v":0},null,{"$f":"$AC$13*AJ474","v":0},null,{"$f":"$AC$13*AL474","v":0},null,{"$f":"$AC$13*AN474","v":0},null,{"$f":"$AC$13*AP474","v":0},null,{"$f":"$AC$13*AR474","v":0},null,{"$f":"$AC$13*AT474","v":0},null,{"$f":"$AC$13*AV474","v":0},null,{"$f":"$AC$13*AX474","v":0},null,{"$f":"$AC$13*AZ474","v":0},null,{"$f":"$AC$13*BB474","v":0},{"$f":"SUM(E476:BB476)","v":0}]
["Task 18.0     ","REPLACE FIELD WITH CATEGORY NAME OF YOUR CHOOSING HERE",null,null,null,null,null,null,null,null,null,null,null,null,null,null,null,null,null,null,null,null,null,null,null,null,null,null,null,null,null,null,null,null,null,null,null,null,null,null,null,null,null,null,null,null,null,null,null,null,null,null,null,null,{"$f":"IF(B477=\"REPLACE FIELD WITH CATEGORY NAME OF YOUR CHOOSING HERE\",0,\"\")","v":0}]
[null,null,null,null,{"$f":"IF($C$478=\"\",\"\",F478/$C$478)","v":""},null,{"$f":"IF($C$478=\"\",\"\",H478/$C$478)","v":""},null,{"$f":"IF($C$478=\"\",\"\",J478/$C$478)","v":""},null,{"$f":"IF($C$478=\"\",\"\",L478/$C$478)","v":""},null,{"$f":"IF($C$478=\"\",\"\",N478/$C$478)","v":""},null,{"$f":"IF($C$478=\"\",\"\",P478/$C$478)","v":""},null,{"$f":"IF($C$478=\"\",\"\",R478/$C$478)","v":""},null,{"$f":"IF($C$478=\"\",\"\",T478/$C$478)","v":""},null,{"$f":"IF($C$478=\"\",\"\",V478/$C$478)","v":""},null,{"$f":"IF($C$478=\"\",\"\",X478/$C$478)","v":""},null,{"$f":"IF($C$478=\"\",\"\",Z478/$C$478)","v":""},null,{"$f":"IF($C$478=\"\",\"\",AB478/$C$478)","v":""},null,{"$f":"IF($C$478=\"\",\"\",AD478/$C$478)","v":""},null,{"$f":"IF($C$478=\"\",\"\",AF478/$C$478)","v":""},null,{"$f":"IF($C$478=\"\",\"\",AH478/$C$478)","v":""},null,{"$f":"IF($C$478=\"\",\"\",AJ478/$C$478)","v":""},null,{"$f":"IF($C$478=\"\",\"\",AL478/$C$478)","v":""},null,{"$f":"IF($C$478=\"\",\"\",AN478/$C$478)","v":""},null,{"$f":"IF($C$478=\"\",\"\",AP478/$C$478)","v":""},null,{"$f":"IF($C$478=\"\",\"\",AR478/$C$478)","v":""},null,{"$f":"IF($C$478=\"\",\"\",AT478/$C$478)","v":""},null,{"$f":"IF($C$478=\"\",\"\",AV478/$C$478)","v":""},null,{"$f":"IF($C$478=\"\",\"\",AX478/$C$478)","v":""},null,{"$f":"IF($C$478=\"\",\"\",AZ478/$C$478)","v":""},null,{"$f":"IF($C$478=\"\",\"\",BB478/$C$478)","v":""},null,{"$f":"SUM(BB478,AZ478,AX478,AV478,AT478,AR478,AP478,AN478,AL478,AJ478,AH478,AF478,AD478,AB478,Z478,X478,V478,T478,R478,P478,N478,L478,J478,H478,F478)","v":0}]
[null,null,null,null,{"$f":"IF($C$479=\"\",\"\",F479/$C$479)","v":""},null,{"$f":"IF($C$479=\"\",\"\",H479/$C$479)","v":""},null,{"$f":"IF($C$479=\"\",\"\",J479/$C$479)","v":""},null,{"$f":"IF($C$479=\"\",\"\",L479/$C$479)","v":""},null,{"$f":"IF($C$479=\"\",\"\",N479/$C$479)","v":""},null,{"$f":"IF($C$479=\"\",\"\",P479/$C$479)","v":""},null,{"$f":"IF($C$479=\"\",\"\",R479/$C$479)","v":""},null,{"$f":"IF($C$479=\"\",\"\",T479/$C$479)","v":""},null,{"$f":"IF($C$479=\"\",\"\",V479/$C$479)","v":""},null,{"$f":"IF($C$479=\"\",\"\",X479/$C$479)","v":""},null,{"$f":"IF($C$479=\"\",\"\",Z479/$C$479)","v":""},null,{"$f":"IF($C$479=\"\",\"\",AB479/$C$479)","v":""},null,{"$f":"IF($C$479=\"\",\"\",AD479/$C$479)","v":""},null,{"$f":"IF($C$479=\"\",\"\",AF479/$C$479)","v":""},null,{"$f":"IF($C$479=\"\",\"\",AH479/$C$479)","v":""},null,{"$f":"IF($C$479=\"\",\"\",AJ479/$C$479)","v":""},null,{"$f":"IF($C$479=\"\",\"\",AL479/$C$479)","v":""},null,{"$f":"IF($C$479=\"\",\"\",AN479/$C$479)","v":""},null,{"$f":"IF($C$479=\"\",\"\",AP479/$C$479)","v":""},null,{"$f":"IF($C$479=\"\",\"\",AR479/$C$479)","v":""},null,{"$f":"IF($C$479=\"\",\"\",AT479/$C$479)","v":""},null,{"$f":"IF($C$479=\"\",\"\",AV479/$C$479)","v":""},null,{"$f":"IF($C$479=\"\",\"\",AX479/$C$479)","v":""},null,{"$f":"IF($C$479=\"\",\"\",AZ479/$C$479)","v":""},null,{"$f":"IF($C$479=\"\",\"\",BB479/$C$479)","v":""},null,0]
[null,null,null,null,{"$f":"IF($C$480=\"\",\"\",F480/$C$480)","v":""},null,{"$f":"IF($C$480=\"\",\"\",H480/$C$480)","v":""},null,{"$f":"IF($C$480=\"\",\"\",J480/$C$480)","v":""},null,{"$f":"IF($C$480=\"\",\"\",L480/$C$480)","v":""},null,{"$f":"IF($C$480=\"\",\"\",N480/$C$480)","v":""},null,{"$f":"IF($C$480=\"\",\"\",P480/$C$480)","v":""},null,{"$f":"IF($C$480=\"\",\"\",R480/$C$480)","v":""},null,{"$f":"IF($C$480=\"\",\"\",T480/$C$480)","v":""},null,{"$f":"IF($C$480=\"\",\"\",V480/$C$480)","v":""},null,{"$f":"IF($C$480=\"\",\"\",X480/$C$480)","v":""},null,{"$f":"IF($C$480=\"\",\"\",Z480/$C$480)","v":""},null,{"$f":"IF($C$480=\"\",\"\",AB480/$C$480)","v":""},null,{"$f":"IF($C$480=\"\",\"\",AD480/$C$480)","v":""},null,{"$f":"IF($C$480=\"\",\"\",AF480/$C$480)","v":""},null,{"$f":"IF($C$480=\"\",\"\",AH480/$C$480)","v":""},null,{"$f":"IF($C$480=\"\",\"\",AJ480/$C$480)","v":""},null,{"$f":"IF($C$480=\"\",\"\",AL480/$C$480)","v":""},null,{"$f":"IF($C$480=\"\",\"\",AN480/$C$480)","v":""},null,{"$f":"IF($C$480=\"\",\"\",AP480/$C$480)","v":""},null,{"$f":"IF($C$480=\"\",\"\",AR480/$C$480)","v":""},null,{"$f":"IF($C$480=\"\",\"\",AT480/$C$480)","v":""},null,{"$f":"IF($C$480=\"\",\"\",AV480/$C$480)","v":""},null,{"$f":"IF($C$480=\"\",\"\",AX480/$C$480)","v":""},null,{"$f":"IF($C$480=\"\",\"\",AZ480/$C$480)","v":""},null,{"$f":"IF($C$480=\"\",\"\",BB480/$C$480)","v":""},null,0]
[null,null,null,null,{"$f":"IF($C$481=\"\",\"\",F481/$C$481)","v":""},null,{"$f":"IF($C$481=\"\",\"\",H481/$C$481)","v":""},null,{"$f":"IF($C$481=\"\",\"\",J481/$C$481)","v":""},null,{"$f":"IF($C$481=\"\",\"\",L481/$C$481)","v":""},null,{"$f":"IF($C$481=\"\",\"\",N481/$C$481)","v":""},null,{"$f":"IF($C$481=\"\",\"\",P481/$C$481)","v":""},null,{"$f":"IF($C$481=\"\",\"\",R481/$C$481)","v":""},null,{"$f":"IF($C$481=\"\",\"\",T481/$C$481)","v":""},null,{"$f":"IF($C$481=\"\",\"\",V481/$C$481)","v":""},null,{"$f":"IF($C$481=\"\",\"\",X481/$C$481)","v":""},null,{"$f":"IF($C$481=\"\",\"\",Z481/$C$481)","v":""},null,{"$f":"IF($C$481=\"\",\"\",AB481/$C$481)","v":""},null,{"$f":"IF($C$481=\"\",\"\",AD481/$C$481)","v":""},null,{"$f":"IF($C$481=\"\",\"\",AF481/$C$481)","v":""},null,{"$f":"IF($C$481=\"\",\"\",AH481/$C$481)","v":""},null,{"$f":"IF($C$481=\"\",\"\",AJ481/$C$481)","v":""},null,{"$f":"IF($C$481=\"\",\"\",AL481/$C$481)","v":""},null,{"$f":"IF($C$481=\"\",\"\",AN481/$C$481)","v":""},null,{"$f":"IF($C$481=\"\",\"\",AP481/$C$481)","v":""},null,{"$f":"IF($C$481=\"\",\"\",AR481/$C$481)","v":""},null,{"$f":"IF($C$481=\"\",\"\",AT481/$C$481)","v":""},null,{"$f":"IF($C$481=\"\",\"\",AV481/$C$481)","v":""},null,{"$f":"IF($C$481=\"\",\"\",AX481/$C$481)","v":""},null,{"$f":"IF($C$481=\"\",\"\",AZ481/$C$481)","v":""},null,{"$f":"IF($C$481=\"\",\"\",BB481/$C$481)","v":""},null,0]
[null,null,null,null,{"$f":"IF($C$482=\"\",\"\",F482/$C$482)","v":""},null,{"$f":"IF($C$482=\"\",\"\",H482/$C$482)","v":""},null,{"$f":"IF($C$482=\"\",\"\",J482/$C$482)","v":""},null,{"$f":"IF($C$482=\"\",\"\",L482/$C$482)","v":""},null,{"$f":"IF($C$482=\"\",\"\",N482/$C$482)","v":""},null,{"$f":"IF($C$482=\"\",\"\",P482/$C$482)","v":""},null,{"$f":"IF($C$482=\"\",\"\",R482/$C$482)","v":""},null,{"$f":"IF($C$482=\"\",\"\",T482/$C$482)","v":""},null,{"$f":"IF($C$482=\"\",\"\",V482/$C$482)","v":""},null,{"$f":"IF($C$482=\"\",\"\",X482/$C$482)","v":""},null,{"$f":"IF($C$482=\"\",\"\",Z482/$C$482)","v":""},null,{"$f":"IF($C$482=\"\",\"\",AB482/$C$482)","v":""},null,{"$f":"IF($C$482=\"\",\"\",AD482/$C$482)","v":""},null,{"$f":"IF($C$482=\"\",\"\",AF482/$C$482)","v":""},null,{"$f":"IF($C$482=\"\",\"\",AH482/$C$482)","v":""},null,{"$f":"IF($C$482=\"\",\"\",AJ482/$C$482)","v":""},null,{"$f":"IF($C$482=\"\",\"\",AL482/$C$482)","v":""},null,{"$f":"IF($C$482=\"\",\"\",AN482/$C$482)","v":""},null,{"$f":"IF($C$482=\"\",\"\",AP482/$C$482)","v":""},null,{"$f":"IF($C$482=\"\",\"\",AR482/$C$482)","v":""},null,{"$f":"IF($C$482=\"\",\"\",AT482/$C$482)","v":""},null,{"$f":"IF($C$482=\"\",\"\",AV482/$C$482)","v":""},null,{"$f":"IF($C$482=\"\",\"\",AX482/$C$482)","v":""},null,{"$f":"IF($C$482=\"\",\"\",AZ482/$C$482)","v":""},null,{"$f":"IF($C$482=\"\",\"\",BB482/$C$482)","v":""},null,0]
[null,null,null,null,{"$f":"IF($C$483=\"\",\"\",F483/$C$483)","v":""},null,{"$f":"IF($C$483=\"\",\"\",H483/$C$483)","v":""},null,{"$f":"IF($C$483=\"\",\"\",J483/$C$483)","v":""},null,{"$f":"IF($C$483=\"\",\"\",L483/$C$483)","v":""},null,{"$f":"IF($C$483=\"\",\"\",N483/$C$483)","v":""},null,{"$f":"IF($C$483=\"\",\"\",P483/$C$483)","v":""},null,{"$f":"IF($C$483=\"\",\"\",R483/$C$483)","v":""},null,{"$f":"IF($C$483=\"\",\"\",T483/$C$483)","v":""},null,{"$f":"IF($C$483=\"\",\"\",V483/$C$483)","v":""},null,{"$f":"IF($C$483=\"\",\"\",X483/$C$483)","v":""},null,{"$f":"IF($C$483=\"\",\"\",Z483/$C$483)","v":""},null,{"$f":"IF($C$483=\"\",\"\",AB483/$C$483)","v":""},null,{"$f":"IF($C$483=\"\",\"\",AD483/$C$483)","v":""},null,{"$f":"IF($C$483=\"\",\"\",AF483/$C$483)","v":""},null,{"$f":"IF($C$483=\"\",\"\",AH483/$C$483)","v":""},null,{"$f":"IF($C$483=\"\",\"\",AJ483/$C$483)","v":""},null,{"$f":"IF($C$483=\"\",\"\",AL483/$C$483)","v":""},null,{"$f":"IF($C$483=\"\",\"\",AN483/$C$483)","v":""},null,{"$f":"IF($C$483=\"\",\"\",AP483/$C$483)","v":""},null,{"$f":"IF($C$483=\"\",\"\",AR483/$C$483)","v":""},null,{"$f":"IF($C$483=\"\",\"\",AT483/$C$483)","v":""},null,{"$f":"IF($C$483=\"\",\"\",AV483/$C$483)","v":""},null,{"$f":"IF($C$483=\"\",\"\",AX483/$C$483)","v":""},null,{"$f":"IF($C$483=\"\",\"\",AZ483/$C$483)","v":""},null,{"$f":"IF($C$483=\"\",\"\",BB483/$C$483)","v":""},null,0]
[null,null,null,null,{"$f":"IF($C$484=\"\",\"\",F484/$C$484)","v":""},null,{"$f":"IF($C$484=\"\",\"\",H484/$C$484)","v":""},null,{"$f":"IF($C$484=\"\",\"\",J484/$C$484)","v":""},null,{"$f":"IF($C$484=\"\",\"\",L484/$C$484)","v":""},null,{"$f":"IF($C$484=\"\",\"\",N484/$C$484)","v":""},null,{"$f":"IF($C$484=\"\",\"\",P484/$C$484)","v":""},null,{"$f":"IF($C$484=\"\",\"\",R484/$C$484)","v":""},null,{"$f":"IF($C$484=\"\",\"\",T484/$C$484)","v":""},null,{"$f":"IF($C$484=\"\",\"\",V484/$C$484)","v":""},null,{"$f":"IF($C$484=\"\",\"\",X484/$C$484)","v":""},null,{"$f":"IF($C$484=\"\",\"\",Z484/$C$484)","v":""},null,{"$f":"IF($C$484=\"\",\"\",AB484/$C$484)","v":""},null,{"$f":"IF($C$484=\"\",\"\",AD484/$C$484)","v":""},null,{"$f":"IF($C$484=\"\",\"\",AF484/$C$484)","v":""},null,{"$f":"IF($C$484=\"\",\"\",AH484/$C$484)","v":""},null,{"$f":"IF($C$484=\"\",\"\",AJ484/$C$484)","v":""},null,{"$f":"IF($C$484=\"\",\"\",AL484/$C$484)","v":""},null,{"$f":"IF($C$484=\"\",\"\",AN484/$C$484)","v":""},null,{"$f":"IF($C$484=\"\",\"\",AP484/$C$484)","v":""},null,{"$f":"IF($C$484=\"\",\"\",AR484/$C$484)","v":""},null,{"$f":"IF($C$484=\"\",\"\",AT484/$C$484)","v":""},null,{"$f":"IF($C$484=\"\",\"\",AV484/$C$484)","v":""},null,{"$f":"IF($C$484=\"\",\"\",AX484/$C$484)","v":""},null,{"$f":"IF($C$484=\"\",\"\",AZ484/$C$484)","v":""},null,{"$f":"IF($C$484=\"\",\"\",BB484/$C$484)","v":""},null,0]
[null,null,null,null,{"$f":"IF($C$485=\"\",\"\",F485/$C$485)","v":""},null,{"$f":"IF($C$485=\"\",\"\",H485/$C$485)","v":""},null,{"$f":"IF($C$485=\"\",\"\",J485/$C$485)","v":""},null,{"$f":"IF($C$485=\"\",\"\",L485/$C$485)","v":""},null,{"$f":"IF($C$485=\"\",\"\",N485/$C$485)","v":""},null,{"$f":"IF($C$485=\"\",\"\",P485/$C$485)","v":""},null,{"$f":"IF($C$485=\"\",\"\",R485/$C$485)","v":""},null,{"$f":"IF($C$485=\"\",\"\",T485/$C$485)","v":""},null,{"$f":"IF($C$485=\"\",\"\",V485/$C$485)","v":""},null,{"$f":"IF($C$485=\"\",\"\",X485/$C$485)","v":""},null,{"$f":"IF($C$485=\"\",\"\",Z485/$C$485)","v":""},null,{"$f":"IF($C$485=\"\",\"\",AB485/$C$485)","v":""},null,{"$f":"IF($C$485=\"\",\"\",AD485/$C$485)","v":""},null,{"$f":"IF($C$485=\"\",\"\",AF485/$C$485)","v":""},null,{"$f":"IF($C$485=\"\",\"\",AH485/$C$485)","v":""},null,{"$f":"IF($C$485=\"\",\"\",AJ485/$C$485)","v":""},null,{"$f":"IF($C$485=\"\",\"\",AL485/$C$485)","v":""},null,{"$f":"IF($C$485=\"\",\"\",AN485/$C$485)","v":""},null,{"$f":"IF($C$485=\"\",\"\",AP485/$C$485)","v":""},null,{"$f":"IF($C$485=\"\",\"\",AR485/$C$485)","v":""},null,{"$f":"IF($C$485=\"\",\"\",AT485/$C$485)","v":""},null,{"$f":"IF($C$485=\"\",\"\",AV485/$C$485)","v":""},null,{"$f":"IF($C$485=\"\",\"\",AX485/$C$485)","v":""},null,{"$f":"IF($C$485=\"\",\"\",AZ485/$C$485)","v":""},null,{"$f":"IF($C$485=\"\",\"\",BB485/$C$485)","v":""},null,0]
[null,null,null,null,{"$f":"IF($C$486=\"\",\"\",F486/$C$486)","v":""},null,{"$f":"IF($C$486=\"\",\"\",H486/$C$486)","v":""},null,{"$f":"IF($C$486=\"\",\"\",J486/$C$486)","v":""},null,{"$f":"IF($C$486=\"\",\"\",L486/$C$486)","v":""},null,{"$f":"IF($C$486=\"\",\"\",N486/$C$486)","v":""},null,{"$f":"IF($C$486=\"\",\"\",P486/$C$486)","v":""},null,{"$f":"IF($C$486=\"\",\"\",R486/$C$486)","v":""},null,{"$f":"IF($C$486=\"\",\"\",T486/$C$486)","v":""},null,{"$f":"IF($C$486=\"\",\"\",V486/$C$486)","v":""},null,{"$f":"IF($C$486=\"\",\"\",X486/$C$486)","v":""},null,{"$f":"IF($C$486=\"\",\"\",Z486/$C$486)","v":""},null,{"$f":"IF($C$486=\"\",\"\",AB486/$C$486)","v":""},null,{"$f":"IF($C$486=\"\",\"\",AD486/$C$486)","v":""},null,{"$f":"IF($C$486=\"\",\"\",AF486/$C$486)","v":""},null,{"$f":"IF($C$486=\"\",\"\",AH486/$C$486)","v":""},null,{"$f":"IF($C$486=\"\",\"\",AJ486/$C$486)","v":""},null,{"$f":"IF($C$486=\"\",\"\",AL486/$C$486)","v":""},null,{"$f":"IF($C$486=\"\",\"\",AN486/$C$486)","v":""},null,{"$f":"IF($C$486=\"\",\"\",AP486/$C$486)","v":""},null,{"$f":"IF($C$486=\"\",\"\",AR486/$C$486)","v":""},null,{"$f":"IF($C$486=\"\",\"\",AT486/$C$486)","v":""},null,{"$f":"IF($C$486=\"\",\"\",AV486/$C$486)","v":""},null,{"$f":"IF($C$486=\"\",\"\",AX486/$C$486)","v":""},null,{"$f":"IF($C$486=\"\",\"\",AZ486/$C$486)","v":""},null,{"$f":"IF($C$486=\"\",\"\",BB486/$C$486)","v":""},null,0]
[null,null,null,null,{"$f":"IF($C$487=\"\",\"\",F487/$C$487)","v":""},null,{"$f":"IF($C$487=\"\",\"\",H487/$C$487)","v":""},null,{"$f":"IF($C$487=\"\",\"\",J487/$C$487)","v":""},null,{"$f":"IF($C$487=\"\",\"\",L487/$C$487)","v":""},null,{"$f":"IF($C$487=\"\",\"\",N487/$C$487)","v":""},null,{"$f":"IF($C$487=\"\",\"\",P487/$C$487)","v":""},null,{"$f":"IF($C$487=\"\",\"\",R487/$C$487)","v":""},null,{"$f":"IF($C$487=\"\",\"\",T487/$C$487)","v":""},null,{"$f":"IF($C$487=\"\",\"\",V487/$C$487)","v":""},null,{"$f":"IF($C$487=\"\",\"\",X487/$C$487)","v":""},null,{"$f":"IF($C$487=\"\",\"\",Z487/$C$487)","v":""},null,{"$f":"IF($C$487=\"\",\"\",AB487/$C$487)","v":""},null,{"$f":"IF($C$487=\"\",\"\",AD487/$C$487)","v":""},null,{"$f":"IF($C$487=\"\",\"\",AF487/$C$487)","v":""},null,{"$f":"IF($C$487=\"\",\"\",AH487/$C$487)","v":""},null,{"$f":"IF($C$487=\"\",\"\",AJ487/$C$487)","v":""},null,{"$f":"IF($C$487=\"\",\"\",AL487/$C$487)","v":""},null,{"$f":"IF($C$487=\"\",\"\",AN487/$C$487)","v":""},null,{"$f":"IF($C$487=\"\",\"\",AP487/$C$487)","v":""},null,{"$f":"IF($C$487=\"\",\"\",AR487/$C$487)","v":""},null,{"$f":"IF($C$487=\"\",\"\",AT487/$C$487)","v":""},null,{"$f":"IF($C$487=\"\",\"\",AV487/$C$487)","v":""},null,{"$f":"IF($C$487=\"\",\"\",AX487/$C$487)","v":""},null,{"$f":"IF($C$487=\"\",\"\",AZ487/$C$487)","v":""},null,{"$f":"IF($C$487=\"\",\"\",BB487/$C$487)","v":""},null,0]
[null,null,null,null,{"$f":"IF($C$488=\"\",\"\",F488/$C$488)","v":""},null,{"$f":"IF($C$488=\"\",\"\",H488/$C$488)","v":""},null,{"$f":"IF($C$488=\"\",\"\",J488/$C$488)","v":""},null,{"$f":"IF($C$488=\"\",\"\",L488/$C$488)","v":""},null,{"$f":"IF($C$488=\"\",\"\",N488/$C$488)","v":""},null,{"$f":"IF($C$488=\"\",\"\",P488/$C$488)","v":""},null,{"$f":"IF($C$488=\"\",\"\",R488/$C$488)","v":""},null,{"$f":"IF($C$488=\"\",\"\",T488/$C$488)","v":""},null,{"$f":"IF($C$488=\"\",\"\",V488/$C$488)","v":""},null,{"$f":"IF($C$488=\"\",\"\",X488/$C$488)","v":""},null,{"$f":"IF($C$488=\"\",\"\",Z488/$C$488)","v":""},null,{"$f":"IF($C$488=\"\",\"\",AB488/$C$488)","v":""},null,{"$f":"IF($C$488=\"\",\"\",AD488/$C$488)","v":""},null,{"$f":"IF($C$488=\"\",\"\",AF488/$C$488)","v":""},null,{"$f":"IF($C$488=\"\",\"\",AH488/$C$488)","v":""},null,{"$f":"IF($C$488=\"\",\"\",AJ488/$C$488)","v":""},null,{"$f":"IF($C$488=\"\",\"\",AL488/$C$488)","v":""},null,{"$f":"IF($C$488=\"\",\"\",AN488/$C$488)","v":""},null,{"$f":"IF($C$488=\"\",\"\",AP488/$C$488)","v":""},null,{"$f":"IF($C$488=\"\",\"\",AR488/$C$488)","v":""},null,{"$f":"IF($C$488=\"\",\"\",AT488/$C$488)","v":""},null,{"$f":"IF($C$488=\"\",\"\",AV488/$C$488)","v":""},null,{"$f":"IF($C$488=\"\",\"\",AX488/$C$488)","v":""},null,{"$f":"IF($C$488=\"\",\"\",AZ488/$C$488)","v":""},null,{"$f":"IF($C$488=\"\",\"\",BB488/$C$488)","v":""},null,0]
[null,null,null,null,{"$f":"IF($C$489=\"\",\"\",F489/$C$489)","v":""},null,{"$f":"IF($C$489=\"\",\"\",H489/$C$489)","v":""},null,{"$f":"IF($C$489=\"\",\"\",J489/$C$489)","v":""},null,{"$f":"IF($C$489=\"\",\"\",L489/$C$489)","v":""},null,{"$f":"IF($C$489=\"\",\"\",N489/$C$489)","v":""},null,{"$f":"IF($C$489=\"\",\"\",P489/$C$489)","v":""},null,{"$f":"IF($C$489=\"\",\"\",R489/$C$489)","v":""},null,{"$f":"IF($C$489=\"\",\"\",T489/$C$489)","v":""},null,{"$f":"IF($C$489=\"\",\"\",V489/$C$489)","v":""},null,{"$f":"IF($C$489=\"\",\"\",X489/$C$489)","v":""},null,{"$f":"IF($C$489=\"\",\"\",Z489/$C$489)","v":""},null,{"$f":"IF($C$489=\"\",\"\",AB489/$C$489)","v":""},null,{"$f":"IF($C$489=\"\",\"\",AD489/$C$489)","v":""},null,{"$f":"IF($C$489=\"\",\"\",AF489/$C$489)","v":""},null,{"$f":"IF($C$489=\"\",\"\",AH489/$C$489)","v":""},null,{"$f":"IF($C$489=\"\",\"\",AJ489/$C$489)","v":""},null,{"$f":"IF($C$489=\"\",\"\",AL489/$C$489)","v":""},null,{"$f":"IF($C$489=\"\",\"\",AN489/$C$489)","v":""},null,{"$f":"IF($C$489=\"\",\"\",AP489/$C$489)","v":""},null,{"$f":"IF($C$489=\"\",\"\",AR489/$C$489)","v":""},null,{"$f":"IF($C$489=\"\",\"\",AT489/$C$489)","v":""},null,{"$f":"IF($C$489=\"\",\"\",AV489/$C$489)","v":""},null,{"$f":"IF($C$489=\"\",\"\",AX489/$C$489)","v":""},null,{"$f":"IF($C$489=\"\",\"\",AZ489/$C$489)","v":""},null,{"$f":"IF($C$489=\"\",\"\",BB489/$C$489)","v":""},null,0]
[null,null,null,null,{"$f":"IF($C$490=\"\",\"\",F490/$C$490)","v":""},null,{"$f":"IF($C$490=\"\",\"\",H490/$C$490)","v":""},null,{"$f":"IF($C$490=\"\",\"\",J490/$C$490)","v":""},null,{"$f":"IF($C$490=\"\",\"\",L490/$C$490)","v":""},null,{"$f":"IF($C$490=\"\",\"\",N490/$C$490)","v":""},null,{"$f":"IF($C$490=\"\",\"\",P490/$C$490)","v":""},null,{"$f":"IF($C$490=\"\",\"\",R490/$C$490)","v":""},null,{"$f":"IF($C$490=\"\",\"\",T490/$C$490)","v":""},null,{"$f":"IF($C$490=\"\",\"\",V490/$C$490)","v":""},null,{"$f":"IF($C$490=\"\",\"\",X490/$C$490)","v":""},null,{"$f":"IF($C$490=\"\",\"\",Z490/$C$490)","v":""},null,{"$f":"IF($C$490=\"\",\"\",AB490/$C$490)","v":""},null,{"$f":"IF($C$490=\"\",\"\",AD490/$C$490)","v":""},null,{"$f":"IF($C$490=\"\",\"\",AF490/$C$490)","v":""},null,{"$f":"IF($C$490=\"\",\"\",AH490/$C$490)","v":""},null,{"$f":"IF($C$490=\"\",\"\",AJ490/$C$490)","v":""},null,{"$f":"IF($C$490=\"\",\"\",AL490/$C$490)","v":""},null,{"$f":"IF($C$490=\"\",\"\",AN490/$C$490)","v":""},null,{"$f":"IF($C$490=\"\",\"\",AP490/$C$490)","v":""},null,{"$f":"IF($C$490=\"\",\"\",AR490/$C$490)","v":""},null,{"$f":"IF($C$490=\"\",\"\",AT490/$C$490)","v":""},null,{"$f":"IF($C$490=\"\",\"\",AV490/$C$490)","v":""},null,{"$f":"IF($C$490=\"\",\"\",AX490/$C$490)","v":""},null,{"$f":"IF($C$490=\"\",\"\",AZ490/$C$490)","v":""},null,{"$f":"IF($C$490=\"\",\"\",BB490/$C$490)","v":""},null,0]
[null,null,null,null,{"$f":"IF($C$491=\"\",\"\",F491/$C$491)","v":""},null,{"$f":"IF($C$491=\"\",\"\",H491/$C$491)","v":""},null,{"$f":"IF($C$491=\"\",\"\",J491/$C$491)","v":""},null,{"$f":"IF($C$491=\"\",\"\",L491/$C$491)","v":""},null,{"$f":"IF($C$491=\"\",\"\",N491/$C$491)","v":""},null,{"$f":"IF($C$491=\"\",\"\",P491/$C$491)","v":""},null,{"$f":"IF($C$491=\"\",\"\",R491/$C$491)","v":""},null,{"$f":"IF($C$491=\"\",\"\",T491/$C$491)","v":""},null,{"$f":"IF($C$491=\"\",\"\",V491/$C$491)","v":""},null,{"$f":"IF($C$491=\"\",\"\",X491/$C$491)","v":""},null,{"$f":"IF($C$491=\"\",\"\",Z491/$C$491)","v":""},null,{"$f":"IF($C$491=\"\",\"\",AB491/$C$491)","v":""},null,{"$f":"IF($C$491=\"\",\"\",AD491/$C$491)","v":""},null,{"$f":"IF($C$491=\"\",\"\",AF491/$C$491)","v":""},null,{"$f":"IF($C$491=\"\",\"\",AH491/$C$491)","v":""},null,{"$f":"IF($C$491=\"\",\"\",AJ491/$C$491)","v":""},null,{"$f":"IF($C$491=\"\",\"\",AL491/$C$491)","v":""},null,{"$f":"IF($C$491=\"\",\"\",AN491/$C$491)","v":""},null,{"$f":"IF($C$491=\"\",\"\",AP491/$C$491)","v":""},null,{"$f":"IF($C$491=\"\",\"\",AR491/$C$491)","v":""},null,{"$f":"IF($C$491=\"\",\"\",AT491/$C$491)","v":""},null,{"$f":"IF($C$491=\"\",\"\",AV491/$C$491)","v":""},null,{"$f":"IF($C$491=\"\",\"\",AX491/$C$491)","v":""},null,{"$f":"IF($C$491=\"\",\"\",AZ491/$C$491)","v":""},null,{"$f":"IF($C$491=\"\",\"\",BB491/$C$491)","v":""},null,0]
[null,null,null,null,{"$f":"IF($C$492=\"\",\"\",F492/$C$492)","v":""},null,{"$f":"IF($C$492=\"\",\"\",H492/$C$492)","v":""},null,{"$f":"IF($C$492=\"\",\"\",J492/$C$492)","v":""},null,{"$f":"IF($C$492=\"\",\"\",L492/$C$492)","v":""},null,{"$f":"IF($C$492=\"\",\"\",N492/$C$492)","v":""},null,{"$f":"IF($C$492=\"\",\"\",P492/$C$492)","v":""},null,{"$f":"IF($C$492=\"\",\"\",R492/$C$492)","v":""},null,{"$f":"IF($C$492=\"\",\"\",T492/$C$492)","v":""},null,{"$f":"IF($C$492=\"\",\"\",V492/$C$492)","v":""},null,{"$f":"IF($C$492=\"\",\"\",X492/$C$492)","v":""},null,{"$f":"IF($C$492=\"\",\"\",Z492/$C$492)","v":""},null,{"$f":"IF($C$492=\"\",\"\",AB492/$C$492)","v":""},null,{"$f":"IF($C$492=\"\",\"\",AD492/$C$492)","v":""},null,{"$f":"IF($C$492=\"\",\"\",AF492/$C$492)","v":""},null,{"$f":"IF($C$492=\"\",\"\",AH492/$C$492)","v":""},null,{"$f":"IF($C$492=\"\",\"\",AJ492/$C$492)","v":""},null,{"$f":"IF($C$492=\"\",\"\",AL492/$C$492)","v":""},null,{"$f":"IF($C$492=\"\",\"\",AN492/$C$492)","v":""},null,{"$f":"IF($C$492=\"\",\"\",AP492/$C$492)","v":""},null,{"$f":"IF($C$492=\"\",\"\",AR492/$C$492)","v":""},null,{"$f":"IF($C$492=\"\",\"\",AT492/$C$492)","v":""},null,{"$f":"IF($C$492=\"\",\"\",AV492/$C$492)","v":""},null,{"$f":"IF($C$492=\"\",\"\",AX492/$C$492)","v":""},null,{"$f":"IF($C$492=\"\",\"\",AZ492/$C$492)","v":""},null,{"$f":"IF($C$492=\"\",\"\",BB492/$C$492)","v":""},null,0]
[null,null,null,null,{"$f":"IF($C$493=\"\",\"\",F493/$C$493)","v":""},null,{"$f":"IF($C$493=\"\",\"\",H493/$C$493)","v":""},null,{"$f":"IF($C$493=\"\",\"\",J493/$C$493)","v":""},null,{"$f":"IF($C$493=\"\",\"\",L493/$C$493)","v":""},null,{"$f":"IF($C$493=\"\",\"\",N493/$C$493)","v":""},null,{"$f":"IF($C$493=\"\",\"\",P493/$C$493)","v":""},null,{"$f":"IF($C$493=\"\",\"\",R493/$C$493)","v":""},null,{"$f":"IF($C$493=\"\",\"\",T493/$C$493)","v":""},null,{"$f":"IF($C$493=\"\",\"\",V493/$C$493)","v":""},null,{"$f":"IF($C$493=\"\",\"\",X493/$C$493)","v":""},null,{"$f":"IF($C$493=\"\",\"\",Z493/$C$493)","v":""},null,{"$f":"IF($C$493=\"\",\"\",AB493/$C$493)","v":""},null,{"$f":"IF($C$493=\"\",\"\",AD493/$C$493)","v":""},null,{"$f":"IF($C$493=\"\",\"\",AF493/$C$493)","v":""},null,{"$f":"IF($C$493=\"\",\"\",AH493/$C$493)","v":""},null,{"$f":"IF($C$493=\"\",\"\",AJ493/$C$493)","v":""},null,{"$f":"IF($C$493=\"\",\"\",AL493/$C$493)","v":""},null,{"$f":"IF($C$493=\"\",\"\",AN493/$C$493)","v":""},null,{"$f":"IF($C$493=\"\",\"\",AP493/$C$493)","v":""},null,{"$f":"IF($C$493=\"\",\"\",AR493/$C$493)","v":""},null,{"$f":"IF($C$493=\"\",\"\",AT493/$C$493)","v":""},null,{"$f":"IF($C$493=\"\",\"\",AV493/$C$493)","v":""},null,{"$f":"IF($C$493=\"\",\"\",AX493/$C$493)","v":""},null,{"$f":"IF($C$493=\"\",\"\",AZ493/$C$493)","v":""},null,{"$f":"IF($C$493=\"\",\"\",BB493/$C$493)","v":""},null,0]
[null,null,null,null,{"$f":"IF($C$494=\"\",\"\",F494/$C$494)","v":""},null,{"$f":"IF($C$494=\"\",\"\",H494/$C$494)","v":""},null,{"$f":"IF($C$494=\"\",\"\",J494/$C$494)","v":""},null,{"$f":"IF($C$494=\"\",\"\",L494/$C$494)","v":""},null,{"$f":"IF($C$494=\"\",\"\",N494/$C$494)","v":""},null,{"$f":"IF($C$494=\"\",\"\",P494/$C$494)","v":""},null,{"$f":"IF($C$494=\"\",\"\",R494/$C$494)","v":""},null,{"$f":"IF($C$494=\"\",\"\",T494/$C$494)","v":""},null,{"$f":"IF($C$494=\"\",\"\",V494/$C$494)","v":""},null,{"$f":"IF($C$494=\"\",\"\",X494/$C$494)","v":""},null,{"$f":"IF($C$494=\"\",\"\",Z494/$C$494)","v":""},null,{"$f":"IF($C$494=\"\",\"\",AB494/$C$494)","v":""},null,{"$f":"IF($C$494=\"\",\"\",AD494/$C$494)","v":""},null,{"$f":"IF($C$494=\"\",\"\",AF494/$C$494)","v":""},null,{"$f":"IF($C$494=\"\",\"\",AH494/$C$494)","v":""},null,{"$f":"IF($C$494=\"\",\"\",AJ494/$C$494)","v":""},null,{"$f":"IF($C$494=\"\",\"\",AL494/$C$494)","v":""},null,{"$f":"IF($C$494=\"\",\"\",AN494/$C$494)","v":""},null,{"$f":"IF($C$494=\"\",\"\",AP494/$C$494)","v":""},null,{"$f":"IF($C$494=\"\",\"\",AR494/$C$494)","v":""},null,{"$f":"IF($C$494=\"\",\"\",AT494/$C$494)","v":""},null,{"$f":"IF($C$494=\"\",\"\",AV494/$C$494)","v":""},null,{"$f":"IF($C$494=\"\",\"\",AX494/$C$494)","v":""},null,{"$f":"IF($C$494=\"\",\"\",AZ494/$C$494)","v":""},null,{"$f":"IF($C$494=\"\",\"\",BB494/$C$494)","v":""},null,0]
[null,null,null,null,{"$f":"IF($C$495=\"\",\"\",F495/$C$495)","v":""},null,{"$f":"IF($C$495=\"\",\"\",H495/$C$495)","v":""},null,{"$f":"IF($C$495=\"\",\"\",J495/$C$495)","v":""},null,{"$f":"IF($C$495=\"\",\"\",L495/$C$495)","v":""},null,{"$f":"IF($C$495=\"\",\"\",N495/$C$495)","v":""},null,{"$f":"IF($C$495=\"\",\"\",P495/$C$495)","v":""},null,{"$f":"IF($C$495=\"\",\"\",R495/$C$495)","v":""},null,{"$f":"IF($C$495=\"\",\"\",T495/$C$495)","v":""},null,{"$f":"IF($C$495=\"\",\"\",V495/$C$495)","v":""},null,{"$f":"IF($C$495=\"\",\"\",X495/$C$495)","v":""},null,{"$f":"IF($C$495=\"\",\"\",Z495/$C$495)","v":""},null,{"$f":"IF($C$495=\"\",\"\",AB495/$C$495)","v":""},null,{"$f":"IF($C$495=\"\",\"\",AD495/$C$495)","v":""},null,{"$f":"IF($C$495=\"\",\"\",AF495/$C$495)","v":""},null,{"$f":"IF($C$495=\"\",\"\",AH495/$C$495)","v":""},null,{"$f":"IF($C$495=\"\",\"\",AJ495/$C$495)","v":""},null,{"$f":"IF($C$495=\"\",\"\",AL495/$C$495)","v":""},null,{"$f":"IF($C$495=\"\",\"\",AN495/$C$495)","v":""},null,{"$f":"IF($C$495=\"\",\"\",AP495/$C$495)","v":""},null,{"$f":"IF($C$495=\"\",\"\",AR495/$C$495)","v":""},null,{"$f":"IF($C$495=\"\",\"\",AT495/$C$495)","v":""},null,{"$f":"IF($C$495=\"\",\"\",AV495/$C$495)","v":""},null,{"$f":"IF($C$495=\"\",\"\",AX495/$C$495)","v":""},null,{"$f":"IF($C$495=\"\",\"\",AZ495/$C$495)","v":""},null,{"$f":"IF($C$495=\"\",\"\",BB495/$C$495)","v":""},null,0]
[null,null,null,null,{"$f":"IF($C$496=\"\",\"\",F496/$C$496)","v":""},null,{"$f":"IF($C$496=\"\",\"\",H496/$C$496)","v":""},null,{"$f":"IF($C$496=\"\",\"\",J496/$C$496)","v":""},null,{"$f":"IF($C$496=\"\",\"\",L496/$C$496)","v":""},null,{"$f":"IF($C$496=\"\",\"\",N496/$C$496)","v":""},null,{"$f":"IF($C$496=\"\",\"\",P496/$C$496)","v":""},null,{"$f":"IF($C$496=\"\",\"\",R496/$C$496)","v":""},null,{"$f":"IF($C$496=\"\",\"\",T496/$C$496)","v":""},null,{"$f":"IF($C$496=\"\",\"\",V496/$C$496)","v":""},null,{"$f":"IF($C$496=\"\",\"\",X496/$C$496)","v":""},null,{"$f":"IF($C$496=\"\",\"\",Z496/$C$496)","v":""},null,{"$f":"IF($C$496=\"\",\"\",AB496/$C$496)","v":""},null,{"$f":"IF($C$496=\"\",\"\",AD496/$C$496)","v":""},null,{"$f":"IF($C$496=\"\",\"\",AF496/$C$496)","v":""},null,{"$f":"IF($C$496=\"\",\"\",AH496/$C$496)","v":""},null,{"$f":"IF($C$496=\"\",\"\",AJ496/$C$496)","v":""},null,{"$f":"IF($C$496=\"\",\"\",AL496/$C$496)","v":""},null,{"$f":"IF($C$496=\"\",\"\",AN496/$C$496)","v":""},null,{"$f":"IF($C$496=\"\",\"\",AP496/$C$496)","v":""},null,{"$f":"IF($C$496=\"\",\"\",AR496/$C$496)","v":""},null,{"$f":"IF($C$496=\"\",\"\",AT496/$C$496)","v":""},null,{"$f":"IF($C$496=\"\",\"\",AV496/$C$496)","v":""},null,{"$f":"IF($C$496=\"\",\"\",AX496/$C$496)","v":""},null,{"$f":"IF($C$496=\"\",\"\",AZ496/$C$496)","v":""},null,{"$f":"IF($C$496=\"\",\"\",BB496/$C$496)","v":""},null,0]
[null,null,null,null,{"$f":"IF($C$497=\"\",\"\",F497/$C$497)","v":""},null,{"$f":"IF($C$497=\"\",\"\",H497/$C$497)","v":""},null,{"$f":"IF($C$497=\"\",\"\",J497/$C$497)","v":""},null,{"$f":"IF($C$497=\"\",\"\",L497/$C$497)","v":""},null,{"$f":"IF($C$497=\"\",\"\",N497/$C$497)","v":""},null,{"$f":"IF($C$497=\"\",\"\",P497/$C$497)","v":""},null,{"$f":"IF($C$497=\"\",\"\",R497/$C$497)","v":""},null,{"$f":"IF($C$497=\"\",\"\",T497/$C$497)","v":""},null,{"$f":"IF($C$497=\"\",\"\",V497/$C$497)","v":""},null,{"$f":"IF($C$497=\"\",\"\",X497/$C$497)","v":""},null,{"$f":"IF($C$497=\"\",\"\",Z497/$C$497)","v":""},null,{"$f":"IF($C$497=\"\",\"\",AB497/$C$497)","v":""},null,{"$f":"IF($C$497=\"\",\"\",AD497/$C$497)","v":""},null,{"$f":"IF($C$497=\"\",\"\",AF497/$C$497)","v":""},null,{"$f":"IF($C$497=\"\",\"\",AH497/$C$497)","v":""},null,{"$f":"IF($C$497=\"\",\"\",AJ497/$C$497)","v":""},null,{"$f":"IF($C$497=\"\",\"\",AL497/$C$497)","v":""},null,{"$f":"IF($C$497=\"\",\"\",AN497/$C$497)","v":""},null,{"$f":"IF($C$497=\"\",\"\",AP497/$C$497)","v":""},null,{"$f":"IF($C$497=\"\",\"\",AR497/$C$497)","v":""},null,{"$f":"IF($C$497=\"\",\"\",AT497/$C$497)","v":""},null,{"$f":"IF($C$497=\"\",\"\",AV497/$C$497)","v":""},null,{"$f":"IF($C$497=\"\",\"\",AX497/$C$497)","v":""},null,{"$f":"IF($C$497=\"\",\"\",AZ497/$C$497)","v":""},null,{"$f":"IF($C$497=\"\",\"\",BB497/$C$497)","v":""},null,0]
[null,null,null,null,{"$f":"IF($C$498=\"\",\"\",F498/$C$498)","v":""},null,{"$f":"IF($C$498=\"\",\"\",H498/$C$498)","v":""},null,{"$f":"IF($C$498=\"\",\"\",J498/$C$498)","v":""},null,{"$f":"IF($C$498=\"\",\"\",L498/$C$498)","v":""},null,{"$f":"IF($C$498=\"\",\"\",N498/$C$498)","v":""},null,{"$f":"IF($C$498=\"\",\"\",P498/$C$498)","v":""},null,{"$f":"IF($C$498=\"\",\"\",R498/$C$498)","v":""},null,{"$f":"IF($C$498=\"\",\"\",T498/$C$498)","v":""},null,{"$f":"IF($C$498=\"\",\"\",V498/$C$498)","v":""},null,{"$f":"IF($C$498=\"\",\"\",X498/$C$498)","v":""},null,{"$f":"IF($C$498=\"\",\"\",Z498/$C$498)","v":""},null,{"$f":"IF($C$498=\"\",\"\",AB498/$C$498)","v":""},null,{"$f":"IF($C$498=\"\",\"\",AD498/$C$498)","v":""},null,{"$f":"IF($C$498=\"\",\"\",AF498/$C$498)","v":""},null,{"$f":"IF($C$498=\"\",\"\",AH498/$C$498)","v":""},null,{"$f":"IF($C$498=\"\",\"\",AJ498/$C$498)","v":""},null,{"$f":"IF($C$498=\"\",\"\",AL498/$C$498)","v":""},null,{"$f":"IF($C$498=\"\",\"\",AN498/$C$498)","v":""},null,{"$f":"IF($C$498=\"\",\"\",AP498/$C$498)","v":""},null,{"$f":"IF($C$498=\"\",\"\",AR498/$C$498)","v":""},null,{"$f":"IF($C$498=\"\",\"\",AT498/$C$498)","v":""},null,{"$f":"IF($C$498=\"\",\"\",AV498/$C$498)","v":""},null,{"$f":"IF($C$498=\"\",\"\",AX498/$C$498)","v":""},null,{"$f":"IF($C$498=\"\",\"\",AZ498/$C$498)","v":""},null,{"$f":"IF($C$498=\"\",\"\",BB498/$C$498)","v":""},null,0]
[null,null,null,null,{"$f":"IF($C$499=\"\",\"\",F499/$C$499)","v":""},null,{"$f":"IF($C$499=\"\",\"\",H499/$C$499)","v":""},null,{"$f":"IF($C$499=\"\",\"\",J499/$C$499)","v":""},null,{"$f":"IF($C$499=\"\",\"\",L499/$C$499)","v":""},null,{"$f":"IF($C$499=\"\",\"\",N499/$C$499)","v":""},null,{"$f":"IF($C$499=\"\",\"\",P499/$C$499)","v":""},null,{"$f":"IF($C$499=\"\",\"\",R499/$C$499)","v":""},null,{"$f":"IF($C$499=\"\",\"\",T499/$C$499)","v":""},null,{"$f":"IF($C$499=\"\",\"\",V499/$C$499)","v":""},null,{"$f":"IF($C$499=\"\",\"\",X499/$C$499)","v":""},null,{"$f":"IF($C$499=\"\",\"\",Z499/$C$499)","v":""},null,{"$f":"IF($C$499=\"\",\"\",AB499/$C$499)","v":""},null,{"$f":"IF($C$499=\"\",\"\",AD499/$C$499)","v":""},null,{"$f":"IF($C$499=\"\",\"\",AF499/$C$499)","v":""},null,{"$f":"IF($C$499=\"\",\"\",AH499/$C$499)","v":""},null,{"$f":"IF($C$499=\"\",\"\",AJ499/$C$499)","v":""},null,{"$f":"IF($C$499=\"\",\"\",AL499/$C$499)","v":""},null,{"$f":"IF($C$499=\"\",\"\",AN499/$C$499)","v":""},null,{"$f":"IF($C$499=\"\",\"\",AP499/$C$499)","v":""},null,{"$f":"IF($C$499=\"\",\"\",AR499/$C$499)","v":""},null,{"$f":"IF($C$499=\"\",\"\",AT499/$C$499)","v":""},null,{"$f":"IF($C$499=\"\",\"\",AV499/$C$499)","v":""},null,{"$f":"IF($C$499=\"\",\"\",AX499/$C$499)","v":""},null,{"$f":"IF($C$499=\"\",\"\",AZ499/$C$499)","v":""},null,{"$f":"IF($C$499=\"\",\"\",BB499/$C$499)","v":""},null,0]
[null,null,null,null,{"$f":"IF($C$500=\"\",\"\",F500/$C$500)","v":""},null,{"$f":"IF($C$500=\"\",\"\",H500/$C$500)","v":""},null,{"$f":"IF($C$500=\"\",\"\",J500/$C$500)","v":""},null,{"$f":"IF($C$500=\"\",\"\",L500/$C$500)","v":""},null,{"$f":"IF($C$500=\"\",\"\",N500/$C$500)","v":""},null,{"$f":"IF($C$500=\"\",\"\",P500/$C$500)","v":""},null,{"$f":"IF($C$500=\"\",\"\",R500/$C$500)","v":""},null,{"$f":"IF($C$500=\"\",\"\",T500/$C$500)","v":""},null,{"$f":"IF($C$500=\"\",\"\",V500/$C$500)","v":""},null,{"$f":"IF($C$500=\"\",\"\",X500/$C$500)","v":""},null,{"$f":"IF($C$500=\"\",\"\",Z500/$C$500)","v":""},null,{"$f":"IF($C$500=\"\",\"\",AB500/$C$500)","v":""},null,{"$f":"IF($C$500=\"\",\"\",AD500/$C$500)","v":""},null,{"$f":"IF($C$500=\"\",\"\",AF500/$C$500)","v":""},null,{"$f":"IF($C$500=\"\",\"\",AH500/$C$500)","v":""},null,{"$f":"IF($C$500=\"\",\"\",AJ500/$C$500)","v":""},null,{"$f":"IF($C$500=\"\",\"\",AL500/$C$500)","v":""},null,{"$f":"IF($C$500=\"\",\"\",AN500/$C$500)","v":""},null,{"$f":"IF($C$500=\"\",\"\",AP500/$C$500)","v":""},null,{"$f":"IF($C$500=\"\",\"\",AR500/$C$500)","v":""},null,{"$f":"IF($C$500=\"\",\"\",AT500/$C$500)","v":""},null,{"$f":"IF($C$500=\"\",\"\",AV500/$C$500)","v":""},null,{"$f":"IF($C$500=\"\",\"\",AX500/$C$500)","v":""},null,{"$f":"IF($C$500=\"\",\"\",AZ500/$C$500)","v":""},null,{"$f":"IF($C$500=\"\",\"\",BB500/$C$500)","v":""},null,0]
[null,null,null,null,{"$f":"IF($C$501=\"\",\"\",F501/$C$501)","v":""},null,{"$f":"IF($C$501=\"\",\"\",H501/$C$501)","v":""},null,{"$f":"IF($C$501=\"\",\"\",J501/$C$501)","v":""},null,{"$f":"IF($C$501=\"\",\"\",L501/$C$501)","v":""},null,{"$f":"IF($C$501=\"\",\"\",N501/$C$501)","v":""},null,{"$f":"IF($C$501=\"\",\"\",P501/$C$501)","v":""},null,{"$f":"IF($C$501=\"\",\"\",R501/$C$501)","v":""},null,{"$f":"IF($C$501=\"\",\"\",T501/$C$501)","v":""},null,{"$f":"IF($C$501=\"\",\"\",V501/$C$501)","v":""},null,{"$f":"IF($C$501=\"\",\"\",X501/$C$501)","v":""},null,{"$f":"IF($C$501=\"\",\"\",Z501/$C$501)","v":""},null,{"$f":"IF($C$501=\"\",\"\",AB501/$C$501)","v":""},null,{"$f":"IF($C$501=\"\",\"\",AD501/$C$501)","v":""},null,{"$f":"IF($C$501=\"\",\"\",AF501/$C$501)","v":""},null,{"$f":"IF($C$501=\"\",\"\",AH501/$C$501)","v":""},null,{"$f":"IF($C$501=\"\",\"\",AJ501/$C$501)","v":""},null,{"$f":"IF($C$501=\"\",\"\",AL501/$C$501)","v":""},null,{"$f":"IF($C$501=\"\",\"\",AN501/$C$501)","v":""},null,{"$f":"IF($C$501=\"\",\"\",AP501/$C$501)","v":""},null,{"$f":"IF($C$501=\"\",\"\",AR501/$C$501)","v":""},null,{"$f":"IF($C$501=\"\",\"\",AT501/$C$501)","v":""},null,{"$f":"IF($C$501=\"\",\"\",AV501/$C$501)","v":""},null,{"$f":"IF($C$501=\"\",\"\",AX501/$C$501)","v":""},null,{"$f":"IF($C$501=\"\",\"\",AZ501/$C$501)","v":""},null,{"$f":"IF($C$501=\"\",\"\",BB501/$C$501)","v":""},null,0]
[null,null,null,null,{"$f":"IF($C$502=\"\",\"\",F502/$C$502)","v":""},null,{"$f":"IF($C$502=\"\",\"\",H502/$C$502)","v":""},null,{"$f":"IF($C$502=\"\",\"\",J502/$C$502)","v":""},null,{"$f":"IF($C$502=\"\",\"\",L502/$C$502)","v":""},null,{"$f":"IF($C$502=\"\",\"\",N502/$C$502)","v":""},null,{"$f":"IF($C$502=\"\",\"\",P502/$C$502)","v":""},null,{"$f":"IF($C$502=\"\",\"\",R502/$C$502)","v":""},null,{"$f":"IF($C$502=\"\",\"\",T502/$C$502)","v":""},null,{"$f":"IF($C$502=\"\",\"\",V502/$C$502)","v":""},null,{"$f":"IF($C$502=\"\",\"\",X502/$C$502)","v":""},null,{"$f":"IF($C$502=\"\",\"\",Z502/$C$502)","v":""},null,{"$f":"IF($C$502=\"\",\"\",AB502/$C$502)","v":""},null,{"$f":"IF($C$502=\"\",\"\",AD502/$C$502)","v":""},null,{"$f":"IF($C$502=\"\",\"\",AF502/$C$502)","v":""},null,{"$f":"IF($C$502=\"\",\"\",AH502/$C$502)","v":""},null,{"$f":"IF($C$502=\"\",\"\",AJ502/$C$502)","v":""},null,{"$f":"IF($C$502=\"\",\"\",AL502/$C$502)","v":""},null,{"$f":"IF($C$502=\"\",\"\",AN502/$C$502)","v":""},null,{"$f":"IF($C$502=\"\",\"\",AP502/$C$502)","v":""},null,{"$f":"IF($C$502=\"\",\"\",AR502/$C$502)","v":""},null,{"$f":"IF($C$502=\"\",\"\",AT502/$C$502)","v":""},null,{"$f":"IF($C$502=\"\",\"\",AV502/$C$502)","v":""},null,{"$f":"IF($C$502=\"\",\"\",AX502/$C$502)","v":""},null,{"$f":"IF($C$502=\"\",\"\",AZ502/$C$502)","v":""},null,{"$f":"IF($C$502=\"\",\"\",BB502/$C$502)","v":""},null,0]
[null,null,null,null,{"$f":"IF($C$503=\"\",\"\",F503/$C$503)","v":""},null,{"$f":"IF($C$503=\"\",\"\",H503/$C$503)","v":""},null,{"$f":"IF($C$503=\"\",\"\",J503/$C$503)","v":""},null,{"$f":"IF($C$503=\"\",\"\",L503/$C$503)","v":""},null,{"$f":"IF($C$503=\"\",\"\",N503/$C$503)","v":""},null,{"$f":"IF($C$503=\"\",\"\",P503/$C$503)","v":""},null,{"$f":"IF($C$503=\"\",\"\",R503/$C$503)","v":""},null,{"$f":"IF($C$503=\"\",\"\",T503/$C$503)","v":""},null,{"$f":"IF($C$503=\"\",\"\",V503/$C$503)","v":""},null,{"$f":"IF($C$503=\"\",\"\",X503/$C$503)","v":""},null,{"$f":"IF($C$503=\"\",\"\",Z503/$C$503)","v":""},null,{"$f":"IF($C$503=\"\",\"\",AB503/$C$503)","v":""},null,{"$f":"IF($C$503=\"\",\"\",AD503/$C$503)","v":""},null,{"$f":"IF($C$503=\"\",\"\",AF503/$C$503)","v":""},null,{"$f":"IF($C$503=\"\",\"\",AH503/$C$503)","v":""},null,{"$f":"IF($C$503=\"\",\"\",AJ503/$C$503)","v":""},null,{"$f":"IF($C$503=\"\",\"\",AL503/$C$503)","v":""},null,{"$f":"IF($C$503=\"\",\"\",AN503/$C$503)","v":""},null,{"$f":"IF($C$503=\"\",\"\",AP503/$C$503)","v":""},null,{"$f":"IF($C$503=\"\",\"\",AR503/$C$503)","v":""},null,{"$f":"IF($C$503=\"\",\"\",AT503/$C$503)","v":""},null,{"$f":"IF($C$503=\"\",\"\",AV503/$C$503)","v":""},null,{"$f":"IF($C$503=\"\",\"\",AX503/$C$503)","v":""},null,{"$f":"IF($C$503=\"\",\"\",AZ503/$C$503)","v":""},null,{"$f":"IF($C$503=\"\",\"\",BB503/$C$503)","v":""},null,0]
[null,null,null,null,{"$f":"IF($C$504=\"\",\"\",F504/$C$504)","v":""},null,{"$f":"IF($C$504=\"\",\"\",H504/$C$504)","v":""},null,{"$f":"IF($C$504=\"\",\"\",J504/$C$504)","v":""},null,{"$f":"IF($C$504=\"\",\"\",L504/$C$504)","v":""},null,{"$f":"IF($C$504=\"\",\"\",N504/$C$504)","v":""},null,{"$f":"IF($C$504=\"\",\"\",P504/$C$504)","v":""},null,{"$f":"IF($C$504=\"\",\"\",R504/$C$504)","v":""},null,{"$f":"IF($C$504=\"\",\"\",T504/$C$504)","v":""},null,{"$f":"IF($C$504=\"\",\"\",V504/$C$504)","v":""},null,{"$f":"IF($C$504=\"\",\"\",X504/$C$504)","v":""},null,{"$f":"IF($C$504=\"\",\"\",Z504/$C$504)","v":""},null,{"$f":"IF($C$504=\"\",\"\",AB504/$C$504)","v":""},null,{"$f":"IF($C$504=\"\",\"\",AD504/$C$504)","v":""},null,{"$f":"IF($C$504=\"\",\"\",AF504/$C$504)","v":""},null,{"$f":"IF($C$504=\"\",\"\",AH504/$C$504)","v":""},null,{"$f":"IF($C$504=\"\",\"\",AJ504/$C$504)","v":""},null,{"$f":"IF($C$504=\"\",\"\",AL504/$C$504)","v":""},null,{"$f":"IF($C$504=\"\",\"\",AN504/$C$504)","v":""},null,{"$f":"IF($C$504=\"\",\"\",AP504/$C$504)","v":""},null,{"$f":"IF($C$504=\"\",\"\",AR504/$C$504)","v":""},null,{"$f":"IF($C$504=\"\",\"\",AT504/$C$504)","v":""},null,{"$f":"IF($C$504=\"\",\"\",AV504/$C$504)","v":""},null,{"$f":"IF($C$504=\"\",\"\",AX504/$C$504)","v":""},null,{"$f":"IF($C$504=\"\",\"\",AZ504/$C$504)","v":""},null,{"$f":"IF($C$504=\"\",\"\",BB504/$C$504)","v":""},null,0]
[null,null,null,null,{"$f":"IF($C$505=\"\",\"\",F505/$C$505)","v":""},null,{"$f":"IF($C$505=\"\",\"\",H505/$C$505)","v":""},null,{"$f":"IF($C$505=\"\",\"\",J505/$C$505)","v":""},null,{"$f":"IF($C$505=\"\",\"\",L505/$C$505)","v":""},null,{"$f":"IF($C$505=\"\",\"\",N505/$C$505)","v":""},null,{"$f":"IF($C$505=\"\",\"\",P505/$C$505)","v":""},null,{"$f":"IF($C$505=\"\",\"\",R505/$C$505)","v":""},null,{"$f":"IF($C$505=\"\",\"\",T505/$C$505)","v":""},null,{"$f":"IF($C$505=\"\",\"\",V505/$C$505)","v":""},null,{"$f":"IF($C$505=\"\",\"\",X505/$C$505)","v":""},null,{"$f":"IF($C$505=\"\",\"\",Z505/$C$505)","v":""},null,{"$f":"IF($C$505=\"\",\"\",AB505/$C$505)","v":""},null,{"$f":"IF($C$505=\"\",\"\",AD505/$C$505)","v":""},null,{"$f":"IF($C$505=\"\",\"\",AF505/$C$505)","v":""},null,{"$f":"IF($C$505=\"\",\"\",AH505/$C$505)","v":""},null,{"$f":"IF($C$505=\"\",\"\",AJ505/$C$505)","v":""},null,{"$f":"IF($C$505=\"\",\"\",AL505/$C$505)","v":""},null,{"$f":"IF($C$505=\"\",\"\",AN505/$C$505)","v":""},null,{"$f":"IF($C$505=\"\",\"\",AP505/$C$505)","v":""},null,{"$f":"IF($C$505=\"\",\"\",AR505/$C$505)","v":""},null,{"$f":"IF($C$505=\"\",\"\",AT505/$C$505)","v":""},null,{"$f":"IF($C$505=\"\",\"\",AV505/$C$505)","v":""},null,{"$f":"IF($C$505=\"\",\"\",AX505/$C$505)","v":""},null,{"$f":"IF($C$505=\"\",\"\",AZ505/$C$505)","v":""},null,{"$f":"IF($C$505=\"\",\"\",BB505/$C$505)","v":""},null,0]
[null,null,null,null,{"$f":"IF($C$506=\"\",\"\",F506/$C$506)","v":""},null,{"$f":"IF($C$506=\"\",\"\",H506/$C$506)","v":""},null,{"$f":"IF($C$506=\"\",\"\",J506/$C$506)","v":""},null,{"$f":"IF($C$506=\"\",\"\",L506/$C$506)","v":""},null,{"$f":"IF($C$506=\"\",\"\",N506/$C$506)","v":""},null,{"$f":"IF($C$506=\"\",\"\",P506/$C$506)","v":""},null,{"$f":"IF($C$506=\"\",\"\",R506/$C$506)","v":""},null,{"$f":"IF($C$506=\"\",\"\",T506/$C$506)","v":""},null,{"$f":"IF($C$506=\"\",\"\",V506/$C$506)","v":""},null,{"$f":"IF($C$506=\"\",\"\",X506/$C$506)","v":""},null,{"$f":"IF($C$506=\"\",\"\",Z506/$C$506)","v":""},null,{"$f":"IF($C$506=\"\",\"\",AB506/$C$506)","v":""},null,{"$f":"IF($C$506=\"\",\"\",AD506/$C$506)","v":""},null,{"$f":"IF($C$506=\"\",\"\",AF506/$C$506)","v":""},null,{"$f":"IF($C$506=\"\",\"\",AH506/$C$506)","v":""},null,{"$f":"IF($C$506=\"\",\"\",AJ506/$C$506)","v":""},null,{"$f":"IF($C$506=\"\",\"\",AL506/$C$506)","v":""},null,{"$f":"IF($C$506=\"\",\"\",AN506/$C$506)","v":""},null,{"$f":"IF($C$506=\"\",\"\",AP506/$C$506)","v":""},null,{"$f":"IF($C$506=\"\",\"\",AR506/$C$506)","v":""},null,{"$f":"IF($C$506=\"\",\"\",AT506/$C$506)","v":""},null,{"$f":"IF($C$506=\"\",\"\",AV506/$C$506)","v":""},null,{"$f":"IF($C$506=\"\",\"\",AX506/$C$506)","v":""},null,{"$f":"IF($C$506=\"\",\"\",AZ506/$C$506)","v":""},null,{"$f":"IF($C$506=\"\",\"\",BB506/$C$506)","v":""},null,0]
[null,null,null,null,{"$f":"IF($C$507=\"\",\"\",F507/$C$507)","v":""},null,{"$f":"IF($C$507=\"\",\"\",H507/$C$507)","v":""},null,{"$f":"IF($C$507=\"\",\"\",J507/$C$507)","v":""},null,{"$f":"IF($C$507=\"\",\"\",L507/$C$507)","v":""},null,{"$f":"IF($C$507=\"\",\"\",N507/$C$507)","v":""},null,{"$f":"IF($C$507=\"\",\"\",P507/$C$507)","v":""},null,{"$f":"IF($C$507=\"\",\"\",R507/$C$507)","v":""},null,{"$f":"IF($C$507=\"\",\"\",T507/$C$507)","v":""},null,{"$f":"IF($C$507=\"\",\"\",V507/$C$507)","v":""},null,{"$f":"IF($C$507=\"\",\"\",X507/$C$507)","v":""},null,{"$f":"IF($C$507=\"\",\"\",Z507/$C$507)","v":""},null,{"$f":"IF($C$507=\"\",\"\",AB507/$C$507)","v":""},null,{"$f":"IF($C$507=\"\",\"\",AD507/$C$507)","v":""},null,{"$f":"IF($C$507=\"\",\"\",AF507/$C$507)","v":""},null,{"$f":"IF($C$507=\"\",\"\",AH507/$C$507)","v":""},null,{"$f":"IF($C$507=\"\",\"\",AJ507/$C$507)","v":""},null,{"$f":"IF($C$507=\"\",\"\",AL507/$C$507)","v":""},null,{"$f":"IF($C$507=\"\",\"\",AN507/$C$507)","v":""},null,{"$f":"IF($C$507=\"\",\"\",AP507/$C$507)","v":""},null,{"$f":"IF($C$507=\"\",\"\",AR507/$C$507)","v":""},null,{"$f":"IF($C$507=\"\",\"\",AT507/$C$507)","v":""},null,{"$f":"IF($C$507=\"\",\"\",AV507/$C$507)","v":""},null,{"$f":"IF($C$507=\"\",\"\",AX507/$C$507)","v":""},null,{"$f":"IF($C$507=\"\",\"\",AZ507/$C$507)","v":""},null,{"$f":"IF($C$507=\"\",\"\",BB507/$C$507)","v":""},null,{"$f":"SUM(BB507,AZ507,AX507,AV507,AT507,AR507,AP507,AN507,AL507,AJ507,AH507,AF507,AD507,AB507,Z507,X507,V507,T507,R507,P507,N507,L507,J507,H507,F507)","v":0}]
["TOTAL HOURS",null,null,null,null,{"$f":"SUM(F478:F507)","v":0},null,{"$f":"SUM(H478:H507)","v":0},null,{"$f":"SUM(J478:J507)","v":0},null,{"$f":"SUM(L478:L507)","v":0},null,{"$f":"SUM(N478:N507)","v":0},null,{"$f":"SUM(P478:P507)","v":0},null,{"$f":"SUM(R478:R507)","v":0},null,{"$f":"SUM(T478:T507)","v":0},null,{"$f":"SUM(V478:V507)","v":0},null,{"$f":"SUM(X478:X507)","v":0},null,{"$f":"SUM(Z478:Z507)","v":0},null,{"$f":"SUM(AB478:AB507)","v":0},null,{"$f":"SUM(AD478:AD507)","v":0},null,{"$f":"SUM(AF478:AF507)","v":0},null,{"$f":"SUM(AH478:AH507)","v":0},null,{"$f":"SUM(AJ478:AJ507)","v":0},null,{"$f":"SUM(AL478:AL507)","v":0},null,{"$f":"SUM(AN478:AN507)","v":0},null,{"$f":"SUM(AP478:AP507)","v":0},null,{"$f":"SUM(AR478:AR507)","v":0},null,{"$f":"SUM(AT478:AT507)","v":0},null,{"$f":"SUM(AV478:AV507)","v":0},null,{"$f":"SUM(AX478:AX507)","v":0},null,{"$f":"SUM(AZ478:AZ507)","v":0},null,{"$f":"SUM(BB478:BB507)","v":0},{"$f":"SUM(E508:BB508)","v":0}]
["TOTAL WORKDAYS",null,null,null,null,{"$f":"F508/8","v":0},null,{"$f":"H508/8","v":0},null,{"$f":"J508/8","v":0},null,{"$f":"L508/8","v":0},null,{"$f":"N508/8","v":0},null,{"$f":"P508/8","v":0},null,{"$f":"R508/8","v":0},null,{"$f":"T508/8","v":0},null,{"$f":"V508/8","v":0},null,{"$f":"X508/8","v":0},null,{"$f":"Z508/8","v":0},null,{"$f":"AB508/8","v":0},null,{"$f":"AD508/8","v":0},null,0,null,{"$f":"AH508/8","v":0},null,0,null,{"$f":"AL508/8","v":0},null,0,null,{"$f":"AP508/8","v":0},null,0,null,{"$f":"AT508/8","v":0},null,{"$f":"AV508/8","v":0},null,{"$f":"AX508/8","v":0},null,{"$f":"AZ508/8","v":0},null,{"$f":"BB508/8","v":0},{"$f":"SUM(E509:BB509)","v":0}]
["TOTAL RAW LABOR",null,null,null,null,{"$f":"$E$13*F508","v":0},null,{"$f":"$G$13*H508","v":0},null,{"$f":"$I$13*J508","v":0},null,{"$f":"$K$13*L508","v":0},null,{"$f":"$M$13*N508","v":0},null,{"$f":"$O$13*P508","v":0},null,{"$f":"$Q$13*R508","v":0},null,{"$f":"$S$13*T508","v":0},null,{"$f":"$U$13*V508","v":0},null,{"$f":"$W$13*X508","v":0},null,{"$f":"$Y$13*Z508","v":0},null,{"$f":"$AA$13*AB508","v":0},null,{"$f":"$AC$13*AD508","v":0},null,{"$f":"$AC$13*AF508","v":0},null,{"$f":"$AC$13*AH508","v":0},null,{"$f":"$AC$13*AJ508","v":0},null,{"$f":"$AC$13*AL508","v":0},null,{"$f":"$AC$13*AN508","v":0},null,{"$f":"$AC$13*AP508","v":0},null,{"$f":"$AC$13*AR508","v":0},null,{"$f":"$AC$13*AT508","v":0},null,{"$f":"$AC$13*AV508","v":0},null,{"$f":"$AC$13*AX508","v":0},null,{"$f":"$AC$13*AZ508","v":0},null,{"$f":"$AC$13*BB508","v":0},{"$f":"SUM(E510:BB510)","v":0}]
["Task 19.0     ","REPLACE FIELD WITH CATEGORY NAME OF YOUR CHOOSING HERE",null,null,null,null,null,null,null,null,null,null,null,null,null,null,null,null,null,null,null,null,null,null,null,null,null,null,null,null,null,null,null,null,null,null,null,null,null,null,null,null,null,null,null,null,null,null,null,null,null,null,null,null,{"$f":"IF(B511=\"REPLACE FIELD WITH CATEGORY NAME OF YOUR CHOOSING HERE\",0,\"\")","v":0}]
[null,null,null,null,{"$f":"IF($C$512=\"\",\"\",F512/$C$512)","v":""},null,{"$f":"IF($C$512=\"\",\"\",H512/$C$512)","v":""},null,{"$f":"IF($C$512=\"\",\"\",J512/$C$512)","v":""},null,{"$f":"IF($C$512=\"\",\"\",L512/$C$512)","v":""},null,{"$f":"IF($C$512=\"\",\"\",N512/$C$512)","v":""},null,{"$f":"IF($C$512=\"\",\"\",P512/$C$512)","v":""},null,{"$f":"IF($C$512=\"\",\"\",R512/$C$512)","v":""},null,{"$f":"IF($C$512=\"\",\"\",T512/$C$512)","v":""},null,{"$f":"IF($C$512=\"\",\"\",V512/$C$512)","v":""},null,{"$f":"IF($C$512=\"\",\"\",X512/$C$512)","v":""},null,{"$f":"IF($C$512=\"\",\"\",Z512/$C$512)","v":""},null,{"$f":"IF($C$512=\"\",\"\",AB512/$C$512)","v":""},null,{"$f":"IF($C$512=\"\",\"\",AD512/$C$512)","v":""},null,{"$f":"IF($C$512=\"\",\"\",AF512/$C$512)","v":""},null,{"$f":"IF($C$512=\"\",\"\",AH512/$C$512)","v":""},null,{"$f":"IF($C$512=\"\",\"\",AJ512/$C$512)","v":""},null,{"$f":"IF($C$512=\"\",\"\",AL512/$C$512)","v":""},null,{"$f":"IF($C$512=\"\",\"\",AN512/$C$512)","v":""},null,{"$f":"IF($C$512=\"\",\"\",AP512/$C$512)","v":""},null,{"$f":"IF($C$512=\"\",\"\",AR512/$C$512)","v":""},null,{"$f":"IF($C$512=\"\",\"\",AT512/$C$512)","v":""},null,{"$f":"IF($C$512=\"\",\"\",AV512/$C$512)","v":""},null,{"$f":"IF($C$512=\"\",\"\",AX512/$C$512)","v":""},null,{"$f":"IF($C$512=\"\",\"\",AZ512/$C$512)","v":""},null,{"$f":"IF($C$512=\"\",\"\",BB512/$C$512)","v":""},null,{"$f":"SUM(BB512,AZ512,AX512,AV512,AT512,AR512,AP512,AN512,AL512,AJ512,AH512,AF512,AD512,AB512,Z512,X512,V512,T512,R512,P512,N512,L512,J512,H512,F512)","v":0}]
[null,null,null,null,{"$f":"IF($C$513=\"\",\"\",F513/$C$513)","v":""},null,{"$f":"IF($C$513=\"\",\"\",H513/$C$513)","v":""},null,{"$f":"IF($C$513=\"\",\"\",J513/$C$513)","v":""},null,{"$f":"IF($C$513=\"\",\"\",L513/$C$513)","v":""},null,{"$f":"IF($C$513=\"\",\"\",N513/$C$513)","v":""},null,{"$f":"IF($C$513=\"\",\"\",P513/$C$513)","v":""},null,{"$f":"IF($C$513=\"\",\"\",R513/$C$513)","v":""},null,{"$f":"IF($C$513=\"\",\"\",T513/$C$513)","v":""},null,{"$f":"IF($C$513=\"\",\"\",V513/$C$513)","v":""},null,{"$f":"IF($C$513=\"\",\"\",X513/$C$513)","v":""},null,{"$f":"IF($C$513=\"\",\"\",Z513/$C$513)","v":""},null,{"$f":"IF($C$513=\"\",\"\",AB513/$C$513)","v":""},null,{"$f":"IF($C$513=\"\",\"\",AD513/$C$513)","v":""},null,{"$f":"IF($C$513=\"\",\"\",AF513/$C$513)","v":""},null,{"$f":"IF($C$513=\"\",\"\",AH513/$C$513)","v":""},null,{"$f":"IF($C$513=\"\",\"\",AJ513/$C$513)","v":""},null,{"$f":"IF($C$513=\"\",\"\",AL513/$C$513)","v":""},null,{"$f":"IF($C$513=\"\",\"\",AN513/$C$513)","v":""},null,{"$f":"IF($C$513=\"\",\"\",AP513/$C$513)","v":""},null,{"$f":"IF($C$513=\"\",\"\",AR513/$C$513)","v":""},null,{"$f":"IF($C$513=\"\",\"\",AT513/$C$513)","v":""},null,{"$f":"IF($C$513=\"\",\"\",AV513/$C$513)","v":""},null,{"$f":"IF($C$513=\"\",\"\",AX513/$C$513)","v":""},null,{"$f":"IF($C$513=\"\",\"\",AZ513/$C$513)","v":""},null,{"$f":"IF($C$513=\"\",\"\",BB513/$C$513)","v":""},null,0]
[null,null,null,null,{"$f":"IF($C$514=\"\",\"\",F514/$C$514)","v":""},null,{"$f":"IF($C$514=\"\",\"\",H514/$C$514)","v":""},null,{"$f":"IF($C$514=\"\",\"\",J514/$C$514)","v":""},null,{"$f":"IF($C$514=\"\",\"\",L514/$C$514)","v":""},null,{"$f":"IF($C$514=\"\",\"\",N514/$C$514)","v":""},null,{"$f":"IF($C$514=\"\",\"\",P514/$C$514)","v":""},null,{"$f":"IF($C$514=\"\",\"\",R514/$C$514)","v":""},null,{"$f":"IF($C$514=\"\",\"\",T514/$C$514)","v":""},null,{"$f":"IF($C$514=\"\",\"\",V514/$C$514)","v":""},null,{"$f":"IF($C$514=\"\",\"\",X514/$C$514)","v":""},null,{"$f":"IF($C$514=\"\",\"\",Z514/$C$514)","v":""},null,{"$f":"IF($C$514=\"\",\"\",AB514/$C$514)","v":""},null,{"$f":"IF($C$514=\"\",\"\",AD514/$C$514)","v":""},null,{"$f":"IF($C$514=\"\",\"\",AF514/$C$514)","v":""},null,{"$f":"IF($C$514=\"\",\"\",AH514/$C$514)","v":""},null,{"$f":"IF($C$514=\"\",\"\",AJ514/$C$514)","v":""},null,{"$f":"IF($C$514=\"\",\"\",AL514/$C$514)","v":""},null,{"$f":"IF($C$514=\"\",\"\",AN514/$C$514)","v":""},null,{"$f":"IF($C$514=\"\",\"\",AP514/$C$514)","v":""},null,{"$f":"IF($C$514=\"\",\"\",AR514/$C$514)","v":""},null,{"$f":"IF($C$514=\"\",\"\",AT514/$C$514)","v":""},null,{"$f":"IF($C$514=\"\",\"\",AV514/$C$514)","v":""},null,{"$f":"IF($C$514=\"\",\"\",AX514/$C$514)","v":""},null,{"$f":"IF($C$514=\"\",\"\",AZ514/$C$514)","v":""},null,{"$f":"IF($C$514=\"\",\"\",BB514/$C$514)","v":""},null,0]
[null,null,null,null,{"$f":"IF($C$515=\"\",\"\",F515/$C$515)","v":""},null,{"$f":"IF($C$515=\"\",\"\",H515/$C$515)","v":""},null,{"$f":"IF($C$515=\"\",\"\",J515/$C$515)","v":""},null,{"$f":"IF($C$515=\"\",\"\",L515/$C$515)","v":""},null,{"$f":"IF($C$515=\"\",\"\",N515/$C$515)","v":""},null,{"$f":"IF($C$515=\"\",\"\",P515/$C$515)","v":""},null,{"$f":"IF($C$515=\"\",\"\",R515/$C$515)","v":""},null,{"$f":"IF($C$515=\"\",\"\",T515/$C$515)","v":""},null,{"$f":"IF($C$515=\"\",\"\",V515/$C$515)","v":""},null,{"$f":"IF($C$515=\"\",\"\",X515/$C$515)","v":""},null,{"$f":"IF($C$515=\"\",\"\",Z515/$C$515)","v":""},null,{"$f":"IF($C$515=\"\",\"\",AB515/$C$515)","v":""},null,{"$f":"IF($C$515=\"\",\"\",AD515/$C$515)","v":""},null,{"$f":"IF($C$515=\"\",\"\",AF515/$C$515)","v":""},null,{"$f":"IF($C$515=\"\",\"\",AH515/$C$515)","v":""},null,{"$f":"IF($C$515=\"\",\"\",AJ515/$C$515)","v":""},null,{"$f":"IF($C$515=\"\",\"\",AL515/$C$515)","v":""},null,{"$f":"IF($C$515=\"\",\"\",AN515/$C$515)","v":""},null,{"$f":"IF($C$515=\"\",\"\",AP515/$C$515)","v":""},null,{"$f":"IF($C$515=\"\",\"\",AR515/$C$515)","v":""},null,{"$f":"IF($C$515=\"\",\"\",AT515/$C$515)","v":""},null,{"$f":"IF($C$515=\"\",\"\",AV515/$C$515)","v":""},null,{"$f":"IF($C$515=\"\",\"\",AX515/$C$515)","v":""},null,{"$f":"IF($C$515=\"\",\"\",AZ515/$C$515)","v":""},null,{"$f":"IF($C$515=\"\",\"\",BB515/$C$515)","v":""},null,0]
[null,null,null,null,{"$f":"IF($C$516=\"\",\"\",F516/$C$516)","v":""},null,{"$f":"IF($C$516=\"\",\"\",H516/$C$516)","v":""},null,{"$f":"IF($C$516=\"\",\"\",J516/$C$516)","v":""},null,{"$f":"IF($C$516=\"\",\"\",L516/$C$516)","v":""},null,{"$f":"IF($C$516=\"\",\"\",N516/$C$516)","v":""},null,{"$f":"IF($C$516=\"\",\"\",P516/$C$516)","v":""},null,{"$f":"IF($C$516=\"\",\"\",R516/$C$516)","v":""},null,{"$f":"IF($C$516=\"\",\"\",T516/$C$516)","v":""},null,{"$f":"IF($C$516=\"\",\"\",V516/$C$516)","v":""},null,{"$f":"IF($C$516=\"\",\"\",X516/$C$516)","v":""},null,{"$f":"IF($C$516=\"\",\"\",Z516/$C$516)","v":""},null,{"$f":"IF($C$516=\"\",\"\",AB516/$C$516)","v":""},null,{"$f":"IF($C$516=\"\",\"\",AD516/$C$516)","v":""},null,{"$f":"IF($C$516=\"\",\"\",AF516/$C$516)","v":""},null,{"$f":"IF($C$516=\"\",\"\",AH516/$C$516)","v":""},null,{"$f":"IF($C$516=\"\",\"\",AJ516/$C$516)","v":""},null,{"$f":"IF($C$516=\"\",\"\",AL516/$C$516)","v":""},null,{"$f":"IF($C$516=\"\",\"\",AN516/$C$516)","v":""},null,{"$f":"IF($C$516=\"\",\"\",AP516/$C$516)","v":""},null,{"$f":"IF($C$516=\"\",\"\",AR516/$C$516)","v":""},null,{"$f":"IF($C$516=\"\",\"\",AT516/$C$516)","v":""},null,{"$f":"IF($C$516=\"\",\"\",AV516/$C$516)","v":""},null,{"$f":"IF($C$516=\"\",\"\",AX516/$C$516)","v":""},null,{"$f":"IF($C$516=\"\",\"\",AZ516/$C$516)","v":""},null,{"$f":"IF($C$516=\"\",\"\",BB516/$C$516)","v":""},null,0]
[null,null,null,null,{"$f":"IF($C$517=\"\",\"\",F517/$C$517)","v":""},null,{"$f":"IF($C$517=\"\",\"\",H517/$C$517)","v":""},null,{"$f":"IF($C$517=\"\",\"\",J517/$C$517)","v":""},null,{"$f":"IF($C$517=\"\",\"\",L517/$C$517)","v":""},null,{"$f":"IF($C$517=\"\",\"\",N517/$C$517)","v":""},null,{"$f":"IF($C$517=\"\",\"\",P517/$C$517)","v":""},null,{"$f":"IF($C$517=\"\",\"\",R517/$C$517)","v":""},null,{"$f":"IF($C$517=\"\",\"\",T517/$C$517)","v":""},null,{"$f":"IF($C$517=\"\",\"\",V517/$C$517)","v":""},null,{"$f":"IF($C$517=\"\",\"\",X517/$C$517)","v":""},null,{"$f":"IF($C$517=\"\",\"\",Z517/$C$517)","v":""},null,{"$f":"IF($C$517=\"\",\"\",AB517/$C$517)","v":""},null,{"$f":"IF($C$517=\"\",\"\",AD517/$C$517)","v":""},null,{"$f":"IF($C$517=\"\",\"\",AF517/$C$517)","v":""},null,{"$f":"IF($C$517=\"\",\"\",AH517/$C$517)","v":""},null,{"$f":"IF($C$517=\"\",\"\",AJ517/$C$517)","v":""},null,{"$f":"IF($C$517=\"\",\"\",AL517/$C$517)","v":""},null,{"$f":"IF($C$517=\"\",\"\",AN517/$C$517)","v":""},null,{"$f":"IF($C$517=\"\",\"\",AP517/$C$517)","v":""},null,{"$f":"IF($C$517=\"\",\"\",AR517/$C$517)","v":""},null,{"$f":"IF($C$517=\"\",\"\",AT517/$C$517)","v":""},null,{"$f":"IF($C$517=\"\",\"\",AV517/$C$517)","v":""},null,{"$f":"IF($C$517=\"\",\"\",AX517/$C$517)","v":""},null,{"$f":"IF($C$517=\"\",\"\",AZ517/$C$517)","v":""},null,{"$f":"IF($C$517=\"\",\"\",BB517/$C$517)","v":""},null,0]
[null,null,null,null,{"$f":"IF($C$518=\"\",\"\",F518/$C$518)","v":""},null,{"$f":"IF($C$518=\"\",\"\",H518/$C$518)","v":""},null,{"$f":"IF($C$518=\"\",\"\",J518/$C$518)","v":""},null,{"$f":"IF($C$518=\"\",\"\",L518/$C$518)","v":""},null,{"$f":"IF($C$518=\"\",\"\",N518/$C$518)","v":""},null,{"$f":"IF($C$518=\"\",\"\",P518/$C$518)","v":""},null,{"$f":"IF($C$518=\"\",\"\",R518/$C$518)","v":""},null,{"$f":"IF($C$518=\"\",\"\",T518/$C$518)","v":""},null,{"$f":"IF($C$518=\"\",\"\",V518/$C$518)","v":""},null,{"$f":"IF($C$518=\"\",\"\",X518/$C$518)","v":""},null,{"$f":"IF($C$518=\"\",\"\",Z518/$C$518)","v":""},null,{"$f":"IF($C$518=\"\",\"\",AB518/$C$518)","v":""},null,{"$f":"IF($C$518=\"\",\"\",AD518/$C$518)","v":""},null,{"$f":"IF($C$518=\"\",\"\",AF518/$C$518)","v":""},null,{"$f":"IF($C$518=\"\",\"\",AH518/$C$518)","v":""},null,{"$f":"IF($C$518=\"\",\"\",AJ518/$C$518)","v":""},null,{"$f":"IF($C$518=\"\",\"\",AL518/$C$518)","v":""},null,{"$f":"IF($C$518=\"\",\"\",AN518/$C$518)","v":""},null,{"$f":"IF($C$518=\"\",\"\",AP518/$C$518)","v":""},null,{"$f":"IF($C$518=\"\",\"\",AR518/$C$518)","v":""},null,{"$f":"IF($C$518=\"\",\"\",AT518/$C$518)","v":""},null,{"$f":"IF($C$518=\"\",\"\",AV518/$C$518)","v":""},null,{"$f":"IF($C$518=\"\",\"\",AX518/$C$518)","v":""},null,{"$f":"IF($C$518=\"\",\"\",AZ518/$C$518)","v":""},null,{"$f":"IF($C$518=\"\",\"\",BB518/$C$518)","v":""},null,0]
[null,null,null,null,{"$f":"IF($C$519=\"\",\"\",F519/$C$519)","v":""},null,{"$f":"IF($C$519=\"\",\"\",H519/$C$519)","v":""},null,{"$f":"IF($C$519=\"\",\"\",J519/$C$519)","v":""},null,{"$f":"IF($C$519=\"\",\"\",L519/$C$519)","v":""},null,{"$f":"IF($C$519=\"\",\"\",N519/$C$519)","v":""},null,{"$f":"IF($C$519=\"\",\"\",P519/$C$519)","v":""},null,{"$f":"IF($C$519=\"\",\"\",R519/$C$519)","v":""},null,{"$f":"IF($C$519=\"\",\"\",T519/$C$519)","v":""},null,{"$f":"IF($C$519=\"\",\"\",V519/$C$519)","v":""},null,{"$f":"IF($C$519=\"\",\"\",X519/$C$519)","v":""},null,{"$f":"IF($C$519=\"\",\"\",Z519/$C$519)","v":""},null,{"$f":"IF($C$519=\"\",\"\",AB519/$C$519)","v":""},null,{"$f":"IF($C$519=\"\",\"\",AD519/$C$519)","v":""},null,{"$f":"IF($C$519=\"\",\"\",AF519/$C$519)","v":""},null,{"$f":"IF($C$519=\"\",\"\",AH519/$C$519)","v":""},null,{"$f":"IF($C$519=\"\",\"\",AJ519/$C$519)","v":""},null,{"$f":"IF($C$519=\"\",\"\",AL519/$C$519)","v":""},null,{"$f":"IF($C$519=\"\",\"\",AN519/$C$519)","v":""},null,{"$f":"IF($C$519=\"\",\"\",AP519/$C$519)","v":""},null,{"$f":"IF($C$519=\"\",\"\",AR519/$C$519)","v":""},null,{"$f":"IF($C$519=\"\",\"\",AT519/$C$519)","v":""},null,{"$f":"IF($C$519=\"\",\"\",AV519/$C$519)","v":""},null,{"$f":"IF($C$519=\"\",\"\",AX519/$C$519)","v":""},null,{"$f":"IF($C$519=\"\",\"\",AZ519/$C$519)","v":""},null,{"$f":"IF($C$519=\"\",\"\",BB519/$C$519)","v":""},null,0]
[null,null,null,null,{"$f":"IF($C$520=\"\",\"\",F520/$C$520)","v":""},null,{"$f":"IF($C$520=\"\",\"\",H520/$C$520)","v":""},null,{"$f":"IF($C$520=\"\",\"\",J520/$C$520)","v":""},null,{"$f":"IF($C$520=\"\",\"\",L520/$C$520)","v":""},null,{"$f":"IF($C$520=\"\",\"\",N520/$C$520)","v":""},null,{"$f":"IF($C$520=\"\",\"\",P520/$C$520)","v":""},null,{"$f":"IF($C$520=\"\",\"\",R520/$C$520)","v":""},null,{"$f":"IF($C$520=\"\",\"\",T520/$C$520)","v":""},null,{"$f":"IF($C$520=\"\",\"\",V520/$C$520)","v":""},null,{"$f":"IF($C$520=\"\",\"\",X520/$C$520)","v":""},null,{"$f":"IF($C$520=\"\",\"\",Z520/$C$520)","v":""},null,{"$f":"IF($C$520=\"\",\"\",AB520/$C$520)","v":""},null,{"$f":"IF($C$520=\"\",\"\",AD520/$C$520)","v":""},null,{"$f":"IF($C$520=\"\",\"\",AF520/$C$520)","v":""},null,{"$f":"IF($C$520=\"\",\"\",AH520/$C$520)","v":""},null,{"$f":"IF($C$520=\"\",\"\",AJ520/$C$520)","v":""},null,{"$f":"IF($C$520=\"\",\"\",AL520/$C$520)","v":""},null,{"$f":"IF($C$520=\"\",\"\",AN520/$C$520)","v":""},null,{"$f":"IF($C$520=\"\",\"\",AP520/$C$520)","v":""},null,{"$f":"IF($C$520=\"\",\"\",AR520/$C$520)","v":""},null,{"$f":"IF($C$520=\"\",\"\",AT520/$C$520)","v":""},null,{"$f":"IF($C$520=\"\",\"\",AV520/$C$520)","v":""},null,{"$f":"IF($C$520=\"\",\"\",AX520/$C$520)","v":""},null,{"$f":"IF($C$520=\"\",\"\",AZ520/$C$520)","v":""},null,{"$f":"IF($C$520=\"\",\"\",BB520/$C$520)","v":""},null,0]
[null,null,null,null,{"$f":"IF($C$521=\"\",\"\",F521/$C$521)","v":""},null,{"$f":"IF($C$521=\"\",\"\",H521/$C$521)","v":""},null,{"$f":"IF($C$521=\"\",\"\",J521/$C$521)","v":""},null,{"$f":"IF($C$521=\"\",\"\",L521/$C$521)","v":""},null,{"$f":"IF($C$521=\"\",\"\",N521/$C$521)","v":""},null,{"$f":"IF($C$521=\"\",\"\",P521/$C$521)","v":""},null,{"$f":"IF($C$521=\"\",\"\",R521/$C$521)","v":""},null,{"$f":"IF($C$521=\"\",\"\",T521/$C$521)","v":""},null,{"$f":"IF($C$521=\"\",\"\",V521/$C$521)","v":""},null,{"$f":"IF($C$521=\"\",\"\",X521/$C$521)","v":""},null,{"$f":"IF($C$521=\"\",\"\",Z521/$C$521)","v":""},null,{"$f":"IF($C$521=\"\",\"\",AB521/$C$521)","v":""},null,{"$f":"IF($C$521=\"\",\"\",AD521/$C$521)","v":""},null,{"$f":"IF($C$521=\"\",\"\",AF521/$C$521)","v":""},null,{"$f":"IF($C$521=\"\",\"\",AH521/$C$521)","v":""},null,{"$f":"IF($C$521=\"\",\"\",AJ521/$C$521)","v":""},null,{"$f":"IF($C$521=\"\",\"\",AL521/$C$521)","v":""},null,{"$f":"IF($C$521=\"\",\"\",AN521/$C$521)","v":""},null,{"$f":"IF($C$521=\"\",\"\",AP521/$C$521)","v":""},null,{"$f":"IF($C$521=\"\",\"\",AR521/$C$521)","v":""},null,{"$f":"IF($C$521=\"\",\"\",AT521/$C$521)","v":""},null,{"$f":"IF($C$521=\"\",\"\",AV521/$C$521)","v":""},null,{"$f":"IF($C$521=\"\",\"\",AX521/$C$521)","v":""},null,{"$f":"IF($C$521=\"\",\"\",AZ521/$C$521)","v":""},null,{"$f":"IF($C$521=\"\",\"\",BB521/$C$521)","v":""},null,0]
[null,null,null,null,{"$f":"IF($C$522=\"\",\"\",F522/$C$522)","v":""},null,{"$f":"IF($C$522=\"\",\"\",H522/$C$522)","v":""},null,{"$f":"IF($C$522=\"\",\"\",J522/$C$522)","v":""},null,{"$f":"IF($C$522=\"\",\"\",L522/$C$522)","v":""},null,{"$f":"IF($C$522=\"\",\"\",N522/$C$522)","v":""},null,{"$f":"IF($C$522=\"\",\"\",P522/$C$522)","v":""},null,{"$f":"IF($C$522=\"\",\"\",R522/$C$522)","v":""},null,{"$f":"IF($C$522=\"\",\"\",T522/$C$522)","v":""},null,{"$f":"IF($C$522=\"\",\"\",V522/$C$522)","v":""},null,{"$f":"IF($C$522=\"\",\"\",X522/$C$522)","v":""},null,{"$f":"IF($C$522=\"\",\"\",Z522/$C$522)","v":""},null,{"$f":"IF($C$522=\"\",\"\",AB522/$C$522)","v":""},null,{"$f":"IF($C$522=\"\",\"\",AD522/$C$522)","v":""},null,{"$f":"IF($C$522=\"\",\"\",AF522/$C$522)","v":""},null,{"$f":"IF($C$522=\"\",\"\",AH522/$C$522)","v":""},null,{"$f":"IF($C$522=\"\",\"\",AJ522/$C$522)","v":""},null,{"$f":"IF($C$522=\"\",\"\",AL522/$C$522)","v":""},null,{"$f":"IF($C$522=\"\",\"\",AN522/$C$522)","v":""},null,{"$f":"IF($C$522=\"\",\"\",AP522/$C$522)","v":""},null,{"$f":"IF($C$522=\"\",\"\",AR522/$C$522)","v":""},null,{"$f":"IF($C$522=\"\",\"\",AT522/$C$522)","v":""},null,{"$f":"IF($C$522=\"\",\"\",AV522/$C$522)","v":""},null,{"$f":"IF($C$522=\"\",\"\",AX522/$C$522)","v":""},null,{"$f":"IF($C$522=\"\",\"\",AZ522/$C$522)","v":""},null,{"$f":"IF($C$522=\"\",\"\",BB522/$C$522)","v":""},null,0]
[null,null,null,null,{"$f":"IF($C$523=\"\",\"\",F523/$C$523)","v":""},null,{"$f":"IF($C$523=\"\",\"\",H523/$C$523)","v":""},null,{"$f":"IF($C$523=\"\",\"\",J523/$C$523)","v":""},null,{"$f":"IF($C$523=\"\",\"\",L523/$C$523)","v":""},null,{"$f":"IF($C$523=\"\",\"\",N523/$C$523)","v":""},null,{"$f":"IF($C$523=\"\",\"\",P523/$C$523)","v":""},null,{"$f":"IF($C$523=\"\",\"\",R523/$C$523)","v":""},null,{"$f":"IF($C$523=\"\",\"\",T523/$C$523)","v":""},null,{"$f":"IF($C$523=\"\",\"\",V523/$C$523)","v":""},null,{"$f":"IF($C$523=\"\",\"\",X523/$C$523)","v":""},null,{"$f":"IF($C$523=\"\",\"\",Z523/$C$523)","v":""},null,{"$f":"IF($C$523=\"\",\"\",AB523/$C$523)","v":""},null,{"$f":"IF($C$523=\"\",\"\",AD523/$C$523)","v":""},null,{"$f":"IF($C$523=\"\",\"\",AF523/$C$523)","v":""},null,{"$f":"IF($C$523=\"\",\"\",AH523/$C$523)","v":""},null,{"$f":"IF($C$523=\"\",\"\",AJ523/$C$523)","v":""},null,{"$f":"IF($C$523=\"\",\"\",AL523/$C$523)","v":""},null,{"$f":"IF($C$523=\"\",\"\",AN523/$C$523)","v":""},null,{"$f":"IF($C$523=\"\",\"\",AP523/$C$523)","v":""},null,{"$f":"IF($C$523=\"\",\"\",AR523/$C$523)","v":""},null,{"$f":"IF($C$523=\"\",\"\",AT523/$C$523)","v":""},null,{"$f":"IF($C$523=\"\",\"\",AV523/$C$523)","v":""},null,{"$f":"IF($C$523=\"\",\"\",AX523/$C$523)","v":""},null,{"$f":"IF($C$523=\"\",\"\",AZ523/$C$523)","v":""},null,{"$f":"IF($C$523=\"\",\"\",BB523/$C$523)","v":""},null,0]
[null,null,null,null,{"$f":"IF($C$524=\"\",\"\",F524/$C$524)","v":""},null,{"$f":"IF($C$524=\"\",\"\",H524/$C$524)","v":""},null,{"$f":"IF($C$524=\"\",\"\",J524/$C$524)","v":""},null,{"$f":"IF($C$524=\"\",\"\",L524/$C$524)","v":""},null,{"$f":"IF($C$524=\"\",\"\",N524/$C$524)","v":""},null,{"$f":"IF($C$524=\"\",\"\",P524/$C$524)","v":""},null,{"$f":"IF($C$524=\"\",\"\",R524/$C$524)","v":""},null,{"$f":"IF($C$524=\"\",\"\",T524/$C$524)","v":""},null,{"$f":"IF($C$524=\"\",\"\",V524/$C$524)","v":""},null,{"$f":"IF($C$524=\"\",\"\",X524/$C$524)","v":""},null,{"$f":"IF($C$524=\"\",\"\",Z524/$C$524)","v":""},null,{"$f":"IF($C$524=\"\",\"\",AB524/$C$524)","v":""},null,{"$f":"IF($C$524=\"\",\"\",AD524/$C$524)","v":""},null,{"$f":"IF($C$524=\"\",\"\",AF524/$C$524)","v":""},null,{"$f":"IF($C$524=\"\",\"\",AH524/$C$524)","v":""},null,{"$f":"IF($C$524=\"\",\"\",AJ524/$C$524)","v":""},null,{"$f":"IF($C$524=\"\",\"\",AL524/$C$524)","v":""},null,{"$f":"IF($C$524=\"\",\"\",AN524/$C$524)","v":""},null,{"$f":"IF($C$524=\"\",\"\",AP524/$C$524)","v":""},null,{"$f":"IF($C$524=\"\",\"\",AR524/$C$524)","v":""},null,{"$f":"IF($C$524=\"\",\"\",AT524/$C$524)","v":""},null,{"$f":"IF($C$524=\"\",\"\",AV524/$C$524)","v":""},null,{"$f":"IF($C$524=\"\",\"\",AX524/$C$524)","v":""},null,{"$f":"IF($C$524=\"\",\"\",AZ524/$C$524)","v":""},null,{"$f":"IF($C$524=\"\",\"\",BB524/$C$524)","v":""},null,0]
[null,null,null,null,{"$f":"IF($C$525=\"\",\"\",F525/$C$525)","v":""},null,{"$f":"IF($C$525=\"\",\"\",H525/$C$525)","v":""},null,{"$f":"IF($C$525=\"\",\"\",J525/$C$525)","v":""},null,{"$f":"IF($C$525=\"\",\"\",L525/$C$525)","v":""},null,{"$f":"IF($C$525=\"\",\"\",N525/$C$525)","v":""},null,{"$f":"IF($C$525=\"\",\"\",P525/$C$525)","v":""},null,{"$f":"IF($C$525=\"\",\"\",R525/$C$525)","v":""},null,{"$f":"IF($C$525=\"\",\"\",T525/$C$525)","v":""},null,{"$f":"IF($C$525=\"\",\"\",V525/$C$525)","v":""},null,{"$f":"IF($C$525=\"\",\"\",X525/$C$525)","v":""},null,{"$f":"IF($C$525=\"\",\"\",Z525/$C$525)","v":""},null,{"$f":"IF($C$525=\"\",\"\",AB525/$C$525)","v":""},null,{"$f":"IF($C$525=\"\",\"\",AD525/$C$525)","v":""},null,{"$f":"IF($C$525=\"\",\"\",AF525/$C$525)","v":""},null,{"$f":"IF($C$525=\"\",\"\",AH525/$C$525)","v":""},null,{"$f":"IF($C$525=\"\",\"\",AJ525/$C$525)","v":""},null,{"$f":"IF($C$525=\"\",\"\",AL525/$C$525)","v":""},null,{"$f":"IF($C$525=\"\",\"\",AN525/$C$525)","v":""},null,{"$f":"IF($C$525=\"\",\"\",AP525/$C$525)","v":""},null,{"$f":"IF($C$525=\"\",\"\",AR525/$C$525)","v":""},null,{"$f":"IF($C$525=\"\",\"\",AT525/$C$525)","v":""},null,{"$f":"IF($C$525=\"\",\"\",AV525/$C$525)","v":""},null,{"$f":"IF($C$525=\"\",\"\",AX525/$C$525)","v":""},null,{"$f":"IF($C$525=\"\",\"\",AZ525/$C$525)","v":""},null,{"$f":"IF($C$525=\"\",\"\",BB525/$C$525)","v":""},null,0]
[null,null,null,null,{"$f":"IF($C$526=\"\",\"\",F526/$C$526)","v":""},null,{"$f":"IF($C$526=\"\",\"\",H526/$C$526)","v":""},null,{"$f":"IF($C$526=\"\",\"\",J526/$C$526)","v":""},null,{"$f":"IF($C$526=\"\",\"\",L526/$C$526)","v":""},null,{"$f":"IF($C$526=\"\",\"\",N526/$C$526)","v":""},null,{"$f":"IF($C$526=\"\",\"\",P526/$C$526)","v":""},null,{"$f":"IF($C$526=\"\",\"\",R526/$C$526)","v":""},null,{"$f":"IF($C$526=\"\",\"\",T526/$C$526)","v":""},null,{"$f":"IF($C$526=\"\",\"\",V526/$C$526)","v":""},null,{"$f":"IF($C$526=\"\",\"\",X526/$C$526)","v":""},null,{"$f":"IF($C$526=\"\",\"\",Z526/$C$526)","v":""},null,{"$f":"IF($C$526=\"\",\"\",AB526/$C$526)","v":""},null,{"$f":"IF($C$526=\"\",\"\",AD526/$C$526)","v":""},null,{"$f":"IF($C$526=\"\",\"\",AF526/$C$526)","v":""},null,{"$f":"IF($C$526=\"\",\"\",AH526/$C$526)","v":""},null,{"$f":"IF($C$526=\"\",\"\",AJ526/$C$526)","v":""},null,{"$f":"IF($C$526=\"\",\"\",AL526/$C$526)","v":""},null,{"$f":"IF($C$526=\"\",\"\",AN526/$C$526)","v":""},null,{"$f":"IF($C$526=\"\",\"\",AP526/$C$526)","v":""},null,{"$f":"IF($C$526=\"\",\"\",AR526/$C$526)","v":""},null,{"$f":"IF($C$526=\"\",\"\",AT526/$C$526)","v":""},null,{"$f":"IF($C$526=\"\",\"\",AV526/$C$526)","v":""},null,{"$f":"IF($C$526=\"\",\"\",AX526/$C$526)","v":""},null,{"$f":"IF($C$526=\"\",\"\",AZ526/$C$526)","v":""},null,{"$f":"IF($C$526=\"\",\"\",BB526/$C$526)","v":""},null,0]
[null,null,null,null,{"$f":"IF($C$527=\"\",\"\",F527/$C$527)","v":""},null,{"$f":"IF($C$527=\"\",\"\",H527/$C$527)","v":""},null,{"$f":"IF($C$527=\"\",\"\",J527/$C$527)","v":""},null,{"$f":"IF($C$527=\"\",\"\",L527/$C$527)","v":""},null,{"$f":"IF($C$527=\"\",\"\",N527/$C$527)","v":""},null,{"$f":"IF($C$527=\"\",\"\",P527/$C$527)","v":""},null,{"$f":"IF($C$527=\"\",\"\",R527/$C$527)","v":""},null,{"$f":"IF($C$527=\"\",\"\",T527/$C$527)","v":""},null,{"$f":"IF($C$527=\"\",\"\",V527/$C$527)","v":""},null,{"$f":"IF($C$527=\"\",\"\",X527/$C$527)","v":""},null,{"$f":"IF($C$527=\"\",\"\",Z527/$C$527)","v":""},null,{"$f":"IF($C$527=\"\",\"\",AB527/$C$527)","v":""},null,{"$f":"IF($C$527=\"\",\"\",AD527/$C$527)","v":""},null,{"$f":"IF($C$527=\"\",\"\",AF527/$C$527)","v":""},null,{"$f":"IF($C$527=\"\",\"\",AH527/$C$527)","v":""},null,{"$f":"IF($C$527=\"\",\"\",AJ527/$C$527)","v":""},null,{"$f":"IF($C$527=\"\",\"\",AL527/$C$527)","v":""},null,{"$f":"IF($C$527=\"\",\"\",AN527/$C$527)","v":""},null,{"$f":"IF($C$527=\"\",\"\",AP527/$C$527)","v":""},null,{"$f":"IF($C$527=\"\",\"\",AR527/$C$527)","v":""},null,{"$f":"IF($C$527=\"\",\"\",AT527/$C$527)","v":""},null,{"$f":"IF($C$527=\"\",\"\",AV527/$C$527)","v":""},null,{"$f":"IF($C$527=\"\",\"\",AX527/$C$527)","v":""},null,{"$f":"IF($C$527=\"\",\"\",AZ527/$C$527)","v":""},null,{"$f":"IF($C$527=\"\",\"\",BB527/$C$527)","v":""},null,0]
[null,null,null,null,{"$f":"IF($C$528=\"\",\"\",F528/$C$528)","v":""},null,{"$f":"IF($C$528=\"\",\"\",H528/$C$528)","v":""},null,{"$f":"IF($C$528=\"\",\"\",J528/$C$528)","v":""},null,{"$f":"IF($C$528=\"\",\"\",L528/$C$528)","v":""},null,{"$f":"IF($C$528=\"\",\"\",N528/$C$528)","v":""},null,{"$f":"IF($C$528=\"\",\"\",P528/$C$528)","v":""},null,{"$f":"IF($C$528=\"\",\"\",R528/$C$528)","v":""},null,{"$f":"IF($C$528=\"\",\"\",T528/$C$528)","v":""},null,{"$f":"IF($C$528=\"\",\"\",V528/$C$528)","v":""},null,{"$f":"IF($C$528=\"\",\"\",X528/$C$528)","v":""},null,{"$f":"IF($C$528=\"\",\"\",Z528/$C$528)","v":""},null,{"$f":"IF($C$528=\"\",\"\",AB528/$C$528)","v":""},null,{"$f":"IF($C$528=\"\",\"\",AD528/$C$528)","v":""},null,{"$f":"IF($C$528=\"\",\"\",AF528/$C$528)","v":""},null,{"$f":"IF($C$528=\"\",\"\",AH528/$C$528)","v":""},null,{"$f":"IF($C$528=\"\",\"\",AJ528/$C$528)","v":""},null,{"$f":"IF($C$528=\"\",\"\",AL528/$C$528)","v":""},null,{"$f":"IF($C$528=\"\",\"\",AN528/$C$528)","v":""},null,{"$f":"IF($C$528=\"\",\"\",AP528/$C$528)","v":""},null,{"$f":"IF($C$528=\"\",\"\",AR528/$C$528)","v":""},null,{"$f":"IF($C$528=\"\",\"\",AT528/$C$528)","v":""},null,{"$f":"IF($C$528=\"\",\"\",AV528/$C$528)","v":""},null,{"$f":"IF($C$528=\"\",\"\",AX528/$C$528)","v":""},null,{"$f":"IF($C$528=\"\",\"\",AZ528/$C$528)","v":""},null,{"$f":"IF($C$528=\"\",\"\",BB528/$C$528)","v":""},null,0]
[null,null,null,null,{"$f":"IF($C$529=\"\",\"\",F529/$C$529)","v":""},null,{"$f":"IF($C$529=\"\",\"\",H529/$C$529)","v":""},null,{"$f":"IF($C$529=\"\",\"\",J529/$C$529)","v":""},null,{"$f":"IF($C$529=\"\",\"\",L529/$C$529)","v":""},null,{"$f":"IF($C$529=\"\",\"\",N529/$C$529)","v":""},null,{"$f":"IF($C$529=\"\",\"\",P529/$C$529)","v":""},null,{"$f":"IF($C$529=\"\",\"\",R529/$C$529)","v":""},null,{"$f":"IF($C$529=\"\",\"\",T529/$C$529)","v":""},null,{"$f":"IF($C$529=\"\",\"\",V529/$C$529)","v":""},null,{"$f":"IF($C$529=\"\",\"\",X529/$C$529)","v":""},null,{"$f":"IF($C$529=\"\",\"\",Z529/$C$529)","v":""},null,{"$f":"IF($C$529=\"\",\"\",AB529/$C$529)","v":""},null,{"$f":"IF($C$529=\"\",\"\",AD529/$C$529)","v":""},null,{"$f":"IF($C$529=\"\",\"\",AF529/$C$529)","v":""},null,{"$f":"IF($C$529=\"\",\"\",AH529/$C$529)","v":""},null,{"$f":"IF($C$529=\"\",\"\",AJ529/$C$529)","v":""},null,{"$f":"IF($C$529=\"\",\"\",AL529/$C$529)","v":""},null,{"$f":"IF($C$529=\"\",\"\",AN529/$C$529)","v":""},null,{"$f":"IF($C$529=\"\",\"\",AP529/$C$529)","v":""},null,{"$f":"IF($C$529=\"\",\"\",AR529/$C$529)","v":""},null,{"$f":"IF($C$529=\"\",\"\",AT529/$C$529)","v":""},null,{"$f":"IF($C$529=\"\",\"\",AV529/$C$529)","v":""},null,{"$f":"IF($C$529=\"\",\"\",AX529/$C$529)","v":""},null,{"$f":"IF($C$529=\"\",\"\",AZ529/$C$529)","v":""},null,{"$f":"IF($C$529=\"\",\"\",BB529/$C$529)","v":""},null,0]
[null,null,null,null,{"$f":"IF($C$530=\"\",\"\",F530/$C$530)","v":""},null,{"$f":"IF($C$530=\"\",\"\",H530/$C$530)","v":""},null,{"$f":"IF($C$530=\"\",\"\",J530/$C$530)","v":""},null,{"$f":"IF($C$530=\"\",\"\",L530/$C$530)","v":""},null,{"$f":"IF($C$530=\"\",\"\",N530/$C$530)","v":""},null,{"$f":"IF($C$530=\"\",\"\",P530/$C$530)","v":""},null,{"$f":"IF($C$530=\"\",\"\",R530/$C$530)","v":""},null,{"$f":"IF($C$530=\"\",\"\",T530/$C$530)","v":""},null,{"$f":"IF($C$530=\"\",\"\",V530/$C$530)","v":""},null,{"$f":"IF($C$530=\"\",\"\",X530/$C$530)","v":""},null,{"$f":"IF($C$530=\"\",\"\",Z530/$C$530)","v":""},null,{"$f":"IF($C$530=\"\",\"\",AB530/$C$530)","v":""},null,{"$f":"IF($C$530=\"\",\"\",AD530/$C$530)","v":""},null,{"$f":"IF($C$530=\"\",\"\",AF530/$C$530)","v":""},null,{"$f":"IF($C$530=\"\",\"\",AH530/$C$530)","v":""},null,{"$f":"IF($C$530=\"\",\"\",AJ530/$C$530)","v":""},null,{"$f":"IF($C$530=\"\",\"\",AL530/$C$530)","v":""},null,{"$f":"IF($C$530=\"\",\"\",AN530/$C$530)","v":""},null,{"$f":"IF($C$530=\"\",\"\",AP530/$C$530)","v":""},null,{"$f":"IF($C$530=\"\",\"\",AR530/$C$530)","v":""},null,{"$f":"IF($C$530=\"\",\"\",AT530/$C$530)","v":""},null,{"$f":"IF($C$530=\"\",\"\",AV530/$C$530)","v":""},null,{"$f":"IF($C$530=\"\",\"\",AX530/$C$530)","v":""},null,{"$f":"IF($C$530=\"\",\"\",AZ530/$C$530)","v":""},null,{"$f":"IF($C$530=\"\",\"\",BB530/$C$530)","v":""},null,0]
[null,null,null,null,{"$f":"IF($C$531=\"\",\"\",F531/$C$531)","v":""},null,{"$f":"IF($C$531=\"\",\"\",H531/$C$531)","v":""},null,{"$f":"IF($C$531=\"\",\"\",J531/$C$531)","v":""},null,{"$f":"IF($C$531=\"\",\"\",L531/$C$531)","v":""},null,{"$f":"IF($C$531=\"\",\"\",N531/$C$531)","v":""},null,{"$f":"IF($C$531=\"\",\"\",P531/$C$531)","v":""},null,{"$f":"IF($C$531=\"\",\"\",R531/$C$531)","v":""},null,{"$f":"IF($C$531=\"\",\"\",T531/$C$531)","v":""},null,{"$f":"IF($C$531=\"\",\"\",V531/$C$531)","v":""},null,{"$f":"IF($C$531=\"\",\"\",X531/$C$531)","v":""},null,{"$f":"IF($C$531=\"\",\"\",Z531/$C$531)","v":""},null,{"$f":"IF($C$531=\"\",\"\",AB531/$C$531)","v":""},null,{"$f":"IF($C$531=\"\",\"\",AD531/$C$531)","v":""},null,{"$f":"IF($C$531=\"\",\"\",AF531/$C$531)","v":""},null,{"$f":"IF($C$531=\"\",\"\",AH531/$C$531)","v":""},null,{"$f":"IF($C$531=\"\",\"\",AJ531/$C$531)","v":""},null,{"$f":"IF($C$531=\"\",\"\",AL531/$C$531)","v":""},null,{"$f":"IF($C$531=\"\",\"\",AN531/$C$531)","v":""},null,{"$f":"IF($C$531=\"\",\"\",AP531/$C$531)","v":""},null,{"$f":"IF($C$531=\"\",\"\",AR531/$C$531)","v":""},null,{"$f":"IF($C$531=\"\",\"\",AT531/$C$531)","v":""},null,{"$f":"IF($C$531=\"\",\"\",AV531/$C$531)","v":""},null,{"$f":"IF($C$531=\"\",\"\",AX531/$C$531)","v":""},null,{"$f":"IF($C$531=\"\",\"\",AZ531/$C$531)","v":""},null,{"$f":"IF($C$531=\"\",\"\",BB531/$C$531)","v":""},null,0]
[null,null,null,null,{"$f":"IF($C$532=\"\",\"\",F532/$C$532)","v":""},null,{"$f":"IF($C$532=\"\",\"\",H532/$C$532)","v":""},null,{"$f":"IF($C$532=\"\",\"\",J532/$C$532)","v":""},null,{"$f":"IF($C$532=\"\",\"\",L532/$C$532)","v":""},null,{"$f":"IF($C$532=\"\",\"\",N532/$C$532)","v":""},null,{"$f":"IF($C$532=\"\",\"\",P532/$C$532)","v":""},null,{"$f":"IF($C$532=\"\",\"\",R532/$C$532)","v":""},null,{"$f":"IF($C$532=\"\",\"\",T532/$C$532)","v":""},null,{"$f":"IF($C$532=\"\",\"\",V532/$C$532)","v":""},null,{"$f":"IF($C$532=\"\",\"\",X532/$C$532)","v":""},null,{"$f":"IF($C$532=\"\",\"\",Z532/$C$532)","v":""},null,{"$f":"IF($C$532=\"\",\"\",AB532/$C$532)","v":""},null,{"$f":"IF($C$532=\"\",\"\",AD532/$C$532)","v":""},null,{"$f":"IF($C$532=\"\",\"\",AF532/$C$532)","v":""},null,{"$f":"IF($C$532=\"\",\"\",AH532/$C$532)","v":""},null,{"$f":"IF($C$532=\"\",\"\",AJ532/$C$532)","v":""},null,{"$f":"IF($C$532=\"\",\"\",AL532/$C$532)","v":""},null,{"$f":"IF($C$532=\"\",\"\",AN532/$C$532)","v":""},null,{"$f":"IF($C$532=\"\",\"\",AP532/$C$532)","v":""},null,{"$f":"IF($C$532=\"\",\"\",AR532/$C$532)","v":""},null,{"$f":"IF($C$532=\"\",\"\",AT532/$C$532)","v":""},null,{"$f":"IF($C$532=\"\",\"\",AV532/$C$532)","v":""},null,{"$f":"IF($C$532=\"\",\"\",AX532/$C$532)","v":""},null,{"$f":"IF($C$532=\"\",\"\",AZ532/$C$532)","v":""},null,{"$f":"IF($C$532=\"\",\"\",BB532/$C$532)","v":""},null,0]
[null,null,null,null,{"$f":"IF($C$533=\"\",\"\",F533/$C$533)","v":""},null,{"$f":"IF($C$533=\"\",\"\",H533/$C$533)","v":""},null,{"$f":"IF($C$533=\"\",\"\",J533/$C$533)","v":""},null,{"$f":"IF($C$533=\"\",\"\",L533/$C$533)","v":""},null,{"$f":"IF($C$533=\"\",\"\",N533/$C$533)","v":""},null,{"$f":"IF($C$533=\"\",\"\",P533/$C$533)","v":""},null,{"$f":"IF($C$533=\"\",\"\",R533/$C$533)","v":""},null,{"$f":"IF($C$533=\"\",\"\",T533/$C$533)","v":""},null,{"$f":"IF($C$533=\"\",\"\",V533/$C$533)","v":""},null,{"$f":"IF($C$533=\"\",\"\",X533/$C$533)","v":""},null,{"$f":"IF($C$533=\"\",\"\",Z533/$C$533)","v":""},null,{"$f":"IF($C$533=\"\",\"\",AB533/$C$533)","v":""},null,{"$f":"IF($C$533=\"\",\"\",AD533/$C$533)","v":""},null,{"$f":"IF($C$533=\"\",\"\",AF533/$C$533)","v":""},null,{"$f":"IF($C$533=\"\",\"\",AH533/$C$533)","v":""},null,{"$f":"IF($C$533=\"\",\"\",AJ533/$C$533)","v":""},null,{"$f":"IF($C$533=\"\",\"\",AL533/$C$533)","v":""},null,{"$f":"IF($C$533=\"\",\"\",AN533/$C$533)","v":""},null,{"$f":"IF($C$533=\"\",\"\",AP533/$C$533)","v":""},null,{"$f":"IF($C$533=\"\",\"\",AR533/$C$533)","v":""},null,{"$f":"IF($C$533=\"\",\"\",AT533/$C$533)","v":""},null,{"$f":"IF($C$533=\"\",\"\",AV533/$C$533)","v":""},null,{"$f":"IF($C$533=\"\",\"\",AX533/$C$533)","v":""},null,{"$f":"IF($C$533=\"\",\"\",AZ533/$C$533)","v":""},null,{"$f":"IF($C$533=\"\",\"\",BB533/$C$533)","v":""},null,0]
[null,null,null,null,{"$f":"IF($C$534=\"\",\"\",F534/$C$534)","v":""},null,{"$f":"IF($C$534=\"\",\"\",H534/$C$534)","v":""},null,{"$f":"IF($C$534=\"\",\"\",J534/$C$534)","v":""},null,{"$f":"IF($C$534=\"\",\"\",L534/$C$534)","v":""},null,{"$f":"IF($C$534=\"\",\"\",N534/$C$534)","v":""},null,{"$f":"IF($C$534=\"\",\"\",P534/$C$534)","v":""},null,{"$f":"IF($C$534=\"\",\"\",R534/$C$534)","v":""},null,{"$f":"IF($C$534=\"\",\"\",T534/$C$534)","v":""},null,{"$f":"IF($C$534=\"\",\"\",V534/$C$534)","v":""},null,{"$f":"IF($C$534=\"\",\"\",X534/$C$534)","v":""},null,{"$f":"IF($C$534=\"\",\"\",Z534/$C$534)","v":""},null,{"$f":"IF($C$534=\"\",\"\",AB534/$C$534)","v":""},null,{"$f":"IF($C$534=\"\",\"\",AD534/$C$534)","v":""},null,{"$f":"IF($C$534=\"\",\"\",AF534/$C$534)","v":""},null,{"$f":"IF($C$534=\"\",\"\",AH534/$C$534)","v":""},null,{"$f":"IF($C$534=\"\",\"\",AJ534/$C$534)","v":""},null,{"$f":"IF($C$534=\"\",\"\",AL534/$C$534)","v":""},null,{"$f":"IF($C$534=\"\",\"\",AN534/$C$534)","v":""},null,{"$f":"IF($C$534=\"\",\"\",AP534/$C$534)","v":""},null,{"$f":"IF($C$534=\"\",\"\",AR534/$C$534)","v":""},null,{"$f":"IF($C$534=\"\",\"\",AT534/$C$534)","v":""},null,{"$f":"IF($C$534=\"\",\"\",AV534/$C$534)","v":""},null,{"$f":"IF($C$534=\"\",\"\",AX534/$C$534)","v":""},null,{"$f":"IF($C$534=\"\",\"\",AZ534/$C$534)","v":""},null,{"$f":"IF($C$534=\"\",\"\",BB534/$C$534)","v":""},null,0]
[null,null,null,null,{"$f":"IF($C$535=\"\",\"\",F535/$C$535)","v":""},null,{"$f":"IF($C$535=\"\",\"\",H535/$C$535)","v":""},null,{"$f":"IF($C$535=\"\",\"\",J535/$C$535)","v":""},null,{"$f":"IF($C$535=\"\",\"\",L535/$C$535)","v":""},null,{"$f":"IF($C$535=\"\",\"\",N535/$C$535)","v":""},null,{"$f":"IF($C$535=\"\",\"\",P535/$C$535)","v":""},null,{"$f":"IF($C$535=\"\",\"\",R535/$C$535)","v":""},null,{"$f":"IF($C$535=\"\",\"\",T535/$C$535)","v":""},null,{"$f":"IF($C$535=\"\",\"\",V535/$C$535)","v":""},null,{"$f":"IF($C$535=\"\",\"\",X535/$C$535)","v":""},null,{"$f":"IF($C$535=\"\",\"\",Z535/$C$535)","v":""},null,{"$f":"IF($C$535=\"\",\"\",AB535/$C$535)","v":""},null,{"$f":"IF($C$535=\"\",\"\",AD535/$C$535)","v":""},null,{"$f":"IF($C$535=\"\",\"\",AF535/$C$535)","v":""},null,{"$f":"IF($C$535=\"\",\"\",AH535/$C$535)","v":""},null,{"$f":"IF($C$535=\"\",\"\",AJ535/$C$535)","v":""},null,{"$f":"IF($C$535=\"\",\"\",AL535/$C$535)","v":""},null,{"$f":"IF($C$535=\"\",\"\",AN535/$C$535)","v":""},null,{"$f":"IF($C$535=\"\",\"\",AP535/$C$535)","v":""},null,{"$f":"IF($C$535=\"\",\"\",AR535/$C$535)","v":""},null,{"$f":"IF($C$535=\"\",\"\",AT535/$C$535)","v":""},null,{"$f":"IF($C$535=\"\",\"\",AV535/$C$535)","v":""},null,{"$f":"IF($C$535=\"\",\"\",AX535/$C$535)","v":""},null,{"$f":"IF($C$535=\"\",\"\",AZ535/$C$535)","v":""},null,{"$f":"IF($C$535=\"\",\"\",BB535/$C$535)","v":""},null,0]
[null,null,null,null,{"$f":"IF($C$536=\"\",\"\",F536/$C$536)","v":""},null,{"$f":"IF($C$536=\"\",\"\",H536/$C$536)","v":""},null,{"$f":"IF($C$536=\"\",\"\",J536/$C$536)","v":""},null,{"$f":"IF($C$536=\"\",\"\",L536/$C$536)","v":""},null,{"$f":"IF($C$536=\"\",\"\",N536/$C$536)","v":""},null,{"$f":"IF($C$536=\"\",\"\",P536/$C$536)","v":""},null,{"$f":"IF($C$536=\"\",\"\",R536/$C$536)","v":""},null,{"$f":"IF($C$536=\"\",\"\",T536/$C$536)","v":""},null,{"$f":"IF($C$536=\"\",\"\",V536/$C$536)","v":""},null,{"$f":"IF($C$536=\"\",\"\",X536/$C$536)","v":""},null,{"$f":"IF($C$536=\"\",\"\",Z536/$C$536)","v":""},null,{"$f":"IF($C$536=\"\",\"\",AB536/$C$536)","v":""},null,{"$f":"IF($C$536=\"\",\"\",AD536/$C$536)","v":""},null,{"$f":"IF($C$536=\"\",\"\",AF536/$C$536)","v":""},null,{"$f":"IF($C$536=\"\",\"\",AH536/$C$536)","v":""},null,{"$f":"IF($C$536=\"\",\"\",AJ536/$C$536)","v":""},null,{"$f":"IF($C$536=\"\",\"\",AL536/$C$536)","v":""},null,{"$f":"IF($C$536=\"\",\"\",AN536/$C$536)","v":""},null,{"$f":"IF($C$536=\"\",\"\",AP536/$C$536)","v":""},null,{"$f":"IF($C$536=\"\",\"\",AR536/$C$536)","v":""},null,{"$f":"IF($C$536=\"\",\"\",AT536/$C$536)","v":""},null,{"$f":"IF($C$536=\"\",\"\",AV536/$C$536)","v":""},null,{"$f":"IF($C$536=\"\",\"\",AX536/$C$536)","v":""},null,{"$f":"IF($C$536=\"\",\"\",AZ536/$C$536)","v":""},null,{"$f":"IF($C$536=\"\",\"\",BB536/$C$536)","v":""},null,0]
[null,null,null,null,{"$f":"IF($C$537=\"\",\"\",F537/$C$537)","v":""},null,{"$f":"IF($C$537=\"\",\"\",H537/$C$537)","v":""},null,{"$f":"IF($C$537=\"\",\"\",J537/$C$537)","v":""},null,{"$f":"IF($C$537=\"\",\"\",L537/$C$537)","v":""},null,{"$f":"IF($C$537=\"\",\"\",N537/$C$537)","v":""},null,{"$f":"IF($C$537=\"\",\"\",P537/$C$537)","v":""},null,{"$f":"IF($C$537=\"\",\"\",R537/$C$537)","v":""},null,{"$f":"IF($C$537=\"\",\"\",T537/$C$537)","v":""},null,{"$f":"IF($C$537=\"\",\"\",V537/$C$537)","v":""},null,{"$f":"IF($C$537=\"\",\"\",X537/$C$537)","v":""},null,{"$f":"IF($C$537=\"\",\"\",Z537/$C$537)","v":""},null,{"$f":"IF($C$537=\"\",\"\",AB537/$C$537)","v":""},null,{"$f":"IF($C$537=\"\",\"\",AD537/$C$537)","v":""},null,{"$f":"IF($C$537=\"\",\"\",AF537/$C$537)","v":""},null,{"$f":"IF($C$537=\"\",\"\",AH537/$C$537)","v":""},null,{"$f":"IF($C$537=\"\",\"\",AJ537/$C$537)","v":""},null,{"$f":"IF($C$537=\"\",\"\",AL537/$C$537)","v":""},null,{"$f":"IF($C$537=\"\",\"\",AN537/$C$537)","v":""},null,{"$f":"IF($C$537=\"\",\"\",AP537/$C$537)","v":""},null,{"$f":"IF($C$537=\"\",\"\",AR537/$C$537)","v":""},null,{"$f":"IF($C$537=\"\",\"\",AT537/$C$537)","v":""},null,{"$f":"IF($C$537=\"\",\"\",AV537/$C$537)","v":""},null,{"$f":"IF($C$537=\"\",\"\",AX537/$C$537)","v":""},null,{"$f":"IF($C$537=\"\",\"\",AZ537/$C$537)","v":""},null,{"$f":"IF($C$537=\"\",\"\",BB537/$C$537)","v":""},null,0]
[null,null,null,null,{"$f":"IF($C$538=\"\",\"\",F538/$C$538)","v":""},null,{"$f":"IF($C$538=\"\",\"\",H538/$C$538)","v":""},null,{"$f":"IF($C$538=\"\",\"\",J538/$C$538)","v":""},null,{"$f":"IF($C$538=\"\",\"\",L538/$C$538)","v":""},null,{"$f":"IF($C$538=\"\",\"\",N538/$C$538)","v":""},null,{"$f":"IF($C$538=\"\",\"\",P538/$C$538)","v":""},null,{"$f":"IF($C$538=\"\",\"\",R538/$C$538)","v":""},null,{"$f":"IF($C$538=\"\",\"\",T538/$C$538)","v":""},null,{"$f":"IF($C$538=\"\",\"\",V538/$C$538)","v":""},null,{"$f":"IF($C$538=\"\",\"\",X538/$C$538)","v":""},null,{"$f":"IF($C$538=\"\",\"\",Z538/$C$538)","v":""},null,{"$f":"IF($C$538=\"\",\"\",AB538/$C$538)","v":""},null,{"$f":"IF($C$538=\"\",\"\",AD538/$C$538)","v":""},null,{"$f":"IF($C$538=\"\",\"\",AF538/$C$538)","v":""},null,{"$f":"IF($C$538=\"\",\"\",AH538/$C$538)","v":""},null,{"$f":"IF($C$538=\"\",\"\",AJ538/$C$538)","v":""},null,{"$f":"IF($C$538=\"\",\"\",AL538/$C$538)","v":""},null,{"$f":"IF($C$538=\"\",\"\",AN538/$C$538)","v":""},null,{"$f":"IF($C$538=\"\",\"\",AP538/$C$538)","v":""},null,{"$f":"IF($C$538=\"\",\"\",AR538/$C$538)","v":""},null,{"$f":"IF($C$538=\"\",\"\",AT538/$C$538)","v":""},null,{"$f":"IF($C$538=\"\",\"\",AV538/$C$538)","v":""},null,{"$f":"IF($C$538=\"\",\"\",AX538/$C$538)","v":""},null,{"$f":"IF($C$538=\"\",\"\",AZ538/$C$538)","v":""},null,{"$f":"IF($C$538=\"\",\"\",BB538/$C$538)","v":""},null,0]
[null,null,null,null,{"$f":"IF($C$539=\"\",\"\",F539/$C$539)","v":""},null,{"$f":"IF($C$539=\"\",\"\",H539/$C$539)","v":""},null,{"$f":"IF($C$539=\"\",\"\",J539/$C$539)","v":""},null,{"$f":"IF($C$539=\"\",\"\",L539/$C$539)","v":""},null,{"$f":"IF($C$539=\"\",\"\",N539/$C$539)","v":""},null,{"$f":"IF($C$539=\"\",\"\",P539/$C$539)","v":""},null,{"$f":"IF($C$539=\"\",\"\",R539/$C$539)","v":""},null,{"$f":"IF($C$539=\"\",\"\",T539/$C$539)","v":""},null,{"$f":"IF($C$539=\"\",\"\",V539/$C$539)","v":""},null,{"$f":"IF($C$539=\"\",\"\",X539/$C$539)","v":""},null,{"$f":"IF($C$539=\"\",\"\",Z539/$C$539)","v":""},null,{"$f":"IF($C$539=\"\",\"\",AB539/$C$539)","v":""},null,{"$f":"IF($C$539=\"\",\"\",AD539/$C$539)","v":""},null,{"$f":"IF($C$539=\"\",\"\",AF539/$C$539)","v":""},null,{"$f":"IF($C$539=\"\",\"\",AH539/$C$539)","v":""},null,{"$f":"IF($C$539=\"\",\"\",AJ539/$C$539)","v":""},null,{"$f":"IF($C$539=\"\",\"\",AL539/$C$539)","v":""},null,{"$f":"IF($C$539=\"\",\"\",AN539/$C$539)","v":""},null,{"$f":"IF($C$539=\"\",\"\",AP539/$C$539)","v":""},null,{"$f":"IF($C$539=\"\",\"\",AR539/$C$539)","v":""},null,{"$f":"IF($C$539=\"\",\"\",AT539/$C$539)","v":""},null,{"$f":"IF($C$539=\"\",\"\",AV539/$C$539)","v":""},null,{"$f":"IF($C$539=\"\",\"\",AX539/$C$539)","v":""},null,{"$f":"IF($C$539=\"\",\"\",AZ539/$C$539)","v":""},null,{"$f":"IF($C$539=\"\",\"\",BB539/$C$539)","v":""},null,0]
[null,null,null,null,{"$f":"IF($C$540=\"\",\"\",F540/$C$540)","v":""},null,{"$f":"IF($C$540=\"\",\"\",H540/$C$540)","v":""},null,{"$f":"IF($C$540=\"\",\"\",J540/$C$540)","v":""},null,{"$f":"IF($C$540=\"\",\"\",L540/$C$540)","v":""},null,{"$f":"IF($C$540=\"\",\"\",N540/$C$540)","v":""},null,{"$f":"IF($C$540=\"\",\"\",P540/$C$540)","v":""},null,{"$f":"IF($C$540=\"\",\"\",R540/$C$540)","v":""},null,{"$f":"IF($C$540=\"\",\"\",T540/$C$540)","v":""},null,{"$f":"IF($C$540=\"\",\"\",V540/$C$540)","v":""},null,{"$f":"IF($C$540=\"\",\"\",X540/$C$540)","v":""},null,{"$f":"IF($C$540=\"\",\"\",Z540/$C$540)","v":""},null,{"$f":"IF($C$540=\"\",\"\",AB540/$C$540)","v":""},null,{"$f":"IF($C$540=\"\",\"\",AD540/$C$540)","v":""},null,{"$f":"IF($C$540=\"\",\"\",AF540/$C$540)","v":""},null,{"$f":"IF($C$540=\"\",\"\",AH540/$C$540)","v":""},null,{"$f":"IF($C$540=\"\",\"\",AJ540/$C$540)","v":""},null,{"$f":"IF($C$540=\"\",\"\",AL540/$C$540)","v":""},null,{"$f":"IF($C$540=\"\",\"\",AN540/$C$540)","v":""},null,{"$f":"IF($C$540=\"\",\"\",AP540/$C$540)","v":""},null,{"$f":"IF($C$540=\"\",\"\",AR540/$C$540)","v":""},null,{"$f":"IF($C$540=\"\",\"\",AT540/$C$540)","v":""},null,{"$f":"IF($C$540=\"\",\"\",AV540/$C$540)","v":""},null,{"$f":"IF($C$540=\"\",\"\",AX540/$C$540)","v":""},null,{"$f":"IF($C$540=\"\",\"\",AZ540/$C$540)","v":""},null,{"$f":"IF($C$540=\"\",\"\",BB540/$C$540)","v":""},null,0]
[null,null,null,null,{"$f":"IF($C$541=\"\",\"\",F541/$C$541)","v":""},null,{"$f":"IF($C$541=\"\",\"\",H541/$C$541)","v":""},null,{"$f":"IF($C$541=\"\",\"\",J541/$C$541)","v":""},null,{"$f":"IF($C$541=\"\",\"\",L541/$C$541)","v":""},null,{"$f":"IF($C$541=\"\",\"\",N541/$C$541)","v":""},null,{"$f":"IF($C$541=\"\",\"\",P541/$C$541)","v":""},null,{"$f":"IF($C$541=\"\",\"\",R541/$C$541)","v":""},null,{"$f":"IF($C$541=\"\",\"\",T541/$C$541)","v":""},null,{"$f":"IF($C$541=\"\",\"\",V541/$C$541)","v":""},null,{"$f":"IF($C$541=\"\",\"\",X541/$C$541)","v":""},null,{"$f":"IF($C$541=\"\",\"\",Z541/$C$541)","v":""},null,{"$f":"IF($C$541=\"\",\"\",AB541/$C$541)","v":""},null,{"$f":"IF($C$541=\"\",\"\",AD541/$C$541)","v":""},null,{"$f":"IF($C$541=\"\",\"\",AF541/$C$541)","v":""},null,{"$f":"IF($C$541=\"\",\"\",AH541/$C$541)","v":""},null,{"$f":"IF($C$541=\"\",\"\",AJ541/$C$541)","v":""},null,{"$f":"IF($C$541=\"\",\"\",AL541/$C$541)","v":""},null,{"$f":"IF($C$541=\"\",\"\",AN541/$C$541)","v":""},null,{"$f":"IF($C$541=\"\",\"\",AP541/$C$541)","v":""},null,{"$f":"IF($C$541=\"\",\"\",AR541/$C$541)","v":""},null,{"$f":"IF($C$541=\"\",\"\",AT541/$C$541)","v":""},null,{"$f":"IF($C$541=\"\",\"\",AV541/$C$541)","v":""},null,{"$f":"IF($C$541=\"\",\"\",AX541/$C$541)","v":""},null,{"$f":"IF($C$541=\"\",\"\",AZ541/$C$541)","v":""},null,{"$f":"IF($C$541=\"\",\"\",BB541/$C$541)","v":""},null,{"$f":"SUM(BB541,AZ541,AX541,AV541,AT541,AR541,AP541,AN541,AL541,AJ541,AH541,AF541,AD541,AB541,Z541,X541,V541,T541,R541,P541,N541,L541,J541,H541,F541)","v":0}]
["TOTAL HOURS",null,null,null,null,{"$f":"SUM(F512:F541)","v":0},null,{"$f":"SUM(H512:H541)","v":0},null,{"$f":"SUM(J512:J541)","v":0},null,{"$f":"SUM(L512:L541)","v":0},null,{"$f":"SUM(N512:N541)","v":0},null,{"$f":"SUM(P512:P541)","v":0},null,{"$f":"SUM(R512:R541)","v":0},null,{"$f":"SUM(T512:T541)","v":0},null,{"$f":"SUM(V512:V541)","v":0},null,{"$f":"SUM(X512:X541)","v":0},null,{"$f":"SUM(Z512:Z541)","v":0},null,{"$f":"SUM(AB512:AB541)","v":0},null,{"$f":"SUM(AD512:AD541)","v":0},null,{"$f":"SUM(AF512:AF541)","v":0},null,{"$f":"SUM(AH512:AH541)","v":0},null,{"$f":"SUM(AJ512:AJ541)","v":0},null,{"$f":"SUM(AL512:AL541)","v":0},null,{"$f":"SUM(AN512:AN541)","v":0},null,{"$f":"SUM(AP512:AP541)","v":0},null,{"$f":"SUM(AR512:AR541)","v":0},null,{"$f":"SUM(AT512:AT541)","v":0},null,{"$f":"SUM(AV512:AV541)","v":0},null,{"$f":"SUM(AX512:AX541)","v":0},null,{"$f":"SUM(AZ512:AZ541)","v":0},null,{"$f":"SUM(BB512:BB541)","v":0},{"$f":"SUM(E542:BB542)","v":0}]
["TOTAL WORKDAYS",null,null,null,null,{"$f":"F542/8","v":0},null,{"$f":"H542/8","v":0},null,{"$f":"J542/8","v":0},null,{"$f":"L542/8","v":0},null,{"$f":"N542/8","v":0},null,{"$f":"P542/8","v":0},null,{"$f":"R542/8","v":0},null,{"$f":"T542/8","v":0},null,{"$f":"V542/8","v":0},null,{"$f":"X542/8","v":0},null,{"$f":"Z542/8","v":0},null,{"$f":"AB542/8","v":0},null,{"$f":"AD542/8","v":0},null,0,null,{"$f":"AH542/8","v":0},null,0,null,{"$f":"AL542/8","v":0},null,0,null,{"$f":"AP542/8","v":0},null,0,null,{"$f":"AT542/8","v":0},null,{"$f":"AV542/8","v":0},null,{"$f":"AX542/8","v":0},null,{"$f":"AZ542/8","v":0},null,{"$f":"BB542/8","v":0},{"$f":"SUM(E543:BB543)","v":0}]
["TOTAL RAW LABOR",null,null,null,null,{"$f":"$E$13*F542","v":0},null,{"$f":"$G$13*H542","v":0},null,{"$f":"$I$13*J542","v":0},null,{"$f":"$K$13*L542","v":0},null,{"$f":"$M$13*N542","v":0},null,{"$f":"$O$13*P542","v":0},null,{"$f":"$Q$13*R542","v":0},null,{"$f":"$S$13*T542","v":0},null,{"$f":"$U$13*V542","v":0},null,{"$f":"$W$13*X542","v":0},null,{"$f":"$Y$13*Z542","v":0},null,{"$f":"$AA$13*AB542","v":0},null,{"$f":"$AC$13*AD542","v":0},null,{"$f":"$AC$13*AF542","v":0},null,{"$f":"$AC$13*AH542","v":0},null,{"$f":"$AC$13*AJ542","v":0},null,{"$f":"$AC$13*AL542","v":0},null,{"$f":"$AC$13*AN542","v":0},null,{"$f":"$AC$13*AP542","v":0},null,{"$f":"$AC$13*AR542","v":0},null,{"$f":"$AC$13*AT542","v":0},null,{"$f":"$AC$13*AV542","v":0},null,{"$f":"$AC$13*AX542","v":0},null,{"$f":"$AC$13*AZ542","v":0},null,{"$f":"$AC$13*BB542","v":0},{"$f":"SUM(E544:BB544)","v":0}]
["Task 20.0     ","REPLACE FIELD WITH CATEGORY NAME OF YOUR CHOOSING HERE",null,null,null,null,null,null,null,null,null,null,null,null,null,null,null,null,null,null,null,null,null,null,null,null,null,null,null,null,null,null,null,null,null,null,null,null,null,null,null,null,null,null,null,null,null,null,null,null,null,null,null,null,{"$f":"IF(B545=\"REPLACE FIELD WITH CATEGORY NAME OF YOUR CHOOSING HERE\",0,\"\")","v":0}]
[null,null,null,null,{"$f":"IF($C$546=\"\",\"\",F546/$C$546)","v":""},null,{"$f":"IF($C$546=\"\",\"\",H546/$C$546)","v":""},null,{"$f":"IF($C$546=\"\",\"\",J546/$C$546)","v":""},null,{"$f":"IF($C$546=\"\",\"\",L546/$C$546)","v":""},null,{"$f":"IF($C$546=\"\",\"\",N546/$C$546)","v":""},null,{"$f":"IF($C$546=\"\",\"\",P546/$C$546)","v":""},null,{"$f":"IF($C$546=\"\",\"\",R546/$C$546)","v":""},null,{"$f":"IF($C$546=\"\",\"\",T546/$C$546)","v":""},null,{"$f":"IF($C$546=\"\",\"\",V546/$C$546)","v":""},null,{"$f":"IF($C$546=\"\",\"\",X546/$C$546)","v":""},null,{"$f":"IF($C$546=\"\",\"\",Z546/$C$546)","v":""},null,{"$f":"IF($C$546=\"\",\"\",AB546/$C$546)","v":""},null,{"$f":"IF($C$546=\"\",\"\",AD546/$C$546)","v":""},null,{"$f":"IF($C$546=\"\",\"\",AF546/$C$546)","v":""},null,{"$f":"IF($C$546=\"\",\"\",AH546/$C$546)","v":""},null,{"$f":"IF($C$546=\"\",\"\",AJ546/$C$546)","v":""},null,{"$f":"IF($C$546=\"\",\"\",AL546/$C$546)","v":""},null,{"$f":"IF($C$546=\"\",\"\",AN546/$C$546)","v":""},null,{"$f":"IF($C$546=\"\",\"\",AP546/$C$546)","v":""},null,{"$f":"IF($C$546=\"\",\"\",AR546/$C$546)","v":""},null,{"$f":"IF($C$546=\"\",\"\",AT546/$C$546)","v":""},null,{"$f":"IF($C$546=\"\",\"\",AV546/$C$546)","v":""},null,{"$f":"IF($C$546=\"\",\"\",AX546/$C$546)","v":""},null,{"$f":"IF($C$546=\"\",\"\",AZ546/$C$546)","v":""},null,{"$f":"IF($C$546=\"\",\"\",BB546/$C$546)","v":""},null,{"$f":"SUM(BB546,AZ546,AX546,AV546,AT546,AR546,AP546,AN546,AL546,AJ546,AH546,AF546,AD546,AB546,Z546,X546,V546,T546,R546,P546,N546,L546,J546,H546,F546)","v":0}]
[null,null,null,null,{"$f":"IF($C$547=\"\",\"\",F547/$C$547)","v":""},null,{"$f":"IF($C$547=\"\",\"\",H547/$C$547)","v":""},null,{"$f":"IF($C$547=\"\",\"\",J547/$C$547)","v":""},null,{"$f":"IF($C$547=\"\",\"\",L547/$C$547)","v":""},null,{"$f":"IF($C$547=\"\",\"\",N547/$C$547)","v":""},null,{"$f":"IF($C$547=\"\",\"\",P547/$C$547)","v":""},null,{"$f":"IF($C$547=\"\",\"\",R547/$C$547)","v":""},null,{"$f":"IF($C$547=\"\",\"\",T547/$C$547)","v":""},null,{"$f":"IF($C$547=\"\",\"\",V547/$C$547)","v":""},null,{"$f":"IF($C$547=\"\",\"\",X547/$C$547)","v":""},null,{"$f":"IF($C$547=\"\",\"\",Z547/$C$547)","v":""},null,{"$f":"IF($C$547=\"\",\"\",AB547/$C$547)","v":""},null,{"$f":"IF($C$547=\"\",\"\",AD547/$C$547)","v":""},null,{"$f":"IF($C$547=\"\",\"\",AF547/$C$547)","v":""},null,{"$f":"IF($C$547=\"\",\"\",AH547/$C$547)","v":""},null,{"$f":"IF($C$547=\"\",\"\",AJ547/$C$547)","v":""},null,{"$f":"IF($C$547=\"\",\"\",AL547/$C$547)","v":""},null,{"$f":"IF($C$547=\"\",\"\",AN547/$C$547)","v":""},null,{"$f":"IF($C$547=\"\",\"\",AP547/$C$547)","v":""},null,{"$f":"IF($C$547=\"\",\"\",AR547/$C$547)","v":""},null,{"$f":"IF($C$547=\"\",\"\",AT547/$C$547)","v":""},null,{"$f":"IF($C$547=\"\",\"\",AV547/$C$547)","v":""},null,{"$f":"IF($C$547=\"\",\"\",AX547/$C$547)","v":""},null,{"$f":"IF($C$547=\"\",\"\",AZ547/$C$547)","v":""},null,{"$f":"IF($C$547=\"\",\"\",BB547/$C$547)","v":""},null,0]
[null,null,null,null,{"$f":"IF($C$548=\"\",\"\",F548/$C$548)","v":""},null,{"$f":"IF($C$548=\"\",\"\",H548/$C$548)","v":""},null,{"$f":"IF($C$548=\"\",\"\",J548/$C$548)","v":""},null,{"$f":"IF($C$548=\"\",\"\",L548/$C$548)","v":""},null,{"$f":"IF($C$548=\"\",\"\",N548/$C$548)","v":""},null,{"$f":"IF($C$548=\"\",\"\",P548/$C$548)","v":""},null,{"$f":"IF($C$548=\"\",\"\",R548/$C$548)","v":""},null,{"$f":"IF($C$548=\"\",\"\",T548/$C$548)","v":""},null,{"$f":"IF($C$548=\"\",\"\",V548/$C$548)","v":""},null,{"$f":"IF($C$548=\"\",\"\",X548/$C$548)","v":""},null,{"$f":"IF($C$548=\"\",\"\",Z548/$C$548)","v":""},null,{"$f":"IF($C$548=\"\",\"\",AB548/$C$548)","v":""},null,{"$f":"IF($C$548=\"\",\"\",AD548/$C$548)","v":""},null,{"$f":"IF($C$548=\"\",\"\",AF548/$C$548)","v":""},null,{"$f":"IF($C$548=\"\",\"\",AH548/$C$548)","v":""},null,{"$f":"IF($C$548=\"\",\"\",AJ548/$C$548)","v":""},null,{"$f":"IF($C$548=\"\",\"\",AL548/$C$548)","v":""},null,{"$f":"IF($C$548=\"\",\"\",AN548/$C$548)","v":""},null,{"$f":"IF($C$548=\"\",\"\",AP548/$C$548)","v":""},null,{"$f":"IF($C$548=\"\",\"\",AR548/$C$548)","v":""},null,{"$f":"IF($C$548=\"\",\"\",AT548/$C$548)","v":""},null,{"$f":"IF($C$548=\"\",\"\",AV548/$C$548)","v":""},null,{"$f":"IF($C$548=\"\",\"\",AX548/$C$548)","v":""},null,{"$f":"IF($C$548=\"\",\"\",AZ548/$C$548)","v":""},null,{"$f":"IF($C$548=\"\",\"\",BB548/$C$548)","v":""},null,0]
[null,null,null,null,{"$f":"IF($C$549=\"\",\"\",F549/$C$549)","v":""},null,{"$f":"IF($C$549=\"\",\"\",H549/$C$549)","v":""},null,{"$f":"IF($C$549=\"\",\"\",J549/$C$549)","v":""},null,{"$f":"IF($C$549=\"\",\"\",L549/$C$549)","v":""},null,{"$f":"IF($C$549=\"\",\"\",N549/$C$549)","v":""},null,{"$f":"IF($C$549=\"\",\"\",P549/$C$549)","v":""},null,{"$f":"IF($C$549=\"\",\"\",R549/$C$549)","v":""},null,{"$f":"IF($C$549=\"\",\"\",T549/$C$549)","v":""},null,{"$f":"IF($C$549=\"\",\"\",V549/$C$549)","v":""},null,{"$f":"IF($C$549=\"\",\"\",X549/$C$549)","v":""},null,{"$f":"IF($C$549=\"\",\"\",Z549/$C$549)","v":""},null,{"$f":"IF($C$549=\"\",\"\",AB549/$C$549)","v":""},null,{"$f":"IF($C$549=\"\",\"\",AD549/$C$549)","v":""},null,{"$f":"IF($C$549=\"\",\"\",AF549/$C$549)","v":""},null,{"$f":"IF($C$549=\"\",\"\",AH549/$C$549)","v":""},null,{"$f":"IF($C$549=\"\",\"\",AJ549/$C$549)","v":""},null,{"$f":"IF($C$549=\"\",\"\",AL549/$C$549)","v":""},null,{"$f":"IF($C$549=\"\",\"\",AN549/$C$549)","v":""},null,{"$f":"IF($C$549=\"\",\"\",AP549/$C$549)","v":""},null,{"$f":"IF($C$549=\"\",\"\",AR549/$C$549)","v":""},null,{"$f":"IF($C$549=\"\",\"\",AT549/$C$549)","v":""},null,{"$f":"IF($C$549=\"\",\"\",AV549/$C$549)","v":""},null,{"$f":"IF($C$549=\"\",\"\",AX549/$C$549)","v":""},null,{"$f":"IF($C$549=\"\",\"\",AZ549/$C$549)","v":""},null,{"$f":"IF($C$549=\"\",\"\",BB549/$C$549)","v":""},null,0]
[null,null,null,null,{"$f":"IF($C$550=\"\",\"\",F550/$C$550)","v":""},null,{"$f":"IF($C$550=\"\",\"\",H550/$C$550)","v":""},null,{"$f":"IF($C$550=\"\",\"\",J550/$C$550)","v":""},null,{"$f":"IF($C$550=\"\",\"\",L550/$C$550)","v":""},null,{"$f":"IF($C$550=\"\",\"\",N550/$C$550)","v":""},null,{"$f":"IF($C$550=\"\",\"\",P550/$C$550)","v":""},null,{"$f":"IF($C$550=\"\",\"\",R550/$C$550)","v":""},null,{"$f":"IF($C$550=\"\",\"\",T550/$C$550)","v":""},null,{"$f":"IF($C$550=\"\",\"\",V550/$C$550)","v":""},null,{"$f":"IF($C$550=\"\",\"\",X550/$C$550)","v":""},null,{"$f":"IF($C$550=\"\",\"\",Z550/$C$550)","v":""},null,{"$f":"IF($C$550=\"\",\"\",AB550/$C$550)","v":""},null,{"$f":"IF($C$550=\"\",\"\",AD550/$C$550)","v":""},null,{"$f":"IF($C$550=\"\",\"\",AF550/$C$550)","v":""},null,{"$f":"IF($C$550=\"\",\"\",AH550/$C$550)","v":""},null,{"$f":"IF($C$550=\"\",\"\",AJ550/$C$550)","v":""},null,{"$f":"IF($C$550=\"\",\"\",AL550/$C$550)","v":""},null,{"$f":"IF($C$550=\"\",\"\",AN550/$C$550)","v":""},null,{"$f":"IF($C$550=\"\",\"\",AP550/$C$550)","v":""},null,{"$f":"IF($C$550=\"\",\"\",AR550/$C$550)","v":""},null,{"$f":"IF($C$550=\"\",\"\",AT550/$C$550)","v":""},null,{"$f":"IF($C$550=\"\",\"\",AV550/$C$550)","v":""},null,{"$f":"IF($C$550=\"\",\"\",AX550/$C$550)","v":""},null,{"$f":"IF($C$550=\"\",\"\",AZ550/$C$550)","v":""},null,{"$f":"IF($C$550=\"\",\"\",BB550/$C$550)","v":""},null,0]
[null,null,null,null,{"$f":"IF($C$551=\"\",\"\",F551/$C$551)","v":""},null,{"$f":"IF($C$551=\"\",\"\",H551/$C$551)","v":""},null,{"$f":"IF($C$551=\"\",\"\",J551/$C$551)","v":""},null,{"$f":"IF($C$551=\"\",\"\",L551/$C$551)","v":""},null,{"$f":"IF($C$551=\"\",\"\",N551/$C$551)","v":""},null,{"$f":"IF($C$551=\"\",\"\",P551/$C$551)","v":""},null,{"$f":"IF($C$551=\"\",\"\",R551/$C$551)","v":""},null,{"$f":"IF($C$551=\"\",\"\",T551/$C$551)","v":""},null,{"$f":"IF($C$551=\"\",\"\",V551/$C$551)","v":""},null,{"$f":"IF($C$551=\"\",\"\",X551/$C$551)","v":""},null,{"$f":"IF($C$551=\"\",\"\",Z551/$C$551)","v":""},null,{"$f":"IF($C$551=\"\",\"\",AB551/$C$551)","v":""},null,{"$f":"IF($C$551=\"\",\"\",AD551/$C$551)","v":""},null,{"$f":"IF($C$551=\"\",\"\",AF551/$C$551)","v":""},null,{"$f":"IF($C$551=\"\",\"\",AH551/$C$551)","v":""},null,{"$f":"IF($C$551=\"\",\"\",AJ551/$C$551)","v":""},null,{"$f":"IF($C$551=\"\",\"\",AL551/$C$551)","v":""},null,{"$f":"IF($C$551=\"\",\"\",AN551/$C$551)","v":""},null,{"$f":"IF($C$551=\"\",\"\",AP551/$C$551)","v":""},null,{"$f":"IF($C$551=\"\",\"\",AR551/$C$551)","v":""},null,{"$f":"IF($C$551=\"\",\"\",AT551/$C$551)","v":""},null,{"$f":"IF($C$551=\"\",\"\",AV551/$C$551)","v":""},null,{"$f":"IF($C$551=\"\",\"\",AX551/$C$551)","v":""},null,{"$f":"IF($C$551=\"\",\"\",AZ551/$C$551)","v":""},null,{"$f":"IF($C$551=\"\",\"\",BB551/$C$551)","v":""},null,0]
[null,null,null,null,{"$f":"IF($C$552=\"\",\"\",F552/$C$552)","v":""},null,{"$f":"IF($C$552=\"\",\"\",H552/$C$552)","v":""},null,{"$f":"IF($C$552=\"\",\"\",J552/$C$552)","v":""},null,{"$f":"IF($C$552=\"\",\"\",L552/$C$552)","v":""},null,{"$f":"IF($C$552=\"\",\"\",N552/$C$552)","v":""},null,{"$f":"IF($C$552=\"\",\"\",P552/$C$552)","v":""},null,{"$f":"IF($C$552=\"\",\"\",R552/$C$552)","v":""},null,{"$f":"IF($C$552=\"\",\"\",T552/$C$552)","v":""},null,{"$f":"IF($C$552=\"\",\"\",V552/$C$552)","v":""},null,{"$f":"IF($C$552=\"\",\"\",X552/$C$552)","v":""},null,{"$f":"IF($C$552=\"\",\"\",Z552/$C$552)","v":""},null,{"$f":"IF($C$552=\"\",\"\",AB552/$C$552)","v":""},null,{"$f":"IF($C$552=\"\",\"\",AD552/$C$552)","v":""},null,{"$f":"IF($C$552=\"\",\"\",AF552/$C$552)","v":""},null,{"$f":"IF($C$552=\"\",\"\",AH552/$C$552)","v":""},null,{"$f":"IF($C$552=\"\",\"\",AJ552/$C$552)","v":""},null,{"$f":"IF($C$552=\"\",\"\",AL552/$C$552)","v":""},null,{"$f":"IF($C$552=\"\",\"\",AN552/$C$552)","v":""},null,{"$f":"IF($C$552=\"\",\"\",AP552/$C$552)","v":""},null,{"$f":"IF($C$552=\"\",\"\",AR552/$C$552)","v":""},null,{"$f":"IF($C$552=\"\",\"\",AT552/$C$552)","v":""},null,{"$f":"IF($C$552=\"\",\"\",AV552/$C$552)","v":""},null,{"$f":"IF($C$552=\"\",\"\",AX552/$C$552)","v":""},null,{"$f":"IF($C$552=\"\",\"\",AZ552/$C$552)","v":""},null,{"$f":"IF($C$552=\"\",\"\",BB552/$C$552)","v":""},null,0]
[null,null,null,null,{"$f":"IF($C$553=\"\",\"\",F553/$C$553)","v":""},null,{"$f":"IF($C$553=\"\",\"\",H553/$C$553)","v":""},null,{"$f":"IF($C$553=\"\",\"\",J553/$C$553)","v":""},null,{"$f":"IF($C$553=\"\",\"\",L553/$C$553)","v":""},null,{"$f":"IF($C$553=\"\",\"\",N553/$C$553)","v":""},null,{"$f":"IF($C$553=\"\",\"\",P553/$C$553)","v":""},null,{"$f":"IF($C$553=\"\",\"\",R553/$C$553)","v":""},null,{"$f":"IF($C$553=\"\",\"\",T553/$C$553)","v":""},null,{"$f":"IF($C$553=\"\",\"\",V553/$C$553)","v":""},null,{"$f":"IF($C$553=\"\",\"\",X553/$C$553)","v":""},null,{"$f":"IF($C$553=\"\",\"\",Z553/$C$553)","v":""},null,{"$f":"IF($C$553=\"\",\"\",AB553/$C$553)","v":""},null,{"$f":"IF($C$553=\"\",\"\",AD553/$C$553)","v":""},null,{"$f":"IF($C$553=\"\",\"\",AF553/$C$553)","v":""},null,{"$f":"IF($C$553=\"\",\"\",AH553/$C$553)","v":""},null,{"$f":"IF($C$553=\"\",\"\",AJ553/$C$553)","v":""},null,{"$f":"IF($C$553=\"\",\"\",AL553/$C$553)","v":""},null,{"$f":"IF($C$553=\"\",\"\",AN553/$C$553)","v":""},null,{"$f":"IF($C$553=\"\",\"\",AP553/$C$553)","v":""},null,{"$f":"IF($C$553=\"\",\"\",AR553/$C$553)","v":""},null,{"$f":"IF($C$553=\"\",\"\",AT553/$C$553)","v":""},null,{"$f":"IF($C$553=\"\",\"\",AV553/$C$553)","v":""},null,{"$f":"IF($C$553=\"\",\"\",AX553/$C$553)","v":""},null,{"$f":"IF($C$553=\"\",\"\",AZ553/$C$553)","v":""},null,{"$f":"IF($C$553=\"\",\"\",BB553/$C$553)","v":""},null,0]
[null,null,null,null,{"$f":"IF($C$554=\"\",\"\",F554/$C$554)","v":""},null,{"$f":"IF($C$554=\"\",\"\",H554/$C$554)","v":""},null,{"$f":"IF($C$554=\"\",\"\",J554/$C$554)","v":""},null,{"$f":"IF($C$554=\"\",\"\",L554/$C$554)","v":""},null,{"$f":"IF($C$554=\"\",\"\",N554/$C$554)","v":""},null,{"$f":"IF($C$554=\"\",\"\",P554/$C$554)","v":""},null,{"$f":"IF($C$554=\"\",\"\",R554/$C$554)","v":""},null,{"$f":"IF($C$554=\"\",\"\",T554/$C$554)","v":""},null,{"$f":"IF($C$554=\"\",\"\",V554/$C$554)","v":""},null,{"$f":"IF($C$554=\"\",\"\",X554/$C$554)","v":""},null,{"$f":"IF($C$554=\"\",\"\",Z554/$C$554)","v":""},null,{"$f":"IF($C$554=\"\",\"\",AB554/$C$554)","v":""},null,{"$f":"IF($C$554=\"\",\"\",AD554/$C$554)","v":""},null,{"$f":"IF($C$554=\"\",\"\",AF554/$C$554)","v":""},null,{"$f":"IF($C$554=\"\",\"\",AH554/$C$554)","v":""},null,{"$f":"IF($C$554=\"\",\"\",AJ554/$C$554)","v":""},null,{"$f":"IF($C$554=\"\",\"\",AL554/$C$554)","v":""},null,{"$f":"IF($C$554=\"\",\"\",AN554/$C$554)","v":""},null,{"$f":"IF($C$554=\"\",\"\",AP554/$C$554)","v":""},null,{"$f":"IF($C$554=\"\",\"\",AR554/$C$554)","v":""},null,{"$f":"IF($C$554=\"\",\"\",AT554/$C$554)","v":""},null,{"$f":"IF($C$554=\"\",\"\",AV554/$C$554)","v":""},null,{"$f":"IF($C$554=\"\",\"\",AX554/$C$554)","v":""},null,{"$f":"IF($C$554=\"\",\"\",AZ554/$C$554)","v":""},null,{"$f":"IF($C$554=\"\",\"\",BB554/$C$554)","v":""},null,0]
[null,null,null,null,{"$f":"IF($C$555=\"\",\"\",F555/$C$555)","v":""},null,{"$f":"IF($C$555=\"\",\"\",H555/$C$555)","v":""},null,{"$f":"IF($C$555=\"\",\"\",J555/$C$555)","v":""},null,{"$f":"IF($C$555=\"\",\"\",L555/$C$555)","v":""},null,{"$f":"IF($C$555=\"\",\"\",N555/$C$555)","v":""},null,{"$f":"IF($C$555=\"\",\"\",P555/$C$555)","v":""},null,{"$f":"IF($C$555=\"\",\"\",R555/$C$555)","v":""},null,{"$f":"IF($C$555=\"\",\"\",T555/$C$555)","v":""},null,{"$f":"IF($C$555=\"\",\"\",V555/$C$555)","v":""},null,{"$f":"IF($C$555=\"\",\"\",X555/$C$555)","v":""},null,{"$f":"IF($C$555=\"\",\"\",Z555/$C$555)","v":""},null,{"$f":"IF($C$555=\"\",\"\",AB555/$C$555)","v":""},null,{"$f":"IF($C$555=\"\",\"\",AD555/$C$555)","v":""},null,{"$f":"IF($C$555=\"\",\"\",AF555/$C$555)","v":""},null,{"$f":"IF($C$555=\"\",\"\",AH555/$C$555)","v":""},null,{"$f":"IF($C$555=\"\",\"\",AJ555/$C$555)","v":""},null,{"$f":"IF($C$555=\"\",\"\",AL555/$C$555)","v":""},null,{"$f":"IF($C$555=\"\",\"\",AN555/$C$555)","v":""},null,{"$f":"IF($C$555=\"\",\"\",AP555/$C$555)","v":""},null,{"$f":"IF($C$555=\"\",\"\",AR555/$C$555)","v":""},null,{"$f":"IF($C$555=\"\",\"\",AT555/$C$555)","v":""},null,{"$f":"IF($C$555=\"\",\"\",AV555/$C$555)","v":""},null,{"$f":"IF($C$555=\"\",\"\",AX555/$C$555)","v":""},null,{"$f":"IF($C$555=\"\",\"\",AZ555/$C$555)","v":""},null,{"$f":"IF($C$555=\"\",\"\",BB555/$C$555)","v":""},null,0]
[null,null,null,null,{"$f":"IF($C$556=\"\",\"\",F556/$C$556)","v":""},null,{"$f":"IF($C$556=\"\",\"\",H556/$C$556)","v":""},null,{"$f":"IF($C$556=\"\",\"\",J556/$C$556)","v":""},null,{"$f":"IF($C$556=\"\",\"\",L556/$C$556)","v":""},null,{"$f":"IF($C$556=\"\",\"\",N556/$C$556)","v":""},null,{"$f":"IF($C$556=\"\",\"\",P556/$C$556)","v":""},null,{"$f":"IF($C$556=\"\",\"\",R556/$C$556)","v":""},null,{"$f":"IF($C$556=\"\",\"\",T556/$C$556)","v":""},null,{"$f":"IF($C$556=\"\",\"\",V556/$C$556)","v":""},null,{"$f":"IF($C$556=\"\",\"\",X556/$C$556)","v":""},null,{"$f":"IF($C$556=\"\",\"\",Z556/$C$556)","v":""},null,{"$f":"IF($C$556=\"\",\"\",AB556/$C$556)","v":""},null,{"$f":"IF($C$556=\"\",\"\",AD556/$C$556)","v":""},null,{"$f":"IF($C$556=\"\",\"\",AF556/$C$556)","v":""},null,{"$f":"IF($C$556=\"\",\"\",AH556/$C$556)","v":""},null,{"$f":"IF($C$556=\"\",\"\",AJ556/$C$556)","v":""},null,{"$f":"IF($C$556=\"\",\"\",AL556/$C$556)","v":""},null,{"$f":"IF($C$556=\"\",\"\",AN556/$C$556)","v":""},null,{"$f":"IF($C$556=\"\",\"\",AP556/$C$556)","v":""},null,{"$f":"IF($C$556=\"\",\"\",AR556/$C$556)","v":""},null,{"$f":"IF($C$556=\"\",\"\",AT556/$C$556)","v":""},null,{"$f":"IF($C$556=\"\",\"\",AV556/$C$556)","v":""},null,{"$f":"IF($C$556=\"\",\"\",AX556/$C$556)","v":""},null,{"$f":"IF($C$556=\"\",\"\",AZ556/$C$556)","v":""},null,{"$f":"IF($C$556=\"\",\"\",BB556/$C$556)","v":""},null,0]
[null,null,null,null,{"$f":"IF($C$557=\"\",\"\",F557/$C$557)","v":""},null,{"$f":"IF($C$557=\"\",\"\",H557/$C$557)","v":""},null,{"$f":"IF($C$557=\"\",\"\",J557/$C$557)","v":""},null,{"$f":"IF($C$557=\"\",\"\",L557/$C$557)","v":""},null,{"$f":"IF($C$557=\"\",\"\",N557/$C$557)","v":""},null,{"$f":"IF($C$557=\"\",\"\",P557/$C$557)","v":""},null,{"$f":"IF($C$557=\"\",\"\",R557/$C$557)","v":""},null,{"$f":"IF($C$557=\"\",\"\",T557/$C$557)","v":""},null,{"$f":"IF($C$557=\"\",\"\",V557/$C$557)","v":""},null,{"$f":"IF($C$557=\"\",\"\",X557/$C$557)","v":""},null,{"$f":"IF($C$557=\"\",\"\",Z557/$C$557)","v":""},null,{"$f":"IF($C$557=\"\",\"\",AB557/$C$557)","v":""},null,{"$f":"IF($C$557=\"\",\"\",AD557/$C$557)","v":""},null,{"$f":"IF($C$557=\"\",\"\",AF557/$C$557)","v":""},null,{"$f":"IF($C$557=\"\",\"\",AH557/$C$557)","v":""},null,{"$f":"IF($C$557=\"\",\"\",AJ557/$C$557)","v":""},null,{"$f":"IF($C$557=\"\",\"\",AL557/$C$557)","v":""},null,{"$f":"IF($C$557=\"\",\"\",AN557/$C$557)","v":""},null,{"$f":"IF($C$557=\"\",\"\",AP557/$C$557)","v":""},null,{"$f":"IF($C$557=\"\",\"\",AR557/$C$557)","v":""},null,{"$f":"IF($C$557=\"\",\"\",AT557/$C$557)","v":""},null,{"$f":"IF($C$557=\"\",\"\",AV557/$C$557)","v":""},null,{"$f":"IF($C$557=\"\",\"\",AX557/$C$557)","v":""},null,{"$f":"IF($C$557=\"\",\"\",AZ557/$C$557)","v":""},null,{"$f":"IF($C$557=\"\",\"\",BB557/$C$557)","v":""},null,0]
[null,null,null,null,{"$f":"IF($C$558=\"\",\"\",F558/$C$558)","v":""},null,{"$f":"IF($C$558=\"\",\"\",H558/$C$558)","v":""},null,{"$f":"IF($C$558=\"\",\"\",J558/$C$558)","v":""},null,{"$f":"IF($C$558=\"\",\"\",L558/$C$558)","v":""},null,{"$f":"IF($C$558=\"\",\"\",N558/$C$558)","v":""},null,{"$f":"IF($C$558=\"\",\"\",P558/$C$558)","v":""},null,{"$f":"IF($C$558=\"\",\"\",R558/$C$558)","v":""},null,{"$f":"IF($C$558=\"\",\"\",T558/$C$558)","v":""},null,{"$f":"IF($C$558=\"\",\"\",V558/$C$558)","v":""},null,{"$f":"IF($C$558=\"\",\"\",X558/$C$558)","v":""},null,{"$f":"IF($C$558=\"\",\"\",Z558/$C$558)","v":""},null,{"$f":"IF($C$558=\"\",\"\",AB558/$C$558)","v":""},null,{"$f":"IF($C$558=\"\",\"\",AD558/$C$558)","v":""},null,{"$f":"IF($C$558=\"\",\"\",AF558/$C$558)","v":""},null,{"$f":"IF($C$558=\"\",\"\",AH558/$C$558)","v":""},null,{"$f":"IF($C$558=\"\",\"\",AJ558/$C$558)","v":""},null,{"$f":"IF($C$558=\"\",\"\",AL558/$C$558)","v":""},null,{"$f":"IF($C$558=\"\",\"\",AN558/$C$558)","v":""},null,{"$f":"IF($C$558=\"\",\"\",AP558/$C$558)","v":""},null,{"$f":"IF($C$558=\"\",\"\",AR558/$C$558)","v":""},null,{"$f":"IF($C$558=\"\",\"\",AT558/$C$558)","v":""},null,{"$f":"IF($C$558=\"\",\"\",AV558/$C$558)","v":""},null,{"$f":"IF($C$558=\"\",\"\",AX558/$C$558)","v":""},null,{"$f":"IF($C$558=\"\",\"\",AZ558/$C$558)","v":""},null,{"$f":"IF($C$558=\"\",\"\",BB558/$C$558)","v":""},null,0]
[null,null,null,null,{"$f":"IF($C$559=\"\",\"\",F559/$C$559)","v":""},null,{"$f":"IF($C$559=\"\",\"\",H559/$C$559)","v":""},null,{"$f":"IF($C$559=\"\",\"\",J559/$C$559)","v":""},null,{"$f":"IF($C$559=\"\",\"\",L559/$C$559)","v":""},null,{"$f":"IF($C$559=\"\",\"\",N559/$C$559)","v":""},null,{"$f":"IF($C$559=\"\",\"\",P559/$C$559)","v":""},null,{"$f":"IF($C$559=\"\",\"\",R559/$C$559)","v":""},null,{"$f":"IF($C$559=\"\",\"\",T559/$C$559)","v":""},null,{"$f":"IF($C$559=\"\",\"\",V559/$C$559)","v":""},null,{"$f":"IF($C$559=\"\",\"\",X559/$C$559)","v":""},null,{"$f":"IF($C$559=\"\",\"\",Z559/$C$559)","v":""},null,{"$f":"IF($C$559=\"\",\"\",AB559/$C$559)","v":""},null,{"$f":"IF($C$559=\"\",\"\",AD559/$C$559)","v":""},null,{"$f":"IF($C$559=\"\",\"\",AF559/$C$559)","v":""},null,{"$f":"IF($C$559=\"\",\"\",AH559/$C$559)","v":""},null,{"$f":"IF($C$559=\"\",\"\",AJ559/$C$559)","v":""},null,{"$f":"IF($C$559=\"\",\"\",AL559/$C$559)","v":""},null,{"$f":"IF($C$559=\"\",\"\",AN559/$C$559)","v":""},null,{"$f":"IF($C$559=\"\",\"\",AP559/$C$559)","v":""},null,{"$f":"IF($C$559=\"\",\"\",AR559/$C$559)","v":""},null,{"$f":"IF($C$559=\"\",\"\",AT559/$C$559)","v":""},null,{"$f":"IF($C$559=\"\",\"\",AV559/$C$559)","v":""},null,{"$f":"IF($C$559=\"\",\"\",AX559/$C$559)","v":""},null,{"$f":"IF($C$559=\"\",\"\",AZ559/$C$559)","v":""},null,{"$f":"IF($C$559=\"\",\"\",BB559/$C$559)","v":""},null,0]
[null,null,null,null,{"$f":"IF($C$560=\"\",\"\",F560/$C$560)","v":""},null,{"$f":"IF($C$560=\"\",\"\",H560/$C$560)","v":""},null,{"$f":"IF($C$560=\"\",\"\",J560/$C$560)","v":""},null,{"$f":"IF($C$560=\"\",\"\",L560/$C$560)","v":""},null,{"$f":"IF($C$560=\"\",\"\",N560/$C$560)","v":""},null,{"$f":"IF($C$560=\"\",\"\",P560/$C$560)","v":""},null,{"$f":"IF($C$560=\"\",\"\",R560/$C$560)","v":""},null,{"$f":"IF($C$560=\"\",\"\",T560/$C$560)","v":""},null,{"$f":"IF($C$560=\"\",\"\",V560/$C$560)","v":""},null,{"$f":"IF($C$560=\"\",\"\",X560/$C$560)","v":""},null,{"$f":"IF($C$560=\"\",\"\",Z560/$C$560)","v":""},null,{"$f":"IF($C$560=\"\",\"\",AB560/$C$560)","v":""},null,{"$f":"IF($C$560=\"\",\"\",AD560/$C$560)","v":""},null,{"$f":"IF($C$560=\"\",\"\",AF560/$C$560)","v":""},null,{"$f":"IF($C$560=\"\",\"\",AH560/$C$560)","v":""},null,{"$f":"IF($C$560=\"\",\"\",AJ560/$C$560)","v":""},null,{"$f":"IF($C$560=\"\",\"\",AL560/$C$560)","v":""},null,{"$f":"IF($C$560=\"\",\"\",AN560/$C$560)","v":""},null,{"$f":"IF($C$560=\"\",\"\",AP560/$C$560)","v":""},null,{"$f":"IF($C$560=\"\",\"\",AR560/$C$560)","v":""},null,{"$f":"IF($C$560=\"\",\"\",AT560/$C$560)","v":""},null,{"$f":"IF($C$560=\"\",\"\",AV560/$C$560)","v":""},null,{"$f":"IF($C$560=\"\",\"\",AX560/$C$560)","v":""},null,{"$f":"IF($C$560=\"\",\"\",AZ560/$C$560)","v":""},null,{"$f":"IF($C$560=\"\",\"\",BB560/$C$560)","v":""},null,0]
[null,null,null,null,{"$f":"IF($C$561=\"\",\"\",F561/$C$561)","v":""},null,{"$f":"IF($C$561=\"\",\"\",H561/$C$561)","v":""},null,{"$f":"IF($C$561=\"\",\"\",J561/$C$561)","v":""},null,{"$f":"IF($C$561=\"\",\"\",L561/$C$561)","v":""},null,{"$f":"IF($C$561=\"\",\"\",N561/$C$561)","v":""},null,{"$f":"IF($C$561=\"\",\"\",P561/$C$561)","v":""},null,{"$f":"IF($C$561=\"\",\"\",R561/$C$561)","v":""},null,{"$f":"IF($C$561=\"\",\"\",T561/$C$561)","v":""},null,{"$f":"IF($C$561=\"\",\"\",V561/$C$561)","v":""},null,{"$f":"IF($C$561=\"\",\"\",X561/$C$561)","v":""},null,{"$f":"IF($C$561=\"\",\"\",Z561/$C$561)","v":""},null,{"$f":"IF($C$561=\"\",\"\",AB561/$C$561)","v":""},null,{"$f":"IF($C$561=\"\",\"\",AD561/$C$561)","v":""},null,{"$f":"IF($C$561=\"\",\"\",AF561/$C$561)","v":""},null,{"$f":"IF($C$561=\"\",\"\",AH561/$C$561)","v":""},null,{"$f":"IF($C$561=\"\",\"\",AJ561/$C$561)","v":""},null,{"$f":"IF($C$561=\"\",\"\",AL561/$C$561)","v":""},null,{"$f":"IF($C$561=\"\",\"\",AN561/$C$561)","v":""},null,{"$f":"IF($C$561=\"\",\"\",AP561/$C$561)","v":""},null,{"$f":"IF($C$561=\"\",\"\",AR561/$C$561)","v":""},null,{"$f":"IF($C$561=\"\",\"\",AT561/$C$561)","v":""},null,{"$f":"IF($C$561=\"\",\"\",AV561/$C$561)","v":""},null,{"$f":"IF($C$561=\"\",\"\",AX561/$C$561)","v":""},null,{"$f":"IF($C$561=\"\",\"\",AZ561/$C$561)","v":""},null,{"$f":"IF($C$561=\"\",\"\",BB561/$C$561)","v":""},null,0]
[null,null,null,null,{"$f":"IF($C$562=\"\",\"\",F562/$C$562)","v":""},null,{"$f":"IF($C$562=\"\",\"\",H562/$C$562)","v":""},null,{"$f":"IF($C$562=\"\",\"\",J562/$C$562)","v":""},null,{"$f":"IF($C$562=\"\",\"\",L562/$C$562)","v":""},null,{"$f":"IF($C$562=\"\",\"\",N562/$C$562)","v":""},null,{"$f":"IF($C$562=\"\",\"\",P562/$C$562)","v":""},null,{"$f":"IF($C$562=\"\",\"\",R562/$C$562)","v":""},null,{"$f":"IF($C$562=\"\",\"\",T562/$C$562)","v":""},null,{"$f":"IF($C$562=\"\",\"\",V562/$C$562)","v":""},null,{"$f":"IF($C$562=\"\",\"\",X562/$C$562)","v":""},null,{"$f":"IF($C$562=\"\",\"\",Z562/$C$562)","v":""},null,{"$f":"IF($C$562=\"\",\"\",AB562/$C$562)","v":""},null,{"$f":"IF($C$562=\"\",\"\",AD562/$C$562)","v":""},null,{"$f":"IF($C$562=\"\",\"\",AF562/$C$562)","v":""},null,{"$f":"IF($C$562=\"\",\"\",AH562/$C$562)","v":""},null,{"$f":"IF($C$562=\"\",\"\",AJ562/$C$562)","v":""},null,{"$f":"IF($C$562=\"\",\"\",AL562/$C$562)","v":""},null,{"$f":"IF($C$562=\"\",\"\",AN562/$C$562)","v":""},null,{"$f":"IF($C$562=\"\",\"\",AP562/$C$562)","v":""},null,{"$f":"IF($C$562=\"\",\"\",AR562/$C$562)","v":""},null,{"$f":"IF($C$562=\"\",\"\",AT562/$C$562)","v":""},null,{"$f":"IF($C$562=\"\",\"\",AV562/$C$562)","v":""},null,{"$f":"IF($C$562=\"\",\"\",AX562/$C$562)","v":""},null,{"$f":"IF($C$562=\"\",\"\",AZ562/$C$562)","v":""},null,{"$f":"IF($C$562=\"\",\"\",BB562/$C$562)","v":""},null,0]
[null,null,null,null,{"$f":"IF($C$563=\"\",\"\",F563/$C$563)","v":""},null,{"$f":"IF($C$563=\"\",\"\",H563/$C$563)","v":""},null,{"$f":"IF($C$563=\"\",\"\",J563/$C$563)","v":""},null,{"$f":"IF($C$563=\"\",\"\",L563/$C$563)","v":""},null,{"$f":"IF($C$563=\"\",\"\",N563/$C$563)","v":""},null,{"$f":"IF($C$563=\"\",\"\",P563/$C$563)","v":""},null,{"$f":"IF($C$563=\"\",\"\",R563/$C$563)","v":""},null,{"$f":"IF($C$563=\"\",\"\",T563/$C$563)","v":""},null,{"$f":"IF($C$563=\"\",\"\",V563/$C$563)","v":""},null,{"$f":"IF($C$563=\"\",\"\",X563/$C$563)","v":""},null,{"$f":"IF($C$563=\"\",\"\",Z563/$C$563)","v":""},null,{"$f":"IF($C$563=\"\",\"\",AB563/$C$563)","v":""},null,{"$f":"IF($C$563=\"\",\"\",AD563/$C$563)","v":""},null,{"$f":"IF($C$563=\"\",\"\",AF563/$C$563)","v":""},null,{"$f":"IF($C$563=\"\",\"\",AH563/$C$563)","v":""},null,{"$f":"IF($C$563=\"\",\"\",AJ563/$C$563)","v":""},null,{"$f":"IF($C$563=\"\",\"\",AL563/$C$563)","v":""},null,{"$f":"IF($C$563=\"\",\"\",AN563/$C$563)","v":""},null,{"$f":"IF($C$563=\"\",\"\",AP563/$C$563)","v":""},null,{"$f":"IF($C$563=\"\",\"\",AR563/$C$563)","v":""},null,{"$f":"IF($C$563=\"\",\"\",AT563/$C$563)","v":""},null,{"$f":"IF($C$563=\"\",\"\",AV563/$C$563)","v":""},null,{"$f":"IF($C$563=\"\",\"\",AX563/$C$563)","v":""},null,{"$f":"IF($C$563=\"\",\"\",AZ563/$C$563)","v":""},null,{"$f":"IF($C$563=\"\",\"\",BB563/$C$563)","v":""},null,0]
[null,null,null,null,{"$f":"IF($C$564=\"\",\"\",F564/$C$564)","v":""},null,{"$f":"IF($C$564=\"\",\"\",H564/$C$564)","v":""},null,{"$f":"IF($C$564=\"\",\"\",J564/$C$564)","v":""},null,{"$f":"IF($C$564=\"\",\"\",L564/$C$564)","v":""},null,{"$f":"IF($C$564=\"\",\"\",N564/$C$564)","v":""},null,{"$f":"IF($C$564=\"\",\"\",P564/$C$564)","v":""},null,{"$f":"IF($C$564=\"\",\"\",R564/$C$564)","v":""},null,{"$f":"IF($C$564=\"\",\"\",T564/$C$564)","v":""},null,{"$f":"IF($C$564=\"\",\"\",V564/$C$564)","v":""},null,{"$f":"IF($C$564=\"\",\"\",X564/$C$564)","v":""},null,{"$f":"IF($C$564=\"\",\"\",Z564/$C$564)","v":""},null,{"$f":"IF($C$564=\"\",\"\",AB564/$C$564)","v":""},null,{"$f":"IF($C$564=\"\",\"\",AD564/$C$564)","v":""},null,{"$f":"IF($C$564=\"\",\"\",AF564/$C$564)","v":""},null,{"$f":"IF($C$564=\"\",\"\",AH564/$C$564)","v":""},null,{"$f":"IF($C$564=\"\",\"\",AJ564/$C$564)","v":""},null,{"$f":"IF($C$564=\"\",\"\",AL564/$C$564)","v":""},null,{"$f":"IF($C$564=\"\",\"\",AN564/$C$564)","v":""},null,{"$f":"IF($C$564=\"\",\"\",AP564/$C$564)","v":""},null,{"$f":"IF($C$564=\"\",\"\",AR564/$C$564)","v":""},null,{"$f":"IF($C$564=\"\",\"\",AT564/$C$564)","v":""},null,{"$f":"IF($C$564=\"\",\"\",AV564/$C$564)","v":""},null,{"$f":"IF($C$564=\"\",\"\",AX564/$C$564)","v":""},null,{"$f":"IF($C$564=\"\",\"\",AZ564/$C$564)","v":""},null,{"$f":"IF($C$564=\"\",\"\",BB564/$C$564)","v":""},null,0]
[null,null,null,null,{"$f":"IF($C$565=\"\",\"\",F565/$C$565)","v":""},null,{"$f":"IF($C$565=\"\",\"\",H565/$C$565)","v":""},null,{"$f":"IF($C$565=\"\",\"\",J565/$C$565)","v":""},null,{"$f":"IF($C$565=\"\",\"\",L565/$C$565)","v":""},null,{"$f":"IF($C$565=\"\",\"\",N565/$C$565)","v":""},null,{"$f":"IF($C$565=\"\",\"\",P565/$C$565)","v":""},null,{"$f":"IF($C$565=\"\",\"\",R565/$C$565)","v":""},null,{"$f":"IF($C$565=\"\",\"\",T565/$C$565)","v":""},null,{"$f":"IF($C$565=\"\",\"\",V565/$C$565)","v":""},null,{"$f":"IF($C$565=\"\",\"\",X565/$C$565)","v":""},null,{"$f":"IF($C$565=\"\",\"\",Z565/$C$565)","v":""},null,{"$f":"IF($C$565=\"\",\"\",AB565/$C$565)","v":""},null,{"$f":"IF($C$565=\"\",\"\",AD565/$C$565)","v":""},null,{"$f":"IF($C$565=\"\",\"\",AF565/$C$565)","v":""},null,{"$f":"IF($C$565=\"\",\"\",AH565/$C$565)","v":""},null,{"$f":"IF($C$565=\"\",\"\",AJ565/$C$565)","v":""},null,{"$f":"IF($C$565=\"\",\"\",AL565/$C$565)","v":""},null,{"$f":"IF($C$565=\"\",\"\",AN565/$C$565)","v":""},null,{"$f":"IF($C$565=\"\",\"\",AP565/$C$565)","v":""},null,{"$f":"IF($C$565=\"\",\"\",AR565/$C$565)","v":""},null,{"$f":"IF($C$565=\"\",\"\",AT565/$C$565)","v":""},null,{"$f":"IF($C$565=\"\",\"\",AV565/$C$565)","v":""},null,{"$f":"IF($C$565=\"\",\"\",AX565/$C$565)","v":""},null,{"$f":"IF($C$565=\"\",\"\",AZ565/$C$565)","v":""},null,{"$f":"IF($C$565=\"\",\"\",BB565/$C$565)","v":""},null,0]
[null,null,null,null,{"$f":"IF($C$566=\"\",\"\",F566/$C$566)","v":""},null,{"$f":"IF($C$566=\"\",\"\",H566/$C$566)","v":""},null,{"$f":"IF($C$566=\"\",\"\",J566/$C$566)","v":""},null,{"$f":"IF($C$566=\"\",\"\",L566/$C$566)","v":""},null,{"$f":"IF($C$566=\"\",\"\",N566/$C$566)","v":""},null,{"$f":"IF($C$566=\"\",\"\",P566/$C$566)","v":""},null,{"$f":"IF($C$566=\"\",\"\",R566/$C$566)","v":""},null,{"$f":"IF($C$566=\"\",\"\",T566/$C$566)","v":""},null,{"$f":"IF($C$566=\"\",\"\",V566/$C$566)","v":""},null,{"$f":"IF($C$566=\"\",\"\",X566/$C$566)","v":""},null,{"$f":"IF($C$566=\"\",\"\",Z566/$C$566)","v":""},null,{"$f":"IF($C$566=\"\",\"\",AB566/$C$566)","v":""},null,{"$f":"IF($C$566=\"\",\"\",AD566/$C$566)","v":""},null,{"$f":"IF($C$566=\"\",\"\",AF566/$C$566)","v":""},null,{"$f":"IF($C$566=\"\",\"\",AH566/$C$566)","v":""},null,{"$f":"IF($C$566=\"\",\"\",AJ566/$C$566)","v":""},null,{"$f":"IF($C$566=\"\",\"\",AL566/$C$566)","v":""},null,{"$f":"IF($C$566=\"\",\"\",AN566/$C$566)","v":""},null,{"$f":"IF($C$566=\"\",\"\",AP566/$C$566)","v":""},null,{"$f":"IF($C$566=\"\",\"\",AR566/$C$566)","v":""},null,{"$f":"IF($C$566=\"\",\"\",AT566/$C$566)","v":""},null,{"$f":"IF($C$566=\"\",\"\",AV566/$C$566)","v":""},null,{"$f":"IF($C$566=\"\",\"\",AX566/$C$566)","v":""},null,{"$f":"IF($C$566=\"\",\"\",AZ566/$C$566)","v":""},null,{"$f":"IF($C$566=\"\",\"\",BB566/$C$566)","v":""},null,0]
[null,null,null,null,{"$f":"IF($C$567=\"\",\"\",F567/$C$567)","v":""},null,{"$f":"IF($C$567=\"\",\"\",H567/$C$567)","v":""},null,{"$f":"IF($C$567=\"\",\"\",J567/$C$567)","v":""},null,{"$f":"IF($C$567=\"\",\"\",L567/$C$567)","v":""},null,{"$f":"IF($C$567=\"\",\"\",N567/$C$567)","v":""},null,{"$f":"IF($C$567=\"\",\"\",P567/$C$567)","v":""},null,{"$f":"IF($C$567=\"\",\"\",R567/$C$567)","v":""},null,{"$f":"IF($C$567=\"\",\"\",T567/$C$567)","v":""},null,{"$f":"IF($C$567=\"\",\"\",V567/$C$567)","v":""},null,{"$f":"IF($C$567=\"\",\"\",X567/$C$567)","v":""},null,{"$f":"IF($C$567=\"\",\"\",Z567/$C$567)","v":""},null,{"$f":"IF($C$567=\"\",\"\",AB567/$C$567)","v":""},null,{"$f":"IF($C$567=\"\",\"\",AD567/$C$567)","v":""},null,{"$f":"IF($C$567=\"\",\"\",AF567/$C$567)","v":""},null,{"$f":"IF($C$567=\"\",\"\",AH567/$C$567)","v":""},null,{"$f":"IF($C$567=\"\",\"\",AJ567/$C$567)","v":""},null,{"$f":"IF($C$567=\"\",\"\",AL567/$C$567)","v":""},null,{"$f":"IF($C$567=\"\",\"\",AN567/$C$567)","v":""},null,{"$f":"IF($C$567=\"\",\"\",AP567/$C$567)","v":""},null,{"$f":"IF($C$567=\"\",\"\",AR567/$C$567)","v":""},null,{"$f":"IF($C$567=\"\",\"\",AT567/$C$567)","v":""},null,{"$f":"IF($C$567=\"\",\"\",AV567/$C$567)","v":""},null,{"$f":"IF($C$567=\"\",\"\",AX567/$C$567)","v":""},null,{"$f":"IF($C$567=\"\",\"\",AZ567/$C$567)","v":""},null,{"$f":"IF($C$567=\"\",\"\",BB567/$C$567)","v":""},null,0]
[null,null,null,null,{"$f":"IF($C$568=\"\",\"\",F568/$C$568)","v":""},null,{"$f":"IF($C$568=\"\",\"\",H568/$C$568)","v":""},null,{"$f":"IF($C$568=\"\",\"\",J568/$C$568)","v":""},null,{"$f":"IF($C$568=\"\",\"\",L568/$C$568)","v":""},null,{"$f":"IF($C$568=\"\",\"\",N568/$C$568)","v":""},null,{"$f":"IF($C$568=\"\",\"\",P568/$C$568)","v":""},null,{"$f":"IF($C$568=\"\",\"\",R568/$C$568)","v":""},null,{"$f":"IF($C$568=\"\",\"\",T568/$C$568)","v":""},null,{"$f":"IF($C$568=\"\",\"\",V568/$C$568)","v":""},null,{"$f":"IF($C$568=\"\",\"\",X568/$C$568)","v":""},null,{"$f":"IF($C$568=\"\",\"\",Z568/$C$568)","v":""},null,{"$f":"IF($C$568=\"\",\"\",AB568/$C$568)","v":""},null,{"$f":"IF($C$568=\"\",\"\",AD568/$C$568)","v":""},null,{"$f":"IF($C$568=\"\",\"\",AF568/$C$568)","v":""},null,{"$f":"IF($C$568=\"\",\"\",AH568/$C$568)","v":""},null,{"$f":"IF($C$568=\"\",\"\",AJ568/$C$568)","v":""},null,{"$f":"IF($C$568=\"\",\"\",AL568/$C$568)","v":""},null,{"$f":"IF($C$568=\"\",\"\",AN568/$C$568)","v":""},null,{"$f":"IF($C$568=\"\",\"\",AP568/$C$568)","v":""},null,{"$f":"IF($C$568=\"\",\"\",AR568/$C$568)","v":""},null,{"$f":"IF($C$568=\"\",\"\",AT568/$C$568)","v":""},null,{"$f":"IF($C$568=\"\",\"\",AV568/$C$568)","v":""},null,{"$f":"IF($C$568=\"\",\"\",AX568/$C$568)","v":""},null,{"$f":"IF($C$568=\"\",\"\",AZ568/$C$568)","v":""},null,{"$f":"IF($C$568=\"\",\"\",BB568/$C$568)","v":""},null,0]
[null,null,null,null,{"$f":"IF($C$569=\"\",\"\",F569/$C$569)","v":""},null,{"$f":"IF($C$569=\"\",\"\",H569/$C$569)","v":""},null,{"$f":"IF($C$569=\"\",\"\",J569/$C$569)","v":""},null,{"$f":"IF($C$569=\"\",\"\",L569/$C$569)","v":""},null,{"$f":"IF($C$569=\"\",\"\",N569/$C$569)","v":""},null,{"$f":"IF($C$569=\"\",\"\",P569/$C$569)","v":""},null,{"$f":"IF($C$569=\"\",\"\",R569/$C$569)","v":""},null,{"$f":"IF($C$569=\"\",\"\",T569/$C$569)","v":""},null,{"$f":"IF($C$569=\"\",\"\",V569/$C$569)","v":""},null,{"$f":"IF($C$569=\"\",\"\",X569/$C$569)","v":""},null,{"$f":"IF($C$569=\"\",\"\",Z569/$C$569)","v":""},null,{"$f":"IF($C$569=\"\",\"\",AB569/$C$569)","v":""},null,{"$f":"IF($C$569=\"\",\"\",AD569/$C$569)","v":""},null,{"$f":"IF($C$569=\"\",\"\",AF569/$C$569)","v":""},null,{"$f":"IF($C$569=\"\",\"\",AH569/$C$569)","v":""},null,{"$f":"IF($C$569=\"\",\"\",AJ569/$C$569)","v":""},null,{"$f":"IF($C$569=\"\",\"\",AL569/$C$569)","v":""},null,{"$f":"IF($C$569=\"\",\"\",AN569/$C$569)","v":""},null,{"$f":"IF($C$569=\"\",\"\",AP569/$C$569)","v":""},null,{"$f":"IF($C$569=\"\",\"\",AR569/$C$569)","v":""},null,{"$f":"IF($C$569=\"\",\"\",AT569/$C$569)","v":""},null,{"$f":"IF($C$569=\"\",\"\",AV569/$C$569)","v":""},null,{"$f":"IF($C$569=\"\",\"\",AX569/$C$569)","v":""},null,{"$f":"IF($C$569=\"\",\"\",AZ569/$C$569)","v":""},null,{"$f":"IF($C$569=\"\",\"\",BB569/$C$569)","v":""},null,0]
[null,null,null,null,{"$f":"IF($C$570=\"\",\"\",F570/$C$570)","v":""},null,{"$f":"IF($C$570=\"\",\"\",H570/$C$570)","v":""},null,{"$f":"IF($C$570=\"\",\"\",J570/$C$570)","v":""},null,{"$f":"IF($C$570=\"\",\"\",L570/$C$570)","v":""},null,{"$f":"IF($C$570=\"\",\"\",N570/$C$570)","v":""},null,{"$f":"IF($C$570=\"\",\"\",P570/$C$570)","v":""},null,{"$f":"IF($C$570=\"\",\"\",R570/$C$570)","v":""},null,{"$f":"IF($C$570=\"\",\"\",T570/$C$570)","v":""},null,{"$f":"IF($C$570=\"\",\"\",V570/$C$570)","v":""},null,{"$f":"IF($C$570=\"\",\"\",X570/$C$570)","v":""},null,{"$f":"IF($C$570=\"\",\"\",Z570/$C$570)","v":""},null,{"$f":"IF($C$570=\"\",\"\",AB570/$C$570)","v":""},null,{"$f":"IF($C$570=\"\",\"\",AD570/$C$570)","v":""},null,{"$f":"IF($C$570=\"\",\"\",AF570/$C$570)","v":""},null,{"$f":"IF($C$570=\"\",\"\",AH570/$C$570)","v":""},null,{"$f":"IF($C$570=\"\",\"\",AJ570/$C$570)","v":""},null,{"$f":"IF($C$570=\"\",\"\",AL570/$C$570)","v":""},null,{"$f":"IF($C$570=\"\",\"\",AN570/$C$570)","v":""},null,{"$f":"IF($C$570=\"\",\"\",AP570/$C$570)","v":""},null,{"$f":"IF($C$570=\"\",\"\",AR570/$C$570)","v":""},null,{"$f":"IF($C$570=\"\",\"\",AT570/$C$570)","v":""},null,{"$f":"IF($C$570=\"\",\"\",AV570/$C$570)","v":""},null,{"$f":"IF($C$570=\"\",\"\",AX570/$C$570)","v":""},null,{"$f":"IF($C$570=\"\",\"\",AZ570/$C$570)","v":""},null,{"$f":"IF($C$570=\"\",\"\",BB570/$C$570)","v":""},null,0]
[null,null,null,null,{"$f":"IF($C$571=\"\",\"\",F571/$C$571)","v":""},null,{"$f":"IF($C$571=\"\",\"\",H571/$C$571)","v":""},null,{"$f":"IF($C$571=\"\",\"\",J571/$C$571)","v":""},null,{"$f":"IF($C$571=\"\",\"\",L571/$C$571)","v":""},null,{"$f":"IF($C$571=\"\",\"\",N571/$C$571)","v":""},null,{"$f":"IF($C$571=\"\",\"\",P571/$C$571)","v":""},null,{"$f":"IF($C$571=\"\",\"\",R571/$C$571)","v":""},null,{"$f":"IF($C$571=\"\",\"\",T571/$C$571)","v":""},null,{"$f":"IF($C$571=\"\",\"\",V571/$C$571)","v":""},null,{"$f":"IF($C$571=\"\",\"\",X571/$C$571)","v":""},null,{"$f":"IF($C$571=\"\",\"\",Z571/$C$571)","v":""},null,{"$f":"IF($C$571=\"\",\"\",AB571/$C$571)","v":""},null,{"$f":"IF($C$571=\"\",\"\",AD571/$C$571)","v":""},null,{"$f":"IF($C$571=\"\",\"\",AF571/$C$571)","v":""},null,{"$f":"IF($C$571=\"\",\"\",AH571/$C$571)","v":""},null,{"$f":"IF($C$571=\"\",\"\",AJ571/$C$571)","v":""},null,{"$f":"IF($C$571=\"\",\"\",AL571/$C$571)","v":""},null,{"$f":"IF($C$571=\"\",\"\",AN571/$C$571)","v":""},null,{"$f":"IF($C$571=\"\",\"\",AP571/$C$571)","v":""},null,{"$f":"IF($C$571=\"\",\"\",AR571/$C$571)","v":""},null,{"$f":"IF($C$571=\"\",\"\",AT571/$C$571)","v":""},null,{"$f":"IF($C$571=\"\",\"\",AV571/$C$571)","v":""},null,{"$f":"IF($C$571=\"\",\"\",AX571/$C$571)","v":""},null,{"$f":"IF($C$571=\"\",\"\",AZ571/$C$571)","v":""},null,{"$f":"IF($C$571=\"\",\"\",BB571/$C$571)","v":""},null,0]
[null,null,null,null,{"$f":"IF($C$572=\"\",\"\",F572/$C$572)","v":""},null,{"$f":"IF($C$572=\"\",\"\",H572/$C$572)","v":""},null,{"$f":"IF($C$572=\"\",\"\",J572/$C$572)","v":""},null,{"$f":"IF($C$572=\"\",\"\",L572/$C$572)","v":""},null,{"$f":"IF($C$572=\"\",\"\",N572/$C$572)","v":""},null,{"$f":"IF($C$572=\"\",\"\",P572/$C$572)","v":""},null,{"$f":"IF($C$572=\"\",\"\",R572/$C$572)","v":""},null,{"$f":"IF($C$572=\"\",\"\",T572/$C$572)","v":""},null,{"$f":"IF($C$572=\"\",\"\",V572/$C$572)","v":""},null,{"$f":"IF($C$572=\"\",\"\",X572/$C$572)","v":""},null,{"$f":"IF($C$572=\"\",\"\",Z572/$C$572)","v":""},null,{"$f":"IF($C$572=\"\",\"\",AB572/$C$572)","v":""},null,{"$f":"IF($C$572=\"\",\"\",AD572/$C$572)","v":""},null,{"$f":"IF($C$572=\"\",\"\",AF572/$C$572)","v":""},null,{"$f":"IF($C$572=\"\",\"\",AH572/$C$572)","v":""},null,{"$f":"IF($C$572=\"\",\"\",AJ572/$C$572)","v":""},null,{"$f":"IF($C$572=\"\",\"\",AL572/$C$572)","v":""},null,{"$f":"IF($C$572=\"\",\"\",AN572/$C$572)","v":""},null,{"$f":"IF($C$572=\"\",\"\",AP572/$C$572)","v":""},null,{"$f":"IF($C$572=\"\",\"\",AR572/$C$572)","v":""},null,{"$f":"IF($C$572=\"\",\"\",AT572/$C$572)","v":""},null,{"$f":"IF($C$572=\"\",\"\",AV572/$C$572)","v":""},null,{"$f":"IF($C$572=\"\",\"\",AX572/$C$572)","v":""},null,{"$f":"IF($C$572=\"\",\"\",AZ572/$C$572)","v":""},null,{"$f":"IF($C$572=\"\",\"\",BB572/$C$572)","v":""},null,0]
[null,null,null,null,{"$f":"IF($C$573=\"\",\"\",F573/$C$573)","v":""},null,{"$f":"IF($C$573=\"\",\"\",H573/$C$573)","v":""},null,{"$f":"IF($C$573=\"\",\"\",J573/$C$573)","v":""},null,{"$f":"IF($C$573=\"\",\"\",L573/$C$573)","v":""},null,{"$f":"IF($C$573=\"\",\"\",N573/$C$573)","v":""},null,{"$f":"IF($C$573=\"\",\"\",P573/$C$573)","v":""},null,{"$f":"IF($C$573=\"\",\"\",R573/$C$573)","v":""},null,{"$f":"IF($C$573=\"\",\"\",T573/$C$573)","v":""},null,{"$f":"IF($C$573=\"\",\"\",V573/$C$573)","v":""},null,{"$f":"IF($C$573=\"\",\"\",X573/$C$573)","v":""},null,{"$f":"IF($C$573=\"\",\"\",Z573/$C$573)","v":""},null,{"$f":"IF($C$573=\"\",\"\",AB573/$C$573)","v":""},null,{"$f":"IF($C$573=\"\",\"\",AD573/$C$573)","v":""},null,{"$f":"IF($C$573=\"\",\"\",AF573/$C$573)","v":""},null,{"$f":"IF($C$573=\"\",\"\",AH573/$C$573)","v":""},null,{"$f":"IF($C$573=\"\",\"\",AJ573/$C$573)","v":""},null,{"$f":"IF($C$573=\"\",\"\",AL573/$C$573)","v":""},null,{"$f":"IF($C$573=\"\",\"\",AN573/$C$573)","v":""},null,{"$f":"IF($C$573=\"\",\"\",AP573/$C$573)","v":""},null,{"$f":"IF($C$573=\"\",\"\",AR573/$C$573)","v":""},null,{"$f":"IF($C$573=\"\",\"\",AT573/$C$573)","v":""},null,{"$f":"IF($C$573=\"\",\"\",AV573/$C$573)","v":""},null,{"$f":"IF($C$573=\"\",\"\",AX573/$C$573)","v":""},null,{"$f":"IF($C$573=\"\",\"\",AZ573/$C$573)","v":""},null,{"$f":"IF($C$573=\"\",\"\",BB573/$C$573)","v":""},null,0]
[null,null,null,null,{"$f":"IF($C$574=\"\",\"\",F574/$C$574)","v":""},null,{"$f":"IF($C$574=\"\",\"\",H574/$C$574)","v":""},null,{"$f":"IF($C$574=\"\",\"\",J574/$C$574)","v":""},null,{"$f":"IF($C$574=\"\",\"\",L574/$C$574)","v":""},null,{"$f":"IF($C$574=\"\",\"\",N574/$C$574)","v":""},null,{"$f":"IF($C$574=\"\",\"\",P574/$C$574)","v":""},null,{"$f":"IF($C$574=\"\",\"\",R574/$C$574)","v":""},null,{"$f":"IF($C$574=\"\",\"\",T574/$C$574)","v":""},null,{"$f":"IF($C$574=\"\",\"\",V574/$C$574)","v":""},null,{"$f":"IF($C$574=\"\",\"\",X574/$C$574)","v":""},null,{"$f":"IF($C$574=\"\",\"\",Z574/$C$574)","v":""},null,{"$f":"IF($C$574=\"\",\"\",AB574/$C$574)","v":""},null,{"$f":"IF($C$574=\"\",\"\",AD574/$C$574)","v":""},null,{"$f":"IF($C$574=\"\",\"\",AF574/$C$574)","v":""},null,{"$f":"IF($C$574=\"\",\"\",AH574/$C$574)","v":""},null,{"$f":"IF($C$574=\"\",\"\",AJ574/$C$574)","v":""},null,{"$f":"IF($C$574=\"\",\"\",AL574/$C$574)","v":""},null,{"$f":"IF($C$574=\"\",\"\",AN574/$C$574)","v":""},null,{"$f":"IF($C$574=\"\",\"\",AP574/$C$574)","v":""},null,{"$f":"IF($C$574=\"\",\"\",AR574/$C$574)","v":""},null,{"$f":"IF($C$574=\"\",\"\",AT574/$C$574)","v":""},null,{"$f":"IF($C$574=\"\",\"\",AV574/$C$574)","v":""},null,{"$f":"IF($C$574=\"\",\"\",AX574/$C$574)","v":""},null,{"$f":"IF($C$574=\"\",\"\",AZ574/$C$574)","v":""},null,{"$f":"IF($C$574=\"\",\"\",BB574/$C$574)","v":""},null,0]
[null,null,null,null,{"$f":"IF($C$575=\"\",\"\",F575/$C$575)","v":""},null,{"$f":"IF($C$575=\"\",\"\",H575/$C$575)","v":""},null,{"$f":"IF($C$575=\"\",\"\",J575/$C$575)","v":""},null,{"$f":"IF($C$575=\"\",\"\",L575/$C$575)","v":""},null,{"$f":"IF($C$575=\"\",\"\",N575/$C$575)","v":""},null,{"$f":"IF($C$575=\"\",\"\",P575/$C$575)","v":""},null,{"$f":"IF($C$575=\"\",\"\",R575/$C$575)","v":""},null,{"$f":"IF($C$575=\"\",\"\",T575/$C$575)","v":""},null,{"$f":"IF($C$575=\"\",\"\",V575/$C$575)","v":""},null,{"$f":"IF($C$575=\"\",\"\",X575/$C$575)","v":""},null,{"$f":"IF($C$575=\"\",\"\",Z575/$C$575)","v":""},null,{"$f":"IF($C$575=\"\",\"\",AB575/$C$575)","v":""},null,{"$f":"IF($C$575=\"\",\"\",AD575/$C$575)","v":""},null,{"$f":"IF($C$575=\"\",\"\",AF575/$C$575)","v":""},null,{"$f":"IF($C$575=\"\",\"\",AH575/$C$575)","v":""},null,{"$f":"IF($C$575=\"\",\"\",AJ575/$C$575)","v":""},null,{"$f":"IF($C$575=\"\",\"\",AL575/$C$575)","v":""},null,{"$f":"IF($C$575=\"\",\"\",AN575/$C$575)","v":""},null,{"$f":"IF($C$575=\"\",\"\",AP575/$C$575)","v":""},null,{"$f":"IF($C$575=\"\",\"\",AR575/$C$575)","v":""},null,{"$f":"IF($C$575=\"\",\"\",AT575/$C$575)","v":""},null,{"$f":"IF($C$575=\"\",\"\",AV575/$C$575)","v":""},null,{"$f":"IF($C$575=\"\",\"\",AX575/$C$575)","v":""},null,{"$f":"IF($C$575=\"\",\"\",AZ575/$C$575)","v":""},null,{"$f":"IF($C$575=\"\",\"\",BB575/$C$575)","v":""},null,{"$f":"SUM(BB575,AZ575,AX575,AV575,AT575,AR575,AP575,AN575,AL575,AJ575,AH575,AF575,AD575,AB575,Z575,X575,V575,T575,R575,P575,N575,L575,J575,H575,F575)","v":0}]
["TOTAL HOURS",null,null,null,null,{"$f":"SUM(F546:F575)","v":0},null,{"$f":"SUM(H546:H575)","v":0},null,{"$f":"SUM(J546:J575)","v":0},null,{"$f":"SUM(L546:L575)","v":0},null,{"$f":"SUM(N546:N575)","v":0},null,{"$f":"SUM(P546:P575)","v":0},null,{"$f":"SUM(R546:R575)","v":0},null,{"$f":"SUM(T546:T575)","v":0},null,{"$f":"SUM(V546:V575)","v":0},null,{"$f":"SUM(X546:X575)","v":0},null,{"$f":"SUM(Z546:Z575)","v":0},null,{"$f":"SUM(AB546:AB575)","v":0},null,{"$f":"SUM(AD546:AD575)","v":0},null,{"$f":"SUM(AF546:AF575)","v":0},null,{"$f":"SUM(AH546:AH575)","v":0},null,{"$f":"SUM(AJ546:AJ575)","v":0},null,{"$f":"SUM(AL546:AL575)","v":0},null,{"$f":"SUM(AN546:AN575)","v":0},null,{"$f":"SUM(AP546:AP575)","v":0},null,{"$f":"SUM(AR546:AR575)","v":0},null,{"$f":"SUM(AT546:AT575)","v":0},null,{"$f":"SUM(AV546:AV575)","v":0},null,{"$f":"SUM(AX546:AX575)","v":0},null,{"$f":"SUM(AZ546:AZ575)","v":0},null,{"$f":"SUM(BB546:BB575)","v":0},{"$f":"SUM(E576:BB576)","v":0}]
["TOTAL WORKDAYS",null,null,null,null,{"$f":"F576/8","v":0},null,{"$f":"H576/8","v":0},null,{"$f":"J576/8","v":0},null,{"$f":"L576/8","v":0},null,{"$f":"N576/8","v":0},null,{"$f":"P576/8","v":0},null,{"$f":"R576/8","v":0},null,{"$f":"T576/8","v":0},null,{"$f":"V576/8","v":0},null,{"$f":"X576/8","v":0},null,{"$f":"Z576/8","v":0},null,{"$f":"AB576/8","v":0},null,{"$f":"AD576/8","v":0},null,0,null,{"$f":"AH576/8","v":0},null,0,null,{"$f":"AL576/8","v":0},null,0,null,{"$f":"AP576/8","v":0},null,0,null,{"$f":"AT576/8","v":0},null,{"$f":"AV576/8","v":0},null,{"$f":"AX576/8","v":0},null,{"$f":"AZ576/8","v":0},null,{"$f":"BB576/8","v":0},{"$f":"SUM(E577:BB577)","v":0}]
["TOTAL RAW LABOR",null,null,null,null,{"$f":"$E$13*F576","v":0},null,{"$f":"$G$13*H576","v":0},null,{"$f":"$I$13*J576","v":0},null,{"$f":"$K$13*L576","v":0},null,{"$f":"$M$13*N576","v":0},null,{"$f":"$O$13*P576","v":0},null,{"$f":"$Q$13*R576","v":0},null,{"$f":"$S$13*T576","v":0},null,{"$f":"$U$13*V576","v":0},null,{"$f":"$W$13*X576","v":0},null,{"$f":"$Y$13*Z576","v":0},null,{"$f":"$AA$13*AB576","v":0},null,{"$f":"$AC$13*AD576","v":0},null,{"$f":"$AC$13*AF576","v":0},null,{"$f":"$AC$13*AH576","v":0},null,{"$f":"$AC$13*AJ576","v":0},null,{"$f":"$AC$13*AL576","v":0},null,{"$f":"$AC$13*AN576","v":0},null,{"$f":"$AC$13*AP576","v":0},null,{"$f":"$AC$13*AR576","v":0},null,{"$f":"$AC$13*AT576","v":0},null,{"$f":"$AC$13*AV576","v":0},null,{"$f":"$AC$13*AX576","v":0},null,{"$f":"$AC$13*AZ576","v":0},null,{"$f":"$AC$13*BB576","v":0},{"$f":"SUM(E578:BB578)","v":0}]
[]
["TOTAL HOURS",null,null,null,null,{"$f":"SUM(F576,F542,F508,F474,F440,F406,F372,F357,F343,F313,F250,F220,F203,F188,F175,F159,F138,F115,F53,F28)","v":0},null,{"$f":"SUM(H576,H542,H508,H474,H440,H406,H372,H357,H343,H313,H250,H220,H203,H188,H175,H159,H138,H115,H53,H28)","v":0},null,{"$f":"SUM(J576,J542,J508,J474,J440,J406,J372,J357,J343,J313,J250,J220,J203,J188,J175,J159,J138,J115,J53,J28)","v":0},null,{"$f":"SUM(L576,L542,L508,L474,L440,L406,L372,L357,L343,L313,L250,L220,L203,L188,L175,L159,L138,L115,L53,L28)","v":0},null,{"$f":"SUM(N576,N542,N508,N474,N440,N406,N372,N357,N343,N313,N250,N220,N203,N188,N175,N159,N138,N115,N53,N28)","v":0},null,{"$f":"SUM(P576,P542,P508,P474,P440,P406,P372,P357,P343,P313,P250,P220,P203,P188,P175,P159,P138,P115,P53,P28)","v":0},null,{"$f":"SUM(R576,R542,R508,R474,R440,R406,R372,R357,R343,R313,R250,R220,R203,R188,R175,R159,R138,R115,R53,R28)","v":0},null,{"$f":"SUM(T576,T542,T508,T474,T440,T406,T372,T357,T343,T313,T250,T220,T203,T188,T175,T159,T138,T115,T53,T28)","v":0},null,{"$f":"SUM(V576,V542,V508,V474,V440,V406,V372,V357,V343,V313,V250,V220,V203,V188,V175,V159,V138,V115,V53,V28)","v":0},null,{"$f":"SUM(X576,X542,X508,X474,X440,X406,X372,X357,X343,X313,X250,X220,X203,X188,X175,X159,X138,X115,X53,X28)","v":0},null,{"$f":"SUM(Z576,Z542,Z508,Z474,Z440,Z406,Z372,Z357,Z343,Z313,Z250,Z220,Z203,Z188,Z175,Z159,Z138,Z115,Z53,Z28)","v":0},null,{"$f":"SUM(AB576,AB542,AB508,AB474,AB440,AB406,AB372,AB357,AB343,AB313,AB250,AB220,AB203,AB188,AB175,AB159,AB138,AB115,AB53,AB28)","v":0},null,{"$f":"SUM(AD576,AD542,AD508,AD474,AD440,AD406,AD372,AD357,AD343,AD313,AD250,AD220,AD203,AD188,AD175,AD159,AD138,AD115,AD53,AD28)","v":0},null,{"$f":"SUM(AF576,AF542,AF508,AF474,AF440,AF406,AF372,AF357,AF343,AF313,AF250,AF220,AF203,AF188,AF175,AF159,AF138,AF115,AF53,AF28)","v":0},null,{"$f":"SUM(AH576,AH542,AH508,AH474,AH440,AH406,AH372,AH357,AH343,AH313,AH250,AH220,AH203,AH188,AH175,AH159,AH138,AH115,AH53,AH28)","v":0},null,{"$f":"SUM(AJ576,AJ542,AJ508,AJ474,AJ440,AJ406,AJ372,AJ357,AJ343,AJ313,AJ250,AJ220,AJ203,AJ188,AJ175,AJ159,AJ138,AJ115,AJ53,AJ28)","v":0},null,{"$f":"SUM(AL576,AL542,AL508,AL474,AL440,AL406,AL372,AL357,AL343,AL313,AL250,AL220,AL203,AL188,AL175,AL159,AL138,AL115,AL53,AL28)","v":0},null,{"$f":"SUM(AN576,AN542,AN508,AN474,AN440,AN406,AN372,AN357,AN343,AN313,AN250,AN220,AN203,AN188,AN175,AN159,AN138,AN115,AN53,AN28)","v":0},null,{"$f":"SUM(AP576,AP542,AP508,AP474,AP440,AP406,AP372,AP357,AP343,AP313,AP250,AP220,AP203,AP188,AP175,AP159,AP138,AP115,AP53,AP28)","v":0},null,{"$f":"SUM(AR576,AR542,AR508,AR474,AR440,AR406,AR372,AR357,AR343,AR313,AR250,AR220,AR203,AR188,AR175,AR159,AR138,AR115,AR53,AR28)","v":0},null,{"$f":"SUM(AT576,AT542,AT508,AT474,AT440,AT406,AT372,AT357,AT343,AT313,AT250,AT220,AT203,AT188,AT175,AT159,AT138,AT115,AT53,AT28)","v":0},null,{"$f":"SUM(AV576,AV542,AV508,AV474,AV440,AV406,AV372,AV357,AV343,AV313,AV250,AV220,AV203,AV188,AV175,AV159,AV138,AV115,AV53,AV28)","v":0},null,{"$f":"SUM(AX576,AX542,AX508,AX474,AX440,AX406,AX372,AX357,AX343,AX313,AX250,AX220,AX203,AX188,AX175,AX159,AX138,AX115,AX53,AX28)","v":0},null,{"$f":"SUM(AZ576,AZ542,AZ508,AZ474,AZ440,AZ406,AZ372,AZ357,AZ343,AZ313,AZ250,AZ220,AZ203,AZ188,AZ175,AZ159,AZ138,AZ115,AZ53,AZ28)","v":0},null,{"$f":"SUM(BB576,BB542,BB508,BB474,BB440,BB406,BB372,BB357,BB343,BB313,BB250,BB220,BB203,BB188,BB175,BB159,BB138,BB115,BB53,BB28)","v":0},{"$f":"SUM(E580:BB580)","v":0}]
["TOTAL WORKDAYS",null,null,null,null,{"$f":"F580/8","v":0},null,{"$f":"H580/8","v":0},null,{"$f":"J580/8","v":0},null,{"$f":"L580/8","v":0},null,{"$f":"N580/8","v":0},null,{"$f":"P580/8","v":0},null,{"$f":"R580/8","v":0},null,{"$f":"T580/8","v":0},null,{"$f":"V580/8","v":0},null,{"$f":"X580/8","v":0},null,{"$f":"Z580/8","v":0},null,{"$f":"AB580/8","v":0},null,{"$f":"AD580/8","v":0},null,0,null,{"$f":"AH580/8","v":0},null,0,null,{"$f":"AL580/8","v":0},null,0,null,{"$f":"AP580/8","v":0},null,0,null,{"$f":"AT580/8","v":0},null,{"$f":"AV580/8","v":0},null,{"$f":"AX580/8","v":0},null,{"$f":"AZ580/8","v":0},null,{"$f":"BB580/8","v":0},{"$f":"SUM(E581:BB581)","v":0}]
["TOTAL RAW LABOR",null,null,null,null,{"$f":"$E$13*F580","v":0},null,{"$f":"$G$13*H580","v":0},null,{"$f":"$I$13*J580","v":0},null,{"$f":"$K$13*L580","v":0},null,{"$f":"$M$13*N580","v":0},null,{"$f":"$O$13*P580","v":0},null,{"$f":"$Q$13*R580","v":0},null,{"$f":"$S$13*T580","v":0},null,{"$f":"$U$13*V580","v":0},null,{"$f":"$W$13*X580","v":0},null,{"$f":"$Y$13*Z580","v":0},null,{"$f":"$AA$13*AB580","v":0},null,{"$f":"$AC$13*AD580","v":0},null,{"$f":"$AC$13*AF580","v":0},null,{"$f":"$AC$13*AH580","v":0},null,{"$f":"$AC$13*AJ580","v":0},null,{"$f":"$AC$13*AL580","v":0},null,{"$f":"$AC$13*AN580","v":0},null,{"$f":"$AC$13*AP580","v":0},null,{"$f":"$AC$13*AR580","v":0},null,{"$f":"$AC$13*AT580","v":0},null,{"$f":"$AC$13*AV580","v":0},null,{"$f":"$AC$13*AX580","v":0},null,{"$f":"$AC$13*AZ580","v":0},null,{"$f":"$AC$13*BB580","v":0},{"$f":"SUM(E582:BB582)","v":0}]
[]
["Contract Overhead Rate",null,null,{"$f":"MUNICIPAL_SIGNAL_SYSTEM_CONSULTANT_OVERHEAD","v":0}]
["Overhead Cost",null,null,null,{"$f":"BC582*D584","v":0}]
["Fee",null,null,{"$f":"MUNICIPAL_SIGNAL_SYSTEM_CONSULTANT_FEE","v":0.09},{"$f":"(BC582+E585)*0.09","v":0}]
["FCCM",null,null,{"$f":"MUNICIPAL_SIGNAL_SYSTEM_CONSULTANT_COSTofCAPITAL","v":0},{"$f":"BC582*D587","v":0}]
["TOTAL RAW LABOR",null,null,null,{"$f":"BC582+E585+E586+E587","v":0}]
["DIRECT EXPENSES",null,null,null,{"$f":"MUNICIPAL.SIGNAL.SYSTEM_DIRECT_NONSALARY_TOTAL","v":0}]
["MUNICIPAL SIGNAL SYSTEM ESTIMATE",null,null,null,{"$f":"SUM(E588:E589)","v":0}]
[]
[]
[]
[]
[]
[{"$f":"CONCATENATE(\"NON-SALARY DIRECT COSTS -   NCDOT (\",A8,\")\")","v":"NON-SALARY DIRECT COSTS -   NCDOT (CONSULTANT NAME)"}]
[]
["Task 1.0","Project Management and Control",null,null,null,null,null,null,null,null,null,null,null,null,null,"Comments "]
["REPRODUCTION"]
[null,"Xerox Copies (8.5\" x 11\" B&W)"]
[null,"Miscellaneous (Project notes, instructions, recordation, documentation,correspondence, misc. meeting minutes, etc.)",null,null,null,null,null,null,null,"Sheets","X",{"$f":"LETTERCOPIES","v":0.14000000000000001},"per Sheet","=",{"$f":"+I601*L601","v":0}]
[1.1000000000000001,"Project Work Plan",null,null,null,null,"copies","X",null,"Sheets","X",{"$f":"LETTERCOPIES","v":0.14000000000000001},"per Sheet","=",{"$f":"+F602*I602*L602","v":0}]
[1.2,"Progress/Status Meeting Minutes",null,"meetings","X",null,"reports","X",null,"Sheets","X",{"$f":"LETTERCOPIES","v":0.14000000000000001},"per Sheet","=",{"$f":"+C603*F603*I603*L603","v":0}]
[1.3,"Project Status Reports  & Invoices",null,"months","X",null,"reports","X",null,"Sheets","X",{"$f":"LETTERCOPIES","v":0.14000000000000001},"per Sheet","=",{"$f":"+C604*F604*I604*L604","v":0}]
[]
[null,"Xerox Copies (11\" x 17\" B&W)"]
[null,"Miscellaneous ",null,null,null,null,null,null,null,"Sheets","X",{"$f":"LEDGERCOPIES","v":0.34},"per Sheet","=",{"$f":"+I607*L607","v":0}]
[1.1000000000000001,"Project Work Plan/Schedule",null,"Months","X",null,"copies","X",null,"Sheets","X",{"$f":"LEDGERCOPIES","v":0.34},"per Sheet","=",{"$f":"+C608*F608*I608*L608","v":0}]
[1.2,"Progress/Status Meeting Minutes",null,null,null,null,"reports","X",null,"Sheets","X",{"$f":"LEDGERCOPIES","v":0.34},"per Sheet","=",{"$f":"+F609*I609*L609","v":0}]
[1.5,"Subconsultant Management and Coordination",null,null,null,null,null,null,null,"Sheets","X",{"$f":"LEDGERCOPIES","v":0.34},"per Sheet","=",{"$f":"+I610*L610","v":0}]
[]
["CAR RENTAL"]
[null," Trips"]
[null,"Kickoff meeting (from )",null,null,null,null,"trips","X",null,"day/Trip","X",{"$f":"CARRENTAL","v":50},"per day","=",{"$f":"+F614*I614*L614","v":0}]
[null,null,null,null,null,null,"trips","X",null,"Miles/Trip","X",{"$f":"GASforRENTAL","v":0.2},"per Mile","=",{"$f":"+F615*I615*L615","v":0}]
[null,"Kickoff meeting (from )",null,null,null,null,"Trips","X",null,"day/Trip","X",{"$f":"CARRENTAL","v":50},"per day","=",0]
[null,null,null,null,null,null,"trips","X",null,"Miles/Trip","X",{"$f":"GASforRENTAL","v":0.2},"per Mile","=",0]
[null,"Project Meetings (from )",null,null,null,null,"Trips","X",null,"day/Trip","X",{"$f":"CARRENTAL","v":50},"per day","=",0]
[null,null,null,null,null,null,"trips","X",null,"Miles/Trip","X",{"$f":"GASforRENTAL","v":0.2},"per Mile","=",0]
[null,"Project Meetings (from )",null,null,null,null,"trips","X",null,"day/Trip","X",{"$f":"CARRENTAL","v":50},"per day","=",0]
[null,null,null,null,null,null,"trips","X",null,"Miles/Trip","X",{"$f":"GASforRENTAL","v":0.2},"per Mile","=",0]
[]
["OVERNIGHT TRAVEL"]
[null,"Hotel - Project Meetings",null,"persons","X",null,"trips","X",null,"nights/trip","X",{"$f":"LODGING_LUMP.SUM","v":95},"per night","=",{"$f":"+C624*F624*I624*L624","v":0}]
[null,"Per Diem - Project Meetings - Breakfast, Lunch, and Dinner",null,"persons","X",null,"trips","X",null,"days/trip","X",{"$f":"BREAKFAST+LUNCH+DINNER","v":46.5},"per day","=",{"$f":"+C625*F625*I625*L625","v":0}]
[null,"Per Diem - Project Meetings - Breakfast",null,"persons","X",null,"trips","X",null,"days/trip","X",{"$f":"BREAKFAST","v":10.1},"per day","=",{"$f":"+C626*F626*I626*L626","v":0}]
[null,"Per Diem - Project Meetings - Lunch",null,"persons","X",null,"trips","X",null,"days/trip","X",{"$f":"LUNCH","v":13.3},"per day","=",0]
[null,"Per Diem - Project Meetings - Dinner",null,"persons","X",null,"trips","X",null,"days/trip","X",{"$f":"DINNER","v":23.1},"per day","=",0]
[]
["OTHER"]
[null,null,null,"UOM","X",null,"UOM","X",null,"UOM","X",null,"UOM","=",{"$f":"+C631*F631*I631*L631","v":0}]
[null,null,null,"UOM","X",null,"UOM","X",null,"UOM","X",null,"UOM","=",0]
[null,null,null,"UOM","X",null,"UOM","X",null,"UOM","X",null,"UOM","=",0]
[null,null,null,"UOM","X",null,"UOM","X",null,"UOM","X",null,"UOM","=",0]
[null,null,null,"UOM","X",null,"UOM","X",null,"UOM","X",null,"UOM","=",0]
[null,"Project Website (CONSULTANT NAME SharePoint)"]
[null,"Initial Set-up Charge (incl. 1 GB file storage)",null,null,null,null,null,null,null,"Each","X",500,null,"=",{"$f":"+I637*L637","v":0}]
[null,"Monthly Hosting Fee (up to 20 external users)",null,null,null,null,null,null,null,"Months","X",105,"per month","=",{"$f":"+I638*L638","v":0}]
[null,"Additional Gigabit of File Storage",null,null,null,null,null,null,null,"Each","X",15,null,"=",0]
[]
[null,null,null,null,null,null,null,null,null,null,null,null,"Subtotal",null,{"$f":"SUM(O601:O639)","v":0}]
[]
["Task 2.0","Functional Design"]
["REPRODUCTION"]
[null,"Xerox Copies (8.5\" x 11\" B&W)"]
["2.1.1","Exist. Sys Operations & Functionality"]
[null,"Preliminary Tech Memo",null,null,null,null,"Sets","X",null,"Sheets/Set","X",{"$f":"LETTERCOPIES","v":0.14000000000000001},"per Sheet","=",{"$f":"+F647*I647*L647","v":0}]
[null,"Final Tech Memo",null,null,null,null,"Sets","X",null,"Sheets/Set","X",{"$f":"LETTERCOPIES","v":0.14000000000000001},"per Sheet","=",{"$f":"+F648*I648*L648","v":0}]
["2.1.2","Functional Needs & Boundaries"]
[null,"Preliminary Tech Memo",null,null,null,null,"Sets","X",null,"Sheets/Set","X",{"$f":"LETTERCOPIES","v":0.14000000000000001},"per Sheet","=",0]
[null,"Final Tech Memo",null,null,null,null,"Sets","X",null,"Sheets/Set","X",{"$f":"LETTERCOPIES","v":0.14000000000000001},"per Sheet","=",0]
["2.1.3","Concept of Operations"]
[null,"Preliminary Tech Memo",null,null,null,null,"Sets","X",null,"Sheets/Set","X",{"$f":"LETTERCOPIES","v":0.14000000000000001},"per Sheet","=",0]
[null,"Final Tech Memo",null,null,null,null,"Sets","X",null,"Sheets/Set","X",{"$f":"LETTERCOPIES","v":0.14000000000000001},"per Sheet","=",0]
["2.1.4","Regional Architecture Compliance"]
[null,"Preliminary Tech Memo",null,null,null,null,"Sets","X",null,"Sheets/Set","X",{"$f":"LETTERCOPIES","v":0.14000000000000001},"per Sheet","=",0]
[null,"Final Tech Memo",null,null,null,null,"Sets","X",null,"Sheets/Set","X",{"$f":"LETTERCOPIES","v":0.14000000000000001},"per Sheet","=",0]
["2.1.5","Draft Final Systems Engineering Document",null,null,null,null,"Sets","X",null,"Sheets/Set","X",{"$f":"LETTERCOPIES","v":0.14000000000000001},"per Sheet","=",0]
[null,"Binding",null,null,null,null,null,null,null,"sets","X",{"$f":"COVERS+BINDERS","v":1},"per set","=",{"$f":"+I659*L659","v":0}]
["2.1.6","Final Systems Engineering Document",null,null,null,null,"Sets","X",null,"Sheets/Set","X",{"$f":"LETTERCOPIES","v":0.14000000000000001},"per Sheet","=",{"$f":"+F660*I660*L660","v":0}]
[null,"Binding",null,null,null,null,null,null,null,"sets","X",{"$f":"COVERS+BINDERS","v":1},"per set","=",{"$f":"+I661*L661","v":0}]
[null,"Miscellaneous (Corres., etc.)",null,null,null,null,null,null,null,"Sheets","X",{"$f":"LETTERCOPIES","v":0.14000000000000001},"per Sheet","=",{"$f":"+I662*L662","v":0}]
[2.2000000000000002,"System Maintenance & Staffing Plan"]
[null,"Preliminary Tech Memo",null,null,null,null,"Sets","X",null,"Sheets/Set","X",{"$f":"LETTERCOPIES","v":0.14000000000000001},"per Sheet","=",{"$f":"+F664*I664*L664","v":0}]
[null,"Final Tech Memo",null,null,null,null,"Sets","X",null,"Sheets/Set","X",{"$f":"LETTERCOPIES","v":0.14000000000000001},"per Sheet","=",{"$f":"+F665*I665*L665","v":0}]
[2.2999999999999998,"Municipal Building Modifications"]
[null,"Preliminary Tech Memo",null,null,null,null,"Sets","X",null,"Sheets/Set","X",{"$f":"LETTERCOPIES","v":0.14000000000000001},"per Sheet","=",{"$f":"+F667*I667*L667","v":0}]
[null,"Final Tech Memo",null,null,null,null,"Sets","X",null,"Sheets/Set","X",{"$f":"LETTERCOPIES","v":0.14000000000000001},"per Sheet","=",0]
[2.4,"TMC Modifications"]
[null,"Preliminary Tech Memo",null,null,null,null,"Sets","X",null,"Sheets/Set","X",{"$f":"LETTERCOPIES","v":0.14000000000000001},"per Sheet","=",0]
[null,"Final Tech Memo",null,null,null,null,"Sets","X",null,"Sheets/Set","X",{"$f":"LETTERCOPIES","v":0.14000000000000001},"per Sheet","=",0]
[]
[null,"Xerox Copies (11\" x 17\" B&W)"]
[2.1,"Plans and Exhibits - Black/White",null,null,null,null,"Sets","X",null,"Sheets/Set","X",{"$f":"LEDGERCOPIES","v":0.34},"per Sheet","=",0]
[null,"Miscellaneous Check Plots",null,null,null,null,null,null,null,"Sheets","X",{"$f":"LEDGERCOPIES","v":0.34},"per Sheet","=",{"$f":"+I675*L675","v":0}]
[]
[null,"Xerox Copies (8.5\" x 11\" Color)"]
[null,"Plans and Exhibits - Color"]
["2.1.1","Exist. Sys Operations & Functionality"]
[null,"Preliminary Tech Memo",null,null,null,null,"Sets","X",null,"Sheets/Set","X",{"$f":"LETTERCOLOR","v":0.83},"per Sheet","=",{"$f":"+F680*I680*L680","v":0}]
[null,"Final Tech Memo",null,null,null,null,"Sets","X",null,"Sheets/Set","X",{"$f":"LETTERCOLOR","v":0.83},"per Sheet","=",{"$f":"+F681*I681*L681","v":0}]
["2.1.2","Functional Needs & Boundaries"]
[null,"Preliminary Tech Memo",null,null,null,null,"Sets","X",null,"Sheets/Set","X",{"$f":"LETTERCOLOR","v":0.83},"per Sheet","=",0]
[null,"Final Tech Memo",null,null,null,null,"Sets","X",null,"Sheets/Set","X",{"$f":"LETTERCOLOR","v":0.83},"per Sheet","=",0]
["2.1.3","Concept of Operations"]
[null,"Preliminary Tech Memo",null,null,null,null,"Sets","X",null,"Sheets/Set","X",{"$f":"LETTERCOLOR","v":0.83},"per Sheet","=",0]
[null,"Final Tech Memo",null,null,null,null,"Sets","X",null,"Sheets/Set","X",{"$f":"LETTERCOLOR","v":0.83},"per Sheet","=",0]
["2.1.4","Regional Architecture Compliance"]
[null,"Preliminary Tech Memo",null,null,null,null,"Sets","X",null,"Sheets/Set","X",{"$f":"LETTERCOLOR","v":0.83},"per Sheet","=",0]
[null,"Final Tech Memo",null,null,null,null,"Sets","X",null,"Sheets/Set","X",{"$f":"LETTERCOLOR","v":0.83},"per Sheet","=",0]
["2.1.5","Draft Final Systems Engineering Document",null,null,null,null,"Sets","X",null,"Sheets/Set","X",{"$f":"LETTERCOLOR","v":0.83},"per Sheet","=",0]
["2.1.6","Final Systems Engineering Document",null,null,null,null,"Sets","X",null,"Sheets/Set","X",{"$f":"LETTERCOLOR","v":0.83},"per Sheet","=",0]
[2.2000000000000002,"System Maintenance & Staffing Plan"]
[null,"Preliminary Tech Memo",null,null,null,null,"Sets","X",null,"Sheets/Set","X",{"$f":"LETTERCOLOR","v":0.83},"per Sheet","=",0]
[null,"Final Tech Memo",null,null,null,null,"Sets","X",null,"Sheets/Set","X",{"$f":"LETTERCOLOR","v":0.83},"per Sheet","=",0]
[2.2999999999999998,"Municipal Building Modifications"]
[null,"Preliminary Tech Memo",null,null,null,null,"Sets","X",null,"Sheets/Set","X",{"$f":"LETTERCOLOR","v":0.83},"per Sheet","=",0]
[null,"Final Tech Memo",null,null,null,null,"Sets","X",null,"Sheets/Set","X",{"$f":"LETTERCOLOR","v":0.83},"per Sheet","=",0]
[2.4,"TMC Modifications"]
[null,"Preliminary Tech Memo",null,null,null,null,"Sets","X",null,"Sheets/Set","X",{"$f":"LETTERCOLOR","v":0.83},"per Sheet","=",0]
[null,"Final Tech Memo",null,null,null,null,"Sets","X",null,"Sheets/Set","X",{"$f":"LETTERCOLOR","v":0.83},"per Sheet","=",0]
[]
[null,"Miscellaneous Check Plots",null,null,null,null,null,null,null,"Sheets","X",{"$f":"LETTERCOLOR","v":0.83},"per Sheet","=",{"$f":"+I703*L703","v":0}]
[]
[null,"Xerox Copies (11\" x 17\" Color)",null,null,null,null,null,null," "]
[null,"Plans and Exhibits - Color"]
["2.1.1","Exist. Sys Operations & Functionality"]
[null,"Preliminary Tech Memo",null,null,null,null,"Sets","X",null,"Sheets/Set","X",{"$f":"ROLLPLOTSlong","v":1.5},"per Sheet","=",{"$f":"+F708*I708*L708","v":0}]
[null,"Final Tech Memo",null,null,null,null,"Sets","X",null,"Sheets/Set","X",{"$f":"ROLLPLOTSlong","v":1.5},"per Sheet","=",{"$f":"+F709*I709*L709","v":0}]
["2.1.2","Functional Needs & Boundaries"]
[null,"Preliminary Tech Memo",null,null,null,null,"Sets","X",null,"Sheets/Set","X",{"$f":"ROLLPLOTSlong","v":1.5},"per Sheet","=",0]
[null,"Final Tech Memo",null,null,null,null,"Sets","X",null,"Sheets/Set","X",{"$f":"ROLLPLOTSlong","v":1.5},"per Sheet","=",0]
["2.1.3","Concept of Operations"]
[null,"Preliminary Tech Memo",null,null,null,null,"Sets","X",null,"Sheets/Set","X",{"$f":"ROLLPLOTSlong","v":1.5},"per Sheet","=",0]
[null,"Final Tech Memo",null,null,null,null,"Sets","X",null,"Sheets/Set","X",{"$f":"ROLLPLOTSlong","v":1.5},"per Sheet","=",0]
["2.1.4","Regional Architecture Compliance"]
[null,"Preliminary Tech Memo",null,null,null,null,"Sets","X",null,"Sheets/Set","X",{"$f":"ROLLPLOTSlong","v":1.5},"per Sheet","=",0]
[null,"Final Tech Memo",null,null,null,null,"Sets","X",null,"Sheets/Set","X",{"$f":"ROLLPLOTSlong","v":1.5},"per Sheet","=",0]
["2.1.5","Draft Final Systems Engineering Document",null,null,null,null,"Sets","X",null,"Sheets/Set","X",{"$f":"ROLLPLOTSlong","v":1.5},"per Sheet","=",0]
["2.1.6","Final Systems Engineering Document",null,null,null,null,"Sets","X",null,"Sheets/Set","X",{"$f":"ROLLPLOTSlong","v":1.5},"per Sheet","=",0]
[2.2000000000000002,"System Maintenance & Staffing Plan"]
[null,"Preliminary Tech Memo",null,null,null,null,"Sets","X",null,"Sheets/Set","X",{"$f":"ROLLPLOTSlong","v":1.5},"per Sheet","=",0]
[null,"Final Tech Memo",null,null,null,null,"Sets","X",null,"Sheets/Set","X",{"$f":"ROLLPLOTSlong","v":1.5},"per Sheet","=",0]
[2.2999999999999998,"Municipal Building Modifications"]
[null,"Preliminary Tech Memo",null,null,null,null,"Sets","X",null,"Sheets/Set","X",{"$f":"ROLLPLOTSlong","v":1.5},"per Sheet","=",0]
[null,"Final Tech Memo",null,null,null,null,"Sets","X",null,"Sheets/Set","X",{"$f":"ROLLPLOTSlong","v":1.5},"per Sheet","=",0]
[2.4,"TMC Modifications"]
[null,"Preliminary Tech Memo",null,null,null,null,"Sets","X",null,"Sheets/Set","X",{"$f":"ROLLPLOTSlong","v":1.5},"per Sheet","=",0]
[null,"Final Tech Memo",null,null,null,null,"Sets","X",null,"Sheets/Set","X",{"$f":"ROLLPLOTSlong","v":1.5},"per Sheet","=",0]
[]
[null,"Miscellaneous Check Plots",null,null,null,null,null,null,null,"Sheets","X",{"$f":"ROLLPLOTSlong","v":1.5},"per Sheet","=",{"$f":"+I731*L731","v":0}]
[]
["MILEAGE"]
[null," Trips"]
["2.3 & 2.4","Field investigate Muncipal Bldg and TMC",null,null,null,null,"Trips","X",null,"day/Trip","X",{"$f":"CARRENTAL","v":50},"per day","=",{"$f":"+F735*I735*L735","v":0}]
[null,null,null,null,null,null,"Trips","X",null,"Miles/Trip","X",{"$f":"GASforRENTAL","v":0.2},"per Mile","=",{"$f":"+F736*I736*L736","v":0}]
[null," Trips ",null,null,null,null,"Trips","X",null,"Miles/Trip","X",{"$f":"SEDAN","v":0.7},"per Mile","=",0]
[]
["OTHER"]
[null,"Postage & Courier",null,null,null,null,"Pack.","X",25,"Ea",null,null,null,"=",{"$f":"+F740*I740","v":0}]
[null,null,null,"UOM","X",null,"UOM","X",null,"UOM","X",null,"UOM","=",{"$f":"+C741*F741*I741*L741","v":0}]
[null,null,null,"UOM","X",null,"UOM","X",null,"UOM","X",null,"UOM","=",0]
[null,null,null,"UOM","X",null,"UOM","X",null,"UOM","X",null,"UOM","=",0]
[null,null,null,"UOM","X",null,"UOM","X",null,"UOM","X",null,"UOM","=",0]
[null,null,null,"UOM","X",null,"UOM","X",null,"UOM","X",null,"UOM","=",0]
[]
[null,null,null,null,null,null,null,null,null,null,null,null,"Subtotal",null,{"$f":"SUM(O646:O746)","v":0}]
["Task 3.0","Programmatic Categorical Exclusion & Supporting Tasks"]
["REPRODUCTION"]
[null,"Xerox Copies (8.5\" x 11\" B&W)"]
[null,"PCE Document",null,"submittals","X",null,"Sets","X",null,"Sheets","X",{"$f":"LETTERCOPIES","v":0.14000000000000001},"per Sheet","=",{"$f":"+C751*F751*I751*L751","v":0}]
[null,"Miscellaneous",null,null,null,null,null,null,null,"Sheets","X",{"$f":"LETTERCOPIES","v":0.14000000000000001},"per Sheet","=",{"$f":"+I752*L752","v":0}]
[]
[null,"Xerox Copies (8.5\" x 11\" Color)"]
[null,"Overview Map & Inset Maps",null,"submittals","X",null,"sets","X",null,"Sheets","X",{"$f":"LETTERCOLOR","v":0.83},"per Sheet","=",{"$f":"+C755*F755*I755*L755","v":0}]
[null,"Miscellaneous ",null,null,null,null,null,null,null,"Sheets","X",{"$f":"LETTERCOLOR","v":0.83},"per Sheet","=",{"$f":"+I756*L756","v":0}]
[]
[null,"Xerox Copies (11\" x 17\" B&W)"]
[null,"Tabular Summaries of Work",null,"submittals","X",null,"Sets","X",null,"Sheets/Set","X",{"$f":"LEDGERCOPIES","v":0.34},"per Sheet","=",{"$f":"+C759*F759*I759*L759","v":0}]
[null,"Miscellaneous Check Plots",null,null,null,null,null,null,null,"Sheets","X",{"$f":"LEDGERCOPIES","v":0.34},"per Sheet","=",{"$f":"+I760*L760","v":0}]
[]
[null,"Xerox Copies (11\" x 17\" Color)"]
[null,"Inset Maps",null,"submittals","X",null,"Sets","X",null,"Sheets/Set","X",{"$f":"ROLLPLOTSlong","v":1.5},"per Sheet","=",{"$f":"+C763*F763*I763*L763","v":0}]
[null,"Miscellaneous Check Plots",null,null,null,null,null,null,null,"Sheets","X",{"$f":"ROLLPLOTSlong","v":1.5},"per Sheet","=",{"$f":"+I764*L764","v":0}]
[]
[null,"Bond Prints - Color (34\" x 68\")"]
[null,"Overview Map",null,"submittals","X",null,"Sets","X",null,"Sheets/Set","X",{"$f":"BOND.LARGE","v":3.5},"per Sheet","=",{"$f":"+C767*F767*I767*L767","v":0}]
[]
["MILEAGE"]
[null," Trips  ( From )",null,null,null,null,"Trips","X",null,"Miles/Trip","X",{"$f":"SEDAN","v":0.7},"per Mile","=",{"$f":"+F770*I770*L770","v":0}]
[null," Trips"]
[null,"( From )",null,null,null,null,"Trips","X",null,"Miles/Trip","X",{"$f":"SEDAN","v":0.7},"per Mile","=",{"$f":"+F772*I772*L772","v":0}]
[null,"( From )",null,null,null,null,"Trips","X",null,"Miles/Trip","X",{"$f":"SEDAN","v":0.7},"per Mile","=",0]
[]
["OVERNIGHT TRAVEL"]
[null,"Hotel - from ",null,"persons","X",null,"trips","X",null,"nights/trip","X",{"$f":"LODGING_LUMP.SUM","v":95},"per night","=",{"$f":"+C776*F776*I776*L776","v":0}]
[null,"Per Diem -  staff - Breakfast, Lunch, & Dinner",null,"persons","X",null,"trips","X",null,"days/trip","X",{"$f":"BREAKFAST+LUNCH+DINNER","v":46.5},"per day","=",{"$f":"+C777*F777*I777*L777","v":0}]
[null,"Per Diem -  staff - Breakfast ",null,"persons","X",null,"trips","X",null,"days/trip","X",{"$f":"BREAKFAST","v":10.1},"per day","=",0]
[null,"Per Diem -  staff - Lunch",null,"persons","X",null,"trips","X",null,"days/trip","X",{"$f":"LUNCH","v":13.3},"per day","=",0]
[null,"Per Diem -  staff -  Dinner",null,"persons","X",null,"trips","X",null,"days/trip","X",{"$f":"DINNER","v":23.1},"per day","=",0]
[]
["OTHER"]
[null,null,null,"UOM","X",null,"UOM","X",null,"UOM","X",null,"UOM","=",{"$f":"+C783*F783*I783*L783","v":0}]
[null,null,null,"UOM","X",null,"UOM","X",null,"UOM","X",null,"UOM","=",0]
[null,null,null,"UOM","X",null,"UOM","X",null,"UOM","X",null,"UOM","=",0]
[null,null,null,"UOM","X",null,"UOM","X",null,"UOM","X",null,"UOM","=",0]
[null,null,null,"UOM","X",null,"UOM","X",null,"UOM","X",null,"UOM","=",0]
[]
[null,null,null,null,null,null,null,null,null,null,null,null,"Subtotal",null,{"$f":"SUM(O751:O780)","v":0}]
["Task 4.0","Communications System"]
["REPRODUCTION"]
[null,"Xerox Copies (8.5\" x 11\" B&W)"]
[null,"Communications Technical Memo",null,"submittals","X",null,"Sets","X",null,"Sheets","X",{"$f":"LETTERCOPIES","v":0.14000000000000001},"per Sheet","=",{"$f":"+C793*F793*I793*L793","v":0}]
[null,"Miscellaneous",null,null,null,null,null,null,null,"Sheets","X",{"$f":"LETTERCOPIES","v":0.14000000000000001},"per Sheet","=",{"$f":"+I794*L794","v":0}]
[]
[null,"Xerox Copies (11\" x 17\" B&W)"]
[null,"Block Diagrams",null,"submittals","X",null,"Sets","X",null,"Sheets/Set","X",{"$f":"LEDGERCOPIES","v":0.34},"per Sheet","=",{"$f":"+C797*F797*I797*L797","v":0}]
[null,"Miscellaneous",null,null,null,null,null,null,null,"Sheets/Set","X",{"$f":"LEDGERCOPIES","v":0.34},"per Sheet","=",{"$f":"+I798*L798","v":0}]
[]
[null,"Xerox Copies (8.5\" x 11\" Color)"]
[null,"Communications Technical Memo",null,"submittals","X",null,"Sets","X",null,"Sheets","X",{"$f":"LETTERCOLOR","v":0.83},"per Sheet","=",{"$f":"+C801*F801*I801*L801","v":0}]
[null,"Miscellaneous",null,null,null,null,null,null,null,"Sheets","X",{"$f":"LETTERCOLOR","v":0.83},"per Sheet","=",{"$f":"+I802*L802","v":0}]
[]
[null,"Xerox Copies (11\" x 17\" Color)"]
[null,"tech memo  - Color",null,null,null,null,"Sets","X",null,"Sheets/Set","X",{"$f":"ROLLPLOTSlong","v":1.5},"per Sheet","=",{"$f":"+F805*I805*L805","v":0}]
[]
[null,"Bond Prints (34\" x 68\")"]
[null,"Preliminary Comm Route Plan - Color",null,"submittals","X",null,"Sets","X",null,"Sheets/Set","X",{"$f":"BOND.LARGE","v":3.5},"per Sheet","=",{"$f":"+C808*F808*I808*L808","v":0}]
["CAR RENTAL"]
[null," Trips"]
[null,"Wireless Testing",null,null,null,null,"Trips","X",null,"day/Trip","X",{"$f":"CARRENTAL","v":50},"per day","=",{"$f":"+F811*I811*L811","v":0}]
[null,null,null,null,null,null,"trips","X",null,"Miles/Trip","X",{"$f":"GASforRENTAL","v":0.2},"per Mile","=",0]
["OVERNIGHT TRAVEL"]
[null,"Hotel - wireless testing",null,"persons","X",null,"trips","X",null,"nights/trip","X",{"$f":"LODGING_LUMP.SUM","v":95},"per night","=",{"$f":"+C814*F814*I814*L814","v":0}]
[null,"Per Diem - wireless testing - Breakfast, Lunch, and Dinner",null,"persons","X",null,"trips","X",null,"days/trip","X",{"$f":"BREAKFAST+LUNCH+DINNER","v":46.5},"per day","=",0]
[null,"Per Diem - wireless testing - Breakfast",null,"persons","X",null,"trips","X",null,"days/trip","X",{"$f":"BREAKFAST","v":10.1},"per day","=",{"$f":"+C816*F816*I816*L816","v":0}]
[null,"Per Diem - wireless testing - Lunch",null,"persons","X",null,"trips","X",null,"days/trip","X",{"$f":"LUNCH","v":13.3},"per day","=",0]
[null,"Per Diem - wireless testing - Dinner",null,"persons","X",null,"trips","X",null,"days/trip","X",{"$f":"DINNER","v":23.1},"per day","=",0]
[]
["OTHER"]
[null,"Postage & Courier",null,null,null,null,"Pack.","X",25,"Ea",null,null,null,"=",{"$f":"+F821*I821","v":0}]
[null,null,null,"UOM","X",null,"UOM","X",null,"UOM","X",null,"UOM","=",{"$f":"+C822*F822*I822*L822","v":0}]
[null,null,null,"UOM","X",null,"UOM","X",null,"UOM","X",null,"UOM","=",0]
[null,null,null,"UOM","X",null,"UOM","X",null,"UOM","X",null,"UOM","=",0]
[null,null,null,"UOM","X",null,"UOM","X",null,"UOM","X",null,"UOM","=",0]
[null,null,null,"UOM","X",null,"UOM","X",null,"UOM","X",null,"UOM","=",0]
[]
[null,null,null,null,null,null,null,null,null,null,null,null,"Subtotal",null,{"$f":"SUM(O793:O826)","v":0}]
["Task 5.0","Field Equipment Inventories"]
["REPRODUCTION"]
[null,"Xerox Copies (8.5\" x 11\" B&W)"]
["5.2.1","State Inventory Sheets",null,null,null,null,"sheets","X",null,"intersection","X",{"$f":"LETTERCOPIES","v":0.14000000000000001},"per Sheet","=",{"$f":"+F832*I832*L832","v":0}]
["5.2.2","City Inventory Sheets",null,null,null,null,"sheet","X",null,"intersection","X",{"$f":"LETTERCOPIES","v":0.14000000000000001},"per Sheet","=",{"$f":"+F833*I833*L833","v":0}]
[5.4,"Inventory CCTV Cabinets",null,null,null,null,"sheets","X",null,"cameras","X",{"$f":"LETTERCOPIES","v":0.14000000000000001},"per Sheet","=",0]
[null,"Miscellaneous",null,null,null,null,null,null,null,"Sheets","X",{"$f":"LETTERCOPIES","v":0.14000000000000001},"per Sheet","=",{"$f":"+I835*L835","v":0}]
[null,"Xerox Copies (11\" x 17\" B&W)"]
[5.2,"Signal Plans (NCDOT)",null,null,null,null,"Sets","X",null,"Sheets/Set","X",{"$f":"LEDGERCOPIES","v":0.34},"per Sheet","=",{"$f":"+F837*I837*L837","v":0}]
[5.2,"Signal Plans (CITY)",null,null,null,null,"Sets","X",null,"Sheets/Set","X",{"$f":"LEDGERCOPIES","v":0.34},"per Sheet","=",0]
[null,"Miscellaneous",null,null,null,null,null,null,null,"Sheets/Set","X",{"$f":"LEDGERCOPIES","v":0.34},"per Sheet","=",{"$f":"+I839*L839","v":0}]
[]
["CAR RENTAL"]
[null," Trips"]
[null,"Signals Data Collection Field Trips",null,null,null,null,"Trips","X",null,"day/Trip","X",{"$f":"CARRENTAL","v":50},"per day","=",{"$f":"+F843*I843*L843","v":0}]
[null,null,null,null,null,null,"trips","X",null,"Miles/Trip","X",{"$f":"GASforRENTAL","v":0.2},"per Mile","=",0]
[null,"CCTV Cabinet Inventory Field Trips",null,null,null,null,"Trips","X",null,"day/Trip","X",{"$f":"CARRENTAL","v":50},"per day","=",0]
[null,null,null,null,null,null,"trips","X",null,"Miles/Trip","X",{"$f":"GASforRENTAL","v":0.2},"per Mile","=",0]
[]
["OVERNIGHT TRAVEL"]
[null,"Hotel - signal inventories",null,"persons","X",null,"trips","X",null,"nights/trip","X",{"$f":"LODGING_LUMP.SUM","v":95},"per night","=",{"$f":"+C849*F849*I849*L849","v":0}]
[null,"Hotel - CCTV inventories",null,"person","X",null,"trips","X",null,"nights/trip","X",{"$f":"LODGING_LUMP.SUM","v":95},"per night","=",0]
[null,"Per Diem - Signal inventories - Breakfast, Lunch, & Dinner",null,"persons","X",null,"trips","X",null,"days/trip","X",{"$f":"BREAKFAST+LUNCH+DINNER","v":46.5},"per day","=",0]
[null,"Per Diem - Signal inventories - Breakfast ",null,"persons","X",null,"trips","X",null,"days/trip","X",{"$f":"BREAKFAST","v":10.1},"per day","=",{"$f":"+C852*F852*I852*L852","v":0}]
[null,"Per Diem - Signal inventories - Lunch",null,"persons","X",null,"trips","X",null,"days/trip","X",{"$f":"LUNCH","v":13.3},"per day","=",0]
[null,"Per Diem - Signal inventories - Dinner",null,"persons","X",null,"trips","X",null,"days/trip","X",{"$f":"DINNER","v":23.1},"per day","=",0]
[null,"Per Diem - CCTV inventories - Breakfast, Lunch, & Dinner",null,"person","X",null,"trips","X",null,"days/trip","X",{"$f":"BREAKFAST+LUNCH+DINNER","v":46.5},"per day","=",0]
[null,"Per Diem - CCTV inventories - Breakfast",null,"person","X",null,"trips","X",null,"days/trip","X",{"$f":"BREAKFAST","v":10.1},"per day","=",0]
[null,"Per Diem - CCTV inventories - Lunch",null,"person","X",null,"trips","X",null,"days/trip","X",{"$f":"LUNCH","v":13.3},"per day","=",0]
[null,"Per Diem - CCTV inventories - Dinner",null,"person","X",null,"trips","X",null,"days/trip","X",{"$f":"DINNER","v":23.1},"per day","=",0]
[]
["OTHER"]
[null,null,null,"UOM","X",null,"UOM","X",null,"UOM","X",null,"UOM","=",{"$f":"+C861*F861*I861*L861","v":0}]
[null,null,null,"UOM","X",null,"UOM","X",null,"UOM","X",null,"UOM","=",0]
[null,null,null,"UOM","X",null,"UOM","X",null,"UOM","X",null,"UOM","=",0]
[null,null,null,"UOM","X",null,"UOM","X",null,"UOM","X",null,"UOM","=",0]
[null,null,null,"UOM","X",null,"UOM","X",null,"UOM","X",null,"UOM","=",0]
[]
[]
[null,null,null,null,null,null,null,null,null,null,null,null,"Subtotal",null,{"$f":"SUM(O832:O865)","v":0}]
["Task 6.0","CCTV Monitoring System"]
["REPRODUCTION"]
[null,"Xerox Copies (8.5\" x 11\") - B&W"]
[6.1,"Recommended Bucket Truck Survey Locations",null,"submittals","X",null,"Sets","X",null,"Sheets/Set","X",{"$f":"LETTERCOPIES","v":0.14000000000000001},"per Sheet","=",{"$f":"+C872*F872*I872*L872","v":0}]
[6.3,"Site Survey Compilation & Analysis Tech Memo",null,"submittals","X",null,"Sets","X",null,"Sheets/Set","X",{"$f":"LETTERCOPIES","v":0.14000000000000001},"per Sheet","=",0]
[6.4,"CCTV Site Study Technical Memo",null,"submittals","X",null,"Sets","X",null,"Sheets/Set","X",{"$f":"LETTERCOPIES","v":0.14000000000000001},"per Sheet","=",0]
[null,"Miscellaneous ",null,null,null,null,null,null,null,"Sheets","X",{"$f":"LETTERCOPIES","v":0.14000000000000001},"per Sheet","=",{"$f":"+I875*L875","v":0}]
[]
[null,"Xerox Copies (8.5\" x 11\") - Color"]
[6.1,"Recommended Bucket Truck Survey Locations",null,"submittals","X",null,"Sets","X",null,"Sheets/Set","X",{"$f":"LETTERCOLOR","v":0.83},"per Sheet","=",{"$f":"+C878*F878*I878*L878","v":0}]
[6.3,"Site Survey Compilation & Analysis Tech Memo",null,"submittals","X",null,"Sets","X",null,"Sheets/Set","X",{"$f":"LETTERCOLOR","v":0.83},"per Sheet","=",0]
[6.4,"CCTV Site Study Technical Memo",null,"submittals","X",null,"Sets","X",null,"Sheets/Set","X",{"$f":"LETTERCOLOR","v":0.83},"per Sheet","=",0]
[null,"Miscellaneous ",null,null,null,null,null,null,null,"Sheets","X",{"$f":"LETTERCOLOR","v":0.83},"per Sheet","=",{"$f":"+I881*L881","v":0}]
[]
[null,"Bond Prints (22\" x 34\")"]
[null,"Miscellaneous",null,null,null,null,null,null,null,"Sheets/Set","X",{"$f":"BOND.REGULAR","v":0.42},"per Sheet","=",{"$f":"+I884*L884","v":0}]
[]
["CAR RENTAL"]
[null," Trips"]
[null,"initial scouting + bucket truck surveys",null,null,null,null,"trips","X",null,"day/Trip","X",{"$f":"CARRENTAL","v":50},"per day","=",{"$f":"+F888*I888*L888","v":0}]
[]
[null,"Roundtrip  to",null,null,null,null,"trips","X",null,"Miles/Trip","X",{"$f":"GASforRENTAL","v":0.2},"per Mile","=",{"$f":"+F890*I890*L890","v":0}]
[null,"Roundtrip  to",null,null,null,null,"trips","X",null,"Miles/Trip","X",{"$f":"GASforRENTAL","v":0.2},"per Mile","=",0]
[null,"Local Travel in ",null,null,null,null,"days","X",null,"Miles/Day","X",{"$f":"GASforRENTAL","v":0.2},"per Mile","=",0]
["OVERNIGHT TRAVEL"]
[null,"Hotel",null,"person","X",null,"trips","X",null,"nights/trip","X",{"$f":"LODGING_LUMP.SUM","v":95},"per night","=",{"$f":"+C894*F894*I894*L894","v":0}]
[null,"Per Diem - Breakfast, Lunch, & Dinner",null,"person","X",null,"trips","X",null,"days/trip","X",{"$f":"BREAKFAST+LUNCH+DINNER","v":46.5},"per day","=",0]
[null,"Per Diem - Breakfast",null,"person","X",null,"trips","X",null,"days/trip","X",{"$f":"BREAKFAST","v":10.1},"per day","=",{"$f":"+C896*F896*I896*L896","v":0}]
[null,"Per Diem - Lunch",null,"person","X",null,"trips","X",null,"days/trip","X",{"$f":"LUNCH","v":13.3},"per day","=",0]
[null,"Per Diem - Dinner",null,"person","X",null,"trips","X",null,"days/trip","X",{"$f":"DINNER","v":23.1},"per day","=",0]
[]
[]
["OTHER"]
[null,"Postage & Courier",null,null,null,null,"Pack.","X",25,"Ea",null,null,null,"=",{"$f":"+F902*I902","v":0}]
[null,null,null,"UOM","X",null,"UOM","X",null,"UOM","X",null,"UOM","=",{"$f":"+C903*F903*I903*L903","v":0}]
[null,null,null,"UOM","X",null,"UOM","X",null,"UOM","X",null,"UOM","=",0]
[null,null,null,"UOM","X",null,"UOM","X",null,"UOM","X",null,"UOM","=",0]
[null,null,null,"UOM","X",null,"UOM","X",null,"UOM","X",null,"UOM","=",0]
[null,null,null,"UOM","X",null,"UOM","X",null,"UOM","X",null,"UOM","=",0]
[]
[null,null,null,null,null,null,null,null,null,null,null,null,"Subtotal",null,{"$f":"SUM(O872:O907)","v":0}]
[]
["Task 8.0","Railroad Encroachment Permit Coordination"]
["REPRODUCTION"]
[null,"Xerox Copies (8.5\" x 11\")"]
[null,"Permit Applications",null,null,null,null,"Sets","X",null,"Sheets/Set","X",{"$f":"LETTERCOPIES","v":0.14000000000000001},"per Sheet","=",{"$f":"+F914*I914*L914","v":0}]
[null,"Technical Reports, Special Provisions, documentation, etc",null,null,null,null,"Sets","X",null,"Sheets/Set","X",{"$f":"LETTERCOPIES","v":0.14000000000000001},"per Sheet","=",{"$f":"+F915*I915*L915","v":0}]
[]
[null,"Xerox Copies (11\" x 17\")"]
[null,"plan sheets",null,null,null,null,"Sets","X",null,"Sheets/Set","X",{"$f":"LEDGERCOPIES","v":0.34},"per Sheet","=",0]
[null,"miscellaneous ",null,null,null,null,null,null,null,"Sheets/Set","X",{"$f":"LEDGERCOPIES","v":0.34},"per Sheet","=",{"$f":"+I919*L919","v":0}]
["MILEAGE"]
[null," Trips",null,null,null,null,"Trips","X",null,"Miles/Trip","X",{"$f":"SEDAN","v":0.7},"per Mile","=",0]
[]
["CAR RENTAL"]
[null," Trips"]
[null,"Roundtrip -  to ",null,null,null,null,"trips","X",null,"day/Trip","X",{"$f":"CARRENTAL","v":50},"per day","=",0]
[null,null,null,null,null,null,"trips","X",null,"Miles/Trip","X",{"$f":"GASforRENTAL","v":0.2},"per Mile","=",0]
[null,"Local Mileage in ",null,null,null,null,"trips","X",null,"Miles/Trip","X",{"$f":"GASforRENTAL","v":0.2},"per Mile","=",0]
["OVERNIGHT TRAVEL"]
[null,"Hotel",null,"persons","X",null,"trips","X",null,"nights/trip","X",{"$f":"LODGING_LUMP.SUM","v":95},"per night","=",{"$f":"+C929*F929*I929*L929","v":0}]
[null,"Per Diem - Breakfast, Lunch, and Dinner",null,"persons","X",null,"trips","X",null,"days/trip","X",{"$f":"BREAKFAST+LUNCH+DINNER","v":46.5},"per day","=",0]
[null,"Per Diem - Breakfast ",null,"persons","X",null,"trips","X",null,"days/trip","X",{"$f":"BREAKFAST","v":10.1},"per day","=",{"$f":"+C931*F931*I931*L931","v":0}]
[null,"Per Diem - Lunch",null,"persons","X",null,"trips","X",null,"days/trip","X",{"$f":"LUNCH","v":13.3},"per day","=",0]
[null,"Per Diem - Dinner",null,"persons","X",null,"trips","X",null,"days/trip","X",{"$f":"DINNER","v":23.1},"per day","=",0]
[]
["OTHER"]
[null,"Postage & Courier",null,null,null,null,"Pack.","X",25,"Ea",null,null,null,"=",{"$f":"+F936*I936","v":0}]
[null,null,null,"UOM","X",null,"UOM","X",null,"UOM","X",null,"UOM","=",{"$f":"+C937*F937*I937*L937","v":0}]
[null,null,null,"UOM","X",null,"UOM","X",null,"UOM","X",null,"UOM","=",0]
[null,null,null,"UOM","X",null,"UOM","X",null,"UOM","X",null,"UOM","=",0]
[null,null,null,"UOM","X",null,"UOM","X",null,"UOM","X",null,"UOM","=",0]
[null,null,null,"UOM","X",null,"UOM","X",null,"UOM","X",null,"UOM","=",0]
[]
[]
[null,null,null,null,null,null,null,null,null,null,null,null,"Subtotal",null,{"$f":"SUM(O914:O941)","v":0}]
["Task 9.0","Basis of Design Document (BODD)"]
["REPRODUCTION"]
[null,"Xerox Copies (8.5\" x 11\")",null,"version","X",null,"Sets","X",null,"Sheets/Set","X",{"$f":"LETTERCOPIES","v":0.14000000000000001},"per Sheet","=",{"$f":"+C947*F947*I947*L947","v":0}]
[null,"BODD notebook",null,"updates","X",null,"Sets","X",null,"Sheets/Set","X",{"$f":"LETTERCOPIES","v":0.14000000000000001},"per Sheet","=",{"$f":"+C948*F948*I948*L948","v":0}]
[null,"Miscellaneous "]
[]
[null,"Xerox Copies (11\" x 17\")"]
[null,"BODD Graphics - Color",null,"versions","X",null,"Sets","X",null,"Sheets/Set","X",{"$f":"ROLLPLOTSlong","v":1.5},"per Sheet","=",{"$f":"+C952*F952*I952*L952","v":0}]
[null,"BODD Exhibits - Black/White",null,"versions","X",null,"Sets","X",null,"Sheets/Set","X",{"$f":"LEDGERCOPIES","v":0.34},"per Sheet","=",0]
[null,"Miscellaneous - Color",null,null,null,null,"Sets","X",null,"Sheets/Set","X",{"$f":"ROLLPLOTSlong","v":1.5},"per Sheet","=",{"$f":"+F954*I954*L954","v":0}]
[null,"Miscellaneous - Black/White",null,null,null,null,"Sets","X",null,"Sheets/Set","X",{"$f":"LEDGERCOPIES","v":0.34},"per Sheet","=",{"$f":"+F955*I955*L955","v":0}]
[]
[null,"BODD Notebooks"]
[null,"3\" Heavy-Duty D-ring Presentation Binder",null,null,null,null,"volumes","X",null,"Binders","X",14.29,"per binder","=",{"$f":"+F958*I958*L958","v":0}]
[null,"Sheet Lifters",null,null,null,null,"Binders","X",null,"pair/binder","X",1.99,"per pair","=",0]
[null,"Media Storage Pages (CD pockets)",null,null,null,null,null,null,null,"5-packs","X",7.99,"per pack","=",{"$f":"+I960*L960","v":0}]
[null,"Untabbed Business Card Pages",null,null,null,null,null,null,null,"10-packs","X",3.99,"per pack","=",{"$f":"+I961*L961","v":0}]
[null,"Self-Adhesive Business Card Holders",null,null,null,null,null,null,null,"10-packs","X",3.99,"per pack","=",0]
[null,"Direct Print Dividers, 5-Tab (4/pack) (10 tabs/binder for 4 binders)",null,null,null,null,null,null,null,"4-packs","X",23.99,"per pack","=",0]
[null,"Direct Print Dividers, 5-Tab (24/pack) (10 tabs/binder for 12 binders)",null,null,null,null,null,null,null,"24-packs","X",142.99,"per pack","=",0]
[]
["OTHER"]
[null,"Miscellaneous",null,null,null,null,"Sets","X",null,"Sheets/Set","X",{"$f":"LETTERCOPIES","v":0.14000000000000001},"per Sheet","=",{"$f":"+F967*I967*L967","v":0}]
[null,null,null,null,null,null,null,null,null,"Sheets","X",{"$f":"LETTERCOPIES","v":0.14000000000000001},"per Sheet","=",{"$f":"+I968*L968","v":0}]
[null,null,null,"UOM","X",null,"UOM","X",null,"UOM","X",null,"UOM","=",{"$f":"+C969*F969*I969*L969","v":0}]
[null,null,null,"UOM","X",null,"UOM","X",null,"UOM","X",null,"UOM","=",0]
[null,null,null,"UOM","X",null,"UOM","X",null,"UOM","X",null,"UOM","=",0]
[null,null,null,"UOM","X",null,"UOM","X",null,"UOM","X",null,"UOM","=",0]
[null,null,null,"UOM","X",null,"UOM","X",null,"UOM","X",null,"UOM","=",0]
[]
[null,null,null,null,null,null,null,null,null,null,null,null,"Subtotal",null,{"$f":"SUM(O947:O973)","v":0}]
["Task 10.0","Utility Make-Ready Plans"]
["REPRODUCTION"]
[null,"Xerox Copies (8.5\" x 11\")"]
[null,"Utility Partnering Meeting Handouts",null,null,null,null,"Sets","X",null,"Sheets/Set","X",{"$f":"LETTERCOPIES","v":0.14000000000000001},"per Sheet","=",{"$f":"+F979*I979*L979","v":0}]
[null,"Miscellaneous ",null,null,null,null,null,null,null,"Sheets","X",{"$f":"LETTERCOPIES","v":0.14000000000000001},"per Sheet","=",{"$f":"+I980*L980","v":0}]
[]
[null,"Xerox Copies (11\" x 17\")"]
[null,"Utility Partnering Meeting Examples",null,null,null,null,"Sets","X",null,"Sheets/Set","X",{"$f":"LEDGERCOPIES","v":0.34},"per Sheet","=",{"$f":"+F983*I983*L983","v":0}]
[null,"Preliminary UMR Plans",null,null,null,null,"Sets","X",null,"Sheets/Set","X",{"$f":"LEDGERCOPIES","v":0.34},"per Sheet","=",0]
[null,"QC Set",null,null,null,null,"Sets","X",null,"Sheets/Set","X",{"$f":"LEDGERCOPIES","v":0.34},"per Sheet","=",0]
[null,"Record Set - Consultant ",null,null,null,null,"Sets","X",null,"Sheets/Set","X",{"$f":"LEDGERCOPIES","v":0.34},"per Sheet","=",0]
[null,"Covers & Binding",null,null,null,null,null,null,null,"sets","X",{"$f":"COVERS+BINDERS","v":1},"per set","=",{"$f":"+I987*L987","v":0}]
[null,"Draft Final UMR Plans",null,null,null,null,"Sets","X",null,"Sheets/Set","X",{"$f":"LEDGERCOPIES","v":0.34},"per Sheet","=",0]
[null,"QC Set",null,null,null,null,"Sets","X",null,"Sheets/Set","X",{"$f":"LEDGERCOPIES","v":0.34},"per Sheet","=",0]
[null,"Record Set - Consultant ",null,null,null,null,"Sets","X",null,"Sheets/Set","X",{"$f":"LEDGERCOPIES","v":0.34},"per Sheet","=",0]
[null,"Covers & Binding",null,null,null,null,null,null,null,"sets","X",{"$f":"COVERS+BINDERS","v":1},"per set","=",{"$f":"+I991*L991","v":0}]
[null,"Final UMR Plans",null,null,null,null,"Sets","X",null,"Sheets/Set","X",{"$f":"LEDGERCOPIES","v":0.34},"per Sheet","=",0]
[null,"QC Set",null,null,null,null,"Sets","X",null,"Sheets/Set","X",{"$f":"LEDGERCOPIES","v":0.34},"per Sheet","=",0]
[null,"Record Set - Consultant ",null,null,null,null,"Sets","X",null,"Sheets/Set","X",{"$f":"LEDGERCOPIES","v":0.34},"per Sheet","=",0]
[null,"Covers & Binding",null,null,null,null,null,null,null,"sets","X",{"$f":"COVERS+BINDERS","v":1},"per set","=",{"$f":"+I995*L995","v":0}]
[]
[null,"Bond Prints (22\" x 34\")"]
[null,"Final UMR plans - Deliverables",null,null,null,null,"Sets","X",null,"Sheets/Set","X",{"$f":"BOND.REGULAR","v":0.42},"per Sheet","=",{"$f":"+F998*I998*L998","v":0}]
[null,"QC Set",null,null,null,null,"Sets","X",null,"Sheets/Set","X",{"$f":"BOND.REGULAR","v":0.42},"per Sheet","=",{"$f":"+F999*I999*L999","v":0}]
[null,"Record Set - Consultant CONSULTANT NAME",null,null,null,null,"Sets","X",null,"Sheets/Set","X",{"$f":"BOND.REGULAR","v":0.42},"per Sheet","=",{"$f":"+F1000*I1000*L1000","v":0}]
[null,"Covers & Binding",null,null,null,null,null,null,null,"sets","X",{"$f":"COVERS+BINDERS","v":1},"per set","=",{"$f":"+I1001*L1001","v":0}]
[]
["MILEAGE"]
[null," Trips",null,null,null,null,"Trips","X",null,"Miles/Trip","X",{"$f":"SEDAN","v":0.7},"per Mile","=",{"$f":"+F1004*I1004*L1004","v":0}]
[]
["CAR RENTAL"]
[null," Trips"]
[10.1,"Utility Partnering Meeting",null,null,null,null,"Trips","X",null,"day/Trip","X",{"$f":"CARRENTAL","v":50},"per day","=",{"$f":"+F1008*I1008*L1008","v":0}]
[null,null,null,null,null,null,"trips","X",null,"Miles/Trip","X",{"$f":"GASforRENTAL","v":0.2},"per Mile","=",0]
[10.3,"Preliminary Cable Route Survey",null,null,null,null,"trips","X",null,"day/Trip","X",{"$f":"CARRENTAL","v":50},"per day","=",0]
[null,"Roundtrip -  to ",null,null,null,null,"trips","X",null,"Miles/Trip","X",{"$f":"GASforRENTAL","v":0.2},"per Mile","=",0]
[null,"Local Mileage in ",null,null,null,null,"trips","X",null,"Miles/Trip","X",{"$f":"GASforRENTAL","v":0.2},"per Mile","=",0]
[10.8,"Field Survey Aerial Routes",null,null,null,null,"Trips","X",null,"day/Trip","X",{"$f":"CARRENTAL","v":50},"per day","=",0]
[null,"Roundtrip -  to ",null,null,null,null,"trips","X",null,"Miles/Trip","X",{"$f":"GASforRENTAL","v":0.2},"per Mile","=",0]
[null,"Local Mileage in ",null,null,null,null,"trips","X",null,"Miles/Trip","X",{"$f":"GASforRENTAL","v":0.2},"per Mile","=",0]
[10.1,"UMR Walk-throughs",null,null,null,null,"Trips","X",null,"day/Trip","X",{"$f":"CARRENTAL","v":50},"per day","=",0]
[null,"Roundtrip -  to ",null,null,null,null,"trips","X",null,"Miles/Trip","X",{"$f":"GASforRENTAL","v":0.2},"per Mile","=",0]
[null,"Local Mileage in ",null,null,null,null,"trips","X",null,"Miles/Trip","X",{"$f":"GASforRENTAL","v":0.2},"per Mile","=",0]
[]
["OVERNIGHT TRAVEL"]
[10.1,"Hotel",null,"persons","X",null,"trips","X",null,"nights/trip","X",{"$f":"LODGING_LUMP.SUM","v":95},"per night","=",{"$f":"+C1021*F1021*I1021*L1021","v":0}]
[null,"Per Diem - Breakfast, Lunch, & Dinner",null,"persons","X",null,"trips","X",null,"days/trip","X",{"$f":"BREAKFAST+LUNCH+DINNER","v":46.5},"per day","=",{"$f":"+C1022*F1022*I1022*L1022","v":0}]
[null,"Per Diem - Breakfast  ",null,"persons","X",null,"trips","X",null,"days/trip","X",{"$f":"BREAKFAST","v":10.1},"per day","=",{"$f":"+C1023*F1023*I1023*L1023","v":0}]
[null,"Per Diem - Lunch",null,"persons","X",null,"trips","X",null,"days/trip","X",{"$f":"LUNCH","v":13.3},"per day","=",0]
[null,"Per Diem - Dinner",null,"persons","X",null,"trips","X",null,"days/trip","X",{"$f":"DINNER","v":23.1},"per day","=",0]
[10.3,"Hotel",null,"persons","X",null,"trips","X",null,"nights/trip","X",{"$f":"LODGING_LUMP.SUM","v":95},"per night","=",0]
[null,"Per Diem - Breakfast, Lunch, & Dinner",null,"persons","X",null,"trips","X",null,"days/trip","X",{"$f":"BREAKFAST+LUNCH+DINNER","v":46.5},"per day","=",0]
[null,"Per Diem - Breakfast  ",null,"persons","X",null,"trips","X",null,"days/trip","X",{"$f":"BREAKFAST","v":10.1},"per day","=",{"$f":"+C1028*F1028*I1028*L1028","v":0}]
[null,"Per Diem - Lunch",null,"persons","X",null,"trips","X",null,"days/trip","X",{"$f":"LUNCH","v":13.3},"per day","=",0]
[null,"Per Diem - Dinner",null,"persons","X",null,"trips","X",null,"days/trip","X",{"$f":"DINNER","v":23.1},"per day","=",0]
[10.8,"Hotel",null,"persons","X",null,"trips","X",null,"nights/trip","X",{"$f":"LODGING_LUMP.SUM","v":95},"per night","=",0]
[null,"Per Diem - Breakfast, Lunch, & Dinner",null,"persons","X",null,"trips","X",null,"days/trip","X",{"$f":"BREAKFAST+LUNCH+DINNER","v":46.5},"per day","=",0]
[null,"Per Diem - Breakfast  ",null,"persons","X",null,"trips","X",null,"days/trip","X",{"$f":"BREAKFAST","v":10.1},"per day","=",{"$f":"+C1033*F1033*I1033*L1033","v":0}]
[null,"Per Diem - Lunch",null,"persons","X",null,"trips","X",null,"days/trip","X",{"$f":"LUNCH","v":13.3},"per day","=",0]
[null,"Per Diem - Dinner",null,"persons","X",null,"trips","X",null,"days/trip","X",{"$f":"DINNER","v":23.1},"per day","=",0]
[10.1,"Hotel",null,"persons","X",null,"trips","X",null,"nights/trip","X",{"$f":"LODGING_LUMP.SUM","v":95},"per night","=",0]
[null,"Per Diem - Breakfast, Lunch, & Dinner",null,"persons","X",null,"trips","X",null,"days/trip","X",{"$f":"BREAKFAST+LUNCH+DINNER","v":46.5},"per day","=",{"$f":"+C1037*F1037*I1037*L1037","v":0}]
[null,"Per Diem - Breakfast  ",null,"persons","X",null,"trips","X",null,"days/trip","X",{"$f":"BREAKFAST","v":10.1},"per day","=",0]
[null,"Per Diem - Lunch",null,"persons","X",null,"trips","X",null,"days/trip","X",{"$f":"LUNCH","v":13.3},"per day","=",0]
[null,"Per Diem - Dinner",null,"persons","X",null,"trips","X",null,"days/trip","X",{"$f":"DINNER","v":23.1},"per day","=",0]
[]
[]
["OTHER"]
[null,"Postage & Courier"]
[null,"FedEx (2-day Economy) UMR Plans to Utilities & City",null,"Submittals","X",null,"Pack.","X",10,"Ea",null,null,null,"=",{"$f":"+C1045*F1045*I1045","v":0}]
[null,"Miscellaneous",null,null,null,null,"Pack.","X",25,"Ea",null,null,null,"=",{"$f":"+F1046*I1046","v":0}]
[null,null,null,"UOM","X",null,"UOM","X",null,"UOM","X",null,"UOM","=",{"$f":"+C1047*F1047*I1047*L1047","v":0}]
[null,null,null,"UOM","X",null,"UOM","X",null,"UOM","X",null,"UOM","=",0]
[null,null,null,"UOM","X",null,"UOM","X",null,"UOM","X",null,"UOM","=",0]
[null,null,null,"UOM","X",null,"UOM","X",null,"UOM","X",null,"UOM","=",0]
[null,null,null,"UOM","X",null,"UOM","X",null,"UOM","X",null,"UOM","=",0]
[]
[]
[null,null,null,null,null,null,null,null,null,null,null,null,"Subtotal",null,{"$f":"SUM(O979:O1052)","v":0}]
["Task 11.0","Construction Plans (See Deliverables also)"]
[]
["CAR RENTAL"]
[null," Trips"]
[]
["11.1.14","CL Sheet Field Investigation",null,null,null,null,"trips","X",null,"day/Trip","X",{"$f":"CARRENTAL","v":50},"per day","=",{"$f":"+F1060*I1060*L1060","v":0}]
[null,null,null,null,null,null,"trips","X",null,"Miles/Trip","X",{"$f":"GASforRENTAL","v":0.2},"per Mile","=",{"$f":"+F1061*I1061*L1061","v":0}]
[]
["11.1.19 thru 20","Field Investigate Bldg. Mods.",null,null,null,null,"trips","X",null,"day/Trip","X",{"$f":"CARRENTAL","v":50},"per day","=",0]
[null,null,null,null,null,null,"trips","X",null,"Miles/Trip","X",{"$f":"GASforRENTAL","v":0.2},"per Mile","=",0]
[11.4,"Field Check Final Plans",null,null,null,null,"trips","X",null,"day/Trip","X",{"$f":"CARRENTAL","v":50},"per day","=",0]
[null,null,null,null,null,null,"trips","X",null,"Miles/Trip","X",{"$f":"GASforRENTAL","v":0.2},"per Mile","=",0]
[]
["OVERNIGHT TRAVEL"]
[null,"Hotel"]
["11.1.26","Prelim PS&E On-site work sessions - back to back with steering committeee meetings",null,"persons","X",null,"trips","X",null,"nights/trip","X",{"$f":"LODGING_LUMP.SUM","v":95},"per night","=",{"$f":"+C1070*F1070*I1070*L1070","v":0}]
["11.1.19 thru 20","Field Investigate Bldg. Mods.",null,"persons","X",null,"trips","X",null,"nights/trip","X",{"$f":"LODGING_LUMP.SUM","v":95},"per night","=",{"$f":"+C1071*F1071*I1071*L1071","v":0}]
[null,"Per Diem (Breakfast, Lunch, & Dinner)"]
["11.1.19 thru 20","Field Investigate Bldg. Mods.",null,"persons","X",null,"trips","X",null,"days/trip","X",{"$f":"BREAKFAST+LUNCH+DINNER","v":46.5},"per day","=",{"$f":"+C1073*F1073*I1073*L1073","v":0}]
["11.1.26","Prelim PS&E On-site work sessions - back to back with steering committeee meetings",null,"persons","X",null,"trips","X",null,"days/trip","X",{"$f":"BREAKFAST+LUNCH+DINNER","v":46.5},"per day","=",0]
[null,"Per Diem (Breakfast)"]
["11.1.19 thru 20","Field Investigate Bldg. Mods.",null,"persons","X",null,"trips","X",null,"days/trip","X",{"$f":"BREAKFAST","v":10.1},"per day","=",{"$f":"+C1076*F1076*I1076*L1076","v":0}]
["11.1.26","Prelim PS&E On-site work sessions - back to back with steering committeee meetings",null,"persons","X",null,"trips","X",null,"days/trip","X",{"$f":"BREAKFAST","v":10.1},"per day","=",0]
[null,"Per Diem (Lunch)"]
["11.1.19 thru 20","Field Investigate Bldg. Mods.",null,"persons","X",null,"trips","X",null,"days/trip","X",{"$f":"LUNCH","v":13.3},"per day","=",{"$f":"+C1079*F1079*I1079*L1079","v":0}]
["11.1.26","Prelim PS&E On-site work sessions - back to back with steering committeee meetings",null,"persons","X",null,"trips","X",null,"days/trip","X",{"$f":"LUNCH","v":13.3},"per day","=",0]
[null,"Per Diem (Dinner)"]
["11.1.19 thru 20","Field Investigate Bldg. Mods.",null,"persons","X",null,"trips","X",null,"days/trip","X",{"$f":"DINNER","v":23.1},"per day","=",0]
["11.1.26","Prelim PS&E On-site work sessions - back to back with steering committeee meetings",null,"persons","X",null,"trips","X",null,"days/trip","X",{"$f":"DINNER","v":23.1},"per day","=",0]
[]
["OTHER"]
[null,"Miscellaneous",null,null,null,null,"Sets","X",null,"Sheets/Set","X",{"$f":"LETTERCOPIES","v":0.14000000000000001},"per Sheet","=",{"$f":"+F1086*I1086*L1086","v":0}]
[null,null,null,null,null,null,null,null,null,"Sheets","X",{"$f":"LETTERCOPIES","v":0.14000000000000001},"per Sheet","=",{"$f":"+I1087*L1087","v":0}]
[null,null,null,"UOM","X",null,"UOM","X",null,"UOM","X",null,"UOM","=",{"$f":"+C1088*F1088*I1088*L1088","v":0}]
[null,null,null,"UOM","X",null,"UOM","X",null,"UOM","X",null,"UOM","=",0]
[null,null,null,"UOM","X",null,"UOM","X",null,"UOM","X",null,"UOM","=",0]
[null,null,null,"UOM","X",null,"UOM","X",null,"UOM","X",null,"UOM","=",0]
[null,null,null,"UOM","X",null,"UOM","X",null,"UOM","X",null,"UOM","=",0]
[]
[null,null,null,null,null,null,null,null,null,null,null,null,"Subtotal",null,{"$f":"SUM(O1060:O1092)","v":0}]
["Task 12.0","Project Special Provisions (See Deliverables also)"]
["REPRODUCTION/PRINTING/DOCUMENTATION"]
[null,"Xerox Copies (8.5\" x 11\")"]
[null,"Miscellaneous (Corres., etc.)"]
[null,null,null,null,null,null,null,null,null,"Sheets","X",{"$f":"LETTERCOPIES","v":0.14000000000000001},"per Sheet","=",{"$f":"+I1099*L1099","v":0}]
[null,null,null,"UOM","X",null,"UOM","X",null,"UOM","X",null,"UOM","=",{"$f":"+C1100*F1100*I1100*L1100","v":0}]
[null,null,null,"UOM","X",null,"UOM","X",null,"UOM","X",null,"UOM","=",0]
[null,null,null,"UOM","X",null,"UOM","X",null,"UOM","X",null,"UOM","=",0]
[null,null,null,"UOM","X",null,"UOM","X",null,"UOM","X",null,"UOM","=",0]
[null,null,null,"UOM","X",null,"UOM","X",null,"UOM","X",null,"UOM","=",0]
[]
[null,null,null,null,null,null,null,null,null,null,null,null,"Subtotal",null,{"$f":"SUM(O1097:O1104)","v":0}]
["Task 13.0","Engineer's Opinion of Probable Cost"]
["REPRODUCTION"]
[null,"Xerox Copies (8.5\" x 11\")"]
[null,"Preliminary Opinion of Cost"]
[null,"Final Opinion of Cost",null,null,null,null,"Sets","X",null,"Sheets/Set","X",{"$f":"LETTERCOPIES","v":0.14000000000000001},"per Sheet","=",{"$f":"+F1111*I1111*L1111","v":0}]
[null,"Miscellaneous",null,null,null,null,"Sets","X",null,"Sheets/Set","X",{"$f":"LETTERCOPIES","v":0.14000000000000001},"per Sheet","=",{"$f":"+F1112*I1112*L1112","v":0}]
[null,null,null,null,null,null,null,null,null,"Sheets","X",{"$f":"LETTERCOPIES","v":0.14000000000000001},"per Sheet","=",{"$f":"+I1113*L1113","v":0}]
[]
["OTHER"]
[null,null,null,"UOM","X",null,"UOM","X",null,"UOM","X",null,"UOM","=",{"$f":"+C1116*F1116*I1116*L1116","v":0}]
[null,null,null,"UOM","X",null,"UOM","X",null,"UOM","X",null,"UOM","=",0]
[null,null,null,"UOM","X",null,"UOM","X",null,"UOM","X",null,"UOM","=",0]
[null,null,null,"UOM","X",null,"UOM","X",null,"UOM","X",null,"UOM","=",0]
[null,null,null,"UOM","X",null,"UOM","X",null,"UOM","X",null,"UOM","=",0]
[]
[null,null,null,null,null,null,null,null,null,null,null,null,"Subtotal",null,{"$f":"SUM(O1110:O1120)","v":0}]
["Task 14.0","Prepare PS&E Deliverables and Final Documentation"]
["REPRODUCTION"]
[null,"Xerox Copies (8.5\" x 11\")"]
[null,"Preliminary Special Provisions",null,null,null,null,"Sets","X",null,"Sheets/Set","X",{"$f":"LETTERCOPIES","v":0.14000000000000001},"per Sheet","=",{"$f":"+F1126*I1126*L1126","v":0}]
[null,"Covers & Binding",null,null,null,null,null,null,null,"sets","X",{"$f":"COVERS+BINDERS","v":1},"per set","=",{"$f":"+I1127*L1127","v":0}]
[null,"QC Set",null,null,null,null,"Sets","X",null,"Sheets/Set","X",{"$f":"LETTERCOPIES","v":0.14000000000000001},"per Sheet","=",{"$f":"+F1128*I1128*L1128","v":0}]
[null,"Record Set - Consultant",null,null,null,null,"Sets","X",null,"Sheets/Set","X",{"$f":"LETTERCOPIES","v":0.14000000000000001},"per Sheet","=",0]
[null,"Draft Final Special Provisions",null,null,null,null,"Sets","X",null,"Sheets/Set","X",{"$f":"LETTERCOPIES","v":0.14000000000000001},"per Sheet","=",0]
[null,"Covers & Binding",null,null,null,null,null,null,null,"sets","X",{"$f":"COVERS+BINDERS","v":1},"per set","=",{"$f":"+I1131*L1131","v":0}]
[null,"QC Set",null,null,null,null,"Sets","X",null,"Sheets/Set","X",{"$f":"LETTERCOPIES","v":0.14000000000000001},"per Sheet","=",{"$f":"+F1132*I1132*L1132","v":0}]
[null,"Record Set - Consultant",null,null,null,null,"Sets","X",null,"Sheets/Set","X",{"$f":"LETTERCOPIES","v":0.14000000000000001},"per Sheet","=",0]
[null,"Final Special Provisions",null,null,null,null,"Sets","X",null,"Sheets/Set","X",{"$f":"LETTERCOPIES","v":0.14000000000000001},"per Sheet","=",0]
[null,"Covers & Binding",null,null,null,null,null,null,null,"sets","X",{"$f":"COVERS+BINDERS","v":1},"per set","=",{"$f":"+I1135*L1135","v":0}]
[null,"QC Set",null,null,null,null,"Sets","X",null,"Sheets/Set","X",{"$f":"LETTERCOPIES","v":0.14000000000000001},"per Sheet","=",{"$f":"+F1136*I1136*L1136","v":0}]
[null,"Record Set - Consultant",null,null,null,null,"Sets","X",null,"Sheets/Set","X",{"$f":"LETTERCOPIES","v":0.14000000000000001},"per Sheet","=",0]
[null,"Misc. (Corres., Signal Calcs, etc.)",null,null,null,null,null,null,null,"Sheets","X",{"$f":"LETTERCOPIES","v":0.14000000000000001},"per Sheet","=",{"$f":"+I1138*L1138","v":0}]
[]
[]
[null,"Xerox Copies (11\" x 17\")"]
[null,"Preliminary Construction Plans (no NCDOT Signals)",null,null,null,null,"Sets","X",null,"Sheets/Set","X",{"$f":"LEDGERCOPIES","v":0.34},"per Sheet","=",{"$f":"+F1142*I1142*L1142","v":0}]
[null,"QC Set",null,null,null,null,"Sets","X",null,"Sheets/Set","X",{"$f":"LEDGERCOPIES","v":0.34},"per Sheet","=",0]
[null,"Record Set - Consultant",null,null,null,null,"Sets","X",null,"Sheets/Set","X",{"$f":"LEDGERCOPIES","v":0.34},"per Sheet","=",0]
[null,"Covers & Binding",null,null,null,null,"Sets","X",null,"Volumes/Set","X",{"$f":"COVERS+BINDERS","v":1},"per set","=",0]
[null,"Draft Final Construction Plans (incl. NCDOT Signals)",null,null,null,null,"Sets","X",null,"Sheets/Set","X",{"$f":"LEDGERCOPIES","v":0.34},"per Sheet","=",0]
[null,"QC Set",null,null,null,null,"Sets","X",null,"Sheets/Set","X",{"$f":"LEDGERCOPIES","v":0.34},"per Sheet","=",0]
[null,"Record Set - Consultant",null,null,null,null,"Sets","X",null,"Sheets/Set","X",{"$f":"LEDGERCOPIES","v":0.34},"per Sheet","=",0]
[null,"Covers & Binding",null,null,null,null,"Sets","X",null,"Volumes/Set","X",{"$f":"COVERS+BINDERS","v":1},"per set","=",0]
[null,"Final Construction Plans (incl. NCDOT Signals)",null,null,null,null,"Sets","X",null,"Sheets/Set","X",{"$f":"LEDGERCOPIES","v":0.34},"per Sheet","=",0]
[null,"QC Set",null,null,null,null,"Sets","X",null,"Sheets/Set","X",{"$f":"LEDGERCOPIES","v":0.34},"per Sheet","=",0]
[null,"Record Set - Consultant",null,null,null,null,"Sets","X",null,"Sheets/Set","X",{"$f":"LEDGERCOPIES","v":0.34},"per Sheet","=",0]
[null,"Covers & Binding",null,null,null,null,"Sets","X",null,"Volumes/Set","X",{"$f":"COVERS+BINDERS","v":1},"per set","=",0]
[]
[null,"Bond Prints (22\" x 34\")"]
[null,"Final Construction Plans",null,null,null,null,"Sets","X",null,"Sheets/Set","X",{"$f":"BOND.REGULAR","v":0.42},"per Sheet","=",{"$f":"+F1156*I1156*L1156","v":0}]
[null,"QC Set",null,null,null,null,"Sets","X",null,"Sheets/Set","X",{"$f":"BOND.REGULAR","v":0.42},"per Sheet","=",0]
[null,"Record Set - Consultant",null,null,null,null,"Sets","X",null,"Sheets/Set","X",{"$f":"BOND.REGULAR","v":0.42},"per Sheet","=",0]
[null,"Covers & Binding",null,null,null,null,"Sets","X",null,"Volumes/Set","X",{"$f":"COVERS+BINDERS","v":1},"per set","=",0]
[]
["MILEAGE"]
[null,"NCDOT Delivery/Pick-up",null,null,null,null,"Trips","X",null,"Miles/Trip","X",{"$f":"SEDAN","v":0.7},"per Mile","=",{"$f":"+F1162*I1162*L1162","v":0}]
[]
["OTHER"]
[null,"USB Jump Drive (16 GB)",null,null,null,null,"Each","X",19.989999999999998,"Ea",null,null,null,"=",{"$f":"+F1165*I1165","v":0}]
[null,null,null,"UOM","X",null,"UOM","X",null,"UOM","X",null,"UOM","=",{"$f":"+C1166*F1166*I1166*L1166","v":0}]
[null,null,null,"UOM","X",null,"UOM","X",null,"UOM","X",null,"UOM","=",0]
[null,null,null,"UOM","X",null,"UOM","X",null,"UOM","X",null,"UOM","=",0]
[null,null,null,"UOM","X",null,"UOM","X",null,"UOM","X",null,"UOM","=",0]
[null,null,null,"UOM","X",null,"UOM","X",null,"UOM","X",null,"UOM","=",0]
[]
[null,null,null,null,null,null,null,null,null,null,null,null,"Subtotal",null,{"$f":"SUM(O1126:O1170)","v":0}]
[]
["Task 15.0",{"$f":"IF(B375=\"REPLACE FIELD WITH CATEGORY NAME OF YOUR CHOOSING HERE\",\"Category Not Defined Above, Please do not key values in this section\",B375)","v":"Category Not Defined Above, Please do not key values in this section"},null,null,null,null,null,null,null,null,null,null,null,null,{"$f":"IF(B1174=\"Category Not Defined Above, Please do not key values in this section\",0,\"\")","v":0}]
["OTHER","UOM = Unit of Measure",null,null,null,null,null,null,null,null,null,null,null,null,{"$f":"IF(B1174=\"Category Not Defined Above, Please do not key values in this section\",0,\"\")","v":0}]
[null,null,null,"UOM","X",null,"UOM","X",null,"UOM","X",null,"UOM","=",{"$f":"+C1176*F1176*I1176*L1176","v":0}]
[null,null,null,"UOM","X",null,"UOM","X",null,"UOM","X",null,"UOM","=",0]
[null,null,null,"UOM","X",null,"UOM","X",null,"UOM","X",null,"UOM","=",0]
[null,null,null,"UOM","X",null,"UOM","X",null,"UOM","X",null,"UOM","=",{"$f":"+C1179*F1179*I1179*L1179","v":0}]
[null,null,null,"UOM","X",null,"UOM","X",null,"UOM","X",null,"UOM","=",0]
[null,null,null,"UOM","X",null,"UOM","X",null,"UOM","X",null,"UOM","=",0]
[null,null,null,"UOM","X",null,"UOM","X",null,"UOM","X",null,"UOM","=",0]
[null,null,null,"UOM","X",null,"UOM","X",null,"UOM","X",null,"UOM","=",0]
[null,null,null,"UOM","X",null,"UOM","X",null,"UOM","X",null,"UOM","=",0]
[null,null,null,"UOM","X",null,"UOM","X",null,"UOM","X",null,"UOM","=",0]
[null,null,null,"UOM","X",null,"UOM","X",null,"UOM","X",null,"UOM","=",0]
[null,null,null,"UOM","X",null,"UOM","X",null,"UOM","X",null,"UOM","=",0]
[null,null,null,"UOM","X",null,"UOM","X",null,"UOM","X",null,"UOM","=",0]
[null,null,null,"UOM","X",null,"UOM","X",null,"UOM","X",null,"UOM","=",0]
[null,null,null,"UOM","X",null,"UOM","X",null,"UOM","X",null,"UOM","=",0]
[]
[null,null,null,null,null,null,null,null,null,null,null,null,"Subtotal",null,{"$f":"SUM(O1176:O1190)","v":0}]
[]
[]
["Task 16.0",{"$f":"IF(B409=\"REPLACE FIELD WITH CATEGORY NAME OF YOUR CHOOSING HERE\",\"Category Not Defined Above, Please do not key values in this section\",B409)","v":"Category Not Defined Above, Please do not key values in this section"},null,null,null,null,null,null,null,null,null,null,null,null,{"$f":"IF(B1195=\"Category Not Defined Above, Please do not key values in this section\",0,\"\")","v":0}]
["OTHER","UOM = Unit of Measure",null,null,null,null,null,null,null,null,null,null,null,null,{"$f":"IF(B1195=\"Category Not Defined Above, Please do not key values in this section\",0,\"\")","v":0}]
[null,null,null,"UOM","X",null,"UOM","X",null,"UOM","X",null,"UOM","=",{"$f":"+C1197*F1197*I1197*L1197","v":0}]
[null,null,null,"UOM","X",null,"UOM","X",null,"UOM","X",null,"UOM","=",0]
[null,null,null,"UOM","X",null,"UOM","X",null,"UOM","X",null,"UOM","=",0]
[null,null,null,"UOM","X",null,"UOM","X",null,"UOM","X",null,"UOM","=",0]
[null,null,null,"UOM","X",null,"UOM","X",null,"UOM","X",null,"UOM","=",0]
[null,null,null,"UOM","X",null,"UOM","X",null,"UOM","X",null,"UOM","=",0]
[null,null,null,"UOM","X",null,"UOM","X",null,"UOM","X",null,"UOM","=",0]
[null,null,null,"UOM","X",null,"UOM","X",null,"UOM","X",null,"UOM","=",0]
[null,null,null,"UOM","X",null,"UOM","X",null,"UOM","X",null,"UOM","=",0]
[null,null,null,"UOM","X",null,"UOM","X",null,"UOM","X",null,"UOM","=",0]
[null,null,null,"UOM","X",null,"UOM","X",null,"UOM","X",null,"UOM","=",0]
[null,null,null,"UOM","X",null,"UOM","X",null,"UOM","X",null,"UOM","=",0]
[null,null,null,"UOM","X",null,"UOM","X",null,"UOM","X",null,"UOM","=",0]
[null,null,null,"UOM","X",null,"UOM","X",null,"UOM","X",null,"UOM","=",0]
[null,null,null,"UOM","X",null,"UOM","X",null,"UOM","X",null,"UOM","=",0]
[]
[null,null,null,null,null,null,null,null,null,null,null,null,"Subtotal",null,{"$f":"SUM(O1197:O1211)","v":0}]
[]
[]
["Task 17.0",{"$f":"IF(B443=\"REPLACE FIELD WITH CATEGORY NAME OF YOUR CHOOSING HERE\",\"Category Not Defined Above, Please do not key values in this section\",B443)","v":"Category Not Defined Above, Please do not key values in this section"},null,null,null,null,null,null,null,null,null,null,null,null,{"$f":"IF(B1216=\"Category Not Defined Above, Please do not key values in this section\",0,\"\")","v":0}]
["OTHER","UOM = Unit of Measure",null,null,null,null,null,null,null,null,null,null,null,null,{"$f":"IF(B1216=\"Category Not Defined Above, Please do not key values in this section\",0,\"\")","v":0}]
[null,null,null,"UOM","X",null,"UOM","X",null,"UOM","X",null,"UOM","=",{"$f":"+C1218*F1218*I1218*L1218","v":0}]
[null,null,null,"UOM","X",null,"UOM","X",null,"UOM","X",null,"UOM","=",0]
[null,null,null,"UOM","X",null,"UOM","X",null,"UOM","X",null,"UOM","=",0]
[null,null,null,"UOM","X",null,"UOM","X",null,"UOM","X",null,"UOM","=",0]
[null,null,null,"UOM","X",null,"UOM","X",null,"UOM","X",null,"UOM","=",0]
[null,null,null,"UOM","X",null,"UOM","X",null,"UOM","X",null,"UOM","=",0]
[null,null,null,"UOM","X",null,"UOM","X",null,"UOM","X",null,"UOM","=",0]
[null,null,null,"UOM","X",null,"UOM","X",null,"UOM","X",null,"UOM","=",0]
[null,null,null,"UOM","X",null,"UOM","X",null,"UOM","X",null,"UOM","=",0]
[null,null,null,"UOM","X",null,"UOM","X",null,"UOM","X",null,"UOM","=",0]
[null,null,null,"UOM","X",null,"UOM","X",null,"UOM","X",null,"UOM","=",0]
[null,null,null,"UOM","X",null,"UOM","X",null,"UOM","X",null,"UOM","=",0]
[null,null,null,"UOM","X",null,"UOM","X",null,"UOM","X",null,"UOM","=",0]
[null,null,null,"UOM","X",null,"UOM","X",null,"UOM","X",null,"UOM","=",0]
[null,null,null,"UOM","X",null,"UOM","X",null,"UOM","X",null,"UOM","=",0]
[]
[null,null,null,null,null,null,null,null,null,null,null,null,"Subtotal",null,{"$f":"SUM(O1218:O1232)","v":0}]
[]
[]
["Task 18.0",{"$f":"IF(B477=\"REPLACE FIELD WITH CATEGORY NAME OF YOUR CHOOSING HERE\",\"Category Not Defined Above, Please do not key values in this section\",B477)","v":"Category Not Defined Above, Please do not key values in this section"},null,null,null,null,null,null,null,null,null,null,null,null,{"$f":"IF(B1237=\"Category Not Defined Above, Please do not key values in this section\",0,\"\")","v":0}]
["OTHER","UOM = Unit of Measure",null,null,null,null,null,null,null,null,null,null,null,null,{"$f":"IF(B1237=\"Category Not Defined Above, Please do not key values in this section\",0,\"\")","v":0}]
[null,null,null,"UOM","X",null,"UOM","X",null,"UOM","X",null,"UOM","=",{"$f":"+C1239*F1239*I1239*L1239","v":0}]
[null,null,null,"UOM","X",null,"UOM","X",null,"UOM","X",null,"UOM","=",0]
[null,null,null,"UOM","X",null,"UOM","X",null,"UOM","X",null,"UOM","=",0]
[null,null,null,"UOM","X",null,"UOM","X",null,"UOM","X",null,"UOM","=",0]
[null,null,null,"UOM","X",null,"UOM","X",null,"UOM","X",null,"UOM","=",0]
[null,null,null,"UOM","X",null,"UOM","X",null,"UOM","X",null,"UOM","=",0]
[null,null,null,"UOM","X",null,"UOM","X",null,"UOM","X",null,"UOM","=",0]
[null,null,null,"UOM","X",null,"UOM","X",null,"UOM","X",null,"UOM","=",0]
[null,null,null,"UOM","X",null,"UOM","X",null,"UOM","X",null,"UOM","=",0]
[null,null,null,"UOM","X",null,"UOM","X",null,"UOM","X",null,"UOM","=",0]
[null,null,null,"UOM","X",null,"UOM","X",null,"UOM","X",null,"UOM","=",0]
[null,null,null,"UOM","X",null,"UOM","X",null,"UOM","X",null,"UOM","=",0]
[null,null,null,"UOM","X",null,"UOM","X",null,"UOM","X",null,"UOM","=",0]
[null,null,null,"UOM","X",null,"UOM","X",null,"UOM","X",null,"UOM","=",0]
[null,null,null,"UOM","X",null,"UOM","X",null,"UOM","X",null,"UOM","=",0]
[]
[null,null,null,null,null,null,null,null,null,null,null,null,"Subtotal",null,{"$f":"SUM(O1239:O1253)","v":0}]
[]
[]
["Task 19.0",{"$f":"IF(B511=\"REPLACE FIELD WITH CATEGORY NAME OF YOUR CHOOSING HERE\",\"Category Not Defined Above, Please do not key values in this section\",B511)","v":"Category Not Defined Above, Please do not key values in this section"},null,null,null,null,null,null,null,null,null,null,null,null,{"$f":"IF(B1258=\"Category Not Defined Above, Please do not key values in this section\",0,\"\")","v":0}]
["OTHER","UOM = Unit of Measure",null,null,null,null,null,null,null,null,null,null,null,null,{"$f":"IF(B1258=\"Category Not Defined Above, Please do not key values in this section\",0,\"\")","v":0}]
[null,null,null,"UOM","X",null,"UOM","X",null,"UOM","X",null,"UOM","=",{"$f":"+C1260*F1260*I1260*L1260","v":0}]
[null,null,null,"UOM","X",null,"UOM","X",null,"UOM","X",null,"UOM","=",0]
[null,null,null,"UOM","X",null,"UOM","X",null,"UOM","X",null,"UOM","=",0]
[null,null,null,"UOM","X",null,"UOM","X",null,"UOM","X",null,"UOM","=",0]
[null,null,null,"UOM","X",null,"UOM","X",null,"UOM","X",null,"UOM","=",0]
[null,null,null,"UOM","X",null,"UOM","X",null,"UOM","X",null,"UOM","=",0]
[null,null,null,"UOM","X",null,"UOM","X",null,"UOM","X",null,"UOM","=",0]
[null,null,null,"UOM","X",null,"UOM","X",null,"UOM","X",null,"UOM","=",0]
[null,null,null,"UOM","X",null,"UOM","X",null,"UOM","X",null,"UOM","=",0]
[null,null,null,"UOM","X",null,"UOM","X",null,"UOM","X",null,"UOM","=",0]
[null,null,null,"UOM","X",null,"UOM","X",null,"UOM","X",null,"UOM","=",0]
[null,null,null,"UOM","X",null,"UOM","X",null,"UOM","X",null,"UOM","=",0]
[null,null,null,"UOM","X",null,"UOM","X",null,"UOM","X",null,"UOM","=",0]
[null,null,null,"UOM","X",null,"UOM","X",null,"UOM","X",null,"UOM","=",0]
[null,null,null,"UOM","X",null,"UOM","X",null,"UOM","X",null,"UOM","=",0]
[]
[null,null,null,null,null,null,null,null,null,null,null,null,"Subtotal",null,{"$f":"SUM(O1260:O1274)","v":0}]
[]
[]
["Task 20.0",{"$f":"IF(B545=\"REPLACE FIELD WITH CATEGORY NAME OF YOUR CHOOSING HERE\",\"Category Not Defined Above, Please do not key values in this section\",B545)","v":"Category Not Defined Above, Please do not key values in this section"},null,null,null,null,null,null,null,null,null,null,null,null,{"$f":"IF(B1279=\"Category Not Defined Above, Please do not key values in this section\",0,\"\")","v":0}]
["OTHER","UOM = Unit of Measure",null,null,null,null,null,null,null,null,null,null,null,null,{"$f":"IF(B1279=\"Category Not Defined Above, Please do not key values in this section\",0,\"\")","v":0}]
[null,null,null,"UOM","X",null,"UOM","X",null,"UOM","X",null,"UOM","=",{"$f":"+C1281*F1281*I1281*L1281","v":0}]
[null,null,null,"UOM","X",null,"UOM","X",null,"UOM","X",null,"UOM","=",0]
[null,null,null,"UOM","X",null,"UOM","X",null,"UOM","X",null,"UOM","=",0]
[null,null,null,"UOM","X",null,"UOM","X",null,"UOM","X",null,"UOM","=",0]
[null,null,null,"UOM","X",null,"UOM","X",null,"UOM","X",null,"UOM","=",0]
[null,null,null,"UOM","X",null,"UOM","X",null,"UOM","X",null,"UOM","=",0]
[null,null,null,"UOM","X",null,"UOM","X",null,"UOM","X",null,"UOM","=",0]
[null,null,null,"UOM","X",null,"UOM","X",null,"UOM","X",null,"UOM","=",0]
[null,null,null,"UOM","X",null,"UOM","X",null,"UOM","X",null,"UOM","=",0]
[null,null,null,"UOM","X",null,"UOM","X",null,"UOM","X",null,"UOM","=",0]
[null,null,null,"UOM","X",null,"UOM","X",null,"UOM","X",null,"UOM","=",0]
[null,null,null,"UOM","X",null,"UOM","X",null,"UOM","X",null,"UOM","=",0]
[null,null,null,"UOM","X",null,"UOM","X",null,"UOM","X",null,"UOM","=",0]
[null,null,null,"UOM","X",null,"UOM","X",null,"UOM","X",null,"UOM","=",0]
[null,null,null,"UOM","X",null,"UOM","X",null,"UOM","X",null,"UOM","=",0]
[]
[null,null,null,null,null,null,null,null,null,null,null,null,"Subtotal",null,{"$f":"SUM(O1281:O1295)","v":0}]
[]
[]
[null,null,null,null,null,null,null,null,"Non-Salary Expense Total",null,null,null,null,null,{"$f":"O1297+O1276+O1255+O1234+O1213+O1192+O1172+O1122+O1106+O1094+O1054+O975+O944+O909+O868+O828+O789+O747+O641","v":0}]

{"sheet":"Signals","index":49,"n_rows":153,"n_cols":18,"rows_kept":153,"cut":false,"hidden":true,"merged":[[45,1,45,3],[37,1,37,3],[38,1,38,3],[48,1,48,3],[49,1,49,3],[44,1,44,3],[50,1,50,3],[13,0,13,15],[34,0,34,15],[46,1,46,3],[46,8,46,13],[47,1,47,3],[35,1,35,3],[35,8,35,13],[36,1,36,3],[39,1,39,3],[40,1,40,3],[40,8,40,13],[41,1,41,3],[42,1,42,3],[43,1,43,3],[43,8,43,13],[0,1,0,14],[1,1,1,14],[3,1,3,14],[4,1,4,14],[19,1,19,3],[8,4,8,13],[2,1,2,8],[2,9,2,14],[6,7,6,9],[7,7,7,9],[5,1,5,14],[18,1,18,3],[14,8,14,13],[14,1,14,3],[17,1,17,3],[17,8,17,13],[32,1,32,3],[25,1,25,3],[20,1,20,3],[22,1,22,3],[23,1,23,3],[24,1,24,3],[30,1,30,3],[9,14,11,14],[9,15,11,15],[139,7,151,7],[64,1,64,3],[69,1,69,3],[75,1,75,3],[57,8,57,13],[58,1,58,3],[129,2,129,3],[130,2,130,3],[131,2,131,3],[132,2,132,3],[133,2,133,3],[56,1,56,3],[57,1,57,3],[82,2,82,3],[11,0,12,0],[12,4,12,13],[60,4,60,13],[26,1,26,3],[21,1,21,3],[31,1,31,3],[27,1,27,3],[28,1,28,3],[29,1,29,3],[59,1,59,3],[54,8,54,13],[55,1,55,3],[53,1,53,3],[54,1,54,3],[16,1,16,3],[15,1,15,3],[81,2,81,3],[80,2,80,3],[51,8,51,13],[52,1,52,3],[51,1,51,3],[71,1,71,3],[76,1,76,3]]}
[null,"Signal Design Scoping Cost Estimate"]
[null,"FOR"]
[null,{"$f":"CONCATENATE(IF(TIP.NUMBER=\"\",\"TIP\",CONCATENATE(\"TIP:  \",TIP.NUMBER)),IF(TIP.NUMBER=\"\",\"\",\"   \"))","v":"TIP"},null,null,null,null,null,null,null,{"$f":"CONCATENATE(IF(WBS.NUMBER=\"\",\"\",\"   \"),IF(WBS.NUMBER=\"\",\"WBS\",CONCATENATE(\"WBS:  \",WBS.NUMBER)))","v":"WBS"}]
[null,{"$f":"IF(COUNTY=\"\",\"COUNTY\",CONCATENATE(\"COUNTY:  \",COUNTY))","v":"COUNTY"}]
[null,{"$f":"IF(PROJECT.DESCRIPTION=\"\",\"PROJECT DESCRIPTION\",CONCATENATE(\"PROJECT DESCRIPTION:  \",PROJECT.DESCRIPTION))","v":"PROJECT DESCRIPTION"}]
[null,{"$f":"IF(SIGNALS_CONSULTANT_NAME=\"CONSULTANT NAME\",\"CONSULTANT NAME\", CONCATENATE(\"FIRM:  \",SIGNALS_CONSULTANT_NAME))","v":"CONSULTANT NAME"}]
[null,null,null,null,null,null,"Prepared By:",{"$f":"IF(SCOPE.MANDAY.ESTIMATE.PREPARED.BY=\"\",\"\",SCOPE.MANDAY.ESTIMATE.PREPARED.BY)","v":""}]
[null,null,null,null,null,null,"Date:",{"$f":"IF(SCOPE.MANDAY.ESTIMATE.PREPARED.BY.DATE=\"\",\"\",SCOPE.MANDAY.ESTIMATE.PREPARED.BY.DATE)","v":""}]
[null," ",null,null,"ESTIMATED WORKHOURS (SECTIONS BELOW INDICATE \"WORKHOURS PER PLAN\" OR \"WORKHOURS PER PROJECT\")",null,null,null,null,null,null,null,null,null," "]
[null,"CLASSIFICATION",null,null,{"$f":"IF('PEF CLASSIFICATION SHEET'!C388=\"\",\"\",'PEF CLASSIFICATION SHEET'!C388)","v":""},{"$f":"IF('PEF CLASSIFICATION SHEET'!C389=\"\",\"\",'PEF CLASSIFICATION SHEET'!C389)","v":""},{"$f":"IF('PEF CLASSIFICATION SHEET'!C390=\"\",\"\",'PEF CLASSIFICATION SHEET'!C390)","v":""},{"$f":"IF('PEF CLASSIFICATION SHEET'!C391=\"\",\"\",'PEF CLASSIFICATION SHEET'!C391)","v":""},{"$f":"IF('PEF CLASSIFICATION SHEET'!C392=\"\",\"\",'PEF CLASSIFICATION SHEET'!C392)","v":""},{"$f":"IF('PEF CLASSIFICATION SHEET'!C393=\"\",\"\",'PEF CLASSIFICATION SHEET'!C393)","v":""},{"$f":"IF('PEF CLASSIFICATION SHEET'!C394=\"\",\"\",'PEF CLASSIFICATION SHEET'!C394)","v":""},{"$f":"IF('PEF CLASSIFICATION SHEET'!C395=\"\",\"\",'PEF CLASSIFICATION SHEET'!C395)","v":""},{"$f":"IF('PEF CLASSIFICATION SHEET'!C399=\"\",\"\",'PEF CLASSIFICATION SHEET'!C399)","v":""},{"$f":"IF('PEF CLASSIFICATION SHEET'!C400=\"\",\"\",'PEF CLASSIFICATION SHEET'!C400)","v":""},"TOTAL","NOTES"]
[null,"EMPLOYEE NAME",null,null,{"$f":"LEFT('PEF CLASSIFICATION SHEET'!D388,4)","v":""},{"$f":"LEFT('PEF CLASSIFICATION SHEET'!D389,4)","v":""},{"$f":"LEFT('PEF CLASSIFICATION SHEET'!D390,4)","v":""},{"$f":"LEFT('PEF CLASSIFICATION SHEET'!D391,4)","v":""},{"$f":"LEFT('PEF CLASSIFICATION SHEET'!D392,4)","v":""},{"$f":"LEFT('PEF CLASSIFICATION SHEET'!D393,4)","v":""},{"$f":"LEFT('PEF CLASSIFICATION SHEET'!D394,4)","v":""},{"$f":"LEFT('PEF CLASSIFICATION SHEET'!D395,4)","v":""},{"$f":"LEFT('PEF CLASSIFICATION SHEET'!D399,4)","v":""},{"$f":"LEFT('PEF CLASSIFICATION SHEET'!D400,4)","v":""}]
["TASK NUMBER","SALARY RATE",null,null,{"$f":"'PEF CLASSIFICATION SHEET'!E388","v":0},{"$f":"'PEF CLASSIFICATION SHEET'!E389","v":0},{"$f":"'PEF CLASSIFICATION SHEET'!E390","v":0},{"$f":"'PEF CLASSIFICATION SHEET'!E391","v":0},{"$f":"'PEF CLASSIFICATION SHEET'!E392","v":0},{"$f":"'PEF CLASSIFICATION SHEET'!E393","v":0},{"$f":"'PEF CLASSIFICATION SHEET'!E394","v":0},{"$f":"'PEF CLASSIFICATION SHEET'!E395","v":0},{"$f":"'PEF CLASSIFICATION SHEET'!E399","v":0},{"$f":"'PEF CLASSIFICATION SHEET'!E400","v":0}]
[null,"Traffic Signal Plan Preparation",null,null,"WORKHOURS PER PLAN"]
["2SG1"]
["Task 1.0","Complete Preliminary Signal Pole / Cabinet Locations",null,null,null,"Number of FINAL Signals"]
[1.1000000000000001,"Signal Pole / Cabinet Location Diagrams",null,null,null,null,null,null,null,null,null,null,null,null,{"$f":"SUM(E16:N16)","v":0},null,{"$f":"(E16*$E$12)+(F16*$F$12)+(G16*$G$12)+(H16*$H$12)+(I16*$I$12)+(J16*$J$12)+(K16*$K$12)+(L16*$L$12)+(M16*$M$12)+(N16*$N$12)","v":0}]
[null,"Subtotal",null,null,{"$f":"((SUM(E16:E16))*$E$15)","v":0},{"$f":"((SUM(F16:F16))*$E$15)","v":0},0,0,0,0,0,0,0,0,{"$f":"SUM(E17:N17)","v":0},null,null,{"$f":"SUM(Q16:Q16)","v":0}]
["Task 2.0","Pedestrian Design - FINAL Signals",null,null,null,"Number of FINAL Signals with peds"]
[2.1,"Pedestrian Pedestal Locations",null,null,null,null,null,null,null,null,null,null,null,null,{"$f":"SUM(E19:N19)","v":0},null,{"$f":"(E19*$E$12)+(F19*$F$12)+(G19*$G$12)+(H19*$H$12)+(I19*$I$12)+(J19*$J$12)+(K19*$K$12)+(L19*$L$12)+(M19*$M$12)+(N19*$N$12)","v":0}]
[null,"Subtotal",null,null,{"$f":"E19*$E$18","v":0},{"$f":"F19*$E$18","v":0},0,0,0,0,0,0,0,0,{"$f":"SUM(E20:N20)","v":0},null,null,{"$f":"SUM(Q19:Q19)","v":0}]
["Task 3.0","Task Management"]
[3.1,"Final Design Field Inspection Meeting",null,null,null,null,null,null,null,null,null,null,null,null,{"$f":"SUM(E22:N22)","v":0},null,{"$f":"(E22*$E$12)+(F22*$F$12)+(G22*$G$12)+(H22*$H$12)+(I22*$I$12)+(J22*$J$12)+(K22*$K$12)+(L22*$L$12)+(M22*$M$12)+(N22*$N$12)","v":0}]
[3.2,"Meeting/Coordination with TMSD/Roadway",null,null,null,null,null,null,null,null,null,null,null,null,{"$f":"SUM(E23:N23)","v":0},null,{"$f":"(E23*$E$12)+(F23*$F$12)+(G23*$G$12)+(H23*$H$12)+(I23*$I$12)+(J23*$J$12)+(K23*$K$12)+(L23*$L$12)+(M23*$M$12)+(N23*$N$12)","v":0}]
[3.3,"Meeting/Coordination with Division/Field Visit",null,null,null,null,null,null,null,null,null,null,null,null,0,null,0]
[3.4,"Utility Coordination",null,null,null,null,null,null,null,null,null,null,null,null,0,null,0]
[null,"Subtotal",null,null,{"$f":"SUM(E22:E25)","v":0},{"$f":"SUM(F22:F25)","v":0},0,0,0,0,0,0,0,0,{"$f":"SUM(E26:N26)","v":0},null,null,{"$f":"SUM(Q22:Q22)","v":0}]
["Task 4.0","Complete QC / QA Procedures / Special Items"]
[4.0999999999999996,"Perform appropriate quality reviews and complete quality checklists",null,null,null,null,null,null,null,null,null,null,null,null,{"$f":"SUM(E28:N28)","v":0},null,{"$f":"(E28*$E$12)+(F28*$F$12)+(G28*$G$12)+(H28*$H$12)+(I28*$I$12)+(J28*$J$12)+(K28*$K$12)+(L28*$L$12)+(M28*$M$12)+(N28*$N$12)","v":0}]
[4.2,"Special Item",null,null,null,null,null,null,null,null,null,null,null,null,{"$f":"SUM(E29:N29)","v":0},null,0]
[4.3,"Special Item",null,null,null,null,null,null,null,null,null,null,null,null,{"$f":"SUM(E30:N30)","v":0},null,0]
[4.4000000000000004,"Special Item",null,null,null,null,null,null,null,null,null,null,null,null,{"$f":"SUM(E31:N31)","v":0},null,{"$f":"(E31*$E$12)+(F31*$F$12)+(G31*$G$12)+(H31*$H$12)+(I31*$I$12)+(J31*$J$12)+(K31*$K$12)+(L31*$L$12)+(M31*$M$12)+(N31*$N$12)","v":0}]
[null,"Subtotal",null,null,{"$f":"SUM(E28:E31)","v":0},{"$f":"SUM(F28:F31)","v":0},0,0,0,0,0,0,0,0,{"$f":"SUM(E32:N32)","v":0},null,null,{"$f":"SUM(Q28:Q30)","v":0}]
[null,"Total Workhours for 2SG1",null,null,{"$f":"SUM(E26,E20,E17,E32)","v":0},{"$f":"SUM(F26,F20,F17,F32)","v":0},0,0,0,0,0,0,0,0,0,null,null,{"$f":"SUM(R26,R20,R17,R32)","v":0}]
[]
["3SG1"]
["Task 1.0","Temporary Designs",null,null,null,"Number of TEMPORARY Signals"]
[1.1000000000000001,"Signal Design",null,null,null,null,null,null,null,null,null,null,null,null,{"$f":"SUM(E37:N37)","v":0},null,{"$f":"(E37*$E$12)+(F37*$F$12)+(G37*$G$12)+(H37*$H$12)+(I37*$I$12)+(J37*$J$12)+(K37*$K$12)+(L37*$L$12)+(M37*$M$12)+(N37*$N$12)","v":0}]
[1.2,"Electrical Details",null,null,null,null,null,null,null,null,null,null,null,null,{"$f":"SUM(E38:N38)","v":0},null,{"$f":"(E38*$E$12)+(F38*$F$12)+(G38*$G$12)+(H38*$H$12)+(I38*$I$12)+(J38*$J$12)+(K38*$K$12)+(L38*$L$12)+(M38*$M$12)+(N38*$N$12)","v":0}]
[1.3,"Quantities",null,null,null,null,null,null,null,null,null,null,null,null,0,null,0]
[null,"Subtotal",null,null,{"$f":"((SUM(E37:E39))*$E$36)","v":0},{"$f":"((SUM(F37:F39))*$E$36)","v":0},0,0,0,0,0,0,0,0,{"$f":"SUM(E40:N40)","v":0},null,null,{"$f":"SUM(Q37:Q39)","v":0}]
["Task 2.0","Pedestrian Design - Temp Signals",null,null,null,"Number of TEMP Signals with peds"]
[2.1,"Pedestrian Design",null,null,null,null,null,null,null,null,null,null,null,null,{"$f":"SUM(E42:N42)","v":0},null,{"$f":"(E42*$E$12)+(F42*$F$12)+(G42*$G$12)+(H42*$H$12)+(I42*$I$12)+(J42*$J$12)+(K42*$K$12)+(L42*$L$12)+(M42*$M$12)+(N42*$N$12)","v":0}]
[null,"Subtotal",null,null,{"$f":"((SUM(E42:E42))*$E$41)","v":0},{"$f":"((SUM(F42:F42))*$E$41)","v":0},0,0,0,0,0,0,0,0,{"$f":"SUM(E43:N43)","v":0},null,null,{"$f":"SUM(Q42:Q42)","v":0}]
["Task 3.0","Preemption Design - Temp Signals",null,null,null,"Number of TEMP Signals with preemption"]
[3.1,"Preemption Design",null,null,null,null,null,null,null,null,null,null,null,null,{"$f":"SUM(E45:N45)","v":0},null,{"$f":"(E45*$E$12)+(F45*$F$12)+(G45*$G$12)+(H45*$H$12)+(I45*$I$12)+(J45*$J$12)+(K45*$K$12)+(L45*$L$12)+(M45*$M$12)+(N45*$N$12)","v":0}]
[null,"Subtotal",null,null,{"$f":"((SUM(E45:E45))*$E$44)","v":0},{"$f":"((SUM(F45:F45))*$E$44)","v":0},0,0,0,0,0,0,0,0,{"$f":"SUM(E46:N46)","v":0},null,null,{"$f":"SUM(Q45:Q45)","v":0}]
["Task 4.0","Final Designs",null,null,null,"Number of FINAL Signals"]
[4.0999999999999996,"Signal Design",null,null,null,null,null,null,null,null,null,null,null,null,{"$f":"SUM(E48:N48)","v":0},null,{"$f":"(E48*$E$12)+(F48*$F$12)+(G48*$G$12)+(H48*$H$12)+(I48*$I$12)+(J48*$J$12)+(K48*$K$12)+(L48*$L$12)+(M48*$M$12)+(N48*$N$12)","v":0}]
[4.2,"Electrical Details",null,null,null,null,null,null,null,null,null,null,null,null,{"$f":"SUM(E49:N49)","v":0},null,{"$f":"(E49*$E$12)+(F49*$F$12)+(G49*$G$12)+(H49*$H$12)+(I49*$I$12)+(J49*$J$12)+(K49*$K$12)+(L49*$L$12)+(M49*$M$12)+(N49*$N$12)","v":0}]
[4.3,"Quantities",null,null,null,null,null,null,null,null,null,null,null,null,0,null,0]
[null,"Subtotal",null,null,{"$f":"((SUM(E48:E50))*$E$47)","v":0},{"$f":"((SUM(F48:F50))*$E$47)","v":0},0,0,0,0,0,0,0,0,{"$f":"SUM(E51:N51)","v":0},null,null,{"$f":"SUM(Q48:Q50)","v":0}]
["Task 5.0","Pedestrian Design - FINAL Signals",null,null,null,"Number of FINAL Signals with peds"]
[5.0999999999999996,"Pedestrian Design",null,null,null,null,null,null,null,null,null,null,null,null,{"$f":"SUM(E53:N53)","v":0},null,{"$f":"(E53*$E$12)+(F53*$F$12)+(G53*$G$12)+(H53*$H$12)+(I53*$I$12)+(J53*$J$12)+(K53*$K$12)+(L53*$L$12)+(M53*$M$12)+(N53*$N$12)","v":0}]
[null,"Subtotal",null,null,{"$f":"((SUM(E53:E53))*$E$52)","v":0},{"$f":"F53*$E$52","v":0},0,0,0,0,0,0,0,0,{"$f":"SUM(E54:N54)","v":0},null,null,{"$f":"SUM(Q53:Q53)","v":0}]
["Task 6.0","Metal Pole Design - FINAL Signals",null,null,null,"Number of FINAL Signals with metal poles"]
[6.1,"Metal Pole Design",null,null,null,null,null,null,null,null,null,null,null,null,{"$f":"SUM(E56:N56)","v":0},null,{"$f":"(E56*$E$12)+(F56*$F$12)+(G56*$G$12)+(H56*$H$12)+(I56*$I$12)+(J56*$J$12)+(K56*$K$12)+(L56*$L$12)+(M56*$M$12)+(N56*$N$12)","v":0}]
[null,"Subtotal",null,null,{"$f":"((SUM(E56:E56))*$E$55)","v":0},{"$f":"F56*$E$55","v":0},0,0,0,0,0,0,0,0,{"$f":"SUM(E57:N57)","v":0},null,null,{"$f":"SUM(Q56:Q56)","v":0}]
["Task 7.0","Preemption Design - FINAL Signals",null,null,null,"Number of FINAL Signals with preemption"]
[7.1,"Preemption Design",null,null,null,null,null,null,null,null,null,null,null,null,{"$f":"SUM(E59:N59)","v":0},null,{"$f":"(E59*$E$12)+(F59*$F$12)+(G59*$G$12)+(H59*$H$12)+(I59*$I$12)+(J59*$J$12)+(K59*$K$12)+(L59*$L$12)+(M59*$M$12)+(N59*$N$12)","v":0}]
[null,"Subtotal",null,null,{"$f":"((SUM(E59:E59))*$E$58)","v":0},{"$f":"F59*$E$58","v":0},0,0,0,0,0,0,0,0,{"$f":"SUM(E60:N60)","v":0},null,null,{"$f":"SUM(Q59:Q59)","v":0}]
["Task 8.0","General Design",null,null,"WORKHOURS PER PROJECT"]
[8.1,"Prepare Title Sheet",null,null,null,null,null,null,null,null,null,null,null,null,{"$f":"SUM(E62:N62)","v":0},null,{"$f":"(E62*$E$12)+(F62*$F$12)+(G62*$G$12)+(H62*$H$12)+(I62*$I$12)+(J62*$J$12)+(K62*$K$12)+(L62*$L$12)+(M62*$M$12)+(N62*$N$12)","v":0}]
[8.1999999999999993,"Summarize Quantities",null,null,null,null,null,null,null,null,null,null,null,null,{"$f":"SUM(E63:N63)","v":0},null,0]
[8.3000000000000007,"Special Provisions",null,null,null,null,null,null,null,null,null,null,null,null,{"$f":"SUM(E64:N64)","v":0},null,0]
[null,"Subtotal",null,null,{"$f":"SUM(E62:E64)","v":0},0,0,0,0,0,0,0,0,0,{"$f":"SUM(O62:O64)","v":0},null,null,{"$f":"SUM(Q62:Q64)","v":0}]
["Task 9.0","Task Management"]
[9.1,"Pre-Let Field Inspection Meeting",null,null,null,null,null,null,null,null,null,null,null,null,{"$f":"SUM(E67:N67)","v":0},null,{"$f":"(E67*$E$12)+(F67*$F$12)+(G67*$G$12)+(H67*$H$12)+(I67*$I$12)+(J67*$J$12)+(K67*$K$12)+(L67*$L$12)+(M67*$M$12)+(N67*$N$12)","v":0}]
[9.1999999999999993,"Meeting/Coordination w/TMSD/Roadway",null,null,null,null,null,null,null,null,null,null,null,null,{"$f":"SUM(E68:N68)","v":0},null,0]
[9.3000000000000007,"Meeting/Coordination w/Division/Field Visit",null,null,null,null,null,null,null,null,null,null,null,null,{"$f":"SUM(E69:N69)","v":0},null,0]
[null,"Subtotal",null,null,{"$f":"SUM(E67:E69)","v":0},0,0,0,0,0,0,0,0,0,{"$f":"SUM(O67:O69)","v":0},null,null,{"$f":"SUM(Q67:Q69)","v":0}]
["Task 10.0","Complete QC / QA Procedures / Special Items"]
[10.1,"Perform appropriate quality reviews and complete quality checklists",null,null,null,null,null,null,null,null,null,null,null,null,{"$f":"SUM(E72:N72)","v":0},null,{"$f":"(E72*$E$12)+(F72*$F$12)+(G72*$G$12)+(H72*$H$12)+(I72*$I$12)+(J72*$J$12)+(K72*$K$12)+(L72*$L$12)+(M72*$M$12)+(N72*$N$12)","v":0}]
[10.199999999999999,"Special Item",null,null,null,null,null,null,null,null,null,null,null,null,{"$f":"SUM(E73:N73)","v":0},null,0]
[10.3,"Special Item",null,null,null,null,null,null,null,null,null,null,null,null,{"$f":"SUM(E74:N74)","v":0},null,0]
[10.4,"Special Item",null,null,null,null,null,null,null,null,null,null,null,null,{"$f":"SUM(E75:N75)","v":0},null,0]
[null,"Subtotal",null,null,{"$f":"SUM(E72:E75)","v":0},{"$f":"SUM(F72:F75)","v":0},0,0,0,0,0,0,0,0,0,null,null,{"$f":"SUM(Q72:Q75)","v":0}]
[null,"Total Workhours for 3SG1",null,null,{"$f":"SUM(E40,E43,E46,E51,E54,E57,E60,E65,E70,E76)","v":0},{"$f":"SUM(F40,F43,F46,F51,F54,F57,F60,F65,F70,F76)","v":0},0,0,0,0,0,0,0,0,0]
[null,null,null,"Total Workhours",{"$f":"SUM(E33,E77)","v":0},{"$f":"SUM(F33,F77)","v":0},0,0,0,0,0,0,0,0,0]
[null,null,null,"Total Workdays",{"$f":"E78/8","v":0},0,0,0,0,0,0,{"$f":"L78/8","v":0},0,0,{"$f":"O78/8","v":0}]
[null,null,null,"Total Labor Cost",{"$f":"E78*E12","v":0},0,0,0,0,0,0,0,0,0,{"$f":"SUM(E80:N80)","v":0},null,null,{"$f":"SUM(R13:R77)","v":0}]
[null,null,"General Overhead ",null,{"$f":"SIGNALS_CONSULTANT_OVERHEAD","v":0},null,null,null,null,null,null,null,null,null,{"$f":"O80*E81","v":0}]
[null,null,"Comparative Fee",null,{"$f":"SIGNALS_CONSULTANT_FEE","v":0.09},null,null,null,null,null,null,null,null,null,{"$f":"E82*(O80+O81)","v":0}]
[null,null,"Facilities Cost of Capital",null,{"$f":"SIGNALS_CONSULTANT_COSTofCAPITAL","v":0},null,null,null,null,null,null,null,null,null,{"$f":"O80*E83","v":0}]
[null,null,null,"Signal SALARY Subtotal",null,null,null,null,null,null,null,null,null,null,{"$f":"SUM(O80:O83)","v":0}]
[null,null,null,"Direct Cost",null,null,null,null,null,null,null,null,null,null,{"$f":"SIGNALS_DIRECT_NONSALARY_TOTAL","v":0}]
[null,null,null,"PROJECT TOTAL",null,null,null,null,null,null,null,null,null,null,{"$f":"SUM(O84:O85)","v":0}]
[]
[null,"NON-SALARY DIRECT COSTS"]
[]
[null,"Signals"]
[]
[null,"REPRODUCTION"]
[null,null,"Xerox Copies (8.5\" x 11\")"]
[null,null,null,"Draft/Final Special Provisions",null,"Sets","X",null,"Sheets/Set","X",{"$f":"LETTERCOPIES","v":0.14000000000000001},null,"per Sheet","=",{"$f":"K94*H94*E94","v":0}]
[null,null,null,"Miscellaneous (Corres., etc.)",null,null,null,null,"Sheets","X",{"$f":"LETTERCOPIES","v":0.14000000000000001},null,"per Sheet","=",{"$f":"K95*H95","v":0}]
[]
[null,null,"Xerox Copies (11\" x 17\")",null,null,null,null," "]
[null,null,null,"Draft Final (90%) Signal Plans",null,"Sets","X",null,"Sheets/Set","X",{"$f":"LEDGERCOPIES","v":0.34},null,"per Sheet","=",{"$f":"K98*H98*E98","v":0}]
[null,null,null,"Final Signal Plans",null,"Sets","X",null,"Sheets/Set","X",0.34,null,"per Sheet","=",0]
[null,null,null,"Miscellaneous Check Plots",null,"Sets","X",null,"Sheets/Set","X",0.34,null,"per Sheet","=",0]
[null,null,null,"Draft Final UMR Plans",null,"Sets","X",null,"Sheets/Set","X",0.34,null,"per Sheet","=",0]
[null,null,null,"Final UMR Plans",null,"Sets","X",null,"Sheets/Set","X",0.34,null,"per Sheet","=",0]
[null,null,null,"Miscellaneous Check Plots",null,"Sets","X",null,"Sheets/Set","X",0.34,null,"per Sheet","=",0]
[null,null,null,"Draft Final Cable Routing Plans",null,"Sets","X",null,"Sheets/Set","X",0.34,null,"per Sheet","=",0]
[null,null,null,"Final Cable Routing Plans",null,"Sets","X",null,"Sheets/Set","X",0.34,null,"per Sheet","=",0]
[null,null,null,"Miscellaneous Check Plots",null,"Sets","X",null,"Sheets/Set","X",0.34,null,"per Sheet","=",0]
[]
[null,null,"Bond Prints (22\" x 34\")"]
[null,null,null,"Draft Final (90%) Signal Plans",null,"Sets","X",null,"Sheets/Set","X",{"$f":"BOND.REGULAR","v":0.42},null,"per Sheet","=",{"$f":"K109*H109*E109","v":0}]
[null,null,null,"Final Signal Plans",null,"Sets","X",null,"Sheets/Set","X",0.42,null,"per Sheet","=",0]
[null,null,null,"Miscellaneous Check Plots",null,"Sets","X",null,"Sheets/Set","X",0.42,null,"per Sheet","=",0]
[null,null,null,"Draft Final Cable Routing Plans",null,"Sets","X",null,"Sheets/Set","X",0.42,null,"per Sheet","=",0]
[null,null,null,"Final Cable Routing Plans",null,"Sets","X",null,"Sheets/Set","X",0.42,null,"per Sheet","=",0]
[null,null,null,"Miscellaneous Check Plots",null,"Sets","X",null,"Sheets/Set","X",0.42,null,"per Sheet","=",0]
[]
[null,"MILEAGE"]
[null,null,"FIELD VISIT Trips",null,null,"Trips","X",null,"Miles/Trip","X",{"$f":"SEDAN","v":0.7},null,"per Mile","=",{"$f":"K117*H117*E117","v":0}]
[null,null,"Garner - NCDOT (LOCAL) Trips ",null,null,"Trips","X",null,"Miles/Trip","X",{"$f":"SEDAN","v":0.7},null,"per Mile","=",{"$f":"K118*H118*E118","v":0}]
[]
[null,"PER DIEM"]
[null,null,"LODGING",null,null,"Persons","X",null,"LODGING","X",{"$f":"LODGING_LUMP.SUM","v":95},null,null,"=",{"$f":"K121*H121*E121","v":0}]
[null,null,"BREAKFAST",null,null,"Persons","X",null,"BREAKFAST","X",{"$f":"BREAKFAST","v":10.1},null,null,"=",{"$f":"K122*H122*E122","v":0}]
[null,null,"LUNCH",null,null,"Persons","X",null,"LUNCH","X",{"$f":"LUNCH","v":13.3},null,null,"=",{"$f":"K123*H123*E123","v":0}]
[null,null,"DINNER",null,null,"Persons","X",null,"DINNER","X",{"$f":"DINNER","v":23.1},null,null,"=",{"$f":"K124*H124*E124","v":0}]
[]
[null,"OTHER"]
[null,null,"Film & Developing",null,null,"Rolls","X",{"$f":"FILM","v":20},"per Roll",null,null,null,null,"=",{"$f":"E127*H127","v":0}]
[null,null,"Postage & Courier",null,null,null,"X",null,null,null,null,null,null,"=",{"$f":"E128*H128","v":0}]
[null,null,"Long Distance Phone",null,null,null,"X",null,null,null,null,null,null,"=",{"$f":"E129*H129","v":0}]
[null,null,null,null,null,null,"X",null,null,null,null,null,null,"=",{"$f":"E130*H130","v":0}]
[null,null,null,null,null,null,"X",null,null,null,null,null,null,"=",0]
[null,null,null,null,null,null,"X",null,null,null,null,null,null,"=",0]
[null,null,null,null,null,null,"X",null,null,null,null,null,null,"=",0]
[null,null,null,null,null,null,"X",null,null,null,null,null,null,"=",0]
[]
[null,null,null,null,null,null,null,null,null,null,null,null,"Total",null,{"$f":"SUM(O94:O134)","v":0}]
[]
[]
[]
[null,null,null,"Title Sheet",null,null,null,"FORMULAE to DIRECT COST SHEET."]
[null,null,null,"Signal Plan"]
[null,null,null,"Metal Pole"]
[null,null,null,"Wiring Diagrams"]
[null,null,null,"Total Signal Sheets",null,null,{"$f":"SUM(G140:G143)","v":0}]
[null,null,null,"Construction Notes"]
[null,null,null,"Cable Routing"]
[null,null,null,"Splice Diagrams"]
[null,null,null,"Misc Details"]
[null,null,null,"Total Cable Routing Sheets",null,null,{"$f":"SUM(G145:G148)","v":0}]
[null,null,null,"Title Sheet"]
[null,null,null,"UMR"]
[null,null,null,"Total Cable Routing Sheets",null,null,{"$f":"SUM(G150:G151)","v":0}]
[null,null,null,"Total Sheets",null,null,{"$f":"SUM(G144,G149,G152)","v":0}]

{"sheet":"Structures","index":50,"n_rows":115,"n_cols":24,"rows_kept":115,"cut":false,"hidden":true,"merged":[[43,0,43,2],[44,0,44,2],[29,0,29,2],[30,0,30,2],[31,0,31,2],[32,0,32,2],[33,0,33,2],[34,0,34,2],[35,0,35,2],[38,0,38,2],[39,0,39,2],[40,0,40,2],[41,0,41,2],[42,0,42,2],[68,2,68,4],[69,2,69,4],[70,2,70,4],[71,2,71,4],[1,10,1,16],[1,5,1,7],[50,0,50,2],[45,0,45,2],[46,0,46,2],[47,0,47,2],[48,0,48,2],[49,0,49,2],[55,0,55,2],[36,0,36,2],[37,0,37,2],[60,2,60,4],[67,0,67,1],[61,2,61,4],[62,2,62,4],[63,2,63,4],[64,2,64,4],[65,2,65,4],[64,0,64,1],[63,0,63,1],[62,0,62,1],[61,0,61,1],[66,0,66,1],[117,3,117,5],[118,3,118,5],[71,5,71,7],[4,0,4,2],[61,6,61,7],[62,6,62,7],[63,6,63,7],[64,6,64,7],[65,6,65,7],[53,0,53,2],[54,0,54,2],[51,0,51,2],[52,0,52,2],[68,0,68,1],[69,0,69,1],[70,0,70,1],[2,5,2,7],[2,15,2,16],[1,1,1,3],[2,2,2,3],[88,8,88,14],[60,6,60,7],[3,0,3,3],[66,6,66,7],[67,6,67,7],[68,6,68,7],[69,6,69,7],[70,6,70,7],[66,2,66,4],[67,2,67,4],[60,0,60,1],[65,0,65,1],[110,8,110,14],[111,8,111,14],[95,8,95,14],[96,8,96,14],[105,8,105,14],[106,8,106,14],[107,8,107,14],[108,8,108,14],[109,8,109,14],[59,5,59,8],[101,8,101,14],[97,8,97,14],[100,8,100,14],[99,8,99,14],[98,8,98,14],[89,8,89,14],[90,8,90,14],[87,8,87,14],[94,8,94,14]]}
["ESTIMATED WORKHOURS FOR PREPARING BRIDGE PLANS"]
["County:",{"$f":"COUNTY","v":0},null,null,"TIP#",{"$f":"TIP.NUMBER","v":0},null,null,"Firm:",null,{"$f":"STRUCTURES_CONSULTANT_NAME","v":"CONSULTANT NAME"}]
["Prepared By:",null,{"$f":"IF(SCOPE.MANDAY.ESTIMATE.PREPARED.BY=\"\",\"\",SCOPE.MANDAY.ESTIMATE.PREPARED.BY)","v":""},null,"Date:",{"$f":"IF(SCOPE.MANDAY.ESTIMATE.PREPARED.BY.DATE=\"\",\"\",SCOPE.MANDAY.ESTIMATE.PREPARED.BY.DATE)","v":""},null,null,"Chk. By:",null,null,null,null,null,null,{"$f":"IF(SCOPE.MANDAY.ESTIMATE.APPROVED.BY=\"\",\"\",SCOPE.MANDAY.ESTIMATE.APPROVED.BY)","v":""}]
[]
["EMPLOYEE",null,null,{"$f":"IF('PEF CLASSIFICATION SHEET'!C403=\"\",\"\",LEFT('PEF CLASSIFICATION SHEET'!D403,4))","v":""},{"$f":"IF('PEF CLASSIFICATION SHEET'!C404=\"\",\"\",LEFT('PEF CLASSIFICATION SHEET'!D404,4))","v":""},{"$f":"IF('PEF CLASSIFICATION SHEET'!C405=\"\",\"\",LEFT('PEF CLASSIFICATION SHEET'!D405,4))","v":""},{"$f":"IF('PEF CLASSIFICATION SHEET'!C406=\"\",\"\",LEFT('PEF CLASSIFICATION SHEET'!D406,4))","v":""},{"$f":"IF('PEF CLASSIFICATION SHEET'!C407=\"\",\"\",LEFT('PEF CLASSIFICATION SHEET'!D407,4))","v":""},{"$f":"IF('PEF CLASSIFICATION SHEET'!C408=\"\",\"\",LEFT('PEF CLASSIFICATION SHEET'!D408,4))","v":""},{"$f":"IF('PEF CLASSIFICATION SHEET'!C409=\"\",\"\",LEFT('PEF CLASSIFICATION SHEET'!D409,4))","v":""},{"$f":"IF('PEF CLASSIFICATION SHEET'!C410=\"\",\"\",LEFT('PEF CLASSIFICATION SHEET'!D410,4))","v":""},{"$f":"IF('PEF CLASSIFICATION SHEET'!C411=\"\",\"\",LEFT('PEF CLASSIFICATION SHEET'!D411,4))","v":""},{"$f":"IF('PEF CLASSIFICATION SHEET'!C412=\"\",\"\",LEFT('PEF CLASSIFICATION SHEET'!D412,4))","v":""},{"$f":"IF('PEF CLASSIFICATION SHEET'!C413=\"\",\"\",LEFT('PEF CLASSIFICATION SHEET'!D413,4))","v":""}]
["Task                  CLASSIFICATION",null,null,{"$f":"IF('PEF CLASSIFICATION SHEET'!C403=\"\",\"\",'PEF CLASSIFICATION SHEET'!C403)","v":""},{"$f":"IF('PEF CLASSIFICATION SHEET'!C404=\"\",\"\",'PEF CLASSIFICATION SHEET'!C404)","v":""},{"$f":"IF('PEF CLASSIFICATION SHEET'!C405=\"\",\"\",'PEF CLASSIFICATION SHEET'!C405)","v":""},{"$f":"IF('PEF CLASSIFICATION SHEET'!C406=\"\",\"\",'PEF CLASSIFICATION SHEET'!C406)","v":""},{"$f":"IF('PEF CLASSIFICATION SHEET'!C407=\"\",\"\",'PEF CLASSIFICATION SHEET'!C407)","v":""},{"$f":"IF('PEF CLASSIFICATION SHEET'!C408=\"\",\"\",'PEF CLASSIFICATION SHEET'!C408)","v":""},{"$f":"IF('PEF CLASSIFICATION SHEET'!C409=\"\",\"\",'PEF CLASSIFICATION SHEET'!C409)","v":""},{"$f":"IF('PEF CLASSIFICATION SHEET'!C410=\"\",\"\",'PEF CLASSIFICATION SHEET'!C410)","v":""},{"$f":"IF('PEF CLASSIFICATION SHEET'!C411=\"\",\"\",'PEF CLASSIFICATION SHEET'!C411)","v":""},{"$f":"IF('PEF CLASSIFICATION SHEET'!C412=\"\",\"\",'PEF CLASSIFICATION SHEET'!C412)","v":""},{"$f":"IF('PEF CLASSIFICATION SHEET'!C413=\"\",\"\",'PEF CLASSIFICATION SHEET'!C413)","v":""},"Subtotal","Superstructure Drafting Details","Draft","NOTES"]
["Preliminary Engineering",null,null,null,null,null,null,null,null,null,null,null,null,null,{"$f":"SUM(D7:N7)","v":0},null,null,null,null,null,null,null,null,{"$f":"O7+Q7","v":0}]
["Preliminary General Drawing",null,null,null,null,null,null,null,null,null,null,null,null,null,{"$f":"SUM(D8:N8)","v":0},null,null,null,null,null,null,null,null,{"$f":"O8+Q8","v":0}]
["Check Pre. General Drawing",null,null,null,null,null,null,null,null,null,null,null,null,null,{"$f":"SUM(D9:N9)","v":0},"Typical Section",null,null,null,null,null,null,null,0]
["Design Superstructure",null,null,null,null,null,null,null,null,null,null,null,null,null,0,"Details",null,null,null,null,null,null,null,0]
["Check Superstructure Design",null,null,null,null,null,null,null,null,null,null,null,null,null,0,"Span \"A\"",null,null,null,null,null,null,null,0]
["Design End Bents #1 & #2",null,null,null,null,null,null,null,null,null,null,null,null,null,0,"Span \"B\"",null,null,null,null,null,null,null,0]
["Check End Bent Design",null,null,null,null,null,null,null,null,null,null,null,null,null,0,"Span \"C\"",null,null,null,null,null,null,null,0]
["Design Interior Bents",null,null,null,null,null,null,null,null,null,null,null,null,null,0,"Span \"D\"",null,null,null,null,null,null,null,0]
["Check Interior Bent Design",null,null,null,null,null,null,null,null,null,null,null,null,null,0,"Span \"E\"",null,null,null,null,null,null,null,0]
["Draw Superstructure",null,null,null,null,null,null,null,null,null,null,null,null,null,0,"Span \"F\"",null,null,null,null,null,null,null,0]
["Check Superstructure Plans",null,null,null,null,null,null,null,null,null,null,null,null,null,0,"Span \"G\"",null,null,null,null,null,null,null,0]
["Draw End Bent #1 & #2",null,null,null,null,null,null,null,null,null,null,null,null,null,0,"Additional Spans",null,null,null,null,null,null,null,0]
["Check End Bent #1 & #2 Plans",null,null,null,null,null,null,null,null,null,null,null,null,null,0,"Framing Plan",null,null,null,null,null,null,null,0]
["Draw Interior Bents",null,null,null,null,null,null,null,null,null,null,null,null,null,0,"Girders & Details",null,null,null,null,null,null,null,0]
["Check Interior Bent Plans",null,null,null,null,null,null,null,null,null,null,null,null,null,0,"Barrier Rail",null,null,null,null,null,null,null,0]
["Rip Rap/Slope Protection",null,null,null,null,null,null,null,null,null,null,null,null,null,0,"Deflections",null,null,null,null,null,null,null,0]
["Chk. Rip Rap/Slope Protection",null,null,null,null,null,null,null,null,null,null,null,null,null,0,"Splices",null,null,null,null,null,null,null,0]
["Approach Slabs",null,null,null,null,null,null,null,null,null,null,null,null,null,0,"Bearings",null,null,null,null,null,null,null,0]
["Chk. Approach Slabs",null,null,null,null,null,null,null,null,null,null,null,null,null,0,"Bill of Material",null,null,null,null,null,null,null,0]
["General Drawing",null,null,null,null,null,null,null,null,null,null,null,null,null,0,"Str. Steel Details",null,null,null,null,null,null,null,0]
["Check General Drawing",null,null,null,null,null,null,null,null,null,null,null,null,null,0,"Joints",null,null,null,null,null,null,null,0]
["Construction Elevations",null,null,null,null,null,null,null,null,null,null,null,null,null,0,"Miscellaneous",null,null,null,null,null,null,null,0]
["Check Construction Elevations",null,null,null,null,null,null,null,null,null,null,null,null,null,0,"Total ",{"$f":"SUM(Q9:Q28)","v":0},null,null,null,null,null,null,0]
[null,null,null,null,null,null,null,null,null,null,null,null,null,null,0,null,null,null,null,null,null,null,null,0]
[null,null,null,null,null,null,null,null,null,null,null,null,null,null,0,null,null,null,null,null,null,null,null,0]
[null,null,null,null,null,null,null,null,null,null,null,null,null,null,0,null,null,null,null,null,null,null,null,0]
[null,null,null,null,null,null,null,null,null,null,null,null,null,null,0,null,null,null,null,null,null,null,null,0]
[null,null,null,null,null,null,null,null,null,null,null,null,null,null,0,null,null,null,null,null,null,null,null,0]
[null,null,null,null,null,null,null,null,null,null,null,null,null,null,0,null,null,null,null,null,null,null,null,0]
[null,null,null,null,null,null,null,null,null,null,null,null,null,null,0,null,null,null,null,null,null,null,null,0]
[null,null,null,null,null,null,null,null,null,null,null,null,null,null,{"$f":"SUM(D37:N37)","v":0},null,null,null,null,null,null,null,null,0]
[null,null,null,null,null,null,null,null,null,null,null,null,null,null,0,null,null,null,null,null,null,null,null,0]
[null,null,null,null,null,null,null,null,null,null,null,null,null,null,0,null,null,null,null,null,null,null,null,0]
[null,null,null,null,null,null,null,null,null,null,null,null,null,null,0,null,null,null,null,null,null,null,null,0]
[null,null,null,null,null,null,null,null,null,null,null,null,null,null,0,null,null,null,null,null,null,null,null,0]
[null,null,null,null,null,null,null,null,null,null,null,null,null,null,0,null,null,null,null,null,null,null,null,0]
[null,null,null,null,null,null,null,null,null,null,null,null,null,null,0,null,null,null,null,null,null,null,null,0]
[null,null,null,null,null,null,null,null,null,null,null,null,null,null,0,null,null,null,null,null,null,null,null,0]
[null,null,null,null,null,null,null,null,null,null,null,null,null,null,0,null,null,null,null,null,null,null,null,0]
[null,null,null,null,null,null,null,null,null,null,null,null,null,null,0,null,null,null,null,null,null,null,null,0]
[null,null,null,null,null,null,null,null,null,null,null,null,null,null,0,null,null,null,null,null,null,null,null,0]
[null,null,null,null,null,null,null,null,null,null,null,null,null,null,0,null,null,null,null,null,null,null,null,0]
[null,null,null,null,null,null,null,null,null,null,null,null,null,null,0,null,null,null,null,null,null,null,null,0]
[null,null,null,null,null,null,null,null,null,null,null,null,null,null,0,null,null,null,null,null,null,null,null,0]
[null,null,null,null,null,null,null,null,null,null,null,null,null,null,0,null,null,null,null,null,null,null,null,0]
[null,null,null,null,null,null,null,null,null,null,null,null,null,null,0,null,null,null,null,null,null,null,null,0]
[null,null,null,null,null,null,null,null,null,null,null,null,null,null,0,null,null,null,null,null,null,null,null,0]
[null,null,null,null,null,null,null,null,null,null,null,null,null,null,0,null,null,null,null,null,null,null,null,0]
[null,null,null,null,null,null,null,null,null,null,null,null,null,null,0,null,null,null,null,null,null,null,null,0]
[null,null,null,null,null,null,null,null,null,null,null,null,null,null,{"$f":"SUM(D56:N56)","v":0},null,null,null,null,null,null,null,null,0]
["Total Workhours =",null,{"$f":"SUM(D57:I57)","v":0},{"$f":"SUM(D7:D56)","v":0},0,0,0,0,0,0,0,0,0,0,0]
[]
["ESTIMATED COSTS FOR PREPARING BRIDGE PLANS"]
["Class",null,"Workhours",null,null,"Rate/Hour",null,null,null,null,null,null,null,null,"Total"]
[{"$f":"D6","v":""},null,{"$f":"D57","v":0},null,null,null,{"$f":"'PEF CLASSIFICATION SHEET'!E403","v":0},null,null,null,null,null,null,null,null,{"$f":"C61*G61","v":0}]
[{"$f":"E6","v":""},null,{"$f":"E57","v":0},null,null,null,{"$f":"'PEF CLASSIFICATION SHEET'!E404","v":0},null,null,null,null,null,null,null,null,0]
[{"$f":"F6","v":""},null,{"$f":"F57","v":0},null,null,null,{"$f":"'PEF CLASSIFICATION SHEET'!E405","v":0},null,null,null,null,null,null,null,null,0]
[{"$f":"G6","v":""},null,{"$f":"G57","v":0},null,null,null,{"$f":"'PEF CLASSIFICATION SHEET'!E406","v":0},null,null,null,null,null,null,null,null,0]
[{"$f":"H6","v":""},null,{"$f":"H57","v":0},null,null,null,{"$f":"'PEF CLASSIFICATION SHEET'!E407","v":0},null,null,null,null,null,null,null,null,0]
[{"$f":"I6","v":""},null,{"$f":"I57","v":0},null,null,null,{"$f":"'PEF CLASSIFICATION SHEET'!E408","v":0},null,null,null,null,null,null,null,null,0]
[{"$f":"J6","v":""},null,{"$f":"J57","v":0},null,null,null,{"$f":"'PEF CLASSIFICATION SHEET'!E409","v":0},null,null,null,null,null,null,null,null,0]
[{"$f":"K6","v":""},null,{"$f":"K57","v":0},null,null,null,{"$f":"'PEF CLASSIFICATION SHEET'!E410","v":0},null,null,null,null,null,null,null,null,0]
[{"$f":"L6","v":""},null,{"$f":"L57","v":0},null,null,null,{"$f":"'PEF CLASSIFICATION SHEET'!E411","v":0},null,null,null,null,null,null,null,null,0]
[{"$f":"M6","v":""},null,{"$f":"M57","v":0},null,null,null,{"$f":"'PEF CLASSIFICATION SHEET'!E412","v":0},null,null,null,null,null,null,null,null,0]
[{"$f":"N6","v":""},null,{"$f":"N57","v":0},null,null,null,{"$f":"'PEF CLASSIFICATION SHEET'!E413","v":0},null,null,null,{"$f":"P58","v":0},null,null,{"$f":"S58","v":0},null,0]
["Total Workhours",null,{"$f":"SUM(C61:C71)","v":0},null,null,"TOTAL WORKDAYS",null,null,{"$f":"C72/8","v":0}]
[null,null,null,null,null,"Subtotal",null,null,"=",null,null,null,null,null,null,{"$f":"SUM(P61:P71)","v":0}]
[null,"% Overhead =",{"$f":"STRUCTURES_CONSULTANT_OVERHEAD","v":0},null,null,"Additives & Overhead",null,null,"=",null,null,null,null,null,null,{"$f":"C74*P73","v":0}]
[null,null,null,null,null,"Subtotal",null,null,"=",null,null,null,null,null,null,{"$f":"P73+P74","v":0}]
[null,"% Fee =",{"$f":"STRUCTURES_CONSULTANT_FEE","v":0.09},null,null,"Profit",null,null,"=",null,null,null,null,null,null,{"$f":"C76*P75","v":0}]
[null,"C. of C. =",{"$f":"STRUCTURES_CONSULTANT_COSTofCAPITAL","v":0},null,null,"Cost of Capital",null,null,"=",null,null,null,null,null,null,{"$f":"C77*P73","v":0}]
[null,null,null,null,null,"Subtotal",null,null,"=",null,null,null,null,null,null,{"$f":"P75+P76+P77","v":0}]
[]
[null,"Non-Salary Cost:",null,null,null,"Non Salary Costs",null,null,"=",null,null,null,null,null,null,{"$f":"IF(C80=0,STRUCTURES_DIRECT_NONSALARY_TOTAL,C80*P73)","v":0}]
[null,null,"FOR NCDOT USE ONLY."]
[null,null,null,null,null,"Total Cost",null,null,"=",null,null,null,null,null,null,{"$f":"P78+P80","v":0}]
[]
[]
[]
[null,null,"DIRECT COSTS"]
[null,null,null,null,"Paper copies"]
[null,null,null,null,null,null,"Number",null,"Cost"]
[null,null,null,null,null,"8-1/2\"x11\"",null,"x",{"$f":"LETTERCOPIES","v":0.14000000000000001},null,null,null,null,null,null,{"$f":"G89*I89","v":0}]
[null,null,null,null,null,"11\"x17\"",null,"x",{"$f":"LEDGERCOPIES","v":0.34},null,null,null,null,null,null,{"$f":"G90*I90","v":0}]
[null,null,null,null,null,"Bond (34\"x22\")",null,"x",{"$f":"BOND.REGULAR","v":0.42},null,null,null,null,null,null,{"$f":"G91*I91","v":0}]
[]
[]
[null,null,null,null,"Miscellaneous"]
[null,null,null,null,null,null,"Number",null,"Cost"]
[null,null,null,null,null,"Postage and Fax",null,"x",null,null,null,null,null,null,null,{"$f":"G96*O96","v":0}]
[null,null,null,null,null,"Film and Developing",null,"x",{"$f":"FILM","v":20},null,null,null,null,null,null,{"$f":"G97*I97","v":0}]
[null,null,null,null,null,null,null,"x",null,null,null,null,null,null,null,0]
[null,null,null,null,null,null,null,"x",null,null,null,null,null,null,null,0]
[null,null,null,null,null,null,null,"x",null,null,null,null,null,null,null,0]
[null,null,null,null,null,null,null,"x",null,null,null,null,null,null,null,0]
[null,null,null,null,null,null,null,"x",null,null,null,null,null,null,null,0]
[]
[]
[null,null,null,null,"Travel"]
[null,null,null,null,null,null,"Number",null,"Cost"]
[null,null,null,null,null,"Breakfast",null,"x",{"$f":"BREAKFAST","v":10.1},null,null,null,null,null,null,{"$f":"G107*I107","v":0}]
[null,null,null,null,null,"Lunch",null,"x",{"$f":"LUNCH","v":13.3},null,null,null,null,null,null,0]
[null,null,null,null,null,"Dinner",null,"x",{"$f":"DINNER","v":23.1},null,null,null,null,null,null,0]
[null,null,null,null,null,"Overnight per Diem",null,"x",{"$f":"LODGING_LUMP.SUM","v":95},null,null,null,null,null,null,0]
[null,null,null,null,null,"Mileage (Sedan)",null,"x",{"$f":"SEDAN","v":0.7},null,null,null,null,null,null,0]
[null,null,null,null,null,"Mileage (Carryall)",null,"x",{"$f":"CARRYALL","v":0.72},null,null,null,null,null,null,0]
[]
[]
[null,null,null,null,null,null,null,null,null,null,null,null,null,null,"TOTAL  =",{"$f":"SUM(P89:P112)","v":0}]

{"sheet":"WZTC","index":51,"n_rows":82,"n_cols":22,"rows_kept":82,"cut":false,"hidden":true,"merged":[[49,2,49,4],[50,2,50,4],[51,2,51,4],[57,2,57,4],[52,2,52,4],[53,2,53,4],[54,2,54,4],[55,2,55,4],[56,2,56,4],[44,2,44,4],[45,2,45,4],[46,2,46,4],[47,2,47,4],[48,2,48,4],[39,2,39,4],[40,2,40,4],[41,2,41,4],[42,2,42,4],[43,2,43,4],[13,2,13,4],[12,2,12,4],[35,6,35,16],[36,2,36,4],[28,2,28,4],[29,2,29,4],[30,2,30,4],[31,2,31,4],[32,2,32,4],[23,2,23,4],[24,2,24,4],[25,2,25,4],[26,2,26,4],[27,2,27,4],[18,2,18,4],[14,2,14,4],[15,2,15,4],[16,2,16,4],[17,2,17,4],[33,2,33,4],[68,3,68,5],[63,1,63,4],[60,1,60,4],[61,1,61,4],[62,1,62,4],[59,1,59,4],[19,2,19,4],[20,2,20,4],[21,2,21,4],[22,2,22,4],[37,2,37,4],[38,2,38,4],[2,2,2,12],[9,2,9,4],[10,1,10,4],[12,5,12,17],[8,5,8,17],[4,4,4,6],[5,4,5,6],[6,4,6,6],[4,7,4,10],[5,9,5,10],[6,9,6,10],[81,1,81,2],[77,1,77,2],[78,1,78,2],[79,1,79,2],[80,1,80,2]]}
[]
[]
[null,null,"WZTC Cost Estimate                  "]
[]
[null,null,"Type:",null,null,null,null,{"$f":"WZTCU_CONSULTANT_NAME","v":"CONSULTANT NAME"},null,null,null,null,null,null,null,null,null,null,null,null,null,"LSA"]
[null,null,"TIP Project:",null,{"$f":"IF(TIP.NUMBER=\"\",\"\",TIP.NUMBER)","v":""},null,null,"Estimate Date:",null,{"$f":"IF(SCOPE.MANDAY.ESTIMATE.PREPARED.BY.DATE=\"\",\"\",SCOPE.MANDAY.ESTIMATE.PREPARED.BY.DATE)","v":""},null,null,null,null,null,null,null,null,null,null,null,"EC"]
[null,null,"WBS #:",null,{"$f":"IF(WBS.NUMBER=\"\",\"\",WBS.NUMBER)","v":""},null,null,"Estimator:",null,{"$f":"IF(SCOPE.MANDAY.ESTIMATE.PREPARED.BY=\"\",\"\",SCOPE.MANDAY.ESTIMATE.PREPARED.BY)","v":""},null,null,null,null,null,null,null,null,null,null,null,"D/B"]
[]
[null,null,null,null,null,"Workday Estimate"]
[null,"TASKS","CLASSIFICATIONS",null,null,{"$f":"IF('PEF CLASSIFICATION SHEET'!C416=\"\",\"\",'PEF CLASSIFICATION SHEET'!C416)","v":""},{"$f":"IF('PEF CLASSIFICATION SHEET'!C417=\"\",\"\",'PEF CLASSIFICATION SHEET'!C417)","v":""},{"$f":"IF('PEF CLASSIFICATION SHEET'!C418=\"\",\"\",'PEF CLASSIFICATION SHEET'!C418)","v":""},{"$f":"IF('PEF CLASSIFICATION SHEET'!C419=\"\",\"\",'PEF CLASSIFICATION SHEET'!C419)","v":""},{"$f":"IF('PEF CLASSIFICATION SHEET'!C420=\"\",\"\",'PEF CLASSIFICATION SHEET'!C420)","v":""},{"$f":"IF('PEF CLASSIFICATION SHEET'!C421=\"\",\"\",'PEF CLASSIFICATION SHEET'!C421)","v":""},{"$f":"IF('PEF CLASSIFICATION SHEET'!C422=\"\",\"\",'PEF CLASSIFICATION SHEET'!C422)","v":""},{"$f":"IF('PEF CLASSIFICATION SHEET'!C423=\"\",\"\",'PEF CLASSIFICATION SHEET'!C423)","v":""},{"$f":"IF('PEF CLASSIFICATION SHEET'!C424=\"\",\"\",'PEF CLASSIFICATION SHEET'!C424)","v":""},{"$f":"IF('PEF CLASSIFICATION SHEET'!C425=\"\",\"\",'PEF CLASSIFICATION SHEET'!C425)","v":""},{"$f":"IF('PEF CLASSIFICATION SHEET'!C426=\"\",\"\",'PEF CLASSIFICATION SHEET'!C426)","v":""},{"$f":"IF('PEF CLASSIFICATION SHEET'!C427=\"\",\"\",'PEF CLASSIFICATION SHEET'!C427)","v":""},{"$f":"IF('PEF CLASSIFICATION SHEET'!C428=\"\",\"\",'PEF CLASSIFICATION SHEET'!C428)","v":""},"  TOTAL","NOTES"]
[null,"EMPLOYEES' NAMES",null,null,null,{"$f":"LEFT('PEF CLASSIFICATION SHEET'!D416,4)","v":""},{"$f":"LEFT('PEF CLASSIFICATION SHEET'!D417,4)","v":""},{"$f":"LEFT('PEF CLASSIFICATION SHEET'!D418,4)","v":""},{"$f":"LEFT('PEF CLASSIFICATION SHEET'!D419,4)","v":""},{"$f":"LEFT('PEF CLASSIFICATION SHEET'!D420,4)","v":""},{"$f":"LEFT('PEF CLASSIFICATION SHEET'!D421,4)","v":""},{"$f":"LEFT('PEF CLASSIFICATION SHEET'!D422,4)","v":""},{"$f":"LEFT('PEF CLASSIFICATION SHEET'!D423,4)","v":""},{"$f":"LEFT('PEF CLASSIFICATION SHEET'!D424,4)","v":""},{"$f":"LEFT('PEF CLASSIFICATION SHEET'!D425,4)","v":""},{"$f":"LEFT('PEF CLASSIFICATION SHEET'!D426,4)","v":""},{"$f":"LEFT('PEF CLASSIFICATION SHEET'!D427,4)","v":""},{"$f":"LEFT('PEF CLASSIFICATION SHEET'!D428,4)","v":""}]
[]
[null,"2TM2","Initiate Transportation Management Plan",null,null,"Workday Estimate"]
[null,1,"Complete Concept Temporary Traffic Control (TTC) Plans",null,null,null,null,null,null,null,null,null,null,null,null,null,null,null,{"$f":"SUM(F14:R14)","v":0}]
[null,null,"Analyze Design Recommendation Plan Set, including Roadway, Preliminary Bridge General Drawings, and Hydraulic Design",null,null,null,null,null,null,null,null,null,null,null,null,null,null,null,0]
[null,null,"Coordinate as necessary with other disciplines/units ",null,null,null,null,null,null,null,null,null,null,null,null,null,null,null,0]
[null,null,"Determine Work Zone Capacity, Lane and Road Closure Time Restrictions",null,null,null,null,null,null,null,null,null,null,null,null,null,null,null,0]
[null,null,"Determine Traffic management Strategy for vehicular traffic and pedestrians",null,null,null,null,null,null,null,null,null,null,null,null,null,null,null,0]
[null,null,"Concept Sketches, including overviews and cut sections",null,null,null,null,null,null,null,null,null,null,null,null,null,null,null,0]
[null,null,"Preliminary General notes that include proposed lane and road closure time restrictions and hauling restrictions",null,null,null,null,null,null,null,null,null,null,null,null,null,null,null,{"$f":"SUM(F20:R20)","v":0}]
[null,null,"Written Construction Staging",null,null,null,null,null,null,null,null,null,null,null,null,null,null,null,0]
[null,null,"Distribution of Concept TTC Plans",null,null,null,null,null,null,null,null,null,null,null,null,null,null,null,0]
[null,2,"Lead TTC Concept Review Meeting",null,null,null,null,null,null,null,null,null,null,null,null,null,null,null,0]
[null,null,"Set up and lead meeting in accordance with guidance in 2TM2",null,null,null,null,null,null,null,null,null,null,null,null,null,null,null,{"$f":"SUM(F24:R24)","v":0}]
[null,null,"Prepare and distribute agenda, meeting minutes, and action items to complete final TTC plans",null,null,null,null,null,null,null,null,null,null,null,null,null,null,null,0]
[null,3,"Task Management",null,null,null,null,null,null,null,null,null,null,null,null,null,null,null,0]
[null,4,"Complete QC Procedures ",null,null,null,null,null,null,null,null,null,null,null,null,null,null,null,0]
[null,null,null,null,null,null,null,null,null,null,null,null,null,null,null,null,null,null,0]
[null,null,"Other Tasks:",null,null,null,null,null,null,null,null,null,null,null,null,null,null,null,0]
[null,null,"Brainstorming Meeting with WZTC",null,null,null,null,null,null,null,null,null,null,null,null,null,null,null,0]
[null,null,"Perform field review/site investigation",null,null,null,null,null,null,null,null,null,null,null,null,null,null,null,{"$f":"SUM(F31:R31)","v":0}]
[null,null,"Attend CFI/FDFI",null,null,null,null,null,null,null,null,null,null,null,null,null,null,null,0]
[null,null,"Attend External Constructibility Review",null,null,null,null,null,null,null,null,null,null,null,null,null,null,null,{"$f":"SUM(F33:R33)","v":0}]
[null,null,"Other Meetings",null,null,null,null,null,null,null,null,null,null,null,null,null,null,null,0]
[]
[null,"3TM1","Complete Transportation Management Plan   ",null,null,null,"Workday Estimate"]
[null,1,"Complete Final Unsealed Transportation Management Plan ",null,null,null,null,null,null,null,null,null,null,null,null,null,null,null,{"$f":"SUM(F37:R37)","v":0}]
[null,null,"Coordinate as necessary with other disciplines/units ",null,null,null,null,null,null,null,null,null,null,null,null,null,null,null,0]
[null,null,"Final TMP Title sheet/Legend/List of Roadway Standard Drawings",null,null,null,null,null,null,null,null,null,null,null,null,null,null,null,0]
[null,null,"Final General Notes/Local Notes/Transportation Management Strategies",null,null,null,null,null,null,null,null,null,null,null,null,null,null,null,0]
[null,null,"Final Written Phasing",null,null,null,null,null,null,null,null,null,null,null,null,null,null,null,0]
[null,null,"Final Offsite Detour Details",null,null,null,null,null,null,null,null,null,null,null,null,null,null,null,0]
[null,null,"Final Special Details",null,null,null,null,null,null,null,null,null,null,null,null,null,null,null,0]
[null,null,"Final Traffic Control Details/Overviews/Cut Sections",null,null,null,null,null,null,null,null,null,null,null,null,null,null,null,0]
[null,null,"Draft Quantity Estimate",null,null,null,null,null,null,null,null,null,null,null,null,null,null,null,0]
[null,null,"Draft Intermediate Contract Times",null,null,null,null,null,null,null,null,null,null,null,null,null,null,null,0]
[null,null,"Draft Special Provisions",null,null,null,null,null,null,null,null,null,null,null,null,null,null,null,0]
[null,null,"Distribution of Unsealed Transportaion Management Plan, Draft Estimate, Provisions, and ICTs for Review",null,null,null,null,null,null,null,null,null,null,null,null,null,null,null,{"$f":"SUM(F48:R48)","v":0}]
[null,2,"Complete Sealed  Final TMP",null,null,null,null,null,null,null,null,null,null,null,null,null,null,null,0]
[null,null,"Sealed Transportion Managemt Plan",null,null,null,null,null,null,null,null,null,null,null,null,null,null,null,0]
[null,null,"Sealed Special Provisions",null,null,null,null,null,null,null,null,null,null,null,null,null,null,null,0]
[null,null,"Final Quantity Estimate",null,null,null,null,null,null,null,null,null,null,null,null,null,null,null,0]
[null,null,"Final Intermediate Contract Time Documents",null,null,null,null,null,null,null,null,null,null,null,null,null,null,null,0]
[null,3,"Task Management",null,null,null,null,null,null,null,null,null,null,null,null,null,null,null,0]
[null,4,"Complete QC Procedures ",null,null,null,null,null,null,null,null,null,null,null,null,null,null,null,{"$f":"SUM(F55:R55)","v":0}]
[null,null,"Other Tasks:",null,null,null,null,null,null,null,null,null,null,null,null,null,null,null,0]
[null,null,"Temporary Shoring Meeting ",null,null,null,null,null,null,null,null,null,null,null,null,null,null,null,{"$f":"SUM(F57:R57)","v":0}]
[null,null,"Other Meetings",null,null,null,null,null,null,null,null,null,null,null,null,null,null,null,0]
[]
[null,"ENGINEERING RATES",null,null,null,{"$f":"'PEF CLASSIFICATION SHEET'!E416","v":0},{"$f":"'PEF CLASSIFICATION SHEET'!E417","v":0},{"$f":"'PEF CLASSIFICATION SHEET'!E418","v":0},{"$f":"'PEF CLASSIFICATION SHEET'!E419","v":0},{"$f":"'PEF CLASSIFICATION SHEET'!E420","v":0},{"$f":"'PEF CLASSIFICATION SHEET'!E421","v":0},{"$f":"'PEF CLASSIFICATION SHEET'!E422","v":0},{"$f":"'PEF CLASSIFICATION SHEET'!E423","v":0},{"$f":"'PEF CLASSIFICATION SHEET'!E424","v":0},{"$f":"'PEF CLASSIFICATION SHEET'!E425","v":0},{"$f":"'PEF CLASSIFICATION SHEET'!E426","v":0},{"$f":"'PEF CLASSIFICATION SHEET'!E427","v":0},{"$f":"'PEF CLASSIFICATION SHEET'!E428","v":0}]
[null,"             Total Workdays:",null,null,null,{"$f":"SUM(F14:F59)","v":0},0,0,0,0,0,0,0,0,0,0,0,0,{"$f":"SUM(F61:R61)","v":0}]
[null,"             Direct Salary (w/o Overhead):",null,null,null,{"$f":"F61*8*F60","v":0},{"$f":"G61*8*G60","v":0},0,0,0,0,0,0,0,0,0,0,0,{"$f":"SUM(F62:R62)","v":0}]
[null,"         Overhead                                  *",null,null,null,{"$f":"WZTCU_CONSULTANT_OVERHEAD","v":0},null,null,null,null,null,null,null,null,null,null,null,null,{"$f":"((S62+H67)*F63)","v":0}]
[null,"TOTAL Direct Salary + Overhead",null,null,null,{"$f":"SUM(S62:S63)","v":0}]
[]
[null,"Cost of Capital:               ",null,null,null,{"$f":"WZTCU_CONSULTANT_COSTofCAPITAL","v":0},"=",{"$f":"F66*S62","v":0}]
[null,"Escalation :",null,0,"Yrs",0,"=",{"$f":"(D67*F67)*S62","v":0}]
[null,"Fee:",null,null,null,{"$f":"WZTCU_CONSULTANT_FEE","v":0.09},"=",{"$f":"F68*F64","v":0}]
[null,null,null,"TOTAL Indirect Costs",null,null,"=",{"$f":"SUM(H66:H68)","v":0}]
[]
[null,"TOTAL Direct Salary + Overhead + Indirect Costs",null,null,null,null,"=",{"$f":"SUM(H66:H68)+F64","v":0}]
[]
[null,"TOTAL Non-salary Direct Costs:",null,null,null,null,"=",{"$f":"WZTCU_DIRECT_NONSALARY_TOTAL","v":0}]
[]
[null,"TOTAL COST ESTIMATE:",null,null,null,null,"=",{"$f":"H71+H73","v":0}]
[]
[null,null,null,"Workdays","Cost"]
[null,"NCDOT Estimate",null,{"$f":"+S61","v":0},{"$f":"H75","v":0}]
[]
[null,"PEF Estimate",null,{"$f":"+S61","v":0},{"$f":"H75","v":0}]
[]
[null,"% Difference",null,{"$f":"(D78-D80)/D80","v":{"$error":"#DIV/0!"}},{"$f":"(E78-E80)/E80","v":{"$error":"#DIV/0!"}}]

{"sheet":"WZTC-Exp","index":52,"n_rows":111,"n_cols":18,"rows_kept":111,"cut":false,"hidden":true,"merged":[[2,1,2,3],[2,4,2,7],[2,8,2,11],[0,0,0,11]]}
["WORK ZONE TRAFFIC CONTROL (WZTC) DIRECT EXPENSES"]
[]
["FIRM:",{"$f":"WZTC!H5","v":"CONSULTANT NAME"},null,null,"TIP NUMBER:",null,null,null,{"$f":"TIP.NUMBER","v":0}]
["A.","* REPRODUCTION COSTS"]
[null,null,"SUBMITTALS:","SHEETS","x","SETS","=","Total","@","Each","=","Cost"]
[null,null,"    25% - Staging "]
[null,null,"Full-Size Bond",0,"x",0,"=",{"$f":"D7*F7","v":0},"@",{"$f":"BOND.REGULAR","v":0.42},"=",{"$f":"H7*J7","v":0}]
[null,null,"Half-Size 11x17",0,"x",0,"=",{"$f":"D8*F8","v":0},"@",{"$f":"LEDGERCOPIES","v":0.34},"=",{"$f":"H8*J8","v":0}]
[null,null,"Full-Size Bond (COLOR)",0,"x",0,"=",{"$f":"D9*F9","v":0},"@",{"$f":"FULLSIZE.BOND.COLOR","v":3},"=",{"$f":"H9*J9","v":0}]
[null,null,"Half-Size 11x17 (COLOR)",0,"x",0,"=",{"$f":"D10*F10","v":0},"@",{"$f":"LEDGERCOLOR","v":1.66},"=",{"$f":"H10*J10","v":0}]
[null,null,"    50% - Midpoint"]
[null,null,"Full-Size Bond",0,"x",0,"=",{"$f":"D12*F12","v":0},"@",{"$f":"BOND.REGULAR","v":0.42},"=",{"$f":"H12*J12","v":0}]
[null,null,"Half-Size 11x17",0,"x",0,"=",{"$f":"D13*F13","v":0},"@",{"$f":"LEDGERCOPIES","v":0.34},"=",{"$f":"H13*J13","v":0}]
[null,null,"Full-Size Bond (COLOR)",0,"x",0,"=",{"$f":"D14*F14","v":0},"@",{"$f":"FULLSIZE.BOND.COLOR","v":3},"=",{"$f":"H14*J14","v":0}]
[null,null,"Half-Size 11x17 (COLOR)",0,"x",0,"=",{"$f":"D15*F15","v":0},"@",{"$f":"LEDGERCOLOR","v":1.66},"=",{"$f":"H15*J15","v":0}]
[null,null,"    90% - Pre-Final"]
[null,null,"Full-Size Bond",0,"x",0,"=",{"$f":"D17*F17","v":0},"@",{"$f":"BOND.REGULAR","v":0.42},"=",{"$f":"H17*J17","v":0}]
[null,null,"Half-Size 11x17",0,"x",0,"=",{"$f":"D18*F18","v":0},"@",{"$f":"LEDGERCOPIES","v":0.34},"=",{"$f":"H18*J18","v":0}]
[null,null,"Full-Size Bond (COLOR)",0,"x",0,"=",{"$f":"D19*F19","v":0},"@",{"$f":"FULLSIZE.BOND.COLOR","v":3},"=",{"$f":"H19*J19","v":0}]
[null,null,"Half-Size 11x17 (COLOR)",0,"x",0,"=",{"$f":"D20*F20","v":0},"@",{"$f":"LEDGERCOLOR","v":1.66},"=",{"$f":"H20*J20","v":0}]
[null,null,"    100% - Final (Pre-Sealed)"]
[null,null,"Full-Size Bond",0,"x",0,"=",{"$f":"D22*F22","v":0},"@",{"$f":"BOND.REGULAR","v":0.42},"=",{"$f":"H22*J22","v":0}]
[null,null,"Half-Size 11x17",0,"x",0,"=",{"$f":"D23*F23","v":0},"@",{"$f":"LEDGERCOPIES","v":0.34},"=",{"$f":"H23*J23","v":0}]
[null,null,"Full-Size Bond (COLOR)",0,"x",0,"=",{"$f":"D24*F24","v":0},"@",{"$f":"FULLSIZE.BOND.COLOR","v":3},"=",{"$f":"H24*J24","v":0}]
[null,null,"Half-Size 11x17 (COLOR)",0,"x",0,"=",{"$f":"D25*F25","v":0},"@",{"$f":"LEDGERCOLOR","v":1.66},"=",{"$f":"H25*J25","v":0}]
[null,null,"    100% - Final (Sealed)"]
[null,null,"Full-Size Bond",0,"x",0,"=",{"$f":"D27*F27","v":0},"@",{"$f":"BOND.REGULAR","v":0.42},"=",{"$f":"H27*J27","v":0}]
[null,null,"Half-Size 11x17",0,"x",0,"=",{"$f":"D28*F28","v":0},"@",{"$f":"LEDGERCOPIES","v":0.34},"=",{"$f":"H28*J28","v":0}]
[null,null,"Full-Size Bond (COLOR)",0,"x",0,"=",{"$f":"D29*F29","v":0},"@",{"$f":"FULLSIZE.BOND.COLOR","v":3},"=",{"$f":"H29*J29","v":0}]
[null,null,"Half-Size 11x17 (COLOR)",0,"x",0,"=",{"$f":"D30*F30","v":0},"@",{"$f":"LEDGERCOLOR","v":1.66},"=",{"$f":"H30*J30","v":0}]
[null,null,"OTHER:","SHEETS","x","SETS","=","Total","@","Each","=","Cost"]
[null,null,"    Preliminary Design Field Inspection"]
[null,null,"Full-Size Bond",0,"x",0,"=",{"$f":"D33*F33","v":0},"@",{"$f":"BOND.REGULAR","v":0.42},"=",{"$f":"H33*J33","v":0}]
[null,null,"Half-Size 11x17",0,"x",0,"=",{"$f":"D34*F34","v":0},"@",{"$f":"LEDGERCOPIES","v":0.34},"=",{"$f":"H34*J34","v":0}]
[null,null,"Full-Size Bond (COLOR)",0,"x",0,"=",{"$f":"D35*F35","v":0},"@",{"$f":"FULLSIZE.BOND.COLOR","v":3},"=",{"$f":"H35*J35","v":0}]
[null,null,"Half-Size 11x17 (COLOR)",0,"x",0,"=",{"$f":"D36*F36","v":0},"@",{"$f":"LEDGERCOLOR","v":1.66},"=",{"$f":"H36*J36","v":0}]
[null,null,"    Final Design/Combined Field Inspection"]
[null,null,"Full-Size Bond",0,"x",0,"=",{"$f":"D38*F38","v":0},"@",{"$f":"BOND.REGULAR","v":0.42},"=",{"$f":"H38*J38","v":0}]
[null,null,"Half-Size 11x17",0,"x",0,"=",{"$f":"D39*F39","v":0},"@",{"$f":"LEDGERCOPIES","v":0.34},"=",{"$f":"H39*J39","v":0}]
[null,null,"Full-Size Bond (COLOR)",0,"x",0,"=",{"$f":"D40*F40","v":0},"@",{"$f":"FULLSIZE.BOND.COLOR","v":3},"=",{"$f":"H40*J40","v":0}]
[null,null,"Half-Size 11x17 (COLOR)",0,"x",0,"=",{"$f":"D41*F41","v":0},"@",{"$f":"LEDGERCOLOR","v":1.66},"=",{"$f":"H41*J41","v":0}]
[null,null,"    Internal Constructability Review"]
[null,null,"Full-Size Bond",0,"x",0,"=",{"$f":"D43*F43","v":0},"@",{"$f":"BOND.REGULAR","v":0.42},"=",{"$f":"H43*J43","v":0}]
[null,null,"Half-Size 11x17",0,"x",0,"=",{"$f":"D44*F44","v":0},"@",{"$f":"LEDGERCOPIES","v":0.34},"=",{"$f":"H44*J44","v":0}]
[null,null,"Full-Size Bond (COLOR)",0,"x",0,"=",{"$f":"D45*F45","v":0},"@",{"$f":"FULLSIZE.BOND.COLOR","v":3},"=",{"$f":"H45*J45","v":0}]
[null,null,"Half-Size 11x17 (COLOR)",0,"x",0,"=",{"$f":"D46*F46","v":0},"@",{"$f":"LEDGERCOLOR","v":1.66},"=",{"$f":"H46*J46","v":0}]
[null,null,"    External Constructability Review"]
[null,null,"Full-Size Bond",0,"x",0,"=",{"$f":"D48*F48","v":0},"@",{"$f":"BOND.REGULAR","v":0.42},"=",{"$f":"H48*J48","v":0}]
[null,null,"Half-Size 11x17",0,"x",0,"=",{"$f":"D49*F49","v":0},"@",{"$f":"LEDGERCOPIES","v":0.34},"=",{"$f":"H49*J49","v":0}]
[null,null,"Full-Size Bond (COLOR)",0,"x",0,"=",{"$f":"D50*F50","v":0},"@",{"$f":"FULLSIZE.BOND.COLOR","v":3},"=",{"$f":"H50*J50","v":0}]
[null,null,"Half-Size 11x17 (COLOR)",0,"x",0,"=",{"$f":"D51*F51","v":0},"@",{"$f":"LEDGERCOLOR","v":1.66},"=",{"$f":"H51*J51","v":0}]
[null,null,"    Const. Revisions"]
[null,null,"Full-Size Bond",0,"x",0,"=",{"$f":"D53*F53","v":0},"@",{"$f":"BOND.REGULAR","v":0.42},"=",{"$f":"H53*J53","v":0}]
[null,null,"Half-Size 11x17",0,"x",0,"=",{"$f":"D54*F54","v":0},"@",{"$f":"LEDGERCOPIES","v":0.34},"=",{"$f":"H54*J54","v":0}]
[null,null,"Full-Size Bond (COLOR)",0,"x",0,"=",{"$f":"D55*F55","v":0},"@",{"$f":"FULLSIZE.BOND.COLOR","v":3},"=",{"$f":"H55*J55","v":0}]
[null,null,"Half-Size 11x17 (COLOR)",0,"x",0,"=",{"$f":"D56*F56","v":0},"@",{"$f":"LEDGERCOLOR","v":1.66},"=",{"$f":"H56*J56","v":0}]
[null,null,"MISCELLANEOUS XEROX COPIES","SHEETS",null,null,null,null,"@","Each","=","Cost"]
[null,null,"TOTAL 81/2 x 11 XEROX COPIES (Say)",0,null,null,null,null,"@",{"$f":"LETTERCOPIES","v":0.14000000000000001},"=",{"$f":"D58*J58","v":0}]
[null,null,"TOTAL 11 x 17 XEROX COPIES    (Say)",0,null,null,null,null,"@",{"$f":"LEDGERCOPIES","v":0.34},"=",{"$f":"D59*J59","v":0}]
["A.",null," TOTAL REPRODUCTION  COSTS",null,null,null,null,null,null,null,"=",{"$f":"SUM(L7:L59)","v":0}]
[null,"*","Include Firm's Record Set, See Engineering Guidelines for current max.allowable non-salary direct costs"]
["B.",null,"** TRAVEL AND MISCELLANEOUS COSTS"]
[null,"1.","TRAVEL:"]
[null,null,"PURPOSE of TRIP","TRIPS","x","MILES","x","RATE",null,null,null,"COST"]
[null,null,"Field Reviews",0,"x",0,"x",{"$f":"SEDAN","v":0.7},null,null,"=",{"$f":"D65*F65*H65","v":0}]
[null,null,"Public Meeting/Hearing/Workshops",0,"x",0,"x",0.7,null,null,"=",0]
[null,null,"Field Inspections (Preliminary, Combined, Final)",0,"x",0,"x",0.7,null,null,"=",0]
[null,null,"Scheduled Reviews/Misc. Meetings with NCDOT",0,"x",0,"x",0.7,null,null,"=",0]
[null,null,"Miscellaneous Local Meetings",0,"x",0,"x",0.7,null,null,"=",0]
[null,null,null,0,"x",0,"x",0.7,null,null,"=",0]
[null,null,"PER DIEM","TRIPS",null,"# ATTEND",null,"AMOUNT"]
[null,null,"Breakfast",0,"x",0,"x",{"$f":"BREAKFAST","v":10.1},null,null,"=",{"$f":"D72*F72*H72","v":0}]
[null,null,"Lunch",0,"x",0,"x",{"$f":"LUNCH","v":13.3},null,null,"=",{"$f":"D73*F73*H73","v":0}]
[null,null,"Dinner",0,"x",0,"x",{"$f":"DINNER","v":23.1},null,null,"=",{"$f":"D74*F74*H74","v":0}]
[null,null,"Lodging",0,"x",0,"x",{"$f":"LODGING_LUMP.SUM","v":95},null,null,"=",{"$f":"D75*F75*H75","v":0}]
[null,"1."," SUBTOTAL TRAVEL COSTS ",null,null,null,null,null,null,null,"=",{"$f":"SUM(L65:L75)","v":0}]
[]
[null,"2.","MISCELLANEOUS:"]
[null,null,"  EQUIPMENT: LIST",null,null,null,null,"NUMBER",null,"RATE"]
[null,null,null,null,null,null,null,null,"x",null,"=",{"$f":"H80*J80","v":0}]
[null,null,null,null,null,null,null,null,"x",null,"=",{"$f":"H81*J81","v":0}]
[null,null,null,null,null,null,null,null,"x",null,"=",0]
[null,null,null,null,null,null,null,null,"x",null,"=",0]
[null,null,null,null,null,null,null,null,"x",null,"=",0]
[null,null,"  COMMUNICATIONS: LIST ",null,null,null,null,"NUMBER",null,"RATE"]
[null,null,null,null,null,null,null,null,"x",null,"=",{"$f":"H86*J86","v":0}]
[null,null,null,null,null,null,null,null,"x",null,"=",0]
[null,null,null,null,null,null,null,null,"x",null,"=",0,null,null,null,null,null,"`"]
[null,null,null,null,null,null,null,null,"x",null,"=",0]
[null,null,null,null,null,null,null,null,"x",null,"=",0]
[null,null,"  POSTAGE: LIST",null,null,null,null,"NUMBER",null,"RATE"]
[null,null,null,null,null,null,null,null,"x",null,"=",{"$f":"H92*J92","v":0}]
[null,null,null,null,null,null,null,null,"x",null,"=",0]
[null,null,null,null,null,null,null,null,"x",null,"=",0]
[null,null,null,null,null,null,null,null,"x",null,"=",0]
[null,null,null,null,null,null,null,null,"x",null,"=",0]
[null,null,"  OTHER: LIST",null,null,null,null,"NUMBER",null,"RATE"]
[null,null,null,null,null,null,null,null,"x",null,"=",{"$f":"H98*J98","v":0}]
[null,null,null,null,null,null,null,null,"x",null,"=",0]
[null,null,null,null,null,null,null,null,"x",null,"=",0]
[null,null,null,null,null,null,null,null,"x",null,"=",0]
[null,null,null,null,null,null,null,null,"x",null,"=",0]
[null,"2."," SUBTOTAL MISCELLANEOUS COSTS ",null,null,null,null,null,null,null,"=",{"$f":"SUM(L80:L102)","v":0}]
[]
["B.","TOTAL TRAVEL & MISCELLANEOUS COSTS",null,null,null,null,null,null,null,null,"=",{"$f":"L76+L103","v":0}]
[]
[]
["A+B.","TOTAL DIRECT NON-SALARY COSTS (sent to 'Salary & Total Cost' Sheet):",null,null,null,null,null,null,null,null,"=",{"$f":"L105+L60","v":0}]
[]
[null,"**","Use Only Items That Are Not Included In Overhead"]
[null,null,"See Engineering Guidelines for current max.allowable non-salary direct costs"]

{"sheet":"CongMgt","index":53,"n_rows":245,"n_cols":19,"rows_kept":245,"cut":false,"hidden":true,"merged":[[237,3,237,6],[237,8,237,13],[244,8,244,9],[244,10,244,11],[238,8,238,9],[238,10,238,11],[239,8,239,9],[239,10,239,11],[242,8,242,13],[243,8,243,9],[243,10,243,11],[234,1,235,1],[234,3,235,4],[139,18,139,19],[163,18,163,19],[140,18,140,19],[141,18,141,19],[142,18,142,19],[144,18,144,19],[145,18,145,19],[152,18,152,19],[153,18,153,19],[154,18,154,19],[155,18,155,19],[156,18,156,19],[157,18,157,19],[158,18,158,19],[159,18,159,19],[160,18,160,19],[161,18,161,19],[162,18,162,19],[211,18,211,19],[188,18,188,19],[189,18,189,19],[190,18,190,19],[126,18,126,19],[219,18,219,19],[220,18,220,19],[127,18,127,19],[128,18,128,19],[131,18,131,19],[132,18,132,19],[133,18,133,19],[134,18,134,19],[135,18,135,19],[136,18,136,19],[137,18,137,19],[138,18,138,19],[187,18,187,19],[164,18,164,19],[165,18,165,19],[166,18,166,19],[143,18,143,19],[146,18,146,19],[147,18,147,19],[148,18,148,19],[149,18,149,19],[150,18,150,19],[151,18,151,19],[167,18,167,19],[168,18,168,19],[169,18,169,19],[170,18,170,19],[171,18,171,19],[172,18,172,19],[173,18,173,19],[174,18,174,19],[175,18,175,19],[176,18,176,19],[177,18,177,19],[178,18,178,19],[179,18,179,19],[180,18,180,19],[209,18,209,19],[210,18,210,19],[218,18,218,19],[215,18,215,19],[216,18,216,19],[217,18,217,19],[181,18,181,19],[182,18,182,19],[183,18,183,19],[184,18,184,19],[185,18,185,19],[186,18,186,19],[202,18,202,19],[203,18,203,19],[204,18,204,19],[120,18,120,19],[121,18,121,19],[122,18,122,19],[123,18,123,19],[124,18,124,19],[125,18,125,19],[212,18,212,19],[213,18,213,19],[214,18,214,19],[191,18,191,19],[192,18,192,19],[193,18,193,19],[194,18,194,19],[195,18,195,19],[196,18,196,19],[197,18,197,19],[198,18,198,19],[199,18,199,19],[200,18,200,19],[201,18,201,19],[205,18,205,19],[206,18,206,19],[207,18,207,19],[208,18,208,19],[115,18,115,19],[116,18,116,19],[117,18,117,19],[118,18,118,19],[119,18,119,19],[109,18,109,19],[110,18,110,19],[111,18,111,19],[112,18,112,19],[113,18,113,19],[107,18,107,19],[108,18,108,19],[94,18,94,19],[95,18,95,19],[96,18,96,19],[97,18,97,19],[98,18,98,19],[101,18,101,19],[114,18,114,19],[99,18,99,19],[100,18,100,19],[102,18,102,19],[106,18,106,19],[105,18,105,19],[40,18,40,19],[41,18,41,19],[42,18,42,19],[43,18,43,19],[44,18,44,19],[46,18,46,19],[45,18,45,19],[68,18,68,19],[70,18,70,19],[55,18,55,19],[57,18,57,19],[58,18,58,19],[59,18,59,19],[60,18,60,19],[61,18,61,19],[56,18,56,19],[62,18,62,19],[63,18,63,19],[64,18,64,19],[65,18,65,19],[66,18,66,19],[67,18,67,19],[69,18,69,19],[47,18,47,19],[36,18,36,19],[37,18,37,19],[38,18,38,19],[39,18,39,19],[30,18,30,19],[31,18,31,19],[32,18,32,19],[33,18,33,19],[34,18,34,19],[35,18,35,19],[24,18,24,19],[25,18,25,19],[26,18,26,19],[27,18,27,19],[28,18,28,19],[29,18,29,19],[18,18,18,19],[19,18,19,19],[20,18,20,19],[21,18,21,19],[22,18,22,19],[23,18,23,19],[11,18,11,19],[12,18,12,19],[13,18,13,19],[14,18,14,19],[16,18,16,19],[17,18,17,19],[6,14,10,14],[9,18,9,19],[6,9,10,9],[6,10,10,10],[6,11,10,11],[6,12,10,12],[6,13,10,13],[3,15,3,16],[4,3,4,14],[0,0,1,19],[2,1,2,4],[2,6,2,7],[2,10,2,11],[2,15,2,16],[6,3,10,3],[6,4,10,4],[6,5,10,5],[6,6,10,6],[6,7,10,7],[6,8,10,8],[3,1,3,4],[3,6,3,7],[3,10,3,11],[6,2,10,2],[48,18,48,19],[49,18,49,19],[50,18,50,19],[51,18,51,19],[52,18,52,19],[53,18,53,19],[54,18,54,19],[71,18,71,19],[72,18,72,19],[73,18,73,19],[75,18,75,19],[85,18,85,19],[86,18,86,19],[87,18,87,19],[90,18,90,19],[92,18,92,19],[74,18,74,19],[88,18,88,19],[89,18,89,19],[81,18,81,19],[91,18,91,19],[93,18,93,19],[76,18,76,19],[77,18,77,19],[80,18,80,19],[82,18,82,19],[83,18,83,19],[84,18,84,19],[103,18,103,19],[104,18,104,19],[78,18,78,19],[79,18,79,19]]}
["CONGESTION MANAGEMENT DESIGN BREAKDOWN WORKSHEET"]
[]
["PROJECT DESCRIPTION: ",{"$f":"IF(PROJECT.DESCRIPTION=\"\",\"\",PROJECT.DESCRIPTION)","v":""},null,null,null,"FIRM:  ",{"$f":"CONGESTION.MANAGEMENT_CONSULTANT_NAME","v":"CONSULTANT NAME"},null,"TASK ORDER NUMBER:",null,{"$f":"TASK.ORDER.NUMBER","v":0},null,"DATE PREPARED:",{"$f":"IF(SCOPE.MANDAY.ESTIMATE.PREPARED.BY.DATE=\"\",\"\",SCOPE.MANDAY.ESTIMATE.PREPARED.BY.DATE)","v":""}]
["PREPARED BY:  ",{"$f":"IF(SCOPE.MANDAY.ESTIMATE.PREPARED.BY=\"\",\"\",SCOPE.MANDAY.ESTIMATE.PREPARED.BY)","v":""},null,null,null,"TIP NUMBER:",{"$f":"TIP.NUMBER","v":0},null,"WBS NUMBER:",null,{"$f":"WBS.NUMBER","v":""},null,"REVISION DATE:",{"$f":"IF(SCOPE.MANDAY.ESTIMATE.APPROVED.BY.DATE=\"\",\"\",SCOPE.MANDAY.ESTIMATE.APPROVED.BY.DATE)","v":""}]
[null,"                                                                                                                                                                                                                    ",null,"ESTIMATED WORK DAYS"]
[null,null,"EMPLOYEE",{"$f":"IF('PEF CLASSIFICATION SHEET'!$D431=\"\",\"\",LEFT('PEF CLASSIFICATION SHEET'!$D431,4))","v":""},{"$f":"IF('PEF CLASSIFICATION SHEET'!$D432=\"\",\"\",LEFT('PEF CLASSIFICATION SHEET'!$D432,4))","v":""},{"$f":"IF('PEF CLASSIFICATION SHEET'!$D433=\"\",\"\",LEFT('PEF CLASSIFICATION SHEET'!$D433,4))","v":""},{"$f":"IF('PEF CLASSIFICATION SHEET'!$D434=\"\",\"\",LEFT('PEF CLASSIFICATION SHEET'!$D434,4))","v":""},{"$f":"IF('PEF CLASSIFICATION SHEET'!$D435=\"\",\"\",LEFT('PEF CLASSIFICATION SHEET'!$D435,4))","v":""},{"$f":"IF('PEF CLASSIFICATION SHEET'!$D436=\"\",\"\",LEFT('PEF CLASSIFICATION SHEET'!$D436,4))","v":""},{"$f":"IF('PEF CLASSIFICATION SHEET'!$D437=\"\",\"\",LEFT('PEF CLASSIFICATION SHEET'!$D437,4))","v":""},{"$f":"IF('PEF CLASSIFICATION SHEET'!$D438=\"\",\"\",LEFT('PEF CLASSIFICATION SHEET'!$D438,4))","v":""},{"$f":"IF('PEF CLASSIFICATION SHEET'!$D439=\"\",\"\",LEFT('PEF CLASSIFICATION SHEET'!$D439,4))","v":""},{"$f":"IF('PEF CLASSIFICATION SHEET'!$D440=\"\",\"\",LEFT('PEF CLASSIFICATION SHEET'!$D440,4))","v":""},{"$f":"IF('PEF CLASSIFICATION SHEET'!$D441=\"\",\"\",LEFT('PEF CLASSIFICATION SHEET'!$D441,4))","v":""}]
[null,null,"CLASSIFICATION\nPLEASE KEY THE CLASSIFICATION RATES ON THE PEF CLASSIFICATION SHEET PRIOR TO GETTING STARTED",{"$f":"IF('PEF CLASSIFICATION SHEET'!$C431=\"\",\"\",'PEF CLASSIFICATION SHEET'!$C431)","v":"Traffic Unit Head (TM-1)"},{"$f":"IF('PEF CLASSIFICATION SHEET'!$C432=\"\",\"\",'PEF CLASSIFICATION SHEET'!$C432)","v":"Project Engineer Sup. (TES-3)"},{"$f":"IF('PEF CLASSIFICATION SHEET'!$C433=\"\",\"\",'PEF CLASSIFICATION SHEET'!$C433)","v":"Project Engineer Sup. (TES-2)"},{"$f":"IF('PEF CLASSIFICATION SHEET'!$C434=\"\",\"\",'PEF CLASSIFICATION SHEET'!$C434)","v":"Project Engineer (TE-3)"},{"$f":"IF('PEF CLASSIFICATION SHEET'!$C435=\"\",\"\",'PEF CLASSIFICATION SHEET'!$C435)","v":"Project Engineer (TE-2)"},{"$f":"IF('PEF CLASSIFICATION SHEET'!$C436=\"\",\"\",'PEF CLASSIFICATION SHEET'!$C436)","v":"Project Engineer (TE-1)"},{"$f":"IF('PEF CLASSIFICATION SHEET'!$C437=\"\",\"\",'PEF CLASSIFICATION SHEET'!$C437)","v":""},{"$f":"IF('PEF CLASSIFICATION SHEET'!$C438=\"\",\"\",'PEF CLASSIFICATION SHEET'!$C438)","v":""},{"$f":"IF('PEF CLASSIFICATION SHEET'!$C439=\"\",\"\",'PEF CLASSIFICATION SHEET'!$C439)","v":""},{"$f":"IF('PEF CLASSIFICATION SHEET'!$C440=\"\",\"\",'PEF CLASSIFICATION SHEET'!$C440)","v":""},{"$f":"IF('PEF CLASSIFICATION SHEET'!$C441=\"\",\"\",'PEF CLASSIFICATION SHEET'!$C441)","v":""}]
[null,null,null,null,null,null,null,null,null,null,null,null,null,null,null,"SUB-","%","PEF"]
[null,null,null,null,null,null,null,null,null,null,null,null,null,null,null,"TOTAL","OF","ESTIMATE"]
["TASK","TASK DESCRIPTION",null,null,null,null,null,null,null,null,null,null,null,null,null,null,"PROJECT",null,"COMMENTS"]
["NO."]
[null,"HCS SYNCRO SIDRA",null,null,null,null,null,null,null,null,null,null,null,null,null,{"$f":"IF(SUM(D12:O52)=0,0,\"\")","v":0}]
[1,"PROJECT MANAGEMENT, COORDINATION AND ADMINISTRATION",null,null,null,null,null,null,null,null,null,null,null,null,null,{"$f":"IF(SUM(D14:O16)=0,0,\"\")","v":0}]
[1.1000000000000001,"Project Management and Administration",null,{"$f":"IF($E$220=0,IFERROR((MROUND(('CongMgt-HCSSynchroSidra'!AC4-E14-F14-G14-H14-I14),0.125)),0),MROUND(('CongMgt-HCSSynchroSidra'!AC4*$D$220),0.125))","v":0},{"$f":"IF($E$220>0,IFERROR((MROUND(('CongMgt-HCSSynchroSidra'!AC4-D14-F14-G14-H14-I14),0.125)),0),0)","v":0},{"$f":"MROUND(('CongMgt-HCSSynchroSidra'!AC4*$F$220),0.125)","v":0},{"$f":"MROUND(('CongMgt-HCSSynchroSidra'!AC4*$G$220),0.125)","v":0},{"$f":"MROUND(('CongMgt-HCSSynchroSidra'!AC4*$H$220),0.125)","v":0},{"$f":"MROUND(('CongMgt-HCSSynchroSidra'!AC4*$I$220),0.125)","v":0},null,null,null,null,null,null,{"$f":"SUM(D14:O14)","v":0},{"$f":"SUM((P14/$P$222))","v":{"$error":"#DIV/0!"}}]
[1.2,"Project Coordination",null,{"$f":"IF($E$220=0,IFERROR((MROUND(('CongMgt-HCSSynchroSidra'!AC5-E15-F15-G15-H15-I15),0.125)),0),MROUND(('CongMgt-HCSSynchroSidra'!AC5*$D$220),0.125))","v":0},{"$f":"IF($E$220>0,IFERROR((MROUND(('CongMgt-HCSSynchroSidra'!AC5-D15-F15-G15-H15-I15),0.125)),0),0)","v":0},{"$f":"MROUND(('CongMgt-HCSSynchroSidra'!AC5*$F$220),0.125)","v":0},{"$f":"MROUND(('CongMgt-HCSSynchroSidra'!AC5*$G$220),0.125)","v":0},{"$f":"MROUND(('CongMgt-HCSSynchroSidra'!AC5*$H$220),0.125)","v":0},{"$f":"MROUND(('CongMgt-HCSSynchroSidra'!AC5*$I$220),0.125)","v":0},null,null,null,null,null,null,0,{"$f":"SUM((P15/$P$222))","v":{"$error":"#DIV/0!"}}]
[1.3,"Subconsultant Coordination",null,{"$f":"IF($E$220=0,IFERROR((MROUND(('CongMgt-HCSSynchroSidra'!AC6-E16-F16-G16-H16-I16),0.125)),0),MROUND(('CongMgt-HCSSynchroSidra'!AC6*$D$220),0.125))","v":0},{"$f":"IF($E$220>0,IFERROR((MROUND(('CongMgt-HCSSynchroSidra'!AC6-D16-F16-G16-H16-I16),0.125)),0),0)","v":0},{"$f":"MROUND(('CongMgt-HCSSynchroSidra'!AC6*$F$220),0.125)","v":0},{"$f":"MROUND(('CongMgt-HCSSynchroSidra'!AC6*$G$220),0.125)","v":0},{"$f":"MROUND(('CongMgt-HCSSynchroSidra'!AC6*$H$220),0.125)","v":0},{"$f":"MROUND(('CongMgt-HCSSynchroSidra'!AC6*$I$220),0.125)","v":0},null,null,null,null,null,null,0,{"$f":"SUM((P16/$P$222))","v":{"$error":"#DIV/0!"}}]
[2,"DATA COLLECTION AND FIELD VISIT",null,null,null,null,null,null,null,null,null,null,null,null,null,{"$f":"IF(SUM(D18:O19)=0,0,\"\")","v":0}]
[2.1,"Data Collection",null,{"$f":"IF($E$220=0,IFERROR((MROUND(('CongMgt-HCSSynchroSidra'!AC7-E18-F18-G18-H18-I18),0.125)),0),MROUND(('CongMgt-HCSSynchroSidra'!AC7*$D$220),0.125))","v":0},{"$f":"IF($E$220>0,IFERROR((MROUND(('CongMgt-HCSSynchroSidra'!AC7-D18-F18-G18-H18-I18),0.125)),0),0)","v":0},{"$f":"MROUND(('CongMgt-HCSSynchroSidra'!AC7*$F$220),0.125)","v":0},{"$f":"MROUND(('CongMgt-HCSSynchroSidra'!AC7*$G$220),0.125)","v":0},{"$f":"MROUND(('CongMgt-HCSSynchroSidra'!AC7*$H$220),0.125)","v":0},{"$f":"MROUND(('CongMgt-HCSSynchroSidra'!AC7*$I$220),0.125)","v":0},null,null,null,null,null,null,{"$f":"SUM(D18:O18)","v":0},{"$f":"SUM((P18/$P$222))","v":{"$error":"#DIV/0!"}}]
[2.2000000000000002,"Field Visit ",null,{"$f":"IF($E$220=0,IFERROR((MROUND(('CongMgt-HCSSynchroSidra'!AC8-E19-F19-G19-H19-I19),0.125)),0),MROUND(('CongMgt-HCSSynchroSidra'!AC8*$D$220),0.125))","v":0},{"$f":"IF($E$220>0,IFERROR((MROUND(('CongMgt-HCSSynchroSidra'!AC8-D19-F19-G19-H19-I19),0.125)),0),0)","v":0},{"$f":"MROUND(('CongMgt-HCSSynchroSidra'!AC8*$F$220),0.125)","v":0},{"$f":"MROUND(('CongMgt-HCSSynchroSidra'!AC8*$G$220),0.125)","v":0},{"$f":"MROUND(('CongMgt-HCSSynchroSidra'!AC8*$H$220),0.125)","v":0},{"$f":"MROUND(('CongMgt-HCSSynchroSidra'!AC8*$I$220),0.125)","v":0},null,null,null,null,null,null,0,{"$f":"SUM((P19/$P$222))","v":{"$error":"#DIV/0!"}}]
[3,"TRAFFIC VOLUME DEVELOPMENT",null,null,null,null,null,null,null,null,null,null,null,null,null,{"$f":"IF(SUM(D21:O21)=0,0,\"\")","v":0}]
[3.1,"Convert Forecast to Peak Hour Volumes ",null,{"$f":"IF($E$220=0,IFERROR((MROUND(('CongMgt-HCSSynchroSidra'!AC12-E21-F21-G21-H21-I21),0.125)),0),MROUND(('CongMgt-HCSSynchroSidra'!AC12*$D$220),0.125))","v":0},{"$f":"IF($E$220>0,IFERROR((MROUND(('CongMgt-HCSSynchroSidra'!AC12-D21-F21-G21-H21-I21),0.125)),0),0)","v":0},{"$f":"MROUND(('CongMgt-HCSSynchroSidra'!AC12*$F$220),0.125)","v":0},{"$f":"MROUND(('CongMgt-HCSSynchroSidra'!AC12*$G$220),0.125)","v":0},{"$f":"MROUND(('CongMgt-HCSSynchroSidra'!AC12*$H$220),0.125)","v":0},{"$f":"MROUND(('CongMgt-HCSSynchroSidra'!AC12*$I$220),0.125)","v":0},null,null,null,null,null,null,0,{"$f":"SUM((P21/$P$222))","v":{"$error":"#DIV/0!"}}]
[4,"20XX BASE YEAR MODEL",null,null,null,null,null,null,null,null,null,null,null,null,null,{"$f":"IF(SUM(D23:O25)=0,0,\"\")","v":0}]
[4.0999999999999996,"Highway Capacity Software (HCS) Analysis",null,{"$f":"IF($E$220=0,IFERROR((MROUND(('CongMgt-HCSSynchroSidra'!AC16-E23-F23-G23-H23-I23),0.125)),0),MROUND(('CongMgt-HCSSynchroSidra'!AC16*$D$220),0.125))","v":0},{"$f":"IF($E$220>0,IFERROR((MROUND(('CongMgt-HCSSynchroSidra'!AC16-D23-F23-G23-H23-I23),0.125)),0),0)","v":0},{"$f":"MROUND(('CongMgt-HCSSynchroSidra'!AC16*$F$220),0.125)","v":0},{"$f":"MROUND(('CongMgt-HCSSynchroSidra'!AC16*$G$220),0.125)","v":0},{"$f":"MROUND(('CongMgt-HCSSynchroSidra'!AC16*$H$220),0.125)","v":0},{"$f":"MROUND(('CongMgt-HCSSynchroSidra'!AC16*$I$220),0.125)","v":0},null,null,null,null,null,null,0,{"$f":"SUM((P23/$P$222))","v":{"$error":"#DIV/0!"}}]
[4.2,"Synchro Analysis",null,{"$f":"IF($E$220=0,IFERROR((MROUND(('CongMgt-HCSSynchroSidra'!AC17-E24-F24-G24-H24-I24),0.125)),0),MROUND(('CongMgt-HCSSynchroSidra'!AC17*$D$220),0.125))","v":0},{"$f":"IF($E$220>0,IFERROR((MROUND(('CongMgt-HCSSynchroSidra'!AC17-D24-F24-G24-H24-I24),0.125)),0),0)","v":0},{"$f":"MROUND(('CongMgt-HCSSynchroSidra'!AC17*$F$220),0.125)","v":0},{"$f":"MROUND(('CongMgt-HCSSynchroSidra'!AC17*$G$220),0.125)","v":0},{"$f":"MROUND(('CongMgt-HCSSynchroSidra'!AC17*$H$220),0.125)","v":0},{"$f":"MROUND(('CongMgt-HCSSynchroSidra'!AC17*$I$220),0.125)","v":0},null,null,null,null,null,null,0,{"$f":"SUM((P24/$P$222))","v":{"$error":"#DIV/0!"}}]
[4.3,"Sidra Analysis",null,{"$f":"IF($E$220=0,IFERROR((MROUND(('CongMgt-HCSSynchroSidra'!AC18-E25-F25-G25-H25-I25),0.125)),0),MROUND(('CongMgt-HCSSynchroSidra'!AC18*$D$220),0.125))","v":0},{"$f":"IF($E$220>0,IFERROR((MROUND(('CongMgt-HCSSynchroSidra'!AC18-D25-F25-G25-H25-I25),0.125)),0),0)","v":0},{"$f":"MROUND(('CongMgt-HCSSynchroSidra'!AC18*$F$220),0.125)","v":0},{"$f":"MROUND(('CongMgt-HCSSynchroSidra'!AC18*$G$220),0.125)","v":0},{"$f":"MROUND(('CongMgt-HCSSynchroSidra'!AC18*$H$220),0.125)","v":0},{"$f":"MROUND(('CongMgt-HCSSynchroSidra'!AC18*$I$220),0.125)","v":0},null,null,null,null,null,null,0,{"$f":"SUM((P25/$P$222))","v":{"$error":"#DIV/0!"}}]
[5,"20XX NO-BUILD ANALYSIS",null,null,null,null,null,null,null,null,null,null,null,null,null,{"$f":"IF(SUM(D27:O29)=0,0,\"\")","v":0}]
[5.0999999999999996,"Highway Capacity Software (HCS) Analysis",null,{"$f":"IF($E$220=0,IFERROR((MROUND(('CongMgt-HCSSynchroSidra'!AC20-E27-F27-G27-H27-I27),0.125)),0),MROUND(('CongMgt-HCSSynchroSidra'!AC20*$D$220),0.125))","v":0},{"$f":"IF($E$220>0,IFERROR((MROUND(('CongMgt-HCSSynchroSidra'!AC20-D27-F27-G27-H27-I27),0.125)),0),0)","v":0},{"$f":"MROUND(('CongMgt-HCSSynchroSidra'!AC20*$F$220),0.125)","v":0},{"$f":"MROUND(('CongMgt-HCSSynchroSidra'!AC20*$G$220),0.125)","v":0},{"$f":"MROUND(('CongMgt-HCSSynchroSidra'!AC20*$H$220),0.125)","v":0},{"$f":"MROUND(('CongMgt-HCSSynchroSidra'!AC20*$I$220),0.125)","v":0},null,null,null,null,null,null,0,{"$f":"SUM((P27/$P$222))","v":{"$error":"#DIV/0!"}}]
[5.2,"Synchro Analysis",null,{"$f":"IF($E$220=0,IFERROR((MROUND(('CongMgt-HCSSynchroSidra'!AC21-E28-F28-G28-H28-I28),0.125)),0),MROUND(('CongMgt-HCSSynchroSidra'!AC21*$D$220),0.125))","v":0},{"$f":"IF($E$220>0,IFERROR((MROUND(('CongMgt-HCSSynchroSidra'!AC21-D28-F28-G28-H28-I28),0.125)),0),0)","v":0},{"$f":"MROUND(('CongMgt-HCSSynchroSidra'!AC21*$F$220),0.125)","v":0},{"$f":"MROUND(('CongMgt-HCSSynchroSidra'!AC21*$G$220),0.125)","v":0},{"$f":"MROUND(('CongMgt-HCSSynchroSidra'!AC21*$H$220),0.125)","v":0},{"$f":"MROUND(('CongMgt-HCSSynchroSidra'!AC21*$I$220),0.125)","v":0},null,null,null,null,null,null,0,{"$f":"SUM((P28/$P$222))","v":{"$error":"#DIV/0!"}}]
[5.3,"Sidra Analysis",null,{"$f":"IF($E$220=0,IFERROR((MROUND(('CongMgt-HCSSynchroSidra'!AC22-E29-F29-G29-H29-I29),0.125)),0),MROUND(('CongMgt-HCSSynchroSidra'!AC22*$D$220),0.125))","v":0},{"$f":"IF($E$220>0,IFERROR((MROUND(('CongMgt-HCSSynchroSidra'!AC22-D29-F29-G29-H29-I29),0.125)),0),0)","v":0},{"$f":"MROUND(('CongMgt-HCSSynchroSidra'!AC22*$F$220),0.125)","v":0},{"$f":"MROUND(('CongMgt-HCSSynchroSidra'!AC22*$G$220),0.125)","v":0},{"$f":"MROUND(('CongMgt-HCSSynchroSidra'!AC22*$H$220),0.125)","v":0},{"$f":"MROUND(('CongMgt-HCSSynchroSidra'!AC22*$I$220),0.125)","v":0},null,null,null,null,null,null,{"$f":"SUM(D29:O29)","v":0},{"$f":"SUM((P29/$P$222))","v":{"$error":"#DIV/0!"}}]
[6,"20XX BUILD ANALYSIS",null,null,null,null,null,null,null,null,null,null,null,null,null,{"$f":"IF(SUM(D31:O34)=0,0,\"\")","v":0}]
[6.1,"Highway Capacity Software (HCS) Analysis",null,{"$f":"IF($E$220=0,IFERROR((MROUND(('CongMgt-HCSSynchroSidra'!AC24-E31-F31-G31-H31-I31),0.125)),0),MROUND(('CongMgt-HCSSynchroSidra'!AC24*$D$220),0.125))","v":0},{"$f":"IF($E$220>0,IFERROR((MROUND(('CongMgt-HCSSynchroSidra'!AC24-D31-F31-G31-H31-I31),0.125)),0),0)","v":0},{"$f":"MROUND(('CongMgt-HCSSynchroSidra'!AC24*$F$220),0.125)","v":0},{"$f":"MROUND(('CongMgt-HCSSynchroSidra'!AC24*$G$220),0.125)","v":0},{"$f":"MROUND(('CongMgt-HCSSynchroSidra'!AC24*$H$220),0.125)","v":0},{"$f":"MROUND(('CongMgt-HCSSynchroSidra'!AC24*$I$220),0.125)","v":0},null,null,null,null,null,null,0,{"$f":"SUM((P31/$P$222))","v":{"$error":"#DIV/0!"}}]
[6.2,"Synchro Analysis",null,{"$f":"IF($E$220=0,IFERROR((MROUND(('CongMgt-HCSSynchroSidra'!AC25-E32-F32-G32-H32-I32),0.125)),0),MROUND(('CongMgt-HCSSynchroSidra'!AC25*$D$220),0.125))","v":0},{"$f":"IF($E$220>0,IFERROR((MROUND(('CongMgt-HCSSynchroSidra'!AC25-D32-F32-G32-H32-I32),0.125)),0),0)","v":0},{"$f":"MROUND(('CongMgt-HCSSynchroSidra'!AC25*$F$220),0.125)","v":0},{"$f":"MROUND(('CongMgt-HCSSynchroSidra'!AC25*$G$220),0.125)","v":0},{"$f":"MROUND(('CongMgt-HCSSynchroSidra'!AC25*$H$220),0.125)","v":0},{"$f":"MROUND(('CongMgt-HCSSynchroSidra'!AC25*$I$220),0.125)","v":0},null,null,null,null,null,null,0,{"$f":"SUM((P32/$P$222))","v":{"$error":"#DIV/0!"}}]
[6.3,"Sidra Analysis",null,{"$f":"IF($E$220=0,IFERROR((MROUND(('CongMgt-HCSSynchroSidra'!AC26-E33-F33-G33-H33-I33),0.125)),0),MROUND(('CongMgt-HCSSynchroSidra'!AC26*$D$220),0.125))","v":0},{"$f":"IF($E$220>0,IFERROR((MROUND(('CongMgt-HCSSynchroSidra'!AC26-D33-F33-G33-H33-I33),0.125)),0),0)","v":0},{"$f":"MROUND(('CongMgt-HCSSynchroSidra'!AC26*$F$220),0.125)","v":0},{"$f":"MROUND(('CongMgt-HCSSynchroSidra'!AC26*$G$220),0.125)","v":0},{"$f":"MROUND(('CongMgt-HCSSynchroSidra'!AC26*$H$220),0.125)","v":0},{"$f":"MROUND(('CongMgt-HCSSynchroSidra'!AC26*$I$220),0.125)","v":0},null,null,null,null,null,null,0,{"$f":"SUM((P33/$P$222))","v":{"$error":"#DIV/0!"}}]
[6.4,"Design Iterations (Determine Based on Complexity and Level of Design)",null,{"$f":"IF($E$220=0,IFERROR((MROUND(('CongMgt-HCSSynchroSidra'!AC27-E34-F34-G34-H34-I34),0.125)),0),MROUND(('CongMgt-HCSSynchroSidra'!AC27*$D$220),0.125))","v":0},{"$f":"IF($E$220>0,IFERROR((MROUND(('CongMgt-HCSSynchroSidra'!AC27-D34-F34-G34-H34-I34),0.125)),0),0)","v":0},{"$f":"MROUND(('CongMgt-HCSSynchroSidra'!AC27*$F$220),0.125)","v":0},{"$f":"MROUND(('CongMgt-HCSSynchroSidra'!AC27*$G$220),0.125)","v":0},{"$f":"MROUND(('CongMgt-HCSSynchroSidra'!AC27*$H$220),0.125)","v":0},{"$f":"MROUND(('CongMgt-HCSSynchroSidra'!AC27*$I$220),0.125)","v":0},null,null,null,null,null,null,0,{"$f":"SUM((P34/$P$222))","v":{"$error":"#DIV/0!"}}]
[7,"20XX BUILD ANALYSIS",null,null,null,null,null,null,null,null,null,null,null,null,null,{"$f":"IF(SUM(D36:O36)=0,0,\"\")","v":0}]
[7.1,"Synchro Analysis",null,{"$f":"IF($E$220=0,IFERROR((MROUND(('CongMgt-HCSSynchroSidra'!AC29-E36-F36-G36-H36-I36),0.125)),0),MROUND(('CongMgt-HCSSynchroSidra'!AC29*$D$220),0.125))","v":0},{"$f":"IF($E$220>0,IFERROR((MROUND(('CongMgt-HCSSynchroSidra'!AC29-D36-F36-G36-H36-I36),0.125)),0),0)","v":0},{"$f":"MROUND(('CongMgt-HCSSynchroSidra'!AC29*$F$220),0.125)","v":0},{"$f":"MROUND(('CongMgt-HCSSynchroSidra'!AC29*$G$220),0.125)","v":0},{"$f":"MROUND(('CongMgt-HCSSynchroSidra'!AC29*$H$220),0.125)","v":0},{"$f":"MROUND(('CongMgt-HCSSynchroSidra'!AC29*$I$220),0.125)","v":0},null,null,null,null,null,null,0,{"$f":"SUM((P36/$P$222))","v":{"$error":"#DIV/0!"}}]
[8,"DOCUMENTATION",null,null,null,null,null,null,null,null,null,null,null,null,null,{"$f":"IF(SUM(D38:O38)=0,0,\"\")","v":0}]
[8.1,"Traffic Capacity Analysis Technical Memorandum",null,{"$f":"IF($E$220=0,IF(E220=0%,0,IFERROR((MROUND(('CongMgt-HCSSynchroSidra'!AC31-E38-F38-G38-H38-I38),0.125)),0)),MROUND(('CongMgt-HCSSynchroSidra'!AC31*$D$220),0.125))","v":0},{"$f":"IF($E$220>0,IF(E220=0%,0,IFERROR((MROUND(('CongMgt-HCSSynchroSidra'!AC31-D38-F38-G38-H38-I38),0.125)),0)),0)","v":0},{"$f":"MROUND(('CongMgt-HCSSynchroSidra'!AC31*$F$220),0.125)","v":0},{"$f":"MROUND(('CongMgt-HCSSynchroSidra'!AC31*$G$220),0.125)","v":0},{"$f":"MROUND(('CongMgt-HCSSynchroSidra'!AC31*$H$220),0.125)","v":0},{"$f":"MROUND(('CongMgt-HCSSynchroSidra'!AC31*$I$220),0.125)","v":0},null,null,null,null,null,null,0,{"$f":"SUM((P38/$P$222))","v":{"$error":"#DIV/0!"}}]
[11,"ADDITIONAL SCOPE ITEMS",null,null,null,null,null,null,null,null,null,null,null,null,null,{"$f":"IF(SUM(D40:O42)=0,0,\"\")","v":0}]
[11.1,"Multi-hour Analysis Adjustment - HCS Analysis",null,{"$f":"IF($E$220=0,IFERROR((MROUND(('CongMgt-HCSSynchroSidra'!AC35-E40-F40-G40-H40-I40),0.125)),0),MROUND(('CongMgt-HCSSynchroSidra'!AC35*$D$220),0.125))","v":0},{"$f":"IF($E$220>0,IFERROR((MROUND(('CongMgt-HCSSynchroSidra'!AC35-D40-F40-G40-H40-I40),0.125)),0),0)","v":0},{"$f":"MROUND(('CongMgt-HCSSynchroSidra'!AC35*$F$220),0.125)","v":0},{"$f":"MROUND(('CongMgt-HCSSynchroSidra'!AC35*$G$220),0.125)","v":0},{"$f":"MROUND(('CongMgt-HCSSynchroSidra'!AC35*$H$220),0.125)","v":0},{"$f":"MROUND(('CongMgt-HCSSynchroSidra'!AC35*$I$220),0.125)","v":0},null,null,null,null,null,null,{"$f":"SUM(D40:O40)","v":0},{"$f":"SUM((P40/$P$222))","v":{"$error":"#DIV/0!"}}]
[11.2,"Multi-hour Analysis Adjustment - Synchro Analysis",null,{"$f":"IF($E$220=0,IFERROR((MROUND(('CongMgt-HCSSynchroSidra'!AC36-E41-F41-G41-H41-I41),0.125)),0),MROUND(('CongMgt-HCSSynchroSidra'!AC36*$D$220),0.125))","v":0},{"$f":"IF($E$220>0,IFERROR((MROUND(('CongMgt-HCSSynchroSidra'!AC36-D41-F41-G41-H41-I41),0.125)),0),0)","v":0},{"$f":"MROUND(('CongMgt-HCSSynchroSidra'!AC36*$F$220),0.125)","v":0},{"$f":"MROUND(('CongMgt-HCSSynchroSidra'!AC36*$G$220),0.125)","v":0},{"$f":"MROUND(('CongMgt-HCSSynchroSidra'!AC36*$H$220),0.125)","v":0},{"$f":"MROUND(('CongMgt-HCSSynchroSidra'!AC36*$I$220),0.125)","v":0},null,null,null,null,null,null,0,{"$error":"#DIV/0!"}]
[11.3,"Multi-hour Analysis Adjustment - Sidra Analysis",null,{"$f":"IF($E$220=0,IFERROR((MROUND(('CongMgt-HCSSynchroSidra'!AC37-E42-F42-G42-H42-I42),0.125)),0),MROUND(('CongMgt-HCSSynchroSidra'!AC37*$D$220),0.125))","v":0},{"$f":"IF($E$220>0,IFERROR((MROUND(('CongMgt-HCSSynchroSidra'!AC37-D42-F42-G42-H42-I42),0.125)),0),0)","v":0},{"$f":"MROUND(('CongMgt-HCSSynchroSidra'!AC37*$F$220),0.125)","v":0},{"$f":"MROUND(('CongMgt-HCSSynchroSidra'!AC37*$G$220),0.125)","v":0},{"$f":"MROUND(('CongMgt-HCSSynchroSidra'!AC37*$H$220),0.125)","v":0},{"$f":"MROUND(('CongMgt-HCSSynchroSidra'!AC37*$I$220),0.125)","v":0},null,null,null,null,null,null,0,{"$error":"#DIV/0!"}]
[null,null,null,null,null,null,null,null,null,null,null,null,null,null,null,{"$f":"SUM(D43:O43)","v":0},{"$error":"#DIV/0!"}]
[null,null,null,null,null,null,null,null,null,null,null,null,null,null,null,{"$f":"SUM(D44:O44)","v":0},{"$error":"#DIV/0!"}]
[null,null,null,null,null,null,null,null,null,null,null,null,null,null,null,0,{"$error":"#DIV/0!"}]
[null,null,null,null,null,null,null,null,null,null,null,null,null,null,null,{"$f":"SUM(D46:O46)","v":0},{"$error":"#DIV/0!"}]
[null,null,null,null,null,null,null,null,null,null,null,null,null,null,null,0,{"$error":"#DIV/0!"}]
[null,null,null,null,null,null,null,null,null,null,null,null,null,null,null,{"$f":"SUM(D48:O48)","v":0},{"$error":"#DIV/0!"}]
[null,null,null,null,null,null,null,null,null,null,null,null,null,null,null,0,{"$error":"#DIV/0!"}]
[null,null,null,null,null,null,null,null,null,null,null,null,null,null,null,0,{"$error":"#DIV/0!"}]
[null,null,null,null,null,null,null,null,null,null,null,null,null,null,null,0,{"$error":"#DIV/0!"}]
[null,null,null,null,null,null,null,null,null,null,null,null,null,null,null,0,{"$error":"#DIV/0!"}]
[null,"TransModeler",null,null,null,null,null,null,null,null,null,null,null,null,null,{"$f":"IF(SUM(D53:O120)=0,0,\"\")","v":0}]
[1,"PROJECT MANAGEMENT, COORDINATION AND ADMINISTRATION",null,null,null,null,null,null,null,null,null,null,null,null,null,{"$f":"IF(SUM(D55:O57)=0,0,\"\")","v":0}]
[1.1000000000000001,"Project Management and Administration",null,{"$f":"IF($E$221=0,IFERROR((MROUND(('CongMgt-TransModeler'!AD2-E55-F55-G55-H55-I55),0.125)),0),MROUND(('CongMgt-TransModeler'!AD2*$D$221),0.125))","v":0},{"$f":"IF($E$221>0,IFERROR((MROUND(('CongMgt-TransModeler'!AD2-D55-F55-G55-H55-I55),0.125)),0),0)","v":0},{"$f":"MROUND(('CongMgt-TransModeler'!AD2*$F$221),0.125)","v":0},{"$f":"MROUND(('CongMgt-TransModeler'!AD2*$G$221),0.125)","v":0},{"$f":"MROUND(('CongMgt-TransModeler'!AD2*$H$221),0.125)","v":0},{"$f":"MROUND(('CongMgt-TransModeler'!AD2*$I$221),0.125)","v":0},null,null,null,null,null,null,0,{"$f":"SUM((P55/$P$222))","v":{"$error":"#DIV/0!"}}]
[1.2,"Project Coordination",null,{"$f":"IF($E$221=0,IFERROR((MROUND(('CongMgt-TransModeler'!AD3-E56-F56-G56-H56-I56),0.125)),0),MROUND(('CongMgt-TransModeler'!AD3*$D$221),0.125))","v":0},{"$f":"IF($E$221>0,IFERROR((MROUND(('CongMgt-TransModeler'!AD3-D56-F56-G56-H56-I56),0.125)),0),0)","v":0},{"$f":"MROUND(('CongMgt-TransModeler'!AD3*$F$221),0.125)","v":0},{"$f":"MROUND(('CongMgt-TransModeler'!AD3*$G$221),0.125)","v":0},{"$f":"MROUND(('CongMgt-TransModeler'!AD3*$H$221),0.125)","v":0},{"$f":"MROUND(('CongMgt-TransModeler'!AD3*$I$221),0.125)","v":0},null,null,null,null,null,null,0,{"$f":"SUM((P56/$P$222))","v":{"$error":"#DIV/0!"}}]
[1.3,"Consultant Coordination",null,{"$f":"IF($E$221=0,IFERROR((MROUND(('CongMgt-TransModeler'!AD4-E57-F57-G57-H57-I57),0.125)),0),MROUND(('CongMgt-TransModeler'!AD4*$D$221),0.125))","v":0},{"$f":"IF($E$221>0,IFERROR((MROUND(('CongMgt-TransModeler'!AD4-D57-F57-G57-H57-I57),0.125)),0),0)","v":0},{"$f":"MROUND(('CongMgt-TransModeler'!AD4*$F$221),0.125)","v":0},{"$f":"MROUND(('CongMgt-TransModeler'!AD4*$G$221),0.125)","v":0},{"$f":"MROUND(('CongMgt-TransModeler'!AD4*$H$221),0.125)","v":0},{"$f":"MROUND(('CongMgt-TransModeler'!AD4*$I$221),0.125)","v":0},null,null,null,null,null,null,{"$f":"SUM(D57:O57)","v":0},{"$f":"SUM((P57/$P$222))","v":{"$error":"#DIV/0!"}}]
[2,"DATA COLLECTION AND FIELD VISIT",null,null,null,null,null,null,null,null,null,null,null,null,null,{"$f":"IF(SUM(D59:O60)=0,0,\"\")","v":0}]
[2.1,"Data Collection",null,{"$f":"IF($E$221=0,IFERROR((MROUND(('CongMgt-TransModeler'!AD5-E59-F59-G59-H59-I59),0.125)),0),MROUND(('CongMgt-TransModeler'!AD5*$D$221),0.125))","v":0},{"$f":"IF($E$221>0,IFERROR((MROUND(('CongMgt-TransModeler'!AD5-D59-F59-G59-H59-I59),0.125)),0),0)","v":0},{"$f":"MROUND(('CongMgt-TransModeler'!AD5*$F$221),0.125)","v":0},{"$f":"MROUND(('CongMgt-TransModeler'!AD5*$G$221),0.125)","v":0},{"$f":"MROUND(('CongMgt-TransModeler'!AD5*$H$221),0.125)","v":0},{"$f":"MROUND(('CongMgt-TransModeler'!AD5*$I$221),0.125)","v":0},null,null,null,null,null,null,0,{"$f":"SUM((P59/$P$222))","v":{"$error":"#DIV/0!"}}]
[2.2000000000000002,"Field Visit ",null,{"$f":"IF($E$221=0,IFERROR((MROUND(('CongMgt-TransModeler'!AD6-E60-F60-G60-H60-I60),0.125)),0),MROUND(('CongMgt-TransModeler'!AD6*$D$221),0.125))","v":0},{"$f":"IF($E$221>0,IFERROR((MROUND(('CongMgt-TransModeler'!AD6-D60-F60-G60-H60-I60),0.125)),0),0)","v":0},{"$f":"MROUND(('CongMgt-TransModeler'!AD6*$F$221),0.125)","v":0},{"$f":"MROUND(('CongMgt-TransModeler'!AD6*$G$221),0.125)","v":0},{"$f":"MROUND(('CongMgt-TransModeler'!AD6*$H$221),0.125)","v":0},{"$f":"MROUND(('CongMgt-TransModeler'!AD6*$I$221),0.125)","v":0},null,null,null,null,null,null,0,{"$f":"SUM((P60/$P$222))","v":{"$error":"#DIV/0!"}}]
[3,"TRAFFIC VOLUME DEVELOPMENT",null,null,null,null,null,null,null,null,null,null,null,null,null,{"$f":"IF(SUM(D62:O68)=0,0,\"\")","v":0}]
[3.1,"Convert Forecast to Peak Hour Volumes ",null,{"$f":"IF($E$221=0,IFERROR((MROUND(('CongMgt-TransModeler'!AD8-E62-F62-G62-H62-I62),0.125)),0),MROUND(('CongMgt-TransModeler'!AD8*$D$221),0.125))","v":0},{"$f":"IF($E$221>0,IFERROR((MROUND(('CongMgt-TransModeler'!AD8-D62-F62-G62-H62-I62),0.125)),0),0)","v":0},{"$f":"MROUND(('CongMgt-TransModeler'!AD8*$F$221),0.125)","v":0},{"$f":"MROUND(('CongMgt-TransModeler'!AD8*$G$221),0.125)","v":0},{"$f":"MROUND(('CongMgt-TransModeler'!AD8*$H$221),0.125)","v":0},{"$f":"MROUND(('CongMgt-TransModeler'!AD8*$I$221),0.125)","v":0},null,null,null,null,null,null,0,{"$f":"SUM((P62/$P$222))","v":{"$error":"#DIV/0!"}}]
[3.2,"Balance Peak Hour Volumes",null,{"$f":"IF($E$221=0,IFERROR((MROUND(('CongMgt-TransModeler'!AD9-E63-F63-G63-H63-I63),0.125)),0),MROUND(('CongMgt-TransModeler'!AD9*$D$221),0.125))","v":0},{"$f":"IF($E$221>0,IFERROR((MROUND(('CongMgt-TransModeler'!AD9-D63-F63-G63-H63-I63),0.125)),0),0)","v":0},{"$f":"MROUND(('CongMgt-TransModeler'!AD9*$F$221),0.125)","v":0},{"$f":"MROUND(('CongMgt-TransModeler'!AD9*$G$221),0.125)","v":0},{"$f":"MROUND(('CongMgt-TransModeler'!AD9*$H$221),0.125)","v":0},{"$f":"MROUND(('CongMgt-TransModeler'!AD9*$I$221),0.125)","v":0},null,null,null,null,null,null,{"$f":"SUM(D63:O63)","v":0},{"$error":"#DIV/0!"}]
[3.3,"OD Matrix Development",null,{"$f":"IF($E$221=0,IFERROR((MROUND(('CongMgt-TransModeler'!AD10-E64-F64-G64-H64-I64),0.125)),0),MROUND(('CongMgt-TransModeler'!AD10*$D$221),0.125))","v":0},{"$f":"IF($E$221>0,IFERROR((MROUND(('CongMgt-TransModeler'!AD10-D64-F64-G64-H64-I64),0.125)),0),0)","v":0},{"$f":"MROUND(('CongMgt-TransModeler'!AD10*$F$221),0.125)","v":0},{"$f":"MROUND(('CongMgt-TransModeler'!AD10*$G$221),0.125)","v":0},{"$f":"MROUND(('CongMgt-TransModeler'!AD10*$H$221),0.125)","v":0},{"$f":"MROUND(('CongMgt-TransModeler'!AD10*$I$221),0.125)","v":0},null,null,null,null,null,null,0,{"$error":"#DIV/0!"}]
[3.4,"Origin Destination Matrix Estimation (ODME) Development",null,{"$f":"IF($E$221=0,IFERROR((MROUND(('CongMgt-TransModeler'!AD11-E65-F65-G65-H65-I65),0.125)),0),MROUND(('CongMgt-TransModeler'!AD11*$D$221),0.125))","v":0},{"$f":"IF($E$221>0,IFERROR((MROUND(('CongMgt-TransModeler'!AD11-D65-F65-G65-H65-I65),0.125)),0),0)","v":0},{"$f":"MROUND(('CongMgt-TransModeler'!AD11*$F$221),0.125)","v":0},{"$f":"MROUND(('CongMgt-TransModeler'!AD11*$G$221),0.125)","v":0},{"$f":"MROUND(('CongMgt-TransModeler'!AD11*$H$221),0.125)","v":0},{"$f":"MROUND(('CongMgt-TransModeler'!AD11*$I$221),0.125)","v":0},null,null,null,null,null,null,0,{"$error":"#DIV/0!"}]
[3.5,"Class Based OD Matrix Development",null,{"$f":"IF($E$221=0,IFERROR((MROUND(('CongMgt-TransModeler'!AD12-E66-F66-G66-H66-I66),0.125)),0),MROUND(('CongMgt-TransModeler'!AD12*$D$221),0.125))","v":0},{"$f":"IF($E$221>0,IFERROR((MROUND(('CongMgt-TransModeler'!AD12-D66-F66-G66-H66-I66),0.125)),0),0)","v":0},{"$f":"MROUND(('CongMgt-TransModeler'!AD12*$F$221),0.125)","v":0},{"$f":"MROUND(('CongMgt-TransModeler'!AD12*$G$221),0.125)","v":0},{"$f":"MROUND(('CongMgt-TransModeler'!AD12*$H$221),0.125)","v":0},{"$f":"MROUND(('CongMgt-TransModeler'!AD12*$I$221),0.125)","v":0},null,null,null,null,null,null,0,{"$error":"#DIV/0!"}]
[3.6,"Multi-hour Simulation OD Matrix Development",null,{"$f":"IF($E$221=0,IFERROR((MROUND(('CongMgt-TransModeler'!AD13-E67-F67-G67-H67-I67),0.125)),0),MROUND(('CongMgt-TransModeler'!AD13*$D$221),0.125))","v":0},{"$f":"IF($E$221>0,IFERROR((MROUND(('CongMgt-TransModeler'!AD13-D67-F67-G67-H67-I67),0.125)),0),0)","v":0},{"$f":"MROUND(('CongMgt-TransModeler'!AD13*$F$221),0.125)","v":0},{"$f":"MROUND(('CongMgt-TransModeler'!AD13*$G$221),0.125)","v":0},{"$f":"MROUND(('CongMgt-TransModeler'!AD13*$H$221),0.125)","v":0},{"$f":"MROUND(('CongMgt-TransModeler'!AD13*$I$221),0.125)","v":0},null,null,null,null,null,null,0,{"$error":"#DIV/0!"}]
[3.7,"Add Origin Destination Matrices in TransModeler",null,{"$f":"IF($E$221=0,IFERROR((MROUND(('CongMgt-TransModeler'!AD14-E68-F68-G68-H68-I68),0.125)),0),MROUND(('CongMgt-TransModeler'!AD14*$D$221),0.125))","v":0},{"$f":"IF($E$221>0,IFERROR((MROUND(('CongMgt-TransModeler'!AD14-D68-F68-G68-H68-I68),0.125)),0),0)","v":0},{"$f":"MROUND(('CongMgt-TransModeler'!AD14*$F$221),0.125)","v":0},{"$f":"MROUND(('CongMgt-TransModeler'!AD14*$G$221),0.125)","v":0},{"$f":"MROUND(('CongMgt-TransModeler'!AD14*$H$221),0.125)","v":0},{"$f":"MROUND(('CongMgt-TransModeler'!AD14*$I$221),0.125)","v":0},null,null,null,null,null,null,0,{"$error":"#DIV/0!"}]
[4,"20XX BASE YEAR MODEL",null,null,null,null,null,null,null,null,null,null,null,null,null,{"$f":"IF(SUM(D71:O80)=0,0,\"\")","v":0}]
[4.0999999999999996,"Model Development",null,null,null,null,null,null,null,null,null,null,null,null,null,{"$f":"IF(SUM(D71:O80)=0,0,\"\")","v":0}]
["4.1.1","Initial Model Setup",null,{"$f":"IF($E$221=0,IFERROR((MROUND(('CongMgt-TransModeler'!AD16-E71-F71-G71-H71-I71),0.125)),0),MROUND(('CongMgt-TransModeler'!AD16*$D$221),0.125))","v":0},{"$f":"IF($E$221>0,IFERROR((MROUND(('CongMgt-TransModeler'!AD16-D71-F71-G71-H71-I71),0.125)),0),0)","v":0},{"$f":"MROUND(('CongMgt-TransModeler'!AD16*$F$221),0.125)","v":0},{"$f":"MROUND(('CongMgt-TransModeler'!AD16*$G$221),0.125)","v":0},{"$f":"MROUND(('CongMgt-TransModeler'!AD16*$H$221),0.125)","v":0},{"$f":"MROUND(('CongMgt-TransModeler'!AD16*$I$221),0.125)","v":0},null,null,null,null,null,null,0,{"$f":"SUM((P71/$P$222))","v":{"$error":"#DIV/0!"}}]
["4.1.2","Develop Base Year Model in TransModeler",null,{"$f":"IF($E$221=0,IFERROR((MROUND(('CongMgt-TransModeler'!AD17-E72-F72-G72-H72-I72),0.125)),0),MROUND(('CongMgt-TransModeler'!AD17*$D$221),0.125))","v":0},{"$f":"IF($E$221>0,IFERROR((MROUND(('CongMgt-TransModeler'!AD17-D72-F72-G72-H72-I72),0.125)),0),0)","v":0},{"$f":"MROUND(('CongMgt-TransModeler'!AD17*$F$221),0.125)","v":0},{"$f":"MROUND(('CongMgt-TransModeler'!AD17*$G$221),0.125)","v":0},{"$f":"MROUND(('CongMgt-TransModeler'!AD17*$H$221),0.125)","v":0},{"$f":"MROUND(('CongMgt-TransModeler'!AD17*$I$221),0.125)","v":0},null,null,null,null,null,null,0,{"$error":"#DIV/0!"}]
["4.1.3","Adding Volume Data to Model ",null,{"$f":"IF($E$221=0,IFERROR((MROUND(('CongMgt-TransModeler'!AD19-E73-F73-G73-H73-I73),0.125)),0),MROUND(('CongMgt-TransModeler'!AD19*$D$221),0.125))","v":0},{"$f":"IF($E$221>0,IFERROR((MROUND(('CongMgt-TransModeler'!AD19-D73-F73-G73-H73-I73),0.125)),0),0)","v":0},{"$f":"MROUND(('CongMgt-TransModeler'!AD19*$F$221),0.125)","v":0},{"$f":"MROUND(('CongMgt-TransModeler'!AD19*$G$221),0.125)","v":0},{"$f":"MROUND(('CongMgt-TransModeler'!AD19*$H$221),0.125)","v":0},{"$f":"MROUND(('CongMgt-TransModeler'!AD19*$I$221),0.125)","v":0},null,null,null,null,null,null,0,{"$error":"#DIV/0!"}]
["4.1.4","Optimize Signalized Intersections",null,{"$f":"IF($E$221=0,IFERROR((MROUND(('CongMgt-TransModeler'!AD20-E74-F74-G74-H74-I74),0.125)),0),MROUND(('CongMgt-TransModeler'!AD20*$D$221),0.125))","v":0},{"$f":"IF($E$221>0,IFERROR((MROUND(('CongMgt-TransModeler'!AD20-D74-F74-G74-H74-I74),0.125)),0),0)","v":0},{"$f":"MROUND(('CongMgt-TransModeler'!AD20*$F$221),0.125)","v":0},{"$f":"MROUND(('CongMgt-TransModeler'!AD20*$G$221),0.125)","v":0},{"$f":"MROUND(('CongMgt-TransModeler'!AD20*$H$221),0.125)","v":0},{"$f":"MROUND(('CongMgt-TransModeler'!AD20*$I$221),0.125)","v":0},null,null,null,null,null,null,0,{"$error":"#DIV/0!"}]
["4.1.5","Dynamic Traffic Assignment",null,{"$f":"IF($E$221=0,IFERROR((MROUND(('CongMgt-TransModeler'!AD21-E75-F75-G75-H75-I75),0.125)),0),MROUND(('CongMgt-TransModeler'!AD21*$D$221),0.125))","v":0},{"$f":"IF($E$221>0,IFERROR((MROUND(('CongMgt-TransModeler'!AD21-D75-F75-G75-H75-I75),0.125)),0),0)","v":0},{"$f":"MROUND(('CongMgt-TransModeler'!AD21*$F$221),0.125)","v":0},{"$f":"MROUND(('CongMgt-TransModeler'!AD21*$G$221),0.125)","v":0},{"$f":"MROUND(('CongMgt-TransModeler'!AD21*$H$221),0.125)","v":0},{"$f":"MROUND(('CongMgt-TransModeler'!AD21*$I$221),0.125)","v":0},null,null,null,null,null,null,{"$f":"SUM(D75:O75)","v":0},{"$error":"#DIV/0!"}]
["4.1.6","Code Measures of Effectiveness",null,{"$f":"IF($E$221=0,IFERROR((MROUND(('CongMgt-TransModeler'!AD22-E76-F76-G76-H76-I76),0.125)),0),MROUND(('CongMgt-TransModeler'!AD22*$D$221),0.125))","v":0},{"$f":"IF($E$221>0,IFERROR((MROUND(('CongMgt-TransModeler'!AD22-D76-F76-G76-H76-I76),0.125)),0),0)","v":0},{"$f":"MROUND(('CongMgt-TransModeler'!AD22*$F$221),0.125)","v":0},{"$f":"MROUND(('CongMgt-TransModeler'!AD22*$G$221),0.125)","v":0},{"$f":"MROUND(('CongMgt-TransModeler'!AD22*$H$221),0.125)","v":0},{"$f":"MROUND(('CongMgt-TransModeler'!AD22*$I$221),0.125)","v":0},null,null,null,null,null,null,0,{"$error":"#DIV/0!"}]
["4.1.7","Error Check/Visual Audit/Quality Control",null,{"$f":"IF($E$221=0,IFERROR((MROUND(('CongMgt-TransModeler'!AD23-E77-F77-G77-H77-I77),0.125)),0),MROUND(('CongMgt-TransModeler'!AD23*$D$221),0.125))","v":0},{"$f":"IF($E$221>0,IFERROR((MROUND(('CongMgt-TransModeler'!AD23-D77-F77-G77-H77-I77),0.125)),0),0)","v":0},{"$f":"MROUND(('CongMgt-TransModeler'!AD23*$F$221),0.125)","v":0},{"$f":"MROUND(('CongMgt-TransModeler'!AD23*$G$221),0.125)","v":0},{"$f":"MROUND(('CongMgt-TransModeler'!AD23*$H$221),0.125)","v":0},{"$f":"MROUND(('CongMgt-TransModeler'!AD23*$I$221),0.125)","v":0},null,null,null,null,null,null,0,{"$error":"#DIV/0!"}]
["4.1.8","Default Values/Visual Validation/Calibration",null,{"$f":"IF($E$221=0,IFERROR((MROUND(('CongMgt-TransModeler'!AD24-E78-F78-G78-H78-I78),0.125)),0),MROUND(('CongMgt-TransModeler'!AD24*$D$221),0.125))","v":0},{"$f":"IF($E$221>0,IFERROR((MROUND(('CongMgt-TransModeler'!AD24-D78-F78-G78-H78-I78),0.125)),0),0)","v":0},{"$f":"MROUND(('CongMgt-TransModeler'!AD24*$F$221),0.125)","v":0},{"$f":"MROUND(('CongMgt-TransModeler'!AD24*$G$221),0.125)","v":0},{"$f":"MROUND(('CongMgt-TransModeler'!AD24*$H$221),0.125)","v":0},{"$f":"MROUND(('CongMgt-TransModeler'!AD24*$I$221),0.125)","v":0},null,null,null,null,null,null,0,{"$error":"#DIV/0!"}]
["4.1.9","Run Model/Extract Outputs - Setup Run Controls/Run Simulation",null,{"$f":"IF($E$221=0,IFERROR((MROUND(('CongMgt-TransModeler'!AD25-E79-F79-G79-H79-I79),0.125)),0),MROUND(('CongMgt-TransModeler'!AD25*$D$221),0.125))","v":0},{"$f":"IF($E$221>0,IFERROR((MROUND(('CongMgt-TransModeler'!AD25-D79-F79-G79-H79-I79),0.125)),0),0)","v":0},{"$f":"MROUND(('CongMgt-TransModeler'!AD25*$F$221),0.125)","v":0},{"$f":"MROUND(('CongMgt-TransModeler'!AD25*$G$221),0.125)","v":0},{"$f":"MROUND(('CongMgt-TransModeler'!AD25*$H$221),0.125)","v":0},{"$f":"MROUND(('CongMgt-TransModeler'!AD25*$I$221),0.125)","v":0},null,null,null,null,null,null,{"$f":"SUM(D79:O79)","v":0},{"$error":"#DIV/0!"}]
["4.1.10","Multi-hour Simulation Adjustment",null,{"$f":"IF($E$221=0,IFERROR((MROUND(('CongMgt-TransModeler'!AD26-E80-F80-G80-H80-I80),0.125)),0),MROUND(('CongMgt-TransModeler'!AD26*$D$221),0.125))","v":0},{"$f":"IF($E$221>0,IFERROR((MROUND(('CongMgt-TransModeler'!AD26-D80-F80-G80-H80-I80),0.125)),0),0)","v":0},{"$f":"MROUND(('CongMgt-TransModeler'!AD26*$F$221),0.125)","v":0},{"$f":"MROUND(('CongMgt-TransModeler'!AD26*$G$221),0.125)","v":0},{"$f":"MROUND(('CongMgt-TransModeler'!AD26*$H$221),0.125)","v":0},{"$f":"MROUND(('CongMgt-TransModeler'!AD26*$I$221),0.125)","v":0},null,null,null,null,null,null,0,{"$error":"#DIV/0!"}]
[5,"20XX NO-BUILD ANALYSIS",null,null,null,null,null,null,null,null,null,null,null,null,null,{"$f":"IF(SUM(D83:O90)=0,0,\"\")","v":0}]
[5.0999999999999996,"Model Development",null,null,null,null,null,null,null,null,null,null,null,null,null,{"$f":"IF(SUM(D83:O90)=0,0,\"\")","v":0}]
["5.1.1","Develop Future Year No-Build Model",null,{"$f":"IF($E$221=0,IFERROR((MROUND(('CongMgt-TransModeler'!AD28-E83-F83-G83-H83-I83),0.125)),0),MROUND(('CongMgt-TransModeler'!AD28*$D$221),0.125))","v":0},{"$f":"IF($E$221>0,IFERROR((MROUND(('CongMgt-TransModeler'!AD28-D83-F83-G83-H83-I83),0.125)),0),0)","v":0},{"$f":"MROUND(('CongMgt-TransModeler'!AD28*$F$221),0.125)","v":0},{"$f":"MROUND(('CongMgt-TransModeler'!AD28*$G$221),0.125)","v":0},{"$f":"MROUND(('CongMgt-TransModeler'!AD28*$H$221),0.125)","v":0},{"$f":"MROUND(('CongMgt-TransModeler'!AD28*$I$221),0.125)","v":0},null,null,null,null,null,null,0,{"$f":"SUM((P83/$P$222))","v":{"$error":"#DIV/0!"}}]
["5.1.2","Adding Volume Data to Model",null,{"$f":"IF($E$221=0,IFERROR((MROUND(('CongMgt-TransModeler'!AD29-E84-F84-G84-H84-I84),0.125)),0),MROUND(('CongMgt-TransModeler'!AD29*$D$221),0.125))","v":0},{"$f":"IF($E$221>0,IFERROR((MROUND(('CongMgt-TransModeler'!AD29-D84-F84-G84-H84-I84),0.125)),0),0)","v":0},{"$f":"MROUND(('CongMgt-TransModeler'!AD29*$F$221),0.125)","v":0},{"$f":"MROUND(('CongMgt-TransModeler'!AD29*$G$221),0.125)","v":0},{"$f":"MROUND(('CongMgt-TransModeler'!AD29*$H$221),0.125)","v":0},{"$f":"MROUND(('CongMgt-TransModeler'!AD29*$I$221),0.125)","v":0},null,null,null,null,null,null,0,{"$error":"#DIV/0!"}]
["5.1.3","Optimize Signalized Intersections",null,{"$f":"IF($E$221=0,IFERROR((MROUND(('CongMgt-TransModeler'!AD30-E85-F85-G85-H85-I85),0.125)),0),MROUND(('CongMgt-TransModeler'!AD30*$D$221),0.125))","v":0},{"$f":"IF($E$221>0,IFERROR((MROUND(('CongMgt-TransModeler'!AD30-D85-F85-G85-H85-I85),0.125)),0),0)","v":0},{"$f":"MROUND(('CongMgt-TransModeler'!AD30*$F$221),0.125)","v":0},{"$f":"MROUND(('CongMgt-TransModeler'!AD30*$G$221),0.125)","v":0},{"$f":"MROUND(('CongMgt-TransModeler'!AD30*$H$221),0.125)","v":0},{"$f":"MROUND(('CongMgt-TransModeler'!AD30*$I$221),0.125)","v":0},null,null,null,null,null,null,0,{"$error":"#DIV/0!"}]
["5.1.4","Dynamic Traffic Assignment",null,{"$f":"IF($E$221=0,IFERROR((MROUND(('CongMgt-TransModeler'!AD31-E86-F86-G86-H86-I86),0.125)),0),MROUND(('CongMgt-TransModeler'!AD31*$D$221),0.125))","v":0},{"$f":"IF($E$221>0,IFERROR((MROUND(('CongMgt-TransModeler'!AD31-D86-F86-G86-H86-I86),0.125)),0),0)","v":0},{"$f":"MROUND(('CongMgt-TransModeler'!AD31*$F$221),0.125)","v":0},{"$f":"MROUND(('CongMgt-TransModeler'!AD31*$G$221),0.125)","v":0},{"$f":"MROUND(('CongMgt-TransModeler'!AD31*$H$221),0.125)","v":0},{"$f":"MROUND(('CongMgt-TransModeler'!AD31*$I$221),0.125)","v":0},null,null,null,null,null,null,0,{"$error":"#DIV/0!"}]
["5.1.5","Code Measures of Effectiveness",null,{"$f":"IF($E$221=0,IFERROR((MROUND(('CongMgt-TransModeler'!AD32-E87-F87-G87-H87-I87),0.125)),0),MROUND(('CongMgt-TransModeler'!AD32*$D$221),0.125))","v":0},{"$f":"IF($E$221>0,IFERROR((MROUND(('CongMgt-TransModeler'!AD32-D87-F87-G87-H87-I87),0.125)),0),0)","v":0},{"$f":"MROUND(('CongMgt-TransModeler'!AD32*$F$221),0.125)","v":0},{"$f":"MROUND(('CongMgt-TransModeler'!AD32*$G$221),0.125)","v":0},{"$f":"MROUND(('CongMgt-TransModeler'!AD32*$H$221),0.125)","v":0},{"$f":"MROUND(('CongMgt-TransModeler'!AD32*$I$221),0.125)","v":0},null,null,null,null,null,null,0,{"$error":"#DIV/0!"}]
["5.1.6","Error Check/Visual Audit/Quality Control",null,{"$f":"IF($E$221=0,IFERROR((MROUND(('CongMgt-TransModeler'!AD33-E88-F88-G88-H88-I88),0.125)),0),MROUND(('CongMgt-TransModeler'!AD33*$D$221),0.125))","v":0},{"$f":"IF($E$221>0,IFERROR((MROUND(('CongMgt-TransModeler'!AD33-D88-F88-G88-H88-I88),0.125)),0),0)","v":0},{"$f":"MROUND(('CongMgt-TransModeler'!AD33*$F$221),0.125)","v":0},{"$f":"MROUND(('CongMgt-TransModeler'!AD33*$G$221),0.125)","v":0},{"$f":"MROUND(('CongMgt-TransModeler'!AD33*$H$221),0.125)","v":0},{"$f":"MROUND(('CongMgt-TransModeler'!AD33*$I$221),0.125)","v":0},null,null,null,null,null,null,0,{"$error":"#DIV/0!"}]
["5.1.7","Run Model/Extract Outputs - Setup Run Controls/Run Simulation",null,{"$f":"IF($E$221=0,IFERROR((MROUND(('CongMgt-TransModeler'!AD34-E89-F89-G89-H89-I89),0.125)),0),MROUND(('CongMgt-TransModeler'!AD34*$D$221),0.125))","v":0},{"$f":"IF($E$221>0,IFERROR((MROUND(('CongMgt-TransModeler'!AD34-D89-F89-G89-H89-I89),0.125)),0),0)","v":0},{"$f":"MROUND(('CongMgt-TransModeler'!AD34*$F$221),0.125)","v":0},{"$f":"MROUND(('CongMgt-TransModeler'!AD34*$G$221),0.125)","v":0},{"$f":"MROUND(('CongMgt-TransModeler'!AD34*$H$221),0.125)","v":0},{"$f":"MROUND(('CongMgt-TransModeler'!AD34*$I$221),0.125)","v":0},null,null,null,null,null,null,{"$f":"SUM(D89:O89)","v":0},{"$error":"#DIV/0!"}]
["5.1.8","Multi-hour Simulation Adjustment",null,{"$f":"IF($E$221=0,IFERROR((MROUND(('CongMgt-TransModeler'!AD35-E90-F90-G90-H90-I90),0.125)),0),MROUND(('CongMgt-TransModeler'!AD35*$D$221),0.125))","v":0},{"$f":"IF($E$221>0,IFERROR((MROUND(('CongMgt-TransModeler'!AD35-D90-F90-G90-H90-I90),0.125)),0),0)","v":0},{"$f":"MROUND(('CongMgt-TransModeler'!AD35*$F$221),0.125)","v":0},{"$f":"MROUND(('CongMgt-TransModeler'!AD35*$G$221),0.125)","v":0},{"$f":"MROUND(('CongMgt-TransModeler'!AD35*$H$221),0.125)","v":0},{"$f":"MROUND(('CongMgt-TransModeler'!AD35*$I$221),0.125)","v":0},null,null,null,null,null,null,0,{"$error":"#DIV/0!"}]
[6,"20XX BUILD ANALYSIS",null,null,null,null,null,null,null,null,null,null,null,null,null,{"$f":"IF(SUM(D93:O101)=0,0,\"\")","v":0}]
[6.1,"Model Development",null,null,null,null,null,null,null,null,null,null,null,null,null,{"$f":"IF(SUM(D93:O101)=0,0,\"\")","v":0}]
["6.1.1","Develop Future Year Build Model ",null,{"$f":"IF($E$221=0,IFERROR((MROUND(('CongMgt-TransModeler'!AD37-E93-F93-G93-H93-I93),0.125)),0),MROUND(('CongMgt-TransModeler'!AD37*$D$221),0.125))","v":0},{"$f":"IF($E$221>0,IFERROR((MROUND(('CongMgt-TransModeler'!AD37-D93-F93-G93-H93-I93),0.125)),0),0)","v":0},{"$f":"MROUND(('CongMgt-TransModeler'!AD37*$F$221),0.125)","v":0},{"$f":"MROUND(('CongMgt-TransModeler'!AD37*$G$221),0.125)","v":0},{"$f":"MROUND(('CongMgt-TransModeler'!AD37*$H$221),0.125)","v":0},{"$f":"MROUND(('CongMgt-TransModeler'!AD37*$I$221),0.125)","v":0},null,null,null,null,null,null,{"$f":"SUM(D93:O93)","v":0},{"$f":"SUM((P93/$P$222))","v":{"$error":"#DIV/0!"}}]
["6.1.2","Adding Volume Data to Model ",null,{"$f":"IF($E$221=0,IFERROR((MROUND(('CongMgt-TransModeler'!AD38-E94-F94-G94-H94-I94),0.125)),0),MROUND(('CongMgt-TransModeler'!AD38*$D$221),0.125))","v":0},{"$f":"IF($E$221>0,IFERROR((MROUND(('CongMgt-TransModeler'!AD38-D94-F94-G94-H94-I94),0.125)),0),0)","v":0},{"$f":"MROUND(('CongMgt-TransModeler'!AD38*$F$221),0.125)","v":0},{"$f":"MROUND(('CongMgt-TransModeler'!AD38*$G$221),0.125)","v":0},{"$f":"MROUND(('CongMgt-TransModeler'!AD38*$H$221),0.125)","v":0},{"$f":"MROUND(('CongMgt-TransModeler'!AD38*$I$221),0.125)","v":0},null,null,null,null,null,null,{"$f":"SUM(D94:O94)","v":0},{"$error":"#DIV/0!"}]
["6.1.3","Optimize Signalized Intersections",null,{"$f":"IF($E$221=0,IFERROR((MROUND(('CongMgt-TransModeler'!AD39-E95-F95-G95-H95-I95),0.125)),0),MROUND(('CongMgt-TransModeler'!AD39*$D$221),0.125))","v":0},{"$f":"IF($E$221>0,IFERROR((MROUND(('CongMgt-TransModeler'!AD39-D95-F95-G95-H95-I95),0.125)),0),0)","v":0},{"$f":"MROUND(('CongMgt-TransModeler'!AD39*$F$221),0.125)","v":0},{"$f":"MROUND(('CongMgt-TransModeler'!AD39*$G$221),0.125)","v":0},{"$f":"MROUND(('CongMgt-TransModeler'!AD39*$H$221),0.125)","v":0},{"$f":"MROUND(('CongMgt-TransModeler'!AD39*$I$221),0.125)","v":0},null,null,null,null,null,null,0,{"$error":"#DIV/0!"}]
["6.1.4","Dynamic Traffic Assignment",null,{"$f":"IF($E$221=0,IFERROR((MROUND(('CongMgt-TransModeler'!AD40-E96-F96-G96-H96-I96),0.125)),0),MROUND(('CongMgt-TransModeler'!AD40*$D$221),0.125))","v":0},{"$f":"IF($E$221>0,IFERROR((MROUND(('CongMgt-TransModeler'!AD40-D96-F96-G96-H96-I96),0.125)),0),0)","v":0},{"$f":"MROUND(('CongMgt-TransModeler'!AD40*$F$221),0.125)","v":0},{"$f":"MROUND(('CongMgt-TransModeler'!AD40*$G$221),0.125)","v":0},{"$f":"MROUND(('CongMgt-TransModeler'!AD40*$H$221),0.125)","v":0},{"$f":"MROUND(('CongMgt-TransModeler'!AD40*$I$221),0.125)","v":0},null,null,null,null,null,null,0,{"$error":"#DIV/0!"}]
["6.1.5","Code Measures of Effectiveness",null,{"$f":"IF($E$221=0,IFERROR((MROUND(('CongMgt-TransModeler'!AD41-E97-F97-G97-H97-I97),0.125)),0),MROUND(('CongMgt-TransModeler'!AD41*$D$221),0.125))","v":0},{"$f":"IF($E$221>0,IFERROR((MROUND(('CongMgt-TransModeler'!AD41-D97-F97-G97-H97-I97),0.125)),0),0)","v":0},{"$f":"MROUND(('CongMgt-TransModeler'!AD41*$F$221),0.125)","v":0},{"$f":"MROUND(('CongMgt-TransModeler'!AD41*$G$221),0.125)","v":0},{"$f":"MROUND(('CongMgt-TransModeler'!AD41*$H$221),0.125)","v":0},{"$f":"MROUND(('CongMgt-TransModeler'!AD41*$I$221),0.125)","v":0},null,null,null,null,null,null,0,{"$error":"#DIV/0!"}]
["6.1.6","Error Check/Visual Audit/Quality Control",null,{"$f":"IF($E$221=0,IFERROR((MROUND(('CongMgt-TransModeler'!AD42-E98-F98-G98-H98-I98),0.125)),0),MROUND(('CongMgt-TransModeler'!AD42*$D$221),0.125))","v":0},{"$f":"IF($E$221>0,IFERROR((MROUND(('CongMgt-TransModeler'!AD42-D98-F98-G98-H98-I98),0.125)),0),0)","v":0},{"$f":"MROUND(('CongMgt-TransModeler'!AD42*$F$221),0.125)","v":0},{"$f":"MROUND(('CongMgt-TransModeler'!AD42*$G$221),0.125)","v":0},{"$f":"MROUND(('CongMgt-TransModeler'!AD42*$H$221),0.125)","v":0},{"$f":"MROUND(('CongMgt-TransModeler'!AD42*$I$221),0.125)","v":0},null,null,null,null,null,null,0,{"$error":"#DIV/0!"}]
["6.1.7","Run Model/Extract Outputs - Setup Run Controls/Run Simulation",null,{"$f":"IF($E$221=0,IFERROR((MROUND(('CongMgt-TransModeler'!AD43-E99-F99-G99-H99-I99),0.125)),0),MROUND(('CongMgt-TransModeler'!AD43*$D$221),0.125))","v":0},{"$f":"IF($E$221>0,IFERROR((MROUND(('CongMgt-TransModeler'!AD43-D99-F99-G99-H99-I99),0.125)),0),0)","v":0},{"$f":"MROUND(('CongMgt-TransModeler'!AD43*$F$221),0.125)","v":0},{"$f":"MROUND(('CongMgt-TransModeler'!AD43*$G$221),0.125)","v":0},{"$f":"MROUND(('CongMgt-TransModeler'!AD43*$H$221),0.125)","v":0},{"$f":"MROUND(('CongMgt-TransModeler'!AD43*$I$221),0.125)","v":0},null,null,null,null,null,null,0,{"$error":"#DIV/0!"}]
["6.1.8","Multi-hour Simulation Adjustment",null,{"$f":"IF($E$221=0,IFERROR((MROUND(('CongMgt-TransModeler'!AD44-E100-F100-G100-H100-I100),0.125)),0),MROUND(('CongMgt-TransModeler'!AD44*$D$221),0.125))","v":0},{"$f":"IF($E$221>0,IFERROR((MROUND(('CongMgt-TransModeler'!AD44-D100-F100-G100-H100-I100),0.125)),0),0)","v":0},{"$f":"MROUND(('CongMgt-TransModeler'!AD44*$F$221),0.125)","v":0},{"$f":"MROUND(('CongMgt-TransModeler'!AD44*$G$221),0.125)","v":0},{"$f":"MROUND(('CongMgt-TransModeler'!AD44*$H$221),0.125)","v":0},{"$f":"MROUND(('CongMgt-TransModeler'!AD44*$I$221),0.125)","v":0},null,null,null,null,null,null,{"$f":"SUM(D100:O100)","v":0},{"$error":"#DIV/0!"}]
["6.1.9","Design Iterations ",null,{"$f":"IF($E$221=0,IFERROR((MROUND(('CongMgt-TransModeler'!AD45-E101-F101-G101-H101-I101),0.125)),0),MROUND(('CongMgt-TransModeler'!AD45*$D$221),0.125))","v":0},{"$f":"IF($E$221>0,IFERROR((MROUND(('CongMgt-TransModeler'!AD45-D101-F101-G101-H101-I101),0.125)),0),0)","v":0},{"$f":"MROUND(('CongMgt-TransModeler'!AD45*$F$221),0.125)","v":0},{"$f":"MROUND(('CongMgt-TransModeler'!AD45*$G$221),0.125)","v":0},{"$f":"MROUND(('CongMgt-TransModeler'!AD45*$H$221),0.125)","v":0},{"$f":"MROUND(('CongMgt-TransModeler'!AD45*$I$221),0.125)","v":0},null,null,null,null,null,null,0,{"$error":"#DIV/0!"}]
[7,"20XX BUILD ANALYSIS",null,null,null,null,null,null,null,null,null,null,null,null,null,{"$f":"IF(SUM(D104:O107)=0,0,\"\")","v":0}]
[7.1,"Model Development",null,null,null,null,null,null,null,null,null,null,null,null,null,{"$f":"IF(SUM(D104:O107)=0,0,\"\")","v":0}]
["7.1.1","Adding Volume Data to Model ",null,{"$f":"IF($E$221=0,IFERROR((MROUND(('CongMgt-TransModeler'!AD47-E104-F104-G104-H104-I104),0.125)),0),MROUND(('CongMgt-TransModeler'!AD47*$D$221),0.125))","v":0},{"$f":"IF($E$221>0,IFERROR((MROUND(('CongMgt-TransModeler'!AD47-D104-F104-G104-H104-I104),0.125)),0),0)","v":0},{"$f":"MROUND(('CongMgt-TransModeler'!AD47*$F$221),0.125)","v":0},{"$f":"MROUND(('CongMgt-TransModeler'!AD47*$G$221),0.125)","v":0},{"$f":"MROUND(('CongMgt-TransModeler'!AD47*$H$221),0.125)","v":0},{"$f":"MROUND(('CongMgt-TransModeler'!AD47*$I$221),0.125)","v":0},null,null,null,null,null,null,0,{"$f":"SUM((P104/$P$222))","v":{"$error":"#DIV/0!"}}]
["7.1.2","Optimize Signalized Intersections",null,{"$f":"IF($E$221=0,IFERROR((MROUND(('CongMgt-TransModeler'!AD48-E105-F105-G105-H105-I105),0.125)),0),MROUND(('CongMgt-TransModeler'!AD48*$D$221),0.125))","v":0},{"$f":"IF($E$221>0,IFERROR((MROUND(('CongMgt-TransModeler'!AD48-D105-F105-G105-H105-I105),0.125)),0),0)","v":0},{"$f":"MROUND(('CongMgt-TransModeler'!AD48*$F$221),0.125)","v":0},{"$f":"MROUND(('CongMgt-TransModeler'!AD48*$G$221),0.125)","v":0},{"$f":"MROUND(('CongMgt-TransModeler'!AD48*$H$221),0.125)","v":0},{"$f":"MROUND(('CongMgt-TransModeler'!AD48*$I$221),0.125)","v":0},null,null,null,null,null,null,0,{"$f":"SUM((P105/$P$222))","v":{"$error":"#DIV/0!"}}]
["7.1.3","Dynamic Traffic Assignment",null,{"$f":"IF($E$221=0,IFERROR((MROUND(('CongMgt-TransModeler'!AD49-E106-F106-G106-H106-I106),0.125)),0),MROUND(('CongMgt-TransModeler'!AD49*$D$221),0.125))","v":0},{"$f":"IF($E$221>0,IFERROR((MROUND(('CongMgt-TransModeler'!AD49-D106-F106-G106-H106-I106),0.125)),0),0)","v":0},{"$f":"MROUND(('CongMgt-TransModeler'!AD49*$F$221),0.125)","v":0},{"$f":"MROUND(('CongMgt-TransModeler'!AD49*$G$221),0.125)","v":0},{"$f":"MROUND(('CongMgt-TransModeler'!AD49*$H$221),0.125)","v":0},{"$f":"MROUND(('CongMgt-TransModeler'!AD49*$I$221),0.125)","v":0},null,null,null,null,null,null,0,{"$f":"SUM((P106/$P$222))","v":{"$error":"#DIV/0!"}}]
["7.1.4","Run Model/Extract Outputs - Setup Run Controls/Run Simulation",null,{"$f":"IF($E$221=0,IFERROR((MROUND(('CongMgt-TransModeler'!AD50-E107-F107-G107-H107-I107),0.125)),0),MROUND(('CongMgt-TransModeler'!AD50*$D$221),0.125))","v":0},{"$f":"IF($E$221>0,IFERROR((MROUND(('CongMgt-TransModeler'!AD50-D107-F107-G107-H107-I107),0.125)),0),0)","v":0},{"$f":"MROUND(('CongMgt-TransModeler'!AD50*$F$221),0.125)","v":0},{"$f":"MROUND(('CongMgt-TransModeler'!AD50*$G$221),0.125)","v":0},{"$f":"MROUND(('CongMgt-TransModeler'!AD50*$H$221),0.125)","v":0},{"$f":"MROUND(('CongMgt-TransModeler'!AD50*$I$221),0.125)","v":0},null,null,null,null,null,null,{"$f":"SUM(D107:O107)","v":0},{"$f":"SUM((P107/$P$222))","v":{"$error":"#DIV/0!"}}]
[8,"DOCUMENTATION",null,null,null,null,null,null,null,null,null,null,null,null,null,{"$f":"IF(SUM(D109:O110)=0,0,\"\")","v":0}]
[8.1,"Traffic Operations Analysis Technical Memorandum",null,{"$f":"IF($E$221=0,IFERROR((MROUND(('CongMgt-TransModeler'!AD52-E109-F109-G109-H109-I109),0.125)),0),MROUND(('CongMgt-TransModeler'!AD52*$D$221),0.125))","v":0},{"$f":"IF($E$221>0,IFERROR((MROUND(('CongMgt-TransModeler'!AD52-D109-F109-G109-H109-I109),0.125)),0),0)","v":0},{"$f":"MROUND(('CongMgt-TransModeler'!AD52*$F$221),0.125)","v":0},{"$f":"MROUND(('CongMgt-TransModeler'!AD52*$G$221),0.125)","v":0},{"$f":"MROUND(('CongMgt-TransModeler'!AD52*$H$221),0.125)","v":0},{"$f":"MROUND(('CongMgt-TransModeler'!AD52*$I$221),0.125)","v":0},null,null,null,null,null,null,0,{"$f":"SUM((P109/$P$222))","v":{"$error":"#DIV/0!"}}]
[8.1999999999999993,"Interchange Access Report",null,{"$f":"IF($E$221=0,IFERROR((MROUND(('CongMgt-TransModeler'!AD55-E110-F110-G110-H110-I110),0.125)),0),MROUND(('CongMgt-TransModeler'!AD55*$D$221),0.125))","v":0},{"$f":"IF($E$221>0,IFERROR((MROUND(('CongMgt-TransModeler'!AD55-D110-F110-G110-H110-I110),0.125)),0),0)","v":0},{"$f":"MROUND(('CongMgt-TransModeler'!AD55*$F$221),0.125)","v":0},{"$f":"MROUND(('CongMgt-TransModeler'!AD55*$G$221),0.125)","v":0},{"$f":"MROUND(('CongMgt-TransModeler'!AD55*$H$221),0.125)","v":0},{"$f":"MROUND(('CongMgt-TransModeler'!AD55*$I$221),0.125)","v":0},null,null,null,null,null,null,0,{"$error":"#DIV/0!"}]
[null,null,null,null,null,null,null,null,null,null,null,null,null,null,null,{"$f":"SUM(D111:O111)","v":0},{"$error":"#DIV/0!"}]
[null,null,null,null,null,null,null,null,null,null,null,null,null,null,null,0,{"$error":"#DIV/0!"}]
[null,null,null,null,null,null,null,null,null,null,null,null,null,null,null,0,{"$error":"#DIV/0!"}]
[null,null,null,null,null,null,null,null,null,null,null,null,null,null,null,0,{"$error":"#DIV/0!"}]
[null,null,null,null,null,null,null,null,null,null,null,null,null,null,null,0,{"$error":"#DIV/0!"}]
[null,null,null,null,null,null,null,null,null,null,null,null,null,null,null,0,{"$error":"#DIV/0!"}]
[null,null,null,null,null,null,null,null,null,null,null,null,null,null,null,0,{"$error":"#DIV/0!"}]
[null,null,null,null,null,null,null,null,null,null,null,null,null,null,null,0,{"$error":"#DIV/0!"}]
[null,null,null,null,null,null,null,null,null,null,null,null,null,null,null,0,{"$error":"#DIV/0!"}]
[null,null,null,null,null,null,null,null,null,null,null,null,null,null,null,0,{"$error":"#DIV/0!"}]
[null,"PLEASE KEY ANY OTHER ACTIVITY OR TASKS BELOW",null,null,null,null,null,null,null,null,null,null,null,null,null,0,{"$error":"#DIV/0!"}]
[null,null,null,null,null,null,null,null,null,null,null,null,null,null,null,0,{"$error":"#DIV/0!"}]
[null,null,null,null,null,null,null,null,null,null,null,null,null,null,null,0,{"$error":"#DIV/0!"}]
[null,null,null,null,null,null,null,null,null,null,null,null,null,null,null,0,{"$error":"#DIV/0!"}]
[null,null,null,null,null,null,null,null,null,null,null,null,null,null,null,0,{"$error":"#DIV/0!"}]
[null,null,null,null,null,null,null,null,null,null,null,null,null,null,null,0,{"$error":"#DIV/0!"}]
[null,null,null,null,null,null,null,null,null,null,null,null,null,null,null,{"$f":"SUM(D127:O127)","v":0},{"$error":"#DIV/0!"}]
[null,null,null,null,null,null,null,null,null,null,null,null,null,null,null,{"$f":"SUM(D128:O128)","v":0},{"$error":"#DIV/0!"}]
[null,null,null,null,null,null,null,null,null,null,null,null,null,null,null,0,{"$error":"#DIV/0!"}]
[null,null,null,null,null,null,null,null,null,null,null,null,null,null,null,{"$f":"SUM(D130:O130)","v":0},{"$error":"#DIV/0!"}]
[null,null,null,null,null,null,null,null,null,null,null,null,null,null,null,0,{"$error":"#DIV/0!"}]
[null,null,null,null,null,null,null,null,null,null,null,null,null,null,null,{"$f":"SUM(D132:O132)","v":0},{"$f":"SUM((P132/$P$222))","v":{"$error":"#DIV/0!"}}]
[null,null,null,null,null,null,null,null,null,null,null,null,null,null,null,{"$f":"SUM(D133:O133)","v":0},{"$error":"#DIV/0!"}]
[null,null,null,null,null,null,null,null,null,null,null,null,null,null,null,0,{"$error":"#DIV/0!"}]
[null,null,null,null,null,null,null,null,null,null,null,null,null,null,null,0,{"$error":"#DIV/0!"}]
[null,null,null,null,null,null,null,null,null,null,null,null,null,null,null,0,{"$error":"#DIV/0!"}]
[null,null,null,null,null,null,null,null,null,null,null,null,null,null,null,0,{"$error":"#DIV/0!"}]
[null,null,null,null,null,null,null,null,null,null,null,null,null,null,null,0,{"$error":"#DIV/0!"}]
[null,null,null,null,null,null,null,null,null,null,null,null,null,null,null,0,{"$error":"#DIV/0!"}]
[null,null,null,null,null,null,null,null,null,null,null,null,null,null,null,{"$f":"SUM(D140:O140)","v":0},{"$error":"#DIV/0!"}]
[null,null,null,null,null,null,null,null,null,null,null,null,null,null,null,0,{"$error":"#DIV/0!"}]
[null,null,null,null,null,null,null,null,null,null,null,null,null,null,null,0,{"$error":"#DIV/0!"}]
[null,null,null,null,null,null,null,null,null,null,null,null,null,null,null,0,{"$error":"#DIV/0!"}]
[null,null,null,null,null,null,null,null,null,null,null,null,null,null,null,0,{"$error":"#DIV/0!"}]
[null,null,null,null,null,null,null,null,null,null,null,null,null,null,null,{"$f":"SUM(D145:O145)","v":0},{"$error":"#DIV/0!"}]
[null,null,null,null,null,null,null,null,null,null,null,null,null,null,null,0,{"$error":"#DIV/0!"}]
[null,null,null,null,null,null,null,null,null,null,null,null,null,null,null,0,{"$error":"#DIV/0!"}]
[null,null,null,null,null,null,null,null,null,null,null,null,null,null,null,0,{"$error":"#DIV/0!"}]
[null,null,null,null,null,null,null,null,null,null,null,null,null,null,null,0,{"$error":"#DIV/0!"}]
[null,null,null,null,null,null,null,null,null,null,null,null,null,null,null,0,{"$error":"#DIV/0!"}]
[null,null,null,null,null,null,null,null,null,null,null,null,null,null,null,0,{"$error":"#DIV/0!"}]
[null,null,null,null,null,null,null,null,null,null,null,null,null,null,null,0,{"$error":"#DIV/0!"}]
[null,null,null,null,null,null,null,null,null,null,null,null,null,null,null,0,{"$error":"#DIV/0!"}]
[null,null,null,null,null,null,null,null,null,null,null,null,null,null,null,0,{"$error":"#DIV/0!"}]
[null,null,null,null,null,null,null,null,null,null,null,null,null,null,null,0,{"$f":"SUM((P155/$P$222))","v":{"$error":"#DIV/0!"}}]
[null,null,null,null,null,null,null,null,null,null,null,null,null,null,null,{"$f":"SUM(D156:O156)","v":0},{"$error":"#DIV/0!"}]
[null,null,null,null,null,null,null,null,null,null,null,null,null,null,null,{"$f":"SUM(D157:O157)","v":0},{"$error":"#DIV/0!"}]
[null,null,null,null,null,null,null,null,null,null,null,null,null,null,null,0,{"$error":"#DIV/0!"}]
[null,null,null,null,null,null,null,null,null,null,null,null,null,null,null,0,{"$error":"#DIV/0!"}]
[null,null,null,null,null,null,null,null,null,null,null,null,null,null,null,0,{"$error":"#DIV/0!"}]
[null,null,null,null,null,null,null,null,null,null,null,null,null,null,null,0,{"$error":"#DIV/0!"}]
[null,null,null,null,null,null,null,null,null,null,null,null,null,null,null,0,{"$error":"#DIV/0!"}]
[null,null,null,null,null,null,null,null,null,null,null,null,null,null,null,0,{"$error":"#DIV/0!"}]
[null,null,null,null,null,null,null,null,null,null,null,null,null,null,null,0,{"$error":"#DIV/0!"}]
[null,null,null,null,null,null,null,null,null,null,null,null,null,null,null,0,{"$error":"#DIV/0!"}]
[null,null,null,null,null,null,null,null,null,null,null,null,null,null,null,0,{"$error":"#DIV/0!"}]
[null,null,null,null,null,null,null,null,null,null,null,null,null,null,null,0,{"$error":"#DIV/0!"}]
[null,null,null,null,null,null,null,null,null,null,null,null,null,null,null,0,{"$error":"#DIV/0!"}]
[null,null,null,null,null,null,null,null,null,null,null,null,null,null,null,{"$f":"SUM(D169:O169)","v":0},{"$error":"#DIV/0!"}]
[null,null,null,null,null,null,null,null,null,null,null,null,null,null,null,0,{"$error":"#DIV/0!"}]
[null,null,null,null,null,null,null,null,null,null,null,null,null,null,null,0,{"$error":"#DIV/0!"}]
[null,null,null,null,null,null,null,null,null,null,null,null,null,null,null,{"$f":"SUM(D172:O172)","v":0},{"$error":"#DIV/0!"}]
[null,null,null,null,null,null,null,null,null,null,null,null,null,null,null,0,{"$error":"#DIV/0!"}]
[null,null,null,null,null,null,null,null,null,null,null,null,null,null,null,0,{"$error":"#DIV/0!"}]
[null,null,null,null,null,null,null,null,null,null,null,null,null,null,null,0,{"$error":"#DIV/0!"}]
[null,null,null,null,null,null,null,null,null,null,null,null,null,null,null,0,{"$error":"#DIV/0!"}]
[null,null,null,null,null,null,null,null,null,null,null,null,null,null,null,0,{"$error":"#DIV/0!"}]
[null,null,null,null,null,null,null,null,null,null,null,null,null,null,null,0,{"$error":"#DIV/0!"}]
[null,null,null,null,null,null,null,null,null,null,null,null,null,null,null,0,{"$error":"#DIV/0!"}]
[null,null,null,null,null,null,null,null,null,null,null,null,null,null,null,{"$f":"SUM(D180:O180)","v":0},{"$error":"#DIV/0!"}]
[null,null,null,null,null,null,null,null,null,null,null,null,null,null,null,{"$f":"SUM(D181:O181)","v":0},{"$error":"#DIV/0!"}]
[null,null,null,null,null,null,null,null,null,null,null,null,null,null,null,0,{"$error":"#DIV/0!"}]
[null,null,null,null,null,null,null,null,null,null,null,null,null,null,null,0,{"$error":"#DIV/0!"}]
[null,null,null,null,null,null,null,null,null,null,null,null,null,null,null,0,{"$error":"#DIV/0!"}]
[null,null,null,null,null,null,null,null,null,null,null,null,null,null,null,0,{"$error":"#DIV/0!"}]
[null,null,null,null,null,null,null,null,null,null,null,null,null,null,null,0,{"$error":"#DIV/0!"}]
[null,null,null,null,null,null,null,null,null,null,null,null,null,null,null,0,{"$f":"SUM((P187/$P$222))","v":{"$error":"#DIV/0!"}}]
[null,null,null,null,null,null,null,null,null,null,null,null,null,null,null,{"$f":"SUM(D188:O188)","v":0},{"$error":"#DIV/0!"}]
[null,null,null,null,null,null,null,null,null,null,null,null,null,null,null,0,{"$error":"#DIV/0!"}]
[null,null,null,null,null,null,null,null,null,null,null,null,null,null,null,0,{"$error":"#DIV/0!"}]
[null,null,null,null,null,null,null,null,null,null,null,null,null,null,null,0,{"$error":"#DIV/0!"}]
[null,null,null,null,null,null,null,null,null,null,null,null,null,null,null,0,{"$error":"#DIV/0!"}]
[null,null,null,null,null,null,null,null,null,null,null,null,null,null,null,{"$f":"SUM(D193:O193)","v":0},{"$error":"#DIV/0!"}]
[null,null,null,null,null,null,null,null,null,null,null,null,null,null,null,0,{"$error":"#DIV/0!"}]
[null,null,null,null,null,null,null,null,null,null,null,null,null,null,null,0,{"$error":"#DIV/0!"}]
[null,null,null,null,null,null,null,null,null,null,null,null,null,null,null,0,{"$error":"#DIV/0!"}]
[null,null,null,null,null,null,null,null,null,null,null,null,null,null,null,0,{"$error":"#DIV/0!"}]
[null,null,null,null,null,null,null,null,null,null,null,null,null,null,null,0,{"$error":"#DIV/0!"}]
[null,null,null,null,null,null,null,null,null,null,null,null,null,null,null,0,{"$error":"#DIV/0!"}]
[null,null,null,null,null,null,null,null,null,null,null,null,null,null,null,0,{"$error":"#DIV/0!"}]
[null,null,null,null,null,null,null,null,null,null,null,null,null,null,null,0,{"$error":"#DIV/0!"}]
[null,null,null,null,null,null,null,null,null,null,null,null,null,null,null,0,{"$error":"#DIV/0!"}]
[null,null,null,null,null,null,null,null,null,null,null,null,null,null,null,0,{"$error":"#DIV/0!"}]
[null,null,null,null,null,null,null,null,null,null,null,null,null,null,null,{"$f":"SUM(D204:O204)","v":0},{"$error":"#DIV/0!"}]
[null,null,null,null,null,null,null,null,null,null,null,null,null,null,null,{"$f":"SUM(D205:O205)","v":0},{"$error":"#DIV/0!"}]
[null,null,null,null,null,null,null,null,null,null,null,null,null,null,null,0,{"$error":"#DIV/0!"}]
[null,null,null,null,null,null,null,null,null,null,null,null,null,null,null,0,{"$error":"#DIV/0!"}]
[null,null,null,null,null,null,null,null,null,null,null,null,null,null,null,0,{"$error":"#DIV/0!"}]
[null,null,null,null,null,null,null,null,null,null,null,null,null,null,null,0,{"$error":"#DIV/0!"}]
[null,null,null,null,null,null,null,null,null,null,null,null,null,null,null,0,{"$error":"#DIV/0!"}]
[null,null,null,null,null,null,null,null,null,null,null,null,null,null,null,0,{"$error":"#DIV/0!"}]
[null,null,null,null,null,null,null,null,null,null,null,null,null,null,null,0,{"$error":"#DIV/0!"}]
[null,null,null,null,null,null,null,null,null,null,null,null,null,null,null,0,{"$error":"#DIV/0!"}]
[null,null,null,null,null,null,null,null,null,null,null,null,null,null,null,0,{"$error":"#DIV/0!"}]
[null,null,null,null,null,null,null,null,null,null,null,null,null,null,null,0,{"$error":"#DIV/0!"}]
[null,null,null,null,null,null,null,null,null,null,null,null,null,null,null,0,{"$error":"#DIV/0!"}]
[null,null,null,null,null,null,null,null,null,null,null,null,null,null,null,{"$f":"SUM(D217:O217)","v":0},{"$error":"#DIV/0!"}]
[null,null,null,null,null,null,null,null,null,null,null,null,null,null,null,0,{"$error":"#DIV/0!"}]
[null,null,null,null,null,null,null,null,null,null,null,null,null,null,null,0,{"$f":"SUM((P219/$P$222))","v":{"$error":"#DIV/0!"}}]
[{"$f":"SUM(D220:N220)","v":0},{"$f":"IF(SUM($D$220:$N$220)=0,\"For HCS SYNCRO SIDRA, Please key % Distribution\",IF(SUM($D$220:$N$220)<>100%,\"For HCS SYNCRO SIDRA, Ensure Percentages add up to 100%\",IF(SUM($D$220:$N$220)=100%,\"HCS SYNCRO SIDRA equals 100% for\")))","v":"For HCS SYNCRO SIDRA, Please key % Distribution"},"% by Classification",{"$f":"IF(SUM('CongMgt-HCSSynchroSidra'!$AJ$55:$AO$55)=0,0,'CongMgt-HCSSynchroSidra'!AJ53)","v":0},{"$f":"IF(SUM('CongMgt-HCSSynchroSidra'!$AJ$55:$AO$55)=0,0,'CongMgt-HCSSynchroSidra'!AK53)","v":0},{"$f":"IF(SUM('CongMgt-HCSSynchroSidra'!$AJ$55:$AO$55)=0,0,'CongMgt-HCSSynchroSidra'!AL53)","v":0},{"$f":"IF(SUM('CongMgt-HCSSynchroSidra'!$AJ$55:$AO$55)=0,0,'CongMgt-HCSSynchroSidra'!AM53)","v":0},{"$f":"IF(SUM('CongMgt-HCSSynchroSidra'!$AJ$55:$AO$55)=0,0,'CongMgt-HCSSynchroSidra'!AN53)","v":0},{"$f":"IF(SUM('CongMgt-HCSSynchroSidra'!$AJ$55:$AO$55)=0,0,'CongMgt-HCSSynchroSidra'!AO53)","v":0}]
[{"$f":"SUM(D221:N221)","v":0},{"$f":"IF(SUM($D$220:$N$220)=0,\"For TransModeler, Please key % Distribution\",IF(SUM($D$220:$N$220)<>100%,\"For TransModeler, Ensure Percentages add up to 100%\",IF(SUM($D$220:$N$220)=100%,\"TransModeler equals 100% for\")))","v":"For TransModeler, Please key % Distribution"},"% by Classification",{"$f":"IF(SUM('CongMgt-TransModeler'!$AJ$55:$AO$55)=0,0,'CongMgt-TransModeler'!AJ53)","v":0},{"$f":"IF(SUM('CongMgt-TransModeler'!$AJ$55:$AO$55)=0,0,'CongMgt-TransModeler'!AK53)","v":0},{"$f":"IF(SUM('CongMgt-TransModeler'!$AJ$55:$AO$55)=0,0,'CongMgt-TransModeler'!AL53)","v":0},{"$f":"IF(SUM('CongMgt-TransModeler'!$AJ$55:$AO$55)=0,0,'CongMgt-TransModeler'!AM53)","v":0},{"$f":"IF(SUM('CongMgt-TransModeler'!$AJ$55:$AO$55)=0,0,'CongMgt-TransModeler'!AN53)","v":0},{"$f":"IF(SUM('CongMgt-TransModeler'!$AJ$55:$AO$55)=0,0,'CongMgt-TransModeler'!AO53)","v":0}]
[null,"TOTAL WORKDAYS/CATEGORY:",null,{"$f":"(SUM(D12:D219))","v":0},0,0,0,0,0,0,0,0,0,0,null,{"$f":"(SUM(P12:P219))","v":0},{"$f":"SUM(Q12:Q219)","v":{"$error":"#DIV/0!"}},{"$f":"(SUM(R12:R219))","v":0}]
[null,"HOURLY SALARY RATE:",null,{"$f":"'PEF CLASSIFICATION SHEET'!$E431","v":0},{"$f":"'PEF CLASSIFICATION SHEET'!$E432","v":0},{"$f":"'PEF CLASSIFICATION SHEET'!$E433","v":0},{"$f":"'PEF CLASSIFICATION SHEET'!$E434","v":0},{"$f":"'PEF CLASSIFICATION SHEET'!$E435","v":0},{"$f":"'PEF CLASSIFICATION SHEET'!$E436","v":0},{"$f":"'PEF CLASSIFICATION SHEET'!$E437","v":0},{"$f":"'PEF CLASSIFICATION SHEET'!$E438","v":0},{"$f":"'PEF CLASSIFICATION SHEET'!$E439","v":0},{"$f":"'PEF CLASSIFICATION SHEET'!$E440","v":0},{"$f":"'PEF CLASSIFICATION SHEET'!$E441","v":0}]
[null,"RATES PER DAY:",null,{"$f":"D223*8","v":0},0,0,0,0,0,0,0,0,0,0]
[null,"PAYROLL BURDEN:",null,{"$f":"SUM(D222*D224)","v":0},0,0,0,0,0,0,0,0,0,0]
[null,"TOTAL WORKDAYS:",null,{"$f":"SUM(D222:N222)","v":0}]
[null,"TOTAL PAYROLL BURDEN:",null,{"$f":"SUM(D225:O225)","v":0}]
[null,"AVERAGE COST PER HOUR:",null,{"$f":"SUM(D227/(D226*8))","v":{"$error":"#DIV/0!"}}]
[null,"GENERAL OVERHEAD:",{"$f":"CONGESTION.MANAGEMENT_CONSULTANT_OVERHEAD","v":0},{"$f":"SUM(D227*C229)","v":0}]
[null,"SUBTOTAL:",null,{"$f":"SUM(D227+D229)","v":0}]
[null,"COMPARATIVE FEE:",{"$f":"CONGESTION.MANAGEMENT_CONSULTANT_FEE","v":0.09},{"$f":"SUM(D230*C231)","v":0}]
[null,"FACILITIES COST OF CAPITAL:",{"$f":"CONGESTION.MANAGEMENT_CONSULTANT_COSTofCAPITAL","v":0},{"$f":"SUM(D227*C232)","v":0}]
[null,"TOTAL:",null,{"$f":"SUM(D230:D232)","v":0}]
[null,"DIRECT EXPENSES:",null,{"$f":"CONGESTION.MANAGEMENT_DIRECT_NONSALARY_TOTAL","v":0}]
[null,"CONGESTION MANAGEMENT GRAND TOTAL:",null,{"$f":"SUM(D233:D234)","v":0}]
[]
[]
[null,"Costs",null,"Workdays",null,null,null,null,"Dollars"]
[null,null,null,"CongMgmt","PEF","Delta ","Delta %",null,"CongMgmt",null,"PEF",null,"Delta ","Delta %"]
[null,null,null,null,null,{"$f":"SUM(E240-D240)","v":0},{"$f":"SUM((F240/D240)*100)","v":{"$error":"#DIV/0!"}},null,null,null,null,null,{"$f":"SUM(K240-I240)","v":0},{"$f":"SUM((M240/I240)*100)","v":{"$error":"#DIV/0!"}}]
[]
[]
[null,null,null,null,null,null,null,"Directs","Dollars"]
[null,null,null,null,null,null,null,null,"CongMgmt",null,"PEF",null,"Delta ","Delta %"]
[null,null,null,null,null,null,null,null,null,null,null,null,{"$f":"SUM(K245-I245)","v":0},{"$f":"SUM((M245/I245)*100)","v":{"$error":"#DIV/0!"}}]

{"sheet":"CongMgt-HCSSynchroSidra","index":54,"n_rows":152,"n_cols":42,"rows_kept":152,"cut":false,"hidden":true,"merged":[[0,40,4,40],[0,34,1,34],[0,35,4,35],[0,36,4,36],[0,37,4,37],[0,38,4,38],[0,39,4,39]]}
["Last Updated: 2/20/19",null,null,null,null,null,null,null,null,null,null,null,null,null,null,null,null,null,null,null,null,null,null,null,null,null,"Low","High",null,null,null,null,null,"Synchro Sidra",{"$f":"AI16","v":2},"Traffic Unit Head (TM-1)","Project Engineer Sup. (TES-3)","Project Engineer Sup. (TES-2)","Project Engineer (TE-3)","Project Engineer (TE-2)","Project Engineer (TE-1)"]
[null,"Level of Complexity","1 - Simple",null,null,null,null,null,null,null,null,null,null,null,null,null,null,"1 - Simple",1,"1 - Isolated (1)",1]
[null,"Size of Existing Network (# of signalized intersections)","1 - Isolated (1)",null,null,null,null,null,null,null,null,null,null,null,null,null,null,"2 - Low",2,"2 - Small (2-4)",2]
[null,null,null,null,null,null,null,null,null,null,null,null,null,null,null,null,null,"3 - Moderate",3,"3 - Medium (5-9)",3,null,null,null,null,null,{"$f":"MIN('CongMgt-HCSSynchroSidra'!$G$8:$G$9)","v":0},{"$f":"MIN('CongMgt-HCSSynchroSidra'!$H$8:$H$9)","v":0},{"$f":"AA4+(('CongMgt-HCSSynchroSidra'!$C$5/10)*(AB4-AA4))","v":0},null,null,null,null,null,"Complexity"]
[null,"Estimation Index (1-10)",{"$f":"R7+T7","v":2},null,"Unit Cost","Unit Cost","Total","Total",null,null,null,null,null,null,null,null,null,"4 - High",4,"4 - Large (10-17)",4,null,null,null,null,null,{"$f":"(MIN('CongMgt-HCSSynchroSidra'!$G$10:$G$11))+'CongMgt-HCSSynchroSidra'!$G$12+'CongMgt-HCSSynchroSidra'!$G$13","v":0},{"$f":"(MIN('CongMgt-HCSSynchroSidra'!$H$10:$H$11))+'CongMgt-HCSSynchroSidra'!$H$12+'CongMgt-HCSSynchroSidra'!$H$13","v":0},{"$f":"AA5+(('CongMgt-HCSSynchroSidra'!$C$5/10)*(AB5-AA5))","v":0},null,null,null,null,null,"Index"]
[null,null,null,null,"Workdays","Workdays","Workdays","Workdays",null,null,null,null,null,null,null,null,null,"5 - Very Complex",5,"5 - Very Large (18+)",5,null,null,null,null,null,{"$f":"MIN('CongMgt-HCSSynchroSidra'!$G$14:$G$15)","v":0},{"$f":"MIN('CongMgt-HCSSynchroSidra'!$H$14:$H$15)","v":0},{"$f":"AA6+(('CongMgt-HCSSynchroSidra'!$C$5/10)*(AB6-AA6))","v":0},null,null,null,null,null,2,0.08,0.15,0.08,0.12,0.4,0.17]
[1,"Project Management, Coordination and Administration",null,null,"(Low)","(High)","(Low)","(High)",null,null,null,null,null,null,null,null,null,{"$f":"VLOOKUP(C2,R2:S6,2,TRUE)","v":1},null,{"$f":"VLOOKUP(C3,T2:U6,2,TRUE)","v":1},null,null,null,null,null,null,{"$f":"'CongMgt-HCSSynchroSidra'!$G$18","v":0},{"$f":"'CongMgt-HCSSynchroSidra'!$H$18","v":0},{"$f":"AA7+(('CongMgt-HCSSynchroSidra'!$C$5/10)*(AB7-AA7))","v":0},null,null,null,null,null,3,0.09,0.16,0.08,0.12,0.39,0.16]
[1.1000000000000001,"Project Management and Administration",0,null,0.75,1.5,{"$f":"C8*E8","v":0},{"$f":"C8*F8","v":0},"Based on complexity of project and how much coordination is needed.  If part of a contract from another branch, should be removed or only 1 month allowed.  If standalone project may be toward higher end.",null,null,null,null,null,null,null,null,null,null,null,null,null,null,null,null,null,{"$f":"'CongMgt-HCSSynchroSidra'!$G$21+'CongMgt-HCSSynchroSidra'!$G$22+'CongMgt-HCSSynchroSidra'!$G$23","v":0},{"$f":"'CongMgt-HCSSynchroSidra'!$H$21+'CongMgt-HCSSynchroSidra'!$H$22+'CongMgt-HCSSynchroSidra'!$H$23","v":0},{"$f":"AA8+(('CongMgt-HCSSynchroSidra'!$C$5/10)*(AB8-AA8))","v":0},null,null,null,null,null,4,0.1,0.17,0.08,0.12,0.38,0.15]
[null,null,null,null,null,null,{"$f":"SUM(G18:G152)*0.1","v":0},{"$f":"SUM(H18:H152)*0.1","v":0},"Cap of 10% of workdays to complete analysis",null,null,null,null,null,null,null,null,null,null,null,null,null,null,null,null,null,null,null,null,null,null,null,null,null,5,0.11,0.18,0.1,0.1,0.37,0.14000000000000001]
[1.2,"Project Coordination",0,null,0.25,0.75,{"$f":"C10*E10","v":0},{"$f":"C10*F10","v":0},"Based on complexity of project and how much coordination is needed with other groups or branches",null,null,null,null,null,null,null,null,null,"Non-Calibrated",null,null,null,null,null,null,null,null,null,null,null,null,null,null,null,6,0.12,0.19,0.1,0.1,0.36,0.13]
[null,null,null,null,null,null,{"$f":"SUM(G18:G152)*0.05","v":0},{"$f":"SUM(H18:H152)*0.05","v":0},"Cap of 5% of workdays to complete analysis",null,null,null,null,null,null,null,null,null,null,null,null,null,null,null,null,null,null,null,null,null,null,null,null,null,7,0.13,0.2,0.1,0.1,0.35,0.12]
[null,null,0,0,0.5,0.5,{"$f":"C12*D12*E12","v":0},{"$f":"C12*D12*F12","v":0},"Depending on likely length of meetings.  Includes travel and prep time for local meetings",null,null,null,null,null,null,null,null,null,"Calibrated to Forecast",null,null,null,null,null,null,null,{"$f":"('CongMgt-HCSSynchroSidra'!$G$26+'CongMgt-HCSSynchroSidra'!$G$27+'CongMgt-HCSSynchroSidra'!$G$28+'CongMgt-HCSSynchroSidra'!$G$29)","v":0},{"$f":"('CongMgt-HCSSynchroSidra'!$H$26+'CongMgt-HCSSynchroSidra'!$H$27+'CongMgt-HCSSynchroSidra'!$H$28+'CongMgt-HCSSynchroSidra'!$H$29)","v":0},{"$f":"AA12+(('CongMgt-HCSSynchroSidra'!$C$5/10)*(AB12-AA12))","v":0},null,null,null,null,null,8,0.14000000000000001,0.21,0.12,0.08,0.34,0.11]
[null,"Additional travel time (beyond 1 hour assumed for local meetings)",0,{"$f":"D12*C12","v":0},0.125,0.125,{"$f":"C13*D13*E13","v":0},{"$f":"C13*D13*F13","v":0},"Add additional travel time for meetings not local to attendees (column E is number of meeting * attendees from line above.  If not all meetings are out of town overwrite with number of person-meetings requiring additional travel.)",null,null,null,null,null,null,null,null,null,null,null,null,null,null,null,null,null,null,null,null,null,null,null,null,null,9,0.15,0.22,0.12,0.08,0.33,0.1]
[1.3,"Consultant Coordination",0,0,0.25,0.75,{"$f":"C14*D14*E14","v":0},{"$f":"C14*D14*F14","v":0},"Based on complexity of project and how much coordination is needed with other groups or branches",null,null,null,null,null,null,null,null,null,null,null,null,null,null,null,null,null,null,null,null,null,null,null,null,null,10,0.16,0.23,0.12,0.08,0.32,0.09]
[null,null,null,null,null,null,{"$f":"SUM(G18:G152)*0.05","v":0},{"$f":"SUM(H18:H152)*0.05","v":0},"Cap of 5% of workdays to complete analysis"]
[null,null,null,null,null,null,null,null,null,null,null,null,null,null,null,null,null,null,null,null,null,null,null,null,null,null,{"$f":"SUM('CongMgt-HCSSynchroSidra'!$G$35:$G$42)","v":0},{"$f":"SUM('CongMgt-HCSSynchroSidra'!$H$35:$H$42)","v":0},{"$f":"AA16+(('CongMgt-HCSSynchroSidra'!$C$5/10)*(AB16-AA16))","v":0},null,null,null,null,null,{"$f":"'CongMgt-HCSSynchroSidra'!C5","v":2},{"$f":"VLOOKUP(AI16,AI6:AO14,2)","v":0.08},{"$f":"VLOOKUP(AI16,AI6:AO14,3)","v":0.15},{"$f":"VLOOKUP(AI16,AI6:AO14,4)","v":0.08},{"$f":"VLOOKUP(AI16,AI6:AO14,5)","v":0.12},{"$f":"VLOOKUP(AI16,AI6:AO14,6)","v":0.4},{"$f":"VLOOKUP(AI16,AI6:AO14,7)","v":0.17}]
[2,"Data Collection and Field Visit","Not Required",null,null,null,null,null,null,null,null,null,null,null,null,null,null,null,"Required",null,null,null,null,null,null,null,{"$f":"SUM('CongMgt-HCSSynchroSidra'!$G$44:$G$48)","v":0},{"$f":"SUM('CongMgt-HCSSynchroSidra'!$H$44:$H$48)","v":0},{"$f":"AA17+(('CongMgt-HCSSynchroSidra'!$C$5/10)*(AB17-AA17))","v":0}]
[2.1,"Data Collection (0 or 1 only) - Included once per project",1,null,0.5,1,{"$f":"IF($C$17=\"Required\",($C18*E18),0)","v":0},{"$f":"IF($C$17=\"Required\",($C18*F18),0)","v":0},"Depend on size of network and how much data is needed",null,null,null,null,null,null,null,null,null,"Not Required",null,null,null,null,null,null,null,{"$f":"SUM('CongMgt-HCSSynchroSidra'!$G$50:$G$52)","v":0},{"$f":"SUM('CongMgt-HCSSynchroSidra'!$H$50:$H$52)","v":0},{"$f":"AA18+(('CongMgt-HCSSynchroSidra'!$C$5/10)*(AB18-AA18))","v":0},null,null,null,null,null,null,{"$f":"AJ16","v":0.08},0.15,0.08,0.12,0.4,0.17]
[null,null,null,null,null,null,null,null,null,null,null,null,null,null,null,null,null,null,null,null,null,null,null,null,null,null,null,null,null,null,null,null,null,null,100000,{"$f":"AJ18+AK18+AL18+AM18+AN18+AO18","v":1},0,0,0,0,0]
[null,"Field Visit","Not Required",null,null,null,null,null,null,null,null,null,null,null,null,null,null,null,null,null,null,null,null,null,null,null,{"$f":"SUM('CongMgt-HCSSynchroSidra'!$G$58:$G$71)","v":0},{"$f":"SUM('CongMgt-HCSSynchroSidra'!$H$58:$H$71)","v":0},{"$f":"AA20+(('CongMgt-HCSSynchroSidra'!$C$5/10)*(AB20-AA20))","v":0},null,null,null,null,null,100001,{"$f":"AJ18+AK18+AL18+AM18","v":0.43},0,0,0,0,{"$f":"AN18+AO18","v":0.57000000000000006}]
[2.2000000000000002,"Field Visit - Preparation",1,null,0.25,0.75,{"$f":"IF($C$20=\"Required\",($C21*E21),0)","v":0},{"$f":"IF($C$20=\"Required\",($C21*F21),0)","v":0},"Depends on how large the study is",null,null,null,null,null,null,null,null,null,null,null,null,null,null,null,null,null,{"$f":"SUM('CongMgt-HCSSynchroSidra'!$G$74:$G$81)","v":0},{"$f":"SUM('CongMgt-HCSSynchroSidra'!$H$74:$H$81)","v":0},{"$f":"AA21+(('CongMgt-HCSSynchroSidra'!$C$5/10)*(AB21-AA21))","v":0},null,null,null,null,null,100010,{"$f":"AJ18+AK18+AL18","v":0.31},0,0,0,{"$f":"AM18+AN18+AO18","v":0.69000000000000006},0]
[null,"Field Visit Travel",0,2,0.125,0.125,{"$f":"IF($C$20=\"Required\",(C22*D22*E22*2),0)","v":0},{"$f":"IF($C$20=\"Required\",(C22*D22*F22*2),0)","v":0},"Travel time to project ",null,null,null,null,null,null,null,null,null,null,null,null,null,null,null,null,null,{"$f":"SUM('CongMgt-HCSSynchroSidra'!$G$84:$G$87)","v":0},{"$f":"SUM('CongMgt-HCSSynchroSidra'!$H$84:$H$87)","v":0},{"$f":"AA22+(('CongMgt-HCSSynchroSidra'!$C$5/10)*(AB22-AA22))","v":0},null,null,null,null,null,100011,{"$f":"AJ18+AK18+AL18","v":0.31},0,0,0,{"$f":"AM18+(AN18*0.7)","v":0.39999999999999997},{"$f":"AO18+(AN18*0.3)","v":0.29000000000000004}]
[null,"Field Visit Observation",0,2,0.125,0.125,{"$f":"IF($C$20=\"Required\",(C23*D23*E23),0)","v":0},{"$f":"IF($C$20=\"Required\",(C23*D23*F23),0)","v":0},"Assume only observing 1 peak and field review",null,null,null,null,null,null,null,null,null,null,null,null,null,null,null,null,null,null,null,null,null,null,null,null,null,100100,{"$f":"AJ18+AK18","v":0.22999999999999998},0,0,{"$f":"AL18+AM18+AN18+AO18","v":0.77000000000000013},0,0]
[null,null,null,null,null,null,null,null,null,null,null,null,null,null,null,null,null,null,null,null,null,null,null,null,null,null,{"$f":"SUM('CongMgt-HCSSynchroSidra'!$G$93:$G$106)","v":0},{"$f":"SUM('CongMgt-HCSSynchroSidra'!$H$93:$H$106)","v":0},{"$f":"AA24+(('CongMgt-HCSSynchroSidra'!$C$5/10)*(AB24-AA24))","v":0},null,null,null,null,null,100101,{"$f":"AJ18+AK18","v":0.22999999999999998},0,0,{"$f":"AL18+AM18+(AN18*0.3)","v":0.32},0,{"$f":"(AN18*0.7)+AO18","v":0.44999999999999996}]
[3,"Traffic Volume Development ","Not Required",null,null,null,null,null,null,null,null,null,null,null,null,null,null,null,null,null,null,null,null,null,null,null,{"$f":"SUM('CongMgt-HCSSynchroSidra'!$G$109:$G$116)","v":0},{"$f":"SUM('CongMgt-HCSSynchroSidra'!$H$109:$H$116)","v":0},{"$f":"AA25+(('CongMgt-HCSSynchroSidra'!$C$5/10)*(AB25-AA25))","v":0},null,null,null,null,null,100110,{"$f":"AJ18+AK18","v":0.22999999999999998},0,0,{"$f":"AM18+AL18","v":0.2},{"$f":"AN18+AO18","v":0.57000000000000006},0]
[3.1,"Convert Forecast to Peak Hour Volumes - Balanced",0,0,0.03,0.03,{"$f":"IF($C$25=\"Required\",(C26*D26*E26),0)","v":0},{"$f":"IF($C$25=\"Required\",(C26*D26*F26),0)","v":0},"15 minutes per intersection per scenario",null,null,null,null,null,null,null,null,null,null,null,null,null,null,null,null,null,{"$f":"SUM('CongMgt-HCSSynchroSidra'!$G$119:$G$122)","v":0},{"$f":"SUM('CongMgt-HCSSynchroSidra'!$H$119:$H$122)","v":0},{"$f":"AA26+(('CongMgt-HCSSynchroSidra'!$C$5/10)*(AB26-AA26))","v":0},null,null,null,null,null,100111,{"$f":"AJ18+AK18","v":0.22999999999999998},0,0,{"$f":"AL18+AM18","v":0.2},{"$f":"AN18","v":0.4},{"$f":"AO18","v":0.17}]
[null,"Breakouts for interchanges/alternative designs",0,0,0.03,0.06,{"$f":"IF($C$25=\"Required\",(C27*D27*E27),0)","v":0},{"$f":"IF($C$25=\"Required\",(C27*D27*F27),0)","v":0},"15-30 minutes per breakout to interchange or alternative intersection",null,null,null,null,null,null,null,null,null,null,null,null,null,null,null,null,null,{"$f":"'CongMgt-HCSSynchroSidra'!$G$124","v":0},{"$f":"'CongMgt-HCSSynchroSidra'!$H$124","v":0},{"$f":"AA27+(('CongMgt-HCSSynchroSidra'!$C$5/10)*(AB27-AA27))","v":0},null,null,null,null,null,101000,{"$f":"AJ18+AK18","v":0.22999999999999998},0,{"$f":"AL18+AM18+AN18+AO18","v":0.77000000000000013},0,0,0]
[null,"Balance Network",0,0,0,0,0,0,"10-15 minutes per intersection to balance.  This is essentially developing a spreadsheet that may be more for a single scenario, but is much lower for additional scenarios as it is already setup",null,null,null,null,null,null,null,null,null,null,null,null,null,null,null,null,null,null,null,null,null,null,null,null,null,101001,{"$f":"AJ18+AK18","v":0.22999999999999998},0,{"$f":"AL18+AM18+(AN18*0.3)","v":0.32},0,0,{"$f":"(AN18*0.7)+AO18","v":0.44999999999999996}]
[null,"Balance Network (if required and included in scope)",0,0,0.02,0.03,{"$f":"IF($C$25=\"Required\",(C29*D29*E29),0)","v":0},{"$f":"IF($C$25=\"Required\",(C29*D29*F29),0)","v":0},"10-15 minutes per intersection to balance.  This is essentially developing a spreadsheet that may be more for a single scenario, but is much lower for additional scenarios as it is already setup",null,null,null,null,null,null,null,null,null,null,null,null,null,null,null,null,null,{"$f":"SUM('CongMgt-HCSSynchroSidra'!$G$130:$G$133)","v":0},{"$f":"SUM('CongMgt-HCSSynchroSidra'!$H$130:$H$133)","v":0},{"$f":"AA29+(('CongMgt-HCSSynchroSidra'!$C$5/10)*(AB29-AA29))","v":0},null,null,null,null,null,101010,{"$f":"AJ18+AK18","v":0.22999999999999998},0,{"$f":"AL18+AM18","v":0.2},0,{"$f":"AN18+AO18","v":0.57000000000000006},0]
[null,null,null,null,null,null,null,null,null,null,null,null,null,null,null,null,null,null,null,null,null,null,null,null,null,null,null,null,null,null,null,null,null,null,101011,{"$f":"AJ18+AK18","v":0.22999999999999998},0,{"$f":"AL18+AM18","v":0.2},0,{"$f":"AN18","v":0.4},{"$f":"AO18","v":0.17}]
[4,{"$f":"CongMgt!_Toc445194539","v":"20XX BASE YEAR MODEL"},"Not Required",null,null,null,null,null,null,null,null,null,null,null,null,null,null,null,null,null,null,null,null,null,null,null,{"$f":"'CongMgt-HCSSynchroSidra'!$G$137+'CongMgt-HCSSynchroSidra'!$G$138+'CongMgt-HCSSynchroSidra'!$G$139+'CongMgt-HCSSynchroSidra'!$G$140+'CongMgt-HCSSynchroSidra'!$G$141+'CongMgt-HCSSynchroSidra'!$G$142","v":0},{"$f":"'CongMgt-HCSSynchroSidra'!$H$137+'CongMgt-HCSSynchroSidra'!$H$138+'CongMgt-HCSSynchroSidra'!$H$139+'CongMgt-HCSSynchroSidra'!$H$140+'CongMgt-HCSSynchroSidra'!$H$141+'CongMgt-HCSSynchroSidra'!$H$142","v":0},{"$f":"AA31+(('CongMgt-HCSSynchroSidra'!$C$5/10)*(AB31-AA31))","v":0},null,null,null,null,null,101100,{"$f":"AJ18","v":0.08},0,{"$f":"AK18+AL18+AM18","v":0.35},{"$f":"AN18+AO18","v":0.57000000000000006},0,0]
[null,null,null,null,null,null,null,null,null,null,null,null,null,null,null,null,null,null,null,null,null,null,null,null,null,null,null,null,null,null,null,null,null,null,101101,{"$f":"AJ18+AK18","v":0.22999999999999998},0,{"$f":"AL18","v":0.08},{"$f":"AM18+(AN18*0.5)","v":0.32},0,{"$f":"AO18+(AN18*0.5)","v":0.37}]
[4,"201X Base Year Model ",null,null,null,null,null,null,null,null,null,null,null,null,null,null,null,null,null,null,null,null,null,null,null,null,null,null,null,null,null,null,null,null,101110,{"$f":"AJ18+AK18","v":0.22999999999999998},0,{"$f":"AL18","v":0.08},{"$f":"AM18","v":0.12},{"$f":"AN18+AO18","v":0.57000000000000006},0]
[4.0999999999999996,"Highway Capacity Software (HCS) Analysis",null,null,null,null,null,null,null,null,null,null,null,null,null,null,null,null,null,null,null,null,null,null,null,null,{"$f":"'CongMgt-HCSSynchroSidra'!$G$144","v":0},{"$f":"'CongMgt-HCSSynchroSidra'!$H$144","v":0},{"$f":"AA34+(('CongMgt-HCSSynchroSidra'!$C$5/10)*(AB34-AA34))","v":0},null,null,null,null,null,101111,{"$f":"AJ18+AK18","v":0.22999999999999998},0,{"$f":"AL18","v":0.08},{"$f":"AM18","v":0.12},{"$f":"AN18","v":0.4},{"$f":"AO18","v":0.17}]
[null,"Freeway Facilities Analysis/FREEVAL",0,null,8.3330000000000001E-2,8.3330000000000001E-2,{"$f":"IF($C$31=\"Required\",($C35*E35),0)","v":0},{"$f":"IF($C$31=\"Required\",($C35*F35),0)","v":0},"40 minutes per segment",null,null,null,{"$f":"E35*480","v":39.998400000000004},{"$f":"F35*480","v":39.998400000000004},null,null,null,null,null,null,null,null,null,null,null,null,{"$f":"'CongMgt-HCSSynchroSidra'!$G$147","v":0},{"$f":"'CongMgt-HCSSynchroSidra'!$H$147","v":0},{"$f":"AA35+(('CongMgt-HCSSynchroSidra'!$C$5/10)*(AB35-AA35))","v":0},null,null,null,null,null,110000,{"$f":"AJ18","v":0.08},{"$f":"AK18+AL18+AM18+AN18+AO18","v":0.92},0,0,0,0]
[null,"Basic Freeway Segments ",0,null,6.25E-2,6.25E-2,{"$f":"IF($C$31=\"Required\",($C36*E36),0)","v":0},0,"30 minutes per segment",null,null,null,{"$f":"E36*480","v":30},30,null,null,null,null,null,null,null,null,null,null,null,null,{"$f":"'CongMgt-HCSSynchroSidra'!$G$148","v":0},{"$f":"'CongMgt-HCSSynchroSidra'!$H$148","v":0},{"$f":"AA36+(('CongMgt-HCSSynchroSidra'!$C$5/10)*(AB36-AA36))","v":0},null,null,null,null,null,110001,{"$f":"AJ18+AK18","v":0.22999999999999998},{"$f":"AL18+AM18","v":0.2},0,0,0,{"$f":"AN18+AO18","v":0.57000000000000006}]
[null,"Ramp Merge and Diverge Segments ",0,null,8.3330000000000001E-2,8.3330000000000001E-2,0,0,"40 minutes per segment",null,null,null,39.998400000000004,39.998400000000004,null,null,null,null,null,null,null,null,null,null,null,null,{"$f":"'CongMgt-HCSSynchroSidra'!$G$149","v":0},{"$f":"'CongMgt-HCSSynchroSidra'!$H$149","v":0},{"$f":"AA37+(('CongMgt-HCSSynchroSidra'!$C$5/10)*(AB37-AA37))","v":0},null,null,null,null,null,110010,{"$f":"AJ18+AK18","v":0.22999999999999998},{"$f":"AL18+AM18","v":0.2},0,0,{"$f":"AN18+AO18","v":0.57000000000000006},0]
[null,"Freeway Weaving Segments ",0,null,8.3330000000000001E-2,8.3330000000000001E-2,0,0,"40 minutes per segment",null,null,null,39.998400000000004,39.998400000000004,null,null,null,null,null,null,null,null,null,null,null,null,null,null,null,null,null,null,null,null,110011,{"$f":"AJ18","v":0.08},{"$f":"AK18+AL18","v":0.22999999999999998},0,0,{"$f":"AN18+AM18","v":0.52},{"$f":"AO18","v":0.17}]
[null,"Multi-lane Highway Segments",0,null,6.25E-2,6.25E-2,0,0,"30 minutes per segment",null,null,null,30,30,null,null,null,null,null,null,null,null,null,null,null,null,null,null,null,null,null,null,null,null,110100,{"$f":"AJ18","v":0.08},{"$f":"AK18+AL18","v":0.22999999999999998},0,{"$f":"AM18+AN18+AO18","v":0.69000000000000006},0,0]
[null,"Two-Lane Highway Segments",0,null,6.25E-2,6.25E-2,0,0,"30 minutes per segment",null,null,null,30,30,null,null,null,null,null,null,null,null,null,null,null,null,null,null,null,null,null,null,null,null,110101,{"$f":"AJ18","v":0.08},{"$f":"AK18+AL18","v":0.22999999999999998},0,{"$f":"AM18+(AN18*0.5)","v":0.32},0,{"$f":"AO18+(AN18*0.5)","v":0.37}]
[null,"Report Figures, Tables, Output Sheets, etc.",{"$f":"SUM(C35:C40)","v":0},null,3.125E-2,3.125E-2,0,{"$f":"IF($C$31=\"Required\",($C41*F41),0)","v":0},"15 minutes per analysis point",null,null,null,15,15,null,null,null,null,null,null,null,null,null,null,null,null,null,null,null,null,null,null,null,null,110110,{"$f":"AJ18","v":0.08},{"$f":"AK18+AL18","v":0.22999999999999998},0,{"$f":"AM18","v":0.12},{"$f":"AN18+AO18","v":0.57000000000000006},0]
[null,"Quality Control",null,null,0.05,0.1,{"$f":"SUM(G35:G41)*E42","v":0},{"$f":"SUM(H35:H41)*F42","v":0},"5-10% of sum of above time",null,null,null,24,48,null,null,null,null,null,null,null,null,null,null,null,null,null,null,null,null,null,null,null,null,110111,{"$f":"AJ18","v":0.08},{"$f":"AK18+AL18","v":0.22999999999999998},0,{"$f":"AM18","v":0.12},{"$f":"AN18","v":0.4},{"$f":"AO18","v":0.17}]
[4.2,"Synchro Analysis",null,null,null,null,null,null,null,null,null,null,0,0,null,null,null,null,null,null,null,null,null,null,null,null,null,null,null,null,null,null,null,null,111000,{"$f":"AJ18","v":0.08},{"$f":"AK18","v":0.15},{"$f":"AL18+AM18+AN18+AO18","v":0.77000000000000013},0,0,0]
[null,"Unsignalized Intersection",0,null,8.3330000000000001E-2,8.3330000000000001E-2,{"$f":"IF($C$31=\"Required\",($C44*E44),0)","v":0},0,"40 minutes per intersection",null,null,null,39.998400000000004,39.998400000000004,null,null,null,null,null,null,null,null,null,null,null,null,null,null,null,null,null,null,null,null,111001,{"$f":"AJ18","v":0.08},{"$f":"AK18+AL18","v":0.22999999999999998},{"$f":"AM18+(AN18*0.5)","v":0.32},0,0,{"$f":"AO18+(AN18*0.5)","v":0.37}]
[null,"Signalized Intersection (Standard)",0,null,0.375,0.375,0,0,"3 hours per intersection",null,null,null,180,180,null,null,null,null,null,null,null,null,null,null,null,null,null,null,null,null,null,null,null,null,111010,{"$f":"AJ18","v":0.08},{"$f":"AK18","v":0.15},{"$f":"AL18+AM18","v":0.2},0,{"$f":"AN18+AO18","v":0.57000000000000006},0]
[null,"Signalized Intersection (Unconventional)",0,null,0.5,0.5,0,0,"4 hours per intersection",null,null,null,240,240,null,null,null,null,null,null,null,null,null,null,null,null,null,null,null,null,null,null,null,null,111011,{"$f":"AJ18","v":0.08},{"$f":"AK18","v":0.15},{"$f":"AL18+AM18","v":0.2},0,{"$f":"AN18","v":0.4},{"$f":"AO18","v":0.17}]
[null,"Report Figures, Tables, Output Sheets, etc.",{"$f":"SUM(C44:C46)","v":0},null,4.1669999999999999E-2,4.1669999999999999E-2,0,0,"20 minutes per analysis point",null,null,null,20.0016,20.0016,null,null,null,null,null,null,null,null,null,null,null,null,null,null,null,null,null,null,null,null,111100,{"$f":"AJ18","v":0.08},{"$f":"AK18","v":0.15},{"$f":"AL18+AM18","v":0.2},{"$f":"AN18+AO18","v":0.57000000000000006},0,0]
[null,"Quality Control",null,null,0.05,0.1,{"$f":"SUM(G44:G47)*E48","v":0},{"$f":"SUM(H44:H47)*F48","v":0},"5-10% of sum of above time",null,null,null,24,48,null,null,null,null,null,null,null,null,null,null,null,null,null,null,null,null,null,null,null,null,111101,{"$f":"AJ18","v":0.08},{"$f":"AK18","v":0.15},{"$f":"AL18","v":0.08},{"$f":"AM18+(AN18*0.5)","v":0.32},0,{"$f":"AO18+(AN18*0.5)","v":0.37}]
[4.3,"Sidra Analysis",null,null,null,null,null,null,null,null,null,null,0,0,null,null,null,null,null,null,null,null,null,null,null,null,null,null,null,null,null,null,null,null,111110,{"$f":"AJ18","v":0.08},{"$f":"AK18","v":0.15},{"$f":"AL18","v":0.08},{"$f":"AM18","v":0.12},{"$f":"AN18+AO18","v":0.57000000000000006},0]
[null,"Roundabout Intersection",0,null,0.25,0.25,{"$f":"IF($C$31=\"Required\",($C50*E50),0)","v":0},0,"2 hours per intersection",null,null,null,120,120,null,null,null,null,null,null,null,null,null,null,null,null,null,null,null,null,null,null,null,null,111111,{"$f":"AJ18","v":0.08},0.15,0.08,0.12,0.4,0.17]
[null,"Report Figures, Tables, Output Sheets, etc.",{"$f":"SUM(C50)","v":0},null,4.1669999999999999E-2,4.1669999999999999E-2,0,0,"20 minutes per analysis point",null,null,null,20.0016,20.0016]
[null,"Quality Control",null,null,0.05,0.1,{"$f":"SUM(G50:G51)*E52","v":0},{"$f":"SUM(H50:H51)*F52","v":0},"5-10% of sum of above time",null,null,null,24,48,null,null,null,null,null,null,null,null,null,null,null,null,null,null,null,null,null,null,null,null,{"$f":"VALUE(AP55)","v":100000},{"$f":"VLOOKUP(AI52,AI19:AO50,2,FALSE)","v":1},{"$f":"INDEX(AI19:AO50,MATCH(AI52,AI19:AI50),3)","v":0},{"$f":"INDEX(AI19:AO50,MATCH(AI52,AI19:AI50),4)","v":0},{"$f":"INDEX(AI19:AO50,MATCH(AI52,AI19:AI50),5)","v":0},{"$f":"INDEX(AI19:AO50,MATCH(AI52,AI19:AI50),6)","v":0},{"$f":"INDEX(AI19:AO50,MATCH(AI52,AI19:AI50),7)","v":0}]
[null,null,null,null,null,null,null,null,null,null,null,null,0,0,null,null,null,null,null,null,null,null,null,null,null,null,null,null,null,null,null,null,null,null,null,{"$f":"IF($AJ$55=0,0,AJ52)","v":0},{"$f":"IF($AJ$55=0,(AJ52+AK52),AK52)","v":1},{"$f":"AL52","v":0},{"$f":"AM52","v":0},{"$f":"AN52","v":0},{"$f":"AO52","v":0}]
[null,null,null,null,null,null,null,null,null,null,null,null,0,0]
[5,{"$f":"CongMgt!B26","v":"20XX NO-BUILD ANALYSIS"},"Not Required",null,null,null,null,null,null,null,null,null,0,0,null,null,null,null,null,null,null,null,null,null,null,null,null,null,null,null,null,null,null,null,null,{"$f":"IF(AND(CongMgt!$D$223>0,SUM(C8:C14,C137:C142)>0),1,0)","v":0},{"$f":"IF(AND(CongMgt!$E$223>0,SUM(C8:C14,C137:C142)>0),1,0)","v":0},{"$f":"IF(AND(CongMgt!$F$223>0,SUM(C8:C14,C137:C142)>0),1,0)","v":0},{"$f":"IF(AND(CongMgt!$G$223>0,SUM(C8:C14,C137:C142)>0),1,0)","v":0},{"$f":"IF(AND(CongMgt!$H$223>0,SUM(C8:C14,C137:C142)>0),1,0)","v":0},{"$f":"IF(AND(CongMgt!$I$223>0,SUM(C8:C14,C137:C142)>0),1,0)","v":0},{"$f":"1&AK55&AL55&AM55&AN55&AO55","v":"100000"}]
[null,null,null,null,null,null,null,null,null,null,null,null,0,0]
[5.0999999999999996,"Highway Capacity Software (HCS) Analysis",null,null,null,null,null,null,null,null,null,null,0,0]
[null,"Freeway Facilities Analysis/FREEVAL - Analyzed in Base Year",0,null,{"$f":"E64*0.5","v":4.1665000000000001E-2},{"$f":"F64*0.5","v":4.1665000000000001E-2},{"$f":"IF($C$55=\"Required\",($C58*E58),0)","v":0},{"$f":"IF($C$55=\"Required\",($C58*F58),0)","v":0},"50% of new analysis",null,null,null,19.999200000000002,19.999200000000002]
[null,"Basic Freeway Segments  - Analyzed in Base Year",0,null,{"$f":"E65*0.5","v":3.125E-2},3.125E-2,{"$f":"IF($C$55=\"Required\",($C59*E59),0)","v":0},0,"50% of new analysis",null,null,null,15,15]
[null,"Ramp Merge and Diverge Segments  - Analyzed in Base Year",0,null,4.1665000000000001E-2,4.1665000000000001E-2,0,0,"50% of new analysis",null,null,null,19.999200000000002,19.999200000000002]
[null,"Freeway Weaving Segments  - Analyzed in Base Year",0,null,4.1665000000000001E-2,4.1665000000000001E-2,0,0,"50% of new analysis",null,null,null,19.999200000000002,19.999200000000002]
[null,"Multi-lane Highway Segments - Analyzed in Base Year",0,null,3.125E-2,3.125E-2,0,0,"50% of new analysis",null,null,null,15,15]
[null,"Two-Lane Highway Segments - Analyzed in Base Year",0,null,3.125E-2,3.125E-2,0,0,"50% of new analysis",null,null,null,15,15]
[null,"Freeway Facilities Analysis/FREEVAL - New Analysis Segment",0,null,8.3330000000000001E-2,8.3330000000000001E-2,0,0,"40 minutes per segment",null,null,null,39.998400000000004,39.998400000000004]
[null,"Basic Freeway Segments - New Analysis Segment",0,null,6.25E-2,6.25E-2,0,0,"30 minutes per segment",null,null,null,30,30]
[null,"Ramp Merge and Diverge Segments - New Analysis Segment",0,null,8.3330000000000001E-2,8.3330000000000001E-2,0,0,"40 minutes per segment",null,null,null,39.998400000000004,39.998400000000004]
[null,"Freeway Weaving Segments - New Analysis Segment",0,null,8.3330000000000001E-2,8.3330000000000001E-2,0,0,"40 minutes per segment",null,null,null,39.998400000000004,39.998400000000004]
[null,"Multi-lane Highway Segments - New Analysis Segment",0,null,6.25E-2,6.25E-2,0,0,"30 minutes per segment",null,null,null,30,30]
[null,"Two-Lane Highway Segments - New Analysis Segment",0,null,6.25E-2,6.25E-2,0,0,"30 minutes per segment",null,null,null,30,30]
[null,"Report Figures, Tables, Output Sheets, etc.",{"$f":"SUM(C58:C69)","v":0},null,{"$f":"E41/2","v":1.5625E-2},{"$f":"F41/2","v":1.5625E-2},0,{"$f":"IF($C$55=\"Required\",($C70*F70),0)","v":0},"50% assumes most everything is same from Base Year",null,null,null,7.5,7.5]
[null,"Quality Control",null,null,0.05,0.1,{"$f":"SUM(G58:G70)*E71","v":0},{"$f":"SUM(H58:H70)*F71","v":0},"5-10% of sum of above time",null,null,null,24,48]
[null,null,null,null,null,null,null,null,null,null,null,null,0,0]
[5.2,"Synchro Analysis",null,null,null,null,null,null,null,null,null,null,0,0]
[null,"Unsignalized Intersection - Analyzed in Base Year",0,null,{"$f":"E77/2","v":4.1665000000000001E-2},{"$f":"F77/2","v":4.1665000000000001E-2},{"$f":"IF($C$55=\"Required\",($C74*E74),0)","v":0},0,"50% of new analysis",null,null,null,19.999200000000002,19.999200000000002]
[null,"Signalized Intersection (Standard) - Analyzed in Base Year",0,null,{"$f":"E78/2","v":0.1875},0.1875,0,0,"50% of new analysis",null,null,null,90,90]
[null,"Signalized Intersection (Unconventional) - Analyzed in Base Year",0,null,0.25,0.25,0,0,"50% of new analysis",null,null,null,120,120]
[null,"Unsignalized Intersection - New Analysis Intersection",0,null,8.3330000000000001E-2,8.3330000000000001E-2,0,0,"40 minutes per segment",null,null,null,39.998400000000004,39.998400000000004]
[null,"Signalized Intersection (Standard) - New Analysis Intersection",0,null,0.375,0.375,0,0,"3 hours per intersection",null,null,null,180,180]
[null,"Signalized Intersection (Unconventional) - New Analysis Intersection",0,null,0.5,0.5,0,0,"4 hours per intersection",null,null,null,240,240]
[null,"Report Figures, Tables, Output Sheets, etc.",{"$f":"SUM(C74:C79)","v":0},null,{"$f":"E47/2","v":2.0834999999999999E-2},{"$f":"F47/2","v":2.0834999999999999E-2},0,0,"50% assumes most everything is same from Base Year",null,null,null,10.0008,10.0008]
[null,"Quality Control",null,null,0.05,0.1,{"$f":"SUM(G74:G80)*E81","v":0},{"$f":"SUM(H74:H80)*F81","v":0},"5-10% of sum of above time",null,null,null,24,48]
[null,null,null,null,null,null,null,null,null,null,null,null,0,0]
[5.3,"Sidra Analysis",null,null,null,null,null,null,null,null,null,null,0,0]
[null,"Roundabout Intersection - Analyzed in Base Year",0,null,{"$f":"E85/2","v":0.125},{"$f":"F85/2","v":0.125},{"$f":"IF($C$55=\"Required\",($C84*E84),0)","v":0},0,"50% of new analysis",null,null,null,60,60]
[null,"Roundabout Intersection - New Analysis Intersection",0,null,0.25,0.25,0,0,"2 hours per intersection",null,null,null,120,120]
[null,"Report Figures, Tables, Output Sheets, etc.",{"$f":"SUM(C84:C85)","v":0},null,{"$f":"E51/2","v":2.0834999999999999E-2},{"$f":"F51/2","v":2.0834999999999999E-2},0,0,"50% assumes most everything is same from Base Year",null,null,null,10.0008,10.0008]
[null,"Quality Control",null,null,0.05,0.1,{"$f":"SUM(G84:G86)*E87","v":0},{"$f":"SUM(H84:H86)*F87","v":0},"5-10% of sum of above time",null,null,null,24,48]
[null,null,null,null,null,null,null,null,null,null,null,null,0,0]
[6,{"$f":"CongMgt!B30","v":"20XX BUILD ANALYSIS"},"Not Required",null,null,null,null,null,null,null,null,null,0,0]
[null,"(Add totals for all alternatives and enter below)",null,null,null,null,null,null,null,null,null,null,0,0]
[null,null,null,null,null,null,null,null,null,null,null,null,0,0]
[6.1,"Highway Capacity Software (HCS) Analysis",null,null,null,null,null,null,null,null,null,null,0,0]
[null,"Freeway Facilities Analysis/FREEVAL - Analyzed in Base Year",0,null,{"$f":"E99*0.5","v":4.1665000000000001E-2},{"$f":"F99*0.5","v":4.1665000000000001E-2},{"$f":"IF($C$89=\"Required\",($C93*E93),0)","v":0},{"$f":"IF($C$89=\"Required\",($C93*F93),0)","v":0},"50% of new analysis",null,null,null,19.999200000000002,19.999200000000002]
[null,"Basic Freeway Segments  - Analyzed in Base Year",0,null,{"$f":"E100*0.5","v":3.125E-2},3.125E-2,{"$f":"IF($C$89=\"Required\",($C94*E94),0)","v":0},0,"50% of new analysis",null,null,null,15,15]
[null,"Ramp Merge and Diverge Segments  - Analyzed in Base Year",0,null,4.1665000000000001E-2,4.1665000000000001E-2,0,0,"50% of new analysis",null,null,null,19.999200000000002,19.999200000000002]
[null,"Freeway Weaving Segments  - Analyzed in Base Year",0,null,4.1665000000000001E-2,4.1665000000000001E-2,0,0,"50% of new analysis",null,null,null,19.999200000000002,19.999200000000002]
[null,"Multi-lane Highway Segments - Analyzed in Base Year",0,null,3.125E-2,3.125E-2,0,0,"50% of new analysis",null,null,null,15,15]
[null,"Two-Lane Highway Segments - Analyzed in Base Year",0,null,3.125E-2,3.125E-2,0,0,"50% of new analysis",null,null,null,{"$f":"E98*480","v":15},15]
[null,"Freeway Facilities Analysis/FREEVAL - New Analysis Segment",0,null,8.3330000000000001E-2,8.3330000000000001E-2,0,0,"40 minutes per segment",null,null,null,39.998400000000004,39.998400000000004]
[null,"Basic Freeway Segments - New Analysis Segment",0,null,6.25E-2,6.25E-2,0,0,"30 minutes per segment",null,null,null,30,30]
[null,"Ramp Merge and Diverge Segments - New Analysis Segment",0,null,8.3330000000000001E-2,8.3330000000000001E-2,0,0,"40 minutes per segment",null,null,null,39.998400000000004,39.998400000000004]
[null,"Freeway Weaving Segments - New Analysis Segment",0,null,8.3330000000000001E-2,8.3330000000000001E-2,0,0,"40 minutes per segment",null,null,null,39.998400000000004,39.998400000000004]
[null,"Multi-lane Highway Segments - New Analysis Segment",0,null,6.25E-2,6.25E-2,0,0,"30 minutes per segment",null,null,null,30,30]
[null,"Two-Lane Highway Segments - New Analysis Segment",0,null,6.25E-2,6.25E-2,0,0,"30 minutes per segment",null,null,null,30,30]
[null,"Report Figures, Tables, Output Sheets, etc.",{"$f":"SUM(C93:C104)","v":0},null,{"$f":"E41*0.75","v":2.34375E-2},{"$f":"F41*0.75","v":2.34375E-2},0,0,"75% assumes that portion has been developed in BY and 2040 No-Build",null,null,null,11.25,11.25]
[null,"Quality Control",null,null,0.05,0.1,{"$f":"SUM(G93:G105)*E106","v":0},{"$f":"SUM(H93:H105)*F106","v":0},"5-10% of sum of above time",null,null,null,24,48]
[null,null,null,null,null,null,null,null,null,null,null,null,0,0]
[6.2,"Synchro Analysis",null,null,null,null,null,null,null,null,null,null,0,0]
[null,"Unsignalized Intersection - Analyzed in Base Year",0,null,{"$f":"E112/2","v":4.1665000000000001E-2},{"$f":"F112/2","v":4.1665000000000001E-2},{"$f":"IF($C$89=\"Required\",($C109*E109),0)","v":0},0,"50% of new analysis",null,null,null,19.999200000000002,19.999200000000002]
[null,"Signalized Intersection (Standard) - Analyzed in Base Year",0,null,{"$f":"E113/2","v":0.1875},0.1875,0,0,"50% of new analysis",null,null,null,90,90]
[null,"Signalized Intersection (Unconventional) - Analyzed in Base Year",0,null,0.25,0.25,0,0,"50% of new analysis",null,null,null,120,120]
[null,"Unsignalized Intersection - New Analysis Intersection",0,null,8.3330000000000001E-2,8.3330000000000001E-2,0,0,"40 minutes per segment",null,null,null,39.998400000000004,39.998400000000004]
[null,"Signalized Intersection (Standard) - New Analysis Intersection",0,null,0.375,0.375,0,0,"3 hours per intersection",null,null,null,180,180]
[null,"Signalized Intersection (Unconventional) - New Analysis Intersection",0,null,0.5,0.5,0,0,"4 hours per intersection",null,null,null,240,240]
[null,"Report Figures, Tables, Output Sheets, etc.",{"$f":"SUM(C109:C114)","v":0},null,{"$f":"E47*0.75","v":3.1252500000000003E-2},{"$f":"F47*0.75","v":3.1252500000000003E-2},0,0,"75% assumes that portion has been developed in BY and 2040 No-Build",null,null,null,15.001200000000001,15.001200000000001]
[null,"Quality Control",null,null,0.05,0.1,{"$f":"SUM(G109:G115)*E116","v":0},{"$f":"SUM(H109:H115)*F116","v":0},"5-10% of sum of above time",null,null,null,24,48]
[null,null,null,null,null,null,null,null,null,null,null,null,0,0]
[6.3,"Sidra Analysis",null,null,null,null,null,null,null,null,null,null,0,0]
[null,"Roundabout Intersection - Analyzed in Base Year",0,null,{"$f":"E120/2","v":0.125},{"$f":"F120/2","v":0.125},{"$f":"IF($C$89=\"Required\",($C119*E119),0)","v":0},0,"50% of new analysis",null,null,null,60,60]
[null,"Roundabout Intersection - New Analysis Intersection",0,null,0.25,0.25,0,0,"2 hours per intersection",null,null,null,120,120]
[null,"Report Figures, Tables, Output Sheets, etc.",{"$f":"SUM(C119:C120)","v":0},null,{"$f":"E51*0.75","v":3.1252500000000003E-2},{"$f":"F51*0.75","v":3.1252500000000003E-2},0,0,"75% assumes that portion has been developed in BY and 2040 No-Build",null,null,null,15.001200000000001,15.001200000000001]
[null,"Quality Control",null,null,0.05,0.1,{"$f":"SUM(G119:G121)*E122","v":0},{"$f":"SUM(H119:H121)*F122","v":0},"5-10% of sum of above time",null,null,null,24,48]
[null,null,null,null,null,null,null,null,null,null,null,null,0,0]
[6.4,"Design Iterations (Determine Based on Complexity and Level of Design)",0,null,null,null,{"$f":"IF($C$89=\"Required\",($C124),0)","v":0},{"$f":"IF($C$89=\"Required\",($C124),0)","v":0},null,null,null,null,0,0]
[null,null,null,null,null,null,null,null,null,null,null,null,0,0]
[null,null,null,null,null,null,null,null,null,null,null,null,0,0]
[7,{"$f":"CongMgt!B35","v":"20XX BUILD ANALYSIS"},"Not Required",null,null,null,null,null,null,null,null,null,0,0]
[null,null,null,null,null,null,null,null,null,null,null,null,0,0]
[7.1,"Synchro Analysis",null,null,null,null,null,null,null,null,null,null,0,0]
[null,"Signalized Intersection (Standard) - Analyzed in Base Year",0,null,{"$f":"E113/2","v":0.1875},{"$f":"F113/2","v":0.1875},{"$f":"IF($C$127=\"Required\",($C130*E130),0)","v":0},{"$f":"IF($C$127=\"Required\",($C130*F130),0)","v":0},"50% of new analysis",null,null,null,90,90]
[null,"Signalized Intersection (Unconventional) - Analyzed in Base Year",0,null,{"$f":"E114/2","v":0.25},{"$f":"F114/2","v":0.25},{"$f":"IF($C$127=\"Required\",($C131*E131),0)","v":0},{"$f":"IF($C$127=\"Required\",($C131*F131),0)","v":0},"50% of new analysis",null,null,null,120,120]
[null,"Report Figures, Tables, Output Sheets, etc.",{"$f":"SUM(C130:C131)","v":0},null,{"$f":"E47*0.75","v":3.1252500000000003E-2},{"$f":"F47*0.75","v":3.1252500000000003E-2},0,{"$f":"IF($C$127=\"Required\",($C132*F132),0)","v":0},"75% assumes that portion has been developed in BY and 2040 No-Build",null,null,null,15.001200000000001,15.001200000000001]
[null,"Quality Control",null,null,0.05,0.1,{"$f":"SUM(G130:G132)*E133","v":0},{"$f":"SUM(H130:H132)*F133","v":0},"5-10% of sum of above time",null,null,null,24,48]
[null,null,null,null,null,null,null,null,null,null,null,null,0,0]
[8,"Documentation",null,null,null,null,null,null,null,null,null,null,0,0]
[8.1,"Traffic Capacity Analysis Technical Memorandum",null,null,null,null,null,null,"Assumes all breakouts, figures, tables and output sheets are included in above tasks - simply the process of writing the documentation and assembling the report.",null,null,null,0,0]
[null,"Exec Summary, Background, Methodology, Conclusions, etc.",{"$f":"IF((SUM(C138:C142)>0),1,0)","v":0},null,0.25,0.75,{"$f":"C137*E137","v":0},{"$f":"F137*C137","v":0},"2-6 hours to develop text and supporting data"]
[null,"Traffic Volume Development ",{"$f":"IF(($C$25=\"Required\"),1,0)","v":0},null,0.25,0.5,{"$f":"C138*E138","v":0},0,"2-4 hours to document procedure for volume development and add data to Appendix"]
[null,{"$f":"B31","v":"20XX BASE YEAR MODEL"},{"$f":"IF(($C$31=\"Required\"),1,0)","v":0},null,0.25,1,0,0,"2-8 hours to document base year analysis "]
[null,{"$f":"B55","v":"20XX NO-BUILD ANALYSIS"},{"$f":"IF(($C$55=\"Required\"),1,0)","v":0},null,0.25,0.75,0,0,"2-6 hours to document future year no-build analysis "]
[null,{"$f":"B89","v":"20XX BUILD ANALYSIS"},{"$f":"IF(($C$89=\"Required\"),1,0)","v":0},null,0.75,1.5,0,0,"6-12 hours to document future year build analysis "]
[null,{"$f":"B127","v":"20XX BUILD ANALYSIS"},{"$f":"IF(($C$127=\"Required\"),1,0)","v":0},null,0.25,0.5,0,0,"2-4 hours to document base year build analysis "]
[]
[10.1,"Subconsultant Coordination",0,0,0,0,{"$f":"C144*D144*E144","v":0},{"$f":"C144*D144*F144","v":0},"Based on complexity of project and how much coordination is needed with other groups or branches"]
[]
[11,"Additional Scope Items"]
[11.1,"Multi-hour Analysis Adjustment - HCS Analysis",0,null,{"$f":"IF((C147=0),0,IF((C147<2.1),0,IF((C147<5),0.1,IF((C147<7),0.15,IF((C147>6),0.2,0)))))","v":0},{"$f":"IF((C147=0),0,IF((C147<2.1),0,IF((C147<5),0.2,IF((C147<7),0.25,IF((C147>6),0.3,0)))))","v":0},{"$f":"(SUM(G35:G42,G58:G71,G93:G106))*E147","v":0},{"$f":"(SUM(H35:H42,H58:H71,H93:H106))*F147","v":0},"10-30% of sections 4.1, 5.1, 6.1"]
[11.2,"Multi-hour Analysis Adjustment - Synchro Analysis",0,null,{"$f":"IF((C148=0),0,IF((C148<2.1),0,IF((C148<5),0.1,IF((C148<7),0.15,IF((C148>6),0.2,0)))))","v":0},{"$f":"IF((C148=0),0,IF((C148<2.1),0,IF((C148<5),0.2,IF((C148<7),0.25,IF((C148>6),0.3,0)))))","v":0},{"$f":"(SUM(G44:G48,G74:G81,G109:G116))*E148","v":0},{"$f":"(SUM(H44:H48,H74:H81,H109:H116))*F148","v":0},"10-30% of sections 4.2, 5.2,6.2, 7.1"]
[11.3,"Multi-hour Analysis Adjustment - Sidra Analysis",0,null,0,0,{"$f":"(SUM(G50:G52,G84:G87,G119:G122))*E149","v":0},{"$f":"(SUM(H50:H52,H84:H87,H119:H122))*F149","v":0},"10-30% of sections 4.3, 5.3, 6.3"]
[]
[]
[null,"Insert Additional Scope Items TOTAL Workdays Here:",0,null,null,null,{"$f":"C152","v":0},{"$f":"C152","v":0},"Insert Number of Workdays Here for inclusion in claculation of project management time"]

{"sheet":"CongMgt-TransModeler","index":55,"n_rows":238,"n_cols":42,"rows_kept":238,"cut":false,"hidden":true,"merged":[[0,36,4,36],[0,37,4,37],[0,38,4,38],[0,39,4,39],[0,40,4,40],[43,3,43,4],[97,3,97,4],[29,3,29,4],[0,34,1,34],[0,35,4,35]]}
["Last Updated: 06/19/2019",null,null,null,null,null,null,null,null,null,null,null,null,null,null,null,null,null,null,null,null,null,null,null,null,null,null,null,null,null,null,null,null,"TransModeler",{"$f":"AI16","v":2},"Traffic Unit Head (TM-1)","Project Engineer Sup. (TES-3)","Project Engineer Sup. (TES-2)","Project Engineer (TE-3)","Project Engineer (TE-2)","Project Engineer (TE-1)"]
[null,"Level of Complexity",null,"1 - Simple",null,null,null,null,null,null,null,null,null,null,null,null,null,null,null,"1 - Simple",1,"1 - Isolated (1)",1,null,null,null,null,{"$f":"MIN('CongMgt-TransModeler'!$H$8:$H$9)","v":0},{"$f":"MIN('CongMgt-TransModeler'!$I$8:$I$9)","v":0},{"$f":"AB2+(('CongMgt-TransModeler'!$D$5/10)*(AC2-AB2))","v":0}]
[null,"Size of Existing Network (# of signalized intersections)",null,"1 - Isolated (1)",null,null,null,null,null,null,null,null,null,null,null,null,null,null,null,"2 - Low",2,"2 - Small (2-4)",2,null,null,null,null,{"$f":"MIN('CongMgt-TransModeler'!$H$10:$H$11)+'CongMgt-TransModeler'!$H$12+'CongMgt-TransModeler'!$H$13","v":0},{"$f":"MIN('CongMgt-TransModeler'!$I$10:$I$11)+'CongMgt-TransModeler'!$I$12+'CongMgt-TransModeler'!$I$13","v":0},{"$f":"AB3+(('CongMgt-TransModeler'!$D$5/10)*(AC3-AB3))","v":0}]
[null,null,null,null,null,null,null,null,null,null,null,null,null,null,null,null,null,null,null,"3 - Moderate",3,"3 - Medium (5-9)",3,null,null,null,null,{"$f":"MIN('CongMgt-TransModeler'!$H$14:$H$15)","v":0},{"$f":"MIN('CongMgt-TransModeler'!$I$14:$I$15)","v":0},{"$f":"AB4+(('CongMgt-TransModeler'!$D$5/10)*(AC4-AB4))","v":0},null,null,null,null,"Complexity"]
[null,"Estimation Index (1-10)",null,{"$f":"T7+V7","v":2},null,"Unit Cost","Unit Cost","Total","Total",null,null,null,null,null,null,null,null,null,null,"4 - High",4,"4 - Large (10-17)",4,null,null,null,null,{"$f":"'CongMgt-TransModeler'!$H$18","v":0},{"$f":"'CongMgt-TransModeler'!$I$18","v":0},{"$f":"AB5+(('CongMgt-TransModeler'!$D$5/10)*(AC5-AB5))","v":0},null,null,null,null,"Index"]
[null,null,null,null,null,"Workdays","Workdays","Workdays","Workdays",null,null,null,null,null,null,null,null,null,null,"5 - Very Complex",5,"5 - Very Large (18+)",5,null,null,null,null,{"$f":"'CongMgt-TransModeler'!$H$21+'CongMgt-TransModeler'!$H$22+'CongMgt-TransModeler'!$H$23","v":0},{"$f":"'CongMgt-TransModeler'!$I$21+'CongMgt-TransModeler'!$I$22+'CongMgt-TransModeler'!$I$23","v":0},{"$f":"AB6+(('CongMgt-TransModeler'!$D$5/10)*(AC6-AB6))","v":0},null,null,null,null,2,0.12,0.17,0.1,0.1,0.42,0.09]
[1,"Project Management, Coordination and Administration",null,null,null,"(Low)","(High)","(Low)","(High)",null,null,null,null,null,null,null,null,null,null,{"$f":"VLOOKUP(D2,T2:U6,2,TRUE)","v":1},null,{"$f":"VLOOKUP(D3,V2:W6,2,TRUE)","v":1},null,null,null,null,null,null,null,null,null,null,null,null,3,0.13,0.18,0.1,0.1,0.41,0.08]
[1.1000000000000001,"Project Management and Administration",18,0,null,0.75,1.5,{"$f":"D8*F8","v":0},{"$f":"D8*G8","v":0},"Based on complexity of project and how much coordination is needed.  If part of a contract from another branch, should be removed or only 1 month allowed.  If standalone project may be toward higher end.",null,null,null,null,null,null,null,null,null,null,null,null,null,null,null,null,null,{"$f":"('CongMgt-TransModeler'!$H$26+'CongMgt-TransModeler'!$H$27)","v":0},{"$f":"('CongMgt-TransModeler'!$I$26+'CongMgt-TransModeler'!$I$27)","v":0},{"$f":"AB8+(('CongMgt-TransModeler'!$D$5/10)*(AC8-AB8))","v":0},null,null,null,null,4,0.14000000000000001,0.19,0.1,0.1,0.39,0.08]
[null,null,null,null,null,null,null,{"$f":"SUM(H18:H238)*0.1","v":0},{"$f":"SUM(I18:I238)*0.1","v":0},"Cap of 10% of Workdays to complete analysis",null,null,null,null,null,null,null,null,null,null,null,null,null,null,null,null,null,{"$f":"('CongMgt-TransModeler'!$H$28)","v":0},{"$f":"('CongMgt-TransModeler'!$I$28)","v":0},{"$f":"AB9+(('CongMgt-TransModeler'!$D$5/10)*(AC9-AB9))","v":0},null,null,null,null,5,0.15,0.2,0.125,0.125,0.33,7.0000000000000007E-2]
[1.2,"Project Coordination",19,0,null,0.25,0.75,{"$f":"D10*F10","v":0},{"$f":"D10*G10","v":0},"Based on complexity of project and how much coordination is needed with other groups or branches",null,null,null,null,null,null,null,null,null,null,"Non-Calibrated",null,null,null,null,null,null,{"$f":"('CongMgt-TransModeler'!$H$31+'CongMgt-TransModeler'!$H$32+'CongMgt-TransModeler'!$H$33+'CongMgt-TransModeler'!$H$34+'CongMgt-TransModeler'!$H$35+'CongMgt-TransModeler'!$H$36)","v":0},{"$f":"('CongMgt-TransModeler'!$I$31+'CongMgt-TransModeler'!$I$32+'CongMgt-TransModeler'!$I$33+'CongMgt-TransModeler'!$I$34+'CongMgt-TransModeler'!$I$35+'CongMgt-TransModeler'!$I$36)","v":0},{"$f":"AB10+(('CongMgt-TransModeler'!$D$5/10)*(AC10-AB10))","v":0},null,null,null,null,6,0.16,0.21,0.125,0.125,0.31,7.0000000000000007E-2]
[null,null,null,null,null,null,null,{"$f":"SUM(H18:H238)*0.05","v":0},{"$f":"SUM(I18:I238)*0.05","v":0},"Cap of 5% of Workdays to complete analysis",null,null,null,null,null,null,null,null,null,null,null,null,null,null,null,null,null,{"$f":"('CongMgt-TransModeler'!$H$39)","v":0},{"$f":"('CongMgt-TransModeler'!$I$39)","v":0},{"$f":"AB11+(('CongMgt-TransModeler'!$D$5/10)*(AC11-AB11))","v":0},null,null,null,null,7,0.17,0.22,0.125,0.125,0.3,0.06]
[null,"Meetings","020/021",0,0,0.5,0.5,{"$f":"D12*E12*F12","v":0},{"$f":"D12*E12*G12","v":0},"Depending on likely length of meetings.  Includes travel and prep time",null,null,null,null,null,null,null,null,null,null,"Calibrated to Forecast",null,null,null,null,null,null,{"$f":"('CongMgt-TransModeler'!$H$42)","v":0},{"$f":"('CongMgt-TransModeler'!$I$42)","v":0},{"$f":"AB12+(('CongMgt-TransModeler'!$D$5/10)*(AC12-AB12))","v":0},null,null,null,null,8,0.18,0.23,0.15,0.15,0.23,0.06]
[null,"Additional travel time (beyond 1 hour assumed for local meetings)",null,0,{"$f":"E12*D12","v":0},0.125,0.125,{"$f":"D13*E13*F13","v":0},{"$f":"D13*E13*G13","v":0},"Add additional travel time for meetings not local to attendees (column E is number of meeting * attendees from line above.  If not all meetings are out of town overwrite with number of person-meetings requiring additional travel.)",null,null,null,null,null,null,null,null,null,null,"Calibrated to Field Counts",null,null,null,null,null,null,{"$f":"('CongMgt-TransModeler'!$H$45+'CongMgt-TransModeler'!$H$46)","v":0},{"$f":"('CongMgt-TransModeler'!$I$45+'CongMgt-TransModeler'!$I$46)","v":0},{"$f":"AB13+(('CongMgt-TransModeler'!$D$5/10)*(AC13-AB13))","v":0},null,null,null,null,9,0.19,0.24,0.15,0.15,0.22,0.05]
[1.3,"Consultant Coordination",null,0,0,0.25,0.75,{"$f":"D14*E14*F14","v":0},{"$f":"D14*E14*G14","v":0},"Based on complexity of project and how much coordination is needed with prime or sub consultants.  Enter number of consultants that require substantial coordination",null,null,null,null,null,null,null,null,null,null,null,null,null,null,null,null,null,{"$f":"('CongMgt-TransModeler'!$H$48)","v":0},{"$f":"('CongMgt-TransModeler'!$I$48)","v":0},{"$f":"AB14+(('CongMgt-TransModeler'!$D$5/10)*(AC14-AB14))","v":0},null,null,null,null,10,0.2,0.25,0.15,0.15,0.2,0.05]
[null,null,null,null,null,null,null,{"$f":"SUM(H18:H238)*0.05","v":0},{"$f":"SUM(I18:I238)*0.05","v":0},"Cap of 5% of Workdays to complete analysis"]
[null,null,null,null,null,null,null,null,null,null,null,null,null,null,null,null,null,null,null,null,"Required",null,null,null,null,null,null,{"$f":"'CongMgt-TransModeler'!$H$55+'CongMgt-TransModeler'!$H$56","v":0},{"$f":"'CongMgt-TransModeler'!$I$55+'CongMgt-TransModeler'!$I$56","v":0},{"$f":"AB16+(('CongMgt-TransModeler'!$D$5/10)*(AC16-AB16))","v":0},null,null,null,null,{"$f":"'CongMgt-TransModeler'!D5","v":2},{"$f":"VLOOKUP(AI16,AI6:AO15,2)","v":0.12},{"$f":"VLOOKUP(AI16,AI6:AO15,3)","v":0.17},{"$f":"VLOOKUP(AI16,AI6:AO15,4)","v":0.1},{"$f":"VLOOKUP(AI16,AI6:AO15,5)","v":0.1},{"$f":"VLOOKUP(AI16,AI6:AO15,6)","v":0.42},{"$f":"VLOOKUP(AI16,AI6:AO15,7)","v":0.09}]
[2,"Data Collection and Field Visit",null,null,null,null,null,null,null,null,null,null,null,null,null,null,null,null,null,null,"Not Required",null,null,null,null,null,null,{"$f":"SUM('CongMgt-TransModeler'!$H$59:$H$73)","v":0},{"$f":"SUM('CongMgt-TransModeler'!$I$59:$I$73)","v":0},{"$f":"AB17+(('CongMgt-TransModeler'!$D$5/10)*(AC17-AB17))","v":0}]
[2.1,"Data Collection (0 or 1 only)",null,0,null,0.5,2,{"$f":"D18*F18","v":0},{"$f":"D18*G18","v":0},"Depend on size of network and how much data is needed",null,null,null,null,null,null,null,null,null,null,null,null,null,null,null,null,null,null,null,null,null,null,null,null,null,{"$f":"AJ16","v":0.12},0.17,0.1,0.1,0.42,0.09]
[null,null,null,null,null,null,null,null,null,null,null,null,null,null,null,null,null,null,null,null,null,null,null,null,null,null,null,{"$f":"('CongMgt-TransModeler'!$H$76+'CongMgt-TransModeler'!$H$78)","v":0},{"$f":"('CongMgt-TransModeler'!$I$76+'CongMgt-TransModeler'!$I$78)","v":0},{"$f":"AB19+(('CongMgt-TransModeler'!$D$5/10)*(AC19-AB19))","v":0},null,null,null,null,100000,{"$f":"AJ18+AK18+AL18+AM18+AN18+AO18","v":0.99999999999999989},0,0,0,0,0]
[2.2000000000000002,"Field Visit",null,"Not Required",null,null,null,null,null,null,null,null,null,null,null,null,null,null,null,null,null,null,null,null,null,null,null,{"$f":"'CongMgt-TransModeler'!$H$80+'CongMgt-TransModeler'!$H$81","v":0},{"$f":"'CongMgt-TransModeler'!$I$80+'CongMgt-TransModeler'!$I$81","v":0},{"$f":"AB20+(('CongMgt-TransModeler'!$D$5/10)*(AC20-AB20))","v":0},null,null,null,null,100001,{"$f":"AJ18+AK18+AL18+AM18","v":0.49},0,0,0,0,{"$f":"AN18+AO18","v":0.51}]
[null,"Field Visit - Preparation",null,1,null,0.25,0.75,{"$f":"IF($D$20=\"Required\",($D21*F21),0)","v":0},{"$f":"IF($D$20=\"Required\",($D21*G21),0)","v":0},"Depends on how large the study is",null,null,null,null,null,null,null,null,null,null,null,null,null,null,null,null,null,{"$f":"'CongMgt-TransModeler'!$H$83+'CongMgt-TransModeler'!$H$84","v":0},{"$f":"'CongMgt-TransModeler'!$I$83+'CongMgt-TransModeler'!$I$84","v":0},{"$f":"AB21+(('CongMgt-TransModeler'!$D$5/10)*(AC21-AB21))","v":0},null,null,null,null,100010,{"$f":"AJ18+AK18+AL18","v":0.39},0,0,0,{"$f":"AM18+AN18+AO18","v":0.61},0]
[null,"Field Visit Travel - One Way",22,0,2,0.125,0.125,{"$f":"IF($D$20=\"Required\",(D22*E22*F22*2),0)","v":0},{"$f":"IF($D$20=\"Required\",(D22*E22*G22*2),0)","v":0},"Travel time to project ",null,null,null,null,null,null,null,null,null,null,null,null,null,null,null,null,null,{"$f":"SUM('CongMgt-TransModeler'!$H$86:$H$93)","v":0},{"$f":"SUM('CongMgt-TransModeler'!$I$86:$I$93)","v":0},{"$f":"AB22+(('CongMgt-TransModeler'!$D$5/10)*(AC22-AB22))","v":0},null,null,null,null,100011,{"$f":"AJ18+AK18+AL18","v":0.39},0,0,0,{"$f":"AM18+(AN18*0.7)","v":0.39400000000000002},{"$f":"AO18+(AN18*0.3)","v":0.216}]
[null,"Field Visit Observation",null,0,2,0.125,0.125,{"$f":"IF($D$20=\"Required\",(D23*E23*F23),0)","v":0},{"$f":"IF($D$20=\"Required\",(D23*E23*G23),0)","v":0},"Assume only observing 1 peak and field review",null,null,null,null,null,null,null,null,null,null,null,null,null,null,null,null,null,{"$f":"'CongMgt-TransModeler'!$H$95","v":0},{"$f":"'CongMgt-TransModeler'!$I$95","v":0},{"$f":"AB23+(('CongMgt-TransModeler'!$D$5/10)*(AC23-AB23))","v":0},null,null,null,null,100100,{"$f":"AJ18+AK18","v":0.29000000000000004},0,0,{"$f":"AL18+AM18+AN18+AO18","v":0.71},0,0]
[null,null,null,null,null,null,null,null,null,null,null,null,null,null,null,null,null,null,null,null,null,null,null,null,null,null,null,{"$f":"'CongMgt-TransModeler'!$H$99+'CongMgt-TransModeler'!$H$100+'CongMgt-TransModeler'!$H$101","v":0},{"$f":"'CongMgt-TransModeler'!$I$99+'CongMgt-TransModeler'!$I$100+'CongMgt-TransModeler'!$I$101","v":0},{"$f":"AB24+(('CongMgt-TransModeler'!$D$5/10)*(AC24-AB24))","v":0},null,null,null,null,100101,{"$f":"AJ18+AK18","v":0.29000000000000004},0,0,{"$f":"AL18+AM18+(AN18*0.3)","v":0.32600000000000001},0,{"$f":"(AN18*0.7)+AO18","v":0.38400000000000001}]
[3,"Traffic Volume Development ",null,"Not Required",null,null,null,null,null,null,null,null,null,null,null,null,null,null,null,null,null,null,null,null,null,null,null,{"$f":"'CongMgt-TransModeler'!$H$104","v":0},{"$f":"'CongMgt-TransModeler'!$I$104","v":0},{"$f":"AB25+(('CongMgt-TransModeler'!$D$5/10)*(AC25-AB25))","v":0},null,null,null,null,100110,{"$f":"AJ18+AK18","v":0.29000000000000004},0,0,{"$f":"AM18+AL18","v":0.2},{"$f":"AN18+AO18","v":0.51},0]
[3.1,"Convert Forecast to Peak Hour Volumes - Balanced","023/024",0,0,0.03,0.03,{"$f":"IF(($D$25=\"Required\"),(D26*E26*F26),0)","v":0},{"$f":"IF(($D$25=\"Required\"),(D26*E26*G26),0)","v":0},"15 minutes per intersection per scenario",null,null,null,null,null,null,null,null,null,null,null,null,null,null,null,null,null,{"$f":"'CongMgt-TransModeler'!$H$107","v":0},{"$f":"'CongMgt-TransModeler'!$I$107","v":0},{"$f":"AB26+(('CongMgt-TransModeler'!$D$5/10)*(AC26-AB26))","v":0},null,null,null,null,100111,{"$f":"AJ18+AK18","v":0.29000000000000004},0,0,{"$f":"AL18+AM18","v":0.2},{"$f":"AN18","v":0.42},{"$f":"AO18","v":0.09}]
[null,"Breakouts for interchanges/alternative designs","025/026",0,0,0.03,0.06,{"$f":"IF(($D$25=\"Required\"),(D27*E27*F27),0)","v":0},{"$f":"IF(($D$25=\"Required\"),(D27*E27*G27),0)","v":0},"15-30 minutes  per breakout to interchange or alternative intersection",null,null,null,null,null,null,null,null,null,null,null,null,null,null,null,null,null,null,null,null,null,null,null,null,101000,{"$f":"AJ18+AK18","v":0.29000000000000004},0,{"$f":"AL18+AM18+AN18+AO18","v":0.71},0,0,0]
[3.2,"Balance Network","023/024",0,0,0.02,0.03,{"$f":"IF(($D$25=\"Required\"),(D28*E28*F28),0)","v":0},{"$f":"IF(($D$25=\"Required\"),(D28*E28*G28),0)","v":0},"10-15 minutes per intersection to balance.  This is essentially developing a spreadsheet that may be more for a single scenario, but is much lower for additional scenarios as it is already setup",null,null,null,null,null,null,null,null,null,null,null,null,null,null,null,null,null,{"$f":"SUM('CongMgt-TransModeler'!$H$114:$H$128)","v":0},{"$f":"SUM('CongMgt-TransModeler'!$I$114:$I$128)","v":0},{"$f":"AB28+(('CongMgt-TransModeler'!$D$5/10)*(AC28-AB28))","v":0},null,null,null,null,101001,{"$f":"AJ18+AK18","v":0.29000000000000004},0,{"$f":"AL18+AM18+(AN18*0.3)","v":0.32600000000000001},0,0,{"$f":"(AN18*0.7)+AO18","v":0.38400000000000001}]
[null,null,null,null,null,null,null,null,null,null,null,null,null,null,null,null,null,null,null,null,null,null,null,null,null,null,null,{"$f":"'CongMgt-TransModeler'!$H$131+'CongMgt-TransModeler'!$H$133","v":0},{"$f":"'CongMgt-TransModeler'!$I$131+'CongMgt-TransModeler'!$I$133","v":0},{"$f":"AB29+(('CongMgt-TransModeler'!$D$5/10)*(AC29-AB29))","v":0},null,null,null,null,101010,{"$f":"AJ18+AK18","v":0.29000000000000004},0,{"$f":"AL18+AM18","v":0.2},0,{"$f":"AN18+AO18","v":0.51},0]
[3.3,"OD Matrix Development",null,{"$f":"IF((SUM(C31:C36)>1),\"Please Choose Only 1 OD Method\",\"\")","v":""},null,null,null,null,null,null,null,null,null,null,null,null,null,null,null,null,null,null,null,null,null,null,null,{"$f":"'CongMgt-TransModeler'!$H$135+'CongMgt-TransModeler'!$H$136","v":0},{"$f":"'CongMgt-TransModeler'!$I$135+'CongMgt-TransModeler'!$I$136","v":0},{"$f":"AB30+(('CongMgt-TransModeler'!$D$5/10)*(AC30-AB30))","v":0},null,null,null,null,101011,{"$f":"AJ18+AK18","v":0.29000000000000004},0,{"$f":"AL18+AM18","v":0.2},0,{"$f":"AN18","v":0.42},{"$f":"AO18","v":0.09}]
[null,"Method 1: Corridor Turn Proportions",{"$f":"IF((I31>0),1,0)","v":0},0,0,4.1700000000000001E-2,4.1700000000000001E-2,{"$f":"IF(($D$25=\"Required\"),(D31*E31*F31),0)","v":0},{"$f":"IF(($D$25=\"Required\"),(D31*E31*G31),0)","v":0},"20 minutes per intersection to input data into spreadsheet",null,null,null,null,null,null,null,null,null,null,null,null,null,null,null,null,null,{"$f":"'CongMgt-TransModeler'!$H$138+'CongMgt-TransModeler'!$H$139","v":0},{"$f":"'CongMgt-TransModeler'!$I$138+'CongMgt-TransModeler'!$I$139","v":0},{"$f":"AB31+(('CongMgt-TransModeler'!$D$5/10)*(AC31-AB31))","v":0},null,null,null,null,101100,{"$f":"AJ18","v":0.12},0,{"$f":"AK18+AL18+AM18","v":0.37},{"$f":"AN18+AO18","v":0.51},0,0]
[null,"Method 2: Engineering Judgment/Manual Balancing",{"$f":"IF((I32>0),1,0)","v":0},0,0,6.25E-2,8.3299999999999999E-2,0,0,"30-40 minutes per intersection to develop matrix.  This is essentially developing a spreadsheet that may be more for a single scenario, but is much lower for additional scenarios as it is already setup",null,null,null,null,null,null,null,null,null,null,null,null,null,null,null,null,null,{"$f":"SUM('CongMgt-TransModeler'!$H$141:$H$148)","v":0},{"$f":"SUM('CongMgt-TransModeler'!$I$141:$I$148)","v":0},{"$f":"AB32+(('CongMgt-TransModeler'!$D$5/10)*(AC32-AB32))","v":0},null,null,null,null,101101,{"$f":"AJ18+AK18","v":0.29000000000000004},0,{"$f":"AL18","v":0.1},{"$f":"AM18+(AN18*0.5)","v":0.31},0,{"$f":"AO18+(AN18*0.5)","v":0.3}]
[null,"Method 3: Travel Demand Models",0,0,0,9.3799999999999994E-2,0.125,{"$f":"IF(($D$25=\"Required\"),(IF((D33=0),0,(0.5+(AVERAGEA(D33:E33))*F33))),0)","v":0},{"$f":"IF(($D$25=\"Required\"),(IF((D33=0),0,(0.5+(AVERAGEA(D33:E33))*G33))),0)","v":0},"4 hours + 45-60 minutes per intersection to develop matrix.  This includes running the travel demand model.  If extensive work on the travel demand model is required it should be scoped separately",null,null,null,null,null,null,null,null,null,null,null,null,null,null,null,null,null,{"$f":"'CongMgt-TransModeler'!$H$151","v":0},{"$f":"'CongMgt-TransModeler'!$I$151","v":0},{"$f":"AB33+(('CongMgt-TransModeler'!$D$5/10)*(AC33-AB33))","v":0},null,null,null,null,101110,{"$f":"AJ18+AK18","v":0.29000000000000004},0,{"$f":"AL18","v":0.1},{"$f":"AM18","v":0.1},{"$f":"AN18+AO18","v":0.51},0]
[null,"Method 4: OD Data Collection",null,0,0,3.1300000000000001E-2,3.1300000000000001E-2,{"$f":"IF(($D$25=\"Required\"),(IF((D34=0),0,(0.375+(AVERAGEA(D34:E34))*F34))),0)","v":0},{"$f":"IF(($D$25=\"Required\"),(IF((D34=0),0,(0.375+(AVERAGEA(D34:E34))*G34))),0)","v":0},"3 hours + 15 minutes per intersection to run the StreetLight Data Insight data",null,null,null,null,null,null,null,null,null,null,null,null,null,null,null,null,null,{"$f":"'CongMgt-TransModeler'!$H$153","v":0},{"$f":"'CongMgt-TransModeler'!$I$153","v":0},{"$f":"AB34+(('CongMgt-TransModeler'!$D$5/10)*(AC34-AB34))","v":0},null,null,null,null,101111,{"$f":"AJ18+AK18","v":0.29000000000000004},0,{"$f":"AL18","v":0.1},{"$f":"AM18","v":0.1},{"$f":"AN18","v":0.42},{"$f":"AO18","v":0.09}]
[null,null,{"$f":"IF((I35>0),1,0)","v":0},0,0,3.1300000000000001E-2,4.1700000000000001E-2,{"$f":"IF(($D$25=\"Required\"),(D35*E35*F35),0)","v":0},{"$f":"IF(($D$25=\"Required\"),(D35*E35*G35),0)","v":0},"15-20 minutes per intersection to develop matrix.  This is essentially developing a spreadsheet that may be more for a single scenario, but is much lower for additional scenarios as it is already setup",null,null,null,null,null,null,null,null,null,null,null,null,null,null,null,null,null,{"$f":"'CongMgt-TransModeler'!$H$156","v":0},{"$f":"'CongMgt-TransModeler'!$I$156","v":0},{"$f":"AB35+(('CongMgt-TransModeler'!$D$5/10)*(AC35-AB35))","v":0},null,null,null,null,110000,{"$f":"AJ18","v":0.12},{"$f":"AK18+AL18+AM18+AN18+AO18","v":0.88},0,0,0,0]
[null,"Method 5: Turning Movement Based Simulation Output",0,0,0,3.1300000000000001E-2,3.1300000000000001E-2,{"$f":"IF(($D$25=\"Required\"),(IF((D36=0),0,(0.5+(AVERAGEA(D36:E36))*F36))),0)","v":0},{"$f":"IF(($D$25=\"Required\"),(IF((D36=0),0,(0.5+(AVERAGEA(D36:E36))*G36))),0)","v":0},"4 hours + 15 minutes per intersection to run TransModeler and average the outputs",null,null,null,null,null,null,null,null,null,null,null,null,null,null,null,null,null,null,null,null,null,null,null,null,110001,{"$f":"AJ18+AK18","v":0.29000000000000004},{"$f":"AL18+AM18","v":0.2},0,0,0,{"$f":"AN18+AO18","v":0.51}]
[null,null,null,null,null,null,null,null,null,null,null,null,null,null,null,null,null,null,null,null,null,null,null,null,null,null,null,{"$f":"SUM('CongMgt-TransModeler'!$H$163:$H$177)","v":0},{"$f":"SUM('CongMgt-TransModeler'!$I$163:$I$177)","v":0},{"$f":"AB37+(('CongMgt-TransModeler'!$D$5/10)*(AC37-AB37))","v":0},null,null,null,null,110010,{"$f":"AJ18+AK18","v":0.29000000000000004},{"$f":"AL18+AM18","v":0.2},0,0,{"$f":"AN18+AO18","v":0.51},0]
[3.4,"Origin Destination Matrix Estimation (ODME) Development",null,0,null,null,null,null,null,null,null,null,null,null,null,null,null,null,null,null,null,null,null,null,null,null,null,{"$f":"'CongMgt-TransModeler'!$H$180+'CongMgt-TransModeler'!$H$182","v":0},{"$f":"'CongMgt-TransModeler'!$I$180+'CongMgt-TransModeler'!$I$182","v":0},{"$f":"AB38+(('CongMgt-TransModeler'!$D$5/10)*(AC38-AB38))","v":0},null,null,null,null,110011,{"$f":"AJ18","v":0.12},{"$f":"AK18+AL18","v":0.27},0,0,{"$f":"AN18+AM18","v":0.52},{"$f":"AO18","v":0.09}]
[null,null,null,0,0,2.0799999999999999E-2,2.0799999999999999E-2,{"$f":"IF(($D$25=\"Required\"),(IF((D39=0),0,((0.375*D38)+(AVERAGEA(D39:E39))*D38*F39))),0)","v":0},{"$f":"IF(($D$25=\"Required\"),(IF((D39=0),0,((0.5*D38)+(AVERAGEA(D39:E39))*D38*G39))),0)","v":0},"3-4 hours per scenario + 10 minutes per origin or destination",null,null,null,null,null,null,null,null,null,null,null,null,null,null,null,null,null,{"$f":"'CongMgt-TransModeler'!$H$184+'CongMgt-TransModeler'!$H$185","v":0},{"$f":"'CongMgt-TransModeler'!$I$184+'CongMgt-TransModeler'!$I$185","v":0},{"$f":"AB39+(('CongMgt-TransModeler'!$D$5/10)*(AC39-AB39))","v":0},null,null,null,null,110100,{"$f":"AJ18","v":0.12},{"$f":"AK18+AL18","v":0.27},0,{"$f":"AM18+AN18+AO18","v":0.61},0,0]
[null,null,null,null,null,null,null,null,null,null,null,null,null,null,null,null,null,null,null,null,null,null,null,null,null,null,null,{"$f":"'CongMgt-TransModeler'!$H$187+'CongMgt-TransModeler'!$H$188","v":0},{"$f":"'CongMgt-TransModeler'!$I$187+'CongMgt-TransModeler'!$I$188","v":0},{"$f":"AB40+(('CongMgt-TransModeler'!$D$5/10)*(AC40-AB40))","v":0},null,null,null,null,110101,{"$f":"AJ18","v":0.12},{"$f":"AK18+AL18","v":0.27},0,{"$f":"AM18+(AN18*0.5)","v":0.31},0,{"$f":"AO18+(AN18*0.5)","v":0.3}]
[3.5,"Class Based OD Matrix Development",null,0,null,null,null,null,null,null,null,null,null,null,null,null,null,null,null,null,null,null,null,null,null,null,null,{"$f":"SUM('CongMgt-TransModeler'!$H$190:$H$197)","v":0},{"$f":"SUM('CongMgt-TransModeler'!$I$190:$I$197)","v":0},{"$f":"AB41+(('CongMgt-TransModeler'!$D$5/10)*(AC41-AB41))","v":0},null,null,null,null,110110,{"$f":"AJ18","v":0.12},{"$f":"AK18+AL18","v":0.27},0,{"$f":"AM18","v":0.1},{"$f":"AN18+AO18","v":0.51},0]
[null,null,null,0,0,2.0799999999999999E-2,2.0799999999999999E-2,{"$f":"IF(($D$25=\"Required\"),(IF((D42=0),0,(0.375+(AVERAGEA(D42:E42))*D41*F42))),0)","v":0},{"$f":"IF(($D$25=\"Required\"),(IF((D42=0),0,(0.375+(AVERAGEA(D42:E42))*D41*G42))),0)","v":0},"3 hours + 10 minutes per origin or destination",null,null,null,null,null,null,null,null,null,null,null,null,null,null,null,null,null,{"$f":"'CongMgt-TransModeler'!$H$200","v":0},{"$f":"'CongMgt-TransModeler'!$I$200","v":0},{"$f":"AB42+(('CongMgt-TransModeler'!$D$5/10)*(AC42-AB42))","v":0},null,null,null,null,110111,{"$f":"AJ18","v":0.12},{"$f":"AK18+AL18","v":0.27},0,{"$f":"AM18","v":0.1},{"$f":"AN18","v":0.42},{"$f":"AO18","v":0.09}]
[null,null,null,null,null,null,null,null,null,null,null,null,null,null,null,null,null,null,null,null,null,null,null,null,null,null,null,{"$f":"'CongMgt-TransModeler'!$H$202","v":0},{"$f":"'CongMgt-TransModeler'!$I$202","v":0},{"$f":"AB43+(('CongMgt-TransModeler'!$D$5/10)*(AC43-AB43))","v":0},null,null,null,null,111000,{"$f":"AJ18","v":0.12},{"$f":"AK18","v":0.17},{"$f":"AL18+AM18+AN18+AO18","v":0.71},0,0,0]
[3.6,"Multi-hour Simulation OD Matrix Development",null,{"$f":"IF((SUM(C45:C46)>1),\"Please Choose Only 1 OD Method\",IF(AND(E45>0,E45<3),\"Minimum Number of Hours is 3\",\"\"))","v":""},null,null,null,null,null,null,null,null,null,null,null,null,null,null,null,null,null,null,null,null,null,null,null,{"$f":"'CongMgt-TransModeler'!$H$205","v":0},{"$f":"'CongMgt-TransModeler'!$I$205","v":0},{"$f":"AB44+(('CongMgt-TransModeler'!$D$5/10)*(AC44-AB44))","v":0},null,null,null,null,111001,{"$f":"AJ18","v":0.12},{"$f":"AK18+AL18","v":0.27},{"$f":"AM18+(AN18*0.5)","v":0.31},0,0,{"$f":"AO18+(AN18*0.5)","v":0.3}]
[null,"Option 1: Scaling Factor and Loading Curve",{"$f":"IF((I45>0),1,0)","v":0},null,0,6.25E-2,6.25E-2,{"$f":"IF(($D$25=\"Required\"),(IF((E45=0),0,(0.375+((E45-2)*F45)))),0)","v":0},{"$f":"IF(($D$25=\"Required\"),(IF((E45=0),0,(0.375+((E45-2)*G45)))),0)","v":0},"2 hours + 30 minutes for each hour greater than standard 2 hours",null,null,null,null,null,null,null,null,null,null,null,null,null,null,null,null,null,{"$f":"'CongMgt-TransModeler'!$H$207","v":0},{"$f":"'CongMgt-TransModeler'!$I$207","v":0},{"$f":"AB45+(('CongMgt-TransModeler'!$D$5/10)*(AC45-AB45))","v":0},null,null,null,null,111010,{"$f":"AJ18","v":0.12},{"$f":"AK18","v":0.17},{"$f":"AL18+AM18","v":0.2},0,{"$f":"AN18+AO18","v":0.51},0]
[null,"Option 2: Individual OD matrices for each hour",0,0,0,null,null,{"$f":"IF(($D$25=\"Required\"),(SUM(H31:H36)*(0.5+(0.125*(E46-4)))),0)","v":0},{"$f":"IF(($D$25=\"Required\"),(SUM(I31:I36)*(0.5+(0.125*(E46-4)))),0)","v":0},"total time to develop 2 peak hour matrices (Section 3.3) multiplied by 50% for 4 hours and 12.5% for each hour beyond 4",null,null,null,null,null,null,null,null,null,null,null,null,null,null,null,null,null,null,null,null,null,null,null,null,111011,{"$f":"AJ18","v":0.12},{"$f":"AK18","v":0.17},{"$f":"AL18+AM18","v":0.2},0,{"$f":"AN18","v":0.42},{"$f":"AO18","v":0.09}]
[null,null,null,null,null,null,null,null,null,null,null,null,null,null,null,null,null,null,null,null,null,null,null,null,null,null,null,{"$f":"'CongMgt-TransModeler'!$H$214","v":0},{"$f":"'CongMgt-TransModeler'!$I$214","v":0},{"$f":"AB47+(('CongMgt-TransModeler'!$D$5/10)*(AC47-AB47))","v":0},null,null,null,null,111100,{"$f":"AJ18","v":0.12},{"$f":"AK18","v":0.17},{"$f":"AL18+AM18","v":0.2},{"$f":"AN18+AO18","v":0.51},0,0]
[3.7,"Add Origin Destination Matrices in TransModeler",null,{"$f":"IF((SUM(D31:D33,D35:D36)>0),1,0)","v":0},null,null,null,{"$f":"IF(($D$25=\"Required\"),(MAX((D31:D33,D35,D36))*(0.25+(0.0313*(MAX(E45:E46))))),0)","v":0},{"$f":"IF(($D$25=\"Required\"),(MAX((D31:D33,D35,D36))*(0.25+(0.0313*(MAX(E45:E46))))),0)","v":0},"2 hours + 15 minutes for each hourly matrix",null,null,null,null,null,null,null,null,null,null,null,null,null,null,null,null,null,{"$f":"'CongMgt-TransModeler'!$H$216+'CongMgt-TransModeler'!$H$217","v":0},{"$f":"'CongMgt-TransModeler'!$I$216+'CongMgt-TransModeler'!$I$217","v":0},{"$f":"AB48+(('CongMgt-TransModeler'!$D$5/10)*(AC48-AB48))","v":0},null,null,null,null,111101,{"$f":"AJ18","v":0.12},{"$f":"AK18","v":0.17},{"$f":"AL18","v":0.1},{"$f":"AM18+(AN18*0.5)","v":0.31},0,{"$f":"AO18+(AN18*0.5)","v":0.3}]
[null,null,null,null,null,null,null,null,null,null,null,null,null,null,null,null,null,null,null,null,null,null,null,null,null,null,null,{"$f":"'CongMgt-TransModeler'!$H$219+'CongMgt-TransModeler'!$H$220","v":0},{"$f":"'CongMgt-TransModeler'!$I$219+'CongMgt-TransModeler'!$I$220","v":0},{"$f":"AB49+(('CongMgt-TransModeler'!$D$5/10)*(AC49-AB49))","v":0},null,null,null,null,111110,{"$f":"AJ18","v":0.12},{"$f":"AK18","v":0.17},{"$f":"AL18","v":0.1},{"$f":"AM18","v":0.1},{"$f":"AN18+AO18","v":0.51},0]
[4,{"$f":"CongMgt!B69","v":"20XX BASE YEAR MODEL"},null,"Not Required",null,null,null,null,null,null,null,null,null,null,null,null,null,null,null,null,null,null,null,null,null,null,null,{"$f":"'CongMgt-TransModeler'!$H$222","v":0},{"$f":"'CongMgt-TransModeler'!$I$222","v":0},{"$f":"AB50+(('CongMgt-TransModeler'!$D$5/10)*(AC50-AB50))","v":0},null,null,null,null,111111,{"$f":"AJ18","v":0.12},0.17,0.1,0.1,0.42,0.09]
[]
[4,{"$f":"CONCATENATE(LEFT(B50,4),\" Base Year Model - Non-Calibrated\")","v":"20XX Base Year Model - Non-Calibrated"},null,null,null,null,null,null,null,null,null,null,null,null,null,null,null,null,null,null,null,null,null,null,null,null,null,{"$f":"SUM('CongMgt-TransModeler'!$H$227:$H$233)","v":0},{"$f":"SUM('CongMgt-TransModeler'!$I$227:$I$233)","v":0},{"$f":"AB52+(('CongMgt-TransModeler'!$D$5/10)*(AC52-AB52))","v":0},null,null,null,null,{"$f":"VALUE(AP55)","v":100000},{"$f":"VLOOKUP(AI52,AI19:AO50,2,FALSE)","v":0.99999999999999989},{"$f":"VLOOKUP(AI52,AI19:AO50,3,FALSE)","v":0},{"$f":"VLOOKUP(AI52,AI19:AO50,4,FALSE)","v":0},{"$f":"VLOOKUP(AI52,AI19:AO50,5,FALSE)","v":0},{"$f":"VLOOKUP(AI52,AI19:AO50,6,FALSE)","v":0},{"$f":"VLOOKUP(AI52,AI19:AO50,7,FALSE)","v":0}]
[4.0999999999999996,"Model Development",null,null,null,null,null,null,null,null,null,null,null,null,null,null,null,null,null,null,null,null,null,null,null,null,null,null,null,null,null,null,null,null,null,{"$f":"IF(AJ55=0,0,AJ52)","v":0},{"$f":"IF(AJ55=0,(AJ52+AK52),AK52)","v":0.99999999999999989},{"$f":"AL52","v":0},{"$f":"AM52","v":0},{"$f":"AN52","v":0},{"$f":"AO52","v":0}]
["4.1.1","Initial Model Setup"]
[null,"Develop Default File/Reference Aerial Photography",null,0,null,0.25,0.5,{"$f":"IF($D$50=\"Required\",($D55*F55),0)","v":0},{"$f":"IF($D$50=\"Required\",($D55*G55),0)","v":0},"2-4 hours",null,null,null,null,null,null,null,null,null,null,null,null,null,null,null,null,null,{"$f":"'CongMgt-TransModeler'!$H$235","v":0},{"$f":"'CongMgt-TransModeler'!$I$235","v":0},{"$f":"AB55+(('CongMgt-TransModeler'!$D$5/10)*(AC55-AB55))","v":0},null,null,null,null,null,{"$f":"IF(AND(CongMgt!$D$223>0,SUM(D8:D18,D228:D233)>0),1,0)","v":0},{"$f":"IF(AND(CongMgt!$E$223>0,SUM(D8:D18,D228:D233)>0),1,0)","v":0},{"$f":"IF(AND(CongMgt!$F$223>0,SUM(D8:D18,D228:D233)>0),1,0)","v":0},{"$f":"IF(AND(CongMgt!$G$223>0,SUM(D8:D18,D228:D233)>0),1,0)","v":0},{"$f":"IF(AND(CongMgt!$H$223>0,SUM(D8:D18,D228:D233)>0),1,0)","v":0},{"$f":"IF(AND(CongMgt!$I$223>0,SUM(D8:D18,D228:D233)>0),1,0)","v":0},{"$f":"1&AK55&AL55&AM55&AN55&AO55","v":"100000"}]
[null,"Merge Existing Models into Network",27,0,null,0.25,0.5,{"$f":"IF($D$50=\"Required\",($D56*F56),0)","v":0},{"$f":"IF($D$50=\"Required\",($D56*G56),0)","v":0},"2-4 hours per model - Depending on size and quality of model"]
[]
["4.1.2","Develop Base Year Model in TransModeler"]
[null,"Freeway Coding",28,0,null,0.15625,0.1875,{"$f":"IF($D$50=\"Required\",($D59*F59),0)","v":0},0,"75-90 minutes per mile"]
[null,"Arterial/Collector/Local Coding",29,0,null,0.1875,0.25,0,0,"90-120 minutes per mile"]
[null,"System Interchange (Standard)",31,0,null,0.5,0.75,0,0,"4-6 hours per interchange"]
[null,"System Interchange (Complex)",31,0,null,1.5,2,0,0,"12-16 hours per interchange"]
[null,"Service Interchange (Standard)*",33,0,null,0.375,0.5,0,0,"3-4 hours per interchange"]
[null,"Service Interchange (DDI)*",34,0,null,0.5,1,0,0,"4-8 hours per interchange"]
[null,"Unsignalized Intersection",35,0,null,4.1669999999999999E-2,8.3330000000000001E-2,0,0,"20-40 minutes per intersection"]
[null,"Unsignalized  Superstreet (includes main intersection and 2 u-turns)",null,0,null,0.25,0.5,0,0,"2-4 hours per intersection"]
[null,"Single Lane Roundabout",null,0,null,0.125,0.1875,0,0,"60-90 minutes per intersection"]
[null,"Dual Lane Roundabout",null,0,null,0.25,0.375,0,0,"2-3 hours per intersection"]
[null,"Signalized Intersection (Simple)",36,0,null,0.1875,0.41670000000000001,0,0,"120-200 minutes per intersection"]
[null,"Signalized Intersection (Complex)",38,0,null,0.3125,0.5,0,0,"180-240 minutes per intersection"]
[null,"Signalized Intersection (Unconventional)",39,0,null,0.5,0.75,0,0,"4-6 hours per intersection"]
[null,"Signalized Intersection (Superstreet) (includes main intersection and 2 u-turns)",40,0,null,0.5,1,0,0,"4-8 hours per intersection"]
[null,"Adding Z-Elevations (0 or 1 only)",null,0,null,0.25,0.75,0,0,"Depending on size of model and number of bridges that require hand manipulating elevations"]
[]
["4.1.3","Adding Volume Data to Model "]
[null,"Add Peak Hour Volumes - Balanced",41,0,null,1.042E-2,2.0830000000000001E-2,{"$f":"IF($D$50=\"Required\",($D76*F76*2),0)","v":0},{"$f":"IF($D$50=\"Required\",($D76*G76*2),0)","v":0},"5-10 minutes per intersection to add volumes to intersection in TransModeler - multiplied by 2 for AM and PM Peaks"]
[]
[null,"Add vehicle composition data or heavy vehicle data",null,0,null,0.25,0.5,{"$f":"IF($D$50=\"Required\",($D78*F78),0)","v":0},{"$f":"IF($D$50=\"Required\",($D78*G78),0)","v":0},"1-2 hours per model (unless class based matrices are being utilized)"]
[]
["4.1.4","Optimize Signalized Intersections",42,0,0,0.1875,0.25,{"$f":"IF($D$50=\"Required\",(($D80*F80)+(0.0313*E80)),0)","v":0},{"$f":"IF($D$50=\"Required\",(($D80*G80)+(0.0625*E80)),0)","v":0},"90-120 minutes per corridor + 15-30 minutes per signal"]
[null,null,43,0,null,6.25E-2,0.125,{"$f":"IF($D$50=\"Required\",($D81*F81),0)","v":0},{"$f":"IF($D$50=\"Required\",($D81*G81),0)","v":0},"30-60 minutes per intersection"]
[]
["4.1.5","Dynamic Traffic Assignment",42,0,0,2.0833333333333333E-3,4.1666666666666666E-3,{"$f":"IF($D$50=\"Required\",(D83*0.5)+(D83*E83*F83),0)","v":0},{"$f":"IF($D$50=\"Required\",(D83*0.5)+(D83*E83*G83),0)","v":0},"4 hours + 1-2 minutes per iteration"]
[null,null,43,0,null,2.0833333333333332E-2,4.1666666666666664E-2,{"$f":"IF($D$50=\"Required\",D83*D84*F84,0)","v":0},{"$f":"IF($D$50=\"Required\",D83*D84*G84,0)","v":0},"10-20 minutes per intersection"]
[]
["4.1.6","Code Measures of Effectiveness",null,1,null,6.25E-2,0.25,{"$f":"IF($D$50=\"Required\",($D86*F86),0)","v":0},0,"30-120 minutes per model"]
[null,"Develop Output Spreadsheet",44]
[null,"Intersections",45,0,null,6.25E-2,6.25E-2,{"$f":"IF($D$50=\"Required\",($D88*F88),0)","v":0},{"$f":"IF($D$50=\"Required\",($D88*G88),0)","v":0},"30 minutes per intersection"]
[null,"Freeway Segments",null,0,null,4.1666666666666664E-2,4.1666666666666664E-2,0,{"$f":"IF($D$50=\"Required\",($D89*G89),0)","v":0},"20 minutes per analysis point"]
[null,"Multi-lane Segments",null,0,null,4.1666666666666664E-2,4.1666666666666664E-2,0,0,"20 minutes per analysis point"]
[null,"Two-Lane Segments",null,0,null,4.1666666666666664E-2,4.1666666666666664E-2,0,0,"20 minutes per analysis point"]
[null,"Corridor Heat Maps",null,0,null,0.25,0.5,{"$f":"IF($D$50=\"Required\",($D92*F92),0)","v":0},0,"2-4 hours per corridor"]
[null,"Corridor/Route MOE's (0 or 1 only)",null,0,null,0.375,0.75,{"$f":"IF($D$50=\"Required\",($D93*F93),0)","v":0},0,"3-6 hours"]
[]
["4.1.7","Error Check/Visual Validation/Quality Control",null,1,null,0.08,0.1,{"$f":"IF($D$50=\"Required\",(SUM(H83:H84,H59:H73,H76:H76,H80:H81,H86:H93,H78))*F95,0)","v":0},{"$f":"IF($D$50=\"Required\",(SUM(I83:I84,I59:I73,I76:I76,I80:I81,I86:I93,I78))*G95,0)","v":0},"8-10% of model development time"]
[]
[]
["4.1.8","Default Values/Visual Validation/Calibration",null,{"$f":"IF((A99=0),\"Add 1 each to one of the categories below\",IF((A99>1),\"Only choose one of the below types\",IF((D101=1),\"Add custom scope in Section 10\",\"\")))","v":"Add 1 each to one of the categories below"}]
[{"$f":"SUM(D99:D101)","v":0},"Default Values",null,0,null,0,0,{"$f":"IF($D$50=\"Required\",($D93*F93),0)","v":0},{"$f":"IF($D$50=\"Required\",($D93*F93),0)","v":0},"No effort required"]
[null,"Visual Validation",null,0,null,0.04,7.4999999999999997E-2,{"$f":"IF(D50=\"Required\",(SUM(H83:H84,H59:H73,H76:H76,H80:H81,H86:H93,H78))*F100,0)","v":0},{"$f":"IF(D50=\"Required\",(SUM(I83:I84,I59:I73,I76:I76,I80:I81,I86:I93,I78))*G100,0)","v":0},"4-7.5% of model development time"]
[null,"Calibration",null,0,null,0,0,{"$f":"IF($D$50=\"Required\",($D93*F93),0)","v":0},{"$f":"IF($D$50=\"Required\",($D93*F93),0)","v":0},"Develop Custom Scope in Section 10"]
[]
[]
["4.1.9","Run Model/Extract Outputs - Setup Run Controls/Run Simulation",null,1,null,0.25,0.75,{"$f":"IF($D$50=\"Required\",($D104*F104),0)","v":0},{"$f":"IF($D$50=\"Required\",($D104*G104),0)","v":0},"2-6 hours per model"]
[]
[]
["4.1.10","Multi-hour Simulation Adjustment",null,0,null,{"$f":"IF((D107=0),0,IF((D107<2.1),0,IF((D107<5),0.1,IF((D107<7),0.15,IF((D107>6),0.2,0)))))","v":0},{"$f":"IF((D107=0),0,IF((D107<2.1),0,IF((D107<5),0.2,IF((D107<7),0.25,IF((D107>6),0.3,0)))))","v":0},{"$f":"IF($D$50=\"Required\",(SUM(H83:H84,H59:H73,H76:H76,H80:H81,H86:H93,H78,H55:H56,H95,H99:H101,H104))*F107,0)","v":0},{"$f":"IF($D$50=\"Required\",(SUM(I83:I84,I59:I73,I76:I76,I80:I81,I86:I93,I78,I55:I56,I95,I99:I101,I104))*G107,0)","v":0},"10-30% of sections 4.1.1 through 4.1.9"]
[]
[]
[5,{"$f":"CongMgt!_Toc445194428","v":"20XX NO-BUILD ANALYSIS"},null,"Not Required"]
[]
[5.0999999999999996,"Model Development"]
["5.1.1","Develop Future Year No-Build Model"]
[null,"Freeway Coding",null,0,null,0.15625,0.1875,{"$f":"IF($D$110=\"Required\",($D114*F114),0)","v":0},0,"75-90 minutes per mile"]
[null,"Arterial/Collector/Local Coding",null,0,null,0.1875,0.25,0,0,"90-120 minutes per mile"]
[null,"System Interchange (Standard)",null,0,null,0.5,0.75,0,0,"4-6 hours per interchange"]
[null,"System Interchange (Complex)",null,0,null,1.5,2,0,0,"12-16 hours per interchange"]
[null,"Service Interchange (Standard)*",null,0,null,0.375,0.5,0,0,"3-4 hours per interchange"]
[null,"Service Interchange (DDI)*",null,0,null,0.5,1,0,0,"4-8 hours per interchange"]
[null,"Unsignalized Intersection",null,0,null,4.1669999999999999E-2,8.3330000000000001E-2,0,0,"20-40 minutes per intersection"]
[null,"Unsignalized Intersection",null,0,null,0.25,0.5,0,0,"2-4 hours per intersection"]
[null,"Unsignalized  Superstreet (includes main intersection and 2 u-turns)",null,0,null,0.125,0.1875,0,0,"60-90 minutes per intersection"]
[null,"Single Lane Roundabout",null,0,null,0.25,0.375,0,0,"2-3 hours per intersection"]
[null,"Signalized Intersection (Simple)",null,0,null,0.1875,0.41670000000000001,0,0,"120-200 minutes per intersection"]
[null,"Signalized Intersection (Complex)",null,0,null,0.3125,0.5,0,0,"180-240 minutes per intersection"]
[null,"Signalized Intersection (Unconventional)",null,0,null,0.5,0.75,0,0,"4-6 hours per intersection"]
[null,"Signalized Intersection (Superstreet) (includes main intersection and 2 u-turns",null,0,null,0.5,1,0,0,"4-8 hours per intersection"]
[null,"Adding Z-Elevations (0 or 1 only)",null,0,null,0.25,0.75,0,0,"Depending on size of model and number of bridges that require hand manipulating elevations"]
[]
["5.1.2","Adding Volume Data to Model"]
[null,"Add Peak Hour Volumes - Balanced",null,0,null,1.042E-2,2.0830000000000001E-2,{"$f":"IF($D$110=\"Required\",($D131*F131*2),0)","v":0},{"$f":"IF($D$110=\"Required\",($D131*G131*2),0)","v":0},"5-10 minutes per intersection to add volumes to intersection in TransModeler - multiplied by 2 for AM and PM Peaks"]
[]
[null,"Add vehicle composition data or heavy vehicle data",null,0,null,{"$f":"F78/4","v":6.25E-2},{"$f":"G78/4","v":0.125},{"$f":"IF($D$110=\"Required\",($D133*F133),0)","v":0},{"$f":"IF($D$110=\"Required\",($D133*G133),0)","v":0},"25% of Base Year"]
[]
["5.1.3","Optimize Signalized Intersections",null,0,0,0.1875,0.25,{"$f":"IF($D$110=\"Required\",(($D135*F135)+(0.0313*E135)),0)","v":0},{"$f":"IF($D$110=\"Required\",(($D135*G135)+(0.0625*E135)),0)","v":0},"90-120 minutes per corridor + 15-30 minutes per signal"]
[null,null,null,0,null,6.25E-2,0.125,{"$f":"IF($D$110=\"Required\",($D136*F136),0)","v":0},{"$f":"IF($D$110=\"Required\",($D136*G136),0)","v":0},"30-60 minutes per intersection"]
[]
["5.1.4","Dynamic Traffic Assignment",null,0,0,2.0833333333333333E-3,4.1666666666666666E-3,{"$f":"IF($D$110=\"Required\",(D138*0.5)+(D138*E138*F138),0)","v":0},{"$f":"IF($D$110=\"Required\",(D138*0.5)+(D138*E138*G138),0)","v":0},"4 hours + 1-2 minutes per iteration"]
[{"$f":"SUM(D120:D127)","v":0},"",null,0,null,2.0833333333333332E-2,4.1666666666666664E-2,{"$f":"IF($D$110=\"Required\",D138*D139*F139,0)","v":0},{"$f":"IF($D$110=\"Required\",D138*D139*G139,0)","v":0},"10-20 minutes per intersection"]
[]
["5.1.5","Code Measures of Effectiveness",null,1,null,3.125E-2,0.125,{"$f":"IF($D$110=\"Required\",($D141*F141),0)","v":0},{"$f":"IF($D$110=\"Required\",($D141*G141),0)","v":0},"50% of Base Year"]
[null,"Develop Output Spreadsheet"]
[null,"Intersections",null,0,null,6.25E-2,6.25E-2,{"$f":"IF($D$110=\"Required\",($D143*F143),0)","v":0},0,"30 minutes per intersection"]
[null,"Freeway Segments",null,0,null,4.1666666666666664E-2,4.1666666666666664E-2,0,0,"20 minutes per analysis point"]
[null,"Multi-lane Segments",null,0,null,4.1666666666666664E-2,4.1666666666666664E-2,0,0,"20 minutes per analysis point"]
[null,"Two-Lane Segments",null,0,null,4.1666666666666664E-2,4.1666666666666664E-2,0,0,"20 minutes per analysis point"]
[null,"Corridor Heat Maps",null,0,null,0.25,0.5,0,0,"2-4 hours per corridor"]
[null,"Corridor/Route MOE's (0 or 1 only)",null,0,null,0.375,0.75,0,0,"3-6 hours"]
[null,"(Only new intersections/analysis points not in BY Model)"]
[]
["5.1.6","Error Check/Visual Audit/Quality Control",null,1,null,0.1,0.1,{"$f":"(SUM(H114:H128,H131:H133,H135:H136,H141:H148,H138:H139))*F151","v":0},{"$f":"(SUM(I114:I128,I131:I133,I135:I136,I141:I148,I138:I139))*G151","v":0},"10% of model development time"]
[]
["5.1.7","Run Model/Extract Outputs - Setup Run Controls/Run Simulation",null,1,null,0.25,0.75,{"$f":"IF($D$110=\"Required\",($D153*F153),0)","v":0},{"$f":"IF($D$110=\"Required\",($D153*G153),0)","v":0},"2-6 hours per model"]
[]
[]
["5.1.8","Multi-hour Simulation Adjustment",null,0,null,{"$f":"IF((D156=0),0,IF((D156<2.1),0,IF((D156<5),0.1,IF((D156<7),0.15,IF((D156>6),0.2,0)))))","v":0},{"$f":"IF((D156=0),0,IF((D156<2.1),0,IF((D156<5),0.2,IF((D156<7),0.25,IF((D156>6),0.3,0)))))","v":0},{"$f":"IF($D$110=\"Required\",(SUM(H114:H153))*F156,0)","v":0},{"$f":"IF($D$110=\"Required\",(SUM(I114:J153))*G156,0)","v":0},"10-30% of sections 4.1.1 through 4.1.9"]
[]
[]
[6,{"$f":"CongMgt!B91","v":"20XX BUILD ANALYSIS"},null,"Not Required"]
[]
[6.1,"Model Development"]
["6.1.1","Develop Future Year Build Model (Add totals for all alternatives and enter below)"]
[null,"Freeway Coding",null,0,null,0.15625,0.1875,{"$f":"IF($D$159=\"Required\",($D163*F163),0)","v":0},0,"75-90 minutes per mile"]
[null,"Arterial/Collector/Local Coding",null,0,null,0.1875,0.25,0,0,"90-120 minutes per mile"]
[null,"System Interchange (Standard)",null,0,null,0.5,0.75,0,0,"4-6 hours per interchange"]
[null,"System Interchange (Complex)",null,0,null,1.5,2,0,0,"12-16 hours per interchange"]
[null,"Service Interchange (Standard)*",null,0,null,0.375,0.5,0,0,"3-4 hours per interchange"]
[null,"Service Interchange (DDI)*",null,0,null,0.5,1,0,0,"4-8 hours per interchange"]
[null,"Unsignalized Intersection",null,0,null,4.1669999999999999E-2,8.3330000000000001E-2,0,0,"20-40 minutes per intersection"]
[null,"Unsignalized  Superstreet (includes main intersection and 2 u-turns)",null,0,null,0.25,0.5,0,0,"2-4 hours per intersection"]
[null,"Single Lane Roundabout",null,0,null,0.125,0.1875,0,0,"60-90 minutes per intersection"]
[null,"Dual Lane Roundabout",null,0,null,0.25,0.375,0,0,"2-3 hours per intersection"]
[null,"Signalized Intersection (Simple)",null,0,null,0.1875,0.41670000000000001,0,0,"120-200 minutes per intersection"]
[null,"Signalized Intersection (Complex)",null,0,null,0.3125,0.5,0,0,"180-240 minutes per intersection"]
[null,"Signalized Intersection (Unconventional)",null,0,null,0.5,0.75,0,0,"4-6 hours per intersection"]
[null,"Signalized Intersection (Superstreet) (includes main intersection and 2 u-turns",null,0,null,0.5,1,0,0,"4-8 hours per intersection"]
[null,"Adding Z-Elevations",null,0,null,0.25,0.75,0,0,"Depending on size of model and number of bridges that require hand manipulating elevations"]
[]
["6.1.2","Adding Volume Data to Model "]
[null,"Add Peak Hour Volumes",null,0,null,1.042E-2,2.0830000000000001E-2,{"$f":"IF($D$159=\"Required\",($D180*F180*2),0)","v":0},{"$f":"IF($D$159=\"Required\",($D180*G180*2),0)","v":0},"5-10 minutes per intersection to add volumes to intersection in TransModeler - multiplied by 2 for AM and PM Peaks"]
[]
[null,"Add vehicle composition data or heavy vehicle data",null,0,null,{"$f":"F78/2","v":0.125},{"$f":"G78/2","v":0.25},{"$f":"IF($D$159=\"Required\",($D182*F182),0)","v":0},{"$f":"IF($D$159=\"Required\",($D182*G182),0)","v":0},"50% of Base Year"]
[]
["6.1.3","Optimize Signalized Intersections",null,0,0,0.1875,0.25,{"$f":"IF($D$159=\"Required\",(($D184*F184)+(0.0313*E184)),0)","v":0},{"$f":"IF($D$159=\"Required\",(($D184*G184)+(0.0625*E184)),0)","v":0},"90-120 minutes per corridor + 15-30 minutes per signal"]
[null,null,null,0,null,6.25E-2,0.125,{"$f":"IF($D$159=\"Required\",($D185*F185),0)","v":0},{"$f":"IF($D$159=\"Required\",($D185*G185),0)","v":0},"30-60 minutes per intersection"]
[]
["6.1.4","Dynamic Traffic Assignment",null,0,0,2.0833333333333333E-3,4.1666666666666666E-3,{"$f":"IF($D$159=\"Required\",(D187*0.5)+(D187*E187*F187),0)","v":0},{"$f":"IF($D$159=\"Required\",(D187*0.5)+(D187*E187*G187),0)","v":0},"4 hours + 1-2 minutes per iteration"]
[{"$f":"SUM(D169:D176)","v":0},"",null,0,null,2.0833333333333332E-2,4.1666666666666664E-2,{"$f":"IF($D$159=\"Required\",D187*D188*F188,0)","v":0},{"$f":"IF($D$159=\"Required\",D187*D188*G188,0)","v":0},"10-20 minutes per intersection"]
[]
["6.1.5","Code Measures of Effectiveness",null,0,null,6.25E-2,0.125,{"$f":"IF($D$159=\"Required\",($D190*F190),0)","v":0},{"$f":"IF($D$159=\"Required\",($D190*G190),0)","v":0},"30-60 minutes per model"]
[null,"Develop Output Spreadsheet"]
[null,"Intersections",null,0,null,6.25E-2,6.25E-2,{"$f":"IF($D$159=\"Required\",($D192*F192),0)","v":0},0,"30 minutes per intersection"]
[null,"Freeway Segments",null,0,null,4.1666666666666664E-2,4.1666666666666664E-2,0,0,"20 minutes per analysis point"]
[null,"Multi-lane Segments",null,0,null,4.1666666666666664E-2,4.1666666666666664E-2,0,0,"20 minutes per analysis point"]
[null,"Two-Lane Segments",null,0,null,4.1666666666666664E-2,4.1666666666666664E-2,0,0,"20 minutes per analysis point"]
[null,"Corridor Heat Maps",null,0,null,0.25,0.5,0,0,"2-4 hours per corridor"]
[null,"Corridor/Route MOE's (0 or 1 only)",null,0,null,0.375,0.75,0,0,"3-6 hours"]
[null,"(Only new intersections/analysis points not in BY or FYNB Model)"]
[]
["6.1.6","Error Check/Visual Audit/Quality Control",null,1,null,0.1,0.15,{"$f":"(SUM(H163:H177,H180:H180,H184:H185,H190:H197,H187:H188,H182))*F200","v":0},{"$f":"(SUM(I163:I177,I180:I180,I184:I185,I190:I197,I187:I188,I182))*G200","v":0},"10-15% of model development time"]
[]
["6.1.7","Run Model/Extract Outputs - Setup Run Controls/Run Simulation",null,1,null,0.25,0.75,{"$f":"IF($D$159=\"Required\",($D202*F202),0)","v":0},{"$f":"IF($D$159=\"Required\",($D202*G202),0)","v":0},"2-6 hours per model for each scenario"]
[]
[]
["6.1.8","Multi-hour Simulation Adjustment",null,0,null,{"$f":"IF((D205=0),0,IF((D205<2.1),0,IF((D205<5),0.1,IF((D205<7),0.15,IF((D205>6),0.2,0)))))","v":0},{"$f":"IF((D205=0),0,IF((D205<2.1),0,IF((D205<5),0.2,IF((D205<7),0.25,IF((D205>6),0.3,0)))))","v":0},{"$f":"IF($D$159=\"Required\",(SUM(H163:H202))*F205,0)","v":0},{"$f":"IF($D$159=\"Required\",(SUM(I163:J202))*G205,0)","v":0},"10-30% of sections 4.1.1 through 4.1.9"]
[]
["6.1.9","Design Iterations (Determine Based on Complexity and Level of Design)",null,0,null,null,null,{"$f":"D207","v":0},{"$f":"D207","v":0}]
[]
[]
[7,{"$f":"CongMgt!B102","v":"20XX BUILD ANALYSIS"},null,"Not Required"]
[7.1,"Model Development"]
[]
["7.1.1","Adding Volume Data to Model "]
[null,"Add Peak Hour Volumes",null,0,null,1.042E-2,2.0830000000000001E-2,{"$f":"IF($D$210=\"Required\",($D214*F214*2),0)","v":0},{"$f":"IF($D$210=\"Required\",($D214*G214*2),0)","v":0},"5-10 minutes per intersection to add volumes to intersection in TransModeler - multiplied by 2 for AM and PM Peaks"]
[]
["7.1.2","Optimize Signalized Intersections",null,0,0,0.1875,0.25,{"$f":"IF($D$210=\"Required\",(($D216*F216)+(0.0313*E216)),0)","v":0},{"$f":"IF($D$210=\"Required\",(($D216*G216)+(0.0625*E216)),0)","v":0},"90-120 minutes per corridor + 15-30 minutes per signal"]
[null,null,null,0,null,6.25E-2,0.125,{"$f":"IF($D$210=\"Required\",($D217*F217),0)","v":0},{"$f":"IF($D$210=\"Required\",($D217*G217),0)","v":0},"30-60 minutes per intersection"]
[]
["7.1.3","Dynamic Traffic Assignment",null,0,0,2.0833333333333333E-3,4.1666666666666666E-3,{"$f":"IF($D$210=\"Required\",(D219*0.5)+(D219*E219*F219),0)","v":0},{"$f":"IF($D$210=\"Required\",(D219*0.5)+(D219*E219*G219),0)","v":0},"4 hours + 1-2 minutes per iteration"]
[{"$f":"A188","v":0},"",null,0,null,2.0833333333333332E-2,4.1666666666666664E-2,{"$f":"IF($D$210=\"Required\",D219*D220*F220,0)","v":0},{"$f":"IF($D$210=\"Required\",D219*D220*G220,0)","v":0},"10-20 minutes per intersection"]
[]
["7.1.4","Run Model/Extract Outputs - Setup Run Controls/Run Simulation",null,1,null,0.25,0.75,{"$f":"IF($D$210=\"Required\",($D222*F222),0)","v":0},{"$f":"IF($D$210=\"Required\",($D222*G222),0)","v":0},"2-6 hours per model"]
[]
[]
[]
[8,"Documentation"]
[8.1,"Traffic Operations Analysis Technical Memorandum"]
[null,"Exec Summary, Background, Methodology, Conclusions, etc.",null,{"$f":"IF((SUM(D229:D233)>0),1,0)","v":0},null,0.375,1,{"$f":"D228*F228","v":0},{"$f":"G228*D228","v":0},"3-8 hours to develop text and supporting data"]
[null,"Traffic Volume Development ",null,{"$f":"IF(($D$25=\"Required\"),1,0)","v":0},null,0.375,1,0,0,"3-8 hours to document procedure for volume development and add OD matrices to Appendix"]
[null,{"$f":"B50","v":"20XX BASE YEAR MODEL"},null,{"$f":"IF(($D$50=\"Required\"),1,0)","v":0},null,0.5,2,0,0,"4-16 hours to document base year analysis and develop supporting figures"]
[null,{"$f":"B110","v":"20XX NO-BUILD ANALYSIS"},null,{"$f":"IF(($D$110=\"Required\"),1,0)","v":0},null,0.5,1.5,0,0,"4-12 hours to document future year no-build analysis and develop supporting figures"]
[null,{"$f":"B159","v":"20XX BUILD ANALYSIS"},null,{"$f":"IF(($D$159=\"Required\"),D190,0)","v":0},null,0.5,1.5,0,0,"4-12 hours per alternative to document future year build analysis and develop supporting figures"]
[null,{"$f":"B210","v":"20XX BUILD ANALYSIS"},null,{"$f":"IF(($D$210=\"Required\"),1,0)","v":0},null,0.375,0.75,0,0,"3-6 hours to document base year build analysis and develop supporting figures"]
[]
[8.1999999999999993,"Interchange Access Report",null,0,null,1.5,4,{"$f":"D235*F235","v":0},{"$f":"G235*D235","v":0},"12-32 hours to develop Policy Point discussion and coordinate w/ NCDOT/FHWA"]
[]
[11,"Additional Scope Items"]
[null,"Insert Additional Scope Items TOTAL Workdays Here:",null,0,null,null,null,{"$f":"D238","v":0},{"$f":"D238","v":0},"Insert Number of Workdays Here for inclusion in calculation of project management time"]

{"sheet":"CongMgt-Exp","index":56,"n_rows":39,"n_cols":8,"rows_kept":39,"cut":false,"hidden":true,"merged":[[6,1,6,3],[6,4,6,6],[0,0,0,7],[3,1,3,7],[4,1,4,3],[4,6,4,7],[5,1,5,3],[5,6,5,7],[2,1,2,3]]}
["CONGESTION MANAGEMENT DIRECT EXPENSES"]
[]
["FIRM:",{"$f":"CongMgt!G3","v":"CONSULTANT NAME"}]
[{"$f":"(EnvPolicy!A3)","v":"PROJECT DESCRIPTION: "},{"$f":"PROJECT.DESCRIPTION","v":0}]
[{"$f":"(EnvPolicy!A4)","v":"PREPARED BY:  "},{"$f":"'PEF CLASSIFICATION SHEET'!C430","v":"CONSULTANT NAME"},null,null,{"$f":"(EnvPolicy!J3)","v":"TASK ORDER NUMBER:"},null,{"$f":"TASK.ORDER.NUMBER","v":0}]
[{"$f":"(EnvPolicy!F4)","v":"TIP NUMBER:"},{"$f":"TIP.NUMBER","v":0},null,null,{"$f":"(EnvPolicy!J4)","v":"WBS NUMBER:"},null,{"$f":"WBS.NUMBER","v":""}]
[{"$f":"(EnvPolicy!V3)","v":"DATE PREPARED:"},{"$f":"IF(CongMgt!N3=\"\",\"\",MAX(CongMgt!N3:'CongMgt'!N4))","v":""},null,null,"REVIEWED BY UNIT HEAD ON:",null,null,{"$f":"IF(SCOPE.MANDAY.ESTIMATE.APPROVED.BY.DATE=\"\",\"\",SCOPE.MANDAY.ESTIMATE.APPROVED.BY.DATE)","v":""}]
["GENERAL PROJECT WORK:","ITEM","QTY","DESCRIPTION",null,null,"UNIT COST "]
[null,"Travel:"]
[null,"Sedan",null,"Trip(s) @",null,"miles @",{"$f":"SEDAN","v":0.7},{"$f":"SUM(C10*E10*G10)","v":0}]
[null,"Car Rental",null,null,null,"days @ ",{"$f":"CARRENTAL","v":50},{"$f":"SUM(E11*G11)","v":0}]
[null,"Gas for Rental",null,null,null,"miles @",{"$f":"GASforRENTAL","v":0.2},{"$f":"SUM(E12*G12)","v":0}]
[null,"Parking:",null,"Trip(s) @",null,null,{"$f":"PARKING","v":3},{"$f":"SUM(C13*G13)","v":0}]
[null,"Per Diem:",null,"Breakfast",null,null,{"$f":"BREAKFAST","v":10.1},0]
[null,null,null,"Lunch",null,null,{"$f":"LUNCH","v":13.3},0]
[null,null,null,"Dinner",null,null,{"$f":"DINNER","v":23.1},0]
[null,null,null,"Lodging",null,null,{"$f":"LODGING_LUMP.SUM","v":95},0]
[null,"Reproduction:",null,"8 1/2 x 11 B & W Copies @",null,null,{"$f":"LETTERCOPIES","v":0.14000000000000001},0]
[null,null,null,"11 x 17 B & W Copies @",null,null,{"$f":"LEDGERCOPIES","v":0.34},0]
[null,null,null,"8 1/2 x 11 Color Copies @",null,null,{"$f":"LETTERCOLOR","v":0.83},0]
[null,null,null,"11 x 17 Color Copies @",null,null,{"$f":"LEDGERCOLOR","v":1.66},0]
[null,null,null,"SQ. FT. of Plots (B & W or Color)",null,"<65 SQ. FT.*",{"$f":"ROLLPLOTSshort","v":6.5},0]
[null,null,null,"SQ. FT. of Plots (B & W or Color)",null,">65 SQ. FT.*",{"$f":"ROLLPLOTSlong","v":1.5},0]
[null,null,null,"Cover(s) @",null,null,{"$f":"COVERS","v":0.5},0]
[null,null,null,"Binder(s) @",null,null,{"$f":"BINDERS","v":0.5},0]
[null,null,null,"SQ. FT. Foam Mounting Board @",null,null,{"$f":"FOAMMOUNTINGBOARD","v":1.25},0]
[null,null,null,null,null,"Subtotal",null,{"$f":"SUM(H10:H26)","v":0}]
["MISCELLANEOUS OTHER:","ITEM","QTY","DESCRIPTION",null,null,"UNIT COST "]
[null,null,null,null,null,null,null,{"$f":"SUM(C29*G29)","v":0}]
[null,null,null,null,null,null,null,0]
[null,null,null,null,null,null,null,0]
[null,null,null,null,null,null,null,0]
[null,null,null,null,null,null,null,0]
[null,null,null,null,null,null,null,0]
[null,null,null,null,null,null,null,0]
[null,null,null,null,null,null,null,0]
[null,null,null,null,null,"Subtotal",null,{"$f":"SUM(H29:H36)","v":0}]
[]
[null,null,null,null,null,"TOTAL",null,{"$f":"SUM(H27+H37)","v":0}]

{"sheet":"TransPlan","index":57,"n_rows":135,"n_cols":23,"rows_kept":135,"cut":false,"hidden":true,"merged":[[143,8,143,13],[144,8,144,9],[144,10,144,11],[145,8,145,9],[145,10,145,11],[138,3,138,6],[138,8,138,13],[139,8,139,9],[139,10,139,11],[140,8,140,9],[140,10,140,11],[115,22,115,23],[116,22,116,23],[117,22,117,23],[118,22,118,23],[119,22,119,23],[134,1,135,1],[134,3,135,4],[109,22,109,23],[110,22,110,23],[111,22,111,23],[112,22,112,23],[113,22,113,23],[114,22,114,23],[103,22,103,23],[104,22,104,23],[105,22,105,23],[106,22,106,23],[107,22,107,23],[108,22,108,23],[97,22,97,23],[98,22,98,23],[99,22,99,23],[100,22,100,23],[101,22,101,23],[102,22,102,23],[91,22,91,23],[92,22,92,23],[93,22,93,23],[94,22,94,23],[95,22,95,23],[96,22,96,23],[85,22,85,23],[86,22,86,23],[87,22,87,23],[88,22,88,23],[89,22,89,23],[90,22,90,23],[79,22,79,23],[80,22,80,23],[81,22,81,23],[82,22,82,23],[83,22,83,23],[84,22,84,23],[73,22,73,23],[74,22,74,23],[75,22,75,23],[76,22,76,23],[77,22,77,23],[78,22,78,23],[67,22,67,23],[68,22,68,23],[69,22,69,23],[70,22,70,23],[71,22,71,23],[72,22,72,23],[61,22,61,23],[62,22,62,23],[63,22,63,23],[64,22,64,23],[65,22,65,23],[66,22,66,23],[55,22,55,23],[56,22,56,23],[57,22,57,23],[58,22,58,23],[59,22,59,23],[60,22,60,23],[49,22,49,23],[50,22,50,23],[51,22,51,23],[52,22,52,23],[53,22,53,23],[54,22,54,23],[43,22,43,23],[44,22,44,23],[45,22,45,23],[46,22,46,23],[47,22,47,23],[48,22,48,23],[37,22,37,23],[38,22,38,23],[39,22,39,23],[40,22,40,23],[41,22,41,23],[42,22,42,23],[31,22,31,23],[32,22,32,23],[33,22,33,23],[34,22,34,23],[35,22,35,23],[36,22,36,23],[25,22,25,23],[26,22,26,23],[27,22,27,23],[28,22,28,23],[29,22,29,23],[30,22,30,23],[19,22,19,23],[20,22,20,23],[21,22,21,23],[22,22,22,23],[23,22,23,23],[24,22,24,23],[13,22,13,23],[14,22,14,23],[15,22,15,23],[16,22,16,23],[17,22,17,23],[18,22,18,23],[8,22,8,23],[10,22,10,23],[11,22,11,23],[12,22,12,23],[6,12,9,12],[6,13,9,13],[6,14,9,14],[6,15,9,15],[6,16,9,16],[6,17,9,17],[4,3,4,18],[6,3,9,3],[6,4,9,4],[6,5,9,5],[6,6,9,6],[6,7,9,7],[6,8,9,8],[6,9,9,9],[6,10,9,10],[6,11,9,11],[6,18,9,18],[0,0,1,13],[2,1,2,4],[2,6,2,7],[2,10,2,11],[2,15,2,16],[3,1,3,4],[3,6,3,7],[3,10,3,11],[3,15,3,16]]}
["TRANSPORTATION PLANNING--PRIME BREAKDOWN WORKSHEET -- ENTER WORKHOURS"]
[]
["PROJECT DESCRIPTION: ",{"$f":"PROJECT.DESCRIPTION","v":0},null,null,null,"FIRM:  ",{"$f":"TRANSPORTATIONPLANNING.PRIME_CONSULTANT_NAME","v":"CONSULTANT NAME"},null,"TASK ORDER NUMBER:",null,{"$f":"TASK.ORDER.NUMBER","v":0},null,"DATE PREPARED:",{"$f":"IF(SCOPE.MANDAY.ESTIMATE.PREPARED.BY.DATE=\"\",\"\",SCOPE.MANDAY.ESTIMATE.PREPARED.BY.DATE)","v":""}]
["PREPARED BY:  ",{"$f":"IF(SCOPE.MANDAY.ESTIMATE.PREPARED.BY=\"\",\"\",SCOPE.MANDAY.ESTIMATE.PREPARED.BY)","v":""},null,null,null,"TIP NUMBER:",{"$f":"TIP.NUMBER","v":0},null,"WBS NUMBER:",null,{"$f":"WBS.NUMBER","v":""},null,"REVISION DATE:",{"$f":"IF(SCOPE.MANDAY.ESTIMATE.APPROVED.BY.DATE=\"\",\"\",SCOPE.MANDAY.ESTIMATE.APPROVED.BY.DATE)","v":""}]
[null,null,null,"ESTIMATED WORKHOURS"]
[null,null,"EMPLOYEE NAMES",{"$f":"IF('PEF CLASSIFICATION SHEET'!D444=\"\",\"\",LEFT('PEF CLASSIFICATION SHEET'!D444,4))","v":""},{"$f":"IF('PEF CLASSIFICATION SHEET'!D445=\"\",\"\",LEFT('PEF CLASSIFICATION SHEET'!D445,4))","v":""},{"$f":"IF('PEF CLASSIFICATION SHEET'!D446=\"\",\"\",LEFT('PEF CLASSIFICATION SHEET'!D446,4))","v":""},{"$f":"IF('PEF CLASSIFICATION SHEET'!D447=\"\",\"\",LEFT('PEF CLASSIFICATION SHEET'!D447,4))","v":""},{"$f":"IF('PEF CLASSIFICATION SHEET'!D448=\"\",\"\",LEFT('PEF CLASSIFICATION SHEET'!D448,4))","v":""},{"$f":"IF('PEF CLASSIFICATION SHEET'!D449=\"\",\"\",LEFT('PEF CLASSIFICATION SHEET'!D449,4))","v":""},{"$f":"IF('PEF CLASSIFICATION SHEET'!D450=\"\",\"\",LEFT('PEF CLASSIFICATION SHEET'!D450,4))","v":""},{"$f":"IF('PEF CLASSIFICATION SHEET'!D451=\"\",\"\",LEFT('PEF CLASSIFICATION SHEET'!D451,4))","v":""},{"$f":"IF('PEF CLASSIFICATION SHEET'!D452=\"\",\"\",LEFT('PEF CLASSIFICATION SHEET'!D452,4))","v":""},{"$f":"IF('PEF CLASSIFICATION SHEET'!D453=\"\",\"\",LEFT('PEF CLASSIFICATION SHEET'!D453,4))","v":""},{"$f":"IF('PEF CLASSIFICATION SHEET'!D454=\"\",\"\",LEFT('PEF CLASSIFICATION SHEET'!D454,4))","v":""},{"$f":"IF('PEF CLASSIFICATION SHEET'!D455=\"\",\"\",LEFT('PEF CLASSIFICATION SHEET'!D455,4))","v":""},{"$f":"IF('PEF CLASSIFICATION SHEET'!D456=\"\",\"\",LEFT('PEF CLASSIFICATION SHEET'!D456,4))","v":""},{"$f":"IF('PEF CLASSIFICATION SHEET'!D457=\"\",\"\",LEFT('PEF CLASSIFICATION SHEET'!D457,4))","v":""},{"$f":"IF('PEF CLASSIFICATION SHEET'!D458=\"\",\"\",LEFT('PEF CLASSIFICATION SHEET'!D458,4))","v":""},{"$f":"IF('PEF CLASSIFICATION SHEET'!D459=\"\",\"\",LEFT('PEF CLASSIFICATION SHEET'!D459,4))","v":""}]
[null,null,null,{"$f":"IF('PEF CLASSIFICATION SHEET'!C444=\"\",\"\",'PEF CLASSIFICATION SHEET'!C444)","v":""},{"$f":"IF('PEF CLASSIFICATION SHEET'!C445=\"\",\"\",'PEF CLASSIFICATION SHEET'!C445)","v":""},{"$f":"IF('PEF CLASSIFICATION SHEET'!C446=\"\",\"\",'PEF CLASSIFICATION SHEET'!C446)","v":""},{"$f":"IF('PEF CLASSIFICATION SHEET'!C447=\"\",\"\",'PEF CLASSIFICATION SHEET'!C447)","v":""},{"$f":"IF('PEF CLASSIFICATION SHEET'!C448=\"\",\"\",'PEF CLASSIFICATION SHEET'!C448)","v":""},{"$f":"IF('PEF CLASSIFICATION SHEET'!C449=\"\",\"\",'PEF CLASSIFICATION SHEET'!C449)","v":""},{"$f":"IF('PEF CLASSIFICATION SHEET'!C450=\"\",\"\",'PEF CLASSIFICATION SHEET'!C450)","v":""},{"$f":"IF('PEF CLASSIFICATION SHEET'!C451=\"\",\"\",'PEF CLASSIFICATION SHEET'!C451)","v":""},{"$f":"IF('PEF CLASSIFICATION SHEET'!C452=\"\",\"\",'PEF CLASSIFICATION SHEET'!C452)","v":""},{"$f":"IF('PEF CLASSIFICATION SHEET'!C453=\"\",\"\",'PEF CLASSIFICATION SHEET'!C453)","v":""},{"$f":"IF('PEF CLASSIFICATION SHEET'!C454=\"\",\"\",'PEF CLASSIFICATION SHEET'!C454)","v":""},{"$f":"IF('PEF CLASSIFICATION SHEET'!C455=\"\",\"\",'PEF CLASSIFICATION SHEET'!C455)","v":""},{"$f":"IF('PEF CLASSIFICATION SHEET'!C456=\"\",\"\",'PEF CLASSIFICATION SHEET'!C456)","v":""},{"$f":"IF('PEF CLASSIFICATION SHEET'!C457=\"\",\"\",'PEF CLASSIFICATION SHEET'!C457)","v":""},{"$f":"IF('PEF CLASSIFICATION SHEET'!C458=\"\",\"\",'PEF CLASSIFICATION SHEET'!C458)","v":""},{"$f":"IF('PEF CLASSIFICATION SHEET'!C459=\"\",\"\",'PEF CLASSIFICATION SHEET'!C459)","v":""},"SUB-","%","PEF"]
[null,null,null,null,null,null,null,null,null,null,null,null,null,null,null,null,null,null,null,"TOTAL","OF","ESTIMATE"]
["TASK","TASK DESCRIPTION","CLASSIFICATION",null,null,null,null,null,null,null,null,null,null,null,null,null,null,null,null,null,"PROJECT",null,"COMMENTS"]
["NO."]
["1TP2","Complete Traffic Forecast",null,null,null,null,null,null,null,null,null,null,null,null,null,null,null,null,null,{"$f":"IF(B11=\"\",0,IF((SUM(D11:S41)=0),SUM(D11:S11),\"\"))","v":0},{"$f":"IF(T11=\"\",\"\",SUM((T11/$T$121)))","v":{"$error":"#DIV/0!"}}]
[1,"Initiate a Traffic Forecast",null,null,null,null,null,null,null,null,null,null,null,null,null,null,null,null,null,{"$f":"IF(B12=\"\",0,IF((SUM(D12:S12)=0),0,SUM(D12:S12)))","v":0},{"$error":"#DIV/0!"}]
[2,"Determine Level of Traffic Forecast Needed",null,null,null,null,null,null,null,null,null,null,null,null,null,null,null,null,null,{"$f":"IF(B13=\"\",0,IF((SUM(D13:S13)=0),0,SUM(D13:S13)))","v":0},{"$error":"#DIV/0!"}]
[3,"Scope Traffic Forecast",null,null,null,null,null,null,null,null,null,null,null,null,null,null,null,null,null,0,{"$error":"#DIV/0!"}]
[4,"Produce Traffic Forecast",null,null,null,null,null,null,null,null,null,null,null,null,null,null,null,null,null,0,{"$error":"#DIV/0!"}]
[4.0999999999999996,"COLLECT AND REVIEW DATA",null,null,null,null,null,null,null,null,null,null,null,null,null,null,null,null,null,0,{"$error":"#DIV/0!"}]
["4.1.1","     Collect Existing Data",null,null,null,null,null,null,null,null,null,null,null,null,null,null,null,null,null,0,{"$error":"#DIV/0!"}]
["4.1.2","     Review and Analyze Existing Data; Calculate Growth Rates",null,null,null,null,null,null,null,null,null,null,null,null,null,null,null,null,null,0,{"$error":"#DIV/0!"}]
["4.1.3","     Collect Field Data",null,null,null,null,null,null,null,null,null,null,null,null,null,null,null,null,null,0,{"$error":"#DIV/0!"}]
["4.1.4","     Convert to AADT",null,null,null,null,null,null,null,null,null,null,null,null,null,null,null,null,null,0,{"$error":"#DIV/0!"}]
["4.1.5","     Project Kickoff Meeting",null,null,null,null,null,null,null,null,null,null,null,null,null,null,null,null,null,0,{"$error":"#DIV/0!"}]
[null,null,null,null,null,null,null,null,null,null,null,null,null,null,null,null,null,null,null,0,{"$error":"#DIV/0!"}]
[4.2,"PREPARE BASE YEAR NO BUILD (BY NB) ESTIMATE",null,null,null,null,null,null,null,null,null,null,null,null,null,null,null,null,null,0,{"$error":"#DIV/0!"}]
["4.2.1","     Develop and Balance BY NB Estimate",null,null,null,null,null,null,null,null,null,null,null,null,null,null,null,null,null,0,{"$error":"#DIV/0!"}]
["4. 2.2","     Develop BY NB Design Data",null,null,null,null,null,null,null,null,null,null,null,null,null,null,null,null,null,0,{"$error":"#DIV/0!"}]
["4.2.3","     Develop BY NB Traffic Forecast Diagrams",null,null,null,null,null,null,null,null,null,null,null,null,null,null,null,null,null,0,{"$error":"#DIV/0!"}]
[null,null,null,null,null,null,null,null,null,null,null,null,null,null,null,null,null,null,null,0,{"$error":"#DIV/0!"}]
[4.3,"MODEL REVIEW",null,null,null,null,null,null,null,null,null,null,null,null,null,null,null,null,null,0,{"$error":"#DIV/0!"}]
["4.3.1","     Review Model Validation",null,null,null,null,null,null,null,null,null,null,null,null,null,null,null,null,null,0,{"$error":"#DIV/0!"}]
["4.3.2","     Review Networks Project Corridor",null,null,null,null,null,null,null,null,null,null,null,null,null,null,null,null,null,0,{"$error":"#DIV/0!"}]
[null,null,null,null,null,null,null,null,null,null,null,null,null,null,null,null,null,null,null,0,{"$error":"#DIV/0!"}]
[4.4000000000000004,"DEVELOP BASE YEAR BUILD (BY B) FORECAST",null,null,null,null,null,null,null,null,null,null,null,null,null,null,null,null,null,0,{"$error":"#DIV/0!"}]
["4.4.1","     Modify Model",null,null,null,null,null,null,null,null,null,null,null,null,null,null,null,null,null,0,{"$error":"#DIV/0!"}]
["4.4.2","     Utilize Model",null,null,null,null,null,null,null,null,null,null,null,null,null,null,null,null,null,0,{"$error":"#DIV/0!"}]
["4.4.3","     Develop and Balance BY B Traffic Forecast",null,null,null,null,null,null,null,null,null,null,null,null,null,null,null,null,null,0,{"$error":"#DIV/0!"}]
["4.4.3.1","          Develop and Apply Model Diversion",null,null,null,null,null,null,null,null,null,null,null,null,null,null,null,null,null,0,{"$error":"#DIV/0!"}]
["4.4.3.2","          Review / Analyze",null,null,null,null,null,null,null,null,null,null,null,null,null,null,null,null,null,0,{"$error":"#DIV/0!"}]
["4.4.3.3","          Balance",null,null,null,null,null,null,null,null,null,null,null,null,null,null,null,null,null,0,{"$error":"#DIV/0!"}]
[null,null,null,null,null,null,null,null,null,null,null,null,null,null,null,null,null,null,null,0,{"$error":"#DIV/0!"}]
["4.4.4","     Develop BY B Design Data",null,null,null,null,null,null,null,null,null,null,null,null,null,null,null,null,null,0,{"$error":"#DIV/0!"}]
["4.4.5","     Develop BY B Traffic Forecast Diagram(s)",null,null,null,null,null,null,null,null,null,null,null,null,null,null,null,null,null,0,{"$error":"#DIV/0!"}]
[null,null,null,null,null,null,null,null,null,null,null,null,null,null,null,null,null,null,null,{"$f":"IF(B42=\"\",0,IF((SUM(D42:S52)=0),SUM(D42:S42),\"\"))","v":0},{"$error":"#DIV/0!"}]
[4.5,"DEVELOP INTERIM YEAR NO BUILD (IY NB) FORECAST",null,null,null,null,null,null,null,null,null,null,null,null,null,null,null,null,null,0,{"$error":"#DIV/0!"}]
["4.5.1","     Modify Model",null,null,null,null,null,null,null,null,null,null,null,null,null,null,null,null,null,0,{"$error":"#DIV/0!"}]
["4.5.2","     Utilize Model",null,null,null,null,null,null,null,null,null,null,null,null,null,null,null,null,null,0,{"$error":"#DIV/0!"}]
["4.5.3","     Develop and Balance IY NB Forecast",null,null,null,null,null,null,null,null,null,null,null,null,null,null,null,null,null,0,{"$error":"#DIV/0!"}]
["4.5.3.1","          Develop and Apply Model Growth",null,null,null,null,null,null,null,null,null,null,null,null,null,null,null,null,null,0,{"$error":"#DIV/0!"}]
["4.5.3.2","          Develop and Apply Historic Growth",null,null,null,null,null,null,null,null,null,null,null,null,null,null,null,null,null,0,{"$error":"#DIV/0!"}]
["4.5.3.3","          Review / Analyze",null,null,null,null,null,null,null,null,null,null,null,null,null,null,null,null,null,0,{"$error":"#DIV/0!"}]
["4.5.3.4","          Balance",null,null,null,null,null,null,null,null,null,null,null,null,null,null,null,null,null,0,{"$error":"#DIV/0!"}]
[null,null,null,null,null,null,null,null,null,null,null,null,null,null,null,null,null,null,null,0,{"$error":"#DIV/0!"}]
["4.5.4","     Develop IY NB Design Data",null,null,null,null,null,null,null,null,null,null,null,null,null,null,null,null,null,0,{"$error":"#DIV/0!"}]
["4.5.5","     Develop IY NB Traffic Forecast Diagram(s)",null,null,null,null,null,null,null,null,null,null,null,null,null,null,null,null,null,0,{"$error":"#DIV/0!"}]
[null,null,null,null,null,null,null,null,null,null,null,null,null,null,null,null,null,null,null,0,{"$error":"#DIV/0!"}]
[4.5999999999999996,"DEVELOP INTERIM YEAR (IY B) FORECAST",null,null,null,null,null,null,null,null,null,null,null,null,null,null,null,null,null,0,{"$error":"#DIV/0!"}]
["4.6.1","     Modify Model",null,null,null,null,null,null,null,null,null,null,null,null,null,null,null,null,null,0,{"$error":"#DIV/0!"}]
["4.6.2","     Utilize Model",null,null,null,null,null,null,null,null,null,null,null,null,null,null,null,null,null,0,{"$error":"#DIV/0!"}]
["4.6.3","     Develop and Balance IY B Forecast",null,null,null,null,null,null,null,null,null,null,null,null,null,null,null,null,null,0,{"$error":"#DIV/0!"}]
["4.6.3.1","          Develop and Apply Model Diversion",null,null,null,null,null,null,null,null,null,null,null,null,null,null,null,null,null,0,{"$error":"#DIV/0!"}]
["4.6.3.2","          Review / Analyze",null,null,null,null,null,null,null,null,null,null,null,null,null,null,null,null,null,0,{"$error":"#DIV/0!"}]
["4.6.3.3","          Balance",null,null,null,null,null,null,null,null,null,null,null,null,null,null,null,null,null,0,{"$error":"#DIV/0!"}]
[null,null,null,null,null,null,null,null,null,null,null,null,null,null,null,null,null,null,null,0,{"$error":"#DIV/0!"}]
["4.6.4","     Develop IY B Design Data",null,null,null,null,null,null,null,null,null,null,null,null,null,null,null,null,null,0,{"$error":"#DIV/0!"}]
["4.6.5","     Develop IY B Traffic Forecast Diagram(s)",null,null,null,null,null,null,null,null,null,null,null,null,null,null,null,null,null,0,{"$error":"#DIV/0!"}]
[null,null,null,null,null,null,null,null,null,null,null,null,null,null,null,null,null,null,null,0,{"$error":"#DIV/0!"}]
[4.7,"DEVELOP FUTURE YEAR NO BUILD (FY NB) FORECAST",null,null,null,null,null,null,null,null,null,null,null,null,null,null,null,null,null,0,{"$error":"#DIV/0!"}]
["4.7.1","     Modify Model",null,null,null,null,null,null,null,null,null,null,null,null,null,null,null,null,null,0,{"$error":"#DIV/0!"}]
["4.7.2","     Utilize Model",null,null,null,null,null,null,null,null,null,null,null,null,null,null,null,null,null,0,{"$error":"#DIV/0!"}]
["4.7.3","     Develop and Balance FY NB Forecast",null,null,null,null,null,null,null,null,null,null,null,null,null,null,null,null,null,0,{"$error":"#DIV/0!"}]
["4.7.3.1","          Develop and Apply Model Growth",null,null,null,null,null,null,null,null,null,null,null,null,null,null,null,null,null,0,{"$error":"#DIV/0!"}]
["4.7.3.2","          Develop and Apply Historic Growth",null,null,null,null,null,null,null,null,null,null,null,null,null,null,null,null,null,0,{"$error":"#DIV/0!"}]
["4.7.3.3","          Review / Analyze",null,null,null,null,null,null,null,null,null,null,null,null,null,null,null,null,null,0,{"$error":"#DIV/0!"}]
["4.7.3.4","          Balance",null,null,null,null,null,null,null,null,null,null,null,null,null,null,null,null,null,0,{"$error":"#DIV/0!"}]
[null,null,null,null,null,null,null,null,null,null,null,null,null,null,null,null,null,null,null,0,{"$error":"#DIV/0!"}]
["4.7.4","     Develop FY NB Design Data",null,null,null,null,null,null,null,null,null,null,null,null,null,null,null,null,null,0,{"$f":"IF(T75=\"\",\"\",SUM((T75/$T$121)))","v":{"$error":"#DIV/0!"}}]
["4.7.5","     Develop FY NB Traffic Forecast Diagrams",null,null,null,null,null,null,null,null,null,null,null,null,null,null,null,null,null,0,{"$error":"#DIV/0!"}]
[null,null,null,null,null,null,null,null,null,null,null,null,null,null,null,null,null,null,null,{"$f":"IF(B77=\"\",0,IF((SUM(D77:S77)=0),0,SUM(D77:S77)))","v":0},{"$error":"#DIV/0!"}]
[4.8,"DEVELOP FUTURE YEAR BUILD (FY B) FORECAST",null,null,null,null,null,null,null,null,null,null,null,null,null,null,null,null,null,0,{"$error":"#DIV/0!"}]
["4.8.1","     Modify Model",null,null,null,null,null,null,null,null,null,null,null,null,null,null,null,null,null,0,{"$error":"#DIV/0!"}]
["4.8.2","     Utilize Model",null,null,null,null,null,null,null,null,null,null,null,null,null,null,null,null,null,0,{"$error":"#DIV/0!"}]
["4.8.3","     Develop and Balance FY B Forecast",null,null,null,null,null,null,null,null,null,null,null,null,null,null,null,null,null,0,{"$error":"#DIV/0!"}]
["4.8.3.1","          Develop and Apply Model Diversion",null,null,null,null,null,null,null,null,null,null,null,null,null,null,null,null,null,0,{"$error":"#DIV/0!"}]
["4.8.3.2","          Review / Analyze",null,null,null,null,null,null,null,null,null,null,null,null,null,null,null,null,null,0,{"$error":"#DIV/0!"}]
["4.8.3.3","          Balance",null,null,null,null,null,null,null,null,null,null,null,null,null,null,null,null,null,0,{"$error":"#DIV/0!"}]
[null,null,null,null,null,null,null,null,null,null,null,null,null,null,null,null,null,null,null,0,{"$error":"#DIV/0!"}]
["4.8.4","     Develop FY B Design Data",null,null,null,null,null,null,null,null,null,null,null,null,null,null,null,null,null,0,{"$error":"#DIV/0!"}]
["4.8.5","     Develop FY B Traffic Forecast Diagrams",null,null,null,null,null,null,null,null,null,null,null,null,null,null,null,null,null,0,{"$error":"#DIV/0!"}]
[null,null,null,null,null,null,null,null,null,null,null,null,null,null,null,null,null,null,null,0,{"$error":"#DIV/0!"}]
[4.9000000000000004,"INTERIM REVIEW",null,null,null,null,null,null,null,null,null,null,null,null,null,null,null,null,null,0,{"$error":"#DIV/0!"}]
[null,null,null,null,null,null,null,null,null,null,null,null,null,null,null,null,null,null,null,0,{"$error":"#DIV/0!"}]
[4.0999999999999996,"DEVELOP DRAFT TRAFFIC FORECAST REPORT",null,null,null,null,null,null,null,null,null,null,null,null,null,null,null,null,null,0,{"$error":"#DIV/0!"}]
[null,null,null,null,null,null,null,null,null,null,null,null,null,null,null,null,null,null,null,0,{"$error":"#DIV/0!"}]
[4.1100000000000003,"REFINE TRAFFIC FORECAST AND REPORT",null,null,null,null,null,null,null,null,null,null,null,null,null,null,null,null,null,0,{"$error":"#DIV/0!"}]
[null,null,null,null,null,null,null,null,null,null,null,null,null,null,null,null,null,null,null,0,{"$error":"#DIV/0!"}]
[5,"Complete and Deliver Traffic Forecast",null,null,null,null,null,null,null,null,null,null,null,null,null,null,null,null,null,0,{"$error":"#DIV/0!"}]
[null,null,null,null,null,null,null,null,null,null,null,null,null,null,null,null,null,null,null,0,{"$error":"#DIV/0!"}]
[6,"Task Management",null,null,null,null,null,null,null,null,null,null,null,null,null,null,null,null,null,0,{"$error":"#DIV/0!"}]
[6.5,"PROJECT SCHEDULE",null,null,null,null,null,null,null,null,null,null,null,null,null,null,null,null,null,0,{"$error":"#DIV/0!"}]
[null,null,null,null,null,null,null,null,null,null,null,null,null,null,null,null,null,null,null,0,{"$f":"IF(T99=\"\",\"\",SUM((T99/$T$121)))","v":{"$error":"#DIV/0!"}}]
[6.6,"PROJECT COORDINATION",null,null,null,null,null,null,null,null,null,null,null,null,null,null,null,null,null,0,{"$f":"IF(T100=\"\",\"\",SUM((T100/$T$121)))","v":{"$error":"#DIV/0!"}}]
[null,null,null,null,null,null,null,null,null,null,null,null,null,null,null,null,null,null,null,0,{"$error":"#DIV/0!"}]
[6.7,"MEETINGS AND MEETING FOLLOW UP",null,null,null,null,null,null,null,null,null,null,null,null,null,null,null,null,null,0,{"$error":"#DIV/0!"}]
["6.7.1","    NCDOT Meetings and Site Visits",null,null,null,null,null,null,null,null,null,null,null,null,null,null,null,null,null,0,{"$error":"#DIV/0!"}]
["6.7.2","    Stakeholder Meetings",null,null,null,null,null,null,null,null,null,null,null,null,null,null,null,null,null,0,{"$error":"#DIV/0!"}]
["6.7.3","    Meeting Follow-up",null,null,null,null,null,null,null,null,null,null,null,null,null,null,null,null,null,0,{"$error":"#DIV/0!"}]
[null,null,null,null,null,null,null,null,null,null,null,null,null,null,null,null,null,null,null,0,{"$error":"#DIV/0!"}]
[7,"Complete QC/QA Procedures",null,null,null,null,null,null,null,null,null,null,null,null,null,null,null,null,null,0,{"$error":"#DIV/0!"}]
[null,"Other Tasks:",null,null,null,null,null,null,null,null,null,null,null,null,null,null,null,null,null,0,{"$error":"#DIV/0!"}]
[null,null,null,null,null,null,null,null,null,null,null,null,null,null,null,null,null,null,null,0,{"$error":"#DIV/0!"}]
[null,null,null,null,null,null,null,null,null,null,null,null,null,null,null,null,null,null,null,0,{"$error":"#DIV/0!"}]
[null,null,null,null,null,null,null,null,null,null,null,null,null,null,null,null,null,null,null,0,{"$error":"#DIV/0!"}]
[null,null,null,null,null,null,null,null,null,null,null,null,null,null,null,null,null,null,null,0,{"$error":"#DIV/0!"}]
[null,null,null,null,null,null,null,null,null,null,null,null,null,null,null,null,null,null,null,0,{"$error":"#DIV/0!"}]
[null,null,null,null,null,null,null,null,null,null,null,null,null,null,null,null,null,null,null,0,{"$error":"#DIV/0!"}]
[null,null,null,null,null,null,null,null,null,null,null,null,null,null,null,null,null,null,null,0,{"$error":"#DIV/0!"}]
[null,null,null,null,null,null,null,null,null,null,null,null,null,null,null,null,null,null,null,0,{"$error":"#DIV/0!"}]
[null,null,null,null,null,null,null,null,null,null,null,null,null,null,null,null,null,null,null,0,{"$error":"#DIV/0!"}]
[null,null,null,null,null,null,null,null,null,null,null,null,null,null,null,null,null,null,null,0,{"$error":"#DIV/0!"}]
[null,null,null,null,null,null,null,null,null,null,null,null,null,null,null,null,null,null,null,0,{"$error":"#DIV/0!"}]
[null,null,null,null,null,null,null,null,null,null,null,null,null,null,null,null,null,null,null,{"$f":"IF(B120=\"\",0,IF((SUM(D120:S120)=0),0,SUM(D120:S120)))","v":0},{"$error":"#DIV/0!"}]
[null,"TOTAL WORKHOURS/CATEGORY:",null,{"$f":"SUM(D11:D120)","v":0},0,0,0,0,0,0,0,0,0,0,0,0,0,0,0,{"$f":"SUM(T11:T120)","v":0},{"$f":"SUM(U11:U120)","v":{"$error":"#DIV/0!"}},{"$f":"SUM(V12:V120)","v":0}]
[null,"TOTAL WORKDAYS/CATEGORY:",null,{"$f":"D121/8","v":0},{"$f":"E121/8","v":0},0,0,0,0,0,0,0,0,0,0,0,0,0,0]
[null,"HOURLY SALARY RATE:",null,{"$f":"'PEF CLASSIFICATION SHEET'!E444","v":0},{"$f":"'PEF CLASSIFICATION SHEET'!E445","v":0},{"$f":"'PEF CLASSIFICATION SHEET'!E446","v":0},{"$f":"'PEF CLASSIFICATION SHEET'!E447","v":0},{"$f":"'PEF CLASSIFICATION SHEET'!E448","v":0},{"$f":"'PEF CLASSIFICATION SHEET'!E449","v":0},{"$f":"'PEF CLASSIFICATION SHEET'!E450","v":0},{"$f":"'PEF CLASSIFICATION SHEET'!E451","v":0},{"$f":"'PEF CLASSIFICATION SHEET'!E452","v":0},{"$f":"'PEF CLASSIFICATION SHEET'!E453","v":0},{"$f":"'PEF CLASSIFICATION SHEET'!E454","v":0},{"$f":"'PEF CLASSIFICATION SHEET'!E455","v":0},{"$f":"'PEF CLASSIFICATION SHEET'!E456","v":0},{"$f":"'PEF CLASSIFICATION SHEET'!E457","v":0},{"$f":"'PEF CLASSIFICATION SHEET'!E458","v":0},{"$f":"'PEF CLASSIFICATION SHEET'!E459","v":0}]
[null,"RATES PER DAY:",null,{"$f":"D123*8","v":0},0,0,0,0,0,0,0,0,0,0,0,0,0,0,0]
[null,"PAYROLL BURDEN:",null,{"$f":"SUM(D121*D123)","v":0},{"$f":"SUM(E121*E123)","v":0},0,0,0,0,0,0,0,0,0,0,0,0,0,0]
[null,"TOTAL WORKDAYS:",null,{"$f":"SUM(D122:S122)","v":0}]
[null,"TOTAL PAYROLL BURDEN:",null,{"$f":"SUM(D125:S125)","v":0}]
[null,"AVERAGE COST PER HOUR:",null,{"$f":"SUM(D127/(D126*8))","v":{"$error":"#DIV/0!"}}]
[null,"GENERAL OVERHEAD:",{"$f":"TRANSPORTATIONPLANNING.PRIME_CONSULTANT_OVERHEAD","v":0},{"$f":"SUM(D127*C129)","v":0}]
[null,"SUBTOTAL:",null,{"$f":"SUM(D127+D129)","v":0}]
[null,"COMPARATIVE FEE:",{"$f":"TRANSPORTATIONPLANNING.PRIME_CONSULTANT_FEE","v":0.09},{"$f":"SUM(D130*C131)","v":0}]
[null,"FACILITIES COST OF CAPITAL:",{"$f":"TRANSPORTATIONPLANNING.PRIME_CONSULTANT_COSTofCAPITAL","v":0},{"$f":"SUM(D127*C132)","v":0}]
[null,"TOTAL:",null,{"$f":"SUM(D130:D132)","v":0}]
[null,"DIRECT EXPENSES:",null,{"$f":"TRANSPORTATIONPLANNING.PRIME_DIRECT_NONSALARY_TOTAL","v":0}]
[null,"TRANSPORTATION PLANNING GRAND TOTAL:",null,{"$f":"SUM(D133:D134)","v":0}]

{"sheet":"TransPlan-Exp","index":58,"n_rows":56,"n_cols":8,"rows_kept":56,"cut":false,"hidden":true,"merged":[[0,0,0,7],[1,3,1,7]]}
["TRANSPORTATION PLANNING--PRIME DIRECT EXPENSES"]
["TIP NUMBER",{"$f":"TIP.NUMBER","v":0},"FIRM:",{"$f":"TransPlan!G3","v":"CONSULTANT NAME"}]
[]
["GENERAL PROJECT WORK:","ITEM","QTY","DESCRIPTION",null,null,"UNIT COST "]
[null,"Travel:"]
[null,"Sedan",0,"Trip(s) @",0,"miles @",{"$f":"SEDAN","v":0.7},{"$f":"SUM(C6*E6*G6)","v":0}]
[null,"Carry All",0,"Trip(s) @",0,"miles @",{"$f":"CARRYALL","v":0.72},{"$f":"SUM(C7*E7*G7)","v":0}]
[null,"Car Rental",null,null,0,"days @ ",{"$f":"CARRENTAL","v":50},{"$f":"SUM(E8*G8)","v":0}]
[null,"Gas for Rental",null,null,0,"miles @",{"$f":"GASforRENTAL","v":0.2},{"$f":"SUM(E9*G9)","v":0}]
[null,"Parking:",0,"Trip(s) @",null,null,{"$f":"PARKING","v":3},{"$f":"SUM(C10*G10)","v":0}]
[null,"Per Diem:",0,"Breakfast",null,null,{"$f":"BREAKFAST","v":10.1},{"$f":"SUM(C11*G11)","v":0}]
[null,null,0,"Lunch",null,null,{"$f":"LUNCH","v":13.3},0]
[null,null,0,"Dinner",null,null,{"$f":"DINNER","v":23.1},0]
[null,null,0,"Lodging",null,null,{"$f":"LODGING_LUMP.SUM","v":95},0]
[null,"Reproduction:",0,"8 1/2 x 11 B & W Copies @",null,null,{"$f":"LETTERCOPIES","v":0.14000000000000001},0]
[null,null,0,"11 x 17 B & W Copies @",null,null,{"$f":"LEDGERCOPIES","v":0.34},0]
[null,null,0,"8 1/2 x 11 Color Copies @",null,null,{"$f":"LETTERCOLOR","v":0.83},0]
[null,null,0,"11 x 17 Color Copies @",null,null,{"$f":"LEDGERCOLOR","v":1.66},0]
[null,null,0,"SQ. FT. of Plots (B & W or Color)",null,"<65 SQ. FT.*",{"$f":"ROLLPLOTSshort","v":6.5},0]
[null,null,0,"SQ. FT. of Plots (B & W or Color)",null,">65 SQ. FT.*",{"$f":"ROLLPLOTSlong","v":1.5},0]
[null,null,0,"Cover(s) @",null,null,{"$f":"COVERS","v":0.5},0]
[null,null,0,"Binder(s) @",null,null,{"$f":"BINDERS","v":0.5},0]
[null,null,0,"Blueprints - 8 1/2 x 11 @",null,null,{"$f":"BLUEPRINTSLETTER","v":0.35},0]
[null,null,0,"Blueprints - 42 x 72 @",null,null,{"$f":"BLUEPRINTSLARGE","v":1.3},0]
[null,"Film and Developing:",0,"Roll(s) @",null,null,{"$f":"FILM","v":20},0]
[null,null,null,null,null,"Subtotal",null,{"$f":"SUM(H6:H25)","v":0}]
["MAPS AND DOCUMENTS:","ITEM","QTY","DESCRIPTION",null,null,"UNIT COST "]
[null,"County Tax Maps:",0,"Map(s) @",null,null,{"$f":"County_Tax_Maps","v":7},{"$f":"SUM(C28*G28)","v":0}]
[null,"USGS Maps:",0,"Map(s) @",null,null,{"$f":"USGSMAPS","v":7},{"$f":"SUM(C29*G29)","v":0}]
[null,null,null,null,null,"Subtotal",null,{"$f":"SUM(H28:H29)","v":0}]
["Miscellaneous Other","ITEM","QTY","DESCRIPTION",null,null,"UNIT COST "]
[null,null,null,null,null,null,null,{"$f":"SUM(C32*G32)","v":0}]
[null,null,null,null,null,null,null,{"$f":"SUM(C33*G33)","v":0}]
[null,null,null,null,null,null,null,0]
[null,null,null,null,null,null,null,0]
[null,null,null,null,null,null,null,0]
[null,null,null,null,null,null,null,0]
[null,null,null,null,null,null,null,0]
[null,null,null,null,null,null,null,0]
[null,null,null,null,null,null,null,0]
[null,null,null,null,null,null,null,{"$f":"SUM(C41*G41)","v":0}]
[null,null,null,null,null,null,null,{"$f":"SUM(C42*G42)","v":0}]
[null,null,null,null,null,null,null,{"$f":"SUM(C43*G43)","v":0}]
[null,null,null,null,null,null,null,0]
[null,null,null,null,null,null,null,0]
[null,null,null,null,null,null,null,0]
[null,null,null,null,null,null,null,0]
[null,null,null,null,null,null,null,0]
[null,null,null,null,null,null,null,{"$f":"SUM(C49*G49)","v":0}]
[null,null,null,null,null,null,null,{"$f":"SUM(C50*G50)","v":0}]
[null,null,null,null,null,null,null,{"$f":"SUM(C51*G51)","v":0}]
[null,null,null,null,null,"Subtotal",null,{"$f":"SUM(H32:H51)","v":0}]
[]
[null,null,null,null,null,"TOTAL",null,{"$f":"SUM(H26+H30+H52)","v":0}]
[]
[null,"* Sum of all plots "]

{"sheet":"Forecast","index":59,"n_rows":155,"n_cols":24,"rows_kept":155,"cut":false,"hidden":true,"merged":[[165,8,165,9],[165,10,165,11],[159,8,159,9],[159,10,159,11],[160,8,160,9],[160,10,160,11],[163,8,163,13],[164,8,164,9],[164,10,164,11],[138,23,138,24],[139,23,139,24],[154,1,155,1],[154,3,155,4],[158,3,158,6],[158,8,158,13],[132,23,132,24],[133,23,133,24],[134,23,134,24],[135,23,135,24],[136,23,136,24],[137,23,137,24],[126,23,126,24],[127,23,127,24],[128,23,128,24],[129,23,129,24],[130,23,130,24],[131,23,131,24],[120,23,120,24],[121,23,121,24],[122,23,122,24],[123,23,123,24],[124,23,124,24],[125,23,125,24],[114,23,114,24],[115,23,115,24],[116,23,116,24],[117,23,117,24],[118,23,118,24],[119,23,119,24],[108,23,108,24],[109,23,109,24],[110,23,110,24],[111,23,111,24],[112,23,112,24],[113,23,113,24],[102,23,102,24],[103,23,103,24],[104,23,104,24],[105,23,105,24],[106,23,106,24],[107,23,107,24],[98,23,98,24],[99,23,99,24],[100,23,100,24],[101,23,101,24],[93,23,93,24],[94,23,94,24],[95,23,95,24],[96,23,96,24],[64,23,64,24],[97,23,97,24],[87,23,87,24],[88,23,88,24],[89,23,89,24],[90,23,90,24],[91,23,91,24],[92,23,92,24],[81,23,81,24],[82,23,82,24],[83,23,83,24],[84,23,84,24],[85,23,85,24],[86,23,86,24],[74,23,74,24],[76,23,76,24],[77,23,77,24],[78,23,78,24],[79,23,79,24],[80,23,80,24],[68,23,68,24],[69,23,69,24],[70,23,70,24],[71,23,71,24],[72,23,72,24],[73,23,73,24],[61,23,61,24],[62,23,62,24],[63,23,63,24],[65,23,65,24],[66,23,66,24],[67,23,67,24],[75,23,75,24],[35,23,35,24],[56,23,56,24],[57,23,57,24],[58,23,58,24],[59,23,59,24],[60,23,60,24],[28,23,28,24],[29,23,29,24],[30,23,30,24],[31,23,31,24],[33,23,33,24],[34,23,34,24],[36,23,36,24],[37,23,37,24],[38,23,38,24],[39,23,39,24],[40,23,40,24],[41,23,41,24],[42,23,42,24],[43,23,43,24],[44,23,44,24],[45,23,45,24],[46,23,46,24],[47,23,47,24],[22,23,22,24],[23,23,23,24],[24,23,24,24],[25,23,25,24],[26,23,26,24],[27,23,27,24],[16,23,16,24],[17,23,17,24],[18,23,18,24],[19,23,19,24],[20,23,20,24],[21,23,21,24],[10,23,10,24],[11,23,11,24],[12,23,12,24],[13,23,13,24],[14,23,14,24],[15,23,15,24],[6,18,9,18],[6,19,9,19],[8,23,8,24],[6,3,9,3],[6,4,9,4],[6,5,9,5],[6,6,9,6],[6,7,9,7],[6,8,9,8],[6,9,9,9],[6,10,9,10],[6,11,9,11],[48,23,48,24],[49,23,49,24],[50,23,50,24],[51,23,51,24],[52,23,52,24],[53,23,53,24],[54,23,54,24],[55,23,55,24],[0,0,1,13],[2,1,2,4],[2,6,2,7],[2,10,2,11],[2,15,2,16],[3,1,3,4],[3,6,3,7],[3,10,3,11],[3,15,3,16],[6,12,9,12],[6,13,9,13],[6,14,9,14],[6,15,9,15],[6,16,9,16],[6,17,9,17],[4,3,4,19]]}
["TRAFFIC FORECAST--PRIME BREAKDOWN WORKSHEET -- ENTER WORKHOURS"]
[]
["PROJECT DESCRIPTION: ",{"$f":"PROJECT.DESCRIPTION","v":0},null,null,null,"FIRM:  ",{"$f":"TRAFFICFORECAST.PRIME_CONSULTANT_NAME","v":"CONSULTANT NAME"},null,"TASK ORDER NUMBER:",null,{"$f":"TASK.ORDER.NUMBER","v":0},null,"DATE PREPARED:",{"$f":"IF(SCOPE.MANDAY.ESTIMATE.PREPARED.BY.DATE=\"\",\"\",SCOPE.MANDAY.ESTIMATE.PREPARED.BY.DATE)","v":""}]
["PREPARED BY:  ",{"$f":"IF(SCOPE.MANDAY.ESTIMATE.PREPARED.BY=\"\",\"\",SCOPE.MANDAY.ESTIMATE.PREPARED.BY)","v":""},null,null,null,"TIP NUMBER:",{"$f":"TIP.NUMBER","v":0},null,"WBS NUMBER:",null,{"$f":"WBS.NUMBER","v":""},null,"REVISION DATE:",{"$f":"IF(SCOPE.MANDAY.ESTIMATE.APPROVED.BY.DATE=\"\",\"\",SCOPE.MANDAY.ESTIMATE.APPROVED.BY.DATE)","v":""}]
[null,null,null,"ESTIMATED WORKHOURS"]
[null,null,"EMPLOYEE NAMES",{"$f":"IF('PEF CLASSIFICATION SHEET'!D462=\"\",\"\",LEFT('PEF CLASSIFICATION SHEET'!D462,4))","v":""},{"$f":"IF('PEF CLASSIFICATION SHEET'!D463=\"\",\"\",LEFT('PEF CLASSIFICATION SHEET'!D463,4))","v":""},{"$f":"IF('PEF CLASSIFICATION SHEET'!D464=\"\",\"\",LEFT('PEF CLASSIFICATION SHEET'!D464,4))","v":""},{"$f":"IF('PEF CLASSIFICATION SHEET'!D465=\"\",\"\",LEFT('PEF CLASSIFICATION SHEET'!D465,4))","v":""},{"$f":"IF('PEF CLASSIFICATION SHEET'!D466=\"\",\"\",LEFT('PEF CLASSIFICATION SHEET'!D466,4))","v":""},{"$f":"IF('PEF CLASSIFICATION SHEET'!D467=\"\",\"\",LEFT('PEF CLASSIFICATION SHEET'!D467,4))","v":""},{"$f":"IF('PEF CLASSIFICATION SHEET'!D468=\"\",\"\",LEFT('PEF CLASSIFICATION SHEET'!D468,4))","v":""},{"$f":"IF('PEF CLASSIFICATION SHEET'!D469=\"\",\"\",LEFT('PEF CLASSIFICATION SHEET'!D469,4))","v":""},{"$f":"IF('PEF CLASSIFICATION SHEET'!D470=\"\",\"\",LEFT('PEF CLASSIFICATION SHEET'!D470,4))","v":""},{"$f":"IF('PEF CLASSIFICATION SHEET'!D471=\"\",\"\",LEFT('PEF CLASSIFICATION SHEET'!D471,4))","v":""},{"$f":"IF('PEF CLASSIFICATION SHEET'!D472=\"\",\"\",LEFT('PEF CLASSIFICATION SHEET'!D472,4))","v":""},{"$f":"IF('PEF CLASSIFICATION SHEET'!D473=\"\",\"\",LEFT('PEF CLASSIFICATION SHEET'!D473,4))","v":""},{"$f":"IF('PEF CLASSIFICATION SHEET'!D474=\"\",\"\",LEFT('PEF CLASSIFICATION SHEET'!D474,4))","v":""},{"$f":"IF('PEF CLASSIFICATION SHEET'!D475=\"\",\"\",LEFT('PEF CLASSIFICATION SHEET'!D475,4))","v":""},{"$f":"IF('PEF CLASSIFICATION SHEET'!D476=\"\",\"\",LEFT('PEF CLASSIFICATION SHEET'!D476,4))","v":""},{"$f":"IF('PEF CLASSIFICATION SHEET'!D477=\"\",\"\",LEFT('PEF CLASSIFICATION SHEET'!D477,4))","v":""},{"$f":"IF('PEF CLASSIFICATION SHEET'!D478=\"\",\"\",LEFT('PEF CLASSIFICATION SHEET'!D478,4))","v":""}]
[null,null,null,{"$f":"IF('PEF CLASSIFICATION SHEET'!C462=\"\",\"\",'PEF CLASSIFICATION SHEET'!C462)","v":""},{"$f":"IF('PEF CLASSIFICATION SHEET'!C463=\"\",\"\",'PEF CLASSIFICATION SHEET'!C463)","v":""},{"$f":"IF('PEF CLASSIFICATION SHEET'!C464=\"\",\"\",'PEF CLASSIFICATION SHEET'!C464)","v":""},{"$f":"IF('PEF CLASSIFICATION SHEET'!C465=\"\",\"\",'PEF CLASSIFICATION SHEET'!C465)","v":""},{"$f":"IF('PEF CLASSIFICATION SHEET'!C466=\"\",\"\",'PEF CLASSIFICATION SHEET'!C466)","v":""},{"$f":"IF('PEF CLASSIFICATION SHEET'!C467=\"\",\"\",'PEF CLASSIFICATION SHEET'!C467)","v":""},{"$f":"IF('PEF CLASSIFICATION SHEET'!C468=\"\",\"\",'PEF CLASSIFICATION SHEET'!C468)","v":""},{"$f":"IF('PEF CLASSIFICATION SHEET'!C469=\"\",\"\",'PEF CLASSIFICATION SHEET'!C469)","v":""},{"$f":"IF('PEF CLASSIFICATION SHEET'!C470=\"\",\"\",'PEF CLASSIFICATION SHEET'!C470)","v":""},{"$f":"IF('PEF CLASSIFICATION SHEET'!C471=\"\",\"\",'PEF CLASSIFICATION SHEET'!C471)","v":""},{"$f":"IF('PEF CLASSIFICATION SHEET'!C472=\"\",\"\",'PEF CLASSIFICATION SHEET'!C472)","v":""},{"$f":"IF('PEF CLASSIFICATION SHEET'!C473=\"\",\"\",'PEF CLASSIFICATION SHEET'!C473)","v":""},{"$f":"IF('PEF CLASSIFICATION SHEET'!C474=\"\",\"\",'PEF CLASSIFICATION SHEET'!C474)","v":""},{"$f":"IF('PEF CLASSIFICATION SHEET'!C475=\"\",\"\",'PEF CLASSIFICATION SHEET'!C475)","v":""},{"$f":"IF('PEF CLASSIFICATION SHEET'!C476=\"\",\"\",'PEF CLASSIFICATION SHEET'!C476)","v":""},{"$f":"IF('PEF CLASSIFICATION SHEET'!C477=\"\",\"\",'PEF CLASSIFICATION SHEET'!C477)","v":""},{"$f":"IF('PEF CLASSIFICATION SHEET'!C478=\"\",\"\",'PEF CLASSIFICATION SHEET'!C478)","v":""},"SUB-","%","PEF"]
[null,null,null,null,null,null,null,null,null,null,null,null,null,null,null,null,null,null,null,null,"TOTAL","OF","ESTIMATE"]
["TASK","TASK DESCRIPTION","CLASSIFICATION",null,null,null,null,null,null,null,null,null,null,null,null,null,null,null,null,null,null,"PROJECT",null,"COMMENTS"]
["NO."]
[1,"COLLECT AND REVIEW DATA"]
[1.1000000000000001,"     Collect Existing Data",null,null,null,null,null,null,null,null,null,null,null,null,null,null,null,null,null,null,{"$f":"SUM(D12:T12)","v":0},{"$f":"SUM((U12/$U$141))","v":{"$error":"#DIV/0!"}}]
[1.2,"     Review and Analyze Existing Data; Calculate Growth Rates",null,null,null,null,null,null,null,null,null,null,null,null,null,null,null,null,null,null,{"$f":"SUM(D13:T13)","v":0},{"$f":"SUM((U13/$U$141))","v":{"$error":"#DIV/0!"}}]
[1.3,"     Collect Field Data",null,null,null,null,null,null,null,null,null,null,null,null,null,null,null,null,null,null,0,{"$error":"#DIV/0!"}]
[1.4,"     Convert to AADT",null,null,null,null,null,null,null,null,null,null,null,null,null,null,null,null,null,null,0,{"$error":"#DIV/0!"}]
[1.5,"     Project Kickoff Meeting",null,null,null,null,null,null,null,null,null,null,null,null,null,null,null,null,null,null,0,{"$error":"#DIV/0!"}]
[null,null,null,null,null,null,null,null,null,null,null,null,null,null,null,null,null,null,null,null,0,{"$error":"#DIV/0!"}]
[2,"PREPARE BASE YEAR NO BUILD (BY NB) ESTIMATE"]
[2.1,"     Develop and Balance BY NB Estimate",null,null,null,null,null,null,null,null,null,null,null,null,null,null,null,null,null,null,0,{"$error":"#DIV/0!"}]
[2.2000000000000002,"     Develop BY NB Design Data",null,null,null,null,null,null,null,null,null,null,null,null,null,null,null,null,null,null,0,{"$error":"#DIV/0!"}]
[2.2999999999999998,"     Develop BY NB Traffic Forecast Diagrams",null,null,null,null,null,null,null,null,null,null,null,null,null,null,null,null,null,null,0,{"$error":"#DIV/0!"}]
[null,null,null,null,null,null,null,null,null,null,null,null,null,null,null,null,null,null,null,null,0,{"$error":"#DIV/0!"}]
[3,"MODEL REVIEW"]
[3.1,"     Review Model Validation",null,null,null,null,null,null,null,null,null,null,null,null,null,null,null,null,null,null,0,{"$error":"#DIV/0!"}]
[3.2,"     Review Networks Project Corridor",null,null,null,null,null,null,null,null,null,null,null,null,null,null,null,null,null,null,0,{"$error":"#DIV/0!"}]
[null,null,null,null,null,null,null,null,null,null,null,null,null,null,null,null,null,null,null,null,0,{"$error":"#DIV/0!"}]
[4,"DEVELOP BASE YEAR BUILD (BY B) FORECAST"]
[4.0999999999999996,"     Modify Model",null,null,null,null,null,null,null,null,null,null,null,null,null,null,null,null,null,null,0,{"$error":"#DIV/0!"}]
[4.2,"     Utilize Model",null,null,null,null,null,null,null,null,null,null,null,null,null,null,null,null,null,null,0,{"$error":"#DIV/0!"}]
[4.3,"     Develop and Balance BY B Traffic Forecast"]
["4.3.1","          Develop and Apply Model Diversion",null,null,null,null,null,null,null,null,null,null,null,null,null,null,null,null,null,null,0,{"$error":"#DIV/0!"}]
["4.3.2","          Review / Analyze",null,null,null,null,null,null,null,null,null,null,null,null,null,null,null,null,null,null,0,{"$error":"#DIV/0!"}]
["4.3.3","          Balance",null,null,null,null,null,null,null,null,null,null,null,null,null,null,null,null,null,null,0,{"$error":"#DIV/0!"}]
[null,null,null,null,null,null,null,null,null,null,null,null,null,null,null,null,null,null,null,null,0,{"$error":"#DIV/0!"}]
[4.4000000000000004,"     Develop BY B Design Data",null,null,null,null,null,null,null,null,null,null,null,null,null,null,null,null,null,null,0,{"$error":"#DIV/0!"}]
[4.5,"     Develop BY B Traffic Forecast Diagram(s)",null,null,null,null,null,null,null,null,null,null,null,null,null,null,null,null,null,null,0,{"$error":"#DIV/0!"}]
[null,null,null,null,null,null,null,null,null,null,null,null,null,null,null,null,null,null,null,null,0,{"$error":"#DIV/0!"}]
[5,"DEVELOP INTERIM YEAR NO BUILD (IY NB) FORECAST"]
[5.0999999999999996,"     Modify Model",null,null,null,null,null,null,null,null,null,null,null,null,null,null,null,null,null,null,0,{"$error":"#DIV/0!"}]
[5.2,"     Utilize Model",null,null,null,null,null,null,null,null,null,null,null,null,null,null,null,null,null,null,0,{"$error":"#DIV/0!"}]
[5.3,"     Develop and Balance IY NB Forecast"]
["5.3.1","          Develop and Apply Model Growth",null,null,null,null,null,null,null,null,null,null,null,null,null,null,null,null,null,null,0,{"$error":"#DIV/0!"}]
["5.3.2","          Develop and Apply Historic Growth",null,null,null,null,null,null,null,null,null,null,null,null,null,null,null,null,null,null,0,{"$error":"#DIV/0!"}]
["5.3.3","          Review / Analyze",null,null,null,null,null,null,null,null,null,null,null,null,null,null,null,null,null,null,0,{"$error":"#DIV/0!"}]
["5.3.4","          Balance",null,null,null,null,null,null,null,null,null,null,null,null,null,null,null,null,null,null,0,{"$error":"#DIV/0!"}]
[null,null,null,null,null,null,null,null,null,null,null,null,null,null,null,null,null,null,null,null,0,{"$error":"#DIV/0!"}]
[5.4,"     Develop IY NB Design Data",null,null,null,null,null,null,null,null,null,null,null,null,null,null,null,null,null,null,0,{"$error":"#DIV/0!"}]
[5.5,"     Develop IY NB Traffic Forecast Diagram(s)",null,null,null,null,null,null,null,null,null,null,null,null,null,null,null,null,null,null,0,{"$error":"#DIV/0!"}]
[null,null,null,null,null,null,null,null,null,null,null,null,null,null,null,null,null,null,null,null,0,{"$error":"#DIV/0!"}]
[6,"DEVELOP INTERIM YEAR (IY B) FORECAST"]
[6.1,"     Modify Model",null,null,null,null,null,null,null,null,null,null,null,null,null,null,null,null,null,null,0,{"$error":"#DIV/0!"}]
[6.2,"     Utilize Model",null,null,null,null,null,null,null,null,null,null,null,null,null,null,null,null,null,null,0,{"$error":"#DIV/0!"}]
[6.3,"     Develop and Balance IY B Forecast"]
["6.3.1","          Develop and Apply Model Diversion",null,null,null,null,null,null,null,null,null,null,null,null,null,null,null,null,null,null,0,{"$error":"#DIV/0!"}]
["6.3.2","          Review / Analyze",null,null,null,null,null,null,null,null,null,null,null,null,null,null,null,null,null,null,0,{"$error":"#DIV/0!"}]
["6.3.3","          Balance",null,null,null,null,null,null,null,null,null,null,null,null,null,null,null,null,null,null,0,{"$error":"#DIV/0!"}]
[null,null,null,null,null,null,null,null,null,null,null,null,null,null,null,null,null,null,null,null,0,{"$error":"#DIV/0!"}]
[6.4,"     Develop IY B Design Data",null,null,null,null,null,null,null,null,null,null,null,null,null,null,null,null,null,null,0,{"$error":"#DIV/0!"}]
[6.5,"     Develop IY B Traffic Forecast Diagram(s)",null,null,null,null,null,null,null,null,null,null,null,null,null,null,null,null,null,null,0,{"$error":"#DIV/0!"}]
[null,null,null,null,null,null,null,null,null,null,null,null,null,null,null,null,null,null,null,null,0,{"$error":"#DIV/0!"}]
[7,"DEVELOP FUTURE YEAR NO BUILD (FY NB) FORECAST"]
[7.1,"     Modify Model",null,null,null,null,null,null,null,null,null,null,null,null,null,null,null,null,null,null,0,{"$error":"#DIV/0!"}]
[7.2,"     Utilize Model",null,null,null,null,null,null,null,null,null,null,null,null,null,null,null,null,null,null,0,{"$error":"#DIV/0!"}]
[7.3,"     Develop and Balance FY NB Forecast"]
["7.3.1","          Develop and Apply Model Growth",null,null,null,null,null,null,null,null,null,null,null,null,null,null,null,null,null,null,0,{"$error":"#DIV/0!"}]
["7.3.2","          Develop and Apply Historic Growth",null,null,null,null,null,null,null,null,null,null,null,null,null,null,null,null,null,null,0,{"$error":"#DIV/0!"}]
["7.3.3","          Review / Analyze",null,null,null,null,null,null,null,null,null,null,null,null,null,null,null,null,null,null,0,{"$error":"#DIV/0!"}]
["7.3.4","          Balance",null,null,null,null,null,null,null,null,null,null,null,null,null,null,null,null,null,null,0,{"$error":"#DIV/0!"}]
[null,null,null,null,null,null,null,null,null,null,null,null,null,null,null,null,null,null,null,null,0,{"$error":"#DIV/0!"}]
[7.4,"     Develop FY NB Design Data",null,null,null,null,null,null,null,null,null,null,null,null,null,null,null,null,null,null,0,{"$error":"#DIV/0!"}]
[7.5,"     Develop FY NB Traffic Forecast Diagrams",null,null,null,null,null,null,null,null,null,null,null,null,null,null,null,null,null,null,0,{"$error":"#DIV/0!"}]
[null,null,null,null,null,null,null,null,null,null,null,null,null,null,null,null,null,null,null,null,0,{"$error":"#DIV/0!"}]
[8,"DEVELOP FUTURE YEAR BUILD (FY B) FORECAST"]
[8.1,"     Modify Model",null,null,null,null,null,null,null,null,null,null,null,null,null,null,null,null,null,null,0,{"$error":"#DIV/0!"}]
[8.1999999999999993,"     Utilize Model",null,null,null,null,null,null,null,null,null,null,null,null,null,null,null,null,null,null,0,{"$error":"#DIV/0!"}]
[8.3000000000000007,"     Develop and Balance FY B Forecast"]
["8.3.1","          Develop and Apply Model Diversion",null,null,null,null,null,null,null,null,null,null,null,null,null,null,null,null,null,null,{"$f":"SUM(D77:T77)","v":0},{"$f":"SUM((U77/$U$141))","v":{"$error":"#DIV/0!"}}]
["8.3.2","          Review / Analyze",null,null,null,null,null,null,null,null,null,null,null,null,null,null,null,null,null,null,0,{"$error":"#DIV/0!"}]
["8.3.3","          Balance",null,null,null,null,null,null,null,null,null,null,null,null,null,null,null,null,null,null,0,{"$error":"#DIV/0!"}]
[null,null,null,null,null,null,null,null,null,null,null,null,null,null,null,null,null,null,null,null,0,{"$error":"#DIV/0!"}]
[8.4,"     Develop FY B Design Data",null,null,null,null,null,null,null,null,null,null,null,null,null,null,null,null,null,null,0,{"$error":"#DIV/0!"}]
[8.5,"     Develop FY B Traffic Forecast Diagrams",null,null,null,null,null,null,null,null,null,null,null,null,null,null,null,null,null,null,0,{"$error":"#DIV/0!"}]
[null,null,null,null,null,null,null,null,null,null,null,null,null,null,null,null,null,null,null,null,0,{"$error":"#DIV/0!"}]
[9,"INTERIM REVIEW"]
[null,null,null,null,null,null,null,null,null,null,null,null,null,null,null,null,null,null,null,null,0,{"$error":"#DIV/0!"}]
[10,"DEVELOP DRAFT TRAFFIC FORECAST REPORT"]
[null,null,null,null,null,null,null,null,null,null,null,null,null,null,null,null,null,null,null,null,0,{"$error":"#DIV/0!"}]
[11,"REFINE TRAFFIC FORECAST AND REPORT"]
[null,null,null,null,null,null,null,null,null,null,null,null,null,null,null,null,null,null,null,null,0,{"$error":"#DIV/0!"}]
[12,"TRAFFIC FORECAST COMPLETION AND DELIVERY"]
[null,null,null,null,null,null,null,null,null,null,null,null,null,null,null,null,null,null,null,null,0,{"$error":"#DIV/0!"}]
[13,"PROJECT SCHEDULE"]
[null,null,null,null,null,null,null,null,null,null,null,null,null,null,null,null,null,null,null,null,0,{"$error":"#DIV/0!"}]
[14,"PROJECT COORDINATION"]
[null,null,null,null,null,null,null,null,null,null,null,null,null,null,null,null,null,null,null,null,0,{"$error":"#DIV/0!"}]
[15,"MEETINGS AND MEETING FOLLOW UP"]
[15.1,"    NCDOT Meetings and Site Visits",null,null,null,null,null,null,null,null,null,null,null,null,null,null,null,null,null,null,0,{"$error":"#DIV/0!"}]
[15.2,"    Stakeholder Meetings",null,null,null,null,null,null,null,null,null,null,null,null,null,null,null,null,null,null,0,{"$error":"#DIV/0!"}]
[15.3,"    Meeting Follow-up",null,null,null,null,null,null,null,null,null,null,null,null,null,null,null,null,null,null,0,{"$error":"#DIV/0!"}]
[null,null,null,null,null,null,null,null,null,null,null,null,null,null,null,null,null,null,null,null,0,{"$error":"#DIV/0!"}]
[null,null,null,null,null,null,null,null,null,null,null,null,null,null,null,null,null,null,null,null,0,{"$error":"#DIV/0!"}]
[null,null,null,null,null,null,null,null,null,null,null,null,null,null,null,null,null,null,null,null,0,{"$error":"#DIV/0!"}]
[null,null,null,null,null,null,null,null,null,null,null,null,null,null,null,null,null,null,null,null,0,{"$error":"#DIV/0!"}]
[null,null,null,null,null,null,null,null,null,null,null,null,null,null,null,null,null,null,null,null,0,{"$error":"#DIV/0!"}]
[null,null,null,null,null,null,null,null,null,null,null,null,null,null,null,null,null,null,null,null,0,{"$error":"#DIV/0!"}]
[null,null,null,null,null,null,null,null,null,null,null,null,null,null,null,null,null,null,null,null,0,{"$error":"#DIV/0!"}]
[null,null,null,null,null,null,null,null,null,null,null,null,null,null,null,null,null,null,null,null,0,{"$error":"#DIV/0!"}]
[null,null,null,null,null,null,null,null,null,null,null,null,null,null,null,null,null,null,null,null,0,{"$error":"#DIV/0!"}]
[null,null,null,null,null,null,null,null,null,null,null,null,null,null,null,null,null,null,null,null,0,{"$error":"#DIV/0!"}]
[null,null,null,null,null,null,null,null,null,null,null,null,null,null,null,null,null,null,null,null,0,{"$error":"#DIV/0!"}]
[null,null,null,null,null,null,null,null,null,null,null,null,null,null,null,null,null,null,null,null,0,{"$error":"#DIV/0!"}]
[null,null,null,null,null,null,null,null,null,null,null,null,null,null,null,null,null,null,null,null,0,{"$error":"#DIV/0!"}]
[null,null,null,null,null,null,null,null,null,null,null,null,null,null,null,null,null,null,null,null,0,{"$error":"#DIV/0!"}]
[null,null,null,null,null,null,null,null,null,null,null,null,null,null,null,null,null,null,null,null,0,{"$error":"#DIV/0!"}]
[null,null,null,null,null,null,null,null,null,null,null,null,null,null,null,null,null,null,null,null,0,{"$error":"#DIV/0!"}]
[null,null,null,null,null,null,null,null,null,null,null,null,null,null,null,null,null,null,null,null,0,{"$error":"#DIV/0!"}]
[null,null,null,null,null,null,null,null,null,null,null,null,null,null,null,null,null,null,null,null,0,{"$error":"#DIV/0!"}]
[null,null,null,null,null,null,null,null,null,null,null,null,null,null,null,null,null,null,null,null,0,{"$error":"#DIV/0!"}]
[null,null,null,null,null,null,null,null,null,null,null,null,null,null,null,null,null,null,null,null,0,{"$error":"#DIV/0!"}]
[null,null,null,null,null,null,null,null,null,null,null,null,null,null,null,null,null,null,null,null,0,{"$error":"#DIV/0!"}]
[null,null,null,null,null,null,null,null,null,null,null,null,null,null,null,null,null,null,null,null,0,{"$error":"#DIV/0!"}]
[null,null,null,null,null,null,null,null,null,null,null,null,null,null,null,null,null,null,null,null,0,{"$error":"#DIV/0!"}]
[null,null,null,null,null,null,null,null,null,null,null,null,null,null,null,null,null,null,null,null,0,{"$error":"#DIV/0!"}]
[null,null,null,null,null,null,null,null,null,null,null,null,null,null,null,null,null,null,null,null,0,{"$error":"#DIV/0!"}]
[null,null,null,null,null,null,null,null,null,null,null,null,null,null,null,null,null,null,null,null,0,{"$error":"#DIV/0!"}]
[null,null,null,null,null,null,null,null,null,null,null,null,null,null,null,null,null,null,null,null,0,{"$error":"#DIV/0!"}]
[null,null,null,null,null,null,null,null,null,null,null,null,null,null,null,null,null,null,null,null,0,{"$error":"#DIV/0!"}]
[null,null,null,null,null,null,null,null,null,null,null,null,null,null,null,null,null,null,null,null,0,{"$error":"#DIV/0!"}]
[null,null,null,null,null,null,null,null,null,null,null,null,null,null,null,null,null,null,null,null,0,{"$error":"#DIV/0!"}]
[null,null,null,null,null,null,null,null,null,null,null,null,null,null,null,null,null,null,null,null,0,{"$error":"#DIV/0!"}]
[null,null,null,null,null,null,null,null,null,null,null,null,null,null,null,null,null,null,null,null,0,{"$error":"#DIV/0!"}]
[null,null,null,null,null,null,null,null,null,null,null,null,null,null,null,null,null,null,null,null,0,{"$error":"#DIV/0!"}]
[null,null,null,null,null,null,null,null,null,null,null,null,null,null,null,null,null,null,null,null,0,{"$error":"#DIV/0!"}]
[null,null,null,null,null,null,null,null,null,null,null,null,null,null,null,null,null,null,null,null,0,{"$error":"#DIV/0!"}]
[null,null,null,null,null,null,null,null,null,null,null,null,null,null,null,null,null,null,null,null,0,{"$error":"#DIV/0!"}]
[null,null,null,null,null,null,null,null,null,null,null,null,null,null,null,null,null,null,null,null,0,{"$error":"#DIV/0!"}]
[null,null,null,null,null,null,null,null,null,null,null,null,null,null,null,null,null,null,null,null,0,{"$error":"#DIV/0!"}]
[null,null,null,null,null,null,null,null,null,null,null,null,null,null,null,null,null,null,null,null,0,{"$error":"#DIV/0!"}]
[null,null,null,null,null,null,null,null,null,null,null,null,null,null,null,null,null,null,null,null,0,{"$error":"#DIV/0!"}]
[null,null,null,null,null,null,null,null,null,null,null,null,null,null,null,null,null,null,null,null,0,{"$error":"#DIV/0!"}]
[null,"TOTAL WORKHOURS/CATEGORY:",null,{"$f":"SUM(D11:D140)","v":0},0,0,0,0,0,0,0,0,0,0,0,0,0,0,0,0,0,{"$error":"#DIV/0!"},{"$f":"SUM(W12:W140)","v":0}]
[null,"TOTAL WORKDAYS/CATEGORY:",null,{"$f":"D141/8","v":0},{"$f":"E141/8","v":0},0,0,0,0,0,0,0,0,0,0,0,0,0,0,0]
[null,"HOURLY SALARY RATE:",null,{"$f":"'PEF CLASSIFICATION SHEET'!E462","v":0},{"$f":"'PEF CLASSIFICATION SHEET'!E463","v":0},{"$f":"'PEF CLASSIFICATION SHEET'!E464","v":0},{"$f":"'PEF CLASSIFICATION SHEET'!E465","v":0},{"$f":"'PEF CLASSIFICATION SHEET'!E466","v":0},{"$f":"'PEF CLASSIFICATION SHEET'!E467","v":0},{"$f":"'PEF CLASSIFICATION SHEET'!E468","v":0},{"$f":"'PEF CLASSIFICATION SHEET'!E469","v":0},{"$f":"'PEF CLASSIFICATION SHEET'!E470","v":0},{"$f":"'PEF CLASSIFICATION SHEET'!E471","v":0},{"$f":"'PEF CLASSIFICATION SHEET'!E472","v":0},{"$f":"'PEF CLASSIFICATION SHEET'!E473","v":0},{"$f":"'PEF CLASSIFICATION SHEET'!E474","v":0},{"$f":"'PEF CLASSIFICATION SHEET'!E475","v":0},{"$f":"'PEF CLASSIFICATION SHEET'!E476","v":0},{"$f":"'PEF CLASSIFICATION SHEET'!E477","v":0},{"$f":"'PEF CLASSIFICATION SHEET'!E478","v":0}]
[null,"RATES PER DAY:",null,{"$f":"D143*8","v":0},0,0,0,0,0,0,0,0,0,0,0,0,0,0,0,0]
[null,"PAYROLL BURDEN:",null,{"$f":"SUM(D141*D143)","v":0},{"$f":"SUM(E141*E143)","v":0},0,0,0,0,0,0,0,0,0,0,0,0,0,0,0]
[null,"TOTAL WORKDAYS:",null,{"$f":"SUM(D142:T142)","v":0}]
[null,"TOTAL PAYROLL BURDEN:",null,{"$f":"SUM(D145:T145)","v":0}]
[null,"AVERAGE COST PER HOUR:",null,{"$f":"SUM(D147/(D146*8))","v":{"$error":"#DIV/0!"}}]
[null,"GENERAL OVERHEAD:",{"$f":"TRAFFICFORECAST.PRIME_CONSULTANT_OVERHEAD","v":0},{"$f":"SUM(D147*C149)","v":0}]
[null,"SUBTOTAL:",null,{"$f":"SUM(D147+D149)","v":0}]
[null,"COMPARATIVE FEE:",{"$f":"TRAFFICFORECAST.PRIME_CONSULTANT_FEE","v":0.09},{"$f":"SUM(D150*C151)","v":0}]
[null,"FACILITIES COST OF CAPITAL:",{"$f":"TRAFFICFORECAST.PRIME_CONSULTANT_COSTofCAPITAL","v":0},{"$f":"SUM(D147*C152)","v":0}]
[null,"TOTAL:",null,{"$f":"SUM(D150:D152)","v":0}]
[null,"DIRECT EXPENSES:",null,{"$f":"TRAFFICFORECAST.PRIME_DIRECT_NONSALARY_TOTAL","v":0}]
[null,"TRAFFIC FORECAST GRAND TOTAL:",null,{"$f":"SUM(D153:D154)","v":0}]

{"sheet":"Forecast-Exp","index":60,"n_rows":56,"n_cols":8,"rows_kept":56,"cut":false,"hidden":true,"merged":[[0,0,0,7],[1,3,1,7]]}
["TRAFFIC FORECAST--PRIME DIRECT EXPENSES"]
["TIP NUMBER",{"$f":"TIP.NUMBER","v":0},"FIRM:",{"$f":"Forecast!G3","v":"CONSULTANT NAME"}]
[]
["GENERAL PROJECT WORK:","ITEM","QTY","DESCRIPTION",null,null,"UNIT COST "]
[null,"Travel:"]
[null,"Sedan",0,"Trip(s) @",0,"miles @",{"$f":"SEDAN","v":0.7},{"$f":"SUM(C6*E6*G6)","v":0}]
[null,"Carry All",0,"Trip(s) @",0,"miles @",{"$f":"CARRYALL","v":0.72},{"$f":"SUM(C7*E7*G7)","v":0}]
[null,"Car Rental",null,null,0,"days @ ",{"$f":"CARRENTAL","v":50},{"$f":"SUM(E8*G8)","v":0}]
[null,"Gas for Rental",null,null,0,"miles @",{"$f":"GASforRENTAL","v":0.2},{"$f":"SUM(E9*G9)","v":0}]
[null,"Parking:",0,"Trip(s) @",null,null,{"$f":"PARKING","v":3},{"$f":"SUM(C10*G10)","v":0}]
[null,"Per Diem:",0,"Breakfast",null,null,{"$f":"BREAKFAST","v":10.1},{"$f":"SUM(C11*G11)","v":0}]
[null,null,0,"Lunch",null,null,{"$f":"LUNCH","v":13.3},0]
[null,null,0,"Dinner",null,null,{"$f":"DINNER","v":23.1},0]
[null,null,0,"Lodging",null,null,{"$f":"LODGING_LUMP.SUM","v":95},0]
[null,"Reproduction:",0,"8 1/2 x 11 B & W Copies @",null,null,{"$f":"LETTERCOPIES","v":0.14000000000000001},0]
[null,null,0,"11 x 17 B & W Copies @",null,null,{"$f":"LEDGERCOPIES","v":0.34},0]
[null,null,0,"8 1/2 x 11 Color Copies @",null,null,{"$f":"LETTERCOLOR","v":0.83},0]
[null,null,0,"11 x 17 Color Copies @",null,null,{"$f":"LEDGERCOLOR","v":1.66},0]
[null,null,0,"SQ. FT. of Plots (B & W or Color)",null,"<65 SQ. FT.*",{"$f":"ROLLPLOTSshort","v":6.5},0]
[null,null,0,"SQ. FT. of Plots (B & W or Color)",null,">65 SQ. FT.*",{"$f":"ROLLPLOTSlong","v":1.5},0]
[null,null,0,"Cover(s) @",null,null,{"$f":"COVERS","v":0.5},0]
[null,null,0,"Binder(s) @",null,null,{"$f":"BINDERS","v":0.5},0]
[null,null,0,"Blueprints - 8 1/2 x 11 @",null,null,{"$f":"BLUEPRINTSLETTER","v":0.35},0]
[null,null,0,"Blueprints - 42 x 72 @",null,null,{"$f":"BLUEPRINTSLARGE","v":1.3},0]
[null,"Film and Developing:",0,"Roll(s) @",null,null,{"$f":"FILM","v":20},0]
[null,null,null,null,null,"Subtotal",null,{"$f":"SUM(H6:H25)","v":0}]
["MAPS AND DOCUMENTS:","ITEM","QTY","DESCRIPTION",null,null,"UNIT COST "]
[null,"County Tax Maps:",0,"Map(s) @",null,null,{"$f":"County_Tax_Maps","v":7},{"$f":"SUM(C28*G28)","v":0}]
[null,"USGS Maps:",0,"Map(s) @",null,null,{"$f":"USGSMAPS","v":7},{"$f":"SUM(C29*G29)","v":0}]
[null,null,null,null,null,"Subtotal",null,{"$f":"SUM(H28:H29)","v":0}]
["Miscellaneous Other","ITEM","QTY","DESCRIPTION",null,null,"UNIT COST "]
[null,null,null,null,null,null,null,{"$f":"SUM(C32*G32)","v":0}]
[null,null,null,null,null,null,null,{"$f":"SUM(C33*G33)","v":0}]
[null,null,null,null,null,null,null,0]
[null,null,null,null,null,null,null,0]
[null,null,null,null,null,null,null,0]
[null,null,null,null,null,null,null,{"$f":"SUM(C37*G37)","v":0}]
[null,null,null,null,null,null,null,0]
[null,null,null,null,null,null,null,0]
[null,null,null,null,null,null,null,0]
[null,null,null,null,null,null,null,{"$f":"SUM(C41*G41)","v":0}]
[null,null,null,null,null,null,null,{"$f":"SUM(C42*G42)","v":0}]
[null,null,null,null,null,null,null,{"$f":"SUM(C43*G43)","v":0}]
[null,null,null,null,null,null,null,0]
[null,null,null,null,null,null,null,0]
[null,null,null,null,null,null,null,0]
[null,null,null,null,null,null,null,0]
[null,null,null,null,null,null,null,0]
[null,null,null,null,null,null,null,{"$f":"SUM(C49*G49)","v":0}]
[null,null,null,null,null,null,null,{"$f":"SUM(C50*G50)","v":0}]
[null,null,null,null,null,null,null,{"$f":"SUM(C51*G51)","v":0}]
[null,null,null,null,null,"Subtotal",null,{"$f":"SUM(H32:H51)","v":0}]
[]
[null,null,null,null,null,"TOTAL",null,{"$f":"SUM(H26+H30+H52)","v":0}]
[]
[null,"* Sum of all plots "]

{"sheet":"UT-Coord","index":61,"n_rows":50,"n_cols":19,"rows_kept":50,"cut":false,"hidden":true,"merged":[[3,0,3,1],[7,13,7,14],[2,2,2,4],[3,2,3,4],[2,0,2,1],[6,13,6,14],[20,0,20,1],[11,13,11,14],[8,13,8,14],[9,13,9,14],[12,13,12,14],[15,13,15,14],[16,13,16,14],[17,13,17,14],[18,13,18,14],[10,13,10,14],[19,13,19,14],[20,11,20,12],[20,13,20,14],[0,8,0,9],[21,13,21,14],[23,11,23,12],[23,13,23,14],[5,8,5,9],[13,13,13,14],[14,13,14,14],[49,1,49,2],[49,4,49,5],[27,0,27,1],[46,1,46,2],[46,4,46,5],[47,1,47,2],[47,4,47,5],[48,1,48,2],[48,4,48,5],[45,0,45,7],[15,15,15,18],[13,15,13,18],[14,15,14,18],[8,15,8,18],[25,0,25,1],[24,11,24,12],[24,13,24,14],[22,13,22,14],[25,11,29,12],[25,13,29,14],[23,0,23,1],[24,0,24,1],[22,0,22,1],[21,0,21,1],[28,0,28,1],[26,0,26,1],[7,15,7,18],[9,15,9,18],[10,15,10,18],[11,15,11,18],[12,15,12,18]]}
["Project ","TIP",{"$f":"IF(TIP.NUMBER=\"\",\"\",TIP.NUMBER)","v":""},"WBS PE",null,"WBS UT",null,"County",{"$f":"IF(COUNTY=\"\",\"\",COUNTY)","v":""}]
[]
["Professional Services Firm Name",null,{"$f":"UTILITIES.COORDINATION_CONSULTANT_NAME","v":"CONSULTANT NAME"}]
["Contract official",null,{"$f":"IF(SCOPE.MANDAY.ESTIMATE.PREPARED.BY=\"\",\"\",SCOPE.MANDAY.ESTIMATE.PREPARED.BY)","v":""}]
[]
["Task Order I  - UTILITY COORDINATION",null,null,null,null,null,null,"Use WBS PE ",{"$f":"$E$1","v":0},null,null,null,null,null,null,{"$f":"P41","v":0},{"$f":"Q41","v":0},{"$f":"R41","v":0}]
["Classification/Name",{"$f":"IF('PEF CLASSIFICATION SHEET'!$C$481=\"\",\"\",'PEF CLASSIFICATION SHEET'!$C$481)","v":"Utility Coordination Supervisor"},{"$f":"IF('PEF CLASSIFICATION SHEET'!$C$482=\"\",\"\",'PEF CLASSIFICATION SHEET'!$C$482)","v":"Senior Utility Coordinator"},{"$f":"IF('PEF CLASSIFICATION SHEET'!$C$483=\"\",\"\",'PEF CLASSIFICATION SHEET'!$C$483)","v":"Utility Coordinator"},{"$f":"IF('PEF CLASSIFICATION SHEET'!$C$484=\"\",\"\",'PEF CLASSIFICATION SHEET'!$C$484)","v":"Junior Technician"},{"$f":"IF('PEF CLASSIFICATION SHEET'!$C$485=\"\",\"\",'PEF CLASSIFICATION SHEET'!$C$485)","v":"MISCELLANEOUS1"},{"$f":"IF('PEF CLASSIFICATION SHEET'!$C$486=\"\",\"\",'PEF CLASSIFICATION SHEET'!$C$486)","v":"MISCELLANEOUS2"},{"$f":"IF('PEF CLASSIFICATION SHEET'!$C$487=\"\",\"\",'PEF CLASSIFICATION SHEET'!$C$487)","v":"MISCELLANEOUS3"},{"$f":"IF('PEF CLASSIFICATION SHEET'!$C$488=\"\",\"\",'PEF CLASSIFICATION SHEET'!$C$488)","v":""},{"$f":"IF('PEF CLASSIFICATION SHEET'!$C$489=\"\",\"\",'PEF CLASSIFICATION SHEET'!$C$489)","v":""},{"$f":"IF('PEF CLASSIFICATION SHEET'!$C$490=\"\",\"\",'PEF CLASSIFICATION SHEET'!$C$490)","v":""},{"$f":"IF('PEF CLASSIFICATION SHEET'!$C$491=\"\",\"\",'PEF CLASSIFICATION SHEET'!$C$491)","v":""},{"$f":"IF('PEF CLASSIFICATION SHEET'!$C$492=\"\",\"\",'PEF CLASSIFICATION SHEET'!$C$492)","v":""},"SubTotal"]
["Project Estimate",{"$f":"IF('PEF CLASSIFICATION SHEET'!$D$481=\"\",\"\",'PEF CLASSIFICATION SHEET'!$D$481)","v":""},{"$f":"IF('PEF CLASSIFICATION SHEET'!$D$482=\"\",\"\",'PEF CLASSIFICATION SHEET'!$D$482)","v":""},{"$f":"IF('PEF CLASSIFICATION SHEET'!$D$483=\"\",\"\",'PEF CLASSIFICATION SHEET'!$D$483)","v":""},{"$f":"IF('PEF CLASSIFICATION SHEET'!$D$484=\"\",\"\",'PEF CLASSIFICATION SHEET'!$D$484)","v":""},{"$f":"IF('PEF CLASSIFICATION SHEET'!$D$485=\"\",\"\",'PEF CLASSIFICATION SHEET'!$D$485)","v":""},{"$f":"IF('PEF CLASSIFICATION SHEET'!$D$486=\"\",\"\",'PEF CLASSIFICATION SHEET'!$D$486)","v":""},{"$f":"IF('PEF CLASSIFICATION SHEET'!$D$487=\"\",\"\",'PEF CLASSIFICATION SHEET'!$D$487)","v":""},{"$f":"IF('PEF CLASSIFICATION SHEET'!$D$488=\"\",\"\",'PEF CLASSIFICATION SHEET'!$D$488)","v":""},{"$f":"IF('PEF CLASSIFICATION SHEET'!$D$489=\"\",\"\",'PEF CLASSIFICATION SHEET'!$D$489)","v":""},{"$f":"IF('PEF CLASSIFICATION SHEET'!$D$490=\"\",\"\",'PEF CLASSIFICATION SHEET'!$D$490)","v":""},{"$f":"IF('PEF CLASSIFICATION SHEET'!$D$491=\"\",\"\",'PEF CLASSIFICATION SHEET'!$D$491)","v":""},{"$f":"IF('PEF CLASSIFICATION SHEET'!$D$492=\"\",\"\",'PEF CLASSIFICATION SHEET'!$D$492)","v":""},"SubTotal",null,"Notes"]
["1UT2",null,null,null,null,null,null,null,null,null,null,null,null,{"$f":"SUM(B9:M9)","v":0}]
["2UT1",null,null,null,null,null,null,null,null,null,null,null,null,0]
["2UT2",null,null,null,null,null,null,null,null,null,null,null,null,0]
["3UT1",null,null,null,null,null,null,null,null,null,null,null,null,0]
["3UT2",null,null,null,null,null,null,null,null,null,null,null,null,0]
["4UT1",null,null,null,null,null,null,null,null,null,null,null,null,{"$f":"SUM(B14:M14)","v":0}]
["4UT2",null,null,null,null,null,null,null,null,null,null,null,null,{"$f":"SUM(B15:M15)","v":0}]
["Other Tasks",null,null,null,null,null,null,null,null,null,null,null,null,{"$f":"SUM(B16:M16)","v":0}]
["Workhours",{"$f":"SUM(B9:B16)","v":0},0,0,0,0,0,0,0,0,0,0,0,0]
["Hourly Rate",{"$f":"'PEF CLASSIFICATION SHEET'!$E$481","v":0},{"$f":"'PEF CLASSIFICATION SHEET'!$E$482","v":0},{"$f":"'PEF CLASSIFICATION SHEET'!$E$483","v":0},{"$f":"'PEF CLASSIFICATION SHEET'!$E$484","v":0},{"$f":"'PEF CLASSIFICATION SHEET'!$E$485","v":0},{"$f":"'PEF CLASSIFICATION SHEET'!$E$486","v":0},{"$f":"'PEF CLASSIFICATION SHEET'!$E$487","v":0},{"$f":"'PEF CLASSIFICATION SHEET'!$E$488","v":0},{"$f":"'PEF CLASSIFICATION SHEET'!$E$489","v":0},{"$f":"'PEF CLASSIFICATION SHEET'!$E$490","v":0},{"$f":"'PEF CLASSIFICATION SHEET'!$E$491","v":0},{"$f":"'PEF CLASSIFICATION SHEET'!$E$492","v":0}]
["SubTotal",{"$f":"B17*B18","v":0},0,0,0,0,0,0,0,0,0,0,0,{"$f":"SUM(B19:M19)","v":0}]
[null,null,null,null,null,null,null,null,null,null,null,"Overhead",{"$f":"UTILITIES.COORDINATION_CONSULTANT_OVERHEAD","v":0},{"$f":"N19*M20","v":0}]
["Invoicing Percentages",null,"Workhours","Workdays","% Work","$",null,null,null,null,null,"Subtotal",null,{"$f":"N19+N20","v":0}]
[{"$f":"A9","v":"1UT2"},null,{"$f":"N9","v":0},{"$f":"N9/8","v":0},{"$f":"IF(C30=0,0,C22/C30)","v":0},{"$f":"E22*$N$26","v":0},null,null,null,null,null,"Fee",{"$f":"UTILITIES.COORDINATION_CONSULTANT_FEE","v":0.09},{"$f":"N21*M22","v":0}]
["2UT1",null,0,0,{"$f":"IF(C30=0,0,C23/C30)","v":0},{"$f":"E23*$N$26","v":0},null,null,null,null,null,"CoC",{"$f":"UTILITIES.COORDINATION_CONSULTANT_COSTofCAPITAL","v":0},{"$f":"N19*M23","v":0}]
["2UT2",null,0,0,{"$f":"IF(C30=0,0,C24/C30)","v":0},0,null,null,null,null,null,"Subtotal",null,{"$f":"N21+N22+N23","v":0}]
["3UT1",null,0,0,{"$f":"IF(C30=0,0,C25/C30)","v":0},0,null,null,null,null,null,"Direct Costs",null,{"$f":"S43","v":0}]
["3UT2",null,0,0,{"$f":"IF(C30=0,0,C26/C30)","v":0},0,null,null,null,null,null,"Total Cost",null,{"$f":"N24+N25","v":0}]
["4UT1",null,0,0,{"$f":"IF(C30=0,0,C27/C30)","v":0},0]
["4UT2",null,0,0,{"$f":"IF(C30=0,0,C28/C30)","v":0},0]
["Other Tasks",null,0,0,{"$f":"IF(C30=0,0,C29/C30)","v":0},0]
[null,"Total",{"$f":"SUM(C22:C29)","v":0},{"$f":"SUM(D22:D29)","v":0},{"$f":"SUM(E22:E29)","v":0},{"$f":"SUM(F22:F29)","v":0}]
[]
["Direct Costs","8-1/2\"x11\" B&W","11\"x17\" B&W","11\"x17\" Color","Bond (34\"x22\")","Bond Color (34\"x22\")","Permit Fees","Overnight Per Diem (Lodging, Breakfast, Lunch, Dinner)","Breakfast Only","Lunch Only","Dinner Only","Lodging Only","Mileage",null,null,null,null,null,"Subtotals"]
[{"$f":"A9","v":"1UT2"},null,null,null,null,null,null,null,null,null,null,null,null,null,null,null,null,null,{"$f":"IF($N9=0,0,B33*B$42+C33*C$42+D33*D$42+E33*E$42+F33*F$42+G33+H33*H$42+I33*I$42+J33*J$42+K33*K$42+L33*L$42+M33*M$42+N33*N$42+O33*O$42+P33*P$42+Q33*Q$42+R33*R$42)","v":0}]
["2UT1",null,null,null,null,null,null,null,null,null,null,null,null,null,null,null,null,null,0]
["2UT2",null,null,null,null,null,null,null,null,null,null,null,null,null,null,null,null,null,0]
["3UT1",null,null,null,null,null,null,null,null,null,null,null,null,null,null,null,null,null,0]
["3UT2",null,null,null,null,null,null,null,null,null,null,null,null,null,null,null,null,null,0]
["4UT1",null,null,null,null,null,null,null,null,null,null,null,null,null,null,null,null,null,0]
["4UT2",null,null,null,null,null,null,null,null,null,null,null,null,null,null,null,null,null,0]
["Other Tasks",null,null,null,null,null,null,null,null,null,null,null,null,null,null,null,null,null,0]
["Totals",{"$f":"IF(N9=0,0,B33)+IF(N10=0,0,B34)+IF(N11=0,0,B35)+IF(N12=0,0,B36)+IF(N13=0,0,B37)+IF(N14=0,0,B38)+IF(N15=0,0,B39)+IF(N16=0,0,B40)","v":0},{"$f":"IF($N9=0,0,C33)+IF($N10=0,0,C34)+IF($N11=0,0,C35)+IF($N12=0,0,C36)+IF($N13=0,0,C37)+IF($N14=0,0,C38)+IF($N15=0,0,C39)+IF($N16=0,0,C40)","v":0},{"$f":"IF($N9=0,0,D33)+IF($N10=0,0,D34)+IF($N11=0,0,D35)+IF($N12=0,0,D36)+IF($N13=0,0,D37)+IF($N14=0,0,D38)+IF($N15=0,0,D39)+IF($N16=0,0,D40)","v":0},{"$f":"IF($N9=0,0,E33)+IF($N10=0,0,E34)+IF($N11=0,0,E35)+IF($N12=0,0,E36)+IF($N13=0,0,E37)+IF($N14=0,0,E38)+IF($N15=0,0,E39)+IF($N16=0,0,E40)","v":0},{"$f":"IF($N9=0,0,F33)+IF($N10=0,0,F34)+IF($N11=0,0,F35)+IF($N12=0,0,F36)+IF($N13=0,0,F37)+IF($N14=0,0,F38)+IF($N15=0,0,F39)+IF($N16=0,0,F40)","v":0},null,{"$f":"IF($N9=0,0,H33)+IF($N10=0,0,H34)+IF($N11=0,0,H35)+IF($N12=0,0,H36)+IF($N13=0,0,H37)+IF($N14=0,0,H38)+IF($N15=0,0,H39)+IF($N16=0,0,H40)","v":0},0,0,0,0,0,{"$f":"IF($N9=0,0,N33)+IF($N10=0,0,N34)+IF($N11=0,0,N35)+IF($N12=0,0,N36)+IF($N13=0,0,N37)+IF($N14=0,0,N38)+IF($N15=0,0,N39)+IF($N16=0,0,N40)","v":0},0,0,0,0,{"$f":"SUM(S33:S40)","v":0}]
["Rate",{"$f":"LETTERCOPIES","v":0.14000000000000001},{"$f":"LEDGERCOPIES","v":0.34},{"$f":"LEDGERCOLOR","v":1.66},{"$f":"BOND.REGULAR","v":0.42},{"$f":"FULLSIZE.BOND.COLOR","v":3},null,{"$f":"IF('OVERALL SUMMARY'!I232=\"COST PLUS\", LODGING_COST.PLUS, LODGING_LUMP.SUM)+BREAKFAST+LUNCH+DINNER","v":141.5},{"$f":"BREAKFAST","v":10.1},{"$f":"LUNCH","v":13.3},{"$f":"DINNER","v":23.1},{"$f":"LODGING_LUMP.SUM","v":95},{"$f":"SEDAN","v":0.7},null,null,null,null,null,"Total"]
["Costs",{"$f":"B41*B42","v":0},{"$f":"C41*C42","v":0},0,0,0,{"$f":"IF($N$9=0,0,G33)+IF($N$10=0,0,G34)+IF($N$11=0,0,G35)+IF($N$12=0,0,G36)+IF($N$13=0,0,G37)+IF($N$16=0,0,G40)","v":0},{"$f":"H41*H42","v":0},{"$f":"I41*I42","v":0},{"$f":"J41*J42","v":0},{"$f":"K41*K42","v":0},{"$f":"L41*L42","v":0},{"$f":"M41*M42","v":0},{"$f":"N41*N42","v":0},{"$f":"O41*O42","v":0},{"$f":"P41*P42","v":0},0,{"$f":"R41*R42","v":0},{"$f":"SUM(B43:R43)","v":0}]
[]
[]
["Total Project Estimates"]
[null,"TO I",null,"$/Workday","Total Project Subtotal",null,"$/Workday","TOTAL WORKDAYS"]
["Labor & OH & CoC",{"$f":"N24","v":0},null,{"$f":"IF(D30=0,0,N24/D30)","v":0},{"$f":"B48","v":0},null,{"$f":"IF(SUM(D30)=0,0,((SUM(N24))/(SUM(D30))))","v":0},{"$f":"(SUM(N17))/8","v":0}]
["Direct Costs",{"$f":"S43","v":0},null,null,{"$f":"B49","v":0}]
["Totals",{"$f":"N26","v":0},null,null,{"$f":"B50","v":0}]

{"sheet":"UT-Design","index":62,"n_rows":39,"n_cols":19,"rows_kept":39,"cut":false,"hidden":true,"merged":[[38,0,40,8],[0,8,0,9],[2,2,2,4],[2,6,2,7],[2,8,2,9],[3,0,3,1],[3,2,3,4],[3,6,3,7],[3,8,3,9],[22,0,22,1],[17,0,17,1],[19,0,19,1],[19,13,19,14],[22,11,24,12],[22,13,24,14],[20,0,20,1],[20,11,20,12],[20,13,20,14],[21,0,21,1],[21,11,21,12],[21,13,21,14],[23,0,23,1],[5,13,5,14],[17,11,17,12],[17,13,17,14],[18,0,18,1],[18,13,18,14],[16,13,16,14],[6,13,6,14],[7,13,7,14],[8,13,8,14],[9,13,9,14],[10,13,10,14],[11,13,11,14],[12,13,12,14],[13,13,13,14],[14,13,14,14],[15,13,15,14],[11,15,11,18],[12,15,12,18],[6,15,6,18],[7,15,7,18],[8,15,8,18],[9,15,9,18],[10,15,10,18]]}
["Project ","TIP",{"$f":"IF(TIP.NUMBER=\"\",\"\",TIP.NUMBER)","v":""},"WBS PE",null,"WBS RW",null,"County",{"$f":"IF(COUNTY=\"\",\"\",COUNTY)","v":""}]
[]
["PEF Utilities Design","Name",{"$f":"UTILITIES.DESIGN_CONSULTANT_NAME","v":"CONSULTANT NAME"},null,null,null,"Firm's LSA Contract ID"]
["Project Contact",null,{"$f":"IF(SCOPE.MANDAY.ESTIMATE.PREPARED.BY=\"\",\"\",SCOPE.MANDAY.ESTIMATE.PREPARED.BY)","v":""},null,null,null,"Contract official",null,{"$f":"IF(SCOPE.MANDAY.ESTIMATE.APPROVED.BY=\"\",\"\",SCOPE.MANDAY.ESTIMATE.APPROVED.BY)","v":""}]
["Task Order II - UTILITY DESIGN "]
["Classification/Name",{"$f":"IF('PEF CLASSIFICATION SHEET'!C495=\"\",\"\",'PEF CLASSIFICATION SHEET'!C495)","v":"Utility Design Supervisor"},{"$f":"IF('PEF CLASSIFICATION SHEET'!C496=\"\",\"\",'PEF CLASSIFICATION SHEET'!C496)","v":"Senior Utility Engineer"},{"$f":"IF('PEF CLASSIFICATION SHEET'!C497=\"\",\"\",'PEF CLASSIFICATION SHEET'!C497)","v":"Utility Engineer"},{"$f":"IF('PEF CLASSIFICATION SHEET'!C498=\"\",\"\",'PEF CLASSIFICATION SHEET'!C498)","v":"Junior Technician"},{"$f":"IF('PEF CLASSIFICATION SHEET'!C499=\"\",\"\",'PEF CLASSIFICATION SHEET'!C499)","v":"MISCELLANEOUS1"},{"$f":"IF('PEF CLASSIFICATION SHEET'!C500=\"\",\"\",'PEF CLASSIFICATION SHEET'!C500)","v":"MISCELLANEOUS2"},{"$f":"IF('PEF CLASSIFICATION SHEET'!C501=\"\",\"\",'PEF CLASSIFICATION SHEET'!C501)","v":"MISCELLANEOUS3"},{"$f":"IF('PEF CLASSIFICATION SHEET'!C502=\"\",\"\",'PEF CLASSIFICATION SHEET'!C502)","v":""},{"$f":"IF('PEF CLASSIFICATION SHEET'!C503=\"\",\"\",'PEF CLASSIFICATION SHEET'!C503)","v":""},{"$f":"IF('PEF CLASSIFICATION SHEET'!C504=\"\",\"\",'PEF CLASSIFICATION SHEET'!C504)","v":""},{"$f":"IF('PEF CLASSIFICATION SHEET'!C505=\"\",\"\",'PEF CLASSIFICATION SHEET'!C505)","v":""},{"$f":"IF('PEF CLASSIFICATION SHEET'!C506=\"\",\"\",'PEF CLASSIFICATION SHEET'!C506)","v":""},"SubTotal",null,{"$f":"P36","v":0},{"$f":"Q36","v":0},{"$f":"R36","v":0}]
["Project Estimate",{"$f":"IF('PEF CLASSIFICATION SHEET'!D495=\"\",\"\",'PEF CLASSIFICATION SHEET'!D495)","v":""},{"$f":"IF('PEF CLASSIFICATION SHEET'!D496=\"\",\"\",'PEF CLASSIFICATION SHEET'!D496)","v":""},{"$f":"IF('PEF CLASSIFICATION SHEET'!D497=\"\",\"\",'PEF CLASSIFICATION SHEET'!D497)","v":""},{"$f":"IF('PEF CLASSIFICATION SHEET'!D498=\"\",\"\",'PEF CLASSIFICATION SHEET'!D498)","v":""},{"$f":"IF('PEF CLASSIFICATION SHEET'!D499=\"\",\"\",'PEF CLASSIFICATION SHEET'!D499)","v":""},{"$f":"IF('PEF CLASSIFICATION SHEET'!D500=\"\",\"\",'PEF CLASSIFICATION SHEET'!D500)","v":""},{"$f":"IF('PEF CLASSIFICATION SHEET'!D501=\"\",\"\",'PEF CLASSIFICATION SHEET'!D501)","v":""},{"$f":"IF('PEF CLASSIFICATION SHEET'!D502=\"\",\"\",'PEF CLASSIFICATION SHEET'!D502)","v":""},{"$f":"IF('PEF CLASSIFICATION SHEET'!D503=\"\",\"\",'PEF CLASSIFICATION SHEET'!D503)","v":""},{"$f":"IF('PEF CLASSIFICATION SHEET'!D504=\"\",\"\",'PEF CLASSIFICATION SHEET'!D504)","v":""},{"$f":"IF('PEF CLASSIFICATION SHEET'!D505=\"\",\"\",'PEF CLASSIFICATION SHEET'!D505)","v":""},{"$f":"IF('PEF CLASSIFICATION SHEET'!D506=\"\",\"\",'PEF CLASSIFICATION SHEET'!D506)","v":""},"SubTotal",null,"Notes"]
["2UT1",null,null,null,null,null,null,null,null,null,null,null,null,{"$f":"SUM(B8:M8)","v":0}]
["2UT2",null,null,null,null,null,null,null,null,null,null,null,null,0]
["3UT1",null,null,null,null,null,null,null,null,null,null,null,null,0]
["3UT2",null,null,null,null,null,null,null,null,null,null,null,null,0]
["4UT1",null,null,null,null,null,null,null,null,null,null,null,null,0]
["5UT1",null,null,null,null,null,null,null,null,null,null,null,null,{"$f":"SUM(B13:M13)","v":0}]
["Workhours",{"$f":"SUM(B8:B13)","v":0},{"$f":"SUM(C8:C13)","v":0},0,0,0,0,0,0,0,0,0,0,{"$f":"SUM(N8:N13)","v":0}]
["Hourly Rate",{"$f":"'PEF CLASSIFICATION SHEET'!E495","v":0},{"$f":"'PEF CLASSIFICATION SHEET'!E496","v":0},{"$f":"'PEF CLASSIFICATION SHEET'!E497","v":0},{"$f":"'PEF CLASSIFICATION SHEET'!E498","v":0},{"$f":"'PEF CLASSIFICATION SHEET'!E499","v":0},{"$f":"'PEF CLASSIFICATION SHEET'!E500","v":0},{"$f":"'PEF CLASSIFICATION SHEET'!E501","v":0},{"$f":"'PEF CLASSIFICATION SHEET'!E502","v":0},{"$f":"'PEF CLASSIFICATION SHEET'!E503","v":0},{"$f":"'PEF CLASSIFICATION SHEET'!E504","v":0},{"$f":"'PEF CLASSIFICATION SHEET'!E505","v":0},{"$f":"'PEF CLASSIFICATION SHEET'!E506","v":0}]
["SubTotal",{"$f":"B14*B15","v":0},0,0,0,0,0,0,0,0,0,0,0,{"$f":"SUM(B16:M16)","v":0}]
[null,null,null,null,null,null,null,null,null,null,null,"Overhead",{"$f":"UTILITIES.DESIGN_CONSULTANT_OVERHEAD","v":0},{"$f":"N16*M17","v":0}]
["Invoicing Percentages",null,"Workhours","% Work",null,null,null,null,null,null,null,"Subtotal",null,{"$f":"N16+N17","v":0}]
[{"$f":"A8","v":"2UT1"},null,{"$f":"N8","v":0},{"$f":"IF(C$25=0,0,C19/C$25)","v":0},null,null,null,null,"WORKDAYS",null,null,"Fee",{"$f":"UTILITIES.DESIGN_CONSULTANT_FEE","v":0.09},{"$f":"N18*M19","v":0}]
["2UT2",null,0,0,null,null,null,null,{"$f":"N14/8","v":0},null,null,"CoC",{"$f":"UTILITIES.DESIGN_CONSULTANT_COSTofCAPITAL","v":0},{"$f":"N16*M20","v":0}]
["3UT1",null,0,0,null,null,null,null,null,null,null,"Subtotal",null,{"$f":"N18+N19+N20","v":0}]
["3UT2",null,0,0,null,null,null,null,null,null,null,"Direct Costs",null,{"$f":"S36","v":0}]
["4UT1",null,0,0,null,null,null,null,null,null,null,"Total Cost",null,{"$f":"N21+N22","v":0}]
["5UT1",null,0,0]
[null,"Total",{"$f":"SUM(C19:C24)","v":0},{"$f":"SUM(D19:D24)","v":0}]
[]
["Direct Costs","8-1/2\"x11\" B&W","11\"x17\" B&W","11\"x17\" Color","Bond (34\"x22\")","Bond Color (34\"x22\")","Permit Fees","Overnight Per Diem (Lodging, Breakfast, Lunch, Dinner)","Breakfast Only","Lunch Only","Dinner Only","Lodging Only","Mileage",null,null,null,null,null,"Subtotals"]
[{"$f":"A8","v":"2UT1"},null,null,null,null,null,null,null,null,null,null,null,null,null,null,null,null,null,{"$f":"IF($N8=0,0,B28*B$35+C28*C$35+D28*D$35+E28*E$35+F28*F$35+G28+H28*H$35+I28*I$35+J28*J$35+K28*K$35+L28*L$35+M28*M$35+N28*N$35+O28*O$35+P28*P$35+Q28*Q$35+R28*R$35)","v":0}]
["2UT2",null,null,null,null,null,null,null,null,null,null,null,null,null,null,null,null,null,{"$f":"IF($N9=0,0,B29*B$35+C29*C$35+D29*D$35+E29*E$35+F29*F$35+G29+H29*H$35+I29*I$35+J29*J$35+K29*K$35+L29*L$35+M29*M$35+N29*N$35+O29*O$35+P29*P$35+Q29*Q$35+R29*R$35)","v":0}]
["3UT1",null,null,null,null,null,null,null,null,null,null,null,null,null,null,null,null,null,0]
["3UT2",null,null,null,null,null,null,null,null,null,null,null,null,null,null,null,null,null,0]
["4UT1",null,null,null,null,null,null,null,null,null,null,null,null,null,null,null,null,null,0]
["5UT1",null,null,null,null,null,null,null,null,null,null,null,null,null,null,null,null,null,0]
["Totals",{"$f":"IF($N$8=0,0,B28)+IF($N$9=0,0,B29)+IF($N$10=0,0,B30)+IF($N$11=0,0,B31)+IF($N$12=0,0,B32)+IF($N$13=0,0,B33)","v":0},{"$f":"IF($N$8=0,0,C28)+IF($N$9=0,0,C29)+IF($N$10=0,0,C30)+IF($N$11=0,0,C31)+IF($N$12=0,0,C32)+IF($N$13=0,0,C33)","v":0},0,0,0,null,{"$f":"IF($N$8=0,0,H28)+IF($N$9=0,0,H29)+IF($N$10=0,0,H30)+IF($N$11=0,0,H31)+IF($N$12=0,0,H32)+IF($N$13=0,0,H33)","v":0},0,0,0,0,{"$f":"IF($N$8=0,0,M28)+IF($N$9=0,0,M29)+IF($N$10=0,0,M30)+IF($N$11=0,0,M31)+IF($N$12=0,0,M32)+IF($N$13=0,0,M33)","v":0},0,0,0,0,{"$f":"IF($N$8=0,0,R28)+IF($N$9=0,0,R29)+IF($N$10=0,0,R30)+IF($N$11=0,0,R31)+IF($N$12=0,0,R32)+IF($N$13=0,0,R33)","v":0},{"$f":"SUM(S28:S33)","v":0}]
["Rate",{"$f":"LETTERCOPIES","v":0.14000000000000001},{"$f":"LEDGERCOPIES","v":0.34},{"$f":"LEDGERCOLOR","v":1.66},{"$f":"BOND.REGULAR","v":0.42},{"$f":"FULLSIZE.BOND.COLOR","v":3},null,{"$f":"IF('OVERALL SUMMARY'!I232=\"COST PLUS\", LODGING_COST.PLUS, LODGING_LUMP.SUM)+BREAKFAST+LUNCH+DINNER","v":141.5},{"$f":"BREAKFAST","v":10.1},{"$f":"LUNCH","v":13.3},{"$f":"DINNER","v":23.1},{"$f":"LODGING_LUMP.SUM","v":95},{"$f":"SEDAN","v":0.7},null,null,null,null,null,"Total"]
["Costs",{"$f":"B34*B35","v":0},{"$f":"C34*C35","v":0},0,0,0,{"$f":"IF($N$8=0,0,G28)+IF($N$9=0,0,G29)+IF($N$10=0,0,G30)+IF($N$11=0,0,G31)+IF($N$12=0,0,G32)+IF($N$13=0,0,G33)","v":0},{"$f":"H34*H35","v":0},{"$f":"I34*I35","v":0},{"$f":"J34*J35","v":0},{"$f":"K34*K35","v":0},{"$f":"L34*L35","v":0},{"$f":"M34*M35","v":0},{"$f":"N34*N35","v":0},{"$f":"O34*O35","v":0},{"$f":"P34*P35","v":0},0,{"$f":"R34*R35","v":0},{"$f":"SUM(B36:R36)","v":0}]
[]
[]
["PEF--UTILITY DESIGN"]

{"sheet":"Ferry","index":63,"n_rows":288,"n_cols":31,"rows_kept":288,"cut":false,"hidden":true,"merged":[[151,26,151,27],[186,26,186,27],[187,26,187,27],[188,26,188,27],[261,26,261,27],[262,26,262,27],[263,26,263,27],[264,26,264,27],[265,26,265,27],[260,26,260,27],[240,26,240,27],[241,26,241,27],[242,26,242,27],[230,26,230,27],[231,26,231,27],[232,26,232,27],[233,26,233,27],[234,26,234,27],[235,26,235,27],[236,26,236,27],[237,26,237,27],[238,26,238,27],[239,26,239,27],[215,26,215,27],[111,26,111,27],[112,26,112,27],[113,26,113,27],[114,26,114,27],[115,26,115,27],[116,26,116,27],[117,26,117,27],[131,26,131,27],[132,26,132,27],[128,26,128,27],[142,26,142,27],[143,26,143,27],[144,26,144,27],[145,26,145,27],[146,26,146,27],[147,26,147,27],[148,26,148,27],[149,26,149,27],[118,26,118,27],[119,26,119,27],[120,26,120,27],[121,26,121,27],[122,26,122,27],[123,26,123,27],[133,26,133,27],[134,26,134,27],[135,26,135,27],[136,26,136,27],[124,26,124,27],[125,26,125,27],[126,26,126,27],[127,26,127,27],[129,26,129,27],[130,26,130,27],[150,26,150,27],[252,26,252,27],[253,26,253,27],[254,26,254,27],[255,26,255,27],[256,26,256,27],[257,26,257,27],[258,26,258,27],[259,26,259,27],[243,26,243,27],[244,26,244,27],[245,26,245,27],[246,26,246,27],[247,26,247,27],[248,26,248,27],[249,26,249,27],[250,26,250,27],[251,26,251,27],[224,26,224,27],[225,26,225,27],[226,26,226,27],[227,26,227,27],[228,26,228,27],[229,26,229,27],[216,26,216,27],[217,26,217,27],[218,26,218,27],[219,26,219,27],[220,26,220,27],[221,26,221,27],[222,26,222,27],[223,26,223,27],[206,26,206,27],[207,26,207,27],[208,26,208,27],[209,26,209,27],[210,26,210,27],[211,26,211,27],[212,26,212,27],[213,26,213,27],[214,26,214,27],[197,26,197,27],[198,26,198,27],[199,26,199,27],[200,26,200,27],[201,26,201,27],[202,26,202,27],[203,26,203,27],[204,26,204,27],[205,26,205,27],[180,26,180,27],[181,26,181,27],[182,26,182,27],[183,26,183,27],[184,26,184,27],[185,26,185,27],[196,26,196,27],[189,26,189,27],[190,26,190,27],[191,26,191,27],[192,26,192,27],[193,26,193,27],[194,26,194,27],[195,26,195,27],[171,26,171,27],[172,26,172,27],[173,26,173,27],[174,26,174,27],[175,26,175,27],[176,26,176,27],[177,26,177,27],[178,26,178,27],[179,26,179,27],[63,26,63,27],[64,26,64,27],[141,26,141,27],[152,26,152,27],[153,26,153,27],[154,26,154,27],[155,26,155,27],[156,26,156,27],[157,26,157,27],[83,26,83,27],[84,26,84,27],[86,26,86,27],[87,26,87,27],[75,26,75,27],[76,26,76,27],[77,26,77,27],[78,26,78,27],[79,26,79,27],[80,26,80,27],[82,26,82,27],[85,26,85,27],[81,26,81,27],[94,26,94,27],[95,26,95,27],[57,26,57,27],[58,26,58,27],[59,26,59,27],[60,26,60,27],[61,26,61,27],[62,26,62,27],[25,26,25,27],[26,26,26,27],[27,26,27,27],[28,26,28,27],[29,26,29,27],[30,26,30,27],[45,26,45,27],[46,26,46,27],[37,26,37,27],[47,26,47,27],[31,26,31,27],[42,26,42,27],[14,26,14,27],[15,26,15,27],[16,26,16,27],[17,26,17,27],[18,26,18,27],[19,26,19,27],[20,26,20,27],[55,26,55,27],[56,26,56,27],[6,22,9,22],[53,26,53,27],[74,26,74,27],[32,26,32,27],[33,26,33,27],[34,26,34,27],[35,26,35,27],[36,26,36,27],[68,26,68,27],[69,26,69,27],[70,26,70,27],[71,26,71,27],[72,26,72,27],[73,26,73,27],[51,26,51,27],[52,26,52,27],[54,26,54,27],[65,26,65,27],[66,26,66,27],[67,26,67,27],[10,26,10,27],[11,26,11,27],[12,26,12,27],[13,26,13,27],[6,11,9,11],[6,18,9,18],[6,20,9,20],[6,21,9,21],[6,12,9,12],[6,13,9,13],[6,14,9,14],[6,15,9,15],[6,16,9,16],[6,17,9,17],[2,1,2,4],[2,6,2,7],[2,10,2,11],[2,15,2,16],[3,1,3,4],[3,6,3,7],[3,10,3,11],[3,15,3,16],[0,2,0,13],[4,3,4,22],[6,19,9,19],[48,26,48,27],[49,26,49,27],[50,26,50,27],[38,26,38,27],[39,26,39,27],[40,26,40,27],[41,26,41,27],[43,26,43,27],[44,26,44,27],[8,26,8,27],[21,26,21,27],[22,26,22,27],[23,26,23,27],[24,26,24,27],[6,3,9,3],[6,4,9,4],[6,5,9,5],[6,6,9,6],[6,7,9,7],[6,8,9,8],[6,9,9,9],[6,10,9,10],[97,26,97,27],[108,26,108,27],[109,26,109,27],[110,26,110,27],[88,26,88,27],[89,26,89,27],[90,26,90,27],[91,26,91,27],[92,26,92,27],[93,26,93,27],[96,26,96,27],[107,26,107,27],[98,26,98,27],[99,26,99,27],[100,26,100,27],[101,26,101,27],[102,26,102,27],[103,26,103,27],[104,26,104,27],[105,26,105,27],[106,26,106,27],[267,26,267,27],[268,26,268,27],[269,26,269,27],[270,26,270,27],[271,26,271,27],[272,26,272,27],[137,26,137,27],[138,26,138,27],[140,26,140,27],[266,26,266,27],[139,26,139,27],[158,26,158,27],[159,26,159,27],[160,26,160,27],[161,26,161,27],[162,26,162,27],[163,26,163,27],[164,26,164,27],[165,26,165,27],[166,26,166,27],[167,26,167,27],[168,26,168,27],[169,26,169,27],[170,26,170,27],[298,8,298,9],[298,10,298,11],[287,1,288,1],[287,3,288,4],[291,3,291,6],[291,8,291,13],[292,8,292,9],[292,10,292,11],[293,8,293,9],[293,10,293,11],[296,8,296,13],[297,8,297,9],[297,10,297,11]]}
[null,"Ferry (Select One Below)",{"$f":"CONCATENATE(\" \",\"--PRIME BREAKDOWN WORKSHEET -- ENTER WORKHOURS\")","v":" --PRIME BREAKDOWN WORKSHEET -- ENTER WORKHOURS"},null,null,null,null,null,null,null,null,null,null,null,null,null,null,null,null,null,null,null,null,null,null,null,null,null,null,null,"Ferry (Select One Below)"]
[null,null,null,null,null,null,null,null,null,null,null,null,null,null,null,null,null,null,null,null,null,null,null,null,null,null,null,null,null,null,"Marine Construction"]
["PROJECT DESCRIPTION: ",{"$f":"PROJECT.DESCRIPTION","v":0},null,null,null,"FIRM:  ",{"$f":"FERRY.PRIME_CONSULTANT_NAME","v":"CONSULTANT NAME"},null,"TASK ORDER NUMBER:",null,{"$f":"TASK.ORDER.NUMBER","v":0},null,"DATE PREPARED:",{"$f":"IF(SCOPE.MANDAY.ESTIMATE.PREPARED.BY.DATE=\"\",\"\",SCOPE.MANDAY.ESTIMATE.PREPARED.BY.DATE)","v":""},null,null,null,null,null,null,null,null,null,null,null,null,null,null,null,null,"Vessel Design"]
["PREPARED BY:  ",{"$f":"IF(SCOPE.MANDAY.ESTIMATE.PREPARED.BY=\"\",\"\",SCOPE.MANDAY.ESTIMATE.PREPARED.BY)","v":""},null,null,null,"TIP NUMBER:",{"$f":"TIP.NUMBER","v":0},null,"WBS NUMBER:",null,{"$f":"WBS.NUMBER","v":""},null,"REVISION DATE:",{"$f":"IF(SCOPE.MANDAY.ESTIMATE.APPROVED.BY.DATE=\"\",\"\",SCOPE.MANDAY.ESTIMATE.APPROVED.BY.DATE)","v":""}]
[null,null,null,"ESTIMATED WORKHOURS"]
[null,null,"EMPLOYEE NAMES",{"$f":"IF('PEF CLASSIFICATION SHEET'!D509=\"\",\"\",LEFT('PEF CLASSIFICATION SHEET'!D509,4))","v":""},{"$f":"IF('PEF CLASSIFICATION SHEET'!D510=\"\",\"\",LEFT('PEF CLASSIFICATION SHEET'!D510,4))","v":""},{"$f":"IF('PEF CLASSIFICATION SHEET'!D511=\"\",\"\",LEFT('PEF CLASSIFICATION SHEET'!D511,4))","v":""},{"$f":"IF('PEF CLASSIFICATION SHEET'!D512=\"\",\"\",LEFT('PEF CLASSIFICATION SHEET'!D512,4))","v":""},{"$f":"IF('PEF CLASSIFICATION SHEET'!D513=\"\",\"\",LEFT('PEF CLASSIFICATION SHEET'!D513,4))","v":""},{"$f":"IF('PEF CLASSIFICATION SHEET'!D514=\"\",\"\",LEFT('PEF CLASSIFICATION SHEET'!D514,4))","v":""},{"$f":"IF('PEF CLASSIFICATION SHEET'!D515=\"\",\"\",LEFT('PEF CLASSIFICATION SHEET'!D515,4))","v":""},{"$f":"IF('PEF CLASSIFICATION SHEET'!D516=\"\",\"\",LEFT('PEF CLASSIFICATION SHEET'!D516,4))","v":""},{"$f":"IF('PEF CLASSIFICATION SHEET'!D517=\"\",\"\",LEFT('PEF CLASSIFICATION SHEET'!D517,4))","v":""},{"$f":"IF('PEF CLASSIFICATION SHEET'!D518=\"\",\"\",LEFT('PEF CLASSIFICATION SHEET'!D518,4))","v":""},{"$f":"IF('PEF CLASSIFICATION SHEET'!D519=\"\",\"\",LEFT('PEF CLASSIFICATION SHEET'!D519,4))","v":""},{"$f":"IF('PEF CLASSIFICATION SHEET'!D520=\"\",\"\",LEFT('PEF CLASSIFICATION SHEET'!D520,4))","v":""},{"$f":"IF('PEF CLASSIFICATION SHEET'!D521=\"\",\"\",LEFT('PEF CLASSIFICATION SHEET'!D521,4))","v":""},{"$f":"IF('PEF CLASSIFICATION SHEET'!D522=\"\",\"\",LEFT('PEF CLASSIFICATION SHEET'!D522,4))","v":""},{"$f":"IF('PEF CLASSIFICATION SHEET'!D523=\"\",\"\",LEFT('PEF CLASSIFICATION SHEET'!D523,4))","v":""},{"$f":"IF('PEF CLASSIFICATION SHEET'!D524=\"\",\"\",LEFT('PEF CLASSIFICATION SHEET'!D524,4))","v":""},{"$f":"IF('PEF CLASSIFICATION SHEET'!D525=\"\",\"\",LEFT('PEF CLASSIFICATION SHEET'!D525,4))","v":""},{"$f":"IF('PEF CLASSIFICATION SHEET'!D526=\"\",\"\",LEFT('PEF CLASSIFICATION SHEET'!D526,4))","v":""},{"$f":"IF('PEF CLASSIFICATION SHEET'!D527=\"\",\"\",LEFT('PEF CLASSIFICATION SHEET'!D527,4))","v":""},{"$f":"IF('PEF CLASSIFICATION SHEET'!D528=\"\",\"\",LEFT('PEF CLASSIFICATION SHEET'!D528,4))","v":""}]
[null,null,null,{"$f":"IF('PEF CLASSIFICATION SHEET'!C509=\"\",\"\",'PEF CLASSIFICATION SHEET'!C509)","v":""},{"$f":"IF('PEF CLASSIFICATION SHEET'!C510=\"\",\"\",'PEF CLASSIFICATION SHEET'!C510)","v":""},{"$f":"IF('PEF CLASSIFICATION SHEET'!C511=\"\",\"\",'PEF CLASSIFICATION SHEET'!C511)","v":""},{"$f":"IF('PEF CLASSIFICATION SHEET'!C512=\"\",\"\",'PEF CLASSIFICATION SHEET'!C512)","v":""},{"$f":"IF('PEF CLASSIFICATION SHEET'!C513=\"\",\"\",'PEF CLASSIFICATION SHEET'!C513)","v":""},{"$f":"IF('PEF CLASSIFICATION SHEET'!C514=\"\",\"\",'PEF CLASSIFICATION SHEET'!C514)","v":""},{"$f":"IF('PEF CLASSIFICATION SHEET'!C515=\"\",\"\",'PEF CLASSIFICATION SHEET'!C515)","v":""},{"$f":"IF('PEF CLASSIFICATION SHEET'!C516=\"\",\"\",'PEF CLASSIFICATION SHEET'!C516)","v":""},{"$f":"IF('PEF CLASSIFICATION SHEET'!C517=\"\",\"\",'PEF CLASSIFICATION SHEET'!C517)","v":""},{"$f":"IF('PEF CLASSIFICATION SHEET'!C518=\"\",\"\",'PEF CLASSIFICATION SHEET'!C518)","v":""},{"$f":"IF('PEF CLASSIFICATION SHEET'!C519=\"\",\"\",'PEF CLASSIFICATION SHEET'!C519)","v":""},{"$f":"IF('PEF CLASSIFICATION SHEET'!C520=\"\",\"\",'PEF CLASSIFICATION SHEET'!C520)","v":""},{"$f":"IF('PEF CLASSIFICATION SHEET'!C521=\"\",\"\",'PEF CLASSIFICATION SHEET'!C521)","v":""},{"$f":"IF('PEF CLASSIFICATION SHEET'!C522=\"\",\"\",'PEF CLASSIFICATION SHEET'!C522)","v":""},{"$f":"IF('PEF CLASSIFICATION SHEET'!C523=\"\",\"\",'PEF CLASSIFICATION SHEET'!C523)","v":""},{"$f":"IF('PEF CLASSIFICATION SHEET'!C524=\"\",\"\",'PEF CLASSIFICATION SHEET'!C524)","v":""},{"$f":"IF('PEF CLASSIFICATION SHEET'!C525=\"\",\"\",'PEF CLASSIFICATION SHEET'!C525)","v":""},{"$f":"IF('PEF CLASSIFICATION SHEET'!C526=\"\",\"\",'PEF CLASSIFICATION SHEET'!C526)","v":""},{"$f":"IF('PEF CLASSIFICATION SHEET'!C527=\"\",\"\",'PEF CLASSIFICATION SHEET'!C527)","v":""},{"$f":"IF('PEF CLASSIFICATION SHEET'!C528=\"\",\"\",'PEF CLASSIFICATION SHEET'!C528)","v":""},"SUB-","%","PEF"]
[null,null,null,null,null,null,null,null,null,null,null,null,null,null,null,null,null,null,null,null,null,null,null,"TOTAL","OF","ESTIMATE"]
["TASK","TASK DESCRIPTION","CLASSIFICATION",null,null,null,null,null,null,null,null,null,null,null,null,null,null,null,null,null,null,null,null,null,"PROJECT",null,"COMMENTS"]
["NO."]
[1,"Marine Vessel Design",null,null,null,null,null,null,null,null,null,null,null,null,null,null,null,null,null,null,null,null,null,{"$f":"IF(B11=\"\",0,IF((SUM(D12:W54)=0),SUM(D11:W11),\"\"))","v":0},{"$f":"IF(X11=\"\",\"\",SUM((X11/$X$274)))","v":{"$error":"#DIV/0!"}}]
[null,null,null,null,null,null,null,null,null,null,null,null,null,null,null,null,null,null,null,null,null,null,null,{"$f":"IF(B12=\"\",0,IF((SUM(D12:W12)=0),0,SUM(D12:W12)))","v":0},{"$error":"#DIV/0!"}]
[null,null,null,null,null,null,null,null,null,null,null,null,null,null,null,null,null,null,null,null,null,null,null,0,{"$error":"#DIV/0!"}]
[null,null,null,null,null,null,null,null,null,null,null,null,null,null,null,null,null,null,null,null,null,null,null,0,{"$error":"#DIV/0!"}]
[null,null,null,null,null,null,null,null,null,null,null,null,null,null,null,null,null,null,null,null,null,null,null,0,{"$error":"#DIV/0!"}]
[null,null,null,null,null,null,null,null,null,null,null,null,null,null,null,null,null,null,null,null,null,null,null,0,{"$error":"#DIV/0!"}]
[null,null,null,null,null,null,null,null,null,null,null,null,null,null,null,null,null,null,null,null,null,null,null,0,{"$error":"#DIV/0!"}]
[null,null,null,null,null,null,null,null,null,null,null,null,null,null,null,null,null,null,null,null,null,null,null,0,{"$error":"#DIV/0!"}]
[null,null,null,null,null,null,null,null,null,null,null,null,null,null,null,null,null,null,null,null,null,null,null,0,{"$error":"#DIV/0!"}]
[null,null,null,null,null,null,null,null,null,null,null,null,null,null,null,null,null,null,null,null,null,null,null,{"$f":"IF(B20=\"\",0,IF((SUM(D20:W20)=0),0,SUM(D20:W20)))","v":0},{"$error":"#DIV/0!"}]
[null,null,null,null,null,null,null,null,null,null,null,null,null,null,null,null,null,null,null,null,null,null,null,{"$f":"IF(B21=\"\",0,IF((SUM(D21:W21)=0),0,SUM(D21:W21)))","v":0},{"$error":"#DIV/0!"}]
[null,"Planning and Coordination Meetings",null,null,null,null,null,null,null,null,null,null,null,null,null,null,null,null,null,null,null,null,null,{"$f":"IF(B22=\"\",0,IF((SUM(D23:W32)=0),SUM(D22:W22),\"\"))","v":0},{"$error":"#DIV/0!"}]
[null,null,null,null,null,null,null,null,null,null,null,null,null,null,null,null,null,null,null,null,null,null,null,{"$f":"IF(B23=\"\",0,IF((SUM(D23:W23)=0),0,SUM(D23:W23)))","v":0},{"$error":"#DIV/0!"}]
[null,null,null,null,null,null,null,null,null,null,null,null,null,null,null,null,null,null,null,null,null,null,null,0,{"$error":"#DIV/0!"}]
[null,null,null,null,null,null,null,null,null,null,null,null,null,null,null,null,null,null,null,null,null,null,null,0,{"$error":"#DIV/0!"}]
[null,null,null,null,null,null,null,null,null,null,null,null,null,null,null,null,null,null,null,null,null,null,null,0,{"$error":"#DIV/0!"}]
[null,null,null,null,null,null,null,null,null,null,null,null,null,null,null,null,null,null,null,null,null,null,null,0,{"$error":"#DIV/0!"}]
[null,null,null,null,null,null,null,null,null,null,null,null,null,null,null,null,null,null,null,null,null,null,null,0,{"$error":"#DIV/0!"}]
[null,null,null,null,null,null,null,null,null,null,null,null,null,null,null,null,null,null,null,null,null,null,null,0,{"$error":"#DIV/0!"}]
[null,null,null,null,null,null,null,null,null,null,null,null,null,null,null,null,null,null,null,null,null,null,null,0,{"$error":"#DIV/0!"}]
[null,null,null,null,null,null,null,null,null,null,null,null,null,null,null,null,null,null,null,null,null,null,null,{"$f":"IF(B31=\"\",0,IF((SUM(D31:W31)=0),0,SUM(D31:W31)))","v":0},{"$error":"#DIV/0!"}]
[null,null,null,null,null,null,null,null,null,null,null,null,null,null,null,null,null,null,null,null,null,null,null,{"$f":"IF(B32=\"\",0,IF((SUM(D32:W32)=0),0,SUM(D32:W32)))","v":0},{"$error":"#DIV/0!"}]
[null,"Review and Interviews\n**Review can apply to requirements (USC CFR, State policy) generally study related\n**Review can also apply to schematics / blue prints generally design related",null,null,null,null,null,null,null,null,null,null,null,null,null,null,null,null,null,null,null,null,null,{"$f":"IF(B33=\"\",0,IF((SUM(D34:W43)=0),SUM(D33:W33),\"\"))","v":0},{"$error":"#DIV/0!"}]
[null,null,null,null,null,null,null,null,null,null,null,null,null,null,null,null,null,null,null,null,null,null,null,0,{"$error":"#DIV/0!"}]
[null,null,null,null,null,null,null,null,null,null,null,null,null,null,null,null,null,null,null,null,null,null,null,0,{"$error":"#DIV/0!"}]
[null,null,null,null,null,null,null,null,null,null,null,null,null,null,null,null,null,null,null,null,null,null,null,{"$f":"IF(B36=\"\",0,IF((SUM(D36:W36)=0),0,SUM(D36:W36)))","v":0},{"$error":"#DIV/0!"}]
[null,null,null,null,null,null,null,null,null,null,null,null,null,null,null,null,null,null,null,null,null,null,null,0,{"$error":"#DIV/0!"}]
[null,null,null,null,null,null,null,null,null,null,null,null,null,null,null,null,null,null,null,null,null,null,null,0,{"$error":"#DIV/0!"}]
[null,null,null,null,null,null,null,null,null,null,null,null,null,null,null,null,null,null,null,null,null,null,null,0,{"$error":"#DIV/0!"}]
[null,null,null,null,null,null,null,null,null,null,null,null,null,null,null,null,null,null,null,null,null,null,null,0,{"$error":"#DIV/0!"}]
[null,null,null,null,null,null,null,null,null,null,null,null,null,null,null,null,null,null,null,null,null,null,null,0,{"$error":"#DIV/0!"}]
[null,null,null,null,null,null,null,null,null,null,null,null,null,null,null,null,null,null,null,null,null,null,null,{"$f":"IF(B42=\"\",0,IF((SUM(D42:W42)=0),0,SUM(D42:W42)))","v":0},{"$error":"#DIV/0!"}]
[null,null,null,null,null,null,null,null,null,null,null,null,null,null,null,null,null,null,null,null,null,null,null,0,{"$error":"#DIV/0!"}]
[null,"Reporting and Presentation",null,null,null,null,null,null,null,null,null,null,null,null,null,null,null,null,null,null,null,null,null,{"$f":"IF(B44=\"\",0,IF((SUM(D45:W54)=0),SUM(D44:W44),\"\"))","v":0},{"$error":"#DIV/0!"}]
[null,null,null,null,null,null,null,null,null,null,null,null,null,null,null,null,null,null,null,null,null,null,null,0,{"$error":"#DIV/0!"}]
[null,null,null,null,null,null,null,null,null,null,null,null,null,null,null,null,null,null,null,null,null,null,null,0,{"$error":"#DIV/0!"}]
[null,null,null,null,null,null,null,null,null,null,null,null,null,null,null,null,null,null,null,null,null,null,null,{"$f":"IF(B47=\"\",0,IF((SUM(D47:W47)=0),0,SUM(D47:W47)))","v":0},{"$error":"#DIV/0!"}]
[null,null,null,null,null,null,null,null,null,null,null,null,null,null,null,null,null,null,null,null,null,null,null,0,{"$error":"#DIV/0!"}]
[null,null,null,null,null,null,null,null,null,null,null,null,null,null,null,null,null,null,null,null,null,null,null,0,{"$error":"#DIV/0!"}]
[null,null,null,null,null,null,null,null,null,null,null,null,null,null,null,null,null,null,null,null,null,null,null,0,{"$error":"#DIV/0!"}]
[null,null,null,null,null,null,null,null,null,null,null,null,null,null,null,null,null,null,null,null,null,null,null,0,{"$error":"#DIV/0!"}]
[null,null,null,null,null,null,null,null,null,null,null,null,null,null,null,null,null,null,null,null,null,null,null,0,{"$error":"#DIV/0!"}]
[null,null,null,null,null,null,null,null,null,null,null,null,null,null,null,null,null,null,null,null,null,null,null,{"$f":"IF(B53=\"\",0,IF((SUM(D53:W53)=0),0,SUM(D53:W53)))","v":0},{"$error":"#DIV/0!"}]
[null,null,null,null,null,null,null,null,null,null,null,null,null,null,null,null,null,null,null,null,null,null,null,0,{"$error":"#DIV/0!"}]
[2,"Marine Vessel Maintenance Design",null,null,null,null,null,null,null,null,null,null,null,null,null,null,null,null,null,null,null,null,null,{"$f":"IF(B55=\"\",0,IF((SUM(D56:W97)=0),SUM(D55:W55),\"\"))","v":0},{"$error":"#DIV/0!"}]
[null,null,null,null,null,null,null,null,null,null,null,null,null,null,null,null,null,null,null,null,null,null,null,{"$f":"IF(B56=\"\",0,IF((SUM(D56:W56)=0),0,SUM(D56:W56)))","v":0},{"$error":"#DIV/0!"}]
[null,null,null,null,null,null,null,null,null,null,null,null,null,null,null,null,null,null,null,null,null,null,null,0,{"$error":"#DIV/0!"}]
[null,null,null,null,null,null,null,null,null,null,null,null,null,null,null,null,null,null,null,null,null,null,null,0,{"$error":"#DIV/0!"}]
[null,null,null,null,null,null,null,null,null,null,null,null,null,null,null,null,null,null,null,null,null,null,null,0,{"$error":"#DIV/0!"}]
[null,null,null,null,null,null,null,null,null,null,null,null,null,null,null,null,null,null,null,null,null,null,null,0,{"$error":"#DIV/0!"}]
[null,null,null,null,null,null,null,null,null,null,null,null,null,null,null,null,null,null,null,null,null,null,null,0,{"$error":"#DIV/0!"}]
[null,null,null,null,null,null,null,null,null,null,null,null,null,null,null,null,null,null,null,null,null,null,null,0,{"$error":"#DIV/0!"}]
[null,null,null,null,null,null,null,null,null,null,null,null,null,null,null,null,null,null,null,null,null,null,null,0,{"$error":"#DIV/0!"}]
[null,null,null,null,null,null,null,null,null,null,null,null,null,null,null,null,null,null,null,null,null,null,null,{"$f":"IF(B64=\"\",0,IF((SUM(D64:W64)=0),0,SUM(D64:W64)))","v":0},{"$error":"#DIV/0!"}]
[null,null,null,null,null,null,null,null,null,null,null,null,null,null,null,null,null,null,null,null,null,null,null,{"$f":"IF(B65=\"\",0,IF((SUM(D65:W65)=0),0,SUM(D65:W65)))","v":0},{"$error":"#DIV/0!"}]
[null,"Planning and Coordination Meetings",null,null,null,null,null,null,null,null,null,null,null,null,null,null,null,null,null,null,null,null,null,{"$f":"IF(B66=\"\",0,IF((SUM(D67:W76)=0),SUM(D66:W66),\"\"))","v":0},{"$error":"#DIV/0!"}]
[null,null,null,null,null,null,null,null,null,null,null,null,null,null,null,null,null,null,null,null,null,null,null,{"$f":"IF(B67=\"\",0,IF((SUM(D67:W67)=0),0,SUM(D67:W67)))","v":0},{"$error":"#DIV/0!"}]
[null,null,null,null,null,null,null,null,null,null,null,null,null,null,null,null,null,null,null,null,null,null,null,0,{"$error":"#DIV/0!"}]
[null,null,null,null,null,null,null,null,null,null,null,null,null,null,null,null,null,null,null,null,null,null,null,0,{"$error":"#DIV/0!"}]
[null,null,null,null,null,null,null,null,null,null,null,null,null,null,null,null,null,null,null,null,null,null,null,0,{"$error":"#DIV/0!"}]
[null,null,null,null,null,null,null,null,null,null,null,null,null,null,null,null,null,null,null,null,null,null,null,0,{"$error":"#DIV/0!"}]
[null,null,null,null,null,null,null,null,null,null,null,null,null,null,null,null,null,null,null,null,null,null,null,0,{"$error":"#DIV/0!"}]
[null,null,null,null,null,null,null,null,null,null,null,null,null,null,null,null,null,null,null,null,null,null,null,0,{"$error":"#DIV/0!"}]
[null,null,null,null,null,null,null,null,null,null,null,null,null,null,null,null,null,null,null,null,null,null,null,0,{"$error":"#DIV/0!"}]
[null,null,null,null,null,null,null,null,null,null,null,null,null,null,null,null,null,null,null,null,null,null,null,{"$f":"IF(B75=\"\",0,IF((SUM(D75:W75)=0),0,SUM(D75:W75)))","v":0},{"$f":"IF(X75=\"\",\"\",SUM((X75/$X$274)))","v":{"$error":"#DIV/0!"}}]
[null,null,null,null,null,null,null,null,null,null,null,null,null,null,null,null,null,null,null,null,null,null,null,{"$f":"IF(B76=\"\",0,IF((SUM(D76:W76)=0),0,SUM(D76:W76)))","v":0},{"$error":"#DIV/0!"}]
[null,"Review and Interviews\n**Review can apply to requirements (USC CFR, State policy) generally study related\n**Review can also apply to schematics / blue prints generally design related",null,null,null,null,null,null,null,null,null,null,null,null,null,null,null,null,null,null,null,null,null,{"$f":"IF(B77=\"\",0,IF((SUM(D78:W87)=0),SUM(D77:W77),\"\"))","v":0},{"$error":"#DIV/0!"}]
[null,null,null,null,null,null,null,null,null,null,null,null,null,null,null,null,null,null,null,null,null,null,null,{"$f":"IF(B78=\"\",0,IF((SUM(D78:W78)=0),0,SUM(D78:W78)))","v":0},{"$error":"#DIV/0!"}]
[null,null,null,null,null,null,null,null,null,null,null,null,null,null,null,null,null,null,null,null,null,null,null,0,{"$error":"#DIV/0!"}]
[null,null,null,null,null,null,null,null,null,null,null,null,null,null,null,null,null,null,null,null,null,null,null,0,{"$error":"#DIV/0!"}]
[null,null,null,null,null,null,null,null,null,null,null,null,null,null,null,null,null,null,null,null,null,null,null,0,{"$error":"#DIV/0!"}]
[null,null,null,null,null,null,null,null,null,null,null,null,null,null,null,null,null,null,null,null,null,null,null,0,{"$error":"#DIV/0!"}]
[null,null,null,null,null,null,null,null,null,null,null,null,null,null,null,null,null,null,null,null,null,null,null,0,{"$error":"#DIV/0!"}]
[null,null,null,null,null,null,null,null,null,null,null,null,null,null,null,null,null,null,null,null,null,null,null,0,{"$error":"#DIV/0!"}]
[null,null,null,null,null,null,null,null,null,null,null,null,null,null,null,null,null,null,null,null,null,null,null,0,{"$error":"#DIV/0!"}]
[null,null,null,null,null,null,null,null,null,null,null,null,null,null,null,null,null,null,null,null,null,null,null,0,{"$error":"#DIV/0!"}]
[null,null,null,null,null,null,null,null,null,null,null,null,null,null,null,null,null,null,null,null,null,null,null,0,{"$error":"#DIV/0!"}]
[null,"Reporting and Presentation",null,null,null,null,null,null,null,null,null,null,null,null,null,null,null,null,null,null,null,null,null,{"$f":"IF(B88=\"\",0,IF((SUM(D89:W98)=0),SUM(D88:W88),\"\"))","v":0},{"$error":"#DIV/0!"}]
[null,null,null,null,null,null,null,null,null,null,null,null,null,null,null,null,null,null,null,null,null,null,null,{"$f":"IF(B89=\"\",0,IF((SUM(D89:W89)=0),0,SUM(D89:W89)))","v":0},{"$error":"#DIV/0!"}]
[null,null,null,null,null,null,null,null,null,null,null,null,null,null,null,null,null,null,null,null,null,null,null,0,{"$error":"#DIV/0!"}]
[null,null,null,null,null,null,null,null,null,null,null,null,null,null,null,null,null,null,null,null,null,null,null,0,{"$error":"#DIV/0!"}]
[null,null,null,null,null,null,null,null,null,null,null,null,null,null,null,null,null,null,null,null,null,null,null,0,{"$error":"#DIV/0!"}]
[null,null,null,null,null,null,null,null,null,null,null,null,null,null,null,null,null,null,null,null,null,null,null,0,{"$error":"#DIV/0!"}]
[null,null,null,null,null,null,null,null,null,null,null,null,null,null,null,null,null,null,null,null,null,null,null,0,{"$error":"#DIV/0!"}]
[null,null,null,null,null,null,null,null,null,null,null,null,null,null,null,null,null,null,null,null,null,null,null,0,{"$error":"#DIV/0!"}]
[null,null,null,null,null,null,null,null,null,null,null,null,null,null,null,null,null,null,null,null,null,null,null,0,{"$error":"#DIV/0!"}]
[null,null,null,null,null,null,null,null,null,null,null,null,null,null,null,null,null,null,null,null,null,null,null,0,{"$error":"#DIV/0!"}]
[3,"Terminal Assets Design",null,null,null,null,null,null,null,null,null,null,null,null,null,null,null,null,null,null,null,null,null,{"$f":"IF(B98=\"\",0,IF((SUM(D99:W141)=0),SUM(D98:W98),\"\"))","v":0},{"$error":"#DIV/0!"}]
[null,null,null,null,null,null,null,null,null,null,null,null,null,null,null,null,null,null,null,null,null,null,null,{"$f":"IF(B99=\"\",0,IF((SUM(D99:W99)=0),0,SUM(D99:W99)))","v":0},{"$error":"#DIV/0!"}]
[null,null,null,null,null,null,null,null,null,null,null,null,null,null,null,null,null,null,null,null,null,null,null,0,{"$error":"#DIV/0!"}]
[null,null,null,null,null,null,null,null,null,null,null,null,null,null,null,null,null,null,null,null,null,null,null,0,{"$error":"#DIV/0!"}]
[null,null,null,null,null,null,null,null,null,null,null,null,null,null,null,null,null,null,null,null,null,null,null,0,{"$error":"#DIV/0!"}]
[null,null,null,null,null,null,null,null,null,null,null,null,null,null,null,null,null,null,null,null,null,null,null,0,{"$error":"#DIV/0!"}]
[null,null,null,null,null,null,null,null,null,null,null,null,null,null,null,null,null,null,null,null,null,null,null,0,{"$error":"#DIV/0!"}]
[null,null,null,null,null,null,null,null,null,null,null,null,null,null,null,null,null,null,null,null,null,null,null,0,{"$error":"#DIV/0!"}]
[null,null,null,null,null,null,null,null,null,null,null,null,null,null,null,null,null,null,null,null,null,null,null,0,{"$error":"#DIV/0!"}]
[null,null,null,null,null,null,null,null,null,null,null,null,null,null,null,null,null,null,null,null,null,null,null,{"$f":"IF(B107=\"\",0,IF((SUM(D107:W107)=0),0,SUM(D107:W107)))","v":0},{"$error":"#DIV/0!"}]
[null,null,null,null,null,null,null,null,null,null,null,null,null,null,null,null,null,null,null,null,null,null,null,{"$f":"IF(B108=\"\",0,IF((SUM(D108:W108)=0),0,SUM(D108:W108)))","v":0},{"$error":"#DIV/0!"}]
[null,"Planning and Coordination Meetings",null,null,null,null,null,null,null,null,null,null,null,null,null,null,null,null,null,null,null,null,null,{"$f":"IF(B109=\"\",0,IF((SUM(D110:W119)=0),SUM(D109:W109),\"\"))","v":0},{"$error":"#DIV/0!"}]
[null,null,null,null,null,null,null,null,null,null,null,null,null,null,null,null,null,null,null,null,null,null,null,{"$f":"IF(B110=\"\",0,IF((SUM(D110:W110)=0),0,SUM(D110:W110)))","v":0},{"$error":"#DIV/0!"}]
[null,null,null,null,null,null,null,null,null,null,null,null,null,null,null,null,null,null,null,null,null,null,null,0,{"$error":"#DIV/0!"}]
[null,null,null,null,null,null,null,null,null,null,null,null,null,null,null,null,null,null,null,null,null,null,null,0,{"$error":"#DIV/0!"}]
[null,null,null,null,null,null,null,null,null,null,null,null,null,null,null,null,null,null,null,null,null,null,null,0,{"$error":"#DIV/0!"}]
[null,null,null,null,null,null,null,null,null,null,null,null,null,null,null,null,null,null,null,null,null,null,null,0,{"$error":"#DIV/0!"}]
[null,null,null,null,null,null,null,null,null,null,null,null,null,null,null,null,null,null,null,null,null,null,null,0,{"$error":"#DIV/0!"}]
[null,null,null,null,null,null,null,null,null,null,null,null,null,null,null,null,null,null,null,null,null,null,null,0,{"$error":"#DIV/0!"}]
[null,null,null,null,null,null,null,null,null,null,null,null,null,null,null,null,null,null,null,null,null,null,null,0,{"$error":"#DIV/0!"}]
[null,null,null,null,null,null,null,null,null,null,null,null,null,null,null,null,null,null,null,null,null,null,null,{"$f":"IF(B118=\"\",0,IF((SUM(D118:W118)=0),0,SUM(D118:W118)))","v":0},{"$error":"#DIV/0!"}]
[null,null,null,null,null,null,null,null,null,null,null,null,null,null,null,null,null,null,null,null,null,null,null,{"$f":"IF(B119=\"\",0,IF((SUM(D119:W119)=0),0,SUM(D119:W119)))","v":0},{"$error":"#DIV/0!"}]
[null,"Review and Interviews\n**Review can apply to requirements (USC CFR, State policy) generally study related\n**Review can also apply to schematics / blue prints generally design related",null,null,null,null,null,null,null,null,null,null,null,null,null,null,null,null,null,null,null,null,null,{"$f":"IF(B120=\"\",0,IF((SUM(D121:W130)=0),SUM(D120:W120),\"\"))","v":0},{"$error":"#DIV/0!"}]
[null,null,null,null,null,null,null,null,null,null,null,null,null,null,null,null,null,null,null,null,null,null,null,{"$f":"IF(B121=\"\",0,IF((SUM(D121:W121)=0),0,SUM(D121:W121)))","v":0},{"$error":"#DIV/0!"}]
[null,null,null,null,null,null,null,null,null,null,null,null,null,null,null,null,null,null,null,null,null,null,null,0,{"$error":"#DIV/0!"}]
[null,null,null,null,null,null,null,null,null,null,null,null,null,null,null,null,null,null,null,null,null,null,null,0,{"$error":"#DIV/0!"}]
[null,null,null,null,null,null,null,null,null,null,null,null,null,null,null,null,null,null,null,null,null,null,null,0,{"$error":"#DIV/0!"}]
[null,null,null,null,null,null,null,null,null,null,null,null,null,null,null,null,null,null,null,null,null,null,null,0,{"$error":"#DIV/0!"}]
[null,null,null,null,null,null,null,null,null,null,null,null,null,null,null,null,null,null,null,null,null,null,null,0,{"$error":"#DIV/0!"}]
[null,null,null,null,null,null,null,null,null,null,null,null,null,null,null,null,null,null,null,null,null,null,null,0,{"$error":"#DIV/0!"}]
[null,null,null,null,null,null,null,null,null,null,null,null,null,null,null,null,null,null,null,null,null,null,null,0,{"$error":"#DIV/0!"}]
[null,null,null,null,null,null,null,null,null,null,null,null,null,null,null,null,null,null,null,null,null,null,null,0,{"$error":"#DIV/0!"}]
[null,null,null,null,null,null,null,null,null,null,null,null,null,null,null,null,null,null,null,null,null,null,null,0,{"$error":"#DIV/0!"}]
[null,"Reporting and Presentation",null,null,null,null,null,null,null,null,null,null,null,null,null,null,null,null,null,null,null,null,null,{"$f":"IF(B131=\"\",0,IF((SUM(D132:W141)=0),SUM(D131:W131),\"\"))","v":0},{"$error":"#DIV/0!"}]
[null,null,null,null,null,null,null,null,null,null,null,null,null,null,null,null,null,null,null,null,null,null,null,{"$f":"IF(B132=\"\",0,IF((SUM(D132:W132)=0),0,SUM(D132:W132)))","v":0},{"$error":"#DIV/0!"}]
[null,null,null,null,null,null,null,null,null,null,null,null,null,null,null,null,null,null,null,null,null,null,null,0,{"$error":"#DIV/0!"}]
[null,null,null,null,null,null,null,null,null,null,null,null,null,null,null,null,null,null,null,null,null,null,null,0,{"$error":"#DIV/0!"}]
[null,null,null,null,null,null,null,null,null,null,null,null,null,null,null,null,null,null,null,null,null,null,null,0,{"$error":"#DIV/0!"}]
[null,null,null,null,null,null,null,null,null,null,null,null,null,null,null,null,null,null,null,null,null,null,null,0,{"$error":"#DIV/0!"}]
[null,null,null,null,null,null,null,null,null,null,null,null,null,null,null,null,null,null,null,null,null,null,null,0,{"$error":"#DIV/0!"}]
[null,null,null,null,null,null,null,null,null,null,null,null,null,null,null,null,null,null,null,null,null,null,null,0,{"$error":"#DIV/0!"}]
[null,null,null,null,null,null,null,null,null,null,null,null,null,null,null,null,null,null,null,null,null,null,null,0,{"$f":"IF(X139=\"\",\"\",SUM((X139/$X$274)))","v":{"$error":"#DIV/0!"}}]
[null,null,null,null,null,null,null,null,null,null,null,null,null,null,null,null,null,null,null,null,null,null,null,0,{"$error":"#DIV/0!"}]
[null,null,null,null,null,null,null,null,null,null,null,null,null,null,null,null,null,null,null,null,null,null,null,{"$f":"IF(B141=\"\",0,IF((SUM(D141:W141)=0),0,SUM(D141:W141)))","v":0},{"$error":"#DIV/0!"}]
[4,"Dredging, Planning and Permits",null,null,null,null,null,null,null,null,null,null,null,null,null,null,null,null,null,null,null,null,null,{"$f":"IF(B142=\"\",0,IF((SUM(D143:W185)=0),SUM(D142:W142),\"\"))","v":0},{"$error":"#DIV/0!"}]
[null,null,null,null,null,null,null,null,null,null,null,null,null,null,null,null,null,null,null,null,null,null,null,{"$f":"IF(B143=\"\",0,IF((SUM(D143:W143)=0),0,SUM(D143:W143)))","v":0},{"$error":"#DIV/0!"}]
[null,null,null,null,null,null,null,null,null,null,null,null,null,null,null,null,null,null,null,null,null,null,null,0,{"$error":"#DIV/0!"}]
[null,null,null,null,null,null,null,null,null,null,null,null,null,null,null,null,null,null,null,null,null,null,null,0,{"$error":"#DIV/0!"}]
[null,null,null,null,null,null,null,null,null,null,null,null,null,null,null,null,null,null,null,null,null,null,null,0,{"$error":"#DIV/0!"}]
[null,null,null,null,null,null,null,null,null,null,null,null,null,null,null,null,null,null,null,null,null,null,null,0,{"$error":"#DIV/0!"}]
[null,null,null,null,null,null,null,null,null,null,null,null,null,null,null,null,null,null,null,null,null,null,null,0,{"$error":"#DIV/0!"}]
[null,null,null,null,null,null,null,null,null,null,null,null,null,null,null,null,null,null,null,null,null,null,null,0,{"$error":"#DIV/0!"}]
[null,null,null,null,null,null,null,null,null,null,null,null,null,null,null,null,null,null,null,null,null,null,null,0,{"$error":"#DIV/0!"}]
[null,null,null,null,null,null,null,null,null,null,null,null,null,null,null,null,null,null,null,null,null,null,null,{"$f":"IF(B151=\"\",0,IF((SUM(D151:W151)=0),0,SUM(D151:W151)))","v":0},{"$error":"#DIV/0!"}]
[null,null,null,null,null,null,null,null,null,null,null,null,null,null,null,null,null,null,null,null,null,null,null,{"$f":"IF(B152=\"\",0,IF((SUM(D152:W152)=0),0,SUM(D152:W152)))","v":0},{"$error":"#DIV/0!"}]
[null,"Planning and Coordination Meetings",null,null,null,null,null,null,null,null,null,null,null,null,null,null,null,null,null,null,null,null,null,{"$f":"IF(B153=\"\",0,IF((SUM(D154:W163)=0),SUM(D153:W153),\"\"))","v":0},{"$error":"#DIV/0!"}]
[null,null,null,null,null,null,null,null,null,null,null,null,null,null,null,null,null,null,null,null,null,null,null,{"$f":"IF(B154=\"\",0,IF((SUM(D154:W154)=0),0,SUM(D154:W154)))","v":0},{"$error":"#DIV/0!"}]
[null,null,null,null,null,null,null,null,null,null,null,null,null,null,null,null,null,null,null,null,null,null,null,0,{"$error":"#DIV/0!"}]
[null,null,null,null,null,null,null,null,null,null,null,null,null,null,null,null,null,null,null,null,null,null,null,0,{"$error":"#DIV/0!"}]
[null,null,null,null,null,null,null,null,null,null,null,null,null,null,null,null,null,null,null,null,null,null,null,0,{"$error":"#DIV/0!"}]
[null,null,null,null,null,null,null,null,null,null,null,null,null,null,null,null,null,null,null,null,null,null,null,0,{"$error":"#DIV/0!"}]
[null,null,null,null,null,null,null,null,null,null,null,null,null,null,null,null,null,null,null,null,null,null,null,0,{"$error":"#DIV/0!"}]
[null,null,null,null,null,null,null,null,null,null,null,null,null,null,null,null,null,null,null,null,null,null,null,0,{"$error":"#DIV/0!"}]
[null,null,null,null,null,null,null,null,null,null,null,null,null,null,null,null,null,null,null,null,null,null,null,0,{"$error":"#DIV/0!"}]
[null,null,null,null,null,null,null,null,null,null,null,null,null,null,null,null,null,null,null,null,null,null,null,{"$f":"IF(B162=\"\",0,IF((SUM(D162:W162)=0),0,SUM(D162:W162)))","v":0},{"$error":"#DIV/0!"}]
[null,null,null,null,null,null,null,null,null,null,null,null,null,null,null,null,null,null,null,null,null,null,null,{"$f":"IF(B163=\"\",0,IF((SUM(D163:W163)=0),0,SUM(D163:W163)))","v":0},{"$error":"#DIV/0!"}]
[null,"Review and Interviews\n**Review can apply to requirements (USC CFR, State policy) generally study related\n**Review can also apply to schematics / blue prints generally design related",null,null,null,null,null,null,null,null,null,null,null,null,null,null,null,null,null,null,null,null,null,{"$f":"IF(B164=\"\",0,IF((SUM(D165:W174)=0),SUM(D164:W164),\"\"))","v":0},{"$error":"#DIV/0!"}]
[null,null,null,null,null,null,null,null,null,null,null,null,null,null,null,null,null,null,null,null,null,null,null,{"$f":"IF(B165=\"\",0,IF((SUM(D165:W165)=0),0,SUM(D165:W165)))","v":0},{"$error":"#DIV/0!"}]
[null,null,null,null,null,null,null,null,null,null,null,null,null,null,null,null,null,null,null,null,null,null,null,0,{"$error":"#DIV/0!"}]
[null,null,null,null,null,null,null,null,null,null,null,null,null,null,null,null,null,null,null,null,null,null,null,0,{"$error":"#DIV/0!"}]
[null,null,null,null,null,null,null,null,null,null,null,null,null,null,null,null,null,null,null,null,null,null,null,0,{"$error":"#DIV/0!"}]
[null,null,null,null,null,null,null,null,null,null,null,null,null,null,null,null,null,null,null,null,null,null,null,0,{"$error":"#DIV/0!"}]
[null,null,null,null,null,null,null,null,null,null,null,null,null,null,null,null,null,null,null,null,null,null,null,0,{"$error":"#DIV/0!"}]
[null,null,null,null,null,null,null,null,null,null,null,null,null,null,null,null,null,null,null,null,null,null,null,0,{"$error":"#DIV/0!"}]
[null,null,null,null,null,null,null,null,null,null,null,null,null,null,null,null,null,null,null,null,null,null,null,0,{"$error":"#DIV/0!"}]
[null,null,null,null,null,null,null,null,null,null,null,null,null,null,null,null,null,null,null,null,null,null,null,0,{"$error":"#DIV/0!"}]
[null,null,null,null,null,null,null,null,null,null,null,null,null,null,null,null,null,null,null,null,null,null,null,0,{"$error":"#DIV/0!"}]
[null,"Reporting and Presentation",null,null,null,null,null,null,null,null,null,null,null,null,null,null,null,null,null,null,null,null,null,{"$f":"IF(B175=\"\",0,IF((SUM(D176:W185)=0),SUM(D175:W175),\"\"))","v":0},{"$error":"#DIV/0!"}]
[null,null,null,null,null,null,null,null,null,null,null,null,null,null,null,null,null,null,null,null,null,null,null,{"$f":"IF(B176=\"\",0,IF((SUM(D176:W176)=0),0,SUM(D176:W176)))","v":0},{"$error":"#DIV/0!"}]
[null,null,null,null,null,null,null,null,null,null,null,null,null,null,null,null,null,null,null,null,null,null,null,0,{"$error":"#DIV/0!"}]
[null,null,null,null,null,null,null,null,null,null,null,null,null,null,null,null,null,null,null,null,null,null,null,0,{"$error":"#DIV/0!"}]
[null,null,null,null,null,null,null,null,null,null,null,null,null,null,null,null,null,null,null,null,null,null,null,0,{"$error":"#DIV/0!"}]
[null,null,null,null,null,null,null,null,null,null,null,null,null,null,null,null,null,null,null,null,null,null,null,0,{"$error":"#DIV/0!"}]
[null,null,null,null,null,null,null,null,null,null,null,null,null,null,null,null,null,null,null,null,null,null,null,0,{"$error":"#DIV/0!"}]
[null,null,null,null,null,null,null,null,null,null,null,null,null,null,null,null,null,null,null,null,null,null,null,0,{"$error":"#DIV/0!"}]
[null,null,null,null,null,null,null,null,null,null,null,null,null,null,null,null,null,null,null,null,null,null,null,0,{"$error":"#DIV/0!"}]
[null,null,null,null,null,null,null,null,null,null,null,null,null,null,null,null,null,null,null,null,null,null,null,0,{"$error":"#DIV/0!"}]
[null,null,null,null,null,null,null,null,null,null,null,null,null,null,null,null,null,null,null,null,null,null,null,0,{"$error":"#DIV/0!"}]
[5,"Vessel Asset Management",null,null,null,null,null,null,null,null,null,null,null,null,null,null,null,null,null,null,null,null,null,{"$f":"IF(B186=\"\",0,IF((SUM(D187:W229)=0),SUM(D186:W186),\"\"))","v":0},{"$error":"#DIV/0!"}]
[null,null,null,null,null,null,null,null,null,null,null,null,null,null,null,null,null,null,null,null,null,null,null,{"$f":"IF(B187=\"\",0,IF((SUM(D187:W187)=0),0,SUM(D187:W187)))","v":0},{"$error":"#DIV/0!"}]
[null,null,null,null,null,null,null,null,null,null,null,null,null,null,null,null,null,null,null,null,null,null,null,0,{"$error":"#DIV/0!"}]
[null,null,null,null,null,null,null,null,null,null,null,null,null,null,null,null,null,null,null,null,null,null,null,0,{"$error":"#DIV/0!"}]
[null,null,null,null,null,null,null,null,null,null,null,null,null,null,null,null,null,null,null,null,null,null,null,0,{"$error":"#DIV/0!"}]
[null,null,null,null,null,null,null,null,null,null,null,null,null,null,null,null,null,null,null,null,null,null,null,0,{"$error":"#DIV/0!"}]
[null,null,null,null,null,null,null,null,null,null,null,null,null,null,null,null,null,null,null,null,null,null,null,0,{"$error":"#DIV/0!"}]
[null,null,null,null,null,null,null,null,null,null,null,null,null,null,null,null,null,null,null,null,null,null,null,0,{"$error":"#DIV/0!"}]
[null,null,null,null,null,null,null,null,null,null,null,null,null,null,null,null,null,null,null,null,null,null,null,0,{"$error":"#DIV/0!"}]
[null,null,null,null,null,null,null,null,null,null,null,null,null,null,null,null,null,null,null,null,null,null,null,{"$f":"IF(B195=\"\",0,IF((SUM(D195:W195)=0),0,SUM(D195:W195)))","v":0},{"$error":"#DIV/0!"}]
[null,null,null,null,null,null,null,null,null,null,null,null,null,null,null,null,null,null,null,null,null,null,null,{"$f":"IF(B196=\"\",0,IF((SUM(D196:W196)=0),0,SUM(D196:W196)))","v":0},{"$error":"#DIV/0!"}]
[null,"Planning and Coordination Meetings",null,null,null,null,null,null,null,null,null,null,null,null,null,null,null,null,null,null,null,null,null,{"$f":"IF(B197=\"\",0,IF((SUM(D198:W207)=0),SUM(D197:W197),\"\"))","v":0},{"$error":"#DIV/0!"}]
[null,null,null,null,null,null,null,null,null,null,null,null,null,null,null,null,null,null,null,null,null,null,null,{"$f":"IF(B198=\"\",0,IF((SUM(D198:W198)=0),0,SUM(D198:W198)))","v":0},{"$error":"#DIV/0!"}]
[null,null,null,null,null,null,null,null,null,null,null,null,null,null,null,null,null,null,null,null,null,null,null,0,{"$error":"#DIV/0!"}]
[null,null,null,null,null,null,null,null,null,null,null,null,null,null,null,null,null,null,null,null,null,null,null,0,{"$error":"#DIV/0!"}]
[null,null,null,null,null,null,null,null,null,null,null,null,null,null,null,null,null,null,null,null,null,null,null,0,{"$error":"#DIV/0!"}]
[null,null,null,null,null,null,null,null,null,null,null,null,null,null,null,null,null,null,null,null,null,null,null,0,{"$error":"#DIV/0!"}]
[null,null,null,null,null,null,null,null,null,null,null,null,null,null,null,null,null,null,null,null,null,null,null,0,{"$f":"IF(X203=\"\",\"\",SUM((X203/$X$274)))","v":{"$error":"#DIV/0!"}}]
[null,null,null,null,null,null,null,null,null,null,null,null,null,null,null,null,null,null,null,null,null,null,null,0,{"$error":"#DIV/0!"}]
[null,null,null,null,null,null,null,null,null,null,null,null,null,null,null,null,null,null,null,null,null,null,null,0,{"$error":"#DIV/0!"}]
[null,null,null,null,null,null,null,null,null,null,null,null,null,null,null,null,null,null,null,null,null,null,null,{"$f":"IF(B206=\"\",0,IF((SUM(D206:W206)=0),0,SUM(D206:W206)))","v":0},{"$error":"#DIV/0!"}]
[null,null,null,null,null,null,null,null,null,null,null,null,null,null,null,null,null,null,null,null,null,null,null,{"$f":"IF(B207=\"\",0,IF((SUM(D207:W207)=0),0,SUM(D207:W207)))","v":0},{"$error":"#DIV/0!"}]
[null,"Review and Interviews\n**Review can apply to requirements (USC CFR, State policy) generally study related\n**Review can also apply to schematics / blue prints generally design related",null,null,null,null,null,null,null,null,null,null,null,null,null,null,null,null,null,null,null,null,null,{"$f":"IF(B208=\"\",0,IF((SUM(D209:W218)=0),SUM(D208:W208),\"\"))","v":0},{"$error":"#DIV/0!"}]
[null,null,null,null,null,null,null,null,null,null,null,null,null,null,null,null,null,null,null,null,null,null,null,{"$f":"IF(B209=\"\",0,IF((SUM(D209:W209)=0),0,SUM(D209:W209)))","v":0},{"$error":"#DIV/0!"}]
[null,null,null,null,null,null,null,null,null,null,null,null,null,null,null,null,null,null,null,null,null,null,null,0,{"$error":"#DIV/0!"}]
[null,null,null,null,null,null,null,null,null,null,null,null,null,null,null,null,null,null,null,null,null,null,null,0,{"$error":"#DIV/0!"}]
[null,null,null,null,null,null,null,null,null,null,null,null,null,null,null,null,null,null,null,null,null,null,null,0,{"$error":"#DIV/0!"}]
[null,null,null,null,null,null,null,null,null,null,null,null,null,null,null,null,null,null,null,null,null,null,null,0,{"$error":"#DIV/0!"}]
[null,null,null,null,null,null,null,null,null,null,null,null,null,null,null,null,null,null,null,null,null,null,null,0,{"$error":"#DIV/0!"}]
[null,null,null,null,null,null,null,null,null,null,null,null,null,null,null,null,null,null,null,null,null,null,null,0,{"$error":"#DIV/0!"}]
[null,null,null,null,null,null,null,null,null,null,null,null,null,null,null,null,null,null,null,null,null,null,null,0,{"$error":"#DIV/0!"}]
[null,null,null,null,null,null,null,null,null,null,null,null,null,null,null,null,null,null,null,null,null,null,null,0,{"$error":"#DIV/0!"}]
[null,null,null,null,null,null,null,null,null,null,null,null,null,null,null,null,null,null,null,null,null,null,null,0,{"$error":"#DIV/0!"}]
[null,"Reporting and Presentation",null,null,null,null,null,null,null,null,null,null,null,null,null,null,null,null,null,null,null,null,null,{"$f":"IF(B219=\"\",0,IF((SUM(D220:W229)=0),SUM(D219:W219),\"\"))","v":0},{"$error":"#DIV/0!"}]
[null,null,null,null,null,null,null,null,null,null,null,null,null,null,null,null,null,null,null,null,null,null,null,{"$f":"IF(B220=\"\",0,IF((SUM(D220:W220)=0),0,SUM(D220:W220)))","v":0},{"$error":"#DIV/0!"}]
[null,null,null,null,null,null,null,null,null,null,null,null,null,null,null,null,null,null,null,null,null,null,null,0,{"$error":"#DIV/0!"}]
[null,null,null,null,null,null,null,null,null,null,null,null,null,null,null,null,null,null,null,null,null,null,null,0,{"$error":"#DIV/0!"}]
[null,null,null,null,null,null,null,null,null,null,null,null,null,null,null,null,null,null,null,null,null,null,null,0,{"$error":"#DIV/0!"}]
[null,null,null,null,null,null,null,null,null,null,null,null,null,null,null,null,null,null,null,null,null,null,null,0,{"$error":"#DIV/0!"}]
[null,null,null,null,null,null,null,null,null,null,null,null,null,null,null,null,null,null,null,null,null,null,null,0,{"$error":"#DIV/0!"}]
[null,null,null,null,null,null,null,null,null,null,null,null,null,null,null,null,null,null,null,null,null,null,null,0,{"$error":"#DIV/0!"}]
[null,null,null,null,null,null,null,null,null,null,null,null,null,null,null,null,null,null,null,null,null,null,null,0,{"$error":"#DIV/0!"}]
[null,null,null,null,null,null,null,null,null,null,null,null,null,null,null,null,null,null,null,null,null,null,null,0,{"$error":"#DIV/0!"}]
[null,null,null,null,null,null,null,null,null,null,null,null,null,null,null,null,null,null,null,null,null,null,null,0,{"$error":"#DIV/0!"}]
[6,"OTHER TYPE (PLEASE KEY TYPE)",null,null,null,null,null,null,null,null,null,null,null,null,null,null,null,null,null,null,null,null,null,{"$f":"IF(B230=\"\",0,IF((SUM(D231:W273)=0),SUM(D230:W230),\"\"))","v":0},{"$error":"#DIV/0!"}]
[null,null,null,null,null,null,null,null,null,null,null,null,null,null,null,null,null,null,null,null,null,null,null,{"$f":"IF(B231=\"\",0,IF((SUM(D231:W231)=0),0,SUM(D231:W231)))","v":0},{"$error":"#DIV/0!"}]
[null,null,null,null,null,null,null,null,null,null,null,null,null,null,null,null,null,null,null,null,null,null,null,0,{"$error":"#DIV/0!"}]
[null,null,null,null,null,null,null,null,null,null,null,null,null,null,null,null,null,null,null,null,null,null,null,0,{"$error":"#DIV/0!"}]
[null,null,null,null,null,null,null,null,null,null,null,null,null,null,null,null,null,null,null,null,null,null,null,0,{"$error":"#DIV/0!"}]
[null,null,null,null,null,null,null,null,null,null,null,null,null,null,null,null,null,null,null,null,null,null,null,0,{"$error":"#DIV/0!"}]
[null,null,null,null,null,null,null,null,null,null,null,null,null,null,null,null,null,null,null,null,null,null,null,0,{"$error":"#DIV/0!"}]
[null,null,null,null,null,null,null,null,null,null,null,null,null,null,null,null,null,null,null,null,null,null,null,0,{"$error":"#DIV/0!"}]
[null,null,null,null,null,null,null,null,null,null,null,null,null,null,null,null,null,null,null,null,null,null,null,0,{"$error":"#DIV/0!"}]
[null,null,null,null,null,null,null,null,null,null,null,null,null,null,null,null,null,null,null,null,null,null,null,{"$f":"IF(B239=\"\",0,IF((SUM(D239:W239)=0),0,SUM(D239:W239)))","v":0},{"$error":"#DIV/0!"}]
[null,null,null,null,null,null,null,null,null,null,null,null,null,null,null,null,null,null,null,null,null,null,null,{"$f":"IF(B240=\"\",0,IF((SUM(D240:W240)=0),0,SUM(D240:W240)))","v":0},{"$error":"#DIV/0!"}]
[null,"Planning and Coordination Meetings",null,null,null,null,null,null,null,null,null,null,null,null,null,null,null,null,null,null,null,null,null,{"$f":"IF(B241=\"\",0,IF((SUM(D242:W251)=0),SUM(D241:W241),\"\"))","v":0},{"$error":"#DIV/0!"}]
[null,null,null,null,null,null,null,null,null,null,null,null,null,null,null,null,null,null,null,null,null,null,null,{"$f":"IF(B242=\"\",0,IF((SUM(D242:W242)=0),0,SUM(D242:W242)))","v":0},{"$error":"#DIV/0!"}]
[null,null,null,null,null,null,null,null,null,null,null,null,null,null,null,null,null,null,null,null,null,null,null,0,{"$error":"#DIV/0!"}]
[null,null,null,null,null,null,null,null,null,null,null,null,null,null,null,null,null,null,null,null,null,null,null,0,{"$error":"#DIV/0!"}]
[null,null,null,null,null,null,null,null,null,null,null,null,null,null,null,null,null,null,null,null,null,null,null,0,{"$error":"#DIV/0!"}]
[null,null,null,null,null,null,null,null,null,null,null,null,null,null,null,null,null,null,null,null,null,null,null,0,{"$error":"#DIV/0!"}]
[null,null,null,null,null,null,null,null,null,null,null,null,null,null,null,null,null,null,null,null,null,null,null,0,{"$error":"#DIV/0!"}]
[null,null,null,null,null,null,null,null,null,null,null,null,null,null,null,null,null,null,null,null,null,null,null,0,{"$error":"#DIV/0!"}]
[null,null,null,null,null,null,null,null,null,null,null,null,null,null,null,null,null,null,null,null,null,null,null,0,{"$error":"#DIV/0!"}]
[null,null,null,null,null,null,null,null,null,null,null,null,null,null,null,null,null,null,null,null,null,null,null,{"$f":"IF(B250=\"\",0,IF((SUM(D250:W250)=0),0,SUM(D250:W250)))","v":0},{"$error":"#DIV/0!"}]
[null,null,null,null,null,null,null,null,null,null,null,null,null,null,null,null,null,null,null,null,null,null,null,{"$f":"IF(B251=\"\",0,IF((SUM(D251:W251)=0),0,SUM(D251:W251)))","v":0},{"$error":"#DIV/0!"}]
[null,"Review and Interviews\n**Review can apply to requirements (USC CFR, State policy) generally study related\n**Review can also apply to schematics / blue prints generally design related",null,null,null,null,null,null,null,null,null,null,null,null,null,null,null,null,null,null,null,null,null,{"$f":"IF(B252=\"\",0,IF((SUM(D253:W262)=0),SUM(D252:W252),\"\"))","v":0},{"$error":"#DIV/0!"}]
[null,null,null,null,null,null,null,null,null,null,null,null,null,null,null,null,null,null,null,null,null,null,null,{"$f":"IF(B253=\"\",0,IF((SUM(D253:W253)=0),0,SUM(D253:W253)))","v":0},{"$error":"#DIV/0!"}]
[null,null,null,null,null,null,null,null,null,null,null,null,null,null,null,null,null,null,null,null,null,null,null,0,{"$error":"#DIV/0!"}]
[null,null,null,null,null,null,null,null,null,null,null,null,null,null,null,null,null,null,null,null,null,null,null,0,{"$error":"#DIV/0!"}]
[null,null,null,null,null,null,null,null,null,null,null,null,null,null,null,null,null,null,null,null,null,null,null,0,{"$error":"#DIV/0!"}]
[null,null,null,null,null,null,null,null,null,null,null,null,null,null,null,null,null,null,null,null,null,null,null,0,{"$error":"#DIV/0!"}]
[null,null,null,null,null,null,null,null,null,null,null,null,null,null,null,null,null,null,null,null,null,null,null,0,{"$error":"#DIV/0!"}]
[null,null,null,null,null,null,null,null,null,null,null,null,null,null,null,null,null,null,null,null,null,null,null,0,{"$error":"#DIV/0!"}]
[null,null,null,null,null,null,null,null,null,null,null,null,null,null,null,null,null,null,null,null,null,null,null,0,{"$error":"#DIV/0!"}]
[null,null,null,null,null,null,null,null,null,null,null,null,null,null,null,null,null,null,null,null,null,null,null,0,{"$error":"#DIV/0!"}]
[null,null,null,null,null,null,null,null,null,null,null,null,null,null,null,null,null,null,null,null,null,null,null,0,{"$error":"#DIV/0!"}]
[null,"Reporting and Presentation",null,null,null,null,null,null,null,null,null,null,null,null,null,null,null,null,null,null,null,null,null,{"$f":"IF(B263=\"\",0,IF((SUM(D264:W273)=0),SUM(D263:W263),\"\"))","v":0},{"$error":"#DIV/0!"}]
[null,null,null,null,null,null,null,null,null,null,null,null,null,null,null,null,null,null,null,null,null,null,null,{"$f":"IF(B264=\"\",0,IF((SUM(D264:W264)=0),0,SUM(D264:W264)))","v":0},{"$error":"#DIV/0!"}]
[null,null,null,null,null,null,null,null,null,null,null,null,null,null,null,null,null,null,null,null,null,null,null,0,{"$error":"#DIV/0!"}]
[null,null,null,null,null,null,null,null,null,null,null,null,null,null,null,null,null,null,null,null,null,null,null,0,{"$error":"#DIV/0!"}]
[null,null,null,null,null,null,null,null,null,null,null,null,null,null,null,null,null,null,null,null,null,null,null,0,{"$f":"IF(X267=\"\",\"\",SUM((X267/$X$274)))","v":{"$error":"#DIV/0!"}}]
[null,null,null,null,null,null,null,null,null,null,null,null,null,null,null,null,null,null,null,null,null,null,null,0,{"$error":"#DIV/0!"}]
[null,null,null,null,null,null,null,null,null,null,null,null,null,null,null,null,null,null,null,null,null,null,null,0,{"$error":"#DIV/0!"}]
[null,null,null,null,null,null,null,null,null,null,null,null,null,null,null,null,null,null,null,null,null,null,null,0,{"$error":"#DIV/0!"}]
[null,null,null,null,null,null,null,null,null,null,null,null,null,null,null,null,null,null,null,null,null,null,null,0,{"$error":"#DIV/0!"}]
[null,null,null,null,null,null,null,null,null,null,null,null,null,null,null,null,null,null,null,null,null,null,null,0,{"$error":"#DIV/0!"}]
[null,null,null,null,null,null,null,null,null,null,null,null,null,null,null,null,null,null,null,null,null,null,null,{"$f":"IF(B273=\"\",0,IF((SUM(D273:W273)=0),0,SUM(D273:W273)))","v":0},{"$error":"#DIV/0!"}]
[null,"TOTAL WORKHOURS/CATEGORY:",null,{"$f":"SUM(D11:D273)","v":0},0,0,0,0,0,0,0,0,0,0,0,0,0,0,0,0,0,0,0,0,{"$error":"#DIV/0!"},{"$f":"SUM(Z22:Z273)","v":0}]
[null,"TOTAL WORKDAYS/CATEGORY:",null,{"$f":"D274/8","v":0},{"$f":"E274/8","v":0},0,0,0,0,0,0,0,0,0,0,0,0,0,0,{"$f":"T274/8","v":0},0,0,{"$f":"W274/8","v":0}]
[null,"HOURLY SALARY RATE:",null,{"$f":"'PEF CLASSIFICATION SHEET'!E509","v":0},{"$f":"'PEF CLASSIFICATION SHEET'!E510","v":0},{"$f":"'PEF CLASSIFICATION SHEET'!E511","v":0},{"$f":"'PEF CLASSIFICATION SHEET'!E512","v":0},{"$f":"'PEF CLASSIFICATION SHEET'!E513","v":0},{"$f":"'PEF CLASSIFICATION SHEET'!E514","v":0},{"$f":"'PEF CLASSIFICATION SHEET'!E515","v":0},{"$f":"'PEF CLASSIFICATION SHEET'!E516","v":0},{"$f":"'PEF CLASSIFICATION SHEET'!E517","v":0},{"$f":"'PEF CLASSIFICATION SHEET'!E518","v":0},{"$f":"'PEF CLASSIFICATION SHEET'!E519","v":0},{"$f":"'PEF CLASSIFICATION SHEET'!E520","v":0},{"$f":"'PEF CLASSIFICATION SHEET'!E521","v":0},{"$f":"'PEF CLASSIFICATION SHEET'!E522","v":0},{"$f":"'PEF CLASSIFICATION SHEET'!E523","v":0},{"$f":"'PEF CLASSIFICATION SHEET'!E524","v":0},{"$f":"'PEF CLASSIFICATION SHEET'!E525","v":0},{"$f":"'PEF CLASSIFICATION SHEET'!E526","v":0},{"$f":"'PEF CLASSIFICATION SHEET'!E527","v":0},{"$f":"'PEF CLASSIFICATION SHEET'!E528","v":0}]
[null,"RATES PER DAY:",null,{"$f":"D276*8","v":0},0,0,0,0,0,0,0,0,0,0,{"$f":"O276*8","v":0},0,0,0,0,{"$f":"T276*8","v":0},0,0,{"$f":"W276*8","v":0}]
[null,"PAYROLL BURDEN:",null,{"$f":"SUM(D274*D276)","v":0},{"$f":"SUM(E274*E276)","v":0},0,0,0,0,0,0,0,0,0,0,0,0,0,0,{"$f":"SUM(T274*T276)","v":0},0,0,{"$f":"SUM(W274*W276)","v":0}]
[null,"TOTAL WORKDAYS:",null,{"$f":"SUM(D275:W275)","v":0}]
[null,"TOTAL PAYROLL BURDEN:",null,{"$f":"SUM(D278:W278)","v":0}]
[null,"AVERAGE COST PER HOUR:",null,{"$f":"SUM(D280/(D279*8))","v":{"$error":"#DIV/0!"}}]
[null,"GENERAL OVERHEAD:",{"$f":"FERRY.PRIME_CONSULTANT_OVERHEAD","v":0},{"$f":"SUM(D280*C282)","v":0}]
[null,"SUBTOTAL:",null,{"$f":"SUM(D280+D282)","v":0}]
[null,"COMPARATIVE FEE:",{"$f":"FERRY.PRIME_CONSULTANT_FEE","v":0},{"$f":"SUM(D283*C284)","v":0}]
[null,"FACILITIES COST OF CAPITAL:",{"$f":"FERRY.PRIME_CONSULTANT_COSTofCAPITAL","v":0},{"$f":"SUM(D280*C285)","v":0}]
[null,"TOTAL:",null,{"$f":"SUM(D283:D285)","v":0}]
[null,"DIRECT EXPENSES:",null,{"$f":"FERRY.PRIME_DIRECT_NONSALARY_TOTAL","v":0}]
[null,"FERRY GRAND TOTAL:",null,{"$f":"SUM(D286:D287)","v":0}]

{"sheet":"Ferry-Exp","index":64,"n_rows":46,"n_cols":8,"rows_kept":46,"cut":false,"hidden":true,"merged":[[0,0,0,7],[1,3,1,7]]}
[{"$f":"CONCATENATE(Ferry!B1,\" \",\"--PRIME DIRECT EXPENSES\")","v":"Ferry (Select One Below) --PRIME DIRECT EXPENSES"}]
["TIP NUMBER",{"$f":"TIP.NUMBER","v":0},"FIRM:",{"$f":"Ferry!G3","v":"CONSULTANT NAME"}]
[]
["GENERAL PROJECT WORK:","ITEM","QTY","DESCRIPTION",null,null,"UNIT COST "]
[null,"Travel:"]
[null,"Sedan",0,"Trip(s) @",0,"miles @",{"$f":"SEDAN","v":0.7},{"$f":"SUM(C6*E6*G6)","v":0}]
[null,"Carry All",0,"Trip(s) @",0,"miles @",{"$f":"CARRYALL","v":0.72},{"$f":"SUM(C7*E7*G7)","v":0}]
[null,"Car Rental",null,null,0,"days @ ",{"$f":"CARRENTAL","v":50},{"$f":"SUM(E8*G8)","v":0}]
[null,"Gas for Rental",null,null,0,"miles @",{"$f":"GASforRENTAL","v":0.2},{"$f":"SUM(E9*G9)","v":0}]
[null,"Parking:",0,"Trip(s) @",null,null,{"$f":"PARKING","v":3},{"$f":"SUM(C10*G10)","v":0}]
[null,"Per Diem:",0,"Breakfast",null,null,{"$f":"BREAKFAST","v":10.1},{"$f":"SUM(C11*G11)","v":0}]
[null,null,0,"Lunch",null,null,{"$f":"LUNCH","v":13.3},0]
[null,null,0,"Dinner",null,null,{"$f":"DINNER","v":23.1},0]
[null,null,0,"Lodging",null,null,{"$f":"LODGING_LUMP.SUM","v":95},0]
[null,"Reproduction:",0,"8 1/2 x 11 B & W Copies @",null,null,{"$f":"LETTERCOPIES","v":0.14000000000000001},0]
[null,null,0,"11 x 17 B & W Copies @",null,null,{"$f":"LEDGERCOPIES","v":0.34},0]
[null,null,0,"8 1/2 x 11 Color Copies @",null,null,{"$f":"LETTERCOLOR","v":0.83},0]
[null,null,0,"11 x 17 Color Copies @",null,null,{"$f":"LEDGERCOLOR","v":1.66},0]
[null,null,0,"SQ. FT. of Plots (B & W or Color)",null,"<65 SQ. FT.*",{"$f":"ROLLPLOTSshort","v":6.5},0]
[null,null,0,"SQ. FT. of Plots (B & W or Color)",null,">65 SQ. FT.*",{"$f":"ROLLPLOTSlong","v":1.5},0]
[null,null,0,"Cover(s) @",null,null,{"$f":"COVERS","v":0.5},0]
[null,null,0,"Binder(s) @",null,null,{"$f":"BINDERS","v":0.5},0]
[null,null,0,"Blueprints - 8 1/2 x 11 @",null,null,{"$f":"BLUEPRINTSLETTER","v":0.35},0]
[null,null,0,"Blueprints - 42 x 72 @",null,null,{"$f":"BLUEPRINTSLARGE","v":1.3},0]
[null,"Film and Developing:",0,"Roll(s) @",null,null,{"$f":"FILM","v":20},0]
[null,null,null,null,null,"Subtotal",null,{"$f":"SUM(H6:H25)","v":0}]
["MAPS AND DOCUMENTS:","ITEM","QTY","DESCRIPTION",null,null,"UNIT COST "]
[null,"County Tax Maps:",0,"Map(s) @",null,null,{"$f":"County_Tax_Maps","v":7},{"$f":"SUM(C28*G28)","v":0}]
[null,"USGS Maps:",0,"Map(s) @",null,null,{"$f":"USGSMAPS","v":7},{"$f":"SUM(C29*G29)","v":0}]
[null,null,null,null,null,"Subtotal",null,{"$f":"SUM(H28:H29)","v":0}]
["Miscellaneous Other","ITEM","QTY","DESCRIPTION",null,null,"UNIT COST "]
[null,null,null,null,null,null,null,{"$f":"SUM(C32*G32)","v":0}]
[null,null,null,null,null,null,null,{"$f":"SUM(C33*G33)","v":0}]
[null,null,null,null,null,null,null,0]
[null,null,null,null,null,null,null,0]
[null,null,null,null,null,null,null,0]
[null,null,null,null,null,null,null,0]
[null,null,null,null,null,null,null,0]
[null,null,null,null,null,null,null,{"$f":"SUM(C39*G39)","v":0}]
[null,null,null,null,null,null,null,{"$f":"SUM(C40*G40)","v":0}]
[null,null,null,null,null,null,null,{"$f":"SUM(C41*G41)","v":0}]
[null,null,null,null,null,"Subtotal",null,{"$f":"SUM(H32:H41)","v":0}]
[]
[null,null,null,null,null,"TOTAL",null,{"$f":"SUM(H26+H30+H42)","v":0}]
[]
[null,"* Sum of all plots "]

{"sheet":"Aviation","index":65,"n_rows":275,"n_cols":27,"rows_kept":275,"cut":false,"hidden":true,"merged":[[254,26,254,27],[255,26,255,27],[256,26,256,27],[257,26,257,27],[195,26,195,27],[196,26,196,27],[197,26,197,27],[198,26,198,27],[199,26,199,27],[200,26,200,27],[201,26,201,27],[202,26,202,27],[203,26,203,27],[204,26,204,27],[205,26,205,27],[206,26,206,27],[207,26,207,27],[208,26,208,27],[209,26,209,27],[210,26,210,27],[211,26,211,27],[212,26,212,27],[213,26,213,27],[214,26,214,27],[240,26,240,27],[241,26,241,27],[242,26,242,27],[243,26,243,27],[244,26,244,27],[245,26,245,27],[246,26,246,27],[247,26,247,27],[253,26,253,27],[248,26,248,27],[249,26,249,27],[250,26,250,27],[251,26,251,27],[252,26,252,27],[231,26,231,27],[232,26,232,27],[233,26,233,27],[234,26,234,27],[235,26,235,27],[236,26,236,27],[237,26,237,27],[238,26,238,27],[239,26,239,27],[193,26,193,27],[194,26,194,27],[224,26,224,27],[225,26,225,27],[226,26,226,27],[227,26,227,27],[228,26,228,27],[229,26,229,27],[230,26,230,27],[215,26,215,27],[216,26,216,27],[217,26,217,27],[218,26,218,27],[219,26,219,27],[220,26,220,27],[221,26,221,27],[222,26,222,27],[223,26,223,27],[184,26,184,27],[185,26,185,27],[186,26,186,27],[187,26,187,27],[188,26,188,27],[189,26,189,27],[190,26,190,27],[191,26,191,27],[192,26,192,27],[175,26,175,27],[176,26,176,27],[177,26,177,27],[178,26,178,27],[179,26,179,27],[180,26,180,27],[181,26,181,27],[182,26,182,27],[183,26,183,27],[166,26,166,27],[167,26,167,27],[168,26,168,27],[169,26,169,27],[170,26,170,27],[171,26,171,27],[172,26,172,27],[173,26,173,27],[174,26,174,27],[157,26,157,27],[158,26,158,27],[159,26,159,27],[160,26,160,27],[161,26,161,27],[162,26,162,27],[163,26,163,27],[164,26,164,27],[165,26,165,27],[148,26,148,27],[149,26,149,27],[150,26,150,27],[151,26,151,27],[152,26,152,27],[153,26,153,27],[154,26,154,27],[155,26,155,27],[156,26,156,27],[139,26,139,27],[140,26,140,27],[141,26,141,27],[142,26,142,27],[143,26,143,27],[144,26,144,27],[145,26,145,27],[146,26,146,27],[147,26,147,27],[130,26,130,27],[131,26,131,27],[132,26,132,27],[133,26,133,27],[134,26,134,27],[135,26,135,27],[136,26,136,27],[137,26,137,27],[138,26,138,27],[280,8,280,9],[280,10,280,11],[283,8,283,13],[284,8,284,9],[284,10,284,11],[285,8,285,9],[285,10,285,11],[259,26,259,27],[274,1,275,1],[274,3,275,4],[278,3,278,6],[278,8,278,13],[279,8,279,9],[279,10,279,11],[113,26,113,27],[114,26,114,27],[115,26,115,27],[116,26,116,27],[117,26,117,27],[258,26,258,27],[107,26,107,27],[108,26,108,27],[109,26,109,27],[110,26,110,27],[111,26,111,27],[112,26,112,27],[118,26,118,27],[119,26,119,27],[120,26,120,27],[121,26,121,27],[122,26,122,27],[123,26,123,27],[124,26,124,27],[125,26,125,27],[126,26,126,27],[127,26,127,27],[128,26,128,27],[129,26,129,27],[101,26,101,27],[102,26,102,27],[103,26,103,27],[104,26,104,27],[105,26,105,27],[106,26,106,27],[95,26,95,27],[96,26,96,27],[97,26,97,27],[98,26,98,27],[99,26,99,27],[100,26,100,27],[89,26,89,27],[90,26,90,27],[91,26,91,27],[92,26,92,27],[93,26,93,27],[94,26,94,27],[83,26,83,27],[84,26,84,27],[85,26,85,27],[86,26,86,27],[87,26,87,27],[88,26,88,27],[77,26,77,27],[78,26,78,27],[79,26,79,27],[80,26,80,27],[81,26,81,27],[82,26,82,27],[71,26,71,27],[72,26,72,27],[73,26,73,27],[74,26,74,27],[75,26,75,27],[76,26,76,27],[65,26,65,27],[66,26,66,27],[67,26,67,27],[68,26,68,27],[69,26,69,27],[70,26,70,27],[59,26,59,27],[60,26,60,27],[61,26,61,27],[62,26,62,27],[63,26,63,27],[64,26,64,27],[53,26,53,27],[54,26,54,27],[55,26,55,27],[56,26,56,27],[57,26,57,27],[58,26,58,27],[47,26,47,27],[48,26,48,27],[49,26,49,27],[50,26,50,27],[51,26,51,27],[52,26,52,27],[41,26,41,27],[42,26,42,27],[43,26,43,27],[44,26,44,27],[45,26,45,27],[46,26,46,27],[35,26,35,27],[36,26,36,27],[37,26,37,27],[38,26,38,27],[39,26,39,27],[40,26,40,27],[29,26,29,27],[30,26,30,27],[31,26,31,27],[32,26,32,27],[33,26,33,27],[34,26,34,27],[23,26,23,27],[24,26,24,27],[25,26,25,27],[26,26,26,27],[27,26,27,27],[28,26,28,27],[19,26,19,27],[20,26,20,27],[21,26,21,27],[22,26,22,27],[11,26,11,27],[12,26,12,27],[13,26,13,27],[14,26,14,27],[15,26,15,27],[16,26,16,27],[8,26,8,27],[6,12,9,12],[6,13,9,13],[6,14,9,14],[6,15,9,15],[6,16,9,16],[6,17,9,17],[17,26,17,27],[18,26,18,27],[10,26,10,27],[4,3,4,22],[6,3,9,3],[6,4,9,4],[6,5,9,5],[6,6,9,6],[6,7,9,7],[6,8,9,8],[6,9,9,9],[6,10,9,10],[6,11,9,11],[6,18,9,18],[6,19,9,19],[6,20,9,20],[6,21,9,21],[6,22,9,22],[0,0,1,13],[2,1,2,4],[2,6,2,7],[2,10,2,11],[2,15,2,16],[3,1,3,4],[3,6,3,7],[3,10,3,11],[3,15,3,16]]}
["AVIATION--PRIME BREAKDOWN WORKSHEET -- ENTER WORKHOURS"]
[]
["PROJECT DESCRIPTION: ",{"$f":"PROJECT.DESCRIPTION","v":0},null,null,null,"FIRM:  ",{"$f":"AVIATION.PRIME_CONSULTANT_NAME","v":"CONSULTANT NAME"},null,"TASK ORDER NUMBER:",null,{"$f":"TASK.ORDER.NUMBER","v":0},null,"DATE PREPARED:",{"$f":"IF(SCOPE.MANDAY.ESTIMATE.PREPARED.BY.DATE=\"\",\"\",SCOPE.MANDAY.ESTIMATE.PREPARED.BY.DATE)","v":""}]
["PREPARED BY:  ",{"$f":"IF(SCOPE.MANDAY.ESTIMATE.PREPARED.BY=\"\",\"\",SCOPE.MANDAY.ESTIMATE.PREPARED.BY)","v":""},null,null,null,"TIP NUMBER:",{"$f":"TIP.NUMBER","v":0},null,"WBS NUMBER:",null,{"$f":"WBS.NUMBER","v":""},null,"REVISION DATE:",{"$f":"IF(SCOPE.MANDAY.ESTIMATE.APPROVED.BY.DATE=\"\",\"\",SCOPE.MANDAY.ESTIMATE.APPROVED.BY.DATE)","v":""}]
[null,null,null,"ESTIMATED WORKHOURS"]
[null,null,"EMPLOYEE NAMES",{"$f":"IF('PEF CLASSIFICATION SHEET'!D531=\"\",\"\",LEFT('PEF CLASSIFICATION SHEET'!D531,4))","v":""},{"$f":"IF('PEF CLASSIFICATION SHEET'!D532=\"\",\"\",LEFT('PEF CLASSIFICATION SHEET'!D532,4))","v":""},{"$f":"IF('PEF CLASSIFICATION SHEET'!D533=\"\",\"\",LEFT('PEF CLASSIFICATION SHEET'!D533,4))","v":""},{"$f":"IF('PEF CLASSIFICATION SHEET'!D534=\"\",\"\",LEFT('PEF CLASSIFICATION SHEET'!D534,4))","v":""},{"$f":"IF('PEF CLASSIFICATION SHEET'!D535=\"\",\"\",LEFT('PEF CLASSIFICATION SHEET'!D535,4))","v":""},{"$f":"IF('PEF CLASSIFICATION SHEET'!D536=\"\",\"\",LEFT('PEF CLASSIFICATION SHEET'!D536,4))","v":""},{"$f":"IF('PEF CLASSIFICATION SHEET'!D537=\"\",\"\",LEFT('PEF CLASSIFICATION SHEET'!D537,4))","v":""},{"$f":"IF('PEF CLASSIFICATION SHEET'!D538=\"\",\"\",LEFT('PEF CLASSIFICATION SHEET'!D538,4))","v":""},{"$f":"IF('PEF CLASSIFICATION SHEET'!D539=\"\",\"\",LEFT('PEF CLASSIFICATION SHEET'!D539,4))","v":""},{"$f":"IF('PEF CLASSIFICATION SHEET'!D540=\"\",\"\",LEFT('PEF CLASSIFICATION SHEET'!D540,4))","v":""},{"$f":"IF('PEF CLASSIFICATION SHEET'!D541=\"\",\"\",LEFT('PEF CLASSIFICATION SHEET'!D541,4))","v":""},{"$f":"IF('PEF CLASSIFICATION SHEET'!D542=\"\",\"\",LEFT('PEF CLASSIFICATION SHEET'!D542,4))","v":""},{"$f":"IF('PEF CLASSIFICATION SHEET'!D543=\"\",\"\",LEFT('PEF CLASSIFICATION SHEET'!D543,4))","v":""},{"$f":"IF('PEF CLASSIFICATION SHEET'!D544=\"\",\"\",LEFT('PEF CLASSIFICATION SHEET'!D544,4))","v":""},{"$f":"IF('PEF CLASSIFICATION SHEET'!D545=\"\",\"\",LEFT('PEF CLASSIFICATION SHEET'!D545,4))","v":""},{"$f":"IF('PEF CLASSIFICATION SHEET'!D546=\"\",\"\",LEFT('PEF CLASSIFICATION SHEET'!D546,4))","v":""},{"$f":"IF('PEF CLASSIFICATION SHEET'!D547=\"\",\"\",LEFT('PEF CLASSIFICATION SHEET'!D547,4))","v":""},{"$f":"IF('PEF CLASSIFICATION SHEET'!D548=\"\",\"\",LEFT('PEF CLASSIFICATION SHEET'!D548,4))","v":""},{"$f":"IF('PEF CLASSIFICATION SHEET'!D549=\"\",\"\",LEFT('PEF CLASSIFICATION SHEET'!D549,4))","v":""},{"$f":"IF('PEF CLASSIFICATION SHEET'!D550=\"\",\"\",LEFT('PEF CLASSIFICATION SHEET'!D550,4))","v":""}]
[null,null,null,{"$f":"IF('PEF CLASSIFICATION SHEET'!C531=\"\",\"\",'PEF CLASSIFICATION SHEET'!C531)","v":""},{"$f":"IF('PEF CLASSIFICATION SHEET'!C532=\"\",\"\",'PEF CLASSIFICATION SHEET'!C532)","v":""},{"$f":"IF('PEF CLASSIFICATION SHEET'!C533=\"\",\"\",'PEF CLASSIFICATION SHEET'!C533)","v":""},{"$f":"IF('PEF CLASSIFICATION SHEET'!C534=\"\",\"\",'PEF CLASSIFICATION SHEET'!C534)","v":""},{"$f":"IF('PEF CLASSIFICATION SHEET'!C535=\"\",\"\",'PEF CLASSIFICATION SHEET'!C535)","v":""},{"$f":"IF('PEF CLASSIFICATION SHEET'!C536=\"\",\"\",'PEF CLASSIFICATION SHEET'!C536)","v":""},{"$f":"IF('PEF CLASSIFICATION SHEET'!C537=\"\",\"\",'PEF CLASSIFICATION SHEET'!C537)","v":""},{"$f":"IF('PEF CLASSIFICATION SHEET'!C538=\"\",\"\",'PEF CLASSIFICATION SHEET'!C538)","v":""},{"$f":"IF('PEF CLASSIFICATION SHEET'!C539=\"\",\"\",'PEF CLASSIFICATION SHEET'!C539)","v":""},{"$f":"IF('PEF CLASSIFICATION SHEET'!C540=\"\",\"\",'PEF CLASSIFICATION SHEET'!C540)","v":""},{"$f":"IF('PEF CLASSIFICATION SHEET'!C541=\"\",\"\",'PEF CLASSIFICATION SHEET'!C541)","v":""},{"$f":"IF('PEF CLASSIFICATION SHEET'!C542=\"\",\"\",'PEF CLASSIFICATION SHEET'!C542)","v":""},{"$f":"IF('PEF CLASSIFICATION SHEET'!C543=\"\",\"\",'PEF CLASSIFICATION SHEET'!C543)","v":""},{"$f":"IF('PEF CLASSIFICATION SHEET'!C544=\"\",\"\",'PEF CLASSIFICATION SHEET'!C544)","v":""},{"$f":"IF('PEF CLASSIFICATION SHEET'!C545=\"\",\"\",'PEF CLASSIFICATION SHEET'!C545)","v":""},{"$f":"IF('PEF CLASSIFICATION SHEET'!C546=\"\",\"\",'PEF CLASSIFICATION SHEET'!C546)","v":""},{"$f":"IF('PEF CLASSIFICATION SHEET'!C547=\"\",\"\",'PEF CLASSIFICATION SHEET'!C547)","v":""},{"$f":"IF('PEF CLASSIFICATION SHEET'!C548=\"\",\"\",'PEF CLASSIFICATION SHEET'!C548)","v":""},{"$f":"IF('PEF CLASSIFICATION SHEET'!C549=\"\",\"\",'PEF CLASSIFICATION SHEET'!C549)","v":""},{"$f":"IF('PEF CLASSIFICATION SHEET'!C550=\"\",\"\",'PEF CLASSIFICATION SHEET'!C550)","v":""},"SUB-","%","PEF"]
[null,null,null,null,null,null,null,null,null,null,null,null,null,null,null,null,null,null,null,null,null,null,null,"TOTAL","OF","ESTIMATE"]
["TASK","TASK DESCRIPTION","CLASSIFICATION",null,null,null,null,null,null,null,null,null,null,null,null,null,null,null,null,null,null,null,null,null,"PROJECT",null,"COMMENTS"]
["NO."]
[null,"PLANNING",null,null,null,null,null,null,null,null,null,null,null,null,null,null,null,null,null,null,null,null,null,{"$f":"IF(B11=\"\",0,IF((SUM(D12:W104)=0),SUM(D11:W11),\"\"))","v":0},{"$f":"IF(X11=\"\",\"\",SUM((X11/$X$261)))","v":{"$error":"#DIV/0!"}}]
[null,"Study design ",null,null,null,null,null,null,null,null,null,null,null,null,null,null,null,null,null,null,null,null,null,{"$f":"IF(B12=\"\",0,IF((SUM(D17:W34)=0),SUM(D12:W12),\"\"))","v":0},{"$error":"#DIV/0!"}]
[null,"Project definition",null,null,null,null,null,null,null,null,null,null,null,null,null,null,null,null,null,null,null,null,null,{"$f":"IF(B13=\"\",0,IF((SUM(D13:W13)=0),0,SUM(D13:W13)))","v":0},{"$error":"#DIV/0!"}]
[null,"Kick-off meetings",null,null,null,null,null,null,null,null,null,null,null,null,null,null,null,null,null,null,null,null,null,{"$f":"IF(B14=\"\",0,IF((SUM(D14:W14)=0),0,SUM(D14:W14)))","v":0},{"$error":"#DIV/0!"}]
[null,"Goals/Objectives/Schedule/Deliverable/Public Involvement Plan/Budget",null,null,null,null,null,null,null,null,null,null,null,null,null,null,null,null,null,null,null,null,null,0,{"$error":"#DIV/0!"}]
[null,null,null,null,null,null,null,null,null,null,null,null,null,null,null,null,null,null,null,null,null,null,null,0,{"$error":"#DIV/0!"}]
[null,null,null,null,null,null,null,null,null,null,null,null,null,null,null,null,null,null,null,null,null,null,null,0,{"$error":"#DIV/0!"}]
[null,"Sub-consultant coordination",null,null,null,null,null,null,null,null,null,null,null,null,null,null,null,null,null,null,null,null,null,0,{"$error":"#DIV/0!"}]
[null,"IFE coordination",null,null,null,null,null,null,null,null,null,null,null,null,null,null,null,null,null,null,null,null,null,0,{"$error":"#DIV/0!"}]
[null,"Airport board/steering committee input and update meetings",null,null,null,null,null,null,null,null,null,null,null,null,null,null,null,null,null,null,null,null,null,0,{"$error":"#DIV/0!"}]
[null,"Grant application",null,null,null,null,null,null,null,null,null,null,null,null,null,null,null,null,null,null,null,null,null,0,{"$error":"#DIV/0!"}]
[null,"Invoicing/Grant Admin",null,null,null,null,null,null,null,null,null,null,null,null,null,null,null,null,null,null,null,null,null,0,{"$error":"#DIV/0!"}]
[null,"Grant close-out",null,null,null,null,null,null,null,null,null,null,null,null,null,null,null,null,null,null,null,null,null,0,{"$error":"#DIV/0!"}]
[null,"Existing conditions",null,null,null,null,null,null,null,null,null,null,null,null,null,null,null,null,null,null,null,null,null,{"$f":"IF(B24=\"\",0,IF((SUM(D25:W29)=0),SUM(D24:W24),\"\"))","v":0},{"$error":"#DIV/0!"}]
[null,"Review of planning documents and studies",null,null,null,null,null,null,null,null,null,null,null,null,null,null,null,null,null,null,null,null,null,{"$f":"IF(B25=\"\",0,IF((SUM(D25:W25)=0),0,SUM(D25:W25)))","v":0},{"$error":"#DIV/0!"}]
[null,"Airport history",null,null,null,null,null,null,null,null,null,null,null,null,null,null,null,null,null,null,null,null,null,0,{"$error":"#DIV/0!"}]
[null,"Data collection from available resources",null,null,null,null,null,null,null,null,null,null,null,null,null,null,null,null,null,null,null,null,null,0,{"$error":"#DIV/0!"}]
[null,null,null,null,null,null,null,null,null,null,null,null,null,null,null,null,null,null,null,null,null,null,null,0,{"$error":"#DIV/0!"}]
[null,null,null,null,null,null,null,null,null,null,null,null,null,null,null,null,null,null,null,null,null,null,null,0,{"$error":"#DIV/0!"}]
[null,"Inventory",null,null,null,null,null,null,null,null,null,null,null,null,null,null,null,null,null,null,null,null,null,{"$f":"IF(B30=\"\",0,IF((SUM(D31:W45)=0),SUM(D30:W30),\"\"))","v":0},{"$error":"#DIV/0!"}]
[null,"Airside facilities",null,null,null,null,null,null,null,null,null,null,null,null,null,null,null,null,null,null,null,null,null,{"$f":"IF(B31=\"\",0,IF((SUM(D31:W31)=0),0,SUM(D31:W31)))","v":0},{"$error":"#DIV/0!"}]
[null,"Landside facilities",null,null,null,null,null,null,null,null,null,null,null,null,null,null,null,null,null,null,null,null,null,0,{"$error":"#DIV/0!"}]
[null,"Facility access",null,null,null,null,null,null,null,null,null,null,null,null,null,null,null,null,null,null,null,null,null,0,{"$error":"#DIV/0!"}]
[null,"Utilities",null,null,null,null,null,null,null,null,null,null,null,null,null,null,null,null,null,null,null,null,null,0,{"$error":"#DIV/0!"}]
[null,"Regional setting and land use",null,null,null,null,null,null,null,null,null,null,null,null,null,null,null,null,null,null,null,null,null,0,{"$error":"#DIV/0!"}]
[null,"Environmental overview",null,null,null,null,null,null,null,null,null,null,null,null,null,null,null,null,null,null,null,null,null,0,{"$error":"#DIV/0!"}]
[null,"Operations data",null,null,null,null,null,null,null,null,null,null,null,null,null,null,null,null,null,null,null,null,null,0,{"$error":"#DIV/0!"}]
[null,"Financial data",null,null,null,null,null,null,null,null,null,null,null,null,null,null,null,null,null,null,null,null,null,0,{"$error":"#DIV/0!"}]
[null,"Obstruction survey with mapping",null,null,null,null,null,null,null,null,null,null,null,null,null,null,null,null,null,null,null,null,null,0,{"$error":"#DIV/0!"}]
[null,"On-airport land use",null,null,null,null,null,null,null,null,null,null,null,null,null,null,null,null,null,null,null,null,null,0,{"$error":"#DIV/0!"}]
[null,"Meteorology and magnetic declination data",null,null,null,null,null,null,null,null,null,null,null,null,null,null,null,null,null,null,null,null,null,0,{"$error":"#DIV/0!"}]
[null,null,null,null,null,null,null,null,null,null,null,null,null,null,null,null,null,null,null,null,null,null,null,0,{"$error":"#DIV/0!"}]
[null,null,null,null,null,null,null,null,null,null,null,null,null,null,null,null,null,null,null,null,null,null,null,0,{"$error":"#DIV/0!"}]
[null,null,null,null,null,null,null,null,null,null,null,null,null,null,null,null,null,null,null,null,null,null,null,0,{"$error":"#DIV/0!"}]
[null,null,null,null,null,null,null,null,null,null,null,null,null,null,null,null,null,null,null,null,null,null,null,0,{"$error":"#DIV/0!"}]
[null,"Aviation Forecasts ",null,null,null,null,null,null,null,null,null,null,null,null,null,null,null,null,null,null,null,null,null,{"$f":"IF(B46=\"\",0,IF((SUM(D47:W56)=0),SUM(D46:W46),\"\"))","v":0},{"$error":"#DIV/0!"}]
[null,"Review current and previous forecasts and data",null,null,null,null,null,null,null,null,null,null,null,null,null,null,null,null,null,null,null,null,null,{"$f":"IF(B47=\"\",0,IF((SUM(D47:W47)=0),0,SUM(D47:W47)))","v":0},{"$error":"#DIV/0!"}]
[null,"Select methodologies",null,null,null,null,null,null,null,null,null,null,null,null,null,null,null,null,null,null,null,null,null,0,{"$error":"#DIV/0!"}]
[null,"Review of NCASP data",null,null,null,null,null,null,null,null,null,null,null,null,null,null,null,null,null,null,null,null,null,0,{"$error":"#DIV/0!"}]
[null,"Review of TAF",null,null,null,null,null,null,null,null,null,null,null,null,null,null,null,null,null,null,null,null,null,0,{"$error":"#DIV/0!"}]
[null,"Comparison matrix and recommendation",null,null,null,null,null,null,null,null,null,null,null,null,null,null,null,null,null,null,null,null,null,0,{"$error":"#DIV/0!"}]
[null,"Critical aircraft existing and future",null,null,null,null,null,null,null,null,null,null,null,null,null,null,null,null,null,null,null,null,null,0,{"$error":"#DIV/0!"}]
[null,"Facilitate DoA review of forecast",null,null,null,null,null,null,null,null,null,null,null,null,null,null,null,null,null,null,null,null,null,0,{"$error":"#DIV/0!"}]
[null,null,null,null,null,null,null,null,null,null,null,null,null,null,null,null,null,null,null,null,null,null,null,0,{"$error":"#DIV/0!"}]
[null,null,null,null,null,null,null,null,null,null,null,null,null,null,null,null,null,null,null,null,null,null,null,0,{"$error":"#DIV/0!"}]
[null,null,null,null,null,null,null,null,null,null,null,null,null,null,null,null,null,null,null,null,null,null,null,0,{"$error":"#DIV/0!"}]
[null,"Facility requirements ",null,null,null,null,null,null,null,null,null,null,null,null,null,null,null,null,null,null,null,null,null,{"$f":"IF(B57=\"\",0,IF((SUM(D58:W67)=0),SUM(D57:W57),\"\"))","v":0},{"$error":"#DIV/0!"}]
[null,"Capacity/delay",null,null,null,null,null,null,null,null,null,null,null,null,null,null,null,null,null,null,null,null,null,{"$f":"IF(B58=\"\",0,IF((SUM(D58:W58)=0),0,SUM(D58:W58)))","v":0},{"$error":"#DIV/0!"}]
[null,"Runway and taxiway requirements",null,null,null,null,null,null,null,null,null,null,null,null,null,null,null,null,null,null,null,null,null,0,{"$error":"#DIV/0!"}]
[null,"Navaid requirements",null,null,null,null,null,null,null,null,null,null,null,null,null,null,null,null,null,null,null,null,null,0,{"$error":"#DIV/0!"}]
[null,"Ground access",null,null,null,null,null,null,null,null,null,null,null,null,null,null,null,null,null,null,null,null,null,0,{"$error":"#DIV/0!"}]
[null,"Utilities",null,null,null,null,null,null,null,null,null,null,null,null,null,null,null,null,null,null,null,null,null,0,{"$error":"#DIV/0!"}]
[null,"GA facilities",null,null,null,null,null,null,null,null,null,null,null,null,null,null,null,null,null,null,null,null,null,0,{"$error":"#DIV/0!"}]
[null,"Fuel",null,null,null,null,null,null,null,null,null,null,null,null,null,null,null,null,null,null,null,null,null,0,{"$error":"#DIV/0!"}]
[null,"Aircraft maintenance",null,null,null,null,null,null,null,null,null,null,null,null,null,null,null,null,null,null,null,null,null,0,{"$error":"#DIV/0!"}]
[null,null,null,null,null,null,null,null,null,null,null,null,null,null,null,null,null,null,null,null,null,null,null,0,{"$error":"#DIV/0!"}]
[null,null,null,null,null,null,null,null,null,null,null,null,null,null,null,null,null,null,null,null,null,null,null,0,{"$error":"#DIV/0!"}]
[null,"Alternatives",null,null,null,null,null,null,null,null,null,null,null,null,null,null,null,null,null,null,null,null,null,{"$f":"IF(B68=\"\",0,IF((SUM(D69:W75)=0),SUM(D68:W68),\"\"))","v":0},{"$error":"#DIV/0!"}]
[null,"Airfield",null,null,null,null,null,null,null,null,null,null,null,null,null,null,null,null,null,null,null,null,null,{"$f":"IF(B69=\"\",0,IF((SUM(D69:W69)=0),0,SUM(D69:W69)))","v":0},{"$error":"#DIV/0!"}]
[null,"GA terminal development",null,null,null,null,null,null,null,null,null,null,null,null,null,null,null,null,null,null,null,null,null,0,{"$error":"#DIV/0!"}]
[null,"MRO",null,null,null,null,null,null,null,null,null,null,null,null,null,null,null,null,null,null,null,null,null,0,{"$error":"#DIV/0!"}]
[null,"Other support facilities",null,null,null,null,null,null,null,null,null,null,null,null,null,null,null,null,null,null,null,null,null,0,{"$error":"#DIV/0!"}]
[null,"Evaluation of alts",null,null,null,null,null,null,null,null,null,null,null,null,null,null,null,null,null,null,null,null,null,0,{"$error":"#DIV/0!"}]
[null,null,null,null,null,null,null,null,null,null,null,null,null,null,null,null,null,null,null,null,null,null,null,0,{"$error":"#DIV/0!"}]
[null,null,null,null,null,null,null,null,null,null,null,null,null,null,null,null,null,null,null,null,null,null,null,0,{"$f":"IF(X75=\"\",\"\",SUM((X75/$X$261)))","v":{"$error":"#DIV/0!"}}]
[null,"Public involvement and stakeholder meetings as per plan",null,null,null,null,null,null,null,null,null,null,null,null,null,null,null,null,null,null,null,null,null,0,{"$error":"#DIV/0!"}]
[null,"Schedules of development",null,null,null,null,null,null,null,null,null,null,null,null,null,null,null,null,null,null,null,null,null,0,{"$error":"#DIV/0!"}]
[null,"Estimates of development costs",null,null,null,null,null,null,null,null,null,null,null,null,null,null,null,null,null,null,null,null,null,0,{"$error":"#DIV/0!"}]
[null,"ALP plan set",null,null,null,null,null,null,null,null,null,null,null,null,null,null,null,null,null,null,null,null,null,{"$f":"IF(B79=\"\",0,IF((SUM(D80:W92)=0),SUM(D79:W79),\"\"))","v":0},{"$error":"#DIV/0!"}]
[null,"Title sheet",null,null,null,null,null,null,null,null,null,null,null,null,null,null,null,null,null,null,null,null,null,{"$f":"IF(B80=\"\",0,IF((SUM(D80:W80)=0),0,SUM(D80:W80)))","v":0},{"$error":"#DIV/0!"}]
[null,"Ground control survey",null,null,null,null,null,null,null,null,null,null,null,null,null,null,null,null,null,null,null,null,null,0,{"$error":"#DIV/0!"}]
[null,"Existing facilities drawing",null,null,null,null,null,null,null,null,null,null,null,null,null,null,null,null,null,null,null,null,null,0,{"$error":"#DIV/0!"}]
[null,"Property map or exhibit A",null,null,null,null,null,null,null,null,null,null,null,null,null,null,null,null,null,null,null,null,null,0,{"$error":"#DIV/0!"}]
[null,"Airspace drawing",null,null,null,null,null,null,null,null,null,null,null,null,null,null,null,null,null,null,null,null,null,0,{"$error":"#DIV/0!"}]
[null,"Inner portion of the approach surface drawing",null,null,null,null,null,null,null,null,null,null,null,null,null,null,null,null,null,null,null,null,null,0,{"$error":"#DIV/0!"}]
[null,"Obstruction analysis",null,null,null,null,null,null,null,null,null,null,null,null,null,null,null,null,null,null,null,null,null,0,{"$error":"#DIV/0!"}]
[null,"Runway departure surface sheet",null,null,null,null,null,null,null,null,null,null,null,null,null,null,null,null,null,null,null,null,null,0,{"$error":"#DIV/0!"}]
[null,"Terminal area plan sheet",null,null,null,null,null,null,null,null,null,null,null,null,null,null,null,null,null,null,null,null,null,0,{"$error":"#DIV/0!"}]
[null,"Land use plan sheet",null,null,null,null,null,null,null,null,null,null,null,null,null,null,null,null,null,null,null,null,null,0,{"$error":"#DIV/0!"}]
[null,null,null,null,null,null,null,null,null,null,null,null,null,null,null,null,null,null,null,null,null,null,null,0,{"$error":"#DIV/0!"}]
[null,null,null,null,null,null,null,null,null,null,null,null,null,null,null,null,null,null,null,null,null,null,null,0,{"$error":"#DIV/0!"}]
[null,null,null,null,null,null,null,null,null,null,null,null,null,null,null,null,null,null,null,null,null,null,null,0,{"$error":"#DIV/0!"}]
[null,"ALP checklist completion",null,null,null,null,null,null,null,null,null,null,null,null,null,null,null,null,null,null,null,null,null,0,{"$error":"#DIV/0!"}]
[null,"Status reports, draft submittals",null,null,null,null,null,null,null,null,null,null,null,null,null,null,null,null,null,null,null,null,null,0,{"$error":"#DIV/0!"}]
[null,null,null,null,null,null,null,null,null,null,null,null,null,null,null,null,null,null,null,null,null,null,null,0,{"$error":"#DIV/0!"}]
[null,null,null,null,null,null,null,null,null,null,null,null,null,null,null,null,null,null,null,null,null,null,null,0,{"$error":"#DIV/0!"}]
[null,null,null,null,null,null,null,null,null,null,null,null,null,null,null,null,null,null,null,null,null,null,null,0,{"$error":"#DIV/0!"}]
[null,null,null,null,null,null,null,null,null,null,null,null,null,null,null,null,null,null,null,null,null,null,null,0,{"$error":"#DIV/0!"}]
[null,null,null,null,null,null,null,null,null,null,null,null,null,null,null,null,null,null,null,null,null,null,null,0,{"$error":"#DIV/0!"}]
[null,null,null,null,null,null,null,null,null,null,null,null,null,null,null,null,null,null,null,null,null,null,null,0,{"$error":"#DIV/0!"}]
[null,null,null,null,null,null,null,null,null,null,null,null,null,null,null,null,null,null,null,null,null,null,null,0,{"$error":"#DIV/0!"}]
[null,null,null,null,null,null,null,null,null,null,null,null,null,null,null,null,null,null,null,null,null,null,null,0,{"$error":"#DIV/0!"}]
[null,null,null,null,null,null,null,null,null,null,null,null,null,null,null,null,null,null,null,null,null,null,null,0,{"$error":"#DIV/0!"}]
[null,null,null,null,null,null,null,null,null,null,null,null,null,null,null,null,null,null,null,null,null,null,null,0,{"$error":"#DIV/0!"}]
[null,"DESIGN",null,null,null,null,null,null,null,null,null,null,null,null,null,null,null,null,null,null,null,null,null,{"$f":"IF(B105=\"\",0,IF((SUM(D106:W179)=0),SUM(D105:W105),\"\"))","v":0},{"$error":"#DIV/0!"}]
[null,"Project formulation",null,null,null,null,null,null,null,null,null,null,null,null,null,null,null,null,null,null,null,null,null,{"$f":"IF(B106=\"\",0,IF((SUM(D106:W106)=0),0,SUM(D106:W106)))","v":0},{"$error":"#DIV/0!"}]
[null,"Study design ",null,null,null,null,null,null,null,null,null,null,null,null,null,null,null,null,null,null,null,null,null,{"$f":"IF(B107=\"\",0,IF((SUM(D108:W112)=0),SUM(D107:W107),\"\"))","v":0},{"$error":"#DIV/0!"}]
[null,"Project definition",null,null,null,null,null,null,null,null,null,null,null,null,null,null,null,null,null,null,null,null,null,{"$f":"IF(B108=\"\",0,IF((SUM(D108:W108)=0),0,SUM(D108:W108)))","v":0},{"$error":"#DIV/0!"}]
[null,"Kick-off meetings",null,null,null,null,null,null,null,null,null,null,null,null,null,null,null,null,null,null,null,null,null,0,{"$error":"#DIV/0!"}]
[null,"Schedule/deliverables/plan/budget",null,null,null,null,null,null,null,null,null,null,null,null,null,null,null,null,null,null,null,null,null,0,{"$error":"#DIV/0!"}]
[null,null,null,null,null,null,null,null,null,null,null,null,null,null,null,null,null,null,null,null,null,null,null,0,{"$error":"#DIV/0!"}]
[null,null,null,null,null,null,null,null,null,null,null,null,null,null,null,null,null,null,null,null,null,null,null,0,{"$error":"#DIV/0!"}]
[null,"Sub consultant coordination",null,null,null,null,null,null,null,null,null,null,null,null,null,null,null,null,null,null,null,null,null,0,{"$error":"#DIV/0!"}]
[null,"IFE coordination",null,null,null,null,null,null,null,null,null,null,null,null,null,null,null,null,null,null,null,null,null,0,{"$error":"#DIV/0!"}]
[null,"Airport board/steering committee input and update meetings",null,null,null,null,null,null,null,null,null,null,null,null,null,null,null,null,null,null,null,null,null,0,{"$error":"#DIV/0!"}]
[null,"Grant application",null,null,null,null,null,null,null,null,null,null,null,null,null,null,null,null,null,null,null,null,null,0,{"$error":"#DIV/0!"}]
[null,"Invoicing/grant admin",null,null,null,null,null,null,null,null,null,null,null,null,null,null,null,null,null,null,null,null,null,0,{"$error":"#DIV/0!"}]
[null,"CatEx NEPA document ",null,null,null,null,null,null,null,null,null,null,null,null,null,null,null,null,null,null,null,null,null,{"$f":"IF(B118=\"\",0,IF((SUM(D119:W128)=0),SUM(D118:W118),\"\"))","v":0},{"$error":"#DIV/0!"}]
[null,"Study area and vicinity map",null,null,null,null,null,null,null,null,null,null,null,null,null,null,null,null,null,null,null,null,null,{"$f":"IF(B119=\"\",0,IF((SUM(D119:W119)=0),0,SUM(D119:W119)))","v":0},{"$error":"#DIV/0!"}]
[null,"Environmental features map",null,null,null,null,null,null,null,null,null,null,null,null,null,null,null,null,null,null,null,null,null,0,{"$error":"#DIV/0!"}]
[null,"Start of study or scoping letter for environmental clearinghouse",null,null,null,null,null,null,null,null,null,null,null,null,null,null,null,null,null,null,null,null,null,0,{"$error":"#DIV/0!"}]
[null,"Other agency coordination and stakeholder involvement",null,null,null,null,null,null,null,null,null,null,null,null,null,null,null,null,null,null,null,null,null,0,{"$error":"#DIV/0!"}]
[null,"Landowner notification",null,null,null,null,null,null,null,null,null,null,null,null,null,null,null,null,null,null,null,null,null,0,{"$error":"#DIV/0!"}]
[null,"Address impact categories with obtained data",null,null,null,null,null,null,null,null,null,null,null,null,null,null,null,null,null,null,null,null,null,0,{"$error":"#DIV/0!"}]
[null,"Submit draft document for review",null,null,null,null,null,null,null,null,null,null,null,null,null,null,null,null,null,null,null,null,null,0,{"$error":"#DIV/0!"}]
[null,null,null,null,null,null,null,null,null,null,null,null,null,null,null,null,null,null,null,null,null,null,null,0,{"$error":"#DIV/0!"}]
[null,null,null,null,null,null,null,null,null,null,null,null,null,null,null,null,null,null,null,null,null,null,null,0,{"$error":"#DIV/0!"}]
[null,null,null,null,null,null,null,null,null,null,null,null,null,null,null,null,null,null,null,null,null,null,null,0,{"$error":"#DIV/0!"}]
[null,"Permit application & agency meeting regarding permitting",null,null,null,null,null,null,null,null,null,null,null,null,null,null,null,null,null,null,null,null,null,{"$f":"IF(B129=\"\",0,IF((SUM(D129:W129)=0),0,SUM(D129:W129)))","v":0},{"$error":"#DIV/0!"}]
[null,"Survey of existing conditions ",null,null,null,null,null,null,null,null,null,null,null,null,null,null,null,null,null,null,null,null,null,{"$f":"IF(B130=\"\",0,IF((SUM(D131:W136)=0),SUM(D130:W130),\"\"))","v":0},{"$error":"#DIV/0!"}]
[null,"Collect existing survey data",null,null,null,null,null,null,null,null,null,null,null,null,null,null,null,null,null,null,null,null,null,{"$f":"IF(B131=\"\",0,IF((SUM(D131:W131)=0),0,SUM(D131:W131)))","v":0},{"$error":"#DIV/0!"}]
[null,"Obtain new data as needed",null,null,null,null,null,null,null,null,null,null,null,null,null,null,null,null,null,null,null,null,null,0,{"$error":"#DIV/0!"}]
[null,"Incorporate into base plans",null,null,null,null,null,null,null,null,null,null,null,null,null,null,null,null,null,null,null,null,null,0,{"$error":"#DIV/0!"}]
[null,"CADD mapping",null,null,null,null,null,null,null,null,null,null,null,null,null,null,null,null,null,null,null,null,null,0,{"$error":"#DIV/0!"}]
[null,null,null,null,null,null,null,null,null,null,null,null,null,null,null,null,null,null,null,null,null,null,null,0,{"$error":"#DIV/0!"}]
[null,null,null,null,null,null,null,null,null,null,null,null,null,null,null,null,null,null,null,null,null,null,null,0,{"$error":"#DIV/0!"}]
[null,"Geotechnical investigations",null,null,null,null,null,null,null,null,null,null,null,null,null,null,null,null,null,null,null,null,null,0,{"$error":"#DIV/0!"}]
[null,"Construction plans production ",null,null,null,null,null,null,null,null,null,null,null,null,null,null,null,null,null,null,null,null,null,{"$f":"IF(B138=\"\",0,IF((SUM(D139:W160)=0),SUM(D138:W138),\"\"))","v":0},{"$error":"#DIV/0!"}]
[null,"Title sheet",null,null,null,null,null,null,null,null,null,null,null,null,null,null,null,null,null,null,null,null,null,{"$f":"IF(B139=\"\",0,IF((SUM(D139:W139)=0),0,SUM(D139:W139)))","v":0},{"$f":"IF(X139=\"\",\"\",SUM((X139/$X$261)))","v":{"$error":"#DIV/0!"}}]
[null,"Index of drawings",null,null,null,null,null,null,null,null,null,null,null,null,null,null,null,null,null,null,null,null,null,0,{"$error":"#DIV/0!"}]
[null,"Summary of quantities",null,null,null,null,null,null,null,null,null,null,null,null,null,null,null,null,null,null,null,null,null,0,{"$error":"#DIV/0!"}]
[null,"Pipe schedule",null,null,null,null,null,null,null,null,null,null,null,null,null,null,null,null,null,null,null,null,null,0,{"$error":"#DIV/0!"}]
[null,"General notes",null,null,null,null,null,null,null,null,null,null,null,null,null,null,null,null,null,null,null,null,null,0,{"$error":"#DIV/0!"}]
[null,"Legend",null,null,null,null,null,null,null,null,null,null,null,null,null,null,null,null,null,null,null,null,null,0,{"$error":"#DIV/0!"}]
[null,"Project layout",null,null,null,null,null,null,null,null,null,null,null,null,null,null,null,null,null,null,null,null,null,0,{"$error":"#DIV/0!"}]
[null,"Haul roads/staging areas",null,null,null,null,null,null,null,null,null,null,null,null,null,null,null,null,null,null,null,null,null,0,{"$error":"#DIV/0!"}]
[null,"Soil boring plans and logs",null,null,null,null,null,null,null,null,null,null,null,null,null,null,null,null,null,null,null,null,null,0,{"$error":"#DIV/0!"}]
[null,"Safety and security notes and details",null,null,null,null,null,null,null,null,null,null,null,null,null,null,null,null,null,null,null,null,null,0,{"$error":"#DIV/0!"}]
[null,"Plan/profile proposed",null,null,null,null,null,null,null,null,null,null,null,null,null,null,null,null,null,null,null,null,null,0,{"$error":"#DIV/0!"}]
[null,"Typical sections",null,null,null,null,null,null,null,null,null,null,null,null,null,null,null,null,null,null,null,null,null,0,{"$error":"#DIV/0!"}]
[null,"Grading/drainage plans",null,null,null,null,null,null,null,null,null,null,null,null,null,null,null,null,null,null,null,null,null,0,{"$error":"#DIV/0!"}]
[null,"Construction safety and phasing plan",null,null,null,null,null,null,null,null,null,null,null,null,null,null,null,null,null,null,null,null,null,0,{"$error":"#DIV/0!"}]
[null,"Paving plan",null,null,null,null,null,null,null,null,null,null,null,null,null,null,null,null,null,null,null,null,null,0,{"$error":"#DIV/0!"}]
[null,"Erosion and sediment control plans",null,null,null,null,null,null,null,null,null,null,null,null,null,null,null,null,null,null,null,null,null,0,{"$error":"#DIV/0!"}]
[null,"Pavement marking details",null,null,null,null,null,null,null,null,null,null,null,null,null,null,null,null,null,null,null,null,null,0,{"$error":"#DIV/0!"}]
[null,"Miscellaneous details",null,null,null,null,null,null,null,null,null,null,null,null,null,null,null,null,null,null,null,null,null,0,{"$error":"#DIV/0!"}]
[null,"Cross sections",null,null,null,null,null,null,null,null,null,null,null,null,null,null,null,null,null,null,null,null,null,0,{"$error":"#DIV/0!"}]
[null,null,null,null,null,null,null,null,null,null,null,null,null,null,null,null,null,null,null,null,null,null,null,0,{"$error":"#DIV/0!"}]
[null,null,null,null,null,null,null,null,null,null,null,null,null,null,null,null,null,null,null,null,null,null,null,0,{"$error":"#DIV/0!"}]
[null,null,null,null,null,null,null,null,null,null,null,null,null,null,null,null,null,null,null,null,null,null,null,0,{"$error":"#DIV/0!"}]
[null,"Incorporate safety plan comments",null,null,null,null,null,null,null,null,null,null,null,null,null,null,null,null,null,null,null,null,null,0,{"$error":"#DIV/0!"}]
[null,"Incorporate 30% review comments",null,null,null,null,null,null,null,null,null,null,null,null,null,null,null,null,null,null,null,null,null,0,{"$error":"#DIV/0!"}]
[null,"Incorporate 60% review comments",null,null,null,null,null,null,null,null,null,null,null,null,null,null,null,null,null,null,null,null,null,0,{"$error":"#DIV/0!"}]
[null,"Prepare bid documents",null,null,null,null,null,null,null,null,null,null,null,null,null,null,null,null,null,null,null,null,null,0,{"$error":"#DIV/0!"}]
[null,"Advertise and distribute bid documents",null,null,null,null,null,null,null,null,null,null,null,null,null,null,null,null,null,null,null,null,null,0,{"$error":"#DIV/0!"}]
[null,"Attend and conduct pre-bid meeting",null,null,null,null,null,null,null,null,null,null,null,null,null,null,null,null,null,null,null,null,null,0,{"$error":"#DIV/0!"}]
[null,"Issue addenda and address questions by prospective bidders ",null,null,null,null,null,null,null,null,null,null,null,null,null,null,null,null,null,null,null,null,null,0,{"$error":"#DIV/0!"}]
[null,"Attend and conduct bid opening, prepare bid tab and recommend award",null,null,null,null,null,null,null,null,null,null,null,null,null,null,null,null,null,null,null,null,null,0,{"$error":"#DIV/0!"}]
[null,"Grant close-out",null,null,null,null,null,null,null,null,null,null,null,null,null,null,null,null,null,null,null,null,null,0,{"$error":"#DIV/0!"}]
[null,null,null,null,null,null,null,null,null,null,null,null,null,null,null,null,null,null,null,null,null,null,null,0,{"$error":"#DIV/0!"}]
[null,null,null,null,null,null,null,null,null,null,null,null,null,null,null,null,null,null,null,null,null,null,null,0,{"$error":"#DIV/0!"}]
[null,null,null,null,null,null,null,null,null,null,null,null,null,null,null,null,null,null,null,null,null,null,null,0,{"$error":"#DIV/0!"}]
[null,null,null,null,null,null,null,null,null,null,null,null,null,null,null,null,null,null,null,null,null,null,null,0,{"$error":"#DIV/0!"}]
[null,null,null,null,null,null,null,null,null,null,null,null,null,null,null,null,null,null,null,null,null,null,null,0,{"$error":"#DIV/0!"}]
[null,null,null,null,null,null,null,null,null,null,null,null,null,null,null,null,null,null,null,null,null,null,null,0,{"$error":"#DIV/0!"}]
[null,null,null,null,null,null,null,null,null,null,null,null,null,null,null,null,null,null,null,null,null,null,null,0,{"$error":"#DIV/0!"}]
[null,null,null,null,null,null,null,null,null,null,null,null,null,null,null,null,null,null,null,null,null,null,null,0,{"$error":"#DIV/0!"}]
[null,null,null,null,null,null,null,null,null,null,null,null,null,null,null,null,null,null,null,null,null,null,null,0,{"$error":"#DIV/0!"}]
[null,null,null,null,null,null,null,null,null,null,null,null,null,null,null,null,null,null,null,null,null,null,null,0,{"$error":"#DIV/0!"}]
[null,"CONSTRUCTION",null,null,null,null,null,null,null,null,null,null,null,null,null,null,null,null,null,null,null,null,null,{"$f":"IF(B180=\"\",0,IF((SUM(D181:W205)=0),SUM(D180:W180),\"\"))","v":0},{"$error":"#DIV/0!"}]
[null,"Project formulation",null,null,null,null,null,null,null,null,null,null,null,null,null,null,null,null,null,null,null,null,null,{"$f":"IF(B181=\"\",0,IF((SUM(D181:W181)=0),0,SUM(D181:W181)))","v":0},{"$error":"#DIV/0!"}]
[null,"Kick off and close-out meetings",null,null,null,null,null,null,null,null,null,null,null,null,null,null,null,null,null,null,null,null,null,0,{"$error":"#DIV/0!"}]
[null,"Budget/schedule",null,null,null,null,null,null,null,null,null,null,null,null,null,null,null,null,null,null,null,null,null,0,{"$error":"#DIV/0!"}]
[null,"Invoicing",null,null,null,null,null,null,null,null,null,null,null,null,null,null,null,null,null,null,null,null,null,0,{"$error":"#DIV/0!"}]
[null,"Internal progress meetings",null,null,null,null,null,null,null,null,null,null,null,null,null,null,null,null,null,null,null,null,null,0,{"$error":"#DIV/0!"}]
[null,"Sub consultant coordination and management",null,null,null,null,null,null,null,null,null,null,null,null,null,null,null,null,null,null,null,null,null,0,{"$error":"#DIV/0!"}]
[null,"Project work plan and field safety instructions",null,null,null,null,null,null,null,null,null,null,null,null,null,null,null,null,null,null,null,null,null,0,{"$error":"#DIV/0!"}]
[null,"Program management support services",null,null,null,null,null,null,null,null,null,null,null,null,null,null,null,null,null,null,null,null,null,0,{"$error":"#DIV/0!"}]
[null,"RPR, inspection, material testing, and reporting",null,null,null,null,null,null,null,null,null,null,null,null,null,null,null,null,null,null,null,null,null,0,{"$error":"#DIV/0!"}]
[null,"Project Site/field review/visit",null,null,null,null,null,null,null,null,null,null,null,null,null,null,null,null,null,null,null,null,null,0,{"$error":"#DIV/0!"}]
[null,"Geotechnical investigations and testing",null,null,null,null,null,null,null,null,null,null,null,null,null,null,null,null,null,null,null,null,null,0,{"$error":"#DIV/0!"}]
[null,"General coordination and grant admin (X months)",null,null,null,null,null,null,null,null,null,null,null,null,null,null,null,null,null,null,null,null,null,0,{"$error":"#DIV/0!"}]
[null,"Coordination meetings",null,null,null,null,null,null,null,null,null,null,null,null,null,null,null,null,null,null,null,null,null,0,{"$error":"#DIV/0!"}]
[null,"Progress reports and invoices",null,null,null,null,null,null,null,null,null,null,null,null,null,null,null,null,null,null,null,null,null,0,{"$error":"#DIV/0!"}]
[null,"Project schedule",null,null,null,null,null,null,null,null,null,null,null,null,null,null,null,null,null,null,null,null,null,0,{"$error":"#DIV/0!"}]
[null,null,null,null,null,null,null,null,null,null,null,null,null,null,null,null,null,null,null,null,null,null,null,0,{"$error":"#DIV/0!"}]
[null,null,null,null,null,null,null,null,null,null,null,null,null,null,null,null,null,null,null,null,null,null,null,0,{"$error":"#DIV/0!"}]
[null,null,null,null,null,null,null,null,null,null,null,null,null,null,null,null,null,null,null,null,null,null,null,0,{"$error":"#DIV/0!"}]
[null,null,null,null,null,null,null,null,null,null,null,null,null,null,null,null,null,null,null,null,null,null,null,0,{"$error":"#DIV/0!"}]
[null,null,null,null,null,null,null,null,null,null,null,null,null,null,null,null,null,null,null,null,null,null,null,0,{"$error":"#DIV/0!"}]
[null,null,null,null,null,null,null,null,null,null,null,null,null,null,null,null,null,null,null,null,null,null,null,0,{"$error":"#DIV/0!"}]
[null,null,null,null,null,null,null,null,null,null,null,null,null,null,null,null,null,null,null,null,null,null,null,0,{"$error":"#DIV/0!"}]
[null,null,null,null,null,null,null,null,null,null,null,null,null,null,null,null,null,null,null,null,null,null,null,0,{"$f":"IF(X203=\"\",\"\",SUM((X203/$X$261)))","v":{"$error":"#DIV/0!"}}]
[null,null,null,null,null,null,null,null,null,null,null,null,null,null,null,null,null,null,null,null,null,null,null,0,{"$error":"#DIV/0!"}]
[null,null,null,null,null,null,null,null,null,null,null,null,null,null,null,null,null,null,null,null,null,null,null,0,{"$error":"#DIV/0!"}]
[null,"OTHER",null,null,null,null,null,null,null,null,null,null,null,null,null,null,null,null,null,null,null,null,null,{"$f":"IF(B206=\"\",0,IF((SUM(D207:W260)=0),SUM(D206:W206),\"\"))","v":0},{"$error":"#DIV/0!"}]
[null,null,null,null,null,null,null,null,null,null,null,null,null,null,null,null,null,null,null,null,null,null,null,{"$f":"IF(B207=\"\",0,IF((SUM(D207:W207)=0),0,SUM(D207:W207)))","v":0},{"$error":"#DIV/0!"}]
[null,null,null,null,null,null,null,null,null,null,null,null,null,null,null,null,null,null,null,null,null,null,null,0,{"$error":"#DIV/0!"}]
[null,null,null,null,null,null,null,null,null,null,null,null,null,null,null,null,null,null,null,null,null,null,null,0,{"$error":"#DIV/0!"}]
[null,null,null,null,null,null,null,null,null,null,null,null,null,null,null,null,null,null,null,null,null,null,null,0,{"$error":"#DIV/0!"}]
[null,null,null,null,null,null,null,null,null,null,null,null,null,null,null,null,null,null,null,null,null,null,null,0,{"$error":"#DIV/0!"}]
[null,null,null,null,null,null,null,null,null,null,null,null,null,null,null,null,null,null,null,null,null,null,null,0,{"$error":"#DIV/0!"}]
[null,null,null,null,null,null,null,null,null,null,null,null,null,null,null,null,null,null,null,null,null,null,null,0,{"$error":"#DIV/0!"}]
[null,null,null,null,null,null,null,null,null,null,null,null,null,null,null,null,null,null,null,null,null,null,null,0,{"$error":"#DIV/0!"}]
[null,null,null,null,null,null,null,null,null,null,null,null,null,null,null,null,null,null,null,null,null,null,null,0,{"$error":"#DIV/0!"}]
[null,null,null,null,null,null,null,null,null,null,null,null,null,null,null,null,null,null,null,null,null,null,null,0,{"$error":"#DIV/0!"}]
[null,null,null,null,null,null,null,null,null,null,null,null,null,null,null,null,null,null,null,null,null,null,null,0,{"$error":"#DIV/0!"}]
[null,null,null,null,null,null,null,null,null,null,null,null,null,null,null,null,null,null,null,null,null,null,null,0,{"$error":"#DIV/0!"}]
[null,null,null,null,null,null,null,null,null,null,null,null,null,null,null,null,null,null,null,null,null,null,null,0,{"$error":"#DIV/0!"}]
[null,null,null,null,null,null,null,null,null,null,null,null,null,null,null,null,null,null,null,null,null,null,null,0,{"$error":"#DIV/0!"}]
[null,null,null,null,null,null,null,null,null,null,null,null,null,null,null,null,null,null,null,null,null,null,null,0,{"$error":"#DIV/0!"}]
[null,null,null,null,null,null,null,null,null,null,null,null,null,null,null,null,null,null,null,null,null,null,null,0,{"$error":"#DIV/0!"}]
[null,null,null,null,null,null,null,null,null,null,null,null,null,null,null,null,null,null,null,null,null,null,null,0,{"$error":"#DIV/0!"}]
[null,null,null,null,null,null,null,null,null,null,null,null,null,null,null,null,null,null,null,null,null,null,null,0,{"$error":"#DIV/0!"}]
[null,null,null,null,null,null,null,null,null,null,null,null,null,null,null,null,null,null,null,null,null,null,null,0,{"$error":"#DIV/0!"}]
[null,null,null,null,null,null,null,null,null,null,null,null,null,null,null,null,null,null,null,null,null,null,null,0,{"$error":"#DIV/0!"}]
[null,null,null,null,null,null,null,null,null,null,null,null,null,null,null,null,null,null,null,null,null,null,null,0,{"$error":"#DIV/0!"}]
[null,null,null,null,null,null,null,null,null,null,null,null,null,null,null,null,null,null,null,null,null,null,null,0,{"$error":"#DIV/0!"}]
[null,null,null,null,null,null,null,null,null,null,null,null,null,null,null,null,null,null,null,null,null,null,null,0,{"$error":"#DIV/0!"}]
[null,null,null,null,null,null,null,null,null,null,null,null,null,null,null,null,null,null,null,null,null,null,null,0,{"$error":"#DIV/0!"}]
[null,null,null,null,null,null,null,null,null,null,null,null,null,null,null,null,null,null,null,null,null,null,null,0,{"$error":"#DIV/0!"}]
[null,null,null,null,null,null,null,null,null,null,null,null,null,null,null,null,null,null,null,null,null,null,null,0,{"$error":"#DIV/0!"}]
[null,null,null,null,null,null,null,null,null,null,null,null,null,null,null,null,null,null,null,null,null,null,null,0,{"$error":"#DIV/0!"}]
[null,null,null,null,null,null,null,null,null,null,null,null,null,null,null,null,null,null,null,null,null,null,null,0,{"$error":"#DIV/0!"}]
[null,null,null,null,null,null,null,null,null,null,null,null,null,null,null,null,null,null,null,null,null,null,null,0,{"$error":"#DIV/0!"}]
[null,null,null,null,null,null,null,null,null,null,null,null,null,null,null,null,null,null,null,null,null,null,null,0,{"$error":"#DIV/0!"}]
[null,null,null,null,null,null,null,null,null,null,null,null,null,null,null,null,null,null,null,null,null,null,null,0,{"$error":"#DIV/0!"}]
[null,null,null,null,null,null,null,null,null,null,null,null,null,null,null,null,null,null,null,null,null,null,null,0,{"$error":"#DIV/0!"}]
[null,null,null,null,null,null,null,null,null,null,null,null,null,null,null,null,null,null,null,null,null,null,null,0,{"$error":"#DIV/0!"}]
[null,null,null,null,null,null,null,null,null,null,null,null,null,null,null,null,null,null,null,null,null,null,null,0,{"$error":"#DIV/0!"}]
[null,null,null,null,null,null,null,null,null,null,null,null,null,null,null,null,null,null,null,null,null,null,null,0,{"$error":"#DIV/0!"}]
[null,null,null,null,null,null,null,null,null,null,null,null,null,null,null,null,null,null,null,null,null,null,null,0,{"$error":"#DIV/0!"}]
[null,null,null,null,null,null,null,null,null,null,null,null,null,null,null,null,null,null,null,null,null,null,null,0,{"$error":"#DIV/0!"}]
[null,null,null,null,null,null,null,null,null,null,null,null,null,null,null,null,null,null,null,null,null,null,null,0,{"$error":"#DIV/0!"}]
[null,null,null,null,null,null,null,null,null,null,null,null,null,null,null,null,null,null,null,null,null,null,null,0,{"$error":"#DIV/0!"}]
[null,null,null,null,null,null,null,null,null,null,null,null,null,null,null,null,null,null,null,null,null,null,null,0,{"$error":"#DIV/0!"}]
[null,null,null,null,null,null,null,null,null,null,null,null,null,null,null,null,null,null,null,null,null,null,null,0,{"$error":"#DIV/0!"}]
[null,null,null,null,null,null,null,null,null,null,null,null,null,null,null,null,null,null,null,null,null,null,null,0,{"$error":"#DIV/0!"}]
[null,null,null,null,null,null,null,null,null,null,null,null,null,null,null,null,null,null,null,null,null,null,null,0,{"$error":"#DIV/0!"}]
[null,null,null,null,null,null,null,null,null,null,null,null,null,null,null,null,null,null,null,null,null,null,null,0,{"$error":"#DIV/0!"}]
[null,null,null,null,null,null,null,null,null,null,null,null,null,null,null,null,null,null,null,null,null,null,null,0,{"$error":"#DIV/0!"}]
[null,null,null,null,null,null,null,null,null,null,null,null,null,null,null,null,null,null,null,null,null,null,null,0,{"$error":"#DIV/0!"}]
[null,null,null,null,null,null,null,null,null,null,null,null,null,null,null,null,null,null,null,null,null,null,null,0,{"$error":"#DIV/0!"}]
[null,null,null,null,null,null,null,null,null,null,null,null,null,null,null,null,null,null,null,null,null,null,null,0,{"$error":"#DIV/0!"}]
[null,null,null,null,null,null,null,null,null,null,null,null,null,null,null,null,null,null,null,null,null,null,null,0,{"$error":"#DIV/0!"}]
[null,null,null,null,null,null,null,null,null,null,null,null,null,null,null,null,null,null,null,null,null,null,null,0,{"$error":"#DIV/0!"}]
[null,null,null,null,null,null,null,null,null,null,null,null,null,null,null,null,null,null,null,null,null,null,null,0,{"$error":"#DIV/0!"}]
[null,null,null,null,null,null,null,null,null,null,null,null,null,null,null,null,null,null,null,null,null,null,null,0,{"$error":"#DIV/0!"}]
[null,null,null,null,null,null,null,null,null,null,null,null,null,null,null,null,null,null,null,null,null,null,null,{"$f":"IF(B259=\"\",0,IF((SUM(D259:W259)=0),0,SUM(D259:W259)))","v":0},{"$error":"#DIV/0!"}]
[null,null,null,null,null,null,null,null,null,null,null,null,null,null,null,null,null,null,null,null,null,null,null,{"$f":"IF(B260=\"\",0,IF((SUM(D260:W260)=0),0,SUM(D260:W260)))","v":0},{"$error":"#DIV/0!"}]
[null,"TOTAL WORKHOURS/CATEGORY:",null,{"$f":"SUM(D11:D260)","v":0},0,0,0,0,0,0,0,0,0,0,0,0,0,0,0,0,0,0,0,{"$f":"SUM(X11:X260)","v":0},{"$f":"SUM(Y11:Y260)","v":{"$error":"#DIV/0!"}},{"$f":"SUM(Z12:Z260)","v":0}]
[null,"TOTAL WORKDAYS/CATEGORY:",null,{"$f":"D261/8","v":0},{"$f":"E261/8","v":0},0,0,0,0,0,0,0,0,0,0,0,0,0,0,0,0,0,0]
[null,"HOURLY SALARY RATE:",null,{"$f":"'PEF CLASSIFICATION SHEET'!E531","v":0},{"$f":"'PEF CLASSIFICATION SHEET'!E532","v":0},{"$f":"'PEF CLASSIFICATION SHEET'!E533","v":0},{"$f":"'PEF CLASSIFICATION SHEET'!E534","v":0},{"$f":"'PEF CLASSIFICATION SHEET'!E535","v":0},{"$f":"'PEF CLASSIFICATION SHEET'!E536","v":0},{"$f":"'PEF CLASSIFICATION SHEET'!E537","v":0},{"$f":"'PEF CLASSIFICATION SHEET'!E538","v":0},{"$f":"'PEF CLASSIFICATION SHEET'!E539","v":0},{"$f":"'PEF CLASSIFICATION SHEET'!E540","v":0},{"$f":"'PEF CLASSIFICATION SHEET'!E541","v":0},{"$f":"'PEF CLASSIFICATION SHEET'!E542","v":0},{"$f":"'PEF CLASSIFICATION SHEET'!E543","v":0},{"$f":"'PEF CLASSIFICATION SHEET'!E544","v":0},{"$f":"'PEF CLASSIFICATION SHEET'!E545","v":0},{"$f":"'PEF CLASSIFICATION SHEET'!E546","v":0},{"$f":"'PEF CLASSIFICATION SHEET'!E547","v":0},{"$f":"'PEF CLASSIFICATION SHEET'!E548","v":0},{"$f":"'PEF CLASSIFICATION SHEET'!E549","v":0},{"$f":"'PEF CLASSIFICATION SHEET'!E550","v":0}]
[null,"RATES PER DAY:",null,{"$f":"D263*8","v":0},0,0,0,0,0,0,0,0,0,0,0,0,0,0,0,0,0,0,0]
[null,"PAYROLL BURDEN:",null,{"$f":"SUM(D261*D263)","v":0},{"$f":"SUM(E261*E263)","v":0},0,0,0,0,0,0,0,0,0,0,0,0,0,0,0,0,0,0]
[null,"TOTAL WORKDAYS:",null,{"$f":"SUM(D262:W262)","v":0}]
[null,"TOTAL PAYROLL BURDEN:",null,{"$f":"SUM(D265:W265)","v":0}]
[null,"AVERAGE COST PER HOUR:",null,{"$f":"SUM(D267/(D266*8))","v":{"$error":"#DIV/0!"}}]
[null,"GENERAL OVERHEAD:",{"$f":"AVIATION.PRIME_CONSULTANT_OVERHEAD","v":0},{"$f":"SUM(D267*C269)","v":0}]
[null,"SUBTOTAL:",null,{"$f":"SUM(D267+D269)","v":0}]
[null,"COMPARATIVE FEE:",{"$f":"AVIATION.PRIME_CONSULTANT_FEE","v":0},{"$f":"SUM(D270*C271)","v":0}]
[null,"FACILITIES COST OF CAPITAL:",{"$f":"AVIATION.PRIME_CONSULTANT_COSTofCAPITAL","v":0},{"$f":"SUM(D267*C272)","v":0}]
[null,"TOTAL:",null,{"$f":"SUM(D270:D272)","v":0}]
[null,"DIRECT EXPENSES:",null,{"$f":"AVIATION.PRIME_DIRECT_NONSALARY_TOTAL","v":0}]
[null,"AVIATION GRAND TOTAL:",null,{"$f":"SUM(D273:D274)","v":0}]

{"sheet":"Aviation-Exp","index":66,"n_rows":46,"n_cols":8,"rows_kept":46,"cut":false,"hidden":true,"merged":[[0,0,0,7],[1,3,1,7]]}
["AVIATION--PRIME DIRECT EXPENSES"]
["TIP NUMBER",{"$f":"TIP.NUMBER","v":0},"FIRM:",{"$f":"Aviation!G3","v":"CONSULTANT NAME"}]
[]
["GENERAL PROJECT WORK:","ITEM","QTY","DESCRIPTION",null,null,"UNIT COST "]
[null,"Travel:"]
[null,"Sedan",0,"Trip(s) @",0,"miles @",{"$f":"SEDAN","v":0.7},{"$f":"SUM(C6*E6*G6)","v":0}]
[null,"Carry All",0,"Trip(s) @",0,"miles @",{"$f":"CARRYALL","v":0.72},{"$f":"SUM(C7*E7*G7)","v":0}]
[null,"Car Rental",null,null,0,"days @ ",{"$f":"CARRENTAL","v":50},{"$f":"SUM(E8*G8)","v":0}]
[null,"Gas for Rental",null,null,0,"miles @",{"$f":"GASforRENTAL","v":0.2},{"$f":"SUM(E9*G9)","v":0}]
[null,"Parking:",0,"Trip(s) @",null,null,{"$f":"PARKING","v":3},{"$f":"SUM(C10*G10)","v":0}]
[null,"Per Diem:",0,"Breakfast",null,null,{"$f":"BREAKFAST","v":10.1},{"$f":"SUM(C11*G11)","v":0}]
[null,null,0,"Lunch",null,null,{"$f":"LUNCH","v":13.3},0]
[null,null,0,"Dinner",null,null,{"$f":"DINNER","v":23.1},0]
[null,null,0,"Lodging",null,null,{"$f":"LODGING_LUMP.SUM","v":95},0]
[null,"Reproduction:",0,"8 1/2 x 11 B & W Copies @",null,null,{"$f":"LETTERCOPIES","v":0.14000000000000001},0]
[null,null,0,"11 x 17 B & W Copies @",null,null,{"$f":"LEDGERCOPIES","v":0.34},0]
[null,null,0,"8 1/2 x 11 Color Copies @",null,null,{"$f":"LETTERCOLOR","v":0.83},0]
[null,null,0,"11 x 17 Color Copies @",null,null,{"$f":"LEDGERCOLOR","v":1.66},0]
[null,null,0,"SQ. FT. of Plots (B & W or Color)",null,"<65 SQ. FT.*",{"$f":"ROLLPLOTSshort","v":6.5},0]
[null,null,0,"SQ. FT. of Plots (B & W or Color)",null,">65 SQ. FT.*",{"$f":"ROLLPLOTSlong","v":1.5},0]
[null,null,0,"Cover(s) @",null,null,{"$f":"COVERS","v":0.5},0]
[null,null,0,"Binder(s) @",null,null,{"$f":"BINDERS","v":0.5},0]
[null,null,0,"Blueprints - 8 1/2 x 11 @",null,null,{"$f":"BLUEPRINTSLETTER","v":0.35},0]
[null,null,0,"Blueprints - 42 x 72 @",null,null,{"$f":"BLUEPRINTSLARGE","v":1.3},0]
[null,"Film and Developing:",0,"Roll(s) @",null,null,{"$f":"FILM","v":20},0]
[null,null,null,null,null,"Subtotal",null,{"$f":"SUM(H6:H25)","v":0}]
["MAPS AND DOCUMENTS:","ITEM","QTY","DESCRIPTION",null,null,"UNIT COST "]
[null,"County Tax Maps:",0,"Map(s) @",null,null,{"$f":"County_Tax_Maps","v":7},{"$f":"SUM(C28*G28)","v":0}]
[null,"USGS Maps:",0,"Map(s) @",null,null,{"$f":"USGSMAPS","v":7},{"$f":"SUM(C29*G29)","v":0}]
[null,null,null,null,null,"Subtotal",null,{"$f":"SUM(H28:H29)","v":0}]
["Miscellaneous Other","ITEM","QTY","DESCRIPTION",null,null,"UNIT COST "]
[null,null,null,null,null,null,null,{"$f":"SUM(C32*G32)","v":0}]
[null,null,null,null,null,null,null,{"$f":"SUM(C33*G33)","v":0}]
[null,null,null,null,null,null,null,0]
[null,null,null,null,null,null,null,0]
[null,null,null,null,null,null,null,0]
[null,null,null,null,null,null,null,0]
[null,null,null,null,null,null,null,0]
[null,null,null,null,null,null,null,{"$f":"SUM(C39*G39)","v":0}]
[null,null,null,null,null,null,null,{"$f":"SUM(C40*G40)","v":0}]
[null,null,null,null,null,null,null,{"$f":"SUM(C41*G41)","v":0}]
[null,null,null,null,null,"Subtotal",null,{"$f":"SUM(H32:H41)","v":0}]
[]
[null,null,null,null,null,"TOTAL",null,{"$f":"SUM(H26+H30+H42)","v":0}]
[]
[null,"* Sum of all plots "]

{"sheet":"PM-Sub1","index":67,"n_rows":144,"n_cols":19,"rows_kept":144,"cut":false,"hidden":true,"merged":[[143,8,143,14],[143,15,143,16],[136,3,136,6],[136,8,136,18],[137,8,137,14],[137,15,137,16],[138,8,138,14],[138,15,138,16],[133,1,134,1],[133,3,134,4],[116,17,116,18],[117,17,117,18],[118,17,118,18],[119,17,119,18],[141,8,141,18],[142,8,142,14],[142,15,142,16],[110,17,110,18],[111,17,111,18],[112,17,112,18],[113,17,113,18],[114,17,114,18],[115,17,115,18],[104,17,104,18],[105,17,105,18],[106,17,106,18],[107,17,107,18],[108,17,108,18],[109,17,109,18],[98,17,98,18],[99,17,99,18],[100,17,100,18],[101,17,101,18],[102,17,102,18],[103,17,103,18],[92,17,92,18],[93,17,93,18],[94,17,94,18],[95,17,95,18],[96,17,96,18],[97,17,97,18],[86,17,86,18],[87,17,87,18],[88,17,88,18],[89,17,89,18],[90,17,90,18],[91,17,91,18],[80,17,80,18],[81,17,81,18],[82,17,82,18],[83,17,83,18],[84,17,84,18],[85,17,85,18],[74,17,74,18],[75,17,75,18],[76,17,76,18],[77,17,77,18],[78,17,78,18],[79,17,79,18],[68,17,68,18],[69,17,69,18],[70,17,70,18],[71,17,71,18],[72,17,72,18],[73,17,73,18],[62,17,62,18],[63,17,63,18],[64,17,64,18],[65,17,65,18],[66,17,66,18],[67,17,67,18],[56,17,56,18],[57,17,57,18],[58,17,58,18],[59,17,59,18],[60,17,60,18],[61,17,61,18],[50,17,50,18],[51,17,51,18],[52,17,52,18],[53,17,53,18],[54,17,54,18],[55,17,55,18],[44,17,44,18],[45,17,45,18],[46,17,46,18],[47,17,47,18],[48,17,48,18],[49,17,49,18],[38,17,38,18],[39,17,39,18],[40,17,40,18],[41,17,41,18],[42,17,42,18],[43,17,43,18],[32,17,32,18],[33,17,33,18],[34,17,34,18],[35,17,35,18],[36,17,36,18],[37,17,37,18],[26,17,26,18],[27,17,27,18],[28,17,28,18],[29,17,29,18],[30,17,30,18],[31,17,31,18],[20,17,20,18],[21,17,21,18],[22,17,22,18],[23,17,23,18],[24,17,24,18],[25,17,25,18],[14,17,14,18],[15,17,15,18],[16,17,16,18],[17,17,17,18],[18,17,18,18],[19,17,19,18],[6,12,10,12],[6,13,10,13],[9,17,9,18],[11,17,11,18],[12,17,12,18],[13,17,13,18],[4,3,4,13],[6,3,10,3],[6,4,10,4],[6,5,10,5],[6,6,10,6],[6,7,10,7],[6,8,10,8],[6,9,10,9],[6,10,10,10],[6,11,10,11],[2,20,2,21],[3,1,3,4],[3,6,3,7],[3,10,3,11],[3,15,3,16],[3,17,3,18],[3,20,3,21],[0,0,1,4],[0,5,1,18],[2,1,2,4],[2,6,2,7],[2,10,2,11],[2,15,2,16],[2,17,2,18]]}
[{"$f":"PDEA_OTHER_SUB1_CONSULTANT_DISCIPLINE","v":"Project Mgmt--SUB1"},null,null,null,null,"DESIGN BREAKDOWN WORKSHEET"]
[]
["PROJECT DESCRIPTION: ",{"$f":"PROJECT.DESCRIPTION","v":0},null,null,null,"FIRM:  ",{"$f":"PDEA_OTHER_SUB1_CONSULTANT_NAME","v":"CONSULTANT NAME"},null,"TASK ORDER NUMBER:",null,{"$f":"TASK.ORDER.NUMBER","v":0},null,null,null,null,"DATE PREPARED:",null,{"$f":"IF(SCOPE.MANDAY.ESTIMATE.PREPARED.BY.DATE=\"\",\"\",SCOPE.MANDAY.ESTIMATE.PREPARED.BY.DATE)","v":""}]
["PREPARED BY:  ",{"$f":"IF(SCOPE.MANDAY.ESTIMATE.PREPARED.BY=\"\",\"\",SCOPE.MANDAY.ESTIMATE.PREPARED.BY)","v":""},null,null,null,"TIP NUMBER:",{"$f":"TIP.NUMBER","v":0},null,"WBS NUMBER:",null,{"$f":"WBS.NUMBER","v":""},null,null,null,null,"REVISION DATE:",null,{"$f":"IF(SCOPE.MANDAY.ESTIMATE.APPROVED.BY.DATE=\"\",\"\",SCOPE.MANDAY.ESTIMATE.APPROVED.BY.DATE)","v":""}]
[null,null,null,"ESTIMATED WORK DAYS"]
[null,null,"Employee",{"$f":"IF('PEF CLASSIFICATION SHEET'!$D553=\"\",\"\",LEFT('PEF CLASSIFICATION SHEET'!$D553,4))","v":""},{"$f":"IF('PEF CLASSIFICATION SHEET'!$D554=\"\",\"\",LEFT('PEF CLASSIFICATION SHEET'!$D554,4))","v":""},{"$f":"IF('PEF CLASSIFICATION SHEET'!$D555=\"\",\"\",LEFT('PEF CLASSIFICATION SHEET'!$D555,4))","v":""},{"$f":"IF('PEF CLASSIFICATION SHEET'!$D556=\"\",\"\",LEFT('PEF CLASSIFICATION SHEET'!$D556,4))","v":""},{"$f":"IF('PEF CLASSIFICATION SHEET'!$D557=\"\",\"\",LEFT('PEF CLASSIFICATION SHEET'!$D557,4))","v":""},{"$f":"IF('PEF CLASSIFICATION SHEET'!$D558=\"\",\"\",LEFT('PEF CLASSIFICATION SHEET'!$D558,4))","v":""},{"$f":"IF('PEF CLASSIFICATION SHEET'!$D559=\"\",\"\",LEFT('PEF CLASSIFICATION SHEET'!$D559,4))","v":""},{"$f":"IF('PEF CLASSIFICATION SHEET'!D560=\"\",\"\",LEFT('PEF CLASSIFICATION SHEET'!D560,4))","v":""},{"$f":"IF('PEF CLASSIFICATION SHEET'!D561=\"\",\"\",LEFT('PEF CLASSIFICATION SHEET'!D561,4))","v":""},{"$f":"IF('PEF CLASSIFICATION SHEET'!D562=\"\",\"\",LEFT('PEF CLASSIFICATION SHEET'!D562,4))","v":""},{"$f":"IF('PEF CLASSIFICATION SHEET'!D563=\"\",\"\",LEFT('PEF CLASSIFICATION SHEET'!D563,4))","v":""}]
[null,null,null,{"$f":"IF('PEF CLASSIFICATION SHEET'!$C553=\"\",\"\",'PEF CLASSIFICATION SHEET'!$C553)","v":""},{"$f":"IF('PEF CLASSIFICATION SHEET'!$C554=\"\",\"\",'PEF CLASSIFICATION SHEET'!$C554)","v":""},{"$f":"IF('PEF CLASSIFICATION SHEET'!$C555=\"\",\"\",'PEF CLASSIFICATION SHEET'!$C555)","v":""},{"$f":"IF('PEF CLASSIFICATION SHEET'!$C556=\"\",\"\",'PEF CLASSIFICATION SHEET'!$C556)","v":""},{"$f":"IF('PEF CLASSIFICATION SHEET'!$C557=\"\",\"\",'PEF CLASSIFICATION SHEET'!$C557)","v":""},{"$f":"IF('PEF CLASSIFICATION SHEET'!$C558=\"\",\"\",'PEF CLASSIFICATION SHEET'!$C558)","v":""},{"$f":"IF('PEF CLASSIFICATION SHEET'!$C559=\"\",\"\",'PEF CLASSIFICATION SHEET'!$C559)","v":""},{"$f":"IF('PEF CLASSIFICATION SHEET'!C560=\"\",\"\",'PEF CLASSIFICATION SHEET'!C560)","v":""},{"$f":"IF('PEF CLASSIFICATION SHEET'!C561=\"\",\"\",'PEF CLASSIFICATION SHEET'!C561)","v":""},{"$f":"IF('PEF CLASSIFICATION SHEET'!C562=\"\",\"\",'PEF CLASSIFICATION SHEET'!C562)","v":""},{"$f":"IF('PEF CLASSIFICATION SHEET'!C563=\"\",\"\",'PEF CLASSIFICATION SHEET'!C563)","v":""}]
[null,null,"Classification",null,null,null,null,null,null,null,null,null,null,null,"SUB-","%","PEF"]
[null,null,null,null,null,null,null,null,null,null,null,null,null,null,"TOTAL","OF","ESTIMATE"]
["TASK","TASK DESCRIPTION",null,null,null,null,null,null,null,null,null,null,null,null,null,"PROJECT",null,"COMMENTS"]
["NO."]
["2PM1/3PM1/4PM1","Project Management ",null,null,null,null,null,null,null,null,null,null,null,null,{"$f":"IF(B12=\"\",0,IF((SUM(D12:N12)=0),\"\",SUM(D12:N12)))","v":""},{"$f":"IF(O12=\"\",\"\",SUM((O12/$O$121)))","v":""}]
[1,"Project Management and Coordination ",null,null,null,null,null,null,null,null,null,null,null,null,{"$f":"IF(B13=\"\",0,IF((SUM(D13:N13)=0),\"\",SUM(D13:N13)))","v":""},{"$f":"IF(O13=\"\",\"\",SUM((O13/$O$121)))","v":""}]
[null,"Coordination with NCDOT PM",null,null,null,null,null,null,null,null,null,null,null,null,"",""]
[null,"Coordination with other NCDOT disciplines/units",null,null,null,null,null,null,null,null,null,null,null,null,"",""]
[null,"Coordination with external stakeholders and agencies",null,null,null,null,null,null,null,null,null,null,null,null,"",""]
[null,"Internal coordination with project team",null,null,null,null,null,null,null,null,null,null,null,null,"",""]
[null,"Document all meetings and calls",null,null,null,null,null,null,null,null,null,null,null,null,"",""]
[null,"Maintain administrative record and internal project files",null,null,null,null,null,null,null,null,null,null,null,null,"",""]
[null,"Maintain Connect/SharePoint files and ATLAS Workbench",null,null,null,null,null,null,null,null,null,null,null,null,"",""]
[null,"Prepare for and attend meetings",null,null,null,null,null,null,null,null,null,null,null,null,"",""]
[null,null,null,null,null,null,null,null,null,null,null,null,null,null,0,{"$error":"#DIV/0!"}]
[null,null,null,null,null,null,null,null,null,null,null,null,null,null,0,{"$error":"#DIV/0!"}]
[null,null,null,null,null,null,null,null,null,null,null,null,null,null,0,{"$error":"#DIV/0!"}]
[2,"Project Schedule",null,null,null,null,null,null,null,null,null,null,null,null,"",""]
[null,"Develop Schedule",null,null,null,null,null,null,null,null,null,null,null,null,"",""]
[null,"Maintain Schedule",null,null,null,null,null,null,null,null,null,null,null,null,"",""]
[null,null,null,null,null,null,null,null,null,null,null,null,null,null,0,{"$error":"#DIV/0!"}]
[null,null,null,null,null,null,null,null,null,null,null,null,null,null,0,{"$error":"#DIV/0!"}]
[null,null,null,null,null,null,null,null,null,null,null,null,null,null,0,{"$error":"#DIV/0!"}]
[null,null,null,null,null,null,null,null,null,null,null,null,null,null,0,{"$error":"#DIV/0!"}]
[3,"Monthly PM Status Reports and Invoicing",null,null,null,null,null,null,null,null,null,null,null,null,"",""]
[null,null,null,null,null,null,null,null,null,null,null,null,null,null,0,{"$error":"#DIV/0!"}]
[null,null,null,null,null,null,null,null,null,null,null,null,null,null,0,{"$error":"#DIV/0!"}]
[null,null,null,null,null,null,null,null,null,null,null,null,null,null,0,{"$error":"#DIV/0!"}]
[null,null,null,null,null,null,null,null,null,null,null,null,null,null,0,{"$error":"#DIV/0!"}]
[null,null,null,null,null,null,null,null,null,null,null,null,null,null,0,{"$error":"#DIV/0!"}]
[null,null,null,null,null,null,null,null,null,null,null,null,null,null,0,{"$error":"#DIV/0!"}]
[4,"QC/QA Procedures",null,null,null,null,null,null,null,null,null,null,null,null,"",""]
[null,null,null,null,null,null,null,null,null,null,null,null,null,null,0,{"$error":"#DIV/0!"}]
[null,null,null,null,null,null,null,null,null,null,null,null,null,null,0,{"$error":"#DIV/0!"}]
[null,null,null,null,null,null,null,null,null,null,null,null,null,null,0,{"$error":"#DIV/0!"}]
[null,null,null,null,null,null,null,null,null,null,null,null,null,null,0,{"$error":"#DIV/0!"}]
[null,null,null,null,null,null,null,null,null,null,null,null,null,null,0,{"$error":"#DIV/0!"}]
[null,null,null,null,null,null,null,null,null,null,null,null,null,null,0,{"$error":"#DIV/0!"}]
[5,"Value Management Tasks",null,null,null,null,null,null,null,null,null,null,null,null,"",""]
[null,null,null,null,null,null,null,null,null,null,null,null,null,null,0,{"$error":"#DIV/0!"}]
[null,null,null,null,null,null,null,null,null,null,null,null,null,null,0,{"$error":"#DIV/0!"}]
[null,null,null,null,null,null,null,null,null,null,null,null,null,null,0,{"$error":"#DIV/0!"}]
[null,null,null,null,null,null,null,null,null,null,null,null,null,null,0,{"$error":"#DIV/0!"}]
[null,null,null,null,null,null,null,null,null,null,null,null,null,null,0,{"$error":"#DIV/0!"}]
[null,null,null,null,null,null,null,null,null,null,null,null,null,null,0,{"$error":"#DIV/0!"}]
[null,"Other Tasks",null,null,null,null,null,null,null,null,null,null,null,null,"",""]
[null,null,null,null,null,null,null,null,null,null,null,null,null,null,0,{"$error":"#DIV/0!"}]
[null,null,null,null,null,null,null,null,null,null,null,null,null,null,0,{"$error":"#DIV/0!"}]
[null,null,null,null,null,null,null,null,null,null,null,null,null,null,0,{"$error":"#DIV/0!"}]
[null,null,null,null,null,null,null,null,null,null,null,null,null,null,0,{"$error":"#DIV/0!"}]
[null,null,null,null,null,null,null,null,null,null,null,null,null,null,0,{"$error":"#DIV/0!"}]
[null,null,null,null,null,null,null,null,null,null,null,null,null,null,0,{"$error":"#DIV/0!"}]
[null,null,null,null,null,null,null,null,null,null,null,null,null,null,0,{"$error":"#DIV/0!"}]
[null,null,null,null,null,null,null,null,null,null,null,null,null,null,0,{"$error":"#DIV/0!"}]
[null,null,null,null,null,null,null,null,null,null,null,null,null,null,0,{"$error":"#DIV/0!"}]
[null,null,null,null,null,null,null,null,null,null,null,null,null,null,0,{"$error":"#DIV/0!"}]
[null,null,null,null,null,null,null,null,null,null,null,null,null,null,0,{"$error":"#DIV/0!"}]
[null,null,null,null,null,null,null,null,null,null,null,null,null,null,0,{"$error":"#DIV/0!"}]
[null,null,null,null,null,null,null,null,null,null,null,null,null,null,{"$f":"IF(B66=\"\",0,IF((SUM(D66:N66)=0),\"\",SUM(D66:N66)))","v":0},{"$error":"#DIV/0!"}]
[null,null,null,null,null,null,null,null,null,null,null,null,null,null,0,{"$f":"IF(O67=\"\",\"\",SUM((O67/$O$121)))","v":{"$error":"#DIV/0!"}}]
[null,null,null,null,null,null,null,null,null,null,null,null,null,null,{"$f":"IF(B68=\"\",0,IF((SUM(D68:N68)=0),\"\",SUM(D68:N68)))","v":0},{"$error":"#DIV/0!"}]
[null,null,null,null,null,null,null,null,null,null,null,null,null,null,0,{"$error":"#DIV/0!"}]
[null,null,null,null,null,null,null,null,null,null,null,null,null,null,0,{"$error":"#DIV/0!"}]
[null,null,null,null,null,null,null,null,null,null,null,null,null,null,0,{"$error":"#DIV/0!"}]
[null,null,null,null,null,null,null,null,null,null,null,null,null,null,0,{"$error":"#DIV/0!"}]
[null,null,null,null,null,null,null,null,null,null,null,null,null,null,0,{"$error":"#DIV/0!"}]
[null,null,null,null,null,null,null,null,null,null,null,null,null,null,0,{"$error":"#DIV/0!"}]
[null,null,null,null,null,null,null,null,null,null,null,null,null,null,0,{"$error":"#DIV/0!"}]
[null,null,null,null,null,null,null,null,null,null,null,null,null,null,0,{"$error":"#DIV/0!"}]
[null,null,null,null,null,null,null,null,null,null,null,null,null,null,{"$f":"IF(B77=\"\",0,IF((SUM(D77:N77)=0),\"\",SUM(D77:N77)))","v":0},{"$f":"IF(O77=\"\",\"\",SUM((O77/$O$121)))","v":{"$error":"#DIV/0!"}}]
[null,null,null,null,null,null,null,null,null,null,null,null,null,null,0,{"$error":"#DIV/0!"}]
[null,null,null,null,null,null,null,null,null,null,null,null,null,null,0,{"$error":"#DIV/0!"}]
[null,null,null,null,null,null,null,null,null,null,null,null,null,null,0,{"$error":"#DIV/0!"}]
[null,null,null,null,null,null,null,null,null,null,null,null,null,null,0,{"$error":"#DIV/0!"}]
[null,null,null,null,null,null,null,null,null,null,null,null,null,null,0,{"$error":"#DIV/0!"}]
[null,null,null,null,null,null,null,null,null,null,null,null,null,null,0,{"$error":"#DIV/0!"}]
[null,null,null,null,null,null,null,null,null,null,null,null,null,null,0,{"$error":"#DIV/0!"}]
[null,null,null,null,null,null,null,null,null,null,null,null,null,null,0,{"$error":"#DIV/0!"}]
[null,null,null,null,null,null,null,null,null,null,null,null,null,null,0,{"$error":"#DIV/0!"}]
[null,null,null,null,null,null,null,null,null,null,null,null,null,null,0,{"$error":"#DIV/0!"}]
[null,null,null,null,null,null,null,null,null,null,null,null,null,null,0,{"$error":"#DIV/0!"}]
[null,null,null,null,null,null,null,null,null,null,null,null,null,null,0,{"$error":"#DIV/0!"}]
[null,null,null,null,null,null,null,null,null,null,null,null,null,null,0,{"$error":"#DIV/0!"}]
[null,null,null,null,null,null,null,null,null,null,null,null,null,null,0,{"$error":"#DIV/0!"}]
[null,null,null,null,null,null,null,null,null,null,null,null,null,null,0,{"$error":"#DIV/0!"}]
[null,null,null,null,null,null,null,null,null,null,null,null,null,null,0,{"$error":"#DIV/0!"}]
[null,null,null,null,null,null,null,null,null,null,null,null,null,null,0,{"$error":"#DIV/0!"}]
[null,null,null,null,null,null,null,null,null,null,null,null,null,null,0,{"$error":"#DIV/0!"}]
[null,null,null,null,null,null,null,null,null,null,null,null,null,null,0,{"$error":"#DIV/0!"}]
[null,null,null,null,null,null,null,null,null,null,null,null,null,null,0,{"$error":"#DIV/0!"}]
[null,null,null,null,null,null,null,null,null,null,null,null,null,null,0,{"$error":"#DIV/0!"}]
[null,null,null,null,null,null,null,null,null,null,null,null,null,null,0,{"$error":"#DIV/0!"}]
[null,null,null,null,null,null,null,null,null,null,null,null,null,null,0,{"$error":"#DIV/0!"}]
[null,null,null,null,null,null,null,null,null,null,null,null,null,null,0,{"$error":"#DIV/0!"}]
[null,null,null,null,null,null,null,null,null,null,null,null,null,null,0,{"$error":"#DIV/0!"}]
[null,null,null,null,null,null,null,null,null,null,null,null,null,null,0,{"$error":"#DIV/0!"}]
[null,null,null,null,null,null,null,null,null,null,null,null,null,null,0,{"$error":"#DIV/0!"}]
[null,null,null,null,null,null,null,null,null,null,null,null,null,null,0,{"$error":"#DIV/0!"}]
[null,null,null,null,null,null,null,null,null,null,null,null,null,null,0,{"$error":"#DIV/0!"}]
[null,null,null,null,null,null,null,null,null,null,null,null,null,null,0,{"$error":"#DIV/0!"}]
[null,null,null,null,null,null,null,null,null,null,null,null,null,null,0,{"$error":"#DIV/0!"}]
[null,null,null,null,null,null,null,null,null,null,null,null,null,null,0,{"$error":"#DIV/0!"}]
[null,null,null,null,null,null,null,null,null,null,null,null,null,null,0,{"$error":"#DIV/0!"}]
[null,null,null,null,null,null,null,null,null,null,null,null,null,null,0,{"$error":"#DIV/0!"}]
[null,null,null,null,null,null,null,null,null,null,null,null,null,null,0,{"$error":"#DIV/0!"}]
[null,null,null,null,null,null,null,null,null,null,null,null,null,null,0,{"$error":"#DIV/0!"}]
[null,null,null,null,null,null,null,null,null,null,null,null,null,null,0,{"$error":"#DIV/0!"}]
[null,null,null,null,null,null,null,null,null,null,null,null,null,null,0,{"$error":"#DIV/0!"}]
[null,null,null,null,null,null,null,null,null,null,null,null,null,null,0,{"$error":"#DIV/0!"}]
[null,null,null,null,null,null,null,null,null,null,null,null,null,null,0,{"$error":"#DIV/0!"}]
[null,null,null,null,null,null,null,null,null,null,null,null,null,null,0,{"$error":"#DIV/0!"}]
[null,null,null,null,null,null,null,null,null,null,null,null,null,null,0,{"$error":"#DIV/0!"}]
[null,null,null,null,null,null,null,null,null,null,null,null,null,null,0,{"$error":"#DIV/0!"}]
[null,"TOTAL WORKDAYS/CATEGORY:",null,{"$f":"SUM(D12:D120)","v":0},0,0,0,0,0,0,0,0,{"$f":"SUM(M12:M120)","v":0},{"$f":"SUM(N12:N120)","v":0},{"$f":"SUM(O12:O120)","v":0},{"$f":"SUM(P12:P120)","v":{"$error":"#DIV/0!"}},{"$f":"SUM(Q12:Q120)","v":0}]
[null,"HOURLY SALARY RATE:",null,{"$f":"'PEF CLASSIFICATION SHEET'!$E553","v":0},{"$f":"'PEF CLASSIFICATION SHEET'!$E554","v":0},{"$f":"'PEF CLASSIFICATION SHEET'!$E555","v":0},{"$f":"'PEF CLASSIFICATION SHEET'!$E556","v":0},{"$f":"'PEF CLASSIFICATION SHEET'!$E557","v":0},{"$f":"'PEF CLASSIFICATION SHEET'!$E558","v":0},{"$f":"'PEF CLASSIFICATION SHEET'!$E559","v":0},{"$f":"'PEF CLASSIFICATION SHEET'!E560","v":0},{"$f":"'PEF CLASSIFICATION SHEET'!E561","v":0},{"$f":"'PEF CLASSIFICATION SHEET'!E562","v":0},{"$f":"'PEF CLASSIFICATION SHEET'!E563","v":0}]
[null,"RATES PER DAY:",null,{"$f":"D122*8","v":0},0,0,0,0,0,0,0,0,0,0]
[null,"PAYROLL BURDEN:",null,{"$f":"SUM(D121*D123)","v":0},0,0,0,0,0,0,0,0,0,0]
[null,"TOTAL WORKDAYS:",null,{"$f":"SUM(D121:N121)","v":0}]
[null,"TOTAL PAYROLL BURDEN:",null,{"$f":"SUM(D124:N124)","v":0}]
[null,"AVERAGE COST PER HOUR:",null,{"$f":"SUM(D126/(D125*8))","v":{"$error":"#DIV/0!"}}]
[null,"GENERAL OVERHEAD:",{"$f":"PDEA_OTHER_SUB1_CONSULTANT_OVERHEAD","v":0},{"$f":"SUM(D126*C128)","v":0}]
[null,"SUBTOTAL:",null,{"$f":"SUM(D126+D128)","v":0}]
[null,"COMPARATIVE FEE:",{"$f":"PDEA_OTHER_SUB1_CONSULTANT_FEE","v":0.09},{"$f":"SUM(D129*C130)","v":0}]
[null,"FACILITIES COST OF CAPITAL:",{"$f":"PDEA_OTHER_SUB1_CONSULTANT_COSTofCAPITAL","v":0},{"$f":"SUM(D126*C131)","v":0}]
[null,"TOTAL:",null,{"$f":"SUM(D129:D131)","v":0}]
[null,"DIRECT EXPENSES:",null,{"$f":"PDEA_OTHER_SUB1_DIRECT_NONSALARY_TOTAL","v":0}]
[null,"OTHER GRAND TOTAL:",null,{"$f":"SUM(D132:D133)","v":0}]
[]
[]
[null,"Costs",null,"Workdays",null,null,null,null,"Dollars"]
[null,null,null,{"$f":"PDEA_OTHER_SUB1_CONSULTANT_DISCIPLINE","v":"Project Mgmt--SUB1"},"PEF","Delta ","Delta %",null,{"$f":"PDEA_OTHER_SUB1_CONSULTANT_DISCIPLINE","v":"Project Mgmt--SUB1"},null,null,null,null,null,null,"PEF",null,"Delta ","Delta %"]
[null,null,null,null,null,{"$f":"SUM(E139-D139)","v":0},{"$f":"SUM((F139/D139)*100)","v":{"$error":"#DIV/0!"}},null,null,null,null,null,null,null,null,null,null,{"$f":"SUM(P139-I139)","v":0},{"$f":"SUM((R139/I139)*100)","v":{"$error":"#DIV/0!"}}]
[]
[]
[null,null,null,null,null,null,null,"Directs","Dollars"]
[null,null,null,null,null,null,null,null,{"$f":"PDEA_OTHER_SUB1_CONSULTANT_DISCIPLINE","v":"Project Mgmt--SUB1"},null,null,null,null,null,null,"PEF",null,"Delta ","Delta %"]
[null,null,null,null,null,null,null,null,null,null,null,null,null,null,null,null,null,{"$f":"SUM(P144-I144)","v":0},{"$f":"SUM((R144/I144)*100)","v":{"$error":"#DIV/0!"}}]

{"sheet":"PM-Exp-Sub1","index":68,"n_rows":96,"n_cols":8,"rows_kept":96,"cut":false,"hidden":true,"merged":[[6,1,6,3],[6,4,6,6],[0,0,0,2],[0,3,0,7],[3,1,3,7],[4,1,4,3],[4,6,4,7],[5,1,5,3],[5,6,5,7],[2,1,2,3]]}
[{"$f":"PDEA_OTHER_SUB1_CONSULTANT_DISCIPLINE","v":"Project Mgmt--SUB1"},null,null,"DIRECT EXPENSES"]
[]
["FIRM:",{"$f":"'PM-Sub1'!G3","v":"CONSULTANT NAME"}]
["PROJECT DESCRIPTION: ",{"$f":"PROJECT.DESCRIPTION","v":0}]
["PREPARED BY:  ",{"$f":"PDEA.OTHER.SUB1.PREPARED.BY","v":""},null,null,"TASK ORDER NUMBER:",null,{"$f":"TASK.ORDER.NUMBER","v":0}]
["TIP NUMBER:",{"$f":"TIP.NUMBER","v":0},null,null,"WBS NUMBER:",null,{"$f":"WBS.NUMBER","v":""}]
["DATE PREPARED:",{"$f":"IF('PM-Sub1'!R3=\"\",\"\",MAX('PM-Sub1'!R3:'PM-Sub1'!R4))","v":""},null,null,"REVIEWED BY UNIT HEAD ON:",null,null,{"$f":"IF(SCOPE.MANDAY.ESTIMATE.APPROVED.BY.DATE=\"\",\"\",SCOPE.MANDAY.ESTIMATE.APPROVED.BY.DATE)","v":""}]
["GENERAL PROJECT WORK:","ITEM","QTY","DESCRIPTION",null,null,"UNIT COST "]
[null,"Travel:"]
[null,"Sedan",null,"Trip(s) @",null,"miles @",{"$f":"SEDAN","v":0.7},{"$f":"SUM(C10*E10*G10)","v":0}]
[null,"Carry All",null,"Trip(s) @",null,"miles @",{"$f":"CARRYALL","v":0.72},{"$f":"SUM(C11*E11*G11)","v":0}]
[null,"Car Rental",null,null,null,"days @ ",{"$f":"CARRENTAL","v":50},{"$f":"SUM(E12*G12)","v":0}]
[null,"Gas for Rental",null,null,null,"miles @",{"$f":"GASforRENTAL","v":0.2},{"$f":"SUM(E13*G13)","v":0}]
[null,"Parking:",null,"Trip(s) @",null,null,{"$f":"PARKING","v":3},{"$f":"SUM(C14*G14)","v":0}]
[null,"Per Diem:",null,"Breakfast",null,null,{"$f":"BREAKFAST","v":10.1},0]
[null,null,null,"Lunch",null,null,{"$f":"LUNCH","v":13.3},0]
[null,null,null,"Dinner",null,null,{"$f":"DINNER","v":23.1},0]
[null,null,null,"Lodging",null,null,{"$f":"LODGING_LUMP.SUM","v":95},0]
[null,"Reproduction:",null,"8 1/2 x 11 B & W Copies @",null,null,{"$f":"LETTERCOPIES","v":0.14000000000000001},0]
[null,null,null,"11 x 17 B & W Copies @",null,null,{"$f":"LEDGERCOPIES","v":0.34},0]
[null,null,null,"8 1/2 x 11 Color Copies @",null,null,{"$f":"LETTERCOLOR","v":0.83},0]
[null,null,null,"11 x 17 Color Copies @",null,null,{"$f":"LEDGERCOLOR","v":1.66},0]
[null,null,null,"SQ. FT. of Plots (B & W or Color)",null,"<65 SQ. FT.*",{"$f":"ROLLPLOTSshort","v":6.5},0]
[null,null,null,"SQ. FT. of Plots (B & W or Color)",null,">65 SQ. FT.*",{"$f":"ROLLPLOTSlong","v":1.5},0]
[null,null,null,"Cover(s) @",null,null,{"$f":"COVERS","v":0.5},0]
[null,null,null,"Binder(s) @",null,null,{"$f":"BINDERS","v":0.5},0]
[null,null,null,"Blueprints - 8 1/2 x 11 @",null,null,{"$f":"BLUEPRINTSLETTER","v":0.35},0]
[null,null,null,"Blueprints - 42 x 72 @",null,null,{"$f":"BLUEPRINTSLARGE","v":1.3},0]
[null,"Film and Developing:",null,"Roll(s) @",null,null,{"$f":"FILM","v":20},0]
[null,null,null,null,null,"Subtotal",null,{"$f":"SUM(H10:H29)","v":0}]
["MAPS AND DOCUMENTS:","ITEM","QTY","DESCRIPTION",null,null,"UNIT COST "]
[null,"County Tax Maps:",null,"Map(s) @",null,null,{"$f":"County_Tax_Maps","v":7},{"$f":"SUM(C32*G32)","v":0}]
[null,"USGS Maps:",null,"Map(s) @",null,null,{"$f":"USGSMAPS","v":7},{"$f":"SUM(C33*G33)","v":0}]
[null,null,null,null,null,"Subtotal",null,{"$f":"SUM(H32:H33)","v":0}]
["TECHNICAL REPORTS:","ITEM","QTY","DESCRIPTION",null,null,"UNIT COST "]
[null,"Reproduction:",null,"8 1/2 x 11 B & W Copies @",null,null,{"$f":"LETTERCOPIES","v":0.14000000000000001},{"$f":"SUM(C36*G36)","v":0}]
[null,null,null,"11 x 17 B & W Copies @",null,null,{"$f":"LEDGERCOPIES","v":0.34},0]
[null,null,null,"8 1/2 x 11 Color Copies @",null,null,{"$f":"LETTERCOLOR","v":0.83},0]
[null,null,null,"11 x 17 Color Copies @",null,null,{"$f":"LEDGERCOLOR","v":1.66},0]
[null,null,null,"SQ. FT. of Plots (B & W or Color)",null,"<65 SQ. FT.*",{"$f":"ROLLPLOTSshort","v":6.5},0]
[null,null,null,"SQ. FT. of Plots (B & W or Color)",null,">65 SQ. FT.*",{"$f":"ROLLPLOTSlong","v":1.5},0]
[null,null,null,"Cover(s) @",null,null,{"$f":"COVERS","v":0.5},0]
[null,null,null,"Binder(s) @",null,null,{"$f":"BINDERS","v":0.5},0]
[null,null,null,null,null,"Subtotal",null,{"$f":"SUM(H36:H43)","v":0}]
["DESIGN:","ITEM","QTY","DESCRIPTION",null,null,"UNIT COST "]
[null,"Reproduction:",null,"8 1/2 x 11 B & W Copies @",null,null,{"$f":"LETTERCOPIES","v":0.14000000000000001},{"$f":"SUM(C46*G46)","v":0}]
[null,null,null,"11 x 17 B & W Copies @",null,null,{"$f":"LEDGERCOPIES","v":0.34},0]
[null,null,null,"Blueprints - 8 1/2 x 11 @",null,null,{"$f":"BLUEPRINTSLETTER","v":0.35},0]
[null,null,null,"Mylar - 8 1/2 x 11 @",null,null,{"$f":"MYLARSLETTER","v":7.32},0]
[null,null,null,"Mylar - 36 x 48 @",null,null,{"$f":"MYLARSLARGE","v":28.12},0]
[null,null,null,"Prints  - 24 x 36 @",null,null,{"$f":"PRINTSLARGE","v":3},0]
[null,null,null,"Blueprints - 42 x 72 @",null,null,{"$f":"BLUEPRINTSLARGE","v":1.3},0]
[null,null,null,"SQ. FT. of Plots (B & W or Color)",null,"<65 SQ. FT.*",{"$f":"ROLLPLOTSshort","v":6.5},0]
[null,null,null,"SQ. FT. of Plots (B & W or Color)",null,">65 SQ. FT.*",{"$f":"ROLLPLOTSlong","v":1.5},0]
[null,null,null,"USGS Map(s)",null,null,{"$f":"USGSMAPS","v":7},0]
[null,null,null,null,null,"Subtotal",null,{"$f":"SUM(H46:H55)","v":0}]
["MEETINGS & PUBLIC INVOLVEMENT:","ITEM","QTY","DESCRIPTION",null,null,"UNIT COST "]
[null,"Travel:"]
[null,"Sedan",null,"Trip(s) @",null,"miles @",{"$f":"SEDAN","v":0.7},{"$f":"SUM(C59*E59*G59)","v":0}]
[null,"CarryAll",null,"Trip(s) @",null,"miles @",{"$f":"CARRYALL","v":0.72},{"$f":"SUM(C60*E60*G60)","v":0}]
[null,"Car Rental",null,null,null,"days @",{"$f":"CARRENTAL","v":50},{"$f":"SUM(E61*G61)","v":0}]
[null,"Gas for Rental",null,null,null,"miles @",{"$f":"GASforRENTAL","v":0.2},{"$f":"SUM(E62*G62)","v":0}]
[null,"Parking:",null,"Trip(s) @",null,null,{"$f":"PARKING","v":3},{"$f":"SUM(C63*G63)","v":0}]
[null,"Per Diem:",null,"Breakfast",null,null,{"$f":"BREAKFAST","v":10.1},{"$f":"SUM(C64*G64)","v":0}]
[null,null,null,"Lunch",null,null,{"$f":"LUNCH","v":13.3},{"$f":"SUM(C65*G65)","v":0}]
[null,null,null,"Dinner",null,null,{"$f":"DINNER","v":23.1},{"$f":"SUM(C66*G66)","v":0}]
[null,null,null,"Lodging",null,null,{"$f":"LODGING_LUMP.SUM","v":95},{"$f":"SUM(C67*G67)","v":0}]
[null,"Workshop "]
[null,"  - Reproduction",null,"8 1/2 x 11 B & W Copies @",null,"Handouts",{"$f":"LETTERCOPIES","v":0.14000000000000001},{"$f":"SUM(C69*E69*G69)","v":0}]
[null,null,null,"11 x 17 B & W Copies @",null,"Handouts",{"$f":"LEDGERCOPIES","v":0.34},{"$f":"SUM(C70*E70*G70)","v":0}]
[null,null,null,"8 1/2 x 11 Color Copies @",null,null,{"$f":"LETTERCOLOR","v":0.83},{"$f":"SUM(C71*G71)","v":0}]
[null,null,null,"11 x 17 Color Copies @",null,null,{"$f":"LEDGERCOLOR","v":1.66},0]
[null,null,null,"SQ. FT. of Plots (B & W or Color)",null,"<65 SQ. FT.*",{"$f":"ROLLPLOTSshort","v":6.5},0]
[null,null,null,"SQ. FT. of Plots (B & W or Color)",null,">65 SQ. FT.*",{"$f":"ROLLPLOTSlong","v":1.5},0]
[null,null,null,"SQ. FT. Foam Mounting Board @",null,null,{"$f":"FOAMMOUNTINGBOARD","v":1.25},0]
[null,"Presentation Materials:",null,"Misc. Workshop Supplies @",null,"per workshop",{"$f":"MISCWORKSHOPSUPPLIES","v":50},0]
[null,"Mailing Labels:",null,"Laser Peel & Stick (box)",null,"750 per box",{"$f":"LASERPEELandSTICK","v":4},0]
[null,"Postage:"]
[null,"  - Public Workshops:",null,"Notice or Newsletter @",null,"copies @",{"$f":"POSTAGE","v":0.49},{"$f":"SUM(C79*E79*G79)","v":0}]
[null,null,null,null,null,"Subtotal",null,{"$f":"SUM(H58:H79)","v":0}]
["Miscellaneous Other","ITEM","QTY","DESCRIPTION",null,null,"UNIT COST "]
[null,null,null,null,null,null,null,{"$f":"SUM(C82*G82)","v":0}]
[null,null,null,null,null,null,null,{"$f":"SUM(C83*G83)","v":0}]
[null,null,null,null,null,null,null,0]
[null,null,null,null,null,null,null,0]
[null,null,null,null,null,null,null,0]
[null,null,null,null,null,null,null,0]
[null,null,null,null,null,null,null,0]
[null,null,null,null,null,null,null,{"$f":"SUM(C89*G89)","v":0}]
[null,null,null,null,null,null,null,{"$f":"SUM(C90*G90)","v":0}]
[null,null,null,null,null,null,null,{"$f":"SUM(C91*G91)","v":0}]
[null,null,null,null,null,"Subtotal",null,{"$f":"SUM(H82:H91)","v":0}]
[]
[null,null,null,null,null,"TOTAL",null,{"$f":"SUM(H30+H34+H44+H56+H80+H92)","v":0}]
[]
[null,"* Sum of all plots "]

{"sheet":"PM-Sub2","index":69,"n_rows":144,"n_cols":19,"rows_kept":144,"cut":false,"hidden":true,"merged":[[141,8,141,18],[142,8,142,14],[142,15,142,16],[143,8,143,14],[143,15,143,16],[136,3,136,6],[136,8,136,18],[137,8,137,14],[137,15,137,16],[138,8,138,14],[138,15,138,16],[116,17,116,18],[117,17,117,18],[118,17,118,18],[119,17,119,18],[133,1,134,1],[133,3,134,4],[110,17,110,18],[111,17,111,18],[112,17,112,18],[113,17,113,18],[114,17,114,18],[115,17,115,18],[104,17,104,18],[105,17,105,18],[106,17,106,18],[107,17,107,18],[108,17,108,18],[109,17,109,18],[98,17,98,18],[99,17,99,18],[100,17,100,18],[101,17,101,18],[102,17,102,18],[103,17,103,18],[92,17,92,18],[93,17,93,18],[94,17,94,18],[95,17,95,18],[96,17,96,18],[97,17,97,18],[86,17,86,18],[87,17,87,18],[88,17,88,18],[89,17,89,18],[90,17,90,18],[91,17,91,18],[80,17,80,18],[81,17,81,18],[82,17,82,18],[83,17,83,18],[84,17,84,18],[85,17,85,18],[74,17,74,18],[75,17,75,18],[76,17,76,18],[77,17,77,18],[78,17,78,18],[79,17,79,18],[68,17,68,18],[69,17,69,18],[70,17,70,18],[71,17,71,18],[72,17,72,18],[73,17,73,18],[62,17,62,18],[63,17,63,18],[64,17,64,18],[65,17,65,18],[66,17,66,18],[67,17,67,18],[56,17,56,18],[57,17,57,18],[58,17,58,18],[59,17,59,18],[60,17,60,18],[61,17,61,18],[50,17,50,18],[51,17,51,18],[52,17,52,18],[53,17,53,18],[54,17,54,18],[55,17,55,18],[44,17,44,18],[45,17,45,18],[46,17,46,18],[47,17,47,18],[48,17,48,18],[49,17,49,18],[38,17,38,18],[39,17,39,18],[40,17,40,18],[41,17,41,18],[42,17,42,18],[43,17,43,18],[32,17,32,18],[33,17,33,18],[34,17,34,18],[35,17,35,18],[36,17,36,18],[37,17,37,18],[26,17,26,18],[27,17,27,18],[28,17,28,18],[29,17,29,18],[30,17,30,18],[31,17,31,18],[20,17,20,18],[21,17,21,18],[22,17,22,18],[23,17,23,18],[24,17,24,18],[25,17,25,18],[14,17,14,18],[15,17,15,18],[16,17,16,18],[17,17,17,18],[18,17,18,18],[19,17,19,18],[6,12,10,12],[6,13,10,13],[9,17,9,18],[11,17,11,18],[12,17,12,18],[13,17,13,18],[4,3,4,13],[6,3,10,3],[6,4,10,4],[6,5,10,5],[6,6,10,6],[6,7,10,7],[6,8,10,8],[6,9,10,9],[6,10,10,10],[6,11,10,11],[2,20,2,21],[3,1,3,4],[3,6,3,7],[3,10,3,11],[3,15,3,16],[3,17,3,18],[3,20,3,21],[0,0,1,4],[0,5,1,18],[2,1,2,4],[2,6,2,7],[2,10,2,11],[2,15,2,16],[2,17,2,18]]}
[{"$f":"PDEA_OTHER_SUB2_CONSULTANT_DISCIPLINE","v":"Project Mgmt--SUB2"},null,null,null,null,"DESIGN BREAKDOWN WORKSHEET"]
[]
["PROJECT DESCRIPTION: ",{"$f":"PROJECT.DESCRIPTION","v":0},null,null,null,"FIRM:  ",{"$f":"PDEA_OTHER_SUB2_CONSULTANT_NAME","v":"CONSULTANT NAME"},null,"TASK ORDER NUMBER:",null,{"$f":"TASK.ORDER.NUMBER","v":0},null,null,null,null,"DATE PREPARED:",null,{"$f":"IF(SCOPE.MANDAY.ESTIMATE.PREPARED.BY.DATE=\"\",\"\",SCOPE.MANDAY.ESTIMATE.PREPARED.BY.DATE)","v":""}]
["PREPARED BY:  ",{"$f":"IF(SCOPE.MANDAY.ESTIMATE.PREPARED.BY=\"\",\"\",SCOPE.MANDAY.ESTIMATE.PREPARED.BY)","v":""},null,null,null,"TIP NUMBER:",{"$f":"TIP.NUMBER","v":0},null,"WBS NUMBER:",null,{"$f":"WBS.NUMBER","v":""},null,null,null,null,"REVISION DATE:",null,{"$f":"IF(SCOPE.MANDAY.ESTIMATE.APPROVED.BY.DATE=\"\",\"\",SCOPE.MANDAY.ESTIMATE.APPROVED.BY.DATE)","v":""}]
[null,null,null,"ESTIMATED WORK DAYS"]
[null,null,"Employee",{"$f":"IF('PEF CLASSIFICATION SHEET'!$D566=\"\",\"\",LEFT('PEF CLASSIFICATION SHEET'!$D566,4))","v":""},{"$f":"IF('PEF CLASSIFICATION SHEET'!$D567=\"\",\"\",LEFT('PEF CLASSIFICATION SHEET'!$D567,4))","v":""},{"$f":"IF('PEF CLASSIFICATION SHEET'!$D568=\"\",\"\",LEFT('PEF CLASSIFICATION SHEET'!$D568,4))","v":""},{"$f":"IF('PEF CLASSIFICATION SHEET'!$D569=\"\",\"\",LEFT('PEF CLASSIFICATION SHEET'!$D569,4))","v":""},{"$f":"IF('PEF CLASSIFICATION SHEET'!$D570=\"\",\"\",LEFT('PEF CLASSIFICATION SHEET'!$D570,4))","v":""},{"$f":"IF('PEF CLASSIFICATION SHEET'!$D571=\"\",\"\",LEFT('PEF CLASSIFICATION SHEET'!$D571,4))","v":""},{"$f":"IF('PEF CLASSIFICATION SHEET'!$D572=\"\",\"\",LEFT('PEF CLASSIFICATION SHEET'!$D572,4))","v":""},{"$f":"IF('PEF CLASSIFICATION SHEET'!D573=\"\",\"\",LEFT('PEF CLASSIFICATION SHEET'!D573,4))","v":""},{"$f":"IF('PEF CLASSIFICATION SHEET'!D574=\"\",\"\",LEFT('PEF CLASSIFICATION SHEET'!D574,4))","v":""},{"$f":"IF('PEF CLASSIFICATION SHEET'!D575=\"\",\"\",LEFT('PEF CLASSIFICATION SHEET'!D575,4))","v":""},{"$f":"IF('PEF CLASSIFICATION SHEET'!D576=\"\",\"\",LEFT('PEF CLASSIFICATION SHEET'!D576,4))","v":""}]
[null,null,null,{"$f":"IF('PEF CLASSIFICATION SHEET'!$C566=\"\",\"\",'PEF CLASSIFICATION SHEET'!$C566)","v":""},{"$f":"IF('PEF CLASSIFICATION SHEET'!$C567=\"\",\"\",'PEF CLASSIFICATION SHEET'!$C567)","v":""},{"$f":"IF('PEF CLASSIFICATION SHEET'!$C568=\"\",\"\",'PEF CLASSIFICATION SHEET'!$C568)","v":""},{"$f":"IF('PEF CLASSIFICATION SHEET'!$C569=\"\",\"\",'PEF CLASSIFICATION SHEET'!$C569)","v":""},{"$f":"IF('PEF CLASSIFICATION SHEET'!$C570=\"\",\"\",'PEF CLASSIFICATION SHEET'!$C570)","v":""},{"$f":"IF('PEF CLASSIFICATION SHEET'!$C571=\"\",\"\",'PEF CLASSIFICATION SHEET'!$C571)","v":""},{"$f":"IF('PEF CLASSIFICATION SHEET'!$C572=\"\",\"\",'PEF CLASSIFICATION SHEET'!$C572)","v":""},{"$f":"IF('PEF CLASSIFICATION SHEET'!C573=\"\",\"\",'PEF CLASSIFICATION SHEET'!C573)","v":""},{"$f":"IF('PEF CLASSIFICATION SHEET'!C574=\"\",\"\",'PEF CLASSIFICATION SHEET'!C574)","v":""},{"$f":"IF('PEF CLASSIFICATION SHEET'!C575=\"\",\"\",'PEF CLASSIFICATION SHEET'!C575)","v":""},{"$f":"IF('PEF CLASSIFICATION SHEET'!C576=\"\",\"\",'PEF CLASSIFICATION SHEET'!C576)","v":""}]
[null,null,"Classification",null,null,null,null,null,null,null,null,null,null,null,"SUB-","%","PEF"]
[null,null,null,null,null,null,null,null,null,null,null,null,null,null,"TOTAL","OF","ESTIMATE"]
["TASK","TASK DESCRIPTION",null,null,null,null,null,null,null,null,null,null,null,null,null,"PROJECT",null,"COMMENTS"]
["NO."]
["2PM1/3PM1/4PM1","Project Management ",null,null,null,null,null,null,null,null,null,null,null,null,{"$f":"IF(B12=\"\",0,IF((SUM(D12:N12)=0),\"\",SUM(D12:N12)))","v":""},{"$f":"IF(O12=\"\",\"\",SUM((O12/$O$121)))","v":""}]
[1,"Project Management and Coordination ",null,null,null,null,null,null,null,null,null,null,null,null,{"$f":"IF(B13=\"\",0,IF((SUM(D13:N13)=0),\"\",SUM(D13:N13)))","v":""},{"$f":"IF(O13=\"\",\"\",SUM((O13/$O$121)))","v":""}]
[null,"Coordination with NCDOT PM",null,null,null,null,null,null,null,null,null,null,null,null,"",""]
[null,"Coordination with other NCDOT disciplines/units",null,null,null,null,null,null,null,null,null,null,null,null,"",""]
[null,"Coordination with external stakeholders and agencies",null,null,null,null,null,null,null,null,null,null,null,null,"",""]
[null,"Internal coordination with project team",null,null,null,null,null,null,null,null,null,null,null,null,"",""]
[null,"Document all meetings and calls",null,null,null,null,null,null,null,null,null,null,null,null,"",""]
[null,"Maintain administrative record and internal project files",null,null,null,null,null,null,null,null,null,null,null,null,"",""]
[null,"Maintain Connect/SharePoint files and ATLAS Workbench",null,null,null,null,null,null,null,null,null,null,null,null,"",""]
[null,"Prepare for and attend meetings",null,null,null,null,null,null,null,null,null,null,null,null,"",""]
[null,null,null,null,null,null,null,null,null,null,null,null,null,null,0,{"$error":"#DIV/0!"}]
[null,null,null,null,null,null,null,null,null,null,null,null,null,null,0,{"$error":"#DIV/0!"}]
[null,null,null,null,null,null,null,null,null,null,null,null,null,null,0,{"$error":"#DIV/0!"}]
[2,"Project Schedule",null,null,null,null,null,null,null,null,null,null,null,null,"",""]
[null,"Develop Schedule",null,null,null,null,null,null,null,null,null,null,null,null,"",""]
[null,"Maintain Schedule",null,null,null,null,null,null,null,null,null,null,null,null,"",""]
[null,null,null,null,null,null,null,null,null,null,null,null,null,null,0,{"$error":"#DIV/0!"}]
[null,null,null,null,null,null,null,null,null,null,null,null,null,null,0,{"$error":"#DIV/0!"}]
[null,null,null,null,null,null,null,null,null,null,null,null,null,null,0,{"$error":"#DIV/0!"}]
[null,null,null,null,null,null,null,null,null,null,null,null,null,null,0,{"$error":"#DIV/0!"}]
[3,"Monthly PM Status Reports and Invoicing",null,null,null,null,null,null,null,null,null,null,null,null,"",""]
[null,null,null,null,null,null,null,null,null,null,null,null,null,null,0,{"$error":"#DIV/0!"}]
[null,null,null,null,null,null,null,null,null,null,null,null,null,null,0,{"$error":"#DIV/0!"}]
[null,null,null,null,null,null,null,null,null,null,null,null,null,null,0,{"$error":"#DIV/0!"}]
[null,null,null,null,null,null,null,null,null,null,null,null,null,null,0,{"$error":"#DIV/0!"}]
[null,null,null,null,null,null,null,null,null,null,null,null,null,null,0,{"$error":"#DIV/0!"}]
[null,null,null,null,null,null,null,null,null,null,null,null,null,null,0,{"$error":"#DIV/0!"}]
[4,"QC/QA Procedures",null,null,null,null,null,null,null,null,null,null,null,null,"",""]
[null,null,null,null,null,null,null,null,null,null,null,null,null,null,0,{"$error":"#DIV/0!"}]
[null,null,null,null,null,null,null,null,null,null,null,null,null,null,0,{"$error":"#DIV/0!"}]
[null,null,null,null,null,null,null,null,null,null,null,null,null,null,0,{"$error":"#DIV/0!"}]
[null,null,null,null,null,null,null,null,null,null,null,null,null,null,0,{"$error":"#DIV/0!"}]
[null,null,null,null,null,null,null,null,null,null,null,null,null,null,0,{"$error":"#DIV/0!"}]
[null,null,null,null,null,null,null,null,null,null,null,null,null,null,0,{"$error":"#DIV/0!"}]
[5,"Value Management Tasks",null,null,null,null,null,null,null,null,null,null,null,null,"",""]
[null,null,null,null,null,null,null,null,null,null,null,null,null,null,0,{"$error":"#DIV/0!"}]
[null,null,null,null,null,null,null,null,null,null,null,null,null,null,0,{"$error":"#DIV/0!"}]
[null,null,null,null,null,null,null,null,null,null,null,null,null,null,0,{"$error":"#DIV/0!"}]
[null,null,null,null,null,null,null,null,null,null,null,null,null,null,0,{"$error":"#DIV/0!"}]
[null,null,null,null,null,null,null,null,null,null,null,null,null,null,0,{"$error":"#DIV/0!"}]
[null,null,null,null,null,null,null,null,null,null,null,null,null,null,0,{"$error":"#DIV/0!"}]
[null,"Other Tasks",null,null,null,null,null,null,null,null,null,null,null,null,"",""]
[null,null,null,null,null,null,null,null,null,null,null,null,null,null,0,{"$error":"#DIV/0!"}]
[null,null,null,null,null,null,null,null,null,null,null,null,null,null,0,{"$error":"#DIV/0!"}]
[null,null,null,null,null,null,null,null,null,null,null,null,null,null,0,{"$error":"#DIV/0!"}]
[null,null,null,null,null,null,null,null,null,null,null,null,null,null,0,{"$error":"#DIV/0!"}]
[null,null,null,null,null,null,null,null,null,null,null,null,null,null,0,{"$error":"#DIV/0!"}]
[null,null,null,null,null,null,null,null,null,null,null,null,null,null,0,{"$error":"#DIV/0!"}]
[null,null,null,null,null,null,null,null,null,null,null,null,null,null,0,{"$error":"#DIV/0!"}]
[null,null,null,null,null,null,null,null,null,null,null,null,null,null,0,{"$error":"#DIV/0!"}]
[null,null,null,null,null,null,null,null,null,null,null,null,null,null,0,{"$error":"#DIV/0!"}]
[null,null,null,null,null,null,null,null,null,null,null,null,null,null,0,{"$error":"#DIV/0!"}]
[null,null,null,null,null,null,null,null,null,null,null,null,null,null,0,{"$error":"#DIV/0!"}]
[null,null,null,null,null,null,null,null,null,null,null,null,null,null,0,{"$error":"#DIV/0!"}]
[null,null,null,null,null,null,null,null,null,null,null,null,null,null,{"$f":"IF(B66=\"\",0,IF((SUM(D66:N66)=0),\"\",SUM(D66:N66)))","v":0},{"$error":"#DIV/0!"}]
[null,null,null,null,null,null,null,null,null,null,null,null,null,null,0,{"$f":"IF(O67=\"\",\"\",SUM((O67/$O$121)))","v":{"$error":"#DIV/0!"}}]
[null,null,null,null,null,null,null,null,null,null,null,null,null,null,{"$f":"IF(B68=\"\",0,IF((SUM(D68:N68)=0),\"\",SUM(D68:N68)))","v":0},{"$error":"#DIV/0!"}]
[null,null,null,null,null,null,null,null,null,null,null,null,null,null,0,{"$error":"#DIV/0!"}]
[null,null,null,null,null,null,null,null,null,null,null,null,null,null,0,{"$error":"#DIV/0!"}]
[null,null,null,null,null,null,null,null,null,null,null,null,null,null,0,{"$error":"#DIV/0!"}]
[null,null,null,null,null,null,null,null,null,null,null,null,null,null,0,{"$error":"#DIV/0!"}]
[null,null,null,null,null,null,null,null,null,null,null,null,null,null,0,{"$error":"#DIV/0!"}]
[null,null,null,null,null,null,null,null,null,null,null,null,null,null,0,{"$error":"#DIV/0!"}]
[null,null,null,null,null,null,null,null,null,null,null,null,null,null,0,{"$error":"#DIV/0!"}]
[null,null,null,null,null,null,null,null,null,null,null,null,null,null,0,{"$error":"#DIV/0!"}]
[null,null,null,null,null,null,null,null,null,null,null,null,null,null,{"$f":"IF(B77=\"\",0,IF((SUM(D77:N77)=0),\"\",SUM(D77:N77)))","v":0},{"$f":"IF(O77=\"\",\"\",SUM((O77/$O$121)))","v":{"$error":"#DIV/0!"}}]
[null,null,null,null,null,null,null,null,null,null,null,null,null,null,0,{"$error":"#DIV/0!"}]
[null,null,null,null,null,null,null,null,null,null,null,null,null,null,0,{"$error":"#DIV/0!"}]
[null,null,null,null,null,null,null,null,null,null,null,null,null,null,0,{"$error":"#DIV/0!"}]
[null,null,null,null,null,null,null,null,null,null,null,null,null,null,0,{"$error":"#DIV/0!"}]
[null,null,null,null,null,null,null,null,null,null,null,null,null,null,0,{"$error":"#DIV/0!"}]
[null,null,null,null,null,null,null,null,null,null,null,null,null,null,0,{"$error":"#DIV/0!"}]
[null,null,null,null,null,null,null,null,null,null,null,null,null,null,0,{"$error":"#DIV/0!"}]
[null,null,null,null,null,null,null,null,null,null,null,null,null,null,0,{"$error":"#DIV/0!"}]
[null,null,null,null,null,null,null,null,null,null,null,null,null,null,0,{"$error":"#DIV/0!"}]
[null,null,null,null,null,null,null,null,null,null,null,null,null,null,0,{"$error":"#DIV/0!"}]
[null,null,null,null,null,null,null,null,null,null,null,null,null,null,0,{"$error":"#DIV/0!"}]
[null,null,null,null,null,null,null,null,null,null,null,null,null,null,0,{"$error":"#DIV/0!"}]
[null,null,null,null,null,null,null,null,null,null,null,null,null,null,0,{"$error":"#DIV/0!"}]
[null,null,null,null,null,null,null,null,null,null,null,null,null,null,0,{"$error":"#DIV/0!"}]
[null,null,null,null,null,null,null,null,null,null,null,null,null,null,0,{"$error":"#DIV/0!"}]
[null,null,null,null,null,null,null,null,null,null,null,null,null,null,0,{"$error":"#DIV/0!"}]
[null,null,null,null,null,null,null,null,null,null,null,null,null,null,0,{"$error":"#DIV/0!"}]
[null,null,null,null,null,null,null,null,null,null,null,null,null,null,0,{"$error":"#DIV/0!"}]
[null,null,null,null,null,null,null,null,null,null,null,null,null,null,0,{"$error":"#DIV/0!"}]
[null,null,null,null,null,null,null,null,null,null,null,null,null,null,0,{"$error":"#DIV/0!"}]
[null,null,null,null,null,null,null,null,null,null,null,null,null,null,0,{"$error":"#DIV/0!"}]
[null,null,null,null,null,null,null,null,null,null,null,null,null,null,0,{"$error":"#DIV/0!"}]
[null,null,null,null,null,null,null,null,null,null,null,null,null,null,0,{"$error":"#DIV/0!"}]
[null,null,null,null,null,null,null,null,null,null,null,null,null,null,0,{"$error":"#DIV/0!"}]
[null,null,null,null,null,null,null,null,null,null,null,null,null,null,0,{"$error":"#DIV/0!"}]
[null,null,null,null,null,null,null,null,null,null,null,null,null,null,0,{"$error":"#DIV/0!"}]
[null,null,null,null,null,null,null,null,null,null,null,null,null,null,0,{"$error":"#DIV/0!"}]
[null,null,null,null,null,null,null,null,null,null,null,null,null,null,0,{"$error":"#DIV/0!"}]
[null,null,null,null,null,null,null,null,null,null,null,null,null,null,0,{"$error":"#DIV/0!"}]
[null,null,null,null,null,null,null,null,null,null,null,null,null,null,0,{"$error":"#DIV/0!"}]
[null,null,null,null,null,null,null,null,null,null,null,null,null,null,0,{"$error":"#DIV/0!"}]
[null,null,null,null,null,null,null,null,null,null,null,null,null,null,0,{"$error":"#DIV/0!"}]
[null,null,null,null,null,null,null,null,null,null,null,null,null,null,0,{"$error":"#DIV/0!"}]
[null,null,null,null,null,null,null,null,null,null,null,null,null,null,0,{"$error":"#DIV/0!"}]
[null,null,null,null,null,null,null,null,null,null,null,null,null,null,0,{"$error":"#DIV/0!"}]
[null,null,null,null,null,null,null,null,null,null,null,null,null,null,0,{"$error":"#DIV/0!"}]
[null,null,null,null,null,null,null,null,null,null,null,null,null,null,0,{"$error":"#DIV/0!"}]
[null,null,null,null,null,null,null,null,null,null,null,null,null,null,0,{"$error":"#DIV/0!"}]
[null,null,null,null,null,null,null,null,null,null,null,null,null,null,0,{"$error":"#DIV/0!"}]
[null,null,null,null,null,null,null,null,null,null,null,null,null,null,0,{"$error":"#DIV/0!"}]
[null,null,null,null,null,null,null,null,null,null,null,null,null,null,0,{"$error":"#DIV/0!"}]
[null,null,null,null,null,null,null,null,null,null,null,null,null,null,0,{"$error":"#DIV/0!"}]
[null,null,null,null,null,null,null,null,null,null,null,null,null,null,0,{"$error":"#DIV/0!"}]
[null,"TOTAL WORKDAYS/CATEGORY:",null,{"$f":"SUM(D12:D120)","v":0},0,0,0,0,0,0,0,0,{"$f":"SUM(M12:M120)","v":0},{"$f":"SUM(N12:N120)","v":0},{"$f":"SUM(O12:O120)","v":0},{"$f":"SUM(P12:P120)","v":{"$error":"#DIV/0!"}},{"$f":"SUM(Q12:Q120)","v":0}]
[null,"HOURLY SALARY RATE:",null,{"$f":"'PEF CLASSIFICATION SHEET'!$E566","v":0},{"$f":"'PEF CLASSIFICATION SHEET'!$E567","v":0},{"$f":"'PEF CLASSIFICATION SHEET'!$E568","v":0},{"$f":"'PEF CLASSIFICATION SHEET'!$E569","v":0},{"$f":"'PEF CLASSIFICATION SHEET'!$E570","v":0},{"$f":"'PEF CLASSIFICATION SHEET'!$E571","v":0},{"$f":"'PEF CLASSIFICATION SHEET'!$E572","v":0},{"$f":"'PEF CLASSIFICATION SHEET'!E573","v":0},{"$f":"'PEF CLASSIFICATION SHEET'!E574","v":0},{"$f":"'PEF CLASSIFICATION SHEET'!E575","v":0},{"$f":"'PEF CLASSIFICATION SHEET'!E576","v":0}]
[null,"RATES PER DAY:",null,{"$f":"D122*8","v":0},0,0,0,0,0,0,0,0,0,0]
[null,"PAYROLL BURDEN:",null,{"$f":"SUM(D121*D123)","v":0},0,0,0,0,0,0,0,0,0,0]
[null,"TOTAL WORKDAYS:",null,{"$f":"SUM(D121:N121)","v":0}]
[null,"TOTAL PAYROLL BURDEN:",null,{"$f":"SUM(D124:N124)","v":0}]
[null,"AVERAGE COST PER HOUR:",null,{"$f":"SUM(D126/(D125*8))","v":{"$error":"#DIV/0!"}}]
[null,"GENERAL OVERHEAD:",{"$f":"PDEA_OTHER_SUB2_CONSULTANT_OVERHEAD","v":0},{"$f":"SUM(D126*C128)","v":0}]
[null,"SUBTOTAL:",null,{"$f":"SUM(D126+D128)","v":0}]
[null,"COMPARATIVE FEE:",{"$f":"PDEA_OTHER_SUB2_CONSULTANT_FEE","v":0.09},{"$f":"SUM(D129*C130)","v":0}]
[null,"FACILITIES COST OF CAPITAL:",{"$f":"PDEA_OTHER_SUB2_CONSULTANT_COSTofCAPITAL","v":0},{"$f":"SUM(D126*C131)","v":0}]
[null,"TOTAL:",null,{"$f":"SUM(D129:D131)","v":0}]
[null,"DIRECT EXPENSES:",null,{"$f":"PDEA_OTHER_SUB2_DIRECT_NONSALARY_TOTAL","v":0}]
[null,"OTHER GRAND TOTAL:",null,{"$f":"SUM(D132:D133)","v":0}]
[]
[]
[null,"Costs",null,"Workdays",null,null,null,null,"Dollars"]
[null,null,null,{"$f":"PDEA_OTHER_SUB2_CONSULTANT_DISCIPLINE","v":"Project Mgmt--SUB2"},"PEF","Delta ","Delta %",null,{"$f":"PDEA_OTHER_SUB2_CONSULTANT_DISCIPLINE","v":"Project Mgmt--SUB2"},null,null,null,null,null,null,"PEF",null,"Delta ","Delta %"]
[null,null,null,null,null,{"$f":"SUM(E139-D139)","v":0},{"$f":"SUM((F139/D139)*100)","v":{"$error":"#DIV/0!"}},null,null,null,null,null,null,null,null,null,null,{"$f":"SUM(P139-I139)","v":0},{"$f":"SUM((R139/I139)*100)","v":{"$error":"#DIV/0!"}}]
[]
[]
[null,null,null,null,null,null,null,"Directs","Dollars"]
[null,null,null,null,null,null,null,null,{"$f":"PDEA_OTHER_SUB2_CONSULTANT_DISCIPLINE","v":"Project Mgmt--SUB2"},null,null,null,null,null,null,"PEF",null,"Delta ","Delta %"]
[null,null,null,null,null,null,null,null,null,null,null,null,null,null,null,null,null,{"$f":"SUM(P144-I144)","v":0},{"$f":"SUM((R144/I144)*100)","v":{"$error":"#DIV/0!"}}]

{"sheet":"PM-Exp-Sub2","index":70,"n_rows":96,"n_cols":8,"rows_kept":96,"cut":false,"hidden":true,"merged":[[5,1,5,3],[5,6,5,7],[6,1,6,3],[6,4,6,6],[0,0,0,2],[0,3,0,7],[2,1,2,3],[3,1,3,7],[4,1,4,3],[4,6,4,7]]}
[{"$f":"PDEA_OTHER_SUB2_CONSULTANT_DISCIPLINE","v":"Project Mgmt--SUB2"},null,null,"DIRECT EXPENSES"]
[]
["FIRM:",{"$f":"'PM-Sub2'!G3","v":"CONSULTANT NAME"}]
["PROJECT DESCRIPTION: ",{"$f":"PROJECT.DESCRIPTION","v":0}]
["PREPARED BY:  ",{"$f":"PDEA.OTHER.SUB2.PREPARED.BY","v":""},null,null,"TASK ORDER NUMBER:",null,{"$f":"TASK.ORDER.NUMBER","v":0}]
["TIP NUMBER:",{"$f":"TIP.NUMBER","v":0},null,null,"WBS NUMBER:",null,{"$f":"WBS.NUMBER","v":""}]
["DATE PREPARED:",{"$f":"IF('PM-Sub2'!R3=\"\",\"\",MAX('PM-Sub2'!R3:'PM-Sub2'!R4))","v":""},null,null,"REVIEWED BY UNIT HEAD ON:",null,null,{"$f":"IF(SCOPE.MANDAY.ESTIMATE.APPROVED.BY.DATE=\"\",\"\",SCOPE.MANDAY.ESTIMATE.APPROVED.BY.DATE)","v":""}]
["GENERAL PROJECT WORK:","ITEM","QTY","DESCRIPTION",null,null,"UNIT COST "]
[null,"Travel:"]
[null,"Sedan",null,"Trip(s) @",null,"miles @",{"$f":"SEDAN","v":0.7},{"$f":"SUM(C10*E10*G10)","v":0}]
[null,"Carry All",null,"Trip(s) @",null,"miles @",{"$f":"CARRYALL","v":0.72},{"$f":"SUM(C11*E11*G11)","v":0}]
[null,"Car Rental",null,null,null,"days @ ",{"$f":"CARRENTAL","v":50},{"$f":"SUM(E12*G12)","v":0}]
[null,"Gas for Rental",null,null,null,"miles @",{"$f":"GASforRENTAL","v":0.2},{"$f":"SUM(E13*G13)","v":0}]
[null,"Parking:",null,"Trip(s) @",null,null,{"$f":"PARKING","v":3},{"$f":"SUM(C14*G14)","v":0}]
[null,"Per Diem:",null,"Breakfast",null,null,{"$f":"BREAKFAST","v":10.1},0]
[null,null,null,"Lunch",null,null,{"$f":"LUNCH","v":13.3},0]
[null,null,null,"Dinner",null,null,{"$f":"DINNER","v":23.1},0]
[null,null,null,"Lodging",null,null,{"$f":"LODGING_LUMP.SUM","v":95},0]
[null,"Reproduction:",null,"8 1/2 x 11 B & W Copies @",null,null,{"$f":"LETTERCOPIES","v":0.14000000000000001},0]
[null,null,null,"11 x 17 B & W Copies @",null,null,{"$f":"LEDGERCOPIES","v":0.34},0]
[null,null,null,"8 1/2 x 11 Color Copies @",null,null,{"$f":"LETTERCOLOR","v":0.83},0]
[null,null,null,"11 x 17 Color Copies @",null,null,{"$f":"LEDGERCOLOR","v":1.66},0]
[null,null,null,"SQ. FT. of Plots (B & W or Color)",null,"<65 SQ. FT.*",{"$f":"ROLLPLOTSshort","v":6.5},0]
[null,null,null,"SQ. FT. of Plots (B & W or Color)",null,">65 SQ. FT.*",{"$f":"ROLLPLOTSlong","v":1.5},0]
[null,null,null,"Cover(s) @",null,null,{"$f":"COVERS","v":0.5},0]
[null,null,null,"Binder(s) @",null,null,{"$f":"BINDERS","v":0.5},0]
[null,null,null,"Blueprints - 8 1/2 x 11 @",null,null,{"$f":"BLUEPRINTSLETTER","v":0.35},0]
[null,null,null,"Blueprints - 42 x 72 @",null,null,{"$f":"BLUEPRINTSLARGE","v":1.3},0]
[null,"Film and Developing:",null,"Roll(s) @",null,null,{"$f":"FILM","v":20},0]
[null,null,null,null,null,"Subtotal",null,{"$f":"SUM(H10:H29)","v":0}]
["MAPS AND DOCUMENTS:","ITEM","QTY","DESCRIPTION",null,null,"UNIT COST "]
[null,"County Tax Maps:",null,"Map(s) @",null,null,{"$f":"County_Tax_Maps","v":7},{"$f":"SUM(C32*G32)","v":0}]
[null,"USGS Maps:",null,"Map(s) @",null,null,{"$f":"USGSMAPS","v":7},{"$f":"SUM(C33*G33)","v":0}]
[null,null,null,null,null,"Subtotal",null,{"$f":"SUM(H32:H33)","v":0}]
["TECHNICAL REPORTS:","ITEM","QTY","DESCRIPTION",null,null,"UNIT COST "]
[null,"Reproduction:",null,"8 1/2 x 11 B & W Copies @",null,null,{"$f":"LETTERCOPIES","v":0.14000000000000001},{"$f":"SUM(C36*G36)","v":0}]
[null,null,null,"11 x 17 B & W Copies @",null,null,{"$f":"LEDGERCOPIES","v":0.34},0]
[null,null,null,"8 1/2 x 11 Color Copies @",null,null,{"$f":"LETTERCOLOR","v":0.83},0]
[null,null,null,"11 x 17 Color Copies @",null,null,{"$f":"LEDGERCOLOR","v":1.66},0]
[null,null,null,"SQ. FT. of Plots (B & W or Color)",null,"<65 SQ. FT.*",{"$f":"ROLLPLOTSshort","v":6.5},0]
[null,null,null,"SQ. FT. of Plots (B & W or Color)",null,">65 SQ. FT.*",{"$f":"ROLLPLOTSlong","v":1.5},0]
[null,null,null,"Cover(s) @",null,null,{"$f":"COVERS","v":0.5},0]
[null,null,null,"Binder(s) @",null,null,{"$f":"BINDERS","v":0.5},0]
[null,null,null,null,null,"Subtotal",null,{"$f":"SUM(H36:H43)","v":0}]
["DESIGN:","ITEM","QTY","DESCRIPTION",null,null,"UNIT COST "]
[null,"Reproduction:",null,"8 1/2 x 11 B & W Copies @",null,null,{"$f":"LETTERCOPIES","v":0.14000000000000001},{"$f":"SUM(C46*G46)","v":0}]
[null,null,null,"11 x 17 B & W Copies @",null,null,{"$f":"LEDGERCOPIES","v":0.34},0]
[null,null,null,"Blueprints - 8 1/2 x 11 @",null,null,{"$f":"BLUEPRINTSLETTER","v":0.35},0]
[null,null,null,"Mylar - 8 1/2 x 11 @",null,null,{"$f":"MYLARSLETTER","v":7.32},0]
[null,null,null,"Mylar - 36 x 48 @",null,null,{"$f":"MYLARSLARGE","v":28.12},0]
[null,null,null,"Prints  - 24 x 36 @",null,null,{"$f":"PRINTSLARGE","v":3},0]
[null,null,null,"Blueprints - 42 x 72 @",null,null,{"$f":"BLUEPRINTSLARGE","v":1.3},0]
[null,null,null,"SQ. FT. of Plots (B & W or Color)",null,"<65 SQ. FT.*",{"$f":"ROLLPLOTSshort","v":6.5},0]
[null,null,null,"SQ. FT. of Plots (B & W or Color)",null,">65 SQ. FT.*",{"$f":"ROLLPLOTSlong","v":1.5},0]
[null,null,null,"USGS Map(s)",null,null,{"$f":"USGSMAPS","v":7},0]
[null,null,null,null,null,"Subtotal",null,{"$f":"SUM(H46:H55)","v":0}]
["MEETINGS & PUBLIC INVOLVEMENT:","ITEM","QTY","DESCRIPTION",null,null,"UNIT COST "]
[null,"Travel:"]
[null,"Sedan",null,"Trip(s) @",null,"miles @",{"$f":"SEDAN","v":0.7},{"$f":"SUM(C59*E59*G59)","v":0}]
[null,"CarryAll",null,"Trip(s) @",null,"miles @",{"$f":"CARRYALL","v":0.72},{"$f":"SUM(C60*E60*G60)","v":0}]
[null,"Car Rental",null,null,null,"days @",{"$f":"CARRENTAL","v":50},{"$f":"SUM(E61*G61)","v":0}]
[null,"Gas for Rental",null,null,null,"miles @",{"$f":"GASforRENTAL","v":0.2},{"$f":"SUM(E62*G62)","v":0}]
[null,"Parking:",null,"Trip(s) @",null,null,{"$f":"PARKING","v":3},{"$f":"SUM(C63*G63)","v":0}]
[null,"Per Diem:",null,"Breakfast",null,null,{"$f":"BREAKFAST","v":10.1},{"$f":"SUM(C64*G64)","v":0}]
[null,null,null,"Lunch",null,null,{"$f":"LUNCH","v":13.3},{"$f":"SUM(C65*G65)","v":0}]
[null,null,null,"Dinner",null,null,{"$f":"DINNER","v":23.1},{"$f":"SUM(C66*G66)","v":0}]
[null,null,null,"Lodging",null,null,{"$f":"LODGING_LUMP.SUM","v":95},{"$f":"SUM(C67*G67)","v":0}]
[null,"Workshop "]
[null,"  - Reproduction",null,"8 1/2 x 11 B & W Copies @",null,"Handouts",{"$f":"LETTERCOPIES","v":0.14000000000000001},{"$f":"SUM(C69*E69*G69)","v":0}]
[null,null,null,"11 x 17 B & W Copies @",null,"Handouts",{"$f":"LEDGERCOPIES","v":0.34},{"$f":"SUM(C70*E70*G70)","v":0}]
[null,null,null,"8 1/2 x 11 Color Copies @",null,null,{"$f":"LETTERCOLOR","v":0.83},{"$f":"SUM(C71*G71)","v":0}]
[null,null,null,"11 x 17 Color Copies @",null,null,{"$f":"LEDGERCOLOR","v":1.66},0]
[null,null,null,"SQ. FT. of Plots (B & W or Color)",null,"<65 SQ. FT.*",{"$f":"ROLLPLOTSshort","v":6.5},0]
[null,null,null,"SQ. FT. of Plots (B & W or Color)",null,">65 SQ. FT.*",{"$f":"ROLLPLOTSlong","v":1.5},0]
[null,null,null,"SQ. FT. Foam Mounting Board @",null,null,{"$f":"FOAMMOUNTINGBOARD","v":1.25},0]
[null,"Presentation Materials:",null,"Misc. Workshop Supplies @",null,"per workshop",{"$f":"MISCWORKSHOPSUPPLIES","v":50},0]
[null,"Mailing Labels:",null,"Laser Peel & Stick (box)",null,"750 per box",{"$f":"LASERPEELandSTICK","v":4},0]
[null,"Postage:"]
[null,"  - Public Workshops:",null,"Notice or Newsletter @",null,"copies @",{"$f":"POSTAGE","v":0.49},{"$f":"SUM(C79*E79*G79)","v":0}]
[null,null,null,null,null,"Subtotal",null,{"$f":"SUM(H58:H79)","v":0}]
["Miscellaneous Other","ITEM","QTY","DESCRIPTION",null,null,"UNIT COST "]
[null,null,null,null,null,null,null,{"$f":"SUM(C82*G82)","v":0}]
[null,null,null,null,null,null,null,{"$f":"SUM(C83*G83)","v":0}]
[null,null,null,null,null,null,null,0]
[null,null,null,null,null,null,null,0]
[null,null,null,null,null,null,null,0]
[null,null,null,null,null,null,null,0]
[null,null,null,null,null,null,null,0]
[null,null,null,null,null,null,null,{"$f":"SUM(C89*G89)","v":0}]
[null,null,null,null,null,null,null,{"$f":"SUM(C90*G90)","v":0}]
[null,null,null,null,null,null,null,{"$f":"SUM(C91*G91)","v":0}]
[null,null,null,null,null,"Subtotal",null,{"$f":"SUM(H82:H91)","v":0}]
[]
[null,null,null,null,null,"TOTAL",null,{"$f":"SUM(H30+H34+H44+H56+H80+H92)","v":0}]
[]
[null,"* Sum of all plots "]

{"sheet":"IM-BikePed","index":71,"n_rows":135,"n_cols":27,"rows_kept":135,"cut":false,"hidden":true,"merged":[[140,8,140,9],[140,10,140,11],[143,8,143,13],[144,8,144,9],[144,10,144,11],[145,8,145,9],[145,10,145,11],[119,26,119,27],[134,1,135,1],[134,3,135,4],[138,3,138,6],[138,8,138,13],[139,8,139,9],[139,10,139,11],[113,26,113,27],[114,26,114,27],[115,26,115,27],[116,26,116,27],[117,26,117,27],[118,26,118,27],[107,26,107,27],[108,26,108,27],[109,26,109,27],[110,26,110,27],[111,26,111,27],[112,26,112,27],[101,26,101,27],[102,26,102,27],[103,26,103,27],[104,26,104,27],[105,26,105,27],[106,26,106,27],[95,26,95,27],[96,26,96,27],[97,26,97,27],[98,26,98,27],[99,26,99,27],[100,26,100,27],[89,26,89,27],[90,26,90,27],[91,26,91,27],[92,26,92,27],[93,26,93,27],[94,26,94,27],[83,26,83,27],[84,26,84,27],[85,26,85,27],[86,26,86,27],[87,26,87,27],[88,26,88,27],[77,26,77,27],[78,26,78,27],[79,26,79,27],[80,26,80,27],[81,26,81,27],[82,26,82,27],[71,26,71,27],[72,26,72,27],[73,26,73,27],[74,26,74,27],[75,26,75,27],[76,26,76,27],[65,26,65,27],[66,26,66,27],[67,26,67,27],[68,26,68,27],[69,26,69,27],[70,26,70,27],[59,26,59,27],[60,26,60,27],[61,26,61,27],[62,26,62,27],[63,26,63,27],[64,26,64,27],[53,26,53,27],[54,26,54,27],[55,26,55,27],[56,26,56,27],[57,26,57,27],[58,26,58,27],[47,26,47,27],[48,26,48,27],[49,26,49,27],[50,26,50,27],[51,26,51,27],[52,26,52,27],[41,26,41,27],[42,26,42,27],[43,26,43,27],[44,26,44,27],[45,26,45,27],[46,26,46,27],[35,26,35,27],[36,26,36,27],[37,26,37,27],[38,26,38,27],[39,26,39,27],[40,26,40,27],[29,26,29,27],[30,26,30,27],[31,26,31,27],[32,26,32,27],[33,26,33,27],[34,26,34,27],[23,26,23,27],[24,26,24,27],[25,26,25,27],[26,26,26,27],[27,26,27,27],[28,26,28,27],[19,26,19,27],[20,26,20,27],[21,26,21,27],[22,26,22,27],[11,26,11,27],[12,26,12,27],[13,26,13,27],[14,26,14,27],[15,26,15,27],[16,26,16,27],[8,26,8,27],[6,12,9,12],[6,13,9,13],[6,14,9,14],[6,15,9,15],[6,16,9,16],[6,17,9,17],[17,26,17,27],[18,26,18,27],[10,26,10,27],[4,3,4,22],[6,3,9,3],[6,4,9,4],[6,5,9,5],[6,6,9,6],[6,7,9,7],[6,8,9,8],[6,9,9,9],[6,10,9,10],[6,11,9,11],[6,18,9,18],[6,19,9,19],[6,20,9,20],[6,21,9,21],[6,22,9,22],[0,0,1,13],[2,1,2,4],[2,6,2,7],[2,10,2,11],[2,15,2,16],[3,1,3,4],[3,6,3,7],[3,10,3,11],[3,15,3,16]]}
["BICYCLE AND PEDESTRIAN--PRIME BREAKDOWN WORKSHEET -- ENTER WORKHOURS"]
[]
["PROJECT DESCRIPTION: ",{"$f":"PROJECT.DESCRIPTION","v":0},null,null,null,"FIRM:  ",{"$f":"BIKEANDPED.PRIME_CONSULTANT_NAME","v":"CONSULTANT NAME"},null,"TASK ORDER NUMBER:",null,{"$f":"TASK.ORDER.NUMBER","v":0},null,"DATE PREPARED:",{"$f":"IF(SCOPE.MANDAY.ESTIMATE.PREPARED.BY.DATE=\"\",\"\",SCOPE.MANDAY.ESTIMATE.PREPARED.BY.DATE)","v":""}]
["PREPARED BY:  ",{"$f":"IF(SCOPE.MANDAY.ESTIMATE.PREPARED.BY=\"\",\"\",SCOPE.MANDAY.ESTIMATE.PREPARED.BY)","v":""},null,null,null,"TIP NUMBER:",{"$f":"TIP.NUMBER","v":0},null,"WBS NUMBER:",null,{"$f":"WBS.NUMBER","v":""},null,"REVISION DATE:",{"$f":"IF(SCOPE.MANDAY.ESTIMATE.APPROVED.BY.DATE=\"\",\"\",SCOPE.MANDAY.ESTIMATE.APPROVED.BY.DATE)","v":""}]
[null,null,null,"ESTIMATED WORKHOURS"]
[null,null,"EMPLOYEE NAMES",{"$f":"IF('PEF CLASSIFICATION SHEET'!D208=\"\",\"\",LEFT('PEF CLASSIFICATION SHEET'!D208,4))","v":""},{"$f":"IF('PEF CLASSIFICATION SHEET'!D209=\"\",\"\",LEFT('PEF CLASSIFICATION SHEET'!D209,4))","v":""},{"$f":"IF('PEF CLASSIFICATION SHEET'!D210=\"\",\"\",LEFT('PEF CLASSIFICATION SHEET'!D210,4))","v":""},{"$f":"IF('PEF CLASSIFICATION SHEET'!D211=\"\",\"\",LEFT('PEF CLASSIFICATION SHEET'!D211,4))","v":""},{"$f":"IF('PEF CLASSIFICATION SHEET'!D212=\"\",\"\",LEFT('PEF CLASSIFICATION SHEET'!D212,4))","v":""},{"$f":"IF('PEF CLASSIFICATION SHEET'!D213=\"\",\"\",LEFT('PEF CLASSIFICATION SHEET'!D213,4))","v":""},{"$f":"IF('PEF CLASSIFICATION SHEET'!D214=\"\",\"\",LEFT('PEF CLASSIFICATION SHEET'!D214,4))","v":""},{"$f":"IF('PEF CLASSIFICATION SHEET'!D215=\"\",\"\",LEFT('PEF CLASSIFICATION SHEET'!D215,4))","v":""},{"$f":"IF('PEF CLASSIFICATION SHEET'!D216=\"\",\"\",LEFT('PEF CLASSIFICATION SHEET'!D216,4))","v":""},{"$f":"IF('PEF CLASSIFICATION SHEET'!D217=\"\",\"\",LEFT('PEF CLASSIFICATION SHEET'!D217,4))","v":""},{"$f":"IF('PEF CLASSIFICATION SHEET'!D218=\"\",\"\",LEFT('PEF CLASSIFICATION SHEET'!D218,4))","v":""},{"$f":"IF('PEF CLASSIFICATION SHEET'!D219=\"\",\"\",LEFT('PEF CLASSIFICATION SHEET'!D219,4))","v":""},{"$f":"IF('PEF CLASSIFICATION SHEET'!D220=\"\",\"\",LEFT('PEF CLASSIFICATION SHEET'!D220,4))","v":""},{"$f":"IF('PEF CLASSIFICATION SHEET'!D221=\"\",\"\",LEFT('PEF CLASSIFICATION SHEET'!D221,4))","v":""},{"$f":"IF('PEF CLASSIFICATION SHEET'!D222=\"\",\"\",LEFT('PEF CLASSIFICATION SHEET'!D222,4))","v":""},{"$f":"IF('PEF CLASSIFICATION SHEET'!D223=\"\",\"\",LEFT('PEF CLASSIFICATION SHEET'!D223,4))","v":""},{"$f":"IF('PEF CLASSIFICATION SHEET'!D224=\"\",\"\",LEFT('PEF CLASSIFICATION SHEET'!D224,4))","v":""},{"$f":"IF('PEF CLASSIFICATION SHEET'!D225=\"\",\"\",LEFT('PEF CLASSIFICATION SHEET'!D225,4))","v":""},{"$f":"IF('PEF CLASSIFICATION SHEET'!D226=\"\",\"\",LEFT('PEF CLASSIFICATION SHEET'!D226,4))","v":""},{"$f":"IF('PEF CLASSIFICATION SHEET'!D227=\"\",\"\",LEFT('PEF CLASSIFICATION SHEET'!D227,4))","v":""}]
[null,null,null,{"$f":"IF('PEF CLASSIFICATION SHEET'!C208=\"\",\"\",'PEF CLASSIFICATION SHEET'!C208)","v":""},{"$f":"IF('PEF CLASSIFICATION SHEET'!C209=\"\",\"\",'PEF CLASSIFICATION SHEET'!C209)","v":""},{"$f":"IF('PEF CLASSIFICATION SHEET'!C210=\"\",\"\",'PEF CLASSIFICATION SHEET'!C210)","v":""},{"$f":"IF('PEF CLASSIFICATION SHEET'!C211=\"\",\"\",'PEF CLASSIFICATION SHEET'!C211)","v":""},{"$f":"IF('PEF CLASSIFICATION SHEET'!C212=\"\",\"\",'PEF CLASSIFICATION SHEET'!C212)","v":""},{"$f":"IF('PEF CLASSIFICATION SHEET'!C213=\"\",\"\",'PEF CLASSIFICATION SHEET'!C213)","v":""},{"$f":"IF('PEF CLASSIFICATION SHEET'!C214=\"\",\"\",'PEF CLASSIFICATION SHEET'!C214)","v":""},{"$f":"IF('PEF CLASSIFICATION SHEET'!C215=\"\",\"\",'PEF CLASSIFICATION SHEET'!C215)","v":""},{"$f":"IF('PEF CLASSIFICATION SHEET'!C216=\"\",\"\",'PEF CLASSIFICATION SHEET'!C216)","v":""},{"$f":"IF('PEF CLASSIFICATION SHEET'!C217=\"\",\"\",'PEF CLASSIFICATION SHEET'!C217)","v":""},{"$f":"IF('PEF CLASSIFICATION SHEET'!C218=\"\",\"\",'PEF CLASSIFICATION SHEET'!C218)","v":""},{"$f":"IF('PEF CLASSIFICATION SHEET'!C219=\"\",\"\",'PEF CLASSIFICATION SHEET'!C219)","v":""},{"$f":"IF('PEF CLASSIFICATION SHEET'!C220=\"\",\"\",'PEF CLASSIFICATION SHEET'!C220)","v":""},{"$f":"IF('PEF CLASSIFICATION SHEET'!C221=\"\",\"\",'PEF CLASSIFICATION SHEET'!C221)","v":""},{"$f":"IF('PEF CLASSIFICATION SHEET'!C222=\"\",\"\",'PEF CLASSIFICATION SHEET'!C222)","v":""},{"$f":"IF('PEF CLASSIFICATION SHEET'!C223=\"\",\"\",'PEF CLASSIFICATION SHEET'!C223)","v":""},{"$f":"IF('PEF CLASSIFICATION SHEET'!C224=\"\",\"\",'PEF CLASSIFICATION SHEET'!C224)","v":""},{"$f":"IF('PEF CLASSIFICATION SHEET'!C225=\"\",\"\",'PEF CLASSIFICATION SHEET'!C225)","v":""},{"$f":"IF('PEF CLASSIFICATION SHEET'!C226=\"\",\"\",'PEF CLASSIFICATION SHEET'!C226)","v":""},{"$f":"IF('PEF CLASSIFICATION SHEET'!C227=\"\",\"\",'PEF CLASSIFICATION SHEET'!C227)","v":""},"SUB-","%","PEF"]
[null,null,null,null,null,null,null,null,null,null,null,null,null,null,null,null,null,null,null,null,null,null,null,"TOTAL","OF","ESTIMATE"]
["TASK","TASK DESCRIPTION","CLASSIFICATION",null,null,null,null,null,null,null,null,null,null,null,null,null,null,null,null,null,null,null,null,null,"PROJECT",null,"COMMENTS"]
["NO."]
[null,"Current Conditions Evaluation",null,null,null,null,null,null,null,null,null,null,null,null,null,null,null,null,null,null,null,null,null,{"$f":"IF(B11=\"\",\"\",IF((SUM(D11:W11)=0),0,SUM(D11:W11)))","v":0},{"$f":"IF(X11=\"\",\"\",SUM((X11/$X$121)))","v":{"$error":"#DIV/0!"}}]
[null,"Data Collection",null,null,null,null,null,null,null,null,null,null,null,null,null,null,null,null,null,null,null,null,null,0,{"$f":"IF(X12=\"\",\"\",SUM((X12/$X$121)))","v":{"$error":"#DIV/0!"}}]
[null,"Existing Conditions Inventory & Assessment",null,null,null,null,null,null,null,null,null,null,null,null,null,null,null,null,null,null,null,null,null,0,{"$error":"#DIV/0!"}]
[null,"Existing Plans Review",null,null,null,null,null,null,null,null,null,null,null,null,null,null,null,null,null,null,null,null,null,0,{"$error":"#DIV/0!"}]
[null,"Existing Plans, Programs, Policies Review",null,null,null,null,null,null,null,null,null,null,null,null,null,null,null,null,null,null,null,null,null,0,{"$error":"#DIV/0!"}]
[null,"Existing Policies Review",null,null,null,null,null,null,null,null,null,null,null,null,null,null,null,null,null,null,null,null,null,0,{"$error":"#DIV/0!"}]
[null,"Existing Programs Review",null,null,null,null,null,null,null,null,null,null,null,null,null,null,null,null,null,null,null,null,null,0,{"$error":"#DIV/0!"}]
[null,null,null,null,null,null,null,null,null,null,null,null,null,null,null,null,null,null,null,null,null,null,null,"",""]
[null,null,null,null,null,null,null,null,null,null,null,null,null,null,null,null,null,null,null,null,null,null,null,"",""]
[null,"Implementation",null,null,null,null,null,null,null,null,null,null,null,null,null,null,null,null,null,null,null,null,null,0,{"$error":"#DIV/0!"}]
[null,"Funding Strategies",null,null,null,null,null,null,null,null,null,null,null,null,null,null,null,null,null,null,null,null,null,0,{"$error":"#DIV/0!"}]
[null,"Implementation Plan",null,null,null,null,null,null,null,null,null,null,null,null,null,null,null,null,null,null,null,null,null,0,{"$error":"#DIV/0!"}]
[null,null,null,null,null,null,null,null,null,null,null,null,null,null,null,null,null,null,null,null,null,null,null,"",""]
[null,null,null,null,null,null,null,null,null,null,null,null,null,null,null,null,null,null,null,null,null,null,null,"",""]
[null,"Plan Development",null,null,null,null,null,null,null,null,null,null,null,null,null,null,null,null,null,null,null,null,null,0,{"$error":"#DIV/0!"}]
[null,"Draft Plan Preparation",null,null,null,null,null,null,null,null,null,null,null,null,null,null,null,null,null,null,null,null,null,0,{"$error":"#DIV/0!"}]
[null,"Final Plan Presentation",null,null,null,null,null,null,null,null,null,null,null,null,null,null,null,null,null,null,null,null,null,0,{"$error":"#DIV/0!"}]
[null,"Final Plan Revisions",null,null,null,null,null,null,null,null,null,null,null,null,null,null,null,null,null,null,null,null,null,0,{"$error":"#DIV/0!"}]
[null,null,null,null,null,null,null,null,null,null,null,null,null,null,null,null,null,null,null,null,null,null,null,"",""]
[null,null,null,null,null,null,null,null,null,null,null,null,null,null,null,null,null,null,null,null,null,null,null,"",""]
[null,"Project Management",null,null,null,null,null,null,null,null,null,null,null,null,null,null,null,null,null,null,null,null,null,0,{"$error":"#DIV/0!"}]
[null,"Project Administration",null,null,null,null,null,null,null,null,null,null,null,null,null,null,null,null,null,null,null,null,null,0,{"$error":"#DIV/0!"}]
[null,"Project Kickoff Meeting",null,null,null,null,null,null,null,null,null,null,null,null,null,null,null,null,null,null,null,null,null,0,{"$error":"#DIV/0!"}]
[null,null,null,null,null,null,null,null,null,null,null,null,null,null,null,null,null,null,null,null,null,null,null,"",""]
[null,null,null,null,null,null,null,null,null,null,null,null,null,null,null,null,null,null,null,null,null,null,null,"",""]
[null,"Public & Stakeholder Involvement",null,null,null,null,null,null,null,null,null,null,null,null,null,null,null,null,null,null,null,null,null,0,{"$error":"#DIV/0!"}]
[null,"Public Involvement",null,null,null,null,null,null,null,null,null,null,null,null,null,null,null,null,null,null,null,null,null,0,{"$error":"#DIV/0!"}]
[null,"Public Workshop #XX",null,null,null,null,null,null,null,null,null,null,null,null,null,null,null,null,null,null,null,null,null,0,{"$error":"#DIV/0!"}]
[null,"Stakeholder Involvement  ",null,null,null,null,null,null,null,null,null,null,null,null,null,null,null,null,null,null,null,null,null,0,{"$error":"#DIV/0!"}]
[null,"Steering Committee Meeting #XX",null,null,null,null,null,null,null,null,null,null,null,null,null,null,null,null,null,null,null,null,null,0,{"$error":"#DIV/0!"}]
[null,null,null,null,null,null,null,null,null,null,null,null,null,null,null,null,null,null,null,null,null,null,null,"",""]
[null,null,null,null,null,null,null,null,null,null,null,null,null,null,null,null,null,null,null,null,null,null,null,"",""]
[null,"Recommendations",null,null,null,null,null,null,null,null,null,null,null,null,null,null,null,null,null,null,null,null,null,0,{"$error":"#DIV/0!"}]
[null,"Cost Estimates",null,null,null,null,null,null,null,null,null,null,null,null,null,null,null,null,null,null,null,null,null,0,{"$error":"#DIV/0!"}]
[null,"Other Recommendations",null,null,null,null,null,null,null,null,null,null,null,null,null,null,null,null,null,null,null,null,null,0,{"$error":"#DIV/0!"}]
[null,"Policy Recommendations",null,null,null,null,null,null,null,null,null,null,null,null,null,null,null,null,null,null,null,null,null,0,{"$error":"#DIV/0!"}]
[null,"Program Recommendations",null,null,null,null,null,null,null,null,null,null,null,null,null,null,null,null,null,null,null,null,null,0,{"$error":"#DIV/0!"}]
[null,"Project Recommendations",null,null,null,null,null,null,null,null,null,null,null,null,null,null,null,null,null,null,null,null,null,0,{"$error":"#DIV/0!"}]
[null,null,null,null,null,null,null,null,null,null,null,null,null,null,null,null,null,null,null,null,null,null,null,"",""]
[null,null,null,null,null,null,null,null,null,null,null,null,null,null,null,null,null,null,null,null,null,null,null,"",""]
[null,"MISCELLANEOUS ITEMS",null,null,null,null,null,null,null,null,null,null,null,null,null,null,null,null,null,null,null,null,null,0,{"$error":"#DIV/0!"}]
[null,null,null,null,null,null,null,null,null,null,null,null,null,null,null,null,null,null,null,null,null,null,null,"",""]
[null,null,null,null,null,null,null,null,null,null,null,null,null,null,null,null,null,null,null,null,null,null,null,"",""]
[null,null,null,null,null,null,null,null,null,null,null,null,null,null,null,null,null,null,null,null,null,null,null,"",""]
[null,null,null,null,null,null,null,null,null,null,null,null,null,null,null,null,null,null,null,null,null,null,null,"",""]
[null,null,null,null,null,null,null,null,null,null,null,null,null,null,null,null,null,null,null,null,null,null,null,"",""]
[null,null,null,null,null,null,null,null,null,null,null,null,null,null,null,null,null,null,null,null,null,null,null,"",""]
[null,null,null,null,null,null,null,null,null,null,null,null,null,null,null,null,null,null,null,null,null,null,null,"",""]
[null,null,null,null,null,null,null,null,null,null,null,null,null,null,null,null,null,null,null,null,null,null,null,"",""]
[null,null,null,null,null,null,null,null,null,null,null,null,null,null,null,null,null,null,null,null,null,null,null,"",""]
[null,null,null,null,null,null,null,null,null,null,null,null,null,null,null,null,null,null,null,null,null,null,null,"",""]
[null,"FEASIBILITY STUDIES",null,null,null,null,null,null,null,null,null,null,null,null,null,null,null,null,null,null,null,null,null,0,{"$error":"#DIV/0!"}]
[null,null,null,null,null,null,null,null,null,null,null,null,null,null,null,null,null,null,null,null,null,null,null,"",""]
[null,null,null,null,null,null,null,null,null,null,null,null,null,null,null,null,null,null,null,null,null,null,null,"",""]
[null,null,null,null,null,null,null,null,null,null,null,null,null,null,null,null,null,null,null,null,null,null,null,"",""]
[null,null,null,null,null,null,null,null,null,null,null,null,null,null,null,null,null,null,null,null,null,null,null,"",""]
[null,null,null,null,null,null,null,null,null,null,null,null,null,null,null,null,null,null,null,null,null,null,null,"",""]
[null,null,null,null,null,null,null,null,null,null,null,null,null,null,null,null,null,null,null,null,null,null,null,"",""]
[null,null,null,null,null,null,null,null,null,null,null,null,null,null,null,null,null,null,null,null,null,null,null,"",""]
[null,null,null,null,null,null,null,null,null,null,null,null,null,null,null,null,null,null,null,null,null,null,null,"",""]
[null,null,null,null,null,null,null,null,null,null,null,null,null,null,null,null,null,null,null,null,null,null,null,"",""]
[null,null,null,null,null,null,null,null,null,null,null,null,null,null,null,null,null,null,null,null,null,null,null,"",""]
[null,null,null,null,null,null,null,null,null,null,null,null,null,null,null,null,null,null,null,null,null,null,null,"",""]
[null,null,null,null,null,null,null,null,null,null,null,null,null,null,null,null,null,null,null,null,null,null,null,"",""]
[null,null,null,null,null,null,null,null,null,null,null,null,null,null,null,null,null,null,null,null,null,null,null,{"$f":"IF(B75=\"\",\"\",IF((SUM(D75:W75)=0),0,SUM(D75:W75)))","v":""},""]
[null,null,null,null,null,null,null,null,null,null,null,null,null,null,null,null,null,null,null,null,null,null,null,"",{"$f":"IF(X76=\"\",\"\",SUM((X76/$X$121)))","v":""}]
[null,null,null,null,null,null,null,null,null,null,null,null,null,null,null,null,null,null,null,null,null,null,null,"",""]
[null,null,null,null,null,null,null,null,null,null,null,null,null,null,null,null,null,null,null,null,null,null,null,"",""]
[null,null,null,null,null,null,null,null,null,null,null,null,null,null,null,null,null,null,null,null,null,null,null,"",""]
[null,null,null,null,null,null,null,null,null,null,null,null,null,null,null,null,null,null,null,null,null,null,null,"",""]
[null,null,null,null,null,null,null,null,null,null,null,null,null,null,null,null,null,null,null,null,null,null,null,"",""]
[null,null,null,null,null,null,null,null,null,null,null,null,null,null,null,null,null,null,null,null,null,null,null,"",""]
[null,"OTHER TASKS",null,null,null,null,null,null,null,null,null,null,null,null,null,null,null,null,null,null,null,null,null,0,{"$error":"#DIV/0!"}]
[null,null,null,null,null,null,null,null,null,null,null,null,null,null,null,null,null,null,null,null,null,null,null,"",""]
[null,null,null,null,null,null,null,null,null,null,null,null,null,null,null,null,null,null,null,null,null,null,null,"",""]
[null,null,null,null,null,null,null,null,null,null,null,null,null,null,null,null,null,null,null,null,null,null,null,"",""]
[null,null,null,null,null,null,null,null,null,null,null,null,null,null,null,null,null,null,null,null,null,null,null,"",""]
[null,null,null,null,null,null,null,null,null,null,null,null,null,null,null,null,null,null,null,null,null,null,null,"",""]
[null,null,null,null,null,null,null,null,null,null,null,null,null,null,null,null,null,null,null,null,null,null,null,"",""]
[null,null,null,null,null,null,null,null,null,null,null,null,null,null,null,null,null,null,null,null,null,null,null,"",""]
[null,null,null,null,null,null,null,null,null,null,null,null,null,null,null,null,null,null,null,null,null,null,null,"",""]
[null,null,null,null,null,null,null,null,null,null,null,null,null,null,null,null,null,null,null,null,null,null,null,"",""]
[null,null,null,null,null,null,null,null,null,null,null,null,null,null,null,null,null,null,null,null,null,null,null,"",""]
[null,null,null,null,null,null,null,null,null,null,null,null,null,null,null,null,null,null,null,null,null,null,null,"",""]
[null,null,null,null,null,null,null,null,null,null,null,null,null,null,null,null,null,null,null,null,null,null,null,"",""]
[null,null,null,null,null,null,null,null,null,null,null,null,null,null,null,null,null,null,null,null,null,null,null,"",""]
[null,null,null,null,null,null,null,null,null,null,null,null,null,null,null,null,null,null,null,null,null,null,null,"",""]
[null,null,null,null,null,null,null,null,null,null,null,null,null,null,null,null,null,null,null,null,null,null,null,"",""]
[null,null,null,null,null,null,null,null,null,null,null,null,null,null,null,null,null,null,null,null,null,null,null,"",""]
[null,null,null,null,null,null,null,null,null,null,null,null,null,null,null,null,null,null,null,null,null,null,null,"",""]
[null,null,null,null,null,null,null,null,null,null,null,null,null,null,null,null,null,null,null,null,null,null,null,"",""]
[null,null,null,null,null,null,null,null,null,null,null,null,null,null,null,null,null,null,null,null,null,null,null,"",""]
[null,null,null,null,null,null,null,null,null,null,null,null,null,null,null,null,null,null,null,null,null,null,null,"",""]
[null,null,null,null,null,null,null,null,null,null,null,null,null,null,null,null,null,null,null,null,null,null,null,"",""]
[null,null,null,null,null,null,null,null,null,null,null,null,null,null,null,null,null,null,null,null,null,null,null,"",""]
[null,null,null,null,null,null,null,null,null,null,null,null,null,null,null,null,null,null,null,null,null,null,null,"",""]
[null,null,null,null,null,null,null,null,null,null,null,null,null,null,null,null,null,null,null,null,null,null,null,"",""]
[null,null,null,null,null,null,null,null,null,null,null,null,null,null,null,null,null,null,null,null,null,null,null,"",""]
[null,null,null,null,null,null,null,null,null,null,null,null,null,null,null,null,null,null,null,null,null,null,null,"",""]
[null,null,null,null,null,null,null,null,null,null,null,null,null,null,null,null,null,null,null,null,null,null,null,"",""]
[null,null,null,null,null,null,null,null,null,null,null,null,null,null,null,null,null,null,null,null,null,null,null,"",""]
[null,null,null,null,null,null,null,null,null,null,null,null,null,null,null,null,null,null,null,null,null,null,null,"",""]
[null,null,null,null,null,null,null,null,null,null,null,null,null,null,null,null,null,null,null,null,null,null,null,"",""]
[null,null,null,null,null,null,null,null,null,null,null,null,null,null,null,null,null,null,null,null,null,null,null,"",""]
[null,null,null,null,null,null,null,null,null,null,null,null,null,null,null,null,null,null,null,null,null,null,null,"",""]
[null,null,null,null,null,null,null,null,null,null,null,null,null,null,null,null,null,null,null,null,null,null,null,"",""]
[null,null,null,null,null,null,null,null,null,null,null,null,null,null,null,null,null,null,null,null,null,null,null,"",""]
[null,null,null,null,null,null,null,null,null,null,null,null,null,null,null,null,null,null,null,null,null,null,null,"",""]
[null,null,null,null,null,null,null,null,null,null,null,null,null,null,null,null,null,null,null,null,null,null,null,"",""]
[null,null,null,null,null,null,null,null,null,null,null,null,null,null,null,null,null,null,null,null,null,null,null,"",""]
[null,"TOTAL WORKHOURS/CATEGORY:",null,{"$f":"SUM(D11:D120)","v":0},0,0,0,0,0,0,0,0,0,0,0,0,0,0,0,0,0,0,0,{"$f":"SUM(X11:X120)","v":0},{"$f":"SUM(Y11:Y120)","v":{"$error":"#DIV/0!"}},{"$f":"SUM(Z12:Z120)","v":0}]
[null,"TOTAL WORKDAYS/CATEGORY:",null,{"$f":"D121/8","v":0},{"$f":"E121/8","v":0},0,0,0,0,0,0,0,0,0,0,0,0,0,0,0,0,0,0]
[null,"HOURLY SALARY RATE:",null,{"$f":"'PEF CLASSIFICATION SHEET'!E208","v":0},{"$f":"'PEF CLASSIFICATION SHEET'!E209","v":0},{"$f":"'PEF CLASSIFICATION SHEET'!E210","v":0},{"$f":"'PEF CLASSIFICATION SHEET'!E211","v":0},{"$f":"'PEF CLASSIFICATION SHEET'!E212","v":0},{"$f":"'PEF CLASSIFICATION SHEET'!E213","v":0},{"$f":"'PEF CLASSIFICATION SHEET'!E214","v":0},{"$f":"'PEF CLASSIFICATION SHEET'!E215","v":0},{"$f":"'PEF CLASSIFICATION SHEET'!E216","v":0},{"$f":"'PEF CLASSIFICATION SHEET'!E217","v":0},{"$f":"'PEF CLASSIFICATION SHEET'!E218","v":0},{"$f":"'PEF CLASSIFICATION SHEET'!E219","v":0},{"$f":"'PEF CLASSIFICATION SHEET'!E220","v":0},{"$f":"'PEF CLASSIFICATION SHEET'!E221","v":0},{"$f":"'PEF CLASSIFICATION SHEET'!E222","v":0},{"$f":"'PEF CLASSIFICATION SHEET'!E223","v":0},{"$f":"'PEF CLASSIFICATION SHEET'!E224","v":0},{"$f":"'PEF CLASSIFICATION SHEET'!E225","v":0},{"$f":"'PEF CLASSIFICATION SHEET'!E226","v":0},{"$f":"'PEF CLASSIFICATION SHEET'!E227","v":0}]
[null,"RATES PER DAY:",null,{"$f":"D123*8","v":0},0,0,0,0,0,0,0,0,0,0,0,0,0,0,0,0,0,0,0]
[null,"PAYROLL BURDEN:",null,{"$f":"SUM(D121*D123)","v":0},{"$f":"SUM(E121*E123)","v":0},0,0,0,0,0,0,0,0,0,0,0,0,0,0,0,0,0,0]
[null,"TOTAL WORKDAYS:",null,{"$f":"SUM(D122:W122)","v":0}]
[null,"TOTAL PAYROLL BURDEN:",null,{"$f":"SUM(D125:W125)","v":0}]
[null,"AVERAGE COST PER HOUR:",null,{"$f":"SUM(D127/(D126*8))","v":{"$error":"#DIV/0!"}}]
[null,"GENERAL OVERHEAD:",{"$f":"BIKEANDPED.PRIME_CONSULTANT_OVERHEAD","v":0},{"$f":"SUM(D127*C129)","v":0}]
[null,"SUBTOTAL:",null,{"$f":"SUM(D127+D129)","v":0}]
[null,"COMPARATIVE FEE:",{"$f":"BIKEANDPED.PRIME_CONSULTANT_FEE","v":0.09},{"$f":"SUM(D130*C131)","v":0}]
[null,"FACILITIES COST OF CAPITAL:",{"$f":"BIKEANDPED.PRIME_CONSULTANT_COSTofCAPITAL","v":0},{"$f":"SUM(D127*C132)","v":0}]
[null,"TOTAL:",null,{"$f":"SUM(D130:D132)","v":0}]
[null,"DIRECT EXPENSES:",null,{"$f":"BIKEANDPED.PRIME_DIRECT_NONSALARY_TOTAL","v":0}]
[null,"BICYCLE AND PEDESTRIAN GRAND TOTAL:",null,{"$f":"SUM(D133:D134)","v":0}]

{"sheet":"PM-Other-Sub1","index":72,"n_rows":145,"n_cols":19,"rows_kept":145,"cut":false,"hidden":true,"merged":[[133,1,134,1],[133,3,134,4],[137,3,137,6],[137,8,137,18],[119,17,119,18],[144,8,144,14],[144,15,144,16],[138,8,138,14],[138,15,138,16],[139,8,139,14],[139,15,139,16],[142,8,142,18],[143,8,143,14],[143,15,143,16],[113,17,113,18],[114,17,114,18],[115,17,115,18],[116,17,116,18],[117,17,117,18],[118,17,118,18],[107,17,107,18],[108,17,108,18],[109,17,109,18],[110,17,110,18],[111,17,111,18],[112,17,112,18],[101,17,101,18],[102,17,102,18],[103,17,103,18],[104,17,104,18],[105,17,105,18],[106,17,106,18],[95,17,95,18],[96,17,96,18],[97,17,97,18],[98,17,98,18],[99,17,99,18],[100,17,100,18],[89,17,89,18],[90,17,90,18],[91,17,91,18],[92,17,92,18],[93,17,93,18],[94,17,94,18],[83,17,83,18],[84,17,84,18],[85,17,85,18],[86,17,86,18],[87,17,87,18],[88,17,88,18],[77,17,77,18],[78,17,78,18],[79,17,79,18],[80,17,80,18],[81,17,81,18],[82,17,82,18],[71,17,71,18],[72,17,72,18],[73,17,73,18],[74,17,74,18],[75,17,75,18],[76,17,76,18],[65,17,65,18],[66,17,66,18],[67,17,67,18],[68,17,68,18],[69,17,69,18],[70,17,70,18],[59,17,59,18],[60,17,60,18],[61,17,61,18],[62,17,62,18],[63,17,63,18],[64,17,64,18],[53,17,53,18],[54,17,54,18],[55,17,55,18],[56,17,56,18],[57,17,57,18],[58,17,58,18],[47,17,47,18],[48,17,48,18],[49,17,49,18],[50,17,50,18],[51,17,51,18],[52,17,52,18],[41,17,41,18],[42,17,42,18],[43,17,43,18],[44,17,44,18],[45,17,45,18],[46,17,46,18],[35,17,35,18],[36,17,36,18],[37,17,37,18],[38,17,38,18],[39,17,39,18],[40,17,40,18],[29,17,29,18],[30,17,30,18],[31,17,31,18],[32,17,32,18],[33,17,33,18],[34,17,34,18],[23,17,23,18],[24,17,24,18],[25,17,25,18],[26,17,26,18],[27,17,27,18],[28,17,28,18],[17,17,17,18],[18,17,18,18],[19,17,19,18],[20,17,20,18],[21,17,21,18],[22,17,22,18],[11,17,11,18],[12,17,12,18],[13,17,13,18],[14,17,14,18],[15,17,15,18],[16,17,16,18],[6,9,10,9],[6,10,10,10],[6,11,10,11],[6,12,10,12],[6,13,10,13],[9,17,9,18],[6,3,10,3],[6,4,10,4],[6,5,10,5],[6,6,10,6],[6,7,10,7],[6,8,10,8],[3,1,3,4],[3,6,3,7],[3,10,3,11],[3,15,3,16],[3,17,3,18],[4,3,4,13],[0,0,1,18],[2,1,2,4],[2,6,2,7],[2,10,2,11],[2,15,2,16],[2,17,2,18]]}
[{"$f":"CONCATENATE('PEF CLASSIFICATION SHEET'!B579,\" BREAKDOWN WORKSHEET - SUBCONSULTANT 1\")","v":"PM-Other--SUB1 BREAKDOWN WORKSHEET - SUBCONSULTANT 1"}]
[]
["PROJECT DESCRIPTION: ",{"$f":"PROJECT.DESCRIPTION","v":0},null,null,null,"FIRM:  ",{"$f":"PDEA_PLANNING_ROADWAY_SUB1_CONSULTANT_NAME","v":"CONSULTANT NAME"},null,"TASK ORDER NUMBER:",null,{"$f":"TASK.ORDER.NUMBER","v":0},null,null,null,null,"DATE PREPARED:",null,{"$f":"IF(SCOPE.MANDAY.ESTIMATE.PREPARED.BY.DATE=\"\",\"\",SCOPE.MANDAY.ESTIMATE.PREPARED.BY.DATE)","v":""}]
["PREPARED BY:  ",{"$f":"IF(SCOPE.MANDAY.ESTIMATE.PREPARED.BY=\"\",\"\",SCOPE.MANDAY.ESTIMATE.PREPARED.BY)","v":""},null,null,null,"TIP NUMBER:",{"$f":"TIP.NUMBER","v":0},null,"WBS NUMBER:",null,{"$f":"WBS.NUMBER","v":""},null,null,null,null,"REVISION DATE:",null,{"$f":"IF(SCOPE.MANDAY.ESTIMATE.APPROVED.BY.DATE=\"\",\"\",SCOPE.MANDAY.ESTIMATE.APPROVED.BY.DATE)","v":""}]
[null,null,null,"ESTIMATED WORK DAYS"]
[null,null,"Employee",{"$f":"IF('PEF CLASSIFICATION SHEET'!$D579=\"\",\"\",LEFT('PEF CLASSIFICATION SHEET'!$D579,4))","v":""},{"$f":"IF('PEF CLASSIFICATION SHEET'!$D580=\"\",\"\",LEFT('PEF CLASSIFICATION SHEET'!$D580,4))","v":""},{"$f":"IF('PEF CLASSIFICATION SHEET'!$D581=\"\",\"\",LEFT('PEF CLASSIFICATION SHEET'!$D581,4))","v":""},{"$f":"IF('PEF CLASSIFICATION SHEET'!$D582=\"\",\"\",LEFT('PEF CLASSIFICATION SHEET'!$D582,4))","v":""},{"$f":"IF('PEF CLASSIFICATION SHEET'!$D583=\"\",\"\",LEFT('PEF CLASSIFICATION SHEET'!$D583,4))","v":""},{"$f":"IF('PEF CLASSIFICATION SHEET'!$D584=\"\",\"\",LEFT('PEF CLASSIFICATION SHEET'!$D584,4))","v":""},{"$f":"IF('PEF CLASSIFICATION SHEET'!$D585=\"\",\"\",LEFT('PEF CLASSIFICATION SHEET'!$D585,4))","v":""},{"$f":"IF('PEF CLASSIFICATION SHEET'!D586=\"\",\"\",LEFT('PEF CLASSIFICATION SHEET'!D586,4))","v":""},{"$f":"IF('PEF CLASSIFICATION SHEET'!D587=\"\",\"\",LEFT('PEF CLASSIFICATION SHEET'!D587,4))","v":""},{"$f":"IF('PEF CLASSIFICATION SHEET'!D588=\"\",\"\",LEFT('PEF CLASSIFICATION SHEET'!D588,4))","v":""},{"$f":"IF('PEF CLASSIFICATION SHEET'!D589=\"\",\"\",LEFT('PEF CLASSIFICATION SHEET'!D589,4))","v":""}]
[null,null,null,{"$f":"IF('PEF CLASSIFICATION SHEET'!$C579=\"\",\"\",'PEF CLASSIFICATION SHEET'!$C579)","v":""},{"$f":"IF('PEF CLASSIFICATION SHEET'!$C580=\"\",\"\",'PEF CLASSIFICATION SHEET'!$C580)","v":""},{"$f":"IF('PEF CLASSIFICATION SHEET'!$C581=\"\",\"\",'PEF CLASSIFICATION SHEET'!$C581)","v":""},{"$f":"IF('PEF CLASSIFICATION SHEET'!$C582=\"\",\"\",'PEF CLASSIFICATION SHEET'!$C582)","v":""},{"$f":"IF('PEF CLASSIFICATION SHEET'!$C583=\"\",\"\",'PEF CLASSIFICATION SHEET'!$C583)","v":""},{"$f":"IF('PEF CLASSIFICATION SHEET'!$C584=\"\",\"\",'PEF CLASSIFICATION SHEET'!$C584)","v":""},{"$f":"IF('PEF CLASSIFICATION SHEET'!$C585=\"\",\"\",'PEF CLASSIFICATION SHEET'!$C585)","v":""},{"$f":"IF('PEF CLASSIFICATION SHEET'!C586=\"\",\"\",'PEF CLASSIFICATION SHEET'!C586)","v":""},{"$f":"IF('PEF CLASSIFICATION SHEET'!C587=\"\",\"\",'PEF CLASSIFICATION SHEET'!C587)","v":""},{"$f":"IF('PEF CLASSIFICATION SHEET'!C588=\"\",\"\",'PEF CLASSIFICATION SHEET'!C588)","v":""},{"$f":"IF('PEF CLASSIFICATION SHEET'!C589=\"\",\"\",'PEF CLASSIFICATION SHEET'!C589)","v":""}]
[null,null,"Classification",null,null,null,null,null,null,null,null,null,null,null,"SUB-","%","PEF"]
[null,null,null,null,null,null,null,null,null,null,null,null,null,null,"TOTAL","OF","ESTIMATE"]
["TASK","TASK DESCRIPTION",null,null,null,null,null,null,null,null,null,null,null,null,null,"PROJECT",null,"COMMENTS"]
["NO."]
[null,null,null,null,null,null,null,null,null,null,null,null,null,null,{"$f":"IF(B12=\"\",0,IF((SUM(D12:N12)=0),\"\",SUM(D12:N12)))","v":0},{"$f":"IF(O12=\"\",\"\",SUM((O12/$O$121)))","v":{"$error":"#DIV/0!"}}]
[null,null,null,null,null,null,null,null,null,null,null,null,null,null,{"$f":"IF(B13=\"\",0,IF((SUM(D13:N13)=0),\"\",SUM(D13:N13)))","v":0},{"$f":"IF(O13=\"\",\"\",SUM((O13/$O$121)))","v":{"$error":"#DIV/0!"}}]
[null,null,null,null,null,null,null,null,null,null,null,null,null,null,{"$f":"IF(B14=\"\",0,IF((SUM(D14:N14)=0),\"\",SUM(D14:N14)))","v":0},{"$f":"IF(O14=\"\",\"\",SUM((O14/$O$121)))","v":{"$error":"#DIV/0!"}}]
[null,null,null,null,null,null,null,null,null,null,null,null,null,null,0,{"$error":"#DIV/0!"}]
[null,null,null,null,null,null,null,null,null,null,null,null,null,null,0,{"$error":"#DIV/0!"}]
[null,null,null,null,null,null,null,null,null,null,null,null,null,null,0,{"$error":"#DIV/0!"}]
[null,null,null,null,null,null,null,null,null,null,null,null,null,null,0,{"$error":"#DIV/0!"}]
[null,null,null,null,null,null,null,null,null,null,null,null,null,null,0,{"$error":"#DIV/0!"}]
[null,null,null,null,null,null,null,null,null,null,null,null,null,null,0,{"$error":"#DIV/0!"}]
[null,null,null,null,null,null,null,null,null,null,null,null,null,null,0,{"$error":"#DIV/0!"}]
[null,null,null,null,null,null,null,null,null,null,null,null,null,null,0,{"$error":"#DIV/0!"}]
[null,null,null,null,null,null,null,null,null,null,null,null,null,null,0,{"$error":"#DIV/0!"}]
[null,null,null,null,null,null,null,null,null,null,null,null,null,null,0,{"$error":"#DIV/0!"}]
[null,null,null,null,null,null,null,null,null,null,null,null,null,null,0,{"$error":"#DIV/0!"}]
[null,null,null,null,null,null,null,null,null,null,null,null,null,null,0,{"$error":"#DIV/0!"}]
[null,null,null,null,null,null,null,null,null,null,null,null,null,null,0,{"$error":"#DIV/0!"}]
[null,null,null,null,null,null,null,null,null,null,null,null,null,null,0,{"$error":"#DIV/0!"}]
[null,null,null,null,null,null,null,null,null,null,null,null,null,null,0,{"$error":"#DIV/0!"}]
[null,null,null,null,null,null,null,null,null,null,null,null,null,null,0,{"$error":"#DIV/0!"}]
[null,null,null,null,null,null,null,null,null,null,null,null,null,null,0,{"$error":"#DIV/0!"}]
[null,null,null,null,null,null,null,null,null,null,null,null,null,null,0,{"$error":"#DIV/0!"}]
[null,null,null,null,null,null,null,null,null,null,null,null,null,null,0,{"$error":"#DIV/0!"}]
[null,null,null,null,null,null,null,null,null,null,null,null,null,null,0,{"$error":"#DIV/0!"}]
[null,null,null,null,null,null,null,null,null,null,null,null,null,null,0,{"$error":"#DIV/0!"}]
[null,null,null,null,null,null,null,null,null,null,null,null,null,null,0,{"$error":"#DIV/0!"}]
[null,null,null,null,null,null,null,null,null,null,null,null,null,null,0,{"$error":"#DIV/0!"}]
[null,null,null,null,null,null,null,null,null,null,null,null,null,null,0,{"$error":"#DIV/0!"}]
[null,null,null,null,null,null,null,null,null,null,null,null,null,null,0,{"$error":"#DIV/0!"}]
[null,null,null,null,null,null,null,null,null,null,null,null,null,null,0,{"$error":"#DIV/0!"}]
[null,null,null,null,null,null,null,null,null,null,null,null,null,null,0,{"$error":"#DIV/0!"}]
[null,null,null,null,null,null,null,null,null,null,null,null,null,null,0,{"$error":"#DIV/0!"}]
[null,null,null,null,null,null,null,null,null,null,null,null,null,null,0,{"$error":"#DIV/0!"}]
[null,null,null,null,null,null,null,null,null,null,null,null,null,null,0,{"$error":"#DIV/0!"}]
[null,null,null,null,null,null,null,null,null,null,null,null,null,null,0,{"$error":"#DIV/0!"}]
[null,null,null,null,null,null,null,null,null,null,null,null,null,null,0,{"$error":"#DIV/0!"}]
[null,null,null,null,null,null,null,null,null,null,null,null,null,null,0,{"$error":"#DIV/0!"}]
[null,null,null,null,null,null,null,null,null,null,null,null,null,null,0,{"$error":"#DIV/0!"}]
[null,null,null,null,null,null,null,null,null,null,null,null,null,null,0,{"$error":"#DIV/0!"}]
[null,null,null,null,null,null,null,null,null,null,null,null,null,null,0,{"$error":"#DIV/0!"}]
[null,null,null,null,null,null,null,null,null,null,null,null,null,null,0,{"$error":"#DIV/0!"}]
[null,null,null,null,null,null,null,null,null,null,null,null,null,null,0,{"$error":"#DIV/0!"}]
[null,null,null,null,null,null,null,null,null,null,null,null,null,null,0,{"$error":"#DIV/0!"}]
[null,null,null,null,null,null,null,null,null,null,null,null,null,null,0,{"$error":"#DIV/0!"}]
[null,null,null,null,null,null,null,null,null,null,null,null,null,null,0,{"$error":"#DIV/0!"}]
[null,null,null,null,null,null,null,null,null,null,null,null,null,null,0,{"$error":"#DIV/0!"}]
[null,null,null,null,null,null,null,null,null,null,null,null,null,null,0,{"$error":"#DIV/0!"}]
[null,null,null,null,null,null,null,null,null,null,null,null,null,null,0,{"$error":"#DIV/0!"}]
[null,null,null,null,null,null,null,null,null,null,null,null,null,null,0,{"$error":"#DIV/0!"}]
[null,null,null,null,null,null,null,null,null,null,null,null,null,null,0,{"$error":"#DIV/0!"}]
[null,null,null,null,null,null,null,null,null,null,null,null,null,null,0,{"$error":"#DIV/0!"}]
[null,null,null,null,null,null,null,null,null,null,null,null,null,null,0,{"$error":"#DIV/0!"}]
[null,null,null,null,null,null,null,null,null,null,null,null,null,null,0,{"$error":"#DIV/0!"}]
[null,null,null,null,null,null,null,null,null,null,null,null,null,null,0,{"$error":"#DIV/0!"}]
[null,null,null,null,null,null,null,null,null,null,null,null,null,null,0,{"$error":"#DIV/0!"}]
[null,null,null,null,null,null,null,null,null,null,null,null,null,null,0,{"$error":"#DIV/0!"}]
[null,null,null,null,null,null,null,null,null,null,null,null,null,null,0,{"$error":"#DIV/0!"}]
[null,null,null,null,null,null,null,null,null,null,null,null,null,null,0,{"$error":"#DIV/0!"}]
[null,null,null,null,null,null,null,null,null,null,null,null,null,null,0,{"$error":"#DIV/0!"}]
[null,null,null,null,null,null,null,null,null,null,null,null,null,null,0,{"$error":"#DIV/0!"}]
[null,null,null,null,null,null,null,null,null,null,null,null,null,null,0,{"$error":"#DIV/0!"}]
[null,null,null,null,null,null,null,null,null,null,null,null,null,null,0,{"$error":"#DIV/0!"}]
[null,null,null,null,null,null,null,null,null,null,null,null,null,null,0,{"$error":"#DIV/0!"}]
[null,null,null,null,null,null,null,null,null,null,null,null,null,null,0,{"$error":"#DIV/0!"}]
[null,null,null,null,null,null,null,null,null,null,null,null,null,null,0,{"$error":"#DIV/0!"}]
[null,null,null,null,null,null,null,null,null,null,null,null,null,null,0,{"$error":"#DIV/0!"}]
[null,null,null,null,null,null,null,null,null,null,null,null,null,null,0,{"$error":"#DIV/0!"}]
[null,null,null,null,null,null,null,null,null,null,null,null,null,null,{"$f":"IF(B78=\"\",0,IF((SUM(D78:N78)=0),\"\",SUM(D78:N78)))","v":0},{"$f":"IF(O78=\"\",\"\",SUM((O78/$O$121)))","v":{"$error":"#DIV/0!"}}]
[null,null,null,null,null,null,null,null,null,null,null,null,null,null,0,{"$error":"#DIV/0!"}]
[null,null,null,null,null,null,null,null,null,null,null,null,null,null,0,{"$error":"#DIV/0!"}]
[null,null,null,null,null,null,null,null,null,null,null,null,null,null,0,{"$error":"#DIV/0!"}]
[null,null,null,null,null,null,null,null,null,null,null,null,null,null,0,{"$error":"#DIV/0!"}]
[null,null,null,null,null,null,null,null,null,null,null,null,null,null,0,{"$error":"#DIV/0!"}]
[null,null,null,null,null,null,null,null,null,null,null,null,null,null,0,{"$error":"#DIV/0!"}]
[null,null,null,null,null,null,null,null,null,null,null,null,null,null,0,{"$error":"#DIV/0!"}]
[null,null,null,null,null,null,null,null,null,null,null,null,null,null,0,{"$error":"#DIV/0!"}]
[null,null,null,null,null,null,null,null,null,null,null,null,null,null,0,{"$error":"#DIV/0!"}]
[null,null,null,null,null,null,null,null,null,null,null,null,null,null,0,{"$error":"#DIV/0!"}]
[null,null,null,null,null,null,null,null,null,null,null,null,null,null,0,{"$error":"#DIV/0!"}]
[null,null,null,null,null,null,null,null,null,null,null,null,null,null,0,{"$error":"#DIV/0!"}]
[null,null,null,null,null,null,null,null,null,null,null,null,null,null,0,{"$error":"#DIV/0!"}]
[null,null,null,null,null,null,null,null,null,null,null,null,null,null,0,{"$error":"#DIV/0!"}]
[null,null,null,null,null,null,null,null,null,null,null,null,null,null,0,{"$error":"#DIV/0!"}]
[null,null,null,null,null,null,null,null,null,null,null,null,null,null,0,{"$error":"#DIV/0!"}]
[null,null,null,null,null,null,null,null,null,null,null,null,null,null,0,{"$error":"#DIV/0!"}]
[null,null,null,null,null,null,null,null,null,null,null,null,null,null,0,{"$error":"#DIV/0!"}]
[null,null,null,null,null,null,null,null,null,null,null,null,null,null,0,{"$error":"#DIV/0!"}]
[null,null,null,null,null,null,null,null,null,null,null,null,null,null,0,{"$error":"#DIV/0!"}]
[null,null,null,null,null,null,null,null,null,null,null,null,null,null,0,{"$error":"#DIV/0!"}]
[null,null,null,null,null,null,null,null,null,null,null,null,null,null,0,{"$error":"#DIV/0!"}]
[null,null,null,null,null,null,null,null,null,null,null,null,null,null,0,{"$error":"#DIV/0!"}]
[null,null,null,null,null,null,null,null,null,null,null,null,null,null,0,{"$error":"#DIV/0!"}]
[null,null,null,null,null,null,null,null,null,null,null,null,null,null,0,{"$error":"#DIV/0!"}]
[null,null,null,null,null,null,null,null,null,null,null,null,null,null,0,{"$error":"#DIV/0!"}]
[null,null,null,null,null,null,null,null,null,null,null,null,null,null,0,{"$error":"#DIV/0!"}]
[null,null,null,null,null,null,null,null,null,null,null,null,null,null,0,{"$error":"#DIV/0!"}]
[null,null,null,null,null,null,null,null,null,null,null,null,null,null,0,{"$error":"#DIV/0!"}]
[null,null,null,null,null,null,null,null,null,null,null,null,null,null,0,{"$error":"#DIV/0!"}]
[null,null,null,null,null,null,null,null,null,null,null,null,null,null,0,{"$error":"#DIV/0!"}]
[null,null,null,null,null,null,null,null,null,null,null,null,null,null,0,{"$error":"#DIV/0!"}]
[null,null,null,null,null,null,null,null,null,null,null,null,null,null,0,{"$error":"#DIV/0!"}]
[null,null,null,null,null,null,null,null,null,null,null,null,null,null,0,{"$error":"#DIV/0!"}]
[null,null,null,null,null,null,null,null,null,null,null,null,null,null,0,{"$error":"#DIV/0!"}]
[null,null,null,null,null,null,null,null,null,null,null,null,null,null,0,{"$error":"#DIV/0!"}]
[null,null,null,null,null,null,null,null,null,null,null,null,null,null,0,{"$error":"#DIV/0!"}]
[null,null,null,null,null,null,null,null,null,null,null,null,null,null,0,{"$error":"#DIV/0!"}]
[null,null,null,null,null,null,null,null,null,null,null,null,null,null,0,{"$error":"#DIV/0!"}]
[null,null,null,null,null,null,null,null,null,null,null,null,null,null,0,{"$error":"#DIV/0!"}]
[null,null,null,null,null,null,null,null,null,null,null,null,null,null,0,{"$error":"#DIV/0!"}]
[null,null,null,null,null,null,null,null,null,null,null,null,null,null,{"$f":"IF(B120=\"\",0,IF((SUM(D120:N120)=0),\"\",SUM(D120:N120)))","v":0},{"$f":"IF(O120=\"\",\"\",SUM((O120/$O$121)))","v":{"$error":"#DIV/0!"}}]
[null,"TOTAL WORKDAYS/CATEGORY:",null,{"$f":"(SUM(D12:D120))","v":0},0,0,0,0,0,0,0,0,0,0,0,{"$f":"SUM(P12:P120)","v":{"$error":"#DIV/0!"}},{"$f":"(SUM(Q12:Q120))","v":0}]
[null,"HOURLY SALARY RATE:",null,{"$f":"'PEF CLASSIFICATION SHEET'!$E579","v":0},{"$f":"'PEF CLASSIFICATION SHEET'!$E580","v":0},{"$f":"'PEF CLASSIFICATION SHEET'!$E581","v":0},{"$f":"'PEF CLASSIFICATION SHEET'!$E582","v":0},{"$f":"'PEF CLASSIFICATION SHEET'!$E583","v":0},{"$f":"'PEF CLASSIFICATION SHEET'!$E584","v":0},{"$f":"'PEF CLASSIFICATION SHEET'!$E585","v":0},{"$f":"'PEF CLASSIFICATION SHEET'!E586","v":0},{"$f":"'PEF CLASSIFICATION SHEET'!E587","v":0},{"$f":"'PEF CLASSIFICATION SHEET'!E588","v":0},{"$f":"'PEF CLASSIFICATION SHEET'!E589","v":0}]
[null,"RATES PER DAY:",null,{"$f":"D122*8","v":0},0,0,0,0,0,0,0,0,0,0]
[null,"PAYROLL BURDEN:",null,{"$f":"SUM(D121*D123)","v":0},0,0,0,0,0,0,0,0,0,0]
[null,"TOTAL WORKDAYS:",null,{"$f":"SUM(D121:N121)","v":0}]
[null,"TOTAL PAYROLL BURDEN:",null,{"$f":"SUM(D124:N124)","v":0}]
[null,"AVERAGE COST PER HOUR:",null,{"$f":"SUM(D126/(D125*8))","v":{"$error":"#DIV/0!"}}]
[null,"GENERAL OVERHEAD:",{"$f":"PDEA_PLANNING_ROADWAY_SUB1_CONSULTANT_OVERHEAD","v":0},{"$f":"SUM(D126*C128)","v":0}]
[null,"SUBTOTAL:",null,{"$f":"SUM(D126+D128)","v":0}]
[null,"COMPARATIVE FEE:",{"$f":"PDEA_PLANNING_ROADWAY_SUB1_CONSULTANT_FEE","v":0.09},{"$f":"SUM(D129*C130)","v":0}]
[null,"FACILITIES COST OF CAPITAL:",{"$f":"PDEA_PLANNING_ROADWAY_SUB1_CONSULTANT_COSTofCAPITAL","v":0},{"$f":"SUM(D126*C131)","v":0}]
[null,"TOTAL:",null,{"$f":"SUM(D129:D131)","v":0}]
[null,"DIRECT EXPENSES:",null,{"$f":"PDEA_PLANNING_ROADWAY_SUB1_DIRECT_NONSALARY_TOTAL","v":0}]
[null,"ROADWAY GRAND TOTAL:",null,{"$f":"SUM(D132:D133)","v":0}]
[]
[]
[]
[null,"Costs",null,"Workdays",null,null,null,null,"Dollars"]
[null,null,null,"PM Roadway","PEF","Delta ","Delta %",null,"PM Roadway",null,null,null,null,null,null,"PEF",null,"Delta ","Delta %"]
[null,null,null,null,null,{"$f":"SUM(E140-D140)","v":0},{"$f":"SUM((F140/D140)*100)","v":{"$error":"#DIV/0!"}},null,null,null,null,null,null,null,null,null,null,{"$f":"SUM(P140-I140)","v":0},{"$f":"SUM((R140/I140)*100)","v":{"$error":"#DIV/0!"}}]
[]
[]
[null,null,null,null,null,null,null,"Directs","Dollars"]
[null,null,null,null,null,null,null,null,"PM Roadway",null,null,null,null,null,null,"PEF",null,"Delta ","Delta %"]
[null,null,null,null,null,null,null,null,null,null,null,null,null,null,null,null,null,{"$f":"SUM(P145-I145)","v":0},{"$f":"SUM((R145/I145)*100)","v":{"$error":"#DIV/0!"}}]

{"sheet":"PM-Other-Exp-Sub1","index":73,"n_rows":96,"n_cols":8,"rows_kept":96,"cut":false,"hidden":true,"merged":[[6,1,6,3],[6,4,6,6],[0,0,0,7],[3,1,3,7],[4,1,4,3],[4,6,4,7],[5,1,5,3],[5,6,5,7],[2,1,2,3]]}
[{"$f":"CONCATENATE('PEF CLASSIFICATION SHEET'!B579,\" DIRECT EXPENSES - SUBCONSULTANT 1\")","v":"PM-Other--SUB1 DIRECT EXPENSES - SUBCONSULTANT 1"}]
[]
["FIRM:",{"$f":"'PM-Other-Sub1'!G3","v":"CONSULTANT NAME"}]
["PROJECT DESCRIPTION: ",{"$f":"PROJECT.DESCRIPTION","v":0}]
["PREPARED BY:  ",{"$f":"PDEA.ROADWAY.SUB1.PREPARED.BY","v":""},null,null,"TASK ORDER NUMBER:",null,{"$f":"TASK.ORDER.NUMBER","v":0}]
["TIP NUMBER:",{"$f":"TIP.NUMBER","v":0},null,null,"WBS NUMBER:",null,{"$f":"WBS.NUMBER","v":""}]
["DATE PREPARED:",{"$f":"IF('PM-Other-Sub1'!R3=\"\",\"\",MAX('PM-Other-Sub1'!R3:'PM-Other-Sub1'!R4))","v":""},null,null,"REVIEWED BY UNIT HEAD ON:",null,null,{"$f":"IF(SCOPE.MANDAY.ESTIMATE.APPROVED.BY.DATE=\"\",\"\",SCOPE.MANDAY.ESTIMATE.APPROVED.BY.DATE)","v":""}]
["GENERAL PROJECT WORK:","ITEM","QTY","DESCRIPTION",null,null,"UNIT COST "]
[null,"Travel:"]
[null,"Sedan",null,"Trip(s) @",null,"miles @",{"$f":"SEDAN","v":0.7},{"$f":"SUM(C10*E10*G10)","v":0}]
[null,"Carry All",null,"Trip(s) @",null,"miles @",{"$f":"CARRYALL","v":0.72},{"$f":"SUM(C11*E11*G11)","v":0}]
[null,"Car Rental",null,null,null,"days @ ",{"$f":"CARRENTAL","v":50},{"$f":"SUM(E12*G12)","v":0}]
[null,"Gas for Rental",null,null,null,"miles @",{"$f":"GASforRENTAL","v":0.2},{"$f":"SUM(E13*G13)","v":0}]
[null,"Parking:",null,"Trip(s) @",null,null,{"$f":"PARKING","v":3},{"$f":"SUM(C14*G14)","v":0}]
[null,"Per Diem:",null,"Breakfast",null,null,{"$f":"BREAKFAST","v":10.1},{"$f":"SUM(C15*G15)","v":0}]
[null,null,null,"Lunch",null,null,{"$f":"LUNCH","v":13.3},0]
[null,null,null,"Dinner",null,null,{"$f":"DINNER","v":23.1},0]
[null,null,null,"Lodging",null,null,{"$f":"LODGING_LUMP.SUM","v":95},0]
[null,"Reproduction:",null,"8 1/2 x 11 B & W Copies @",null,null,{"$f":"LETTERCOPIES","v":0.14000000000000001},0]
[null,null,null,"11 x 17 B & W Copies @",null,null,{"$f":"LEDGERCOPIES","v":0.34},0]
[null,null,null,"8 1/2 x 11 Color Copies @",null,null,{"$f":"LETTERCOLOR","v":0.83},0]
[null,null,null,"11 x 17 Color Copies @",null,null,{"$f":"LEDGERCOLOR","v":1.66},0]
[null,null,null,"SQ. FT. of Plots (B & W or Color)",null,"<65 SQ. FT.*",{"$f":"ROLLPLOTSshort","v":6.5},0]
[null,null,null,"SQ. FT. of Plots (B & W or Color)",null,">65 SQ. FT.*",{"$f":"ROLLPLOTSlong","v":1.5},0]
[null,null,null,"Cover(s) @",null,null,{"$f":"COVERS","v":0.5},0]
[null,null,null,"Binder(s) @",null,null,{"$f":"BINDERS","v":0.5},0]
[null,null,null,"Blueprints - 8 1/2 x 11 @",null,null,{"$f":"BLUEPRINTSLETTER","v":0.35},0]
[null,null,null,"Blueprints - 42 x 72 @",null,null,{"$f":"BLUEPRINTSLARGE","v":1.3},0]
[null,"Film and Developing:",null,"Roll(s) @",null,null,{"$f":"FILM","v":20},0]
[null,null,null,null,null,"Subtotal",null,{"$f":"SUM(H10:H29)","v":0}]
["MAPS AND DOCUMENTS:","ITEM","QTY","DESCRIPTION",null,null,"UNIT COST "]
[null,"County Tax Maps:",null,"Map(s) @",null,null,{"$f":"County_Tax_Maps","v":7},{"$f":"SUM(C32*G32)","v":0}]
[null,"USGS Maps:",null,"Map(s) @",null,null,{"$f":"USGSMAPS","v":7},{"$f":"SUM(C33*G33)","v":0}]
[null,null,null,null,null,"Subtotal",null,{"$f":"SUM(H32:H33)","v":0}]
["TECHNICAL REPORTS:","ITEM","QTY","DESCRIPTION",null,null,"UNIT COST "]
[null,"Reproduction:",null,"8 1/2 x 11 B & W Copies @",null,null,{"$f":"LETTERCOPIES","v":0.14000000000000001},{"$f":"SUM(C36*G36)","v":0}]
[null,null,null,"11 x 17 B & W Copies @",null,null,{"$f":"LEDGERCOPIES","v":0.34},0]
[null,null,null,"8 1/2 x 11 Color Copies @",null,null,{"$f":"LETTERCOLOR","v":0.83},0]
[null,null,null,"11 x 17 Color Copies @",null,null,{"$f":"LEDGERCOLOR","v":1.66},0]
[null,null,null,"SQ. FT. of Plots (B & W or Color)",null,"<65 SQ. FT.*",{"$f":"ROLLPLOTSshort","v":6.5},0]
[null,null,null,"SQ. FT. of Plots (B & W or Color)",null,">65 SQ. FT.*",{"$f":"ROLLPLOTSlong","v":1.5},0]
[null,null,null,"Cover(s) @",null,null,{"$f":"COVERS","v":0.5},0]
[null,null,null,"Binder(s) @",null,null,{"$f":"BINDERS","v":0.5},0]
[null,null,null,null,null,"Subtotal",null,{"$f":"SUM(H36:H43)","v":0}]
["DESIGN:","ITEM","QTY","DESCRIPTION",null,null,"UNIT COST "]
[null,"Reproduction:",null,"8 1/2 x 11 B & W Copies @",null,null,{"$f":"LETTERCOPIES","v":0.14000000000000001},{"$f":"SUM(C46*G46)","v":0}]
[null,null,null,"11 x 17 B & W Copies @",null,null,{"$f":"LEDGERCOPIES","v":0.34},0]
[null,null,null,"Blueprints - 8 1/2 x 11 @",null,null,{"$f":"BLUEPRINTSLETTER","v":0.35},0]
[null,null,null,"Mylar - 8 1/2 x 11 @",null,null,{"$f":"MYLARSLETTER","v":7.32},0]
[null,null,null,"Mylar - 36 x 48 @",null,null,{"$f":"MYLARSLARGE","v":28.12},0]
[null,null,null,"Prints  - 24 x 36 @",null,null,{"$f":"PRINTSLARGE","v":3},0]
[null,null,null,"Blueprints - 42 x 72 @",null,null,{"$f":"BLUEPRINTSLARGE","v":1.3},0]
[null,null,null,"SQ. FT. of Plots (B & W or Color)",null,"<65 SQ. FT.*",{"$f":"ROLLPLOTSshort","v":6.5},0]
[null,null,null,"SQ. FT. of Plots (B & W or Color)",null,">65 SQ. FT.*",{"$f":"ROLLPLOTSlong","v":1.5},0]
[null,null,null,"USGS Map(s)",null,null,{"$f":"USGSMAPS","v":7},0]
[null,null,null,null,null,"Subtotal",null,{"$f":"SUM(H46:H55)","v":0}]
["MEETINGS & PUBLIC INVOLVEMENT:","ITEM","QTY","DESCRIPTION",null,null,"UNIT COST "]
[null,"Travel:"]
[null,"Sedan",null,"Trip(s) @",null,"miles @",{"$f":"SEDAN","v":0.7},{"$f":"SUM(C59*E59*G59)","v":0}]
[null,"CarryAll",null,"Trip(s) @",null,"miles @",{"$f":"CARRYALL","v":0.72},{"$f":"SUM(C60*E60*G60)","v":0}]
[null,"Car Rental",null,null,null,"days @",{"$f":"CARRENTAL","v":50},{"$f":"SUM(E61*G61)","v":0}]
[null,"Gas for Rental",null,null,null,"miles @",{"$f":"GASforRENTAL","v":0.2},{"$f":"SUM(E62*G62)","v":0}]
[null,"Parking:",null,"Trip(s) @",null,null,{"$f":"PARKING","v":3},{"$f":"SUM(C63*G63)","v":0}]
[null,"Per Diem:",null,"Breakfast",null,null,{"$f":"BREAKFAST","v":10.1},{"$f":"SUM(C64*G64)","v":0}]
[null,null,null,"Lunch",null,null,{"$f":"LUNCH","v":13.3},{"$f":"SUM(C65*G65)","v":0}]
[null,null,null,"Dinner",null,null,{"$f":"DINNER","v":23.1},{"$f":"SUM(C66*G66)","v":0}]
[null,null,null,"Lodging",null,null,{"$f":"LODGING_LUMP.SUM","v":95},{"$f":"SUM(C67*G67)","v":0}]
[null,"Workshop "]
[null,"  - Reproduction",null,"8 1/2 x 11 B & W Copies @",null,"Handouts",{"$f":"LETTERCOPIES","v":0.14000000000000001},{"$f":"SUM(C69*E69*G69)","v":0}]
[null,null,null,"11 x 17 B & W Copies @",null,"Handouts",{"$f":"LEDGERCOPIES","v":0.34},{"$f":"SUM(C70*E70*G70)","v":0}]
[null,null,null,"8 1/2 x 11 Color Copies @",null,null,{"$f":"LETTERCOLOR","v":0.83},{"$f":"SUM(C71*G71)","v":0}]
[null,null,null,"11 x 17 Color Copies @",null,null,{"$f":"LEDGERCOLOR","v":1.66},0]
[null,null,null,"SQ. FT. of Plots (B & W or Color)",null,"<65 SQ. FT.*",{"$f":"ROLLPLOTSshort","v":6.5},0]
[null,null,null,"SQ. FT. of Plots (B & W or Color)",null,">65 SQ. FT.*",{"$f":"ROLLPLOTSlong","v":1.5},0]
[null,null,null,"SQ. FT. Foam Mounting Board @",null,null,{"$f":"FOAMMOUNTINGBOARD","v":1.25},0]
[null,"Presentation Materials:",null,"Misc. Workshop Supplies @",null,"per workshop",{"$f":"MISCWORKSHOPSUPPLIES","v":50},0]
[null,"Mailing Labels:",null,"Laser Peel & Stick (box)",null,"750 per box",{"$f":"LASERPEELandSTICK","v":4},0]
[null,"Postage:"]
[null,"  - Public Workshops:",null,"Notice or Newsletter @",null,"copies @",{"$f":"POSTAGE","v":0.49},{"$f":"SUM(C79*E79*G79)","v":0}]
[null,null,null,null,null,"Subtotal",null,{"$f":"SUM(H58:H79)","v":0}]
["Miscellaneous Other","ITEM","QTY","DESCRIPTION",null,null,"UNIT COST "]
[null,null,null,null,null,null,null,{"$f":"SUM(C82*G82)","v":0}]
[null,null,null,null,null,null,null,{"$f":"SUM(C83*G83)","v":0}]
[null,null,null,null,null,null,null,0]
[null,null,null,null,null,null,null,0]
[null,null,null,null,null,null,null,0]
[null,null,null,null,null,null,null,0]
[null,null,null,null,null,null,null,0]
[null,null,null,null,null,null,null,{"$f":"SUM(C89*G89)","v":0}]
[null,null,null,null,null,null,null,{"$f":"SUM(C90*G90)","v":0}]
[null,null,null,null,null,null,null,{"$f":"SUM(C91*G91)","v":0}]
[null,null,null,null,null,"Subtotal",null,{"$f":"SUM(H82:H91)","v":0}]
[]
[null,null,null,null,null,"TOTAL",null,{"$f":"SUM(H30+H34+H44+H56+H80+H92)","v":0}]
[]
[null,"* Sum of all plots "]

{"sheet":"EN-Natural-Sub1","index":74,"n_rows":145,"n_cols":22,"rows_kept":145,"cut":false,"hidden":true,"merged":[[98,17,98,18],[99,17,99,18],[100,17,100,18],[91,17,91,18],[92,17,92,18],[93,17,93,18],[94,17,94,18],[95,17,95,18],[78,17,78,18],[79,17,79,18],[80,17,80,18],[86,17,86,18],[87,17,87,18],[88,17,88,18],[89,17,89,18],[90,17,90,18],[81,17,81,18],[82,17,82,18],[96,17,96,18],[97,17,97,18],[71,17,71,18],[72,17,72,18],[73,17,73,18],[74,17,74,18],[6,4,10,4],[6,5,10,5],[6,6,10,6],[6,7,10,7],[115,17,115,18],[106,17,106,18],[107,17,107,18],[108,17,108,18],[109,17,109,18],[110,17,110,18],[101,17,101,18],[102,17,102,18],[103,17,103,18],[104,17,104,18],[105,17,105,18],[114,17,114,18],[111,17,111,18],[112,17,112,18],[113,17,113,18],[75,17,75,18],[46,17,46,18],[47,17,47,18],[48,17,48,18],[49,17,49,18],[50,17,50,18],[66,17,66,18],[67,17,67,18],[68,17,68,18],[69,17,69,18],[62,17,62,18],[63,17,63,18],[64,17,64,18],[65,17,65,18],[56,17,56,18],[57,17,57,18],[58,17,58,18],[59,17,59,18],[60,17,60,18],[53,17,53,18],[54,17,54,18],[55,17,55,18],[144,8,144,14],[144,15,144,16],[138,8,138,14],[138,15,138,16],[139,8,139,14],[139,15,139,16],[142,8,142,18],[143,8,143,14],[143,15,143,16],[133,1,134,1],[133,3,134,4],[137,3,137,6],[137,8,137,18],[39,17,39,18],[40,17,40,18],[41,17,41,18],[116,17,116,18],[117,17,117,18],[118,17,118,18],[119,17,119,18],[42,17,42,18],[43,17,43,18],[44,17,44,18],[45,17,45,18],[51,17,51,18],[52,17,52,18],[61,17,61,18],[70,17,70,18],[83,17,83,18],[84,17,84,18],[85,17,85,18],[76,17,76,18],[77,17,77,18],[38,17,38,18],[27,17,27,18],[28,17,28,18],[29,17,29,18],[30,17,30,18],[31,17,31,18],[32,17,32,18],[33,17,33,18],[34,17,34,18],[35,17,35,18],[36,17,36,18],[37,17,37,18],[26,17,26,18],[15,17,15,18],[16,17,16,18],[17,17,17,18],[18,17,18,18],[19,17,19,18],[20,17,20,18],[21,17,21,18],[22,17,22,18],[23,17,23,18],[24,17,24,18],[25,17,25,18],[14,17,14,18],[0,0,0,18],[2,1,2,4],[2,6,2,7],[2,10,2,11],[9,17,9,18],[11,17,11,18],[12,17,12,18],[13,17,13,18],[4,3,4,13],[6,9,10,9],[6,10,10,10],[6,11,10,11],[6,12,10,12],[6,13,10,13],[3,1,3,4],[3,6,3,7],[3,10,3,11],[2,14,2,15],[3,14,3,15],[2,16,2,17],[3,16,3,17],[6,8,10,8],[6,3,10,3]]}
["NATURAL ENVIRONMENT BREAKDOWN WORKSHEET - SUBCONSULTANT 1"]
[]
["PROJECT DESCRIPTION: ",{"$f":"PROJECT.DESCRIPTION","v":0},null,null,null,"FIRM:  ",{"$f":"'PEF CLASSIFICATION SHEET'!C591","v":"CONSULTANT NAME"},null,"TASK ORDER NUMBER:",null,{"$f":"TASK.ORDER.NUMBER","v":0},null,null,null,"DATE PREPARED:"]
["PREPARED BY:  ",{"$f":"IF(SCOPE.MANDAY.ESTIMATE.PREPARED.BY=\"\",\"\",SCOPE.MANDAY.ESTIMATE.PREPARED.BY)","v":""},null,null,null,"TIP NUMBER:",{"$f":"TIP.NUMBER","v":0},null,"WBS NUMBER:",null,{"$f":"WBS.NUMBER","v":""},null,null,null,"REVISION DATE:"]
[null,null,null,"ESTIMATED WORK DAYS"]
[null,null,"Employee",{"$f":"IF('PEF CLASSIFICATION SHEET'!$D592=\"\",\"\",LEFT('PEF CLASSIFICATION SHEET'!$D592,4))","v":""},{"$f":"IF('PEF CLASSIFICATION SHEET'!$D593=\"\",\"\",LEFT('PEF CLASSIFICATION SHEET'!$D593,4))","v":""},{"$f":"IF('PEF CLASSIFICATION SHEET'!$D594=\"\",\"\",LEFT('PEF CLASSIFICATION SHEET'!$D594,4))","v":""},{"$f":"IF('PEF CLASSIFICATION SHEET'!$D595=\"\",\"\",LEFT('PEF CLASSIFICATION SHEET'!$D595,4))","v":""},{"$f":"IF('PEF CLASSIFICATION SHEET'!$D596=\"\",\"\",LEFT('PEF CLASSIFICATION SHEET'!$D596,4))","v":""},{"$f":"IF('PEF CLASSIFICATION SHEET'!$D597=\"\",\"\",LEFT('PEF CLASSIFICATION SHEET'!$D597,4))","v":""},{"$f":"IF('PEF CLASSIFICATION SHEET'!$D598=\"\",\"\",LEFT('PEF CLASSIFICATION SHEET'!$D598,4))","v":""},{"$f":"IF('PEF CLASSIFICATION SHEET'!D599=\"\",\"\",LEFT('PEF CLASSIFICATION SHEET'!D599,4))","v":""},{"$f":"IF('PEF CLASSIFICATION SHEET'!D600=\"\",\"\",LEFT('PEF CLASSIFICATION SHEET'!D600,4))","v":""},{"$f":"IF('PEF CLASSIFICATION SHEET'!D601=\"\",\"\",LEFT('PEF CLASSIFICATION SHEET'!D601,4))","v":""},{"$f":"IF('PEF CLASSIFICATION SHEET'!D602=\"\",\"\",LEFT('PEF CLASSIFICATION SHEET'!D602,4))","v":""}]
[null,null,null,{"$f":"IF('PEF CLASSIFICATION SHEET'!$C592=\"\",\"\",'PEF CLASSIFICATION SHEET'!$C592)","v":""},{"$f":"IF('PEF CLASSIFICATION SHEET'!$C593=\"\",\"\",'PEF CLASSIFICATION SHEET'!$C593)","v":""},{"$f":"IF('PEF CLASSIFICATION SHEET'!$C594=\"\",\"\",'PEF CLASSIFICATION SHEET'!$C594)","v":""},{"$f":"IF('PEF CLASSIFICATION SHEET'!$C595=\"\",\"\",'PEF CLASSIFICATION SHEET'!$C595)","v":""},{"$f":"IF('PEF CLASSIFICATION SHEET'!$C596=\"\",\"\",'PEF CLASSIFICATION SHEET'!$C596)","v":""},{"$f":"IF('PEF CLASSIFICATION SHEET'!$C597=\"\",\"\",'PEF CLASSIFICATION SHEET'!$C597)","v":""},{"$f":"IF('PEF CLASSIFICATION SHEET'!$C598=\"\",\"\",'PEF CLASSIFICATION SHEET'!$C598)","v":""},{"$f":"IF('PEF CLASSIFICATION SHEET'!C599=\"\",\"\",'PEF CLASSIFICATION SHEET'!C599)","v":""},{"$f":"IF('PEF CLASSIFICATION SHEET'!C600=\"\",\"\",'PEF CLASSIFICATION SHEET'!C600)","v":""},{"$f":"IF('PEF CLASSIFICATION SHEET'!C601=\"\",\"\",'PEF CLASSIFICATION SHEET'!C601)","v":""},{"$f":"IF('PEF CLASSIFICATION SHEET'!C602=\"\",\"\",'PEF CLASSIFICATION SHEET'!C602)","v":""}]
[null,null,"Classification",null,null,null,null,null,null,null,null,null,null,null,"SUB-","%","PEF"]
[null,null,null,null,null,null,null,null,null,null,null,null,null,null,"TOTAL","OF","ESTIMATE"]
["TASK","TASK DESCRIPTION",null,null,null,null,null,null,null,null,null,null,null,null,null,"PROJECT",null,"COMMENTS"]
["NO."]
["2EN1","Assess Natural Environmental Impacts",null,null,null,null,null,null,null,null,null,null,null,null,{"$f":"IF(B12=\"\",0,IF((SUM(D12:N12)=0),\"\",SUM(D12:N12)))","v":""},{"$f":"IF(O12=\"\",\"\",SUM((O12/$O$121)))","v":""}]
[1,"Pre-Field Work",null,null,null,null,null,null,null,null,null,null,null,null,{"$f":"IF(B13=\"\",0,IF((SUM(D13:N13)=0),\"\",SUM(D13:N13)))","v":""},{"$f":"IF(O13=\"\",\"\",SUM((O13/$O$121)))","v":""}]
[2,"Landowner Letter Delivery",null,null,null,null,null,null,null,null,null,null,null,null,"",""]
[3,"NRTR Field Work ",null,null,null,null,null,null,null,null,null,null,null,null,"",""]
[4,"Threatened and Endangered Species Surveys",null,null,null,null,null,null,null,null,null,null,null,null,"",""]
[5,"WEX file ",null,null,null,null,null,null,null,null,null,null,null,null,"",""]
[6,"WET file",null,null,null,null,null,null,null,null,null,null,null,null,"",""]
[7,"Preliminary Jurisdictional Package (PJD)",null,null,null,null,null,null,null,null,null,null,null,null,"",""]
[8,"Approved Jurisdictional Package (AJD)",null,null,null,null,null,null,null,null,null,null,null,null,"","",null,null,null,null,null,"Y"]
[9,"NRTR",null,null,null,null,null,null,null,null,null,null,null,null,"","",null,null,null,null,null,"N"]
[10,"Task Management ",null,null,null,null,null,null,null,null,null,null,null,null,"",""]
[11,"Complete QC/QA Procedures",null,null,null,null,null,null,null,null,null,null,null,null,"",""]
[null,"Other Tasks (i.e Additional Biological Surveys work)",null,null,null,null,null,null,null,null,null,null,null,null,"",""]
[null,null,null,null,null,null,null,null,null,null,null,null,null,null,0,{"$error":"#DIV/0!"}]
[null,null,null,null,null,null,null,null,null,null,null,null,null,null,0,{"$error":"#DIV/0!"}]
[null,null,null,null,null,null,null,null,null,null,null,null,null,null,0,{"$error":"#DIV/0!"}]
[null,null,null,null,null,null,null,null,null,null,null,null,null,null,0,{"$error":"#DIV/0!"}]
[null,null,null,null,null,null,null,null,null,null,null,null,null,null,0,{"$error":"#DIV/0!"}]
[null,null,null,null,null,null,null,null,null,null,null,null,null,null,0,{"$error":"#DIV/0!"}]
[null,null,null,null,null,null,null,null,null,null,null,null,null,null,0,{"$error":"#DIV/0!"}]
[null,null,null,null,null,null,null,null,null,null,null,null,null,null,0,{"$error":"#DIV/0!"}]
[null,null,null,null,null,null,null,null,null,null,null,null,null,null,0,{"$error":"#DIV/0!"}]
["3EN3","Apply for Permits",null,null,null,null,null,null,null,null,null,null,null,null,"",""]
[1,"Review Project Documents",null,null,null,null,null,null,null,null,null,null,null,null,"",""]
[2,"Prepare Section 404/401 Permit Application ",null,null,null,null,null,null,null,null,null,null,null,null,"",""]
[3,"CAMA Major Permit Application",null,null,null,null,null,null,null,null,null,null,null,null,"",""]
[4,"Other Permit Applications",null,null,null,null,null,null,null,null,null,null,null,null,"",""]
[5,"Task Management ",null,null,null,null,null,null,null,null,null,null,null,null,"",""]
[6,"Complete QC/QA Procedures",null,null,null,null,null,null,null,null,null,null,null,null,"",""]
[null,"Other Tasks:",null,null,null,null,null,null,null,null,null,null,null,null,"",""]
[null,null,null,null,null,null,null,null,null,null,null,null,null,null,0,{"$error":"#DIV/0!"}]
[null,null,null,null,null,null,null,null,null,null,null,null,null,null,0,{"$error":"#DIV/0!"}]
[null,null,null,null,null,null,null,null,null,null,null,null,null,null,0,{"$error":"#DIV/0!"}]
["4EN1","Secure Permits",null,null,null,null,null,null,null,null,null,null,null,null,"",""]
[1,"Receive issued permits, review conditions, and update Project Special Commitments",null,null,null,null,null,null,null,null,null,null,null,null,"",""]
[2,"Permit Package",null,null,null,null,null,null,null,null,null,null,null,null,"",""]
[3,"Task Management ",null,null,null,null,null,null,null,null,null,null,null,null,"",""]
[4,"Complete QC/QA Procedures",null,null,null,null,null,null,null,null,null,null,null,null,"",""]
[null,"Other Tasks:",null,null,null,null,null,null,null,null,null,null,null,null,"",""]
[null,null,null,null,null,null,null,null,null,null,null,null,null,null,0,{"$error":"#DIV/0!"}]
[null,null,null,null,null,null,null,null,null,null,null,null,null,null,0,{"$error":"#DIV/0!"}]
[null,null,null,null,null,null,null,null,null,null,null,null,null,null,0,{"$error":"#DIV/0!"}]
[null,null,null,null,null,null,null,null,null,null,null,null,null,null,0,{"$error":"#DIV/0!"}]
[null,null,null,null,null,null,null,null,null,null,null,null,null,null,0,{"$error":"#DIV/0!"}]
[null,null,null,null,null,null,null,null,null,null,null,null,null,null,0,{"$error":"#DIV/0!"}]
[null,null,null,null,null,null,null,null,null,null,null,null,null,null,0,{"$error":"#DIV/0!"}]
[null,null,null,null,null,null,null,null,null,null,null,null,null,null,0,{"$error":"#DIV/0!"}]
[null,null,null,null,null,null,null,null,null,null,null,null,null,null,0,{"$error":"#DIV/0!"}]
[null,null,null,null,null,null,null,null,null,null,null,null,null,null,0,{"$error":"#DIV/0!"}]
[null,null,null,null,null,null,null,null,null,null,null,null,null,null,0,{"$error":"#DIV/0!"}]
[null,null,null,null,null,null,null,null,null,null,null,null,null,null,0,{"$error":"#DIV/0!"}]
[null,null,null,null,null,null,null,null,null,null,null,null,null,null,0,{"$error":"#DIV/0!"}]
[null,null,null,null,null,null,null,null,null,null,null,null,null,null,0,{"$error":"#DIV/0!"}]
[null,null,null,null,null,null,null,null,null,null,null,null,null,null,0,{"$error":"#DIV/0!"}]
[null,null,null,null,null,null,null,null,null,null,null,null,null,null,0,{"$error":"#DIV/0!"}]
[null,null,null,null,null,null,null,null,null,null,null,null,null,null,0,{"$error":"#DIV/0!"}]
[null,null,null,null,null,null,null,null,null,null,null,null,null,null,0,{"$error":"#DIV/0!"}]
[null,null,null,null,null,null,null,null,null,null,null,null,null,null,0,{"$error":"#DIV/0!"}]
[null,null,null,null,null,null,null,null,null,null,null,null,null,null,0,{"$error":"#DIV/0!"}]
[null,null,null,null,null,null,null,null,null,null,null,null,null,null,0,{"$error":"#DIV/0!"}]
[null,null,null,null,null,null,null,null,null,null,null,null,null,null,0,{"$error":"#DIV/0!"}]
[null,null,null,null,null,null,null,null,null,null,null,null,null,null,0,{"$error":"#DIV/0!"}]
[null,null,null,null,null,null,null,null,null,null,null,null,null,null,0,{"$error":"#DIV/0!"}]
[null,null,null,null,null,null,null,null,null,null,null,null,null,null,0,{"$error":"#DIV/0!"}]
[null,null,null,null,null,null,null,null,null,null,null,null,null,null,0,{"$error":"#DIV/0!"}]
[null,null,null,null,null,null,null,null,null,null,null,null,null,null,{"$f":"IF(B77=\"\",0,IF((SUM(D77:N77)=0),\"\",SUM(D77:N77)))","v":0},{"$f":"IF(O77=\"\",\"\",SUM((O77/$O$121)))","v":{"$error":"#DIV/0!"}}]
[null,null,null,null,null,null,null,null,null,null,null,null,null,null,0,{"$error":"#DIV/0!"}]
[null,null,null,null,null,null,null,null,null,null,null,null,null,null,0,{"$error":"#DIV/0!"}]
[null,null,null,null,null,null,null,null,null,null,null,null,null,null,0,{"$error":"#DIV/0!"}]
[null,null,null,null,null,null,null,null,null,null,null,null,null,null,0,{"$error":"#DIV/0!"}]
[null,null,null,null,null,null,null,null,null,null,null,null,null,null,0,{"$error":"#DIV/0!"}]
[null,null,null,null,null,null,null,null,null,null,null,null,null,null,0,{"$error":"#DIV/0!"}]
[null,null,null,null,null,null,null,null,null,null,null,null,null,null,0,{"$error":"#DIV/0!"}]
[null,null,null,null,null,null,null,null,null,null,null,null,null,null,0,{"$error":"#DIV/0!"}]
[null,null,null,null,null,null,null,null,null,null,null,null,null,null,0,{"$error":"#DIV/0!"}]
[null,null,null,null,null,null,null,null,null,null,null,null,null,null,0,{"$error":"#DIV/0!"}]
[null,null,null,null,null,null,null,null,null,null,null,null,null,null,0,{"$error":"#DIV/0!"}]
[null,null,null,null,null,null,null,null,null,null,null,null,null,null,0,{"$error":"#DIV/0!"}]
[null,null,null,null,null,null,null,null,null,null,null,null,null,null,0,{"$error":"#DIV/0!"}]
[null,null,null,null,null,null,null,null,null,null,null,null,null,null,0,{"$error":"#DIV/0!"}]
[null,null,null,null,null,null,null,null,null,null,null,null,null,null,0,{"$error":"#DIV/0!"}]
[null,null,null,null,null,null,null,null,null,null,null,null,null,null,0,{"$error":"#DIV/0!"}]
[null,null,null,null,null,null,null,null,null,null,null,null,null,null,0,{"$error":"#DIV/0!"}]
[null,null,null,null,null,null,null,null,null,null,null,null,null,null,0,{"$error":"#DIV/0!"}]
[null,null,null,null,null,null,null,null,null,null,null,null,null,null,0,{"$error":"#DIV/0!"}]
[null,null,null,null,null,null,null,null,null,null,null,null,null,null,0,{"$error":"#DIV/0!"}]
[null,null,null,null,null,null,null,null,null,null,null,null,null,null,0,{"$error":"#DIV/0!"}]
[null,null,null,null,null,null,null,null,null,null,null,null,null,null,0,{"$error":"#DIV/0!"}]
[null,null,null,null,null,null,null,null,null,null,null,null,null,null,0,{"$error":"#DIV/0!"}]
[null,null,null,null,null,null,null,null,null,null,null,null,null,null,0,{"$error":"#DIV/0!"}]
[null,null,null,null,null,null,null,null,null,null,null,null,null,null,0,{"$error":"#DIV/0!"}]
[null,null,null,null,null,null,null,null,null,null,null,null,null,null,0,{"$error":"#DIV/0!"}]
[null,null,null,null,null,null,null,null,null,null,null,null,null,null,0,{"$error":"#DIV/0!"}]
[null,null,null,null,null,null,null,null,null,null,null,null,null,null,0,{"$error":"#DIV/0!"}]
[null,null,null,null,null,null,null,null,null,null,null,null,null,null,0,{"$error":"#DIV/0!"}]
[null,null,null,null,null,null,null,null,null,null,null,null,null,null,0,{"$error":"#DIV/0!"}]
[null,null,null,null,null,null,null,null,null,null,null,null,null,null,0,{"$error":"#DIV/0!"}]
[null,null,null,null,null,null,null,null,null,null,null,null,null,null,0,{"$error":"#DIV/0!"}]
[null,null,null,null,null,null,null,null,null,null,null,null,null,null,0,{"$error":"#DIV/0!"}]
[null,null,null,null,null,null,null,null,null,null,null,null,null,null,0,{"$error":"#DIV/0!"}]
[null,null,null,null,null,null,null,null,null,null,null,null,null,null,0,{"$error":"#DIV/0!"}]
[null,null,null,null,null,null,null,null,null,null,null,null,null,null,0,{"$error":"#DIV/0!"}]
[null,null,null,null,null,null,null,null,null,null,null,null,null,null,0,{"$error":"#DIV/0!"}]
[null,null,null,null,null,null,null,null,null,null,null,null,null,null,0,{"$error":"#DIV/0!"}]
[null,null,null,null,null,null,null,null,null,null,null,null,null,null,0,{"$error":"#DIV/0!"}]
[null,null,null,null,null,null,null,null,null,null,null,null,null,null,0,{"$error":"#DIV/0!"}]
[null,null,null,null,null,null,null,null,null,null,null,null,null,null,0,{"$error":"#DIV/0!"}]
[null,null,null,null,null,null,null,null,null,null,null,null,null,null,0,{"$error":"#DIV/0!"}]
[null,null,null,null,null,null,null,null,null,null,null,null,null,null,0,{"$error":"#DIV/0!"}]
[null,"TOTAL WORKDAYS/CATEGORY:",null,{"$f":"SUM(D12:D120)","v":0},0,0,0,0,0,0,0,0,{"$f":"SUM(M12:M120)","v":0},{"$f":"SUM(N12:N120)","v":0},{"$f":"SUM(O12:O120)","v":0},{"$f":"SUM(P12:P120)","v":{"$error":"#DIV/0!"}},{"$f":"SUM(Q12:Q120)","v":0}]
[null,"HOURLY SALARY RATE:",null,{"$f":"'PEF CLASSIFICATION SHEET'!$E592","v":0},{"$f":"'PEF CLASSIFICATION SHEET'!$E593","v":0},{"$f":"'PEF CLASSIFICATION SHEET'!$E594","v":0},{"$f":"'PEF CLASSIFICATION SHEET'!$E595","v":0},{"$f":"'PEF CLASSIFICATION SHEET'!$E596","v":0},{"$f":"'PEF CLASSIFICATION SHEET'!$E597","v":0},{"$f":"'PEF CLASSIFICATION SHEET'!$E598","v":0},{"$f":"'PEF CLASSIFICATION SHEET'!E599","v":0},{"$f":"'PEF CLASSIFICATION SHEET'!E600","v":0},{"$f":"'PEF CLASSIFICATION SHEET'!E601","v":0},{"$f":"'PEF CLASSIFICATION SHEET'!E602","v":0}]
[null,"RATES PER DAY:",null,{"$f":"D122*8","v":0},0,0,0,0,0,{"$f":"J122*8","v":0},0,0,0,0]
[null,"PAYROLL BURDEN:",null,{"$f":"SUM(D121*D123)","v":0},0,0,0,0,0,{"$f":"SUM(J121*J123)","v":0},0,0,0,0]
[null,"TOTAL WORKDAYS:",null,{"$f":"SUM(D121:N121)","v":0}]
[null,"TOTAL PAYROLL BURDEN:",null,{"$f":"SUM(D124:N124)","v":0}]
[null,"AVERAGE COST PER HOUR:",null,{"$f":"SUM(D126/(D125*8))","v":{"$error":"#DIV/0!"}}]
[null,"GENERAL OVERHEAD:",{"$f":"PDEA_NEU_SUB1_CONSULTANT_OVERHEAD","v":0},{"$f":"SUM(D126*C128)","v":0}]
[null,"SUBTOTAL:",null,{"$f":"SUM(D126+D128)","v":0}]
[null,"COMPARATIVE FEE:",{"$f":"PDEA_NEU_SUB1_CONSULTANT_FEE","v":0.09},{"$f":"SUM(D129*C130)","v":0}]
[null,"FACILITIES COST OF CAPITAL:",{"$f":"PDEA_NEU_SUB1_CONSULTANT_COSTofCAPITAL","v":0},{"$f":"SUM(D126*C131)","v":0},null,null,"     ","PDEA RELATED DATA :"]
[null,"TOTAL:",null,{"$f":"SUM(D129:D131)","v":0},null,null,null,"  SIZE OF STUDY AREA",null,{"$f":"IF('RD-Data'!$D$18=\"(ENGLISH UNITS)\",\"SQR FEET\",\"SQR METER\")","v":"SQR FEET"}]
[null,"DIRECT EXPENSES:",null,{"$f":"PDEA_NEU_SUB1_DIRECT_NONSALARY_TOTAL","v":0},null,null,null,"  JURISDICTIONAL RESOURCES PRESENT"]
[null,"NES GRAND TOTAL:",null,{"$f":"SUM(D132:D133)","v":0},null,null,null,"  POTENTIAL ENDANGERED SPECIES"]
[]
[]
[]
[null,"Costs",null,"Workdays",null,null,null,null,"Dollars"]
[null,null,null,"EN Natural","PEF","Delta ","Delta %",null,"EN Natural",null,null,null,null,null,null,"PEF",null,"Delta ","Delta %"]
[null,null,null,null,null,{"$f":"SUM(E140-D140)","v":0},{"$f":"SUM((F140/D140)*100)","v":{"$error":"#DIV/0!"}},null,null,null,null,null,null,null,null,null,null,{"$f":"SUM(P140-I140)","v":0},{"$f":"SUM((R140/I140)*100)","v":{"$error":"#DIV/0!"}}]
[]
[]
[null,null,null,null,null,null,null,"Directs","Dollars"]
[null,null,null,null,null,null,null,null,"EN Natural",null,null,null,null,null,null,"PEF",null,"Delta ","Delta %"]
[null,null,null,null,null,null,null,null,null,null,null,null,null,null,null,null,null,{"$f":"SUM(P145-I145)","v":0},{"$f":"SUM((R145/I145)*100)","v":{"$error":"#DIV/0!"}}]

{"sheet":"EN-Natural-Exp-Sub1","index":75,"n_rows":48,"n_cols":8,"rows_kept":48,"cut":false,"hidden":true,"merged":[[6,1,6,3],[6,4,6,6],[0,0,0,7],[3,1,3,7],[4,1,4,3],[4,6,4,7],[5,1,5,3],[5,6,5,7],[2,1,2,3]]}
["NATURAL ENVIRONMENT  DIRECT EXPENSES - SUBCONSULTANT 1"]
[]
["FIRM:",{"$f":"'EN-Natural-Sub1'!G3","v":"CONSULTANT NAME"}]
["PROJECT DESCRIPTION: ",{"$f":"PROJECT.DESCRIPTION","v":0}]
["PREPARED BY:  ",{"$f":"NEU.SUB1.PREPARED.BY","v":""},null,null,"TASK ORDER NUMBER:",null,{"$f":"TASK.ORDER.NUMBER","v":0}]
["TIP NUMBER:",{"$f":"TIP.NUMBER","v":0},null,null,"WBS NUMBER:",null,{"$f":"WBS.NUMBER","v":""}]
["DATE PREPARED:",{"$f":"IF('EN-Natural-Sub1'!Q3=\"\",\"\",MAX('EN-Natural-Sub1'!Q3:'EN-Natural-Sub1'!Q4))","v":""},null,null,"REVIEWED BY UNIT HEAD ON:",null,null,{"$f":"IF(SCOPE.MANDAY.ESTIMATE.APPROVED.BY.DATE=\"\",\"\",SCOPE.MANDAY.ESTIMATE.APPROVED.BY.DATE)","v":""}]
["GENERAL PROJECT WORK:","ITEM","QTY","DESCRIPTION",null,null,"UNIT COST "]
[null,"Travel:"]
[null,"Sedan",0,"Trip(s) @",0,"miles @",{"$f":"SEDAN","v":0.7},{"$f":"SUM(C10*E10*G10)","v":0}]
[null,"Carry All",0,"Trip(s) @",0,"miles @",{"$f":"CARRYALL","v":0.72},{"$f":"SUM(C11*E11*G11)","v":0}]
[null,"Car Rental",null,null,0,"days @ ",{"$f":"CARRENTAL","v":50},{"$f":"SUM(E12*G12)","v":0}]
[null,"Gas for Rental",null,null,0,"miles @",{"$f":"GASforRENTAL","v":0.2},{"$f":"SUM(E13*G13)","v":0}]
[null,"Parking:",0,"Trip(s) @",null,null,{"$f":"PARKING","v":3},{"$f":"SUM(C14*G14)","v":0}]
[null,"Per Diem:",0,"Breakfast",null,null,{"$f":"BREAKFAST","v":10.1},{"$f":"SUM(C15*G15)","v":0}]
[null,null,0,"Lunch",null,null,{"$f":"LUNCH","v":13.3},{"$f":"SUM(C16*G16)","v":0}]
[null,null,0,"Dinner",null,null,{"$f":"DINNER","v":23.1},{"$f":"SUM(C17*G17)","v":0}]
[null,null,0,"Lodging",null,null,{"$f":"LODGING_LUMP.SUM","v":95},{"$f":"SUM(C18*G18)","v":0}]
[null,null,null,null,null,"Subtotal",null,{"$f":"SUM(H10:H18)","v":0}]
["TECHNICAL REPORTS:","ITEM","QTY","DESCRIPTION",null,null,"UNIT COST "]
[null,"Reproduction:",0,"8 1/2 x 11 B & W Copies @",null,null,{"$f":"LETTERCOPIES","v":0.14000000000000001},{"$f":"SUM(C21*G21)","v":0}]
[null,null,0,"11 x 17 B & W Copies @",null,null,{"$f":"LEDGERCOPIES","v":0.34},0]
[null,null,0,"8 1/2 x 11 Color Copies @",null,null,{"$f":"LETTERCOLOR","v":0.83},0]
[null,null,0,"11 x 17 Color Copies @",null,null,{"$f":"LEDGERCOLOR","v":1.66},0]
[null,null,0,"Blueprints - 8 1/2 x 11 @",null,null,{"$f":"BLUEPRINTSLETTER","v":0.35},0]
[null,null,0,"Prints  - 24 x 36 @",null,null,{"$f":"BLUEPRINTSLARGE","v":1.3},0]
[null,null,0,"SQ. FT. of Plots (B & W or Color)",null,"<65 SQ. FT.*",{"$f":"ROLLPLOTSshort","v":6.5},0]
[null,null,0,"SQ. FT. of Plots (B & W or Color)",null,">65 SQ. FT.*",{"$f":"ROLLPLOTSlong","v":1.5},0]
[null,null,0,"Cover(s) @",null,null,{"$f":"COVERS","v":0.5},0]
[null,null,0,"Binder(s) @",null,null,{"$f":"BINDERS","v":0.5},0]
[null,null,0,"Postage",0,"copies @",{"$f":"POSTAGE","v":0.49},{"$f":"SUM(C31*E31*G31)","v":0}]
[null,null,null,null,null,"Subtotal",null,{"$f":"SUM(H21:H31)","v":0}]
["Miscellaneous Other","ITEM","QTY","DESCRIPTION",null,null,"UNIT COST "]
[null,null,null,null,null,null,null,{"$f":"SUM(C34*G34)","v":0}]
[null,null,null,null,null,null,null,{"$f":"SUM(C35*G35)","v":0}]
[null,null,null,null,null,null,null,0]
[null,null,null,null,null,null,null,0]
[null,null,null,null,null,null,null,0]
[null,null,null,null,null,null,null,0]
[null,null,null,null,null,null,null,0]
[null,null,null,null,null,null,null,{"$f":"SUM(C41*G41)","v":0}]
[null,null,null,null,null,null,null,{"$f":"SUM(C42*G42)","v":0}]
[null,null,null,null,null,null,null,{"$f":"SUM(C43*G43)","v":0}]
[null,null,null,null,null,"Subtotal",null,{"$f":"SUM(H34:H43)","v":0}]
[]
[null,null,null,null,null,"TOTAL",null,{"$f":"SUM(H19+H32+H44)","v":0}]
[]
[null,"* Sum of all plots "]

{"sheet":"EN-Natural-Sub2","index":76,"n_rows":145,"n_cols":22,"rows_kept":145,"cut":false,"hidden":true,"merged":[[139,8,139,14],[139,15,139,16],[142,8,142,18],[143,8,143,14],[143,15,143,16],[144,8,144,14],[144,15,144,16],[119,17,119,18],[133,1,134,1],[133,3,134,4],[137,3,137,6],[137,8,137,18],[138,8,138,14],[138,15,138,16],[113,17,113,18],[114,17,114,18],[115,17,115,18],[116,17,116,18],[117,17,117,18],[118,17,118,18],[107,17,107,18],[108,17,108,18],[109,17,109,18],[110,17,110,18],[111,17,111,18],[112,17,112,18],[101,17,101,18],[102,17,102,18],[103,17,103,18],[104,17,104,18],[105,17,105,18],[106,17,106,18],[95,17,95,18],[96,17,96,18],[97,17,97,18],[98,17,98,18],[99,17,99,18],[100,17,100,18],[89,17,89,18],[90,17,90,18],[91,17,91,18],[92,17,92,18],[93,17,93,18],[94,17,94,18],[83,17,83,18],[84,17,84,18],[85,17,85,18],[86,17,86,18],[87,17,87,18],[88,17,88,18],[77,17,77,18],[78,17,78,18],[79,17,79,18],[80,17,80,18],[81,17,81,18],[82,17,82,18],[71,17,71,18],[72,17,72,18],[73,17,73,18],[74,17,74,18],[75,17,75,18],[76,17,76,18],[65,17,65,18],[66,17,66,18],[67,17,67,18],[68,17,68,18],[69,17,69,18],[70,17,70,18],[59,17,59,18],[60,17,60,18],[61,17,61,18],[62,17,62,18],[63,17,63,18],[64,17,64,18],[53,17,53,18],[54,17,54,18],[55,17,55,18],[56,17,56,18],[57,17,57,18],[58,17,58,18],[47,17,47,18],[48,17,48,18],[49,17,49,18],[50,17,50,18],[51,17,51,18],[52,17,52,18],[41,17,41,18],[42,17,42,18],[43,17,43,18],[44,17,44,18],[45,17,45,18],[46,17,46,18],[35,17,35,18],[36,17,36,18],[37,17,37,18],[38,17,38,18],[39,17,39,18],[40,17,40,18],[29,17,29,18],[30,17,30,18],[31,17,31,18],[32,17,32,18],[33,17,33,18],[34,17,34,18],[23,17,23,18],[24,17,24,18],[25,17,25,18],[26,17,26,18],[27,17,27,18],[28,17,28,18],[17,17,17,18],[18,17,18,18],[19,17,19,18],[20,17,20,18],[21,17,21,18],[22,17,22,18],[11,17,11,18],[12,17,12,18],[13,17,13,18],[14,17,14,18],[15,17,15,18],[16,17,16,18],[6,9,10,9],[6,10,10,10],[6,11,10,11],[6,12,10,12],[6,13,10,13],[9,17,9,18],[6,3,10,3],[6,4,10,4],[6,5,10,5],[6,6,10,6],[6,7,10,7],[6,8,10,8],[3,1,3,4],[3,6,3,7],[3,10,3,11],[3,14,3,15],[3,16,3,17],[4,3,4,13],[0,0,0,18],[2,1,2,4],[2,6,2,7],[2,10,2,11],[2,14,2,15],[2,16,2,17]]}
["NATURAL ENVIRONMENT BREAKDOWN WORKSHEET - SUBCONSULTANT 2"]
[]
["PROJECT DESCRIPTION: ",{"$f":"PROJECT.DESCRIPTION","v":0},null,null,null,"FIRM:  ",{"$f":"PDEA_NEU_SUB2_CONSULTANT_NAME","v":"CONSULTANT NAME"},null,"TASK ORDER NUMBER:",null,{"$f":"TASK.ORDER.NUMBER","v":0},null,null,null,"DATE PREPARED:"]
["PREPARED BY:  ",{"$f":"IF(SCOPE.MANDAY.ESTIMATE.PREPARED.BY=\"\",\"\",SCOPE.MANDAY.ESTIMATE.PREPARED.BY)","v":""},null,null,null,"TIP NUMBER:",{"$f":"TIP.NUMBER","v":0},null,"WBS NUMBER:",null,{"$f":"WBS.NUMBER","v":""},null,null,null,"REVISION DATE:"]
[null,null,null,"ESTIMATED WORK DAYS"]
[null,null,"Employee",{"$f":"IF('PEF CLASSIFICATION SHEET'!$D605=\"\",\"\",LEFT('PEF CLASSIFICATION SHEET'!$D605,4))","v":""},{"$f":"IF('PEF CLASSIFICATION SHEET'!$D606=\"\",\"\",LEFT('PEF CLASSIFICATION SHEET'!$D606,4))","v":""},{"$f":"IF('PEF CLASSIFICATION SHEET'!$D607=\"\",\"\",LEFT('PEF CLASSIFICATION SHEET'!$D607,4))","v":""},{"$f":"IF('PEF CLASSIFICATION SHEET'!$D608=\"\",\"\",LEFT('PEF CLASSIFICATION SHEET'!$D608,4))","v":""},{"$f":"IF('PEF CLASSIFICATION SHEET'!$D609=\"\",\"\",LEFT('PEF CLASSIFICATION SHEET'!$D609,4))","v":""},{"$f":"IF('PEF CLASSIFICATION SHEET'!$D610=\"\",\"\",LEFT('PEF CLASSIFICATION SHEET'!$D610,4))","v":""},{"$f":"IF('PEF CLASSIFICATION SHEET'!$D611=\"\",\"\",LEFT('PEF CLASSIFICATION SHEET'!$D611,4))","v":""},{"$f":"IF('PEF CLASSIFICATION SHEET'!D612=\"\",\"\",LEFT('PEF CLASSIFICATION SHEET'!D612,4))","v":""},{"$f":"IF('PEF CLASSIFICATION SHEET'!D613=\"\",\"\",LEFT('PEF CLASSIFICATION SHEET'!D613,4))","v":""},{"$f":"IF('PEF CLASSIFICATION SHEET'!D614=\"\",\"\",LEFT('PEF CLASSIFICATION SHEET'!D614,4))","v":""},{"$f":"IF('PEF CLASSIFICATION SHEET'!D615=\"\",\"\",LEFT('PEF CLASSIFICATION SHEET'!D615,4))","v":""}]
[null,null,null,{"$f":"IF('PEF CLASSIFICATION SHEET'!$C605=\"\",\"\",'PEF CLASSIFICATION SHEET'!$C605)","v":""},{"$f":"IF('PEF CLASSIFICATION SHEET'!$C606=\"\",\"\",'PEF CLASSIFICATION SHEET'!$C606)","v":""},{"$f":"IF('PEF CLASSIFICATION SHEET'!$C607=\"\",\"\",'PEF CLASSIFICATION SHEET'!$C607)","v":""},{"$f":"IF('PEF CLASSIFICATION SHEET'!$C608=\"\",\"\",'PEF CLASSIFICATION SHEET'!$C608)","v":""},{"$f":"IF('PEF CLASSIFICATION SHEET'!$C609=\"\",\"\",'PEF CLASSIFICATION SHEET'!$C609)","v":""},{"$f":"IF('PEF CLASSIFICATION SHEET'!$C610=\"\",\"\",'PEF CLASSIFICATION SHEET'!$C610)","v":""},{"$f":"IF('PEF CLASSIFICATION SHEET'!$C611=\"\",\"\",'PEF CLASSIFICATION SHEET'!$C611)","v":""},{"$f":"IF('PEF CLASSIFICATION SHEET'!C612=\"\",\"\",'PEF CLASSIFICATION SHEET'!C612)","v":""},{"$f":"IF('PEF CLASSIFICATION SHEET'!C613=\"\",\"\",'PEF CLASSIFICATION SHEET'!C613)","v":""},{"$f":"IF('PEF CLASSIFICATION SHEET'!C614=\"\",\"\",'PEF CLASSIFICATION SHEET'!C614)","v":""},{"$f":"IF('PEF CLASSIFICATION SHEET'!C615=\"\",\"\",'PEF CLASSIFICATION SHEET'!C615)","v":""}]
[null,null,"Classification",null,null,null,null,null,null,null,null,null,null,null,"SUB-","%","PEF"]
[null,null,null,null,null,null,null,null,null,null,null,null,null,null,"TOTAL","OF","ESTIMATE"]
["TASK","TASK DESCRIPTION",null,null,null,null,null,null,null,null,null,null,null,null,null,"PROJECT",null,"COMMENTS"]
["NO."]
["2EN1","Assess Natural Environmental Impacts",null,null,null,null,null,null,null,null,null,null,null,null,{"$f":"IF(B12=\"\",0,IF((SUM(D12:N12)=0),\"\",SUM(D12:N12)))","v":""},{"$f":"IF(O12=\"\",\"\",SUM((O12/$O$121)))","v":""}]
[1,"Pre-Field Work",null,null,null,null,null,null,null,null,null,null,null,null,{"$f":"IF(B13=\"\",0,IF((SUM(D13:N13)=0),\"\",SUM(D13:N13)))","v":""},{"$f":"IF(O13=\"\",\"\",SUM((O13/$O$121)))","v":""}]
[2,"Landowner Letter Delivery",null,null,null,null,null,null,null,null,null,null,null,null,"",""]
[3,"NRTR Field Work ",null,null,null,null,null,null,null,null,null,null,null,null,"",""]
[4,"Threatened and Endangered Species Surveys",null,null,null,null,null,null,null,null,null,null,null,null,"",""]
[5,"WEX file ",null,null,null,null,null,null,null,null,null,null,null,null,"",""]
[6,"WET file",null,null,null,null,null,null,null,null,null,null,null,null,"",""]
[7,"Preliminary Jurisdictional Package (PJD)",null,null,null,null,null,null,null,null,null,null,null,null,"",""]
[8,"Approved Jurisdictional Package (AJD)",null,null,null,null,null,null,null,null,null,null,null,null,"","",null,null,null,null,null,"Y"]
[9,"NRTR",null,null,null,null,null,null,null,null,null,null,null,null,"","",null,null,null,null,null,"N"]
[10,"Task Management ",null,null,null,null,null,null,null,null,null,null,null,null,"",""]
[11,"Complete QC/QA Procedures",null,null,null,null,null,null,null,null,null,null,null,null,"",""]
[null,"Other Tasks (i.e Additional Biological Surveys work)",null,null,null,null,null,null,null,null,null,null,null,null,"",""]
[null,null,null,null,null,null,null,null,null,null,null,null,null,null,0,{"$error":"#DIV/0!"}]
[null,null,null,null,null,null,null,null,null,null,null,null,null,null,0,{"$error":"#DIV/0!"}]
[null,null,null,null,null,null,null,null,null,null,null,null,null,null,0,{"$error":"#DIV/0!"}]
[null,null,null,null,null,null,null,null,null,null,null,null,null,null,0,{"$error":"#DIV/0!"}]
[null,null,null,null,null,null,null,null,null,null,null,null,null,null,0,{"$error":"#DIV/0!"}]
[null,null,null,null,null,null,null,null,null,null,null,null,null,null,0,{"$error":"#DIV/0!"}]
[null,null,null,null,null,null,null,null,null,null,null,null,null,null,0,{"$error":"#DIV/0!"}]
[null,null,null,null,null,null,null,null,null,null,null,null,null,null,0,{"$error":"#DIV/0!"}]
[null,null,null,null,null,null,null,null,null,null,null,null,null,null,0,{"$error":"#DIV/0!"}]
["3EN3","Apply for Permits",null,null,null,null,null,null,null,null,null,null,null,null,"",""]
[1,"Review Project Documents",null,null,null,null,null,null,null,null,null,null,null,null,"",""]
[2,"Prepare Section 404/401 Permit Application ",null,null,null,null,null,null,null,null,null,null,null,null,"",""]
[3,"CAMA Major Permit Application",null,null,null,null,null,null,null,null,null,null,null,null,"",""]
[4,"Other Permit Applications",null,null,null,null,null,null,null,null,null,null,null,null,"",""]
[5,"Task Management ",null,null,null,null,null,null,null,null,null,null,null,null,"",""]
[6,"Complete QC/QA Procedures",null,null,null,null,null,null,null,null,null,null,null,null,"",""]
[null,"Other Tasks:",null,null,null,null,null,null,null,null,null,null,null,null,"",""]
[null,null,null,null,null,null,null,null,null,null,null,null,null,null,0,{"$error":"#DIV/0!"}]
[null,null,null,null,null,null,null,null,null,null,null,null,null,null,0,{"$error":"#DIV/0!"}]
[null,null,null,null,null,null,null,null,null,null,null,null,null,null,0,{"$error":"#DIV/0!"}]
["4EN1","Secure Permits",null,null,null,null,null,null,null,null,null,null,null,null,"",""]
[1,"Receive issued permits, review conditions, and update Project Special Commitments",null,null,null,null,null,null,null,null,null,null,null,null,"",""]
[2,"Permit Package",null,null,null,null,null,null,null,null,null,null,null,null,"",""]
[3,"Task Management ",null,null,null,null,null,null,null,null,null,null,null,null,"",""]
[4,"Complete QC/QA Procedures",null,null,null,null,null,null,null,null,null,null,null,null,"",""]
[null,"Other Tasks:",null,null,null,null,null,null,null,null,null,null,null,null,"",""]
[null,null,null,null,null,null,null,null,null,null,null,null,null,null,0,{"$error":"#DIV/0!"}]
[null,null,null,null,null,null,null,null,null,null,null,null,null,null,0,{"$error":"#DIV/0!"}]
[null,null,null,null,null,null,null,null,null,null,null,null,null,null,0,{"$error":"#DIV/0!"}]
[null,null,null,null,null,null,null,null,null,null,null,null,null,null,0,{"$error":"#DIV/0!"}]
[null,null,null,null,null,null,null,null,null,null,null,null,null,null,0,{"$error":"#DIV/0!"}]
[null,null,null,null,null,null,null,null,null,null,null,null,null,null,0,{"$error":"#DIV/0!"}]
[null,null,null,null,null,null,null,null,null,null,null,null,null,null,0,{"$error":"#DIV/0!"}]
[null,null,null,null,null,null,null,null,null,null,null,null,null,null,0,{"$error":"#DIV/0!"}]
[null,null,null,null,null,null,null,null,null,null,null,null,null,null,0,{"$error":"#DIV/0!"}]
[null,null,null,null,null,null,null,null,null,null,null,null,null,null,0,{"$error":"#DIV/0!"}]
[null,null,null,null,null,null,null,null,null,null,null,null,null,null,0,{"$error":"#DIV/0!"}]
[null,null,null,null,null,null,null,null,null,null,null,null,null,null,0,{"$error":"#DIV/0!"}]
[null,null,null,null,null,null,null,null,null,null,null,null,null,null,0,{"$error":"#DIV/0!"}]
[null,null,null,null,null,null,null,null,null,null,null,null,null,null,0,{"$error":"#DIV/0!"}]
[null,null,null,null,null,null,null,null,null,null,null,null,null,null,0,{"$error":"#DIV/0!"}]
[null,null,null,null,null,null,null,null,null,null,null,null,null,null,0,{"$error":"#DIV/0!"}]
[null,null,null,null,null,null,null,null,null,null,null,null,null,null,0,{"$error":"#DIV/0!"}]
[null,null,null,null,null,null,null,null,null,null,null,null,null,null,0,{"$error":"#DIV/0!"}]
[null,null,null,null,null,null,null,null,null,null,null,null,null,null,0,{"$error":"#DIV/0!"}]
[null,null,null,null,null,null,null,null,null,null,null,null,null,null,0,{"$error":"#DIV/0!"}]
[null,null,null,null,null,null,null,null,null,null,null,null,null,null,0,{"$error":"#DIV/0!"}]
[null,null,null,null,null,null,null,null,null,null,null,null,null,null,0,{"$error":"#DIV/0!"}]
[null,null,null,null,null,null,null,null,null,null,null,null,null,null,0,{"$error":"#DIV/0!"}]
[null,null,null,null,null,null,null,null,null,null,null,null,null,null,0,{"$error":"#DIV/0!"}]
[null,null,null,null,null,null,null,null,null,null,null,null,null,null,0,{"$error":"#DIV/0!"}]
[null,null,null,null,null,null,null,null,null,null,null,null,null,null,0,{"$error":"#DIV/0!"}]
[null,null,null,null,null,null,null,null,null,null,null,null,null,null,{"$f":"IF(B77=\"\",0,IF((SUM(D77:N77)=0),\"\",SUM(D77:N77)))","v":0},{"$f":"IF(O77=\"\",\"\",SUM((O77/$O$121)))","v":{"$error":"#DIV/0!"}}]
[null,null,null,null,null,null,null,null,null,null,null,null,null,null,0,{"$error":"#DIV/0!"}]
[null,null,null,null,null,null,null,null,null,null,null,null,null,null,0,{"$error":"#DIV/0!"}]
[null,null,null,null,null,null,null,null,null,null,null,null,null,null,0,{"$error":"#DIV/0!"}]
[null,null,null,null,null,null,null,null,null,null,null,null,null,null,0,{"$error":"#DIV/0!"}]
[null,null,null,null,null,null,null,null,null,null,null,null,null,null,0,{"$error":"#DIV/0!"}]
[null,null,null,null,null,null,null,null,null,null,null,null,null,null,0,{"$error":"#DIV/0!"}]
[null,null,null,null,null,null,null,null,null,null,null,null,null,null,0,{"$error":"#DIV/0!"}]
[null,null,null,null,null,null,null,null,null,null,null,null,null,null,0,{"$error":"#DIV/0!"}]
[null,null,null,null,null,null,null,null,null,null,null,null,null,null,0,{"$error":"#DIV/0!"}]
[null,null,null,null,null,null,null,null,null,null,null,null,null,null,0,{"$error":"#DIV/0!"}]
[null,null,null,null,null,null,null,null,null,null,null,null,null,null,0,{"$error":"#DIV/0!"}]
[null,null,null,null,null,null,null,null,null,null,null,null,null,null,0,{"$error":"#DIV/0!"}]
[null,null,null,null,null,null,null,null,null,null,null,null,null,null,0,{"$error":"#DIV/0!"}]
[null,null,null,null,null,null,null,null,null,null,null,null,null,null,0,{"$error":"#DIV/0!"}]
[null,null,null,null,null,null,null,null,null,null,null,null,null,null,0,{"$error":"#DIV/0!"}]
[null,null,null,null,null,null,null,null,null,null,null,null,null,null,0,{"$error":"#DIV/0!"}]
[null,null,null,null,null,null,null,null,null,null,null,null,null,null,0,{"$error":"#DIV/0!"}]
[null,null,null,null,null,null,null,null,null,null,null,null,null,null,0,{"$error":"#DIV/0!"}]
[null,null,null,null,null,null,null,null,null,null,null,null,null,null,0,{"$error":"#DIV/0!"}]
[null,null,null,null,null,null,null,null,null,null,null,null,null,null,0,{"$error":"#DIV/0!"}]
[null,null,null,null,null,null,null,null,null,null,null,null,null,null,0,{"$error":"#DIV/0!"}]
[null,null,null,null,null,null,null,null,null,null,null,null,null,null,0,{"$error":"#DIV/0!"}]
[null,null,null,null,null,null,null,null,null,null,null,null,null,null,0,{"$error":"#DIV/0!"}]
[null,null,null,null,null,null,null,null,null,null,null,null,null,null,0,{"$error":"#DIV/0!"}]
[null,null,null,null,null,null,null,null,null,null,null,null,null,null,0,{"$error":"#DIV/0!"}]
[null,null,null,null,null,null,null,null,null,null,null,null,null,null,0,{"$error":"#DIV/0!"}]
[null,null,null,null,null,null,null,null,null,null,null,null,null,null,0,{"$error":"#DIV/0!"}]
[null,null,null,null,null,null,null,null,null,null,null,null,null,null,0,{"$error":"#DIV/0!"}]
[null,null,null,null,null,null,null,null,null,null,null,null,null,null,0,{"$error":"#DIV/0!"}]
[null,null,null,null,null,null,null,null,null,null,null,null,null,null,0,{"$error":"#DIV/0!"}]
[null,null,null,null,null,null,null,null,null,null,null,null,null,null,0,{"$error":"#DIV/0!"}]
[null,null,null,null,null,null,null,null,null,null,null,null,null,null,0,{"$error":"#DIV/0!"}]
[null,null,null,null,null,null,null,null,null,null,null,null,null,null,0,{"$error":"#DIV/0!"}]
[null,null,null,null,null,null,null,null,null,null,null,null,null,null,0,{"$error":"#DIV/0!"}]
[null,null,null,null,null,null,null,null,null,null,null,null,null,null,0,{"$error":"#DIV/0!"}]
[null,null,null,null,null,null,null,null,null,null,null,null,null,null,0,{"$error":"#DIV/0!"}]
[null,null,null,null,null,null,null,null,null,null,null,null,null,null,0,{"$error":"#DIV/0!"}]
[null,null,null,null,null,null,null,null,null,null,null,null,null,null,0,{"$error":"#DIV/0!"}]
[null,null,null,null,null,null,null,null,null,null,null,null,null,null,0,{"$error":"#DIV/0!"}]
[null,null,null,null,null,null,null,null,null,null,null,null,null,null,0,{"$error":"#DIV/0!"}]
[null,null,null,null,null,null,null,null,null,null,null,null,null,null,0,{"$error":"#DIV/0!"}]
[null,null,null,null,null,null,null,null,null,null,null,null,null,null,0,{"$error":"#DIV/0!"}]
[null,null,null,null,null,null,null,null,null,null,null,null,null,null,0,{"$error":"#DIV/0!"}]
[null,"TOTAL WORKDAYS/CATEGORY:",null,{"$f":"SUM(D12:D120)","v":0},0,0,0,0,0,0,0,0,{"$f":"SUM(M12:M120)","v":0},{"$f":"SUM(N12:N120)","v":0},{"$f":"SUM(O12:O120)","v":0},{"$f":"SUM(P12:P120)","v":{"$error":"#DIV/0!"}},{"$f":"SUM(Q12:Q120)","v":0}]
[null,"HOURLY SALARY RATE:",null,{"$f":"'PEF CLASSIFICATION SHEET'!$E605","v":0},{"$f":"'PEF CLASSIFICATION SHEET'!$E606","v":0},{"$f":"'PEF CLASSIFICATION SHEET'!$E607","v":0},{"$f":"'PEF CLASSIFICATION SHEET'!$E608","v":0},{"$f":"'PEF CLASSIFICATION SHEET'!$E609","v":0},{"$f":"'PEF CLASSIFICATION SHEET'!$E610","v":0},{"$f":"'PEF CLASSIFICATION SHEET'!$E611","v":0},{"$f":"'PEF CLASSIFICATION SHEET'!E612","v":0},{"$f":"'PEF CLASSIFICATION SHEET'!E613","v":0},{"$f":"'PEF CLASSIFICATION SHEET'!E614","v":0},{"$f":"'PEF CLASSIFICATION SHEET'!E615","v":0}]
[null,"RATES PER DAY:",null,{"$f":"D122*8","v":0},0,0,0,0,0,0,0,0,0,0]
[null,"PAYROLL BURDEN:",null,{"$f":"SUM(D121*D123)","v":0},0,0,0,0,0,{"$f":"SUM(J121*J123)","v":0},0,0,0,0]
[null,"TOTAL WORKDAYS:",null,{"$f":"SUM(D121:N121)","v":0}]
[null,"TOTAL PAYROLL BURDEN:",null,{"$f":"SUM(D124:N124)","v":0}]
[null,"AVERAGE COST PER HOUR:",null,{"$f":"SUM(D126/(D125*8))","v":{"$error":"#DIV/0!"}}]
[null,"GENERAL OVERHEAD:",{"$f":"PDEA_NEU_SUB2_CONSULTANT_OVERHEAD","v":0},{"$f":"SUM(D126*C128)","v":0}]
[null,"SUBTOTAL:",null,{"$f":"SUM(D126+D128)","v":0}]
[null,"COMPARATIVE FEE:",{"$f":"PDEA_NEU_SUB2_CONSULTANT_FEE","v":0.09},{"$f":"SUM(D129*C130)","v":0}]
[null,"FACILITIES COST OF CAPITAL:",{"$f":"PDEA_NEU_SUB2_CONSULTANT_COSTofCAPITAL","v":0},{"$f":"SUM(D126*C131)","v":0},null,null,"     ","PDEA RELATED DATA :"]
[null,"TOTAL:",null,{"$f":"SUM(D129:D131)","v":0},null,null,null,"  SIZE OF STUDY AREA",null,{"$f":"IF('RD-Data'!$D$18=\"(ENGLISH UNITS)\",\"SQR FEET\",\"SQR METER\")","v":"SQR FEET"}]
[null,"DIRECT EXPENSES:",null,{"$f":"PDEA_NEU_SUB2_DIRECT_NONSALARY_TOTAL","v":0},null,null,null,"  JURISDICTIONAL RESOURCES PRESENT"]
[null,"NES GRAND TOTAL:",null,{"$f":"SUM(D132:D133)","v":0},null,null,null,"  POTENTIAL ENDANGERED SPECIES"]
[]
[]
[]
[null,"Costs",null,"Workdays",null,null,null,null,"Dollars"]
[null,null,null,"EN Natural","PEF","Delta ","Delta %",null,"EN Natural",null,null,null,null,null,null,"PEF",null,"Delta ","Delta %"]
[null,null,null,null,null,{"$f":"SUM(E140-D140)","v":0},{"$f":"SUM((F140/D140)*100)","v":{"$error":"#DIV/0!"}},null,null,null,null,null,null,null,null,null,null,{"$f":"SUM(P140-I140)","v":0},{"$f":"SUM((R140/I140)*100)","v":{"$error":"#DIV/0!"}}]
[]
[]
[null,null,null,null,null,null,null,"Directs","Dollars"]
[null,null,null,null,null,null,null,null,"EN Natural",null,null,null,null,null,null,"PEF",null,"Delta ","Delta %"]
[null,null,null,null,null,null,null,null,null,null,null,null,null,null,null,null,null,{"$f":"SUM(P145-I145)","v":0},{"$f":"SUM((R145/I145)*100)","v":{"$error":"#DIV/0!"}}]

{"sheet":"EN-Natural-Exp-Sub2","index":77,"n_rows":48,"n_cols":8,"rows_kept":48,"cut":false,"hidden":true,"merged":[[6,1,6,3],[6,4,6,6],[0,0,0,7],[2,1,2,3],[3,1,3,7],[4,1,4,3],[4,6,4,7],[5,1,5,3],[5,6,5,7]]}
["NATURAL ENVIRONMENT  DIRECT EXPENSES - SUBCONSULTANT 2"]
[]
["FIRM:",{"$f":"'EN-Natural-Sub2'!G3","v":"CONSULTANT NAME"}]
["PROJECT DESCRIPTION: ",{"$f":"PROJECT.DESCRIPTION","v":0}]
["PREPARED BY:  ",{"$f":"NEU.SUB2.PREPARED.BY","v":""},null,null,"TASK ORDER NUMBER:",null,{"$f":"TASK.ORDER.NUMBER","v":0}]
["TIP NUMBER:",{"$f":"TIP.NUMBER","v":0},null,null,"WBS NUMBER:",null,{"$f":"WBS.NUMBER","v":""}]
["DATE PREPARED:",{"$f":"IF('EN-Natural-Sub2'!Q3=\"\",\"\",MAX('EN-Natural-Sub2'!Q3:'EN-Natural-Sub2'!Q4))","v":""},null,null,"REVIEWED BY UNIT HEAD ON:",null,null,{"$f":"IF(SCOPE.MANDAY.ESTIMATE.APPROVED.BY.DATE=\"\",\"\",SCOPE.MANDAY.ESTIMATE.APPROVED.BY.DATE)","v":""}]
["GENERAL PROJECT WORK:","ITEM","QTY","DESCRIPTION",null,null,"UNIT COST "]
[null,"Travel:"]
[null,"Sedan",0,"Trip(s) @",0,"miles @",{"$f":"SEDAN","v":0.7},{"$f":"SUM(C10*E10*G10)","v":0}]
[null,"Carry All",0,"Trip(s) @",0,"miles @",{"$f":"CARRYALL","v":0.72},{"$f":"SUM(C11*E11*G11)","v":0}]
[null,"Car Rental",null,null,0,"days @ ",{"$f":"CARRENTAL","v":50},{"$f":"SUM(E12*G12)","v":0}]
[null,"Gas for Rental",null,null,0,"miles @",{"$f":"GASforRENTAL","v":0.2},{"$f":"SUM(E13*G13)","v":0}]
[null,"Parking:",0,"Trip(s) @",null,null,{"$f":"PARKING","v":3},{"$f":"SUM(C14*G14)","v":0}]
[null,"Per Diem:",0,"Breakfast",null,null,{"$f":"BREAKFAST","v":10.1},{"$f":"SUM(C15*G15)","v":0}]
[null,null,0,"Lunch",null,null,{"$f":"LUNCH","v":13.3},{"$f":"SUM(C16*G16)","v":0}]
[null,null,0,"Dinner",null,null,{"$f":"DINNER","v":23.1},{"$f":"SUM(C17*G17)","v":0}]
[null,null,0,"Lodging",null,null,{"$f":"LODGING_LUMP.SUM","v":95},{"$f":"SUM(C18*G18)","v":0}]
[null,null,null,null,null,"Subtotal",null,{"$f":"SUM(H10:H18)","v":0}]
["TECHNICAL REPORTS:","ITEM","QTY","DESCRIPTION",null,null,"UNIT COST "]
[null,"Reproduction:",0,"8 1/2 x 11 B & W Copies @",null,null,{"$f":"LETTERCOPIES","v":0.14000000000000001},{"$f":"SUM(C21*G21)","v":0}]
[null,null,0,"11 x 17 B & W Copies @",null,null,{"$f":"LEDGERCOPIES","v":0.34},0]
[null,null,0,"8 1/2 x 11 Color Copies @",null,null,{"$f":"LETTERCOLOR","v":0.83},0]
[null,null,0,"11 x 17 Color Copies @",null,null,{"$f":"LEDGERCOLOR","v":1.66},0]
[null,null,0,"Blueprints - 8 1/2 x 11 @",null,null,{"$f":"BLUEPRINTSLETTER","v":0.35},0]
[null,null,0,"Prints  - 24 x 36 @",null,null,{"$f":"BLUEPRINTSLARGE","v":1.3},0]
[null,null,0,"SQ. FT. of Plots (B & W or Color)",null,"<65 SQ. FT.*",{"$f":"ROLLPLOTSshort","v":6.5},0]
[null,null,0,"SQ. FT. of Plots (B & W or Color)",null,">65 SQ. FT.*",{"$f":"ROLLPLOTSlong","v":1.5},0]
[null,null,0,"Cover(s) @",null,null,{"$f":"COVERS","v":0.5},0]
[null,null,0,"Binder(s) @",null,null,{"$f":"BINDERS","v":0.5},0]
[null,null,0,"Postage",0,"copies @",{"$f":"POSTAGE","v":0.49},{"$f":"SUM(C31*E31*G31)","v":0}]
[null,null,null,null,null,"Subtotal",null,{"$f":"SUM(H21:H31)","v":0}]
["Miscellaneous Other","ITEM","QTY","DESCRIPTION",null,null,"UNIT COST "]
[null,null,null,null,null,null,null,{"$f":"SUM(C34*G34)","v":0}]
[null,null,null,null,null,null,null,{"$f":"SUM(C35*G35)","v":0}]
[null,null,null,null,null,null,null,0]
[null,null,null,null,null,null,null,0]
[null,null,null,null,null,null,null,0]
[null,null,null,null,null,null,null,0]
[null,null,null,null,null,null,null,0]
[null,null,null,null,null,null,null,{"$f":"SUM(C41*G41)","v":0}]
[null,null,null,null,null,null,null,{"$f":"SUM(C42*G42)","v":0}]
[null,null,null,null,null,null,null,{"$f":"SUM(C43*G43)","v":0}]
[null,null,null,null,null,"Subtotal",null,{"$f":"SUM(H34:H43)","v":0}]
[]
[null,null,null,null,null,"TOTAL",null,{"$f":"SUM(H19+H32+H44)","v":0}]
[]
[null,"* Sum of all plots "]

{"sheet":"EN-Natural-Sub3","index":78,"n_rows":145,"n_cols":22,"rows_kept":145,"cut":false,"hidden":true,"merged":[[139,8,139,14],[139,15,139,16],[142,8,142,18],[143,8,143,14],[143,15,143,16],[144,8,144,14],[144,15,144,16],[119,17,119,18],[133,1,134,1],[133,3,134,4],[137,3,137,6],[137,8,137,18],[138,8,138,14],[138,15,138,16],[113,17,113,18],[114,17,114,18],[115,17,115,18],[116,17,116,18],[117,17,117,18],[118,17,118,18],[107,17,107,18],[108,17,108,18],[109,17,109,18],[110,17,110,18],[111,17,111,18],[112,17,112,18],[101,17,101,18],[102,17,102,18],[103,17,103,18],[104,17,104,18],[105,17,105,18],[106,17,106,18],[95,17,95,18],[96,17,96,18],[97,17,97,18],[98,17,98,18],[99,17,99,18],[100,17,100,18],[89,17,89,18],[90,17,90,18],[91,17,91,18],[92,17,92,18],[93,17,93,18],[94,17,94,18],[83,17,83,18],[84,17,84,18],[85,17,85,18],[86,17,86,18],[87,17,87,18],[88,17,88,18],[77,17,77,18],[78,17,78,18],[79,17,79,18],[80,17,80,18],[81,17,81,18],[82,17,82,18],[71,17,71,18],[72,17,72,18],[73,17,73,18],[74,17,74,18],[75,17,75,18],[76,17,76,18],[65,17,65,18],[66,17,66,18],[67,17,67,18],[68,17,68,18],[69,17,69,18],[70,17,70,18],[59,17,59,18],[60,17,60,18],[61,17,61,18],[62,17,62,18],[63,17,63,18],[64,17,64,18],[53,17,53,18],[54,17,54,18],[55,17,55,18],[56,17,56,18],[57,17,57,18],[58,17,58,18],[47,17,47,18],[48,17,48,18],[49,17,49,18],[50,17,50,18],[51,17,51,18],[52,17,52,18],[41,17,41,18],[42,17,42,18],[43,17,43,18],[44,17,44,18],[45,17,45,18],[46,17,46,18],[35,17,35,18],[36,17,36,18],[37,17,37,18],[38,17,38,18],[39,17,39,18],[40,17,40,18],[29,17,29,18],[30,17,30,18],[31,17,31,18],[32,17,32,18],[33,17,33,18],[34,17,34,18],[23,17,23,18],[24,17,24,18],[25,17,25,18],[26,17,26,18],[27,17,27,18],[28,17,28,18],[17,17,17,18],[18,17,18,18],[19,17,19,18],[20,17,20,18],[21,17,21,18],[22,17,22,18],[11,17,11,18],[12,17,12,18],[13,17,13,18],[14,17,14,18],[15,17,15,18],[16,17,16,18],[6,9,10,9],[6,10,10,10],[6,11,10,11],[6,12,10,12],[6,13,10,13],[9,17,9,18],[6,3,10,3],[6,4,10,4],[6,5,10,5],[6,6,10,6],[6,7,10,7],[6,8,10,8],[3,1,3,4],[3,6,3,7],[3,10,3,11],[3,14,3,15],[3,16,3,17],[4,3,4,13],[0,0,0,18],[2,1,2,4],[2,6,2,7],[2,10,2,11],[2,14,2,15],[2,16,2,17]]}
["NATURAL ENVIRONMENT BREAKDOWN WORKSHEET - SUBCONSULTANT 3"]
[]
["PROJECT DESCRIPTION: ",{"$f":"PROJECT.DESCRIPTION","v":0},null,null,null,"FIRM:  ",{"$f":"PDEA_NEU_SUB3_CONSULTANT_NAME","v":"CONSULTANT NAME"},null,"TASK ORDER NUMBER:",null,{"$f":"TASK.ORDER.NUMBER","v":0},null,null,null,"DATE PREPARED:"]
["PREPARED BY:  ",{"$f":"IF(SCOPE.MANDAY.ESTIMATE.PREPARED.BY=\"\",\"\",SCOPE.MANDAY.ESTIMATE.PREPARED.BY)","v":""},null,null,null,"TIP NUMBER:",{"$f":"TIP.NUMBER","v":0},null,"WBS NUMBER:",null,{"$f":"WBS.NUMBER","v":""},null,null,null,"REVISION DATE:"]
[null,null,null,"ESTIMATED WORK DAYS"]
[null,null,"Employee",{"$f":"IF('PEF CLASSIFICATION SHEET'!$D618=\"\",\"\",LEFT('PEF CLASSIFICATION SHEET'!$D618,4))","v":""},{"$f":"IF('PEF CLASSIFICATION SHEET'!$D619=\"\",\"\",LEFT('PEF CLASSIFICATION SHEET'!$D619,4))","v":""},{"$f":"IF('PEF CLASSIFICATION SHEET'!$D620=\"\",\"\",LEFT('PEF CLASSIFICATION SHEET'!$D620,4))","v":""},{"$f":"IF('PEF CLASSIFICATION SHEET'!$D621=\"\",\"\",LEFT('PEF CLASSIFICATION SHEET'!$D621,4))","v":""},{"$f":"IF('PEF CLASSIFICATION SHEET'!$D622=\"\",\"\",LEFT('PEF CLASSIFICATION SHEET'!$D622,4))","v":""},{"$f":"IF('PEF CLASSIFICATION SHEET'!$D623=\"\",\"\",LEFT('PEF CLASSIFICATION SHEET'!$D623,4))","v":""},{"$f":"IF('PEF CLASSIFICATION SHEET'!$D624=\"\",\"\",LEFT('PEF CLASSIFICATION SHEET'!$D624,4))","v":""},{"$f":"IF('PEF CLASSIFICATION SHEET'!D625=\"\",\"\",LEFT('PEF CLASSIFICATION SHEET'!D625,4))","v":""},{"$f":"IF('PEF CLASSIFICATION SHEET'!D626=\"\",\"\",LEFT('PEF CLASSIFICATION SHEET'!D626,4))","v":""},{"$f":"IF('PEF CLASSIFICATION SHEET'!D627=\"\",\"\",LEFT('PEF CLASSIFICATION SHEET'!D627,4))","v":""},{"$f":"IF('PEF CLASSIFICATION SHEET'!D628=\"\",\"\",LEFT('PEF CLASSIFICATION SHEET'!D628,4))","v":""}]
[null,null,null,{"$f":"IF('PEF CLASSIFICATION SHEET'!$C618=\"\",\"\",'PEF CLASSIFICATION SHEET'!$C618)","v":""},{"$f":"IF('PEF CLASSIFICATION SHEET'!$C619=\"\",\"\",'PEF CLASSIFICATION SHEET'!$C619)","v":""},{"$f":"IF('PEF CLASSIFICATION SHEET'!$C620=\"\",\"\",'PEF CLASSIFICATION SHEET'!$C620)","v":""},{"$f":"IF('PEF CLASSIFICATION SHEET'!$C621=\"\",\"\",'PEF CLASSIFICATION SHEET'!$C621)","v":""},{"$f":"IF('PEF CLASSIFICATION SHEET'!$C622=\"\",\"\",'PEF CLASSIFICATION SHEET'!$C622)","v":""},{"$f":"IF('PEF CLASSIFICATION SHEET'!$C623=\"\",\"\",'PEF CLASSIFICATION SHEET'!$C623)","v":""},{"$f":"IF('PEF CLASSIFICATION SHEET'!$C624=\"\",\"\",'PEF CLASSIFICATION SHEET'!$C624)","v":""},{"$f":"IF('PEF CLASSIFICATION SHEET'!C625=\"\",\"\",'PEF CLASSIFICATION SHEET'!C625)","v":""},{"$f":"IF('PEF CLASSIFICATION SHEET'!C626=\"\",\"\",'PEF CLASSIFICATION SHEET'!C626)","v":""},{"$f":"IF('PEF CLASSIFICATION SHEET'!C627=\"\",\"\",'PEF CLASSIFICATION SHEET'!C627)","v":""},{"$f":"IF('PEF CLASSIFICATION SHEET'!C628=\"\",\"\",'PEF CLASSIFICATION SHEET'!C628)","v":""}]
[null,null,"Classification",null,null,null,null,null,null,null,null,null,null,null,"SUB-","%","PEF"]
[null,null,null,null,null,null,null,null,null,null,null,null,null,null,"TOTAL","OF","ESTIMATE"]
["TASK","TASK DESCRIPTION",null,null,null,null,null,null,null,null,null,null,null,null,null,"PROJECT",null,"COMMENTS"]
["NO."]
["2EN1","Assess Natural Environmental Impacts",null,null,null,null,null,null,null,null,null,null,null,null,{"$f":"IF(B12=\"\",0,IF((SUM(D12:N12)=0),\"\",SUM(D12:N12)))","v":""},{"$f":"IF(O12=\"\",\"\",SUM((O12/$O$121)))","v":""}]
[1,"Pre-Field Work",null,null,null,null,null,null,null,null,null,null,null,null,{"$f":"IF(B13=\"\",0,IF((SUM(D13:N13)=0),\"\",SUM(D13:N13)))","v":""},{"$f":"IF(O13=\"\",\"\",SUM((O13/$O$121)))","v":""}]
[2,"Landowner Letter Delivery",null,null,null,null,null,null,null,null,null,null,null,null,"",""]
[3,"NRTR Field Work ",null,null,null,null,null,null,null,null,null,null,null,null,"",""]
[4,"Threatened and Endangered Species Surveys",null,null,null,null,null,null,null,null,null,null,null,null,"",""]
[5,"WEX file ",null,null,null,null,null,null,null,null,null,null,null,null,"",""]
[6,"WET file",null,null,null,null,null,null,null,null,null,null,null,null,"",""]
[7,"Preliminary Jurisdictional Package (PJD)",null,null,null,null,null,null,null,null,null,null,null,null,"",""]
[8,"Approved Jurisdictional Package (AJD)",null,null,null,null,null,null,null,null,null,null,null,null,"","",null,null,null,null,null,"Y"]
[9,"NRTR",null,null,null,null,null,null,null,null,null,null,null,null,"","",null,null,null,null,null,"N"]
[10,"Task Management ",null,null,null,null,null,null,null,null,null,null,null,null,"",""]
[11,"Complete QC/QA Procedures",null,null,null,null,null,null,null,null,null,null,null,null,"",""]
[null,"Other Tasks (i.e Additional Biological Surveys work)",null,null,null,null,null,null,null,null,null,null,null,null,"",""]
[null,null,null,null,null,null,null,null,null,null,null,null,null,null,0,{"$error":"#DIV/0!"}]
[null,null,null,null,null,null,null,null,null,null,null,null,null,null,0,{"$error":"#DIV/0!"}]
[null,null,null,null,null,null,null,null,null,null,null,null,null,null,0,{"$error":"#DIV/0!"}]
[null,null,null,null,null,null,null,null,null,null,null,null,null,null,0,{"$error":"#DIV/0!"}]
[null,null,null,null,null,null,null,null,null,null,null,null,null,null,0,{"$error":"#DIV/0!"}]
[null,null,null,null,null,null,null,null,null,null,null,null,null,null,0,{"$error":"#DIV/0!"}]
[null,null,null,null,null,null,null,null,null,null,null,null,null,null,0,{"$error":"#DIV/0!"}]
[null,null,null,null,null,null,null,null,null,null,null,null,null,null,0,{"$error":"#DIV/0!"}]
[null,null,null,null,null,null,null,null,null,null,null,null,null,null,0,{"$error":"#DIV/0!"}]
["3EN3","Apply for Permits",null,null,null,null,null,null,null,null,null,null,null,null,"",""]
[1,"Review Project Documents",null,null,null,null,null,null,null,null,null,null,null,null,"",""]
[2,"Prepare Section 404/401 Permit Application ",null,null,null,null,null,null,null,null,null,null,null,null,"",""]
[3,"CAMA Major Permit Application",null,null,null,null,null,null,null,null,null,null,null,null,"",""]
[4,"Other Permit Applications",null,null,null,null,null,null,null,null,null,null,null,null,"",""]
[5,"Task Management ",null,null,null,null,null,null,null,null,null,null,null,null,"",""]
[6,"Complete QC/QA Procedures",null,null,null,null,null,null,null,null,null,null,null,null,"",""]
[null,"Other Tasks:",null,null,null,null,null,null,null,null,null,null,null,null,"",""]
[null,null,null,null,null,null,null,null,null,null,null,null,null,null,0,{"$error":"#DIV/0!"}]
[null,null,null,null,null,null,null,null,null,null,null,null,null,null,0,{"$error":"#DIV/0!"}]
[null,null,null,null,null,null,null,null,null,null,null,null,null,null,0,{"$error":"#DIV/0!"}]
["4EN1","Secure Permits",null,null,null,null,null,null,null,null,null,null,null,null,"",""]
[1,"Receive issued permits, review conditions, and update Project Special Commitments",null,null,null,null,null,null,null,null,null,null,null,null,"",""]
[2,"Permit Package",null,null,null,null,null,null,null,null,null,null,null,null,"",""]
[3,"Task Management ",null,null,null,null,null,null,null,null,null,null,null,null,"",""]
[4,"Complete QC/QA Procedures",null,null,null,null,null,null,null,null,null,null,null,null,"",""]
[null,"Other Tasks:",null,null,null,null,null,null,null,null,null,null,null,null,"",""]
[null,null,null,null,null,null,null,null,null,null,null,null,null,null,0,{"$error":"#DIV/0!"}]
[null,null,null,null,null,null,null,null,null,null,null,null,null,null,0,{"$error":"#DIV/0!"}]
[null,null,null,null,null,null,null,null,null,null,null,null,null,null,0,{"$error":"#DIV/0!"}]
[null,null,null,null,null,null,null,null,null,null,null,null,null,null,0,{"$error":"#DIV/0!"}]
[null,null,null,null,null,null,null,null,null,null,null,null,null,null,0,{"$error":"#DIV/0!"}]
[null,null,null,null,null,null,null,null,null,null,null,null,null,null,0,{"$error":"#DIV/0!"}]
[null,null,null,null,null,null,null,null,null,null,null,null,null,null,0,{"$error":"#DIV/0!"}]
[null,null,null,null,null,null,null,null,null,null,null,null,null,null,0,{"$error":"#DIV/0!"}]
[null,null,null,null,null,null,null,null,null,null,null,null,null,null,0,{"$error":"#DIV/0!"}]
[null,null,null,null,null,null,null,null,null,null,null,null,null,null,0,{"$error":"#DIV/0!"}]
[null,null,null,null,null,null,null,null,null,null,null,null,null,null,0,{"$error":"#DIV/0!"}]
[null,null,null,null,null,null,null,null,null,null,null,null,null,null,0,{"$error":"#DIV/0!"}]
[null,null,null,null,null,null,null,null,null,null,null,null,null,null,0,{"$error":"#DIV/0!"}]
[null,null,null,null,null,null,null,null,null,null,null,null,null,null,0,{"$error":"#DIV/0!"}]
[null,null,null,null,null,null,null,null,null,null,null,null,null,null,0,{"$error":"#DIV/0!"}]
[null,null,null,null,null,null,null,null,null,null,null,null,null,null,0,{"$error":"#DIV/0!"}]
[null,null,null,null,null,null,null,null,null,null,null,null,null,null,0,{"$error":"#DIV/0!"}]
[null,null,null,null,null,null,null,null,null,null,null,null,null,null,0,{"$error":"#DIV/0!"}]
[null,null,null,null,null,null,null,null,null,null,null,null,null,null,0,{"$error":"#DIV/0!"}]
[null,null,null,null,null,null,null,null,null,null,null,null,null,null,0,{"$error":"#DIV/0!"}]
[null,null,null,null,null,null,null,null,null,null,null,null,null,null,0,{"$error":"#DIV/0!"}]
[null,null,null,null,null,null,null,null,null,null,null,null,null,null,0,{"$error":"#DIV/0!"}]
[null,null,null,null,null,null,null,null,null,null,null,null,null,null,0,{"$error":"#DIV/0!"}]
[null,null,null,null,null,null,null,null,null,null,null,null,null,null,0,{"$error":"#DIV/0!"}]
[null,null,null,null,null,null,null,null,null,null,null,null,null,null,0,{"$error":"#DIV/0!"}]
[null,null,null,null,null,null,null,null,null,null,null,null,null,null,0,{"$error":"#DIV/0!"}]
[null,null,null,null,null,null,null,null,null,null,null,null,null,null,{"$f":"IF(B77=\"\",0,IF((SUM(D77:N77)=0),\"\",SUM(D77:N77)))","v":0},{"$f":"IF(O77=\"\",\"\",SUM((O77/$O$121)))","v":{"$error":"#DIV/0!"}}]
[null,null,null,null,null,null,null,null,null,null,null,null,null,null,0,{"$error":"#DIV/0!"}]
[null,null,null,null,null,null,null,null,null,null,null,null,null,null,0,{"$error":"#DIV/0!"}]
[null,null,null,null,null,null,null,null,null,null,null,null,null,null,0,{"$error":"#DIV/0!"}]
[null,null,null,null,null,null,null,null,null,null,null,null,null,null,0,{"$error":"#DIV/0!"}]
[null,null,null,null,null,null,null,null,null,null,null,null,null,null,0,{"$error":"#DIV/0!"}]
[null,null,null,null,null,null,null,null,null,null,null,null,null,null,0,{"$error":"#DIV/0!"}]
[null,null,null,null,null,null,null,null,null,null,null,null,null,null,0,{"$error":"#DIV/0!"}]
[null,null,null,null,null,null,null,null,null,null,null,null,null,null,0,{"$error":"#DIV/0!"}]
[null,null,null,null,null,null,null,null,null,null,null,null,null,null,0,{"$error":"#DIV/0!"}]
[null,null,null,null,null,null,null,null,null,null,null,null,null,null,0,{"$error":"#DIV/0!"}]
[null,null,null,null,null,null,null,null,null,null,null,null,null,null,0,{"$error":"#DIV/0!"}]
[null,null,null,null,null,null,null,null,null,null,null,null,null,null,0,{"$error":"#DIV/0!"}]
[null,null,null,null,null,null,null,null,null,null,null,null,null,null,0,{"$error":"#DIV/0!"}]
[null,null,null,null,null,null,null,null,null,null,null,null,null,null,0,{"$error":"#DIV/0!"}]
[null,null,null,null,null,null,null,null,null,null,null,null,null,null,0,{"$error":"#DIV/0!"}]
[null,null,null,null,null,null,null,null,null,null,null,null,null,null,0,{"$error":"#DIV/0!"}]
[null,null,null,null,null,null,null,null,null,null,null,null,null,null,0,{"$error":"#DIV/0!"}]
[null,null,null,null,null,null,null,null,null,null,null,null,null,null,0,{"$error":"#DIV/0!"}]
[null,null,null,null,null,null,null,null,null,null,null,null,null,null,0,{"$error":"#DIV/0!"}]
[null,null,null,null,null,null,null,null,null,null,null,null,null,null,0,{"$error":"#DIV/0!"}]
[null,null,null,null,null,null,null,null,null,null,null,null,null,null,0,{"$error":"#DIV/0!"}]
[null,null,null,null,null,null,null,null,null,null,null,null,null,null,0,{"$error":"#DIV/0!"}]
[null,null,null,null,null,null,null,null,null,null,null,null,null,null,0,{"$error":"#DIV/0!"}]
[null,null,null,null,null,null,null,null,null,null,null,null,null,null,0,{"$error":"#DIV/0!"}]
[null,null,null,null,null,null,null,null,null,null,null,null,null,null,0,{"$error":"#DIV/0!"}]
[null,null,null,null,null,null,null,null,null,null,null,null,null,null,0,{"$error":"#DIV/0!"}]
[null,null,null,null,null,null,null,null,null,null,null,null,null,null,0,{"$error":"#DIV/0!"}]
[null,null,null,null,null,null,null,null,null,null,null,null,null,null,0,{"$error":"#DIV/0!"}]
[null,null,null,null,null,null,null,null,null,null,null,null,null,null,0,{"$error":"#DIV/0!"}]
[null,null,null,null,null,null,null,null,null,null,null,null,null,null,0,{"$error":"#DIV/0!"}]
[null,null,null,null,null,null,null,null,null,null,null,null,null,null,0,{"$error":"#DIV/0!"}]
[null,null,null,null,null,null,null,null,null,null,null,null,null,null,0,{"$error":"#DIV/0!"}]
[null,null,null,null,null,null,null,null,null,null,null,null,null,null,0,{"$error":"#DIV/0!"}]
[null,null,null,null,null,null,null,null,null,null,null,null,null,null,0,{"$error":"#DIV/0!"}]
[null,null,null,null,null,null,null,null,null,null,null,null,null,null,0,{"$error":"#DIV/0!"}]
[null,null,null,null,null,null,null,null,null,null,null,null,null,null,0,{"$error":"#DIV/0!"}]
[null,null,null,null,null,null,null,null,null,null,null,null,null,null,0,{"$error":"#DIV/0!"}]
[null,null,null,null,null,null,null,null,null,null,null,null,null,null,0,{"$error":"#DIV/0!"}]
[null,null,null,null,null,null,null,null,null,null,null,null,null,null,0,{"$error":"#DIV/0!"}]
[null,null,null,null,null,null,null,null,null,null,null,null,null,null,0,{"$error":"#DIV/0!"}]
[null,null,null,null,null,null,null,null,null,null,null,null,null,null,0,{"$error":"#DIV/0!"}]
[null,null,null,null,null,null,null,null,null,null,null,null,null,null,0,{"$error":"#DIV/0!"}]
[null,null,null,null,null,null,null,null,null,null,null,null,null,null,0,{"$error":"#DIV/0!"}]
[null,"TOTAL WORKDAYS/CATEGORY:",null,{"$f":"SUM(D12:D120)","v":0},0,0,0,0,0,0,0,0,{"$f":"SUM(M12:M120)","v":0},{"$f":"SUM(N12:N120)","v":0},{"$f":"SUM(O12:O120)","v":0},{"$f":"SUM(P12:P120)","v":{"$error":"#DIV/0!"}},{"$f":"SUM(Q12:Q120)","v":0}]
[null,"HOURLY SALARY RATE:",null,{"$f":"'PEF CLASSIFICATION SHEET'!$E618","v":0},{"$f":"'PEF CLASSIFICATION SHEET'!$E619","v":0},{"$f":"'PEF CLASSIFICATION SHEET'!$E620","v":0},{"$f":"'PEF CLASSIFICATION SHEET'!$E621","v":0},{"$f":"'PEF CLASSIFICATION SHEET'!$E622","v":0},{"$f":"'PEF CLASSIFICATION SHEET'!$E623","v":0},{"$f":"'PEF CLASSIFICATION SHEET'!$E624","v":0},{"$f":"'PEF CLASSIFICATION SHEET'!E625","v":0},{"$f":"'PEF CLASSIFICATION SHEET'!E626","v":0},{"$f":"'PEF CLASSIFICATION SHEET'!E627","v":0},{"$f":"'PEF CLASSIFICATION SHEET'!E628","v":0}]
[null,"RATES PER DAY:",null,{"$f":"D122*8","v":0},0,0,0,0,0,0,0,0,0,0]
[null,"PAYROLL BURDEN:",null,{"$f":"SUM(D121*D123)","v":0},0,0,0,0,0,{"$f":"SUM(J121*J123)","v":0},0,0,0,0]
[null,"TOTAL WORKDAYS:",null,{"$f":"SUM(D121:N121)","v":0}]
[null,"TOTAL PAYROLL BURDEN:",null,{"$f":"SUM(D124:N124)","v":0}]
[null,"AVERAGE COST PER HOUR:",null,{"$f":"SUM(D126/(D125*8))","v":{"$error":"#DIV/0!"}}]
[null,"GENERAL OVERHEAD:",{"$f":"PDEA_NEU_SUB3_CONSULTANT_OVERHEAD","v":0},{"$f":"SUM(D126*C128)","v":0}]
[null,"SUBTOTAL:",null,{"$f":"SUM(D126+D128)","v":0}]
[null,"COMPARATIVE FEE:",{"$f":"PDEA_NEU_SUB3_CONSULTANT_FEE","v":0.09},{"$f":"SUM(D129*C130)","v":0}]
[null,"FACILITIES COST OF CAPITAL:",{"$f":"PDEA_NEU_SUB3_CONSULTANT_COSTofCAPITAL","v":0},{"$f":"SUM(D126*C131)","v":0},null,null,"     ","PDEA RELATED DATA :"]
[null,"TOTAL:",null,{"$f":"SUM(D129:D131)","v":0},null,null,null,"  SIZE OF STUDY AREA",null,{"$f":"IF('RD-Data'!$D$18=\"(ENGLISH UNITS)\",\"SQR FEET\",\"SQR METER\")","v":"SQR FEET"}]
[null,"DIRECT EXPENSES:",null,{"$f":"PDEA_NEU_SUB3_DIRECT_NONSALARY_TOTAL","v":0},null,null,null,"  JURISDICTIONAL RESOURCES PRESENT"]
[null,"NES GRAND TOTAL:",null,{"$f":"SUM(D132:D133)","v":0},null,null,null,"  POTENTIAL ENDANGERED SPECIES"]
[]
[]
[]
[null,"Costs",null,"Workdays",null,null,null,null,"Dollars"]
[null,null,null,"EN Natural","PEF","Delta ","Delta %",null,"EN Natural",null,null,null,null,null,null,"PEF",null,"Delta ","Delta %"]
[null,null,null,null,null,{"$f":"SUM(E140-D140)","v":0},{"$f":"SUM((F140/D140)*100)","v":{"$error":"#DIV/0!"}},null,null,null,null,null,null,null,null,null,null,{"$f":"SUM(P140-I140)","v":0},{"$f":"SUM((R140/I140)*100)","v":{"$error":"#DIV/0!"}}]
[]
[]
[null,null,null,null,null,null,null,"Directs","Dollars"]
[null,null,null,null,null,null,null,null,"EN Natural",null,null,null,null,null,null,"PEF",null,"Delta ","Delta %"]
[null,null,null,null,null,null,null,null,null,null,null,null,null,null,null,null,null,{"$f":"SUM(P145-I145)","v":0},{"$f":"SUM((R145/I145)*100)","v":{"$error":"#DIV/0!"}}]

{"sheet":"EN-Natural-Exp-Sub3","index":79,"n_rows":48,"n_cols":8,"rows_kept":48,"cut":false,"hidden":true,"merged":[[6,1,6,3],[6,4,6,6],[0,0,0,7],[2,1,2,3],[3,1,3,7],[4,1,4,3],[4,6,4,7],[5,1,5,3],[5,6,5,7]]}
["NATURAL ENVIRONMENT  DIRECT EXPENSES - SUBCONSULTANT 3"]
[]
["FIRM:",{"$f":"'EN-Natural-Sub3'!G3","v":"CONSULTANT NAME"}]
["PROJECT DESCRIPTION: ",{"$f":"PROJECT.DESCRIPTION","v":0}]
["PREPARED BY:  ",{"$f":"NEU.SUB3.PREPARED.BY","v":""},null,null,"TASK ORDER NUMBER:",null,{"$f":"TASK.ORDER.NUMBER","v":0}]
["TIP NUMBER:",{"$f":"TIP.NUMBER","v":0},null,null,"WBS NUMBER:",null,{"$f":"WBS.NUMBER","v":""}]
["DATE PREPARED:",{"$f":"IF('EN-Natural-Sub3'!Q3=\"\",\"\",MAX('EN-Natural-Sub3'!Q3:'EN-Natural-Sub3'!Q4))","v":""},null,null,"REVIEWED BY UNIT HEAD ON:",null,null,{"$f":"IF(SCOPE.MANDAY.ESTIMATE.APPROVED.BY.DATE=\"\",\"\",SCOPE.MANDAY.ESTIMATE.APPROVED.BY.DATE)","v":""}]
["GENERAL PROJECT WORK:","ITEM","QTY","DESCRIPTION",null,null,"UNIT COST "]
[null,"Travel:"]
[null,"Sedan",0,"Trip(s) @",0,"miles @",{"$f":"SEDAN","v":0.7},{"$f":"SUM(C10*E10*G10)","v":0}]
[null,"Carry All",0,"Trip(s) @",0,"miles @",{"$f":"CARRYALL","v":0.72},{"$f":"SUM(C11*E11*G11)","v":0}]
[null,"Car Rental",null,null,0,"days @ ",{"$f":"CARRENTAL","v":50},{"$f":"SUM(E12*G12)","v":0}]
[null,"Gas for Rental",null,null,0,"miles @",{"$f":"GASforRENTAL","v":0.2},{"$f":"SUM(E13*G13)","v":0}]
[null,"Parking:",0,"Trip(s) @",null,null,{"$f":"PARKING","v":3},{"$f":"SUM(C14*G14)","v":0}]
[null,"Per Diem:",0,"Breakfast",null,null,{"$f":"BREAKFAST","v":10.1},{"$f":"SUM(C15*G15)","v":0}]
[null,null,0,"Lunch",null,null,{"$f":"LUNCH","v":13.3},{"$f":"SUM(C16*G16)","v":0}]
[null,null,0,"Dinner",null,null,{"$f":"DINNER","v":23.1},{"$f":"SUM(C17*G17)","v":0}]
[null,null,0,"Lodging",null,null,{"$f":"LODGING_LUMP.SUM","v":95},{"$f":"SUM(C18*G18)","v":0}]
[null,null,null,null,null,"Subtotal",null,{"$f":"SUM(H10:H18)","v":0}]
["TECHNICAL REPORTS:","ITEM","QTY","DESCRIPTION",null,null,"UNIT COST "]
[null,"Reproduction:",0,"8 1/2 x 11 B & W Copies @",null,null,{"$f":"LETTERCOPIES","v":0.14000000000000001},{"$f":"SUM(C21*G21)","v":0}]
[null,null,0,"11 x 17 B & W Copies @",null,null,{"$f":"LEDGERCOPIES","v":0.34},0]
[null,null,0,"8 1/2 x 11 Color Copies @",null,null,{"$f":"LETTERCOLOR","v":0.83},0]
[null,null,0,"11 x 17 Color Copies @",null,null,{"$f":"LEDGERCOLOR","v":1.66},0]
[null,null,0,"Blueprints - 8 1/2 x 11 @",null,null,{"$f":"BLUEPRINTSLETTER","v":0.35},0]
[null,null,0,"Prints  - 24 x 36 @",null,null,{"$f":"BLUEPRINTSLARGE","v":1.3},0]
[null,null,0,"SQ. FT. of Plots (B & W or Color)",null,"<65 SQ. FT.*",{"$f":"ROLLPLOTSshort","v":6.5},0]
[null,null,0,"SQ. FT. of Plots (B & W or Color)",null,">65 SQ. FT.*",{"$f":"ROLLPLOTSlong","v":1.5},0]
[null,null,0,"Cover(s) @",null,null,{"$f":"COVERS","v":0.5},0]
[null,null,0,"Binder(s) @",null,null,{"$f":"BINDERS","v":0.5},0]
[null,null,0,"Postage",0,"copies @",{"$f":"POSTAGE","v":0.49},{"$f":"SUM(C31*E31*G31)","v":0}]
[null,null,null,null,null,"Subtotal",null,{"$f":"SUM(H21:H31)","v":0}]
["Miscellaneous Other","ITEM","QTY","DESCRIPTION",null,null,"UNIT COST "]
[null,null,null,null,null,null,null,{"$f":"SUM(C34*G34)","v":0}]
[null,null,null,null,null,null,null,{"$f":"SUM(C35*G35)","v":0}]
[null,null,null,null,null,null,null,0]
[null,null,null,null,null,null,null,0]
[null,null,null,null,null,null,null,0]
[null,null,null,null,null,null,null,0]
[null,null,null,null,null,null,null,0]
[null,null,null,null,null,null,null,{"$f":"SUM(C41*G41)","v":0}]
[null,null,null,null,null,null,null,{"$f":"SUM(C42*G42)","v":0}]
[null,null,null,null,null,null,null,{"$f":"SUM(C43*G43)","v":0}]
[null,null,null,null,null,"Subtotal",null,{"$f":"SUM(H34:H43)","v":0}]
[]
[null,null,null,null,null,"TOTAL",null,{"$f":"SUM(H19+H32+H44)","v":0}]
[]
[null,"* Sum of all plots "]

{"sheet":"EN-Comm-Sub1","index":80,"n_rows":178,"n_cols":27,"rows_kept":178,"cut":false,"hidden":true,"merged":[[111,26,111,27],[112,26,112,27],[113,26,113,27],[114,26,114,27],[115,26,115,27],[116,26,116,27],[117,26,117,27],[102,26,102,27],[103,26,103,27],[104,26,104,27],[105,26,105,27],[106,26,106,27],[107,26,107,27],[108,26,108,27],[109,26,109,27],[110,26,110,27],[93,26,93,27],[94,26,94,27],[95,26,95,27],[96,26,96,27],[97,26,97,27],[98,26,98,27],[99,26,99,27],[100,26,100,27],[101,26,101,27],[177,8,177,9],[177,10,177,11],[170,3,170,6],[170,8,170,13],[171,8,171,9],[171,10,171,11],[172,8,172,9],[172,10,172,11],[166,1,167,1],[166,3,167,4],[149,26,149,27],[150,26,150,27],[151,26,151,27],[152,26,152,27],[175,8,175,13],[176,8,176,9],[176,10,176,11],[147,26,147,27],[148,26,148,27],[141,26,141,27],[142,26,142,27],[143,26,143,27],[144,26,144,27],[145,26,145,27],[146,26,146,27],[135,26,135,27],[136,26,136,27],[137,26,137,27],[138,26,138,27],[139,26,139,27],[140,26,140,27],[129,26,129,27],[130,26,130,27],[131,26,131,27],[132,26,132,27],[133,26,133,27],[134,26,134,27],[123,26,123,27],[124,26,124,27],[125,26,125,27],[126,26,126,27],[127,26,127,27],[128,26,128,27],[80,26,80,27],[118,26,118,27],[119,26,119,27],[120,26,120,27],[121,26,121,27],[122,26,122,27],[74,26,74,27],[75,26,75,27],[76,26,76,27],[77,26,77,27],[78,26,78,27],[79,26,79,27],[81,26,81,27],[82,26,82,27],[83,26,83,27],[84,26,84,27],[85,26,85,27],[86,26,86,27],[87,26,87,27],[88,26,88,27],[89,26,89,27],[90,26,90,27],[91,26,91,27],[92,26,92,27],[68,26,68,27],[69,26,69,27],[70,26,70,27],[71,26,71,27],[72,26,72,27],[73,26,73,27],[62,26,62,27],[63,26,63,27],[64,26,64,27],[65,26,65,27],[66,26,66,27],[67,26,67,27],[56,26,56,27],[57,26,57,27],[58,26,58,27],[59,26,59,27],[60,26,60,27],[61,26,61,27],[50,26,50,27],[51,26,51,27],[52,26,52,27],[53,26,53,27],[54,26,54,27],[55,26,55,27],[44,26,44,27],[45,26,45,27],[46,26,46,27],[47,26,47,27],[48,26,48,27],[49,26,49,27],[38,26,38,27],[39,26,39,27],[40,26,40,27],[41,26,41,27],[42,26,42,27],[43,26,43,27],[32,26,32,27],[33,26,33,27],[34,26,34,27],[35,26,35,27],[36,26,36,27],[37,26,37,27],[26,26,26,27],[27,26,27,27],[28,26,28,27],[29,26,29,27],[30,26,30,27],[31,26,31,27],[20,26,20,27],[21,26,21,27],[22,26,22,27],[23,26,23,27],[24,26,24,27],[25,26,25,27],[14,26,14,27],[15,26,15,27],[16,26,16,27],[17,26,17,27],[18,26,18,27],[19,26,19,27],[6,21,9,21],[8,26,8,27],[10,26,10,27],[11,26,11,27],[12,26,12,27],[13,26,13,27],[6,15,9,15],[6,16,9,16],[6,17,9,17],[6,18,9,18],[6,19,9,19],[6,20,9,20],[6,9,9,9],[6,10,9,10],[6,11,9,11],[6,12,9,12],[6,13,9,13],[6,14,9,14],[6,3,9,3],[6,4,9,4],[6,5,9,5],[6,6,9,6],[6,7,9,7],[6,8,9,8],[3,1,3,4],[3,6,3,7],[3,10,3,11],[3,13,3,14],[3,23,3,24],[4,3,4,21],[0,0,1,27],[2,1,2,4],[2,6,2,7],[2,10,2,11],[2,13,2,14],[2,23,2,24]]}
["COMMUNITY STUDIES BREAKDOWN WORKSHEET - SUBCONSULTANT 1"]
[]
["PROJECT DESCRIPTION: ",{"$f":"PROJECT.DESCRIPTION","v":0},null,null,null,"FIRM:  ",{"$f":"PDEA_HEU_COMMUNITY.STUDIES_SUB1_CONSULTANT_NAME","v":"CONSULTANT NAME"},null,"TASK ORDER NUMBER:",null,{"$f":"TASK.ORDER.NUMBER","v":0},null,"DATE PREPARED:",{"$f":"IF(SCOPE.MANDAY.ESTIMATE.PREPARED.BY.DATE=\"\",\"\",SCOPE.MANDAY.ESTIMATE.PREPARED.BY.DATE)","v":""}]
["PREPARED BY:  ",{"$f":"IF(SCOPE.MANDAY.ESTIMATE.PREPARED.BY=\"\",\"\",SCOPE.MANDAY.ESTIMATE.PREPARED.BY)","v":""},null,null,null,"TIP NUMBER:",{"$f":"TIP.NUMBER","v":0},null,"WBS NUMBER:",null,{"$f":"WBS.NUMBER","v":""},null,"REVISION DATE:",{"$f":"IF(SCOPE.MANDAY.ESTIMATE.APPROVED.BY.DATE=\"\",\"\",SCOPE.MANDAY.ESTIMATE.APPROVED.BY.DATE)","v":""}]
[null,null,null,"ESTIMATED WORK DAYS"]
[null,null,"Employee",{"$f":"IF('PEF CLASSIFICATION SHEET'!$D631=\"\",\"\",LEFT('PEF CLASSIFICATION SHEET'!$D631,4))","v":""},{"$f":"IF('PEF CLASSIFICATION SHEET'!$D632=\"\",\"\",LEFT('PEF CLASSIFICATION SHEET'!$D632,4))","v":""},{"$f":"IF('PEF CLASSIFICATION SHEET'!$D633=\"\",\"\",LEFT('PEF CLASSIFICATION SHEET'!$D633,4))","v":""},{"$f":"IF('PEF CLASSIFICATION SHEET'!$D634=\"\",\"\",LEFT('PEF CLASSIFICATION SHEET'!$D634,4))","v":""},{"$f":"IF('PEF CLASSIFICATION SHEET'!$D635=\"\",\"\",LEFT('PEF CLASSIFICATION SHEET'!$D635,4))","v":""},{"$f":"IF('PEF CLASSIFICATION SHEET'!$D636=\"\",\"\",LEFT('PEF CLASSIFICATION SHEET'!$D636,4))","v":""},{"$f":"IF('PEF CLASSIFICATION SHEET'!$D637=\"\",\"\",LEFT('PEF CLASSIFICATION SHEET'!$D637,4))","v":""},{"$f":"IF('PEF CLASSIFICATION SHEET'!$D638=\"\",\"\",LEFT('PEF CLASSIFICATION SHEET'!$D638,4))","v":""},{"$f":"IF('PEF CLASSIFICATION SHEET'!$D639=\"\",\"\",LEFT('PEF CLASSIFICATION SHEET'!$D639,4))","v":""},{"$f":"IF('PEF CLASSIFICATION SHEET'!$D640=\"\",\"\",LEFT('PEF CLASSIFICATION SHEET'!$D640,4))","v":""},{"$f":"IF('PEF CLASSIFICATION SHEET'!$D641=\"\",\"\",LEFT('PEF CLASSIFICATION SHEET'!$D641,4))","v":""},{"$f":"IF('PEF CLASSIFICATION SHEET'!$D642=\"\",\"\",LEFT('PEF CLASSIFICATION SHEET'!$D642,4))","v":""},{"$f":"IF('PEF CLASSIFICATION SHEET'!$D643=\"\",\"\",LEFT('PEF CLASSIFICATION SHEET'!$D643,4))","v":""},{"$f":"IF('PEF CLASSIFICATION SHEET'!$D644=\"\",\"\",LEFT('PEF CLASSIFICATION SHEET'!$D644,4))","v":""},{"$f":"IF('PEF CLASSIFICATION SHEET'!$D645=\"\",\"\",LEFT('PEF CLASSIFICATION SHEET'!$D645,4))","v":""},{"$f":"IF('PEF CLASSIFICATION SHEET'!D646=\"\",\"\",LEFT('PEF CLASSIFICATION SHEET'!D646,4))","v":""},{"$f":"IF('PEF CLASSIFICATION SHEET'!D647=\"\",\"\",LEFT('PEF CLASSIFICATION SHEET'!D647,4))","v":""},{"$f":"IF('PEF CLASSIFICATION SHEET'!D648=\"\",\"\",LEFT('PEF CLASSIFICATION SHEET'!D648,4))","v":""},{"$f":"IF('PEF CLASSIFICATION SHEET'!D649=\"\",\"\",LEFT('PEF CLASSIFICATION SHEET'!D649,4))","v":""}]
[null,null,null,{"$f":"IF('PEF CLASSIFICATION SHEET'!$C631=\"\",\"\",'PEF CLASSIFICATION SHEET'!$C631)","v":""},{"$f":"IF('PEF CLASSIFICATION SHEET'!$C632=\"\",\"\",'PEF CLASSIFICATION SHEET'!$C632)","v":""},{"$f":"IF('PEF CLASSIFICATION SHEET'!$C633=\"\",\"\",'PEF CLASSIFICATION SHEET'!$C633)","v":""},{"$f":"IF('PEF CLASSIFICATION SHEET'!$C634=\"\",\"\",'PEF CLASSIFICATION SHEET'!$C634)","v":""},{"$f":"IF('PEF CLASSIFICATION SHEET'!$C635=\"\",\"\",'PEF CLASSIFICATION SHEET'!$C635)","v":""},{"$f":"IF('PEF CLASSIFICATION SHEET'!$C636=\"\",\"\",'PEF CLASSIFICATION SHEET'!$C636)","v":""},{"$f":"IF('PEF CLASSIFICATION SHEET'!$C637=\"\",\"\",'PEF CLASSIFICATION SHEET'!$C637)","v":""},{"$f":"IF('PEF CLASSIFICATION SHEET'!$C638=\"\",\"\",'PEF CLASSIFICATION SHEET'!$C638)","v":""},{"$f":"IF('PEF CLASSIFICATION SHEET'!$C639=\"\",\"\",'PEF CLASSIFICATION SHEET'!$C639)","v":""},{"$f":"IF('PEF CLASSIFICATION SHEET'!$C640=\"\",\"\",'PEF CLASSIFICATION SHEET'!$C640)","v":""},{"$f":"IF('PEF CLASSIFICATION SHEET'!$C641=\"\",\"\",'PEF CLASSIFICATION SHEET'!$C641)","v":""},{"$f":"IF('PEF CLASSIFICATION SHEET'!$C642=\"\",\"\",'PEF CLASSIFICATION SHEET'!$C642)","v":""},{"$f":"IF('PEF CLASSIFICATION SHEET'!$C643=\"\",\"\",'PEF CLASSIFICATION SHEET'!$C643)","v":""},{"$f":"IF('PEF CLASSIFICATION SHEET'!$C644=\"\",\"\",'PEF CLASSIFICATION SHEET'!$C644)","v":""},{"$f":"IF('PEF CLASSIFICATION SHEET'!$C645=\"\",\"\",'PEF CLASSIFICATION SHEET'!$C645)","v":""},{"$f":"IF('PEF CLASSIFICATION SHEET'!C646=\"\",\"\",'PEF CLASSIFICATION SHEET'!C646)","v":""},{"$f":"IF('PEF CLASSIFICATION SHEET'!C647=\"\",\"\",'PEF CLASSIFICATION SHEET'!C647)","v":""},{"$f":"IF('PEF CLASSIFICATION SHEET'!C648=\"\",\"\",'PEF CLASSIFICATION SHEET'!C648)","v":""},{"$f":"IF('PEF CLASSIFICATION SHEET'!C649=\"\",\"\",'PEF CLASSIFICATION SHEET'!C649)","v":""},null,"SUB-","%","PEF"]
[null,null,"Classification",null,null,null,null,null,null,null,null,null,null,null,null,null,null,null,null,null,null,null,null,"TOTAL","OF","ESTIMATE"]
["TASK","TASK DESCRIPTION",null,null,null,null,null,null,null,null,null,null,null,null,null,null,null,null,null,null,null,null,null,null,"PROJECT",null,"COMMENTS"]
["NO."]
["2EN2","Assess Human Environmental Impacts"]
[1,"Direct and Indirect Screening Tool (DIST)",null,null,null,null,null,null,null,null,null,null,null,null,null,null,null,null,null,null,null,null,null,{"$f":"IF($B12=\"\",0,IF((SUM($D12:W12)=0),\"\",SUM($D12:W12)))","v":""},{"$f":"IF(X12=\"\",\"\",SUM((X12/X$154)))","v":""}]
[1.1000000000000001,"DIST Project Initiation & Set-up",null,null,null,null,null,null,null,null,null,null,null,null,null,null,null,null,null,null,null,null,null,{"$f":"IF($B13=\"\",0,IF((SUM($D13:W13)=0),\"\",SUM($D13:W13)))","v":""},{"$f":"IF(X13=\"\",\"\",SUM((X13/X$154)))","v":""}]
[1.2,"DIST Data Gathering",null,null,null,null,null,null,null,null,null,null,null,null,null,null,null,null,null,null,null,null,null,{"$f":"IF($B14=\"\",0,IF((SUM($D14:W14)=0),\"\",SUM($D14:W14)))","v":""},""]
[1.3,"DIST Project Documentation",null,null,null,null,null,null,null,null,null,null,null,null,null,null,null,null,null,null,null,null,null,{"$f":"IF($B15=\"\",0,IF((SUM($D15:W15)=0),\"\",SUM($D15:W15)))","v":""},""]
[1.4,"DIST Deliverables",null,null,null,null,null,null,null,null,null,null,null,null,null,null,null,null,null,null,null,null,null,{"$f":"IF($B16=\"\",0,IF((SUM($D16:W16)=0),\"\",SUM($D16:W16)))","v":""},""]
[null,"Task Management",null,null,null,null,null,null,null,null,null,null,null,null,null,null,null,null,null,null,null,null,null,{"$f":"IF($B17=\"\",0,IF((SUM($D17:W17)=0),\"\",SUM($D17:W17)))","v":""},""]
[null,"Complete QC/QC Procedures",null,null,null,null,null,null,null,null,null,null,null,null,null,null,null,null,null,null,null,null,null,{"$f":"IF($B18=\"\",0,IF((SUM($D18:W18)=0),\"\",SUM($D18:W18)))","v":""},""]
[null,null,null,null,null,null,null,null,null,null,null,null,null,null,null,null,null,null,null,null,null,null,null,{"$f":"IF($B19=\"\",0,IF((SUM($D19:W19)=0),\"\",SUM($D19:W19)))","v":0},{"$error":"#DIV/0!"}]
[null,null,null,null,null,null,null,null,null,null,null,null,null,null,null,null,null,null,null,null,null,null,null,{"$f":"IF($B20=\"\",0,IF((SUM($D20:W20)=0),\"\",SUM($D20:W20)))","v":0},{"$error":"#DIV/0!"}]
[null,null,null,null,null,null,null,null,null,null,null,null,null,null,null,null,null,null,null,null,null,null,null,{"$f":"IF($B21=\"\",0,IF((SUM($D21:W21)=0),\"\",SUM($D21:W21)))","v":0},{"$error":"#DIV/0!"}]
[null,null,null,null,null,null,null,null,null,null,null,null,null,null,null,null,null,null,null,null,null,null,null,{"$f":"IF($B22=\"\",0,IF((SUM($D22:W22)=0),\"\",SUM($D22:W22)))","v":0},{"$error":"#DIV/0!"}]
[null,null,null,null,null,null,null,null,null,null,null,null,null,null,null,null,null,null,null,null,null,null,null,{"$f":"IF($B23=\"\",0,IF((SUM($D23:W23)=0),\"\",SUM($D23:W23)))","v":0},{"$error":"#DIV/0!"}]
[2,"Short Form Community Impacts Assessment (CIA)",null,null,null,null,null,null,null,null,null,null,null,null,null,null,null,null,null,null,null,null,null,{"$f":"IF($B24=\"\",0,IF((SUM($D24:W24)=0),\"\",SUM($D24:W24)))","v":""},""]
[2.1,"CIA Project Initiation & Set-up",null,null,null,null,null,null,null,null,null,null,null,null,null,null,null,null,null,null,null,null,null,{"$f":"IF($B25=\"\",0,IF((SUM($D25:W25)=0),\"\",SUM($D25:W25)))","v":""},""]
[2.2000000000000002,"CIA Data Gathering",null,null,null,null,null,null,null,null,null,null,null,null,null,null,null,null,null,null,null,null,null,{"$f":"IF($B26=\"\",0,IF((SUM($D26:W26)=0),\"\",SUM($D26:W26)))","v":""},""]
[2.2999999999999998,"Short Form CIA Project Documentation",null,null,null,null,null,null,null,null,null,null,null,null,null,null,null,null,null,null,null,null,null,{"$f":"IF($B27=\"\",0,IF((SUM($D27:W27)=0),\"\",SUM($D27:W27)))","v":""},""]
[2.4,"Short Form CIA Deliverables",null,null,null,null,null,null,null,null,null,null,null,null,null,null,null,null,null,null,null,null,null,{"$f":"IF($B28=\"\",0,IF((SUM($D28:W28)=0),\"\",SUM($D28:W28)))","v":""},""]
[null,"Task Management",null,null,null,null,null,null,null,null,null,null,null,null,null,null,null,null,null,null,null,null,null,{"$f":"IF($B29=\"\",0,IF((SUM($D29:W29)=0),\"\",SUM($D29:W29)))","v":""},""]
[null,"Complete QC/QC Procedures",null,null,null,null,null,null,null,null,null,null,null,null,null,null,null,null,null,null,null,null,null,{"$f":"IF($B30=\"\",0,IF((SUM($D30:W30)=0),\"\",SUM($D30:W30)))","v":""},""]
[null,null,null,null,null,null,null,null,null,null,null,null,null,null,null,null,null,null,null,null,null,null,null,{"$f":"IF($B31=\"\",0,IF((SUM($D31:W31)=0),\"\",SUM($D31:W31)))","v":0},{"$error":"#DIV/0!"}]
[null,null,null,null,null,null,null,null,null,null,null,null,null,null,null,null,null,null,null,null,null,null,null,{"$f":"IF($B32=\"\",0,IF((SUM($D32:W32)=0),\"\",SUM($D32:W32)))","v":0},{"$error":"#DIV/0!"}]
[null,null,null,null,null,null,null,null,null,null,null,null,null,null,null,null,null,null,null,null,null,null,null,{"$f":"IF($B33=\"\",0,IF((SUM($D33:W33)=0),\"\",SUM($D33:W33)))","v":0},{"$error":"#DIV/0!"}]
[null,null,null,null,null,null,null,null,null,null,null,null,null,null,null,null,null,null,null,null,null,null,null,{"$f":"IF($B34=\"\",0,IF((SUM($D34:W34)=0),\"\",SUM($D34:W34)))","v":0},{"$error":"#DIV/0!"}]
[null,null,null,null,null,null,null,null,null,null,null,null,null,null,null,null,null,null,null,null,null,null,null,{"$f":"IF($B35=\"\",0,IF((SUM($D35:W35)=0),\"\",SUM($D35:W35)))","v":0},{"$error":"#DIV/0!"}]
[null,null,null,null,null,null,null,null,null,null,null,null,null,null,null,null,null,null,null,null,null,null,null,{"$f":"IF($B36=\"\",0,IF((SUM($D36:W36)=0),\"\",SUM($D36:W36)))","v":0},{"$error":"#DIV/0!"}]
[null,null,null,null,null,null,null,null,null,null,null,null,null,null,null,null,null,null,null,null,null,null,null,{"$f":"IF($B37=\"\",0,IF((SUM($D37:W37)=0),\"\",SUM($D37:W37)))","v":0},{"$error":"#DIV/0!"}]
[3,"Checkbox Community Characteristics Report (CCR) and Community Impacts Assessment (CIA)",null,null,null,null,null,null,null,null,null,null,null,null,null,null,null,null,null,null,null,null,null,{"$f":"IF($B38=\"\",0,IF((SUM($D38:W38)=0),\"\",SUM($D38:W38)))","v":""},""]
[3.1,"CCR Project Initiation & Set-up",null,null,null,null,null,null,null,null,null,null,null,null,null,null,null,null,null,null,null,null,null,{"$f":"IF($B39=\"\",0,IF((SUM($D39:W39)=0),\"\",SUM($D39:W39)))","v":""},""]
[3.2,"CCR Data Gathering",null,null,null,null,null,null,null,null,null,null,null,null,null,null,null,null,null,null,null,null,null,{"$f":"IF($B40=\"\",0,IF((SUM($D40:W40)=0),\"\",SUM($D40:W40)))","v":""},""]
[3.3,"CCR Project Documentation",null,null,null,null,null,null,null,null,null,null,null,null,null,null,null,null,null,null,null,null,null,{"$f":"IF($B41=\"\",0,IF((SUM($D41:W41)=0),\"\",SUM($D41:W41)))","v":""},""]
[3.4,"CCR Deliverables",null,null,null,null,null,null,null,null,null,null,null,null,null,null,null,null,null,null,null,null,null,{"$f":"IF($B42=\"\",0,IF((SUM($D42:W42)=0),\"\",SUM($D42:W42)))","v":""},""]
[3.5,"CIA Project Initiation & Set-up",null,null,null,null,null,null,null,null,null,null,null,null,null,null,null,null,null,null,null,null,null,{"$f":"IF($B43=\"\",0,IF((SUM($D43:W43)=0),\"\",SUM($D43:W43)))","v":""},""]
[3.6,"CIA Project Documentation",null,null,null,null,null,null,null,null,null,null,null,null,null,null,null,null,null,null,null,null,null,{"$f":"IF($B44=\"\",0,IF((SUM($D44:W44)=0),\"\",SUM($D44:W44)))","v":""},""]
[3.7,"CIA Deliverables",null,null,null,null,null,null,null,null,null,null,null,null,null,null,null,null,null,null,null,null,null,{"$f":"IF($B45=\"\",0,IF((SUM($D45:W45)=0),\"\",SUM($D45:W45)))","v":""},""]
[null,"Task Management",null,null,null,null,null,null,null,null,null,null,null,null,null,null,null,null,null,null,null,null,null,{"$f":"IF($B46=\"\",0,IF((SUM($D46:W46)=0),\"\",SUM($D46:W46)))","v":""},""]
[null,"Complete QC/QC Procedures",null,null,null,null,null,null,null,null,null,null,null,null,null,null,null,null,null,null,null,null,null,{"$f":"IF($B47=\"\",0,IF((SUM($D47:W47)=0),\"\",SUM($D47:W47)))","v":""},""]
[null,null,null,null,null,null,null,null,null,null,null,null,null,null,null,null,null,null,null,null,null,null,null,{"$f":"IF($B48=\"\",0,IF((SUM($D48:W48)=0),\"\",SUM($D48:W48)))","v":0},{"$error":"#DIV/0!"}]
[null,null,null,null,null,null,null,null,null,null,null,null,null,null,null,null,null,null,null,null,null,null,null,{"$f":"IF($B49=\"\",0,IF((SUM($D49:W49)=0),\"\",SUM($D49:W49)))","v":0},{"$error":"#DIV/0!"}]
[null,null,null,null,null,null,null,null,null,null,null,null,null,null,null,null,null,null,null,null,null,null,null,{"$f":"IF($B50=\"\",0,IF((SUM($D50:W50)=0),\"\",SUM($D50:W50)))","v":0},{"$error":"#DIV/0!"}]
[null,null,null,null,null,null,null,null,null,null,null,null,null,null,null,null,null,null,null,null,null,null,null,{"$f":"IF($B51=\"\",0,IF((SUM($D51:W51)=0),\"\",SUM($D51:W51)))","v":0},{"$error":"#DIV/0!"}]
[null,null,null,null,null,null,null,null,null,null,null,null,null,null,null,null,null,null,null,null,null,null,null,{"$f":"IF($B52=\"\",0,IF((SUM($D52:W52)=0),\"\",SUM($D52:W52)))","v":0},{"$error":"#DIV/0!"}]
[null,null,null,null,null,null,null,null,null,null,null,null,null,null,null,null,null,null,null,null,null,null,null,{"$f":"IF($B53=\"\",0,IF((SUM($D53:W53)=0),\"\",SUM($D53:W53)))","v":0},{"$error":"#DIV/0!"}]
[null,null,null,null,null,null,null,null,null,null,null,null,null,null,null,null,null,null,null,null,null,null,null,{"$f":"IF($B54=\"\",0,IF((SUM($D54:W54)=0),\"\",SUM($D54:W54)))","v":0},{"$error":"#DIV/0!"}]
[null,null,null,null,null,null,null,null,null,null,null,null,null,null,null,null,null,null,null,null,null,null,null,{"$f":"IF($B55=\"\",0,IF((SUM($D55:W55)=0),\"\",SUM($D55:W55)))","v":0},{"$error":"#DIV/0!"}]
[4,"Narrative Community Characteristics Report (CCR) and Community Impacts Assessment (CIA)",null,null,null,null,null,null,null,null,null,null,null,null,null,null,null,null,null,null,null,null,null,{"$f":"IF($B56=\"\",0,IF((SUM($D56:W56)=0),\"\",SUM($D56:W56)))","v":""},""]
[4.0999999999999996,"CCR Project Initiation & Set-up",null,null,null,null,null,null,null,null,null,null,null,null,null,null,null,null,null,null,null,null,null,{"$f":"IF($B57=\"\",0,IF((SUM($D57:W57)=0),\"\",SUM($D57:W57)))","v":""},""]
[4.2,"CCR Data Gathering",null,null,null,null,null,null,null,null,null,null,null,null,null,null,null,null,null,null,null,null,null,{"$f":"IF($B58=\"\",0,IF((SUM($D58:W58)=0),\"\",SUM($D58:W58)))","v":""},""]
[4.3,"CCR Project Documentation",null,null,null,null,null,null,null,null,null,null,null,null,null,null,null,null,null,null,null,null,null,{"$f":"IF($B59=\"\",0,IF((SUM($D59:W59)=0),\"\",SUM($D59:W59)))","v":""},""]
[4.4000000000000004,"CCR Deliverables",null,null,null,null,null,null,null,null,null,null,null,null,null,null,null,null,null,null,null,null,null,{"$f":"IF($B60=\"\",0,IF((SUM($D60:W60)=0),\"\",SUM($D60:W60)))","v":""},""]
[4.5,"CIA Project Initiation & Set-up",null,null,null,null,null,null,null,null,null,null,null,null,null,null,null,null,null,null,null,null,null,{"$f":"IF($B61=\"\",0,IF((SUM($D61:W61)=0),\"\",SUM($D61:W61)))","v":""},""]
[4.5999999999999996,"CIA Project Documentation",null,null,null,null,null,null,null,null,null,null,null,null,null,null,null,null,null,null,null,null,null,{"$f":"IF($B62=\"\",0,IF((SUM($D62:W62)=0),\"\",SUM($D62:W62)))","v":""},""]
[4.7,"CIA Deliverables",null,null,null,null,null,null,null,null,null,null,null,null,null,null,null,null,null,null,null,null,null,{"$f":"IF($B63=\"\",0,IF((SUM($D63:W63)=0),\"\",SUM($D63:W63)))","v":""},""]
[null,"Task Management",null,null,null,null,null,null,null,null,null,null,null,null,null,null,null,null,null,null,null,null,null,{"$f":"IF($B64=\"\",0,IF((SUM($D64:W64)=0),\"\",SUM($D64:W64)))","v":""},""]
[null,"Complete QC/QC Procedures",null,null,null,null,null,null,null,null,null,null,null,null,null,null,null,null,null,null,null,null,null,{"$f":"IF($B65=\"\",0,IF((SUM($D65:W65)=0),\"\",SUM($D65:W65)))","v":""},""]
[null,null,null,null,null,null,null,null,null,null,null,null,null,null,null,null,null,null,null,null,null,null,null,{"$f":"IF($B66=\"\",0,IF((SUM($D66:W66)=0),\"\",SUM($D66:W66)))","v":0},{"$error":"#DIV/0!"}]
[null,null,null,null,null,null,null,null,null,null,null,null,null,null,null,null,null,null,null,null,null,null,null,{"$f":"IF($B67=\"\",0,IF((SUM($D67:W67)=0),\"\",SUM($D67:W67)))","v":0},{"$error":"#DIV/0!"}]
[null,null,null,null,null,null,null,null,null,null,null,null,null,null,null,null,null,null,null,null,null,null,null,{"$f":"IF($B68=\"\",0,IF((SUM($D68:W68)=0),\"\",SUM($D68:W68)))","v":0},{"$error":"#DIV/0!"}]
[null,null,null,null,null,null,null,null,null,null,null,null,null,null,null,null,null,null,null,null,null,null,null,{"$f":"IF($B69=\"\",0,IF((SUM($D69:W69)=0),\"\",SUM($D69:W69)))","v":0},{"$error":"#DIV/0!"}]
[null,null,null,null,null,null,null,null,null,null,null,null,null,null,null,null,null,null,null,null,null,null,null,{"$f":"IF($B70=\"\",0,IF((SUM($D70:W70)=0),\"\",SUM($D70:W70)))","v":0},{"$error":"#DIV/0!"}]
[null,null,null,null,null,null,null,null,null,null,null,null,null,null,null,null,null,null,null,null,null,null,null,{"$f":"IF($B71=\"\",0,IF((SUM($D71:W71)=0),\"\",SUM($D71:W71)))","v":0},{"$error":"#DIV/0!"}]
[null,null,null,null,null,null,null,null,null,null,null,null,null,null,null,null,null,null,null,null,null,null,null,{"$f":"IF($B72=\"\",0,IF((SUM($D72:W72)=0),\"\",SUM($D72:W72)))","v":0},{"$error":"#DIV/0!"}]
[5,"Short Form Indirect and Cumulative Effects (ICE)",null,null,null,null,null,null,null,null,null,null,null,null,null,null,null,null,null,null,null,null,null,{"$f":"IF($B73=\"\",0,IF((SUM($D73:W73)=0),\"\",SUM($D73:W73)))","v":""},""]
[5.0999999999999996,"Project Initiation & Set-up",null,null,null,null,null,null,null,null,null,null,null,null,null,null,null,null,null,null,null,null,null,{"$f":"IF($B74=\"\",0,IF((SUM($D74:W74)=0),\"\",SUM($D74:W74)))","v":""},""]
[5.2,"Conduct Base Screening",null,null,null,null,null,null,null,null,null,null,null,null,null,null,null,null,null,null,null,null,null,{"$f":"IF($B75=\"\",0,IF((SUM($D75:W75)=0),\"\",SUM($D75:W75)))","v":""},""]
[5.3,"Conduct Analytical Screening",null,null,null,null,null,null,null,null,null,null,null,null,null,null,null,null,null,null,null,null,null,{"$f":"IF($B76=\"\",0,IF((SUM($D76:W76)=0),\"\",SUM($D76:W76)))","v":""},""]
[5.4,"Analyze and Evaluate Data",null,null,null,null,null,null,null,null,null,null,null,null,null,null,null,null,null,null,null,null,null,{"$f":"IF($B77=\"\",0,IF((SUM($D77:W77)=0),\"\",SUM($D77:W77)))","v":""},{"$f":"IF(X77=\"\",\"\",SUM((X77/X$154)))","v":""}]
[5.5,"ICE Report Deliverables",null,null,null,null,null,null,null,null,null,null,null,null,null,null,null,null,null,null,null,null,null,{"$f":"IF($B78=\"\",0,IF((SUM($D78:W78)=0),\"\",SUM($D78:W78)))","v":""},""]
[null,"Task Management",null,null,null,null,null,null,null,null,null,null,null,null,null,null,null,null,null,null,null,null,null,{"$f":"IF($B79=\"\",0,IF((SUM($D79:W79)=0),\"\",SUM($D79:W79)))","v":""},""]
[null,"Complete QC/QC Procedures",null,null,null,null,null,null,null,null,null,null,null,null,null,null,null,null,null,null,null,null,null,{"$f":"IF($B80=\"\",0,IF((SUM($D80:W80)=0),\"\",SUM($D80:W80)))","v":""},""]
[null,null,null,null,null,null,null,null,null,null,null,null,null,null,null,null,null,null,null,null,null,null,null,{"$f":"IF($B81=\"\",0,IF((SUM($D81:W81)=0),\"\",SUM($D81:W81)))","v":0},{"$error":"#DIV/0!"}]
[null,null,null,null,null,null,null,null,null,null,null,null,null,null,null,null,null,null,null,null,null,null,null,{"$f":"IF($B82=\"\",0,IF((SUM($D82:W82)=0),\"\",SUM($D82:W82)))","v":0},{"$error":"#DIV/0!"}]
[null,null,null,null,null,null,null,null,null,null,null,null,null,null,null,null,null,null,null,null,null,null,null,{"$f":"IF($B83=\"\",0,IF((SUM($D83:W83)=0),\"\",SUM($D83:W83)))","v":0},{"$error":"#DIV/0!"}]
[null,null,null,null,null,null,null,null,null,null,null,null,null,null,null,null,null,null,null,null,null,null,null,{"$f":"IF($B84=\"\",0,IF((SUM($D84:W84)=0),\"\",SUM($D84:W84)))","v":0},{"$error":"#DIV/0!"}]
[null,null,null,null,null,null,null,null,null,null,null,null,null,null,null,null,null,null,null,null,null,null,null,{"$f":"IF($B85=\"\",0,IF((SUM($D85:W85)=0),\"\",SUM($D85:W85)))","v":0},{"$error":"#DIV/0!"}]
[null,null,null,null,null,null,null,null,null,null,null,null,null,null,null,null,null,null,null,null,null,null,null,{"$f":"IF($B86=\"\",0,IF((SUM($D86:W86)=0),\"\",SUM($D86:W86)))","v":0},{"$error":"#DIV/0!"}]
[null,null,null,null,null,null,null,null,null,null,null,null,null,null,null,null,null,null,null,null,null,null,null,{"$f":"IF($B87=\"\",0,IF((SUM($D87:W87)=0),\"\",SUM($D87:W87)))","v":0},{"$error":"#DIV/0!"}]
[null,null,null,null,null,null,null,null,null,null,null,null,null,null,null,null,null,null,null,null,null,null,null,{"$f":"IF($B88=\"\",0,IF((SUM($D88:W88)=0),\"\",SUM($D88:W88)))","v":0},{"$error":"#DIV/0!"}]
[6,"Checkbox Indirect and Cumulative Effects (ICE)",null,null,null,null,null,null,null,null,null,null,null,null,null,null,null,null,null,null,null,null,null,{"$f":"IF($B89=\"\",0,IF((SUM($D89:W89)=0),\"\",SUM($D89:W89)))","v":""},""]
[6.1,"Project Initiation & Set-up",null,null,null,null,null,null,null,null,null,null,null,null,null,null,null,null,null,null,null,null,null,{"$f":"IF($B90=\"\",0,IF((SUM($D90:W90)=0),\"\",SUM($D90:W90)))","v":""},""]
[6.2,"Conduct Base Screening",null,null,null,null,null,null,null,null,null,null,null,null,null,null,null,null,null,null,null,null,null,{"$f":"IF($B91=\"\",0,IF((SUM($D91:W91)=0),\"\",SUM($D91:W91)))","v":""},""]
[6.3,"Conduct Analytical Screening",null,null,null,null,null,null,null,null,null,null,null,null,null,null,null,null,null,null,null,null,null,{"$f":"IF($B92=\"\",0,IF((SUM($D92:W92)=0),\"\",SUM($D92:W92)))","v":""},""]
[6.4,"Analyze and Evaluate Data",null,null,null,null,null,null,null,null,null,null,null,null,null,null,null,null,null,null,null,null,null,{"$f":"IF($B93=\"\",0,IF((SUM($D93:W93)=0),\"\",SUM($D93:W93)))","v":""},""]
[6.5,"ICE Report Deliverables",null,null,null,null,null,null,null,null,null,null,null,null,null,null,null,null,null,null,null,null,null,{"$f":"IF($B94=\"\",0,IF((SUM($D94:W94)=0),\"\",SUM($D94:W94)))","v":""},""]
[null,"Task Management",null,null,null,null,null,null,null,null,null,null,null,null,null,null,null,null,null,null,null,null,null,{"$f":"IF($B95=\"\",0,IF((SUM($D95:W95)=0),\"\",SUM($D95:W95)))","v":""},""]
[null,"Complete QC/QC Procedures",null,null,null,null,null,null,null,null,null,null,null,null,null,null,null,null,null,null,null,null,null,{"$f":"IF($B96=\"\",0,IF((SUM($D96:W96)=0),\"\",SUM($D96:W96)))","v":""},""]
[null,null,null,null,null,null,null,null,null,null,null,null,null,null,null,null,null,null,null,null,null,null,null,{"$f":"IF($B97=\"\",0,IF((SUM($D97:W97)=0),\"\",SUM($D97:W97)))","v":0},{"$error":"#DIV/0!"}]
[null,null,null,null,null,null,null,null,null,null,null,null,null,null,null,null,null,null,null,null,null,null,null,{"$f":"IF($B98=\"\",0,IF((SUM($D98:W98)=0),\"\",SUM($D98:W98)))","v":0},{"$error":"#DIV/0!"}]
[null,null,null,null,null,null,null,null,null,null,null,null,null,null,null,null,null,null,null,null,null,null,null,{"$f":"IF($B99=\"\",0,IF((SUM($D99:W99)=0),\"\",SUM($D99:W99)))","v":0},{"$error":"#DIV/0!"}]
[null,null,null,null,null,null,null,null,null,null,null,null,null,null,null,null,null,null,null,null,null,null,null,{"$f":"IF($B100=\"\",0,IF((SUM($D100:W100)=0),\"\",SUM($D100:W100)))","v":0},{"$error":"#DIV/0!"}]
[null,null,null,null,null,null,null,null,null,null,null,null,null,null,null,null,null,null,null,null,null,null,null,{"$f":"IF($B101=\"\",0,IF((SUM($D101:W101)=0),\"\",SUM($D101:W101)))","v":0},{"$error":"#DIV/0!"}]
[7,"Narrative Indirect and Cumulative Effects (ICE)",null,null,null,null,null,null,null,null,null,null,null,null,null,null,null,null,null,null,null,null,null,{"$f":"IF($B102=\"\",0,IF((SUM($D102:W102)=0),\"\",SUM($D102:W102)))","v":""},""]
[7.1,"Project Initiation & Set-up",null,null,null,null,null,null,null,null,null,null,null,null,null,null,null,null,null,null,null,null,null,{"$f":"IF($B103=\"\",0,IF((SUM($D103:W103)=0),\"\",SUM($D103:W103)))","v":""},""]
[7.2,"Conduct Base Screening",null,null,null,null,null,null,null,null,null,null,null,null,null,null,null,null,null,null,null,null,null,{"$f":"IF($B104=\"\",0,IF((SUM($D104:W104)=0),\"\",SUM($D104:W104)))","v":""},""]
[7.3,"Conduct Analytical Screening",null,null,null,null,null,null,null,null,null,null,null,null,null,null,null,null,null,null,null,null,null,{"$f":"IF($B105=\"\",0,IF((SUM($D105:W105)=0),\"\",SUM($D105:W105)))","v":""},""]
[7.4,"Analyze and Evaluate Data",null,null,null,null,null,null,null,null,null,null,null,null,null,null,null,null,null,null,null,null,null,{"$f":"IF($B106=\"\",0,IF((SUM($D106:W106)=0),\"\",SUM($D106:W106)))","v":""},""]
[7.5,"ICE Report Deliverables",null,null,null,null,null,null,null,null,null,null,null,null,null,null,null,null,null,null,null,null,null,{"$f":"IF($B107=\"\",0,IF((SUM($D107:W107)=0),\"\",SUM($D107:W107)))","v":""},""]
[null,"Task Management",null,null,null,null,null,null,null,null,null,null,null,null,null,null,null,null,null,null,null,null,null,{"$f":"IF($B108=\"\",0,IF((SUM($D108:W108)=0),\"\",SUM($D108:W108)))","v":""},""]
[null,"Complete QC/QC Procedures",null,null,null,null,null,null,null,null,null,null,null,null,null,null,null,null,null,null,null,null,null,{"$f":"IF($B109=\"\",0,IF((SUM($D109:W109)=0),\"\",SUM($D109:W109)))","v":""},""]
[null,null,null,null,null,null,null,null,null,null,null,null,null,null,null,null,null,null,null,null,null,null,null,{"$f":"IF($B110=\"\",0,IF((SUM($D110:W110)=0),\"\",SUM($D110:W110)))","v":0},{"$error":"#DIV/0!"}]
[null,null,null,null,null,null,null,null,null,null,null,null,null,null,null,null,null,null,null,null,null,null,null,{"$f":"IF($B111=\"\",0,IF((SUM($D111:W111)=0),\"\",SUM($D111:W111)))","v":0},{"$error":"#DIV/0!"}]
[null,null,null,null,null,null,null,null,null,null,null,null,null,null,null,null,null,null,null,null,null,null,null,{"$f":"IF($B112=\"\",0,IF((SUM($D112:W112)=0),\"\",SUM($D112:W112)))","v":0},{"$error":"#DIV/0!"}]
[null,null,null,null,null,null,null,null,null,null,null,null,null,null,null,null,null,null,null,null,null,null,null,{"$f":"IF($B113=\"\",0,IF((SUM($D113:W113)=0),\"\",SUM($D113:W113)))","v":0},{"$error":"#DIV/0!"}]
[null,null,null,null,null,null,null,null,null,null,null,null,null,null,null,null,null,null,null,null,null,null,null,{"$f":"IF($B114=\"\",0,IF((SUM($D114:W114)=0),\"\",SUM($D114:W114)))","v":0},{"$error":"#DIV/0!"}]
[null,null,null,null,null,null,null,null,null,null,null,null,null,null,null,null,null,null,null,null,null,null,null,{"$f":"IF($B115=\"\",0,IF((SUM($D115:W115)=0),\"\",SUM($D115:W115)))","v":0},{"$error":"#DIV/0!"}]
[null,null,null,null,null,null,null,null,null,null,null,null,null,null,null,null,null,null,null,null,null,null,null,{"$f":"IF($B116=\"\",0,IF((SUM($D116:W116)=0),\"\",SUM($D116:W116)))","v":0},{"$error":"#DIV/0!"}]
[8,"Short Form Land Use Scenario Assessment (LUSA)",null,null,null,null,null,null,null,null,null,null,null,null,null,null,null,null,null,null,null,null,null,{"$f":"IF($B117=\"\",0,IF((SUM($D117:W117)=0),\"\",SUM($D117:W117)))","v":""},""]
[8.1,"Project Initiation & Set-up",null,null,null,null,null,null,null,null,null,null,null,null,null,null,null,null,null,null,null,null,null,{"$f":"IF($B118=\"\",0,IF((SUM($D118:W118)=0),\"\",SUM($D118:W118)))","v":""},""]
[8.1999999999999993,"Verify and Update Information from ICE Screening Report",null,null,null,null,null,null,null,null,null,null,null,null,null,null,null,null,null,null,null,null,null,{"$f":"IF($B119=\"\",0,IF((SUM($D119:W119)=0),\"\",SUM($D119:W119)))","v":""},""]
[8.3000000000000007,"Create Land Use Development Scenarios",null,null,null,null,null,null,null,null,null,null,null,null,null,null,null,null,null,null,null,null,null,{"$f":"IF($B120=\"\",0,IF((SUM($D120:W120)=0),\"\",SUM($D120:W120)))","v":""},""]
[8.4,"Land Use Scenario Assessment",null,null,null,null,null,null,null,null,null,null,null,null,null,null,null,null,null,null,null,null,null,{"$f":"IF($B121=\"\",0,IF((SUM($D121:W121)=0),\"\",SUM($D121:W121)))","v":""},""]
[8.5,"Indirect and Cumulative Effects Summary",null,null,null,null,null,null,null,null,null,null,null,null,null,null,null,null,null,null,null,null,null,{"$f":"IF($B122=\"\",0,IF((SUM($D122:W122)=0),\"\",SUM($D122:W122)))","v":""},""]
[8.6,"Land Use Scenario Assessment Report Deliverables",null,null,null,null,null,null,null,null,null,null,null,null,null,null,null,null,null,null,null,null,null,{"$f":"IF($B123=\"\",0,IF((SUM($D123:W123)=0),\"\",SUM($D123:W123)))","v":""},""]
[null,"Task Management",null,null,null,null,null,null,null,null,null,null,null,null,null,null,null,null,null,null,null,null,null,{"$f":"IF($B124=\"\",0,IF((SUM($D124:W124)=0),\"\",SUM($D124:W124)))","v":""},""]
[null,"Complete QC/QC Procedures",null,null,null,null,null,null,null,null,null,null,null,null,null,null,null,null,null,null,null,null,null,{"$f":"IF($B125=\"\",0,IF((SUM($D125:W125)=0),\"\",SUM($D125:W125)))","v":""},""]
[null,null,null,null,null,null,null,null,null,null,null,null,null,null,null,null,null,null,null,null,null,null,null,{"$f":"IF($B126=\"\",0,IF((SUM($D126:W126)=0),\"\",SUM($D126:W126)))","v":0},{"$error":"#DIV/0!"}]
[null,null,null,null,null,null,null,null,null,null,null,null,null,null,null,null,null,null,null,null,null,null,null,{"$f":"IF($B127=\"\",0,IF((SUM($D127:W127)=0),\"\",SUM($D127:W127)))","v":0},{"$error":"#DIV/0!"}]
[null,null,null,null,null,null,null,null,null,null,null,null,null,null,null,null,null,null,null,null,null,null,null,{"$f":"IF($B128=\"\",0,IF((SUM($D128:W128)=0),\"\",SUM($D128:W128)))","v":0},{"$error":"#DIV/0!"}]
[null,null,null,null,null,null,null,null,null,null,null,null,null,null,null,null,null,null,null,null,null,null,null,{"$f":"IF($B129=\"\",0,IF((SUM($D129:W129)=0),\"\",SUM($D129:W129)))","v":0},{"$error":"#DIV/0!"}]
[null,null,null,null,null,null,null,null,null,null,null,null,null,null,null,null,null,null,null,null,null,null,null,{"$f":"IF($B130=\"\",0,IF((SUM($D130:W130)=0),\"\",SUM($D130:W130)))","v":0},{"$error":"#DIV/0!"}]
[null,null,null,null,null,null,null,null,null,null,null,null,null,null,null,null,null,null,null,null,null,null,null,{"$f":"IF($B131=\"\",0,IF((SUM($D131:W131)=0),\"\",SUM($D131:W131)))","v":0},{"$error":"#DIV/0!"}]
[null,null,null,null,null,null,null,null,null,null,null,null,null,null,null,null,null,null,null,null,null,null,null,{"$f":"IF($B132=\"\",0,IF((SUM($D132:W132)=0),\"\",SUM($D132:W132)))","v":0},{"$error":"#DIV/0!"}]
[null,null,null,null,null,null,null,null,null,null,null,null,null,null,null,null,null,null,null,null,null,null,null,{"$f":"IF($B133=\"\",0,IF((SUM($D133:W133)=0),\"\",SUM($D133:W133)))","v":0},{"$error":"#DIV/0!"}]
[9,"Land Use Scenario Assessment (LUSA)",null,null,null,null,null,null,null,null,null,null,null,null,null,null,null,null,null,null,null,null,null,{"$f":"IF($B134=\"\",0,IF((SUM($D134:W134)=0),\"\",SUM($D134:W134)))","v":""},""]
[9.1,"Project Initiation & Set-up",null,null,null,null,null,null,null,null,null,null,null,null,null,null,null,null,null,null,null,null,null,{"$f":"IF($B135=\"\",0,IF((SUM($D135:W135)=0),\"\",SUM($D135:W135)))","v":""},""]
[9.1999999999999993,"Verify and Update Information from ICE Screening Report",null,null,null,null,null,null,null,null,null,null,null,null,null,null,null,null,null,null,null,null,null,{"$f":"IF($B136=\"\",0,IF((SUM($D136:W136)=0),\"\",SUM($D136:W136)))","v":""},""]
[9.3000000000000007,"Land Use Development Scenarios",null,null,null,null,null,null,null,null,null,null,null,null,null,null,null,null,null,null,null,null,null,{"$f":"IF($B137=\"\",0,IF((SUM($D137:W137)=0),\"\",SUM($D137:W137)))","v":""},""]
[9.4,"Land Use Scenario Assessment",null,null,null,null,null,null,null,null,null,null,null,null,null,null,null,null,null,null,null,null,null,{"$f":"IF($B138=\"\",0,IF((SUM($D138:W138)=0),\"\",SUM($D138:W138)))","v":""},""]
[9.5,"Indirect and Cumulative Effects Summary",null,null,null,null,null,null,null,null,null,null,null,null,null,null,null,null,null,null,null,null,null,{"$f":"IF($B139=\"\",0,IF((SUM($D139:W139)=0),\"\",SUM($D139:W139)))","v":""},""]
[9.6,"Land Use Scenario Assessment Report Deliverables",null,null,null,null,null,null,null,null,null,null,null,null,null,null,null,null,null,null,null,null,null,{"$f":"IF($B140=\"\",0,IF((SUM($D140:W140)=0),\"\",SUM($D140:W140)))","v":""},""]
[null,"Task Management",null,null,null,null,null,null,null,null,null,null,null,null,null,null,null,null,null,null,null,null,null,{"$f":"IF($B141=\"\",0,IF((SUM($D141:W141)=0),\"\",SUM($D141:W141)))","v":""},{"$f":"IF(X141=\"\",\"\",SUM((X141/X$154)))","v":""}]
[null,"Complete QC/QC Procedures",null,null,null,null,null,null,null,null,null,null,null,null,null,null,null,null,null,null,null,null,null,{"$f":"IF($B142=\"\",0,IF((SUM($D142:W142)=0),\"\",SUM($D142:W142)))","v":""},""]
[null,null,null,null,null,null,null,null,null,null,null,null,null,null,null,null,null,null,null,null,null,null,null,{"$f":"IF($B143=\"\",0,IF((SUM($D143:W143)=0),\"\",SUM($D143:W143)))","v":0},{"$error":"#DIV/0!"}]
[null,null,null,null,null,null,null,null,null,null,null,null,null,null,null,null,null,null,null,null,null,null,null,{"$f":"IF($B144=\"\",0,IF((SUM($D144:W144)=0),\"\",SUM($D144:W144)))","v":0},{"$error":"#DIV/0!"}]
[null,null,null,null,null,null,null,null,null,null,null,null,null,null,null,null,null,null,null,null,null,null,null,{"$f":"IF($B145=\"\",0,IF((SUM($D145:W145)=0),\"\",SUM($D145:W145)))","v":0},{"$error":"#DIV/0!"}]
[null,null,null,null,null,null,null,null,null,null,null,null,null,null,null,null,null,null,null,null,null,null,null,{"$f":"IF($B146=\"\",0,IF((SUM($D146:W146)=0),\"\",SUM($D146:W146)))","v":0},{"$error":"#DIV/0!"}]
[null,null,null,null,null,null,null,null,null,null,null,null,null,null,null,null,null,null,null,null,null,null,null,{"$f":"IF($B147=\"\",0,IF((SUM($D147:W147)=0),\"\",SUM($D147:W147)))","v":0},{"$error":"#DIV/0!"}]
[null,"Other Tasks:",null,null,null,null,null,null,null,null,null,null,null,null,null,null,null,null,null,null,null,null,null,{"$f":"IF($B148=\"\",0,IF((SUM($D148:W148)=0),\"\",SUM($D148:W148)))","v":""},""]
[null,null,null,null,null,null,null,null,null,null,null,null,null,null,null,null,null,null,null,null,null,null,null,{"$f":"IF($B149=\"\",0,IF((SUM($D149:W149)=0),\"\",SUM($D149:W149)))","v":0},{"$error":"#DIV/0!"}]
[null,null,null,null,null,null,null,null,null,null,null,null,null,null,null,null,null,null,null,null,null,null,null,{"$f":"IF($B150=\"\",0,IF((SUM($D150:W150)=0),\"\",SUM($D150:W150)))","v":0},{"$error":"#DIV/0!"}]
[null,null,null,null,null,null,null,null,null,null,null,null,null,null,null,null,null,null,null,null,null,null,null,{"$f":"IF($B151=\"\",0,IF((SUM($D151:W151)=0),\"\",SUM($D151:W151)))","v":0},{"$error":"#DIV/0!"}]
[null,null,null,null,null,null,null,null,null,null,null,null,null,null,null,null,null,null,null,null,null,null,null,{"$f":"IF($B152=\"\",0,IF((SUM($D152:W152)=0),\"\",SUM($D152:W152)))","v":0},{"$error":"#DIV/0!"}]
[null,null,null,null,null,null,null,null,null,null,null,null,null,null,null,null,null,null,null,null,null,null,null,{"$f":"IF($B153=\"\",0,IF((SUM($D153:W153)=0),\"\",SUM($D153:W153)))","v":0},{"$error":"#DIV/0!"}]
[null,"TOTAL WORKDAYS/CATEGORY:",null,{"$f":"SUM(D12:D153)","v":0},0,0,0,0,0,0,0,0,0,0,0,0,0,0,0,0,0,0,null,{"$f":"SUM(X12:X153)","v":0},{"$f":"SUM(Y12:Y153)","v":{"$error":"#DIV/0!"}},{"$f":"SUM(Z12:Z153)","v":0}]
[null,"HOURLY SALARY RATE:",null,{"$f":"'PEF CLASSIFICATION SHEET'!$E631","v":0},{"$f":"'PEF CLASSIFICATION SHEET'!$E632","v":0},{"$f":"'PEF CLASSIFICATION SHEET'!$E633","v":0},{"$f":"'PEF CLASSIFICATION SHEET'!$E634","v":0},{"$f":"'PEF CLASSIFICATION SHEET'!$E635","v":0},{"$f":"'PEF CLASSIFICATION SHEET'!$E636","v":0},{"$f":"'PEF CLASSIFICATION SHEET'!$E637","v":0},{"$f":"'PEF CLASSIFICATION SHEET'!$E638","v":0},{"$f":"'PEF CLASSIFICATION SHEET'!$E639","v":0},{"$f":"'PEF CLASSIFICATION SHEET'!$E640","v":0},{"$f":"'PEF CLASSIFICATION SHEET'!$E641","v":0},{"$f":"'PEF CLASSIFICATION SHEET'!$E642","v":0},{"$f":"'PEF CLASSIFICATION SHEET'!$E643","v":0},{"$f":"'PEF CLASSIFICATION SHEET'!$E644","v":0},{"$f":"'PEF CLASSIFICATION SHEET'!$E645","v":0},{"$f":"'PEF CLASSIFICATION SHEET'!E646","v":0},{"$f":"'PEF CLASSIFICATION SHEET'!E647","v":0},{"$f":"'PEF CLASSIFICATION SHEET'!E648","v":0},{"$f":"'PEF CLASSIFICATION SHEET'!E649","v":0}]
[null,"RATES PER DAY:",null,{"$f":"D155*8","v":0},0,0,0,0,0,0,0,0,0,0,0,0,0,0,0,0,0,0]
[null,"PAYROLL BURDEN:",null,{"$f":"SUM(D154*D156)","v":0},0,0,0,0,0,0,0,0,0,0,0,0,0,0,0,0,0,0]
[null,"TOTAL WORKDAYS:",null,{"$f":"SUM(D154:V154)","v":0}]
[null,"TOTAL PAYROLL BURDEN:",null,{"$f":"SUM(D157:V157)","v":0}]
[null,"AVERAGE COST PER HOUR:",null,{"$f":"SUM(D159/(D158*8))","v":{"$error":"#DIV/0!"}}]
[null,"GENERAL OVERHEAD:",{"$f":"PDEA_HEU_COMMUNITY_STUDIES_SUB1_CONSULTANT_OVERHEAD","v":0},{"$f":"SUM(D159*C161)","v":0}]
[null,"SUBTOTAL:",null,{"$f":"SUM(D159+D161)","v":0}]
[null,"COMPARATIVE FEE:",{"$f":"PDEA_HEU_COMMUNITY_STUDIES_SUB1_CONSULTANT_FEE","v":0.09},{"$f":"SUM(D162*C163)","v":0}]
[null,"FACILITIES COST OF CAPITAL:",{"$f":"PDEA_HEU_COMMUNITY_STUDIES_SUB1_CONSULTANT_COSTofCAPITAL","v":0},{"$f":"SUM(D159*C164)","v":0}]
[null,"TOTAL:",null,{"$f":"SUM(D162:D164)","v":0}]
[null,"DIRECT EXPENSES:",null,{"$f":"PDEA_HEU_COMMUNITY_STUDIES_SUB1_DIRECT_NONSALARY_TOTAL","v":0}]
[null,"COMMUNITY STUDIES GRAND TOTAL:",null,{"$f":"SUM(D165:D166)","v":0}]
[]
[]
[]
[null,"Costs",null,"Workdays",null,null,null,null,"Dollars"]
[null,null,null,"EN Community Studies","PEF","Delta ","Delta %",null,"EN Community Studies",null,"PEF",null,"Delta ","Delta %"]
[null,null,null,null,null,{"$f":"SUM(E173-D173)","v":0},{"$f":"SUM((F173/D173)*100)","v":{"$error":"#DIV/0!"}},null,null,null,null,null,{"$f":"SUM(K173-I173)","v":0},{"$f":"SUM((M173/I173)*100)","v":{"$error":"#DIV/0!"}}]
[]
[]
[null,null,null,null,null,null,null,"Directs","Dollars"]
[null,null,null,null,null,null,null,null,"EN Community Studies",null,"PEF",null,"Delta ","Delta %"]
[null,null,null,null,null,null,null,null,null,null,null,null,{"$f":"SUM(K178-I178)","v":0},{"$f":"SUM((M178/I178)*100)","v":{"$error":"#DIV/0!"}}]

{"sheet":"EN-Comm-Exp-Sub1","index":81,"n_rows":96,"n_cols":8,"rows_kept":96,"cut":false,"hidden":true,"merged":[[6,1,6,3],[6,4,6,6],[0,0,0,7],[3,1,3,7],[4,1,4,3],[5,1,5,3],[5,5,5,7],[4,5,4,7],[2,1,2,3]]}
["COMMUNITY STUDIES DIRECT EXPENSES - SUBCONSULTANT 1"]
[]
["FIRM:",{"$f":"'EN-Comm-Sub1'!G3","v":"CONSULTANT NAME"}]
["PROJECT DESCRIPTION: ",{"$f":"PROJECT.DESCRIPTION","v":0}]
["PREPARED BY:  ",{"$f":"COMMUNITY.STUDIES.SUB1.PREPARED.BY","v":""},null,null,{"$f":"(EnvPolicy!J3)","v":"TASK ORDER NUMBER:"},{"$f":"TASK.ORDER.NUMBER","v":0}]
["TIP NUMBER:",{"$f":"TIP.NUMBER","v":0},null,null,{"$f":"(EnvPolicy!J4)","v":"WBS NUMBER:"},{"$f":"WBS.NUMBER","v":""}]
["DATE PREPARED:",{"$f":"IF('EN-Comm-Sub1'!N3=\"\",\"\",MAX('EN-Comm-Sub1'!N3:'EN-Comm-Sub1'!N4))","v":""},null,null,"REVIEWED BY UNIT HEAD ON:",null,null,{"$f":"IF(SCOPE.MANDAY.ESTIMATE.APPROVED.BY.DATE=\"\",\"\",SCOPE.MANDAY.ESTIMATE.APPROVED.BY.DATE)","v":""}]
["GENERAL PROJECT WORK:","ITEM","QTY","DESCRIPTION",null,null,"UNIT COST "]
[null,"Travel:"]
[null,"Sedan",null,"Trip(s) @",null,"miles @",{"$f":"SEDAN","v":0.7},{"$f":"SUM(C10*E10*G10)","v":0}]
[null,"Carry All",null,"Trip(s) @",null,"miles @",{"$f":"CARRYALL","v":0.72},{"$f":"SUM(C11*E11*G11)","v":0}]
[null,"Car Rental",null,null,null,"days @ ",{"$f":"CARRENTAL","v":50},{"$f":"SUM(E12*G12)","v":0}]
[null,"Gas for Rental",null,null,null,"miles @",{"$f":"GASforRENTAL","v":0.2},{"$f":"SUM(E13*G13)","v":0}]
[null,"Parking:",null,"Trip(s) @",null,null,{"$f":"PARKING","v":3},{"$f":"SUM(C14*G14)","v":0}]
[null,"Per Diem:",null,"Breakfast",null,null,{"$f":"BREAKFAST","v":10.1},{"$f":"SUM(C15*G15)","v":0}]
[null,null,null,"Lunch",null,null,{"$f":"LUNCH","v":13.3},0]
[null,null,null,"Dinner",null,null,{"$f":"DINNER","v":23.1},0]
[null,null,null,"Lodging",null,null,{"$f":"LODGING_LUMP.SUM","v":95},0]
[null,"Reproduction:",null,"8 1/2 x 11 B & W Copies @",null,null,{"$f":"LETTERCOPIES","v":0.14000000000000001},0]
[null,null,null,"11 x 17 B & W Copies @",null,null,{"$f":"LEDGERCOPIES","v":0.34},0]
[null,null,null,"8 1/2 x 11 Color Copies @",null,null,{"$f":"LETTERCOLOR","v":0.83},0]
[null,null,null,"11 x 17 Color Copies @",null,null,{"$f":"LEDGERCOLOR","v":1.66},0]
[null,null,null,"SQ. FT. of Plots (B & W or Color)",null,"<65 SQ. FT.*",{"$f":"ROLLPLOTSshort","v":6.5},0]
[null,null,null,"SQ. FT. of Plots (B & W or Color)",null,">65 SQ. FT.*",{"$f":"ROLLPLOTSlong","v":1.5},0]
[null,null,null,"Cover(s) @",null,null,{"$f":"COVERS","v":0.5},0]
[null,null,null,"Binder(s) @",null,null,{"$f":"BINDERS","v":0.5},0]
[null,null,null,"Blueprints - 8 1/2 x 11 @",null,null,{"$f":"BLUEPRINTSLETTER","v":0.35},0]
[null,null,null,"Blueprints - 42 x 72 @",null,null,{"$f":"BLUEPRINTSLARGE","v":1.3},0]
[null,"Film and Developing:",null,"Roll(s) @",null,null,{"$f":"FILM","v":20},0]
[null,null,null,null,null,"Subtotal",null,{"$f":"SUM(H10:H29)","v":0}]
["MAPS AND DOCUMENTS:","ITEM","QTY","DESCRIPTION",null,null,"UNIT COST "]
[null,"County Tax Maps:",null,"Map(s) @",null,null,{"$f":"County_Tax_Maps","v":7},{"$f":"SUM(C32*G32)","v":0}]
[null,"USGS Maps:",null,"Map(s) @",null,null,{"$f":"USGSMAPS","v":7},{"$f":"SUM(C33*G33)","v":0}]
[null,null,null,null,null,"Subtotal",null,{"$f":"SUM(H32:H33)","v":0}]
["TECHNICAL REPORTS:","ITEM","QTY","DESCRIPTION",null,null,"UNIT COST "]
[null,"Reproduction:",null,"8 1/2 x 11 B & W Copies @",null,null,{"$f":"LETTERCOPIES","v":0.14000000000000001},{"$f":"SUM(C36*G36)","v":0}]
[null,null,null,"11 x 17 B & W Copies @",null,null,{"$f":"LEDGERCOPIES","v":0.34},0]
[null,null,null,"8 1/2 x 11 Color Copies @",null,null,{"$f":"LETTERCOLOR","v":0.83},0]
[null,null,null,"11 x 17 Color Copies @",null,null,{"$f":"LEDGERCOLOR","v":1.66},0]
[null,null,null,"SQ. FT. of Plots (B & W or Color)",null,"<65 SQ. FT.*",{"$f":"ROLLPLOTSshort","v":6.5},0]
[null,null,null,"SQ. FT. of Plots (B & W or Color)",null,">65 SQ. FT.*",{"$f":"ROLLPLOTSlong","v":1.5},0]
[null,null,null,"Cover(s) @",null,null,{"$f":"COVERS","v":0.5},0]
[null,null,null,"Binder(s) @",null,null,{"$f":"BINDERS","v":0.5},0]
[null,null,null,null,null,"Subtotal",null,{"$f":"SUM(H36:H43)","v":0}]
["DESIGN:","ITEM","QTY","DESCRIPTION",null,null,"UNIT COST "]
[null,"Reproduction:",null,"8 1/2 x 11 B & W Copies @",null,null,{"$f":"LETTERCOPIES","v":0.14000000000000001},{"$f":"SUM(C46*G46)","v":0}]
[null,null,null,"11 x 17 B & W Copies @",null,null,{"$f":"LEDGERCOPIES","v":0.34},0]
[null,null,null,"Blueprints - 8 1/2 x 11 @",null,null,{"$f":"BLUEPRINTSLETTER","v":0.35},0]
[null,null,null,"Mylar - 8 1/2 x 11 @",null,null,{"$f":"MYLARSLETTER","v":7.32},0]
[null,null,null,"Mylar - 36 x 48 @",null,null,{"$f":"MYLARSLARGE","v":28.12},0]
[null,null,null,"Prints  - 24 x 36 @",null,null,{"$f":"PRINTSLARGE","v":3},0]
[null,null,null,"Blueprints - 42 x 72 @",null,null,{"$f":"BLUEPRINTSLARGE","v":1.3},0]
[null,null,null,"SQ. FT. of Plots (B & W or Color)",null,"<65 SQ. FT.*",{"$f":"ROLLPLOTSshort","v":6.5},0]
[null,null,null,"SQ. FT. of Plots (B & W or Color)",null,">65 SQ. FT.*",{"$f":"ROLLPLOTSlong","v":1.5},0]
[null,null,null,"USGS Map(s)",null,null,{"$f":"USGSMAPS","v":7},0]
[null,null,null,null,null,"Subtotal",null,{"$f":"SUM(H46:H55)","v":0}]
["MEETINGS & PUBLIC INVOLVEMENT:","ITEM","QTY","DESCRIPTION",null,null,"UNIT COST "]
[null,"Travel:"]
[null,"Sedan",null,"Trip(s) @",null,"miles @",{"$f":"SEDAN","v":0.7},{"$f":"SUM(C59*E59*G59)","v":0}]
[null,"CarryAll",null,"Trip(s) @",null,"miles @",{"$f":"CARRYALL","v":0.72},{"$f":"SUM(C60*E60*G60)","v":0}]
[null,"Car Rental",null,null,null,"days @",{"$f":"CARRENTAL","v":50},{"$f":"SUM(E61*G61)","v":0}]
[null,"Gas for Rental",null,null,null,"miles @",{"$f":"GASforRENTAL","v":0.2},{"$f":"SUM(E62*G62)","v":0}]
[null,"Parking:",null,"Trip(s) @",null,null,{"$f":"PARKING","v":3},{"$f":"SUM(C63*G63)","v":0}]
[null,"Per Diem:",null,"Breakfast",null,null,{"$f":"BREAKFAST","v":10.1},{"$f":"SUM(C64*G64)","v":0}]
[null,null,null,"Lunch",null,null,{"$f":"LUNCH","v":13.3},{"$f":"SUM(C65*G65)","v":0}]
[null,null,null,"Dinner",null,null,{"$f":"DINNER","v":23.1},{"$f":"SUM(C66*G66)","v":0}]
[null,null,null,"Lodging",null,null,{"$f":"LODGING_LUMP.SUM","v":95},{"$f":"SUM(C67*G67)","v":0}]
[null,"Workshop "]
[null,"  - Reproduction",null,"8 1/2 x 11 B & W Copies @",null,"Handouts",{"$f":"LETTERCOPIES","v":0.14000000000000001},{"$f":"SUM(C69*E69*G69)","v":0}]
[null,null,null,"11 x 17 B & W Copies @",null,"Handouts",{"$f":"LEDGERCOPIES","v":0.34},{"$f":"SUM(C70*E70*G70)","v":0}]
[null,null,null,"8 1/2 x 11 Color Copies @",null,null,{"$f":"LETTERCOLOR","v":0.83},{"$f":"SUM(C71*G71)","v":0}]
[null,null,null,"11 x 17 Color Copies @",null,null,{"$f":"LEDGERCOLOR","v":1.66},0]
[null,null,null,"SQ. FT. of Plots (B & W or Color)",null,"<65 SQ. FT.*",{"$f":"ROLLPLOTSshort","v":6.5},0]
[null,null,null,"SQ. FT. of Plots (B & W or Color)",null,">65 SQ. FT.*",{"$f":"ROLLPLOTSlong","v":1.5},0]
[null,null,null,"SQ. FT. Foam Mounting Board @",null,null,{"$f":"FOAMMOUNTINGBOARD","v":1.25},0]
[null,"Presentation Materials:",null,"Misc. Workshop Supplies @",null,"per workshop",{"$f":"MISCWORKSHOPSUPPLIES","v":50},0]
[null,"Mailing Labels:",null,"Laser Peel & Stick (box)",null,"750 per box",{"$f":"LASERPEELandSTICK","v":4},0]
[null,"Postage:"]
[null,"  - Public Workshops:",null,"Notice or Newsletter @",null,"copies @",{"$f":"POSTAGE","v":0.49},{"$f":"SUM(C79*E79*G79)","v":0}]
[null,null,null,null,null,"Subtotal",null,{"$f":"SUM(H59:H79)","v":0}]
["Miscellaneous Other","ITEM","QTY","DESCRIPTION",null,null,"UNIT COST "]
[null,null,null,null,null,null,null,{"$f":"SUM(C82*G82)","v":0}]
[null,null,null,null,null,null,null,{"$f":"SUM(C83*G83)","v":0}]
[null,null,null,null,null,null,null,0]
[null,null,null,null,null,null,null,0]
[null,null,null,null,null,null,null,0]
[null,null,null,null,null,null,null,0]
[null,null,null,null,null,null,null,0]
[null,null,null,null,null,null,null,{"$f":"SUM(C89*G89)","v":0}]
[null,null,null,null,null,null,null,{"$f":"SUM(C90*G90)","v":0}]
[null,null,null,null,null,null,null,{"$f":"SUM(C91*G91)","v":0}]
[null,null,null,null,null,"Subtotal",null,{"$f":"SUM(H82:H91)","v":0}]
[]
[null,null,null,null,null,"TOTAL",null,{"$f":"SUM(H30+H34+H44+H56+H80+H92)","v":0}]
[]
[null,"* Sum of all plots "]

{"sheet":"EN-PI-Sub1","index":82,"n_rows":229,"n_cols":26,"rows_kept":229,"cut":false,"hidden":true,"merged":[[217,1,218,1],[217,3,218,4],[221,3,221,6],[221,8,221,13],[203,25,203,26],[228,8,228,9],[228,10,228,11],[222,8,222,9],[222,10,222,11],[223,8,223,9],[223,10,223,11],[226,8,226,13],[227,8,227,9],[227,10,227,11],[197,25,197,26],[198,25,198,26],[199,25,199,26],[200,25,200,26],[201,25,201,26],[202,25,202,26],[191,25,191,26],[192,25,192,26],[194,25,194,26],[195,25,195,26],[196,25,196,26],[184,25,184,26],[185,25,185,26],[186,25,186,26],[187,25,187,26],[190,25,190,26],[177,25,177,26],[179,25,179,26],[180,25,180,26],[181,25,181,26],[182,25,182,26],[183,25,183,26],[189,25,189,26],[178,25,178,26],[133,25,133,26],[134,25,134,26],[135,25,135,26],[137,25,137,26],[151,25,151,26],[152,25,152,26],[146,25,146,26],[147,25,147,26],[148,25,148,26],[149,25,149,26],[150,25,150,26],[138,25,138,26],[139,25,139,26],[143,25,143,26],[144,25,144,26],[145,25,145,26],[140,25,140,26],[141,25,141,26],[136,25,136,26],[128,25,128,26],[129,25,129,26],[130,25,130,26],[131,25,131,26],[132,25,132,26],[110,25,110,26],[111,25,111,26],[112,25,112,26],[113,25,113,26],[114,25,114,26],[116,25,116,26],[117,25,117,26],[118,25,118,26],[121,25,121,26],[122,25,122,26],[123,25,123,26],[124,25,124,26],[125,25,125,26],[126,25,126,26],[119,25,119,26],[120,25,120,26],[115,25,115,26],[104,25,104,26],[105,25,105,26],[107,25,107,26],[108,25,108,26],[109,25,109,26],[96,25,96,26],[97,25,97,26],[98,25,98,26],[99,25,99,26],[102,25,102,26],[103,25,103,26],[100,25,100,26],[101,25,101,26],[89,25,89,26],[90,25,90,26],[91,25,91,26],[92,25,92,26],[93,25,93,26],[95,25,95,26],[72,25,72,26],[74,25,74,26],[85,25,85,26],[86,25,86,26],[87,25,87,26],[88,25,88,26],[77,25,77,26],[78,25,78,26],[79,25,79,26],[80,25,80,26],[81,25,81,26],[82,25,82,26],[83,25,83,26],[75,25,75,26],[76,25,76,26],[73,25,73,26],[94,25,94,26],[66,25,66,26],[67,25,67,26],[68,25,68,26],[70,25,70,26],[71,25,71,26],[49,25,49,26],[50,25,50,26],[51,25,51,26],[53,25,53,26],[64,25,64,26],[65,25,65,26],[29,25,29,26],[30,25,30,26],[32,25,32,26],[46,25,46,26],[47,25,47,26],[48,25,48,26],[23,25,23,26],[24,25,24,26],[25,25,25,26],[26,25,26,26],[27,25,27,26],[28,25,28,26],[41,25,41,26],[42,25,42,26],[43,25,43,26],[44,25,44,26],[45,25,45,26],[36,25,36,26],[37,25,37,26],[38,25,38,26],[39,25,39,26],[40,25,40,26],[33,25,33,26],[34,25,34,26],[6,21,9,21],[8,25,8,26],[11,25,11,26],[20,25,20,26],[21,25,21,26],[22,25,22,26],[6,15,9,15],[6,16,9,16],[6,17,9,17],[6,18,9,18],[6,19,9,19],[6,20,9,20],[12,25,12,26],[13,25,13,26],[14,25,14,26],[15,25,15,26],[16,25,16,26],[17,25,17,26],[18,25,18,26],[19,25,19,26],[6,9,9,9],[6,10,9,10],[6,11,9,11],[6,12,9,12],[6,13,9,13],[6,14,9,14],[6,3,9,3],[6,4,9,4],[6,5,9,5],[6,6,9,6],[6,7,9,7],[6,8,9,8],[3,1,3,4],[3,6,3,7],[3,10,3,11],[3,13,3,14],[3,22,3,23],[4,3,4,21],[0,0,1,26],[2,1,2,4],[2,6,2,7],[2,10,2,11],[2,13,2,14],[2,22,2,23],[35,25,35,26],[54,25,54,26],[55,25,55,26],[58,25,58,26],[59,25,59,26],[60,25,60,26],[61,25,61,26],[62,25,62,26],[63,25,63,26],[56,25,56,26],[57,25,57,26],[172,25,172,26],[173,25,173,26],[174,25,174,26],[175,25,175,26],[176,25,176,26],[160,25,160,26],[161,25,161,26],[162,25,162,26],[163,25,163,26],[164,25,164,26],[165,25,165,26],[166,25,166,26],[168,25,168,26],[167,25,167,26],[153,25,153,26],[154,25,154,26],[155,25,155,26],[156,25,156,26],[158,25,158,26],[159,25,159,26],[170,25,170,26],[171,25,171,26],[157,25,157,26]]}
["PUBLIC INVOLVEMENT BREAKDOWN WORKSHEET - SUBCONSULTANT 1"]
[]
["PROJECT DESCRIPTION: ",{"$f":"PROJECT.DESCRIPTION","v":0},null,null,null,"FIRM:  ",{"$f":"PDEA_HEU_PUBLIC.INVOLVEMENT_SUB1_CONSULTANT_NAME","v":"CONSULTANT NAME"},null,"TASK ORDER NUMBER:",null,{"$f":"TASK.ORDER.NUMBER","v":0},null,"DATE PREPARED:",{"$f":"IF(SCOPE.MANDAY.ESTIMATE.PREPARED.BY.DATE=\"\",\"\",SCOPE.MANDAY.ESTIMATE.PREPARED.BY.DATE)","v":""}]
["PREPARED BY:  ",{"$f":"IF(SCOPE.MANDAY.ESTIMATE.PREPARED.BY=\"\",\"\",SCOPE.MANDAY.ESTIMATE.PREPARED.BY)","v":""},null,null,null,"TIP NUMBER:",{"$f":"TIP.NUMBER","v":0},null,"WBS NUMBER:",null,{"$f":"WBS.NUMBER","v":""},null,"REVISION DATE:",{"$f":"IF(SCOPE.MANDAY.ESTIMATE.APPROVED.BY.DATE=\"\",\"\",SCOPE.MANDAY.ESTIMATE.APPROVED.BY.DATE)","v":""}]
[null,null,null,"ESTIMATED WORK DAYS"]
[null,null,"Employee",{"$f":"IF('PEF CLASSIFICATION SHEET'!$D652=\"\",\"\",LEFT('PEF CLASSIFICATION SHEET'!$D652,4))","v":""},{"$f":"IF('PEF CLASSIFICATION SHEET'!$D653=\"\",\"\",LEFT('PEF CLASSIFICATION SHEET'!$D653,4))","v":""},{"$f":"IF('PEF CLASSIFICATION SHEET'!$D654=\"\",\"\",LEFT('PEF CLASSIFICATION SHEET'!$D654,4))","v":""},{"$f":"IF('PEF CLASSIFICATION SHEET'!$D655=\"\",\"\",LEFT('PEF CLASSIFICATION SHEET'!$D655,4))","v":""},{"$f":"IF('PEF CLASSIFICATION SHEET'!$D656=\"\",\"\",LEFT('PEF CLASSIFICATION SHEET'!$D656,4))","v":""},{"$f":"IF('PEF CLASSIFICATION SHEET'!$D657=\"\",\"\",LEFT('PEF CLASSIFICATION SHEET'!$D657,4))","v":""},{"$f":"IF('PEF CLASSIFICATION SHEET'!$D658=\"\",\"\",LEFT('PEF CLASSIFICATION SHEET'!$D658,4))","v":""},{"$f":"IF('PEF CLASSIFICATION SHEET'!$D659=\"\",\"\",LEFT('PEF CLASSIFICATION SHEET'!$D659,4))","v":""},{"$f":"IF('PEF CLASSIFICATION SHEET'!$D660=\"\",\"\",LEFT('PEF CLASSIFICATION SHEET'!$D660,4))","v":""},{"$f":"IF('PEF CLASSIFICATION SHEET'!$D661=\"\",\"\",LEFT('PEF CLASSIFICATION SHEET'!$D661,4))","v":""},{"$f":"IF('PEF CLASSIFICATION SHEET'!$D662=\"\",\"\",LEFT('PEF CLASSIFICATION SHEET'!$D662,4))","v":""},{"$f":"IF('PEF CLASSIFICATION SHEET'!$D663=\"\",\"\",LEFT('PEF CLASSIFICATION SHEET'!$D663,4))","v":""},{"$f":"IF('PEF CLASSIFICATION SHEET'!$D664=\"\",\"\",LEFT('PEF CLASSIFICATION SHEET'!$D664,4))","v":""},{"$f":"IF('PEF CLASSIFICATION SHEET'!$D665=\"\",\"\",LEFT('PEF CLASSIFICATION SHEET'!$D665,4))","v":""},{"$f":"IF('PEF CLASSIFICATION SHEET'!D666=\"\",\"\",LEFT('PEF CLASSIFICATION SHEET'!D666,4))","v":""},{"$f":"IF('PEF CLASSIFICATION SHEET'!$D667=\"\",\"\",LEFT('PEF CLASSIFICATION SHEET'!$D667,4))","v":""},{"$f":"IF('PEF CLASSIFICATION SHEET'!D668=\"\",\"\",LEFT('PEF CLASSIFICATION SHEET'!D668,4))","v":""},{"$f":"IF('PEF CLASSIFICATION SHEET'!D669=\"\",\"\",LEFT('PEF CLASSIFICATION SHEET'!D669,4))","v":""},{"$f":"IF('PEF CLASSIFICATION SHEET'!D670=\"\",\"\",LEFT('PEF CLASSIFICATION SHEET'!D670,4))","v":""}]
[null,null,null,{"$f":"IF('PEF CLASSIFICATION SHEET'!$C652=\"\",\"\",'PEF CLASSIFICATION SHEET'!$C652)","v":""},{"$f":"IF('PEF CLASSIFICATION SHEET'!$C653=\"\",\"\",'PEF CLASSIFICATION SHEET'!$C653)","v":""},{"$f":"IF('PEF CLASSIFICATION SHEET'!$C654=\"\",\"\",'PEF CLASSIFICATION SHEET'!$C654)","v":""},{"$f":"IF('PEF CLASSIFICATION SHEET'!$C655=\"\",\"\",'PEF CLASSIFICATION SHEET'!$C655)","v":""},{"$f":"IF('PEF CLASSIFICATION SHEET'!$C656=\"\",\"\",'PEF CLASSIFICATION SHEET'!$C656)","v":""},{"$f":"IF('PEF CLASSIFICATION SHEET'!$C657=\"\",\"\",'PEF CLASSIFICATION SHEET'!$C657)","v":""},{"$f":"IF('PEF CLASSIFICATION SHEET'!$C658=\"\",\"\",'PEF CLASSIFICATION SHEET'!$C658)","v":""},{"$f":"IF('PEF CLASSIFICATION SHEET'!$C659=\"\",\"\",'PEF CLASSIFICATION SHEET'!$C659)","v":""},{"$f":"IF('PEF CLASSIFICATION SHEET'!$C660=\"\",\"\",'PEF CLASSIFICATION SHEET'!$C660)","v":""},{"$f":"IF('PEF CLASSIFICATION SHEET'!$C661=\"\",\"\",'PEF CLASSIFICATION SHEET'!$C661)","v":""},{"$f":"IF('PEF CLASSIFICATION SHEET'!$C662=\"\",\"\",'PEF CLASSIFICATION SHEET'!$C662)","v":""},{"$f":"IF('PEF CLASSIFICATION SHEET'!$C663=\"\",\"\",'PEF CLASSIFICATION SHEET'!$C663)","v":""},{"$f":"IF('PEF CLASSIFICATION SHEET'!$C664=\"\",\"\",'PEF CLASSIFICATION SHEET'!$C664)","v":""},{"$f":"IF('PEF CLASSIFICATION SHEET'!$C665=\"\",\"\",'PEF CLASSIFICATION SHEET'!$C665)","v":""},{"$f":"IF('PEF CLASSIFICATION SHEET'!C666=\"\",\"\",'PEF CLASSIFICATION SHEET'!C666)","v":""},{"$f":"IF('PEF CLASSIFICATION SHEET'!$C667=\"\",\"\",'PEF CLASSIFICATION SHEET'!$C667)","v":""},{"$f":"IF('PEF CLASSIFICATION SHEET'!C668=\"\",\"\",'PEF CLASSIFICATION SHEET'!C668)","v":""},{"$f":"IF('PEF CLASSIFICATION SHEET'!C669=\"\",\"\",'PEF CLASSIFICATION SHEET'!C669)","v":""},{"$f":"IF('PEF CLASSIFICATION SHEET'!C670=\"\",\"\",'PEF CLASSIFICATION SHEET'!C670)","v":""},"SUB-","%","PEF"]
[null,null,"Classification",null,null,null,null,null,null,null,null,null,null,null,null,null,null,null,null,null,null,null,"TOTAL","OF","ESTIMATE"]
["TASK","TASK DESCRIPTION",null,null,null,null,null,null,null,null,null,null,null,null,null,null,null,null,null,null,null,null,null,"PROJECT",null,"COMMENTS"]
["NO."]
["2PI1","Continue Public Engagement",null,null,null,null,null,null,null,null,null,null,null,null,null,null,null,null,null,null,null,null,{"$f":"IF(B11=\"\",0,IF((SUM(D11:V11)=0),\"\",SUM(D11:V11)))","v":""}]
[1,"Public Involvement Plan (PIP)",null,null,null,null,null,null,null,null,null,null,null,null,null,null,null,null,null,null,null,null,{"$f":"IF(B12=\"\",0,IF((SUM(D12:V12)=0),\"\",SUM(D12:V12)))","v":""},{"$f":"IF(W12=\"\",\"\",SUM((W12/$W$205)))","v":""}]
[null,"Submit ETRACS for PI Team to review draft or develop PIP",null,null,null,null,null,null,null,null,null,null,null,null,null,null,null,null,null,null,null,null,{"$f":"IF(B13=\"\",0,IF((SUM(D13:V13)=0),\"\",SUM(D13:V13)))","v":""},{"$f":"IF(W13=\"\",\"\",SUM((W13/$W$205)))","v":""}]
[null,"Prepare and submit draft and final PIP (if PIP is to be prepared by PEF)",null,null,null,null,null,null,null,null,null,null,null,null,null,null,null,null,null,null,null,null,"",""]
[null,null,null,null,null,null,null,null,null,null,null,null,null,null,null,null,null,null,null,null,null,null,0,{"$error":"#DIV/0!"}]
[null,null,null,null,null,null,null,null,null,null,null,null,null,null,null,null,null,null,null,null,null,null,0,{"$error":"#DIV/0!"}]
[null,null,null,null,null,null,null,null,null,null,null,null,null,null,null,null,null,null,null,null,null,null,0,{"$error":"#DIV/0!"}]
[null,null,null,null,null,null,null,null,null,null,null,null,null,null,null,null,null,null,null,null,null,null,0,{"$error":"#DIV/0!"}]
[null,null,null,null,null,null,null,null,null,null,null,null,null,null,null,null,null,null,null,null,null,null,0,{"$error":"#DIV/0!"}]
[null,null,null,null,null,null,null,null,null,null,null,null,null,null,null,null,null,null,null,null,null,null,0,{"$error":"#DIV/0!"}]
[null,null,null,null,null,null,null,null,null,null,null,null,null,null,null,null,null,null,null,null,null,null,0,{"$error":"#DIV/0!"}]
[null,null,null,null,null,null,null,null,null,null,null,null,null,null,null,null,null,null,null,null,null,null,0,{"$error":"#DIV/0!"}]
[null,null,null,null,null,null,null,null,null,null,null,null,null,null,null,null,null,null,null,null,null,null,0,{"$error":"#DIV/0!"}]
[null,null,null,null,null,null,null,null,null,null,null,null,null,null,null,null,null,null,null,null,null,null,0,{"$error":"#DIV/0!"}]
[null,null,null,null,null,null,null,null,null,null,null,null,null,null,null,null,null,null,null,null,null,null,0,{"$error":"#DIV/0!"}]
[null,null,null,null,null,null,null,null,null,null,null,null,null,null,null,null,null,null,null,null,null,null,0,{"$error":"#DIV/0!"}]
[null,null,null,null,null,null,null,null,null,null,null,null,null,null,null,null,null,null,null,null,null,null,0,{"$error":"#DIV/0!"}]
[null,null,null,null,null,null,null,null,null,null,null,null,null,null,null,null,null,null,null,null,null,null,0,{"$error":"#DIV/0!"}]
[null,null,null,null,null,null,null,null,null,null,null,null,null,null,null,null,null,null,null,null,null,null,0,{"$error":"#DIV/0!"}]
[null,null,null,null,null,null,null,null,null,null,null,null,null,null,null,null,null,null,null,null,null,null,0,{"$error":"#DIV/0!"}]
[null,null,null,null,null,null,null,null,null,null,null,null,null,null,null,null,null,null,null,null,null,null,0,{"$error":"#DIV/0!"}]
[2,"Project Mailing List",null,null,null,null,null,null,null,null,null,null,null,null,null,null,null,null,null,null,null,null,"",""]
[null,"Submit ETRACS request and study area Shapefile for project mailing list ",null,null,null,null,null,null,null,null,null,null,null,null,null,null,null,null,null,null,null,null,"",""]
[null,"Create project mailing list  ",null,null,null,null,null,null,null,null,null,null,null,null,null,null,null,null,null,null,null,null,"",""]
[null,null,null,null,null,null,null,null,null,null,null,null,null,null,null,null,null,null,null,null,null,null,0,{"$error":"#DIV/0!"}]
[null,null,null,null,null,null,null,null,null,null,null,null,null,null,null,null,null,null,null,null,null,null,0,{"$error":"#DIV/0!"}]
[null,null,null,null,null,null,null,null,null,null,null,null,null,null,null,null,null,null,null,null,null,null,0,{"$error":"#DIV/0!"}]
[null,null,null,null,null,null,null,null,null,null,null,null,null,null,null,null,null,null,null,null,null,null,0,{"$error":"#DIV/0!"}]
[null,null,null,null,null,null,null,null,null,null,null,null,null,null,null,null,null,null,null,null,null,null,0,{"$error":"#DIV/0!"}]
[null,null,null,null,null,null,null,null,null,null,null,null,null,null,null,null,null,null,null,null,null,null,0,{"$error":"#DIV/0!"}]
[null,null,null,null,null,null,null,null,null,null,null,null,null,null,null,null,null,null,null,null,null,null,0,{"$error":"#DIV/0!"}]
[null,null,null,null,null,null,null,null,null,null,null,null,null,null,null,null,null,null,null,null,null,null,0,{"$error":"#DIV/0!"}]
[null,null,null,null,null,null,null,null,null,null,null,null,null,null,null,null,null,null,null,null,null,null,0,{"$error":"#DIV/0!"}]
[null,null,null,null,null,null,null,null,null,null,null,null,null,null,null,null,null,null,null,null,null,null,0,{"$error":"#DIV/0!"}]
[null,null,null,null,null,null,null,null,null,null,null,null,null,null,null,null,null,null,null,null,null,null,0,{"$error":"#DIV/0!"}]
[null,null,null,null,null,null,null,null,null,null,null,null,null,null,null,null,null,null,null,null,null,null,0,{"$error":"#DIV/0!"}]
[null,null,null,null,null,null,null,null,null,null,null,null,null,null,null,null,null,null,null,null,null,null,0,{"$error":"#DIV/0!"}]
[null,null,null,null,null,null,null,null,null,null,null,null,null,null,null,null,null,null,null,null,null,null,0,{"$error":"#DIV/0!"}]
[null,null,null,null,null,null,null,null,null,null,null,null,null,null,null,null,null,null,null,null,null,null,0,{"$error":"#DIV/0!"}]
[null,null,null,null,null,null,null,null,null,null,null,null,null,null,null,null,null,null,null,null,null,null,0,{"$error":"#DIV/0!"}]
[null,null,null,null,null,null,null,null,null,null,null,null,null,null,null,null,null,null,null,null,null,null,0,{"$error":"#DIV/0!"}]
[null,null,null,null,null,null,null,null,null,null,null,null,null,null,null,null,null,null,null,null,null,null,0,{"$error":"#DIV/0!"}]
[3,"Project Website",null,null,null,null,null,null,null,null,null,null,null,null,null,null,null,null,null,null,null,null,"",""]
[null,"Submit request for project website or PublicInput.com site",null,null,null,null,null,null,null,null,null,null,null,null,null,null,null,null,null,null,null,null,"",""]
[null,"Provide updates at project milestones",null,null,null,null,null,null,null,null,null,null,null,null,null,null,null,null,null,null,null,null,"",""]
[null,null,null,null,null,null,null,null,null,null,null,null,null,null,null,null,null,null,null,null,null,null,0,{"$error":"#DIV/0!"}]
[null,null,null,null,null,null,null,null,null,null,null,null,null,null,null,null,null,null,null,null,null,null,0,{"$error":"#DIV/0!"}]
[null,null,null,null,null,null,null,null,null,null,null,null,null,null,null,null,null,null,null,null,null,null,0,{"$error":"#DIV/0!"}]
[null,null,null,null,null,null,null,null,null,null,null,null,null,null,null,null,null,null,null,null,null,null,0,{"$error":"#DIV/0!"}]
[null,null,null,null,null,null,null,null,null,null,null,null,null,null,null,null,null,null,null,null,null,null,0,{"$error":"#DIV/0!"}]
[null,null,null,null,null,null,null,null,null,null,null,null,null,null,null,null,null,null,null,null,null,null,0,{"$error":"#DIV/0!"}]
[null,null,null,null,null,null,null,null,null,null,null,null,null,null,null,null,null,null,null,null,null,null,0,{"$error":"#DIV/0!"}]
[null,null,null,null,null,null,null,null,null,null,null,null,null,null,null,null,null,null,null,null,null,null,0,{"$error":"#DIV/0!"}]
[null,null,null,null,null,null,null,null,null,null,null,null,null,null,null,null,null,null,null,null,null,null,0,{"$error":"#DIV/0!"}]
[null,null,null,null,null,null,null,null,null,null,null,null,null,null,null,null,null,null,null,null,null,null,0,{"$error":"#DIV/0!"}]
[null,null,null,null,null,null,null,null,null,null,null,null,null,null,null,null,null,null,null,null,null,null,0,{"$error":"#DIV/0!"}]
[null,null,null,null,null,null,null,null,null,null,null,null,null,null,null,null,null,null,null,null,null,null,0,{"$error":"#DIV/0!"}]
[null,null,null,null,null,null,null,null,null,null,null,null,null,null,null,null,null,null,null,null,null,null,0,{"$error":"#DIV/0!"}]
[null,null,null,null,null,null,null,null,null,null,null,null,null,null,null,null,null,null,null,null,null,null,0,{"$error":"#DIV/0!"}]
[4,"Newsletter/Postcards",null,null,null,null,null,null,null,null,null,null,null,null,null,null,null,null,null,null,null,null,"",""]
[null,"Prepare and submit draft Newsletter/Postcard (using NCDOT templates)",null,null,null,null,null,null,null,null,null,null,null,null,null,null,null,null,null,null,null,null,"",""]
[null,"Revise and resubmit Newsletter/Postcard for approval",null,null,null,null,null,null,null,null,null,null,null,null,null,null,null,null,null,null,null,null,"",""]
[null,"Reproduce and distribute approved Newsletter /Postcard (insert #copies)",null,null,null,null,null,null,null,null,null,null,null,null,null,null,null,null,null,null,null,null,"",""]
[null,null,null,null,null,null,null,null,null,null,null,null,null,null,null,null,null,null,null,null,null,null,0,{"$error":"#DIV/0!"}]
[null,null,null,null,null,null,null,null,null,null,null,null,null,null,null,null,null,null,null,null,null,null,0,{"$error":"#DIV/0!"}]
[null,null,null,null,null,null,null,null,null,null,null,null,null,null,null,null,null,null,null,null,null,null,0,{"$error":"#DIV/0!"}]
[null,null,null,null,null,null,null,null,null,null,null,null,null,null,null,null,null,null,null,null,null,null,{"$f":"IF(B77=\"\",0,IF((SUM(D77:V77)=0),\"\",SUM(D77:V77)))","v":0},{"$f":"IF(W77=\"\",\"\",SUM((W77/$W$205)))","v":{"$error":"#DIV/0!"}}]
[null,null,null,null,null,null,null,null,null,null,null,null,null,null,null,null,null,null,null,null,null,null,0,{"$error":"#DIV/0!"}]
[null,null,null,null,null,null,null,null,null,null,null,null,null,null,null,null,null,null,null,null,null,null,0,{"$error":"#DIV/0!"}]
[null,null,null,null,null,null,null,null,null,null,null,null,null,null,null,null,null,null,null,null,null,null,0,{"$error":"#DIV/0!"}]
[null,null,null,null,null,null,null,null,null,null,null,null,null,null,null,null,null,null,null,null,null,null,0,{"$error":"#DIV/0!"}]
[null,null,null,null,null,null,null,null,null,null,null,null,null,null,null,null,null,null,null,null,null,null,0,{"$error":"#DIV/0!"}]
[null,null,null,null,null,null,null,null,null,null,null,null,null,null,null,null,null,null,null,null,null,null,0,{"$error":"#DIV/0!"}]
[null,null,null,null,null,null,null,null,null,null,null,null,null,null,null,null,null,null,null,null,null,null,0,{"$error":"#DIV/0!"}]
[5,"Public Meeting(s)/Hearing(s)",null,null,null,null,null,null,null,null,null,null,null,null,null,null,null,null,null,null,null,null,"",""]
[null,"In-person Open House  (X hr meeting) ",null,null,null,null,null,null,null,null,null,null,null,null,null,null,null,null,null,null,null,null,"",""]
[null,"Virtual Meeting (X  hr meeting)",null,null,null,null,null,null,null,null,null,null,null,null,null,null,null,null,null,null,null,null,"",""]
[null,"Formal Presentation",null,null,null,null,null,null,null,null,null,null,null,null,null,null,null,null,null,null,null,null,"",""]
[null,"Submit meeting request via ETRACS (6 weeks prior to meeting date)",null,null,null,null,null,null,null,null,null,null,null,null,null,null,null,null,null,null,null,null,"",""]
[null,"Coordinate with NCDOT PI and Division on venue and dates ",null,null,null,null,null,null,null,null,null,null,null,null,null,null,null,null,null,null,null,null,"",""]
[null,"Prepare and submit public meeting maps",null,null,null,null,null,null,null,null,null,null,null,null,null,null,null,null,null,null,null,null,"",""]
[null,"Schedule and attend map review meeting",null,null,null,null,null,null,null,null,null,null,null,null,null,null,null,null,null,null,null,null,"",""]
[null,"Revise and resubmit public meeting maps",null,null,null,null,null,null,null,null,null,null,null,null,null,null,null,null,null,null,null,null,"",""]
[null,"Prepare and submit draft public meeting handout",null,null,null,null,null,null,null,null,null,null,null,null,null,null,null,null,null,null,null,null,"",""]
[null,"Revise and resubmit public meeting handout for approval",null,null,null,null,null,null,null,null,null,null,null,null,null,null,null,null,null,null,null,null,"",""]
[null,"Reproduce public meeting handout (insert # copies)",null,null,null,null,null,null,null,null,null,null,null,null,null,null,null,null,null,null,null,null,"",""]
[null,"Prepare and submit draft public meeting displays",null,null,null,null,null,null,null,null,null,null,null,null,null,null,null,null,null,null,null,null,"",""]
[null,"Revise and resubmit public meeting displays",null,null,null,null,null,null,null,null,null,null,null,null,null,null,null,null,null,null,null,null,"",""]
[null,"Provide digital copies of handout, displays, and public meeting maps to NCDOT PI for web posting",null,null,null,null,null,null,null,null,null,null,null,null,null,null,null,null,null,null,null,null,"",""]
[null,null,null,null,null,null,null,null,null,null,null,null,null,null,null,null,null,null,null,null,null,null,0,{"$error":"#DIV/0!"}]
[null,null,null,null,null,null,null,null,null,null,null,null,null,null,null,null,null,null,null,null,null,null,0,{"$error":"#DIV/0!"}]
[null,null,null,null,null,null,null,null,null,null,null,null,null,null,null,null,null,null,null,null,null,null,0,{"$error":"#DIV/0!"}]
[null,null,null,null,null,null,null,null,null,null,null,null,null,null,null,null,null,null,null,null,null,null,0,{"$error":"#DIV/0!"}]
[null,null,null,null,null,null,null,null,null,null,null,null,null,null,null,null,null,null,null,null,null,null,0,{"$error":"#DIV/0!"}]
[null,null,null,null,null,null,null,null,null,null,null,null,null,null,null,null,null,null,null,null,null,null,0,{"$error":"#DIV/0!"}]
[null,null,null,null,null,null,null,null,null,null,null,null,null,null,null,null,null,null,null,null,null,null,0,{"$error":"#DIV/0!"}]
[6,"Local Officials Information Meeting (LOIM)",null,null,null,null,null,null,null,null,null,null,null,null,null,null,null,null,null,null,null,null,"",""]
[null,"Coordinate with NCDOT PI on schedule and invitees",null,null,null,null,null,null,null,null,null,null,null,null,null,null,null,null,null,null,null,null,"",""]
[null,"Prepare and submit draft LOIM Invitation letter",null,null,null,null,null,null,null,null,null,null,null,null,null,null,null,null,null,null,null,null,"",""]
[null,"Revise and resubmit LOIM Invitation letter for approval",null,null,null,null,null,null,null,null,null,null,null,null,null,null,null,null,null,null,null,null,"",""]
[null,"Prepare and submit draft PowerPoint presentation",null,null,null,null,null,null,null,null,null,null,null,null,null,null,null,null,null,null,null,null,"",""]
[null,"Revise and resubmit PowerPoint presentation",null,null,null,null,null,null,null,null,null,null,null,null,null,null,null,null,null,null,null,null,"",""]
[null,"Prepare and submit draft local officials meeting handout (only when no public meeting is held)",null,null,null,null,null,null,null,null,null,null,null,null,null,null,null,null,null,null,null,null,"",""]
[null,"Revise and resubmit local officials meeting handout for approval",null,null,null,null,null,null,null,null,null,null,null,null,null,null,null,null,null,null,null,null,"",""]
[null,"Prepare and submit draft and final meeting summary",null,null,null,null,null,null,null,null,null,null,null,null,null,null,null,null,null,null,null,null,"",""]
[null,null,null,null,null,null,null,null,null,null,null,null,null,null,null,null,null,null,null,null,null,null,0,{"$error":"#DIV/0!"}]
[null,null,null,null,null,null,null,null,null,null,null,null,null,null,null,null,null,null,null,null,null,null,0,{"$error":"#DIV/0!"}]
[null,null,null,null,null,null,null,null,null,null,null,null,null,null,null,null,null,null,null,null,null,null,0,{"$error":"#DIV/0!"}]
[null,null,null,null,null,null,null,null,null,null,null,null,null,null,null,null,null,null,null,null,null,null,0,{"$error":"#DIV/0!"}]
[null,null,null,null,null,null,null,null,null,null,null,null,null,null,null,null,null,null,null,null,null,null,0,{"$error":"#DIV/0!"}]
[null,null,null,null,null,null,null,null,null,null,null,null,null,null,null,null,null,null,null,null,null,null,0,{"$error":"#DIV/0!"}]
[null,null,null,null,null,null,null,null,null,null,null,null,null,null,null,null,null,null,null,null,null,null,0,{"$error":"#DIV/0!"}]
[null,null,null,null,null,null,null,null,null,null,null,null,null,null,null,null,null,null,null,null,null,null,0,{"$error":"#DIV/0!"}]
[null,null,null,null,null,null,null,null,null,null,null,null,null,null,null,null,null,null,null,null,null,null,0,{"$error":"#DIV/0!"}]
[null,null,null,null,null,null,null,null,null,null,null,null,null,null,null,null,null,null,null,null,null,null,0,{"$error":"#DIV/0!"}]
[null,null,null,null,null,null,null,null,null,null,null,null,null,null,null,null,null,null,null,null,null,null,0,{"$error":"#DIV/0!"}]
[null,null,null,null,null,null,null,null,null,null,null,null,null,null,null,null,null,null,null,null,null,null,0,{"$error":"#DIV/0!"}]
[7,"Public Comments",null,null,null,null,null,null,null,null,null,null,null,null,null,null,null,null,null,null,null,null,"",""]
[null,"Collect public comments",null,null,null,null,null,null,null,null,null,null,null,null,null,null,null,null,null,null,null,null,"",""]
[null,"Compile comments in a database and prepare draft responses as needed (export from PublicInput.com site)",null,null,null,null,null,null,null,null,null,null,null,null,null,null,null,null,null,null,null,null,"",""]
[null,"Submit draft database and responses",null,null,null,null,null,null,null,null,null,null,null,null,null,null,null,null,null,null,null,null,"",""]
[null,"Revise and resubmit database and responses",null,null,null,null,null,null,null,null,null,null,null,null,null,null,null,null,null,null,null,null,"",""]
[null,"Prepare for and attend post-public meeting/hearing meeting",null,null,null,null,null,null,null,null,null,null,null,null,null,null,null,null,null,null,null,null,"",""]
[null,null,null,null,null,null,null,null,null,null,null,null,null,null,null,null,null,null,null,null,null,null,0,{"$error":"#DIV/0!"}]
[null,null,null,null,null,null,null,null,null,null,null,null,null,null,null,null,null,null,null,null,null,null,0,{"$error":"#DIV/0!"}]
[null,null,null,null,null,null,null,null,null,null,null,null,null,null,null,null,null,null,null,null,null,null,0,{"$error":"#DIV/0!"}]
[null,null,null,null,null,null,null,null,null,null,null,null,null,null,null,null,null,null,null,null,null,null,0,{"$error":"#DIV/0!"}]
[null,null,null,null,null,null,null,null,null,null,null,null,null,null,null,null,null,null,null,null,null,null,0,{"$error":"#DIV/0!"}]
[null,null,null,null,null,null,null,null,null,null,null,null,null,null,null,null,null,null,null,null,null,null,0,{"$error":"#DIV/0!"}]
[null,null,null,null,null,null,null,null,null,null,null,null,null,null,null,null,null,null,null,null,null,null,0,{"$error":"#DIV/0!"}]
[null,null,null,null,null,null,null,null,null,null,null,null,null,null,null,null,null,null,null,null,null,null,{"$f":"IF(B141=\"\",0,IF((SUM(D141:V141)=0),\"\",SUM(D141:V141)))","v":0},{"$f":"IF(W141=\"\",\"\",SUM((W141/$W$205)))","v":{"$error":"#DIV/0!"}}]
[null,null,null,null,null,null,null,null,null,null,null,null,null,null,null,null,null,null,null,null,null,null,0,{"$error":"#DIV/0!"}]
[8,"Public Engagement Summary",null,null,null,null,null,null,null,null,null,null,null,null,null,null,null,null,null,null,null,null,"",""]
[null,"Prepare and submit draft public engagement summary, including comment summary and responses using NCDOT template",null,null,null,null,null,null,null,null,null,null,null,null,null,null,null,null,null,null,null,null,"",""]
[null,"Revise and resubmit public engagement summary",null,null,null,null,null,null,null,null,null,null,null,null,null,null,null,null,null,null,null,null,"",""]
[null,null,null,null,null,null,null,null,null,null,null,null,null,null,null,null,null,null,null,null,null,null,0,{"$error":"#DIV/0!"}]
[null,null,null,null,null,null,null,null,null,null,null,null,null,null,null,null,null,null,null,null,null,null,0,{"$error":"#DIV/0!"}]
[null,null,null,null,null,null,null,null,null,null,null,null,null,null,null,null,null,null,null,null,null,null,0,{"$error":"#DIV/0!"}]
[null,null,null,null,null,null,null,null,null,null,null,null,null,null,null,null,null,null,null,null,null,null,0,{"$error":"#DIV/0!"}]
[null,null,null,null,null,null,null,null,null,null,null,null,null,null,null,null,null,null,null,null,null,null,0,{"$error":"#DIV/0!"}]
[null,null,null,null,null,null,null,null,null,null,null,null,null,null,null,null,null,null,null,null,null,null,0,{"$error":"#DIV/0!"}]
[null,null,null,null,null,null,null,null,null,null,null,null,null,null,null,null,null,null,null,null,null,null,0,{"$error":"#DIV/0!"}]
[null,null,null,null,null,null,null,null,null,null,null,null,null,null,null,null,null,null,null,null,null,null,0,{"$error":"#DIV/0!"}]
[null,null,null,null,null,null,null,null,null,null,null,null,null,null,null,null,null,null,null,null,null,null,0,{"$error":"#DIV/0!"}]
[null,null,null,null,null,null,null,null,null,null,null,null,null,null,null,null,null,null,null,null,null,null,0,{"$error":"#DIV/0!"}]
[null,null,null,null,null,null,null,null,null,null,null,null,null,null,null,null,null,null,null,null,null,null,0,{"$error":"#DIV/0!"}]
[null,null,null,null,null,null,null,null,null,null,null,null,null,null,null,null,null,null,null,null,null,null,0,{"$error":"#DIV/0!"}]
[null,null,null,null,null,null,null,null,null,null,null,null,null,null,null,null,null,null,null,null,null,null,0,{"$error":"#DIV/0!"}]
[null,null,null,null,null,null,null,null,null,null,null,null,null,null,null,null,null,null,null,null,null,null,0,{"$error":"#DIV/0!"}]
[null,null,null,null,null,null,null,null,null,null,null,null,null,null,null,null,null,null,null,null,null,null,0,{"$error":"#DIV/0!"}]
[null,null,null,null,null,null,null,null,null,null,null,null,null,null,null,null,null,null,null,null,null,null,0,{"$error":"#DIV/0!"}]
[null,null,null,null,null,null,null,null,null,null,null,null,null,null,null,null,null,null,null,null,null,null,0,{"$error":"#DIV/0!"}]
[null,null,null,null,null,null,null,null,null,null,null,null,null,null,null,null,null,null,null,null,null,null,0,{"$error":"#DIV/0!"}]
[null,null,null,null,null,null,null,null,null,null,null,null,null,null,null,null,null,null,null,null,null,null,0,{"$error":"#DIV/0!"}]
[null,null,null,null,null,null,null,null,null,null,null,null,null,null,null,null,null,null,null,null,null,null,0,{"$error":"#DIV/0!"}]
[null,null,null,null,null,null,null,null,null,null,null,null,null,null,null,null,null,null,null,null,null,null,0,{"$error":"#DIV/0!"}]
[null,null,null,null,null,null,null,null,null,null,null,null,null,null,null,null,null,null,null,null,null,null,0,{"$error":"#DIV/0!"}]
[null,null,null,null,null,null,null,null,null,null,null,null,null,null,null,null,null,null,null,null,null,null,0,{"$error":"#DIV/0!"}]
[null,null,null,null,null,null,null,null,null,null,null,null,null,null,null,null,null,null,null,null,null,null,0,{"$error":"#DIV/0!"}]
[9,"Project Visualizations ",null,null,null,null,null,null,null,null,null,null,null,null,null,null,null,null,null,null,null,null,"",""]
[null,"Renderings (digital static image)",null,null,null,null,null,null,null,null,null,null,null,null,null,null,null,null,null,null,null,null,"",""]
[null,"Level I ",null,null,null,null,null,null,null,null,null,null,null,null,null,null,null,null,null,null,null,null,"",""]
[null,"Level II",null,null,null,null,null,null,null,null,null,null,null,null,null,null,null,null,null,null,null,null,"",""]
[null,"Level III",null,null,null,null,null,null,null,null,null,null,null,null,null,null,null,null,null,null,null,null,"",""]
[null,"Animations (video with motion)",null,null,null,null,null,null,null,null,null,null,null,null,null,null,null,null,null,null,null,null,"",""]
[null,"Level I",null,null,null,null,null,null,null,null,null,null,null,null,null,null,null,null,null,null,null,null,"",""]
[null,"Level II",null,null,null,null,null,null,null,null,null,null,null,null,null,null,null,null,null,null,null,null,"",""]
[null,"Level III",null,null,null,null,null,null,null,null,null,null,null,null,null,null,null,null,null,null,null,null,"",""]
[null,"Level IV",null,null,null,null,null,null,null,null,null,null,null,null,null,null,null,null,null,null,null,null,"",""]
[null,"Level V",null,null,null,null,null,null,null,null,null,null,null,null,null,null,null,null,null,null,null,null,"",""]
[null,"Level VI",null,null,null,null,null,null,null,null,null,null,null,null,null,null,null,null,null,null,null,null,"",""]
[null,"Level VII",null,null,null,null,null,null,null,null,null,null,null,null,null,null,null,null,null,null,null,null,"",""]
[null,"Video Production",null,null,null,null,null,null,null,null,null,null,null,null,null,null,null,null,null,null,null,null,"",""]
[null,"Level I",null,null,null,null,null,null,null,null,null,null,null,null,null,null,null,null,null,null,null,null,"",""]
[null,"Level II",null,null,null,null,null,null,null,null,null,null,null,null,null,null,null,null,null,null,null,null,"",""]
[null,"Virtual 3D Models",null,null,null,null,null,null,null,null,null,null,null,null,null,null,null,null,null,null,null,null,"",""]
[null,null,null,null,null,null,null,null,null,null,null,null,null,null,null,null,null,null,null,null,null,null,0,{"$error":"#DIV/0!"}]
[null,null,null,null,null,null,null,null,null,null,null,null,null,null,null,null,null,null,null,null,null,null,0,{"$error":"#DIV/0!"}]
[10,"Task Management",null,null,null,null,null,null,null,null,null,null,null,null,null,null,null,null,null,null,null,null,"",""]
[null,null,null,null,null,null,null,null,null,null,null,null,null,null,null,null,null,null,null,null,null,null,0,{"$error":"#DIV/0!"}]
[null,null,null,null,null,null,null,null,null,null,null,null,null,null,null,null,null,null,null,null,null,null,0,{"$error":"#DIV/0!"}]
[null,null,null,null,null,null,null,null,null,null,null,null,null,null,null,null,null,null,null,null,null,null,0,{"$error":"#DIV/0!"}]
[null,null,null,null,null,null,null,null,null,null,null,null,null,null,null,null,null,null,null,null,null,null,0,{"$error":"#DIV/0!"}]
[11,"Complete QA/QC Procedures ",null,null,null,null,null,null,null,null,null,null,null,null,null,null,null,null,null,null,null,null,"",""]
[null,"Other Tasks: (i.e. small group meetings)",null,null,null,null,null,null,null,null,null,null,null,null,null,null,null,null,null,null,null,null,"",""]
[null,null,null,null,null,null,null,null,null,null,null,null,null,null,null,null,null,null,null,null,null,null,0,{"$error":"#DIV/0!"}]
[null,null,null,null,null,null,null,null,null,null,null,null,null,null,null,null,null,null,null,null,null,null,0,{"$error":"#DIV/0!"}]
[null,null,null,null,null,null,null,null,null,null,null,null,null,null,null,null,null,null,null,null,null,null,0,{"$error":"#DIV/0!"}]
[null,null,null,null,null,null,null,null,null,null,null,null,null,null,null,null,null,null,null,null,null,null,0,{"$error":"#DIV/0!"}]
[null,null,null,null,null,null,null,null,null,null,null,null,null,null,null,null,null,null,null,null,null,null,0,{"$error":"#DIV/0!"}]
[null,null,null,null,null,null,null,null,null,null,null,null,null,null,null,null,null,null,null,null,null,null,0,{"$error":"#DIV/0!"}]
[null,null,null,null,null,null,null,null,null,null,null,null,null,null,null,null,null,null,null,null,null,null,0,{"$error":"#DIV/0!"}]
[null,null,null,null,null,null,null,null,null,null,null,null,null,null,null,null,null,null,null,null,null,null,0,{"$error":"#DIV/0!"}]
[null,null,null,null,null,null,null,null,null,null,null,null,null,null,null,null,null,null,null,null,null,null,0,{"$error":"#DIV/0!"}]
[null,"TOTAL WORKDAYS/CATEGORY:",null,{"$f":"SUM(D12:D204)","v":0},0,0,0,0,0,0,0,0,0,0,0,0,0,0,0,0,0,0,0,{"$error":"#DIV/0!"},0]
[null,"HOURLY SALARY RATE:",null,{"$f":"'PEF CLASSIFICATION SHEET'!$E652","v":0},{"$f":"'PEF CLASSIFICATION SHEET'!$E653","v":0},{"$f":"'PEF CLASSIFICATION SHEET'!$E654","v":0},{"$f":"'PEF CLASSIFICATION SHEET'!$E655","v":0},{"$f":"'PEF CLASSIFICATION SHEET'!$E656","v":0},{"$f":"'PEF CLASSIFICATION SHEET'!$E657","v":0},{"$f":"'PEF CLASSIFICATION SHEET'!$E658","v":0},{"$f":"'PEF CLASSIFICATION SHEET'!$E659","v":0},{"$f":"'PEF CLASSIFICATION SHEET'!$E660","v":0},{"$f":"'PEF CLASSIFICATION SHEET'!$E661","v":0},{"$f":"'PEF CLASSIFICATION SHEET'!$E662","v":0},{"$f":"'PEF CLASSIFICATION SHEET'!$E663","v":0},{"$f":"'PEF CLASSIFICATION SHEET'!$E664","v":0},{"$f":"'PEF CLASSIFICATION SHEET'!$E665","v":0},{"$f":"'PEF CLASSIFICATION SHEET'!$E666","v":0},{"$f":"'PEF CLASSIFICATION SHEET'!E667","v":0},{"$f":"'PEF CLASSIFICATION SHEET'!E668","v":0},{"$f":"'PEF CLASSIFICATION SHEET'!E669","v":0},{"$f":"'PEF CLASSIFICATION SHEET'!E670","v":0}]
[null,"RATES PER DAY:",null,{"$f":"D206*8","v":0},0,0,0,0,0,0,0,0,0,0,0,0,0,0,0,0,0,0]
[null,"PAYROLL BURDEN:",null,{"$f":"SUM(D205*D207)","v":0},0,0,0,0,0,0,0,0,0,0,0,0,0,0,0,0,0,0]
[null,"TOTAL WORKDAYS:",null,{"$f":"SUM(D205:V205)","v":0}]
[null,"TOTAL PAYROLL BURDEN:",null,{"$f":"SUM(D208:V208)","v":0}]
[null,"AVERAGE COST PER HOUR:",null,{"$f":"SUM(D210/(D209*8))","v":{"$error":"#DIV/0!"}}]
[null,"GENERAL OVERHEAD:",{"$f":"PDEA_HEU_PUBLIC_INVOLVEMENT_SUB1_CONSULTANT_OVERHEAD","v":0},{"$f":"SUM(D210*C212)","v":0}]
[null,"SUBTOTAL:",null,{"$f":"SUM(D210+D212)","v":0}]
[null,"COMPARATIVE FEE:",{"$f":"PDEA_HEU_PUBLIC_INVOLVEMENT_SUB1_CONSULTANT_FEE","v":0.09},{"$f":"SUM(D213*C214)","v":0}]
[null,"FACILITIES COST OF CAPITAL:",{"$f":"PDEA_HEU_PUBLIC_INVOLVEMENT_SUB1_CONSULTANT_COSTofCAPITAL","v":0},{"$f":"SUM(D210*C215)","v":0}]
[null,"TOTAL:",null,{"$f":"SUM(D213:D215)","v":0}]
[null,"DIRECT EXPENSES:",null,{"$f":"PDEA_HEU_PUBLIC_INVOLVEMENT_SUB1_DIRECT_NONSALARY_TOTAL","v":0}]
[null,"PUBLIC INVOLVEMENT GRAND TOTAL:",null,{"$f":"SUM(D216:D217)","v":0}]
[]
[]
[]
[null,"Costs",null,"Workdays",null,null,null,null,"Dollars"]
[null,null,null,"EN Public Involvement","PEF","Delta ","Delta %",null,"EN Public Involvement",null,"PEF",null,"Delta ","Delta %"]
[null,null,null,null,null,{"$f":"SUM(E224-D224)","v":0},{"$f":"SUM((F224/D224)*100)","v":{"$error":"#DIV/0!"}},null,null,null,null,null,{"$f":"SUM(K224-I224)","v":0},{"$f":"SUM((M224/I224)*100)","v":{"$error":"#DIV/0!"}}]
[]
[]
[null,null,null,null,null,null,null,"Directs","Dollars"]
[null,null,null,null,null,null,null,null,"EN Public Involvement",null,"PEF",null,"Delta ","Delta %"]
[null,null,null,null,null,null,null,null,null,null,null,null,{"$f":"SUM(K229-I229)","v":0},{"$f":"SUM((M229/I229)*100)","v":{"$error":"#DIV/0!"}}]

{"sheet":"EN-PI-Exp-Sub1","index":83,"n_rows":100,"n_cols":8,"rows_kept":100,"cut":false,"hidden":true,"merged":[[6,1,6,3],[6,4,6,6],[0,0,0,7],[3,1,3,7],[4,1,4,3],[4,6,4,7],[5,1,5,3],[5,5,5,7],[2,1,2,3]]}
["PUBLIC INVOLVEMENT DIRECT EXPENSES - SUBCONSULTANT 1"]
[]
["FIRM:",{"$f":"'EN-PI-Sub1'!G3","v":"CONSULTANT NAME"}]
["PROJECT DESCRIPTION: ",{"$f":"PROJECT.DESCRIPTION","v":0}]
["PREPARED BY:  ",{"$f":"PUBLIC.INVOLVEMENT.SUB1.PREPARED.BY","v":""},null,null,"TASK ORDER NUMBER:",null,{"$f":"TASK.ORDER.NUMBER","v":0}]
["TIP NUMBER:",{"$f":"TIP.NUMBER","v":0},null,null,"WBS NUMBER:",{"$f":"WBS.NUMBER","v":""}]
["DATE PREPARED:",{"$f":"IF('EN-PI-Sub1'!N3=\"\",\"\",MAX('EN-PI-Sub1'!N3:'EN-PI-Sub1'!N4))","v":""},null,null,"REVIEWED BY UNIT HEAD ON:",null,null,{"$f":"IF(SCOPE.MANDAY.ESTIMATE.APPROVED.BY.DATE=\"\",\"\",SCOPE.MANDAY.ESTIMATE.APPROVED.BY.DATE)","v":""}]
["GENERAL PROJECT WORK:","ITEM","QTY","DESCRIPTION",null,null,"UNIT COST "]
[null,"Travel:"]
[null,"Sedan",null,"Trip(s) @",null,"miles @",{"$f":"SEDAN","v":0.7},{"$f":"SUM(C10*E10*G10)","v":0}]
[null,"Carry All",null,"Trip(s) @",null,"miles @",{"$f":"CARRYALL","v":0.72},{"$f":"SUM(C11*E11*G11)","v":0}]
[null,"Car Rental",null,null,null,"days @ ",{"$f":"CARRENTAL","v":50},{"$f":"SUM(E12*G12)","v":0}]
[null,"Gas for Rental",null,null,null,"miles @",{"$f":"GASforRENTAL","v":0.2},{"$f":"SUM(E13*G13)","v":0}]
[null,"Parking:",null,"Trip(s) @",null,null,{"$f":"PARKING","v":3},{"$f":"SUM(C14*G14)","v":0}]
[null,"Per Diem:",null,"Breakfast",null,null,{"$f":"BREAKFAST","v":10.1},{"$f":"SUM(C15*G15)","v":0}]
[null,null,null,"Lunch",null,null,{"$f":"LUNCH","v":13.3},0]
[null,null,null,"Dinner",null,null,{"$f":"DINNER","v":23.1},0]
[null,null,null,"Lodging",null,null,{"$f":"LODGING_LUMP.SUM","v":95},0]
[null,"Reproduction:",null,"8 1/2 x 11 B & W Copies @",null,null,{"$f":"LETTERCOPIES","v":0.14000000000000001},0]
[null,null,null,"11 x 17 B & W Copies @",null,null,{"$f":"LEDGERCOPIES","v":0.34},0]
[null,null,null,"8 1/2 x 11 Color Copies @",null,null,{"$f":"LETTERCOLOR","v":0.83},0]
[null,null,null,"11 x 17 Color Copies @",null,null,{"$f":"LEDGERCOLOR","v":1.66},0]
[null,null,null,"SQ. FT. of Plots (B & W or Color)",null,"<65 SQ. FT.*",{"$f":"ROLLPLOTSshort","v":6.5},0]
[null,null,null,"SQ. FT. of Plots (B & W or Color)",null,">65 SQ. FT.*",{"$f":"ROLLPLOTSlong","v":1.5},0]
[null,null,null,"Cover(s) @",null,null,{"$f":"COVERS","v":0.5},0]
[null,null,null,"Binder(s) @",null,null,{"$f":"BINDERS","v":0.5},0]
[null,null,null,"Blueprints - 8 1/2 x 11 @",null,null,{"$f":"BLUEPRINTSLETTER","v":0.35},0]
[null,null,null,"Blueprints - 42 x 72 @",null,null,{"$f":"BLUEPRINTSLARGE","v":1.3},0]
[null,"Film and Developing:",null,"Roll(s) @",null,null,{"$f":"FILM","v":20},0]
[null,null,null,null,null,"Subtotal",null,{"$f":"SUM(H10:H29)","v":0}]
["MAPS AND DOCUMENTS:","ITEM","QTY","DESCRIPTION",null,null,"UNIT COST "]
[null,"County Tax Maps:",null,"Map(s) @",null,null,{"$f":"County_Tax_Maps","v":7},{"$f":"SUM(C32*G32)","v":0}]
[null,"USGS Maps:",null,"Map(s) @",null,null,{"$f":"USGSMAPS","v":7},{"$f":"SUM(C33*G33)","v":0}]
[null,null,null,null,null,"Subtotal",null,{"$f":"SUM(H32:H33)","v":0}]
["TECHNICAL REPORTS:","ITEM","QTY","DESCRIPTION",null,null,"UNIT COST "]
[null,"Reproduction:",null,"8 1/2 x 11 B & W Copies @",null,null,{"$f":"LETTERCOPIES","v":0.14000000000000001},{"$f":"SUM(C36*G36)","v":0}]
[null,null,null,"11 x 17 B & W Copies @",null,null,{"$f":"LEDGERCOPIES","v":0.34},0]
[null,null,null,"8 1/2 x 11 Color Copies @",null,null,{"$f":"LETTERCOLOR","v":0.83},0]
[null,null,null,"11 x 17 Color Copies @",null,null,{"$f":"LEDGERCOLOR","v":1.66},0]
[null,null,null,"SQ. FT. of Plots (B & W or Color)",null,"<65 SQ. FT.*",{"$f":"ROLLPLOTSshort","v":6.5},0]
[null,null,null,"SQ. FT. of Plots (B & W or Color)",null,">65 SQ. FT.*",{"$f":"ROLLPLOTSlong","v":1.5},0]
[null,null,null,"Cover(s) @",null,null,{"$f":"COVERS","v":0.5},0]
[null,null,null,"Binder(s) @",null,null,{"$f":"BINDERS","v":0.5},0]
[null,null,null,null,null,"Subtotal",null,{"$f":"SUM(H36:H43)","v":0}]
["DESIGN:","ITEM","QTY","DESCRIPTION",null,null,"UNIT COST "]
[null,"Reproduction:",null,"8 1/2 x 11 B & W Copies @",null,null,{"$f":"LETTERCOPIES","v":0.14000000000000001},{"$f":"SUM(C46*G46)","v":0}]
[null,null,null,"11 x 17 B & W Copies @",null,null,{"$f":"LEDGERCOPIES","v":0.34},0]
[null,null,null,"Blueprints - 8 1/2 x 11 @",null,null,{"$f":"BLUEPRINTSLETTER","v":0.35},0]
[null,null,null,"Mylar - 8 1/2 x 11 @",null,null,{"$f":"MYLARSLETTER","v":7.32},0]
[null,null,null,"Mylar - 36 x 48 @",null,null,{"$f":"MYLARSLARGE","v":28.12},0]
[null,null,null,"Prints  - 24 x 36 @",null,null,{"$f":"PRINTSLARGE","v":3},0]
[null,null,null,"Blueprints - 42 x 72 @",null,null,{"$f":"BLUEPRINTSLARGE","v":1.3},0]
[null,null,null,"SQ. FT. of Plots (B & W or Color)",null,"<65 SQ. FT.*",{"$f":"ROLLPLOTSshort","v":6.5},0]
[null,null,null,"SQ. FT. of Plots (B & W or Color)",null,">65 SQ. FT.*",{"$f":"ROLLPLOTSlong","v":1.5},0]
[null,null,null,"USGS Map(s)",null,null,{"$f":"USGSMAPS","v":7},0]
[null,null,null,null,null,"Subtotal",null,{"$f":"SUM(H46:H55)","v":0}]
["MEETINGS & PUBLIC INVOLVEMENT:","ITEM","QTY","DESCRIPTION",null,null,"UNIT COST "]
[null,"Travel:"]
[null,"Sedan",null,"Trip(s) @",null,"miles @",{"$f":"SEDAN","v":0.7},{"$f":"SUM(C59*E59*G59)","v":0}]
[null,"CarryAll",null,"Trip(s) @",null,"miles @",{"$f":"CARRYALL","v":0.72},{"$f":"SUM(C60*E60*G60)","v":0}]
[null,"Car Rental",null,null,null,"days @",{"$f":"CARRENTAL","v":50},{"$f":"SUM(E61*G61)","v":0}]
[null,"Gas for Rental",null,null,null,"miles @",{"$f":"GASforRENTAL","v":0.2},{"$f":"SUM(E62*G62)","v":0}]
[null,"Parking:",null,"Trip(s) @",null,null,{"$f":"PARKING","v":3},{"$f":"SUM(C63*G63)","v":0}]
[null,"Per Diem:",null,"Breakfast",null,null,{"$f":"BREAKFAST","v":10.1},{"$f":"SUM(C64*G64)","v":0}]
[null,null,null,"Lunch",null,null,{"$f":"LUNCH","v":13.3},{"$f":"SUM(C65*G65)","v":0}]
[null,null,null,"Dinner",null,null,{"$f":"DINNER","v":23.1},{"$f":"SUM(C66*G66)","v":0}]
[null,null,null,"Lodging",null,null,{"$f":"LODGING_LUMP.SUM","v":95},{"$f":"SUM(C67*G67)","v":0}]
[null,"Workshop "]
[null,"  - Reproduction",null,"8 1/2 x 11 B & W Copies @",null,"Handouts",{"$f":"LETTERCOPIES","v":0.14000000000000001},{"$f":"SUM(C69*E69*G69)","v":0}]
[null,null,null,"11 x 17 B & W Copies @",null,"Handouts",{"$f":"LEDGERCOPIES","v":0.34},{"$f":"SUM(C70*E70*G70)","v":0}]
[null,null,null,"8 1/2 x 11 Color Copies @",null,null,{"$f":"LETTERCOLOR","v":0.83},{"$f":"SUM(C71*G71)","v":0}]
[null,null,null,"11 x 17 Color Copies @",null,null,{"$f":"LEDGERCOLOR","v":1.66},0]
[null,null,null,"SQ. FT. of Plots (B & W or Color)",null,"<65 SQ. FT.*",{"$f":"ROLLPLOTSshort","v":6.5},0]
[null,null,null,"SQ. FT. of Plots (B & W or Color)",null,">65 SQ. FT.*",{"$f":"ROLLPLOTSlong","v":1.5},0]
[null,null,null,"SQ. FT. Foam Mounting Board @",null,null,{"$f":"FOAMMOUNTINGBOARD","v":1.25},0]
[null,"Presentation Materials:",null,"Misc. Workshop Supplies @",null,"per workshop",{"$f":"MISCWORKSHOPSUPPLIES","v":50},0]
[null,null,null,null,null,null,null,0]
[null,null,null,null,null,null,null,0]
[null,null,null,null,null,null,null,0]
[null,null,null,null,null,null,null,0]
[null,"Mailing Labels:",null,"Laser Peel & Stick (box)",null,"750 per box",{"$f":"LASERPEELandSTICK","v":4},0]
[null,"Postage:"]
[null,"  - Public Workshops:",null,"Notice or Newsletter @",null,"copies @",{"$f":"POSTAGE","v":0.49},{"$f":"SUM(C83*E83*G83)","v":0}]
[null,null,null,null,null,"Subtotal",null,{"$f":"SUM(H58:H83)","v":0}]
["Miscellaneous Other","ITEM","QTY","DESCRIPTION",null,null,"UNIT COST "]
[null,null,null,null,null,null,null,{"$f":"SUM(C86*G86)","v":0}]
[null,null,null,null,null,null,null,{"$f":"SUM(C87*G87)","v":0}]
[null,null,null,null,null,null,null,0]
[null,null,null,null,null,null,null,0]
[null,null,null,null,null,null,null,0]
[null,null,null,null,null,null,null,0]
[null,null,null,null,null,null,null,0]
[null,null,null,null,null,null,null,{"$f":"SUM(C93*G93)","v":0}]
[null,null,null,null,null,null,null,{"$f":"SUM(C94*G94)","v":0}]
[null,null,null,null,null,null,null,{"$f":"SUM(C95*G95)","v":0}]
[null,null,null,null,null,"Subtotal",null,{"$f":"SUM(H86:H95)","v":0}]
[]
[null,null,null,null,null,"TOTAL",null,{"$f":"SUM(H30+H34+H44+H56+H84+H96)","v":0}]
[]
[null,"* Sum of all plots "]

{"sheet":"EN-PI-Sub2","index":84,"n_rows":229,"n_cols":26,"rows_kept":229,"cut":false,"hidden":true,"merged":[[197,25,197,26],[198,25,198,26],[199,25,199,26],[200,25,200,26],[201,25,201,26],[202,25,202,26],[191,25,191,26],[192,25,192,26],[194,25,194,26],[195,25,195,26],[196,25,196,26],[228,8,228,9],[228,10,228,11],[203,25,203,26],[217,1,218,1],[217,3,218,4],[221,3,221,6],[221,8,221,13],[222,8,222,9],[222,10,222,11],[223,8,223,9],[223,10,223,11],[226,8,226,13],[227,8,227,9],[227,10,227,11],[190,25,190,26],[179,25,179,26],[180,25,180,26],[181,25,181,26],[182,25,182,26],[183,25,183,26],[184,25,184,26],[172,25,172,26],[173,25,173,26],[174,25,174,26],[175,25,175,26],[176,25,176,26],[177,25,177,26],[178,25,178,26],[185,25,185,26],[186,25,186,26],[187,25,187,26],[189,25,189,26],[166,25,166,26],[167,25,167,26],[168,25,168,26],[170,25,170,26],[171,25,171,26],[160,25,160,26],[161,25,161,26],[162,25,162,26],[163,25,163,26],[164,25,164,26],[165,25,165,26],[153,25,153,26],[154,25,154,26],[155,25,155,26],[156,25,156,26],[158,25,158,26],[159,25,159,26],[147,25,147,26],[148,25,148,26],[149,25,149,26],[150,25,150,26],[151,25,151,26],[152,25,152,26],[157,25,157,26],[141,25,141,26],[143,25,143,26],[144,25,144,26],[145,25,145,26],[146,25,146,26],[134,25,134,26],[135,25,135,26],[137,25,137,26],[138,25,138,26],[139,25,139,26],[140,25,140,26],[136,25,136,26],[128,25,128,26],[129,25,129,26],[130,25,130,26],[131,25,131,26],[132,25,132,26],[133,25,133,26],[122,25,122,26],[123,25,123,26],[124,25,124,26],[125,25,125,26],[126,25,126,26],[116,25,116,26],[117,25,117,26],[118,25,118,26],[119,25,119,26],[120,25,120,26],[121,25,121,26],[109,25,109,26],[110,25,110,26],[111,25,111,26],[112,25,112,26],[113,25,113,26],[114,25,114,26],[115,25,115,26],[103,25,103,26],[104,25,104,26],[105,25,105,26],[107,25,107,26],[108,25,108,26],[97,25,97,26],[98,25,98,26],[99,25,99,26],[100,25,100,26],[101,25,101,26],[102,25,102,26],[90,25,90,26],[91,25,91,26],[92,25,92,26],[93,25,93,26],[95,25,95,26],[96,25,96,26],[85,25,85,26],[86,25,86,26],[87,25,87,26],[88,25,88,26],[89,25,89,26],[94,25,94,26],[78,25,78,26],[79,25,79,26],[80,25,80,26],[81,25,81,26],[82,25,82,26],[83,25,83,26],[71,25,71,26],[72,25,72,26],[74,25,74,26],[75,25,75,26],[76,25,76,26],[77,25,77,26],[65,25,65,26],[66,25,66,26],[67,25,67,26],[68,25,68,26],[70,25,70,26],[73,25,73,26],[59,25,59,26],[60,25,60,26],[61,25,61,26],[62,25,62,26],[63,25,63,26],[64,25,64,26],[53,25,53,26],[54,25,54,26],[55,25,55,26],[56,25,56,26],[57,25,57,26],[58,25,58,26],[46,25,46,26],[47,25,47,26],[48,25,48,26],[49,25,49,26],[50,25,50,26],[51,25,51,26],[40,25,40,26],[41,25,41,26],[42,25,42,26],[43,25,43,26],[44,25,44,26],[45,25,45,26],[34,25,34,26],[35,25,35,26],[36,25,36,26],[37,25,37,26],[38,25,38,26],[39,25,39,26],[27,25,27,26],[28,25,28,26],[29,25,29,26],[30,25,30,26],[32,25,32,26],[33,25,33,26],[21,25,21,26],[22,25,22,26],[23,25,23,26],[24,25,24,26],[25,25,25,26],[26,25,26,26],[15,25,15,26],[16,25,16,26],[17,25,17,26],[18,25,18,26],[19,25,19,26],[20,25,20,26],[6,21,9,21],[8,25,8,26],[11,25,11,26],[12,25,12,26],[13,25,13,26],[14,25,14,26],[6,15,9,15],[6,16,9,16],[6,17,9,17],[6,18,9,18],[6,19,9,19],[6,20,9,20],[6,9,9,9],[6,10,9,10],[6,11,9,11],[6,12,9,12],[6,13,9,13],[6,14,9,14],[6,3,9,3],[6,4,9,4],[6,5,9,5],[6,6,9,6],[6,7,9,7],[6,8,9,8],[3,1,3,4],[3,6,3,7],[3,10,3,11],[3,13,3,14],[3,22,3,23],[4,3,4,21],[0,0,1,26],[2,1,2,4],[2,6,2,7],[2,10,2,11],[2,13,2,14],[2,22,2,23]]}
["PUBLIC INVOLVEMENT BREAKDOWN WORKSHEET - SUBCONSULTANT 2"]
[]
["PROJECT DESCRIPTION: ",{"$f":"PROJECT.DESCRIPTION","v":0},null,null,null,"FIRM:  ",{"$f":"PDEA_HEU_PUBLIC.INVOLVEMENT_SUB2_CONSULTANT_NAME","v":"CONSULTANT NAME"},null,"TASK ORDER NUMBER:",null,{"$f":"TASK.ORDER.NUMBER","v":0},null,"DATE PREPARED:",{"$f":"IF(SCOPE.MANDAY.ESTIMATE.PREPARED.BY.DATE=\"\",\"\",SCOPE.MANDAY.ESTIMATE.PREPARED.BY.DATE)","v":""}]
["PREPARED BY:  ",{"$f":"IF(SCOPE.MANDAY.ESTIMATE.PREPARED.BY=\"\",\"\",SCOPE.MANDAY.ESTIMATE.PREPARED.BY)","v":""},null,null,null,"TIP NUMBER:",{"$f":"TIP.NUMBER","v":0},null,"WBS NUMBER:",null,{"$f":"WBS.NUMBER","v":""},null,"REVISION DATE:",{"$f":"IF(SCOPE.MANDAY.ESTIMATE.APPROVED.BY.DATE=\"\",\"\",SCOPE.MANDAY.ESTIMATE.APPROVED.BY.DATE)","v":""}]
[null,null,null,"ESTIMATED WORK DAYS"]
[null,null,"Employee",{"$f":"IF('PEF CLASSIFICATION SHEET'!$D673=\"\",\"\",LEFT('PEF CLASSIFICATION SHEET'!$D673,4))","v":""},{"$f":"IF('PEF CLASSIFICATION SHEET'!$D674=\"\",\"\",LEFT('PEF CLASSIFICATION SHEET'!$D674,4))","v":""},{"$f":"IF('PEF CLASSIFICATION SHEET'!$D675=\"\",\"\",LEFT('PEF CLASSIFICATION SHEET'!$D675,4))","v":""},{"$f":"IF('PEF CLASSIFICATION SHEET'!$D676=\"\",\"\",LEFT('PEF CLASSIFICATION SHEET'!$D676,4))","v":""},{"$f":"IF('PEF CLASSIFICATION SHEET'!$D677=\"\",\"\",LEFT('PEF CLASSIFICATION SHEET'!$D677,4))","v":""},{"$f":"IF('PEF CLASSIFICATION SHEET'!$D678=\"\",\"\",LEFT('PEF CLASSIFICATION SHEET'!$D678,4))","v":""},{"$f":"IF('PEF CLASSIFICATION SHEET'!$D679=\"\",\"\",LEFT('PEF CLASSIFICATION SHEET'!$D679,4))","v":""},{"$f":"IF('PEF CLASSIFICATION SHEET'!$D680=\"\",\"\",LEFT('PEF CLASSIFICATION SHEET'!$D680,4))","v":""},{"$f":"IF('PEF CLASSIFICATION SHEET'!$D681=\"\",\"\",LEFT('PEF CLASSIFICATION SHEET'!$D681,4))","v":""},{"$f":"IF('PEF CLASSIFICATION SHEET'!$D682=\"\",\"\",LEFT('PEF CLASSIFICATION SHEET'!$D682,4))","v":""},{"$f":"IF('PEF CLASSIFICATION SHEET'!$D683=\"\",\"\",LEFT('PEF CLASSIFICATION SHEET'!$D683,4))","v":""},{"$f":"IF('PEF CLASSIFICATION SHEET'!$D684=\"\",\"\",LEFT('PEF CLASSIFICATION SHEET'!$D684,4))","v":""},{"$f":"IF('PEF CLASSIFICATION SHEET'!$D685=\"\",\"\",LEFT('PEF CLASSIFICATION SHEET'!$D685,4))","v":""},{"$f":"IF('PEF CLASSIFICATION SHEET'!$D686=\"\",\"\",LEFT('PEF CLASSIFICATION SHEET'!$D686,4))","v":""},{"$f":"IF('PEF CLASSIFICATION SHEET'!D687=\"\",\"\",LEFT('PEF CLASSIFICATION SHEET'!D687,4))","v":""},{"$f":"IF('PEF CLASSIFICATION SHEET'!$D688=\"\",\"\",LEFT('PEF CLASSIFICATION SHEET'!$D688,4))","v":""},{"$f":"IF('PEF CLASSIFICATION SHEET'!D689=\"\",\"\",LEFT('PEF CLASSIFICATION SHEET'!D689,4))","v":""},{"$f":"IF('PEF CLASSIFICATION SHEET'!D690=\"\",\"\",LEFT('PEF CLASSIFICATION SHEET'!D690,4))","v":""},{"$f":"IF('PEF CLASSIFICATION SHEET'!D691=\"\",\"\",LEFT('PEF CLASSIFICATION SHEET'!D691,4))","v":""}]
[null,null,null,{"$f":"IF('PEF CLASSIFICATION SHEET'!$C673=\"\",\"\",'PEF CLASSIFICATION SHEET'!$C673)","v":""},{"$f":"IF('PEF CLASSIFICATION SHEET'!$C674=\"\",\"\",'PEF CLASSIFICATION SHEET'!$C674)","v":""},{"$f":"IF('PEF CLASSIFICATION SHEET'!$C675=\"\",\"\",'PEF CLASSIFICATION SHEET'!$C675)","v":""},{"$f":"IF('PEF CLASSIFICATION SHEET'!$C676=\"\",\"\",'PEF CLASSIFICATION SHEET'!$C676)","v":""},{"$f":"IF('PEF CLASSIFICATION SHEET'!$C677=\"\",\"\",'PEF CLASSIFICATION SHEET'!$C677)","v":""},{"$f":"IF('PEF CLASSIFICATION SHEET'!$C678=\"\",\"\",'PEF CLASSIFICATION SHEET'!$C678)","v":""},{"$f":"IF('PEF CLASSIFICATION SHEET'!$C679=\"\",\"\",'PEF CLASSIFICATION SHEET'!$C679)","v":""},{"$f":"IF('PEF CLASSIFICATION SHEET'!$C680=\"\",\"\",'PEF CLASSIFICATION SHEET'!$C680)","v":""},{"$f":"IF('PEF CLASSIFICATION SHEET'!$C681=\"\",\"\",'PEF CLASSIFICATION SHEET'!$C681)","v":""},{"$f":"IF('PEF CLASSIFICATION SHEET'!$C682=\"\",\"\",'PEF CLASSIFICATION SHEET'!$C682)","v":""},{"$f":"IF('PEF CLASSIFICATION SHEET'!$C683=\"\",\"\",'PEF CLASSIFICATION SHEET'!$C683)","v":""},{"$f":"IF('PEF CLASSIFICATION SHEET'!$C684=\"\",\"\",'PEF CLASSIFICATION SHEET'!$C684)","v":""},{"$f":"IF('PEF CLASSIFICATION SHEET'!$C685=\"\",\"\",'PEF CLASSIFICATION SHEET'!$C685)","v":""},{"$f":"IF('PEF CLASSIFICATION SHEET'!$C686=\"\",\"\",'PEF CLASSIFICATION SHEET'!$C686)","v":""},{"$f":"IF('PEF CLASSIFICATION SHEET'!C687=\"\",\"\",'PEF CLASSIFICATION SHEET'!C687)","v":""},{"$f":"IF('PEF CLASSIFICATION SHEET'!$C688=\"\",\"\",'PEF CLASSIFICATION SHEET'!$C688)","v":""},{"$f":"IF('PEF CLASSIFICATION SHEET'!C689=\"\",\"\",'PEF CLASSIFICATION SHEET'!C689)","v":""},{"$f":"IF('PEF CLASSIFICATION SHEET'!C690=\"\",\"\",'PEF CLASSIFICATION SHEET'!C690)","v":""},{"$f":"IF('PEF CLASSIFICATION SHEET'!C691=\"\",\"\",'PEF CLASSIFICATION SHEET'!C691)","v":""},"SUB-","%","PEF"]
[null,null,"Classification",null,null,null,null,null,null,null,null,null,null,null,null,null,null,null,null,null,null,null,"TOTAL","OF","ESTIMATE"]
["TASK","TASK DESCRIPTION",null,null,null,null,null,null,null,null,null,null,null,null,null,null,null,null,null,null,null,null,null,"PROJECT",null,"COMMENTS"]
["NO."]
["2PI1","Continue Public Engagement",null,null,null,null,null,null,null,null,null,null,null,null,null,null,null,null,null,null,null,null,{"$f":"IF(B11=\"\",0,IF((SUM(D11:V11)=0),\"\",SUM(D11:V11)))","v":""}]
[1,"Public Involvement Plan (PIP)",null,null,null,null,null,null,null,null,null,null,null,null,null,null,null,null,null,null,null,null,{"$f":"IF(B12=\"\",0,IF((SUM(D12:V12)=0),\"\",SUM(D12:V12)))","v":""},{"$f":"IF(W12=\"\",\"\",SUM((W12/$W$205)))","v":""}]
[null,"Submit ETRACS for PI Team to review draft or develop PIP",null,null,null,null,null,null,null,null,null,null,null,null,null,null,null,null,null,null,null,null,{"$f":"IF(B13=\"\",0,IF((SUM(D13:V13)=0),\"\",SUM(D13:V13)))","v":""},{"$f":"IF(W13=\"\",\"\",SUM((W13/$W$205)))","v":""}]
[null,"Prepare and submit draft and final PIP (if PIP is to be prepared by PEF)",null,null,null,null,null,null,null,null,null,null,null,null,null,null,null,null,null,null,null,null,"",""]
[null,null,null,null,null,null,null,null,null,null,null,null,null,null,null,null,null,null,null,null,null,null,0,{"$error":"#DIV/0!"}]
[null,null,null,null,null,null,null,null,null,null,null,null,null,null,null,null,null,null,null,null,null,null,0,{"$error":"#DIV/0!"}]
[null,null,null,null,null,null,null,null,null,null,null,null,null,null,null,null,null,null,null,null,null,null,0,{"$error":"#DIV/0!"}]
[null,null,null,null,null,null,null,null,null,null,null,null,null,null,null,null,null,null,null,null,null,null,0,{"$error":"#DIV/0!"}]
[null,null,null,null,null,null,null,null,null,null,null,null,null,null,null,null,null,null,null,null,null,null,0,{"$error":"#DIV/0!"}]
[null,null,null,null,null,null,null,null,null,null,null,null,null,null,null,null,null,null,null,null,null,null,0,{"$error":"#DIV/0!"}]
[null,null,null,null,null,null,null,null,null,null,null,null,null,null,null,null,null,null,null,null,null,null,0,{"$error":"#DIV/0!"}]
[null,null,null,null,null,null,null,null,null,null,null,null,null,null,null,null,null,null,null,null,null,null,0,{"$error":"#DIV/0!"}]
[null,null,null,null,null,null,null,null,null,null,null,null,null,null,null,null,null,null,null,null,null,null,0,{"$error":"#DIV/0!"}]
[null,null,null,null,null,null,null,null,null,null,null,null,null,null,null,null,null,null,null,null,null,null,0,{"$error":"#DIV/0!"}]
[null,null,null,null,null,null,null,null,null,null,null,null,null,null,null,null,null,null,null,null,null,null,0,{"$error":"#DIV/0!"}]
[null,null,null,null,null,null,null,null,null,null,null,null,null,null,null,null,null,null,null,null,null,null,0,{"$error":"#DIV/0!"}]
[null,null,null,null,null,null,null,null,null,null,null,null,null,null,null,null,null,null,null,null,null,null,0,{"$error":"#DIV/0!"}]
[null,null,null,null,null,null,null,null,null,null,null,null,null,null,null,null,null,null,null,null,null,null,0,{"$error":"#DIV/0!"}]
[null,null,null,null,null,null,null,null,null,null,null,null,null,null,null,null,null,null,null,null,null,null,0,{"$error":"#DIV/0!"}]
[null,null,null,null,null,null,null,null,null,null,null,null,null,null,null,null,null,null,null,null,null,null,0,{"$error":"#DIV/0!"}]
[null,null,null,null,null,null,null,null,null,null,null,null,null,null,null,null,null,null,null,null,null,null,0,{"$error":"#DIV/0!"}]
[2,"Project Mailing List",null,null,null,null,null,null,null,null,null,null,null,null,null,null,null,null,null,null,null,null,"",""]
[null,"Submit ETRACS request and study area Shapefile for project mailing list ",null,null,null,null,null,null,null,null,null,null,null,null,null,null,null,null,null,null,null,null,"",""]
[null,"Create project mailing list  ",null,null,null,null,null,null,null,null,null,null,null,null,null,null,null,null,null,null,null,null,"",""]
[null,null,null,null,null,null,null,null,null,null,null,null,null,null,null,null,null,null,null,null,null,null,0,{"$error":"#DIV/0!"}]
[null,null,null,null,null,null,null,null,null,null,null,null,null,null,null,null,null,null,null,null,null,null,0,{"$error":"#DIV/0!"}]
[null,null,null,null,null,null,null,null,null,null,null,null,null,null,null,null,null,null,null,null,null,null,0,{"$error":"#DIV/0!"}]
[null,null,null,null,null,null,null,null,null,null,null,null,null,null,null,null,null,null,null,null,null,null,0,{"$error":"#DIV/0!"}]
[null,null,null,null,null,null,null,null,null,null,null,null,null,null,null,null,null,null,null,null,null,null,0,{"$error":"#DIV/0!"}]
[null,null,null,null,null,null,null,null,null,null,null,null,null,null,null,null,null,null,null,null,null,null,0,{"$error":"#DIV/0!"}]
[null,null,null,null,null,null,null,null,null,null,null,null,null,null,null,null,null,null,null,null,null,null,0,{"$error":"#DIV/0!"}]
[null,null,null,null,null,null,null,null,null,null,null,null,null,null,null,null,null,null,null,null,null,null,0,{"$error":"#DIV/0!"}]
[null,null,null,null,null,null,null,null,null,null,null,null,null,null,null,null,null,null,null,null,null,null,0,{"$error":"#DIV/0!"}]
[null,null,null,null,null,null,null,null,null,null,null,null,null,null,null,null,null,null,null,null,null,null,0,{"$error":"#DIV/0!"}]
[null,null,null,null,null,null,null,null,null,null,null,null,null,null,null,null,null,null,null,null,null,null,0,{"$error":"#DIV/0!"}]
[null,null,null,null,null,null,null,null,null,null,null,null,null,null,null,null,null,null,null,null,null,null,0,{"$error":"#DIV/0!"}]
[null,null,null,null,null,null,null,null,null,null,null,null,null,null,null,null,null,null,null,null,null,null,0,{"$error":"#DIV/0!"}]
[null,null,null,null,null,null,null,null,null,null,null,null,null,null,null,null,null,null,null,null,null,null,0,{"$error":"#DIV/0!"}]
[null,null,null,null,null,null,null,null,null,null,null,null,null,null,null,null,null,null,null,null,null,null,0,{"$error":"#DIV/0!"}]
[null,null,null,null,null,null,null,null,null,null,null,null,null,null,null,null,null,null,null,null,null,null,0,{"$error":"#DIV/0!"}]
[null,null,null,null,null,null,null,null,null,null,null,null,null,null,null,null,null,null,null,null,null,null,0,{"$error":"#DIV/0!"}]
[null,null,null,null,null,null,null,null,null,null,null,null,null,null,null,null,null,null,null,null,null,null,0,{"$error":"#DIV/0!"}]
[3,"Project Website",null,null,null,null,null,null,null,null,null,null,null,null,null,null,null,null,null,null,null,null,"",""]
[null,"Submit request for project website or PublicInput.com site",null,null,null,null,null,null,null,null,null,null,null,null,null,null,null,null,null,null,null,null,"",""]
[null,"Provide updates at project milestones",null,null,null,null,null,null,null,null,null,null,null,null,null,null,null,null,null,null,null,null,"",""]
[null,null,null,null,null,null,null,null,null,null,null,null,null,null,null,null,null,null,null,null,null,null,0,{"$error":"#DIV/0!"}]
[null,null,null,null,null,null,null,null,null,null,null,null,null,null,null,null,null,null,null,null,null,null,0,{"$error":"#DIV/0!"}]
[null,null,null,null,null,null,null,null,null,null,null,null,null,null,null,null,null,null,null,null,null,null,0,{"$error":"#DIV/0!"}]
[null,null,null,null,null,null,null,null,null,null,null,null,null,null,null,null,null,null,null,null,null,null,0,{"$error":"#DIV/0!"}]
[null,null,null,null,null,null,null,null,null,null,null,null,null,null,null,null,null,null,null,null,null,null,0,{"$error":"#DIV/0!"}]
[null,null,null,null,null,null,null,null,null,null,null,null,null,null,null,null,null,null,null,null,null,null,0,{"$error":"#DIV/0!"}]
[null,null,null,null,null,null,null,null,null,null,null,null,null,null,null,null,null,null,null,null,null,null,0,{"$error":"#DIV/0!"}]
[null,null,null,null,null,null,null,null,null,null,null,null,null,null,null,null,null,null,null,null,null,null,0,{"$error":"#DIV/0!"}]
[null,null,null,null,null,null,null,null,null,null,null,null,null,null,null,null,null,null,null,null,null,null,0,{"$error":"#DIV/0!"}]
[null,null,null,null,null,null,null,null,null,null,null,null,null,null,null,null,null,null,null,null,null,null,0,{"$error":"#DIV/0!"}]
[null,null,null,null,null,null,null,null,null,null,null,null,null,null,null,null,null,null,null,null,null,null,0,{"$error":"#DIV/0!"}]
[null,null,null,null,null,null,null,null,null,null,null,null,null,null,null,null,null,null,null,null,null,null,0,{"$error":"#DIV/0!"}]
[null,null,null,null,null,null,null,null,null,null,null,null,null,null,null,null,null,null,null,null,null,null,0,{"$error":"#DIV/0!"}]
[null,null,null,null,null,null,null,null,null,null,null,null,null,null,null,null,null,null,null,null,null,null,0,{"$error":"#DIV/0!"}]
[4,"Newsletter/Postcards",null,null,null,null,null,null,null,null,null,null,null,null,null,null,null,null,null,null,null,null,"",""]
[null,"Prepare and submit draft Newsletter/Postcard (using NCDOT templates)",null,null,null,null,null,null,null,null,null,null,null,null,null,null,null,null,null,null,null,null,"",""]
[null,"Revise and resubmit Newsletter/Postcard for approval",null,null,null,null,null,null,null,null,null,null,null,null,null,null,null,null,null,null,null,null,"",""]
[null,"Reproduce and distribute approved Newsletter /Postcard (insert #copies)",null,null,null,null,null,null,null,null,null,null,null,null,null,null,null,null,null,null,null,null,"",""]
[null,null,null,null,null,null,null,null,null,null,null,null,null,null,null,null,null,null,null,null,null,null,0,{"$error":"#DIV/0!"}]
[null,null,null,null,null,null,null,null,null,null,null,null,null,null,null,null,null,null,null,null,null,null,0,{"$error":"#DIV/0!"}]
[null,null,null,null,null,null,null,null,null,null,null,null,null,null,null,null,null,null,null,null,null,null,0,{"$error":"#DIV/0!"}]
[null,null,null,null,null,null,null,null,null,null,null,null,null,null,null,null,null,null,null,null,null,null,{"$f":"IF(B77=\"\",0,IF((SUM(D77:V77)=0),\"\",SUM(D77:V77)))","v":0},{"$f":"IF(W77=\"\",\"\",SUM((W77/$W$205)))","v":{"$error":"#DIV/0!"}}]
[null,null,null,null,null,null,null,null,null,null,null,null,null,null,null,null,null,null,null,null,null,null,0,{"$error":"#DIV/0!"}]
[null,null,null,null,null,null,null,null,null,null,null,null,null,null,null,null,null,null,null,null,null,null,0,{"$error":"#DIV/0!"}]
[null,null,null,null,null,null,null,null,null,null,null,null,null,null,null,null,null,null,null,null,null,null,0,{"$error":"#DIV/0!"}]
[null,null,null,null,null,null,null,null,null,null,null,null,null,null,null,null,null,null,null,null,null,null,0,{"$error":"#DIV/0!"}]
[null,null,null,null,null,null,null,null,null,null,null,null,null,null,null,null,null,null,null,null,null,null,0,{"$error":"#DIV/0!"}]
[null,null,null,null,null,null,null,null,null,null,null,null,null,null,null,null,null,null,null,null,null,null,0,{"$error":"#DIV/0!"}]
[null,null,null,null,null,null,null,null,null,null,null,null,null,null,null,null,null,null,null,null,null,null,0,{"$error":"#DIV/0!"}]
[5,"Public Meeting(s)/Hearing(s)",null,null,null,null,null,null,null,null,null,null,null,null,null,null,null,null,null,null,null,null,"",""]
[null,"In-person Open House  (X hr meeting) ",null,null,null,null,null,null,null,null,null,null,null,null,null,null,null,null,null,null,null,null,"",""]
[null,"Virtual Meeting (X  hr meeting)",null,null,null,null,null,null,null,null,null,null,null,null,null,null,null,null,null,null,null,null,"",""]
[null,"Formal Presentation",null,null,null,null,null,null,null,null,null,null,null,null,null,null,null,null,null,null,null,null,"",""]
[null,"Submit meeting request via ETRACS (6 weeks prior to meeting date)",null,null,null,null,null,null,null,null,null,null,null,null,null,null,null,null,null,null,null,null,"",""]
[null,"Coordinate with NCDOT PI and Division on venue and dates ",null,null,null,null,null,null,null,null,null,null,null,null,null,null,null,null,null,null,null,null,"",""]
[null,"Prepare and submit public meeting maps",null,null,null,null,null,null,null,null,null,null,null,null,null,null,null,null,null,null,null,null,"",""]
[null,"Schedule and attend map review meeting",null,null,null,null,null,null,null,null,null,null,null,null,null,null,null,null,null,null,null,null,"",""]
[null,"Revise and resubmit public meeting maps",null,null,null,null,null,null,null,null,null,null,null,null,null,null,null,null,null,null,null,null,"",""]
[null,"Prepare and submit draft public meeting handout",null,null,null,null,null,null,null,null,null,null,null,null,null,null,null,null,null,null,null,null,"",""]
[null,"Revise and resubmit public meeting handout for approval",null,null,null,null,null,null,null,null,null,null,null,null,null,null,null,null,null,null,null,null,"",""]
[null,"Reproduce public meeting handout (insert # copies)",null,null,null,null,null,null,null,null,null,null,null,null,null,null,null,null,null,null,null,null,"",""]
[null,"Prepare and submit draft public meeting displays",null,null,null,null,null,null,null,null,null,null,null,null,null,null,null,null,null,null,null,null,"",""]
[null,"Revise and resubmit public meeting displays",null,null,null,null,null,null,null,null,null,null,null,null,null,null,null,null,null,null,null,null,"",""]
[null,"Provide digital copies of handout, displays, and public meeting maps to NCDOT PI for web posting",null,null,null,null,null,null,null,null,null,null,null,null,null,null,null,null,null,null,null,null,"",""]
[null,null,null,null,null,null,null,null,null,null,null,null,null,null,null,null,null,null,null,null,null,null,0,{"$error":"#DIV/0!"}]
[null,null,null,null,null,null,null,null,null,null,null,null,null,null,null,null,null,null,null,null,null,null,0,{"$error":"#DIV/0!"}]
[null,null,null,null,null,null,null,null,null,null,null,null,null,null,null,null,null,null,null,null,null,null,0,{"$error":"#DIV/0!"}]
[null,null,null,null,null,null,null,null,null,null,null,null,null,null,null,null,null,null,null,null,null,null,0,{"$error":"#DIV/0!"}]
[null,null,null,null,null,null,null,null,null,null,null,null,null,null,null,null,null,null,null,null,null,null,0,{"$error":"#DIV/0!"}]
[null,null,null,null,null,null,null,null,null,null,null,null,null,null,null,null,null,null,null,null,null,null,0,{"$error":"#DIV/0!"}]
[null,null,null,null,null,null,null,null,null,null,null,null,null,null,null,null,null,null,null,null,null,null,0,{"$error":"#DIV/0!"}]
[6,"Local Officials Information Meeting (LOIM)",null,null,null,null,null,null,null,null,null,null,null,null,null,null,null,null,null,null,null,null,"",""]
[null,"Coordinate with NCDOT PI on schedule and invitees",null,null,null,null,null,null,null,null,null,null,null,null,null,null,null,null,null,null,null,null,"",""]
[null,"Prepare and submit draft LOIM Invitation letter",null,null,null,null,null,null,null,null,null,null,null,null,null,null,null,null,null,null,null,null,"",""]
[null,"Revise and resubmit LOIM Invitation letter for approval",null,null,null,null,null,null,null,null,null,null,null,null,null,null,null,null,null,null,null,null,"",""]
[null,"Prepare and submit draft PowerPoint presentation",null,null,null,null,null,null,null,null,null,null,null,null,null,null,null,null,null,null,null,null,"",""]
[null,"Revise and resubmit PowerPoint presentation",null,null,null,null,null,null,null,null,null,null,null,null,null,null,null,null,null,null,null,null,"",""]
[null,"Prepare and submit draft local officials meeting handout (only when no public meeting is held)",null,null,null,null,null,null,null,null,null,null,null,null,null,null,null,null,null,null,null,null,"",""]
[null,"Revise and resubmit local officials meeting handout for approval",null,null,null,null,null,null,null,null,null,null,null,null,null,null,null,null,null,null,null,null,"",""]
[null,"Prepare and submit draft and final meeting summary",null,null,null,null,null,null,null,null,null,null,null,null,null,null,null,null,null,null,null,null,"",""]
[null,null,null,null,null,null,null,null,null,null,null,null,null,null,null,null,null,null,null,null,null,null,0,{"$error":"#DIV/0!"}]
[null,null,null,null,null,null,null,null,null,null,null,null,null,null,null,null,null,null,null,null,null,null,0,{"$error":"#DIV/0!"}]
[null,null,null,null,null,null,null,null,null,null,null,null,null,null,null,null,null,null,null,null,null,null,0,{"$error":"#DIV/0!"}]
[null,null,null,null,null,null,null,null,null,null,null,null,null,null,null,null,null,null,null,null,null,null,0,{"$error":"#DIV/0!"}]
[null,null,null,null,null,null,null,null,null,null,null,null,null,null,null,null,null,null,null,null,null,null,0,{"$error":"#DIV/0!"}]
[null,null,null,null,null,null,null,null,null,null,null,null,null,null,null,null,null,null,null,null,null,null,0,{"$error":"#DIV/0!"}]
[null,null,null,null,null,null,null,null,null,null,null,null,null,null,null,null,null,null,null,null,null,null,0,{"$error":"#DIV/0!"}]
[null,null,null,null,null,null,null,null,null,null,null,null,null,null,null,null,null,null,null,null,null,null,0,{"$error":"#DIV/0!"}]
[null,null,null,null,null,null,null,null,null,null,null,null,null,null,null,null,null,null,null,null,null,null,0,{"$error":"#DIV/0!"}]
[null,null,null,null,null,null,null,null,null,null,null,null,null,null,null,null,null,null,null,null,null,null,0,{"$error":"#DIV/0!"}]
[null,null,null,null,null,null,null,null,null,null,null,null,null,null,null,null,null,null,null,null,null,null,0,{"$error":"#DIV/0!"}]
[null,null,null,null,null,null,null,null,null,null,null,null,null,null,null,null,null,null,null,null,null,null,0,{"$error":"#DIV/0!"}]
[7,"Public Comments",null,null,null,null,null,null,null,null,null,null,null,null,null,null,null,null,null,null,null,null,"",""]
[null,"Collect public comments",null,null,null,null,null,null,null,null,null,null,null,null,null,null,null,null,null,null,null,null,"",""]
[null,"Compile comments in a database and prepare draft responses as needed (export from PublicInput.com site)",null,null,null,null,null,null,null,null,null,null,null,null,null,null,null,null,null,null,null,null,"",""]
[null,"Submit draft database and responses",null,null,null,null,null,null,null,null,null,null,null,null,null,null,null,null,null,null,null,null,"",""]
[null,"Revise and resubmit database and responses",null,null,null,null,null,null,null,null,null,null,null,null,null,null,null,null,null,null,null,null,"",""]
[null,"Prepare for and attend post-public meeting/hearing meeting",null,null,null,null,null,null,null,null,null,null,null,null,null,null,null,null,null,null,null,null,"",""]
[null,null,null,null,null,null,null,null,null,null,null,null,null,null,null,null,null,null,null,null,null,null,0,{"$error":"#DIV/0!"}]
[null,null,null,null,null,null,null,null,null,null,null,null,null,null,null,null,null,null,null,null,null,null,0,{"$error":"#DIV/0!"}]
[null,null,null,null,null,null,null,null,null,null,null,null,null,null,null,null,null,null,null,null,null,null,0,{"$error":"#DIV/0!"}]
[null,null,null,null,null,null,null,null,null,null,null,null,null,null,null,null,null,null,null,null,null,null,0,{"$error":"#DIV/0!"}]
[null,null,null,null,null,null,null,null,null,null,null,null,null,null,null,null,null,null,null,null,null,null,0,{"$error":"#DIV/0!"}]
[null,null,null,null,null,null,null,null,null,null,null,null,null,null,null,null,null,null,null,null,null,null,0,{"$error":"#DIV/0!"}]
[null,null,null,null,null,null,null,null,null,null,null,null,null,null,null,null,null,null,null,null,null,null,0,{"$error":"#DIV/0!"}]
[null,null,null,null,null,null,null,null,null,null,null,null,null,null,null,null,null,null,null,null,null,null,{"$f":"IF(B141=\"\",0,IF((SUM(D141:V141)=0),\"\",SUM(D141:V141)))","v":0},{"$f":"IF(W141=\"\",\"\",SUM((W141/$W$205)))","v":{"$error":"#DIV/0!"}}]
[null,null,null,null,null,null,null,null,null,null,null,null,null,null,null,null,null,null,null,null,null,null,0,{"$error":"#DIV/0!"}]
[8,"Public Engagement Summary",null,null,null,null,null,null,null,null,null,null,null,null,null,null,null,null,null,null,null,null,"",""]
[null,"Prepare and submit draft public engagement summary, including comment summary and responses using NCDOT template",null,null,null,null,null,null,null,null,null,null,null,null,null,null,null,null,null,null,null,null,"",""]
[null,"Revise and resubmit public engagement summary",null,null,null,null,null,null,null,null,null,null,null,null,null,null,null,null,null,null,null,null,"",""]
[null,null,null,null,null,null,null,null,null,null,null,null,null,null,null,null,null,null,null,null,null,null,0,{"$error":"#DIV/0!"}]
[null,null,null,null,null,null,null,null,null,null,null,null,null,null,null,null,null,null,null,null,null,null,0,{"$error":"#DIV/0!"}]
[null,null,null,null,null,null,null,null,null,null,null,null,null,null,null,null,null,null,null,null,null,null,0,{"$error":"#DIV/0!"}]
[null,null,null,null,null,null,null,null,null,null,null,null,null,null,null,null,null,null,null,null,null,null,0,{"$error":"#DIV/0!"}]
[null,null,null,null,null,null,null,null,null,null,null,null,null,null,null,null,null,null,null,null,null,null,0,{"$error":"#DIV/0!"}]
[null,null,null,null,null,null,null,null,null,null,null,null,null,null,null,null,null,null,null,null,null,null,0,{"$error":"#DIV/0!"}]
[null,null,null,null,null,null,null,null,null,null,null,null,null,null,null,null,null,null,null,null,null,null,0,{"$error":"#DIV/0!"}]
[null,null,null,null,null,null,null,null,null,null,null,null,null,null,null,null,null,null,null,null,null,null,0,{"$error":"#DIV/0!"}]
[null,null,null,null,null,null,null,null,null,null,null,null,null,null,null,null,null,null,null,null,null,null,0,{"$error":"#DIV/0!"}]
[null,null,null,null,null,null,null,null,null,null,null,null,null,null,null,null,null,null,null,null,null,null,0,{"$error":"#DIV/0!"}]
[null,null,null,null,null,null,null,null,null,null,null,null,null,null,null,null,null,null,null,null,null,null,0,{"$error":"#DIV/0!"}]
[null,null,null,null,null,null,null,null,null,null,null,null,null,null,null,null,null,null,null,null,null,null,0,{"$error":"#DIV/0!"}]
[null,null,null,null,null,null,null,null,null,null,null,null,null,null,null,null,null,null,null,null,null,null,0,{"$error":"#DIV/0!"}]
[null,null,null,null,null,null,null,null,null,null,null,null,null,null,null,null,null,null,null,null,null,null,0,{"$error":"#DIV/0!"}]
[null,null,null,null,null,null,null,null,null,null,null,null,null,null,null,null,null,null,null,null,null,null,0,{"$error":"#DIV/0!"}]
[null,null,null,null,null,null,null,null,null,null,null,null,null,null,null,null,null,null,null,null,null,null,0,{"$error":"#DIV/0!"}]
[null,null,null,null,null,null,null,null,null,null,null,null,null,null,null,null,null,null,null,null,null,null,0,{"$error":"#DIV/0!"}]
[null,null,null,null,null,null,null,null,null,null,null,null,null,null,null,null,null,null,null,null,null,null,0,{"$error":"#DIV/0!"}]
[null,null,null,null,null,null,null,null,null,null,null,null,null,null,null,null,null,null,null,null,null,null,0,{"$error":"#DIV/0!"}]
[null,null,null,null,null,null,null,null,null,null,null,null,null,null,null,null,null,null,null,null,null,null,0,{"$error":"#DIV/0!"}]
[null,null,null,null,null,null,null,null,null,null,null,null,null,null,null,null,null,null,null,null,null,null,0,{"$error":"#DIV/0!"}]
[null,null,null,null,null,null,null,null,null,null,null,null,null,null,null,null,null,null,null,null,null,null,0,{"$error":"#DIV/0!"}]
[null,null,null,null,null,null,null,null,null,null,null,null,null,null,null,null,null,null,null,null,null,null,0,{"$error":"#DIV/0!"}]
[null,null,null,null,null,null,null,null,null,null,null,null,null,null,null,null,null,null,null,null,null,null,0,{"$error":"#DIV/0!"}]
[9,"Project Visualizations ",null,null,null,null,null,null,null,null,null,null,null,null,null,null,null,null,null,null,null,null,"",""]
[null,"Renderings (digital static image)",null,null,null,null,null,null,null,null,null,null,null,null,null,null,null,null,null,null,null,null,"",""]
[null,"Level I ",null,null,null,null,null,null,null,null,null,null,null,null,null,null,null,null,null,null,null,null,"",""]
[null,"Level II",null,null,null,null,null,null,null,null,null,null,null,null,null,null,null,null,null,null,null,null,"",""]
[null,"Level III",null,null,null,null,null,null,null,null,null,null,null,null,null,null,null,null,null,null,null,null,"",""]
[null,"Animations (video with motion)",null,null,null,null,null,null,null,null,null,null,null,null,null,null,null,null,null,null,null,null,"",""]
[null,"Level I",null,null,null,null,null,null,null,null,null,null,null,null,null,null,null,null,null,null,null,null,"",""]
[null,"Level II",null,null,null,null,null,null,null,null,null,null,null,null,null,null,null,null,null,null,null,null,"",""]
[null,"Level III",null,null,null,null,null,null,null,null,null,null,null,null,null,null,null,null,null,null,null,null,"",""]
[null,"Level IV",null,null,null,null,null,null,null,null,null,null,null,null,null,null,null,null,null,null,null,null,"",""]
[null,"Level V",null,null,null,null,null,null,null,null,null,null,null,null,null,null,null,null,null,null,null,null,"",""]
[null,"Level VI",null,null,null,null,null,null,null,null,null,null,null,null,null,null,null,null,null,null,null,null,"",""]
[null,"Level VII",null,null,null,null,null,null,null,null,null,null,null,null,null,null,null,null,null,null,null,null,"",""]
[null,"Video Production",null,null,null,null,null,null,null,null,null,null,null,null,null,null,null,null,null,null,null,null,"",""]
[null,"Level I",null,null,null,null,null,null,null,null,null,null,null,null,null,null,null,null,null,null,null,null,"",""]
[null,"Level II",null,null,null,null,null,null,null,null,null,null,null,null,null,null,null,null,null,null,null,null,"",""]
[null,"Virtual 3D Models",null,null,null,null,null,null,null,null,null,null,null,null,null,null,null,null,null,null,null,null,"",""]
[null,null,null,null,null,null,null,null,null,null,null,null,null,null,null,null,null,null,null,null,null,null,0,{"$error":"#DIV/0!"}]
[null,null,null,null,null,null,null,null,null,null,null,null,null,null,null,null,null,null,null,null,null,null,0,{"$error":"#DIV/0!"}]
[10,"Task Management",null,null,null,null,null,null,null,null,null,null,null,null,null,null,null,null,null,null,null,null,"",""]
[null,null,null,null,null,null,null,null,null,null,null,null,null,null,null,null,null,null,null,null,null,null,0,{"$error":"#DIV/0!"}]
[null,null,null,null,null,null,null,null,null,null,null,null,null,null,null,null,null,null,null,null,null,null,0,{"$error":"#DIV/0!"}]
[null,null,null,null,null,null,null,null,null,null,null,null,null,null,null,null,null,null,null,null,null,null,0,{"$error":"#DIV/0!"}]
[null,null,null,null,null,null,null,null,null,null,null,null,null,null,null,null,null,null,null,null,null,null,0,{"$error":"#DIV/0!"}]
[11,"Complete QA/QC Procedures ",null,null,null,null,null,null,null,null,null,null,null,null,null,null,null,null,null,null,null,null,"",""]
[null,"Other Tasks: (i.e. small group meetings)",null,null,null,null,null,null,null,null,null,null,null,null,null,null,null,null,null,null,null,null,"",""]
[null,null,null,null,null,null,null,null,null,null,null,null,null,null,null,null,null,null,null,null,null,null,0,{"$error":"#DIV/0!"}]
[null,null,null,null,null,null,null,null,null,null,null,null,null,null,null,null,null,null,null,null,null,null,0,{"$error":"#DIV/0!"}]
[null,null,null,null,null,null,null,null,null,null,null,null,null,null,null,null,null,null,null,null,null,null,0,{"$error":"#DIV/0!"}]
[null,null,null,null,null,null,null,null,null,null,null,null,null,null,null,null,null,null,null,null,null,null,0,{"$error":"#DIV/0!"}]
[null,null,null,null,null,null,null,null,null,null,null,null,null,null,null,null,null,null,null,null,null,null,0,{"$error":"#DIV/0!"}]
[null,null,null,null,null,null,null,null,null,null,null,null,null,null,null,null,null,null,null,null,null,null,0,{"$error":"#DIV/0!"}]
[null,null,null,null,null,null,null,null,null,null,null,null,null,null,null,null,null,null,null,null,null,null,0,{"$error":"#DIV/0!"}]
[null,null,null,null,null,null,null,null,null,null,null,null,null,null,null,null,null,null,null,null,null,null,0,{"$error":"#DIV/0!"}]
[null,null,null,null,null,null,null,null,null,null,null,null,null,null,null,null,null,null,null,null,null,null,0,{"$error":"#DIV/0!"}]
[null,"TOTAL WORKDAYS/CATEGORY:",null,{"$f":"SUM(D12:D204)","v":0},0,0,0,0,0,0,0,0,0,0,0,0,0,0,0,0,0,0,0,{"$error":"#DIV/0!"},0]
[null,"HOURLY SALARY RATE:",null,{"$f":"'PEF CLASSIFICATION SHEET'!$E673","v":0},{"$f":"'PEF CLASSIFICATION SHEET'!$E674","v":0},{"$f":"'PEF CLASSIFICATION SHEET'!$E675","v":0},{"$f":"'PEF CLASSIFICATION SHEET'!$E676","v":0},{"$f":"'PEF CLASSIFICATION SHEET'!$E677","v":0},{"$f":"'PEF CLASSIFICATION SHEET'!$E678","v":0},{"$f":"'PEF CLASSIFICATION SHEET'!$E679","v":0},{"$f":"'PEF CLASSIFICATION SHEET'!$E680","v":0},{"$f":"'PEF CLASSIFICATION SHEET'!$E681","v":0},{"$f":"'PEF CLASSIFICATION SHEET'!$E682","v":0},{"$f":"'PEF CLASSIFICATION SHEET'!$E683","v":0},{"$f":"'PEF CLASSIFICATION SHEET'!$E684","v":0},{"$f":"'PEF CLASSIFICATION SHEET'!$E685","v":0},{"$f":"'PEF CLASSIFICATION SHEET'!$E686","v":0},{"$f":"'PEF CLASSIFICATION SHEET'!$E687","v":0},{"$f":"'PEF CLASSIFICATION SHEET'!E688","v":0},{"$f":"'PEF CLASSIFICATION SHEET'!E689","v":0},{"$f":"'PEF CLASSIFICATION SHEET'!E690","v":0},{"$f":"'PEF CLASSIFICATION SHEET'!E691","v":0}]
[null,"RATES PER DAY:",null,{"$f":"D206*8","v":0},0,0,0,0,0,0,0,0,0,0,0,0,0,0,0,0,0,0]
[null,"PAYROLL BURDEN:",null,{"$f":"SUM(D205*D207)","v":0},0,0,0,0,0,0,0,0,0,0,0,0,0,0,0,0,0,0]
[null,"TOTAL WORKDAYS:",null,{"$f":"SUM(D205:V205)","v":0}]
[null,"TOTAL PAYROLL BURDEN:",null,{"$f":"SUM(D208:V208)","v":0}]
[null,"AVERAGE COST PER HOUR:",null,{"$f":"SUM(D210/(D209*8))","v":{"$error":"#DIV/0!"}}]
[null,"GENERAL OVERHEAD:",{"$f":"PDEA_HEU_PUBLIC_INVOLVEMENT_SUB2_CONSULTANT_OVERHEAD","v":0},{"$f":"SUM(D210*C212)","v":0}]
[null,"SUBTOTAL:",null,{"$f":"SUM(D210+D212)","v":0}]
[null,"COMPARATIVE FEE:",{"$f":"PDEA_HEU_PUBLIC_INVOLVEMENT_SUB2_CONSULTANT_FEE","v":0.09},{"$f":"SUM(D213*C214)","v":0}]
[null,"FACILITIES COST OF CAPITAL:",{"$f":"PDEA_HEU_PUBLIC_INVOLVEMENT_SUB2_CONSULTANT_COSTofCAPITAL","v":0},{"$f":"SUM(D210*C215)","v":0}]
[null,"TOTAL:",null,{"$f":"SUM(D213:D215)","v":0}]
[null,"DIRECT EXPENSES:",null,{"$f":"PDEA_HEU_PUBLIC_INVOLVEMENT_SUB2_DIRECT_NONSALARY_TOTAL","v":0}]
[null,"PUBLIC INVOLVEMENT GRAND TOTAL:",null,{"$f":"SUM(D216:D217)","v":0}]
[]
[]
[]
[null,"Costs",null,"Workdays",null,null,null,null,"Dollars"]
[null,null,null,"EN Public Involvement","PEF","Delta ","Delta %",null,"EN Public Involvement",null,"PEF",null,"Delta ","Delta %"]
[null,null,null,null,null,{"$f":"SUM(E224-D224)","v":0},{"$f":"SUM((F224/D224)*100)","v":{"$error":"#DIV/0!"}},null,null,null,null,null,{"$f":"SUM(K224-I224)","v":0},{"$f":"SUM((M224/I224)*100)","v":{"$error":"#DIV/0!"}}]
[]
[]
[null,null,null,null,null,null,null,"Directs","Dollars"]
[null,null,null,null,null,null,null,null,"EN Public Involvement",null,"PEF",null,"Delta ","Delta %"]
[null,null,null,null,null,null,null,null,null,null,null,null,{"$f":"SUM(K229-I229)","v":0},{"$f":"SUM((M229/I229)*100)","v":{"$error":"#DIV/0!"}}]

{"sheet":"EN-PI-Exp-Sub2","index":85,"n_rows":100,"n_cols":8,"rows_kept":100,"cut":false,"hidden":true,"merged":[[6,1,6,3],[6,4,6,6],[0,0,0,7],[2,1,2,3],[3,1,3,7],[4,1,4,3],[4,6,4,7],[5,1,5,3],[5,5,5,7]]}
["PUBLIC INVOLVEMENT DIRECT EXPENSES - SUBCONSULTANT 2"]
[]
["FIRM:",{"$f":"'EN-PI-Sub2'!G3","v":"CONSULTANT NAME"}]
["PROJECT DESCRIPTION: ",{"$f":"PROJECT.DESCRIPTION","v":0}]
["PREPARED BY:  ",{"$f":"PUBLIC.INVOLVEMENT.SUB2.PREPARED.BY","v":""},null,null,"TASK ORDER NUMBER:",null,{"$f":"TASK.ORDER.NUMBER","v":0}]
["TIP NUMBER:",{"$f":"TIP.NUMBER","v":0},null,null,"WBS NUMBER:",{"$f":"WBS.NUMBER","v":""}]
["DATE PREPARED:",{"$f":"IF('EN-PI-Sub2'!N3=\"\",\"\",MAX('EN-PI-Sub2'!N3:'EN-PI-Sub2'!N4))","v":""},null,null,"REVIEWED BY UNIT HEAD ON:",null,null,{"$f":"IF(SCOPE.MANDAY.ESTIMATE.APPROVED.BY.DATE=\"\",\"\",SCOPE.MANDAY.ESTIMATE.APPROVED.BY.DATE)","v":""}]
["GENERAL PROJECT WORK:","ITEM","QTY","DESCRIPTION",null,null,"UNIT COST "]
[null,"Travel:"]
[null,"Sedan",null,"Trip(s) @",null,"miles @",{"$f":"SEDAN","v":0.7},{"$f":"SUM(C10*E10*G10)","v":0}]
[null,"Carry All",null,"Trip(s) @",null,"miles @",{"$f":"CARRYALL","v":0.72},{"$f":"SUM(C11*E11*G11)","v":0}]
[null,"Car Rental",null,null,null,"days @ ",{"$f":"CARRENTAL","v":50},{"$f":"SUM(E12*G12)","v":0}]
[null,"Gas for Rental",null,null,null,"miles @",{"$f":"GASforRENTAL","v":0.2},{"$f":"SUM(E13*G13)","v":0}]
[null,"Parking:",null,"Trip(s) @",null,null,{"$f":"PARKING","v":3},{"$f":"SUM(C14*G14)","v":0}]
[null,"Per Diem:",null,"Breakfast",null,null,{"$f":"BREAKFAST","v":10.1},{"$f":"SUM(C15*G15)","v":0}]
[null,null,null,"Lunch",null,null,{"$f":"LUNCH","v":13.3},0]
[null,null,null,"Dinner",null,null,{"$f":"DINNER","v":23.1},0]
[null,null,null,"Lodging",null,null,{"$f":"LODGING_LUMP.SUM","v":95},0]
[null,"Reproduction:",null,"8 1/2 x 11 B & W Copies @",null,null,{"$f":"LETTERCOPIES","v":0.14000000000000001},0]
[null,null,null,"11 x 17 B & W Copies @",null,null,{"$f":"LEDGERCOPIES","v":0.34},0]
[null,null,null,"8 1/2 x 11 Color Copies @",null,null,{"$f":"LETTERCOLOR","v":0.83},0]
[null,null,null,"11 x 17 Color Copies @",null,null,{"$f":"LEDGERCOLOR","v":1.66},0]
[null,null,null,"SQ. FT. of Plots (B & W or Color)",null,"<65 SQ. FT.*",{"$f":"ROLLPLOTSshort","v":6.5},0]
[null,null,null,"SQ. FT. of Plots (B & W or Color)",null,">65 SQ. FT.*",{"$f":"ROLLPLOTSlong","v":1.5},0]
[null,null,null,"Cover(s) @",null,null,{"$f":"COVERS","v":0.5},0]
[null,null,null,"Binder(s) @",null,null,{"$f":"BINDERS","v":0.5},0]
[null,null,null,"Blueprints - 8 1/2 x 11 @",null,null,{"$f":"BLUEPRINTSLETTER","v":0.35},0]
[null,null,null,"Blueprints - 42 x 72 @",null,null,{"$f":"BLUEPRINTSLARGE","v":1.3},0]
[null,"Film and Developing:",null,"Roll(s) @",null,null,{"$f":"FILM","v":20},0]
[null,null,null,null,null,"Subtotal",null,{"$f":"SUM(H10:H29)","v":0}]
["MAPS AND DOCUMENTS:","ITEM","QTY","DESCRIPTION",null,null,"UNIT COST "]
[null,"County Tax Maps:",null,"Map(s) @",null,null,{"$f":"County_Tax_Maps","v":7},{"$f":"SUM(C32*G32)","v":0}]
[null,"USGS Maps:",null,"Map(s) @",null,null,{"$f":"USGSMAPS","v":7},{"$f":"SUM(C33*G33)","v":0}]
[null,null,null,null,null,"Subtotal",null,{"$f":"SUM(H32:H33)","v":0}]
["TECHNICAL REPORTS:","ITEM","QTY","DESCRIPTION",null,null,"UNIT COST "]
[null,"Reproduction:",null,"8 1/2 x 11 B & W Copies @",null,null,{"$f":"LETTERCOPIES","v":0.14000000000000001},{"$f":"SUM(C36*G36)","v":0}]
[null,null,null,"11 x 17 B & W Copies @",null,null,{"$f":"LEDGERCOPIES","v":0.34},0]
[null,null,null,"8 1/2 x 11 Color Copies @",null,null,{"$f":"LETTERCOLOR","v":0.83},0]
[null,null,null,"11 x 17 Color Copies @",null,null,{"$f":"LEDGERCOLOR","v":1.66},0]
[null,null,null,"SQ. FT. of Plots (B & W or Color)",null,"<65 SQ. FT.*",{"$f":"ROLLPLOTSshort","v":6.5},0]
[null,null,null,"SQ. FT. of Plots (B & W or Color)",null,">65 SQ. FT.*",{"$f":"ROLLPLOTSlong","v":1.5},0]
[null,null,null,"Cover(s) @",null,null,{"$f":"COVERS","v":0.5},0]
[null,null,null,"Binder(s) @",null,null,{"$f":"BINDERS","v":0.5},0]
[null,null,null,null,null,"Subtotal",null,{"$f":"SUM(H36:H43)","v":0}]
["DESIGN:","ITEM","QTY","DESCRIPTION",null,null,"UNIT COST "]
[null,"Reproduction:",null,"8 1/2 x 11 B & W Copies @",null,null,{"$f":"LETTERCOPIES","v":0.14000000000000001},{"$f":"SUM(C46*G46)","v":0}]
[null,null,null,"11 x 17 B & W Copies @",null,null,{"$f":"LEDGERCOPIES","v":0.34},0]
[null,null,null,"Blueprints - 8 1/2 x 11 @",null,null,{"$f":"BLUEPRINTSLETTER","v":0.35},0]
[null,null,null,"Mylar - 8 1/2 x 11 @",null,null,{"$f":"MYLARSLETTER","v":7.32},0]
[null,null,null,"Mylar - 36 x 48 @",null,null,{"$f":"MYLARSLARGE","v":28.12},0]
[null,null,null,"Prints  - 24 x 36 @",null,null,{"$f":"PRINTSLARGE","v":3},0]
[null,null,null,"Blueprints - 42 x 72 @",null,null,{"$f":"BLUEPRINTSLARGE","v":1.3},0]
[null,null,null,"SQ. FT. of Plots (B & W or Color)",null,"<65 SQ. FT.*",{"$f":"ROLLPLOTSshort","v":6.5},0]
[null,null,null,"SQ. FT. of Plots (B & W or Color)",null,">65 SQ. FT.*",{"$f":"ROLLPLOTSlong","v":1.5},0]
[null,null,null,"USGS Map(s)",null,null,{"$f":"USGSMAPS","v":7},0]
[null,null,null,null,null,"Subtotal",null,{"$f":"SUM(H46:H55)","v":0}]
["MEETINGS & PUBLIC INVOLVEMENT:","ITEM","QTY","DESCRIPTION",null,null,"UNIT COST "]
[null,"Travel:"]
[null,"Sedan",null,"Trip(s) @",null,"miles @",{"$f":"SEDAN","v":0.7},{"$f":"SUM(C59*E59*G59)","v":0}]
[null,"CarryAll",null,"Trip(s) @",null,"miles @",{"$f":"CARRYALL","v":0.72},{"$f":"SUM(C60*E60*G60)","v":0}]
[null,"Car Rental",null,null,null,"days @",{"$f":"CARRENTAL","v":50},{"$f":"SUM(E61*G61)","v":0}]
[null,"Gas for Rental",null,null,null,"miles @",{"$f":"GASforRENTAL","v":0.2},{"$f":"SUM(E62*G62)","v":0}]
[null,"Parking:",null,"Trip(s) @",null,null,{"$f":"PARKING","v":3},{"$f":"SUM(C63*G63)","v":0}]
[null,"Per Diem:",null,"Breakfast",null,null,{"$f":"BREAKFAST","v":10.1},{"$f":"SUM(C64*G64)","v":0}]
[null,null,null,"Lunch",null,null,{"$f":"LUNCH","v":13.3},{"$f":"SUM(C65*G65)","v":0}]
[null,null,null,"Dinner",null,null,{"$f":"DINNER","v":23.1},{"$f":"SUM(C66*G66)","v":0}]
[null,null,null,"Lodging",null,null,{"$f":"LODGING_LUMP.SUM","v":95},{"$f":"SUM(C67*G67)","v":0}]
[null,"Workshop "]
[null,"  - Reproduction",null,"8 1/2 x 11 B & W Copies @",null,"Handouts",{"$f":"LETTERCOPIES","v":0.14000000000000001},{"$f":"SUM(C69*E69*G69)","v":0}]
[null,null,null,"11 x 17 B & W Copies @",null,"Handouts",{"$f":"LEDGERCOPIES","v":0.34},{"$f":"SUM(C70*E70*G70)","v":0}]
[null,null,null,"8 1/2 x 11 Color Copies @",null,null,{"$f":"LETTERCOLOR","v":0.83},{"$f":"SUM(C71*G71)","v":0}]
[null,null,null,"11 x 17 Color Copies @",null,null,{"$f":"LEDGERCOLOR","v":1.66},0]
[null,null,null,"SQ. FT. of Plots (B & W or Color)",null,"<65 SQ. FT.*",{"$f":"ROLLPLOTSshort","v":6.5},0]
[null,null,null,"SQ. FT. of Plots (B & W or Color)",null,">65 SQ. FT.*",{"$f":"ROLLPLOTSlong","v":1.5},0]
[null,null,null,"SQ. FT. Foam Mounting Board @",null,null,{"$f":"FOAMMOUNTINGBOARD","v":1.25},0]
[null,"Presentation Materials:",null,"Misc. Workshop Supplies @",null,"per workshop",{"$f":"MISCWORKSHOPSUPPLIES","v":50},0]
[null,null,null,null,null,null,null,0]
[null,null,null,null,null,null,null,0]
[null,null,null,null,null,null,null,0]
[null,null,null,null,null,null,null,0]
[null,"Mailing Labels:",null,"Laser Peel & Stick (box)",null,"750 per box",{"$f":"LASERPEELandSTICK","v":4},0]
[null,"Postage:"]
[null,"  - Public Workshops:",null,"Notice or Newsletter @",null,"copies @",{"$f":"POSTAGE","v":0.49},{"$f":"SUM(C83*E83*G83)","v":0}]
[null,null,null,null,null,"Subtotal",null,{"$f":"SUM(H58:H83)","v":0}]
["Miscellaneous Other","ITEM","QTY","DESCRIPTION",null,null,"UNIT COST "]
[null,null,null,null,null,null,null,{"$f":"SUM(C86*G86)","v":0}]
[null,null,null,null,null,null,null,{"$f":"SUM(C87*G87)","v":0}]
[null,null,null,null,null,null,null,0]
[null,null,null,null,null,null,null,0]
[null,null,null,null,null,null,null,0]
[null,null,null,null,null,null,null,0]
[null,null,null,null,null,null,null,0]
[null,null,null,null,null,null,null,{"$f":"SUM(C93*G93)","v":0}]
[null,null,null,null,null,null,null,{"$f":"SUM(C94*G94)","v":0}]
[null,null,null,null,null,null,null,{"$f":"SUM(C95*G95)","v":0}]
[null,null,null,null,null,"Subtotal",null,{"$f":"SUM(H86:H95)","v":0}]
[]
[null,null,null,null,null,"TOTAL",null,{"$f":"SUM(H30+H34+H44+H56+H84+H96)","v":0}]
[]
[null,"* Sum of all plots "]

{"sheet":"EN-PI-Sub3","index":86,"n_rows":229,"n_cols":26,"rows_kept":229,"cut":false,"hidden":true,"merged":[[197,25,197,26],[198,25,198,26],[199,25,199,26],[200,25,200,26],[201,25,201,26],[202,25,202,26],[191,25,191,26],[192,25,192,26],[194,25,194,26],[195,25,195,26],[196,25,196,26],[228,8,228,9],[228,10,228,11],[203,25,203,26],[217,1,218,1],[217,3,218,4],[221,3,221,6],[221,8,221,13],[222,8,222,9],[222,10,222,11],[223,8,223,9],[223,10,223,11],[226,8,226,13],[227,8,227,9],[227,10,227,11],[190,25,190,26],[179,25,179,26],[180,25,180,26],[181,25,181,26],[182,25,182,26],[183,25,183,26],[184,25,184,26],[172,25,172,26],[173,25,173,26],[174,25,174,26],[175,25,175,26],[176,25,176,26],[177,25,177,26],[178,25,178,26],[185,25,185,26],[186,25,186,26],[187,25,187,26],[189,25,189,26],[166,25,166,26],[167,25,167,26],[168,25,168,26],[170,25,170,26],[171,25,171,26],[160,25,160,26],[161,25,161,26],[162,25,162,26],[163,25,163,26],[164,25,164,26],[165,25,165,26],[153,25,153,26],[154,25,154,26],[155,25,155,26],[156,25,156,26],[158,25,158,26],[159,25,159,26],[147,25,147,26],[148,25,148,26],[149,25,149,26],[150,25,150,26],[151,25,151,26],[152,25,152,26],[157,25,157,26],[141,25,141,26],[143,25,143,26],[144,25,144,26],[145,25,145,26],[146,25,146,26],[134,25,134,26],[135,25,135,26],[137,25,137,26],[138,25,138,26],[139,25,139,26],[140,25,140,26],[136,25,136,26],[128,25,128,26],[129,25,129,26],[130,25,130,26],[131,25,131,26],[132,25,132,26],[133,25,133,26],[122,25,122,26],[123,25,123,26],[124,25,124,26],[125,25,125,26],[126,25,126,26],[116,25,116,26],[117,25,117,26],[118,25,118,26],[119,25,119,26],[120,25,120,26],[121,25,121,26],[109,25,109,26],[110,25,110,26],[111,25,111,26],[112,25,112,26],[113,25,113,26],[114,25,114,26],[115,25,115,26],[103,25,103,26],[104,25,104,26],[105,25,105,26],[107,25,107,26],[108,25,108,26],[97,25,97,26],[98,25,98,26],[99,25,99,26],[100,25,100,26],[101,25,101,26],[102,25,102,26],[90,25,90,26],[91,25,91,26],[92,25,92,26],[93,25,93,26],[95,25,95,26],[96,25,96,26],[85,25,85,26],[86,25,86,26],[87,25,87,26],[88,25,88,26],[89,25,89,26],[94,25,94,26],[78,25,78,26],[79,25,79,26],[80,25,80,26],[81,25,81,26],[82,25,82,26],[83,25,83,26],[71,25,71,26],[72,25,72,26],[74,25,74,26],[75,25,75,26],[76,25,76,26],[77,25,77,26],[65,25,65,26],[66,25,66,26],[67,25,67,26],[68,25,68,26],[70,25,70,26],[73,25,73,26],[59,25,59,26],[60,25,60,26],[61,25,61,26],[62,25,62,26],[63,25,63,26],[64,25,64,26],[53,25,53,26],[54,25,54,26],[55,25,55,26],[56,25,56,26],[57,25,57,26],[58,25,58,26],[46,25,46,26],[47,25,47,26],[48,25,48,26],[49,25,49,26],[50,25,50,26],[51,25,51,26],[40,25,40,26],[41,25,41,26],[42,25,42,26],[43,25,43,26],[44,25,44,26],[45,25,45,26],[34,25,34,26],[35,25,35,26],[36,25,36,26],[37,25,37,26],[38,25,38,26],[39,25,39,26],[27,25,27,26],[28,25,28,26],[29,25,29,26],[30,25,30,26],[32,25,32,26],[33,25,33,26],[21,25,21,26],[22,25,22,26],[23,25,23,26],[24,25,24,26],[25,25,25,26],[26,25,26,26],[15,25,15,26],[16,25,16,26],[17,25,17,26],[18,25,18,26],[19,25,19,26],[20,25,20,26],[6,21,9,21],[8,25,8,26],[11,25,11,26],[12,25,12,26],[13,25,13,26],[14,25,14,26],[6,15,9,15],[6,16,9,16],[6,17,9,17],[6,18,9,18],[6,19,9,19],[6,20,9,20],[6,9,9,9],[6,10,9,10],[6,11,9,11],[6,12,9,12],[6,13,9,13],[6,14,9,14],[6,3,9,3],[6,4,9,4],[6,5,9,5],[6,6,9,6],[6,7,9,7],[6,8,9,8],[3,1,3,4],[3,6,3,7],[3,10,3,11],[3,13,3,14],[3,22,3,23],[4,3,4,21],[0,0,1,26],[2,1,2,4],[2,6,2,7],[2,10,2,11],[2,13,2,14],[2,22,2,23]]}
["PUBLIC INVOLVEMENT BREAKDOWN WORKSHEET - SUBCONSULTANT 3"]
[]
["PROJECT DESCRIPTION: ",{"$f":"PROJECT.DESCRIPTION","v":0},null,null,null,"FIRM:  ",{"$f":"PDEA_HEU_PUBLIC.INVOLVEMENT_SUB3_CONSULTANT_NAME","v":"CONSULTANT NAME"},null,"TASK ORDER NUMBER:",null,{"$f":"TASK.ORDER.NUMBER","v":0},null,"DATE PREPARED:",{"$f":"IF(SCOPE.MANDAY.ESTIMATE.PREPARED.BY.DATE=\"\",\"\",SCOPE.MANDAY.ESTIMATE.PREPARED.BY.DATE)","v":""}]
["PREPARED BY:  ",{"$f":"IF(SCOPE.MANDAY.ESTIMATE.PREPARED.BY=\"\",\"\",SCOPE.MANDAY.ESTIMATE.PREPARED.BY)","v":""},null,null,null,"TIP NUMBER:",{"$f":"TIP.NUMBER","v":0},null,"WBS NUMBER:",null,{"$f":"WBS.NUMBER","v":""},null,"REVISION DATE:",{"$f":"IF(SCOPE.MANDAY.ESTIMATE.APPROVED.BY.DATE=\"\",\"\",SCOPE.MANDAY.ESTIMATE.APPROVED.BY.DATE)","v":""}]
[null,null,null,"ESTIMATED WORK DAYS"]
[null,null,"Employee",{"$f":"IF('PEF CLASSIFICATION SHEET'!$D694=\"\",\"\",LEFT('PEF CLASSIFICATION SHEET'!$D694,4))","v":""},{"$f":"IF('PEF CLASSIFICATION SHEET'!$D695=\"\",\"\",LEFT('PEF CLASSIFICATION SHEET'!$D695,4))","v":""},{"$f":"IF('PEF CLASSIFICATION SHEET'!$D696=\"\",\"\",LEFT('PEF CLASSIFICATION SHEET'!$D696,4))","v":""},{"$f":"IF('PEF CLASSIFICATION SHEET'!$D697=\"\",\"\",LEFT('PEF CLASSIFICATION SHEET'!$D697,4))","v":""},{"$f":"IF('PEF CLASSIFICATION SHEET'!$D698=\"\",\"\",LEFT('PEF CLASSIFICATION SHEET'!$D698,4))","v":""},{"$f":"IF('PEF CLASSIFICATION SHEET'!$D699=\"\",\"\",LEFT('PEF CLASSIFICATION SHEET'!$D699,4))","v":""},{"$f":"IF('PEF CLASSIFICATION SHEET'!$D700=\"\",\"\",LEFT('PEF CLASSIFICATION SHEET'!$D700,4))","v":""},{"$f":"IF('PEF CLASSIFICATION SHEET'!$D701=\"\",\"\",LEFT('PEF CLASSIFICATION SHEET'!$D701,4))","v":""},{"$f":"IF('PEF CLASSIFICATION SHEET'!$D702=\"\",\"\",LEFT('PEF CLASSIFICATION SHEET'!$D702,4))","v":""},{"$f":"IF('PEF CLASSIFICATION SHEET'!$D703=\"\",\"\",LEFT('PEF CLASSIFICATION SHEET'!$D703,4))","v":""},{"$f":"IF('PEF CLASSIFICATION SHEET'!$D704=\"\",\"\",LEFT('PEF CLASSIFICATION SHEET'!$D704,4))","v":""},{"$f":"IF('PEF CLASSIFICATION SHEET'!$D705=\"\",\"\",LEFT('PEF CLASSIFICATION SHEET'!$D705,4))","v":""},{"$f":"IF('PEF CLASSIFICATION SHEET'!$D706=\"\",\"\",LEFT('PEF CLASSIFICATION SHEET'!$D706,4))","v":""},{"$f":"IF('PEF CLASSIFICATION SHEET'!$D707=\"\",\"\",LEFT('PEF CLASSIFICATION SHEET'!$D707,4))","v":""},{"$f":"IF('PEF CLASSIFICATION SHEET'!D708=\"\",\"\",LEFT('PEF CLASSIFICATION SHEET'!D708,4))","v":""},{"$f":"IF('PEF CLASSIFICATION SHEET'!$D709=\"\",\"\",LEFT('PEF CLASSIFICATION SHEET'!$D709,4))","v":""},{"$f":"IF('PEF CLASSIFICATION SHEET'!D710=\"\",\"\",LEFT('PEF CLASSIFICATION SHEET'!D710,4))","v":""},{"$f":"IF('PEF CLASSIFICATION SHEET'!D711=\"\",\"\",LEFT('PEF CLASSIFICATION SHEET'!D711,4))","v":""},{"$f":"IF('PEF CLASSIFICATION SHEET'!D712=\"\",\"\",LEFT('PEF CLASSIFICATION SHEET'!D712,4))","v":""}]
[null,null,null,{"$f":"IF('PEF CLASSIFICATION SHEET'!$C694=\"\",\"\",'PEF CLASSIFICATION SHEET'!$C694)","v":""},{"$f":"IF('PEF CLASSIFICATION SHEET'!$C695=\"\",\"\",'PEF CLASSIFICATION SHEET'!$C695)","v":""},{"$f":"IF('PEF CLASSIFICATION SHEET'!$C696=\"\",\"\",'PEF CLASSIFICATION SHEET'!$C696)","v":""},{"$f":"IF('PEF CLASSIFICATION SHEET'!$C697=\"\",\"\",'PEF CLASSIFICATION SHEET'!$C697)","v":""},{"$f":"IF('PEF CLASSIFICATION SHEET'!$C698=\"\",\"\",'PEF CLASSIFICATION SHEET'!$C698)","v":""},{"$f":"IF('PEF CLASSIFICATION SHEET'!$C699=\"\",\"\",'PEF CLASSIFICATION SHEET'!$C699)","v":""},{"$f":"IF('PEF CLASSIFICATION SHEET'!$C700=\"\",\"\",'PEF CLASSIFICATION SHEET'!$C700)","v":""},{"$f":"IF('PEF CLASSIFICATION SHEET'!$C701=\"\",\"\",'PEF CLASSIFICATION SHEET'!$C701)","v":""},{"$f":"IF('PEF CLASSIFICATION SHEET'!$C702=\"\",\"\",'PEF CLASSIFICATION SHEET'!$C702)","v":""},{"$f":"IF('PEF CLASSIFICATION SHEET'!$C703=\"\",\"\",'PEF CLASSIFICATION SHEET'!$C703)","v":""},{"$f":"IF('PEF CLASSIFICATION SHEET'!$C704=\"\",\"\",'PEF CLASSIFICATION SHEET'!$C704)","v":""},{"$f":"IF('PEF CLASSIFICATION SHEET'!$C705=\"\",\"\",'PEF CLASSIFICATION SHEET'!$C705)","v":""},{"$f":"IF('PEF CLASSIFICATION SHEET'!$C706=\"\",\"\",'PEF CLASSIFICATION SHEET'!$C706)","v":""},{"$f":"IF('PEF CLASSIFICATION SHEET'!$C707=\"\",\"\",'PEF CLASSIFICATION SHEET'!$C707)","v":""},{"$f":"IF('PEF CLASSIFICATION SHEET'!C708=\"\",\"\",'PEF CLASSIFICATION SHEET'!C708)","v":""},{"$f":"IF('PEF CLASSIFICATION SHEET'!$C709=\"\",\"\",'PEF CLASSIFICATION SHEET'!$C709)","v":""},{"$f":"IF('PEF CLASSIFICATION SHEET'!C710=\"\",\"\",'PEF CLASSIFICATION SHEET'!C710)","v":""},{"$f":"IF('PEF CLASSIFICATION SHEET'!C711=\"\",\"\",'PEF CLASSIFICATION SHEET'!C711)","v":""},{"$f":"IF('PEF CLASSIFICATION SHEET'!C712=\"\",\"\",'PEF CLASSIFICATION SHEET'!C712)","v":""},"SUB-","%","PEF"]
[null,null,"Classification",null,null,null,null,null,null,null,null,null,null,null,null,null,null,null,null,null,null,null,"TOTAL","OF","ESTIMATE"]
["TASK","TASK DESCRIPTION",null,null,null,null,null,null,null,null,null,null,null,null,null,null,null,null,null,null,null,null,null,"PROJECT",null,"COMMENTS"]
["NO."]
["2PI1","Continue Public Engagement",null,null,null,null,null,null,null,null,null,null,null,null,null,null,null,null,null,null,null,null,{"$f":"IF(B11=\"\",0,IF((SUM(D11:V11)=0),\"\",SUM(D11:V11)))","v":""}]
[1,"Public Involvement Plan (PIP)",null,null,null,null,null,null,null,null,null,null,null,null,null,null,null,null,null,null,null,null,{"$f":"IF(B12=\"\",0,IF((SUM(D12:V12)=0),\"\",SUM(D12:V12)))","v":""},{"$f":"IF(W12=\"\",\"\",SUM((W12/$W$205)))","v":""}]
[null,"Submit ETRACS for PI Team to review draft or develop PIP",null,null,null,null,null,null,null,null,null,null,null,null,null,null,null,null,null,null,null,null,{"$f":"IF(B13=\"\",0,IF((SUM(D13:V13)=0),\"\",SUM(D13:V13)))","v":""},{"$f":"IF(W13=\"\",\"\",SUM((W13/$W$205)))","v":""}]
[null,"Prepare and submit draft and final PIP (if PIP is to be prepared by PEF)",null,null,null,null,null,null,null,null,null,null,null,null,null,null,null,null,null,null,null,null,"",""]
[null,null,null,null,null,null,null,null,null,null,null,null,null,null,null,null,null,null,null,null,null,null,0,{"$error":"#DIV/0!"}]
[null,null,null,null,null,null,null,null,null,null,null,null,null,null,null,null,null,null,null,null,null,null,0,{"$error":"#DIV/0!"}]
[null,null,null,null,null,null,null,null,null,null,null,null,null,null,null,null,null,null,null,null,null,null,0,{"$error":"#DIV/0!"}]
[null,null,null,null,null,null,null,null,null,null,null,null,null,null,null,null,null,null,null,null,null,null,0,{"$error":"#DIV/0!"}]
[null,null,null,null,null,null,null,null,null,null,null,null,null,null,null,null,null,null,null,null,null,null,0,{"$error":"#DIV/0!"}]
[null,null,null,null,null,null,null,null,null,null,null,null,null,null,null,null,null,null,null,null,null,null,0,{"$error":"#DIV/0!"}]
[null,null,null,null,null,null,null,null,null,null,null,null,null,null,null,null,null,null,null,null,null,null,0,{"$error":"#DIV/0!"}]
[null,null,null,null,null,null,null,null,null,null,null,null,null,null,null,null,null,null,null,null,null,null,0,{"$error":"#DIV/0!"}]
[null,null,null,null,null,null,null,null,null,null,null,null,null,null,null,null,null,null,null,null,null,null,0,{"$error":"#DIV/0!"}]
[null,null,null,null,null,null,null,null,null,null,null,null,null,null,null,null,null,null,null,null,null,null,0,{"$error":"#DIV/0!"}]
[null,null,null,null,null,null,null,null,null,null,null,null,null,null,null,null,null,null,null,null,null,null,0,{"$error":"#DIV/0!"}]
[null,null,null,null,null,null,null,null,null,null,null,null,null,null,null,null,null,null,null,null,null,null,0,{"$error":"#DIV/0!"}]
[null,null,null,null,null,null,null,null,null,null,null,null,null,null,null,null,null,null,null,null,null,null,0,{"$error":"#DIV/0!"}]
[null,null,null,null,null,null,null,null,null,null,null,null,null,null,null,null,null,null,null,null,null,null,0,{"$error":"#DIV/0!"}]
[null,null,null,null,null,null,null,null,null,null,null,null,null,null,null,null,null,null,null,null,null,null,0,{"$error":"#DIV/0!"}]
[null,null,null,null,null,null,null,null,null,null,null,null,null,null,null,null,null,null,null,null,null,null,0,{"$error":"#DIV/0!"}]
[null,null,null,null,null,null,null,null,null,null,null,null,null,null,null,null,null,null,null,null,null,null,0,{"$error":"#DIV/0!"}]
[2,"Project Mailing List",null,null,null,null,null,null,null,null,null,null,null,null,null,null,null,null,null,null,null,null,"",""]
[null,"Submit ETRACS request and study area Shapefile for project mailing list ",null,null,null,null,null,null,null,null,null,null,null,null,null,null,null,null,null,null,null,null,"",""]
[null,"Create project mailing list  ",null,null,null,null,null,null,null,null,null,null,null,null,null,null,null,null,null,null,null,null,"",""]
[null,null,null,null,null,null,null,null,null,null,null,null,null,null,null,null,null,null,null,null,null,null,0,{"$error":"#DIV/0!"}]
[null,null,null,null,null,null,null,null,null,null,null,null,null,null,null,null,null,null,null,null,null,null,0,{"$error":"#DIV/0!"}]
[null,null,null,null,null,null,null,null,null,null,null,null,null,null,null,null,null,null,null,null,null,null,0,{"$error":"#DIV/0!"}]
[null,null,null,null,null,null,null,null,null,null,null,null,null,null,null,null,null,null,null,null,null,null,0,{"$error":"#DIV/0!"}]
[null,null,null,null,null,null,null,null,null,null,null,null,null,null,null,null,null,null,null,null,null,null,0,{"$error":"#DIV/0!"}]
[null,null,null,null,null,null,null,null,null,null,null,null,null,null,null,null,null,null,null,null,null,null,0,{"$error":"#DIV/0!"}]
[null,null,null,null,null,null,null,null,null,null,null,null,null,null,null,null,null,null,null,null,null,null,0,{"$error":"#DIV/0!"}]
[null,null,null,null,null,null,null,null,null,null,null,null,null,null,null,null,null,null,null,null,null,null,0,{"$error":"#DIV/0!"}]
[null,null,null,null,null,null,null,null,null,null,null,null,null,null,null,null,null,null,null,null,null,null,0,{"$error":"#DIV/0!"}]
[null,null,null,null,null,null,null,null,null,null,null,null,null,null,null,null,null,null,null,null,null,null,0,{"$error":"#DIV/0!"}]
[null,null,null,null,null,null,null,null,null,null,null,null,null,null,null,null,null,null,null,null,null,null,0,{"$error":"#DIV/0!"}]
[null,null,null,null,null,null,null,null,null,null,null,null,null,null,null,null,null,null,null,null,null,null,0,{"$error":"#DIV/0!"}]
[null,null,null,null,null,null,null,null,null,null,null,null,null,null,null,null,null,null,null,null,null,null,0,{"$error":"#DIV/0!"}]
[null,null,null,null,null,null,null,null,null,null,null,null,null,null,null,null,null,null,null,null,null,null,0,{"$error":"#DIV/0!"}]
[null,null,null,null,null,null,null,null,null,null,null,null,null,null,null,null,null,null,null,null,null,null,0,{"$error":"#DIV/0!"}]
[null,null,null,null,null,null,null,null,null,null,null,null,null,null,null,null,null,null,null,null,null,null,0,{"$error":"#DIV/0!"}]
[null,null,null,null,null,null,null,null,null,null,null,null,null,null,null,null,null,null,null,null,null,null,0,{"$error":"#DIV/0!"}]
[null,null,null,null,null,null,null,null,null,null,null,null,null,null,null,null,null,null,null,null,null,null,0,{"$error":"#DIV/0!"}]
[3,"Project Website",null,null,null,null,null,null,null,null,null,null,null,null,null,null,null,null,null,null,null,null,"",""]
[null,"Submit request for project website or PublicInput.com site",null,null,null,null,null,null,null,null,null,null,null,null,null,null,null,null,null,null,null,null,"",""]
[null,"Provide updates at project milestones",null,null,null,null,null,null,null,null,null,null,null,null,null,null,null,null,null,null,null,null,"",""]
[null,null,null,null,null,null,null,null,null,null,null,null,null,null,null,null,null,null,null,null,null,null,0,{"$error":"#DIV/0!"}]
[null,null,null,null,null,null,null,null,null,null,null,null,null,null,null,null,null,null,null,null,null,null,0,{"$error":"#DIV/0!"}]
[null,null,null,null,null,null,null,null,null,null,null,null,null,null,null,null,null,null,null,null,null,null,0,{"$error":"#DIV/0!"}]
[null,null,null,null,null,null,null,null,null,null,null,null,null,null,null,null,null,null,null,null,null,null,0,{"$error":"#DIV/0!"}]
[null,null,null,null,null,null,null,null,null,null,null,null,null,null,null,null,null,null,null,null,null,null,0,{"$error":"#DIV/0!"}]
[null,null,null,null,null,null,null,null,null,null,null,null,null,null,null,null,null,null,null,null,null,null,0,{"$error":"#DIV/0!"}]
[null,null,null,null,null,null,null,null,null,null,null,null,null,null,null,null,null,null,null,null,null,null,0,{"$error":"#DIV/0!"}]
[null,null,null,null,null,null,null,null,null,null,null,null,null,null,null,null,null,null,null,null,null,null,0,{"$error":"#DIV/0!"}]
[null,null,null,null,null,null,null,null,null,null,null,null,null,null,null,null,null,null,null,null,null,null,0,{"$error":"#DIV/0!"}]
[null,null,null,null,null,null,null,null,null,null,null,null,null,null,null,null,null,null,null,null,null,null,0,{"$error":"#DIV/0!"}]
[null,null,null,null,null,null,null,null,null,null,null,null,null,null,null,null,null,null,null,null,null,null,0,{"$error":"#DIV/0!"}]
[null,null,null,null,null,null,null,null,null,null,null,null,null,null,null,null,null,null,null,null,null,null,0,{"$error":"#DIV/0!"}]
[null,null,null,null,null,null,null,null,null,null,null,null,null,null,null,null,null,null,null,null,null,null,0,{"$error":"#DIV/0!"}]
[null,null,null,null,null,null,null,null,null,null,null,null,null,null,null,null,null,null,null,null,null,null,0,{"$error":"#DIV/0!"}]
[4,"Newsletter/Postcards",null,null,null,null,null,null,null,null,null,null,null,null,null,null,null,null,null,null,null,null,"",""]
[null,"Prepare and submit draft Newsletter/Postcard (using NCDOT templates)",null,null,null,null,null,null,null,null,null,null,null,null,null,null,null,null,null,null,null,null,"",""]
[null,"Revise and resubmit Newsletter/Postcard for approval",null,null,null,null,null,null,null,null,null,null,null,null,null,null,null,null,null,null,null,null,"",""]
[null,"Reproduce and distribute approved Newsletter /Postcard (insert #copies)",null,null,null,null,null,null,null,null,null,null,null,null,null,null,null,null,null,null,null,null,"",""]
[null,null,null,null,null,null,null,null,null,null,null,null,null,null,null,null,null,null,null,null,null,null,0,{"$error":"#DIV/0!"}]
[null,null,null,null,null,null,null,null,null,null,null,null,null,null,null,null,null,null,null,null,null,null,0,{"$error":"#DIV/0!"}]
[null,null,null,null,null,null,null,null,null,null,null,null,null,null,null,null,null,null,null,null,null,null,0,{"$error":"#DIV/0!"}]
[null,null,null,null,null,null,null,null,null,null,null,null,null,null,null,null,null,null,null,null,null,null,{"$f":"IF(B77=\"\",0,IF((SUM(D77:V77)=0),\"\",SUM(D77:V77)))","v":0},{"$f":"IF(W77=\"\",\"\",SUM((W77/$W$205)))","v":{"$error":"#DIV/0!"}}]
[null,null,null,null,null,null,null,null,null,null,null,null,null,null,null,null,null,null,null,null,null,null,0,{"$error":"#DIV/0!"}]
[null,null,null,null,null,null,null,null,null,null,null,null,null,null,null,null,null,null,null,null,null,null,0,{"$error":"#DIV/0!"}]
[null,null,null,null,null,null,null,null,null,null,null,null,null,null,null,null,null,null,null,null,null,null,0,{"$error":"#DIV/0!"}]
[null,null,null,null,null,null,null,null,null,null,null,null,null,null,null,null,null,null,null,null,null,null,0,{"$error":"#DIV/0!"}]
[null,null,null,null,null,null,null,null,null,null,null,null,null,null,null,null,null,null,null,null,null,null,0,{"$error":"#DIV/0!"}]
[null,null,null,null,null,null,null,null,null,null,null,null,null,null,null,null,null,null,null,null,null,null,0,{"$error":"#DIV/0!"}]
[null,null,null,null,null,null,null,null,null,null,null,null,null,null,null,null,null,null,null,null,null,null,0,{"$error":"#DIV/0!"}]
[5,"Public Meeting(s)/Hearing(s)",null,null,null,null,null,null,null,null,null,null,null,null,null,null,null,null,null,null,null,null,"",""]
[null,"In-person Open House  (X hr meeting) ",null,null,null,null,null,null,null,null,null,null,null,null,null,null,null,null,null,null,null,null,"",""]
[null,"Virtual Meeting (X  hr meeting)",null,null,null,null,null,null,null,null,null,null,null,null,null,null,null,null,null,null,null,null,"",""]
[null,"Formal Presentation",null,null,null,null,null,null,null,null,null,null,null,null,null,null,null,null,null,null,null,null,"",""]
[null,"Submit meeting request via ETRACS (6 weeks prior to meeting date)",null,null,null,null,null,null,null,null,null,null,null,null,null,null,null,null,null,null,null,null,"",""]
[null,"Coordinate with NCDOT PI and Division on venue and dates ",null,null,null,null,null,null,null,null,null,null,null,null,null,null,null,null,null,null,null,null,"",""]
[null,"Prepare and submit public meeting maps",null,null,null,null,null,null,null,null,null,null,null,null,null,null,null,null,null,null,null,null,"",""]
[null,"Schedule and attend map review meeting",null,null,null,null,null,null,null,null,null,null,null,null,null,null,null,null,null,null,null,null,"",""]
[null,"Revise and resubmit public meeting maps",null,null,null,null,null,null,null,null,null,null,null,null,null,null,null,null,null,null,null,null,"",""]
[null,"Prepare and submit draft public meeting handout",null,null,null,null,null,null,null,null,null,null,null,null,null,null,null,null,null,null,null,null,"",""]
[null,"Revise and resubmit public meeting handout for approval",null,null,null,null,null,null,null,null,null,null,null,null,null,null,null,null,null,null,null,null,"",""]
[null,"Reproduce public meeting handout (insert # copies)",null,null,null,null,null,null,null,null,null,null,null,null,null,null,null,null,null,null,null,null,"",""]
[null,"Prepare and submit draft public meeting displays",null,null,null,null,null,null,null,null,null,null,null,null,null,null,null,null,null,null,null,null,"",""]
[null,"Revise and resubmit public meeting displays",null,null,null,null,null,null,null,null,null,null,null,null,null,null,null,null,null,null,null,null,"",""]
[null,"Provide digital copies of handout, displays, and public meeting maps to NCDOT PI for web posting",null,null,null,null,null,null,null,null,null,null,null,null,null,null,null,null,null,null,null,null,"",""]
[null,null,null,null,null,null,null,null,null,null,null,null,null,null,null,null,null,null,null,null,null,null,0,{"$error":"#DIV/0!"}]
[null,null,null,null,null,null,null,null,null,null,null,null,null,null,null,null,null,null,null,null,null,null,0,{"$error":"#DIV/0!"}]
[null,null,null,null,null,null,null,null,null,null,null,null,null,null,null,null,null,null,null,null,null,null,0,{"$error":"#DIV/0!"}]
[null,null,null,null,null,null,null,null,null,null,null,null,null,null,null,null,null,null,null,null,null,null,0,{"$error":"#DIV/0!"}]
[null,null,null,null,null,null,null,null,null,null,null,null,null,null,null,null,null,null,null,null,null,null,0,{"$error":"#DIV/0!"}]
[null,null,null,null,null,null,null,null,null,null,null,null,null,null,null,null,null,null,null,null,null,null,0,{"$error":"#DIV/0!"}]
[null,null,null,null,null,null,null,null,null,null,null,null,null,null,null,null,null,null,null,null,null,null,0,{"$error":"#DIV/0!"}]
[6,"Local Officials Information Meeting (LOIM)",null,null,null,null,null,null,null,null,null,null,null,null,null,null,null,null,null,null,null,null,"",""]
[null,"Coordinate with NCDOT PI on schedule and invitees",null,null,null,null,null,null,null,null,null,null,null,null,null,null,null,null,null,null,null,null,"",""]
[null,"Prepare and submit draft LOIM Invitation letter",null,null,null,null,null,null,null,null,null,null,null,null,null,null,null,null,null,null,null,null,"",""]
[null,"Revise and resubmit LOIM Invitation letter for approval",null,null,null,null,null,null,null,null,null,null,null,null,null,null,null,null,null,null,null,null,"",""]
[null,"Prepare and submit draft PowerPoint presentation",null,null,null,null,null,null,null,null,null,null,null,null,null,null,null,null,null,null,null,null,"",""]
[null,"Revise and resubmit PowerPoint presentation",null,null,null,null,null,null,null,null,null,null,null,null,null,null,null,null,null,null,null,null,"",""]
[null,"Prepare and submit draft local officials meeting handout (only when no public meeting is held)",null,null,null,null,null,null,null,null,null,null,null,null,null,null,null,null,null,null,null,null,"",""]
[null,"Revise and resubmit local officials meeting handout for approval",null,null,null,null,null,null,null,null,null,null,null,null,null,null,null,null,null,null,null,null,"",""]
[null,"Prepare and submit draft and final meeting summary",null,null,null,null,null,null,null,null,null,null,null,null,null,null,null,null,null,null,null,null,"",""]
[null,null,null,null,null,null,null,null,null,null,null,null,null,null,null,null,null,null,null,null,null,null,0,{"$error":"#DIV/0!"}]
[null,null,null,null,null,null,null,null,null,null,null,null,null,null,null,null,null,null,null,null,null,null,0,{"$error":"#DIV/0!"}]
[null,null,null,null,null,null,null,null,null,null,null,null,null,null,null,null,null,null,null,null,null,null,0,{"$error":"#DIV/0!"}]
[null,null,null,null,null,null,null,null,null,null,null,null,null,null,null,null,null,null,null,null,null,null,0,{"$error":"#DIV/0!"}]
[null,null,null,null,null,null,null,null,null,null,null,null,null,null,null,null,null,null,null,null,null,null,0,{"$error":"#DIV/0!"}]
[null,null,null,null,null,null,null,null,null,null,null,null,null,null,null,null,null,null,null,null,null,null,0,{"$error":"#DIV/0!"}]
[null,null,null,null,null,null,null,null,null,null,null,null,null,null,null,null,null,null,null,null,null,null,0,{"$error":"#DIV/0!"}]
[null,null,null,null,null,null,null,null,null,null,null,null,null,null,null,null,null,null,null,null,null,null,0,{"$error":"#DIV/0!"}]
[null,null,null,null,null,null,null,null,null,null,null,null,null,null,null,null,null,null,null,null,null,null,0,{"$error":"#DIV/0!"}]
[null,null,null,null,null,null,null,null,null,null,null,null,null,null,null,null,null,null,null,null,null,null,0,{"$error":"#DIV/0!"}]
[null,null,null,null,null,null,null,null,null,null,null,null,null,null,null,null,null,null,null,null,null,null,0,{"$error":"#DIV/0!"}]
[null,null,null,null,null,null,null,null,null,null,null,null,null,null,null,null,null,null,null,null,null,null,0,{"$error":"#DIV/0!"}]
[7,"Public Comments",null,null,null,null,null,null,null,null,null,null,null,null,null,null,null,null,null,null,null,null,"",""]
[null,"Collect public comments",null,null,null,null,null,null,null,null,null,null,null,null,null,null,null,null,null,null,null,null,"",""]
[null,"Compile comments in a database and prepare draft responses as needed (export from PublicInput.com site)",null,null,null,null,null,null,null,null,null,null,null,null,null,null,null,null,null,null,null,null,"",""]
[null,"Submit draft database and responses",null,null,null,null,null,null,null,null,null,null,null,null,null,null,null,null,null,null,null,null,"",""]
[null,"Revise and resubmit database and responses",null,null,null,null,null,null,null,null,null,null,null,null,null,null,null,null,null,null,null,null,"",""]
[null,"Prepare for and attend post-public meeting/hearing meeting",null,null,null,null,null,null,null,null,null,null,null,null,null,null,null,null,null,null,null,null,"",""]
[null,null,null,null,null,null,null,null,null,null,null,null,null,null,null,null,null,null,null,null,null,null,0,{"$error":"#DIV/0!"}]
[null,null,null,null,null,null,null,null,null,null,null,null,null,null,null,null,null,null,null,null,null,null,0,{"$error":"#DIV/0!"}]
[null,null,null,null,null,null,null,null,null,null,null,null,null,null,null,null,null,null,null,null,null,null,0,{"$error":"#DIV/0!"}]
[null,null,null,null,null,null,null,null,null,null,null,null,null,null,null,null,null,null,null,null,null,null,0,{"$error":"#DIV/0!"}]
[null,null,null,null,null,null,null,null,null,null,null,null,null,null,null,null,null,null,null,null,null,null,0,{"$error":"#DIV/0!"}]
[null,null,null,null,null,null,null,null,null,null,null,null,null,null,null,null,null,null,null,null,null,null,0,{"$error":"#DIV/0!"}]
[null,null,null,null,null,null,null,null,null,null,null,null,null,null,null,null,null,null,null,null,null,null,0,{"$error":"#DIV/0!"}]
[null,null,null,null,null,null,null,null,null,null,null,null,null,null,null,null,null,null,null,null,null,null,{"$f":"IF(B141=\"\",0,IF((SUM(D141:V141)=0),\"\",SUM(D141:V141)))","v":0},{"$f":"IF(W141=\"\",\"\",SUM((W141/$W$205)))","v":{"$error":"#DIV/0!"}}]
[null,null,null,null,null,null,null,null,null,null,null,null,null,null,null,null,null,null,null,null,null,null,0,{"$error":"#DIV/0!"}]
[8,"Public Engagement Summary",null,null,null,null,null,null,null,null,null,null,null,null,null,null,null,null,null,null,null,null,"",""]
[null,"Prepare and submit draft public engagement summary, including comment summary and responses using NCDOT template",null,null,null,null,null,null,null,null,null,null,null,null,null,null,null,null,null,null,null,null,"",""]
[null,"Revise and resubmit public engagement summary",null,null,null,null,null,null,null,null,null,null,null,null,null,null,null,null,null,null,null,null,"",""]
[null,null,null,null,null,null,null,null,null,null,null,null,null,null,null,null,null,null,null,null,null,null,0,{"$error":"#DIV/0!"}]
[null,null,null,null,null,null,null,null,null,null,null,null,null,null,null,null,null,null,null,null,null,null,0,{"$error":"#DIV/0!"}]
[null,null,null,null,null,null,null,null,null,null,null,null,null,null,null,null,null,null,null,null,null,null,0,{"$error":"#DIV/0!"}]
[null,null,null,null,null,null,null,null,null,null,null,null,null,null,null,null,null,null,null,null,null,null,0,{"$error":"#DIV/0!"}]
[null,null,null,null,null,null,null,null,null,null,null,null,null,null,null,null,null,null,null,null,null,null,0,{"$error":"#DIV/0!"}]
[null,null,null,null,null,null,null,null,null,null,null,null,null,null,null,null,null,null,null,null,null,null,0,{"$error":"#DIV/0!"}]
[null,null,null,null,null,null,null,null,null,null,null,null,null,null,null,null,null,null,null,null,null,null,0,{"$error":"#DIV/0!"}]
[null,null,null,null,null,null,null,null,null,null,null,null,null,null,null,null,null,null,null,null,null,null,0,{"$error":"#DIV/0!"}]
[null,null,null,null,null,null,null,null,null,null,null,null,null,null,null,null,null,null,null,null,null,null,0,{"$error":"#DIV/0!"}]
[null,null,null,null,null,null,null,null,null,null,null,null,null,null,null,null,null,null,null,null,null,null,0,{"$error":"#DIV/0!"}]
[null,null,null,null,null,null,null,null,null,null,null,null,null,null,null,null,null,null,null,null,null,null,0,{"$error":"#DIV/0!"}]
[null,null,null,null,null,null,null,null,null,null,null,null,null,null,null,null,null,null,null,null,null,null,0,{"$error":"#DIV/0!"}]
[null,null,null,null,null,null,null,null,null,null,null,null,null,null,null,null,null,null,null,null,null,null,0,{"$error":"#DIV/0!"}]
[null,null,null,null,null,null,null,null,null,null,null,null,null,null,null,null,null,null,null,null,null,null,0,{"$error":"#DIV/0!"}]
[null,null,null,null,null,null,null,null,null,null,null,null,null,null,null,null,null,null,null,null,null,null,0,{"$error":"#DIV/0!"}]
[null,null,null,null,null,null,null,null,null,null,null,null,null,null,null,null,null,null,null,null,null,null,0,{"$error":"#DIV/0!"}]
[null,null,null,null,null,null,null,null,null,null,null,null,null,null,null,null,null,null,null,null,null,null,0,{"$error":"#DIV/0!"}]
[null,null,null,null,null,null,null,null,null,null,null,null,null,null,null,null,null,null,null,null,null,null,0,{"$error":"#DIV/0!"}]
[null,null,null,null,null,null,null,null,null,null,null,null,null,null,null,null,null,null,null,null,null,null,0,{"$error":"#DIV/0!"}]
[null,null,null,null,null,null,null,null,null,null,null,null,null,null,null,null,null,null,null,null,null,null,0,{"$error":"#DIV/0!"}]
[null,null,null,null,null,null,null,null,null,null,null,null,null,null,null,null,null,null,null,null,null,null,0,{"$error":"#DIV/0!"}]
[null,null,null,null,null,null,null,null,null,null,null,null,null,null,null,null,null,null,null,null,null,null,0,{"$error":"#DIV/0!"}]
[null,null,null,null,null,null,null,null,null,null,null,null,null,null,null,null,null,null,null,null,null,null,0,{"$error":"#DIV/0!"}]
[null,null,null,null,null,null,null,null,null,null,null,null,null,null,null,null,null,null,null,null,null,null,0,{"$error":"#DIV/0!"}]
[9,"Project Visualizations ",null,null,null,null,null,null,null,null,null,null,null,null,null,null,null,null,null,null,null,null,"",""]
[null,"Renderings (digital static image)",null,null,null,null,null,null,null,null,null,null,null,null,null,null,null,null,null,null,null,null,"",""]
[null,"Level I ",null,null,null,null,null,null,null,null,null,null,null,null,null,null,null,null,null,null,null,null,"",""]
[null,"Level II",null,null,null,null,null,null,null,null,null,null,null,null,null,null,null,null,null,null,null,null,"",""]
[null,"Level III",null,null,null,null,null,null,null,null,null,null,null,null,null,null,null,null,null,null,null,null,"",""]
[null,"Animations (video with motion)",null,null,null,null,null,null,null,null,null,null,null,null,null,null,null,null,null,null,null,null,"",""]
[null,"Level I",null,null,null,null,null,null,null,null,null,null,null,null,null,null,null,null,null,null,null,null,"",""]
[null,"Level II",null,null,null,null,null,null,null,null,null,null,null,null,null,null,null,null,null,null,null,null,"",""]
[null,"Level III",null,null,null,null,null,null,null,null,null,null,null,null,null,null,null,null,null,null,null,null,"",""]
[null,"Level IV",null,null,null,null,null,null,null,null,null,null,null,null,null,null,null,null,null,null,null,null,"",""]
[null,"Level V",null,null,null,null,null,null,null,null,null,null,null,null,null,null,null,null,null,null,null,null,"",""]
[null,"Level VI",null,null,null,null,null,null,null,null,null,null,null,null,null,null,null,null,null,null,null,null,"",""]
[null,"Level VII",null,null,null,null,null,null,null,null,null,null,null,null,null,null,null,null,null,null,null,null,"",""]
[null,"Video Production",null,null,null,null,null,null,null,null,null,null,null,null,null,null,null,null,null,null,null,null,"",""]
[null,"Level I",null,null,null,null,null,null,null,null,null,null,null,null,null,null,null,null,null,null,null,null,"",""]
[null,"Level II",null,null,null,null,null,null,null,null,null,null,null,null,null,null,null,null,null,null,null,null,"",""]
[null,"Virtual 3D Models",null,null,null,null,null,null,null,null,null,null,null,null,null,null,null,null,null,null,null,null,"",""]
[null,null,null,null,null,null,null,null,null,null,null,null,null,null,null,null,null,null,null,null,null,null,0,{"$error":"#DIV/0!"}]
[null,null,null,null,null,null,null,null,null,null,null,null,null,null,null,null,null,null,null,null,null,null,0,{"$error":"#DIV/0!"}]
[10,"Task Management",null,null,null,null,null,null,null,null,null,null,null,null,null,null,null,null,null,null,null,null,"",""]
[null,null,null,null,null,null,null,null,null,null,null,null,null,null,null,null,null,null,null,null,null,null,0,{"$error":"#DIV/0!"}]
[null,null,null,null,null,null,null,null,null,null,null,null,null,null,null,null,null,null,null,null,null,null,0,{"$error":"#DIV/0!"}]
[null,null,null,null,null,null,null,null,null,null,null,null,null,null,null,null,null,null,null,null,null,null,0,{"$error":"#DIV/0!"}]
[null,null,null,null,null,null,null,null,null,null,null,null,null,null,null,null,null,null,null,null,null,null,0,{"$error":"#DIV/0!"}]
[11,"Complete QA/QC Procedures ",null,null,null,null,null,null,null,null,null,null,null,null,null,null,null,null,null,null,null,null,"",""]
[null,"Other Tasks: (i.e. small group meetings)",null,null,null,null,null,null,null,null,null,null,null,null,null,null,null,null,null,null,null,null,"",""]
[null,null,null,null,null,null,null,null,null,null,null,null,null,null,null,null,null,null,null,null,null,null,0,{"$error":"#DIV/0!"}]
[null,null,null,null,null,null,null,null,null,null,null,null,null,null,null,null,null,null,null,null,null,null,0,{"$error":"#DIV/0!"}]
[null,null,null,null,null,null,null,null,null,null,null,null,null,null,null,null,null,null,null,null,null,null,0,{"$error":"#DIV/0!"}]
[null,null,null,null,null,null,null,null,null,null,null,null,null,null,null,null,null,null,null,null,null,null,0,{"$error":"#DIV/0!"}]
[null,null,null,null,null,null,null,null,null,null,null,null,null,null,null,null,null,null,null,null,null,null,0,{"$error":"#DIV/0!"}]
[null,null,null,null,null,null,null,null,null,null,null,null,null,null,null,null,null,null,null,null,null,null,0,{"$error":"#DIV/0!"}]
[null,null,null,null,null,null,null,null,null,null,null,null,null,null,null,null,null,null,null,null,null,null,0,{"$error":"#DIV/0!"}]
[null,null,null,null,null,null,null,null,null,null,null,null,null,null,null,null,null,null,null,null,null,null,0,{"$error":"#DIV/0!"}]
[null,null,null,null,null,null,null,null,null,null,null,null,null,null,null,null,null,null,null,null,null,null,0,{"$error":"#DIV/0!"}]
[null,"TOTAL WORKDAYS/CATEGORY:",null,{"$f":"SUM(D12:D204)","v":0},0,0,0,0,0,0,0,0,0,0,0,0,0,0,0,0,0,0,0,{"$error":"#DIV/0!"},0]
[null,"HOURLY SALARY RATE:",null,{"$f":"'PEF CLASSIFICATION SHEET'!$E694","v":0},{"$f":"'PEF CLASSIFICATION SHEET'!$E695","v":0},{"$f":"'PEF CLASSIFICATION SHEET'!$E696","v":0},{"$f":"'PEF CLASSIFICATION SHEET'!$E697","v":0},{"$f":"'PEF CLASSIFICATION SHEET'!$E698","v":0},{"$f":"'PEF CLASSIFICATION SHEET'!$E699","v":0},{"$f":"'PEF CLASSIFICATION SHEET'!$E700","v":0},{"$f":"'PEF CLASSIFICATION SHEET'!$E701","v":0},{"$f":"'PEF CLASSIFICATION SHEET'!$E702","v":0},{"$f":"'PEF CLASSIFICATION SHEET'!$E703","v":0},{"$f":"'PEF CLASSIFICATION SHEET'!$E704","v":0},{"$f":"'PEF CLASSIFICATION SHEET'!$E705","v":0},{"$f":"'PEF CLASSIFICATION SHEET'!$E706","v":0},{"$f":"'PEF CLASSIFICATION SHEET'!$E707","v":0},{"$f":"'PEF CLASSIFICATION SHEET'!$E708","v":0},{"$f":"'PEF CLASSIFICATION SHEET'!E709","v":0},{"$f":"'PEF CLASSIFICATION SHEET'!E710","v":0},{"$f":"'PEF CLASSIFICATION SHEET'!E711","v":0},{"$f":"'PEF CLASSIFICATION SHEET'!E712","v":0}]
[null,"RATES PER DAY:",null,{"$f":"D206*8","v":0},0,0,0,0,0,0,0,0,0,0,0,0,0,0,0,0,0,0]
[null,"PAYROLL BURDEN:",null,{"$f":"SUM(D205*D207)","v":0},0,0,0,0,0,0,0,0,0,0,0,0,0,0,0,0,0,0]
[null,"TOTAL WORKDAYS:",null,{"$f":"SUM(D205:V205)","v":0}]
[null,"TOTAL PAYROLL BURDEN:",null,{"$f":"SUM(D208:V208)","v":0}]
[null,"AVERAGE COST PER HOUR:",null,{"$f":"SUM(D210/(D209*8))","v":{"$error":"#DIV/0!"}}]
[null,"GENERAL OVERHEAD:",{"$f":"PDEA_HEU_PUBLIC_INVOLVEMENT_SUB3_CONSULTANT_OVERHEAD","v":0},{"$f":"SUM(D210*C212)","v":0}]
[null,"SUBTOTAL:",null,{"$f":"SUM(D210+D212)","v":0}]
[null,"COMPARATIVE FEE:",{"$f":"PDEA_HEU_PUBLIC_INVOLVEMENT_SUB3_CONSULTANT_FEE","v":0.09},{"$f":"SUM(D213*C214)","v":0}]
[null,"FACILITIES COST OF CAPITAL:",{"$f":"PDEA_HEU_PUBLIC_INVOLVEMENT_SUB3_CONSULTANT_COSTofCAPITAL","v":0},{"$f":"SUM(D210*C215)","v":0}]
[null,"TOTAL:",null,{"$f":"SUM(D213:D215)","v":0}]
[null,"DIRECT EXPENSES:",null,{"$f":"PDEA_HEU_PUBLIC_INVOLVEMENT_SUB3_DIRECT_NONSALARY_TOTAL","v":0}]
[null,"PUBLIC INVOLVEMENT GRAND TOTAL:",null,{"$f":"SUM(D216:D217)","v":0}]
[]
[]
[]
[null,"Costs",null,"Workdays",null,null,null,null,"Dollars"]
[null,null,null,"EN Public Involvement","PEF","Delta ","Delta %",null,"EN Public Involvement",null,"PEF",null,"Delta ","Delta %"]
[null,null,null,null,null,{"$f":"SUM(E224-D224)","v":0},{"$f":"SUM((F224/D224)*100)","v":{"$error":"#DIV/0!"}},null,null,null,null,null,{"$f":"SUM(K224-I224)","v":0},{"$f":"SUM((M224/I224)*100)","v":{"$error":"#DIV/0!"}}]
[]
[]
[null,null,null,null,null,null,null,"Directs","Dollars"]
[null,null,null,null,null,null,null,null,"EN Public Involvement",null,"PEF",null,"Delta ","Delta %"]
[null,null,null,null,null,null,null,null,null,null,null,null,{"$f":"SUM(K229-I229)","v":0},{"$f":"SUM((M229/I229)*100)","v":{"$error":"#DIV/0!"}}]

{"sheet":"EN-PI-Exp-Sub3","index":87,"n_rows":100,"n_cols":8,"rows_kept":100,"cut":false,"hidden":true,"merged":[[6,1,6,3],[6,4,6,6],[0,0,0,7],[2,1,2,3],[3,1,3,7],[4,1,4,3],[4,6,4,7],[5,1,5,3],[5,5,5,7]]}
["PUBLIC INVOLVEMENT DIRECT EXPENSES - SUBCONSULTANT 3"]
[]
["FIRM:",{"$f":"'EN-PI-Sub3'!G3","v":"CONSULTANT NAME"}]
["PROJECT DESCRIPTION: ",{"$f":"PROJECT.DESCRIPTION","v":0}]
["PREPARED BY:  ",{"$f":"PUBLIC.INVOLVEMENT.SUB3.PREPARED.BY","v":""},null,null,"TASK ORDER NUMBER:",null,{"$f":"TASK.ORDER.NUMBER","v":0}]
["TIP NUMBER:",{"$f":"TIP.NUMBER","v":0},null,null,"WBS NUMBER:",{"$f":"WBS.NUMBER","v":""}]
["DATE PREPARED:",{"$f":"IF('EN-PI-Sub3'!N3=\"\",\"\",MAX('EN-PI-Sub3'!N3:'EN-PI-Sub3'!N4))","v":""},null,null,"REVIEWED BY UNIT HEAD ON:",null,null,{"$f":"IF(SCOPE.MANDAY.ESTIMATE.APPROVED.BY.DATE=\"\",\"\",SCOPE.MANDAY.ESTIMATE.APPROVED.BY.DATE)","v":""}]
["GENERAL PROJECT WORK:","ITEM","QTY","DESCRIPTION",null,null,"UNIT COST "]
[null,"Travel:"]
[null,"Sedan",null,"Trip(s) @",null,"miles @",{"$f":"SEDAN","v":0.7},{"$f":"SUM(C10*E10*G10)","v":0}]
[null,"Carry All",null,"Trip(s) @",null,"miles @",{"$f":"CARRYALL","v":0.72},{"$f":"SUM(C11*E11*G11)","v":0}]
[null,"Car Rental",null,null,null,"days @ ",{"$f":"CARRENTAL","v":50},{"$f":"SUM(E12*G12)","v":0}]
[null,"Gas for Rental",null,null,null,"miles @",{"$f":"GASforRENTAL","v":0.2},{"$f":"SUM(E13*G13)","v":0}]
[null,"Parking:",null,"Trip(s) @",null,null,{"$f":"PARKING","v":3},{"$f":"SUM(C14*G14)","v":0}]
[null,"Per Diem:",null,"Breakfast",null,null,{"$f":"BREAKFAST","v":10.1},{"$f":"SUM(C15*G15)","v":0}]
[null,null,null,"Lunch",null,null,{"$f":"LUNCH","v":13.3},0]
[null,null,null,"Dinner",null,null,{"$f":"DINNER","v":23.1},0]
[null,null,null,"Lodging",null,null,{"$f":"LODGING_LUMP.SUM","v":95},0]
[null,"Reproduction:",null,"8 1/2 x 11 B & W Copies @",null,null,{"$f":"LETTERCOPIES","v":0.14000000000000001},0]
[null,null,null,"11 x 17 B & W Copies @",null,null,{"$f":"LEDGERCOPIES","v":0.34},0]
[null,null,null,"8 1/2 x 11 Color Copies @",null,null,{"$f":"LETTERCOLOR","v":0.83},0]
[null,null,null,"11 x 17 Color Copies @",null,null,{"$f":"LEDGERCOLOR","v":1.66},0]
[null,null,null,"SQ. FT. of Plots (B & W or Color)",null,"<65 SQ. FT.*",{"$f":"ROLLPLOTSshort","v":6.5},0]
[null,null,null,"SQ. FT. of Plots (B & W or Color)",null,">65 SQ. FT.*",{"$f":"ROLLPLOTSlong","v":1.5},0]
[null,null,null,"Cover(s) @",null,null,{"$f":"COVERS","v":0.5},0]
[null,null,null,"Binder(s) @",null,null,{"$f":"BINDERS","v":0.5},0]
[null,null,null,"Blueprints - 8 1/2 x 11 @",null,null,{"$f":"BLUEPRINTSLETTER","v":0.35},0]
[null,null,null,"Blueprints - 42 x 72 @",null,null,{"$f":"BLUEPRINTSLARGE","v":1.3},0]
[null,"Film and Developing:",null,"Roll(s) @",null,null,{"$f":"FILM","v":20},0]
[null,null,null,null,null,"Subtotal",null,{"$f":"SUM(H10:H29)","v":0}]
["MAPS AND DOCUMENTS:","ITEM","QTY","DESCRIPTION",null,null,"UNIT COST "]
[null,"County Tax Maps:",null,"Map(s) @",null,null,{"$f":"County_Tax_Maps","v":7},{"$f":"SUM(C32*G32)","v":0}]
[null,"USGS Maps:",null,"Map(s) @",null,null,{"$f":"USGSMAPS","v":7},{"$f":"SUM(C33*G33)","v":0}]
[null,null,null,null,null,"Subtotal",null,{"$f":"SUM(H32:H33)","v":0}]
["TECHNICAL REPORTS:","ITEM","QTY","DESCRIPTION",null,null,"UNIT COST "]
[null,"Reproduction:",null,"8 1/2 x 11 B & W Copies @",null,null,{"$f":"LETTERCOPIES","v":0.14000000000000001},{"$f":"SUM(C36*G36)","v":0}]
[null,null,null,"11 x 17 B & W Copies @",null,null,{"$f":"LEDGERCOPIES","v":0.34},0]
[null,null,null,"8 1/2 x 11 Color Copies @",null,null,{"$f":"LETTERCOLOR","v":0.83},0]
[null,null,null,"11 x 17 Color Copies @",null,null,{"$f":"LEDGERCOLOR","v":1.66},0]
[null,null,null,"SQ. FT. of Plots (B & W or Color)",null,"<65 SQ. FT.*",{"$f":"ROLLPLOTSshort","v":6.5},0]
[null,null,null,"SQ. FT. of Plots (B & W or Color)",null,">65 SQ. FT.*",{"$f":"ROLLPLOTSlong","v":1.5},0]
[null,null,null,"Cover(s) @",null,null,{"$f":"COVERS","v":0.5},0]
[null,null,null,"Binder(s) @",null,null,{"$f":"BINDERS","v":0.5},0]
[null,null,null,null,null,"Subtotal",null,{"$f":"SUM(H36:H43)","v":0}]
["DESIGN:","ITEM","QTY","DESCRIPTION",null,null,"UNIT COST "]
[null,"Reproduction:",null,"8 1/2 x 11 B & W Copies @",null,null,{"$f":"LETTERCOPIES","v":0.14000000000000001},{"$f":"SUM(C46*G46)","v":0}]
[null,null,null,"11 x 17 B & W Copies @",null,null,{"$f":"LEDGERCOPIES","v":0.34},0]
[null,null,null,"Blueprints - 8 1/2 x 11 @",null,null,{"$f":"BLUEPRINTSLETTER","v":0.35},0]
[null,null,null,"Mylar - 8 1/2 x 11 @",null,null,{"$f":"MYLARSLETTER","v":7.32},0]
[null,null,null,"Mylar - 36 x 48 @",null,null,{"$f":"MYLARSLARGE","v":28.12},0]
[null,null,null,"Prints  - 24 x 36 @",null,null,{"$f":"PRINTSLARGE","v":3},0]
[null,null,null,"Blueprints - 42 x 72 @",null,null,{"$f":"BLUEPRINTSLARGE","v":1.3},0]
[null,null,null,"SQ. FT. of Plots (B & W or Color)",null,"<65 SQ. FT.*",{"$f":"ROLLPLOTSshort","v":6.5},0]
[null,null,null,"SQ. FT. of Plots (B & W or Color)",null,">65 SQ. FT.*",{"$f":"ROLLPLOTSlong","v":1.5},0]
[null,null,null,"USGS Map(s)",null,null,{"$f":"USGSMAPS","v":7},0]
[null,null,null,null,null,"Subtotal",null,{"$f":"SUM(H46:H55)","v":0}]
["MEETINGS & PUBLIC INVOLVEMENT:","ITEM","QTY","DESCRIPTION",null,null,"UNIT COST "]
[null,"Travel:"]
[null,"Sedan",null,"Trip(s) @",null,"miles @",{"$f":"SEDAN","v":0.7},{"$f":"SUM(C59*E59*G59)","v":0}]
[null,"CarryAll",null,"Trip(s) @",null,"miles @",{"$f":"CARRYALL","v":0.72},{"$f":"SUM(C60*E60*G60)","v":0}]
[null,"Car Rental",null,null,null,"days @",{"$f":"CARRENTAL","v":50},{"$f":"SUM(E61*G61)","v":0}]
[null,"Gas for Rental",null,null,null,"miles @",{"$f":"GASforRENTAL","v":0.2},{"$f":"SUM(E62*G62)","v":0}]
[null,"Parking:",null,"Trip(s) @",null,null,{"$f":"PARKING","v":3},{"$f":"SUM(C63*G63)","v":0}]
[null,"Per Diem:",null,"Breakfast",null,null,{"$f":"BREAKFAST","v":10.1},{"$f":"SUM(C64*G64)","v":0}]
[null,null,null,"Lunch",null,null,{"$f":"LUNCH","v":13.3},{"$f":"SUM(C65*G65)","v":0}]
[null,null,null,"Dinner",null,null,{"$f":"DINNER","v":23.1},{"$f":"SUM(C66*G66)","v":0}]
[null,null,null,"Lodging",null,null,{"$f":"LODGING_LUMP.SUM","v":95},{"$f":"SUM(C67*G67)","v":0}]
[null,"Workshop "]
[null,"  - Reproduction",null,"8 1/2 x 11 B & W Copies @",null,"Handouts",{"$f":"LETTERCOPIES","v":0.14000000000000001},{"$f":"SUM(C69*E69*G69)","v":0}]
[null,null,null,"11 x 17 B & W Copies @",null,"Handouts",{"$f":"LEDGERCOPIES","v":0.34},{"$f":"SUM(C70*E70*G70)","v":0}]
[null,null,null,"8 1/2 x 11 Color Copies @",null,null,{"$f":"LETTERCOLOR","v":0.83},{"$f":"SUM(C71*G71)","v":0}]
[null,null,null,"11 x 17 Color Copies @",null,null,{"$f":"LEDGERCOLOR","v":1.66},0]
[null,null,null,"SQ. FT. of Plots (B & W or Color)",null,"<65 SQ. FT.*",{"$f":"ROLLPLOTSshort","v":6.5},0]
[null,null,null,"SQ. FT. of Plots (B & W or Color)",null,">65 SQ. FT.*",{"$f":"ROLLPLOTSlong","v":1.5},0]
[null,null,null,"SQ. FT. Foam Mounting Board @",null,null,{"$f":"FOAMMOUNTINGBOARD","v":1.25},0]
[null,"Presentation Materials:",null,"Misc. Workshop Supplies @",null,"per workshop",{"$f":"MISCWORKSHOPSUPPLIES","v":50},0]
[null,null,null,null,null,null,null,0]
[null,null,null,null,null,null,null,0]
[null,null,null,null,null,null,null,0]
[null,null,null,null,null,null,null,0]
[null,"Mailing Labels:",null,"Laser Peel & Stick (box)",null,"750 per box",{"$f":"LASERPEELandSTICK","v":4},0]
[null,"Postage:"]
[null,"  - Public Workshops:",null,"Notice or Newsletter @",null,"copies @",{"$f":"POSTAGE","v":0.49},{"$f":"SUM(C83*E83*G83)","v":0}]
[null,null,null,null,null,"Subtotal",null,{"$f":"SUM(H58:H83)","v":0}]
["Miscellaneous Other","ITEM","QTY","DESCRIPTION",null,null,"UNIT COST "]
[null,null,null,null,null,null,null,{"$f":"SUM(C86*G86)","v":0}]
[null,null,null,null,null,null,null,{"$f":"SUM(C87*G87)","v":0}]
[null,null,null,null,null,null,null,0]
[null,null,null,null,null,null,null,0]
[null,null,null,null,null,null,null,0]
[null,null,null,null,null,null,null,0]
[null,null,null,null,null,null,null,0]
[null,null,null,null,null,null,null,{"$f":"SUM(C93*G93)","v":0}]
[null,null,null,null,null,null,null,{"$f":"SUM(C94*G94)","v":0}]
[null,null,null,null,null,null,null,{"$f":"SUM(C95*G95)","v":0}]
[null,null,null,null,null,"Subtotal",null,{"$f":"SUM(H86:H95)","v":0}]
[]
[null,null,null,null,null,"TOTAL",null,{"$f":"SUM(H30+H34+H44+H56+H84+H96)","v":0}]
[]
[null,"* Sum of all plots "]

{"sheet":"EN-Noise-Sub1","index":88,"n_rows":277,"n_cols":24,"rows_kept":277,"cut":false,"hidden":true,"merged":[[250,23,250,24],[219,23,219,24],[220,23,220,24],[222,23,222,24],[223,23,223,24],[224,23,224,24],[225,23,225,24],[226,23,226,24],[227,23,227,24],[228,23,228,24],[229,23,229,24],[230,23,230,24],[231,23,231,24],[232,23,232,24],[233,23,233,24],[237,23,237,24],[238,23,238,24],[239,23,239,24],[240,23,240,24],[241,23,241,24],[242,23,242,24],[246,23,246,24],[248,23,248,24],[249,23,249,24],[243,23,243,24],[244,23,244,24],[245,23,245,24],[213,23,213,24],[214,23,214,24],[215,23,215,24],[216,23,216,24],[217,23,217,24],[218,23,218,24],[234,23,234,24],[235,23,235,24],[236,23,236,24],[204,23,204,24],[205,23,205,24],[206,23,206,24],[207,23,207,24],[208,23,208,24],[209,23,209,24],[210,23,210,24],[211,23,211,24],[212,23,212,24],[195,23,195,24],[196,23,196,24],[197,23,197,24],[198,23,198,24],[199,23,199,24],[200,23,200,24],[201,23,201,24],[202,23,202,24],[203,23,203,24],[186,23,186,24],[187,23,187,24],[188,23,188,24],[189,23,189,24],[190,23,190,24],[191,23,191,24],[192,23,192,24],[193,23,193,24],[194,23,194,24],[177,23,177,24],[178,23,178,24],[179,23,179,24],[180,23,180,24],[181,23,181,24],[182,23,182,24],[183,23,183,24],[184,23,184,24],[185,23,185,24],[168,23,168,24],[169,23,169,24],[170,23,170,24],[171,23,171,24],[172,23,172,24],[173,23,173,24],[174,23,174,24],[175,23,175,24],[176,23,176,24],[159,23,159,24],[160,23,160,24],[161,23,161,24],[162,23,162,24],[163,23,163,24],[164,23,164,24],[165,23,165,24],[166,23,166,24],[167,23,167,24],[148,23,148,24],[149,23,149,24],[150,23,150,24],[151,23,151,24],[154,23,154,24],[155,23,155,24],[156,23,156,24],[157,23,157,24],[158,23,158,24],[139,23,139,24],[140,23,140,24],[141,23,141,24],[142,23,142,24],[143,23,143,24],[144,23,144,24],[145,23,145,24],[146,23,146,24],[147,23,147,24],[130,23,130,24],[131,23,131,24],[132,23,132,24],[133,23,133,24],[134,23,134,24],[135,23,135,24],[136,23,136,24],[137,23,137,24],[138,23,138,24],[22,23,22,24],[31,23,31,24],[32,23,32,24],[40,23,40,24],[56,23,56,24],[57,23,57,24],[70,23,70,24],[81,23,81,24],[82,23,82,24],[78,23,78,24],[79,23,79,24],[80,23,80,24],[71,23,71,24],[72,23,72,24],[73,23,73,24],[74,23,74,24],[75,23,75,24],[66,23,66,24],[67,23,67,24],[68,23,68,24],[69,23,69,24],[59,23,59,24],[60,23,60,24],[62,23,62,24],[265,1,266,1],[265,3,266,4],[269,3,269,6],[269,8,269,13],[276,8,276,9],[276,10,276,11],[270,8,270,9],[270,10,270,11],[271,8,271,9],[271,10,271,11],[274,8,274,13],[275,8,275,9],[275,10,275,11],[251,23,251,24],[114,23,114,24],[115,23,115,24],[116,23,116,24],[117,23,117,24],[118,23,118,24],[107,23,107,24],[108,23,108,24],[109,23,109,24],[110,23,110,24],[111,23,111,24],[112,23,112,24],[113,23,113,24],[119,23,119,24],[120,23,120,24],[121,23,121,24],[122,23,122,24],[123,23,123,24],[124,23,124,24],[125,23,125,24],[126,23,126,24],[127,23,127,24],[128,23,128,24],[129,23,129,24],[101,23,101,24],[102,23,102,24],[104,23,104,24],[105,23,105,24],[106,23,106,24],[95,23,95,24],[96,23,96,24],[97,23,97,24],[98,23,98,24],[99,23,99,24],[100,23,100,24],[103,23,103,24],[89,23,89,24],[90,23,90,24],[91,23,91,24],[94,23,94,24],[83,23,83,24],[84,23,84,24],[85,23,85,24],[86,23,86,24],[87,23,87,24],[88,23,88,24],[92,23,92,24],[93,23,93,24],[65,23,65,24],[50,23,50,24],[51,23,51,24],[42,23,42,24],[45,23,45,24],[46,23,46,24],[35,23,35,24],[36,23,36,24],[37,23,37,24],[39,23,39,24],[53,23,53,24],[38,23,38,24],[43,23,43,24],[44,23,44,24],[63,23,63,24],[64,23,64,24],[61,23,61,24],[54,23,54,24],[55,23,55,24],[58,23,58,24],[47,23,47,24],[48,23,48,24],[49,23,49,24],[52,23,52,24],[33,23,33,24],[34,23,34,24],[23,23,23,24],[24,23,24,24],[25,23,25,24],[26,23,26,24],[27,23,27,24],[28,23,28,24],[41,23,41,24],[29,23,29,24],[30,23,30,24],[18,23,18,24],[19,23,19,24],[21,23,21,24],[16,23,16,24],[17,23,17,24],[20,23,20,24],[7,15,10,15],[7,16,10,16],[7,17,10,17],[7,18,10,18],[7,19,10,19],[9,23,9,24],[15,23,15,24],[7,9,10,9],[7,10,10,10],[7,11,10,11],[7,12,10,12],[7,13,10,13],[7,14,10,14],[7,3,10,3],[7,4,10,4],[7,5,10,5],[7,6,10,6],[7,7,10,7],[7,8,10,8],[3,1,3,4],[3,6,3,7],[3,10,3,11],[3,13,3,14],[3,20,3,21],[5,3,5,19],[0,0,1,24],[2,1,2,4],[2,6,2,7],[2,10,2,11],[2,13,2,14],[2,20,2,21]]}
["NOISE DESIGN BREAKDOWN WORKSHEET - SUBCONSULTANT 1"]
[]
["PROJECT DESCRIPTION: ",{"$f":"PROJECT.DESCRIPTION","v":0},null,null,null,"FIRM:  ",{"$f":"PDEA_HEU_NOISE_SUB1_CONSULTANT_NAME","v":"CONSULTANT NAME"},null,"TASK ORDER NUMBER:",null,{"$f":"TASK.ORDER.NUMBER","v":0},null,"DATE PREPARED:",{"$f":"IF(SCOPE.MANDAY.ESTIMATE.PREPARED.BY.DATE=\"\",\"\",SCOPE.MANDAY.ESTIMATE.PREPARED.BY.DATE)","v":""}]
["PREPARED BY:  ",{"$f":"IF(SCOPE.MANDAY.ESTIMATE.PREPARED.BY=\"\",\"\",SCOPE.MANDAY.ESTIMATE.PREPARED.BY)","v":""},null,null,null,"TIP NUMBER:",{"$f":"TIP.NUMBER","v":0},null,"WBS NUMBER:",null,{"$f":"WBS.NUMBER","v":""},null,"REVISION DATE:",{"$f":"IF(SCOPE.MANDAY.ESTIMATE.APPROVED.BY.DATE=\"\",\"\",SCOPE.MANDAY.ESTIMATE.APPROVED.BY.DATE)","v":""}]
[]
[null,null,null,"ESTIMATED WORK DAYS"]
[null,null,"Employee",{"$f":"IF('PEF CLASSIFICATION SHEET'!$D715=\"\",\"\",LEFT('PEF CLASSIFICATION SHEET'!$D715,4))","v":""},{"$f":"IF('PEF CLASSIFICATION SHEET'!$D716=\"\",\"\",LEFT('PEF CLASSIFICATION SHEET'!$D716,4))","v":""},{"$f":"IF('PEF CLASSIFICATION SHEET'!$D717=\"\",\"\",LEFT('PEF CLASSIFICATION SHEET'!$D717,4))","v":""},{"$f":"IF('PEF CLASSIFICATION SHEET'!$D718=\"\",\"\",LEFT('PEF CLASSIFICATION SHEET'!$D718,4))","v":""},{"$f":"IF('PEF CLASSIFICATION SHEET'!$D719=\"\",\"\",LEFT('PEF CLASSIFICATION SHEET'!$D719,4))","v":""},{"$f":"IF('PEF CLASSIFICATION SHEET'!$D720=\"\",\"\",LEFT('PEF CLASSIFICATION SHEET'!$D720,4))","v":""},{"$f":"IF('PEF CLASSIFICATION SHEET'!$D721=\"\",\"\",LEFT('PEF CLASSIFICATION SHEET'!$D721,4))","v":""},{"$f":"IF('PEF CLASSIFICATION SHEET'!$D722=\"\",\"\",LEFT('PEF CLASSIFICATION SHEET'!$D722,4))","v":""},{"$f":"IF('PEF CLASSIFICATION SHEET'!$D723=\"\",\"\",LEFT('PEF CLASSIFICATION SHEET'!$D723,4))","v":""},{"$f":"IF('PEF CLASSIFICATION SHEET'!$D724=\"\",\"\",LEFT('PEF CLASSIFICATION SHEET'!$D724,4))","v":""},{"$f":"IF('PEF CLASSIFICATION SHEET'!$D725=\"\",\"\",LEFT('PEF CLASSIFICATION SHEET'!$D725,4))","v":""},{"$f":"IF('PEF CLASSIFICATION SHEET'!$D726=\"\",\"\",LEFT('PEF CLASSIFICATION SHEET'!$D726,4))","v":""},{"$f":"IF('PEF CLASSIFICATION SHEET'!$D727=\"\",\"\",LEFT('PEF CLASSIFICATION SHEET'!$D727,4))","v":""},{"$f":"IF('PEF CLASSIFICATION SHEET'!D728=\"\",\"\",LEFT('PEF CLASSIFICATION SHEET'!D728,4))","v":""},{"$f":"IF('PEF CLASSIFICATION SHEET'!D729=\"\",\"\",LEFT('PEF CLASSIFICATION SHEET'!D729,4))","v":""},{"$f":"IF('PEF CLASSIFICATION SHEET'!D730=\"\",\"\",LEFT('PEF CLASSIFICATION SHEET'!D730,4))","v":""},{"$f":"IF('PEF CLASSIFICATION SHEET'!D731=\"\",\"\",LEFT('PEF CLASSIFICATION SHEET'!D731,4))","v":""}]
[null,null,null,{"$f":"IF('PEF CLASSIFICATION SHEET'!$C715=\"\",\"\",'PEF CLASSIFICATION SHEET'!$C715)","v":""},{"$f":"IF('PEF CLASSIFICATION SHEET'!$C716=\"\",\"\",'PEF CLASSIFICATION SHEET'!$C716)","v":""},{"$f":"IF('PEF CLASSIFICATION SHEET'!$C717=\"\",\"\",'PEF CLASSIFICATION SHEET'!$C717)","v":""},{"$f":"IF('PEF CLASSIFICATION SHEET'!$C718=\"\",\"\",'PEF CLASSIFICATION SHEET'!$C718)","v":""},{"$f":"IF('PEF CLASSIFICATION SHEET'!$C719=\"\",\"\",'PEF CLASSIFICATION SHEET'!$C719)","v":""},{"$f":"IF('PEF CLASSIFICATION SHEET'!$C720=\"\",\"\",'PEF CLASSIFICATION SHEET'!$C720)","v":""},{"$f":"IF('PEF CLASSIFICATION SHEET'!$C721=\"\",\"\",'PEF CLASSIFICATION SHEET'!$C721)","v":""},{"$f":"IF('PEF CLASSIFICATION SHEET'!$C722=\"\",\"\",'PEF CLASSIFICATION SHEET'!$C722)","v":""},{"$f":"IF('PEF CLASSIFICATION SHEET'!$C723=\"\",\"\",'PEF CLASSIFICATION SHEET'!$C723)","v":""},{"$f":"IF('PEF CLASSIFICATION SHEET'!$C724=\"\",\"\",'PEF CLASSIFICATION SHEET'!$C724)","v":""},{"$f":"IF('PEF CLASSIFICATION SHEET'!$C725=\"\",\"\",'PEF CLASSIFICATION SHEET'!$C725)","v":""},{"$f":"IF('PEF CLASSIFICATION SHEET'!$C726=\"\",\"\",'PEF CLASSIFICATION SHEET'!$C726)","v":""},{"$f":"IF('PEF CLASSIFICATION SHEET'!$C727=\"\",\"\",'PEF CLASSIFICATION SHEET'!$C727)","v":""},{"$f":"IF('PEF CLASSIFICATION SHEET'!C728=\"\",\"\",'PEF CLASSIFICATION SHEET'!C728)","v":""},{"$f":"IF('PEF CLASSIFICATION SHEET'!C729=\"\",\"\",'PEF CLASSIFICATION SHEET'!C729)","v":""},{"$f":"IF('PEF CLASSIFICATION SHEET'!C730=\"\",\"\",'PEF CLASSIFICATION SHEET'!C730)","v":""},{"$f":"IF('PEF CLASSIFICATION SHEET'!C731=\"\",\"\",'PEF CLASSIFICATION SHEET'!C731)","v":""},"SUB-","%","PEF"]
[null,null,"Classification",null,null,null,null,null,null,null,null,null,null,null,null,null,null,null,null,null,"TOTAL","OF","ESTIMATE"]
["TASK","TASK DESCRIPTION",null,null,null,null,null,null,null,null,null,null,null,null,null,null,null,null,null,null,null,"PROJECT",null,"COMMENTS"]
["NO."]
["2EN2","Assess Human Environmental Impacts-Noise",null,null,null,null,null,null,null,null,null,null,null,null,null,null,null,null,null,null,{"$f":"IF(B12=\"\",0,IF((SUM(D12:T12)=0),\"\",SUM(D12:T12)))","v":""},{"$f":"IF(U12=\"\",\"\",SUM((U12/$U$253)))","v":""}]
["3.0","Traffic Noise",null,null,null,null,null,null,null,null,null,null,null,null,null,null,null,null,null,null,"",{"$f":"IF(U13=\"\",\"\",SUM((U13/#REF!)))","v":""}]
[3.1,"Project Initiation",null,null,null,null,null,null,null,null,null,null,null,null,null,null,null,null,null,null,"",{"$f":"IF(U14=\"\",\"\",SUM((U14/#REF!)))","v":""}]
["3.1.1","Obtain Existing Project Information (aerial imagery, project survey files, project design files, existing surface/contour data that encompasses the entire traffic noise study area)",null,null,null,null,null,null,null,null,null,null,null,null,null,null,null,null,null,null,{"$f":"IF(B15=\"\",0,IF((SUM(D15:T15)=0),\"\",SUM(D15:T15)))","v":""},{"$f":"IF(U15=\"\",\"\",SUM((U15/#REF!)))","v":""}]
["3.1.2","Project Area Reconnaissance (if applicable)",null,null,null,null,null,null,null,null,null,null,null,null,null,null,null,null,null,null,"",{"$f":"IF(U16=\"\",\"\",SUM((U16/#REF!)))","v":""}]
["3.1.3 ","Identify Current Noise Sensitive Land Uses within the initial noise area study limit appropriate for the roadway functional classification (Traffic Noise Manual Table 7.1)",null,null,null,null,null,null,null,null,null,null,null,null,null,null,null,null,null,null,"",{"$f":"IF(U17=\"\",\"\",SUM((U17/#REF!)))","v":""}]
["3.1.4","Identify Future Noise Sensitive Land Uses Likely to be Permitted Prior to DoPK",null,null,null,null,null,null,null,null,null,null,null,null,null,null,null,null,null,null,"",{"$f":"IF(U18=\"\",\"\",SUM((U18/#REF!)))","v":""}]
[null,null,null,null,null,null,null,null,null,null,null,null,null,null,null,null,null,null,null,null,0,{"$f":"IF(U19=\"\",\"\",SUM((U19/#REF!)))","v":{"$error":"#REF!"}}]
[3.2,"Noise Analysis Work Plan",null,null,null,null,null,null,null,null,null,null,null,null,null,null,null,null,null,null,"",{"$f":"IF(U20=\"\",\"\",SUM((U20/#REF!)))","v":""}]
["3.2.1","Draft Noise Analysis Work Plan",null,null,null,null,null,null,null,null,null,null,null,null,null,null,null,null,null,null,"",{"$f":"IF(U21=\"\",\"\",SUM((U21/#REF!)))","v":""}]
["3.2.1.1","Memo",null,null,null,null,null,null,null,null,null,null,null,null,null,null,null,null,null,null,"",{"$f":"IF(U22=\"\",\"\",SUM((U22/#REF!)))","v":""}]
["3.2.1.2","Figures",null,null,null,null,null,null,null,null,null,null,null,null,null,null,null,null,null,null,"",{"$f":"IF(U23=\"\",\"\",SUM((U23/#REF!)))","v":""}]
["3.2.1.3"," QC/QA ",null,null,null,null,null,null,null,null,null,null,null,null,null,null,null,null,null,null,"",{"$f":"IF(U24=\"\",\"\",SUM((U24/#REF!)))","v":""}]
["3.2.2","Coordinate with non-residential property owners to obtain usage data for ER calculations, window condition/building type information for NAC D receptors, etc.",null,null,null,null,null,null,null,null,null,null,null,null,null,null,null,null,null,null,"",{"$f":"IF(U25=\"\",\"\",SUM((U25/#REF!)))","v":""}]
["3.2.3","Work Plan Meeting with NCDOT",null,null,null,null,null,null,null,null,null,null,null,null,null,null,null,null,null,null,"",{"$f":"IF(U26=\"\",\"\",SUM((U26/#REF!)))","v":""}]
["3.2.4","Revised Noise Analysis Work Plan",null,null,null,null,null,null,null,null,null,null,null,null,null,null,null,null,null,null,"",{"$f":"IF(U27=\"\",\"\",SUM((U27/#REF!)))","v":""}]
["3.2.4.1","Address Comments (including Memo and Figures)",null,null,null,null,null,null,null,null,null,null,null,null,null,null,null,null,null,null,"",{"$f":"IF(U28=\"\",\"\",SUM((U28/#REF!)))","v":""}]
["3.2.4.2","Prepare Comment Response Matrix",null,null,null,null,null,null,null,null,null,null,null,null,null,null,null,null,null,null,"",{"$f":"IF(U29=\"\",\"\",SUM((U29/#REF!)))","v":""}]
["3.2.4.3"," QC/QA",null,null,null,null,null,null,null,null,null,null,null,null,null,null,null,null,null,null,"",{"$f":"IF(U30=\"\",\"\",SUM((U30/#REF!)))","v":""}]
["3.2.5","Final Noise Analysis Work Plan",null,null,null,null,null,null,null,null,null,null,null,null,null,null,null,null,null,null,"",{"$f":"IF(U31=\"\",\"\",SUM((U31/#REF!)))","v":""}]
["3.2.5.1","Address Comments (including Memo and Figures)",null,null,null,null,null,null,null,null,null,null,null,null,null,null,null,null,null,null,"",{"$f":"IF(U32=\"\",\"\",SUM((U32/#REF!)))","v":""}]
["3.2.5.2","Prepare Comment Response Matrix",null,null,null,null,null,null,null,null,null,null,null,null,null,null,null,null,null,null,"",{"$f":"IF(U33=\"\",\"\",SUM((U33/#REF!)))","v":""}]
["3.2.5.3","QC/QA",null,null,null,null,null,null,null,null,null,null,null,null,null,null,null,null,null,null,"",{"$f":"IF(U34=\"\",\"\",SUM((U34/#REF!)))","v":""}]
[null,null,null,null,null,null,null,null,null,null,null,null,null,null,null,null,null,null,null,null,0,{"$f":"IF(U35=\"\",\"\",SUM((U35/#REF!)))","v":{"$error":"#REF!"}}]
[3.3,"Ambient Noise Measurements",null,null,null,null,null,null,null,null,null,null,null,null,null,null,null,null,null,null,"",{"$f":"IF(U36=\"\",\"\",SUM((U36/#REF!)))","v":""}]
["3.3.1","Preparation (securing/testing SLMs and other equipment, preparing field data sheets and other materials, etc.)",null,null,null,null,null,null,null,null,null,null,null,null,null,null,null,null,null,null,"",{"$f":"IF(U37=\"\",\"\",SUM((U37/#REF!)))","v":""}]
["3.3.2","Noise Monitoring/Field Work",null,null,null,null,null,null,null,null,null,null,null,null,null,null,null,null,null,null,"",{"$f":"IF(U38=\"\",\"\",SUM((U38/#REF!)))","v":""}]
["3.3.3","Post-Processing (extracting data, despiking, calculating hourly equivalent noise levels, calculating rolling loudest hour, etc.)",null,null,null,null,null,null,null,null,null,null,null,null,null,null,null,null,null,null,"",{"$f":"IF(U39=\"\",\"\",SUM((U39/#REF!)))","v":""}]
[null,null,null,null,null,null,null,null,null,null,null,null,null,null,null,null,null,null,null,null,0,{"$f":"IF(U40=\"\",\"\",SUM((U40/#REF!)))","v":{"$error":"#REF!"}}]
[3.4,"Baseline TNM Models",null,null,null,null,null,null,null,null,null,null,null,null,null,null,null,null,null,null,"",{"$f":"IF(U41=\"\",\"\",SUM((U41/#REF!)))","v":""}]
["3.4.1","Traffic Calculations",null,null,null,null,null,null,null,null,null,null,null,null,null,null,null,null,null,null,"",{"$f":"IF(U42=\"\",\"\",SUM((U42/#REF!)))","v":""}]
["3.4.2","Roadways",null,null,null,null,null,null,null,null,null,null,null,null,null,null,null,null,null,null,"",{"$f":"IF(U43=\"\",\"\",SUM((U43/#REF!)))","v":""}]
["3.4.2.1","Input Observed Traffic Volumes and Speeds for Validation Models",null,null,null,null,null,null,null,null,null,null,null,null,null,null,null,null,null,null,"",{"$f":"IF(U44=\"\",\"\",SUM((U44/#REF!)))","v":""}]
["3.4.3","Receptors (all the noise-sensitive receptors to be included in the analysis)",null,null,null,null,null,null,null,null,null,null,null,null,null,null,null,null,null,null,"",{"$f":"IF(U45=\"\",\"\",SUM((U45/#REF!)))","v":""}]
["3.4.3.1","TNM receivers representing the SLM setup sites during field work for Validation Models",null,null,null,null,null,null,null,null,null,null,null,null,null,null,null,null,null,null,"",{"$f":"IF(U46=\"\",\"\",SUM((U46/#REF!)))","v":""}]
["3.4.4","Structures (individual buildings, shoulder/median safety barriers, retaining walls, existing noise walls, etc.)",null,null,null,null,null,null,null,null,null,null,null,null,null,null,null,null,null,null,"",{"$f":"IF(U47=\"\",\"\",SUM((U47/#REF!)))","v":""}]
["3.4.5","Additional TNM Elements (Terrain Lines, Ground Zones, etc.)",null,null,null,null,null,null,null,null,null,null,null,null,null,null,null,null,null,null,"",{"$f":"IF(U48=\"\",\"\",SUM((U48/#REF!)))","v":""}]
["3.4.5.1","Validation-only TNM elements (Tree Zones, Building Rows representing privacy fences, etc.)",null,null,null,null,null,null,null,null,null,null,null,null,null,null,null,null,null,null,"",{"$f":"IF(U49=\"\",\"\",SUM((U49/#REF!)))","v":""}]
["3.4.6","Run TNM Models",null,null,null,null,null,null,null,null,null,null,null,null,null,null,null,null,null,null,"",{"$f":"IF(U50=\"\",\"\",SUM((U50/#REF!)))","v":""}]
["3.4.6.1","QC/QA TNM input",null,null,null,null,null,null,null,null,null,null,null,null,null,null,null,null,null,null,"",{"$f":"IF(U51=\"\",\"\",SUM((U51/#REF!)))","v":""}]
["3.4.6.2","Troubleshooting",null,null,null,null,null,null,null,null,null,null,null,null,null,null,null,null,null,null,"",{"$f":"IF(U52=\"\",\"\",SUM((U52/#REF!)))","v":""}]
["3.4.6.3","Validation Model QC/QA, Troubleshooting, and Adjustments (if necessary)",null,null,null,null,null,null,null,null,null,null,null,null,null,null,null,null,null,null,"",{"$f":"IF(U53=\"\",\"\",SUM((U53/#REF!)))","v":""}]
[null,null,null,null,null,null,null,null,null,null,null,null,null,null,null,null,null,null,null,null,0,{"$f":"IF(U54=\"\",\"\",SUM((U54/#REF!)))","v":{"$error":"#REF!"}}]
[3.5,"TNM Validation Memorandum",null,null,null,null,null,null,null,null,null,null,null,null,null,null,null,null,null,null,"",{"$f":"IF(U55=\"\",\"\",SUM((U55/#REF!)))","v":""}]
["3.5.1","Draft Validation Memo",null,null,null,null,null,null,null,null,null,null,null,null,null,null,null,null,null,null,"",{"$f":"IF(U56=\"\",\"\",SUM((U56/#REF!)))","v":""}]
["3.5.1.1","Memo",null,null,null,null,null,null,null,null,null,null,null,null,null,null,null,null,null,null,"",{"$f":"IF(U57=\"\",\"\",SUM((U57/#REF!)))","v":""}]
["3.5.1.2","Appendices and Supporting Documents",null,null,null,null,null,null,null,null,null,null,null,null,null,null,null,null,null,null,"",{"$f":"IF(U58=\"\",\"\",SUM((U58/#REF!)))","v":""}]
["3.5.1.3","QC/QA",null,null,null,null,null,null,null,null,null,null,null,null,null,null,null,null,null,null,"",{"$f":"IF(U59=\"\",\"\",SUM((U59/#REF!)))","v":""}]
["3.5.2","Revised Validation Memo",null,null,null,null,null,null,null,null,null,null,null,null,null,null,null,null,null,null,"",{"$f":"IF(U60=\"\",\"\",SUM((U60/#REF!)))","v":""}]
["3.5.2.1","Address Comments (including Memo, Appendices, Supporting Documents, and Modeling)",null,null,null,null,null,null,null,null,null,null,null,null,null,null,null,null,null,null,"",{"$f":"IF(U61=\"\",\"\",SUM((U61/#REF!)))","v":""}]
["3.5.2.2","Prepare Comment Response Matrix",null,null,null,null,null,null,null,null,null,null,null,null,null,null,null,null,null,null,"",{"$f":"IF(U62=\"\",\"\",SUM((U62/#REF!)))","v":""}]
["3.5.2.3","QC/QA",null,null,null,null,null,null,null,null,null,null,null,null,null,null,null,null,null,null,"",{"$f":"IF(U63=\"\",\"\",SUM((U63/#REF!)))","v":""}]
["3.5.3","Final Validation Memo",null,null,null,null,null,null,null,null,null,null,null,null,null,null,null,null,null,null,"",{"$f":"IF(U64=\"\",\"\",SUM((U64/#REF!)))","v":""}]
["3.5.3.1","Validation Review with NCDOT – if applicable",null,null,null,null,null,null,null,null,null,null,null,null,null,null,null,null,null,null,"",{"$f":"IF(U65=\"\",\"\",SUM((U65/#REF!)))","v":""}]
["3.5.3.2","Address Comments (including Memo, Appendices, Supporting Documents, and Modeling)",null,null,null,null,null,null,null,null,null,null,null,null,null,null,null,null,null,null,"",{"$f":"IF(U66=\"\",\"\",SUM((U66/#REF!)))","v":""}]
["3.5.3.3","Prepare Comment Response Matrix",null,null,null,null,null,null,null,null,null,null,null,null,null,null,null,null,null,null,"",{"$f":"IF(U67=\"\",\"\",SUM((U67/#REF!)))","v":""}]
["3.5.3.4","QC/QA",null,null,null,null,null,null,null,null,null,null,null,null,null,null,null,null,null,null,"",{"$f":"IF(U68=\"\",\"\",SUM((U68/#REF!)))","v":""}]
[null,null,null,null,null,null,null,null,null,null,null,null,null,null,null,null,null,null,null,null,0,{"$f":"IF(U69=\"\",\"\",SUM((U69/#REF!)))","v":{"$error":"#REF!"}}]
[3.6,"No-Build Condition TNM Models ",null,null,null,null,null,null,null,null,null,null,null,null,null,null,null,null,null,null,"",{"$f":"IF(U70=\"\",\"\",SUM((U70/#REF!)))","v":""}]
["3.6.1","Traffic Calculations",null,null,null,null,null,null,null,null,null,null,null,null,null,null,null,null,null,null,"",{"$f":"IF(U71=\"\",\"\",SUM((U71/#REF!)))","v":""}]
["3.6.2","Run TNM Models",null,null,null,null,null,null,null,null,null,null,null,null,null,null,null,null,null,null,"",{"$f":"IF(U72=\"\",\"\",SUM((U72/#REF!)))","v":""}]
["3.6.2.1","QC/QA TNM input",null,null,null,null,null,null,null,null,null,null,null,null,null,null,null,null,null,null,"",{"$f":"IF(U73=\"\",\"\",SUM((U73/#REF!)))","v":""}]
["3.6.2.2","Troubleshooting",null,null,null,null,null,null,null,null,null,null,null,null,null,null,null,null,null,null,"",{"$f":"IF(U74=\"\",\"\",SUM((U74/#REF!)))","v":""}]
[null,null,null,null,null,null,null,null,null,null,null,null,null,null,null,null,null,null,null,null,0,{"$f":"IF(U75=\"\",\"\",SUM((U75/#REF!)))","v":{"$error":"#REF!"}}]
[3.7,"Build Condition TNM Models",null,null,null,null,null,null,null,null,null,null,null,null,null,null,null,null,null,null,"",{"$f":"IF(U76=\"\",\"\",SUM((U76/#REF!)))","v":""}]
["3.7.1","Roadways",null,null,null,null,null,null,null,null,null,null,null,null,null,null,null,null,null,null,"",{"$f":"IF(U77=\"\",\"\",SUM((U77/#REF!)))","v":""}]
["3.7.2","Traffic Calculations",null,null,null,null,null,null,null,null,null,null,null,null,null,null,null,null,null,null,"",{"$f":"IF(U78=\"\",\"\",SUM((U78/#REF!)))","v":""}]
["3.7.3","Remove Displaced Receptors due to ROW acquisition ",null,null,null,null,null,null,null,null,null,null,null,null,null,null,null,null,null,null,{"$f":"IF(B79=\"\",0,IF((SUM(D79:T79)=0),\"\",SUM(D79:T79)))","v":""},{"$f":"IF(U79=\"\",\"\",SUM((U79/#REF!)))","v":""}]
["3.7.4","Additional TNM Elements (Barriers, Terrain Lines, Ground Zones, etc.) ",null,null,null,null,null,null,null,null,null,null,null,null,null,null,null,null,null,null,"",{"$f":"IF(U80=\"\",\"\",SUM((U80/#REF!)))","v":""}]
["3.7.5","Run TNM Models",null,null,null,null,null,null,null,null,null,null,null,null,null,null,null,null,null,null,"",{"$f":"IF(U81=\"\",\"\",SUM((U81/#REF!)))","v":""}]
["3.7.5.1","QC/QA TNM input",null,null,null,null,null,null,null,null,null,null,null,null,null,null,null,null,null,null,"",{"$f":"IF(U82=\"\",\"\",SUM((U82/#REF!)))","v":""}]
["3.7.5.2","Troubleshooting",null,null,null,null,null,null,null,null,null,null,null,null,null,null,null,null,null,null,"",{"$f":"IF(U83=\"\",\"\",SUM((U83/#REF!)))","v":""}]
["3.7.6","Noise Level Contour TNM Models",null,null,null,null,null,null,null,null,null,null,null,null,null,null,null,null,null,null,"",{"$f":"IF(U84=\"\",\"\",SUM((U84/#REF!)))","v":""}]
["3.7.7","ER Calculations",null,null,null,null,null,null,null,null,null,null,null,null,null,null,null,null,null,null,"",{"$f":"IF(U85=\"\",\"\",SUM((U85/#REF!)))","v":""}]
[null,null,null,null,null,null,null,null,null,null,null,null,null,null,null,null,null,null,null,null,0,{"$f":"IF(U86=\"\",\"\",SUM((U86/#REF!)))","v":{"$error":"#REF!"}}]
[3.8,"Noise Abatement",null,null,null,null,null,null,null,null,null,null,null,null,null,null,null,null,null,null,"",{"$f":"IF(U87=\"\",\"\",SUM((U87/#REF!)))","v":""}]
["3.8.1","Barrier Input/Optimization",null,null,null,null,null,null,null,null,null,null,null,null,null,null,null,null,null,null,"",{"$f":"IF(U88=\"\",\"\",SUM((U88/#REF!)))","v":""}]
["3.8.2","Run TNM models",null,null,null,null,null,null,null,null,null,null,null,null,null,null,null,null,null,null,"",{"$f":"IF(U89=\"\",\"\",SUM((U89/#REF!)))","v":""}]
["3.8.2.1","QC/QA TNM Barriers",null,null,null,null,null,null,null,null,null,null,null,null,null,null,null,null,null,null,"",{"$f":"IF(U90=\"\",\"\",SUM((U90/#REF!)))","v":""}]
["3.8.2.2","Troubleshooting",null,null,null,null,null,null,null,null,null,null,null,null,null,null,null,null,null,null,"",{"$f":"IF(U91=\"\",\"\",SUM((U91/#REF!)))","v":""}]
["3.8.3","Parallel Barriers",null,null,null,null,null,null,null,null,null,null,null,null,null,null,null,null,null,null,"",{"$f":"IF(U92=\"\",\"\",SUM((U92/#REF!)))","v":""}]
[null,null,null,null,null,null,null,null,null,null,null,null,null,null,null,null,null,null,null,null,0,{"$f":"IF(U93=\"\",\"\",SUM((U93/#REF!)))","v":{"$error":"#REF!"}}]
[3.9,"Noise Report",null,null,null,null,null,null,null,null,null,null,null,null,null,null,null,null,null,null,"",{"$f":"IF(U94=\"\",\"\",SUM((U94/#REF!)))","v":""}]
["3.9.1","Draft 1 of TNR",null,null,null,null,null,null,null,null,null,null,null,null,null,null,null,null,null,null,"",{"$f":"IF(U95=\"\",\"\",SUM((U95/#REF!)))","v":""}]
["3.9.1.1","Noise Analysis Review with NCDOT",null,null,null,null,null,null,null,null,null,null,null,null,null,null,null,null,null,null,"",{"$f":"IF(U96=\"\",\"\",SUM((U96/#REF!)))","v":""}]
["3.9.1.2","Text, Tables, Figures",null,null,null,null,null,null,null,null,null,null,null,null,null,null,null,null,null,null,"",{"$f":"IF(U97=\"\",\"\",SUM((U97/#REF!)))","v":""}]
["3.9.1.3","Consideration of non-traffic noise sources",null,null,null,null,null,null,null,null,null,null,null,null,null,null,null,null,null,null,"",{"$f":"IF(U98=\"\",\"\",SUM((U98/#REF!)))","v":""}]
["3.9.1.4","Appendices (field data, Noise Level Tables, Barrier Performance Tables,  Traffic Volumes, Noise Policy)",null,null,null,null,null,null,null,null,null,null,null,null,null,null,null,null,null,null,"",{"$f":"IF(U99=\"\",\"\",SUM((U99/#REF!)))","v":""}]
["3.9.1.5","QC/QA",null,null,null,null,null,null,null,null,null,null,null,null,null,null,null,null,null,null,"",{"$f":"IF(U100=\"\",\"\",SUM((U100/#REF!)))","v":""}]
["3.9.2","Draft 2 of TNR ",null,null,null,null,null,null,null,null,null,null,null,null,null,null,null,null,null,null,"",{"$f":"IF(U101=\"\",\"\",SUM((U101/#REF!)))","v":""}]
["3.9.2.1","Address Comments (including Text, Tables, Figures, Appendices, Modeling)",null,null,null,null,null,null,null,null,null,null,null,null,null,null,null,null,null,null,"",{"$f":"IF(U102=\"\",\"\",SUM((U102/#REF!)))","v":""}]
["3.9.2.2","Prepare Comment Response Matrix",null,null,null,null,null,null,null,null,null,null,null,null,null,null,null,null,null,null,"",{"$f":"IF(U103=\"\",\"\",SUM((U103/#REF!)))","v":""}]
["3.9.2.3","QC/QA",null,null,null,null,null,null,null,null,null,null,null,null,null,null,null,null,null,null,"",{"$f":"IF(U104=\"\",\"\",SUM((U104/#REF!)))","v":""}]
["3.9.3","Draft 3 of TNR ",null,null,null,null,null,null,null,null,null,null,null,null,null,null,null,null,null,null,"",{"$f":"IF(U105=\"\",\"\",SUM((U105/#REF!)))","v":""}]
["3.9.3.1","Address Comments (including Text, Tables, Figures, Appendices, Modeling)",null,null,null,null,null,null,null,null,null,null,null,null,null,null,null,null,null,null,"",{"$f":"IF(U106=\"\",\"\",SUM((U106/#REF!)))","v":""}]
["3.9.3.2","Prepare Comment Response Matrix",null,null,null,null,null,null,null,null,null,null,null,null,null,null,null,null,null,null,"",{"$f":"IF(U107=\"\",\"\",SUM((U107/#REF!)))","v":""}]
["3.9.3.3","QC/QA",null,null,null,null,null,null,null,null,null,null,null,null,null,null,null,null,null,null,"",{"$f":"IF(U108=\"\",\"\",SUM((U108/#REF!)))","v":""}]
["3.9.4","Final TNR",null,null,null,null,null,null,null,null,null,null,null,null,null,null,null,null,null,null,"",{"$f":"IF(U109=\"\",\"\",SUM((U109/#REF!)))","v":""}]
["3.9.4.1","Address Comments (including Text, Tables, Figures, Appendices, Modeling)",null,null,null,null,null,null,null,null,null,null,null,null,null,null,null,null,null,null,"",{"$f":"IF(U110=\"\",\"\",SUM((U110/#REF!)))","v":""}]
["3.9.4.2","Prepare Comment Response Matrix",null,null,null,null,null,null,null,null,null,null,null,null,null,null,null,null,null,null,"",{"$f":"IF(U111=\"\",\"\",SUM((U111/#REF!)))","v":""}]
["3.9.4.3","QC/QA",null,null,null,null,null,null,null,null,null,null,null,null,null,null,null,null,null,null,"",{"$f":"IF(U112=\"\",\"\",SUM((U112/#REF!)))","v":""}]
["3.9.5","Prepare “Streamlined Traffic Noise Text”",null,null,null,null,null,null,null,null,null,null,null,null,null,null,null,null,null,null,"",{"$f":"IF(U113=\"\",\"\",SUM((U113/#REF!)))","v":""}]
[null,null,null,null,null,null,null,null,null,null,null,null,null,null,null,null,null,null,null,null,0,{"$f":"IF(U114=\"\",\"\",SUM((U114/#REF!)))","v":{"$error":"#REF!"}}]
[3.1,"Task Management",null,null,null,null,null,null,null,null,null,null,null,null,null,null,null,null,null,null,"",{"$f":"IF(U115=\"\",\"\",SUM((U115/#REF!)))","v":""}]
["3.10.1","Public Involvement (Hearings, Meetings, etc.)",null,null,null,null,null,null,null,null,null,null,null,null,null,null,null,null,null,null,"",{"$f":"IF(U116=\"\",\"\",SUM((U116/#REF!)))","v":""}]
["3.10.2","Administration & Coordination with NCDOT (other than above meetings)",null,null,null,null,null,null,null,null,null,null,null,null,null,null,null,null,null,null,"",{"$f":"IF(U117=\"\",\"\",SUM((U117/#REF!)))","v":""}]
[null,null,null,null,null,null,null,null,null,null,null,null,null,null,null,null,null,null,null,null,0,{"$f":"IF(U118=\"\",\"\",SUM((U118/#REF!)))","v":{"$error":"#REF!"}}]
[3.11," Other Tasks",null,null,null,null,null,null,null,null,null,null,null,null,null,null,null,null,null,null,"",{"$f":"IF(U119=\"\",\"\",SUM((U119/#REF!)))","v":""}]
["",null,null,null,null,null,null,null,null,null,null,null,null,null,null,null,null,null,null,null,0,{"$f":"IF(U120=\"\",\"\",SUM((U120/#REF!)))","v":{"$error":"#REF!"}}]
["",null,null,null,null,null,null,null,null,null,null,null,null,null,null,null,null,null,null,null,0,{"$f":"IF(U121=\"\",\"\",SUM((U121/#REF!)))","v":{"$error":"#REF!"}}]
["",null,null,null,null,null,null,null,null,null,null,null,null,null,null,null,null,null,null,null,0,{"$f":"IF(U122=\"\",\"\",SUM((U122/#REF!)))","v":{"$error":"#REF!"}}]
["",null,null,null,null,null,null,null,null,null,null,null,null,null,null,null,null,null,null,null,0,{"$f":"IF(U123=\"\",\"\",SUM((U123/#REF!)))","v":{"$error":"#REF!"}}]
["",null,null,null,null,null,null,null,null,null,null,null,null,null,null,null,null,null,null,null,0,{"$f":"IF(U124=\"\",\"\",SUM((U124/#REF!)))","v":{"$error":"#REF!"}}]
["",null,null,null,null,null,null,null,null,null,null,null,null,null,null,null,null,null,null,null,0,{"$f":"IF(U125=\"\",\"\",SUM((U125/#REF!)))","v":{"$error":"#REF!"}}]
["3EN1/3EN2","Develop Noise Report or Addendum/Document Noise Abatement Strategy",null,null,null,null,null,null,null,null,null,null,null,null,null,null,null,null,null,null,"",{"$f":"IF(U126=\"\",\"\",SUM((U126/#REF!)))","v":""}]
["1.0 ","Project Initiation",null,null,null,null,null,null,null,null,null,null,null,null,null,null,null,null,null,null,"",{"$f":"IF(U127=\"\",\"\",SUM((U127/#REF!)))","v":""}]
[1.1000000000000001,"Obtain Existing Project Information (aerial imagery, project survey files, project design files, existing surface/contour data that encompasses the entire traffic noise study area)",null,null,null,null,null,null,null,null,null,null,null,null,null,null,null,null,null,null,"",{"$f":"IF(U128=\"\",\"\",SUM((U128/#REF!)))","v":""}]
[1.2,"Project Area Reconnaissance (if applicable)",null,null,null,null,null,null,null,null,null,null,null,null,null,null,null,null,null,null,"",{"$f":"IF(U129=\"\",\"\",SUM((U129/#REF!)))","v":""}]
[1.3,"Identify Current Noise Sensitive Land Uses within the initial noise area study limit appropriate for the roadway functional classification ",null,null,null,null,null,null,null,null,null,null,null,null,null,null,null,null,null,null,"",{"$f":"IF(U130=\"\",\"\",SUM((U130/#REF!)))","v":""}]
[1.4,"Identify Future Noise Sensitive Land Uses Permitted Prior to DoPK",null,null,null,null,null,null,null,null,null,null,null,null,null,null,null,null,null,null,"",{"$f":"IF(U131=\"\",\"\",SUM((U131/#REF!)))","v":""}]
["","",null,null,null,null,null,null,null,null,null,null,null,null,null,null,null,null,null,null,0,{"$f":"IF(U132=\"\",\"\",SUM((U132/#REF!)))","v":{"$error":"#REF!"}}]
["2.0 ","Noise Analysis Work Plan (if applicable)",null,null,null,null,null,null,null,null,null,null,null,null,null,null,null,null,null,null,"",{"$f":"IF(U133=\"\",\"\",SUM((U133/#REF!)))","v":""}]
[2.1,"Draft Noise Analysis Work Plan",null,null,null,null,null,null,null,null,null,null,null,null,null,null,null,null,null,null,"",{"$f":"IF(U134=\"\",\"\",SUM((U134/#REF!)))","v":""}]
["2.1.1 ","Memo",null,null,null,null,null,null,null,null,null,null,null,null,null,null,null,null,null,null,"",{"$f":"IF(U135=\"\",\"\",SUM((U135/#REF!)))","v":""}]
["2.1.2 ","Figures",null,null,null,null,null,null,null,null,null,null,null,null,null,null,null,null,null,null,"",{"$f":"IF(U136=\"\",\"\",SUM((U136/#REF!)))","v":""}]
["2.1.3 ","QC/QA",null,null,null,null,null,null,null,null,null,null,null,null,null,null,null,null,null,null,"",{"$f":"IF(U137=\"\",\"\",SUM((U137/#REF!)))","v":""}]
["2.2 ","Coordination with property owners - with non-residential property owners to obtain usage data for ER calculations, window condition/building type information for NAC D receptors, etc.",null,null,null,null,null,null,null,null,null,null,null,null,null,null,null,null,null,null,"",{"$f":"IF(U138=\"\",\"\",SUM((U138/#REF!)))","v":""}]
["2.3 ","Work Plan Meeting with NCDOT",null,null,null,null,null,null,null,null,null,null,null,null,null,null,null,null,null,null,"",{"$f":"IF(U139=\"\",\"\",SUM((U139/#REF!)))","v":""}]
["2.4 ","Revised Noise Analysis Work Plan",null,null,null,null,null,null,null,null,null,null,null,null,null,null,null,null,null,null,"",{"$f":"IF(U140=\"\",\"\",SUM((U140/#REF!)))","v":""}]
["2.4.1 ","Address Comments (including Memo and Figures)",null,null,null,null,null,null,null,null,null,null,null,null,null,null,null,null,null,null,"",{"$f":"IF(U141=\"\",\"\",SUM((U141/#REF!)))","v":""}]
["2.4.2 ","Prepare Comment Response Matrix ",null,null,null,null,null,null,null,null,null,null,null,null,null,null,null,null,null,null,"",{"$f":"IF(U142=\"\",\"\",SUM((U142/#REF!)))","v":""}]
["2.4.3 ","QC/QA ",null,null,null,null,null,null,null,null,null,null,null,null,null,null,null,null,null,null,{"$f":"IF(B143=\"\",0,IF((SUM(D143:T143)=0),\"\",SUM(D143:T143)))","v":""},{"$f":"IF(U143=\"\",\"\",SUM((U143/#REF!)))","v":""}]
["2.5 ","Final Noise Analysis Work Plan",null,null,null,null,null,null,null,null,null,null,null,null,null,null,null,null,null,null,"",{"$f":"IF(U144=\"\",\"\",SUM((U144/#REF!)))","v":""}]
["2.5.1 ","Address Comments (including Memo and Figures)",null,null,null,null,null,null,null,null,null,null,null,null,null,null,null,null,null,null,"",{"$f":"IF(U145=\"\",\"\",SUM((U145/#REF!)))","v":""}]
["2.5.2 ","Prepare Comment Response Matrix",null,null,null,null,null,null,null,null,null,null,null,null,null,null,null,null,null,null,"",{"$f":"IF(U146=\"\",\"\",SUM((U146/#REF!)))","v":""}]
["2.5.3 ","QC/QA",null,null,null,null,null,null,null,null,null,null,null,null,null,null,null,null,null,null,"",{"$f":"IF(U147=\"\",\"\",SUM((U147/#REF!)))","v":""}]
["","",null,null,null,null,null,null,null,null,null,null,null,null,null,null,null,null,null,null,0,{"$f":"IF(U148=\"\",\"\",SUM((U148/#REF!)))","v":{"$error":"#REF!"}}]
["3.0 ","Ambient Noise Measurements (if applicable)",null,null,null,null,null,null,null,null,null,null,null,null,null,null,null,null,null,null,"",{"$f":"IF(U149=\"\",\"\",SUM((U149/#REF!)))","v":""}]
[3.1,"Preparation (securing/testing SLMs and other equipment, preparing field data sheets and other materials, etc.)",null,null,null,null,null,null,null,null,null,null,null,null,null,null,null,null,null,null,"",{"$f":"IF(U150=\"\",\"\",SUM((U150/#REF!)))","v":""}]
[3.2,"Noise Monitoring/Field Work",null,null,null,null,null,null,null,null,null,null,null,null,null,null,null,null,null,null,"",{"$f":"IF(U151=\"\",\"\",SUM((U151/#REF!)))","v":""}]
[3.3,"Post-Processing (extracting data, despiking, calculating hourly equivalent noise levels, calculating rolling loudest hour, etc.)",null,null,null,null,null,null,null,null,null,null,null,null,null,null,null,null,null,null,"",{"$f":"IF(U152=\"\",\"\",SUM((U152/#REF!)))","v":""}]
["","",null,null,null,null,null,null,null,null,null,null,null,null,null,null,null,null,null,null,0,{"$f":"IF(U153=\"\",\"\",SUM((U153/#REF!)))","v":{"$error":"#REF!"}}]
["4.0 ","Baseline TNM Models",null,null,null,null,null,null,null,null,null,null,null,null,null,null,null,null,null,null,"",{"$f":"IF(U154=\"\",\"\",SUM((U154/#REF!)))","v":""}]
[4.0999999999999996,"Traffic Calculations",null,null,null,null,null,null,null,null,null,null,null,null,null,null,null,null,null,null,"",{"$f":"IF(U155=\"\",\"\",SUM((U155/#REF!)))","v":""}]
[4.2,"Roadways",null,null,null,null,null,null,null,null,null,null,null,null,null,null,null,null,null,null,"",{"$f":"IF(U156=\"\",\"\",SUM((U156/#REF!)))","v":""}]
["4.2.1","Input Observed Traffic Volumes and Speeds for Validation Models (if applicable)",null,null,null,null,null,null,null,null,null,null,null,null,null,null,null,null,null,null,"",{"$f":"IF(U157=\"\",\"\",SUM((U157/#REF!)))","v":""}]
[4.3,"Receptors (all the noise-sensitive receptors to be included in the analysis)",null,null,null,null,null,null,null,null,null,null,null,null,null,null,null,null,null,null,"",{"$f":"IF(U158=\"\",\"\",SUM((U158/#REF!)))","v":""}]
["4.3.1","TNM receivers representing the SLM setup sites during field work for Validation Models (if applicable)",null,null,null,null,null,null,null,null,null,null,null,null,null,null,null,null,null,null,"",{"$f":"IF(U159=\"\",\"\",SUM((U159/#REF!)))","v":""}]
[4.4000000000000004,"Structures (individual buildings, shoulder/median safety barriers, retaining walls, existing noise walls, etc.)",null,null,null,null,null,null,null,null,null,null,null,null,null,null,null,null,null,null,"",{"$f":"IF(U160=\"\",\"\",SUM((U160/#REF!)))","v":""}]
[4.5,"Additional TNM Elements (Terrain Lines, Ground Zones, etc.)",null,null,null,null,null,null,null,null,null,null,null,null,null,null,null,null,null,null,"",{"$f":"IF(U161=\"\",\"\",SUM((U161/#REF!)))","v":""}]
["4.5.1","Validation-only TNM elements (Tree Zones, Building Rows representing privacy fences, etc.) (if applicable)",null,null,null,null,null,null,null,null,null,null,null,null,null,null,null,null,null,null,"",{"$f":"IF(U162=\"\",\"\",SUM((U162/#REF!)))","v":""}]
[4.5999999999999996,"Run TNM Models",null,null,null,null,null,null,null,null,null,null,null,null,null,null,null,null,null,null,"",{"$f":"IF(U163=\"\",\"\",SUM((U163/#REF!)))","v":""}]
["4.6.1 ","QC/QA TNM input",null,null,null,null,null,null,null,null,null,null,null,null,null,null,null,null,null,null,"",{"$f":"IF(U164=\"\",\"\",SUM((U164/#REF!)))","v":""}]
["4.6.2 ","Troubleshooting",null,null,null,null,null,null,null,null,null,null,null,null,null,null,null,null,null,null,"",{"$f":"IF(U165=\"\",\"\",SUM((U165/#REF!)))","v":""}]
["4.6.3 ","Validation Model QC/QA, Troubleshooting, and Adjustments (if necessary)",null,null,null,null,null,null,null,null,null,null,null,null,null,null,null,null,null,null,"",{"$f":"IF(U166=\"\",\"\",SUM((U166/#REF!)))","v":""}]
["","",null,null,null,null,null,null,null,null,null,null,null,null,null,null,null,null,null,null,0,{"$f":"IF(U167=\"\",\"\",SUM((U167/#REF!)))","v":{"$error":"#REF!"}}]
["5.0 ","TNM Validation Memorandum (if applicable)",null,null,null,null,null,null,null,null,null,null,null,null,null,null,null,null,null,null,"",{"$f":"IF(U168=\"\",\"\",SUM((U168/#REF!)))","v":""}]
[5.0999999999999996,"Draft Validation Memo",null,null,null,null,null,null,null,null,null,null,null,null,null,null,null,null,null,null,"",{"$f":"IF(U169=\"\",\"\",SUM((U169/#REF!)))","v":""}]
["5.1.1 ","Memo",null,null,null,null,null,null,null,null,null,null,null,null,null,null,null,null,null,null,"",{"$f":"IF(U170=\"\",\"\",SUM((U170/#REF!)))","v":""}]
["5.1.2 ","Appendices and Supporting Documents",null,null,null,null,null,null,null,null,null,null,null,null,null,null,null,null,null,null,"",{"$f":"IF(U171=\"\",\"\",SUM((U171/#REF!)))","v":""}]
["5.1.3 ","QC/QA",null,null,null,null,null,null,null,null,null,null,null,null,null,null,null,null,null,null,"",{"$f":"IF(U172=\"\",\"\",SUM((U172/#REF!)))","v":""}]
[5.2,"Revised Validation Memo",null,null,null,null,null,null,null,null,null,null,null,null,null,null,null,null,null,null,"",{"$f":"IF(U173=\"\",\"\",SUM((U173/#REF!)))","v":""}]
["5.2.1 ","Address comments (including Memo, Appendices, Supporting Documents, and Modeling)",null,null,null,null,null,null,null,null,null,null,null,null,null,null,null,null,null,null,"",{"$f":"IF(U174=\"\",\"\",SUM((U174/#REF!)))","v":""}]
["5.2.2","Prepare Comment Response Matrix",null,null,null,null,null,null,null,null,null,null,null,null,null,null,null,null,null,null,"",{"$f":"IF(U175=\"\",\"\",SUM((U175/#REF!)))","v":""}]
["5.2.3 ","QC/QA",null,null,null,null,null,null,null,null,null,null,null,null,null,null,null,null,null,null,"",{"$f":"IF(U176=\"\",\"\",SUM((U176/#REF!)))","v":""}]
[5.3,"Final Validation Memo",null,null,null,null,null,null,null,null,null,null,null,null,null,null,null,null,null,null,"",{"$f":"IF(U177=\"\",\"\",SUM((U177/#REF!)))","v":""}]
["5.3.1 ","Validation Review with NCDOT – if applicable",null,null,null,null,null,null,null,null,null,null,null,null,null,null,null,null,null,null,"",{"$f":"IF(U178=\"\",\"\",SUM((U178/#REF!)))","v":""}]
["5.3.2 ","Address Comments (including Memo, Appendices, Supporting Documents, and Modeling)",null,null,null,null,null,null,null,null,null,null,null,null,null,null,null,null,null,null,"",{"$f":"IF(U179=\"\",\"\",SUM((U179/#REF!)))","v":""}]
["5.3.3","Prepare Comment Response Matrix",null,null,null,null,null,null,null,null,null,null,null,null,null,null,null,null,null,null,"",{"$f":"IF(U180=\"\",\"\",SUM((U180/#REF!)))","v":""}]
["5.3.4 ","QC/QA",null,null,null,null,null,null,null,null,null,null,null,null,null,null,null,null,null,null,"",{"$f":"IF(U181=\"\",\"\",SUM((U181/#REF!)))","v":""}]
["","",null,null,null,null,null,null,null,null,null,null,null,null,null,null,null,null,null,null,0,{"$f":"IF(U182=\"\",\"\",SUM((U182/#REF!)))","v":{"$error":"#REF!"}}]
["6.0","No-Build Condition TNM Models (if applicable)",null,null,null,null,null,null,null,null,null,null,null,null,null,null,null,null,null,null,"",{"$f":"IF(U183=\"\",\"\",SUM((U183/#REF!)))","v":""}]
[6.1,"Traffic Calculations",null,null,null,null,null,null,null,null,null,null,null,null,null,null,null,null,null,null,"",{"$f":"IF(U184=\"\",\"\",SUM((U184/#REF!)))","v":""}]
[6.2,"Run TNM Models",null,null,null,null,null,null,null,null,null,null,null,null,null,null,null,null,null,null,"",{"$f":"IF(U185=\"\",\"\",SUM((U185/#REF!)))","v":""}]
["6.2.1 ","QC/QA TNM input",null,null,null,null,null,null,null,null,null,null,null,null,null,null,null,null,null,null,"",{"$f":"IF(U186=\"\",\"\",SUM((U186/#REF!)))","v":""}]
["6.2.2 ","Troubleshooting",null,null,null,null,null,null,null,null,null,null,null,null,null,null,null,null,null,null,"",{"$f":"IF(U187=\"\",\"\",SUM((U187/#REF!)))","v":""}]
["","",null,null,null,null,null,null,null,null,null,null,null,null,null,null,null,null,null,null,0,{"$f":"IF(U188=\"\",\"\",SUM((U188/#REF!)))","v":{"$error":"#REF!"}}]
[7,"Build Condition TNM Models",null,null,null,null,null,null,null,null,null,null,null,null,null,null,null,null,null,null,"",{"$f":"IF(U189=\"\",\"\",SUM((U189/#REF!)))","v":""}]
[7.1,"Roadways",null,null,null,null,null,null,null,null,null,null,null,null,null,null,null,null,null,null,"",{"$f":"IF(U190=\"\",\"\",SUM((U190/#REF!)))","v":""}]
[7.2,"Traffic Calculations",null,null,null,null,null,null,null,null,null,null,null,null,null,null,null,null,null,null,"",{"$f":"IF(U191=\"\",\"\",SUM((U191/#REF!)))","v":""}]
[7.3,"Remove Displaced Receptors due to ROW acquisition",null,null,null,null,null,null,null,null,null,null,null,null,null,null,null,null,null,null,"",{"$f":"IF(U192=\"\",\"\",SUM((U192/#REF!)))","v":""}]
[7.4,"Additional TNM Elements (Barriers, Terrain Lines, Ground Zones, Tree Zones, etc.)",null,null,null,null,null,null,null,null,null,null,null,null,null,null,null,null,null,null,"",{"$f":"IF(U193=\"\",\"\",SUM((U193/#REF!)))","v":""}]
[7.5,"Run TNM Models",null,null,null,null,null,null,null,null,null,null,null,null,null,null,null,null,null,null,"",{"$f":"IF(U194=\"\",\"\",SUM((U194/#REF!)))","v":""}]
["7.5.1 ","QC/QA TNM input",null,null,null,null,null,null,null,null,null,null,null,null,null,null,null,null,null,null,"",{"$f":"IF(U195=\"\",\"\",SUM((U195/#REF!)))","v":""}]
["7.5.2 ","Troubleshooting",null,null,null,null,null,null,null,null,null,null,null,null,null,null,null,null,null,null,"",{"$f":"IF(U196=\"\",\"\",SUM((U196/#REF!)))","v":""}]
[7.6,"Noise Level Contour TNM Models",null,null,null,null,null,null,null,null,null,null,null,null,null,null,null,null,null,null,"",{"$f":"IF(U197=\"\",\"\",SUM((U197/#REF!)))","v":""}]
[7.7,"ER Calculations",null,null,null,null,null,null,null,null,null,null,null,null,null,null,null,null,null,null,"",{"$f":"IF(U198=\"\",\"\",SUM((U198/#REF!)))","v":""}]
["","",null,null,null,null,null,null,null,null,null,null,null,null,null,null,null,null,null,null,0,{"$f":"IF(U199=\"\",\"\",SUM((U199/#REF!)))","v":{"$error":"#REF!"}}]
[8,"Noise Abatement",null,null,null,null,null,null,null,null,null,null,null,null,null,null,null,null,null,null,"",{"$f":"IF(U200=\"\",\"\",SUM((U200/#REF!)))","v":""}]
[8.1,"Barrier Input and Optimization",null,null,null,null,null,null,null,null,null,null,null,null,null,null,null,null,null,null,"",{"$f":"IF(U201=\"\",\"\",SUM((U201/#REF!)))","v":""}]
[8.1999999999999993,"Run TNM models",null,null,null,null,null,null,null,null,null,null,null,null,null,null,null,null,null,null,"",{"$f":"IF(U202=\"\",\"\",SUM((U202/#REF!)))","v":""}]
["8.2.1 ","QC/QA TNM input",null,null,null,null,null,null,null,null,null,null,null,null,null,null,null,null,null,null,"",{"$f":"IF(U203=\"\",\"\",SUM((U203/#REF!)))","v":""}]
["8.2.2 ","Troubleshooting",null,null,null,null,null,null,null,null,null,null,null,null,null,null,null,null,null,null,"",{"$f":"IF(U204=\"\",\"\",SUM((U204/#REF!)))","v":""}]
[8.3000000000000007,"Parallel Barriers",null,null,null,null,null,null,null,null,null,null,null,null,null,null,null,null,null,null,"",{"$f":"IF(U205=\"\",\"\",SUM((U205/#REF!)))","v":""}]
[8.4,"DNR Abatement Review Meeting with NCDOT",null,null,null,null,null,null,null,null,null,null,null,null,null,null,null,null,null,null,"",{"$f":"IF(U206=\"\",\"\",SUM((U206/#REF!)))","v":""}]
["","",null,null,null,null,null,null,null,null,null,null,null,null,null,null,null,null,null,null,{"$f":"IF(B207=\"\",0,IF((SUM(D207:T207)=0),\"\",SUM(D207:T207)))","v":0},{"$f":"IF(U207=\"\",\"\",SUM((U207/#REF!)))","v":{"$error":"#REF!"}}]
[9,"Noise Report",null,null,null,null,null,null,null,null,null,null,null,null,null,null,null,null,null,null,"",{"$f":"IF(U208=\"\",\"\",SUM((U208/#REF!)))","v":""}]
[9.1,"Draft 1 of DNR",null,null,null,null,null,null,null,null,null,null,null,null,null,null,null,null,null,null,"",{"$f":"IF(U209=\"\",\"\",SUM((U209/#REF!)))","v":""}]
["9.1.1 ","Text, Tables, Figures",null,null,null,null,null,null,null,null,null,null,null,null,null,null,null,null,null,null,"",{"$f":"IF(U210=\"\",\"\",SUM((U210/#REF!)))","v":""}]
["9.1.2 ","Consideration of non-traffic noise sources",null,null,null,null,null,null,null,null,null,null,null,null,null,null,null,null,null,null,"",{"$f":"IF(U211=\"\",\"\",SUM((U211/#REF!)))","v":""}]
["9.1.3 ","Appendices (field data, Noise Level Tables, Barrier Performance Tables, Traffic Volumes, Envelope Drawings, Noise Policy)",null,null,null,null,null,null,null,null,null,null,null,null,null,null,null,null,null,null,"",{"$f":"IF(U212=\"\",\"\",SUM((U212/#REF!)))","v":""}]
["9.1.4 ","Noise Wall Envelope Drawings",null,null,null,null,null,null,null,null,null,null,null,null,null,null,null,null,null,null,"",{"$f":"IF(U213=\"\",\"\",SUM((U213/#REF!)))","v":""}]
["9.1.5 ","QC/QA",null,null,null,null,null,null,null,null,null,null,null,null,null,null,null,null,null,null,"",{"$f":"IF(U214=\"\",\"\",SUM((U214/#REF!)))","v":""}]
[9.1999999999999993,"Draft 2 of DNR ",null,null,null,null,null,null,null,null,null,null,null,null,null,null,null,null,null,null,"",{"$f":"IF(U215=\"\",\"\",SUM((U215/#REF!)))","v":""}]
["9.2.1 ","Address Comments (includes modeling, reporting, tables, figures and envelope drawings), including feasibility review comments",null,null,null,null,null,null,null,null,null,null,null,null,null,null,null,null,null,null,"",{"$f":"IF(U216=\"\",\"\",SUM((U216/#REF!)))","v":""}]
["9.2.2 ","Prepare Comment Response Matrix",null,null,null,null,null,null,null,null,null,null,null,null,null,null,null,null,null,null,"",{"$f":"IF(U217=\"\",\"\",SUM((U217/#REF!)))","v":""}]
["9.2.3 ","QC/QA",null,null,null,null,null,null,null,null,null,null,null,null,null,null,null,null,null,null,"",{"$f":"IF(U218=\"\",\"\",SUM((U218/#REF!)))","v":""}]
[9.3000000000000007,"Draft 3 of DNR ",null,null,null,null,null,null,null,null,null,null,null,null,null,null,null,null,null,null,"",{"$f":"IF(U219=\"\",\"\",SUM((U219/#REF!)))","v":""}]
["9.3.1 ","Address Comments (includes modeling, reporting, tables, figures and envelope drawings), including feasibility review comments",null,null,null,null,null,null,null,null,null,null,null,null,null,null,null,null,null,null,"",{"$f":"IF(U220=\"\",\"\",SUM((U220/#REF!)))","v":""}]
["9.3.2 ","Prepare Comment Response Matrix",null,null,null,null,null,null,null,null,null,null,null,null,null,null,null,null,null,null,"",{"$f":"IF(U221=\"\",\"\",SUM((U221/#REF!)))","v":""}]
["9.3.3 ","QC/QA",null,null,null,null,null,null,null,null,null,null,null,null,null,null,null,null,null,null,"",{"$f":"IF(U222=\"\",\"\",SUM((U222/#REF!)))","v":""}]
[9.4,"Final DNR",null,null,null,null,null,null,null,null,null,null,null,null,null,null,null,null,null,null,"",{"$f":"IF(U223=\"\",\"\",SUM((U223/#REF!)))","v":""}]
["9.4.1 ","Address Comments (includes modeling, reporting, tables, figures and envelope drawings)",null,null,null,null,null,null,null,null,null,null,null,null,null,null,null,null,null,null,"",{"$f":"IF(U224=\"\",\"\",SUM((U224/#REF!)))","v":""}]
["9.4.2 ","Prepare Comment Response Matrix",null,null,null,null,null,null,null,null,null,null,null,null,null,null,null,null,null,null,"",{"$f":"IF(U225=\"\",\"\",SUM((U225/#REF!)))","v":""}]
["9.4.3 ","QC/QA",null,null,null,null,null,null,null,null,null,null,null,null,null,null,null,null,null,null,"",{"$f":"IF(U226=\"\",\"\",SUM((U226/#REF!)))","v":""}]
[9.5,"Prepare and submit recommended noise wall shape files",null,null,null,null,null,null,null,null,null,null,null,null,null,null,null,null,null,null,"",{"$f":"IF(U227=\"\",\"\",SUM((U227/#REF!)))","v":""}]
["","",null,null,null,null,null,null,null,null,null,null,null,null,null,null,null,null,null,null,0,{"$f":"IF(U228=\"\",\"\",SUM((U228/#REF!)))","v":{"$error":"#REF!"}}]
[10,"Conduct Noise-Related Public Balloting Process",null,null,null,null,null,null,null,null,null,null,null,null,null,null,null,null,null,null,"",{"$f":"IF(U229=\"\",\"\",SUM((U229/#REF!)))","v":""}]
[10.1,"Draft Balloting Figures",null,null,null,null,null,null,null,null,null,null,null,null,null,null,null,null,null,null,"",{"$f":"IF(U230=\"\",\"\",SUM((U230/#REF!)))","v":""}]
["10.1.1 ","Prepare draft balloting figures for NCDOT review",null,null,null,null,null,null,null,null,null,null,null,null,null,null,null,null,null,null,"",{"$f":"IF(U231=\"\",\"\",SUM((U231/#REF!)))","v":""}]
["10.1.2 ","QC/QA",null,null,null,null,null,null,null,null,null,null,null,null,null,null,null,null,null,null,"",{"$f":"IF(U232=\"\",\"\",SUM((U232/#REF!)))","v":""}]
[10.199999999999999,"Final Balloting Figures",null,null,null,null,null,null,null,null,null,null,null,null,null,null,null,null,null,null,"",{"$f":"IF(U233=\"\",\"\",SUM((U233/#REF!)))","v":""}]
["10.2.1 ","Address Comments",null,null,null,null,null,null,null,null,null,null,null,null,null,null,null,null,null,null,"",{"$f":"IF(U234=\"\",\"\",SUM((U234/#REF!)))","v":""}]
["10.2.2 ","Prepare Comment Response Matrix",null,null,null,null,null,null,null,null,null,null,null,null,null,null,null,null,null,null,"",{"$f":"IF(U235=\"\",\"\",SUM((U235/#REF!)))","v":""}]
["10.2.3 ","QC/QA ",null,null,null,null,null,null,null,null,null,null,null,null,null,null,null,null,null,null,"",{"$f":"IF(U236=\"\",\"\",SUM((U236/#REF!)))","v":""}]
[10.3,"Prepare slides and display boards for use at public meeting (if applicable)",null,null,null,null,null,null,null,null,null,null,null,null,null,null,null,null,null,null,"",{"$f":"IF(U237=\"\",\"\",SUM((U237/#REF!)))","v":""}]
["","",null,null,null,null,null,null,null,null,null,null,null,null,null,null,null,null,null,null,0,{"$f":"IF(U238=\"\",\"\",SUM((U238/#REF!)))","v":{"$error":"#REF!"}}]
[11,"Task Management",null,null,null,null,null,null,null,null,null,null,null,null,null,null,null,null,null,null,"",{"$f":"IF(U239=\"\",\"\",SUM((U239/#REF!)))","v":""}]
[11.1,"Public Involvement (Hearings, Meetings, etc.)",null,null,null,null,null,null,null,null,null,null,null,null,null,null,null,null,null,null,"",{"$f":"IF(U240=\"\",\"\",SUM((U240/#REF!)))","v":""}]
[11.2,"Administration & Coordination with NCDOT (other than above meetings)",null,null,null,null,null,null,null,null,null,null,null,null,null,null,null,null,null,null,"",{"$f":"IF(U241=\"\",\"\",SUM((U241/#REF!)))","v":""}]
["","",null,null,null,null,null,null,null,null,null,null,null,null,null,null,null,null,null,null,0,{"$f":"IF(U242=\"\",\"\",SUM((U242/#REF!)))","v":{"$error":"#REF!"}}]
[12,"Other Tasks",null,null,null,null,null,null,null,null,null,null,null,null,null,null,null,null,null,null,"",{"$f":"IF(U243=\"\",\"\",SUM((U243/#REF!)))","v":""}]
[null,null,null,null,null,null,null,null,null,null,null,null,null,null,null,null,null,null,null,null,{"$f":"IF(B244=\"\",0,IF((SUM(D244:T244)=0),\"\",SUM(D244:T244)))","v":0},{"$f":"IF(U244=\"\",\"\",SUM((U244/#REF!)))","v":{"$error":"#REF!"}}]
[null,null,null,null,null,null,null,null,null,null,null,null,null,null,null,null,null,null,null,null,0,{"$f":"IF(U245=\"\",\"\",SUM((U245/#REF!)))","v":{"$error":"#REF!"}}]
[null,null,null,null,null,null,null,null,null,null,null,null,null,null,null,null,null,null,null,null,0,{"$f":"IF(U246=\"\",\"\",SUM((U246/#REF!)))","v":{"$error":"#REF!"}}]
[null,null,null,null,null,null,null,null,null,null,null,null,null,null,null,null,null,null,null,null,{"$f":"IF(B247=\"\",0,IF((SUM(D247:T247)=0),\"\",SUM(D247:T247)))","v":0},{"$f":"IF(U247=\"\",\"\",SUM((U247/$U$253)))","v":{"$error":"#DIV/0!"}}]
[null,null,null,null,null,null,null,null,null,null,null,null,null,null,null,null,null,null,null,null,0,{"$error":"#DIV/0!"}]
[null,null,null,null,null,null,null,null,null,null,null,null,null,null,null,null,null,null,null,null,0,{"$error":"#DIV/0!"}]
[null,null,null,null,null,null,null,null,null,null,null,null,null,null,null,null,null,null,null,null,0,{"$error":"#DIV/0!"}]
[null,null,null,null,null,null,null,null,null,null,null,null,null,null,null,null,null,null,null,null,0,{"$error":"#DIV/0!"}]
[null,null,null,null,null,null,null,null,null,null,null,null,null,null,null,null,null,null,null,null,0,{"$error":"#DIV/0!"}]
[null,"TOTAL WORKDAYS/CATEGORY:",null,{"$f":"SUM(D12:D252)","v":0},0,0,0,0,0,0,0,0,0,0,0,0,0,0,0,0,0,{"$error":"#REF!"},0]
[null,"HOURLY SALARY RATE:",null,{"$f":"'PEF CLASSIFICATION SHEET'!$E715","v":0},{"$f":"'PEF CLASSIFICATION SHEET'!$E716","v":0},{"$f":"'PEF CLASSIFICATION SHEET'!$E717","v":0},{"$f":"'PEF CLASSIFICATION SHEET'!$E718","v":0},{"$f":"'PEF CLASSIFICATION SHEET'!$E719","v":0},{"$f":"'PEF CLASSIFICATION SHEET'!$E720","v":0},{"$f":"'PEF CLASSIFICATION SHEET'!$E721","v":0},{"$f":"'PEF CLASSIFICATION SHEET'!$E722","v":0},{"$f":"'PEF CLASSIFICATION SHEET'!$E723","v":0},{"$f":"'PEF CLASSIFICATION SHEET'!$E724","v":0},{"$f":"'PEF CLASSIFICATION SHEET'!$E725","v":0},{"$f":"'PEF CLASSIFICATION SHEET'!$E726","v":0},{"$f":"'PEF CLASSIFICATION SHEET'!$E727","v":0},{"$f":"'PEF CLASSIFICATION SHEET'!E728","v":0},{"$f":"'PEF CLASSIFICATION SHEET'!E729","v":0},{"$f":"'PEF CLASSIFICATION SHEET'!E730","v":0},{"$f":"'PEF CLASSIFICATION SHEET'!E731","v":0}]
[null,"RATES PER DAY:",null,{"$f":"D254*8","v":0},0,0,0,0,0,0,0,0,0,0,0,0,0,0,0,0]
[null,"PAYROLL BURDEN:",null,{"$f":"SUM(D253*D255)","v":0},0,0,0,0,0,0,0,0,0,0,0,{"$f":"SUM(P253*P255)","v":0},0,0,0,0]
[null,"TOTAL WORKDAYS:",null,{"$f":"SUM(D253:T253)","v":0}]
[null,"TOTAL PAYROLL BURDEN:",null,{"$f":"SUM(D256:T256)","v":0}]
[null,"AVERAGE COST PER HOUR:",null,{"$f":"SUM(D258/(D257*8))","v":{"$error":"#DIV/0!"}}]
[null,"GENERAL OVERHEAD:",{"$f":"PDEA_HEU_NOISE_SUB1_CONSULTANT_OVERHEAD","v":0},{"$f":"SUM(D258*C260)","v":0}]
[null,"SUBTOTAL:",null,{"$f":"SUM(D258+D260)","v":0}]
[null,"COMPARATIVE FEE:",{"$f":"PDEA_HEU_NOISE_SUB1_CONSULTANT_FEE","v":0.09},{"$f":"SUM(D261*C262)","v":0}]
[null,"FACILITIES COST OF CAPITAL:",{"$f":"PDEA_HEU_NOISE_SUB1_CONSULTANT_COSTofCAPITAL","v":0},{"$f":"SUM(D258*C263)","v":0}]
[null,"TOTAL:",null,{"$f":"SUM(D261:D263)","v":0}]
[null,"DIRECT EXPENSES:",null,{"$f":"PDEA_HEU_NOISE_SUB1_DIRECT_NONSALARY_TOTAL","v":0}]
[null,"NOISE GRAND TOTAL:",null,{"$f":"SUM(D264:D265)","v":0}]
[]
[]
[]
[null,"Costs",null,"Workdays",null,null,null,null,"Dollars"]
[null,null,null,"EN Noise","PEF","Delta ","Delta %",null,"EN Noise",null,"PEF",null,"Delta ","Delta %"]
[null,null,null,null,null,{"$f":"SUM(E272-D272)","v":0},{"$f":"SUM((F272/D272)*100)","v":{"$error":"#DIV/0!"}},null,null,null,null,null,{"$f":"SUM(K272-I272)","v":0},{"$f":"SUM((M272/I272)*100)","v":{"$error":"#DIV/0!"}}]
[]
[]
[null,null,null,null,null,null,null,"Directs","Dollars"]
[null,null,null,null,null,null,null,null,"EN Noise",null,"PEF",null,"Delta ","Delta %"]
[null,null,null,null,null,null,null,null,null,null,null,null,{"$f":"SUM(K277-I277)","v":0},{"$f":"SUM((M277/I277)*100)","v":{"$error":"#DIV/0!"}}]

{"sheet":"EN-Noise-Exp_Sub1","index":89,"n_rows":110,"n_cols":10,"rows_kept":110,"cut":false,"hidden":true,"merged":[[6,1,6,3],[6,4,6,6],[0,0,0,7],[3,1,3,7],[4,1,4,3],[4,6,4,7],[5,1,5,3],[5,6,5,7],[2,1,2,3]]}
["NOISE DIRECT EXPENSES - SUBCONSULTANT 1"]
[]
["FIRM:",{"$f":"'EN-Noise-Sub1'!G3","v":"CONSULTANT NAME"}]
["PROJECT DESCRIPTION: ",{"$f":"PROJECT.DESCRIPTION","v":0}]
["PREPARED BY:  ",{"$f":"NOISE.SUB1.PREPARED.BY","v":""},null,null,"TASK ORDER NUMBER:",null,{"$f":"TASK.ORDER.NUMBER","v":0}]
["TIP NUMBER:",{"$f":"TIP.NUMBER","v":0},null,null,"WBS NUMBER:",null,{"$f":"WBS.NUMBER","v":""}]
["DATE PREPARED:",{"$f":"IF('EN-Noise-Sub1'!N3=\"\",\"\",MAX('EN-Noise-Sub1'!N3:'EN-Noise-Sub1'!N4))","v":""},null,null,"REVIEWED BY UNIT HEAD ON:",null,null,{"$f":"IF(SCOPE.MANDAY.ESTIMATE.APPROVED.BY.DATE=\"\",\"\",SCOPE.MANDAY.ESTIMATE.APPROVED.BY.DATE)","v":""}]
["GENERAL PROJECT WORK:","ITEM","QTY","DESCRIPTION",null,null,"UNIT COST "]
[null,"Noise Meter Equipment Rental"]
["Note:  Noise meter rentals must include rental quotes on rental firm letterhead.","Noise Meter Rental",null,null,null,"days @ ",null,{"$f":"SUM(C10*E10*G10)","v":0}]
[null,"Firm-Owned Meters",null,null,null,null,25,{"$f":"SUM(C11*G11)","v":0}]
[null,"Batteries for Noise Meter Rental",null,null,null,null,null,{"$f":"SUM(C12*G12)","v":0}]
[null,"Tripod Rental",null,null,null,"days @ ",null,{"$f":"SUM(C13*E13*G13)","v":0}]
[null,"Processing Fee for Rental",null,null,null,null,null,{"$f":"SUM(C14*G14)","v":0}]
[null,"Shipping Fee for Rental",null,null,null,null,null,{"$f":"SUM(C15*G15)","v":0}]
[null,null,null,null,null,"days @ ",null,{"$f":"SUM(E16*G16)","v":0}]
[null,"Travel:"]
[null,"Sedan",null,"Trip(s) @",null,"miles @",{"$f":"SEDAN","v":0.7},{"$f":"SUM(C18*E18*G18)","v":0}]
[null,"Carry All",null,"Trip(s) @",null,"miles @",{"$f":"CARRYALL","v":0.72},{"$f":"SUM(C19*E19*G19)","v":0}]
[null,"Car Rental",null,null,null,"days @ ",{"$f":"CARRENTAL","v":50},{"$f":"SUM(E20*G20)","v":0}]
[null,"Gas for Rental",null,null,null,"miles @",{"$f":"GASforRENTAL","v":0.2},{"$f":"SUM(E21*G21)","v":0}]
[null,"Parking:",null,"Trip(s) @",null,null,{"$f":"PARKING","v":3},{"$f":"SUM(C22*G22)","v":0}]
[null,"Per Diem:",null,"Breakfast",null,null,{"$f":"BREAKFAST","v":10.1},{"$f":"SUM(C23*G23)","v":0}]
[null,null,null,"Lunch",null,null,{"$f":"LUNCH","v":13.3},0]
[null,null,null,"Dinner",null,null,{"$f":"DINNER","v":23.1},0]
[null,null,null,"Lodging",null,null,{"$f":"LODGING_LUMP.SUM","v":95},0]
[null,"Incidentals:"]
[null,null,null,null,null,null,null,{"$f":"SUM(C28*E28*G28)","v":0}]
[null,null,null,null,null,null,null,0]
[null,"Reproduction:",null,"8 1/2 x 11 B & W Copies @",null,null,{"$f":"LETTERCOPIES","v":0.14000000000000001},0]
[null,null,null,"11 x 17 B & W Copies @",null,null,{"$f":"LEDGERCOPIES","v":0.34},0]
[null,null,null,"8 1/2 x 11 Color Copies @",null,null,{"$f":"LETTERCOLOR","v":0.83},0]
[null,null,null,"11 x 17 Color Copies @",null,null,{"$f":"LEDGERCOLOR","v":1.66},0]
[null,null,null,"SQ. FT. of Plots (B & W or Color)",null,"<65 SQ. FT.*",{"$f":"ROLLPLOTSshort","v":6.5},0]
[null,null,null,"SQ. FT. of Plots (B & W or Color)",null,">65 SQ. FT.*",{"$f":"ROLLPLOTSlong","v":1.5},0]
[null,null,null,"Cover(s) @",null,null,{"$f":"COVERS","v":0.5},0]
[null,null,null,"Binder(s) @",null,null,{"$f":"BINDERS","v":0.5},0]
[null,null,null,"Blueprints - 8 1/2 x 11 @",null,null,{"$f":"BLUEPRINTSLETTER","v":0.35},0]
[null,null,null,"Blueprints - 42 x 72 @",null,null,{"$f":"BLUEPRINTSLARGE","v":1.3},0]
[null,"Film and Developing:",null,"Roll(s) @",null,null,{"$f":"FILM","v":20},0]
[null,null,null,null,null,"Subtotal",null,{"$f":"SUM(H9:H40)","v":0}]
["MAPS AND DOCUMENTS:","ITEM","QTY","DESCRIPTION",null,null,"UNIT COST "]
[null,"County Tax Maps:",null,"Map(s) @",null,null,{"$f":"County_Tax_Maps","v":7},{"$f":"SUM(C43*G43)","v":0}]
[null,"USGS Maps:",null,"Map(s) @",null,null,{"$f":"USGSMAPS","v":7},{"$f":"SUM(C44*G44)","v":0}]
[null,null,null,null,null,"Subtotal",null,{"$f":"SUM(H43:H44)","v":0}]
["TECHNICAL REPORTS:","ITEM","QTY","DESCRIPTION",null,null,"UNIT COST "]
[null,"Reproduction:",null,"8 1/2 x 11 B & W Copies @",null,null,{"$f":"LETTERCOPIES","v":0.14000000000000001},{"$f":"SUM(C47*G47)","v":0}]
[null,null,null,"11 x 17 B & W Copies @",null,null,{"$f":"LEDGERCOPIES","v":0.34},0]
[null,null,null,"8 1/2 x 11 Color Copies @",null,null,{"$f":"LETTERCOLOR","v":0.83},0]
[null,null,null,"11 x 17 Color Copies @",null,null,{"$f":"LEDGERCOLOR","v":1.66},0]
[null,null,null,"SQ. FT. of Plots (B & W or Color)",null,"<65 SQ. FT.*",{"$f":"ROLLPLOTSshort","v":6.5},0]
[null,null,null,"SQ. FT. of Plots (B & W or Color)",null,">65 SQ. FT.*",{"$f":"ROLLPLOTSlong","v":1.5},0]
[null,null,null,"Cover(s) @",null,null,{"$f":"COVERS","v":0.5},0]
[null,null,null,"Binder(s) @",null,null,{"$f":"BINDERS","v":0.5},0]
[null,"Incidentals:"]
[null,null,null,null,null,null,null,{"$f":"SUM(C56*E56*G56)","v":0}]
[null,null,null,null,null,null,null,0]
[null,null,null,null,null,"Subtotal",null,{"$f":"SUM(H47:H57)","v":0}]
["DESIGN:","ITEM","QTY","DESCRIPTION",null,null,"UNIT COST ",null,null," "]
[null,"Reproduction:",null,"8 1/2 x 11 B & W Copies @",null,null,{"$f":"LETTERCOPIES","v":0.14000000000000001},{"$f":"SUM(C60*G60)","v":0}]
[null,null,null,"11 x 17 B & W Copies @",null,null,{"$f":"LEDGERCOPIES","v":0.34},0]
[null,null,null,"Blueprints - 8 1/2 x 11 @",null,null,{"$f":"BLUEPRINTSLETTER","v":0.35},0]
[null,null,null,"Mylar - 8 1/2 x 11 @",null,null,{"$f":"MYLARSLETTER","v":7.32},0]
[null,null,null,"Mylar - 36 x 48 @",null,null,{"$f":"MYLARSLARGE","v":28.12},0]
[null,null,null,"Prints  - 24 x 36 @",null,null,{"$f":"PRINTSLARGE","v":3},0]
[null,null,null,"Blueprints - 42 x 72 @",null,null,{"$f":"BLUEPRINTSLARGE","v":1.3},0]
[null,null,null,"SQ. FT. of Plots (B & W or Color)",null,"<65 SQ. FT.*",{"$f":"ROLLPLOTSshort","v":6.5},0]
[null,null,null,"SQ. FT. of Plots (B & W or Color)",null,">65 SQ. FT.*",{"$f":"ROLLPLOTSlong","v":1.5},0]
[null,null,null,"USGS Map(s)",null,null,{"$f":"USGSMAPS","v":7},0]
[null,null,null,null,null,"Subtotal",null,{"$f":"SUM(H60:H69)","v":0}]
["MEETINGS & PUBLIC INVOLVEMENT:","ITEM","QTY","DESCRIPTION",null,null,"UNIT COST "]
[null,"Travel:"]
[null,"Sedan",null,"Trip(s) @",null,"miles @",{"$f":"SEDAN","v":0.7},{"$f":"SUM(C73*E73*G73)","v":0}]
[null,"CarryAll",null,"Trip(s) @",null,"miles @",{"$f":"CARRYALL","v":0.72},{"$f":"SUM(C74*E74*G74)","v":0}]
[null,"Car Rental",null,null,null,"days @",{"$f":"CARRENTAL","v":50},{"$f":"SUM(E75*G75)","v":0}]
[null,"Gas for Rental",null,null,null,"miles @",{"$f":"GASforRENTAL","v":0.2},{"$f":"SUM(E76*G76)","v":0}]
[null,"Parking:",null,"Trip(s) @",null,null,{"$f":"PARKING","v":3},{"$f":"SUM(C77*G77)","v":0}]
[null,"Per Diem:",null,"Breakfast",null,null,{"$f":"BREAKFAST","v":10.1},{"$f":"SUM(C78*G78)","v":0}]
[null,null,null,"Lunch",null,null,{"$f":"LUNCH","v":13.3},{"$f":"SUM(C79*G79)","v":0}]
[null,null,null,"Dinner",null,null,{"$f":"DINNER","v":23.1},{"$f":"SUM(C80*G80)","v":0}]
[null,null,null,"Lodging",null,null,{"$f":"LODGING_LUMP.SUM","v":95},{"$f":"SUM(C81*G81)","v":0}]
[null,"Workshop "]
[null,"  - Reproduction",null,"8 1/2 x 11 B & W Copies @",null,"Handouts",{"$f":"LETTERCOPIES","v":0.14000000000000001},{"$f":"SUM(C83*E83*G83)","v":0}]
[null,null,null,"11 x 17 B & W Copies @",null,"Handouts",{"$f":"LEDGERCOPIES","v":0.34},{"$f":"SUM(C84*E84*G84)","v":0}]
[null,null,null,"8 1/2 x 11 Color Copies @",null,null,{"$f":"LETTERCOLOR","v":0.83},{"$f":"SUM(C85*G85)","v":0}]
[null,null,null,"11 x 17 Color Copies @",null,null,{"$f":"LEDGERCOLOR","v":1.66},0]
[null,null,null,"SQ. FT. of Plots (B & W or Color)",null,"<65 SQ. FT.*",{"$f":"ROLLPLOTSshort","v":6.5},0]
[null,null,null,"SQ. FT. of Plots (B & W or Color)",null,">65 SQ. FT.*",{"$f":"ROLLPLOTSlong","v":1.5},0]
[null,null,null,"SQ. FT. Foam Mounting Board @",null,null,{"$f":"FOAMMOUNTINGBOARD","v":1.25},0]
[null,"Presentation Materials:",null,"Misc. Workshop Supplies @",null,"per workshop",{"$f":"MISCWORKSHOPSUPPLIES","v":50},0]
[null,"Mailing Labels:",null,"Laser Peel & Stick (box)",null,"750 per box",{"$f":"LASERPEELandSTICK","v":4},0]
[null,"Postage:"]
[null,"  - Public Workshops:",null,"Notice or Newsletter @",null,"copies @",{"$f":"POSTAGE","v":0.49},{"$f":"SUM(C93*E93*G93)","v":0}]
[null,null,null,null,null,"Subtotal",null,{"$f":"SUM(H72:H93)","v":0}]
["Miscellaneous Other","ITEM","QTY","DESCRIPTION",null,null,"UNIT COST "]
[null,null,null,null,null,null,null,{"$f":"SUM(C96*G96)","v":0}]
[null,null,null,null,null,null,null,{"$f":"SUM(C97*G97)","v":0}]
[null,null,null,null,null,null,null,0]
[null,null,null,null,null,null,null,0]
[null,null,null,null,null,null,null,0]
[null,null,null,null,null,null,null,0]
[null,null,null,null,null,null,null,0]
[null,null,null,null,null,null,null,{"$f":"SUM(C103*G103)","v":0}]
[null,null,null,null,null,null,null,{"$f":"SUM(C104*G104)","v":0}]
[null,null,null,null,null,null,null,{"$f":"SUM(C105*G105)","v":0}]
[null,null,null,null,null,"Subtotal",null,{"$f":"SUM(H96:H105)","v":0}]
[]
[null,null,null,null,null,"TOTAL",null,{"$f":"SUM(H41+H45+H58+H70+H94+H106)","v":0}]
[]
[null,"* Sum of all plots "]

{"sheet":"EN-Air-Sub1","index":90,"n_rows":147,"n_cols":24,"rows_kept":147,"cut":false,"hidden":true,"merged":[[93,23,93,24],[106,23,106,24],[135,1,136,1],[135,3,136,4],[139,3,139,6],[139,8,139,13],[121,23,121,24],[146,8,146,9],[146,10,146,11],[140,8,140,9],[140,10,140,11],[141,8,141,9],[141,10,141,11],[144,8,144,13],[145,8,145,9],[145,10,145,11],[87,23,87,24],[90,23,90,24],[91,23,91,24],[92,23,92,24],[119,23,119,24],[120,23,120,24],[81,23,81,24],[82,23,82,24],[83,23,83,24],[84,23,84,24],[85,23,85,24],[86,23,86,24],[89,23,89,24],[88,23,88,24],[102,23,102,24],[103,23,103,24],[104,23,104,24],[105,23,105,24],[94,23,94,24],[95,23,95,24],[96,23,96,24],[97,23,97,24],[98,23,98,24],[99,23,99,24],[75,23,75,24],[76,23,76,24],[77,23,77,24],[78,23,78,24],[79,23,79,24],[80,23,80,24],[118,23,118,24],[71,23,71,24],[72,23,72,24],[73,23,73,24],[74,23,74,24],[112,23,112,24],[113,23,113,24],[114,23,114,24],[115,23,115,24],[116,23,116,24],[117,23,117,24],[107,23,107,24],[108,23,108,24],[109,23,109,24],[110,23,110,24],[111,23,111,24],[100,23,100,24],[101,23,101,24],[65,23,65,24],[66,23,66,24],[67,23,67,24],[68,23,68,24],[69,23,69,24],[59,23,59,24],[60,23,60,24],[61,23,61,24],[62,23,62,24],[63,23,63,24],[64,23,64,24],[53,23,53,24],[54,23,54,24],[56,23,56,24],[57,23,57,24],[58,23,58,24],[47,23,47,24],[48,23,48,24],[49,23,49,24],[50,23,50,24],[51,23,51,24],[52,23,52,24],[43,23,43,24],[44,23,44,24],[45,23,45,24],[46,23,46,24],[35,23,35,24],[36,23,36,24],[37,23,37,24],[38,23,38,24],[39,23,39,24],[40,23,40,24],[32,23,32,24],[33,23,33,24],[34,23,34,24],[23,23,23,24],[24,23,24,24],[26,23,26,24],[27,23,27,24],[28,23,28,24],[25,23,25,24],[0,0,1,24],[2,1,2,4],[2,6,2,7],[2,10,2,11],[2,13,2,14],[2,20,2,21],[7,3,10,3],[7,4,10,4],[7,5,10,5],[7,6,10,6],[7,7,10,7],[7,8,10,8],[3,1,3,4],[3,6,3,7],[3,10,3,11],[7,15,10,15],[7,16,10,16],[7,17,10,17],[7,18,10,18],[7,19,10,19],[9,23,9,24],[7,9,10,9],[7,10,10,10],[7,11,10,11],[12,23,12,24],[41,23,41,24],[42,23,42,24],[55,23,55,24],[70,23,70,24],[3,13,3,14],[3,20,3,21],[5,3,5,19],[7,12,10,12],[7,13,10,13],[7,14,10,14],[17,23,17,24],[19,23,19,24],[20,23,20,24],[21,23,21,24],[13,23,13,24],[14,23,14,24],[15,23,15,24],[16,23,16,24],[29,23,29,24],[18,23,18,24],[22,23,22,24],[30,23,30,24],[31,23,31,24]]}
["AIR QUALITY DESIGN BREAKDOWN WORKSHEET - SUBCONSULTANT 1"]
[]
["PROJECT DESCRIPTION: ",{"$f":"PROJECT.DESCRIPTION","v":0},null,null,null,"FIRM:  ",{"$f":"PDEA_PLANNING_AIR.QUALITY_SUB1_CONSULTANT_NAME","v":"CONSULTANT NAME"},null,"TASK ORDER NUMBER:",null,{"$f":"TASK.ORDER.NUMBER","v":0},null,"DATE PREPARED:",{"$f":"IF(SCOPE.MANDAY.ESTIMATE.PREPARED.BY.DATE=\"\",\"\",SCOPE.MANDAY.ESTIMATE.PREPARED.BY.DATE)","v":""}]
["PREPARED BY:  ",{"$f":"IF(SCOPE.MANDAY.ESTIMATE.PREPARED.BY=\"\",\"\",SCOPE.MANDAY.ESTIMATE.PREPARED.BY)","v":""},null,null,null,"TIP NUMBER:",{"$f":"TIP.NUMBER","v":0},null,"WBS NUMBER:",null,{"$f":"WBS.NUMBER","v":""},null,"REVISION DATE:",{"$f":"IF(SCOPE.MANDAY.ESTIMATE.APPROVED.BY.DATE=\"\",\"\",SCOPE.MANDAY.ESTIMATE.APPROVED.BY.DATE)","v":""}]
[]
[null,null,null,"ESTIMATED WORK DAYS"]
[null,null,"Employee",{"$f":"IF('PEF CLASSIFICATION SHEET'!$D734=\"\",\"\",LEFT('PEF CLASSIFICATION SHEET'!$D734,4))","v":""},{"$f":"IF('PEF CLASSIFICATION SHEET'!$D735=\"\",\"\",LEFT('PEF CLASSIFICATION SHEET'!$D735,4))","v":""},{"$f":"IF('PEF CLASSIFICATION SHEET'!$D736=\"\",\"\",LEFT('PEF CLASSIFICATION SHEET'!$D736,4))","v":""},{"$f":"IF('PEF CLASSIFICATION SHEET'!$D737=\"\",\"\",LEFT('PEF CLASSIFICATION SHEET'!$D737,4))","v":""},{"$f":"IF('PEF CLASSIFICATION SHEET'!$D738=\"\",\"\",LEFT('PEF CLASSIFICATION SHEET'!$D738,4))","v":""},{"$f":"IF('PEF CLASSIFICATION SHEET'!$D739=\"\",\"\",LEFT('PEF CLASSIFICATION SHEET'!$D739,4))","v":""},{"$f":"IF('PEF CLASSIFICATION SHEET'!$D740=\"\",\"\",LEFT('PEF CLASSIFICATION SHEET'!$D740,4))","v":""},{"$f":"IF('PEF CLASSIFICATION SHEET'!$D741=\"\",\"\",LEFT('PEF CLASSIFICATION SHEET'!$D741,4))","v":""},{"$f":"IF('PEF CLASSIFICATION SHEET'!$D742=\"\",\"\",LEFT('PEF CLASSIFICATION SHEET'!$D742,4))","v":""},{"$f":"IF('PEF CLASSIFICATION SHEET'!$D743=\"\",\"\",LEFT('PEF CLASSIFICATION SHEET'!$D743,4))","v":""},{"$f":"IF('PEF CLASSIFICATION SHEET'!$D744=\"\",\"\",LEFT('PEF CLASSIFICATION SHEET'!$D744,4))","v":""},{"$f":"IF('PEF CLASSIFICATION SHEET'!$D745=\"\",\"\",LEFT('PEF CLASSIFICATION SHEET'!$D745,4))","v":""},{"$f":"IF('PEF CLASSIFICATION SHEET'!$D746=\"\",\"\",LEFT('PEF CLASSIFICATION SHEET'!$D746,4))","v":""},{"$f":"IF('PEF CLASSIFICATION SHEET'!D747=\"\",\"\",LEFT('PEF CLASSIFICATION SHEET'!D747,4))","v":""},{"$f":"IF('PEF CLASSIFICATION SHEET'!D748=\"\",\"\",LEFT('PEF CLASSIFICATION SHEET'!D748,4))","v":""},{"$f":"IF('PEF CLASSIFICATION SHEET'!D749=\"\",\"\",LEFT('PEF CLASSIFICATION SHEET'!D749,4))","v":""},{"$f":"IF('PEF CLASSIFICATION SHEET'!D750=\"\",\"\",LEFT('PEF CLASSIFICATION SHEET'!D750,4))","v":""}]
[null,null,null,{"$f":"IF('PEF CLASSIFICATION SHEET'!$C734=\"\",\"\",'PEF CLASSIFICATION SHEET'!$C734)","v":""},{"$f":"IF('PEF CLASSIFICATION SHEET'!$C735=\"\",\"\",'PEF CLASSIFICATION SHEET'!$C735)","v":""},{"$f":"IF('PEF CLASSIFICATION SHEET'!$C736=\"\",\"\",'PEF CLASSIFICATION SHEET'!$C736)","v":""},{"$f":"IF('PEF CLASSIFICATION SHEET'!$C737=\"\",\"\",'PEF CLASSIFICATION SHEET'!$C737)","v":""},{"$f":"IF('PEF CLASSIFICATION SHEET'!$C738=\"\",\"\",'PEF CLASSIFICATION SHEET'!$C738)","v":""},{"$f":"IF('PEF CLASSIFICATION SHEET'!$C739=\"\",\"\",'PEF CLASSIFICATION SHEET'!$C739)","v":""},{"$f":"IF('PEF CLASSIFICATION SHEET'!$C740=\"\",\"\",'PEF CLASSIFICATION SHEET'!$C740)","v":""},{"$f":"IF('PEF CLASSIFICATION SHEET'!$C741=\"\",\"\",'PEF CLASSIFICATION SHEET'!$C741)","v":""},{"$f":"IF('PEF CLASSIFICATION SHEET'!$C742=\"\",\"\",'PEF CLASSIFICATION SHEET'!$C742)","v":""},{"$f":"IF('PEF CLASSIFICATION SHEET'!$C743=\"\",\"\",'PEF CLASSIFICATION SHEET'!$C743)","v":""},{"$f":"IF('PEF CLASSIFICATION SHEET'!$C744=\"\",\"\",'PEF CLASSIFICATION SHEET'!$C744)","v":""},{"$f":"IF('PEF CLASSIFICATION SHEET'!$C745=\"\",\"\",'PEF CLASSIFICATION SHEET'!$C745)","v":""},{"$f":"IF('PEF CLASSIFICATION SHEET'!$C746=\"\",\"\",'PEF CLASSIFICATION SHEET'!$C746)","v":""},{"$f":"IF('PEF CLASSIFICATION SHEET'!C747=\"\",\"\",'PEF CLASSIFICATION SHEET'!C747)","v":""},{"$f":"IF('PEF CLASSIFICATION SHEET'!C748=\"\",\"\",'PEF CLASSIFICATION SHEET'!C748)","v":""},{"$f":"IF('PEF CLASSIFICATION SHEET'!C749=\"\",\"\",'PEF CLASSIFICATION SHEET'!C749)","v":""},{"$f":"IF('PEF CLASSIFICATION SHEET'!C750=\"\",\"\",'PEF CLASSIFICATION SHEET'!C750)","v":""},"SUB-","%","PEF"]
[null,null,"Classification",null,null,null,null,null,null,null,null,null,null,null,null,null,null,null,null,null,"TOTAL","OF","ESTIMATE"]
["TASK","TASK DESCRIPTION",null,null,null,null,null,null,null,null,null,null,null,null,null,null,null,null,null,null,null,"PROJECT",null,"COMMENTS"]
["NO."]
["2EN2","Assess Human Environmental Impacts-Air Quality"]
[17,"Project-Level Air Quality Analysis",null,null,null,null,null,null,null,null,null,null,null,null,null,null,null,null,null,null,{"$f":"IF(B13=\"\",0,IF((SUM(D13:T13)=0),\"\",SUM(D13:T13)))","v":""},{"$f":"IF(U13=\"\",\"\",SUM((U13/U$123)))","v":""}]
[null,"Task Management ",null,null,null,null,null,null,null,null,null,null,null,null,null,null,null,null,null,null,{"$f":"IF(B14=\"\",0,IF((SUM(D14:T14)=0),\"\",SUM(D14:T14)))","v":""},{"$f":"IF(U14=\"\",\"\",SUM((U14/U$123)))","v":""}]
[null,"Complete QC/QA Procedures",null,null,null,null,null,null,null,null,null,null,null,null,null,null,null,null,null,null,"",""]
[null,"Other Tasks:",null,null,null,null,null,null,null,null,null,null,null,null,null,null,null,null,null,null,"",""]
[null,null,null,null,null,null,null,null,null,null,null,null,null,null,null,null,null,null,null,null,0,{"$f":"IF(U17=\"\",\"\",SUM((U17/U$123)))","v":{"$error":"#DIV/0!"}}]
[null,null,null,null,null,null,null,null,null,null,null,null,null,null,null,null,null,null,null,null,0,{"$error":"#DIV/0!"}]
[null,null,null,null,null,null,null,null,null,null,null,null,null,null,null,null,null,null,null,null,0,{"$error":"#DIV/0!"}]
[null,null,null,null,null,null,null,null,null,null,null,null,null,null,null,null,null,null,null,null,0,{"$error":"#DIV/0!"}]
[null,null,null,null,null,null,null,null,null,null,null,null,null,null,null,null,null,null,null,null,0,{"$error":"#DIV/0!"}]
[null,null,null,null,null,null,null,null,null,null,null,null,null,null,null,null,null,null,null,null,0,{"$error":"#DIV/0!"}]
[null,null,null,null,null,null,null,null,null,null,null,null,null,null,null,null,null,null,null,null,0,{"$error":"#DIV/0!"}]
[null,null,null,null,null,null,null,null,null,null,null,null,null,null,null,null,null,null,null,null,0,{"$error":"#DIV/0!"}]
[null,null,null,null,null,null,null,null,null,null,null,null,null,null,null,null,null,null,null,null,0,{"$error":"#DIV/0!"}]
[null,null,null,null,null,null,null,null,null,null,null,null,null,null,null,null,null,null,null,null,0,{"$error":"#DIV/0!"}]
[null,null,null,null,null,null,null,null,null,null,null,null,null,null,null,null,null,null,null,null,0,{"$error":"#DIV/0!"}]
[null,null,null,null,null,null,null,null,null,null,null,null,null,null,null,null,null,null,null,null,0,{"$error":"#DIV/0!"}]
[null,null,null,null,null,null,null,null,null,null,null,null,null,null,null,null,null,null,null,null,0,{"$error":"#DIV/0!"}]
[null,null,null,null,null,null,null,null,null,null,null,null,null,null,null,null,null,null,null,null,0,{"$error":"#DIV/0!"}]
[null,null,null,null,null,null,null,null,null,null,null,null,null,null,null,null,null,null,null,null,0,{"$error":"#DIV/0!"}]
[null,null,null,null,null,null,null,null,null,null,null,null,null,null,null,null,null,null,null,null,0,{"$error":"#DIV/0!"}]
[null,null,null,null,null,null,null,null,null,null,null,null,null,null,null,null,null,null,null,null,0,{"$error":"#DIV/0!"}]
[null,null,null,null,null,null,null,null,null,null,null,null,null,null,null,null,null,null,null,null,0,{"$error":"#DIV/0!"}]
[null,null,null,null,null,null,null,null,null,null,null,null,null,null,null,null,null,null,null,null,0,{"$error":"#DIV/0!"}]
[null,null,null,null,null,null,null,null,null,null,null,null,null,null,null,null,null,null,null,null,0,{"$error":"#DIV/0!"}]
[null,null,null,null,null,null,null,null,null,null,null,null,null,null,null,null,null,null,null,null,0,{"$error":"#DIV/0!"}]
[null,null,null,null,null,null,null,null,null,null,null,null,null,null,null,null,null,null,null,null,0,{"$error":"#DIV/0!"}]
[null,null,null,null,null,null,null,null,null,null,null,null,null,null,null,null,null,null,null,null,0,{"$error":"#DIV/0!"}]
[null,null,null,null,null,null,null,null,null,null,null,null,null,null,null,null,null,null,null,null,0,{"$error":"#DIV/0!"}]
[null,null,null,null,null,null,null,null,null,null,null,null,null,null,null,null,null,null,null,null,0,{"$error":"#DIV/0!"}]
[null,null,null,null,null,null,null,null,null,null,null,null,null,null,null,null,null,null,null,null,0,{"$error":"#DIV/0!"}]
[null,null,null,null,null,null,null,null,null,null,null,null,null,null,null,null,null,null,null,null,0,{"$error":"#DIV/0!"}]
[null,null,null,null,null,null,null,null,null,null,null,null,null,null,null,null,null,null,null,null,0,{"$error":"#DIV/0!"}]
[null,null,null,null,null,null,null,null,null,null,null,null,null,null,null,null,null,null,null,null,0,{"$error":"#DIV/0!"}]
[null,null,null,null,null,null,null,null,null,null,null,null,null,null,null,null,null,null,null,null,0,{"$error":"#DIV/0!"}]
[null,null,null,null,null,null,null,null,null,null,null,null,null,null,null,null,null,null,null,null,0,{"$error":"#DIV/0!"}]
[null,null,null,null,null,null,null,null,null,null,null,null,null,null,null,null,null,null,null,null,0,{"$error":"#DIV/0!"}]
[null,null,null,null,null,null,null,null,null,null,null,null,null,null,null,null,null,null,null,null,0,{"$error":"#DIV/0!"}]
[null,null,null,null,null,null,null,null,null,null,null,null,null,null,null,null,null,null,null,null,0,{"$error":"#DIV/0!"}]
[null,null,null,null,null,null,null,null,null,null,null,null,null,null,null,null,null,null,null,null,0,{"$error":"#DIV/0!"}]
[null,null,null,null,null,null,null,null,null,null,null,null,null,null,null,null,null,null,null,null,0,{"$error":"#DIV/0!"}]
[null,null,null,null,null,null,null,null,null,null,null,null,null,null,null,null,null,null,null,null,0,{"$error":"#DIV/0!"}]
[null,null,null,null,null,null,null,null,null,null,null,null,null,null,null,null,null,null,null,null,0,{"$error":"#DIV/0!"}]
[null,null,null,null,null,null,null,null,null,null,null,null,null,null,null,null,null,null,null,null,0,{"$error":"#DIV/0!"}]
[null,null,null,null,null,null,null,null,null,null,null,null,null,null,null,null,null,null,null,null,0,{"$error":"#DIV/0!"}]
[null,null,null,null,null,null,null,null,null,null,null,null,null,null,null,null,null,null,null,null,0,{"$error":"#DIV/0!"}]
[null,null,null,null,null,null,null,null,null,null,null,null,null,null,null,null,null,null,null,null,0,{"$error":"#DIV/0!"}]
[null,null,null,null,null,null,null,null,null,null,null,null,null,null,null,null,null,null,null,null,0,{"$error":"#DIV/0!"}]
[null,null,null,null,null,null,null,null,null,null,null,null,null,null,null,null,null,null,null,null,0,{"$error":"#DIV/0!"}]
[null,null,null,null,null,null,null,null,null,null,null,null,null,null,null,null,null,null,null,null,0,{"$error":"#DIV/0!"}]
[null,null,null,null,null,null,null,null,null,null,null,null,null,null,null,null,null,null,null,null,0,{"$error":"#DIV/0!"}]
[null,null,null,null,null,null,null,null,null,null,null,null,null,null,null,null,null,null,null,null,0,{"$error":"#DIV/0!"}]
[null,null,null,null,null,null,null,null,null,null,null,null,null,null,null,null,null,null,null,null,0,{"$error":"#DIV/0!"}]
[null,null,null,null,null,null,null,null,null,null,null,null,null,null,null,null,null,null,null,null,0,{"$error":"#DIV/0!"}]
[null,null,null,null,null,null,null,null,null,null,null,null,null,null,null,null,null,null,null,null,0,{"$error":"#DIV/0!"}]
[null,null,null,null,null,null,null,null,null,null,null,null,null,null,null,null,null,null,null,null,0,{"$error":"#DIV/0!"}]
[null,null,null,null,null,null,null,null,null,null,null,null,null,null,null,null,null,null,null,null,0,{"$error":"#DIV/0!"}]
[null,null,null,null,null,null,null,null,null,null,null,null,null,null,null,null,null,null,null,null,0,{"$error":"#DIV/0!"}]
[null,null,null,null,null,null,null,null,null,null,null,null,null,null,null,null,null,null,null,null,0,{"$error":"#DIV/0!"}]
[null,null,null,null,null,null,null,null,null,null,null,null,null,null,null,null,null,null,null,null,0,{"$error":"#DIV/0!"}]
[null,null,null,null,null,null,null,null,null,null,null,null,null,null,null,null,null,null,null,null,0,{"$error":"#DIV/0!"}]
[null,null,null,null,null,null,null,null,null,null,null,null,null,null,null,null,null,null,null,null,0,{"$error":"#DIV/0!"}]
[null,null,null,null,null,null,null,null,null,null,null,null,null,null,null,null,null,null,null,null,0,{"$error":"#DIV/0!"}]
[null,null,null,null,null,null,null,null,null,null,null,null,null,null,null,null,null,null,null,null,0,{"$error":"#DIV/0!"}]
[null,null,null,null,null,null,null,null,null,null,null,null,null,null,null,null,null,null,null,null,0,{"$error":"#DIV/0!"}]
[null,null,null,null,null,null,null,null,null,null,null,null,null,null,null,null,null,null,null,null,0,{"$error":"#DIV/0!"}]
[null,null,null,null,null,null,null,null,null,null,null,null,null,null,null,null,null,null,null,null,{"$f":"IF(B78=\"\",0,IF((SUM(D78:T78)=0),\"\",SUM(D78:T78)))","v":0},{"$f":"IF(U78=\"\",\"\",SUM((U78/U$123)))","v":{"$error":"#DIV/0!"}}]
[null,null,null,null,null,null,null,null,null,null,null,null,null,null,null,null,null,null,null,null,0,{"$error":"#DIV/0!"}]
[null,null,null,null,null,null,null,null,null,null,null,null,null,null,null,null,null,null,null,null,0,{"$error":"#DIV/0!"}]
[null,null,null,null,null,null,null,null,null,null,null,null,null,null,null,null,null,null,null,null,0,{"$error":"#DIV/0!"}]
[null,null,null,null,null,null,null,null,null,null,null,null,null,null,null,null,null,null,null,null,0,{"$error":"#DIV/0!"}]
[null,null,null,null,null,null,null,null,null,null,null,null,null,null,null,null,null,null,null,null,0,{"$error":"#DIV/0!"}]
[null,null,null,null,null,null,null,null,null,null,null,null,null,null,null,null,null,null,null,null,0,{"$error":"#DIV/0!"}]
[null,null,null,null,null,null,null,null,null,null,null,null,null,null,null,null,null,null,null,null,0,{"$error":"#DIV/0!"}]
[null,null,null,null,null,null,null,null,null,null,null,null,null,null,null,null,null,null,null,null,0,{"$error":"#DIV/0!"}]
[null,null,null,null,null,null,null,null,null,null,null,null,null,null,null,null,null,null,null,null,0,{"$error":"#DIV/0!"}]
[null,null,null,null,null,null,null,null,null,null,null,null,null,null,null,null,null,null,null,null,0,{"$error":"#DIV/0!"}]
[null,null,null,null,null,null,null,null,null,null,null,null,null,null,null,null,null,null,null,null,0,{"$error":"#DIV/0!"}]
[null,null,null,null,null,null,null,null,null,null,null,null,null,null,null,null,null,null,null,null,0,{"$error":"#DIV/0!"}]
[null,null,null,null,null,null,null,null,null,null,null,null,null,null,null,null,null,null,null,null,0,{"$error":"#DIV/0!"}]
[null,null,null,null,null,null,null,null,null,null,null,null,null,null,null,null,null,null,null,null,0,{"$error":"#DIV/0!"}]
[null,null,null,null,null,null,null,null,null,null,null,null,null,null,null,null,null,null,null,null,0,{"$error":"#DIV/0!"}]
[null,null,null,null,null,null,null,null,null,null,null,null,null,null,null,null,null,null,null,null,0,{"$error":"#DIV/0!"}]
[null,null,null,null,null,null,null,null,null,null,null,null,null,null,null,null,null,null,null,null,0,{"$error":"#DIV/0!"}]
[null,null,null,null,null,null,null,null,null,null,null,null,null,null,null,null,null,null,null,null,0,{"$error":"#DIV/0!"}]
[null,null,null,null,null,null,null,null,null,null,null,null,null,null,null,null,null,null,null,null,0,{"$error":"#DIV/0!"}]
[null,null,null,null,null,null,null,null,null,null,null,null,null,null,null,null,null,null,null,null,0,{"$error":"#DIV/0!"}]
[null,null,null,null,null,null,null,null,null,null,null,null,null,null,null,null,null,null,null,null,0,{"$error":"#DIV/0!"}]
[null,null,null,null,null,null,null,null,null,null,null,null,null,null,null,null,null,null,null,null,0,{"$error":"#DIV/0!"}]
[null,null,null,null,null,null,null,null,null,null,null,null,null,null,null,null,null,null,null,null,0,{"$error":"#DIV/0!"}]
[null,null,null,null,null,null,null,null,null,null,null,null,null,null,null,null,null,null,null,null,0,{"$error":"#DIV/0!"}]
[null,null,null,null,null,null,null,null,null,null,null,null,null,null,null,null,null,null,null,null,0,{"$error":"#DIV/0!"}]
[null,null,null,null,null,null,null,null,null,null,null,null,null,null,null,null,null,null,null,null,0,{"$error":"#DIV/0!"}]
[null,null,null,null,null,null,null,null,null,null,null,null,null,null,null,null,null,null,null,null,0,{"$error":"#DIV/0!"}]
[null,null,null,null,null,null,null,null,null,null,null,null,null,null,null,null,null,null,null,null,0,{"$error":"#DIV/0!"}]
[null,null,null,null,null,null,null,null,null,null,null,null,null,null,null,null,null,null,null,null,0,{"$error":"#DIV/0!"}]
[null,null,null,null,null,null,null,null,null,null,null,null,null,null,null,null,null,null,null,null,0,{"$error":"#DIV/0!"}]
[null,null,null,null,null,null,null,null,null,null,null,null,null,null,null,null,null,null,null,null,0,{"$error":"#DIV/0!"}]
[null,null,null,null,null,null,null,null,null,null,null,null,null,null,null,null,null,null,null,null,0,{"$error":"#DIV/0!"}]
[null,null,null,null,null,null,null,null,null,null,null,null,null,null,null,null,null,null,null,null,0,{"$error":"#DIV/0!"}]
[null,null,null,null,null,null,null,null,null,null,null,null,null,null,null,null,null,null,null,null,0,{"$error":"#DIV/0!"}]
[null,null,null,null,null,null,null,null,null,null,null,null,null,null,null,null,null,null,null,null,0,{"$error":"#DIV/0!"}]
[null,null,null,null,null,null,null,null,null,null,null,null,null,null,null,null,null,null,null,null,0,{"$error":"#DIV/0!"}]
[null,null,null,null,null,null,null,null,null,null,null,null,null,null,null,null,null,null,null,null,0,{"$error":"#DIV/0!"}]
[null,null,null,null,null,null,null,null,null,null,null,null,null,null,null,null,null,null,null,null,0,{"$error":"#DIV/0!"}]
[null,null,null,null,null,null,null,null,null,null,null,null,null,null,null,null,null,null,null,null,0,{"$error":"#DIV/0!"}]
[null,null,null,null,null,null,null,null,null,null,null,null,null,null,null,null,null,null,null,null,0,{"$error":"#DIV/0!"}]
[null,null,null,null,null,null,null,null,null,null,null,null,null,null,null,null,null,null,null,null,0,{"$error":"#DIV/0!"}]
[null,null,null,null,null,null,null,null,null,null,null,null,null,null,null,null,null,null,null,null,0,{"$error":"#DIV/0!"}]
[null,null,null,null,null,null,null,null,null,null,null,null,null,null,null,null,null,null,null,null,0,{"$error":"#DIV/0!"}]
[null,null,null,null,null,null,null,null,null,null,null,null,null,null,null,null,null,null,null,null,0,{"$error":"#DIV/0!"}]
[null,"TOTAL WORKDAYS/CATEGORY:",null,{"$f":"(SUM(D12:D122))","v":0},0,0,0,0,0,0,0,0,0,0,0,0,0,0,0,0,0,{"$f":"SUM(V12:V122)","v":{"$error":"#DIV/0!"}},{"$f":"(SUM(W12:W122))","v":0}]
[null,"HOURLY SALARY RATE:",null,{"$f":"'PEF CLASSIFICATION SHEET'!$E734","v":0},{"$f":"'PEF CLASSIFICATION SHEET'!$E735","v":0},{"$f":"'PEF CLASSIFICATION SHEET'!$E736","v":0},{"$f":"'PEF CLASSIFICATION SHEET'!$E737","v":0},{"$f":"'PEF CLASSIFICATION SHEET'!$E738","v":0},{"$f":"'PEF CLASSIFICATION SHEET'!$E739","v":0},{"$f":"'PEF CLASSIFICATION SHEET'!$E740","v":0},{"$f":"'PEF CLASSIFICATION SHEET'!$E741","v":0},{"$f":"'PEF CLASSIFICATION SHEET'!$E742","v":0},{"$f":"'PEF CLASSIFICATION SHEET'!$E743","v":0},{"$f":"'PEF CLASSIFICATION SHEET'!$E744","v":0},{"$f":"'PEF CLASSIFICATION SHEET'!$E745","v":0},{"$f":"'PEF CLASSIFICATION SHEET'!$E746","v":0},{"$f":"'PEF CLASSIFICATION SHEET'!E747","v":0},{"$f":"'PEF CLASSIFICATION SHEET'!E748","v":0},{"$f":"'PEF CLASSIFICATION SHEET'!E749","v":0},{"$f":"'PEF CLASSIFICATION SHEET'!E750","v":0}]
[null,"RATES PER DAY:",null,{"$f":"D124*8","v":0},0,0,0,0,0,0,0,0,0,0,0,0,0,0,0,0]
[null,"PAYROLL BURDEN:",null,{"$f":"SUM(D123*D125)","v":0},0,0,0,0,0,0,0,0,0,0,0,0,0,0,0,0]
[null,"TOTAL WORKDAYS:",null,{"$f":"SUM(D123:T123)","v":0}]
[null,"TOTAL PAYROLL BURDEN:",null,{"$f":"SUM(D126:T126)","v":0}]
[null,"AVERAGE COST PER HOUR:",null,{"$f":"SUM(D128/(D127*8))","v":{"$error":"#DIV/0!"}}]
[null,"GENERAL OVERHEAD:",{"$f":"PDEA_PLANNING_AIR.QUALITY_SUB1_CONSULTANT_OVERHEAD","v":0},{"$f":"SUM(D128*C130)","v":0}]
[null,"SUBTOTAL:",null,{"$f":"SUM(D128+D130)","v":0}]
[null,"COMPARATIVE FEE:",{"$f":"PDEA_PLANNING_AIR.QUALITY_SUB1_CONSULTANT_FEE","v":0.09},{"$f":"SUM(D131*C132)","v":0}]
[null,"FACILITIES COST OF CAPITAL:",{"$f":"PDEA_PLANNING_AIR.QUALITY_SUB1_CONSULTANT_COSTofCAPITAL","v":0},{"$f":"SUM(D128*C133)","v":0}]
[null,"TOTAL:",null,{"$f":"SUM(D131:D133)","v":0}]
[null,"DIRECT EXPENSES:",null,{"$f":"PDEA_PLANNING_AIR.QUALITY_SUB1_DIRECT_NONSALARY_TOTAL","v":0}]
[null,"AIR QUALITY GRAND TOTAL:",null,{"$f":"SUM(D134:D135)","v":0}]
[]
[]
[]
[null,"Costs",null,"Workdays",null,null,null,null,"Dollars"]
[null,null,null,"EN Air Quality","PEF","Delta ","Delta %",null,"EN Air Quality",null,"PEF",null,"Delta ","Delta %"]
[null,null,null,null,null,{"$f":"SUM(E142-D142)","v":0},{"$f":"SUM((F142/D142)*100)","v":{"$error":"#DIV/0!"}},null,null,null,null,null,{"$f":"SUM(K142-I142)","v":0},{"$f":"SUM((M142/I142)*100)","v":{"$error":"#DIV/0!"}}]
[]
[]
[null,null,null,null,null,null,null,"Directs","Dollars"]
[null,null,null,null,null,null,null,null,"EN Air Quality",null,"PEF",null,"Delta ","Delta %"]
[null,null,null,null,null,null,null,null,null,null,null,null,{"$f":"SUM(K147-I147)","v":0},{"$f":"SUM((M147/I147)*100)","v":{"$error":"#DIV/0!"}}]

{"sheet":"EN-Air-Exp-Sub1","index":91,"n_rows":102,"n_cols":8,"rows_kept":102,"cut":false,"hidden":true,"merged":[[6,1,6,3],[6,4,6,6],[0,0,0,7],[3,1,3,7],[4,1,4,3],[4,6,4,7],[5,1,5,3],[5,6,5,7],[2,1,2,3]]}
["AIR QUALITY DIRECT EXPENSES - SUBCONSULTANT 1"]
[]
["FIRM:",{"$f":"'EN-Air-Sub1'!G3","v":"CONSULTANT NAME"}]
["PROJECT DESCRIPTION: ",{"$f":"PROJECT.DESCRIPTION","v":0}]
["PREPARED BY:  ",{"$f":"AIR.QUALITY.SUB1.PREPARED.BY","v":""},null,null,"TASK ORDER NUMBER:",null,{"$f":"TASK.ORDER.NUMBER","v":0}]
["TIP NUMBER:",{"$f":"TIP.NUMBER","v":0},null,null,"WBS NUMBER:",null,{"$f":"WBS.NUMBER","v":""}]
["DATE PREPARED:",{"$f":"IF('EN-Air-Sub1'!N3=\"\",\"\",MAX('EN-Air-Sub1'!N3:'EN-Air-Sub1'!N4))","v":""},null,null,"REVIEWED BY UNIT HEAD ON:",null,null,{"$f":"IF(SCOPE.MANDAY.ESTIMATE.APPROVED.BY.DATE=\"\",\"\",SCOPE.MANDAY.ESTIMATE.APPROVED.BY.DATE)","v":""}]
["GENERAL PROJECT WORK:","ITEM","QTY","DESCRIPTION",null,null,"UNIT COST "]
[null,"Travel:"]
[null,"Sedan",null,"Trip(s) @",null,"miles @",{"$f":"SEDAN","v":0.7},{"$f":"SUM(C10*E10*G10)","v":0}]
[null,"Carry All",null,"Trip(s) @",null,"miles @",{"$f":"CARRYALL","v":0.72},{"$f":"SUM(C11*E11*G11)","v":0}]
[null,"Car Rental",null,null,null,"days @ ",{"$f":"CARRENTAL","v":50},{"$f":"SUM(E12*G12)","v":0}]
[null,"Gas for Rental",null,null,null,"miles @",{"$f":"GASforRENTAL","v":0.2},{"$f":"SUM(E13*G13)","v":0}]
[null,"Parking:",null,"Trip(s) @",null,null,{"$f":"PARKING","v":3},{"$f":"SUM(C14*G14)","v":0}]
[null,"Per Diem:",null,"Breakfast",null,null,{"$f":"BREAKFAST","v":10.1},{"$f":"SUM(C15*G15)","v":0}]
[null,null,null,"Lunch",null,null,{"$f":"LUNCH","v":13.3},0]
[null,null,null,"Dinner",null,null,{"$f":"DINNER","v":23.1},0]
[null,null,null,"Lodging",null,null,{"$f":"LODGING_LUMP.SUM","v":95},0]
[null,"Incidentals:"]
[null,null,null,null,null,null,null,{"$f":"SUM(C20*E20*G20)","v":0}]
[null,null,null,null,null,null,null,0]
[null,"Reproduction:",null,"8 1/2 x 11 B & W Copies @",null,null,{"$f":"LETTERCOPIES","v":0.14000000000000001},0]
[null,null,null,"11 x 17 B & W Copies @",null,null,{"$f":"LEDGERCOPIES","v":0.34},0]
[null,null,null,"8 1/2 x 11 Color Copies @",null,null,{"$f":"LETTERCOLOR","v":0.83},0]
[null,null,null,"11 x 17 Color Copies @",null,null,{"$f":"LEDGERCOLOR","v":1.66},0]
[null,null,null,"SQ. FT. of Plots (B & W or Color)",null,"<65 SQ. FT.*",{"$f":"ROLLPLOTSshort","v":6.5},0]
[null,null,null,"SQ. FT. of Plots (B & W or Color)",null,">65 SQ. FT.*",{"$f":"ROLLPLOTSlong","v":1.5},0]
[null,null,null,"Cover(s) @",null,null,{"$f":"COVERS","v":0.5},0]
[null,null,null,"Binder(s) @",null,null,{"$f":"BINDERS","v":0.5},0]
[null,null,null,"Blueprints - 8 1/2 x 11 @",null,null,{"$f":"BLUEPRINTSLETTER","v":0.35},0]
[null,null,null,"Blueprints - 42 x 72 @",null,null,{"$f":"BLUEPRINTSLARGE","v":1.3},0]
[null,"Film and Developing:",null,"Roll(s) @",null,null,{"$f":"FILM","v":20},0]
[null,null,null,null,null,"Subtotal",null,{"$f":"SUM(H10:H32)","v":0}]
["MAPS AND DOCUMENTS:","ITEM","QTY","DESCRIPTION",null,null,"UNIT COST "]
[null,"County Tax Maps:",null,"Map(s) @",null,null,{"$f":"County_Tax_Maps","v":7},{"$f":"SUM(C35*G35)","v":0}]
[null,"USGS Maps:",null,"Map(s) @",null,null,{"$f":"USGSMAPS","v":7},{"$f":"SUM(C36*G36)","v":0}]
[null,null,null,null,null,"Subtotal",null,{"$f":"SUM(H35:H36)","v":0}]
["TECHNICAL REPORTS:","ITEM","QTY","DESCRIPTION",null,null,"UNIT COST "]
[null,"Reproduction:",null,"8 1/2 x 11 B & W Copies @",null,null,{"$f":"LETTERCOPIES","v":0.14000000000000001},{"$f":"SUM(C39*G39)","v":0}]
[null,null,null,"11 x 17 B & W Copies @",null,null,{"$f":"LEDGERCOPIES","v":0.34},0]
[null,null,null,"8 1/2 x 11 Color Copies @",null,null,{"$f":"LETTERCOLOR","v":0.83},0]
[null,null,null,"11 x 17 Color Copies @",null,null,{"$f":"LEDGERCOLOR","v":1.66},0]
[null,null,null,"SQ. FT. of Plots (B & W or Color)",null,"<65 SQ. FT.*",{"$f":"ROLLPLOTSshort","v":6.5},0]
[null,null,null,"SQ. FT. of Plots (B & W or Color)",null,">65 SQ. FT.*",{"$f":"ROLLPLOTSlong","v":1.5},0]
[null,null,null,"Cover(s) @",null,null,{"$f":"COVERS","v":0.5},0]
[null,null,null,"Binder(s) @",null,null,{"$f":"BINDERS","v":0.5},0]
[null,"Incidentals:"]
[null,null,null,null,null,null,null,{"$f":"SUM(C48*E48*G48)","v":0}]
[null,null,null,null,null,null,null,0]
[null,null,null,null,null,"Subtotal",null,{"$f":"SUM(H39:H49)","v":0}]
["DESIGN:","ITEM","QTY","DESCRIPTION",null,null,"UNIT COST "]
[null,"Reproduction:",null,"8 1/2 x 11 B & W Copies @",null,null,{"$f":"LETTERCOPIES","v":0.14000000000000001},{"$f":"SUM(C52*G52)","v":0}]
[null,null,null,"11 x 17 B & W Copies @",null,null,{"$f":"LEDGERCOPIES","v":0.34},0]
[null,null,null,"Blueprints - 8 1/2 x 11 @",null,null,{"$f":"BLUEPRINTSLETTER","v":0.35},0]
[null,null,null,"Mylar - 8 1/2 x 11 @",null,null,{"$f":"MYLARSLETTER","v":7.32},0]
[null,null,null,"Mylar - 36 x 48 @",null,null,{"$f":"MYLARSLARGE","v":28.12},0]
[null,null,null,"Prints  - 24 x 36 @",null,null,{"$f":"PRINTSLARGE","v":3},0]
[null,null,null,"Blueprints - 42 x 72 @",null,null,{"$f":"BLUEPRINTSLARGE","v":1.3},0]
[null,null,null,"SQ. FT. of Plots (B & W or Color)",null,"<65 SQ. FT.*",{"$f":"ROLLPLOTSshort","v":6.5},0]
[null,null,null,"SQ. FT. of Plots (B & W or Color)",null,">65 SQ. FT.*",{"$f":"ROLLPLOTSlong","v":1.5},0]
[null,null,null,"USGS Map(s)",null,null,{"$f":"USGSMAPS","v":7},0]
[null,null,null,null,null,"Subtotal",null,{"$f":"SUM(H52:H61)","v":0}]
["MEETINGS & PUBLIC INVOLVEMENT:","ITEM","QTY","DESCRIPTION",null,null,"UNIT COST "]
[null,"Travel:"]
[null,"Sedan",null,"Trip(s) @",null,"miles @",{"$f":"SEDAN","v":0.7},{"$f":"SUM(C65*E65*G65)","v":0}]
[null,"CarryAll",null,"Trip(s) @",null,"miles @",{"$f":"CARRYALL","v":0.72},{"$f":"SUM(C66*E66*G66)","v":0}]
[null,"Car Rental",null,null,null,"days @",{"$f":"CARRENTAL","v":50},{"$f":"SUM(E67*G67)","v":0}]
[null,"Gas for Rental",null,null,null,"miles @",{"$f":"GASforRENTAL","v":0.2},{"$f":"SUM(E68*G68)","v":0}]
[null,"Parking:",null,"Trip(s) @",null,null,{"$f":"PARKING","v":3},{"$f":"SUM(C69*G69)","v":0}]
[null,"Per Diem:",null,"Breakfast",null,null,{"$f":"BREAKFAST","v":10.1},{"$f":"SUM(C70*G70)","v":0}]
[null,null,null,"Lunch",null,null,{"$f":"LUNCH","v":13.3},{"$f":"SUM(C71*G71)","v":0}]
[null,null,null,"Dinner",null,null,{"$f":"DINNER","v":23.1},{"$f":"SUM(C72*G72)","v":0}]
[null,null,null,"Lodging",null,null,{"$f":"LODGING_LUMP.SUM","v":95},{"$f":"SUM(C73*G73)","v":0}]
[null,"Workshop "]
[null,"  - Reproduction",null,"8 1/2 x 11 B & W Copies @",null,"Handouts",{"$f":"LETTERCOPIES","v":0.14000000000000001},{"$f":"SUM(C75*E75*G75)","v":0}]
[null,null,null,"11 x 17 B & W Copies @",null,"Handouts",{"$f":"LEDGERCOPIES","v":0.34},{"$f":"SUM(C76*E76*G76)","v":0}]
[null,null,null,"8 1/2 x 11 Color Copies @",null,null,{"$f":"LETTERCOLOR","v":0.83},{"$f":"SUM(C77*G77)","v":0}]
[null,null,null,"11 x 17 Color Copies @",null,null,{"$f":"LEDGERCOLOR","v":1.66},0]
[null,null,null,"SQ. FT. of Plots (B & W or Color)",null,"<65 SQ. FT.*",{"$f":"ROLLPLOTSshort","v":6.5},0]
[null,null,null,"SQ. FT. of Plots (B & W or Color)",null,">65 SQ. FT.*",{"$f":"ROLLPLOTSlong","v":1.5},0]
[null,null,null,"SQ. FT. Foam Mounting Board @",null,null,{"$f":"FOAMMOUNTINGBOARD","v":1.25},0]
[null,"Presentation Materials:",null,"Misc. Workshop Supplies @",null,"per workshop",{"$f":"MISCWORKSHOPSUPPLIES","v":50},0]
[null,"Mailing Labels:",null,"Laser Peel & Stick (box)",null,"750 per box",{"$f":"LASERPEELandSTICK","v":4},0]
[null,"Postage:"]
[null,"  - Public Workshops:",null,"Notice or Newsletter @",null,"copies @",{"$f":"POSTAGE","v":0.49},{"$f":"SUM(C85*E85*G85)","v":0}]
[null,null,null,null,null,"Subtotal",null,{"$f":"SUM(H64:H85)","v":0}]
["Miscellaneous Other","ITEM","QTY","DESCRIPTION",null,null,"UNIT COST "]
[null,null,null,null,null,null,null,{"$f":"SUM(C88*G88)","v":0}]
[null,null,null,null,null,null,null,{"$f":"SUM(C89*G89)","v":0}]
[null,null,null,null,null,null,null,0]
[null,null,null,null,null,null,null,0]
[null,null,null,null,null,null,null,0]
[null,null,null,null,null,null,null,0]
[null,null,null,null,null,null,null,0]
[null,null,null,null,null,null,null,{"$f":"SUM(C95*G95)","v":0}]
[null,null,null,null,null,null,null,{"$f":"SUM(C96*G96)","v":0}]
[null,null,null,null,null,null,null,{"$f":"SUM(C97*G97)","v":0}]
[null,null,null,null,null,"Subtotal",null,{"$f":"SUM(H88:H97)","v":0}]
[]
[null,null,null,null,null,"TOTAL",null,{"$f":"SUM(H33+H37+H50+H62+H86+H98)","v":0}]
[]
[null,"* Sum of all plots "]

{"sheet":"EnvPolicy-Sub1","index":92,"n_rows":145,"n_cols":26,"rows_kept":145,"cut":false,"hidden":true,"merged":[[133,1,134,1],[133,3,134,4],[142,10,142,21],[143,10,143,11],[143,12,143,13],[143,14,143,20],[144,10,144,11],[144,12,144,13],[144,14,144,20],[138,10,138,11],[138,12,138,13],[138,14,138,20],[139,10,139,11],[139,12,139,13],[139,14,139,20],[115,23,115,24],[116,23,116,24],[117,23,117,24],[118,23,118,24],[119,23,119,24],[127,13,128,14],[127,15,128,16],[137,5,137,8],[137,10,137,21],[129,13,130,14],[129,15,130,16],[109,23,109,24],[110,23,110,24],[111,23,111,24],[112,23,112,24],[113,23,113,24],[114,23,114,24],[103,23,103,24],[104,23,104,24],[105,23,105,24],[106,23,106,24],[107,23,107,24],[108,23,108,24],[97,23,97,24],[98,23,98,24],[99,23,99,24],[100,23,100,24],[101,23,101,24],[102,23,102,24],[91,23,91,24],[92,23,92,24],[93,23,93,24],[94,23,94,24],[95,23,95,24],[96,23,96,24],[85,23,85,24],[86,23,86,24],[87,23,87,24],[88,23,88,24],[89,23,89,24],[90,23,90,24],[79,23,79,24],[80,23,80,24],[81,23,81,24],[82,23,82,24],[83,23,83,24],[84,23,84,24],[73,23,73,24],[74,23,74,24],[75,23,75,24],[76,23,76,24],[77,23,77,24],[78,23,78,24],[67,23,67,24],[68,23,68,24],[69,23,69,24],[70,23,70,24],[71,23,71,24],[72,23,72,24],[61,23,61,24],[62,23,62,24],[63,23,63,24],[64,23,64,24],[65,23,65,24],[66,23,66,24],[55,23,55,24],[56,23,56,24],[57,23,57,24],[58,23,58,24],[59,23,59,24],[60,23,60,24],[49,23,49,24],[50,23,50,24],[51,23,51,24],[52,23,52,24],[53,23,53,24],[54,23,54,24],[43,23,43,24],[44,23,44,24],[45,23,45,24],[46,23,46,24],[47,23,47,24],[48,23,48,24],[37,23,37,24],[38,23,38,24],[39,23,39,24],[40,23,40,24],[41,23,41,24],[42,23,42,24],[31,23,31,24],[32,23,32,24],[33,23,33,24],[34,23,34,24],[35,23,35,24],[36,23,36,24],[26,23,26,24],[27,23,27,24],[28,23,28,24],[29,23,29,24],[30,23,30,24],[19,23,19,24],[20,23,20,24],[21,23,21,24],[22,23,22,24],[23,23,23,24],[24,23,24,24],[17,23,17,24],[18,23,18,24],[7,17,10,17],[7,18,10,18],[7,19,10,19],[9,23,9,24],[11,23,11,24],[12,23,12,24],[25,23,25,24],[3,5,3,6],[3,7,3,8],[3,9,3,10],[3,11,3,12],[3,21,3,22],[13,23,13,24],[14,23,14,24],[15,23,15,24],[16,23,16,24],[0,0,1,24],[2,1,2,4],[2,6,2,8],[2,9,2,10],[2,11,2,12],[2,21,2,22],[2,23,2,24],[7,11,10,11],[7,12,10,12],[7,13,10,13],[7,14,10,14],[7,15,10,15],[7,16,10,16],[3,23,3,24],[5,3,5,19],[7,3,10,3],[7,4,10,4],[7,5,10,5],[7,6,10,6],[7,7,10,7],[7,8,10,8],[7,9,10,9],[7,10,10,10],[3,1,3,4]]}
["ENVIRONMENTAL POLICY BREAKDOWN WORKSHEET - SUBCONSULTANT 1 "]
[]
["PROJECT DESCRIPTION: ",{"$f":"PROJECT.DESCRIPTION","v":0},null,null,null,"FIRM:  ",{"$f":"PDEA_PLANNING_SUB1_CONSULTANT_NAME","v":"CONSULTANT NAME"},null,null,"TASK ORDER NUMBER:",null,{"$f":"TASK.ORDER.NUMBER","v":0},null,null,null,null,null,null,null,null,null,"DATE PREPARED:",null,{"$f":"IF(SCOPE.MANDAY.ESTIMATE.PREPARED.BY.DATE=\"\",\"\",SCOPE.MANDAY.ESTIMATE.PREPARED.BY.DATE)","v":""}]
["PREPARED BY:  ",{"$f":"IF(SCOPE.MANDAY.ESTIMATE.PREPARED.BY=\"\",\"\",SCOPE.MANDAY.ESTIMATE.PREPARED.BY)","v":""},null,null,null,"TIP NUMBER:",null,{"$f":"TIP.NUMBER","v":0},null,"WBS NUMBER:",null,{"$f":"WBS.NUMBER","v":""},null,null,null,null,null,null,null,null,null,"REVISION DATE:",null,{"$f":"IF(SCOPE.MANDAY.ESTIMATE.APPROVED.BY.DATE=\"\",\"\",SCOPE.MANDAY.ESTIMATE.APPROVED.BY.DATE)","v":""}]
[null,null,null,null,null,null,null,null,null,null,null,null,null,null,null,null,null,null,null,null,null,null,null,null,null," "]
[null,null,null,"ESTIMATED WORK DAYS"]
[null,null,"Employee",{"$f":"IF('PEF CLASSIFICATION SHEET'!$D753=\"\",\"\",LEFT('PEF CLASSIFICATION SHEET'!$D753,4))","v":""},{"$f":"IF('PEF CLASSIFICATION SHEET'!$D754=\"\",\"\",LEFT('PEF CLASSIFICATION SHEET'!$D754,4))","v":""},{"$f":"IF('PEF CLASSIFICATION SHEET'!$D755=\"\",\"\",LEFT('PEF CLASSIFICATION SHEET'!$D755,4))","v":""},{"$f":"IF('PEF CLASSIFICATION SHEET'!$D756=\"\",\"\",LEFT('PEF CLASSIFICATION SHEET'!$D756,4))","v":""},{"$f":"IF('PEF CLASSIFICATION SHEET'!$D757=\"\",\"\",LEFT('PEF CLASSIFICATION SHEET'!$D757,4))","v":""},{"$f":"IF('PEF CLASSIFICATION SHEET'!$D758=\"\",\"\",LEFT('PEF CLASSIFICATION SHEET'!$D758,4))","v":""},{"$f":"IF('PEF CLASSIFICATION SHEET'!$D759=\"\",\"\",LEFT('PEF CLASSIFICATION SHEET'!$D759,4))","v":""},{"$f":"IF('PEF CLASSIFICATION SHEET'!$D760=\"\",\"\",LEFT('PEF CLASSIFICATION SHEET'!$D760,4))","v":""},{"$f":"IF('PEF CLASSIFICATION SHEET'!$D761=\"\",\"\",LEFT('PEF CLASSIFICATION SHEET'!$D761,4))","v":""},{"$f":"IF('PEF CLASSIFICATION SHEET'!$D762=\"\",\"\",LEFT('PEF CLASSIFICATION SHEET'!$D762,4))","v":""},{"$f":"IF('PEF CLASSIFICATION SHEET'!$D763=\"\",\"\",LEFT('PEF CLASSIFICATION SHEET'!$D763,4))","v":""},{"$f":"IF('PEF CLASSIFICATION SHEET'!$D764=\"\",\"\",LEFT('PEF CLASSIFICATION SHEET'!$D764,4))","v":""},{"$f":"IF('PEF CLASSIFICATION SHEET'!$D765=\"\",\"\",LEFT('PEF CLASSIFICATION SHEET'!$D765,4))","v":""},{"$f":"IF('PEF CLASSIFICATION SHEET'!$D766=\"\",\"\",LEFT('PEF CLASSIFICATION SHEET'!$D766,4))","v":""},{"$f":"IF('PEF CLASSIFICATION SHEET'!D767=\"\",\"\",LEFT('PEF CLASSIFICATION SHEET'!D767,4))","v":""},{"$f":"IF('PEF CLASSIFICATION SHEET'!D768=\"\",\"\",LEFT('PEF CLASSIFICATION SHEET'!D768,4))","v":""},{"$f":"IF('PEF CLASSIFICATION SHEET'!D769=\"\",\"\",LEFT('PEF CLASSIFICATION SHEET'!D769,4))","v":""}]
[null,null,null,{"$f":"IF('PEF CLASSIFICATION SHEET'!$C753=\"\",\"\",'PEF CLASSIFICATION SHEET'!$C753)","v":""},{"$f":"IF('PEF CLASSIFICATION SHEET'!$C754=\"\",\"\",'PEF CLASSIFICATION SHEET'!$C754)","v":""},{"$f":"IF('PEF CLASSIFICATION SHEET'!$C755=\"\",\"\",'PEF CLASSIFICATION SHEET'!$C755)","v":""},{"$f":"IF('PEF CLASSIFICATION SHEET'!$C756=\"\",\"\",'PEF CLASSIFICATION SHEET'!$C756)","v":""},{"$f":"IF('PEF CLASSIFICATION SHEET'!$C757=\"\",\"\",'PEF CLASSIFICATION SHEET'!$C757)","v":""},{"$f":"IF('PEF CLASSIFICATION SHEET'!$C758=\"\",\"\",'PEF CLASSIFICATION SHEET'!$C758)","v":""},{"$f":"IF('PEF CLASSIFICATION SHEET'!$C759=\"\",\"\",'PEF CLASSIFICATION SHEET'!$C759)","v":""},{"$f":"IF('PEF CLASSIFICATION SHEET'!$C760=\"\",\"\",'PEF CLASSIFICATION SHEET'!$C760)","v":""},{"$f":"IF('PEF CLASSIFICATION SHEET'!$C761=\"\",\"\",'PEF CLASSIFICATION SHEET'!$C761)","v":""},{"$f":"IF('PEF CLASSIFICATION SHEET'!$C762=\"\",\"\",'PEF CLASSIFICATION SHEET'!$C762)","v":""},{"$f":"IF('PEF CLASSIFICATION SHEET'!$C763=\"\",\"\",'PEF CLASSIFICATION SHEET'!$C763)","v":""},{"$f":"IF('PEF CLASSIFICATION SHEET'!$C764=\"\",\"\",'PEF CLASSIFICATION SHEET'!$C764)","v":""},{"$f":"IF('PEF CLASSIFICATION SHEET'!$C765=\"\",\"\",'PEF CLASSIFICATION SHEET'!$C765)","v":""},{"$f":"IF('PEF CLASSIFICATION SHEET'!$C766=\"\",\"\",'PEF CLASSIFICATION SHEET'!$C766)","v":""},{"$f":"IF('PEF CLASSIFICATION SHEET'!C767=\"\",\"\",'PEF CLASSIFICATION SHEET'!C767)","v":""},{"$f":"IF('PEF CLASSIFICATION SHEET'!C768=\"\",\"\",'PEF CLASSIFICATION SHEET'!C768)","v":""},{"$f":"IF('PEF CLASSIFICATION SHEET'!C769=\"\",\"\",'PEF CLASSIFICATION SHEET'!C769)","v":""},"SUB-","%","PEF"]
[null,null,"Classification",null,null,null,null,null,null,null,null,null,null,null,null,null,null,null,null,null,"TOTAL","OF","ESTIMATE"]
["TASK","TASK DESCRIPTION",null,null,null,null,null,null,null,null,null,null,null,null,null,null,null,null,null,null,null,"PROJECT",null,"COMMENTS"]
["NO."]
[null,null,null,null,null,null,null,null,null,null,null,null,null,null,null,null,null,null,null,null,{"$f":"IF(B12=\"\",0,IF((SUM(D12:T12)=0),\"\",SUM(D12:T12)))","v":0},{"$f":"IF(U12=0,\"\",SUM((U12/$U$121)))","v":""}]
["1EP1","MERGER SCREENING",null,null,null,null,null,null,null,null,null,null,null,null,null,null,null,null,null,null,{"$f":"IF(B13=\"\",0,IF((SUM(D13:T13)=0),\"\",SUM(D13:T13)))","v":""},{"$f":"IF(U13=\"\",\"\",SUM((U13/$U$121)))","v":""}]
[1.1000000000000001,"Merger Pre-Screening",null,null,null,null,null,null,null,null,null,null,null,null,null,null,null,null,null,null,"",{"$f":"IF(U14=\"\",\"\",SUM((U14/$U$121)))","v":""}]
[1.2,"Merger Screening",null,null,null,null,null,null,null,null,null,null,null,null,null,null,null,null,null,null,"",""]
[1.3,"Screening/CP1",null,null,null,null,null,null,null,null,null,null,null,null,null,null,null,null,null,null,"",""]
[1.4,"Merger Plan",null,null,null,null,null,null,null,null,null,null,null,null,null,null,null,null,null,null,"",""]
[null,null,null,null,null,null,null,null,null,null,null,null,null,null,null,null,null,null,null,null,0,{"$error":"#DIV/0!"}]
[null,null,null,null,null,null,null,null,null,null,null,null,null,null,null,null,null,null,null,null,0,{"$error":"#DIV/0!"}]
[2,"INITIATE ENVIRONMENTAL DOCUMENTATION",null,null,null,null,null,null,null,null,null,null,null,null,null,null,null,null,null,null,"",""]
[2.1,"PSR Coordination",null,null,null,null,null,null,null,null,null,null,null,null,null,null,null,null,null,null,"",""]
[2.2000000000000002,"Project Initiation Meeting/Coordination",null,null,null,null,null,null,null,null,null,null,null,null,null,null,null,null,null,null,"",""]
[null,null,null,null,null,null,null,null,null,null,null,null,null,null,null,null,null,null,null,null,0,{"$error":"#DIV/0!"}]
[3,"TASK MANAGEMENT",null,null,null,null,null,null,null,null,null,null,null,null,null,null,null,null,null,null,"",""]
[null,null,null,null,null,null,null,null,null,null,null,null,null,null,null,null,null,null,null,null,0,{"$error":"#DIV/0!"}]
[4,"COMPLETE QC PROCEDURES",null,null,null,null,null,null,null,null,null,null,null,null,null,null,null,null,null,null,"",""]
[null,null,null,null,null,null,null,null,null,null,null,null,null,null,null,null,null,null,null,null,0,{"$error":"#DIV/0!"}]
[null,null,null,null,null,null,null,null,null,null,null,null,null,null,null,null,null,null,null,null,0,{"$error":"#DIV/0!"}]
[null,null,null,null,null,null,null,null,null,null,null,null,null,null,null,null,null,null,null,null,0,{"$error":"#DIV/0!"}]
[null,null,null,null,null,null,null,null,null,null,null,null,null,null,null,null,null,null,null,null,0,{"$error":"#DIV/0!"}]
[null,null,null,null,null,null,null,null,null,null,null,null,null,null,null,null,null,null,null,null,0,{"$error":"#DIV/0!"}]
["2EP1","PROJECT INITIATION (if not under 1EP1 above)",null,null,null,null,null,null,null,null,null,null,null,null,null,null,null,null,null,null,"",""]
[null,"Prepare/Update initiation/scoping materials",null,null,null,null,null,null,null,null,null,null,null,null,null,null,null,null,null,null,"",""]
[null,"Attend/Conduct Scoping meeting with internal/external partners",null,null,null,null,null,null,null,null,null,null,null,null,null,null,null,null,null,null,"",""]
[null,null,null,null,null,null,null,null,null,null,null,null,null,null,null,null,null,null,null,null,0,{"$error":"#DIV/0!"}]
[null,null,null,null,null,null,null,null,null,null,null,null,null,null,null,null,null,null,null,null,0,{"$error":"#DIV/0!"}]
[null,null,null,null,null,null,null,null,null,null,null,null,null,null,null,null,null,null,null,null,0,{"$error":"#DIV/0!"}]
[1,"MERGER PREPARATION",null,null,null,null,null,null,null,null,null,null,null,null,null,null,null,null,null,null,"",""]
["1.1/1.2","Setup and Prepare Materials",null,null,null,null,null,null,null,null,null,null,null,null,null,null,null,null,null,null,"",""]
[1.3,"Pre-Meeting",null,null,null,null,null,null,null,null,null,null,null,null,null,null,null,null,null,null,"",""]
[1.4,"Other Meetings",null,null,null,null,null,null,null,null,null,null,null,null,null,null,null,null,null,null,"",""]
[null,null,null,null,null,null,null,null,null,null,null,null,null,null,null,null,null,null,null,null,0,{"$error":"#DIV/0!"}]
[2,"MERGER CONCURRENCE",null,null,null,null,null,null,null,null,null,null,null,null,null,null,null,null,null,null,"",""]
[2.1,"Distribute Materials and Provide Coordination",null,null,null,null,null,null,null,null,null,null,null,null,null,null,null,null,null,null,"",""]
[2.2000000000000002,"Concurrence Meeting",null,null,null,null,null,null,null,null,null,null,null,null,null,null,null,null,null,null,"",""]
[null,null,null,null,null,null,null,null,null,null,null,null,null,null,null,null,null,null,null,null,0,{"$error":"#DIV/0!"}]
[null,null,null,null,null,null,null,null,null,null,null,null,null,null,null,null,null,null,null,null,0,{"$error":"#DIV/0!"}]
[null,null,null,null,null,null,null,null,null,null,null,null,null,null,null,null,null,null,null,null,0,{"$error":"#DIV/0!"}]
[null,null,null,null,null,null,null,null,null,null,null,null,null,null,null,null,null,null,null,null,0,{"$error":"#DIV/0!"}]
[null,null,null,null,null,null,null,null,null,null,null,null,null,null,null,null,null,null,null,null,0,{"$error":"#DIV/0!"}]
[3,"ENVIRONMENTAL (NEPA/SEPA) DOCUMENTATION",null,null,null,null,null,null,null,null,null,null,null,null,null,null,null,null,null,null,"",""]
[3.1,"4(f) De Minimis Coordination",null,null,null,null,null,null,null,null,null,null,null,null,null,null,null,null,null,null,"",""]
[null,"4(f) Programmatic Evaluation",null,null,null,null,null,null,null,null,null,null,null,null,null,null,null,null,null,null,"",""]
[null,null,null,null,null,null,null,null,null,null,null,null,null,null,null,null,null,null,null,null,0,{"$error":"#DIV/0!"}]
[3.2,"Other Supporting Documentation",null,null,null,null,null,null,null,null,null,null,null,null,null,null,null,null,null,null,"",""]
[null,null,null,null,null,null,null,null,null,null,null,null,null,null,null,null,null,null,null,null,0,{"$error":"#DIV/0!"}]
[null,null,null,null,null,null,null,null,null,null,null,null,null,null,null,null,null,null,null,null,0,{"$error":"#DIV/0!"}]
[3.3,"Draft Environmental Document(ation)",null,null,null,null,null,null,null,null,null,null,null,null,null,null,null,null,null,null,"",""]
[null,"Prepare draft",null,null,null,null,null,null,null,null,null,null,null,null,null,null,null,null,null,null,"",""]
[null,"Submit draft for review and address revisions",null,null,null,null,null,null,null,null,null,null,null,null,null,null,null,null,null,null,"",""]
[null,null,null,null,null,null,null,null,null,null,null,null,null,null,null,null,null,null,null,null,0,{"$error":"#DIV/0!"}]
[3.4,"Final Environmental Document(ation)",null,null,null,null,null,null,null,null,null,null,null,null,null,null,null,null,null,null,"",""]
[null,"Acquire signatures",null,null,null,null,null,null,null,null,null,null,null,null,null,null,null,null,null,null,"",""]
[null,"Upload and distribute (as appropriate) ",null,null,null,null,null,null,null,null,null,null,null,null,null,null,null,null,null,null,"",""]
[null,null,null,null,null,null,null,null,null,null,null,null,null,null,null,null,null,null,null,null,0,{"$error":"#DIV/0!"}]
[4,"TASK MANAGEMENT",null,null,null,null,null,null,null,null,null,null,null,null,null,null,null,null,null,null,"",""]
[null,null,null,null,null,null,null,null,null,null,null,null,null,null,null,null,null,null,null,null,0,{"$error":"#DIV/0!"}]
[5,"COMPLETE QC PROCEDURES",null,null,null,null,null,null,null,null,null,null,null,null,null,null,null,null,null,null,"",""]
[null,null,null,null,null,null,null,null,null,null,null,null,null,null,null,null,null,null,null,null,0,{"$error":"#DIV/0!"}]
[null,null,null,null,null,null,null,null,null,null,null,null,null,null,null,null,null,null,null,null,0,{"$error":"#DIV/0!"}]
[null,null,null,null,null,null,null,null,null,null,null,null,null,null,null,null,null,null,null,null,0,{"$error":"#DIV/0!"}]
[null,null,null,null,null,null,null,null,null,null,null,null,null,null,null,null,null,null,null,null,0,{"$error":"#DIV/0!"}]
[null,null,null,null,null,null,null,null,null,null,null,null,null,null,null,null,null,null,null,null,0,{"$error":"#DIV/0!"}]
[null,null,null,null,null,null,null,null,null,null,null,null,null,null,null,null,null,null,null,null,0,{"$error":"#DIV/0!"}]
[null,null,null,null,null,null,null,null,null,null,null,null,null,null,null,null,null,null,null,null,0,{"$error":"#DIV/0!"}]
[null,null,null,null,null,null,null,null,null,null,null,null,null,null,null,null,null,null,null,null,0,{"$error":"#DIV/0!"}]
[null,null,null,null,null,null,null,null,null,null,null,null,null,null,null,null,null,null,null,null,{"$f":"IF(B77=\"\",0,IF((SUM(D77:T77)=0),\"\",SUM(D77:T77)))","v":0},{"$error":"#DIV/0!"}]
[null,null,null,null,null,null,null,null,null,null,null,null,null,null,null,null,null,null,null,null,0,{"$f":"IF(U78=\"\",\"\",SUM((U78/$U$121)))","v":{"$error":"#DIV/0!"}}]
[null,null,null,null,null,null,null,null,null,null,null,null,null,null,null,null,null,null,null,null,0,{"$error":"#DIV/0!"}]
[null,null,null,null,null,null,null,null,null,null,null,null,null,null,null,null,null,null,null,null,0,{"$error":"#DIV/0!"}]
[null,null,null,null,null,null,null,null,null,null,null,null,null,null,null,null,null,null,null,null,0,{"$error":"#DIV/0!"}]
[null,null,null,null,null,null,null,null,null,null,null,null,null,null,null,null,null,null,null,null,0,{"$error":"#DIV/0!"}]
[null,null,null,null,null,null,null,null,null,null,null,null,null,null,null,null,null,null,null,null,0,{"$error":"#DIV/0!"}]
[null,null,null,null,null,null,null,null,null,null,null,null,null,null,null,null,null,null,null,null,0,{"$error":"#DIV/0!"}]
[null,null,null,null,null,null,null,null,null,null,null,null,null,null,null,null,null,null,null,null,0,{"$error":"#DIV/0!"}]
[null,null,null,null,null,null,null,null,null,null,null,null,null,null,null,null,null,null,null,null,0,{"$error":"#DIV/0!"}]
["3EP1","Right-of-Way Consultation",null,null,null,null,null,null,null,null,null,null,null,null,null,null,null,null,null,null,"",""]
[1,"Data Collection",null,null,null,null,null,null,null,null,null,null,null,null,null,null,null,null,null,null,"",""]
[2,"Prepare Draft ROW Consultation",null,null,null,null,null,null,null,null,null,null,null,null,null,null,null,null,null,null,"",""]
[3,"Submit Final ROW Consultation",null,null,null,null,null,null,null,null,null,null,null,null,null,null,null,null,null,null,"",""]
[4,"Task Mngmt",null,null,null,null,null,null,null,null,null,null,null,null,null,null,null,null,null,null,"",""]
[5,"Complete QC Procedures",null,null,null,null,null,null,null,null,null,null,null,null,null,null,null,null,null,null,"",""]
[null,null,null,null,null,null,null,null,null,null,null,null,null,null,null,null,null,null,null,null,0,{"$error":"#DIV/0!"}]
[null,null,null,null,null,null,null,null,null,null,null,null,null,null,null,null,null,null,null,null,0,{"$error":"#DIV/0!"}]
[null,null,null,null,null,null,null,null,null,null,null,null,null,null,null,null,null,null,null,null,0,{"$error":"#DIV/0!"}]
[null,null,null,null,null,null,null,null,null,null,null,null,null,null,null,null,null,null,null,null,0,{"$error":"#DIV/0!"}]
["4EP1","CONSTRUCTION Consultation",null,null,null,null,null,null,null,null,null,null,null,null,null,null,null,null,null,null,"",""]
[1,"Data Collection",null,null,null,null,null,null,null,null,null,null,null,null,null,null,null,null,null,null,"",""]
[2,"Prepare Draft Construction Consultation",null,null,null,null,null,null,null,null,null,null,null,null,null,null,null,null,null,null,"",""]
[3,"Submit Final Construction Consultation",null,null,null,null,null,null,null,null,null,null,null,null,null,null,null,null,null,null,"",""]
[4,"Task Mngmt",null,null,null,null,null,null,null,null,null,null,null,null,null,null,null,null,null,null,"",""]
[5,"Complete QC Procedures",null,null,null,null,null,null,null,null,null,null,null,null,null,null,null,null,null,null,"",""]
[null,null,null,null,null,null,null,null,null,null,null,null,null,null,null,null,null,null,null,null,0,{"$error":"#DIV/0!"}]
[null,null,null,null,null,null,null,null,null,null,null,null,null,null,null,null,null,null,null,null,0,{"$error":"#DIV/0!"}]
[null,null,null,null,null,null,null,null,null,null,null,null,null,null,null,null,null,null,null,null,0,{"$error":"#DIV/0!"}]
[null,null,null,null,null,null,null,null,null,null,null,null,null,null,null,null,null,null,null,null,0,{"$error":"#DIV/0!"}]
[null,null,null,null,null,null,null,null,null,null,null,null,null,null,null,null,null,null,null,null,0,{"$error":"#DIV/0!"}]
[null,null,null,null,null,null,null,null,null,null,null,null,null,null,null,null,null,null,null,null,0,{"$error":"#DIV/0!"}]
[null,null,null,null,null,null,null,null,null,null,null,null,null,null,null,null,null,null,null,null,0,{"$error":"#DIV/0!"}]
[null,null,null,null,null,null,null,null,null,null,null,null,null,null,null,null,null,null,null,null,0,{"$error":"#DIV/0!"}]
[null,null,null,null,null,null,null,null,null,null,null,null,null,null,null,null,null,null,null,null,0,{"$error":"#DIV/0!"}]
[null,null,null,null,null,null,null,null,null,null,null,null,null,null,null,null,null,null,null,null,0,{"$error":"#DIV/0!"}]
[null,null,null,null,null,null,null,null,null,null,null,null,null,null,null,null,null,null,null,null,0,{"$error":"#DIV/0!"}]
[null,null,null,null,null,null,null,null,null,null,null,null,null,null,null,null,null,null,null,null,0,{"$error":"#DIV/0!"}]
[null,null,null,null,null,null,null,null,null,null,null,null,null,null,null,null,null,null,null,null,0,{"$error":"#DIV/0!"}]
[null,null,null,null,null,null,null,null,null,null,null,null,null,null,null,null,null,null,null,null,0,{"$error":"#DIV/0!"}]
[null,null,null,null,null,null,null,null,null,null,null,null,null,null,null,null,null,null,null,null,0,{"$error":"#DIV/0!"}]
[null,null,null,null,null,null,null,null,null,null,null,null,null,null,null,null,null,null,null,null,0,{"$error":"#DIV/0!"}]
[null,null,null,null,null,null,null,null,null,null,null,null,null,null,null,null,null,null,null,null,0,{"$error":"#DIV/0!"}]
[null,null,null,null,null,null,null,null,null,null,null,null,null,null,null,null,null,null,null,null,0,{"$error":"#DIV/0!"}]
[null,"TOTAL WORKDAYS/CATEGORY:",null,{"$f":"(SUM(D12:D120))","v":0},0,0,0,0,0,0,0,0,0,0,0,0,0,0,0,0,0,{"$f":"SUM(V12:V120)","v":{"$error":"#DIV/0!"}},{"$f":"(SUM(W12:W120))","v":0}]
[null,"HOURLY SALARY RATE:",null,{"$f":"'PEF CLASSIFICATION SHEET'!$E753","v":0},{"$f":"'PEF CLASSIFICATION SHEET'!$E754","v":0},{"$f":"'PEF CLASSIFICATION SHEET'!$E755","v":0},{"$f":"'PEF CLASSIFICATION SHEET'!$E756","v":0},{"$f":"'PEF CLASSIFICATION SHEET'!$E757","v":0},{"$f":"'PEF CLASSIFICATION SHEET'!$E758","v":0},{"$f":"'PEF CLASSIFICATION SHEET'!$E759","v":0},{"$f":"'PEF CLASSIFICATION SHEET'!$E760","v":0},{"$f":"'PEF CLASSIFICATION SHEET'!$E761","v":0},{"$f":"'PEF CLASSIFICATION SHEET'!$E762","v":0},{"$f":"'PEF CLASSIFICATION SHEET'!$E763","v":0},{"$f":"'PEF CLASSIFICATION SHEET'!$E764","v":0},{"$f":"'PEF CLASSIFICATION SHEET'!$E765","v":0},{"$f":"'PEF CLASSIFICATION SHEET'!$E766","v":0},{"$f":"'PEF CLASSIFICATION SHEET'!E767","v":0},{"$f":"'PEF CLASSIFICATION SHEET'!E768","v":0},{"$f":"'PEF CLASSIFICATION SHEET'!E769","v":0}]
[null,"RATES PER DAY:",null,{"$f":"D122*8","v":0},0,0,0,0,0,0,0,0,0,0,0,0,0,0,0,0]
[null,"PAYROLL BURDEN:",null,{"$f":"SUM(D121*D123)","v":0},0,0,0,0,0,0,0,0,0,0,0,0,0,0,0,0]
[null,"TOTAL WORKDAYS:",null,{"$f":"SUM(D121:T121)","v":0}]
[null,"TOTAL PAYROLL BURDEN:",null,{"$f":"SUM(D124:T124)","v":0}]
[null,"AVERAGE COST PER HOUR:",null,{"$f":"SUM(D126/(D125*8))","v":{"$error":"#DIV/0!"}}]
[null,"GENERAL OVERHEAD:",{"$f":"PDEA_PLANNING_SUB1_CONSULTANT_OVERHEAD","v":0},{"$f":"SUM(D126*C128)","v":0},null,null,null,null,null,null,null,null,null,"REVIEWED BY GROUP MNGT:"]
[null,"SUBTOTAL:",null,{"$f":"SUM(D128+D126)","v":0}]
[null,"COMPARATIVE FEE:",{"$f":"PDEA_PLANNING_SUB1_CONSULTANT_FEE","v":0.09},{"$f":"SUM(D129*C130)","v":0},null,null,null,null,null,null,null,null,null,"REVIEWED BY UNIT HEAD:"]
[null,"FACILITIES COST OF CAPITAL:",{"$f":"PDEA_PLANNING_SUB1_CONSULTANT_COSTofCAPITAL","v":0},{"$f":"SUM(D126*C131)","v":0}]
[null,"TOTAL:",null,{"$f":"SUM(D129:D131)","v":0}]
[null,"DIRECT EXPENSES:",null,{"$f":"PDEA_PLANNING_DIRECT_NONSALARY_TOTAL_SUB1","v":0}]
[null,"PLANNING GRAND TOTAL:",null,{"$f":"SUM(D132:D133)","v":0}]
[]
[]
[]
[null,null,null,null,"Costs","Workdays",null,null,null,null,"Dollars"]
[null,null,null,null,null,"EnvPolicy","PEF","Delta ","Delta %",null,"Environmental Policy",null,"PEF",null,"Delta ",null,null,null,null,null,null,"Delta %"]
[null,null,null,null,null,null,null,{"$f":"SUM(G140-F140)","v":0},{"$f":"SUM((H140/F140)*100)","v":{"$error":"#DIV/0!"}},null,null,null,null,null,{"$f":"SUM(M140-K140)","v":0},null,null,null,null,null,null,{"$f":"SUM((O140/K140)*100)","v":{"$error":"#DIV/0!"}}]
[]
[]
[null,null,null,null,null,null,null,null,null,"Directs","Dollars"]
[null,null,null,null,null,null,null,null,null,null,"Environmental Policy",null,"PEF",null,"Delta ",null,null,null,null,null,null,"Delta %"]
[null,null,null,null,null,null,null,null,null,null,null,null,null,null,{"$f":"SUM(M145-K145)","v":0},null,null,null,null,null,null,{"$f":"SUM((O145/K145)*100)","v":{"$error":"#DIV/0!"}}]

{"sheet":"EnvPolicy-Exp-Sub1","index":93,"n_rows":104,"n_cols":8,"rows_kept":104,"cut":false,"hidden":true,"merged":[[6,1,6,3],[6,4,6,6],[0,0,0,7],[3,1,3,7],[4,1,4,3],[4,6,4,7],[5,1,5,3],[5,6,5,7],[2,1,2,3]]}
["ENVIRONMENTAL POLICY DIRECT EXPENSES - SUBCONSULTANT 1 "]
[]
["FIRM:",{"$f":"'EnvPolicy-Sub1'!G3","v":"CONSULTANT NAME"}]
["PROJECT DESCRIPTION: ",{"$f":"PROJECT.DESCRIPTION","v":0}]
["PREPARED BY:  ",{"$f":"PDEA.SUB1.PREPARED.BY","v":""},null,null,"TASK ORDER NUMBER:",null,{"$f":"TASK.ORDER.NUMBER","v":0}]
["TIP NUMBER:",{"$f":"TIP.NUMBER","v":0},null,null,"WBS NUMBER:",null,{"$f":"WBS.NUMBER","v":""}]
["DATE PREPARED:",{"$f":"IF('EnvPolicy-Sub1'!X3=\"\",\"\",MAX('EnvPolicy-Sub1'!X3:'EnvPolicy-Sub1'!X4))","v":""},null,null,"REVIEWED BY UNIT HEAD ON:",null,null,{"$f":"IF(SCOPE.MANDAY.ESTIMATE.APPROVED.BY.DATE=\"\",\"\",SCOPE.MANDAY.ESTIMATE.APPROVED.BY.DATE)","v":""}]
["GENERAL PROJECT WORK:","ITEM","QTY","DESCRIPTION",null,null,"UNIT COST "]
[null,"Travel:"]
[null,"Sedan",null,"Trip(s) @",null,"miles @",{"$f":"SEDAN","v":0.7},{"$f":"SUM(C10*E10*G10)","v":0}]
[null,"Carry All",null,"Trip(s) @",null,"miles @",{"$f":"CARRYALL","v":0.72},{"$f":"SUM(C11*E11*G11)","v":0}]
[null,"Car Rental",null,null,null,"days @ ",{"$f":"CARRENTAL","v":50},{"$f":"SUM(E12*G12)","v":0}]
[null,"Gas for Rental",null,null,null,"miles @",{"$f":"GASforRENTAL","v":0.2},{"$f":"SUM(E13*G13)","v":0}]
[null,"Parking:",null,"Trip(s) @",null,null,{"$f":"PARKING","v":3},{"$f":"SUM(C14*G14)","v":0}]
[null,"Per Diem:",null,"Breakfast",null,null,{"$f":"BREAKFAST","v":10.1},{"$f":"SUM(C15*G15)","v":0}]
[null,null,null,"Lunch",null,null,{"$f":"LUNCH","v":13.3},0]
[null,null,null,"Dinner",null,null,{"$f":"DINNER","v":23.1},0]
[null,null,null,"Lodging",null,null,{"$f":"LODGING_LUMP.SUM","v":95},0]
[null,"Reproduction:",null,"8 1/2 x 11 B & W Copies @",null,null,{"$f":"LETTERCOPIES","v":0.14000000000000001},0]
[null,null,null,"11 x 17 B & W Copies @",null,null,{"$f":"LEDGERCOPIES","v":0.34},0]
[null,null,null,"8 1/2 x 11 Color Copies @",null,null,{"$f":"LETTERCOLOR","v":0.83},0]
[null,null,null,"11 x 17 Color Copies @",null,null,{"$f":"LEDGERCOLOR","v":1.66},0]
[null,null,null,"SQ. FT. of Plots (B & W or Color)",null,"<65 SQ. FT.*",{"$f":"ROLLPLOTSshort","v":6.5},0]
[null,null,null,"SQ. FT. of Plots (B & W or Color)",null,">65 SQ. FT.*",{"$f":"ROLLPLOTSlong","v":1.5},0]
[null,null,null,"Cover(s) @",null,null,{"$f":"COVERS","v":0.5},0]
[null,null,null,"Binder(s) @",null,null,{"$f":"BINDERS","v":0.5},0]
[null,null,null,"Blueprints - 8 1/2 x 11 @",null,null,{"$f":"BLUEPRINTSLETTER","v":0.35},0]
[null,null,null,"Blueprints - 42 x 72 @",null,null,{"$f":"BLUEPRINTSLARGE","v":1.3},0]
[null,"Film and Developing:",null,"Roll(s) @",null,null,{"$f":"FILM","v":20},0]
[null,null,null,null,null,"Subtotal",null,{"$f":"SUM(H10:H29)","v":0}]
["MAPS AND DOCUMENTS:","ITEM","QTY","DESCRIPTION",null,null,"UNIT COST "]
[null,"County Tax Maps:",null,"Map(s) @",null,null,{"$f":"County_Tax_Maps","v":7},{"$f":"SUM(C32*G32)","v":0}]
[null,"USGS Maps:",null,"Map(s) @",null,null,{"$f":"USGSMAPS","v":7},{"$f":"SUM(C33*G33)","v":0}]
[null,null,null,null,null,"Subtotal",null,{"$f":"SUM(H32:H33)","v":0}]
["TECHNICAL REPORTS:","ITEM","QTY","DESCRIPTION",null,null,"UNIT COST "]
[null,"Reproduction:",null,"8 1/2 x 11 B & W Copies @",null,null,{"$f":"LETTERCOPIES","v":0.14000000000000001},{"$f":"SUM(C36*G36)","v":0}]
[null,null,null,"11 x 17 B & W Copies @",null,null,{"$f":"LEDGERCOPIES","v":0.34},0]
[null,null,null,"8 1/2 x 11 Color Copies @",null,null,{"$f":"LETTERCOLOR","v":0.83},0]
[null,null,null,"11 x 17 Color Copies @",null,null,{"$f":"LEDGERCOLOR","v":1.66},0]
[null,null,null,"SQ. FT. of Plots (B & W or Color)",null,"<65 SQ. FT.*",{"$f":"ROLLPLOTSshort","v":6.5},0]
[null,null,null,"SQ. FT. of Plots (B & W or Color)",null,">65 SQ. FT.*",{"$f":"ROLLPLOTSlong","v":1.5},0]
[null,null,null,"Cover(s) @",null,null,{"$f":"COVERS","v":0.5},0]
[null,null,null,"Binder(s) @",null,null,{"$f":"BINDERS","v":0.5},0]
[null,null,null,null,null,"Subtotal",null,{"$f":"SUM(H36:H43)","v":0}]
["DESIGN:","ITEM","QTY","DESCRIPTION",null,null,"UNIT COST "]
[null,"Reproduction:",null,"8 1/2 x 11 B & W Copies @",null,null,{"$f":"LETTERCOPIES","v":0.14000000000000001},{"$f":"SUM(C46*G46)","v":0}]
[null,null,null,"11 x 17 B & W Copies @",null,null,{"$f":"LEDGERCOPIES","v":0.34},0]
[null,null,null,"Blueprints - 8 1/2 x 11 @",null,null,{"$f":"BLUEPRINTSLETTER","v":0.35},0]
[null,null,null,"Mylar - 8 1/2 x 11 @",null,null,{"$f":"MYLARSLETTER","v":7.32},0]
[null,null,null,"Mylar - 36 x 48 @",null,null,{"$f":"MYLARSLARGE","v":28.12},0]
[null,null,null,"Prints  - 24 x 36 @",null,null,{"$f":"PRINTSLARGE","v":3},0]
[null,null,null,"Blueprints - 42 x 72 @",null,null,{"$f":"BLUEPRINTSLARGE","v":1.3},0]
[null,null,null,"SQ. FT. of Plots (B & W or Color)",null,"<65 SQ. FT.*",{"$f":"ROLLPLOTSshort","v":6.5},0]
[null,null,null,"SQ. FT. of Plots (B & W or Color)",null,">65 SQ. FT.*",{"$f":"ROLLPLOTSlong","v":1.5},0]
[null,null,null,"USGS Map(s)",null,null,{"$f":"USGSMAPS","v":7},0]
[null,null,null,null,null,"Subtotal",null,{"$f":"SUM(H46:H55)","v":0}]
["ENVIRONMENTAL DOCUMENT(S):","ITEM","QTY","DESCRIPTION",null,null,"UNIT COST "]
[null,"Reproduction:",null,"8 1/2 x 11 B & W Copies @",null,null,{"$f":"LETTERCOPIES","v":0.14000000000000001},{"$f":"SUM(C58*G58)","v":0}]
[null,null,null,"11 x 17 B & W Copies @",null,null,{"$f":"LEDGERCOPIES","v":0.34},0]
[null,null,null,"8 1/2 x 11 Color Copies @",null,null,{"$f":"LETTERCOLOR","v":0.83},0]
[null,null,null,"11 x 17 Color Copies @",null,null,{"$f":"LEDGERCOLOR","v":1.66},0]
[" ",null,null,"Cover(s) @",null,null,{"$f":"COVERS","v":0.5},0]
[null,null,null,"Binder(s) @",null,null,{"$f":"BINDERS","v":0.5},0]
[null,null,null,null,null,"Subtotal",null,{"$f":"SUM(H58:H63)","v":0}]
["MEETINGS & PUBLIC INVOLVEMENT:","ITEM","QTY","DESCRIPTION",null,null,"UNIT COST "]
[null,"Travel:"]
[null,"Sedan",null,"Trip(s) @",null,"miles @",{"$f":"SEDAN","v":0.7},{"$f":"SUM(C67*E67*G67)","v":0}]
[null,"CarryAll",null,"Trip(s) @",null,"miles @",{"$f":"CARRYALL","v":0.72},{"$f":"SUM(C68*E68*G68)","v":0}]
[null,"Car Rental",null,null,null,"days @",{"$f":"CARRENTAL","v":50},{"$f":"SUM(E69*G69)","v":0}]
[null,"Gas for Rental",null,null,null,"miles @",{"$f":"GASforRENTAL","v":0.2},{"$f":"SUM(E70*G70)","v":0}]
[null,"Parking:",null,"Trip(s) @",null,null,{"$f":"PARKING","v":3},{"$f":"SUM(C71*G71)","v":0}]
[null,"Per Diem:",null,"Breakfast",null,null,{"$f":"BREAKFAST","v":10.1},{"$f":"SUM(C72*G72)","v":0}]
[null,null,null,"Lunch",null,null,{"$f":"LUNCH","v":13.3},{"$f":"SUM(C73*G73)","v":0}]
[null,null,null,"Dinner",null,null,{"$f":"DINNER","v":23.1},{"$f":"SUM(C74*G74)","v":0}]
[null,null,null,"Lodging",null,null,{"$f":"LODGING_LUMP.SUM","v":95},{"$f":"SUM(C75*G75)","v":0}]
[null,"Workshop "]
[null,"  - Reproduction",null,"8 1/2 x 11 B & W Copies @",null,"Handouts",{"$f":"LETTERCOPIES","v":0.14000000000000001},{"$f":"SUM(C77*E77*G77)","v":0}]
[null,null,null,"11 x 17 B & W Copies @",null,"Handouts",{"$f":"LEDGERCOPIES","v":0.34},{"$f":"SUM(C78*E78*G78)","v":0}]
[null,null,null,"8 1/2 x 11 Color Copies @",null,null,{"$f":"LETTERCOLOR","v":0.83},{"$f":"SUM(C79*G79)","v":0}]
[null,null,null,"11 x 17 Color Copies @",null,null,{"$f":"LEDGERCOLOR","v":1.66},0]
[null,null,null,"SQ. FT. of Plots (B & W or Color)",null,"<65 SQ. FT.*",{"$f":"ROLLPLOTSshort","v":6.5},0]
[null,null,null,"SQ. FT. of Plots (B & W or Color)",null,">65 SQ. FT.*",{"$f":"ROLLPLOTSlong","v":1.5},0]
[null,null,null,"SQ. FT. Foam Mounting Board @",null,null,{"$f":"FOAMMOUNTINGBOARD","v":1.25},0]
[null,"Presentation Materials:",null,"Misc. Workshop Supplies @",null,"per workshop",{"$f":"MISCWORKSHOPSUPPLIES","v":50},0]
[null,"Mailing Labels:",null,"Laser Peel & Stick (box)",null,"750 per box",{"$f":"LASERPEELandSTICK","v":4},0]
[null,"Postage:"]
[null,"  - Public Workshops:",null,"Notice or Newsletter @",null,"copies @",{"$f":"POSTAGE","v":0.49},{"$f":"SUM(C87*E87*G87)","v":0}]
[null,null,null,null,null,"Subtotal",null,{"$f":"SUM(H66:H87)","v":0}]
["Miscellaneous Other","ITEM","QTY","DESCRIPTION",null,null,"UNIT COST "]
[null,null,null,null,null,null,null,{"$f":"SUM(C90*G90)","v":0}]
[null,null,null,null,null,null,null,{"$f":"SUM(C91*G91)","v":0}]
[null,null,null,null,null,null,null,0]
[null,null,null,null,null,null,null,0]
[null,null,null,null,null,null,null,0]
[null,null,null,null,null,null,null,0]
[null,null,null,null,null,null,null,0]
[null,null,null,null,null,null,null,{"$f":"SUM(C97*G97)","v":0}]
[null,null,null,null,null,null,null,{"$f":"SUM(C98*G98)","v":0}]
[null,null,null,null,null,null,null,{"$f":"SUM(C99*G99)","v":0}]
[null,null,null,null,null,"Subtotal",null,{"$f":"SUM(H90:H99)","v":0}]
[]
[null,null,null,null,null,"TOTAL",null,{"$f":"SUM(H30+H34+H44+H56+H64+H88+H100)","v":0}]
[]
[null,"* Sum of all plots "]

{"sheet":"EnvPolicy-Sub2","index":94,"n_rows":145,"n_cols":26,"rows_kept":145,"cut":false,"hidden":true,"merged":[[142,10,142,21],[143,10,143,11],[143,12,143,13],[143,14,143,20],[144,10,144,11],[144,12,144,13],[144,14,144,20],[138,10,138,11],[138,12,138,13],[138,14,138,20],[139,10,139,11],[139,12,139,13],[139,14,139,20],[129,13,130,14],[129,15,130,16],[133,1,134,1],[133,3,134,4],[137,5,137,8],[137,10,137,21],[115,23,115,24],[116,23,116,24],[117,23,117,24],[118,23,118,24],[119,23,119,24],[127,13,128,14],[127,15,128,16],[109,23,109,24],[110,23,110,24],[111,23,111,24],[112,23,112,24],[113,23,113,24],[114,23,114,24],[103,23,103,24],[104,23,104,24],[105,23,105,24],[106,23,106,24],[107,23,107,24],[108,23,108,24],[97,23,97,24],[98,23,98,24],[99,23,99,24],[100,23,100,24],[101,23,101,24],[102,23,102,24],[91,23,91,24],[92,23,92,24],[93,23,93,24],[94,23,94,24],[95,23,95,24],[96,23,96,24],[85,23,85,24],[86,23,86,24],[87,23,87,24],[88,23,88,24],[89,23,89,24],[90,23,90,24],[79,23,79,24],[80,23,80,24],[81,23,81,24],[82,23,82,24],[83,23,83,24],[84,23,84,24],[73,23,73,24],[74,23,74,24],[75,23,75,24],[76,23,76,24],[77,23,77,24],[78,23,78,24],[67,23,67,24],[68,23,68,24],[69,23,69,24],[70,23,70,24],[71,23,71,24],[72,23,72,24],[61,23,61,24],[62,23,62,24],[63,23,63,24],[64,23,64,24],[65,23,65,24],[66,23,66,24],[55,23,55,24],[56,23,56,24],[57,23,57,24],[58,23,58,24],[59,23,59,24],[60,23,60,24],[49,23,49,24],[50,23,50,24],[51,23,51,24],[52,23,52,24],[53,23,53,24],[54,23,54,24],[43,23,43,24],[44,23,44,24],[45,23,45,24],[46,23,46,24],[47,23,47,24],[48,23,48,24],[37,23,37,24],[38,23,38,24],[39,23,39,24],[40,23,40,24],[41,23,41,24],[42,23,42,24],[31,23,31,24],[32,23,32,24],[33,23,33,24],[34,23,34,24],[35,23,35,24],[36,23,36,24],[26,23,26,24],[27,23,27,24],[28,23,28,24],[29,23,29,24],[30,23,30,24],[19,23,19,24],[20,23,20,24],[21,23,21,24],[22,23,22,24],[23,23,23,24],[24,23,24,24],[17,23,17,24],[18,23,18,24],[7,17,10,17],[7,18,10,18],[7,19,10,19],[9,23,9,24],[11,23,11,24],[12,23,12,24],[25,23,25,24],[3,5,3,6],[3,7,3,8],[3,9,3,10],[3,11,3,12],[3,21,3,22],[13,23,13,24],[14,23,14,24],[15,23,15,24],[16,23,16,24],[0,0,1,24],[2,1,2,4],[2,6,2,8],[2,9,2,10],[2,11,2,12],[2,21,2,22],[2,23,2,24],[7,11,10,11],[7,12,10,12],[7,13,10,13],[7,14,10,14],[7,15,10,15],[7,16,10,16],[3,23,3,24],[5,3,5,19],[7,3,10,3],[7,4,10,4],[7,5,10,5],[7,6,10,6],[7,7,10,7],[7,8,10,8],[7,9,10,9],[7,10,10,10],[3,1,3,4]]}
["ENVIRONMENTAL POLICY BREAKDOWN WORKSHEET - SUBCONSULTANT 2"]
[]
["PROJECT DESCRIPTION: ",{"$f":"PROJECT.DESCRIPTION","v":0},null,null,null,"FIRM:  ",{"$f":"PDEA_PLANNING_SUB2_CONSULTANT_NAME","v":"CONSULTANT NAME"},null,null,"TASK ORDER NUMBER:",null,{"$f":"TASK.ORDER.NUMBER","v":0},null,null,null,null,null,null,null,null,null,"DATE PREPARED:",null,{"$f":"IF(SCOPE.MANDAY.ESTIMATE.PREPARED.BY.DATE=\"\",\"\",SCOPE.MANDAY.ESTIMATE.PREPARED.BY.DATE)","v":""}]
["PREPARED BY:  ",{"$f":"IF(SCOPE.MANDAY.ESTIMATE.PREPARED.BY=\"\",\"\",SCOPE.MANDAY.ESTIMATE.PREPARED.BY)","v":""},null,null,null,"TIP NUMBER:",null,{"$f":"TIP.NUMBER","v":0},null,"WBS NUMBER:",null,{"$f":"WBS.NUMBER","v":""},null,null,null,null,null,null,null,null,null,"REVISION DATE:",null,{"$f":"IF(SCOPE.MANDAY.ESTIMATE.APPROVED.BY.DATE=\"\",\"\",SCOPE.MANDAY.ESTIMATE.APPROVED.BY.DATE)","v":""}]
[null,null,null,null,null,null,null,null,null,null,null,null,null,null,null,null,null,null,null,null,null,null,null,null,null," "]
[null,null,null,"ESTIMATED WORK DAYS"]
[null,null,"Employee",{"$f":"IF('PEF CLASSIFICATION SHEET'!$D772=\"\",\"\",LEFT('PEF CLASSIFICATION SHEET'!$D772,4))","v":""},{"$f":"IF('PEF CLASSIFICATION SHEET'!$D773=\"\",\"\",LEFT('PEF CLASSIFICATION SHEET'!$D773,4))","v":""},{"$f":"IF('PEF CLASSIFICATION SHEET'!$D774=\"\",\"\",LEFT('PEF CLASSIFICATION SHEET'!$D774,4))","v":""},{"$f":"IF('PEF CLASSIFICATION SHEET'!$D775=\"\",\"\",LEFT('PEF CLASSIFICATION SHEET'!$D775,4))","v":""},{"$f":"IF('PEF CLASSIFICATION SHEET'!$D776=\"\",\"\",LEFT('PEF CLASSIFICATION SHEET'!$D776,4))","v":""},{"$f":"IF('PEF CLASSIFICATION SHEET'!$D777=\"\",\"\",LEFT('PEF CLASSIFICATION SHEET'!$D777,4))","v":""},{"$f":"IF('PEF CLASSIFICATION SHEET'!$D778=\"\",\"\",LEFT('PEF CLASSIFICATION SHEET'!$D778,4))","v":""},{"$f":"IF('PEF CLASSIFICATION SHEET'!$D779=\"\",\"\",LEFT('PEF CLASSIFICATION SHEET'!$D779,4))","v":""},{"$f":"IF('PEF CLASSIFICATION SHEET'!$D780=\"\",\"\",LEFT('PEF CLASSIFICATION SHEET'!$D780,4))","v":""},{"$f":"IF('PEF CLASSIFICATION SHEET'!$D781=\"\",\"\",LEFT('PEF CLASSIFICATION SHEET'!$D781,4))","v":""},{"$f":"IF('PEF CLASSIFICATION SHEET'!$D782=\"\",\"\",LEFT('PEF CLASSIFICATION SHEET'!$D782,4))","v":""},{"$f":"IF('PEF CLASSIFICATION SHEET'!$D783=\"\",\"\",LEFT('PEF CLASSIFICATION SHEET'!$D783,4))","v":""},{"$f":"IF('PEF CLASSIFICATION SHEET'!$D784=\"\",\"\",LEFT('PEF CLASSIFICATION SHEET'!$D784,4))","v":""},{"$f":"IF('PEF CLASSIFICATION SHEET'!$D785=\"\",\"\",LEFT('PEF CLASSIFICATION SHEET'!$D785,4))","v":""},{"$f":"IF('PEF CLASSIFICATION SHEET'!D786=\"\",\"\",LEFT('PEF CLASSIFICATION SHEET'!D786,4))","v":""},{"$f":"IF('PEF CLASSIFICATION SHEET'!D787=\"\",\"\",LEFT('PEF CLASSIFICATION SHEET'!D787,4))","v":""},{"$f":"IF('PEF CLASSIFICATION SHEET'!D788=\"\",\"\",LEFT('PEF CLASSIFICATION SHEET'!D788,4))","v":""}]
[null,null,null,{"$f":"IF('PEF CLASSIFICATION SHEET'!$C772=\"\",\"\",'PEF CLASSIFICATION SHEET'!$C772)","v":""},{"$f":"IF('PEF CLASSIFICATION SHEET'!$C773=\"\",\"\",'PEF CLASSIFICATION SHEET'!$C773)","v":""},{"$f":"IF('PEF CLASSIFICATION SHEET'!$C774=\"\",\"\",'PEF CLASSIFICATION SHEET'!$C774)","v":""},{"$f":"IF('PEF CLASSIFICATION SHEET'!$C775=\"\",\"\",'PEF CLASSIFICATION SHEET'!$C775)","v":""},{"$f":"IF('PEF CLASSIFICATION SHEET'!$C776=\"\",\"\",'PEF CLASSIFICATION SHEET'!$C776)","v":""},{"$f":"IF('PEF CLASSIFICATION SHEET'!$C777=\"\",\"\",'PEF CLASSIFICATION SHEET'!$C777)","v":""},{"$f":"IF('PEF CLASSIFICATION SHEET'!$C778=\"\",\"\",'PEF CLASSIFICATION SHEET'!$C778)","v":""},{"$f":"IF('PEF CLASSIFICATION SHEET'!$C779=\"\",\"\",'PEF CLASSIFICATION SHEET'!$C779)","v":""},{"$f":"IF('PEF CLASSIFICATION SHEET'!$C780=\"\",\"\",'PEF CLASSIFICATION SHEET'!$C780)","v":""},{"$f":"IF('PEF CLASSIFICATION SHEET'!$C781=\"\",\"\",'PEF CLASSIFICATION SHEET'!$C781)","v":""},{"$f":"IF('PEF CLASSIFICATION SHEET'!$C782=\"\",\"\",'PEF CLASSIFICATION SHEET'!$C782)","v":""},{"$f":"IF('PEF CLASSIFICATION SHEET'!$C783=\"\",\"\",'PEF CLASSIFICATION SHEET'!$C783)","v":""},{"$f":"IF('PEF CLASSIFICATION SHEET'!$C784=\"\",\"\",'PEF CLASSIFICATION SHEET'!$C784)","v":""},{"$f":"IF('PEF CLASSIFICATION SHEET'!$C785=\"\",\"\",'PEF CLASSIFICATION SHEET'!$C785)","v":""},{"$f":"IF('PEF CLASSIFICATION SHEET'!C786=\"\",\"\",'PEF CLASSIFICATION SHEET'!C786)","v":""},{"$f":"IF('PEF CLASSIFICATION SHEET'!C787=\"\",\"\",'PEF CLASSIFICATION SHEET'!C787)","v":""},{"$f":"IF('PEF CLASSIFICATION SHEET'!C788=\"\",\"\",'PEF CLASSIFICATION SHEET'!C788)","v":""},"SUB-","%","PEF"]
[null,null,"Classification",null,null,null,null,null,null,null,null,null,null,null,null,null,null,null,null,null,"TOTAL","OF","ESTIMATE"]
["TASK","TASK DESCRIPTION",null,null,null,null,null,null,null,null,null,null,null,null,null,null,null,null,null,null,null,"PROJECT",null,"COMMENTS"]
["NO."]
[null,null,null,null,null,null,null,null,null,null,null,null,null,null,null,null,null,null,null,null,{"$f":"IF(B12=\"\",0,IF((SUM(D12:T12)=0),\"\",SUM(D12:T12)))","v":0},{"$f":"IF(U12=0,\"\",SUM((U12/$U$121)))","v":""}]
["1EP1","MERGER SCREENING",null,null,null,null,null,null,null,null,null,null,null,null,null,null,null,null,null,null,{"$f":"IF(B13=\"\",0,IF((SUM(D13:T13)=0),\"\",SUM(D13:T13)))","v":""},{"$f":"IF(U13=\"\",\"\",SUM((U13/$U$121)))","v":""}]
[1.1000000000000001,"Merger Pre-Screening",null,null,null,null,null,null,null,null,null,null,null,null,null,null,null,null,null,null,"",{"$f":"IF(U14=\"\",\"\",SUM((U14/$U$121)))","v":""}]
[1.2,"Merger Screening",null,null,null,null,null,null,null,null,null,null,null,null,null,null,null,null,null,null,"",""]
[1.3,"Screening/CP1",null,null,null,null,null,null,null,null,null,null,null,null,null,null,null,null,null,null,"",""]
[1.4,"Merger Plan",null,null,null,null,null,null,null,null,null,null,null,null,null,null,null,null,null,null,"",""]
[null,null,null,null,null,null,null,null,null,null,null,null,null,null,null,null,null,null,null,null,0,{"$error":"#DIV/0!"}]
[null,null,null,null,null,null,null,null,null,null,null,null,null,null,null,null,null,null,null,null,0,{"$error":"#DIV/0!"}]
[2,"INITIATE ENVIRONMENTAL DOCUMENTATION",null,null,null,null,null,null,null,null,null,null,null,null,null,null,null,null,null,null,"",""]
[2.1,"PSR Coordination",null,null,null,null,null,null,null,null,null,null,null,null,null,null,null,null,null,null,"",""]
[2.2000000000000002,"Project Initiation Meeting/Coordination",null,null,null,null,null,null,null,null,null,null,null,null,null,null,null,null,null,null,"",""]
[null,null,null,null,null,null,null,null,null,null,null,null,null,null,null,null,null,null,null,null,0,{"$error":"#DIV/0!"}]
[3,"TASK MANAGEMENT",null,null,null,null,null,null,null,null,null,null,null,null,null,null,null,null,null,null,"",""]
[null,null,null,null,null,null,null,null,null,null,null,null,null,null,null,null,null,null,null,null,0,{"$error":"#DIV/0!"}]
[4,"COMPLETE QC PROCEDURES",null,null,null,null,null,null,null,null,null,null,null,null,null,null,null,null,null,null,"",""]
[null,null,null,null,null,null,null,null,null,null,null,null,null,null,null,null,null,null,null,null,0,{"$error":"#DIV/0!"}]
[null,null,null,null,null,null,null,null,null,null,null,null,null,null,null,null,null,null,null,null,0,{"$error":"#DIV/0!"}]
[null,null,null,null,null,null,null,null,null,null,null,null,null,null,null,null,null,null,null,null,0,{"$error":"#DIV/0!"}]
[null,null,null,null,null,null,null,null,null,null,null,null,null,null,null,null,null,null,null,null,0,{"$error":"#DIV/0!"}]
[null,null,null,null,null,null,null,null,null,null,null,null,null,null,null,null,null,null,null,null,0,{"$error":"#DIV/0!"}]
["2EP1","PROJECT INITIATION (if not under 1EP1 above)",null,null,null,null,null,null,null,null,null,null,null,null,null,null,null,null,null,null,"",""]
[null,"Prepare/Update initiation/scoping materials",null,null,null,null,null,null,null,null,null,null,null,null,null,null,null,null,null,null,"",""]
[null,"Attend/Conduct Scoping meeting with internal/external partners",null,null,null,null,null,null,null,null,null,null,null,null,null,null,null,null,null,null,"",""]
[null,null,null,null,null,null,null,null,null,null,null,null,null,null,null,null,null,null,null,null,0,{"$error":"#DIV/0!"}]
[null,null,null,null,null,null,null,null,null,null,null,null,null,null,null,null,null,null,null,null,0,{"$error":"#DIV/0!"}]
[null,null,null,null,null,null,null,null,null,null,null,null,null,null,null,null,null,null,null,null,0,{"$error":"#DIV/0!"}]
[1,"MERGER PREPARATION",null,null,null,null,null,null,null,null,null,null,null,null,null,null,null,null,null,null,"",""]
["1.1/1.2","Setup and Prepare Materials",null,null,null,null,null,null,null,null,null,null,null,null,null,null,null,null,null,null,"",""]
[1.3,"Pre-Meeting",null,null,null,null,null,null,null,null,null,null,null,null,null,null,null,null,null,null,"",""]
[1.4,"Other Meetings",null,null,null,null,null,null,null,null,null,null,null,null,null,null,null,null,null,null,"",""]
[null,null,null,null,null,null,null,null,null,null,null,null,null,null,null,null,null,null,null,null,0,{"$error":"#DIV/0!"}]
[2,"MERGER CONCURRENCE",null,null,null,null,null,null,null,null,null,null,null,null,null,null,null,null,null,null,"",""]
[2.1,"Distribute Materials and Provide Coordination",null,null,null,null,null,null,null,null,null,null,null,null,null,null,null,null,null,null,"",""]
[2.2000000000000002,"Concurrence Meeting",null,null,null,null,null,null,null,null,null,null,null,null,null,null,null,null,null,null,"",""]
[null,null,null,null,null,null,null,null,null,null,null,null,null,null,null,null,null,null,null,null,0,{"$error":"#DIV/0!"}]
[null,null,null,null,null,null,null,null,null,null,null,null,null,null,null,null,null,null,null,null,0,{"$error":"#DIV/0!"}]
[null,null,null,null,null,null,null,null,null,null,null,null,null,null,null,null,null,null,null,null,0,{"$error":"#DIV/0!"}]
[null,null,null,null,null,null,null,null,null,null,null,null,null,null,null,null,null,null,null,null,0,{"$error":"#DIV/0!"}]
[null,null,null,null,null,null,null,null,null,null,null,null,null,null,null,null,null,null,null,null,0,{"$error":"#DIV/0!"}]
[3,"ENVIRONMENTAL (NEPA/SEPA) DOCUMENTATION",null,null,null,null,null,null,null,null,null,null,null,null,null,null,null,null,null,null,"",""]
[3.1,"4(f) De Minimis Coordination",null,null,null,null,null,null,null,null,null,null,null,null,null,null,null,null,null,null,"",""]
[null,"4(f) Programmatic Evaluation",null,null,null,null,null,null,null,null,null,null,null,null,null,null,null,null,null,null,"",""]
[null,null,null,null,null,null,null,null,null,null,null,null,null,null,null,null,null,null,null,null,0,{"$error":"#DIV/0!"}]
[3.2,"Other Supporting Documentation",null,null,null,null,null,null,null,null,null,null,null,null,null,null,null,null,null,null,"",""]
[null,null,null,null,null,null,null,null,null,null,null,null,null,null,null,null,null,null,null,null,0,{"$error":"#DIV/0!"}]
[null,null,null,null,null,null,null,null,null,null,null,null,null,null,null,null,null,null,null,null,0,{"$error":"#DIV/0!"}]
[3.3,"Draft Environmental Document(ation)",null,null,null,null,null,null,null,null,null,null,null,null,null,null,null,null,null,null,"",""]
[null,"Prepare draft",null,null,null,null,null,null,null,null,null,null,null,null,null,null,null,null,null,null,"",""]
[null,"Submit draft for review and address revisions",null,null,null,null,null,null,null,null,null,null,null,null,null,null,null,null,null,null,"",""]
[null,null,null,null,null,null,null,null,null,null,null,null,null,null,null,null,null,null,null,null,0,{"$error":"#DIV/0!"}]
[3.4,"Final Environmental Document(ation)",null,null,null,null,null,null,null,null,null,null,null,null,null,null,null,null,null,null,"",""]
[null,"Acquire signatures",null,null,null,null,null,null,null,null,null,null,null,null,null,null,null,null,null,null,"",""]
[null,"Upload and distribute (as appropriate) ",null,null,null,null,null,null,null,null,null,null,null,null,null,null,null,null,null,null,"",""]
[null,null,null,null,null,null,null,null,null,null,null,null,null,null,null,null,null,null,null,null,0,{"$error":"#DIV/0!"}]
[4,"TASK MANAGEMENT",null,null,null,null,null,null,null,null,null,null,null,null,null,null,null,null,null,null,"",""]
[null,null,null,null,null,null,null,null,null,null,null,null,null,null,null,null,null,null,null,null,0,{"$error":"#DIV/0!"}]
[5,"COMPLETE QC PROCEDURES",null,null,null,null,null,null,null,null,null,null,null,null,null,null,null,null,null,null,"",""]
[null,null,null,null,null,null,null,null,null,null,null,null,null,null,null,null,null,null,null,null,0,{"$error":"#DIV/0!"}]
[null,null,null,null,null,null,null,null,null,null,null,null,null,null,null,null,null,null,null,null,0,{"$error":"#DIV/0!"}]
[null,null,null,null,null,null,null,null,null,null,null,null,null,null,null,null,null,null,null,null,0,{"$error":"#DIV/0!"}]
[null,null,null,null,null,null,null,null,null,null,null,null,null,null,null,null,null,null,null,null,0,{"$error":"#DIV/0!"}]
[null,null,null,null,null,null,null,null,null,null,null,null,null,null,null,null,null,null,null,null,0,{"$error":"#DIV/0!"}]
[null,null,null,null,null,null,null,null,null,null,null,null,null,null,null,null,null,null,null,null,0,{"$error":"#DIV/0!"}]
[null,null,null,null,null,null,null,null,null,null,null,null,null,null,null,null,null,null,null,null,0,{"$error":"#DIV/0!"}]
[null,null,null,null,null,null,null,null,null,null,null,null,null,null,null,null,null,null,null,null,0,{"$error":"#DIV/0!"}]
[null,null,null,null,null,null,null,null,null,null,null,null,null,null,null,null,null,null,null,null,{"$f":"IF(B77=\"\",0,IF((SUM(D77:T77)=0),\"\",SUM(D77:T77)))","v":0},{"$error":"#DIV/0!"}]
[null,null,null,null,null,null,null,null,null,null,null,null,null,null,null,null,null,null,null,null,0,{"$f":"IF(U78=\"\",\"\",SUM((U78/$U$121)))","v":{"$error":"#DIV/0!"}}]
[null,null,null,null,null,null,null,null,null,null,null,null,null,null,null,null,null,null,null,null,0,{"$error":"#DIV/0!"}]
[null,null,null,null,null,null,null,null,null,null,null,null,null,null,null,null,null,null,null,null,0,{"$error":"#DIV/0!"}]
[null,null,null,null,null,null,null,null,null,null,null,null,null,null,null,null,null,null,null,null,0,{"$error":"#DIV/0!"}]
[null,null,null,null,null,null,null,null,null,null,null,null,null,null,null,null,null,null,null,null,0,{"$error":"#DIV/0!"}]
[null,null,null,null,null,null,null,null,null,null,null,null,null,null,null,null,null,null,null,null,0,{"$error":"#DIV/0!"}]
[null,null,null,null,null,null,null,null,null,null,null,null,null,null,null,null,null,null,null,null,0,{"$error":"#DIV/0!"}]
[null,null,null,null,null,null,null,null,null,null,null,null,null,null,null,null,null,null,null,null,0,{"$error":"#DIV/0!"}]
[null,null,null,null,null,null,null,null,null,null,null,null,null,null,null,null,null,null,null,null,0,{"$error":"#DIV/0!"}]
["3EP1","Right-of-Way Consultation",null,null,null,null,null,null,null,null,null,null,null,null,null,null,null,null,null,null,"",""]
[1,"Data Collection",null,null,null,null,null,null,null,null,null,null,null,null,null,null,null,null,null,null,"",""]
[2,"Prepare Draft ROW Consultation",null,null,null,null,null,null,null,null,null,null,null,null,null,null,null,null,null,null,"",""]
[3,"Submit Final ROW Consultation",null,null,null,null,null,null,null,null,null,null,null,null,null,null,null,null,null,null,"",""]
[4,"Task Mngmt",null,null,null,null,null,null,null,null,null,null,null,null,null,null,null,null,null,null,"",""]
[5,"Complete QC Procedures",null,null,null,null,null,null,null,null,null,null,null,null,null,null,null,null,null,null,"",""]
[null,null,null,null,null,null,null,null,null,null,null,null,null,null,null,null,null,null,null,null,0,{"$error":"#DIV/0!"}]
[null,null,null,null,null,null,null,null,null,null,null,null,null,null,null,null,null,null,null,null,0,{"$error":"#DIV/0!"}]
[null,null,null,null,null,null,null,null,null,null,null,null,null,null,null,null,null,null,null,null,0,{"$error":"#DIV/0!"}]
[null,null,null,null,null,null,null,null,null,null,null,null,null,null,null,null,null,null,null,null,0,{"$error":"#DIV/0!"}]
["4EP1","CONSTRUCTION Consultation",null,null,null,null,null,null,null,null,null,null,null,null,null,null,null,null,null,null,"",""]
[1,"Data Collection",null,null,null,null,null,null,null,null,null,null,null,null,null,null,null,null,null,null,"",""]
[2,"Prepare Draft Construction Consultation",null,null,null,null,null,null,null,null,null,null,null,null,null,null,null,null,null,null,"",""]
[3,"Submit Final Construction Consultation",null,null,null,null,null,null,null,null,null,null,null,null,null,null,null,null,null,null,"",""]
[4,"Task Mngmt",null,null,null,null,null,null,null,null,null,null,null,null,null,null,null,null,null,null,"",""]
[5,"Complete QC Procedures",null,null,null,null,null,null,null,null,null,null,null,null,null,null,null,null,null,null,"",""]
[null,null,null,null,null,null,null,null,null,null,null,null,null,null,null,null,null,null,null,null,0,{"$error":"#DIV/0!"}]
[null,null,null,null,null,null,null,null,null,null,null,null,null,null,null,null,null,null,null,null,0,{"$error":"#DIV/0!"}]
[null,null,null,null,null,null,null,null,null,null,null,null,null,null,null,null,null,null,null,null,0,{"$error":"#DIV/0!"}]
[null,null,null,null,null,null,null,null,null,null,null,null,null,null,null,null,null,null,null,null,0,{"$error":"#DIV/0!"}]
[null,null,null,null,null,null,null,null,null,null,null,null,null,null,null,null,null,null,null,null,0,{"$error":"#DIV/0!"}]
[null,null,null,null,null,null,null,null,null,null,null,null,null,null,null,null,null,null,null,null,0,{"$error":"#DIV/0!"}]
[null,null,null,null,null,null,null,null,null,null,null,null,null,null,null,null,null,null,null,null,0,{"$error":"#DIV/0!"}]
[null,null,null,null,null,null,null,null,null,null,null,null,null,null,null,null,null,null,null,null,0,{"$error":"#DIV/0!"}]
[null,null,null,null,null,null,null,null,null,null,null,null,null,null,null,null,null,null,null,null,0,{"$error":"#DIV/0!"}]
[null,null,null,null,null,null,null,null,null,null,null,null,null,null,null,null,null,null,null,null,0,{"$error":"#DIV/0!"}]
[null,null,null,null,null,null,null,null,null,null,null,null,null,null,null,null,null,null,null,null,0,{"$error":"#DIV/0!"}]
[null,null,null,null,null,null,null,null,null,null,null,null,null,null,null,null,null,null,null,null,0,{"$error":"#DIV/0!"}]
[null,null,null,null,null,null,null,null,null,null,null,null,null,null,null,null,null,null,null,null,0,{"$error":"#DIV/0!"}]
[null,null,null,null,null,null,null,null,null,null,null,null,null,null,null,null,null,null,null,null,0,{"$error":"#DIV/0!"}]
[null,null,null,null,null,null,null,null,null,null,null,null,null,null,null,null,null,null,null,null,0,{"$error":"#DIV/0!"}]
[null,null,null,null,null,null,null,null,null,null,null,null,null,null,null,null,null,null,null,null,0,{"$error":"#DIV/0!"}]
[null,null,null,null,null,null,null,null,null,null,null,null,null,null,null,null,null,null,null,null,0,{"$error":"#DIV/0!"}]
[null,null,null,null,null,null,null,null,null,null,null,null,null,null,null,null,null,null,null,null,0,{"$error":"#DIV/0!"}]
[null,"TOTAL WORKDAYS/CATEGORY:",null,{"$f":"(SUM(D12:D120))","v":0},0,0,0,0,0,0,0,0,0,0,0,0,0,0,0,0,0,{"$f":"SUM(V12:V120)","v":{"$error":"#DIV/0!"}},{"$f":"(SUM(W12:W120))","v":0}]
[null,"HOURLY SALARY RATE:",null,{"$f":"'PEF CLASSIFICATION SHEET'!$E772","v":0},{"$f":"'PEF CLASSIFICATION SHEET'!$E773","v":0},{"$f":"'PEF CLASSIFICATION SHEET'!$E774","v":0},{"$f":"'PEF CLASSIFICATION SHEET'!$E775","v":0},{"$f":"'PEF CLASSIFICATION SHEET'!$E776","v":0},{"$f":"'PEF CLASSIFICATION SHEET'!$E777","v":0},{"$f":"'PEF CLASSIFICATION SHEET'!$E778","v":0},{"$f":"'PEF CLASSIFICATION SHEET'!$E779","v":0},{"$f":"'PEF CLASSIFICATION SHEET'!$E780","v":0},{"$f":"'PEF CLASSIFICATION SHEET'!$E781","v":0},{"$f":"'PEF CLASSIFICATION SHEET'!$E782","v":0},{"$f":"'PEF CLASSIFICATION SHEET'!$E783","v":0},{"$f":"'PEF CLASSIFICATION SHEET'!$E784","v":0},{"$f":"'PEF CLASSIFICATION SHEET'!$E785","v":0},{"$f":"'PEF CLASSIFICATION SHEET'!E786","v":0},{"$f":"'PEF CLASSIFICATION SHEET'!E787","v":0},{"$f":"'PEF CLASSIFICATION SHEET'!E788","v":0}]
[null,"RATES PER DAY:",null,{"$f":"D122*8","v":0},0,0,0,0,0,0,0,0,0,0,0,0,0,0,0,0]
[null,"PAYROLL BURDEN:",null,{"$f":"SUM(D121*D123)","v":0},0,0,0,0,0,0,0,0,0,0,0,0,0,0,0,0]
[null,"TOTAL WORKDAYS:",null,{"$f":"SUM(D121:T121)","v":0}]
[null,"TOTAL PAYROLL BURDEN:",null,{"$f":"SUM(D124:T124)","v":0}]
[null,"AVERAGE COST PER HOUR:",null,{"$f":"SUM(D126/(D125*8))","v":{"$error":"#DIV/0!"}}]
[null,"GENERAL OVERHEAD:",{"$f":"PDEA_PLANNING_SUB2_CONSULTANT_OVERHEAD","v":0},{"$f":"SUM(D126*C128)","v":0},null,null,null,null,null,null,null,null,null,"REVIEWED BY GROUP MNGT:"]
[null,"SUBTOTAL:",null,{"$f":"SUM(D128+D126)","v":0}]
[null,"COMPARATIVE FEE:",{"$f":"PDEA_PLANNING_SUB2_CONSULTANT_FEE","v":0.09},{"$f":"SUM(D129*C130)","v":0},null,null,null,null,null,null,null,null,null,"REVIEWED BY UNIT HEAD:"]
[null,"FACILITIES COST OF CAPITAL:",{"$f":"PDEA_PLANNING_SUB2_CONSULTANT_COSTofCAPITAL","v":0},{"$f":"SUM(D126*C131)","v":0}]
[null,"TOTAL:",null,{"$f":"SUM(D129:D131)","v":0}]
[null,"DIRECT EXPENSES:",null,{"$f":"PDEA_PLANNING_DIRECT_NONSALARY_TOTAL_SUB2","v":0}]
[null,"PLANNING GRAND TOTAL:",null,{"$f":"SUM(D132:D133)","v":0}]
[]
[]
[]
[null,null,null,null,"Costs","Workdays",null,null,null,null,"Dollars"]
[null,null,null,null,null,"EnvPolicy","PEF","Delta ","Delta %",null,"Environmental Policy",null,"PEF",null,"Delta ",null,null,null,null,null,null,"Delta %"]
[null,null,null,null,null,null,null,{"$f":"SUM(G140-F140)","v":0},{"$f":"SUM((H140/F140)*100)","v":{"$error":"#DIV/0!"}},null,null,null,null,null,{"$f":"SUM(M140-K140)","v":0},null,null,null,null,null,null,{"$f":"SUM((O140/K140)*100)","v":{"$error":"#DIV/0!"}}]
[]
[]
[null,null,null,null,null,null,null,null,null,"Directs","Dollars"]
[null,null,null,null,null,null,null,null,null,null,"Environmental Policy",null,"PEF",null,"Delta ",null,null,null,null,null,null,"Delta %"]
[null,null,null,null,null,null,null,null,null,null,null,null,null,null,{"$f":"SUM(M145-K145)","v":0},null,null,null,null,null,null,{"$f":"SUM((O145/K145)*100)","v":{"$error":"#DIV/0!"}}]

{"sheet":"EnvPolicy-Exp-Sub2","index":95,"n_rows":104,"n_cols":8,"rows_kept":104,"cut":false,"hidden":true,"merged":[[6,1,6,3],[6,4,6,6],[0,0,0,7],[2,1,2,3],[3,1,3,7],[4,1,4,3],[4,6,4,7],[5,1,5,3],[5,6,5,7]]}
["ENVIRONMENTAL POLICY  DIRECT EXPENSES - SUBCONSULTANT 2"]
[]
["FIRM:",{"$f":"'EnvPolicy-Sub2'!G3","v":"CONSULTANT NAME"}]
["PROJECT DESCRIPTION: ",{"$f":"PROJECT.DESCRIPTION","v":0}]
["PREPARED BY:  ",{"$f":"PDEA.SUB2.PREPARED.BY","v":""},null,null,"TASK ORDER NUMBER:",null,{"$f":"TASK.ORDER.NUMBER","v":0}]
["TIP NUMBER:",{"$f":"TIP.NUMBER","v":0},null,null,"WBS NUMBER:",null,{"$f":"WBS.NUMBER","v":""}]
["DATE PREPARED:",{"$f":"IF('EnvPolicy-Sub2'!X3=\"\",\"\",MAX('EnvPolicy-Sub2'!X3:'EnvPolicy-Sub2'!X4))","v":""},null,null,"REVIEWED BY UNIT HEAD ON:",null,null,{"$f":"IF(SCOPE.MANDAY.ESTIMATE.APPROVED.BY.DATE=\"\",\"\",SCOPE.MANDAY.ESTIMATE.APPROVED.BY.DATE)","v":""}]
["GENERAL PROJECT WORK:","ITEM","QTY","DESCRIPTION",null,null,"UNIT COST "]
[null,"Travel:"]
[null,"Sedan",null,"Trip(s) @",null,"miles @",{"$f":"SEDAN","v":0.7},{"$f":"SUM(C10*E10*G10)","v":0}]
[null,"Carry All",null,"Trip(s) @",null,"miles @",{"$f":"CARRYALL","v":0.72},{"$f":"SUM(C11*E11*G11)","v":0}]
[null,"Car Rental",null,null,null,"days @ ",{"$f":"CARRENTAL","v":50},{"$f":"SUM(E12*G12)","v":0}]
[null,"Gas for Rental",null,null,null,"miles @",{"$f":"GASforRENTAL","v":0.2},{"$f":"SUM(E13*G13)","v":0}]
[null,"Parking:",null,"Trip(s) @",null,null,{"$f":"PARKING","v":3},{"$f":"SUM(C14*G14)","v":0}]
[null,"Per Diem:",null,"Breakfast",null,null,{"$f":"BREAKFAST","v":10.1},{"$f":"SUM(C15*G15)","v":0}]
[null,null,null,"Lunch",null,null,{"$f":"LUNCH","v":13.3},0]
[null,null,null,"Dinner",null,null,{"$f":"DINNER","v":23.1},0]
[null,null,null,"Lodging",null,null,{"$f":"LODGING_LUMP.SUM","v":95},0]
[null,"Reproduction:",null,"8 1/2 x 11 B & W Copies @",null,null,{"$f":"LETTERCOPIES","v":0.14000000000000001},0]
[null,null,null,"11 x 17 B & W Copies @",null,null,{"$f":"LEDGERCOPIES","v":0.34},0]
[null,null,null,"8 1/2 x 11 Color Copies @",null,null,{"$f":"LETTERCOLOR","v":0.83},0]
[null,null,null,"11 x 17 Color Copies @",null,null,{"$f":"LEDGERCOLOR","v":1.66},0]
[null,null,null,"SQ. FT. of Plots (B & W or Color)",null,"<65 SQ. FT.*",{"$f":"ROLLPLOTSshort","v":6.5},0]
[null,null,null,"SQ. FT. of Plots (B & W or Color)",null,">65 SQ. FT.*",{"$f":"ROLLPLOTSlong","v":1.5},0]
[null,null,null,"Cover(s) @",null,null,{"$f":"COVERS","v":0.5},0]
[null,null,null,"Binder(s) @",null,null,{"$f":"BINDERS","v":0.5},0]
[null,null,null,"Blueprints - 8 1/2 x 11 @",null,null,{"$f":"BLUEPRINTSLETTER","v":0.35},0]
[null,null,null,"Blueprints - 42 x 72 @",null,null,{"$f":"BLUEPRINTSLARGE","v":1.3},0]
[null,"Film and Developing:",null,"Roll(s) @",null,null,{"$f":"FILM","v":20},0]
[null,null,null,null,null,"Subtotal",null,{"$f":"SUM(H10:H29)","v":0}]
["MAPS AND DOCUMENTS:","ITEM","QTY","DESCRIPTION",null,null,"UNIT COST "]
[null,"County Tax Maps:",null,"Map(s) @",null,null,{"$f":"County_Tax_Maps","v":7},{"$f":"SUM(C32*G32)","v":0}]
[null,"USGS Maps:",null,"Map(s) @",null,null,{"$f":"USGSMAPS","v":7},{"$f":"SUM(C33*G33)","v":0}]
[null,null,null,null,null,"Subtotal",null,{"$f":"SUM(H32:H33)","v":0}]
["TECHNICAL REPORTS:","ITEM","QTY","DESCRIPTION",null,null,"UNIT COST "]
[null,"Reproduction:",null,"8 1/2 x 11 B & W Copies @",null,null,{"$f":"LETTERCOPIES","v":0.14000000000000001},{"$f":"SUM(C36*G36)","v":0}]
[null,null,null,"11 x 17 B & W Copies @",null,null,{"$f":"LEDGERCOPIES","v":0.34},0]
[null,null,null,"8 1/2 x 11 Color Copies @",null,null,{"$f":"LETTERCOLOR","v":0.83},0]
[null,null,null,"11 x 17 Color Copies @",null,null,{"$f":"LEDGERCOLOR","v":1.66},0]
[null,null,null,"SQ. FT. of Plots (B & W or Color)",null,"<65 SQ. FT.*",{"$f":"ROLLPLOTSshort","v":6.5},0]
[null,null,null,"SQ. FT. of Plots (B & W or Color)",null,">65 SQ. FT.*",{"$f":"ROLLPLOTSlong","v":1.5},0]
[null,null,null,"Cover(s) @",null,null,{"$f":"COVERS","v":0.5},0]
[null,null,null,"Binder(s) @",null,null,{"$f":"BINDERS","v":0.5},0]
[null,null,null,null,null,"Subtotal",null,{"$f":"SUM(H36:H43)","v":0}]
["DESIGN:","ITEM","QTY","DESCRIPTION",null,null,"UNIT COST "]
[null,"Reproduction:",null,"8 1/2 x 11 B & W Copies @",null,null,{"$f":"LETTERCOPIES","v":0.14000000000000001},{"$f":"SUM(C46*G46)","v":0}]
[null,null,null,"11 x 17 B & W Copies @",null,null,{"$f":"LEDGERCOPIES","v":0.34},0]
[null,null,null,"Blueprints - 8 1/2 x 11 @",null,null,{"$f":"BLUEPRINTSLETTER","v":0.35},0]
[null,null,null,"Mylar - 8 1/2 x 11 @",null,null,{"$f":"MYLARSLETTER","v":7.32},0]
[null,null,null,"Mylar - 36 x 48 @",null,null,{"$f":"MYLARSLARGE","v":28.12},0]
[null,null,null,"Prints  - 24 x 36 @",null,null,{"$f":"PRINTSLARGE","v":3},0]
[null,null,null,"Blueprints - 42 x 72 @",null,null,{"$f":"BLUEPRINTSLARGE","v":1.3},0]
[null,null,null,"SQ. FT. of Plots (B & W or Color)",null,"<65 SQ. FT.*",{"$f":"ROLLPLOTSshort","v":6.5},0]
[null,null,null,"SQ. FT. of Plots (B & W or Color)",null,">65 SQ. FT.*",{"$f":"ROLLPLOTSlong","v":1.5},0]
[null,null,null,"USGS Map(s)",null,null,{"$f":"USGSMAPS","v":7},0]
[null,null,null,null,null,"Subtotal",null,{"$f":"SUM(H46:H55)","v":0}]
["ENVIRONMENTAL DOCUMENT(S):","ITEM","QTY","DESCRIPTION",null,null,"UNIT COST "]
[null,"Reproduction:",null,"8 1/2 x 11 B & W Copies @",null,null,{"$f":"LETTERCOPIES","v":0.14000000000000001},{"$f":"SUM(C58*G58)","v":0}]
[null,null,null,"11 x 17 B & W Copies @",null,null,{"$f":"LEDGERCOPIES","v":0.34},0]
[null,null,null,"8 1/2 x 11 Color Copies @",null,null,{"$f":"LETTERCOLOR","v":0.83},0]
[null,null,null,"11 x 17 Color Copies @",null,null,{"$f":"LEDGERCOLOR","v":1.66},0]
[" ",null,null,"Cover(s) @",null,null,{"$f":"COVERS","v":0.5},0]
[null,null,null,"Binder(s) @",null,null,{"$f":"BINDERS","v":0.5},0]
[null,null,null,null,null,"Subtotal",null,{"$f":"SUM(H58:H63)","v":0}]
["MEETINGS & PUBLIC INVOLVEMENT:","ITEM","QTY","DESCRIPTION",null,null,"UNIT COST "]
[null,"Travel:"]
[null,"Sedan",null,"Trip(s) @",null,"miles @",{"$f":"SEDAN","v":0.7},{"$f":"SUM(C67*E67*G67)","v":0}]
[null,"CarryAll",null,"Trip(s) @",null,"miles @",{"$f":"CARRYALL","v":0.72},{"$f":"SUM(C68*E68*G68)","v":0}]
[null,"Car Rental",null,null,null,"days @",{"$f":"CARRENTAL","v":50},{"$f":"SUM(E69*G69)","v":0}]
[null,"Gas for Rental",null,null,null,"miles @",{"$f":"GASforRENTAL","v":0.2},{"$f":"SUM(E70*G70)","v":0}]
[null,"Parking:",null,"Trip(s) @",null,null,{"$f":"PARKING","v":3},{"$f":"SUM(C71*G71)","v":0}]
[null,"Per Diem:",null,"Breakfast",null,null,{"$f":"BREAKFAST","v":10.1},{"$f":"SUM(C72*G72)","v":0}]
[null,null,null,"Lunch",null,null,{"$f":"LUNCH","v":13.3},{"$f":"SUM(C73*G73)","v":0}]
[null,null,null,"Dinner",null,null,{"$f":"DINNER","v":23.1},{"$f":"SUM(C74*G74)","v":0}]
[null,null,null,"Lodging",null,null,{"$f":"LODGING_LUMP.SUM","v":95},{"$f":"SUM(C75*G75)","v":0}]
[null,"Workshop "]
[null,"  - Reproduction",null,"8 1/2 x 11 B & W Copies @",null,"Handouts",{"$f":"LETTERCOPIES","v":0.14000000000000001},{"$f":"SUM(C77*E77*G77)","v":0}]
[null,null,null,"11 x 17 B & W Copies @",null,"Handouts",{"$f":"LEDGERCOPIES","v":0.34},{"$f":"SUM(C78*E78*G78)","v":0}]
[null,null,null,"8 1/2 x 11 Color Copies @",null,null,{"$f":"LETTERCOLOR","v":0.83},{"$f":"SUM(C79*G79)","v":0}]
[null,null,null,"11 x 17 Color Copies @",null,null,{"$f":"LEDGERCOLOR","v":1.66},0]
[null,null,null,"SQ. FT. of Plots (B & W or Color)",null,"<65 SQ. FT.*",{"$f":"ROLLPLOTSshort","v":6.5},0]
[null,null,null,"SQ. FT. of Plots (B & W or Color)",null,">65 SQ. FT.*",{"$f":"ROLLPLOTSlong","v":1.5},0]
[null,null,null,"SQ. FT. Foam Mounting Board @",null,null,{"$f":"FOAMMOUNTINGBOARD","v":1.25},0]
[null,"Presentation Materials:",null,"Misc. Workshop Supplies @",null,"per workshop",{"$f":"MISCWORKSHOPSUPPLIES","v":50},0]
[null,"Mailing Labels:",null,"Laser Peel & Stick (box)",null,"750 per box",{"$f":"LASERPEELandSTICK","v":4},0]
[null,"Postage:"]
[null,"  - Public Workshops:",null,"Notice or Newsletter @",null,"copies @",{"$f":"POSTAGE","v":0.49},{"$f":"SUM(C87*E87*G87)","v":0}]
[null,null,null,null,null,"Subtotal",null,{"$f":"SUM(H66:H87)","v":0}]
["Miscellaneous Other","ITEM","QTY","DESCRIPTION",null,null,"UNIT COST "]
[null,null,null,null,null,null,null,{"$f":"SUM(C90*G90)","v":0}]
[null,null,null,null,null,null,null,{"$f":"SUM(C91*G91)","v":0}]
[null,null,null,null,null,null,null,0]
[null,null,null,null,null,null,null,0]
[null,null,null,null,null,null,null,0]
[null,null,null,null,null,null,null,0]
[null,null,null,null,null,null,null,0]
[null,null,null,null,null,null,null,{"$f":"SUM(C97*G97)","v":0}]
[null,null,null,null,null,null,null,{"$f":"SUM(C98*G98)","v":0}]
[null,null,null,null,null,null,null,{"$f":"SUM(C99*G99)","v":0}]
[null,null,null,null,null,"Subtotal",null,{"$f":"SUM(H90:H99)","v":0}]
[]
[null,null,null,null,null,"TOTAL",null,{"$f":"SUM(H30+H34+H44+H56+H64+H88+H100)","v":0}]
[]
[null,"* Sum of all plots "]

{"sheet":"EnvPolicy-Sub3","index":96,"n_rows":145,"n_cols":26,"rows_kept":145,"cut":false,"hidden":true,"merged":[[142,10,142,21],[143,10,143,11],[143,12,143,13],[143,14,143,20],[144,10,144,11],[144,12,144,13],[144,14,144,20],[138,10,138,11],[138,12,138,13],[138,14,138,20],[139,10,139,11],[139,12,139,13],[139,14,139,20],[129,13,130,14],[129,15,130,16],[133,1,134,1],[133,3,134,4],[137,5,137,8],[137,10,137,21],[115,23,115,24],[116,23,116,24],[117,23,117,24],[118,23,118,24],[119,23,119,24],[127,13,128,14],[127,15,128,16],[109,23,109,24],[110,23,110,24],[111,23,111,24],[112,23,112,24],[113,23,113,24],[114,23,114,24],[103,23,103,24],[104,23,104,24],[105,23,105,24],[106,23,106,24],[107,23,107,24],[108,23,108,24],[97,23,97,24],[98,23,98,24],[99,23,99,24],[100,23,100,24],[101,23,101,24],[102,23,102,24],[91,23,91,24],[92,23,92,24],[93,23,93,24],[94,23,94,24],[95,23,95,24],[96,23,96,24],[85,23,85,24],[86,23,86,24],[87,23,87,24],[88,23,88,24],[89,23,89,24],[90,23,90,24],[79,23,79,24],[80,23,80,24],[81,23,81,24],[82,23,82,24],[83,23,83,24],[84,23,84,24],[73,23,73,24],[74,23,74,24],[75,23,75,24],[76,23,76,24],[77,23,77,24],[78,23,78,24],[67,23,67,24],[68,23,68,24],[69,23,69,24],[70,23,70,24],[71,23,71,24],[72,23,72,24],[61,23,61,24],[62,23,62,24],[63,23,63,24],[64,23,64,24],[65,23,65,24],[66,23,66,24],[55,23,55,24],[56,23,56,24],[57,23,57,24],[58,23,58,24],[59,23,59,24],[60,23,60,24],[49,23,49,24],[50,23,50,24],[51,23,51,24],[52,23,52,24],[53,23,53,24],[54,23,54,24],[43,23,43,24],[44,23,44,24],[45,23,45,24],[46,23,46,24],[47,23,47,24],[48,23,48,24],[37,23,37,24],[38,23,38,24],[39,23,39,24],[40,23,40,24],[41,23,41,24],[42,23,42,24],[31,23,31,24],[32,23,32,24],[33,23,33,24],[34,23,34,24],[35,23,35,24],[36,23,36,24],[26,23,26,24],[27,23,27,24],[28,23,28,24],[29,23,29,24],[30,23,30,24],[19,23,19,24],[20,23,20,24],[21,23,21,24],[22,23,22,24],[23,23,23,24],[24,23,24,24],[17,23,17,24],[18,23,18,24],[7,17,10,17],[7,18,10,18],[7,19,10,19],[9,23,9,24],[11,23,11,24],[12,23,12,24],[25,23,25,24],[3,5,3,6],[3,7,3,8],[3,9,3,10],[3,11,3,12],[3,21,3,22],[13,23,13,24],[14,23,14,24],[15,23,15,24],[16,23,16,24],[0,0,1,24],[2,1,2,4],[2,6,2,8],[2,9,2,10],[2,11,2,12],[2,21,2,22],[2,23,2,24],[7,11,10,11],[7,12,10,12],[7,13,10,13],[7,14,10,14],[7,15,10,15],[7,16,10,16],[3,23,3,24],[5,3,5,19],[7,3,10,3],[7,4,10,4],[7,5,10,5],[7,6,10,6],[7,7,10,7],[7,8,10,8],[7,9,10,9],[7,10,10,10],[3,1,3,4]]}
["ENVIRONMENTAL POLICY  BREAKDOWN WORKSHEET - SUBCONSULTANT 3"]
[]
["PROJECT DESCRIPTION: ",{"$f":"PROJECT.DESCRIPTION","v":0},null,null,null,"FIRM:  ",{"$f":"PDEA_PLANNING_SUB3_CONSULTANT_NAME","v":"CONSULTANT NAME"},null,null,"TASK ORDER NUMBER:",null,{"$f":"TASK.ORDER.NUMBER","v":0},null,null,null,null,null,null,null,null,null,"DATE PREPARED:",null,{"$f":"IF(SCOPE.MANDAY.ESTIMATE.PREPARED.BY.DATE=\"\",\"\",SCOPE.MANDAY.ESTIMATE.PREPARED.BY.DATE)","v":""}]
["PREPARED BY:  ",{"$f":"IF(SCOPE.MANDAY.ESTIMATE.PREPARED.BY=\"\",\"\",SCOPE.MANDAY.ESTIMATE.PREPARED.BY)","v":""},null,null,null,"TIP NUMBER:",null,{"$f":"TIP.NUMBER","v":0},null,"WBS NUMBER:",null,{"$f":"WBS.NUMBER","v":""},null,null,null,null,null,null,null,null,null,"REVISION DATE:",null,{"$f":"IF(SCOPE.MANDAY.ESTIMATE.APPROVED.BY.DATE=\"\",\"\",SCOPE.MANDAY.ESTIMATE.APPROVED.BY.DATE)","v":""}]
[null,null,null,null,null,null,null,null,null,null,null,null,null,null,null,null,null,null,null,null,null,null,null,null,null," "]
[null,null,null,"ESTIMATED WORK DAYS"]
[null,null,"Employee",{"$f":"IF('PEF CLASSIFICATION SHEET'!$D791=\"\",\"\",LEFT('PEF CLASSIFICATION SHEET'!$D791,4))","v":""},{"$f":"IF('PEF CLASSIFICATION SHEET'!$D792=\"\",\"\",LEFT('PEF CLASSIFICATION SHEET'!$D792,4))","v":""},{"$f":"IF('PEF CLASSIFICATION SHEET'!$D793=\"\",\"\",LEFT('PEF CLASSIFICATION SHEET'!$D793,4))","v":""},{"$f":"IF('PEF CLASSIFICATION SHEET'!$D794=\"\",\"\",LEFT('PEF CLASSIFICATION SHEET'!$D794,4))","v":""},{"$f":"IF('PEF CLASSIFICATION SHEET'!$D795=\"\",\"\",LEFT('PEF CLASSIFICATION SHEET'!$D795,4))","v":""},{"$f":"IF('PEF CLASSIFICATION SHEET'!$D796=\"\",\"\",LEFT('PEF CLASSIFICATION SHEET'!$D796,4))","v":""},{"$f":"IF('PEF CLASSIFICATION SHEET'!$D797=\"\",\"\",LEFT('PEF CLASSIFICATION SHEET'!$D797,4))","v":""},{"$f":"IF('PEF CLASSIFICATION SHEET'!$D798=\"\",\"\",LEFT('PEF CLASSIFICATION SHEET'!$D798,4))","v":""},{"$f":"IF('PEF CLASSIFICATION SHEET'!$D799=\"\",\"\",LEFT('PEF CLASSIFICATION SHEET'!$D799,4))","v":""},{"$f":"IF('PEF CLASSIFICATION SHEET'!$D800=\"\",\"\",LEFT('PEF CLASSIFICATION SHEET'!$D800,4))","v":""},{"$f":"IF('PEF CLASSIFICATION SHEET'!$D801=\"\",\"\",LEFT('PEF CLASSIFICATION SHEET'!$D801,4))","v":""},{"$f":"IF('PEF CLASSIFICATION SHEET'!$D802=\"\",\"\",LEFT('PEF CLASSIFICATION SHEET'!$D802,4))","v":""},{"$f":"IF('PEF CLASSIFICATION SHEET'!$D803=\"\",\"\",LEFT('PEF CLASSIFICATION SHEET'!$D803,4))","v":""},{"$f":"IF('PEF CLASSIFICATION SHEET'!$D804=\"\",\"\",LEFT('PEF CLASSIFICATION SHEET'!$D804,4))","v":""},{"$f":"IF('PEF CLASSIFICATION SHEET'!D805=\"\",\"\",LEFT('PEF CLASSIFICATION SHEET'!D805,4))","v":""},{"$f":"IF('PEF CLASSIFICATION SHEET'!D806=\"\",\"\",LEFT('PEF CLASSIFICATION SHEET'!D806,4))","v":""},{"$f":"IF('PEF CLASSIFICATION SHEET'!D807=\"\",\"\",LEFT('PEF CLASSIFICATION SHEET'!D807,4))","v":""}]
[null,null,null,{"$f":"IF('PEF CLASSIFICATION SHEET'!$C791=\"\",\"\",'PEF CLASSIFICATION SHEET'!$C791)","v":""},{"$f":"IF('PEF CLASSIFICATION SHEET'!$C792=\"\",\"\",'PEF CLASSIFICATION SHEET'!$C792)","v":""},{"$f":"IF('PEF CLASSIFICATION SHEET'!$C793=\"\",\"\",'PEF CLASSIFICATION SHEET'!$C793)","v":""},{"$f":"IF('PEF CLASSIFICATION SHEET'!$C794=\"\",\"\",'PEF CLASSIFICATION SHEET'!$C794)","v":""},{"$f":"IF('PEF CLASSIFICATION SHEET'!$C795=\"\",\"\",'PEF CLASSIFICATION SHEET'!$C795)","v":""},{"$f":"IF('PEF CLASSIFICATION SHEET'!$C796=\"\",\"\",'PEF CLASSIFICATION SHEET'!$C796)","v":""},{"$f":"IF('PEF CLASSIFICATION SHEET'!$C797=\"\",\"\",'PEF CLASSIFICATION SHEET'!$C797)","v":""},{"$f":"IF('PEF CLASSIFICATION SHEET'!$C798=\"\",\"\",'PEF CLASSIFICATION SHEET'!$C798)","v":""},{"$f":"IF('PEF CLASSIFICATION SHEET'!$C799=\"\",\"\",'PEF CLASSIFICATION SHEET'!$C799)","v":""},{"$f":"IF('PEF CLASSIFICATION SHEET'!$C800=\"\",\"\",'PEF CLASSIFICATION SHEET'!$C800)","v":""},{"$f":"IF('PEF CLASSIFICATION SHEET'!$C801=\"\",\"\",'PEF CLASSIFICATION SHEET'!$C801)","v":""},{"$f":"IF('PEF CLASSIFICATION SHEET'!$C802=\"\",\"\",'PEF CLASSIFICATION SHEET'!$C802)","v":""},{"$f":"IF('PEF CLASSIFICATION SHEET'!$C803=\"\",\"\",'PEF CLASSIFICATION SHEET'!$C803)","v":""},{"$f":"IF('PEF CLASSIFICATION SHEET'!$C804=\"\",\"\",'PEF CLASSIFICATION SHEET'!$C804)","v":""},{"$f":"IF('PEF CLASSIFICATION SHEET'!C805=\"\",\"\",'PEF CLASSIFICATION SHEET'!C805)","v":""},{"$f":"IF('PEF CLASSIFICATION SHEET'!C806=\"\",\"\",'PEF CLASSIFICATION SHEET'!C806)","v":""},{"$f":"IF('PEF CLASSIFICATION SHEET'!C807=\"\",\"\",'PEF CLASSIFICATION SHEET'!C807)","v":""},"SUB-","%","PEF"]
[null,null,"Classification",null,null,null,null,null,null,null,null,null,null,null,null,null,null,null,null,null,"TOTAL","OF","ESTIMATE"]
["TASK","TASK DESCRIPTION",null,null,null,null,null,null,null,null,null,null,null,null,null,null,null,null,null,null,null,"PROJECT",null,"COMMENTS"]
["NO."]
[null,null,null,null,null,null,null,null,null,null,null,null,null,null,null,null,null,null,null,null,{"$f":"IF(B12=\"\",0,IF((SUM(D12:T12)=0),\"\",SUM(D12:T12)))","v":0},{"$f":"IF(U12=0,\"\",SUM((U12/$U$121)))","v":""}]
["1EP1","MERGER SCREENING",null,null,null,null,null,null,null,null,null,null,null,null,null,null,null,null,null,null,{"$f":"IF(B13=\"\",0,IF((SUM(D13:T13)=0),\"\",SUM(D13:T13)))","v":""},{"$f":"IF(U13=\"\",\"\",SUM((U13/$U$121)))","v":""}]
[1.1000000000000001,"Merger Pre-Screening",null,null,null,null,null,null,null,null,null,null,null,null,null,null,null,null,null,null,"",{"$f":"IF(U14=\"\",\"\",SUM((U14/$U$121)))","v":""}]
[1.2,"Merger Screening",null,null,null,null,null,null,null,null,null,null,null,null,null,null,null,null,null,null,"",""]
[1.3,"Screening/CP1",null,null,null,null,null,null,null,null,null,null,null,null,null,null,null,null,null,null,"",""]
[1.4,"Merger Plan",null,null,null,null,null,null,null,null,null,null,null,null,null,null,null,null,null,null,"",""]
[null,null,null,null,null,null,null,null,null,null,null,null,null,null,null,null,null,null,null,null,0,{"$error":"#DIV/0!"}]
[null,null,null,null,null,null,null,null,null,null,null,null,null,null,null,null,null,null,null,null,0,{"$error":"#DIV/0!"}]
[2,"INITIATE ENVIRONMENTAL DOCUMENTATION",null,null,null,null,null,null,null,null,null,null,null,null,null,null,null,null,null,null,"",""]
[2.1,"PSR Coordination",null,null,null,null,null,null,null,null,null,null,null,null,null,null,null,null,null,null,"",""]
[2.2000000000000002,"Project Initiation Meeting/Coordination",null,null,null,null,null,null,null,null,null,null,null,null,null,null,null,null,null,null,"",""]
[null,null,null,null,null,null,null,null,null,null,null,null,null,null,null,null,null,null,null,null,0,{"$error":"#DIV/0!"}]
[3,"TASK MANAGEMENT",null,null,null,null,null,null,null,null,null,null,null,null,null,null,null,null,null,null,"",""]
[null,null,null,null,null,null,null,null,null,null,null,null,null,null,null,null,null,null,null,null,0,{"$error":"#DIV/0!"}]
[4,"COMPLETE QC PROCEDURES",null,null,null,null,null,null,null,null,null,null,null,null,null,null,null,null,null,null,"",""]
[null,null,null,null,null,null,null,null,null,null,null,null,null,null,null,null,null,null,null,null,0,{"$error":"#DIV/0!"}]
[null,null,null,null,null,null,null,null,null,null,null,null,null,null,null,null,null,null,null,null,0,{"$error":"#DIV/0!"}]
[null,null,null,null,null,null,null,null,null,null,null,null,null,null,null,null,null,null,null,null,0,{"$error":"#DIV/0!"}]
[null,null,null,null,null,null,null,null,null,null,null,null,null,null,null,null,null,null,null,null,0,{"$error":"#DIV/0!"}]
[null,null,null,null,null,null,null,null,null,null,null,null,null,null,null,null,null,null,null,null,0,{"$error":"#DIV/0!"}]
["2EP1","PROJECT INITIATION (if not under 1EP1 above)",null,null,null,null,null,null,null,null,null,null,null,null,null,null,null,null,null,null,"",""]
[null,"Prepare/Update initiation/scoping materials",null,null,null,null,null,null,null,null,null,null,null,null,null,null,null,null,null,null,"",""]
[null,"Attend/Conduct Scoping meeting with internal/external partners",null,null,null,null,null,null,null,null,null,null,null,null,null,null,null,null,null,null,"",""]
[null,null,null,null,null,null,null,null,null,null,null,null,null,null,null,null,null,null,null,null,0,{"$error":"#DIV/0!"}]
[null,null,null,null,null,null,null,null,null,null,null,null,null,null,null,null,null,null,null,null,0,{"$error":"#DIV/0!"}]
[null,null,null,null,null,null,null,null,null,null,null,null,null,null,null,null,null,null,null,null,0,{"$error":"#DIV/0!"}]
[1,"MERGER PREPARATION",null,null,null,null,null,null,null,null,null,null,null,null,null,null,null,null,null,null,"",""]
["1.1/1.2","Setup and Prepare Materials",null,null,null,null,null,null,null,null,null,null,null,null,null,null,null,null,null,null,"",""]
[1.3,"Pre-Meeting",null,null,null,null,null,null,null,null,null,null,null,null,null,null,null,null,null,null,"",""]
[1.4,"Other Meetings",null,null,null,null,null,null,null,null,null,null,null,null,null,null,null,null,null,null,"",""]
[null,null,null,null,null,null,null,null,null,null,null,null,null,null,null,null,null,null,null,null,0,{"$error":"#DIV/0!"}]
[2,"MERGER CONCURRENCE",null,null,null,null,null,null,null,null,null,null,null,null,null,null,null,null,null,null,"",""]
[2.1,"Distribute Materials and Provide Coordination",null,null,null,null,null,null,null,null,null,null,null,null,null,null,null,null,null,null,"",""]
[2.2000000000000002,"Concurrence Meeting",null,null,null,null,null,null,null,null,null,null,null,null,null,null,null,null,null,null,"",""]
[null,null,null,null,null,null,null,null,null,null,null,null,null,null,null,null,null,null,null,null,0,{"$error":"#DIV/0!"}]
[null,null,null,null,null,null,null,null,null,null,null,null,null,null,null,null,null,null,null,null,0,{"$error":"#DIV/0!"}]
[null,null,null,null,null,null,null,null,null,null,null,null,null,null,null,null,null,null,null,null,0,{"$error":"#DIV/0!"}]
[null,null,null,null,null,null,null,null,null,null,null,null,null,null,null,null,null,null,null,null,0,{"$error":"#DIV/0!"}]
[null,null,null,null,null,null,null,null,null,null,null,null,null,null,null,null,null,null,null,null,0,{"$error":"#DIV/0!"}]
[3,"ENVIRONMENTAL (NEPA/SEPA) DOCUMENTATION",null,null,null,null,null,null,null,null,null,null,null,null,null,null,null,null,null,null,"",""]
[3.1,"4(f) De Minimis Coordination",null,null,null,null,null,null,null,null,null,null,null,null,null,null,null,null,null,null,"",""]
[null,"4(f) Programmatic Evaluation",null,null,null,null,null,null,null,null,null,null,null,null,null,null,null,null,null,null,"",""]
[null,null,null,null,null,null,null,null,null,null,null,null,null,null,null,null,null,null,null,null,0,{"$error":"#DIV/0!"}]
[3.2,"Other Supporting Documentation",null,null,null,null,null,null,null,null,null,null,null,null,null,null,null,null,null,null,"",""]
[null,null,null,null,null,null,null,null,null,null,null,null,null,null,null,null,null,null,null,null,0,{"$error":"#DIV/0!"}]
[null,null,null,null,null,null,null,null,null,null,null,null,null,null,null,null,null,null,null,null,0,{"$error":"#DIV/0!"}]
[3.3,"Draft Environmental Document(ation)",null,null,null,null,null,null,null,null,null,null,null,null,null,null,null,null,null,null,"",""]
[null,"Prepare draft",null,null,null,null,null,null,null,null,null,null,null,null,null,null,null,null,null,null,"",""]
[null,"Submit draft for review and address revisions",null,null,null,null,null,null,null,null,null,null,null,null,null,null,null,null,null,null,"",""]
[null,null,null,null,null,null,null,null,null,null,null,null,null,null,null,null,null,null,null,null,0,{"$error":"#DIV/0!"}]
[3.4,"Final Environmental Document(ation)",null,null,null,null,null,null,null,null,null,null,null,null,null,null,null,null,null,null,"",""]
[null,"Acquire signatures",null,null,null,null,null,null,null,null,null,null,null,null,null,null,null,null,null,null,"",""]
[null,"Upload and distribute (as appropriate) ",null,null,null,null,null,null,null,null,null,null,null,null,null,null,null,null,null,null,"",""]
[null,null,null,null,null,null,null,null,null,null,null,null,null,null,null,null,null,null,null,null,0,{"$error":"#DIV/0!"}]
[4,"TASK MANAGEMENT",null,null,null,null,null,null,null,null,null,null,null,null,null,null,null,null,null,null,"",""]
[null,null,null,null,null,null,null,null,null,null,null,null,null,null,null,null,null,null,null,null,0,{"$error":"#DIV/0!"}]
[5,"COMPLETE QC PROCEDURES",null,null,null,null,null,null,null,null,null,null,null,null,null,null,null,null,null,null,"",""]
[null,null,null,null,null,null,null,null,null,null,null,null,null,null,null,null,null,null,null,null,0,{"$error":"#DIV/0!"}]
[null,null,null,null,null,null,null,null,null,null,null,null,null,null,null,null,null,null,null,null,0,{"$error":"#DIV/0!"}]
[null,null,null,null,null,null,null,null,null,null,null,null,null,null,null,null,null,null,null,null,0,{"$error":"#DIV/0!"}]
[null,null,null,null,null,null,null,null,null,null,null,null,null,null,null,null,null,null,null,null,0,{"$error":"#DIV/0!"}]
[null,null,null,null,null,null,null,null,null,null,null,null,null,null,null,null,null,null,null,null,0,{"$error":"#DIV/0!"}]
[null,null,null,null,null,null,null,null,null,null,null,null,null,null,null,null,null,null,null,null,0,{"$error":"#DIV/0!"}]
[null,null,null,null,null,null,null,null,null,null,null,null,null,null,null,null,null,null,null,null,0,{"$error":"#DIV/0!"}]
[null,null,null,null,null,null,null,null,null,null,null,null,null,null,null,null,null,null,null,null,0,{"$error":"#DIV/0!"}]
[null,null,null,null,null,null,null,null,null,null,null,null,null,null,null,null,null,null,null,null,{"$f":"IF(B77=\"\",0,IF((SUM(D77:T77)=0),\"\",SUM(D77:T77)))","v":0},{"$error":"#DIV/0!"}]
[null,null,null,null,null,null,null,null,null,null,null,null,null,null,null,null,null,null,null,null,0,{"$f":"IF(U78=\"\",\"\",SUM((U78/$U$121)))","v":{"$error":"#DIV/0!"}}]
[null,null,null,null,null,null,null,null,null,null,null,null,null,null,null,null,null,null,null,null,0,{"$error":"#DIV/0!"}]
[null,null,null,null,null,null,null,null,null,null,null,null,null,null,null,null,null,null,null,null,0,{"$error":"#DIV/0!"}]
[null,null,null,null,null,null,null,null,null,null,null,null,null,null,null,null,null,null,null,null,0,{"$error":"#DIV/0!"}]
[null,null,null,null,null,null,null,null,null,null,null,null,null,null,null,null,null,null,null,null,0,{"$error":"#DIV/0!"}]
[null,null,null,null,null,null,null,null,null,null,null,null,null,null,null,null,null,null,null,null,0,{"$error":"#DIV/0!"}]
[null,null,null,null,null,null,null,null,null,null,null,null,null,null,null,null,null,null,null,null,0,{"$error":"#DIV/0!"}]
[null,null,null,null,null,null,null,null,null,null,null,null,null,null,null,null,null,null,null,null,0,{"$error":"#DIV/0!"}]
[null,null,null,null,null,null,null,null,null,null,null,null,null,null,null,null,null,null,null,null,0,{"$error":"#DIV/0!"}]
["3EP1","Right-of-Way Consultation",null,null,null,null,null,null,null,null,null,null,null,null,null,null,null,null,null,null,"",""]
[1,"Data Collection",null,null,null,null,null,null,null,null,null,null,null,null,null,null,null,null,null,null,"",""]
[2,"Prepare Draft ROW Consultation",null,null,null,null,null,null,null,null,null,null,null,null,null,null,null,null,null,null,"",""]
[3,"Submit Final ROW Consultation",null,null,null,null,null,null,null,null,null,null,null,null,null,null,null,null,null,null,"",""]
[4,"Task Mngmt",null,null,null,null,null,null,null,null,null,null,null,null,null,null,null,null,null,null,"",""]
[5,"Complete QC Procedures",null,null,null,null,null,null,null,null,null,null,null,null,null,null,null,null,null,null,"",""]
[null,null,null,null,null,null,null,null,null,null,null,null,null,null,null,null,null,null,null,null,0,{"$error":"#DIV/0!"}]
[null,null,null,null,null,null,null,null,null,null,null,null,null,null,null,null,null,null,null,null,0,{"$error":"#DIV/0!"}]
[null,null,null,null,null,null,null,null,null,null,null,null,null,null,null,null,null,null,null,null,0,{"$error":"#DIV/0!"}]
[null,null,null,null,null,null,null,null,null,null,null,null,null,null,null,null,null,null,null,null,0,{"$error":"#DIV/0!"}]
["4EP1","CONSTRUCTION Consultation",null,null,null,null,null,null,null,null,null,null,null,null,null,null,null,null,null,null,"",""]
[1,"Data Collection",null,null,null,null,null,null,null,null,null,null,null,null,null,null,null,null,null,null,"",""]
[2,"Prepare Draft Construction Consultation",null,null,null,null,null,null,null,null,null,null,null,null,null,null,null,null,null,null,"",""]
[3,"Submit Final Construction Consultation",null,null,null,null,null,null,null,null,null,null,null,null,null,null,null,null,null,null,"",""]
[4,"Task Mngmt",null,null,null,null,null,null,null,null,null,null,null,null,null,null,null,null,null,null,"",""]
[5,"Complete QC Procedures",null,null,null,null,null,null,null,null,null,null,null,null,null,null,null,null,null,null,"",""]
[null,null,null,null,null,null,null,null,null,null,null,null,null,null,null,null,null,null,null,null,0,{"$error":"#DIV/0!"}]
[null,null,null,null,null,null,null,null,null,null,null,null,null,null,null,null,null,null,null,null,0,{"$error":"#DIV/0!"}]
[null,null,null,null,null,null,null,null,null,null,null,null,null,null,null,null,null,null,null,null,0,{"$error":"#DIV/0!"}]
[null,null,null,null,null,null,null,null,null,null,null,null,null,null,null,null,null,null,null,null,0,{"$error":"#DIV/0!"}]
[null,null,null,null,null,null,null,null,null,null,null,null,null,null,null,null,null,null,null,null,0,{"$error":"#DIV/0!"}]
[null,null,null,null,null,null,null,null,null,null,null,null,null,null,null,null,null,null,null,null,0,{"$error":"#DIV/0!"}]
[null,null,null,null,null,null,null,null,null,null,null,null,null,null,null,null,null,null,null,null,0,{"$error":"#DIV/0!"}]
[null,null,null,null,null,null,null,null,null,null,null,null,null,null,null,null,null,null,null,null,0,{"$error":"#DIV/0!"}]
[null,null,null,null,null,null,null,null,null,null,null,null,null,null,null,null,null,null,null,null,0,{"$error":"#DIV/0!"}]
[null,null,null,null,null,null,null,null,null,null,null,null,null,null,null,null,null,null,null,null,0,{"$error":"#DIV/0!"}]
[null,null,null,null,null,null,null,null,null,null,null,null,null,null,null,null,null,null,null,null,0,{"$error":"#DIV/0!"}]
[null,null,null,null,null,null,null,null,null,null,null,null,null,null,null,null,null,null,null,null,0,{"$error":"#DIV/0!"}]
[null,null,null,null,null,null,null,null,null,null,null,null,null,null,null,null,null,null,null,null,0,{"$error":"#DIV/0!"}]
[null,null,null,null,null,null,null,null,null,null,null,null,null,null,null,null,null,null,null,null,0,{"$error":"#DIV/0!"}]
[null,null,null,null,null,null,null,null,null,null,null,null,null,null,null,null,null,null,null,null,0,{"$error":"#DIV/0!"}]
[null,null,null,null,null,null,null,null,null,null,null,null,null,null,null,null,null,null,null,null,0,{"$error":"#DIV/0!"}]
[null,null,null,null,null,null,null,null,null,null,null,null,null,null,null,null,null,null,null,null,0,{"$error":"#DIV/0!"}]
[null,null,null,null,null,null,null,null,null,null,null,null,null,null,null,null,null,null,null,null,0,{"$error":"#DIV/0!"}]
[null,"TOTAL WORKDAYS/CATEGORY:",null,{"$f":"(SUM(D12:D120))","v":0},0,0,0,0,0,0,0,0,0,0,0,0,0,0,0,0,0,{"$f":"SUM(V12:V120)","v":{"$error":"#DIV/0!"}},{"$f":"(SUM(W12:W120))","v":0}]
[null,"HOURLY SALARY RATE:",null,{"$f":"'PEF CLASSIFICATION SHEET'!$E791","v":0},{"$f":"'PEF CLASSIFICATION SHEET'!$E792","v":0},{"$f":"'PEF CLASSIFICATION SHEET'!$E793","v":0},{"$f":"'PEF CLASSIFICATION SHEET'!$E794","v":0},{"$f":"'PEF CLASSIFICATION SHEET'!$E795","v":0},{"$f":"'PEF CLASSIFICATION SHEET'!$E796","v":0},{"$f":"'PEF CLASSIFICATION SHEET'!$E797","v":0},{"$f":"'PEF CLASSIFICATION SHEET'!$E798","v":0},{"$f":"'PEF CLASSIFICATION SHEET'!$E799","v":0},{"$f":"'PEF CLASSIFICATION SHEET'!$E800","v":0},{"$f":"'PEF CLASSIFICATION SHEET'!$E801","v":0},{"$f":"'PEF CLASSIFICATION SHEET'!$E802","v":0},{"$f":"'PEF CLASSIFICATION SHEET'!$E803","v":0},{"$f":"'PEF CLASSIFICATION SHEET'!$E804","v":0},{"$f":"'PEF CLASSIFICATION SHEET'!E805","v":0},{"$f":"'PEF CLASSIFICATION SHEET'!E806","v":0},{"$f":"'PEF CLASSIFICATION SHEET'!E807","v":0}]
[null,"RATES PER DAY:",null,{"$f":"D122*8","v":0},0,0,0,0,0,0,0,0,0,0,0,0,0,0,0,0]
[null,"PAYROLL BURDEN:",null,{"$f":"SUM(D121*D123)","v":0},0,0,0,0,0,0,0,0,0,0,0,0,0,0,0,0]
[null,"TOTAL WORKDAYS:",null,{"$f":"SUM(D121:T121)","v":0}]
[null,"TOTAL PAYROLL BURDEN:",null,{"$f":"SUM(D124:T124)","v":0}]
[null,"AVERAGE COST PER HOUR:",null,{"$f":"SUM(D126/(D125*8))","v":{"$error":"#DIV/0!"}}]
[null,"GENERAL OVERHEAD:",{"$f":"PDEA_PLANNING_SUB3_CONSULTANT_OVERHEAD","v":0},{"$f":"SUM(D126*C128)","v":0},null,null,null,null,null,null,null,null,null,"REVIEWED BY GROUP MNGT:"]
[null,"SUBTOTAL:",null,{"$f":"SUM(D128+D126)","v":0}]
[null,"COMPARATIVE FEE:",{"$f":"PDEA_PLANNING_SUB3_CONSULTANT_FEE","v":0.09},{"$f":"SUM(D129*C130)","v":0},null,null,null,null,null,null,null,null,null,"REVIEWED BY UNIT HEAD:"]
[null,"FACILITIES COST OF CAPITAL:",{"$f":"PDEA_PLANNING_SUB3_CONSULTANT_COSTofCAPITAL","v":0},{"$f":"SUM(D126*C131)","v":0}]
[null,"TOTAL:",null,{"$f":"SUM(D129:D131)","v":0}]
[null,"DIRECT EXPENSES:",null,{"$f":"PDEA_PLANNING_DIRECT_NONSALARY_TOTAL_SUB3","v":0}]
[null,"PLANNING GRAND TOTAL:",null,{"$f":"SUM(D132:D133)","v":0}]
[]
[]
[]
[null,null,null,null,"Costs","Workdays",null,null,null,null,"Dollars"]
[null,null,null,null,null,"EnvPolicy","PEF","Delta ","Delta %",null,"Environmental Policy",null,"PEF",null,"Delta ",null,null,null,null,null,null,"Delta %"]
[null,null,null,null,null,null,null,{"$f":"SUM(G140-F140)","v":0},{"$f":"SUM((H140/F140)*100)","v":{"$error":"#DIV/0!"}},null,null,null,null,null,{"$f":"SUM(M140-K140)","v":0},null,null,null,null,null,null,{"$f":"SUM((O140/K140)*100)","v":{"$error":"#DIV/0!"}}]
[]
[]
[null,null,null,null,null,null,null,null,null,"Directs","Dollars"]
[null,null,null,null,null,null,null,null,null,null,"Environmental Policy",null,"PEF",null,"Delta ",null,null,null,null,null,null,"Delta %"]
[null,null,null,null,null,null,null,null,null,null,null,null,null,null,{"$f":"SUM(M145-K145)","v":0},null,null,null,null,null,null,{"$f":"SUM((O145/K145)*100)","v":{"$error":"#DIV/0!"}}]

{"sheet":"EnvPolicy-Exp-Sub3","index":97,"n_rows":104,"n_cols":8,"rows_kept":104,"cut":false,"hidden":true,"merged":[[6,1,6,3],[6,4,6,6],[0,0,0,7],[2,1,2,3],[3,1,3,7],[4,1,4,3],[4,6,4,7],[5,1,5,3],[5,6,5,7]]}
["ENVIRONMENTAL POLICY  DIRECT EXPENSES - SUBCONSULTANT 3"]
[]
["FIRM:",{"$f":"'EnvPolicy-Sub3'!G3","v":"CONSULTANT NAME"}]
["PROJECT DESCRIPTION: ",{"$f":"PROJECT.DESCRIPTION","v":0}]
["PREPARED BY:  ",{"$f":"PDEA.SUB3.PREPARED.BY","v":""},null,null,"TASK ORDER NUMBER:",null,{"$f":"TASK.ORDER.NUMBER","v":0}]
["TIP NUMBER:",{"$f":"TIP.NUMBER","v":0},null,null,"WBS NUMBER:",null,{"$f":"WBS.NUMBER","v":""}]
["DATE PREPARED:",{"$f":"IF('EnvPolicy-Sub3'!X3=\"\",\"\",MAX('EnvPolicy-Sub3'!X3:'EnvPolicy-Sub3'!X4))","v":""},null,null,"REVIEWED BY UNIT HEAD ON:",null,null,{"$f":"IF(SCOPE.MANDAY.ESTIMATE.APPROVED.BY.DATE=\"\",\"\",SCOPE.MANDAY.ESTIMATE.APPROVED.BY.DATE)","v":""}]
["GENERAL PROJECT WORK:","ITEM","QTY","DESCRIPTION",null,null,"UNIT COST "]
[null,"Travel:"]
[null,"Sedan",null,"Trip(s) @",null,"miles @",{"$f":"SEDAN","v":0.7},{"$f":"SUM(C10*E10*G10)","v":0}]
[null,"Carry All",null,"Trip(s) @",null,"miles @",{"$f":"CARRYALL","v":0.72},{"$f":"SUM(C11*E11*G11)","v":0}]
[null,"Car Rental",null,null,null,"days @ ",{"$f":"CARRENTAL","v":50},{"$f":"SUM(E12*G12)","v":0}]
[null,"Gas for Rental",null,null,null,"miles @",{"$f":"GASforRENTAL","v":0.2},{"$f":"SUM(E13*G13)","v":0}]
[null,"Parking:",null,"Trip(s) @",null,null,{"$f":"PARKING","v":3},{"$f":"SUM(C14*G14)","v":0}]
[null,"Per Diem:",null,"Breakfast",null,null,{"$f":"BREAKFAST","v":10.1},{"$f":"SUM(C15*G15)","v":0}]
[null,null,null,"Lunch",null,null,{"$f":"LUNCH","v":13.3},0]
[null,null,null,"Dinner",null,null,{"$f":"DINNER","v":23.1},0]
[null,null,null,"Lodging",null,null,{"$f":"LODGING_LUMP.SUM","v":95},0]
[null,"Reproduction:",null,"8 1/2 x 11 B & W Copies @",null,null,{"$f":"LETTERCOPIES","v":0.14000000000000001},0]
[null,null,null,"11 x 17 B & W Copies @",null,null,{"$f":"LEDGERCOPIES","v":0.34},0]
[null,null,null,"8 1/2 x 11 Color Copies @",null,null,{"$f":"LETTERCOLOR","v":0.83},0]
[null,null,null,"11 x 17 Color Copies @",null,null,{"$f":"LEDGERCOLOR","v":1.66},0]
[null,null,null,"SQ. FT. of Plots (B & W or Color)",null,"<65 SQ. FT.*",{"$f":"ROLLPLOTSshort","v":6.5},0]
[null,null,null,"SQ. FT. of Plots (B & W or Color)",null,">65 SQ. FT.*",{"$f":"ROLLPLOTSlong","v":1.5},0]
[null,null,null,"Cover(s) @",null,null,{"$f":"COVERS","v":0.5},0]
[null,null,null,"Binder(s) @",null,null,{"$f":"BINDERS","v":0.5},0]
[null,null,null,"Blueprints - 8 1/2 x 11 @",null,null,{"$f":"BLUEPRINTSLETTER","v":0.35},0]
[null,null,null,"Blueprints - 42 x 72 @",null,null,{"$f":"BLUEPRINTSLARGE","v":1.3},0]
[null,"Film and Developing:",null,"Roll(s) @",null,null,{"$f":"FILM","v":20},0]
[null,null,null,null,null,"Subtotal",null,{"$f":"SUM(H10:H29)","v":0}]
["MAPS AND DOCUMENTS:","ITEM","QTY","DESCRIPTION",null,null,"UNIT COST "]
[null,"County Tax Maps:",null,"Map(s) @",null,null,{"$f":"County_Tax_Maps","v":7},{"$f":"SUM(C32*G32)","v":0}]
[null,"USGS Maps:",null,"Map(s) @",null,null,{"$f":"USGSMAPS","v":7},{"$f":"SUM(C33*G33)","v":0}]
[null,null,null,null,null,"Subtotal",null,{"$f":"SUM(H32:H33)","v":0}]
["TECHNICAL REPORTS:","ITEM","QTY","DESCRIPTION",null,null,"UNIT COST "]
[null,"Reproduction:",null,"8 1/2 x 11 B & W Copies @",null,null,{"$f":"LETTERCOPIES","v":0.14000000000000001},{"$f":"SUM(C36*G36)","v":0}]
[null,null,null,"11 x 17 B & W Copies @",null,null,{"$f":"LEDGERCOPIES","v":0.34},0]
[null,null,null,"8 1/2 x 11 Color Copies @",null,null,{"$f":"LETTERCOLOR","v":0.83},0]
[null,null,null,"11 x 17 Color Copies @",null,null,{"$f":"LEDGERCOLOR","v":1.66},0]
[null,null,null,"SQ. FT. of Plots (B & W or Color)",null,"<65 SQ. FT.*",{"$f":"ROLLPLOTSshort","v":6.5},0]
[null,null,null,"SQ. FT. of Plots (B & W or Color)",null,">65 SQ. FT.*",{"$f":"ROLLPLOTSlong","v":1.5},0]
[null,null,null,"Cover(s) @",null,null,{"$f":"COVERS","v":0.5},0]
[null,null,null,"Binder(s) @",null,null,{"$f":"BINDERS","v":0.5},0]
[null,null,null,null,null,"Subtotal",null,{"$f":"SUM(H36:H43)","v":0}]
["DESIGN:","ITEM","QTY","DESCRIPTION",null,null,"UNIT COST "]
[null,"Reproduction:",null,"8 1/2 x 11 B & W Copies @",null,null,{"$f":"LETTERCOPIES","v":0.14000000000000001},{"$f":"SUM(C46*G46)","v":0}]
[null,null,null,"11 x 17 B & W Copies @",null,null,{"$f":"LEDGERCOPIES","v":0.34},0]
[null,null,null,"Blueprints - 8 1/2 x 11 @",null,null,{"$f":"BLUEPRINTSLETTER","v":0.35},0]
[null,null,null,"Mylar - 8 1/2 x 11 @",null,null,{"$f":"MYLARSLETTER","v":7.32},0]
[null,null,null,"Mylar - 36 x 48 @",null,null,{"$f":"MYLARSLARGE","v":28.12},0]
[null,null,null,"Prints  - 24 x 36 @",null,null,{"$f":"PRINTSLARGE","v":3},0]
[null,null,null,"Blueprints - 42 x 72 @",null,null,{"$f":"BLUEPRINTSLARGE","v":1.3},0]
[null,null,null,"SQ. FT. of Plots (B & W or Color)",null,"<65 SQ. FT.*",{"$f":"ROLLPLOTSshort","v":6.5},0]
[null,null,null,"SQ. FT. of Plots (B & W or Color)",null,">65 SQ. FT.*",{"$f":"ROLLPLOTSlong","v":1.5},0]
[null,null,null,"USGS Map(s)",null,null,{"$f":"USGSMAPS","v":7},0]
[null,null,null,null,null,"Subtotal",null,{"$f":"SUM(H46:H55)","v":0}]
["ENVIRONMENTAL DOCUMENT(S):","ITEM","QTY","DESCRIPTION",null,null,"UNIT COST "]
[null,"Reproduction:",null,"8 1/2 x 11 B & W Copies @",null,null,{"$f":"LETTERCOPIES","v":0.14000000000000001},{"$f":"SUM(C58*G58)","v":0}]
[null,null,null,"11 x 17 B & W Copies @",null,null,{"$f":"LEDGERCOPIES","v":0.34},0]
[null,null,null,"8 1/2 x 11 Color Copies @",null,null,{"$f":"LETTERCOLOR","v":0.83},0]
[null,null,null,"11 x 17 Color Copies @",null,null,{"$f":"LEDGERCOLOR","v":1.66},0]
[" ",null,null,"Cover(s) @",null,null,{"$f":"COVERS","v":0.5},0]
[null,null,null,"Binder(s) @",null,null,{"$f":"BINDERS","v":0.5},0]
[null,null,null,null,null,"Subtotal",null,{"$f":"SUM(H58:H63)","v":0}]
["MEETINGS & PUBLIC INVOLVEMENT:","ITEM","QTY","DESCRIPTION",null,null,"UNIT COST "]
[null,"Travel:"]
[null,"Sedan",null,"Trip(s) @",null,"miles @",{"$f":"SEDAN","v":0.7},{"$f":"SUM(C67*E67*G67)","v":0}]
[null,"CarryAll",null,"Trip(s) @",null,"miles @",{"$f":"CARRYALL","v":0.72},{"$f":"SUM(C68*E68*G68)","v":0}]
[null,"Car Rental",null,null,null,"days @",{"$f":"CARRENTAL","v":50},{"$f":"SUM(E69*G69)","v":0}]
[null,"Gas for Rental",null,null,null,"miles @",{"$f":"GASforRENTAL","v":0.2},{"$f":"SUM(E70*G70)","v":0}]
[null,"Parking:",null,"Trip(s) @",null,null,{"$f":"PARKING","v":3},{"$f":"SUM(C71*G71)","v":0}]
[null,"Per Diem:",null,"Breakfast",null,null,{"$f":"BREAKFAST","v":10.1},{"$f":"SUM(C72*G72)","v":0}]
[null,null,null,"Lunch",null,null,{"$f":"LUNCH","v":13.3},{"$f":"SUM(C73*G73)","v":0}]
[null,null,null,"Dinner",null,null,{"$f":"DINNER","v":23.1},{"$f":"SUM(C74*G74)","v":0}]
[null,null,null,"Lodging",null,null,{"$f":"LODGING_LUMP.SUM","v":95},{"$f":"SUM(C75*G75)","v":0}]
[null,"Workshop "]
[null,"  - Reproduction",null,"8 1/2 x 11 B & W Copies @",null,"Handouts",{"$f":"LETTERCOPIES","v":0.14000000000000001},{"$f":"SUM(C77*E77*G77)","v":0}]
[null,null,null,"11 x 17 B & W Copies @",null,"Handouts",{"$f":"LEDGERCOPIES","v":0.34},{"$f":"SUM(C78*E78*G78)","v":0}]
[null,null,null,"8 1/2 x 11 Color Copies @",null,null,{"$f":"LETTERCOLOR","v":0.83},{"$f":"SUM(C79*G79)","v":0}]
[null,null,null,"11 x 17 Color Copies @",null,null,{"$f":"LEDGERCOLOR","v":1.66},0]
[null,null,null,"SQ. FT. of Plots (B & W or Color)",null,"<65 SQ. FT.*",{"$f":"ROLLPLOTSshort","v":6.5},0]
[null,null,null,"SQ. FT. of Plots (B & W or Color)",null,">65 SQ. FT.*",{"$f":"ROLLPLOTSlong","v":1.5},0]
[null,null,null,"SQ. FT. Foam Mounting Board @",null,null,{"$f":"FOAMMOUNTINGBOARD","v":1.25},0]
[null,"Presentation Materials:",null,"Misc. Workshop Supplies @",null,"per workshop",{"$f":"MISCWORKSHOPSUPPLIES","v":50},0]
[null,"Mailing Labels:",null,"Laser Peel & Stick (box)",null,"750 per box",{"$f":"LASERPEELandSTICK","v":4},0]
[null,"Postage:"]
[null,"  - Public Workshops:",null,"Notice or Newsletter @",null,"copies @",{"$f":"POSTAGE","v":0.49},{"$f":"SUM(C87*E87*G87)","v":0}]
[null,null,null,null,null,"Subtotal",null,{"$f":"SUM(H66:H87)","v":0}]
["Miscellaneous Other","ITEM","QTY","DESCRIPTION",null,null,"UNIT COST "]
[null,null,null,null,null,null,null,{"$f":"SUM(C90*G90)","v":0}]
[null,null,null,null,null,null,null,{"$f":"SUM(C91*G91)","v":0}]
[null,null,null,null,null,null,null,0]
[null,null,null,null,null,null,null,0]
[null,null,null,null,null,null,null,0]
[null,null,null,null,null,null,null,0]
[null,null,null,null,null,null,null,0]
[null,null,null,null,null,null,null,{"$f":"SUM(C97*G97)","v":0}]
[null,null,null,null,null,null,null,{"$f":"SUM(C98*G98)","v":0}]
[null,null,null,null,null,null,null,{"$f":"SUM(C99*G99)","v":0}]
[null,null,null,null,null,"Subtotal",null,{"$f":"SUM(H90:H99)","v":0}]
[]
[null,null,null,null,null,"TOTAL",null,{"$f":"SUM(H30+H34+H44+H56+H64+H88+H100)","v":0}]
[]
[null,"* Sum of all plots "]

{"sheet":"Geotech-Sub1","index":98,"n_rows":86,"n_cols":15,"rows_kept":86,"cut":false,"hidden":true,"merged":[[17,3,17,5],[17,6,17,8],[19,0,20,0],[14,0,14,1],[14,2,14,3],[14,6,14,10],[14,11,14,12],[15,6,15,10],[15,11,15,12],[12,2,12,3],[12,6,12,10],[12,11,12,12],[13,2,13,3],[13,6,13,10],[13,11,13,12],[10,2,10,3],[10,6,10,10],[10,11,10,12],[11,0,11,1],[11,2,11,3],[11,6,11,10],[11,11,11,12],[8,0,8,1],[8,2,8,3],[8,6,8,10],[8,11,8,12],[9,0,9,1],[9,2,9,3],[9,6,9,10],[9,11,9,12],[6,0,6,1],[6,2,6,3],[6,6,6,10],[6,11,6,12],[7,0,7,1],[7,2,7,3],[7,6,7,10],[7,11,7,12],[4,1,4,2],[4,3,4,4],[4,5,4,6],[4,7,4,9],[4,10,4,12],[0,0,0,12],[1,0,3,0],[1,1,3,4],[1,5,1,6],[1,7,1,12],[2,5,2,6],[2,7,2,12],[3,5,3,6],[3,7,3,8],[3,9,3,10],[3,11,3,12]]}
["Geotech Summary & Labor Expenses - Subconsultant 1"]
["PROJECT DESCRIPTION: ",{"$f":"PROJECT.DESCRIPTION","v":0},null,null,null,"FIRM: ",null,{"$f":"GEOTECHNICAL_SUB1_CONSULTANT_NAME","v":"CONSULTANT NAME"}]
[null,null,null,null,null,"PREPARED BY: ",null,{"$f":"IF(SCOPE.MANDAY.ESTIMATE.PREPARED.BY=\"\",\"\",SCOPE.MANDAY.ESTIMATE.PREPARED.BY)","v":""}]
[null,null,null,null,null,"DATE PREPARED: ",null,{"$f":"IF(SCOPE.MANDAY.ESTIMATE.PREPARED.BY.DATE=\"\",\"\",SCOPE.MANDAY.ESTIMATE.PREPARED.BY.DATE)","v":""},null,"REVISION DATE: ",null,{"$f":"IF(SCOPE.MANDAY.ESTIMATE.APPROVED.BY.DATE=\"\",\"\",SCOPE.MANDAY.ESTIMATE.APPROVED.BY.DATE)","v":""}]
["WBS ELEMENT: ",{"$f":"WBS.NUMBER","v":""},null,"TIP: ",null,{"$f":"TIP.NUMBER","v":0},null,"MMS TASK NUMBER:",null,null,{"$f":"TASK.ORDER.NUMBER","v":0}]
[]
["TOTAL WORK HOURS:",null,{"$f":"SUM(B22:M22)","v":0},null,null,null,"MOBILIZATION AND TRAVEL TOTAL:",null,null,null,null,{"$f":"GeotechTotalB03_Sub1","v":0}]
["TOTAL WORKDAYS (8 HOUR DAYS):",null,{"$f":"ROUND(GEOTECHNICAL_HOURS_SUB1/8,2)","v":0},null,null,null,"DRILLING TOTAL:",null,null,null,null,{"$f":"GeotechTotalB04a_Sub1+GeotechTotalB04b_Sub1+GeotechTotalB04c_Sub1+GeotechTotalB04d_Sub1","v":0}]
["TOTAL PAYROLL BURDEN:",null,{"$f":"ROUND(SUM(B24:M24),2)","v":0},null,null,null,"PAVEMENT INVESTIGATION TOTAL:",null,null,null,null,{"$f":"GeotechTotalB05_Sub1","v":0}]
["AVERAGE COST PER HOUR:",null,{"$f":"IF((C8=0),\"$0.00 \",(SUM(C9/(C8*8))))","v":"$0.00 "},null,null,null,"INVESTIGATION EQUIPMENT TOTAL:",null,null,null,null,{"$f":"GeotechTotalB06_Sub1","v":0}]
["OVERHEAD @ X%:",{"$f":"GEOTECHNICAL_SUB1_CONSULTANT_OVERHEAD","v":0},{"$f":"ROUND(C9*B11,2)","v":0},null,null,null,"TESTING EQUIPMENT TOTAL:",null,null,null,null,{"$f":"GeotechTotalB07_Sub1","v":0}]
["SUBTOTAL:",null,{"$f":"ROUND(C11+C9,2)","v":0},null,null,null,"GEOENVIRONMENTAL TOTAL:",null,null,null,null,{"$f":"GeotechTotalB08_Sub1","v":0}]
["FIXED FEE @ X%:",{"$f":"GEOTECHNICAL_SUB1_CONSULTANT_FEE","v":0.09},{"$f":"ROUND(C12*B13,2)","v":0},null,null,null,"GEOPHYSICAL:",null,null,null,null,{"$f":"GeotechTotalB09_Sub1","v":0}]
["COST OF CAPITAL @ X%:",{"$f":"GEOTECHNICAL_SUB1_CONSULTANT_COSTofCAPITAL","v":0},{"$f":"ROUND(C9*B14,2)","v":0},null,null,null,"LABORATORY TESTING:",null,null,null,null,{"$f":"GeotechTotalB10_Sub1","v":0}]
["PAYROLL TOTAL:",null,{"$f":"ROUND(SUM(C12:D14),2)","v":0},null,null,null,"MISCELLANEOUS:",null,null,null,null,{"$f":"GeotechTotalB11_Sub1","v":0}]
[null,null,null,null,null,null,"DIRECT EXPENSES TOTAL:",null,null,null,null,{"$f":"ROUND(SUM(L7:M15),2)","v":0}]
["Show Rows 25:86"]
["Hide Unused Rows 26:85",null,null,"TOTAL",null,null,{"$f":"ROUND(C15+L16,2)","v":0}]
[]
["EMPLOYEES'  INFORMATION\n\nNAME             POSITION",{"$f":"GEOTECHNICAL_SUB1_CONSULTANT_CLASSIFICATION.1_TITLE","v":0},{"$f":"GEOTECHNICAL_SUB1_CONSULTANT_CLASSIFICATION.2.TITLE","v":0},{"$f":"GEOTECHNICAL_SUB1_CONSULTANT_CLASSIFICATION.3.TITLE","v":0},{"$f":"GEOTECHNICAL_SUB1_CONSULTANT_CLASSIFICATION.4.TITLE","v":0},{"$f":"GEOTECHNICAL_SUB1_CONSULTANT_CLASSIFICATION.5.TITLE","v":0},{"$f":"GEOTECHNICAL_SUB1_CONSULTANT_CLASSIFICATION.6_TITLE","v":0},{"$f":"GEOTECHNICAL_SUB1_CONSULTANT_CLASSIFICATION.7_TITLE","v":0},{"$f":"GEOTECHNICAL_SUB1_CONSULTANT_CLASSIFICATION.8_TITLE","v":0},{"$f":"GEOTECHNICAL_SUB1_CONSULTANT_CLASSIFICATION.9_TITLE","v":0},{"$f":"GEOTECHNICAL_SUB1_CONSULTANT_CLASSIFICATION.10_TITLE","v":0},{"$f":"GEOTECHNICAL_SUB1_CONSULTANT_CLASSIFICATION.11_TITLE","v":0},{"$f":"GEOTECHNICAL_SUB1_CONSULTANT_CLASSIFICATION.12_TITLE","v":0}]
[null,{"$f":"GEOTECHNICAL_SUB1_CONSULTANT_CLASSIFICATION.1_NAME","v":0},{"$f":"GEOTECHNICAL_SUB1_CONSULTANT_CLASSIFICATION.2_NAME","v":0},{"$f":"GEOTECHNICAL_SUB1_CONSULTANT_CLASSIFICATION.3_NAME","v":0},{"$f":"GEOTECHNICAL_SUB1_CONSULTANT_CLASSIFICATION.4_NAME","v":0},{"$f":"GEOTECHNICAL_SUB1_CONSULTANT_CLASSIFICATION.5_NAME","v":0},{"$f":"GEOTECHNICAL_SUB1_CONSULTANT_CLASSIFICATION.6_NAME","v":0},{"$f":"GEOTECHNICAL_SUB1_CONSULTANT_CLASSIFICATION.7_NAME","v":0},{"$f":"GEOTECHNICAL_SUB1_CONSULTANT_CLASSIFICATION.8_NAME","v":0},{"$f":"GEOTECHNICAL_SUB1_CONSULTANT_CLASSIFICATION.9_NAME","v":0},{"$f":"GEOTECHNICAL_SUB1_CONSULTANT_CLASSIFICATION.10_NAME","v":0},{"$f":"GEOTECHNICAL_SUB1_CONSULTANT_CLASSIFICATION.11_NAME","v":0},{"$f":"GEOTECHNICAL_SUB1_CONSULTANT_CLASSIFICATION.12_NAME","v":0}]
["TOTAL HOURS:",{"$f":"B86","v":0},{"$f":"C86","v":0},0,0,0,0,0,0,0,0,0,0]
["HOURLY SALARY RATE:",{"$f":"GEOTECHNICAL_SUB1_CONSULTANT_CLASSIFICATION.1_RATE","v":0},{"$f":"GEOTECHNICAL_SUB1_CONSULTANT_CLASSIFICATION.2_RATE","v":0},{"$f":"GEOTECHNICAL_SUB1_CONSULTANT_CLASSIFICATION.3_RATE","v":0},{"$f":"GEOTECHNICAL_SUB1_CONSULTANT_CLASSIFICATION.4_RATE","v":0},{"$f":"GEOTECHNICAL_SUB1_CONSULTANT_CLASSIFICATION.5_RATE","v":0},{"$f":"GEOTECHNICAL_SUB1_CONSULTANT_CLASSIFICATION.6_RATE","v":0},{"$f":"GEOTECHNICAL_SUB1_CONSULTANT_CLASSIFICATION.7_RATE","v":0},{"$f":"GEOTECHNICAL_SUB1_CONSULTANT_CLASSIFICATION.8_RATE","v":0},{"$f":"GEOTECHNICAL_SUB1_CONSULTANT_CLASSIFICATION.9_RATE","v":0},{"$f":"GEOTECHNICAL_SUB1_CONSULTANT_CLASSIFICATION.10_RATE","v":0},{"$f":"GEOTECHNICAL_SUB1_CONSULTANT_CLASSIFICATION.11_RATE","v":0},{"$f":"GEOTECHNICAL_SUB1_CONSULTANT_CLASSIFICATION.12_RATE","v":0}]
["PAYROLL BURDEN",{"$f":"SUM(B22*B23)","v":0},0,0,0,0,0,0,0,0,0,0,0]
["Task",{"$f":"B$20","v":0},{"$f":"C$20","v":0},0,0,0,0,0,0,0,0,0,0,"Total","Notes"]
["Field - Project Management",null,null,null,null,null,null,null,null,null,null,null,null,{"$f":"SUM(B26:M26)","v":0}]
["Field - Scoping/Site Visit/Meeting",null,null,null,null,null,null,null,null,null,null,null,null,0]
["Field - Boring Plan",null,null,null,null,null,null,null,null,null,null,null,null,0]
["Field - GPS Setup",null,null,null,null,null,null,null,null,null,null,null,null,0]
["Field - Property Owner Contacts",null,null,null,null,null,null,null,null,null,null,null,null,0]
["Field - Utility Locate Tickets",null,null,null,null,null,null,null,null,null,null,null,null,0]
["Field - Administration/Project Setup",null,null,null,null,null,null,null,null,null,null,null,null,0]
["Field - Boring Layout",null,null,null,null,null,null,null,null,null,null,null,null,0]
["Field - Property Owner Contacts",null,null,null,null,null,null,null,null,null,null,null,null,0]
["Field - Site Supervision",null,null,null,null,null,null,null,null,null,null,null,null,0]
["Field - Boring Hub Survey",null,null,null,null,null,null,null,null,null,null,null,null,0]
["Field - Travel",null,null,null,null,null,null,null,null,null,null,null,null,0]
["Field - Utility Coordination",null,null,null,null,null,null,null,null,null,null,null,null,0]
["Field - Sample Delivery",null,null,null,null,null,null,null,null,null,null,null,null,0]
["Structure - Inventory Preparation",null,null,null,null,null,null,null,null,null,null,null,null,0]
["Structure - Foundation Recs Report",null,null,null,null,null,null,null,null,null,null,null,null,0]
["Structure - Slope Stability Analysis",null,null,null,null,null,null,null,null,null,null,null,null,0]
["Structure - Lateral Stability Analysis",null,null,null,null,null,null,null,null,null,null,null,null,0]
["Structure - Pile Driveability Analysis",null,null,null,null,null,null,null,null,null,null,null,null,0]
["Structure - Axial Capacity Analysis",null,null,null,null,null,null,null,null,null,null,null,null,0]
["Structure - Spread Footing Bearing Capacity",null,null,null,null,null,null,null,null,null,null,null,null,0]
["Structure - Settlement Analysis",null,null,null,null,null,null,null,null,null,null,null,null,0]
["Roadway - Inventory Preparation",null,null,null,null,null,null,null,null,null,null,null,null,0]
["Roadway - Written Recs Report 8 1/2 x 11",null,null,null,null,null,null,null,null,null,null,null,null,0]
["Roadway - Rec. Graphics Report 11 x 17",null,null,null,null,null,null,null,null,null,null,null,null,0]
["Roadway - Slope Stability Analysis",null,null,null,null,null,null,null,null,null,null,null,null,0]
["Roadway - Settlement Analysis",null,null,null,null,null,null,null,null,null,null,null,null,0]
["Roadway - Ground Improvement",null,null,null,null,null,null,null,null,null,null,null,null,0]
["Roadway - Reinforced Slope Design",null,null,null,null,null,null,null,null,null,null,null,null,0]
["Roadway - Rock Plating/Embankment Design",null,null,null,null,null,null,null,null,null,null,null,null,0]
["Wall - Wall Inventory Preparation",null,null,null,null,null,null,null,null,null,null,null,null,{"$f":"SUM(B56:M56)","v":0}]
["Wall - Written Recs Report 8.5 x 11",null,null,null,null,null,null,null,null,null,null,null,null,0]
["Wall - Global Stability Analysis",null,null,null,null,null,null,null,null,null,null,null,null,0]
["Wall - Internal Stability Analysis",null,null,null,null,null,null,null,null,null,null,null,null,0]
["Wall - Plan Preparation",null,null,null,null,null,null,null,null,null,null,null,null,0]
["Wall - Soil Parameter Analysis",null,null,null,null,null,null,null,null,null,null,null,null,0]
["Misc - Special Provision Preparation",null,null,null,null,null,null,null,null,null,null,null,null,0]
["Misc - Report Review/Seal & Sign",null,null,null,null,null,null,null,null,null,null,null,null,0]
[null,null,null,null,null,null,null,null,null,null,null,null,null,0]
[null,null,null,null,null,null,null,null,null,null,null,null,null,0]
[null,null,null,null,null,null,null,null,null,null,null,null,null,0]
[null,null,null,null,null,null,null,null,null,null,null,null,null,0]
[null,null,null,null,null,null,null,null,null,null,null,null,null,0]
[null,null,null,null,null,null,null,null,null,null,null,null,null,0]
[null,null,null,null,null,null,null,null,null,null,null,null,null,0]
[null,null,null,null,null,null,null,null,null,null,null,null,null,0]
[null,null,null,null,null,null,null,null,null,null,null,null,null,0]
[null,null,null,null,null,null,null,null,null,null,null,null,null,0]
[null,null,null,null,null,null,null,null,null,null,null,null,null,0]
[null,null,null,null,null,null,null,null,null,null,null,null,null,0]
[null,null,null,null,null,null,null,null,null,null,null,null,null,0]
[null,null,null,null,null,null,null,null,null,null,null,null,null,{"$f":"SUM(B77:M77)","v":0}]
[null,null,null,null,null,null,null,null,null,null,null,null,null,0]
[null,null,null,null,null,null,null,null,null,null,null,null,null,{"$f":"SUM(B79:M79)","v":0}]
[null,null,null,null,null,null,null,null,null,null,null,null,null,0]
[null,null,null,null,null,null,null,null,null,null,null,null,null,{"$f":"SUM(B81:M81)","v":0}]
[null,null,null,null,null,null,null,null,null,null,null,null,null,0]
[null,null,null,null,null,null,null,null,null,null,null,null,null,{"$f":"SUM(B83:M83)","v":0}]
[null,null,null,null,null,null,null,null,null,null,null,null,null,0]
[null,null,null,null,null,null,null,null,null,null,null,null,null,{"$f":"SUM(B85:M85)","v":0}]
["Total",{"$f":"SUM(B26:B85)","v":0},{"$f":"SUM(C26:C85)","v":0},0,0,0,0,0,0,0,0,0,0,{"$f":"SUM(B26:M85)","v":0}]

{"sheet":"GeotechFieldCosts-Sub1","index":99,"n_rows":410,"n_cols":7,"rows_kept":410,"cut":false,"hidden":true,"merged":[[17,0,17,1],[404,0,404,1],[405,0,405,1],[406,0,406,1],[407,0,407,1],[408,0,408,1],[398,0,398,1],[399,0,399,1],[400,0,400,1],[401,0,401,1],[402,0,402,1],[403,0,403,1],[393,0,393,1],[394,0,394,1],[395,0,395,1],[396,0,396,1],[397,0,397,1],[385,0,385,1],[386,0,386,1],[387,0,387,1],[388,0,388,1],[389,0,389,1],[390,0,390,1],[391,0,391,1],[392,0,392,1],[379,0,379,1],[380,0,380,1],[381,0,381,1],[382,0,382,1],[383,0,383,1],[384,0,384,1],[364,3,364,6],[373,0,373,1],[374,0,374,1],[375,0,375,1],[376,0,376,1],[377,0,377,1],[378,0,378,1],[368,0,368,1],[369,0,369,1],[370,0,370,1],[371,0,371,1],[372,0,372,1],[366,0,366,6],[367,0,367,1],[359,0,359,1],[360,0,360,1],[362,0,362,1],[363,0,363,1],[353,0,353,1],[354,0,354,1],[355,0,355,1],[356,0,356,1],[357,0,357,1],[358,0,358,1],[347,0,347,1],[348,0,348,1],[349,0,349,1],[350,0,350,1],[351,0,351,1],[352,0,352,1],[341,0,341,1],[342,0,342,1],[343,0,343,1],[344,0,344,1],[345,0,345,1],[346,0,346,1],[335,0,335,1],[336,0,336,1],[337,0,337,1],[338,0,338,1],[339,0,339,1],[340,0,340,1],[329,0,329,1],[330,0,330,1],[331,0,331,1],[332,0,332,1],[333,0,333,1],[334,0,334,1],[315,0,315,1],[316,0,316,1],[305,0,305,1],[306,0,306,1],[323,0,323,1],[327,0,327,1],[328,0,328,1],[317,0,317,1],[318,0,318,1],[319,0,319,1],[320,0,320,1],[321,0,321,1],[322,0,322,1],[310,0,310,1],[300,0,300,1],[301,0,301,1],[311,0,311,1],[312,0,312,1],[313,0,313,1],[314,0,314,1],[294,0,294,1],[295,0,295,1],[296,0,296,1],[297,0,297,1],[298,0,298,1],[299,0,299,1],[288,0,288,1],[289,0,289,1],[290,0,290,1],[291,0,291,1],[292,0,292,1],[293,0,293,1],[285,0,285,1],[286,0,286,1],[287,0,287,1],[281,0,281,1],[252,0,252,1],[253,0,253,1],[254,0,254,1],[255,0,255,1],[256,0,256,1],[257,0,257,1],[270,0,270,1],[271,0,271,1],[272,0,272,1],[264,0,264,1],[265,0,265,1],[266,0,266,1],[267,0,267,1],[268,0,268,1],[269,0,269,1],[280,0,280,1],[246,0,246,1],[247,0,247,1],[248,0,248,1],[249,0,249,1],[250,0,250,1],[251,0,251,1],[240,0,240,1],[241,0,241,1],[242,0,242,1],[243,0,243,1],[244,0,244,1],[245,0,245,1],[234,0,234,1],[235,0,235,1],[236,0,236,1],[237,0,237,1],[238,0,238,1],[239,0,239,1],[227,0,227,1],[228,0,228,1],[232,0,232,1],[233,0,233,1],[229,0,229,1],[230,0,230,1],[231,0,231,1],[221,0,221,1],[222,0,222,1],[223,0,223,1],[224,0,224,1],[225,0,225,1],[226,0,226,1],[215,0,215,1],[216,0,216,1],[217,0,217,1],[218,0,218,1],[219,0,219,1],[220,0,220,1],[208,0,208,1],[212,0,212,1],[213,0,213,1],[214,0,214,1],[202,0,202,1],[203,0,203,1],[204,0,204,1],[205,0,205,1],[206,0,206,1],[207,0,207,1],[209,0,209,1],[210,0,210,1],[211,0,211,1],[195,0,195,1],[196,0,196,1],[197,0,197,1],[201,0,201,1],[189,0,189,1],[190,0,190,1],[191,0,191,1],[192,0,192,1],[193,0,193,1],[194,0,194,1],[198,0,198,1],[199,0,199,1],[200,0,200,1],[185,0,185,1],[186,0,186,1],[187,0,187,1],[188,0,188,1],[176,0,176,1],[177,0,177,1],[178,0,178,1],[179,0,179,1],[180,3,180,6],[182,0,182,6],[183,0,183,1],[184,0,184,1],[174,0,174,1],[175,0,175,1],[164,0,164,1],[165,0,165,1],[166,0,166,1],[167,0,167,1],[168,0,168,1],[169,0,169,1],[156,0,156,1],[158,0,158,1],[159,0,159,1],[134,3,134,6],[136,0,136,6],[163,0,163,1],[152,0,152,1],[153,0,153,1],[170,0,170,1],[171,0,171,1],[172,0,172,1],[173,0,173,1],[140,0,140,1],[141,0,141,1],[142,0,142,1],[143,0,143,1],[144,0,144,1],[151,0,151,6],[154,0,154,1],[155,0,155,1],[160,3,160,6],[162,0,162,6],[157,0,157,1],[145,0,145,1],[146,0,146,1],[147,0,147,1],[148,0,148,1],[128,0,128,1],[129,0,129,1],[130,0,130,1],[132,0,132,1],[112,0,112,1],[113,0,113,1],[114,0,114,1],[116,0,116,1],[117,0,117,1],[118,0,118,1],[131,0,131,1],[124,3,124,6],[126,0,126,6],[127,0,127,1],[100,0,100,1],[97,0,97,1],[105,0,105,1],[106,0,106,1],[107,0,107,1],[108,0,108,1],[109,0,109,1],[110,0,110,1],[111,0,111,1],[120,0,120,1],[121,0,121,1],[122,0,122,1],[63,0,63,1],[64,0,64,1],[57,0,57,1],[66,0,66,1],[67,0,67,1],[90,0,90,1],[91,0,91,1],[92,0,92,1],[93,0,93,1],[83,0,83,1],[84,0,84,1],[85,0,85,1],[86,0,86,1],[87,0,87,1],[88,0,88,1],[89,0,89,1],[41,0,41,1],[47,0,47,1],[55,0,55,1],[56,0,56,1],[58,0,58,1],[59,0,59,1],[60,0,60,1],[61,0,61,1],[62,0,62,1],[0,0,0,6],[1,0,1,6],[2,0,2,6],[4,0,4,6],[5,0,5,1],[6,0,6,1],[29,0,29,1],[23,0,23,1],[28,0,28,1],[13,0,13,1],[18,0,18,1],[19,0,19,1],[20,0,20,1],[21,0,21,1],[22,0,22,1],[7,0,7,1],[8,0,8,1],[9,0,9,1],[10,0,10,1],[11,0,11,1],[12,0,12,1],[14,0,14,1],[15,0,15,1],[16,0,16,1],[30,3,30,6],[32,0,32,6],[33,0,33,1],[80,3,80,6],[82,0,82,6],[48,0,48,1],[49,0,49,1],[50,0,50,1],[51,0,51,1],[52,0,52,1],[53,0,53,1],[42,0,42,1],[43,0,43,1],[44,0,44,1],[45,0,45,1],[46,0,46,1],[36,0,36,1],[37,0,37,1],[38,0,38,1],[39,0,39,1],[34,0,34,1],[54,0,54,1],[35,0,35,1],[40,0,40,1],[149,3,149,6],[409,3,409,6],[258,3,258,6],[260,0,260,6],[302,3,302,6],[304,0,304,6],[307,0,307,1],[308,0,308,1],[309,0,309,1],[324,3,324,6],[326,0,326,6],[261,0,261,1],[262,0,262,1],[263,0,263,1],[273,0,273,1],[274,0,274,1],[275,0,275,1],[282,0,282,1],[283,0,283,1],[284,0,284,1],[276,0,276,1],[277,0,277,1],[278,0,278,1],[279,0,279,1],[139,0,139,1],[361,0,361,1],[68,0,68,1],[69,0,69,1],[70,0,70,1],[74,0,74,1],[75,0,75,1],[76,0,76,1],[77,0,77,1],[78,0,78,1],[79,0,79,1],[101,0,101,1],[102,0,102,1],[103,0,103,1],[104,0,104,1],[123,0,123,1],[95,0,95,1],[96,0,96,1],[98,0,98,1],[99,0,99,1],[94,0,94,1],[133,0,133,1],[137,0,137,1],[138,0,138,1]]}
["Geotech Direct Expenses - Subconsultant 1"]
[{"$f":"\"TIP: \"&TIP.NUMBER","v":"TIP: "}]
[{"$f":"\"Firm: \"&GEOTECHNICAL_CONSULTANT_NAME","v":"Firm: CONSULTANT NAME"}]
[]
["Mobilization and Travel"]
["Item",null,"Quantity","Unit","ID","Rate","Total"]
["Truck, ATV, or Track Drill Rig",null,null,"each",1001,null,{"$f":"IF(ISBLANK(C7),\"\",ROUND(C7*F7,2))","v":""}]
["CPT Rig / Direct Push Rig",null,null,"each",1002,null,{"$f":"IF(ISBLANK(C8),\"\",ROUND(C8*F8,2))","v":""}]
["Truck, ATV, or Track Drill Rig / CPT Rig / Direct Push Rig - outside 50 mile\nradius of base",null,null,"miles",1004,null,""]
["Marsh Buggy with Drill Rig/Marsh Master/Amphibious ATV",null,null,"each",1006,null,""]
["Marsh Buggy with Drill Rig/Marsh Master/Amphibious ATV - outside 50 mile\nradius of base",null,null,"miles",1005,null,""]
["Marsh Buggy with Drill Rig/Marsh Master/Amphibious ATV Daily\nRate from Section B.2",null,null,"each",null,{"$f":"F121","v":0},""]
["Barge Including Drill Rig, Support Boat Daily Rate from Section B.2",null,null,"each",null,{"$f":"F129","v":0},""]
["Crew Travel Time",null,null,"hours",1007,125,""]
["Per Diem - Breakfast",null,null,"each",1006,{"$f":"BREAKFAST","v":10.1},""]
["Per Diem - Lunch",null,null,"each",1006,{"$f":"LUNCH","v":13.3},""]
["Per Diem - Dinner",null,null,"each",1006,{"$f":"DINNER","v":23.1},""]
["Per Diem - Hotel (LUMP SUM)",null,null,"each",1006,{"$f":"LODGING_LUMP.SUM","v":95},""]
["Per Diem @ Lump Sum Rate",null,null,"days",null,{"$f":"BREAKFAST+LUNCH+DINNER+LODGING_LUMP.SUM","v":141.5},""]
["Sedan Mileage",null,null,"miles",null,{"$f":"SEDAN","v":0.7},""]
["Carryall Mileage",null,null,"miles",null,{"$f":"CARRYALL","v":0.72},""]
["Car Rental",null,null,"days",null,{"$f":"CARRENTAL","v":50},""]
["Car Rental Mileage - Gas for Rental",null,null,"miles",null,{"$f":"GASforRENTAL","v":0.2},""]
[null,null,null,null,1334,null,""]
[null,null,null,null,null,null,""]
[null,null,null,null,1335,null,""]
[null,null,null,null,1336,null,""]
[null,null,null,null,null,null,""]
[null,null,null,null,1337,null,""]
[null,null,null,null,1338,null,""]
[null,null,"Total",{"$f":"SUM(G7:G30)","v":0}]
[]
["Drilling - Truck/ATV/Track"]
["Item",null,"Quantity","Unit","ID","Rate","Total"]
["Auger Borings w/o SPT (not applicable to water)",null,null,"feet",1012,null,{"$f":"IF(ISBLANK(C35),\"\",ROUND(C35*F35,2))","v":""}]
["SPT Borings - 0'-60'",null,null,"feet",1013,null,""]
["SPT Borings - 60'-120'",null,null,"feet",1014,null,""]
["SPT Borings - 120'+",null,null,"each",1015,null,""]
["SPT Extra Drives (interval <5 feet) - 11'-60'",null,null,"each",1016,null,""]
["SPT Extra Drives (interval <5 feet) - 60'-120'",null,null,"each",1016,null,""]
["SPT Extra Drives (interval <5 feet) - 120'+",null,null,"feet",1017,null,""]
["Hard Drilling N>100 BPF - 0'-60'",null,null,"feet",1018,null,""]
["Hard Drilling N>100 BPF - 60'-120'",null,null,"feet",1019,null,""]
["Hard Drilling N>100 BPF - 120'+",null,null,"feet",1020,null,""]
["Installation of 3\" to 4\" Steel Casing w/ SPT - 0'-60'",null,null,"feet",1021,null,""]
["Installation of 3\" to 4\" Steel Casing w/ SPT - 60'-120'",null,null,"feet",1022,null,""]
["Installation of 3\" to 4\" Steel Casing w/ SPT - 120'+",null,null,"feet",1017,null,""]
["Installation of 3\" to 4\" Steel Casing w/o SPT - 0'-60'",null,null,"feet",1018,null,""]
["Installation of 3\" to 4\" Steel Casing w/o SPT - 60'-120'",null,null,"feet",1017,null,""]
["Installation of 3\" to 4\" Steel Casing w/o SPT - 120'+",null,null,"feet",1018,null,""]
["Installation of 3\" to 4\" Steel Casing using casing advancer w/ SPT - 0'-60'",null,null,"feet",1019,null,""]
["Installation of 3\" to 4\" Steel Casing using casing advancer w/ SPT - 60'-120'",null,null,"feet",1020,null,""]
["Installation of 3\" to 4\" Steel Casing using casing advancer w/ SPT - 120'+",null,null,"feet",1021,null,""]
["Installation of 3\" to 4\" Steel Casing using casing advancer w/o SPT - 0'-60'",null,null,"feet",1022,null,""]
["Installation of 3\" to 4\" Steel Casing using casing advancer w/o SPT - 60'-120'",null,null,"feet",1021,null,""]
["Installation of 3\" to 4\" Steel Casing using casing advancer w/o SPT - 120'+",null,null,"feet",1022,null,""]
["Rock Coring N - 0'-60'",null,null,"feet",1017,null,""]
["Rock Coring N - 60'-120'",null,null,"feet",1018,null,""]
["Rock Coring N - 120'+",null,null,"feet",1019,null,""]
["Rock Coring H - 0'-60'",null,null,"feet",1020,null,""]
["Rock Coring H - 60'-120'",null,null,"feet",1021,null,""]
["Rock Coring H - 120'+",null,null,"feet",1022,null,""]
["SPT between core runs - 0'-60'",null,null,"each",1023,null,""]
["SPT between core runs - 60'-120'",null,null,"each",1024,null,""]
["SPT between core runs - 120'+",null,null,"each",1024,null,""]
["Miscellaneous"]
["Backfill borings with bentonite",null,null,"feet",1032,null,""]
["Grouting w/ Portland Cement Slurry",null,null,"feet",1033,null,""]
["Collection of Undisturbed Sample",null,null,"each",1036,null,""]
["Core and Patch Wood & Asphalt Bridge Deck",null,null,"each",1339,null,""]
["Core and Patch Concrete Bridge Deck",null,null,"each",1340,null,""]
[null,null,null,null,null,null,""]
[null,null,null,null,null,null,""]
[null,null,null,null,null,null,""]
[null,null,null,null,1341,null,""]
[null,null,null,null,1342,null,""]
[null,null,null,null,1343,null,""]
[null,null,null,null,1341,null,""]
[null,null,null,null,1342,null,""]
[null,null,null,null,1343,null,""]
[null,null,"Total",{"$f":"SUM(G35:G80)","v":0}]
[]
["Drilling - Marsh Buggy Incl. Marsh Master/Amphibious ATV"]
["Item",null,"Quantity","Unit","ID","Rate","Total"]
["Auger Borings w/o SPT (not applicable to water)",null,null,"feet",1316,null,{"$f":"IF(ISBLANK(C85),\"\",ROUND(C85*F85,2))","v":""}]
["SPT Borings - 0'-60'",null,null,"feet",1317,null,""]
["SPT Borings - 60'-120'",null,null,"feet",1318,null,""]
["SPT Borings - 120'+",null,null,"each",1319,null,""]
["SPT Extra Drives (interval <5 feet) - 11'-60'",null,null,"each",1320,null,""]
["SPT Extra Drives (interval <5 feet) - 60'-120'",null,null,"each",1320,null,""]
["SPT Extra Drives (interval <5 feet) - 120'+",null,null,"feet",1321,null,""]
["Hard Drilling N>100 BPF - 0'-60'",null,null,"feet",1322,null,""]
["Hard Drilling N>100 BPF - 60'-120'",null,null,"feet",1323,null,""]
["Hard Drilling N>100 BPF - 120'+",null,null,"feet",1324,null,""]
["Installation of 3\" to 4\" Steel Casing w/ SPT - 0'-60'",null,null,"feet",1321,null,""]
["Installation of 3\" to 4\" Steel Casing w/ SPT - 60'-120'",null,null,"feet",1322,null,""]
["Installation of 3\" to 4\" Steel Casing w/ SPT - 120'+",null,null,"feet",1323,null,""]
["Installation of 3\" to 4\" Steel Casing w/o SPT - 0'-60'",null,null,"feet",1324,null,""]
["Installation of 3\" to 4\" Steel Casing w/o SPT - 60'-120'",null,null,"feet",1325,null,""]
["Installation of 3\" to 4\" Steel Casing w/o SPT - 120'+",null,null,"feet",1326,null,""]
["Installation of 3\" to 4\" Steel Casing using casing advancer w/ SPT - 0'-60'",null,null,"feet",1321,null,""]
["Installation of 3\" to 4\" Steel Casing using casing advancer w/ SPT - 60'-120'",null,null,"feet",1322,null,""]
["Installation of 3\" to 4\" Steel Casing using casing advancer w/ SPT - 120'+",null,null,"feet",1323,null,""]
["Installation of 3\" to 4\" Steel Casing using casing advancer w/o SPT - 0'-60'",null,null,"feet",1324,null,""]
["Installation of 3\" to 4\" Steel Casing using casing advancer w/o SPT - 60'-120'",null,null,"feet",1325,null,""]
["Installation of 3\" to 4\" Steel Casing using casing advancer w/o SPT - 120'+",null,null,"feet",1326,null,""]
["Rock Coring N - 0'-60'",null,null,"feet",1321,null,""]
["Rock Coring N - 60'-120'",null,null,"feet",1322,null,""]
["Rock Coring N - 120'+",null,null,"feet",1323,null,""]
["Rock Coring H - 0'-60'",null,null,"feet",1324,null,""]
["Rock Coring H - 60'-120'",null,null,"feet",1325,null,""]
["Rock Coring H - 120'+",null,null,"feet",1326,null,""]
["SPT between core runs - 0'-60'",null,null,"each",1327,null,""]
["SPT between core runs - 60'-120'",null,null,"each",1328,null,""]
["SPT between core runs - 120'+",null,null,"each",1328,null,""]
["Miscellaneous"]
["Backfill borings with bentonite",null,null,"feet",1329,null,""]
["Grouting w/ Portland Cement Slurry",null,null,"feet",1332,null,""]
["Collection of Undisturbed Sample",null,null,"each",1333,null,""]
["Daily Rates"]
["Marsh Buggy including Argo/ATV/Marsh Master",null,null,"days",1329,null,""]
["Marsh Buggy including Argo/ATV/Marsh Master - Non-operational Delays",null,null,"days",1332,{"$f":"IF(F121=\"\",\"\",F121/2)","v":""},""]
[null,null,null,null,1342,null,""]
[null,null,null,null,1343,null,{"$f":"IF(ISBLANK(C124),\"\",ROUND(C124*F124,2))","v":""}]
[null,null,"Total",{"$f":"SUM(G85:G124)","v":0}]
[]
["Drilling - Barge Including Drill Rig and Support Boat"]
["Item",null,"Quantity","Unit","ID","Rate","Total"]
["Barge including drill rig & support boat",null,null,"days",1031,null,{"$f":"IF(ISBLANK(C129),\"\",ROUND(C129*F129,2))","v":""}]
["Barge including drill rig & support boat: Non-operational Delays",null,null,"days",1274,{"$f":"IF(F129=\"\",\"\",F129/2)","v":""},""]
[null,null,null,null,1362,null,{"$f":"IF(ISBLANK(C131),\"\",ROUND(C131*F131,2))","v":""}]
[null,null,null,null,1363,null,""]
[null,null,null,null,1362,null,""]
[null,null,null,null,1363,null,""]
[null,null,"Total",{"$f":"SUM(G129:G134)","v":0}]
[]
["Drilling - CPT / Direct Push"]
["Item",null,"Quantity","Unit","ID","Rate","Total"]
["CPT Rig",null,null,"days",1025,null,{"$f":"IF(ISBLANK(C139),\"\",ROUND(C139*F139,2))","v":""}]
["CPT Rig: Non-operational Delays",null,null,"days",1026,{"$f":"IF(F139=\"\",\"\",F139/2)","v":""},""]
["Direct Push Rig",null,null,"days",1027,null,""]
["Direct Push Rig: Non-operational Delays",null,null,"days",1028,{"$f":"IF(F141=\"\",\"\",F141/2)","v":""},""]
["Soundings",null,null,"feet",1029,null,""]
["Seismic Acquisition",null,null,"each",1030,null,""]
["Pore Pressure Dissipation Test",null,null,"hours",1030,null,""]
[null,null,null,null,1360,null,""]
[null,null,null,null,1361,null,""]
[null,null,null,null,1362,null,""]
[null,null,null,null,1363,null,""]
[null,null,"Total",{"$f":"SUM(G139:G149)","v":0}]
[]
["Pavement Design Investigations"]
["Item",null,"Quantity","Unit","ID","Rate","Total"]
["Pavement and Subgrade / Full Depth Reclamation Investigation",null,null,"days",1040,null,{"$f":"IF(ISBLANK(C154),\"\",ROUND(C154*F154,2))","v":""}]
["Pavement and Subgrade / Full Depth Reclamation Investigation",null,null,"nights",1041,null,""]
["Pavement and Subgrade / Full Depth Reclamation Investigation - Non-operational Delays",null,null,"days",1040,{"$f":"IF(F154=\"\",\"\",F154/2)","v":""},""]
["Pavement and Subgrade / Full Depth Reclamation Investigation - Non-operational Delays",null,null,"nights",1041,{"$f":"IF(F155=\"\",\"\",F155/2)","v":""},""]
[null,null,null,null,1366,null,""]
[null,null,null,null,1367,null,""]
[null,null,null,null,1368,null,""]
[null,null,"Total",{"$f":"SUM(G154:G160)","v":0}]
[]
["Investigation Equipment"]
["Item",null,"Quantity","Unit","ID","Rate","Total"]
["Amoozemeter/Guelph Permeameter",null,null,"days",1042,null,{"$f":"IF(ISBLANK(C165),\"\",ROUND(C165*F165,2))","v":""}]
["Coring Machine",null,null,"days",1043,null,""]
["Dilatometer",null,null,"days",1044,null,""]
["Pneumatic Piezometer (0 to 60 ft)",null,null,"days",1045,null,""]
["Pneumatic Piezometer (60+ ft)",null,null,"days",1046,null,""]
["Pneumatic Piezometer Monitor",null,null,"days",1047,null,""]
["Pressuremeter - \"Pencel\"",null,null,"days",1048,null,""]
["Pressuremeter - \"Texam\"",null,null,"days",1049,null,""]
["Truck, Boom",null,null,"hours",1050,null,""]
["Truck, Water",null,null,"days",1051,null,""]
["Vane Shear (ex. Geonor H60, H70)",null,null,"days",1052,null,""]
[null,null,null,null,1369,null,""]
[null,null,null,null,1370,null,""]
[null,null,null,null,1371,null,""]
[null,null,null,null,1372,null,""]
[null,null,null,null,1373,null,""]
[null,null,"Total",{"$f":"SUM(G165:G180)","v":0}]
[]
["Testing Equipment"]
["Item",null,"Quantity","Unit","ID","Rate","Total"]
["Crosshole Sonic Logging Equipment",null,null,"days",1053,null,{"$f":"IF(ISBLANK(C185),\"\",ROUND(C185*F185,2))","v":""}]
["Tomographic Imaging",null,null,"shaft",1054,null,""]
["Thermal Integrity Profiler (TIP) per Shaft",null,null,"shaft",1374,null,""]
["High Strain Dynamic Testing"]
["PDA Equipment",null,null,"days",1055,null,""]
["PDA Equipment",null,null,"weeks",1056,null,""]
["SPT Hammer Energy Measurement - Main Unit and Instrumented Rod",null,null,"days",1275,null,""]
["SPT Hammer Energy Measurement - Main Unit and Instrumented Rod",null,null,"weeks",1276,null,""]
["Saximeter",null,null,"weeks",1277,null,""]
["Low Strain Integrity (SIT/PIT)"]
["SIT/PIT Equipment",null,null,"days",1058,null,""]
["PET (Pulse Echo Tester)",null,null,"days",1059,null,""]
["Drilled Shaft Inspection Device"]
["Mini SID Equipment",null,null,"days",1060,null,""]
["Mini SID Equipment",null,null,"weeks",1061,null,""]
["Rapid Load Test"]
["Rapid Load Test Equipment Preparation (Per Project)",null,null,"each",1062,null,""]
["Rapid Load Test Device - 4 MN (500 Ton)",null,null,"each",1063,null,""]
["Rapid Load Test Device - 14 MN (1600 Ton)",null,null,"each",1064,null,""]
["Rapid Load Test Device - 18 MN (1800 Ton)",null,null,"each",1065,null,""]
["Rapid Load Test Device - 20 MN (2000 Ton)",null,null,"each",1066,null,""]
["Rapid Load Test Device - 40 MN (4500 Ton)",null,null,"each",1067,null,""]
["Rapid Load Test Reload - 4 MN (500 Ton)",null,null,"each",1068,null,""]
["Rapid Load Test Reload - 14 MN (1600 Ton)",null,null,"each",1069,null,""]
["Rapid Load Test Reload - 18 MN (1800 Ton)",null,null,"each",1070,null,""]
["Rapid Load Test Reload - 20 MN (2000 Ton)",null,null,"each",1071,null,""]
["Rapid Load Test Reload - 40 MN (4500 Ton)",null,null,"each",1072,null,""]
["Drop Hammer High Strain Dynamic Test"]
["Drop Hammer High Strain Dynamic Test Equipment Preparation (Per Project)",null,null,"each",1073,null,""]
["Drop Hammer High Strain Dynamic Test - 7.5 Ton",null,null,"days",1074,null,""]
["Drop Hammer High Strain Dynamic Test - 15 Ton",null,null,"days",1075,null,""]
["Drop Hammer High Strain Dynamic Test - 20 Ton",null,null,"days",1076,null,""]
["Drop Hammer High Strain Dynamic Test - 40 Ton",null,null,"days",1077,null,""]
["CAPWAP Analysis",null,null,"each",1078,null,""]
["Static Load Testing"]
["Equipment Preparation (Per Project)",null,null,"each",1079,null,""]
["Data Acquisition System",null,null,"days",1080,null,""]
["Load Cell (500 Ton)",null,null,"tests",1081,null,""]
["Load Cell (1000 Ton)",null,null,"tests",1082,null,""]
["Load Cell (1500 Ton)",null,null,"tests",1083,null,""]
["Load Cell Readout Box",null,null,"tests",1084,null,""]
["LVDT's or VWDT's (3 in travel)",null,null,"tests",1085,null,""]
["LVDT's or VWDT's (6 in travel)",null,null,"tests",1086,null,""]
["LVDT's or VWDT's (12 in travel)",null,null,"tests",1087,null,""]
["LVDT's or VWDT's (30 in travel)",null,null,"tests",1088,null,""]
["Dial Gages (6 in travel - set of 2)",null,null,"tests",1089,null,""]
["Hydraulic Pressure Transducer",null,null,"tests",1090,null,""]
["EL sensors (4 probes)",null,null,"tests",1092,null,""]
["Instrumentation and Data Acquisition"]
["Inclinometer (standard)",null,null,"tests",1091,null,""]
["Data Acquisition System",null,null,"days",1093,null,""]
["Micro-10 Data Logger",null,null,"days",1094,null,""]
["Sisterbar Strain Gage (quarter bridge)",null,null,"each",1095,null,""]
["Sisterbar Strain Gage (full bridge)",null,null,"each",1096,null,""]
["Instrumentation Cable",null,null,"each",1097,null,""]
["Instrumentation Cable",null,null,"feet",1098,null,""]
["Weldable Strain Gage (quarter bridge)",null,null,"each",1099,null,""]
["Weldable Strain Gage (full bridge)",null,null,"each",1100,null,""]
["Low Voltage Welding Unit",null,null,"days",1101,null,""]
["Piezometer Transducer",null,null,"each",1102,null,""]
["Strain Transducer",null,null,"each",1103,null,""]
["Accelerometer Transducer",null,null,"each",1104,null,""]
["EL Tiltimeter",null,null,"days",1105,null,""]
["Vibration Monitoring"]
["Vibration Monitoring Equipment",null,null,"days",1106,null,{"$f":"IF(ISBLANK(C249),\"\",ROUND(C249*F249,2))","v":""}]
["Vibration Monitoring Equipment",null,null,"weeks",1107,null,""]
["Vibration Monitoring Equipment",null,null,"months",1108,null,""]
[null,null,null,null,1375,null,""]
[null,null,null,null,1378,null,""]
[null,null,null,null,1377,null,""]
[null,null,null,null,1378,null,""]
[null,null,null,null,1375,null,""]
[null,null,null,null,1377,null,""]
[null,null,null,null,1378,null,""]
[null,null,"Total",{"$f":"SUM(G185:G258)","v":0}]
[]
["Geoenvironmental"]
["Item",null,"Quantity","Unit","ID","Rate","Total"]
["Geoenvironmental"]
["Bailer, Polyethylene Disposable",null,null,"each",1110,null,{"$f":"IF(ISBLANK(C264),\"\",ROUND(C264*F264,2))","v":""}]
["Bailer, Teflon (decon included)",null,null,"each",1111,null,""]
["Meter, Conductivity",null,null,"days",1114,null,""]
["Meter, Dissolved Oxygen",null,null,"days",1115,null,""]
["Meter, Explosimeter",null,null,"days",1116,null,""]
["Meter, Four Gas",null,null,"days",1117,null,""]
["Meter, Multimeter",null,null,"days",1118,null,""]
["Meter, pH",null,null,"days",1119,null,""]
["Meter, pH/Conductivity",null,null,"days",1120,null,""]
["Meter, pH/Conductivity/Temp",null,null,"days",1121,null,""]
["Meter, Redox (ORP)",null,null,"days",1122,null,""]
["Meter, Temperature",null,null,"days",1123,null,""]
["Meter, Turbidity",null,null,"days",1124,null,""]
["Personal Protection, Level C",null,null,"days",1125,null,""]
["Personal Protection, Level D",null,null,"days",1126,null,""]
["Probe, Oil/Water Interface",null,null,"days",1128,null,""]
["Probe, Water Level",null,null,"days",1129,null,""]
["Pump, Grundfos with Control Box",null,null,"days",1130,null,""]
["Pump, Peristaltic",null,null,"days",1132,null,""]
["Pump, Submersible (2” – 4”)",null,null,"days",1133,null,""]
["Pump, Trash",null,null,"days",1134,null,""]
["Vapor Analyzer, Flame Ionization",null,null,"days",1137,null,""]
["Vapor Analyzer, Photoionization",null,null,"days",null,null,""]
["Vapor Analyzer, Toxic (FID-PID Combo)",null,null,"days",1140,null,""]
["Monitoring Wells"]
["Concrete Pad (Flush or Stickup with manway)",null,null,"each",1143,null,""]
["Type II 2\" Diameter PVC",null,null,"feet",1144,null,""]
["Type II 4\" Diameter PVC",null,null,"feet",1145,null,""]
["Type III 2\" Diameter PVC Inner Casing",null,null,"feet",1146,null,""]
["Type III 4\" Diameter PVC Inner Casing",null,null,"feet",1147,null,""]
["Well Abandonment 1” Diameter",null,null,"feet",1150,null,""]
["Well Abandonment 2\" Diameter",null,null,"feet",1151,null,""]
["Well Abandonment 4\" Diameter",null,null,"feet",1152,null,""]
["Well Abandonment 6\" Diameter",null,null,"feet",1153,null,""]
[null,null,null,null,1379,null,""]
[null,null,null,null,1380,null,""]
[null,null,null,null,1381,null,""]
[null,null,null,null,1382,null,""]
[null,null,null,null,1383,null,""]
[null,null,"Total",{"$f":"SUM(G264:G302)","v":0}]
[]
["Geophysical"]
["Item",null,"Quantity","Unit","ID","Rate","Total"]
["AGI Sting R1 Resistivity Meter with 4 electrodes",null,null,"days",1155,null,{"$f":"IF(ISBLANK(C307),\"\",ROUND(C307*F307,2))","v":""}]
["AGI Sting/Swift Resistivity Imaging System",null,null,"days",1156,null,""]
["AGI Supersting R8 Resistivity Imaging System",null,null,"days",1157,null,""]
["Geode Seismograph",null,null,"days",1158,null,""]
["Geophones and cables",null,null,"days",1159,null,""]
["GPR w/ one antenna",null,null,"days",1160,null,""]
["Metal Detector, Fisher Gemini-3 or equivalent",null,null,"days",1161,null,""]
["Metal Detector, Geonics EM61 Time Domain or equivalent",null,null,"days",1162,null,""]
["Metal Detector, Schonstedt or equivalent",null,null,"days",1163,null,""]
["Resistivity Meter with 4 electrodes",null,null,"days",1166,null,""]
["Seismic Land Streamer",null,null,"days",1167,null,""]
["Terrain Conductivity Unit, Geonics EM34 or equivalent",null,null,"days",1168,null,""]
["Terrain Conductivity Unit, Geonics EM31 or equivalent",null,null,"days",1169,null,""]
[null,null,null,null,1384,null,""]
[null,null,null,null,1385,null,""]
[null,null,null,null,1386,null,""]
[null,null,null,null,1387,null,""]
[null,null,null,null,1388,null,""]
[null,null,"Total",{"$f":"SUM(G307:G324)","v":0}]
[]
["Laboratory Testing"]
["Item",null,"Quantity","Unit","ID","Rate","Total"]
["Tier I Tests"]
["Classification of Soils and Soil-Aggregate Mixtures (AASHTO M 145)\n(AASHTO M 145)",null,null,"each",1170,null,{"$f":"IF(ISBLANK(C330),\"\",ROUND(C330*F330,2))","v":""}]
["Materials Finer than No. 200 Sieve by Washing (AASHTO T 11)",null,null,"each",1171,null,""]
["Sieve Analysis of Fine and Coarse Aggregates (AASHTO T 27)",null,null,"each",1172,null,""]
["Moisture Content of Soils (AASHTO T 265)",null,null,"each",1173,null,""]
["Organic Content by Loss on Ignition (AASHTO T 267)",null,null,"each",1174,null,""]
["pH of Soil (AASHTO T 289)",null,null,"each",1175,null,""]
["Tier II Tests"]
["California Bearing Ratio (AASHTO T 193)",null,null,"each",1176,null,""]
["Moisture-Density Relations of Soils using a 5.5 lb Rammer and a 12-in. Drop / Standard Proctor Compaction Test (AASHTO T 99)",null,null,"each",1177,null,""]
["Moisture-Density Relations of Soils using a 10 lb Rammer and a 18-in. Drop / Modified Proctor Compaction Test (AASHTO T 180 NCMod)",null,null,"each",1389,null,""]
["Specific Gravity of Soils (AASHTO T 100)",null,null,"each",1178,null,""]
["Compressive Strength of Molded Soil-Cement Cylinders (ASTM D1633)",null,null,"each",1179,null,""]
["Compressive Strength of Molded Soil-Lime Cylinders (ASTM D5102)",null,null,"each",1180,null,""]
["Tier III Tests"]
["One-Dimensional Consolidation Properties of Soils (AASHTO T 216)",null,null,"each",1390,null,""]
["Unconsolidated Undrained Compressive Strength of Cohesive Soils in Triaxial Compression w/o Pore Pressure (AASHTO T 296)",null,null,"each",1391,null,""]
["Unconsolidated Undrained Compressive Strength of Cohesive Soils in Triaxial Compression w/ Pore Pressure (AASHTO T 296)",null,null,"each",1391,null,""]
["Remolded Unconsolidated Undrained Compressive Strength of Cohesive Soils in Triaxial Compression w/o Pore Pressure (AASHTO T 296)",null,null,"each",1181,null,""]
["Remolded Unconsolidated Undrained Compressive Strength of Cohesive Soils in Triaxial Compression w/ Pore Pressure (AASHTO T 296)",null,null,"each",1182,null,""]
["Consolidated Undrained Triaxial Compression Test for Cohesive Soils\n(ASTM D4767)",null,null,"each",1183,null,""]
["Remolded Consolidated Undrained Triaxial Compression Test for Cohesive Soils\n(ASTM D4767)",null,null,"each",1184,null,""]
["Unconfined Compressive Strength of Cohesive Soil \n(AASHTO T 208)",null,null,"each",1185,null,""]
["Permeability of Granular Soils (Constant Head) \n(AASHTO T 215)",null,null,"each",1186,null,""]
["Tier IV Tests",null,null,null,null,null,""]
["Compressive Strength of Cylindrical Concrete Specimens (AASHTO T 22)",null,null,"each",1188,null,""]
["Compressive Strength of Hydraulic Cement Mortar (using 50-mm or 2-in. Cube Specimens)\n(AASHTO T 106)",null,null,"each",1189,null,""]
["Rock Tests"]
["Compressive Strength and Elastic Moduli of Intact Rock Core Specimens Under Varying States of Stress and Temperatures (ASTM D7012)"]
["  Method A",null,null,"each",1190,null,""]
["  Method B",null,null,"each",1191,null,""]
["  Method C",null,null,"each",1192,null,""]
["  Method D",null,null,"each",1193,null,""]
["Splitting Tensile Strength of Intact Rock Core Specimens (ASTM D3967)",null,null,"each",1194,null,""]
[null,null,null,null,1393,null,{"$f":"IF(ISBLANK(C363),\"\",ROUND(C363*F363,2))","v":""}]
[null,null,null,null,1393,null,""]
[null,null,"Total",{"$f":"SUM(G330:G364)","v":0}]
[]
["Miscellaneous"]
["Item",null,"Quantity","Unit","ID","Rate","Total"]
["Crew Time",null,null,"hours",1195,245,{"$f":"IF(ISBLANK(C369),\"\",ROUND(C369*F369,2))","v":""}]
[null,null,null,null,1394,null,""]
[null,null,null,null,1395,null,""]
[null,null,null,null,1396,null,""]
[null,null,null,null,1397,null,""]
[null,null,null,null,1398,null,""]
[null,null,null,null,1399,null,""]
[null,null,null,null,1400,null,""]
[null,null,null,null,1401,null,""]
[null,null,null,null,1402,null,""]
[null,null,null,null,1403,null,""]
[null,null,null,null,1394,null,""]
[null,null,null,null,1395,null,""]
[null,null,null,null,1396,null,""]
[null,null,null,null,1397,null,""]
[null,null,null,null,1398,null,""]
[null,null,null,null,1399,null,""]
[null,null,null,null,1400,null,""]
[null,null,null,null,1401,null,""]
[null,null,null,null,1402,null,""]
[null,null,null,null,1403,null,""]
[null,null,null,null,1394,null,""]
[null,null,null,null,1395,null,""]
[null,null,null,null,1396,null,""]
[null,null,null,null,1397,null,""]
[null,null,null,null,1398,null,""]
[null,null,null,null,1399,null,""]
[null,null,null,null,1400,null,""]
[null,null,null,null,1401,null,""]
[null,null,null,null,1402,null,""]
[null,null,null,null,1403,null,""]
[null,null,null,null,1394,null,""]
[null,null,null,null,1395,null,""]
[null,null,null,null,1396,null,""]
[null,null,null,null,1397,null,""]
[null,null,null,null,1398,null,""]
[null,null,null,null,1399,null,""]
[null,null,null,null,1400,null,""]
[null,null,null,null,1401,null,""]
[null,null,null,null,1402,null,""]
[null,null,null,null,1403,null,""]
[null,null,"Total",{"$f":"SUM(G369:G409)","v":0}]

{"sheet":"Hydraulics-Sub1","index":100,"n_rows":194,"n_cols":24,"rows_kept":194,"cut":false,"hidden":true,"merged":[[166,1,166,2],[166,16,166,22],[167,1,167,2],[167,16,171,22],[180,2,180,3],[116,2,116,4],[134,1,135,1],[134,3,135,4],[163,16,164,22],[165,1,165,2],[165,16,165,22],[13,14,15,14],[3,2,3,3],[4,2,4,3],[4,17,4,20],[5,2,5,3],[5,17,5,20],[6,2,6,3],[7,2,7,4],[8,2,8,8],[9,2,9,8],[13,2,13,12],[13,13,15,13]]}
[]
[null,"HYDRAULICS DESIGN ESTIMATE - SUB 1"]
[]
[null,"DATE:",{"$f":"IF(SCOPE.MANDAY.ESTIMATE.PREPARED.BY.DATE=\"\",\"\",SCOPE.MANDAY.ESTIMATE.PREPARED.BY.DATE)","v":""}]
[null,"TIP:",{"$f":"TIP.NUMBER","v":0},null,null,null,null,"ESTIMATE TYPE:",{"$f":"IF('OVERALL SUMMARY'!F232=\"Supplemental Agreement\",\"Supplemental Estimate\",\"Project Estimate\")","v":"Project Estimate"},null,null,null,null,null,null,null,null,"<==== check if for project estimate"]
[null,"COUNTY:",{"$f":"COUNTY","v":0},null,null,null,null,"SUPPLEMENTAL NUMBER",null,null,null,null,null,null,null,null,null,"<==== put est. # if supplemental est."]
[null,"COMPILED BY:",{"$f":"IF(SCOPE.MANDAY.ESTIMATE.PREPARED.BY=\"\",\"\",SCOPE.MANDAY.ESTIMATE.PREPARED.BY)","v":""},null,null,null,null,"CONTRACT NUMBER",{"$f":"CONTRACT.NUM","v":0}]
[null,"CONSULTANT:",{"$f":"HYDRAULICS_SUB1_CONSULTANT_NAME","v":"CONSULTANT NAME"}]
[null,"PROJECT DESCRIPTION:",{"$f":"IF(PROJECT.DESCRIPTION=\"\",\"\",PROJECT.DESCRIPTION)","v":""}]
[null,"PROJECT SCOPE:",{"$f":"IF(TASK.ORDER_SCOPE=\"\",\"\",TASK.ORDER_SCOPE)","v":"PM-Project Mgmt"}]
[]
[]
[]
[null,null,"ESTIMATED WORKHOURS",null,null,null,null,null,null,null,null,null,null,"TOTAL","NOTES"]
[null,"EMPLOYEE",{"$f":"IF('PEF CLASSIFICATION SHEET'!D824=\"\",\"\",LEFT('PEF CLASSIFICATION SHEET'!D824,4))","v":""},{"$f":"IF('PEF CLASSIFICATION SHEET'!D825=\"\",\"\",LEFT('PEF CLASSIFICATION SHEET'!D825,4))","v":""},{"$f":"IF('PEF CLASSIFICATION SHEET'!D826=\"\",\"\",LEFT('PEF CLASSIFICATION SHEET'!D826,4))","v":""},{"$f":"IF('PEF CLASSIFICATION SHEET'!D827=\"\",\"\",LEFT('PEF CLASSIFICATION SHEET'!D827,4))","v":""},{"$f":"IF('PEF CLASSIFICATION SHEET'!D828=\"\",\"\",LEFT('PEF CLASSIFICATION SHEET'!D828,4))","v":""},{"$f":"IF('PEF CLASSIFICATION SHEET'!D829=\"\",\"\",LEFT('PEF CLASSIFICATION SHEET'!D829,4))","v":""},{"$f":"IF('PEF CLASSIFICATION SHEET'!D830=\"\",\"\",LEFT('PEF CLASSIFICATION SHEET'!D830,4))","v":""},{"$f":"IF('PEF CLASSIFICATION SHEET'!D831=\"\",\"\",LEFT('PEF CLASSIFICATION SHEET'!D831,4))","v":""},{"$f":"IF('PEF CLASSIFICATION SHEET'!D832=\"\",\"\",LEFT('PEF CLASSIFICATION SHEET'!D832,4))","v":""},{"$f":"IF('PEF CLASSIFICATION SHEET'!D833=\"\",\"\",LEFT('PEF CLASSIFICATION SHEET'!D833,4))","v":""},{"$f":"IF('PEF CLASSIFICATION SHEET'!D834=\"\",\"\",LEFT('PEF CLASSIFICATION SHEET'!D834,4))","v":""}]
[null,"TASKS                                                        CLASSIFICATION",{"$f":"IF('PEF CLASSIFICATION SHEET'!C824=\"\",\"\",'PEF CLASSIFICATION SHEET'!C824)","v":"ESA"},{"$f":"IF('PEF CLASSIFICATION SHEET'!C825=\"\",\"\",'PEF CLASSIFICATION SHEET'!C825)","v":"EA"},{"$f":"IF('PEF CLASSIFICATION SHEET'!C826=\"\",\"\",'PEF CLASSIFICATION SHEET'!C826)","v":"EJ"},{"$f":"IF('PEF CLASSIFICATION SHEET'!C827=\"\",\"\",'PEF CLASSIFICATION SHEET'!C827)","v":"EC"},{"$f":"IF('PEF CLASSIFICATION SHEET'!C828=\"\",\"\",'PEF CLASSIFICATION SHEET'!C828)","v":"ETJ"},{"$f":"IF('PEF CLASSIFICATION SHEET'!C829=\"\",\"\",'PEF CLASSIFICATION SHEET'!C829)","v":"ETC"},{"$f":"IF('PEF CLASSIFICATION SHEET'!C830=\"\",\"\",'PEF CLASSIFICATION SHEET'!C830)","v":""},{"$f":"IF('PEF CLASSIFICATION SHEET'!C831=\"\",\"\",'PEF CLASSIFICATION SHEET'!C831)","v":""},{"$f":"IF('PEF CLASSIFICATION SHEET'!C832=\"\",\"\",'PEF CLASSIFICATION SHEET'!C832)","v":""},{"$f":"IF('PEF CLASSIFICATION SHEET'!C833=\"\",\"\",'PEF CLASSIFICATION SHEET'!C833)","v":""},{"$f":"IF('PEF CLASSIFICATION SHEET'!C834=\"\",\"\",'PEF CLASSIFICATION SHEET'!C834)","v":""}]
[null,"2PEF",null,null,null,null,null,null,null,null,null,null,null,0]
["2HY1","Develop Preliminary Hydraulic Recommendations",null,null,null,null,null,null,null,null,null,null,null,"-"]
[1," Hydraulic Planning Report",null,null,null,null,null,null,null,null,null,null,null,"-"]
["Subtask","Research and Data Collection ",null,null,null,null,null,null,null,null,null,null,null,{"$f":"(SUM(C20:M20))/8","v":0},null,null,null,null,null,null,null,null,null,"Y"]
["Subtask","Hydraulics Field Review ",null,null,null,null,null,null,null,null,null,null,null,0,null,null,null,null,null,null,null,null,null,"N"]
["Subtask","Preliminary Design Calculations and Structure Sizing",null,null,null,null,null,null,null,null,null,null,null,0]
["Subtask","Prepare Hydraulics Planning Report",null,null,null,null,null,null,null,null,null,null,null,0]
["Subtask","Preliminary Hydroplaning Assessment",null,null,null,null,null,null,null,null,null,null,null,0]
[2,"Preliminary Stormwater Management Plan",null,null,null,null,null,null,null,null,null,null,null,0]
[3,"NEPA/Section 404 Merger Support",null,null,null,null,null,null,null,null,null,null,null,0]
[4,"Task Management",null,null,null,null,null,null,null,null,null,null,null,0]
[5,"Complete QC Procedures ",null,null,null,null,null,null,null,null,null,null,null,0]
[null,"Other Tasks:",null,null,null,null,null,null,null,null,null,null,null,0]
[null,null,null,null,null,null,null,null,null,null,null,null,null,0]
[null,null,null,null,null,null,null,null,null,null,null,null,null,0]
[null,null,null,null,null,null,null,null,null,null,null,null,null,0]
[null,null,null,null,null,null,null,null,null,null,null,null,null,0]
[null,"2PEF SUBTOTAL",{"$f":"SUM(C19:C33)","v":0},{"$f":"SUM(D19:D33)","v":0},0,0,0,0,0,0,0,0,0,null,null,{"$f":"SUM(C34:M34)/8","v":0}]
[null,null,null,null,null,null,null,null,null,null,null,null,null,null,null,"WORKDAYS"]
[null,"3PEF",null,null,null,null,null,null,null,null,null,null,null,"-"]
["2HY2","Complete Drainage for Field Inspection ",null,null,null,null,null,null,null,null,null,null,null,"-"]
[1,"Review and provide comments on Design Recommendations Plan Set(s)",null,null,null,null,null,null,null,null,null,null,null,"-"]
["Subtask","Review/provide comments on Design Recommendations Plan Set(s)",null,null,null,null,null,null,null,null,null,null,null,{"$f":"(SUM(C39:M39))/8","v":0}]
["Subtask","Final Hydroplaning Assessment",null,null,null,null,null,null,null,null,null,null,null,0]
[2,"Hydraulics Pre-Design Meeting",null,null,null,null,null,null,null,null,null,null,null,0]
[3,"Field Reconnaissance and Survey",null,null,null,null,null,null,null,null,null,null,null,"-"]
["Subtask","Bridges (0) ",null,null,null,null,null,null,null,null,null,null,null,0]
["Subtask","Box Culverts  (0)",null,null,null,null,null,null,null,null,null,null,null,0]
["Subtask","Pipe Drainage, Ditches -L-",null,null,null,null,null,null,null,null,null,null,null,0]
["Subtask","Pipe Drainage, Ditches -Y-",null,null,null,null,null,null,null,null,null,null,null,0]
["Subtask","Travel",null,null,null,null,null,null,null,null,null,null,null,0]
[4,"Hydraulic Design Report(s) ",null,null,null,null,null,null,null,null,null,null,null,"-"]
["Subtask","Bridges (0) ",null,null,null,null,null,null,null,null,null,null,null,0]
["Subtask","Box Culverts with a Model (0)",null,null,null,null,null,null,null,null,null,null,null,{"$f":"(SUM(C50:M50))/8","v":0}]
["Subtask","Box Culverts without a Model (0)",null,null,null,null,null,null,null,null,null,null,null,0]
["Subtask","Detour structures",null,null,null,null,null,null,null,null,null,null,null,0]
[5,"Merger CP 4B Support and Meeting (Preliminary Hydraulic Design Review)",null,null,null,null,null,null,null,null,null,null,null,0]
[6,"Redline Drainage Plans for Field Inspection",null,null,null,null,null,null,null,null,null,null,null,"-"]
["Subtask","Pipes, Storm Drainage , Ditches -L-",null,null,null,null,null,null,null,null,null,null,null,0]
["Subtask","Pipes, Storm  Drainage , Ditches -Y-",null,null,null,null,null,null,null,null,null,null,null,0]
["Subtask","Temporary Drainage",null,null,null,null,null,null,null,null,null,null,null,0]
["Subtask","Outlet Analysis (0)",null,null,null,null,null,null,null,null,null,null,null,0]
["Subtask","Design of Structural BMPs",null,null,null,null,null,null,null,null,null,null,null,0]
["Subtask","CADD",null,null,null,null,null,null,null,null,null,null,null,0]
[7,"Field Inspection",null,null,null,null,null,null,null,null,null,null,null,0]
[8,"Coordinate Railroad Drainage Design",null,null,null,null,null,null,null,null,null,null,null,0]
[9,"Task Management",null,null,null,null,null,null,null,null,null,null,null,0]
[10,"Complete QC Procedures ",null,null,null,null,null,null,null,null,null,null,null,0]
[null,"Other Tasks:",null,null,null,null,null,null,null,null,null,null,null,0]
[null,null,null,null,null,null,null,null,null,null,null,null,null,0]
[null,null,null,null,null,null,null,null,null,null,null,null,null,0]
[null,null,null,null,null,null,null,null,null,null,null,null,null,0]
[null,null,null,null,null,null,null,null,null,null,null,null,null,0]
[null,null,null,null,null,null,null,null,null,null,null,null,null,0]
[null,null,null,null,null,null,null,null,null,null,null,null,null,0]
[null,null,null,null,null,null,null,null,null,null,null,null,null,0]
[null,null,null,null,null,null,null,null,null,null,null,null,null,0]
[null,null,null,null,null,null,null,null,null,null,null,null,null,{"$f":"(SUM(C74:M74))/8","v":0}]
[null,null,null,null,null,null,null,null,null,null,null,null,null,0]
[null,null,null,null,null,null,null,null,null,null,null,null,null,0]
[null,null,null,null,null,null,null,null,null,null,null,null,null,0]
[null,null,null,null,null,null,null,null,null,null,null,null,null,0]
[null,null,null,null,null,null,null,null,null,null,null,null,null,0]
[null,null,null,null,null,null,null,null,null,null,null,null,null,0]
[null,null,null,null,null,null,null,null,null,null,null,null,null,0]
[null,null,null,null,null,null,null,null,null,null,null,null,null,0]
[null,null,null,null,null,null,null,null,null,null,null,null,null,0]
[null,"3PEF SUBTOTAL",{"$f":"SUM(C38:C83)","v":0},0,0,0,0,{"$f":"SUM(H38:H83)","v":0},{"$f":"SUM(I38:I83)","v":0},0,0,0,0,null,null,{"$f":"SUM(C84:M84)/8","v":0}]
[null,null,null,null,null,null,null,null,null,null,null,null,null,null,null,"WORKDAYS"]
[null,"4PEF",null,null,null,null,null,null,null,null,null,null,null,"-"]
["3HY1"," Complete Hydraulic Design ",null,null,null,null,null,null,null,null,null,null,null,"-"]
[1,"Complete Final Drainage Design",null,null,null,null,null,null,null,null,null,null,null,{"$f":"(SUM(C88:M88))/8","v":0}]
[2,"FEMA Compliance Packages - SFCs (0) CLOMRs (0)",null,null,null,null,null,null,null,null,null,null,null,0]
[3,"Hydraulic Summary Sheet(s) ",null,null,null,null,null,null,null,null,null,null,null,0]
[4,"Stormwater Management Plan",null,null,null,null,null,null,null,null,null,null,null,0]
[5,"Environmental Permit Drawing Package",null,null,null,null,null,null,null,null,null,null,null,0]
[6,"Merger CP 4C Meeting",null,null,null,null,null,null,null,null,null,null,null,0]
[7,"Task Management",null,null,null,null,null,null,null,null,null,null,null,0]
[8,"Complete QC Procedures  ",null,null,null,null,null,null,null,null,null,null,null,0]
[null,"Other Tasks:",null,null,null,null,null,null,null,null,null,null,null,0]
[null,null,null,null,null,null,null,null,null,null,null,null,null,{"$f":"(SUM(C97:M97))/8","v":0}]
[null,null,null,null,null,null,null,null,null,null,null,null,null,0]
[null,null,null,null,null,null,null,null,null,null,null,null,null,0]
[null,null,null,null,null,null,null,null,null,null,null,null,null,0]
[null,null,null,null,null,null,null,null,null,null,null,null,null,0]
[null,null,null,null,null,null,null,null,null,null,null,null,null,0]
[null,null,null,null,null,null,null,null,null,null,null,null,null,0]
[null,null,null,null,null,null,null,null,null,null,null,null,null,0]
["4HY1","Complete Open Hydraulic Tasks ",null,null,null,null,null,null,null,null,null,null,null,"-"]
[null,"Other Tasks:",null,null,null,null,null,null,null,null,null,null,null,0]
[null,null,null,null,null,null,null,null,null,null,null,null,null,0]
[null,null,null,null,null,null,null,null,null,null,null,null,null,0]
[null,null,null,null,null,null,null,null,null,null,null,null,null,0]
[null,null,null,null,null,null,null,null,null,null,null,null,null,0]
[null,null,null,null,null,null,null,null,null,null,null,null,null,0]
[null,null,null,null,null,null,null,null,null,null,null,null,null,0]
[null,"4PEF SUBTOTAL",{"$f":"SUM(C87:C112)","v":0},0,0,0,0,0,0,0,0,0,0,null,null,{"$f":"SUM(C113:M113)/8","v":0}]
[null,null,null,null,null,null,null,null,null,null,null,null,null,null,null,"WORKDAYS"]
[null,"2PEF, 3PEF, 4PEF SUBTOTAL",{"$f":"C113+C84+C34","v":0},{"$f":"D113+D84+D34","v":0},0,0,0,0,0,0,0,0,0,null,null,{"$f":"SUM(C115:M115)/8","v":0}]
[null,null,null,null,null,null,null,null,null,null,null,null,null,null,null,"WORKDAYS"]
[null,"REVIEW AND REWORK  R/W & FINAL PLAN DEVELOPMENT (Phase 3 & 4)","PERCENT FOR REVIEW AND REWORK",null,null,0]
[null,"Review and Rework",{"$f":"ROUND(C115*$F$117,0)","v":0},0,0,0,0,0,0,0,0,0,0,{"$f":"IF(F117=0,0,\"\")","v":0},null,"WORKDAYS"]
[null,"TOTAL WORKHOURS:",{"$f":"C118+C115","v":0},{"$f":"D118+D115","v":0},{"$f":"E118+E115","v":0},0,0,0,0,0,0,0,{"$f":"M118+M115","v":0},null,{"$f":"SUM(C119:M119)","v":0},{"$f":"SUM(C119:M119)/8","v":0}]
[null,"TOTAL WORKDAYS:",{"$f":"C119/8","v":0},{"$f":"D119/8","v":0},0,0,0,0,0,0,0,0,0]
[null,"HOURLY SALARY RATE:",{"$f":"IF('PEF CLASSIFICATION SHEET'!E824=\"\",0,'PEF CLASSIFICATION SHEET'!E824)","v":0},{"$f":"IF('PEF CLASSIFICATION SHEET'!E825=\"\",0,'PEF CLASSIFICATION SHEET'!E825)","v":0},{"$f":"IF('PEF CLASSIFICATION SHEET'!E826=\"\",0,'PEF CLASSIFICATION SHEET'!E826)","v":0},{"$f":"IF('PEF CLASSIFICATION SHEET'!E827=\"\",0,'PEF CLASSIFICATION SHEET'!E827)","v":0},{"$f":"IF('PEF CLASSIFICATION SHEET'!E828=\"\",0,'PEF CLASSIFICATION SHEET'!E828)","v":0},{"$f":"IF('PEF CLASSIFICATION SHEET'!E829=\"\",0,'PEF CLASSIFICATION SHEET'!E829)","v":0},{"$f":"IF('PEF CLASSIFICATION SHEET'!E830=\"\",0,'PEF CLASSIFICATION SHEET'!E830)","v":0},{"$f":"IF('PEF CLASSIFICATION SHEET'!E831=\"\",0,'PEF CLASSIFICATION SHEET'!E831)","v":0},{"$f":"IF('PEF CLASSIFICATION SHEET'!E832=\"\",0,'PEF CLASSIFICATION SHEET'!E832)","v":0},{"$f":"IF('PEF CLASSIFICATION SHEET'!E833=\"\",0,'PEF CLASSIFICATION SHEET'!E833)","v":0},{"$f":"IF('PEF CLASSIFICATION SHEET'!E834=\"\",0,'PEF CLASSIFICATION SHEET'!E834)","v":0}]
[null,"RATES PER DAY:",{"$f":"C121*8","v":0},0,0,0,0,0,0,0,0,0,0]
[null,"PAYROLL BURDEN:",{"$f":"C120*C122","v":0},{"$f":"D120*D122","v":0},0,0,0,0,0,0,0,0,0]
[null,"TOTAL WORKDAYS:",null,{"$f":"SUM(C120:M120)","v":0}]
[null,"TOTAL PAYROLL BURDEN:",null,{"$f":"SUM(C123:M123)","v":0}]
[null,"AVERAGE COST PER HOUR:",null,{"$f":"SUM(D125/(D124*8))","v":{"$error":"#DIV/0!"}}]
[null,"COST PER WORKDAY:",null,{"$f":"HYDRAULICS_SUB1_SALARY_TOTAL/HYDRAULICS_SUB1_MANDAYS","v":{"$error":"#DIV/0!"}}]
[null,"GENERAL OVERHEAD:",{"$f":"HYDRAULICS_SUB1_CONSULTANT_OVERHEAD","v":0},{"$f":"SUM(D125*C128)","v":0}]
[null,"SUBTOTAL:",null,{"$f":"SUM(D125+D128)","v":0}]
[null,"COMPARATIVE FEE:",{"$f":"HYDRAULICS_SUB1_CONSULTANT_FEE","v":0.09},{"$f":"SUM(D129*C130)","v":0}]
[null,"FACILITIES COST OF CAPITAL:",{"$f":"HYDRAULICS_SUB1_CONSULTANT_COSTofCAPITAL","v":0},{"$f":"SUM(D125*C131)","v":0}]
[null,"TOTAL DIRECT AND INDIRECT SALARY COST:",null,{"$f":"SUM(D129:D131)","v":0}]
[null,"DIRECT EXPENSES:",null,{"$f":"HYDRAULICS_SUB1_DIRECT_NONSALARY_TOTAL","v":0}]
[]
[null,"HYDRAULICS GRAND TOTAL:",null,{"$f":"SUM(D132:D134)","v":0}]
[]
[]
[]
[]
[]
[]
[]
[]
[]
[]
[]
[]
[]
[]
[]
[]
[]
[]
[]
[]
[]
[]
[]
[]
[null,null,"TIP:",{"$f":"C5","v":0},null,"Date:",{"$f":"C4","v":""}]
[]
[null,"TRAVEL EXPENSE:"]
[]
[null,"MILEAGE:",null,"# field trips",0,"# meeting trips",0,"# local trips",0,null,null,null,null,null,null,null,"<====== These fields are to calculate total miles for each type below.   <====== All miles are one way."]
[null,null,null,"Miles to site\n(one way)",0,"Miles to meeting\n(one way)",0,"Local Miles \n(one way)",0]
[null,"Carryall (survey trip)",null,{"$f":"CARRYALL","v":0.72},"(per mile) X",{"$f":"E164*E165*2","v":0},"Miles =",{"$f":"D166*F166","v":0},null,null,null,null,null,null,null,null,"<====== use carryall for field work"]
[null,"Sedan (meeting trip)",null,{"$f":"SEDAN","v":0.7},"(per mile) X",{"$f":"G164*G165*2","v":0},"Miles =",{"$f":"D167*F167","v":0},null,null,null,null,null,null,null,null,"<====== use sedan for meetings,plan field inspections etc."]
[null,"Sedan (Local Mileage)",null,{"$f":"SEDAN","v":0.7},"(per mile) X",{"$f":"I164*I165*2","v":0},"Miles =",0,null,null,null,null,null,null,null,null,"<====== local mileage from our office to their office (deliveries, informal meetings etc. "]
[]
[]
[]
[null,"PER DIEM EXPENSE:"]
[null,"LODGING + MEALS (BREAKFAST, LUNCH, DINNER)",null,"# of People X",{"$f":"BREAKFAST+LUNCH+DINNER+(IF('OVERALL SUMMARY'!I232=\"COST PLUS\",LODGING_COST.PLUS,LODGING_LUMP.SUM))","v":141.5},"(per day) X",null,"# of Days =",{"$f":"E173*G173*C173","v":0}]
[null,"BREAKFAST",null,"# of People X",{"$f":"BREAKFAST","v":10.1},"(per day) X",null,"# of Days =",{"$f":"E174*G174*C174","v":0}]
[null,"LUNCH",null,"# of People X",{"$f":"LUNCH","v":13.3},"(per day) X",null,"# of Days =",{"$f":"E175*G175*C175","v":0}]
[null,"DINNER",null,"# of People X",{"$f":"DINNER","v":23.1},"(per day) X",null,"# of Days =",{"$f":"E176*G176*C176","v":0}]
[null,"LODGING",null,"# of People X",{"$f":"LODGING_LUMP.SUM","v":95},"(per day) X",null,"# of Days =",{"$f":"E177*G177*C177","v":0}]
[]
[]
[]
[null,"MISCELLANEOUS EXPENSES:"]
[null,"Description","Quantity","Unit of Measure",null,"Cost Per Unit"]
[null,null,null,null,"X",null,"=",{"$f":"C183*F183","v":0}]
[null,null,null,null,"X",null,"=",{"$f":"C184*F184","v":0}]
[null,null,null,null,"X",null,"=",{"$f":"C185*F185","v":0}]
[null,null,null,null,"X",null,"=",{"$f":"C186*F186","v":0}]
[null,null,null,null,"X",null,"=",{"$f":"C187*F187","v":0}]
[null,"Total Miscellaneous Expenses",null,null,null,null,null,{"$f":"SUM(H183:H187)","v":0}]
[]
[]
[null,"SUBTOTAL:",null,null,null,null,{"$f":"SUM(H166,H167,H168,I173:I177,H188)","v":0}]
[]
[]
[null,"    PROJECT ESTIMATE TOTAL:",null,null,null,{"$f":"D132+G191","v":0}]

{"sheet":"IM-PublicTransp-Sub1","index":101,"n_rows":135,"n_cols":27,"rows_kept":135,"cut":false,"hidden":true,"merged":[[0,0,1,13],[2,1,2,4],[2,6,2,7],[2,10,2,11],[2,15,2,16],[3,1,3,4],[3,6,3,7],[3,10,3,11],[3,15,3,16],[6,12,9,12],[6,13,9,13],[6,14,9,14],[6,15,9,15],[6,16,9,16],[6,17,9,17],[4,3,4,22],[6,3,9,3],[6,4,9,4],[6,5,9,5],[6,6,9,6],[6,7,9,7],[6,8,9,8],[6,9,9,9],[6,10,9,10],[6,11,9,11],[10,26,10,27],[11,26,11,27],[12,26,12,27],[13,26,13,27],[14,26,14,27],[15,26,15,27],[6,18,9,18],[6,19,9,19],[6,20,9,20],[6,21,9,21],[6,22,9,22],[8,26,8,27],[22,26,22,27],[23,26,23,27],[24,26,24,27],[25,26,25,27],[26,26,26,27],[27,26,27,27],[16,26,16,27],[17,26,17,27],[18,26,18,27],[19,26,19,27],[20,26,20,27],[21,26,21,27],[34,26,34,27],[35,26,35,27],[36,26,36,27],[37,26,37,27],[38,26,38,27],[39,26,39,27],[28,26,28,27],[29,26,29,27],[30,26,30,27],[31,26,31,27],[32,26,32,27],[33,26,33,27],[46,26,46,27],[47,26,47,27],[48,26,48,27],[49,26,49,27],[50,26,50,27],[51,26,51,27],[40,26,40,27],[41,26,41,27],[42,26,42,27],[43,26,43,27],[44,26,44,27],[45,26,45,27],[58,26,58,27],[59,26,59,27],[60,26,60,27],[61,26,61,27],[62,26,62,27],[63,26,63,27],[52,26,52,27],[53,26,53,27],[54,26,54,27],[55,26,55,27],[56,26,56,27],[57,26,57,27],[70,26,70,27],[71,26,71,27],[72,26,72,27],[73,26,73,27],[74,26,74,27],[75,26,75,27],[64,26,64,27],[65,26,65,27],[66,26,66,27],[67,26,67,27],[68,26,68,27],[69,26,69,27],[82,26,82,27],[83,26,83,27],[84,26,84,27],[85,26,85,27],[86,26,86,27],[87,26,87,27],[76,26,76,27],[77,26,77,27],[78,26,78,27],[79,26,79,27],[80,26,80,27],[81,26,81,27],[94,26,94,27],[95,26,95,27],[96,26,96,27],[97,26,97,27],[98,26,98,27],[99,26,99,27],[88,26,88,27],[89,26,89,27],[90,26,90,27],[91,26,91,27],[92,26,92,27],[93,26,93,27],[106,26,106,27],[107,26,107,27],[108,26,108,27],[109,26,109,27],[110,26,110,27],[111,26,111,27],[100,26,100,27],[101,26,101,27],[102,26,102,27],[103,26,103,27],[104,26,104,27],[105,26,105,27],[118,26,118,27],[119,26,119,27],[134,1,135,1],[134,3,135,4],[138,3,138,6],[138,8,138,13],[112,26,112,27],[113,26,113,27],[114,26,114,27],[115,26,115,27],[116,26,116,27],[117,26,117,27],[145,8,145,9],[145,10,145,11],[139,8,139,9],[139,10,139,11],[140,8,140,9],[140,10,140,11],[143,8,143,13],[144,8,144,9],[144,10,144,11]]}
["PUBLIC TRANSPORTATION--BREAKDOWN WORKSHEET - SUBCONSULTANT 1 -- ENTER WORKHOURS"]
[]
["PROJECT DESCRIPTION: ",{"$f":"PROJECT.DESCRIPTION","v":0},null,null,null,"FIRM:  ",{"$f":"PUBLIC.TRANSPORTATION.SUB1_CONSULTANT_NAME","v":"CONSULTANT NAME"},null,"TASK ORDER NUMBER:",null,{"$f":"TASK.ORDER.NUMBER","v":0},null,"DATE PREPARED:",{"$f":"IF(SCOPE.MANDAY.ESTIMATE.PREPARED.BY.DATE=\"\",\"\",SCOPE.MANDAY.ESTIMATE.PREPARED.BY.DATE)","v":""}]
["PREPARED BY:  ",{"$f":"IF(SCOPE.MANDAY.ESTIMATE.PREPARED.BY=\"\",\"\",SCOPE.MANDAY.ESTIMATE.PREPARED.BY)","v":""},null,null,null,"TIP NUMBER:",{"$f":"TIP.NUMBER","v":0},null,"WBS NUMBER:",null,{"$f":"WBS.NUMBER","v":""},null,"REVISION DATE:",{"$f":"IF(SCOPE.MANDAY.ESTIMATE.APPROVED.BY.DATE=\"\",\"\",SCOPE.MANDAY.ESTIMATE.APPROVED.BY.DATE)","v":""}]
[null,null,null,"ESTIMATED WORKHOURS"]
[null,null,"EMPLOYEE NAMES",{"$f":"IF('PEF CLASSIFICATION SHEET'!D837=\"\",\"\",LEFT('PEF CLASSIFICATION SHEET'!D837,4))","v":""},{"$f":"IF('PEF CLASSIFICATION SHEET'!D838=\"\",\"\",LEFT('PEF CLASSIFICATION SHEET'!D838,4))","v":""},{"$f":"IF('PEF CLASSIFICATION SHEET'!D839=\"\",\"\",LEFT('PEF CLASSIFICATION SHEET'!D839,4))","v":""},{"$f":"IF('PEF CLASSIFICATION SHEET'!D840=\"\",\"\",LEFT('PEF CLASSIFICATION SHEET'!D840,4))","v":""},{"$f":"IF('PEF CLASSIFICATION SHEET'!D841=\"\",\"\",LEFT('PEF CLASSIFICATION SHEET'!D841,4))","v":""},{"$f":"IF('PEF CLASSIFICATION SHEET'!D842=\"\",\"\",LEFT('PEF CLASSIFICATION SHEET'!D842,4))","v":""},{"$f":"IF('PEF CLASSIFICATION SHEET'!D843=\"\",\"\",LEFT('PEF CLASSIFICATION SHEET'!D843,4))","v":""},{"$f":"IF('PEF CLASSIFICATION SHEET'!D844=\"\",\"\",LEFT('PEF CLASSIFICATION SHEET'!D844,4))","v":""},{"$f":"IF('PEF CLASSIFICATION SHEET'!D845=\"\",\"\",LEFT('PEF CLASSIFICATION SHEET'!D845,4))","v":""},{"$f":"IF('PEF CLASSIFICATION SHEET'!D846=\"\",\"\",LEFT('PEF CLASSIFICATION SHEET'!D846,4))","v":""},{"$f":"IF('PEF CLASSIFICATION SHEET'!D847=\"\",\"\",LEFT('PEF CLASSIFICATION SHEET'!D847,4))","v":""},{"$f":"IF('PEF CLASSIFICATION SHEET'!D848=\"\",\"\",LEFT('PEF CLASSIFICATION SHEET'!D848,4))","v":""},{"$f":"IF('PEF CLASSIFICATION SHEET'!D849=\"\",\"\",LEFT('PEF CLASSIFICATION SHEET'!D849,4))","v":""},{"$f":"IF('PEF CLASSIFICATION SHEET'!D850=\"\",\"\",LEFT('PEF CLASSIFICATION SHEET'!D850,4))","v":""},{"$f":"IF('PEF CLASSIFICATION SHEET'!D851=\"\",\"\",LEFT('PEF CLASSIFICATION SHEET'!D851,4))","v":""},{"$f":"IF('PEF CLASSIFICATION SHEET'!D852=\"\",\"\",LEFT('PEF CLASSIFICATION SHEET'!D852,4))","v":""},{"$f":"IF('PEF CLASSIFICATION SHEET'!D853=\"\",\"\",LEFT('PEF CLASSIFICATION SHEET'!D853,4))","v":""},{"$f":"IF('PEF CLASSIFICATION SHEET'!D854=\"\",\"\",LEFT('PEF CLASSIFICATION SHEET'!D854,4))","v":""},{"$f":"IF('PEF CLASSIFICATION SHEET'!D855=\"\",\"\",LEFT('PEF CLASSIFICATION SHEET'!D855,4))","v":""},{"$f":"IF('PEF CLASSIFICATION SHEET'!D856=\"\",\"\",LEFT('PEF CLASSIFICATION SHEET'!D856,4))","v":""}]
[null,null,null,{"$f":"IF('PEF CLASSIFICATION SHEET'!C837=\"\",\"\",'PEF CLASSIFICATION SHEET'!C837)","v":""},{"$f":"IF('PEF CLASSIFICATION SHEET'!C838=\"\",\"\",'PEF CLASSIFICATION SHEET'!C838)","v":""},{"$f":"IF('PEF CLASSIFICATION SHEET'!C839=\"\",\"\",'PEF CLASSIFICATION SHEET'!C839)","v":""},{"$f":"IF('PEF CLASSIFICATION SHEET'!C840=\"\",\"\",'PEF CLASSIFICATION SHEET'!C840)","v":""},{"$f":"IF('PEF CLASSIFICATION SHEET'!C841=\"\",\"\",'PEF CLASSIFICATION SHEET'!C841)","v":""},{"$f":"IF('PEF CLASSIFICATION SHEET'!C842=\"\",\"\",'PEF CLASSIFICATION SHEET'!C842)","v":""},{"$f":"IF('PEF CLASSIFICATION SHEET'!C843=\"\",\"\",'PEF CLASSIFICATION SHEET'!C843)","v":""},{"$f":"IF('PEF CLASSIFICATION SHEET'!C844=\"\",\"\",'PEF CLASSIFICATION SHEET'!C844)","v":""},{"$f":"IF('PEF CLASSIFICATION SHEET'!C845=\"\",\"\",'PEF CLASSIFICATION SHEET'!C845)","v":""},{"$f":"IF('PEF CLASSIFICATION SHEET'!C846=\"\",\"\",'PEF CLASSIFICATION SHEET'!C846)","v":""},{"$f":"IF('PEF CLASSIFICATION SHEET'!C847=\"\",\"\",'PEF CLASSIFICATION SHEET'!C847)","v":""},{"$f":"IF('PEF CLASSIFICATION SHEET'!C848=\"\",\"\",'PEF CLASSIFICATION SHEET'!C848)","v":""},{"$f":"IF('PEF CLASSIFICATION SHEET'!C849=\"\",\"\",'PEF CLASSIFICATION SHEET'!C849)","v":""},{"$f":"IF('PEF CLASSIFICATION SHEET'!C850=\"\",\"\",'PEF CLASSIFICATION SHEET'!C850)","v":""},{"$f":"IF('PEF CLASSIFICATION SHEET'!C851=\"\",\"\",'PEF CLASSIFICATION SHEET'!C851)","v":""},{"$f":"IF('PEF CLASSIFICATION SHEET'!C852=\"\",\"\",'PEF CLASSIFICATION SHEET'!C852)","v":""},{"$f":"IF('PEF CLASSIFICATION SHEET'!C853=\"\",\"\",'PEF CLASSIFICATION SHEET'!C853)","v":""},{"$f":"IF('PEF CLASSIFICATION SHEET'!C854=\"\",\"\",'PEF CLASSIFICATION SHEET'!C854)","v":""},{"$f":"IF('PEF CLASSIFICATION SHEET'!C855=\"\",\"\",'PEF CLASSIFICATION SHEET'!C855)","v":""},{"$f":"IF('PEF CLASSIFICATION SHEET'!C856=\"\",\"\",'PEF CLASSIFICATION SHEET'!C856)","v":""},"SUB-","%","PEF"]
[null,null,null,null,null,null,null,null,null,null,null,null,null,null,null,null,null,null,null,null,null,null,null,"TOTAL","OF","ESTIMATE"]
["TASK","TASK DESCRIPTION","CLASSIFICATION",null,null,null,null,null,null,null,null,null,null,null,null,null,null,null,null,null,null,null,null,null,"PROJECT",null,"COMMENTS"]
["NO."]
[null,"Proficiency Reviews (PR’s)",null,null,null,null,null,null,null,null,null,null,null,null,null,null,null,null,null,null,null,null,null,{"$f":"IF(B11=\"\",0,IF((SUM(D11:W11)=0),\"\",SUM(D11:W11)))","v":""},{"$f":"IF(X11=\"\",\"\",SUM((X11/$X$121)))","v":""}]
[null,"Proficiency Reviews (PR’s)",null,null,null,null,null,null,null,null,null,null,null,null,null,null,null,null,null,null,null,null,null,{"$f":"IF(B12=\"\",0,IF((SUM(D12:W12)=0),\"\",SUM(D12:W12)))","v":""},{"$f":"IF(X12=\"\",\"\",SUM((X12/$X$121)))","v":""}]
[1,"Training",null,null,null,null,null,null,null,null,null,null,null,null,null,null,null,null,null,null,null,null,null,"",""]
[null,null,null,null,null,null,null,null,null,null,null,null,null,null,null,null,null,null,null,null,null,null,null,0,{"$error":"#DIV/0!"}]
[null,null,null,null,null,null,null,null,null,null,null,null,null,null,null,null,null,null,null,null,null,null,null,0,{"$error":"#DIV/0!"}]
[null,null,null,null,null,null,null,null,null,null,null,null,null,null,null,null,null,null,null,null,null,null,null,0,{"$error":"#DIV/0!"}]
[null,null,null,null,null,null,null,null,null,null,null,null,null,null,null,null,null,null,null,null,null,null,null,0,{"$error":"#DIV/0!"}]
[null,null,null,null,null,null,null,null,null,null,null,null,null,null,null,null,null,null,null,null,null,null,null,0,{"$error":"#DIV/0!"}]
[2,"Desk Reviews (XX Reviews)",null,null,null,null,null,null,null,null,null,null,null,null,null,null,null,null,null,null,null,null,null,"",""]
[null,null,null,null,null,null,null,null,null,null,null,null,null,null,null,null,null,null,null,null,null,null,null,0,{"$error":"#DIV/0!"}]
[null,null,null,null,null,null,null,null,null,null,null,null,null,null,null,null,null,null,null,null,null,null,null,0,{"$error":"#DIV/0!"}]
[null,null,null,null,null,null,null,null,null,null,null,null,null,null,null,null,null,null,null,null,null,null,null,0,{"$error":"#DIV/0!"}]
[null,null,null,null,null,null,null,null,null,null,null,null,null,null,null,null,null,null,null,null,null,null,null,0,{"$error":"#DIV/0!"}]
[null,null,null,null,null,null,null,null,null,null,null,null,null,null,null,null,null,null,null,null,null,null,null,0,{"$error":"#DIV/0!"}]
[3,"On-Site Reviews (XX Reviews)",null,null,null,null,null,null,null,null,null,null,null,null,null,null,null,null,null,null,null,null,null,"",""]
[null,null,null,null,null,null,null,null,null,null,null,null,null,null,null,null,null,null,null,null,null,null,null,0,{"$error":"#DIV/0!"}]
[null,null,null,null,null,null,null,null,null,null,null,null,null,null,null,null,null,null,null,null,null,null,null,0,{"$error":"#DIV/0!"}]
[null,null,null,null,null,null,null,null,null,null,null,null,null,null,null,null,null,null,null,null,null,null,null,0,{"$error":"#DIV/0!"}]
[null,null,null,null,null,null,null,null,null,null,null,null,null,null,null,null,null,null,null,null,null,null,null,0,{"$error":"#DIV/0!"}]
[null,null,null,null,null,null,null,null,null,null,null,null,null,null,null,null,null,null,null,null,null,null,null,0,{"$error":"#DIV/0!"}]
[4,"Follow Up and Final Reports (XX Reviews)",null,null,null,null,null,null,null,null,null,null,null,null,null,null,null,null,null,null,null,null,null,"",""]
[null,null,null,null,null,null,null,null,null,null,null,null,null,null,null,null,null,null,null,null,null,null,null,0,{"$error":"#DIV/0!"}]
[null,null,null,null,null,null,null,null,null,null,null,null,null,null,null,null,null,null,null,null,null,null,null,0,{"$error":"#DIV/0!"}]
[null,null,null,null,null,null,null,null,null,null,null,null,null,null,null,null,null,null,null,null,null,null,null,0,{"$error":"#DIV/0!"}]
[null,null,null,null,null,null,null,null,null,null,null,null,null,null,null,null,null,null,null,null,null,null,null,0,{"$error":"#DIV/0!"}]
[null,null,null,null,null,null,null,null,null,null,null,null,null,null,null,null,null,null,null,null,null,null,null,0,{"$error":"#DIV/0!"}]
[5,"Inventory of Best Practices (XX Reviews)",null,null,null,null,null,null,null,null,null,null,null,null,null,null,null,null,null,null,null,null,null,"",""]
[null,null,null,null,null,null,null,null,null,null,null,null,null,null,null,null,null,null,null,null,null,null,null,0,{"$error":"#DIV/0!"}]
[null,null,null,null,null,null,null,null,null,null,null,null,null,null,null,null,null,null,null,null,null,null,null,0,{"$error":"#DIV/0!"}]
[null,null,null,null,null,null,null,null,null,null,null,null,null,null,null,null,null,null,null,null,null,null,null,0,{"$error":"#DIV/0!"}]
[null,null,null,null,null,null,null,null,null,null,null,null,null,null,null,null,null,null,null,null,null,null,null,0,{"$error":"#DIV/0!"}]
[null,null,null,null,null,null,null,null,null,null,null,null,null,null,null,null,null,null,null,null,null,null,null,0,{"$error":"#DIV/0!"}]
[null,null,null,null,null,null,null,null,null,null,null,null,null,null,null,null,null,null,null,null,null,null,null,0,{"$error":"#DIV/0!"}]
[null,null,null,null,null,null,null,null,null,null,null,null,null,null,null,null,null,null,null,null,null,null,null,0,{"$error":"#DIV/0!"}]
[null,null,null,null,null,null,null,null,null,null,null,null,null,null,null,null,null,null,null,null,null,null,null,0,{"$error":"#DIV/0!"}]
[null,null,null,null,null,null,null,null,null,null,null,null,null,null,null,null,null,null,null,null,null,null,null,0,{"$error":"#DIV/0!"}]
[null,null,null,null,null,null,null,null,null,null,null,null,null,null,null,null,null,null,null,null,null,null,null,0,{"$error":"#DIV/0!"}]
[null,null,null,null,null,null,null,null,null,null,null,null,null,null,null,null,null,null,null,null,null,null,null,0,{"$error":"#DIV/0!"}]
[null,null,null,null,null,null,null,null,null,null,null,null,null,null,null,null,null,null,null,null,null,null,null,0,{"$error":"#DIV/0!"}]
[null,null,null,null,null,null,null,null,null,null,null,null,null,null,null,null,null,null,null,null,null,null,null,0,{"$error":"#DIV/0!"}]
[null,null,null,null,null,null,null,null,null,null,null,null,null,null,null,null,null,null,null,null,null,null,null,0,{"$error":"#DIV/0!"}]
[null,null,null,null,null,null,null,null,null,null,null,null,null,null,null,null,null,null,null,null,null,null,null,0,{"$error":"#DIV/0!"}]
[null,null,null,null,null,null,null,null,null,null,null,null,null,null,null,null,null,null,null,null,null,null,null,0,{"$error":"#DIV/0!"}]
[null,null,null,null,null,null,null,null,null,null,null,null,null,null,null,null,null,null,null,null,null,null,null,0,{"$error":"#DIV/0!"}]
[null,null,null,null,null,null,null,null,null,null,null,null,null,null,null,null,null,null,null,null,null,null,null,0,{"$error":"#DIV/0!"}]
[null,null,null,null,null,null,null,null,null,null,null,null,null,null,null,null,null,null,null,null,null,null,null,0,{"$error":"#DIV/0!"}]
[null,null,null,null,null,null,null,null,null,null,null,null,null,null,null,null,null,null,null,null,null,null,null,0,{"$error":"#DIV/0!"}]
[null,null,null,null,null,null,null,null,null,null,null,null,null,null,null,null,null,null,null,null,null,null,null,0,{"$error":"#DIV/0!"}]
[null,null,null,null,null,null,null,null,null,null,null,null,null,null,null,null,null,null,null,null,null,null,null,0,{"$error":"#DIV/0!"}]
[null,null,null,null,null,null,null,null,null,null,null,null,null,null,null,null,null,null,null,null,null,null,null,0,{"$error":"#DIV/0!"}]
[null,null,null,null,null,null,null,null,null,null,null,null,null,null,null,null,null,null,null,null,null,null,null,0,{"$error":"#DIV/0!"}]
[null,null,null,null,null,null,null,null,null,null,null,null,null,null,null,null,null,null,null,null,null,null,null,0,{"$error":"#DIV/0!"}]
[null,null,null,null,null,null,null,null,null,null,null,null,null,null,null,null,null,null,null,null,null,null,null,0,{"$error":"#DIV/0!"}]
[null,null,null,null,null,null,null,null,null,null,null,null,null,null,null,null,null,null,null,null,null,null,null,0,{"$error":"#DIV/0!"}]
[null,"Community Connectivity Plans (CCP’s)",null,null,null,null,null,null,null,null,null,null,null,null,null,null,null,null,null,null,null,null,null,"",""]
[null,"Community Connectivity Plans (CCP’s)",null,null,null,null,null,null,null,null,null,null,null,null,null,null,null,null,null,null,null,null,null,"",""]
[1,"Introduction ",null,null,null,null,null,null,null,null,null,null,null,null,null,null,null,null,null,null,null,null,null,"",""]
[2,"Current Performance and Service Area Trends",null,null,null,null,null,null,null,null,null,null,null,null,null,null,null,null,null,null,null,null,null,"",""]
[3,"Public Input",null,null,null,null,null,null,null,null,null,null,null,null,null,null,null,null,null,null,null,null,null,"",""]
[4,"Service and Connectivity Plan",null,null,null,null,null,null,null,null,null,null,null,null,null,null,null,null,null,null,null,null,null,"",""]
[5,"Asset Enhancement Plan",null,null,null,null,null,null,null,null,null,null,null,null,null,null,null,null,null,null,null,null,null,"",""]
[6,"Financial Plan",null,null,null,null,null,null,null,null,null,null,null,null,null,null,null,null,null,null,null,null,null,"",""]
[7,"Assessment and Strategies Plan & Success Plan",null,null,null,null,null,null,null,null,null,null,null,null,null,null,null,null,null,null,null,null,null,"",""]
[8,"Draft and Final CCP",null,null,null,null,null,null,null,null,null,null,null,null,null,null,null,null,null,null,null,null,null,"",""]
[null,null,null,null,null,null,null,null,null,null,null,null,null,null,null,null,null,null,null,null,null,null,null,0,{"$error":"#DIV/0!"}]
[null,null,null,null,null,null,null,null,null,null,null,null,null,null,null,null,null,null,null,null,null,null,null,{"$f":"IF(B76=\"\",0,IF((SUM(D76:W76)=0),\"\",SUM(D76:W76)))","v":0},{"$f":"IF(X76=\"\",\"\",SUM((X76/$X$121)))","v":{"$error":"#DIV/0!"}}]
[null,null,null,null,null,null,null,null,null,null,null,null,null,null,null,null,null,null,null,null,null,null,null,0,{"$error":"#DIV/0!"}]
[null,null,null,null,null,null,null,null,null,null,null,null,null,null,null,null,null,null,null,null,null,null,null,0,{"$error":"#DIV/0!"}]
[null,null,null,null,null,null,null,null,null,null,null,null,null,null,null,null,null,null,null,null,null,null,null,0,{"$error":"#DIV/0!"}]
[null,null,null,null,null,null,null,null,null,null,null,null,null,null,null,null,null,null,null,null,null,null,null,0,{"$error":"#DIV/0!"}]
[null,null,null,null,null,null,null,null,null,null,null,null,null,null,null,null,null,null,null,null,null,null,null,0,{"$error":"#DIV/0!"}]
[null,null,null,null,null,null,null,null,null,null,null,null,null,null,null,null,null,null,null,null,null,null,null,0,{"$error":"#DIV/0!"}]
[null,null,null,null,null,null,null,null,null,null,null,null,null,null,null,null,null,null,null,null,null,null,null,0,{"$error":"#DIV/0!"}]
[null,null,null,null,null,null,null,null,null,null,null,null,null,null,null,null,null,null,null,null,null,null,null,0,{"$error":"#DIV/0!"}]
[null,null,null,null,null,null,null,null,null,null,null,null,null,null,null,null,null,null,null,null,null,null,null,0,{"$error":"#DIV/0!"}]
[null,null,null,null,null,null,null,null,null,null,null,null,null,null,null,null,null,null,null,null,null,null,null,0,{"$error":"#DIV/0!"}]
[null,null,null,null,null,null,null,null,null,null,null,null,null,null,null,null,null,null,null,null,null,null,null,0,{"$error":"#DIV/0!"}]
[null,null,null,null,null,null,null,null,null,null,null,null,null,null,null,null,null,null,null,null,null,null,null,0,{"$error":"#DIV/0!"}]
[null,null,null,null,null,null,null,null,null,null,null,null,null,null,null,null,null,null,null,null,null,null,null,0,{"$error":"#DIV/0!"}]
[null,null,null,null,null,null,null,null,null,null,null,null,null,null,null,null,null,null,null,null,null,null,null,0,{"$error":"#DIV/0!"}]
[null,null,null,null,null,null,null,null,null,null,null,null,null,null,null,null,null,null,null,null,null,null,null,0,{"$error":"#DIV/0!"}]
[null,null,null,null,null,null,null,null,null,null,null,null,null,null,null,null,null,null,null,null,null,null,null,0,{"$error":"#DIV/0!"}]
[null,null,null,null,null,null,null,null,null,null,null,null,null,null,null,null,null,null,null,null,null,null,null,0,{"$error":"#DIV/0!"}]
[null,null,null,null,null,null,null,null,null,null,null,null,null,null,null,null,null,null,null,null,null,null,null,0,{"$error":"#DIV/0!"}]
[null,null,null,null,null,null,null,null,null,null,null,null,null,null,null,null,null,null,null,null,null,null,null,0,{"$error":"#DIV/0!"}]
[null,null,null,null,null,null,null,null,null,null,null,null,null,null,null,null,null,null,null,null,null,null,null,0,{"$error":"#DIV/0!"}]
[null,null,null,null,null,null,null,null,null,null,null,null,null,null,null,null,null,null,null,null,null,null,null,0,{"$error":"#DIV/0!"}]
[null,null,null,null,null,null,null,null,null,null,null,null,null,null,null,null,null,null,null,null,null,null,null,0,{"$error":"#DIV/0!"}]
[null,null,null,null,null,null,null,null,null,null,null,null,null,null,null,null,null,null,null,null,null,null,null,0,{"$error":"#DIV/0!"}]
[null,null,null,null,null,null,null,null,null,null,null,null,null,null,null,null,null,null,null,null,null,null,null,0,{"$error":"#DIV/0!"}]
[null,null,null,null,null,null,null,null,null,null,null,null,null,null,null,null,null,null,null,null,null,null,null,0,{"$error":"#DIV/0!"}]
[null,null,null,null,null,null,null,null,null,null,null,null,null,null,null,null,null,null,null,null,null,null,null,0,{"$error":"#DIV/0!"}]
[null,null,null,null,null,null,null,null,null,null,null,null,null,null,null,null,null,null,null,null,null,null,null,0,{"$error":"#DIV/0!"}]
[null,null,null,null,null,null,null,null,null,null,null,null,null,null,null,null,null,null,null,null,null,null,null,0,{"$error":"#DIV/0!"}]
[null,null,null,null,null,null,null,null,null,null,null,null,null,null,null,null,null,null,null,null,null,null,null,0,{"$error":"#DIV/0!"}]
[null,null,null,null,null,null,null,null,null,null,null,null,null,null,null,null,null,null,null,null,null,null,null,0,{"$error":"#DIV/0!"}]
[null,null,null,null,null,null,null,null,null,null,null,null,null,null,null,null,null,null,null,null,null,null,null,0,{"$error":"#DIV/0!"}]
[null,null,null,null,null,null,null,null,null,null,null,null,null,null,null,null,null,null,null,null,null,null,null,0,{"$error":"#DIV/0!"}]
[null,null,null,null,null,null,null,null,null,null,null,null,null,null,null,null,null,null,null,null,null,null,null,0,{"$error":"#DIV/0!"}]
[null,null,null,null,null,null,null,null,null,null,null,null,null,null,null,null,null,null,null,null,null,null,null,0,{"$error":"#DIV/0!"}]
[null,null,null,null,null,null,null,null,null,null,null,null,null,null,null,null,null,null,null,null,null,null,null,0,{"$error":"#DIV/0!"}]
[null,null,null,null,null,null,null,null,null,null,null,null,null,null,null,null,null,null,null,null,null,null,null,0,{"$error":"#DIV/0!"}]
[null,null,null,null,null,null,null,null,null,null,null,null,null,null,null,null,null,null,null,null,null,null,null,0,{"$error":"#DIV/0!"}]
[null,null,null,null,null,null,null,null,null,null,null,null,null,null,null,null,null,null,null,null,null,null,null,0,{"$error":"#DIV/0!"}]
[null,null,null,null,null,null,null,null,null,null,null,null,null,null,null,null,null,null,null,null,null,null,null,0,{"$error":"#DIV/0!"}]
[null,null,null,null,null,null,null,null,null,null,null,null,null,null,null,null,null,null,null,null,null,null,null,0,{"$error":"#DIV/0!"}]
[null,null,null,null,null,null,null,null,null,null,null,null,null,null,null,null,null,null,null,null,null,null,null,0,{"$error":"#DIV/0!"}]
[null,null,null,null,null,null,null,null,null,null,null,null,null,null,null,null,null,null,null,null,null,null,null,0,{"$error":"#DIV/0!"}]
[null,null,null,null,null,null,null,null,null,null,null,null,null,null,null,null,null,null,null,null,null,null,null,0,{"$error":"#DIV/0!"}]
[null,null,null,null,null,null,null,null,null,null,null,null,null,null,null,null,null,null,null,null,null,null,null,0,{"$error":"#DIV/0!"}]
[null,"TOTAL WORKHOURS/CATEGORY:",null,{"$f":"SUM(D11:D120)","v":0},0,0,0,0,0,0,0,0,0,0,0,0,0,0,0,0,0,0,0,{"$f":"SUM(X11:X120)","v":0},{"$f":"SUM(Y11:Y120)","v":{"$error":"#DIV/0!"}},{"$f":"SUM(Z12:Z120)","v":0}]
[null,"TOTAL WORKDAYS/CATEGORY:",null,{"$f":"D121/8","v":0},{"$f":"E121/8","v":0},0,0,0,0,0,0,0,0,0,0,0,0,0,0,0,0,0,0]
[null,"HOURLY SALARY RATE:",null,{"$f":"'PEF CLASSIFICATION SHEET'!E837","v":0},{"$f":"'PEF CLASSIFICATION SHEET'!E838","v":0},{"$f":"'PEF CLASSIFICATION SHEET'!E839","v":0},{"$f":"'PEF CLASSIFICATION SHEET'!E840","v":0},{"$f":"'PEF CLASSIFICATION SHEET'!E841","v":0},{"$f":"'PEF CLASSIFICATION SHEET'!E842","v":0},{"$f":"'PEF CLASSIFICATION SHEET'!E843","v":0},{"$f":"'PEF CLASSIFICATION SHEET'!E844","v":0},{"$f":"'PEF CLASSIFICATION SHEET'!E845","v":0},{"$f":"'PEF CLASSIFICATION SHEET'!E846","v":0},{"$f":"'PEF CLASSIFICATION SHEET'!E847","v":0},{"$f":"'PEF CLASSIFICATION SHEET'!E848","v":0},{"$f":"'PEF CLASSIFICATION SHEET'!E849","v":0},{"$f":"'PEF CLASSIFICATION SHEET'!E850","v":0},{"$f":"'PEF CLASSIFICATION SHEET'!E851","v":0},{"$f":"'PEF CLASSIFICATION SHEET'!E852","v":0},{"$f":"'PEF CLASSIFICATION SHEET'!E853","v":0},{"$f":"'PEF CLASSIFICATION SHEET'!E854","v":0},{"$f":"'PEF CLASSIFICATION SHEET'!E855","v":0},{"$f":"'PEF CLASSIFICATION SHEET'!E856","v":0}]
[null,"RATES PER DAY:",null,{"$f":"D123*8","v":0},0,0,0,0,0,0,0,0,0,0,0,0,0,0,0,0,0,0,0]
[null,"PAYROLL BURDEN:",null,{"$f":"SUM(D121*D123)","v":0},{"$f":"SUM(E121*E123)","v":0},0,0,0,0,0,0,0,0,0,0,0,0,0,0,0,0,0,0]
[null,"TOTAL WORKDAYS:",null,{"$f":"SUM(D122:W122)","v":0}]
[null,"TOTAL PAYROLL BURDEN:",null,{"$f":"SUM(D125:W125)","v":0}]
[null,"AVERAGE COST PER HOUR:",null,{"$f":"SUM(D127/(D126*8))","v":{"$error":"#DIV/0!"}},null,null,null,null,null,null,null,null,null,null,null,null,null,null,null,null,null,null,null," "]
[null,"GENERAL OVERHEAD:",{"$f":"PUBLIC.TRANSPORTATION.SUB1_CONSULTANT_OVERHEAD","v":0},{"$f":"SUM(D127*C129)","v":0}]
[null,"SUBTOTAL:",null,{"$f":"SUM(D127+D129)","v":0}]
[null,"COMPARATIVE FEE:",{"$f":"PUBLIC.TRANSPORTATION.SUB1_CONSULTANT_FEE","v":0},{"$f":"SUM(D130*C131)","v":0}]
[null,"FACILITIES COST OF CAPITAL:",{"$f":"PUBLIC.TRANSPORTATION.SUB1_CONSULTANT_COSTofCAPITAL","v":0},{"$f":"SUM(D127*C132)","v":0}]
[null,"TOTAL:",null,{"$f":"SUM(D130:D132)","v":0}]
[null,"DIRECT EXPENSES:",null,{"$f":"PUBLIC.TRANSPORTATION.SUB1_DIRECT_NONSALARY_TOTAL","v":0}]
[null,"PUBLIC TRANSPORTATION GRAND TOTAL:",null,{"$f":"SUM(D133:D134)","v":0}]

{"sheet":"IM-PublicTransp-Exp-Sub1","index":102,"n_rows":46,"n_cols":8,"rows_kept":46,"cut":false,"hidden":true,"merged":[[0,0,0,7],[1,3,1,7]]}
["PUBLIC TRANSPORTATION--DIRECT EXPENSES - SUBCONSULTANT 1"]
["TIP NUMBER",{"$f":"TIP.NUMBER","v":0},"FIRM:",{"$f":"'IM-PublicTransp-Sub1'!G3","v":"CONSULTANT NAME"}]
[]
["GENERAL PROJECT WORK:","ITEM","QTY","DESCRIPTION",null,null,"UNIT COST "]
[null,"Travel:"]
[null,"Sedan",0,"Trip(s) @",0,"miles @",{"$f":"SEDAN","v":0.7},{"$f":"SUM(C6*E6*G6)","v":0}]
[null,"Carry All",0,"Trip(s) @",0,"miles @",{"$f":"CARRYALL","v":0.72},{"$f":"SUM(C7*E7*G7)","v":0}]
[null,"Car Rental",null,null,0,"days @ ",{"$f":"CARRENTAL","v":50},{"$f":"SUM(E8*G8)","v":0}]
[null,"Gas for Rental",null,null,0,"miles @",{"$f":"GASforRENTAL","v":0.2},{"$f":"SUM(E9*G9)","v":0}]
[null,"Parking:",0,"Trip(s) @",null,null,{"$f":"PARKING","v":3},{"$f":"SUM(C10*G10)","v":0}]
[null,"Per Diem:",0,"Breakfast",null,null,{"$f":"BREAKFAST","v":10.1},{"$f":"SUM(C11*G11)","v":0}]
[null,null,0,"Lunch",null,null,{"$f":"LUNCH","v":13.3},0]
[null,null,0,"Dinner",null,null,{"$f":"DINNER","v":23.1},0]
[null,null,0,"Lodging",null,null,{"$f":"LODGING_LUMP.SUM","v":95},0]
[null,"Reproduction:",0,"8 1/2 x 11 B & W Copies @",null,null,{"$f":"LETTERCOPIES","v":0.14000000000000001},0]
[null,null,0,"11 x 17 B & W Copies @",null,null,{"$f":"LEDGERCOPIES","v":0.34},0]
[null,null,0,"8 1/2 x 11 Color Copies @",null,null,{"$f":"LETTERCOLOR","v":0.83},0]
[null,null,0,"11 x 17 Color Copies @",null,null,{"$f":"LEDGERCOLOR","v":1.66},0]
[null,null,0,"SQ. FT. of Plots (B & W or Color)",null,"<65 SQ. FT.*",{"$f":"ROLLPLOTSshort","v":6.5},0]
[null,null,0,"SQ. FT. of Plots (B & W or Color)",null,">65 SQ. FT.*",{"$f":"ROLLPLOTSlong","v":1.5},0]
[null,null,0,"Cover(s) @",null,null,{"$f":"COVERS","v":0.5},0]
[null,null,0,"Binder(s) @",null,null,{"$f":"BINDERS","v":0.5},0]
[null,null,0,"Blueprints - 8 1/2 x 11 @",null,null,{"$f":"BLUEPRINTSLETTER","v":0.35},0]
[null,null,0,"Blueprints - 42 x 72 @",null,null,{"$f":"BLUEPRINTSLARGE","v":1.3},0]
[null,"Film and Developing:",0,"Roll(s) @",null,null,{"$f":"FILM","v":20},0]
[null,null,null,null,null,"Subtotal",null,{"$f":"SUM(H6:H25)","v":0}]
["MAPS AND DOCUMENTS:","ITEM","QTY","DESCRIPTION",null,null,"UNIT COST "]
[null,"County Tax Maps:",0,"Map(s) @",null,null,{"$f":"County_Tax_Maps","v":7},{"$f":"SUM(C28*G28)","v":0}]
[null,"USGS Maps:",0,"Map(s) @",null,null,{"$f":"USGSMAPS","v":7},{"$f":"SUM(C29*G29)","v":0}]
[null,null,null,null,null,"Subtotal",null,{"$f":"SUM(H28:H29)","v":0}]
["Miscellaneous Other","ITEM","QTY","DESCRIPTION",null,null,"UNIT COST "]
[null,null,null,null,null,null,null,{"$f":"SUM(C32*G32)","v":0}]
[null,null,null,null,null,null,null,{"$f":"SUM(C33*G33)","v":0}]
[null,null,null,null,null,null,null,0]
[null,null,null,null,null,null,null,0]
[null,null,null,null,null,null,null,0]
[null,null,null,null,null,null,null,0]
[null,null,null,null,null,null,null,0]
[null,null,null,null,null,null,null,{"$f":"SUM(C39*G39)","v":0}]
[null,null,null,null,null,null,null,{"$f":"SUM(C40*G40)","v":0}]
[null,null,null,null,null,null,null,{"$f":"SUM(C41*G41)","v":0}]
[null,null,null,null,null,"Subtotal",null,{"$f":"SUM(H32:H41)","v":0}]
[]
[null,null,null,null,null,"TOTAL",null,{"$f":"SUM(H26+H30+H42)","v":0}]
[]
[null,"* Sum of all plots "]

{"sheet":"IM-PublicTransp-Sub2","index":103,"n_rows":135,"n_cols":27,"rows_kept":135,"cut":false,"hidden":true,"merged":[[0,0,1,13],[2,1,2,4],[2,6,2,7],[2,10,2,11],[2,15,2,16],[3,1,3,4],[3,6,3,7],[3,10,3,11],[3,15,3,16],[6,12,9,12],[6,13,9,13],[6,14,9,14],[6,15,9,15],[6,16,9,16],[6,17,9,17],[4,3,4,22],[6,3,9,3],[6,4,9,4],[6,5,9,5],[6,6,9,6],[6,7,9,7],[6,8,9,8],[6,9,9,9],[6,10,9,10],[6,11,9,11],[10,26,10,27],[11,26,11,27],[12,26,12,27],[13,26,13,27],[14,26,14,27],[15,26,15,27],[6,18,9,18],[6,19,9,19],[6,20,9,20],[6,21,9,21],[6,22,9,22],[8,26,8,27],[22,26,22,27],[23,26,23,27],[24,26,24,27],[25,26,25,27],[26,26,26,27],[27,26,27,27],[16,26,16,27],[17,26,17,27],[18,26,18,27],[19,26,19,27],[20,26,20,27],[21,26,21,27],[34,26,34,27],[35,26,35,27],[36,26,36,27],[37,26,37,27],[38,26,38,27],[39,26,39,27],[28,26,28,27],[29,26,29,27],[30,26,30,27],[31,26,31,27],[32,26,32,27],[33,26,33,27],[46,26,46,27],[47,26,47,27],[48,26,48,27],[49,26,49,27],[50,26,50,27],[51,26,51,27],[40,26,40,27],[41,26,41,27],[42,26,42,27],[43,26,43,27],[44,26,44,27],[45,26,45,27],[58,26,58,27],[59,26,59,27],[60,26,60,27],[61,26,61,27],[62,26,62,27],[63,26,63,27],[52,26,52,27],[53,26,53,27],[54,26,54,27],[55,26,55,27],[56,26,56,27],[57,26,57,27],[70,26,70,27],[71,26,71,27],[72,26,72,27],[73,26,73,27],[74,26,74,27],[75,26,75,27],[64,26,64,27],[65,26,65,27],[66,26,66,27],[67,26,67,27],[68,26,68,27],[69,26,69,27],[82,26,82,27],[83,26,83,27],[84,26,84,27],[85,26,85,27],[86,26,86,27],[87,26,87,27],[76,26,76,27],[77,26,77,27],[78,26,78,27],[79,26,79,27],[80,26,80,27],[81,26,81,27],[94,26,94,27],[95,26,95,27],[96,26,96,27],[97,26,97,27],[98,26,98,27],[99,26,99,27],[88,26,88,27],[89,26,89,27],[90,26,90,27],[91,26,91,27],[92,26,92,27],[93,26,93,27],[106,26,106,27],[107,26,107,27],[108,26,108,27],[109,26,109,27],[110,26,110,27],[111,26,111,27],[100,26,100,27],[101,26,101,27],[102,26,102,27],[103,26,103,27],[104,26,104,27],[105,26,105,27],[118,26,118,27],[119,26,119,27],[134,1,135,1],[134,3,135,4],[138,3,138,6],[138,8,138,13],[112,26,112,27],[113,26,113,27],[114,26,114,27],[115,26,115,27],[116,26,116,27],[117,26,117,27],[145,8,145,9],[145,10,145,11],[139,8,139,9],[139,10,139,11],[140,8,140,9],[140,10,140,11],[143,8,143,13],[144,8,144,9],[144,10,144,11]]}
["PUBLIC TRANSPORTATION--BREAKDOWN WORKSHEET - SUBCONSULTANT 2 -- ENTER WORKHOURS"]
[]
["PROJECT DESCRIPTION: ",{"$f":"PROJECT.DESCRIPTION","v":0},null,null,null,"FIRM:  ",{"$f":"PUBLIC.TRANSPORTATION.SUB2_CONSULTANT_NAME","v":"CONSULTANT NAME"},null,"TASK ORDER NUMBER:",null,{"$f":"TASK.ORDER.NUMBER","v":0},null,"DATE PREPARED:",{"$f":"IF(SCOPE.MANDAY.ESTIMATE.PREPARED.BY.DATE=\"\",\"\",SCOPE.MANDAY.ESTIMATE.PREPARED.BY.DATE)","v":""}]
["PREPARED BY:  ",{"$f":"IF(SCOPE.MANDAY.ESTIMATE.PREPARED.BY=\"\",\"\",SCOPE.MANDAY.ESTIMATE.PREPARED.BY)","v":""},null,null,null,"TIP NUMBER:",{"$f":"TIP.NUMBER","v":0},null,"WBS NUMBER:",null,{"$f":"WBS.NUMBER","v":""},null,"REVISION DATE:",{"$f":"IF(SCOPE.MANDAY.ESTIMATE.APPROVED.BY.DATE=\"\",\"\",SCOPE.MANDAY.ESTIMATE.APPROVED.BY.DATE)","v":""}]
[null,null,null,"ESTIMATED WORKHOURS"]
[null,null,"EMPLOYEE NAMES",{"$f":"IF('PEF CLASSIFICATION SHEET'!D859=\"\",\"\",LEFT('PEF CLASSIFICATION SHEET'!D859,4))","v":""},{"$f":"IF('PEF CLASSIFICATION SHEET'!D860=\"\",\"\",LEFT('PEF CLASSIFICATION SHEET'!D860,4))","v":""},{"$f":"IF('PEF CLASSIFICATION SHEET'!D861=\"\",\"\",LEFT('PEF CLASSIFICATION SHEET'!D861,4))","v":""},{"$f":"IF('PEF CLASSIFICATION SHEET'!D862=\"\",\"\",LEFT('PEF CLASSIFICATION SHEET'!D862,4))","v":""},{"$f":"IF('PEF CLASSIFICATION SHEET'!D863=\"\",\"\",LEFT('PEF CLASSIFICATION SHEET'!D863,4))","v":""},{"$f":"IF('PEF CLASSIFICATION SHEET'!D864=\"\",\"\",LEFT('PEF CLASSIFICATION SHEET'!D864,4))","v":""},{"$f":"IF('PEF CLASSIFICATION SHEET'!D865=\"\",\"\",LEFT('PEF CLASSIFICATION SHEET'!D865,4))","v":""},{"$f":"IF('PEF CLASSIFICATION SHEET'!D866=\"\",\"\",LEFT('PEF CLASSIFICATION SHEET'!D866,4))","v":""},{"$f":"IF('PEF CLASSIFICATION SHEET'!D867=\"\",\"\",LEFT('PEF CLASSIFICATION SHEET'!D867,4))","v":""},{"$f":"IF('PEF CLASSIFICATION SHEET'!D868=\"\",\"\",LEFT('PEF CLASSIFICATION SHEET'!D868,4))","v":""},{"$f":"IF('PEF CLASSIFICATION SHEET'!D869=\"\",\"\",LEFT('PEF CLASSIFICATION SHEET'!D869,4))","v":""},{"$f":"IF('PEF CLASSIFICATION SHEET'!D870=\"\",\"\",LEFT('PEF CLASSIFICATION SHEET'!D870,4))","v":""},{"$f":"IF('PEF CLASSIFICATION SHEET'!D871=\"\",\"\",LEFT('PEF CLASSIFICATION SHEET'!D871,4))","v":""},{"$f":"IF('PEF CLASSIFICATION SHEET'!D872=\"\",\"\",LEFT('PEF CLASSIFICATION SHEET'!D872,4))","v":""},{"$f":"IF('PEF CLASSIFICATION SHEET'!D873=\"\",\"\",LEFT('PEF CLASSIFICATION SHEET'!D873,4))","v":""},{"$f":"IF('PEF CLASSIFICATION SHEET'!D874=\"\",\"\",LEFT('PEF CLASSIFICATION SHEET'!D874,4))","v":""},{"$f":"IF('PEF CLASSIFICATION SHEET'!D875=\"\",\"\",LEFT('PEF CLASSIFICATION SHEET'!D875,4))","v":""},{"$f":"IF('PEF CLASSIFICATION SHEET'!D876=\"\",\"\",LEFT('PEF CLASSIFICATION SHEET'!D876,4))","v":""},{"$f":"IF('PEF CLASSIFICATION SHEET'!D877=\"\",\"\",LEFT('PEF CLASSIFICATION SHEET'!D877,4))","v":""},{"$f":"IF('PEF CLASSIFICATION SHEET'!D878=\"\",\"\",LEFT('PEF CLASSIFICATION SHEET'!D878,4))","v":""}]
[null,null,null,{"$f":"IF('PEF CLASSIFICATION SHEET'!C859=\"\",\"\",'PEF CLASSIFICATION SHEET'!C859)","v":""},{"$f":"IF('PEF CLASSIFICATION SHEET'!C860=\"\",\"\",'PEF CLASSIFICATION SHEET'!C860)","v":""},{"$f":"IF('PEF CLASSIFICATION SHEET'!C861=\"\",\"\",'PEF CLASSIFICATION SHEET'!C861)","v":""},{"$f":"IF('PEF CLASSIFICATION SHEET'!C862=\"\",\"\",'PEF CLASSIFICATION SHEET'!C862)","v":""},{"$f":"IF('PEF CLASSIFICATION SHEET'!C863=\"\",\"\",'PEF CLASSIFICATION SHEET'!C863)","v":""},{"$f":"IF('PEF CLASSIFICATION SHEET'!C864=\"\",\"\",'PEF CLASSIFICATION SHEET'!C864)","v":""},{"$f":"IF('PEF CLASSIFICATION SHEET'!C865=\"\",\"\",'PEF CLASSIFICATION SHEET'!C865)","v":""},{"$f":"IF('PEF CLASSIFICATION SHEET'!C866=\"\",\"\",'PEF CLASSIFICATION SHEET'!C866)","v":""},{"$f":"IF('PEF CLASSIFICATION SHEET'!C867=\"\",\"\",'PEF CLASSIFICATION SHEET'!C867)","v":""},{"$f":"IF('PEF CLASSIFICATION SHEET'!C868=\"\",\"\",'PEF CLASSIFICATION SHEET'!C868)","v":""},{"$f":"IF('PEF CLASSIFICATION SHEET'!C869=\"\",\"\",'PEF CLASSIFICATION SHEET'!C869)","v":""},{"$f":"IF('PEF CLASSIFICATION SHEET'!C870=\"\",\"\",'PEF CLASSIFICATION SHEET'!C870)","v":""},{"$f":"IF('PEF CLASSIFICATION SHEET'!C871=\"\",\"\",'PEF CLASSIFICATION SHEET'!C871)","v":""},{"$f":"IF('PEF CLASSIFICATION SHEET'!C872=\"\",\"\",'PEF CLASSIFICATION SHEET'!C872)","v":""},{"$f":"IF('PEF CLASSIFICATION SHEET'!C873=\"\",\"\",'PEF CLASSIFICATION SHEET'!C873)","v":""},{"$f":"IF('PEF CLASSIFICATION SHEET'!C874=\"\",\"\",'PEF CLASSIFICATION SHEET'!C874)","v":""},{"$f":"IF('PEF CLASSIFICATION SHEET'!C875=\"\",\"\",'PEF CLASSIFICATION SHEET'!C875)","v":""},{"$f":"IF('PEF CLASSIFICATION SHEET'!C876=\"\",\"\",'PEF CLASSIFICATION SHEET'!C876)","v":""},{"$f":"IF('PEF CLASSIFICATION SHEET'!C877=\"\",\"\",'PEF CLASSIFICATION SHEET'!C877)","v":""},{"$f":"IF('PEF CLASSIFICATION SHEET'!C878=\"\",\"\",'PEF CLASSIFICATION SHEET'!C878)","v":""},"SUB-","%","PEF"]
[null,null,null,null,null,null,null,null,null,null,null,null,null,null,null,null,null,null,null,null,null,null,null,"TOTAL","OF","ESTIMATE"]
["TASK","TASK DESCRIPTION","CLASSIFICATION",null,null,null,null,null,null,null,null,null,null,null,null,null,null,null,null,null,null,null,null,null,"PROJECT",null,"COMMENTS"]
["NO."]
[null,"Proficiency Reviews (PR’s)",null,null,null,null,null,null,null,null,null,null,null,null,null,null,null,null,null,null,null,null,null,{"$f":"IF(B11=\"\",0,IF((SUM(D11:W11)=0),\"\",SUM(D11:W11)))","v":""},{"$f":"IF(X11=\"\",\"\",SUM((X11/$X$121)))","v":""}]
[null,"Proficiency Reviews (PR’s)",null,null,null,null,null,null,null,null,null,null,null,null,null,null,null,null,null,null,null,null,null,{"$f":"IF(B12=\"\",0,IF((SUM(D12:W12)=0),\"\",SUM(D12:W12)))","v":""},{"$f":"IF(X12=\"\",\"\",SUM((X12/$X$121)))","v":""}]
[1,"Training",null,null,null,null,null,null,null,null,null,null,null,null,null,null,null,null,null,null,null,null,null,"",""]
[null,null,null,null,null,null,null,null,null,null,null,null,null,null,null,null,null,null,null,null,null,null,null,0,{"$error":"#DIV/0!"}]
[null,null,null,null,null,null,null,null,null,null,null,null,null,null,null,null,null,null,null,null,null,null,null,0,{"$error":"#DIV/0!"}]
[null,null,null,null,null,null,null,null,null,null,null,null,null,null,null,null,null,null,null,null,null,null,null,0,{"$error":"#DIV/0!"}]
[null,null,null,null,null,null,null,null,null,null,null,null,null,null,null,null,null,null,null,null,null,null,null,0,{"$error":"#DIV/0!"}]
[null,null,null,null,null,null,null,null,null,null,null,null,null,null,null,null,null,null,null,null,null,null,null,0,{"$error":"#DIV/0!"}]
[2,"Desk Reviews (XX Reviews)",null,null,null,null,null,null,null,null,null,null,null,null,null,null,null,null,null,null,null,null,null,"",""]
[null,null,null,null,null,null,null,null,null,null,null,null,null,null,null,null,null,null,null,null,null,null,null,0,{"$error":"#DIV/0!"}]
[null,null,null,null,null,null,null,null,null,null,null,null,null,null,null,null,null,null,null,null,null,null,null,0,{"$error":"#DIV/0!"}]
[null,null,null,null,null,null,null,null,null,null,null,null,null,null,null,null,null,null,null,null,null,null,null,0,{"$error":"#DIV/0!"}]
[null,null,null,null,null,null,null,null,null,null,null,null,null,null,null,null,null,null,null,null,null,null,null,0,{"$error":"#DIV/0!"}]
[null,null,null,null,null,null,null,null,null,null,null,null,null,null,null,null,null,null,null,null,null,null,null,0,{"$error":"#DIV/0!"}]
[3,"On-Site Reviews (XX Reviews)",null,null,null,null,null,null,null,null,null,null,null,null,null,null,null,null,null,null,null,null,null,"",""]
[null,null,null,null,null,null,null,null,null,null,null,null,null,null,null,null,null,null,null,null,null,null,null,0,{"$error":"#DIV/0!"}]
[null,null,null,null,null,null,null,null,null,null,null,null,null,null,null,null,null,null,null,null,null,null,null,0,{"$error":"#DIV/0!"}]
[null,null,null,null,null,null,null,null,null,null,null,null,null,null,null,null,null,null,null,null,null,null,null,0,{"$error":"#DIV/0!"}]
[null,null,null,null,null,null,null,null,null,null,null,null,null,null,null,null,null,null,null,null,null,null,null,0,{"$error":"#DIV/0!"}]
[null,null,null,null,null,null,null,null,null,null,null,null,null,null,null,null,null,null,null,null,null,null,null,0,{"$error":"#DIV/0!"}]
[4,"Follow Up and Final Reports (XX Reviews)",null,null,null,null,null,null,null,null,null,null,null,null,null,null,null,null,null,null,null,null,null,"",""]
[null,null,null,null,null,null,null,null,null,null,null,null,null,null,null,null,null,null,null,null,null,null,null,0,{"$error":"#DIV/0!"}]
[null,null,null,null,null,null,null,null,null,null,null,null,null,null,null,null,null,null,null,null,null,null,null,0,{"$error":"#DIV/0!"}]
[null,null,null,null,null,null,null,null,null,null,null,null,null,null,null,null,null,null,null,null,null,null,null,0,{"$error":"#DIV/0!"}]
[null,null,null,null,null,null,null,null,null,null,null,null,null,null,null,null,null,null,null,null,null,null,null,0,{"$error":"#DIV/0!"}]
[null,null,null,null,null,null,null,null,null,null,null,null,null,null,null,null,null,null,null,null,null,null,null,0,{"$error":"#DIV/0!"}]
[5,"Inventory of Best Practices (XX Reviews)",null,null,null,null,null,null,null,null,null,null,null,null,null,null,null,null,null,null,null,null,null,"",""]
[null,null,null,null,null,null,null,null,null,null,null,null,null,null,null,null,null,null,null,null,null,null,null,0,{"$error":"#DIV/0!"}]
[null,null,null,null,null,null,null,null,null,null,null,null,null,null,null,null,null,null,null,null,null,null,null,0,{"$error":"#DIV/0!"}]
[null,null,null,null,null,null,null,null,null,null,null,null,null,null,null,null,null,null,null,null,null,null,null,0,{"$error":"#DIV/0!"}]
[null,null,null,null,null,null,null,null,null,null,null,null,null,null,null,null,null,null,null,null,null,null,null,0,{"$error":"#DIV/0!"}]
[null,null,null,null,null,null,null,null,null,null,null,null,null,null,null,null,null,null,null,null,null,null,null,0,{"$error":"#DIV/0!"}]
[null,null,null,null,null,null,null,null,null,null,null,null,null,null,null,null,null,null,null,null,null,null,null,0,{"$error":"#DIV/0!"}]
[null,null,null,null,null,null,null,null,null,null,null,null,null,null,null,null,null,null,null,null,null,null,null,0,{"$error":"#DIV/0!"}]
[null,null,null,null,null,null,null,null,null,null,null,null,null,null,null,null,null,null,null,null,null,null,null,0,{"$error":"#DIV/0!"}]
[null,null,null,null,null,null,null,null,null,null,null,null,null,null,null,null,null,null,null,null,null,null,null,0,{"$error":"#DIV/0!"}]
[null,null,null,null,null,null,null,null,null,null,null,null,null,null,null,null,null,null,null,null,null,null,null,0,{"$error":"#DIV/0!"}]
[null,null,null,null,null,null,null,null,null,null,null,null,null,null,null,null,null,null,null,null,null,null,null,0,{"$error":"#DIV/0!"}]
[null,null,null,null,null,null,null,null,null,null,null,null,null,null,null,null,null,null,null,null,null,null,null,0,{"$error":"#DIV/0!"}]
[null,null,null,null,null,null,null,null,null,null,null,null,null,null,null,null,null,null,null,null,null,null,null,0,{"$error":"#DIV/0!"}]
[null,null,null,null,null,null,null,null,null,null,null,null,null,null,null,null,null,null,null,null,null,null,null,0,{"$error":"#DIV/0!"}]
[null,null,null,null,null,null,null,null,null,null,null,null,null,null,null,null,null,null,null,null,null,null,null,0,{"$error":"#DIV/0!"}]
[null,null,null,null,null,null,null,null,null,null,null,null,null,null,null,null,null,null,null,null,null,null,null,0,{"$error":"#DIV/0!"}]
[null,null,null,null,null,null,null,null,null,null,null,null,null,null,null,null,null,null,null,null,null,null,null,0,{"$error":"#DIV/0!"}]
[null,null,null,null,null,null,null,null,null,null,null,null,null,null,null,null,null,null,null,null,null,null,null,0,{"$error":"#DIV/0!"}]
[null,null,null,null,null,null,null,null,null,null,null,null,null,null,null,null,null,null,null,null,null,null,null,0,{"$error":"#DIV/0!"}]
[null,null,null,null,null,null,null,null,null,null,null,null,null,null,null,null,null,null,null,null,null,null,null,0,{"$error":"#DIV/0!"}]
[null,null,null,null,null,null,null,null,null,null,null,null,null,null,null,null,null,null,null,null,null,null,null,0,{"$error":"#DIV/0!"}]
[null,null,null,null,null,null,null,null,null,null,null,null,null,null,null,null,null,null,null,null,null,null,null,0,{"$error":"#DIV/0!"}]
[null,null,null,null,null,null,null,null,null,null,null,null,null,null,null,null,null,null,null,null,null,null,null,0,{"$error":"#DIV/0!"}]
[null,null,null,null,null,null,null,null,null,null,null,null,null,null,null,null,null,null,null,null,null,null,null,0,{"$error":"#DIV/0!"}]
[null,null,null,null,null,null,null,null,null,null,null,null,null,null,null,null,null,null,null,null,null,null,null,0,{"$error":"#DIV/0!"}]
[null,null,null,null,null,null,null,null,null,null,null,null,null,null,null,null,null,null,null,null,null,null,null,0,{"$error":"#DIV/0!"}]
[null,null,null,null,null,null,null,null,null,null,null,null,null,null,null,null,null,null,null,null,null,null,null,0,{"$error":"#DIV/0!"}]
[null,"Community Connectivity Plans (CCP’s)",null,null,null,null,null,null,null,null,null,null,null,null,null,null,null,null,null,null,null,null,null,"",""]
[null,"Community Connectivity Plans (CCP’s)",null,null,null,null,null,null,null,null,null,null,null,null,null,null,null,null,null,null,null,null,null,"",""]
[1,"Introduction ",null,null,null,null,null,null,null,null,null,null,null,null,null,null,null,null,null,null,null,null,null,"",""]
[2,"Current Performance and Service Area Trends",null,null,null,null,null,null,null,null,null,null,null,null,null,null,null,null,null,null,null,null,null,"",""]
[3,"Public Input",null,null,null,null,null,null,null,null,null,null,null,null,null,null,null,null,null,null,null,null,null,"",""]
[4,"Service and Connectivity Plan",null,null,null,null,null,null,null,null,null,null,null,null,null,null,null,null,null,null,null,null,null,"",""]
[5,"Asset Enhancement Plan",null,null,null,null,null,null,null,null,null,null,null,null,null,null,null,null,null,null,null,null,null,"",""]
[6,"Financial Plan",null,null,null,null,null,null,null,null,null,null,null,null,null,null,null,null,null,null,null,null,null,"",""]
[7,"Assessment and Strategies Plan & Success Plan",null,null,null,null,null,null,null,null,null,null,null,null,null,null,null,null,null,null,null,null,null,"",""]
[8,"Draft and Final CCP",null,null,null,null,null,null,null,null,null,null,null,null,null,null,null,null,null,null,null,null,null,"",""]
[null,null,null,null,null,null,null,null,null,null,null,null,null,null,null,null,null,null,null,null,null,null,null,0,{"$error":"#DIV/0!"}]
[null,null,null,null,null,null,null,null,null,null,null,null,null,null,null,null,null,null,null,null,null,null,null,{"$f":"IF(B76=\"\",0,IF((SUM(D76:W76)=0),\"\",SUM(D76:W76)))","v":0},{"$f":"IF(X76=\"\",\"\",SUM((X76/$X$121)))","v":{"$error":"#DIV/0!"}}]
[null,null,null,null,null,null,null,null,null,null,null,null,null,null,null,null,null,null,null,null,null,null,null,0,{"$error":"#DIV/0!"}]
[null,null,null,null,null,null,null,null,null,null,null,null,null,null,null,null,null,null,null,null,null,null,null,0,{"$error":"#DIV/0!"}]
[null,null,null,null,null,null,null,null,null,null,null,null,null,null,null,null,null,null,null,null,null,null,null,0,{"$error":"#DIV/0!"}]
[null,null,null,null,null,null,null,null,null,null,null,null,null,null,null,null,null,null,null,null,null,null,null,0,{"$error":"#DIV/0!"}]
[null,null,null,null,null,null,null,null,null,null,null,null,null,null,null,null,null,null,null,null,null,null,null,0,{"$error":"#DIV/0!"}]
[null,null,null,null,null,null,null,null,null,null,null,null,null,null,null,null,null,null,null,null,null,null,null,0,{"$error":"#DIV/0!"}]
[null,null,null,null,null,null,null,null,null,null,null,null,null,null,null,null,null,null,null,null,null,null,null,0,{"$error":"#DIV/0!"}]
[null,null,null,null,null,null,null,null,null,null,null,null,null,null,null,null,null,null,null,null,null,null,null,0,{"$error":"#DIV/0!"}]
[null,null,null,null,null,null,null,null,null,null,null,null,null,null,null,null,null,null,null,null,null,null,null,0,{"$error":"#DIV/0!"}]
[null,null,null,null,null,null,null,null,null,null,null,null,null,null,null,null,null,null,null,null,null,null,null,0,{"$error":"#DIV/0!"}]
[null,null,null,null,null,null,null,null,null,null,null,null,null,null,null,null,null,null,null,null,null,null,null,0,{"$error":"#DIV/0!"}]
[null,null,null,null,null,null,null,null,null,null,null,null,null,null,null,null,null,null,null,null,null,null,null,0,{"$error":"#DIV/0!"}]
[null,null,null,null,null,null,null,null,null,null,null,null,null,null,null,null,null,null,null,null,null,null,null,0,{"$error":"#DIV/0!"}]
[null,null,null,null,null,null,null,null,null,null,null,null,null,null,null,null,null,null,null,null,null,null,null,0,{"$error":"#DIV/0!"}]
[null,null,null,null,null,null,null,null,null,null,null,null,null,null,null,null,null,null,null,null,null,null,null,0,{"$error":"#DIV/0!"}]
[null,null,null,null,null,null,null,null,null,null,null,null,null,null,null,null,null,null,null,null,null,null,null,0,{"$error":"#DIV/0!"}]
[null,null,null,null,null,null,null,null,null,null,null,null,null,null,null,null,null,null,null,null,null,null,null,0,{"$error":"#DIV/0!"}]
[null,null,null,null,null,null,null,null,null,null,null,null,null,null,null,null,null,null,null,null,null,null,null,0,{"$error":"#DIV/0!"}]
[null,null,null,null,null,null,null,null,null,null,null,null,null,null,null,null,null,null,null,null,null,null,null,0,{"$error":"#DIV/0!"}]
[null,null,null,null,null,null,null,null,null,null,null,null,null,null,null,null,null,null,null,null,null,null,null,0,{"$error":"#DIV/0!"}]
[null,null,null,null,null,null,null,null,null,null,null,null,null,null,null,null,null,null,null,null,null,null,null,0,{"$error":"#DIV/0!"}]
[null,null,null,null,null,null,null,null,null,null,null,null,null,null,null,null,null,null,null,null,null,null,null,0,{"$error":"#DIV/0!"}]
[null,null,null,null,null,null,null,null,null,null,null,null,null,null,null,null,null,null,null,null,null,null,null,0,{"$error":"#DIV/0!"}]
[null,null,null,null,null,null,null,null,null,null,null,null,null,null,null,null,null,null,null,null,null,null,null,0,{"$error":"#DIV/0!"}]
[null,null,null,null,null,null,null,null,null,null,null,null,null,null,null,null,null,null,null,null,null,null,null,0,{"$error":"#DIV/0!"}]
[null,null,null,null,null,null,null,null,null,null,null,null,null,null,null,null,null,null,null,null,null,null,null,0,{"$error":"#DIV/0!"}]
[null,null,null,null,null,null,null,null,null,null,null,null,null,null,null,null,null,null,null,null,null,null,null,0,{"$error":"#DIV/0!"}]
[null,null,null,null,null,null,null,null,null,null,null,null,null,null,null,null,null,null,null,null,null,null,null,0,{"$error":"#DIV/0!"}]
[null,null,null,null,null,null,null,null,null,null,null,null,null,null,null,null,null,null,null,null,null,null,null,0,{"$error":"#DIV/0!"}]
[null,null,null,null,null,null,null,null,null,null,null,null,null,null,null,null,null,null,null,null,null,null,null,0,{"$error":"#DIV/0!"}]
[null,null,null,null,null,null,null,null,null,null,null,null,null,null,null,null,null,null,null,null,null,null,null,0,{"$error":"#DIV/0!"}]
[null,null,null,null,null,null,null,null,null,null,null,null,null,null,null,null,null,null,null,null,null,null,null,0,{"$error":"#DIV/0!"}]
[null,null,null,null,null,null,null,null,null,null,null,null,null,null,null,null,null,null,null,null,null,null,null,0,{"$error":"#DIV/0!"}]
[null,null,null,null,null,null,null,null,null,null,null,null,null,null,null,null,null,null,null,null,null,null,null,0,{"$error":"#DIV/0!"}]
[null,null,null,null,null,null,null,null,null,null,null,null,null,null,null,null,null,null,null,null,null,null,null,0,{"$error":"#DIV/0!"}]
[null,null,null,null,null,null,null,null,null,null,null,null,null,null,null,null,null,null,null,null,null,null,null,0,{"$error":"#DIV/0!"}]
[null,null,null,null,null,null,null,null,null,null,null,null,null,null,null,null,null,null,null,null,null,null,null,0,{"$error":"#DIV/0!"}]
[null,null,null,null,null,null,null,null,null,null,null,null,null,null,null,null,null,null,null,null,null,null,null,0,{"$error":"#DIV/0!"}]
[null,null,null,null,null,null,null,null,null,null,null,null,null,null,null,null,null,null,null,null,null,null,null,0,{"$error":"#DIV/0!"}]
[null,null,null,null,null,null,null,null,null,null,null,null,null,null,null,null,null,null,null,null,null,null,null,0,{"$error":"#DIV/0!"}]
[null,null,null,null,null,null,null,null,null,null,null,null,null,null,null,null,null,null,null,null,null,null,null,0,{"$error":"#DIV/0!"}]
[null,null,null,null,null,null,null,null,null,null,null,null,null,null,null,null,null,null,null,null,null,null,null,0,{"$error":"#DIV/0!"}]
[null,null,null,null,null,null,null,null,null,null,null,null,null,null,null,null,null,null,null,null,null,null,null,0,{"$error":"#DIV/0!"}]
[null,null,null,null,null,null,null,null,null,null,null,null,null,null,null,null,null,null,null,null,null,null,null,0,{"$error":"#DIV/0!"}]
[null,"TOTAL WORKHOURS/CATEGORY:",null,{"$f":"SUM(D11:D120)","v":0},0,0,0,0,0,0,0,0,0,0,0,0,0,0,0,0,0,0,0,{"$f":"SUM(X11:X120)","v":0},{"$f":"SUM(Y11:Y120)","v":{"$error":"#DIV/0!"}},{"$f":"SUM(Z12:Z120)","v":0}]
[null,"TOTAL WORKDAYS/CATEGORY:",null,{"$f":"D121/8","v":0},{"$f":"E121/8","v":0},0,0,0,0,0,0,0,0,0,0,0,0,0,0,0,0,0,0]
[null,"HOURLY SALARY RATE:",null,{"$f":"'PEF CLASSIFICATION SHEET'!E859","v":0},{"$f":"'PEF CLASSIFICATION SHEET'!E860","v":0},{"$f":"'PEF CLASSIFICATION SHEET'!E861","v":0},{"$f":"'PEF CLASSIFICATION SHEET'!E862","v":0},{"$f":"'PEF CLASSIFICATION SHEET'!E863","v":0},{"$f":"'PEF CLASSIFICATION SHEET'!E864","v":0},{"$f":"'PEF CLASSIFICATION SHEET'!E865","v":0},{"$f":"'PEF CLASSIFICATION SHEET'!E866","v":0},{"$f":"'PEF CLASSIFICATION SHEET'!E867","v":0},{"$f":"'PEF CLASSIFICATION SHEET'!E868","v":0},{"$f":"'PEF CLASSIFICATION SHEET'!E869","v":0},{"$f":"'PEF CLASSIFICATION SHEET'!E870","v":0},{"$f":"'PEF CLASSIFICATION SHEET'!E871","v":0},{"$f":"'PEF CLASSIFICATION SHEET'!E872","v":0},{"$f":"'PEF CLASSIFICATION SHEET'!E873","v":0},{"$f":"'PEF CLASSIFICATION SHEET'!E874","v":0},{"$f":"'PEF CLASSIFICATION SHEET'!E875","v":0},{"$f":"'PEF CLASSIFICATION SHEET'!E876","v":0},{"$f":"'PEF CLASSIFICATION SHEET'!E877","v":0},{"$f":"'PEF CLASSIFICATION SHEET'!E878","v":0}]
[null,"RATES PER DAY:",null,{"$f":"D123*8","v":0},0,0,0,0,0,0,0,0,0,0,0,0,0,0,0,0,0,0,0]
[null,"PAYROLL BURDEN:",null,{"$f":"SUM(D121*D123)","v":0},{"$f":"SUM(E121*E123)","v":0},0,0,0,0,0,0,0,0,0,0,0,0,0,0,0,0,0,0]
[null,"TOTAL WORKDAYS:",null,{"$f":"SUM(D122:W122)","v":0}]
[null,"TOTAL PAYROLL BURDEN:",null,{"$f":"SUM(D125:W125)","v":0}]
[null,"AVERAGE COST PER HOUR:",null,{"$f":"SUM(D127/(D126*8))","v":{"$error":"#DIV/0!"}},null,null,null,null,null,null,null,null,null,null,null,null,null,null,null,null,null,null,null," "]
[null,"GENERAL OVERHEAD:",{"$f":"PUBLIC.TRANSPORTATION.SUB2_CONSULTANT_OVERHEAD","v":0},{"$f":"SUM(D127*C129)","v":0}]
[null,"SUBTOTAL:",null,{"$f":"SUM(D127+D129)","v":0}]
[null,"COMPARATIVE FEE:",{"$f":"PUBLIC.TRANSPORTATION.SUB2_CONSULTANT_FEE","v":0},{"$f":"SUM(D130*C131)","v":0}]
[null,"FACILITIES COST OF CAPITAL:",{"$f":"PUBLIC.TRANSPORTATION.SUB2_CONSULTANT_COSTofCAPITAL","v":0},{"$f":"SUM(D127*C132)","v":0}]
[null,"TOTAL:",null,{"$f":"SUM(D130:D132)","v":0}]
[null,"DIRECT EXPENSES:",null,{"$f":"PUBLIC.TRANSPORTATION.SUB2_DIRECT_NONSALARY_TOTAL","v":0}]
[null,"PUBLIC TRANSPORTATION GRAND TOTAL:",null,{"$f":"SUM(D133:D134)","v":0}]

{"sheet":"IM-PublicTransp-Exp-Sub2","index":104,"n_rows":46,"n_cols":8,"rows_kept":46,"cut":false,"hidden":true,"merged":[[0,0,0,7],[1,3,1,7]]}
["PUBLIC TRANSPORTATION--DIRECT EXPENSES - SUBCONSULTANT 2"]
["TIP NUMBER",{"$f":"TIP.NUMBER","v":0},"FIRM:",{"$f":"'IM-PublicTransp-Sub2'!G3","v":"CONSULTANT NAME"}]
[]
["GENERAL PROJECT WORK:","ITEM","QTY","DESCRIPTION",null,null,"UNIT COST "]
[null,"Travel:"]
[null,"Sedan",0,"Trip(s) @",0,"miles @",{"$f":"SEDAN","v":0.7},{"$f":"SUM(C6*E6*G6)","v":0}]
[null,"Carry All",0,"Trip(s) @",0,"miles @",{"$f":"CARRYALL","v":0.72},{"$f":"SUM(C7*E7*G7)","v":0}]
[null,"Car Rental",null,null,0,"days @ ",{"$f":"CARRENTAL","v":50},{"$f":"SUM(E8*G8)","v":0}]
[null,"Gas for Rental",null,null,0,"miles @",{"$f":"GASforRENTAL","v":0.2},{"$f":"SUM(E9*G9)","v":0}]
[null,"Parking:",0,"Trip(s) @",null,null,{"$f":"PARKING","v":3},{"$f":"SUM(C10*G10)","v":0}]
[null,"Per Diem:",0,"Breakfast",null,null,{"$f":"BREAKFAST","v":10.1},{"$f":"SUM(C11*G11)","v":0}]
[null,null,0,"Lunch",null,null,{"$f":"LUNCH","v":13.3},0]
[null,null,0,"Dinner",null,null,{"$f":"DINNER","v":23.1},0]
[null,null,0,"Lodging",null,null,{"$f":"LODGING_LUMP.SUM","v":95},0]
[null,"Reproduction:",0,"8 1/2 x 11 B & W Copies @",null,null,{"$f":"LETTERCOPIES","v":0.14000000000000001},0]
[null,null,0,"11 x 17 B & W Copies @",null,null,{"$f":"LEDGERCOPIES","v":0.34},0]
[null,null,0,"8 1/2 x 11 Color Copies @",null,null,{"$f":"LETTERCOLOR","v":0.83},0]
[null,null,0,"11 x 17 Color Copies @",null,null,{"$f":"LEDGERCOLOR","v":1.66},0]
[null,null,0,"SQ. FT. of Plots (B & W or Color)",null,"<65 SQ. FT.*",{"$f":"ROLLPLOTSshort","v":6.5},0]
[null,null,0,"SQ. FT. of Plots (B & W or Color)",null,">65 SQ. FT.*",{"$f":"ROLLPLOTSlong","v":1.5},0]
[null,null,0,"Cover(s) @",null,null,{"$f":"COVERS","v":0.5},0]
[null,null,0,"Binder(s) @",null,null,{"$f":"BINDERS","v":0.5},0]
[null,null,0,"Blueprints - 8 1/2 x 11 @",null,null,{"$f":"BLUEPRINTSLETTER","v":0.35},0]
[null,null,0,"Blueprints - 42 x 72 @",null,null,{"$f":"BLUEPRINTSLARGE","v":1.3},0]
[null,"Film and Developing:",0,"Roll(s) @",null,null,{"$f":"FILM","v":20},0]
[null,null,null,null,null,"Subtotal",null,{"$f":"SUM(H6:H25)","v":0}]
["MAPS AND DOCUMENTS:","ITEM","QTY","DESCRIPTION",null,null,"UNIT COST "]
[null,"County Tax Maps:",0,"Map(s) @",null,null,{"$f":"County_Tax_Maps","v":7},{"$f":"SUM(C28*G28)","v":0}]
[null,"USGS Maps:",0,"Map(s) @",null,null,{"$f":"USGSMAPS","v":7},{"$f":"SUM(C29*G29)","v":0}]
[null,null,null,null,null,"Subtotal",null,{"$f":"SUM(H28:H29)","v":0}]
["Miscellaneous Other","ITEM","QTY","DESCRIPTION",null,null,"UNIT COST "]
[null,null,null,null,null,null,null,{"$f":"SUM(C32*G32)","v":0}]
[null,null,null,null,null,null,null,{"$f":"SUM(C33*G33)","v":0}]
[null,null,null,null,null,null,null,0]
[null,null,null,null,null,null,null,0]
[null,null,null,null,null,null,null,0]
[null,null,null,null,null,null,null,0]
[null,null,null,null,null,null,null,0]
[null,null,null,null,null,null,null,{"$f":"SUM(C39*G39)","v":0}]
[null,null,null,null,null,null,null,{"$f":"SUM(C40*G40)","v":0}]
[null,null,null,null,null,null,null,{"$f":"SUM(C41*G41)","v":0}]
[null,null,null,null,null,"Subtotal",null,{"$f":"SUM(H32:H41)","v":0}]
[]
[null,null,null,null,null,"TOTAL",null,{"$f":"SUM(H26+H30+H42)","v":0}]
[]
[null,"* Sum of all plots "]

{"sheet":"IM-PublicTransp-Sub3","index":105,"n_rows":135,"n_cols":27,"rows_kept":135,"cut":false,"hidden":true,"merged":[[0,0,1,13],[2,1,2,4],[2,6,2,7],[2,10,2,11],[2,15,2,16],[3,1,3,4],[3,6,3,7],[3,10,3,11],[3,15,3,16],[6,12,9,12],[6,13,9,13],[6,14,9,14],[6,15,9,15],[6,16,9,16],[6,17,9,17],[4,3,4,22],[6,3,9,3],[6,4,9,4],[6,5,9,5],[6,6,9,6],[6,7,9,7],[6,8,9,8],[6,9,9,9],[6,10,9,10],[6,11,9,11],[10,26,10,27],[11,26,11,27],[12,26,12,27],[13,26,13,27],[14,26,14,27],[15,26,15,27],[6,18,9,18],[6,19,9,19],[6,20,9,20],[6,21,9,21],[6,22,9,22],[8,26,8,27],[22,26,22,27],[23,26,23,27],[24,26,24,27],[25,26,25,27],[26,26,26,27],[27,26,27,27],[16,26,16,27],[17,26,17,27],[18,26,18,27],[19,26,19,27],[20,26,20,27],[21,26,21,27],[34,26,34,27],[35,26,35,27],[36,26,36,27],[37,26,37,27],[38,26,38,27],[39,26,39,27],[28,26,28,27],[29,26,29,27],[30,26,30,27],[31,26,31,27],[32,26,32,27],[33,26,33,27],[46,26,46,27],[47,26,47,27],[48,26,48,27],[49,26,49,27],[50,26,50,27],[51,26,51,27],[40,26,40,27],[41,26,41,27],[42,26,42,27],[43,26,43,27],[44,26,44,27],[45,26,45,27],[58,26,58,27],[59,26,59,27],[60,26,60,27],[61,26,61,27],[62,26,62,27],[63,26,63,27],[52,26,52,27],[53,26,53,27],[54,26,54,27],[55,26,55,27],[56,26,56,27],[57,26,57,27],[70,26,70,27],[71,26,71,27],[72,26,72,27],[73,26,73,27],[74,26,74,27],[75,26,75,27],[64,26,64,27],[65,26,65,27],[66,26,66,27],[67,26,67,27],[68,26,68,27],[69,26,69,27],[82,26,82,27],[83,26,83,27],[84,26,84,27],[85,26,85,27],[86,26,86,27],[87,26,87,27],[76,26,76,27],[77,26,77,27],[78,26,78,27],[79,26,79,27],[80,26,80,27],[81,26,81,27],[94,26,94,27],[95,26,95,27],[96,26,96,27],[97,26,97,27],[98,26,98,27],[99,26,99,27],[88,26,88,27],[89,26,89,27],[90,26,90,27],[91,26,91,27],[92,26,92,27],[93,26,93,27],[106,26,106,27],[107,26,107,27],[108,26,108,27],[109,26,109,27],[110,26,110,27],[111,26,111,27],[100,26,100,27],[101,26,101,27],[102,26,102,27],[103,26,103,27],[104,26,104,27],[105,26,105,27],[118,26,118,27],[119,26,119,27],[134,1,135,1],[134,3,135,4],[138,3,138,6],[138,8,138,13],[112,26,112,27],[113,26,113,27],[114,26,114,27],[115,26,115,27],[116,26,116,27],[117,26,117,27],[145,8,145,9],[145,10,145,11],[139,8,139,9],[139,10,139,11],[140,8,140,9],[140,10,140,11],[143,8,143,13],[144,8,144,9],[144,10,144,11]]}
["PUBLIC TRANSPORTATION--BREAKDOWN WORKSHEET - SUBCONSULTANT 3 -- ENTER WORKHOURS"]
[]
["PROJECT DESCRIPTION: ",{"$f":"PROJECT.DESCRIPTION","v":0},null,null,null,"FIRM:  ",{"$f":"PUBLIC.TRANSPORTATION.SUB3_CONSULTANT_NAME","v":"CONSULTANT NAME"},null,"TASK ORDER NUMBER:",null,{"$f":"TASK.ORDER.NUMBER","v":0},null,"DATE PREPARED:",{"$f":"IF(SCOPE.MANDAY.ESTIMATE.PREPARED.BY.DATE=\"\",\"\",SCOPE.MANDAY.ESTIMATE.PREPARED.BY.DATE)","v":""}]
["PREPARED BY:  ",{"$f":"IF(SCOPE.MANDAY.ESTIMATE.PREPARED.BY=\"\",\"\",SCOPE.MANDAY.ESTIMATE.PREPARED.BY)","v":""},null,null,null,"TIP NUMBER:",{"$f":"TIP.NUMBER","v":0},null,"WBS NUMBER:",null,{"$f":"WBS.NUMBER","v":""},null,"REVISION DATE:",{"$f":"IF(SCOPE.MANDAY.ESTIMATE.APPROVED.BY.DATE=\"\",\"\",SCOPE.MANDAY.ESTIMATE.APPROVED.BY.DATE)","v":""}]
[null,null,null,"ESTIMATED WORKHOURS"]
[null,null,"EMPLOYEE NAMES",{"$f":"IF('PEF CLASSIFICATION SHEET'!D881=\"\",\"\",LEFT('PEF CLASSIFICATION SHEET'!D881,4))","v":""},{"$f":"IF('PEF CLASSIFICATION SHEET'!D882=\"\",\"\",LEFT('PEF CLASSIFICATION SHEET'!D882,4))","v":""},{"$f":"IF('PEF CLASSIFICATION SHEET'!D883=\"\",\"\",LEFT('PEF CLASSIFICATION SHEET'!D883,4))","v":""},{"$f":"IF('PEF CLASSIFICATION SHEET'!D884=\"\",\"\",LEFT('PEF CLASSIFICATION SHEET'!D884,4))","v":""},{"$f":"IF('PEF CLASSIFICATION SHEET'!D885=\"\",\"\",LEFT('PEF CLASSIFICATION SHEET'!D885,4))","v":""},{"$f":"IF('PEF CLASSIFICATION SHEET'!D886=\"\",\"\",LEFT('PEF CLASSIFICATION SHEET'!D886,4))","v":""},{"$f":"IF('PEF CLASSIFICATION SHEET'!D887=\"\",\"\",LEFT('PEF CLASSIFICATION SHEET'!D887,4))","v":""},{"$f":"IF('PEF CLASSIFICATION SHEET'!D888=\"\",\"\",LEFT('PEF CLASSIFICATION SHEET'!D888,4))","v":""},{"$f":"IF('PEF CLASSIFICATION SHEET'!D889=\"\",\"\",LEFT('PEF CLASSIFICATION SHEET'!D889,4))","v":""},{"$f":"IF('PEF CLASSIFICATION SHEET'!D890=\"\",\"\",LEFT('PEF CLASSIFICATION SHEET'!D890,4))","v":""},{"$f":"IF('PEF CLASSIFICATION SHEET'!D891=\"\",\"\",LEFT('PEF CLASSIFICATION SHEET'!D891,4))","v":""},{"$f":"IF('PEF CLASSIFICATION SHEET'!D892=\"\",\"\",LEFT('PEF CLASSIFICATION SHEET'!D892,4))","v":""},{"$f":"IF('PEF CLASSIFICATION SHEET'!D893=\"\",\"\",LEFT('PEF CLASSIFICATION SHEET'!D893,4))","v":""},{"$f":"IF('PEF CLASSIFICATION SHEET'!D894=\"\",\"\",LEFT('PEF CLASSIFICATION SHEET'!D894,4))","v":""},{"$f":"IF('PEF CLASSIFICATION SHEET'!D895=\"\",\"\",LEFT('PEF CLASSIFICATION SHEET'!D895,4))","v":""},{"$f":"IF('PEF CLASSIFICATION SHEET'!D896=\"\",\"\",LEFT('PEF CLASSIFICATION SHEET'!D896,4))","v":""},{"$f":"IF('PEF CLASSIFICATION SHEET'!D897=\"\",\"\",LEFT('PEF CLASSIFICATION SHEET'!D897,4))","v":""},{"$f":"IF('PEF CLASSIFICATION SHEET'!D898=\"\",\"\",LEFT('PEF CLASSIFICATION SHEET'!D898,4))","v":""},{"$f":"IF('PEF CLASSIFICATION SHEET'!D899=\"\",\"\",LEFT('PEF CLASSIFICATION SHEET'!D899,4))","v":""},{"$f":"IF('PEF CLASSIFICATION SHEET'!D900=\"\",\"\",LEFT('PEF CLASSIFICATION SHEET'!D900,4))","v":""}]
[null,null,null,{"$f":"IF('PEF CLASSIFICATION SHEET'!C881=\"\",\"\",'PEF CLASSIFICATION SHEET'!C881)","v":""},{"$f":"IF('PEF CLASSIFICATION SHEET'!C882=\"\",\"\",'PEF CLASSIFICATION SHEET'!C882)","v":""},{"$f":"IF('PEF CLASSIFICATION SHEET'!C883=\"\",\"\",'PEF CLASSIFICATION SHEET'!C883)","v":""},{"$f":"IF('PEF CLASSIFICATION SHEET'!C884=\"\",\"\",'PEF CLASSIFICATION SHEET'!C884)","v":""},{"$f":"IF('PEF CLASSIFICATION SHEET'!C885=\"\",\"\",'PEF CLASSIFICATION SHEET'!C885)","v":""},{"$f":"IF('PEF CLASSIFICATION SHEET'!C886=\"\",\"\",'PEF CLASSIFICATION SHEET'!C886)","v":""},{"$f":"IF('PEF CLASSIFICATION SHEET'!C887=\"\",\"\",'PEF CLASSIFICATION SHEET'!C887)","v":""},{"$f":"IF('PEF CLASSIFICATION SHEET'!C888=\"\",\"\",'PEF CLASSIFICATION SHEET'!C888)","v":""},{"$f":"IF('PEF CLASSIFICATION SHEET'!C889=\"\",\"\",'PEF CLASSIFICATION SHEET'!C889)","v":""},{"$f":"IF('PEF CLASSIFICATION SHEET'!C890=\"\",\"\",'PEF CLASSIFICATION SHEET'!C890)","v":""},{"$f":"IF('PEF CLASSIFICATION SHEET'!C891=\"\",\"\",'PEF CLASSIFICATION SHEET'!C891)","v":""},{"$f":"IF('PEF CLASSIFICATION SHEET'!C892=\"\",\"\",'PEF CLASSIFICATION SHEET'!C892)","v":""},{"$f":"IF('PEF CLASSIFICATION SHEET'!C893=\"\",\"\",'PEF CLASSIFICATION SHEET'!C893)","v":""},{"$f":"IF('PEF CLASSIFICATION SHEET'!C894=\"\",\"\",'PEF CLASSIFICATION SHEET'!C894)","v":""},{"$f":"IF('PEF CLASSIFICATION SHEET'!C895=\"\",\"\",'PEF CLASSIFICATION SHEET'!C895)","v":""},{"$f":"IF('PEF CLASSIFICATION SHEET'!C896=\"\",\"\",'PEF CLASSIFICATION SHEET'!C896)","v":""},{"$f":"IF('PEF CLASSIFICATION SHEET'!C897=\"\",\"\",'PEF CLASSIFICATION SHEET'!C897)","v":""},{"$f":"IF('PEF CLASSIFICATION SHEET'!C898=\"\",\"\",'PEF CLASSIFICATION SHEET'!C898)","v":""},{"$f":"IF('PEF CLASSIFICATION SHEET'!C899=\"\",\"\",'PEF CLASSIFICATION SHEET'!C899)","v":""},{"$f":"IF('PEF CLASSIFICATION SHEET'!C900=\"\",\"\",'PEF CLASSIFICATION SHEET'!C900)","v":""},"SUB-","%","PEF"]
[null,null,null,null,null,null,null,null,null,null,null,null,null,null,null,null,null,null,null,null,null,null,null,"TOTAL","OF","ESTIMATE"]
["TASK","TASK DESCRIPTION","CLASSIFICATION",null,null,null,null,null,null,null,null,null,null,null,null,null,null,null,null,null,null,null,null,null,"PROJECT",null,"COMMENTS"]
["NO."]
[null,"Proficiency Reviews (PR’s)",null,null,null,null,null,null,null,null,null,null,null,null,null,null,null,null,null,null,null,null,null,{"$f":"IF(B11=\"\",0,IF((SUM(D11:W11)=0),\"\",SUM(D11:W11)))","v":""},{"$f":"IF(X11=\"\",\"\",SUM((X11/$X$121)))","v":""}]
[null,"Proficiency Reviews (PR’s)",null,null,null,null,null,null,null,null,null,null,null,null,null,null,null,null,null,null,null,null,null,{"$f":"IF(B12=\"\",0,IF((SUM(D12:W12)=0),\"\",SUM(D12:W12)))","v":""},{"$f":"IF(X12=\"\",\"\",SUM((X12/$X$121)))","v":""}]
[1,"Training",null,null,null,null,null,null,null,null,null,null,null,null,null,null,null,null,null,null,null,null,null,"",""]
[null,null,null,null,null,null,null,null,null,null,null,null,null,null,null,null,null,null,null,null,null,null,null,0,{"$error":"#DIV/0!"}]
[null,null,null,null,null,null,null,null,null,null,null,null,null,null,null,null,null,null,null,null,null,null,null,0,{"$error":"#DIV/0!"}]
[null,null,null,null,null,null,null,null,null,null,null,null,null,null,null,null,null,null,null,null,null,null,null,0,{"$error":"#DIV/0!"}]
[null,null,null,null,null,null,null,null,null,null,null,null,null,null,null,null,null,null,null,null,null,null,null,0,{"$error":"#DIV/0!"}]
[null,null,null,null,null,null,null,null,null,null,null,null,null,null,null,null,null,null,null,null,null,null,null,0,{"$error":"#DIV/0!"}]
[2,"Desk Reviews (XX Reviews)",null,null,null,null,null,null,null,null,null,null,null,null,null,null,null,null,null,null,null,null,null,"",""]
[null,null,null,null,null,null,null,null,null,null,null,null,null,null,null,null,null,null,null,null,null,null,null,0,{"$error":"#DIV/0!"}]
[null,null,null,null,null,null,null,null,null,null,null,null,null,null,null,null,null,null,null,null,null,null,null,0,{"$error":"#DIV/0!"}]
[null,null,null,null,null,null,null,null,null,null,null,null,null,null,null,null,null,null,null,null,null,null,null,0,{"$error":"#DIV/0!"}]
[null,null,null,null,null,null,null,null,null,null,null,null,null,null,null,null,null,null,null,null,null,null,null,0,{"$error":"#DIV/0!"}]
[null,null,null,null,null,null,null,null,null,null,null,null,null,null,null,null,null,null,null,null,null,null,null,0,{"$error":"#DIV/0!"}]
[3,"On-Site Reviews (XX Reviews)",null,null,null,null,null,null,null,null,null,null,null,null,null,null,null,null,null,null,null,null,null,"",""]
[null,null,null,null,null,null,null,null,null,null,null,null,null,null,null,null,null,null,null,null,null,null,null,0,{"$error":"#DIV/0!"}]
[null,null,null,null,null,null,null,null,null,null,null,null,null,null,null,null,null,null,null,null,null,null,null,0,{"$error":"#DIV/0!"}]
[null,null,null,null,null,null,null,null,null,null,null,null,null,null,null,null,null,null,null,null,null,null,null,0,{"$error":"#DIV/0!"}]
[null,null,null,null,null,null,null,null,null,null,null,null,null,null,null,null,null,null,null,null,null,null,null,0,{"$error":"#DIV/0!"}]
[null,null,null,null,null,null,null,null,null,null,null,null,null,null,null,null,null,null,null,null,null,null,null,0,{"$error":"#DIV/0!"}]
[4,"Follow Up and Final Reports (XX Reviews)",null,null,null,null,null,null,null,null,null,null,null,null,null,null,null,null,null,null,null,null,null,"",""]
[null,null,null,null,null,null,null,null,null,null,null,null,null,null,null,null,null,null,null,null,null,null,null,0,{"$error":"#DIV/0!"}]
[null,null,null,null,null,null,null,null,null,null,null,null,null,null,null,null,null,null,null,null,null,null,null,0,{"$error":"#DIV/0!"}]
[null,null,null,null,null,null,null,null,null,null,null,null,null,null,null,null,null,null,null,null,null,null,null,0,{"$error":"#DIV/0!"}]
[null,null,null,null,null,null,null,null,null,null,null,null,null,null,null,null,null,null,null,null,null,null,null,0,{"$error":"#DIV/0!"}]
[null,null,null,null,null,null,null,null,null,null,null,null,null,null,null,null,null,null,null,null,null,null,null,0,{"$error":"#DIV/0!"}]
[5,"Inventory of Best Practices (XX Reviews)",null,null,null,null,null,null,null,null,null,null,null,null,null,null,null,null,null,null,null,null,null,"",""]
[null,null,null,null,null,null,null,null,null,null,null,null,null,null,null,null,null,null,null,null,null,null,null,0,{"$error":"#DIV/0!"}]
[null,null,null,null,null,null,null,null,null,null,null,null,null,null,null,null,null,null,null,null,null,null,null,0,{"$error":"#DIV/0!"}]
[null,null,null,null,null,null,null,null,null,null,null,null,null,null,null,null,null,null,null,null,null,null,null,0,{"$error":"#DIV/0!"}]
[null,null,null,null,null,null,null,null,null,null,null,null,null,null,null,null,null,null,null,null,null,null,null,0,{"$error":"#DIV/0!"}]
[null,null,null,null,null,null,null,null,null,null,null,null,null,null,null,null,null,null,null,null,null,null,null,0,{"$error":"#DIV/0!"}]
[null,null,null,null,null,null,null,null,null,null,null,null,null,null,null,null,null,null,null,null,null,null,null,0,{"$error":"#DIV/0!"}]
[null,null,null,null,null,null,null,null,null,null,null,null,null,null,null,null,null,null,null,null,null,null,null,0,{"$error":"#DIV/0!"}]
[null,null,null,null,null,null,null,null,null,null,null,null,null,null,null,null,null,null,null,null,null,null,null,0,{"$error":"#DIV/0!"}]
[null,null,null,null,null,null,null,null,null,null,null,null,null,null,null,null,null,null,null,null,null,null,null,0,{"$error":"#DIV/0!"}]
[null,null,null,null,null,null,null,null,null,null,null,null,null,null,null,null,null,null,null,null,null,null,null,0,{"$error":"#DIV/0!"}]
[null,null,null,null,null,null,null,null,null,null,null,null,null,null,null,null,null,null,null,null,null,null,null,0,{"$error":"#DIV/0!"}]
[null,null,null,null,null,null,null,null,null,null,null,null,null,null,null,null,null,null,null,null,null,null,null,0,{"$error":"#DIV/0!"}]
[null,null,null,null,null,null,null,null,null,null,null,null,null,null,null,null,null,null,null,null,null,null,null,0,{"$error":"#DIV/0!"}]
[null,null,null,null,null,null,null,null,null,null,null,null,null,null,null,null,null,null,null,null,null,null,null,0,{"$error":"#DIV/0!"}]
[null,null,null,null,null,null,null,null,null,null,null,null,null,null,null,null,null,null,null,null,null,null,null,0,{"$error":"#DIV/0!"}]
[null,null,null,null,null,null,null,null,null,null,null,null,null,null,null,null,null,null,null,null,null,null,null,0,{"$error":"#DIV/0!"}]
[null,null,null,null,null,null,null,null,null,null,null,null,null,null,null,null,null,null,null,null,null,null,null,0,{"$error":"#DIV/0!"}]
[null,null,null,null,null,null,null,null,null,null,null,null,null,null,null,null,null,null,null,null,null,null,null,0,{"$error":"#DIV/0!"}]
[null,null,null,null,null,null,null,null,null,null,null,null,null,null,null,null,null,null,null,null,null,null,null,0,{"$error":"#DIV/0!"}]
[null,null,null,null,null,null,null,null,null,null,null,null,null,null,null,null,null,null,null,null,null,null,null,0,{"$error":"#DIV/0!"}]
[null,null,null,null,null,null,null,null,null,null,null,null,null,null,null,null,null,null,null,null,null,null,null,0,{"$error":"#DIV/0!"}]
[null,null,null,null,null,null,null,null,null,null,null,null,null,null,null,null,null,null,null,null,null,null,null,0,{"$error":"#DIV/0!"}]
[null,null,null,null,null,null,null,null,null,null,null,null,null,null,null,null,null,null,null,null,null,null,null,0,{"$error":"#DIV/0!"}]
[null,null,null,null,null,null,null,null,null,null,null,null,null,null,null,null,null,null,null,null,null,null,null,0,{"$error":"#DIV/0!"}]
[null,null,null,null,null,null,null,null,null,null,null,null,null,null,null,null,null,null,null,null,null,null,null,0,{"$error":"#DIV/0!"}]
[null,null,null,null,null,null,null,null,null,null,null,null,null,null,null,null,null,null,null,null,null,null,null,0,{"$error":"#DIV/0!"}]
[null,null,null,null,null,null,null,null,null,null,null,null,null,null,null,null,null,null,null,null,null,null,null,0,{"$error":"#DIV/0!"}]
[null,"Community Connectivity Plans (CCP’s)",null,null,null,null,null,null,null,null,null,null,null,null,null,null,null,null,null,null,null,null,null,"",""]
[null,"Community Connectivity Plans (CCP’s)",null,null,null,null,null,null,null,null,null,null,null,null,null,null,null,null,null,null,null,null,null,"",""]
[1,"Introduction ",null,null,null,null,null,null,null,null,null,null,null,null,null,null,null,null,null,null,null,null,null,"",""]
[2,"Current Performance and Service Area Trends",null,null,null,null,null,null,null,null,null,null,null,null,null,null,null,null,null,null,null,null,null,"",""]
[3,"Public Input",null,null,null,null,null,null,null,null,null,null,null,null,null,null,null,null,null,null,null,null,null,"",""]
[4,"Service and Connectivity Plan",null,null,null,null,null,null,null,null,null,null,null,null,null,null,null,null,null,null,null,null,null,"",""]
[5,"Asset Enhancement Plan",null,null,null,null,null,null,null,null,null,null,null,null,null,null,null,null,null,null,null,null,null,"",""]
[6,"Financial Plan",null,null,null,null,null,null,null,null,null,null,null,null,null,null,null,null,null,null,null,null,null,"",""]
[7,"Assessment and Strategies Plan & Success Plan",null,null,null,null,null,null,null,null,null,null,null,null,null,null,null,null,null,null,null,null,null,"",""]
[8,"Draft and Final CCP",null,null,null,null,null,null,null,null,null,null,null,null,null,null,null,null,null,null,null,null,null,"",""]
[null,null,null,null,null,null,null,null,null,null,null,null,null,null,null,null,null,null,null,null,null,null,null,0,{"$error":"#DIV/0!"}]
[null,null,null,null,null,null,null,null,null,null,null,null,null,null,null,null,null,null,null,null,null,null,null,{"$f":"IF(B76=\"\",0,IF((SUM(D76:W76)=0),\"\",SUM(D76:W76)))","v":0},{"$f":"IF(X76=\"\",\"\",SUM((X76/$X$121)))","v":{"$error":"#DIV/0!"}}]
[null,null,null,null,null,null,null,null,null,null,null,null,null,null,null,null,null,null,null,null,null,null,null,0,{"$error":"#DIV/0!"}]
[null,null,null,null,null,null,null,null,null,null,null,null,null,null,null,null,null,null,null,null,null,null,null,0,{"$error":"#DIV/0!"}]
[null,null,null,null,null,null,null,null,null,null,null,null,null,null,null,null,null,null,null,null,null,null,null,0,{"$error":"#DIV/0!"}]
[null,null,null,null,null,null,null,null,null,null,null,null,null,null,null,null,null,null,null,null,null,null,null,0,{"$error":"#DIV/0!"}]
[null,null,null,null,null,null,null,null,null,null,null,null,null,null,null,null,null,null,null,null,null,null,null,0,{"$error":"#DIV/0!"}]
[null,null,null,null,null,null,null,null,null,null,null,null,null,null,null,null,null,null,null,null,null,null,null,0,{"$error":"#DIV/0!"}]
[null,null,null,null,null,null,null,null,null,null,null,null,null,null,null,null,null,null,null,null,null,null,null,0,{"$error":"#DIV/0!"}]
[null,null,null,null,null,null,null,null,null,null,null,null,null,null,null,null,null,null,null,null,null,null,null,0,{"$error":"#DIV/0!"}]
[null,null,null,null,null,null,null,null,null,null,null,null,null,null,null,null,null,null,null,null,null,null,null,0,{"$error":"#DIV/0!"}]
[null,null,null,null,null,null,null,null,null,null,null,null,null,null,null,null,null,null,null,null,null,null,null,0,{"$error":"#DIV/0!"}]
[null,null,null,null,null,null,null,null,null,null,null,null,null,null,null,null,null,null,null,null,null,null,null,0,{"$error":"#DIV/0!"}]
[null,null,null,null,null,null,null,null,null,null,null,null,null,null,null,null,null,null,null,null,null,null,null,0,{"$error":"#DIV/0!"}]
[null,null,null,null,null,null,null,null,null,null,null,null,null,null,null,null,null,null,null,null,null,null,null,0,{"$error":"#DIV/0!"}]
[null,null,null,null,null,null,null,null,null,null,null,null,null,null,null,null,null,null,null,null,null,null,null,0,{"$error":"#DIV/0!"}]
[null,null,null,null,null,null,null,null,null,null,null,null,null,null,null,null,null,null,null,null,null,null,null,0,{"$error":"#DIV/0!"}]
[null,null,null,null,null,null,null,null,null,null,null,null,null,null,null,null,null,null,null,null,null,null,null,0,{"$error":"#DIV/0!"}]
[null,null,null,null,null,null,null,null,null,null,null,null,null,null,null,null,null,null,null,null,null,null,null,0,{"$error":"#DIV/0!"}]
[null,null,null,null,null,null,null,null,null,null,null,null,null,null,null,null,null,null,null,null,null,null,null,0,{"$error":"#DIV/0!"}]
[null,null,null,null,null,null,null,null,null,null,null,null,null,null,null,null,null,null,null,null,null,null,null,0,{"$error":"#DIV/0!"}]
[null,null,null,null,null,null,null,null,null,null,null,null,null,null,null,null,null,null,null,null,null,null,null,0,{"$error":"#DIV/0!"}]
[null,null,null,null,null,null,null,null,null,null,null,null,null,null,null,null,null,null,null,null,null,null,null,0,{"$error":"#DIV/0!"}]
[null,null,null,null,null,null,null,null,null,null,null,null,null,null,null,null,null,null,null,null,null,null,null,0,{"$error":"#DIV/0!"}]
[null,null,null,null,null,null,null,null,null,null,null,null,null,null,null,null,null,null,null,null,null,null,null,0,{"$error":"#DIV/0!"}]
[null,null,null,null,null,null,null,null,null,null,null,null,null,null,null,null,null,null,null,null,null,null,null,0,{"$error":"#DIV/0!"}]
[null,null,null,null,null,null,null,null,null,null,null,null,null,null,null,null,null,null,null,null,null,null,null,0,{"$error":"#DIV/0!"}]
[null,null,null,null,null,null,null,null,null,null,null,null,null,null,null,null,null,null,null,null,null,null,null,0,{"$error":"#DIV/0!"}]
[null,null,null,null,null,null,null,null,null,null,null,null,null,null,null,null,null,null,null,null,null,null,null,0,{"$error":"#DIV/0!"}]
[null,null,null,null,null,null,null,null,null,null,null,null,null,null,null,null,null,null,null,null,null,null,null,0,{"$error":"#DIV/0!"}]
[null,null,null,null,null,null,null,null,null,null,null,null,null,null,null,null,null,null,null,null,null,null,null,0,{"$error":"#DIV/0!"}]
[null,null,null,null,null,null,null,null,null,null,null,null,null,null,null,null,null,null,null,null,null,null,null,0,{"$error":"#DIV/0!"}]
[null,null,null,null,null,null,null,null,null,null,null,null,null,null,null,null,null,null,null,null,null,null,null,0,{"$error":"#DIV/0!"}]
[null,null,null,null,null,null,null,null,null,null,null,null,null,null,null,null,null,null,null,null,null,null,null,0,{"$error":"#DIV/0!"}]
[null,null,null,null,null,null,null,null,null,null,null,null,null,null,null,null,null,null,null,null,null,null,null,0,{"$error":"#DIV/0!"}]
[null,null,null,null,null,null,null,null,null,null,null,null,null,null,null,null,null,null,null,null,null,null,null,0,{"$error":"#DIV/0!"}]
[null,null,null,null,null,null,null,null,null,null,null,null,null,null,null,null,null,null,null,null,null,null,null,0,{"$error":"#DIV/0!"}]
[null,null,null,null,null,null,null,null,null,null,null,null,null,null,null,null,null,null,null,null,null,null,null,0,{"$error":"#DIV/0!"}]
[null,null,null,null,null,null,null,null,null,null,null,null,null,null,null,null,null,null,null,null,null,null,null,0,{"$error":"#DIV/0!"}]
[null,null,null,null,null,null,null,null,null,null,null,null,null,null,null,null,null,null,null,null,null,null,null,0,{"$error":"#DIV/0!"}]
[null,null,null,null,null,null,null,null,null,null,null,null,null,null,null,null,null,null,null,null,null,null,null,0,{"$error":"#DIV/0!"}]
[null,null,null,null,null,null,null,null,null,null,null,null,null,null,null,null,null,null,null,null,null,null,null,0,{"$error":"#DIV/0!"}]
[null,null,null,null,null,null,null,null,null,null,null,null,null,null,null,null,null,null,null,null,null,null,null,0,{"$error":"#DIV/0!"}]
[null,null,null,null,null,null,null,null,null,null,null,null,null,null,null,null,null,null,null,null,null,null,null,0,{"$error":"#DIV/0!"}]
[null,null,null,null,null,null,null,null,null,null,null,null,null,null,null,null,null,null,null,null,null,null,null,0,{"$error":"#DIV/0!"}]
[null,null,null,null,null,null,null,null,null,null,null,null,null,null,null,null,null,null,null,null,null,null,null,0,{"$error":"#DIV/0!"}]
[null,"TOTAL WORKHOURS/CATEGORY:",null,{"$f":"SUM(D11:D120)","v":0},0,0,0,0,0,0,0,0,0,0,0,0,0,0,0,0,0,0,0,{"$f":"SUM(X11:X120)","v":0},{"$f":"SUM(Y11:Y120)","v":{"$error":"#DIV/0!"}},{"$f":"SUM(Z12:Z120)","v":0}]
[null,"TOTAL WORKDAYS/CATEGORY:",null,{"$f":"D121/8","v":0},{"$f":"E121/8","v":0},0,0,0,0,0,0,0,0,0,0,0,0,0,0,0,0,0,0]
[null,"HOURLY SALARY RATE:",null,{"$f":"'PEF CLASSIFICATION SHEET'!E881","v":0},{"$f":"'PEF CLASSIFICATION SHEET'!E882","v":0},{"$f":"'PEF CLASSIFICATION SHEET'!E883","v":0},{"$f":"'PEF CLASSIFICATION SHEET'!E884","v":0},{"$f":"'PEF CLASSIFICATION SHEET'!E885","v":0},{"$f":"'PEF CLASSIFICATION SHEET'!E886","v":0},{"$f":"'PEF CLASSIFICATION SHEET'!E887","v":0},{"$f":"'PEF CLASSIFICATION SHEET'!E888","v":0},{"$f":"'PEF CLASSIFICATION SHEET'!E889","v":0},{"$f":"'PEF CLASSIFICATION SHEET'!E890","v":0},{"$f":"'PEF CLASSIFICATION SHEET'!E891","v":0},{"$f":"'PEF CLASSIFICATION SHEET'!E892","v":0},{"$f":"'PEF CLASSIFICATION SHEET'!E893","v":0},{"$f":"'PEF CLASSIFICATION SHEET'!E894","v":0},{"$f":"'PEF CLASSIFICATION SHEET'!E895","v":0},{"$f":"'PEF CLASSIFICATION SHEET'!E896","v":0},{"$f":"'PEF CLASSIFICATION SHEET'!E897","v":0},{"$f":"'PEF CLASSIFICATION SHEET'!E898","v":0},{"$f":"'PEF CLASSIFICATION SHEET'!E899","v":0},{"$f":"'PEF CLASSIFICATION SHEET'!E900","v":0}]
[null,"RATES PER DAY:",null,{"$f":"D123*8","v":0},0,0,0,0,0,0,0,0,0,0,0,0,0,0,0,0,0,0,0]
[null,"PAYROLL BURDEN:",null,{"$f":"SUM(D121*D123)","v":0},{"$f":"SUM(E121*E123)","v":0},0,0,0,0,0,0,0,0,0,0,0,0,0,0,0,0,0,0]
[null,"TOTAL WORKDAYS:",null,{"$f":"SUM(D122:W122)","v":0}]
[null,"TOTAL PAYROLL BURDEN:",null,{"$f":"SUM(D125:W125)","v":0}]
[null,"AVERAGE COST PER HOUR:",null,{"$f":"SUM(D127/(D126*8))","v":{"$error":"#DIV/0!"}},null,null,null,null,null,null,null,null,null,null,null,null,null,null,null,null,null,null,null," "]
[null,"GENERAL OVERHEAD:",{"$f":"PUBLIC.TRANSPORTATION.SUB3_CONSULTANT_OVERHEAD","v":0},{"$f":"SUM(D127*C129)","v":0}]
[null,"SUBTOTAL:",null,{"$f":"SUM(D127+D129)","v":0}]
[null,"COMPARATIVE FEE:",{"$f":"PUBLIC.TRANSPORTATION.SUB3_CONSULTANT_FEE","v":0},{"$f":"SUM(D130*C131)","v":0}]
[null,"FACILITIES COST OF CAPITAL:",{"$f":"PUBLIC.TRANSPORTATION.SUB3_CONSULTANT_COSTofCAPITAL","v":0},{"$f":"SUM(D127*C132)","v":0}]
[null,"TOTAL:",null,{"$f":"SUM(D130:D132)","v":0}]
[null,"DIRECT EXPENSES:",null,{"$f":"PUBLIC.TRANSPORTATION.SUB3_DIRECT_NONSALARY_TOTAL","v":0}]
[null,"PUBLIC TRANSPORTATION GRAND TOTAL:",null,{"$f":"SUM(D133:D134)","v":0}]

{"sheet":"IM-PublicTransp-Exp-Sub3","index":106,"n_rows":46,"n_cols":8,"rows_kept":46,"cut":false,"hidden":true,"merged":[[0,0,0,7],[1,3,1,7]]}
["PUBLIC TRANSPORTATION--DIRECT EXPENSES - SUBCONSULTANT 3"]
["TIP NUMBER",{"$f":"TIP.NUMBER","v":0},"FIRM:",{"$f":"'IM-PublicTransp-Sub3'!G3","v":"CONSULTANT NAME"}]
[]
["GENERAL PROJECT WORK:","ITEM","QTY","DESCRIPTION",null,null,"UNIT COST "]
[null,"Travel:"]
[null,"Sedan",0,"Trip(s) @",0,"miles @",{"$f":"SEDAN","v":0.7},{"$f":"SUM(C6*E6*G6)","v":0}]
[null,"Carry All",0,"Trip(s) @",0,"miles @",{"$f":"CARRYALL","v":0.72},{"$f":"SUM(C7*E7*G7)","v":0}]
[null,"Car Rental",null,null,0,"days @ ",{"$f":"CARRENTAL","v":50},{"$f":"SUM(E8*G8)","v":0}]
[null,"Gas for Rental",null,null,0,"miles @",{"$f":"GASforRENTAL","v":0.2},{"$f":"SUM(E9*G9)","v":0}]
[null,"Parking:",0,"Trip(s) @",null,null,{"$f":"PARKING","v":3},{"$f":"SUM(C10*G10)","v":0}]
[null,"Per Diem:",0,"Breakfast",null,null,{"$f":"BREAKFAST","v":10.1},{"$f":"SUM(C11*G11)","v":0}]
[null,null,0,"Lunch",null,null,{"$f":"LUNCH","v":13.3},0]
[null,null,0,"Dinner",null,null,{"$f":"DINNER","v":23.1},0]
[null,null,0,"Lodging",null,null,{"$f":"LODGING_LUMP.SUM","v":95},0]
[null,"Reproduction:",0,"8 1/2 x 11 B & W Copies @",null,null,{"$f":"LETTERCOPIES","v":0.14000000000000001},0]
[null,null,0,"11 x 17 B & W Copies @",null,null,{"$f":"LEDGERCOPIES","v":0.34},0]
[null,null,0,"8 1/2 x 11 Color Copies @",null,null,{"$f":"LETTERCOLOR","v":0.83},0]
[null,null,0,"11 x 17 Color Copies @",null,null,{"$f":"LEDGERCOLOR","v":1.66},0]
[null,null,0,"SQ. FT. of Plots (B & W or Color)",null,"<65 SQ. FT.*",{"$f":"ROLLPLOTSshort","v":6.5},0]
[null,null,0,"SQ. FT. of Plots (B & W or Color)",null,">65 SQ. FT.*",{"$f":"ROLLPLOTSlong","v":1.5},0]
[null,null,0,"Cover(s) @",null,null,{"$f":"COVERS","v":0.5},0]
[null,null,0,"Binder(s) @",null,null,{"$f":"BINDERS","v":0.5},0]
[null,null,0,"Blueprints - 8 1/2 x 11 @",null,null,{"$f":"BLUEPRINTSLETTER","v":0.35},0]
[null,null,0,"Blueprints - 42 x 72 @",null,null,{"$f":"BLUEPRINTSLARGE","v":1.3},0]
[null,"Film and Developing:",0,"Roll(s) @",null,null,{"$f":"FILM","v":20},0]
[null,null,null,null,null,"Subtotal",null,{"$f":"SUM(H6:H25)","v":0}]
["MAPS AND DOCUMENTS:","ITEM","QTY","DESCRIPTION",null,null,"UNIT COST "]
[null,"County Tax Maps:",0,"Map(s) @",null,null,{"$f":"County_Tax_Maps","v":7},{"$f":"SUM(C28*G28)","v":0}]
[null,"USGS Maps:",0,"Map(s) @",null,null,{"$f":"USGSMAPS","v":7},{"$f":"SUM(C29*G29)","v":0}]
[null,null,null,null,null,"Subtotal",null,{"$f":"SUM(H28:H29)","v":0}]
["Miscellaneous Other","ITEM","QTY","DESCRIPTION",null,null,"UNIT COST "]
[null,null,null,null,null,null,null,{"$f":"SUM(C32*G32)","v":0}]
[null,null,null,null,null,null,null,{"$f":"SUM(C33*G33)","v":0}]
[null,null,null,null,null,null,null,0]
[null,null,null,null,null,null,null,0]
[null,null,null,null,null,null,null,0]
[null,null,null,null,null,null,null,0]
[null,null,null,null,null,null,null,0]
[null,null,null,null,null,null,null,{"$f":"SUM(C39*G39)","v":0}]
[null,null,null,null,null,null,null,{"$f":"SUM(C40*G40)","v":0}]
[null,null,null,null,null,null,null,{"$f":"SUM(C41*G41)","v":0}]
[null,null,null,null,null,"Subtotal",null,{"$f":"SUM(H32:H41)","v":0}]
[]
[null,null,null,null,null,"TOTAL",null,{"$f":"SUM(H26+H30+H42)","v":0}]
[]
[null,"* Sum of all plots "]

{"sheet":"IM-BikePed-Sub1","index":107,"n_rows":135,"n_cols":27,"rows_kept":135,"cut":false,"hidden":true,"merged":[[0,0,1,13],[2,1,2,4],[2,6,2,7],[2,10,2,11],[2,15,2,16],[3,1,3,4],[3,6,3,7],[3,10,3,11],[3,15,3,16],[6,12,9,12],[6,13,9,13],[6,14,9,14],[6,15,9,15],[6,16,9,16],[6,17,9,17],[4,3,4,22],[6,3,9,3],[6,4,9,4],[6,5,9,5],[6,6,9,6],[6,7,9,7],[6,8,9,8],[6,9,9,9],[6,10,9,10],[6,11,9,11],[10,26,10,27],[11,26,11,27],[12,26,12,27],[13,26,13,27],[14,26,14,27],[15,26,15,27],[6,18,9,18],[6,19,9,19],[6,20,9,20],[6,21,9,21],[6,22,9,22],[8,26,8,27],[22,26,22,27],[23,26,23,27],[24,26,24,27],[25,26,25,27],[26,26,26,27],[27,26,27,27],[16,26,16,27],[17,26,17,27],[18,26,18,27],[19,26,19,27],[20,26,20,27],[21,26,21,27],[34,26,34,27],[35,26,35,27],[36,26,36,27],[37,26,37,27],[38,26,38,27],[39,26,39,27],[28,26,28,27],[29,26,29,27],[30,26,30,27],[31,26,31,27],[32,26,32,27],[33,26,33,27],[46,26,46,27],[47,26,47,27],[48,26,48,27],[49,26,49,27],[50,26,50,27],[51,26,51,27],[40,26,40,27],[41,26,41,27],[42,26,42,27],[43,26,43,27],[44,26,44,27],[45,26,45,27],[58,26,58,27],[59,26,59,27],[60,26,60,27],[61,26,61,27],[62,26,62,27],[63,26,63,27],[52,26,52,27],[53,26,53,27],[54,26,54,27],[55,26,55,27],[56,26,56,27],[57,26,57,27],[70,26,70,27],[71,26,71,27],[72,26,72,27],[73,26,73,27],[74,26,74,27],[75,26,75,27],[64,26,64,27],[65,26,65,27],[66,26,66,27],[67,26,67,27],[68,26,68,27],[69,26,69,27],[82,26,82,27],[83,26,83,27],[84,26,84,27],[85,26,85,27],[86,26,86,27],[87,26,87,27],[76,26,76,27],[77,26,77,27],[78,26,78,27],[79,26,79,27],[80,26,80,27],[81,26,81,27],[94,26,94,27],[95,26,95,27],[96,26,96,27],[97,26,97,27],[98,26,98,27],[99,26,99,27],[88,26,88,27],[89,26,89,27],[90,26,90,27],[91,26,91,27],[92,26,92,27],[93,26,93,27],[106,26,106,27],[107,26,107,27],[108,26,108,27],[109,26,109,27],[110,26,110,27],[111,26,111,27],[100,26,100,27],[101,26,101,27],[102,26,102,27],[103,26,103,27],[104,26,104,27],[105,26,105,27],[118,26,118,27],[119,26,119,27],[134,1,135,1],[134,3,135,4],[138,3,138,6],[138,8,138,13],[112,26,112,27],[113,26,113,27],[114,26,114,27],[115,26,115,27],[116,26,116,27],[117,26,117,27],[145,8,145,9],[145,10,145,11],[139,8,139,9],[139,10,139,11],[140,8,140,9],[140,10,140,11],[143,8,143,13],[144,8,144,9],[144,10,144,11]]}
["BICYCLE AND PEDESTRIAN--BREAKDOWN WORKSHEET - SUBCONSULTANT 1 -- ENTER WORKHOURS"]
[]
["PROJECT DESCRIPTION: ",{"$f":"PROJECT.DESCRIPTION","v":0},null,null,null,"FIRM:  ",{"$f":"BIKEANDPED.SUB1_CONSULTANT_NAME","v":"CONSULTANT NAME"},null,"TASK ORDER NUMBER:",null,{"$f":"TASK.ORDER.NUMBER","v":0},null,"DATE PREPARED:",{"$f":"IF(SCOPE.MANDAY.ESTIMATE.PREPARED.BY.DATE=\"\",\"\",SCOPE.MANDAY.ESTIMATE.PREPARED.BY.DATE)","v":""}]
["PREPARED BY:  ",{"$f":"IF(SCOPE.MANDAY.ESTIMATE.PREPARED.BY=\"\",\"\",SCOPE.MANDAY.ESTIMATE.PREPARED.BY)","v":""},null,null,null,"TIP NUMBER:",{"$f":"TIP.NUMBER","v":0},null,"WBS NUMBER:",null,{"$f":"WBS.NUMBER","v":""},null,"REVISION DATE:",{"$f":"IF(SCOPE.MANDAY.ESTIMATE.APPROVED.BY.DATE=\"\",\"\",SCOPE.MANDAY.ESTIMATE.APPROVED.BY.DATE)","v":""}]
[null,null,null,"ESTIMATED WORKHOURS"]
[null,null,"EMPLOYEE NAMES",{"$f":"IF('PEF CLASSIFICATION SHEET'!D903=\"\",\"\",LEFT('PEF CLASSIFICATION SHEET'!D903,4))","v":""},{"$f":"IF('PEF CLASSIFICATION SHEET'!D904=\"\",\"\",LEFT('PEF CLASSIFICATION SHEET'!D904,4))","v":""},{"$f":"IF('PEF CLASSIFICATION SHEET'!D905=\"\",\"\",LEFT('PEF CLASSIFICATION SHEET'!D905,4))","v":""},{"$f":"IF('PEF CLASSIFICATION SHEET'!D906=\"\",\"\",LEFT('PEF CLASSIFICATION SHEET'!D906,4))","v":""},{"$f":"IF('PEF CLASSIFICATION SHEET'!D907=\"\",\"\",LEFT('PEF CLASSIFICATION SHEET'!D907,4))","v":""},{"$f":"IF('PEF CLASSIFICATION SHEET'!D908=\"\",\"\",LEFT('PEF CLASSIFICATION SHEET'!D908,4))","v":""},{"$f":"IF('PEF CLASSIFICATION SHEET'!D909=\"\",\"\",LEFT('PEF CLASSIFICATION SHEET'!D909,4))","v":""},{"$f":"IF('PEF CLASSIFICATION SHEET'!D910=\"\",\"\",LEFT('PEF CLASSIFICATION SHEET'!D910,4))","v":""},{"$f":"IF('PEF CLASSIFICATION SHEET'!D911=\"\",\"\",LEFT('PEF CLASSIFICATION SHEET'!D911,4))","v":""},{"$f":"IF('PEF CLASSIFICATION SHEET'!D912=\"\",\"\",LEFT('PEF CLASSIFICATION SHEET'!D912,4))","v":""},{"$f":"IF('PEF CLASSIFICATION SHEET'!D913=\"\",\"\",LEFT('PEF CLASSIFICATION SHEET'!D913,4))","v":""},{"$f":"IF('PEF CLASSIFICATION SHEET'!D914=\"\",\"\",LEFT('PEF CLASSIFICATION SHEET'!D914,4))","v":""},{"$f":"IF('PEF CLASSIFICATION SHEET'!D915=\"\",\"\",LEFT('PEF CLASSIFICATION SHEET'!D915,4))","v":""},{"$f":"IF('PEF CLASSIFICATION SHEET'!D916=\"\",\"\",LEFT('PEF CLASSIFICATION SHEET'!D916,4))","v":""},{"$f":"IF('PEF CLASSIFICATION SHEET'!D917=\"\",\"\",LEFT('PEF CLASSIFICATION SHEET'!D917,4))","v":""},{"$f":"IF('PEF CLASSIFICATION SHEET'!D918=\"\",\"\",LEFT('PEF CLASSIFICATION SHEET'!D918,4))","v":""},{"$f":"IF('PEF CLASSIFICATION SHEET'!D919=\"\",\"\",LEFT('PEF CLASSIFICATION SHEET'!D919,4))","v":""},{"$f":"IF('PEF CLASSIFICATION SHEET'!D920=\"\",\"\",LEFT('PEF CLASSIFICATION SHEET'!D920,4))","v":""},{"$f":"IF('PEF CLASSIFICATION SHEET'!D921=\"\",\"\",LEFT('PEF CLASSIFICATION SHEET'!D921,4))","v":""},{"$f":"IF('PEF CLASSIFICATION SHEET'!D922=\"\",\"\",LEFT('PEF CLASSIFICATION SHEET'!D922,4))","v":""}]
[null,null,null,{"$f":"IF('PEF CLASSIFICATION SHEET'!C903=\"\",\"\",'PEF CLASSIFICATION SHEET'!C903)","v":""},{"$f":"IF('PEF CLASSIFICATION SHEET'!C904=\"\",\"\",'PEF CLASSIFICATION SHEET'!C904)","v":""},{"$f":"IF('PEF CLASSIFICATION SHEET'!C905=\"\",\"\",'PEF CLASSIFICATION SHEET'!C905)","v":""},{"$f":"IF('PEF CLASSIFICATION SHEET'!C906=\"\",\"\",'PEF CLASSIFICATION SHEET'!C906)","v":""},{"$f":"IF('PEF CLASSIFICATION SHEET'!C907=\"\",\"\",'PEF CLASSIFICATION SHEET'!C907)","v":""},{"$f":"IF('PEF CLASSIFICATION SHEET'!C908=\"\",\"\",'PEF CLASSIFICATION SHEET'!C908)","v":""},{"$f":"IF('PEF CLASSIFICATION SHEET'!C909=\"\",\"\",'PEF CLASSIFICATION SHEET'!C909)","v":""},{"$f":"IF('PEF CLASSIFICATION SHEET'!C910=\"\",\"\",'PEF CLASSIFICATION SHEET'!C910)","v":""},{"$f":"IF('PEF CLASSIFICATION SHEET'!C911=\"\",\"\",'PEF CLASSIFICATION SHEET'!C911)","v":""},{"$f":"IF('PEF CLASSIFICATION SHEET'!C912=\"\",\"\",'PEF CLASSIFICATION SHEET'!C912)","v":""},{"$f":"IF('PEF CLASSIFICATION SHEET'!C913=\"\",\"\",'PEF CLASSIFICATION SHEET'!C913)","v":""},{"$f":"IF('PEF CLASSIFICATION SHEET'!C914=\"\",\"\",'PEF CLASSIFICATION SHEET'!C914)","v":""},{"$f":"IF('PEF CLASSIFICATION SHEET'!C915=\"\",\"\",'PEF CLASSIFICATION SHEET'!C915)","v":""},{"$f":"IF('PEF CLASSIFICATION SHEET'!C916=\"\",\"\",'PEF CLASSIFICATION SHEET'!C916)","v":""},{"$f":"IF('PEF CLASSIFICATION SHEET'!C917=\"\",\"\",'PEF CLASSIFICATION SHEET'!C917)","v":""},{"$f":"IF('PEF CLASSIFICATION SHEET'!C918=\"\",\"\",'PEF CLASSIFICATION SHEET'!C918)","v":""},{"$f":"IF('PEF CLASSIFICATION SHEET'!C919=\"\",\"\",'PEF CLASSIFICATION SHEET'!C919)","v":""},{"$f":"IF('PEF CLASSIFICATION SHEET'!C920=\"\",\"\",'PEF CLASSIFICATION SHEET'!C920)","v":""},{"$f":"IF('PEF CLASSIFICATION SHEET'!C921=\"\",\"\",'PEF CLASSIFICATION SHEET'!C921)","v":""},{"$f":"IF('PEF CLASSIFICATION SHEET'!C922=\"\",\"\",'PEF CLASSIFICATION SHEET'!C922)","v":""},"SUB-","%","PEF"]
[null,null,null,null,null,null,null,null,null,null,null,null,null,null,null,null,null,null,null,null,null,null,null,"TOTAL","OF","ESTIMATE"]
["TASK","TASK DESCRIPTION","CLASSIFICATION",null,null,null,null,null,null,null,null,null,null,null,null,null,null,null,null,null,null,null,null,null,"PROJECT",null,"COMMENTS"]
["NO."]
[null,"Current Conditions Evaluation",null,null,null,null,null,null,null,null,null,null,null,null,null,null,null,null,null,null,null,null,null,{"$f":"IF(B11=\"\",\"\",IF((SUM(D11:W11)=0),0,SUM(D11:W11)))","v":0},{"$f":"IF(X11=\"\",\"\",SUM((X11/$X$121)))","v":{"$error":"#DIV/0!"}}]
[null,"Data Collection",null,null,null,null,null,null,null,null,null,null,null,null,null,null,null,null,null,null,null,null,null,0,{"$f":"IF(X12=\"\",\"\",SUM((X12/$X$121)))","v":{"$error":"#DIV/0!"}}]
[null,"Existing Conditions Inventory & Assessment",null,null,null,null,null,null,null,null,null,null,null,null,null,null,null,null,null,null,null,null,null,0,{"$error":"#DIV/0!"}]
[null,"Existing Plans Review",null,null,null,null,null,null,null,null,null,null,null,null,null,null,null,null,null,null,null,null,null,0,{"$error":"#DIV/0!"}]
[null,"Existing Plans, Programs, Policies Review",null,null,null,null,null,null,null,null,null,null,null,null,null,null,null,null,null,null,null,null,null,0,{"$error":"#DIV/0!"}]
[null,"Existing Policies Review",null,null,null,null,null,null,null,null,null,null,null,null,null,null,null,null,null,null,null,null,null,0,{"$error":"#DIV/0!"}]
[null,"Existing Programs Review",null,null,null,null,null,null,null,null,null,null,null,null,null,null,null,null,null,null,null,null,null,0,{"$error":"#DIV/0!"}]
[null,null,null,null,null,null,null,null,null,null,null,null,null,null,null,null,null,null,null,null,null,null,null,"",""]
[null,null,null,null,null,null,null,null,null,null,null,null,null,null,null,null,null,null,null,null,null,null,null,"",""]
[null,"Implementation",null,null,null,null,null,null,null,null,null,null,null,null,null,null,null,null,null,null,null,null,null,0,{"$error":"#DIV/0!"}]
[null,"Funding Strategies",null,null,null,null,null,null,null,null,null,null,null,null,null,null,null,null,null,null,null,null,null,0,{"$error":"#DIV/0!"}]
[null,"Implementation Plan",null,null,null,null,null,null,null,null,null,null,null,null,null,null,null,null,null,null,null,null,null,0,{"$error":"#DIV/0!"}]
[null,null,null,null,null,null,null,null,null,null,null,null,null,null,null,null,null,null,null,null,null,null,null,"",""]
[null,null,null,null,null,null,null,null,null,null,null,null,null,null,null,null,null,null,null,null,null,null,null,"",""]
[null,"Plan Development",null,null,null,null,null,null,null,null,null,null,null,null,null,null,null,null,null,null,null,null,null,0,{"$error":"#DIV/0!"}]
[null,"Draft Plan Preparation",null,null,null,null,null,null,null,null,null,null,null,null,null,null,null,null,null,null,null,null,null,0,{"$error":"#DIV/0!"}]
[null,"Final Plan Presentation",null,null,null,null,null,null,null,null,null,null,null,null,null,null,null,null,null,null,null,null,null,0,{"$error":"#DIV/0!"}]
[null,"Final Plan Revisions",null,null,null,null,null,null,null,null,null,null,null,null,null,null,null,null,null,null,null,null,null,0,{"$error":"#DIV/0!"}]
[null,null,null,null,null,null,null,null,null,null,null,null,null,null,null,null,null,null,null,null,null,null,null,"",""]
[null,null,null,null,null,null,null,null,null,null,null,null,null,null,null,null,null,null,null,null,null,null,null,"",""]
[null,"Project Management",null,null,null,null,null,null,null,null,null,null,null,null,null,null,null,null,null,null,null,null,null,0,{"$error":"#DIV/0!"}]
[null,"Project Administration",null,null,null,null,null,null,null,null,null,null,null,null,null,null,null,null,null,null,null,null,null,0,{"$error":"#DIV/0!"}]
[null,"Project Kickoff Meeting",null,null,null,null,null,null,null,null,null,null,null,null,null,null,null,null,null,null,null,null,null,0,{"$error":"#DIV/0!"}]
[null,null,null,null,null,null,null,null,null,null,null,null,null,null,null,null,null,null,null,null,null,null,null,"",""]
[null,null,null,null,null,null,null,null,null,null,null,null,null,null,null,null,null,null,null,null,null,null,null,"",""]
[null,"Public & Stakeholder Involvement",null,null,null,null,null,null,null,null,null,null,null,null,null,null,null,null,null,null,null,null,null,0,{"$error":"#DIV/0!"}]
[null,"Public Involvement",null,null,null,null,null,null,null,null,null,null,null,null,null,null,null,null,null,null,null,null,null,0,{"$error":"#DIV/0!"}]
[null,"Public Workshop #XX",null,null,null,null,null,null,null,null,null,null,null,null,null,null,null,null,null,null,null,null,null,0,{"$error":"#DIV/0!"}]
[null,"Stakeholder Involvement  ",null,null,null,null,null,null,null,null,null,null,null,null,null,null,null,null,null,null,null,null,null,0,{"$error":"#DIV/0!"}]
[null,"Steering Committee Meeting #XX",null,null,null,null,null,null,null,null,null,null,null,null,null,null,null,null,null,null,null,null,null,0,{"$error":"#DIV/0!"}]
[null,null,null,null,null,null,null,null,null,null,null,null,null,null,null,null,null,null,null,null,null,null,null,"",""]
[null,null,null,null,null,null,null,null,null,null,null,null,null,null,null,null,null,null,null,null,null,null,null,"",""]
[null,"Recommendations",null,null,null,null,null,null,null,null,null,null,null,null,null,null,null,null,null,null,null,null,null,0,{"$error":"#DIV/0!"}]
[null,"Cost Estimates",null,null,null,null,null,null,null,null,null,null,null,null,null,null,null,null,null,null,null,null,null,0,{"$error":"#DIV/0!"}]
[null,"Other Recommendations",null,null,null,null,null,null,null,null,null,null,null,null,null,null,null,null,null,null,null,null,null,0,{"$error":"#DIV/0!"}]
[null,"Policy Recommendations",null,null,null,null,null,null,null,null,null,null,null,null,null,null,null,null,null,null,null,null,null,0,{"$error":"#DIV/0!"}]
[null,"Program Recommendations",null,null,null,null,null,null,null,null,null,null,null,null,null,null,null,null,null,null,null,null,null,0,{"$error":"#DIV/0!"}]
[null,"Project Recommendations",null,null,null,null,null,null,null,null,null,null,null,null,null,null,null,null,null,null,null,null,null,0,{"$error":"#DIV/0!"}]
[null,null,null,null,null,null,null,null,null,null,null,null,null,null,null,null,null,null,null,null,null,null,null,"",""]
[null,null,null,null,null,null,null,null,null,null,null,null,null,null,null,null,null,null,null,null,null,null,null,"",""]
[null,"MISCELLANEOUS ITEMS",null,null,null,null,null,null,null,null,null,null,null,null,null,null,null,null,null,null,null,null,null,0,{"$error":"#DIV/0!"}]
[null,null,null,null,null,null,null,null,null,null,null,null,null,null,null,null,null,null,null,null,null,null,null,"",""]
[null,null,null,null,null,null,null,null,null,null,null,null,null,null,null,null,null,null,null,null,null,null,null,"",""]
[null,null,null,null,null,null,null,null,null,null,null,null,null,null,null,null,null,null,null,null,null,null,null,"",""]
[null,null,null,null,null,null,null,null,null,null,null,null,null,null,null,null,null,null,null,null,null,null,null,"",""]
[null,null,null,null,null,null,null,null,null,null,null,null,null,null,null,null,null,null,null,null,null,null,null,"",""]
[null,null,null,null,null,null,null,null,null,null,null,null,null,null,null,null,null,null,null,null,null,null,null,"",""]
[null,null,null,null,null,null,null,null,null,null,null,null,null,null,null,null,null,null,null,null,null,null,null,"",""]
[null,null,null,null,null,null,null,null,null,null,null,null,null,null,null,null,null,null,null,null,null,null,null,"",""]
[null,null,null,null,null,null,null,null,null,null,null,null,null,null,null,null,null,null,null,null,null,null,null,"",""]
[null,null,null,null,null,null,null,null,null,null,null,null,null,null,null,null,null,null,null,null,null,null,null,"",""]
[null,"FEASIBILITY STUDIES",null,null,null,null,null,null,null,null,null,null,null,null,null,null,null,null,null,null,null,null,null,0,{"$error":"#DIV/0!"}]
[null,null,null,null,null,null,null,null,null,null,null,null,null,null,null,null,null,null,null,null,null,null,null,"",""]
[null,null,null,null,null,null,null,null,null,null,null,null,null,null,null,null,null,null,null,null,null,null,null,"",""]
[null,null,null,null,null,null,null,null,null,null,null,null,null,null,null,null,null,null,null,null,null,null,null,"",""]
[null,null,null,null,null,null,null,null,null,null,null,null,null,null,null,null,null,null,null,null,null,null,null,"",""]
[null,null,null,null,null,null,null,null,null,null,null,null,null,null,null,null,null,null,null,null,null,null,null,"",""]
[null,null,null,null,null,null,null,null,null,null,null,null,null,null,null,null,null,null,null,null,null,null,null,"",""]
[null,null,null,null,null,null,null,null,null,null,null,null,null,null,null,null,null,null,null,null,null,null,null,"",""]
[null,null,null,null,null,null,null,null,null,null,null,null,null,null,null,null,null,null,null,null,null,null,null,"",""]
[null,null,null,null,null,null,null,null,null,null,null,null,null,null,null,null,null,null,null,null,null,null,null,"",""]
[null,null,null,null,null,null,null,null,null,null,null,null,null,null,null,null,null,null,null,null,null,null,null,"",""]
[null,null,null,null,null,null,null,null,null,null,null,null,null,null,null,null,null,null,null,null,null,null,null,"",""]
[null,null,null,null,null,null,null,null,null,null,null,null,null,null,null,null,null,null,null,null,null,null,null,"",""]
[null,null,null,null,null,null,null,null,null,null,null,null,null,null,null,null,null,null,null,null,null,null,null,{"$f":"IF(B75=\"\",\"\",IF((SUM(D75:W75)=0),0,SUM(D75:W75)))","v":""},""]
[null,null,null,null,null,null,null,null,null,null,null,null,null,null,null,null,null,null,null,null,null,null,null,"",{"$f":"IF(X76=\"\",\"\",SUM((X76/$X$121)))","v":""}]
[null,null,null,null,null,null,null,null,null,null,null,null,null,null,null,null,null,null,null,null,null,null,null,"",""]
[null,null,null,null,null,null,null,null,null,null,null,null,null,null,null,null,null,null,null,null,null,null,null,"",""]
[null,null,null,null,null,null,null,null,null,null,null,null,null,null,null,null,null,null,null,null,null,null,null,"",""]
[null,null,null,null,null,null,null,null,null,null,null,null,null,null,null,null,null,null,null,null,null,null,null,"",""]
[null,null,null,null,null,null,null,null,null,null,null,null,null,null,null,null,null,null,null,null,null,null,null,"",""]
[null,null,null,null,null,null,null,null,null,null,null,null,null,null,null,null,null,null,null,null,null,null,null,"",""]
[null,"OTHER TASKS",null,null,null,null,null,null,null,null,null,null,null,null,null,null,null,null,null,null,null,null,null,0,{"$error":"#DIV/0!"}]
[null,null,null,null,null,null,null,null,null,null,null,null,null,null,null,null,null,null,null,null,null,null,null,"",""]
[null,null,null,null,null,null,null,null,null,null,null,null,null,null,null,null,null,null,null,null,null,null,null,"",""]
[null,null,null,null,null,null,null,null,null,null,null,null,null,null,null,null,null,null,null,null,null,null,null,"",""]
[null,null,null,null,null,null,null,null,null,null,null,null,null,null,null,null,null,null,null,null,null,null,null,"",""]
[null,null,null,null,null,null,null,null,null,null,null,null,null,null,null,null,null,null,null,null,null,null,null,"",""]
[null,null,null,null,null,null,null,null,null,null,null,null,null,null,null,null,null,null,null,null,null,null,null,"",""]
[null,null,null,null,null,null,null,null,null,null,null,null,null,null,null,null,null,null,null,null,null,null,null,"",""]
[null,null,null,null,null,null,null,null,null,null,null,null,null,null,null,null,null,null,null,null,null,null,null,"",""]
[null,null,null,null,null,null,null,null,null,null,null,null,null,null,null,null,null,null,null,null,null,null,null,"",""]
[null,null,null,null,null,null,null,null,null,null,null,null,null,null,null,null,null,null,null,null,null,null,null,"",""]
[null,null,null,null,null,null,null,null,null,null,null,null,null,null,null,null,null,null,null,null,null,null,null,"",""]
[null,null,null,null,null,null,null,null,null,null,null,null,null,null,null,null,null,null,null,null,null,null,null,"",""]
[null,null,null,null,null,null,null,null,null,null,null,null,null,null,null,null,null,null,null,null,null,null,null,"",""]
[null,null,null,null,null,null,null,null,null,null,null,null,null,null,null,null,null,null,null,null,null,null,null,"",""]
[null,null,null,null,null,null,null,null,null,null,null,null,null,null,null,null,null,null,null,null,null,null,null,"",""]
[null,null,null,null,null,null,null,null,null,null,null,null,null,null,null,null,null,null,null,null,null,null,null,"",""]
[null,null,null,null,null,null,null,null,null,null,null,null,null,null,null,null,null,null,null,null,null,null,null,"",""]
[null,null,null,null,null,null,null,null,null,null,null,null,null,null,null,null,null,null,null,null,null,null,null,"",""]
[null,null,null,null,null,null,null,null,null,null,null,null,null,null,null,null,null,null,null,null,null,null,null,"",""]
[null,null,null,null,null,null,null,null,null,null,null,null,null,null,null,null,null,null,null,null,null,null,null,"",""]
[null,null,null,null,null,null,null,null,null,null,null,null,null,null,null,null,null,null,null,null,null,null,null,"",""]
[null,null,null,null,null,null,null,null,null,null,null,null,null,null,null,null,null,null,null,null,null,null,null,"",""]
[null,null,null,null,null,null,null,null,null,null,null,null,null,null,null,null,null,null,null,null,null,null,null,"",""]
[null,null,null,null,null,null,null,null,null,null,null,null,null,null,null,null,null,null,null,null,null,null,null,"",""]
[null,null,null,null,null,null,null,null,null,null,null,null,null,null,null,null,null,null,null,null,null,null,null,"",""]
[null,null,null,null,null,null,null,null,null,null,null,null,null,null,null,null,null,null,null,null,null,null,null,"",""]
[null,null,null,null,null,null,null,null,null,null,null,null,null,null,null,null,null,null,null,null,null,null,null,"",""]
[null,null,null,null,null,null,null,null,null,null,null,null,null,null,null,null,null,null,null,null,null,null,null,"",""]
[null,null,null,null,null,null,null,null,null,null,null,null,null,null,null,null,null,null,null,null,null,null,null,"",""]
[null,null,null,null,null,null,null,null,null,null,null,null,null,null,null,null,null,null,null,null,null,null,null,"",""]
[null,null,null,null,null,null,null,null,null,null,null,null,null,null,null,null,null,null,null,null,null,null,null,"",""]
[null,null,null,null,null,null,null,null,null,null,null,null,null,null,null,null,null,null,null,null,null,null,null,"",""]
[null,null,null,null,null,null,null,null,null,null,null,null,null,null,null,null,null,null,null,null,null,null,null,"",""]
[null,null,null,null,null,null,null,null,null,null,null,null,null,null,null,null,null,null,null,null,null,null,null,"",""]
[null,null,null,null,null,null,null,null,null,null,null,null,null,null,null,null,null,null,null,null,null,null,null,"",""]
[null,null,null,null,null,null,null,null,null,null,null,null,null,null,null,null,null,null,null,null,null,null,null,"",""]
[null,null,null,null,null,null,null,null,null,null,null,null,null,null,null,null,null,null,null,null,null,null,null,"",""]
[null,"TOTAL WORKHOURS/CATEGORY:",null,{"$f":"SUM(D11:D120)","v":0},0,0,0,0,0,0,0,0,0,0,0,0,0,0,0,0,0,0,0,{"$f":"SUM(X11:X120)","v":0},{"$f":"SUM(Y11:Y120)","v":{"$error":"#DIV/0!"}},{"$f":"SUM(Z12:Z120)","v":0}]
[null,"TOTAL WORKDAYS/CATEGORY:",null,{"$f":"D121/8","v":0},{"$f":"E121/8","v":0},0,0,0,0,0,0,0,0,0,0,0,0,0,0,0,0,0,0]
[null,"HOURLY SALARY RATE:",null,{"$f":"'PEF CLASSIFICATION SHEET'!E903","v":0},{"$f":"'PEF CLASSIFICATION SHEET'!E904","v":0},{"$f":"'PEF CLASSIFICATION SHEET'!E905","v":0},{"$f":"'PEF CLASSIFICATION SHEET'!E906","v":0},{"$f":"'PEF CLASSIFICATION SHEET'!E907","v":0},{"$f":"'PEF CLASSIFICATION SHEET'!E908","v":0},{"$f":"'PEF CLASSIFICATION SHEET'!E909","v":0},{"$f":"'PEF CLASSIFICATION SHEET'!E910","v":0},{"$f":"'PEF CLASSIFICATION SHEET'!E911","v":0},{"$f":"'PEF CLASSIFICATION SHEET'!E912","v":0},{"$f":"'PEF CLASSIFICATION SHEET'!E913","v":0},{"$f":"'PEF CLASSIFICATION SHEET'!E914","v":0},{"$f":"'PEF CLASSIFICATION SHEET'!E915","v":0},{"$f":"'PEF CLASSIFICATION SHEET'!E916","v":0},{"$f":"'PEF CLASSIFICATION SHEET'!E917","v":0},{"$f":"'PEF CLASSIFICATION SHEET'!E918","v":0},{"$f":"'PEF CLASSIFICATION SHEET'!E919","v":0},{"$f":"'PEF CLASSIFICATION SHEET'!E920","v":0},{"$f":"'PEF CLASSIFICATION SHEET'!E921","v":0},{"$f":"'PEF CLASSIFICATION SHEET'!E922","v":0}]
[null,"RATES PER DAY:",null,{"$f":"D123*8","v":0},0,0,0,0,0,0,0,0,0,0,0,0,0,0,0,0,0,0,0]
[null,"PAYROLL BURDEN:",null,{"$f":"SUM(D121*D123)","v":0},{"$f":"SUM(E121*E123)","v":0},0,0,0,0,0,0,0,0,0,0,0,0,0,0,0,0,0,0]
[null,"TOTAL WORKDAYS:",null,{"$f":"SUM(D122:W122)","v":0}]
[null,"TOTAL PAYROLL BURDEN:",null,{"$f":"SUM(D125:W125)","v":0}]
[null,"AVERAGE COST PER HOUR:",null,{"$f":"SUM(D127/(D126*8))","v":{"$error":"#DIV/0!"}}]
[null,"GENERAL OVERHEAD:",{"$f":"BIKEANDPED.SUB1_CONSULTANT_OVERHEAD","v":0},{"$f":"SUM(D127*C129)","v":0}]
[null,"SUBTOTAL:",null,{"$f":"SUM(D127+D129)","v":0}]
[null,"COMPARATIVE FEE:",{"$f":"BIKEANDPED.SUB1_CONSULTANT_FEE","v":0.09},{"$f":"SUM(D130*C131)","v":0}]
[null,"FACILITIES COST OF CAPITAL:",{"$f":"BIKEANDPED.SUB1_CONSULTANT_COSTofCAPITAL","v":0},{"$f":"SUM(D127*C132)","v":0}]
[null,"TOTAL:",null,{"$f":"SUM(D130:D132)","v":0}]
[null,"DIRECT EXPENSES:",null,{"$f":"BIKEANDPED.SUB1_DIRECT_NONSALARY_TOTAL","v":0}]
[null,"BICYCLE AND PEDESTRIAN GRAND TOTAL:",null,{"$f":"SUM(D133:D134)","v":0}]

{"sheet":"IM-BikePed-Exp-Sub1","index":108,"n_rows":46,"n_cols":8,"rows_kept":46,"cut":false,"hidden":true,"merged":[[0,0,0,7],[1,3,1,7]]}
["BICYCLE AND PEDESTRIAN--DIRECT EXPENSES - SUBCONSULTANT 1"]
["TIP NUMBER",{"$f":"TIP.NUMBER","v":0},"FIRM:",{"$f":"'IM-BikePed-Sub1'!G3","v":"CONSULTANT NAME"}]
[]
["GENERAL PROJECT WORK:","ITEM","QTY","DESCRIPTION",null,null,"UNIT COST "]
[null,"Travel:"]
[null,"Sedan",0,"Trip(s) @",0,"miles @",{"$f":"SEDAN","v":0.7},{"$f":"SUM(C6*E6*G6)","v":0}]
[null,"Carry All",0,"Trip(s) @",0,"miles @",{"$f":"CARRYALL","v":0.72},{"$f":"SUM(C7*E7*G7)","v":0}]
[null,"Car Rental",null,null,0,"days @ ",{"$f":"CARRENTAL","v":50},{"$f":"SUM(E8*G8)","v":0}]
[null,"Gas for Rental",null,null,0,"miles @",{"$f":"GASforRENTAL","v":0.2},{"$f":"SUM(E9*G9)","v":0}]
[null,"Parking:",0,"Trip(s) @",null,null,{"$f":"PARKING","v":3},{"$f":"SUM(C10*G10)","v":0}]
[null,"Per Diem:",0,"Breakfast",null,null,{"$f":"BREAKFAST","v":10.1},{"$f":"SUM(C11*G11)","v":0}]
[null,null,0,"Lunch",null,null,{"$f":"LUNCH","v":13.3},0]
[null,null,0,"Dinner",null,null,{"$f":"DINNER","v":23.1},0]
[null,null,0,"Lodging",null,null,{"$f":"LODGING_LUMP.SUM","v":95},0]
[null,"Reproduction:",0,"8 1/2 x 11 B & W Copies @",null,null,{"$f":"LETTERCOPIES","v":0.14000000000000001},0]
[null,null,0,"11 x 17 B & W Copies @",null,null,{"$f":"LEDGERCOPIES","v":0.34},0]
[null,null,0,"8 1/2 x 11 Color Copies @",null,null,{"$f":"LETTERCOLOR","v":0.83},0]
[null,null,0,"11 x 17 Color Copies @",null,null,{"$f":"LEDGERCOLOR","v":1.66},0]
[null,null,0,"SQ. FT. of Plots (B & W or Color)",null,"<65 SQ. FT.*",{"$f":"ROLLPLOTSshort","v":6.5},0]
[null,null,0,"SQ. FT. of Plots (B & W or Color)",null,">65 SQ. FT.*",{"$f":"ROLLPLOTSlong","v":1.5},0]
[null,null,0,"Cover(s) @",null,null,{"$f":"COVERS","v":0.5},0]
[null,null,0,"Binder(s) @",null,null,{"$f":"BINDERS","v":0.5},0]
[null,null,0,"Blueprints - 8 1/2 x 11 @",null,null,{"$f":"BLUEPRINTSLETTER","v":0.35},0]
[null,null,0,"Blueprints - 42 x 72 @",null,null,{"$f":"BLUEPRINTSLARGE","v":1.3},0]
[null,"Film and Developing:",0,"Roll(s) @",null,null,{"$f":"FILM","v":20},0]
[null,null,null,null,null,"Subtotal",null,{"$f":"SUM(H6:H25)","v":0}]
["MAPS AND DOCUMENTS:","ITEM","QTY","DESCRIPTION",null,null,"UNIT COST "]
[null,"County Tax Maps:",0,"Map(s) @",null,null,{"$f":"County_Tax_Maps","v":7},{"$f":"SUM(C28*G28)","v":0}]
[null,"USGS Maps:",0,"Map(s) @",null,null,{"$f":"USGSMAPS","v":7},{"$f":"SUM(C29*G29)","v":0}]
[null,null,null,null,null,"Subtotal",null,{"$f":"SUM(H28:H29)","v":0}]
["Miscellaneous Other","ITEM","QTY","DESCRIPTION",null,null,"UNIT COST "]
[null,null,null,null,null,null,null,{"$f":"SUM(C32*G32)","v":0}]
[null,null,null,null,null,null,null,{"$f":"SUM(C33*G33)","v":0}]
[null,null,null,null,null,null,null,0]
[null,null,null,null,null,null,null,0]
[null,null,null,null,null,null,null,0]
[null,null,null,null,null,null,null,0]
[null,null,null,null,null,null,null,0]
[null,null,null,null,null,null,null,{"$f":"SUM(C39*G39)","v":0}]
[null,null,null,null,null,null,null,{"$f":"SUM(C40*G40)","v":0}]
[null,null,null,null,null,null,null,{"$f":"SUM(C41*G41)","v":0}]
[null,null,null,null,null,"Subtotal",null,{"$f":"SUM(H32:H41)","v":0}]
[]
[null,null,null,null,null,"TOTAL",null,{"$f":"SUM(H26+H30+H42)","v":0}]
[]
[null,"* Sum of all plots "]

{"sheet":"IM-BikePed-Sub2","index":109,"n_rows":135,"n_cols":27,"rows_kept":135,"cut":false,"hidden":true,"merged":[[0,0,1,13],[2,1,2,4],[2,6,2,7],[2,10,2,11],[2,15,2,16],[3,1,3,4],[3,6,3,7],[3,10,3,11],[3,15,3,16],[6,12,9,12],[6,13,9,13],[6,14,9,14],[6,15,9,15],[6,16,9,16],[6,17,9,17],[4,3,4,22],[6,3,9,3],[6,4,9,4],[6,5,9,5],[6,6,9,6],[6,7,9,7],[6,8,9,8],[6,9,9,9],[6,10,9,10],[6,11,9,11],[10,26,10,27],[11,26,11,27],[12,26,12,27],[13,26,13,27],[14,26,14,27],[15,26,15,27],[6,18,9,18],[6,19,9,19],[6,20,9,20],[6,21,9,21],[6,22,9,22],[8,26,8,27],[22,26,22,27],[23,26,23,27],[24,26,24,27],[25,26,25,27],[26,26,26,27],[27,26,27,27],[16,26,16,27],[17,26,17,27],[18,26,18,27],[19,26,19,27],[20,26,20,27],[21,26,21,27],[34,26,34,27],[35,26,35,27],[36,26,36,27],[37,26,37,27],[38,26,38,27],[39,26,39,27],[28,26,28,27],[29,26,29,27],[30,26,30,27],[31,26,31,27],[32,26,32,27],[33,26,33,27],[46,26,46,27],[47,26,47,27],[48,26,48,27],[49,26,49,27],[50,26,50,27],[51,26,51,27],[40,26,40,27],[41,26,41,27],[42,26,42,27],[43,26,43,27],[44,26,44,27],[45,26,45,27],[58,26,58,27],[59,26,59,27],[60,26,60,27],[61,26,61,27],[62,26,62,27],[63,26,63,27],[52,26,52,27],[53,26,53,27],[54,26,54,27],[55,26,55,27],[56,26,56,27],[57,26,57,27],[70,26,70,27],[71,26,71,27],[72,26,72,27],[73,26,73,27],[74,26,74,27],[75,26,75,27],[64,26,64,27],[65,26,65,27],[66,26,66,27],[67,26,67,27],[68,26,68,27],[69,26,69,27],[82,26,82,27],[83,26,83,27],[84,26,84,27],[85,26,85,27],[86,26,86,27],[87,26,87,27],[76,26,76,27],[77,26,77,27],[78,26,78,27],[79,26,79,27],[80,26,80,27],[81,26,81,27],[94,26,94,27],[95,26,95,27],[96,26,96,27],[97,26,97,27],[98,26,98,27],[99,26,99,27],[88,26,88,27],[89,26,89,27],[90,26,90,27],[91,26,91,27],[92,26,92,27],[93,26,93,27],[106,26,106,27],[107,26,107,27],[108,26,108,27],[109,26,109,27],[110,26,110,27],[111,26,111,27],[100,26,100,27],[101,26,101,27],[102,26,102,27],[103,26,103,27],[104,26,104,27],[105,26,105,27],[118,26,118,27],[119,26,119,27],[134,1,135,1],[134,3,135,4],[138,3,138,6],[138,8,138,13],[112,26,112,27],[113,26,113,27],[114,26,114,27],[115,26,115,27],[116,26,116,27],[117,26,117,27],[145,8,145,9],[145,10,145,11],[139,8,139,9],[139,10,139,11],[140,8,140,9],[140,10,140,11],[143,8,143,13],[144,8,144,9],[144,10,144,11]]}
["BICYCLE AND PEDESTRIAN--BREAKDOWN WORKSHEET - SUBCONSULTANT 2 -- ENTER WORKHOURS"]
[]
["PROJECT DESCRIPTION: ",{"$f":"PROJECT.DESCRIPTION","v":0},null,null,null,"FIRM:  ",{"$f":"BIKEANDPED.SUB2_CONSULTANT_NAME","v":"CONSULTANT NAME"},null,"TASK ORDER NUMBER:",null,{"$f":"TASK.ORDER.NUMBER","v":0},null,"DATE PREPARED:",{"$f":"IF(SCOPE.MANDAY.ESTIMATE.PREPARED.BY.DATE=\"\",\"\",SCOPE.MANDAY.ESTIMATE.PREPARED.BY.DATE)","v":""}]
["PREPARED BY:  ",{"$f":"IF(SCOPE.MANDAY.ESTIMATE.PREPARED.BY=\"\",\"\",SCOPE.MANDAY.ESTIMATE.PREPARED.BY)","v":""},null,null,null,"TIP NUMBER:",{"$f":"TIP.NUMBER","v":0},null,"WBS NUMBER:",null,{"$f":"WBS.NUMBER","v":""},null,"REVISION DATE:",{"$f":"IF(SCOPE.MANDAY.ESTIMATE.APPROVED.BY.DATE=\"\",\"\",SCOPE.MANDAY.ESTIMATE.APPROVED.BY.DATE)","v":""}]
[null,null,null,"ESTIMATED WORKHOURS"]
[null,null,"EMPLOYEE NAMES",{"$f":"IF('PEF CLASSIFICATION SHEET'!D925=\"\",\"\",LEFT('PEF CLASSIFICATION SHEET'!D925,4))","v":""},{"$f":"IF('PEF CLASSIFICATION SHEET'!D926=\"\",\"\",LEFT('PEF CLASSIFICATION SHEET'!D926,4))","v":""},{"$f":"IF('PEF CLASSIFICATION SHEET'!D927=\"\",\"\",LEFT('PEF CLASSIFICATION SHEET'!D927,4))","v":""},{"$f":"IF('PEF CLASSIFICATION SHEET'!D928=\"\",\"\",LEFT('PEF CLASSIFICATION SHEET'!D928,4))","v":""},{"$f":"IF('PEF CLASSIFICATION SHEET'!D929=\"\",\"\",LEFT('PEF CLASSIFICATION SHEET'!D929,4))","v":""},{"$f":"IF('PEF CLASSIFICATION SHEET'!D930=\"\",\"\",LEFT('PEF CLASSIFICATION SHEET'!D930,4))","v":""},{"$f":"IF('PEF CLASSIFICATION SHEET'!D931=\"\",\"\",LEFT('PEF CLASSIFICATION SHEET'!D931,4))","v":""},{"$f":"IF('PEF CLASSIFICATION SHEET'!D932=\"\",\"\",LEFT('PEF CLASSIFICATION SHEET'!D932,4))","v":""},{"$f":"IF('PEF CLASSIFICATION SHEET'!D933=\"\",\"\",LEFT('PEF CLASSIFICATION SHEET'!D933,4))","v":""},{"$f":"IF('PEF CLASSIFICATION SHEET'!D934=\"\",\"\",LEFT('PEF CLASSIFICATION SHEET'!D934,4))","v":""},{"$f":"IF('PEF CLASSIFICATION SHEET'!D935=\"\",\"\",LEFT('PEF CLASSIFICATION SHEET'!D935,4))","v":""},{"$f":"IF('PEF CLASSIFICATION SHEET'!D936=\"\",\"\",LEFT('PEF CLASSIFICATION SHEET'!D936,4))","v":""},{"$f":"IF('PEF CLASSIFICATION SHEET'!D937=\"\",\"\",LEFT('PEF CLASSIFICATION SHEET'!D937,4))","v":""},{"$f":"IF('PEF CLASSIFICATION SHEET'!D938=\"\",\"\",LEFT('PEF CLASSIFICATION SHEET'!D938,4))","v":""},{"$f":"IF('PEF CLASSIFICATION SHEET'!D939=\"\",\"\",LEFT('PEF CLASSIFICATION SHEET'!D939,4))","v":""},{"$f":"IF('PEF CLASSIFICATION SHEET'!D940=\"\",\"\",LEFT('PEF CLASSIFICATION SHEET'!D940,4))","v":""},{"$f":"IF('PEF CLASSIFICATION SHEET'!D941=\"\",\"\",LEFT('PEF CLASSIFICATION SHEET'!D941,4))","v":""},{"$f":"IF('PEF CLASSIFICATION SHEET'!D942=\"\",\"\",LEFT('PEF CLASSIFICATION SHEET'!D942,4))","v":""},{"$f":"IF('PEF CLASSIFICATION SHEET'!D943=\"\",\"\",LEFT('PEF CLASSIFICATION SHEET'!D943,4))","v":""},{"$f":"IF('PEF CLASSIFICATION SHEET'!D944=\"\",\"\",LEFT('PEF CLASSIFICATION SHEET'!D944,4))","v":""}]
[null,null,null,{"$f":"IF('PEF CLASSIFICATION SHEET'!C925=\"\",\"\",'PEF CLASSIFICATION SHEET'!C925)","v":""},{"$f":"IF('PEF CLASSIFICATION SHEET'!C926=\"\",\"\",'PEF CLASSIFICATION SHEET'!C926)","v":""},{"$f":"IF('PEF CLASSIFICATION SHEET'!C927=\"\",\"\",'PEF CLASSIFICATION SHEET'!C927)","v":""},{"$f":"IF('PEF CLASSIFICATION SHEET'!C928=\"\",\"\",'PEF CLASSIFICATION SHEET'!C928)","v":""},{"$f":"IF('PEF CLASSIFICATION SHEET'!C929=\"\",\"\",'PEF CLASSIFICATION SHEET'!C929)","v":""},{"$f":"IF('PEF CLASSIFICATION SHEET'!C930=\"\",\"\",'PEF CLASSIFICATION SHEET'!C930)","v":""},{"$f":"IF('PEF CLASSIFICATION SHEET'!C931=\"\",\"\",'PEF CLASSIFICATION SHEET'!C931)","v":""},{"$f":"IF('PEF CLASSIFICATION SHEET'!C932=\"\",\"\",'PEF CLASSIFICATION SHEET'!C932)","v":""},{"$f":"IF('PEF CLASSIFICATION SHEET'!C933=\"\",\"\",'PEF CLASSIFICATION SHEET'!C933)","v":""},{"$f":"IF('PEF CLASSIFICATION SHEET'!C934=\"\",\"\",'PEF CLASSIFICATION SHEET'!C934)","v":""},{"$f":"IF('PEF CLASSIFICATION SHEET'!C935=\"\",\"\",'PEF CLASSIFICATION SHEET'!C935)","v":""},{"$f":"IF('PEF CLASSIFICATION SHEET'!C936=\"\",\"\",'PEF CLASSIFICATION SHEET'!C936)","v":""},{"$f":"IF('PEF CLASSIFICATION SHEET'!C937=\"\",\"\",'PEF CLASSIFICATION SHEET'!C937)","v":""},{"$f":"IF('PEF CLASSIFICATION SHEET'!C938=\"\",\"\",'PEF CLASSIFICATION SHEET'!C938)","v":""},{"$f":"IF('PEF CLASSIFICATION SHEET'!C939=\"\",\"\",'PEF CLASSIFICATION SHEET'!C939)","v":""},{"$f":"IF('PEF CLASSIFICATION SHEET'!C940=\"\",\"\",'PEF CLASSIFICATION SHEET'!C940)","v":""},{"$f":"IF('PEF CLASSIFICATION SHEET'!C941=\"\",\"\",'PEF CLASSIFICATION SHEET'!C941)","v":""},{"$f":"IF('PEF CLASSIFICATION SHEET'!C942=\"\",\"\",'PEF CLASSIFICATION SHEET'!C942)","v":""},{"$f":"IF('PEF CLASSIFICATION SHEET'!C943=\"\",\"\",'PEF CLASSIFICATION SHEET'!C943)","v":""},{"$f":"IF('PEF CLASSIFICATION SHEET'!C944=\"\",\"\",'PEF CLASSIFICATION SHEET'!C944)","v":""},"SUB-","%","PEF"]
[null,null,null,null,null,null,null,null,null,null,null,null,null,null,null,null,null,null,null,null,null,null,null,"TOTAL","OF","ESTIMATE"]
["TASK","TASK DESCRIPTION","CLASSIFICATION",null,null,null,null,null,null,null,null,null,null,null,null,null,null,null,null,null,null,null,null,null,"PROJECT",null,"COMMENTS"]
["NO."]
[null,"Current Conditions Evaluation",null,null,null,null,null,null,null,null,null,null,null,null,null,null,null,null,null,null,null,null,null,{"$f":"IF(B11=\"\",\"\",IF((SUM(D11:W11)=0),0,SUM(D11:W11)))","v":0},{"$f":"IF(X11=\"\",\"\",SUM((X11/$X$121)))","v":{"$error":"#DIV/0!"}}]
[null,"Data Collection",null,null,null,null,null,null,null,null,null,null,null,null,null,null,null,null,null,null,null,null,null,0,{"$f":"IF(X12=\"\",\"\",SUM((X12/$X$121)))","v":{"$error":"#DIV/0!"}}]
[null,"Existing Conditions Inventory & Assessment",null,null,null,null,null,null,null,null,null,null,null,null,null,null,null,null,null,null,null,null,null,0,{"$error":"#DIV/0!"}]
[null,"Existing Plans Review",null,null,null,null,null,null,null,null,null,null,null,null,null,null,null,null,null,null,null,null,null,0,{"$error":"#DIV/0!"}]
[null,"Existing Plans, Programs, Policies Review",null,null,null,null,null,null,null,null,null,null,null,null,null,null,null,null,null,null,null,null,null,0,{"$error":"#DIV/0!"}]
[null,"Existing Policies Review",null,null,null,null,null,null,null,null,null,null,null,null,null,null,null,null,null,null,null,null,null,0,{"$error":"#DIV/0!"}]
[null,"Existing Programs Review",null,null,null,null,null,null,null,null,null,null,null,null,null,null,null,null,null,null,null,null,null,0,{"$error":"#DIV/0!"}]
[null,null,null,null,null,null,null,null,null,null,null,null,null,null,null,null,null,null,null,null,null,null,null,"",""]
[null,null,null,null,null,null,null,null,null,null,null,null,null,null,null,null,null,null,null,null,null,null,null,"",""]
[null,"Implementation",null,null,null,null,null,null,null,null,null,null,null,null,null,null,null,null,null,null,null,null,null,0,{"$error":"#DIV/0!"}]
[null,"Funding Strategies",null,null,null,null,null,null,null,null,null,null,null,null,null,null,null,null,null,null,null,null,null,0,{"$error":"#DIV/0!"}]
[null,"Implementation Plan",null,null,null,null,null,null,null,null,null,null,null,null,null,null,null,null,null,null,null,null,null,0,{"$error":"#DIV/0!"}]
[null,null,null,null,null,null,null,null,null,null,null,null,null,null,null,null,null,null,null,null,null,null,null,"",""]
[null,null,null,null,null,null,null,null,null,null,null,null,null,null,null,null,null,null,null,null,null,null,null,"",""]
[null,"Plan Development",null,null,null,null,null,null,null,null,null,null,null,null,null,null,null,null,null,null,null,null,null,0,{"$error":"#DIV/0!"}]
[null,"Draft Plan Preparation",null,null,null,null,null,null,null,null,null,null,null,null,null,null,null,null,null,null,null,null,null,0,{"$error":"#DIV/0!"}]
[null,"Final Plan Presentation",null,null,null,null,null,null,null,null,null,null,null,null,null,null,null,null,null,null,null,null,null,0,{"$error":"#DIV/0!"}]
[null,"Final Plan Revisions",null,null,null,null,null,null,null,null,null,null,null,null,null,null,null,null,null,null,null,null,null,0,{"$error":"#DIV/0!"}]
[null,null,null,null,null,null,null,null,null,null,null,null,null,null,null,null,null,null,null,null,null,null,null,"",""]
[null,null,null,null,null,null,null,null,null,null,null,null,null,null,null,null,null,null,null,null,null,null,null,"",""]
[null,"Project Management",null,null,null,null,null,null,null,null,null,null,null,null,null,null,null,null,null,null,null,null,null,0,{"$error":"#DIV/0!"}]
[null,"Project Administration",null,null,null,null,null,null,null,null,null,null,null,null,null,null,null,null,null,null,null,null,null,0,{"$error":"#DIV/0!"}]
[null,"Project Kickoff Meeting",null,null,null,null,null,null,null,null,null,null,null,null,null,null,null,null,null,null,null,null,null,0,{"$error":"#DIV/0!"}]
[null,null,null,null,null,null,null,null,null,null,null,null,null,null,null,null,null,null,null,null,null,null,null,"",""]
[null,null,null,null,null,null,null,null,null,null,null,null,null,null,null,null,null,null,null,null,null,null,null,"",""]
[null,"Public & Stakeholder Involvement",null,null,null,null,null,null,null,null,null,null,null,null,null,null,null,null,null,null,null,null,null,0,{"$error":"#DIV/0!"}]
[null,"Public Involvement",null,null,null,null,null,null,null,null,null,null,null,null,null,null,null,null,null,null,null,null,null,0,{"$error":"#DIV/0!"}]
[null,"Public Workshop #XX",null,null,null,null,null,null,null,null,null,null,null,null,null,null,null,null,null,null,null,null,null,0,{"$error":"#DIV/0!"}]
[null,"Stakeholder Involvement  ",null,null,null,null,null,null,null,null,null,null,null,null,null,null,null,null,null,null,null,null,null,0,{"$error":"#DIV/0!"}]
[null,"Steering Committee Meeting #XX",null,null,null,null,null,null,null,null,null,null,null,null,null,null,null,null,null,null,null,null,null,0,{"$error":"#DIV/0!"}]
[null,null,null,null,null,null,null,null,null,null,null,null,null,null,null,null,null,null,null,null,null,null,null,"",""]
[null,null,null,null,null,null,null,null,null,null,null,null,null,null,null,null,null,null,null,null,null,null,null,"",""]
[null,"Recommendations",null,null,null,null,null,null,null,null,null,null,null,null,null,null,null,null,null,null,null,null,null,0,{"$error":"#DIV/0!"}]
[null,"Cost Estimates",null,null,null,null,null,null,null,null,null,null,null,null,null,null,null,null,null,null,null,null,null,0,{"$error":"#DIV/0!"}]
[null,"Other Recommendations",null,null,null,null,null,null,null,null,null,null,null,null,null,null,null,null,null,null,null,null,null,0,{"$error":"#DIV/0!"}]
[null,"Policy Recommendations",null,null,null,null,null,null,null,null,null,null,null,null,null,null,null,null,null,null,null,null,null,0,{"$error":"#DIV/0!"}]
[null,"Program Recommendations",null,null,null,null,null,null,null,null,null,null,null,null,null,null,null,null,null,null,null,null,null,0,{"$error":"#DIV/0!"}]
[null,"Project Recommendations",null,null,null,null,null,null,null,null,null,null,null,null,null,null,null,null,null,null,null,null,null,0,{"$error":"#DIV/0!"}]
[null,null,null,null,null,null,null,null,null,null,null,null,null,null,null,null,null,null,null,null,null,null,null,"",""]
[null,null,null,null,null,null,null,null,null,null,null,null,null,null,null,null,null,null,null,null,null,null,null,"",""]
[null,"MISCELLANEOUS ITEMS",null,null,null,null,null,null,null,null,null,null,null,null,null,null,null,null,null,null,null,null,null,0,{"$error":"#DIV/0!"}]
[null,null,null,null,null,null,null,null,null,null,null,null,null,null,null,null,null,null,null,null,null,null,null,"",""]
[null,null,null,null,null,null,null,null,null,null,null,null,null,null,null,null,null,null,null,null,null,null,null,"",""]
[null,null,null,null,null,null,null,null,null,null,null,null,null,null,null,null,null,null,null,null,null,null,null,"",""]
[null,null,null,null,null,null,null,null,null,null,null,null,null,null,null,null,null,null,null,null,null,null,null,"",""]
[null,null,null,null,null,null,null,null,null,null,null,null,null,null,null,null,null,null,null,null,null,null,null,"",""]
[null,null,null,null,null,null,null,null,null,null,null,null,null,null,null,null,null,null,null,null,null,null,null,"",""]
[null,null,null,null,null,null,null,null,null,null,null,null,null,null,null,null,null,null,null,null,null,null,null,"",""]
[null,null,null,null,null,null,null,null,null,null,null,null,null,null,null,null,null,null,null,null,null,null,null,"",""]
[null,null,null,null,null,null,null,null,null,null,null,null,null,null,null,null,null,null,null,null,null,null,null,"",""]
[null,null,null,null,null,null,null,null,null,null,null,null,null,null,null,null,null,null,null,null,null,null,null,"",""]
[null,"FEASIBILITY STUDIES",null,null,null,null,null,null,null,null,null,null,null,null,null,null,null,null,null,null,null,null,null,0,{"$error":"#DIV/0!"}]
[null,null,null,null,null,null,null,null,null,null,null,null,null,null,null,null,null,null,null,null,null,null,null,"",""]
[null,null,null,null,null,null,null,null,null,null,null,null,null,null,null,null,null,null,null,null,null,null,null,"",""]
[null,null,null,null,null,null,null,null,null,null,null,null,null,null,null,null,null,null,null,null,null,null,null,"",""]
[null,null,null,null,null,null,null,null,null,null,null,null,null,null,null,null,null,null,null,null,null,null,null,"",""]
[null,null,null,null,null,null,null,null,null,null,null,null,null,null,null,null,null,null,null,null,null,null,null,"",""]
[null,null,null,null,null,null,null,null,null,null,null,null,null,null,null,null,null,null,null,null,null,null,null,"",""]
[null,null,null,null,null,null,null,null,null,null,null,null,null,null,null,null,null,null,null,null,null,null,null,"",""]
[null,null,null,null,null,null,null,null,null,null,null,null,null,null,null,null,null,null,null,null,null,null,null,"",""]
[null,null,null,null,null,null,null,null,null,null,null,null,null,null,null,null,null,null,null,null,null,null,null,"",""]
[null,null,null,null,null,null,null,null,null,null,null,null,null,null,null,null,null,null,null,null,null,null,null,"",""]
[null,null,null,null,null,null,null,null,null,null,null,null,null,null,null,null,null,null,null,null,null,null,null,"",""]
[null,null,null,null,null,null,null,null,null,null,null,null,null,null,null,null,null,null,null,null,null,null,null,"",""]
[null,null,null,null,null,null,null,null,null,null,null,null,null,null,null,null,null,null,null,null,null,null,null,{"$f":"IF(B75=\"\",\"\",IF((SUM(D75:W75)=0),0,SUM(D75:W75)))","v":""},""]
[null,null,null,null,null,null,null,null,null,null,null,null,null,null,null,null,null,null,null,null,null,null,null,"",{"$f":"IF(X76=\"\",\"\",SUM((X76/$X$121)))","v":""}]
[null,null,null,null,null,null,null,null,null,null,null,null,null,null,null,null,null,null,null,null,null,null,null,"",""]
[null,null,null,null,null,null,null,null,null,null,null,null,null,null,null,null,null,null,null,null,null,null,null,"",""]
[null,null,null,null,null,null,null,null,null,null,null,null,null,null,null,null,null,null,null,null,null,null,null,"",""]
[null,null,null,null,null,null,null,null,null,null,null,null,null,null,null,null,null,null,null,null,null,null,null,"",""]
[null,null,null,null,null,null,null,null,null,null,null,null,null,null,null,null,null,null,null,null,null,null,null,"",""]
[null,null,null,null,null,null,null,null,null,null,null,null,null,null,null,null,null,null,null,null,null,null,null,"",""]
[null,"OTHER TASKS",null,null,null,null,null,null,null,null,null,null,null,null,null,null,null,null,null,null,null,null,null,0,{"$error":"#DIV/0!"}]
[null,null,null,null,null,null,null,null,null,null,null,null,null,null,null,null,null,null,null,null,null,null,null,"",""]
[null,null,null,null,null,null,null,null,null,null,null,null,null,null,null,null,null,null,null,null,null,null,null,"",""]
[null,null,null,null,null,null,null,null,null,null,null,null,null,null,null,null,null,null,null,null,null,null,null,"",""]
[null,null,null,null,null,null,null,null,null,null,null,null,null,null,null,null,null,null,null,null,null,null,null,"",""]
[null,null,null,null,null,null,null,null,null,null,null,null,null,null,null,null,null,null,null,null,null,null,null,"",""]
[null,null,null,null,null,null,null,null,null,null,null,null,null,null,null,null,null,null,null,null,null,null,null,"",""]
[null,null,null,null,null,null,null,null,null,null,null,null,null,null,null,null,null,null,null,null,null,null,null,"",""]
[null,null,null,null,null,null,null,null,null,null,null,null,null,null,null,null,null,null,null,null,null,null,null,"",""]
[null,null,null,null,null,null,null,null,null,null,null,null,null,null,null,null,null,null,null,null,null,null,null,"",""]
[null,null,null,null,null,null,null,null,null,null,null,null,null,null,null,null,null,null,null,null,null,null,null,"",""]
[null,null,null,null,null,null,null,null,null,null,null,null,null,null,null,null,null,null,null,null,null,null,null,"",""]
[null,null,null,null,null,null,null,null,null,null,null,null,null,null,null,null,null,null,null,null,null,null,null,"",""]
[null,null,null,null,null,null,null,null,null,null,null,null,null,null,null,null,null,null,null,null,null,null,null,"",""]
[null,null,null,null,null,null,null,null,null,null,null,null,null,null,null,null,null,null,null,null,null,null,null,"",""]
[null,null,null,null,null,null,null,null,null,null,null,null,null,null,null,null,null,null,null,null,null,null,null,"",""]
[null,null,null,null,null,null,null,null,null,null,null,null,null,null,null,null,null,null,null,null,null,null,null,"",""]
[null,null,null,null,null,null,null,null,null,null,null,null,null,null,null,null,null,null,null,null,null,null,null,"",""]
[null,null,null,null,null,null,null,null,null,null,null,null,null,null,null,null,null,null,null,null,null,null,null,"",""]
[null,null,null,null,null,null,null,null,null,null,null,null,null,null,null,null,null,null,null,null,null,null,null,"",""]
[null,null,null,null,null,null,null,null,null,null,null,null,null,null,null,null,null,null,null,null,null,null,null,"",""]
[null,null,null,null,null,null,null,null,null,null,null,null,null,null,null,null,null,null,null,null,null,null,null,"",""]
[null,null,null,null,null,null,null,null,null,null,null,null,null,null,null,null,null,null,null,null,null,null,null,"",""]
[null,null,null,null,null,null,null,null,null,null,null,null,null,null,null,null,null,null,null,null,null,null,null,"",""]
[null,null,null,null,null,null,null,null,null,null,null,null,null,null,null,null,null,null,null,null,null,null,null,"",""]
[null,null,null,null,null,null,null,null,null,null,null,null,null,null,null,null,null,null,null,null,null,null,null,"",""]
[null,null,null,null,null,null,null,null,null,null,null,null,null,null,null,null,null,null,null,null,null,null,null,"",""]
[null,null,null,null,null,null,null,null,null,null,null,null,null,null,null,null,null,null,null,null,null,null,null,"",""]
[null,null,null,null,null,null,null,null,null,null,null,null,null,null,null,null,null,null,null,null,null,null,null,"",""]
[null,null,null,null,null,null,null,null,null,null,null,null,null,null,null,null,null,null,null,null,null,null,null,"",""]
[null,null,null,null,null,null,null,null,null,null,null,null,null,null,null,null,null,null,null,null,null,null,null,"",""]
[null,null,null,null,null,null,null,null,null,null,null,null,null,null,null,null,null,null,null,null,null,null,null,"",""]
[null,null,null,null,null,null,null,null,null,null,null,null,null,null,null,null,null,null,null,null,null,null,null,"",""]
[null,null,null,null,null,null,null,null,null,null,null,null,null,null,null,null,null,null,null,null,null,null,null,"",""]
[null,null,null,null,null,null,null,null,null,null,null,null,null,null,null,null,null,null,null,null,null,null,null,"",""]
[null,null,null,null,null,null,null,null,null,null,null,null,null,null,null,null,null,null,null,null,null,null,null,"",""]
[null,null,null,null,null,null,null,null,null,null,null,null,null,null,null,null,null,null,null,null,null,null,null,"",""]
[null,null,null,null,null,null,null,null,null,null,null,null,null,null,null,null,null,null,null,null,null,null,null,"",""]
[null,"TOTAL WORKHOURS/CATEGORY:",null,{"$f":"SUM(D11:D120)","v":0},0,0,0,0,0,0,0,0,0,0,0,0,0,0,0,0,0,0,0,{"$f":"SUM(X11:X120)","v":0},{"$f":"SUM(Y11:Y120)","v":{"$error":"#DIV/0!"}},{"$f":"SUM(Z12:Z120)","v":0}]
[null,"TOTAL WORKDAYS/CATEGORY:",null,{"$f":"D121/8","v":0},{"$f":"E121/8","v":0},0,0,0,0,0,0,0,0,0,0,0,0,0,0,0,0,0,0]
[null,"HOURLY SALARY RATE:",null,{"$f":"'PEF CLASSIFICATION SHEET'!E925","v":0},{"$f":"'PEF CLASSIFICATION SHEET'!E926","v":0},{"$f":"'PEF CLASSIFICATION SHEET'!E927","v":0},{"$f":"'PEF CLASSIFICATION SHEET'!E928","v":0},{"$f":"'PEF CLASSIFICATION SHEET'!E929","v":0},{"$f":"'PEF CLASSIFICATION SHEET'!E930","v":0},{"$f":"'PEF CLASSIFICATION SHEET'!E931","v":0},{"$f":"'PEF CLASSIFICATION SHEET'!E932","v":0},{"$f":"'PEF CLASSIFICATION SHEET'!E933","v":0},{"$f":"'PEF CLASSIFICATION SHEET'!E934","v":0},{"$f":"'PEF CLASSIFICATION SHEET'!E935","v":0},{"$f":"'PEF CLASSIFICATION SHEET'!E936","v":0},{"$f":"'PEF CLASSIFICATION SHEET'!E937","v":0},{"$f":"'PEF CLASSIFICATION SHEET'!E938","v":0},{"$f":"'PEF CLASSIFICATION SHEET'!E939","v":0},{"$f":"'PEF CLASSIFICATION SHEET'!E940","v":0},{"$f":"'PEF CLASSIFICATION SHEET'!E941","v":0},{"$f":"'PEF CLASSIFICATION SHEET'!E942","v":0},{"$f":"'PEF CLASSIFICATION SHEET'!E943","v":0},{"$f":"'PEF CLASSIFICATION SHEET'!E944","v":0}]
[null,"RATES PER DAY:",null,{"$f":"D123*8","v":0},0,0,0,0,0,0,0,0,0,0,0,0,0,0,0,0,0,0,0]
[null,"PAYROLL BURDEN:",null,{"$f":"SUM(D121*D123)","v":0},{"$f":"SUM(E121*E123)","v":0},0,0,0,0,0,0,0,0,0,0,0,0,0,0,0,0,0,0]
[null,"TOTAL WORKDAYS:",null,{"$f":"SUM(D122:W122)","v":0}]
[null,"TOTAL PAYROLL BURDEN:",null,{"$f":"SUM(D125:W125)","v":0}]
[null,"AVERAGE COST PER HOUR:",null,{"$f":"SUM(D127/(D126*8))","v":{"$error":"#DIV/0!"}}]
[null,"GENERAL OVERHEAD:",{"$f":"BIKEANDPED.SUB2_CONSULTANT_OVERHEAD","v":0},{"$f":"SUM(D127*C129)","v":0}]
[null,"SUBTOTAL:",null,{"$f":"SUM(D127+D129)","v":0}]
[null,"COMPARATIVE FEE:",{"$f":"BIKEANDPED.SUB2_CONSULTANT_FEE","v":0.09},{"$f":"SUM(D130*C131)","v":0}]
[null,"FACILITIES COST OF CAPITAL:",{"$f":"BIKEANDPED.SUB2_CONSULTANT_COSTofCAPITAL","v":0},{"$f":"SUM(D127*C132)","v":0}]
[null,"TOTAL:",null,{"$f":"SUM(D130:D132)","v":0}]
[null,"DIRECT EXPENSES:",null,{"$f":"BIKEANDPED.SUB2_DIRECT_NONSALARY_TOTAL","v":0}]
[null,"BICYCLE AND PEDESTRIAN GRAND TOTAL:",null,{"$f":"SUM(D133:D134)","v":0}]

{"sheet":"IM-BikePed-Exp-Sub2","index":110,"n_rows":46,"n_cols":8,"rows_kept":46,"cut":false,"hidden":true,"merged":[[0,0,0,7],[1,3,1,7]]}
["BICYCLE AND PEDESTRIAN--DIRECT EXPENSES - SUBCONSULTANT 2"]
["TIP NUMBER",{"$f":"TIP.NUMBER","v":0},"FIRM:",{"$f":"'IM-BikePed-Sub2'!G3","v":"CONSULTANT NAME"}]
[]
["GENERAL PROJECT WORK:","ITEM","QTY","DESCRIPTION",null,null,"UNIT COST "]
[null,"Travel:"]
[null,"Sedan",0,"Trip(s) @",0,"miles @",{"$f":"SEDAN","v":0.7},{"$f":"SUM(C6*E6*G6)","v":0}]
[null,"Carry All",0,"Trip(s) @",0,"miles @",{"$f":"CARRYALL","v":0.72},{"$f":"SUM(C7*E7*G7)","v":0}]
[null,"Car Rental",null,null,0,"days @ ",{"$f":"CARRENTAL","v":50},{"$f":"SUM(E8*G8)","v":0}]
[null,"Gas for Rental",null,null,0,"miles @",{"$f":"GASforRENTAL","v":0.2},{"$f":"SUM(E9*G9)","v":0}]
[null,"Parking:",0,"Trip(s) @",null,null,{"$f":"PARKING","v":3},{"$f":"SUM(C10*G10)","v":0}]
[null,"Per Diem:",0,"Breakfast",null,null,{"$f":"BREAKFAST","v":10.1},{"$f":"SUM(C11*G11)","v":0}]
[null,null,0,"Lunch",null,null,{"$f":"LUNCH","v":13.3},0]
[null,null,0,"Dinner",null,null,{"$f":"DINNER","v":23.1},0]
[null,null,0,"Lodging",null,null,{"$f":"LODGING_LUMP.SUM","v":95},0]
[null,"Reproduction:",0,"8 1/2 x 11 B & W Copies @",null,null,{"$f":"LETTERCOPIES","v":0.14000000000000001},0]
[null,null,0,"11 x 17 B & W Copies @",null,null,{"$f":"LEDGERCOPIES","v":0.34},0]
[null,null,0,"8 1/2 x 11 Color Copies @",null,null,{"$f":"LETTERCOLOR","v":0.83},0]
[null,null,0,"11 x 17 Color Copies @",null,null,{"$f":"LEDGERCOLOR","v":1.66},0]
[null,null,0,"SQ. FT. of Plots (B & W or Color)",null,"<65 SQ. FT.*",{"$f":"ROLLPLOTSshort","v":6.5},0]
[null,null,0,"SQ. FT. of Plots (B & W or Color)",null,">65 SQ. FT.*",{"$f":"ROLLPLOTSlong","v":1.5},0]
[null,null,0,"Cover(s) @",null,null,{"$f":"COVERS","v":0.5},0]
[null,null,0,"Binder(s) @",null,null,{"$f":"BINDERS","v":0.5},0]
[null,null,0,"Blueprints - 8 1/2 x 11 @",null,null,{"$f":"BLUEPRINTSLETTER","v":0.35},0]
[null,null,0,"Blueprints - 42 x 72 @",null,null,{"$f":"BLUEPRINTSLARGE","v":1.3},0]
[null,"Film and Developing:",0,"Roll(s) @",null,null,{"$f":"FILM","v":20},0]
[null,null,null,null,null,"Subtotal",null,{"$f":"SUM(H6:H25)","v":0}]
["MAPS AND DOCUMENTS:","ITEM","QTY","DESCRIPTION",null,null,"UNIT COST "]
[null,"County Tax Maps:",0,"Map(s) @",null,null,{"$f":"County_Tax_Maps","v":7},{"$f":"SUM(C28*G28)","v":0}]
[null,"USGS Maps:",0,"Map(s) @",null,null,{"$f":"USGSMAPS","v":7},{"$f":"SUM(C29*G29)","v":0}]
[null,null,null,null,null,"Subtotal",null,{"$f":"SUM(H28:H29)","v":0}]
["Miscellaneous Other","ITEM","QTY","DESCRIPTION",null,null,"UNIT COST "]
[null,null,null,null,null,null,null,{"$f":"SUM(C32*G32)","v":0}]
[null,null,null,null,null,null,null,{"$f":"SUM(C33*G33)","v":0}]
[null,null,null,null,null,null,null,0]
[null,null,null,null,null,null,null,0]
[null,null,null,null,null,null,null,0]
[null,null,null,null,null,null,null,0]
[null,null,null,null,null,null,null,0]
[null,null,null,null,null,null,null,{"$f":"SUM(C39*G39)","v":0}]
[null,null,null,null,null,null,null,{"$f":"SUM(C40*G40)","v":0}]
[null,null,null,null,null,null,null,{"$f":"SUM(C41*G41)","v":0}]
[null,null,null,null,null,"Subtotal",null,{"$f":"SUM(H32:H41)","v":0}]
[]
[null,null,null,null,null,"TOTAL",null,{"$f":"SUM(H26+H30+H42)","v":0}]
[]
[null,"* Sum of all plots "]

{"sheet":"IM-BikePed-Sub3","index":111,"n_rows":135,"n_cols":27,"rows_kept":135,"cut":false,"hidden":true,"merged":[[0,0,1,13],[2,1,2,4],[2,6,2,7],[2,10,2,11],[2,15,2,16],[3,1,3,4],[3,6,3,7],[3,10,3,11],[3,15,3,16],[6,12,9,12],[6,13,9,13],[6,14,9,14],[6,15,9,15],[6,16,9,16],[6,17,9,17],[4,3,4,22],[6,3,9,3],[6,4,9,4],[6,5,9,5],[6,6,9,6],[6,7,9,7],[6,8,9,8],[6,9,9,9],[6,10,9,10],[6,11,9,11],[10,26,10,27],[11,26,11,27],[12,26,12,27],[13,26,13,27],[14,26,14,27],[15,26,15,27],[6,18,9,18],[6,19,9,19],[6,20,9,20],[6,21,9,21],[6,22,9,22],[8,26,8,27],[22,26,22,27],[23,26,23,27],[24,26,24,27],[25,26,25,27],[26,26,26,27],[27,26,27,27],[16,26,16,27],[17,26,17,27],[18,26,18,27],[19,26,19,27],[20,26,20,27],[21,26,21,27],[34,26,34,27],[35,26,35,27],[36,26,36,27],[37,26,37,27],[38,26,38,27],[39,26,39,27],[28,26,28,27],[29,26,29,27],[30,26,30,27],[31,26,31,27],[32,26,32,27],[33,26,33,27],[46,26,46,27],[47,26,47,27],[48,26,48,27],[49,26,49,27],[50,26,50,27],[51,26,51,27],[40,26,40,27],[41,26,41,27],[42,26,42,27],[43,26,43,27],[44,26,44,27],[45,26,45,27],[58,26,58,27],[59,26,59,27],[60,26,60,27],[61,26,61,27],[62,26,62,27],[63,26,63,27],[52,26,52,27],[53,26,53,27],[54,26,54,27],[55,26,55,27],[56,26,56,27],[57,26,57,27],[70,26,70,27],[71,26,71,27],[72,26,72,27],[73,26,73,27],[74,26,74,27],[75,26,75,27],[64,26,64,27],[65,26,65,27],[66,26,66,27],[67,26,67,27],[68,26,68,27],[69,26,69,27],[82,26,82,27],[83,26,83,27],[84,26,84,27],[85,26,85,27],[86,26,86,27],[87,26,87,27],[76,26,76,27],[77,26,77,27],[78,26,78,27],[79,26,79,27],[80,26,80,27],[81,26,81,27],[94,26,94,27],[95,26,95,27],[96,26,96,27],[97,26,97,27],[98,26,98,27],[99,26,99,27],[88,26,88,27],[89,26,89,27],[90,26,90,27],[91,26,91,27],[92,26,92,27],[93,26,93,27],[106,26,106,27],[107,26,107,27],[108,26,108,27],[109,26,109,27],[110,26,110,27],[111,26,111,27],[100,26,100,27],[101,26,101,27],[102,26,102,27],[103,26,103,27],[104,26,104,27],[105,26,105,27],[118,26,118,27],[119,26,119,27],[134,1,135,1],[134,3,135,4],[138,3,138,6],[138,8,138,13],[112,26,112,27],[113,26,113,27],[114,26,114,27],[115,26,115,27],[116,26,116,27],[117,26,117,27],[145,8,145,9],[145,10,145,11],[139,8,139,9],[139,10,139,11],[140,8,140,9],[140,10,140,11],[143,8,143,13],[144,8,144,9],[144,10,144,11]]}
["BICYCLE AND PEDESTRIAN--BREAKDOWN WORKSHEET - SUBCONSULTANT 3 -- ENTER WORKHOURS"]
[]
["PROJECT DESCRIPTION: ",{"$f":"PROJECT.DESCRIPTION","v":0},null,null,null,"FIRM:  ",{"$f":"BIKEANDPED.SUB3_CONSULTANT_NAME","v":"CONSULTANT NAME"},null,"TASK ORDER NUMBER:",null,{"$f":"TASK.ORDER.NUMBER","v":0},null,"DATE PREPARED:",{"$f":"IF(SCOPE.MANDAY.ESTIMATE.PREPARED.BY.DATE=\"\",\"\",SCOPE.MANDAY.ESTIMATE.PREPARED.BY.DATE)","v":""}]
["PREPARED BY:  ",{"$f":"IF(SCOPE.MANDAY.ESTIMATE.PREPARED.BY=\"\",\"\",SCOPE.MANDAY.ESTIMATE.PREPARED.BY)","v":""},null,null,null,"TIP NUMBER:",{"$f":"TIP.NUMBER","v":0},null,"WBS NUMBER:",null,{"$f":"WBS.NUMBER","v":""},null,"REVISION DATE:",{"$f":"IF(SCOPE.MANDAY.ESTIMATE.APPROVED.BY.DATE=\"\",\"\",SCOPE.MANDAY.ESTIMATE.APPROVED.BY.DATE)","v":""}]
[null,null,null,"ESTIMATED WORKHOURS"]
[null,null,"EMPLOYEE NAMES",{"$f":"IF('PEF CLASSIFICATION SHEET'!D947=\"\",\"\",LEFT('PEF CLASSIFICATION SHEET'!D947,4))","v":""},{"$f":"IF('PEF CLASSIFICATION SHEET'!D948=\"\",\"\",LEFT('PEF CLASSIFICATION SHEET'!D948,4))","v":""},{"$f":"IF('PEF CLASSIFICATION SHEET'!D949=\"\",\"\",LEFT('PEF CLASSIFICATION SHEET'!D949,4))","v":""},{"$f":"IF('PEF CLASSIFICATION SHEET'!D950=\"\",\"\",LEFT('PEF CLASSIFICATION SHEET'!D950,4))","v":""},{"$f":"IF('PEF CLASSIFICATION SHEET'!D951=\"\",\"\",LEFT('PEF CLASSIFICATION SHEET'!D951,4))","v":""},{"$f":"IF('PEF CLASSIFICATION SHEET'!D952=\"\",\"\",LEFT('PEF CLASSIFICATION SHEET'!D952,4))","v":""},{"$f":"IF('PEF CLASSIFICATION SHEET'!D953=\"\",\"\",LEFT('PEF CLASSIFICATION SHEET'!D953,4))","v":""},{"$f":"IF('PEF CLASSIFICATION SHEET'!D954=\"\",\"\",LEFT('PEF CLASSIFICATION SHEET'!D954,4))","v":""},{"$f":"IF('PEF CLASSIFICATION SHEET'!D955=\"\",\"\",LEFT('PEF CLASSIFICATION SHEET'!D955,4))","v":""},{"$f":"IF('PEF CLASSIFICATION SHEET'!D956=\"\",\"\",LEFT('PEF CLASSIFICATION SHEET'!D956,4))","v":""},{"$f":"IF('PEF CLASSIFICATION SHEET'!D957=\"\",\"\",LEFT('PEF CLASSIFICATION SHEET'!D957,4))","v":""},{"$f":"IF('PEF CLASSIFICATION SHEET'!D958=\"\",\"\",LEFT('PEF CLASSIFICATION SHEET'!D958,4))","v":""},{"$f":"IF('PEF CLASSIFICATION SHEET'!D959=\"\",\"\",LEFT('PEF CLASSIFICATION SHEET'!D959,4))","v":""},{"$f":"IF('PEF CLASSIFICATION SHEET'!D960=\"\",\"\",LEFT('PEF CLASSIFICATION SHEET'!D960,4))","v":""},{"$f":"IF('PEF CLASSIFICATION SHEET'!D961=\"\",\"\",LEFT('PEF CLASSIFICATION SHEET'!D961,4))","v":""},{"$f":"IF('PEF CLASSIFICATION SHEET'!D962=\"\",\"\",LEFT('PEF CLASSIFICATION SHEET'!D962,4))","v":""},{"$f":"IF('PEF CLASSIFICATION SHEET'!D963=\"\",\"\",LEFT('PEF CLASSIFICATION SHEET'!D963,4))","v":""},{"$f":"IF('PEF CLASSIFICATION SHEET'!D964=\"\",\"\",LEFT('PEF CLASSIFICATION SHEET'!D964,4))","v":""},{"$f":"IF('PEF CLASSIFICATION SHEET'!D965=\"\",\"\",LEFT('PEF CLASSIFICATION SHEET'!D965,4))","v":""},{"$f":"IF('PEF CLASSIFICATION SHEET'!D966=\"\",\"\",LEFT('PEF CLASSIFICATION SHEET'!D966,4))","v":""}]
[null,null,null,{"$f":"IF('PEF CLASSIFICATION SHEET'!C947=\"\",\"\",'PEF CLASSIFICATION SHEET'!C947)","v":""},{"$f":"IF('PEF CLASSIFICATION SHEET'!C948=\"\",\"\",'PEF CLASSIFICATION SHEET'!C948)","v":""},{"$f":"IF('PEF CLASSIFICATION SHEET'!C949=\"\",\"\",'PEF CLASSIFICATION SHEET'!C949)","v":""},{"$f":"IF('PEF CLASSIFICATION SHEET'!C950=\"\",\"\",'PEF CLASSIFICATION SHEET'!C950)","v":""},{"$f":"IF('PEF CLASSIFICATION SHEET'!C951=\"\",\"\",'PEF CLASSIFICATION SHEET'!C951)","v":""},{"$f":"IF('PEF CLASSIFICATION SHEET'!C952=\"\",\"\",'PEF CLASSIFICATION SHEET'!C952)","v":""},{"$f":"IF('PEF CLASSIFICATION SHEET'!C953=\"\",\"\",'PEF CLASSIFICATION SHEET'!C953)","v":""},{"$f":"IF('PEF CLASSIFICATION SHEET'!C954=\"\",\"\",'PEF CLASSIFICATION SHEET'!C954)","v":""},{"$f":"IF('PEF CLASSIFICATION SHEET'!C955=\"\",\"\",'PEF CLASSIFICATION SHEET'!C955)","v":""},{"$f":"IF('PEF CLASSIFICATION SHEET'!C956=\"\",\"\",'PEF CLASSIFICATION SHEET'!C956)","v":""},{"$f":"IF('PEF CLASSIFICATION SHEET'!C957=\"\",\"\",'PEF CLASSIFICATION SHEET'!C957)","v":""},{"$f":"IF('PEF CLASSIFICATION SHEET'!C958=\"\",\"\",'PEF CLASSIFICATION SHEET'!C958)","v":""},{"$f":"IF('PEF CLASSIFICATION SHEET'!C959=\"\",\"\",'PEF CLASSIFICATION SHEET'!C959)","v":""},{"$f":"IF('PEF CLASSIFICATION SHEET'!C960=\"\",\"\",'PEF CLASSIFICATION SHEET'!C960)","v":""},{"$f":"IF('PEF CLASSIFICATION SHEET'!C961=\"\",\"\",'PEF CLASSIFICATION SHEET'!C961)","v":""},{"$f":"IF('PEF CLASSIFICATION SHEET'!C962=\"\",\"\",'PEF CLASSIFICATION SHEET'!C962)","v":""},{"$f":"IF('PEF CLASSIFICATION SHEET'!C963=\"\",\"\",'PEF CLASSIFICATION SHEET'!C963)","v":""},{"$f":"IF('PEF CLASSIFICATION SHEET'!C964=\"\",\"\",'PEF CLASSIFICATION SHEET'!C964)","v":""},{"$f":"IF('PEF CLASSIFICATION SHEET'!C965=\"\",\"\",'PEF CLASSIFICATION SHEET'!C965)","v":""},{"$f":"IF('PEF CLASSIFICATION SHEET'!C966=\"\",\"\",'PEF CLASSIFICATION SHEET'!C966)","v":""},"SUB-","%","PEF"]
[null,null,null,null,null,null,null,null,null,null,null,null,null,null,null,null,null,null,null,null,null,null,null,"TOTAL","OF","ESTIMATE"]
["TASK","TASK DESCRIPTION","CLASSIFICATION",null,null,null,null,null,null,null,null,null,null,null,null,null,null,null,null,null,null,null,null,null,"PROJECT",null,"COMMENTS"]
["NO."]
[null,"Current Conditions Evaluation",null,null,null,null,null,null,null,null,null,null,null,null,null,null,null,null,null,null,null,null,null,{"$f":"IF(B11=\"\",\"\",IF((SUM(D11:W11)=0),0,SUM(D11:W11)))","v":0},{"$f":"IF(X11=\"\",\"\",SUM((X11/$X$121)))","v":{"$error":"#DIV/0!"}}]
[null,"Data Collection",null,null,null,null,null,null,null,null,null,null,null,null,null,null,null,null,null,null,null,null,null,0,{"$f":"IF(X12=\"\",\"\",SUM((X12/$X$121)))","v":{"$error":"#DIV/0!"}}]
[null,"Existing Conditions Inventory & Assessment",null,null,null,null,null,null,null,null,null,null,null,null,null,null,null,null,null,null,null,null,null,0,{"$error":"#DIV/0!"}]
[null,"Existing Plans Review",null,null,null,null,null,null,null,null,null,null,null,null,null,null,null,null,null,null,null,null,null,0,{"$error":"#DIV/0!"}]
[null,"Existing Plans, Programs, Policies Review",null,null,null,null,null,null,null,null,null,null,null,null,null,null,null,null,null,null,null,null,null,0,{"$error":"#DIV/0!"}]
[null,"Existing Policies Review",null,null,null,null,null,null,null,null,null,null,null,null,null,null,null,null,null,null,null,null,null,0,{"$error":"#DIV/0!"}]
[null,"Existing Programs Review",null,null,null,null,null,null,null,null,null,null,null,null,null,null,null,null,null,null,null,null,null,0,{"$error":"#DIV/0!"}]
[null,null,null,null,null,null,null,null,null,null,null,null,null,null,null,null,null,null,null,null,null,null,null,"",""]
[null,null,null,null,null,null,null,null,null,null,null,null,null,null,null,null,null,null,null,null,null,null,null,"",""]
[null,"Implementation",null,null,null,null,null,null,null,null,null,null,null,null,null,null,null,null,null,null,null,null,null,0,{"$error":"#DIV/0!"}]
[null,"Funding Strategies",null,null,null,null,null,null,null,null,null,null,null,null,null,null,null,null,null,null,null,null,null,0,{"$error":"#DIV/0!"}]
[null,"Implementation Plan",null,null,null,null,null,null,null,null,null,null,null,null,null,null,null,null,null,null,null,null,null,0,{"$error":"#DIV/0!"}]
[null,null,null,null,null,null,null,null,null,null,null,null,null,null,null,null,null,null,null,null,null,null,null,"",""]
[null,null,null,null,null,null,null,null,null,null,null,null,null,null,null,null,null,null,null,null,null,null,null,"",""]
[null,"Plan Development",null,null,null,null,null,null,null,null,null,null,null,null,null,null,null,null,null,null,null,null,null,0,{"$error":"#DIV/0!"}]
[null,"Draft Plan Preparation",null,null,null,null,null,null,null,null,null,null,null,null,null,null,null,null,null,null,null,null,null,0,{"$error":"#DIV/0!"}]
[null,"Final Plan Presentation",null,null,null,null,null,null,null,null,null,null,null,null,null,null,null,null,null,null,null,null,null,0,{"$error":"#DIV/0!"}]
[null,"Final Plan Revisions",null,null,null,null,null,null,null,null,null,null,null,null,null,null,null,null,null,null,null,null,null,0,{"$error":"#DIV/0!"}]
[null,null,null,null,null,null,null,null,null,null,null,null,null,null,null,null,null,null,null,null,null,null,null,"",""]
[null,null,null,null,null,null,null,null,null,null,null,null,null,null,null,null,null,null,null,null,null,null,null,"",""]
[null,"Project Management",null,null,null,null,null,null,null,null,null,null,null,null,null,null,null,null,null,null,null,null,null,0,{"$error":"#DIV/0!"}]
[null,"Project Administration",null,null,null,null,null,null,null,null,null,null,null,null,null,null,null,null,null,null,null,null,null,0,{"$error":"#DIV/0!"}]
[null,"Project Kickoff Meeting",null,null,null,null,null,null,null,null,null,null,null,null,null,null,null,null,null,null,null,null,null,0,{"$error":"#DIV/0!"}]
[null,null,null,null,null,null,null,null,null,null,null,null,null,null,null,null,null,null,null,null,null,null,null,"",""]
[null,null,null,null,null,null,null,null,null,null,null,null,null,null,null,null,null,null,null,null,null,null,null,"",""]
[null,"Public & Stakeholder Involvement",null,null,null,null,null,null,null,null,null,null,null,null,null,null,null,null,null,null,null,null,null,0,{"$error":"#DIV/0!"}]
[null,"Public Involvement",null,null,null,null,null,null,null,null,null,null,null,null,null,null,null,null,null,null,null,null,null,0,{"$error":"#DIV/0!"}]
[null,"Public Workshop #XX",null,null,null,null,null,null,null,null,null,null,null,null,null,null,null,null,null,null,null,null,null,0,{"$error":"#DIV/0!"}]
[null,"Stakeholder Involvement  ",null,null,null,null,null,null,null,null,null,null,null,null,null,null,null,null,null,null,null,null,null,0,{"$error":"#DIV/0!"}]
[null,"Steering Committee Meeting #XX",null,null,null,null,null,null,null,null,null,null,null,null,null,null,null,null,null,null,null,null,null,0,{"$error":"#DIV/0!"}]
[null,null,null,null,null,null,null,null,null,null,null,null,null,null,null,null,null,null,null,null,null,null,null,"",""]
[null,null,null,null,null,null,null,null,null,null,null,null,null,null,null,null,null,null,null,null,null,null,null,"",""]
[null,"Recommendations",null,null,null,null,null,null,null,null,null,null,null,null,null,null,null,null,null,null,null,null,null,0,{"$error":"#DIV/0!"}]
[null,"Cost Estimates",null,null,null,null,null,null,null,null,null,null,null,null,null,null,null,null,null,null,null,null,null,0,{"$error":"#DIV/0!"}]
[null,"Other Recommendations",null,null,null,null,null,null,null,null,null,null,null,null,null,null,null,null,null,null,null,null,null,0,{"$error":"#DIV/0!"}]
[null,"Policy Recommendations",null,null,null,null,null,null,null,null,null,null,null,null,null,null,null,null,null,null,null,null,null,0,{"$error":"#DIV/0!"}]
[null,"Program Recommendations",null,null,null,null,null,null,null,null,null,null,null,null,null,null,null,null,null,null,null,null,null,0,{"$error":"#DIV/0!"}]
[null,"Project Recommendations",null,null,null,null,null,null,null,null,null,null,null,null,null,null,null,null,null,null,null,null,null,0,{"$error":"#DIV/0!"}]
[null,null,null,null,null,null,null,null,null,null,null,null,null,null,null,null,null,null,null,null,null,null,null,"",""]
[null,null,null,null,null,null,null,null,null,null,null,null,null,null,null,null,null,null,null,null,null,null,null,"",""]
[null,"MISCELLANEOUS ITEMS",null,null,null,null,null,null,null,null,null,null,null,null,null,null,null,null,null,null,null,null,null,0,{"$error":"#DIV/0!"}]
[null,null,null,null,null,null,null,null,null,null,null,null,null,null,null,null,null,null,null,null,null,null,null,"",""]
[null,null,null,null,null,null,null,null,null,null,null,null,null,null,null,null,null,null,null,null,null,null,null,"",""]
[null,null,null,null,null,null,null,null,null,null,null,null,null,null,null,null,null,null,null,null,null,null,null,"",""]
[null,null,null,null,null,null,null,null,null,null,null,null,null,null,null,null,null,null,null,null,null,null,null,"",""]
[null,null,null,null,null,null,null,null,null,null,null,null,null,null,null,null,null,null,null,null,null,null,null,"",""]
[null,null,null,null,null,null,null,null,null,null,null,null,null,null,null,null,null,null,null,null,null,null,null,"",""]
[null,null,null,null,null,null,null,null,null,null,null,null,null,null,null,null,null,null,null,null,null,null,null,"",""]
[null,null,null,null,null,null,null,null,null,null,null,null,null,null,null,null,null,null,null,null,null,null,null,"",""]
[null,null,null,null,null,null,null,null,null,null,null,null,null,null,null,null,null,null,null,null,null,null,null,"",""]
[null,null,null,null,null,null,null,null,null,null,null,null,null,null,null,null,null,null,null,null,null,null,null,"",""]
[null,"FEASIBILITY STUDIES",null,null,null,null,null,null,null,null,null,null,null,null,null,null,null,null,null,null,null,null,null,0,{"$error":"#DIV/0!"}]
[null,null,null,null,null,null,null,null,null,null,null,null,null,null,null,null,null,null,null,null,null,null,null,"",""]
[null,null,null,null,null,null,null,null,null,null,null,null,null,null,null,null,null,null,null,null,null,null,null,"",""]
[null,null,null,null,null,null,null,null,null,null,null,null,null,null,null,null,null,null,null,null,null,null,null,"",""]
[null,null,null,null,null,null,null,null,null,null,null,null,null,null,null,null,null,null,null,null,null,null,null,"",""]
[null,null,null,null,null,null,null,null,null,null,null,null,null,null,null,null,null,null,null,null,null,null,null,"",""]
[null,null,null,null,null,null,null,null,null,null,null,null,null,null,null,null,null,null,null,null,null,null,null,"",""]
[null,null,null,null,null,null,null,null,null,null,null,null,null,null,null,null,null,null,null,null,null,null,null,"",""]
[null,null,null,null,null,null,null,null,null,null,null,null,null,null,null,null,null,null,null,null,null,null,null,"",""]
[null,null,null,null,null,null,null,null,null,null,null,null,null,null,null,null,null,null,null,null,null,null,null,"",""]
[null,null,null,null,null,null,null,null,null,null,null,null,null,null,null,null,null,null,null,null,null,null,null,"",""]
[null,null,null,null,null,null,null,null,null,null,null,null,null,null,null,null,null,null,null,null,null,null,null,"",""]
[null,null,null,null,null,null,null,null,null,null,null,null,null,null,null,null,null,null,null,null,null,null,null,"",""]
[null,null,null,null,null,null,null,null,null,null,null,null,null,null,null,null,null,null,null,null,null,null,null,{"$f":"IF(B75=\"\",\"\",IF((SUM(D75:W75)=0),0,SUM(D75:W75)))","v":""},""]
[null,null,null,null,null,null,null,null,null,null,null,null,null,null,null,null,null,null,null,null,null,null,null,"",{"$f":"IF(X76=\"\",\"\",SUM((X76/$X$121)))","v":""}]
[null,null,null,null,null,null,null,null,null,null,null,null,null,null,null,null,null,null,null,null,null,null,null,"",""]
[null,null,null,null,null,null,null,null,null,null,null,null,null,null,null,null,null,null,null,null,null,null,null,"",""]
[null,null,null,null,null,null,null,null,null,null,null,null,null,null,null,null,null,null,null,null,null,null,null,"",""]
[null,null,null,null,null,null,null,null,null,null,null,null,null,null,null,null,null,null,null,null,null,null,null,"",""]
[null,null,null,null,null,null,null,null,null,null,null,null,null,null,null,null,null,null,null,null,null,null,null,"",""]
[null,null,null,null,null,null,null,null,null,null,null,null,null,null,null,null,null,null,null,null,null,null,null,"",""]
[null,"OTHER TASKS",null,null,null,null,null,null,null,null,null,null,null,null,null,null,null,null,null,null,null,null,null,0,{"$error":"#DIV/0!"}]
[null,null,null,null,null,null,null,null,null,null,null,null,null,null,null,null,null,null,null,null,null,null,null,"",""]
[null,null,null,null,null,null,null,null,null,null,null,null,null,null,null,null,null,null,null,null,null,null,null,"",""]
[null,null,null,null,null,null,null,null,null,null,null,null,null,null,null,null,null,null,null,null,null,null,null,"",""]
[null,null,null,null,null,null,null,null,null,null,null,null,null,null,null,null,null,null,null,null,null,null,null,"",""]
[null,null,null,null,null,null,null,null,null,null,null,null,null,null,null,null,null,null,null,null,null,null,null,"",""]
[null,null,null,null,null,null,null,null,null,null,null,null,null,null,null,null,null,null,null,null,null,null,null,"",""]
[null,null,null,null,null,null,null,null,null,null,null,null,null,null,null,null,null,null,null,null,null,null,null,"",""]
[null,null,null,null,null,null,null,null,null,null,null,null,null,null,null,null,null,null,null,null,null,null,null,"",""]
[null,null,null,null,null,null,null,null,null,null,null,null,null,null,null,null,null,null,null,null,null,null,null,"",""]
[null,null,null,null,null,null,null,null,null,null,null,null,null,null,null,null,null,null,null,null,null,null,null,"",""]
[null,null,null,null,null,null,null,null,null,null,null,null,null,null,null,null,null,null,null,null,null,null,null,"",""]
[null,null,null,null,null,null,null,null,null,null,null,null,null,null,null,null,null,null,null,null,null,null,null,"",""]
[null,null,null,null,null,null,null,null,null,null,null,null,null,null,null,null,null,null,null,null,null,null,null,"",""]
[null,null,null,null,null,null,null,null,null,null,null,null,null,null,null,null,null,null,null,null,null,null,null,"",""]
[null,null,null,null,null,null,null,null,null,null,null,null,null,null,null,null,null,null,null,null,null,null,null,"",""]
[null,null,null,null,null,null,null,null,null,null,null,null,null,null,null,null,null,null,null,null,null,null,null,"",""]
[null,null,null,null,null,null,null,null,null,null,null,null,null,null,null,null,null,null,null,null,null,null,null,"",""]
[null,null,null,null,null,null,null,null,null,null,null,null,null,null,null,null,null,null,null,null,null,null,null,"",""]
[null,null,null,null,null,null,null,null,null,null,null,null,null,null,null,null,null,null,null,null,null,null,null,"",""]
[null,null,null,null,null,null,null,null,null,null,null,null,null,null,null,null,null,null,null,null,null,null,null,"",""]
[null,null,null,null,null,null,null,null,null,null,null,null,null,null,null,null,null,null,null,null,null,null,null,"",""]
[null,null,null,null,null,null,null,null,null,null,null,null,null,null,null,null,null,null,null,null,null,null,null,"",""]
[null,null,null,null,null,null,null,null,null,null,null,null,null,null,null,null,null,null,null,null,null,null,null,"",""]
[null,null,null,null,null,null,null,null,null,null,null,null,null,null,null,null,null,null,null,null,null,null,null,"",""]
[null,null,null,null,null,null,null,null,null,null,null,null,null,null,null,null,null,null,null,null,null,null,null,"",""]
[null,null,null,null,null,null,null,null,null,null,null,null,null,null,null,null,null,null,null,null,null,null,null,"",""]
[null,null,null,null,null,null,null,null,null,null,null,null,null,null,null,null,null,null,null,null,null,null,null,"",""]
[null,null,null,null,null,null,null,null,null,null,null,null,null,null,null,null,null,null,null,null,null,null,null,"",""]
[null,null,null,null,null,null,null,null,null,null,null,null,null,null,null,null,null,null,null,null,null,null,null,"",""]
[null,null,null,null,null,null,null,null,null,null,null,null,null,null,null,null,null,null,null,null,null,null,null,"",""]
[null,null,null,null,null,null,null,null,null,null,null,null,null,null,null,null,null,null,null,null,null,null,null,"",""]
[null,null,null,null,null,null,null,null,null,null,null,null,null,null,null,null,null,null,null,null,null,null,null,"",""]
[null,null,null,null,null,null,null,null,null,null,null,null,null,null,null,null,null,null,null,null,null,null,null,"",""]
[null,null,null,null,null,null,null,null,null,null,null,null,null,null,null,null,null,null,null,null,null,null,null,"",""]
[null,null,null,null,null,null,null,null,null,null,null,null,null,null,null,null,null,null,null,null,null,null,null,"",""]
[null,null,null,null,null,null,null,null,null,null,null,null,null,null,null,null,null,null,null,null,null,null,null,"",""]
[null,null,null,null,null,null,null,null,null,null,null,null,null,null,null,null,null,null,null,null,null,null,null,"",""]
[null,"TOTAL WORKHOURS/CATEGORY:",null,{"$f":"SUM(D11:D120)","v":0},0,0,0,0,0,0,0,0,0,0,0,0,0,0,0,0,0,0,0,{"$f":"SUM(X11:X120)","v":0},{"$f":"SUM(Y11:Y120)","v":{"$error":"#DIV/0!"}},{"$f":"SUM(Z12:Z120)","v":0}]
[null,"TOTAL WORKDAYS/CATEGORY:",null,{"$f":"D121/8","v":0},{"$f":"E121/8","v":0},0,0,0,0,0,0,0,0,0,0,0,0,0,0,0,0,0,0]
[null,"HOURLY SALARY RATE:",null,{"$f":"'PEF CLASSIFICATION SHEET'!E947","v":0},{"$f":"'PEF CLASSIFICATION SHEET'!E948","v":0},{"$f":"'PEF CLASSIFICATION SHEET'!E949","v":0},{"$f":"'PEF CLASSIFICATION SHEET'!E950","v":0},{"$f":"'PEF CLASSIFICATION SHEET'!E951","v":0},{"$f":"'PEF CLASSIFICATION SHEET'!E952","v":0},{"$f":"'PEF CLASSIFICATION SHEET'!E953","v":0},{"$f":"'PEF CLASSIFICATION SHEET'!E954","v":0},{"$f":"'PEF CLASSIFICATION SHEET'!E955","v":0},{"$f":"'PEF CLASSIFICATION SHEET'!E956","v":0},{"$f":"'PEF CLASSIFICATION SHEET'!E957","v":0},{"$f":"'PEF CLASSIFICATION SHEET'!E958","v":0},{"$f":"'PEF CLASSIFICATION SHEET'!E959","v":0},{"$f":"'PEF CLASSIFICATION SHEET'!E960","v":0},{"$f":"'PEF CLASSIFICATION SHEET'!E961","v":0},{"$f":"'PEF CLASSIFICATION SHEET'!E962","v":0},{"$f":"'PEF CLASSIFICATION SHEET'!E963","v":0},{"$f":"'PEF CLASSIFICATION SHEET'!E964","v":0},{"$f":"'PEF CLASSIFICATION SHEET'!E965","v":0},{"$f":"'PEF CLASSIFICATION SHEET'!E966","v":0}]
[null,"RATES PER DAY:",null,{"$f":"D123*8","v":0},0,0,0,0,0,0,0,0,0,0,0,0,0,0,0,0,0,0,0]
[null,"PAYROLL BURDEN:",null,{"$f":"SUM(D121*D123)","v":0},{"$f":"SUM(E121*E123)","v":0},0,0,0,0,0,0,0,0,0,0,0,0,0,0,0,0,0,0]
[null,"TOTAL WORKDAYS:",null,{"$f":"SUM(D122:W122)","v":0}]
[null,"TOTAL PAYROLL BURDEN:",null,{"$f":"SUM(D125:W125)","v":0}]
[null,"AVERAGE COST PER HOUR:",null,{"$f":"SUM(D127/(D126*8))","v":{"$error":"#DIV/0!"}}]
[null,"GENERAL OVERHEAD:",{"$f":"BIKEANDPED.SUB3_CONSULTANT_OVERHEAD","v":0},{"$f":"SUM(D127*C129)","v":0}]
[null,"SUBTOTAL:",null,{"$f":"SUM(D127+D129)","v":0}]
[null,"COMPARATIVE FEE:",{"$f":"BIKEANDPED.SUB3_CONSULTANT_FEE","v":0.09},{"$f":"SUM(D130*C131)","v":0}]
[null,"FACILITIES COST OF CAPITAL:",{"$f":"BIKEANDPED.SUB3_CONSULTANT_COSTofCAPITAL","v":0},{"$f":"SUM(D127*C132)","v":0}]
[null,"TOTAL:",null,{"$f":"SUM(D130:D132)","v":0}]
[null,"DIRECT EXPENSES:",null,{"$f":"BIKEANDPED.SUB3_DIRECT_NONSALARY_TOTAL","v":0}]
[null,"BICYCLE AND PEDESTRIAN GRAND TOTAL:",null,{"$f":"SUM(D133:D134)","v":0}]

{"sheet":"IM-BikePed-Exp-Sub3","index":112,"n_rows":46,"n_cols":8,"rows_kept":46,"cut":false,"hidden":true,"merged":[[0,0,0,7],[1,3,1,7]]}
["BICYCLE AND PEDESTRIAN--DIRECT EXPENSES - SUBCONSULTANT 3"]
["TIP NUMBER",{"$f":"TIP.NUMBER","v":0},"FIRM:",{"$f":"'IM-BikePed-Sub3'!G3","v":"CONSULTANT NAME"}]
[]
["GENERAL PROJECT WORK:","ITEM","QTY","DESCRIPTION",null,null,"UNIT COST "]
[null,"Travel:"]
[null,"Sedan",0,"Trip(s) @",0,"miles @",{"$f":"SEDAN","v":0.7},{"$f":"SUM(C6*E6*G6)","v":0}]
[null,"Carry All",0,"Trip(s) @",0,"miles @",{"$f":"CARRYALL","v":0.72},{"$f":"SUM(C7*E7*G7)","v":0}]
[null,"Car Rental",null,null,0,"days @ ",{"$f":"CARRENTAL","v":50},{"$f":"SUM(E8*G8)","v":0}]
[null,"Gas for Rental",null,null,0,"miles @",{"$f":"GASforRENTAL","v":0.2},{"$f":"SUM(E9*G9)","v":0}]
[null,"Parking:",0,"Trip(s) @",null,null,{"$f":"PARKING","v":3},{"$f":"SUM(C10*G10)","v":0}]
[null,"Per Diem:",0,"Breakfast",null,null,{"$f":"BREAKFAST","v":10.1},{"$f":"SUM(C11*G11)","v":0}]
[null,null,0,"Lunch",null,null,{"$f":"LUNCH","v":13.3},0]
[null,null,0,"Dinner",null,null,{"$f":"DINNER","v":23.1},0]
[null,null,0,"Lodging",null,null,{"$f":"LODGING_LUMP.SUM","v":95},0]
[null,"Reproduction:",0,"8 1/2 x 11 B & W Copies @",null,null,{"$f":"LETTERCOPIES","v":0.14000000000000001},0]
[null,null,0,"11 x 17 B & W Copies @",null,null,{"$f":"LEDGERCOPIES","v":0.34},0]
[null,null,0,"8 1/2 x 11 Color Copies @",null,null,{"$f":"LETTERCOLOR","v":0.83},0]
[null,null,0,"11 x 17 Color Copies @",null,null,{"$f":"LEDGERCOLOR","v":1.66},0]
[null,null,0,"SQ. FT. of Plots (B & W or Color)",null,"<65 SQ. FT.*",{"$f":"ROLLPLOTSshort","v":6.5},0]
[null,null,0,"SQ. FT. of Plots (B & W or Color)",null,">65 SQ. FT.*",{"$f":"ROLLPLOTSlong","v":1.5},0]
[null,null,0,"Cover(s) @",null,null,{"$f":"COVERS","v":0.5},0]
[null,null,0,"Binder(s) @",null,null,{"$f":"BINDERS","v":0.5},0]
[null,null,0,"Blueprints - 8 1/2 x 11 @",null,null,{"$f":"BLUEPRINTSLETTER","v":0.35},0]
[null,null,0,"Blueprints - 42 x 72 @",null,null,{"$f":"BLUEPRINTSLARGE","v":1.3},0]
[null,"Film and Developing:",0,"Roll(s) @",null,null,{"$f":"FILM","v":20},0]
[null,null,null,null,null,"Subtotal",null,{"$f":"SUM(H6:H25)","v":0}]
["MAPS AND DOCUMENTS:","ITEM","QTY","DESCRIPTION",null,null,"UNIT COST "]
[null,"County Tax Maps:",0,"Map(s) @",null,null,{"$f":"County_Tax_Maps","v":7},{"$f":"SUM(C28*G28)","v":0}]
[null,"USGS Maps:",0,"Map(s) @",null,null,{"$f":"USGSMAPS","v":7},{"$f":"SUM(C29*G29)","v":0}]
[null,null,null,null,null,"Subtotal",null,{"$f":"SUM(H28:H29)","v":0}]
["Miscellaneous Other","ITEM","QTY","DESCRIPTION",null,null,"UNIT COST "]
[null,null,null,null,null,null,null,{"$f":"SUM(C32*G32)","v":0}]
[null,null,null,null,null,null,null,{"$f":"SUM(C33*G33)","v":0}]
[null,null,null,null,null,null,null,0]
[null,null,null,null,null,null,null,0]
[null,null,null,null,null,null,null,0]
[null,null,null,null,null,null,null,0]
[null,null,null,null,null,null,null,0]
[null,null,null,null,null,null,null,{"$f":"SUM(C39*G39)","v":0}]
[null,null,null,null,null,null,null,{"$f":"SUM(C40*G40)","v":0}]
[null,null,null,null,null,null,null,{"$f":"SUM(C41*G41)","v":0}]
[null,null,null,null,null,"Subtotal",null,{"$f":"SUM(H32:H41)","v":0}]
[]
[null,null,null,null,null,"TOTAL",null,{"$f":"SUM(H26+H30+H42)","v":0}]
[]
[null,"* Sum of all plots "]

{"sheet":"IM-BikePed-Sub4","index":113,"n_rows":135,"n_cols":27,"rows_kept":135,"cut":false,"hidden":true,"merged":[[0,0,1,13],[2,1,2,4],[2,6,2,7],[2,10,2,11],[2,15,2,16],[3,1,3,4],[3,6,3,7],[3,10,3,11],[3,15,3,16],[6,12,9,12],[6,13,9,13],[6,14,9,14],[6,15,9,15],[6,16,9,16],[6,17,9,17],[4,3,4,22],[6,3,9,3],[6,4,9,4],[6,5,9,5],[6,6,9,6],[6,7,9,7],[6,8,9,8],[6,9,9,9],[6,10,9,10],[6,11,9,11],[10,26,10,27],[11,26,11,27],[12,26,12,27],[13,26,13,27],[14,26,14,27],[15,26,15,27],[6,18,9,18],[6,19,9,19],[6,20,9,20],[6,21,9,21],[6,22,9,22],[8,26,8,27],[22,26,22,27],[23,26,23,27],[24,26,24,27],[25,26,25,27],[26,26,26,27],[27,26,27,27],[16,26,16,27],[17,26,17,27],[18,26,18,27],[19,26,19,27],[20,26,20,27],[21,26,21,27],[34,26,34,27],[35,26,35,27],[36,26,36,27],[37,26,37,27],[38,26,38,27],[39,26,39,27],[28,26,28,27],[29,26,29,27],[30,26,30,27],[31,26,31,27],[32,26,32,27],[33,26,33,27],[46,26,46,27],[47,26,47,27],[48,26,48,27],[49,26,49,27],[50,26,50,27],[51,26,51,27],[40,26,40,27],[41,26,41,27],[42,26,42,27],[43,26,43,27],[44,26,44,27],[45,26,45,27],[58,26,58,27],[59,26,59,27],[60,26,60,27],[61,26,61,27],[62,26,62,27],[63,26,63,27],[52,26,52,27],[53,26,53,27],[54,26,54,27],[55,26,55,27],[56,26,56,27],[57,26,57,27],[70,26,70,27],[71,26,71,27],[72,26,72,27],[73,26,73,27],[74,26,74,27],[75,26,75,27],[64,26,64,27],[65,26,65,27],[66,26,66,27],[67,26,67,27],[68,26,68,27],[69,26,69,27],[82,26,82,27],[83,26,83,27],[84,26,84,27],[85,26,85,27],[86,26,86,27],[87,26,87,27],[76,26,76,27],[77,26,77,27],[78,26,78,27],[79,26,79,27],[80,26,80,27],[81,26,81,27],[94,26,94,27],[95,26,95,27],[96,26,96,27],[97,26,97,27],[98,26,98,27],[99,26,99,27],[88,26,88,27],[89,26,89,27],[90,26,90,27],[91,26,91,27],[92,26,92,27],[93,26,93,27],[106,26,106,27],[107,26,107,27],[108,26,108,27],[109,26,109,27],[110,26,110,27],[111,26,111,27],[100,26,100,27],[101,26,101,27],[102,26,102,27],[103,26,103,27],[104,26,104,27],[105,26,105,27],[118,26,118,27],[119,26,119,27],[134,1,135,1],[134,3,135,4],[138,3,138,6],[138,8,138,13],[112,26,112,27],[113,26,113,27],[114,26,114,27],[115,26,115,27],[116,26,116,27],[117,26,117,27],[145,8,145,9],[145,10,145,11],[139,8,139,9],[139,10,139,11],[140,8,140,9],[140,10,140,11],[143,8,143,13],[144,8,144,9],[144,10,144,11]]}
["BICYCLE AND PEDESTRIAN--BREAKDOWN WORKSHEET - SUBCONSULTANT 4 -- ENTER WORKHOURS"]
[]
["PROJECT DESCRIPTION: ",{"$f":"PROJECT.DESCRIPTION","v":0},null,null,null,"FIRM:  ",{"$f":"BIKEANDPED.SUB4_CONSULTANT_NAME","v":"CONSULTANT NAME"},null,"TASK ORDER NUMBER:",null,{"$f":"TASK.ORDER.NUMBER","v":0},null,"DATE PREPARED:",{"$f":"IF(SCOPE.MANDAY.ESTIMATE.PREPARED.BY.DATE=\"\",\"\",SCOPE.MANDAY.ESTIMATE.PREPARED.BY.DATE)","v":""}]
["PREPARED BY:  ",{"$f":"IF(SCOPE.MANDAY.ESTIMATE.PREPARED.BY=\"\",\"\",SCOPE.MANDAY.ESTIMATE.PREPARED.BY)","v":""},null,null,null,"TIP NUMBER:",{"$f":"TIP.NUMBER","v":0},null,"WBS NUMBER:",null,{"$f":"WBS.NUMBER","v":""},null,"REVISION DATE:",{"$f":"IF(SCOPE.MANDAY.ESTIMATE.APPROVED.BY.DATE=\"\",\"\",SCOPE.MANDAY.ESTIMATE.APPROVED.BY.DATE)","v":""}]
[null,null,null,"ESTIMATED WORKHOURS"]
[null,null,"EMPLOYEE NAMES",{"$f":"IF('PEF CLASSIFICATION SHEET'!D969=\"\",\"\",LEFT('PEF CLASSIFICATION SHEET'!D969,4))","v":""},{"$f":"IF('PEF CLASSIFICATION SHEET'!D970=\"\",\"\",LEFT('PEF CLASSIFICATION SHEET'!D970,4))","v":""},{"$f":"IF('PEF CLASSIFICATION SHEET'!D971=\"\",\"\",LEFT('PEF CLASSIFICATION SHEET'!D971,4))","v":""},{"$f":"IF('PEF CLASSIFICATION SHEET'!D972=\"\",\"\",LEFT('PEF CLASSIFICATION SHEET'!D972,4))","v":""},{"$f":"IF('PEF CLASSIFICATION SHEET'!D973=\"\",\"\",LEFT('PEF CLASSIFICATION SHEET'!D973,4))","v":""},{"$f":"IF('PEF CLASSIFICATION SHEET'!D974=\"\",\"\",LEFT('PEF CLASSIFICATION SHEET'!D974,4))","v":""},{"$f":"IF('PEF CLASSIFICATION SHEET'!D975=\"\",\"\",LEFT('PEF CLASSIFICATION SHEET'!D975,4))","v":""},{"$f":"IF('PEF CLASSIFICATION SHEET'!D976=\"\",\"\",LEFT('PEF CLASSIFICATION SHEET'!D976,4))","v":""},{"$f":"IF('PEF CLASSIFICATION SHEET'!D977=\"\",\"\",LEFT('PEF CLASSIFICATION SHEET'!D977,4))","v":""},{"$f":"IF('PEF CLASSIFICATION SHEET'!D978=\"\",\"\",LEFT('PEF CLASSIFICATION SHEET'!D978,4))","v":""},{"$f":"IF('PEF CLASSIFICATION SHEET'!D979=\"\",\"\",LEFT('PEF CLASSIFICATION SHEET'!D979,4))","v":""},{"$f":"IF('PEF CLASSIFICATION SHEET'!D980=\"\",\"\",LEFT('PEF CLASSIFICATION SHEET'!D980,4))","v":""},{"$f":"IF('PEF CLASSIFICATION SHEET'!D981=\"\",\"\",LEFT('PEF CLASSIFICATION SHEET'!D981,4))","v":""},{"$f":"IF('PEF CLASSIFICATION SHEET'!D982=\"\",\"\",LEFT('PEF CLASSIFICATION SHEET'!D982,4))","v":""},{"$f":"IF('PEF CLASSIFICATION SHEET'!D983=\"\",\"\",LEFT('PEF CLASSIFICATION SHEET'!D983,4))","v":""},{"$f":"IF('PEF CLASSIFICATION SHEET'!D984=\"\",\"\",LEFT('PEF CLASSIFICATION SHEET'!D984,4))","v":""},{"$f":"IF('PEF CLASSIFICATION SHEET'!D985=\"\",\"\",LEFT('PEF CLASSIFICATION SHEET'!D985,4))","v":""},{"$f":"IF('PEF CLASSIFICATION SHEET'!D986=\"\",\"\",LEFT('PEF CLASSIFICATION SHEET'!D986,4))","v":""},{"$f":"IF('PEF CLASSIFICATION SHEET'!D987=\"\",\"\",LEFT('PEF CLASSIFICATION SHEET'!D987,4))","v":""},{"$f":"IF('PEF CLASSIFICATION SHEET'!D988=\"\",\"\",LEFT('PEF CLASSIFICATION SHEET'!D988,4))","v":""}]
[null,null,null,{"$f":"IF('PEF CLASSIFICATION SHEET'!C969=\"\",\"\",'PEF CLASSIFICATION SHEET'!C969)","v":""},{"$f":"IF('PEF CLASSIFICATION SHEET'!C970=\"\",\"\",'PEF CLASSIFICATION SHEET'!C970)","v":""},{"$f":"IF('PEF CLASSIFICATION SHEET'!C971=\"\",\"\",'PEF CLASSIFICATION SHEET'!C971)","v":""},{"$f":"IF('PEF CLASSIFICATION SHEET'!C972=\"\",\"\",'PEF CLASSIFICATION SHEET'!C972)","v":""},{"$f":"IF('PEF CLASSIFICATION SHEET'!C973=\"\",\"\",'PEF CLASSIFICATION SHEET'!C973)","v":""},{"$f":"IF('PEF CLASSIFICATION SHEET'!C974=\"\",\"\",'PEF CLASSIFICATION SHEET'!C974)","v":""},{"$f":"IF('PEF CLASSIFICATION SHEET'!C975=\"\",\"\",'PEF CLASSIFICATION SHEET'!C975)","v":""},{"$f":"IF('PEF CLASSIFICATION SHEET'!C976=\"\",\"\",'PEF CLASSIFICATION SHEET'!C976)","v":""},{"$f":"IF('PEF CLASSIFICATION SHEET'!C977=\"\",\"\",'PEF CLASSIFICATION SHEET'!C977)","v":""},{"$f":"IF('PEF CLASSIFICATION SHEET'!C978=\"\",\"\",'PEF CLASSIFICATION SHEET'!C978)","v":""},{"$f":"IF('PEF CLASSIFICATION SHEET'!C979=\"\",\"\",'PEF CLASSIFICATION SHEET'!C979)","v":""},{"$f":"IF('PEF CLASSIFICATION SHEET'!C980=\"\",\"\",'PEF CLASSIFICATION SHEET'!C980)","v":""},{"$f":"IF('PEF CLASSIFICATION SHEET'!C981=\"\",\"\",'PEF CLASSIFICATION SHEET'!C981)","v":""},{"$f":"IF('PEF CLASSIFICATION SHEET'!C982=\"\",\"\",'PEF CLASSIFICATION SHEET'!C982)","v":""},{"$f":"IF('PEF CLASSIFICATION SHEET'!C983=\"\",\"\",'PEF CLASSIFICATION SHEET'!C983)","v":""},{"$f":"IF('PEF CLASSIFICATION SHEET'!C984=\"\",\"\",'PEF CLASSIFICATION SHEET'!C984)","v":""},{"$f":"IF('PEF CLASSIFICATION SHEET'!C985=\"\",\"\",'PEF CLASSIFICATION SHEET'!C985)","v":""},{"$f":"IF('PEF CLASSIFICATION SHEET'!C986=\"\",\"\",'PEF CLASSIFICATION SHEET'!C986)","v":""},{"$f":"IF('PEF CLASSIFICATION SHEET'!C987=\"\",\"\",'PEF CLASSIFICATION SHEET'!C987)","v":""},{"$f":"IF('PEF CLASSIFICATION SHEET'!C988=\"\",\"\",'PEF CLASSIFICATION SHEET'!C988)","v":""},"SUB-","%","PEF"]
[null,null,null,null,null,null,null,null,null,null,null,null,null,null,null,null,null,null,null,null,null,null,null,"TOTAL","OF","ESTIMATE"]
["TASK","TASK DESCRIPTION","CLASSIFICATION",null,null,null,null,null,null,null,null,null,null,null,null,null,null,null,null,null,null,null,null,null,"PROJECT",null,"COMMENTS"]
["NO."]
[null,"Current Conditions Evaluation",null,null,null,null,null,null,null,null,null,null,null,null,null,null,null,null,null,null,null,null,null,{"$f":"IF(B11=\"\",0,IF((SUM(D12:W19)=0),SUM(D11:W11),\"\"))","v":0},{"$f":"IF(X11=\"\",\"\",SUM((X11/$X$121)))","v":{"$error":"#DIV/0!"}}]
[null,"Data Collection",null,null,null,null,null,null,null,null,null,null,null,null,null,null,null,null,null,null,null,null,null,{"$f":"IF(B12=\"\",0,IF((SUM(D12:W12)=0),0,SUM(D12:W12)))","v":0},{"$f":"IF(X12=\"\",\"\",SUM((X12/$X$121)))","v":{"$error":"#DIV/0!"}}]
[null,"Existing Conditions Inventory & Assessment",null,null,null,null,null,null,null,null,null,null,null,null,null,null,null,null,null,null,null,null,null,{"$f":"IF(B13=\"\",0,IF((SUM(D13:W13)=0),0,SUM(D13:W13)))","v":0},{"$error":"#DIV/0!"}]
[null,"Existing Plans Review",null,null,null,null,null,null,null,null,null,null,null,null,null,null,null,null,null,null,null,null,null,0,{"$error":"#DIV/0!"}]
[null,"Existing Plans, Programs, Policies Review",null,null,null,null,null,null,null,null,null,null,null,null,null,null,null,null,null,null,null,null,null,0,{"$error":"#DIV/0!"}]
[null,"Existing Policies Review",null,null,null,null,null,null,null,null,null,null,null,null,null,null,null,null,null,null,null,null,null,0,{"$error":"#DIV/0!"}]
[null,"Existing Programs Review",null,null,null,null,null,null,null,null,null,null,null,null,null,null,null,null,null,null,null,null,null,0,{"$error":"#DIV/0!"}]
[null,null,null,null,null,null,null,null,null,null,null,null,null,null,null,null,null,null,null,null,null,null,null,0,{"$error":"#DIV/0!"}]
[null,null,null,null,null,null,null,null,null,null,null,null,null,null,null,null,null,null,null,null,null,null,null,0,{"$error":"#DIV/0!"}]
[null,"Implementation",null,null,null,null,null,null,null,null,null,null,null,null,null,null,null,null,null,null,null,null,null,{"$f":"IF(B20=\"\",0,IF((SUM(D21:W24)=0),SUM(D20:W20),\"\"))","v":0},{"$error":"#DIV/0!"}]
[null,"Funding Strategies",null,null,null,null,null,null,null,null,null,null,null,null,null,null,null,null,null,null,null,null,null,{"$f":"IF(B21=\"\",0,IF((SUM(D21:W21)=0),0,SUM(D21:W21)))","v":0},{"$error":"#DIV/0!"}]
[null,"Implementation Plan",null,null,null,null,null,null,null,null,null,null,null,null,null,null,null,null,null,null,null,null,null,{"$f":"IF(B22=\"\",0,IF((SUM(D22:W22)=0),0,SUM(D22:W22)))","v":0},{"$error":"#DIV/0!"}]
[null,null,null,null,null,null,null,null,null,null,null,null,null,null,null,null,null,null,null,null,null,null,null,0,{"$error":"#DIV/0!"}]
[null,null,null,null,null,null,null,null,null,null,null,null,null,null,null,null,null,null,null,null,null,null,null,0,{"$error":"#DIV/0!"}]
[null,"Plan Development",null,null,null,null,null,null,null,null,null,null,null,null,null,null,null,null,null,null,null,null,null,{"$f":"IF(B25=\"\",0,IF((SUM(D26:W30)=0),SUM(D25:W25),\"\"))","v":0},{"$error":"#DIV/0!"}]
[null,"Draft Plan Preparation",null,null,null,null,null,null,null,null,null,null,null,null,null,null,null,null,null,null,null,null,null,{"$f":"IF(B26=\"\",0,IF((SUM(D26:W26)=0),0,SUM(D26:W26)))","v":0},{"$error":"#DIV/0!"}]
[null,"Final Plan Presentation",null,null,null,null,null,null,null,null,null,null,null,null,null,null,null,null,null,null,null,null,null,0,{"$error":"#DIV/0!"}]
[null,"Final Plan Revisions",null,null,null,null,null,null,null,null,null,null,null,null,null,null,null,null,null,null,null,null,null,0,{"$error":"#DIV/0!"}]
[null,null,null,null,null,null,null,null,null,null,null,null,null,null,null,null,null,null,null,null,null,null,null,0,{"$error":"#DIV/0!"}]
[null,null,null,null,null,null,null,null,null,null,null,null,null,null,null,null,null,null,null,null,null,null,null,0,{"$error":"#DIV/0!"}]
[null,"Project Management",null,null,null,null,null,null,null,null,null,null,null,null,null,null,null,null,null,null,null,null,null,{"$f":"IF(B31=\"\",0,IF((SUM(D32:W35)=0),SUM(D31:W31),\"\"))","v":0},{"$error":"#DIV/0!"}]
[null,"Project Administration",null,null,null,null,null,null,null,null,null,null,null,null,null,null,null,null,null,null,null,null,null,{"$f":"IF(B32=\"\",0,IF((SUM(D32:W32)=0),0,SUM(D32:W32)))","v":0},{"$error":"#DIV/0!"}]
[null,"Project Kickoff Meeting",null,null,null,null,null,null,null,null,null,null,null,null,null,null,null,null,null,null,null,null,null,0,{"$error":"#DIV/0!"}]
[null,null,null,null,null,null,null,null,null,null,null,null,null,null,null,null,null,null,null,null,null,null,null,0,{"$error":"#DIV/0!"}]
[null,null,null,null,null,null,null,null,null,null,null,null,null,null,null,null,null,null,null,null,null,null,null,0,{"$error":"#DIV/0!"}]
[null,"Public & Stakeholder Involvement",null,null,null,null,null,null,null,null,null,null,null,null,null,null,null,null,null,null,null,null,null,{"$f":"IF(B36=\"\",0,IF((SUM(D37:W42)=0),SUM(D36:W36),\"\"))","v":0},{"$error":"#DIV/0!"}]
[null,"Public Involvement",null,null,null,null,null,null,null,null,null,null,null,null,null,null,null,null,null,null,null,null,null,{"$f":"IF(B37=\"\",0,IF((SUM(D37:W37)=0),0,SUM(D37:W37)))","v":0},{"$error":"#DIV/0!"}]
[null,"Public Workshop #XX",null,null,null,null,null,null,null,null,null,null,null,null,null,null,null,null,null,null,null,null,null,0,{"$error":"#DIV/0!"}]
[null,"Stakeholder Involvement  ",null,null,null,null,null,null,null,null,null,null,null,null,null,null,null,null,null,null,null,null,null,0,{"$error":"#DIV/0!"}]
[null,"Steering Committee Meeting #XX",null,null,null,null,null,null,null,null,null,null,null,null,null,null,null,null,null,null,null,null,null,0,{"$error":"#DIV/0!"}]
[null,null,null,null,null,null,null,null,null,null,null,null,null,null,null,null,null,null,null,null,null,null,null,0,{"$error":"#DIV/0!"}]
[null,null,null,null,null,null,null,null,null,null,null,null,null,null,null,null,null,null,null,null,null,null,null,0,{"$error":"#DIV/0!"}]
[null,"Recommendations",null,null,null,null,null,null,null,null,null,null,null,null,null,null,null,null,null,null,null,null,null,{"$f":"IF(B43=\"\",0,IF((SUM(D44:W50)=0),SUM(D43:W43),\"\"))","v":0},{"$error":"#DIV/0!"}]
[null,"Cost Estimates",null,null,null,null,null,null,null,null,null,null,null,null,null,null,null,null,null,null,null,null,null,{"$f":"IF(B44=\"\",0,IF((SUM(D44:W44)=0),0,SUM(D44:W44)))","v":0},{"$error":"#DIV/0!"}]
[null,"Other Recommendations",null,null,null,null,null,null,null,null,null,null,null,null,null,null,null,null,null,null,null,null,null,0,{"$error":"#DIV/0!"}]
[null,"Policy Recommendations",null,null,null,null,null,null,null,null,null,null,null,null,null,null,null,null,null,null,null,null,null,0,{"$error":"#DIV/0!"}]
[null,"Program Recommendations",null,null,null,null,null,null,null,null,null,null,null,null,null,null,null,null,null,null,null,null,null,0,{"$error":"#DIV/0!"}]
[null,"Project Recommendations",null,null,null,null,null,null,null,null,null,null,null,null,null,null,null,null,null,null,null,null,null,0,{"$error":"#DIV/0!"}]
[null,null,null,null,null,null,null,null,null,null,null,null,null,null,null,null,null,null,null,null,null,null,null,0,{"$error":"#DIV/0!"}]
[null,null,null,null,null,null,null,null,null,null,null,null,null,null,null,null,null,null,null,null,null,null,null,0,{"$error":"#DIV/0!"}]
[null,"MISCELLANEOUS ITEMS",null,null,null,null,null,null,null,null,null,null,null,null,null,null,null,null,null,null,null,null,null,{"$f":"IF(B51=\"\",0,IF((SUM(D52:W61)=0),SUM(D51:W51),\"\"))","v":0},{"$error":"#DIV/0!"}]
[null,null,null,null,null,null,null,null,null,null,null,null,null,null,null,null,null,null,null,null,null,null,null,{"$f":"IF(B52=\"\",0,IF((SUM(D52:W52)=0),0,SUM(D52:W52)))","v":0},{"$error":"#DIV/0!"}]
[null,null,null,null,null,null,null,null,null,null,null,null,null,null,null,null,null,null,null,null,null,null,null,0,{"$error":"#DIV/0!"}]
[null,null,null,null,null,null,null,null,null,null,null,null,null,null,null,null,null,null,null,null,null,null,null,0,{"$error":"#DIV/0!"}]
[null,null,null,null,null,null,null,null,null,null,null,null,null,null,null,null,null,null,null,null,null,null,null,0,{"$error":"#DIV/0!"}]
[null,null,null,null,null,null,null,null,null,null,null,null,null,null,null,null,null,null,null,null,null,null,null,0,{"$error":"#DIV/0!"}]
[null,null,null,null,null,null,null,null,null,null,null,null,null,null,null,null,null,null,null,null,null,null,null,0,{"$error":"#DIV/0!"}]
[null,null,null,null,null,null,null,null,null,null,null,null,null,null,null,null,null,null,null,null,null,null,null,0,{"$error":"#DIV/0!"}]
[null,null,null,null,null,null,null,null,null,null,null,null,null,null,null,null,null,null,null,null,null,null,null,0,{"$error":"#DIV/0!"}]
[null,null,null,null,null,null,null,null,null,null,null,null,null,null,null,null,null,null,null,null,null,null,null,0,{"$error":"#DIV/0!"}]
[null,null,null,null,null,null,null,null,null,null,null,null,null,null,null,null,null,null,null,null,null,null,null,0,{"$error":"#DIV/0!"}]
[null,"FEASIBILITY STUDIES",null,null,null,null,null,null,null,null,null,null,null,null,null,null,null,null,null,null,null,null,null,{"$f":"IF(B62=\"\",0,IF((SUM(D63:W82)=0),SUM(D62:W62),\"\"))","v":0},{"$error":"#DIV/0!"}]
[null,null,null,null,null,null,null,null,null,null,null,null,null,null,null,null,null,null,null,null,null,null,null,{"$f":"IF(B63=\"\",0,IF((SUM(D63:W63)=0),0,SUM(D63:W63)))","v":0},{"$error":"#DIV/0!"}]
[null,null,null,null,null,null,null,null,null,null,null,null,null,null,null,null,null,null,null,null,null,null,null,0,{"$error":"#DIV/0!"}]
[null,null,null,null,null,null,null,null,null,null,null,null,null,null,null,null,null,null,null,null,null,null,null,0,{"$error":"#DIV/0!"}]
[null,null,null,null,null,null,null,null,null,null,null,null,null,null,null,null,null,null,null,null,null,null,null,0,{"$error":"#DIV/0!"}]
[null,null,null,null,null,null,null,null,null,null,null,null,null,null,null,null,null,null,null,null,null,null,null,0,{"$error":"#DIV/0!"}]
[null,null,null,null,null,null,null,null,null,null,null,null,null,null,null,null,null,null,null,null,null,null,null,0,{"$error":"#DIV/0!"}]
[null,null,null,null,null,null,null,null,null,null,null,null,null,null,null,null,null,null,null,null,null,null,null,0,{"$error":"#DIV/0!"}]
[null,null,null,null,null,null,null,null,null,null,null,null,null,null,null,null,null,null,null,null,null,null,null,0,{"$error":"#DIV/0!"}]
[null,null,null,null,null,null,null,null,null,null,null,null,null,null,null,null,null,null,null,null,null,null,null,0,{"$error":"#DIV/0!"}]
[null,null,null,null,null,null,null,null,null,null,null,null,null,null,null,null,null,null,null,null,null,null,null,0,{"$error":"#DIV/0!"}]
[null,null,null,null,null,null,null,null,null,null,null,null,null,null,null,null,null,null,null,null,null,null,null,0,{"$error":"#DIV/0!"}]
[null,null,null,null,null,null,null,null,null,null,null,null,null,null,null,null,null,null,null,null,null,null,null,0,{"$error":"#DIV/0!"}]
[null,null,null,null,null,null,null,null,null,null,null,null,null,null,null,null,null,null,null,null,null,null,null,0,{"$error":"#DIV/0!"}]
[null,null,null,null,null,null,null,null,null,null,null,null,null,null,null,null,null,null,null,null,null,null,null,0,{"$f":"IF(X76=\"\",\"\",SUM((X76/$X$121)))","v":{"$error":"#DIV/0!"}}]
[null,null,null,null,null,null,null,null,null,null,null,null,null,null,null,null,null,null,null,null,null,null,null,0,{"$error":"#DIV/0!"}]
[null,null,null,null,null,null,null,null,null,null,null,null,null,null,null,null,null,null,null,null,null,null,null,0,{"$error":"#DIV/0!"}]
[null,null,null,null,null,null,null,null,null,null,null,null,null,null,null,null,null,null,null,null,null,null,null,0,{"$error":"#DIV/0!"}]
[null,null,null,null,null,null,null,null,null,null,null,null,null,null,null,null,null,null,null,null,null,null,null,0,{"$error":"#DIV/0!"}]
[null,null,null,null,null,null,null,null,null,null,null,null,null,null,null,null,null,null,null,null,null,null,null,0,{"$error":"#DIV/0!"}]
[null,null,null,null,null,null,null,null,null,null,null,null,null,null,null,null,null,null,null,null,null,null,null,0,{"$error":"#DIV/0!"}]
[null,"OTHER TASKS",null,null,null,null,null,null,null,null,null,null,null,null,null,null,null,null,null,null,null,null,null,0,{"$error":"#DIV/0!"}]
[null,null,null,null,null,null,null,null,null,null,null,null,null,null,null,null,null,null,null,null,null,null,null,0,{"$error":"#DIV/0!"}]
[null,null,null,null,null,null,null,null,null,null,null,null,null,null,null,null,null,null,null,null,null,null,null,0,{"$error":"#DIV/0!"}]
[null,null,null,null,null,null,null,null,null,null,null,null,null,null,null,null,null,null,null,null,null,null,null,0,{"$error":"#DIV/0!"}]
[null,null,null,null,null,null,null,null,null,null,null,null,null,null,null,null,null,null,null,null,null,null,null,0,{"$error":"#DIV/0!"}]
[null,null,null,null,null,null,null,null,null,null,null,null,null,null,null,null,null,null,null,null,null,null,null,0,{"$error":"#DIV/0!"}]
[null,null,null,null,null,null,null,null,null,null,null,null,null,null,null,null,null,null,null,null,null,null,null,0,{"$error":"#DIV/0!"}]
[null,null,null,null,null,null,null,null,null,null,null,null,null,null,null,null,null,null,null,null,null,null,null,0,{"$error":"#DIV/0!"}]
[null,null,null,null,null,null,null,null,null,null,null,null,null,null,null,null,null,null,null,null,null,null,null,0,{"$error":"#DIV/0!"}]
[null,null,null,null,null,null,null,null,null,null,null,null,null,null,null,null,null,null,null,null,null,null,null,0,{"$error":"#DIV/0!"}]
[null,null,null,null,null,null,null,null,null,null,null,null,null,null,null,null,null,null,null,null,null,null,null,0,{"$error":"#DIV/0!"}]
[null,null,null,null,null,null,null,null,null,null,null,null,null,null,null,null,null,null,null,null,null,null,null,0,{"$error":"#DIV/0!"}]
[null,null,null,null,null,null,null,null,null,null,null,null,null,null,null,null,null,null,null,null,null,null,null,0,{"$error":"#DIV/0!"}]
[null,null,null,null,null,null,null,null,null,null,null,null,null,null,null,null,null,null,null,null,null,null,null,0,{"$error":"#DIV/0!"}]
[null,null,null,null,null,null,null,null,null,null,null,null,null,null,null,null,null,null,null,null,null,null,null,0,{"$error":"#DIV/0!"}]
[null,null,null,null,null,null,null,null,null,null,null,null,null,null,null,null,null,null,null,null,null,null,null,0,{"$error":"#DIV/0!"}]
[null,null,null,null,null,null,null,null,null,null,null,null,null,null,null,null,null,null,null,null,null,null,null,0,{"$error":"#DIV/0!"}]
[null,null,null,null,null,null,null,null,null,null,null,null,null,null,null,null,null,null,null,null,null,null,null,0,{"$error":"#DIV/0!"}]
[null,null,null,null,null,null,null,null,null,null,null,null,null,null,null,null,null,null,null,null,null,null,null,0,{"$error":"#DIV/0!"}]
[null,null,null,null,null,null,null,null,null,null,null,null,null,null,null,null,null,null,null,null,null,null,null,0,{"$error":"#DIV/0!"}]
[null,null,null,null,null,null,null,null,null,null,null,null,null,null,null,null,null,null,null,null,null,null,null,0,{"$error":"#DIV/0!"}]
[null,null,null,null,null,null,null,null,null,null,null,null,null,null,null,null,null,null,null,null,null,null,null,0,{"$error":"#DIV/0!"}]
[null,null,null,null,null,null,null,null,null,null,null,null,null,null,null,null,null,null,null,null,null,null,null,0,{"$error":"#DIV/0!"}]
[null,null,null,null,null,null,null,null,null,null,null,null,null,null,null,null,null,null,null,null,null,null,null,0,{"$error":"#DIV/0!"}]
[null,null,null,null,null,null,null,null,null,null,null,null,null,null,null,null,null,null,null,null,null,null,null,0,{"$error":"#DIV/0!"}]
[null,null,null,null,null,null,null,null,null,null,null,null,null,null,null,null,null,null,null,null,null,null,null,0,{"$error":"#DIV/0!"}]
[null,null,null,null,null,null,null,null,null,null,null,null,null,null,null,null,null,null,null,null,null,null,null,0,{"$error":"#DIV/0!"}]
[null,null,null,null,null,null,null,null,null,null,null,null,null,null,null,null,null,null,null,null,null,null,null,0,{"$error":"#DIV/0!"}]
[null,null,null,null,null,null,null,null,null,null,null,null,null,null,null,null,null,null,null,null,null,null,null,0,{"$error":"#DIV/0!"}]
[null,null,null,null,null,null,null,null,null,null,null,null,null,null,null,null,null,null,null,null,null,null,null,0,{"$error":"#DIV/0!"}]
[null,null,null,null,null,null,null,null,null,null,null,null,null,null,null,null,null,null,null,null,null,null,null,0,{"$error":"#DIV/0!"}]
[null,null,null,null,null,null,null,null,null,null,null,null,null,null,null,null,null,null,null,null,null,null,null,0,{"$error":"#DIV/0!"}]
[null,null,null,null,null,null,null,null,null,null,null,null,null,null,null,null,null,null,null,null,null,null,null,0,{"$error":"#DIV/0!"}]
[null,null,null,null,null,null,null,null,null,null,null,null,null,null,null,null,null,null,null,null,null,null,null,0,{"$error":"#DIV/0!"}]
[null,null,null,null,null,null,null,null,null,null,null,null,null,null,null,null,null,null,null,null,null,null,null,0,{"$error":"#DIV/0!"}]
[null,null,null,null,null,null,null,null,null,null,null,null,null,null,null,null,null,null,null,null,null,null,null,0,{"$error":"#DIV/0!"}]
[null,null,null,null,null,null,null,null,null,null,null,null,null,null,null,null,null,null,null,null,null,null,null,0,{"$error":"#DIV/0!"}]
[null,null,null,null,null,null,null,null,null,null,null,null,null,null,null,null,null,null,null,null,null,null,null,{"$f":"IF(B120=\"\",0,IF((SUM(D120:W120)=0),0,SUM(D120:W120)))","v":0},{"$error":"#DIV/0!"}]
[null,"TOTAL WORKHOURS/CATEGORY:",null,{"$f":"SUM(D11:D120)","v":0},0,0,0,0,0,0,0,0,0,0,0,0,0,0,0,0,0,0,0,{"$f":"SUM(X11:X120)","v":0},{"$f":"SUM(Y11:Y120)","v":{"$error":"#DIV/0!"}},{"$f":"SUM(Z12:Z120)","v":0}]
[null,"TOTAL WORKDAYS/CATEGORY:",null,{"$f":"D121/8","v":0},{"$f":"E121/8","v":0},0,0,0,0,0,0,0,0,0,0,0,0,0,0,0,0,0,0]
[null,"HOURLY SALARY RATE:",null,{"$f":"'PEF CLASSIFICATION SHEET'!E969","v":0},{"$f":"'PEF CLASSIFICATION SHEET'!E970","v":0},{"$f":"'PEF CLASSIFICATION SHEET'!E971","v":0},{"$f":"'PEF CLASSIFICATION SHEET'!E972","v":0},{"$f":"'PEF CLASSIFICATION SHEET'!E973","v":0},{"$f":"'PEF CLASSIFICATION SHEET'!E974","v":0},{"$f":"'PEF CLASSIFICATION SHEET'!E975","v":0},{"$f":"'PEF CLASSIFICATION SHEET'!E976","v":0},{"$f":"'PEF CLASSIFICATION SHEET'!E977","v":0},{"$f":"'PEF CLASSIFICATION SHEET'!E978","v":0},{"$f":"'PEF CLASSIFICATION SHEET'!E979","v":0},{"$f":"'PEF CLASSIFICATION SHEET'!E980","v":0},{"$f":"'PEF CLASSIFICATION SHEET'!E981","v":0},{"$f":"'PEF CLASSIFICATION SHEET'!E982","v":0},{"$f":"'PEF CLASSIFICATION SHEET'!E983","v":0},{"$f":"'PEF CLASSIFICATION SHEET'!E984","v":0},{"$f":"'PEF CLASSIFICATION SHEET'!E985","v":0},{"$f":"'PEF CLASSIFICATION SHEET'!E986","v":0},{"$f":"'PEF CLASSIFICATION SHEET'!E987","v":0},{"$f":"'PEF CLASSIFICATION SHEET'!E988","v":0}]
[null,"RATES PER DAY:",null,{"$f":"D123*8","v":0},0,0,0,0,0,0,0,0,0,0,0,0,0,0,0,0,0,0,0]
[null,"PAYROLL BURDEN:",null,{"$f":"SUM(D121*D123)","v":0},{"$f":"SUM(E121*E123)","v":0},0,0,0,0,0,0,0,0,0,0,0,0,0,0,0,0,0,0]
[null,"TOTAL WORKDAYS:",null,{"$f":"SUM(D122:W122)","v":0}]
[null,"TOTAL PAYROLL BURDEN:",null,{"$f":"SUM(D125:W125)","v":0}]
[null,"AVERAGE COST PER HOUR:",null,{"$f":"SUM(D127/(D126*8))","v":{"$error":"#DIV/0!"}}]
[null,"GENERAL OVERHEAD:",{"$f":"BIKEANDPED.SUB4_CONSULTANT_OVERHEAD","v":0},{"$f":"SUM(D127*C129)","v":0}]
[null,"SUBTOTAL:",null,{"$f":"SUM(D127+D129)","v":0}]
[null,"COMPARATIVE FEE:",{"$f":"BIKEANDPED.SUB4_CONSULTANT_FEE","v":0.09},{"$f":"SUM(D130*C131)","v":0}]
[null,"FACILITIES COST OF CAPITAL:",{"$f":"BIKEANDPED.SUB4_CONSULTANT_COSTofCAPITAL","v":0},{"$f":"SUM(D127*C132)","v":0}]
[null,"TOTAL:",null,{"$f":"SUM(D130:D132)","v":0}]
[null,"DIRECT EXPENSES:",null,{"$f":"BIKEANDPED.SUB4_DIRECT_NONSALARY_TOTAL","v":0}]
[null,"BICYCLE AND PEDESTRIAN GRAND TOTAL:",null,{"$f":"SUM(D133:D134)","v":0}]

{"sheet":"IM-BikePed-Exp-Sub4","index":114,"n_rows":46,"n_cols":8,"rows_kept":46,"cut":false,"hidden":true,"merged":[[0,0,0,7],[1,3,1,7]]}
["BICYCLE AND PEDESTRIAN--DIRECT EXPENSES - SUBCONSULTANT 4"]
["TIP NUMBER",{"$f":"TIP.NUMBER","v":0},"FIRM:",{"$f":"'IM-BikePed-Sub4'!G3","v":"CONSULTANT NAME"}]
[]
["GENERAL PROJECT WORK:","ITEM","QTY","DESCRIPTION",null,null,"UNIT COST "]
[null,"Travel:"]
[null,"Sedan",0,"Trip(s) @",0,"miles @",{"$f":"SEDAN","v":0.7},{"$f":"SUM(C6*E6*G6)","v":0}]
[null,"Carry All",0,"Trip(s) @",0,"miles @",{"$f":"CARRYALL","v":0.72},{"$f":"SUM(C7*E7*G7)","v":0}]
[null,"Car Rental",null,null,0,"days @ ",{"$f":"CARRENTAL","v":50},{"$f":"SUM(E8*G8)","v":0}]
[null,"Gas for Rental",null,null,0,"miles @",{"$f":"GASforRENTAL","v":0.2},{"$f":"SUM(E9*G9)","v":0}]
[null,"Parking:",0,"Trip(s) @",null,null,{"$f":"PARKING","v":3},{"$f":"SUM(C10*G10)","v":0}]
[null,"Per Diem:",0,"Breakfast",null,null,{"$f":"BREAKFAST","v":10.1},{"$f":"SUM(C11*G11)","v":0}]
[null,null,0,"Lunch",null,null,{"$f":"LUNCH","v":13.3},0]
[null,null,0,"Dinner",null,null,{"$f":"DINNER","v":23.1},0]
[null,null,0,"Lodging",null,null,{"$f":"LODGING_LUMP.SUM","v":95},0]
[null,"Reproduction:",0,"8 1/2 x 11 B & W Copies @",null,null,{"$f":"LETTERCOPIES","v":0.14000000000000001},0]
[null,null,0,"11 x 17 B & W Copies @",null,null,{"$f":"LEDGERCOPIES","v":0.34},0]
[null,null,0,"8 1/2 x 11 Color Copies @",null,null,{"$f":"LETTERCOLOR","v":0.83},0]
[null,null,0,"11 x 17 Color Copies @",null,null,{"$f":"LEDGERCOLOR","v":1.66},0]
[null,null,0,"SQ. FT. of Plots (B & W or Color)",null,"<65 SQ. FT.*",{"$f":"ROLLPLOTSshort","v":6.5},0]
[null,null,0,"SQ. FT. of Plots (B & W or Color)",null,">65 SQ. FT.*",{"$f":"ROLLPLOTSlong","v":1.5},0]
[null,null,0,"Cover(s) @",null,null,{"$f":"COVERS","v":0.5},0]
[null,null,0,"Binder(s) @",null,null,{"$f":"BINDERS","v":0.5},0]
[null,null,0,"Blueprints - 8 1/2 x 11 @",null,null,{"$f":"BLUEPRINTSLETTER","v":0.35},0]
[null,null,0,"Blueprints - 42 x 72 @",null,null,{"$f":"BLUEPRINTSLARGE","v":1.3},0]
[null,"Film and Developing:",0,"Roll(s) @",null,null,{"$f":"FILM","v":20},0]
[null,null,null,null,null,"Subtotal",null,{"$f":"SUM(H6:H25)","v":0}]
["MAPS AND DOCUMENTS:","ITEM","QTY","DESCRIPTION",null,null,"UNIT COST "]
[null,"County Tax Maps:",0,"Map(s) @",null,null,{"$f":"County_Tax_Maps","v":7},{"$f":"SUM(C28*G28)","v":0}]
[null,"USGS Maps:",0,"Map(s) @",null,null,{"$f":"USGSMAPS","v":7},{"$f":"SUM(C29*G29)","v":0}]
[null,null,null,null,null,"Subtotal",null,{"$f":"SUM(H28:H29)","v":0}]
["Miscellaneous Other","ITEM","QTY","DESCRIPTION",null,null,"UNIT COST "]
[null,null,null,null,null,null,null,{"$f":"SUM(C32*G32)","v":0}]
[null,null,null,null,null,null,null,{"$f":"SUM(C33*G33)","v":0}]
[null,null,null,null,null,null,null,0]
[null,null,null,null,null,null,null,0]
[null,null,null,null,null,null,null,0]
[null,null,null,null,null,null,null,0]
[null,null,null,null,null,null,null,0]
[null,null,null,null,null,null,null,{"$f":"SUM(C39*G39)","v":0}]
[null,null,null,null,null,null,null,{"$f":"SUM(C40*G40)","v":0}]
[null,null,null,null,null,null,null,{"$f":"SUM(C41*G41)","v":0}]
[null,null,null,null,null,"Subtotal",null,{"$f":"SUM(H32:H41)","v":0}]
[]
[null,null,null,null,null,"TOTAL",null,{"$f":"SUM(H26+H30+H42)","v":0}]
[]
[null,"* Sum of all plots "]

{"sheet":"LS-Sub1","index":115,"n_rows":149,"n_cols":18,"rows_kept":149,"cut":false,"hidden":true,"merged":[[144,7,145,8],[146,7,146,8],[148,1,148,3],[15,3,16,14],[137,0,137,1],[138,0,138,1],[139,0,139,1],[140,0,140,1],[141,0,141,1],[0,4,0,8],[1,4,1,8],[5,4,5,7],[9,1,9,2],[9,4,9,7]]}
[null,null,null,null,"NORTH CAROLINA DEPARTMENT OF TRANSPORTATION",null,null,null,null,null,null,null,null,null,null,null,null,{"$f":"IF(C8=\"FT\",1,2)","v":2}]
[null,null,null,null,"      LOCATION AND SURVEYS PEF COST ESTIMATE - SUBCONSULTANT 1"]
[null,null,null,null,null,null,null,null,null,null,null,null,null,null,null,null,null,"MI"]
[null,null,null,"DATE:",{"$f":"IF(SCOPE.MANDAY.ESTIMATE.PREPARED.BY.DATE=\"\",\"\",SCOPE.MANDAY.ESTIMATE.PREPARED.BY.DATE)","v":""},null,null,null,null,null,null,null,null,null,null,null," ","FT"]
[null,null,null,null,null,null,null,null,null,null,null,null,null,null,null,null," "]
["TIP NO.:",{"$f":"IF(TIP.NUMBER=\"\",\"\",TIP.NUMBER)","v":""},null,"FIRM:",{"$f":"LOCATION_SURVEYS_SUB1_CONSULTANT_NAME","v":"CONSULTANT NAME"},null,null,null,null,null,null,null,null,null,null,null," "]
[]
["LS NO.:",null,"MI"]
[]
["WBS:",{"$f":"IF(WBS.NUMBER=\"\",\"\",WBS.NUMBER)","v":""},null,"COUNTY:",{"$f":"IF(COUNTY=\"\",\"\",COUNTY)","v":""}]
[]
["LENGTH:"]
[null,"L-LINE:",null,{"$f":"IF(C8=\"MI\",\"MI\",\"FT\")","v":"MI"},null,null,"RAMPS:",null,{"$f":"IF(C8=\"MI\",\"MI\",\"FT\")","v":"MI"}]
[null,"Y-LINE(S):",null,{"$f":"IF(C8=\"MI\",\"MI\",\"FT\")","v":"MI"},null,null,"RAILROADS:",null,{"$f":"IF(C8=\"MI\",\"MI\",\"FT\")","v":"MI"}]
[]
[null,null,"PROJECT DESCRIPTION:",{"$f":"IF(PROJECT.DESCRIPTION=\"\",\"\",PROJECT.DESCRIPTION)","v":""}]
[]
[]
[null,null,null,"ESTIMATED WORKHOURS"]
["TASKS & PARAMETERS",null,null,"PEM","PSS","ASC","SCL","ASCL","SCM",{"$f":"IF('PEF CLASSIFICATION SHEET'!C997=\"\",\"\",IF('PEF CLASSIFICATION SHEET'!C997=\"Project Engineer Manager\",\"PEM\",IF('PEF CLASSIFICATION SHEET'!C997=\"Project Survey Supervisor\",\"PSS\",IF('PEF CLASSIFICATION SHEET'!C997=\"Advanced Survey Coordinator\",\"ASC\",IF('PEF CLASSIFICATION SHEET'!C997=\"Survey Crew Leader\",\"SCL\",IF('PEF CLASSIFICATION SHEET'!C997=\"Assistant Survey Crew Leader\",\"ASCL\",IF('PEF CLASSIFICATION SHEET'!C997=\"Survey Crew Member\",\"SCM\",\"N/A\")))))))","v":""},{"$f":"IF('PEF CLASSIFICATION SHEET'!C998=\"\",\"\",IF('PEF CLASSIFICATION SHEET'!C998=\"Project Engineer Manager\",\"PEM\",IF('PEF CLASSIFICATION SHEET'!C998=\"Project Survey Supervisor\",\"PSS\",IF('PEF CLASSIFICATION SHEET'!C998=\"Advanced Survey Coordinator\",\"ASC\",IF('PEF CLASSIFICATION SHEET'!C998=\"Survey Crew Leader\",\"SCL\",IF('PEF CLASSIFICATION SHEET'!C998=\"Assistant Survey Crew Leader\",\"ASCL\",IF('PEF CLASSIFICATION SHEET'!C998=\"Survey Crew Member\",\"SCM\",\"N/A\")))))))","v":""},{"$f":"IF('PEF CLASSIFICATION SHEET'!C999=\"\",\"\",IF('PEF CLASSIFICATION SHEET'!C999=\"Project Engineer Manager\",\"PEM\",IF('PEF CLASSIFICATION SHEET'!C999=\"Project Survey Supervisor\",\"PSS\",IF('PEF CLASSIFICATION SHEET'!C999=\"Advanced Survey Coordinator\",\"ASC\",IF('PEF CLASSIFICATION SHEET'!C999=\"Survey Crew Leader\",\"SCL\",IF('PEF CLASSIFICATION SHEET'!C999=\"Assistant Survey Crew Leader\",\"ASCL\",IF('PEF CLASSIFICATION SHEET'!C999=\"Survey Crew Member\",\"SCM\",\"N/A\")))))))","v":""},{"$f":"IF('PEF CLASSIFICATION SHEET'!C1000=\"\",\"\",IF('PEF CLASSIFICATION SHEET'!C1000=\"Project Engineer Manager\",\"PEM\",IF('PEF CLASSIFICATION SHEET'!C1000=\"Project Survey Supervisor\",\"PSS\",IF('PEF CLASSIFICATION SHEET'!C1000=\"Advanced Survey Coordinator\",\"ASC\",IF('PEF CLASSIFICATION SHEET'!C1000=\"Survey Crew Leader\",\"SCL\",IF('PEF CLASSIFICATION SHEET'!C1000=\"Assistant Survey Crew Leader\",\"ASCL\",IF('PEF CLASSIFICATION SHEET'!C1000=\"Survey Crew Member\",\"SCM\",\"N/A\")))))))","v":""},{"$f":"IF('PEF CLASSIFICATION SHEET'!C1001=\"\",\"\",IF('PEF CLASSIFICATION SHEET'!C1001=\"Project Engineer Manager\",\"PEM\",IF('PEF CLASSIFICATION SHEET'!C1001=\"Project Survey Supervisor\",\"PSS\",IF('PEF CLASSIFICATION SHEET'!C1001=\"Advanced Survey Coordinator\",\"ASC\",IF('PEF CLASSIFICATION SHEET'!C1001=\"Survey Crew Leader\",\"SCL\",IF('PEF CLASSIFICATION SHEET'!C1001=\"Assistant Survey Crew Leader\",\"ASCL\",IF('PEF CLASSIFICATION SHEET'!C1001=\"Survey Crew Member\",\"SCM\",\"N/A\")))))))","v":""},"TOTAL","NOTES"]
["1. Courthouse Research"]
[null,"No. of Properties:",null,null,null,null,null,null,null,null,null,null,null,null,{"$f":"SUM(D22:N22)","v":0},null,null,2]
["2. Contacting Property Owners",null,null,null,null,null,null,null,null,null,null,null,null,null,null,null,null,"10. Obtain STA Levels w/ EP Shots"]
[null,"No. of Property Owners:",null,null,null,null,null,null,null,null,null,null,null,null,{"$f":"SUM(D24:N24)","v":0},null,null,"10.  Pavement DTM's"]
["3. NC Grid Tie (Horiz.) to NAD 1983"]
[null,"Approx. Length:",null,null,null,null,null,null,null,null,null,null,null,null,{"$f":"SUM(D26:N26)","v":0},null,null,1]
["4. Vertical Control Tie to NAVD 1988",null,null,null,null,null,null,null,null,null,null,null,null,null,null,null,null,"11.  Obtain STA Levels w/out EP Shots"]
[null,"Approx. Length:",null,null,null,null,null,null,null,null,null,null,null,null,{"$f":"SUM(D28:N28)","v":0},null,null,"11.  Obtain Random Baseline XYZ Shots"]
["5. Baseline Traverse"]
[null,"Approx. Length:",null,null,null,null,null,null,null,null,null,null,null,null,{"$f":"SUM(D30:N30)","v":0}]
["6. Intermediate Staking of Baseline"]
[null,"Approx. Length:",null,null,null,null,null,null,null,null,null,null,null,null,{"$f":"SUM(D32:N32)","v":0}]
["7. Compute Best-Fit Alignment (Graphically)"]
["   ","Approx. Length:",null,null,null,null,null,null,null,null,null,null,null,null,{"$f":"SUM(D34:N34)","v":0}]
["8. Hub & Stake Design -L- & -Y- Alignments"]
["   ","Approx. Length -L-:"]
[null,"Approx. Length -Y-:",null,null,null,null,null,null,null,null,null,null,null,null,{"$f":"SUM(D36:N37)","v":0}]
["9. Establish/Elevate Temp. Bench Marks"]
[null,"No. of TBM's:",null,null,null,null,null,null,null,null,null,null,null,null,{"$f":"SUM(D39:N39)","v":0}]
["10. Pavement DTMs"]
[null,"Approx. Length:",null,null,null,null,null,null,null,null,null,null,null,null,{"$f":"SUM(D41:N41)","v":0}]
["11. Hydrographic Surveys & -T- Lines"]
[null,"Approx. Length:",null,null,null,null,null,null,null,null,null,null,null,null,{"$f":"SUM(D43:N43)","v":0}]
["12. Suppl. Info for DTM's (Obscured Areas)"]
[null,"No. of Acres / Hectares:",null,null,null,null,null,null,null,null,null,null,null,null,{"$f":"SUM(D45:N45)","v":0}]
["13. Field Property Ties & Recon"]
[null,"No. of Properties:",null,null,null,null,null,null,null,null,null,null,null,null,{"$f":"SUM(D47:N47)","v":0}]
["14. Property Analysis and Computations"]
[null,"No. of Properties:",null,null,null,null,null,null,null,null,null,null,null,null,{"$f":"SUM(D49:N49)","v":0}]
["15. Property Line Ties to Design Alignment"]
[null,"No. of Properties:",null,null,null,null,null,null,null,null,null,null,null,null,{"$f":"SUM(D51:N51)","v":0}]
["16. Property Strip Maps"]
[null,"No. of Maps:",null,null,null,null,null,null,null,null,null,null,null,null,{"$f":"SUM(D53:N53)","v":0}]
["17. Data for Appraisal Report"]
[null,"                     No. of Properties:",null,null,null,null,null,null,null,null,null,null,null,null,{"$f":"SUM(D55:N55)","v":0}]
["18. Classif. of Features on Aerial Maps"]
[null,"                             No. of Maps:"]
[null,"   Scale:",null,null,null,null,null,null,null,null,null,null,null,null,{"$f":"SUM(D58:N58)","v":0}]
["19. Field Loc. of Topo & Plan. Features"]
[null,"             (Dense, Med., or LT.):",null,null,null,null,null,null,null,null,null,null,null,null,{"$f":"SUM(D60:N60)","v":0}]
["20. Loc. of Non-Gravity U/G Utilities"]
[null,"             (Dense, Med., or LT.):",null,null,null,null,null,null,null,null,null,null,null,null,{"$f":"SUM(D62:N62)","v":0}]
["21. Loc. of Gravity Utilities & Pipe Inverts"]
[null,"             (Dense, Med., or LT.):",null,null,null,null,null,null,null,null,null,null,null,null,{"$f":"SUM(D64:N64)","v":0}]
["22. Mapping Pre. Prop. from Tax Map Info."]
[null,"                   No. of  Properties:",null,null,null,null,null,null,null,null,null,null,null,null,{"$f":"SUM(D66:N66)","v":0}]
["23. Pole Data Sheets"]
[null,"                (Dense, Med., LT.):",null,null,null,null,null,null,null,null,null,null,null,null,{"$f":"SUM(D68:N68)","v":0}]
["24. Setting Photo Con. Panels"]
[null,"                         No. of Points:",null,null,null,null,null,null,null,null,null,null,null,null,{"$f":"SUM(D70:N70)","v":0}]
["25. Photogrammetric Control"]
[null,"                          No. of Points:",null,null,null,null,null,null,null,null,null,null,null,null,{"$f":"SUM(D72:N72)","v":0}]
["26. Staking and Flagging R/W & Easements"]
[null,"No. of R/W Points:"]
[null,"No. of EASEMENT Points:",null,null,null,null,null,null,null,null,null,null,null,null,{"$f":"SUM(D74:N75)","v":0}]
["27. Production of Base Mapping"]
[null,"                           No. of Sheets:",null,null,null,null,null,null,null,null,null,null,null,null,{"$f":"SUM(D77:N77)","v":0}]
["28. GPS Points"]
[null,"                          No. of Points:",null,null,null,null,null,null,null,null,null,null,null,null,{"$f":"SUM(D79:N79)","v":0}]
["29. Misc. Staking"]
[null,"                          No. of Points:",null,null,null,null,null,null,null,null,null,null,null,null,{"$f":"SUM(D81:N81)","v":0}]
["33. Travel ","Hrs R.T.",null,null,null,null,null,null,null,null,null,null,null,null,{"$f":"SUM(D82:N82)","v":0}]
["34. Project Mgmt. & Supervision",null,null,null,null,null,null,null,null,null,null,null,null,null,{"$f":"SUM(D83:N83)","v":0}]
["35. Traffic Control & Safety",null,null,null,null,null,null,null,null,null,null,null,null,null,{"$f":"SUM(D84:N84)","v":0}]
[]
[null,"Property 1 Description"]
[null,"Property 2 Description",null,null,null,null,null,null,null,null,null,null,null,null,{"$f":"SUM(D86:N87)","v":0}]
[]
[null,"Property 1 Description"]
[null,"Property 2 Description",null,null,null,null,null,null,null,null,null,null,null,null,{"$f":"SUM(D89:N90)","v":0}]
[]
[null,"Property 1 Description"]
[null,"Property 2 Description",null,null,null,null,null,null,null,null,null,null,null,null,{"$f":"SUM(D92:N93)","v":0}]
[]
[null,"Property 1 Description"]
[null,"Property 2 Description",null,null,null,null,null,null,null,null,null,null,null,null,{"$f":"SUM(D95:N96)","v":0}]
[]
[null,"Property 1 Description"]
[null,"Property 2 Description",null,null,null,null,null,null,null,null,null,null,null,null,{"$f":"SUM(D98:N99)","v":0}]
[null,null,"TOTAL WORKHOURS:",{"$f":"SUM(D21:D99)","v":0},0,0,0,0,0,0,0,0,0,0,{"$f":"SUM(D100:N100)","v":0}]
[]
[null,"Classification",null,"Employee Name","Hours","Rate","Cost"]
["Project Engineer Manager",null,null,{"$f":"LOCATION_SURVEYS_SUB1_CONSULTANT_PEM_NAME","v":0},{"$f":"D100","v":0},{"$f":"LOCATION_SURVEYS_SUB1_CONSULTANT_PEM_RATE","v":0},{"$f":"E103*F103","v":0}]
["Project Survey Supervisor",null,null,{"$f":"LOCATION_SURVEYS_SUB1_CONSULTANT_PSS_NAME","v":0},{"$f":"E100","v":0},{"$f":"LOCATION_SURVEYS_SUB1_CONSULTANT_PSS_RATE","v":0},0]
["Advanced Survey Coordinator",null,null,{"$f":"LOCATION_SURVEYS_SUB1_CONSULTANT_ASC_NAME","v":0},{"$f":"F100","v":0},{"$f":"LOCATION_SURVEYS_SUB1_CONSULTANT_ASC_RATE","v":0},0,null,"TOTAL"]
["Survey Crew Leader",null,null,{"$f":"LOCATION_SURVEYS_SUB1_CONSULTANT_SCL_NAME","v":0},{"$f":"G100","v":0},{"$f":"LOCATION_SURVEYS_SUB1_CONSULTANT_SCL_RATE","v":0},0,null,"WORKHOURS"]
["Assistant Survey Crew Leader",null,null,{"$f":"LOCATION_SURVEYS_SUB1_CONSULTANT_ASCL_NAME","v":0},{"$f":"H100","v":0},{"$f":"LOCATION_SURVEYS_SUB1_CONSULTANT_ASCL_RATE","v":0},0,null,{"$f":"SUM(E103:E113)","v":0}]
["Survey Crew Member",null,null,{"$f":"LOCATION_SURVEYS_SUB1_CONSULTANT_SCM_NAME","v":0},{"$f":"I100","v":0},{"$f":"LOCATION_SURVEYS_SUB1_CONSULTANT_SCM_RATE","v":0},0]
[{"$f":"IF('PEF CLASSIFICATION SHEET'!C236=\"\",\"\",'PEF CLASSIFICATION SHEET'!C236)","v":""},null,null,{"$f":"'PEF CLASSIFICATION SHEET'!D997","v":0},{"$f":"J100","v":0},{"$f":"'PEF CLASSIFICATION SHEET'!E997","v":0},0,null,"TOTAL DIRECT"]
[{"$f":"IF('PEF CLASSIFICATION SHEET'!C237=\"\",\"\",'PEF CLASSIFICATION SHEET'!C237)","v":""},null,null,{"$f":"'PEF CLASSIFICATION SHEET'!D998","v":0},{"$f":"K100","v":0},{"$f":"'PEF CLASSIFICATION SHEET'!E998","v":0},0,null,"SALARY COSTS"]
[{"$f":"IF('PEF CLASSIFICATION SHEET'!C238=\"\",\"\",'PEF CLASSIFICATION SHEET'!C238)","v":""},null,null,{"$f":"'PEF CLASSIFICATION SHEET'!D999","v":0},{"$f":"L100","v":0},{"$f":"'PEF CLASSIFICATION SHEET'!E999","v":0},0,null,{"$f":"SUM(G103:G113)","v":0}]
[{"$f":"IF('PEF CLASSIFICATION SHEET'!C239=\"\",\"\",'PEF CLASSIFICATION SHEET'!C239)","v":""},null,null,{"$f":"'PEF CLASSIFICATION SHEET'!D1000","v":0},{"$f":"M100","v":0},{"$f":"'PEF CLASSIFICATION SHEET'!E1000","v":0},0]
[{"$f":"IF('PEF CLASSIFICATION SHEET'!C240=\"\",\"\",'PEF CLASSIFICATION SHEET'!C240)","v":""},null,null,{"$f":"'PEF CLASSIFICATION SHEET'!D1001","v":0},{"$f":"N100","v":0},{"$f":"'PEF CLASSIFICATION SHEET'!E1001","v":0},0]
[null,null,null,null,null,null,null,null,"TOTAL"]
["INDIRECT SALARY COSTS",null,null,null,null,null,null,null,"WORKDAYS"]
["Total Dir. Salary Costs",null,{"$f":"I111","v":0},null,null,null,null,null,{"$f":"I107/8","v":0}]
["Overhead (%)",null,{"$f":"LOCATION_SURVEYS_SUB1_CONSULTANT_OVERHEAD","v":0},null,null,{"$f":"C116*C117","v":0}]
["Fee (%)",null,{"$f":"LOCATION_SURVEYS_SUB1_CONSULTANT_FEE","v":0.09},null,null,{"$f":"P118*C118","v":0},null,null,null,null,null,null,null,null,null,{"$f":"SUM(C116,F117)","v":0}]
["Cost of Capt. (%)",null,{"$f":"LOCATION_SURVEYS_SUB1_CONSULTANT_COSTofCAPITAL","v":0},null,null,{"$f":"C116*C119","v":0},null,null,"TOTAL DIR. and"]
[null,null,null,null,"Total Indirect Salary Costs:",{"$f":"SUM(F116:F119)","v":0},null,null,"INDIR. SALARY COSTS"]
[null,null,null,null,null,null,null,null,{"$f":"I111+F120","v":0}]
[]
["DIRECT COSTS"]
["Carry-all $/Day",{"$f":"50*B125","v":36},null,"Days = ",{"$f":"B124*C124","v":0}]
["or $/Mi",{"$f":"CARRYALL","v":0.72},null,"Miles=",{"$f":"B125*C125","v":0}]
["Sedan       $/Day",{"$f":"50*B127","v":35},null,"Days =",{"$f":"B126*C126","v":0}]
["or $/ Mi",{"$f":"SEDAN","v":0.7},null,"Miles=",{"$f":"B127*C127","v":0}]
[null,null,null,"Misc. Survey Supplies=     ",null,null,null,null,"TOTAL DIRECT COSTS"]
["PER DIEM EXPENSES",null,null,null,null,null,null,null,{"$f":"SUM(E124:E128)","v":0}]
[null,null,"$ / Day",null,"Persons",null,"Days"]
["Lodging",null,{"$f":"LODGING_LUMP.SUM","v":95},null,null,"x",null,null,"TOTAL PER DIEM"]
["Breakfast",null,{"$f":"BREAKFAST","v":10.1},null,null,"x",null,null,{"$f":"(C131*E131*G131)+(C132*E132*G132)+(C133*E133*G133)+(C134*E134*G134)","v":0},null,null," "]
["Lunch",null,{"$f":"LUNCH","v":13.3},null,null,"x"]
["Dinner",null,{"$f":"DINNER","v":23.1},null,null,"x"]
[]
["MISCELLANEOUS EXPENSES"]
["Description",null,"Quantity","Unit of Measure",null,"Cost Per Unit"]
[null,null,null,null,"x",null,null,null,"TOTAL MISC. EXPENSES"]
[null,null,null,null,"x",null,null,null,{"$f":"(C138*F138)+(C139*F139)+(C140*F140)+(C141*F141)+(C142*F142)","v":0},null,null," "]
[null,null,null,null,"x"]
[null,null,null,null,"x"]
[null,null,null,null,"x"]
[]
["Cost per ",{"$f":"IF(C8=\"MI\",\"MI\",\"FT\")","v":"MI"},{"$f":"IF(NOT(SUM($C$13,$C$14,$H$13,$H$14)=0),$I$149/SUM($C$13,$C$14,$H$13,$H$14),\"\")","v":""}]
["Workhours per ",{"$f":"IF(C8=\"MI\",\"MI\",\"FT\")","v":"MI"},{"$f":"IF(NOT(SUM($C$13,$C$14,$H$13,$H$14)=0),$I$107/SUM($C$13,$C$14,$H$13,$H$14),\"\")","v":""},null,null,null,null,"TOTAL DIRECT NON-SALARY COSTS"]
[]
[null,null,null,null,null,null,null,{"$f":"I129+I132+I139","v":0}]
[]
["ESTIMATE BY:",{"$f":"IF(SCOPE.MANDAY.ESTIMATE.PREPARED.BY=\"\",\"\",SCOPE.MANDAY.ESTIMATE.PREPARED.BY)","v":""},null,null,null,null,null,"             PROJECT ESTIMATE TOTAL:     ",{"$f":"SUM(I121,I129,I132,I139)","v":0}]

{"sheet":"LS-Sub2","index":116,"n_rows":149,"n_cols":18,"rows_kept":149,"cut":false,"hidden":true,"merged":[[144,7,145,8],[146,7,146,8],[148,1,148,3],[15,3,16,14],[137,0,137,1],[138,0,138,1],[139,0,139,1],[140,0,140,1],[141,0,141,1],[0,4,0,8],[1,4,1,8],[5,4,5,7],[9,1,9,2],[9,4,9,7]]}
[null,null,null,null,"NORTH CAROLINA DEPARTMENT OF TRANSPORTATION",null,null,null,null,null,null,null,null,null,null,null,null,{"$f":"IF(C8=\"FT\",1,2)","v":2}]
[null,null,null,null,"      LOCATION AND SURVEYS PEF COST ESTIMATE - SUBCONSULTANT 2"]
[null,null,null,null,null,null,null,null,null,null,null,null,null,null,null,null,null,"MI"]
[null,null,null,"DATE:",{"$f":"IF(SCOPE.MANDAY.ESTIMATE.PREPARED.BY.DATE=\"\",\"\",SCOPE.MANDAY.ESTIMATE.PREPARED.BY.DATE)","v":""},null,null,null,null,null,null,null,null,null,null,null," ","FT"]
[null,null,null,null,null,null,null,null,null,null,null,null,null,null,null,null," "]
["TIP NO.:",{"$f":"IF(TIP.NUMBER=\"\",\"\",TIP.NUMBER)","v":""},null,"FIRM:",{"$f":"LOCATION_SURVEYS_SUB2_CONSULTANT_NAME","v":"CONSULTANT NAME"},null,null,null,null,null,null,null,null,null,null,null," "]
[]
["LS NO.:",null,"MI"]
[]
["WBS:",{"$f":"IF(WBS.NUMBER=\"\",\"\",WBS.NUMBER)","v":""},null,"COUNTY:",{"$f":"IF(COUNTY=\"\",\"\",COUNTY)","v":""}]
[]
["LENGTH:"]
[null,"L-LINE:",null,{"$f":"IF(C8=\"MI\",\"MI\",\"FT\")","v":"MI"},null,null,"RAMPS:",null,{"$f":"IF(C8=\"MI\",\"MI\",\"FT\")","v":"MI"}]
[null,"Y-LINE(S):",null,{"$f":"IF(C8=\"MI\",\"MI\",\"FT\")","v":"MI"},null,null,"RAILROADS:",null,{"$f":"IF(C8=\"MI\",\"MI\",\"FT\")","v":"MI"}]
[]
[null,null,"PROJECT DESCRIPTION:",{"$f":"IF(PROJECT.DESCRIPTION=\"\",\"\",PROJECT.DESCRIPTION)","v":""}]
[]
[]
[null,null,null,"ESTIMATED WORKHOURS"]
["TASKS & PARAMETERS",null,null,"PEM","PSS","ASC","SCL","ASCL","SCM",{"$f":"IF('PEF CLASSIFICATION SHEET'!C1010=\"\",\"\",IF('PEF CLASSIFICATION SHEET'!C1010=\"Project Engineer Manager\",\"PEM\",IF('PEF CLASSIFICATION SHEET'!C1010=\"Project Survey Supervisor\",\"PSS\",IF('PEF CLASSIFICATION SHEET'!C1010=\"Advanced Survey Coordinator\",\"ASC\",IF('PEF CLASSIFICATION SHEET'!C1010=\"Survey Crew Leader\",\"SCL\",IF('PEF CLASSIFICATION SHEET'!C1010=\"Assistant Survey Crew Leader\",\"ASCL\",IF('PEF CLASSIFICATION SHEET'!C1010=\"Survey Crew Member\",\"SCM\",\"N/A\")))))))","v":""},{"$f":"IF('PEF CLASSIFICATION SHEET'!C1011=\"\",\"\",IF('PEF CLASSIFICATION SHEET'!C1011=\"Project Engineer Manager\",\"PEM\",IF('PEF CLASSIFICATION SHEET'!C1011=\"Project Survey Supervisor\",\"PSS\",IF('PEF CLASSIFICATION SHEET'!C1011=\"Advanced Survey Coordinator\",\"ASC\",IF('PEF CLASSIFICATION SHEET'!C1011=\"Survey Crew Leader\",\"SCL\",IF('PEF CLASSIFICATION SHEET'!C1011=\"Assistant Survey Crew Leader\",\"ASCL\",IF('PEF CLASSIFICATION SHEET'!C1011=\"Survey Crew Member\",\"SCM\",\"N/A\")))))))","v":""},{"$f":"IF('PEF CLASSIFICATION SHEET'!C1012=\"\",\"\",IF('PEF CLASSIFICATION SHEET'!C1012=\"Project Engineer Manager\",\"PEM\",IF('PEF CLASSIFICATION SHEET'!C1012=\"Project Survey Supervisor\",\"PSS\",IF('PEF CLASSIFICATION SHEET'!C1012=\"Advanced Survey Coordinator\",\"ASC\",IF('PEF CLASSIFICATION SHEET'!C1012=\"Survey Crew Leader\",\"SCL\",IF('PEF CLASSIFICATION SHEET'!C1012=\"Assistant Survey Crew Leader\",\"ASCL\",IF('PEF CLASSIFICATION SHEET'!C1012=\"Survey Crew Member\",\"SCM\",\"N/A\")))))))","v":""},{"$f":"IF('PEF CLASSIFICATION SHEET'!C1013=\"\",\"\",IF('PEF CLASSIFICATION SHEET'!C1013=\"Project Engineer Manager\",\"PEM\",IF('PEF CLASSIFICATION SHEET'!C1013=\"Project Survey Supervisor\",\"PSS\",IF('PEF CLASSIFICATION SHEET'!C1013=\"Advanced Survey Coordinator\",\"ASC\",IF('PEF CLASSIFICATION SHEET'!C1013=\"Survey Crew Leader\",\"SCL\",IF('PEF CLASSIFICATION SHEET'!C1013=\"Assistant Survey Crew Leader\",\"ASCL\",IF('PEF CLASSIFICATION SHEET'!C1013=\"Survey Crew Member\",\"SCM\",\"N/A\")))))))","v":""},{"$f":"IF('PEF CLASSIFICATION SHEET'!C1014=\"\",\"\",IF('PEF CLASSIFICATION SHEET'!C1014=\"Project Engineer Manager\",\"PEM\",IF('PEF CLASSIFICATION SHEET'!C1014=\"Project Survey Supervisor\",\"PSS\",IF('PEF CLASSIFICATION SHEET'!C1014=\"Advanced Survey Coordinator\",\"ASC\",IF('PEF CLASSIFICATION SHEET'!C1014=\"Survey Crew Leader\",\"SCL\",IF('PEF CLASSIFICATION SHEET'!C1014=\"Assistant Survey Crew Leader\",\"ASCL\",IF('PEF CLASSIFICATION SHEET'!C1014=\"Survey Crew Member\",\"SCM\",\"N/A\")))))))","v":""},"TOTAL","NOTES"]
["1. Courthouse Research"]
[null,"No. of Properties:",null,null,null,null,null,null,null,null,null,null,null,null,{"$f":"SUM(D22:N22)","v":0},null,null,2]
["2. Contacting Property Owners",null,null,null,null,null,null,null,null,null,null,null,null,null,null,null,null,"10. Obtain STA Levels w/ EP Shots"]
[null,"No. of Property Owners:",null,null,null,null,null,null,null,null,null,null,null,null,{"$f":"SUM(D24:N24)","v":0},null,null,"10.  Pavement DTM's"]
["3. NC Grid Tie (Horiz.) to NAD 1983"]
[null,"Approx. Length:",null,null,null,null,null,null,null,null,null,null,null,null,{"$f":"SUM(D26:N26)","v":0},null,null,1]
["4. Vertical Control Tie to NAVD 1988",null,null,null,null,null,null,null,null,null,null,null,null,null,null,null,null,"11.  Obtain STA Levels w/out EP Shots"]
[null,"Approx. Length:",null,null,null,null,null,null,null,null,null,null,null,null,{"$f":"SUM(D28:N28)","v":0},null,null,"11.  Obtain Random Baseline XYZ Shots"]
["5. Baseline Traverse"]
[null,"Approx. Length:",null,null,null,null,null,null,null,null,null,null,null,null,{"$f":"SUM(D30:N30)","v":0}]
["6. Intermediate Staking of Baseline"]
[null,"Approx. Length:",null,null,null,null,null,null,null,null,null,null,null,null,{"$f":"SUM(D32:N32)","v":0}]
["7. Compute Best-Fit Alignment (Graphically)"]
["   ","Approx. Length:",null,null,null,null,null,null,null,null,null,null,null,null,{"$f":"SUM(D34:N34)","v":0}]
["8. Hub & Stake Design -L- & -Y- Alignments"]
["   ","Approx. Length -L-:"]
[null,"Approx. Length -Y-:",null,null,null,null,null,null,null,null,null,null,null,null,{"$f":"SUM(D36:N37)","v":0}]
["9. Establish/Elevate Temp. Bench Marks"]
[null,"No. of TBM's:",null,null,null,null,null,null,null,null,null,null,null,null,{"$f":"SUM(D39:N39)","v":0}]
["10. Pavement DTMs"]
[null,"Approx. Length:",null,null,null,null,null,null,null,null,null,null,null,null,{"$f":"SUM(D41:N41)","v":0}]
["11. Hydrographic Surveys & -T- Lines"]
[null,"Approx. Length:",null,null,null,null,null,null,null,null,null,null,null,null,{"$f":"SUM(D43:N43)","v":0}]
["12. Suppl. Info for DTM's (Obscured Areas)"]
[null,"No. of Acres / Hectares:",null,null,null,null,null,null,null,null,null,null,null,null,{"$f":"SUM(D45:N45)","v":0}]
["13. Field Property Ties & Recon"]
[null,"No. of Properties:",null,null,null,null,null,null,null,null,null,null,null,null,{"$f":"SUM(D47:N47)","v":0}]
["14. Property Analysis and Computations"]
[null,"No. of Properties:",null,null,null,null,null,null,null,null,null,null,null,null,{"$f":"SUM(D49:N49)","v":0}]
["15. Property Line Ties to Design Alignment"]
[null,"No. of Properties:",null,null,null,null,null,null,null,null,null,null,null,null,{"$f":"SUM(D51:N51)","v":0}]
["16. Property Strip Maps"]
[null,"No. of Maps:",null,null,null,null,null,null,null,null,null,null,null,null,{"$f":"SUM(D53:N53)","v":0}]
["17. Data for Appraisal Report"]
[null,"                     No. of Properties:",null,null,null,null,null,null,null,null,null,null,null,null,{"$f":"SUM(D55:N55)","v":0}]
["18. Classif. of Features on Aerial Maps"]
[null,"                             No. of Maps:"]
[null,"   Scale:",null,null,null,null,null,null,null,null,null,null,null,null,{"$f":"SUM(D58:N58)","v":0}]
["19. Field Loc. of Topo & Plan. Features"]
[null,"             (Dense, Med., or LT.):",null,null,null,null,null,null,null,null,null,null,null,null,{"$f":"SUM(D60:N60)","v":0}]
["20. Loc. of Non-Gravity U/G Utilities"]
[null,"             (Dense, Med., or LT.):",null,null,null,null,null,null,null,null,null,null,null,null,{"$f":"SUM(D62:N62)","v":0}]
["21. Loc. of Gravity Utilities & Pipe Inverts"]
[null,"             (Dense, Med., or LT.):",null,null,null,null,null,null,null,null,null,null,null,null,{"$f":"SUM(D64:N64)","v":0}]
["22. Mapping Pre. Prop. from Tax Map Info."]
[null,"                   No. of  Properties:",null,null,null,null,null,null,null,null,null,null,null,null,{"$f":"SUM(D66:N66)","v":0}]
["23. Pole Data Sheets"]
[null,"                (Dense, Med., LT.):",null,null,null,null,null,null,null,null,null,null,null,null,{"$f":"SUM(D68:N68)","v":0}]
["24. Setting Photo Con. Panels"]
[null,"                         No. of Points:",null,null,null,null,null,null,null,null,null,null,null,null,{"$f":"SUM(D70:N70)","v":0}]
["25. Photogrammetric Control"]
[null,"                          No. of Points:",null,null,null,null,null,null,null,null,null,null,null,null,{"$f":"SUM(D72:N72)","v":0}]
["26. Staking and Flagging R/W & Easements"]
[null,"No. of R/W Points:"]
[null,"No. of EASEMENT Points:",null,null,null,null,null,null,null,null,null,null,null,null,{"$f":"SUM(D74:N75)","v":0}]
["27. Production of Base Mapping"]
[null,"                           No. of Sheets:",null,null,null,null,null,null,null,null,null,null,null,null,{"$f":"SUM(D77:N77)","v":0}]
["28. GPS Points"]
[null,"                          No. of Points:",null,null,null,null,null,null,null,null,null,null,null,null,{"$f":"SUM(D79:N79)","v":0}]
["29. Misc. Staking"]
[null,"                          No. of Points:",null,null,null,null,null,null,null,null,null,null,null,null,{"$f":"SUM(D81:N81)","v":0}]
["33. Travel ","Hrs R.T.",null,null,null,null,null,null,null,null,null,null,null,null,{"$f":"SUM(D82:N82)","v":0}]
["34. Project Mgmt. & Supervision",null,null,null,null,null,null,null,null,null,null,null,null,null,{"$f":"SUM(D83:N83)","v":0}]
["35. Traffic Control & Safety",null,null,null,null,null,null,null,null,null,null,null,null,null,{"$f":"SUM(D84:N84)","v":0}]
[]
[null,"Property 1 Description"]
[null,"Property 2 Description",null,null,null,null,null,null,null,null,null,null,null,null,{"$f":"SUM(D86:N87)","v":0}]
[]
[null,"Property 1 Description"]
[null,"Property 2 Description",null,null,null,null,null,null,null,null,null,null,null,null,{"$f":"SUM(D89:N90)","v":0}]
[]
[null,"Property 1 Description"]
[null,"Property 2 Description",null,null,null,null,null,null,null,null,null,null,null,null,{"$f":"SUM(D92:N93)","v":0}]
[]
[null,"Property 1 Description"]
[null,"Property 2 Description",null,null,null,null,null,null,null,null,null,null,null,null,{"$f":"SUM(D95:N96)","v":0}]
[]
[null,"Property 1 Description"]
[null,"Property 2 Description",null,null,null,null,null,null,null,null,null,null,null,null,{"$f":"SUM(D98:N99)","v":0}]
[null,null,"TOTAL WORKHOURS:",{"$f":"SUM(D21:D99)","v":0},0,0,0,0,0,0,0,0,0,0,{"$f":"SUM(D100:N100)","v":0}]
[]
[null,"Classification",null,"Employee Name","Hours","Rate","Cost"]
["Project Engineer Manager",null,null,{"$f":"LOCATION_SURVEYS_SUB2_CONSULTANT_PEM_NAME","v":0},{"$f":"D100","v":0},{"$f":"LOCATION_SURVEYS_SUB2_CONSULTANT_PEM_RATE","v":0},{"$f":"E103*F103","v":0}]
["Project Survey Supervisor",null,null,{"$f":"LOCATION_SURVEYS_SUB2_CONSULTANT_PSS_NAME","v":0},{"$f":"E100","v":0},{"$f":"LOCATION_SURVEYS_SUB2_CONSULTANT_PSS_RATE","v":0},0]
["Advanced Survey Coordinator",null,null,{"$f":"LOCATION_SURVEYS_SUB2_CONSULTANT_ASC_NAME","v":0},{"$f":"F100","v":0},{"$f":"LOCATION_SURVEYS_SUB2_CONSULTANT_ASC_RATE","v":0},0,null,"TOTAL"]
["Survey Crew Leader",null,null,{"$f":"LOCATION_SURVEYS_SUB2_CONSULTANT_SCL_NAME","v":0},{"$f":"G100","v":0},{"$f":"LOCATION_SURVEYS_SUB2_CONSULTANT_SCL_RATE","v":0},0,null,"WORKHOURS"]
["Assistant Survey Crew Leader",null,null,{"$f":"LOCATION_SURVEYS_SUB2_CONSULTANT_ASCL_NAME","v":0},{"$f":"H100","v":0},{"$f":"LOCATION_SURVEYS_SUB2_CONSULTANT_ASCL_RATE","v":0},0,null,{"$f":"SUM(E103:E113)","v":0}]
["Survey Crew Member",null,null,{"$f":"LOCATION_SURVEYS_SUB2_CONSULTANT_SCM_NAME","v":0},{"$f":"I100","v":0},{"$f":"LOCATION_SURVEYS_SUB2_CONSULTANT_SCM_RATE","v":0},0]
[{"$f":"IF('PEF CLASSIFICATION SHEET'!C236=\"\",\"\",'PEF CLASSIFICATION SHEET'!C236)","v":""},null,null,{"$f":"'PEF CLASSIFICATION SHEET'!D1010","v":0},{"$f":"J100","v":0},{"$f":"'PEF CLASSIFICATION SHEET'!E1010","v":0},0,null,"TOTAL DIRECT"]
[{"$f":"IF('PEF CLASSIFICATION SHEET'!C237=\"\",\"\",'PEF CLASSIFICATION SHEET'!C237)","v":""},null,null,{"$f":"'PEF CLASSIFICATION SHEET'!D1011","v":0},{"$f":"K100","v":0},{"$f":"'PEF CLASSIFICATION SHEET'!E1011","v":0},0,null,"SALARY COSTS"]
[{"$f":"IF('PEF CLASSIFICATION SHEET'!C238=\"\",\"\",'PEF CLASSIFICATION SHEET'!C238)","v":""},null,null,{"$f":"'PEF CLASSIFICATION SHEET'!D1012","v":0},{"$f":"L100","v":0},{"$f":"'PEF CLASSIFICATION SHEET'!E1012","v":0},0,null,{"$f":"SUM(G103:G113)","v":0}]
[{"$f":"IF('PEF CLASSIFICATION SHEET'!C239=\"\",\"\",'PEF CLASSIFICATION SHEET'!C239)","v":""},null,null,{"$f":"'PEF CLASSIFICATION SHEET'!D1013","v":0},{"$f":"M100","v":0},{"$f":"'PEF CLASSIFICATION SHEET'!E1013","v":0},0]
[{"$f":"IF('PEF CLASSIFICATION SHEET'!C240=\"\",\"\",'PEF CLASSIFICATION SHEET'!C240)","v":""},null,null,{"$f":"'PEF CLASSIFICATION SHEET'!D1014","v":0},{"$f":"N100","v":0},{"$f":"'PEF CLASSIFICATION SHEET'!E1014","v":0},0]
[null,null,null,null,null,null,null,null,"TOTAL"]
["INDIRECT SALARY COSTS",null,null,null,null,null,null,null,"WORKDAYS"]
["Total Dir. Salary Costs",null,{"$f":"I111","v":0},null,null,null,null,null,{"$f":"I107/8","v":0}]
["Overhead (%)",null,{"$f":"LOCATION_SURVEYS_SUB2_CONSULTANT_OVERHEAD","v":0},null,null,{"$f":"C116*C117","v":0}]
["Fee (%)",null,{"$f":"LOCATION_SURVEYS_SUB2_CONSULTANT_FEE","v":0.09},null,null,{"$f":"P118*C118","v":0},null,null,null,null,null,null,null,null,null,{"$f":"SUM(C116,F117)","v":0}]
["Cost of Capt. (%)",null,{"$f":"LOCATION_SURVEYS_SUB2_CONSULTANT_COSTofCAPITAL","v":0},null,null,{"$f":"C116*C119","v":0},null,null,"TOTAL DIR. and"]
[null,null,null,null,"Total Indirect Salary Costs:",{"$f":"SUM(F116:F119)","v":0},null,null,"INDIR. SALARY COSTS"]
[null,null,null,null,null,null,null,null,{"$f":"I111+F120","v":0}]
[]
["DIRECT COSTS"]
["Carry-all $/Day",{"$f":"50*B125","v":36},null,"Days = ",{"$f":"B124*C124","v":0}]
["or $/Mi",{"$f":"CARRYALL","v":0.72},null,"Miles=",{"$f":"B125*C125","v":0}]
["Sedan       $/Day",{"$f":"50*B127","v":35},null,"Days =",{"$f":"B126*C126","v":0}]
["or $/ Mi",{"$f":"SEDAN","v":0.7},null,"Miles=",{"$f":"B127*C127","v":0}]
[null,null,null,"Misc. Survey Supplies=     ",null,null,null,null,"TOTAL DIRECT COSTS"]
["PER DIEM EXPENSES",null,null,null,null,null,null,null,{"$f":"SUM(E124:E128)","v":0}]
[null,null,"$ / Day",null,"Persons",null,"Days"]
["Lodging",null,{"$f":"LODGING_LUMP.SUM","v":95},null,null,"x",null,null,"TOTAL PER DIEM"]
["Breakfast",null,{"$f":"BREAKFAST","v":10.1},null,null,"x",null,null,{"$f":"(C131*E131*G131)+(C132*E132*G132)+(C133*E133*G133)+(C134*E134*G134)","v":0},null,null," "]
["Lunch",null,{"$f":"LUNCH","v":13.3},null,null,"x"]
["Dinner",null,{"$f":"DINNER","v":23.1},null,null,"x"]
[]
["MISCELLANEOUS EXPENSES"]
["Description",null,"Quantity","Unit of Measure",null,"Cost Per Unit"]
[null,null,null,null,"x",null,null,null,"TOTAL MISC. EXPENSES"]
[null,null,null,null,"x",null,null,null,{"$f":"(C138*F138)+(C139*F139)+(C140*F140)+(C141*F141)+(C142*F142)","v":0},null,null," "]
[null,null,null,null,"x"]
[null,null,null,null,"x"]
[null,null,null,null,"x"]
[]
["Cost per ",{"$f":"IF(C8=\"MI\",\"MI\",\"FT\")","v":"MI"},{"$f":"IF(NOT(SUM($C$13,$C$14,$H$13,$H$14)=0),$I$149/SUM($C$13,$C$14,$H$13,$H$14),\"\")","v":""}]
["Workhours per ",{"$f":"IF(C8=\"MI\",\"MI\",\"FT\")","v":"MI"},{"$f":"IF(NOT(SUM($C$13,$C$14,$H$13,$H$14)=0),$I$107/SUM($C$13,$C$14,$H$13,$H$14),\"\")","v":""},null,null,null,null,"TOTAL DIRECT NON-SALARY COSTS"]
[]
[null,null,null,null,null,null,null,{"$f":"I129+I132+I139","v":0}]
[]
["ESTIMATE BY:",{"$f":"IF(SCOPE.MANDAY.ESTIMATE.PREPARED.BY=\"\",\"\",SCOPE.MANDAY.ESTIMATE.PREPARED.BY)","v":""},null,null,null,null,null,"             PROJECT ESTIMATE TOTAL:     ",{"$f":"SUM(I121,I129,I132,I139)","v":0}]

{"sheet":"SUE-Cover-Sub1","index":117,"n_rows":28,"n_cols":13,"rows_kept":28,"cut":false,"hidden":true,"merged":[[0,0,0,8],[1,0,1,8],[12,1,13,2],[19,3,20,8]]}
["NORTH CAROLINA DEPARTMENT OF TRANSPORTATION"]
["LOCATION AND SURVEYS SUBSURFACE UTILITY ENGINEERING (SUE) COST ESTIMATE - SUBCONSULTANT 1"]
[]
[null,null,null,"DATE:",{"$f":"IF(SCOPE.MANDAY.ESTIMATE.PREPARED.BY.DATE=\"\",\"\",SCOPE.MANDAY.ESTIMATE.PREPARED.BY.DATE)","v":""},null,null,null,null,null,null,null,"MI"]
[null,null,null,null,null,null,null,null,null,null,null,null,"FT"]
["CONTRACT:",{"$f":"CONTRACT.NUM","v":0},null,"FIRM:",{"$f":"SUE_SUB1_CONSULTANT_NAME","v":"CONSULTANT NAME"}]
[]
["PUR. ORDER:",null,null,"ADDRESS:"]
[]
[]
["ESTIMATE PREPARED BY: ",null,null,{"$f":"IF(SCOPE.MANDAY.ESTIMATE.PREPARED.BY=\"\",\"\",SCOPE.MANDAY.ESTIMATE.PREPARED.BY)","v":""}]
[]
[null,{"$f":"WBS.NUMBER","v":""}]
["WBS:",null,null,"COUNTY:",{"$f":"IF(COUNTY=\"\",\"\",COUNTY)","v":""},"ROUTE:",null,"TIP NO.:",{"$f":"IF(TIP.NUMBER=\"\",\"\",TIP.NUMBER)","v":""}]
[]
["LENGTH:",{"$f":"SUM(C17+C18+H17+H18)","v":0},{"$f":"D17","v":"MI"},null,null,null,null,"LS NO.:"]
[null,"L-LINE:",null,"MI",null,null,"RAMPS",null,{"$f":"D17","v":"MI"}]
[null,"Y-LINE(S):",null,{"$f":"D17","v":"MI"},null,null,"RAILROADS:",null,{"$f":"D17","v":"MI"}]
[]
["PROJECT DESCRIPTION:",null,null,{"$f":"PROJECT.DESCRIPTION","v":0}]
[]
[]
[]
[]
[]
[]
[]
[null,null,null,null,"TOTAL PROJECT ESTIMATE:",null,null,{"$f":"'SUE-Estimate-Sub1'!F191","v":0}]

{"sheet":"SUE-Manhours-Sub1","index":118,"n_rows":51,"n_cols":21,"rows_kept":51,"cut":false,"hidden":true,"merged":[[13,0,13,1],[3,1,3,19],[5,8,5,10],[6,8,6,10],[9,2,10,19],[12,2,12,18],[22,0,22,1],[14,13,16,13],[14,14,16,14],[14,15,16,15],[14,16,16,16],[14,7,16,7],[14,8,16,8],[14,9,16,9],[14,10,16,10],[14,11,16,11],[14,12,16,12],[14,0,14,1],[14,2,16,2],[14,3,16,3],[14,4,16,4],[14,5,16,5],[14,20,16,20],[18,0,18,1],[19,0,19,1],[20,0,20,1],[21,0,21,1],[14,17,16,17],[14,18,16,18],[14,6,16,6],[23,20,24,20],[27,10,28,10],[30,2,30,18],[31,0,31,1],[32,0,32,1],[32,2,34,2],[32,3,34,3],[32,4,34,4],[32,5,34,5],[32,6,34,6],[32,20,34,20],[32,17,34,17],[32,18,34,18],[39,0,39,1],[32,13,34,13],[32,14,34,14],[32,15,34,15],[32,16,34,16],[32,7,34,7],[32,8,34,8],[32,9,34,9],[32,10,34,10],[32,11,34,11],[32,12,34,12],[35,0,35,1],[36,0,36,1],[37,0,37,1],[38,0,38,1],[46,20,47,20],[50,19,50,20],[40,0,40,1],[41,0,41,1],[42,0,42,1],[43,0,43,1],[44,0,44,1],[45,0,45,1]]}
["            NORTH CAROLINA DEPARTMENT OF TRANSPORTATION"]
["LOCATION AND SURVEYS SUE COST ESTIMATE - SUBCONSULTANT 1"]
[]
[null,"SECTION A:"]
[]
[null,null,null,null,null,null,null,"TIP NUMBER:",{"$f":"TIP.NUMBER","v":0}]
[null,null,null,null,null,null,null,"PEF NAME:",{"$f":"'SUE-Cover-Sub1'!E6","v":"CONSULTANT NAME"}]
[]
[null,"1. MOBILIZATION FOR PROJECTS WORKHOURS BY CLASSIFICATION:"]
[null,null,{"$f":"'SUE-Cover-Sub1'!D20","v":0}]
["DESCRIPTION:"]
[]
[null,null,"ESTIMATE WORKHOURS"]
["Employee Name",null,{"$f":"SUE_SUB1_CONSULTANT_SR.CADD.TECHNICIAN_NAME","v":0},{"$f":"SUE_SUB1_CONSULTANT_PROJECT.MANAGER_NAME","v":0},{"$f":"SUE_SUB1_CONSULTANT_CADD.TECHNICIAN_NAME","v":0},{"$f":"SUE_SUB1_CONSULTANT_SURVEY.ANALYST_NAME","v":0},{"$f":"SUE_SUB1_CONSULTANT_SUE.PROJ.ANALYST_NAME","v":0},{"$f":"SUE_SUB1_CONSULTANT_TECHNICIAN.II_NAME","v":0},{"$f":"SUE_SUB1_CONSULTANT_TECHNICIAN.I_NAME","v":0},{"$f":"SUE_SUB1_CONSULTANT_ACCOUNTING.CLERK_NAME","v":0},{"$f":"SUE_SUB1_CONSULTANT_PRINCIPAL.PROF.ENGR_NAME","v":0},{"$f":"IF('SUE-Estimate-Sub1'!A27=\"\",\"\",LEFT('SUE-Estimate-Sub1'!A27,4))","v":""},{"$f":"IF('SUE-Estimate-Sub1'!A28=\"\",\"\",LEFT('SUE-Estimate-Sub1'!A28,4))","v":""},{"$f":"IF('SUE-Estimate-Sub1'!A29=\"\",\"\",LEFT('SUE-Estimate-Sub1'!A29,4))","v":""},{"$f":"IF('SUE-Estimate-Sub1'!A30=\"\",\"\",LEFT('SUE-Estimate-Sub1'!A30,4))","v":""},{"$f":"IF('SUE-Estimate-Sub1'!A31=\"\",\"\",LEFT('SUE-Estimate-Sub1'!A31,4))","v":""},{"$f":"IF('SUE-Estimate-Sub1'!A32=\"\",\"\",LEFT('SUE-Estimate-Sub1'!A32,4))","v":""},{"$f":"IF('SUE-Estimate-Sub1'!A33=\"\",\"\",LEFT('SUE-Estimate-Sub1'!A33,4))","v":""},{"$f":"IF('SUE-Estimate-Sub1'!A34=\"\",\"\",LEFT('SUE-Estimate-Sub1'!A34,4))","v":""}]
["Classification",null,{"$f":"'SUE-Estimate-Sub1'!B18","v":"SR CADD TECHNICIAN"},{"$f":"'SUE-Estimate-Sub1'!B19","v":"PROJECT MANAGER"},{"$f":"'SUE-Estimate-Sub1'!B20","v":"CADD TECHNICIAN"},{"$f":"'SUE-Estimate-Sub1'!B21","v":"SURVEY ANALYST"},{"$f":"'SUE-Estimate-Sub1'!B22","v":"SUE PROJ. ANALYST"},{"$f":"'SUE-Estimate-Sub1'!B23","v":"TECHNICIAN II"},{"$f":"'SUE-Estimate-Sub1'!B24","v":"TECHNICIAN I"},{"$f":"'SUE-Estimate-Sub1'!B25","v":"ACCOUNTING CLERK"},{"$f":"'SUE-Estimate-Sub1'!B26","v":"PRINCIPAL / PROF. ENGR."},{"$f":"'SUE-Estimate-Sub1'!B27","v":""},{"$f":"'SUE-Estimate-Sub1'!B28","v":""},{"$f":"'SUE-Estimate-Sub1'!B29","v":""},{"$f":"'SUE-Estimate-Sub1'!B30","v":""},{"$f":"'SUE-Estimate-Sub1'!B31","v":""},{"$f":"'SUE-Estimate-Sub1'!B32","v":""},{"$f":"'SUE-Estimate-Sub1'!B33","v":""},{"$f":"'SUE-Estimate-Sub1'!B34","v":""},null,"NOTES"]
["TASKS &"]
["PARAMETERS",null,null,null,null,null,null,null,null,null,null,null,null,null,null,null,null,null,null,"TOTAL"]
["TRAVEL",null,null,null,null,null,null,null,null,null,null,null,null,null,null,null,null,null,null,{"$f":"SUM(C18:S18)","v":0}]
[null,null,null,null,null,null,null,null,null,null,null,null,null,null,null,null,null,null,null,0]
[null,null,null,null,null,null,null,null,null,null,null,null,null,null,null,null,null,null,null,0]
[null,null,null,null,null,null,null,null,null,null,null,null,null,null,null,null,null,null,null,0]
[null,null,null,null,null,null,null,null,null,null,null,null,null,null,null,null,null,null,null,0]
[null,null,null,null,null,null,null,null,null,null,null,null,null,null,null,null,null,null,null,0]
["TOTAL",null,{"$f":"SUM(C18:C23)","v":0},0,0,0,0,0,0,0,0,0,0,0,0,0,0,0,0,0,{"$f":"T24/8","v":0}]
[]
[null,null,null,null,null,null,null,null,null,null,null,null,null,null,null,null,null,null,null,null,"WORKDAYS"]
[null,"2. TASK/PARAMETER WORKHOURS BY CLASSIFICATION:"]
[null,null,null,"Choose","Records Research For Quality Level D Mapping",null,null,null,null,null,"via X selection"]
[null,null,null,"One","Special Projects Authorized by PEF Coordinator"]
[]
[null,null,"ESTIMATE WORKHOURS",null,null,null,null,null,null,null,null,null,null,null,null,null,null,null,null,null,"X"]
["Employee Name",null,{"$f":"C14","v":0},0,0,0,0,0,0,0,0,{"$f":"L14","v":""},{"$f":"M14","v":""},"","","","","",""]
["Classification",null,"SR CADD TECHNICIAN","PROJECT MANAGER","CADD TECHNICIAN","SURVEY ANALYST","SUE PROJ. ANALYST","TECHNICIAN II","TECHNICIAN I","ACCOUNTING CLERK","PRINCIPAL / PROF. ENGR.","","","","","","","","",null,"NOTES"]
["TASKS &"]
["PARAMETERS",null,null,null,null,null,null,null,null,null,null,null,null,null,null,null,null,null,null,"TOTAL"]
["Utility Records Research & Retrieval",null,null,null,null,null,null,null,null,null,null,null,null,null,null,null,null,null,null,{"$f":"SUM(C36:S36)","v":0}]
["Hourly Field SUE Investigations",null,null,null,null,null,null,null,null,null,null,null,null,null,null,null,null,null,null,0]
["Mapping of SUE Utility Data",null,null,null,null,null,null,null,null,null,null,null,null,null,null,null,null,null,null,0]
["Hourly Field Aerial Investigations",null,null,null,null,null,null,null,null,null,null,null,null,null,null,null,null,null,null,0]
["Mapping of Aerial Utility Data",null,null,null,null,null,null,null,null,null,null,null,null,null,null,null,null,null,null,0]
["Preparation of Final SUE Deliverable",null,null,null,null,null,null,null,null,null,null,null,null,null,null,null,null,null,null,0]
[null,null,null,null,null,null,null,null,null,null,null,null,null,null,null,null,null,null,null,0]
[null,null,null,null,null,null,null,null,null,null,null,null,null,null,null,null,null,null,null,0]
[null,null,null,null,null,null,null,null,null,null,null,null,null,null,null,null,null,null,null,0]
[null,null,null,null,null,null,null,null,null,null,null,null,null,null,null,null,null,null,null,0]
[null,null,null,null,null,null,null,null,null,null,null,null,null,null,null,null,null,null,null,0]
["TOTAL",null,{"$f":"SUM(C36:C46)","v":0},0,0,0,0,0,0,0,0,0,0,0,0,0,0,0,0,0,{"$f":"T47/8","v":0}]
[]
[null,null,null,null,null,null,null,null,null,null,null,null,null,null,null,null,null,null,null,null,"WORKDAYS"]
[null,null,null,null,null,null,null,null,null,null,null,null,null,null,null,null,null,null,null,null,{"$f":"SUM(U24,U47)","v":0}]
[null,null,null,null,null,null,null,null,null,null,null,null,null,null,null,null,null,null,null,"TOTAL WORKDAYS"]

{"sheet":"SUE-Estimate-Sub1","index":119,"n_rows":191,"n_cols":12,"rows_kept":191,"cut":false,"hidden":true,"merged":[[99,1,99,2],[3,2,3,5],[3,7,3,8],[5,4,5,6],[7,1,8,1],[7,2,8,9],[81,4,81,5],[83,2,83,3],[84,2,84,3],[85,2,85,3],[97,1,97,2],[98,1,98,2],[142,2,144,9],[100,1,100,2],[101,1,101,2],[106,4,106,5],[108,2,108,3],[109,2,109,3],[110,2,110,3],[122,1,122,2],[123,1,123,2],[124,1,124,2],[125,1,125,2],[126,1,126,2],[177,1,177,2],[178,1,178,2],[154,1,154,2],[172,1,172,2],[173,1,173,2],[174,1,174,2],[175,1,175,2],[176,1,176,2]]}
[null,null,null,"NORTH CAROLINA DEPARTMENT OF TRANSPORTATION"]
[null,null,"                      LOCATION AND SURVEYS SUE COST ESTIMATE - SUBCONSULTANT 1"]
[]
[null,"PEF NAME:",{"$f":"'SUE-Cover-Sub1'!E6","v":"CONSULTANT NAME"},null,null,null,"TIP NUMBER:",{"$f":"TIP.NUMBER","v":0}]
[]
[null,"CONTRACT:",{"$f":"'SUE-Cover-Sub1'!B6","v":0},"WBS:",{"$f":"'SUE-Cover-Sub1'!B13","v":""},null,null,"LENGTH:",{"$f":"'SUE-Cover-Sub1'!B16","v":0}]
[]
[null,"PROJECT DESCRIPTION:",{"$f":"'SUE-Cover-Sub1'!D20","v":0}]
[]
[]
[null,"SECTION A cont.:"]
[null,"TASK & PARAMETERS"]
[null,"(Direct & Indirect Cost based on negotiated contract items.)"]
[]
[null,"1. MOBILIZATION FOR PROJECTS WORKHOURS BY CLASSIFICATION:"]
[null," (See Section D for Tasks & Parameters)"]
["EMPLOYEE NAME",null,null,null,null,"RATE"]
[{"$f":"SUE_SUB1_CONSULTANT_SR.CADD.TECHNICIAN_NAME","v":0},{"$f":"IF('PEF CLASSIFICATION SHEET'!C243=\"\",\"\",'PEF CLASSIFICATION SHEET'!C243)","v":"SR CADD TECHNICIAN"},null,{"$f":"'SUE-Manhours-Sub1'!C24","v":0},"HRS. X",{"$f":"SUE_SUB1_CONSULTANT_SR.CADD.TECHNICIAN_RATE","v":0},"PER HR.",null,"=",{"$f":"IF(D18=0,0,ROUND((D18*F18),2))","v":0}]
[{"$f":"SUE_SUB1_CONSULTANT_PROJECT.MANAGER_NAME","v":0},{"$f":"IF('PEF CLASSIFICATION SHEET'!C244=\"\",\"\",'PEF CLASSIFICATION SHEET'!C244)","v":"PROJECT MANAGER"},null,{"$f":"'SUE-Manhours-Sub1'!D24","v":0},"HRS. X",{"$f":"SUE_SUB1_CONSULTANT_PROJECT.MANAGER_RATE","v":0},"PER HR.",null,"=",0]
[{"$f":"SUE_SUB1_CONSULTANT_CADD.TECHNICIAN_NAME","v":0},{"$f":"IF('PEF CLASSIFICATION SHEET'!C245=\"\",\"\",'PEF CLASSIFICATION SHEET'!C245)","v":"CADD TECHNICIAN"},null,{"$f":"'SUE-Manhours-Sub1'!E24","v":0},"HRS. X",{"$f":"SUE_SUB1_CONSULTANT_CADD.TECHNICIAN_RATE","v":0},"PER HR.",null,"=",0]
[{"$f":"SUE_SUB1_CONSULTANT_SURVEY.ANALYST_NAME","v":0},{"$f":"IF('PEF CLASSIFICATION SHEET'!C246=\"\",\"\",'PEF CLASSIFICATION SHEET'!C246)","v":"SURVEY ANALYST"},null,{"$f":"'SUE-Manhours-Sub1'!F24","v":0},"HRS. X",{"$f":"SUE_SUB1_CONSULTANT_SURVEY.ANALYST_RATE","v":0},"PER HR.",null,"=",0]
[{"$f":"SUE_SUB1_CONSULTANT_SUE.PROJ.ANALYST_NAME","v":0},{"$f":"IF('PEF CLASSIFICATION SHEET'!C247=\"\",\"\",'PEF CLASSIFICATION SHEET'!C247)","v":"SUE PROJ. ANALYST"},null,{"$f":"'SUE-Manhours-Sub1'!G24","v":0},"HRS. X",{"$f":"SUE_SUB1_CONSULTANT_SUE.PROJ.ANALYST_RATE","v":0},"PER HR.",null,"=",0]
[{"$f":"SUE_SUB1_CONSULTANT_TECHNICIAN.II_NAME","v":0},{"$f":"IF('PEF CLASSIFICATION SHEET'!C248=\"\",\"\",'PEF CLASSIFICATION SHEET'!C248)","v":"TECHNICIAN II"},null,{"$f":"'SUE-Manhours-Sub1'!H24","v":0},"HRS. X",{"$f":"SUE_SUB1_CONSULTANT_TECHNICIAN.II_RATE","v":0},"PER HR.",null,"=",0]
[{"$f":"SUE_SUB1_CONSULTANT_TECHNICIAN.I_NAME","v":0},{"$f":"IF('PEF CLASSIFICATION SHEET'!C249=\"\",\"\",'PEF CLASSIFICATION SHEET'!C249)","v":"TECHNICIAN I"},null,{"$f":"'SUE-Manhours-Sub1'!I24","v":0},"HRS. X",{"$f":"SUE_SUB1_CONSULTANT_TECHNICIAN.I_RATE","v":0},"PER HR.",null,"=",0]
[{"$f":"SUE_SUB1_CONSULTANT_ACCOUNTING.CLERK_NAME","v":0},{"$f":"IF('PEF CLASSIFICATION SHEET'!C250=\"\",\"\",'PEF CLASSIFICATION SHEET'!C250)","v":"ACCOUNTING CLERK"},null,{"$f":"'SUE-Manhours-Sub1'!J24","v":0},"HRS. X",{"$f":"SUE_SUB1_CONSULTANT_ACCOUNTING.CLERK_RATE","v":0},"PER HR.",null,"=",0]
[{"$f":"SUE_SUB1_CONSULTANT_PRINCIPAL.PROF.ENGR_NAME","v":0},{"$f":"IF('PEF CLASSIFICATION SHEET'!C251=\"\",\"\",'PEF CLASSIFICATION SHEET'!C251)","v":"PRINCIPAL / PROF. ENGR."},null,{"$f":"'SUE-Manhours-Sub1'!K24","v":0},"HRS. X",{"$f":"SUE_SUB1_CONSULTANT_PRINCIPAL.PROF.ENGR_RATE","v":0},"PER HR.",null,"=",0]
[{"$f":"LEFT('PEF CLASSIFICATION SHEET'!D1026,4)","v":""},{"$f":"IF('PEF CLASSIFICATION SHEET'!C1026=\"\",\"\",'PEF CLASSIFICATION SHEET'!C1026)","v":""},null,{"$f":"'SUE-Manhours-Sub1'!L24","v":0},"HRS. X",{"$f":"'PEF CLASSIFICATION SHEET'!E1026","v":0},"PER HR.",null,"=",0]
[{"$f":"LEFT('PEF CLASSIFICATION SHEET'!D1027,4)","v":""},{"$f":"IF('PEF CLASSIFICATION SHEET'!C1027=\"\",\"\",'PEF CLASSIFICATION SHEET'!C1027)","v":""},null,{"$f":"'SUE-Manhours-Sub1'!M24","v":0},"HRS. X",{"$f":"'PEF CLASSIFICATION SHEET'!E1027","v":0},"PER HR.",null,"=",0]
[{"$f":"LEFT('PEF CLASSIFICATION SHEET'!D1028,4)","v":""},{"$f":"IF('PEF CLASSIFICATION SHEET'!C1028=\"\",\"\",'PEF CLASSIFICATION SHEET'!C1028)","v":""},null,{"$f":"'SUE-Manhours-Sub1'!N24","v":0},"HRS. X",{"$f":"'PEF CLASSIFICATION SHEET'!E1028","v":0},"PER HR.",null,"=",0]
[{"$f":"LEFT('PEF CLASSIFICATION SHEET'!D1029,4)","v":""},{"$f":"IF('PEF CLASSIFICATION SHEET'!C1029=\"\",\"\",'PEF CLASSIFICATION SHEET'!C1029)","v":""},null,{"$f":"'SUE-Manhours-Sub1'!O24","v":0},"HRS. X",{"$f":"'PEF CLASSIFICATION SHEET'!E1029","v":0},"PER HR.",null,"=",0]
[{"$f":"LEFT('PEF CLASSIFICATION SHEET'!D1030,4)","v":""},{"$f":"IF('PEF CLASSIFICATION SHEET'!C1030=\"\",\"\",'PEF CLASSIFICATION SHEET'!C1030)","v":""},null,{"$f":"'SUE-Manhours-Sub1'!P24","v":0},"HRS. X",{"$f":"'PEF CLASSIFICATION SHEET'!E1030","v":0},"PER HR.",null,"=",0]
[{"$f":"LEFT('PEF CLASSIFICATION SHEET'!D1031,4)","v":""},{"$f":"IF('PEF CLASSIFICATION SHEET'!C1031=\"\",\"\",'PEF CLASSIFICATION SHEET'!C1031)","v":""},null,{"$f":"'SUE-Manhours-Sub1'!Q24","v":0},"HRS. X",{"$f":"'PEF CLASSIFICATION SHEET'!E1031","v":0},"PER HR.",null,"=",0]
[{"$f":"LEFT('PEF CLASSIFICATION SHEET'!D1032,4)","v":""},{"$f":"IF('PEF CLASSIFICATION SHEET'!C1032=\"\",\"\",'PEF CLASSIFICATION SHEET'!C1032)","v":""},null,{"$f":"'SUE-Manhours-Sub1'!R24","v":0},"HRS. X",{"$f":"'PEF CLASSIFICATION SHEET'!E1032","v":0},"PER HR.",null,"=",0]
[{"$f":"LEFT('PEF CLASSIFICATION SHEET'!D1033,4)","v":""},{"$f":"IF('PEF CLASSIFICATION SHEET'!C1033=\"\",\"\",'PEF CLASSIFICATION SHEET'!C1033)","v":""},null,{"$f":"'SUE-Manhours-Sub1'!S24","v":0},"HRS. X",{"$f":"'PEF CLASSIFICATION SHEET'!E1033","v":0},"PER HR.",null,"=",0]
[null,null,"TOTAL HRS =",{"$f":"SUM(D18:D29)","v":0},null,null,"TOTAL",null,"=",{"$f":"SUM(J18:J34)","v":0}]
[]
[null,"                                          TOTAL DIRECT & INDIRECT SALARY COST"]
[null,"COST",null,null,null,null,"RATE",null,null,"TOTAL"]
[null,"TOTAL DIRECT LABOR",null,null,null,null,null,null,null,{"$f":"SUM(J35:J36)","v":0}]
[null,"OVERHEAD (PERCENT)",null,null,null,null,{"$f":"SUE_SUB1_CONSULTANT_OVERHEAD","v":0},null,null,{"$f":"ROUND((J39*G40),2)","v":0}]
[null,"SUBTOTAL",null,null,null,null,null,null,null,{"$f":"SUM(J39:J40)","v":0}]
[null,"FEE (PERCENT)",null,null,null,null,{"$f":"SUE_SUB1_CONSULTANT_FEE","v":0.09},null,null,{"$f":"ROUND((J41*G42),2)","v":0}]
[null,"COST OF CAPITAL",null,null,null,null,{"$f":"SUE_SUB1_CONSULTANT_COSTofCAPITAL","v":0},null,null,{"$f":"ROUND((J39*G43),2)","v":0}]
[null,"TOTAL",null,null,null,null,null,null,null,{"$f":"SUM(J41:J43)","v":0}]
[]
[null,"2. TASK/PARAMETER WORKHOURS BY CLASSIFICATION:"]
[]
[null,"Records Research For Quality Level D Mapping",null,null,{"$f":"'SUE-Manhours-Sub1'!$J$28","v":0},{"$f":"'SUE-Manhours-Sub1'!J30","v":0},null,"Special Projects Authorized by PEF Coordinator",null,null,null,{"$f":"'SUE-Manhours-Sub1'!$J$29","v":0}]
[]
["EMPLOYEE NAME"]
[{"$f":"A18","v":0},"SR CADD TECHNICIAN",null,{"$f":"'SUE-Manhours-Sub1'!C47","v":0},"HRS. X",{"$f":"F18","v":0},"PER HR.",null,"=",{"$f":"ROUND((D51*F51),2)","v":0}]
[0,"PROJECT MANAGER",null,{"$f":"'SUE-Manhours-Sub1'!D47","v":0},"HRS. X",0,"PER HR.",null,"=",0]
[0,"CADD TECHNICIAN",null,{"$f":"'SUE-Manhours-Sub1'!E47","v":0},"HRS. X",0,"PER HR.",null,"=",0]
[0,"SURVEY ANALYST",null,{"$f":"'SUE-Manhours-Sub1'!F47","v":0},"HRS. X",0,"PER HR.",null,"=",0]
[0,"SUE PROJ. ANALYST",null,{"$f":"'SUE-Manhours-Sub1'!G47","v":0},"HRS. X",0,"PER HR.",null,"=",0]
[0,"TECHNICIAN II",null,{"$f":"'SUE-Manhours-Sub1'!H47","v":0},"HRS. X",0,"PER HR.",null,"=",0]
[0,"TECHNICIAN I",null,{"$f":"'SUE-Manhours-Sub1'!I47","v":0},"HRS. X",0,"PER HR.",null,"=",0]
[0,"ACCOUNTING CLERK",null,{"$f":"'SUE-Manhours-Sub1'!J47","v":0},"HRS. X",0,"PER HR.",null,"=",0]
[0,"PRINCIPAL / PROF. ENGR.",null,{"$f":"'SUE-Manhours-Sub1'!K47","v":0},"HRS. X",0,"PER HR.",null,"=",0]
["","",null,{"$f":"'SUE-Manhours-Sub1'!L47","v":0},"HRS. X",0,"PER HR.",null,"=",0]
["","",null,{"$f":"'SUE-Manhours-Sub1'!M47","v":0},"HRS. X",0,"PER HR.",null,"=",0]
["","",null,{"$f":"'SUE-Manhours-Sub1'!N47","v":0},"HRS. X",0,"PER HR.",null,"=",0]
["","",null,{"$f":"'SUE-Manhours-Sub1'!N49","v":0},"HRS. X",0,"PER HR.",null,"=",0]
["","",null,{"$f":"'SUE-Manhours-Sub1'!N51","v":0},"HRS. X",0,"PER HR.",null,"=",0]
["","",null,{"$f":"'SUE-Manhours-Sub1'!N53","v":0},"HRS. X",0,"PER HR.",null,"=",0]
["","",null,{"$f":"'SUE-Manhours-Sub1'!N55","v":0},"HRS. X",0,"PER HR.",null,"=",0]
[{"$f":"A34","v":""},"",null,{"$f":"'SUE-Manhours-Sub1'!N57","v":0},"HRS. X",0,"PER HR.",null,"=",0]
[]
[null,null,"TOTAL HRS =",{"$f":"SUM(D51:D67)","v":0},null,null,null,"TOTAL","=",{"$f":"SUM(J51:J67)","v":0}]
[]
[null,"                                          TOTAL DIRECT & INDIRECT SALARY COST"]
[null,"COST",null,null,null,null,"RATE",null,null,"TOTAL"]
[null,"TOTAL DIRECT LABOR",null,null,null,null,null,null,null,{"$f":"SUM(J69:J70)","v":0}]
[null,"OVERHEAD (PERCENT)",null,null,null,null,{"$f":"G40","v":0},null,null,{"$f":"ROUND((J73*G74),2)","v":0}]
[null,"SUBTOTAL",null,null,null,null,null,null,null,{"$f":"SUM(J73:J74)","v":0}]
[null,"FEE (PERCENT)",null,null,null,null,{"$f":"G42","v":0.09},null,null,{"$f":"ROUND((J75*G76),2)","v":0}]
[null,"COST OF CAPITAL",null,null,null,null,{"$f":"G43","v":0},null,null,{"$f":"ROUND((J73*G77),2)","v":0}]
[null,"TOTAL",null,null,null,null,null,null,null,{"$f":"SUM(J75:J77)","v":0}]
[]
[null,"4.  QUALITY LEVEL C MAPPING :",null,null,"TOTAL LINEAR FOOT ESTIMATE"]
[]
[null,null,null,null,"LN FT RANGE"]
[null,"LINEAR FEET RANGE VALUES",null,null,"> or >/=","< or </=","RATE"]
[null,null,"lower range",null,0,{"$f":"E85","v":0},null,null,null,null,null,0]
[null,null,"mid range",null,null,0]
[null,null,"upper range",null,{"$f":"F85","v":0}]
[]
[null,null,"UTILITY",null,"LN FT",null,"RATE",null,null,"FEE"]
[null,"SEWER FORCE MAIN",null,null,null,null,{"$f":"IF(E89<$F$84,$G$84,IF(E89>$E$86,$G$86,$G$85))","v":0},null,null,{"$f":"ROUND((E89*G89),2)","v":0}]
[null,"WATER",null,null,null,null,0,null,null,0]
[null,"TELEPHONE (Fiber Optic)",null,null,null,null,0," ",null,0]
[null,"TELEPHONE (Dir Bur)",null,null,null,null,0,null,null,0]
[null,"TELEPHONE (Duct)",null,null,null,null,0,null,null,0]
[null,"GAS",null,null,null,null,0,null,null,0]
[null,"ELECTRIC",null,null,null,null,0,null,null,0]
[null,"CABLE (Fiber Optic)",null,null,null,null,0,null,null,0]
[null,"CABLE (Dir Bur)",null,null,null,null,0,null,null,0]
[null,null,null,null,null,null,0,null,null,0]
[null,null,null,null,null,null,0,null,null,0]
[null,null,null,null,null,null,0,null,null,0]
[null,null,null,null,null,null,0,null,null,0]
[null,null,null,null,null,null,0,null,null,0]
[null,null,null,null,{"$f":"SUM(E89:E102)","v":0},null,null,"TOTAL","=",{"$f":"SUM(J89:J102)","v":0}]
[]
[null,"5. QUALITY LEVEL B SERVICES:",null,null,"TOTAL DESIGNATING LF ESTIMATE"]
[]
[null,null,null,null,"LN FT RANGE"]
[null,"LINEAR FEET RANGE VALUES",null,null,"> or >/=","< or </=","RATE"]
[null,null,"lower range",null,0,{"$f":"E110","v":0},null,null,null,null,null,0]
[null,null,"mid range",null,null,0]
[null,null,"upper range",null,{"$f":"F110","v":0}]
[]
[null,null,"UTILITY",null,"LN FT",null,"RATE",null,null,"FEE"]
[null,"SEWER FORCE MAIN",null,null,null,null,{"$f":"IF(E114<$F$109,$G$109,IF(E114>$E$111,$G$111,$G$110))","v":0},null,null,{"$f":"ROUND((E114*G114),2)","v":0}]
[null,"WATER",null,null,null,null,0,null,null,0]
[null,"TELEPHONE (Fiber Optic)",null,null,null,null,0," ",null,0]
[null,"TELEPHONE (Dir Bur)",null,null,null,null,0,null,null,0]
[null,"TELEPHONE (Duct)",null,null,null,null,0,null,null,0]
[null,"GAS",null,null,null,null,0,null,null,0]
[null,"ELECTRIC",null,null,null,null,0,null,null,0]
[null,"CABLE (Fiber Optic)",null,null,null,null,0,null,null,0]
[null,"CABLE (Dir Bur)",null,null,null,null,0,null,null,0]
[null,null,null,null,null,null,0,null,null,0]
[null,null,null,null,null,null,0,null,null,0]
[null,null,null,null,null,null,0,null,null,0]
[null,null,null,null,null,null,0,null,null,0]
[null,null,null,null,null,null,0,null,null,0]
[null,null,null,null,{"$f":"SUM(E114:E127)","v":0},null,null,"TOTAL","=",{"$f":"SUM(J114:J127)","v":0}]
[]
[null,"6. QUALITY LEVEL A SERVICES:",null,null,"TOTAL LOCATING SERVICES"]
[]
[null,"     A.  LESS THAN 10 TEST HOLES:",null,null,null,"AT ",null,"PER TEST HOLE =",null,{"$f":"SUM(E132*G132)","v":0}]
[null,"     B.  10 OR MORE TEST HOLES:",null,null,null,"AT ",null,"PER TEST HOLE =",null,{"$f":"SUM(E133*G133)","v":0}]
[null,"     C. EXTRA DEPTH BELOW 6 FEET:",null,null,null,"AT ",null,"PER FT =",null,{"$f":"SUM(E134*G134)","v":0}]
[null,null,null,null,null,null,null,"TOTAL","=",{"$f":"SUM(J132:J134)","v":0}]
[]
[]
[null,null,null,null,"TOTAL OF SECTION A: =",null,null,{"$f":"SUM(J44,J78,J103,J128,J135)","v":0}]
[]
[]
[null,"SECTION B:","DIRECT COSTS"]
[]
[null,null,{"$f":"'SUE-Cover-Sub1'!D20","v":0}]
[]
[null,"DESCRIPTION:"]
[]
[null,"(1) VEHICLE USAGE:"]
[]
[null,"AUTOMOBILE:",null,null,"MILES AT  ",{"$f":"SEDAN","v":0.7},null,"PER MILE","=",{"$f":"SUM(D149*F149)","v":0}]
[null,"CARRYALL:",null,null,"MILES AT ",{"$f":"CARRYALL","v":0.72},null,"PER MILE ","=",{"$f":"SUM(D150*F150)","v":0}]
[null,"VACUUM TRUCK:",null,null,"MILES AT",null,null,"PER MILE","=",{"$f":"SUM(D151*F151)","v":0}]
[null,null,null,null,null,null,"TOTAL MILEAGE=",null,null,{"$f":"SUM(J149:J151)","v":0}]
[null,"(2) PER DIEM:"]
[]
[null,"MEALS (BREAKFAST+LUNCH+DINNER):",null,null,"DAYS AT  ",{"$f":"BREAKFAST+LUNCH+DINNER","v":46.5},null,"PER DAY","=",{"$f":"SUM(D155*F155)","v":0}]
[null,"BREAKFAST:",null,null,"DAYS AT  ",{"$f":"BREAKFAST","v":10.1},null,"PER DAY","=",{"$f":"SUM(D156*F156)","v":0}]
[null,"LUNCH:",null,null,"DAYS AT  ",{"$f":"LUNCH","v":13.3},null,"PER DAY","=",{"$f":"SUM(D157*F157)","v":0}]
[null,"DINNER:",null,null,"DAYS AT  ",{"$f":"DINNER","v":23.1},null,"PER DAY","=",{"$f":"SUM(D158*F158)","v":0}]
[null,"LODGING:",null,null,"DAYS AT",{"$f":"LODGING_LUMP.SUM","v":95},null,"PER DAY","=",{"$f":"SUM(D159*F159)","v":0}]
[null,null,null,null,null,null,null,"TOTAL PER DIEM","=",{"$f":"SUM(J155:J159)","v":0}]
[null,"(3) REPRODUCTION:"]
[]
[null,"XEROX COPIES",null,null,"AT",{"$f":"LETTERCOPIES","v":0.14000000000000001},null,"PER COPY","=",{"$f":"SUM(D163*F163)","v":0}]
[null,"BLUEPRINTS",null,null,"AT",{"$f":"BLUEPRINTSLETTER","v":0.35},null,"PER SHEET","=",0]
[null,"BOND",null,null,"AT",{"$f":"BOND.REGULAR","v":0.42},null,"PER SHEET","=",0]
[null,"MYLARS",null,null,"AT",{"$f":"MYLARSLETTER","v":7.32},null,"PER SHEET","=",0]
[null,"VELLUMS",null,null,"AT",{"$f":"VELLUMS","v":3},null,"PER SHEET","=",0]
[null,"STICK-ONS",null,null,"AT",{"$f":"STICK.ONS","v":1},null,"PER SHEET","=",0]
[null,"COVERS & BINDINGS",null,null,"AT  ",{"$f":"COVERS+BINDERS","v":1},null,"PER SHEET","=",0]
[null,null,null,null,null,null,null,"TOTAL REPRODUCTIONS","=",{"$f":"SUM(J163:J169)","v":0}]
[null,"(4) MISCELLANEOUS OTHER:"]
[]
[null,null,null,null,"AT",null,null,null,"=",{"$f":"SUM(D173*F173)","v":0}]
[null,null,null,null,"AT",null,null,null,"=",{"$f":"SUM(D174*F174)","v":0}]
[null,null,null,null,"AT",null,null,null,"=",0]
[null,null,null,null,"AT",null,null,null,"=",0]
[null,null,null,null,"AT",null,null,null,"=",0]
[null,null,null,null,"AT",null,null,null,"=",0]
[null,null,null,null,"AT  ",null,null,null,"=",0]
[null,null,null,null,null,null,null,"TOTAL","=",{"$f":"SUM(J173:J179)","v":0}]
[]
[]
[null,null,null,null,null,"TOTAL SECTION B (DIRECT COST)","=",{"$f":"SUM(J152,J160,J170,J180)","v":0}]
[]
[]
[null,"PROJECT ESTIMATE TOTALS"]
[]
[null,"SECTION A TOTAL =",null,null,null,{"$f":"SUM(H138)","v":0}]
[null,"SECTION B TOTAL = ",null,null,null,{"$f":"SUM(H183)","v":0}]
[]
[null,"TOTAL PROJECT ESTIMATE =",null,null,null,{"$f":"SUM(F188,F189)","v":0}]

{"sheet":"SUE-Cover-Sub2","index":120,"n_rows":28,"n_cols":13,"rows_kept":28,"cut":false,"hidden":true,"merged":[[0,0,0,8],[1,0,1,8],[12,1,13,2],[19,3,20,8]]}
["NORTH CAROLINA DEPARTMENT OF TRANSPORTATION"]
["LOCATION AND SURVEYS SUBSURFACE UTILITY ENGINEERING (SUE) COST ESTIMATE - SUBCONSULTANT 2"]
[]
[null,null,null,"DATE:",{"$f":"IF(SCOPE.MANDAY.ESTIMATE.PREPARED.BY.DATE=\"\",\"\",SCOPE.MANDAY.ESTIMATE.PREPARED.BY.DATE)","v":""},null,null,null,null,null,null,null,"MI"]
[null,null,null,null,null,null,null,null,null,null,null,null,"FT"]
["CONTRACT:",{"$f":"CONTRACT.NUM","v":0},null,"FIRM:",{"$f":"SUE_SUB2_CONSULTANT_NAME","v":"CONSULTANT NAME"}]
[]
["PUR. ORDER:",null,null,"ADDRESS:"]
[]
[]
["ESTIMATE PREPARED BY: ",null,null,{"$f":"IF(SCOPE.MANDAY.ESTIMATE.PREPARED.BY=\"\",\"\",SCOPE.MANDAY.ESTIMATE.PREPARED.BY)","v":""}]
[]
[null,{"$f":"WBS.NUMBER","v":""}]
["WBS:",null,null,"COUNTY:",{"$f":"IF(COUNTY=\"\",\"\",COUNTY)","v":""},"ROUTE:",null,"TIP NO.:",{"$f":"IF(TIP.NUMBER=\"\",\"\",TIP.NUMBER)","v":""}]
[]
["LENGTH:",{"$f":"SUM(C17+C18+H17+H18)","v":0},{"$f":"D17","v":"MI"},null,null,null,null,"LS NO.:"]
[null,"L-LINE:",null,"MI",null,null,"RAMPS",null,{"$f":"D17","v":"MI"}]
[null,"Y-LINE(S):",null,{"$f":"D17","v":"MI"},null,null,"RAILROADS:",null,{"$f":"D17","v":"MI"}]
[]
["PROJECT DESCRIPTION:",null,null,{"$f":"PROJECT.DESCRIPTION","v":0}]
[]
[]
[]
[]
[]
[]
[]
[null,null,null,null,"TOTAL PROJECT ESTIMATE:",null,null,{"$f":"'SUE-Estimate-Sub2'!F191","v":0}]

{"sheet":"SUE-Manhours-Sub2","index":121,"n_rows":51,"n_cols":21,"rows_kept":51,"cut":false,"hidden":true,"merged":[[13,0,13,1],[3,1,3,19],[5,8,5,10],[6,8,6,10],[9,2,10,19],[12,2,12,18],[22,0,22,1],[14,13,16,13],[14,14,16,14],[14,15,16,15],[14,16,16,16],[14,7,16,7],[14,8,16,8],[14,9,16,9],[14,10,16,10],[14,11,16,11],[14,12,16,12],[14,0,14,1],[14,2,16,2],[14,3,16,3],[14,4,16,4],[14,5,16,5],[14,20,16,20],[18,0,18,1],[19,0,19,1],[20,0,20,1],[21,0,21,1],[14,17,16,17],[14,18,16,18],[14,6,16,6],[23,20,24,20],[27,10,28,10],[30,2,30,18],[31,0,31,1],[32,0,32,1],[32,2,34,2],[32,3,34,3],[32,4,34,4],[32,5,34,5],[32,6,34,6],[32,20,34,20],[32,17,34,17],[32,18,34,18],[39,0,39,1],[32,13,34,13],[32,14,34,14],[32,15,34,15],[32,16,34,16],[32,7,34,7],[32,8,34,8],[32,9,34,9],[32,10,34,10],[32,11,34,11],[32,12,34,12],[35,0,35,1],[36,0,36,1],[37,0,37,1],[38,0,38,1],[46,20,47,20],[50,19,50,20],[40,0,40,1],[41,0,41,1],[42,0,42,1],[43,0,43,1],[44,0,44,1],[45,0,45,1]]}
["            NORTH CAROLINA DEPARTMENT OF TRANSPORTATION"]
["LOCATION AND SURVEYS SUE COST ESTIMATE - SUBCONSULTANT 2"]
[]
[null,"SECTION A:"]
[]
[null,null,null,null,null,null,null,"TIP NUMBER:",{"$f":"TIP.NUMBER","v":0}]
[null,null,null,null,null,null,null,"PEF NAME:",{"$f":"'SUE-Cover-Sub2'!E6","v":"CONSULTANT NAME"}]
[]
[null,"1. MOBILIZATION FOR PROJECTS WORKHOURS BY CLASSIFICATION:"]
[null,null,{"$f":"'SUE-Cover-Sub2'!D20","v":0}]
["DESCRIPTION:"]
[]
[null,null,"ESTIMATE WORKHOURS"]
["Employee Name",null,{"$f":"SUE_SUB2_CONSULTANT_SR.CADD.TECHNICIAN_NAME","v":0},{"$f":"SUE_SUB2_CONSULTANT_PROJECT.MANAGER_NAME","v":0},{"$f":"SUE_SUB2_CONSULTANT_CADD.TECHNICIAN_NAME","v":0},{"$f":"SUE_SUB2_CONSULTANT_SURVEY.ANALYST_NAME","v":0},{"$f":"SUE_SUB2_CONSULTANT_SUE.PROJ.ANALYST_NAME","v":0},{"$f":"SUE_SUB2_CONSULTANT_TECHNICIAN.II_NAME","v":0},{"$f":"SUE_SUB2_CONSULTANT_TECHNICIAN.I_NAME","v":0},{"$f":"SUE_SUB2_CONSULTANT_ACCOUNTING.CLERK_NAME","v":0},{"$f":"SUE_SUB2_CONSULTANT_PRINCIPAL.PROF.ENGR_NAME","v":0},{"$f":"IF('SUE-Estimate-Sub2'!A27=\"\",\"\",LEFT('SUE-Estimate-Sub2'!A27,4))","v":""},{"$f":"IF('SUE-Estimate-Sub2'!A28=\"\",\"\",LEFT('SUE-Estimate-Sub2'!A28,4))","v":""},{"$f":"IF('SUE-Estimate-Sub2'!A29=\"\",\"\",LEFT('SUE-Estimate-Sub2'!A29,4))","v":""},{"$f":"IF('SUE-Estimate-Sub2'!A30=\"\",\"\",LEFT('SUE-Estimate-Sub2'!A30,4))","v":""},{"$f":"IF('SUE-Estimate-Sub2'!A31=\"\",\"\",LEFT('SUE-Estimate-Sub2'!A31,4))","v":""},{"$f":"IF('SUE-Estimate-Sub2'!A32=\"\",\"\",LEFT('SUE-Estimate-Sub2'!A32,4))","v":""},{"$f":"IF('SUE-Estimate-Sub2'!A33=\"\",\"\",LEFT('SUE-Estimate-Sub2'!A33,4))","v":""},{"$f":"IF('SUE-Estimate-Sub2'!A34=\"\",\"\",LEFT('SUE-Estimate-Sub2'!A34,4))","v":""}]
["Classification",null,{"$f":"'SUE-Estimate-Sub2'!B18","v":"SR CADD TECHNICIAN"},{"$f":"'SUE-Estimate-Sub2'!B19","v":"PROJECT MANAGER"},{"$f":"'SUE-Estimate-Sub2'!B20","v":"CADD TECHNICIAN"},{"$f":"'SUE-Estimate-Sub2'!B21","v":"SURVEY ANALYST"},{"$f":"'SUE-Estimate-Sub2'!B22","v":"SUE PROJ. ANALYST"},{"$f":"'SUE-Estimate-Sub2'!B23","v":"TECHNICIAN II"},{"$f":"'SUE-Estimate-Sub2'!B24","v":"TECHNICIAN I"},{"$f":"'SUE-Estimate-Sub2'!B25","v":"ACCOUNTING CLERK"},{"$f":"'SUE-Estimate-Sub2'!B26","v":"PRINCIPAL / PROF. ENGR."},{"$f":"'SUE-Estimate-Sub2'!B27","v":""},{"$f":"'SUE-Estimate-Sub2'!B28","v":""},{"$f":"'SUE-Estimate-Sub2'!B29","v":""},{"$f":"'SUE-Estimate-Sub2'!B30","v":""},{"$f":"'SUE-Estimate-Sub2'!B31","v":""},{"$f":"'SUE-Estimate-Sub2'!B32","v":""},{"$f":"'SUE-Estimate-Sub2'!B33","v":""},{"$f":"'SUE-Estimate-Sub2'!B34","v":""},null,"NOTES"]
["TASKS &"]
["PARAMETERS",null,null,null,null,null,null,null,null,null,null,null,null,null,null,null,null,null,null,"TOTAL"]
["TRAVEL",null,null,null,null,null,null,null,null,null,null,null,null,null,null,null,null,null,null,{"$f":"SUM(C18:S18)","v":0}]
[null,null,null,null,null,null,null,null,null,null,null,null,null,null,null,null,null,null,null,0]
[null,null,null,null,null,null,null,null,null,null,null,null,null,null,null,null,null,null,null,0]
[null,null,null,null,null,null,null,null,null,null,null,null,null,null,null,null,null,null,null,0]
[null,null,null,null,null,null,null,null,null,null,null,null,null,null,null,null,null,null,null,0]
[null,null,null,null,null,null,null,null,null,null,null,null,null,null,null,null,null,null,null,0]
["TOTAL",null,{"$f":"SUM(C18:C23)","v":0},0,0,0,0,0,0,0,0,0,0,0,0,0,0,0,0,0,{"$f":"T24/8","v":0}]
[]
[null,null,null,null,null,null,null,null,null,null,null,null,null,null,null,null,null,null,null,null,"WORKDAYS"]
[null,"2. TASK/PARAMETER WORKHOURS BY CLASSIFICATION:"]
[null,null,null,"Choose","Records Research For Quality Level D Mapping",null,null,null,null,null,"via X selection"]
[null,null,null,"One","Special Projects Authorized by PEF Coordinator"]
[]
[null,null,"ESTIMATE WORKHOURS",null,null,null,null,null,null,null,null,null,null,null,null,null,null,null,null,null,"X"]
["Employee Name",null,{"$f":"C14","v":0},0,0,0,0,0,0,0,0,{"$f":"L14","v":""},{"$f":"M14","v":""},"","","","","",""]
["Classification",null,"SR CADD TECHNICIAN","PROJECT MANAGER","CADD TECHNICIAN","SURVEY ANALYST","SUE PROJ. ANALYST","TECHNICIAN II","TECHNICIAN I","ACCOUNTING CLERK","PRINCIPAL / PROF. ENGR.","","","","","","","","",null,"NOTES"]
["TASKS &"]
["PARAMETERS",null,null,null,null,null,null,null,null,null,null,null,null,null,null,null,null,null,null,"TOTAL"]
["Utility Records Research & Retrieval",null,null,null,null,null,null,null,null,null,null,null,null,null,null,null,null,null,null,{"$f":"SUM(C36:S36)","v":0}]
["Hourly Field SUE Investigations",null,null,null,null,null,null,null,null,null,null,null,null,null,null,null,null,null,null,0]
["Mapping of SUE Utility Data",null,null,null,null,null,null,null,null,null,null,null,null,null,null,null,null,null,null,0]
["Hourly Field Aerial Investigations",null,null,null,null,null,null,null,null,null,null,null,null,null,null,null,null,null,null,0]
["Mapping of Aerial Utility Data",null,null,null,null,null,null,null,null,null,null,null,null,null,null,null,null,null,null,0]
["Preparation of Final SUE Deliverable",null,null,null,null,null,null,null,null,null,null,null,null,null,null,null,null,null,null,0]
[null,null,null,null,null,null,null,null,null,null,null,null,null,null,null,null,null,null,null,0]
[null,null,null,null,null,null,null,null,null,null,null,null,null,null,null,null,null,null,null,0]
[null,null,null,null,null,null,null,null,null,null,null,null,null,null,null,null,null,null,null,0]
[null,null,null,null,null,null,null,null,null,null,null,null,null,null,null,null,null,null,null,0]
[null,null,null,null,null,null,null,null,null,null,null,null,null,null,null,null,null,null,null,0]
["TOTAL",null,{"$f":"SUM(C36:C46)","v":0},0,0,0,0,0,0,0,0,0,0,0,0,0,0,0,0,0,{"$f":"T47/8","v":0}]
[]
[null,null,null,null,null,null,null,null,null,null,null,null,null,null,null,null,null,null,null,null,"WORKDAYS"]
[null,null,null,null,null,null,null,null,null,null,null,null,null,null,null,null,null,null,null,null,{"$f":"SUM(U24,U47)","v":0}]
[null,null,null,null,null,null,null,null,null,null,null,null,null,null,null,null,null,null,null,"TOTAL WORKDAYS"]

{"sheet":"SUE-Estimate-Sub2","index":122,"n_rows":191,"n_cols":12,"rows_kept":191,"cut":false,"hidden":true,"merged":[[99,1,99,2],[3,2,3,5],[3,7,3,8],[5,4,5,6],[7,1,8,1],[7,2,8,9],[81,4,81,5],[83,2,83,3],[84,2,84,3],[85,2,85,3],[97,1,97,2],[98,1,98,2],[142,2,144,9],[100,1,100,2],[101,1,101,2],[106,4,106,5],[108,2,108,3],[109,2,109,3],[110,2,110,3],[122,1,122,2],[123,1,123,2],[124,1,124,2],[125,1,125,2],[126,1,126,2],[177,1,177,2],[178,1,178,2],[154,1,154,2],[172,1,172,2],[173,1,173,2],[174,1,174,2],[175,1,175,2],[176,1,176,2]]}
[null,null,null,"NORTH CAROLINA DEPARTMENT OF TRANSPORTATION"]
[null,null,"                      LOCATION AND SURVEYS SUE COST ESTIMATE - SUBCONSULTANT 2"]
[]
[null,"PEF NAME:",{"$f":"'SUE-Cover-Sub2'!E6","v":"CONSULTANT NAME"},null,null,null,"TIP NUMBER:",{"$f":"TIP.NUMBER","v":0}]
[]
[null,"CONTRACT:",{"$f":"'SUE-Cover-Sub2'!B6","v":0},"WBS:",{"$f":"'SUE-Cover-Sub2'!B13","v":""},null,null,"LENGTH:",{"$f":"'SUE-Cover-Sub2'!B16","v":0}]
[]
[null,"PROJECT DESCRIPTION:",{"$f":"'SUE-Cover-Sub2'!D20","v":0}]
[]
[]
[null,"SECTION A cont.:"]
[null,"TASK & PARAMETERS"]
[null,"(Direct & Indirect Cost based on negotiated contract items.)"]
[]
[null,"1. MOBILIZATION FOR PROJECTS WORKHOURS BY CLASSIFICATION:"]
[null," (See Section D for Tasks & Parameters)"]
["EMPLOYEE NAME",null,null,null,null,"RATE"]
[{"$f":"SUE_SUB2_CONSULTANT_SR.CADD.TECHNICIAN_NAME","v":0},{"$f":"IF('PEF CLASSIFICATION SHEET'!C243=\"\",\"\",'PEF CLASSIFICATION SHEET'!C243)","v":"SR CADD TECHNICIAN"},null,{"$f":"'SUE-Manhours-Sub2'!C24","v":0},"HRS. X",{"$f":"SUE_SUB2_CONSULTANT_SR.CADD.TECHNICIAN_RATE","v":0},"PER HR.",null,"=",{"$f":"IF(D18=0,0,ROUND((D18*F18),2))","v":0}]
[{"$f":"SUE_SUB2_CONSULTANT_PROJECT.MANAGER_NAME","v":0},{"$f":"IF('PEF CLASSIFICATION SHEET'!C244=\"\",\"\",'PEF CLASSIFICATION SHEET'!C244)","v":"PROJECT MANAGER"},null,{"$f":"'SUE-Manhours-Sub2'!D24","v":0},"HRS. X",{"$f":"SUE_SUB2_CONSULTANT_PROJECT.MANAGER_RATE","v":0},"PER HR.",null,"=",0]
[{"$f":"SUE_SUB2_CONSULTANT_CADD.TECHNICIAN_NAME","v":0},{"$f":"IF('PEF CLASSIFICATION SHEET'!C245=\"\",\"\",'PEF CLASSIFICATION SHEET'!C245)","v":"CADD TECHNICIAN"},null,{"$f":"'SUE-Manhours-Sub2'!E24","v":0},"HRS. X",{"$f":"SUE_SUB2_CONSULTANT_CADD.TECHNICIAN_RATE","v":0},"PER HR.",null,"=",0]
[{"$f":"SUE_SUB2_CONSULTANT_SURVEY.ANALYST_NAME","v":0},{"$f":"IF('PEF CLASSIFICATION SHEET'!C246=\"\",\"\",'PEF CLASSIFICATION SHEET'!C246)","v":"SURVEY ANALYST"},null,{"$f":"'SUE-Manhours-Sub2'!F24","v":0},"HRS. X",{"$f":"SUE_SUB2_CONSULTANT_SURVEY.ANALYST_RATE","v":0},"PER HR.",null,"=",0]
[{"$f":"SUE_SUB2_CONSULTANT_SUE.PROJ.ANALYST_NAME","v":0},{"$f":"IF('PEF CLASSIFICATION SHEET'!C247=\"\",\"\",'PEF CLASSIFICATION SHEET'!C247)","v":"SUE PROJ. ANALYST"},null,{"$f":"'SUE-Manhours-Sub2'!G24","v":0},"HRS. X",{"$f":"SUE_SUB2_CONSULTANT_SUE.PROJ.ANALYST_RATE","v":0},"PER HR.",null,"=",0]
[{"$f":"SUE_SUB2_CONSULTANT_TECHNICIAN.II_NAME","v":0},{"$f":"IF('PEF CLASSIFICATION SHEET'!C248=\"\",\"\",'PEF CLASSIFICATION SHEET'!C248)","v":"TECHNICIAN II"},null,{"$f":"'SUE-Manhours-Sub2'!H24","v":0},"HRS. X",{"$f":"SUE_SUB2_CONSULTANT_TECHNICIAN.II_RATE","v":0},"PER HR.",null,"=",0]
[{"$f":"SUE_SUB2_CONSULTANT_TECHNICIAN.I_NAME","v":0},{"$f":"IF('PEF CLASSIFICATION SHEET'!C249=\"\",\"\",'PEF CLASSIFICATION SHEET'!C249)","v":"TECHNICIAN I"},null,{"$f":"'SUE-Manhours-Sub2'!I24","v":0},"HRS. X",{"$f":"SUE_SUB2_CONSULTANT_TECHNICIAN.I_RATE","v":0},"PER HR.",null,"=",0]
[{"$f":"SUE_SUB2_CONSULTANT_ACCOUNTING.CLERK_NAME","v":0},{"$f":"IF('PEF CLASSIFICATION SHEET'!C250=\"\",\"\",'PEF CLASSIFICATION SHEET'!C250)","v":"ACCOUNTING CLERK"},null,{"$f":"'SUE-Manhours-Sub2'!J24","v":0},"HRS. X",{"$f":"SUE_SUB2_CONSULTANT_ACCOUNTING.CLERK_RATE","v":0},"PER HR.",null,"=",0]
[{"$f":"SUE_SUB2_CONSULTANT_PRINCIPAL.PROF.ENGR_NAME","v":0},{"$f":"IF('PEF CLASSIFICATION SHEET'!C251=\"\",\"\",'PEF CLASSIFICATION SHEET'!C251)","v":"PRINCIPAL / PROF. ENGR."},null,{"$f":"'SUE-Manhours-Sub2'!K24","v":0},"HRS. X",{"$f":"SUE_SUB2_CONSULTANT_PRINCIPAL.PROF.ENGR_RATE","v":0},"PER HR.",null,"=",0]
[{"$f":"LEFT('PEF CLASSIFICATION SHEET'!D1045,4)","v":""},{"$f":"IF('PEF CLASSIFICATION SHEET'!C1045=\"\",\"\",'PEF CLASSIFICATION SHEET'!C1045)","v":""},null,{"$f":"'SUE-Manhours-Sub2'!L24","v":0},"HRS. X",{"$f":"'PEF CLASSIFICATION SHEET'!E1045","v":0},"PER HR.",null,"=",0]
[{"$f":"LEFT('PEF CLASSIFICATION SHEET'!D1046,4)","v":""},{"$f":"IF('PEF CLASSIFICATION SHEET'!C1046=\"\",\"\",'PEF CLASSIFICATION SHEET'!C1046)","v":""},null,{"$f":"'SUE-Manhours-Sub2'!M24","v":0},"HRS. X",{"$f":"'PEF CLASSIFICATION SHEET'!E1046","v":0},"PER HR.",null,"=",0]
[{"$f":"LEFT('PEF CLASSIFICATION SHEET'!D1047,4)","v":""},{"$f":"IF('PEF CLASSIFICATION SHEET'!C1047=\"\",\"\",'PEF CLASSIFICATION SHEET'!C1047)","v":""},null,{"$f":"'SUE-Manhours-Sub2'!N24","v":0},"HRS. X",{"$f":"'PEF CLASSIFICATION SHEET'!E1047","v":0},"PER HR.",null,"=",0]
[{"$f":"LEFT('PEF CLASSIFICATION SHEET'!D1048,4)","v":""},{"$f":"IF('PEF CLASSIFICATION SHEET'!C1048=\"\",\"\",'PEF CLASSIFICATION SHEET'!C1048)","v":""},null,{"$f":"'SUE-Manhours-Sub2'!O24","v":0},"HRS. X",{"$f":"'PEF CLASSIFICATION SHEET'!E1048","v":0},"PER HR.",null,"=",0]
[{"$f":"LEFT('PEF CLASSIFICATION SHEET'!D1049,4)","v":""},{"$f":"IF('PEF CLASSIFICATION SHEET'!C1049=\"\",\"\",'PEF CLASSIFICATION SHEET'!C1049)","v":""},null,{"$f":"'SUE-Manhours-Sub2'!P24","v":0},"HRS. X",{"$f":"'PEF CLASSIFICATION SHEET'!E1049","v":0},"PER HR.",null,"=",0]
[{"$f":"LEFT('PEF CLASSIFICATION SHEET'!D1050,4)","v":""},{"$f":"IF('PEF CLASSIFICATION SHEET'!C1050=\"\",\"\",'PEF CLASSIFICATION SHEET'!C1050)","v":""},null,{"$f":"'SUE-Manhours-Sub2'!Q24","v":0},"HRS. X",{"$f":"'PEF CLASSIFICATION SHEET'!E1050","v":0},"PER HR.",null,"=",0]
[{"$f":"LEFT('PEF CLASSIFICATION SHEET'!D1051,4)","v":""},{"$f":"IF('PEF CLASSIFICATION SHEET'!C1051=\"\",\"\",'PEF CLASSIFICATION SHEET'!C1051)","v":""},null,{"$f":"'SUE-Manhours-Sub2'!R24","v":0},"HRS. X",{"$f":"'PEF CLASSIFICATION SHEET'!E1051","v":0},"PER HR.",null,"=",0]
[{"$f":"LEFT('PEF CLASSIFICATION SHEET'!D1052,4)","v":""},{"$f":"IF('PEF CLASSIFICATION SHEET'!C1052=\"\",\"\",'PEF CLASSIFICATION SHEET'!C1052)","v":""},null,{"$f":"'SUE-Manhours-Sub2'!S24","v":0},"HRS. X",{"$f":"'PEF CLASSIFICATION SHEET'!E1052","v":0},"PER HR.",null,"=",0]
[null,null,"TOTAL HRS =",{"$f":"SUM(D18:D29)","v":0},null,null,"TOTAL",null,"=",{"$f":"SUM(J18:J34)","v":0}]
[]
[null,"                                          TOTAL DIRECT & INDIRECT SALARY COST"]
[null,"COST",null,null,null,null,"RATE",null,null,"TOTAL"]
[null,"TOTAL DIRECT LABOR",null,null,null,null,null,null,null,{"$f":"SUM(J35:J36)","v":0}]
[null,"OVERHEAD (PERCENT)",null,null,null,null,{"$f":"SUE_SUB2_CONSULTANT_OVERHEAD","v":0},null,null,{"$f":"ROUND((J39*G40),2)","v":0}]
[null,"SUBTOTAL",null,null,null,null,null,null,null,{"$f":"SUM(J39:J40)","v":0}]
[null,"FEE (PERCENT)",null,null,null,null,{"$f":"SUE_SUB2_CONSULTANT_FEE","v":0.09},null,null,{"$f":"ROUND((J41*G42),2)","v":0}]
[null,"COST OF CAPITAL",null,null,null,null,{"$f":"SUE_SUB2_CONSULTANT_COSTofCAPITAL","v":0},null,null,{"$f":"ROUND((J39*G43),2)","v":0}]
[null,"TOTAL",null,null,null,null,null,null,null,{"$f":"SUM(J41:J43)","v":0}]
[]
[null,"2. TASK/PARAMETER WORKHOURS BY CLASSIFICATION:"]
[]
[null,"Records Research For Quality Level D Mapping",null,null,{"$f":"'SUE-Manhours-Sub2'!$J$28","v":0},{"$f":"'SUE-Manhours-Sub2'!J30","v":0},null,"Special Projects Authorized by PEF Coordinator",null,null,null,{"$f":"'SUE-Manhours-Sub2'!$J$29","v":0}]
[]
["EMPLOYEE NAME"]
[{"$f":"A18","v":0},"SR CADD TECHNICIAN",null,{"$f":"'SUE-Manhours-Sub2'!C47","v":0},"HRS. X",{"$f":"F18","v":0},"PER HR.",null,"=",{"$f":"ROUND((D51*F51),2)","v":0}]
[0,"PROJECT MANAGER",null,{"$f":"'SUE-Manhours-Sub2'!D47","v":0},"HRS. X",0,"PER HR.",null,"=",0]
[0,"CADD TECHNICIAN",null,{"$f":"'SUE-Manhours-Sub2'!E47","v":0},"HRS. X",0,"PER HR.",null,"=",0]
[0,"SURVEY ANALYST",null,{"$f":"'SUE-Manhours-Sub2'!F47","v":0},"HRS. X",0,"PER HR.",null,"=",0]
[0,"SUE PROJ. ANALYST",null,{"$f":"'SUE-Manhours-Sub2'!G47","v":0},"HRS. X",0,"PER HR.",null,"=",0]
[0,"TECHNICIAN II",null,{"$f":"'SUE-Manhours-Sub2'!H47","v":0},"HRS. X",0,"PER HR.",null,"=",0]
[0,"TECHNICIAN I",null,{"$f":"'SUE-Manhours-Sub2'!I47","v":0},"HRS. X",0,"PER HR.",null,"=",0]
[0,"ACCOUNTING CLERK",null,{"$f":"'SUE-Manhours-Sub2'!J47","v":0},"HRS. X",0,"PER HR.",null,"=",0]
[0,"PRINCIPAL / PROF. ENGR.",null,{"$f":"'SUE-Manhours-Sub2'!K47","v":0},"HRS. X",0,"PER HR.",null,"=",0]
["","",null,{"$f":"'SUE-Manhours-Sub2'!L47","v":0},"HRS. X",0,"PER HR.",null,"=",0]
["","",null,{"$f":"'SUE-Manhours-Sub2'!M47","v":0},"HRS. X",0,"PER HR.",null,"=",0]
["","",null,{"$f":"'SUE-Manhours-Sub2'!N47","v":0},"HRS. X",0,"PER HR.",null,"=",0]
["","",null,{"$f":"'SUE-Manhours-Sub2'!N49","v":0},"HRS. X",0,"PER HR.",null,"=",0]
["","",null,{"$f":"'SUE-Manhours-Sub2'!N51","v":0},"HRS. X",0,"PER HR.",null,"=",0]
["","",null,{"$f":"'SUE-Manhours-Sub2'!N53","v":0},"HRS. X",0,"PER HR.",null,"=",0]
["","",null,{"$f":"'SUE-Manhours-Sub2'!N55","v":0},"HRS. X",0,"PER HR.",null,"=",0]
[{"$f":"A34","v":""},"",null,{"$f":"'SUE-Manhours-Sub2'!N57","v":0},"HRS. X",0,"PER HR.",null,"=",0]
[]
[null,null,"TOTAL HRS =",{"$f":"SUM(D51:D67)","v":0},null,null,null,"TOTAL","=",{"$f":"SUM(J51:J67)","v":0}]
[]
[null,"                                          TOTAL DIRECT & INDIRECT SALARY COST"]
[null,"COST",null,null,null,null,"RATE",null,null,"TOTAL"]
[null,"TOTAL DIRECT LABOR",null,null,null,null,null,null,null,{"$f":"SUM(J69:J70)","v":0}]
[null,"OVERHEAD (PERCENT)",null,null,null,null,{"$f":"G40","v":0},null,null,{"$f":"ROUND((J73*G74),2)","v":0}]
[null,"SUBTOTAL",null,null,null,null,null,null,null,{"$f":"SUM(J73:J74)","v":0}]
[null,"FEE (PERCENT)",null,null,null,null,{"$f":"G42","v":0.09},null,null,{"$f":"ROUND((J75*G76),2)","v":0}]
[null,"COST OF CAPITAL",null,null,null,null,{"$f":"G43","v":0},null,null,{"$f":"ROUND((J73*G77),2)","v":0}]
[null,"TOTAL",null,null,null,null,null,null,null,{"$f":"SUM(J75:J77)","v":0}]
[]
[null,"4.  QUALITY LEVEL C MAPPING :",null,null,"TOTAL LINEAR FOOT ESTIMATE"]
[]
[null,null,null,null,"LN FT RANGE"]
[null,"LINEAR FEET RANGE VALUES",null,null,"> or >/=","< or </=","RATE"]
[null,null,"lower range",null,0,{"$f":"E85","v":0},null,null,null,null,null,0]
[null,null,"mid range",null,null,0]
[null,null,"upper range",null,{"$f":"F85","v":0}]
[]
[null,null,"UTILITY",null,"LN FT",null,"RATE",null,null,"FEE"]
[null,"SEWER FORCE MAIN",null,null,null,null,{"$f":"IF(E89<$F$84,$G$84,IF(E89>$E$86,$G$86,$G$85))","v":0},null,null,{"$f":"ROUND((E89*G89),2)","v":0}]
[null,"WATER",null,null,null,null,0,null,null,0]
[null,"TELEPHONE (Fiber Optic)",null,null,null,null,0," ",null,0]
[null,"TELEPHONE (Dir Bur)",null,null,null,null,0,null,null,0]
[null,"TELEPHONE (Duct)",null,null,null,null,0,null,null,0]
[null,"GAS",null,null,null,null,0,null,null,0]
[null,"ELECTRIC",null,null,null,null,0,null,null,0]
[null,"CABLE (Fiber Optic)",null,null,null,null,0,null,null,0]
[null,"CABLE (Dir Bur)",null,null,null,null,0,null,null,0]
[null,null,null,null,null,null,0,null,null,0]
[null,null,null,null,null,null,0,null,null,0]
[null,null,null,null,null,null,0,null,null,0]
[null,null,null,null,null,null,0,null,null,0]
[null,null,null,null,null,null,0,null,null,0]
[null,null,null,null,{"$f":"SUM(E89:E102)","v":0},null,null,"TOTAL","=",{"$f":"SUM(J89:J102)","v":0}]
[]
[null,"5. QUALITY LEVEL B SERVICES:",null,null,"TOTAL DESIGNATING LF ESTIMATE"]
[]
[null,null,null,null,"LN FT RANGE"]
[null,"LINEAR FEET RANGE VALUES",null,null,"> or >/=","< or </=","RATE"]
[null,null,"lower range",null,0,{"$f":"E110","v":0},null,null,null,null,null,0]
[null,null,"mid range"]
[null,null,"upper range",null,{"$f":"F110","v":0}]
[]
[null,null,"UTILITY",null,"LN FT",null,"RATE",null,null,"FEE"]
[null,"SEWER FORCE MAIN",null,null,null,null,{"$f":"IF(E114<$F$109,$G$109,IF(E114>$E$111,$G$111,$G$110))","v":0},null,null,{"$f":"ROUND((E114*G114),2)","v":0}]
[null,"WATER",null,null,null,null,0,null,null,0]
[null,"TELEPHONE (Fiber Optic)",null,null,null,null,0," ",null,0]
[null,"TELEPHONE (Dir Bur)",null,null,null,null,0,null,null,0]
[null,"TELEPHONE (Duct)",null,null,null,null,0,null,null,0]
[null,"GAS",null,null,null,null,0,null,null,0]
[null,"ELECTRIC",null,null,null,null,0,null,null,0]
[null,"CABLE (Fiber Optic)",null,null,null,null,0,null,null,0]
[null,"CABLE (Dir Bur)",null,null,null,null,0,null,null,0]
[null,null,null,null,null,null,0,null,null,0]
[null,null,null,null,null,null,0,null,null,0]
[null,null,null,null,null,null,0,null,null,0]
[null,null,null,null,null,null,0,null,null,0]
[null,null,null,null,null,null,0,null,null,0]
[null,null,null,null,{"$f":"SUM(E114:E127)","v":0},null,null,"TOTAL","=",{"$f":"SUM(J114:J127)","v":0}]
[]
[null,"6. QUALITY LEVEL A SERVICES:",null,null,"TOTAL LOCATING SERVICES"]
[]
[null,"     A.  LESS THAN 10 TEST HOLES:",null,null,null,"AT ",null,"PER TEST HOLE =",null,{"$f":"SUM(E132*G132)","v":0}]
[null,"     B.  10 OR MORE TEST HOLES:",null,null,null,"AT ",null,"PER TEST HOLE =",null,{"$f":"SUM(E133*G133)","v":0}]
[null,"     C. EXTRA DEPTH BELOW 6 FEET:",null,null,null,"AT ",null,"PER FT =",null,{"$f":"SUM(E134*G134)","v":0}]
[null,null,null,null,null,null,null,"TOTAL","=",{"$f":"SUM(J132:J134)","v":0}]
[]
[]
[null,null,null,null,"TOTAL OF SECTION A: =",null,null,{"$f":"SUM(J44,J78,J103,J128,J135)","v":0}]
[]
[]
[null,"SECTION B:","DIRECT COSTS"]
[]
[null,null,{"$f":"'SUE-Cover-Sub2'!D20","v":0}]
[]
[null,"DESCRIPTION:"]
[]
[null,"(1) VEHICLE USAGE:"]
[]
[null,"AUTOMOBILE:",null,null,"MILES AT  ",{"$f":"SEDAN","v":0.7},null,"PER MILE","=",{"$f":"SUM(D149*F149)","v":0}]
[null,"CARRYALL:",null,null,"MILES AT ",{"$f":"CARRYALL","v":0.72},null,"PER MILE ","=",{"$f":"SUM(D150*F150)","v":0}]
[null,"VACUUM TRUCK:",null,null,"MILES AT",null,null,"PER MILE","=",{"$f":"SUM(D151*F151)","v":0}]
[null,null,null,null,null,null,"TOTAL MILEAGE=",null,null,{"$f":"SUM(J149:J151)","v":0}]
[null,"(2) PER DIEM:"]
[]
[null,"MEALS (BREAKFAST+LUNCH+DINNER):",null,null,"DAYS AT  ",{"$f":"BREAKFAST+LUNCH+DINNER","v":46.5},null,"PER DAY","=",{"$f":"SUM(D155*F155)","v":0}]
[null,"BREAKFAST:",null,null,"DAYS AT  ",{"$f":"BREAKFAST","v":10.1},null,"PER DAY","=",{"$f":"SUM(D156*F156)","v":0}]
[null,"LUNCH:",null,null,"DAYS AT  ",{"$f":"LUNCH","v":13.3},null,"PER DAY","=",{"$f":"SUM(D157*F157)","v":0}]
[null,"DINNER:",null,null,"DAYS AT  ",{"$f":"DINNER","v":23.1},null,"PER DAY","=",{"$f":"SUM(D158*F158)","v":0}]
[null,"LODGING:",null,null,"DAYS AT",{"$f":"LODGING_LUMP.SUM","v":95},null,"PER DAY","=",{"$f":"SUM(D159*F159)","v":0}]
[null,null,null,null,null,null,null,"TOTAL PER DIEM","=",{"$f":"SUM(J155:J159)","v":0}]
[null,"(3) REPRODUCTION:"]
[]
[null,"XEROX COPIES",null,null,"AT",{"$f":"LETTERCOPIES","v":0.14000000000000001},null,"PER COPY","=",{"$f":"SUM(D163*F163)","v":0}]
[null,"BLUEPRINTS",null,null,"AT",{"$f":"BLUEPRINTSLETTER","v":0.35},null,"PER SHEET","=",0]
[null,"BOND",null,null,"AT",{"$f":"BOND.REGULAR","v":0.42},null,"PER SHEET","=",0]
[null,"MYLARS",null,null,"AT",{"$f":"MYLARSLETTER","v":7.32},null,"PER SHEET","=",0]
[null,"VELLUMS",null,null,"AT",{"$f":"VELLUMS","v":3},null,"PER SHEET","=",0]
[null,"STICK-ONS",null,null,"AT",{"$f":"STICK.ONS","v":1},null,"PER SHEET","=",0]
[null,"COVERS & BINDINGS",null,null,"AT  ",{"$f":"COVERS+BINDERS","v":1},null,"PER SHEET","=",0]
[null,null,null,null,null,null,null,"TOTAL REPRODUCTIONS","=",{"$f":"SUM(J163:J169)","v":0}]
[null,"(4) MISCELLANEOUS OTHER:"]
[]
[null,null,null,null,"AT",null,null,null,"=",{"$f":"SUM(D173*F173)","v":0}]
[null,null,null,null,"AT",null,null,null,"=",{"$f":"SUM(D174*F174)","v":0}]
[null,null,null,null,"AT",null,null,null,"=",0]
[null,null,null,null,"AT",null,null,null,"=",0]
[null,null,null,null,"AT",null,null,null,"=",0]
[null,null,null,null,"AT",null,null,null,"=",0]
[null,null,null,null,"AT  ",null,null,null,"=",0]
[null,null,null,null,null,null,null,"TOTAL","=",{"$f":"SUM(J173:J179)","v":0}]
[]
[]
[null,null,null,null,null,"TOTAL SECTION B (DIRECT COST)","=",{"$f":"SUM(J152,J160,J170,J180)","v":0}]
[]
[]
[null,"PROJECT ESTIMATE TOTALS"]
[]
[null,"SECTION A TOTAL =",null,null,null,{"$f":"SUM(H138)","v":0}]
[null,"SECTION B TOTAL = ",null,null,null,{"$f":"SUM(H183)","v":0}]
[]
[null,"TOTAL PROJECT ESTIMATE =",null,null,null,{"$f":"SUM(F188,F189)","v":0}]

{"sheet":"Pavement-Sub1","index":123,"n_rows":119,"n_cols":20,"rows_kept":119,"cut":false,"hidden":true,"merged":[[118,3,118,5],[68,0,68,1],[33,0,33,2],[35,0,35,2],[37,0,37,2],[24,0,24,2],[6,1,6,2],[6,3,6,5],[7,1,7,2],[8,0,8,2],[17,3,17,12],[20,0,20,2],[21,0,21,2],[23,0,23,2],[26,0,26,2],[27,0,27,2],[28,0,28,2],[29,0,29,2],[31,0,31,2]]}
["MDEST6.XLS",null,"PAVEMENT MARKING AND MARKERS ESTIMATE WORKSHEET ",null,null,null,null,null,null,null,null,null,null,null,null,null,null,null,null,0]
["REV 06/15/23",null,null,"SUBCONSULTANT 1",null,null,null,null,null,null,null,null,null,null,null,null,null,null,null,1]
[]
[null,null," DATE:"]
[null,null,"TIP #:",{"$f":"IF(TIP.NUMBER=\"\",\"\",TIP.NUMBER)","v":""}]
[]
[null,"CONSULTANT:",null,{"$f":"PAVEMENT.MARKING_SUB1_CONSULTANT_NAME","v":"CONSULTANT NAME"}]
[null,"LSC#:",null,{"$f":"IF(CONTRACT.NUM=\"\",\"\",CONTRACT.NUM)","v":""}]
["   PREL EST WORKDAYS:",null,null,{"$f":"O42","v":0}]
[]
[]
[" ","EST RDWY SHEETS:",null,null,0,"# DAYS FIELD TRIPS:",null,0]
[null,"TOTAL PLAN SHEETS:",null,null,0,null,null,null,null," "]
[null,"# Y-LINES - INTERCHANGE:",null,null,0]
[null,"# Y-LINES - AT GRADE:",null,null,0]
[null,null,null,null,null,null,"  MILEAGE PER TRIP:",0,"MILES"]
[]
[null,null,null,"ESTIMATED WORKHOURS"]
[null,null,"EMPLOYEE",{"$f":"IF('PEF CLASSIFICATION SHEET'!D1055=\"\",\"\",LEFT('PEF CLASSIFICATION SHEET'!D1055,4))","v":""},{"$f":"IF('PEF CLASSIFICATION SHEET'!D1056=\"\",\"\",LEFT('PEF CLASSIFICATION SHEET'!D1056,4))","v":""},{"$f":"IF('PEF CLASSIFICATION SHEET'!D1057=\"\",\"\",LEFT('PEF CLASSIFICATION SHEET'!D1057,4))","v":""},{"$f":"IF('PEF CLASSIFICATION SHEET'!D1058=\"\",\"\",LEFT('PEF CLASSIFICATION SHEET'!D1058,4))","v":""},{"$f":"IF('PEF CLASSIFICATION SHEET'!D1059=\"\",\"\",LEFT('PEF CLASSIFICATION SHEET'!D1059,4))","v":""},{"$f":"IF('PEF CLASSIFICATION SHEET'!D1060=\"\",\"\",LEFT('PEF CLASSIFICATION SHEET'!D1060,4))","v":""},{"$f":"IF('PEF CLASSIFICATION SHEET'!D1061=\"\",\"\",LEFT('PEF CLASSIFICATION SHEET'!D1061,4))","v":""},{"$f":"IF('PEF CLASSIFICATION SHEET'!D1062=\"\",\"\",LEFT('PEF CLASSIFICATION SHEET'!D1062,4))","v":""},{"$f":"IF('PEF CLASSIFICATION SHEET'!D1063=\"\",\"\",LEFT('PEF CLASSIFICATION SHEET'!D1063,4))","v":""},{"$f":"IF('PEF CLASSIFICATION SHEET'!D1064=\"\",\"\",LEFT('PEF CLASSIFICATION SHEET'!D1064,4))","v":""}]
["TASK",null,null,{"$f":"IF('PEF CLASSIFICATION SHEET'!C1055=\"\",\"\",'PEF CLASSIFICATION SHEET'!C1055)","v":"TEM I"},{"$f":"IF('PEF CLASSIFICATION SHEET'!C1056=\"\",\"\",'PEF CLASSIFICATION SHEET'!C1056)","v":"TES III"},{"$f":"IF('PEF CLASSIFICATION SHEET'!C1057=\"\",\"\",'PEF CLASSIFICATION SHEET'!C1057)","v":"TE II"},{"$f":"IF('PEF CLASSIFICATION SHEET'!C1058=\"\",\"\",'PEF CLASSIFICATION SHEET'!C1058)","v":"TE I"},{"$f":"IF('PEF CLASSIFICATION SHEET'!C1059=\"\",\"\",'PEF CLASSIFICATION SHEET'!C1059)","v":"TT V"},{"$f":"IF('PEF CLASSIFICATION SHEET'!C1060=\"\",\"\",'PEF CLASSIFICATION SHEET'!C1060)","v":""},{"$f":"IF('PEF CLASSIFICATION SHEET'!C1061=\"\",\"\",'PEF CLASSIFICATION SHEET'!C1061)","v":""},{"$f":"IF('PEF CLASSIFICATION SHEET'!C1062=\"\",\"\",'PEF CLASSIFICATION SHEET'!C1062)","v":""},{"$f":"IF('PEF CLASSIFICATION SHEET'!C1063=\"\",\"\",'PEF CLASSIFICATION SHEET'!C1063)","v":""},{"$f":"IF('PEF CLASSIFICATION SHEET'!C1064=\"\",\"\",'PEF CLASSIFICATION SHEET'!C1064)","v":""}," ","TOTAL","NOTES"]
["PRELIMINARY PLAN/MARKING (2SD1)"]
["  Setup & Concept (i.e. obtain pavement marking recommendation letter, set up strip map including proposed pavement markings and delineation, etc.)",null,null,null,null,null,null,null,null,null,null,null,null,null,{"$f":"SUM(D22:M22)","v":0}]
[{"$f":"SUM(O22:O23)","v":0},"HR"]
["MARKING ROADWAY SHEETS (3SD1)"]
["Prepare Marking Plans sheets (callouts, station location, notes,\npavement marking schedule)",null,null,null,null,null,null,null,null,null,null,null,null,null,{"$f":"SUM(D25:M25)","v":0}]
[{"$f":"SUM(O25:O26)","v":0},"HR"]
["MISCELLANEOUS (3SD1)"]
["Alternative Design Markings",null,null,null,null,null,null,null,null,null,null,null,null,null,{"$f":"SUM(D28:M28)","v":0}]
["Curb Ramps",null,null,null,null,null,null,null,null,null,null,null,null,null,0]
["Special Provision",null,null,null,null,null,null,null,null,null,null,null,null,null,0]
[{"$f":"SUM(O28:O30)","v":0},"HR"]
["FINALIZE QUANTITIES (3SD1)"]
[{"$f":"SUM(O33:O33)","v":0},"HR",null,null,null,null,null,null,null,null,null,null,null,null,{"$f":"SUM(D32:M32)","v":0}]
["QC/QA (3SD1)"]
[{"$f":"SUM(O35:O35)","v":0},"HR",null,null,null,null,null,null,null,null,null,null,null,null,{"$f":"SUM(D34:M34)","v":0}]
["ELECTRONIC SUBMITTAL (2SD1,3SD1)"]
[{"$f":"SUM(O37:O37)","v":0},"HR",null,null,null,null,null,null,null,null,null,null,null,null,{"$f":"SUM(D36:M36)","v":0}]
["MEETINGS, ADMIN (2SD1,3SD1)"]
[{"$f":"SUM(O39:O39)","v":0},"HR",null,null,null,null,null,null,null,null,null,null,null,null,{"$f":"SUM(D38:M38)","v":0}]
["TOTAL MAN-HRS",null,null,{"$f":"SUM(D22:D39)","v":0},0,0,0,0,0,0,0,0,0,null,{"$f":"SUM(O22:O39)","v":0}]
["TOTAL WORKDAYS",null,null,{"$f":"D40/8","v":0},0,0,0,0,0,0,0,0,0,null,0]
["TOTAL WORKDAYS",null,null,null,null,null,null,null,null,null,null,null,null,null,{"$f":"O41","v":0}]
[" "]
[]
[]
[null,null,null,"AVERAGE STANDARD RATE PER HOUR"]
[]
[null,null,"A","B","        C","     D",null,null,"    (B*C)/D"]
["CLASSIFICATION"," NO.WORKDAYS",null,"% TOT WD","      RATE","  FACTOR",null,null,"  AVG STD RATE"]
[{"$f":"D20","v":"TEM I"},null,{"$f":"D41","v":0},{"$f":"IF(ISERR(+C50/C$62),0,+C50/C$62)","v":0},{"$f":"'PEF CLASSIFICATION SHEET'!E1055","v":0},1,null,null,{"$f":"IF(ISERR(+D50*E50/F50),0,+D50*E50/F50)","v":0}]
[{"$f":"E20","v":"TES III"},null,{"$f":"E41","v":0},0,{"$f":"'PEF CLASSIFICATION SHEET'!E1056","v":0},{"$f":"$F$50","v":1},null,null,0]
[{"$f":"F20","v":"TE II"},null,{"$f":"F41","v":0},0,{"$f":"'PEF CLASSIFICATION SHEET'!E1057","v":0},1,null,null,0]
[{"$f":"G20","v":"TE I"},null,{"$f":"G41","v":0},0,{"$f":"'PEF CLASSIFICATION SHEET'!E1058","v":0},1,null,null,0]
[{"$f":"H20","v":"TT V"},null,{"$f":"H41","v":0},0,{"$f":"'PEF CLASSIFICATION SHEET'!E1059","v":0},1,null,null,0]
[{"$f":"I20","v":""},null,{"$f":"I41","v":0},0,{"$f":"'PEF CLASSIFICATION SHEET'!E1060","v":0},1,null,null,0]
[{"$f":"J20","v":""},null,{"$f":"J41","v":0},0,{"$f":"'PEF CLASSIFICATION SHEET'!E1061","v":0},1,null,null,0]
[{"$f":"K20","v":""},null,{"$f":"K41","v":0},0,{"$f":"'PEF CLASSIFICATION SHEET'!E1062","v":0},1,null,null,0]
[{"$f":"L20","v":""},null,{"$f":"L41","v":0},0,{"$f":"'PEF CLASSIFICATION SHEET'!E1063","v":0},1,null,null,0]
[{"$f":"M20","v":""},null,{"$f":"M41","v":0},0,{"$f":"'PEF CLASSIFICATION SHEET'!E1064","v":0},1,null,null,0]
[" "," "," "," "," "," ",null,null," "]
[null,null,"_________"," ________",null,null,null,null,"   ___________"]
["  TOTAL",null,{"$f":"SUM(C50:C61)","v":0},{"$f":"SUM(D50:D61)","v":0},null,null,null,null,{"$f":"SUM(I50:I61)","v":0}]
[]
[]
[]
[null,null," SALARIES","    =","(AVG STD RATE)(WORKDAYS)(8 HRS)=",null,null,null,{"$f":"C62*I62*8","v":0}]
[null,null," OVERHEAD","    =",{"$f":"PAVEMENT.MARKING_SUB1_CONSULTANT_OVERHEAD","v":0},"(SALARIES)          =",null,null,{"$f":"I66*E67","v":0}]
[null,null,"      FEE","    =",{"$f":"PAVEMENT.MARKING_SUB1_CONSULTANT_FEE","v":0.09},"(SALARIES+OVERHEAD)      =",null,null,{"$f":"(+I66+I67)*E68","v":0}]
["COST OF CAPITAL",null,{"$f":"PAVEMENT.MARKING_SUB1_CONSULTANT_COSTofCAPITAL","v":0},"    =",null,null,null,null,{"$f":"I66*(C69)","v":0}]
[" TOT. DIR. SALARY COST",null,null,"    =","(SALARIES+OVERHEAD+FEE)       =",null,null,null,{"$f":"SUM(I66:I69)","v":0}]
[]
[]
[]
[null,null,null,null,"     TIP #:",{"$f":"D5","v":""}]
[]
["     DIRECT NON-SALARY COSTS:________________________"]
[null,null,null,null,null,null,null,"   RATE","COST "]
["              TRAVEL:",null,"TRAVEL:",{"$f":"($H$12)","v":0},"TRIPS x",null,null," "," "]
[null,null,null,null,{"$f":"$H$16","v":0},"MILES RNDTRP",null,{"$f":"SEDAN","v":0.7},{"$f":"IF(ISERR(+D78*E79*H79),0,+D78*E79*H79)","v":0}]
[null,null,"1/2 SIZE COPY:",null,"SETS  x"]
[null,null,null,null,{"$f":"$E$13","v":0},"SHEETS/SET",null,{"$f":"LEDGERCOPIES","v":0.34},{"$f":"IF(ISERR(+D80*E81*H81),0,+D80*E81*H81)","v":0}]
[null,null,"ORIGINAL:",null,"SETS  x"]
[null,null,null,null,{"$f":"$E$13","v":0},"SHEETS/SET",null,{"$f":"BOND.REGULAR","v":0.42},{"$f":"IF(ISERR(+D82*E83*H83),0,+D82*E83*H83)","v":0}]
[]
[null,null,"TRIPS:",null,"BREAKFAST","EACH",null,{"$f":"BREAKFAST","v":10.1},{"$f":"IF(ISERR(+D85*H85),0,+D85*H85)","v":0}]
[]
[null,null,null,null,"LUNCH","EACH",null,{"$f":"LUNCH","v":13.3},{"$f":"IF(ISERR(+D87*H87),0,+D87*H87)","v":0}]
[]
[null,null,null,null,"DINNER","EACH",null,{"$f":"DINNER","v":23.1},{"$f":"IF(ISERR(+D89*H89),0,+D89*H89)","v":0}]
[]
[null,null,null,null,"LODGING","EACH",null,{"$f":"LODGING_LUMP.SUM","v":95},{"$f":"IF(ISERR(+D91*H91),0,+D91*H91)","v":0}]
[]
["            MISCELLANEOUS:",null,null,null,null,null,null,null,{"$f":"IF(ISERR(+D93*H93),0,+D93*H93)","v":0}]
[]
[null,null,null,null,null,null,null,null,{"$f":"IF(ISERR(+D95*H95),0,+D95*H95)","v":0}]
[]
[null,null,null,null,null,null,null,null,{"$f":"IF(ISERR(+D97*H97),0,+D97*H97)","v":0}]
[]
[null,null,null,null,null,null,null,null,{"$f":"IF(ISERR(+D99*H99),0,+D99*H99)","v":0}]
[]
[null,null,null,null,null,null,null,null,{"$f":"IF(ISERR(+D101*H101),0,+D101*H101)","v":0}]
[]
[" TOTAL DIRECT NON-SALARY COST - - - - - - - - - - - - - - - - - -",null,null,null,null,null,null,"=",{"$f":"SUM(I79:I101)","v":0}]
[]
[]
[]
[null,null,null,null,"          TOTAL ESTIMATE  ",null,null,"=",{"$f":"I70+I103","v":0}]
[null,null,null,null,"          COST PER WORKDAY  ",null,null,"=",{"$f":"IF(ISERR(+I107/C62),0,+I107/C62)","v":0}]
[]
[]
[null,null,null,null,"          CONSULTANT'S TOTAL =",null,null,null,{"$f":"I107","v":0}]
[]
[null," CONSULTANT'S TOTAL - TOTAL COST IN_HOUSE ESTIMATE"]
[null," ------------------------------------------------- =",null,null,null,null,null,null,{"$f":"IF(+I111=0,\"       \",IF(ISERR((+I111-(+I70+I103))/(+I70+I103)),0,(+I111-(+I70+I103))/(+I70+I103)))","v":"       "}]
[null,null,"      TOTAL COST IN_HOUSE ESTIMATE"]
[]
[]
[]
[" ESTIMATE PREPARED BY:",null,null,{"$f":"IF(SCOPE.MANDAY.ESTIMATE.PREPARED.BY=\"\",\"\",SCOPE.MANDAY.ESTIMATE.PREPARED.BY)","v":""},null,null,null,"DATE:",{"$f":"IF(D4=\"\",\"\",D4)","v":""}]

{"sheet":"RD-Data-Sub1","index":124,"n_rows":64,"n_cols":22,"rows_kept":64,"cut":false,"hidden":true,"merged":[[8,4,10,13],[1,1,1,15],[3,4,3,9],[4,4,4,11],[5,4,5,11],[6,4,6,11],[22,10,22,12],[35,17,37,17],[12,4,14,13],[15,4,15,13],[17,3,17,13],[19,10,19,12],[20,10,20,12],[21,10,21,12]]}
[]
[null,"ROADWAY PROJECT DATA - SUBCONSULTANT 1"]
[]
[null,null,null,"TIP NUMBER :",{"$f":"IF(TIP.NUMBER=\"\",\"\",TIP.NUMBER)","v":""},null,null,null,null,null,null,null,"ESTIMATE SUBMITTAL NUMBER :",{"$f":"IF(ESTIMATE.SUBMITTAL.NUMBER=\"\",\"\",ESTIMATE.SUBMITTAL.NUMBER)","v":""}]
[null,null,null,"WBS NUMBER :",{"$f":"IF(WBS.NUMBER=\"\",\"\",WBS.NUMBER)","v":""}]
[null,null,null,"FA NUMBER :",{"$f":"IF(FA.NUMBER=\"\",\"\",FA.NUMBER)","v":""}]
[null,null,null,"COUNTY :",{"$f":"IF(COUNTY=\"\",\"\",COUNTY)","v":""}]
[]
[null,null,null,"DESCRIPTION :",{"$f":"IF(PROJECT.DESCRIPTION=\"\",\"\",PROJECT.DESCRIPTION)","v":""}]
[]
[]
[]
[null,null,null,"DISCIPLINE(S) SELECTED :  ",{"$f":"IF(TASK.ORDER_SCOPE=\"\",\"\",TASK.ORDER_SCOPE)","v":"PM-Project Mgmt"}]
[]
[]
[null,null,null,"CONSULTANT :",{"$f":"IF(SUBCONSULTANT1.CONSULTANT=\"\",\"\",SUBCONSULTANT1.CONSULTANT)","v":""}]
[]
[null,null,null,"(ENGLISH UNITS)",null,null,null,null,null,null,null,null,null,null,null,null,null,null,null,"(ENGLISH UNITS)"]
[null,null,"     ","TYPE OF FACILITY (Y/N) :",null,null,null,null,null,"     ","NUMBER OF TYPICAL SECTIONS :",null,null,null,null,null,null,null,null,"(METRIC UNITS)"]
[null,null,null,"  BRIDGE PROJECT",null,null,null,null,null,null,"  BASIC SHOULDER ( 2 & 3 LANES )",null,null,null,null,null,null,"TYPICALS TOTAL",null,null,null,"Y"]
[null,null,null,"  2 & 3-LANE SHOULDER",null,null,null,null,null,null,"  BASIC CURB & GUTTER ( 3 LANES )",null,null,null,null,null,null,{"$f":"SUM(N20:N23)","v":0},null,null,null,"N"]
[null,null,null,"  3-LANE C&G",null,null,null,null,null,null,"  MEDIAN SHOULDER ( 4 LANES & UP )"]
[null,null,null,"  MEDIAN DIVIDED ",null,null,null,null,null,null,"  MEDIAN CURB & GUTTER ( 4 LANES & UP )",null,null,null,null,null,null,"LENGTH TOTAL"]
[null,null,null,"  DIVIDED WITH RAISED MEDIAN",null,null,null,null,null,null,null,null,null,null,null,null,null,{"$f":"SUM(G28:G32)","v":0}]
[null,null,null,"  SUPERSTREET",null,null,null,null,null,null," NUMBER OF :"]
[null,null,null,null,null,null,null,null,null,null,"  -Y- LINES > 300'",null,null,null,null,null,null,"# XS"]
[null,null,null," DESIGN LENGTHS:",null,"UNIT:",{"$f":"IF($D$18=\"(ENGLISH UNITS)\",\"FEET\",\"METER\")","v":"FEET"},null,null,null,"  -Y- LINES < 300'",null,null,null,null,null,null,{"$f":"G28/50+1","v":1},"  -L-"]
[null,null,null,"  -L-",null,null,null,null,null,null,"  RAMPS, LOOPS",null,null,null,null,null,null,{"$f":"G29/50+1","v":1},"  DETOURS"]
[null,null,null,"  DETOURS",null,null,null,null,null,null,"  FLYOVERS, C-D's",null,null,null,null,null,null,{"$f":"G30/50+1","v":1},"  -Y- LINES > 300'"]
[null,null,null,"  -Y- LINES > 300'",null,null,null,null,null,null,"  GORE AREAS",null,null,null,null,null,null,{"$f":"G31/50+1","v":1},"  RAMPS, LOOPS, FLYOVERS, C-D's"]
[null,null,null,"  RAMPS, LOOPS, FLYOVERS, C-D's",null,null,null,null,null,null,"  SERVICE ROADS",null,null,null,null,null,null,{"$f":"G32/50+1","v":1},"  SERVICE ROADS"]
[null,null,null,"  SERVICE ROADS",null,null,null,null,null,null,"  DRIVEWAYS >100' (REQUIRES GRADE)"]
[null,null,null,"  TOTAL C&G SECTION",null,null,null,null,null,null,"  BRIDGE SITES OVER ROADWAYS",null,null,null,null,null,null,"# XS TOTAL"]
[null,null,null,"  TOTAL SHOULDER SECTION",null,null,null,null,null,null,"  BRIDGE SITES OVER WATERWAYS",null,null,null,null,null,null,{"$f":"SUM(R27:R31)","v":5}]
[null,null,null,null,null,null,null,null,null,null,"  WALLS"]
[null,null,"                                             ","SCALE :  ",null,"UNIT:",{"$f":"IF($D$18=\"(ENGLISH UNITS)\",\"FEET\",\"METER\")","v":"FEET"},null,null,null,"  PARCELS",null,null,null,null,null,null,"#\nINTERSECTIONS \nTOTAL"]
[null,null,null,"  PLAN",null,"1\" =",null,null,null,null,"  SUB-CONSULTANTS"]
[null,null,null,"  PROFILE",null,"                1\" =",null,"H"]
[null,null,null,"  PROFILE",null,"                1\" =",null,"V",null,"     ","NUMBER OF AT GRADE INTERSECTIONS :",null,null,null,null,null,null,{"$f":"SUM(N40:N45)","v":0}]
[null,null,null,"  X-SECTIONS",null,"1\" =",null,null,null,null,"  4 LEG ( WITH BULB )"]
[null,null,null,null,null,null,null,null,null,null,"  4 LEG ( WITHOUT BULB )",null,null,null,null,null,null,"SHEETS TOTAL"]
[null,null,"     ","PUBLIC HEARING / WORKSHOP (Y/N) :",null,null,null,null,null,null,"  T ( WITH BULB )",null,null,null,null,null,null,{"$f":"R24","v":0}]
[null,null,null,"  PREPARE MAP",null,null,null,null,null,null,"  T ( WITHOUT BULB )"]
[null,null,null,"  ATTEND MAP REVIEW MEETING",null,null,null,null,null,null,"  ROUNDABOUT"]
[null,null,null,"  ATTEND HEARING / WORKSHOP",null,null,null,null,null,null,"  LEFTOVER"]
[null,null,null,"  OVERNIGHT STAY"]
[null,null,null,"  ATTEND POST PUBLIC HEARING MEETING",null,null,null,null,null,"     ","NUMBER OF INTERCHANGES : "]
[null,null,null,null,null,null,null,null,null,null,"  DIAMOND"]
[null,null,null,"DESIGN EXCEPTION PACKAGE (Y/N) :",null,null,null,null,null,null,"  CLOVERLEAF"]
[null,null,null,null,null,null,null,null,null,null,"  SPUI"]
[null,null,null,"CAPACITY ANALYSIS (Y/N) :",null,null,null,null,null,null,"  DDI"]
[null,null,null,null,null,null,null,null,null,null,"  MULTILEVEL"]
[null,null,null,"CONSTRUCTION PHASING NARRATIVE (Y/N) :"]
[null,null,null,null,null,null,null,null,null,"     ","NUMBER OF PLAN SHEETS :"]
[null,null,null,"WALLS REQUIRING ENVELOPE                UNIT:",null,null,{"$f":"IF($D$18=\"(ENGLISH UNITS)\",\"FEET\",\"METER\")","v":"FEET"},null,null,null,"  -L-"]
[null,null,null,"  NOISE",null,null,null,null,null,null,"  -Y-"]
[null,null,null,"  RETAINING (ROADWAY PAY ITEM)",null,null,null,null,null,null,"  SERVICE ROADS"]
[null,null,null,null,null,null,null,null,null,null,"  DETOURS"]
[null,null,null,"NUMBER OF FIELD INSPECTIONS :",null,null,null,null,null,null,"  INTERCHANGE DETAIL"]
[null,null,null,"  OVERNIGHT STAY (Y/N)"]
[null,null,null,null,null,null,null,null,null,null,"NUMBER OF X-SECTIONS PER SHEET :"]
[null,null,"     ","PLAN PREPARATION STAGE (Y/N) :"]
[null,null,null,"  R/W"]
[null,null,null,"  LET"]

{"sheet":"RD-Corr_Mod-PROJ.WS-Sub1","index":125,"n_rows":39,"n_cols":22,"rows_kept":39,"cut":false,"hidden":true,"merged":[[0,9,0,10],[0,12,0,13],[2,1,4,2],[2,3,4,3],[2,4,4,4],[2,5,3,7],[2,8,4,8],[2,9,4,9],[2,10,3,12],[2,13,4,13],[16,1,16,2],[5,1,5,2],[6,1,6,2],[7,1,7,2],[8,1,8,2],[9,1,9,2],[10,1,10,2],[11,1,11,2],[12,1,12,2],[13,1,13,2],[14,1,14,2],[15,1,15,2],[28,1,28,2],[17,1,17,2],[18,1,18,2],[19,1,19,2],[20,1,20,2],[21,1,21,2],[22,1,22,2],[23,1,23,2],[24,1,24,2],[25,1,25,2],[26,1,26,2],[27,1,27,2],[38,5,39,5],[29,1,29,2],[30,1,30,2],[31,1,31,2],[32,1,32,2],[33,1,33,2],[34,1,34,2],[35,1,35,2],[36,1,36,2],[37,1,37,2],[38,1,39,1],[38,3,39,4],[38,6,39,6],[38,7,39,7],[38,10,39,10],[38,11,39,11],[38,12,39,12]]}
[null,"Roadway Corridor Modeling Project Worksheet",null,null,null,null,null,null,"TIP NUMBER:",{"$f":"TIP.NUMBER","v":0},null,"FIRM:",{"$f":"ROADWAY_SUB1_CONSULTANT_NAME","v":"CONSULTANT NAME"}]
[null,"SUBCONSULTANT 1"]
[null,"Group #",null,"Corridor #","Alignment","Corridor Type",null,null,"Begin Station","End Station","Corridor Length (Miles)",null,null,"Typical Section/Template Type"]
[]
[null,null,null,null,null,"Major","Minor","Detour",null,null,"Major","Minor","Detour"]
[null,null,null,{"$f":"IF(E6=\"\",\"\",1)","v":""},null,null,null,null,null,null,{"$f":"IF(F6=\"\",\"\",IFERROR(IF(COUNTIF(F6,\"*\"),($J6-$I6)/5280,0),0))","v":""},"","",null,null,null,null,null,null,null,null,"None or NA"]
[null,null,null,{"$f":"IF(E7=\"\",\"\",MAX(D6)+1)","v":""},null,null,null,null,null,null,"","","",null,null,null,null,null,null,null,null,"Undivided Facility  - Shoulder Section"]
[null,null,null,{"$f":"IF(E8=\"\",\"\",MAX($D$6:D7)+1)","v":""},null,null,null,null,null,null,"","","",null,null,null,null,null,null,null,null,"Undivided Facility  - Curb and Gutter Section"]
[null,null,null,{"$f":"IF(E9=\"\",\"\",MAX($D$6:D8)+1)","v":""},null,null,null,null,null,null,"","","",null,null,null,null,null,null,null,null,"Divided Facility - Median Ditch"]
[null,null,null,{"$f":"IF(E10=\"\",\"\",MAX($D$6:D9)+1)","v":""},null,null,null,null,null,null,"","","",null,null,null,null,null,null,null,null,"Divided Facility - Median Barrier"]
[null,null,null,{"$f":"IF(E11=\"\",\"\",MAX($D$6:D10)+1)","v":""},null,null,null,null,null,null,"","","",null,null,null,null,null,null,null,null,"Divided Facility - Raised Median"]
[null,null,null,{"$f":"IF(E12=\"\",\"\",MAX($D$6:D11)+1)","v":""},null,null,null,null,null,null,"","","",null,null,null,null,null,null,null,null,"Interchange - Ramp/Loop"]
[null,null,null,{"$f":"IF(E13=\"\",\"\",MAX($D$6:D12)+1)","v":""},null,null,null,null,null,null,"","","",null,null,null,null,null,null,null,null,"Roundabout"]
[null,null,null,{"$f":"IF(E14=\"\",\"\",MAX($D$6:D13)+1)","v":""},null,null,null,null,null,null,"","","",null,null,null,null,null,null,null,null,"Driveways"]
[null,null,null,{"$f":"IF(E15=\"\",\"\",MAX($D$6:D14)+1)","v":""},null,null,null,null,null,null,"","","",null,null,null,null,null,null,null,null,"Detour"]
[null,null,null,{"$f":"IF(E16=\"\",\"\",MAX($D$6:D15)+1)","v":""},null,null,null,null,null,null,"","","",null,null,null,null,null,null,null,null,"Costomize"]
[null,null,null,{"$f":"IF(E17=\"\",\"\",MAX($D$6:D16)+1)","v":""},null,null,null,null,null,null,"","",""]
[null,null,null,{"$f":"IF(E18=\"\",\"\",MAX($D$6:D17)+1)","v":""},null,null,null,null,null,null,"","",""]
[null,null,null,{"$f":"IF(E19=\"\",\"\",MAX($D$6:D18)+1)","v":""},null,null,null,null,null,null,"","","",null,null,null,null,null,null,null,null,"X"]
[null,null,null,{"$f":"IF(E20=\"\",\"\",MAX($D$6:D19)+1)","v":""},null,null,null,null,null,null,"","",""]
[null,null,null,{"$f":"IF(E21=\"\",\"\",MAX($D$6:D20)+1)","v":""},null,null,null,null,null,null,"","",""]
[null,null,null,{"$f":"IF(E22=\"\",\"\",MAX($D$6:D21)+1)","v":""},null,null,null,null,null,null,{"$f":"IF(F22=\"\",\"\",IFERROR(IF(COUNTIF(F22,\"*\"),($J22-$I22)/5280,0),0))","v":""},"",""]
[null,null,null,{"$f":"IF(E23=\"\",\"\",MAX($D$6:D22)+1)","v":""},null,null,null,null,null,null,"","",""]
[null,null,null,{"$f":"IF(E24=\"\",\"\",MAX($D$6:D23)+1)","v":""},null,null,null,null,null,null,"","",""]
[null,null,null,{"$f":"IF(E25=\"\",\"\",MAX($D$6:D24)+1)","v":""},null,null,null,null,null,null,"","",""]
[null,null,null,{"$f":"IF(E26=\"\",\"\",MAX($D$6:D25)+1)","v":""},null,null,null,null,null,null,"","",""]
[null,null,null,{"$f":"IF(E27=\"\",\"\",MAX($D$6:D26)+1)","v":""},null,null,null,null,null,null,"","",""]
[null,null,null,{"$f":"IF(E28=\"\",\"\",MAX($D$6:D27)+1)","v":""},null,null,null,null,null,null,"","",""]
[null,null,null,{"$f":"IF(E29=\"\",\"\",MAX($D$6:D28)+1)","v":""},null,null,null,null,null,null,"","",""]
[null,null,null,{"$f":"IF(E30=\"\",\"\",MAX($D$6:D29)+1)","v":""},null,null,null,null,null,null,"","",""]
[null,null,null,{"$f":"IF(E31=\"\",\"\",MAX($D$6:D30)+1)","v":""},null,null,null,null,null,null,"","",""]
[null,null,null,{"$f":"IF(E32=\"\",\"\",MAX($D$6:D31)+1)","v":""},null,null,null,null,null,null,"","",""]
[null,null,null,{"$f":"IF(E33=\"\",\"\",MAX($D$6:D32)+1)","v":""},null,null,null,null,null,null,"","",""]
[null,null,null,{"$f":"IF(E34=\"\",\"\",MAX($D$6:D33)+1)","v":""},null,null,null,null,null,null,"","",""]
[null,null,null,{"$f":"IF(E35=\"\",\"\",MAX($D$6:D34)+1)","v":""},null,null,null,null,null,null,"","",""]
[null,null,null,{"$f":"IF(E36=\"\",\"\",MAX($D$6:D35)+1)","v":""},null,null,null,null,null,null,"","",""]
[null,null,null,{"$f":"IF(E37=\"\",\"\",MAX($D$6:D36)+1)","v":""},null,null,null,null,null,null,"","",""]
[null,null,null,{"$f":"IF(E38=\"\",\"\",MAX($D$6:D37)+1)","v":""},null,null,null,null,null,null,{"$f":"IF(F38=\"\",\"\",IFERROR(IF(COUNTIF(F38,\"*\"),($J38-$I38)/5280,0),0))","v":""},{"$f":"IF(G38=\"\",\"\",IFERROR(IF(COUNTIF(G38,\"*\"),($J38-$I38)/5280,0),0))","v":""},{"$f":"IF(H38=\"\",\"\",IFERROR(IF(COUNTIF(H38,\"*\"),($J38-$I38)/5280,0),0))","v":""}]
[null,null,null,"Sheet Total:",null,{"$f":"COUNTA(F6:F38)","v":0},{"$f":"COUNTA(G6:G38)","v":0},0,null,null,{"$f":"SUM(K6:K38)","v":0},{"$f":"SUM(L6:L38)","v":0},0]

{"sheet":"RD-Workdays-Sub1","index":126,"n_rows":91,"n_cols":14,"rows_kept":91,"cut":false,"hidden":true,"merged":[[4,4,4,12],[4,13,6,13],[7,4,7,12],[4,0,5,2],[51,4,51,12],[67,4,67,12],[84,2,86,2],[84,4,84,12],[88,2,90,2],[88,4,88,12],[80,2,82,2],[80,4,80,12]]}
[null,null,"Roadway Workday Estimate - SUBCONSULTANT 1"]
[null,null,{"$f":"TIP.NUMBER","v":0},"TIP NUMBER"]
[null,null,{"$f":"ROADWAY_SUB1_CONSULTANT_NAME","v":"CONSULTANT NAME"},"FIRM"]
[]
["Note:  The tasks listed below in green are standard tasks following standard scopes.  The tasks should not be modified unless this is a supplemental. In that case they can be written over or deleted but do not cut/paste. Keep tasks in the correct phase 2RD1/2RDs, 3RD1, 4RD1.",null,null,"TOTAL","WORKDAYS",null,null,null,null,null,null,null,null,"NOTES:"]
[null,null,null,"EMPLOYEE",{"$f":"IF('PEF CLASSIFICATION SHEET'!D1067=\"\",\"\",LEFT('PEF CLASSIFICATION SHEET'!D1067,4))","v":""},{"$f":"IF('PEF CLASSIFICATION SHEET'!D1068=\"\",\"\",LEFT('PEF CLASSIFICATION SHEET'!D1068,4))","v":""},{"$f":"IF('PEF CLASSIFICATION SHEET'!D1069=\"\",\"\",LEFT('PEF CLASSIFICATION SHEET'!D1069,4))","v":""},{"$f":"IF('PEF CLASSIFICATION SHEET'!D1070=\"\",\"\",LEFT('PEF CLASSIFICATION SHEET'!D1070,4))","v":""},{"$f":"IF('PEF CLASSIFICATION SHEET'!D1071=\"\",\"\",LEFT('PEF CLASSIFICATION SHEET'!D1071,4))","v":""},{"$f":"IF('PEF CLASSIFICATION SHEET'!D1072=\"\",\"\",LEFT('PEF CLASSIFICATION SHEET'!D1072,4))","v":""},{"$f":"IF('PEF CLASSIFICATION SHEET'!D1073=\"\",\"\",LEFT('PEF CLASSIFICATION SHEET'!D1073,4))","v":""},{"$f":"IF('PEF CLASSIFICATION SHEET'!D1074=\"\",\"\",LEFT('PEF CLASSIFICATION SHEET'!D1074,4))","v":""},{"$f":"IF('PEF CLASSIFICATION SHEET'!D1075=\"\",\"\",LEFT('PEF CLASSIFICATION SHEET'!D1075,4))","v":""}]
["Phase","ID","Description","CLASSIFICATION",{"$f":"IF('PEF CLASSIFICATION SHEET'!C1067=\"\",\"\",'PEF CLASSIFICATION SHEET'!C1067)","v":""},{"$f":"IF('PEF CLASSIFICATION SHEET'!C1068=\"\",\"\",'PEF CLASSIFICATION SHEET'!C1068)","v":""},{"$f":"IF('PEF CLASSIFICATION SHEET'!C1069=\"\",\"\",'PEF CLASSIFICATION SHEET'!C1069)","v":""},{"$f":"IF('PEF CLASSIFICATION SHEET'!C1070=\"\",\"\",'PEF CLASSIFICATION SHEET'!C1070)","v":""},{"$f":"IF('PEF CLASSIFICATION SHEET'!C1071=\"\",\"\",'PEF CLASSIFICATION SHEET'!C1071)","v":""},{"$f":"IF('PEF CLASSIFICATION SHEET'!C1072=\"\",\"\",'PEF CLASSIFICATION SHEET'!C1072)","v":""},{"$f":"IF('PEF CLASSIFICATION SHEET'!C1073=\"\",\"\",'PEF CLASSIFICATION SHEET'!C1073)","v":""},{"$f":"IF('PEF CLASSIFICATION SHEET'!C1074=\"\",\"\",'PEF CLASSIFICATION SHEET'!C1074)","v":""},{"$f":"IF('PEF CLASSIFICATION SHEET'!C1075=\"\",\"\",'PEF CLASSIFICATION SHEET'!C1075)","v":""}]
[null,null,"2RD2","WORKDAYS"]
["2RD1",1,"Design Criteria and Associated Typical Sections",{"$f":"SUM(E9:M9)","v":0}]
["2RD1","2.1.1","Horizontal and Vertical Layout for L",0]
["2RD1","2.1.2","Horizontal and Vertical Layout for Y lines, service roads, loops, ramps",0]
["2RD1","2.1.3","Horizontal and Vertical Layout for Detours",0]
["2RD1","2.2.1","3D Model for mainline and y-lines",0]
["2RD1","2.2.2","3D Model for intersections, driveways, and small y-lines",0]
["2RD1",2.2999999999999998,"Right of Way and Easement Layout",0]
["2RD1",2.4,"Maintenance of Traffic Narrative",0]
["2RD1","2.5.1","Potential Retaining Wall Location Evaluation",0]
["2RD1","2.5.2","Incorporate retaining walls into plans and develop retaining wall envelopes",0]
["2RD1",2.6,"Design Public Meeting/Hearing Maps",0]
["2RD1","2.7.1","Prepare Title Sheet, Typical Sections, and Earthwork summary",0]
["2RD1","2.7.2","Sheeting for Plans, Profiles, Cross sections",0]
["2RD1","2.7.3","Complete the Draft Design Recommendation Plan Set and QC",0]
["2RD1",2.8,"Design Recommendation Plan Set Review and Finalization",0]
["2RD1","3.1.1","Complete Design Exception Checklist",0]
["2RD1","3.1.2","Formalize Design Exceptions",0]
["2RD1",4,"Prepare and submit design review request for NCDOT IMD review of roadway design plans",0]
["2RD1",5,"Value Engineering Study Coordination (in support of 2VM1)",0]
["2RD1",7,"Location and Design Approval (LADA) (EA and EIS projects only)",0]
["2RD1",8,"Task Management",0]
["2RD1",9,"Complete QC Procedures",0]
["2RD1",10.1,"2RD1 Misc. Item:",0]
["2RD1",10.199999999999999,"2RD1 Misc. Item:",0]
["2RD1",10.3,"2RD1 Misc. Item:",0]
["2RD1",10.4,"2RD1 Misc. Item:",0]
["2RD1",10.5,"2RD1 Misc. Item:",0]
["2RD2","1.1.1","Incorporate Geotechnical Recommendations",0]
["2RD2","1.1.2","Incoporate Hydro into Plans, Profiles, and X-sections",0]
["2RD2","1.1.3","Refine Right of Way and Easements on Plans",0]
["2RD2","1.1.4","Complete the Field Inspection Plan Set submittal (PDFs and supporting electronic files)",0]
["2RD2",1.2,"Attend Field Inspection Review Meeting",0]
["2RD2",2,"VMO Constructability Review (see 2VM3)",0]
["2RD2",3,"Construction Estimate Quantities",0]
["2RD2",4,"Task Management",0]
["2RD2",5,"Complete QC Procedures",0]
["2RD2",6,"2RD2 Misc. Item:",0]
["2RD2",6.1,"2RD2 Misc. Item:",0]
["2RD2",6.2,"2RD2 Misc. Item:",0]
["2RD2",6.3,"2RD2 Misc. Item:",0]
["2RD2",6.4,"2RD2 Misc. Item:",{"$f":"SUM(E49:M49)","v":0}]
[null,null,"TOTAL STAGE 2 WORKDAYS",0,{"$f":"SUM(E9:E49)","v":0},0,0,0,0,0,0,0,0]
[null,null,null,null," "]
[null,null,"3RD1","WORKDAYS",null,null,null,null,null,null,null,null,null,"NOTES:"]
["3RD1",1.1000000000000001,"Incorporate noise wall locations from Design Noise Report",{"$f":"SUM(E53:M53)","v":0}]
["3RD1",1.2,"Complete Right-of-Way Plan Set (PDFs and supporting electronic files)",0]
["3RD1",1.3,"Attend Plan-in-Hand Review Meeting",0]
["3RD1",2,"Pavement Management Coordination",0]
["3RD1",3,"Construction Estimate Quantities",0]
["3RD1",4,"Conduct Permit Drawing Consistency Review",0]
["3RD1",6,"Task Management",0]
["3RD1",7,"Complete QC Procedures",0]
["3RD1",8.1,"3RD1 Misc. Item:",0]
["3RD1",8.1999999999999993,"3RD1 Misc. Item:",0]
["3RD1",8.3000000000000007,"3RD1 Misc. Item:",0]
["3RD1",8.4,"3RD1 Misc. Item:",0]
["3RD1",8.5,"3RD1 Misc. Item:",{"$f":"SUM(E65:M65)","v":0}]
[null,null,"TOTAL STAGE 3 WORKDAYS",{"$f":"SUM(E66:M66)","v":0},{"$f":"SUM(E53:E65)","v":0},0,0,0,0,0,0,0,0]
[]
[null,null,"4RD1","WORKDAYS",null,null,null,null,null,null,null,null,null,"NOTES:"]
["4RD1",1,"Review Set of Final Plans",{"$f":"SUM(E69:M69)","v":0}]
["4RD1",2,"Final Construction Quantities",0]
["4RD1",3,"Sealed Contract Roadway Design Plans",0]
["4RD1",4,"Task Management",0]
["4RD1",5,"Complete QC Procedures",0]
["4RD1",6.1,"4RD1 Misc. Item:",{"$f":"SUM(E74:M74)","v":0}]
["4RD1",6.2,"4RD1 Misc. Item:",{"$f":"SUM(E75:M75)","v":0}]
["4RD1",6.3,"4RD1 Misc. Item:",0]
["4RD1",6.4,"4RD1 Misc. Item:",0]
["4RD1",6.5,"4RD1 Misc. Item:",{"$f":"SUM(E78:M78)","v":0}]
[null,null,"TOTAL STAGE 4 WORKDAYS",{"$f":"SUM(E79:M79)","v":0},{"$f":"SUM(E69:E78)","v":0},0,0,0,0,0,0,0,0]
[]
[null,null,"TOTAL ESTIMATED WORKDAYS:  ","TOTAL","WORKDAYS"]
[null,null,null,"CLASSIFICATION",{"$f":"$E$7","v":""},{"$f":"$F$7","v":""},{"$f":"$G$7","v":""},{"$f":"$H$7","v":""},{"$f":"$I$7","v":""},{"$f":"$J$7","v":""},{"$f":"$K$7","v":""},{"$f":"$L$7","v":""},{"$f":"$M$7","v":""}]
[null,null,null,{"$f":"SUM(E83:M83)","v":0},{"$f":"E87+E91","v":0},{"$f":"F87+F91","v":0},0,0,0,0,0,0,0]
[]
[null,null,"TOTAL ESTIMATED WORKDAYS \nFOR 3PEF COSTS (Stage 2 & 3):  ","TOTAL","WORKDAYS"]
[null,null,null,"CLASSIFICATION",{"$f":"$E$7","v":""},{"$f":"$F$7","v":""},{"$f":"$G$7","v":""},{"$f":"$H$7","v":""},{"$f":"$I$7","v":""},{"$f":"$J$7","v":""},{"$f":"$K$7","v":""},{"$f":"$L$7","v":""},{"$f":"$M$7","v":""}]
[null,null,null,{"$f":"SUM(E87:M87)","v":0},{"$f":"E50+E66","v":0},0,0,0,0,0,0,0,0]
[]
[null,null,"TOTAL ESTIMATED WORKDAYS\nFOR 4PEF PLAN COSTS (Stage 4):  ","TOTAL","WORKDAYS"]
[null,null,null,"CLASSIFICATION",{"$f":"$E$7","v":""},{"$f":"$F$7","v":""},{"$f":"$G$7","v":""},{"$f":"$H$7","v":""},{"$f":"$I$7","v":""},{"$f":"$J$7","v":""},{"$f":"$K$7","v":""},{"$f":"$L$7","v":""},{"$f":"$M$7","v":""}]
[null,null,null,{"$f":"SUM(E91:M91)","v":0},{"$f":"E79","v":0},{"$f":"F79","v":0},0,0,0,0,0,0,0]

{"sheet":"RD-Supp-Sub1","index":127,"n_rows":91,"n_cols":14,"rows_kept":91,"cut":false,"hidden":true,"merged":[[3,4,3,13],[4,4,4,12],[4,13,6,13],[7,4,7,12],[4,0,5,2],[51,4,51,12],[67,4,67,12],[84,2,86,2],[84,4,84,12],[88,2,90,2],[88,4,88,12],[80,2,82,2],[80,4,80,12]]}
[null,null,"Roadway Supplemental Workday Estimate - SUBCONSULTANT 1"]
[null,null,{"$f":"TIP.NUMBER","v":0},"TIP NUMBER"]
[null,null,{"$f":"ROADWAY_SUB1_CONSULTANT_NAME","v":"CONSULTANT NAME"},"FIRM"]
[null,null,null,null,{"$f":"IF(REASON.FOR.SUPPLEMENTAL=\"\",\"SUPPLEMENTAL REASON, Key the reason on the OVERALL SUMMARY worksheet\",CONCATENATE(\"Supplemental Reason:  \",REASON.FOR.SUPPLEMENTAL))","v":"SUPPLEMENTAL REASON, Key the reason on the OVERALL SUMMARY worksheet"}]
["Note:  The tasks listed below in green are standard tasks following standard scopes.  The tasks should not be modified unless this is a supplemental. In that case they can be written over or deleted but do not cut/paste. Keep tasks in the correct phase 2RD1/2RDs, 3RD1, 4RD1.",null,null,"TOTAL","WORKDAYS",null,null,null,null,null,null,null,null,"NOTES:"]
[null,null,null,"EMPLOYEE",{"$f":"IF('PEF CLASSIFICATION SHEET'!D1067=\"\",\"\",LEFT('PEF CLASSIFICATION SHEET'!D1067,4))","v":""},{"$f":"IF('PEF CLASSIFICATION SHEET'!D1068=\"\",\"\",LEFT('PEF CLASSIFICATION SHEET'!D1068,4))","v":""},{"$f":"IF('PEF CLASSIFICATION SHEET'!D1069=\"\",\"\",LEFT('PEF CLASSIFICATION SHEET'!D1069,4))","v":""},{"$f":"IF('PEF CLASSIFICATION SHEET'!D1070=\"\",\"\",LEFT('PEF CLASSIFICATION SHEET'!D1070,4))","v":""},{"$f":"IF('PEF CLASSIFICATION SHEET'!D1071=\"\",\"\",LEFT('PEF CLASSIFICATION SHEET'!D1071,4))","v":""},{"$f":"IF('PEF CLASSIFICATION SHEET'!D1072=\"\",\"\",LEFT('PEF CLASSIFICATION SHEET'!D1072,4))","v":""},{"$f":"IF('PEF CLASSIFICATION SHEET'!D1073=\"\",\"\",LEFT('PEF CLASSIFICATION SHEET'!D1073,4))","v":""},{"$f":"IF('PEF CLASSIFICATION SHEET'!D1074=\"\",\"\",LEFT('PEF CLASSIFICATION SHEET'!D1074,4))","v":""},{"$f":"IF('PEF CLASSIFICATION SHEET'!D1075=\"\",\"\",LEFT('PEF CLASSIFICATION SHEET'!D1075,4))","v":""}]
["Phase","ID","Description","CLASSIFICATION",{"$f":"IF('PEF CLASSIFICATION SHEET'!C1067=\"\",\"\",'PEF CLASSIFICATION SHEET'!C1067)","v":""},{"$f":"IF('PEF CLASSIFICATION SHEET'!C1068=\"\",\"\",'PEF CLASSIFICATION SHEET'!C1068)","v":""},{"$f":"IF('PEF CLASSIFICATION SHEET'!C1069=\"\",\"\",'PEF CLASSIFICATION SHEET'!C1069)","v":""},{"$f":"IF('PEF CLASSIFICATION SHEET'!C1070=\"\",\"\",'PEF CLASSIFICATION SHEET'!C1070)","v":""},{"$f":"IF('PEF CLASSIFICATION SHEET'!C1071=\"\",\"\",'PEF CLASSIFICATION SHEET'!C1071)","v":""},{"$f":"IF('PEF CLASSIFICATION SHEET'!C1072=\"\",\"\",'PEF CLASSIFICATION SHEET'!C1072)","v":""},{"$f":"IF('PEF CLASSIFICATION SHEET'!C1073=\"\",\"\",'PEF CLASSIFICATION SHEET'!C1073)","v":""},{"$f":"IF('PEF CLASSIFICATION SHEET'!C1074=\"\",\"\",'PEF CLASSIFICATION SHEET'!C1074)","v":""},{"$f":"IF('PEF CLASSIFICATION SHEET'!C1075=\"\",\"\",'PEF CLASSIFICATION SHEET'!C1075)","v":""}]
[null,null,"2RD2 - SUPPLEMENTAL","WORKDAYS"]
["2RD1",1,"Design Criteria and Associated Typical Sections",{"$f":"SUM(E9:M9)","v":0}]
["2RD1","2.1.1","Horizontal and Vertical Layout for L",0]
["2RD1","2.1.2","Horizontal and Vertical Layout for Y lines, service roads, loops, ramps",0]
["2RD1","2.1.3","Horizontal and Vertical Layout for Detours",0]
["2RD1","2.2.1","3D Model for mainline and y-lines",0]
["2RD1","2.2.2","3D Model for intersections, driveways, and small y-lines",0]
["2RD1",2.2999999999999998,"Right of Way and Easement Layout",0]
["2RD1",2.4,"Maintenance of Traffic Narrative",0]
["2RD1","2.5.1","Potential Retaining Wall Location Evaluation",0]
["2RD1","2.5.2","Incorporate retaining walls into plans and develop retaining wall envelopes",0]
["2RD1",2.6,"Design Public Meeting/Hearing Maps",0]
["2RD1","2.7.1","Prepare Title Sheet, Typical Sections, and Earthwork summary",0]
["2RD1","2.7.2","Sheeting for Plans, Profiles, Cross sections",0]
["2RD1","2.7.3","Complete the Draft Design Recommendation Plan Set and QC",0]
["2RD1",2.8,"Design Recommendation Plan Set Review and Finalization",0]
["2RD1","3.1.1","Complete Design Exception Checklist",0]
["2RD1","3.1.2","Formalize Design Exceptions",0]
["2RD1",4,"Prepare and submit design review request for NCDOT IMD review of roadway design plans",0]
["2RD1",5,"Value Engineering Study Coordination (in support of 2VM1)",0]
["2RD1",7,"Location and Design Approval (LADA) (EA and EIS projects only)",0]
["2RD1",8,"Task Management",0]
["2RD1",9,"Complete QC Procedures",0]
["2RD1",10.1,"2RD1 Misc. Item:",0]
["2RD1",10.199999999999999,"2RD1 Misc. Item:",0]
["2RD1",10.3,"2RD1 Misc. Item:",0]
["2RD1",10.4,"2RD1 Misc. Item:",0]
["2RD1",10.5,"2RD1 Misc. Item:",0]
["2RD2","1.1.1","Incorporate Geotechnical Recommendations",0]
["2RD2","1.1.2","Incoporate Hydro into Plans, Profiles, and X-sections",0]
["2RD2","1.1.3","Refine Right of Way and Easements on Plans",0]
["2RD2","1.1.4","Complete the Field Inspection Plan Set submittal (PDFs and supporting electronic files)",0]
["2RD2",1.2,"Attend Field Inspection Review Meeting",0]
["2RD2",2,"VMO Constructability Review (see 2VM3)",0]
["2RD2",3,"Construction Estimate Quantities",0]
["2RD2",4,"Task Management",0]
["2RD2",5,"Complete QC Procedures",0]
["2RD2",6,"2RD2 Misc. Item:",0]
["2RD2",6.1,"2RD2 Misc. Item:",0]
["2RD2",6.2,"2RD2 Misc. Item:",0]
["2RD2",6.3,"2RD2 Misc. Item:",0]
["2RD2",6.4,"2RD2 Misc. Item:",{"$f":"SUM(E49:M49)","v":0}]
[null,null,"TOTAL STAGE 2 WORKDAYS",0,{"$f":"SUM(E9:E49)","v":0},0,0,0,0,0,0,0,0]
[null,null,null,null," "]
[null,null,"3RD1  - SUPPLEMENTAL","WORKDAYS",null,null,null,null,null,null,null,null,null,"NOTES:"]
["3RD1",1.1000000000000001,"Incorporate noise wall locations from Design Noise Report",{"$f":"SUM(E53:M53)","v":0}]
["3RD1",1.2,"Complete Right-of-Way Plan Set (PDFs and supporting electronic files)",0]
["3RD1",1.3,"Attend Plan-in-Hand Review Meeting",0]
["3RD1",2,"Pavement Management Coordination",0]
["3RD1",3,"Construction Estimate Quantities",0]
["3RD1",4,"Conduct Permit Drawing Consistency Review",0]
["3RD1",6,"Task Management",0]
["3RD1",7,"Complete QC Procedures",0]
["3RD1",8.1,"3RD1 Misc. Item:",0]
["3RD1",8.1999999999999993,"3RD1 Misc. Item:",0]
["3RD1",8.3000000000000007,"3RD1 Misc. Item:",0]
["3RD1",8.4,"3RD1 Misc. Item:",0]
["3RD1",8.5,"3RD1 Misc. Item:",{"$f":"SUM(E65:M65)","v":0}]
[null,null,"TOTAL STAGE 3 WORKDAYS",{"$f":"SUM(E66:M66)","v":0},{"$f":"SUM(E53:E65)","v":0},0,0,0,0,0,0,0,0]
[]
[null,null,"4RD1  - SUPPLEMENTAL","WORKDAYS",null,null,null,null,null,null,null,null,null,"NOTES:"]
["4RD1",1,"Review Set of Final Plans",{"$f":"SUM(E69:M69)","v":0}]
["4RD1",2,"Final Construction Quantities",0]
["4RD1",3,"Sealed Contract Roadway Design Plans",0]
["4RD1",4,"Task Management",0]
["4RD1",5,"Complete QC Procedures",0]
["4RD1",6.1,"4RD1 Misc. Item:",{"$f":"SUM(E74:M74)","v":0}]
["4RD1",6.2,"4RD1 Misc. Item:",{"$f":"SUM(E75:M75)","v":0}]
["4RD1",6.3,"4RD1 Misc. Item:",0]
["4RD1",6.4,"4RD1 Misc. Item:",0]
["4RD1",6.5,"4RD1 Misc. Item:",{"$f":"SUM(E78:M78)","v":0}]
[null,null,"TOTAL STAGE 4 WORKDAYS",{"$f":"SUM(E79:M79)","v":0},{"$f":"SUM(E69:E78)","v":0},0,0,0,0,0,0,0,0]
[]
[null,null,"TOTAL ESTIMATED WORKDAYS:  ","TOTAL","WORKDAYS"]
[null,null,null,"CLASSIFICATION",{"$f":"$E$7","v":""},{"$f":"$F$7","v":""},{"$f":"$G$7","v":""},{"$f":"$H$7","v":""},{"$f":"$I$7","v":""},{"$f":"$J$7","v":""},{"$f":"$K$7","v":""},{"$f":"$L$7","v":""},{"$f":"$M$7","v":""}]
[null,null,null,{"$f":"SUM(E83:M83)","v":0},{"$f":"E87+E91","v":0},{"$f":"F87+F91","v":0},0,0,0,0,0,0,0]
[]
[null,null,"TOTAL ESTIMATED WORKDAYS \nFOR 3PEF COSTS (Stage 2 & 3):  ","TOTAL","WORKDAYS"]
[null,null,null,"CLASSIFICATION",{"$f":"$E$7","v":""},{"$f":"$F$7","v":""},{"$f":"$G$7","v":""},{"$f":"$H$7","v":""},{"$f":"$I$7","v":""},{"$f":"$J$7","v":""},{"$f":"$K$7","v":""},{"$f":"$L$7","v":""},{"$f":"$M$7","v":""}]
[null,null,null,{"$f":"SUM(E87:M87)","v":0},{"$f":"E50+E66","v":0},0,0,0,0,0,0,0,0]
[]
[null,null,"TOTAL ESTIMATED WORKDAYS\nFOR 4PEF PLAN COSTS (Stage 4):  ","TOTAL","WORKDAYS"]
[null,null,null,"CLASSIFICATION",{"$f":"$E$7","v":""},{"$f":"$F$7","v":""},{"$f":"$G$7","v":""},{"$f":"$H$7","v":""},{"$f":"$I$7","v":""},{"$f":"$J$7","v":""},{"$f":"$K$7","v":""},{"$f":"$L$7","v":""},{"$f":"$M$7","v":""}]
[null,null,null,{"$f":"SUM(E91:M91)","v":0},{"$f":"E79","v":0},{"$f":"F79","v":0},0,0,0,0,0,0,0]

{"sheet":"RD-Lighting-Sub1","index":128,"n_rows":28,"n_cols":14,"rows_kept":28,"cut":false,"hidden":true,"merged":[[25,2,27,2],[25,4,25,12],[4,0,5,2],[4,4,4,12],[4,13,6,13],[7,4,7,12],[16,4,16,12]]}
[null,null,"Roadway Lighting Workday Estimate SUB1"]
[null,null,{"$f":"TIP.NUMBER","v":0},"TIP NUMBER"]
[null,null,{"$f":"ROADWAY_CONSULTANT_NAME","v":"CONSULTANT NAME"},"FIRM"]
[]
["Note:  The tasks listed below in green are standard tasks following standard scopes.  The tasks should not be modified unless this is a supplemental. In that case they can be written over or deleted but do not cut/paste. Keep tasks in the correct phase 2RD1/2RDs, 3RD1, 4RD1.",null,null,"TOTAL","WORKDAYS",null,null,null,null,null,null,null,null,"NOTES:"]
[null,null,null,"EMPLOYEE",{"$f":"IF('PEF CLASSIFICATION SHEET'!D274=\"\",\"\",LEFT('PEF CLASSIFICATION SHEET'!D274,4))","v":""},{"$f":"IF('PEF CLASSIFICATION SHEET'!D275=\"\",\"\",LEFT('PEF CLASSIFICATION SHEET'!D275,4))","v":""},{"$f":"IF('PEF CLASSIFICATION SHEET'!D276=\"\",\"\",LEFT('PEF CLASSIFICATION SHEET'!D276,4))","v":""},{"$f":"IF('PEF CLASSIFICATION SHEET'!D277=\"\",\"\",LEFT('PEF CLASSIFICATION SHEET'!D277,4))","v":""},{"$f":"IF('PEF CLASSIFICATION SHEET'!D278=\"\",\"\",LEFT('PEF CLASSIFICATION SHEET'!D278,4))","v":""},{"$f":"IF('PEF CLASSIFICATION SHEET'!D279=\"\",\"\",LEFT('PEF CLASSIFICATION SHEET'!D279,4))","v":""},{"$f":"IF('PEF CLASSIFICATION SHEET'!D280=\"\",\"\",LEFT('PEF CLASSIFICATION SHEET'!D280,4))","v":""},{"$f":"IF('PEF CLASSIFICATION SHEET'!D281=\"\",\"\",LEFT('PEF CLASSIFICATION SHEET'!D281,4))","v":""},{"$f":"IF('PEF CLASSIFICATION SHEET'!D282=\"\",\"\",LEFT('PEF CLASSIFICATION SHEET'!D282,4))","v":""}]
["Phase","ID","Description","CLASSIFICATION",{"$f":"IF('PEF CLASSIFICATION SHEET'!C274=\"\",\"\",'PEF CLASSIFICATION SHEET'!C274)","v":""},{"$f":"IF('PEF CLASSIFICATION SHEET'!C275=\"\",\"\",'PEF CLASSIFICATION SHEET'!C275)","v":""},{"$f":"IF('PEF CLASSIFICATION SHEET'!C276=\"\",\"\",'PEF CLASSIFICATION SHEET'!C276)","v":""},{"$f":"IF('PEF CLASSIFICATION SHEET'!C277=\"\",\"\",'PEF CLASSIFICATION SHEET'!C277)","v":""},{"$f":"IF('PEF CLASSIFICATION SHEET'!C278=\"\",\"\",'PEF CLASSIFICATION SHEET'!C278)","v":""},{"$f":"IF('PEF CLASSIFICATION SHEET'!C279=\"\",\"\",'PEF CLASSIFICATION SHEET'!C279)","v":""},{"$f":"IF('PEF CLASSIFICATION SHEET'!C280=\"\",\"\",'PEF CLASSIFICATION SHEET'!C280)","v":""},{"$f":"IF('PEF CLASSIFICATION SHEET'!C281=\"\",\"\",'PEF CLASSIFICATION SHEET'!C281)","v":""},{"$f":"IF('PEF CLASSIFICATION SHEET'!C282=\"\",\"\",'PEF CLASSIFICATION SHEET'!C282)","v":""}]
[null,null,"2RD2","WORKDAYS"]
["2RD1",6.1,"Initial Lighting Assessment",{"$f":"SUM(E9:M9)","v":0}]
["2RD1",6.2,"Lighting Evaluation ",0]
["2RD1",6.3,"Coordinate with local government on lighting needs",0]
["2RD1",6.4,"2RD1 Misc. Item:",0]
["2RD1",6.5,"2RD1 Misc. Item:",0]
["2RD1",6.6,"2RD1 Misc. Item:",0]
[null,null,"TOTAL STAGE 2 WORKDAYS",{"$f":"SUM(E15:M15)","v":0},{"$f":"SUM(E9:E14)","v":0},0,0,0,0,0,0,0,0]
[null,null,null,null," "]
[null,null,"3RD1","WORKDAYS",null,null,null,null,null,null,null,null,null,"NOTES:"]
["3RD1",5.0999999999999996,"Complete Lighting Layout",{"$f":"SUM(E18:M18)","v":0}]
["3RD1",5.2,"Lighting Design Package",0]
["3RD1",5.3,"3RD1 Misc. Item:",0]
["3RD1",5.4,"3RD1 Misc. Item:",0]
["3RD1",5.5,"3RD1 Misc. Item:",0]
["3RD1",5.6,"3RD1 Misc. Item:",{"$f":"SUM(E23:M23)","v":0}]
[null,null,"TOTAL STAGE 3 WORKDAYS",{"$f":"SUM(E24:M24)","v":0},{"$f":"SUM(E18:E23)","v":0},0,0,0,0,0,0,0,0]
[]
[null,null,"TOTAL ESTIMATED WORKDAYS:  ","TOTAL","WORKDAYS"]
[null,null,null,"CLASSIFICATION",{"$f":"$E$7","v":""},{"$f":"$F$7","v":""},{"$f":"$G$7","v":""},{"$f":"$H$7","v":""},{"$f":"$I$7","v":""},{"$f":"$J$7","v":""},{"$f":"$K$7","v":""},{"$f":"$L$7","v":""},{"$f":"$M$7","v":""}]
[null,null,null,{"$f":"SUM(E28:M28)","v":0},{"$f":"E15+E24","v":0},{"$f":"F15+F24","v":0},0,0,0,0,0,0,0]

{"sheet":"RD-CLASS-Sub1","index":129,"n_rows":120,"n_cols":11,"rows_kept":120,"cut":false,"hidden":true,"merged":[[118,1,118,6],[119,1,119,6],[95,1,95,6],[10,1,10,2],[3,5,3,7],[5,1,5,7],[7,1,7,2],[8,1,8,2],[9,1,9,2],[28,1,28,7],[11,1,11,2],[12,1,12,2],[13,1,13,2],[14,1,14,2],[15,1,15,2],[16,1,16,2],[17,1,17,3],[23,1,23,6],[24,1,24,6],[25,1,25,6],[27,2,27,7],[41,1,41,2],[29,1,29,7],[30,1,30,7],[32,1,32,2],[33,1,33,2],[34,1,34,2],[35,1,35,2],[36,1,36,2],[37,1,37,2],[38,1,38,2],[39,1,39,2],[40,1,40,2],[62,1,62,2],[42,1,42,3],[48,1,48,6],[52,1,52,7],[53,1,53,7],[55,1,55,2],[56,1,56,2],[57,1,57,2],[58,1,58,2],[59,1,59,2],[60,1,60,2],[61,1,61,2],[83,1,83,2],[63,1,63,2],[64,1,64,2],[65,1,65,3],[71,1,71,6],[75,1,75,7],[76,1,76,7],[78,1,78,2],[79,1,79,2],[80,1,80,2],[81,1,81,2],[82,1,82,2],[104,1,104,2],[84,1,84,2],[85,1,85,2],[86,1,86,2],[87,1,87,2],[88,1,88,3],[94,1,94,6],[98,1,98,7],[99,1,99,7],[101,1,101,2],[102,1,102,2],[103,1,103,2],[111,1,111,3],[117,1,117,6],[105,1,105,2],[106,1,106,2],[107,1,107,2],[108,1,108,2],[109,1,109,2],[110,1,110,2]]}
[null,null,null,null,null,null,null,null,null,null,true]
[null,null,null,null,null,null,"TIP NUMBER :",{"$f":"TIP.NUMBER","v":0}]
[null,null,null,null,null,null,"COUNTY :",{"$f":"COUNTY","v":0}]
[null,null,null,"SUBCONSULTANT 1","FIRM:",{"$f":"ROADWAY_SUB1_CONSULTANT_NAME","v":"CONSULTANT NAME"}]
[]
[null,{"$f":"IF(K1=TRUE,\"ROADWAY INITIAL PEF DIRECT & IN-DIRECT SALARY COST\",\"ROADWAY FINAL PEF DIRECT & IN-DIRECT SALARY COST\")","v":"ROADWAY INITIAL PEF DIRECT & IN-DIRECT SALARY COST"}]
[]
[null,"CLASSIFICATION",null,"EMPLOYEE NAME","WORKDAYS",null,"RATE / HOUR","COST"]
[null,{"$f":"'RD-Workdays-Sub1'!$E$7","v":""},null,{"$f":"'PEF CLASSIFICATION SHEET'!$D$1067","v":0},{"$f":"IF(B9=\"\",0,SUM('RD-Workdays-Sub1'!$E$83,'RD-Supp-Sub1'!$E$83,'RD-Lighting-Sub1'!$E$28))","v":0},"x",{"$f":"'PEF CLASSIFICATION SHEET'!$E$1067","v":0},{"$f":"E9*8*G9","v":0}]
[null,{"$f":"'RD-Workdays-Sub1'!$F$7","v":""},null,{"$f":"'PEF CLASSIFICATION SHEET'!$D$1068","v":0},{"$f":"IF(B10=\"\",0,SUM('RD-Workdays-Sub1'!$F$83,'RD-Supp-Sub1'!$F$83,'RD-Lighting-Sub1'!$F$28))","v":0},"x",{"$f":"'PEF CLASSIFICATION SHEET'!$E$1068","v":0},0]
[null,{"$f":"'RD-Workdays-Sub1'!$G$7","v":""},null,{"$f":"'PEF CLASSIFICATION SHEET'!$D$1069","v":0},{"$f":"IF(B11=\"\",0,SUM('RD-Workdays-Sub1'!$G$83,'RD-Supp-Sub1'!$G$83,'RD-Lighting-Sub1'!$G$28))","v":0},"x",{"$f":"'PEF CLASSIFICATION SHEET'!$E$1069","v":0},0]
[null,{"$f":"'RD-Workdays-Sub1'!$H$7","v":""},null,{"$f":"'PEF CLASSIFICATION SHEET'!$D$1070","v":0},{"$f":"IF(B12=\"\",0,SUM('RD-Workdays-Sub1'!$H$83,'RD-Supp-Sub1'!$H$83,'RD-Lighting-Sub1'!$H$28))","v":0},"x",{"$f":"'PEF CLASSIFICATION SHEET'!$E$1070","v":0},{"$f":"E12*8*G12","v":0}]
[null,{"$f":"'RD-Workdays-Sub1'!$I$7","v":""},null,{"$f":"'PEF CLASSIFICATION SHEET'!$D$1071","v":0},{"$f":"IF(B13=\"\",0,SUM('RD-Workdays-Sub1'!$I$83,'RD-Supp-Sub1'!$I$83,'RD-Lighting-Sub1'!$I$28))","v":0},"x",{"$f":"'PEF CLASSIFICATION SHEET'!$E$1071","v":0},{"$f":"E13*8*G13","v":0}]
[null,{"$f":"'RD-Workdays-Sub1'!$J$7","v":""},null,{"$f":"'PEF CLASSIFICATION SHEET'!$D$1072","v":0},{"$f":"IF(B14=\"\",0,SUM('RD-Workdays-Sub1'!$J$83,'RD-Supp-Sub1'!$J$83,'RD-Lighting-Sub1'!$J$28))","v":0},"x",{"$f":"'PEF CLASSIFICATION SHEET'!$E$1072","v":0},0]
[null,{"$f":"'RD-Workdays-Sub1'!$K$7","v":""},null,{"$f":"'PEF CLASSIFICATION SHEET'!$D$1073","v":0},{"$f":"IF(B15=\"\",0,SUM('RD-Workdays-Sub1'!$K$83,'RD-Supp-Sub1'!$K$83,'RD-Lighting-Sub1'!$K$28))","v":0},"x",{"$f":"'PEF CLASSIFICATION SHEET'!$E$1073","v":0},0]
[null,{"$f":"'RD-Workdays-Sub1'!$L$7","v":""},null,{"$f":"'PEF CLASSIFICATION SHEET'!$D$1074","v":0},{"$f":"IF(B16=\"\",0,SUM('RD-Workdays-Sub1'!$L$83,'RD-Supp-Sub1'!$L$83,'RD-Lighting-Sub1'!$L$28))","v":0},"x",{"$f":"'PEF CLASSIFICATION SHEET'!$E$1074","v":0},0]
[null,{"$f":"'RD-Workdays-Sub1'!$M$7","v":""},null,{"$f":"'PEF CLASSIFICATION SHEET'!$D$1075","v":0},{"$f":"IF(B17=\"\",0,SUM('RD-Workdays-Sub1'!$M$83,'RD-Supp-Sub1'!$M$83,'RD-Lighting-Sub1'!$M$28))","v":0},"x",{"$f":"'PEF CLASSIFICATION SHEET'!$E$1075","v":0},{"$f":"E17*8*G17","v":0}]
[null,"TOTAL NUMBER OF WORKDAYS  ",null,null,{"$f":"SUM(E9:E17)","v":0}]
[null,"Total Direct Salary",null,null,null,null,null,{"$f":"SUM(H9:H17)","v":0}]
[null,"Overhead ",null,null,null,null,{"$f":"ROADWAY_SUB1_CONSULTANT_OVERHEAD","v":0},{"$f":"H19*G20","v":0}]
[null,"Subtotal",null,null,null,null,null,{"$f":"H19+H20","v":0}]
[null,"Fee",null,null,null,null,{"$f":"ROADWAY_SUB1_CONSULTANT_FEE","v":0.09},{"$f":"H21*G22","v":0}]
[null,"Cost of Capital",null,null,null,null,{"$f":"ROADWAY_SUB1_CONSULTANT_COSTofCAPITAL","v":0},{"$f":"H19*G23","v":0}]
[null,"TOTAL DIRECT & INDIRECT SALARY COSTS",null,null,null,null,null,{"$f":"SUM(H21:H23)","v":0}]
[null,"TOTAL DIRECT NON-SALARY COST",null,null,null,null,null,{"$f":"ROADWAY_SUB1_DIRECT_NONSALARY_TOTAL","v":0}]
[null,"TOTAL ROADWAY COST",null,null,null,null,null,{"$f":"ROADWAY_SUB1_SALARY_TOTAL+H25","v":0}]
[]
[null,null,"Notes:\nRate = Rate Per Workhour\nDirect Salary = Workdays x Rate x 8\nOH = OH Rate (as approved by the Fiscal Section) x Total Direct Salary\nSubtotal = Direct Salary + OH\nFee = 9% x Subtotal\nCOC = COC Rate (as approved by the Fiscal Section) x Total Direct Salary\nTotal Direct and Indirect Salary Costs  =  Subtotal + Fee + COC\nTotal Direct Non-Salary Costs is calculated on the \"TRAVEL & MISC.\" tab\nTotal Roadway Costs =  Total Direct & Indirect Salary Costs + Total Direct Non-Salary Costs"]
[]
[null,"SUPPLEMENTAL ONLY"]
[null,{"$f":"IF(K1=TRUE,\"INITIAL PEF DIRECT & IN-DIRECT SALARY COST\",\"FINAL PEF DIRECT & IN-DIRECT SALARY COST\")","v":"INITIAL PEF DIRECT & IN-DIRECT SALARY COST"}]
[]
[null,"CLASSIFICATION",null,"EMPLOYEE NAME","WORKDAYS",null,"RATE / HOUR","COST"]
[null,{"$f":"'RD-Workdays-Sub1'!$E$7","v":""},null,{"$f":"'PEF CLASSIFICATION SHEET'!$D$1067","v":0},{"$f":"IF(B34=\"\",0,'RD-Supp-Sub1'!$E$83)","v":0},"x",{"$f":"'PEF CLASSIFICATION SHEET'!$E$1067","v":0},{"$f":"E34*8*G34","v":0}]
[null,{"$f":"'RD-Workdays-Sub1'!$F$7","v":""},null,{"$f":"'PEF CLASSIFICATION SHEET'!$D$1068","v":0},{"$f":"IF(B35=\"\",0,'RD-Supp-Sub1'!$F$83)","v":0},"x",{"$f":"'PEF CLASSIFICATION SHEET'!$E$1068","v":0},0]
[null,{"$f":"'RD-Workdays-Sub1'!$G$7","v":""},null,{"$f":"'PEF CLASSIFICATION SHEET'!$D$1069","v":0},{"$f":"IF(B36=\"\",0,'RD-Supp-Sub1'!$G$83)","v":0},"x",{"$f":"'PEF CLASSIFICATION SHEET'!$E$1069","v":0},0]
[null,{"$f":"'RD-Workdays-Sub1'!$H$7","v":""},null,{"$f":"'PEF CLASSIFICATION SHEET'!$D$1070","v":0},{"$f":"IF(B37=\"\",0,'RD-Supp-Sub1'!$H$83)","v":0},"x",{"$f":"'PEF CLASSIFICATION SHEET'!$E$1070","v":0},{"$f":"E37*8*G37","v":0}]
[null,{"$f":"'RD-Workdays-Sub1'!$I$7","v":""},null,{"$f":"'PEF CLASSIFICATION SHEET'!$D$1071","v":0},{"$f":"IF(B38=\"\",0,'RD-Supp-Sub1'!$I$83)","v":0},"x",{"$f":"'PEF CLASSIFICATION SHEET'!$E$1071","v":0},{"$f":"E38*8*G38","v":0}]
[null,{"$f":"'RD-Workdays-Sub1'!$J$7","v":""},null,{"$f":"'PEF CLASSIFICATION SHEET'!$D$1072","v":0},{"$f":"IF(B39=\"\",0,'RD-Supp-Sub1'!$J$83)","v":0},"x",{"$f":"'PEF CLASSIFICATION SHEET'!$E$1072","v":0},0]
[null,{"$f":"'RD-Workdays-Sub1'!$K$7","v":""},null,{"$f":"'PEF CLASSIFICATION SHEET'!$D$1073","v":0},{"$f":"IF(B40=\"\",0,'RD-Supp-Sub1'!$K$83)","v":0},"x",{"$f":"'PEF CLASSIFICATION SHEET'!$E$1073","v":0},0]
[null,{"$f":"'RD-Workdays-Sub1'!$L$7","v":""},null,{"$f":"'PEF CLASSIFICATION SHEET'!$D$1074","v":0},{"$f":"IF(B41=\"\",0,'RD-Supp-Sub1'!$L$83)","v":0},"x",{"$f":"'PEF CLASSIFICATION SHEET'!$E$1074","v":0},0]
[null,{"$f":"'RD-Workdays-Sub1'!$M$7","v":""},null,{"$f":"'PEF CLASSIFICATION SHEET'!$D$1075","v":0},{"$f":"IF(B42=\"\",0,'RD-Supp-Sub1'!$M$83)","v":0},"x",{"$f":"'PEF CLASSIFICATION SHEET'!$E$1075","v":0},{"$f":"E42*8*G42","v":0}]
[null,"TOTAL NUMBER OF WORKDAYS  ",null,null,{"$f":"SUM(E34:E42)","v":0}]
[null,"Total Direct Salary",null,null,null,null,null,{"$f":"SUM(H34:H42)","v":0}]
[null,"Overhead ",null,null,null,null,{"$f":"ROADWAY_SUB1_CONSULTANT_OVERHEAD","v":0},{"$f":"H44*G45","v":0}]
[null,"Subtotal",null,null,null,null,null,{"$f":"H44+H45","v":0}]
[null,"Fee",null,null,null,null,{"$f":"ROADWAY_SUB1_CONSULTANT_FEE","v":0.09},{"$f":"H46*G47","v":0}]
[null,"Cost of Capital",null,null,null,null,{"$f":"ROADWAY_SUB1_CONSULTANT_COSTofCAPITAL","v":0},{"$f":"H44*G48","v":0}]
[null,"TOTAL DIRECT & INDIRECT SALARY COSTS",null,null,null,null,null,{"$f":"SUM(H46:H48)","v":0}]
[]
[]
[]
[null,"EXCLUDING SUPPLEMENTAL"]
[null,{"$f":"IF(K1=TRUE,\"INITIAL PEF DIRECT & IN-DIRECT SALARY COST\",\"FINAL PEF DIRECT & IN-DIRECT SALARY COST\")","v":"INITIAL PEF DIRECT & IN-DIRECT SALARY COST"}]
[]
[null,"CLASSIFICATION",null,"EMPLOYEE NAME","WORKDAYS",null,"RATE / HOUR","COST"]
[null,{"$f":"'RD-Workdays-Sub1'!$E$7","v":""},null,{"$f":"'PEF CLASSIFICATION SHEET'!$D$1067","v":0},{"$f":"IF(B57=\"\",0,'RD-Workdays-Sub1'!$E$83+'RD-Lighting-Sub1'!$E$28)","v":0},"x",{"$f":"'PEF CLASSIFICATION SHEET'!$E$1067","v":0},{"$f":"E57*8*G57","v":0}]
[null,{"$f":"'RD-Workdays-Sub1'!$F$7","v":""},null,{"$f":"'PEF CLASSIFICATION SHEET'!$D$1068","v":0},{"$f":"IF(B58=\"\",0,'RD-Workdays-Sub1'!$F$83+'RD-Lighting-Sub1'!$F$28)","v":0},"x",{"$f":"'PEF CLASSIFICATION SHEET'!$E$1068","v":0},0]
[null,{"$f":"'RD-Workdays-Sub1'!$G$7","v":""},null,{"$f":"'PEF CLASSIFICATION SHEET'!$D$1069","v":0},{"$f":"IF(B59=\"\",0,'RD-Workdays-Sub1'!$G$83+'RD-Lighting-Sub1'!$G$28)","v":0},"x",{"$f":"'PEF CLASSIFICATION SHEET'!$E$1069","v":0},0]
[null,{"$f":"'RD-Workdays-Sub1'!$H$7","v":""},null,{"$f":"'PEF CLASSIFICATION SHEET'!$D$1070","v":0},{"$f":"IF(B60=\"\",0,'RD-Workdays-Sub1'!$H$83+'RD-Lighting-Sub1'!$H$28)","v":0},"x",{"$f":"'PEF CLASSIFICATION SHEET'!$E$1070","v":0},{"$f":"E60*8*G60","v":0}]
[null,{"$f":"'RD-Workdays-Sub1'!$I$7","v":""},null,{"$f":"'PEF CLASSIFICATION SHEET'!$D$1071","v":0},{"$f":"IF(B61=\"\",0,'RD-Workdays-Sub1'!$I$83+'RD-Lighting-Sub1'!$I$28)","v":0},"x",{"$f":"'PEF CLASSIFICATION SHEET'!$E$1071","v":0},{"$f":"E61*8*G61","v":0}]
[null,{"$f":"'RD-Workdays-Sub1'!$J$7","v":""},null,{"$f":"'PEF CLASSIFICATION SHEET'!$D$1072","v":0},{"$f":"IF(B62=\"\",0,'RD-Workdays-Sub1'!$J$83+'RD-Lighting-Sub1'!$J$28)","v":0},"x",{"$f":"'PEF CLASSIFICATION SHEET'!$E$1072","v":0},0]
[null,{"$f":"'RD-Workdays-Sub1'!$K$7","v":""},null,{"$f":"'PEF CLASSIFICATION SHEET'!$D$1073","v":0},{"$f":"IF(B63=\"\",0,'RD-Workdays-Sub1'!$K$83+'RD-Lighting-Sub1'!$K$28)","v":0},"x",{"$f":"'PEF CLASSIFICATION SHEET'!$E$1073","v":0},0]
[null,{"$f":"'RD-Workdays-Sub1'!$L$7","v":""},null,{"$f":"'PEF CLASSIFICATION SHEET'!$D$1074","v":0},{"$f":"IF(B64=\"\",0,'RD-Workdays-Sub1'!$L$83+'RD-Lighting-Sub1'!$L$28)","v":0},"x",{"$f":"'PEF CLASSIFICATION SHEET'!$E$1074","v":0},0]
[null,{"$f":"'RD-Workdays-Sub1'!$M$7","v":""},null,{"$f":"'PEF CLASSIFICATION SHEET'!$D$1075","v":0},{"$f":"IF(B65=\"\",0,'RD-Workdays-Sub1'!$M$83+'RD-Lighting-Sub1'!$M$28)","v":0},"x",{"$f":"'PEF CLASSIFICATION SHEET'!$E$1075","v":0},{"$f":"E65*8*G65","v":0}]
[null,"TOTAL NUMBER OF WORKDAYS  ",null,null,{"$f":"SUM(E57:E65)","v":0}]
[null,"Total Direct Salary",null,null,null,null,null,{"$f":"SUM(H57:H65)","v":0}]
[null,"Overhead ",null,null,null,null,{"$f":"ROADWAY_SUB1_CONSULTANT_OVERHEAD","v":0},{"$f":"H67*G68","v":0}]
[null,"Subtotal",null,null,null,null,null,{"$f":"H67+H68","v":0}]
[null,"Fee",null,null,null,null,{"$f":"ROADWAY_SUB1_CONSULTANT_FEE","v":0.09},{"$f":"H69*G70","v":0}]
[null,"Cost of Capital",null,null,null,null,{"$f":"ROADWAY_SUB1_CONSULTANT_COSTofCAPITAL","v":0},{"$f":"H67*G71","v":0}]
[null,"TOTAL DIRECT & INDIRECT SALARY COSTS",null,null,null,null,null,{"$f":"SUM(H69:H71)","v":0}]
[]
[]
[]
[null,"RIGHT OF WAY PLAN COSTS"]
[null,{"$f":"IF(K1=TRUE,\"INITIAL PEF DIRECT & IN-DIRECT SALARY COST\",\"FINAL PEF DIRECT & IN-DIRECT SALARY COST\")","v":"INITIAL PEF DIRECT & IN-DIRECT SALARY COST"}]
[]
[null,"CLASSIFICATION",null,"EMPLOYEE NAME","WORKDAYS",null,"RATE / HOUR","COST"]
[null,{"$f":"'RD-Workdays-Sub1'!$E$7","v":""},null,{"$f":"'PEF CLASSIFICATION SHEET'!$D$1067","v":0},{"$f":"IF(B80=\"\",0,'RD-Workdays-Sub1'!$E$87+'RD-Supp-Sub1'!$E$87+'RD-Lighting-Sub1'!$E$28)","v":0},"x",{"$f":"'PEF CLASSIFICATION SHEET'!$E$1067","v":0},{"$f":"E80*8*G80","v":0}]
[null,{"$f":"'RD-Workdays-Sub1'!$F$7","v":""},null,{"$f":"'PEF CLASSIFICATION SHEET'!$D$1068","v":0},{"$f":"IF(B81=\"\",0,'RD-Workdays-Sub1'!$F$87+'RD-Supp-Sub1'!$F$87+'RD-Lighting-Sub1'!$F$28)","v":0},"x",{"$f":"'PEF CLASSIFICATION SHEET'!$E$1068","v":0},0]
[null,{"$f":"'RD-Workdays-Sub1'!$G$7","v":""},null,{"$f":"'PEF CLASSIFICATION SHEET'!$D$1069","v":0},{"$f":"IF(B82=\"\",0,'RD-Workdays-Sub1'!$G$87+'RD-Supp-Sub1'!$G$87+'RD-Lighting-Sub1'!$G$28)","v":0},"x",{"$f":"'PEF CLASSIFICATION SHEET'!$E$1069","v":0},0]
[null,{"$f":"'RD-Workdays-Sub1'!$H$7","v":""},null,{"$f":"'PEF CLASSIFICATION SHEET'!$D$1070","v":0},{"$f":"IF(B83=\"\",0,'RD-Workdays-Sub1'!$H$87+'RD-Supp-Sub1'!$H$87+'RD-Lighting-Sub1'!$G$28)","v":0},"x",{"$f":"'PEF CLASSIFICATION SHEET'!$E$1070","v":0},{"$f":"E83*8*G83","v":0}]
[null,{"$f":"'RD-Workdays-Sub1'!$I$7","v":""},null,{"$f":"'PEF CLASSIFICATION SHEET'!$D$1071","v":0},{"$f":"IF(B84=\"\",0,'RD-Workdays-Sub1'!$I$87+'RD-Supp-Sub1'!$I$87+'RD-Lighting-Sub1'!$I$28)","v":0},"x",{"$f":"'PEF CLASSIFICATION SHEET'!$E$1071","v":0},{"$f":"E84*8*G84","v":0}]
[null,{"$f":"'RD-Workdays-Sub1'!$J$7","v":""},null,{"$f":"'PEF CLASSIFICATION SHEET'!$D$1072","v":0},{"$f":"IF(B85=\"\",0,'RD-Workdays-Sub1'!$J$87+'RD-Supp-Sub1'!$J$87+'RD-Lighting-Sub1'!$J$28)","v":0},"x",{"$f":"'PEF CLASSIFICATION SHEET'!$E$1072","v":0},0]
[null,{"$f":"'RD-Workdays-Sub1'!$K$7","v":""},null,{"$f":"'PEF CLASSIFICATION SHEET'!$D$1073","v":0},{"$f":"IF(B86=\"\",0,'RD-Workdays-Sub1'!$K$87+'RD-Supp-Sub1'!$K$87+'RD-Lighting-Sub1'!$K$28)","v":0},"x",{"$f":"'PEF CLASSIFICATION SHEET'!$E$1073","v":0},0]
[null,{"$f":"'RD-Workdays-Sub1'!$L$7","v":""},null,{"$f":"'PEF CLASSIFICATION SHEET'!$D$1074","v":0},{"$f":"IF(B87=\"\",0,'RD-Workdays-Sub1'!$L$87+'RD-Supp-Sub1'!$L$87+'RD-Lighting-Sub1'!$L$28)","v":0},"x",{"$f":"'PEF CLASSIFICATION SHEET'!$E$1074","v":0},0]
[null,{"$f":"'RD-Workdays-Sub1'!$M$7","v":""},null,{"$f":"'PEF CLASSIFICATION SHEET'!$D$1075","v":0},{"$f":"IF(B88=\"\",0,'RD-Workdays-Sub1'!$M$87+'RD-Supp-Sub1'!$M$87+'RD-Lighting-Sub1'!$M$28)","v":0},"x",{"$f":"'PEF CLASSIFICATION SHEET'!$E$1075","v":0},{"$f":"E88*8*G88","v":0}]
[null,"TOTAL NUMBER OF WORKDAYS  ",null,null,{"$f":"SUM(E80:E88)","v":0}]
[null,"Total Direct Salary",null,null,null,null,null,{"$f":"SUM(H80:H88)","v":0}]
[null,"Overhead ",null,null,null,null,{"$f":"ROADWAY_SUB1_CONSULTANT_OVERHEAD","v":0},{"$f":"H90*G91","v":0}]
[null,"Subtotal",null,null,null,null,null,{"$f":"H90+H91","v":0}]
[null,"Fee",null,null,null,null,{"$f":"ROADWAY_SUB1_CONSULTANT_FEE","v":0.09},{"$f":"H92*G93","v":0}]
[null,"Cost of Capital",null,null,null,null,{"$f":"ROADWAY_SUB1_CONSULTANT_COSTofCAPITAL","v":0},{"$f":"H90*G94","v":0}]
[null,"TOTAL DIRECT & INDIRECT SALARY COSTS",null,null,null,null,null,{"$f":"SUM(H92:H94)","v":0}]
[null,"TOTAL ROADWAY RIGHT OF WAY PLAN COST",null,null,null,null,null,{"$f":"H95","v":0}]
[]
[]
[null,"FINAL PLAN COSTS"]
[null,{"$f":"IF(K1=TRUE,\"INITIAL PEF DIRECT & IN-DIRECT SALARY COST\",\"FINAL PEF DIRECT & IN-DIRECT SALARY COST\")","v":"INITIAL PEF DIRECT & IN-DIRECT SALARY COST"}]
[]
[null,"CLASSIFICATION",null,"EMPLOYEE NAME","WORKDAYS",null,"RATE / HOUR","COST"]
[null,{"$f":"'RD-Workdays-Sub1'!$E$7","v":""},null,{"$f":"'PEF CLASSIFICATION SHEET'!$D$1067","v":0},{"$f":"IF(B103=\"\",0,'RD-Workdays-Sub1'!$E$91+'RD-Supp-Sub1'!$E$91)","v":0},"x",{"$f":"'PEF CLASSIFICATION SHEET'!$E$1067","v":0},{"$f":"E103*8*G103","v":0}]
[null,{"$f":"'RD-Workdays-Sub1'!$F$7","v":""},null,{"$f":"'PEF CLASSIFICATION SHEET'!$D$1068","v":0},{"$f":"IF(B104=\"\",0,'RD-Workdays-Sub1'!$F$91+'RD-Supp-Sub1'!$F$91)","v":0},"x",{"$f":"'PEF CLASSIFICATION SHEET'!$E$1068","v":0},0]
[null,{"$f":"'RD-Workdays-Sub1'!$G$7","v":""},null,{"$f":"'PEF CLASSIFICATION SHEET'!$D$1069","v":0},{"$f":"IF(B105=\"\",0,'RD-Workdays-Sub1'!$G$91+'RD-Supp-Sub1'!$G$91)","v":0},"x",{"$f":"'PEF CLASSIFICATION SHEET'!$E$1069","v":0},0]
[null,{"$f":"'RD-Workdays-Sub1'!$H$7","v":""},null,{"$f":"'PEF CLASSIFICATION SHEET'!$D$1070","v":0},{"$f":"IF(B106=\"\",0,'RD-Workdays-Sub1'!$H$91+'RD-Supp-Sub1'!$H$91)","v":0},"x",{"$f":"'PEF CLASSIFICATION SHEET'!$E$1070","v":0},{"$f":"E106*8*G106","v":0}]
[null,{"$f":"'RD-Workdays-Sub1'!$I$7","v":""},null,{"$f":"'PEF CLASSIFICATION SHEET'!$D$1071","v":0},{"$f":"IF(B107=\"\",0,'RD-Workdays-Sub1'!$I$91+'RD-Supp-Sub1'!$I$91)","v":0},"x",{"$f":"'PEF CLASSIFICATION SHEET'!$E$1071","v":0},{"$f":"E107*8*G107","v":0}]
[null,{"$f":"'RD-Workdays-Sub1'!$J$7","v":""},null,{"$f":"'PEF CLASSIFICATION SHEET'!$D$1072","v":0},{"$f":"IF(B108=\"\",0,'RD-Workdays-Sub1'!$J$91+'RD-Supp-Sub1'!$J$91)","v":0},"x",{"$f":"'PEF CLASSIFICATION SHEET'!$E$1072","v":0},0]
[null,{"$f":"'RD-Workdays-Sub1'!$K$7","v":""},null,{"$f":"'PEF CLASSIFICATION SHEET'!$D$1073","v":0},{"$f":"IF(B109=\"\",0,'RD-Workdays-Sub1'!$K$91+'RD-Supp-Sub1'!$K$91)","v":0},"x",{"$f":"'PEF CLASSIFICATION SHEET'!$E$1073","v":0},0]
[null,{"$f":"'RD-Workdays-Sub1'!$L$7","v":""},null,{"$f":"'PEF CLASSIFICATION SHEET'!$D$1074","v":0},{"$f":"IF(B110=\"\",0,'RD-Workdays-Sub1'!$L$91+'RD-Supp-Sub1'!$L$91)","v":0},"x",{"$f":"'PEF CLASSIFICATION SHEET'!$E$1074","v":0},0]
[null,{"$f":"'RD-Workdays-Sub1'!$M$7","v":""},null,{"$f":"'PEF CLASSIFICATION SHEET'!$D$1075","v":0},{"$f":"IF(B111=\"\",0,'RD-Workdays-Sub1'!$M$91+'RD-Supp-Sub1'!$M$91)","v":0},"x",{"$f":"'PEF CLASSIFICATION SHEET'!$E$1075","v":0},{"$f":"E111*8*G111","v":0}]
[null,"TOTAL NUMBER OF WORKDAYS  ",null,null,{"$f":"SUM(E103:E111)","v":0}]
[null,"Total Direct Salary",null,null,null,null,null,{"$f":"SUM(H103:H111)","v":0}]
[null,"Overhead ",null,null,null,null,{"$f":"ROADWAY_SUB1_CONSULTANT_OVERHEAD","v":0},{"$f":"H113*G114","v":0}]
[null,"Subtotal",null,null,null,null,null,{"$f":"H113+H114","v":0}]
[null,"Fee",null,null,null,null,{"$f":"ROADWAY_SUB1_CONSULTANT_FEE","v":0.09},{"$f":"H115*G116","v":0}]
[null,"Cost of Capital",null,null,null,null,{"$f":"ROADWAY_SUB1_CONSULTANT_COSTofCAPITAL","v":0},{"$f":"H113*G117","v":0}]
[null,"TOTAL DIRECT & INDIRECT SALARY COSTS",null,null,null,null,null,{"$f":"SUM(H115:H117)","v":0}]
[null,"TOTAL DIRECT NON-SALARY COST",null,null,null,null,null,{"$f":"ROADWAY_SUB1_DIRECT_NONSALARY_TOTAL","v":0}]
[null,"TOTAL ROADWAY FINAL PLAN COST",null,null,null,null,null,{"$f":"H119+H118","v":0}]

{"sheet":"RD-Exp-Sub1","index":130,"n_rows":81,"n_cols":13,"rows_kept":81,"cut":false,"hidden":true,"merged":[[69,2,69,13],[77,2,77,13],[0,1,0,13],[1,3,1,4],[1,5,1,8],[1,9,1,13],[41,3,41,12],[60,2,60,13],[35,3,35,13],[40,3,40,8],[3,3,3,13],[4,1,4,3]]}
[null,"ROADWAY TRAVEL AND MISCELLANEOUS COSTS - SUBCONSULTANT 1"]
[null,"FIRM:",null,{"$f":"ROADWAY_SUB1_CONSULTANT_NAME","v":"CONSULTANT NAME"},null,"TIP NUMBER:",null,null,null,{"$f":"TIP.NUMBER","v":0}]
[]
[null,"(A)",null,"*  BOND (includes DOT and Firm's Record Sets)"]
[null,"SUBMITTAL",null,null,null,null,"NO.\nSHTS.",null,"SETS",null,null,null,"TOTAL\nSHTS."]
[null,null,null,"Stage 1 (1RD1)"]
[null,null,null,"Plans",null,null,null,"x",null,null,null,"=",{"$f":"G7*I7","v":0}]
[null,null,null,"Interchange Sheets",null,null,null,"x",null,null,null,"=",{"$f":"G8*I8","v":0}]
[null,null,null,"Cross-Sections (11x17)",null,null,null,"x",null,null,null,"=",{"$f":"G9*I9","v":0}]
[]
[null,null,null,"Stage 2 (2RD1, 2RD2)"]
[null,null,null,"Plans",null,null,null,"x",null,null,null,"=",{"$f":"G12*I12","v":0}]
[null,null,null,"Interchange Sheets",null,null,null,"x",null,null,null,"=",{"$f":"G13*I13","v":0}]
[null,null,null,"Cross-Sections (11x17)",null,null,null,"x",null,null,null,"=",{"$f":"G14*I14","v":0}]
[]
[null,null,null,"Stage 3 (3RD1)"]
[null,null,null,"Plans",null,null,null,"x",null,null,null,"=",{"$f":"G17*I17","v":0}]
[null,null,null,"Interchange Sheets",null,null,null,"x",null,null,null,"=",{"$f":"G18*I18","v":0}]
[null,null,null,"Cross-Sections (11x17)",null,null,null,"x",null,null,null,"=",{"$f":"G19*I19","v":0}]
[]
[null,null,null,"Stage 4 (4RD1)"]
[null,null,null,"Plans",null,null,null,"x",null,null,null,"=",{"$f":"G22*I22","v":0}]
[null,null,null,"Interchange Sheets",null,null,null,"x",null,null,null,"=",{"$f":"G23*I23","v":0}]
[null,null,null,"Cross-Sections (11x17)",null,null,null,"x",null,null,null,"=",{"$f":"G24*I24","v":0}]
[]
[null,null,null,"PEF's Work Sets "]
[null,null,null,"Plans",null,null,null,"x",null,null,null,"=",{"$f":"G27*I27","v":0}]
[null,null,null,"Interchange Sheets",null,null,null,"x",null,null,null,"=",{"$f":"G28*I28","v":0}]
[null,null,null,"Cross-Sections (11x17)",null,null,null,"x",null,null,null,"=",{"$f":"G29*I29","v":0}]
[]
[]
[null,"+",null,"TOTAL PLANS (22\" x 34\")",null,null,{"$f":"SUM(M7,M12,M17,M22,M27)","v":0},"x",{"$f":"BOND.REGULAR","v":0.42}," / sheet ",null,"=",{"$f":"G32*I32","v":0}]
[null,"+",null,"TOTAL INTERCHANGE SHEETS (34\" x 68\")",null,null,{"$f":"M8+M13+M18+M23+M28","v":0},"x",{"$f":"BOND.LARGE","v":3.5}," / sheet ",null,"=",{"$f":"G33*I33","v":0}]
[null,"+",null,"TOTAL CROSS-SECTIONS (11\" x 17\")",null,null,{"$f":"SUM(M9,M14,M19,M24,M29)","v":0},"x",{"$f":"LEDGERCOPIES","v":0.34}," / sheet ",null,"=",{"$f":"G34*I34","v":0}]
[]
[null,"(B)",null,"XEROX"]
[]
[null,"+",null,"TOTAL XEROX COPIES (Say)",null,null,null,"x",{"$f":"LETTERCOPIES","v":0.14000000000000001}," / sheet",null,"=",{"$f":"G38*I38","v":0}]
[null,"+",null,"COVERS & BINDING (Say)",null,null,null,"x",{"$f":"COVERS+BINDERS","v":1}," / set",null,"=",{"$f":"G39*I39","v":0}]
[]
[null," ",null,"                          TOTAL REPRODUCTION  (A + B)",null,null,null,null,null,null,null,"=",{"$f":"M32+M33+M34+M38+M39","v":0}]
[null,"(C)",null,"TRAVEL"]
[null,null,null,"PURPOSE of TRIP","TRIPS",null,"MILES",null,"TOTAL",null,"RATE",null,"COSTS"]
[]
[null,"+",null,"Preliminary Field Review",null,"x",null,"=",{"$f":"E45*G45","v":0},"x",{"$f":"SEDAN","v":0.7},"=",{"$f":"I45*K45","v":0}]
[null,"+",null,"Public Meeting/Hearing/Workshops",null,"x",null,"=",0,"x",0.7,"=",0]
[null,"+",null,"Field Inspections (Preliminary, Combined, Final)",null,"x",null,"=",0,"x",0.7,"=",0]
[null,"+",null,"Scheduled Reviews/Miscellaneous Meetings with NCDOT",null,"x",null,"=",0,"x",0.7,"=",0]
[null,"+",null,"Miscellaneous Local Meetings",null,"x",null,"=",0,"x",0.7,"=",0]
[null,"+",null,null,null,"x",null,"=",0,"x",0.7,"=",0]
[null,"+",null,null,null,"x",null,"=",0,"x",0.7,"=",0]
[]
[null,null,null,"PER DIEM","TRIPS",null,"# ATTEND",null,"TOTAL",null,"RATE",null,"COSTS"]
[]
[null,"+",null,"Breakfast",null,"x",null,"=",{"$f":"E55*G55","v":0},"x",{"$f":"BREAKFAST","v":10.1},"=",{"$f":"I55*K55","v":0}]
[null,"+",null,"Lunch",null,"x",null,"=",{"$f":"E56*G56","v":0},"x",{"$f":"LUNCH","v":13.3},"=",{"$f":"I56*K56","v":0}]
[null,"+",null,"Dinner",null,"x",null,"=",{"$f":"E57*G57","v":0},"x",{"$f":"DINNER","v":23.1},"=",{"$f":"I57*K57","v":0}]
[null,"+",null,"Lodging",null,"x",null,"=",{"$f":"E58*G58","v":0},"x",{"$f":"LODGING_LUMP.SUM","v":95},"=",{"$f":"I58*K58","v":0}]
[]
[]
[null,"(D)","MISC."]
[null,null,null,"LIST",null,null,null,null,"NUMBER",null,"RATE",null,"COSTS"]
[]
[null,"+",null,"Postage",null,null,null,null,null,"x",null,"=",{"$f":"I64*K64","v":0}]
[null,"+",null,null,null,null,null,null,null,"x",null,"=",0]
[null,"+",null,null,null,null,null,null,null,"x",null,"=",0]
[]
[null,null,null,"TOTAL TRAVEL & MISCELLANEOUS COSTS (C + D)",null,null,null,null,null,null,null,"=",{"$f":"SUM(M45:M51,M55:M58,M64:M66)","v":0}]
[]
[null,null,"TOTALS"]
[]
[null,null,null,"TOTAL REPRODUCTION   ",null,null,null,null,null,null,null,"=",{"$f":"'RD-Exp-Sub1'!M41","v":0}]
[]
[null,null,null,"TOTAL TRAVEL & MISCELLANEOUS COSTS (C + D)",null,null,null,null,null,null,null,"=",{"$f":"M68","v":0}]
[]
[null,null,null,"TOTAL DIRECT NON-SALARY COSTS",null,null,null,null,null,null,null,"=",{"$f":"M74+M72","v":0}]
[]
[null,null,"NOTES"]
[]
[null,"*",null,"Use only items that are not included in overhead."]
[null,"+",null,"See DOT Guidelines for current maximum allowable non-salary direct costs."]

{"sheet":"RD-Data-Sub2","index":131,"n_rows":64,"n_cols":22,"rows_kept":64,"cut":false,"hidden":true,"merged":[[22,10,22,12],[35,17,37,17],[12,4,14,13],[15,4,15,13],[17,3,17,13],[19,10,19,12],[20,10,20,12],[21,10,21,12],[8,4,10,13],[1,1,1,15],[3,4,3,9],[4,4,4,11],[5,4,5,11],[6,4,6,11]]}
[]
[null,"ROADWAY PROJECT DATA - SUBCONSULTANT 2"]
[]
[null,null,null,"TIP NUMBER :",{"$f":"IF(TIP.NUMBER=\"\",\"\",TIP.NUMBER)","v":""},null,null,null,null,null,null,null,"ESTIMATE SUBMITTAL NUMBER :",{"$f":"IF(ESTIMATE.SUBMITTAL.NUMBER=\"\",\"\",ESTIMATE.SUBMITTAL.NUMBER)","v":""}]
[null,null,null,"WBS NUMBER :",{"$f":"IF(WBS.NUMBER=\"\",\"\",WBS.NUMBER)","v":""}]
[null,null,null,"FA NUMBER :",{"$f":"IF(FA.NUMBER=\"\",\"\",FA.NUMBER)","v":""}]
[null,null,null,"COUNTY :",{"$f":"IF(COUNTY=\"\",\"\",COUNTY)","v":""}]
[]
[null,null,null,"DESCRIPTION :",{"$f":"IF(PROJECT.DESCRIPTION=\"\",\"\",PROJECT.DESCRIPTION)","v":""}]
[]
[]
[]
[null,null,null,"DISCIPLINE(S) SELECTED :  ",{"$f":"IF(TASK.ORDER_SCOPE=\"\",\"\",TASK.ORDER_SCOPE)","v":"PM-Project Mgmt"}]
[]
[]
[null,null,null,"CONSULTANT :",{"$f":"IF(SUBCONSULTANT2.CONSULTANT=\"\",\"\",SUBCONSULTANT2.CONSULTANT)","v":""}]
[]
[null,null,null,"(ENGLISH UNITS)",null,null,null,null,null,null,null,null,null,null,null,null,null,null,null,"(ENGLISH UNITS)"]
[null,null,"     ","TYPE OF FACILITY (Y/N) :",null,null,null,null,null,"     ","NUMBER OF TYPICAL SECTIONS :",null,null,null,null,null,null,null,null,"(METRIC UNITS)"]
[null,null,null,"  BRIDGE PROJECT",null,null,null,null,null,null,"  BASIC SHOULDER ( 2 & 3 LANES )",null,null,null,null,null,null,"TYPICALS TOTAL",null,null,null,"Y"]
[null,null,null,"  2 & 3-LANE SHOULDER",null,null,null,null,null,null,"  BASIC CURB & GUTTER ( 3 LANES )",null,null,null,null,null,null,{"$f":"SUM(N20:N23)","v":0},null,null,null,"N"]
[null,null,null,"  3-LANE C&G",null,null,null,null,null,null,"  MEDIAN SHOULDER ( 4 LANES & UP )"]
[null,null,null,"  MEDIAN DIVIDED ",null,null,null,null,null,null,"  MEDIAN CURB & GUTTER ( 4 LANES & UP )",null,null,null,null,null,null,"LENGTH TOTAL"]
[null,null,null,"  DIVIDED WITH RAISED MEDIAN",null,null,null,null,null,null,null,null,null,null,null,null,null,{"$f":"SUM(G28:G32)","v":0}]
[null,null,null,"  SUPERSTREET",null,null,null,null,null,null," NUMBER OF :"]
[null,null,null,null,null,null,null,null,null,null,"  -Y- LINES > 300'",null,null,null,null,null,null,"# XS"]
[null,null,null," DESIGN LENGTHS:",null,"UNIT:",{"$f":"IF($D$18=\"(ENGLISH UNITS)\",\"FEET\",\"METER\")","v":"FEET"},null,null,null,"  -Y- LINES < 300'",null,null,null,null,null,null,{"$f":"G28/50+1","v":1},"  -L-"]
[null,null,null,"  -L-",null,null,null,null,null,null,"  RAMPS, LOOPS",null,null,null,null,null,null,{"$f":"G29/50+1","v":1},"  DETOURS"]
[null,null,null,"  DETOURS",null,null,null,null,null,null,"  FLYOVERS, C-D's",null,null,null,null,null,null,{"$f":"G30/50+1","v":1},"  -Y- LINES > 300'"]
[null,null,null,"  -Y- LINES > 300'",null,null,null,null,null,null,"  GORE AREAS",null,null,null,null,null,null,{"$f":"G31/50+1","v":1},"  RAMPS, LOOPS, FLYOVERS, C-D's"]
[null,null,null,"  RAMPS, LOOPS, FLYOVERS, C-D's",null,null,null,null,null,null,"  SERVICE ROADS",null,null,null,null,null,null,{"$f":"G32/50+1","v":1},"  SERVICE ROADS"]
[null,null,null,"  SERVICE ROADS",null,null,null,null,null,null,"  DRIVEWAYS >100' (REQUIRES GRADE)"]
[null,null,null,"  TOTAL C&G SECTION",null,null,null,null,null,null,"  BRIDGE SITES OVER ROADWAYS",null,null,null,null,null,null,"# XS TOTAL"]
[null,null,null,"  TOTAL SHOULDER SECTION",null,null,null,null,null,null,"  BRIDGE SITES OVER WATERWAYS",null,null,null,null,null,null,{"$f":"SUM(R27:R31)","v":5}]
[null,null,null,null,null,null,null,null,null,null,"  WALLS"]
[null,null,"                                             ","SCALE :  ",null,"UNIT:",{"$f":"IF($D$18=\"(ENGLISH UNITS)\",\"FEET\",\"METER\")","v":"FEET"},null,null,null,"  PARCELS",null,null,null,null,null,null,"#\nINTERSECTIONS \nTOTAL"]
[null,null,null,"  PLAN",null,"1\" =",null,null,null,null,"  SUB-CONSULTANTS"]
[null,null,null,"  PROFILE",null,"                1\" =",null,"H"]
[null,null,null,"  PROFILE",null,"                1\" =",null,"V",null,"     ","NUMBER OF AT GRADE INTERSECTIONS :",null,null,null,null,null,null,{"$f":"SUM(N40:N45)","v":0}]
[null,null,null,"  X-SECTIONS",null,"1\" =",null,null,null,null,"  4 LEG ( WITH BULB )"]
[null,null,null,null,null,null,null,null,null,null,"  4 LEG ( WITHOUT BULB )",null,null,null,null,null,null,"SHEETS TOTAL"]
[null,null,"     ","PUBLIC HEARING / WORKSHOP (Y/N) :",null,null,null,null,null,null,"  T ( WITH BULB )",null,null,null,null,null,null,{"$f":"R24","v":0}]
[null,null,null,"  PREPARE MAP",null,null,null,null,null,null,"  T ( WITHOUT BULB )"]
[null,null,null,"  ATTEND MAP REVIEW MEETING",null,null,null,null,null,null,"  ROUNDABOUT"]
[null,null,null,"  ATTEND HEARING / WORKSHOP",null,null,null,null,null,null,"  LEFTOVER"]
[null,null,null,"  OVERNIGHT STAY"]
[null,null,null,"  ATTEND POST PUBLIC HEARING MEETING",null,null,null,null,null,"     ","NUMBER OF INTERCHANGES : "]
[null,null,null,null,null,null,null,null,null,null,"  DIAMOND"]
[null,null,null,"DESIGN EXCEPTION PACKAGE (Y/N) :",null,null,null,null,null,null,"  CLOVERLEAF"]
[null,null,null,null,null,null,null,null,null,null,"  SPUI"]
[null,null,null,"CAPACITY ANALYSIS (Y/N) :",null,null,null,null,null,null,"  DDI"]
[null,null,null,null,null,null,null,null,null,null,"  MULTILEVEL"]
[null,null,null,"CONSTRUCTION PHASING NARRATIVE (Y/N) :"]
[null,null,null,null,null,null,null,null,null,"     ","NUMBER OF PLAN SHEETS :"]
[null,null,null,"WALLS REQUIRING ENVELOPE                UNIT:",null,null,{"$f":"IF($D$18=\"(ENGLISH UNITS)\",\"FEET\",\"METER\")","v":"FEET"},null,null,null,"  -L-"]
[null,null,null,"  NOISE",null,null,null,null,null,null,"  -Y-"]
[null,null,null,"  RETAINING (ROADWAY PAY ITEM)",null,null,null,null,null,null,"  SERVICE ROADS"]
[null,null,null,null,null,null,null,null,null,null,"  DETOURS"]
[null,null,null,"NUMBER OF FIELD INSPECTIONS :",null,null,null,null,null,null,"  INTERCHANGE DETAIL"]
[null,null,null,"  OVERNIGHT STAY (Y/N)"]
[null,null,null,null,null,null,null,null,null,null,"NUMBER OF X-SECTIONS PER SHEET :"]
[null,null,"     ","PLAN PREPARATION STAGE (Y/N) :"]
[null,null,null,"  R/W"]
[null,null,null,"  LET"]

{"sheet":"RD-Corr_Mod-PROJ.WS-Sub2","index":132,"n_rows":39,"n_cols":22,"rows_kept":39,"cut":false,"hidden":true,"merged":[[38,6,39,6],[38,7,39,7],[38,10,39,10],[38,11,39,11],[38,12,39,12],[38,5,39,5],[29,1,29,2],[30,1,30,2],[31,1,31,2],[32,1,32,2],[33,1,33,2],[34,1,34,2],[35,1,35,2],[36,1,36,2],[37,1,37,2],[38,1,39,1],[38,3,39,4],[28,1,28,2],[17,1,17,2],[18,1,18,2],[19,1,19,2],[20,1,20,2],[21,1,21,2],[22,1,22,2],[23,1,23,2],[24,1,24,2],[25,1,25,2],[26,1,26,2],[27,1,27,2],[16,1,16,2],[5,1,5,2],[6,1,6,2],[7,1,7,2],[8,1,8,2],[9,1,9,2],[10,1,10,2],[11,1,11,2],[12,1,12,2],[13,1,13,2],[14,1,14,2],[15,1,15,2],[0,9,0,10],[0,12,0,13],[2,1,4,2],[2,3,4,3],[2,4,4,4],[2,5,3,7],[2,8,4,8],[2,9,4,9],[2,10,3,12],[2,13,4,13]]}
[null,"Roadway Corridor Modeling Project Worksheet",null,null,null,null,null,null,"TIP NUMBER:",{"$f":"TIP.NUMBER","v":0},null,"FIRM:",{"$f":"ROADWAY_SUB2_CONSULTANT_NAME","v":"CONSULTANT NAME"}]
[null,"SUBCONSULTANT 2"]
[null,"Group #",null,"Corridor #","Alignment","Corridor Type",null,null,"Begin Station","End Station","Corridor Length (Miles)",null,null,"Typical Section/Template Type"]
[]
[null,null,null,null,null,"Major","Minor","Detour",null,null,"Major","Minor","Detour"]
[null,null,null,{"$f":"IF(E6=\"\",\"\",1)","v":""},null,null,null,null,null,null,{"$f":"IF(F6=\"\",\"\",IFERROR(IF(COUNTIF(F6,\"*\"),($J6-$I6)/5280,0),0))","v":""},"","",null,null,null,null,null,null,null,null,"None or NA"]
[null,null,null,{"$f":"IF(E7=\"\",\"\",MAX(D6)+1)","v":""},null,null,null,null,null,null,"","","",null,null,null,null,null,null,null,null,"Undivided Facility  - Shoulder Section"]
[null,null,null,{"$f":"IF(E8=\"\",\"\",MAX($D$6:D7)+1)","v":""},null,null,null,null,null,null,"","","",null,null,null,null,null,null,null,null,"Undivided Facility  - Curb and Gutter Section"]
[null,null,null,{"$f":"IF(E9=\"\",\"\",MAX($D$6:D8)+1)","v":""},null,null,null,null,null,null,"","","",null,null,null,null,null,null,null,null,"Divided Facility - Median Ditch"]
[null,null,null,{"$f":"IF(E10=\"\",\"\",MAX($D$6:D9)+1)","v":""},null,null,null,null,null,null,"","","",null,null,null,null,null,null,null,null,"Divided Facility - Median Barrier"]
[null,null,null,{"$f":"IF(E11=\"\",\"\",MAX($D$6:D10)+1)","v":""},null,null,null,null,null,null,"","","",null,null,null,null,null,null,null,null,"Divided Facility - Raised Median"]
[null,null,null,{"$f":"IF(E12=\"\",\"\",MAX($D$6:D11)+1)","v":""},null,null,null,null,null,null,"","","",null,null,null,null,null,null,null,null,"Interchange - Ramp/Loop"]
[null,null,null,{"$f":"IF(E13=\"\",\"\",MAX($D$6:D12)+1)","v":""},null,null,null,null,null,null,"","","",null,null,null,null,null,null,null,null,"Roundabout"]
[null,null,null,{"$f":"IF(E14=\"\",\"\",MAX($D$6:D13)+1)","v":""},null,null,null,null,null,null,"","","",null,null,null,null,null,null,null,null,"Driveways"]
[null,null,null,{"$f":"IF(E15=\"\",\"\",MAX($D$6:D14)+1)","v":""},null,null,null,null,null,null,"","","",null,null,null,null,null,null,null,null,"Detour"]
[null,null,null,{"$f":"IF(E16=\"\",\"\",MAX($D$6:D15)+1)","v":""},null,null,null,null,null,null,"","","",null,null,null,null,null,null,null,null,"Costomize"]
[null,null,null,{"$f":"IF(E17=\"\",\"\",MAX($D$6:D16)+1)","v":""},null,null,null,null,null,null,"","",""]
[null,null,null,{"$f":"IF(E18=\"\",\"\",MAX($D$6:D17)+1)","v":""},null,null,null,null,null,null,"","",""]
[null,null,null,{"$f":"IF(E19=\"\",\"\",MAX($D$6:D18)+1)","v":""},null,null,null,null,null,null,"","","",null,null,null,null,null,null,null,null,"X"]
[null,null,null,{"$f":"IF(E20=\"\",\"\",MAX($D$6:D19)+1)","v":""},null,null,null,null,null,null,"","",""]
[null,null,null,{"$f":"IF(E21=\"\",\"\",MAX($D$6:D20)+1)","v":""},null,null,null,null,null,null,"","",""]
[null,null,null,{"$f":"IF(E22=\"\",\"\",MAX($D$6:D21)+1)","v":""},null,null,null,null,null,null,{"$f":"IF(F22=\"\",\"\",IFERROR(IF(COUNTIF(F22,\"*\"),($J22-$I22)/5280,0),0))","v":""},"",""]
[null,null,null,{"$f":"IF(E23=\"\",\"\",MAX($D$6:D22)+1)","v":""},null,null,null,null,null,null,"","",""]
[null,null,null,{"$f":"IF(E24=\"\",\"\",MAX($D$6:D23)+1)","v":""},null,null,null,null,null,null,"","",""]
[null,null,null,{"$f":"IF(E25=\"\",\"\",MAX($D$6:D24)+1)","v":""},null,null,null,null,null,null,"","",""]
[null,null,null,{"$f":"IF(E26=\"\",\"\",MAX($D$6:D25)+1)","v":""},null,null,null,null,null,null,"","",""]
[null,null,null,{"$f":"IF(E27=\"\",\"\",MAX($D$6:D26)+1)","v":""},null,null,null,null,null,null,"","",""]
[null,null,null,{"$f":"IF(E28=\"\",\"\",MAX($D$6:D27)+1)","v":""},null,null,null,null,null,null,"","",""]
[null,null,null,{"$f":"IF(E29=\"\",\"\",MAX($D$6:D28)+1)","v":""},null,null,null,null,null,null,"","",""]
[null,null,null,{"$f":"IF(E30=\"\",\"\",MAX($D$6:D29)+1)","v":""},null,null,null,null,null,null,"","",""]
[null,null,null,{"$f":"IF(E31=\"\",\"\",MAX($D$6:D30)+1)","v":""},null,null,null,null,null,null,"","",""]
[null,null,null,{"$f":"IF(E32=\"\",\"\",MAX($D$6:D31)+1)","v":""},null,null,null,null,null,null,"","",""]
[null,null,null,{"$f":"IF(E33=\"\",\"\",MAX($D$6:D32)+1)","v":""},null,null,null,null,null,null,"","",""]
[null,null,null,{"$f":"IF(E34=\"\",\"\",MAX($D$6:D33)+1)","v":""},null,null,null,null,null,null,"","",""]
[null,null,null,{"$f":"IF(E35=\"\",\"\",MAX($D$6:D34)+1)","v":""},null,null,null,null,null,null,"","",""]
[null,null,null,{"$f":"IF(E36=\"\",\"\",MAX($D$6:D35)+1)","v":""},null,null,null,null,null,null,"","",""]
[null,null,null,{"$f":"IF(E37=\"\",\"\",MAX($D$6:D36)+1)","v":""},null,null,null,null,null,null,"","",""]
[null,null,null,{"$f":"IF(E38=\"\",\"\",MAX($D$6:D37)+1)","v":""},null,null,null,null,null,null,{"$f":"IF(F38=\"\",\"\",IFERROR(IF(COUNTIF(F38,\"*\"),($J38-$I38)/5280,0),0))","v":""},{"$f":"IF(G38=\"\",\"\",IFERROR(IF(COUNTIF(G38,\"*\"),($J38-$I38)/5280,0),0))","v":""},{"$f":"IF(H38=\"\",\"\",IFERROR(IF(COUNTIF(H38,\"*\"),($J38-$I38)/5280,0),0))","v":""}]
[null,null,null,"Sheet Total:",null,{"$f":"COUNTA(F6:F38)","v":0},{"$f":"COUNTA(G6:G38)","v":0},0,null,null,{"$f":"SUM(K6:K38)","v":0},{"$f":"SUM(L6:L38)","v":0},0]

{"sheet":"RD-Workdays-Sub2","index":133,"n_rows":91,"n_cols":14,"rows_kept":91,"cut":false,"hidden":true,"merged":[[84,2,86,2],[84,4,84,12],[88,2,90,2],[88,4,88,12],[80,2,82,2],[80,4,80,12],[4,13,6,13],[7,4,7,12],[51,4,51,12],[67,4,67,12],[4,0,5,2],[4,4,4,12]]}
[null,null,"Roadway Workday Estimate - SUBCONSULTANT 2"]
[null,null,{"$f":"TIP.NUMBER","v":0},"TIP NUMBER"]
[null,null,{"$f":"ROADWAY_SUB2_CONSULTANT_NAME","v":"CONSULTANT NAME"},"FIRM"]
[]
["Note:  The tasks listed below in green are standard tasks following standard scopes.  The tasks should not be modified unless this is a supplemental. In that case they can be written over or deleted but do not cut/paste. Keep tasks in the correct phase 2RD1/2RDs, 3RD1, 4RD1.",null,null,"TOTAL","WORKDAYS",null,null,null,null,null,null,null,null,"NOTES:"]
[null,null,null,"EMPLOYEE",{"$f":"IF('PEF CLASSIFICATION SHEET'!D1078=\"\",\"\",LEFT('PEF CLASSIFICATION SHEET'!D1078,4))","v":""},{"$f":"IF('PEF CLASSIFICATION SHEET'!D1079=\"\",\"\",LEFT('PEF CLASSIFICATION SHEET'!D1079,4))","v":""},{"$f":"IF('PEF CLASSIFICATION SHEET'!D1080=\"\",\"\",LEFT('PEF CLASSIFICATION SHEET'!D1080,4))","v":""},{"$f":"IF('PEF CLASSIFICATION SHEET'!D1081=\"\",\"\",LEFT('PEF CLASSIFICATION SHEET'!D1081,4))","v":""},{"$f":"IF('PEF CLASSIFICATION SHEET'!D1082=\"\",\"\",LEFT('PEF CLASSIFICATION SHEET'!D1082,4))","v":""},{"$f":"IF('PEF CLASSIFICATION SHEET'!D1083=\"\",\"\",LEFT('PEF CLASSIFICATION SHEET'!D1083,4))","v":""},{"$f":"IF('PEF CLASSIFICATION SHEET'!D1084=\"\",\"\",LEFT('PEF CLASSIFICATION SHEET'!D1084,4))","v":""},{"$f":"IF('PEF CLASSIFICATION SHEET'!D1085=\"\",\"\",LEFT('PEF CLASSIFICATION SHEET'!D1085,4))","v":""},{"$f":"IF('PEF CLASSIFICATION SHEET'!D1086=\"\",\"\",LEFT('PEF CLASSIFICATION SHEET'!D1086,4))","v":""}]
["Phase","ID","Description","CLASSIFICATION",{"$f":"IF('PEF CLASSIFICATION SHEET'!C1078=\"\",\"\",'PEF CLASSIFICATION SHEET'!C1078)","v":""},{"$f":"IF('PEF CLASSIFICATION SHEET'!C1079=\"\",\"\",'PEF CLASSIFICATION SHEET'!C1079)","v":""},{"$f":"IF('PEF CLASSIFICATION SHEET'!C1080=\"\",\"\",'PEF CLASSIFICATION SHEET'!C1080)","v":""},{"$f":"IF('PEF CLASSIFICATION SHEET'!C1081=\"\",\"\",'PEF CLASSIFICATION SHEET'!C1081)","v":""},{"$f":"IF('PEF CLASSIFICATION SHEET'!C1082=\"\",\"\",'PEF CLASSIFICATION SHEET'!C1082)","v":""},{"$f":"IF('PEF CLASSIFICATION SHEET'!C1083=\"\",\"\",'PEF CLASSIFICATION SHEET'!C1083)","v":""},{"$f":"IF('PEF CLASSIFICATION SHEET'!C1084=\"\",\"\",'PEF CLASSIFICATION SHEET'!C1084)","v":""},{"$f":"IF('PEF CLASSIFICATION SHEET'!C1085=\"\",\"\",'PEF CLASSIFICATION SHEET'!C1085)","v":""},{"$f":"IF('PEF CLASSIFICATION SHEET'!C1086=\"\",\"\",'PEF CLASSIFICATION SHEET'!C1086)","v":""}]
[null,null,"2RD2","WORKDAYS"]
["2RD1",1,"Design Criteria and Associated Typical Sections",{"$f":"SUM(E9:M9)","v":0}]
["2RD1","2.1.1","Horizontal and Vertical Layout for L",0]
["2RD1","2.1.2","Horizontal and Vertical Layout for Y lines, service roads, loops, ramps",0]
["2RD1","2.1.3","Horizontal and Vertical Layout for Detours",0]
["2RD1","2.2.1","3D Model for mainline and y-lines",0]
["2RD1","2.2.2","3D Model for intersections, driveways, and small y-lines",0]
["2RD1",2.2999999999999998,"Right of Way and Easement Layout",0]
["2RD1",2.4,"Maintenance of Traffic Narrative",0]
["2RD1","2.5.1","Potential Retaining Wall Location Evaluation",0]
["2RD1","2.5.2","Incorporate retaining walls into plans and develop retaining wall envelopes",0]
["2RD1",2.6,"Design Public Meeting/Hearing Maps",0]
["2RD1","2.7.1","Prepare Title Sheet, Typical Sections, and Earthwork summary",0]
["2RD1","2.7.2","Sheeting for Plans, Profiles, Cross sections",0]
["2RD1","2.7.3","Complete the Draft Design Recommendation Plan Set and QC",0]
["2RD1",2.8,"Design Recommendation Plan Set Review and Finalization",0]
["2RD1","3.1.1","Complete Design Exception Checklist",0]
["2RD1","3.1.2","Formalize Design Exceptions",0]
["2RD1",4,"Prepare and submit design review request for NCDOT IMD review of roadway design plans",0]
["2RD1",5,"Value Engineering Study Coordination (in support of 2VM1)",0]
["2RD1",7,"Location and Design Approval (LADA) (EA and EIS projects only)",0]
["2RD1",8,"Task Management",0]
["2RD1",9,"Complete QC Procedures",0]
["2RD1",10.1,"2RD1 Misc. Item:",0]
["2RD1",10.199999999999999,"2RD1 Misc. Item:",0]
["2RD1",10.3,"2RD1 Misc. Item:",0]
["2RD1",10.4,"2RD1 Misc. Item:",0]
["2RD1",10.5,"2RD1 Misc. Item:",0]
["2RD2","1.1.1","Incorporate Geotechnical Recommendations",0]
["2RD2","1.1.2","Incoporate Hydro into Plans, Profiles, and X-sections",0]
["2RD2","1.1.3","Refine Right of Way and Easements on Plans",0]
["2RD2","1.1.4","Complete the Field Inspection Plan Set submittal (PDFs and supporting electronic files)",0]
["2RD2",1.2,"Attend Field Inspection Review Meeting",0]
["2RD2",2,"VMO Constructability Review (see 2VM3)",0]
["2RD2",3,"Construction Estimate Quantities",0]
["2RD2",4,"Task Management",0]
["2RD2",5,"Complete QC Procedures",0]
["2RD2",6,"2RD2 Misc. Item:",0]
["2RD2",6.1,"2RD2 Misc. Item:",0]
["2RD2",6.2,"2RD2 Misc. Item:",0]
["2RD2",6.3,"2RD2 Misc. Item:",0]
["2RD2",6.4,"2RD2 Misc. Item:",{"$f":"SUM(E49:M49)","v":0}]
[null,null,"TOTAL STAGE 2 WORKDAYS",0,{"$f":"SUM(E9:E49)","v":0},0,0,0,0,0,0,0,0]
[null,null,null,null," "]
[null,null,"3RD1","WORKDAYS",null,null,null,null,null,null,null,null,null,"NOTES:"]
["3RD1",1.1000000000000001,"Incorporate noise wall locations from Design Noise Report",{"$f":"SUM(E53:M53)","v":0}]
["3RD1",1.2,"Complete Right-of-Way Plan Set (PDFs and supporting electronic files)",0]
["3RD1",1.3,"Attend Plan-in-Hand Review Meeting",0]
["3RD1",2,"Pavement Management Coordination",0]
["3RD1",3,"Construction Estimate Quantities",0]
["3RD1",4,"Conduct Permit Drawing Consistency Review",0]
["3RD1",6,"Task Management",0]
["3RD1",7,"Complete QC Procedures",0]
["3RD1",8.1,"3RD1 Misc. Item:",0]
["3RD1",8.1999999999999993,"3RD1 Misc. Item:",0]
["3RD1",8.3000000000000007,"3RD1 Misc. Item:",0]
["3RD1",8.4,"3RD1 Misc. Item:",0]
["3RD1",8.5,"3RD1 Misc. Item:",{"$f":"SUM(E65:M65)","v":0}]
[null,null,"TOTAL STAGE 3 WORKDAYS",{"$f":"SUM(E66:M66)","v":0},{"$f":"SUM(E53:E65)","v":0},0,0,0,0,0,0,0,0]
[]
[null,null,"4RD1","WORKDAYS",null,null,null,null,null,null,null,null,null,"NOTES:"]
["4RD1",1,"Review Set of Final Plans",{"$f":"SUM(E69:M69)","v":0}]
["4RD1",2,"Final Construction Quantities",0]
["4RD1",3,"Sealed Contract Roadway Design Plans",0]
["4RD1",4,"Task Management",0]
["4RD1",5,"Complete QC Procedures",0]
["4RD1",6.1,"4RD1 Misc. Item:",{"$f":"SUM(E74:M74)","v":0}]
["4RD1",6.2,"4RD1 Misc. Item:",{"$f":"SUM(E75:M75)","v":0}]
["4RD1",6.3,"4RD1 Misc. Item:",0]
["4RD1",6.4,"4RD1 Misc. Item:",0]
["4RD1",6.5,"4RD1 Misc. Item:",{"$f":"SUM(E78:M78)","v":0}]
[null,null,"TOTAL STAGE 4 WORKDAYS",{"$f":"SUM(E79:M79)","v":0},{"$f":"SUM(E69:E78)","v":0},0,0,0,0,0,0,0,0]
[]
[null,null,"TOTAL ESTIMATED WORKDAYS:  ","TOTAL","WORKDAYS"]
[null,null,null,"CLASSIFICATION",{"$f":"$E$7","v":""},{"$f":"$F$7","v":""},{"$f":"$G$7","v":""},{"$f":"$H$7","v":""},{"$f":"$I$7","v":""},{"$f":"$J$7","v":""},{"$f":"$K$7","v":""},{"$f":"$L$7","v":""},{"$f":"$M$7","v":""}]
[null,null,null,{"$f":"SUM(E83:M83)","v":0},{"$f":"E87+E91","v":0},{"$f":"F87+F91","v":0},0,0,0,0,0,0,0]
[]
[null,null,"TOTAL ESTIMATED WORKDAYS \nFOR 3PEF COSTS (Stage 2 & 3):  ","TOTAL","WORKDAYS"]
[null,null,null,"CLASSIFICATION",{"$f":"$E$7","v":""},{"$f":"$F$7","v":""},{"$f":"$G$7","v":""},{"$f":"$H$7","v":""},{"$f":"$I$7","v":""},{"$f":"$J$7","v":""},{"$f":"$K$7","v":""},{"$f":"$L$7","v":""},{"$f":"$M$7","v":""}]
[null,null,null,{"$f":"SUM(E87:M87)","v":0},{"$f":"E50+E66","v":0},0,0,0,0,0,0,0,0]
[]
[null,null,"TOTAL ESTIMATED WORKDAYS\nFOR 4PEF PLAN COSTS (Stage 4):  ","TOTAL","WORKDAYS"]
[null,null,null,"CLASSIFICATION",{"$f":"$E$7","v":""},{"$f":"$F$7","v":""},{"$f":"$G$7","v":""},{"$f":"$H$7","v":""},{"$f":"$I$7","v":""},{"$f":"$J$7","v":""},{"$f":"$K$7","v":""},{"$f":"$L$7","v":""},{"$f":"$M$7","v":""}]
[null,null,null,{"$f":"SUM(E91:M91)","v":0},{"$f":"E79","v":0},{"$f":"F79","v":0},0,0,0,0,0,0,0]

{"sheet":"RD-Supp-Sub2","index":134,"n_rows":91,"n_cols":14,"rows_kept":91,"cut":false,"hidden":true,"merged":[[67,4,67,12],[4,0,5,2],[84,2,86,2],[84,4,84,12],[88,2,90,2],[88,4,88,12],[80,2,82,2],[80,4,80,12],[3,4,3,13],[4,4,4,12],[4,13,6,13],[7,4,7,12],[51,4,51,12]]}
[null,null,"Roadway Supplemental Workday Estimate - SUBCONSULTANT 2"]
[null,null,{"$f":"TIP.NUMBER","v":0},"TIP NUMBER"]
[null,null,{"$f":"ROADWAY_SUB2_CONSULTANT_NAME","v":"CONSULTANT NAME"},"FIRM"]
[null,null,null,null,{"$f":"IF(REASON.FOR.SUPPLEMENTAL=\"\",\"SUPPLEMENTAL REASON, Key the reason on the OVERALL SUMMARY worksheet\",CONCATENATE(\"Supplemental Reason:  \",REASON.FOR.SUPPLEMENTAL))","v":"SUPPLEMENTAL REASON, Key the reason on the OVERALL SUMMARY worksheet"}]
["Note:  The tasks listed below in green are standard tasks following standard scopes.  The tasks should not be modified unless this is a supplemental. In that case they can be written over or deleted but do not cut/paste. Keep tasks in the correct phase 2RD1/2RDs, 3RD1, 4RD1.",null,null,"TOTAL","WORKDAYS",null,null,null,null,null,null,null,null,"NOTES:"]
[null,null,null,"EMPLOYEE",{"$f":"IF('PEF CLASSIFICATION SHEET'!D1078=\"\",\"\",LEFT('PEF CLASSIFICATION SHEET'!D1078,4))","v":""},{"$f":"IF('PEF CLASSIFICATION SHEET'!D1079=\"\",\"\",LEFT('PEF CLASSIFICATION SHEET'!D1079,4))","v":""},{"$f":"IF('PEF CLASSIFICATION SHEET'!D1080=\"\",\"\",LEFT('PEF CLASSIFICATION SHEET'!D1080,4))","v":""},{"$f":"IF('PEF CLASSIFICATION SHEET'!D1081=\"\",\"\",LEFT('PEF CLASSIFICATION SHEET'!D1081,4))","v":""},{"$f":"IF('PEF CLASSIFICATION SHEET'!D1082=\"\",\"\",LEFT('PEF CLASSIFICATION SHEET'!D1082,4))","v":""},{"$f":"IF('PEF CLASSIFICATION SHEET'!D1083=\"\",\"\",LEFT('PEF CLASSIFICATION SHEET'!D1083,4))","v":""},{"$f":"IF('PEF CLASSIFICATION SHEET'!D1084=\"\",\"\",LEFT('PEF CLASSIFICATION SHEET'!D1084,4))","v":""},{"$f":"IF('PEF CLASSIFICATION SHEET'!D1085=\"\",\"\",LEFT('PEF CLASSIFICATION SHEET'!D1085,4))","v":""},{"$f":"IF('PEF CLASSIFICATION SHEET'!D1086=\"\",\"\",LEFT('PEF CLASSIFICATION SHEET'!D1086,4))","v":""}]
["Phase","ID","Description","CLASSIFICATION",{"$f":"IF('PEF CLASSIFICATION SHEET'!C1078=\"\",\"\",'PEF CLASSIFICATION SHEET'!C1078)","v":""},{"$f":"IF('PEF CLASSIFICATION SHEET'!C1079=\"\",\"\",'PEF CLASSIFICATION SHEET'!C1079)","v":""},{"$f":"IF('PEF CLASSIFICATION SHEET'!C1080=\"\",\"\",'PEF CLASSIFICATION SHEET'!C1080)","v":""},{"$f":"IF('PEF CLASSIFICATION SHEET'!C1081=\"\",\"\",'PEF CLASSIFICATION SHEET'!C1081)","v":""},{"$f":"IF('PEF CLASSIFICATION SHEET'!C1082=\"\",\"\",'PEF CLASSIFICATION SHEET'!C1082)","v":""},{"$f":"IF('PEF CLASSIFICATION SHEET'!C1083=\"\",\"\",'PEF CLASSIFICATION SHEET'!C1083)","v":""},{"$f":"IF('PEF CLASSIFICATION SHEET'!C1084=\"\",\"\",'PEF CLASSIFICATION SHEET'!C1084)","v":""},{"$f":"IF('PEF CLASSIFICATION SHEET'!C1085=\"\",\"\",'PEF CLASSIFICATION SHEET'!C1085)","v":""},{"$f":"IF('PEF CLASSIFICATION SHEET'!C1086=\"\",\"\",'PEF CLASSIFICATION SHEET'!C1086)","v":""}]
[null,null,"2RD2 - SUPPLEMENTAL","WORKDAYS"]
["2RD1",1,"Design Criteria and Associated Typical Sections",{"$f":"SUM(E9:M9)","v":0}]
["2RD1","2.1.1","Horizontal and Vertical Layout for L",0]
["2RD1","2.1.2","Horizontal and Vertical Layout for Y lines, service roads, loops, ramps",0]
["2RD1","2.1.3","Horizontal and Vertical Layout for Detours",0]
["2RD1","2.2.1","3D Model for mainline and y-lines",0]
["2RD1","2.2.2","3D Model for intersections, driveways, and small y-lines",0]
["2RD1",2.2999999999999998,"Right of Way and Easement Layout",0]
["2RD1",2.4,"Maintenance of Traffic Narrative",0]
["2RD1","2.5.1","Potential Retaining Wall Location Evaluation",0]
["2RD1","2.5.2","Incorporate retaining walls into plans and develop retaining wall envelopes",0]
["2RD1",2.6,"Design Public Meeting/Hearing Maps",0]
["2RD1","2.7.1","Prepare Title Sheet, Typical Sections, and Earthwork summary",0]
["2RD1","2.7.2","Sheeting for Plans, Profiles, Cross sections",0]
["2RD1","2.7.3","Complete the Draft Design Recommendation Plan Set and QC",0]
["2RD1",2.8,"Design Recommendation Plan Set Review and Finalization",0]
["2RD1","3.1.1","Complete Design Exception Checklist",0]
["2RD1","3.1.2","Formalize Design Exceptions",0]
["2RD1",4,"Prepare and submit design review request for NCDOT IMD review of roadway design plans",0]
["2RD1",5,"Value Engineering Study Coordination (in support of 2VM1)",0]
["2RD1",7,"Location and Design Approval (LADA) (EA and EIS projects only)",0]
["2RD1",8,"Task Management",0]
["2RD1",9,"Complete QC Procedures",0]
["2RD1",10.1,"2RD1 Misc. Item:",0]
["2RD1",10.199999999999999,"2RD1 Misc. Item:",0]
["2RD1",10.3,"2RD1 Misc. Item:",0]
["2RD1",10.4,"2RD1 Misc. Item:",0]
["2RD1",10.5,"2RD1 Misc. Item:",0]
["2RD2","1.1.1","Incorporate Geotechnical Recommendations",0]
["2RD2","1.1.2","Incoporate Hydro into Plans, Profiles, and X-sections",0]
["2RD2","1.1.3","Refine Right of Way and Easements on Plans",0]
["2RD2","1.1.4","Complete the Field Inspection Plan Set submittal (PDFs and supporting electronic files)",0]
["2RD2",1.2,"Attend Field Inspection Review Meeting",0]
["2RD2",2,"VMO Constructability Review (see 2VM3)",0]
["2RD2",3,"Construction Estimate Quantities",0]
["2RD2",4,"Task Management",0]
["2RD2",5,"Complete QC Procedures",0]
["2RD2",6,"2RD2 Misc. Item:",0]
["2RD2",6.1,"2RD2 Misc. Item:",0]
["2RD2",6.2,"2RD2 Misc. Item:",0]
["2RD2",6.3,"2RD2 Misc. Item:",0]
["2RD2",6.4,"2RD2 Misc. Item:",{"$f":"SUM(E49:M49)","v":0}]
[null,null,"TOTAL STAGE 2 WORKDAYS",0,{"$f":"SUM(E9:E49)","v":0},0,0,0,0,0,0,0,0]
[null,null,null,null," "]
[null,null,"3RD1  - SUPPLEMENTAL","WORKDAYS",null,null,null,null,null,null,null,null,null,"NOTES:"]
["3RD1",1.1000000000000001,"Incorporate noise wall locations from Design Noise Report",{"$f":"SUM(E53:M53)","v":0}]
["3RD1",1.2,"Complete Right-of-Way Plan Set (PDFs and supporting electronic files)",0]
["3RD1",1.3,"Attend Plan-in-Hand Review Meeting",0]
["3RD1",2,"Pavement Management Coordination",0]
["3RD1",3,"Construction Estimate Quantities",0]
["3RD1",4,"Conduct Permit Drawing Consistency Review",0]
["3RD1",6,"Task Management",0]
["3RD1",7,"Complete QC Procedures",0]
["3RD1",8.1,"3RD1 Misc. Item:",0]
["3RD1",8.1999999999999993,"3RD1 Misc. Item:",0]
["3RD1",8.3000000000000007,"3RD1 Misc. Item:",0]
["3RD1",8.4,"3RD1 Misc. Item:",0]
["3RD1",8.5,"3RD1 Misc. Item:",{"$f":"SUM(E65:M65)","v":0}]
[null,null,"TOTAL STAGE 3 WORKDAYS",{"$f":"SUM(E66:M66)","v":0},{"$f":"SUM(E53:E65)","v":0},0,0,0,0,0,0,0,0]
[]
[null,null,"4RD1  - SUPPLEMENTAL","WORKDAYS",null,null,null,null,null,null,null,null,null,"NOTES:"]
["4RD1",1,"Review Set of Final Plans",{"$f":"SUM(E69:M69)","v":0}]
["4RD1",2,"Final Construction Quantities",0]
["4RD1",3,"Sealed Contract Roadway Design Plans",0]
["4RD1",4,"Task Management",0]
["4RD1",5,"Complete QC Procedures",0]
["4RD1",6.1,"4RD1 Misc. Item:",{"$f":"SUM(E74:M74)","v":0}]
["4RD1",6.2,"4RD1 Misc. Item:",{"$f":"SUM(E75:M75)","v":0}]
["4RD1",6.3,"4RD1 Misc. Item:",0]
["4RD1",6.4,"4RD1 Misc. Item:",0]
["4RD1",6.5,"4RD1 Misc. Item:",{"$f":"SUM(E78:M78)","v":0}]
[null,null,"TOTAL STAGE 4 WORKDAYS",{"$f":"SUM(E79:M79)","v":0},{"$f":"SUM(E69:E78)","v":0},0,0,0,0,0,0,0,0]
[]
[null,null,"TOTAL ESTIMATED WORKDAYS:  ","TOTAL","WORKDAYS"]
[null,null,null,"CLASSIFICATION",{"$f":"$E$7","v":""},{"$f":"$F$7","v":""},{"$f":"$G$7","v":""},{"$f":"$H$7","v":""},{"$f":"$I$7","v":""},{"$f":"$J$7","v":""},{"$f":"$K$7","v":""},{"$f":"$L$7","v":""},{"$f":"$M$7","v":""}]
[null,null,null,{"$f":"SUM(E83:M83)","v":0},{"$f":"E87+E91","v":0},{"$f":"F87+F91","v":0},0,0,0,0,0,0,0]
[]
[null,null,"TOTAL ESTIMATED WORKDAYS \nFOR 3PEF COSTS (Stage 2 & 3):  ","TOTAL","WORKDAYS"]
[null,null,null,"CLASSIFICATION",{"$f":"$E$7","v":""},{"$f":"$F$7","v":""},{"$f":"$G$7","v":""},{"$f":"$H$7","v":""},{"$f":"$I$7","v":""},{"$f":"$J$7","v":""},{"$f":"$K$7","v":""},{"$f":"$L$7","v":""},{"$f":"$M$7","v":""}]
[null,null,null,{"$f":"SUM(E87:M87)","v":0},{"$f":"E50+E66","v":0},0,0,0,0,0,0,0,0]
[]
[null,null,"TOTAL ESTIMATED WORKDAYS\nFOR 4PEF PLAN COSTS (Stage 4):  ","TOTAL","WORKDAYS"]
[null,null,null,"CLASSIFICATION",{"$f":"$E$7","v":""},{"$f":"$F$7","v":""},{"$f":"$G$7","v":""},{"$f":"$H$7","v":""},{"$f":"$I$7","v":""},{"$f":"$J$7","v":""},{"$f":"$K$7","v":""},{"$f":"$L$7","v":""},{"$f":"$M$7","v":""}]
[null,null,null,{"$f":"SUM(E91:M91)","v":0},{"$f":"E79","v":0},{"$f":"F79","v":0},0,0,0,0,0,0,0]

{"sheet":"RD-Lighting-Sub2","index":135,"n_rows":28,"n_cols":14,"rows_kept":28,"cut":false,"hidden":true,"merged":[[25,2,27,2],[25,4,25,12],[4,0,5,2],[4,4,4,12],[4,13,6,13],[7,4,7,12],[16,4,16,12]]}
[null,null,"Roadway Lighting Workday Estimate SUB2"]
[null,null,{"$f":"TIP.NUMBER","v":0},"TIP NUMBER"]
[null,null,{"$f":"ROADWAY_CONSULTANT_NAME","v":"CONSULTANT NAME"},"FIRM"]
[]
["Note:  The tasks listed below in green are standard tasks following standard scopes.  The tasks should not be modified unless this is a supplemental. In that case they can be written over or deleted but do not cut/paste. Keep tasks in the correct phase 2RD1/2RDs, 3RD1, 4RD1.",null,null,"TOTAL","WORKDAYS",null,null,null,null,null,null,null,null,"NOTES:"]
[null,null,null,"EMPLOYEE",{"$f":"IF('PEF CLASSIFICATION SHEET'!D274=\"\",\"\",LEFT('PEF CLASSIFICATION SHEET'!D274,4))","v":""},{"$f":"IF('PEF CLASSIFICATION SHEET'!D275=\"\",\"\",LEFT('PEF CLASSIFICATION SHEET'!D275,4))","v":""},{"$f":"IF('PEF CLASSIFICATION SHEET'!D276=\"\",\"\",LEFT('PEF CLASSIFICATION SHEET'!D276,4))","v":""},{"$f":"IF('PEF CLASSIFICATION SHEET'!D277=\"\",\"\",LEFT('PEF CLASSIFICATION SHEET'!D277,4))","v":""},{"$f":"IF('PEF CLASSIFICATION SHEET'!D278=\"\",\"\",LEFT('PEF CLASSIFICATION SHEET'!D278,4))","v":""},{"$f":"IF('PEF CLASSIFICATION SHEET'!D279=\"\",\"\",LEFT('PEF CLASSIFICATION SHEET'!D279,4))","v":""},{"$f":"IF('PEF CLASSIFICATION SHEET'!D280=\"\",\"\",LEFT('PEF CLASSIFICATION SHEET'!D280,4))","v":""},{"$f":"IF('PEF CLASSIFICATION SHEET'!D281=\"\",\"\",LEFT('PEF CLASSIFICATION SHEET'!D281,4))","v":""},{"$f":"IF('PEF CLASSIFICATION SHEET'!D282=\"\",\"\",LEFT('PEF CLASSIFICATION SHEET'!D282,4))","v":""}]
["Phase","ID","Description","CLASSIFICATION",{"$f":"IF('PEF CLASSIFICATION SHEET'!C274=\"\",\"\",'PEF CLASSIFICATION SHEET'!C274)","v":""},{"$f":"IF('PEF CLASSIFICATION SHEET'!C275=\"\",\"\",'PEF CLASSIFICATION SHEET'!C275)","v":""},{"$f":"IF('PEF CLASSIFICATION SHEET'!C276=\"\",\"\",'PEF CLASSIFICATION SHEET'!C276)","v":""},{"$f":"IF('PEF CLASSIFICATION SHEET'!C277=\"\",\"\",'PEF CLASSIFICATION SHEET'!C277)","v":""},{"$f":"IF('PEF CLASSIFICATION SHEET'!C278=\"\",\"\",'PEF CLASSIFICATION SHEET'!C278)","v":""},{"$f":"IF('PEF CLASSIFICATION SHEET'!C279=\"\",\"\",'PEF CLASSIFICATION SHEET'!C279)","v":""},{"$f":"IF('PEF CLASSIFICATION SHEET'!C280=\"\",\"\",'PEF CLASSIFICATION SHEET'!C280)","v":""},{"$f":"IF('PEF CLASSIFICATION SHEET'!C281=\"\",\"\",'PEF CLASSIFICATION SHEET'!C281)","v":""},{"$f":"IF('PEF CLASSIFICATION SHEET'!C282=\"\",\"\",'PEF CLASSIFICATION SHEET'!C282)","v":""}]
[null,null,"2RD2","WORKDAYS"]
["2RD1",6.1,"Initial Lighting Assessment",{"$f":"SUM(E9:M9)","v":0}]
["2RD1",6.2,"Lighting Evaluation ",0]
["2RD1",6.3,"Coordinate with local government on lighting needs",0]
["2RD1",6.4,"2RD1 Misc. Item:",0]
["2RD1",6.5,"2RD1 Misc. Item:",0]
["2RD1",6.6,"2RD1 Misc. Item:",0]
[null,null,"TOTAL STAGE 2 WORKDAYS",{"$f":"SUM(E15:M15)","v":0},{"$f":"SUM(E9:E14)","v":0},0,0,0,0,0,0,0,0]
[null,null,null,null," "]
[null,null,"3RD1","WORKDAYS",null,null,null,null,null,null,null,null,null,"NOTES:"]
["3RD1",5.0999999999999996,"Complete Lighting Layout",{"$f":"SUM(E18:M18)","v":0}]
["3RD1",5.2,"Lighting Design Package",0]
["3RD1",5.3,"3RD1 Misc. Item:",0]
["3RD1",5.4,"3RD1 Misc. Item:",0]
["3RD1",5.5,"3RD1 Misc. Item:",0]
["3RD1",5.6,"3RD1 Misc. Item:",{"$f":"SUM(E23:M23)","v":0}]
[null,null,"TOTAL STAGE 3 WORKDAYS",{"$f":"SUM(E24:M24)","v":0},{"$f":"SUM(E18:E23)","v":0},0,0,0,0,0,0,0,0]
[]
[null,null,"TOTAL ESTIMATED WORKDAYS:  ","TOTAL","WORKDAYS"]
[null,null,null,"CLASSIFICATION",{"$f":"$E$7","v":""},{"$f":"$F$7","v":""},{"$f":"$G$7","v":""},{"$f":"$H$7","v":""},{"$f":"$I$7","v":""},{"$f":"$J$7","v":""},{"$f":"$K$7","v":""},{"$f":"$L$7","v":""},{"$f":"$M$7","v":""}]
[null,null,null,{"$f":"SUM(E28:M28)","v":0},{"$f":"E15+E24","v":0},{"$f":"F15+F24","v":0},0,0,0,0,0,0,0]

{"sheet":"RD-CLASS-Sub2","index":136,"n_rows":120,"n_cols":11,"rows_kept":120,"cut":false,"hidden":true,"merged":[[118,1,118,6],[119,1,119,6],[95,1,95,6],[111,1,111,3],[117,1,117,6],[105,1,105,2],[106,1,106,2],[107,1,107,2],[108,1,108,2],[109,1,109,2],[110,1,110,2],[104,1,104,2],[103,1,103,2],[84,1,84,2],[85,1,85,2],[86,1,86,2],[87,1,87,2],[88,1,88,3],[94,1,94,6],[98,1,98,7],[99,1,99,7],[101,1,101,2],[102,1,102,2],[83,1,83,2],[63,1,63,2],[64,1,64,2],[65,1,65,3],[71,1,71,6],[75,1,75,7],[76,1,76,7],[78,1,78,2],[79,1,79,2],[80,1,80,2],[81,1,81,2],[82,1,82,2],[62,1,62,2],[42,1,42,3],[48,1,48,6],[52,1,52,7],[53,1,53,7],[55,1,55,2],[56,1,56,2],[57,1,57,2],[58,1,58,2],[59,1,59,2],[60,1,60,2],[61,1,61,2],[41,1,41,2],[29,1,29,7],[30,1,30,7],[32,1,32,2],[33,1,33,2],[34,1,34,2],[35,1,35,2],[36,1,36,2],[37,1,37,2],[38,1,38,2],[39,1,39,2],[40,1,40,2],[28,1,28,7],[11,1,11,2],[12,1,12,2],[13,1,13,2],[14,1,14,2],[15,1,15,2],[16,1,16,2],[17,1,17,3],[23,1,23,6],[24,1,24,6],[25,1,25,6],[27,2,27,7],[10,1,10,2],[3,5,3,7],[5,1,5,7],[7,1,7,2],[8,1,8,2],[9,1,9,2]]}
[null,null,null,null,null,null,null,null,null,null,true]
[null,null,null,null,null,null,"TIP NUMBER :",{"$f":"TIP.NUMBER","v":0}]
[null,null,null,null,null,null,"COUNTY :",{"$f":"COUNTY","v":0}]
[null,null,null,"SUBCONSULTANT 2","FIRM:",{"$f":"ROADWAY_SUB2_CONSULTANT_NAME","v":"CONSULTANT NAME"}]
[]
[null,{"$f":"IF(K1=TRUE,\"ROADWAY INITIAL PEF DIRECT & IN-DIRECT SALARY COST\",\"ROADWAY FINAL PEF DIRECT & IN-DIRECT SALARY COST\")","v":"ROADWAY INITIAL PEF DIRECT & IN-DIRECT SALARY COST"}]
[]
[null,"CLASSIFICATION",null,"EMPLOYEE NAME","WORKDAYS",null,"RATE / HOUR","COST"]
[null,{"$f":"'RD-Workdays-Sub2'!$E$7","v":""},null,{"$f":"'PEF CLASSIFICATION SHEET'!$D$1078","v":0},{"$f":"IF(B9=\"\",0,SUM('RD-Workdays-Sub2'!$E$83,'RD-Supp-Sub2'!$E$83,'RD-Lighting-Sub2'!$E$28))","v":0},"x",{"$f":"'PEF CLASSIFICATION SHEET'!$E$1078","v":0},{"$f":"E9*8*G9","v":0}]
[null,{"$f":"'RD-Workdays-Sub2'!$F$7","v":""},null,{"$f":"'PEF CLASSIFICATION SHEET'!$D$1079","v":0},{"$f":"IF(B10=\"\",0,SUM('RD-Workdays-Sub2'!$F$83,'RD-Supp-Sub2'!$F$83,'RD-Lighting-Sub2'!$F$28))","v":0},"x",{"$f":"'PEF CLASSIFICATION SHEET'!$E$1079","v":0},0]
[null,{"$f":"'RD-Workdays-Sub2'!$G$7","v":""},null,{"$f":"'PEF CLASSIFICATION SHEET'!$D$1080","v":0},{"$f":"IF(B11=\"\",0,SUM('RD-Workdays-Sub2'!$G$83,'RD-Supp-Sub2'!$G$83,'RD-Lighting-Sub2'!$G$28))","v":0},"x",{"$f":"'PEF CLASSIFICATION SHEET'!$E$1080","v":0},0]
[null,{"$f":"'RD-Workdays-Sub2'!$H$7","v":""},null,{"$f":"'PEF CLASSIFICATION SHEET'!$D$1081","v":0},{"$f":"IF(B12=\"\",0,SUM('RD-Workdays-Sub2'!$H$83,'RD-Supp-Sub2'!$H$83,'RD-Lighting-Sub2'!$H$28))","v":0},"x",{"$f":"'PEF CLASSIFICATION SHEET'!$E$1081","v":0},{"$f":"E12*8*G12","v":0}]
[null,{"$f":"'RD-Workdays-Sub2'!$I$7","v":""},null,{"$f":"'PEF CLASSIFICATION SHEET'!$D$1082","v":0},{"$f":"IF(B13=\"\",0,SUM('RD-Workdays-Sub2'!$I$83,'RD-Supp-Sub2'!$I$83,'RD-Lighting-Sub2'!$I$28))","v":0},"x",{"$f":"'PEF CLASSIFICATION SHEET'!$E$1082","v":0},{"$f":"E13*8*G13","v":0}]
[null,{"$f":"'RD-Workdays-Sub2'!$J$7","v":""},null,{"$f":"'PEF CLASSIFICATION SHEET'!$D$1083","v":0},{"$f":"IF(B14=\"\",0,SUM('RD-Workdays-Sub2'!$J$83,'RD-Supp-Sub2'!$J$83,'RD-Lighting-Sub2'!$J$28))","v":0},"x",{"$f":"'PEF CLASSIFICATION SHEET'!$E$1083","v":0},0]
[null,{"$f":"'RD-Workdays-Sub2'!$K$7","v":""},null,{"$f":"'PEF CLASSIFICATION SHEET'!$D$1084","v":0},{"$f":"IF(B15=\"\",0,SUM('RD-Workdays-Sub2'!$K$83,'RD-Supp-Sub2'!$K$83,'RD-Lighting-Sub2'!$K$28))","v":0},"x",{"$f":"'PEF CLASSIFICATION SHEET'!$E$1084","v":0},0]
[null,{"$f":"'RD-Workdays-Sub2'!$L$7","v":""},null,{"$f":"'PEF CLASSIFICATION SHEET'!$D$1085","v":0},{"$f":"IF(B16=\"\",0,SUM('RD-Workdays-Sub2'!$L$83,'RD-Supp-Sub2'!$L$83,'RD-Lighting-Sub2'!$L$28))","v":0},"x",{"$f":"'PEF CLASSIFICATION SHEET'!$E$1085","v":0},0]
[null,{"$f":"'RD-Workdays-Sub2'!$M$7","v":""},null,{"$f":"'PEF CLASSIFICATION SHEET'!$D$1086","v":0},{"$f":"IF(B17=\"\",0,SUM('RD-Workdays-Sub2'!$M$83,'RD-Supp-Sub2'!$M$83))","v":0},"x",{"$f":"'PEF CLASSIFICATION SHEET'!$E$1086","v":0},{"$f":"E17*8*G17","v":0}]
[null,"TOTAL NUMBER OF WORKDAYS  ",null,null,{"$f":"SUM(E9:E17)","v":0}]
[null,"Total Direct Salary",null,null,null,null,null,{"$f":"SUM(H9:H17)","v":0}]
[null,"Overhead ",null,null,null,null,{"$f":"ROADWAY_SUB2_CONSULTANT_OVERHEAD","v":0},{"$f":"H19*G20","v":0}]
[null,"Subtotal",null,null,null,null,null,{"$f":"H19+H20","v":0}]
[null,"Fee",null,null,null,null,{"$f":"ROADWAY_SUB2_CONSULTANT_FEE","v":0.09},{"$f":"H21*G22","v":0}]
[null,"Cost of Capital",null,null,null,null,{"$f":"ROADWAY_SUB2_CONSULTANT_COSTofCAPITAL","v":0},{"$f":"H19*G23","v":0}]
[null,"TOTAL DIRECT & INDIRECT SALARY COSTS",null,null,null,null,null,{"$f":"SUM(H21:H23)","v":0}]
[null,"TOTAL DIRECT NON-SALARY COST",null,null,null,null,null,{"$f":"ROADWAY_SUB2_DIRECT_NONSALARY_TOTAL","v":0}]
[null,"TOTAL ROADWAY COST",null,null,null,null,null,{"$f":"ROADWAY_SUB2_SALARY_TOTAL+H25","v":0}]
[]
[null,null,"Notes:\nRate = Rate Per Workhour\nDirect Salary = Workdays x Rate x 8\nOH = OH Rate (as approved by the Fiscal Section) x Total Direct Salary\nSubtotal = Direct Salary + OH\nFee = 9% x Subtotal\nCOC = COC Rate (as approved by the Fiscal Section) x Total Direct Salary\nTotal Direct and Indirect Salary Costs  =  Subtotal + Fee + COC\nTotal Direct Non-Salary Costs is calculated on the \"TRAVEL & MISC.\" tab\nTotal Roadway Costs =  Total Direct & Indirect Salary Costs + Total Direct Non-Salary Costs"]
[]
[null,"SUPPLEMENTAL ONLY"]
[null,{"$f":"IF(K1=TRUE,\"INITIAL PEF DIRECT & IN-DIRECT SALARY COST\",\"FINAL PEF DIRECT & IN-DIRECT SALARY COST\")","v":"INITIAL PEF DIRECT & IN-DIRECT SALARY COST"}]
[]
[null,"CLASSIFICATION",null,"EMPLOYEE NAME","WORKDAYS",null,"RATE / HOUR","COST"]
[null,{"$f":"'RD-Workdays-Sub2'!$E$7","v":""},null,{"$f":"'PEF CLASSIFICATION SHEET'!$D$1078","v":0},{"$f":"IF(B34=\"\",0,'RD-Supp-Sub2'!$E$83)","v":0},"x",{"$f":"'PEF CLASSIFICATION SHEET'!$E$1078","v":0},{"$f":"E34*8*G34","v":0}]
[null,{"$f":"'RD-Workdays-Sub2'!$F$7","v":""},null,{"$f":"'PEF CLASSIFICATION SHEET'!$D$1079","v":0},{"$f":"IF(B35=\"\",0,'RD-Supp-Sub2'!$F$83)","v":0},"x",{"$f":"'PEF CLASSIFICATION SHEET'!$E$1079","v":0},0]
[null,{"$f":"'RD-Workdays-Sub2'!$G$7","v":""},null,{"$f":"'PEF CLASSIFICATION SHEET'!$D$1080","v":0},{"$f":"IF(B36=\"\",0,'RD-Supp-Sub2'!$G$83)","v":0},"x",{"$f":"'PEF CLASSIFICATION SHEET'!$E$1080","v":0},0]
[null,{"$f":"'RD-Workdays-Sub2'!$H$7","v":""},null,{"$f":"'PEF CLASSIFICATION SHEET'!$D$1081","v":0},{"$f":"IF(B37=\"\",0,'RD-Supp-Sub2'!$H$83)","v":0},"x",{"$f":"'PEF CLASSIFICATION SHEET'!$E$1081","v":0},{"$f":"E37*8*G37","v":0}]
[null,{"$f":"'RD-Workdays-Sub2'!$I$7","v":""},null,{"$f":"'PEF CLASSIFICATION SHEET'!$D$1082","v":0},{"$f":"IF(B38=\"\",0,'RD-Supp-Sub2'!$I$83)","v":0},"x",{"$f":"'PEF CLASSIFICATION SHEET'!$E$1082","v":0},{"$f":"E38*8*G38","v":0}]
[null,{"$f":"'RD-Workdays-Sub2'!$J$7","v":""},null,{"$f":"'PEF CLASSIFICATION SHEET'!$D$1083","v":0},{"$f":"IF(B39=\"\",0,'RD-Supp-Sub2'!$J$83)","v":0},"x",{"$f":"'PEF CLASSIFICATION SHEET'!$E$1083","v":0},0]
[null,{"$f":"'RD-Workdays-Sub2'!$K$7","v":""},null,{"$f":"'PEF CLASSIFICATION SHEET'!$D$1084","v":0},{"$f":"IF(B40=\"\",0,'RD-Supp-Sub2'!$K$83)","v":0},"x",{"$f":"'PEF CLASSIFICATION SHEET'!$E$1084","v":0},0]
[null,{"$f":"'RD-Workdays-Sub2'!$L$7","v":""},null,{"$f":"'PEF CLASSIFICATION SHEET'!$D$1085","v":0},{"$f":"IF(B41=\"\",0,'RD-Supp-Sub2'!$L$83)","v":0},"x",{"$f":"'PEF CLASSIFICATION SHEET'!$E$1085","v":0},0]
[null,{"$f":"'RD-Workdays-Sub2'!$M$7","v":""},null,{"$f":"'PEF CLASSIFICATION SHEET'!$D$1086","v":0},{"$f":"IF(B42=\"\",0,'RD-Supp-Sub2'!$M$83)","v":0},"x",{"$f":"'PEF CLASSIFICATION SHEET'!$E$1086","v":0},{"$f":"E42*8*G42","v":0}]
[null,"TOTAL NUMBER OF WORKDAYS  ",null,null,{"$f":"SUM(E34:E42)","v":0}]
[null,"Total Direct Salary",null,null,null,null,null,{"$f":"SUM(H34:H42)","v":0}]
[null,"Overhead ",null,null,null,null,{"$f":"ROADWAY_SUB2_CONSULTANT_OVERHEAD","v":0},{"$f":"H44*G45","v":0}]
[null,"Subtotal",null,null,null,null,null,{"$f":"H44+H45","v":0}]
[null,"Fee",null,null,null,null,{"$f":"ROADWAY_SUB2_CONSULTANT_FEE","v":0.09},{"$f":"H46*G47","v":0}]
[null,"Cost of Capital",null,null,null,null,{"$f":"ROADWAY_SUB2_CONSULTANT_COSTofCAPITAL","v":0},{"$f":"H44*G48","v":0}]
[null,"TOTAL DIRECT & INDIRECT SALARY COSTS",null,null,null,null,null,{"$f":"SUM(H46:H48)","v":0}]
[]
[]
[]
[null,"EXCLUDING SUPPLEMENTAL"]
[null,{"$f":"IF(K1=TRUE,\"INITIAL PEF DIRECT & IN-DIRECT SALARY COST\",\"FINAL PEF DIRECT & IN-DIRECT SALARY COST\")","v":"INITIAL PEF DIRECT & IN-DIRECT SALARY COST"}]
[]
[null,"CLASSIFICATION",null,"EMPLOYEE NAME","WORKDAYS",null,"RATE / HOUR","COST"]
[null,{"$f":"'RD-Workdays-Sub2'!$E$7","v":""},null,{"$f":"'PEF CLASSIFICATION SHEET'!$D$1078","v":0},{"$f":"IF(B57=\"\",0,'RD-Workdays-Sub2'!$E$83+'RD-Lighting-Sub2'!$E$28)","v":0},"x",{"$f":"'PEF CLASSIFICATION SHEET'!$E$1078","v":0},{"$f":"E57*8*G57","v":0}]
[null,{"$f":"'RD-Workdays-Sub2'!$F$7","v":""},null,{"$f":"'PEF CLASSIFICATION SHEET'!$D$1079","v":0},{"$f":"IF(B58=\"\",0,'RD-Workdays-Sub2'!$F$83+'RD-Lighting-Sub2'!$F$28)","v":0},"x",{"$f":"'PEF CLASSIFICATION SHEET'!$E$1079","v":0},0]
[null,{"$f":"'RD-Workdays-Sub2'!$G$7","v":""},null,{"$f":"'PEF CLASSIFICATION SHEET'!$D$1080","v":0},{"$f":"IF(B59=\"\",0,'RD-Workdays-Sub2'!$G$83+'RD-Lighting-Sub2'!$G$28)","v":0},"x",{"$f":"'PEF CLASSIFICATION SHEET'!$E$1080","v":0},0]
[null,{"$f":"'RD-Workdays-Sub2'!$H$7","v":""},null,{"$f":"'PEF CLASSIFICATION SHEET'!$D$1081","v":0},{"$f":"IF(B60=\"\",0,'RD-Workdays-Sub2'!$H$83+'RD-Lighting-Sub2'!$H$28)","v":0},"x",{"$f":"'PEF CLASSIFICATION SHEET'!$E$1081","v":0},{"$f":"E60*8*G60","v":0}]
[null,{"$f":"'RD-Workdays-Sub2'!$I$7","v":""},null,{"$f":"'PEF CLASSIFICATION SHEET'!$D$1082","v":0},{"$f":"IF(B61=\"\",0,'RD-Workdays-Sub2'!$I$83+'RD-Lighting-Sub2'!$I$28)","v":0},"x",{"$f":"'PEF CLASSIFICATION SHEET'!$E$1082","v":0},{"$f":"E61*8*G61","v":0}]
[null,{"$f":"'RD-Workdays-Sub2'!$J$7","v":""},null,{"$f":"'PEF CLASSIFICATION SHEET'!$D$1083","v":0},{"$f":"IF(B62=\"\",0,'RD-Workdays-Sub2'!$J$83+'RD-Lighting-Sub2'!$J$28)","v":0},"x",{"$f":"'PEF CLASSIFICATION SHEET'!$E$1083","v":0},0]
[null,{"$f":"'RD-Workdays-Sub2'!$K$7","v":""},null,{"$f":"'PEF CLASSIFICATION SHEET'!$D$1084","v":0},{"$f":"IF(B63=\"\",0,'RD-Workdays-Sub2'!$K$83+'RD-Lighting-Sub2'!$K$28)","v":0},"x",{"$f":"'PEF CLASSIFICATION SHEET'!$E$1084","v":0},0]
[null,{"$f":"'RD-Workdays-Sub2'!$L$7","v":""},null,{"$f":"'PEF CLASSIFICATION SHEET'!$D$1085","v":0},{"$f":"IF(B64=\"\",0,'RD-Workdays-Sub2'!$L$83+'RD-Lighting-Sub2'!$L$28)","v":0},"x",{"$f":"'PEF CLASSIFICATION SHEET'!$E$1085","v":0},0]
[null,{"$f":"'RD-Workdays-Sub2'!$M$7","v":""},null,{"$f":"'PEF CLASSIFICATION SHEET'!$D$1086","v":0},{"$f":"IF(B65=\"\",0,'RD-Workdays-Sub2'!$M$83+'RD-Lighting-Sub2'!$M$28)","v":0},"x",{"$f":"'PEF CLASSIFICATION SHEET'!$E$1086","v":0},{"$f":"E65*8*G65","v":0}]
[null,"TOTAL NUMBER OF WORKDAYS  ",null,null,{"$f":"SUM(E57:E65)","v":0}]
[null,"Total Direct Salary",null,null,null,null,null,{"$f":"SUM(H57:H65)","v":0}]
[null,"Overhead ",null,null,null,null,{"$f":"ROADWAY_SUB2_CONSULTANT_OVERHEAD","v":0},{"$f":"H67*G68","v":0}]
[null,"Subtotal",null,null,null,null,null,{"$f":"H67+H68","v":0}]
[null,"Fee",null,null,null,null,{"$f":"ROADWAY_SUB2_CONSULTANT_FEE","v":0.09},{"$f":"H69*G70","v":0}]
[null,"Cost of Capital",null,null,null,null,{"$f":"ROADWAY_SUB2_CONSULTANT_COSTofCAPITAL","v":0},{"$f":"H67*G71","v":0}]
[null,"TOTAL DIRECT & INDIRECT SALARY COSTS",null,null,null,null,null,{"$f":"SUM(H69:H71)","v":0}]
[]
[]
[]
[null,"RIGHT OF WAY PLAN COSTS"]
[null,{"$f":"IF(K1=TRUE,\"INITIAL PEF DIRECT & IN-DIRECT SALARY COST\",\"FINAL PEF DIRECT & IN-DIRECT SALARY COST\")","v":"INITIAL PEF DIRECT & IN-DIRECT SALARY COST"}]
[]
[null,"CLASSIFICATION",null,"EMPLOYEE NAME","WORKDAYS",null,"RATE / HOUR","COST"]
[null,{"$f":"'RD-Workdays-Sub2'!$E$7","v":""},null,{"$f":"'PEF CLASSIFICATION SHEET'!$D$1078","v":0},{"$f":"IF(B80=\"\",0,'RD-Workdays-Sub2'!$E$87+'RD-Supp-Sub2'!$E$87+'RD-Lighting-Sub2'!$E$28)","v":0},"x",{"$f":"'PEF CLASSIFICATION SHEET'!$E$1078","v":0},{"$f":"E80*8*G80","v":0}]
[null,{"$f":"'RD-Workdays-Sub2'!$F$7","v":""},null,{"$f":"'PEF CLASSIFICATION SHEET'!$D$1079","v":0},{"$f":"IF(B81=\"\",0,'RD-Workdays-Sub2'!$F$87+'RD-Supp-Sub2'!$F$87+'RD-Lighting-Sub2'!$F$28)","v":0},"x",{"$f":"'PEF CLASSIFICATION SHEET'!$E$1079","v":0},0]
[null,{"$f":"'RD-Workdays-Sub2'!$G$7","v":""},null,{"$f":"'PEF CLASSIFICATION SHEET'!$D$1080","v":0},{"$f":"IF(B82=\"\",0,'RD-Workdays-Sub2'!$G$87+'RD-Supp-Sub2'!$G$87+'RD-Lighting-Sub2'!$G$28)","v":0},"x",{"$f":"'PEF CLASSIFICATION SHEET'!$E$1080","v":0},0]
[null,{"$f":"'RD-Workdays-Sub2'!$H$7","v":""},null,{"$f":"'PEF CLASSIFICATION SHEET'!$D$1081","v":0},{"$f":"IF(B83=\"\",0,'RD-Workdays-Sub2'!$H$87+'RD-Supp-Sub2'!$H$87+'RD-Lighting-Sub2'!$H$28)","v":0},"x",{"$f":"'PEF CLASSIFICATION SHEET'!$E$1081","v":0},{"$f":"E83*8*G83","v":0}]
[null,{"$f":"'RD-Workdays-Sub2'!$I$7","v":""},null,{"$f":"'PEF CLASSIFICATION SHEET'!$D$1082","v":0},{"$f":"IF(B84=\"\",0,'RD-Workdays-Sub2'!$I$87+'RD-Supp-Sub2'!$I$87+'RD-Lighting-Sub2'!$I$28)","v":0},"x",{"$f":"'PEF CLASSIFICATION SHEET'!$E$1082","v":0},{"$f":"E84*8*G84","v":0}]
[null,{"$f":"'RD-Workdays-Sub2'!$J$7","v":""},null,{"$f":"'PEF CLASSIFICATION SHEET'!$D$1083","v":0},{"$f":"IF(B85=\"\",0,'RD-Workdays-Sub2'!$J$87+'RD-Supp-Sub2'!$J$87+'RD-Lighting-Sub2'!$J$28)","v":0},"x",{"$f":"'PEF CLASSIFICATION SHEET'!$E$1083","v":0},0]
[null,{"$f":"'RD-Workdays-Sub2'!$K$7","v":""},null,{"$f":"'PEF CLASSIFICATION SHEET'!$D$1084","v":0},{"$f":"IF(B86=\"\",0,'RD-Workdays-Sub2'!$K$87+'RD-Supp-Sub2'!$K$87+'RD-Lighting-Sub2'!$K$28)","v":0},"x",{"$f":"'PEF CLASSIFICATION SHEET'!$E$1084","v":0},0]
[null,{"$f":"'RD-Workdays-Sub2'!$L$7","v":""},null,{"$f":"'PEF CLASSIFICATION SHEET'!$D$1085","v":0},{"$f":"IF(B87=\"\",0,'RD-Workdays-Sub2'!$L$87+'RD-Supp-Sub2'!$L$87+'RD-Lighting-Sub2'!$L$28)","v":0},"x",{"$f":"'PEF CLASSIFICATION SHEET'!$E$1085","v":0},0]
[null,{"$f":"'RD-Workdays-Sub2'!$M$7","v":""},null,{"$f":"'PEF CLASSIFICATION SHEET'!$D$1086","v":0},{"$f":"IF(B88=\"\",0,'RD-Workdays-Sub2'!$M$87+'RD-Supp-Sub2'!$M$87+'RD-Lighting-Sub2'!$M$28)","v":0},"x",{"$f":"'PEF CLASSIFICATION SHEET'!$E$1086","v":0},{"$f":"E88*8*G88","v":0}]
[null,"TOTAL NUMBER OF WORKDAYS  ",null,null,{"$f":"SUM(E80:E88)","v":0}]
[null,"Total Direct Salary",null,null,null,null,null,{"$f":"SUM(H80:H88)","v":0}]
[null,"Overhead ",null,null,null,null,{"$f":"ROADWAY_SUB2_CONSULTANT_OVERHEAD","v":0},{"$f":"H90*G91","v":0}]
[null,"Subtotal",null,null,null,null,null,{"$f":"H90+H91","v":0}]
[null,"Fee",null,null,null,null,{"$f":"ROADWAY_SUB2_CONSULTANT_FEE","v":0.09},{"$f":"H92*G93","v":0}]
[null,"Cost of Capital",null,null,null,null,{"$f":"ROADWAY_SUB2_CONSULTANT_COSTofCAPITAL","v":0},{"$f":"H90*G94","v":0}]
[null,"TOTAL DIRECT & INDIRECT SALARY COSTS",null,null,null,null,null,{"$f":"SUM(H92:H94)","v":0}]
[null,"TOTAL ROADWAY RIGHT OF WAY PLAN COST",null,null,null,null,null,{"$f":"H95","v":0}]
[]
[]
[null,"FINAL PLAN COSTS"]
[null,{"$f":"IF(K1=TRUE,\"INITIAL PEF DIRECT & IN-DIRECT SALARY COST\",\"FINAL PEF DIRECT & IN-DIRECT SALARY COST\")","v":"INITIAL PEF DIRECT & IN-DIRECT SALARY COST"}]
[]
[null,"CLASSIFICATION",null,"EMPLOYEE NAME","WORKDAYS",null,"RATE / HOUR","COST"]
[null,{"$f":"'RD-Workdays-Sub2'!$E$7","v":""},null,{"$f":"'PEF CLASSIFICATION SHEET'!$D$1078","v":0},{"$f":"IF(B103=\"\",0,'RD-Workdays-Sub2'!$E$91+'RD-Supp-Sub2'!$E$91)","v":0},"x",{"$f":"'PEF CLASSIFICATION SHEET'!$E$1078","v":0},{"$f":"E103*8*G103","v":0}]
[null,{"$f":"'RD-Workdays-Sub2'!$F$7","v":""},null,{"$f":"'PEF CLASSIFICATION SHEET'!$D$1079","v":0},{"$f":"IF(B104=\"\",0,'RD-Workdays-Sub2'!$F$91+'RD-Supp-Sub2'!$F$91)","v":0},"x",{"$f":"'PEF CLASSIFICATION SHEET'!$E$1079","v":0},0]
[null,{"$f":"'RD-Workdays-Sub2'!$G$7","v":""},null,{"$f":"'PEF CLASSIFICATION SHEET'!$D$1080","v":0},{"$f":"IF(B105=\"\",0,'RD-Workdays-Sub2'!$G$91+'RD-Supp-Sub2'!$G$91)","v":0},"x",{"$f":"'PEF CLASSIFICATION SHEET'!$E$1080","v":0},0]
[null,{"$f":"'RD-Workdays-Sub2'!$H$7","v":""},null,{"$f":"'PEF CLASSIFICATION SHEET'!$D$1081","v":0},{"$f":"IF(B106=\"\",0,'RD-Workdays-Sub2'!$H$91+'RD-Supp-Sub2'!$H$91)","v":0},"x",{"$f":"'PEF CLASSIFICATION SHEET'!$E$1081","v":0},{"$f":"E106*8*G106","v":0}]
[null,{"$f":"'RD-Workdays-Sub2'!$I$7","v":""},null,{"$f":"'PEF CLASSIFICATION SHEET'!$D$1082","v":0},{"$f":"IF(B107=\"\",0,'RD-Workdays-Sub2'!$I$91+'RD-Supp-Sub2'!$I$91)","v":0},"x",{"$f":"'PEF CLASSIFICATION SHEET'!$E$1082","v":0},{"$f":"E107*8*G107","v":0}]
[null,{"$f":"'RD-Workdays-Sub2'!$J$7","v":""},null,{"$f":"'PEF CLASSIFICATION SHEET'!$D$1083","v":0},{"$f":"IF(B108=\"\",0,'RD-Workdays-Sub2'!$J$91+'RD-Supp-Sub2'!$J$91)","v":0},"x",{"$f":"'PEF CLASSIFICATION SHEET'!$E$1083","v":0},0]
[null,{"$f":"'RD-Workdays-Sub2'!$K$7","v":""},null,{"$f":"'PEF CLASSIFICATION SHEET'!$D$1084","v":0},{"$f":"IF(B109=\"\",0,'RD-Workdays-Sub2'!$K$91+'RD-Supp-Sub2'!$K$91)","v":0},"x",{"$f":"'PEF CLASSIFICATION SHEET'!$E$1084","v":0},0]
[null,{"$f":"'RD-Workdays-Sub2'!$L$7","v":""},null,{"$f":"'PEF CLASSIFICATION SHEET'!$D$1085","v":0},{"$f":"IF(B110=\"\",0,'RD-Workdays-Sub2'!$L$91+'RD-Supp-Sub2'!$L$91)","v":0},"x",{"$f":"'PEF CLASSIFICATION SHEET'!$E$1085","v":0},0]
[null,{"$f":"'RD-Workdays-Sub2'!$M$7","v":""},null,{"$f":"'PEF CLASSIFICATION SHEET'!$D$1086","v":0},{"$f":"IF(B111=\"\",0,'RD-Workdays-Sub2'!$M$91+'RD-Supp-Sub2'!$M$91)","v":0},"x",{"$f":"'PEF CLASSIFICATION SHEET'!$E$1086","v":0},{"$f":"E111*8*G111","v":0}]
[null,"TOTAL NUMBER OF WORKDAYS  ",null,null,{"$f":"SUM(E103:E111)","v":0}]
[null,"Total Direct Salary",null,null,null,null,null,{"$f":"SUM(H103:H111)","v":0}]
[null,"Overhead ",null,null,null,null,{"$f":"ROADWAY_SUB2_CONSULTANT_OVERHEAD","v":0},{"$f":"H113*G114","v":0}]
[null,"Subtotal",null,null,null,null,null,{"$f":"H113+H114","v":0}]
[null,"Fee",null,null,null,null,{"$f":"ROADWAY_SUB2_CONSULTANT_FEE","v":0.09},{"$f":"H115*G116","v":0}]
[null,"Cost of Capital",null,null,null,null,{"$f":"ROADWAY_SUB2_CONSULTANT_COSTofCAPITAL","v":0},{"$f":"H113*G117","v":0}]
[null,"TOTAL DIRECT & INDIRECT SALARY COSTS",null,null,null,null,null,{"$f":"SUM(H115:H117)","v":0}]
[null,"TOTAL DIRECT NON-SALARY COST",null,null,null,null,null,{"$f":"ROADWAY_SUB2_DIRECT_NONSALARY_TOTAL","v":0}]
[null,"TOTAL ROADWAY FINAL PLAN COST",null,null,null,null,null,{"$f":"H119+H118","v":0}]

{"sheet":"RD-Exp-Sub2","index":137,"n_rows":81,"n_cols":13,"rows_kept":81,"cut":false,"hidden":true,"merged":[[69,2,69,13],[77,2,77,13],[0,1,0,13],[1,3,1,4],[1,5,1,8],[1,9,1,13],[41,3,41,12],[60,2,60,13],[35,3,35,13],[40,3,40,8],[3,3,3,13],[4,1,4,3]]}
[null,"ROADWAY TRAVEL AND MISCELLANEOUS COSTS - SUBCONSULTANT 2"]
[null,"FIRM:",null,{"$f":"ROADWAY_SUB2_CONSULTANT_NAME","v":"CONSULTANT NAME"},null,"TIP NUMBER:",null,null,null,{"$f":"TIP.NUMBER","v":0}]
[]
[null,"(A)",null,"*  BOND (includes DOT and Firm's Record Sets)"]
[null,"SUBMITTAL",null,null,null,null,"NO.\nSHTS.",null,"SETS",null,null,null,"TOTAL\nSHTS."]
[null,null,null,"Stage 1 (1RD1)"]
[null,null,null,"Plans",null,null,null,"x",null,null,null,"=",{"$f":"G7*I7","v":0}]
[null,null,null,"Interchange Sheets",null,null,null,"x",null,null,null,"=",{"$f":"G8*I8","v":0}]
[null,null,null,"Cross-Sections (11x17)",null,null,null,"x",null,null,null,"=",{"$f":"G9*I9","v":0}]
[]
[null,null,null,"Stage 2 (2RD1, 2RD2)"]
[null,null,null,"Plans",null,null,null,"x",null,null,null,"=",{"$f":"G12*I12","v":0}]
[null,null,null,"Interchange Sheets",null,null,null,"x",null,null,null,"=",{"$f":"G13*I13","v":0}]
[null,null,null,"Cross-Sections (11x17)",null,null,null,"x",null,null,null,"=",{"$f":"G14*I14","v":0}]
[]
[null,null,null,"Stage 3 (3RD1)"]
[null,null,null,"Plans",null,null,null,"x",null,null,null,"=",{"$f":"G17*I17","v":0}]
[null,null,null,"Interchange Sheets",null,null,null,"x",null,null,null,"=",{"$f":"G18*I18","v":0}]
[null,null,null,"Cross-Sections (11x17)",null,null,null,"x",null,null,null,"=",{"$f":"G19*I19","v":0}]
[]
[null,null,null,"Stage 4 (4RD1)"]
[null,null,null,"Plans",null,null,null,"x",null,null,null,"=",{"$f":"G22*I22","v":0}]
[null,null,null,"Interchange Sheets",null,null,null,"x",null,null,null,"=",{"$f":"G23*I23","v":0}]
[null,null,null,"Cross-Sections (11x17)",null,null,null,"x",null,null,null,"=",{"$f":"G24*I24","v":0}]
[]
[null,null,null,"PEF's Work Sets "]
[null,null,null,"Plans",null,null,null,"x",null,null,null,"=",{"$f":"G27*I27","v":0}]
[null,null,null,"Interchange Sheets",null,null,null,"x",null,null,null,"=",{"$f":"G28*I28","v":0}]
[null,null,null,"Cross-Sections (11x17)",null,null,null,"x",null,null,null,"=",{"$f":"G29*I29","v":0}]
[]
[]
[null,"+",null,"TOTAL PLANS (22\" x 34\")",null,null,{"$f":"SUM(M7,M12,M17,M22,M27)","v":0},"x",{"$f":"BOND.REGULAR","v":0.42}," / sheet ",null,"=",{"$f":"G32*I32","v":0}]
[null,"+",null,"TOTAL INTERCHANGE SHEETS (34\" x 68\")",null,null,{"$f":"M8+M13+M18+M23+M28","v":0},"x",{"$f":"BOND.LARGE","v":3.5}," / sheet ",null,"=",{"$f":"G33*I33","v":0}]
[null,"+",null,"TOTAL CROSS-SECTIONS (11\" x 17\")",null,null,{"$f":"SUM(M9,M14,M19,M24,M29)","v":0},"x",{"$f":"LEDGERCOPIES","v":0.34}," / sheet ",null,"=",{"$f":"G34*I34","v":0}]
[]
[null,"(B)",null,"XEROX"]
[]
[null,"+",null,"TOTAL XEROX COPIES (Say)",null,null,null,"x",{"$f":"LETTERCOPIES","v":0.14000000000000001}," / sheet ",null,"=",{"$f":"G38*I38","v":0}]
[null,"+",null,"COVERS & BINDING (Say)",null,null,null,"x",{"$f":"COVERS+BINDERS","v":1}," / set",null,"=",{"$f":"G39*I39","v":0}]
[]
[null," ",null,"                          TOTAL REPRODUCTION  (A + B)",null,null,null,null,null,"=",null,null,{"$f":"M32+M33+M34+M38+M39","v":0}]
[null,"(C)",null,"TRAVEL"]
[null,null,null,"PURPOSE of TRIP","TRIPS",null,"MILES",null,"TOTAL",null,"RATE",null,"COSTS"]
[]
[null,"+",null,"Preliminary Field Review",null,"x",null,"=",{"$f":"E45*G45","v":0},"x",{"$f":"SEDAN","v":0.7},"=",{"$f":"I45*K45","v":0}]
[null,"+",null,"Public Meeting/Hearing/Workshops",null,"x",null,"=",0,"x",0.7,"=",0]
[null,"+",null,"Field Inspections (Preliminary, Combined, Final)",null,"x",null,"=",0,"x",0.7,"=",0]
[null,"+",null,"Scheduled Reviews/Miscellaneous Meetings with NCDOT",null,"x",null,"=",0,"x",0.7,"=",0]
[null,"+",null,"Miscellaneous Local Meetings",null,"x",null,"=",0,"x",0.7,"=",0]
[null,"+",null,null,null,"x",null,"=",0,"x",0.7,"=",0]
[null,"+",null,null,null,"x",null,"=",0,"x",0.7,"=",0]
[]
[null,null,null,"PER DIEM","TRIPS",null,"# ATTEND",null,"TOTAL",null,"RATE",null,"COSTS"]
[]
[null,"+",null,"Breakfast",null,"x",null,"=",{"$f":"E55*G55","v":0},"x",{"$f":"BREAKFAST","v":10.1},"=",{"$f":"I55*K55","v":0}]
[null,"+",null,"Lunch",null,"x",null,"=",{"$f":"E56*G56","v":0},"x",{"$f":"LUNCH","v":13.3},"=",{"$f":"I56*K56","v":0}]
[null,"+",null,"Dinner",null,"x",null,"=",{"$f":"E57*G57","v":0},"x",{"$f":"DINNER","v":23.1},"=",{"$f":"I57*K57","v":0}]
[null,"+",null,"Lodging",null,"x",null,"=",{"$f":"E58*G58","v":0},"x",{"$f":"LODGING_LUMP.SUM","v":95},"=",{"$f":"I58*K58","v":0}]
[]
[]
[null,"(D)","MISC."]
[null,null,null,"LIST",null,null,null,null,"NUMBER",null,"RATE",null,"COSTS"]
[]
[null,"+",null,"Postage",null,null,null,null,null,"x",null,"=",{"$f":"I64*K64","v":0}]
[null,"+",null,null,null,null,null,null,null,"x",null,"=",0]
[null,"+",null,null,null,null,null,null,null,"x",null,"=",0]
[]
[null,null,null,"TOTAL TRAVEL & MISCELLANEOUS COSTS (C +D)",null,null,null,null,null,null,null,"=",{"$f":"SUM(M45:M51,M55:M58,M64:M66)","v":0}]
[]
[null,null,"TOTALS"]
[]
[null,null,null,"TOTAL REPRODUCTION   ",null,null,null,null,null,null,null,"=",{"$f":"'RD-Exp-Sub2'!M41","v":0}]
[]
[null,null,null,"TOTAL TRAVEL & MISCELLANEOUS COSTS (C + D)",null,null,null,null,null,null,null,"=",{"$f":"M68","v":0}]
[]
[null,null,null,"TOTAL DIRECT NON-SALARY COSTS",null,null,null,null,null,null,null,"=",{"$f":"M74+M72","v":0}]
[]
[null,null,"NOTES"]
[]
[null,"*",null,"Use only items that are not included in overhead."]
[null,"+",null,"See DOT Guidelines for current maximum allowable non-salary direct costs."]

{"sheet":"ErosionControl-Sub1","index":138,"n_rows":136,"n_cols":16384,"rows_kept":136,"cut":false,"hidden":true,"merged":[[67,6,67,7],[63,8,64,8],[63,9,64,9],[63,10,64,10],[63,11,64,11],[63,12,64,12],[63,13,64,13],[61,9,62,9],[61,10,62,10],[61,11,62,11],[61,12,62,12],[61,13,62,13],[63,0,64,3],[63,4,64,4],[63,5,64,5],[63,6,64,6],[63,7,64,7],[61,8,62,8],[54,1,54,3],[55,1,55,3],[56,1,56,3],[57,1,57,3],[58,1,58,3],[61,0,62,3],[61,4,62,4],[61,5,62,5],[61,6,62,6],[61,7,62,7],[59,14,60,14],[48,1,48,3],[49,1,49,3],[50,1,50,3],[51,1,51,3],[52,1,52,3],[53,1,53,3],[47,1,47,3],[36,1,36,3],[37,1,37,3],[38,1,38,3],[39,1,39,3],[40,1,40,3],[41,1,41,3],[42,1,42,3],[43,1,43,3],[44,1,44,3],[45,1,45,3],[46,1,46,3],[35,1,35,3],[24,0,24,3],[25,1,25,3],[26,1,26,3],[27,1,27,3],[28,1,28,3],[29,1,29,3],[30,1,30,3],[31,1,31,3],[32,1,32,3],[33,1,33,3],[34,1,34,3],[12,3,12,4],[14,3,14,4],[16,3,17,13],[21,4,21,13],[22,8,23,8],[22,9,23,9],[22,10,23,10],[22,11,23,11],[22,12,23,12],[21,14,24,14],[21,15,24,15],[22,4,23,4],[22,5,23,5],[22,6,23,6],[22,7,23,7],[22,13,23,13],[10,3,10,4],[0,7,0,8],[1,5,1,8],[4,3,4,5],[6,3,6,5],[8,3,8,4]]}
[]
["EROSION CONTROL SUB 1",null,null,null,"PEF NAME:",{"$f":"EROSION.CONTROL_SUB1_CONSULTANT_NAME","v":"CONSULTANT NAME"}]
[]
[]
["PREPARED BY: ",null," ",{"$f":"IF(SCOPE.MANDAY.ESTIMATE.PREPARED.BY=\"\",\"\",SCOPE.MANDAY.ESTIMATE.PREPARED.BY)","v":""},null,null,null,"DATE:",{"$f":"IF(SCOPE.MANDAY.ESTIMATE.PREPARED.BY.DATE=\"\",\"\",SCOPE.MANDAY.ESTIMATE.PREPARED.BY.DATE)","v":""}]
[]
["SUBMITTED BY:  ",null,null,{"$f":"IF(SCOPE.MANDAY.ESTIMATE.APPROVED.BY=\"\",\"\",SCOPE.MANDAY.ESTIMATE.APPROVED.BY)","v":""},null,null,null,"DATE:",{"$f":"IF(SCOPE.MANDAY.ESTIMATE.APPROVED.BY.DATE=\"\",\"\",SCOPE.MANDAY.ESTIMATE.APPROVED.BY.DATE)","v":""}]
[]
["TIP NUMBER: ",null," ",{"$f":"TIP.NUMBER","v":0}]
[]
["PROJECT NUMBER:",null," ",{"$f":"PROJECT.NUMBER","v":0}]
[]
["COUNTY:",null," ",{"$f":"COUNTY","v":0}]
[]
["FA NUMBER:",null," ",{"$f":"FA.NUMBER","v":0}]
[]
["PROJECT DESCRIPTION:",null,null,{"$f":"PROJECT.DESCRIPTION","v":0}]
[]
[]
[null,null," "]
[]
[null,null,null,null,"ESTIMATED WORKHOURS",null,null,null,null,null,null,null,null,null,"TOTAL","NOTES"]
[null,null,"  CLASSIFICATION",null,{"$f":"IF('PEF CLASSIFICATION SHEET'!C1089=\"\",\"\",'PEF CLASSIFICATION SHEET'!C1089)","v":"PROJECT MANAGER"},{"$f":"IF('PEF CLASSIFICATION SHEET'!C1090=\"\",\"\",'PEF CLASSIFICATION SHEET'!C1090)","v":"PROJECT ENGINEER"},{"$f":"IF('PEF CLASSIFICATION SHEET'!C1091=\"\",\"\",'PEF CLASSIFICATION SHEET'!C1091)","v":"DESIGN ENGINEER"},{"$f":"IF('PEF CLASSIFICATION SHEET'!C1092=\"\",\"\",'PEF CLASSIFICATION SHEET'!C1092)","v":"SENIOR TECH."},{"$f":"IF('PEF CLASSIFICATION SHEET'!C1093=\"\",\"\",'PEF CLASSIFICATION SHEET'!C1093)","v":"TECH. / DRAFT."},{"$f":"IF('PEF CLASSIFICATION SHEET'!C1094=\"\",\"\",'PEF CLASSIFICATION SHEET'!C1094)","v":""},{"$f":"IF('PEF CLASSIFICATION SHEET'!C1095=\"\",\"\",'PEF CLASSIFICATION SHEET'!C1095)","v":""},{"$f":"IF('PEF CLASSIFICATION SHEET'!C1096=\"\",\"\",'PEF CLASSIFICATION SHEET'!C1096)","v":""},{"$f":"IF('PEF CLASSIFICATION SHEET'!C1097=\"\",\"\",'PEF CLASSIFICATION SHEET'!C1097)","v":""},{"$f":"IF('PEF CLASSIFICATION SHEET'!C1098=\"\",\"\",'PEF CLASSIFICATION SHEET'!C1098)","v":""}]
["TASK"]
["EMPLOYEE NAME",null,null,null,{"$f":"IF('PEF CLASSIFICATION SHEET'!D1089=\"\",\"\",LEFT('PEF CLASSIFICATION SHEET'!D1089,4))","v":""},{"$f":"IF('PEF CLASSIFICATION SHEET'!D1090=\"\",\"\",LEFT('PEF CLASSIFICATION SHEET'!D1090,4))","v":""},{"$f":"IF('PEF CLASSIFICATION SHEET'!D1091=\"\",\"\",LEFT('PEF CLASSIFICATION SHEET'!D1091,4))","v":""},{"$f":"IF('PEF CLASSIFICATION SHEET'!D1092=\"\",\"\",LEFT('PEF CLASSIFICATION SHEET'!D1092,4))","v":""},{"$f":"IF('PEF CLASSIFICATION SHEET'!D1093=\"\",\"\",LEFT('PEF CLASSIFICATION SHEET'!D1093,4))","v":""},{"$f":"IF('PEF CLASSIFICATION SHEET'!D1094=\"\",\"\",LEFT('PEF CLASSIFICATION SHEET'!D1094,4))","v":""},{"$f":"IF('PEF CLASSIFICATION SHEET'!D1095=\"\",\"\",LEFT('PEF CLASSIFICATION SHEET'!D1095,4))","v":""},{"$f":"IF('PEF CLASSIFICATION SHEET'!D1096=\"\",\"\",LEFT('PEF CLASSIFICATION SHEET'!D1096,4))","v":""},{"$f":"IF('PEF CLASSIFICATION SHEET'!D1097=\"\",\"\",LEFT('PEF CLASSIFICATION SHEET'!D1097,4))","v":""},{"$f":"IF('PEF CLASSIFICATION SHEET'!D1098=\"\",\"\",LEFT('PEF CLASSIFICATION SHEET'!D1098,4))","v":""}]
["2RE1","Initiate Erosion Control and Sediment Plans",null,null,null,null,null,null,null,null,null,null,null,null,{"$f":"SUM(E26:N26)","v":0},null,null,null,null,null,null,null,null,null,null,null,null,null,null,null,null,null,null,null,null,null,null,null,null,null,null,null,null,null,null,null,null,null,null,null,null,null,null,null,null,null,null,null,null,null,null,null,null,null,null,null,null,null,null,null,null,null,null,null,null,null,null,null,null,null,null,null,null,null,null,null,null,null,null,null,null,null,null,null,null,null,null,null,null,null,null,null,null,null,null,null,null,null,null,null,null,null,null,null,null,null,null,null,null,null,null,null,null,null,null,null,null,null,null,null,null,null,null,null,null,null,null,null,null,null,null,null,null,null,null,null,null,null,null,null,null,null,null,null,null,null,null,null,null,null,null,null,null,null,null,null,null,null,null,null,null,null,null,null,null,null,null,null,null,null,null,null,null,null,null,null,null,null,null,null,null,null,null,null,null,null,null,null,null,null,null,null,null,null,null,null,null,null,null,null,null,null,null,null,null,null,null,null,null,null,null,null,null,null,null,null,null,null,null,null,null,null,null,null,null,null,null,null,null,null,null,null,null,null,null,null,null,null,null,null,null,null,null,null,null,null,null,null,null,null,null,null,null,null,null,null,null,null,null,null,null,null,null,null,null,null,null,null,null,null,null,null,null,null,null,null,null,null,null,null,null,null,null,null,null,null,null,null,null,null,null,null,null,null,null,null,null,null,null,null,null,null,null,null,null,null,null,null,null,null,null,null,null,null,null,null,null,null,null,null,null,null,null,null,null,null,null,null,null,null,null,null,null,null,null,null,null,null,null,null,null,null,null,null,null,null,null,null,null,null,null,null,null,null,null,null,null,null,null,null,null,null,null,null,null,null,null,null,null,null,null,null,null,null,null,null,null,null,null,null,null,null,null,null,null,null,null,null,null,null,null,null,null,null,null,null,null,null,null,null,null,null,null,null,null,null,null,null,null,null,null,null,null,null,null,null,null,null,null,null,null,null,null,null,null,null,null,null,null,null,null,null,null,null,null,null,null,null,null,null,null,null,null,null,null,null,null,null,null,null,null,null,null,null,null,null,null,null,null,null,null,null,null,null,null,null,null,null,null,null,null,null,null,null,null,null,null,null,null,null,null,null,null,null,null,null,null,null,null,null,null,null,null,null,null,null,null,null,null,null,null,null,null,null,null,null,null,null,null,null,null,null,null,null,null,null,null,null,null,null,null,null,null,null,null,null,null,null,null,null,null,null,null,null,null,null,null,null,null,null,null,null,null,null,null,null,null,null,null,null,null,null,null,null,null,null,null,null,null,null,null,null,null,null,null,null,null,null,null,null,null,null,null,null,null,null,null,null,null,null,null,null,null,null,null,null,null,null,null,null,null,null,null,null,null,null,null,null,null,null,null,null,null,null,null,null,null,null,null,null,null,null,null,null,null,null,null,null,null,null,null,null,null,null,null,null,null,null,null,null,null,null,null,null,null,null,null,null,null,null,null,null,null,null,null,null,null,null,null,null,null,null,null,null,null,null,null,null,null,null,null,null,null,null,null,null,null,null,null,null,null,null,null,null,null,null,null,null,null,null,null,null,null,null,null,null,null,null,null,null,null,null,null,null,null,null,null,null,null,null,null,null,null,null,null,null,null,null,null,null,null,null,null,null,null,null,null,null,null,null,null,null,null,null,null,null,null,null,null,null,null,null,null,null,null,null,null,null,null,null,null,null,null,null,null,null,null,null,null,null,null,null,null,null,null,null,null,null,null,null,null,null,null,null,null,null,null,null,null,null,null,null,null,null,null,null,null,null,null,null,null,null,null,null,null,null,null,null,null,null,null,null,null,null,null,null,null,null,null,null,null,null,null,null,null,null,null,null,null,null,null,null,null,null,null,null,null,null,null,null,null,null,null,null,null,null,null,null,null,null,null,null,null,null,null,null,null,null,null,null,null,null,null,null,null,null,null,null,null,null,null,null,null,null,null,null,null,null,null,null,null,null,null,null,null,null,null,null,null,null,null,null,null,null,null,null,null,null,null,null,null,null,null,null,null,null,null,null,null,null,null,null,null,null,null,null,null,null,null,null,null,null,null,null,null,null,null,null,null,null,null,null,null,null,null,null,null,null,null,null,null,null,null,null,null,null,null,null,null,null,null,null,null,null,null,null,null,null,null,null,null,null,null,null,null,null,null,null,null,null,null,null,null,null,null,null,null,null,null,null,null,null,null,null,null,null,null,null,null,null,null,null,null,null,null,null,null,null,null,null,null,null,null,null,null,null,null,null,null,null,null,null,null,null,null,null,null,null,null,null,null,null,null,null,null,null,null,null,null,null,null,null,null,null,null,null,null,null,null,null,null,null,null,null,null,null,null,null,null,null,null,null,null,null,null,null,null,null,null,null,null,null,null,null,null,null,null,null,null,null,null,null,null,null,null,null,null,null,null,null,null,null,null,null,null,null,null,null,null,null,null,null,null,null,null,null,null,null,null,null,null,null,null,null,null,null,null,null,null,null,null,null,null,null,null,null,null,null,null,null,null,null,null,null,null,null,null,null,null,null,null,null,null,null,null,null,null,null,null,null,null,null,null,null,null,null,null,null,null,null,null,null,null,null,null,null,null,null,null,null,null,null,null,null,null,null,null,null,null,null,null,null,null,null,null,null,null,null,null,null,null,null,null,null,null,null,null,null,null,null,null,null,null,null,null,null,null,null,null,null,null,null,null,null,null,null,null,null,null,null,null,null,null,null,null,null,null,null,null,null,null,null,null,null,null,null,null,null,null,null,null,null,null,null,null,null,null,null,null,null,null,null,null,null,null,null,null,null,null,null,null,null,null,null,null,null,null,null,null,null,null,null,null,null,null,null,null,null,null,null,null,null,null,null,null,null,null,null,null,null,null,null,null,null,null,null,null,null,null,null,null,null,null,null,null,null,null,null,null,null,null,null,null,null,null,null,null,null,null,null,null,null,null,null,null,null,null,null,null,null,null,null,null,null,null,null,null,null,null,null,null,null,null,null,null,null,null,null,null,null,null,null,null,null,null,null,null,null,null,null,null,null,null,null,null,null,null,null,null,null,null,null,null,null,null,null,null,null,null,null,null,null,null,null,null,null,null,null,null,null,null,null,null,null,null,null,null,null,null,null,null,null,null,null,null,null,null,null,null,null,null,null,null,null,null,null,null,null,null,null,null,null,null,null,null,null,null,null,null,null,null,null,null,null,null,null,null,null,null,null,null,null,null,null,null,null,null,null,null,null,null,null,null,null,null,null,null,null,null,null,null,null,null,null,null,null,null,null,null,null,null,null,null,null,null,null,null,null,null,null,null,null,null,null,null,null,null,null,null,null,null,null,null,null,null,null,null,null,null,null,null,null,null,null,null,null,null,null,null,null,null,null,null,null,null,null,null,null,null,null,null,null,null,null,null,null,null,null,null,null,null,null,null,null,null,null,null,null,null,null,null,null,null,null,null,null,null,null,null,null,null,null,null,null,null,null,null,null,null,null,null,null,null,null,null,null,null,null,null,null,null,null,null,null,null,null,null,null,null,null,null,null,null,null,null,null,null,null,null,null,null,null,null,null,null,null,null,null,null,null,null,null,null,null,null,null,null,null,null,null,null,null,null,null,null,null,null,null,null,null,null,null,null,null,null,null,null,null,null,null,null,null,null,null,null,null,null,null,null,null,null,null,null,null,null,null,null,null,null,null,null,null,null,null,null,null,null,null,null,null,null,null,null,null,null,null,null,null,null,null,null,null,null,null,null,null,null,null,null,null,null,null,null,null,null,null,null,null,null,null,null,null,null,null,null,null,null,null,null,null,null,null,null,null,null,null,null,null,null,null,null,null,null,null,null,null,null,null,null,null,null,null,null,null,null,null,null,null,null,null,null,null,null,null,null,null,null,null,null,null,null,null,null,null,null,null,null,null,null,null,null,null,null,null,null,null,null,null,null,null,null,null,null,null,null,null,null,null,null,null,null,null,null,null,null,null,null,null,null,null,null,null,null,null,null,null,null,null,null,null,null,null,null,null,null,null,null,null,null,null,null,null,null,null,null,null,null,null,null,null,null,null,null,null,null,null,null,null,null,null,null,null,null,null,null,null,null,null,null,null,null,null,null,null,null,null,null,null,null,null,null,null,null,null,null,null,null,null,null,null,null,null,null,null,null,null,null,null,null,null,null,null,null,null,null,null,null,null,null,null,null,null,null,null,null,null,null,null,null,null,null,null,null,null,null,null,null,null,null,null,null,null,null,null,null,null,null,null,null,null,null,null,null,null,null,null,null,null,null,null,null,null,null,null,null,null,null,null,null,null,null,null,null,null,null,null,null,null,null,null,null,null,null,null,null,null,null,null,null,null,null,null,null,null,null,null,null,null,null,null,null,null,null,null,null,null,null,null,null,null,null,null,null,null,null,null,null,null,null,null,null,null,null,null,null,null,null,null,null,null,null,null,null,null,null,null,null,null,null,null,null,null,null,null,null,null,null,null,null,null,null,null,null,null,null,null,null,null,null,null,null,null,null,null,null,null,null,null,null,null,null,null,null,null,null,null,null,null,null,null,null,null,null,null,null,null,null,null,null,null,null,null,null,null,null,null,null,null,null,null,null,null,null,null,null,null,null,null,null,null,null,null,null,null,null,null,null,null,null,null,null,null,null,null,null,null,null,null,null,null,null,null,null,null,null,null,null,null,null,null,null,null,null,null,null,null,null,null,null,null,null,null,null,null,null,null,null,null,null,null,null,null,null,null,null,null,null,null,null,null,null,null,null,null,null,null,null,null,null,null,null,null,null,null,null,null,null,null,null,null,null,null,null,null,null,null,null,null,null,null,null,null,null,null,null,null,null,null,null,null,null,null,null,null,null,null,null,null,null,null,null,null,null,null,null,null,null,null,null,null,null,null,null,null,null,null,null,null,null,null,null,null,null,null,null,null,null,null,null,null,null,null,null,null,null,null,null,null,null,null,null,null,null,null,null,null,null,null,null,null,null,null,null,null,null,null,null,null,null,null,null,null,null,null,null,null,null,null,null,null,null,null,null,null,null,null,null,null,null,null,null,null,null,null,null,null,null,null,null,null,null,null,null,null,null,null,null,null,null,null,null,null,null,null,null,null,null,null,null,null,null,null,null,null,null,null,null,null,null,null,null,null,null,null,null,null,null,null,null,null,null,null,null,null,null,null,null,null,null,null,null,null,null,null,null,null,null,null,null,null,null,null,null,null,null,null,null,null,null,null,null,null,null,null,null,null,null,null,null,null,null,null,null,null,null,null,null,null,null,null,null,null,null,null,null,null,null,null,null,null,null,null,null,null,null,null,null,null,null,null,null,null,null,null,null,null,null,null,null,null,null,null,null,null,null,null,null,null,null,null,null,null,null,null,null,null,null,null,null,null,null,null,null,null,null,null,null,null,null,null,null,null,null,null,null,null,null,null,null,null,null,null,null,null,null,null,null,null,null,null,null,null,null,null,null,null,null,null,null,null,null,null,null,null,null,null,null,null,null,null,null,null,null,null,null,null,null,null,null,null,null,null,null,null,null,null,null,null,null,null,null,null,null,null,null,null,null,null,null,null,null,null,null,null,null,null,null,null,null,null,null,null,null,null,null,null,null,null,null,null,null,null,null,null,null,null,null,null,null,null,null,null,null,null,null,null,null,null,null,null,null,null,null,null,null,null,null,null,null,null,null,null,null,null,null,null,null,null,null,null,null,null,null,null,null,null,null,null,null,null,null,null,null,null,null,null,null,null,null,null,null,null,null,null,null,null,null,null,null,null,null,null,null,null,null,null,null,null,null,null,null,null,null,null,null,null,null,null,null,null,null,null,null,null,null,null,null,null,null,null,null,null,null,null,null,null,null,null,null,null,null,null,null,null,null,null,null,null,null,null,null,null,null,null,null,null,null,null,null,null,null,null,null,null,null,null,null,null,null,null,null,null,null,null,null,null,null,null,null,null,null,null,null,null,null,null,null,null,null,null,null,null,null,null,null,null,null,null,null,null,null,null,null,null,null,null,null,null,null,null,null,null,null,null,null,null,null,null,null,null,null,null,null,null,null,null,null,null,null,null,null,null,null,null,null,null,null,null,null,null,null,null,null,null,null,null,null,null,null,null,null,null,null,null,null,null,null,null,null,null,null,null,null,null,null,null,null,null,null,null,null,null,null,null,null,null,null,null,null,null,null,null,null,null,null,null,null,null,null,null,null,null,null,null,null,null,null,null,null,null,null,null,null,null,null,null,null,null,null,null,null,null,null,null,null,null,null,null,null,null,null,null,null,null,null,null,null,null,null,null,null,null,null,null,null,null,null,null,null,null,null,null,null,null,null,null,null,null,null,null,null,null,null,null,null,null,null,null,null,null,null,null,null,null,null,null,null,null,null,null,null,null,null,null,null,null,null,null,null,null,null,null,null,null,null,null,null,null,null,null,null,null,null,null,null,null,null,null,null,null,null,null,null,null,null,null,null,null,null,null,null,null,null,null,null,null,null,null,null,null,null,null,null,null,null,null,null,null,null,null,null,null,null,null,null,null,null,null,null,null,null,null,null,null,null,null,null,null,null,null,null,null,null,null,null,null,null,null,null,null,null,null,null,null,null,null,null,null,null,null,null,null,null,null,null,null,null,null,null,null,null,null,null,null,null,null,null,null,null,null,null,null,null,null,null,null,null,null,null,null,null,null,null,null,null,null,null,null,null,null,null,null,null,null,null,null,null,null,null,null,null,null,null,null,null,null,null,null,null,null,null,null,null,null,null,null,null,null,null,null,null,null,null,null,null,null,null,null,null,null,null,null,null,null,null,null,null,null,null,null,null,null,null,null,null,null,null,null,null,null,null,null,null,null,null,null,null,null,null,null,null,null,null,null,null,null,null,null,null,null,null,null,null,null,null,null,null,null,null,null,null,null,null,null,null,null,null,null,null,null,null,null,null,null,null,null,null,null,null,null,null,null,null,null,null,null,null,null,null,null,null,null,null,null,null,null,null,null,null,null,null,null,null,null,null,null,null,null,null,null,null,null,null,null,null,null,null,null,null,null,null,null,null,null,null,null,null,null,null,null,null,null,null,null,null,null,null,null,null,null,null,null,null,null,null,null,null,null,null,null,null,null,null,null,null,null,null,null,null,null,null,null,null,null,null,null,null,null,null,null,null,null,null,null,null,null,null,null,null,null,null,null,null,null,null,null,null,null,null,null,null,null,null,null,null,null,null,null,null,null,null,null,null,null,null,null,null,null,null,null,null,null,null,null,null,null,null,null,null,null,null,null,null,null,null,null,null,null,null,null,null,null,null,null,null,null,null,null,null,null,null,null,null,null,null,null,null,null,null,null,null,null,null,null,null,null,null,null,null,null,null,null,null,null,null,null,null,null,null,null,null,null,null,null,null,null,null,null,null,null,null,null,null,null,null,null,null,null,null,null,null,null,null,null,null,null,null,null,null,null,null,null,null,null,null,null,null,null,null,null,null,null,null,null,null,null,null,null,null,null,null,null,null,null,null,null,null,null,null,null,null,null,null,null,null,null,null,null,null,null,null,null,null,null,null,null,null,null,null,null,null,null,null,null,null,null,null,null,null,null,null,null,null,null,null,null,null,null,null,null,null,null,null,null,null,null,null,null,null,null,null,null,null,null,null,null,null,null,null,null,null,null,null,null,null,null,null,null,null,null,null,null,null,null,null,null,null,null,null,null,null,null,null,null,null,null,null,null,null,null,null,null,null,null,null,null,null,null,null,null,null,null,null,null,null,null,null,null,null,null,null,null,null,null,null,null,null,null,null,null,null,null,null,null,null,null,null,null,null,null,null,null,null,null,null,null,null,null,null,null,null,null,null,null,null,null,null,null,null,null,null,null,null,null,null,null,null,null,null,null,null,null,null,null,null,null,null,null,null,null,null,null,null,null,null,null,null,null,null,null,null,null,null,null,null,null,null,null,null,null,null,null,null,null,null,null,null,null,null,null,null,null,null,null,null,null,null,null,null,null,null,null,null,null,null,null,null,null,null,null,null,null,null,null,null,null,null,null,null,null,null,null,null,null,null,null,null,null,null,null,null,null,null,null,null,null,null,null,null,null,null,null,null,null,null,null,null,null,null,null,null,null,null,null,null,null,null,null,null,null,null,null,null,null,null,null,null,null,null,null,null,null,null,null,null,null,null,null,null,null,null,null,null,null,null,null,null,null,null,null,null,null,null,null,null,null,null,null,null,null,null,null,null,null,null,null,null,null,null,null,null,null,null,null,null,null,null,null,null,null,null,null,null,null,null,null,null,null,null,null,null,null,null,null,null,null,null,null,null,null,null,null,null,null,null,null,null,null,null,null,null,null,null,null,null,null,null,null,null,null,null,null,null,null,null,null,null,null,null,null,null,null,null,null,null,null,null,null,null,null,null,null,null,null,null,null,null,null,null,null,null,null,null,null,null,null,null,null,null,null,null,null,null,null,null,null,null,null,null,null,null,null,null,null,null,null,null,null,null,null,null,null,null,null,null,null,null,null,null,null,null,null,null,null,null,null,null,null,null,null,null,null,null,null,null,null,null,null,null,null,null,null,null,null,null,null,null,null,null,null,null,null,null,null,null,null,null,null,null,null,null,null,null,null,null,null,null,null,null,null,null,null,null,null,null,null,null,null,null,null,null,null,null,null,null,null,null,null,null,null,null,null,null,null,null,null,null,null,null,null,null,null,null,null,null,null,null,null,null,null,null,null,null,null,null,null,null,null,null,null,null,null,null,null,null,null,null,null,null,null,null,null,null,null,null,null,null,null,null,null,null,null,null,null,null,null,null,null,null,null,null,null,null,null,null,null,null,null,null,null,null,null,null,null,null,null,null,null,null,null,null,null,null,null,null,null,null,null,null,null,null,null,null,null,null,null,null,null,null,null,null,null,null,null,null,null,null,null,null,null,null,null,null,null,null,null,null,null,null,null,null,null,null,null,null,null,null,null,null,null,null,null,null,null,null,null,null,null,null,null,null,null,null,null,null,null,null,null,null,null,null,null,null,null,null,null,null,null,null,null,null,null,null,null,null,null,null,null,null,null,null,null,null,null,null,null,null,null,null,null,null,null,null,null,null,null,null,null,null,null,null,null,null,null,null,null,null,null,null,null,null,null,null,null,null,null,null,null,null,null,null,null,null,null,null,null,null,null,null,null,null,null,null,null,null,null,null,null,null,null,null,null,null,null,null,null,null,null,null,null,null,null,null,null,null,null,null,null,null,null,null,null,null,null,null,null,null,null,null,null,null,null,null,null,null,null,null,null,null,null,null,null,null,null,null,null,null,null,null,null,null,null,null,null,null,null,null,null,null,null,null,null,null,null,null,null,null,null,null,null,null,null,null,null,null,null,null,null,null,null,null,null,null,null,null,null,null,null,null,null,null,null,null,null,null,null,null,null,null,null,null,null,null,null,null,null,null,null,null,null,null,null,null,null,null,null,null,null,null,null,null,null,null,null,null,null,null,null,null,null,null,null,null,null,null,null,null,null,null,null,null,null,null,null,null,null,null,null,null,null,null,null,null,null,null,null,null,null,null,null,null,null,null,null,null,null,null,null,null,null,null,null,null,null,null,null,null,null,null,null,null,null,null,null,null,null,null,null,null,null,null,null,null,null,null,null,null,null,null,null,null,null,null,null,null,null,null,null,null,null,null,null,null,null,null,null,null,null,null,null,null,null,null,null,null,null,null,null,null,null,null,null,null,null,null,null,null,null,null,null,null,null,null,null,null,null,null,null,null,null,null,null,null,null,null,null,null,null,null,null,null,null,null,null,null,null,null,null,null,null,null,null,null,null,null,null,null,null,null,null,null,null,null,null,null,null,null,null,null,null,null,null,null,null,null,null,null,null,null,null,null,null,null,null,null,null,null,null,null,null,null,null,null,null,null,null,null,null,null,null,null,null,null,null,null,null,null,null,null,null,null,null,null,null,null,null,null,null,null,null,null,null,null,null,null,null,null,null,null,null,null,null,null,null,null,null,null,null,null,null,null,null,null,null,null,null,null,null,null,null,null,null,null,null,null,null,null,null,null,null,null,null,null,null,null,null,null,null,null,null,null,null,null,null,null,null,null,null,null,null,null,null,null,null,null,null,null,null,null,null,null,null,null,null,null,null,null,null,null,null,null,null,null,null,null,null,null,null,null,null,null,null,null,null,null,null,null,null,null,null,null,null,null,null,null,null,null,null,null,null,null,null,null,null,null,null,null,null,null,null,null,null,null,null,null,null,null,null,null,null,null,null,null,null,null,null,null,null,null,null,null,null,null,null,null,null,null,null,null,null,null,null,null,null,null,null,null,null,null,null,null,null,null,null,null,null,null,null,null,null,null,null,null,null,null,null,null,null,null,null,null,null,null,null,null,null,null,null,null,null,null,null,null,null,null,null,null,null,null,null,null,null,null,null,null,null,null,null,null,null,null,null,null,null,null,null,null,null,null,null,null,null,null,null,null,null,null,null,null,null,null,null,null,null,null,null,null,null,null,null,null,null,null,null,null,null,null,null,null,null,null,null,null,null,null,null,null,null,null,null,null,null,null,null,null,null,null,null,null,null,null,null,null,null,null,null,null,null,null,null,null,null,null,null,null,null,null,null,null,null,null,null,null,null,null,null,null,null,null,null,null,null,null,null,null,null,null,null,null,null,null,null,null,null,null,null,null,null,null,null,null,null,null,null,null,null,null,null,null,null,null,null,null,null,null,null,null,null,null,null,null,null,null,null,null,null,null,null,null,null,null,null,null,null,null,null,null,null,null,null,null,null,null,null,null,null,null,null,null,null,null,null,null,null,null,null,null,null,null,null,null,null,null,null,null,null,null,null,null,null,null,null,null,null,null,null,null,null,null,null,null,null,null,null,null,null,null,null,null,null,null,null,null,null,null,null,null,null,null,null,null,null,null,null,null,null,null,null,null,null,null,null,null,null,null,null,null,null,null,null,null,null,null,null,null,null,null,null,null,null,null,null,null,null,null,null,null,null,null,null,null,null,null,null,null,null,null,null,null,null,null,null,null,null,null,null,null,null,null,null,null,null,null,null,null,null,null,null,null,null,null,null,null,null,null,null,null,null,null,null,null,null,null,null,null,null,null,null,null,null,null,null,null,null,null,null,null,null,null,null,null,null,null,null,null,null,null,null,null,null,null,null,null,null,null,null,null,null,null,null,null,null,null,null,null,null,null,null,null,null,null,null,null,null,null,null,null,null,null,null,null,null,null,null,null,null,null,null,null,null,null,null,null,null,null,null,null,null,null,null,null,null,null,null,null,null,null,null,null,null,null,null,null,null,null,null,null,null,null,null,null,null,null,null,null,null,null,null,null,null,null,null,null,null,null,null,null,null,null,null,null,null,null,null,null,null,null,null,null,null,null,null,null,null,null,null,null,null,null,null,null,null,null,null,null,null,null,null,null,null,null,null,null,null,null,null,null,null,null,null,null,null,null,null,null,null,null,null,null,null,null,null,null,null,null,null,null,null,null,null,null,null,null,null,null,null,null,null,null,null,null,null,null,null,null,null,null,null,null,null,null,null,null,null,null,null,null,null,null,null,null,null,null,null,null,null,null,null,null,null,null,null,null,null,null,null,null,null,null,null,null,null,null,null,null,null,null,null,null,null,null,null,null,null,null,null,null,null,null,null,null,null,null,null,null,null,null,null,null,null,null,null,null,null,null,null,null,null,null,null,null,null,null,null,null,null,null,null,null,null,null,null,null,null,null,null,null,null,null,null,null,null,null,null,null,null,null,null,null,null,null,null,null,null,null,null,null,null,null,null,null,null,null,null,null,null,null,null,null,null,null,null,null,null,null,null,null,null,null,null,null,null,null,null,null,null,null,null,null,null,null,null,null,null,null,null,null,null,null,null,null,null,null,null,null,null,null,null,null,null,null,null,null,null,null,null,null,null,null,null,null,null,null,null,null,null,null,null,null,null,null,null,null,null,null,null,null,null,null,null,null,null,null,null,null,null,null,null,null,null,null,null,null,null,null,null,null,null,null,null,null,null,null,null,null,null,null,null,null,null,null,null,null,null,null,null,null,null,null,null,null,null,null,null,null,null,null,null,null,null,null,null,null,null,null,null,null,null,null,null,null,null,null,null,null,null,null,null,null,null,null,null,null,null,null,null,null,null,null,null,null,null,null,null,null,null,null,null,null,null,null,null,null,null,null,null,null,null,null,null,null,null,null,null,null,null,null,null,null,null,null,null,null,null,null,null,null,null,null,null,null,null,null,null,null,null,null,null,null,null,null,null,null,null,null,null,null,null,null,null,null,null,null,null,null,null,null,null,null,null,null,null,null,null,null,null,null,null,null,null,null,null,null,null,null,null,null,null,null,null,null,null,null,null,null,null,null,null,null,null,null,null,null,null,null,null,null,null,null,null,null,null,null,null,null,null,null,null,null,null,null,null,null,null,null,null,null,null,null,null,null,null,null,null,null,null,null,null,null,null,null,null,null,null,null,null,null,null,null,null,null,null,null,null,null,null,null,null,null,null,null,null,null,null,null,null,null,null,null,null,null,null,null,null,null,null,null,null,null,null,null,null,null,null,null,null,null,null,null,null,null,null,null,null,null,null,null,null,null,null,null,null,null,null,null,null,null,null,null,null,null,null,null,null,null,null,null,null,null,null,null,null,null,null,null,null,null,null,null,null,null,null,null,null,null,null,null,null,null,null,null,null,null,null,null,null,null,null,null,null,null,null,null,null,null,null,null,null,null,null,null,null,null,null,null,null,null,null,null,null,null,null,null,null,null,null,null,null,null,null,null,null,null,null,null,null,null,null,null,null,null,null,null,null,null,null,null,null,null,null,null,null,null,null,null,null,null,null,null,null,null,null,null,null,null,null,null,null,null,null,null,null,null,null,null,null,null,null,null,null,null,null,null,null,null,null,null,null,null,null,null,null,null,null,null,null,null,null,null,null,null,null,null,null,null,null,null,null,null,null,null,null,null,null,null,null,null,null,null,null,null,null,null,null,null,null,null,null,null,null,null,null,null,null,null,null,null,null,null,null,null,null,null,null,null,null,null,null,null,null,null,null,null,null,null,null,null,null,null,null,null,null,null,null,null,null,null,null,null,null,null,null,null,null,null,null,null,null,null,null,null,null,null,null,null,null,null,null,null,null,null,null,null,null,null,null,null,null,null,null,null,null,null,null,null,null,null,null,null,null,null,null,null,null,null,null,null,null,null,null,null,null,null,null,null,null,null,null,null,null,null,null,null,null,null,null,null,null,null,null,null,null,null,null,null,null,null,null,null,null,null,null,null,null,null,null,null,null,null,null,null,null,null,null,null,null,null,null,null,null,null,null,null,null,null,null,null,null,null,null,null,null,null,null,null,null,null,null,null,null,null,null,null,null,null,null,null,null,null,null,null,null,null,null,null,null,null,null,null,null,null,null,null,null,null,null,null,null,null,null,null,null,null,null,null,null,null,null,null,null,null,null,null,null,null,null,null,null,null,null,null,null,null,null,null,null,null,null,null,null,null,null,null,null,null,null,null,null,null,null,null,null,null,null,null,null,null,null,null,null,null,null,null,null,null,null,null,null,null,null,null,null,null,null,null,null,null,null,null,null,null,null,null,null,null,null,null,null,null,null,null,null,null,null,null,null,null,null,null,null,null,null,null,null,null,null,null,null,null,null,null,null,null,null,null,null,null,null,null,null,null,null,null,null,null,null,null,null,null,null,null,null,null,null,null,null,null,null,null,null,null,null,null,null,null,null,null,null,null,null,null,null,null,null,null,null,null,null,null,null,null,null,null,null,null,null,null,null,null,null,null,null,null,null,null,null,null,null,null,null,null,null,null,null,null,null,null,null,null,null,null,null,null,null,null,null,null,null,null,null,null,null,null,null,null,null,null,null,null,null,null,null,null,null,null,null,null,null,null,null,null,null,null,null,null,null,null,null,null,null,null,null,null,null,null,null,null,null,null,null,null,null,null,null,null,null,null,null,null,null,null,null,null,null,null,null,null,null,null,null,null,null,null,null,null,null,null,null,null,null,null,null,null,null,null,null,null,null,null,null,null,null,null,null,null,null,null,null,null,null,null,null,null,null,null,null,null,null,null,null,null,null,null,null,null,null,null,null,null,null,null,null,null,null,null,null,null,null,null,null,null,null,null,null,null,null,null,null,null,null,null,null,null,null,null,null,null,null,null,null,null,null,null,null,null,null,null,null,null,null,null,null,null,null,null,null,null,null,null,null,null,null,null,null,null,null,null,null,null,null,null,null,null,null,null,null,null,null,null,null,null,null,null,null,null,null,null,null,null,null,null,null,null,null,null,null,null,null,null,null,null,null,null,null,null,null,null,null,null,null,null,null,null,null,null,null,null,null,null,null,null,null,null,null,null,null,null,null,null,null,null,null,null,null,null,null,null,null,null,null,null,null,null,null,null,null,null,null,null,null,null,null,null,null,null,null,null,null,null,null,null,null,null,null,null,null,null,null,null,null,null,null,null,null,null,null,null,null,null,null,null,null,null,null,null,null,null,null,null,null,null,null,null,null,null,null,null,null,null,null,null,null,null,null,null,null,null,null,null,null,null,null,null,null,null,null,null,null,null,null,null,null,null,null,null,null,null,null,null,null,null,null,null,null,null,null,null,null,null,null,null,null,null,null,null,null,null,null,null,null,null,null,null,null,null,null,null,null,null,null,null,null,null,null,null,null,null,null,null,null,null,null,null,null,null,null,null,null,null,null,null,null,null,null,null,null,null,null,null,null,null,null,null,null,null,null,null,null,null,null,null,null,null,null,null,null,null,null,null,null,null,null,null,null,null,null,null,null,null,null,null,null,null,null,null,null,null,null,null,null,null,null,null,null,null,null,null,null,null,null,null,null,null,null,null,null,null,null,null,null,null,null,null,null,null,null,null,null,null,null,null,null,null,null,null,null,null,null,null,null,null,null,null,null,null,null,null,null,null,null,null,null,null,null,null,null,null,null,null,null,null,null,null,null,null,null,null,null,null,null,null,null,null,null,null,null,null,null,null,null,null,null,null,null,null,null,null,null,null,null,null,null,null,null,null,null,null,null,null,null,null,null,null,null,null,null,null,null,null,null,null,null,null,null,null,null,null,null,null,null,null,null,null,null,null,null,null,null,null,null,null,null,null,null,null,null,null,null,null,null,null,null,null,null,null,null,null,null,null,null,null,null,null,null,null,null,null,null,null,null,null,null,null,null,null,null,null,null,null,null,null,null,null,null,null,null,null,null,null,null,null,null,null,null,null,null,null,null,null,null,null,null,null,null,null,null,null,null,null,null,null,null,null,null,null,null,null,null,null,null,null,null,null,null,null,null,null,null,null,null,null,null,null,null,null,null,null,null,null,null,null,null,null,null,null,null,null,null,null,null,null,null,null,null,null,null,null,null,null,null,null,null,null,null,null,null,null,null,null,null,null,null,null,null,null,null,null,null,null,null,null,null,null,null,null,null,null,null,null,null,null,null,null,null,null,null,null,null,null,null,null,null,null,null,null,null,null,null,null,null,null,null,null,null,null,null,null,null,null,null,null,null,null,null,null,null,null,null,null,null,null,null,null,null,null,null,null,null,null,null,null,null,null,null,null,null,null,null,null,null,null,null,null,null,null,null,null,null,null,null,null,null,null,null,null,null,null,null,null,null,null,null,null,null,null,null,null,null,null,null,null,null,null,null,null,null,null,null,null,null,null,null,null,null,null,null,null,null,null,null,null,null,null,null,null,null,null,null,null,null,null,null,null,null,null,null,null,null,null,null,null,null,null,null,null,null,null,null,null,null,null,null,null,null,null,null,null,null,null,null,null,null,null,null,null,null,null,null,null,null,null,null,null,null,null,null,null,null,null,null,null,null,null,null,null,null,null,null,null,null,null,null,null,null,null,null,null,null,null,null,null,null,null,null,null,null,null,null,null,null,null,null,null,null,null,null,null,null,null,null,null,null,null,null,null,null,null,null,null,null,null,null,null,null,null,null,null,null,null,null,null,null,null,null,null,null,null,null,null,null,null,null,null,null,null,null,null,null,null,null,null,null,null,null,null,null,null,null,null,null,null,null,null,null,null,null,null,null,null,null,null,null,null,null,null,null,null,null,null,null,null,null,null,null,null,null,null,null,null,null,null,null,null,null,null,null,null,null,null,null,null,null,null,null,null,null,null,null,null,null,null,null,null,null,null,null,null,null,null,null,null,null,null,null,null,null,null,null,null,null,null,null,null,null,null,null,null,null,null,null,null,null,null,null,null,null,null,null,null,null,null,null,null,null,null,null,null,null,null,null,null,null,null,null,null,null,null,null,null,null,null,null,null,null,null,null,null,null,null,null,null,null,null,null,null,null,null,null,null,null,null,null,null,null,null,null,null,null,null,null,null,null,null,null,null,null,null,null,null,null,null,null,null,null,null,null,null,null,null,null,null,null,null,null,null,null,null,null,null,null,null,null,null,null,null,null,null,null,null,null,null,null,null,null,null,null,null,null,null,null,null,null,null,null,null,null,null,null,null,null,null,null,null,null,null,null,null,null,null,null,null,null,null,null,null,null,null,null,null,null,null,null,null,null,null,null,null,null,null,null,null,null,null,null,null,null,null,null,null,null,null,null,null,null,null,null,null,null,null,null,null,null,null,null,null,null,null,null,null,null,null,null,null,null,null,null,null,null,null,null,null,null,null,null,null,null,null,null,null,null,null,null,null,null,null,null,null,null,null,null,null,null,null,null,null,null,null,null,null,null,null,null,null,null,null,null,null,null,null,null,null,null,null,null,null,null,null,null,null,null,null,null,null,null,null,null,null,null,null,null,null,null,null,null,null,null,null,null,null,null,null,null,null,null,null,null,null,null,null,null,null,null,null,null,null,null,null,null,null,null,null,null,null,null,null,null,null,null,null,null,null,null,null,null,null,null,null,null,null,null,null,null,null,null,null,null,null,null,null,null,null,null,null,null,null,null,null,null,null,null,null,null,null,null,null,null,null,null,null,null,null,null,null,null,null,null,null,null,null,null,null,null,null,null,null,null,null,null,null,null,null,null,null,null,null,null,null,null,null,null,null,null,null,null,null,null,null,null,null,null,null,null,null,null,null,null,null,null,null,null,null,null,null,null,null,null,null,null,null,null,null,null,null,null,null,null,null,null,null,null,null,null,null,null,null,null,null,null,null,null,null,null,null,null,null,null,null,null,null,null,null,null,null,null,null,null,null,null,null,null,null,null,null,null,null,null,null,null,null,null,null,null,null,null,null,null,null,null,null,null,null,null,null,null,null,null,null,null,null,null,null,null,null,null,null,null,null,null,null,null,null,null,null,null,null,null,null,null,null,null,null,null,null,null,null,null,null,null,null,null,null,null,null,null,null,null,null,null,null,null,null,null,null,null,null,null,null,null,null,null,null,null,null,null,null,null,null,null,null,null,null,null,null,null,null,null,null,null,null,null,null,null,null,null,null,null,null,null,null,null,null,null,null,null,null,null,null,null,null,null,null,null,null,null,null,null,null,null,null,null,null,null,null,null,null,null,null,null,null,null,null,null,null,null,null,null,null,null,null,null,null,null,null,null,null,null,null,null,null,null,null,null,null,null,null,null,null,null,null,null,null,null,null,null,null,null,null,null,null,null,null,null,null,null,null,null,null,null,null,null,null,null,null,null,null,null,null,null,null,null,null,null,null,null,null,null,null,null,null,null,null,null,null,null,null,null,null,null,null,null,null,null,null,null,null,null,null,null,null,null,null,null,null,null,null,null,null,null,null,null,null,null,null,null,null,null,null,null,null,null,null,null,null,null,null,null,null,null,null,null,null,null,null,null,null,null,null,null,null,null,null,null,null,null,null,null,null,null,null,null,null,null,null,null,null,null,null,null,null,null,null,null,null,null,null,null,null,null,null,null,null,null,null,null,null,null,null,null,null,null,null,null,null,null,null,null,null,null,null,null,null,null,null,null,null,null,null,null,null,null,null,null,null,null,null,null,null,null,null,null,null,null,null,null,null,null,null,null,null,null,null,null,null,null,null,null,null,null,null,null,null,null,null,null,null,null,null,null,null,null,null,null,null,null,null,null,null,null,null,null,null,null,null,null,null,null,null,null,null,null,null,null,null,null,null,null,null,null,null,null,null,null,null,null,null,null,null,null,null,null,null,null,null,null,null,null,null,null,null,null,null,null,null,null,null,null,null,null,null,null,null,null,null,null,null,null,null,null,null,null,null,null,null,null,null,null,null,null,null,null,null,null,null,null,null,null,null,null,null,null,null,null,null,null,null,null,null,null,null,null,null,null,null,null,null,null,null,null,null,null,null,null,null,null,null,null,null,null,null,null,null,null,null,null,null,null,null,null,null,null,null,null,null,null,null,null,null,null,null,null,null,null,null,null,null,null,null,null,null,null,null,null,null,null,null,null,null,null,null,null,null,null,null,null,null,null,null,null,null,null,null,null,null,null,null,null,null,null,null,null,null,null,null,null,null,null,null,null,null,null,null,null,null,null,null,null,null,null,null,null,null,null,null,null,null,null,null,null,null,null,null,null,null,null,null,null,null,null,null,null,null,null,null,null,null,null,null,null,null,null,null,null,null,null,null,null,null,null,null,null,null,null,null,null,null,null,null,null,null,null,null,null,null,null,null,null,null,null,null,null,null,null,null,null,null,null,null,null,null,null,null,null,null,null,null,null,null,null,null,null,null,null,null,null,null,null,null,null,null,null,null,null,null,null,null,null,null,null,null,null,null,null,null,null,null,null,null,null,null,null,null,null,null,null,null,null,null,null,null,null,null,null,null,null,null,null,null,null,null,null,null,null,null,null,null,null,null,null,null,null,null,null,null,null,null,null,null,null,null,null,null,null,null,null,null,null,null,null,null,null,null,null,null,null,null,null,null,null,null,null,null,null,null,null,null,null,null,null,null,null,null,null,null,null,null,null,null,null,null,null,null,null,null,null,null,null,null,null,null,null,null,null,null,null,null,null,null,null,null,null,null,null,null,null,null,null,null,null,null,null,null,null,null,null,null,null,null,null,null,null,null,null,null,null,null,null,null,null,null,null,null,null,null,null,null,null,null,null,null,null,null,null,null,null,null,null,null,null,null,null,null,null,null,null,null,null,null,null,null,null,null,null,null,null,null,null,null,null,null,null,null,null,null,null,null,null,null,null,null,null,null,null,null,null,null,null,null,null,null,null,null,null,null,null,null,null,null,null,null,null,null,null,null,null,null,null,null,null,null,null,null,null,null,null,null,null,null,null,null,null,null,null,null,null,null,null,null,null,null,null,null,null,null,null,null,null,null,null,null,null,null,null,null,null,null,null,null,null,null,null,null,null,null,null,null,null,null,null,null,null,null,null,null,null,null,null,null,null,null,null,null,null,null,null,null,null,null,null,null,null,null,null,null,null,null,null,null,null,null,null,null,null,null,null,null,null,null,null,null,null,null,null,null,null,null,null,null,null,null,null,null,null,null,null,null,null,null,null,null,null,null,null,null,null,null,null,null,null,null,null,null,null,null,null,null,null,null,null,null,null,null,null,null,null,null,null,null,null,null,null,null,null,null,null,null,null,null,null,null,null,null,null,null,null,null,null,null,null,null,null,null,null,null,null,null,null,null,null,null,null,null,null,null,null,null,null,null,null,null,null,null,null,null,null,null,null,null,null,null,null,null,null,null,null,null,null,null,null,null,null,null,null,null,null,null,null,null,null,null,null,null,null,null,null,null,null,null,null,null,null,null,null,null,null,null,null,null,null,null,null,null,null,null,null,null,null,null,null,null,null,null,null,null,null,null,null,null,null,null,null,null,null,null,null,null,null,null,null,null,null,null,null,null,null,null,null,null,null,null,null,null,null,null,null,null,null,null,null,null,null,null,null,null,null,null,null,null,null,null,null,null,null,null,null,null,null,null,null,null,null,null,null,null,null,null,null,null,null,null,null,null,null,null,null,null,null,null,null,null,null,null,null,null,null,null,null,null,null,null,null,null,null,null,null,null,null,null,null,null,null,null,null,null,null,null,null,null,null,null,null,null,null,null,null,null,null,null,null,null,null,null,null,null,null,null,null,null,null,null,null,null,null,null,null,null,null,null,null,null,null,null,null,null,null,null,null,null,null,null,null,null,null,null,null,null,null,null,null,null,null,null,null,null,null,null,null,null,null,null,null,null,null,null,null,null,null,null,null,null,null,null,null,null,null,null,null,null,null,null,null,null,null,null,null,null,null,null,null,null,null,null,null,null,null,null,null,null,null,null,null,null,null,null,null,null,null,null,null,null,null,null,null,null,null,null,null,null,null,null,null,null,null,null,null,null,null,null,null,null,null,null,null,null,null,null,null,null,null,null,null,null,null,null,null,null,null,null,null,null,null,null,null,null,null,null,null,null,null,null,null,null,null,null,null,null,null,null,null,null,null,null,null,null,null,null,null,null,null,null,null,null,null,null,null,null,null,null,null,null,null,null,null,null,null,null,null,null,null,null,null,null,null,null,null,null,null,null,null,null,null,null,null,null,null,null,null,null,null,null,null,null,null,null,null,null,null,null,null,null,null,null,null,null,null,null,null,null,null,null,null,null,null,null,null,null,null,null,null,null,null,null,null,null,null,null,null,null,null,null,null,null,null,null,null,null,null,null,null,null,null,null,null,null,null,null,null,null,null,null,null,null,null,null,null,null,null,null,null,null,null,null,null,null,null,null,null,null,null,null,null,null,null,null,null,null,null,null,null,null,null,null,null,null,null,null,null,null,null,null,null,null,null,null,null,null,null,null,null,null,null,null,null,null,null,null,null,null,null,null,null,null,null,null,null,null,null,null,null,null,null,null,null,null,null,null,null,null,null,null,null,null,null,null,null,null,null,null,null,null,null,null,null,null,null,null,null,null,null,null,null,null,null,null,null,null,null,null,null,null,null,null,null,null,null,null,null,null,null,null,null,null,null,null,null,null,null,null,null,null,null,null,null,null,null,null,null,null,null,null,null,null,null,null,null,null,null,null,null,null,null,null,null,null,null,null,null,null,null,null,null,null,null,null,null,null,null,null,null,null,null,null,null,null,null,null,null,null,null,null,null,null,null,null,null,null,null,null,null,null,null,null,null,null,null,null,null,null,null,null,null,null,null,null,null,null,null,null,null,null,null,null,null,null,null,null,null,null,null,null,null,null,null,null,null,null,null,null,null,null,null,null,null,null,null,null,null,null,null,null,null,null,null,null,null,null,null,null,null,null,null,null,null,null,null,null,null,null,null,null,null,null,null,null,null,null,null,null,null,null,null,null,null,null,null,null,null,null,null,null,null,null,null,null,null,null,null,null,null,null,null,null,null,null,null,null,null,null,null,null,null,null,null,null,null,null,null,null,null,null,null,null,null,null,null,null,null,null,null,null,null,null,null,null,null,null,null,null,null,null,null,null,null,null,null,null,null,null,null,null,null,null,null,null,null,null,null,null,null,null,null,null,null,null,null,null,null,null,null,null,null,null,null,null,null,null,null,null,null,null,null,null,null,null,null,null,null,null,null,null,null,null,null,null,null,null,null,null,null,null,null,null,null,null,null,null,null,null,null,null,null,null,null,null,null,null,null,null,null,null,null,null,null,null,null,null,null,null,null,null,null,null,null,null,null,null,null,null,null,null,null,null,null,null,null,null,null,null,null,null,null,null,null,null,null,null,null,null,null,null,null,null,null,null,null,null,null,null,null,null,null,null,null,null,null,null,null,null,null,null,null,null,null,null,null,null,null,null,null,null,null,null,null,null,null,null,null,null,null,null,null,null,null,null,null,null,null,null,null,null,null,null,null,null,null,null,null,null,null,null,null,null,null,null,null,null,null,null,null,null,null,null,null,null,null,null,null,null,null,null,null,null,null,null,null,null,null,null,null,null,null,null,null,null,null,null,null,null,null,null,null,null,null,null,null,null,null,null,null,null,null,null,null,null,null,null,null,null,null,null,null,null,null,null,null,null,null,null,null,null,null,null,null,null,null,null,null,null,null,null,null,null,null,null,null,null,null,null,null,null,null,null,null,null,null,null,null,null,null,null,null,null,null,null,null,null,null,null,null,null,null,null,null,null,null,null,null,null,null,null,null,null,null,null,null,null,null,null,null,null,null,null,null,null,null,null,null,null,null,null,null,null,null,null,null,null,null,null,null,null,null,null,null,null,null,null,null,null,null,null,null,null,null,null,null,null,null,null,null,null,null,null,null,null,null,null,null,null,null,null,null,null,null,null,null,null,null,null,null,null,null,null,null,null,null,null,null,null,null,null,null,null,null,null,null,null,null,null,null,null,null,null,null,null,null,null,null,null,null,null,null,null,null,null,null,null,null,null,null,null,null,null,null,null,null,null,null,null,null,null,null,null,null,null,null,null,null,null,null,null,null,null,null,null,null,null,null,null,null,null,null,null,null,null,null,null,null,null,null,null,null,null,null,null,null,null,null,null,null,null,null,null,null,null,null,null,null,null,null,null,null,null,null,null,null,null,null,null,null,null,null,null,null,null,null,null,null,null,null,null,null,null,null,null,null,null,null,null,null,null,null,null,null,null,null,null,null,null,null,null,null,null,null,null,null,null,null,null,null,null,null,null,null,null,null,null,null,null,null,null,null,null,null,null,null,null,null,null,null,null,null,null,null,null,null,null,null,null,null,null,null,null,null,null,null,null,null,null,null,null,null,null,null,null,null,null,null,null,null,null,null,null,null,null,null,null,null,null,null,null,null,null,null,null,null,null,null,null,null,null,null,null,null,null,null,null,null,null,null,null,null,null,null,null,null,null,null,null,null,null,null,null,null,null,null,null,null,null,null,null,null,null,null,null,null,null,null,null,null,null,null,null,null,null,null,null,null,null,null,null,null,null,null,null,null,null,null,null,null,null,null,null,null,null,null,null,null,null,null,null,null,null,null,null,null,null,null,null,null,null,null,null,null,null,null,null,null,null,null,null,null,null,null,null,null,null,null,null,null,null,null,null,null,null,null,null,null,null,null,null,null,null,null,null,null,null,null,null,null,null,null,null,null,null,null,null,null,null,null,null,null,null,null,null,null,null,null,null,null,null,null,null,null,null,null,null,null,null,null,null,null,null,null,null,null,null,null,null,null,null,null,null,null,null,null,null,null,null,null,null,null,null,null,null,null,null,null,null,null,null,null,null,null,null,null,null,null,null,null,null,null,null,null,null,null,null,null,null,null,null,null,null,null,null,null,null,null,null,null,null,null,null,null,null,null,null,null,null,null,null,null,null,null,null,null,null,null,null,null,null,null,null,null,null,null,null,null,null,null,null,null,null,null,null,null,null,null,null,null,null,null,null,null,null,null,null,null,null,null,null,null,null,null,null,null,null,null,null,null,null,null,null,null,null,null,null,null,null,null,null,null,null,null,null,null,null,null,null,null,null,null,null,null,null,null,null,null,null,null,null,null,null,null,null,null,null,null,null,null,null,null,null,null,null,null,null,null,null,null,null,null,null,null,null,null,null,null,null,null,null,null,null,null,null,null,null,null,null,null,null,null,null,null,null,null,null,null,null,null,null,null,null,null,null,null,null,null,null,null,null,null,null,null,null,null,null,null,null,null,null,null,null,null,null,null,null,null,null,null,null,null,null,null,null,null,null,null,null,null,null,null,null,null,null,null,null,null,null,null,null,null,null,null,null,null,null,null,null,null,null,null,null,null,null,null,null,null,null,null,null,null,null,null,null,null,null,null,null,null,null,null,null,null,null,null,null,null,null,null,null,null,null,null,null,null,null,null,null,null,null,null,null,null,null,null,null,null,null,null,null,null,null,null,null,null,null,null,null,null,null,null,null,null,null,null,null,null,null,null,null,null,null,null,null,null,null,null,null,null,null,null,null,null,null,null,null,null,null,null,null,null,null,null,null,null,null,null,null,null,null,null,null,null,null,null,null,null,null,null,null,null,null,null,null,null,null,null,null,null,null,null,null,null,null,null,null,null,null,null,null,null,null,null,null,null,null,null,null,null,null,null,null,null,null,null,null,null,null,null,null,null,null,null,null,null,null,null,null,null,null,null,null,null,null,null,null,null,null,null,null,null,null,null,null,null,null,null,null,null,null,null,null,null,null,null,null,null,null,null,null,null,null,null,null,null,null,null,null,null,null,null,null,null,null,null,null,null,null,null,null,null,null,null,null,null,null,null,null,null,null,null,null,null,null,null,null,null,null,null,null,null,null,null,null,null,null,null,null,null,null,null,null,null,null,null,null,null,null,null,null,null,null,null,null,null,null,null,null,null,null,null,null,null,null,null,null,null,null,null,null,null,null,null,null,null,null,null,null,null,null,null,null,null,null,null,null,null,null,null,null,null,null,null,null,null,null,null,null,null,null,null,null,null,null,null,null,null,null,null,null,null,null,null,null,null,null,null,null,null,null,null,null,null,null,null,null,null,null,null,null,null,null,null,null,null,null,null,null,null,null,null,null,null,null,null,null,null,null,null,null,null,null,null,null,null,null,null,null,null,null,null,null,null,null,null,null,null,null,null,null,null,null,null,null,null,null,null,null,null,null,null,null,null,null,null,null,null,null,null,null,null,null,null,null,null,null,null,null,null,null,null,null,null,null,null,null,null,null,null,null,null,null,null,null,null,null,null,null,null,null,null,null,null,null,null,null,null,null,null,null,null,null,null,null,null,null,null,null,null,null,null,null,null,null,null,null,null,null,null,null,null,null,null,null,null,null,null,null,null,null,null,null,null,null,null,null,null,null,null,null,null,null,null,null,null,null,null,null,null,null,null,null,null,null,null,null,null,null,null,null,null,null,null,null,null,null,null,null,null,null,null,null,null,null,null,null,null,null,null,null,null,null,null,null,null,null,null,null,null,null,null,null,null,null,null,null,null,null,null,null,null,null,null,null,null,null,null,null,null,null,null,null,null,null,null,null,null,null,null,null,null,null,null,null,null,null,null,null,null,null,null,null,null,null,null,null,null,null,null,null,null,null,null,null,null,null,null,null,null,null,null,null,null,null,null,null,null,null,null,null,null,null,null,null,null,null,null,null,null,null,null,null,null,null,null,null,null,null,null,null,null,null,null,null,null,null,null,null,null,null,null,null,null,null,null,null,null,null,null,null,null,null,null,null,null,null,null,null,null,null,null,null,null,null,null,null,null,null,null,null,null,null,null,null,null,null,null,null,null,null,null,null,null,null,null,null,null,null,null,null,null,null,null,null,null,null,null,null,null,null,null,null,null,null,null,null,null,null,null,null,null,null,null,null,null,null,null,null,null,null,null,null,null,null,null,null,null,null,null,null,null,null,null,null,null,null,null,null,null,null,null,null,null,null,null,null,null,null,null,null,null,null,null,null,null,null,null,null,null,null,null,null,null,null,null,null,null,null,null,null,null,null,null,null,null,null,null,null,null,null,null,null,null,null,null,null,null,null,null,null,null,null,null,null,null,null,null,null,null,null,null,null,null,null,null,null,null,null,null,null,null,null,null,null,null,null,null,null,null,null,null,null,null,null,null,null,null,null,null,null,null,null,null,null,null,null,null,null,null,null,null,null,null,null,null,null,null,null,null,null,null,null,null,null,null,null,null,null,null,null,null,null,null,null,null,null,null,null,null,null,null,null,null,null,null,null,null,null,null,null,null,null,null,null,null,null,null,null,null,null,null,null,null,null,null,null,null,null,null,null,null,null,null,null,null,null,null,null,null,null,null,null,null,null,null,null,null,null,null,null,null,null,null,null,null,null,null,null,null,null,null,null,null,null,null,null,null,null,null,null,null,null,null,null,null,null,null,null,null,null,null,null,null,null,null,null,null,null,null,null,null,null,null,null,null,null,null,null,null,null,null,null,null,null,null,null,null,null,null,null,null,null,null,null,null,null,null,null,null,null,null,null,null,null,null,null,null,null,null,null,null,null,null,null,null,null,null,null,null,null,null,null,null,null,null,null,null,null,null,null,null,null,null,null,null,null,null,null,null,null,null,null,null,null,null,null,null,null,null,null,null,null,null,null,null,null,null,null,null,null,null,null,null,null,null,null,null,null,null,null,null,null,null,null,null,null,null,null,null,null,null,null,null,null,null,null,null,null,null,null,null,null,null,null,null,null,null,null,null,null,null,null,null,null,null,null,null,null,null,null,null,null,null,null,null,null,null,null,null,null,null,null,null,null,null,null,null,null,null,null,null,null,null,null,null,null,null,null,null,null,null,null,null,null,null,null,null,null,null,null,null,null,null,null,null,null,null,null,null,null,null,null,null,null,null,null,null,null,null,null,null,null,null,null,null,null,null,null,null,null,null,null,null,null,null,null,null,null,null,null,null,null,null,null,null,null,null,null,null,null,null,null,null,null,null,null,null,null,null,null,null,null,null,null,null,null,null,null,null,null,null,null,null,null,null,null,null,null,null,null,null,null,null,null,null,null,null,null,null,null,null,null,null,null,null,null,null,null,null,null,null,null,null,null,null,null,null,null,null,null,null,null,null,null,null,null,null,null,null,null,null,null,null,null,null,null,null,null,null,null,null,null,null,null,null,null,null,null,null,null,null,null,null,null,null,null,null,null,null,null,null,null,null,null,null,null,null,null,null,null,null,null,null,null,null,null,null,null,null,null,null,null,null,null,null,null,null,null,null,null,null,null,null,null,null,null,null,null,null,null,null,null,null,null,null,null,null,null,null,null,null,null,null,null,null,null,null,null,null,null,null,null,null,null,null,null,null,null,null,null,null,null,null,null,null,null,null,null,null,null,null,null,null,null,null,null,null,null,null,null,null,null,null,null,null,null,null,null,null,null,null,null,null,null,null,null,null,null,null,null,null,null,null,null,null,null,null,null,null,null,null,null,null,null,null,null,null,null,null,null,null,null,null,null,null,null,null,null,null,null,null,null,null,null,null,null,null,null,null,null,null,null,null,null,null,null,null,null,null,null,null,null,null,null,null,null,null,null,null,null,null,null,null,null,null,null,null,null,null,null,null,null,null,null,null,null,null,null,null,null,null,null,null,null,null,null,null,null,null,null,null,null,null,null,null,null,null,null,null,null,null,null,null,null,null,null,null,null,null,null,null,null,null,null,null,null,null,null,null,null,null,null,null,null,null,null,null,null,null,null,null,null,null,null,null,null,null,null,null,null,null,null,null,null,null,null,null,null,null,null,null,null,null,null,null,null,null,null,null,null,null,null,null,null,null,null,null,null,null,null,null,null,null,null,null,null,null,null,null,null,null,null,null,null,null,null,null,null,null,null,null,null,null,null,null,null,null,null,null,null,null,null,null,null,null,null,null,null,null,null,null,null,null,null,null,null,null,null,null,null,null,null,null,null,null,null,null,null,null,null,null,null,null,null,null,null,null,null,null,null,null,null,null,null,null,null,null,null,null,null,null,null,null,null,null,null,null,null,null,null,null,null,null,null,null,null,null,null,null,null,null,null,null,null,null,null,null,null,null,null,null,null,null,null,null,null,null,null,null,null,null,null,null,null,null,null,null,null,null,null,null,null,null,null,null,null,null,null,null,null,null,null,null,null,null,null,null,null,null,null,null,null,null,null,null,null,null,null,null,null,null,null,null,null,null,null,null,null,null,null,null,null,null,null,null,null,null,null,null,null,null,null,null,null,null,null,null,null,null,null,null,null,null,null,null,null,null,null,null,null,null,null,null,null,null,null,null,null,null,null,null,null,null,null,null,null,null,null,null,null,null,null,null,null,null,null,null,null,null,null,null,null,null,null,null,null,null,null,null,null,null,null,null,null,null,null,null,null,null,null,null,null,null,null,null,null,null,null,null,null,null,null,null,null,null,null,null,null,null,null,null,null,null,null,null,null,null,null,null,null,null,null,null,null,null,null,null,null,null,null,null,null,null,null,null,null,null,null,null,null,null,null,null,null,null,null,null,null,null,null,null,null,null,null,null,null,null,null,null,null,null,null,null,null,null,null,null,null,null,null,null,null,null,null,null,null,null,null,null,null,null,null,null,null,null,null,null,null,null,null,null,null,null,null,null,null,null,null,null,null,null,null,null,null,null,null,null,null,null,null,null,null,null,null,null,null,null,null,null,null,null,null,null,null,null,null,null,null,null,null,null,null,null,null,null,null,null,null,null,null,null,null,null,null,null,null,null,null,null,null,null,null,null,null,null,null,null,null,null,null,null,null,null,null,null,null,null,null,null,null,null,null,null,null,null,null,null,null,null,null,null,null,null,null,null,null,null,null,null,null,null,null,null,null,null,null,null,null,null,null,null,null,null,null,null,null,null,null,null,null,null,null,null,null,null,null,null,null,null,null,null,null,null,null,null,null,null,null,null,null,null,null,null,null,null,null,null,null,null,null,null,null,null,null,null,null,null,null,null,null,null,null,null,null,null,null,null,null,null,null,null,null,null,null,null,null,null,null,null,null,null,null,null,null,null,null,null,null,null,null,null,null,null,null,null,null,null,null,null,null,null,null,null,null,null,null,null,null,null,null,null,null,null,null,null,null,null,null,null,null,null,null,null,null,null,null,null,null,null,null,null,null,null,null,null,null,null,null,null,null,null,null,null,null,null,null,null,null,null,null,null,null,null,null,null,null,null,null,null,null,null,null,null,null,null,null,null,null,null,null,null,null,null,null,null,null,null,null,null,null,null,null,null,null,null,null,null,null,null,null,null,null,null,null,null,null,null,null,null,null,null,null,null,null,null,null,null,null,null,null,null,null,null,null,null,null,null,null,null,null,null,null,null,null,null,null,null,null,null,null,null,null,null,null,null,null,null,null,null,null,null,null,null,null,null,null,null,null,null,null,null,null,null,null,null,null,null,null,null,null,null,null,null,null,null,null,null,null,null,null,null,null,null,null,null,null,null,null,null,null,null,null,null,null,null,null,null,null,null,null,null,null,null,null,null,null,null,null,null,null,null,null,null,null,null,null,null,null,null,null,null,null,null,null,null,null,null,null,null,null,null,null,null,null,null,null,null,null,null,null,null,null,null,null,null,null,null,null,null,null,null,null,null,null,null,null,null,null,null,null,null,null,null,null,null,null,null,null,null,null,null,null,null,null,null,null,null,null,null,null,null,null,null,null,null,null,null,null,null,null,null,null,null,null,null,null,null,null,null,null,null,null,null,null,null,null,null,null,null,null,null,null,null,null,null,null,null,null,null,null,null,null,null,null,null,null,null,null,null,null,null,null,null,null,null,null,null,null,null,null,null,null,null,null,null,null,null,null,null,null,null,null,null,null,null,null,null,null,null,null,null,null,null,null,null,null,null,null,null,null,null,null,null,null,null,null,null,null,null,null,null,null,null,null,null,null,null,null,null,null,null,null,null,null,null,null,null,null,null,null,null,null,null,null,null,null,null,null,null,null,null,null,null,null,null,null,null,null,null,null,null,null,null,null,null,null,null,null,null,null,null,null,null,null,null,null,null,null,null,null,null,null,null,null,null,null,null,null,null,null,null,null,null,null,null,null,null,null,null,null,null,null,null,null,null,null,null,null,null,null,null,null,null,null,null,null,null,null,null,null,null,null,null,null,null,null,null,null,null,null,null,null,null,null,null,null,null,null,null,null,null,null,null,null,null,null,null,null,null,null,null,null,null,null,null,null,null,null,null,null,null,null,null,null,null,null,null,null,null,null,null,null,null,null,null,null,null,null,null,null,null,null,null,null,null,null,null,null,null,null,null,null,null,null,null,null,null,null,null,null,null,null,null,null,null,null,null,null,null,null,null,null,null,null,null,null,null,null,null,null,null,null,null,null,null,null,null,null,null,null,null,null,null,null,null,null,null,null,null,null,null,null,null,null,null,null,null,null,null,null,null,null,null,null,null,null,null,null,null,null,null,null,null,null,null,null,null,null,null,null,null,null,null,null,null,null,null,null,null,null,null,null,null,null,null,null,null,null,null,null,null,null,null,null,null,null,null,null,null,null,null,null,null,null,null,null,null,null,null,null,null,null,null,null,null,null,null,null,null,null,null,null,null,null,null,null,null,null,null,null,null,null,null,null,null,null,null,null,null,null,null,null,null,null,null,null,null,null,null,null,null,null,null,null,null,null,null,null,null,null,null,null,null,null,null,null,null,null,null,null,null,null,null,null,null,null,null,null,null,null,null,null,null,null,null,null,null,null,null,null,null,null,null,null,null,null,null,null,null,null,null,null,null,null,null,null,null,null,null,null,null,null,null,null,null,null,null,null,null,null,null,null,null,null,null,null,null,null,null,null,null,null,null,null,null,null,null,null,null,null,null,null,null,null,null,null,null,null,null,null,null,null,null,null,null,null,null,null,null,null,null,null,null,null,null,null,null,null,null,null,null,null,null,null,null,null,null,null,null,null,null,null,null,null,null,null,null,null,null,null,null,null,null,null,null,null,null,null,null,null,null,null,null,null,null,null,null,null,null,null,null,null,null,null,null,null,null,null,null,null,null,null,null,null,null,null,null,null,null,null,null,null,null,null,null,null,null,null,null,null,null,null,null,null,null,null,null,null,null,null,null,null,null,null,null,null,null,null,null,null,null,null,null,null,null,null,null,null,null,null,null,null,null,null,null,null,null,null,null,null,null,null,null,null,null,null,null,null,null,null,null,null,null,null,null,null,null,null,null,null,null,null,null,null,null,null,null,null,null,null,null,null,null,null,null,null,null,null,null,null,null,null,null,null,null,null,null,null,null,null,null,null,null,null,null,null,null,null,null,null,null,null,null,null,null,null,null,null,null,null,null,null,null,null,null,null,null,null,null,null,null,null,null,null,null,null,null,null,null,null,null,null,null,null,null,null,null,null,null,null,null,null,null,null,null,null,null,null,null,null,null,null,null,null,null,null,null,null,null,null,null,null,null,null,null,null,null,null,null,null,null,null,null,null,null,null,null,null,null,null,null,null,null,null,null,null,null,null,null,null,null,null,null,null,null,null,null,null,null,null,null,null,null,null,null,null,null,null,null,null,null,null,null,null,null,null,null,null,null,null,null,null,null,null,null,null,null,null,null,null,null,null,null,null,null,null,null,null,null,null,null,null,null,null,null,null,null,null,null,null,null,null,null,null,null,null,null,null,null,null,null,null,null,null,null,null,null,null,null,null,null,null,null,null,null,null,null,null,null,null,null,null,null,null,null,null,null,null,null,null,null,null,null,null,null,null,null,null,null,null,null,null,null,null,null,null,null,null,null,null,null,null,null,null,null,null,null,null,null,null,null,null,null,null,null,null,null,null,null,null,null,null,null,null,null,null,null,null,null,null,null,null,null,null,null,null,null,null,null,null,null,null,null,null,null,null,null,null,null,null,null,null,null,null,null,null,null,null,null,null,null,null,null,null,null,null,null,null,null,null,null,null,null,null,null,null,null,null,null,null,null,null,null,null,null,null,null,null,null,null,null,null,null,null,null,null,null,null,null,null,null,null,null,null,null,null,null,null,null,null,null,null,null,null,null,null,null,null,null,null,null,null,null,null,null,null,null,null,null,null,null,null,null,null,null,null,null,null,null,null,null,null,null,null,null,null,null,null,null,null,null,null,null,null,null,null,null,null,null,null,null,null,null,null,null,null,null,null,null,null,null,null,null,null,null,null,null,null,null,null,null,null,null,null,null,null,null,null,null,null,null,null,null,null,null,null,null,null,null,null,null,null,null,null,null,null,null,null,null,null,null,null,null,null,null,null,null,null,null,null,null,null,null,null,null,null,null,null,null,null,null,null,null,null,null,null,null,null,null,null,null,null,null,null,null,null,null,null,null,null,null,null,null,null,null,null,null,null,null,null,null,null,null,null,null,null,null,null,null,null,null,null,null,null,null,null,null,null,null,null,null,null,null,null,null,null,null,null,null,null,null,null,null,null,null,null,null,null,null,null,null,null,null,null,null,null,null,null,null,null,null,null,null,null,null,null,null,null,null,null,null,null,null,null,null,null,null,null,null,null,null,null,null,null,null,null,null,null,null,null,null,null,null,null,null,null,null,null,null,null,null,null,null,null,null,null,null,null,null,null,null,null,null,null,null,null,null,null,null,null,null,null,null,null,null,null,null,null,null,null,null,null,null,null,null,null,null,null,null,null,null,null,null,null,null,null,null,null,null,null,null,null,null,null,null,null,null,null,null,null,null,null,null,null,null,null,null,null,null,null,null,null,null,null,null,null,null,null,null,null,null,null,null,null,null,null,null,null,null,null,null,null,null,null,null,null,null,null,null,null,null,null,null,null,null,null,null,null,null,null,null,null,null,null,null,null,null,null,null,null,null,null,null,null,null,null,null,null,null,null,null,null,null,null,null,null,null,null,null,null,null,null,null,null,null,null,null,null,null,null,null,null,null,null,null,null,null,null,null,null,null,null,null,null,null,null,null,null,null,null,null,null,null,null,null,null,null,null,null,null,null,null,null,null,null,null,null,null,null,null,null,null,null,null,null,null,null,null,null,null,null,null,null,null,null,null,null,null,null,null,null,null,null,null,null,null,null,null,null,null,null,null,null,null,null,null,null,null,null,null,null,null,null,null,null,null,null,null,null,null,null,null,null,null,null,null,null,null,null,null,null,null,null,null,null,null,null,null,null,null,null,null,null,null,null,null,null,null,null,null,null,null,null,null,null,null,null,null,null,null,null,null,null,null,null,null,null,null,null,null,null,null,null,null,null,null,null,null,null,null,null,null,null,null,null,null,null,null,null,null,null,null,null,null,null,null,null,null,null,null,null,null,null,null,null,null,null,null,null,null,null,null,null,null,null,null,null,null,null,null,null,null,null,null,null,null,null,null,null,null,null,null,null,null,null,null,null,null,null,null,null,null,null,null,null,null,null,null,null,null,null,null,null,null,null,null,null,null,null,null,null,null,null,null,null,null,null,null,null,null,null,null,null,null,null,null,null,null,null,null,null,null,null,null,null,null,null,null,null,null,null,null,null,null,null,null,null,null,null,null,null,null,null,null,null,null,null,null,null,null,null,null,null,null,null,null,null,null,null,null,null,null,null,null,null,null,null,null,null,null,null,null,null,null,null,null,null,null,null,null,null,null,null,null,null,null,null,null,null,null,null,null,null,null,null,null,null,null,null,null,null,null,null,null,null,null,null,null,null,null,null,null,null,null,null,null,null,null,null,null,null,null,null,null,null,null,null,null,null,null,null,null,null,null,null,null,null,null,null,null,null,null,null,null,null,null,null,null,null,null,null,null,null,null,null,null,null,null,null,null,null,null,null,null,null,null,null,null,null,null,null,null,null,null,null,null,null,null,null,null,null,null,null,null,null,null,null,null,null,null,null,null,null,null,null,null,null,null,null,null,null,null,null,null,null,null,null,null,null,null,null,null,null,null,null,null,null,null,null,null,null,null,null,null,null,null,null,null,null,null,null,null,null,null,null,null,null,null,null,null,null,null,null,null,null,null,null,null,null,null,null,null,null,null,null,null,null,null,null,null,null,null,null,null,null,null,null,null,null,null,null,null,null,null,null,null,null,null,null,null,null,null,null,null,null,null,null,null,null,null,null,null,null,null,null,null,null,null,null,null,null,null,null,null,null,null,null,null,null,null,null,null,null,null,null,null,null,null,null,null,null,null,null,null,null,null,null,null,null,null,null,null,null,null,null,null,null,null,null,null,null,null,null,null,null,null,null,null,null,null,null,null,null,null,null,null,null,null,null,null,null,null,null,null,null,null,null,null,null,null,null,null,null,null,null,null,null,null,null,null,null,null,null,null,null,null,null,null,null,null,null,null,null,null,null,null,null,null,null,null,null,null,null,null,null,null,null,null,null,null,null,null,null,null,null,null,null,null,null,null,null,null,null,null,null,null,null,null,null,null,null,null,null,null,null,null,null,null,null,null,null,null,null,null,null,null,null,null,null,null,null,null,null,null,null,null,null,null,null,null,null,null,null,null,null,null,null,null,null,null,null,null,null,null,null,null,null,null,null,null,null,null,null,null,null,null,null,null,null,null,null,null,null,null,null,null,null,null,null,null,null,null,null,null,null,null,null,null,null,null,null,null,null,null,null,null,null,null,null,null,null,null,null,null,null,null,null,null,null,null,null,null,null,null,null,null,null,null,null,null,null,null,null,null,null,null,null,null,null,null,null,null,null,null,null,null,null,null,null,null,null,null,null,null,null,null,null,null,null,null,null,null,null,null,null,null,null,null,null,null,null,null,null,null,null,null,null,null,null,null,null,null,null,null,null,null,null,null,null,null,null,null,null,null,null,null,null,null,null,null,null,null,null,null,null,null,null,null,null,null,null,null,null,null,null,null,null,null,null,null,null,null,null,null,null,null,null,null,null,null,null,null,null,null,null,null,null,null,null,null,null,null,null,null,null,null,null,null,null,null,null,null,null,null,null,null,null,null,null,null,null,null,null,null,null,null,null,null,null,null,null,null,null,null,null,null,null,null,null,null,null,null,null,null,null,null,null,null,null,null,null,null,null,null,null,null,null,null,null,null,null,null,null,null,null,null,null,null,null,null,null,null,null,null,null,null,null,null,null,null,null,null,null,null,null,null,null,null,null,null,null,null,null,null,null,null,null,null,null,null,null,null,null,null,null,null,null,null,null,null,null,null,null,null,null,null,null,null,null,null,null,null,null,null,null,null,null,null,null,null,null,null,null,null,null,null,null,null,null,null,null,null,null,null,null,null,null,null,null,null,null,null,null,null,null,null,null,null,null,null,null,null,null,null,null,null,null,null,null,null,null,null,null,null,null,null,null,null,null,null,null,null,null,null,null,null,null,null,null,null,null,null,null,null,null,null,null,null,null,null,null,null,null,null,null,null,null,null,null,null,null,null,null,null,null,null,null,null,null,null,null,null,null,null,null,null,null,null,null,null,null,null,null,null,null,null,null,null,null,null,null,null,null,null,null,null,null,null,null,null,null,null,null,null,null,null,null,null,null,null,null,null,null,null,null,null,null,null,null,null,null,null,null,null,null,null,null,null,null,null,null,null,null,null,null,null,null,null,null,null,null,null,null,null,null,null,null,null,null,null,null,null,null,null,null,null,null,null,null,null,null,null,null,null,null,null,null,null,null,null,null,null,null,null,null,null,null,null,null,null,null,null,null,null,null,null,null,null,null,null,null,null,null,null,null,null,null,null,null,null,null,null,null,null,null,null,null,null,null,null,null,null,null,null,null,null,null,null,null,null,null,null,null,null,null,null,null,null,null,null,null,null,null,null,null,null,null,null,null,null,null,null,null,null,null,null,null,null,null,null,null,null,null,null,null,null,null,null,null,null,null,null,null,null,null,null,null,null,null,null,null,null,null,null,null,null,null,null,null,null,null,null,null,null,null,null,null,null,null,null,null,null,null,null,null,null,null,null,null,null,null,null,null,null,null,null,null,null,null,null,null,null,null,null,null,null,null,null,null,null,null,null,null,null,null,null,null,null,null,null,null,null,null,null,null,null,null,null,null,null,null,null,null,null,null,null,null,null,null,null,null,null,null,null,null,null,null,null,null,null,null,null,null,null,null,null,null,null,null,null,null,null,null,null,null,null,null,null,null,null,null,null,null,null,null,null,null,null,null,null,null,null,null,null,null,null,null,null,null,null,null,null,null,null,null,null,null,null,null,null,null,null,null,null,null,null,null,null,null,null,null,null,null,null,null,null,null,null,null,null,null,null,null,null,null,null,null,null,null,null,null,null,null,null,null,null,null,null,null,null,null,null,null,null,null,null,null,null,null,null,null,null,null,null,null,null,null,null,null,null,null,null,null,null,null,null,null,null,null,null,null,null,null,null,null,null,null,null,null,null,null,null,null,null,null,null,null,null,null,null,null,null,null,null,null,null,null,null,null,null,null,null,null,null,null,null,null,null,null,null,null,null,null,null,null,null,null,null,null,null,null,null,null,null,null,null,null,null,null,null,null,null,null,null,null,null,null,null,null,null,null,null,null,null,null,null,null,null,null,null,null,null,null,null,null,null,null,null,null,null,null,null,null,null,null,null,null,null,null,null,null,null,null,null,null,null,null,null,null,null,null,null,null,null,null,null,null,null,null,null,null,null,null,null,null,null,null,null,null,null,null,null,null,null,null,null,null,null,null,null,null,null,null,null,null,null,null,null,null,null,null,null,null,null,null,null,null,null,null,null,null,null,null,null,null,null,null,null,null,null,null,null,null,null,null,null,null,null,null,null,null,null,null,null,null,null,null,null,null,null,null,null,null,null,null,null,null,null,null,null,null,null,null,null,null,null,null,null,null,null,null,null,null,null,null,null,null,null,null,null,null,null,null,null,null,null,null,null,null,null,null,null,null,null,null,null,null,null,null,null,null,null,null,null,null,null,null,null,null,null,null,null,null,null,null,null,null,null,null,null,null,null,null,null,null,null,null,null,null,null,null,null,null,null,null,null,null,null,null,null,null,null,null,null,null,null,null,null,null,null,null,null,null,null,null,null,null,null,null,null,null,null,null,null,null,null,null,null,null,null,null,null,null,null,null,null,null,null,null,null,null,null,null,null,null,null,null,null,null,null,null,null,null,null,null,null,null,null,null,null,null,null,null,null,null,null,null,null,null,null,null,null,null,null,null,null,null,null,null,null,null,null,null,null,null,null,null,null,null,null,null,null,null,null,null,null,null,null,null,null,null,null,null,null,null,null,null,null,null,null,null,null,null,null,null,null,null,null,null,null,null,null,null,null,null,null,null,null,null,null,null,null,null,null,null,null,null,null,null,null,null,null,null,null,null,null,null,null,null,null,null,null,null,null,null,null,null,null,null,null,null,null,null,null,null,null,null,null,null,null,null,null,null,null,null,null,null,null,null,null,null,null,null,null,null,null,null,null,null,null,null,null,null,null,null,null,null,null,null,null,null,null,null,null,null,null,null,null,null,null,null,null,null,null,null,null,null,null,null,null,null,null,null,null,null,null,null,null,null,null,null,null,null,null,null,null,null,null,null,null,null,null,null,null,null,null,null,null,null,null,null,null,null,null,null,null,null,null,null,null,null,null,null,null,null,null,null,null,null,null,null,null,null,null,null,null,null,null,null,null,null,null,null,null,null,null,null,null,null,null,null,null,null,null,null,null,null,null,null,null,null,null,null,null,null,null,null,null,null,null,null,null,null,null,null,null,null,null,null,null,null,null,null,null,null,null,null,null,null,null,null,null,null,null,{"$f":"SUM(O26:XFC26)","v":0}]
["1.0","Document Review and Surface Water Delineation for Design Requirements",null,null,null,null,null,null,null,null,null,null,null,null,{"$f":"SUM(E27:N27)","v":0}]
["Subtask","Review project’s environmental documents for commitments related to E&SC design, mitigation, landscaping, and vegetation re-establishment",null,null,null,null,null,null,null,null,null,null,null,null,0]
["Subtask","Water Quality Worksheet ",null,null,null,null,null,null,null,null,null,null,null,null,0]
["Subtask","Environmental Document Review ",null,null,null,null,null,null,null,null,null,null,null,null,0]
["Subtask","Conduct Site Visit",null,null,null,null,null,null,null,null,null,null,null,null,0]
["2.0","Pre-Design Meeting ",null,null,null,null,null,null,null,null,null,null,null,null,0]
["3.0","Field Inspection Plans for Clearing & Grubbing and Final Construction Phases ",null,null,null,null,null,null,null,null,null,null,null,null,0]
["4.0","Design Pipe/Culvert Construction Sequences",null,null,null,null,null,null,null,null,null,null,null,null,0]
["5.0","Review Field Inspection E&SC Plan Set and Attend Field Inspection",null,null,null,null,null,null,null,null,null,null,null,null,0]
["6.0","ROW/Easement Request File ",null,null,null,null,null,null,null,null,null,null,null,null,0]
["7.0","Task Management",null,null,null,null,null,null,null,null,null,null,null,null,0]
["8.0","Complete QC/QA Procedures",null,null,null,null,null,null,null,null,null,null,null,null,0]
[null,null,null,null,null,null,null,null,null,null,null,null,null,null,0]
[null,null,null,null,null,null,null,null,null,null,null,null,null,null,0]
[null,null,null,null,null,null,null,null,null,null,null,null,null,null,0]
[null,null,null,null,null,null,null,null,null,null,null,null,null,null,0]
[null,null,null,null,null,null,null,null,null,null,null,null,null,null,0]
[null,null,null,null,null,null,null,null,null,null,null,null,null,null,0]
["3RE1","Complete Erosion and Sediment Plans ",null,null,null,null,null,null,null,null,null,null,null,null,0]
["1.0","Complete E&SC Plans for Clearing and Grubbing Construction Phase ",null,null,null,null,null,null,null,null,null,null,null,null,0]
["Subtask","E&SC Plans for Clearing and Grubbing (C&G)",null,null,null,null,null,null,null,null,null,null,null,null,0]
["Subtask","E&SC Plans for Intermediate Construction Phase",null,null,null,null,null,null,null,null,null,null,null,null,0]
["Subtask","E&SC Plans for Final Construction Phase",null,null,null,null,null,null,null,null,null,null,null,null,0]
["Subtask","Calculate Matting Requirements for Ditches and Slopes",null,null,null,null,null,null,null,null,null,null,null,null,0]
["Subtask","Add details, notes, and vegetation management Plans",null,null,null,null,null,null,null,null,null,null,null,null,0]
["2.0","Calculate Final E&SC Quantities and Develop Project Specific E&SC Special Provisions",null,null,null,null,null,null,null,null,null,null,null,null,0]
["3.0","Apply for other Applicable Permits Related to the E&SC Plans",null,null,null,null,null,null,null,null,null,null,null,null,0]
["4.0","Task Management ",null,null,null,null,null,null,null,null,null,null,null,null,0]
["5.0","Complete QC/QA Procedures",null,null,null,null,null,null,null,null,null,null,null,null,0]
[null,null,null,null,null,null,null,null,null,null,null,null,null,null,0]
[null,null,null,null,null,null,null,null,null,null,null,null,null,null,0]
[null,null,null,null,null,null,null,null,null,null,null,null,null,null,0]
[null,null,null,null,null,null,null,null,null,null,null,null,null,null,0]
[null,null,null,null," ",null,null,null,null,null,null,null,null,null,{"$f":"SUM(E61:N61)","v":0}]
["TOTAL WORKHOURS",null,null,null,{"$f":"SUM(E26:E59)","v":0},0,0,0,0,0,0,0,0,0,null,{"$f":"SUM(E61:N61)/8","v":0}]
["Rates",null,null,null,{"$f":"'PEF CLASSIFICATION SHEET'!E1089","v":0},{"$f":"'PEF CLASSIFICATION SHEET'!E1090","v":0},{"$f":"'PEF CLASSIFICATION SHEET'!E1091","v":0},{"$f":"'PEF CLASSIFICATION SHEET'!E1092","v":0},{"$f":"'PEF CLASSIFICATION SHEET'!E1093","v":0},{"$f":"'PEF CLASSIFICATION SHEET'!E1094","v":0},{"$f":"'PEF CLASSIFICATION SHEET'!E1095","v":0},{"$f":"'PEF CLASSIFICATION SHEET'!E1096","v":0},{"$f":"'PEF CLASSIFICATION SHEET'!E1097","v":0},{"$f":"'PEF CLASSIFICATION SHEET'!E1098","v":0},"WORKHOURS","WORKDAYS"]
[]
["Cost",null,null,null,{"$f":"E61*E62","v":0},{"$f":"F61*F62","v":0},{"$f":"G61*G62","v":0},{"$f":"H61*H62","v":0},{"$f":"I61*I62","v":0},{"$f":"J61*J62","v":0},0,0,0,{"$f":"N61*N62","v":0}]
[]
[]
[]
[null,null,null,null,null,null,"Total Salary Cost",null,{"$f":"SUM(E64,F64,G64,H64,I64,J64,K64,L64,M64,N64)","v":0}]
[]
[null,null,null,null,null,null,"Overhead Rate",{"$f":"EROSION.CONTROL_SUB1_CONSULTANT_OVERHEAD","v":0},{"$f":"I68*H70","v":0}]
[]
[null,null,null,null,null,null,null,"Subtotal",{"$f":"I68+I70","v":0}]
[]
[null,null,null,null,null,null,"Fee",{"$f":"EROSION.CONTROL_SUB1_CONSULTANT_FEE","v":0.09},{"$f":"I72*H74","v":0}]
[]
[null,null,null,null,null,null,"Cost of Capital",{"$f":"EROSION.CONTROL_SUB1_CONSULTANT_COSTofCAPITAL","v":0},{"$f":"I68*H76","v":0}]
[]
[null,null,null,null,null,null,null,"TOTAL SALARY COST",{"$f":"I72+I74+I76","v":0}]
[]
[]
[]
["EROSION CONTROL DIRECT COSTS"]
[]
["A.","PRINTING"]
[null,null,null,null,"No, of Sets","Sheets per Set","Total Sheets","Cost per Sheet","Cost"]
[null,"Full-size Field Inspection Plans",null,null,null,null,{"$f":"E86*F86","v":0},{"$f":"BOND.REGULAR","v":0.42},{"$f":"G86*H86","v":0}]
[]
[null,"Half-size Field Inspection Plans",null,null,null,null,{"$f":"E88*F88","v":0},{"$f":"LEDGERCOPIES","v":0.34},{"$f":"G88*H88","v":0}]
[]
[null,"Full-size Final Review Plans",null,null,null,null,{"$f":"E90*F90","v":0},{"$f":"BOND.REGULAR","v":0.42},{"$f":"G90*H90","v":0}]
[]
[null,"Half-size Final Review Plans",null,null,null,null,{"$f":"E92*F92","v":0},{"$f":"LEDGERCOPIES","v":0.34},{"$f":"G92*H92","v":0}]
[]
[null,"Full-size Final Plans",null,null,null,null,{"$f":"E94*F94","v":0},{"$f":"BOND.REGULAR","v":0.42},{"$f":"G94*H94","v":0}]
[]
[null,"Half-size Final Plans",null,null,null,null,{"$f":"E96*F96","v":0},{"$f":"LEDGERCOPIES","v":0.34},{"$f":"G96*H96","v":0}]
[]
["B.","COPIES"]
[null,null,null,null,null,null,"# Copies"]
[null,"Misc. =                # Copies @ Cost/Copy =",null,null,null,null,null,{"$f":"LETTERCOPIES","v":0.14000000000000001},{"$f":"G100*H100","v":0}]
[]
["C.","TRAVEL"]
[]
[null,"Field =     #      Trips @                         Miles per Trip"]
[null,null,null,null,null,null,null,{"$f":"SEDAN","v":0.7},{"$f":"C105*E105*H105","v":0}]
[null,"Meetings =    #    Trips @                     Miles per Trip"]
[null,null,null,null,null,null,null,{"$f":"CARRYALL","v":0.72},{"$f":"C107*E107*H107","v":0}]
[]
["D. ","PER DIEM"]
[null,null,null,"Quantity"]
[null,"Breakfast",null,null,null,null,null,{"$f":"BREAKFAST","v":10.1},{"$f":"D111*H111","v":0}]
[]
[null,"Lunch",null,null,null,null,null,{"$f":"LUNCH","v":13.3},{"$f":"D113*H113","v":0}]
[]
[null,"Dinner",null,null,null,null,null,{"$f":"DINNER","v":23.1},{"$f":"D115*H115","v":0}]
[]
[null,"Lodging",null,null,null,null,null,{"$f":"LODGING_LUMP.SUM","v":95},{"$f":"D117*H117","v":0}]
[]
["E. ","MISCELLANEOUS EXPENSES"]
[null,"Description",null,null,"Quantity","Unit of Measure",null,"Cost Per Unit"]
[null,null,null,null,null,null,null,null,{"$f":"E121*H121","v":0}]
[]
[null,null,null,null,null,null,null,null,{"$f":"E123*H123","v":0}]
[]
[null,null,null,null,null,null,null,null,{"$f":"E125*H125","v":0}]
[]
[null,null,null,null,null,null,null,null,{"$f":"E127*H127","v":0}]
[]
[null,null,null,null,null,null,null,null,{"$f":"E129*H129","v":0}]
[]
[null,"TOTAL DIRECT NON-SALARY COSTS   =",null,null,null,null,null,null,{"$f":"SUM(I84:I130)","v":0}]
[]
[]
[]
[]
[null,"TOTAL DIRECT SALARY AND NON-SALARY COSTS =",null,null,null,null,null,null,{"$f":"EROSION.CONTROL_SUB1_SALARY_TOTAL+EROSION.CONTROL_SUB1_DIRECT_NONSALARY_TOTAL","v":0}]

{"sheet":"Rail-Sub1","index":139,"n_rows":275,"n_cols":47,"rows_kept":275,"cut":false,"hidden":true,"merged":[[280,8,280,9],[280,10,280,11],[283,8,283,13],[284,8,284,9],[284,10,284,11],[285,8,285,9],[285,10,285,11],[258,26,258,27],[259,26,259,27],[197,26,197,27],[196,26,196,27],[195,26,195,27],[194,26,194,27],[193,26,193,27],[274,1,275,1],[274,3,275,4],[278,8,278,13],[279,8,279,9],[279,10,279,11],[252,26,252,27],[253,26,253,27],[254,26,254,27],[255,26,255,27],[256,26,256,27],[257,26,257,27],[244,26,244,27],[245,26,245,27],[246,26,246,27],[247,26,247,27],[248,26,248,27],[249,26,249,27],[250,26,250,27],[251,26,251,27],[198,26,198,27],[238,26,238,27],[239,26,239,27],[240,26,240,27],[241,26,241,27],[242,26,242,27],[243,26,243,27],[232,26,232,27],[233,26,233,27],[234,26,234,27],[235,26,235,27],[236,26,236,27],[237,26,237,27],[226,26,226,27],[227,26,227,27],[228,26,228,27],[229,26,229,27],[230,26,230,27],[231,26,231,27],[220,26,220,27],[221,26,221,27],[222,26,222,27],[223,26,223,27],[224,26,224,27],[225,26,225,27],[10,26,10,27],[11,26,11,27],[12,26,12,27],[13,26,13,27],[14,26,14,27],[15,26,15,27],[6,18,9,18],[6,19,9,19],[6,20,9,20],[6,21,9,21],[6,22,9,22],[8,26,8,27],[118,26,118,27],[119,26,119,27],[120,26,120,27],[121,26,121,27],[122,26,122,27],[123,26,123,27],[124,26,124,27],[125,26,125,27],[126,26,126,27],[127,26,127,27],[128,26,128,27],[6,12,9,12],[6,13,9,13],[6,14,9,14],[6,15,9,15],[6,16,9,16],[6,17,9,17],[4,3,4,22],[6,3,9,3],[6,4,9,4],[6,5,9,5],[6,6,9,6],[6,7,9,7],[6,8,9,8],[6,9,9,9],[6,10,9,10],[6,11,9,11],[0,0,1,13],[2,1,2,4],[2,6,2,7],[2,10,2,11],[2,15,2,16],[3,1,3,4],[3,6,3,7],[3,10,3,11],[3,15,3,16],[129,26,129,27],[130,26,130,27],[131,26,131,27],[132,26,132,27],[133,26,133,27],[134,26,134,27],[135,26,135,27],[136,26,136,27],[137,26,137,27],[138,26,138,27],[139,26,139,27],[140,26,140,27],[141,26,141,27],[142,26,142,27],[143,26,143,27],[144,26,144,27],[145,26,145,27],[146,26,146,27],[147,26,147,27],[148,26,148,27],[149,26,149,27],[150,26,150,27],[151,26,151,27],[152,26,152,27],[153,26,153,27],[154,26,154,27],[155,26,155,27],[156,26,156,27],[157,26,157,27],[158,26,158,27],[159,26,159,27],[160,26,160,27],[161,26,161,27],[162,26,162,27],[163,26,163,27],[164,26,164,27],[165,26,165,27],[166,26,166,27],[167,26,167,27],[168,26,168,27],[169,26,169,27],[170,26,170,27],[171,26,171,27],[172,26,172,27],[173,26,173,27],[174,26,174,27],[175,26,175,27],[176,26,176,27],[177,26,177,27],[178,26,178,27],[179,26,179,27],[180,26,180,27],[190,26,190,27],[191,26,191,27],[192,26,192,27],[181,26,181,27],[182,26,182,27],[183,26,183,27],[184,26,184,27],[185,26,185,27],[186,26,186,27],[187,26,187,27],[188,26,188,27],[189,26,189,27],[199,26,199,27],[200,26,200,27],[201,26,201,27],[202,26,202,27],[203,26,203,27],[204,26,204,27],[205,26,205,27],[206,26,206,27],[207,26,207,27],[208,26,208,27],[209,26,209,27],[210,26,210,27],[211,26,211,27],[212,26,212,27],[213,26,213,27],[214,26,214,27],[215,26,215,27],[216,26,216,27],[217,26,217,27],[218,26,218,27],[219,26,219,27],[16,26,16,27],[17,26,17,27],[18,26,18,27],[19,26,19,27],[20,26,20,27],[21,26,21,27],[22,26,22,27],[23,26,23,27],[24,26,24,27],[25,26,25,27],[26,26,26,27],[27,26,27,27],[28,26,28,27],[29,26,29,27],[30,26,30,27],[31,26,31,27],[32,26,32,27],[33,26,33,27],[34,26,34,27],[35,26,35,27],[36,26,36,27],[37,26,37,27],[38,26,38,27],[39,26,39,27],[40,26,40,27],[41,26,41,27],[42,26,42,27],[43,26,43,27],[44,26,44,27],[45,26,45,27],[46,26,46,27],[47,26,47,27],[48,26,48,27],[49,26,49,27],[50,26,50,27],[51,26,51,27],[52,26,52,27],[53,26,53,27],[54,26,54,27],[55,26,55,27],[56,26,56,27],[57,26,57,27],[58,26,58,27],[59,26,59,27],[60,26,60,27],[61,26,61,27],[62,26,62,27],[63,26,63,27],[64,26,64,27],[65,26,65,27],[66,26,66,27],[67,26,67,27],[68,26,68,27],[69,26,69,27],[70,26,70,27],[71,26,71,27],[72,26,72,27],[88,26,88,27],[89,26,89,27],[90,26,90,27],[73,26,73,27],[74,26,74,27],[75,26,75,27],[76,26,76,27],[77,26,77,27],[78,26,78,27],[79,26,79,27],[80,26,80,27],[81,26,81,27],[116,26,116,27],[117,26,117,27],[100,26,100,27],[101,26,101,27],[102,26,102,27],[103,26,103,27],[104,26,104,27],[105,26,105,27],[106,26,106,27],[107,26,107,27],[108,26,108,27],[3,26,3,27],[9,0,9,1],[109,26,109,27],[110,26,110,27],[111,26,111,27],[112,26,112,27],[113,26,113,27],[114,26,114,27],[115,26,115,27],[91,26,91,27],[92,26,92,27],[93,26,93,27],[94,26,94,27],[95,26,95,27],[96,26,96,27],[97,26,97,27],[98,26,98,27],[99,26,99,27],[82,26,82,27],[83,26,83,27],[84,26,84,27],[85,26,85,27],[86,26,86,27],[87,26,87,27]]}
["                                                                      SUBCONSULTANT 1 - RAIL DIVISION BREAKDOWN WORKSHEET -- ENTER WORKHOURS"]
[]
["PROJECT DESCRIPTION: ",{"$f":"PROJECT.DESCRIPTION","v":0},null,null,null,"FIRM:  ",{"$f":"RAIL.SUB1_CONSULTANT_NAME","v":"CONSULTANT NAME"},null,"TASK ORDER NUMBER:",null,{"$f":"TASK.ORDER.NUMBER","v":0},null,"DATE PREPARED:",{"$f":"IF(SCOPE.MANDAY.ESTIMATE.PREPARED.BY.DATE=\"\",\"\",SCOPE.MANDAY.ESTIMATE.PREPARED.BY.DATE)","v":""}]
["PREPARED BY:  ",{"$f":"IF(SCOPE.MANDAY.ESTIMATE.PREPARED.BY=\"\",\"\",SCOPE.MANDAY.ESTIMATE.PREPARED.BY)","v":""},null,null,null,"TIP NUMBER:",{"$f":"TIP.NUMBER","v":0},null,"WBS NUMBER:",null,{"$f":"WBS.NUMBER","v":""},null,"REVISION DATE:",{"$f":"IF(SCOPE.MANDAY.ESTIMATE.APPROVED.BY.DATE=\"\",\"\",SCOPE.MANDAY.ESTIMATE.APPROVED.BY.DATE)","v":""},null,null,null,null,null,null,null,null,null,null,null,"TASK TYPE:","Select Task Type"]
[null,null,null,"ESTIMATED WORKHOURS"]
[null,null,"EMPLOYEE NAMES",{"$f":"IF('PEF CLASSIFICATION SHEET'!D1101=\"\",\"\",LEFT('PEF CLASSIFICATION SHEET'!D1101,4))","v":""},{"$f":"IF('PEF CLASSIFICATION SHEET'!D1102=\"\",\"\",LEFT('PEF CLASSIFICATION SHEET'!D1102,4))","v":""},{"$f":"IF('PEF CLASSIFICATION SHEET'!D1103=\"\",\"\",LEFT('PEF CLASSIFICATION SHEET'!D1103,4))","v":""},{"$f":"IF('PEF CLASSIFICATION SHEET'!D1104=\"\",\"\",LEFT('PEF CLASSIFICATION SHEET'!D1104,4))","v":""},{"$f":"IF('PEF CLASSIFICATION SHEET'!D1105=\"\",\"\",LEFT('PEF CLASSIFICATION SHEET'!D1105,4))","v":""},{"$f":"IF('PEF CLASSIFICATION SHEET'!D1106=\"\",\"\",LEFT('PEF CLASSIFICATION SHEET'!D1106,4))","v":""},{"$f":"IF('PEF CLASSIFICATION SHEET'!D1107=\"\",\"\",LEFT('PEF CLASSIFICATION SHEET'!D1107,4))","v":""},{"$f":"IF('PEF CLASSIFICATION SHEET'!D1108=\"\",\"\",LEFT('PEF CLASSIFICATION SHEET'!D1108,4))","v":""},{"$f":"IF('PEF CLASSIFICATION SHEET'!D1109=\"\",\"\",LEFT('PEF CLASSIFICATION SHEET'!D1109,4))","v":""},{"$f":"IF('PEF CLASSIFICATION SHEET'!D1110=\"\",\"\",LEFT('PEF CLASSIFICATION SHEET'!D1110,4))","v":""},{"$f":"IF('PEF CLASSIFICATION SHEET'!D1111=\"\",\"\",LEFT('PEF CLASSIFICATION SHEET'!D1111,4))","v":""},{"$f":"IF('PEF CLASSIFICATION SHEET'!D1112=\"\",\"\",LEFT('PEF CLASSIFICATION SHEET'!D1112,4))","v":""},{"$f":"IF('PEF CLASSIFICATION SHEET'!D1113=\"\",\"\",LEFT('PEF CLASSIFICATION SHEET'!D1113,4))","v":""},{"$f":"IF('PEF CLASSIFICATION SHEET'!D1114=\"\",\"\",LEFT('PEF CLASSIFICATION SHEET'!D1114,4))","v":""},{"$f":"IF('PEF CLASSIFICATION SHEET'!D1115=\"\",\"\",LEFT('PEF CLASSIFICATION SHEET'!D1115,4))","v":""},{"$f":"IF('PEF CLASSIFICATION SHEET'!D1116=\"\",\"\",LEFT('PEF CLASSIFICATION SHEET'!D1116,4))","v":""},{"$f":"IF('PEF CLASSIFICATION SHEET'!D1117=\"\",\"\",LEFT('PEF CLASSIFICATION SHEET'!D1117,4))","v":""},{"$f":"IF('PEF CLASSIFICATION SHEET'!D1118=\"\",\"\",LEFT('PEF CLASSIFICATION SHEET'!D1118,4))","v":""},{"$f":"IF('PEF CLASSIFICATION SHEET'!D1119=\"\",\"\",LEFT('PEF CLASSIFICATION SHEET'!D1119,4))","v":""},{"$f":"IF('PEF CLASSIFICATION SHEET'!D1120=\"\",\"\",LEFT('PEF CLASSIFICATION SHEET'!D1120,4))","v":""}]
[null,null,null,{"$f":"IF('PEF CLASSIFICATION SHEET'!C1101=\"\",\"\",'PEF CLASSIFICATION SHEET'!C1101)","v":""},{"$f":"IF('PEF CLASSIFICATION SHEET'!C1102=\"\",\"\",'PEF CLASSIFICATION SHEET'!C1102)","v":""},{"$f":"IF('PEF CLASSIFICATION SHEET'!C1103=\"\",\"\",'PEF CLASSIFICATION SHEET'!C1103)","v":""},{"$f":"IF('PEF CLASSIFICATION SHEET'!C1104=\"\",\"\",'PEF CLASSIFICATION SHEET'!C1104)","v":""},{"$f":"IF('PEF CLASSIFICATION SHEET'!C1105=\"\",\"\",'PEF CLASSIFICATION SHEET'!C1105)","v":""},{"$f":"IF('PEF CLASSIFICATION SHEET'!C1106=\"\",\"\",'PEF CLASSIFICATION SHEET'!C1106)","v":""},{"$f":"IF('PEF CLASSIFICATION SHEET'!C1107=\"\",\"\",'PEF CLASSIFICATION SHEET'!C1107)","v":""},{"$f":"IF('PEF CLASSIFICATION SHEET'!C1108=\"\",\"\",'PEF CLASSIFICATION SHEET'!C1108)","v":""},{"$f":"IF('PEF CLASSIFICATION SHEET'!C1109=\"\",\"\",'PEF CLASSIFICATION SHEET'!C1109)","v":""},{"$f":"IF('PEF CLASSIFICATION SHEET'!C1110=\"\",\"\",'PEF CLASSIFICATION SHEET'!C1110)","v":""},{"$f":"IF('PEF CLASSIFICATION SHEET'!C1111=\"\",\"\",'PEF CLASSIFICATION SHEET'!C1111)","v":""},{"$f":"IF('PEF CLASSIFICATION SHEET'!C1112=\"\",\"\",'PEF CLASSIFICATION SHEET'!C1112)","v":""},{"$f":"IF('PEF CLASSIFICATION SHEET'!C1113=\"\",\"\",'PEF CLASSIFICATION SHEET'!C1113)","v":""},{"$f":"IF('PEF CLASSIFICATION SHEET'!C1114=\"\",\"\",'PEF CLASSIFICATION SHEET'!C1114)","v":""},{"$f":"IF('PEF CLASSIFICATION SHEET'!C1115=\"\",\"\",'PEF CLASSIFICATION SHEET'!C1115)","v":""},{"$f":"IF('PEF CLASSIFICATION SHEET'!C1116=\"\",\"\",'PEF CLASSIFICATION SHEET'!C1116)","v":""},{"$f":"IF('PEF CLASSIFICATION SHEET'!C1117=\"\",\"\",'PEF CLASSIFICATION SHEET'!C1117)","v":""},{"$f":"IF('PEF CLASSIFICATION SHEET'!C1118=\"\",\"\",'PEF CLASSIFICATION SHEET'!C1118)","v":""},{"$f":"IF('PEF CLASSIFICATION SHEET'!C1119=\"\",\"\",'PEF CLASSIFICATION SHEET'!C1119)","v":""},{"$f":"IF('PEF CLASSIFICATION SHEET'!C1120=\"\",\"\",'PEF CLASSIFICATION SHEET'!C1120)","v":""},"SUB-","%","PEF"]
[null,null,null,null,null,null,null,null,null,null,null,null,null,null,null,null,null,null,null,null,null,null,null,"TOTAL","OF","ESTIMATE"]
["TASK NO.","TASK DESCRIPTION","CLASSIFICATION",null,null,null,null,null,null,null,null,null,null,null,null,null,null,null,null,null,null,null,null,null,"PROJECT",null,"COMMENTS",null,null,null,null,null,null,null,"Select Task Type","Grade Separation","CEI","Track Design","Signal Design","Environmental","Planning"]
[{"$f":"IF($AA$4=\"Select Task Type\",\"Select the TASK TYPE from drop down list in cell AA4 to populate the task list\",IF($AA$4=\"Grade Separation\",\"You selected Grade Separation\",IF($AA$4=\"CEI\",\"You selected CEI\",IF($AA$4=\"Track Design\",\"You selected Track Design.  When the task is ALL CAPS, this is a header row, if you choose to key mandays associated with that header row the row total will not be displayed but the column and overall total will sum appropriately\",IF($AA$4=\"Signal Design\",\"You selected Signal Design, note that this is initially a blank task list; so please create a task list from scratch\",IF($AA$4=\"Environmental\",\"You selected Environmental.  When the task is ALL CAPS, this is a header row, if you choose to key mandays associated with that header row the row total will not be displayed but the column and overall total will sum appropriately\",IF($AA$4=\"Planning\",\"You selected Planning.  When the task is ALL CAPS, this is a header row, if you choose to key mandays associated with that header row the row total will not be displayed but the column and overall total will sum appropriately\",\"Select the TASK TYPE from drop down list in cell AA4 to populate the task list\")))))))","v":"Select the TASK TYPE from drop down list in cell AA4 to populate the task list"},null,null,null,null,null,null,null,null,null,null,null,null,null,null,null,null,null,null,null,null,null,null,null,null,null,null,null,null,null,null,null,null,null,null,"Grade Separation","Grade Separation","CEI","CEI","Track Design","Track Design","Signal Design","Signal Design","Environmental","Environmental","Planning","Planning"]
[{"$f":"IF(AG11=0,\"\",AG11)","v":""},{"$f":"IF(AH11=0,\"\",AH11)","v":""},null,null,null,null,null,null,null,null,null,null,null,null,null,null,null,null,null,null,null,null,null,{"$f":"IF(B11=\"\",0,IF(B11=\"DEMAND ASSESSMENT\",\"\",IF(B11=\"PROJECT SCOPING AND DATA COLLECTION\",\"\",IF(B11=\"PROJECT MANAGEMENT/PROJECT ADMINISTRATION\",\"\",IF((SUM(D11:W11)=0),0,SUM(D11:W11))))))","v":0},{"$f":"IF(SUM(D11:W11)=0,\"\",((SUM(D11:W11))/$X$261))","v":""},null,null,null,null,null,null,null,{"$f":"IF($AA$4=\"Select Task Type\",\"\",IF($AA$4=\"Grade Separation\",AJ11,IF($AA$4=\"CEI\",AL11,IF($AA$4=\"Track Design\",AN11,IF($AA$4=\"Signal Design\",AP11,IF($AA$4=\"Environmental\",AR11,IF($AA$4=\"Planning\",AT11,\"\")))))))","v":""},{"$f":"IF($AA$4=\"Select Task Type\",\"\",IF($AA$4=\"Grade Separation\",AK11,IF($AA$4=\"CEI\",AM11,IF($AA$4=\"Track Design\",AO11,IF($AA$4=\"Signal Design\",AQ11,IF($AA$4=\"Environmental\",AS11,IF($AA$4=\"Planning\",AU11,\"\")))))))","v":""},null,1,"Project Familiarization",1,"Project management and document review",1,"PROJECT MANAGEMENT/PROJECT ADMINISTRATION",null,null,"A","PROJECT SCOPING AND DATA COLLECTION",1,"DEMAND ASSESSMENT"]
[{"$f":"IF(AG12=0,\"\",AG12)","v":""},"",null,null,null,null,null,null,null,null,null,null,null,null,null,null,null,null,null,null,null,null,null,{"$f":"IF(B12=\"\",0,IF((SUM(D12:W12)=0),0,SUM(D12:W12)))","v":0},{"$f":"IF(SUM(D12:W12)=0,\"\",((SUM(D12:W12))/$X$261))","v":""},null,null,null,null,null,null,null,{"$f":"IF($AA$4=\"Select Task Type\",\"\",IF($AA$4=\"Grade Separation\",AJ12,IF($AA$4=\"CEI\",AL12,IF($AA$4=\"Track Design\",AN12,IF($AA$4=\"Signal Design\",AP12,IF($AA$4=\"Environmental\",AR12,IF($AA$4=\"Planning\",AT12,\"\")))))))","v":""},"",null,2,"Conceptual Design",2,"Track inspection",null,null,null,null,"A.1","Study Area Definition",null,"Review previous studies"]
["","",null,null,null,null,null,null,null,null,null,null,null,null,null,null,null,null,null,null,null,null,null,0,{"$f":"IF(SUM(D13:W13)=0,\"\",((SUM(D13:W13))/$X$261))","v":""},null,null,null,null,null,null,null,"","",null,3,"Construction Cost Estimate",3,"Roadway inspection",null,null,null,null,"A.2","Study Area Field Visit",null,"Interview XX, XX, and XX on near-term rail intermodal and break bulk plans"]
["","",null,null,null,null,null,null,null,null,null,null,null,null,null,null,null,null,null,null,null,null,null,0,"",null,null,null,null,null,null,null,"","",null,4,"Project Coordination",null,null,null,null,null,null,"A.3","Community Characteristics Report",null,"Estimate effects of various rail entities"]
["","",null,null,null,null,null,null,null,null,null,null,null,null,null,null,null,null,null,null,null,null,null,0,"",null,null,null,null,null,null,null,"","",null,null,null,null,null,null,null,null,null,"A.4","Local Land Use and Transportation Plans",null,"Estimate future growth in other bulk and break bulk commodities"]
["","",null,null,null,null,null,null,null,null,null,null,null,null,null,null,null,null,null,null,null,null,null,0,"",null,null,null,null,null,null,null,"","",null,null,null,null,null,null,null,null,null,"A.5","State and Federal Data Sources",null,"Incorporate State Freight Plan into market forecasts "]
["","",null,null,null,null,null,null,null,null,null,null,null,null,null,null,null,null,null,null,null,null,null,0,"",null,null,null,null,null,null,null,"","",null,null,null,null,null,null,null,null,null,"A.6 ","GeoEnvironmental Review",null,"Project port continued share against market growth"]
["","",null,null,null,null,null,null,null,null,null,null,null,null,null,null,null,null,null,null,null,null,null,0,"",null,null,null,null,null,null,null,"","",null,null,null,null,null,null,null,null,null,"A.7","GIS Data Layers and Aerial Photography",null,"Combine forecasts from various groups into a base line forecast"]
["","",null,null,null,null,null,null,null,null,null,null,null,null,null,null,null,null,null,null,null,null,null,0,"",null,null,null,null,null,null,null,"","",null,null,null,null,null,null,null,null,null,"A.8","Evaluation of Existing Transportation Facilities",null,"Develop an updated base forecast"]
["","",null,null,null,null,null,null,null,null,null,null,null,null,null,null,null,null,null,null,null,null,null,0,"",null,null,null,null,null,null,null,"","",null,null,null,null,null,null,null,null,null,"A.9","Traffic Forecast Request",null,"Compare with freight forecast in NC State Freight Plan, contrast against existing port rail capacity, identify delta required to accommodate additional traffic"]
["","",null,null,null,null,null,null,null,null,null,null,null,null,null,null,null,null,null,null,null,null,null,0,"",null,null,null,null,null,null,null,"","",null,null,null,null,null,null,null,null,null,"A.10","Project Data Sheet",null,"Add in empty return exports and revise forecast"]
["","",null,null,null,null,null,null,null,null,null,null,null,null,null,null,null,null,null,null,null,null,null,{"$f":"IF(B22=\"\",0,IF(B22=\"FUNCTIONAL TRACK DESIGN\",\"\",IF((SUM(D22:W22)=0),0,SUM(D22:W22))))","v":0},"",null,null,null,null,null,null,null,"","",null,null,null,null,null,2,"FUNCTIONAL TRACK DESIGN",null,null,"A.11","Start of Study Letters",null,"Develop near-term outlook of market demand and system requirements"]
["","",null,null,null,null,null,null,null,null,null,null,null,null,null,null,null,null,null,null,null,null,null,{"$f":"IF(B23=\"\",0,IF((SUM(D23:W23)=0),0,SUM(D23:W23)))","v":0},"",null,null,null,null,null,null,null,"","",null,null,null,null,null,null,null,null,null,"A.12","Kickoff/Scoping Meeting",null,"Review operations and plans for XX, suggest if port rail facilities can accommodate projected growth"]
["","",null,null,null,null,null,null,null,null,null,null,null,null,null,null,null,null,null,null,null,null,null,{"$f":"IF(B24=\"\",0,IF((SUM(D24:W24)=0),0,SUM(D24:W24)))","v":0},"",null,null,null,null,null,null,null,"","",null,null,null,null,null,null,null,null,null,"A.13",null,null,"Identify conceptual rail capacity and prospects for service assuming successful XX service"]
["","",null,null,null,null,null,null,null,null,null,null,null,null,null,null,null,null,null,null,null,null,null,{"$f":"IF(B25=\"\",0,IF((SUM(D25:W25)=0),0,SUM(D25:W25)))","v":0},"",null,null,null,null,null,null,null,"","",null,null,null,null,null,null,null,null,null,"A.14",null,null,"Evaluate rail operations @ port to identify conflicts and opportunities to serve both intermodal and break bulk rail customers"]
["","",null,null,null,null,null,null,null,null,null,null,null,null,null,null,null,null,null,null,null,null,null,{"$f":"IF(B26=\"\",0,IF((SUM(D26:W26)=0),0,SUM(D26:W26)))","v":0},"",null,null,null,null,null,null,null,"","",null,null,null,null,null,null,null,null,null,"A.15",null,null,"Develop near-term outlook of market demand and system requirements"]
["","",null,null,null,null,null,null,null,null,null,null,null,null,null,null,null,null,null,null,null,null,null,{"$f":"IF(B27=\"\",0,IF((SUM(D27:W27)=0),\"\",SUM(D27:W27)))","v":0},"",null,null,null,null,null,null,null,"","",null,null,null,null,null,null,null,null,null,"A.16"]
["","",null,null,null,null,null,null,null,null,null,null,null,null,null,null,null,null,null,null,null,null,null,0,"",null,null,null,null,null,null,null,"","",null,null,null,null,null,null,null,null,null,"A.17"]
["","",null,null,null,null,null,null,null,null,null,null,null,null,null,null,null,null,null,null,null,null,null,{"$f":"IF(B29=\"\",0,IF(B29=\"TRAFFIC CAPACITY ANALYSIS AND ACCIDENT ANALYSIS\",\"\",IF((SUM(D29:W29)=0),0,SUM(D29:W29))))","v":0},"",null,null,null,null,null,null,null,"","",null,null,null,null,null,null,null,null,null,"B","TRAFFIC CAPACITY ANALYSIS AND ACCIDENT ANALYSIS"]
["","",null,null,null,null,null,null,null,null,null,null,null,null,null,null,null,null,null,null,null,null,null,{"$f":"IF(B30=\"\",0,IF((SUM(D30:W30)=0),0,SUM(D30:W30)))","v":0},"",null,null,null,null,null,null,null,"","",null,null,null,null,null,null,null,null,null,"B.1","Coordinate with Stantec & incorporate the analysis"]
["","",null,null,null,null,null,null,null,null,null,null,null,null,null,null,null,null,null,null,null,null,null,{"$f":"IF(B31=\"\",0,IF((SUM(D31:W31)=0),0,SUM(D31:W31)))","v":0},"",null,null,null,null,null,null,null,"","",null,null,null,null,null,null,null,null,null,"B.2"]
["","",null,null,null,null,null,null,null,null,null,null,null,null,null,null,null,null,null,null,null,null,null,{"$f":"IF(B32=\"\",0,IF(B32=\"PORT MASTER PLAN REVIEW\",\"\",IF((SUM(D32:W32)=0),0,SUM(D32:W32))))","v":0},"",null,null,null,null,null,null,null,"","",null,null,null,null,null,null,null,null,null,"B.3",null,2,"PORT MASTER PLAN REVIEW"]
["","",null,null,null,null,null,null,null,null,null,null,null,null,null,null,null,null,null,null,null,null,null,{"$f":"IF(B33=\"\",0,IF(B33=\"PRELIMINARY TRACK DESIGN\",\"\",IF((SUM(D33:W33)=0),0,SUM(D33:W33))))","v":0},"",null,null,null,null,null,null,null,"","",null,null,null,null,null,3,"PRELIMINARY TRACK DESIGN",null,null,"B.4",null,null,"Identify area needed to accommodate each targeted market"]
["","",null,null,null,null,null,null,null,null,null,null,null,null,null,null,null,null,null,null,null,null,null,{"$f":"IF(B34=\"\",0,IF((SUM(D34:W34)=0),0,SUM(D34:W34)))","v":0},"",null,null,null,null,null,null,null,"","",null,null,null,null,null,null,null,null,null,"B.5",null,null,"Assess ability to meet current and projected needs"]
["","",null,null,null,null,null,null,null,null,null,null,null,null,null,null,null,null,null,null,null,null,null,{"$f":"IF(B35=\"\",0,IF((SUM(D35:W35)=0),0,SUM(D35:W35)))","v":0},"",null,null,null,null,null,null,null,"","",null,null,null,null,null,null,null,null,null,"B.6",null,null,"Coordinate with Port regarding future Port plans"]
["","",null,null,null,null,null,null,null,null,null,null,null,null,null,null,null,null,null,null,null,null,null,{"$f":"IF(B36=\"\",0,IF(B36=\"PROJECT PURPOSE AND NEED\",\"\",IF((SUM(D36:W36)=0),0,SUM(D36:W36))))","v":0},"",null,null,null,null,null,null,null,"","",null,null,null,null,null,null,null,null,null,"C","PROJECT PURPOSE AND NEED",null,"Develop recommendations to layout and/or processes to meet anticipated needs while not conflicting or constraining future activities"]
["","",null,null,null,null,null,null,null,null,null,null,null,null,null,null,null,null,null,null,null,null,null,{"$f":"IF(B37=\"\",0,IF((SUM(D37:W37)=0),0,SUM(D37:W37)))","v":0},"",null,null,null,null,null,null,null,"","",null,null,null,null,null,null,null,null,null,"C.1","Preliminary Purpose and Need",null,"Prepare draft port layout"]
["","",null,null,null,null,null,null,null,null,null,null,null,null,null,null,null,null,null,null,null,null,null,0,"",null,null,null,null,null,null,null,"","",null,null,null,null,null,null,null,null,null,"C.2","Final Purpose and Need Memorandum",null,"Revise per NCDOT comments and prepare final port layout"]
["","",null,null,null,null,null,null,null,null,null,null,null,null,null,null,null,null,null,null,null,null,null,0,"",null,null,null,null,null,null,null,"","",null,null,null,null,null,null,null,null,null,"C.3"]
["","",null,null,null,null,null,null,null,null,null,null,null,null,null,null,null,null,null,null,null,null,null,0,"",null,null,null,null,null,null,null,"","",null,null,null,null,null,null,null,null,null,"C.4"]
["","",null,null,null,null,null,null,null,null,null,null,null,null,null,null,null,null,null,null,null,null,null,0,"",null,null,null,null,null,null,null,"","",null,null,null,null,null,null,null,null,null,"C.5"]
["","",null,null,null,null,null,null,null,null,null,null,null,null,null,null,null,null,null,null,null,null,null,0,"",null,null,null,null,null,null,null,"","",null,null,null,null,null,null,null,null,null,"C.6"]
["","",null,null,null,null,null,null,null,null,null,null,null,null,null,null,null,null,null,null,null,null,null,0,"",null,null,null,null,null,null,null,"","",null,null,null,null,null,null,null,null,null,"C.7"]
["","",null,null,null,null,null,null,null,null,null,null,null,null,null,null,null,null,null,null,null,null,null,{"$f":"IF(B44=\"\",0,IF(B44=\"RAIL INVENTORY AND REVIEW OF EXISTING OPERATIONS\",\"\",IF(B44=\"DEVELOPMENT AND EVALUATION OF DESIGN ALTERNATIVES\",\"\",IF(B44=\"FINAL TRACK DESIGN\",\"\",IF((SUM(D44:W44)=0),0,SUM(D44:W44))))))","v":0},"",null,null,null,null,null,null,null,"","",null,null,null,null,null,4,"FINAL TRACK DESIGN",null,null,"D","DEVELOPMENT AND EVALUATION OF DESIGN ALTERNATIVES",3,"RAIL INVENTORY AND REVIEW OF EXISTING OPERATIONS"]
["","",null,null,null,null,null,null,null,null,null,null,null,null,null,null,null,null,null,null,null,null,null,{"$f":"IF(B45=\"\",0,IF((SUM(D45:W45)=0),0,SUM(D45:W45)))","v":0},"",null,null,null,null,null,null,null,"","",null,null,null,null,null,null,null,null,null,"D.1","Collaboration on Development of Design Alternatives",null,"Review Port facilities on the ground, identify acreage which could accommodate additional functions in support of rail operations"]
["","",null,null,null,null,null,null,null,null,null,null,null,null,null,null,null,null,null,null,null,null,null,0,"",null,null,null,null,null,null,null,"","",null,null,null,null,null,null,null,null,null,"D.2","Qualitative Screening of Design Alternatives",null,"Review XX and XX track charts and track maps for Port"]
["","",null,null,null,null,null,null,null,null,null,null,null,null,null,null,null,null,null,null,null,null,null,0,"",null,null,null,null,null,null,null,"","",null,null,null,null,null,null,null,null,null,"D.3",null,null,"Review any related TSS"]
["","",null,null,null,null,null,null,null,null,null,null,null,null,null,null,null,null,null,null,null,null,null,0,"",null,null,null,null,null,null,null,"","",null,null,null,null,null,null,null,null,null,"D.4",null,null,"Conduct a windshield survey of XX line at Port and document observations"]
["","",null,null,null,null,null,null,null,null,null,null,null,null,null,null,null,null,null,null,null,null,null,0,"",null,null,null,null,null,null,null,"","",null,null,null,null,null,null,null,null,null,"D.5",null,null,"Identify opportunities to locate a future passing siding."]
["","",null,null,null,null,null,null,null,null,null,null,null,null,null,null,null,null,null,null,null,null,null,0,"",null,null,null,null,null,null,null,"","",null,null,null,null,null,null,null,null,null,"D.6"]
["","",null,null,null,null,null,null,null,null,null,null,null,null,null,null,null,null,null,null,null,null,null,0,"",null,null,null,null,null,null,null,"","",null,null,null,null,null,null,null,null,null,"D.7"]
["","",null,null,null,null,null,null,null,null,null,null,null,null,null,null,null,null,null,null,null,null,null,{"$f":"IF(B52=\"\",0,IF(B52=\"BIOTIC RESOURCES\",\"\",IF((SUM(D52:W52)=0),0,SUM(D52:W52))))","v":0},"",null,null,null,null,null,null,null,"","",null,null,null,null,null,null,null,null,null,"E.3","BIOTIC RESOURCES"]
["","",null,null,null,null,null,null,null,null,null,null,null,null,null,null,null,null,null,null,null,null,null,{"$f":"IF(B53=\"\",0,IF((SUM(D53:W53)=0),0,SUM(D53:W53)))","v":0},"",null,null,null,null,null,null,null,"","",null,null,null,null,null,null,null,null,null,"E.3.a","Terrestrial Communities"]
["","",null,null,null,null,null,null,null,null,null,null,null,null,null,null,null,null,null,null,null,null,null,{"$f":"IF(B54=\"\",0,IF((SUM(D54:W54)=0),0,SUM(D54:W54)))","v":0},"",null,null,null,null,null,null,null,"","",null,null,null,null,null,null,null,null,null,"E.3.b","Terrestrial Wildlife"]
["","",null,null,null,null,null,null,null,null,null,null,null,null,null,null,null,null,null,null,null,null,null,{"$f":"IF(B55=\"\",0,IF(B55=\"CAPACITY AND VELOCITY\",\"\",IF((SUM(D55:W55)=0),0,SUM(D55:W55))))","v":0},"",null,null,null,null,null,null,null,"","",null,null,null,null,null,null,null,null,null,"E.3.c","Aquatic Communities and Wildlife",4,"CAPACITY AND VELOCITY"]
["","",null,null,null,null,null,null,null,null,null,null,null,null,null,null,null,null,null,null,null,null,null,{"$f":"IF(B56=\"\",0,IF((SUM(D56:W56)=0),0,SUM(D56:W56)))","v":0},"",null,null,null,null,null,null,null,"","",null,null,null,null,null,null,null,null,null,"E.3.d","Invasive Species",null,"Develop a level of service (LOS) classification for XX"]
["","",null,null,null,null,null,null,null,null,null,null,null,null,null,null,null,null,null,null,null,null,null,0,"",null,null,null,null,null,null,null,"","",null,null,null,null,null,null,null,null,null,"E.3.e",null,null,"Identify theoretical capacity XX based upon tonnage (GMT), GMT per train, and number of trains"]
["","",null,null,null,null,null,null,null,null,null,null,null,null,null,null,null,null,null,null,null,null,null,0,"",null,null,null,null,null,null,null,"","",null,null,null,null,null,null,null,null,null,"E.3.f",null,null,"Compare theoretical capacity with forecast train volumes"]
["","",null,null,null,null,null,null,null,null,null,null,null,null,null,null,null,null,null,null,null,null,null,0,"",null,null,null,null,null,null,null,"","",null,null,null,null,null,null,null,null,null,"E.3.g",null,null,"Observe operations to develop an estimate of current velocity (travel time over mileage) to/from XX"]
["","",null,null,null,null,null,null,null,null,null,null,null,null,null,null,null,null,null,null,null,null,null,0,"",null,null,null,null,null,null,null,"","",null,null,null,null,null,null,null,null,null,"E.3.h",null,null,"Review XX track charts and operating rules, assess for potential changes which could more effectively utilize existing capacity"]
["","",null,null,null,null,null,null,null,null,null,null,null,null,null,null,null,null,null,null,null,null,null,0,"",null,null,null,null,null,null,null,"","",null,null,null,null,null,null,null,null,null,"E.3.i",null,null,"Review related TSS to identify projects which could increase operating speeds and improve velocity"]
["","",null,null,null,null,null,null,null,null,null,null,null,null,null,null,null,null,null,null,null,null,null,{"$f":"IF(B62=\"\",0,IF(B62=\"JURISDICTIONAL ISSUES\",\"\",IF((SUM(D62:W62)=0),0,SUM(D62:W62))))","v":0},"",null,null,null,null,null,null,null,"","",null,null,null,null,null,null,null,null,null,"E.4","JURISDICTIONAL ISSUES"]
["","",null,null,null,null,null,null,null,null,null,null,null,null,null,null,null,null,null,null,null,null,null,{"$f":"IF(B63=\"\",0,IF((SUM(D63:W63)=0),0,SUM(D63:W63)))","v":0},"",null,null,null,null,null,null,null,"","",null,null,null,null,null,null,null,null,null,"E.4.a","Clean Water Act (CWA) Waters of the US"]
["","",null,null,null,null,null,null,null,null,null,null,null,null,null,null,null,null,null,null,null,null,null,{"$f":"IF(B64=\"\",0,IF((SUM(D64:W64)=0),0,SUM(D64:W64)))","v":0},"",null,null,null,null,null,null,null,"","",null,null,null,null,null,null,null,null,null,"E.4.b","CWA Permits"]
["","",null,null,null,null,null,null,null,null,null,null,null,null,null,null,null,null,null,null,null,null,null,{"$f":"IF(B65=\"\",0,IF((SUM(D65:W65)=0),0,SUM(D65:W65)))","v":0},"",null,null,null,null,null,null,null,"","",null,null,null,null,null,null,null,null,null,"E.4.c","Construction Moratoria"]
["","",null,null,null,null,null,null,null,null,null,null,null,null,null,null,null,null,null,null,null,null,null,{"$f":"IF(B66=\"\",0,IF((SUM(D66:W66)=0),0,SUM(D66:W66)))","v":0},"",null,null,null,null,null,null,null,"","",null,null,null,null,null,null,null,null,null,"E.4.d","Rivers and Harbors Act Section 10 Navigable Waters"]
["","",null,null,null,null,null,null,null,null,null,null,null,null,null,null,null,null,null,null,null,null,null,{"$f":"IF(B67=\"\",0,IF(B67=\"RAIL INFRASTRUCTURE IMPROVEMENTS\",\"\",IF((SUM(D67:W67)=0),0,SUM(D67:W67))))","v":0},"",null,null,null,null,null,null,null,"","",null,null,null,null,null,null,null,null,null,"E.4.e","Wetland and Stream Mitigation",5,"RAIL INFRASTRUCTURE IMPROVEMENTS"]
["","",null,null,null,null,null,null,null,null,null,null,null,null,null,null,null,null,null,null,null,null,null,{"$f":"IF(B68=\"\",0,IF((SUM(D68:W68)=0),0,SUM(D68:W68)))","v":0},"",null,null,null,null,null,null,null,"","",null,null,null,null,null,null,null,null,null,"E.4.f","Endangered Species Act Protected Species",null,"Review existing infrastructure"]
["","",null,null,null,null,null,null,null,null,null,null,null,null,null,null,null,null,null,null,null,null,null,0,"",null,null,null,null,null,null,null,"","",null,null,null,null,null,null,null,null,null,"E.4.g","Essential Fish Habitat",null,"Determine potential needs based on growth"]
["","",null,null,null,null,null,null,null,null,null,null,null,null,null,null,null,null,null,null,null,null,null,0,"",null,null,null,null,null,null,null,"","",null,null,null,null,null,null,null,null,null,"E.4.h",null,null,"Suggest potential enhancements to address future needs (X scenarios)"]
["","",null,null,null,null,null,null,null,null,null,null,null,null,null,null,null,null,null,null,null,null,null,0,"",null,null,null,null,null,null,null,"","",null,null,null,null,null,null,null,null,null,"E.4.i",null,null,"Coordinate with NCDOT and others to consider the capacity of XX"]
["","",null,null,null,null,null,null,null,null,null,null,null,null,null,null,null,null,null,null,null,null,null,0,"",null,null,null,null,null,null,null,"","",null,null,null,null,null,null,null,null,null,"E.4.j",null,null,"Develop conceptual recommendations to improve efficiency of operations between XX and YY"]
["","",null,null,null,null,null,null,null,null,null,null,null,null,null,null,null,null,null,null,null,null,null,0,"",null,null,null,null,null,null,null,"","",null,null,null,null,null,null,null,null,null,"E.4.k"]
["","",null,null,null,null,null,null,null,null,null,null,null,null,null,null,null,null,null,null,null,null,null,0,"",null,null,null,null,null,null,null,"","",null,null,null,null,null,null,null,null,null,"E.4.l"]
["","",null,null,null,null,null,null,null,null,null,null,null,null,null,null,null,null,null,null,null,null,null,0,"",null,null,null,null,null,null,null,"","",null,null,null,null,null,null,null,null,null,"E.5","NRTR Document"]
[{"$f":"IF(AG76=0,\"\",AG76)","v":""},"",null,null,null,null,null,null,null,null,null,null,null,null,null,null,null,null,null,null,null,null,null,0,"",null,null,null,null,null,null,null,{"$f":"IF($AA$4=\"Select Task Type\",\"\",IF($AA$4=\"Grade Separation\",AJ76,IF($AA$4=\"CEI\",AL76,IF($AA$4=\"Track Design\",AN76,IF($AA$4=\"Signal Design\",AP76,IF($AA$4=\"Environmental\",AR76,IF($AA$4=\"Planning\",AT76,\"\")))))))","v":""},"",null,null,null,null,null,null,null,null,null,"E.5.a"]
["","",null,null,null,null,null,null,null,null,null,null,null,null,null,null,null,null,null,null,null,null,null,0,{"$f":"IF(SUM(D77:W77)=0,\"\",((SUM(D77:W77))/$X$261))","v":""},null,null,null,null,null,null,null,"","",null,null,null,null,null,null,null,null,null,"E.5.b"]
["","",null,null,null,null,null,null,null,null,null,null,null,null,null,null,null,null,null,null,null,null,null,{"$f":"IF(B78=\"\",0,IF(B78=\"DEVELOP SUGGESTIONS FOR OPERATIONAL AND LOGISTICAL ENHANCEMENTS\",\"\",IF((SUM(D78:W78)=0),0,SUM(D78:W78))))","v":0},"",null,null,null,null,null,null,null,"","",null,null,null,null,null,null,null,null,null,"E.5.c",null,6,"DEVELOP SUGGESTIONS FOR OPERATIONAL AND LOGISTICAL ENHANCEMENTS"]
["","",null,null,null,null,null,null,null,null,null,null,null,null,null,null,null,null,null,null,null,null,null,{"$f":"IF(B79=\"\",0,IF((SUM(D79:W79)=0),0,SUM(D79:W79)))","v":0},"",null,null,null,null,null,null,null,"","",null,null,null,null,null,null,null,null,null,"E.5.d",null,null,"Study current operations and suggest changes that might enhance efficiency or reduce costs"]
["","",null,null,null,null,null,null,null,null,null,null,null,null,null,null,null,null,null,null,null,null,null,0,"",null,null,null,null,null,null,null,"","",null,null,null,null,null,null,null,null,null,"E.5.e",null,null,"Coordinate with NCAG to assure changes are allowable"]
["","",null,null,null,null,null,null,null,null,null,null,null,null,null,null,null,null,null,null,null,null,null,0,"",null,null,null,null,null,null,null,"","",null,null,null,null,null,null,null,null,null,"E.6","Jurisdictional Features Verification",null,"Develop option for development of temporary dray Port to XX"]
["","",null,null,null,null,null,null,null,null,null,null,null,null,null,null,null,null,null,null,null,null,null,0,"",null,null,null,null,null,null,null,"","",null,null,null,null,null,null,null,null,null,"E.6.a",null,null,"Summarize potential changes and corresponding actions"]
["","",null,null,null,null,null,null,null,null,null,null,null,null,null,null,null,null,null,null,null,null,null,0,"",null,null,null,null,null,null,null,"","",null,null,null,null,null,null,null,null,null,"E.6.b"]
["","",null,null,null,null,null,null,null,null,null,null,null,null,null,null,null,null,null,null,null,null,null,0,"",null,null,null,null,null,null,null,"","",null,null,null,null,null,null,null,null,null,"E.6.c"]
["","",null,null,null,null,null,null,null,null,null,null,null,null,null,null,null,null,null,null,null,null,null,0,"",null,null,null,null,null,null,null,"","",null,null,null,null,null,null,null,null,null,"E.6.d"]
["","",null,null,null,null,null,null,null,null,null,null,null,null,null,null,null,null,null,null,null,null,null,0,"",null,null,null,null,null,null,null,"","",null,null,null,null,null,null,null,null,null,"E.6.e"]
["","",null,null,null,null,null,null,null,null,null,null,null,null,null,null,null,null,null,null,null,null,null,{"$f":"IF(B87=\"\",0,IF(B87=\"HUMAN ENVIRONMENT FIELD WORK, ANALYSIS, AND DOCUMENTATION\",\"\",IF((SUM(D87:W87)=0),0,SUM(D87:W87))))","v":0},"",null,null,null,null,null,null,null,"","",null,null,null,null,null,null,null,null,null,"F","HUMAN ENVIRONMENT FIELD WORK, ANALYSIS, AND DOCUMENTATION"]
["","",null,null,null,null,null,null,null,null,null,null,null,null,null,null,null,null,null,null,null,null,null,{"$f":"IF(B88=\"\",0,IF(B88=\"ENVIRONMENTAL SCREENING\",\"\",IF((SUM(D88:W88)=0),0,SUM(D88:W88))))","v":0},"",null,null,null,null,null,null,null,"","",null,null,null,null,null,null,null,null,null,"F.1","Community Impact Assessment",7,"ENVIRONMENTAL SCREENING"]
["","",null,null,null,null,null,null,null,null,null,null,null,null,null,null,null,null,null,null,null,null,null,{"$f":"IF(B89=\"\",0,IF((SUM(D89:W89)=0),0,SUM(D89:W89)))","v":0},"",null,null,null,null,null,null,null,"","",null,null,null,null,null,null,null,null,null,"F.1.a","Identify Community Impact Study Area",null,"Develop GIS map of available data"]
["","",null,null,null,null,null,null,null,null,null,null,null,null,null,null,null,null,null,null,null,null,null,0,"",null,null,null,null,null,null,null,"","",null,null,null,null,null,null,null,null,null,"F.1.b","Community Field Review",null,"Develop list of \"red flag\" issues"]
["","",null,null,null,null,null,null,null,null,null,null,null,null,null,null,null,null,null,null,null,null,null,0,"",null,null,null,null,null,null,null,"","",null,null,null,null,null,null,null,null,null,"F.1.c","Socioeconomic Data"]
["","",null,null,null,null,null,null,null,null,null,null,null,null,null,null,null,null,null,null,null,null,null,0,"",null,null,null,null,null,null,null,"","",null,null,null,null,null,null,null,null,null,"F.1.d","Community Facilities and Services"]
["","",null,null,null,null,null,null,null,null,null,null,null,null,null,null,null,null,null,null,null,null,null,0,"",null,null,null,null,null,null,null,"","",null,null,null,null,null,null,null,null,null,"F.1.e","Local/Regional Land Use and Development Plans"]
["","",null,null,null,null,null,null,null,null,null,null,null,null,null,null,null,null,null,null,null,null,null,0,"",null,null,null,null,null,null,null,"","",null,null,null,null,null,null,null,null,null,"F.1.f","Project Impact Assessment"]
["","",null,null,null,null,null,null,null,null,null,null,null,null,null,null,null,null,null,null,null,null,null,0,"",null,null,null,null,null,null,null,"","",null,null,null,null,null,null,null,null,null,"F.1.g","Community Impact Assessment Report"]
["","",null,null,null,null,null,null,null,null,null,null,null,null,null,null,null,null,null,null,null,null,null,{"$f":"IF(B96=\"\",0,IF(B96=\"ESTIMATE PROJECT SCENARIO BENEFITS\",\"\",IF((SUM(D96:W96)=0),0,SUM(D96:W96))))","v":0},"",null,null,null,null,null,null,null,"","",null,null,null,null,null,null,null,null,null,"F.1.h",null,8,"ESTIMATE PROJECT SCENARIO BENEFITS"]
["","",null,null,null,null,null,null,null,null,null,null,null,null,null,null,null,null,null,null,null,null,null,{"$f":"IF(B97=\"\",0,IF((SUM(D97:W97)=0),0,SUM(D97:W97)))","v":0},"",null,null,null,null,null,null,null,"","",null,null,null,null,null,null,null,null,null,"F.1.i",null,null,"Develop near-term project feasibility criteria and apply to the identified program of projects"]
["","",null,null,null,null,null,null,null,null,null,null,null,null,null,null,null,null,null,null,null,null,null,{"$f":"IF(B98=\"\",0,IF((SUM(D98:W98)=0),0,SUM(D98:W98)))","v":0},"",null,null,null,null,null,null,null,"","",null,null,null,null,null,null,null,null,null,"F.1.j",null,null,"Develop ranked list ordered according to project feasibility criteria"]
["","",null,null,null,null,null,null,null,null,null,null,null,null,null,null,null,null,null,null,null,null,null,{"$f":"IF(B99=\"\",0,IF((SUM(D99:W99)=0),0,SUM(D99:W99)))","v":0},"",null,null,null,null,null,null,null,"","",null,null,null,null,null,null,null,null,null,"F.1.k",null,null,"Perform Benefit Cost Analyses (BCA)  for up to five projects using the OMB BCA methodology"]
["","",null,null,null,null,null,null,null,null,null,null,null,null,null,null,null,null,null,null,null,null,null,{"$f":"IF(B100=\"\",0,IF((SUM(D100:W100)=0),0,SUM(D100:W100)))","v":0},"",null,null,null,null,null,null,null,"","",null,null,null,null,null,null,null,null,null,"F.1.l",null,null,"Revise per NCDOT comments"]
["","",null,null,null,null,null,null,null,null,null,null,null,null,null,null,null,null,null,null,null,null,null,{"$f":"IF(B101=\"\",0,IF(B101=\"INDIRECT AND CUMULATIVE EFFECTS SCREENING\",\"\",IF((SUM(D101:W101)=0),0,SUM(D101:W101))))","v":0},"",null,null,null,null,null,null,null,"","",null,null,null,null,null,null,null,null,null,"F.2","INDIRECT AND CUMULATIVE EFFECTS SCREENING"]
["","",null,null,null,null,null,null,null,null,null,null,null,null,null,null,null,null,null,null,null,null,null,{"$f":"IF(B102=\"\",0,IF((SUM(D102:W102)=0),0,SUM(D102:W102)))","v":0},"",null,null,null,null,null,null,null,"","",null,null,null,null,null,null,null,null,null,"F.2.a","Determine Future Land Use Study Area"]
["","",null,null,null,null,null,null,null,null,null,null,null,null,null,null,null,null,null,null,null,null,null,{"$f":"IF(B103=\"\",0,IF((SUM(D103:W103)=0),0,SUM(D103:W103)))","v":0},"",null,null,null,null,null,null,null,"","",null,null,null,null,null,null,null,null,null,"F.2.b","Determine ICE Study Time Horizon"]
["","",null,null,null,null,null,null,null,null,null,null,null,null,null,null,null,null,null,null,null,null,null,{"$f":"IF(B104=\"\",0,IF((SUM(D104:W104)=0),0,SUM(D104:W104)))","v":0},"",null,null,null,null,null,null,null,"","",null,null,null,null,null,null,null,null,null,"F.2.c","Identify Study Area Conditions and Trends"]
["","",null,null,null,null,null,null,null,null,null,null,null,null,null,null,null,null,null,null,null,null,null,{"$f":"IF(B105=\"\",0,IF((SUM(D105:W105)=0),0,SUM(D105:W105)))","v":0},"",null,null,null,null,null,null,null,"","",null,null,null,null,null,null,null,null,null,"F.2.d","Inventory of Notable Features"]
["","",null,null,null,null,null,null,null,null,null,null,null,null,null,null,null,null,null,null,null,null,null,{"$f":"IF(B106=\"\",0,IF(B106=\"GENERATE DATA NEEDED FOR SCORING IN STI\",\"\",IF((SUM(D106:W106)=0),0,SUM(D106:W106))))","v":0},"",null,null,null,null,null,null,null,"","",null,null,null,null,null,null,null,null,null,"F.2.e","Identify Impact-Causing Activities",9,"GENERATE DATA NEEDED FOR SCORING IN STI"]
["","",null,null,null,null,null,null,null,null,null,null,null,null,null,null,null,null,null,null,null,null,null,{"$f":"IF(B107=\"\",0,IF((SUM(D107:W107)=0),0,SUM(D107:W107)))","v":0},"",null,null,null,null,null,null,null,"","",null,null,null,null,null,null,null,null,null,"F.2.f","Analyze and Evaluate ICE Data",null,"Develop list of alternative solutions"]
["","",null,null,null,null,null,null,null,null,null,null,null,null,null,null,null,null,null,null,null,null,null,0,"",null,null,null,null,null,null,null,"","",null,null,null,null,null,null,null,null,null,"F.2.g","Land Use Development Scenarios",null,"Develop ranking procedure and criteria"]
["","",null,null,null,null,null,null,null,null,null,null,null,null,null,null,null,null,null,null,null,null,null,0,"",null,null,null,null,null,null,null,"","",null,null,null,null,null,null,null,null,null,"F.2.h","Indirect and Cumulative Effects Screening",null,"Adjust per NCDOT comments"]
["","",null,null,null,null,null,null,null,null,null,null,null,null,null,null,null,null,null,null,null,null,null,0,"",null,null,null,null,null,null,null,"","",null,null,null,null,null,null,null,null,null,"F.2.i",null,null,"Apply procedure/criteria to project alternatives"]
["","",null,null,null,null,null,null,null,null,null,null,null,null,null,null,null,null,null,null,null,null,null,0,"",null,null,null,null,null,null,null,"","",null,null,null,null,null,null,null,null,null,"F.2.j",null,null,"Review resulting list"]
["","",null,null,null,null,null,null,null,null,null,null,null,null,null,null,null,null,null,null,null,null,null,0,"",null,null,null,null,null,null,null,"","",null,null,null,null,null,null,null,null,null,"F.2.k",null,null,"Suggest revisions to procedure as needed"]
["","",null,null,null,null,null,null,null,null,null,null,null,null,null,null,null,null,null,null,null,null,null,0,"",null,null,null,null,null,null,null,"","",null,null,null,null,null,null,null,null,null,"F.2.l",null,null,"Revise criteria and redevelop list"]
["","",null,null,null,null,null,null,null,null,null,null,null,null,null,null,null,null,null,null,null,null,null,0,"",null,null,null,null,null,null,null,"","",null,null,null,null,null,null,null,null,null,"F.2.m",null,null,"Suggest project timing"]
["","",null,null,null,null,null,null,null,null,null,null,null,null,null,null,null,null,null,null,null,null,null,{"$f":"IF(B115=\"\",0,IF(B115=\"NOISE AND VIBRATION IMPACT ANALYSIS\",\"\",IF((SUM(D115:W115)=0),0,SUM(D115:W115))))","v":0},"",null,null,null,null,null,null,null,"","",null,null,null,null,null,null,null,null,null,"F.3.","NOISE AND VIBRATION IMPACT ANALYSIS",null,"Suggest project funding source(s)"]
["","",null,null,null,null,null,null,null,null,null,null,null,null,null,null,null,null,null,null,null,null,null,{"$f":"IF(B116=\"\",0,IF((SUM(D116:W116)=0),0,SUM(D116:W116)))","v":0},"",null,null,null,null,null,null,null,"","",null,null,null,null,null,null,null,null,null,"F.3.a","Coordination",null,"Develop opinion of cost for highest 5 ranking projects"]
["","",null,null,null,null,null,null,null,null,null,null,null,null,null,null,null,null,null,null,null,null,null,0,"",null,null,null,null,null,null,null,"","",null,null,null,null,null,null,null,null,null,null,"Initial Meeting with Rail Division",null,"Develop estimate of benefits for highest 5 ranking projects"]
["","",null,null,null,null,null,null,null,null,null,null,null,null,null,null,null,null,null,null,null,null,null,0,"",null,null,null,null,null,null,null,"","",null,null,null,null,null,null,null,null,null,"F.3.b","Data Compilation"]
["","",null,null,null,null,null,null,null,null,null,null,null,null,null,null,null,null,null,null,null,null,null,0,"",null,null,null,null,null,null,null,"","",null,null,null,null,null,null,null,null,null,null,"Project Area Reconnaissance, if applicable"]
["","",null,null,null,null,null,null,null,null,null,null,null,null,null,null,null,null,null,null,null,null,null,0,"",null,null,null,null,null,null,null,"","",null,null,null,null,null,null,null,null,null,null,"Identify noise sensitive land uses"]
["","",null,null,null,null,null,null,null,null,null,null,null,null,null,null,null,null,null,null,null,null,null,0,"",null,null,null,null,null,null,null,"","",null,null,null,null,null,null,null,null,null,null,"Prepare Noise Analysis Work Plan"]
["","",null,null,null,null,null,null,null,null,null,null,null,null,null,null,null,null,null,null,null,null,null,0,"",null,null,null,null,null,null,null,"","",null,null,null,null,null,null,null,null,null,"F.3.c","Selection of Analysis Sites"]
["","",null,null,null,null,null,null,null,null,null,null,null,null,null,null,null,null,null,null,null,null,null,{"$f":"IF(B123=\"\",0,IF(B123=\"IDENTIFY POTENTIAL PROJECTS FOR FEDERAL PROGRAMS\",\"\",IF((SUM(D123:W123)=0),0,SUM(D123:W123))))","v":0},"",null,null,null,null,null,null,null,"","",null,null,null,null,null,null,null,null,null,"F.3.d","Noise Analysis",10,"IDENTIFY POTENTIAL PROJECTS FOR FEDERAL PROGRAMS"]
["","",null,null,null,null,null,null,null,null,null,null,null,null,null,null,null,null,null,null,null,null,null,{"$f":"IF(B124=\"\",0,IF((SUM(D124:W124)=0),0,SUM(D124:W124)))","v":0},"",null,null,null,null,null,null,null,"","",null,null,null,null,null,null,null,null,null,null,"Monitoring / Fieldwork / Processing",null,"Research and prepare a technical memoranda identifying existing federal grant and loan programs for ports and rail improvements"]
["","",null,null,null,null,null,null,null,null,null,null,null,null,null,null,null,null,null,null,null,null,null,0,"",null,null,null,null,null,null,null,"","",null,null,null,null,null,null,null,null,null,null,"Traffic noise analysis",null,"Screen the program of projects for federal grant and loan program eligibility "]
["","",null,null,null,null,null,null,null,null,null,null,null,null,null,null,null,null,null,null,null,null,null,0,"",null,null,null,null,null,null,null,"","",null,null,null,null,null,null,null,null,null,null,"Rail noise analysis",null,"Recommend federal funding resources applicable to candidate projects"]
["","",null,null,null,null,null,null,null,null,null,null,null,null,null,null,null,null,null,null,null,null,null,0,"",null,null,null,null,null,null,null,"","",null,null,null,null,null,null,null,null,null,"F.3.e","Determination of Impacts"]
["","",null,null,null,null,null,null,null,null,null,null,null,null,null,null,null,null,null,null,null,null,null,0,"",null,null,null,null,null,null,null,"","",null,null,null,null,null,null,null,null,null,null,"Traffic noise analysis"]
["","",null,null,null,null,null,null,null,null,null,null,null,null,null,null,null,null,null,null,null,null,null,0,"",null,null,null,null,null,null,null,"","",null,null,null,null,null,null,null,null,null,null,"Rail noise analysis"]
["","",null,null,null,null,null,null,null,null,null,null,null,null,null,null,null,null,null,null,null,null,null,0,"",null,null,null,null,null,null,null,"","",null,null,null,null,null,null,null,null,null,null,"Traffic and rail noise impact assessment"]
["","",null,null,null,null,null,null,null,null,null,null,null,null,null,null,null,null,null,null,null,null,null,0,"",null,null,null,null,null,null,null,"","",null,null,null,null,null,null,null,null,null,"F.3.f","Noise Abatement Considerations"]
["","",null,null,null,null,null,null,null,null,null,null,null,null,null,null,null,null,null,null,null,null,null,{"$f":"IF(B132=\"\",0,IF(B132=\"PREPARE PROGRAM OF PROJECTS\",\"\",IF((SUM(D132:W132)=0),0,SUM(D132:W132))))","v":0},"",null,null,null,null,null,null,null,"","",null,null,null,null,null,null,null,null,null,null,"Noise barrier analysis",11,"PREPARE PROGRAM OF PROJECTS"]
["","",null,null,null,null,null,null,null,null,null,null,null,null,null,null,null,null,null,null,null,null,null,{"$f":"IF(B133=\"\",0,IF((SUM(D133:W133)=0),0,SUM(D133:W133)))","v":0},"",null,null,null,null,null,null,null,"","",null,null,null,null,null,null,null,null,null,null,"QA/Review",null,"Develop ranked list of projects based on benefit data"]
["","",null,null,null,null,null,null,null,null,null,null,null,null,null,null,null,null,null,null,null,null,null,0,"",null,null,null,null,null,null,null,"","",null,null,null,null,null,null,null,null,null,"F.3.g","Vibration Analysis",null,"Develop timing plan "]
["","",null,null,null,null,null,null,null,null,null,null,null,null,null,null,null,null,null,null,null,null,null,0,"",null,null,null,null,null,null,null,"","",null,null,null,null,null,null,null,null,null,"F.3.h","Noise and Vibration Technical Report",null,"Develop list of possible funding sources (limited to most likely source)"]
["","",null,null,null,null,null,null,null,null,null,null,null,null,null,null,null,null,null,null,null,null,null,0,"",null,null,null,null,null,null,null,"","",null,null,null,null,null,null,null,null,null,null,"Draft Report - text, tables, figures",null,"Calculate ranking based on criteria and or weighting data provided by NCDOT"]
["","",null,null,null,null,null,null,null,null,null,null,null,null,null,null,null,null,null,null,null,null,null,0,"",null,null,null,null,null,null,null,"","",null,null,null,null,null,null,null,null,null,null,"Draft Report - Appendices",null,"Submit draft list to NCDOT"]
["","",null,null,null,null,null,null,null,null,null,null,null,null,null,null,null,null,null,null,null,null,null,0,"",null,null,null,null,null,null,null,"","",null,null,null,null,null,null,null,null,null,null,"QA/Review",null,"Revise based on NCDOT comments"]
["","",null,null,null,null,null,null,null,null,null,null,null,null,null,null,null,null,null,null,null,null,null,0,"",null,null,null,null,null,null,null,"","",null,null,null,null,null,null,null,null,null,null,"Prepare Comment/Response Matrix"]
[{"$f":"IF(AG140=0,\"\",AG140)","v":""},"",null,null,null,null,null,null,null,null,null,null,null,null,null,null,null,null,null,null,null,null,null,0,"",null,null,null,null,null,null,null,{"$f":"IF($AA$4=\"Select Task Type\",\"\",IF($AA$4=\"Grade Separation\",AJ140,IF($AA$4=\"CEI\",AL140,IF($AA$4=\"Track Design\",AN140,IF($AA$4=\"Signal Design\",AP140,IF($AA$4=\"Environmental\",AR140,IF($AA$4=\"Planning\",AT140,\"\")))))))","v":""},"",null,null,null,null,null,null,null,null,null,null,"Prepare Final Report (includes QA/Review)"]
["","",null,null,null,null,null,null,null,null,null,null,null,null,null,null,null,null,null,null,null,null,null,0,{"$f":"IF(SUM(D141:W141)=0,\"\",((SUM(D141:W141))/$X$261))","v":""},null,null,null,null,null,null,null,"","",null,null,null,null,null,null,null,null,null,"F.3.i"]
["","",null,null,null,null,null,null,null,null,null,null,null,null,null,null,null,null,null,null,null,null,null,0,"",null,null,null,null,null,null,null,"","",null,null,null,null,null,null,null,null,null,"F.3.j"]
["","",null,null,null,null,null,null,null,null,null,null,null,null,null,null,null,null,null,null,null,null,null,0,"",null,null,null,null,null,null,null,"","",null,null,null,null,null,null,null,null,null,"F.3.k"]
["","",null,null,null,null,null,null,null,null,null,null,null,null,null,null,null,null,null,null,null,null,null,{"$f":"IF(B144=\"\",0,IF(B144=\"STAKEHOLDER INVOLVEMENT\",\"\",IF((SUM(D144:W144)=0),0,SUM(D144:W144))))","v":0},"",null,null,null,null,null,null,null,"","",null,null,null,null,null,null,null,null,null,"F.3.l",null,12,"STAKEHOLDER INVOLVEMENT"]
["","",null,null,null,null,null,null,null,null,null,null,null,null,null,null,null,null,null,null,null,null,null,{"$f":"IF(B145=\"\",0,IF((SUM(D145:W145)=0),0,SUM(D145:W145)))","v":0},"",null,null,null,null,null,null,null,"","",null,null,null,null,null,null,null,null,null,"F.3.m",null,null,"Attend 2 meetings (facilitated by others)"]
["","",null,null,null,null,null,null,null,null,null,null,null,null,null,null,null,null,null,null,null,null,null,{"$f":"IF(B146=\"\",0,IF(B146=\"AIR QUALITY ANALYSIS\",\"\",IF((SUM(D146:W146)=0),0,SUM(D146:W146))))","v":0},"",null,null,null,null,null,null,null,"","",null,null,null,null,null,null,null,null,null,"F.4","AIR QUALITY ANALYSIS",null,"Coordinate with NCDOT to discuss results of stakeholder interaction"]
["","",null,null,null,null,null,null,null,null,null,null,null,null,null,null,null,null,null,null,null,null,null,{"$f":"IF(B147=\"\",0,IF((SUM(D147:W147)=0),0,SUM(D147:W147)))","v":0},"",null,null,null,null,null,null,null,"","",null,null,null,null,null,null,null,null,null,"F.4.a","Data Compilation"]
["","",null,null,null,null,null,null,null,null,null,null,null,null,null,null,null,null,null,null,null,null,null,{"$f":"IF(B148=\"\",0,IF((SUM(D148:W148)=0),0,SUM(D148:W148)))","v":0},"",null,null,null,null,null,null,null,"","",null,null,null,null,null,null,null,null,null,"F.4.b","Attainment Status and Conformity"]
["","",null,null,null,null,null,null,null,null,null,null,null,null,null,null,null,null,null,null,null,null,null,{"$f":"IF(B149=\"\",0,IF((SUM(D149:W149)=0),0,SUM(D149:W149)))","v":0},"",null,null,null,null,null,null,null,"","",null,null,null,null,null,null,null,null,null,"F.4.c","Carbon Monoxide Air Quality Analysis"]
["","",null,null,null,null,null,null,null,null,null,null,null,null,null,null,null,null,null,null,null,null,null,{"$f":"IF(B150=\"\",0,IF((SUM(D150:W150)=0),0,SUM(D150:W150)))","v":0},"",null,null,null,null,null,null,null,"","",null,null,null,null,null,null,null,null,null,"F.4.d","Particulate Matter"]
["","",null,null,null,null,null,null,null,null,null,null,null,null,null,null,null,null,null,null,null,null,null,{"$f":"IF(B151=\"\",0,IF((SUM(D151:W151)=0),0,SUM(D151:W151)))","v":0},"",null,null,null,null,null,null,null,"","",null,null,null,null,null,null,null,null,null,"F.4.e","Mobile Source Air Toxics (MSATs)"]
["","",null,null,null,null,null,null,null,null,null,null,null,null,null,null,null,null,null,null,null,null,null,{"$f":"IF(B152=\"\",0,IF(B152=\"SCHEDULE\",\"\",IF((SUM(D152:W152)=0),0,SUM(D152:W152))))","v":0},"",null,null,null,null,null,null,null,"","",null,null,null,null,null,null,null,null,null,"F.4.f","Greenhouse Gas Emissions (GHGs)",13,"SCHEDULE"]
["","",null,null,null,null,null,null,null,null,null,null,null,null,null,null,null,null,null,null,null,null,null,{"$f":"IF(B153=\"\",0,IF((SUM(D153:W153)=0),0,SUM(D153:W153)))","v":0},"",null,null,null,null,null,null,null,"","",null,null,null,null,null,null,null,null,null,"F.4.g","Air Quality Technical Report",null,"Develop schedule of deliverable and review tasks"]
["","",null,null,null,null,null,null,null,null,null,null,null,null,null,null,null,null,null,null,null,null,null,0,"",null,null,null,null,null,null,null,"","",null,null,null,null,null,null,null,null,null,"F.4.h",null,null,"Update schedule as needed"]
["","",null,null,null,null,null,null,null,null,null,null,null,null,null,null,null,null,null,null,null,null,null,0,"",null,null,null,null,null,null,null,"","",null,null,null,null,null,null,null,null,null,"F.4.i"]
["","",null,null,null,null,null,null,null,null,null,null,null,null,null,null,null,null,null,null,null,null,null,0,"",null,null,null,null,null,null,null,"","",null,null,null,null,null,null,null,null,null,"F.4.j"]
["","",null,null,null,null,null,null,null,null,null,null,null,null,null,null,null,null,null,null,null,null,null,0,"",null,null,null,null,null,null,null,"","",null,null,null,null,null,null,null,null,null,"F.4.k"]
["","",null,null,null,null,null,null,null,null,null,null,null,null,null,null,null,null,null,null,null,null,null,0,"",null,null,null,null,null,null,null,"","",null,null,null,null,null,null,null,null,null,"F.4.l"]
["","",null,null,null,null,null,null,null,null,null,null,null,null,null,null,null,null,null,null,null,null,null,{"$f":"IF(B159=\"\",0,IF(B159=\"CULTURAL RESOURCES ANALYSIS\",\"\",IF((SUM(D159:W159)=0),0,SUM(D159:W159))))","v":0},"",null,null,null,null,null,null,null,"","",null,null,null,null,null,null,null,null,null,"F.5","CULTURAL RESOURCES ANALYSIS"]
["","",null,null,null,null,null,null,null,null,null,null,null,null,null,null,null,null,null,null,null,null,null,{"$f":"IF(B160=\"\",0,IF(B160=\"REPORT\",\"\",IF((SUM(D160:W160)=0),0,SUM(D160:W160))))","v":0},"",null,null,null,null,null,null,null,"","",null,null,null,null,null,null,null,null,null,"F.5.a","Phase 1 Historic Architectural Analysis",14,"REPORT"]
["","",null,null,null,null,null,null,null,null,null,null,null,null,null,null,null,null,null,null,null,null,null,{"$f":"IF(B161=\"\",0,IF(B161=\"ARCHAEOLOGICAL ANALYSIS\",\"\",IF((SUM(D161:W161)=0),0,SUM(D161:W161))))","v":0},"",null,null,null,null,null,null,null,"","",null,null,null,null,null,null,null,null,null,"F.5.b","ARCHAEOLOGICAL ANALYSIS",null,"Prepare draft report (electronic version only) for NCDOT review"]
["","",null,null,null,null,null,null,null,null,null,null,null,null,null,null,null,null,null,null,null,null,null,{"$f":"IF(B162=\"\",0,IF((SUM(D162:W162)=0),0,SUM(D162:W162)))","v":0},"",null,null,null,null,null,null,null,"","",null,null,null,null,null,null,null,null,null,null,"Conduct Background Research of information from NC OSA/ SHPO",null,"Revise per NCDOT comments"]
["","",null,null,null,null,null,null,null,null,null,null,null,null,null,null,null,null,null,null,null,null,null,0,"",null,null,null,null,null,null,null,"","",null,null,null,null,null,null,null,null,null,null,"Collect previously recorded sites and surveys in study area",null,"Prepare final report"]
["","",null,null,null,null,null,null,null,null,null,null,null,null,null,null,null,null,null,null,null,null,null,0,"",null,null,null,null,null,null,null,"","",null,null,null,null,null,null,null,null,null,null,"Prepare Archaeological Overview Report"]
["","",null,null,null,null,null,null,null,null,null,null,null,null,null,null,null,null,null,null,null,null,null,0,"",null,null,null,null,null,null,null,"","",null,null,null,null,null,null,null,null,null,null," known archaeological resources in alternatives or study area"]
["","",null,null,null,null,null,null,null,null,null,null,null,null,null,null,null,null,null,null,null,null,null,0,"",null,null,null,null,null,null,null,"","",null,null,null,null,null,null,null,null,null,null," sites of value for reasons other than recoverable information"]
["","",null,null,null,null,null,null,null,null,null,null,null,null,null,null,null,null,null,null,null,null,null,0,"",null,null,null,null,null,null,null,"","",null,null,null,null,null,null,null,null,null,null," assessment of potential for archaeological sites in areas not previously surveyed"]
["","",null,null,null,null,null,null,null,null,null,null,null,null,null,null,null,null,null,null,null,null,null,0,"",null,null,null,null,null,null,null,"","",null,null,null,null,null,null,null,null,null,null," recommendations regarding need for archaeological survey"]
["","",null,null,null,null,null,null,null,null,null,null,null,null,null,null,null,null,null,null,null,null,null,{"$f":"IF(B169=\"\",0,IF(B169=\"PROJECT COORDINATION\",\"\",IF((SUM(D169:W169)=0),0,SUM(D169:W169))))","v":0},"",null,null,null,null,null,null,null,"","",null,null,null,null,null,null,null,null,null,null,"Graphics showing alternatives, previously studied areas, and known sites",15,"PROJECT COORDINATION"]
["","",null,null,null,null,null,null,null,null,null,null,null,null,null,null,null,null,null,null,null,null,null,{"$f":"IF(B170=\"\",0,IF((SUM(D170:W170)=0),0,SUM(D170:W170)))","v":0},"",null,null,null,null,null,null,null,"","",null,null,null,null,null,null,null,null,null,null,"Submit Draft Archaeological Overview Report",null,"Coordinate internally with staff and subconsultants"]
["","",null,null,null,null,null,null,null,null,null,null,null,null,null,null,null,null,null,null,null,null,null,0,"",null,null,null,null,null,null,null,"","",null,null,null,null,null,null,null,null,null,null,"Address NCDOT comments on Draft Archaeological Overview Report"]
["","",null,null,null,null,null,null,null,null,null,null,null,null,null,null,null,null,null,null,null,null,null,0,"",null,null,null,null,null,null,null,"","",null,null,null,null,null,null,null,null,null,null,"Submit Final Archaeological Overview Report"]
["","",null,null,null,null,null,null,null,null,null,null,null,null,null,null,null,null,null,null,null,null,null,0,"",null,null,null,null,null,null,null,"","",null,null,null,null,null,null,null,null,null,null,"Meeting attendance and coordination"]
["","",null,null,null,null,null,null,null,null,null,null,null,null,null,null,null,null,null,null,null,null,null,0,"",null,null,null,null,null,null,null,"","",null,null,null,null,null,null,null,null,null,"F.5.c"]
["","",null,null,null,null,null,null,null,null,null,null,null,null,null,null,null,null,null,null,null,null,null,0,"",null,null,null,null,null,null,null,"","",null,null,null,null,null,null,null,null,null,"F.5.d"]
["","",null,null,null,null,null,null,null,null,null,null,null,null,null,null,null,null,null,null,null,null,null,{"$f":"IF(B176=\"\",0,IF(B176=\"TRUCK ALTERNATIVE ROUTE ANALYSIS\",\"\",IF((SUM(D176:W176)=0),0,SUM(D176:W176))))","v":0},"",null,null,null,null,null,null,null,"","",null,null,null,null,null,null,null,null,null,"F.5.e",null,16,"TRUCK ALTERNATIVE ROUTE ANALYSIS"]
["","",null,null,null,null,null,null,null,null,null,null,null,null,null,null,null,null,null,null,null,null,null,{"$f":"IF(B177=\"\",0,IF((SUM(D177:W177)=0),0,SUM(D177:W177)))","v":0},"",null,null,null,null,null,null,null,"","",null,null,null,null,null,null,null,null,null,"F.5.f",null,null,"Truck Alternative Route Analysis (XX to the Port)"]
["","",null,null,null,null,null,null,null,null,null,null,null,null,null,null,null,null,null,null,null,null,null,{"$f":"IF(B178=\"\",0,IF((SUM(D178:W178)=0),0,SUM(D178:W178)))","v":0},"",null,null,null,null,null,null,null,"","",null,null,null,null,null,null,null,null,null,"F.5.g"]
["","",null,null,null,null,null,null,null,null,null,null,null,null,null,null,null,null,null,null,null,null,null,{"$f":"IF(B179=\"\",0,IF(B179=\"OTHER PHYSICAL FEATURES ANALYSIS\",\"\",IF((SUM(D179:W179)=0),0,SUM(D179:W179))))","v":0},"",null,null,null,null,null,null,null,"","",null,null,null,null,null,null,null,null,null,"G","OTHER PHYSICAL FEATURES ANALYSIS"]
["","",null,null,null,null,null,null,null,null,null,null,null,null,null,null,null,null,null,null,null,null,null,{"$f":"IF(B180=\"\",0,IF((SUM(D180:W180)=0),0,SUM(D180:W180)))","v":0},"",null,null,null,null,null,null,null,"","",null,null,null,null,null,null,null,null,null,"G.1","Identify Potential Floodplain and Floodway Impacts"]
["","",null,null,null,null,null,null,null,null,null,null,null,null,null,null,null,null,null,null,null,null,null,{"$f":"IF(B181=\"\",0,IF((SUM(D181:W181)=0),0,SUM(D181:W181)))","v":0},"",null,null,null,null,null,null,null,"","",null,null,null,null,null,null,null,null,null,"G.2","Farmland Assessment"]
["","",null,null,null,null,null,null,null,null,null,null,null,null,null,null,null,null,null,null,null,null,null,{"$f":"IF(B182=\"\",0,IF(B182=\"FEASIBILITY STUDY\",\"\",IF((SUM(D182:W182)=0),0,SUM(D182:W182))))","v":0},"",null,null,null,null,null,null,null,"","",null,null,null,null,null,null,null,null,null,"G.3","Hazardous Materials Assessment",17,"FEASIBILITY STUDY"]
["","",null,null,null,null,null,null,null,null,null,null,null,null,null,null,null,null,null,null,null,null,null,{"$f":"IF(B183=\"\",0,IF((SUM(D183:W183)=0),0,SUM(D183:W183)))","v":0},"",null,null,null,null,null,null,null,"","",null,null,null,null,null,null,null,null,null,"G.4","Visual Impact Analysis"]
["","",null,null,null,null,null,null,null,null,null,null,null,null,null,null,null,null,null,null,null,null,null,0,"",null,null,null,null,null,null,null,"","",null,null,null,null,null,null,null,null,null,"G.5","Identify Potential Public Utility Impacts"]
["","",null,null,null,null,null,null,null,null,null,null,null,null,null,null,null,null,null,null,null,null,null,0,"",null,null,null,null,null,null,null,"","",null,null,null,null,null,null,null,null,null,"G.6"]
["","",null,null,null,null,null,null,null,null,null,null,null,null,null,null,null,null,null,null,null,null,null,0,"",null,null,null,null,null,null,null,"","",null,null,null,null,null,null,null,null,null,"G.7"]
["","",null,null,null,null,null,null,null,null,null,null,null,null,null,null,null,null,null,null,null,null,null,0,"",null,null,null,null,null,null,null,"","",null,null,null,null,null,null,null,null,null,"G.8"]
["","",null,null,null,null,null,null,null,null,null,null,null,null,null,null,null,null,null,null,null,null,null,0,"",null,null,null,null,null,null,null,"","",null,null,null,null,null,null,null,null,null,"G.9"]
["","",null,null,null,null,null,null,null,null,null,null,null,null,null,null,null,null,null,null,null,null,null,0,"",null,null,null,null,null,null,null,"","",null,null,null,null,null,null,null,null,null,"G.10"]
["","",null,null,null,null,null,null,null,null,null,null,null,null,null,null,null,null,null,null,null,null,null,{"$f":"IF(B190=\"\",0,IF(B190=\"SECTION 4(F) AND SECTION 6(F)\",\"\",IF((SUM(D190:W190)=0),0,SUM(D190:W190))))","v":0},"",null,null,null,null,null,null,null,"","",null,null,null,null,null,null,null,null,null,"H","SECTION 4(F) AND SECTION 6(F)"]
["","",null,null,null,null,null,null,null,null,null,null,null,null,null,null,null,null,null,null,null,null,null,{"$f":"IF(B191=\"\",0,IF((SUM(D191:W191)=0),0,SUM(D191:W191)))","v":0},"",null,null,null,null,null,null,null,"","",null,null,null,null,null,null,null,null,null,"H.1"]
["","",null,null,null,null,null,null,null,null,null,null,null,null,null,null,null,null,null,null,null,null,null,{"$f":"IF(B192=\"\",0,IF((SUM(D192:W192)=0),0,SUM(D192:W192)))","v":0},"",null,null,null,null,null,null,null,"","",null,null,null,null,null,null,null,null,null,"H.2"]
["","",null,null,null,null,null,null,null,null,null,null,null,null,null,null,null,null,null,null,null,null,null,{"$f":"IF(B193=\"\",0,IF((SUM(D193:W193)=0),0,SUM(D193:W193)))","v":0},"",null,null,null,null,null,null,null,"","",null,null,null,null,null,null,null,null,null,"H.3"]
["","",null,null,null,null,null,null,null,null,null,null,null,null,null,null,null,null,null,null,null,null,null,{"$f":"IF(B194=\"\",0,IF((SUM(D194:W194)=0),0,SUM(D194:W194)))","v":0},"",null,null,null,null,null,null,null,"","",null,null,null,null,null,null,null,null,null,"H.4"]
["","",null,null,null,null,null,null,null,null,null,null,null,null,null,null,null,null,null,null,null,null,null,{"$f":"IF(B195=\"\",0,IF((SUM(D195:W195)=0),0,SUM(D195:W195)))","v":0},"",null,null,null,null,null,null,null,"","",null,null,null,null,null,null,null,null,null,"H.5"]
["","",null,null,null,null,null,null,null,null,null,null,null,null,null,null,null,null,null,null,null,null,null,{"$f":"IF(B196=\"\",0,IF(B196=\"DRAFT ENVIRONMENTAL DOCUMENT\",\"\",IF((SUM(D196:W196)=0),0,SUM(D196:W196))))","v":0},"",null,null,null,null,null,null,null,"","",null,null,null,null,null,null,null,null,null,"I","DRAFT ENVIRONMENTAL DOCUMENT"]
["","",null,null,null,null,null,null,null,null,null,null,null,null,null,null,null,null,null,null,null,null,null,{"$f":"IF(B197=\"\",0,IF((SUM(D197:W197)=0),0,SUM(D197:W197)))","v":0},"",null,null,null,null,null,null,null,"","",null,null,null,null,null,null,null,null,null,"I.1","Purpose and Need"]
["","",null,null,null,null,null,null,null,null,null,null,null,null,null,null,null,null,null,null,null,null,null,0,"",null,null,null,null,null,null,null,"","",null,null,null,null,null,null,null,null,null,"I.2","Alternatives Considered"]
["","",null,null,null,null,null,null,null,null,null,null,null,null,null,null,null,null,null,null,null,null,null,0,"",null,null,null,null,null,null,null,"","",null,null,null,null,null,null,null,null,null,"I.3","Human Environment"]
["","",null,null,null,null,null,null,null,null,null,null,null,null,null,null,null,null,null,null,null,null,null,0,"",null,null,null,null,null,null,null,"","",null,null,null,null,null,null,null,null,null,"I.4","Physical Environment"]
["","",null,null,null,null,null,null,null,null,null,null,null,null,null,null,null,null,null,null,null,null,null,0,"",null,null,null,null,null,null,null,"","",null,null,null,null,null,null,null,null,null,"I.5","Cultural Resources"]
["","",null,null,null,null,null,null,null,null,null,null,null,null,null,null,null,null,null,null,null,null,null,0,"",null,null,null,null,null,null,null,"","",null,null,null,null,null,null,null,null,null,"I.6","Natural Resources"]
["","",null,null,null,null,null,null,null,null,null,null,null,null,null,null,null,null,null,null,null,null,null,0,"",null,null,null,null,null,null,null,"","",null,null,null,null,null,null,null,null,null,"I.7","Environmental Impacts"]
[{"$f":"IF(AG204=0,\"\",AG204)","v":""},"",null,null,null,null,null,null,null,null,null,null,null,null,null,null,null,null,null,null,null,null,null,0,"",null,null,null,null,null,null,null,{"$f":"IF($AA$4=\"Select Task Type\",\"\",IF($AA$4=\"Grade Separation\",AJ204,IF($AA$4=\"CEI\",AL204,IF($AA$4=\"Track Design\",AN204,IF($AA$4=\"Signal Design\",AP204,IF($AA$4=\"Environmental\",AR204,IF($AA$4=\"Planning\",AT204,\"\")))))))","v":""},"",null,null,null,null,null,null,null,null,null,"I.8","Indirect and Cumulative Effects"]
["","",null,null,null,null,null,null,null,null,null,null,null,null,null,null,null,null,null,null,null,null,null,0,{"$f":"IF(SUM(D205:W205)=0,\"\",((SUM(D205:W205))/$X$261))","v":""},null,null,null,null,null,null,null,"","",null,null,null,null,null,null,null,null,null,"I.9","Other Impact Considerations"]
["","",null,null,null,null,null,null,null,null,null,null,null,null,null,null,null,null,null,null,null,null,null,0,"",null,null,null,null,null,null,null,"","",null,null,null,null,null,null,null,null,null,"I.10","Public Involvement ad Agency Coordination"]
["","",null,null,null,null,null,null,null,null,null,null,null,null,null,null,null,null,null,null,null,null,null,0,"",null,null,null,null,null,null,null,"","",null,null,null,null,null,null,null,null,null,"I.11","Compile Draft EA & Final EA"]
["","",null,null,null,null,null,null,null,null,null,null,null,null,null,null,null,null,null,null,null,null,null,0,"",null,null,null,null,null,null,null,"","",null,null,null,null,null,null,null,null,null,"I.12","Review and Distribution of EA"]
["","",null,null,null,null,null,null,null,null,null,null,null,null,null,null,null,null,null,null,null,null,null,0,"",null,null,null,null,null,null,null,"","",null,null,null,null,null,null,null,null,null,"I.13"]
["","",null,null,null,null,null,null,null,null,null,null,null,null,null,null,null,null,null,null,null,null,null,0,"",null,null,null,null,null,null,null,"","",null,null,null,null,null,null,null,null,null,"I.14"]
["","",null,null,null,null,null,null,null,null,null,null,null,null,null,null,null,null,null,null,null,null,null,0,"",null,null,null,null,null,null,null,"","",null,null,null,null,null,null,null,null,null,"I.15"]
["","",null,null,null,null,null,null,null,null,null,null,null,null,null,null,null,null,null,null,null,null,null,0,"",null,null,null,null,null,null,null,"","",null,null,null,null,null,null,null,null,null,"I.16"]
["","",null,null,null,null,null,null,null,null,null,null,null,null,null,null,null,null,null,null,null,null,null,0,"",null,null,null,null,null,null,null,"","",null,null,null,null,null,null,null,null,null,"I.17"]
["","",null,null,null,null,null,null,null,null,null,null,null,null,null,null,null,null,null,null,null,null,null,{"$f":"IF(B214=\"\",0,IF(B214=\"FINAL ENVIRONMENTAL DOCUMENT\",\"\",IF((SUM(D214:W214)=0),0,SUM(D214:W214))))","v":0},"",null,null,null,null,null,null,null,"","",null,null,null,null,null,null,null,null,null,"J","FINAL ENVIRONMENTAL DOCUMENT"]
["","",null,null,null,null,null,null,null,null,null,null,null,null,null,null,null,null,null,null,null,null,null,{"$f":"IF(B215=\"\",0,IF((SUM(D215:W215)=0),0,SUM(D215:W215)))","v":0},"",null,null,null,null,null,null,null,"","",null,null,null,null,null,null,null,null,null,"J.1","Compile FONSI"]
["","",null,null,null,null,null,null,null,null,null,null,null,null,null,null,null,null,null,null,null,null,null,0,"",null,null,null,null,null,null,null,"","",null,null,null,null,null,null,null,null,null,"J.2","Alternative Selection"]
["","",null,null,null,null,null,null,null,null,null,null,null,null,null,null,null,null,null,null,null,null,null,0,"",null,null,null,null,null,null,null,"","",null,null,null,null,null,null,null,null,null,"J.3","Prepare Draft & Final Finding of No Significant Impact (FONSI)"]
["","",null,null,null,null,null,null,null,null,null,null,null,null,null,null,null,null,null,null,null,null,null,0,"",null,null,null,null,null,null,null,"","",null,null,null,null,null,null,null,null,null,"J.4"]
["","",null,null,null,null,null,null,null,null,null,null,null,null,null,null,null,null,null,null,null,null,null,0,"",null,null,null,null,null,null,null,"","",null,null,null,null,null,null,null,null,null,"J.5"]
["","",null,null,null,null,null,null,null,null,null,null,null,null,null,null,null,null,null,null,null,null,null,0,"",null,null,null,null,null,null,null,"","",null,null,null,null,null,null,null,null,null,"J.6"]
["","",null,null,null,null,null,null,null,null,null,null,null,null,null,null,null,null,null,null,null,null,null,0,"",null,null,null,null,null,null,null,"","",null,null,null,null,null,null,null,null,null,"J.7"]
["","",null,null,null,null,null,null,null,null,null,null,null,null,null,null,null,null,null,null,null,null,null,0,"",null,null,null,null,null,null,null,"","",null,null,null,null,null,null,null,null,null,"J.8"]
["","",null,null,null,null,null,null,null,null,null,null,null,null,null,null,null,null,null,null,null,null,null,{"$f":"IF(B223=\"\",0,IF(B223=\"PUBLIC INVOLVEMENT\",\"\",IF((SUM(D223:W223)=0),0,SUM(D223:W223))))","v":0},"",null,null,null,null,null,null,null,"","",null,null,null,null,null,null,null,null,null,"K","PUBLIC INVOLVEMENT"]
["","",null,null,null,null,null,null,null,null,null,null,null,null,null,null,null,null,null,null,null,null,null,{"$f":"IF(B224=\"\",0,IF((SUM(D224:W224)=0),0,SUM(D224:W224)))","v":0},"",null,null,null,null,null,null,null,"","",null,null,null,null,null,null,null,null,null,"K.1","Informal Stakeholder Coordination"]
["","",null,null,null,null,null,null,null,null,null,null,null,null,null,null,null,null,null,null,null,null,null,0,"",null,null,null,null,null,null,null,"","",null,null,null,null,null,null,null,null,null,"K.2","Public Information Meeting"]
["","",null,null,null,null,null,null,null,null,null,null,null,null,null,null,null,null,null,null,null,null,null,0,"",null,null,null,null,null,null,null,"","",null,null,null,null,null,null,null,null,null,"K.3","Public Hearing"]
["","",null,null,null,null,null,null,null,null,null,null,null,null,null,null,null,null,null,null,null,null,null,0,"",null,null,null,null,null,null,null,"","",null,null,null,null,null,null,null,null,null,"K.4","Local Offical Information Meeting"]
["","",null,null,null,null,null,null,null,null,null,null,null,null,null,null,null,null,null,null,null,null,null,0,"",null,null,null,null,null,null,null,"","",null,null,null,null,null,null,null,null,null,"K.5","Mailer"]
["","",null,null,null,null,null,null,null,null,null,null,null,null,null,null,null,null,null,null,null,null,null,0,"",null,null,null,null,null,null,null,"","",null,null,null,null,null,null,null,null,null,"K.6","Meeting Maps"]
["","",null,null,null,null,null,null,null,null,null,null,null,null,null,null,null,null,null,null,null,null,null,0,"",null,null,null,null,null,null,null,"","",null,null,null,null,null,null,null,null,null,"K.7","Meeting Displays"]
["","",null,null,null,null,null,null,null,null,null,null,null,null,null,null,null,null,null,null,null,null,null,0,"",null,null,null,null,null,null,null,"","",null,null,null,null,null,null,null,null,null,"K.8"]
["","",null,null,null,null,null,null,null,null,null,null,null,null,null,null,null,null,null,null,null,null,null,0,"",null,null,null,null,null,null,null,"","",null,null,null,null,null,null,null,null,null,"K.9"]
["","",null,null,null,null,null,null,null,null,null,null,null,null,null,null,null,null,null,null,null,null,null,0,"",null,null,null,null,null,null,null,"","",null,null,null,null,null,null,null,null,null,"K.10"]
["","",null,null,null,null,null,null,null,null,null,null,null,null,null,null,null,null,null,null,null,null,null,0,"",null,null,null,null,null,null,null,"","",null,null,null,null,null,null,null,null,null,"K.11"]
["","",null,null,null,null,null,null,null,null,null,null,null,null,null,null,null,null,null,null,null,null,null,0,"",null,null,null,null,null,null,null,"","",null,null,null,null,null,null,null,null,null,"K.12"]
["","",null,null,null,null,null,null,null,null,null,null,null,null,null,null,null,null,null,null,null,null,null,{"$f":"IF(B236=\"\",0,IF(B236=\"PROJECT COORDINATION AND MANAGEMENT\",\"\",IF((SUM(D236:W236)=0),0,SUM(D236:W236))))","v":0},"",null,null,null,null,null,null,null,"","",null,null,null,null,null,null,null,null,null,"L","PROJECT COORDINATION AND MANAGEMENT"]
["","",null,null,null,null,null,null,null,null,null,null,null,null,null,null,null,null,null,null,null,null,null,{"$f":"IF(B237=\"\",0,IF((SUM(D237:W237)=0),0,SUM(D237:W237)))","v":0},"",null,null,null,null,null,null,null,"","",null,null,null,null,null,null,null,null,null,"L.1","Project Schedule"]
["","",null,null,null,null,null,null,null,null,null,null,null,null,null,null,null,null,null,null,null,null,null,0,"",null,null,null,null,null,null,null,"","",null,null,null,null,null,null,null,null,null,"L.2","Coordination with NCDOT"]
["","",null,null,null,null,null,null,null,null,null,null,null,null,null,null,null,null,null,null,null,null,null,0,"",null,null,null,null,null,null,null,"","",null,null,null,null,null,null,null,null,null,"L.3","General Coordination"]
["","",null,null,null,null,null,null,null,null,null,null,null,null,null,null,null,null,null,null,null,null,null,0,"",null,null,null,null,null,null,null,"","",null,null,null,null,null,null,null,null,null,"L.4"]
["","",null,null,null,null,null,null,null,null,null,null,null,null,null,null,null,null,null,null,null,null,null,0,"",null,null,null,null,null,null,null,"","",null,null,null,null,null,null,null,null,null,"L.5"]
["","",null,null,null,null,null,null,null,null,null,null,null,null,null,null,null,null,null,null,null,null,null,0,"",null,null,null,null,null,null,null,"","",null,null,null,null,null,null,null,null,null,"L.6"]
["","",null,null,null,null,null,null,null,null,null,null,null,null,null,null,null,null,null,null,null,null,null,0,"",null,null,null,null,null,null,null,"","",null,null,null,null,null,null,null,null,null,"L.7"]
["","",null,null,null,null,null,null,null,null,null,null,null,null,null,null,null,null,null,null,null,null,null,0,"",null,null,null,null,null,null,null,"","",null,null,null,null,null,null,null,null,null,"L.8"]
["","",null,null,null,null,null,null,null,null,null,null,null,null,null,null,null,null,null,null,null,null,null,0,"",null,null,null,null,null,null,null,"",""]
["","",null,null,null,null,null,null,null,null,null,null,null,null,null,null,null,null,null,null,null,null,null,0,"",null,null,null,null,null,null,null,"",""]
["","",null,null,null,null,null,null,null,null,null,null,null,null,null,null,null,null,null,null,null,null,null,0,"",null,null,null,null,null,null,null,"",""]
["","",null,null,null,null,null,null,null,null,null,null,null,null,null,null,null,null,null,null,null,null,null,0,"",null,null,null,null,null,null,null,"",""]
["","",null,null,null,null,null,null,null,null,null,null,null,null,null,null,null,null,null,null,null,null,null,0,"",null,null,null,null,null,null,null,"",""]
["","",null,null,null,null,null,null,null,null,null,null,null,null,null,null,null,null,null,null,null,null,null,0,"",null,null,null,null,null,null,null,"",""]
["","",null,null,null,null,null,null,null,null,null,null,null,null,null,null,null,null,null,null,null,null,null,0,"",null,null,null,null,null,null,null,"",""]
["","",null,null,null,null,null,null,null,null,null,null,null,null,null,null,null,null,null,null,null,null,null,0,"",null,null,null,null,null,null,null,"",""]
["","",null,null,null,null,null,null,null,null,null,null,null,null,null,null,null,null,null,null,null,null,null,0,"",null,null,null,null,null,null,null,"",""]
["","",null,null,null,null,null,null,null,null,null,null,null,null,null,null,null,null,null,null,null,null,null,0,"",null,null,null,null,null,null,null,"",""]
["","",null,null,null,null,null,null,null,null,null,null,null,null,null,null,null,null,null,null,null,null,null,0,"",null,null,null,null,null,null,null,"",""]
["","",null,null,null,null,null,null,null,null,null,null,null,null,null,null,null,null,null,null,null,null,null,0,"",null,null,null,null,null,null,null,"",""]
["","",null,null,null,null,null,null,null,null,null,null,null,null,null,null,null,null,null,null,null,null,null,0,"",null,null,null,null,null,null,null,"",""]
["","",null,null,null,null,null,null,null,null,null,null,null,null,null,null,null,null,null,null,null,null,null,0,"",null,null,null,null,null,null,null,"",""]
["","",null,null,null,null,null,null,null,null,null,null,null,null,null,null,null,null,null,null,null,null,null,0,{"$f":"IF(SUM(D259:W259)=0,\"\",((SUM(D259:W259))/$X$261))","v":""},null,null,null,null,null,null,null,"",""]
["","",null,null,null,null,null,null,null,null,null,null,null,null,null,null,null,null,null,null,null,null,null,0,{"$f":"IF(SUM(D260:W260)=0,\"\",((SUM(D260:W260))/$X$261))","v":""},null,null,null,null,null,null,null,"",""]
[null,"TOTAL WORKHOURS/CATEGORY:",null,{"$f":"SUM(D11:D260)","v":0},0,0,0,0,0,0,0,0,0,0,0,0,0,0,0,0,0,0,0,{"$f":"SUM(D261:W261)","v":0},{"$f":"SUM(Y11:Y260)","v":0},{"$f":"SUM(Z11:Z260)","v":0}]
[null,"TOTAL WORKDAYS/CATEGORY:",null,{"$f":"D261/8","v":0},{"$f":"E261/8","v":0},0,0,0,0,0,0,0,0,0,0,0,0,0,0,0,0,0,0]
[null,"HOURLY SALARY RATE:",null,{"$f":"'PEF CLASSIFICATION SHEET'!E1101","v":0},{"$f":"'PEF CLASSIFICATION SHEET'!E1102","v":0},{"$f":"'PEF CLASSIFICATION SHEET'!E1103","v":0},{"$f":"'PEF CLASSIFICATION SHEET'!E1104","v":0},{"$f":"'PEF CLASSIFICATION SHEET'!E1105","v":0},{"$f":"'PEF CLASSIFICATION SHEET'!E1106","v":0},{"$f":"'PEF CLASSIFICATION SHEET'!E1107","v":0},{"$f":"'PEF CLASSIFICATION SHEET'!E1108","v":0},{"$f":"'PEF CLASSIFICATION SHEET'!E1109","v":0},{"$f":"'PEF CLASSIFICATION SHEET'!E1110","v":0},{"$f":"'PEF CLASSIFICATION SHEET'!E1111","v":0},{"$f":"'PEF CLASSIFICATION SHEET'!E1112","v":0},{"$f":"'PEF CLASSIFICATION SHEET'!E1113","v":0},{"$f":"'PEF CLASSIFICATION SHEET'!E1114","v":0},{"$f":"'PEF CLASSIFICATION SHEET'!E1115","v":0},{"$f":"'PEF CLASSIFICATION SHEET'!E1116","v":0},{"$f":"'PEF CLASSIFICATION SHEET'!E1117","v":0},{"$f":"'PEF CLASSIFICATION SHEET'!E1118","v":0},{"$f":"'PEF CLASSIFICATION SHEET'!E1119","v":0},{"$f":"'PEF CLASSIFICATION SHEET'!E1120","v":0}]
[null,"RATES PER DAY:",null,{"$f":"D263*8","v":0},0,0,0,0,0,0,0,0,0,0,0,0,0,0,0,0,0,0,0]
[null,"PAYROLL BURDEN:",null,{"$f":"SUM(D261*D263)","v":0},{"$f":"SUM(E261*E263)","v":0},0,0,0,0,0,0,0,0,0,0,0,0,0,0,0,0,0,0]
[null,"TOTAL WORKDAYS:",null,{"$f":"SUM(D262:W262)","v":0}]
[null,"TOTAL PAYROLL BURDEN:",null,{"$f":"SUM(D265:W265)","v":0}]
[null,"AVERAGE COST PER HOUR:",null,{"$f":"SUM(D267/(D266*8))","v":{"$error":"#DIV/0!"}}]
[null,"GENERAL OVERHEAD:",{"$f":"RAIL.SUB1_CONSULTANT_OVERHEAD","v":0},{"$f":"SUM(D267*C269)","v":0}]
[null,"SUBTOTAL:",null,{"$f":"SUM(D267+D269)","v":0}]
[null,"COMPARATIVE FEE:",{"$f":"RAIL.SUB1_CONSULTANT_FEE","v":0.09},{"$f":"SUM(D270*C271)","v":0}]
[null,"FACILITIES COST OF CAPITAL:",{"$f":"RAIL.SUB1_COSTofCAPITAL","v":0},{"$f":"SUM(D267*C272)","v":0}]
[null,"TOTAL:",null,{"$f":"SUM(D270:D272)","v":0}]
[null,"DIRECT EXPENSES:",null,{"$f":"RAIL.SUB1_DIRECT_NONSALARY_TOTAL","v":0}]
[null,"RAIL GRAND TOTAL:",null,{"$f":"SUM(D273:D274)","v":0}]

{"sheet":"Rail-Exp-Sub1","index":140,"n_rows":46,"n_cols":8,"rows_kept":46,"cut":false,"hidden":true,"merged":[[0,0,0,7],[1,3,1,7]]}
["RAIL--DIRECT EXPENSES - SUBCONSULTANT 1"]
["TIP NUMBER",{"$f":"TIP.NUMBER","v":0},"FIRM:",{"$f":"'Rail-Sub1'!G3","v":"CONSULTANT NAME"}]
[]
["GENERAL PROJECT WORK:","ITEM","QTY","DESCRIPTION",null,null,"UNIT COST "]
[null,"Travel:"]
[null,"Sedan",0,"Trip(s) @",0,"miles @",{"$f":"SEDAN","v":0.7},{"$f":"SUM(C6*E6*G6)","v":0}]
[null,"Carry All",0,"Trip(s) @",0,"miles @",{"$f":"CARRYALL","v":0.72},{"$f":"SUM(C7*E7*G7)","v":0}]
[null,"Car Rental",null,null,0,"days @ ",{"$f":"CARRENTAL","v":50},{"$f":"SUM(E8*G8)","v":0}]
[null,"Gas for Rental",null,null,0,"miles @",{"$f":"GASforRENTAL","v":0.2},{"$f":"SUM(E9*G9)","v":0}]
[null,"Parking:",0,"Trip(s) @",null,null,{"$f":"PARKING","v":3},{"$f":"SUM(C10*G10)","v":0}]
[null,"Per Diem:",0,"Breakfast",null,null,{"$f":"BREAKFAST","v":10.1},{"$f":"SUM(C11*G11)","v":0}]
[null,null,0,"Lunch",null,null,{"$f":"LUNCH","v":13.3},0]
[null,null,0,"Dinner",null,null,{"$f":"DINNER","v":23.1},0]
[null,null,0,"Lodging",null,null,{"$f":"LODGING_LUMP.SUM","v":95},0]
[null,"Reproduction:",0,"8 1/2 x 11 B & W Copies @",null,null,{"$f":"LETTERCOPIES","v":0.14000000000000001},0]
[null,null,0,"11 x 17 B & W Copies @",null,null,{"$f":"LEDGERCOPIES","v":0.34},0]
[null,null,0,"8 1/2 x 11 Color Copies @",null,null,{"$f":"LETTERCOLOR","v":0.83},0]
[null,null,0,"11 x 17 Color Copies @",null,null,{"$f":"LEDGERCOLOR","v":1.66},0]
[null,null,0,"SQ. FT. of Plots (B & W or Color)",null,"<65 SQ. FT.*",{"$f":"ROLLPLOTSshort","v":6.5},0]
[null,null,0,"SQ. FT. of Plots (B & W or Color)",null,">65 SQ. FT.*",{"$f":"ROLLPLOTSlong","v":1.5},0]
[null,null,0,"Cover(s) @",null,null,{"$f":"COVERS","v":0.5},0]
[null,null,0,"Binder(s) @",null,null,{"$f":"BINDERS","v":0.5},0]
[null,null,0,"Blueprints - 8 1/2 x 11 @",null,null,{"$f":"BLUEPRINTSLETTER","v":0.35},0]
[null,null,0,"Blueprints - 42 x 72 @",null,null,{"$f":"BLUEPRINTSLARGE","v":1.3},0]
[null,"Film and Developing:",0,"Roll(s) @",null,null,{"$f":"FILM","v":20},0]
[null,null,null,null,null,"Subtotal",null,{"$f":"SUM(H6:H25)","v":0}]
["MAPS AND DOCUMENTS:","ITEM","QTY","DESCRIPTION",null,null,"UNIT COST "]
[null,"County Tax Maps:",0,"Map(s) @",null,null,{"$f":"County_Tax_Maps","v":7},{"$f":"SUM(C28*G28)","v":0}]
[null,"USGS Maps:",0,"Map(s) @",null,null,{"$f":"USGSMAPS","v":7},{"$f":"SUM(C29*G29)","v":0}]
[null,null,null,null,null,"Subtotal",null,{"$f":"SUM(H28:H29)","v":0}]
["Miscellaneous Other","ITEM","QTY","DESCRIPTION",null,null,"UNIT COST "]
[null,null,null,null,null,null,null,{"$f":"SUM(C32*G32)","v":0}]
[null,null,null,null,null,null,null,{"$f":"SUM(C33*G33)","v":0}]
[null,null,null,null,null,null,null,0]
[null,null,null,null,null,null,null,0]
[null,null,null,null,null,null,null,0]
[null,null,null,null,null,null,null,0]
[null,null,null,null,null,null,null,0]
[null,null,null,null,null,null,null,{"$f":"SUM(C39*G39)","v":0}]
[null,null,null,null,null,null,null,{"$f":"SUM(C40*G40)","v":0}]
[null,null,null,null,null,null,null,{"$f":"SUM(C41*G41)","v":0}]
[null,null,null,null,null,"Subtotal",null,{"$f":"SUM(H32:H41)","v":0}]
[]
[null,null,null,null,null,"TOTAL",null,{"$f":"SUM(H26+H30+H42)","v":0}]
[]
[null,"* Sum of all plots "]

{"sheet":"Rail-Sub2","index":141,"n_rows":275,"n_cols":47,"rows_kept":275,"cut":false,"hidden":true,"merged":[[280,8,280,9],[280,10,280,11],[283,8,283,13],[284,8,284,9],[284,10,284,11],[285,8,285,9],[285,10,285,11],[258,26,258,27],[259,26,259,27],[278,8,278,13],[279,8,279,9],[279,10,279,11],[252,26,252,27],[253,26,253,27],[254,26,254,27],[255,26,255,27],[256,26,256,27],[257,26,257,27],[244,26,244,27],[245,26,245,27],[246,26,246,27],[247,26,247,27],[248,26,248,27],[249,26,249,27],[250,26,250,27],[251,26,251,27],[274,1,275,1],[274,3,275,4],[70,26,70,27],[71,26,71,27],[72,26,72,27],[73,26,73,27],[74,26,74,27],[243,26,243,27],[64,26,64,27],[65,26,65,27],[66,26,66,27],[67,26,67,27],[68,26,68,27],[69,26,69,27],[187,26,187,27],[188,26,188,27],[189,26,189,27],[190,26,190,27],[191,26,191,27],[192,26,192,27],[193,26,193,27],[194,26,194,27],[195,26,195,27],[196,26,196,27],[197,26,197,27],[198,26,198,27],[58,26,58,27],[59,26,59,27],[60,26,60,27],[61,26,61,27],[62,26,62,27],[63,26,63,27],[52,26,52,27],[53,26,53,27],[54,26,54,27],[55,26,55,27],[56,26,56,27],[57,26,57,27],[91,26,91,27],[92,26,92,27],[93,26,93,27],[94,26,94,27],[95,26,95,27],[96,26,96,27],[97,26,97,27],[98,26,98,27],[99,26,99,27],[100,26,100,27],[46,26,46,27],[47,26,47,27],[48,26,48,27],[49,26,49,27],[50,26,50,27],[51,26,51,27],[40,26,40,27],[41,26,41,27],[42,26,42,27],[43,26,43,27],[44,26,44,27],[45,26,45,27],[34,26,34,27],[35,26,35,27],[36,26,36,27],[37,26,37,27],[38,26,38,27],[39,26,39,27],[28,26,28,27],[29,26,29,27],[30,26,30,27],[31,26,31,27],[32,26,32,27],[33,26,33,27],[22,26,22,27],[23,26,23,27],[24,26,24,27],[25,26,25,27],[26,26,26,27],[27,26,27,27],[16,26,16,27],[17,26,17,27],[18,26,18,27],[19,26,19,27],[20,26,20,27],[21,26,21,27],[10,26,10,27],[11,26,11,27],[12,26,12,27],[13,26,13,27],[14,26,14,27],[15,26,15,27],[6,18,9,18],[6,19,9,19],[6,20,9,20],[6,21,9,21],[6,22,9,22],[8,26,8,27],[6,12,9,12],[6,13,9,13],[6,14,9,14],[6,15,9,15],[6,16,9,16],[6,17,9,17],[4,3,4,22],[6,3,9,3],[6,4,9,4],[6,5,9,5],[6,6,9,6],[6,7,9,7],[6,8,9,8],[6,9,9,9],[6,10,9,10],[6,11,9,11],[0,0,1,13],[2,1,2,4],[2,6,2,7],[2,10,2,11],[2,15,2,16],[3,1,3,4],[3,6,3,7],[3,10,3,11],[3,15,3,16],[199,26,199,27],[200,26,200,27],[201,26,201,27],[202,26,202,27],[203,26,203,27],[204,26,204,27],[205,26,205,27],[206,26,206,27],[207,26,207,27],[208,26,208,27],[209,26,209,27],[210,26,210,27],[211,26,211,27],[212,26,212,27],[213,26,213,27],[214,26,214,27],[215,26,215,27],[216,26,216,27],[217,26,217,27],[218,26,218,27],[219,26,219,27],[220,26,220,27],[221,26,221,27],[222,26,222,27],[223,26,223,27],[224,26,224,27],[225,26,225,27],[226,26,226,27],[227,26,227,27],[228,26,228,27],[229,26,229,27],[230,26,230,27],[231,26,231,27],[232,26,232,27],[233,26,233,27],[234,26,234,27],[235,26,235,27],[236,26,236,27],[237,26,237,27],[238,26,238,27],[239,26,239,27],[240,26,240,27],[241,26,241,27],[242,26,242,27],[75,26,75,27],[76,26,76,27],[77,26,77,27],[78,26,78,27],[79,26,79,27],[80,26,80,27],[81,26,81,27],[82,26,82,27],[83,26,83,27],[84,26,84,27],[85,26,85,27],[86,26,86,27],[87,26,87,27],[88,26,88,27],[89,26,89,27],[90,26,90,27],[101,26,101,27],[102,26,102,27],[103,26,103,27],[104,26,104,27],[105,26,105,27],[106,26,106,27],[107,26,107,27],[108,26,108,27],[109,26,109,27],[110,26,110,27],[111,26,111,27],[112,26,112,27],[113,26,113,27],[114,26,114,27],[115,26,115,27],[116,26,116,27],[117,26,117,27],[118,26,118,27],[119,26,119,27],[120,26,120,27],[121,26,121,27],[122,26,122,27],[123,26,123,27],[124,26,124,27],[125,26,125,27],[126,26,126,27],[127,26,127,27],[128,26,128,27],[129,26,129,27],[130,26,130,27],[131,26,131,27],[132,26,132,27],[133,26,133,27],[134,26,134,27],[135,26,135,27],[136,26,136,27],[137,26,137,27],[138,26,138,27],[139,26,139,27],[140,26,140,27],[141,26,141,27],[142,26,142,27],[143,26,143,27],[144,26,144,27],[145,26,145,27],[146,26,146,27],[147,26,147,27],[148,26,148,27],[149,26,149,27],[150,26,150,27],[151,26,151,27],[152,26,152,27],[153,26,153,27],[170,26,170,27],[171,26,171,27],[154,26,154,27],[155,26,155,27],[156,26,156,27],[157,26,157,27],[158,26,158,27],[159,26,159,27],[160,26,160,27],[161,26,161,27],[162,26,162,27],[181,26,181,27],[182,26,182,27],[183,26,183,27],[184,26,184,27],[185,26,185,27],[186,26,186,27],[3,26,3,27],[9,0,9,1],[172,26,172,27],[173,26,173,27],[174,26,174,27],[175,26,175,27],[176,26,176,27],[177,26,177,27],[178,26,178,27],[179,26,179,27],[180,26,180,27],[163,26,163,27],[164,26,164,27],[165,26,165,27],[166,26,166,27],[167,26,167,27],[168,26,168,27],[169,26,169,27]]}
["                                                                      SUBCONSULTANT 2 - RAIL DIVISION BREAKDOWN WORKSHEET -- ENTER WORKHOURS"]
[]
["PROJECT DESCRIPTION: ",{"$f":"PROJECT.DESCRIPTION","v":0},null,null,null,"FIRM:  ",{"$f":"RAIL.SUB2_CONSULTANT_NAME","v":"CONSULTANT NAME"},null,"TASK ORDER NUMBER:",null,{"$f":"TASK.ORDER.NUMBER","v":0},null,"DATE PREPARED:",{"$f":"IF(SCOPE.MANDAY.ESTIMATE.PREPARED.BY.DATE=\"\",\"\",SCOPE.MANDAY.ESTIMATE.PREPARED.BY.DATE)","v":""}]
["PREPARED BY:  ",{"$f":"IF(SCOPE.MANDAY.ESTIMATE.PREPARED.BY=\"\",\"\",SCOPE.MANDAY.ESTIMATE.PREPARED.BY)","v":""},null,null,null,"TIP NUMBER:",{"$f":"TIP.NUMBER","v":0},null,"WBS NUMBER:",null,{"$f":"WBS.NUMBER","v":""},null,"REVISION DATE:",{"$f":"IF(SCOPE.MANDAY.ESTIMATE.APPROVED.BY.DATE=\"\",\"\",SCOPE.MANDAY.ESTIMATE.APPROVED.BY.DATE)","v":""},null,null,null,null,null,null,null,null,null,null,null,"TASK TYPE:","Select Task Type"]
[null,null,null,"ESTIMATED WORKHOURS"]
[null,null,"EMPLOYEE NAMES",{"$f":"IF('PEF CLASSIFICATION SHEET'!D1123=\"\",\"\",LEFT('PEF CLASSIFICATION SHEET'!D1123,4))","v":""},{"$f":"IF('PEF CLASSIFICATION SHEET'!D1124=\"\",\"\",LEFT('PEF CLASSIFICATION SHEET'!D1124,4))","v":""},{"$f":"IF('PEF CLASSIFICATION SHEET'!D1125=\"\",\"\",LEFT('PEF CLASSIFICATION SHEET'!D1125,4))","v":""},{"$f":"IF('PEF CLASSIFICATION SHEET'!D1126=\"\",\"\",LEFT('PEF CLASSIFICATION SHEET'!D1126,4))","v":""},{"$f":"IF('PEF CLASSIFICATION SHEET'!D1127=\"\",\"\",LEFT('PEF CLASSIFICATION SHEET'!D1127,4))","v":""},{"$f":"IF('PEF CLASSIFICATION SHEET'!D1128=\"\",\"\",LEFT('PEF CLASSIFICATION SHEET'!D1128,4))","v":""},{"$f":"IF('PEF CLASSIFICATION SHEET'!D1129=\"\",\"\",LEFT('PEF CLASSIFICATION SHEET'!D1129,4))","v":""},{"$f":"IF('PEF CLASSIFICATION SHEET'!D1130=\"\",\"\",LEFT('PEF CLASSIFICATION SHEET'!D1130,4))","v":""},{"$f":"IF('PEF CLASSIFICATION SHEET'!D1131=\"\",\"\",LEFT('PEF CLASSIFICATION SHEET'!D1131,4))","v":""},{"$f":"IF('PEF CLASSIFICATION SHEET'!D1132=\"\",\"\",LEFT('PEF CLASSIFICATION SHEET'!D1132,4))","v":""},{"$f":"IF('PEF CLASSIFICATION SHEET'!D1133=\"\",\"\",LEFT('PEF CLASSIFICATION SHEET'!D1133,4))","v":""},{"$f":"IF('PEF CLASSIFICATION SHEET'!D1134=\"\",\"\",LEFT('PEF CLASSIFICATION SHEET'!D1134,4))","v":""},{"$f":"IF('PEF CLASSIFICATION SHEET'!D1135=\"\",\"\",LEFT('PEF CLASSIFICATION SHEET'!D1135,4))","v":""},{"$f":"IF('PEF CLASSIFICATION SHEET'!D1136=\"\",\"\",LEFT('PEF CLASSIFICATION SHEET'!D1136,4))","v":""},{"$f":"IF('PEF CLASSIFICATION SHEET'!D1137=\"\",\"\",LEFT('PEF CLASSIFICATION SHEET'!D1137,4))","v":""},{"$f":"IF('PEF CLASSIFICATION SHEET'!D1138=\"\",\"\",LEFT('PEF CLASSIFICATION SHEET'!D1138,4))","v":""},{"$f":"IF('PEF CLASSIFICATION SHEET'!D1139=\"\",\"\",LEFT('PEF CLASSIFICATION SHEET'!D1139,4))","v":""},{"$f":"IF('PEF CLASSIFICATION SHEET'!D1140=\"\",\"\",LEFT('PEF CLASSIFICATION SHEET'!D1140,4))","v":""},{"$f":"IF('PEF CLASSIFICATION SHEET'!D1141=\"\",\"\",LEFT('PEF CLASSIFICATION SHEET'!D1141,4))","v":""},{"$f":"IF('PEF CLASSIFICATION SHEET'!D1142=\"\",\"\",LEFT('PEF CLASSIFICATION SHEET'!D1142,4))","v":""}]
[null,null,null,{"$f":"IF('PEF CLASSIFICATION SHEET'!C1123=\"\",\"\",'PEF CLASSIFICATION SHEET'!C1123)","v":""},{"$f":"IF('PEF CLASSIFICATION SHEET'!C1124=\"\",\"\",'PEF CLASSIFICATION SHEET'!C1124)","v":""},{"$f":"IF('PEF CLASSIFICATION SHEET'!C1125=\"\",\"\",'PEF CLASSIFICATION SHEET'!C1125)","v":""},{"$f":"IF('PEF CLASSIFICATION SHEET'!C1126=\"\",\"\",'PEF CLASSIFICATION SHEET'!C1126)","v":""},{"$f":"IF('PEF CLASSIFICATION SHEET'!C1127=\"\",\"\",'PEF CLASSIFICATION SHEET'!C1127)","v":""},{"$f":"IF('PEF CLASSIFICATION SHEET'!C1128=\"\",\"\",'PEF CLASSIFICATION SHEET'!C1128)","v":""},{"$f":"IF('PEF CLASSIFICATION SHEET'!C1129=\"\",\"\",'PEF CLASSIFICATION SHEET'!C1129)","v":""},{"$f":"IF('PEF CLASSIFICATION SHEET'!C1130=\"\",\"\",'PEF CLASSIFICATION SHEET'!C1130)","v":""},{"$f":"IF('PEF CLASSIFICATION SHEET'!C1131=\"\",\"\",'PEF CLASSIFICATION SHEET'!C1131)","v":""},{"$f":"IF('PEF CLASSIFICATION SHEET'!C1132=\"\",\"\",'PEF CLASSIFICATION SHEET'!C1132)","v":""},{"$f":"IF('PEF CLASSIFICATION SHEET'!C1133=\"\",\"\",'PEF CLASSIFICATION SHEET'!C1133)","v":""},{"$f":"IF('PEF CLASSIFICATION SHEET'!C1134=\"\",\"\",'PEF CLASSIFICATION SHEET'!C1134)","v":""},{"$f":"IF('PEF CLASSIFICATION SHEET'!C1135=\"\",\"\",'PEF CLASSIFICATION SHEET'!C1135)","v":""},{"$f":"IF('PEF CLASSIFICATION SHEET'!C1136=\"\",\"\",'PEF CLASSIFICATION SHEET'!C1136)","v":""},{"$f":"IF('PEF CLASSIFICATION SHEET'!C1137=\"\",\"\",'PEF CLASSIFICATION SHEET'!C1137)","v":""},{"$f":"IF('PEF CLASSIFICATION SHEET'!C1138=\"\",\"\",'PEF CLASSIFICATION SHEET'!C1138)","v":""},{"$f":"IF('PEF CLASSIFICATION SHEET'!C1139=\"\",\"\",'PEF CLASSIFICATION SHEET'!C1139)","v":""},{"$f":"IF('PEF CLASSIFICATION SHEET'!C1140=\"\",\"\",'PEF CLASSIFICATION SHEET'!C1140)","v":""},{"$f":"IF('PEF CLASSIFICATION SHEET'!C1141=\"\",\"\",'PEF CLASSIFICATION SHEET'!C1141)","v":""},{"$f":"IF('PEF CLASSIFICATION SHEET'!C1142=\"\",\"\",'PEF CLASSIFICATION SHEET'!C1142)","v":""},"SUB-","%","PEF"]
[null,null,null,null,null,null,null,null,null,null,null,null,null,null,null,null,null,null,null,null,null,null,null,"TOTAL","OF","ESTIMATE"]
["TASK NO.","TASK DESCRIPTION","CLASSIFICATION",null,null,null,null,null,null,null,null,null,null,null,null,null,null,null,null,null,null,null,null,null,"PROJECT",null,"COMMENTS",null,null,null,null,null,null,null,"Select Task Type","Grade Separation","CEI","Track Design","Signal Design","Environmental","Planning"]
[{"$f":"IF($AA$4=\"Select Task Type\",\"Select the TASK TYPE from drop down list in cell AA4 to populate the task list\",IF($AA$4=\"Grade Separation\",\"You selected Grade Separation\",IF($AA$4=\"CEI\",\"You selected CEI\",IF($AA$4=\"Track Design\",\"You selected Track Design.  When the task is ALL CAPS, this is a header row, if you choose to key mandays associated with that header row the row total will not be displayed but the column and overall total will sum appropriately\",IF($AA$4=\"Signal Design\",\"You selected Signal Design, note that this is initially a blank task list; so please create a task list from scratch\",IF($AA$4=\"Environmental\",\"You selected Environmental.  When the task is ALL CAPS, this is a header row, if you choose to key mandays associated with that header row the row total will not be displayed but the column and overall total will sum appropriately\",IF($AA$4=\"Planning\",\"You selected Planning.  When the task is ALL CAPS, this is a header row, if you choose to key mandays associated with that header row the row total will not be displayed but the column and overall total will sum appropriately\",\"Select the TASK TYPE from drop down list in cell AA4 to populate the task list\")))))))","v":"Select the TASK TYPE from drop down list in cell AA4 to populate the task list"},null,null,null,null,null,null,null,null,null,null,null,null,null,null,null,null,null,null,null,null,null,null,null,null,null,null,null,null,null,null,null,null,null,null,"Grade Separation","Grade Separation","CEI","CEI","Track Design","Track Design","Signal Design","Signal Design","Environmental","Environmental","Planning","Planning"]
[{"$f":"IF(AG11=0,\"\",AG11)","v":""},{"$f":"IF(AH11=0,\"\",AH11)","v":""},null,null,null,null,null,null,null,null,null,null,null,null,null,null,null,null,null,null,null,null,null,{"$f":"IF(B11=\"\",0,IF(B11=\"DEMAND ASSESSMENT\",\"\",IF(B11=\"PROJECT SCOPING AND DATA COLLECTION\",\"\",IF(B11=\"PROJECT MANAGEMENT/PROJECT ADMINISTRATION\",\"\",IF((SUM(D11:W11)=0),0,SUM(D11:W11))))))","v":0},{"$f":"IF(SUM(D11:W11)=0,\"\",((SUM(D11:W11))/$X$261))","v":""},null,null,null,null,null,null,null,{"$f":"IF($AA$4=\"Select Task Type\",\"\",IF($AA$4=\"Grade Separation\",AJ11,IF($AA$4=\"CEI\",AL11,IF($AA$4=\"Track Design\",AN11,IF($AA$4=\"Signal Design\",AP11,IF($AA$4=\"Environmental\",AR11,IF($AA$4=\"Planning\",AT11,\"\")))))))","v":""},{"$f":"IF($AA$4=\"Select Task Type\",\"\",IF($AA$4=\"Grade Separation\",AK11,IF($AA$4=\"CEI\",AM11,IF($AA$4=\"Track Design\",AO11,IF($AA$4=\"Signal Design\",AQ11,IF($AA$4=\"Environmental\",AS11,IF($AA$4=\"Planning\",AU11,\"\")))))))","v":""},null,1,"Project Familiarization",1,"Project management and document review",1,"PROJECT MANAGEMENT/PROJECT ADMINISTRATION",null,null,"A","PROJECT SCOPING AND DATA COLLECTION",1,"DEMAND ASSESSMENT"]
[{"$f":"IF(AG12=0,\"\",AG12)","v":""},"",null,null,null,null,null,null,null,null,null,null,null,null,null,null,null,null,null,null,null,null,null,{"$f":"IF(B12=\"\",0,IF((SUM(D12:W12)=0),0,SUM(D12:W12)))","v":0},{"$f":"IF(SUM(D12:W12)=0,\"\",((SUM(D12:W12))/$X$261))","v":""},null,null,null,null,null,null,null,{"$f":"IF($AA$4=\"Select Task Type\",\"\",IF($AA$4=\"Grade Separation\",AJ12,IF($AA$4=\"CEI\",AL12,IF($AA$4=\"Track Design\",AN12,IF($AA$4=\"Signal Design\",AP12,IF($AA$4=\"Environmental\",AR12,IF($AA$4=\"Planning\",AT12,\"\")))))))","v":""},"",null,2,"Conceptual Design",2,"Track inspection",null,null,null,null,"A.1","Study Area Definition",null,"Review previous studies"]
["","",null,null,null,null,null,null,null,null,null,null,null,null,null,null,null,null,null,null,null,null,null,0,{"$f":"IF(SUM(D13:W13)=0,\"\",((SUM(D13:W13))/$X$261))","v":""},null,null,null,null,null,null,null,"","",null,3,"Construction Cost Estimate",3,"Roadway inspection",null,null,null,null,"A.2","Study Area Field Visit",null,"Interview XX, XX, and XX on near-term rail intermodal and break bulk plans"]
["","",null,null,null,null,null,null,null,null,null,null,null,null,null,null,null,null,null,null,null,null,null,0,"",null,null,null,null,null,null,null,"","",null,4,"Project Coordination",null,null,null,null,null,null,"A.3","Community Characteristics Report",null,"Estimate effects of various rail entities"]
["","",null,null,null,null,null,null,null,null,null,null,null,null,null,null,null,null,null,null,null,null,null,0,"",null,null,null,null,null,null,null,"","",null,null,null,null,null,null,null,null,null,"A.4","Local Land Use and Transportation Plans",null,"Estimate future growth in other bulk and break bulk commodities"]
["","",null,null,null,null,null,null,null,null,null,null,null,null,null,null,null,null,null,null,null,null,null,0,"",null,null,null,null,null,null,null,"","",null,null,null,null,null,null,null,null,null,"A.5","State and Federal Data Sources",null,"Incorporate State Freight Plan into market forecasts "]
["","",null,null,null,null,null,null,null,null,null,null,null,null,null,null,null,null,null,null,null,null,null,0,"",null,null,null,null,null,null,null,"","",null,null,null,null,null,null,null,null,null,"A.6 ","GeoEnvironmental Review",null,"Project port continued share against market growth"]
["","",null,null,null,null,null,null,null,null,null,null,null,null,null,null,null,null,null,null,null,null,null,0,"",null,null,null,null,null,null,null,"","",null,null,null,null,null,null,null,null,null,"A.7","GIS Data Layers and Aerial Photography",null,"Combine forecasts from various groups into a base line forecast"]
["","",null,null,null,null,null,null,null,null,null,null,null,null,null,null,null,null,null,null,null,null,null,0,"",null,null,null,null,null,null,null,"","",null,null,null,null,null,null,null,null,null,"A.8","Evaluation of Existing Transportation Facilities",null,"Develop an updated base forecast"]
["","",null,null,null,null,null,null,null,null,null,null,null,null,null,null,null,null,null,null,null,null,null,0,"",null,null,null,null,null,null,null,"","",null,null,null,null,null,null,null,null,null,"A.9","Traffic Forecast Request",null,"Compare with freight forecast in NC State Freight Plan, contrast against existing port rail capacity, identify delta required to accommodate additional traffic"]
["","",null,null,null,null,null,null,null,null,null,null,null,null,null,null,null,null,null,null,null,null,null,0,"",null,null,null,null,null,null,null,"","",null,null,null,null,null,null,null,null,null,"A.10","Project Data Sheet",null,"Add in empty return exports and revise forecast"]
["","",null,null,null,null,null,null,null,null,null,null,null,null,null,null,null,null,null,null,null,null,null,{"$f":"IF(B22=\"\",0,IF(B22=\"FUNCTIONAL TRACK DESIGN\",\"\",IF((SUM(D22:W22)=0),0,SUM(D22:W22))))","v":0},"",null,null,null,null,null,null,null,"","",null,null,null,null,null,2,"FUNCTIONAL TRACK DESIGN",null,null,"A.11","Start of Study Letters",null,"Develop near-term outlook of market demand and system requirements"]
["","",null,null,null,null,null,null,null,null,null,null,null,null,null,null,null,null,null,null,null,null,null,{"$f":"IF(B23=\"\",0,IF((SUM(D23:W23)=0),0,SUM(D23:W23)))","v":0},"",null,null,null,null,null,null,null,"","",null,null,null,null,null,null,null,null,null,"A.12","Kickoff/Scoping Meeting",null,"Review operations and plans for XX, suggest if port rail facilities can accommodate projected growth"]
["","",null,null,null,null,null,null,null,null,null,null,null,null,null,null,null,null,null,null,null,null,null,{"$f":"IF(B24=\"\",0,IF((SUM(D24:W24)=0),0,SUM(D24:W24)))","v":0},"",null,null,null,null,null,null,null,"","",null,null,null,null,null,null,null,null,null,"A.13",null,null,"Identify conceptual rail capacity and prospects for service assuming successful XX service"]
["","",null,null,null,null,null,null,null,null,null,null,null,null,null,null,null,null,null,null,null,null,null,{"$f":"IF(B25=\"\",0,IF((SUM(D25:W25)=0),0,SUM(D25:W25)))","v":0},"",null,null,null,null,null,null,null,"","",null,null,null,null,null,null,null,null,null,"A.14",null,null,"Evaluate rail operations @ port to identify conflicts and opportunities to serve both intermodal and break bulk rail customers"]
["","",null,null,null,null,null,null,null,null,null,null,null,null,null,null,null,null,null,null,null,null,null,{"$f":"IF(B26=\"\",0,IF((SUM(D26:W26)=0),0,SUM(D26:W26)))","v":0},"",null,null,null,null,null,null,null,"","",null,null,null,null,null,null,null,null,null,"A.15",null,null,"Develop near-term outlook of market demand and system requirements"]
["","",null,null,null,null,null,null,null,null,null,null,null,null,null,null,null,null,null,null,null,null,null,{"$f":"IF(B27=\"\",0,IF((SUM(D27:W27)=0),\"\",SUM(D27:W27)))","v":0},"",null,null,null,null,null,null,null,"","",null,null,null,null,null,null,null,null,null,"A.16"]
["","",null,null,null,null,null,null,null,null,null,null,null,null,null,null,null,null,null,null,null,null,null,0,"",null,null,null,null,null,null,null,"","",null,null,null,null,null,null,null,null,null,"A.17"]
["","",null,null,null,null,null,null,null,null,null,null,null,null,null,null,null,null,null,null,null,null,null,{"$f":"IF(B29=\"\",0,IF(B29=\"TRAFFIC CAPACITY ANALYSIS AND ACCIDENT ANALYSIS\",\"\",IF((SUM(D29:W29)=0),0,SUM(D29:W29))))","v":0},"",null,null,null,null,null,null,null,"","",null,null,null,null,null,null,null,null,null,"B","TRAFFIC CAPACITY ANALYSIS AND ACCIDENT ANALYSIS"]
["","",null,null,null,null,null,null,null,null,null,null,null,null,null,null,null,null,null,null,null,null,null,{"$f":"IF(B30=\"\",0,IF((SUM(D30:W30)=0),0,SUM(D30:W30)))","v":0},"",null,null,null,null,null,null,null,"","",null,null,null,null,null,null,null,null,null,"B.1","Coordinate with Stantec & incorporate the analysis"]
["","",null,null,null,null,null,null,null,null,null,null,null,null,null,null,null,null,null,null,null,null,null,{"$f":"IF(B31=\"\",0,IF((SUM(D31:W31)=0),0,SUM(D31:W31)))","v":0},"",null,null,null,null,null,null,null,"","",null,null,null,null,null,null,null,null,null,"B.2"]
["","",null,null,null,null,null,null,null,null,null,null,null,null,null,null,null,null,null,null,null,null,null,{"$f":"IF(B32=\"\",0,IF(B32=\"PORT MASTER PLAN REVIEW\",\"\",IF((SUM(D32:W32)=0),0,SUM(D32:W32))))","v":0},"",null,null,null,null,null,null,null,"","",null,null,null,null,null,null,null,null,null,"B.3",null,2,"PORT MASTER PLAN REVIEW"]
["","",null,null,null,null,null,null,null,null,null,null,null,null,null,null,null,null,null,null,null,null,null,{"$f":"IF(B33=\"\",0,IF(B33=\"PRELIMINARY TRACK DESIGN\",\"\",IF((SUM(D33:W33)=0),0,SUM(D33:W33))))","v":0},"",null,null,null,null,null,null,null,"","",null,null,null,null,null,3,"PRELIMINARY TRACK DESIGN",null,null,"B.4",null,null,"Identify area needed to accommodate each targeted market"]
["","",null,null,null,null,null,null,null,null,null,null,null,null,null,null,null,null,null,null,null,null,null,{"$f":"IF(B34=\"\",0,IF((SUM(D34:W34)=0),0,SUM(D34:W34)))","v":0},"",null,null,null,null,null,null,null,"","",null,null,null,null,null,null,null,null,null,"B.5",null,null,"Assess ability to meet current and projected needs"]
["","",null,null,null,null,null,null,null,null,null,null,null,null,null,null,null,null,null,null,null,null,null,{"$f":"IF(B35=\"\",0,IF((SUM(D35:W35)=0),0,SUM(D35:W35)))","v":0},"",null,null,null,null,null,null,null,"","",null,null,null,null,null,null,null,null,null,"B.6",null,null,"Coordinate with Port regarding future Port plans"]
["","",null,null,null,null,null,null,null,null,null,null,null,null,null,null,null,null,null,null,null,null,null,{"$f":"IF(B36=\"\",0,IF(B36=\"PROJECT PURPOSE AND NEED\",\"\",IF((SUM(D36:W36)=0),0,SUM(D36:W36))))","v":0},"",null,null,null,null,null,null,null,"","",null,null,null,null,null,null,null,null,null,"C","PROJECT PURPOSE AND NEED",null,"Develop recommendations to layout and/or processes to meet anticipated needs while not conflicting or constraining future activities"]
["","",null,null,null,null,null,null,null,null,null,null,null,null,null,null,null,null,null,null,null,null,null,{"$f":"IF(B37=\"\",0,IF((SUM(D37:W37)=0),0,SUM(D37:W37)))","v":0},"",null,null,null,null,null,null,null,"","",null,null,null,null,null,null,null,null,null,"C.1","Preliminary Purpose and Need",null,"Prepare draft port layout"]
["","",null,null,null,null,null,null,null,null,null,null,null,null,null,null,null,null,null,null,null,null,null,0,"",null,null,null,null,null,null,null,"","",null,null,null,null,null,null,null,null,null,"C.2","Final Purpose and Need Memorandum",null,"Revise per NCDOT comments and prepare final port layout"]
["","",null,null,null,null,null,null,null,null,null,null,null,null,null,null,null,null,null,null,null,null,null,0,"",null,null,null,null,null,null,null,"","",null,null,null,null,null,null,null,null,null,"C.3"]
["","",null,null,null,null,null,null,null,null,null,null,null,null,null,null,null,null,null,null,null,null,null,0,"",null,null,null,null,null,null,null,"","",null,null,null,null,null,null,null,null,null,"C.4"]
["","",null,null,null,null,null,null,null,null,null,null,null,null,null,null,null,null,null,null,null,null,null,0,"",null,null,null,null,null,null,null,"","",null,null,null,null,null,null,null,null,null,"C.5"]
["","",null,null,null,null,null,null,null,null,null,null,null,null,null,null,null,null,null,null,null,null,null,0,"",null,null,null,null,null,null,null,"","",null,null,null,null,null,null,null,null,null,"C.6"]
["","",null,null,null,null,null,null,null,null,null,null,null,null,null,null,null,null,null,null,null,null,null,0,"",null,null,null,null,null,null,null,"","",null,null,null,null,null,null,null,null,null,"C.7"]
["","",null,null,null,null,null,null,null,null,null,null,null,null,null,null,null,null,null,null,null,null,null,{"$f":"IF(B44=\"\",0,IF(B44=\"RAIL INVENTORY AND REVIEW OF EXISTING OPERATIONS\",\"\",IF(B44=\"DEVELOPMENT AND EVALUATION OF DESIGN ALTERNATIVES\",\"\",IF(B44=\"FINAL TRACK DESIGN\",\"\",IF((SUM(D44:W44)=0),0,SUM(D44:W44))))))","v":0},"",null,null,null,null,null,null,null,"","",null,null,null,null,null,4,"FINAL TRACK DESIGN",null,null,"D","DEVELOPMENT AND EVALUATION OF DESIGN ALTERNATIVES",3,"RAIL INVENTORY AND REVIEW OF EXISTING OPERATIONS"]
["","",null,null,null,null,null,null,null,null,null,null,null,null,null,null,null,null,null,null,null,null,null,{"$f":"IF(B45=\"\",0,IF((SUM(D45:W45)=0),0,SUM(D45:W45)))","v":0},"",null,null,null,null,null,null,null,"","",null,null,null,null,null,null,null,null,null,"D.1","Collaboration on Development of Design Alternatives",null,"Review Port facilities on the ground, identify acreage which could accommodate additional functions in support of rail operations"]
["","",null,null,null,null,null,null,null,null,null,null,null,null,null,null,null,null,null,null,null,null,null,0,"",null,null,null,null,null,null,null,"","",null,null,null,null,null,null,null,null,null,"D.2","Qualitative Screening of Design Alternatives",null,"Review XX and XX track charts and track maps for Port"]
["","",null,null,null,null,null,null,null,null,null,null,null,null,null,null,null,null,null,null,null,null,null,0,"",null,null,null,null,null,null,null,"","",null,null,null,null,null,null,null,null,null,"D.3",null,null,"Review any related TSS"]
["","",null,null,null,null,null,null,null,null,null,null,null,null,null,null,null,null,null,null,null,null,null,0,"",null,null,null,null,null,null,null,"","",null,null,null,null,null,null,null,null,null,"D.4",null,null,"Conduct a windshield survey of XX line at Port and document observations"]
["","",null,null,null,null,null,null,null,null,null,null,null,null,null,null,null,null,null,null,null,null,null,0,"",null,null,null,null,null,null,null,"","",null,null,null,null,null,null,null,null,null,"D.5",null,null,"Identify opportunities to locate a future passing siding."]
["","",null,null,null,null,null,null,null,null,null,null,null,null,null,null,null,null,null,null,null,null,null,0,"",null,null,null,null,null,null,null,"","",null,null,null,null,null,null,null,null,null,"D.6"]
["","",null,null,null,null,null,null,null,null,null,null,null,null,null,null,null,null,null,null,null,null,null,0,"",null,null,null,null,null,null,null,"","",null,null,null,null,null,null,null,null,null,"D.7"]
["","",null,null,null,null,null,null,null,null,null,null,null,null,null,null,null,null,null,null,null,null,null,{"$f":"IF(B52=\"\",0,IF(B52=\"BIOTIC RESOURCES\",\"\",IF((SUM(D52:W52)=0),0,SUM(D52:W52))))","v":0},"",null,null,null,null,null,null,null,"","",null,null,null,null,null,null,null,null,null,"E.3","BIOTIC RESOURCES"]
["","",null,null,null,null,null,null,null,null,null,null,null,null,null,null,null,null,null,null,null,null,null,{"$f":"IF(B53=\"\",0,IF((SUM(D53:W53)=0),0,SUM(D53:W53)))","v":0},"",null,null,null,null,null,null,null,"","",null,null,null,null,null,null,null,null,null,"E.3.a","Terrestrial Communities"]
["","",null,null,null,null,null,null,null,null,null,null,null,null,null,null,null,null,null,null,null,null,null,{"$f":"IF(B54=\"\",0,IF((SUM(D54:W54)=0),0,SUM(D54:W54)))","v":0},"",null,null,null,null,null,null,null,"","",null,null,null,null,null,null,null,null,null,"E.3.b","Terrestrial Wildlife"]
["","",null,null,null,null,null,null,null,null,null,null,null,null,null,null,null,null,null,null,null,null,null,{"$f":"IF(B55=\"\",0,IF(B55=\"CAPACITY AND VELOCITY\",\"\",IF((SUM(D55:W55)=0),0,SUM(D55:W55))))","v":0},"",null,null,null,null,null,null,null,"","",null,null,null,null,null,null,null,null,null,"E.3.c","Aquatic Communities and Wildlife",4,"CAPACITY AND VELOCITY"]
["","",null,null,null,null,null,null,null,null,null,null,null,null,null,null,null,null,null,null,null,null,null,{"$f":"IF(B56=\"\",0,IF((SUM(D56:W56)=0),0,SUM(D56:W56)))","v":0},"",null,null,null,null,null,null,null,"","",null,null,null,null,null,null,null,null,null,"E.3.d","Invasive Species",null,"Develop a level of service (LOS) classification for XX"]
["","",null,null,null,null,null,null,null,null,null,null,null,null,null,null,null,null,null,null,null,null,null,0,"",null,null,null,null,null,null,null,"","",null,null,null,null,null,null,null,null,null,"E.3.e",null,null,"Identify theoretical capacity XX based upon tonnage (GMT), GMT per train, and number of trains"]
["","",null,null,null,null,null,null,null,null,null,null,null,null,null,null,null,null,null,null,null,null,null,0,"",null,null,null,null,null,null,null,"","",null,null,null,null,null,null,null,null,null,"E.3.f",null,null,"Compare theoretical capacity with forecast train volumes"]
["","",null,null,null,null,null,null,null,null,null,null,null,null,null,null,null,null,null,null,null,null,null,0,"",null,null,null,null,null,null,null,"","",null,null,null,null,null,null,null,null,null,"E.3.g",null,null,"Observe operations to develop an estimate of current velocity (travel time over mileage) to/from XX"]
["","",null,null,null,null,null,null,null,null,null,null,null,null,null,null,null,null,null,null,null,null,null,0,"",null,null,null,null,null,null,null,"","",null,null,null,null,null,null,null,null,null,"E.3.h",null,null,"Review XX track charts and operating rules, assess for potential changes which could more effectively utilize existing capacity"]
["","",null,null,null,null,null,null,null,null,null,null,null,null,null,null,null,null,null,null,null,null,null,0,"",null,null,null,null,null,null,null,"","",null,null,null,null,null,null,null,null,null,"E.3.i",null,null,"Review related TSS to identify projects which could increase operating speeds and improve velocity"]
["","",null,null,null,null,null,null,null,null,null,null,null,null,null,null,null,null,null,null,null,null,null,{"$f":"IF(B62=\"\",0,IF(B62=\"JURISDICTIONAL ISSUES\",\"\",IF((SUM(D62:W62)=0),0,SUM(D62:W62))))","v":0},"",null,null,null,null,null,null,null,"","",null,null,null,null,null,null,null,null,null,"E.4","JURISDICTIONAL ISSUES"]
["","",null,null,null,null,null,null,null,null,null,null,null,null,null,null,null,null,null,null,null,null,null,{"$f":"IF(B63=\"\",0,IF((SUM(D63:W63)=0),0,SUM(D63:W63)))","v":0},"",null,null,null,null,null,null,null,"","",null,null,null,null,null,null,null,null,null,"E.4.a","Clean Water Act (CWA) Waters of the US"]
["","",null,null,null,null,null,null,null,null,null,null,null,null,null,null,null,null,null,null,null,null,null,{"$f":"IF(B64=\"\",0,IF((SUM(D64:W64)=0),0,SUM(D64:W64)))","v":0},"",null,null,null,null,null,null,null,"","",null,null,null,null,null,null,null,null,null,"E.4.b","CWA Permits"]
["","",null,null,null,null,null,null,null,null,null,null,null,null,null,null,null,null,null,null,null,null,null,{"$f":"IF(B65=\"\",0,IF((SUM(D65:W65)=0),0,SUM(D65:W65)))","v":0},"",null,null,null,null,null,null,null,"","",null,null,null,null,null,null,null,null,null,"E.4.c","Construction Moratoria"]
["","",null,null,null,null,null,null,null,null,null,null,null,null,null,null,null,null,null,null,null,null,null,{"$f":"IF(B66=\"\",0,IF((SUM(D66:W66)=0),0,SUM(D66:W66)))","v":0},"",null,null,null,null,null,null,null,"","",null,null,null,null,null,null,null,null,null,"E.4.d","Rivers and Harbors Act Section 10 Navigable Waters"]
["","",null,null,null,null,null,null,null,null,null,null,null,null,null,null,null,null,null,null,null,null,null,{"$f":"IF(B67=\"\",0,IF(B67=\"RAIL INFRASTRUCTURE IMPROVEMENTS\",\"\",IF((SUM(D67:W67)=0),0,SUM(D67:W67))))","v":0},"",null,null,null,null,null,null,null,"","",null,null,null,null,null,null,null,null,null,"E.4.e","Wetland and Stream Mitigation",5,"RAIL INFRASTRUCTURE IMPROVEMENTS"]
["","",null,null,null,null,null,null,null,null,null,null,null,null,null,null,null,null,null,null,null,null,null,{"$f":"IF(B68=\"\",0,IF((SUM(D68:W68)=0),0,SUM(D68:W68)))","v":0},"",null,null,null,null,null,null,null,"","",null,null,null,null,null,null,null,null,null,"E.4.f","Endangered Species Act Protected Species",null,"Review existing infrastructure"]
["","",null,null,null,null,null,null,null,null,null,null,null,null,null,null,null,null,null,null,null,null,null,0,"",null,null,null,null,null,null,null,"","",null,null,null,null,null,null,null,null,null,"E.4.g","Essential Fish Habitat",null,"Determine potential needs based on growth"]
["","",null,null,null,null,null,null,null,null,null,null,null,null,null,null,null,null,null,null,null,null,null,0,"",null,null,null,null,null,null,null,"","",null,null,null,null,null,null,null,null,null,"E.4.h",null,null,"Suggest potential enhancements to address future needs (X scenarios)"]
["","",null,null,null,null,null,null,null,null,null,null,null,null,null,null,null,null,null,null,null,null,null,0,"",null,null,null,null,null,null,null,"","",null,null,null,null,null,null,null,null,null,"E.4.i",null,null,"Coordinate with NCDOT and others to consider the capacity of XX"]
["","",null,null,null,null,null,null,null,null,null,null,null,null,null,null,null,null,null,null,null,null,null,0,"",null,null,null,null,null,null,null,"","",null,null,null,null,null,null,null,null,null,"E.4.j",null,null,"Develop conceptual recommendations to improve efficiency of operations between XX and YY"]
["","",null,null,null,null,null,null,null,null,null,null,null,null,null,null,null,null,null,null,null,null,null,0,"",null,null,null,null,null,null,null,"","",null,null,null,null,null,null,null,null,null,"E.4.k"]
["","",null,null,null,null,null,null,null,null,null,null,null,null,null,null,null,null,null,null,null,null,null,0,"",null,null,null,null,null,null,null,"","",null,null,null,null,null,null,null,null,null,"E.4.l"]
["","",null,null,null,null,null,null,null,null,null,null,null,null,null,null,null,null,null,null,null,null,null,0,"",null,null,null,null,null,null,null,"","",null,null,null,null,null,null,null,null,null,"E.5","NRTR Document"]
[{"$f":"IF(AG76=0,\"\",AG76)","v":""},"",null,null,null,null,null,null,null,null,null,null,null,null,null,null,null,null,null,null,null,null,null,0,"",null,null,null,null,null,null,null,{"$f":"IF($AA$4=\"Select Task Type\",\"\",IF($AA$4=\"Grade Separation\",AJ76,IF($AA$4=\"CEI\",AL76,IF($AA$4=\"Track Design\",AN76,IF($AA$4=\"Signal Design\",AP76,IF($AA$4=\"Environmental\",AR76,IF($AA$4=\"Planning\",AT76,\"\")))))))","v":""},"",null,null,null,null,null,null,null,null,null,"E.5.a"]
["","",null,null,null,null,null,null,null,null,null,null,null,null,null,null,null,null,null,null,null,null,null,0,{"$f":"IF(SUM(D77:W77)=0,\"\",((SUM(D77:W77))/$X$261))","v":""},null,null,null,null,null,null,null,"","",null,null,null,null,null,null,null,null,null,"E.5.b"]
["","",null,null,null,null,null,null,null,null,null,null,null,null,null,null,null,null,null,null,null,null,null,{"$f":"IF(B78=\"\",0,IF(B78=\"DEVELOP SUGGESTIONS FOR OPERATIONAL AND LOGISTICAL ENHANCEMENTS\",\"\",IF((SUM(D78:W78)=0),0,SUM(D78:W78))))","v":0},"",null,null,null,null,null,null,null,"","",null,null,null,null,null,null,null,null,null,"E.5.c",null,6,"DEVELOP SUGGESTIONS FOR OPERATIONAL AND LOGISTICAL ENHANCEMENTS"]
["","",null,null,null,null,null,null,null,null,null,null,null,null,null,null,null,null,null,null,null,null,null,{"$f":"IF(B79=\"\",0,IF((SUM(D79:W79)=0),0,SUM(D79:W79)))","v":0},"",null,null,null,null,null,null,null,"","",null,null,null,null,null,null,null,null,null,"E.5.d",null,null,"Study current operations and suggest changes that might enhance efficiency or reduce costs"]
["","",null,null,null,null,null,null,null,null,null,null,null,null,null,null,null,null,null,null,null,null,null,0,"",null,null,null,null,null,null,null,"","",null,null,null,null,null,null,null,null,null,"E.5.e",null,null,"Coordinate with NCAG to assure changes are allowable"]
["","",null,null,null,null,null,null,null,null,null,null,null,null,null,null,null,null,null,null,null,null,null,0,"",null,null,null,null,null,null,null,"","",null,null,null,null,null,null,null,null,null,"E.6","Jurisdictional Features Verification",null,"Develop option for development of temporary dray Port to XX"]
["","",null,null,null,null,null,null,null,null,null,null,null,null,null,null,null,null,null,null,null,null,null,0,"",null,null,null,null,null,null,null,"","",null,null,null,null,null,null,null,null,null,"E.6.a",null,null,"Summarize potential changes and corresponding actions"]
["","",null,null,null,null,null,null,null,null,null,null,null,null,null,null,null,null,null,null,null,null,null,0,"",null,null,null,null,null,null,null,"","",null,null,null,null,null,null,null,null,null,"E.6.b"]
["","",null,null,null,null,null,null,null,null,null,null,null,null,null,null,null,null,null,null,null,null,null,0,"",null,null,null,null,null,null,null,"","",null,null,null,null,null,null,null,null,null,"E.6.c"]
["","",null,null,null,null,null,null,null,null,null,null,null,null,null,null,null,null,null,null,null,null,null,0,"",null,null,null,null,null,null,null,"","",null,null,null,null,null,null,null,null,null,"E.6.d"]
["","",null,null,null,null,null,null,null,null,null,null,null,null,null,null,null,null,null,null,null,null,null,0,"",null,null,null,null,null,null,null,"","",null,null,null,null,null,null,null,null,null,"E.6.e"]
["","",null,null,null,null,null,null,null,null,null,null,null,null,null,null,null,null,null,null,null,null,null,{"$f":"IF(B87=\"\",0,IF(B87=\"HUMAN ENVIRONMENT FIELD WORK, ANALYSIS, AND DOCUMENTATION\",\"\",IF((SUM(D87:W87)=0),0,SUM(D87:W87))))","v":0},"",null,null,null,null,null,null,null,"","",null,null,null,null,null,null,null,null,null,"F","HUMAN ENVIRONMENT FIELD WORK, ANALYSIS, AND DOCUMENTATION"]
["","",null,null,null,null,null,null,null,null,null,null,null,null,null,null,null,null,null,null,null,null,null,{"$f":"IF(B88=\"\",0,IF(B88=\"ENVIRONMENTAL SCREENING\",\"\",IF((SUM(D88:W88)=0),0,SUM(D88:W88))))","v":0},"",null,null,null,null,null,null,null,"","",null,null,null,null,null,null,null,null,null,"F.1","Community Impact Assessment",7,"ENVIRONMENTAL SCREENING"]
["","",null,null,null,null,null,null,null,null,null,null,null,null,null,null,null,null,null,null,null,null,null,{"$f":"IF(B89=\"\",0,IF((SUM(D89:W89)=0),0,SUM(D89:W89)))","v":0},"",null,null,null,null,null,null,null,"","",null,null,null,null,null,null,null,null,null,"F.1.a","Identify Community Impact Study Area",null,"Develop GIS map of available data"]
["","",null,null,null,null,null,null,null,null,null,null,null,null,null,null,null,null,null,null,null,null,null,0,"",null,null,null,null,null,null,null,"","",null,null,null,null,null,null,null,null,null,"F.1.b","Community Field Review",null,"Develop list of \"red flag\" issues"]
["","",null,null,null,null,null,null,null,null,null,null,null,null,null,null,null,null,null,null,null,null,null,0,"",null,null,null,null,null,null,null,"","",null,null,null,null,null,null,null,null,null,"F.1.c","Socioeconomic Data"]
["","",null,null,null,null,null,null,null,null,null,null,null,null,null,null,null,null,null,null,null,null,null,0,"",null,null,null,null,null,null,null,"","",null,null,null,null,null,null,null,null,null,"F.1.d","Community Facilities and Services"]
["","",null,null,null,null,null,null,null,null,null,null,null,null,null,null,null,null,null,null,null,null,null,0,"",null,null,null,null,null,null,null,"","",null,null,null,null,null,null,null,null,null,"F.1.e","Local/Regional Land Use and Development Plans"]
["","",null,null,null,null,null,null,null,null,null,null,null,null,null,null,null,null,null,null,null,null,null,0,"",null,null,null,null,null,null,null,"","",null,null,null,null,null,null,null,null,null,"F.1.f","Project Impact Assessment"]
["","",null,null,null,null,null,null,null,null,null,null,null,null,null,null,null,null,null,null,null,null,null,0,"",null,null,null,null,null,null,null,"","",null,null,null,null,null,null,null,null,null,"F.1.g","Community Impact Assessment Report"]
["","",null,null,null,null,null,null,null,null,null,null,null,null,null,null,null,null,null,null,null,null,null,{"$f":"IF(B96=\"\",0,IF(B96=\"ESTIMATE PROJECT SCENARIO BENEFITS\",\"\",IF((SUM(D96:W96)=0),0,SUM(D96:W96))))","v":0},"",null,null,null,null,null,null,null,"","",null,null,null,null,null,null,null,null,null,"F.1.h",null,8,"ESTIMATE PROJECT SCENARIO BENEFITS"]
["","",null,null,null,null,null,null,null,null,null,null,null,null,null,null,null,null,null,null,null,null,null,{"$f":"IF(B97=\"\",0,IF((SUM(D97:W97)=0),0,SUM(D97:W97)))","v":0},"",null,null,null,null,null,null,null,"","",null,null,null,null,null,null,null,null,null,"F.1.i",null,null,"Develop near-term project feasibility criteria and apply to the identified program of projects"]
["","",null,null,null,null,null,null,null,null,null,null,null,null,null,null,null,null,null,null,null,null,null,{"$f":"IF(B98=\"\",0,IF((SUM(D98:W98)=0),0,SUM(D98:W98)))","v":0},"",null,null,null,null,null,null,null,"","",null,null,null,null,null,null,null,null,null,"F.1.j",null,null,"Develop ranked list ordered according to project feasibility criteria"]
["","",null,null,null,null,null,null,null,null,null,null,null,null,null,null,null,null,null,null,null,null,null,{"$f":"IF(B99=\"\",0,IF((SUM(D99:W99)=0),0,SUM(D99:W99)))","v":0},"",null,null,null,null,null,null,null,"","",null,null,null,null,null,null,null,null,null,"F.1.k",null,null,"Perform Benefit Cost Analyses (BCA)  for up to five projects using the OMB BCA methodology"]
["","",null,null,null,null,null,null,null,null,null,null,null,null,null,null,null,null,null,null,null,null,null,{"$f":"IF(B100=\"\",0,IF((SUM(D100:W100)=0),0,SUM(D100:W100)))","v":0},"",null,null,null,null,null,null,null,"","",null,null,null,null,null,null,null,null,null,"F.1.l",null,null,"Revise per NCDOT comments"]
["","",null,null,null,null,null,null,null,null,null,null,null,null,null,null,null,null,null,null,null,null,null,{"$f":"IF(B101=\"\",0,IF(B101=\"INDIRECT AND CUMULATIVE EFFECTS SCREENING\",\"\",IF((SUM(D101:W101)=0),0,SUM(D101:W101))))","v":0},"",null,null,null,null,null,null,null,"","",null,null,null,null,null,null,null,null,null,"F.2","INDIRECT AND CUMULATIVE EFFECTS SCREENING"]
["","",null,null,null,null,null,null,null,null,null,null,null,null,null,null,null,null,null,null,null,null,null,{"$f":"IF(B102=\"\",0,IF((SUM(D102:W102)=0),0,SUM(D102:W102)))","v":0},"",null,null,null,null,null,null,null,"","",null,null,null,null,null,null,null,null,null,"F.2.a","Determine Future Land Use Study Area"]
["","",null,null,null,null,null,null,null,null,null,null,null,null,null,null,null,null,null,null,null,null,null,{"$f":"IF(B103=\"\",0,IF((SUM(D103:W103)=0),0,SUM(D103:W103)))","v":0},"",null,null,null,null,null,null,null,"","",null,null,null,null,null,null,null,null,null,"F.2.b","Determine ICE Study Time Horizon"]
["","",null,null,null,null,null,null,null,null,null,null,null,null,null,null,null,null,null,null,null,null,null,{"$f":"IF(B104=\"\",0,IF((SUM(D104:W104)=0),0,SUM(D104:W104)))","v":0},"",null,null,null,null,null,null,null,"","",null,null,null,null,null,null,null,null,null,"F.2.c","Identify Study Area Conditions and Trends"]
["","",null,null,null,null,null,null,null,null,null,null,null,null,null,null,null,null,null,null,null,null,null,{"$f":"IF(B105=\"\",0,IF((SUM(D105:W105)=0),0,SUM(D105:W105)))","v":0},"",null,null,null,null,null,null,null,"","",null,null,null,null,null,null,null,null,null,"F.2.d","Inventory of Notable Features"]
["","",null,null,null,null,null,null,null,null,null,null,null,null,null,null,null,null,null,null,null,null,null,{"$f":"IF(B106=\"\",0,IF(B106=\"GENERATE DATA NEEDED FOR SCORING IN STI\",\"\",IF((SUM(D106:W106)=0),0,SUM(D106:W106))))","v":0},"",null,null,null,null,null,null,null,"","",null,null,null,null,null,null,null,null,null,"F.2.e","Identify Impact-Causing Activities",9,"GENERATE DATA NEEDED FOR SCORING IN STI"]
["","",null,null,null,null,null,null,null,null,null,null,null,null,null,null,null,null,null,null,null,null,null,{"$f":"IF(B107=\"\",0,IF((SUM(D107:W107)=0),0,SUM(D107:W107)))","v":0},"",null,null,null,null,null,null,null,"","",null,null,null,null,null,null,null,null,null,"F.2.f","Analyze and Evaluate ICE Data",null,"Develop list of alternative solutions"]
["","",null,null,null,null,null,null,null,null,null,null,null,null,null,null,null,null,null,null,null,null,null,0,"",null,null,null,null,null,null,null,"","",null,null,null,null,null,null,null,null,null,"F.2.g","Land Use Development Scenarios",null,"Develop ranking procedure and criteria"]
["","",null,null,null,null,null,null,null,null,null,null,null,null,null,null,null,null,null,null,null,null,null,0,"",null,null,null,null,null,null,null,"","",null,null,null,null,null,null,null,null,null,"F.2.h","Indirect and Cumulative Effects Screening",null,"Adjust per NCDOT comments"]
["","",null,null,null,null,null,null,null,null,null,null,null,null,null,null,null,null,null,null,null,null,null,0,"",null,null,null,null,null,null,null,"","",null,null,null,null,null,null,null,null,null,"F.2.i",null,null,"Apply procedure/criteria to project alternatives"]
["","",null,null,null,null,null,null,null,null,null,null,null,null,null,null,null,null,null,null,null,null,null,0,"",null,null,null,null,null,null,null,"","",null,null,null,null,null,null,null,null,null,"F.2.j",null,null,"Review resulting list"]
["","",null,null,null,null,null,null,null,null,null,null,null,null,null,null,null,null,null,null,null,null,null,0,"",null,null,null,null,null,null,null,"","",null,null,null,null,null,null,null,null,null,"F.2.k",null,null,"Suggest revisions to procedure as needed"]
["","",null,null,null,null,null,null,null,null,null,null,null,null,null,null,null,null,null,null,null,null,null,0,"",null,null,null,null,null,null,null,"","",null,null,null,null,null,null,null,null,null,"F.2.l",null,null,"Revise criteria and redevelop list"]
["","",null,null,null,null,null,null,null,null,null,null,null,null,null,null,null,null,null,null,null,null,null,0,"",null,null,null,null,null,null,null,"","",null,null,null,null,null,null,null,null,null,"F.2.m",null,null,"Suggest project timing"]
["","",null,null,null,null,null,null,null,null,null,null,null,null,null,null,null,null,null,null,null,null,null,{"$f":"IF(B115=\"\",0,IF(B115=\"NOISE AND VIBRATION IMPACT ANALYSIS\",\"\",IF((SUM(D115:W115)=0),0,SUM(D115:W115))))","v":0},"",null,null,null,null,null,null,null,"","",null,null,null,null,null,null,null,null,null,"F.3.","NOISE AND VIBRATION IMPACT ANALYSIS",null,"Suggest project funding source(s)"]
["","",null,null,null,null,null,null,null,null,null,null,null,null,null,null,null,null,null,null,null,null,null,{"$f":"IF(B116=\"\",0,IF((SUM(D116:W116)=0),0,SUM(D116:W116)))","v":0},"",null,null,null,null,null,null,null,"","",null,null,null,null,null,null,null,null,null,"F.3.a","Coordination",null,"Develop opinion of cost for highest 5 ranking projects"]
["","",null,null,null,null,null,null,null,null,null,null,null,null,null,null,null,null,null,null,null,null,null,0,"",null,null,null,null,null,null,null,"","",null,null,null,null,null,null,null,null,null,null,"Initial Meeting with Rail Division",null,"Develop estimate of benefits for highest 5 ranking projects"]
["","",null,null,null,null,null,null,null,null,null,null,null,null,null,null,null,null,null,null,null,null,null,0,"",null,null,null,null,null,null,null,"","",null,null,null,null,null,null,null,null,null,"F.3.b","Data Compilation"]
["","",null,null,null,null,null,null,null,null,null,null,null,null,null,null,null,null,null,null,null,null,null,0,"",null,null,null,null,null,null,null,"","",null,null,null,null,null,null,null,null,null,null,"Project Area Reconnaissance, if applicable"]
["","",null,null,null,null,null,null,null,null,null,null,null,null,null,null,null,null,null,null,null,null,null,0,"",null,null,null,null,null,null,null,"","",null,null,null,null,null,null,null,null,null,null,"Identify noise sensitive land uses"]
["","",null,null,null,null,null,null,null,null,null,null,null,null,null,null,null,null,null,null,null,null,null,0,"",null,null,null,null,null,null,null,"","",null,null,null,null,null,null,null,null,null,null,"Prepare Noise Analysis Work Plan"]
["","",null,null,null,null,null,null,null,null,null,null,null,null,null,null,null,null,null,null,null,null,null,0,"",null,null,null,null,null,null,null,"","",null,null,null,null,null,null,null,null,null,"F.3.c","Selection of Analysis Sites"]
["","",null,null,null,null,null,null,null,null,null,null,null,null,null,null,null,null,null,null,null,null,null,{"$f":"IF(B123=\"\",0,IF(B123=\"IDENTIFY POTENTIAL PROJECTS FOR FEDERAL PROGRAMS\",\"\",IF((SUM(D123:W123)=0),0,SUM(D123:W123))))","v":0},"",null,null,null,null,null,null,null,"","",null,null,null,null,null,null,null,null,null,"F.3.d","Noise Analysis",10,"IDENTIFY POTENTIAL PROJECTS FOR FEDERAL PROGRAMS"]
["","",null,null,null,null,null,null,null,null,null,null,null,null,null,null,null,null,null,null,null,null,null,{"$f":"IF(B124=\"\",0,IF((SUM(D124:W124)=0),0,SUM(D124:W124)))","v":0},"",null,null,null,null,null,null,null,"","",null,null,null,null,null,null,null,null,null,null,"Monitoring / Fieldwork / Processing",null,"Research and prepare a technical memoranda identifying existing federal grant and loan programs for ports and rail improvements"]
["","",null,null,null,null,null,null,null,null,null,null,null,null,null,null,null,null,null,null,null,null,null,0,"",null,null,null,null,null,null,null,"","",null,null,null,null,null,null,null,null,null,null,"Traffic noise analysis",null,"Screen the program of projects for federal grant and loan program eligibility "]
["","",null,null,null,null,null,null,null,null,null,null,null,null,null,null,null,null,null,null,null,null,null,0,"",null,null,null,null,null,null,null,"","",null,null,null,null,null,null,null,null,null,null,"Rail noise analysis",null,"Recommend federal funding resources applicable to candidate projects"]
["","",null,null,null,null,null,null,null,null,null,null,null,null,null,null,null,null,null,null,null,null,null,0,"",null,null,null,null,null,null,null,"","",null,null,null,null,null,null,null,null,null,"F.3.e","Determination of Impacts"]
["","",null,null,null,null,null,null,null,null,null,null,null,null,null,null,null,null,null,null,null,null,null,0,"",null,null,null,null,null,null,null,"","",null,null,null,null,null,null,null,null,null,null,"Traffic noise analysis"]
["","",null,null,null,null,null,null,null,null,null,null,null,null,null,null,null,null,null,null,null,null,null,0,"",null,null,null,null,null,null,null,"","",null,null,null,null,null,null,null,null,null,null,"Rail noise analysis"]
["","",null,null,null,null,null,null,null,null,null,null,null,null,null,null,null,null,null,null,null,null,null,0,"",null,null,null,null,null,null,null,"","",null,null,null,null,null,null,null,null,null,null,"Traffic and rail noise impact assessment"]
["","",null,null,null,null,null,null,null,null,null,null,null,null,null,null,null,null,null,null,null,null,null,0,"",null,null,null,null,null,null,null,"","",null,null,null,null,null,null,null,null,null,"F.3.f","Noise Abatement Considerations"]
["","",null,null,null,null,null,null,null,null,null,null,null,null,null,null,null,null,null,null,null,null,null,{"$f":"IF(B132=\"\",0,IF(B132=\"PREPARE PROGRAM OF PROJECTS\",\"\",IF((SUM(D132:W132)=0),0,SUM(D132:W132))))","v":0},"",null,null,null,null,null,null,null,"","",null,null,null,null,null,null,null,null,null,null,"Noise barrier analysis",11,"PREPARE PROGRAM OF PROJECTS"]
["","",null,null,null,null,null,null,null,null,null,null,null,null,null,null,null,null,null,null,null,null,null,{"$f":"IF(B133=\"\",0,IF((SUM(D133:W133)=0),0,SUM(D133:W133)))","v":0},"",null,null,null,null,null,null,null,"","",null,null,null,null,null,null,null,null,null,null,"QA/Review",null,"Develop ranked list of projects based on benefit data"]
["","",null,null,null,null,null,null,null,null,null,null,null,null,null,null,null,null,null,null,null,null,null,0,"",null,null,null,null,null,null,null,"","",null,null,null,null,null,null,null,null,null,"F.3.g","Vibration Analysis",null,"Develop timing plan "]
["","",null,null,null,null,null,null,null,null,null,null,null,null,null,null,null,null,null,null,null,null,null,0,"",null,null,null,null,null,null,null,"","",null,null,null,null,null,null,null,null,null,"F.3.h","Noise and Vibration Technical Report",null,"Develop list of possible funding sources (limited to most likely source)"]
["","",null,null,null,null,null,null,null,null,null,null,null,null,null,null,null,null,null,null,null,null,null,0,"",null,null,null,null,null,null,null,"","",null,null,null,null,null,null,null,null,null,null,"Draft Report - text, tables, figures",null,"Calculate ranking based on criteria and or weighting data provided by NCDOT"]
["","",null,null,null,null,null,null,null,null,null,null,null,null,null,null,null,null,null,null,null,null,null,0,"",null,null,null,null,null,null,null,"","",null,null,null,null,null,null,null,null,null,null,"Draft Report - Appendices",null,"Submit draft list to NCDOT"]
["","",null,null,null,null,null,null,null,null,null,null,null,null,null,null,null,null,null,null,null,null,null,0,"",null,null,null,null,null,null,null,"","",null,null,null,null,null,null,null,null,null,null,"QA/Review",null,"Revise based on NCDOT comments"]
["","",null,null,null,null,null,null,null,null,null,null,null,null,null,null,null,null,null,null,null,null,null,0,"",null,null,null,null,null,null,null,"","",null,null,null,null,null,null,null,null,null,null,"Prepare Comment/Response Matrix"]
[{"$f":"IF(AG140=0,\"\",AG140)","v":""},"",null,null,null,null,null,null,null,null,null,null,null,null,null,null,null,null,null,null,null,null,null,0,"",null,null,null,null,null,null,null,{"$f":"IF($AA$4=\"Select Task Type\",\"\",IF($AA$4=\"Grade Separation\",AJ140,IF($AA$4=\"CEI\",AL140,IF($AA$4=\"Track Design\",AN140,IF($AA$4=\"Signal Design\",AP140,IF($AA$4=\"Environmental\",AR140,IF($AA$4=\"Planning\",AT140,\"\")))))))","v":""},"",null,null,null,null,null,null,null,null,null,null,"Prepare Final Report (includes QA/Review)"]
["","",null,null,null,null,null,null,null,null,null,null,null,null,null,null,null,null,null,null,null,null,null,0,{"$f":"IF(SUM(D141:W141)=0,\"\",((SUM(D141:W141))/$X$261))","v":""},null,null,null,null,null,null,null,"","",null,null,null,null,null,null,null,null,null,"F.3.i"]
["","",null,null,null,null,null,null,null,null,null,null,null,null,null,null,null,null,null,null,null,null,null,0,"",null,null,null,null,null,null,null,"","",null,null,null,null,null,null,null,null,null,"F.3.j"]
["","",null,null,null,null,null,null,null,null,null,null,null,null,null,null,null,null,null,null,null,null,null,0,"",null,null,null,null,null,null,null,"","",null,null,null,null,null,null,null,null,null,"F.3.k"]
["","",null,null,null,null,null,null,null,null,null,null,null,null,null,null,null,null,null,null,null,null,null,{"$f":"IF(B144=\"\",0,IF(B144=\"STAKEHOLDER INVOLVEMENT\",\"\",IF((SUM(D144:W144)=0),0,SUM(D144:W144))))","v":0},"",null,null,null,null,null,null,null,"","",null,null,null,null,null,null,null,null,null,"F.3.l",null,12,"STAKEHOLDER INVOLVEMENT"]
["","",null,null,null,null,null,null,null,null,null,null,null,null,null,null,null,null,null,null,null,null,null,{"$f":"IF(B145=\"\",0,IF((SUM(D145:W145)=0),0,SUM(D145:W145)))","v":0},"",null,null,null,null,null,null,null,"","",null,null,null,null,null,null,null,null,null,"F.3.m",null,null,"Attend 2 meetings (facilitated by others)"]
["","",null,null,null,null,null,null,null,null,null,null,null,null,null,null,null,null,null,null,null,null,null,{"$f":"IF(B146=\"\",0,IF(B146=\"AIR QUALITY ANALYSIS\",\"\",IF((SUM(D146:W146)=0),0,SUM(D146:W146))))","v":0},"",null,null,null,null,null,null,null,"","",null,null,null,null,null,null,null,null,null,"F.4","AIR QUALITY ANALYSIS",null,"Coordinate with NCDOT to discuss results of stakeholder interaction"]
["","",null,null,null,null,null,null,null,null,null,null,null,null,null,null,null,null,null,null,null,null,null,{"$f":"IF(B147=\"\",0,IF((SUM(D147:W147)=0),0,SUM(D147:W147)))","v":0},"",null,null,null,null,null,null,null,"","",null,null,null,null,null,null,null,null,null,"F.4.a","Data Compilation"]
["","",null,null,null,null,null,null,null,null,null,null,null,null,null,null,null,null,null,null,null,null,null,{"$f":"IF(B148=\"\",0,IF((SUM(D148:W148)=0),0,SUM(D148:W148)))","v":0},"",null,null,null,null,null,null,null,"","",null,null,null,null,null,null,null,null,null,"F.4.b","Attainment Status and Conformity"]
["","",null,null,null,null,null,null,null,null,null,null,null,null,null,null,null,null,null,null,null,null,null,{"$f":"IF(B149=\"\",0,IF((SUM(D149:W149)=0),0,SUM(D149:W149)))","v":0},"",null,null,null,null,null,null,null,"","",null,null,null,null,null,null,null,null,null,"F.4.c","Carbon Monoxide Air Quality Analysis"]
["","",null,null,null,null,null,null,null,null,null,null,null,null,null,null,null,null,null,null,null,null,null,{"$f":"IF(B150=\"\",0,IF((SUM(D150:W150)=0),0,SUM(D150:W150)))","v":0},"",null,null,null,null,null,null,null,"","",null,null,null,null,null,null,null,null,null,"F.4.d","Particulate Matter"]
["","",null,null,null,null,null,null,null,null,null,null,null,null,null,null,null,null,null,null,null,null,null,{"$f":"IF(B151=\"\",0,IF((SUM(D151:W151)=0),0,SUM(D151:W151)))","v":0},"",null,null,null,null,null,null,null,"","",null,null,null,null,null,null,null,null,null,"F.4.e","Mobile Source Air Toxics (MSATs)"]
["","",null,null,null,null,null,null,null,null,null,null,null,null,null,null,null,null,null,null,null,null,null,{"$f":"IF(B152=\"\",0,IF(B152=\"SCHEDULE\",\"\",IF((SUM(D152:W152)=0),0,SUM(D152:W152))))","v":0},"",null,null,null,null,null,null,null,"","",null,null,null,null,null,null,null,null,null,"F.4.f","Greenhouse Gas Emissions (GHGs)",13,"SCHEDULE"]
["","",null,null,null,null,null,null,null,null,null,null,null,null,null,null,null,null,null,null,null,null,null,{"$f":"IF(B153=\"\",0,IF((SUM(D153:W153)=0),0,SUM(D153:W153)))","v":0},"",null,null,null,null,null,null,null,"","",null,null,null,null,null,null,null,null,null,"F.4.g","Air Quality Technical Report",null,"Develop schedule of deliverable and review tasks"]
["","",null,null,null,null,null,null,null,null,null,null,null,null,null,null,null,null,null,null,null,null,null,0,"",null,null,null,null,null,null,null,"","",null,null,null,null,null,null,null,null,null,"F.4.h",null,null,"Update schedule as needed"]
["","",null,null,null,null,null,null,null,null,null,null,null,null,null,null,null,null,null,null,null,null,null,0,"",null,null,null,null,null,null,null,"","",null,null,null,null,null,null,null,null,null,"F.4.i"]
["","",null,null,null,null,null,null,null,null,null,null,null,null,null,null,null,null,null,null,null,null,null,0,"",null,null,null,null,null,null,null,"","",null,null,null,null,null,null,null,null,null,"F.4.j"]
["","",null,null,null,null,null,null,null,null,null,null,null,null,null,null,null,null,null,null,null,null,null,0,"",null,null,null,null,null,null,null,"","",null,null,null,null,null,null,null,null,null,"F.4.k"]
["","",null,null,null,null,null,null,null,null,null,null,null,null,null,null,null,null,null,null,null,null,null,0,"",null,null,null,null,null,null,null,"","",null,null,null,null,null,null,null,null,null,"F.4.l"]
["","",null,null,null,null,null,null,null,null,null,null,null,null,null,null,null,null,null,null,null,null,null,{"$f":"IF(B159=\"\",0,IF(B159=\"CULTURAL RESOURCES ANALYSIS\",\"\",IF((SUM(D159:W159)=0),0,SUM(D159:W159))))","v":0},"",null,null,null,null,null,null,null,"","",null,null,null,null,null,null,null,null,null,"F.5","CULTURAL RESOURCES ANALYSIS"]
["","",null,null,null,null,null,null,null,null,null,null,null,null,null,null,null,null,null,null,null,null,null,{"$f":"IF(B160=\"\",0,IF(B160=\"REPORT\",\"\",IF((SUM(D160:W160)=0),0,SUM(D160:W160))))","v":0},"",null,null,null,null,null,null,null,"","",null,null,null,null,null,null,null,null,null,"F.5.a","Phase 1 Historic Architectural Analysis",14,"REPORT"]
["","",null,null,null,null,null,null,null,null,null,null,null,null,null,null,null,null,null,null,null,null,null,{"$f":"IF(B161=\"\",0,IF(B161=\"ARCHAEOLOGICAL ANALYSIS\",\"\",IF((SUM(D161:W161)=0),0,SUM(D161:W161))))","v":0},"",null,null,null,null,null,null,null,"","",null,null,null,null,null,null,null,null,null,"F.5.b","ARCHAEOLOGICAL ANALYSIS",null,"Prepare draft report (electronic version only) for NCDOT review"]
["","",null,null,null,null,null,null,null,null,null,null,null,null,null,null,null,null,null,null,null,null,null,{"$f":"IF(B162=\"\",0,IF((SUM(D162:W162)=0),0,SUM(D162:W162)))","v":0},"",null,null,null,null,null,null,null,"","",null,null,null,null,null,null,null,null,null,null,"Conduct Background Research of information from NC OSA/ SHPO",null,"Revise per NCDOT comments"]
["","",null,null,null,null,null,null,null,null,null,null,null,null,null,null,null,null,null,null,null,null,null,0,"",null,null,null,null,null,null,null,"","",null,null,null,null,null,null,null,null,null,null,"Collect previously recorded sites and surveys in study area",null,"Prepare final report"]
["","",null,null,null,null,null,null,null,null,null,null,null,null,null,null,null,null,null,null,null,null,null,0,"",null,null,null,null,null,null,null,"","",null,null,null,null,null,null,null,null,null,null,"Prepare Archaeological Overview Report"]
["","",null,null,null,null,null,null,null,null,null,null,null,null,null,null,null,null,null,null,null,null,null,0,"",null,null,null,null,null,null,null,"","",null,null,null,null,null,null,null,null,null,null," known archaeological resources in alternatives or study area"]
["","",null,null,null,null,null,null,null,null,null,null,null,null,null,null,null,null,null,null,null,null,null,0,"",null,null,null,null,null,null,null,"","",null,null,null,null,null,null,null,null,null,null," sites of value for reasons other than recoverable information"]
["","",null,null,null,null,null,null,null,null,null,null,null,null,null,null,null,null,null,null,null,null,null,0,"",null,null,null,null,null,null,null,"","",null,null,null,null,null,null,null,null,null,null," assessment of potential for archaeological sites in areas not previously surveyed"]
["","",null,null,null,null,null,null,null,null,null,null,null,null,null,null,null,null,null,null,null,null,null,0,"",null,null,null,null,null,null,null,"","",null,null,null,null,null,null,null,null,null,null," recommendations regarding need for archaeological survey"]
["","",null,null,null,null,null,null,null,null,null,null,null,null,null,null,null,null,null,null,null,null,null,{"$f":"IF(B169=\"\",0,IF(B169=\"PROJECT COORDINATION\",\"\",IF((SUM(D169:W169)=0),0,SUM(D169:W169))))","v":0},"",null,null,null,null,null,null,null,"","",null,null,null,null,null,null,null,null,null,null,"Graphics showing alternatives, previously studied areas, and known sites",15,"PROJECT COORDINATION"]
["","",null,null,null,null,null,null,null,null,null,null,null,null,null,null,null,null,null,null,null,null,null,{"$f":"IF(B170=\"\",0,IF((SUM(D170:W170)=0),0,SUM(D170:W170)))","v":0},"",null,null,null,null,null,null,null,"","",null,null,null,null,null,null,null,null,null,null,"Submit Draft Archaeological Overview Report",null,"Coordinate internally with staff and subconsultants"]
["","",null,null,null,null,null,null,null,null,null,null,null,null,null,null,null,null,null,null,null,null,null,0,"",null,null,null,null,null,null,null,"","",null,null,null,null,null,null,null,null,null,null,"Address NCDOT comments on Draft Archaeological Overview Report"]
["","",null,null,null,null,null,null,null,null,null,null,null,null,null,null,null,null,null,null,null,null,null,0,"",null,null,null,null,null,null,null,"","",null,null,null,null,null,null,null,null,null,null,"Submit Final Archaeological Overview Report"]
["","",null,null,null,null,null,null,null,null,null,null,null,null,null,null,null,null,null,null,null,null,null,0,"",null,null,null,null,null,null,null,"","",null,null,null,null,null,null,null,null,null,null,"Meeting attendance and coordination"]
["","",null,null,null,null,null,null,null,null,null,null,null,null,null,null,null,null,null,null,null,null,null,0,"",null,null,null,null,null,null,null,"","",null,null,null,null,null,null,null,null,null,"F.5.c"]
["","",null,null,null,null,null,null,null,null,null,null,null,null,null,null,null,null,null,null,null,null,null,0,"",null,null,null,null,null,null,null,"","",null,null,null,null,null,null,null,null,null,"F.5.d"]
["","",null,null,null,null,null,null,null,null,null,null,null,null,null,null,null,null,null,null,null,null,null,{"$f":"IF(B176=\"\",0,IF(B176=\"TRUCK ALTERNATIVE ROUTE ANALYSIS\",\"\",IF((SUM(D176:W176)=0),0,SUM(D176:W176))))","v":0},"",null,null,null,null,null,null,null,"","",null,null,null,null,null,null,null,null,null,"F.5.e",null,16,"TRUCK ALTERNATIVE ROUTE ANALYSIS"]
["","",null,null,null,null,null,null,null,null,null,null,null,null,null,null,null,null,null,null,null,null,null,{"$f":"IF(B177=\"\",0,IF((SUM(D177:W177)=0),0,SUM(D177:W177)))","v":0},"",null,null,null,null,null,null,null,"","",null,null,null,null,null,null,null,null,null,"F.5.f",null,null,"Truck Alternative Route Analysis (XX to the Port)"]
["","",null,null,null,null,null,null,null,null,null,null,null,null,null,null,null,null,null,null,null,null,null,{"$f":"IF(B178=\"\",0,IF((SUM(D178:W178)=0),0,SUM(D178:W178)))","v":0},"",null,null,null,null,null,null,null,"","",null,null,null,null,null,null,null,null,null,"F.5.g"]
["","",null,null,null,null,null,null,null,null,null,null,null,null,null,null,null,null,null,null,null,null,null,{"$f":"IF(B179=\"\",0,IF(B179=\"OTHER PHYSICAL FEATURES ANALYSIS\",\"\",IF((SUM(D179:W179)=0),0,SUM(D179:W179))))","v":0},"",null,null,null,null,null,null,null,"","",null,null,null,null,null,null,null,null,null,"G","OTHER PHYSICAL FEATURES ANALYSIS"]
["","",null,null,null,null,null,null,null,null,null,null,null,null,null,null,null,null,null,null,null,null,null,{"$f":"IF(B180=\"\",0,IF((SUM(D180:W180)=0),0,SUM(D180:W180)))","v":0},"",null,null,null,null,null,null,null,"","",null,null,null,null,null,null,null,null,null,"G.1","Identify Potential Floodplain and Floodway Impacts"]
["","",null,null,null,null,null,null,null,null,null,null,null,null,null,null,null,null,null,null,null,null,null,{"$f":"IF(B181=\"\",0,IF((SUM(D181:W181)=0),0,SUM(D181:W181)))","v":0},"",null,null,null,null,null,null,null,"","",null,null,null,null,null,null,null,null,null,"G.2","Farmland Assessment"]
["","",null,null,null,null,null,null,null,null,null,null,null,null,null,null,null,null,null,null,null,null,null,{"$f":"IF(B182=\"\",0,IF(B182=\"FEASIBILITY STUDY\",\"\",IF((SUM(D182:W182)=0),0,SUM(D182:W182))))","v":0},"",null,null,null,null,null,null,null,"","",null,null,null,null,null,null,null,null,null,"G.3","Hazardous Materials Assessment",17,"FEASIBILITY STUDY"]
["","",null,null,null,null,null,null,null,null,null,null,null,null,null,null,null,null,null,null,null,null,null,{"$f":"IF(B183=\"\",0,IF((SUM(D183:W183)=0),0,SUM(D183:W183)))","v":0},"",null,null,null,null,null,null,null,"","",null,null,null,null,null,null,null,null,null,"G.4","Visual Impact Analysis"]
["","",null,null,null,null,null,null,null,null,null,null,null,null,null,null,null,null,null,null,null,null,null,0,"",null,null,null,null,null,null,null,"","",null,null,null,null,null,null,null,null,null,"G.5","Identify Potential Public Utility Impacts"]
["","",null,null,null,null,null,null,null,null,null,null,null,null,null,null,null,null,null,null,null,null,null,0,"",null,null,null,null,null,null,null,"","",null,null,null,null,null,null,null,null,null,"G.6"]
["","",null,null,null,null,null,null,null,null,null,null,null,null,null,null,null,null,null,null,null,null,null,0,"",null,null,null,null,null,null,null,"","",null,null,null,null,null,null,null,null,null,"G.7"]
["","",null,null,null,null,null,null,null,null,null,null,null,null,null,null,null,null,null,null,null,null,null,0,"",null,null,null,null,null,null,null,"","",null,null,null,null,null,null,null,null,null,"G.8"]
["","",null,null,null,null,null,null,null,null,null,null,null,null,null,null,null,null,null,null,null,null,null,0,"",null,null,null,null,null,null,null,"","",null,null,null,null,null,null,null,null,null,"G.9"]
["","",null,null,null,null,null,null,null,null,null,null,null,null,null,null,null,null,null,null,null,null,null,0,"",null,null,null,null,null,null,null,"","",null,null,null,null,null,null,null,null,null,"G.10"]
["","",null,null,null,null,null,null,null,null,null,null,null,null,null,null,null,null,null,null,null,null,null,{"$f":"IF(B190=\"\",0,IF(B190=\"SECTION 4(F) AND SECTION 6(F)\",\"\",IF((SUM(D190:W190)=0),0,SUM(D190:W190))))","v":0},"",null,null,null,null,null,null,null,"","",null,null,null,null,null,null,null,null,null,"H","SECTION 4(F) AND SECTION 6(F)"]
["","",null,null,null,null,null,null,null,null,null,null,null,null,null,null,null,null,null,null,null,null,null,{"$f":"IF(B191=\"\",0,IF((SUM(D191:W191)=0),0,SUM(D191:W191)))","v":0},"",null,null,null,null,null,null,null,"","",null,null,null,null,null,null,null,null,null,"H.1"]
["","",null,null,null,null,null,null,null,null,null,null,null,null,null,null,null,null,null,null,null,null,null,{"$f":"IF(B192=\"\",0,IF((SUM(D192:W192)=0),0,SUM(D192:W192)))","v":0},"",null,null,null,null,null,null,null,"","",null,null,null,null,null,null,null,null,null,"H.2"]
["","",null,null,null,null,null,null,null,null,null,null,null,null,null,null,null,null,null,null,null,null,null,{"$f":"IF(B193=\"\",0,IF((SUM(D193:W193)=0),0,SUM(D193:W193)))","v":0},"",null,null,null,null,null,null,null,"","",null,null,null,null,null,null,null,null,null,"H.3"]
["","",null,null,null,null,null,null,null,null,null,null,null,null,null,null,null,null,null,null,null,null,null,{"$f":"IF(B194=\"\",0,IF((SUM(D194:W194)=0),0,SUM(D194:W194)))","v":0},"",null,null,null,null,null,null,null,"","",null,null,null,null,null,null,null,null,null,"H.4"]
["","",null,null,null,null,null,null,null,null,null,null,null,null,null,null,null,null,null,null,null,null,null,{"$f":"IF(B195=\"\",0,IF((SUM(D195:W195)=0),0,SUM(D195:W195)))","v":0},"",null,null,null,null,null,null,null,"","",null,null,null,null,null,null,null,null,null,"H.5"]
["","",null,null,null,null,null,null,null,null,null,null,null,null,null,null,null,null,null,null,null,null,null,{"$f":"IF(B196=\"\",0,IF(B196=\"DRAFT ENVIRONMENTAL DOCUMENT\",\"\",IF((SUM(D196:W196)=0),0,SUM(D196:W196))))","v":0},"",null,null,null,null,null,null,null,"","",null,null,null,null,null,null,null,null,null,"I","DRAFT ENVIRONMENTAL DOCUMENT"]
["","",null,null,null,null,null,null,null,null,null,null,null,null,null,null,null,null,null,null,null,null,null,{"$f":"IF(B197=\"\",0,IF((SUM(D197:W197)=0),0,SUM(D197:W197)))","v":0},"",null,null,null,null,null,null,null,"","",null,null,null,null,null,null,null,null,null,"I.1","Purpose and Need"]
["","",null,null,null,null,null,null,null,null,null,null,null,null,null,null,null,null,null,null,null,null,null,0,"",null,null,null,null,null,null,null,"","",null,null,null,null,null,null,null,null,null,"I.2","Alternatives Considered"]
["","",null,null,null,null,null,null,null,null,null,null,null,null,null,null,null,null,null,null,null,null,null,0,"",null,null,null,null,null,null,null,"","",null,null,null,null,null,null,null,null,null,"I.3","Human Environment"]
["","",null,null,null,null,null,null,null,null,null,null,null,null,null,null,null,null,null,null,null,null,null,0,"",null,null,null,null,null,null,null,"","",null,null,null,null,null,null,null,null,null,"I.4","Physical Environment"]
["","",null,null,null,null,null,null,null,null,null,null,null,null,null,null,null,null,null,null,null,null,null,0,"",null,null,null,null,null,null,null,"","",null,null,null,null,null,null,null,null,null,"I.5","Cultural Resources"]
["","",null,null,null,null,null,null,null,null,null,null,null,null,null,null,null,null,null,null,null,null,null,0,"",null,null,null,null,null,null,null,"","",null,null,null,null,null,null,null,null,null,"I.6","Natural Resources"]
["","",null,null,null,null,null,null,null,null,null,null,null,null,null,null,null,null,null,null,null,null,null,0,"",null,null,null,null,null,null,null,"","",null,null,null,null,null,null,null,null,null,"I.7","Environmental Impacts"]
[{"$f":"IF(AG204=0,\"\",AG204)","v":""},"",null,null,null,null,null,null,null,null,null,null,null,null,null,null,null,null,null,null,null,null,null,0,"",null,null,null,null,null,null,null,{"$f":"IF($AA$4=\"Select Task Type\",\"\",IF($AA$4=\"Grade Separation\",AJ204,IF($AA$4=\"CEI\",AL204,IF($AA$4=\"Track Design\",AN204,IF($AA$4=\"Signal Design\",AP204,IF($AA$4=\"Environmental\",AR204,IF($AA$4=\"Planning\",AT204,\"\")))))))","v":""},"",null,null,null,null,null,null,null,null,null,"I.8","Indirect and Cumulative Effects"]
["","",null,null,null,null,null,null,null,null,null,null,null,null,null,null,null,null,null,null,null,null,null,0,{"$f":"IF(SUM(D205:W205)=0,\"\",((SUM(D205:W205))/$X$261))","v":""},null,null,null,null,null,null,null,"","",null,null,null,null,null,null,null,null,null,"I.9","Other Impact Considerations"]
["","",null,null,null,null,null,null,null,null,null,null,null,null,null,null,null,null,null,null,null,null,null,0,"",null,null,null,null,null,null,null,"","",null,null,null,null,null,null,null,null,null,"I.10","Public Involvement ad Agency Coordination"]
["","",null,null,null,null,null,null,null,null,null,null,null,null,null,null,null,null,null,null,null,null,null,0,"",null,null,null,null,null,null,null,"","",null,null,null,null,null,null,null,null,null,"I.11","Compile Draft EA & Final EA"]
["","",null,null,null,null,null,null,null,null,null,null,null,null,null,null,null,null,null,null,null,null,null,0,"",null,null,null,null,null,null,null,"","",null,null,null,null,null,null,null,null,null,"I.12","Review and Distribution of EA"]
["","",null,null,null,null,null,null,null,null,null,null,null,null,null,null,null,null,null,null,null,null,null,0,"",null,null,null,null,null,null,null,"","",null,null,null,null,null,null,null,null,null,"I.13"]
["","",null,null,null,null,null,null,null,null,null,null,null,null,null,null,null,null,null,null,null,null,null,0,"",null,null,null,null,null,null,null,"","",null,null,null,null,null,null,null,null,null,"I.14"]
["","",null,null,null,null,null,null,null,null,null,null,null,null,null,null,null,null,null,null,null,null,null,0,"",null,null,null,null,null,null,null,"","",null,null,null,null,null,null,null,null,null,"I.15"]
["","",null,null,null,null,null,null,null,null,null,null,null,null,null,null,null,null,null,null,null,null,null,0,"",null,null,null,null,null,null,null,"","",null,null,null,null,null,null,null,null,null,"I.16"]
["","",null,null,null,null,null,null,null,null,null,null,null,null,null,null,null,null,null,null,null,null,null,0,"",null,null,null,null,null,null,null,"","",null,null,null,null,null,null,null,null,null,"I.17"]
["","",null,null,null,null,null,null,null,null,null,null,null,null,null,null,null,null,null,null,null,null,null,{"$f":"IF(B214=\"\",0,IF(B214=\"FINAL ENVIRONMENTAL DOCUMENT\",\"\",IF((SUM(D214:W214)=0),0,SUM(D214:W214))))","v":0},"",null,null,null,null,null,null,null,"","",null,null,null,null,null,null,null,null,null,"J","FINAL ENVIRONMENTAL DOCUMENT"]
["","",null,null,null,null,null,null,null,null,null,null,null,null,null,null,null,null,null,null,null,null,null,{"$f":"IF(B215=\"\",0,IF((SUM(D215:W215)=0),0,SUM(D215:W215)))","v":0},"",null,null,null,null,null,null,null,"","",null,null,null,null,null,null,null,null,null,"J.1","Compile FONSI"]
["","",null,null,null,null,null,null,null,null,null,null,null,null,null,null,null,null,null,null,null,null,null,0,"",null,null,null,null,null,null,null,"","",null,null,null,null,null,null,null,null,null,"J.2","Alternative Selection"]
["","",null,null,null,null,null,null,null,null,null,null,null,null,null,null,null,null,null,null,null,null,null,0,"",null,null,null,null,null,null,null,"","",null,null,null,null,null,null,null,null,null,"J.3","Prepare Draft & Final Finding of No Significant Impact (FONSI)"]
["","",null,null,null,null,null,null,null,null,null,null,null,null,null,null,null,null,null,null,null,null,null,0,"",null,null,null,null,null,null,null,"","",null,null,null,null,null,null,null,null,null,"J.4"]
["","",null,null,null,null,null,null,null,null,null,null,null,null,null,null,null,null,null,null,null,null,null,0,"",null,null,null,null,null,null,null,"","",null,null,null,null,null,null,null,null,null,"J.5"]
["","",null,null,null,null,null,null,null,null,null,null,null,null,null,null,null,null,null,null,null,null,null,0,"",null,null,null,null,null,null,null,"","",null,null,null,null,null,null,null,null,null,"J.6"]
["","",null,null,null,null,null,null,null,null,null,null,null,null,null,null,null,null,null,null,null,null,null,0,"",null,null,null,null,null,null,null,"","",null,null,null,null,null,null,null,null,null,"J.7"]
["","",null,null,null,null,null,null,null,null,null,null,null,null,null,null,null,null,null,null,null,null,null,0,"",null,null,null,null,null,null,null,"","",null,null,null,null,null,null,null,null,null,"J.8"]
["","",null,null,null,null,null,null,null,null,null,null,null,null,null,null,null,null,null,null,null,null,null,{"$f":"IF(B223=\"\",0,IF(B223=\"PUBLIC INVOLVEMENT\",\"\",IF((SUM(D223:W223)=0),0,SUM(D223:W223))))","v":0},"",null,null,null,null,null,null,null,"","",null,null,null,null,null,null,null,null,null,"K","PUBLIC INVOLVEMENT"]
["","",null,null,null,null,null,null,null,null,null,null,null,null,null,null,null,null,null,null,null,null,null,{"$f":"IF(B224=\"\",0,IF((SUM(D224:W224)=0),0,SUM(D224:W224)))","v":0},"",null,null,null,null,null,null,null,"","",null,null,null,null,null,null,null,null,null,"K.1","Informal Stakeholder Coordination"]
["","",null,null,null,null,null,null,null,null,null,null,null,null,null,null,null,null,null,null,null,null,null,0,"",null,null,null,null,null,null,null,"","",null,null,null,null,null,null,null,null,null,"K.2","Public Information Meeting"]
["","",null,null,null,null,null,null,null,null,null,null,null,null,null,null,null,null,null,null,null,null,null,0,"",null,null,null,null,null,null,null,"","",null,null,null,null,null,null,null,null,null,"K.3","Public Hearing"]
["","",null,null,null,null,null,null,null,null,null,null,null,null,null,null,null,null,null,null,null,null,null,0,"",null,null,null,null,null,null,null,"","",null,null,null,null,null,null,null,null,null,"K.4","Local Offical Information Meeting"]
["","",null,null,null,null,null,null,null,null,null,null,null,null,null,null,null,null,null,null,null,null,null,0,"",null,null,null,null,null,null,null,"","",null,null,null,null,null,null,null,null,null,"K.5","Mailer"]
["","",null,null,null,null,null,null,null,null,null,null,null,null,null,null,null,null,null,null,null,null,null,0,"",null,null,null,null,null,null,null,"","",null,null,null,null,null,null,null,null,null,"K.6","Meeting Maps"]
["","",null,null,null,null,null,null,null,null,null,null,null,null,null,null,null,null,null,null,null,null,null,0,"",null,null,null,null,null,null,null,"","",null,null,null,null,null,null,null,null,null,"K.7","Meeting Displays"]
["","",null,null,null,null,null,null,null,null,null,null,null,null,null,null,null,null,null,null,null,null,null,0,"",null,null,null,null,null,null,null,"","",null,null,null,null,null,null,null,null,null,"K.8"]
["","",null,null,null,null,null,null,null,null,null,null,null,null,null,null,null,null,null,null,null,null,null,0,"",null,null,null,null,null,null,null,"","",null,null,null,null,null,null,null,null,null,"K.9"]
["","",null,null,null,null,null,null,null,null,null,null,null,null,null,null,null,null,null,null,null,null,null,0,"",null,null,null,null,null,null,null,"","",null,null,null,null,null,null,null,null,null,"K.10"]
["","",null,null,null,null,null,null,null,null,null,null,null,null,null,null,null,null,null,null,null,null,null,0,"",null,null,null,null,null,null,null,"","",null,null,null,null,null,null,null,null,null,"K.11"]
["","",null,null,null,null,null,null,null,null,null,null,null,null,null,null,null,null,null,null,null,null,null,0,"",null,null,null,null,null,null,null,"","",null,null,null,null,null,null,null,null,null,"K.12"]
["","",null,null,null,null,null,null,null,null,null,null,null,null,null,null,null,null,null,null,null,null,null,{"$f":"IF(B236=\"\",0,IF(B236=\"PROJECT COORDINATION AND MANAGEMENT\",\"\",IF((SUM(D236:W236)=0),0,SUM(D236:W236))))","v":0},"",null,null,null,null,null,null,null,"","",null,null,null,null,null,null,null,null,null,"L","PROJECT COORDINATION AND MANAGEMENT"]
["","",null,null,null,null,null,null,null,null,null,null,null,null,null,null,null,null,null,null,null,null,null,{"$f":"IF(B237=\"\",0,IF((SUM(D237:W237)=0),0,SUM(D237:W237)))","v":0},"",null,null,null,null,null,null,null,"","",null,null,null,null,null,null,null,null,null,"L.1","Project Schedule"]
["","",null,null,null,null,null,null,null,null,null,null,null,null,null,null,null,null,null,null,null,null,null,0,"",null,null,null,null,null,null,null,"","",null,null,null,null,null,null,null,null,null,"L.2","Coordination with NCDOT"]
["","",null,null,null,null,null,null,null,null,null,null,null,null,null,null,null,null,null,null,null,null,null,0,"",null,null,null,null,null,null,null,"","",null,null,null,null,null,null,null,null,null,"L.3","General Coordination"]
["","",null,null,null,null,null,null,null,null,null,null,null,null,null,null,null,null,null,null,null,null,null,0,"",null,null,null,null,null,null,null,"","",null,null,null,null,null,null,null,null,null,"L.4"]
["","",null,null,null,null,null,null,null,null,null,null,null,null,null,null,null,null,null,null,null,null,null,0,"",null,null,null,null,null,null,null,"","",null,null,null,null,null,null,null,null,null,"L.5"]
["","",null,null,null,null,null,null,null,null,null,null,null,null,null,null,null,null,null,null,null,null,null,0,"",null,null,null,null,null,null,null,"","",null,null,null,null,null,null,null,null,null,"L.6"]
["","",null,null,null,null,null,null,null,null,null,null,null,null,null,null,null,null,null,null,null,null,null,0,"",null,null,null,null,null,null,null,"","",null,null,null,null,null,null,null,null,null,"L.7"]
["","",null,null,null,null,null,null,null,null,null,null,null,null,null,null,null,null,null,null,null,null,null,0,"",null,null,null,null,null,null,null,"","",null,null,null,null,null,null,null,null,null,"L.8"]
["","",null,null,null,null,null,null,null,null,null,null,null,null,null,null,null,null,null,null,null,null,null,0,"",null,null,null,null,null,null,null,"",""]
["","",null,null,null,null,null,null,null,null,null,null,null,null,null,null,null,null,null,null,null,null,null,0,"",null,null,null,null,null,null,null,"",""]
["","",null,null,null,null,null,null,null,null,null,null,null,null,null,null,null,null,null,null,null,null,null,0,"",null,null,null,null,null,null,null,"",""]
["","",null,null,null,null,null,null,null,null,null,null,null,null,null,null,null,null,null,null,null,null,null,0,"",null,null,null,null,null,null,null,"",""]
["","",null,null,null,null,null,null,null,null,null,null,null,null,null,null,null,null,null,null,null,null,null,0,"",null,null,null,null,null,null,null,"",""]
["","",null,null,null,null,null,null,null,null,null,null,null,null,null,null,null,null,null,null,null,null,null,0,"",null,null,null,null,null,null,null,"",""]
["","",null,null,null,null,null,null,null,null,null,null,null,null,null,null,null,null,null,null,null,null,null,0,"",null,null,null,null,null,null,null,"",""]
["","",null,null,null,null,null,null,null,null,null,null,null,null,null,null,null,null,null,null,null,null,null,0,"",null,null,null,null,null,null,null,"",""]
["","",null,null,null,null,null,null,null,null,null,null,null,null,null,null,null,null,null,null,null,null,null,0,"",null,null,null,null,null,null,null,"",""]
["","",null,null,null,null,null,null,null,null,null,null,null,null,null,null,null,null,null,null,null,null,null,0,"",null,null,null,null,null,null,null,"",""]
["","",null,null,null,null,null,null,null,null,null,null,null,null,null,null,null,null,null,null,null,null,null,0,"",null,null,null,null,null,null,null,"",""]
["","",null,null,null,null,null,null,null,null,null,null,null,null,null,null,null,null,null,null,null,null,null,0,"",null,null,null,null,null,null,null,"",""]
["","",null,null,null,null,null,null,null,null,null,null,null,null,null,null,null,null,null,null,null,null,null,0,"",null,null,null,null,null,null,null,"",""]
["","",null,null,null,null,null,null,null,null,null,null,null,null,null,null,null,null,null,null,null,null,null,0,"",null,null,null,null,null,null,null,"",""]
["","",null,null,null,null,null,null,null,null,null,null,null,null,null,null,null,null,null,null,null,null,null,0,{"$f":"IF(SUM(D259:W259)=0,\"\",((SUM(D259:W259))/$X$261))","v":""},null,null,null,null,null,null,null,"",""]
["","",null,null,null,null,null,null,null,null,null,null,null,null,null,null,null,null,null,null,null,null,null,0,{"$f":"IF(SUM(D260:W260)=0,\"\",((SUM(D260:W260))/$X$261))","v":""},null,null,null,null,null,null,null,"",""]
[null,"TOTAL WORKHOURS/CATEGORY:",null,{"$f":"SUM(D11:D260)","v":0},0,0,0,0,0,0,0,0,0,0,0,0,0,0,0,0,0,0,0,{"$f":"SUM(D261:W261)","v":0},{"$f":"SUM(Y11:Y260)","v":0},{"$f":"SUM(Z11:Z260)","v":0}]
[null,"TOTAL WORKDAYS/CATEGORY:",null,{"$f":"D261/8","v":0},{"$f":"E261/8","v":0},0,0,0,0,0,0,0,0,0,0,0,0,0,0,0,0,0,0]
[null,"HOURLY SALARY RATE:",null,{"$f":"'PEF CLASSIFICATION SHEET'!E1123","v":0},{"$f":"'PEF CLASSIFICATION SHEET'!E1124","v":0},{"$f":"'PEF CLASSIFICATION SHEET'!E1125","v":0},{"$f":"'PEF CLASSIFICATION SHEET'!E1126","v":0},{"$f":"'PEF CLASSIFICATION SHEET'!E1127","v":0},{"$f":"'PEF CLASSIFICATION SHEET'!E1128","v":0},{"$f":"'PEF CLASSIFICATION SHEET'!E1129","v":0},{"$f":"'PEF CLASSIFICATION SHEET'!E1130","v":0},{"$f":"'PEF CLASSIFICATION SHEET'!E1131","v":0},{"$f":"'PEF CLASSIFICATION SHEET'!E1132","v":0},{"$f":"'PEF CLASSIFICATION SHEET'!E1133","v":0},{"$f":"'PEF CLASSIFICATION SHEET'!E1134","v":0},{"$f":"'PEF CLASSIFICATION SHEET'!E1135","v":0},{"$f":"'PEF CLASSIFICATION SHEET'!E1136","v":0},{"$f":"'PEF CLASSIFICATION SHEET'!E1137","v":0},{"$f":"'PEF CLASSIFICATION SHEET'!E1138","v":0},{"$f":"'PEF CLASSIFICATION SHEET'!E1139","v":0},{"$f":"'PEF CLASSIFICATION SHEET'!E1140","v":0},{"$f":"'PEF CLASSIFICATION SHEET'!E1141","v":0},{"$f":"'PEF CLASSIFICATION SHEET'!E1142","v":0}]
[null,"RATES PER DAY:",null,{"$f":"D263*8","v":0},0,0,0,0,0,0,0,0,0,0,0,0,0,0,0,0,0,0,0]
[null,"PAYROLL BURDEN:",null,{"$f":"SUM(D261*D263)","v":0},{"$f":"SUM(E261*E263)","v":0},0,0,0,0,0,0,0,0,0,0,0,0,0,0,0,0,0,0]
[null,"TOTAL WORKDAYS:",null,{"$f":"SUM(D262:W262)","v":0}]
[null,"TOTAL PAYROLL BURDEN:",null,{"$f":"SUM(D265:W265)","v":0}]
[null,"AVERAGE COST PER HOUR:",null,{"$f":"SUM(D267/(D266*8))","v":{"$error":"#DIV/0!"}}]
[null,"GENERAL OVERHEAD:",{"$f":"RAIL.SUB2_CONSULTANT_OVERHEAD","v":0},{"$f":"SUM(D267*C269)","v":0}]
[null,"SUBTOTAL:",null,{"$f":"SUM(D267+D269)","v":0}]
[null,"COMPARATIVE FEE:",{"$f":"RAIL.SUB2_CONSULTANT_FEE","v":0.09},{"$f":"SUM(D270*C271)","v":0}]
[null,"FACILITIES COST OF CAPITAL:",{"$f":"RAIL.SUB2_COSTofCAPITAL","v":0},{"$f":"SUM(D267*C272)","v":0}]
[null,"TOTAL:",null,{"$f":"SUM(D270:D272)","v":0}]
[null,"DIRECT EXPENSES:",null,{"$f":"RAIL.SUB2_DIRECT_NONSALARY_TOTAL","v":0}]
[null,"RAIL GRAND TOTAL:",null,{"$f":"SUM(D273:D274)","v":0}]

{"sheet":"Rail-Exp-Sub2","index":142,"n_rows":46,"n_cols":8,"rows_kept":46,"cut":false,"hidden":true,"merged":[[0,0,0,7],[1,3,1,7]]}
["RAIL--DIRECT EXPENSES - SUBCONSULTANT 2"]
["TIP NUMBER",{"$f":"TIP.NUMBER","v":0},"FIRM:",{"$f":"'Rail-Sub2'!G3","v":"CONSULTANT NAME"}]
[]
["GENERAL PROJECT WORK:","ITEM","QTY","DESCRIPTION",null,null,"UNIT COST "]
[null,"Travel:"]
[null,"Sedan",0,"Trip(s) @",0,"miles @",{"$f":"SEDAN","v":0.7},{"$f":"SUM(C6*E6*G6)","v":0}]
[null,"Carry All",0,"Trip(s) @",0,"miles @",{"$f":"CARRYALL","v":0.72},{"$f":"SUM(C7*E7*G7)","v":0}]
[null,"Car Rental",null,null,0,"days @ ",{"$f":"CARRENTAL","v":50},{"$f":"SUM(E8*G8)","v":0}]
[null,"Gas for Rental",null,null,0,"miles @",{"$f":"GASforRENTAL","v":0.2},{"$f":"SUM(E9*G9)","v":0}]
[null,"Parking:",0,"Trip(s) @",null,null,{"$f":"PARKING","v":3},{"$f":"SUM(C10*G10)","v":0}]
[null,"Per Diem:",0,"Breakfast",null,null,{"$f":"BREAKFAST","v":10.1},{"$f":"SUM(C11*G11)","v":0}]
[null,null,0,"Lunch",null,null,{"$f":"LUNCH","v":13.3},0]
[null,null,0,"Dinner",null,null,{"$f":"DINNER","v":23.1},0]
[null,null,0,"Lodging",null,null,{"$f":"LODGING_LUMP.SUM","v":95},0]
[null,"Reproduction:",0,"8 1/2 x 11 B & W Copies @",null,null,{"$f":"LETTERCOPIES","v":0.14000000000000001},0]
[null,null,0,"11 x 17 B & W Copies @",null,null,{"$f":"LEDGERCOPIES","v":0.34},0]
[null,null,0,"8 1/2 x 11 Color Copies @",null,null,{"$f":"LETTERCOLOR","v":0.83},0]
[null,null,0,"11 x 17 Color Copies @",null,null,{"$f":"LEDGERCOLOR","v":1.66},0]
[null,null,0,"SQ. FT. of Plots (B & W or Color)",null,"<65 SQ. FT.*",{"$f":"ROLLPLOTSshort","v":6.5},0]
[null,null,0,"SQ. FT. of Plots (B & W or Color)",null,">65 SQ. FT.*",{"$f":"ROLLPLOTSlong","v":1.5},0]
[null,null,0,"Cover(s) @",null,null,{"$f":"COVERS","v":0.5},0]
[null,null,0,"Binder(s) @",null,null,{"$f":"BINDERS","v":0.5},0]
[null,null,0,"Blueprints - 8 1/2 x 11 @",null,null,{"$f":"BLUEPRINTSLETTER","v":0.35},0]
[null,null,0,"Blueprints - 42 x 72 @",null,null,{"$f":"BLUEPRINTSLARGE","v":1.3},0]
[null,"Film and Developing:",0,"Roll(s) @",null,null,{"$f":"FILM","v":20},0]
[null,null,null,null,null,"Subtotal",null,{"$f":"SUM(H6:H25)","v":0}]
["MAPS AND DOCUMENTS:","ITEM","QTY","DESCRIPTION",null,null,"UNIT COST "]
[null,"County Tax Maps:",0,"Map(s) @",null,null,{"$f":"County_Tax_Maps","v":7},{"$f":"SUM(C28*G28)","v":0}]
[null,"USGS Maps:",0,"Map(s) @",null,null,{"$f":"USGSMAPS","v":7},{"$f":"SUM(C29*G29)","v":0}]
[null,null,null,null,null,"Subtotal",null,{"$f":"SUM(H28:H29)","v":0}]
["Miscellaneous Other","ITEM","QTY","DESCRIPTION",null,null,"UNIT COST "]
[null,null,null,null,null,null,null,{"$f":"SUM(C32*G32)","v":0}]
[null,null,null,null,null,null,null,{"$f":"SUM(C33*G33)","v":0}]
[null,null,null,null,null,null,null,0]
[null,null,null,null,null,null,null,0]
[null,null,null,null,null,null,null,0]
[null,null,null,null,null,null,null,0]
[null,null,null,null,null,null,null,0]
[null,null,null,null,null,null,null,{"$f":"SUM(C39*G39)","v":0}]
[null,null,null,null,null,null,null,{"$f":"SUM(C40*G40)","v":0}]
[null,null,null,null,null,null,null,{"$f":"SUM(C41*G41)","v":0}]
[null,null,null,null,null,"Subtotal",null,{"$f":"SUM(H32:H41)","v":0}]
[]
[null,null,null,null,null,"TOTAL",null,{"$f":"SUM(H26+H30+H42)","v":0}]
[]
[null,"* Sum of all plots "]

{"sheet":"Rail-Sub3","index":143,"n_rows":275,"n_cols":47,"rows_kept":275,"cut":false,"hidden":true,"merged":[[280,8,280,9],[280,10,280,11],[283,8,283,13],[284,8,284,9],[284,10,284,11],[285,8,285,9],[285,10,285,11],[258,26,258,27],[259,26,259,27],[274,1,275,1],[274,3,275,4],[278,8,278,13],[279,8,279,9],[279,10,279,11],[252,26,252,27],[253,26,253,27],[254,26,254,27],[255,26,255,27],[256,26,256,27],[257,26,257,27],[106,26,106,27],[107,26,107,27],[108,26,108,27],[109,26,109,27],[250,26,250,27],[251,26,251,27],[100,26,100,27],[101,26,101,27],[102,26,102,27],[103,26,103,27],[104,26,104,27],[105,26,105,27],[110,26,110,27],[111,26,111,27],[112,26,112,27],[113,26,113,27],[114,26,114,27],[115,26,115,27],[116,26,116,27],[117,26,117,27],[118,26,118,27],[119,26,119,27],[120,26,120,27],[121,26,121,27],[94,26,94,27],[95,26,95,27],[96,26,96,27],[97,26,97,27],[98,26,98,27],[99,26,99,27],[88,26,88,27],[89,26,89,27],[90,26,90,27],[91,26,91,27],[92,26,92,27],[93,26,93,27],[82,26,82,27],[83,26,83,27],[84,26,84,27],[85,26,85,27],[86,26,86,27],[87,26,87,27],[76,26,76,27],[77,26,77,27],[78,26,78,27],[79,26,79,27],[80,26,80,27],[81,26,81,27],[70,26,70,27],[71,26,71,27],[72,26,72,27],[73,26,73,27],[74,26,74,27],[75,26,75,27],[64,26,64,27],[65,26,65,27],[66,26,66,27],[67,26,67,27],[68,26,68,27],[69,26,69,27],[58,26,58,27],[59,26,59,27],[60,26,60,27],[61,26,61,27],[62,26,62,27],[63,26,63,27],[52,26,52,27],[53,26,53,27],[54,26,54,27],[55,26,55,27],[56,26,56,27],[57,26,57,27],[46,26,46,27],[47,26,47,27],[48,26,48,27],[49,26,49,27],[50,26,50,27],[51,26,51,27],[40,26,40,27],[41,26,41,27],[42,26,42,27],[43,26,43,27],[44,26,44,27],[45,26,45,27],[34,26,34,27],[35,26,35,27],[36,26,36,27],[37,26,37,27],[38,26,38,27],[39,26,39,27],[28,26,28,27],[29,26,29,27],[30,26,30,27],[31,26,31,27],[32,26,32,27],[33,26,33,27],[22,26,22,27],[23,26,23,27],[24,26,24,27],[25,26,25,27],[26,26,26,27],[27,26,27,27],[16,26,16,27],[17,26,17,27],[18,26,18,27],[19,26,19,27],[20,26,20,27],[21,26,21,27],[10,26,10,27],[11,26,11,27],[12,26,12,27],[13,26,13,27],[14,26,14,27],[15,26,15,27],[6,18,9,18],[6,19,9,19],[6,20,9,20],[6,21,9,21],[6,22,9,22],[8,26,8,27],[6,12,9,12],[6,13,9,13],[6,14,9,14],[6,15,9,15],[6,16,9,16],[6,17,9,17],[4,3,4,22],[6,3,9,3],[6,4,9,4],[6,5,9,5],[6,6,9,6],[6,7,9,7],[6,8,9,8],[6,9,9,9],[6,10,9,10],[6,11,9,11],[0,0,1,13],[2,1,2,4],[2,6,2,7],[2,10,2,11],[2,15,2,16],[3,1,3,4],[3,6,3,7],[3,10,3,11],[3,15,3,16],[122,26,122,27],[123,26,123,27],[124,26,124,27],[125,26,125,27],[126,26,126,27],[127,26,127,27],[128,26,128,27],[129,26,129,27],[130,26,130,27],[131,26,131,27],[132,26,132,27],[133,26,133,27],[134,26,134,27],[135,26,135,27],[136,26,136,27],[137,26,137,27],[138,26,138,27],[139,26,139,27],[140,26,140,27],[141,26,141,27],[142,26,142,27],[143,26,143,27],[144,26,144,27],[145,26,145,27],[146,26,146,27],[147,26,147,27],[148,26,148,27],[149,26,149,27],[150,26,150,27],[151,26,151,27],[152,26,152,27],[153,26,153,27],[154,26,154,27],[155,26,155,27],[156,26,156,27],[157,26,157,27],[158,26,158,27],[159,26,159,27],[160,26,160,27],[161,26,161,27],[162,26,162,27],[163,26,163,27],[164,26,164,27],[165,26,165,27],[166,26,166,27],[167,26,167,27],[168,26,168,27],[169,26,169,27],[170,26,170,27],[171,26,171,27],[172,26,172,27],[173,26,173,27],[174,26,174,27],[175,26,175,27],[176,26,176,27],[177,26,177,27],[178,26,178,27],[179,26,179,27],[180,26,180,27],[181,26,181,27],[182,26,182,27],[183,26,183,27],[184,26,184,27],[185,26,185,27],[186,26,186,27],[187,26,187,27],[188,26,188,27],[189,26,189,27],[190,26,190,27],[191,26,191,27],[192,26,192,27],[193,26,193,27],[211,26,211,27],[194,26,194,27],[195,26,195,27],[196,26,196,27],[197,26,197,27],[198,26,198,27],[199,26,199,27],[200,26,200,27],[201,26,201,27],[202,26,202,27],[3,26,3,27],[239,26,239,27],[240,26,240,27],[241,26,241,27],[230,26,230,27],[231,26,231,27],[232,26,232,27],[233,26,233,27],[234,26,234,27],[235,26,235,27],[236,26,236,27],[237,26,237,27],[238,26,238,27],[221,26,221,27],[222,26,222,27],[223,26,223,27],[224,26,224,27],[225,26,225,27],[226,26,226,27],[227,26,227,27],[228,26,228,27],[229,26,229,27],[212,26,212,27],[213,26,213,27],[9,0,9,1],[242,26,242,27],[243,26,243,27],[244,26,244,27],[245,26,245,27],[246,26,246,27],[247,26,247,27],[248,26,248,27],[249,26,249,27],[214,26,214,27],[215,26,215,27],[216,26,216,27],[217,26,217,27],[218,26,218,27],[219,26,219,27],[220,26,220,27],[203,26,203,27],[204,26,204,27],[205,26,205,27],[206,26,206,27],[207,26,207,27],[208,26,208,27],[209,26,209,27],[210,26,210,27]]}
["                                                                      SUBCONSULTANT 3 - RAIL DIVISION BREAKDOWN WORKSHEET -- ENTER WORKHOURS"]
[]
["PROJECT DESCRIPTION: ",{"$f":"PROJECT.DESCRIPTION","v":0},null,null,null,"FIRM:  ",{"$f":"RAIL.SUB3_CONSULTANT_NAME","v":"CONSULTANT NAME"},null,"TASK ORDER NUMBER:",null,{"$f":"TASK.ORDER.NUMBER","v":0},null,"DATE PREPARED:",{"$f":"IF(SCOPE.MANDAY.ESTIMATE.PREPARED.BY.DATE=\"\",\"\",SCOPE.MANDAY.ESTIMATE.PREPARED.BY.DATE)","v":""}]
["PREPARED BY:  ",{"$f":"IF(SCOPE.MANDAY.ESTIMATE.PREPARED.BY=\"\",\"\",SCOPE.MANDAY.ESTIMATE.PREPARED.BY)","v":""},null,null,null,"TIP NUMBER:",{"$f":"TIP.NUMBER","v":0},null,"WBS NUMBER:",null,{"$f":"WBS.NUMBER","v":""},null,"REVISION DATE:",{"$f":"IF(SCOPE.MANDAY.ESTIMATE.APPROVED.BY.DATE=\"\",\"\",SCOPE.MANDAY.ESTIMATE.APPROVED.BY.DATE)","v":""},null,null,null,null,null,null,null,null,null,null,null,"TASK TYPE:","Select Task Type"]
[null,null,null,"ESTIMATED WORKHOURS"]
[null,null,"EMPLOYEE NAMES",{"$f":"IF('PEF CLASSIFICATION SHEET'!D1145=\"\",\"\",LEFT('PEF CLASSIFICATION SHEET'!D1145,4))","v":""},{"$f":"IF('PEF CLASSIFICATION SHEET'!D1146=\"\",\"\",LEFT('PEF CLASSIFICATION SHEET'!D1146,4))","v":""},{"$f":"IF('PEF CLASSIFICATION SHEET'!D1147=\"\",\"\",LEFT('PEF CLASSIFICATION SHEET'!D1147,4))","v":""},{"$f":"IF('PEF CLASSIFICATION SHEET'!D1148=\"\",\"\",LEFT('PEF CLASSIFICATION SHEET'!D1148,4))","v":""},{"$f":"IF('PEF CLASSIFICATION SHEET'!D1149=\"\",\"\",LEFT('PEF CLASSIFICATION SHEET'!D1149,4))","v":""},{"$f":"IF('PEF CLASSIFICATION SHEET'!D1150=\"\",\"\",LEFT('PEF CLASSIFICATION SHEET'!D1150,4))","v":""},{"$f":"IF('PEF CLASSIFICATION SHEET'!D1151=\"\",\"\",LEFT('PEF CLASSIFICATION SHEET'!D1151,4))","v":""},{"$f":"IF('PEF CLASSIFICATION SHEET'!D1152=\"\",\"\",LEFT('PEF CLASSIFICATION SHEET'!D1152,4))","v":""},{"$f":"IF('PEF CLASSIFICATION SHEET'!D1153=\"\",\"\",LEFT('PEF CLASSIFICATION SHEET'!D1153,4))","v":""},{"$f":"IF('PEF CLASSIFICATION SHEET'!D1154=\"\",\"\",LEFT('PEF CLASSIFICATION SHEET'!D1154,4))","v":""},{"$f":"IF('PEF CLASSIFICATION SHEET'!D1155=\"\",\"\",LEFT('PEF CLASSIFICATION SHEET'!D1155,4))","v":""},{"$f":"IF('PEF CLASSIFICATION SHEET'!D1156=\"\",\"\",LEFT('PEF CLASSIFICATION SHEET'!D1156,4))","v":""},{"$f":"IF('PEF CLASSIFICATION SHEET'!D1157=\"\",\"\",LEFT('PEF CLASSIFICATION SHEET'!D1157,4))","v":""},{"$f":"IF('PEF CLASSIFICATION SHEET'!D1158=\"\",\"\",LEFT('PEF CLASSIFICATION SHEET'!D1158,4))","v":""},{"$f":"IF('PEF CLASSIFICATION SHEET'!D1159=\"\",\"\",LEFT('PEF CLASSIFICATION SHEET'!D1159,4))","v":""},{"$f":"IF('PEF CLASSIFICATION SHEET'!D1160=\"\",\"\",LEFT('PEF CLASSIFICATION SHEET'!D1160,4))","v":""},{"$f":"IF('PEF CLASSIFICATION SHEET'!D1161=\"\",\"\",LEFT('PEF CLASSIFICATION SHEET'!D1161,4))","v":""},{"$f":"IF('PEF CLASSIFICATION SHEET'!D1162=\"\",\"\",LEFT('PEF CLASSIFICATION SHEET'!D1162,4))","v":""},{"$f":"IF('PEF CLASSIFICATION SHEET'!D1163=\"\",\"\",LEFT('PEF CLASSIFICATION SHEET'!D1163,4))","v":""},{"$f":"IF('PEF CLASSIFICATION SHEET'!D1164=\"\",\"\",LEFT('PEF CLASSIFICATION SHEET'!D1164,4))","v":""}]
[null,null,null,{"$f":"IF('PEF CLASSIFICATION SHEET'!C1145=\"\",\"\",'PEF CLASSIFICATION SHEET'!C1145)","v":""},{"$f":"IF('PEF CLASSIFICATION SHEET'!C1146=\"\",\"\",'PEF CLASSIFICATION SHEET'!C1146)","v":""},{"$f":"IF('PEF CLASSIFICATION SHEET'!C1147=\"\",\"\",'PEF CLASSIFICATION SHEET'!C1147)","v":""},{"$f":"IF('PEF CLASSIFICATION SHEET'!C1148=\"\",\"\",'PEF CLASSIFICATION SHEET'!C1148)","v":""},{"$f":"IF('PEF CLASSIFICATION SHEET'!C1149=\"\",\"\",'PEF CLASSIFICATION SHEET'!C1149)","v":""},{"$f":"IF('PEF CLASSIFICATION SHEET'!C1150=\"\",\"\",'PEF CLASSIFICATION SHEET'!C1150)","v":""},{"$f":"IF('PEF CLASSIFICATION SHEET'!C1151=\"\",\"\",'PEF CLASSIFICATION SHEET'!C1151)","v":""},{"$f":"IF('PEF CLASSIFICATION SHEET'!C1152=\"\",\"\",'PEF CLASSIFICATION SHEET'!C1152)","v":""},{"$f":"IF('PEF CLASSIFICATION SHEET'!C1153=\"\",\"\",'PEF CLASSIFICATION SHEET'!C1153)","v":""},{"$f":"IF('PEF CLASSIFICATION SHEET'!C1154=\"\",\"\",'PEF CLASSIFICATION SHEET'!C1154)","v":""},{"$f":"IF('PEF CLASSIFICATION SHEET'!C1155=\"\",\"\",'PEF CLASSIFICATION SHEET'!C1155)","v":""},{"$f":"IF('PEF CLASSIFICATION SHEET'!C1156=\"\",\"\",'PEF CLASSIFICATION SHEET'!C1156)","v":""},{"$f":"IF('PEF CLASSIFICATION SHEET'!C1157=\"\",\"\",'PEF CLASSIFICATION SHEET'!C1157)","v":""},{"$f":"IF('PEF CLASSIFICATION SHEET'!C1158=\"\",\"\",'PEF CLASSIFICATION SHEET'!C1158)","v":""},{"$f":"IF('PEF CLASSIFICATION SHEET'!C1159=\"\",\"\",'PEF CLASSIFICATION SHEET'!C1159)","v":""},{"$f":"IF('PEF CLASSIFICATION SHEET'!C1160=\"\",\"\",'PEF CLASSIFICATION SHEET'!C1160)","v":""},{"$f":"IF('PEF CLASSIFICATION SHEET'!C1161=\"\",\"\",'PEF CLASSIFICATION SHEET'!C1161)","v":""},{"$f":"IF('PEF CLASSIFICATION SHEET'!C1162=\"\",\"\",'PEF CLASSIFICATION SHEET'!C1162)","v":""},{"$f":"IF('PEF CLASSIFICATION SHEET'!C1163=\"\",\"\",'PEF CLASSIFICATION SHEET'!C1163)","v":""},{"$f":"IF('PEF CLASSIFICATION SHEET'!C1164=\"\",\"\",'PEF CLASSIFICATION SHEET'!C1164)","v":""},"SUB-","%","PEF"]
[null,null,null,null,null,null,null,null,null,null,null,null,null,null,null,null,null,null,null,null,null,null,null,"TOTAL","OF","ESTIMATE"]
["TASK NO.","TASK DESCRIPTION","CLASSIFICATION",null,null,null,null,null,null,null,null,null,null,null,null,null,null,null,null,null,null,null,null,null,"PROJECT",null,"COMMENTS",null,null,null,null,null,null,null,"Select Task Type","Grade Separation","CEI","Track Design","Signal Design","Environmental","Planning"]
[{"$f":"IF($AA$4=\"Select Task Type\",\"Select the TASK TYPE from drop down list in cell AA4 to populate the task list\",IF($AA$4=\"Grade Separation\",\"You selected Grade Separation\",IF($AA$4=\"CEI\",\"You selected CEI\",IF($AA$4=\"Track Design\",\"You selected Track Design.  When the task is ALL CAPS, this is a header row, if you choose to key mandays associated with that header row the row total will not be displayed but the column and overall total will sum appropriately\",IF($AA$4=\"Signal Design\",\"You selected Signal Design, note that this is initially a blank task list; so please create a task list from scratch\",IF($AA$4=\"Environmental\",\"You selected Environmental.  When the task is ALL CAPS, this is a header row, if you choose to key mandays associated with that header row the row total will not be displayed but the column and overall total will sum appropriately\",IF($AA$4=\"Planning\",\"You selected Planning.  When the task is ALL CAPS, this is a header row, if you choose to key mandays associated with that header row the row total will not be displayed but the column and overall total will sum appropriately\",\"Select the TASK TYPE from drop down list in cell AA4 to populate the task list\")))))))","v":"Select the TASK TYPE from drop down list in cell AA4 to populate the task list"},null,null,null,null,null,null,null,null,null,null,null,null,null,null,null,null,null,null,null,null,null,null,null,null,null,null,null,null,null,null,null,null,null,null,"Grade Separation","Grade Separation","CEI","CEI","Track Design","Track Design","Signal Design","Signal Design","Environmental","Environmental","Planning","Planning"]
[{"$f":"IF(AG11=0,\"\",AG11)","v":""},{"$f":"IF(AH11=0,\"\",AH11)","v":""},null,null,null,null,null,null,null,null,null,null,null,null,null,null,null,null,null,null,null,null,null,{"$f":"IF(B11=\"\",0,IF(B11=\"DEMAND ASSESSMENT\",\"\",IF(B11=\"PROJECT SCOPING AND DATA COLLECTION\",\"\",IF(B11=\"PROJECT MANAGEMENT/PROJECT ADMINISTRATION\",\"\",IF((SUM(D11:W11)=0),0,SUM(D11:W11))))))","v":0},{"$f":"IF(SUM(D11:W11)=0,\"\",((SUM(D11:W11))/$X$261))","v":""},null,null,null,null,null,null,null,{"$f":"IF($AA$4=\"Select Task Type\",\"\",IF($AA$4=\"Grade Separation\",AJ11,IF($AA$4=\"CEI\",AL11,IF($AA$4=\"Track Design\",AN11,IF($AA$4=\"Signal Design\",AP11,IF($AA$4=\"Environmental\",AR11,IF($AA$4=\"Planning\",AT11,\"\")))))))","v":""},{"$f":"IF($AA$4=\"Select Task Type\",\"\",IF($AA$4=\"Grade Separation\",AK11,IF($AA$4=\"CEI\",AM11,IF($AA$4=\"Track Design\",AO11,IF($AA$4=\"Signal Design\",AQ11,IF($AA$4=\"Environmental\",AS11,IF($AA$4=\"Planning\",AU11,\"\")))))))","v":""},null,1,"Project Familiarization",1,"Project management and document review",1,"PROJECT MANAGEMENT/PROJECT ADMINISTRATION",null,null,"A","PROJECT SCOPING AND DATA COLLECTION",1,"DEMAND ASSESSMENT"]
[{"$f":"IF(AG12=0,\"\",AG12)","v":""},"",null,null,null,null,null,null,null,null,null,null,null,null,null,null,null,null,null,null,null,null,null,{"$f":"IF(B12=\"\",0,IF((SUM(D12:W12)=0),0,SUM(D12:W12)))","v":0},{"$f":"IF(SUM(D12:W12)=0,\"\",((SUM(D12:W12))/$X$261))","v":""},null,null,null,null,null,null,null,{"$f":"IF($AA$4=\"Select Task Type\",\"\",IF($AA$4=\"Grade Separation\",AJ12,IF($AA$4=\"CEI\",AL12,IF($AA$4=\"Track Design\",AN12,IF($AA$4=\"Signal Design\",AP12,IF($AA$4=\"Environmental\",AR12,IF($AA$4=\"Planning\",AT12,\"\")))))))","v":""},"",null,2,"Conceptual Design",2,"Track inspection",null,null,null,null,"A.1","Study Area Definition",null,"Review previous studies"]
["","",null,null,null,null,null,null,null,null,null,null,null,null,null,null,null,null,null,null,null,null,null,0,{"$f":"IF(SUM(D13:W13)=0,\"\",((SUM(D13:W13))/$X$261))","v":""},null,null,null,null,null,null,null,"","",null,3,"Construction Cost Estimate",3,"Roadway inspection",null,null,null,null,"A.2","Study Area Field Visit",null,"Interview XX, XX, and XX on near-term rail intermodal and break bulk plans"]
["","",null,null,null,null,null,null,null,null,null,null,null,null,null,null,null,null,null,null,null,null,null,0,"",null,null,null,null,null,null,null,"","",null,4,"Project Coordination",null,null,null,null,null,null,"A.3","Community Characteristics Report",null,"Estimate effects of various rail entities"]
["","",null,null,null,null,null,null,null,null,null,null,null,null,null,null,null,null,null,null,null,null,null,0,"",null,null,null,null,null,null,null,"","",null,null,null,null,null,null,null,null,null,"A.4","Local Land Use and Transportation Plans",null,"Estimate future growth in other bulk and break bulk commodities"]
["","",null,null,null,null,null,null,null,null,null,null,null,null,null,null,null,null,null,null,null,null,null,0,"",null,null,null,null,null,null,null,"","",null,null,null,null,null,null,null,null,null,"A.5","State and Federal Data Sources",null,"Incorporate State Freight Plan into market forecasts "]
["","",null,null,null,null,null,null,null,null,null,null,null,null,null,null,null,null,null,null,null,null,null,0,"",null,null,null,null,null,null,null,"","",null,null,null,null,null,null,null,null,null,"A.6 ","GeoEnvironmental Review",null,"Project port continued share against market growth"]
["","",null,null,null,null,null,null,null,null,null,null,null,null,null,null,null,null,null,null,null,null,null,0,"",null,null,null,null,null,null,null,"","",null,null,null,null,null,null,null,null,null,"A.7","GIS Data Layers and Aerial Photography",null,"Combine forecasts from various groups into a base line forecast"]
["","",null,null,null,null,null,null,null,null,null,null,null,null,null,null,null,null,null,null,null,null,null,0,"",null,null,null,null,null,null,null,"","",null,null,null,null,null,null,null,null,null,"A.8","Evaluation of Existing Transportation Facilities",null,"Develop an updated base forecast"]
["","",null,null,null,null,null,null,null,null,null,null,null,null,null,null,null,null,null,null,null,null,null,0,"",null,null,null,null,null,null,null,"","",null,null,null,null,null,null,null,null,null,"A.9","Traffic Forecast Request",null,"Compare with freight forecast in NC State Freight Plan, contrast against existing port rail capacity, identify delta required to accommodate additional traffic"]
["","",null,null,null,null,null,null,null,null,null,null,null,null,null,null,null,null,null,null,null,null,null,0,"",null,null,null,null,null,null,null,"","",null,null,null,null,null,null,null,null,null,"A.10","Project Data Sheet",null,"Add in empty return exports and revise forecast"]
["","",null,null,null,null,null,null,null,null,null,null,null,null,null,null,null,null,null,null,null,null,null,{"$f":"IF(B22=\"\",0,IF(B22=\"FUNCTIONAL TRACK DESIGN\",\"\",IF((SUM(D22:W22)=0),0,SUM(D22:W22))))","v":0},"",null,null,null,null,null,null,null,"","",null,null,null,null,null,2,"FUNCTIONAL TRACK DESIGN",null,null,"A.11","Start of Study Letters",null,"Develop near-term outlook of market demand and system requirements"]
["","",null,null,null,null,null,null,null,null,null,null,null,null,null,null,null,null,null,null,null,null,null,{"$f":"IF(B23=\"\",0,IF((SUM(D23:W23)=0),0,SUM(D23:W23)))","v":0},"",null,null,null,null,null,null,null,"","",null,null,null,null,null,null,null,null,null,"A.12","Kickoff/Scoping Meeting",null,"Review operations and plans for XX, suggest if port rail facilities can accommodate projected growth"]
["","",null,null,null,null,null,null,null,null,null,null,null,null,null,null,null,null,null,null,null,null,null,{"$f":"IF(B24=\"\",0,IF((SUM(D24:W24)=0),0,SUM(D24:W24)))","v":0},"",null,null,null,null,null,null,null,"","",null,null,null,null,null,null,null,null,null,"A.13",null,null,"Identify conceptual rail capacity and prospects for service assuming successful XX service"]
["","",null,null,null,null,null,null,null,null,null,null,null,null,null,null,null,null,null,null,null,null,null,{"$f":"IF(B25=\"\",0,IF((SUM(D25:W25)=0),0,SUM(D25:W25)))","v":0},"",null,null,null,null,null,null,null,"","",null,null,null,null,null,null,null,null,null,"A.14",null,null,"Evaluate rail operations @ port to identify conflicts and opportunities to serve both intermodal and break bulk rail customers"]
["","",null,null,null,null,null,null,null,null,null,null,null,null,null,null,null,null,null,null,null,null,null,{"$f":"IF(B26=\"\",0,IF((SUM(D26:W26)=0),0,SUM(D26:W26)))","v":0},"",null,null,null,null,null,null,null,"","",null,null,null,null,null,null,null,null,null,"A.15",null,null,"Develop near-term outlook of market demand and system requirements"]
["","",null,null,null,null,null,null,null,null,null,null,null,null,null,null,null,null,null,null,null,null,null,{"$f":"IF(B27=\"\",0,IF((SUM(D27:W27)=0),\"\",SUM(D27:W27)))","v":0},"",null,null,null,null,null,null,null,"","",null,null,null,null,null,null,null,null,null,"A.16"]
["","",null,null,null,null,null,null,null,null,null,null,null,null,null,null,null,null,null,null,null,null,null,0,"",null,null,null,null,null,null,null,"","",null,null,null,null,null,null,null,null,null,"A.17"]
["","",null,null,null,null,null,null,null,null,null,null,null,null,null,null,null,null,null,null,null,null,null,{"$f":"IF(B29=\"\",0,IF(B29=\"TRAFFIC CAPACITY ANALYSIS AND ACCIDENT ANALYSIS\",\"\",IF((SUM(D29:W29)=0),0,SUM(D29:W29))))","v":0},"",null,null,null,null,null,null,null,"","",null,null,null,null,null,null,null,null,null,"B","TRAFFIC CAPACITY ANALYSIS AND ACCIDENT ANALYSIS"]
["","",null,null,null,null,null,null,null,null,null,null,null,null,null,null,null,null,null,null,null,null,null,{"$f":"IF(B30=\"\",0,IF((SUM(D30:W30)=0),0,SUM(D30:W30)))","v":0},"",null,null,null,null,null,null,null,"","",null,null,null,null,null,null,null,null,null,"B.1","Coordinate with Stantec & incorporate the analysis"]
["","",null,null,null,null,null,null,null,null,null,null,null,null,null,null,null,null,null,null,null,null,null,{"$f":"IF(B31=\"\",0,IF((SUM(D31:W31)=0),0,SUM(D31:W31)))","v":0},"",null,null,null,null,null,null,null,"","",null,null,null,null,null,null,null,null,null,"B.2"]
["","",null,null,null,null,null,null,null,null,null,null,null,null,null,null,null,null,null,null,null,null,null,{"$f":"IF(B32=\"\",0,IF(B32=\"PORT MASTER PLAN REVIEW\",\"\",IF((SUM(D32:W32)=0),0,SUM(D32:W32))))","v":0},"",null,null,null,null,null,null,null,"","",null,null,null,null,null,null,null,null,null,"B.3",null,2,"PORT MASTER PLAN REVIEW"]
["","",null,null,null,null,null,null,null,null,null,null,null,null,null,null,null,null,null,null,null,null,null,{"$f":"IF(B33=\"\",0,IF(B33=\"PRELIMINARY TRACK DESIGN\",\"\",IF((SUM(D33:W33)=0),0,SUM(D33:W33))))","v":0},"",null,null,null,null,null,null,null,"","",null,null,null,null,null,3,"PRELIMINARY TRACK DESIGN",null,null,"B.4",null,null,"Identify area needed to accommodate each targeted market"]
["","",null,null,null,null,null,null,null,null,null,null,null,null,null,null,null,null,null,null,null,null,null,{"$f":"IF(B34=\"\",0,IF((SUM(D34:W34)=0),0,SUM(D34:W34)))","v":0},"",null,null,null,null,null,null,null,"","",null,null,null,null,null,null,null,null,null,"B.5",null,null,"Assess ability to meet current and projected needs"]
["","",null,null,null,null,null,null,null,null,null,null,null,null,null,null,null,null,null,null,null,null,null,{"$f":"IF(B35=\"\",0,IF((SUM(D35:W35)=0),0,SUM(D35:W35)))","v":0},"",null,null,null,null,null,null,null,"","",null,null,null,null,null,null,null,null,null,"B.6",null,null,"Coordinate with Port regarding future Port plans"]
["","",null,null,null,null,null,null,null,null,null,null,null,null,null,null,null,null,null,null,null,null,null,{"$f":"IF(B36=\"\",0,IF(B36=\"PROJECT PURPOSE AND NEED\",\"\",IF((SUM(D36:W36)=0),0,SUM(D36:W36))))","v":0},"",null,null,null,null,null,null,null,"","",null,null,null,null,null,null,null,null,null,"C","PROJECT PURPOSE AND NEED",null,"Develop recommendations to layout and/or processes to meet anticipated needs while not conflicting or constraining future activities"]
["","",null,null,null,null,null,null,null,null,null,null,null,null,null,null,null,null,null,null,null,null,null,{"$f":"IF(B37=\"\",0,IF((SUM(D37:W37)=0),0,SUM(D37:W37)))","v":0},"",null,null,null,null,null,null,null,"","",null,null,null,null,null,null,null,null,null,"C.1","Preliminary Purpose and Need",null,"Prepare draft port layout"]
["","",null,null,null,null,null,null,null,null,null,null,null,null,null,null,null,null,null,null,null,null,null,0,"",null,null,null,null,null,null,null,"","",null,null,null,null,null,null,null,null,null,"C.2","Final Purpose and Need Memorandum",null,"Revise per NCDOT comments and prepare final port layout"]
["","",null,null,null,null,null,null,null,null,null,null,null,null,null,null,null,null,null,null,null,null,null,0,"",null,null,null,null,null,null,null,"","",null,null,null,null,null,null,null,null,null,"C.3"]
["","",null,null,null,null,null,null,null,null,null,null,null,null,null,null,null,null,null,null,null,null,null,0,"",null,null,null,null,null,null,null,"","",null,null,null,null,null,null,null,null,null,"C.4"]
["","",null,null,null,null,null,null,null,null,null,null,null,null,null,null,null,null,null,null,null,null,null,0,"",null,null,null,null,null,null,null,"","",null,null,null,null,null,null,null,null,null,"C.5"]
["","",null,null,null,null,null,null,null,null,null,null,null,null,null,null,null,null,null,null,null,null,null,0,"",null,null,null,null,null,null,null,"","",null,null,null,null,null,null,null,null,null,"C.6"]
["","",null,null,null,null,null,null,null,null,null,null,null,null,null,null,null,null,null,null,null,null,null,0,"",null,null,null,null,null,null,null,"","",null,null,null,null,null,null,null,null,null,"C.7"]
["","",null,null,null,null,null,null,null,null,null,null,null,null,null,null,null,null,null,null,null,null,null,{"$f":"IF(B44=\"\",0,IF(B44=\"RAIL INVENTORY AND REVIEW OF EXISTING OPERATIONS\",\"\",IF(B44=\"DEVELOPMENT AND EVALUATION OF DESIGN ALTERNATIVES\",\"\",IF(B44=\"FINAL TRACK DESIGN\",\"\",IF((SUM(D44:W44)=0),0,SUM(D44:W44))))))","v":0},"",null,null,null,null,null,null,null,"","",null,null,null,null,null,4,"FINAL TRACK DESIGN",null,null,"D","DEVELOPMENT AND EVALUATION OF DESIGN ALTERNATIVES",3,"RAIL INVENTORY AND REVIEW OF EXISTING OPERATIONS"]
["","",null,null,null,null,null,null,null,null,null,null,null,null,null,null,null,null,null,null,null,null,null,{"$f":"IF(B45=\"\",0,IF((SUM(D45:W45)=0),0,SUM(D45:W45)))","v":0},"",null,null,null,null,null,null,null,"","",null,null,null,null,null,null,null,null,null,"D.1","Collaboration on Development of Design Alternatives",null,"Review Port facilities on the ground, identify acreage which could accommodate additional functions in support of rail operations"]
["","",null,null,null,null,null,null,null,null,null,null,null,null,null,null,null,null,null,null,null,null,null,0,"",null,null,null,null,null,null,null,"","",null,null,null,null,null,null,null,null,null,"D.2","Qualitative Screening of Design Alternatives",null,"Review XX and XX track charts and track maps for Port"]
["","",null,null,null,null,null,null,null,null,null,null,null,null,null,null,null,null,null,null,null,null,null,0,"",null,null,null,null,null,null,null,"","",null,null,null,null,null,null,null,null,null,"D.3",null,null,"Review any related TSS"]
["","",null,null,null,null,null,null,null,null,null,null,null,null,null,null,null,null,null,null,null,null,null,0,"",null,null,null,null,null,null,null,"","",null,null,null,null,null,null,null,null,null,"D.4",null,null,"Conduct a windshield survey of XX line at Port and document observations"]
["","",null,null,null,null,null,null,null,null,null,null,null,null,null,null,null,null,null,null,null,null,null,0,"",null,null,null,null,null,null,null,"","",null,null,null,null,null,null,null,null,null,"D.5",null,null,"Identify opportunities to locate a future passing siding."]
["","",null,null,null,null,null,null,null,null,null,null,null,null,null,null,null,null,null,null,null,null,null,0,"",null,null,null,null,null,null,null,"","",null,null,null,null,null,null,null,null,null,"D.6"]
["","",null,null,null,null,null,null,null,null,null,null,null,null,null,null,null,null,null,null,null,null,null,0,"",null,null,null,null,null,null,null,"","",null,null,null,null,null,null,null,null,null,"D.7"]
["","",null,null,null,null,null,null,null,null,null,null,null,null,null,null,null,null,null,null,null,null,null,{"$f":"IF(B52=\"\",0,IF(B52=\"BIOTIC RESOURCES\",\"\",IF((SUM(D52:W52)=0),0,SUM(D52:W52))))","v":0},"",null,null,null,null,null,null,null,"","",null,null,null,null,null,null,null,null,null,"E.3","BIOTIC RESOURCES"]
["","",null,null,null,null,null,null,null,null,null,null,null,null,null,null,null,null,null,null,null,null,null,{"$f":"IF(B53=\"\",0,IF((SUM(D53:W53)=0),0,SUM(D53:W53)))","v":0},"",null,null,null,null,null,null,null,"","",null,null,null,null,null,null,null,null,null,"E.3.a","Terrestrial Communities"]
["","",null,null,null,null,null,null,null,null,null,null,null,null,null,null,null,null,null,null,null,null,null,{"$f":"IF(B54=\"\",0,IF((SUM(D54:W54)=0),0,SUM(D54:W54)))","v":0},"",null,null,null,null,null,null,null,"","",null,null,null,null,null,null,null,null,null,"E.3.b","Terrestrial Wildlife"]
["","",null,null,null,null,null,null,null,null,null,null,null,null,null,null,null,null,null,null,null,null,null,{"$f":"IF(B55=\"\",0,IF(B55=\"CAPACITY AND VELOCITY\",\"\",IF((SUM(D55:W55)=0),0,SUM(D55:W55))))","v":0},"",null,null,null,null,null,null,null,"","",null,null,null,null,null,null,null,null,null,"E.3.c","Aquatic Communities and Wildlife",4,"CAPACITY AND VELOCITY"]
["","",null,null,null,null,null,null,null,null,null,null,null,null,null,null,null,null,null,null,null,null,null,{"$f":"IF(B56=\"\",0,IF((SUM(D56:W56)=0),0,SUM(D56:W56)))","v":0},"",null,null,null,null,null,null,null,"","",null,null,null,null,null,null,null,null,null,"E.3.d","Invasive Species",null,"Develop a level of service (LOS) classification for XX"]
["","",null,null,null,null,null,null,null,null,null,null,null,null,null,null,null,null,null,null,null,null,null,0,"",null,null,null,null,null,null,null,"","",null,null,null,null,null,null,null,null,null,"E.3.e",null,null,"Identify theoretical capacity XX based upon tonnage (GMT), GMT per train, and number of trains"]
["","",null,null,null,null,null,null,null,null,null,null,null,null,null,null,null,null,null,null,null,null,null,0,"",null,null,null,null,null,null,null,"","",null,null,null,null,null,null,null,null,null,"E.3.f",null,null,"Compare theoretical capacity with forecast train volumes"]
["","",null,null,null,null,null,null,null,null,null,null,null,null,null,null,null,null,null,null,null,null,null,0,"",null,null,null,null,null,null,null,"","",null,null,null,null,null,null,null,null,null,"E.3.g",null,null,"Observe operations to develop an estimate of current velocity (travel time over mileage) to/from XX"]
["","",null,null,null,null,null,null,null,null,null,null,null,null,null,null,null,null,null,null,null,null,null,0,"",null,null,null,null,null,null,null,"","",null,null,null,null,null,null,null,null,null,"E.3.h",null,null,"Review XX track charts and operating rules, assess for potential changes which could more effectively utilize existing capacity"]
["","",null,null,null,null,null,null,null,null,null,null,null,null,null,null,null,null,null,null,null,null,null,0,"",null,null,null,null,null,null,null,"","",null,null,null,null,null,null,null,null,null,"E.3.i",null,null,"Review related TSS to identify projects which could increase operating speeds and improve velocity"]
["","",null,null,null,null,null,null,null,null,null,null,null,null,null,null,null,null,null,null,null,null,null,{"$f":"IF(B62=\"\",0,IF(B62=\"JURISDICTIONAL ISSUES\",\"\",IF((SUM(D62:W62)=0),0,SUM(D62:W62))))","v":0},"",null,null,null,null,null,null,null,"","",null,null,null,null,null,null,null,null,null,"E.4","JURISDICTIONAL ISSUES"]
["","",null,null,null,null,null,null,null,null,null,null,null,null,null,null,null,null,null,null,null,null,null,{"$f":"IF(B63=\"\",0,IF((SUM(D63:W63)=0),0,SUM(D63:W63)))","v":0},"",null,null,null,null,null,null,null,"","",null,null,null,null,null,null,null,null,null,"E.4.a","Clean Water Act (CWA) Waters of the US"]
["","",null,null,null,null,null,null,null,null,null,null,null,null,null,null,null,null,null,null,null,null,null,{"$f":"IF(B64=\"\",0,IF((SUM(D64:W64)=0),0,SUM(D64:W64)))","v":0},"",null,null,null,null,null,null,null,"","",null,null,null,null,null,null,null,null,null,"E.4.b","CWA Permits"]
["","",null,null,null,null,null,null,null,null,null,null,null,null,null,null,null,null,null,null,null,null,null,{"$f":"IF(B65=\"\",0,IF((SUM(D65:W65)=0),0,SUM(D65:W65)))","v":0},"",null,null,null,null,null,null,null,"","",null,null,null,null,null,null,null,null,null,"E.4.c","Construction Moratoria"]
["","",null,null,null,null,null,null,null,null,null,null,null,null,null,null,null,null,null,null,null,null,null,{"$f":"IF(B66=\"\",0,IF((SUM(D66:W66)=0),0,SUM(D66:W66)))","v":0},"",null,null,null,null,null,null,null,"","",null,null,null,null,null,null,null,null,null,"E.4.d","Rivers and Harbors Act Section 10 Navigable Waters"]
["","",null,null,null,null,null,null,null,null,null,null,null,null,null,null,null,null,null,null,null,null,null,{"$f":"IF(B67=\"\",0,IF(B67=\"RAIL INFRASTRUCTURE IMPROVEMENTS\",\"\",IF((SUM(D67:W67)=0),0,SUM(D67:W67))))","v":0},"",null,null,null,null,null,null,null,"","",null,null,null,null,null,null,null,null,null,"E.4.e","Wetland and Stream Mitigation",5,"RAIL INFRASTRUCTURE IMPROVEMENTS"]
["","",null,null,null,null,null,null,null,null,null,null,null,null,null,null,null,null,null,null,null,null,null,{"$f":"IF(B68=\"\",0,IF((SUM(D68:W68)=0),0,SUM(D68:W68)))","v":0},"",null,null,null,null,null,null,null,"","",null,null,null,null,null,null,null,null,null,"E.4.f","Endangered Species Act Protected Species",null,"Review existing infrastructure"]
["","",null,null,null,null,null,null,null,null,null,null,null,null,null,null,null,null,null,null,null,null,null,0,"",null,null,null,null,null,null,null,"","",null,null,null,null,null,null,null,null,null,"E.4.g","Essential Fish Habitat",null,"Determine potential needs based on growth"]
["","",null,null,null,null,null,null,null,null,null,null,null,null,null,null,null,null,null,null,null,null,null,0,"",null,null,null,null,null,null,null,"","",null,null,null,null,null,null,null,null,null,"E.4.h",null,null,"Suggest potential enhancements to address future needs (X scenarios)"]
["","",null,null,null,null,null,null,null,null,null,null,null,null,null,null,null,null,null,null,null,null,null,0,"",null,null,null,null,null,null,null,"","",null,null,null,null,null,null,null,null,null,"E.4.i",null,null,"Coordinate with NCDOT and others to consider the capacity of XX"]
["","",null,null,null,null,null,null,null,null,null,null,null,null,null,null,null,null,null,null,null,null,null,0,"",null,null,null,null,null,null,null,"","",null,null,null,null,null,null,null,null,null,"E.4.j",null,null,"Develop conceptual recommendations to improve efficiency of operations between XX and YY"]
["","",null,null,null,null,null,null,null,null,null,null,null,null,null,null,null,null,null,null,null,null,null,0,"",null,null,null,null,null,null,null,"","",null,null,null,null,null,null,null,null,null,"E.4.k"]
["","",null,null,null,null,null,null,null,null,null,null,null,null,null,null,null,null,null,null,null,null,null,0,"",null,null,null,null,null,null,null,"","",null,null,null,null,null,null,null,null,null,"E.4.l"]
["","",null,null,null,null,null,null,null,null,null,null,null,null,null,null,null,null,null,null,null,null,null,0,"",null,null,null,null,null,null,null,"","",null,null,null,null,null,null,null,null,null,"E.5","NRTR Document"]
[{"$f":"IF(AG76=0,\"\",AG76)","v":""},"",null,null,null,null,null,null,null,null,null,null,null,null,null,null,null,null,null,null,null,null,null,0,"",null,null,null,null,null,null,null,{"$f":"IF($AA$4=\"Select Task Type\",\"\",IF($AA$4=\"Grade Separation\",AJ76,IF($AA$4=\"CEI\",AL76,IF($AA$4=\"Track Design\",AN76,IF($AA$4=\"Signal Design\",AP76,IF($AA$4=\"Environmental\",AR76,IF($AA$4=\"Planning\",AT76,\"\")))))))","v":""},"",null,null,null,null,null,null,null,null,null,"E.5.a"]
["","",null,null,null,null,null,null,null,null,null,null,null,null,null,null,null,null,null,null,null,null,null,0,{"$f":"IF(SUM(D77:W77)=0,\"\",((SUM(D77:W77))/$X$261))","v":""},null,null,null,null,null,null,null,"","",null,null,null,null,null,null,null,null,null,"E.5.b"]
["","",null,null,null,null,null,null,null,null,null,null,null,null,null,null,null,null,null,null,null,null,null,{"$f":"IF(B78=\"\",0,IF(B78=\"DEVELOP SUGGESTIONS FOR OPERATIONAL AND LOGISTICAL ENHANCEMENTS\",\"\",IF((SUM(D78:W78)=0),0,SUM(D78:W78))))","v":0},"",null,null,null,null,null,null,null,"","",null,null,null,null,null,null,null,null,null,"E.5.c",null,6,"DEVELOP SUGGESTIONS FOR OPERATIONAL AND LOGISTICAL ENHANCEMENTS"]
["","",null,null,null,null,null,null,null,null,null,null,null,null,null,null,null,null,null,null,null,null,null,{"$f":"IF(B79=\"\",0,IF((SUM(D79:W79)=0),0,SUM(D79:W79)))","v":0},"",null,null,null,null,null,null,null,"","",null,null,null,null,null,null,null,null,null,"E.5.d",null,null,"Study current operations and suggest changes that might enhance efficiency or reduce costs"]
["","",null,null,null,null,null,null,null,null,null,null,null,null,null,null,null,null,null,null,null,null,null,0,"",null,null,null,null,null,null,null,"","",null,null,null,null,null,null,null,null,null,"E.5.e",null,null,"Coordinate with NCAG to assure changes are allowable"]
["","",null,null,null,null,null,null,null,null,null,null,null,null,null,null,null,null,null,null,null,null,null,0,"",null,null,null,null,null,null,null,"","",null,null,null,null,null,null,null,null,null,"E.6","Jurisdictional Features Verification",null,"Develop option for development of temporary dray Port to XX"]
["","",null,null,null,null,null,null,null,null,null,null,null,null,null,null,null,null,null,null,null,null,null,0,"",null,null,null,null,null,null,null,"","",null,null,null,null,null,null,null,null,null,"E.6.a",null,null,"Summarize potential changes and corresponding actions"]
["","",null,null,null,null,null,null,null,null,null,null,null,null,null,null,null,null,null,null,null,null,null,0,"",null,null,null,null,null,null,null,"","",null,null,null,null,null,null,null,null,null,"E.6.b"]
["","",null,null,null,null,null,null,null,null,null,null,null,null,null,null,null,null,null,null,null,null,null,0,"",null,null,null,null,null,null,null,"","",null,null,null,null,null,null,null,null,null,"E.6.c"]
["","",null,null,null,null,null,null,null,null,null,null,null,null,null,null,null,null,null,null,null,null,null,0,"",null,null,null,null,null,null,null,"","",null,null,null,null,null,null,null,null,null,"E.6.d"]
["","",null,null,null,null,null,null,null,null,null,null,null,null,null,null,null,null,null,null,null,null,null,0,"",null,null,null,null,null,null,null,"","",null,null,null,null,null,null,null,null,null,"E.6.e"]
["","",null,null,null,null,null,null,null,null,null,null,null,null,null,null,null,null,null,null,null,null,null,{"$f":"IF(B87=\"\",0,IF(B87=\"HUMAN ENVIRONMENT FIELD WORK, ANALYSIS, AND DOCUMENTATION\",\"\",IF((SUM(D87:W87)=0),0,SUM(D87:W87))))","v":0},"",null,null,null,null,null,null,null,"","",null,null,null,null,null,null,null,null,null,"F","HUMAN ENVIRONMENT FIELD WORK, ANALYSIS, AND DOCUMENTATION"]
["","",null,null,null,null,null,null,null,null,null,null,null,null,null,null,null,null,null,null,null,null,null,{"$f":"IF(B88=\"\",0,IF(B88=\"ENVIRONMENTAL SCREENING\",\"\",IF((SUM(D88:W88)=0),0,SUM(D88:W88))))","v":0},"",null,null,null,null,null,null,null,"","",null,null,null,null,null,null,null,null,null,"F.1","Community Impact Assessment",7,"ENVIRONMENTAL SCREENING"]
["","",null,null,null,null,null,null,null,null,null,null,null,null,null,null,null,null,null,null,null,null,null,{"$f":"IF(B89=\"\",0,IF((SUM(D89:W89)=0),0,SUM(D89:W89)))","v":0},"",null,null,null,null,null,null,null,"","",null,null,null,null,null,null,null,null,null,"F.1.a","Identify Community Impact Study Area",null,"Develop GIS map of available data"]
["","",null,null,null,null,null,null,null,null,null,null,null,null,null,null,null,null,null,null,null,null,null,0,"",null,null,null,null,null,null,null,"","",null,null,null,null,null,null,null,null,null,"F.1.b","Community Field Review",null,"Develop list of \"red flag\" issues"]
["","",null,null,null,null,null,null,null,null,null,null,null,null,null,null,null,null,null,null,null,null,null,0,"",null,null,null,null,null,null,null,"","",null,null,null,null,null,null,null,null,null,"F.1.c","Socioeconomic Data"]
["","",null,null,null,null,null,null,null,null,null,null,null,null,null,null,null,null,null,null,null,null,null,0,"",null,null,null,null,null,null,null,"","",null,null,null,null,null,null,null,null,null,"F.1.d","Community Facilities and Services"]
["","",null,null,null,null,null,null,null,null,null,null,null,null,null,null,null,null,null,null,null,null,null,0,"",null,null,null,null,null,null,null,"","",null,null,null,null,null,null,null,null,null,"F.1.e","Local/Regional Land Use and Development Plans"]
["","",null,null,null,null,null,null,null,null,null,null,null,null,null,null,null,null,null,null,null,null,null,0,"",null,null,null,null,null,null,null,"","",null,null,null,null,null,null,null,null,null,"F.1.f","Project Impact Assessment"]
["","",null,null,null,null,null,null,null,null,null,null,null,null,null,null,null,null,null,null,null,null,null,0,"",null,null,null,null,null,null,null,"","",null,null,null,null,null,null,null,null,null,"F.1.g","Community Impact Assessment Report"]
["","",null,null,null,null,null,null,null,null,null,null,null,null,null,null,null,null,null,null,null,null,null,{"$f":"IF(B96=\"\",0,IF(B96=\"ESTIMATE PROJECT SCENARIO BENEFITS\",\"\",IF((SUM(D96:W96)=0),0,SUM(D96:W96))))","v":0},"",null,null,null,null,null,null,null,"","",null,null,null,null,null,null,null,null,null,"F.1.h",null,8,"ESTIMATE PROJECT SCENARIO BENEFITS"]
["","",null,null,null,null,null,null,null,null,null,null,null,null,null,null,null,null,null,null,null,null,null,{"$f":"IF(B97=\"\",0,IF((SUM(D97:W97)=0),0,SUM(D97:W97)))","v":0},"",null,null,null,null,null,null,null,"","",null,null,null,null,null,null,null,null,null,"F.1.i",null,null,"Develop near-term project feasibility criteria and apply to the identified program of projects"]
["","",null,null,null,null,null,null,null,null,null,null,null,null,null,null,null,null,null,null,null,null,null,{"$f":"IF(B98=\"\",0,IF((SUM(D98:W98)=0),0,SUM(D98:W98)))","v":0},"",null,null,null,null,null,null,null,"","",null,null,null,null,null,null,null,null,null,"F.1.j",null,null,"Develop ranked list ordered according to project feasibility criteria"]
["","",null,null,null,null,null,null,null,null,null,null,null,null,null,null,null,null,null,null,null,null,null,{"$f":"IF(B99=\"\",0,IF((SUM(D99:W99)=0),0,SUM(D99:W99)))","v":0},"",null,null,null,null,null,null,null,"","",null,null,null,null,null,null,null,null,null,"F.1.k",null,null,"Perform Benefit Cost Analyses (BCA)  for up to five projects using the OMB BCA methodology"]
["","",null,null,null,null,null,null,null,null,null,null,null,null,null,null,null,null,null,null,null,null,null,{"$f":"IF(B100=\"\",0,IF((SUM(D100:W100)=0),0,SUM(D100:W100)))","v":0},"",null,null,null,null,null,null,null,"","",null,null,null,null,null,null,null,null,null,"F.1.l",null,null,"Revise per NCDOT comments"]
["","",null,null,null,null,null,null,null,null,null,null,null,null,null,null,null,null,null,null,null,null,null,{"$f":"IF(B101=\"\",0,IF(B101=\"INDIRECT AND CUMULATIVE EFFECTS SCREENING\",\"\",IF((SUM(D101:W101)=0),0,SUM(D101:W101))))","v":0},"",null,null,null,null,null,null,null,"","",null,null,null,null,null,null,null,null,null,"F.2","INDIRECT AND CUMULATIVE EFFECTS SCREENING"]
["","",null,null,null,null,null,null,null,null,null,null,null,null,null,null,null,null,null,null,null,null,null,{"$f":"IF(B102=\"\",0,IF((SUM(D102:W102)=0),0,SUM(D102:W102)))","v":0},"",null,null,null,null,null,null,null,"","",null,null,null,null,null,null,null,null,null,"F.2.a","Determine Future Land Use Study Area"]
["","",null,null,null,null,null,null,null,null,null,null,null,null,null,null,null,null,null,null,null,null,null,{"$f":"IF(B103=\"\",0,IF((SUM(D103:W103)=0),0,SUM(D103:W103)))","v":0},"",null,null,null,null,null,null,null,"","",null,null,null,null,null,null,null,null,null,"F.2.b","Determine ICE Study Time Horizon"]
["","",null,null,null,null,null,null,null,null,null,null,null,null,null,null,null,null,null,null,null,null,null,{"$f":"IF(B104=\"\",0,IF((SUM(D104:W104)=0),0,SUM(D104:W104)))","v":0},"",null,null,null,null,null,null,null,"","",null,null,null,null,null,null,null,null,null,"F.2.c","Identify Study Area Conditions and Trends"]
["","",null,null,null,null,null,null,null,null,null,null,null,null,null,null,null,null,null,null,null,null,null,{"$f":"IF(B105=\"\",0,IF((SUM(D105:W105)=0),0,SUM(D105:W105)))","v":0},"",null,null,null,null,null,null,null,"","",null,null,null,null,null,null,null,null,null,"F.2.d","Inventory of Notable Features"]
["","",null,null,null,null,null,null,null,null,null,null,null,null,null,null,null,null,null,null,null,null,null,{"$f":"IF(B106=\"\",0,IF(B106=\"GENERATE DATA NEEDED FOR SCORING IN STI\",\"\",IF((SUM(D106:W106)=0),0,SUM(D106:W106))))","v":0},"",null,null,null,null,null,null,null,"","",null,null,null,null,null,null,null,null,null,"F.2.e","Identify Impact-Causing Activities",9,"GENERATE DATA NEEDED FOR SCORING IN STI"]
["","",null,null,null,null,null,null,null,null,null,null,null,null,null,null,null,null,null,null,null,null,null,{"$f":"IF(B107=\"\",0,IF((SUM(D107:W107)=0),0,SUM(D107:W107)))","v":0},"",null,null,null,null,null,null,null,"","",null,null,null,null,null,null,null,null,null,"F.2.f","Analyze and Evaluate ICE Data",null,"Develop list of alternative solutions"]
["","",null,null,null,null,null,null,null,null,null,null,null,null,null,null,null,null,null,null,null,null,null,0,"",null,null,null,null,null,null,null,"","",null,null,null,null,null,null,null,null,null,"F.2.g","Land Use Development Scenarios",null,"Develop ranking procedure and criteria"]
["","",null,null,null,null,null,null,null,null,null,null,null,null,null,null,null,null,null,null,null,null,null,0,"",null,null,null,null,null,null,null,"","",null,null,null,null,null,null,null,null,null,"F.2.h","Indirect and Cumulative Effects Screening",null,"Adjust per NCDOT comments"]
["","",null,null,null,null,null,null,null,null,null,null,null,null,null,null,null,null,null,null,null,null,null,0,"",null,null,null,null,null,null,null,"","",null,null,null,null,null,null,null,null,null,"F.2.i",null,null,"Apply procedure/criteria to project alternatives"]
["","",null,null,null,null,null,null,null,null,null,null,null,null,null,null,null,null,null,null,null,null,null,0,"",null,null,null,null,null,null,null,"","",null,null,null,null,null,null,null,null,null,"F.2.j",null,null,"Review resulting list"]
["","",null,null,null,null,null,null,null,null,null,null,null,null,null,null,null,null,null,null,null,null,null,0,"",null,null,null,null,null,null,null,"","",null,null,null,null,null,null,null,null,null,"F.2.k",null,null,"Suggest revisions to procedure as needed"]
["","",null,null,null,null,null,null,null,null,null,null,null,null,null,null,null,null,null,null,null,null,null,0,"",null,null,null,null,null,null,null,"","",null,null,null,null,null,null,null,null,null,"F.2.l",null,null,"Revise criteria and redevelop list"]
["","",null,null,null,null,null,null,null,null,null,null,null,null,null,null,null,null,null,null,null,null,null,0,"",null,null,null,null,null,null,null,"","",null,null,null,null,null,null,null,null,null,"F.2.m",null,null,"Suggest project timing"]
["","",null,null,null,null,null,null,null,null,null,null,null,null,null,null,null,null,null,null,null,null,null,{"$f":"IF(B115=\"\",0,IF(B115=\"NOISE AND VIBRATION IMPACT ANALYSIS\",\"\",IF((SUM(D115:W115)=0),0,SUM(D115:W115))))","v":0},"",null,null,null,null,null,null,null,"","",null,null,null,null,null,null,null,null,null,"F.3.","NOISE AND VIBRATION IMPACT ANALYSIS",null,"Suggest project funding source(s)"]
["","",null,null,null,null,null,null,null,null,null,null,null,null,null,null,null,null,null,null,null,null,null,{"$f":"IF(B116=\"\",0,IF((SUM(D116:W116)=0),0,SUM(D116:W116)))","v":0},"",null,null,null,null,null,null,null,"","",null,null,null,null,null,null,null,null,null,"F.3.a","Coordination",null,"Develop opinion of cost for highest 5 ranking projects"]
["","",null,null,null,null,null,null,null,null,null,null,null,null,null,null,null,null,null,null,null,null,null,0,"",null,null,null,null,null,null,null,"","",null,null,null,null,null,null,null,null,null,null,"Initial Meeting with Rail Division",null,"Develop estimate of benefits for highest 5 ranking projects"]
["","",null,null,null,null,null,null,null,null,null,null,null,null,null,null,null,null,null,null,null,null,null,0,"",null,null,null,null,null,null,null,"","",null,null,null,null,null,null,null,null,null,"F.3.b","Data Compilation"]
["","",null,null,null,null,null,null,null,null,null,null,null,null,null,null,null,null,null,null,null,null,null,0,"",null,null,null,null,null,null,null,"","",null,null,null,null,null,null,null,null,null,null,"Project Area Reconnaissance, if applicable"]
["","",null,null,null,null,null,null,null,null,null,null,null,null,null,null,null,null,null,null,null,null,null,0,"",null,null,null,null,null,null,null,"","",null,null,null,null,null,null,null,null,null,null,"Identify noise sensitive land uses"]
["","",null,null,null,null,null,null,null,null,null,null,null,null,null,null,null,null,null,null,null,null,null,0,"",null,null,null,null,null,null,null,"","",null,null,null,null,null,null,null,null,null,null,"Prepare Noise Analysis Work Plan"]
["","",null,null,null,null,null,null,null,null,null,null,null,null,null,null,null,null,null,null,null,null,null,0,"",null,null,null,null,null,null,null,"","",null,null,null,null,null,null,null,null,null,"F.3.c","Selection of Analysis Sites"]
["","",null,null,null,null,null,null,null,null,null,null,null,null,null,null,null,null,null,null,null,null,null,{"$f":"IF(B123=\"\",0,IF(B123=\"IDENTIFY POTENTIAL PROJECTS FOR FEDERAL PROGRAMS\",\"\",IF((SUM(D123:W123)=0),0,SUM(D123:W123))))","v":0},"",null,null,null,null,null,null,null,"","",null,null,null,null,null,null,null,null,null,"F.3.d","Noise Analysis",10,"IDENTIFY POTENTIAL PROJECTS FOR FEDERAL PROGRAMS"]
["","",null,null,null,null,null,null,null,null,null,null,null,null,null,null,null,null,null,null,null,null,null,{"$f":"IF(B124=\"\",0,IF((SUM(D124:W124)=0),0,SUM(D124:W124)))","v":0},"",null,null,null,null,null,null,null,"","",null,null,null,null,null,null,null,null,null,null,"Monitoring / Fieldwork / Processing",null,"Research and prepare a technical memoranda identifying existing federal grant and loan programs for ports and rail improvements"]
["","",null,null,null,null,null,null,null,null,null,null,null,null,null,null,null,null,null,null,null,null,null,0,"",null,null,null,null,null,null,null,"","",null,null,null,null,null,null,null,null,null,null,"Traffic noise analysis",null,"Screen the program of projects for federal grant and loan program eligibility "]
["","",null,null,null,null,null,null,null,null,null,null,null,null,null,null,null,null,null,null,null,null,null,0,"",null,null,null,null,null,null,null,"","",null,null,null,null,null,null,null,null,null,null,"Rail noise analysis",null,"Recommend federal funding resources applicable to candidate projects"]
["","",null,null,null,null,null,null,null,null,null,null,null,null,null,null,null,null,null,null,null,null,null,0,"",null,null,null,null,null,null,null,"","",null,null,null,null,null,null,null,null,null,"F.3.e","Determination of Impacts"]
["","",null,null,null,null,null,null,null,null,null,null,null,null,null,null,null,null,null,null,null,null,null,0,"",null,null,null,null,null,null,null,"","",null,null,null,null,null,null,null,null,null,null,"Traffic noise analysis"]
["","",null,null,null,null,null,null,null,null,null,null,null,null,null,null,null,null,null,null,null,null,null,0,"",null,null,null,null,null,null,null,"","",null,null,null,null,null,null,null,null,null,null,"Rail noise analysis"]
["","",null,null,null,null,null,null,null,null,null,null,null,null,null,null,null,null,null,null,null,null,null,0,"",null,null,null,null,null,null,null,"","",null,null,null,null,null,null,null,null,null,null,"Traffic and rail noise impact assessment"]
["","",null,null,null,null,null,null,null,null,null,null,null,null,null,null,null,null,null,null,null,null,null,0,"",null,null,null,null,null,null,null,"","",null,null,null,null,null,null,null,null,null,"F.3.f","Noise Abatement Considerations"]
["","",null,null,null,null,null,null,null,null,null,null,null,null,null,null,null,null,null,null,null,null,null,{"$f":"IF(B132=\"\",0,IF(B132=\"PREPARE PROGRAM OF PROJECTS\",\"\",IF((SUM(D132:W132)=0),0,SUM(D132:W132))))","v":0},"",null,null,null,null,null,null,null,"","",null,null,null,null,null,null,null,null,null,null,"Noise barrier analysis",11,"PREPARE PROGRAM OF PROJECTS"]
["","",null,null,null,null,null,null,null,null,null,null,null,null,null,null,null,null,null,null,null,null,null,{"$f":"IF(B133=\"\",0,IF((SUM(D133:W133)=0),0,SUM(D133:W133)))","v":0},"",null,null,null,null,null,null,null,"","",null,null,null,null,null,null,null,null,null,null,"QA/Review",null,"Develop ranked list of projects based on benefit data"]
["","",null,null,null,null,null,null,null,null,null,null,null,null,null,null,null,null,null,null,null,null,null,0,"",null,null,null,null,null,null,null,"","",null,null,null,null,null,null,null,null,null,"F.3.g","Vibration Analysis",null,"Develop timing plan "]
["","",null,null,null,null,null,null,null,null,null,null,null,null,null,null,null,null,null,null,null,null,null,0,"",null,null,null,null,null,null,null,"","",null,null,null,null,null,null,null,null,null,"F.3.h","Noise and Vibration Technical Report",null,"Develop list of possible funding sources (limited to most likely source)"]
["","",null,null,null,null,null,null,null,null,null,null,null,null,null,null,null,null,null,null,null,null,null,0,"",null,null,null,null,null,null,null,"","",null,null,null,null,null,null,null,null,null,null,"Draft Report - text, tables, figures",null,"Calculate ranking based on criteria and or weighting data provided by NCDOT"]
["","",null,null,null,null,null,null,null,null,null,null,null,null,null,null,null,null,null,null,null,null,null,0,"",null,null,null,null,null,null,null,"","",null,null,null,null,null,null,null,null,null,null,"Draft Report - Appendices",null,"Submit draft list to NCDOT"]
["","",null,null,null,null,null,null,null,null,null,null,null,null,null,null,null,null,null,null,null,null,null,0,"",null,null,null,null,null,null,null,"","",null,null,null,null,null,null,null,null,null,null,"QA/Review",null,"Revise based on NCDOT comments"]
["","",null,null,null,null,null,null,null,null,null,null,null,null,null,null,null,null,null,null,null,null,null,0,"",null,null,null,null,null,null,null,"","",null,null,null,null,null,null,null,null,null,null,"Prepare Comment/Response Matrix"]
[{"$f":"IF(AG140=0,\"\",AG140)","v":""},"",null,null,null,null,null,null,null,null,null,null,null,null,null,null,null,null,null,null,null,null,null,0,"",null,null,null,null,null,null,null,{"$f":"IF($AA$4=\"Select Task Type\",\"\",IF($AA$4=\"Grade Separation\",AJ140,IF($AA$4=\"CEI\",AL140,IF($AA$4=\"Track Design\",AN140,IF($AA$4=\"Signal Design\",AP140,IF($AA$4=\"Environmental\",AR140,IF($AA$4=\"Planning\",AT140,\"\")))))))","v":""},"",null,null,null,null,null,null,null,null,null,null,"Prepare Final Report (includes QA/Review)"]
["","",null,null,null,null,null,null,null,null,null,null,null,null,null,null,null,null,null,null,null,null,null,0,{"$f":"IF(SUM(D141:W141)=0,\"\",((SUM(D141:W141))/$X$261))","v":""},null,null,null,null,null,null,null,"","",null,null,null,null,null,null,null,null,null,"F.3.i"]
["","",null,null,null,null,null,null,null,null,null,null,null,null,null,null,null,null,null,null,null,null,null,0,"",null,null,null,null,null,null,null,"","",null,null,null,null,null,null,null,null,null,"F.3.j"]
["","",null,null,null,null,null,null,null,null,null,null,null,null,null,null,null,null,null,null,null,null,null,0,"",null,null,null,null,null,null,null,"","",null,null,null,null,null,null,null,null,null,"F.3.k"]
["","",null,null,null,null,null,null,null,null,null,null,null,null,null,null,null,null,null,null,null,null,null,{"$f":"IF(B144=\"\",0,IF(B144=\"STAKEHOLDER INVOLVEMENT\",\"\",IF((SUM(D144:W144)=0),0,SUM(D144:W144))))","v":0},"",null,null,null,null,null,null,null,"","",null,null,null,null,null,null,null,null,null,"F.3.l",null,12,"STAKEHOLDER INVOLVEMENT"]
["","",null,null,null,null,null,null,null,null,null,null,null,null,null,null,null,null,null,null,null,null,null,{"$f":"IF(B145=\"\",0,IF((SUM(D145:W145)=0),0,SUM(D145:W145)))","v":0},"",null,null,null,null,null,null,null,"","",null,null,null,null,null,null,null,null,null,"F.3.m",null,null,"Attend 2 meetings (facilitated by others)"]
["","",null,null,null,null,null,null,null,null,null,null,null,null,null,null,null,null,null,null,null,null,null,{"$f":"IF(B146=\"\",0,IF(B146=\"AIR QUALITY ANALYSIS\",\"\",IF((SUM(D146:W146)=0),0,SUM(D146:W146))))","v":0},"",null,null,null,null,null,null,null,"","",null,null,null,null,null,null,null,null,null,"F.4","AIR QUALITY ANALYSIS",null,"Coordinate with NCDOT to discuss results of stakeholder interaction"]
["","",null,null,null,null,null,null,null,null,null,null,null,null,null,null,null,null,null,null,null,null,null,{"$f":"IF(B147=\"\",0,IF((SUM(D147:W147)=0),0,SUM(D147:W147)))","v":0},"",null,null,null,null,null,null,null,"","",null,null,null,null,null,null,null,null,null,"F.4.a","Data Compilation"]
["","",null,null,null,null,null,null,null,null,null,null,null,null,null,null,null,null,null,null,null,null,null,{"$f":"IF(B148=\"\",0,IF((SUM(D148:W148)=0),0,SUM(D148:W148)))","v":0},"",null,null,null,null,null,null,null,"","",null,null,null,null,null,null,null,null,null,"F.4.b","Attainment Status and Conformity"]
["","",null,null,null,null,null,null,null,null,null,null,null,null,null,null,null,null,null,null,null,null,null,{"$f":"IF(B149=\"\",0,IF((SUM(D149:W149)=0),0,SUM(D149:W149)))","v":0},"",null,null,null,null,null,null,null,"","",null,null,null,null,null,null,null,null,null,"F.4.c","Carbon Monoxide Air Quality Analysis"]
["","",null,null,null,null,null,null,null,null,null,null,null,null,null,null,null,null,null,null,null,null,null,{"$f":"IF(B150=\"\",0,IF((SUM(D150:W150)=0),0,SUM(D150:W150)))","v":0},"",null,null,null,null,null,null,null,"","",null,null,null,null,null,null,null,null,null,"F.4.d","Particulate Matter"]
["","",null,null,null,null,null,null,null,null,null,null,null,null,null,null,null,null,null,null,null,null,null,{"$f":"IF(B151=\"\",0,IF((SUM(D151:W151)=0),0,SUM(D151:W151)))","v":0},"",null,null,null,null,null,null,null,"","",null,null,null,null,null,null,null,null,null,"F.4.e","Mobile Source Air Toxics (MSATs)"]
["","",null,null,null,null,null,null,null,null,null,null,null,null,null,null,null,null,null,null,null,null,null,{"$f":"IF(B152=\"\",0,IF(B152=\"SCHEDULE\",\"\",IF((SUM(D152:W152)=0),0,SUM(D152:W152))))","v":0},"",null,null,null,null,null,null,null,"","",null,null,null,null,null,null,null,null,null,"F.4.f","Greenhouse Gas Emissions (GHGs)",13,"SCHEDULE"]
["","",null,null,null,null,null,null,null,null,null,null,null,null,null,null,null,null,null,null,null,null,null,{"$f":"IF(B153=\"\",0,IF((SUM(D153:W153)=0),0,SUM(D153:W153)))","v":0},"",null,null,null,null,null,null,null,"","",null,null,null,null,null,null,null,null,null,"F.4.g","Air Quality Technical Report",null,"Develop schedule of deliverable and review tasks"]
["","",null,null,null,null,null,null,null,null,null,null,null,null,null,null,null,null,null,null,null,null,null,0,"",null,null,null,null,null,null,null,"","",null,null,null,null,null,null,null,null,null,"F.4.h",null,null,"Update schedule as needed"]
["","",null,null,null,null,null,null,null,null,null,null,null,null,null,null,null,null,null,null,null,null,null,0,"",null,null,null,null,null,null,null,"","",null,null,null,null,null,null,null,null,null,"F.4.i"]
["","",null,null,null,null,null,null,null,null,null,null,null,null,null,null,null,null,null,null,null,null,null,0,"",null,null,null,null,null,null,null,"","",null,null,null,null,null,null,null,null,null,"F.4.j"]
["","",null,null,null,null,null,null,null,null,null,null,null,null,null,null,null,null,null,null,null,null,null,0,"",null,null,null,null,null,null,null,"","",null,null,null,null,null,null,null,null,null,"F.4.k"]
["","",null,null,null,null,null,null,null,null,null,null,null,null,null,null,null,null,null,null,null,null,null,0,"",null,null,null,null,null,null,null,"","",null,null,null,null,null,null,null,null,null,"F.4.l"]
["","",null,null,null,null,null,null,null,null,null,null,null,null,null,null,null,null,null,null,null,null,null,{"$f":"IF(B159=\"\",0,IF(B159=\"CULTURAL RESOURCES ANALYSIS\",\"\",IF((SUM(D159:W159)=0),0,SUM(D159:W159))))","v":0},"",null,null,null,null,null,null,null,"","",null,null,null,null,null,null,null,null,null,"F.5","CULTURAL RESOURCES ANALYSIS"]
["","",null,null,null,null,null,null,null,null,null,null,null,null,null,null,null,null,null,null,null,null,null,{"$f":"IF(B160=\"\",0,IF(B160=\"REPORT\",\"\",IF((SUM(D160:W160)=0),0,SUM(D160:W160))))","v":0},"",null,null,null,null,null,null,null,"","",null,null,null,null,null,null,null,null,null,"F.5.a","Phase 1 Historic Architectural Analysis",14,"REPORT"]
["","",null,null,null,null,null,null,null,null,null,null,null,null,null,null,null,null,null,null,null,null,null,{"$f":"IF(B161=\"\",0,IF(B161=\"ARCHAEOLOGICAL ANALYSIS\",\"\",IF((SUM(D161:W161)=0),0,SUM(D161:W161))))","v":0},"",null,null,null,null,null,null,null,"","",null,null,null,null,null,null,null,null,null,"F.5.b","ARCHAEOLOGICAL ANALYSIS",null,"Prepare draft report (electronic version only) for NCDOT review"]
["","",null,null,null,null,null,null,null,null,null,null,null,null,null,null,null,null,null,null,null,null,null,{"$f":"IF(B162=\"\",0,IF((SUM(D162:W162)=0),0,SUM(D162:W162)))","v":0},"",null,null,null,null,null,null,null,"","",null,null,null,null,null,null,null,null,null,null,"Conduct Background Research of information from NC OSA/ SHPO",null,"Revise per NCDOT comments"]
["","",null,null,null,null,null,null,null,null,null,null,null,null,null,null,null,null,null,null,null,null,null,0,"",null,null,null,null,null,null,null,"","",null,null,null,null,null,null,null,null,null,null,"Collect previously recorded sites and surveys in study area",null,"Prepare final report"]
["","",null,null,null,null,null,null,null,null,null,null,null,null,null,null,null,null,null,null,null,null,null,0,"",null,null,null,null,null,null,null,"","",null,null,null,null,null,null,null,null,null,null,"Prepare Archaeological Overview Report"]
["","",null,null,null,null,null,null,null,null,null,null,null,null,null,null,null,null,null,null,null,null,null,0,"",null,null,null,null,null,null,null,"","",null,null,null,null,null,null,null,null,null,null," known archaeological resources in alternatives or study area"]
["","",null,null,null,null,null,null,null,null,null,null,null,null,null,null,null,null,null,null,null,null,null,0,"",null,null,null,null,null,null,null,"","",null,null,null,null,null,null,null,null,null,null," sites of value for reasons other than recoverable information"]
["","",null,null,null,null,null,null,null,null,null,null,null,null,null,null,null,null,null,null,null,null,null,0,"",null,null,null,null,null,null,null,"","",null,null,null,null,null,null,null,null,null,null," assessment of potential for archaeological sites in areas not previously surveyed"]
["","",null,null,null,null,null,null,null,null,null,null,null,null,null,null,null,null,null,null,null,null,null,0,"",null,null,null,null,null,null,null,"","",null,null,null,null,null,null,null,null,null,null," recommendations regarding need for archaeological survey"]
["","",null,null,null,null,null,null,null,null,null,null,null,null,null,null,null,null,null,null,null,null,null,{"$f":"IF(B169=\"\",0,IF(B169=\"PROJECT COORDINATION\",\"\",IF((SUM(D169:W169)=0),0,SUM(D169:W169))))","v":0},"",null,null,null,null,null,null,null,"","",null,null,null,null,null,null,null,null,null,null,"Graphics showing alternatives, previously studied areas, and known sites",15,"PROJECT COORDINATION"]
["","",null,null,null,null,null,null,null,null,null,null,null,null,null,null,null,null,null,null,null,null,null,{"$f":"IF(B170=\"\",0,IF((SUM(D170:W170)=0),0,SUM(D170:W170)))","v":0},"",null,null,null,null,null,null,null,"","",null,null,null,null,null,null,null,null,null,null,"Submit Draft Archaeological Overview Report",null,"Coordinate internally with staff and subconsultants"]
["","",null,null,null,null,null,null,null,null,null,null,null,null,null,null,null,null,null,null,null,null,null,0,"",null,null,null,null,null,null,null,"","",null,null,null,null,null,null,null,null,null,null,"Address NCDOT comments on Draft Archaeological Overview Report"]
["","",null,null,null,null,null,null,null,null,null,null,null,null,null,null,null,null,null,null,null,null,null,0,"",null,null,null,null,null,null,null,"","",null,null,null,null,null,null,null,null,null,null,"Submit Final Archaeological Overview Report"]
["","",null,null,null,null,null,null,null,null,null,null,null,null,null,null,null,null,null,null,null,null,null,0,"",null,null,null,null,null,null,null,"","",null,null,null,null,null,null,null,null,null,null,"Meeting attendance and coordination"]
["","",null,null,null,null,null,null,null,null,null,null,null,null,null,null,null,null,null,null,null,null,null,0,"",null,null,null,null,null,null,null,"","",null,null,null,null,null,null,null,null,null,"F.5.c"]
["","",null,null,null,null,null,null,null,null,null,null,null,null,null,null,null,null,null,null,null,null,null,0,"",null,null,null,null,null,null,null,"","",null,null,null,null,null,null,null,null,null,"F.5.d"]
["","",null,null,null,null,null,null,null,null,null,null,null,null,null,null,null,null,null,null,null,null,null,{"$f":"IF(B176=\"\",0,IF(B176=\"TRUCK ALTERNATIVE ROUTE ANALYSIS\",\"\",IF((SUM(D176:W176)=0),0,SUM(D176:W176))))","v":0},"",null,null,null,null,null,null,null,"","",null,null,null,null,null,null,null,null,null,"F.5.e",null,16,"TRUCK ALTERNATIVE ROUTE ANALYSIS"]
["","",null,null,null,null,null,null,null,null,null,null,null,null,null,null,null,null,null,null,null,null,null,{"$f":"IF(B177=\"\",0,IF((SUM(D177:W177)=0),0,SUM(D177:W177)))","v":0},"",null,null,null,null,null,null,null,"","",null,null,null,null,null,null,null,null,null,"F.5.f",null,null,"Truck Alternative Route Analysis (XX to the Port)"]
["","",null,null,null,null,null,null,null,null,null,null,null,null,null,null,null,null,null,null,null,null,null,{"$f":"IF(B178=\"\",0,IF((SUM(D178:W178)=0),0,SUM(D178:W178)))","v":0},"",null,null,null,null,null,null,null,"","",null,null,null,null,null,null,null,null,null,"F.5.g"]
["","",null,null,null,null,null,null,null,null,null,null,null,null,null,null,null,null,null,null,null,null,null,{"$f":"IF(B179=\"\",0,IF(B179=\"OTHER PHYSICAL FEATURES ANALYSIS\",\"\",IF((SUM(D179:W179)=0),0,SUM(D179:W179))))","v":0},"",null,null,null,null,null,null,null,"","",null,null,null,null,null,null,null,null,null,"G","OTHER PHYSICAL FEATURES ANALYSIS"]
["","",null,null,null,null,null,null,null,null,null,null,null,null,null,null,null,null,null,null,null,null,null,{"$f":"IF(B180=\"\",0,IF((SUM(D180:W180)=0),0,SUM(D180:W180)))","v":0},"",null,null,null,null,null,null,null,"","",null,null,null,null,null,null,null,null,null,"G.1","Identify Potential Floodplain and Floodway Impacts"]
["","",null,null,null,null,null,null,null,null,null,null,null,null,null,null,null,null,null,null,null,null,null,{"$f":"IF(B181=\"\",0,IF((SUM(D181:W181)=0),0,SUM(D181:W181)))","v":0},"",null,null,null,null,null,null,null,"","",null,null,null,null,null,null,null,null,null,"G.2","Farmland Assessment"]
["","",null,null,null,null,null,null,null,null,null,null,null,null,null,null,null,null,null,null,null,null,null,{"$f":"IF(B182=\"\",0,IF(B182=\"FEASIBILITY STUDY\",\"\",IF((SUM(D182:W182)=0),0,SUM(D182:W182))))","v":0},"",null,null,null,null,null,null,null,"","",null,null,null,null,null,null,null,null,null,"G.3","Hazardous Materials Assessment",17,"FEASIBILITY STUDY"]
["","",null,null,null,null,null,null,null,null,null,null,null,null,null,null,null,null,null,null,null,null,null,{"$f":"IF(B183=\"\",0,IF((SUM(D183:W183)=0),0,SUM(D183:W183)))","v":0},"",null,null,null,null,null,null,null,"","",null,null,null,null,null,null,null,null,null,"G.4","Visual Impact Analysis"]
["","",null,null,null,null,null,null,null,null,null,null,null,null,null,null,null,null,null,null,null,null,null,0,"",null,null,null,null,null,null,null,"","",null,null,null,null,null,null,null,null,null,"G.5","Identify Potential Public Utility Impacts"]
["","",null,null,null,null,null,null,null,null,null,null,null,null,null,null,null,null,null,null,null,null,null,0,"",null,null,null,null,null,null,null,"","",null,null,null,null,null,null,null,null,null,"G.6"]
["","",null,null,null,null,null,null,null,null,null,null,null,null,null,null,null,null,null,null,null,null,null,0,"",null,null,null,null,null,null,null,"","",null,null,null,null,null,null,null,null,null,"G.7"]
["","",null,null,null,null,null,null,null,null,null,null,null,null,null,null,null,null,null,null,null,null,null,0,"",null,null,null,null,null,null,null,"","",null,null,null,null,null,null,null,null,null,"G.8"]
["","",null,null,null,null,null,null,null,null,null,null,null,null,null,null,null,null,null,null,null,null,null,0,"",null,null,null,null,null,null,null,"","",null,null,null,null,null,null,null,null,null,"G.9"]
["","",null,null,null,null,null,null,null,null,null,null,null,null,null,null,null,null,null,null,null,null,null,0,"",null,null,null,null,null,null,null,"","",null,null,null,null,null,null,null,null,null,"G.10"]
["","",null,null,null,null,null,null,null,null,null,null,null,null,null,null,null,null,null,null,null,null,null,{"$f":"IF(B190=\"\",0,IF(B190=\"SECTION 4(F) AND SECTION 6(F)\",\"\",IF((SUM(D190:W190)=0),0,SUM(D190:W190))))","v":0},"",null,null,null,null,null,null,null,"","",null,null,null,null,null,null,null,null,null,"H","SECTION 4(F) AND SECTION 6(F)"]
["","",null,null,null,null,null,null,null,null,null,null,null,null,null,null,null,null,null,null,null,null,null,{"$f":"IF(B191=\"\",0,IF((SUM(D191:W191)=0),0,SUM(D191:W191)))","v":0},"",null,null,null,null,null,null,null,"","",null,null,null,null,null,null,null,null,null,"H.1"]
["","",null,null,null,null,null,null,null,null,null,null,null,null,null,null,null,null,null,null,null,null,null,{"$f":"IF(B192=\"\",0,IF((SUM(D192:W192)=0),0,SUM(D192:W192)))","v":0},"",null,null,null,null,null,null,null,"","",null,null,null,null,null,null,null,null,null,"H.2"]
["","",null,null,null,null,null,null,null,null,null,null,null,null,null,null,null,null,null,null,null,null,null,{"$f":"IF(B193=\"\",0,IF((SUM(D193:W193)=0),0,SUM(D193:W193)))","v":0},"",null,null,null,null,null,null,null,"","",null,null,null,null,null,null,null,null,null,"H.3"]
["","",null,null,null,null,null,null,null,null,null,null,null,null,null,null,null,null,null,null,null,null,null,{"$f":"IF(B194=\"\",0,IF((SUM(D194:W194)=0),0,SUM(D194:W194)))","v":0},"",null,null,null,null,null,null,null,"","",null,null,null,null,null,null,null,null,null,"H.4"]
["","",null,null,null,null,null,null,null,null,null,null,null,null,null,null,null,null,null,null,null,null,null,{"$f":"IF(B195=\"\",0,IF((SUM(D195:W195)=0),0,SUM(D195:W195)))","v":0},"",null,null,null,null,null,null,null,"","",null,null,null,null,null,null,null,null,null,"H.5"]
["","",null,null,null,null,null,null,null,null,null,null,null,null,null,null,null,null,null,null,null,null,null,{"$f":"IF(B196=\"\",0,IF(B196=\"DRAFT ENVIRONMENTAL DOCUMENT\",\"\",IF((SUM(D196:W196)=0),0,SUM(D196:W196))))","v":0},"",null,null,null,null,null,null,null,"","",null,null,null,null,null,null,null,null,null,"I","DRAFT ENVIRONMENTAL DOCUMENT"]
["","",null,null,null,null,null,null,null,null,null,null,null,null,null,null,null,null,null,null,null,null,null,{"$f":"IF(B197=\"\",0,IF((SUM(D197:W197)=0),0,SUM(D197:W197)))","v":0},"",null,null,null,null,null,null,null,"","",null,null,null,null,null,null,null,null,null,"I.1","Purpose and Need"]
["","",null,null,null,null,null,null,null,null,null,null,null,null,null,null,null,null,null,null,null,null,null,0,"",null,null,null,null,null,null,null,"","",null,null,null,null,null,null,null,null,null,"I.2","Alternatives Considered"]
["","",null,null,null,null,null,null,null,null,null,null,null,null,null,null,null,null,null,null,null,null,null,0,"",null,null,null,null,null,null,null,"","",null,null,null,null,null,null,null,null,null,"I.3","Human Environment"]
["","",null,null,null,null,null,null,null,null,null,null,null,null,null,null,null,null,null,null,null,null,null,0,"",null,null,null,null,null,null,null,"","",null,null,null,null,null,null,null,null,null,"I.4","Physical Environment"]
["","",null,null,null,null,null,null,null,null,null,null,null,null,null,null,null,null,null,null,null,null,null,0,"",null,null,null,null,null,null,null,"","",null,null,null,null,null,null,null,null,null,"I.5","Cultural Resources"]
["","",null,null,null,null,null,null,null,null,null,null,null,null,null,null,null,null,null,null,null,null,null,0,"",null,null,null,null,null,null,null,"","",null,null,null,null,null,null,null,null,null,"I.6","Natural Resources"]
["","",null,null,null,null,null,null,null,null,null,null,null,null,null,null,null,null,null,null,null,null,null,0,"",null,null,null,null,null,null,null,"","",null,null,null,null,null,null,null,null,null,"I.7","Environmental Impacts"]
[{"$f":"IF(AG204=0,\"\",AG204)","v":""},"",null,null,null,null,null,null,null,null,null,null,null,null,null,null,null,null,null,null,null,null,null,0,"",null,null,null,null,null,null,null,{"$f":"IF($AA$4=\"Select Task Type\",\"\",IF($AA$4=\"Grade Separation\",AJ204,IF($AA$4=\"CEI\",AL204,IF($AA$4=\"Track Design\",AN204,IF($AA$4=\"Signal Design\",AP204,IF($AA$4=\"Environmental\",AR204,IF($AA$4=\"Planning\",AT204,\"\")))))))","v":""},"",null,null,null,null,null,null,null,null,null,"I.8","Indirect and Cumulative Effects"]
["","",null,null,null,null,null,null,null,null,null,null,null,null,null,null,null,null,null,null,null,null,null,0,{"$f":"IF(SUM(D205:W205)=0,\"\",((SUM(D205:W205))/$X$261))","v":""},null,null,null,null,null,null,null,"","",null,null,null,null,null,null,null,null,null,"I.9","Other Impact Considerations"]
["","",null,null,null,null,null,null,null,null,null,null,null,null,null,null,null,null,null,null,null,null,null,0,"",null,null,null,null,null,null,null,"","",null,null,null,null,null,null,null,null,null,"I.10","Public Involvement ad Agency Coordination"]
["","",null,null,null,null,null,null,null,null,null,null,null,null,null,null,null,null,null,null,null,null,null,0,"",null,null,null,null,null,null,null,"","",null,null,null,null,null,null,null,null,null,"I.11","Compile Draft EA & Final EA"]
["","",null,null,null,null,null,null,null,null,null,null,null,null,null,null,null,null,null,null,null,null,null,0,"",null,null,null,null,null,null,null,"","",null,null,null,null,null,null,null,null,null,"I.12","Review and Distribution of EA"]
["","",null,null,null,null,null,null,null,null,null,null,null,null,null,null,null,null,null,null,null,null,null,0,"",null,null,null,null,null,null,null,"","",null,null,null,null,null,null,null,null,null,"I.13"]
["","",null,null,null,null,null,null,null,null,null,null,null,null,null,null,null,null,null,null,null,null,null,0,"",null,null,null,null,null,null,null,"","",null,null,null,null,null,null,null,null,null,"I.14"]
["","",null,null,null,null,null,null,null,null,null,null,null,null,null,null,null,null,null,null,null,null,null,0,"",null,null,null,null,null,null,null,"","",null,null,null,null,null,null,null,null,null,"I.15"]
["","",null,null,null,null,null,null,null,null,null,null,null,null,null,null,null,null,null,null,null,null,null,0,"",null,null,null,null,null,null,null,"","",null,null,null,null,null,null,null,null,null,"I.16"]
["","",null,null,null,null,null,null,null,null,null,null,null,null,null,null,null,null,null,null,null,null,null,0,"",null,null,null,null,null,null,null,"","",null,null,null,null,null,null,null,null,null,"I.17"]
["","",null,null,null,null,null,null,null,null,null,null,null,null,null,null,null,null,null,null,null,null,null,{"$f":"IF(B214=\"\",0,IF(B214=\"FINAL ENVIRONMENTAL DOCUMENT\",\"\",IF((SUM(D214:W214)=0),0,SUM(D214:W214))))","v":0},"",null,null,null,null,null,null,null,"","",null,null,null,null,null,null,null,null,null,"J","FINAL ENVIRONMENTAL DOCUMENT"]
["","",null,null,null,null,null,null,null,null,null,null,null,null,null,null,null,null,null,null,null,null,null,{"$f":"IF(B215=\"\",0,IF((SUM(D215:W215)=0),0,SUM(D215:W215)))","v":0},"",null,null,null,null,null,null,null,"","",null,null,null,null,null,null,null,null,null,"J.1","Compile FONSI"]
["","",null,null,null,null,null,null,null,null,null,null,null,null,null,null,null,null,null,null,null,null,null,0,"",null,null,null,null,null,null,null,"","",null,null,null,null,null,null,null,null,null,"J.2","Alternative Selection"]
["","",null,null,null,null,null,null,null,null,null,null,null,null,null,null,null,null,null,null,null,null,null,0,"",null,null,null,null,null,null,null,"","",null,null,null,null,null,null,null,null,null,"J.3","Prepare Draft & Final Finding of No Significant Impact (FONSI)"]
["","",null,null,null,null,null,null,null,null,null,null,null,null,null,null,null,null,null,null,null,null,null,0,"",null,null,null,null,null,null,null,"","",null,null,null,null,null,null,null,null,null,"J.4"]
["","",null,null,null,null,null,null,null,null,null,null,null,null,null,null,null,null,null,null,null,null,null,0,"",null,null,null,null,null,null,null,"","",null,null,null,null,null,null,null,null,null,"J.5"]
["","",null,null,null,null,null,null,null,null,null,null,null,null,null,null,null,null,null,null,null,null,null,0,"",null,null,null,null,null,null,null,"","",null,null,null,null,null,null,null,null,null,"J.6"]
["","",null,null,null,null,null,null,null,null,null,null,null,null,null,null,null,null,null,null,null,null,null,0,"",null,null,null,null,null,null,null,"","",null,null,null,null,null,null,null,null,null,"J.7"]
["","",null,null,null,null,null,null,null,null,null,null,null,null,null,null,null,null,null,null,null,null,null,0,"",null,null,null,null,null,null,null,"","",null,null,null,null,null,null,null,null,null,"J.8"]
["","",null,null,null,null,null,null,null,null,null,null,null,null,null,null,null,null,null,null,null,null,null,{"$f":"IF(B223=\"\",0,IF(B223=\"PUBLIC INVOLVEMENT\",\"\",IF((SUM(D223:W223)=0),0,SUM(D223:W223))))","v":0},"",null,null,null,null,null,null,null,"","",null,null,null,null,null,null,null,null,null,"K","PUBLIC INVOLVEMENT"]
["","",null,null,null,null,null,null,null,null,null,null,null,null,null,null,null,null,null,null,null,null,null,{"$f":"IF(B224=\"\",0,IF((SUM(D224:W224)=0),0,SUM(D224:W224)))","v":0},"",null,null,null,null,null,null,null,"","",null,null,null,null,null,null,null,null,null,"K.1","Informal Stakeholder Coordination"]
["","",null,null,null,null,null,null,null,null,null,null,null,null,null,null,null,null,null,null,null,null,null,0,"",null,null,null,null,null,null,null,"","",null,null,null,null,null,null,null,null,null,"K.2","Public Information Meeting"]
["","",null,null,null,null,null,null,null,null,null,null,null,null,null,null,null,null,null,null,null,null,null,0,"",null,null,null,null,null,null,null,"","",null,null,null,null,null,null,null,null,null,"K.3","Public Hearing"]
["","",null,null,null,null,null,null,null,null,null,null,null,null,null,null,null,null,null,null,null,null,null,0,"",null,null,null,null,null,null,null,"","",null,null,null,null,null,null,null,null,null,"K.4","Local Offical Information Meeting"]
["","",null,null,null,null,null,null,null,null,null,null,null,null,null,null,null,null,null,null,null,null,null,0,"",null,null,null,null,null,null,null,"","",null,null,null,null,null,null,null,null,null,"K.5","Mailer"]
["","",null,null,null,null,null,null,null,null,null,null,null,null,null,null,null,null,null,null,null,null,null,0,"",null,null,null,null,null,null,null,"","",null,null,null,null,null,null,null,null,null,"K.6","Meeting Maps"]
["","",null,null,null,null,null,null,null,null,null,null,null,null,null,null,null,null,null,null,null,null,null,0,"",null,null,null,null,null,null,null,"","",null,null,null,null,null,null,null,null,null,"K.7","Meeting Displays"]
["","",null,null,null,null,null,null,null,null,null,null,null,null,null,null,null,null,null,null,null,null,null,0,"",null,null,null,null,null,null,null,"","",null,null,null,null,null,null,null,null,null,"K.8"]
["","",null,null,null,null,null,null,null,null,null,null,null,null,null,null,null,null,null,null,null,null,null,0,"",null,null,null,null,null,null,null,"","",null,null,null,null,null,null,null,null,null,"K.9"]
["","",null,null,null,null,null,null,null,null,null,null,null,null,null,null,null,null,null,null,null,null,null,0,"",null,null,null,null,null,null,null,"","",null,null,null,null,null,null,null,null,null,"K.10"]
["","",null,null,null,null,null,null,null,null,null,null,null,null,null,null,null,null,null,null,null,null,null,0,"",null,null,null,null,null,null,null,"","",null,null,null,null,null,null,null,null,null,"K.11"]
["","",null,null,null,null,null,null,null,null,null,null,null,null,null,null,null,null,null,null,null,null,null,0,"",null,null,null,null,null,null,null,"","",null,null,null,null,null,null,null,null,null,"K.12"]
["","",null,null,null,null,null,null,null,null,null,null,null,null,null,null,null,null,null,null,null,null,null,{"$f":"IF(B236=\"\",0,IF(B236=\"PROJECT COORDINATION AND MANAGEMENT\",\"\",IF((SUM(D236:W236)=0),0,SUM(D236:W236))))","v":0},"",null,null,null,null,null,null,null,"","",null,null,null,null,null,null,null,null,null,"L","PROJECT COORDINATION AND MANAGEMENT"]
["","",null,null,null,null,null,null,null,null,null,null,null,null,null,null,null,null,null,null,null,null,null,{"$f":"IF(B237=\"\",0,IF((SUM(D237:W237)=0),0,SUM(D237:W237)))","v":0},"",null,null,null,null,null,null,null,"","",null,null,null,null,null,null,null,null,null,"L.1","Project Schedule"]
["","",null,null,null,null,null,null,null,null,null,null,null,null,null,null,null,null,null,null,null,null,null,0,"",null,null,null,null,null,null,null,"","",null,null,null,null,null,null,null,null,null,"L.2","Coordination with NCDOT"]
["","",null,null,null,null,null,null,null,null,null,null,null,null,null,null,null,null,null,null,null,null,null,0,"",null,null,null,null,null,null,null,"","",null,null,null,null,null,null,null,null,null,"L.3","General Coordination"]
["","",null,null,null,null,null,null,null,null,null,null,null,null,null,null,null,null,null,null,null,null,null,0,"",null,null,null,null,null,null,null,"","",null,null,null,null,null,null,null,null,null,"L.4"]
["","",null,null,null,null,null,null,null,null,null,null,null,null,null,null,null,null,null,null,null,null,null,0,"",null,null,null,null,null,null,null,"","",null,null,null,null,null,null,null,null,null,"L.5"]
["","",null,null,null,null,null,null,null,null,null,null,null,null,null,null,null,null,null,null,null,null,null,0,"",null,null,null,null,null,null,null,"","",null,null,null,null,null,null,null,null,null,"L.6"]
["","",null,null,null,null,null,null,null,null,null,null,null,null,null,null,null,null,null,null,null,null,null,0,"",null,null,null,null,null,null,null,"","",null,null,null,null,null,null,null,null,null,"L.7"]
["","",null,null,null,null,null,null,null,null,null,null,null,null,null,null,null,null,null,null,null,null,null,0,"",null,null,null,null,null,null,null,"","",null,null,null,null,null,null,null,null,null,"L.8"]
["","",null,null,null,null,null,null,null,null,null,null,null,null,null,null,null,null,null,null,null,null,null,0,"",null,null,null,null,null,null,null,"",""]
["","",null,null,null,null,null,null,null,null,null,null,null,null,null,null,null,null,null,null,null,null,null,0,"",null,null,null,null,null,null,null,"",""]
["","",null,null,null,null,null,null,null,null,null,null,null,null,null,null,null,null,null,null,null,null,null,0,"",null,null,null,null,null,null,null,"",""]
["","",null,null,null,null,null,null,null,null,null,null,null,null,null,null,null,null,null,null,null,null,null,0,"",null,null,null,null,null,null,null,"",""]
["","",null,null,null,null,null,null,null,null,null,null,null,null,null,null,null,null,null,null,null,null,null,0,"",null,null,null,null,null,null,null,"",""]
["","",null,null,null,null,null,null,null,null,null,null,null,null,null,null,null,null,null,null,null,null,null,0,"",null,null,null,null,null,null,null,"",""]
["","",null,null,null,null,null,null,null,null,null,null,null,null,null,null,null,null,null,null,null,null,null,0,"",null,null,null,null,null,null,null,"",""]
["","",null,null,null,null,null,null,null,null,null,null,null,null,null,null,null,null,null,null,null,null,null,0,"",null,null,null,null,null,null,null,"",""]
["","",null,null,null,null,null,null,null,null,null,null,null,null,null,null,null,null,null,null,null,null,null,0,"",null,null,null,null,null,null,null,"",""]
["","",null,null,null,null,null,null,null,null,null,null,null,null,null,null,null,null,null,null,null,null,null,0,"",null,null,null,null,null,null,null,"",""]
["","",null,null,null,null,null,null,null,null,null,null,null,null,null,null,null,null,null,null,null,null,null,0,"",null,null,null,null,null,null,null,"",""]
["","",null,null,null,null,null,null,null,null,null,null,null,null,null,null,null,null,null,null,null,null,null,0,"",null,null,null,null,null,null,null,"",""]
["","",null,null,null,null,null,null,null,null,null,null,null,null,null,null,null,null,null,null,null,null,null,0,"",null,null,null,null,null,null,null,"",""]
["","",null,null,null,null,null,null,null,null,null,null,null,null,null,null,null,null,null,null,null,null,null,0,"",null,null,null,null,null,null,null,"",""]
["","",null,null,null,null,null,null,null,null,null,null,null,null,null,null,null,null,null,null,null,null,null,0,{"$f":"IF(SUM(D259:W259)=0,\"\",((SUM(D259:W259))/$X$261))","v":""},null,null,null,null,null,null,null,"",""]
["","",null,null,null,null,null,null,null,null,null,null,null,null,null,null,null,null,null,null,null,null,null,0,{"$f":"IF(SUM(D260:W260)=0,\"\",((SUM(D260:W260))/$X$261))","v":""},null,null,null,null,null,null,null,"",""]
[null,"TOTAL WORKHOURS/CATEGORY:",null,{"$f":"SUM(D11:D260)","v":0},0,0,0,0,0,0,0,0,0,0,0,0,0,0,0,0,0,0,0,{"$f":"SUM(D261:W261)","v":0},{"$f":"SUM(Y11:Y260)","v":0},{"$f":"SUM(Z11:Z260)","v":0}]
[null,"TOTAL WORKDAYS/CATEGORY:",null,{"$f":"D261/8","v":0},{"$f":"E261/8","v":0},0,0,0,0,0,0,0,0,0,0,0,0,0,0,0,0,0,0]
[null,"HOURLY SALARY RATE:",null,{"$f":"'PEF CLASSIFICATION SHEET'!E1145","v":0},{"$f":"'PEF CLASSIFICATION SHEET'!E1146","v":0},{"$f":"'PEF CLASSIFICATION SHEET'!E1147","v":0},{"$f":"'PEF CLASSIFICATION SHEET'!E1148","v":0},{"$f":"'PEF CLASSIFICATION SHEET'!E1149","v":0},{"$f":"'PEF CLASSIFICATION SHEET'!E1150","v":0},{"$f":"'PEF CLASSIFICATION SHEET'!E1151","v":0},{"$f":"'PEF CLASSIFICATION SHEET'!E1152","v":0},{"$f":"'PEF CLASSIFICATION SHEET'!E1153","v":0},{"$f":"'PEF CLASSIFICATION SHEET'!E1154","v":0},{"$f":"'PEF CLASSIFICATION SHEET'!E1155","v":0},{"$f":"'PEF CLASSIFICATION SHEET'!E1156","v":0},{"$f":"'PEF CLASSIFICATION SHEET'!E1157","v":0},{"$f":"'PEF CLASSIFICATION SHEET'!E1158","v":0},{"$f":"'PEF CLASSIFICATION SHEET'!E1159","v":0},{"$f":"'PEF CLASSIFICATION SHEET'!E1160","v":0},{"$f":"'PEF CLASSIFICATION SHEET'!E1161","v":0},{"$f":"'PEF CLASSIFICATION SHEET'!E1162","v":0},{"$f":"'PEF CLASSIFICATION SHEET'!E1163","v":0},{"$f":"'PEF CLASSIFICATION SHEET'!E1164","v":0}]
[null,"RATES PER DAY:",null,{"$f":"D263*8","v":0},0,0,0,0,0,0,0,0,0,0,0,0,0,0,0,0,0,0,0]
[null,"PAYROLL BURDEN:",null,{"$f":"SUM(D261*D263)","v":0},{"$f":"SUM(E261*E263)","v":0},0,0,0,0,0,0,0,0,0,0,0,0,0,0,0,0,0,0]
[null,"TOTAL WORKDAYS:",null,{"$f":"SUM(D262:W262)","v":0}]
[null,"TOTAL PAYROLL BURDEN:",null,{"$f":"SUM(D265:W265)","v":0}]
[null,"AVERAGE COST PER HOUR:",null,{"$f":"SUM(D267/(D266*8))","v":{"$error":"#DIV/0!"}}]
[null,"GENERAL OVERHEAD:",{"$f":"RAIL.SUB3_CONSULTANT_OVERHEAD","v":0},{"$f":"SUM(D267*C269)","v":0}]
[null,"SUBTOTAL:",null,{"$f":"SUM(D267+D269)","v":0}]
[null,"COMPARATIVE FEE:",{"$f":"RAIL.SUB3_CONSULTANT_FEE","v":0.09},{"$f":"SUM(D270*C271)","v":0}]
[null,"FACILITIES COST OF CAPITAL:",{"$f":"RAIL.SUB3_COSTofCAPITAL","v":0},{"$f":"SUM(D267*C272)","v":0}]
[null,"TOTAL:",null,{"$f":"SUM(D270:D272)","v":0}]
[null,"DIRECT EXPENSES:",null,{"$f":"RAIL.SUB3_DIRECT_NONSALARY_TOTAL","v":0}]
[null,"RAIL GRAND TOTAL:",null,{"$f":"SUM(D273:D274)","v":0}]

{"sheet":"Rail-Exp-Sub3","index":144,"n_rows":46,"n_cols":8,"rows_kept":46,"cut":false,"hidden":true,"merged":[[0,0,0,7],[1,3,1,7]]}
["RAIL--DIRECT EXPENSES - SUBCONSULTANT 3"]
["TIP NUMBER",{"$f":"TIP.NUMBER","v":0},"FIRM:",{"$f":"'Rail-Sub3'!G3","v":"CONSULTANT NAME"}]
[]
["GENERAL PROJECT WORK:","ITEM","QTY","DESCRIPTION",null,null,"UNIT COST "]
[null,"Travel:"]
[null,"Sedan",0,"Trip(s) @",0,"miles @",{"$f":"SEDAN","v":0.7},{"$f":"SUM(C6*E6*G6)","v":0}]
[null,"Carry All",0,"Trip(s) @",0,"miles @",{"$f":"CARRYALL","v":0.72},{"$f":"SUM(C7*E7*G7)","v":0}]
[null,"Car Rental",null,null,0,"days @ ",{"$f":"CARRENTAL","v":50},{"$f":"SUM(E8*G8)","v":0}]
[null,"Gas for Rental",null,null,0,"miles @",{"$f":"GASforRENTAL","v":0.2},{"$f":"SUM(E9*G9)","v":0}]
[null,"Parking:",0,"Trip(s) @",null,null,{"$f":"PARKING","v":3},{"$f":"SUM(C10*G10)","v":0}]
[null,"Per Diem:",0,"Breakfast",null,null,{"$f":"BREAKFAST","v":10.1},{"$f":"SUM(C11*G11)","v":0}]
[null,null,0,"Lunch",null,null,{"$f":"LUNCH","v":13.3},0]
[null,null,0,"Dinner",null,null,{"$f":"DINNER","v":23.1},0]
[null,null,0,"Lodging",null,null,{"$f":"LODGING_LUMP.SUM","v":95},0]
[null,"Reproduction:",0,"8 1/2 x 11 B & W Copies @",null,null,{"$f":"LETTERCOPIES","v":0.14000000000000001},0]
[null,null,0,"11 x 17 B & W Copies @",null,null,{"$f":"LEDGERCOPIES","v":0.34},0]
[null,null,0,"8 1/2 x 11 Color Copies @",null,null,{"$f":"LETTERCOLOR","v":0.83},0]
[null,null,0,"11 x 17 Color Copies @",null,null,{"$f":"LEDGERCOLOR","v":1.66},0]
[null,null,0,"SQ. FT. of Plots (B & W or Color)",null,"<65 SQ. FT.*",{"$f":"ROLLPLOTSshort","v":6.5},0]
[null,null,0,"SQ. FT. of Plots (B & W or Color)",null,">65 SQ. FT.*",{"$f":"ROLLPLOTSlong","v":1.5},0]
[null,null,0,"Cover(s) @",null,null,{"$f":"COVERS","v":0.5},0]
[null,null,0,"Binder(s) @",null,null,{"$f":"BINDERS","v":0.5},0]
[null,null,0,"Blueprints - 8 1/2 x 11 @",null,null,{"$f":"BLUEPRINTSLETTER","v":0.35},0]
[null,null,0,"Blueprints - 42 x 72 @",null,null,{"$f":"BLUEPRINTSLARGE","v":1.3},0]
[null,"Film and Developing:",0,"Roll(s) @",null,null,{"$f":"FILM","v":20},0]
[null,null,null,null,null,"Subtotal",null,{"$f":"SUM(H6:H25)","v":0}]
["MAPS AND DOCUMENTS:","ITEM","QTY","DESCRIPTION",null,null,"UNIT COST "]
[null,"County Tax Maps:",0,"Map(s) @",null,null,{"$f":"County_Tax_Maps","v":7},{"$f":"SUM(C28*G28)","v":0}]
[null,"USGS Maps:",0,"Map(s) @",null,null,{"$f":"USGSMAPS","v":7},{"$f":"SUM(C29*G29)","v":0}]
[null,null,null,null,null,"Subtotal",null,{"$f":"SUM(H28:H29)","v":0}]
["Miscellaneous Other","ITEM","QTY","DESCRIPTION",null,null,"UNIT COST "]
[null,null,null,null,null,null,null,{"$f":"SUM(C32*G32)","v":0}]
[null,null,null,null,null,null,null,{"$f":"SUM(C33*G33)","v":0}]
[null,null,null,null,null,null,null,0]
[null,null,null,null,null,null,null,0]
[null,null,null,null,null,null,null,0]
[null,null,null,null,null,null,null,0]
[null,null,null,null,null,null,null,0]
[null,null,null,null,null,null,null,{"$f":"SUM(C39*G39)","v":0}]
[null,null,null,null,null,null,null,{"$f":"SUM(C40*G40)","v":0}]
[null,null,null,null,null,null,null,{"$f":"SUM(C41*G41)","v":0}]
[null,null,null,null,null,"Subtotal",null,{"$f":"SUM(H32:H41)","v":0}]
[]
[null,null,null,null,null,"TOTAL",null,{"$f":"SUM(H26+H30+H42)","v":0}]
[]
[null,"* Sum of all plots "]

{"sheet":"Rail-Sub4","index":145,"n_rows":275,"n_cols":47,"rows_kept":275,"cut":false,"hidden":true,"merged":[[280,8,280,9],[280,10,280,11],[283,8,283,13],[284,8,284,9],[284,10,284,11],[285,8,285,9],[285,10,285,11],[258,26,258,27],[259,26,259,27],[274,1,275,1],[274,3,275,4],[278,8,278,13],[279,8,279,9],[279,10,279,11],[252,26,252,27],[253,26,253,27],[254,26,254,27],[255,26,255,27],[256,26,256,27],[257,26,257,27],[246,26,246,27],[247,26,247,27],[248,26,248,27],[249,26,249,27],[250,26,250,27],[251,26,251,27],[240,26,240,27],[241,26,241,27],[242,26,242,27],[243,26,243,27],[244,26,244,27],[245,26,245,27],[230,26,230,27],[231,26,231,27],[232,26,232,27],[233,26,233,27],[234,26,234,27],[235,26,235,27],[214,26,214,27],[215,26,215,27],[216,26,216,27],[217,26,217,27],[228,26,228,27],[229,26,229,27],[218,26,218,27],[219,26,219,27],[220,26,220,27],[221,26,221,27],[222,26,222,27],[223,26,223,27],[224,26,224,27],[225,26,225,27],[226,26,226,27],[227,26,227,27],[208,26,208,27],[209,26,209,27],[210,26,210,27],[211,26,211,27],[212,26,212,27],[213,26,213,27],[202,26,202,27],[203,26,203,27],[204,26,204,27],[205,26,205,27],[206,26,206,27],[207,26,207,27],[70,26,70,27],[197,26,197,27],[198,26,198,27],[199,26,199,27],[200,26,200,27],[201,26,201,27],[64,26,64,27],[65,26,65,27],[66,26,66,27],[67,26,67,27],[68,26,68,27],[69,26,69,27],[120,26,120,27],[121,26,121,27],[122,26,122,27],[123,26,123,27],[124,26,124,27],[125,26,125,27],[126,26,126,27],[127,26,127,27],[128,26,128,27],[129,26,129,27],[130,26,130,27],[131,26,131,27],[58,26,58,27],[59,26,59,27],[60,26,60,27],[61,26,61,27],[62,26,62,27],[63,26,63,27],[52,26,52,27],[53,26,53,27],[54,26,54,27],[55,26,55,27],[56,26,56,27],[57,26,57,27],[46,26,46,27],[47,26,47,27],[48,26,48,27],[49,26,49,27],[50,26,50,27],[51,26,51,27],[40,26,40,27],[41,26,41,27],[42,26,42,27],[43,26,43,27],[44,26,44,27],[45,26,45,27],[34,26,34,27],[35,26,35,27],[36,26,36,27],[37,26,37,27],[38,26,38,27],[39,26,39,27],[28,26,28,27],[29,26,29,27],[30,26,30,27],[31,26,31,27],[32,26,32,27],[33,26,33,27],[22,26,22,27],[23,26,23,27],[24,26,24,27],[25,26,25,27],[26,26,26,27],[27,26,27,27],[16,26,16,27],[17,26,17,27],[18,26,18,27],[19,26,19,27],[20,26,20,27],[21,26,21,27],[10,26,10,27],[11,26,11,27],[12,26,12,27],[13,26,13,27],[14,26,14,27],[15,26,15,27],[6,18,9,18],[6,19,9,19],[6,20,9,20],[6,21,9,21],[6,22,9,22],[8,26,8,27],[6,12,9,12],[6,13,9,13],[6,14,9,14],[6,15,9,15],[6,16,9,16],[6,17,9,17],[4,3,4,22],[6,3,9,3],[6,4,9,4],[6,5,9,5],[6,6,9,6],[6,7,9,7],[6,8,9,8],[6,9,9,9],[6,10,9,10],[6,11,9,11],[0,0,1,13],[2,1,2,4],[2,6,2,7],[2,10,2,11],[2,15,2,16],[3,1,3,4],[3,6,3,7],[3,10,3,11],[3,15,3,16],[147,26,147,27],[148,26,148,27],[149,26,149,27],[132,26,132,27],[133,26,133,27],[134,26,134,27],[135,26,135,27],[136,26,136,27],[137,26,137,27],[138,26,138,27],[139,26,139,27],[140,26,140,27],[187,26,187,27],[188,26,188,27],[189,26,189,27],[190,26,190,27],[191,26,191,27],[192,26,192,27],[193,26,193,27],[194,26,194,27],[195,26,195,27],[196,26,196,27],[71,26,71,27],[72,26,72,27],[73,26,73,27],[74,26,74,27],[75,26,75,27],[76,26,76,27],[77,26,77,27],[78,26,78,27],[79,26,79,27],[80,26,80,27],[81,26,81,27],[82,26,82,27],[83,26,83,27],[84,26,84,27],[85,26,85,27],[86,26,86,27],[87,26,87,27],[88,26,88,27],[89,26,89,27],[90,26,90,27],[91,26,91,27],[92,26,92,27],[93,26,93,27],[94,26,94,27],[95,26,95,27],[96,26,96,27],[97,26,97,27],[98,26,98,27],[99,26,99,27],[100,26,100,27],[101,26,101,27],[102,26,102,27],[103,26,103,27],[104,26,104,27],[105,26,105,27],[106,26,106,27],[107,26,107,27],[108,26,108,27],[109,26,109,27],[110,26,110,27],[111,26,111,27],[112,26,112,27],[113,26,113,27],[114,26,114,27],[115,26,115,27],[116,26,116,27],[117,26,117,27],[118,26,118,27],[119,26,119,27],[159,26,159,27],[150,26,150,27],[151,26,151,27],[152,26,152,27],[153,26,153,27],[154,26,154,27],[155,26,155,27],[156,26,156,27],[157,26,157,27],[158,26,158,27],[141,26,141,27],[142,26,142,27],[143,26,143,27],[144,26,144,27],[145,26,145,27],[146,26,146,27],[160,26,160,27],[161,26,161,27],[162,26,162,27],[163,26,163,27],[164,26,164,27],[165,26,165,27],[166,26,166,27],[167,26,167,27],[168,26,168,27],[236,26,236,27],[237,26,237,27],[238,26,238,27],[239,26,239,27],[3,26,3,27],[9,0,9,1],[178,26,178,27],[179,26,179,27],[180,26,180,27],[181,26,181,27],[182,26,182,27],[183,26,183,27],[184,26,184,27],[185,26,185,27],[186,26,186,27],[169,26,169,27],[170,26,170,27],[171,26,171,27],[172,26,172,27],[173,26,173,27],[174,26,174,27],[175,26,175,27],[176,26,176,27],[177,26,177,27]]}
["                                                                      SUBCONSULTANT 4 - RAIL DIVISION BREAKDOWN WORKSHEET -- ENTER WORKHOURS"]
[]
["PROJECT DESCRIPTION: ",{"$f":"PROJECT.DESCRIPTION","v":0},null,null,null,"FIRM:  ",{"$f":"RAIL.SUB4_CONSULTANT_NAME","v":"CONSULTANT NAME"},null,"TASK ORDER NUMBER:",null,{"$f":"TASK.ORDER.NUMBER","v":0},null,"DATE PREPARED:",{"$f":"IF(SCOPE.MANDAY.ESTIMATE.PREPARED.BY.DATE=\"\",\"\",SCOPE.MANDAY.ESTIMATE.PREPARED.BY.DATE)","v":""}]
["PREPARED BY:  ",{"$f":"IF(SCOPE.MANDAY.ESTIMATE.PREPARED.BY=\"\",\"\",SCOPE.MANDAY.ESTIMATE.PREPARED.BY)","v":""},null,null,null,"TIP NUMBER:",{"$f":"TIP.NUMBER","v":0},null,"WBS NUMBER:",null,{"$f":"WBS.NUMBER","v":""},null,"REVISION DATE:",{"$f":"IF(SCOPE.MANDAY.ESTIMATE.APPROVED.BY.DATE=\"\",\"\",SCOPE.MANDAY.ESTIMATE.APPROVED.BY.DATE)","v":""},null,null,null,null,null,null,null,null,null,null,null,"TASK TYPE:","Select Task Type"]
[null,null,null,"ESTIMATED WORKHOURS"]
[null,null,"EMPLOYEE NAMES",{"$f":"IF('PEF CLASSIFICATION SHEET'!D1167=\"\",\"\",LEFT('PEF CLASSIFICATION SHEET'!D1167,4))","v":""},{"$f":"IF('PEF CLASSIFICATION SHEET'!D1168=\"\",\"\",LEFT('PEF CLASSIFICATION SHEET'!D1168,4))","v":""},{"$f":"IF('PEF CLASSIFICATION SHEET'!D1169=\"\",\"\",LEFT('PEF CLASSIFICATION SHEET'!D1169,4))","v":""},{"$f":"IF('PEF CLASSIFICATION SHEET'!D1170=\"\",\"\",LEFT('PEF CLASSIFICATION SHEET'!D1170,4))","v":""},{"$f":"IF('PEF CLASSIFICATION SHEET'!D1171=\"\",\"\",LEFT('PEF CLASSIFICATION SHEET'!D1171,4))","v":""},{"$f":"IF('PEF CLASSIFICATION SHEET'!D1172=\"\",\"\",LEFT('PEF CLASSIFICATION SHEET'!D1172,4))","v":""},{"$f":"IF('PEF CLASSIFICATION SHEET'!D1173=\"\",\"\",LEFT('PEF CLASSIFICATION SHEET'!D1173,4))","v":""},{"$f":"IF('PEF CLASSIFICATION SHEET'!D1174=\"\",\"\",LEFT('PEF CLASSIFICATION SHEET'!D1174,4))","v":""},{"$f":"IF('PEF CLASSIFICATION SHEET'!D1175=\"\",\"\",LEFT('PEF CLASSIFICATION SHEET'!D1175,4))","v":""},{"$f":"IF('PEF CLASSIFICATION SHEET'!D1176=\"\",\"\",LEFT('PEF CLASSIFICATION SHEET'!D1176,4))","v":""},{"$f":"IF('PEF CLASSIFICATION SHEET'!D1177=\"\",\"\",LEFT('PEF CLASSIFICATION SHEET'!D1177,4))","v":""},{"$f":"IF('PEF CLASSIFICATION SHEET'!D1178=\"\",\"\",LEFT('PEF CLASSIFICATION SHEET'!D1178,4))","v":""},{"$f":"IF('PEF CLASSIFICATION SHEET'!D1179=\"\",\"\",LEFT('PEF CLASSIFICATION SHEET'!D1179,4))","v":""},{"$f":"IF('PEF CLASSIFICATION SHEET'!D1180=\"\",\"\",LEFT('PEF CLASSIFICATION SHEET'!D1180,4))","v":""},{"$f":"IF('PEF CLASSIFICATION SHEET'!D1181=\"\",\"\",LEFT('PEF CLASSIFICATION SHEET'!D1181,4))","v":""},{"$f":"IF('PEF CLASSIFICATION SHEET'!D1182=\"\",\"\",LEFT('PEF CLASSIFICATION SHEET'!D1182,4))","v":""},{"$f":"IF('PEF CLASSIFICATION SHEET'!D1183=\"\",\"\",LEFT('PEF CLASSIFICATION SHEET'!D1183,4))","v":""},{"$f":"IF('PEF CLASSIFICATION SHEET'!D1184=\"\",\"\",LEFT('PEF CLASSIFICATION SHEET'!D1184,4))","v":""},{"$f":"IF('PEF CLASSIFICATION SHEET'!D1185=\"\",\"\",LEFT('PEF CLASSIFICATION SHEET'!D1185,4))","v":""},{"$f":"IF('PEF CLASSIFICATION SHEET'!D1186=\"\",\"\",LEFT('PEF CLASSIFICATION SHEET'!D1186,4))","v":""}]
[null,null,null,{"$f":"IF('PEF CLASSIFICATION SHEET'!C1167=\"\",\"\",'PEF CLASSIFICATION SHEET'!C1167)","v":""},{"$f":"IF('PEF CLASSIFICATION SHEET'!C1168=\"\",\"\",'PEF CLASSIFICATION SHEET'!C1168)","v":""},{"$f":"IF('PEF CLASSIFICATION SHEET'!C1169=\"\",\"\",'PEF CLASSIFICATION SHEET'!C1169)","v":""},{"$f":"IF('PEF CLASSIFICATION SHEET'!C1170=\"\",\"\",'PEF CLASSIFICATION SHEET'!C1170)","v":""},{"$f":"IF('PEF CLASSIFICATION SHEET'!C1171=\"\",\"\",'PEF CLASSIFICATION SHEET'!C1171)","v":""},{"$f":"IF('PEF CLASSIFICATION SHEET'!C1172=\"\",\"\",'PEF CLASSIFICATION SHEET'!C1172)","v":""},{"$f":"IF('PEF CLASSIFICATION SHEET'!C1173=\"\",\"\",'PEF CLASSIFICATION SHEET'!C1173)","v":""},{"$f":"IF('PEF CLASSIFICATION SHEET'!C1174=\"\",\"\",'PEF CLASSIFICATION SHEET'!C1174)","v":""},{"$f":"IF('PEF CLASSIFICATION SHEET'!C1175=\"\",\"\",'PEF CLASSIFICATION SHEET'!C1175)","v":""},{"$f":"IF('PEF CLASSIFICATION SHEET'!C1176=\"\",\"\",'PEF CLASSIFICATION SHEET'!C1176)","v":""},{"$f":"IF('PEF CLASSIFICATION SHEET'!C1177=\"\",\"\",'PEF CLASSIFICATION SHEET'!C1177)","v":""},{"$f":"IF('PEF CLASSIFICATION SHEET'!C1178=\"\",\"\",'PEF CLASSIFICATION SHEET'!C1178)","v":""},{"$f":"IF('PEF CLASSIFICATION SHEET'!C1179=\"\",\"\",'PEF CLASSIFICATION SHEET'!C1179)","v":""},{"$f":"IF('PEF CLASSIFICATION SHEET'!C1180=\"\",\"\",'PEF CLASSIFICATION SHEET'!C1180)","v":""},{"$f":"IF('PEF CLASSIFICATION SHEET'!C1181=\"\",\"\",'PEF CLASSIFICATION SHEET'!C1181)","v":""},{"$f":"IF('PEF CLASSIFICATION SHEET'!C1182=\"\",\"\",'PEF CLASSIFICATION SHEET'!C1182)","v":""},{"$f":"IF('PEF CLASSIFICATION SHEET'!C1183=\"\",\"\",'PEF CLASSIFICATION SHEET'!C1183)","v":""},{"$f":"IF('PEF CLASSIFICATION SHEET'!C1184=\"\",\"\",'PEF CLASSIFICATION SHEET'!C1184)","v":""},{"$f":"IF('PEF CLASSIFICATION SHEET'!C1185=\"\",\"\",'PEF CLASSIFICATION SHEET'!C1185)","v":""},{"$f":"IF('PEF CLASSIFICATION SHEET'!C1186=\"\",\"\",'PEF CLASSIFICATION SHEET'!C1186)","v":""},"SUB-","%","PEF"]
[null,null,null,null,null,null,null,null,null,null,null,null,null,null,null,null,null,null,null,null,null,null,null,"TOTAL","OF","ESTIMATE"]
["TASK NO.","TASK DESCRIPTION","CLASSIFICATION",null,null,null,null,null,null,null,null,null,null,null,null,null,null,null,null,null,null,null,null,null,"PROJECT",null,"COMMENTS",null,null,null,null,null,null,null,"Select Task Type","Grade Separation","CEI","Track Design","Signal Design","Environmental","Planning"]
[{"$f":"IF($AA$4=\"Select Task Type\",\"Select the TASK TYPE from drop down list in cell AA4 to populate the task list\",IF($AA$4=\"Grade Separation\",\"You selected Grade Separation\",IF($AA$4=\"CEI\",\"You selected CEI\",IF($AA$4=\"Track Design\",\"You selected Track Design.  When the task is ALL CAPS, this is a header row, if you choose to key mandays associated with that header row the row total will not be displayed but the column and overall total will sum appropriately\",IF($AA$4=\"Signal Design\",\"You selected Signal Design, note that this is initially a blank task list; so please create a task list from scratch\",IF($AA$4=\"Environmental\",\"You selected Environmental.  When the task is ALL CAPS, this is a header row, if you choose to key mandays associated with that header row the row total will not be displayed but the column and overall total will sum appropriately\",IF($AA$4=\"Planning\",\"You selected Planning.  When the task is ALL CAPS, this is a header row, if you choose to key mandays associated with that header row the row total will not be displayed but the column and overall total will sum appropriately\",\"Select the TASK TYPE from drop down list in cell AA4 to populate the task list\")))))))","v":"Select the TASK TYPE from drop down list in cell AA4 to populate the task list"},null,null,null,null,null,null,null,null,null,null,null,null,null,null,null,null,null,null,null,null,null,null,null,null,null,null,null,null,null,null,null,null,null,null,"Grade Separation","Grade Separation","CEI","CEI","Track Design","Track Design","Signal Design","Signal Design","Environmental","Environmental","Planning","Planning"]
[{"$f":"IF(AG11=0,\"\",AG11)","v":""},{"$f":"IF(AH11=0,\"\",AH11)","v":""},null,null,null,null,null,null,null,null,null,null,null,null,null,null,null,null,null,null,null,null,null,{"$f":"IF(B11=\"\",0,IF(B11=\"DEMAND ASSESSMENT\",\"\",IF(B11=\"PROJECT SCOPING AND DATA COLLECTION\",\"\",IF(B11=\"PROJECT MANAGEMENT/PROJECT ADMINISTRATION\",\"\",IF((SUM(D11:W11)=0),0,SUM(D11:W11))))))","v":0},{"$f":"IF(SUM(D11:W11)=0,\"\",((SUM(D11:W11))/$X$261))","v":""},null,null,null,null,null,null,null,{"$f":"IF($AA$4=\"Select Task Type\",\"\",IF($AA$4=\"Grade Separation\",AJ11,IF($AA$4=\"CEI\",AL11,IF($AA$4=\"Track Design\",AN11,IF($AA$4=\"Signal Design\",AP11,IF($AA$4=\"Environmental\",AR11,IF($AA$4=\"Planning\",AT11,\"\")))))))","v":""},{"$f":"IF($AA$4=\"Select Task Type\",\"\",IF($AA$4=\"Grade Separation\",AK11,IF($AA$4=\"CEI\",AM11,IF($AA$4=\"Track Design\",AO11,IF($AA$4=\"Signal Design\",AQ11,IF($AA$4=\"Environmental\",AS11,IF($AA$4=\"Planning\",AU11,\"\")))))))","v":""},null,1,"Project Familiarization",1,"Project management and document review",1,"PROJECT MANAGEMENT/PROJECT ADMINISTRATION",null,null,"A","PROJECT SCOPING AND DATA COLLECTION",1,"DEMAND ASSESSMENT"]
[{"$f":"IF(AG12=0,\"\",AG12)","v":""},"",null,null,null,null,null,null,null,null,null,null,null,null,null,null,null,null,null,null,null,null,null,{"$f":"IF(B12=\"\",0,IF((SUM(D12:W12)=0),0,SUM(D12:W12)))","v":0},{"$f":"IF(SUM(D12:W12)=0,\"\",((SUM(D12:W12))/$X$261))","v":""},null,null,null,null,null,null,null,{"$f":"IF($AA$4=\"Select Task Type\",\"\",IF($AA$4=\"Grade Separation\",AJ12,IF($AA$4=\"CEI\",AL12,IF($AA$4=\"Track Design\",AN12,IF($AA$4=\"Signal Design\",AP12,IF($AA$4=\"Environmental\",AR12,IF($AA$4=\"Planning\",AT12,\"\")))))))","v":""},"",null,2,"Conceptual Design",2,"Track inspection",null,null,null,null,"A.1","Study Area Definition",null,"Review previous studies"]
["","",null,null,null,null,null,null,null,null,null,null,null,null,null,null,null,null,null,null,null,null,null,0,{"$f":"IF(SUM(D13:W13)=0,\"\",((SUM(D13:W13))/$X$261))","v":""},null,null,null,null,null,null,null,"","",null,3,"Construction Cost Estimate",3,"Roadway inspection",null,null,null,null,"A.2","Study Area Field Visit",null,"Interview XX, XX, and XX on near-term rail intermodal and break bulk plans"]
["","",null,null,null,null,null,null,null,null,null,null,null,null,null,null,null,null,null,null,null,null,null,0,"",null,null,null,null,null,null,null,"","",null,4,"Project Coordination",null,null,null,null,null,null,"A.3","Community Characteristics Report",null,"Estimate effects of various rail entities"]
["","",null,null,null,null,null,null,null,null,null,null,null,null,null,null,null,null,null,null,null,null,null,0,"",null,null,null,null,null,null,null,"","",null,null,null,null,null,null,null,null,null,"A.4","Local Land Use and Transportation Plans",null,"Estimate future growth in other bulk and break bulk commodities"]
["","",null,null,null,null,null,null,null,null,null,null,null,null,null,null,null,null,null,null,null,null,null,0,"",null,null,null,null,null,null,null,"","",null,null,null,null,null,null,null,null,null,"A.5","State and Federal Data Sources",null,"Incorporate State Freight Plan into market forecasts "]
["","",null,null,null,null,null,null,null,null,null,null,null,null,null,null,null,null,null,null,null,null,null,0,"",null,null,null,null,null,null,null,"","",null,null,null,null,null,null,null,null,null,"A.6 ","GeoEnvironmental Review",null,"Project port continued share against market growth"]
["","",null,null,null,null,null,null,null,null,null,null,null,null,null,null,null,null,null,null,null,null,null,0,"",null,null,null,null,null,null,null,"","",null,null,null,null,null,null,null,null,null,"A.7","GIS Data Layers and Aerial Photography",null,"Combine forecasts from various groups into a base line forecast"]
["","",null,null,null,null,null,null,null,null,null,null,null,null,null,null,null,null,null,null,null,null,null,0,"",null,null,null,null,null,null,null,"","",null,null,null,null,null,null,null,null,null,"A.8","Evaluation of Existing Transportation Facilities",null,"Develop an updated base forecast"]
["","",null,null,null,null,null,null,null,null,null,null,null,null,null,null,null,null,null,null,null,null,null,0,"",null,null,null,null,null,null,null,"","",null,null,null,null,null,null,null,null,null,"A.9","Traffic Forecast Request",null,"Compare with freight forecast in NC State Freight Plan, contrast against existing port rail capacity, identify delta required to accommodate additional traffic"]
["","",null,null,null,null,null,null,null,null,null,null,null,null,null,null,null,null,null,null,null,null,null,0,"",null,null,null,null,null,null,null,"","",null,null,null,null,null,null,null,null,null,"A.10","Project Data Sheet",null,"Add in empty return exports and revise forecast"]
["","",null,null,null,null,null,null,null,null,null,null,null,null,null,null,null,null,null,null,null,null,null,{"$f":"IF(B22=\"\",0,IF(B22=\"FUNCTIONAL TRACK DESIGN\",\"\",IF((SUM(D22:W22)=0),0,SUM(D22:W22))))","v":0},"",null,null,null,null,null,null,null,"","",null,null,null,null,null,2,"FUNCTIONAL TRACK DESIGN",null,null,"A.11","Start of Study Letters",null,"Develop near-term outlook of market demand and system requirements"]
["","",null,null,null,null,null,null,null,null,null,null,null,null,null,null,null,null,null,null,null,null,null,{"$f":"IF(B23=\"\",0,IF((SUM(D23:W23)=0),0,SUM(D23:W23)))","v":0},"",null,null,null,null,null,null,null,"","",null,null,null,null,null,null,null,null,null,"A.12","Kickoff/Scoping Meeting",null,"Review operations and plans for XX, suggest if port rail facilities can accommodate projected growth"]
["","",null,null,null,null,null,null,null,null,null,null,null,null,null,null,null,null,null,null,null,null,null,{"$f":"IF(B24=\"\",0,IF((SUM(D24:W24)=0),0,SUM(D24:W24)))","v":0},"",null,null,null,null,null,null,null,"","",null,null,null,null,null,null,null,null,null,"A.13",null,null,"Identify conceptual rail capacity and prospects for service assuming successful XX service"]
["","",null,null,null,null,null,null,null,null,null,null,null,null,null,null,null,null,null,null,null,null,null,{"$f":"IF(B25=\"\",0,IF((SUM(D25:W25)=0),0,SUM(D25:W25)))","v":0},"",null,null,null,null,null,null,null,"","",null,null,null,null,null,null,null,null,null,"A.14",null,null,"Evaluate rail operations @ port to identify conflicts and opportunities to serve both intermodal and break bulk rail customers"]
["","",null,null,null,null,null,null,null,null,null,null,null,null,null,null,null,null,null,null,null,null,null,{"$f":"IF(B26=\"\",0,IF((SUM(D26:W26)=0),0,SUM(D26:W26)))","v":0},"",null,null,null,null,null,null,null,"","",null,null,null,null,null,null,null,null,null,"A.15",null,null,"Develop near-term outlook of market demand and system requirements"]
["","",null,null,null,null,null,null,null,null,null,null,null,null,null,null,null,null,null,null,null,null,null,{"$f":"IF(B27=\"\",0,IF((SUM(D27:W27)=0),\"\",SUM(D27:W27)))","v":0},"",null,null,null,null,null,null,null,"","",null,null,null,null,null,null,null,null,null,"A.16"]
["","",null,null,null,null,null,null,null,null,null,null,null,null,null,null,null,null,null,null,null,null,null,0,"",null,null,null,null,null,null,null,"","",null,null,null,null,null,null,null,null,null,"A.17"]
["","",null,null,null,null,null,null,null,null,null,null,null,null,null,null,null,null,null,null,null,null,null,{"$f":"IF(B29=\"\",0,IF(B29=\"TRAFFIC CAPACITY ANALYSIS AND ACCIDENT ANALYSIS\",\"\",IF((SUM(D29:W29)=0),0,SUM(D29:W29))))","v":0},"",null,null,null,null,null,null,null,"","",null,null,null,null,null,null,null,null,null,"B","TRAFFIC CAPACITY ANALYSIS AND ACCIDENT ANALYSIS"]
["","",null,null,null,null,null,null,null,null,null,null,null,null,null,null,null,null,null,null,null,null,null,{"$f":"IF(B30=\"\",0,IF((SUM(D30:W30)=0),0,SUM(D30:W30)))","v":0},"",null,null,null,null,null,null,null,"","",null,null,null,null,null,null,null,null,null,"B.1","Coordinate with Stantec & incorporate the analysis"]
["","",null,null,null,null,null,null,null,null,null,null,null,null,null,null,null,null,null,null,null,null,null,{"$f":"IF(B31=\"\",0,IF((SUM(D31:W31)=0),0,SUM(D31:W31)))","v":0},"",null,null,null,null,null,null,null,"","",null,null,null,null,null,null,null,null,null,"B.2"]
["","",null,null,null,null,null,null,null,null,null,null,null,null,null,null,null,null,null,null,null,null,null,{"$f":"IF(B32=\"\",0,IF(B32=\"PORT MASTER PLAN REVIEW\",\"\",IF((SUM(D32:W32)=0),0,SUM(D32:W32))))","v":0},"",null,null,null,null,null,null,null,"","",null,null,null,null,null,null,null,null,null,"B.3",null,2,"PORT MASTER PLAN REVIEW"]
["","",null,null,null,null,null,null,null,null,null,null,null,null,null,null,null,null,null,null,null,null,null,{"$f":"IF(B33=\"\",0,IF(B33=\"PRELIMINARY TRACK DESIGN\",\"\",IF((SUM(D33:W33)=0),0,SUM(D33:W33))))","v":0},"",null,null,null,null,null,null,null,"","",null,null,null,null,null,3,"PRELIMINARY TRACK DESIGN",null,null,"B.4",null,null,"Identify area needed to accommodate each targeted market"]
["","",null,null,null,null,null,null,null,null,null,null,null,null,null,null,null,null,null,null,null,null,null,{"$f":"IF(B34=\"\",0,IF((SUM(D34:W34)=0),0,SUM(D34:W34)))","v":0},"",null,null,null,null,null,null,null,"","",null,null,null,null,null,null,null,null,null,"B.5",null,null,"Assess ability to meet current and projected needs"]
["","",null,null,null,null,null,null,null,null,null,null,null,null,null,null,null,null,null,null,null,null,null,{"$f":"IF(B35=\"\",0,IF((SUM(D35:W35)=0),0,SUM(D35:W35)))","v":0},"",null,null,null,null,null,null,null,"","",null,null,null,null,null,null,null,null,null,"B.6",null,null,"Coordinate with Port regarding future Port plans"]
["","",null,null,null,null,null,null,null,null,null,null,null,null,null,null,null,null,null,null,null,null,null,{"$f":"IF(B36=\"\",0,IF(B36=\"PROJECT PURPOSE AND NEED\",\"\",IF((SUM(D36:W36)=0),0,SUM(D36:W36))))","v":0},"",null,null,null,null,null,null,null,"","",null,null,null,null,null,null,null,null,null,"C","PROJECT PURPOSE AND NEED",null,"Develop recommendations to layout and/or processes to meet anticipated needs while not conflicting or constraining future activities"]
["","",null,null,null,null,null,null,null,null,null,null,null,null,null,null,null,null,null,null,null,null,null,{"$f":"IF(B37=\"\",0,IF((SUM(D37:W37)=0),0,SUM(D37:W37)))","v":0},"",null,null,null,null,null,null,null,"","",null,null,null,null,null,null,null,null,null,"C.1","Preliminary Purpose and Need",null,"Prepare draft port layout"]
["","",null,null,null,null,null,null,null,null,null,null,null,null,null,null,null,null,null,null,null,null,null,0,"",null,null,null,null,null,null,null,"","",null,null,null,null,null,null,null,null,null,"C.2","Final Purpose and Need Memorandum",null,"Revise per NCDOT comments and prepare final port layout"]
["","",null,null,null,null,null,null,null,null,null,null,null,null,null,null,null,null,null,null,null,null,null,0,"",null,null,null,null,null,null,null,"","",null,null,null,null,null,null,null,null,null,"C.3"]
["","",null,null,null,null,null,null,null,null,null,null,null,null,null,null,null,null,null,null,null,null,null,0,"",null,null,null,null,null,null,null,"","",null,null,null,null,null,null,null,null,null,"C.4"]
["","",null,null,null,null,null,null,null,null,null,null,null,null,null,null,null,null,null,null,null,null,null,0,"",null,null,null,null,null,null,null,"","",null,null,null,null,null,null,null,null,null,"C.5"]
["","",null,null,null,null,null,null,null,null,null,null,null,null,null,null,null,null,null,null,null,null,null,0,"",null,null,null,null,null,null,null,"","",null,null,null,null,null,null,null,null,null,"C.6"]
["","",null,null,null,null,null,null,null,null,null,null,null,null,null,null,null,null,null,null,null,null,null,0,"",null,null,null,null,null,null,null,"","",null,null,null,null,null,null,null,null,null,"C.7"]
["","",null,null,null,null,null,null,null,null,null,null,null,null,null,null,null,null,null,null,null,null,null,{"$f":"IF(B44=\"\",0,IF(B44=\"RAIL INVENTORY AND REVIEW OF EXISTING OPERATIONS\",\"\",IF(B44=\"DEVELOPMENT AND EVALUATION OF DESIGN ALTERNATIVES\",\"\",IF(B44=\"FINAL TRACK DESIGN\",\"\",IF((SUM(D44:W44)=0),0,SUM(D44:W44))))))","v":0},"",null,null,null,null,null,null,null,"","",null,null,null,null,null,4,"FINAL TRACK DESIGN",null,null,"D","DEVELOPMENT AND EVALUATION OF DESIGN ALTERNATIVES",3,"RAIL INVENTORY AND REVIEW OF EXISTING OPERATIONS"]
["","",null,null,null,null,null,null,null,null,null,null,null,null,null,null,null,null,null,null,null,null,null,{"$f":"IF(B45=\"\",0,IF((SUM(D45:W45)=0),0,SUM(D45:W45)))","v":0},"",null,null,null,null,null,null,null,"","",null,null,null,null,null,null,null,null,null,"D.1","Collaboration on Development of Design Alternatives",null,"Review Port facilities on the ground, identify acreage which could accommodate additional functions in support of rail operations"]
["","",null,null,null,null,null,null,null,null,null,null,null,null,null,null,null,null,null,null,null,null,null,0,"",null,null,null,null,null,null,null,"","",null,null,null,null,null,null,null,null,null,"D.2","Qualitative Screening of Design Alternatives",null,"Review XX and XX track charts and track maps for Port"]
["","",null,null,null,null,null,null,null,null,null,null,null,null,null,null,null,null,null,null,null,null,null,0,"",null,null,null,null,null,null,null,"","",null,null,null,null,null,null,null,null,null,"D.3",null,null,"Review any related TSS"]
["","",null,null,null,null,null,null,null,null,null,null,null,null,null,null,null,null,null,null,null,null,null,0,"",null,null,null,null,null,null,null,"","",null,null,null,null,null,null,null,null,null,"D.4",null,null,"Conduct a windshield survey of XX line at Port and document observations"]
["","",null,null,null,null,null,null,null,null,null,null,null,null,null,null,null,null,null,null,null,null,null,0,"",null,null,null,null,null,null,null,"","",null,null,null,null,null,null,null,null,null,"D.5",null,null,"Identify opportunities to locate a future passing siding."]
["","",null,null,null,null,null,null,null,null,null,null,null,null,null,null,null,null,null,null,null,null,null,0,"",null,null,null,null,null,null,null,"","",null,null,null,null,null,null,null,null,null,"D.6"]
["","",null,null,null,null,null,null,null,null,null,null,null,null,null,null,null,null,null,null,null,null,null,0,"",null,null,null,null,null,null,null,"","",null,null,null,null,null,null,null,null,null,"D.7"]
["","",null,null,null,null,null,null,null,null,null,null,null,null,null,null,null,null,null,null,null,null,null,{"$f":"IF(B52=\"\",0,IF(B52=\"BIOTIC RESOURCES\",\"\",IF((SUM(D52:W52)=0),0,SUM(D52:W52))))","v":0},"",null,null,null,null,null,null,null,"","",null,null,null,null,null,null,null,null,null,"E.3","BIOTIC RESOURCES"]
["","",null,null,null,null,null,null,null,null,null,null,null,null,null,null,null,null,null,null,null,null,null,{"$f":"IF(B53=\"\",0,IF((SUM(D53:W53)=0),0,SUM(D53:W53)))","v":0},"",null,null,null,null,null,null,null,"","",null,null,null,null,null,null,null,null,null,"E.3.a","Terrestrial Communities"]
["","",null,null,null,null,null,null,null,null,null,null,null,null,null,null,null,null,null,null,null,null,null,{"$f":"IF(B54=\"\",0,IF((SUM(D54:W54)=0),0,SUM(D54:W54)))","v":0},"",null,null,null,null,null,null,null,"","",null,null,null,null,null,null,null,null,null,"E.3.b","Terrestrial Wildlife"]
["","",null,null,null,null,null,null,null,null,null,null,null,null,null,null,null,null,null,null,null,null,null,{"$f":"IF(B55=\"\",0,IF(B55=\"CAPACITY AND VELOCITY\",\"\",IF((SUM(D55:W55)=0),0,SUM(D55:W55))))","v":0},"",null,null,null,null,null,null,null,"","",null,null,null,null,null,null,null,null,null,"E.3.c","Aquatic Communities and Wildlife",4,"CAPACITY AND VELOCITY"]
["","",null,null,null,null,null,null,null,null,null,null,null,null,null,null,null,null,null,null,null,null,null,{"$f":"IF(B56=\"\",0,IF((SUM(D56:W56)=0),0,SUM(D56:W56)))","v":0},"",null,null,null,null,null,null,null,"","",null,null,null,null,null,null,null,null,null,"E.3.d","Invasive Species",null,"Develop a level of service (LOS) classification for XX"]
["","",null,null,null,null,null,null,null,null,null,null,null,null,null,null,null,null,null,null,null,null,null,0,"",null,null,null,null,null,null,null,"","",null,null,null,null,null,null,null,null,null,"E.3.e",null,null,"Identify theoretical capacity XX based upon tonnage (GMT), GMT per train, and number of trains"]
["","",null,null,null,null,null,null,null,null,null,null,null,null,null,null,null,null,null,null,null,null,null,0,"",null,null,null,null,null,null,null,"","",null,null,null,null,null,null,null,null,null,"E.3.f",null,null,"Compare theoretical capacity with forecast train volumes"]
["","",null,null,null,null,null,null,null,null,null,null,null,null,null,null,null,null,null,null,null,null,null,0,"",null,null,null,null,null,null,null,"","",null,null,null,null,null,null,null,null,null,"E.3.g",null,null,"Observe operations to develop an estimate of current velocity (travel time over mileage) to/from XX"]
["","",null,null,null,null,null,null,null,null,null,null,null,null,null,null,null,null,null,null,null,null,null,0,"",null,null,null,null,null,null,null,"","",null,null,null,null,null,null,null,null,null,"E.3.h",null,null,"Review XX track charts and operating rules, assess for potential changes which could more effectively utilize existing capacity"]
["","",null,null,null,null,null,null,null,null,null,null,null,null,null,null,null,null,null,null,null,null,null,0,"",null,null,null,null,null,null,null,"","",null,null,null,null,null,null,null,null,null,"E.3.i",null,null,"Review related TSS to identify projects which could increase operating speeds and improve velocity"]
["","",null,null,null,null,null,null,null,null,null,null,null,null,null,null,null,null,null,null,null,null,null,{"$f":"IF(B62=\"\",0,IF(B62=\"JURISDICTIONAL ISSUES\",\"\",IF((SUM(D62:W62)=0),0,SUM(D62:W62))))","v":0},"",null,null,null,null,null,null,null,"","",null,null,null,null,null,null,null,null,null,"E.4","JURISDICTIONAL ISSUES"]
["","",null,null,null,null,null,null,null,null,null,null,null,null,null,null,null,null,null,null,null,null,null,{"$f":"IF(B63=\"\",0,IF((SUM(D63:W63)=0),0,SUM(D63:W63)))","v":0},"",null,null,null,null,null,null,null,"","",null,null,null,null,null,null,null,null,null,"E.4.a","Clean Water Act (CWA) Waters of the US"]
["","",null,null,null,null,null,null,null,null,null,null,null,null,null,null,null,null,null,null,null,null,null,{"$f":"IF(B64=\"\",0,IF((SUM(D64:W64)=0),0,SUM(D64:W64)))","v":0},"",null,null,null,null,null,null,null,"","",null,null,null,null,null,null,null,null,null,"E.4.b","CWA Permits"]
["","",null,null,null,null,null,null,null,null,null,null,null,null,null,null,null,null,null,null,null,null,null,{"$f":"IF(B65=\"\",0,IF((SUM(D65:W65)=0),0,SUM(D65:W65)))","v":0},"",null,null,null,null,null,null,null,"","",null,null,null,null,null,null,null,null,null,"E.4.c","Construction Moratoria"]
["","",null,null,null,null,null,null,null,null,null,null,null,null,null,null,null,null,null,null,null,null,null,{"$f":"IF(B66=\"\",0,IF((SUM(D66:W66)=0),0,SUM(D66:W66)))","v":0},"",null,null,null,null,null,null,null,"","",null,null,null,null,null,null,null,null,null,"E.4.d","Rivers and Harbors Act Section 10 Navigable Waters"]
["","",null,null,null,null,null,null,null,null,null,null,null,null,null,null,null,null,null,null,null,null,null,{"$f":"IF(B67=\"\",0,IF(B67=\"RAIL INFRASTRUCTURE IMPROVEMENTS\",\"\",IF((SUM(D67:W67)=0),0,SUM(D67:W67))))","v":0},"",null,null,null,null,null,null,null,"","",null,null,null,null,null,null,null,null,null,"E.4.e","Wetland and Stream Mitigation",5,"RAIL INFRASTRUCTURE IMPROVEMENTS"]
["","",null,null,null,null,null,null,null,null,null,null,null,null,null,null,null,null,null,null,null,null,null,{"$f":"IF(B68=\"\",0,IF((SUM(D68:W68)=0),0,SUM(D68:W68)))","v":0},"",null,null,null,null,null,null,null,"","",null,null,null,null,null,null,null,null,null,"E.4.f","Endangered Species Act Protected Species",null,"Review existing infrastructure"]
["","",null,null,null,null,null,null,null,null,null,null,null,null,null,null,null,null,null,null,null,null,null,0,"",null,null,null,null,null,null,null,"","",null,null,null,null,null,null,null,null,null,"E.4.g","Essential Fish Habitat",null,"Determine potential needs based on growth"]
["","",null,null,null,null,null,null,null,null,null,null,null,null,null,null,null,null,null,null,null,null,null,0,"",null,null,null,null,null,null,null,"","",null,null,null,null,null,null,null,null,null,"E.4.h",null,null,"Suggest potential enhancements to address future needs (X scenarios)"]
["","",null,null,null,null,null,null,null,null,null,null,null,null,null,null,null,null,null,null,null,null,null,0,"",null,null,null,null,null,null,null,"","",null,null,null,null,null,null,null,null,null,"E.4.i",null,null,"Coordinate with NCDOT and others to consider the capacity of XX"]
["","",null,null,null,null,null,null,null,null,null,null,null,null,null,null,null,null,null,null,null,null,null,0,"",null,null,null,null,null,null,null,"","",null,null,null,null,null,null,null,null,null,"E.4.j",null,null,"Develop conceptual recommendations to improve efficiency of operations between XX and YY"]
["","",null,null,null,null,null,null,null,null,null,null,null,null,null,null,null,null,null,null,null,null,null,0,"",null,null,null,null,null,null,null,"","",null,null,null,null,null,null,null,null,null,"E.4.k"]
["","",null,null,null,null,null,null,null,null,null,null,null,null,null,null,null,null,null,null,null,null,null,0,"",null,null,null,null,null,null,null,"","",null,null,null,null,null,null,null,null,null,"E.4.l"]
["","",null,null,null,null,null,null,null,null,null,null,null,null,null,null,null,null,null,null,null,null,null,0,"",null,null,null,null,null,null,null,"","",null,null,null,null,null,null,null,null,null,"E.5","NRTR Document"]
[{"$f":"IF(AG76=0,\"\",AG76)","v":""},"",null,null,null,null,null,null,null,null,null,null,null,null,null,null,null,null,null,null,null,null,null,0,"",null,null,null,null,null,null,null,{"$f":"IF($AA$4=\"Select Task Type\",\"\",IF($AA$4=\"Grade Separation\",AJ76,IF($AA$4=\"CEI\",AL76,IF($AA$4=\"Track Design\",AN76,IF($AA$4=\"Signal Design\",AP76,IF($AA$4=\"Environmental\",AR76,IF($AA$4=\"Planning\",AT76,\"\")))))))","v":""},"",null,null,null,null,null,null,null,null,null,"E.5.a"]
["","",null,null,null,null,null,null,null,null,null,null,null,null,null,null,null,null,null,null,null,null,null,0,{"$f":"IF(SUM(D77:W77)=0,\"\",((SUM(D77:W77))/$X$261))","v":""},null,null,null,null,null,null,null,"","",null,null,null,null,null,null,null,null,null,"E.5.b"]
["","",null,null,null,null,null,null,null,null,null,null,null,null,null,null,null,null,null,null,null,null,null,{"$f":"IF(B78=\"\",0,IF(B78=\"DEVELOP SUGGESTIONS FOR OPERATIONAL AND LOGISTICAL ENHANCEMENTS\",\"\",IF((SUM(D78:W78)=0),0,SUM(D78:W78))))","v":0},"",null,null,null,null,null,null,null,"","",null,null,null,null,null,null,null,null,null,"E.5.c",null,6,"DEVELOP SUGGESTIONS FOR OPERATIONAL AND LOGISTICAL ENHANCEMENTS"]
["","",null,null,null,null,null,null,null,null,null,null,null,null,null,null,null,null,null,null,null,null,null,{"$f":"IF(B79=\"\",0,IF((SUM(D79:W79)=0),0,SUM(D79:W79)))","v":0},"",null,null,null,null,null,null,null,"","",null,null,null,null,null,null,null,null,null,"E.5.d",null,null,"Study current operations and suggest changes that might enhance efficiency or reduce costs"]
["","",null,null,null,null,null,null,null,null,null,null,null,null,null,null,null,null,null,null,null,null,null,0,"",null,null,null,null,null,null,null,"","",null,null,null,null,null,null,null,null,null,"E.5.e",null,null,"Coordinate with NCAG to assure changes are allowable"]
["","",null,null,null,null,null,null,null,null,null,null,null,null,null,null,null,null,null,null,null,null,null,0,"",null,null,null,null,null,null,null,"","",null,null,null,null,null,null,null,null,null,"E.6","Jurisdictional Features Verification",null,"Develop option for development of temporary dray Port to XX"]
["","",null,null,null,null,null,null,null,null,null,null,null,null,null,null,null,null,null,null,null,null,null,0,"",null,null,null,null,null,null,null,"","",null,null,null,null,null,null,null,null,null,"E.6.a",null,null,"Summarize potential changes and corresponding actions"]
["","",null,null,null,null,null,null,null,null,null,null,null,null,null,null,null,null,null,null,null,null,null,0,"",null,null,null,null,null,null,null,"","",null,null,null,null,null,null,null,null,null,"E.6.b"]
["","",null,null,null,null,null,null,null,null,null,null,null,null,null,null,null,null,null,null,null,null,null,0,"",null,null,null,null,null,null,null,"","",null,null,null,null,null,null,null,null,null,"E.6.c"]
["","",null,null,null,null,null,null,null,null,null,null,null,null,null,null,null,null,null,null,null,null,null,0,"",null,null,null,null,null,null,null,"","",null,null,null,null,null,null,null,null,null,"E.6.d"]
["","",null,null,null,null,null,null,null,null,null,null,null,null,null,null,null,null,null,null,null,null,null,0,"",null,null,null,null,null,null,null,"","",null,null,null,null,null,null,null,null,null,"E.6.e"]
["","",null,null,null,null,null,null,null,null,null,null,null,null,null,null,null,null,null,null,null,null,null,{"$f":"IF(B87=\"\",0,IF(B87=\"HUMAN ENVIRONMENT FIELD WORK, ANALYSIS, AND DOCUMENTATION\",\"\",IF((SUM(D87:W87)=0),0,SUM(D87:W87))))","v":0},"",null,null,null,null,null,null,null,"","",null,null,null,null,null,null,null,null,null,"F","HUMAN ENVIRONMENT FIELD WORK, ANALYSIS, AND DOCUMENTATION"]
["","",null,null,null,null,null,null,null,null,null,null,null,null,null,null,null,null,null,null,null,null,null,{"$f":"IF(B88=\"\",0,IF(B88=\"ENVIRONMENTAL SCREENING\",\"\",IF((SUM(D88:W88)=0),0,SUM(D88:W88))))","v":0},"",null,null,null,null,null,null,null,"","",null,null,null,null,null,null,null,null,null,"F.1","Community Impact Assessment",7,"ENVIRONMENTAL SCREENING"]
["","",null,null,null,null,null,null,null,null,null,null,null,null,null,null,null,null,null,null,null,null,null,{"$f":"IF(B89=\"\",0,IF((SUM(D89:W89)=0),0,SUM(D89:W89)))","v":0},"",null,null,null,null,null,null,null,"","",null,null,null,null,null,null,null,null,null,"F.1.a","Identify Community Impact Study Area",null,"Develop GIS map of available data"]
["","",null,null,null,null,null,null,null,null,null,null,null,null,null,null,null,null,null,null,null,null,null,0,"",null,null,null,null,null,null,null,"","",null,null,null,null,null,null,null,null,null,"F.1.b","Community Field Review",null,"Develop list of \"red flag\" issues"]
["","",null,null,null,null,null,null,null,null,null,null,null,null,null,null,null,null,null,null,null,null,null,0,"",null,null,null,null,null,null,null,"","",null,null,null,null,null,null,null,null,null,"F.1.c","Socioeconomic Data"]
["","",null,null,null,null,null,null,null,null,null,null,null,null,null,null,null,null,null,null,null,null,null,0,"",null,null,null,null,null,null,null,"","",null,null,null,null,null,null,null,null,null,"F.1.d","Community Facilities and Services"]
["","",null,null,null,null,null,null,null,null,null,null,null,null,null,null,null,null,null,null,null,null,null,0,"",null,null,null,null,null,null,null,"","",null,null,null,null,null,null,null,null,null,"F.1.e","Local/Regional Land Use and Development Plans"]
["","",null,null,null,null,null,null,null,null,null,null,null,null,null,null,null,null,null,null,null,null,null,0,"",null,null,null,null,null,null,null,"","",null,null,null,null,null,null,null,null,null,"F.1.f","Project Impact Assessment"]
["","",null,null,null,null,null,null,null,null,null,null,null,null,null,null,null,null,null,null,null,null,null,0,"",null,null,null,null,null,null,null,"","",null,null,null,null,null,null,null,null,null,"F.1.g","Community Impact Assessment Report"]
["","",null,null,null,null,null,null,null,null,null,null,null,null,null,null,null,null,null,null,null,null,null,{"$f":"IF(B96=\"\",0,IF(B96=\"ESTIMATE PROJECT SCENARIO BENEFITS\",\"\",IF((SUM(D96:W96)=0),0,SUM(D96:W96))))","v":0},"",null,null,null,null,null,null,null,"","",null,null,null,null,null,null,null,null,null,"F.1.h",null,8,"ESTIMATE PROJECT SCENARIO BENEFITS"]
["","",null,null,null,null,null,null,null,null,null,null,null,null,null,null,null,null,null,null,null,null,null,{"$f":"IF(B97=\"\",0,IF((SUM(D97:W97)=0),0,SUM(D97:W97)))","v":0},"",null,null,null,null,null,null,null,"","",null,null,null,null,null,null,null,null,null,"F.1.i",null,null,"Develop near-term project feasibility criteria and apply to the identified program of projects"]
["","",null,null,null,null,null,null,null,null,null,null,null,null,null,null,null,null,null,null,null,null,null,{"$f":"IF(B98=\"\",0,IF((SUM(D98:W98)=0),0,SUM(D98:W98)))","v":0},"",null,null,null,null,null,null,null,"","",null,null,null,null,null,null,null,null,null,"F.1.j",null,null,"Develop ranked list ordered according to project feasibility criteria"]
["","",null,null,null,null,null,null,null,null,null,null,null,null,null,null,null,null,null,null,null,null,null,{"$f":"IF(B99=\"\",0,IF((SUM(D99:W99)=0),0,SUM(D99:W99)))","v":0},"",null,null,null,null,null,null,null,"","",null,null,null,null,null,null,null,null,null,"F.1.k",null,null,"Perform Benefit Cost Analyses (BCA)  for up to five projects using the OMB BCA methodology"]
["","",null,null,null,null,null,null,null,null,null,null,null,null,null,null,null,null,null,null,null,null,null,{"$f":"IF(B100=\"\",0,IF((SUM(D100:W100)=0),0,SUM(D100:W100)))","v":0},"",null,null,null,null,null,null,null,"","",null,null,null,null,null,null,null,null,null,"F.1.l",null,null,"Revise per NCDOT comments"]
["","",null,null,null,null,null,null,null,null,null,null,null,null,null,null,null,null,null,null,null,null,null,{"$f":"IF(B101=\"\",0,IF(B101=\"INDIRECT AND CUMULATIVE EFFECTS SCREENING\",\"\",IF((SUM(D101:W101)=0),0,SUM(D101:W101))))","v":0},"",null,null,null,null,null,null,null,"","",null,null,null,null,null,null,null,null,null,"F.2","INDIRECT AND CUMULATIVE EFFECTS SCREENING"]
["","",null,null,null,null,null,null,null,null,null,null,null,null,null,null,null,null,null,null,null,null,null,{"$f":"IF(B102=\"\",0,IF((SUM(D102:W102)=0),0,SUM(D102:W102)))","v":0},"",null,null,null,null,null,null,null,"","",null,null,null,null,null,null,null,null,null,"F.2.a","Determine Future Land Use Study Area"]
["","",null,null,null,null,null,null,null,null,null,null,null,null,null,null,null,null,null,null,null,null,null,{"$f":"IF(B103=\"\",0,IF((SUM(D103:W103)=0),0,SUM(D103:W103)))","v":0},"",null,null,null,null,null,null,null,"","",null,null,null,null,null,null,null,null,null,"F.2.b","Determine ICE Study Time Horizon"]
["","",null,null,null,null,null,null,null,null,null,null,null,null,null,null,null,null,null,null,null,null,null,{"$f":"IF(B104=\"\",0,IF((SUM(D104:W104)=0),0,SUM(D104:W104)))","v":0},"",null,null,null,null,null,null,null,"","",null,null,null,null,null,null,null,null,null,"F.2.c","Identify Study Area Conditions and Trends"]
["","",null,null,null,null,null,null,null,null,null,null,null,null,null,null,null,null,null,null,null,null,null,{"$f":"IF(B105=\"\",0,IF((SUM(D105:W105)=0),0,SUM(D105:W105)))","v":0},"",null,null,null,null,null,null,null,"","",null,null,null,null,null,null,null,null,null,"F.2.d","Inventory of Notable Features"]
["","",null,null,null,null,null,null,null,null,null,null,null,null,null,null,null,null,null,null,null,null,null,{"$f":"IF(B106=\"\",0,IF(B106=\"GENERATE DATA NEEDED FOR SCORING IN STI\",\"\",IF((SUM(D106:W106)=0),0,SUM(D106:W106))))","v":0},"",null,null,null,null,null,null,null,"","",null,null,null,null,null,null,null,null,null,"F.2.e","Identify Impact-Causing Activities",9,"GENERATE DATA NEEDED FOR SCORING IN STI"]
["","",null,null,null,null,null,null,null,null,null,null,null,null,null,null,null,null,null,null,null,null,null,{"$f":"IF(B107=\"\",0,IF((SUM(D107:W107)=0),0,SUM(D107:W107)))","v":0},"",null,null,null,null,null,null,null,"","",null,null,null,null,null,null,null,null,null,"F.2.f","Analyze and Evaluate ICE Data",null,"Develop list of alternative solutions"]
["","",null,null,null,null,null,null,null,null,null,null,null,null,null,null,null,null,null,null,null,null,null,0,"",null,null,null,null,null,null,null,"","",null,null,null,null,null,null,null,null,null,"F.2.g","Land Use Development Scenarios",null,"Develop ranking procedure and criteria"]
["","",null,null,null,null,null,null,null,null,null,null,null,null,null,null,null,null,null,null,null,null,null,0,"",null,null,null,null,null,null,null,"","",null,null,null,null,null,null,null,null,null,"F.2.h","Indirect and Cumulative Effects Screening",null,"Adjust per NCDOT comments"]
["","",null,null,null,null,null,null,null,null,null,null,null,null,null,null,null,null,null,null,null,null,null,0,"",null,null,null,null,null,null,null,"","",null,null,null,null,null,null,null,null,null,"F.2.i",null,null,"Apply procedure/criteria to project alternatives"]
["","",null,null,null,null,null,null,null,null,null,null,null,null,null,null,null,null,null,null,null,null,null,0,"",null,null,null,null,null,null,null,"","",null,null,null,null,null,null,null,null,null,"F.2.j",null,null,"Review resulting list"]
["","",null,null,null,null,null,null,null,null,null,null,null,null,null,null,null,null,null,null,null,null,null,0,"",null,null,null,null,null,null,null,"","",null,null,null,null,null,null,null,null,null,"F.2.k",null,null,"Suggest revisions to procedure as needed"]
["","",null,null,null,null,null,null,null,null,null,null,null,null,null,null,null,null,null,null,null,null,null,0,"",null,null,null,null,null,null,null,"","",null,null,null,null,null,null,null,null,null,"F.2.l",null,null,"Revise criteria and redevelop list"]
["","",null,null,null,null,null,null,null,null,null,null,null,null,null,null,null,null,null,null,null,null,null,0,"",null,null,null,null,null,null,null,"","",null,null,null,null,null,null,null,null,null,"F.2.m",null,null,"Suggest project timing"]
["","",null,null,null,null,null,null,null,null,null,null,null,null,null,null,null,null,null,null,null,null,null,{"$f":"IF(B115=\"\",0,IF(B115=\"NOISE AND VIBRATION IMPACT ANALYSIS\",\"\",IF((SUM(D115:W115)=0),0,SUM(D115:W115))))","v":0},"",null,null,null,null,null,null,null,"","",null,null,null,null,null,null,null,null,null,"F.3.","NOISE AND VIBRATION IMPACT ANALYSIS",null,"Suggest project funding source(s)"]
["","",null,null,null,null,null,null,null,null,null,null,null,null,null,null,null,null,null,null,null,null,null,{"$f":"IF(B116=\"\",0,IF((SUM(D116:W116)=0),0,SUM(D116:W116)))","v":0},"",null,null,null,null,null,null,null,"","",null,null,null,null,null,null,null,null,null,"F.3.a","Coordination",null,"Develop opinion of cost for highest 5 ranking projects"]
["","",null,null,null,null,null,null,null,null,null,null,null,null,null,null,null,null,null,null,null,null,null,0,"",null,null,null,null,null,null,null,"","",null,null,null,null,null,null,null,null,null,null,"Initial Meeting with Rail Division",null,"Develop estimate of benefits for highest 5 ranking projects"]
["","",null,null,null,null,null,null,null,null,null,null,null,null,null,null,null,null,null,null,null,null,null,0,"",null,null,null,null,null,null,null,"","",null,null,null,null,null,null,null,null,null,"F.3.b","Data Compilation"]
["","",null,null,null,null,null,null,null,null,null,null,null,null,null,null,null,null,null,null,null,null,null,0,"",null,null,null,null,null,null,null,"","",null,null,null,null,null,null,null,null,null,null,"Project Area Reconnaissance, if applicable"]
["","",null,null,null,null,null,null,null,null,null,null,null,null,null,null,null,null,null,null,null,null,null,0,"",null,null,null,null,null,null,null,"","",null,null,null,null,null,null,null,null,null,null,"Identify noise sensitive land uses"]
["","",null,null,null,null,null,null,null,null,null,null,null,null,null,null,null,null,null,null,null,null,null,0,"",null,null,null,null,null,null,null,"","",null,null,null,null,null,null,null,null,null,null,"Prepare Noise Analysis Work Plan"]
["","",null,null,null,null,null,null,null,null,null,null,null,null,null,null,null,null,null,null,null,null,null,0,"",null,null,null,null,null,null,null,"","",null,null,null,null,null,null,null,null,null,"F.3.c","Selection of Analysis Sites"]
["","",null,null,null,null,null,null,null,null,null,null,null,null,null,null,null,null,null,null,null,null,null,{"$f":"IF(B123=\"\",0,IF(B123=\"IDENTIFY POTENTIAL PROJECTS FOR FEDERAL PROGRAMS\",\"\",IF((SUM(D123:W123)=0),0,SUM(D123:W123))))","v":0},"",null,null,null,null,null,null,null,"","",null,null,null,null,null,null,null,null,null,"F.3.d","Noise Analysis",10,"IDENTIFY POTENTIAL PROJECTS FOR FEDERAL PROGRAMS"]
["","",null,null,null,null,null,null,null,null,null,null,null,null,null,null,null,null,null,null,null,null,null,{"$f":"IF(B124=\"\",0,IF((SUM(D124:W124)=0),0,SUM(D124:W124)))","v":0},"",null,null,null,null,null,null,null,"","",null,null,null,null,null,null,null,null,null,null,"Monitoring / Fieldwork / Processing",null,"Research and prepare a technical memoranda identifying existing federal grant and loan programs for ports and rail improvements"]
["","",null,null,null,null,null,null,null,null,null,null,null,null,null,null,null,null,null,null,null,null,null,0,"",null,null,null,null,null,null,null,"","",null,null,null,null,null,null,null,null,null,null,"Traffic noise analysis",null,"Screen the program of projects for federal grant and loan program eligibility "]
["","",null,null,null,null,null,null,null,null,null,null,null,null,null,null,null,null,null,null,null,null,null,0,"",null,null,null,null,null,null,null,"","",null,null,null,null,null,null,null,null,null,null,"Rail noise analysis",null,"Recommend federal funding resources applicable to candidate projects"]
["","",null,null,null,null,null,null,null,null,null,null,null,null,null,null,null,null,null,null,null,null,null,0,"",null,null,null,null,null,null,null,"","",null,null,null,null,null,null,null,null,null,"F.3.e","Determination of Impacts"]
["","",null,null,null,null,null,null,null,null,null,null,null,null,null,null,null,null,null,null,null,null,null,0,"",null,null,null,null,null,null,null,"","",null,null,null,null,null,null,null,null,null,null,"Traffic noise analysis"]
["","",null,null,null,null,null,null,null,null,null,null,null,null,null,null,null,null,null,null,null,null,null,0,"",null,null,null,null,null,null,null,"","",null,null,null,null,null,null,null,null,null,null,"Rail noise analysis"]
["","",null,null,null,null,null,null,null,null,null,null,null,null,null,null,null,null,null,null,null,null,null,0,"",null,null,null,null,null,null,null,"","",null,null,null,null,null,null,null,null,null,null,"Traffic and rail noise impact assessment"]
["","",null,null,null,null,null,null,null,null,null,null,null,null,null,null,null,null,null,null,null,null,null,0,"",null,null,null,null,null,null,null,"","",null,null,null,null,null,null,null,null,null,"F.3.f","Noise Abatement Considerations"]
["","",null,null,null,null,null,null,null,null,null,null,null,null,null,null,null,null,null,null,null,null,null,{"$f":"IF(B132=\"\",0,IF(B132=\"PREPARE PROGRAM OF PROJECTS\",\"\",IF((SUM(D132:W132)=0),0,SUM(D132:W132))))","v":0},"",null,null,null,null,null,null,null,"","",null,null,null,null,null,null,null,null,null,null,"Noise barrier analysis",11,"PREPARE PROGRAM OF PROJECTS"]
["","",null,null,null,null,null,null,null,null,null,null,null,null,null,null,null,null,null,null,null,null,null,{"$f":"IF(B133=\"\",0,IF((SUM(D133:W133)=0),0,SUM(D133:W133)))","v":0},"",null,null,null,null,null,null,null,"","",null,null,null,null,null,null,null,null,null,null,"QA/Review",null,"Develop ranked list of projects based on benefit data"]
["","",null,null,null,null,null,null,null,null,null,null,null,null,null,null,null,null,null,null,null,null,null,0,"",null,null,null,null,null,null,null,"","",null,null,null,null,null,null,null,null,null,"F.3.g","Vibration Analysis",null,"Develop timing plan "]
["","",null,null,null,null,null,null,null,null,null,null,null,null,null,null,null,null,null,null,null,null,null,0,"",null,null,null,null,null,null,null,"","",null,null,null,null,null,null,null,null,null,"F.3.h","Noise and Vibration Technical Report",null,"Develop list of possible funding sources (limited to most likely source)"]
["","",null,null,null,null,null,null,null,null,null,null,null,null,null,null,null,null,null,null,null,null,null,0,"",null,null,null,null,null,null,null,"","",null,null,null,null,null,null,null,null,null,null,"Draft Report - text, tables, figures",null,"Calculate ranking based on criteria and or weighting data provided by NCDOT"]
["","",null,null,null,null,null,null,null,null,null,null,null,null,null,null,null,null,null,null,null,null,null,0,"",null,null,null,null,null,null,null,"","",null,null,null,null,null,null,null,null,null,null,"Draft Report - Appendices",null,"Submit draft list to NCDOT"]
["","",null,null,null,null,null,null,null,null,null,null,null,null,null,null,null,null,null,null,null,null,null,0,"",null,null,null,null,null,null,null,"","",null,null,null,null,null,null,null,null,null,null,"QA/Review",null,"Revise based on NCDOT comments"]
["","",null,null,null,null,null,null,null,null,null,null,null,null,null,null,null,null,null,null,null,null,null,0,"",null,null,null,null,null,null,null,"","",null,null,null,null,null,null,null,null,null,null,"Prepare Comment/Response Matrix"]
[{"$f":"IF(AG140=0,\"\",AG140)","v":""},"",null,null,null,null,null,null,null,null,null,null,null,null,null,null,null,null,null,null,null,null,null,0,"",null,null,null,null,null,null,null,{"$f":"IF($AA$4=\"Select Task Type\",\"\",IF($AA$4=\"Grade Separation\",AJ140,IF($AA$4=\"CEI\",AL140,IF($AA$4=\"Track Design\",AN140,IF($AA$4=\"Signal Design\",AP140,IF($AA$4=\"Environmental\",AR140,IF($AA$4=\"Planning\",AT140,\"\")))))))","v":""},"",null,null,null,null,null,null,null,null,null,null,"Prepare Final Report (includes QA/Review)"]
["","",null,null,null,null,null,null,null,null,null,null,null,null,null,null,null,null,null,null,null,null,null,0,{"$f":"IF(SUM(D141:W141)=0,\"\",((SUM(D141:W141))/$X$261))","v":""},null,null,null,null,null,null,null,"","",null,null,null,null,null,null,null,null,null,"F.3.i"]
["","",null,null,null,null,null,null,null,null,null,null,null,null,null,null,null,null,null,null,null,null,null,0,"",null,null,null,null,null,null,null,"","",null,null,null,null,null,null,null,null,null,"F.3.j"]
["","",null,null,null,null,null,null,null,null,null,null,null,null,null,null,null,null,null,null,null,null,null,0,"",null,null,null,null,null,null,null,"","",null,null,null,null,null,null,null,null,null,"F.3.k"]
["","",null,null,null,null,null,null,null,null,null,null,null,null,null,null,null,null,null,null,null,null,null,{"$f":"IF(B144=\"\",0,IF(B144=\"STAKEHOLDER INVOLVEMENT\",\"\",IF((SUM(D144:W144)=0),0,SUM(D144:W144))))","v":0},"",null,null,null,null,null,null,null,"","",null,null,null,null,null,null,null,null,null,"F.3.l",null,12,"STAKEHOLDER INVOLVEMENT"]
["","",null,null,null,null,null,null,null,null,null,null,null,null,null,null,null,null,null,null,null,null,null,{"$f":"IF(B145=\"\",0,IF((SUM(D145:W145)=0),0,SUM(D145:W145)))","v":0},"",null,null,null,null,null,null,null,"","",null,null,null,null,null,null,null,null,null,"F.3.m",null,null,"Attend 2 meetings (facilitated by others)"]
["","",null,null,null,null,null,null,null,null,null,null,null,null,null,null,null,null,null,null,null,null,null,{"$f":"IF(B146=\"\",0,IF(B146=\"AIR QUALITY ANALYSIS\",\"\",IF((SUM(D146:W146)=0),0,SUM(D146:W146))))","v":0},"",null,null,null,null,null,null,null,"","",null,null,null,null,null,null,null,null,null,"F.4","AIR QUALITY ANALYSIS",null,"Coordinate with NCDOT to discuss results of stakeholder interaction"]
["","",null,null,null,null,null,null,null,null,null,null,null,null,null,null,null,null,null,null,null,null,null,{"$f":"IF(B147=\"\",0,IF((SUM(D147:W147)=0),0,SUM(D147:W147)))","v":0},"",null,null,null,null,null,null,null,"","",null,null,null,null,null,null,null,null,null,"F.4.a","Data Compilation"]
["","",null,null,null,null,null,null,null,null,null,null,null,null,null,null,null,null,null,null,null,null,null,{"$f":"IF(B148=\"\",0,IF((SUM(D148:W148)=0),0,SUM(D148:W148)))","v":0},"",null,null,null,null,null,null,null,"","",null,null,null,null,null,null,null,null,null,"F.4.b","Attainment Status and Conformity"]
["","",null,null,null,null,null,null,null,null,null,null,null,null,null,null,null,null,null,null,null,null,null,{"$f":"IF(B149=\"\",0,IF((SUM(D149:W149)=0),0,SUM(D149:W149)))","v":0},"",null,null,null,null,null,null,null,"","",null,null,null,null,null,null,null,null,null,"F.4.c","Carbon Monoxide Air Quality Analysis"]
["","",null,null,null,null,null,null,null,null,null,null,null,null,null,null,null,null,null,null,null,null,null,{"$f":"IF(B150=\"\",0,IF((SUM(D150:W150)=0),0,SUM(D150:W150)))","v":0},"",null,null,null,null,null,null,null,"","",null,null,null,null,null,null,null,null,null,"F.4.d","Particulate Matter"]
["","",null,null,null,null,null,null,null,null,null,null,null,null,null,null,null,null,null,null,null,null,null,{"$f":"IF(B151=\"\",0,IF((SUM(D151:W151)=0),0,SUM(D151:W151)))","v":0},"",null,null,null,null,null,null,null,"","",null,null,null,null,null,null,null,null,null,"F.4.e","Mobile Source Air Toxics (MSATs)"]
["","",null,null,null,null,null,null,null,null,null,null,null,null,null,null,null,null,null,null,null,null,null,{"$f":"IF(B152=\"\",0,IF(B152=\"SCHEDULE\",\"\",IF((SUM(D152:W152)=0),0,SUM(D152:W152))))","v":0},"",null,null,null,null,null,null,null,"","",null,null,null,null,null,null,null,null,null,"F.4.f","Greenhouse Gas Emissions (GHGs)",13,"SCHEDULE"]
["","",null,null,null,null,null,null,null,null,null,null,null,null,null,null,null,null,null,null,null,null,null,{"$f":"IF(B153=\"\",0,IF((SUM(D153:W153)=0),0,SUM(D153:W153)))","v":0},"",null,null,null,null,null,null,null,"","",null,null,null,null,null,null,null,null,null,"F.4.g","Air Quality Technical Report",null,"Develop schedule of deliverable and review tasks"]
["","",null,null,null,null,null,null,null,null,null,null,null,null,null,null,null,null,null,null,null,null,null,0,"",null,null,null,null,null,null,null,"","",null,null,null,null,null,null,null,null,null,"F.4.h",null,null,"Update schedule as needed"]
["","",null,null,null,null,null,null,null,null,null,null,null,null,null,null,null,null,null,null,null,null,null,0,"",null,null,null,null,null,null,null,"","",null,null,null,null,null,null,null,null,null,"F.4.i"]
["","",null,null,null,null,null,null,null,null,null,null,null,null,null,null,null,null,null,null,null,null,null,0,"",null,null,null,null,null,null,null,"","",null,null,null,null,null,null,null,null,null,"F.4.j"]
["","",null,null,null,null,null,null,null,null,null,null,null,null,null,null,null,null,null,null,null,null,null,0,"",null,null,null,null,null,null,null,"","",null,null,null,null,null,null,null,null,null,"F.4.k"]
["","",null,null,null,null,null,null,null,null,null,null,null,null,null,null,null,null,null,null,null,null,null,0,"",null,null,null,null,null,null,null,"","",null,null,null,null,null,null,null,null,null,"F.4.l"]
["","",null,null,null,null,null,null,null,null,null,null,null,null,null,null,null,null,null,null,null,null,null,{"$f":"IF(B159=\"\",0,IF(B159=\"CULTURAL RESOURCES ANALYSIS\",\"\",IF((SUM(D159:W159)=0),0,SUM(D159:W159))))","v":0},"",null,null,null,null,null,null,null,"","",null,null,null,null,null,null,null,null,null,"F.5","CULTURAL RESOURCES ANALYSIS"]
["","",null,null,null,null,null,null,null,null,null,null,null,null,null,null,null,null,null,null,null,null,null,{"$f":"IF(B160=\"\",0,IF(B160=\"REPORT\",\"\",IF((SUM(D160:W160)=0),0,SUM(D160:W160))))","v":0},"",null,null,null,null,null,null,null,"","",null,null,null,null,null,null,null,null,null,"F.5.a","Phase 1 Historic Architectural Analysis",14,"REPORT"]
["","",null,null,null,null,null,null,null,null,null,null,null,null,null,null,null,null,null,null,null,null,null,{"$f":"IF(B161=\"\",0,IF(B161=\"ARCHAEOLOGICAL ANALYSIS\",\"\",IF((SUM(D161:W161)=0),0,SUM(D161:W161))))","v":0},"",null,null,null,null,null,null,null,"","",null,null,null,null,null,null,null,null,null,"F.5.b","ARCHAEOLOGICAL ANALYSIS",null,"Prepare draft report (electronic version only) for NCDOT review"]
["","",null,null,null,null,null,null,null,null,null,null,null,null,null,null,null,null,null,null,null,null,null,{"$f":"IF(B162=\"\",0,IF((SUM(D162:W162)=0),0,SUM(D162:W162)))","v":0},"",null,null,null,null,null,null,null,"","",null,null,null,null,null,null,null,null,null,null,"Conduct Background Research of information from NC OSA/ SHPO",null,"Revise per NCDOT comments"]
["","",null,null,null,null,null,null,null,null,null,null,null,null,null,null,null,null,null,null,null,null,null,0,"",null,null,null,null,null,null,null,"","",null,null,null,null,null,null,null,null,null,null,"Collect previously recorded sites and surveys in study area",null,"Prepare final report"]
["","",null,null,null,null,null,null,null,null,null,null,null,null,null,null,null,null,null,null,null,null,null,0,"",null,null,null,null,null,null,null,"","",null,null,null,null,null,null,null,null,null,null,"Prepare Archaeological Overview Report"]
["","",null,null,null,null,null,null,null,null,null,null,null,null,null,null,null,null,null,null,null,null,null,0,"",null,null,null,null,null,null,null,"","",null,null,null,null,null,null,null,null,null,null," known archaeological resources in alternatives or study area"]
["","",null,null,null,null,null,null,null,null,null,null,null,null,null,null,null,null,null,null,null,null,null,0,"",null,null,null,null,null,null,null,"","",null,null,null,null,null,null,null,null,null,null," sites of value for reasons other than recoverable information"]
["","",null,null,null,null,null,null,null,null,null,null,null,null,null,null,null,null,null,null,null,null,null,0,"",null,null,null,null,null,null,null,"","",null,null,null,null,null,null,null,null,null,null," assessment of potential for archaeological sites in areas not previously surveyed"]
["","",null,null,null,null,null,null,null,null,null,null,null,null,null,null,null,null,null,null,null,null,null,0,"",null,null,null,null,null,null,null,"","",null,null,null,null,null,null,null,null,null,null," recommendations regarding need for archaeological survey"]
["","",null,null,null,null,null,null,null,null,null,null,null,null,null,null,null,null,null,null,null,null,null,{"$f":"IF(B169=\"\",0,IF(B169=\"PROJECT COORDINATION\",\"\",IF((SUM(D169:W169)=0),0,SUM(D169:W169))))","v":0},"",null,null,null,null,null,null,null,"","",null,null,null,null,null,null,null,null,null,null,"Graphics showing alternatives, previously studied areas, and known sites",15,"PROJECT COORDINATION"]
["","",null,null,null,null,null,null,null,null,null,null,null,null,null,null,null,null,null,null,null,null,null,{"$f":"IF(B170=\"\",0,IF((SUM(D170:W170)=0),0,SUM(D170:W170)))","v":0},"",null,null,null,null,null,null,null,"","",null,null,null,null,null,null,null,null,null,null,"Submit Draft Archaeological Overview Report",null,"Coordinate internally with staff and subconsultants"]
["","",null,null,null,null,null,null,null,null,null,null,null,null,null,null,null,null,null,null,null,null,null,0,"",null,null,null,null,null,null,null,"","",null,null,null,null,null,null,null,null,null,null,"Address NCDOT comments on Draft Archaeological Overview Report"]
["","",null,null,null,null,null,null,null,null,null,null,null,null,null,null,null,null,null,null,null,null,null,0,"",null,null,null,null,null,null,null,"","",null,null,null,null,null,null,null,null,null,null,"Submit Final Archaeological Overview Report"]
["","",null,null,null,null,null,null,null,null,null,null,null,null,null,null,null,null,null,null,null,null,null,0,"",null,null,null,null,null,null,null,"","",null,null,null,null,null,null,null,null,null,null,"Meeting attendance and coordination"]
["","",null,null,null,null,null,null,null,null,null,null,null,null,null,null,null,null,null,null,null,null,null,0,"",null,null,null,null,null,null,null,"","",null,null,null,null,null,null,null,null,null,"F.5.c"]
["","",null,null,null,null,null,null,null,null,null,null,null,null,null,null,null,null,null,null,null,null,null,0,"",null,null,null,null,null,null,null,"","",null,null,null,null,null,null,null,null,null,"F.5.d"]
["","",null,null,null,null,null,null,null,null,null,null,null,null,null,null,null,null,null,null,null,null,null,{"$f":"IF(B176=\"\",0,IF(B176=\"TRUCK ALTERNATIVE ROUTE ANALYSIS\",\"\",IF((SUM(D176:W176)=0),0,SUM(D176:W176))))","v":0},"",null,null,null,null,null,null,null,"","",null,null,null,null,null,null,null,null,null,"F.5.e",null,16,"TRUCK ALTERNATIVE ROUTE ANALYSIS"]
["","",null,null,null,null,null,null,null,null,null,null,null,null,null,null,null,null,null,null,null,null,null,{"$f":"IF(B177=\"\",0,IF((SUM(D177:W177)=0),0,SUM(D177:W177)))","v":0},"",null,null,null,null,null,null,null,"","",null,null,null,null,null,null,null,null,null,"F.5.f",null,null,"Truck Alternative Route Analysis (XX to the Port)"]
["","",null,null,null,null,null,null,null,null,null,null,null,null,null,null,null,null,null,null,null,null,null,{"$f":"IF(B178=\"\",0,IF((SUM(D178:W178)=0),0,SUM(D178:W178)))","v":0},"",null,null,null,null,null,null,null,"","",null,null,null,null,null,null,null,null,null,"F.5.g"]
["","",null,null,null,null,null,null,null,null,null,null,null,null,null,null,null,null,null,null,null,null,null,{"$f":"IF(B179=\"\",0,IF(B179=\"OTHER PHYSICAL FEATURES ANALYSIS\",\"\",IF((SUM(D179:W179)=0),0,SUM(D179:W179))))","v":0},"",null,null,null,null,null,null,null,"","",null,null,null,null,null,null,null,null,null,"G","OTHER PHYSICAL FEATURES ANALYSIS"]
["","",null,null,null,null,null,null,null,null,null,null,null,null,null,null,null,null,null,null,null,null,null,{"$f":"IF(B180=\"\",0,IF((SUM(D180:W180)=0),0,SUM(D180:W180)))","v":0},"",null,null,null,null,null,null,null,"","",null,null,null,null,null,null,null,null,null,"G.1","Identify Potential Floodplain and Floodway Impacts"]
["","",null,null,null,null,null,null,null,null,null,null,null,null,null,null,null,null,null,null,null,null,null,{"$f":"IF(B181=\"\",0,IF((SUM(D181:W181)=0),0,SUM(D181:W181)))","v":0},"",null,null,null,null,null,null,null,"","",null,null,null,null,null,null,null,null,null,"G.2","Farmland Assessment"]
["","",null,null,null,null,null,null,null,null,null,null,null,null,null,null,null,null,null,null,null,null,null,{"$f":"IF(B182=\"\",0,IF(B182=\"FEASIBILITY STUDY\",\"\",IF((SUM(D182:W182)=0),0,SUM(D182:W182))))","v":0},"",null,null,null,null,null,null,null,"","",null,null,null,null,null,null,null,null,null,"G.3","Hazardous Materials Assessment",17,"FEASIBILITY STUDY"]
["","",null,null,null,null,null,null,null,null,null,null,null,null,null,null,null,null,null,null,null,null,null,{"$f":"IF(B183=\"\",0,IF((SUM(D183:W183)=0),0,SUM(D183:W183)))","v":0},"",null,null,null,null,null,null,null,"","",null,null,null,null,null,null,null,null,null,"G.4","Visual Impact Analysis"]
["","",null,null,null,null,null,null,null,null,null,null,null,null,null,null,null,null,null,null,null,null,null,0,"",null,null,null,null,null,null,null,"","",null,null,null,null,null,null,null,null,null,"G.5","Identify Potential Public Utility Impacts"]
["","",null,null,null,null,null,null,null,null,null,null,null,null,null,null,null,null,null,null,null,null,null,0,"",null,null,null,null,null,null,null,"","",null,null,null,null,null,null,null,null,null,"G.6"]
["","",null,null,null,null,null,null,null,null,null,null,null,null,null,null,null,null,null,null,null,null,null,0,"",null,null,null,null,null,null,null,"","",null,null,null,null,null,null,null,null,null,"G.7"]
["","",null,null,null,null,null,null,null,null,null,null,null,null,null,null,null,null,null,null,null,null,null,0,"",null,null,null,null,null,null,null,"","",null,null,null,null,null,null,null,null,null,"G.8"]
["","",null,null,null,null,null,null,null,null,null,null,null,null,null,null,null,null,null,null,null,null,null,0,"",null,null,null,null,null,null,null,"","",null,null,null,null,null,null,null,null,null,"G.9"]
["","",null,null,null,null,null,null,null,null,null,null,null,null,null,null,null,null,null,null,null,null,null,0,"",null,null,null,null,null,null,null,"","",null,null,null,null,null,null,null,null,null,"G.10"]
["","",null,null,null,null,null,null,null,null,null,null,null,null,null,null,null,null,null,null,null,null,null,{"$f":"IF(B190=\"\",0,IF(B190=\"SECTION 4(F) AND SECTION 6(F)\",\"\",IF((SUM(D190:W190)=0),0,SUM(D190:W190))))","v":0},"",null,null,null,null,null,null,null,"","",null,null,null,null,null,null,null,null,null,"H","SECTION 4(F) AND SECTION 6(F)"]
["","",null,null,null,null,null,null,null,null,null,null,null,null,null,null,null,null,null,null,null,null,null,{"$f":"IF(B191=\"\",0,IF((SUM(D191:W191)=0),0,SUM(D191:W191)))","v":0},"",null,null,null,null,null,null,null,"","",null,null,null,null,null,null,null,null,null,"H.1"]
["","",null,null,null,null,null,null,null,null,null,null,null,null,null,null,null,null,null,null,null,null,null,{"$f":"IF(B192=\"\",0,IF((SUM(D192:W192)=0),0,SUM(D192:W192)))","v":0},"",null,null,null,null,null,null,null,"","",null,null,null,null,null,null,null,null,null,"H.2"]
["","",null,null,null,null,null,null,null,null,null,null,null,null,null,null,null,null,null,null,null,null,null,{"$f":"IF(B193=\"\",0,IF((SUM(D193:W193)=0),0,SUM(D193:W193)))","v":0},"",null,null,null,null,null,null,null,"","",null,null,null,null,null,null,null,null,null,"H.3"]
["","",null,null,null,null,null,null,null,null,null,null,null,null,null,null,null,null,null,null,null,null,null,{"$f":"IF(B194=\"\",0,IF((SUM(D194:W194)=0),0,SUM(D194:W194)))","v":0},"",null,null,null,null,null,null,null,"","",null,null,null,null,null,null,null,null,null,"H.4"]
["","",null,null,null,null,null,null,null,null,null,null,null,null,null,null,null,null,null,null,null,null,null,{"$f":"IF(B195=\"\",0,IF((SUM(D195:W195)=0),0,SUM(D195:W195)))","v":0},"",null,null,null,null,null,null,null,"","",null,null,null,null,null,null,null,null,null,"H.5"]
["","",null,null,null,null,null,null,null,null,null,null,null,null,null,null,null,null,null,null,null,null,null,{"$f":"IF(B196=\"\",0,IF(B196=\"DRAFT ENVIRONMENTAL DOCUMENT\",\"\",IF((SUM(D196:W196)=0),0,SUM(D196:W196))))","v":0},"",null,null,null,null,null,null,null,"","",null,null,null,null,null,null,null,null,null,"I","DRAFT ENVIRONMENTAL DOCUMENT"]
["","",null,null,null,null,null,null,null,null,null,null,null,null,null,null,null,null,null,null,null,null,null,{"$f":"IF(B197=\"\",0,IF((SUM(D197:W197)=0),0,SUM(D197:W197)))","v":0},"",null,null,null,null,null,null,null,"","",null,null,null,null,null,null,null,null,null,"I.1","Purpose and Need"]
["","",null,null,null,null,null,null,null,null,null,null,null,null,null,null,null,null,null,null,null,null,null,0,"",null,null,null,null,null,null,null,"","",null,null,null,null,null,null,null,null,null,"I.2","Alternatives Considered"]
["","",null,null,null,null,null,null,null,null,null,null,null,null,null,null,null,null,null,null,null,null,null,0,"",null,null,null,null,null,null,null,"","",null,null,null,null,null,null,null,null,null,"I.3","Human Environment"]
["","",null,null,null,null,null,null,null,null,null,null,null,null,null,null,null,null,null,null,null,null,null,0,"",null,null,null,null,null,null,null,"","",null,null,null,null,null,null,null,null,null,"I.4","Physical Environment"]
["","",null,null,null,null,null,null,null,null,null,null,null,null,null,null,null,null,null,null,null,null,null,0,"",null,null,null,null,null,null,null,"","",null,null,null,null,null,null,null,null,null,"I.5","Cultural Resources"]
["","",null,null,null,null,null,null,null,null,null,null,null,null,null,null,null,null,null,null,null,null,null,0,"",null,null,null,null,null,null,null,"","",null,null,null,null,null,null,null,null,null,"I.6","Natural Resources"]
["","",null,null,null,null,null,null,null,null,null,null,null,null,null,null,null,null,null,null,null,null,null,0,"",null,null,null,null,null,null,null,"","",null,null,null,null,null,null,null,null,null,"I.7","Environmental Impacts"]
[{"$f":"IF(AG204=0,\"\",AG204)","v":""},"",null,null,null,null,null,null,null,null,null,null,null,null,null,null,null,null,null,null,null,null,null,0,"",null,null,null,null,null,null,null,{"$f":"IF($AA$4=\"Select Task Type\",\"\",IF($AA$4=\"Grade Separation\",AJ204,IF($AA$4=\"CEI\",AL204,IF($AA$4=\"Track Design\",AN204,IF($AA$4=\"Signal Design\",AP204,IF($AA$4=\"Environmental\",AR204,IF($AA$4=\"Planning\",AT204,\"\")))))))","v":""},"",null,null,null,null,null,null,null,null,null,"I.8","Indirect and Cumulative Effects"]
["","",null,null,null,null,null,null,null,null,null,null,null,null,null,null,null,null,null,null,null,null,null,0,{"$f":"IF(SUM(D205:W205)=0,\"\",((SUM(D205:W205))/$X$261))","v":""},null,null,null,null,null,null,null,"","",null,null,null,null,null,null,null,null,null,"I.9","Other Impact Considerations"]
["","",null,null,null,null,null,null,null,null,null,null,null,null,null,null,null,null,null,null,null,null,null,0,"",null,null,null,null,null,null,null,"","",null,null,null,null,null,null,null,null,null,"I.10","Public Involvement ad Agency Coordination"]
["","",null,null,null,null,null,null,null,null,null,null,null,null,null,null,null,null,null,null,null,null,null,0,"",null,null,null,null,null,null,null,"","",null,null,null,null,null,null,null,null,null,"I.11","Compile Draft EA & Final EA"]
["","",null,null,null,null,null,null,null,null,null,null,null,null,null,null,null,null,null,null,null,null,null,0,"",null,null,null,null,null,null,null,"","",null,null,null,null,null,null,null,null,null,"I.12","Review and Distribution of EA"]
["","",null,null,null,null,null,null,null,null,null,null,null,null,null,null,null,null,null,null,null,null,null,0,"",null,null,null,null,null,null,null,"","",null,null,null,null,null,null,null,null,null,"I.13"]
["","",null,null,null,null,null,null,null,null,null,null,null,null,null,null,null,null,null,null,null,null,null,0,"",null,null,null,null,null,null,null,"","",null,null,null,null,null,null,null,null,null,"I.14"]
["","",null,null,null,null,null,null,null,null,null,null,null,null,null,null,null,null,null,null,null,null,null,0,"",null,null,null,null,null,null,null,"","",null,null,null,null,null,null,null,null,null,"I.15"]
["","",null,null,null,null,null,null,null,null,null,null,null,null,null,null,null,null,null,null,null,null,null,0,"",null,null,null,null,null,null,null,"","",null,null,null,null,null,null,null,null,null,"I.16"]
["","",null,null,null,null,null,null,null,null,null,null,null,null,null,null,null,null,null,null,null,null,null,0,"",null,null,null,null,null,null,null,"","",null,null,null,null,null,null,null,null,null,"I.17"]
["","",null,null,null,null,null,null,null,null,null,null,null,null,null,null,null,null,null,null,null,null,null,{"$f":"IF(B214=\"\",0,IF(B214=\"FINAL ENVIRONMENTAL DOCUMENT\",\"\",IF((SUM(D214:W214)=0),0,SUM(D214:W214))))","v":0},"",null,null,null,null,null,null,null,"","",null,null,null,null,null,null,null,null,null,"J","FINAL ENVIRONMENTAL DOCUMENT"]
["","",null,null,null,null,null,null,null,null,null,null,null,null,null,null,null,null,null,null,null,null,null,{"$f":"IF(B215=\"\",0,IF((SUM(D215:W215)=0),0,SUM(D215:W215)))","v":0},"",null,null,null,null,null,null,null,"","",null,null,null,null,null,null,null,null,null,"J.1","Compile FONSI"]
["","",null,null,null,null,null,null,null,null,null,null,null,null,null,null,null,null,null,null,null,null,null,0,"",null,null,null,null,null,null,null,"","",null,null,null,null,null,null,null,null,null,"J.2","Alternative Selection"]
["","",null,null,null,null,null,null,null,null,null,null,null,null,null,null,null,null,null,null,null,null,null,0,"",null,null,null,null,null,null,null,"","",null,null,null,null,null,null,null,null,null,"J.3","Prepare Draft & Final Finding of No Significant Impact (FONSI)"]
["","",null,null,null,null,null,null,null,null,null,null,null,null,null,null,null,null,null,null,null,null,null,0,"",null,null,null,null,null,null,null,"","",null,null,null,null,null,null,null,null,null,"J.4"]
["","",null,null,null,null,null,null,null,null,null,null,null,null,null,null,null,null,null,null,null,null,null,0,"",null,null,null,null,null,null,null,"","",null,null,null,null,null,null,null,null,null,"J.5"]
["","",null,null,null,null,null,null,null,null,null,null,null,null,null,null,null,null,null,null,null,null,null,0,"",null,null,null,null,null,null,null,"","",null,null,null,null,null,null,null,null,null,"J.6"]
["","",null,null,null,null,null,null,null,null,null,null,null,null,null,null,null,null,null,null,null,null,null,0,"",null,null,null,null,null,null,null,"","",null,null,null,null,null,null,null,null,null,"J.7"]
["","",null,null,null,null,null,null,null,null,null,null,null,null,null,null,null,null,null,null,null,null,null,0,"",null,null,null,null,null,null,null,"","",null,null,null,null,null,null,null,null,null,"J.8"]
["","",null,null,null,null,null,null,null,null,null,null,null,null,null,null,null,null,null,null,null,null,null,{"$f":"IF(B223=\"\",0,IF(B223=\"PUBLIC INVOLVEMENT\",\"\",IF((SUM(D223:W223)=0),0,SUM(D223:W223))))","v":0},"",null,null,null,null,null,null,null,"","",null,null,null,null,null,null,null,null,null,"K","PUBLIC INVOLVEMENT"]
["","",null,null,null,null,null,null,null,null,null,null,null,null,null,null,null,null,null,null,null,null,null,{"$f":"IF(B224=\"\",0,IF((SUM(D224:W224)=0),0,SUM(D224:W224)))","v":0},"",null,null,null,null,null,null,null,"","",null,null,null,null,null,null,null,null,null,"K.1","Informal Stakeholder Coordination"]
["","",null,null,null,null,null,null,null,null,null,null,null,null,null,null,null,null,null,null,null,null,null,0,"",null,null,null,null,null,null,null,"","",null,null,null,null,null,null,null,null,null,"K.2","Public Information Meeting"]
["","",null,null,null,null,null,null,null,null,null,null,null,null,null,null,null,null,null,null,null,null,null,0,"",null,null,null,null,null,null,null,"","",null,null,null,null,null,null,null,null,null,"K.3","Public Hearing"]
["","",null,null,null,null,null,null,null,null,null,null,null,null,null,null,null,null,null,null,null,null,null,0,"",null,null,null,null,null,null,null,"","",null,null,null,null,null,null,null,null,null,"K.4","Local Offical Information Meeting"]
["","",null,null,null,null,null,null,null,null,null,null,null,null,null,null,null,null,null,null,null,null,null,0,"",null,null,null,null,null,null,null,"","",null,null,null,null,null,null,null,null,null,"K.5","Mailer"]
["","",null,null,null,null,null,null,null,null,null,null,null,null,null,null,null,null,null,null,null,null,null,0,"",null,null,null,null,null,null,null,"","",null,null,null,null,null,null,null,null,null,"K.6","Meeting Maps"]
["","",null,null,null,null,null,null,null,null,null,null,null,null,null,null,null,null,null,null,null,null,null,0,"",null,null,null,null,null,null,null,"","",null,null,null,null,null,null,null,null,null,"K.7","Meeting Displays"]
["","",null,null,null,null,null,null,null,null,null,null,null,null,null,null,null,null,null,null,null,null,null,0,"",null,null,null,null,null,null,null,"","",null,null,null,null,null,null,null,null,null,"K.8"]
["","",null,null,null,null,null,null,null,null,null,null,null,null,null,null,null,null,null,null,null,null,null,0,"",null,null,null,null,null,null,null,"","",null,null,null,null,null,null,null,null,null,"K.9"]
["","",null,null,null,null,null,null,null,null,null,null,null,null,null,null,null,null,null,null,null,null,null,0,"",null,null,null,null,null,null,null,"","",null,null,null,null,null,null,null,null,null,"K.10"]
["","",null,null,null,null,null,null,null,null,null,null,null,null,null,null,null,null,null,null,null,null,null,0,"",null,null,null,null,null,null,null,"","",null,null,null,null,null,null,null,null,null,"K.11"]
["","",null,null,null,null,null,null,null,null,null,null,null,null,null,null,null,null,null,null,null,null,null,0,"",null,null,null,null,null,null,null,"","",null,null,null,null,null,null,null,null,null,"K.12"]
["","",null,null,null,null,null,null,null,null,null,null,null,null,null,null,null,null,null,null,null,null,null,{"$f":"IF(B236=\"\",0,IF(B236=\"PROJECT COORDINATION AND MANAGEMENT\",\"\",IF((SUM(D236:W236)=0),0,SUM(D236:W236))))","v":0},"",null,null,null,null,null,null,null,"","",null,null,null,null,null,null,null,null,null,"L","PROJECT COORDINATION AND MANAGEMENT"]
["","",null,null,null,null,null,null,null,null,null,null,null,null,null,null,null,null,null,null,null,null,null,{"$f":"IF(B237=\"\",0,IF((SUM(D237:W237)=0),0,SUM(D237:W237)))","v":0},"",null,null,null,null,null,null,null,"","",null,null,null,null,null,null,null,null,null,"L.1","Project Schedule"]
["","",null,null,null,null,null,null,null,null,null,null,null,null,null,null,null,null,null,null,null,null,null,0,"",null,null,null,null,null,null,null,"","",null,null,null,null,null,null,null,null,null,"L.2","Coordination with NCDOT"]
["","",null,null,null,null,null,null,null,null,null,null,null,null,null,null,null,null,null,null,null,null,null,0,"",null,null,null,null,null,null,null,"","",null,null,null,null,null,null,null,null,null,"L.3","General Coordination"]
["","",null,null,null,null,null,null,null,null,null,null,null,null,null,null,null,null,null,null,null,null,null,0,"",null,null,null,null,null,null,null,"","",null,null,null,null,null,null,null,null,null,"L.4"]
["","",null,null,null,null,null,null,null,null,null,null,null,null,null,null,null,null,null,null,null,null,null,0,"",null,null,null,null,null,null,null,"","",null,null,null,null,null,null,null,null,null,"L.5"]
["","",null,null,null,null,null,null,null,null,null,null,null,null,null,null,null,null,null,null,null,null,null,0,"",null,null,null,null,null,null,null,"","",null,null,null,null,null,null,null,null,null,"L.6"]
["","",null,null,null,null,null,null,null,null,null,null,null,null,null,null,null,null,null,null,null,null,null,0,"",null,null,null,null,null,null,null,"","",null,null,null,null,null,null,null,null,null,"L.7"]
["","",null,null,null,null,null,null,null,null,null,null,null,null,null,null,null,null,null,null,null,null,null,0,"",null,null,null,null,null,null,null,"","",null,null,null,null,null,null,null,null,null,"L.8"]
["","",null,null,null,null,null,null,null,null,null,null,null,null,null,null,null,null,null,null,null,null,null,0,"",null,null,null,null,null,null,null,"",""]
["","",null,null,null,null,null,null,null,null,null,null,null,null,null,null,null,null,null,null,null,null,null,0,"",null,null,null,null,null,null,null,"",""]
["","",null,null,null,null,null,null,null,null,null,null,null,null,null,null,null,null,null,null,null,null,null,0,"",null,null,null,null,null,null,null,"",""]
["","",null,null,null,null,null,null,null,null,null,null,null,null,null,null,null,null,null,null,null,null,null,0,"",null,null,null,null,null,null,null,"",""]
["","",null,null,null,null,null,null,null,null,null,null,null,null,null,null,null,null,null,null,null,null,null,0,"",null,null,null,null,null,null,null,"",""]
["","",null,null,null,null,null,null,null,null,null,null,null,null,null,null,null,null,null,null,null,null,null,0,"",null,null,null,null,null,null,null,"",""]
["","",null,null,null,null,null,null,null,null,null,null,null,null,null,null,null,null,null,null,null,null,null,0,"",null,null,null,null,null,null,null,"",""]
["","",null,null,null,null,null,null,null,null,null,null,null,null,null,null,null,null,null,null,null,null,null,0,"",null,null,null,null,null,null,null,"",""]
["","",null,null,null,null,null,null,null,null,null,null,null,null,null,null,null,null,null,null,null,null,null,0,"",null,null,null,null,null,null,null,"",""]
["","",null,null,null,null,null,null,null,null,null,null,null,null,null,null,null,null,null,null,null,null,null,0,"",null,null,null,null,null,null,null,"",""]
["","",null,null,null,null,null,null,null,null,null,null,null,null,null,null,null,null,null,null,null,null,null,0,"",null,null,null,null,null,null,null,"",""]
["","",null,null,null,null,null,null,null,null,null,null,null,null,null,null,null,null,null,null,null,null,null,0,"",null,null,null,null,null,null,null,"",""]
["","",null,null,null,null,null,null,null,null,null,null,null,null,null,null,null,null,null,null,null,null,null,0,"",null,null,null,null,null,null,null,"",""]
["","",null,null,null,null,null,null,null,null,null,null,null,null,null,null,null,null,null,null,null,null,null,0,"",null,null,null,null,null,null,null,"",""]
["","",null,null,null,null,null,null,null,null,null,null,null,null,null,null,null,null,null,null,null,null,null,0,{"$f":"IF(SUM(D259:W259)=0,\"\",((SUM(D259:W259))/$X$261))","v":""},null,null,null,null,null,null,null,"",""]
["","",null,null,null,null,null,null,null,null,null,null,null,null,null,null,null,null,null,null,null,null,null,0,{"$f":"IF(SUM(D260:W260)=0,\"\",((SUM(D260:W260))/$X$261))","v":""},null,null,null,null,null,null,null,"",""]
[null,"TOTAL WORKHOURS/CATEGORY:",null,{"$f":"SUM(D11:D260)","v":0},0,0,0,0,0,0,0,0,0,0,0,0,0,0,0,0,0,0,0,{"$f":"SUM(D261:W261)","v":0},{"$f":"SUM(Y11:Y260)","v":0},{"$f":"SUM(Z11:Z260)","v":0}]
[null,"TOTAL WORKDAYS/CATEGORY:",null,{"$f":"D261/8","v":0},{"$f":"E261/8","v":0},0,0,0,0,0,0,0,0,0,0,0,0,0,0,0,0,0,0]
[null,"HOURLY SALARY RATE:",null,{"$f":"'PEF CLASSIFICATION SHEET'!E1167","v":0},{"$f":"'PEF CLASSIFICATION SHEET'!E1168","v":0},{"$f":"'PEF CLASSIFICATION SHEET'!E1169","v":0},{"$f":"'PEF CLASSIFICATION SHEET'!E1170","v":0},{"$f":"'PEF CLASSIFICATION SHEET'!E1171","v":0},{"$f":"'PEF CLASSIFICATION SHEET'!E1172","v":0},{"$f":"'PEF CLASSIFICATION SHEET'!E1173","v":0},{"$f":"'PEF CLASSIFICATION SHEET'!E1174","v":0},{"$f":"'PEF CLASSIFICATION SHEET'!E1175","v":0},{"$f":"'PEF CLASSIFICATION SHEET'!E1176","v":0},{"$f":"'PEF CLASSIFICATION SHEET'!E1177","v":0},{"$f":"'PEF CLASSIFICATION SHEET'!E1178","v":0},{"$f":"'PEF CLASSIFICATION SHEET'!E1179","v":0},{"$f":"'PEF CLASSIFICATION SHEET'!E1180","v":0},{"$f":"'PEF CLASSIFICATION SHEET'!E1181","v":0},{"$f":"'PEF CLASSIFICATION SHEET'!E1182","v":0},{"$f":"'PEF CLASSIFICATION SHEET'!E1183","v":0},{"$f":"'PEF CLASSIFICATION SHEET'!E1184","v":0},{"$f":"'PEF CLASSIFICATION SHEET'!E1185","v":0},{"$f":"'PEF CLASSIFICATION SHEET'!E1186","v":0}]
[null,"RATES PER DAY:",null,{"$f":"D263*8","v":0},0,0,0,0,0,0,0,0,0,0,0,0,0,0,0,0,0,0,0]
[null,"PAYROLL BURDEN:",null,{"$f":"SUM(D261*D263)","v":0},{"$f":"SUM(E261*E263)","v":0},0,0,0,0,0,0,0,0,0,0,0,0,0,0,0,0,0,0]
[null,"TOTAL WORKDAYS:",null,{"$f":"SUM(D262:W262)","v":0}]
[null,"TOTAL PAYROLL BURDEN:",null,{"$f":"SUM(D265:W265)","v":0}]
[null,"AVERAGE COST PER HOUR:",null,{"$f":"SUM(D267/(D266*8))","v":{"$error":"#DIV/0!"}}]
[null,"GENERAL OVERHEAD:",{"$f":"RAIL.SUB4_CONSULTANT_OVERHEAD","v":0},{"$f":"SUM(D267*C269)","v":0}]
[null,"SUBTOTAL:",null,{"$f":"SUM(D267+D269)","v":0}]
[null,"COMPARATIVE FEE:",{"$f":"RAIL.SUB4_CONSULTANT_FEE","v":0.09},{"$f":"SUM(D270*C271)","v":0}]
[null,"FACILITIES COST OF CAPITAL:",{"$f":"RAIL.SUB4_COSTofCAPITAL","v":0},{"$f":"SUM(D267*C272)","v":0}]
[null,"TOTAL:",null,{"$f":"SUM(D270:D272)","v":0}]
[null,"DIRECT EXPENSES:",null,{"$f":"RAIL.SUB4_DIRECT_NONSALARY_TOTAL","v":0}]
[null,"RAIL GRAND TOTAL:",null,{"$f":"SUM(D273:D274)","v":0}]

{"sheet":"Rail-Exp-Sub4","index":146,"n_rows":46,"n_cols":8,"rows_kept":46,"cut":false,"hidden":true,"merged":[[0,0,0,7],[1,3,1,7]]}
["RAIL--DIRECT EXPENSES - SUBCONSULTANT 4"]
["TIP NUMBER",{"$f":"TIP.NUMBER","v":0},"FIRM:",{"$f":"'Rail-Sub4'!G3","v":"CONSULTANT NAME"}]
[]
["GENERAL PROJECT WORK:","ITEM","QTY","DESCRIPTION",null,null,"UNIT COST "]
[null,"Travel:"]
[null,"Sedan",0,"Trip(s) @",0,"miles @",{"$f":"SEDAN","v":0.7},{"$f":"SUM(C6*E6*G6)","v":0}]
[null,"Carry All",0,"Trip(s) @",0,"miles @",{"$f":"CARRYALL","v":0.72},{"$f":"SUM(C7*E7*G7)","v":0}]
[null,"Car Rental",null,null,0,"days @ ",{"$f":"CARRENTAL","v":50},{"$f":"SUM(E8*G8)","v":0}]
[null,"Gas for Rental",null,null,0,"miles @",{"$f":"GASforRENTAL","v":0.2},{"$f":"SUM(E9*G9)","v":0}]
[null,"Parking:",0,"Trip(s) @",null,null,{"$f":"PARKING","v":3},{"$f":"SUM(C10*G10)","v":0}]
[null,"Per Diem:",0,"Breakfast",null,null,{"$f":"BREAKFAST","v":10.1},{"$f":"SUM(C11*G11)","v":0}]
[null,null,0,"Lunch",null,null,{"$f":"LUNCH","v":13.3},0]
[null,null,0,"Dinner",null,null,{"$f":"DINNER","v":23.1},0]
[null,null,0,"Lodging",null,null,{"$f":"LODGING_LUMP.SUM","v":95},0]
[null,"Reproduction:",0,"8 1/2 x 11 B & W Copies @",null,null,{"$f":"LETTERCOPIES","v":0.14000000000000001},0]
[null,null,0,"11 x 17 B & W Copies @",null,null,{"$f":"LEDGERCOPIES","v":0.34},0]
[null,null,0,"8 1/2 x 11 Color Copies @",null,null,{"$f":"LETTERCOLOR","v":0.83},0]
[null,null,0,"11 x 17 Color Copies @",null,null,{"$f":"LEDGERCOLOR","v":1.66},0]
[null,null,0,"SQ. FT. of Plots (B & W or Color)",null,"<65 SQ. FT.*",{"$f":"ROLLPLOTSshort","v":6.5},0]
[null,null,0,"SQ. FT. of Plots (B & W or Color)",null,">65 SQ. FT.*",{"$f":"ROLLPLOTSlong","v":1.5},0]
[null,null,0,"Cover(s) @",null,null,{"$f":"COVERS","v":0.5},0]
[null,null,0,"Binder(s) @",null,null,{"$f":"BINDERS","v":0.5},0]
[null,null,0,"Blueprints - 8 1/2 x 11 @",null,null,{"$f":"BLUEPRINTSLETTER","v":0.35},0]
[null,null,0,"Blueprints - 42 x 72 @",null,null,{"$f":"BLUEPRINTSLARGE","v":1.3},0]
[null,"Film and Developing:",0,"Roll(s) @",null,null,{"$f":"FILM","v":20},0]
[null,null,null,null,null,"Subtotal",null,{"$f":"SUM(H6:H25)","v":0}]
["MAPS AND DOCUMENTS:","ITEM","QTY","DESCRIPTION",null,null,"UNIT COST "]
[null,"County Tax Maps:",0,"Map(s) @",null,null,{"$f":"County_Tax_Maps","v":7},{"$f":"SUM(C28*G28)","v":0}]
[null,"USGS Maps:",0,"Map(s) @",null,null,{"$f":"USGSMAPS","v":7},{"$f":"SUM(C29*G29)","v":0}]
[null,null,null,null,null,"Subtotal",null,{"$f":"SUM(H28:H29)","v":0}]
["Miscellaneous Other","ITEM","QTY","DESCRIPTION",null,null,"UNIT COST "]
[null,null,null,null,null,null,null,{"$f":"SUM(C32*G32)","v":0}]
[null,null,null,null,null,null,null,{"$f":"SUM(C33*G33)","v":0}]
[null,null,null,null,null,null,null,0]
[null,null,null,null,null,null,null,0]
[null,null,null,null,null,null,null,0]
[null,null,null,null,null,null,null,0]
[null,null,null,null,null,null,null,0]
[null,null,null,null,null,null,null,{"$f":"SUM(C39*G39)","v":0}]
[null,null,null,null,null,null,null,{"$f":"SUM(C40*G40)","v":0}]
[null,null,null,null,null,null,null,{"$f":"SUM(C41*G41)","v":0}]
[null,null,null,null,null,"Subtotal",null,{"$f":"SUM(H32:H41)","v":0}]
[]
[null,null,null,null,null,"TOTAL",null,{"$f":"SUM(H26+H30+H42)","v":0}]
[]
[null,"* Sum of all plots "]

{"sheet":"Rail-Sub5","index":147,"n_rows":275,"n_cols":47,"rows_kept":275,"cut":false,"hidden":true,"merged":[[280,8,280,9],[280,10,280,11],[283,8,283,13],[284,8,284,9],[284,10,284,11],[285,8,285,9],[285,10,285,11],[258,26,258,27],[259,26,259,27],[222,26,222,27],[250,26,250,27],[251,26,251,27],[274,1,275,1],[274,3,275,4],[278,8,278,13],[279,8,279,9],[279,10,279,11],[252,26,252,27],[253,26,253,27],[254,26,254,27],[255,26,255,27],[256,26,256,27],[257,26,257,27],[239,26,239,27],[240,26,240,27],[223,26,223,27],[224,26,224,27],[225,26,225,27],[226,26,226,27],[227,26,227,27],[228,26,228,27],[229,26,229,27],[230,26,230,27],[213,26,213,27],[214,26,214,27],[215,26,215,27],[216,26,216,27],[217,26,217,27],[218,26,218,27],[219,26,219,27],[220,26,220,27],[221,26,221,27],[82,26,82,27],[76,26,76,27],[77,26,77,27],[78,26,78,27],[79,26,79,27],[80,26,80,27],[81,26,81,27],[211,26,211,27],[212,26,212,27],[187,26,187,27],[188,26,188,27],[189,26,189,27],[190,26,190,27],[191,26,191,27],[192,26,192,27],[193,26,193,27],[194,26,194,27],[195,26,195,27],[196,26,196,27],[197,26,197,27],[198,26,198,27],[199,26,199,27],[200,26,200,27],[201,26,201,27],[70,26,70,27],[71,26,71,27],[72,26,72,27],[73,26,73,27],[74,26,74,27],[75,26,75,27],[64,26,64,27],[65,26,65,27],[66,26,66,27],[67,26,67,27],[68,26,68,27],[69,26,69,27],[58,26,58,27],[59,26,59,27],[60,26,60,27],[61,26,61,27],[62,26,62,27],[63,26,63,27],[52,26,52,27],[53,26,53,27],[54,26,54,27],[55,26,55,27],[56,26,56,27],[57,26,57,27],[46,26,46,27],[47,26,47,27],[48,26,48,27],[49,26,49,27],[50,26,50,27],[51,26,51,27],[40,26,40,27],[41,26,41,27],[42,26,42,27],[43,26,43,27],[44,26,44,27],[45,26,45,27],[34,26,34,27],[35,26,35,27],[36,26,36,27],[37,26,37,27],[38,26,38,27],[39,26,39,27],[28,26,28,27],[29,26,29,27],[30,26,30,27],[31,26,31,27],[32,26,32,27],[33,26,33,27],[22,26,22,27],[23,26,23,27],[24,26,24,27],[25,26,25,27],[26,26,26,27],[27,26,27,27],[16,26,16,27],[17,26,17,27],[18,26,18,27],[19,26,19,27],[20,26,20,27],[21,26,21,27],[10,26,10,27],[11,26,11,27],[12,26,12,27],[13,26,13,27],[14,26,14,27],[15,26,15,27],[6,18,9,18],[6,19,9,19],[6,20,9,20],[6,21,9,21],[6,22,9,22],[8,26,8,27],[6,12,9,12],[6,13,9,13],[6,14,9,14],[6,15,9,15],[6,16,9,16],[6,17,9,17],[4,3,4,22],[6,3,9,3],[6,4,9,4],[6,5,9,5],[6,6,9,6],[6,7,9,7],[6,8,9,8],[6,9,9,9],[6,10,9,10],[6,11,9,11],[0,0,1,13],[2,1,2,4],[2,6,2,7],[2,10,2,11],[2,15,2,16],[3,1,3,4],[3,6,3,7],[3,10,3,11],[3,15,3,16],[231,26,231,27],[156,26,156,27],[157,26,157,27],[158,26,158,27],[159,26,159,27],[160,26,160,27],[161,26,161,27],[162,26,162,27],[163,26,163,27],[172,26,172,27],[173,26,173,27],[174,26,174,27],[175,26,175,27],[176,26,176,27],[177,26,177,27],[178,26,178,27],[179,26,179,27],[180,26,180,27],[181,26,181,27],[182,26,182,27],[183,26,183,27],[184,26,184,27],[185,26,185,27],[186,26,186,27],[249,26,249,27],[241,26,241,27],[242,26,242,27],[243,26,243,27],[244,26,244,27],[245,26,245,27],[246,26,246,27],[247,26,247,27],[248,26,248,27],[232,26,232,27],[233,26,233,27],[234,26,234,27],[235,26,235,27],[236,26,236,27],[237,26,237,27],[238,26,238,27],[147,26,147,27],[148,26,148,27],[149,26,149,27],[150,26,150,27],[151,26,151,27],[152,26,152,27],[153,26,153,27],[154,26,154,27],[155,26,155,27],[164,26,164,27],[165,26,165,27],[166,26,166,27],[167,26,167,27],[168,26,168,27],[169,26,169,27],[170,26,170,27],[171,26,171,27],[202,26,202,27],[203,26,203,27],[204,26,204,27],[205,26,205,27],[206,26,206,27],[207,26,207,27],[208,26,208,27],[209,26,209,27],[210,26,210,27],[83,26,83,27],[84,26,84,27],[85,26,85,27],[86,26,86,27],[87,26,87,27],[88,26,88,27],[89,26,89,27],[90,26,90,27],[91,26,91,27],[92,26,92,27],[93,26,93,27],[94,26,94,27],[95,26,95,27],[96,26,96,27],[97,26,97,27],[98,26,98,27],[99,26,99,27],[100,26,100,27],[101,26,101,27],[102,26,102,27],[103,26,103,27],[104,26,104,27],[105,26,105,27],[106,26,106,27],[107,26,107,27],[108,26,108,27],[109,26,109,27],[110,26,110,27],[111,26,111,27],[112,26,112,27],[113,26,113,27],[130,26,130,27],[131,26,131,27],[114,26,114,27],[115,26,115,27],[116,26,116,27],[117,26,117,27],[118,26,118,27],[119,26,119,27],[120,26,120,27],[121,26,121,27],[122,26,122,27],[141,26,141,27],[142,26,142,27],[143,26,143,27],[144,26,144,27],[145,26,145,27],[146,26,146,27],[3,26,3,27],[9,0,9,1],[132,26,132,27],[133,26,133,27],[134,26,134,27],[135,26,135,27],[136,26,136,27],[137,26,137,27],[138,26,138,27],[139,26,139,27],[140,26,140,27],[123,26,123,27],[124,26,124,27],[125,26,125,27],[126,26,126,27],[127,26,127,27],[128,26,128,27],[129,26,129,27]]}
["                                                                      SUBCONSULTANT 5 - RAIL DIVISION BREAKDOWN WORKSHEET -- ENTER WORKHOURS"]
[]
["PROJECT DESCRIPTION: ",{"$f":"PROJECT.DESCRIPTION","v":0},null,null,null,"FIRM:  ",{"$f":"RAIL.SUB5_CONSULTANT_NAME","v":"CONSULTANT NAME"},null,"TASK ORDER NUMBER:",null,{"$f":"TASK.ORDER.NUMBER","v":0},null,"DATE PREPARED:",{"$f":"IF(SCOPE.MANDAY.ESTIMATE.PREPARED.BY.DATE=\"\",\"\",SCOPE.MANDAY.ESTIMATE.PREPARED.BY.DATE)","v":""}]
["PREPARED BY:  ",{"$f":"IF(SCOPE.MANDAY.ESTIMATE.PREPARED.BY=\"\",\"\",SCOPE.MANDAY.ESTIMATE.PREPARED.BY)","v":""},null,null,null,"TIP NUMBER:",{"$f":"TIP.NUMBER","v":0},null,"WBS NUMBER:",null,{"$f":"WBS.NUMBER","v":""},null,"REVISION DATE:",{"$f":"IF(SCOPE.MANDAY.ESTIMATE.APPROVED.BY.DATE=\"\",\"\",SCOPE.MANDAY.ESTIMATE.APPROVED.BY.DATE)","v":""},null,null,null,null,null,null,null,null,null,null,null,"TASK TYPE:","Select Task Type"]
[null,null,null,"ESTIMATED WORKHOURS"]
[null,null,"EMPLOYEE NAMES",{"$f":"IF('PEF CLASSIFICATION SHEET'!D1189=\"\",\"\",LEFT('PEF CLASSIFICATION SHEET'!D1189,4))","v":""},{"$f":"IF('PEF CLASSIFICATION SHEET'!D1190=\"\",\"\",LEFT('PEF CLASSIFICATION SHEET'!D1190,4))","v":""},{"$f":"IF('PEF CLASSIFICATION SHEET'!D1191=\"\",\"\",LEFT('PEF CLASSIFICATION SHEET'!D1191,4))","v":""},{"$f":"IF('PEF CLASSIFICATION SHEET'!D1192=\"\",\"\",LEFT('PEF CLASSIFICATION SHEET'!D1192,4))","v":""},{"$f":"IF('PEF CLASSIFICATION SHEET'!D1193=\"\",\"\",LEFT('PEF CLASSIFICATION SHEET'!D1193,4))","v":""},{"$f":"IF('PEF CLASSIFICATION SHEET'!D1194=\"\",\"\",LEFT('PEF CLASSIFICATION SHEET'!D1194,4))","v":""},{"$f":"IF('PEF CLASSIFICATION SHEET'!D1195=\"\",\"\",LEFT('PEF CLASSIFICATION SHEET'!D1195,4))","v":""},{"$f":"IF('PEF CLASSIFICATION SHEET'!D1196=\"\",\"\",LEFT('PEF CLASSIFICATION SHEET'!D1196,4))","v":""},{"$f":"IF('PEF CLASSIFICATION SHEET'!D1197=\"\",\"\",LEFT('PEF CLASSIFICATION SHEET'!D1197,4))","v":""},{"$f":"IF('PEF CLASSIFICATION SHEET'!D1198=\"\",\"\",LEFT('PEF CLASSIFICATION SHEET'!D1198,4))","v":""},{"$f":"IF('PEF CLASSIFICATION SHEET'!D1199=\"\",\"\",LEFT('PEF CLASSIFICATION SHEET'!D1199,4))","v":""},{"$f":"IF('PEF CLASSIFICATION SHEET'!D1200=\"\",\"\",LEFT('PEF CLASSIFICATION SHEET'!D1200,4))","v":""},{"$f":"IF('PEF CLASSIFICATION SHEET'!D1201=\"\",\"\",LEFT('PEF CLASSIFICATION SHEET'!D1201,4))","v":""},{"$f":"IF('PEF CLASSIFICATION SHEET'!D1202=\"\",\"\",LEFT('PEF CLASSIFICATION SHEET'!D1202,4))","v":""},{"$f":"IF('PEF CLASSIFICATION SHEET'!D1203=\"\",\"\",LEFT('PEF CLASSIFICATION SHEET'!D1203,4))","v":""},{"$f":"IF('PEF CLASSIFICATION SHEET'!D1204=\"\",\"\",LEFT('PEF CLASSIFICATION SHEET'!D1204,4))","v":""},{"$f":"IF('PEF CLASSIFICATION SHEET'!D1205=\"\",\"\",LEFT('PEF CLASSIFICATION SHEET'!D1205,4))","v":""},{"$f":"IF('PEF CLASSIFICATION SHEET'!D1206=\"\",\"\",LEFT('PEF CLASSIFICATION SHEET'!D1206,4))","v":""},{"$f":"IF('PEF CLASSIFICATION SHEET'!D1207=\"\",\"\",LEFT('PEF CLASSIFICATION SHEET'!D1207,4))","v":""},{"$f":"IF('PEF CLASSIFICATION SHEET'!D1208=\"\",\"\",LEFT('PEF CLASSIFICATION SHEET'!D1208,4))","v":""}]
[null,null,null,{"$f":"IF('PEF CLASSIFICATION SHEET'!C1189=\"\",\"\",'PEF CLASSIFICATION SHEET'!C1189)","v":""},{"$f":"IF('PEF CLASSIFICATION SHEET'!C1190=\"\",\"\",'PEF CLASSIFICATION SHEET'!C1190)","v":""},{"$f":"IF('PEF CLASSIFICATION SHEET'!C1191=\"\",\"\",'PEF CLASSIFICATION SHEET'!C1191)","v":""},{"$f":"IF('PEF CLASSIFICATION SHEET'!C1192=\"\",\"\",'PEF CLASSIFICATION SHEET'!C1192)","v":""},{"$f":"IF('PEF CLASSIFICATION SHEET'!C1193=\"\",\"\",'PEF CLASSIFICATION SHEET'!C1193)","v":""},{"$f":"IF('PEF CLASSIFICATION SHEET'!C1194=\"\",\"\",'PEF CLASSIFICATION SHEET'!C1194)","v":""},{"$f":"IF('PEF CLASSIFICATION SHEET'!C1195=\"\",\"\",'PEF CLASSIFICATION SHEET'!C1195)","v":""},{"$f":"IF('PEF CLASSIFICATION SHEET'!C1196=\"\",\"\",'PEF CLASSIFICATION SHEET'!C1196)","v":""},{"$f":"IF('PEF CLASSIFICATION SHEET'!C1197=\"\",\"\",'PEF CLASSIFICATION SHEET'!C1197)","v":""},{"$f":"IF('PEF CLASSIFICATION SHEET'!C1198=\"\",\"\",'PEF CLASSIFICATION SHEET'!C1198)","v":""},{"$f":"IF('PEF CLASSIFICATION SHEET'!C1199=\"\",\"\",'PEF CLASSIFICATION SHEET'!C1199)","v":""},{"$f":"IF('PEF CLASSIFICATION SHEET'!C1200=\"\",\"\",'PEF CLASSIFICATION SHEET'!C1200)","v":""},{"$f":"IF('PEF CLASSIFICATION SHEET'!C1201=\"\",\"\",'PEF CLASSIFICATION SHEET'!C1201)","v":""},{"$f":"IF('PEF CLASSIFICATION SHEET'!C1202=\"\",\"\",'PEF CLASSIFICATION SHEET'!C1202)","v":""},{"$f":"IF('PEF CLASSIFICATION SHEET'!C1203=\"\",\"\",'PEF CLASSIFICATION SHEET'!C1203)","v":""},{"$f":"IF('PEF CLASSIFICATION SHEET'!C1204=\"\",\"\",'PEF CLASSIFICATION SHEET'!C1204)","v":""},{"$f":"IF('PEF CLASSIFICATION SHEET'!C1205=\"\",\"\",'PEF CLASSIFICATION SHEET'!C1205)","v":""},{"$f":"IF('PEF CLASSIFICATION SHEET'!C1206=\"\",\"\",'PEF CLASSIFICATION SHEET'!C1206)","v":""},{"$f":"IF('PEF CLASSIFICATION SHEET'!C1207=\"\",\"\",'PEF CLASSIFICATION SHEET'!C1207)","v":""},{"$f":"IF('PEF CLASSIFICATION SHEET'!C1208=\"\",\"\",'PEF CLASSIFICATION SHEET'!C1208)","v":""},"SUB-","%","PEF"]
[null,null,null,null,null,null,null,null,null,null,null,null,null,null,null,null,null,null,null,null,null,null,null,"TOTAL","OF","ESTIMATE"]
["TASK NO.","TASK DESCRIPTION","CLASSIFICATION",null,null,null,null,null,null,null,null,null,null,null,null,null,null,null,null,null,null,null,null,null,"PROJECT",null,"COMMENTS",null,null,null,null,null,null,null,"Select Task Type","Grade Separation","CEI","Track Design","Signal Design","Environmental","Planning"]
[{"$f":"IF($AA$4=\"Select Task Type\",\"Select the TASK TYPE from drop down list in cell AA4 to populate the task list\",IF($AA$4=\"Grade Separation\",\"You selected Grade Separation\",IF($AA$4=\"CEI\",\"You selected CEI\",IF($AA$4=\"Track Design\",\"You selected Track Design.  When the task is ALL CAPS, this is a header row, if you choose to key mandays associated with that header row the row total will not be displayed but the column and overall total will sum appropriately\",IF($AA$4=\"Signal Design\",\"You selected Signal Design, note that this is initially a blank task list; so please create a task list from scratch\",IF($AA$4=\"Environmental\",\"You selected Environmental.  When the task is ALL CAPS, this is a header row, if you choose to key mandays associated with that header row the row total will not be displayed but the column and overall total will sum appropriately\",IF($AA$4=\"Planning\",\"You selected Planning.  When the task is ALL CAPS, this is a header row, if you choose to key mandays associated with that header row the row total will not be displayed but the column and overall total will sum appropriately\",\"Select the TASK TYPE from drop down list in cell AA4 to populate the task list\")))))))","v":"Select the TASK TYPE from drop down list in cell AA4 to populate the task list"},null,null,null,null,null,null,null,null,null,null,null,null,null,null,null,null,null,null,null,null,null,null,null,null,null,null,null,null,null,null,null,null,null,null,"Grade Separation","Grade Separation","CEI","CEI","Track Design","Track Design","Signal Design","Signal Design","Environmental","Environmental","Planning","Planning"]
[{"$f":"IF(AG11=0,\"\",AG11)","v":""},{"$f":"IF(AH11=0,\"\",AH11)","v":""},null,null,null,null,null,null,null,null,null,null,null,null,null,null,null,null,null,null,null,null,null,{"$f":"IF(B11=\"\",0,IF(B11=\"DEMAND ASSESSMENT\",\"\",IF(B11=\"PROJECT SCOPING AND DATA COLLECTION\",\"\",IF(B11=\"PROJECT MANAGEMENT/PROJECT ADMINISTRATION\",\"\",IF((SUM(D11:W11)=0),0,SUM(D11:W11))))))","v":0},{"$f":"IF(SUM(D11:W11)=0,\"\",((SUM(D11:W11))/$X$261))","v":""},null,null,null,null,null,null,null,{"$f":"IF($AA$4=\"Select Task Type\",\"\",IF($AA$4=\"Grade Separation\",AJ11,IF($AA$4=\"CEI\",AL11,IF($AA$4=\"Track Design\",AN11,IF($AA$4=\"Signal Design\",AP11,IF($AA$4=\"Environmental\",AR11,IF($AA$4=\"Planning\",AT11,\"\")))))))","v":""},{"$f":"IF($AA$4=\"Select Task Type\",\"\",IF($AA$4=\"Grade Separation\",AK11,IF($AA$4=\"CEI\",AM11,IF($AA$4=\"Track Design\",AO11,IF($AA$4=\"Signal Design\",AQ11,IF($AA$4=\"Environmental\",AS11,IF($AA$4=\"Planning\",AU11,\"\")))))))","v":""},null,1,"Project Familiarization",1,"Project management and document review",1,"PROJECT MANAGEMENT/PROJECT ADMINISTRATION",null,null,"A","PROJECT SCOPING AND DATA COLLECTION",1,"DEMAND ASSESSMENT"]
[{"$f":"IF(AG12=0,\"\",AG12)","v":""},"",null,null,null,null,null,null,null,null,null,null,null,null,null,null,null,null,null,null,null,null,null,{"$f":"IF(B12=\"\",0,IF((SUM(D12:W12)=0),0,SUM(D12:W12)))","v":0},{"$f":"IF(SUM(D12:W12)=0,\"\",((SUM(D12:W12))/$X$261))","v":""},null,null,null,null,null,null,null,{"$f":"IF($AA$4=\"Select Task Type\",\"\",IF($AA$4=\"Grade Separation\",AJ12,IF($AA$4=\"CEI\",AL12,IF($AA$4=\"Track Design\",AN12,IF($AA$4=\"Signal Design\",AP12,IF($AA$4=\"Environmental\",AR12,IF($AA$4=\"Planning\",AT12,\"\")))))))","v":""},"",null,2,"Conceptual Design",2,"Track inspection",null,null,null,null,"A.1","Study Area Definition",null,"Review previous studies"]
["","",null,null,null,null,null,null,null,null,null,null,null,null,null,null,null,null,null,null,null,null,null,0,{"$f":"IF(SUM(D13:W13)=0,\"\",((SUM(D13:W13))/$X$261))","v":""},null,null,null,null,null,null,null,"","",null,3,"Construction Cost Estimate",3,"Roadway inspection",null,null,null,null,"A.2","Study Area Field Visit",null,"Interview XX, XX, and XX on near-term rail intermodal and break bulk plans"]
["","",null,null,null,null,null,null,null,null,null,null,null,null,null,null,null,null,null,null,null,null,null,0,"",null,null,null,null,null,null,null,"","",null,4,"Project Coordination",null,null,null,null,null,null,"A.3","Community Characteristics Report",null,"Estimate effects of various rail entities"]
["","",null,null,null,null,null,null,null,null,null,null,null,null,null,null,null,null,null,null,null,null,null,0,"",null,null,null,null,null,null,null,"","",null,null,null,null,null,null,null,null,null,"A.4","Local Land Use and Transportation Plans",null,"Estimate future growth in other bulk and break bulk commodities"]
["","",null,null,null,null,null,null,null,null,null,null,null,null,null,null,null,null,null,null,null,null,null,0,"",null,null,null,null,null,null,null,"","",null,null,null,null,null,null,null,null,null,"A.5","State and Federal Data Sources",null,"Incorporate State Freight Plan into market forecasts "]
["","",null,null,null,null,null,null,null,null,null,null,null,null,null,null,null,null,null,null,null,null,null,0,"",null,null,null,null,null,null,null,"","",null,null,null,null,null,null,null,null,null,"A.6 ","GeoEnvironmental Review",null,"Project port continued share against market growth"]
["","",null,null,null,null,null,null,null,null,null,null,null,null,null,null,null,null,null,null,null,null,null,0,"",null,null,null,null,null,null,null,"","",null,null,null,null,null,null,null,null,null,"A.7","GIS Data Layers and Aerial Photography",null,"Combine forecasts from various groups into a base line forecast"]
["","",null,null,null,null,null,null,null,null,null,null,null,null,null,null,null,null,null,null,null,null,null,0,"",null,null,null,null,null,null,null,"","",null,null,null,null,null,null,null,null,null,"A.8","Evaluation of Existing Transportation Facilities",null,"Develop an updated base forecast"]
["","",null,null,null,null,null,null,null,null,null,null,null,null,null,null,null,null,null,null,null,null,null,0,"",null,null,null,null,null,null,null,"","",null,null,null,null,null,null,null,null,null,"A.9","Traffic Forecast Request",null,"Compare with freight forecast in NC State Freight Plan, contrast against existing port rail capacity, identify delta required to accommodate additional traffic"]
["","",null,null,null,null,null,null,null,null,null,null,null,null,null,null,null,null,null,null,null,null,null,0,"",null,null,null,null,null,null,null,"","",null,null,null,null,null,null,null,null,null,"A.10","Project Data Sheet",null,"Add in empty return exports and revise forecast"]
["","",null,null,null,null,null,null,null,null,null,null,null,null,null,null,null,null,null,null,null,null,null,{"$f":"IF(B22=\"\",0,IF(B22=\"FUNCTIONAL TRACK DESIGN\",\"\",IF((SUM(D22:W22)=0),0,SUM(D22:W22))))","v":0},"",null,null,null,null,null,null,null,"","",null,null,null,null,null,2,"FUNCTIONAL TRACK DESIGN",null,null,"A.11","Start of Study Letters",null,"Develop near-term outlook of market demand and system requirements"]
["","",null,null,null,null,null,null,null,null,null,null,null,null,null,null,null,null,null,null,null,null,null,{"$f":"IF(B23=\"\",0,IF((SUM(D23:W23)=0),0,SUM(D23:W23)))","v":0},"",null,null,null,null,null,null,null,"","",null,null,null,null,null,null,null,null,null,"A.12","Kickoff/Scoping Meeting",null,"Review operations and plans for XX, suggest if port rail facilities can accommodate projected growth"]
["","",null,null,null,null,null,null,null,null,null,null,null,null,null,null,null,null,null,null,null,null,null,{"$f":"IF(B24=\"\",0,IF((SUM(D24:W24)=0),0,SUM(D24:W24)))","v":0},"",null,null,null,null,null,null,null,"","",null,null,null,null,null,null,null,null,null,"A.13",null,null,"Identify conceptual rail capacity and prospects for service assuming successful XX service"]
["","",null,null,null,null,null,null,null,null,null,null,null,null,null,null,null,null,null,null,null,null,null,{"$f":"IF(B25=\"\",0,IF((SUM(D25:W25)=0),0,SUM(D25:W25)))","v":0},"",null,null,null,null,null,null,null,"","",null,null,null,null,null,null,null,null,null,"A.14",null,null,"Evaluate rail operations @ port to identify conflicts and opportunities to serve both intermodal and break bulk rail customers"]
["","",null,null,null,null,null,null,null,null,null,null,null,null,null,null,null,null,null,null,null,null,null,{"$f":"IF(B26=\"\",0,IF((SUM(D26:W26)=0),0,SUM(D26:W26)))","v":0},"",null,null,null,null,null,null,null,"","",null,null,null,null,null,null,null,null,null,"A.15",null,null,"Develop near-term outlook of market demand and system requirements"]
["","",null,null,null,null,null,null,null,null,null,null,null,null,null,null,null,null,null,null,null,null,null,{"$f":"IF(B27=\"\",0,IF((SUM(D27:W27)=0),\"\",SUM(D27:W27)))","v":0},"",null,null,null,null,null,null,null,"","",null,null,null,null,null,null,null,null,null,"A.16"]
["","",null,null,null,null,null,null,null,null,null,null,null,null,null,null,null,null,null,null,null,null,null,0,"",null,null,null,null,null,null,null,"","",null,null,null,null,null,null,null,null,null,"A.17"]
["","",null,null,null,null,null,null,null,null,null,null,null,null,null,null,null,null,null,null,null,null,null,{"$f":"IF(B29=\"\",0,IF(B29=\"TRAFFIC CAPACITY ANALYSIS AND ACCIDENT ANALYSIS\",\"\",IF((SUM(D29:W29)=0),0,SUM(D29:W29))))","v":0},"",null,null,null,null,null,null,null,"","",null,null,null,null,null,null,null,null,null,"B","TRAFFIC CAPACITY ANALYSIS AND ACCIDENT ANALYSIS"]
["","",null,null,null,null,null,null,null,null,null,null,null,null,null,null,null,null,null,null,null,null,null,{"$f":"IF(B30=\"\",0,IF((SUM(D30:W30)=0),0,SUM(D30:W30)))","v":0},"",null,null,null,null,null,null,null,"","",null,null,null,null,null,null,null,null,null,"B.1","Coordinate with Stantec & incorporate the analysis"]
["","",null,null,null,null,null,null,null,null,null,null,null,null,null,null,null,null,null,null,null,null,null,{"$f":"IF(B31=\"\",0,IF((SUM(D31:W31)=0),0,SUM(D31:W31)))","v":0},"",null,null,null,null,null,null,null,"","",null,null,null,null,null,null,null,null,null,"B.2"]
["","",null,null,null,null,null,null,null,null,null,null,null,null,null,null,null,null,null,null,null,null,null,{"$f":"IF(B32=\"\",0,IF(B32=\"PORT MASTER PLAN REVIEW\",\"\",IF((SUM(D32:W32)=0),0,SUM(D32:W32))))","v":0},"",null,null,null,null,null,null,null,"","",null,null,null,null,null,null,null,null,null,"B.3",null,2,"PORT MASTER PLAN REVIEW"]
["","",null,null,null,null,null,null,null,null,null,null,null,null,null,null,null,null,null,null,null,null,null,{"$f":"IF(B33=\"\",0,IF(B33=\"PRELIMINARY TRACK DESIGN\",\"\",IF((SUM(D33:W33)=0),0,SUM(D33:W33))))","v":0},"",null,null,null,null,null,null,null,"","",null,null,null,null,null,3,"PRELIMINARY TRACK DESIGN",null,null,"B.4",null,null,"Identify area needed to accommodate each targeted market"]
["","",null,null,null,null,null,null,null,null,null,null,null,null,null,null,null,null,null,null,null,null,null,{"$f":"IF(B34=\"\",0,IF((SUM(D34:W34)=0),0,SUM(D34:W34)))","v":0},"",null,null,null,null,null,null,null,"","",null,null,null,null,null,null,null,null,null,"B.5",null,null,"Assess ability to meet current and projected needs"]
["","",null,null,null,null,null,null,null,null,null,null,null,null,null,null,null,null,null,null,null,null,null,{"$f":"IF(B35=\"\",0,IF((SUM(D35:W35)=0),0,SUM(D35:W35)))","v":0},"",null,null,null,null,null,null,null,"","",null,null,null,null,null,null,null,null,null,"B.6",null,null,"Coordinate with Port regarding future Port plans"]
["","",null,null,null,null,null,null,null,null,null,null,null,null,null,null,null,null,null,null,null,null,null,{"$f":"IF(B36=\"\",0,IF(B36=\"PROJECT PURPOSE AND NEED\",\"\",IF((SUM(D36:W36)=0),0,SUM(D36:W36))))","v":0},"",null,null,null,null,null,null,null,"","",null,null,null,null,null,null,null,null,null,"C","PROJECT PURPOSE AND NEED",null,"Develop recommendations to layout and/or processes to meet anticipated needs while not conflicting or constraining future activities"]
["","",null,null,null,null,null,null,null,null,null,null,null,null,null,null,null,null,null,null,null,null,null,{"$f":"IF(B37=\"\",0,IF((SUM(D37:W37)=0),0,SUM(D37:W37)))","v":0},"",null,null,null,null,null,null,null,"","",null,null,null,null,null,null,null,null,null,"C.1","Preliminary Purpose and Need",null,"Prepare draft port layout"]
["","",null,null,null,null,null,null,null,null,null,null,null,null,null,null,null,null,null,null,null,null,null,0,"",null,null,null,null,null,null,null,"","",null,null,null,null,null,null,null,null,null,"C.2","Final Purpose and Need Memorandum",null,"Revise per NCDOT comments and prepare final port layout"]
["","",null,null,null,null,null,null,null,null,null,null,null,null,null,null,null,null,null,null,null,null,null,0,"",null,null,null,null,null,null,null,"","",null,null,null,null,null,null,null,null,null,"C.3"]
["","",null,null,null,null,null,null,null,null,null,null,null,null,null,null,null,null,null,null,null,null,null,0,"",null,null,null,null,null,null,null,"","",null,null,null,null,null,null,null,null,null,"C.4"]
["","",null,null,null,null,null,null,null,null,null,null,null,null,null,null,null,null,null,null,null,null,null,0,"",null,null,null,null,null,null,null,"","",null,null,null,null,null,null,null,null,null,"C.5"]
["","",null,null,null,null,null,null,null,null,null,null,null,null,null,null,null,null,null,null,null,null,null,0,"",null,null,null,null,null,null,null,"","",null,null,null,null,null,null,null,null,null,"C.6"]
["","",null,null,null,null,null,null,null,null,null,null,null,null,null,null,null,null,null,null,null,null,null,0,"",null,null,null,null,null,null,null,"","",null,null,null,null,null,null,null,null,null,"C.7"]
["","",null,null,null,null,null,null,null,null,null,null,null,null,null,null,null,null,null,null,null,null,null,{"$f":"IF(B44=\"\",0,IF(B44=\"RAIL INVENTORY AND REVIEW OF EXISTING OPERATIONS\",\"\",IF(B44=\"DEVELOPMENT AND EVALUATION OF DESIGN ALTERNATIVES\",\"\",IF(B44=\"FINAL TRACK DESIGN\",\"\",IF((SUM(D44:W44)=0),0,SUM(D44:W44))))))","v":0},"",null,null,null,null,null,null,null,"","",null,null,null,null,null,4,"FINAL TRACK DESIGN",null,null,"D","DEVELOPMENT AND EVALUATION OF DESIGN ALTERNATIVES",3,"RAIL INVENTORY AND REVIEW OF EXISTING OPERATIONS"]
["","",null,null,null,null,null,null,null,null,null,null,null,null,null,null,null,null,null,null,null,null,null,{"$f":"IF(B45=\"\",0,IF((SUM(D45:W45)=0),0,SUM(D45:W45)))","v":0},"",null,null,null,null,null,null,null,"","",null,null,null,null,null,null,null,null,null,"D.1","Collaboration on Development of Design Alternatives",null,"Review Port facilities on the ground, identify acreage which could accommodate additional functions in support of rail operations"]
["","",null,null,null,null,null,null,null,null,null,null,null,null,null,null,null,null,null,null,null,null,null,0,"",null,null,null,null,null,null,null,"","",null,null,null,null,null,null,null,null,null,"D.2","Qualitative Screening of Design Alternatives",null,"Review XX and XX track charts and track maps for Port"]
["","",null,null,null,null,null,null,null,null,null,null,null,null,null,null,null,null,null,null,null,null,null,0,"",null,null,null,null,null,null,null,"","",null,null,null,null,null,null,null,null,null,"D.3",null,null,"Review any related TSS"]
["","",null,null,null,null,null,null,null,null,null,null,null,null,null,null,null,null,null,null,null,null,null,0,"",null,null,null,null,null,null,null,"","",null,null,null,null,null,null,null,null,null,"D.4",null,null,"Conduct a windshield survey of XX line at Port and document observations"]
["","",null,null,null,null,null,null,null,null,null,null,null,null,null,null,null,null,null,null,null,null,null,0,"",null,null,null,null,null,null,null,"","",null,null,null,null,null,null,null,null,null,"D.5",null,null,"Identify opportunities to locate a future passing siding."]
["","",null,null,null,null,null,null,null,null,null,null,null,null,null,null,null,null,null,null,null,null,null,0,"",null,null,null,null,null,null,null,"","",null,null,null,null,null,null,null,null,null,"D.6"]
["","",null,null,null,null,null,null,null,null,null,null,null,null,null,null,null,null,null,null,null,null,null,0,"",null,null,null,null,null,null,null,"","",null,null,null,null,null,null,null,null,null,"D.7"]
["","",null,null,null,null,null,null,null,null,null,null,null,null,null,null,null,null,null,null,null,null,null,{"$f":"IF(B52=\"\",0,IF(B52=\"BIOTIC RESOURCES\",\"\",IF((SUM(D52:W52)=0),0,SUM(D52:W52))))","v":0},"",null,null,null,null,null,null,null,"","",null,null,null,null,null,null,null,null,null,"E.3","BIOTIC RESOURCES"]
["","",null,null,null,null,null,null,null,null,null,null,null,null,null,null,null,null,null,null,null,null,null,{"$f":"IF(B53=\"\",0,IF((SUM(D53:W53)=0),0,SUM(D53:W53)))","v":0},"",null,null,null,null,null,null,null,"","",null,null,null,null,null,null,null,null,null,"E.3.a","Terrestrial Communities"]
["","",null,null,null,null,null,null,null,null,null,null,null,null,null,null,null,null,null,null,null,null,null,{"$f":"IF(B54=\"\",0,IF((SUM(D54:W54)=0),0,SUM(D54:W54)))","v":0},"",null,null,null,null,null,null,null,"","",null,null,null,null,null,null,null,null,null,"E.3.b","Terrestrial Wildlife"]
["","",null,null,null,null,null,null,null,null,null,null,null,null,null,null,null,null,null,null,null,null,null,{"$f":"IF(B55=\"\",0,IF(B55=\"CAPACITY AND VELOCITY\",\"\",IF((SUM(D55:W55)=0),0,SUM(D55:W55))))","v":0},"",null,null,null,null,null,null,null,"","",null,null,null,null,null,null,null,null,null,"E.3.c","Aquatic Communities and Wildlife",4,"CAPACITY AND VELOCITY"]
["","",null,null,null,null,null,null,null,null,null,null,null,null,null,null,null,null,null,null,null,null,null,{"$f":"IF(B56=\"\",0,IF((SUM(D56:W56)=0),0,SUM(D56:W56)))","v":0},"",null,null,null,null,null,null,null,"","",null,null,null,null,null,null,null,null,null,"E.3.d","Invasive Species",null,"Develop a level of service (LOS) classification for XX"]
["","",null,null,null,null,null,null,null,null,null,null,null,null,null,null,null,null,null,null,null,null,null,0,"",null,null,null,null,null,null,null,"","",null,null,null,null,null,null,null,null,null,"E.3.e",null,null,"Identify theoretical capacity XX based upon tonnage (GMT), GMT per train, and number of trains"]
["","",null,null,null,null,null,null,null,null,null,null,null,null,null,null,null,null,null,null,null,null,null,0,"",null,null,null,null,null,null,null,"","",null,null,null,null,null,null,null,null,null,"E.3.f",null,null,"Compare theoretical capacity with forecast train volumes"]
["","",null,null,null,null,null,null,null,null,null,null,null,null,null,null,null,null,null,null,null,null,null,0,"",null,null,null,null,null,null,null,"","",null,null,null,null,null,null,null,null,null,"E.3.g",null,null,"Observe operations to develop an estimate of current velocity (travel time over mileage) to/from XX"]
["","",null,null,null,null,null,null,null,null,null,null,null,null,null,null,null,null,null,null,null,null,null,0,"",null,null,null,null,null,null,null,"","",null,null,null,null,null,null,null,null,null,"E.3.h",null,null,"Review XX track charts and operating rules, assess for potential changes which could more effectively utilize existing capacity"]
["","",null,null,null,null,null,null,null,null,null,null,null,null,null,null,null,null,null,null,null,null,null,0,"",null,null,null,null,null,null,null,"","",null,null,null,null,null,null,null,null,null,"E.3.i",null,null,"Review related TSS to identify projects which could increase operating speeds and improve velocity"]
["","",null,null,null,null,null,null,null,null,null,null,null,null,null,null,null,null,null,null,null,null,null,{"$f":"IF(B62=\"\",0,IF(B62=\"JURISDICTIONAL ISSUES\",\"\",IF((SUM(D62:W62)=0),0,SUM(D62:W62))))","v":0},"",null,null,null,null,null,null,null,"","",null,null,null,null,null,null,null,null,null,"E.4","JURISDICTIONAL ISSUES"]
["","",null,null,null,null,null,null,null,null,null,null,null,null,null,null,null,null,null,null,null,null,null,{"$f":"IF(B63=\"\",0,IF((SUM(D63:W63)=0),0,SUM(D63:W63)))","v":0},"",null,null,null,null,null,null,null,"","",null,null,null,null,null,null,null,null,null,"E.4.a","Clean Water Act (CWA) Waters of the US"]
["","",null,null,null,null,null,null,null,null,null,null,null,null,null,null,null,null,null,null,null,null,null,{"$f":"IF(B64=\"\",0,IF((SUM(D64:W64)=0),0,SUM(D64:W64)))","v":0},"",null,null,null,null,null,null,null,"","",null,null,null,null,null,null,null,null,null,"E.4.b","CWA Permits"]
["","",null,null,null,null,null,null,null,null,null,null,null,null,null,null,null,null,null,null,null,null,null,{"$f":"IF(B65=\"\",0,IF((SUM(D65:W65)=0),0,SUM(D65:W65)))","v":0},"",null,null,null,null,null,null,null,"","",null,null,null,null,null,null,null,null,null,"E.4.c","Construction Moratoria"]
["","",null,null,null,null,null,null,null,null,null,null,null,null,null,null,null,null,null,null,null,null,null,{"$f":"IF(B66=\"\",0,IF((SUM(D66:W66)=0),0,SUM(D66:W66)))","v":0},"",null,null,null,null,null,null,null,"","",null,null,null,null,null,null,null,null,null,"E.4.d","Rivers and Harbors Act Section 10 Navigable Waters"]
["","",null,null,null,null,null,null,null,null,null,null,null,null,null,null,null,null,null,null,null,null,null,{"$f":"IF(B67=\"\",0,IF(B67=\"RAIL INFRASTRUCTURE IMPROVEMENTS\",\"\",IF((SUM(D67:W67)=0),0,SUM(D67:W67))))","v":0},"",null,null,null,null,null,null,null,"","",null,null,null,null,null,null,null,null,null,"E.4.e","Wetland and Stream Mitigation",5,"RAIL INFRASTRUCTURE IMPROVEMENTS"]
["","",null,null,null,null,null,null,null,null,null,null,null,null,null,null,null,null,null,null,null,null,null,{"$f":"IF(B68=\"\",0,IF((SUM(D68:W68)=0),0,SUM(D68:W68)))","v":0},"",null,null,null,null,null,null,null,"","",null,null,null,null,null,null,null,null,null,"E.4.f","Endangered Species Act Protected Species",null,"Review existing infrastructure"]
["","",null,null,null,null,null,null,null,null,null,null,null,null,null,null,null,null,null,null,null,null,null,0,"",null,null,null,null,null,null,null,"","",null,null,null,null,null,null,null,null,null,"E.4.g","Essential Fish Habitat",null,"Determine potential needs based on growth"]
["","",null,null,null,null,null,null,null,null,null,null,null,null,null,null,null,null,null,null,null,null,null,0,"",null,null,null,null,null,null,null,"","",null,null,null,null,null,null,null,null,null,"E.4.h",null,null,"Suggest potential enhancements to address future needs (X scenarios)"]
["","",null,null,null,null,null,null,null,null,null,null,null,null,null,null,null,null,null,null,null,null,null,0,"",null,null,null,null,null,null,null,"","",null,null,null,null,null,null,null,null,null,"E.4.i",null,null,"Coordinate with NCDOT and others to consider the capacity of XX"]
["","",null,null,null,null,null,null,null,null,null,null,null,null,null,null,null,null,null,null,null,null,null,0,"",null,null,null,null,null,null,null,"","",null,null,null,null,null,null,null,null,null,"E.4.j",null,null,"Develop conceptual recommendations to improve efficiency of operations between XX and YY"]
["","",null,null,null,null,null,null,null,null,null,null,null,null,null,null,null,null,null,null,null,null,null,0,"",null,null,null,null,null,null,null,"","",null,null,null,null,null,null,null,null,null,"E.4.k"]
["","",null,null,null,null,null,null,null,null,null,null,null,null,null,null,null,null,null,null,null,null,null,0,"",null,null,null,null,null,null,null,"","",null,null,null,null,null,null,null,null,null,"E.4.l"]
["","",null,null,null,null,null,null,null,null,null,null,null,null,null,null,null,null,null,null,null,null,null,0,"",null,null,null,null,null,null,null,"","",null,null,null,null,null,null,null,null,null,"E.5","NRTR Document"]
[{"$f":"IF(AG76=0,\"\",AG76)","v":""},"",null,null,null,null,null,null,null,null,null,null,null,null,null,null,null,null,null,null,null,null,null,0,"",null,null,null,null,null,null,null,{"$f":"IF($AA$4=\"Select Task Type\",\"\",IF($AA$4=\"Grade Separation\",AJ76,IF($AA$4=\"CEI\",AL76,IF($AA$4=\"Track Design\",AN76,IF($AA$4=\"Signal Design\",AP76,IF($AA$4=\"Environmental\",AR76,IF($AA$4=\"Planning\",AT76,\"\")))))))","v":""},"",null,null,null,null,null,null,null,null,null,"E.5.a"]
["","",null,null,null,null,null,null,null,null,null,null,null,null,null,null,null,null,null,null,null,null,null,0,{"$f":"IF(SUM(D77:W77)=0,\"\",((SUM(D77:W77))/$X$261))","v":""},null,null,null,null,null,null,null,"","",null,null,null,null,null,null,null,null,null,"E.5.b"]
["","",null,null,null,null,null,null,null,null,null,null,null,null,null,null,null,null,null,null,null,null,null,{"$f":"IF(B78=\"\",0,IF(B78=\"DEVELOP SUGGESTIONS FOR OPERATIONAL AND LOGISTICAL ENHANCEMENTS\",\"\",IF((SUM(D78:W78)=0),0,SUM(D78:W78))))","v":0},"",null,null,null,null,null,null,null,"","",null,null,null,null,null,null,null,null,null,"E.5.c",null,6,"DEVELOP SUGGESTIONS FOR OPERATIONAL AND LOGISTICAL ENHANCEMENTS"]
["","",null,null,null,null,null,null,null,null,null,null,null,null,null,null,null,null,null,null,null,null,null,{"$f":"IF(B79=\"\",0,IF((SUM(D79:W79)=0),0,SUM(D79:W79)))","v":0},"",null,null,null,null,null,null,null,"","",null,null,null,null,null,null,null,null,null,"E.5.d",null,null,"Study current operations and suggest changes that might enhance efficiency or reduce costs"]
["","",null,null,null,null,null,null,null,null,null,null,null,null,null,null,null,null,null,null,null,null,null,0,"",null,null,null,null,null,null,null,"","",null,null,null,null,null,null,null,null,null,"E.5.e",null,null,"Coordinate with NCAG to assure changes are allowable"]
["","",null,null,null,null,null,null,null,null,null,null,null,null,null,null,null,null,null,null,null,null,null,0,"",null,null,null,null,null,null,null,"","",null,null,null,null,null,null,null,null,null,"E.6","Jurisdictional Features Verification",null,"Develop option for development of temporary dray Port to XX"]
["","",null,null,null,null,null,null,null,null,null,null,null,null,null,null,null,null,null,null,null,null,null,0,"",null,null,null,null,null,null,null,"","",null,null,null,null,null,null,null,null,null,"E.6.a",null,null,"Summarize potential changes and corresponding actions"]
["","",null,null,null,null,null,null,null,null,null,null,null,null,null,null,null,null,null,null,null,null,null,0,"",null,null,null,null,null,null,null,"","",null,null,null,null,null,null,null,null,null,"E.6.b"]
["","",null,null,null,null,null,null,null,null,null,null,null,null,null,null,null,null,null,null,null,null,null,0,"",null,null,null,null,null,null,null,"","",null,null,null,null,null,null,null,null,null,"E.6.c"]
["","",null,null,null,null,null,null,null,null,null,null,null,null,null,null,null,null,null,null,null,null,null,0,"",null,null,null,null,null,null,null,"","",null,null,null,null,null,null,null,null,null,"E.6.d"]
["","",null,null,null,null,null,null,null,null,null,null,null,null,null,null,null,null,null,null,null,null,null,0,"",null,null,null,null,null,null,null,"","",null,null,null,null,null,null,null,null,null,"E.6.e"]
["","",null,null,null,null,null,null,null,null,null,null,null,null,null,null,null,null,null,null,null,null,null,{"$f":"IF(B87=\"\",0,IF(B87=\"HUMAN ENVIRONMENT FIELD WORK, ANALYSIS, AND DOCUMENTATION\",\"\",IF((SUM(D87:W87)=0),0,SUM(D87:W87))))","v":0},"",null,null,null,null,null,null,null,"","",null,null,null,null,null,null,null,null,null,"F","HUMAN ENVIRONMENT FIELD WORK, ANALYSIS, AND DOCUMENTATION"]
["","",null,null,null,null,null,null,null,null,null,null,null,null,null,null,null,null,null,null,null,null,null,{"$f":"IF(B88=\"\",0,IF(B88=\"ENVIRONMENTAL SCREENING\",\"\",IF((SUM(D88:W88)=0),0,SUM(D88:W88))))","v":0},"",null,null,null,null,null,null,null,"","",null,null,null,null,null,null,null,null,null,"F.1","Community Impact Assessment",7,"ENVIRONMENTAL SCREENING"]
["","",null,null,null,null,null,null,null,null,null,null,null,null,null,null,null,null,null,null,null,null,null,{"$f":"IF(B89=\"\",0,IF((SUM(D89:W89)=0),0,SUM(D89:W89)))","v":0},"",null,null,null,null,null,null,null,"","",null,null,null,null,null,null,null,null,null,"F.1.a","Identify Community Impact Study Area",null,"Develop GIS map of available data"]
["","",null,null,null,null,null,null,null,null,null,null,null,null,null,null,null,null,null,null,null,null,null,0,"",null,null,null,null,null,null,null,"","",null,null,null,null,null,null,null,null,null,"F.1.b","Community Field Review",null,"Develop list of \"red flag\" issues"]
["","",null,null,null,null,null,null,null,null,null,null,null,null,null,null,null,null,null,null,null,null,null,0,"",null,null,null,null,null,null,null,"","",null,null,null,null,null,null,null,null,null,"F.1.c","Socioeconomic Data"]
["","",null,null,null,null,null,null,null,null,null,null,null,null,null,null,null,null,null,null,null,null,null,0,"",null,null,null,null,null,null,null,"","",null,null,null,null,null,null,null,null,null,"F.1.d","Community Facilities and Services"]
["","",null,null,null,null,null,null,null,null,null,null,null,null,null,null,null,null,null,null,null,null,null,0,"",null,null,null,null,null,null,null,"","",null,null,null,null,null,null,null,null,null,"F.1.e","Local/Regional Land Use and Development Plans"]
["","",null,null,null,null,null,null,null,null,null,null,null,null,null,null,null,null,null,null,null,null,null,0,"",null,null,null,null,null,null,null,"","",null,null,null,null,null,null,null,null,null,"F.1.f","Project Impact Assessment"]
["","",null,null,null,null,null,null,null,null,null,null,null,null,null,null,null,null,null,null,null,null,null,0,"",null,null,null,null,null,null,null,"","",null,null,null,null,null,null,null,null,null,"F.1.g","Community Impact Assessment Report"]
["","",null,null,null,null,null,null,null,null,null,null,null,null,null,null,null,null,null,null,null,null,null,{"$f":"IF(B96=\"\",0,IF(B96=\"ESTIMATE PROJECT SCENARIO BENEFITS\",\"\",IF((SUM(D96:W96)=0),0,SUM(D96:W96))))","v":0},"",null,null,null,null,null,null,null,"","",null,null,null,null,null,null,null,null,null,"F.1.h",null,8,"ESTIMATE PROJECT SCENARIO BENEFITS"]
["","",null,null,null,null,null,null,null,null,null,null,null,null,null,null,null,null,null,null,null,null,null,{"$f":"IF(B97=\"\",0,IF((SUM(D97:W97)=0),0,SUM(D97:W97)))","v":0},"",null,null,null,null,null,null,null,"","",null,null,null,null,null,null,null,null,null,"F.1.i",null,null,"Develop near-term project feasibility criteria and apply to the identified program of projects"]
["","",null,null,null,null,null,null,null,null,null,null,null,null,null,null,null,null,null,null,null,null,null,{"$f":"IF(B98=\"\",0,IF((SUM(D98:W98)=0),0,SUM(D98:W98)))","v":0},"",null,null,null,null,null,null,null,"","",null,null,null,null,null,null,null,null,null,"F.1.j",null,null,"Develop ranked list ordered according to project feasibility criteria"]
["","",null,null,null,null,null,null,null,null,null,null,null,null,null,null,null,null,null,null,null,null,null,{"$f":"IF(B99=\"\",0,IF((SUM(D99:W99)=0),0,SUM(D99:W99)))","v":0},"",null,null,null,null,null,null,null,"","",null,null,null,null,null,null,null,null,null,"F.1.k",null,null,"Perform Benefit Cost Analyses (BCA)  for up to five projects using the OMB BCA methodology"]
["","",null,null,null,null,null,null,null,null,null,null,null,null,null,null,null,null,null,null,null,null,null,{"$f":"IF(B100=\"\",0,IF((SUM(D100:W100)=0),0,SUM(D100:W100)))","v":0},"",null,null,null,null,null,null,null,"","",null,null,null,null,null,null,null,null,null,"F.1.l",null,null,"Revise per NCDOT comments"]
["","",null,null,null,null,null,null,null,null,null,null,null,null,null,null,null,null,null,null,null,null,null,{"$f":"IF(B101=\"\",0,IF(B101=\"INDIRECT AND CUMULATIVE EFFECTS SCREENING\",\"\",IF((SUM(D101:W101)=0),0,SUM(D101:W101))))","v":0},"",null,null,null,null,null,null,null,"","",null,null,null,null,null,null,null,null,null,"F.2","INDIRECT AND CUMULATIVE EFFECTS SCREENING"]
["","",null,null,null,null,null,null,null,null,null,null,null,null,null,null,null,null,null,null,null,null,null,{"$f":"IF(B102=\"\",0,IF((SUM(D102:W102)=0),0,SUM(D102:W102)))","v":0},"",null,null,null,null,null,null,null,"","",null,null,null,null,null,null,null,null,null,"F.2.a","Determine Future Land Use Study Area"]
["","",null,null,null,null,null,null,null,null,null,null,null,null,null,null,null,null,null,null,null,null,null,{"$f":"IF(B103=\"\",0,IF((SUM(D103:W103)=0),0,SUM(D103:W103)))","v":0},"",null,null,null,null,null,null,null,"","",null,null,null,null,null,null,null,null,null,"F.2.b","Determine ICE Study Time Horizon"]
["","",null,null,null,null,null,null,null,null,null,null,null,null,null,null,null,null,null,null,null,null,null,{"$f":"IF(B104=\"\",0,IF((SUM(D104:W104)=0),0,SUM(D104:W104)))","v":0},"",null,null,null,null,null,null,null,"","",null,null,null,null,null,null,null,null,null,"F.2.c","Identify Study Area Conditions and Trends"]
["","",null,null,null,null,null,null,null,null,null,null,null,null,null,null,null,null,null,null,null,null,null,{"$f":"IF(B105=\"\",0,IF((SUM(D105:W105)=0),0,SUM(D105:W105)))","v":0},"",null,null,null,null,null,null,null,"","",null,null,null,null,null,null,null,null,null,"F.2.d","Inventory of Notable Features"]
["","",null,null,null,null,null,null,null,null,null,null,null,null,null,null,null,null,null,null,null,null,null,{"$f":"IF(B106=\"\",0,IF(B106=\"GENERATE DATA NEEDED FOR SCORING IN STI\",\"\",IF((SUM(D106:W106)=0),0,SUM(D106:W106))))","v":0},"",null,null,null,null,null,null,null,"","",null,null,null,null,null,null,null,null,null,"F.2.e","Identify Impact-Causing Activities",9,"GENERATE DATA NEEDED FOR SCORING IN STI"]
["","",null,null,null,null,null,null,null,null,null,null,null,null,null,null,null,null,null,null,null,null,null,{"$f":"IF(B107=\"\",0,IF((SUM(D107:W107)=0),0,SUM(D107:W107)))","v":0},"",null,null,null,null,null,null,null,"","",null,null,null,null,null,null,null,null,null,"F.2.f","Analyze and Evaluate ICE Data",null,"Develop list of alternative solutions"]
["","",null,null,null,null,null,null,null,null,null,null,null,null,null,null,null,null,null,null,null,null,null,0,"",null,null,null,null,null,null,null,"","",null,null,null,null,null,null,null,null,null,"F.2.g","Land Use Development Scenarios",null,"Develop ranking procedure and criteria"]
["","",null,null,null,null,null,null,null,null,null,null,null,null,null,null,null,null,null,null,null,null,null,0,"",null,null,null,null,null,null,null,"","",null,null,null,null,null,null,null,null,null,"F.2.h","Indirect and Cumulative Effects Screening",null,"Adjust per NCDOT comments"]
["","",null,null,null,null,null,null,null,null,null,null,null,null,null,null,null,null,null,null,null,null,null,0,"",null,null,null,null,null,null,null,"","",null,null,null,null,null,null,null,null,null,"F.2.i",null,null,"Apply procedure/criteria to project alternatives"]
["","",null,null,null,null,null,null,null,null,null,null,null,null,null,null,null,null,null,null,null,null,null,0,"",null,null,null,null,null,null,null,"","",null,null,null,null,null,null,null,null,null,"F.2.j",null,null,"Review resulting list"]
["","",null,null,null,null,null,null,null,null,null,null,null,null,null,null,null,null,null,null,null,null,null,0,"",null,null,null,null,null,null,null,"","",null,null,null,null,null,null,null,null,null,"F.2.k",null,null,"Suggest revisions to procedure as needed"]
["","",null,null,null,null,null,null,null,null,null,null,null,null,null,null,null,null,null,null,null,null,null,0,"",null,null,null,null,null,null,null,"","",null,null,null,null,null,null,null,null,null,"F.2.l",null,null,"Revise criteria and redevelop list"]
["","",null,null,null,null,null,null,null,null,null,null,null,null,null,null,null,null,null,null,null,null,null,0,"",null,null,null,null,null,null,null,"","",null,null,null,null,null,null,null,null,null,"F.2.m",null,null,"Suggest project timing"]
["","",null,null,null,null,null,null,null,null,null,null,null,null,null,null,null,null,null,null,null,null,null,{"$f":"IF(B115=\"\",0,IF(B115=\"NOISE AND VIBRATION IMPACT ANALYSIS\",\"\",IF((SUM(D115:W115)=0),0,SUM(D115:W115))))","v":0},"",null,null,null,null,null,null,null,"","",null,null,null,null,null,null,null,null,null,"F.3.","NOISE AND VIBRATION IMPACT ANALYSIS",null,"Suggest project funding source(s)"]
["","",null,null,null,null,null,null,null,null,null,null,null,null,null,null,null,null,null,null,null,null,null,{"$f":"IF(B116=\"\",0,IF((SUM(D116:W116)=0),0,SUM(D116:W116)))","v":0},"",null,null,null,null,null,null,null,"","",null,null,null,null,null,null,null,null,null,"F.3.a","Coordination",null,"Develop opinion of cost for highest 5 ranking projects"]
["","",null,null,null,null,null,null,null,null,null,null,null,null,null,null,null,null,null,null,null,null,null,0,"",null,null,null,null,null,null,null,"","",null,null,null,null,null,null,null,null,null,null,"Initial Meeting with Rail Division",null,"Develop estimate of benefits for highest 5 ranking projects"]
["","",null,null,null,null,null,null,null,null,null,null,null,null,null,null,null,null,null,null,null,null,null,0,"",null,null,null,null,null,null,null,"","",null,null,null,null,null,null,null,null,null,"F.3.b","Data Compilation"]
["","",null,null,null,null,null,null,null,null,null,null,null,null,null,null,null,null,null,null,null,null,null,0,"",null,null,null,null,null,null,null,"","",null,null,null,null,null,null,null,null,null,null,"Project Area Reconnaissance, if applicable"]
["","",null,null,null,null,null,null,null,null,null,null,null,null,null,null,null,null,null,null,null,null,null,0,"",null,null,null,null,null,null,null,"","",null,null,null,null,null,null,null,null,null,null,"Identify noise sensitive land uses"]
["","",null,null,null,null,null,null,null,null,null,null,null,null,null,null,null,null,null,null,null,null,null,0,"",null,null,null,null,null,null,null,"","",null,null,null,null,null,null,null,null,null,null,"Prepare Noise Analysis Work Plan"]
["","",null,null,null,null,null,null,null,null,null,null,null,null,null,null,null,null,null,null,null,null,null,0,"",null,null,null,null,null,null,null,"","",null,null,null,null,null,null,null,null,null,"F.3.c","Selection of Analysis Sites"]
["","",null,null,null,null,null,null,null,null,null,null,null,null,null,null,null,null,null,null,null,null,null,{"$f":"IF(B123=\"\",0,IF(B123=\"IDENTIFY POTENTIAL PROJECTS FOR FEDERAL PROGRAMS\",\"\",IF((SUM(D123:W123)=0),0,SUM(D123:W123))))","v":0},"",null,null,null,null,null,null,null,"","",null,null,null,null,null,null,null,null,null,"F.3.d","Noise Analysis",10,"IDENTIFY POTENTIAL PROJECTS FOR FEDERAL PROGRAMS"]
["","",null,null,null,null,null,null,null,null,null,null,null,null,null,null,null,null,null,null,null,null,null,{"$f":"IF(B124=\"\",0,IF((SUM(D124:W124)=0),0,SUM(D124:W124)))","v":0},"",null,null,null,null,null,null,null,"","",null,null,null,null,null,null,null,null,null,null,"Monitoring / Fieldwork / Processing",null,"Research and prepare a technical memoranda identifying existing federal grant and loan programs for ports and rail improvements"]
["","",null,null,null,null,null,null,null,null,null,null,null,null,null,null,null,null,null,null,null,null,null,0,"",null,null,null,null,null,null,null,"","",null,null,null,null,null,null,null,null,null,null,"Traffic noise analysis",null,"Screen the program of projects for federal grant and loan program eligibility "]
["","",null,null,null,null,null,null,null,null,null,null,null,null,null,null,null,null,null,null,null,null,null,0,"",null,null,null,null,null,null,null,"","",null,null,null,null,null,null,null,null,null,null,"Rail noise analysis",null,"Recommend federal funding resources applicable to candidate projects"]
["","",null,null,null,null,null,null,null,null,null,null,null,null,null,null,null,null,null,null,null,null,null,0,"",null,null,null,null,null,null,null,"","",null,null,null,null,null,null,null,null,null,"F.3.e","Determination of Impacts"]
["","",null,null,null,null,null,null,null,null,null,null,null,null,null,null,null,null,null,null,null,null,null,0,"",null,null,null,null,null,null,null,"","",null,null,null,null,null,null,null,null,null,null,"Traffic noise analysis"]
["","",null,null,null,null,null,null,null,null,null,null,null,null,null,null,null,null,null,null,null,null,null,0,"",null,null,null,null,null,null,null,"","",null,null,null,null,null,null,null,null,null,null,"Rail noise analysis"]
["","",null,null,null,null,null,null,null,null,null,null,null,null,null,null,null,null,null,null,null,null,null,0,"",null,null,null,null,null,null,null,"","",null,null,null,null,null,null,null,null,null,null,"Traffic and rail noise impact assessment"]
["","",null,null,null,null,null,null,null,null,null,null,null,null,null,null,null,null,null,null,null,null,null,0,"",null,null,null,null,null,null,null,"","",null,null,null,null,null,null,null,null,null,"F.3.f","Noise Abatement Considerations"]
["","",null,null,null,null,null,null,null,null,null,null,null,null,null,null,null,null,null,null,null,null,null,{"$f":"IF(B132=\"\",0,IF(B132=\"PREPARE PROGRAM OF PROJECTS\",\"\",IF((SUM(D132:W132)=0),0,SUM(D132:W132))))","v":0},"",null,null,null,null,null,null,null,"","",null,null,null,null,null,null,null,null,null,null,"Noise barrier analysis",11,"PREPARE PROGRAM OF PROJECTS"]
["","",null,null,null,null,null,null,null,null,null,null,null,null,null,null,null,null,null,null,null,null,null,{"$f":"IF(B133=\"\",0,IF((SUM(D133:W133)=0),0,SUM(D133:W133)))","v":0},"",null,null,null,null,null,null,null,"","",null,null,null,null,null,null,null,null,null,null,"QA/Review",null,"Develop ranked list of projects based on benefit data"]
["","",null,null,null,null,null,null,null,null,null,null,null,null,null,null,null,null,null,null,null,null,null,0,"",null,null,null,null,null,null,null,"","",null,null,null,null,null,null,null,null,null,"F.3.g","Vibration Analysis",null,"Develop timing plan "]
["","",null,null,null,null,null,null,null,null,null,null,null,null,null,null,null,null,null,null,null,null,null,0,"",null,null,null,null,null,null,null,"","",null,null,null,null,null,null,null,null,null,"F.3.h","Noise and Vibration Technical Report",null,"Develop list of possible funding sources (limited to most likely source)"]
["","",null,null,null,null,null,null,null,null,null,null,null,null,null,null,null,null,null,null,null,null,null,0,"",null,null,null,null,null,null,null,"","",null,null,null,null,null,null,null,null,null,null,"Draft Report - text, tables, figures",null,"Calculate ranking based on criteria and or weighting data provided by NCDOT"]
["","",null,null,null,null,null,null,null,null,null,null,null,null,null,null,null,null,null,null,null,null,null,0,"",null,null,null,null,null,null,null,"","",null,null,null,null,null,null,null,null,null,null,"Draft Report - Appendices",null,"Submit draft list to NCDOT"]
["","",null,null,null,null,null,null,null,null,null,null,null,null,null,null,null,null,null,null,null,null,null,0,"",null,null,null,null,null,null,null,"","",null,null,null,null,null,null,null,null,null,null,"QA/Review",null,"Revise based on NCDOT comments"]
["","",null,null,null,null,null,null,null,null,null,null,null,null,null,null,null,null,null,null,null,null,null,0,"",null,null,null,null,null,null,null,"","",null,null,null,null,null,null,null,null,null,null,"Prepare Comment/Response Matrix"]
[{"$f":"IF(AG140=0,\"\",AG140)","v":""},"",null,null,null,null,null,null,null,null,null,null,null,null,null,null,null,null,null,null,null,null,null,0,"",null,null,null,null,null,null,null,{"$f":"IF($AA$4=\"Select Task Type\",\"\",IF($AA$4=\"Grade Separation\",AJ140,IF($AA$4=\"CEI\",AL140,IF($AA$4=\"Track Design\",AN140,IF($AA$4=\"Signal Design\",AP140,IF($AA$4=\"Environmental\",AR140,IF($AA$4=\"Planning\",AT140,\"\")))))))","v":""},"",null,null,null,null,null,null,null,null,null,null,"Prepare Final Report (includes QA/Review)"]
["","",null,null,null,null,null,null,null,null,null,null,null,null,null,null,null,null,null,null,null,null,null,0,{"$f":"IF(SUM(D141:W141)=0,\"\",((SUM(D141:W141))/$X$261))","v":""},null,null,null,null,null,null,null,"","",null,null,null,null,null,null,null,null,null,"F.3.i"]
["","",null,null,null,null,null,null,null,null,null,null,null,null,null,null,null,null,null,null,null,null,null,0,"",null,null,null,null,null,null,null,"","",null,null,null,null,null,null,null,null,null,"F.3.j"]
["","",null,null,null,null,null,null,null,null,null,null,null,null,null,null,null,null,null,null,null,null,null,0,"",null,null,null,null,null,null,null,"","",null,null,null,null,null,null,null,null,null,"F.3.k"]
["","",null,null,null,null,null,null,null,null,null,null,null,null,null,null,null,null,null,null,null,null,null,{"$f":"IF(B144=\"\",0,IF(B144=\"STAKEHOLDER INVOLVEMENT\",\"\",IF((SUM(D144:W144)=0),0,SUM(D144:W144))))","v":0},"",null,null,null,null,null,null,null,"","",null,null,null,null,null,null,null,null,null,"F.3.l",null,12,"STAKEHOLDER INVOLVEMENT"]
["","",null,null,null,null,null,null,null,null,null,null,null,null,null,null,null,null,null,null,null,null,null,{"$f":"IF(B145=\"\",0,IF((SUM(D145:W145)=0),0,SUM(D145:W145)))","v":0},"",null,null,null,null,null,null,null,"","",null,null,null,null,null,null,null,null,null,"F.3.m",null,null,"Attend 2 meetings (facilitated by others)"]
["","",null,null,null,null,null,null,null,null,null,null,null,null,null,null,null,null,null,null,null,null,null,{"$f":"IF(B146=\"\",0,IF(B146=\"AIR QUALITY ANALYSIS\",\"\",IF((SUM(D146:W146)=0),0,SUM(D146:W146))))","v":0},"",null,null,null,null,null,null,null,"","",null,null,null,null,null,null,null,null,null,"F.4","AIR QUALITY ANALYSIS",null,"Coordinate with NCDOT to discuss results of stakeholder interaction"]
["","",null,null,null,null,null,null,null,null,null,null,null,null,null,null,null,null,null,null,null,null,null,{"$f":"IF(B147=\"\",0,IF((SUM(D147:W147)=0),0,SUM(D147:W147)))","v":0},"",null,null,null,null,null,null,null,"","",null,null,null,null,null,null,null,null,null,"F.4.a","Data Compilation"]
["","",null,null,null,null,null,null,null,null,null,null,null,null,null,null,null,null,null,null,null,null,null,{"$f":"IF(B148=\"\",0,IF((SUM(D148:W148)=0),0,SUM(D148:W148)))","v":0},"",null,null,null,null,null,null,null,"","",null,null,null,null,null,null,null,null,null,"F.4.b","Attainment Status and Conformity"]
["","",null,null,null,null,null,null,null,null,null,null,null,null,null,null,null,null,null,null,null,null,null,{"$f":"IF(B149=\"\",0,IF((SUM(D149:W149)=0),0,SUM(D149:W149)))","v":0},"",null,null,null,null,null,null,null,"","",null,null,null,null,null,null,null,null,null,"F.4.c","Carbon Monoxide Air Quality Analysis"]
["","",null,null,null,null,null,null,null,null,null,null,null,null,null,null,null,null,null,null,null,null,null,{"$f":"IF(B150=\"\",0,IF((SUM(D150:W150)=0),0,SUM(D150:W150)))","v":0},"",null,null,null,null,null,null,null,"","",null,null,null,null,null,null,null,null,null,"F.4.d","Particulate Matter"]
["","",null,null,null,null,null,null,null,null,null,null,null,null,null,null,null,null,null,null,null,null,null,{"$f":"IF(B151=\"\",0,IF((SUM(D151:W151)=0),0,SUM(D151:W151)))","v":0},"",null,null,null,null,null,null,null,"","",null,null,null,null,null,null,null,null,null,"F.4.e","Mobile Source Air Toxics (MSATs)"]
["","",null,null,null,null,null,null,null,null,null,null,null,null,null,null,null,null,null,null,null,null,null,{"$f":"IF(B152=\"\",0,IF(B152=\"SCHEDULE\",\"\",IF((SUM(D152:W152)=0),0,SUM(D152:W152))))","v":0},"",null,null,null,null,null,null,null,"","",null,null,null,null,null,null,null,null,null,"F.4.f","Greenhouse Gas Emissions (GHGs)",13,"SCHEDULE"]
["","",null,null,null,null,null,null,null,null,null,null,null,null,null,null,null,null,null,null,null,null,null,{"$f":"IF(B153=\"\",0,IF((SUM(D153:W153)=0),0,SUM(D153:W153)))","v":0},"",null,null,null,null,null,null,null,"","",null,null,null,null,null,null,null,null,null,"F.4.g","Air Quality Technical Report",null,"Develop schedule of deliverable and review tasks"]
["","",null,null,null,null,null,null,null,null,null,null,null,null,null,null,null,null,null,null,null,null,null,0,"",null,null,null,null,null,null,null,"","",null,null,null,null,null,null,null,null,null,"F.4.h",null,null,"Update schedule as needed"]
["","",null,null,null,null,null,null,null,null,null,null,null,null,null,null,null,null,null,null,null,null,null,0,"",null,null,null,null,null,null,null,"","",null,null,null,null,null,null,null,null,null,"F.4.i"]
["","",null,null,null,null,null,null,null,null,null,null,null,null,null,null,null,null,null,null,null,null,null,0,"",null,null,null,null,null,null,null,"","",null,null,null,null,null,null,null,null,null,"F.4.j"]
["","",null,null,null,null,null,null,null,null,null,null,null,null,null,null,null,null,null,null,null,null,null,0,"",null,null,null,null,null,null,null,"","",null,null,null,null,null,null,null,null,null,"F.4.k"]
["","",null,null,null,null,null,null,null,null,null,null,null,null,null,null,null,null,null,null,null,null,null,0,"",null,null,null,null,null,null,null,"","",null,null,null,null,null,null,null,null,null,"F.4.l"]
["","",null,null,null,null,null,null,null,null,null,null,null,null,null,null,null,null,null,null,null,null,null,{"$f":"IF(B159=\"\",0,IF(B159=\"CULTURAL RESOURCES ANALYSIS\",\"\",IF((SUM(D159:W159)=0),0,SUM(D159:W159))))","v":0},"",null,null,null,null,null,null,null,"","",null,null,null,null,null,null,null,null,null,"F.5","CULTURAL RESOURCES ANALYSIS"]
["","",null,null,null,null,null,null,null,null,null,null,null,null,null,null,null,null,null,null,null,null,null,{"$f":"IF(B160=\"\",0,IF(B160=\"REPORT\",\"\",IF((SUM(D160:W160)=0),0,SUM(D160:W160))))","v":0},"",null,null,null,null,null,null,null,"","",null,null,null,null,null,null,null,null,null,"F.5.a","Phase 1 Historic Architectural Analysis",14,"REPORT"]
["","",null,null,null,null,null,null,null,null,null,null,null,null,null,null,null,null,null,null,null,null,null,{"$f":"IF(B161=\"\",0,IF(B161=\"ARCHAEOLOGICAL ANALYSIS\",\"\",IF((SUM(D161:W161)=0),0,SUM(D161:W161))))","v":0},"",null,null,null,null,null,null,null,"","",null,null,null,null,null,null,null,null,null,"F.5.b","ARCHAEOLOGICAL ANALYSIS",null,"Prepare draft report (electronic version only) for NCDOT review"]
["","",null,null,null,null,null,null,null,null,null,null,null,null,null,null,null,null,null,null,null,null,null,{"$f":"IF(B162=\"\",0,IF((SUM(D162:W162)=0),0,SUM(D162:W162)))","v":0},"",null,null,null,null,null,null,null,"","",null,null,null,null,null,null,null,null,null,null,"Conduct Background Research of information from NC OSA/ SHPO",null,"Revise per NCDOT comments"]
["","",null,null,null,null,null,null,null,null,null,null,null,null,null,null,null,null,null,null,null,null,null,0,"",null,null,null,null,null,null,null,"","",null,null,null,null,null,null,null,null,null,null,"Collect previously recorded sites and surveys in study area",null,"Prepare final report"]
["","",null,null,null,null,null,null,null,null,null,null,null,null,null,null,null,null,null,null,null,null,null,0,"",null,null,null,null,null,null,null,"","",null,null,null,null,null,null,null,null,null,null,"Prepare Archaeological Overview Report"]
["","",null,null,null,null,null,null,null,null,null,null,null,null,null,null,null,null,null,null,null,null,null,0,"",null,null,null,null,null,null,null,"","",null,null,null,null,null,null,null,null,null,null," known archaeological resources in alternatives or study area"]
["","",null,null,null,null,null,null,null,null,null,null,null,null,null,null,null,null,null,null,null,null,null,0,"",null,null,null,null,null,null,null,"","",null,null,null,null,null,null,null,null,null,null," sites of value for reasons other than recoverable information"]
["","",null,null,null,null,null,null,null,null,null,null,null,null,null,null,null,null,null,null,null,null,null,0,"",null,null,null,null,null,null,null,"","",null,null,null,null,null,null,null,null,null,null," assessment of potential for archaeological sites in areas not previously surveyed"]
["","",null,null,null,null,null,null,null,null,null,null,null,null,null,null,null,null,null,null,null,null,null,0,"",null,null,null,null,null,null,null,"","",null,null,null,null,null,null,null,null,null,null," recommendations regarding need for archaeological survey"]
["","",null,null,null,null,null,null,null,null,null,null,null,null,null,null,null,null,null,null,null,null,null,{"$f":"IF(B169=\"\",0,IF(B169=\"PROJECT COORDINATION\",\"\",IF((SUM(D169:W169)=0),0,SUM(D169:W169))))","v":0},"",null,null,null,null,null,null,null,"","",null,null,null,null,null,null,null,null,null,null,"Graphics showing alternatives, previously studied areas, and known sites",15,"PROJECT COORDINATION"]
["","",null,null,null,null,null,null,null,null,null,null,null,null,null,null,null,null,null,null,null,null,null,{"$f":"IF(B170=\"\",0,IF((SUM(D170:W170)=0),0,SUM(D170:W170)))","v":0},"",null,null,null,null,null,null,null,"","",null,null,null,null,null,null,null,null,null,null,"Submit Draft Archaeological Overview Report",null,"Coordinate internally with staff and subconsultants"]
["","",null,null,null,null,null,null,null,null,null,null,null,null,null,null,null,null,null,null,null,null,null,0,"",null,null,null,null,null,null,null,"","",null,null,null,null,null,null,null,null,null,null,"Address NCDOT comments on Draft Archaeological Overview Report"]
["","",null,null,null,null,null,null,null,null,null,null,null,null,null,null,null,null,null,null,null,null,null,0,"",null,null,null,null,null,null,null,"","",null,null,null,null,null,null,null,null,null,null,"Submit Final Archaeological Overview Report"]
["","",null,null,null,null,null,null,null,null,null,null,null,null,null,null,null,null,null,null,null,null,null,0,"",null,null,null,null,null,null,null,"","",null,null,null,null,null,null,null,null,null,null,"Meeting attendance and coordination"]
["","",null,null,null,null,null,null,null,null,null,null,null,null,null,null,null,null,null,null,null,null,null,0,"",null,null,null,null,null,null,null,"","",null,null,null,null,null,null,null,null,null,"F.5.c"]
["","",null,null,null,null,null,null,null,null,null,null,null,null,null,null,null,null,null,null,null,null,null,0,"",null,null,null,null,null,null,null,"","",null,null,null,null,null,null,null,null,null,"F.5.d"]
["","",null,null,null,null,null,null,null,null,null,null,null,null,null,null,null,null,null,null,null,null,null,{"$f":"IF(B176=\"\",0,IF(B176=\"TRUCK ALTERNATIVE ROUTE ANALYSIS\",\"\",IF((SUM(D176:W176)=0),0,SUM(D176:W176))))","v":0},"",null,null,null,null,null,null,null,"","",null,null,null,null,null,null,null,null,null,"F.5.e",null,16,"TRUCK ALTERNATIVE ROUTE ANALYSIS"]
["","",null,null,null,null,null,null,null,null,null,null,null,null,null,null,null,null,null,null,null,null,null,{"$f":"IF(B177=\"\",0,IF((SUM(D177:W177)=0),0,SUM(D177:W177)))","v":0},"",null,null,null,null,null,null,null,"","",null,null,null,null,null,null,null,null,null,"F.5.f",null,null,"Truck Alternative Route Analysis (XX to the Port)"]
["","",null,null,null,null,null,null,null,null,null,null,null,null,null,null,null,null,null,null,null,null,null,{"$f":"IF(B178=\"\",0,IF((SUM(D178:W178)=0),0,SUM(D178:W178)))","v":0},"",null,null,null,null,null,null,null,"","",null,null,null,null,null,null,null,null,null,"F.5.g"]
["","",null,null,null,null,null,null,null,null,null,null,null,null,null,null,null,null,null,null,null,null,null,{"$f":"IF(B179=\"\",0,IF(B179=\"OTHER PHYSICAL FEATURES ANALYSIS\",\"\",IF((SUM(D179:W179)=0),0,SUM(D179:W179))))","v":0},"",null,null,null,null,null,null,null,"","",null,null,null,null,null,null,null,null,null,"G","OTHER PHYSICAL FEATURES ANALYSIS"]
["","",null,null,null,null,null,null,null,null,null,null,null,null,null,null,null,null,null,null,null,null,null,{"$f":"IF(B180=\"\",0,IF((SUM(D180:W180)=0),0,SUM(D180:W180)))","v":0},"",null,null,null,null,null,null,null,"","",null,null,null,null,null,null,null,null,null,"G.1","Identify Potential Floodplain and Floodway Impacts"]
["","",null,null,null,null,null,null,null,null,null,null,null,null,null,null,null,null,null,null,null,null,null,{"$f":"IF(B181=\"\",0,IF((SUM(D181:W181)=0),0,SUM(D181:W181)))","v":0},"",null,null,null,null,null,null,null,"","",null,null,null,null,null,null,null,null,null,"G.2","Farmland Assessment"]
["","",null,null,null,null,null,null,null,null,null,null,null,null,null,null,null,null,null,null,null,null,null,{"$f":"IF(B182=\"\",0,IF(B182=\"FEASIBILITY STUDY\",\"\",IF((SUM(D182:W182)=0),0,SUM(D182:W182))))","v":0},"",null,null,null,null,null,null,null,"","",null,null,null,null,null,null,null,null,null,"G.3","Hazardous Materials Assessment",17,"FEASIBILITY STUDY"]
["","",null,null,null,null,null,null,null,null,null,null,null,null,null,null,null,null,null,null,null,null,null,{"$f":"IF(B183=\"\",0,IF((SUM(D183:W183)=0),0,SUM(D183:W183)))","v":0},"",null,null,null,null,null,null,null,"","",null,null,null,null,null,null,null,null,null,"G.4","Visual Impact Analysis"]
["","",null,null,null,null,null,null,null,null,null,null,null,null,null,null,null,null,null,null,null,null,null,0,"",null,null,null,null,null,null,null,"","",null,null,null,null,null,null,null,null,null,"G.5","Identify Potential Public Utility Impacts"]
["","",null,null,null,null,null,null,null,null,null,null,null,null,null,null,null,null,null,null,null,null,null,0,"",null,null,null,null,null,null,null,"","",null,null,null,null,null,null,null,null,null,"G.6"]
["","",null,null,null,null,null,null,null,null,null,null,null,null,null,null,null,null,null,null,null,null,null,0,"",null,null,null,null,null,null,null,"","",null,null,null,null,null,null,null,null,null,"G.7"]
["","",null,null,null,null,null,null,null,null,null,null,null,null,null,null,null,null,null,null,null,null,null,0,"",null,null,null,null,null,null,null,"","",null,null,null,null,null,null,null,null,null,"G.8"]
["","",null,null,null,null,null,null,null,null,null,null,null,null,null,null,null,null,null,null,null,null,null,0,"",null,null,null,null,null,null,null,"","",null,null,null,null,null,null,null,null,null,"G.9"]
["","",null,null,null,null,null,null,null,null,null,null,null,null,null,null,null,null,null,null,null,null,null,0,"",null,null,null,null,null,null,null,"","",null,null,null,null,null,null,null,null,null,"G.10"]
["","",null,null,null,null,null,null,null,null,null,null,null,null,null,null,null,null,null,null,null,null,null,{"$f":"IF(B190=\"\",0,IF(B190=\"SECTION 4(F) AND SECTION 6(F)\",\"\",IF((SUM(D190:W190)=0),0,SUM(D190:W190))))","v":0},"",null,null,null,null,null,null,null,"","",null,null,null,null,null,null,null,null,null,"H","SECTION 4(F) AND SECTION 6(F)"]
["","",null,null,null,null,null,null,null,null,null,null,null,null,null,null,null,null,null,null,null,null,null,{"$f":"IF(B191=\"\",0,IF((SUM(D191:W191)=0),0,SUM(D191:W191)))","v":0},"",null,null,null,null,null,null,null,"","",null,null,null,null,null,null,null,null,null,"H.1"]
["","",null,null,null,null,null,null,null,null,null,null,null,null,null,null,null,null,null,null,null,null,null,{"$f":"IF(B192=\"\",0,IF((SUM(D192:W192)=0),0,SUM(D192:W192)))","v":0},"",null,null,null,null,null,null,null,"","",null,null,null,null,null,null,null,null,null,"H.2"]
["","",null,null,null,null,null,null,null,null,null,null,null,null,null,null,null,null,null,null,null,null,null,{"$f":"IF(B193=\"\",0,IF((SUM(D193:W193)=0),0,SUM(D193:W193)))","v":0},"",null,null,null,null,null,null,null,"","",null,null,null,null,null,null,null,null,null,"H.3"]
["","",null,null,null,null,null,null,null,null,null,null,null,null,null,null,null,null,null,null,null,null,null,{"$f":"IF(B194=\"\",0,IF((SUM(D194:W194)=0),0,SUM(D194:W194)))","v":0},"",null,null,null,null,null,null,null,"","",null,null,null,null,null,null,null,null,null,"H.4"]
["","",null,null,null,null,null,null,null,null,null,null,null,null,null,null,null,null,null,null,null,null,null,{"$f":"IF(B195=\"\",0,IF((SUM(D195:W195)=0),0,SUM(D195:W195)))","v":0},"",null,null,null,null,null,null,null,"","",null,null,null,null,null,null,null,null,null,"H.5"]
["","",null,null,null,null,null,null,null,null,null,null,null,null,null,null,null,null,null,null,null,null,null,{"$f":"IF(B196=\"\",0,IF(B196=\"DRAFT ENVIRONMENTAL DOCUMENT\",\"\",IF((SUM(D196:W196)=0),0,SUM(D196:W196))))","v":0},"",null,null,null,null,null,null,null,"","",null,null,null,null,null,null,null,null,null,"I","DRAFT ENVIRONMENTAL DOCUMENT"]
["","",null,null,null,null,null,null,null,null,null,null,null,null,null,null,null,null,null,null,null,null,null,{"$f":"IF(B197=\"\",0,IF((SUM(D197:W197)=0),0,SUM(D197:W197)))","v":0},"",null,null,null,null,null,null,null,"","",null,null,null,null,null,null,null,null,null,"I.1","Purpose and Need"]
["","",null,null,null,null,null,null,null,null,null,null,null,null,null,null,null,null,null,null,null,null,null,0,"",null,null,null,null,null,null,null,"","",null,null,null,null,null,null,null,null,null,"I.2","Alternatives Considered"]
["","",null,null,null,null,null,null,null,null,null,null,null,null,null,null,null,null,null,null,null,null,null,0,"",null,null,null,null,null,null,null,"","",null,null,null,null,null,null,null,null,null,"I.3","Human Environment"]
["","",null,null,null,null,null,null,null,null,null,null,null,null,null,null,null,null,null,null,null,null,null,0,"",null,null,null,null,null,null,null,"","",null,null,null,null,null,null,null,null,null,"I.4","Physical Environment"]
["","",null,null,null,null,null,null,null,null,null,null,null,null,null,null,null,null,null,null,null,null,null,0,"",null,null,null,null,null,null,null,"","",null,null,null,null,null,null,null,null,null,"I.5","Cultural Resources"]
["","",null,null,null,null,null,null,null,null,null,null,null,null,null,null,null,null,null,null,null,null,null,0,"",null,null,null,null,null,null,null,"","",null,null,null,null,null,null,null,null,null,"I.6","Natural Resources"]
["","",null,null,null,null,null,null,null,null,null,null,null,null,null,null,null,null,null,null,null,null,null,0,"",null,null,null,null,null,null,null,"","",null,null,null,null,null,null,null,null,null,"I.7","Environmental Impacts"]
[{"$f":"IF(AG204=0,\"\",AG204)","v":""},"",null,null,null,null,null,null,null,null,null,null,null,null,null,null,null,null,null,null,null,null,null,0,"",null,null,null,null,null,null,null,{"$f":"IF($AA$4=\"Select Task Type\",\"\",IF($AA$4=\"Grade Separation\",AJ204,IF($AA$4=\"CEI\",AL204,IF($AA$4=\"Track Design\",AN204,IF($AA$4=\"Signal Design\",AP204,IF($AA$4=\"Environmental\",AR204,IF($AA$4=\"Planning\",AT204,\"\")))))))","v":""},"",null,null,null,null,null,null,null,null,null,"I.8","Indirect and Cumulative Effects"]
["","",null,null,null,null,null,null,null,null,null,null,null,null,null,null,null,null,null,null,null,null,null,0,{"$f":"IF(SUM(D205:W205)=0,\"\",((SUM(D205:W205))/$X$261))","v":""},null,null,null,null,null,null,null,"","",null,null,null,null,null,null,null,null,null,"I.9","Other Impact Considerations"]
["","",null,null,null,null,null,null,null,null,null,null,null,null,null,null,null,null,null,null,null,null,null,0,"",null,null,null,null,null,null,null,"","",null,null,null,null,null,null,null,null,null,"I.10","Public Involvement ad Agency Coordination"]
["","",null,null,null,null,null,null,null,null,null,null,null,null,null,null,null,null,null,null,null,null,null,0,"",null,null,null,null,null,null,null,"","",null,null,null,null,null,null,null,null,null,"I.11","Compile Draft EA & Final EA"]
["","",null,null,null,null,null,null,null,null,null,null,null,null,null,null,null,null,null,null,null,null,null,0,"",null,null,null,null,null,null,null,"","",null,null,null,null,null,null,null,null,null,"I.12","Review and Distribution of EA"]
["","",null,null,null,null,null,null,null,null,null,null,null,null,null,null,null,null,null,null,null,null,null,0,"",null,null,null,null,null,null,null,"","",null,null,null,null,null,null,null,null,null,"I.13"]
["","",null,null,null,null,null,null,null,null,null,null,null,null,null,null,null,null,null,null,null,null,null,0,"",null,null,null,null,null,null,null,"","",null,null,null,null,null,null,null,null,null,"I.14"]
["","",null,null,null,null,null,null,null,null,null,null,null,null,null,null,null,null,null,null,null,null,null,0,"",null,null,null,null,null,null,null,"","",null,null,null,null,null,null,null,null,null,"I.15"]
["","",null,null,null,null,null,null,null,null,null,null,null,null,null,null,null,null,null,null,null,null,null,0,"",null,null,null,null,null,null,null,"","",null,null,null,null,null,null,null,null,null,"I.16"]
["","",null,null,null,null,null,null,null,null,null,null,null,null,null,null,null,null,null,null,null,null,null,0,"",null,null,null,null,null,null,null,"","",null,null,null,null,null,null,null,null,null,"I.17"]
["","",null,null,null,null,null,null,null,null,null,null,null,null,null,null,null,null,null,null,null,null,null,{"$f":"IF(B214=\"\",0,IF(B214=\"FINAL ENVIRONMENTAL DOCUMENT\",\"\",IF((SUM(D214:W214)=0),0,SUM(D214:W214))))","v":0},"",null,null,null,null,null,null,null,"","",null,null,null,null,null,null,null,null,null,"J","FINAL ENVIRONMENTAL DOCUMENT"]
["","",null,null,null,null,null,null,null,null,null,null,null,null,null,null,null,null,null,null,null,null,null,{"$f":"IF(B215=\"\",0,IF((SUM(D215:W215)=0),0,SUM(D215:W215)))","v":0},"",null,null,null,null,null,null,null,"","",null,null,null,null,null,null,null,null,null,"J.1","Compile FONSI"]
["","",null,null,null,null,null,null,null,null,null,null,null,null,null,null,null,null,null,null,null,null,null,0,"",null,null,null,null,null,null,null,"","",null,null,null,null,null,null,null,null,null,"J.2","Alternative Selection"]
["","",null,null,null,null,null,null,null,null,null,null,null,null,null,null,null,null,null,null,null,null,null,0,"",null,null,null,null,null,null,null,"","",null,null,null,null,null,null,null,null,null,"J.3","Prepare Draft & Final Finding of No Significant Impact (FONSI)"]
["","",null,null,null,null,null,null,null,null,null,null,null,null,null,null,null,null,null,null,null,null,null,0,"",null,null,null,null,null,null,null,"","",null,null,null,null,null,null,null,null,null,"J.4"]
["","",null,null,null,null,null,null,null,null,null,null,null,null,null,null,null,null,null,null,null,null,null,0,"",null,null,null,null,null,null,null,"","",null,null,null,null,null,null,null,null,null,"J.5"]
["","",null,null,null,null,null,null,null,null,null,null,null,null,null,null,null,null,null,null,null,null,null,0,"",null,null,null,null,null,null,null,"","",null,null,null,null,null,null,null,null,null,"J.6"]
["","",null,null,null,null,null,null,null,null,null,null,null,null,null,null,null,null,null,null,null,null,null,0,"",null,null,null,null,null,null,null,"","",null,null,null,null,null,null,null,null,null,"J.7"]
["","",null,null,null,null,null,null,null,null,null,null,null,null,null,null,null,null,null,null,null,null,null,0,"",null,null,null,null,null,null,null,"","",null,null,null,null,null,null,null,null,null,"J.8"]
["","",null,null,null,null,null,null,null,null,null,null,null,null,null,null,null,null,null,null,null,null,null,{"$f":"IF(B223=\"\",0,IF(B223=\"PUBLIC INVOLVEMENT\",\"\",IF((SUM(D223:W223)=0),0,SUM(D223:W223))))","v":0},"",null,null,null,null,null,null,null,"","",null,null,null,null,null,null,null,null,null,"K","PUBLIC INVOLVEMENT"]
["","",null,null,null,null,null,null,null,null,null,null,null,null,null,null,null,null,null,null,null,null,null,{"$f":"IF(B224=\"\",0,IF((SUM(D224:W224)=0),0,SUM(D224:W224)))","v":0},"",null,null,null,null,null,null,null,"","",null,null,null,null,null,null,null,null,null,"K.1","Informal Stakeholder Coordination"]
["","",null,null,null,null,null,null,null,null,null,null,null,null,null,null,null,null,null,null,null,null,null,0,"",null,null,null,null,null,null,null,"","",null,null,null,null,null,null,null,null,null,"K.2","Public Information Meeting"]
["","",null,null,null,null,null,null,null,null,null,null,null,null,null,null,null,null,null,null,null,null,null,0,"",null,null,null,null,null,null,null,"","",null,null,null,null,null,null,null,null,null,"K.3","Public Hearing"]
["","",null,null,null,null,null,null,null,null,null,null,null,null,null,null,null,null,null,null,null,null,null,0,"",null,null,null,null,null,null,null,"","",null,null,null,null,null,null,null,null,null,"K.4","Local Offical Information Meeting"]
["","",null,null,null,null,null,null,null,null,null,null,null,null,null,null,null,null,null,null,null,null,null,0,"",null,null,null,null,null,null,null,"","",null,null,null,null,null,null,null,null,null,"K.5","Mailer"]
["","",null,null,null,null,null,null,null,null,null,null,null,null,null,null,null,null,null,null,null,null,null,0,"",null,null,null,null,null,null,null,"","",null,null,null,null,null,null,null,null,null,"K.6","Meeting Maps"]
["","",null,null,null,null,null,null,null,null,null,null,null,null,null,null,null,null,null,null,null,null,null,0,"",null,null,null,null,null,null,null,"","",null,null,null,null,null,null,null,null,null,"K.7","Meeting Displays"]
["","",null,null,null,null,null,null,null,null,null,null,null,null,null,null,null,null,null,null,null,null,null,0,"",null,null,null,null,null,null,null,"","",null,null,null,null,null,null,null,null,null,"K.8"]
["","",null,null,null,null,null,null,null,null,null,null,null,null,null,null,null,null,null,null,null,null,null,0,"",null,null,null,null,null,null,null,"","",null,null,null,null,null,null,null,null,null,"K.9"]
["","",null,null,null,null,null,null,null,null,null,null,null,null,null,null,null,null,null,null,null,null,null,0,"",null,null,null,null,null,null,null,"","",null,null,null,null,null,null,null,null,null,"K.10"]
["","",null,null,null,null,null,null,null,null,null,null,null,null,null,null,null,null,null,null,null,null,null,0,"",null,null,null,null,null,null,null,"","",null,null,null,null,null,null,null,null,null,"K.11"]
["","",null,null,null,null,null,null,null,null,null,null,null,null,null,null,null,null,null,null,null,null,null,0,"",null,null,null,null,null,null,null,"","",null,null,null,null,null,null,null,null,null,"K.12"]
["","",null,null,null,null,null,null,null,null,null,null,null,null,null,null,null,null,null,null,null,null,null,{"$f":"IF(B236=\"\",0,IF(B236=\"PROJECT COORDINATION AND MANAGEMENT\",\"\",IF((SUM(D236:W236)=0),0,SUM(D236:W236))))","v":0},"",null,null,null,null,null,null,null,"","",null,null,null,null,null,null,null,null,null,"L","PROJECT COORDINATION AND MANAGEMENT"]
["","",null,null,null,null,null,null,null,null,null,null,null,null,null,null,null,null,null,null,null,null,null,{"$f":"IF(B237=\"\",0,IF((SUM(D237:W237)=0),0,SUM(D237:W237)))","v":0},"",null,null,null,null,null,null,null,"","",null,null,null,null,null,null,null,null,null,"L.1","Project Schedule"]
["","",null,null,null,null,null,null,null,null,null,null,null,null,null,null,null,null,null,null,null,null,null,0,"",null,null,null,null,null,null,null,"","",null,null,null,null,null,null,null,null,null,"L.2","Coordination with NCDOT"]
["","",null,null,null,null,null,null,null,null,null,null,null,null,null,null,null,null,null,null,null,null,null,0,"",null,null,null,null,null,null,null,"","",null,null,null,null,null,null,null,null,null,"L.3","General Coordination"]
["","",null,null,null,null,null,null,null,null,null,null,null,null,null,null,null,null,null,null,null,null,null,0,"",null,null,null,null,null,null,null,"","",null,null,null,null,null,null,null,null,null,"L.4"]
["","",null,null,null,null,null,null,null,null,null,null,null,null,null,null,null,null,null,null,null,null,null,0,"",null,null,null,null,null,null,null,"","",null,null,null,null,null,null,null,null,null,"L.5"]
["","",null,null,null,null,null,null,null,null,null,null,null,null,null,null,null,null,null,null,null,null,null,0,"",null,null,null,null,null,null,null,"","",null,null,null,null,null,null,null,null,null,"L.6"]
["","",null,null,null,null,null,null,null,null,null,null,null,null,null,null,null,null,null,null,null,null,null,0,"",null,null,null,null,null,null,null,"","",null,null,null,null,null,null,null,null,null,"L.7"]
["","",null,null,null,null,null,null,null,null,null,null,null,null,null,null,null,null,null,null,null,null,null,0,"",null,null,null,null,null,null,null,"","",null,null,null,null,null,null,null,null,null,"L.8"]
["","",null,null,null,null,null,null,null,null,null,null,null,null,null,null,null,null,null,null,null,null,null,0,"",null,null,null,null,null,null,null,"",""]
["","",null,null,null,null,null,null,null,null,null,null,null,null,null,null,null,null,null,null,null,null,null,0,"",null,null,null,null,null,null,null,"",""]
["","",null,null,null,null,null,null,null,null,null,null,null,null,null,null,null,null,null,null,null,null,null,0,"",null,null,null,null,null,null,null,"",""]
["","",null,null,null,null,null,null,null,null,null,null,null,null,null,null,null,null,null,null,null,null,null,0,"",null,null,null,null,null,null,null,"",""]
["","",null,null,null,null,null,null,null,null,null,null,null,null,null,null,null,null,null,null,null,null,null,0,"",null,null,null,null,null,null,null,"",""]
["","",null,null,null,null,null,null,null,null,null,null,null,null,null,null,null,null,null,null,null,null,null,0,"",null,null,null,null,null,null,null,"",""]
["","",null,null,null,null,null,null,null,null,null,null,null,null,null,null,null,null,null,null,null,null,null,0,"",null,null,null,null,null,null,null,"",""]
["","",null,null,null,null,null,null,null,null,null,null,null,null,null,null,null,null,null,null,null,null,null,0,"",null,null,null,null,null,null,null,"",""]
["","",null,null,null,null,null,null,null,null,null,null,null,null,null,null,null,null,null,null,null,null,null,0,"",null,null,null,null,null,null,null,"",""]
["","",null,null,null,null,null,null,null,null,null,null,null,null,null,null,null,null,null,null,null,null,null,0,"",null,null,null,null,null,null,null,"",""]
["","",null,null,null,null,null,null,null,null,null,null,null,null,null,null,null,null,null,null,null,null,null,0,"",null,null,null,null,null,null,null,"",""]
["","",null,null,null,null,null,null,null,null,null,null,null,null,null,null,null,null,null,null,null,null,null,0,"",null,null,null,null,null,null,null,"",""]
["","",null,null,null,null,null,null,null,null,null,null,null,null,null,null,null,null,null,null,null,null,null,0,"",null,null,null,null,null,null,null,"",""]
["","",null,null,null,null,null,null,null,null,null,null,null,null,null,null,null,null,null,null,null,null,null,0,"",null,null,null,null,null,null,null,"",""]
["","",null,null,null,null,null,null,null,null,null,null,null,null,null,null,null,null,null,null,null,null,null,0,{"$f":"IF(SUM(D259:W259)=0,\"\",((SUM(D259:W259))/$X$261))","v":""},null,null,null,null,null,null,null,"",""]
["","",null,null,null,null,null,null,null,null,null,null,null,null,null,null,null,null,null,null,null,null,null,0,{"$f":"IF(SUM(D260:W260)=0,\"\",((SUM(D260:W260))/$X$261))","v":""},null,null,null,null,null,null,null,"",""]
[null,"TOTAL WORKHOURS/CATEGORY:",null,{"$f":"SUM(D11:D260)","v":0},0,0,0,0,0,0,0,0,0,0,0,0,0,0,0,0,0,0,0,{"$f":"SUM(D261:W261)","v":0},{"$f":"SUM(Y11:Y260)","v":0},{"$f":"SUM(Z11:Z260)","v":0}]
[null,"TOTAL WORKDAYS/CATEGORY:",null,{"$f":"D261/8","v":0},{"$f":"E261/8","v":0},0,0,0,0,0,0,0,0,0,0,0,0,0,0,0,0,0,0]
[null,"HOURLY SALARY RATE:",null,{"$f":"'PEF CLASSIFICATION SHEET'!E1189","v":0},{"$f":"'PEF CLASSIFICATION SHEET'!E1190","v":0},{"$f":"'PEF CLASSIFICATION SHEET'!E1191","v":0},{"$f":"'PEF CLASSIFICATION SHEET'!E1192","v":0},{"$f":"'PEF CLASSIFICATION SHEET'!E1193","v":0},{"$f":"'PEF CLASSIFICATION SHEET'!E1194","v":0},{"$f":"'PEF CLASSIFICATION SHEET'!E1195","v":0},{"$f":"'PEF CLASSIFICATION SHEET'!E1196","v":0},{"$f":"'PEF CLASSIFICATION SHEET'!E1197","v":0},{"$f":"'PEF CLASSIFICATION SHEET'!E1198","v":0},{"$f":"'PEF CLASSIFICATION SHEET'!E1199","v":0},{"$f":"'PEF CLASSIFICATION SHEET'!E1200","v":0},{"$f":"'PEF CLASSIFICATION SHEET'!E1201","v":0},{"$f":"'PEF CLASSIFICATION SHEET'!E1202","v":0},{"$f":"'PEF CLASSIFICATION SHEET'!E1203","v":0},{"$f":"'PEF CLASSIFICATION SHEET'!E1204","v":0},{"$f":"'PEF CLASSIFICATION SHEET'!E1205","v":0},{"$f":"'PEF CLASSIFICATION SHEET'!E1206","v":0},{"$f":"'PEF CLASSIFICATION SHEET'!E1207","v":0},{"$f":"'PEF CLASSIFICATION SHEET'!E1208","v":0}]
[null,"RATES PER DAY:",null,{"$f":"D263*8","v":0},0,0,0,0,0,0,0,0,0,0,0,0,0,0,0,0,0,0,0]
[null,"PAYROLL BURDEN:",null,{"$f":"SUM(D261*D263)","v":0},{"$f":"SUM(E261*E263)","v":0},0,0,0,0,0,0,0,0,0,0,0,0,0,0,0,0,0,0]
[null,"TOTAL WORKDAYS:",null,{"$f":"SUM(D262:W262)","v":0}]
[null,"TOTAL PAYROLL BURDEN:",null,{"$f":"SUM(D265:W265)","v":0}]
[null,"AVERAGE COST PER HOUR:",null,{"$f":"SUM(D267/(D266*8))","v":{"$error":"#DIV/0!"}}]
[null,"GENERAL OVERHEAD:",{"$f":"RAIL.SUB5_CONSULTANT_OVERHEAD","v":0},{"$f":"SUM(D267*C269)","v":0}]
[null,"SUBTOTAL:",null,{"$f":"SUM(D267+D269)","v":0}]
[null,"COMPARATIVE FEE:",{"$f":"RAIL.SUB5_CONSULTANT_FEE","v":0.09},{"$f":"SUM(D270*C271)","v":0}]
[null,"FACILITIES COST OF CAPITAL:",{"$f":"RAIL.SUB5_COSTofCAPITAL","v":0},{"$f":"SUM(D267*C272)","v":0}]
[null,"TOTAL:",null,{"$f":"SUM(D270:D272)","v":0}]
[null,"DIRECT EXPENSES:",null,{"$f":"RAIL.SUB5_DIRECT_NONSALARY_TOTAL","v":0}]
[null,"RAIL GRAND TOTAL:",null,{"$f":"SUM(D273:D274)","v":0}]

{"sheet":"Rail-Exp-Sub5","index":148,"n_rows":46,"n_cols":8,"rows_kept":46,"cut":false,"hidden":true,"merged":[[0,0,0,7],[1,3,1,7]]}
["RAIL--DIRECT EXPENSES - SUBCONSULTANT 5"]
["TIP NUMBER",{"$f":"TIP.NUMBER","v":0},"FIRM:",{"$f":"'Rail-Sub5'!G3","v":"CONSULTANT NAME"}]
[]
["GENERAL PROJECT WORK:","ITEM","QTY","DESCRIPTION",null,null,"UNIT COST "]
[null,"Travel:"]
[null,"Sedan",0,"Trip(s) @",0,"miles @",{"$f":"SEDAN","v":0.7},{"$f":"SUM(C6*E6*G6)","v":0}]
[null,"Carry All",0,"Trip(s) @",0,"miles @",{"$f":"CARRYALL","v":0.72},{"$f":"SUM(C7*E7*G7)","v":0}]
[null,"Car Rental",null,null,0,"days @ ",{"$f":"CARRENTAL","v":50},{"$f":"SUM(E8*G8)","v":0}]
[null,"Gas for Rental",null,null,0,"miles @",{"$f":"GASforRENTAL","v":0.2},{"$f":"SUM(E9*G9)","v":0}]
[null,"Parking:",0,"Trip(s) @",null,null,{"$f":"PARKING","v":3},{"$f":"SUM(C10*G10)","v":0}]
[null,"Per Diem:",0,"Breakfast",null,null,{"$f":"BREAKFAST","v":10.1},{"$f":"SUM(C11*G11)","v":0}]
[null,null,0,"Lunch",null,null,{"$f":"LUNCH","v":13.3},0]
[null,null,0,"Dinner",null,null,{"$f":"DINNER","v":23.1},0]
[null,null,0,"Lodging",null,null,{"$f":"LODGING_LUMP.SUM","v":95},0]
[null,"Reproduction:",0,"8 1/2 x 11 B & W Copies @",null,null,{"$f":"LETTERCOPIES","v":0.14000000000000001},0]
[null,null,0,"11 x 17 B & W Copies @",null,null,{"$f":"LEDGERCOPIES","v":0.34},0]
[null,null,0,"8 1/2 x 11 Color Copies @",null,null,{"$f":"LETTERCOLOR","v":0.83},0]
[null,null,0,"11 x 17 Color Copies @",null,null,{"$f":"LEDGERCOLOR","v":1.66},0]
[null,null,0,"SQ. FT. of Plots (B & W or Color)",null,"<65 SQ. FT.*",{"$f":"ROLLPLOTSshort","v":6.5},0]
[null,null,0,"SQ. FT. of Plots (B & W or Color)",null,">65 SQ. FT.*",{"$f":"ROLLPLOTSlong","v":1.5},0]
[null,null,0,"Cover(s) @",null,null,{"$f":"COVERS","v":0.5},0]
[null,null,0,"Binder(s) @",null,null,{"$f":"BINDERS","v":0.5},0]
[null,null,0,"Blueprints - 8 1/2 x 11 @",null,null,{"$f":"BLUEPRINTSLETTER","v":0.35},0]
[null,null,0,"Blueprints - 42 x 72 @",null,null,{"$f":"BLUEPRINTSLARGE","v":1.3},0]
[null,"Film and Developing:",0,"Roll(s) @",null,null,{"$f":"FILM","v":20},0]
[null,null,null,null,null,"Subtotal",null,{"$f":"SUM(H6:H25)","v":0}]
["MAPS AND DOCUMENTS:","ITEM","QTY","DESCRIPTION",null,null,"UNIT COST "]
[null,"County Tax Maps:",0,"Map(s) @",null,null,{"$f":"County_Tax_Maps","v":7},{"$f":"SUM(C28*G28)","v":0}]
[null,"USGS Maps:",0,"Map(s) @",null,null,{"$f":"USGSMAPS","v":7},{"$f":"SUM(C29*G29)","v":0}]
[null,null,null,null,null,"Subtotal",null,{"$f":"SUM(H28:H29)","v":0}]
["Miscellaneous Other","ITEM","QTY","DESCRIPTION",null,null,"UNIT COST "]
[null,null,null,null,null,null,null,{"$f":"SUM(C32*G32)","v":0}]
[null,null,null,null,null,null,null,{"$f":"SUM(C33*G33)","v":0}]
[null,null,null,null,null,null,null,0]
[null,null,null,null,null,null,null,0]
[null,null,null,null,null,null,null,0]
[null,null,null,null,null,null,null,0]
[null,null,null,null,null,null,null,0]
[null,null,null,null,null,null,null,{"$f":"SUM(C39*G39)","v":0}]
[null,null,null,null,null,null,null,{"$f":"SUM(C40*G40)","v":0}]
[null,null,null,null,null,null,null,{"$f":"SUM(C41*G41)","v":0}]
[null,null,null,null,null,"Subtotal",null,{"$f":"SUM(H32:H41)","v":0}]
[]
[null,null,null,null,null,"TOTAL",null,{"$f":"SUM(H26+H30+H42)","v":0}]
[]
[null,"* Sum of all plots "]

{"sheet":"Rail-Sub6","index":149,"n_rows":275,"n_cols":47,"rows_kept":275,"cut":false,"hidden":true,"merged":[[280,8,280,9],[280,10,280,11],[283,8,283,13],[284,8,284,9],[284,10,284,11],[285,8,285,9],[285,10,285,11],[258,26,258,27],[259,26,259,27],[194,26,194,27],[195,26,195,27],[196,26,196,27],[274,1,275,1],[274,3,275,4],[278,8,278,13],[279,8,279,9],[279,10,279,11],[252,26,252,27],[253,26,253,27],[254,26,254,27],[255,26,255,27],[256,26,256,27],[257,26,257,27],[197,26,197,27],[198,26,198,27],[199,26,199,27],[200,26,200,27],[201,26,201,27],[202,26,202,27],[203,26,203,27],[204,26,204,27],[205,26,205,27],[206,26,206,27],[185,26,185,27],[186,26,186,27],[187,26,187,27],[188,26,188,27],[189,26,189,27],[190,26,190,27],[191,26,191,27],[192,26,192,27],[193,26,193,27],[94,26,94,27],[95,26,95,27],[96,26,96,27],[97,26,97,27],[98,26,98,27],[88,26,88,27],[89,26,89,27],[90,26,90,27],[91,26,91,27],[92,26,92,27],[93,26,93,27],[82,26,82,27],[83,26,83,27],[84,26,84,27],[85,26,85,27],[86,26,86,27],[87,26,87,27],[76,26,76,27],[77,26,77,27],[78,26,78,27],[79,26,79,27],[80,26,80,27],[81,26,81,27],[70,26,70,27],[71,26,71,27],[72,26,72,27],[73,26,73,27],[74,26,74,27],[75,26,75,27],[64,26,64,27],[65,26,65,27],[66,26,66,27],[67,26,67,27],[68,26,68,27],[69,26,69,27],[58,26,58,27],[59,26,59,27],[60,26,60,27],[61,26,61,27],[62,26,62,27],[63,26,63,27],[52,26,52,27],[53,26,53,27],[54,26,54,27],[55,26,55,27],[56,26,56,27],[57,26,57,27],[46,26,46,27],[47,26,47,27],[48,26,48,27],[49,26,49,27],[50,26,50,27],[51,26,51,27],[40,26,40,27],[41,26,41,27],[42,26,42,27],[43,26,43,27],[44,26,44,27],[45,26,45,27],[34,26,34,27],[35,26,35,27],[36,26,36,27],[37,26,37,27],[38,26,38,27],[39,26,39,27],[28,26,28,27],[29,26,29,27],[30,26,30,27],[31,26,31,27],[32,26,32,27],[33,26,33,27],[22,26,22,27],[23,26,23,27],[24,26,24,27],[25,26,25,27],[26,26,26,27],[27,26,27,27],[16,26,16,27],[17,26,17,27],[18,26,18,27],[19,26,19,27],[20,26,20,27],[21,26,21,27],[10,26,10,27],[11,26,11,27],[12,26,12,27],[13,26,13,27],[14,26,14,27],[15,26,15,27],[6,18,9,18],[6,19,9,19],[6,20,9,20],[6,21,9,21],[6,22,9,22],[8,26,8,27],[6,12,9,12],[6,13,9,13],[6,14,9,14],[6,15,9,15],[6,16,9,16],[6,17,9,17],[4,3,4,22],[6,3,9,3],[6,4,9,4],[6,5,9,5],[6,6,9,6],[6,7,9,7],[6,8,9,8],[6,9,9,9],[6,10,9,10],[6,11,9,11],[0,0,1,13],[2,1,2,4],[2,6,2,7],[2,10,2,11],[2,15,2,16],[3,1,3,4],[3,6,3,7],[3,10,3,11],[3,15,3,16],[207,26,207,27],[208,26,208,27],[209,26,209,27],[210,26,210,27],[211,26,211,27],[212,26,212,27],[213,26,213,27],[214,26,214,27],[225,26,225,27],[226,26,226,27],[227,26,227,27],[228,26,228,27],[229,26,229,27],[230,26,230,27],[231,26,231,27],[232,26,232,27],[215,26,215,27],[216,26,216,27],[217,26,217,27],[218,26,218,27],[219,26,219,27],[220,26,220,27],[221,26,221,27],[222,26,222,27],[223,26,223,27],[117,26,117,27],[118,26,118,27],[119,26,119,27],[120,26,120,27],[251,26,251,27],[242,26,242,27],[243,26,243,27],[244,26,244,27],[245,26,245,27],[246,26,246,27],[247,26,247,27],[248,26,248,27],[249,26,249,27],[250,26,250,27],[233,26,233,27],[234,26,234,27],[235,26,235,27],[236,26,236,27],[237,26,237,27],[238,26,238,27],[239,26,239,27],[240,26,240,27],[241,26,241,27],[224,26,224,27],[108,26,108,27],[109,26,109,27],[110,26,110,27],[111,26,111,27],[112,26,112,27],[113,26,113,27],[114,26,114,27],[115,26,115,27],[116,26,116,27],[99,26,99,27],[100,26,100,27],[101,26,101,27],[102,26,102,27],[103,26,103,27],[104,26,104,27],[105,26,105,27],[106,26,106,27],[107,26,107,27],[121,26,121,27],[122,26,122,27],[123,26,123,27],[124,26,124,27],[125,26,125,27],[126,26,126,27],[127,26,127,27],[128,26,128,27],[129,26,129,27],[130,26,130,27],[131,26,131,27],[132,26,132,27],[133,26,133,27],[134,26,134,27],[135,26,135,27],[136,26,136,27],[137,26,137,27],[138,26,138,27],[139,26,139,27],[140,26,140,27],[141,26,141,27],[142,26,142,27],[143,26,143,27],[144,26,144,27],[145,26,145,27],[146,26,146,27],[147,26,147,27],[160,26,160,27],[161,26,161,27],[162,26,162,27],[163,26,163,27],[164,26,164,27],[165,26,165,27],[148,26,148,27],[149,26,149,27],[150,26,150,27],[151,26,151,27],[152,26,152,27],[153,26,153,27],[154,26,154,27],[155,26,155,27],[156,26,156,27],[184,26,184,27],[3,26,3,27],[9,0,9,1],[175,26,175,27],[176,26,176,27],[177,26,177,27],[178,26,178,27],[179,26,179,27],[180,26,180,27],[181,26,181,27],[182,26,182,27],[183,26,183,27],[166,26,166,27],[167,26,167,27],[168,26,168,27],[169,26,169,27],[170,26,170,27],[171,26,171,27],[172,26,172,27],[173,26,173,27],[174,26,174,27],[157,26,157,27],[158,26,158,27],[159,26,159,27]]}
["                                                                      SUBCONSULTANT 6 - RAIL DIVISION BREAKDOWN WORKSHEET -- ENTER WORKHOURS"]
[]
["PROJECT DESCRIPTION: ",{"$f":"PROJECT.DESCRIPTION","v":0},null,null,null,"FIRM:  ",{"$f":"RAIL.SUB6_CONSULTANT_NAME","v":"CONSULTANT NAME"},null,"TASK ORDER NUMBER:",null,{"$f":"TASK.ORDER.NUMBER","v":0},null,"DATE PREPARED:",{"$f":"IF(SCOPE.MANDAY.ESTIMATE.PREPARED.BY.DATE=\"\",\"\",SCOPE.MANDAY.ESTIMATE.PREPARED.BY.DATE)","v":""}]
["PREPARED BY:  ",{"$f":"IF(SCOPE.MANDAY.ESTIMATE.PREPARED.BY=\"\",\"\",SCOPE.MANDAY.ESTIMATE.PREPARED.BY)","v":""},null,null,null,"TIP NUMBER:",{"$f":"TIP.NUMBER","v":0},null,"WBS NUMBER:",null,{"$f":"WBS.NUMBER","v":""},null,"REVISION DATE:",{"$f":"IF(SCOPE.MANDAY.ESTIMATE.APPROVED.BY.DATE=\"\",\"\",SCOPE.MANDAY.ESTIMATE.APPROVED.BY.DATE)","v":""},null,null,null,null,null,null,null,null,null,null,null,"TASK TYPE:","Select Task Type"]
[null,null,null,"ESTIMATED WORKHOURS"]
[null,null,"EMPLOYEE NAMES",{"$f":"IF('PEF CLASSIFICATION SHEET'!D1211=\"\",\"\",LEFT('PEF CLASSIFICATION SHEET'!D1211,4))","v":""},{"$f":"IF('PEF CLASSIFICATION SHEET'!D1212=\"\",\"\",LEFT('PEF CLASSIFICATION SHEET'!D1212,4))","v":""},{"$f":"IF('PEF CLASSIFICATION SHEET'!D1213=\"\",\"\",LEFT('PEF CLASSIFICATION SHEET'!D1213,4))","v":""},{"$f":"IF('PEF CLASSIFICATION SHEET'!D1214=\"\",\"\",LEFT('PEF CLASSIFICATION SHEET'!D1214,4))","v":""},{"$f":"IF('PEF CLASSIFICATION SHEET'!D1215=\"\",\"\",LEFT('PEF CLASSIFICATION SHEET'!D1215,4))","v":""},{"$f":"IF('PEF CLASSIFICATION SHEET'!D1216=\"\",\"\",LEFT('PEF CLASSIFICATION SHEET'!D1216,4))","v":""},{"$f":"IF('PEF CLASSIFICATION SHEET'!D1217=\"\",\"\",LEFT('PEF CLASSIFICATION SHEET'!D1217,4))","v":""},{"$f":"IF('PEF CLASSIFICATION SHEET'!D1218=\"\",\"\",LEFT('PEF CLASSIFICATION SHEET'!D1218,4))","v":""},{"$f":"IF('PEF CLASSIFICATION SHEET'!D1219=\"\",\"\",LEFT('PEF CLASSIFICATION SHEET'!D1219,4))","v":""},{"$f":"IF('PEF CLASSIFICATION SHEET'!D1220=\"\",\"\",LEFT('PEF CLASSIFICATION SHEET'!D1220,4))","v":""},{"$f":"IF('PEF CLASSIFICATION SHEET'!D1221=\"\",\"\",LEFT('PEF CLASSIFICATION SHEET'!D1221,4))","v":""},{"$f":"IF('PEF CLASSIFICATION SHEET'!D1222=\"\",\"\",LEFT('PEF CLASSIFICATION SHEET'!D1222,4))","v":""},{"$f":"IF('PEF CLASSIFICATION SHEET'!D1223=\"\",\"\",LEFT('PEF CLASSIFICATION SHEET'!D1223,4))","v":""},{"$f":"IF('PEF CLASSIFICATION SHEET'!D1224=\"\",\"\",LEFT('PEF CLASSIFICATION SHEET'!D1224,4))","v":""},{"$f":"IF('PEF CLASSIFICATION SHEET'!D1225=\"\",\"\",LEFT('PEF CLASSIFICATION SHEET'!D1225,4))","v":""},{"$f":"IF('PEF CLASSIFICATION SHEET'!D1226=\"\",\"\",LEFT('PEF CLASSIFICATION SHEET'!D1226,4))","v":""},{"$f":"IF('PEF CLASSIFICATION SHEET'!D1227=\"\",\"\",LEFT('PEF CLASSIFICATION SHEET'!D1227,4))","v":""},{"$f":"IF('PEF CLASSIFICATION SHEET'!D1228=\"\",\"\",LEFT('PEF CLASSIFICATION SHEET'!D1228,4))","v":""},{"$f":"IF('PEF CLASSIFICATION SHEET'!D1229=\"\",\"\",LEFT('PEF CLASSIFICATION SHEET'!D1229,4))","v":""},{"$f":"IF('PEF CLASSIFICATION SHEET'!D1230=\"\",\"\",LEFT('PEF CLASSIFICATION SHEET'!D1230,4))","v":""}]
[null,null,null,{"$f":"IF('PEF CLASSIFICATION SHEET'!C1211=\"\",\"\",'PEF CLASSIFICATION SHEET'!C1211)","v":""},{"$f":"IF('PEF CLASSIFICATION SHEET'!C1212=\"\",\"\",'PEF CLASSIFICATION SHEET'!C1212)","v":""},{"$f":"IF('PEF CLASSIFICATION SHEET'!C1213=\"\",\"\",'PEF CLASSIFICATION SHEET'!C1213)","v":""},{"$f":"IF('PEF CLASSIFICATION SHEET'!C1214=\"\",\"\",'PEF CLASSIFICATION SHEET'!C1214)","v":""},{"$f":"IF('PEF CLASSIFICATION SHEET'!C1215=\"\",\"\",'PEF CLASSIFICATION SHEET'!C1215)","v":""},{"$f":"IF('PEF CLASSIFICATION SHEET'!C1216=\"\",\"\",'PEF CLASSIFICATION SHEET'!C1216)","v":""},{"$f":"IF('PEF CLASSIFICATION SHEET'!C1217=\"\",\"\",'PEF CLASSIFICATION SHEET'!C1217)","v":""},{"$f":"IF('PEF CLASSIFICATION SHEET'!C1218=\"\",\"\",'PEF CLASSIFICATION SHEET'!C1218)","v":""},{"$f":"IF('PEF CLASSIFICATION SHEET'!C1219=\"\",\"\",'PEF CLASSIFICATION SHEET'!C1219)","v":""},{"$f":"IF('PEF CLASSIFICATION SHEET'!C1220=\"\",\"\",'PEF CLASSIFICATION SHEET'!C1220)","v":""},{"$f":"IF('PEF CLASSIFICATION SHEET'!C1221=\"\",\"\",'PEF CLASSIFICATION SHEET'!C1221)","v":""},{"$f":"IF('PEF CLASSIFICATION SHEET'!C1222=\"\",\"\",'PEF CLASSIFICATION SHEET'!C1222)","v":""},{"$f":"IF('PEF CLASSIFICATION SHEET'!C1223=\"\",\"\",'PEF CLASSIFICATION SHEET'!C1223)","v":""},{"$f":"IF('PEF CLASSIFICATION SHEET'!C1224=\"\",\"\",'PEF CLASSIFICATION SHEET'!C1224)","v":""},{"$f":"IF('PEF CLASSIFICATION SHEET'!C1225=\"\",\"\",'PEF CLASSIFICATION SHEET'!C1225)","v":""},{"$f":"IF('PEF CLASSIFICATION SHEET'!C1226=\"\",\"\",'PEF CLASSIFICATION SHEET'!C1226)","v":""},{"$f":"IF('PEF CLASSIFICATION SHEET'!C1227=\"\",\"\",'PEF CLASSIFICATION SHEET'!C1227)","v":""},{"$f":"IF('PEF CLASSIFICATION SHEET'!C1228=\"\",\"\",'PEF CLASSIFICATION SHEET'!C1228)","v":""},{"$f":"IF('PEF CLASSIFICATION SHEET'!C1229=\"\",\"\",'PEF CLASSIFICATION SHEET'!C1229)","v":""},{"$f":"IF('PEF CLASSIFICATION SHEET'!C1230=\"\",\"\",'PEF CLASSIFICATION SHEET'!C1230)","v":""},"SUB-","%","PEF"]
[null,null,null,null,null,null,null,null,null,null,null,null,null,null,null,null,null,null,null,null,null,null,null,"TOTAL","OF","ESTIMATE"]
["TASK NO.","TASK DESCRIPTION","CLASSIFICATION",null,null,null,null,null,null,null,null,null,null,null,null,null,null,null,null,null,null,null,null,null,"PROJECT",null,"COMMENTS",null,null,null,null,null,null,null,"Select Task Type","Grade Separation","CEI","Track Design","Signal Design","Environmental","Planning"]
[{"$f":"IF($AA$4=\"Select Task Type\",\"Select the TASK TYPE from drop down list in cell AA4 to populate the task list\",IF($AA$4=\"Grade Separation\",\"You selected Grade Separation\",IF($AA$4=\"CEI\",\"You selected CEI\",IF($AA$4=\"Track Design\",\"You selected Track Design.  When the task is ALL CAPS, this is a header row, if you choose to key mandays associated with that header row the row total will not be displayed but the column and overall total will sum appropriately\",IF($AA$4=\"Signal Design\",\"You selected Signal Design, note that this is initially a blank task list; so please create a task list from scratch\",IF($AA$4=\"Environmental\",\"You selected Environmental.  When the task is ALL CAPS, this is a header row, if you choose to key mandays associated with that header row the row total will not be displayed but the column and overall total will sum appropriately\",IF($AA$4=\"Planning\",\"You selected Planning.  When the task is ALL CAPS, this is a header row, if you choose to key mandays associated with that header row the row total will not be displayed but the column and overall total will sum appropriately\",\"Select the TASK TYPE from drop down list in cell AA4 to populate the task list\")))))))","v":"Select the TASK TYPE from drop down list in cell AA4 to populate the task list"},null,null,null,null,null,null,null,null,null,null,null,null,null,null,null,null,null,null,null,null,null,null,null,null,null,null,null,null,null,null,null,null,null,null,"Grade Separation","Grade Separation","CEI","CEI","Track Design","Track Design","Signal Design","Signal Design","Environmental","Environmental","Planning","Planning"]
[{"$f":"IF(AG11=0,\"\",AG11)","v":""},{"$f":"IF(AH11=0,\"\",AH11)","v":""},null,null,null,null,null,null,null,null,null,null,null,null,null,null,null,null,null,null,null,null,null,{"$f":"IF(B11=\"\",0,IF(B11=\"DEMAND ASSESSMENT\",\"\",IF(B11=\"PROJECT SCOPING AND DATA COLLECTION\",\"\",IF(B11=\"PROJECT MANAGEMENT/PROJECT ADMINISTRATION\",\"\",IF((SUM(D11:W11)=0),0,SUM(D11:W11))))))","v":0},{"$f":"IF(SUM(D11:W11)=0,\"\",((SUM(D11:W11))/$X$261))","v":""},null,null,null,null,null,null,null,{"$f":"IF($AA$4=\"Select Task Type\",\"\",IF($AA$4=\"Grade Separation\",AJ11,IF($AA$4=\"CEI\",AL11,IF($AA$4=\"Track Design\",AN11,IF($AA$4=\"Signal Design\",AP11,IF($AA$4=\"Environmental\",AR11,IF($AA$4=\"Planning\",AT11,\"\")))))))","v":""},{"$f":"IF($AA$4=\"Select Task Type\",\"\",IF($AA$4=\"Grade Separation\",AK11,IF($AA$4=\"CEI\",AM11,IF($AA$4=\"Track Design\",AO11,IF($AA$4=\"Signal Design\",AQ11,IF($AA$4=\"Environmental\",AS11,IF($AA$4=\"Planning\",AU11,\"\")))))))","v":""},null,1,"Project Familiarization",1,"Project management and document review",1,"PROJECT MANAGEMENT/PROJECT ADMINISTRATION",null,null,"A","PROJECT SCOPING AND DATA COLLECTION",1,"DEMAND ASSESSMENT"]
[{"$f":"IF(AG12=0,\"\",AG12)","v":""},"",null,null,null,null,null,null,null,null,null,null,null,null,null,null,null,null,null,null,null,null,null,{"$f":"IF(B12=\"\",0,IF((SUM(D12:W12)=0),0,SUM(D12:W12)))","v":0},{"$f":"IF(SUM(D12:W12)=0,\"\",((SUM(D12:W12))/$X$261))","v":""},null,null,null,null,null,null,null,{"$f":"IF($AA$4=\"Select Task Type\",\"\",IF($AA$4=\"Grade Separation\",AJ12,IF($AA$4=\"CEI\",AL12,IF($AA$4=\"Track Design\",AN12,IF($AA$4=\"Signal Design\",AP12,IF($AA$4=\"Environmental\",AR12,IF($AA$4=\"Planning\",AT12,\"\")))))))","v":""},"",null,2,"Conceptual Design",2,"Track inspection",null,null,null,null,"A.1","Study Area Definition",null,"Review previous studies"]
["","",null,null,null,null,null,null,null,null,null,null,null,null,null,null,null,null,null,null,null,null,null,0,{"$f":"IF(SUM(D13:W13)=0,\"\",((SUM(D13:W13))/$X$261))","v":""},null,null,null,null,null,null,null,"","",null,3,"Construction Cost Estimate",3,"Roadway inspection",null,null,null,null,"A.2","Study Area Field Visit",null,"Interview XX, XX, and XX on near-term rail intermodal and break bulk plans"]
["","",null,null,null,null,null,null,null,null,null,null,null,null,null,null,null,null,null,null,null,null,null,0,"",null,null,null,null,null,null,null,"","",null,4,"Project Coordination",null,null,null,null,null,null,"A.3","Community Characteristics Report",null,"Estimate effects of various rail entities"]
["","",null,null,null,null,null,null,null,null,null,null,null,null,null,null,null,null,null,null,null,null,null,0,"",null,null,null,null,null,null,null,"","",null,null,null,null,null,null,null,null,null,"A.4","Local Land Use and Transportation Plans",null,"Estimate future growth in other bulk and break bulk commodities"]
["","",null,null,null,null,null,null,null,null,null,null,null,null,null,null,null,null,null,null,null,null,null,0,"",null,null,null,null,null,null,null,"","",null,null,null,null,null,null,null,null,null,"A.5","State and Federal Data Sources",null,"Incorporate State Freight Plan into market forecasts "]
["","",null,null,null,null,null,null,null,null,null,null,null,null,null,null,null,null,null,null,null,null,null,0,"",null,null,null,null,null,null,null,"","",null,null,null,null,null,null,null,null,null,"A.6 ","GeoEnvironmental Review",null,"Project port continued share against market growth"]
["","",null,null,null,null,null,null,null,null,null,null,null,null,null,null,null,null,null,null,null,null,null,0,"",null,null,null,null,null,null,null,"","",null,null,null,null,null,null,null,null,null,"A.7","GIS Data Layers and Aerial Photography",null,"Combine forecasts from various groups into a base line forecast"]
["","",null,null,null,null,null,null,null,null,null,null,null,null,null,null,null,null,null,null,null,null,null,0,"",null,null,null,null,null,null,null,"","",null,null,null,null,null,null,null,null,null,"A.8","Evaluation of Existing Transportation Facilities",null,"Develop an updated base forecast"]
["","",null,null,null,null,null,null,null,null,null,null,null,null,null,null,null,null,null,null,null,null,null,0,"",null,null,null,null,null,null,null,"","",null,null,null,null,null,null,null,null,null,"A.9","Traffic Forecast Request",null,"Compare with freight forecast in NC State Freight Plan, contrast against existing port rail capacity, identify delta required to accommodate additional traffic"]
["","",null,null,null,null,null,null,null,null,null,null,null,null,null,null,null,null,null,null,null,null,null,0,"",null,null,null,null,null,null,null,"","",null,null,null,null,null,null,null,null,null,"A.10","Project Data Sheet",null,"Add in empty return exports and revise forecast"]
["","",null,null,null,null,null,null,null,null,null,null,null,null,null,null,null,null,null,null,null,null,null,{"$f":"IF(B22=\"\",0,IF(B22=\"FUNCTIONAL TRACK DESIGN\",\"\",IF((SUM(D22:W22)=0),0,SUM(D22:W22))))","v":0},"",null,null,null,null,null,null,null,"","",null,null,null,null,null,2,"FUNCTIONAL TRACK DESIGN",null,null,"A.11","Start of Study Letters",null,"Develop near-term outlook of market demand and system requirements"]
["","",null,null,null,null,null,null,null,null,null,null,null,null,null,null,null,null,null,null,null,null,null,{"$f":"IF(B23=\"\",0,IF((SUM(D23:W23)=0),0,SUM(D23:W23)))","v":0},"",null,null,null,null,null,null,null,"","",null,null,null,null,null,null,null,null,null,"A.12","Kickoff/Scoping Meeting",null,"Review operations and plans for XX, suggest if port rail facilities can accommodate projected growth"]
["","",null,null,null,null,null,null,null,null,null,null,null,null,null,null,null,null,null,null,null,null,null,{"$f":"IF(B24=\"\",0,IF((SUM(D24:W24)=0),0,SUM(D24:W24)))","v":0},"",null,null,null,null,null,null,null,"","",null,null,null,null,null,null,null,null,null,"A.13",null,null,"Identify conceptual rail capacity and prospects for service assuming successful XX service"]
["","",null,null,null,null,null,null,null,null,null,null,null,null,null,null,null,null,null,null,null,null,null,{"$f":"IF(B25=\"\",0,IF((SUM(D25:W25)=0),0,SUM(D25:W25)))","v":0},"",null,null,null,null,null,null,null,"","",null,null,null,null,null,null,null,null,null,"A.14",null,null,"Evaluate rail operations @ port to identify conflicts and opportunities to serve both intermodal and break bulk rail customers"]
["","",null,null,null,null,null,null,null,null,null,null,null,null,null,null,null,null,null,null,null,null,null,{"$f":"IF(B26=\"\",0,IF((SUM(D26:W26)=0),0,SUM(D26:W26)))","v":0},"",null,null,null,null,null,null,null,"","",null,null,null,null,null,null,null,null,null,"A.15",null,null,"Develop near-term outlook of market demand and system requirements"]
["","",null,null,null,null,null,null,null,null,null,null,null,null,null,null,null,null,null,null,null,null,null,{"$f":"IF(B27=\"\",0,IF((SUM(D27:W27)=0),\"\",SUM(D27:W27)))","v":0},"",null,null,null,null,null,null,null,"","",null,null,null,null,null,null,null,null,null,"A.16"]
["","",null,null,null,null,null,null,null,null,null,null,null,null,null,null,null,null,null,null,null,null,null,0,"",null,null,null,null,null,null,null,"","",null,null,null,null,null,null,null,null,null,"A.17"]
["","",null,null,null,null,null,null,null,null,null,null,null,null,null,null,null,null,null,null,null,null,null,{"$f":"IF(B29=\"\",0,IF(B29=\"TRAFFIC CAPACITY ANALYSIS AND ACCIDENT ANALYSIS\",\"\",IF((SUM(D29:W29)=0),0,SUM(D29:W29))))","v":0},"",null,null,null,null,null,null,null,"","",null,null,null,null,null,null,null,null,null,"B","TRAFFIC CAPACITY ANALYSIS AND ACCIDENT ANALYSIS"]
["","",null,null,null,null,null,null,null,null,null,null,null,null,null,null,null,null,null,null,null,null,null,{"$f":"IF(B30=\"\",0,IF((SUM(D30:W30)=0),0,SUM(D30:W30)))","v":0},"",null,null,null,null,null,null,null,"","",null,null,null,null,null,null,null,null,null,"B.1","Coordinate with Stantec & incorporate the analysis"]
["","",null,null,null,null,null,null,null,null,null,null,null,null,null,null,null,null,null,null,null,null,null,{"$f":"IF(B31=\"\",0,IF((SUM(D31:W31)=0),0,SUM(D31:W31)))","v":0},"",null,null,null,null,null,null,null,"","",null,null,null,null,null,null,null,null,null,"B.2"]
["","",null,null,null,null,null,null,null,null,null,null,null,null,null,null,null,null,null,null,null,null,null,{"$f":"IF(B32=\"\",0,IF(B32=\"PORT MASTER PLAN REVIEW\",\"\",IF((SUM(D32:W32)=0),0,SUM(D32:W32))))","v":0},"",null,null,null,null,null,null,null,"","",null,null,null,null,null,null,null,null,null,"B.3",null,2,"PORT MASTER PLAN REVIEW"]
["","",null,null,null,null,null,null,null,null,null,null,null,null,null,null,null,null,null,null,null,null,null,{"$f":"IF(B33=\"\",0,IF(B33=\"PRELIMINARY TRACK DESIGN\",\"\",IF((SUM(D33:W33)=0),0,SUM(D33:W33))))","v":0},"",null,null,null,null,null,null,null,"","",null,null,null,null,null,3,"PRELIMINARY TRACK DESIGN",null,null,"B.4",null,null,"Identify area needed to accommodate each targeted market"]
["","",null,null,null,null,null,null,null,null,null,null,null,null,null,null,null,null,null,null,null,null,null,{"$f":"IF(B34=\"\",0,IF((SUM(D34:W34)=0),0,SUM(D34:W34)))","v":0},"",null,null,null,null,null,null,null,"","",null,null,null,null,null,null,null,null,null,"B.5",null,null,"Assess ability to meet current and projected needs"]
["","",null,null,null,null,null,null,null,null,null,null,null,null,null,null,null,null,null,null,null,null,null,{"$f":"IF(B35=\"\",0,IF((SUM(D35:W35)=0),0,SUM(D35:W35)))","v":0},"",null,null,null,null,null,null,null,"","",null,null,null,null,null,null,null,null,null,"B.6",null,null,"Coordinate with Port regarding future Port plans"]
["","",null,null,null,null,null,null,null,null,null,null,null,null,null,null,null,null,null,null,null,null,null,{"$f":"IF(B36=\"\",0,IF(B36=\"PROJECT PURPOSE AND NEED\",\"\",IF((SUM(D36:W36)=0),0,SUM(D36:W36))))","v":0},"",null,null,null,null,null,null,null,"","",null,null,null,null,null,null,null,null,null,"C","PROJECT PURPOSE AND NEED",null,"Develop recommendations to layout and/or processes to meet anticipated needs while not conflicting or constraining future activities"]
["","",null,null,null,null,null,null,null,null,null,null,null,null,null,null,null,null,null,null,null,null,null,{"$f":"IF(B37=\"\",0,IF((SUM(D37:W37)=0),0,SUM(D37:W37)))","v":0},"",null,null,null,null,null,null,null,"","",null,null,null,null,null,null,null,null,null,"C.1","Preliminary Purpose and Need",null,"Prepare draft port layout"]
["","",null,null,null,null,null,null,null,null,null,null,null,null,null,null,null,null,null,null,null,null,null,0,"",null,null,null,null,null,null,null,"","",null,null,null,null,null,null,null,null,null,"C.2","Final Purpose and Need Memorandum",null,"Revise per NCDOT comments and prepare final port layout"]
["","",null,null,null,null,null,null,null,null,null,null,null,null,null,null,null,null,null,null,null,null,null,0,"",null,null,null,null,null,null,null,"","",null,null,null,null,null,null,null,null,null,"C.3"]
["","",null,null,null,null,null,null,null,null,null,null,null,null,null,null,null,null,null,null,null,null,null,0,"",null,null,null,null,null,null,null,"","",null,null,null,null,null,null,null,null,null,"C.4"]
["","",null,null,null,null,null,null,null,null,null,null,null,null,null,null,null,null,null,null,null,null,null,0,"",null,null,null,null,null,null,null,"","",null,null,null,null,null,null,null,null,null,"C.5"]
["","",null,null,null,null,null,null,null,null,null,null,null,null,null,null,null,null,null,null,null,null,null,0,"",null,null,null,null,null,null,null,"","",null,null,null,null,null,null,null,null,null,"C.6"]
["","",null,null,null,null,null,null,null,null,null,null,null,null,null,null,null,null,null,null,null,null,null,0,"",null,null,null,null,null,null,null,"","",null,null,null,null,null,null,null,null,null,"C.7"]
["","",null,null,null,null,null,null,null,null,null,null,null,null,null,null,null,null,null,null,null,null,null,{"$f":"IF(B44=\"\",0,IF(B44=\"RAIL INVENTORY AND REVIEW OF EXISTING OPERATIONS\",\"\",IF(B44=\"DEVELOPMENT AND EVALUATION OF DESIGN ALTERNATIVES\",\"\",IF(B44=\"FINAL TRACK DESIGN\",\"\",IF((SUM(D44:W44)=0),0,SUM(D44:W44))))))","v":0},"",null,null,null,null,null,null,null,"","",null,null,null,null,null,4,"FINAL TRACK DESIGN",null,null,"D","DEVELOPMENT AND EVALUATION OF DESIGN ALTERNATIVES",3,"RAIL INVENTORY AND REVIEW OF EXISTING OPERATIONS"]
["","",null,null,null,null,null,null,null,null,null,null,null,null,null,null,null,null,null,null,null,null,null,{"$f":"IF(B45=\"\",0,IF((SUM(D45:W45)=0),0,SUM(D45:W45)))","v":0},"",null,null,null,null,null,null,null,"","",null,null,null,null,null,null,null,null,null,"D.1","Collaboration on Development of Design Alternatives",null,"Review Port facilities on the ground, identify acreage which could accommodate additional functions in support of rail operations"]
["","",null,null,null,null,null,null,null,null,null,null,null,null,null,null,null,null,null,null,null,null,null,0,"",null,null,null,null,null,null,null,"","",null,null,null,null,null,null,null,null,null,"D.2","Qualitative Screening of Design Alternatives",null,"Review XX and XX track charts and track maps for Port"]
["","",null,null,null,null,null,null,null,null,null,null,null,null,null,null,null,null,null,null,null,null,null,0,"",null,null,null,null,null,null,null,"","",null,null,null,null,null,null,null,null,null,"D.3",null,null,"Review any related TSS"]
["","",null,null,null,null,null,null,null,null,null,null,null,null,null,null,null,null,null,null,null,null,null,0,"",null,null,null,null,null,null,null,"","",null,null,null,null,null,null,null,null,null,"D.4",null,null,"Conduct a windshield survey of XX line at Port and document observations"]
["","",null,null,null,null,null,null,null,null,null,null,null,null,null,null,null,null,null,null,null,null,null,0,"",null,null,null,null,null,null,null,"","",null,null,null,null,null,null,null,null,null,"D.5",null,null,"Identify opportunities to locate a future passing siding."]
["","",null,null,null,null,null,null,null,null,null,null,null,null,null,null,null,null,null,null,null,null,null,0,"",null,null,null,null,null,null,null,"","",null,null,null,null,null,null,null,null,null,"D.6"]
["","",null,null,null,null,null,null,null,null,null,null,null,null,null,null,null,null,null,null,null,null,null,0,"",null,null,null,null,null,null,null,"","",null,null,null,null,null,null,null,null,null,"D.7"]
["","",null,null,null,null,null,null,null,null,null,null,null,null,null,null,null,null,null,null,null,null,null,{"$f":"IF(B52=\"\",0,IF(B52=\"BIOTIC RESOURCES\",\"\",IF((SUM(D52:W52)=0),0,SUM(D52:W52))))","v":0},"",null,null,null,null,null,null,null,"","",null,null,null,null,null,null,null,null,null,"E.3","BIOTIC RESOURCES"]
["","",null,null,null,null,null,null,null,null,null,null,null,null,null,null,null,null,null,null,null,null,null,{"$f":"IF(B53=\"\",0,IF((SUM(D53:W53)=0),0,SUM(D53:W53)))","v":0},"",null,null,null,null,null,null,null,"","",null,null,null,null,null,null,null,null,null,"E.3.a","Terrestrial Communities"]
["","",null,null,null,null,null,null,null,null,null,null,null,null,null,null,null,null,null,null,null,null,null,{"$f":"IF(B54=\"\",0,IF((SUM(D54:W54)=0),0,SUM(D54:W54)))","v":0},"",null,null,null,null,null,null,null,"","",null,null,null,null,null,null,null,null,null,"E.3.b","Terrestrial Wildlife"]
["","",null,null,null,null,null,null,null,null,null,null,null,null,null,null,null,null,null,null,null,null,null,{"$f":"IF(B55=\"\",0,IF(B55=\"CAPACITY AND VELOCITY\",\"\",IF((SUM(D55:W55)=0),0,SUM(D55:W55))))","v":0},"",null,null,null,null,null,null,null,"","",null,null,null,null,null,null,null,null,null,"E.3.c","Aquatic Communities and Wildlife",4,"CAPACITY AND VELOCITY"]
["","",null,null,null,null,null,null,null,null,null,null,null,null,null,null,null,null,null,null,null,null,null,{"$f":"IF(B56=\"\",0,IF((SUM(D56:W56)=0),0,SUM(D56:W56)))","v":0},"",null,null,null,null,null,null,null,"","",null,null,null,null,null,null,null,null,null,"E.3.d","Invasive Species",null,"Develop a level of service (LOS) classification for XX"]
["","",null,null,null,null,null,null,null,null,null,null,null,null,null,null,null,null,null,null,null,null,null,0,"",null,null,null,null,null,null,null,"","",null,null,null,null,null,null,null,null,null,"E.3.e",null,null,"Identify theoretical capacity XX based upon tonnage (GMT), GMT per train, and number of trains"]
["","",null,null,null,null,null,null,null,null,null,null,null,null,null,null,null,null,null,null,null,null,null,0,"",null,null,null,null,null,null,null,"","",null,null,null,null,null,null,null,null,null,"E.3.f",null,null,"Compare theoretical capacity with forecast train volumes"]
["","",null,null,null,null,null,null,null,null,null,null,null,null,null,null,null,null,null,null,null,null,null,0,"",null,null,null,null,null,null,null,"","",null,null,null,null,null,null,null,null,null,"E.3.g",null,null,"Observe operations to develop an estimate of current velocity (travel time over mileage) to/from XX"]
["","",null,null,null,null,null,null,null,null,null,null,null,null,null,null,null,null,null,null,null,null,null,0,"",null,null,null,null,null,null,null,"","",null,null,null,null,null,null,null,null,null,"E.3.h",null,null,"Review XX track charts and operating rules, assess for potential changes which could more effectively utilize existing capacity"]
["","",null,null,null,null,null,null,null,null,null,null,null,null,null,null,null,null,null,null,null,null,null,0,"",null,null,null,null,null,null,null,"","",null,null,null,null,null,null,null,null,null,"E.3.i",null,null,"Review related TSS to identify projects which could increase operating speeds and improve velocity"]
["","",null,null,null,null,null,null,null,null,null,null,null,null,null,null,null,null,null,null,null,null,null,{"$f":"IF(B62=\"\",0,IF(B62=\"JURISDICTIONAL ISSUES\",\"\",IF((SUM(D62:W62)=0),0,SUM(D62:W62))))","v":0},"",null,null,null,null,null,null,null,"","",null,null,null,null,null,null,null,null,null,"E.4","JURISDICTIONAL ISSUES"]
["","",null,null,null,null,null,null,null,null,null,null,null,null,null,null,null,null,null,null,null,null,null,{"$f":"IF(B63=\"\",0,IF((SUM(D63:W63)=0),0,SUM(D63:W63)))","v":0},"",null,null,null,null,null,null,null,"","",null,null,null,null,null,null,null,null,null,"E.4.a","Clean Water Act (CWA) Waters of the US"]
["","",null,null,null,null,null,null,null,null,null,null,null,null,null,null,null,null,null,null,null,null,null,{"$f":"IF(B64=\"\",0,IF((SUM(D64:W64)=0),0,SUM(D64:W64)))","v":0},"",null,null,null,null,null,null,null,"","",null,null,null,null,null,null,null,null,null,"E.4.b","CWA Permits"]
["","",null,null,null,null,null,null,null,null,null,null,null,null,null,null,null,null,null,null,null,null,null,{"$f":"IF(B65=\"\",0,IF((SUM(D65:W65)=0),0,SUM(D65:W65)))","v":0},"",null,null,null,null,null,null,null,"","",null,null,null,null,null,null,null,null,null,"E.4.c","Construction Moratoria"]
["","",null,null,null,null,null,null,null,null,null,null,null,null,null,null,null,null,null,null,null,null,null,{"$f":"IF(B66=\"\",0,IF((SUM(D66:W66)=0),0,SUM(D66:W66)))","v":0},"",null,null,null,null,null,null,null,"","",null,null,null,null,null,null,null,null,null,"E.4.d","Rivers and Harbors Act Section 10 Navigable Waters"]
["","",null,null,null,null,null,null,null,null,null,null,null,null,null,null,null,null,null,null,null,null,null,{"$f":"IF(B67=\"\",0,IF(B67=\"RAIL INFRASTRUCTURE IMPROVEMENTS\",\"\",IF((SUM(D67:W67)=0),0,SUM(D67:W67))))","v":0},"",null,null,null,null,null,null,null,"","",null,null,null,null,null,null,null,null,null,"E.4.e","Wetland and Stream Mitigation",5,"RAIL INFRASTRUCTURE IMPROVEMENTS"]
["","",null,null,null,null,null,null,null,null,null,null,null,null,null,null,null,null,null,null,null,null,null,{"$f":"IF(B68=\"\",0,IF((SUM(D68:W68)=0),0,SUM(D68:W68)))","v":0},"",null,null,null,null,null,null,null,"","",null,null,null,null,null,null,null,null,null,"E.4.f","Endangered Species Act Protected Species",null,"Review existing infrastructure"]
["","",null,null,null,null,null,null,null,null,null,null,null,null,null,null,null,null,null,null,null,null,null,0,"",null,null,null,null,null,null,null,"","",null,null,null,null,null,null,null,null,null,"E.4.g","Essential Fish Habitat",null,"Determine potential needs based on growth"]
["","",null,null,null,null,null,null,null,null,null,null,null,null,null,null,null,null,null,null,null,null,null,0,"",null,null,null,null,null,null,null,"","",null,null,null,null,null,null,null,null,null,"E.4.h",null,null,"Suggest potential enhancements to address future needs (X scenarios)"]
["","",null,null,null,null,null,null,null,null,null,null,null,null,null,null,null,null,null,null,null,null,null,0,"",null,null,null,null,null,null,null,"","",null,null,null,null,null,null,null,null,null,"E.4.i",null,null,"Coordinate with NCDOT and others to consider the capacity of XX"]
["","",null,null,null,null,null,null,null,null,null,null,null,null,null,null,null,null,null,null,null,null,null,0,"",null,null,null,null,null,null,null,"","",null,null,null,null,null,null,null,null,null,"E.4.j",null,null,"Develop conceptual recommendations to improve efficiency of operations between XX and YY"]
["","",null,null,null,null,null,null,null,null,null,null,null,null,null,null,null,null,null,null,null,null,null,0,"",null,null,null,null,null,null,null,"","",null,null,null,null,null,null,null,null,null,"E.4.k"]
["","",null,null,null,null,null,null,null,null,null,null,null,null,null,null,null,null,null,null,null,null,null,0,"",null,null,null,null,null,null,null,"","",null,null,null,null,null,null,null,null,null,"E.4.l"]
["","",null,null,null,null,null,null,null,null,null,null,null,null,null,null,null,null,null,null,null,null,null,0,"",null,null,null,null,null,null,null,"","",null,null,null,null,null,null,null,null,null,"E.5","NRTR Document"]
[{"$f":"IF(AG76=0,\"\",AG76)","v":""},"",null,null,null,null,null,null,null,null,null,null,null,null,null,null,null,null,null,null,null,null,null,0,"",null,null,null,null,null,null,null,{"$f":"IF($AA$4=\"Select Task Type\",\"\",IF($AA$4=\"Grade Separation\",AJ76,IF($AA$4=\"CEI\",AL76,IF($AA$4=\"Track Design\",AN76,IF($AA$4=\"Signal Design\",AP76,IF($AA$4=\"Environmental\",AR76,IF($AA$4=\"Planning\",AT76,\"\")))))))","v":""},"",null,null,null,null,null,null,null,null,null,"E.5.a"]
["","",null,null,null,null,null,null,null,null,null,null,null,null,null,null,null,null,null,null,null,null,null,0,{"$f":"IF(SUM(D77:W77)=0,\"\",((SUM(D77:W77))/$X$261))","v":""},null,null,null,null,null,null,null,"","",null,null,null,null,null,null,null,null,null,"E.5.b"]
["","",null,null,null,null,null,null,null,null,null,null,null,null,null,null,null,null,null,null,null,null,null,{"$f":"IF(B78=\"\",0,IF(B78=\"DEVELOP SUGGESTIONS FOR OPERATIONAL AND LOGISTICAL ENHANCEMENTS\",\"\",IF((SUM(D78:W78)=0),0,SUM(D78:W78))))","v":0},"",null,null,null,null,null,null,null,"","",null,null,null,null,null,null,null,null,null,"E.5.c",null,6,"DEVELOP SUGGESTIONS FOR OPERATIONAL AND LOGISTICAL ENHANCEMENTS"]
["","",null,null,null,null,null,null,null,null,null,null,null,null,null,null,null,null,null,null,null,null,null,{"$f":"IF(B79=\"\",0,IF((SUM(D79:W79)=0),0,SUM(D79:W79)))","v":0},"",null,null,null,null,null,null,null,"","",null,null,null,null,null,null,null,null,null,"E.5.d",null,null,"Study current operations and suggest changes that might enhance efficiency or reduce costs"]
["","",null,null,null,null,null,null,null,null,null,null,null,null,null,null,null,null,null,null,null,null,null,0,"",null,null,null,null,null,null,null,"","",null,null,null,null,null,null,null,null,null,"E.5.e",null,null,"Coordinate with NCAG to assure changes are allowable"]
["","",null,null,null,null,null,null,null,null,null,null,null,null,null,null,null,null,null,null,null,null,null,0,"",null,null,null,null,null,null,null,"","",null,null,null,null,null,null,null,null,null,"E.6","Jurisdictional Features Verification",null,"Develop option for development of temporary dray Port to XX"]
["","",null,null,null,null,null,null,null,null,null,null,null,null,null,null,null,null,null,null,null,null,null,0,"",null,null,null,null,null,null,null,"","",null,null,null,null,null,null,null,null,null,"E.6.a",null,null,"Summarize potential changes and corresponding actions"]
["","",null,null,null,null,null,null,null,null,null,null,null,null,null,null,null,null,null,null,null,null,null,0,"",null,null,null,null,null,null,null,"","",null,null,null,null,null,null,null,null,null,"E.6.b"]
["","",null,null,null,null,null,null,null,null,null,null,null,null,null,null,null,null,null,null,null,null,null,0,"",null,null,null,null,null,null,null,"","",null,null,null,null,null,null,null,null,null,"E.6.c"]
["","",null,null,null,null,null,null,null,null,null,null,null,null,null,null,null,null,null,null,null,null,null,0,"",null,null,null,null,null,null,null,"","",null,null,null,null,null,null,null,null,null,"E.6.d"]
["","",null,null,null,null,null,null,null,null,null,null,null,null,null,null,null,null,null,null,null,null,null,0,"",null,null,null,null,null,null,null,"","",null,null,null,null,null,null,null,null,null,"E.6.e"]
["","",null,null,null,null,null,null,null,null,null,null,null,null,null,null,null,null,null,null,null,null,null,{"$f":"IF(B87=\"\",0,IF(B87=\"HUMAN ENVIRONMENT FIELD WORK, ANALYSIS, AND DOCUMENTATION\",\"\",IF((SUM(D87:W87)=0),0,SUM(D87:W87))))","v":0},"",null,null,null,null,null,null,null,"","",null,null,null,null,null,null,null,null,null,"F","HUMAN ENVIRONMENT FIELD WORK, ANALYSIS, AND DOCUMENTATION"]
["","",null,null,null,null,null,null,null,null,null,null,null,null,null,null,null,null,null,null,null,null,null,{"$f":"IF(B88=\"\",0,IF(B88=\"ENVIRONMENTAL SCREENING\",\"\",IF((SUM(D88:W88)=0),0,SUM(D88:W88))))","v":0},"",null,null,null,null,null,null,null,"","",null,null,null,null,null,null,null,null,null,"F.1","Community Impact Assessment",7,"ENVIRONMENTAL SCREENING"]
["","",null,null,null,null,null,null,null,null,null,null,null,null,null,null,null,null,null,null,null,null,null,{"$f":"IF(B89=\"\",0,IF((SUM(D89:W89)=0),0,SUM(D89:W89)))","v":0},"",null,null,null,null,null,null,null,"","",null,null,null,null,null,null,null,null,null,"F.1.a","Identify Community Impact Study Area",null,"Develop GIS map of available data"]
["","",null,null,null,null,null,null,null,null,null,null,null,null,null,null,null,null,null,null,null,null,null,0,"",null,null,null,null,null,null,null,"","",null,null,null,null,null,null,null,null,null,"F.1.b","Community Field Review",null,"Develop list of \"red flag\" issues"]
["","",null,null,null,null,null,null,null,null,null,null,null,null,null,null,null,null,null,null,null,null,null,0,"",null,null,null,null,null,null,null,"","",null,null,null,null,null,null,null,null,null,"F.1.c","Socioeconomic Data"]
["","",null,null,null,null,null,null,null,null,null,null,null,null,null,null,null,null,null,null,null,null,null,0,"",null,null,null,null,null,null,null,"","",null,null,null,null,null,null,null,null,null,"F.1.d","Community Facilities and Services"]
["","",null,null,null,null,null,null,null,null,null,null,null,null,null,null,null,null,null,null,null,null,null,0,"",null,null,null,null,null,null,null,"","",null,null,null,null,null,null,null,null,null,"F.1.e","Local/Regional Land Use and Development Plans"]
["","",null,null,null,null,null,null,null,null,null,null,null,null,null,null,null,null,null,null,null,null,null,0,"",null,null,null,null,null,null,null,"","",null,null,null,null,null,null,null,null,null,"F.1.f","Project Impact Assessment"]
["","",null,null,null,null,null,null,null,null,null,null,null,null,null,null,null,null,null,null,null,null,null,0,"",null,null,null,null,null,null,null,"","",null,null,null,null,null,null,null,null,null,"F.1.g","Community Impact Assessment Report"]
["","",null,null,null,null,null,null,null,null,null,null,null,null,null,null,null,null,null,null,null,null,null,{"$f":"IF(B96=\"\",0,IF(B96=\"ESTIMATE PROJECT SCENARIO BENEFITS\",\"\",IF((SUM(D96:W96)=0),0,SUM(D96:W96))))","v":0},"",null,null,null,null,null,null,null,"","",null,null,null,null,null,null,null,null,null,"F.1.h",null,8,"ESTIMATE PROJECT SCENARIO BENEFITS"]
["","",null,null,null,null,null,null,null,null,null,null,null,null,null,null,null,null,null,null,null,null,null,{"$f":"IF(B97=\"\",0,IF((SUM(D97:W97)=0),0,SUM(D97:W97)))","v":0},"",null,null,null,null,null,null,null,"","",null,null,null,null,null,null,null,null,null,"F.1.i",null,null,"Develop near-term project feasibility criteria and apply to the identified program of projects"]
["","",null,null,null,null,null,null,null,null,null,null,null,null,null,null,null,null,null,null,null,null,null,{"$f":"IF(B98=\"\",0,IF((SUM(D98:W98)=0),0,SUM(D98:W98)))","v":0},"",null,null,null,null,null,null,null,"","",null,null,null,null,null,null,null,null,null,"F.1.j",null,null,"Develop ranked list ordered according to project feasibility criteria"]
["","",null,null,null,null,null,null,null,null,null,null,null,null,null,null,null,null,null,null,null,null,null,{"$f":"IF(B99=\"\",0,IF((SUM(D99:W99)=0),0,SUM(D99:W99)))","v":0},"",null,null,null,null,null,null,null,"","",null,null,null,null,null,null,null,null,null,"F.1.k",null,null,"Perform Benefit Cost Analyses (BCA)  for up to five projects using the OMB BCA methodology"]
["","",null,null,null,null,null,null,null,null,null,null,null,null,null,null,null,null,null,null,null,null,null,{"$f":"IF(B100=\"\",0,IF((SUM(D100:W100)=0),0,SUM(D100:W100)))","v":0},"",null,null,null,null,null,null,null,"","",null,null,null,null,null,null,null,null,null,"F.1.l",null,null,"Revise per NCDOT comments"]
["","",null,null,null,null,null,null,null,null,null,null,null,null,null,null,null,null,null,null,null,null,null,{"$f":"IF(B101=\"\",0,IF(B101=\"INDIRECT AND CUMULATIVE EFFECTS SCREENING\",\"\",IF((SUM(D101:W101)=0),0,SUM(D101:W101))))","v":0},"",null,null,null,null,null,null,null,"","",null,null,null,null,null,null,null,null,null,"F.2","INDIRECT AND CUMULATIVE EFFECTS SCREENING"]
["","",null,null,null,null,null,null,null,null,null,null,null,null,null,null,null,null,null,null,null,null,null,{"$f":"IF(B102=\"\",0,IF((SUM(D102:W102)=0),0,SUM(D102:W102)))","v":0},"",null,null,null,null,null,null,null,"","",null,null,null,null,null,null,null,null,null,"F.2.a","Determine Future Land Use Study Area"]
["","",null,null,null,null,null,null,null,null,null,null,null,null,null,null,null,null,null,null,null,null,null,{"$f":"IF(B103=\"\",0,IF((SUM(D103:W103)=0),0,SUM(D103:W103)))","v":0},"",null,null,null,null,null,null,null,"","",null,null,null,null,null,null,null,null,null,"F.2.b","Determine ICE Study Time Horizon"]
["","",null,null,null,null,null,null,null,null,null,null,null,null,null,null,null,null,null,null,null,null,null,{"$f":"IF(B104=\"\",0,IF((SUM(D104:W104)=0),0,SUM(D104:W104)))","v":0},"",null,null,null,null,null,null,null,"","",null,null,null,null,null,null,null,null,null,"F.2.c","Identify Study Area Conditions and Trends"]
["","",null,null,null,null,null,null,null,null,null,null,null,null,null,null,null,null,null,null,null,null,null,{"$f":"IF(B105=\"\",0,IF((SUM(D105:W105)=0),0,SUM(D105:W105)))","v":0},"",null,null,null,null,null,null,null,"","",null,null,null,null,null,null,null,null,null,"F.2.d","Inventory of Notable Features"]
["","",null,null,null,null,null,null,null,null,null,null,null,null,null,null,null,null,null,null,null,null,null,{"$f":"IF(B106=\"\",0,IF(B106=\"GENERATE DATA NEEDED FOR SCORING IN STI\",\"\",IF((SUM(D106:W106)=0),0,SUM(D106:W106))))","v":0},"",null,null,null,null,null,null,null,"","",null,null,null,null,null,null,null,null,null,"F.2.e","Identify Impact-Causing Activities",9,"GENERATE DATA NEEDED FOR SCORING IN STI"]
["","",null,null,null,null,null,null,null,null,null,null,null,null,null,null,null,null,null,null,null,null,null,{"$f":"IF(B107=\"\",0,IF((SUM(D107:W107)=0),0,SUM(D107:W107)))","v":0},"",null,null,null,null,null,null,null,"","",null,null,null,null,null,null,null,null,null,"F.2.f","Analyze and Evaluate ICE Data",null,"Develop list of alternative solutions"]
["","",null,null,null,null,null,null,null,null,null,null,null,null,null,null,null,null,null,null,null,null,null,0,"",null,null,null,null,null,null,null,"","",null,null,null,null,null,null,null,null,null,"F.2.g","Land Use Development Scenarios",null,"Develop ranking procedure and criteria"]
["","",null,null,null,null,null,null,null,null,null,null,null,null,null,null,null,null,null,null,null,null,null,0,"",null,null,null,null,null,null,null,"","",null,null,null,null,null,null,null,null,null,"F.2.h","Indirect and Cumulative Effects Screening",null,"Adjust per NCDOT comments"]
["","",null,null,null,null,null,null,null,null,null,null,null,null,null,null,null,null,null,null,null,null,null,0,"",null,null,null,null,null,null,null,"","",null,null,null,null,null,null,null,null,null,"F.2.i",null,null,"Apply procedure/criteria to project alternatives"]
["","",null,null,null,null,null,null,null,null,null,null,null,null,null,null,null,null,null,null,null,null,null,0,"",null,null,null,null,null,null,null,"","",null,null,null,null,null,null,null,null,null,"F.2.j",null,null,"Review resulting list"]
["","",null,null,null,null,null,null,null,null,null,null,null,null,null,null,null,null,null,null,null,null,null,0,"",null,null,null,null,null,null,null,"","",null,null,null,null,null,null,null,null,null,"F.2.k",null,null,"Suggest revisions to procedure as needed"]
["","",null,null,null,null,null,null,null,null,null,null,null,null,null,null,null,null,null,null,null,null,null,0,"",null,null,null,null,null,null,null,"","",null,null,null,null,null,null,null,null,null,"F.2.l",null,null,"Revise criteria and redevelop list"]
["","",null,null,null,null,null,null,null,null,null,null,null,null,null,null,null,null,null,null,null,null,null,0,"",null,null,null,null,null,null,null,"","",null,null,null,null,null,null,null,null,null,"F.2.m",null,null,"Suggest project timing"]
["","",null,null,null,null,null,null,null,null,null,null,null,null,null,null,null,null,null,null,null,null,null,{"$f":"IF(B115=\"\",0,IF(B115=\"NOISE AND VIBRATION IMPACT ANALYSIS\",\"\",IF((SUM(D115:W115)=0),0,SUM(D115:W115))))","v":0},"",null,null,null,null,null,null,null,"","",null,null,null,null,null,null,null,null,null,"F.3.","NOISE AND VIBRATION IMPACT ANALYSIS",null,"Suggest project funding source(s)"]
["","",null,null,null,null,null,null,null,null,null,null,null,null,null,null,null,null,null,null,null,null,null,{"$f":"IF(B116=\"\",0,IF((SUM(D116:W116)=0),0,SUM(D116:W116)))","v":0},"",null,null,null,null,null,null,null,"","",null,null,null,null,null,null,null,null,null,"F.3.a","Coordination",null,"Develop opinion of cost for highest 5 ranking projects"]
["","",null,null,null,null,null,null,null,null,null,null,null,null,null,null,null,null,null,null,null,null,null,0,"",null,null,null,null,null,null,null,"","",null,null,null,null,null,null,null,null,null,null,"Initial Meeting with Rail Division",null,"Develop estimate of benefits for highest 5 ranking projects"]
["","",null,null,null,null,null,null,null,null,null,null,null,null,null,null,null,null,null,null,null,null,null,0,"",null,null,null,null,null,null,null,"","",null,null,null,null,null,null,null,null,null,"F.3.b","Data Compilation"]
["","",null,null,null,null,null,null,null,null,null,null,null,null,null,null,null,null,null,null,null,null,null,0,"",null,null,null,null,null,null,null,"","",null,null,null,null,null,null,null,null,null,null,"Project Area Reconnaissance, if applicable"]
["","",null,null,null,null,null,null,null,null,null,null,null,null,null,null,null,null,null,null,null,null,null,0,"",null,null,null,null,null,null,null,"","",null,null,null,null,null,null,null,null,null,null,"Identify noise sensitive land uses"]
["","",null,null,null,null,null,null,null,null,null,null,null,null,null,null,null,null,null,null,null,null,null,0,"",null,null,null,null,null,null,null,"","",null,null,null,null,null,null,null,null,null,null,"Prepare Noise Analysis Work Plan"]
["","",null,null,null,null,null,null,null,null,null,null,null,null,null,null,null,null,null,null,null,null,null,0,"",null,null,null,null,null,null,null,"","",null,null,null,null,null,null,null,null,null,"F.3.c","Selection of Analysis Sites"]
["","",null,null,null,null,null,null,null,null,null,null,null,null,null,null,null,null,null,null,null,null,null,{"$f":"IF(B123=\"\",0,IF(B123=\"IDENTIFY POTENTIAL PROJECTS FOR FEDERAL PROGRAMS\",\"\",IF((SUM(D123:W123)=0),0,SUM(D123:W123))))","v":0},"",null,null,null,null,null,null,null,"","",null,null,null,null,null,null,null,null,null,"F.3.d","Noise Analysis",10,"IDENTIFY POTENTIAL PROJECTS FOR FEDERAL PROGRAMS"]
["","",null,null,null,null,null,null,null,null,null,null,null,null,null,null,null,null,null,null,null,null,null,{"$f":"IF(B124=\"\",0,IF((SUM(D124:W124)=0),0,SUM(D124:W124)))","v":0},"",null,null,null,null,null,null,null,"","",null,null,null,null,null,null,null,null,null,null,"Monitoring / Fieldwork / Processing",null,"Research and prepare a technical memoranda identifying existing federal grant and loan programs for ports and rail improvements"]
["","",null,null,null,null,null,null,null,null,null,null,null,null,null,null,null,null,null,null,null,null,null,0,"",null,null,null,null,null,null,null,"","",null,null,null,null,null,null,null,null,null,null,"Traffic noise analysis",null,"Screen the program of projects for federal grant and loan program eligibility "]
["","",null,null,null,null,null,null,null,null,null,null,null,null,null,null,null,null,null,null,null,null,null,0,"",null,null,null,null,null,null,null,"","",null,null,null,null,null,null,null,null,null,null,"Rail noise analysis",null,"Recommend federal funding resources applicable to candidate projects"]
["","",null,null,null,null,null,null,null,null,null,null,null,null,null,null,null,null,null,null,null,null,null,0,"",null,null,null,null,null,null,null,"","",null,null,null,null,null,null,null,null,null,"F.3.e","Determination of Impacts"]
["","",null,null,null,null,null,null,null,null,null,null,null,null,null,null,null,null,null,null,null,null,null,0,"",null,null,null,null,null,null,null,"","",null,null,null,null,null,null,null,null,null,null,"Traffic noise analysis"]
["","",null,null,null,null,null,null,null,null,null,null,null,null,null,null,null,null,null,null,null,null,null,0,"",null,null,null,null,null,null,null,"","",null,null,null,null,null,null,null,null,null,null,"Rail noise analysis"]
["","",null,null,null,null,null,null,null,null,null,null,null,null,null,null,null,null,null,null,null,null,null,0,"",null,null,null,null,null,null,null,"","",null,null,null,null,null,null,null,null,null,null,"Traffic and rail noise impact assessment"]
["","",null,null,null,null,null,null,null,null,null,null,null,null,null,null,null,null,null,null,null,null,null,0,"",null,null,null,null,null,null,null,"","",null,null,null,null,null,null,null,null,null,"F.3.f","Noise Abatement Considerations"]
["","",null,null,null,null,null,null,null,null,null,null,null,null,null,null,null,null,null,null,null,null,null,{"$f":"IF(B132=\"\",0,IF(B132=\"PREPARE PROGRAM OF PROJECTS\",\"\",IF((SUM(D132:W132)=0),0,SUM(D132:W132))))","v":0},"",null,null,null,null,null,null,null,"","",null,null,null,null,null,null,null,null,null,null,"Noise barrier analysis",11,"PREPARE PROGRAM OF PROJECTS"]
["","",null,null,null,null,null,null,null,null,null,null,null,null,null,null,null,null,null,null,null,null,null,{"$f":"IF(B133=\"\",0,IF((SUM(D133:W133)=0),0,SUM(D133:W133)))","v":0},"",null,null,null,null,null,null,null,"","",null,null,null,null,null,null,null,null,null,null,"QA/Review",null,"Develop ranked list of projects based on benefit data"]
["","",null,null,null,null,null,null,null,null,null,null,null,null,null,null,null,null,null,null,null,null,null,0,"",null,null,null,null,null,null,null,"","",null,null,null,null,null,null,null,null,null,"F.3.g","Vibration Analysis",null,"Develop timing plan "]
["","",null,null,null,null,null,null,null,null,null,null,null,null,null,null,null,null,null,null,null,null,null,0,"",null,null,null,null,null,null,null,"","",null,null,null,null,null,null,null,null,null,"F.3.h","Noise and Vibration Technical Report",null,"Develop list of possible funding sources (limited to most likely source)"]
["","",null,null,null,null,null,null,null,null,null,null,null,null,null,null,null,null,null,null,null,null,null,0,"",null,null,null,null,null,null,null,"","",null,null,null,null,null,null,null,null,null,null,"Draft Report - text, tables, figures",null,"Calculate ranking based on criteria and or weighting data provided by NCDOT"]
["","",null,null,null,null,null,null,null,null,null,null,null,null,null,null,null,null,null,null,null,null,null,0,"",null,null,null,null,null,null,null,"","",null,null,null,null,null,null,null,null,null,null,"Draft Report - Appendices",null,"Submit draft list to NCDOT"]
["","",null,null,null,null,null,null,null,null,null,null,null,null,null,null,null,null,null,null,null,null,null,0,"",null,null,null,null,null,null,null,"","",null,null,null,null,null,null,null,null,null,null,"QA/Review",null,"Revise based on NCDOT comments"]
["","",null,null,null,null,null,null,null,null,null,null,null,null,null,null,null,null,null,null,null,null,null,0,"",null,null,null,null,null,null,null,"","",null,null,null,null,null,null,null,null,null,null,"Prepare Comment/Response Matrix"]
[{"$f":"IF(AG140=0,\"\",AG140)","v":""},"",null,null,null,null,null,null,null,null,null,null,null,null,null,null,null,null,null,null,null,null,null,0,"",null,null,null,null,null,null,null,{"$f":"IF($AA$4=\"Select Task Type\",\"\",IF($AA$4=\"Grade Separation\",AJ140,IF($AA$4=\"CEI\",AL140,IF($AA$4=\"Track Design\",AN140,IF($AA$4=\"Signal Design\",AP140,IF($AA$4=\"Environmental\",AR140,IF($AA$4=\"Planning\",AT140,\"\")))))))","v":""},"",null,null,null,null,null,null,null,null,null,null,"Prepare Final Report (includes QA/Review)"]
["","",null,null,null,null,null,null,null,null,null,null,null,null,null,null,null,null,null,null,null,null,null,0,{"$f":"IF(SUM(D141:W141)=0,\"\",((SUM(D141:W141))/$X$261))","v":""},null,null,null,null,null,null,null,"","",null,null,null,null,null,null,null,null,null,"F.3.i"]
["","",null,null,null,null,null,null,null,null,null,null,null,null,null,null,null,null,null,null,null,null,null,0,"",null,null,null,null,null,null,null,"","",null,null,null,null,null,null,null,null,null,"F.3.j"]
["","",null,null,null,null,null,null,null,null,null,null,null,null,null,null,null,null,null,null,null,null,null,0,"",null,null,null,null,null,null,null,"","",null,null,null,null,null,null,null,null,null,"F.3.k"]
["","",null,null,null,null,null,null,null,null,null,null,null,null,null,null,null,null,null,null,null,null,null,{"$f":"IF(B144=\"\",0,IF(B144=\"STAKEHOLDER INVOLVEMENT\",\"\",IF((SUM(D144:W144)=0),0,SUM(D144:W144))))","v":0},"",null,null,null,null,null,null,null,"","",null,null,null,null,null,null,null,null,null,"F.3.l",null,12,"STAKEHOLDER INVOLVEMENT"]
["","",null,null,null,null,null,null,null,null,null,null,null,null,null,null,null,null,null,null,null,null,null,{"$f":"IF(B145=\"\",0,IF((SUM(D145:W145)=0),0,SUM(D145:W145)))","v":0},"",null,null,null,null,null,null,null,"","",null,null,null,null,null,null,null,null,null,"F.3.m",null,null,"Attend 2 meetings (facilitated by others)"]
["","",null,null,null,null,null,null,null,null,null,null,null,null,null,null,null,null,null,null,null,null,null,{"$f":"IF(B146=\"\",0,IF(B146=\"AIR QUALITY ANALYSIS\",\"\",IF((SUM(D146:W146)=0),0,SUM(D146:W146))))","v":0},"",null,null,null,null,null,null,null,"","",null,null,null,null,null,null,null,null,null,"F.4","AIR QUALITY ANALYSIS",null,"Coordinate with NCDOT to discuss results of stakeholder interaction"]
["","",null,null,null,null,null,null,null,null,null,null,null,null,null,null,null,null,null,null,null,null,null,{"$f":"IF(B147=\"\",0,IF((SUM(D147:W147)=0),0,SUM(D147:W147)))","v":0},"",null,null,null,null,null,null,null,"","",null,null,null,null,null,null,null,null,null,"F.4.a","Data Compilation"]
["","",null,null,null,null,null,null,null,null,null,null,null,null,null,null,null,null,null,null,null,null,null,{"$f":"IF(B148=\"\",0,IF((SUM(D148:W148)=0),0,SUM(D148:W148)))","v":0},"",null,null,null,null,null,null,null,"","",null,null,null,null,null,null,null,null,null,"F.4.b","Attainment Status and Conformity"]
["","",null,null,null,null,null,null,null,null,null,null,null,null,null,null,null,null,null,null,null,null,null,{"$f":"IF(B149=\"\",0,IF((SUM(D149:W149)=0),0,SUM(D149:W149)))","v":0},"",null,null,null,null,null,null,null,"","",null,null,null,null,null,null,null,null,null,"F.4.c","Carbon Monoxide Air Quality Analysis"]
["","",null,null,null,null,null,null,null,null,null,null,null,null,null,null,null,null,null,null,null,null,null,{"$f":"IF(B150=\"\",0,IF((SUM(D150:W150)=0),0,SUM(D150:W150)))","v":0},"",null,null,null,null,null,null,null,"","",null,null,null,null,null,null,null,null,null,"F.4.d","Particulate Matter"]
["","",null,null,null,null,null,null,null,null,null,null,null,null,null,null,null,null,null,null,null,null,null,{"$f":"IF(B151=\"\",0,IF((SUM(D151:W151)=0),0,SUM(D151:W151)))","v":0},"",null,null,null,null,null,null,null,"","",null,null,null,null,null,null,null,null,null,"F.4.e","Mobile Source Air Toxics (MSATs)"]
["","",null,null,null,null,null,null,null,null,null,null,null,null,null,null,null,null,null,null,null,null,null,{"$f":"IF(B152=\"\",0,IF(B152=\"SCHEDULE\",\"\",IF((SUM(D152:W152)=0),0,SUM(D152:W152))))","v":0},"",null,null,null,null,null,null,null,"","",null,null,null,null,null,null,null,null,null,"F.4.f","Greenhouse Gas Emissions (GHGs)",13,"SCHEDULE"]
["","",null,null,null,null,null,null,null,null,null,null,null,null,null,null,null,null,null,null,null,null,null,{"$f":"IF(B153=\"\",0,IF((SUM(D153:W153)=0),0,SUM(D153:W153)))","v":0},"",null,null,null,null,null,null,null,"","",null,null,null,null,null,null,null,null,null,"F.4.g","Air Quality Technical Report",null,"Develop schedule of deliverable and review tasks"]
["","",null,null,null,null,null,null,null,null,null,null,null,null,null,null,null,null,null,null,null,null,null,0,"",null,null,null,null,null,null,null,"","",null,null,null,null,null,null,null,null,null,"F.4.h",null,null,"Update schedule as needed"]
["","",null,null,null,null,null,null,null,null,null,null,null,null,null,null,null,null,null,null,null,null,null,0,"",null,null,null,null,null,null,null,"","",null,null,null,null,null,null,null,null,null,"F.4.i"]
["","",null,null,null,null,null,null,null,null,null,null,null,null,null,null,null,null,null,null,null,null,null,0,"",null,null,null,null,null,null,null,"","",null,null,null,null,null,null,null,null,null,"F.4.j"]
["","",null,null,null,null,null,null,null,null,null,null,null,null,null,null,null,null,null,null,null,null,null,0,"",null,null,null,null,null,null,null,"","",null,null,null,null,null,null,null,null,null,"F.4.k"]
["","",null,null,null,null,null,null,null,null,null,null,null,null,null,null,null,null,null,null,null,null,null,0,"",null,null,null,null,null,null,null,"","",null,null,null,null,null,null,null,null,null,"F.4.l"]
["","",null,null,null,null,null,null,null,null,null,null,null,null,null,null,null,null,null,null,null,null,null,{"$f":"IF(B159=\"\",0,IF(B159=\"CULTURAL RESOURCES ANALYSIS\",\"\",IF((SUM(D159:W159)=0),0,SUM(D159:W159))))","v":0},"",null,null,null,null,null,null,null,"","",null,null,null,null,null,null,null,null,null,"F.5","CULTURAL RESOURCES ANALYSIS"]
["","",null,null,null,null,null,null,null,null,null,null,null,null,null,null,null,null,null,null,null,null,null,{"$f":"IF(B160=\"\",0,IF(B160=\"REPORT\",\"\",IF((SUM(D160:W160)=0),0,SUM(D160:W160))))","v":0},"",null,null,null,null,null,null,null,"","",null,null,null,null,null,null,null,null,null,"F.5.a","Phase 1 Historic Architectural Analysis",14,"REPORT"]
["","",null,null,null,null,null,null,null,null,null,null,null,null,null,null,null,null,null,null,null,null,null,{"$f":"IF(B161=\"\",0,IF(B161=\"ARCHAEOLOGICAL ANALYSIS\",\"\",IF((SUM(D161:W161)=0),0,SUM(D161:W161))))","v":0},"",null,null,null,null,null,null,null,"","",null,null,null,null,null,null,null,null,null,"F.5.b","ARCHAEOLOGICAL ANALYSIS",null,"Prepare draft report (electronic version only) for NCDOT review"]
["","",null,null,null,null,null,null,null,null,null,null,null,null,null,null,null,null,null,null,null,null,null,{"$f":"IF(B162=\"\",0,IF((SUM(D162:W162)=0),0,SUM(D162:W162)))","v":0},"",null,null,null,null,null,null,null,"","",null,null,null,null,null,null,null,null,null,null,"Conduct Background Research of information from NC OSA/ SHPO",null,"Revise per NCDOT comments"]
["","",null,null,null,null,null,null,null,null,null,null,null,null,null,null,null,null,null,null,null,null,null,0,"",null,null,null,null,null,null,null,"","",null,null,null,null,null,null,null,null,null,null,"Collect previously recorded sites and surveys in study area",null,"Prepare final report"]
["","",null,null,null,null,null,null,null,null,null,null,null,null,null,null,null,null,null,null,null,null,null,0,"",null,null,null,null,null,null,null,"","",null,null,null,null,null,null,null,null,null,null,"Prepare Archaeological Overview Report"]
["","",null,null,null,null,null,null,null,null,null,null,null,null,null,null,null,null,null,null,null,null,null,0,"",null,null,null,null,null,null,null,"","",null,null,null,null,null,null,null,null,null,null," known archaeological resources in alternatives or study area"]
["","",null,null,null,null,null,null,null,null,null,null,null,null,null,null,null,null,null,null,null,null,null,0,"",null,null,null,null,null,null,null,"","",null,null,null,null,null,null,null,null,null,null," sites of value for reasons other than recoverable information"]
["","",null,null,null,null,null,null,null,null,null,null,null,null,null,null,null,null,null,null,null,null,null,0,"",null,null,null,null,null,null,null,"","",null,null,null,null,null,null,null,null,null,null," assessment of potential for archaeological sites in areas not previously surveyed"]
["","",null,null,null,null,null,null,null,null,null,null,null,null,null,null,null,null,null,null,null,null,null,0,"",null,null,null,null,null,null,null,"","",null,null,null,null,null,null,null,null,null,null," recommendations regarding need for archaeological survey"]
["","",null,null,null,null,null,null,null,null,null,null,null,null,null,null,null,null,null,null,null,null,null,{"$f":"IF(B169=\"\",0,IF(B169=\"PROJECT COORDINATION\",\"\",IF((SUM(D169:W169)=0),0,SUM(D169:W169))))","v":0},"",null,null,null,null,null,null,null,"","",null,null,null,null,null,null,null,null,null,null,"Graphics showing alternatives, previously studied areas, and known sites",15,"PROJECT COORDINATION"]
["","",null,null,null,null,null,null,null,null,null,null,null,null,null,null,null,null,null,null,null,null,null,{"$f":"IF(B170=\"\",0,IF((SUM(D170:W170)=0),0,SUM(D170:W170)))","v":0},"",null,null,null,null,null,null,null,"","",null,null,null,null,null,null,null,null,null,null,"Submit Draft Archaeological Overview Report",null,"Coordinate internally with staff and subconsultants"]
["","",null,null,null,null,null,null,null,null,null,null,null,null,null,null,null,null,null,null,null,null,null,0,"",null,null,null,null,null,null,null,"","",null,null,null,null,null,null,null,null,null,null,"Address NCDOT comments on Draft Archaeological Overview Report"]
["","",null,null,null,null,null,null,null,null,null,null,null,null,null,null,null,null,null,null,null,null,null,0,"",null,null,null,null,null,null,null,"","",null,null,null,null,null,null,null,null,null,null,"Submit Final Archaeological Overview Report"]
["","",null,null,null,null,null,null,null,null,null,null,null,null,null,null,null,null,null,null,null,null,null,0,"",null,null,null,null,null,null,null,"","",null,null,null,null,null,null,null,null,null,null,"Meeting attendance and coordination"]
["","",null,null,null,null,null,null,null,null,null,null,null,null,null,null,null,null,null,null,null,null,null,0,"",null,null,null,null,null,null,null,"","",null,null,null,null,null,null,null,null,null,"F.5.c"]
["","",null,null,null,null,null,null,null,null,null,null,null,null,null,null,null,null,null,null,null,null,null,0,"",null,null,null,null,null,null,null,"","",null,null,null,null,null,null,null,null,null,"F.5.d"]
["","",null,null,null,null,null,null,null,null,null,null,null,null,null,null,null,null,null,null,null,null,null,{"$f":"IF(B176=\"\",0,IF(B176=\"TRUCK ALTERNATIVE ROUTE ANALYSIS\",\"\",IF((SUM(D176:W176)=0),0,SUM(D176:W176))))","v":0},"",null,null,null,null,null,null,null,"","",null,null,null,null,null,null,null,null,null,"F.5.e",null,16,"TRUCK ALTERNATIVE ROUTE ANALYSIS"]
["","",null,null,null,null,null,null,null,null,null,null,null,null,null,null,null,null,null,null,null,null,null,{"$f":"IF(B177=\"\",0,IF((SUM(D177:W177)=0),0,SUM(D177:W177)))","v":0},"",null,null,null,null,null,null,null,"","",null,null,null,null,null,null,null,null,null,"F.5.f",null,null,"Truck Alternative Route Analysis (XX to the Port)"]
["","",null,null,null,null,null,null,null,null,null,null,null,null,null,null,null,null,null,null,null,null,null,{"$f":"IF(B178=\"\",0,IF((SUM(D178:W178)=0),0,SUM(D178:W178)))","v":0},"",null,null,null,null,null,null,null,"","",null,null,null,null,null,null,null,null,null,"F.5.g"]
["","",null,null,null,null,null,null,null,null,null,null,null,null,null,null,null,null,null,null,null,null,null,{"$f":"IF(B179=\"\",0,IF(B179=\"OTHER PHYSICAL FEATURES ANALYSIS\",\"\",IF((SUM(D179:W179)=0),0,SUM(D179:W179))))","v":0},"",null,null,null,null,null,null,null,"","",null,null,null,null,null,null,null,null,null,"G","OTHER PHYSICAL FEATURES ANALYSIS"]
["","",null,null,null,null,null,null,null,null,null,null,null,null,null,null,null,null,null,null,null,null,null,{"$f":"IF(B180=\"\",0,IF((SUM(D180:W180)=0),0,SUM(D180:W180)))","v":0},"",null,null,null,null,null,null,null,"","",null,null,null,null,null,null,null,null,null,"G.1","Identify Potential Floodplain and Floodway Impacts"]
["","",null,null,null,null,null,null,null,null,null,null,null,null,null,null,null,null,null,null,null,null,null,{"$f":"IF(B181=\"\",0,IF((SUM(D181:W181)=0),0,SUM(D181:W181)))","v":0},"",null,null,null,null,null,null,null,"","",null,null,null,null,null,null,null,null,null,"G.2","Farmland Assessment"]
["","",null,null,null,null,null,null,null,null,null,null,null,null,null,null,null,null,null,null,null,null,null,{"$f":"IF(B182=\"\",0,IF(B182=\"FEASIBILITY STUDY\",\"\",IF((SUM(D182:W182)=0),0,SUM(D182:W182))))","v":0},"",null,null,null,null,null,null,null,"","",null,null,null,null,null,null,null,null,null,"G.3","Hazardous Materials Assessment",17,"FEASIBILITY STUDY"]
["","",null,null,null,null,null,null,null,null,null,null,null,null,null,null,null,null,null,null,null,null,null,{"$f":"IF(B183=\"\",0,IF((SUM(D183:W183)=0),0,SUM(D183:W183)))","v":0},"",null,null,null,null,null,null,null,"","",null,null,null,null,null,null,null,null,null,"G.4","Visual Impact Analysis"]
["","",null,null,null,null,null,null,null,null,null,null,null,null,null,null,null,null,null,null,null,null,null,0,"",null,null,null,null,null,null,null,"","",null,null,null,null,null,null,null,null,null,"G.5","Identify Potential Public Utility Impacts"]
["","",null,null,null,null,null,null,null,null,null,null,null,null,null,null,null,null,null,null,null,null,null,0,"",null,null,null,null,null,null,null,"","",null,null,null,null,null,null,null,null,null,"G.6"]
["","",null,null,null,null,null,null,null,null,null,null,null,null,null,null,null,null,null,null,null,null,null,0,"",null,null,null,null,null,null,null,"","",null,null,null,null,null,null,null,null,null,"G.7"]
["","",null,null,null,null,null,null,null,null,null,null,null,null,null,null,null,null,null,null,null,null,null,0,"",null,null,null,null,null,null,null,"","",null,null,null,null,null,null,null,null,null,"G.8"]
["","",null,null,null,null,null,null,null,null,null,null,null,null,null,null,null,null,null,null,null,null,null,0,"",null,null,null,null,null,null,null,"","",null,null,null,null,null,null,null,null,null,"G.9"]
["","",null,null,null,null,null,null,null,null,null,null,null,null,null,null,null,null,null,null,null,null,null,0,"",null,null,null,null,null,null,null,"","",null,null,null,null,null,null,null,null,null,"G.10"]
["","",null,null,null,null,null,null,null,null,null,null,null,null,null,null,null,null,null,null,null,null,null,{"$f":"IF(B190=\"\",0,IF(B190=\"SECTION 4(F) AND SECTION 6(F)\",\"\",IF((SUM(D190:W190)=0),0,SUM(D190:W190))))","v":0},"",null,null,null,null,null,null,null,"","",null,null,null,null,null,null,null,null,null,"H","SECTION 4(F) AND SECTION 6(F)"]
["","",null,null,null,null,null,null,null,null,null,null,null,null,null,null,null,null,null,null,null,null,null,{"$f":"IF(B191=\"\",0,IF((SUM(D191:W191)=0),0,SUM(D191:W191)))","v":0},"",null,null,null,null,null,null,null,"","",null,null,null,null,null,null,null,null,null,"H.1"]
["","",null,null,null,null,null,null,null,null,null,null,null,null,null,null,null,null,null,null,null,null,null,{"$f":"IF(B192=\"\",0,IF((SUM(D192:W192)=0),0,SUM(D192:W192)))","v":0},"",null,null,null,null,null,null,null,"","",null,null,null,null,null,null,null,null,null,"H.2"]
["","",null,null,null,null,null,null,null,null,null,null,null,null,null,null,null,null,null,null,null,null,null,{"$f":"IF(B193=\"\",0,IF((SUM(D193:W193)=0),0,SUM(D193:W193)))","v":0},"",null,null,null,null,null,null,null,"","",null,null,null,null,null,null,null,null,null,"H.3"]
["","",null,null,null,null,null,null,null,null,null,null,null,null,null,null,null,null,null,null,null,null,null,{"$f":"IF(B194=\"\",0,IF((SUM(D194:W194)=0),0,SUM(D194:W194)))","v":0},"",null,null,null,null,null,null,null,"","",null,null,null,null,null,null,null,null,null,"H.4"]
["","",null,null,null,null,null,null,null,null,null,null,null,null,null,null,null,null,null,null,null,null,null,{"$f":"IF(B195=\"\",0,IF((SUM(D195:W195)=0),0,SUM(D195:W195)))","v":0},"",null,null,null,null,null,null,null,"","",null,null,null,null,null,null,null,null,null,"H.5"]
["","",null,null,null,null,null,null,null,null,null,null,null,null,null,null,null,null,null,null,null,null,null,{"$f":"IF(B196=\"\",0,IF(B196=\"DRAFT ENVIRONMENTAL DOCUMENT\",\"\",IF((SUM(D196:W196)=0),0,SUM(D196:W196))))","v":0},"",null,null,null,null,null,null,null,"","",null,null,null,null,null,null,null,null,null,"I","DRAFT ENVIRONMENTAL DOCUMENT"]
["","",null,null,null,null,null,null,null,null,null,null,null,null,null,null,null,null,null,null,null,null,null,{"$f":"IF(B197=\"\",0,IF((SUM(D197:W197)=0),0,SUM(D197:W197)))","v":0},"",null,null,null,null,null,null,null,"","",null,null,null,null,null,null,null,null,null,"I.1","Purpose and Need"]
["","",null,null,null,null,null,null,null,null,null,null,null,null,null,null,null,null,null,null,null,null,null,0,"",null,null,null,null,null,null,null,"","",null,null,null,null,null,null,null,null,null,"I.2","Alternatives Considered"]
["","",null,null,null,null,null,null,null,null,null,null,null,null,null,null,null,null,null,null,null,null,null,0,"",null,null,null,null,null,null,null,"","",null,null,null,null,null,null,null,null,null,"I.3","Human Environment"]
["","",null,null,null,null,null,null,null,null,null,null,null,null,null,null,null,null,null,null,null,null,null,0,"",null,null,null,null,null,null,null,"","",null,null,null,null,null,null,null,null,null,"I.4","Physical Environment"]
["","",null,null,null,null,null,null,null,null,null,null,null,null,null,null,null,null,null,null,null,null,null,0,"",null,null,null,null,null,null,null,"","",null,null,null,null,null,null,null,null,null,"I.5","Cultural Resources"]
["","",null,null,null,null,null,null,null,null,null,null,null,null,null,null,null,null,null,null,null,null,null,0,"",null,null,null,null,null,null,null,"","",null,null,null,null,null,null,null,null,null,"I.6","Natural Resources"]
["","",null,null,null,null,null,null,null,null,null,null,null,null,null,null,null,null,null,null,null,null,null,0,"",null,null,null,null,null,null,null,"","",null,null,null,null,null,null,null,null,null,"I.7","Environmental Impacts"]
[{"$f":"IF(AG204=0,\"\",AG204)","v":""},"",null,null,null,null,null,null,null,null,null,null,null,null,null,null,null,null,null,null,null,null,null,0,"",null,null,null,null,null,null,null,{"$f":"IF($AA$4=\"Select Task Type\",\"\",IF($AA$4=\"Grade Separation\",AJ204,IF($AA$4=\"CEI\",AL204,IF($AA$4=\"Track Design\",AN204,IF($AA$4=\"Signal Design\",AP204,IF($AA$4=\"Environmental\",AR204,IF($AA$4=\"Planning\",AT204,\"\")))))))","v":""},"",null,null,null,null,null,null,null,null,null,"I.8","Indirect and Cumulative Effects"]
["","",null,null,null,null,null,null,null,null,null,null,null,null,null,null,null,null,null,null,null,null,null,0,{"$f":"IF(SUM(D205:W205)=0,\"\",((SUM(D205:W205))/$X$261))","v":""},null,null,null,null,null,null,null,"","",null,null,null,null,null,null,null,null,null,"I.9","Other Impact Considerations"]
["","",null,null,null,null,null,null,null,null,null,null,null,null,null,null,null,null,null,null,null,null,null,0,"",null,null,null,null,null,null,null,"","",null,null,null,null,null,null,null,null,null,"I.10","Public Involvement ad Agency Coordination"]
["","",null,null,null,null,null,null,null,null,null,null,null,null,null,null,null,null,null,null,null,null,null,0,"",null,null,null,null,null,null,null,"","",null,null,null,null,null,null,null,null,null,"I.11","Compile Draft EA & Final EA"]
["","",null,null,null,null,null,null,null,null,null,null,null,null,null,null,null,null,null,null,null,null,null,0,"",null,null,null,null,null,null,null,"","",null,null,null,null,null,null,null,null,null,"I.12","Review and Distribution of EA"]
["","",null,null,null,null,null,null,null,null,null,null,null,null,null,null,null,null,null,null,null,null,null,0,"",null,null,null,null,null,null,null,"","",null,null,null,null,null,null,null,null,null,"I.13"]
["","",null,null,null,null,null,null,null,null,null,null,null,null,null,null,null,null,null,null,null,null,null,0,"",null,null,null,null,null,null,null,"","",null,null,null,null,null,null,null,null,null,"I.14"]
["","",null,null,null,null,null,null,null,null,null,null,null,null,null,null,null,null,null,null,null,null,null,0,"",null,null,null,null,null,null,null,"","",null,null,null,null,null,null,null,null,null,"I.15"]
["","",null,null,null,null,null,null,null,null,null,null,null,null,null,null,null,null,null,null,null,null,null,0,"",null,null,null,null,null,null,null,"","",null,null,null,null,null,null,null,null,null,"I.16"]
["","",null,null,null,null,null,null,null,null,null,null,null,null,null,null,null,null,null,null,null,null,null,0,"",null,null,null,null,null,null,null,"","",null,null,null,null,null,null,null,null,null,"I.17"]
["","",null,null,null,null,null,null,null,null,null,null,null,null,null,null,null,null,null,null,null,null,null,{"$f":"IF(B214=\"\",0,IF(B214=\"FINAL ENVIRONMENTAL DOCUMENT\",\"\",IF((SUM(D214:W214)=0),0,SUM(D214:W214))))","v":0},"",null,null,null,null,null,null,null,"","",null,null,null,null,null,null,null,null,null,"J","FINAL ENVIRONMENTAL DOCUMENT"]
["","",null,null,null,null,null,null,null,null,null,null,null,null,null,null,null,null,null,null,null,null,null,{"$f":"IF(B215=\"\",0,IF((SUM(D215:W215)=0),0,SUM(D215:W215)))","v":0},"",null,null,null,null,null,null,null,"","",null,null,null,null,null,null,null,null,null,"J.1","Compile FONSI"]
["","",null,null,null,null,null,null,null,null,null,null,null,null,null,null,null,null,null,null,null,null,null,0,"",null,null,null,null,null,null,null,"","",null,null,null,null,null,null,null,null,null,"J.2","Alternative Selection"]
["","",null,null,null,null,null,null,null,null,null,null,null,null,null,null,null,null,null,null,null,null,null,0,"",null,null,null,null,null,null,null,"","",null,null,null,null,null,null,null,null,null,"J.3","Prepare Draft & Final Finding of No Significant Impact (FONSI)"]
["","",null,null,null,null,null,null,null,null,null,null,null,null,null,null,null,null,null,null,null,null,null,0,"",null,null,null,null,null,null,null,"","",null,null,null,null,null,null,null,null,null,"J.4"]
["","",null,null,null,null,null,null,null,null,null,null,null,null,null,null,null,null,null,null,null,null,null,0,"",null,null,null,null,null,null,null,"","",null,null,null,null,null,null,null,null,null,"J.5"]
["","",null,null,null,null,null,null,null,null,null,null,null,null,null,null,null,null,null,null,null,null,null,0,"",null,null,null,null,null,null,null,"","",null,null,null,null,null,null,null,null,null,"J.6"]
["","",null,null,null,null,null,null,null,null,null,null,null,null,null,null,null,null,null,null,null,null,null,0,"",null,null,null,null,null,null,null,"","",null,null,null,null,null,null,null,null,null,"J.7"]
["","",null,null,null,null,null,null,null,null,null,null,null,null,null,null,null,null,null,null,null,null,null,0,"",null,null,null,null,null,null,null,"","",null,null,null,null,null,null,null,null,null,"J.8"]
["","",null,null,null,null,null,null,null,null,null,null,null,null,null,null,null,null,null,null,null,null,null,{"$f":"IF(B223=\"\",0,IF(B223=\"PUBLIC INVOLVEMENT\",\"\",IF((SUM(D223:W223)=0),0,SUM(D223:W223))))","v":0},"",null,null,null,null,null,null,null,"","",null,null,null,null,null,null,null,null,null,"K","PUBLIC INVOLVEMENT"]
["","",null,null,null,null,null,null,null,null,null,null,null,null,null,null,null,null,null,null,null,null,null,{"$f":"IF(B224=\"\",0,IF((SUM(D224:W224)=0),0,SUM(D224:W224)))","v":0},"",null,null,null,null,null,null,null,"","",null,null,null,null,null,null,null,null,null,"K.1","Informal Stakeholder Coordination"]
["","",null,null,null,null,null,null,null,null,null,null,null,null,null,null,null,null,null,null,null,null,null,0,"",null,null,null,null,null,null,null,"","",null,null,null,null,null,null,null,null,null,"K.2","Public Information Meeting"]
["","",null,null,null,null,null,null,null,null,null,null,null,null,null,null,null,null,null,null,null,null,null,0,"",null,null,null,null,null,null,null,"","",null,null,null,null,null,null,null,null,null,"K.3","Public Hearing"]
["","",null,null,null,null,null,null,null,null,null,null,null,null,null,null,null,null,null,null,null,null,null,0,"",null,null,null,null,null,null,null,"","",null,null,null,null,null,null,null,null,null,"K.4","Local Offical Information Meeting"]
["","",null,null,null,null,null,null,null,null,null,null,null,null,null,null,null,null,null,null,null,null,null,0,"",null,null,null,null,null,null,null,"","",null,null,null,null,null,null,null,null,null,"K.5","Mailer"]
["","",null,null,null,null,null,null,null,null,null,null,null,null,null,null,null,null,null,null,null,null,null,0,"",null,null,null,null,null,null,null,"","",null,null,null,null,null,null,null,null,null,"K.6","Meeting Maps"]
["","",null,null,null,null,null,null,null,null,null,null,null,null,null,null,null,null,null,null,null,null,null,0,"",null,null,null,null,null,null,null,"","",null,null,null,null,null,null,null,null,null,"K.7","Meeting Displays"]
["","",null,null,null,null,null,null,null,null,null,null,null,null,null,null,null,null,null,null,null,null,null,0,"",null,null,null,null,null,null,null,"","",null,null,null,null,null,null,null,null,null,"K.8"]
["","",null,null,null,null,null,null,null,null,null,null,null,null,null,null,null,null,null,null,null,null,null,0,"",null,null,null,null,null,null,null,"","",null,null,null,null,null,null,null,null,null,"K.9"]
["","",null,null,null,null,null,null,null,null,null,null,null,null,null,null,null,null,null,null,null,null,null,0,"",null,null,null,null,null,null,null,"","",null,null,null,null,null,null,null,null,null,"K.10"]
["","",null,null,null,null,null,null,null,null,null,null,null,null,null,null,null,null,null,null,null,null,null,0,"",null,null,null,null,null,null,null,"","",null,null,null,null,null,null,null,null,null,"K.11"]
["","",null,null,null,null,null,null,null,null,null,null,null,null,null,null,null,null,null,null,null,null,null,0,"",null,null,null,null,null,null,null,"","",null,null,null,null,null,null,null,null,null,"K.12"]
["","",null,null,null,null,null,null,null,null,null,null,null,null,null,null,null,null,null,null,null,null,null,{"$f":"IF(B236=\"\",0,IF(B236=\"PROJECT COORDINATION AND MANAGEMENT\",\"\",IF((SUM(D236:W236)=0),0,SUM(D236:W236))))","v":0},"",null,null,null,null,null,null,null,"","",null,null,null,null,null,null,null,null,null,"L","PROJECT COORDINATION AND MANAGEMENT"]
["","",null,null,null,null,null,null,null,null,null,null,null,null,null,null,null,null,null,null,null,null,null,{"$f":"IF(B237=\"\",0,IF((SUM(D237:W237)=0),0,SUM(D237:W237)))","v":0},"",null,null,null,null,null,null,null,"","",null,null,null,null,null,null,null,null,null,"L.1","Project Schedule"]
["","",null,null,null,null,null,null,null,null,null,null,null,null,null,null,null,null,null,null,null,null,null,0,"",null,null,null,null,null,null,null,"","",null,null,null,null,null,null,null,null,null,"L.2","Coordination with NCDOT"]
["","",null,null,null,null,null,null,null,null,null,null,null,null,null,null,null,null,null,null,null,null,null,0,"",null,null,null,null,null,null,null,"","",null,null,null,null,null,null,null,null,null,"L.3","General Coordination"]
["","",null,null,null,null,null,null,null,null,null,null,null,null,null,null,null,null,null,null,null,null,null,0,"",null,null,null,null,null,null,null,"","",null,null,null,null,null,null,null,null,null,"L.4"]
["","",null,null,null,null,null,null,null,null,null,null,null,null,null,null,null,null,null,null,null,null,null,0,"",null,null,null,null,null,null,null,"","",null,null,null,null,null,null,null,null,null,"L.5"]
["","",null,null,null,null,null,null,null,null,null,null,null,null,null,null,null,null,null,null,null,null,null,0,"",null,null,null,null,null,null,null,"","",null,null,null,null,null,null,null,null,null,"L.6"]
["","",null,null,null,null,null,null,null,null,null,null,null,null,null,null,null,null,null,null,null,null,null,0,"",null,null,null,null,null,null,null,"","",null,null,null,null,null,null,null,null,null,"L.7"]
["","",null,null,null,null,null,null,null,null,null,null,null,null,null,null,null,null,null,null,null,null,null,0,"",null,null,null,null,null,null,null,"","",null,null,null,null,null,null,null,null,null,"L.8"]
["","",null,null,null,null,null,null,null,null,null,null,null,null,null,null,null,null,null,null,null,null,null,0,"",null,null,null,null,null,null,null,"",""]
["","",null,null,null,null,null,null,null,null,null,null,null,null,null,null,null,null,null,null,null,null,null,0,"",null,null,null,null,null,null,null,"",""]
["","",null,null,null,null,null,null,null,null,null,null,null,null,null,null,null,null,null,null,null,null,null,0,"",null,null,null,null,null,null,null,"",""]
["","",null,null,null,null,null,null,null,null,null,null,null,null,null,null,null,null,null,null,null,null,null,0,"",null,null,null,null,null,null,null,"",""]
["","",null,null,null,null,null,null,null,null,null,null,null,null,null,null,null,null,null,null,null,null,null,0,"",null,null,null,null,null,null,null,"",""]
["","",null,null,null,null,null,null,null,null,null,null,null,null,null,null,null,null,null,null,null,null,null,0,"",null,null,null,null,null,null,null,"",""]
["","",null,null,null,null,null,null,null,null,null,null,null,null,null,null,null,null,null,null,null,null,null,0,"",null,null,null,null,null,null,null,"",""]
["","",null,null,null,null,null,null,null,null,null,null,null,null,null,null,null,null,null,null,null,null,null,0,"",null,null,null,null,null,null,null,"",""]
["","",null,null,null,null,null,null,null,null,null,null,null,null,null,null,null,null,null,null,null,null,null,0,"",null,null,null,null,null,null,null,"",""]
["","",null,null,null,null,null,null,null,null,null,null,null,null,null,null,null,null,null,null,null,null,null,0,"",null,null,null,null,null,null,null,"",""]
["","",null,null,null,null,null,null,null,null,null,null,null,null,null,null,null,null,null,null,null,null,null,0,"",null,null,null,null,null,null,null,"",""]
["","",null,null,null,null,null,null,null,null,null,null,null,null,null,null,null,null,null,null,null,null,null,0,"",null,null,null,null,null,null,null,"",""]
["","",null,null,null,null,null,null,null,null,null,null,null,null,null,null,null,null,null,null,null,null,null,0,"",null,null,null,null,null,null,null,"",""]
["","",null,null,null,null,null,null,null,null,null,null,null,null,null,null,null,null,null,null,null,null,null,0,"",null,null,null,null,null,null,null,"",""]
["","",null,null,null,null,null,null,null,null,null,null,null,null,null,null,null,null,null,null,null,null,null,0,{"$f":"IF(SUM(D259:W259)=0,\"\",((SUM(D259:W259))/$X$261))","v":""},null,null,null,null,null,null,null,"",""]
["","",null,null,null,null,null,null,null,null,null,null,null,null,null,null,null,null,null,null,null,null,null,0,{"$f":"IF(SUM(D260:W260)=0,\"\",((SUM(D260:W260))/$X$261))","v":""},null,null,null,null,null,null,null,"",""]
[null,"TOTAL WORKHOURS/CATEGORY:",null,{"$f":"SUM(D11:D260)","v":0},0,0,0,0,0,0,0,0,0,0,0,0,0,0,0,0,0,0,0,{"$f":"SUM(D261:W261)","v":0},{"$f":"SUM(Y11:Y260)","v":0},{"$f":"SUM(Z11:Z260)","v":0}]
[null,"TOTAL WORKDAYS/CATEGORY:",null,{"$f":"D261/8","v":0},{"$f":"E261/8","v":0},0,0,0,0,0,0,0,0,0,0,0,0,0,0,0,0,0,0]
[null,"HOURLY SALARY RATE:",null,{"$f":"'PEF CLASSIFICATION SHEET'!E1211","v":0},{"$f":"'PEF CLASSIFICATION SHEET'!E1212","v":0},{"$f":"'PEF CLASSIFICATION SHEET'!E1213","v":0},{"$f":"'PEF CLASSIFICATION SHEET'!E1214","v":0},{"$f":"'PEF CLASSIFICATION SHEET'!E1215","v":0},{"$f":"'PEF CLASSIFICATION SHEET'!E1216","v":0},{"$f":"'PEF CLASSIFICATION SHEET'!E1217","v":0},{"$f":"'PEF CLASSIFICATION SHEET'!E1218","v":0},{"$f":"'PEF CLASSIFICATION SHEET'!E1219","v":0},{"$f":"'PEF CLASSIFICATION SHEET'!E1220","v":0},{"$f":"'PEF CLASSIFICATION SHEET'!E1221","v":0},{"$f":"'PEF CLASSIFICATION SHEET'!E1222","v":0},{"$f":"'PEF CLASSIFICATION SHEET'!E1223","v":0},{"$f":"'PEF CLASSIFICATION SHEET'!E1224","v":0},{"$f":"'PEF CLASSIFICATION SHEET'!E1225","v":0},{"$f":"'PEF CLASSIFICATION SHEET'!E1226","v":0},{"$f":"'PEF CLASSIFICATION SHEET'!E1227","v":0},{"$f":"'PEF CLASSIFICATION SHEET'!E1228","v":0},{"$f":"'PEF CLASSIFICATION SHEET'!E1229","v":0},{"$f":"'PEF CLASSIFICATION SHEET'!E1230","v":0}]
[null,"RATES PER DAY:",null,{"$f":"D263*8","v":0},0,0,0,0,0,0,0,0,0,0,0,0,0,0,0,0,0,0,0]
[null,"PAYROLL BURDEN:",null,{"$f":"SUM(D261*D263)","v":0},{"$f":"SUM(E261*E263)","v":0},0,0,0,0,0,0,0,0,0,0,0,0,0,0,0,0,0,0]
[null,"TOTAL WORKDAYS:",null,{"$f":"SUM(D262:W262)","v":0}]
[null,"TOTAL PAYROLL BURDEN:",null,{"$f":"SUM(D265:W265)","v":0}]
[null,"AVERAGE COST PER HOUR:",null,{"$f":"SUM(D267/(D266*8))","v":{"$error":"#DIV/0!"}}]
[null,"GENERAL OVERHEAD:",{"$f":"RAIL.SUB6_CONSULTANT_OVERHEAD","v":0},{"$f":"SUM(D267*C269)","v":0}]
[null,"SUBTOTAL:",null,{"$f":"SUM(D267+D269)","v":0}]
[null,"COMPARATIVE FEE:",{"$f":"RAIL.SUB6_CONSULTANT_FEE","v":0.09},{"$f":"SUM(D270*C271)","v":0}]
[null,"FACILITIES COST OF CAPITAL:",{"$f":"RAIL.SUB6_COSTofCAPITAL","v":0},{"$f":"SUM(D267*C272)","v":0}]
[null,"TOTAL:",null,{"$f":"SUM(D270:D272)","v":0}]
[null,"DIRECT EXPENSES:",null,{"$f":"RAIL.SUB6_DIRECT_NONSALARY_TOTAL","v":0}]
[null,"RAIL GRAND TOTAL:",null,{"$f":"SUM(D273:D274)","v":0}]

{"sheet":"Rail-Exp-Sub6","index":150,"n_rows":46,"n_cols":8,"rows_kept":46,"cut":false,"hidden":true,"merged":[[0,0,0,7],[1,3,1,7]]}
["RAIL--DIRECT EXPENSES - SUBCONSULTANT 6"]
["TIP NUMBER",{"$f":"TIP.NUMBER","v":0},"FIRM:",{"$f":"'Rail-Sub6'!G3","v":"CONSULTANT NAME"}]
[]
["GENERAL PROJECT WORK:","ITEM","QTY","DESCRIPTION",null,null,"UNIT COST "]
[null,"Travel:"]
[null,"Sedan",0,"Trip(s) @",0,"miles @",{"$f":"SEDAN","v":0.7},{"$f":"SUM(C6*E6*G6)","v":0}]
[null,"Carry All",0,"Trip(s) @",0,"miles @",{"$f":"CARRYALL","v":0.72},{"$f":"SUM(C7*E7*G7)","v":0}]
[null,"Car Rental",null,null,0,"days @ ",{"$f":"CARRENTAL","v":50},{"$f":"SUM(E8*G8)","v":0}]
[null,"Gas for Rental",null,null,0,"miles @",{"$f":"GASforRENTAL","v":0.2},{"$f":"SUM(E9*G9)","v":0}]
[null,"Parking:",0,"Trip(s) @",null,null,{"$f":"PARKING","v":3},{"$f":"SUM(C10*G10)","v":0}]
[null,"Per Diem:",0,"Breakfast",null,null,{"$f":"BREAKFAST","v":10.1},{"$f":"SUM(C11*G11)","v":0}]
[null,null,0,"Lunch",null,null,{"$f":"LUNCH","v":13.3},0]
[null,null,0,"Dinner",null,null,{"$f":"DINNER","v":23.1},0]
[null,null,0,"Lodging",null,null,{"$f":"LODGING_LUMP.SUM","v":95},0]
[null,"Reproduction:",0,"8 1/2 x 11 B & W Copies @",null,null,{"$f":"LETTERCOPIES","v":0.14000000000000001},0]
[null,null,0,"11 x 17 B & W Copies @",null,null,{"$f":"LEDGERCOPIES","v":0.34},0]
[null,null,0,"8 1/2 x 11 Color Copies @",null,null,{"$f":"LETTERCOLOR","v":0.83},0]
[null,null,0,"11 x 17 Color Copies @",null,null,{"$f":"LEDGERCOLOR","v":1.66},0]
[null,null,0,"SQ. FT. of Plots (B & W or Color)",null,"<65 SQ. FT.*",{"$f":"ROLLPLOTSshort","v":6.5},0]
[null,null,0,"SQ. FT. of Plots (B & W or Color)",null,">65 SQ. FT.*",{"$f":"ROLLPLOTSlong","v":1.5},0]
[null,null,0,"Cover(s) @",null,null,{"$f":"COVERS","v":0.5},0]
[null,null,0,"Binder(s) @",null,null,{"$f":"BINDERS","v":0.5},0]
[null,null,0,"Blueprints - 8 1/2 x 11 @",null,null,{"$f":"BLUEPRINTSLETTER","v":0.35},0]
[null,null,0,"Blueprints - 42 x 72 @",null,null,{"$f":"BLUEPRINTSLARGE","v":1.3},0]
[null,"Film and Developing:",0,"Roll(s) @",null,null,{"$f":"FILM","v":20},0]
[null,null,null,null,null,"Subtotal",null,{"$f":"SUM(H6:H25)","v":0}]
["MAPS AND DOCUMENTS:","ITEM","QTY","DESCRIPTION",null,null,"UNIT COST "]
[null,"County Tax Maps:",0,"Map(s) @",null,null,{"$f":"County_Tax_Maps","v":7},{"$f":"SUM(C28*G28)","v":0}]
[null,"USGS Maps:",0,"Map(s) @",null,null,{"$f":"USGSMAPS","v":7},{"$f":"SUM(C29*G29)","v":0}]
[null,null,null,null,null,"Subtotal",null,{"$f":"SUM(H28:H29)","v":0}]
["Miscellaneous Other","ITEM","QTY","DESCRIPTION",null,null,"UNIT COST "]
[null,null,null,null,null,null,null,{"$f":"SUM(C32*G32)","v":0}]
[null,null,null,null,null,null,null,{"$f":"SUM(C33*G33)","v":0}]
[null,null,null,null,null,null,null,0]
[null,null,null,null,null,null,null,0]
[null,null,null,null,null,null,null,0]
[null,null,null,null,null,null,null,0]
[null,null,null,null,null,null,null,0]
[null,null,null,null,null,null,null,{"$f":"SUM(C39*G39)","v":0}]
[null,null,null,null,null,null,null,{"$f":"SUM(C40*G40)","v":0}]
[null,null,null,null,null,null,null,{"$f":"SUM(C41*G41)","v":0}]
[null,null,null,null,null,"Subtotal",null,{"$f":"SUM(H32:H41)","v":0}]
[]
[null,null,null,null,null,"TOTAL",null,{"$f":"SUM(H26+H30+H42)","v":0}]
[]
[null,"* Sum of all plots "]

{"sheet":"Rail-Sub7","index":151,"n_rows":275,"n_cols":47,"rows_kept":275,"cut":false,"hidden":true,"merged":[[280,8,280,9],[280,10,280,11],[283,8,283,13],[284,8,284,9],[284,10,284,11],[285,8,285,9],[285,10,285,11],[258,26,258,27],[259,26,259,27],[274,1,275,1],[274,3,275,4],[278,8,278,13],[279,8,279,9],[279,10,279,11],[252,26,252,27],[253,26,253,27],[254,26,254,27],[255,26,255,27],[256,26,256,27],[257,26,257,27],[248,26,248,27],[249,26,249,27],[250,26,250,27],[251,26,251,27],[100,26,100,27],[101,26,101,27],[188,26,188,27],[189,26,189,27],[190,26,190,27],[191,26,191,27],[192,26,192,27],[193,26,193,27],[194,26,194,27],[195,26,195,27],[196,26,196,27],[197,26,197,27],[198,26,198,27],[199,26,199,27],[215,26,215,27],[216,26,216,27],[217,26,217,27],[200,26,200,27],[201,26,201,27],[202,26,202,27],[94,26,94,27],[95,26,95,27],[96,26,96,27],[97,26,97,27],[98,26,98,27],[99,26,99,27],[88,26,88,27],[89,26,89,27],[90,26,90,27],[91,26,91,27],[92,26,92,27],[93,26,93,27],[82,26,82,27],[83,26,83,27],[84,26,84,27],[85,26,85,27],[86,26,86,27],[87,26,87,27],[76,26,76,27],[77,26,77,27],[78,26,78,27],[79,26,79,27],[80,26,80,27],[81,26,81,27],[70,26,70,27],[71,26,71,27],[72,26,72,27],[73,26,73,27],[74,26,74,27],[75,26,75,27],[64,26,64,27],[65,26,65,27],[66,26,66,27],[67,26,67,27],[68,26,68,27],[69,26,69,27],[58,26,58,27],[59,26,59,27],[60,26,60,27],[61,26,61,27],[62,26,62,27],[63,26,63,27],[52,26,52,27],[53,26,53,27],[54,26,54,27],[55,26,55,27],[56,26,56,27],[57,26,57,27],[46,26,46,27],[47,26,47,27],[48,26,48,27],[49,26,49,27],[50,26,50,27],[51,26,51,27],[40,26,40,27],[41,26,41,27],[42,26,42,27],[43,26,43,27],[44,26,44,27],[45,26,45,27],[34,26,34,27],[35,26,35,27],[36,26,36,27],[37,26,37,27],[38,26,38,27],[39,26,39,27],[28,26,28,27],[29,26,29,27],[30,26,30,27],[31,26,31,27],[32,26,32,27],[33,26,33,27],[22,26,22,27],[23,26,23,27],[24,26,24,27],[25,26,25,27],[26,26,26,27],[27,26,27,27],[16,26,16,27],[17,26,17,27],[18,26,18,27],[19,26,19,27],[20,26,20,27],[21,26,21,27],[10,26,10,27],[11,26,11,27],[12,26,12,27],[13,26,13,27],[14,26,14,27],[15,26,15,27],[6,18,9,18],[6,19,9,19],[6,20,9,20],[6,21,9,21],[6,22,9,22],[8,26,8,27],[6,12,9,12],[6,13,9,13],[6,14,9,14],[6,15,9,15],[6,16,9,16],[6,17,9,17],[4,3,4,22],[6,3,9,3],[6,4,9,4],[6,5,9,5],[6,6,9,6],[6,7,9,7],[6,8,9,8],[6,9,9,9],[6,10,9,10],[6,11,9,11],[0,0,1,13],[2,1,2,4],[2,6,2,7],[2,10,2,11],[2,15,2,16],[3,1,3,4],[3,6,3,7],[3,10,3,11],[3,15,3,16],[203,26,203,27],[204,26,204,27],[205,26,205,27],[206,26,206,27],[207,26,207,27],[208,26,208,27],[244,26,244,27],[245,26,245,27],[246,26,246,27],[236,26,236,27],[237,26,237,27],[238,26,238,27],[247,26,247,27],[227,26,227,27],[228,26,228,27],[229,26,229,27],[230,26,230,27],[231,26,231,27],[232,26,232,27],[233,26,233,27],[234,26,234,27],[235,26,235,27],[120,26,120,27],[121,26,121,27],[122,26,122,27],[123,26,123,27],[239,26,239,27],[240,26,240,27],[241,26,241,27],[242,26,242,27],[243,26,243,27],[218,26,218,27],[219,26,219,27],[220,26,220,27],[221,26,221,27],[222,26,222,27],[223,26,223,27],[224,26,224,27],[225,26,225,27],[226,26,226,27],[209,26,209,27],[210,26,210,27],[211,26,211,27],[212,26,212,27],[213,26,213,27],[214,26,214,27],[111,26,111,27],[112,26,112,27],[113,26,113,27],[114,26,114,27],[115,26,115,27],[116,26,116,27],[117,26,117,27],[118,26,118,27],[119,26,119,27],[102,26,102,27],[103,26,103,27],[104,26,104,27],[105,26,105,27],[106,26,106,27],[107,26,107,27],[108,26,108,27],[109,26,109,27],[110,26,110,27],[124,26,124,27],[125,26,125,27],[126,26,126,27],[127,26,127,27],[128,26,128,27],[129,26,129,27],[130,26,130,27],[131,26,131,27],[132,26,132,27],[133,26,133,27],[134,26,134,27],[135,26,135,27],[136,26,136,27],[137,26,137,27],[138,26,138,27],[139,26,139,27],[140,26,140,27],[141,26,141,27],[142,26,142,27],[143,26,143,27],[144,26,144,27],[145,26,145,27],[146,26,146,27],[147,26,147,27],[148,26,148,27],[149,26,149,27],[150,26,150,27],[163,26,163,27],[164,26,164,27],[165,26,165,27],[166,26,166,27],[167,26,167,27],[168,26,168,27],[151,26,151,27],[152,26,152,27],[153,26,153,27],[154,26,154,27],[155,26,155,27],[156,26,156,27],[157,26,157,27],[158,26,158,27],[159,26,159,27],[187,26,187,27],[3,26,3,27],[9,0,9,1],[178,26,178,27],[179,26,179,27],[180,26,180,27],[181,26,181,27],[182,26,182,27],[183,26,183,27],[184,26,184,27],[185,26,185,27],[186,26,186,27],[169,26,169,27],[170,26,170,27],[171,26,171,27],[172,26,172,27],[173,26,173,27],[174,26,174,27],[175,26,175,27],[176,26,176,27],[177,26,177,27],[160,26,160,27],[161,26,161,27],[162,26,162,27]]}
["                                                                      SUBCONSULTANT 7 - RAIL DIVISION BREAKDOWN WORKSHEET -- ENTER WORKHOURS"]
[]
["PROJECT DESCRIPTION: ",{"$f":"PROJECT.DESCRIPTION","v":0},null,null,null,"FIRM:  ",{"$f":"RAIL.SUB7_CONSULTANT_NAME","v":"CONSULTANT NAME"},null,"TASK ORDER NUMBER:",null,{"$f":"TASK.ORDER.NUMBER","v":0},null,"DATE PREPARED:",{"$f":"IF(SCOPE.MANDAY.ESTIMATE.PREPARED.BY.DATE=\"\",\"\",SCOPE.MANDAY.ESTIMATE.PREPARED.BY.DATE)","v":""}]
["PREPARED BY:  ",{"$f":"IF(SCOPE.MANDAY.ESTIMATE.PREPARED.BY=\"\",\"\",SCOPE.MANDAY.ESTIMATE.PREPARED.BY)","v":""},null,null,null,"TIP NUMBER:",{"$f":"TIP.NUMBER","v":0},null,"WBS NUMBER:",null,{"$f":"WBS.NUMBER","v":""},null,"REVISION DATE:",{"$f":"IF(SCOPE.MANDAY.ESTIMATE.APPROVED.BY.DATE=\"\",\"\",SCOPE.MANDAY.ESTIMATE.APPROVED.BY.DATE)","v":""},null,null,null,null,null,null,null,null,null,null,null,"TASK TYPE:","Select Task Type"]
[null,null,null,"ESTIMATED WORKHOURS"]
[null,null,"EMPLOYEE NAMES",{"$f":"IF('PEF CLASSIFICATION SHEET'!D1233=\"\",\"\",LEFT('PEF CLASSIFICATION SHEET'!D1233,4))","v":""},{"$f":"IF('PEF CLASSIFICATION SHEET'!D1234=\"\",\"\",LEFT('PEF CLASSIFICATION SHEET'!D1234,4))","v":""},{"$f":"IF('PEF CLASSIFICATION SHEET'!D1235=\"\",\"\",LEFT('PEF CLASSIFICATION SHEET'!D1235,4))","v":""},{"$f":"IF('PEF CLASSIFICATION SHEET'!D1236=\"\",\"\",LEFT('PEF CLASSIFICATION SHEET'!D1236,4))","v":""},{"$f":"IF('PEF CLASSIFICATION SHEET'!D1237=\"\",\"\",LEFT('PEF CLASSIFICATION SHEET'!D1237,4))","v":""},{"$f":"IF('PEF CLASSIFICATION SHEET'!D1238=\"\",\"\",LEFT('PEF CLASSIFICATION SHEET'!D1238,4))","v":""},{"$f":"IF('PEF CLASSIFICATION SHEET'!D1239=\"\",\"\",LEFT('PEF CLASSIFICATION SHEET'!D1239,4))","v":""},{"$f":"IF('PEF CLASSIFICATION SHEET'!D1240=\"\",\"\",LEFT('PEF CLASSIFICATION SHEET'!D1240,4))","v":""},{"$f":"IF('PEF CLASSIFICATION SHEET'!D1241=\"\",\"\",LEFT('PEF CLASSIFICATION SHEET'!D1241,4))","v":""},{"$f":"IF('PEF CLASSIFICATION SHEET'!D1242=\"\",\"\",LEFT('PEF CLASSIFICATION SHEET'!D1242,4))","v":""},{"$f":"IF('PEF CLASSIFICATION SHEET'!D1243=\"\",\"\",LEFT('PEF CLASSIFICATION SHEET'!D1243,4))","v":""},{"$f":"IF('PEF CLASSIFICATION SHEET'!D1244=\"\",\"\",LEFT('PEF CLASSIFICATION SHEET'!D1244,4))","v":""},{"$f":"IF('PEF CLASSIFICATION SHEET'!D1245=\"\",\"\",LEFT('PEF CLASSIFICATION SHEET'!D1245,4))","v":""},{"$f":"IF('PEF CLASSIFICATION SHEET'!D1246=\"\",\"\",LEFT('PEF CLASSIFICATION SHEET'!D1246,4))","v":""},{"$f":"IF('PEF CLASSIFICATION SHEET'!D1247=\"\",\"\",LEFT('PEF CLASSIFICATION SHEET'!D1247,4))","v":""},{"$f":"IF('PEF CLASSIFICATION SHEET'!D1248=\"\",\"\",LEFT('PEF CLASSIFICATION SHEET'!D1248,4))","v":""},{"$f":"IF('PEF CLASSIFICATION SHEET'!D1249=\"\",\"\",LEFT('PEF CLASSIFICATION SHEET'!D1249,4))","v":""},{"$f":"IF('PEF CLASSIFICATION SHEET'!D1250=\"\",\"\",LEFT('PEF CLASSIFICATION SHEET'!D1250,4))","v":""},{"$f":"IF('PEF CLASSIFICATION SHEET'!D1251=\"\",\"\",LEFT('PEF CLASSIFICATION SHEET'!D1251,4))","v":""},{"$f":"IF('PEF CLASSIFICATION SHEET'!D1252=\"\",\"\",LEFT('PEF CLASSIFICATION SHEET'!D1252,4))","v":""}]
[null,null,null,{"$f":"IF('PEF CLASSIFICATION SHEET'!C1233=\"\",\"\",'PEF CLASSIFICATION SHEET'!C1233)","v":""},{"$f":"IF('PEF CLASSIFICATION SHEET'!C1234=\"\",\"\",'PEF CLASSIFICATION SHEET'!C1234)","v":""},{"$f":"IF('PEF CLASSIFICATION SHEET'!C1235=\"\",\"\",'PEF CLASSIFICATION SHEET'!C1235)","v":""},{"$f":"IF('PEF CLASSIFICATION SHEET'!C1236=\"\",\"\",'PEF CLASSIFICATION SHEET'!C1236)","v":""},{"$f":"IF('PEF CLASSIFICATION SHEET'!C1237=\"\",\"\",'PEF CLASSIFICATION SHEET'!C1237)","v":""},{"$f":"IF('PEF CLASSIFICATION SHEET'!C1238=\"\",\"\",'PEF CLASSIFICATION SHEET'!C1238)","v":""},{"$f":"IF('PEF CLASSIFICATION SHEET'!C1239=\"\",\"\",'PEF CLASSIFICATION SHEET'!C1239)","v":""},{"$f":"IF('PEF CLASSIFICATION SHEET'!C1240=\"\",\"\",'PEF CLASSIFICATION SHEET'!C1240)","v":""},{"$f":"IF('PEF CLASSIFICATION SHEET'!C1241=\"\",\"\",'PEF CLASSIFICATION SHEET'!C1241)","v":""},{"$f":"IF('PEF CLASSIFICATION SHEET'!C1242=\"\",\"\",'PEF CLASSIFICATION SHEET'!C1242)","v":""},{"$f":"IF('PEF CLASSIFICATION SHEET'!C1243=\"\",\"\",'PEF CLASSIFICATION SHEET'!C1243)","v":""},{"$f":"IF('PEF CLASSIFICATION SHEET'!C1244=\"\",\"\",'PEF CLASSIFICATION SHEET'!C1244)","v":""},{"$f":"IF('PEF CLASSIFICATION SHEET'!C1245=\"\",\"\",'PEF CLASSIFICATION SHEET'!C1245)","v":""},{"$f":"IF('PEF CLASSIFICATION SHEET'!C1246=\"\",\"\",'PEF CLASSIFICATION SHEET'!C1246)","v":""},{"$f":"IF('PEF CLASSIFICATION SHEET'!C1247=\"\",\"\",'PEF CLASSIFICATION SHEET'!C1247)","v":""},{"$f":"IF('PEF CLASSIFICATION SHEET'!C1248=\"\",\"\",'PEF CLASSIFICATION SHEET'!C1248)","v":""},{"$f":"IF('PEF CLASSIFICATION SHEET'!C1249=\"\",\"\",'PEF CLASSIFICATION SHEET'!C1249)","v":""},{"$f":"IF('PEF CLASSIFICATION SHEET'!C1250=\"\",\"\",'PEF CLASSIFICATION SHEET'!C1250)","v":""},{"$f":"IF('PEF CLASSIFICATION SHEET'!C1251=\"\",\"\",'PEF CLASSIFICATION SHEET'!C1251)","v":""},{"$f":"IF('PEF CLASSIFICATION SHEET'!C1252=\"\",\"\",'PEF CLASSIFICATION SHEET'!C1252)","v":""},"SUB-","%","PEF"]
[null,null,null,null,null,null,null,null,null,null,null,null,null,null,null,null,null,null,null,null,null,null,null,"TOTAL","OF","ESTIMATE"]
["TASK NO.","TASK DESCRIPTION","CLASSIFICATION",null,null,null,null,null,null,null,null,null,null,null,null,null,null,null,null,null,null,null,null,null,"PROJECT",null,"COMMENTS",null,null,null,null,null,null,null,"Select Task Type","Grade Separation","CEI","Track Design","Signal Design","Environmental","Planning"]
[{"$f":"IF($AA$4=\"Select Task Type\",\"Select the TASK TYPE from drop down list in cell AA4 to populate the task list\",IF($AA$4=\"Grade Separation\",\"You selected Grade Separation\",IF($AA$4=\"CEI\",\"You selected CEI\",IF($AA$4=\"Track Design\",\"You selected Track Design.  When the task is ALL CAPS, this is a header row, if you choose to key mandays associated with that header row the row total will not be displayed but the column and overall total will sum appropriately\",IF($AA$4=\"Signal Design\",\"You selected Signal Design, note that this is initially a blank task list; so please create a task list from scratch\",IF($AA$4=\"Environmental\",\"You selected Environmental.  When the task is ALL CAPS, this is a header row, if you choose to key mandays associated with that header row the row total will not be displayed but the column and overall total will sum appropriately\",IF($AA$4=\"Planning\",\"You selected Planning.  When the task is ALL CAPS, this is a header row, if you choose to key mandays associated with that header row the row total will not be displayed but the column and overall total will sum appropriately\",\"Select the TASK TYPE from drop down list in cell AA4 to populate the task list\")))))))","v":"Select the TASK TYPE from drop down list in cell AA4 to populate the task list"},null,null,null,null,null,null,null,null,null,null,null,null,null,null,null,null,null,null,null,null,null,null,null,null,null,null,null,null,null,null,null,null,null,null,"Grade Separation","Grade Separation","CEI","CEI","Track Design","Track Design","Signal Design","Signal Design","Environmental","Environmental","Planning","Planning"]
[{"$f":"IF(AG11=0,\"\",AG11)","v":""},{"$f":"IF(AH11=0,\"\",AH11)","v":""},null,null,null,null,null,null,null,null,null,null,null,null,null,null,null,null,null,null,null,null,null,{"$f":"IF(B11=\"\",0,IF(B11=\"DEMAND ASSESSMENT\",\"\",IF(B11=\"PROJECT SCOPING AND DATA COLLECTION\",\"\",IF(B11=\"PROJECT MANAGEMENT/PROJECT ADMINISTRATION\",\"\",IF((SUM(D11:W11)=0),0,SUM(D11:W11))))))","v":0},{"$f":"IF(SUM(D11:W11)=0,\"\",((SUM(D11:W11))/$X$261))","v":""},null,null,null,null,null,null,null,{"$f":"IF($AA$4=\"Select Task Type\",\"\",IF($AA$4=\"Grade Separation\",AJ11,IF($AA$4=\"CEI\",AL11,IF($AA$4=\"Track Design\",AN11,IF($AA$4=\"Signal Design\",AP11,IF($AA$4=\"Environmental\",AR11,IF($AA$4=\"Planning\",AT11,\"\")))))))","v":""},{"$f":"IF($AA$4=\"Select Task Type\",\"\",IF($AA$4=\"Grade Separation\",AK11,IF($AA$4=\"CEI\",AM11,IF($AA$4=\"Track Design\",AO11,IF($AA$4=\"Signal Design\",AQ11,IF($AA$4=\"Environmental\",AS11,IF($AA$4=\"Planning\",AU11,\"\")))))))","v":""},null,1,"Project Familiarization",1,"Project management and document review",1,"PROJECT MANAGEMENT/PROJECT ADMINISTRATION",null,null,"A","PROJECT SCOPING AND DATA COLLECTION",1,"DEMAND ASSESSMENT"]
[{"$f":"IF(AG12=0,\"\",AG12)","v":""},"",null,null,null,null,null,null,null,null,null,null,null,null,null,null,null,null,null,null,null,null,null,{"$f":"IF(B12=\"\",0,IF((SUM(D12:W12)=0),0,SUM(D12:W12)))","v":0},{"$f":"IF(SUM(D12:W12)=0,\"\",((SUM(D12:W12))/$X$261))","v":""},null,null,null,null,null,null,null,{"$f":"IF($AA$4=\"Select Task Type\",\"\",IF($AA$4=\"Grade Separation\",AJ12,IF($AA$4=\"CEI\",AL12,IF($AA$4=\"Track Design\",AN12,IF($AA$4=\"Signal Design\",AP12,IF($AA$4=\"Environmental\",AR12,IF($AA$4=\"Planning\",AT12,\"\")))))))","v":""},"",null,2,"Conceptual Design",2,"Track inspection",null,null,null,null,"A.1","Study Area Definition",null,"Review previous studies"]
["","",null,null,null,null,null,null,null,null,null,null,null,null,null,null,null,null,null,null,null,null,null,0,{"$f":"IF(SUM(D13:W13)=0,\"\",((SUM(D13:W13))/$X$261))","v":""},null,null,null,null,null,null,null,"","",null,3,"Construction Cost Estimate",3,"Roadway inspection",null,null,null,null,"A.2","Study Area Field Visit",null,"Interview XX, XX, and XX on near-term rail intermodal and break bulk plans"]
["","",null,null,null,null,null,null,null,null,null,null,null,null,null,null,null,null,null,null,null,null,null,0,"",null,null,null,null,null,null,null,"","",null,4,"Project Coordination",null,null,null,null,null,null,"A.3","Community Characteristics Report",null,"Estimate effects of various rail entities"]
["","",null,null,null,null,null,null,null,null,null,null,null,null,null,null,null,null,null,null,null,null,null,0,"",null,null,null,null,null,null,null,"","",null,null,null,null,null,null,null,null,null,"A.4","Local Land Use and Transportation Plans",null,"Estimate future growth in other bulk and break bulk commodities"]
["","",null,null,null,null,null,null,null,null,null,null,null,null,null,null,null,null,null,null,null,null,null,0,"",null,null,null,null,null,null,null,"","",null,null,null,null,null,null,null,null,null,"A.5","State and Federal Data Sources",null,"Incorporate State Freight Plan into market forecasts "]
["","",null,null,null,null,null,null,null,null,null,null,null,null,null,null,null,null,null,null,null,null,null,0,"",null,null,null,null,null,null,null,"","",null,null,null,null,null,null,null,null,null,"A.6 ","GeoEnvironmental Review",null,"Project port continued share against market growth"]
["","",null,null,null,null,null,null,null,null,null,null,null,null,null,null,null,null,null,null,null,null,null,0,"",null,null,null,null,null,null,null,"","",null,null,null,null,null,null,null,null,null,"A.7","GIS Data Layers and Aerial Photography",null,"Combine forecasts from various groups into a base line forecast"]
["","",null,null,null,null,null,null,null,null,null,null,null,null,null,null,null,null,null,null,null,null,null,0,"",null,null,null,null,null,null,null,"","",null,null,null,null,null,null,null,null,null,"A.8","Evaluation of Existing Transportation Facilities",null,"Develop an updated base forecast"]
["","",null,null,null,null,null,null,null,null,null,null,null,null,null,null,null,null,null,null,null,null,null,0,"",null,null,null,null,null,null,null,"","",null,null,null,null,null,null,null,null,null,"A.9","Traffic Forecast Request",null,"Compare with freight forecast in NC State Freight Plan, contrast against existing port rail capacity, identify delta required to accommodate additional traffic"]
["","",null,null,null,null,null,null,null,null,null,null,null,null,null,null,null,null,null,null,null,null,null,0,"",null,null,null,null,null,null,null,"","",null,null,null,null,null,null,null,null,null,"A.10","Project Data Sheet",null,"Add in empty return exports and revise forecast"]
["","",null,null,null,null,null,null,null,null,null,null,null,null,null,null,null,null,null,null,null,null,null,{"$f":"IF(B22=\"\",0,IF(B22=\"FUNCTIONAL TRACK DESIGN\",\"\",IF((SUM(D22:W22)=0),0,SUM(D22:W22))))","v":0},"",null,null,null,null,null,null,null,"","",null,null,null,null,null,2,"FUNCTIONAL TRACK DESIGN",null,null,"A.11","Start of Study Letters",null,"Develop near-term outlook of market demand and system requirements"]
["","",null,null,null,null,null,null,null,null,null,null,null,null,null,null,null,null,null,null,null,null,null,{"$f":"IF(B23=\"\",0,IF((SUM(D23:W23)=0),0,SUM(D23:W23)))","v":0},"",null,null,null,null,null,null,null,"","",null,null,null,null,null,null,null,null,null,"A.12","Kickoff/Scoping Meeting",null,"Review operations and plans for XX, suggest if port rail facilities can accommodate projected growth"]
["","",null,null,null,null,null,null,null,null,null,null,null,null,null,null,null,null,null,null,null,null,null,{"$f":"IF(B24=\"\",0,IF((SUM(D24:W24)=0),0,SUM(D24:W24)))","v":0},"",null,null,null,null,null,null,null,"","",null,null,null,null,null,null,null,null,null,"A.13",null,null,"Identify conceptual rail capacity and prospects for service assuming successful XX service"]
["","",null,null,null,null,null,null,null,null,null,null,null,null,null,null,null,null,null,null,null,null,null,{"$f":"IF(B25=\"\",0,IF((SUM(D25:W25)=0),0,SUM(D25:W25)))","v":0},"",null,null,null,null,null,null,null,"","",null,null,null,null,null,null,null,null,null,"A.14",null,null,"Evaluate rail operations @ port to identify conflicts and opportunities to serve both intermodal and break bulk rail customers"]
["","",null,null,null,null,null,null,null,null,null,null,null,null,null,null,null,null,null,null,null,null,null,{"$f":"IF(B26=\"\",0,IF((SUM(D26:W26)=0),0,SUM(D26:W26)))","v":0},"",null,null,null,null,null,null,null,"","",null,null,null,null,null,null,null,null,null,"A.15",null,null,"Develop near-term outlook of market demand and system requirements"]
["","",null,null,null,null,null,null,null,null,null,null,null,null,null,null,null,null,null,null,null,null,null,{"$f":"IF(B27=\"\",0,IF((SUM(D27:W27)=0),\"\",SUM(D27:W27)))","v":0},"",null,null,null,null,null,null,null,"","",null,null,null,null,null,null,null,null,null,"A.16"]
["","",null,null,null,null,null,null,null,null,null,null,null,null,null,null,null,null,null,null,null,null,null,0,"",null,null,null,null,null,null,null,"","",null,null,null,null,null,null,null,null,null,"A.17"]
["","",null,null,null,null,null,null,null,null,null,null,null,null,null,null,null,null,null,null,null,null,null,{"$f":"IF(B29=\"\",0,IF(B29=\"TRAFFIC CAPACITY ANALYSIS AND ACCIDENT ANALYSIS\",\"\",IF((SUM(D29:W29)=0),0,SUM(D29:W29))))","v":0},"",null,null,null,null,null,null,null,"","",null,null,null,null,null,null,null,null,null,"B","TRAFFIC CAPACITY ANALYSIS AND ACCIDENT ANALYSIS"]
["","",null,null,null,null,null,null,null,null,null,null,null,null,null,null,null,null,null,null,null,null,null,{"$f":"IF(B30=\"\",0,IF((SUM(D30:W30)=0),0,SUM(D30:W30)))","v":0},"",null,null,null,null,null,null,null,"","",null,null,null,null,null,null,null,null,null,"B.1","Coordinate with Stantec & incorporate the analysis"]
["","",null,null,null,null,null,null,null,null,null,null,null,null,null,null,null,null,null,null,null,null,null,{"$f":"IF(B31=\"\",0,IF((SUM(D31:W31)=0),0,SUM(D31:W31)))","v":0},"",null,null,null,null,null,null,null,"","",null,null,null,null,null,null,null,null,null,"B.2"]
["","",null,null,null,null,null,null,null,null,null,null,null,null,null,null,null,null,null,null,null,null,null,{"$f":"IF(B32=\"\",0,IF(B32=\"PORT MASTER PLAN REVIEW\",\"\",IF((SUM(D32:W32)=0),0,SUM(D32:W32))))","v":0},"",null,null,null,null,null,null,null,"","",null,null,null,null,null,null,null,null,null,"B.3",null,2,"PORT MASTER PLAN REVIEW"]
["","",null,null,null,null,null,null,null,null,null,null,null,null,null,null,null,null,null,null,null,null,null,{"$f":"IF(B33=\"\",0,IF(B33=\"PRELIMINARY TRACK DESIGN\",\"\",IF((SUM(D33:W33)=0),0,SUM(D33:W33))))","v":0},"",null,null,null,null,null,null,null,"","",null,null,null,null,null,3,"PRELIMINARY TRACK DESIGN",null,null,"B.4",null,null,"Identify area needed to accommodate each targeted market"]
["","",null,null,null,null,null,null,null,null,null,null,null,null,null,null,null,null,null,null,null,null,null,{"$f":"IF(B34=\"\",0,IF((SUM(D34:W34)=0),0,SUM(D34:W34)))","v":0},"",null,null,null,null,null,null,null,"","",null,null,null,null,null,null,null,null,null,"B.5",null,null,"Assess ability to meet current and projected needs"]
["","",null,null,null,null,null,null,null,null,null,null,null,null,null,null,null,null,null,null,null,null,null,{"$f":"IF(B35=\"\",0,IF((SUM(D35:W35)=0),0,SUM(D35:W35)))","v":0},"",null,null,null,null,null,null,null,"","",null,null,null,null,null,null,null,null,null,"B.6",null,null,"Coordinate with Port regarding future Port plans"]
["","",null,null,null,null,null,null,null,null,null,null,null,null,null,null,null,null,null,null,null,null,null,{"$f":"IF(B36=\"\",0,IF(B36=\"PROJECT PURPOSE AND NEED\",\"\",IF((SUM(D36:W36)=0),0,SUM(D36:W36))))","v":0},"",null,null,null,null,null,null,null,"","",null,null,null,null,null,null,null,null,null,"C","PROJECT PURPOSE AND NEED",null,"Develop recommendations to layout and/or processes to meet anticipated needs while not conflicting or constraining future activities"]
["","",null,null,null,null,null,null,null,null,null,null,null,null,null,null,null,null,null,null,null,null,null,{"$f":"IF(B37=\"\",0,IF((SUM(D37:W37)=0),0,SUM(D37:W37)))","v":0},"",null,null,null,null,null,null,null,"","",null,null,null,null,null,null,null,null,null,"C.1","Preliminary Purpose and Need",null,"Prepare draft port layout"]
["","",null,null,null,null,null,null,null,null,null,null,null,null,null,null,null,null,null,null,null,null,null,0,"",null,null,null,null,null,null,null,"","",null,null,null,null,null,null,null,null,null,"C.2","Final Purpose and Need Memorandum",null,"Revise per NCDOT comments and prepare final port layout"]
["","",null,null,null,null,null,null,null,null,null,null,null,null,null,null,null,null,null,null,null,null,null,0,"",null,null,null,null,null,null,null,"","",null,null,null,null,null,null,null,null,null,"C.3"]
["","",null,null,null,null,null,null,null,null,null,null,null,null,null,null,null,null,null,null,null,null,null,0,"",null,null,null,null,null,null,null,"","",null,null,null,null,null,null,null,null,null,"C.4"]
["","",null,null,null,null,null,null,null,null,null,null,null,null,null,null,null,null,null,null,null,null,null,0,"",null,null,null,null,null,null,null,"","",null,null,null,null,null,null,null,null,null,"C.5"]
["","",null,null,null,null,null,null,null,null,null,null,null,null,null,null,null,null,null,null,null,null,null,0,"",null,null,null,null,null,null,null,"","",null,null,null,null,null,null,null,null,null,"C.6"]
["","",null,null,null,null,null,null,null,null,null,null,null,null,null,null,null,null,null,null,null,null,null,0,"",null,null,null,null,null,null,null,"","",null,null,null,null,null,null,null,null,null,"C.7"]
["","",null,null,null,null,null,null,null,null,null,null,null,null,null,null,null,null,null,null,null,null,null,{"$f":"IF(B44=\"\",0,IF(B44=\"RAIL INVENTORY AND REVIEW OF EXISTING OPERATIONS\",\"\",IF(B44=\"DEVELOPMENT AND EVALUATION OF DESIGN ALTERNATIVES\",\"\",IF(B44=\"FINAL TRACK DESIGN\",\"\",IF((SUM(D44:W44)=0),0,SUM(D44:W44))))))","v":0},"",null,null,null,null,null,null,null,"","",null,null,null,null,null,4,"FINAL TRACK DESIGN",null,null,"D","DEVELOPMENT AND EVALUATION OF DESIGN ALTERNATIVES",3,"RAIL INVENTORY AND REVIEW OF EXISTING OPERATIONS"]
["","",null,null,null,null,null,null,null,null,null,null,null,null,null,null,null,null,null,null,null,null,null,{"$f":"IF(B45=\"\",0,IF((SUM(D45:W45)=0),0,SUM(D45:W45)))","v":0},"",null,null,null,null,null,null,null,"","",null,null,null,null,null,null,null,null,null,"D.1","Collaboration on Development of Design Alternatives",null,"Review Port facilities on the ground, identify acreage which could accommodate additional functions in support of rail operations"]
["","",null,null,null,null,null,null,null,null,null,null,null,null,null,null,null,null,null,null,null,null,null,0,"",null,null,null,null,null,null,null,"","",null,null,null,null,null,null,null,null,null,"D.2","Qualitative Screening of Design Alternatives",null,"Review XX and XX track charts and track maps for Port"]
["","",null,null,null,null,null,null,null,null,null,null,null,null,null,null,null,null,null,null,null,null,null,0,"",null,null,null,null,null,null,null,"","",null,null,null,null,null,null,null,null,null,"D.3",null,null,"Review any related TSS"]
["","",null,null,null,null,null,null,null,null,null,null,null,null,null,null,null,null,null,null,null,null,null,0,"",null,null,null,null,null,null,null,"","",null,null,null,null,null,null,null,null,null,"D.4",null,null,"Conduct a windshield survey of XX line at Port and document observations"]
["","",null,null,null,null,null,null,null,null,null,null,null,null,null,null,null,null,null,null,null,null,null,0,"",null,null,null,null,null,null,null,"","",null,null,null,null,null,null,null,null,null,"D.5",null,null,"Identify opportunities to locate a future passing siding."]
["","",null,null,null,null,null,null,null,null,null,null,null,null,null,null,null,null,null,null,null,null,null,0,"",null,null,null,null,null,null,null,"","",null,null,null,null,null,null,null,null,null,"D.6"]
["","",null,null,null,null,null,null,null,null,null,null,null,null,null,null,null,null,null,null,null,null,null,0,"",null,null,null,null,null,null,null,"","",null,null,null,null,null,null,null,null,null,"D.7"]
["","",null,null,null,null,null,null,null,null,null,null,null,null,null,null,null,null,null,null,null,null,null,{"$f":"IF(B52=\"\",0,IF(B52=\"BIOTIC RESOURCES\",\"\",IF((SUM(D52:W52)=0),0,SUM(D52:W52))))","v":0},"",null,null,null,null,null,null,null,"","",null,null,null,null,null,null,null,null,null,"E.3","BIOTIC RESOURCES"]
["","",null,null,null,null,null,null,null,null,null,null,null,null,null,null,null,null,null,null,null,null,null,{"$f":"IF(B53=\"\",0,IF((SUM(D53:W53)=0),0,SUM(D53:W53)))","v":0},"",null,null,null,null,null,null,null,"","",null,null,null,null,null,null,null,null,null,"E.3.a","Terrestrial Communities"]
["","",null,null,null,null,null,null,null,null,null,null,null,null,null,null,null,null,null,null,null,null,null,{"$f":"IF(B54=\"\",0,IF((SUM(D54:W54)=0),0,SUM(D54:W54)))","v":0},"",null,null,null,null,null,null,null,"","",null,null,null,null,null,null,null,null,null,"E.3.b","Terrestrial Wildlife"]
["","",null,null,null,null,null,null,null,null,null,null,null,null,null,null,null,null,null,null,null,null,null,{"$f":"IF(B55=\"\",0,IF(B55=\"CAPACITY AND VELOCITY\",\"\",IF((SUM(D55:W55)=0),0,SUM(D55:W55))))","v":0},"",null,null,null,null,null,null,null,"","",null,null,null,null,null,null,null,null,null,"E.3.c","Aquatic Communities and Wildlife",4,"CAPACITY AND VELOCITY"]
["","",null,null,null,null,null,null,null,null,null,null,null,null,null,null,null,null,null,null,null,null,null,{"$f":"IF(B56=\"\",0,IF((SUM(D56:W56)=0),0,SUM(D56:W56)))","v":0},"",null,null,null,null,null,null,null,"","",null,null,null,null,null,null,null,null,null,"E.3.d","Invasive Species",null,"Develop a level of service (LOS) classification for XX"]
["","",null,null,null,null,null,null,null,null,null,null,null,null,null,null,null,null,null,null,null,null,null,0,"",null,null,null,null,null,null,null,"","",null,null,null,null,null,null,null,null,null,"E.3.e",null,null,"Identify theoretical capacity XX based upon tonnage (GMT), GMT per train, and number of trains"]
["","",null,null,null,null,null,null,null,null,null,null,null,null,null,null,null,null,null,null,null,null,null,0,"",null,null,null,null,null,null,null,"","",null,null,null,null,null,null,null,null,null,"E.3.f",null,null,"Compare theoretical capacity with forecast train volumes"]
["","",null,null,null,null,null,null,null,null,null,null,null,null,null,null,null,null,null,null,null,null,null,0,"",null,null,null,null,null,null,null,"","",null,null,null,null,null,null,null,null,null,"E.3.g",null,null,"Observe operations to develop an estimate of current velocity (travel time over mileage) to/from XX"]
["","",null,null,null,null,null,null,null,null,null,null,null,null,null,null,null,null,null,null,null,null,null,0,"",null,null,null,null,null,null,null,"","",null,null,null,null,null,null,null,null,null,"E.3.h",null,null,"Review XX track charts and operating rules, assess for potential changes which could more effectively utilize existing capacity"]
["","",null,null,null,null,null,null,null,null,null,null,null,null,null,null,null,null,null,null,null,null,null,0,"",null,null,null,null,null,null,null,"","",null,null,null,null,null,null,null,null,null,"E.3.i",null,null,"Review related TSS to identify projects which could increase operating speeds and improve velocity"]
["","",null,null,null,null,null,null,null,null,null,null,null,null,null,null,null,null,null,null,null,null,null,{"$f":"IF(B62=\"\",0,IF(B62=\"JURISDICTIONAL ISSUES\",\"\",IF((SUM(D62:W62)=0),0,SUM(D62:W62))))","v":0},"",null,null,null,null,null,null,null,"","",null,null,null,null,null,null,null,null,null,"E.4","JURISDICTIONAL ISSUES"]
["","",null,null,null,null,null,null,null,null,null,null,null,null,null,null,null,null,null,null,null,null,null,{"$f":"IF(B63=\"\",0,IF((SUM(D63:W63)=0),0,SUM(D63:W63)))","v":0},"",null,null,null,null,null,null,null,"","",null,null,null,null,null,null,null,null,null,"E.4.a","Clean Water Act (CWA) Waters of the US"]
["","",null,null,null,null,null,null,null,null,null,null,null,null,null,null,null,null,null,null,null,null,null,{"$f":"IF(B64=\"\",0,IF((SUM(D64:W64)=0),0,SUM(D64:W64)))","v":0},"",null,null,null,null,null,null,null,"","",null,null,null,null,null,null,null,null,null,"E.4.b","CWA Permits"]
["","",null,null,null,null,null,null,null,null,null,null,null,null,null,null,null,null,null,null,null,null,null,{"$f":"IF(B65=\"\",0,IF((SUM(D65:W65)=0),0,SUM(D65:W65)))","v":0},"",null,null,null,null,null,null,null,"","",null,null,null,null,null,null,null,null,null,"E.4.c","Construction Moratoria"]
["","",null,null,null,null,null,null,null,null,null,null,null,null,null,null,null,null,null,null,null,null,null,{"$f":"IF(B66=\"\",0,IF((SUM(D66:W66)=0),0,SUM(D66:W66)))","v":0},"",null,null,null,null,null,null,null,"","",null,null,null,null,null,null,null,null,null,"E.4.d","Rivers and Harbors Act Section 10 Navigable Waters"]
["","",null,null,null,null,null,null,null,null,null,null,null,null,null,null,null,null,null,null,null,null,null,{"$f":"IF(B67=\"\",0,IF(B67=\"RAIL INFRASTRUCTURE IMPROVEMENTS\",\"\",IF((SUM(D67:W67)=0),0,SUM(D67:W67))))","v":0},"",null,null,null,null,null,null,null,"","",null,null,null,null,null,null,null,null,null,"E.4.e","Wetland and Stream Mitigation",5,"RAIL INFRASTRUCTURE IMPROVEMENTS"]
["","",null,null,null,null,null,null,null,null,null,null,null,null,null,null,null,null,null,null,null,null,null,{"$f":"IF(B68=\"\",0,IF((SUM(D68:W68)=0),0,SUM(D68:W68)))","v":0},"",null,null,null,null,null,null,null,"","",null,null,null,null,null,null,null,null,null,"E.4.f","Endangered Species Act Protected Species",null,"Review existing infrastructure"]
["","",null,null,null,null,null,null,null,null,null,null,null,null,null,null,null,null,null,null,null,null,null,0,"",null,null,null,null,null,null,null,"","",null,null,null,null,null,null,null,null,null,"E.4.g","Essential Fish Habitat",null,"Determine potential needs based on growth"]
["","",null,null,null,null,null,null,null,null,null,null,null,null,null,null,null,null,null,null,null,null,null,0,"",null,null,null,null,null,null,null,"","",null,null,null,null,null,null,null,null,null,"E.4.h",null,null,"Suggest potential enhancements to address future needs (X scenarios)"]
["","",null,null,null,null,null,null,null,null,null,null,null,null,null,null,null,null,null,null,null,null,null,0,"",null,null,null,null,null,null,null,"","",null,null,null,null,null,null,null,null,null,"E.4.i",null,null,"Coordinate with NCDOT and others to consider the capacity of XX"]
["","",null,null,null,null,null,null,null,null,null,null,null,null,null,null,null,null,null,null,null,null,null,0,"",null,null,null,null,null,null,null,"","",null,null,null,null,null,null,null,null,null,"E.4.j",null,null,"Develop conceptual recommendations to improve efficiency of operations between XX and YY"]
["","",null,null,null,null,null,null,null,null,null,null,null,null,null,null,null,null,null,null,null,null,null,0,"",null,null,null,null,null,null,null,"","",null,null,null,null,null,null,null,null,null,"E.4.k"]
["","",null,null,null,null,null,null,null,null,null,null,null,null,null,null,null,null,null,null,null,null,null,0,"",null,null,null,null,null,null,null,"","",null,null,null,null,null,null,null,null,null,"E.4.l"]
["","",null,null,null,null,null,null,null,null,null,null,null,null,null,null,null,null,null,null,null,null,null,0,"",null,null,null,null,null,null,null,"","",null,null,null,null,null,null,null,null,null,"E.5","NRTR Document"]
[{"$f":"IF(AG76=0,\"\",AG76)","v":""},"",null,null,null,null,null,null,null,null,null,null,null,null,null,null,null,null,null,null,null,null,null,0,"",null,null,null,null,null,null,null,{"$f":"IF($AA$4=\"Select Task Type\",\"\",IF($AA$4=\"Grade Separation\",AJ76,IF($AA$4=\"CEI\",AL76,IF($AA$4=\"Track Design\",AN76,IF($AA$4=\"Signal Design\",AP76,IF($AA$4=\"Environmental\",AR76,IF($AA$4=\"Planning\",AT76,\"\")))))))","v":""},"",null,null,null,null,null,null,null,null,null,"E.5.a"]
["","",null,null,null,null,null,null,null,null,null,null,null,null,null,null,null,null,null,null,null,null,null,0,{"$f":"IF(SUM(D77:W77)=0,\"\",((SUM(D77:W77))/$X$261))","v":""},null,null,null,null,null,null,null,"","",null,null,null,null,null,null,null,null,null,"E.5.b"]
["","",null,null,null,null,null,null,null,null,null,null,null,null,null,null,null,null,null,null,null,null,null,{"$f":"IF(B78=\"\",0,IF(B78=\"DEVELOP SUGGESTIONS FOR OPERATIONAL AND LOGISTICAL ENHANCEMENTS\",\"\",IF((SUM(D78:W78)=0),0,SUM(D78:W78))))","v":0},"",null,null,null,null,null,null,null,"","",null,null,null,null,null,null,null,null,null,"E.5.c",null,6,"DEVELOP SUGGESTIONS FOR OPERATIONAL AND LOGISTICAL ENHANCEMENTS"]
["","",null,null,null,null,null,null,null,null,null,null,null,null,null,null,null,null,null,null,null,null,null,{"$f":"IF(B79=\"\",0,IF((SUM(D79:W79)=0),0,SUM(D79:W79)))","v":0},"",null,null,null,null,null,null,null,"","",null,null,null,null,null,null,null,null,null,"E.5.d",null,null,"Study current operations and suggest changes that might enhance efficiency or reduce costs"]
["","",null,null,null,null,null,null,null,null,null,null,null,null,null,null,null,null,null,null,null,null,null,0,"",null,null,null,null,null,null,null,"","",null,null,null,null,null,null,null,null,null,"E.5.e",null,null,"Coordinate with NCAG to assure changes are allowable"]
["","",null,null,null,null,null,null,null,null,null,null,null,null,null,null,null,null,null,null,null,null,null,0,"",null,null,null,null,null,null,null,"","",null,null,null,null,null,null,null,null,null,"E.6","Jurisdictional Features Verification",null,"Develop option for development of temporary dray Port to XX"]
["","",null,null,null,null,null,null,null,null,null,null,null,null,null,null,null,null,null,null,null,null,null,0,"",null,null,null,null,null,null,null,"","",null,null,null,null,null,null,null,null,null,"E.6.a",null,null,"Summarize potential changes and corresponding actions"]
["","",null,null,null,null,null,null,null,null,null,null,null,null,null,null,null,null,null,null,null,null,null,0,"",null,null,null,null,null,null,null,"","",null,null,null,null,null,null,null,null,null,"E.6.b"]
["","",null,null,null,null,null,null,null,null,null,null,null,null,null,null,null,null,null,null,null,null,null,0,"",null,null,null,null,null,null,null,"","",null,null,null,null,null,null,null,null,null,"E.6.c"]
["","",null,null,null,null,null,null,null,null,null,null,null,null,null,null,null,null,null,null,null,null,null,0,"",null,null,null,null,null,null,null,"","",null,null,null,null,null,null,null,null,null,"E.6.d"]
["","",null,null,null,null,null,null,null,null,null,null,null,null,null,null,null,null,null,null,null,null,null,0,"",null,null,null,null,null,null,null,"","",null,null,null,null,null,null,null,null,null,"E.6.e"]
["","",null,null,null,null,null,null,null,null,null,null,null,null,null,null,null,null,null,null,null,null,null,{"$f":"IF(B87=\"\",0,IF(B87=\"HUMAN ENVIRONMENT FIELD WORK, ANALYSIS, AND DOCUMENTATION\",\"\",IF((SUM(D87:W87)=0),0,SUM(D87:W87))))","v":0},"",null,null,null,null,null,null,null,"","",null,null,null,null,null,null,null,null,null,"F","HUMAN ENVIRONMENT FIELD WORK, ANALYSIS, AND DOCUMENTATION"]
["","",null,null,null,null,null,null,null,null,null,null,null,null,null,null,null,null,null,null,null,null,null,{"$f":"IF(B88=\"\",0,IF(B88=\"ENVIRONMENTAL SCREENING\",\"\",IF((SUM(D88:W88)=0),0,SUM(D88:W88))))","v":0},"",null,null,null,null,null,null,null,"","",null,null,null,null,null,null,null,null,null,"F.1","Community Impact Assessment",7,"ENVIRONMENTAL SCREENING"]
["","",null,null,null,null,null,null,null,null,null,null,null,null,null,null,null,null,null,null,null,null,null,{"$f":"IF(B89=\"\",0,IF((SUM(D89:W89)=0),0,SUM(D89:W89)))","v":0},"",null,null,null,null,null,null,null,"","",null,null,null,null,null,null,null,null,null,"F.1.a","Identify Community Impact Study Area",null,"Develop GIS map of available data"]
["","",null,null,null,null,null,null,null,null,null,null,null,null,null,null,null,null,null,null,null,null,null,0,"",null,null,null,null,null,null,null,"","",null,null,null,null,null,null,null,null,null,"F.1.b","Community Field Review",null,"Develop list of \"red flag\" issues"]
["","",null,null,null,null,null,null,null,null,null,null,null,null,null,null,null,null,null,null,null,null,null,0,"",null,null,null,null,null,null,null,"","",null,null,null,null,null,null,null,null,null,"F.1.c","Socioeconomic Data"]
["","",null,null,null,null,null,null,null,null,null,null,null,null,null,null,null,null,null,null,null,null,null,0,"",null,null,null,null,null,null,null,"","",null,null,null,null,null,null,null,null,null,"F.1.d","Community Facilities and Services"]
["","",null,null,null,null,null,null,null,null,null,null,null,null,null,null,null,null,null,null,null,null,null,0,"",null,null,null,null,null,null,null,"","",null,null,null,null,null,null,null,null,null,"F.1.e","Local/Regional Land Use and Development Plans"]
["","",null,null,null,null,null,null,null,null,null,null,null,null,null,null,null,null,null,null,null,null,null,0,"",null,null,null,null,null,null,null,"","",null,null,null,null,null,null,null,null,null,"F.1.f","Project Impact Assessment"]
["","",null,null,null,null,null,null,null,null,null,null,null,null,null,null,null,null,null,null,null,null,null,0,"",null,null,null,null,null,null,null,"","",null,null,null,null,null,null,null,null,null,"F.1.g","Community Impact Assessment Report"]
["","",null,null,null,null,null,null,null,null,null,null,null,null,null,null,null,null,null,null,null,null,null,{"$f":"IF(B96=\"\",0,IF(B96=\"ESTIMATE PROJECT SCENARIO BENEFITS\",\"\",IF((SUM(D96:W96)=0),0,SUM(D96:W96))))","v":0},"",null,null,null,null,null,null,null,"","",null,null,null,null,null,null,null,null,null,"F.1.h",null,8,"ESTIMATE PROJECT SCENARIO BENEFITS"]
["","",null,null,null,null,null,null,null,null,null,null,null,null,null,null,null,null,null,null,null,null,null,{"$f":"IF(B97=\"\",0,IF((SUM(D97:W97)=0),0,SUM(D97:W97)))","v":0},"",null,null,null,null,null,null,null,"","",null,null,null,null,null,null,null,null,null,"F.1.i",null,null,"Develop near-term project feasibility criteria and apply to the identified program of projects"]
["","",null,null,null,null,null,null,null,null,null,null,null,null,null,null,null,null,null,null,null,null,null,{"$f":"IF(B98=\"\",0,IF((SUM(D98:W98)=0),0,SUM(D98:W98)))","v":0},"",null,null,null,null,null,null,null,"","",null,null,null,null,null,null,null,null,null,"F.1.j",null,null,"Develop ranked list ordered according to project feasibility criteria"]
["","",null,null,null,null,null,null,null,null,null,null,null,null,null,null,null,null,null,null,null,null,null,{"$f":"IF(B99=\"\",0,IF((SUM(D99:W99)=0),0,SUM(D99:W99)))","v":0},"",null,null,null,null,null,null,null,"","",null,null,null,null,null,null,null,null,null,"F.1.k",null,null,"Perform Benefit Cost Analyses (BCA)  for up to five projects using the OMB BCA methodology"]
["","",null,null,null,null,null,null,null,null,null,null,null,null,null,null,null,null,null,null,null,null,null,{"$f":"IF(B100=\"\",0,IF((SUM(D100:W100)=0),0,SUM(D100:W100)))","v":0},"",null,null,null,null,null,null,null,"","",null,null,null,null,null,null,null,null,null,"F.1.l",null,null,"Revise per NCDOT comments"]
["","",null,null,null,null,null,null,null,null,null,null,null,null,null,null,null,null,null,null,null,null,null,{"$f":"IF(B101=\"\",0,IF(B101=\"INDIRECT AND CUMULATIVE EFFECTS SCREENING\",\"\",IF((SUM(D101:W101)=0),0,SUM(D101:W101))))","v":0},"",null,null,null,null,null,null,null,"","",null,null,null,null,null,null,null,null,null,"F.2","INDIRECT AND CUMULATIVE EFFECTS SCREENING"]
["","",null,null,null,null,null,null,null,null,null,null,null,null,null,null,null,null,null,null,null,null,null,{"$f":"IF(B102=\"\",0,IF((SUM(D102:W102)=0),0,SUM(D102:W102)))","v":0},"",null,null,null,null,null,null,null,"","",null,null,null,null,null,null,null,null,null,"F.2.a","Determine Future Land Use Study Area"]
["","",null,null,null,null,null,null,null,null,null,null,null,null,null,null,null,null,null,null,null,null,null,{"$f":"IF(B103=\"\",0,IF((SUM(D103:W103)=0),0,SUM(D103:W103)))","v":0},"",null,null,null,null,null,null,null,"","",null,null,null,null,null,null,null,null,null,"F.2.b","Determine ICE Study Time Horizon"]
["","",null,null,null,null,null,null,null,null,null,null,null,null,null,null,null,null,null,null,null,null,null,{"$f":"IF(B104=\"\",0,IF((SUM(D104:W104)=0),0,SUM(D104:W104)))","v":0},"",null,null,null,null,null,null,null,"","",null,null,null,null,null,null,null,null,null,"F.2.c","Identify Study Area Conditions and Trends"]
["","",null,null,null,null,null,null,null,null,null,null,null,null,null,null,null,null,null,null,null,null,null,{"$f":"IF(B105=\"\",0,IF((SUM(D105:W105)=0),0,SUM(D105:W105)))","v":0},"",null,null,null,null,null,null,null,"","",null,null,null,null,null,null,null,null,null,"F.2.d","Inventory of Notable Features"]
["","",null,null,null,null,null,null,null,null,null,null,null,null,null,null,null,null,null,null,null,null,null,{"$f":"IF(B106=\"\",0,IF(B106=\"GENERATE DATA NEEDED FOR SCORING IN STI\",\"\",IF((SUM(D106:W106)=0),0,SUM(D106:W106))))","v":0},"",null,null,null,null,null,null,null,"","",null,null,null,null,null,null,null,null,null,"F.2.e","Identify Impact-Causing Activities",9,"GENERATE DATA NEEDED FOR SCORING IN STI"]
["","",null,null,null,null,null,null,null,null,null,null,null,null,null,null,null,null,null,null,null,null,null,{"$f":"IF(B107=\"\",0,IF((SUM(D107:W107)=0),0,SUM(D107:W107)))","v":0},"",null,null,null,null,null,null,null,"","",null,null,null,null,null,null,null,null,null,"F.2.f","Analyze and Evaluate ICE Data",null,"Develop list of alternative solutions"]
["","",null,null,null,null,null,null,null,null,null,null,null,null,null,null,null,null,null,null,null,null,null,0,"",null,null,null,null,null,null,null,"","",null,null,null,null,null,null,null,null,null,"F.2.g","Land Use Development Scenarios",null,"Develop ranking procedure and criteria"]
["","",null,null,null,null,null,null,null,null,null,null,null,null,null,null,null,null,null,null,null,null,null,0,"",null,null,null,null,null,null,null,"","",null,null,null,null,null,null,null,null,null,"F.2.h","Indirect and Cumulative Effects Screening",null,"Adjust per NCDOT comments"]
["","",null,null,null,null,null,null,null,null,null,null,null,null,null,null,null,null,null,null,null,null,null,0,"",null,null,null,null,null,null,null,"","",null,null,null,null,null,null,null,null,null,"F.2.i",null,null,"Apply procedure/criteria to project alternatives"]
["","",null,null,null,null,null,null,null,null,null,null,null,null,null,null,null,null,null,null,null,null,null,0,"",null,null,null,null,null,null,null,"","",null,null,null,null,null,null,null,null,null,"F.2.j",null,null,"Review resulting list"]
["","",null,null,null,null,null,null,null,null,null,null,null,null,null,null,null,null,null,null,null,null,null,0,"",null,null,null,null,null,null,null,"","",null,null,null,null,null,null,null,null,null,"F.2.k",null,null,"Suggest revisions to procedure as needed"]
["","",null,null,null,null,null,null,null,null,null,null,null,null,null,null,null,null,null,null,null,null,null,0,"",null,null,null,null,null,null,null,"","",null,null,null,null,null,null,null,null,null,"F.2.l",null,null,"Revise criteria and redevelop list"]
["","",null,null,null,null,null,null,null,null,null,null,null,null,null,null,null,null,null,null,null,null,null,0,"",null,null,null,null,null,null,null,"","",null,null,null,null,null,null,null,null,null,"F.2.m",null,null,"Suggest project timing"]
["","",null,null,null,null,null,null,null,null,null,null,null,null,null,null,null,null,null,null,null,null,null,{"$f":"IF(B115=\"\",0,IF(B115=\"NOISE AND VIBRATION IMPACT ANALYSIS\",\"\",IF((SUM(D115:W115)=0),0,SUM(D115:W115))))","v":0},"",null,null,null,null,null,null,null,"","",null,null,null,null,null,null,null,null,null,"F.3.","NOISE AND VIBRATION IMPACT ANALYSIS",null,"Suggest project funding source(s)"]
["","",null,null,null,null,null,null,null,null,null,null,null,null,null,null,null,null,null,null,null,null,null,{"$f":"IF(B116=\"\",0,IF((SUM(D116:W116)=0),0,SUM(D116:W116)))","v":0},"",null,null,null,null,null,null,null,"","",null,null,null,null,null,null,null,null,null,"F.3.a","Coordination",null,"Develop opinion of cost for highest 5 ranking projects"]
["","",null,null,null,null,null,null,null,null,null,null,null,null,null,null,null,null,null,null,null,null,null,0,"",null,null,null,null,null,null,null,"","",null,null,null,null,null,null,null,null,null,null,"Initial Meeting with Rail Division",null,"Develop estimate of benefits for highest 5 ranking projects"]
["","",null,null,null,null,null,null,null,null,null,null,null,null,null,null,null,null,null,null,null,null,null,0,"",null,null,null,null,null,null,null,"","",null,null,null,null,null,null,null,null,null,"F.3.b","Data Compilation"]
["","",null,null,null,null,null,null,null,null,null,null,null,null,null,null,null,null,null,null,null,null,null,0,"",null,null,null,null,null,null,null,"","",null,null,null,null,null,null,null,null,null,null,"Project Area Reconnaissance, if applicable"]
["","",null,null,null,null,null,null,null,null,null,null,null,null,null,null,null,null,null,null,null,null,null,0,"",null,null,null,null,null,null,null,"","",null,null,null,null,null,null,null,null,null,null,"Identify noise sensitive land uses"]
["","",null,null,null,null,null,null,null,null,null,null,null,null,null,null,null,null,null,null,null,null,null,0,"",null,null,null,null,null,null,null,"","",null,null,null,null,null,null,null,null,null,null,"Prepare Noise Analysis Work Plan"]
["","",null,null,null,null,null,null,null,null,null,null,null,null,null,null,null,null,null,null,null,null,null,0,"",null,null,null,null,null,null,null,"","",null,null,null,null,null,null,null,null,null,"F.3.c","Selection of Analysis Sites"]
["","",null,null,null,null,null,null,null,null,null,null,null,null,null,null,null,null,null,null,null,null,null,{"$f":"IF(B123=\"\",0,IF(B123=\"IDENTIFY POTENTIAL PROJECTS FOR FEDERAL PROGRAMS\",\"\",IF((SUM(D123:W123)=0),0,SUM(D123:W123))))","v":0},"",null,null,null,null,null,null,null,"","",null,null,null,null,null,null,null,null,null,"F.3.d","Noise Analysis",10,"IDENTIFY POTENTIAL PROJECTS FOR FEDERAL PROGRAMS"]
["","",null,null,null,null,null,null,null,null,null,null,null,null,null,null,null,null,null,null,null,null,null,{"$f":"IF(B124=\"\",0,IF((SUM(D124:W124)=0),0,SUM(D124:W124)))","v":0},"",null,null,null,null,null,null,null,"","",null,null,null,null,null,null,null,null,null,null,"Monitoring / Fieldwork / Processing",null,"Research and prepare a technical memoranda identifying existing federal grant and loan programs for ports and rail improvements"]
["","",null,null,null,null,null,null,null,null,null,null,null,null,null,null,null,null,null,null,null,null,null,0,"",null,null,null,null,null,null,null,"","",null,null,null,null,null,null,null,null,null,null,"Traffic noise analysis",null,"Screen the program of projects for federal grant and loan program eligibility "]
["","",null,null,null,null,null,null,null,null,null,null,null,null,null,null,null,null,null,null,null,null,null,0,"",null,null,null,null,null,null,null,"","",null,null,null,null,null,null,null,null,null,null,"Rail noise analysis",null,"Recommend federal funding resources applicable to candidate projects"]
["","",null,null,null,null,null,null,null,null,null,null,null,null,null,null,null,null,null,null,null,null,null,0,"",null,null,null,null,null,null,null,"","",null,null,null,null,null,null,null,null,null,"F.3.e","Determination of Impacts"]
["","",null,null,null,null,null,null,null,null,null,null,null,null,null,null,null,null,null,null,null,null,null,0,"",null,null,null,null,null,null,null,"","",null,null,null,null,null,null,null,null,null,null,"Traffic noise analysis"]
["","",null,null,null,null,null,null,null,null,null,null,null,null,null,null,null,null,null,null,null,null,null,0,"",null,null,null,null,null,null,null,"","",null,null,null,null,null,null,null,null,null,null,"Rail noise analysis"]
["","",null,null,null,null,null,null,null,null,null,null,null,null,null,null,null,null,null,null,null,null,null,0,"",null,null,null,null,null,null,null,"","",null,null,null,null,null,null,null,null,null,null,"Traffic and rail noise impact assessment"]
["","",null,null,null,null,null,null,null,null,null,null,null,null,null,null,null,null,null,null,null,null,null,0,"",null,null,null,null,null,null,null,"","",null,null,null,null,null,null,null,null,null,"F.3.f","Noise Abatement Considerations"]
["","",null,null,null,null,null,null,null,null,null,null,null,null,null,null,null,null,null,null,null,null,null,{"$f":"IF(B132=\"\",0,IF(B132=\"PREPARE PROGRAM OF PROJECTS\",\"\",IF((SUM(D132:W132)=0),0,SUM(D132:W132))))","v":0},"",null,null,null,null,null,null,null,"","",null,null,null,null,null,null,null,null,null,null,"Noise barrier analysis",11,"PREPARE PROGRAM OF PROJECTS"]
["","",null,null,null,null,null,null,null,null,null,null,null,null,null,null,null,null,null,null,null,null,null,{"$f":"IF(B133=\"\",0,IF((SUM(D133:W133)=0),0,SUM(D133:W133)))","v":0},"",null,null,null,null,null,null,null,"","",null,null,null,null,null,null,null,null,null,null,"QA/Review",null,"Develop ranked list of projects based on benefit data"]
["","",null,null,null,null,null,null,null,null,null,null,null,null,null,null,null,null,null,null,null,null,null,0,"",null,null,null,null,null,null,null,"","",null,null,null,null,null,null,null,null,null,"F.3.g","Vibration Analysis",null,"Develop timing plan "]
["","",null,null,null,null,null,null,null,null,null,null,null,null,null,null,null,null,null,null,null,null,null,0,"",null,null,null,null,null,null,null,"","",null,null,null,null,null,null,null,null,null,"F.3.h","Noise and Vibration Technical Report",null,"Develop list of possible funding sources (limited to most likely source)"]
["","",null,null,null,null,null,null,null,null,null,null,null,null,null,null,null,null,null,null,null,null,null,0,"",null,null,null,null,null,null,null,"","",null,null,null,null,null,null,null,null,null,null,"Draft Report - text, tables, figures",null,"Calculate ranking based on criteria and or weighting data provided by NCDOT"]
["","",null,null,null,null,null,null,null,null,null,null,null,null,null,null,null,null,null,null,null,null,null,0,"",null,null,null,null,null,null,null,"","",null,null,null,null,null,null,null,null,null,null,"Draft Report - Appendices",null,"Submit draft list to NCDOT"]
["","",null,null,null,null,null,null,null,null,null,null,null,null,null,null,null,null,null,null,null,null,null,0,"",null,null,null,null,null,null,null,"","",null,null,null,null,null,null,null,null,null,null,"QA/Review",null,"Revise based on NCDOT comments"]
["","",null,null,null,null,null,null,null,null,null,null,null,null,null,null,null,null,null,null,null,null,null,0,"",null,null,null,null,null,null,null,"","",null,null,null,null,null,null,null,null,null,null,"Prepare Comment/Response Matrix"]
[{"$f":"IF(AG140=0,\"\",AG140)","v":""},"",null,null,null,null,null,null,null,null,null,null,null,null,null,null,null,null,null,null,null,null,null,0,"",null,null,null,null,null,null,null,{"$f":"IF($AA$4=\"Select Task Type\",\"\",IF($AA$4=\"Grade Separation\",AJ140,IF($AA$4=\"CEI\",AL140,IF($AA$4=\"Track Design\",AN140,IF($AA$4=\"Signal Design\",AP140,IF($AA$4=\"Environmental\",AR140,IF($AA$4=\"Planning\",AT140,\"\")))))))","v":""},"",null,null,null,null,null,null,null,null,null,null,"Prepare Final Report (includes QA/Review)"]
["","",null,null,null,null,null,null,null,null,null,null,null,null,null,null,null,null,null,null,null,null,null,0,{"$f":"IF(SUM(D141:W141)=0,\"\",((SUM(D141:W141))/$X$261))","v":""},null,null,null,null,null,null,null,"","",null,null,null,null,null,null,null,null,null,"F.3.i"]
["","",null,null,null,null,null,null,null,null,null,null,null,null,null,null,null,null,null,null,null,null,null,0,"",null,null,null,null,null,null,null,"","",null,null,null,null,null,null,null,null,null,"F.3.j"]
["","",null,null,null,null,null,null,null,null,null,null,null,null,null,null,null,null,null,null,null,null,null,0,"",null,null,null,null,null,null,null,"","",null,null,null,null,null,null,null,null,null,"F.3.k"]
["","",null,null,null,null,null,null,null,null,null,null,null,null,null,null,null,null,null,null,null,null,null,{"$f":"IF(B144=\"\",0,IF(B144=\"STAKEHOLDER INVOLVEMENT\",\"\",IF((SUM(D144:W144)=0),0,SUM(D144:W144))))","v":0},"",null,null,null,null,null,null,null,"","",null,null,null,null,null,null,null,null,null,"F.3.l",null,12,"STAKEHOLDER INVOLVEMENT"]
["","",null,null,null,null,null,null,null,null,null,null,null,null,null,null,null,null,null,null,null,null,null,{"$f":"IF(B145=\"\",0,IF((SUM(D145:W145)=0),0,SUM(D145:W145)))","v":0},"",null,null,null,null,null,null,null,"","",null,null,null,null,null,null,null,null,null,"F.3.m",null,null,"Attend 2 meetings (facilitated by others)"]
["","",null,null,null,null,null,null,null,null,null,null,null,null,null,null,null,null,null,null,null,null,null,{"$f":"IF(B146=\"\",0,IF(B146=\"AIR QUALITY ANALYSIS\",\"\",IF((SUM(D146:W146)=0),0,SUM(D146:W146))))","v":0},"",null,null,null,null,null,null,null,"","",null,null,null,null,null,null,null,null,null,"F.4","AIR QUALITY ANALYSIS",null,"Coordinate with NCDOT to discuss results of stakeholder interaction"]
["","",null,null,null,null,null,null,null,null,null,null,null,null,null,null,null,null,null,null,null,null,null,{"$f":"IF(B147=\"\",0,IF((SUM(D147:W147)=0),0,SUM(D147:W147)))","v":0},"",null,null,null,null,null,null,null,"","",null,null,null,null,null,null,null,null,null,"F.4.a","Data Compilation"]
["","",null,null,null,null,null,null,null,null,null,null,null,null,null,null,null,null,null,null,null,null,null,{"$f":"IF(B148=\"\",0,IF((SUM(D148:W148)=0),0,SUM(D148:W148)))","v":0},"",null,null,null,null,null,null,null,"","",null,null,null,null,null,null,null,null,null,"F.4.b","Attainment Status and Conformity"]
["","",null,null,null,null,null,null,null,null,null,null,null,null,null,null,null,null,null,null,null,null,null,{"$f":"IF(B149=\"\",0,IF((SUM(D149:W149)=0),0,SUM(D149:W149)))","v":0},"",null,null,null,null,null,null,null,"","",null,null,null,null,null,null,null,null,null,"F.4.c","Carbon Monoxide Air Quality Analysis"]
["","",null,null,null,null,null,null,null,null,null,null,null,null,null,null,null,null,null,null,null,null,null,{"$f":"IF(B150=\"\",0,IF((SUM(D150:W150)=0),0,SUM(D150:W150)))","v":0},"",null,null,null,null,null,null,null,"","",null,null,null,null,null,null,null,null,null,"F.4.d","Particulate Matter"]
["","",null,null,null,null,null,null,null,null,null,null,null,null,null,null,null,null,null,null,null,null,null,{"$f":"IF(B151=\"\",0,IF((SUM(D151:W151)=0),0,SUM(D151:W151)))","v":0},"",null,null,null,null,null,null,null,"","",null,null,null,null,null,null,null,null,null,"F.4.e","Mobile Source Air Toxics (MSATs)"]
["","",null,null,null,null,null,null,null,null,null,null,null,null,null,null,null,null,null,null,null,null,null,{"$f":"IF(B152=\"\",0,IF(B152=\"SCHEDULE\",\"\",IF((SUM(D152:W152)=0),0,SUM(D152:W152))))","v":0},"",null,null,null,null,null,null,null,"","",null,null,null,null,null,null,null,null,null,"F.4.f","Greenhouse Gas Emissions (GHGs)",13,"SCHEDULE"]
["","",null,null,null,null,null,null,null,null,null,null,null,null,null,null,null,null,null,null,null,null,null,{"$f":"IF(B153=\"\",0,IF((SUM(D153:W153)=0),0,SUM(D153:W153)))","v":0},"",null,null,null,null,null,null,null,"","",null,null,null,null,null,null,null,null,null,"F.4.g","Air Quality Technical Report",null,"Develop schedule of deliverable and review tasks"]
["","",null,null,null,null,null,null,null,null,null,null,null,null,null,null,null,null,null,null,null,null,null,0,"",null,null,null,null,null,null,null,"","",null,null,null,null,null,null,null,null,null,"F.4.h",null,null,"Update schedule as needed"]
["","",null,null,null,null,null,null,null,null,null,null,null,null,null,null,null,null,null,null,null,null,null,0,"",null,null,null,null,null,null,null,"","",null,null,null,null,null,null,null,null,null,"F.4.i"]
["","",null,null,null,null,null,null,null,null,null,null,null,null,null,null,null,null,null,null,null,null,null,0,"",null,null,null,null,null,null,null,"","",null,null,null,null,null,null,null,null,null,"F.4.j"]
["","",null,null,null,null,null,null,null,null,null,null,null,null,null,null,null,null,null,null,null,null,null,0,"",null,null,null,null,null,null,null,"","",null,null,null,null,null,null,null,null,null,"F.4.k"]
["","",null,null,null,null,null,null,null,null,null,null,null,null,null,null,null,null,null,null,null,null,null,0,"",null,null,null,null,null,null,null,"","",null,null,null,null,null,null,null,null,null,"F.4.l"]
["","",null,null,null,null,null,null,null,null,null,null,null,null,null,null,null,null,null,null,null,null,null,{"$f":"IF(B159=\"\",0,IF(B159=\"CULTURAL RESOURCES ANALYSIS\",\"\",IF((SUM(D159:W159)=0),0,SUM(D159:W159))))","v":0},"",null,null,null,null,null,null,null,"","",null,null,null,null,null,null,null,null,null,"F.5","CULTURAL RESOURCES ANALYSIS"]
["","",null,null,null,null,null,null,null,null,null,null,null,null,null,null,null,null,null,null,null,null,null,{"$f":"IF(B160=\"\",0,IF(B160=\"REPORT\",\"\",IF((SUM(D160:W160)=0),0,SUM(D160:W160))))","v":0},"",null,null,null,null,null,null,null,"","",null,null,null,null,null,null,null,null,null,"F.5.a","Phase 1 Historic Architectural Analysis",14,"REPORT"]
["","",null,null,null,null,null,null,null,null,null,null,null,null,null,null,null,null,null,null,null,null,null,{"$f":"IF(B161=\"\",0,IF(B161=\"ARCHAEOLOGICAL ANALYSIS\",\"\",IF((SUM(D161:W161)=0),0,SUM(D161:W161))))","v":0},"",null,null,null,null,null,null,null,"","",null,null,null,null,null,null,null,null,null,"F.5.b","ARCHAEOLOGICAL ANALYSIS",null,"Prepare draft report (electronic version only) for NCDOT review"]
["","",null,null,null,null,null,null,null,null,null,null,null,null,null,null,null,null,null,null,null,null,null,{"$f":"IF(B162=\"\",0,IF((SUM(D162:W162)=0),0,SUM(D162:W162)))","v":0},"",null,null,null,null,null,null,null,"","",null,null,null,null,null,null,null,null,null,null,"Conduct Background Research of information from NC OSA/ SHPO",null,"Revise per NCDOT comments"]
["","",null,null,null,null,null,null,null,null,null,null,null,null,null,null,null,null,null,null,null,null,null,0,"",null,null,null,null,null,null,null,"","",null,null,null,null,null,null,null,null,null,null,"Collect previously recorded sites and surveys in study area",null,"Prepare final report"]
["","",null,null,null,null,null,null,null,null,null,null,null,null,null,null,null,null,null,null,null,null,null,0,"",null,null,null,null,null,null,null,"","",null,null,null,null,null,null,null,null,null,null,"Prepare Archaeological Overview Report"]
["","",null,null,null,null,null,null,null,null,null,null,null,null,null,null,null,null,null,null,null,null,null,0,"",null,null,null,null,null,null,null,"","",null,null,null,null,null,null,null,null,null,null," known archaeological resources in alternatives or study area"]
["","",null,null,null,null,null,null,null,null,null,null,null,null,null,null,null,null,null,null,null,null,null,0,"",null,null,null,null,null,null,null,"","",null,null,null,null,null,null,null,null,null,null," sites of value for reasons other than recoverable information"]
["","",null,null,null,null,null,null,null,null,null,null,null,null,null,null,null,null,null,null,null,null,null,0,"",null,null,null,null,null,null,null,"","",null,null,null,null,null,null,null,null,null,null," assessment of potential for archaeological sites in areas not previously surveyed"]
["","",null,null,null,null,null,null,null,null,null,null,null,null,null,null,null,null,null,null,null,null,null,0,"",null,null,null,null,null,null,null,"","",null,null,null,null,null,null,null,null,null,null," recommendations regarding need for archaeological survey"]
["","",null,null,null,null,null,null,null,null,null,null,null,null,null,null,null,null,null,null,null,null,null,{"$f":"IF(B169=\"\",0,IF(B169=\"PROJECT COORDINATION\",\"\",IF((SUM(D169:W169)=0),0,SUM(D169:W169))))","v":0},"",null,null,null,null,null,null,null,"","",null,null,null,null,null,null,null,null,null,null,"Graphics showing alternatives, previously studied areas, and known sites",15,"PROJECT COORDINATION"]
["","",null,null,null,null,null,null,null,null,null,null,null,null,null,null,null,null,null,null,null,null,null,{"$f":"IF(B170=\"\",0,IF((SUM(D170:W170)=0),0,SUM(D170:W170)))","v":0},"",null,null,null,null,null,null,null,"","",null,null,null,null,null,null,null,null,null,null,"Submit Draft Archaeological Overview Report",null,"Coordinate internally with staff and subconsultants"]
["","",null,null,null,null,null,null,null,null,null,null,null,null,null,null,null,null,null,null,null,null,null,0,"",null,null,null,null,null,null,null,"","",null,null,null,null,null,null,null,null,null,null,"Address NCDOT comments on Draft Archaeological Overview Report"]
["","",null,null,null,null,null,null,null,null,null,null,null,null,null,null,null,null,null,null,null,null,null,0,"",null,null,null,null,null,null,null,"","",null,null,null,null,null,null,null,null,null,null,"Submit Final Archaeological Overview Report"]
["","",null,null,null,null,null,null,null,null,null,null,null,null,null,null,null,null,null,null,null,null,null,0,"",null,null,null,null,null,null,null,"","",null,null,null,null,null,null,null,null,null,null,"Meeting attendance and coordination"]
["","",null,null,null,null,null,null,null,null,null,null,null,null,null,null,null,null,null,null,null,null,null,0,"",null,null,null,null,null,null,null,"","",null,null,null,null,null,null,null,null,null,"F.5.c"]
["","",null,null,null,null,null,null,null,null,null,null,null,null,null,null,null,null,null,null,null,null,null,0,"",null,null,null,null,null,null,null,"","",null,null,null,null,null,null,null,null,null,"F.5.d"]
["","",null,null,null,null,null,null,null,null,null,null,null,null,null,null,null,null,null,null,null,null,null,{"$f":"IF(B176=\"\",0,IF(B176=\"TRUCK ALTERNATIVE ROUTE ANALYSIS\",\"\",IF((SUM(D176:W176)=0),0,SUM(D176:W176))))","v":0},"",null,null,null,null,null,null,null,"","",null,null,null,null,null,null,null,null,null,"F.5.e",null,16,"TRUCK ALTERNATIVE ROUTE ANALYSIS"]
["","",null,null,null,null,null,null,null,null,null,null,null,null,null,null,null,null,null,null,null,null,null,{"$f":"IF(B177=\"\",0,IF((SUM(D177:W177)=0),0,SUM(D177:W177)))","v":0},"",null,null,null,null,null,null,null,"","",null,null,null,null,null,null,null,null,null,"F.5.f",null,null,"Truck Alternative Route Analysis (XX to the Port)"]
["","",null,null,null,null,null,null,null,null,null,null,null,null,null,null,null,null,null,null,null,null,null,{"$f":"IF(B178=\"\",0,IF((SUM(D178:W178)=0),0,SUM(D178:W178)))","v":0},"",null,null,null,null,null,null,null,"","",null,null,null,null,null,null,null,null,null,"F.5.g"]
["","",null,null,null,null,null,null,null,null,null,null,null,null,null,null,null,null,null,null,null,null,null,{"$f":"IF(B179=\"\",0,IF(B179=\"OTHER PHYSICAL FEATURES ANALYSIS\",\"\",IF((SUM(D179:W179)=0),0,SUM(D179:W179))))","v":0},"",null,null,null,null,null,null,null,"","",null,null,null,null,null,null,null,null,null,"G","OTHER PHYSICAL FEATURES ANALYSIS"]
["","",null,null,null,null,null,null,null,null,null,null,null,null,null,null,null,null,null,null,null,null,null,{"$f":"IF(B180=\"\",0,IF((SUM(D180:W180)=0),0,SUM(D180:W180)))","v":0},"",null,null,null,null,null,null,null,"","",null,null,null,null,null,null,null,null,null,"G.1","Identify Potential Floodplain and Floodway Impacts"]
["","",null,null,null,null,null,null,null,null,null,null,null,null,null,null,null,null,null,null,null,null,null,{"$f":"IF(B181=\"\",0,IF((SUM(D181:W181)=0),0,SUM(D181:W181)))","v":0},"",null,null,null,null,null,null,null,"","",null,null,null,null,null,null,null,null,null,"G.2","Farmland Assessment"]
["","",null,null,null,null,null,null,null,null,null,null,null,null,null,null,null,null,null,null,null,null,null,{"$f":"IF(B182=\"\",0,IF(B182=\"FEASIBILITY STUDY\",\"\",IF((SUM(D182:W182)=0),0,SUM(D182:W182))))","v":0},"",null,null,null,null,null,null,null,"","",null,null,null,null,null,null,null,null,null,"G.3","Hazardous Materials Assessment",17,"FEASIBILITY STUDY"]
["","",null,null,null,null,null,null,null,null,null,null,null,null,null,null,null,null,null,null,null,null,null,{"$f":"IF(B183=\"\",0,IF((SUM(D183:W183)=0),0,SUM(D183:W183)))","v":0},"",null,null,null,null,null,null,null,"","",null,null,null,null,null,null,null,null,null,"G.4","Visual Impact Analysis"]
["","",null,null,null,null,null,null,null,null,null,null,null,null,null,null,null,null,null,null,null,null,null,0,"",null,null,null,null,null,null,null,"","",null,null,null,null,null,null,null,null,null,"G.5","Identify Potential Public Utility Impacts"]
["","",null,null,null,null,null,null,null,null,null,null,null,null,null,null,null,null,null,null,null,null,null,0,"",null,null,null,null,null,null,null,"","",null,null,null,null,null,null,null,null,null,"G.6"]
["","",null,null,null,null,null,null,null,null,null,null,null,null,null,null,null,null,null,null,null,null,null,0,"",null,null,null,null,null,null,null,"","",null,null,null,null,null,null,null,null,null,"G.7"]
["","",null,null,null,null,null,null,null,null,null,null,null,null,null,null,null,null,null,null,null,null,null,0,"",null,null,null,null,null,null,null,"","",null,null,null,null,null,null,null,null,null,"G.8"]
["","",null,null,null,null,null,null,null,null,null,null,null,null,null,null,null,null,null,null,null,null,null,0,"",null,null,null,null,null,null,null,"","",null,null,null,null,null,null,null,null,null,"G.9"]
["","",null,null,null,null,null,null,null,null,null,null,null,null,null,null,null,null,null,null,null,null,null,0,"",null,null,null,null,null,null,null,"","",null,null,null,null,null,null,null,null,null,"G.10"]
["","",null,null,null,null,null,null,null,null,null,null,null,null,null,null,null,null,null,null,null,null,null,{"$f":"IF(B190=\"\",0,IF(B190=\"SECTION 4(F) AND SECTION 6(F)\",\"\",IF((SUM(D190:W190)=0),0,SUM(D190:W190))))","v":0},"",null,null,null,null,null,null,null,"","",null,null,null,null,null,null,null,null,null,"H","SECTION 4(F) AND SECTION 6(F)"]
["","",null,null,null,null,null,null,null,null,null,null,null,null,null,null,null,null,null,null,null,null,null,{"$f":"IF(B191=\"\",0,IF((SUM(D191:W191)=0),0,SUM(D191:W191)))","v":0},"",null,null,null,null,null,null,null,"","",null,null,null,null,null,null,null,null,null,"H.1"]
["","",null,null,null,null,null,null,null,null,null,null,null,null,null,null,null,null,null,null,null,null,null,{"$f":"IF(B192=\"\",0,IF((SUM(D192:W192)=0),0,SUM(D192:W192)))","v":0},"",null,null,null,null,null,null,null,"","",null,null,null,null,null,null,null,null,null,"H.2"]
["","",null,null,null,null,null,null,null,null,null,null,null,null,null,null,null,null,null,null,null,null,null,{"$f":"IF(B193=\"\",0,IF((SUM(D193:W193)=0),0,SUM(D193:W193)))","v":0},"",null,null,null,null,null,null,null,"","",null,null,null,null,null,null,null,null,null,"H.3"]
["","",null,null,null,null,null,null,null,null,null,null,null,null,null,null,null,null,null,null,null,null,null,{"$f":"IF(B194=\"\",0,IF((SUM(D194:W194)=0),0,SUM(D194:W194)))","v":0},"",null,null,null,null,null,null,null,"","",null,null,null,null,null,null,null,null,null,"H.4"]
["","",null,null,null,null,null,null,null,null,null,null,null,null,null,null,null,null,null,null,null,null,null,{"$f":"IF(B195=\"\",0,IF((SUM(D195:W195)=0),0,SUM(D195:W195)))","v":0},"",null,null,null,null,null,null,null,"","",null,null,null,null,null,null,null,null,null,"H.5"]
["","",null,null,null,null,null,null,null,null,null,null,null,null,null,null,null,null,null,null,null,null,null,{"$f":"IF(B196=\"\",0,IF(B196=\"DRAFT ENVIRONMENTAL DOCUMENT\",\"\",IF((SUM(D196:W196)=0),0,SUM(D196:W196))))","v":0},"",null,null,null,null,null,null,null,"","",null,null,null,null,null,null,null,null,null,"I","DRAFT ENVIRONMENTAL DOCUMENT"]
["","",null,null,null,null,null,null,null,null,null,null,null,null,null,null,null,null,null,null,null,null,null,{"$f":"IF(B197=\"\",0,IF((SUM(D197:W197)=0),0,SUM(D197:W197)))","v":0},"",null,null,null,null,null,null,null,"","",null,null,null,null,null,null,null,null,null,"I.1","Purpose and Need"]
["","",null,null,null,null,null,null,null,null,null,null,null,null,null,null,null,null,null,null,null,null,null,0,"",null,null,null,null,null,null,null,"","",null,null,null,null,null,null,null,null,null,"I.2","Alternatives Considered"]
["","",null,null,null,null,null,null,null,null,null,null,null,null,null,null,null,null,null,null,null,null,null,0,"",null,null,null,null,null,null,null,"","",null,null,null,null,null,null,null,null,null,"I.3","Human Environment"]
["","",null,null,null,null,null,null,null,null,null,null,null,null,null,null,null,null,null,null,null,null,null,0,"",null,null,null,null,null,null,null,"","",null,null,null,null,null,null,null,null,null,"I.4","Physical Environment"]
["","",null,null,null,null,null,null,null,null,null,null,null,null,null,null,null,null,null,null,null,null,null,0,"",null,null,null,null,null,null,null,"","",null,null,null,null,null,null,null,null,null,"I.5","Cultural Resources"]
["","",null,null,null,null,null,null,null,null,null,null,null,null,null,null,null,null,null,null,null,null,null,0,"",null,null,null,null,null,null,null,"","",null,null,null,null,null,null,null,null,null,"I.6","Natural Resources"]
["","",null,null,null,null,null,null,null,null,null,null,null,null,null,null,null,null,null,null,null,null,null,0,"",null,null,null,null,null,null,null,"","",null,null,null,null,null,null,null,null,null,"I.7","Environmental Impacts"]
[{"$f":"IF(AG204=0,\"\",AG204)","v":""},"",null,null,null,null,null,null,null,null,null,null,null,null,null,null,null,null,null,null,null,null,null,0,"",null,null,null,null,null,null,null,{"$f":"IF($AA$4=\"Select Task Type\",\"\",IF($AA$4=\"Grade Separation\",AJ204,IF($AA$4=\"CEI\",AL204,IF($AA$4=\"Track Design\",AN204,IF($AA$4=\"Signal Design\",AP204,IF($AA$4=\"Environmental\",AR204,IF($AA$4=\"Planning\",AT204,\"\")))))))","v":""},"",null,null,null,null,null,null,null,null,null,"I.8","Indirect and Cumulative Effects"]
["","",null,null,null,null,null,null,null,null,null,null,null,null,null,null,null,null,null,null,null,null,null,0,{"$f":"IF(SUM(D205:W205)=0,\"\",((SUM(D205:W205))/$X$261))","v":""},null,null,null,null,null,null,null,"","",null,null,null,null,null,null,null,null,null,"I.9","Other Impact Considerations"]
["","",null,null,null,null,null,null,null,null,null,null,null,null,null,null,null,null,null,null,null,null,null,0,"",null,null,null,null,null,null,null,"","",null,null,null,null,null,null,null,null,null,"I.10","Public Involvement ad Agency Coordination"]
["","",null,null,null,null,null,null,null,null,null,null,null,null,null,null,null,null,null,null,null,null,null,0,"",null,null,null,null,null,null,null,"","",null,null,null,null,null,null,null,null,null,"I.11","Compile Draft EA & Final EA"]
["","",null,null,null,null,null,null,null,null,null,null,null,null,null,null,null,null,null,null,null,null,null,0,"",null,null,null,null,null,null,null,"","",null,null,null,null,null,null,null,null,null,"I.12","Review and Distribution of EA"]
["","",null,null,null,null,null,null,null,null,null,null,null,null,null,null,null,null,null,null,null,null,null,0,"",null,null,null,null,null,null,null,"","",null,null,null,null,null,null,null,null,null,"I.13"]
["","",null,null,null,null,null,null,null,null,null,null,null,null,null,null,null,null,null,null,null,null,null,0,"",null,null,null,null,null,null,null,"","",null,null,null,null,null,null,null,null,null,"I.14"]
["","",null,null,null,null,null,null,null,null,null,null,null,null,null,null,null,null,null,null,null,null,null,0,"",null,null,null,null,null,null,null,"","",null,null,null,null,null,null,null,null,null,"I.15"]
["","",null,null,null,null,null,null,null,null,null,null,null,null,null,null,null,null,null,null,null,null,null,0,"",null,null,null,null,null,null,null,"","",null,null,null,null,null,null,null,null,null,"I.16"]
["","",null,null,null,null,null,null,null,null,null,null,null,null,null,null,null,null,null,null,null,null,null,0,"",null,null,null,null,null,null,null,"","",null,null,null,null,null,null,null,null,null,"I.17"]
["","",null,null,null,null,null,null,null,null,null,null,null,null,null,null,null,null,null,null,null,null,null,{"$f":"IF(B214=\"\",0,IF(B214=\"FINAL ENVIRONMENTAL DOCUMENT\",\"\",IF((SUM(D214:W214)=0),0,SUM(D214:W214))))","v":0},"",null,null,null,null,null,null,null,"","",null,null,null,null,null,null,null,null,null,"J","FINAL ENVIRONMENTAL DOCUMENT"]
["","",null,null,null,null,null,null,null,null,null,null,null,null,null,null,null,null,null,null,null,null,null,{"$f":"IF(B215=\"\",0,IF((SUM(D215:W215)=0),0,SUM(D215:W215)))","v":0},"",null,null,null,null,null,null,null,"","",null,null,null,null,null,null,null,null,null,"J.1","Compile FONSI"]
["","",null,null,null,null,null,null,null,null,null,null,null,null,null,null,null,null,null,null,null,null,null,0,"",null,null,null,null,null,null,null,"","",null,null,null,null,null,null,null,null,null,"J.2","Alternative Selection"]
["","",null,null,null,null,null,null,null,null,null,null,null,null,null,null,null,null,null,null,null,null,null,0,"",null,null,null,null,null,null,null,"","",null,null,null,null,null,null,null,null,null,"J.3","Prepare Draft & Final Finding of No Significant Impact (FONSI)"]
["","",null,null,null,null,null,null,null,null,null,null,null,null,null,null,null,null,null,null,null,null,null,0,"",null,null,null,null,null,null,null,"","",null,null,null,null,null,null,null,null,null,"J.4"]
["","",null,null,null,null,null,null,null,null,null,null,null,null,null,null,null,null,null,null,null,null,null,0,"",null,null,null,null,null,null,null,"","",null,null,null,null,null,null,null,null,null,"J.5"]
["","",null,null,null,null,null,null,null,null,null,null,null,null,null,null,null,null,null,null,null,null,null,0,"",null,null,null,null,null,null,null,"","",null,null,null,null,null,null,null,null,null,"J.6"]
["","",null,null,null,null,null,null,null,null,null,null,null,null,null,null,null,null,null,null,null,null,null,0,"",null,null,null,null,null,null,null,"","",null,null,null,null,null,null,null,null,null,"J.7"]
["","",null,null,null,null,null,null,null,null,null,null,null,null,null,null,null,null,null,null,null,null,null,0,"",null,null,null,null,null,null,null,"","",null,null,null,null,null,null,null,null,null,"J.8"]
["","",null,null,null,null,null,null,null,null,null,null,null,null,null,null,null,null,null,null,null,null,null,{"$f":"IF(B223=\"\",0,IF(B223=\"PUBLIC INVOLVEMENT\",\"\",IF((SUM(D223:W223)=0),0,SUM(D223:W223))))","v":0},"",null,null,null,null,null,null,null,"","",null,null,null,null,null,null,null,null,null,"K","PUBLIC INVOLVEMENT"]
["","",null,null,null,null,null,null,null,null,null,null,null,null,null,null,null,null,null,null,null,null,null,{"$f":"IF(B224=\"\",0,IF((SUM(D224:W224)=0),0,SUM(D224:W224)))","v":0},"",null,null,null,null,null,null,null,"","",null,null,null,null,null,null,null,null,null,"K.1","Informal Stakeholder Coordination"]
["","",null,null,null,null,null,null,null,null,null,null,null,null,null,null,null,null,null,null,null,null,null,0,"",null,null,null,null,null,null,null,"","",null,null,null,null,null,null,null,null,null,"K.2","Public Information Meeting"]
["","",null,null,null,null,null,null,null,null,null,null,null,null,null,null,null,null,null,null,null,null,null,0,"",null,null,null,null,null,null,null,"","",null,null,null,null,null,null,null,null,null,"K.3","Public Hearing"]
["","",null,null,null,null,null,null,null,null,null,null,null,null,null,null,null,null,null,null,null,null,null,0,"",null,null,null,null,null,null,null,"","",null,null,null,null,null,null,null,null,null,"K.4","Local Offical Information Meeting"]
["","",null,null,null,null,null,null,null,null,null,null,null,null,null,null,null,null,null,null,null,null,null,0,"",null,null,null,null,null,null,null,"","",null,null,null,null,null,null,null,null,null,"K.5","Mailer"]
["","",null,null,null,null,null,null,null,null,null,null,null,null,null,null,null,null,null,null,null,null,null,0,"",null,null,null,null,null,null,null,"","",null,null,null,null,null,null,null,null,null,"K.6","Meeting Maps"]
["","",null,null,null,null,null,null,null,null,null,null,null,null,null,null,null,null,null,null,null,null,null,0,"",null,null,null,null,null,null,null,"","",null,null,null,null,null,null,null,null,null,"K.7","Meeting Displays"]
["","",null,null,null,null,null,null,null,null,null,null,null,null,null,null,null,null,null,null,null,null,null,0,"",null,null,null,null,null,null,null,"","",null,null,null,null,null,null,null,null,null,"K.8"]
["","",null,null,null,null,null,null,null,null,null,null,null,null,null,null,null,null,null,null,null,null,null,0,"",null,null,null,null,null,null,null,"","",null,null,null,null,null,null,null,null,null,"K.9"]
["","",null,null,null,null,null,null,null,null,null,null,null,null,null,null,null,null,null,null,null,null,null,0,"",null,null,null,null,null,null,null,"","",null,null,null,null,null,null,null,null,null,"K.10"]
["","",null,null,null,null,null,null,null,null,null,null,null,null,null,null,null,null,null,null,null,null,null,0,"",null,null,null,null,null,null,null,"","",null,null,null,null,null,null,null,null,null,"K.11"]
["","",null,null,null,null,null,null,null,null,null,null,null,null,null,null,null,null,null,null,null,null,null,0,"",null,null,null,null,null,null,null,"","",null,null,null,null,null,null,null,null,null,"K.12"]
["","",null,null,null,null,null,null,null,null,null,null,null,null,null,null,null,null,null,null,null,null,null,{"$f":"IF(B236=\"\",0,IF(B236=\"PROJECT COORDINATION AND MANAGEMENT\",\"\",IF((SUM(D236:W236)=0),0,SUM(D236:W236))))","v":0},"",null,null,null,null,null,null,null,"","",null,null,null,null,null,null,null,null,null,"L","PROJECT COORDINATION AND MANAGEMENT"]
["","",null,null,null,null,null,null,null,null,null,null,null,null,null,null,null,null,null,null,null,null,null,{"$f":"IF(B237=\"\",0,IF((SUM(D237:W237)=0),0,SUM(D237:W237)))","v":0},"",null,null,null,null,null,null,null,"","",null,null,null,null,null,null,null,null,null,"L.1","Project Schedule"]
["","",null,null,null,null,null,null,null,null,null,null,null,null,null,null,null,null,null,null,null,null,null,0,"",null,null,null,null,null,null,null,"","",null,null,null,null,null,null,null,null,null,"L.2","Coordination with NCDOT"]
["","",null,null,null,null,null,null,null,null,null,null,null,null,null,null,null,null,null,null,null,null,null,0,"",null,null,null,null,null,null,null,"","",null,null,null,null,null,null,null,null,null,"L.3","General Coordination"]
["","",null,null,null,null,null,null,null,null,null,null,null,null,null,null,null,null,null,null,null,null,null,0,"",null,null,null,null,null,null,null,"","",null,null,null,null,null,null,null,null,null,"L.4"]
["","",null,null,null,null,null,null,null,null,null,null,null,null,null,null,null,null,null,null,null,null,null,0,"",null,null,null,null,null,null,null,"","",null,null,null,null,null,null,null,null,null,"L.5"]
["","",null,null,null,null,null,null,null,null,null,null,null,null,null,null,null,null,null,null,null,null,null,0,"",null,null,null,null,null,null,null,"","",null,null,null,null,null,null,null,null,null,"L.6"]
["","",null,null,null,null,null,null,null,null,null,null,null,null,null,null,null,null,null,null,null,null,null,0,"",null,null,null,null,null,null,null,"","",null,null,null,null,null,null,null,null,null,"L.7"]
["","",null,null,null,null,null,null,null,null,null,null,null,null,null,null,null,null,null,null,null,null,null,0,"",null,null,null,null,null,null,null,"","",null,null,null,null,null,null,null,null,null,"L.8"]
["","",null,null,null,null,null,null,null,null,null,null,null,null,null,null,null,null,null,null,null,null,null,0,"",null,null,null,null,null,null,null,"",""]
["","",null,null,null,null,null,null,null,null,null,null,null,null,null,null,null,null,null,null,null,null,null,0,"",null,null,null,null,null,null,null,"",""]
["","",null,null,null,null,null,null,null,null,null,null,null,null,null,null,null,null,null,null,null,null,null,0,"",null,null,null,null,null,null,null,"",""]
["","",null,null,null,null,null,null,null,null,null,null,null,null,null,null,null,null,null,null,null,null,null,0,"",null,null,null,null,null,null,null,"",""]
["","",null,null,null,null,null,null,null,null,null,null,null,null,null,null,null,null,null,null,null,null,null,0,"",null,null,null,null,null,null,null,"",""]
["","",null,null,null,null,null,null,null,null,null,null,null,null,null,null,null,null,null,null,null,null,null,0,"",null,null,null,null,null,null,null,"",""]
["","",null,null,null,null,null,null,null,null,null,null,null,null,null,null,null,null,null,null,null,null,null,0,"",null,null,null,null,null,null,null,"",""]
["","",null,null,null,null,null,null,null,null,null,null,null,null,null,null,null,null,null,null,null,null,null,0,"",null,null,null,null,null,null,null,"",""]
["","",null,null,null,null,null,null,null,null,null,null,null,null,null,null,null,null,null,null,null,null,null,0,"",null,null,null,null,null,null,null,"",""]
["","",null,null,null,null,null,null,null,null,null,null,null,null,null,null,null,null,null,null,null,null,null,0,"",null,null,null,null,null,null,null,"",""]
["","",null,null,null,null,null,null,null,null,null,null,null,null,null,null,null,null,null,null,null,null,null,0,"",null,null,null,null,null,null,null,"",""]
["","",null,null,null,null,null,null,null,null,null,null,null,null,null,null,null,null,null,null,null,null,null,0,"",null,null,null,null,null,null,null,"",""]
["","",null,null,null,null,null,null,null,null,null,null,null,null,null,null,null,null,null,null,null,null,null,0,"",null,null,null,null,null,null,null,"",""]
["","",null,null,null,null,null,null,null,null,null,null,null,null,null,null,null,null,null,null,null,null,null,0,"",null,null,null,null,null,null,null,"",""]
["","",null,null,null,null,null,null,null,null,null,null,null,null,null,null,null,null,null,null,null,null,null,0,{"$f":"IF(SUM(D259:W259)=0,\"\",((SUM(D259:W259))/$X$261))","v":""},null,null,null,null,null,null,null,"",""]
["","",null,null,null,null,null,null,null,null,null,null,null,null,null,null,null,null,null,null,null,null,null,0,{"$f":"IF(SUM(D260:W260)=0,\"\",((SUM(D260:W260))/$X$261))","v":""},null,null,null,null,null,null,null,"",""]
[null,"TOTAL WORKHOURS/CATEGORY:",null,{"$f":"SUM(D11:D260)","v":0},0,0,0,0,0,0,0,0,0,0,0,0,0,0,0,0,0,0,0,{"$f":"SUM(D261:W261)","v":0},{"$f":"SUM(Y11:Y260)","v":0},{"$f":"SUM(Z11:Z260)","v":0}]
[null,"TOTAL WORKDAYS/CATEGORY:",null,{"$f":"D261/8","v":0},{"$f":"E261/8","v":0},0,0,0,0,0,0,0,0,0,0,0,0,0,0,0,0,0,0]
[null,"HOURLY SALARY RATE:",null,{"$f":"'PEF CLASSIFICATION SHEET'!E1233","v":0},{"$f":"'PEF CLASSIFICATION SHEET'!E1234","v":0},{"$f":"'PEF CLASSIFICATION SHEET'!E1235","v":0},{"$f":"'PEF CLASSIFICATION SHEET'!E1236","v":0},{"$f":"'PEF CLASSIFICATION SHEET'!E1237","v":0},{"$f":"'PEF CLASSIFICATION SHEET'!E1238","v":0},{"$f":"'PEF CLASSIFICATION SHEET'!E1239","v":0},{"$f":"'PEF CLASSIFICATION SHEET'!E1240","v":0},{"$f":"'PEF CLASSIFICATION SHEET'!E1241","v":0},{"$f":"'PEF CLASSIFICATION SHEET'!E1242","v":0},{"$f":"'PEF CLASSIFICATION SHEET'!E1243","v":0},{"$f":"'PEF CLASSIFICATION SHEET'!E1244","v":0},{"$f":"'PEF CLASSIFICATION SHEET'!E1245","v":0},{"$f":"'PEF CLASSIFICATION SHEET'!E1246","v":0},{"$f":"'PEF CLASSIFICATION SHEET'!E1247","v":0},{"$f":"'PEF CLASSIFICATION SHEET'!E1248","v":0},{"$f":"'PEF CLASSIFICATION SHEET'!E1249","v":0},{"$f":"'PEF CLASSIFICATION SHEET'!E1250","v":0},{"$f":"'PEF CLASSIFICATION SHEET'!E1251","v":0},{"$f":"'PEF CLASSIFICATION SHEET'!E1252","v":0}]
[null,"RATES PER DAY:",null,{"$f":"D263*8","v":0},0,0,0,0,0,0,0,0,0,0,0,0,0,0,0,0,0,0,0]
[null,"PAYROLL BURDEN:",null,{"$f":"SUM(D261*D263)","v":0},{"$f":"SUM(E261*E263)","v":0},0,0,0,0,0,0,0,0,0,0,0,0,0,0,0,0,0,0]
[null,"TOTAL WORKDAYS:",null,{"$f":"SUM(D262:W262)","v":0}]
[null,"TOTAL PAYROLL BURDEN:",null,{"$f":"SUM(D265:W265)","v":0}]
[null,"AVERAGE COST PER HOUR:",null,{"$f":"SUM(D267/(D266*8))","v":{"$error":"#DIV/0!"}}]
[null,"GENERAL OVERHEAD:",{"$f":"RAIL.SUB7_CONSULTANT_OVERHEAD","v":0},{"$f":"SUM(D267*C269)","v":0}]
[null,"SUBTOTAL:",null,{"$f":"SUM(D267+D269)","v":0}]
[null,"COMPARATIVE FEE:",{"$f":"RAIL.SUB7_CONSULTANT_FEE","v":0.09},{"$f":"SUM(D270*C271)","v":0}]
[null,"FACILITIES COST OF CAPITAL:",{"$f":"RAIL.SUB7_COSTofCAPITAL","v":0},{"$f":"SUM(D267*C272)","v":0}]
[null,"TOTAL:",null,{"$f":"SUM(D270:D272)","v":0}]
[null,"DIRECT EXPENSES:",null,{"$f":"RAIL.SUB7_DIRECT_NONSALARY_TOTAL","v":0}]
[null,"RAIL GRAND TOTAL:",null,{"$f":"SUM(D273:D274)","v":0}]

{"sheet":"Rail-Exp-Sub7","index":152,"n_rows":46,"n_cols":8,"rows_kept":46,"cut":false,"hidden":true,"merged":[[0,0,0,7],[1,3,1,7]]}
["RAIL--DIRECT EXPENSES - SUBCONSULTANT 7"]
["TIP NUMBER",{"$f":"TIP.NUMBER","v":0},"FIRM:",{"$f":"'Rail-Sub7'!G3","v":"CONSULTANT NAME"}]
[]
["GENERAL PROJECT WORK:","ITEM","QTY","DESCRIPTION",null,null,"UNIT COST "]
[null,"Travel:"]
[null,"Sedan",0,"Trip(s) @",0,"miles @",{"$f":"SEDAN","v":0.7},{"$f":"SUM(C6*E6*G6)","v":0}]
[null,"Carry All",0,"Trip(s) @",0,"miles @",{"$f":"CARRYALL","v":0.72},{"$f":"SUM(C7*E7*G7)","v":0}]
[null,"Car Rental",null,null,0,"days @ ",{"$f":"CARRENTAL","v":50},{"$f":"SUM(E8*G8)","v":0}]
[null,"Gas for Rental",null,null,0,"miles @",{"$f":"GASforRENTAL","v":0.2},{"$f":"SUM(E9*G9)","v":0}]
[null,"Parking:",0,"Trip(s) @",null,null,{"$f":"PARKING","v":3},{"$f":"SUM(C10*G10)","v":0}]
[null,"Per Diem:",0,"Breakfast",null,null,{"$f":"BREAKFAST","v":10.1},{"$f":"SUM(C11*G11)","v":0}]
[null,null,0,"Lunch",null,null,{"$f":"LUNCH","v":13.3},0]
[null,null,0,"Dinner",null,null,{"$f":"DINNER","v":23.1},0]
[null,null,0,"Lodging",null,null,{"$f":"LODGING_LUMP.SUM","v":95},0]
[null,"Reproduction:",0,"8 1/2 x 11 B & W Copies @",null,null,{"$f":"LETTERCOPIES","v":0.14000000000000001},0]
[null,null,0,"11 x 17 B & W Copies @",null,null,{"$f":"LEDGERCOPIES","v":0.34},0]
[null,null,0,"8 1/2 x 11 Color Copies @",null,null,{"$f":"LETTERCOLOR","v":0.83},0]
[null,null,0,"11 x 17 Color Copies @",null,null,{"$f":"LEDGERCOLOR","v":1.66},0]
[null,null,0,"SQ. FT. of Plots (B & W or Color)",null,"<65 SQ. FT.*",{"$f":"ROLLPLOTSshort","v":6.5},0]
[null,null,0,"SQ. FT. of Plots (B & W or Color)",null,">65 SQ. FT.*",{"$f":"ROLLPLOTSlong","v":1.5},0]
[null,null,0,"Cover(s) @",null,null,{"$f":"COVERS","v":0.5},0]
[null,null,0,"Binder(s) @",null,null,{"$f":"BINDERS","v":0.5},0]
[null,null,0,"Blueprints - 8 1/2 x 11 @",null,null,{"$f":"BLUEPRINTSLETTER","v":0.35},0]
[null,null,0,"Blueprints - 42 x 72 @",null,null,{"$f":"BLUEPRINTSLARGE","v":1.3},0]
[null,"Film and Developing:",0,"Roll(s) @",null,null,{"$f":"FILM","v":20},0]
[null,null,null,null,null,"Subtotal",null,{"$f":"SUM(H6:H25)","v":0}]
["MAPS AND DOCUMENTS:","ITEM","QTY","DESCRIPTION",null,null,"UNIT COST "]
[null,"County Tax Maps:",0,"Map(s) @",null,null,{"$f":"County_Tax_Maps","v":7},{"$f":"SUM(C28*G28)","v":0}]
[null,"USGS Maps:",0,"Map(s) @",null,null,{"$f":"USGSMAPS","v":7},{"$f":"SUM(C29*G29)","v":0}]
[null,null,null,null,null,"Subtotal",null,{"$f":"SUM(H28:H29)","v":0}]
["Miscellaneous Other","ITEM","QTY","DESCRIPTION",null,null,"UNIT COST "]
[null,null,null,null,null,null,null,{"$f":"SUM(C32*G32)","v":0}]
[null,null,null,null,null,null,null,{"$f":"SUM(C33*G33)","v":0}]
[null,null,null,null,null,null,null,0]
[null,null,null,null,null,null,null,0]
[null,null,null,null,null,null,null,0]
[null,null,null,null,null,null,null,0]
[null,null,null,null,null,null,null,0]
[null,null,null,null,null,null,null,{"$f":"SUM(C39*G39)","v":0}]
[null,null,null,null,null,null,null,{"$f":"SUM(C40*G40)","v":0}]
[null,null,null,null,null,null,null,{"$f":"SUM(C41*G41)","v":0}]
[null,null,null,null,null,"Subtotal",null,{"$f":"SUM(H32:H41)","v":0}]
[]
[null,null,null,null,null,"TOTAL",null,{"$f":"SUM(H26+H30+H42)","v":0}]
[]
[null,"* Sum of all plots "]

{"sheet":"Rail-Sub8","index":153,"n_rows":275,"n_cols":47,"rows_kept":275,"cut":false,"hidden":true,"merged":[[0,0,1,13],[2,1,2,4],[2,6,2,7],[2,10,2,11],[2,15,2,16],[3,1,3,4],[3,6,3,7],[3,10,3,11],[3,15,3,16],[6,12,9,12],[6,13,9,13],[6,14,9,14],[6,15,9,15],[6,16,9,16],[6,17,9,17],[4,3,4,22],[6,3,9,3],[6,4,9,4],[6,5,9,5],[6,6,9,6],[6,7,9,7],[6,8,9,8],[6,9,9,9],[6,10,9,10],[6,11,9,11],[10,26,10,27],[11,26,11,27],[12,26,12,27],[13,26,13,27],[14,26,14,27],[15,26,15,27],[6,18,9,18],[6,19,9,19],[6,20,9,20],[6,21,9,21],[6,22,9,22],[8,26,8,27],[22,26,22,27],[23,26,23,27],[24,26,24,27],[25,26,25,27],[26,26,26,27],[27,26,27,27],[16,26,16,27],[17,26,17,27],[18,26,18,27],[19,26,19,27],[20,26,20,27],[21,26,21,27],[34,26,34,27],[35,26,35,27],[36,26,36,27],[37,26,37,27],[38,26,38,27],[39,26,39,27],[28,26,28,27],[29,26,29,27],[30,26,30,27],[31,26,31,27],[32,26,32,27],[33,26,33,27],[46,26,46,27],[47,26,47,27],[48,26,48,27],[49,26,49,27],[50,26,50,27],[51,26,51,27],[40,26,40,27],[41,26,41,27],[42,26,42,27],[43,26,43,27],[44,26,44,27],[45,26,45,27],[58,26,58,27],[59,26,59,27],[60,26,60,27],[61,26,61,27],[62,26,62,27],[63,26,63,27],[52,26,52,27],[53,26,53,27],[54,26,54,27],[55,26,55,27],[56,26,56,27],[57,26,57,27],[70,26,70,27],[71,26,71,27],[72,26,72,27],[73,26,73,27],[74,26,74,27],[75,26,75,27],[64,26,64,27],[65,26,65,27],[66,26,66,27],[67,26,67,27],[68,26,68,27],[69,26,69,27],[82,26,82,27],[83,26,83,27],[84,26,84,27],[85,26,85,27],[86,26,86,27],[87,26,87,27],[76,26,76,27],[77,26,77,27],[78,26,78,27],[79,26,79,27],[80,26,80,27],[81,26,81,27],[94,26,94,27],[95,26,95,27],[96,26,96,27],[97,26,97,27],[98,26,98,27],[99,26,99,27],[88,26,88,27],[89,26,89,27],[90,26,90,27],[91,26,91,27],[92,26,92,27],[93,26,93,27],[106,26,106,27],[107,26,107,27],[108,26,108,27],[109,26,109,27],[110,26,110,27],[111,26,111,27],[100,26,100,27],[101,26,101,27],[102,26,102,27],[103,26,103,27],[104,26,104,27],[105,26,105,27],[274,1,275,1],[274,3,275,4],[278,8,278,13],[279,8,279,9],[279,10,279,11],[112,26,112,27],[113,26,113,27],[114,26,114,27],[255,26,255,27],[256,26,256,27],[257,26,257,27],[174,26,174,27],[175,26,175,27],[176,26,176,27],[177,26,177,27],[178,26,178,27],[179,26,179,27],[180,26,180,27],[181,26,181,27],[182,26,182,27],[183,26,183,27],[184,26,184,27],[185,26,185,27],[186,26,186,27],[280,8,280,9],[280,10,280,11],[283,8,283,13],[284,8,284,9],[284,10,284,11],[285,8,285,9],[285,10,285,11],[258,26,258,27],[259,26,259,27],[187,26,187,27],[188,26,188,27],[189,26,189,27],[190,26,190,27],[191,26,191,27],[192,26,192,27],[193,26,193,27],[194,26,194,27],[195,26,195,27],[196,26,196,27],[197,26,197,27],[198,26,198,27],[199,26,199,27],[200,26,200,27],[201,26,201,27],[202,26,202,27],[203,26,203,27],[204,26,204,27],[205,26,205,27],[206,26,206,27],[207,26,207,27],[208,26,208,27],[209,26,209,27],[210,26,210,27],[211,26,211,27],[212,26,212,27],[213,26,213,27],[214,26,214,27],[215,26,215,27],[216,26,216,27],[217,26,217,27],[218,26,218,27],[219,26,219,27],[220,26,220,27],[221,26,221,27],[222,26,222,27],[223,26,223,27],[224,26,224,27],[225,26,225,27],[226,26,226,27],[227,26,227,27],[228,26,228,27],[229,26,229,27],[230,26,230,27],[231,26,231,27],[232,26,232,27],[233,26,233,27],[234,26,234,27],[235,26,235,27],[236,26,236,27],[237,26,237,27],[238,26,238,27],[245,26,245,27],[246,26,246,27],[247,26,247,27],[248,26,248,27],[249,26,249,27],[250,26,250,27],[251,26,251,27],[252,26,252,27],[253,26,253,27],[254,26,254,27],[115,26,115,27],[116,26,116,27],[117,26,117,27],[118,26,118,27],[119,26,119,27],[120,26,120,27],[121,26,121,27],[122,26,122,27],[123,26,123,27],[124,26,124,27],[125,26,125,27],[126,26,126,27],[127,26,127,27],[128,26,128,27],[129,26,129,27],[130,26,130,27],[131,26,131,27],[132,26,132,27],[133,26,133,27],[134,26,134,27],[135,26,135,27],[136,26,136,27],[137,26,137,27],[138,26,138,27],[139,26,139,27],[140,26,140,27],[141,26,141,27],[142,26,142,27],[143,26,143,27],[144,26,144,27],[159,26,159,27],[160,26,160,27],[161,26,161,27],[162,26,162,27],[145,26,145,27],[146,26,146,27],[147,26,147,27],[148,26,148,27],[149,26,149,27],[150,26,150,27],[151,26,151,27],[152,26,152,27],[153,26,153,27],[3,26,3,27],[9,0,9,1],[241,26,241,27],[242,26,242,27],[243,26,243,27],[244,26,244,27],[239,26,239,27],[240,26,240,27],[172,26,172,27],[173,26,173,27],[163,26,163,27],[164,26,164,27],[165,26,165,27],[166,26,166,27],[167,26,167,27],[168,26,168,27],[169,26,169,27],[170,26,170,27],[171,26,171,27],[154,26,154,27],[155,26,155,27],[156,26,156,27],[157,26,157,27],[158,26,158,27]]}
["                                                                      SUBCONSULTANT 8 - RAIL DIVISION BREAKDOWN WORKSHEET -- ENTER WORKHOURS"]
[]
["PROJECT DESCRIPTION: ",{"$f":"PROJECT.DESCRIPTION","v":0},null,null,null,"FIRM:  ",{"$f":"RAIL.SUB8_CONSULTANT_NAME","v":"CONSULTANT NAME"},null,"TASK ORDER NUMBER:",null,{"$f":"TASK.ORDER.NUMBER","v":0},null,"DATE PREPARED:",{"$f":"IF(SCOPE.MANDAY.ESTIMATE.PREPARED.BY.DATE=\"\",\"\",SCOPE.MANDAY.ESTIMATE.PREPARED.BY.DATE)","v":""}]
["PREPARED BY:  ",{"$f":"IF(SCOPE.MANDAY.ESTIMATE.PREPARED.BY=\"\",\"\",SCOPE.MANDAY.ESTIMATE.PREPARED.BY)","v":""},null,null,null,"TIP NUMBER:",{"$f":"TIP.NUMBER","v":0},null,"WBS NUMBER:",null,{"$f":"WBS.NUMBER","v":""},null,"REVISION DATE:",{"$f":"IF(SCOPE.MANDAY.ESTIMATE.APPROVED.BY.DATE=\"\",\"\",SCOPE.MANDAY.ESTIMATE.APPROVED.BY.DATE)","v":""},null,null,null,null,null,null,null,null,null,null,null,"TASK TYPE:","Select Task Type"]
[null,null,null,"ESTIMATED WORKHOURS"]
[null,null,"EMPLOYEE NAMES",{"$f":"IF('PEF CLASSIFICATION SHEET'!D1255=\"\",\"\",LEFT('PEF CLASSIFICATION SHEET'!D1255,4))","v":""},{"$f":"IF('PEF CLASSIFICATION SHEET'!D1256=\"\",\"\",LEFT('PEF CLASSIFICATION SHEET'!D1256,4))","v":""},{"$f":"IF('PEF CLASSIFICATION SHEET'!D1257=\"\",\"\",LEFT('PEF CLASSIFICATION SHEET'!D1257,4))","v":""},{"$f":"IF('PEF CLASSIFICATION SHEET'!D1258=\"\",\"\",LEFT('PEF CLASSIFICATION SHEET'!D1258,4))","v":""},{"$f":"IF('PEF CLASSIFICATION SHEET'!D1259=\"\",\"\",LEFT('PEF CLASSIFICATION SHEET'!D1259,4))","v":""},{"$f":"IF('PEF CLASSIFICATION SHEET'!D1260=\"\",\"\",LEFT('PEF CLASSIFICATION SHEET'!D1260,4))","v":""},{"$f":"IF('PEF CLASSIFICATION SHEET'!D1261=\"\",\"\",LEFT('PEF CLASSIFICATION SHEET'!D1261,4))","v":""},{"$f":"IF('PEF CLASSIFICATION SHEET'!D1262=\"\",\"\",LEFT('PEF CLASSIFICATION SHEET'!D1262,4))","v":""},{"$f":"IF('PEF CLASSIFICATION SHEET'!D1263=\"\",\"\",LEFT('PEF CLASSIFICATION SHEET'!D1263,4))","v":""},{"$f":"IF('PEF CLASSIFICATION SHEET'!D1264=\"\",\"\",LEFT('PEF CLASSIFICATION SHEET'!D1264,4))","v":""},{"$f":"IF('PEF CLASSIFICATION SHEET'!D1265=\"\",\"\",LEFT('PEF CLASSIFICATION SHEET'!D1265,4))","v":""},{"$f":"IF('PEF CLASSIFICATION SHEET'!D1266=\"\",\"\",LEFT('PEF CLASSIFICATION SHEET'!D1266,4))","v":""},{"$f":"IF('PEF CLASSIFICATION SHEET'!D1267=\"\",\"\",LEFT('PEF CLASSIFICATION SHEET'!D1267,4))","v":""},{"$f":"IF('PEF CLASSIFICATION SHEET'!D1268=\"\",\"\",LEFT('PEF CLASSIFICATION SHEET'!D1268,4))","v":""},{"$f":"IF('PEF CLASSIFICATION SHEET'!D1269=\"\",\"\",LEFT('PEF CLASSIFICATION SHEET'!D1269,4))","v":""},{"$f":"IF('PEF CLASSIFICATION SHEET'!D1270=\"\",\"\",LEFT('PEF CLASSIFICATION SHEET'!D1270,4))","v":""},{"$f":"IF('PEF CLASSIFICATION SHEET'!D1271=\"\",\"\",LEFT('PEF CLASSIFICATION SHEET'!D1271,4))","v":""},{"$f":"IF('PEF CLASSIFICATION SHEET'!D1272=\"\",\"\",LEFT('PEF CLASSIFICATION SHEET'!D1272,4))","v":""},{"$f":"IF('PEF CLASSIFICATION SHEET'!D1273=\"\",\"\",LEFT('PEF CLASSIFICATION SHEET'!D1273,4))","v":""},{"$f":"IF('PEF CLASSIFICATION SHEET'!D1274=\"\",\"\",LEFT('PEF CLASSIFICATION SHEET'!D1274,4))","v":""}]
[null,null,null,{"$f":"IF('PEF CLASSIFICATION SHEET'!C1255=\"\",\"\",'PEF CLASSIFICATION SHEET'!C1255)","v":""},{"$f":"IF('PEF CLASSIFICATION SHEET'!C1256=\"\",\"\",'PEF CLASSIFICATION SHEET'!C1256)","v":""},{"$f":"IF('PEF CLASSIFICATION SHEET'!C1257=\"\",\"\",'PEF CLASSIFICATION SHEET'!C1257)","v":""},{"$f":"IF('PEF CLASSIFICATION SHEET'!C1258=\"\",\"\",'PEF CLASSIFICATION SHEET'!C1258)","v":""},{"$f":"IF('PEF CLASSIFICATION SHEET'!C1259=\"\",\"\",'PEF CLASSIFICATION SHEET'!C1259)","v":""},{"$f":"IF('PEF CLASSIFICATION SHEET'!C1260=\"\",\"\",'PEF CLASSIFICATION SHEET'!C1260)","v":""},{"$f":"IF('PEF CLASSIFICATION SHEET'!C1261=\"\",\"\",'PEF CLASSIFICATION SHEET'!C1261)","v":""},{"$f":"IF('PEF CLASSIFICATION SHEET'!C1262=\"\",\"\",'PEF CLASSIFICATION SHEET'!C1262)","v":""},{"$f":"IF('PEF CLASSIFICATION SHEET'!C1263=\"\",\"\",'PEF CLASSIFICATION SHEET'!C1263)","v":""},{"$f":"IF('PEF CLASSIFICATION SHEET'!C1264=\"\",\"\",'PEF CLASSIFICATION SHEET'!C1264)","v":""},{"$f":"IF('PEF CLASSIFICATION SHEET'!C1265=\"\",\"\",'PEF CLASSIFICATION SHEET'!C1265)","v":""},{"$f":"IF('PEF CLASSIFICATION SHEET'!C1266=\"\",\"\",'PEF CLASSIFICATION SHEET'!C1266)","v":""},{"$f":"IF('PEF CLASSIFICATION SHEET'!C1267=\"\",\"\",'PEF CLASSIFICATION SHEET'!C1267)","v":""},{"$f":"IF('PEF CLASSIFICATION SHEET'!C1268=\"\",\"\",'PEF CLASSIFICATION SHEET'!C1268)","v":""},{"$f":"IF('PEF CLASSIFICATION SHEET'!C1269=\"\",\"\",'PEF CLASSIFICATION SHEET'!C1269)","v":""},{"$f":"IF('PEF CLASSIFICATION SHEET'!C1270=\"\",\"\",'PEF CLASSIFICATION SHEET'!C1270)","v":""},{"$f":"IF('PEF CLASSIFICATION SHEET'!C1271=\"\",\"\",'PEF CLASSIFICATION SHEET'!C1271)","v":""},{"$f":"IF('PEF CLASSIFICATION SHEET'!C1272=\"\",\"\",'PEF CLASSIFICATION SHEET'!C1272)","v":""},{"$f":"IF('PEF CLASSIFICATION SHEET'!C1273=\"\",\"\",'PEF CLASSIFICATION SHEET'!C1273)","v":""},{"$f":"IF('PEF CLASSIFICATION SHEET'!C1274=\"\",\"\",'PEF CLASSIFICATION SHEET'!C1274)","v":""},"SUB-","%","PEF"]
[null,null,null,null,null,null,null,null,null,null,null,null,null,null,null,null,null,null,null,null,null,null,null,"TOTAL","OF","ESTIMATE"]
["TASK NO.","TASK DESCRIPTION","CLASSIFICATION",null,null,null,null,null,null,null,null,null,null,null,null,null,null,null,null,null,null,null,null,null,"PROJECT",null,"COMMENTS",null,null,null,null,null,null,null,"Select Task Type","Grade Separation","CEI","Track Design","Signal Design","Environmental","Planning"]
[{"$f":"IF($AA$4=\"Select Task Type\",\"Select the TASK TYPE from drop down list in cell AA4 to populate the task list\",IF($AA$4=\"Grade Separation\",\"You selected Grade Separation\",IF($AA$4=\"CEI\",\"You selected CEI\",IF($AA$4=\"Track Design\",\"You selected Track Design.  When the task is ALL CAPS, this is a header row, if you choose to key mandays associated with that header row the row total will not be displayed but the column and overall total will sum appropriately\",IF($AA$4=\"Signal Design\",\"You selected Signal Design, note that this is initially a blank task list; so please create a task list from scratch\",IF($AA$4=\"Environmental\",\"You selected Environmental.  When the task is ALL CAPS, this is a header row, if you choose to key mandays associated with that header row the row total will not be displayed but the column and overall total will sum appropriately\",IF($AA$4=\"Planning\",\"You selected Planning.  When the task is ALL CAPS, this is a header row, if you choose to key mandays associated with that header row the row total will not be displayed but the column and overall total will sum appropriately\",\"Select the TASK TYPE from drop down list in cell AA4 to populate the task list\")))))))","v":"Select the TASK TYPE from drop down list in cell AA4 to populate the task list"},null,null,null,null,null,null,null,null,null,null,null,null,null,null,null,null,null,null,null,null,null,null,null,null,null,null,null,null,null,null,null,null,null,null,"Grade Separation","Grade Separation","CEI","CEI","Track Design","Track Design","Signal Design","Signal Design","Environmental","Environmental","Planning","Planning"]
[{"$f":"IF(AG11=0,\"\",AG11)","v":""},{"$f":"IF(AH11=0,\"\",AH11)","v":""},null,null,null,null,null,null,null,null,null,null,null,null,null,null,null,null,null,null,null,null,null,{"$f":"IF(B11=\"\",0,IF(B11=\"DEMAND ASSESSMENT\",\"\",IF(B11=\"PROJECT SCOPING AND DATA COLLECTION\",\"\",IF(B11=\"PROJECT MANAGEMENT/PROJECT ADMINISTRATION\",\"\",IF((SUM(D11:W11)=0),0,SUM(D11:W11))))))","v":0},{"$f":"IF(SUM(D11:W11)=0,\"\",((SUM(D11:W11))/$X$261))","v":""},null,null,null,null,null,null,null,{"$f":"IF($AA$4=\"Select Task Type\",\"\",IF($AA$4=\"Grade Separation\",AJ11,IF($AA$4=\"CEI\",AL11,IF($AA$4=\"Track Design\",AN11,IF($AA$4=\"Signal Design\",AP11,IF($AA$4=\"Environmental\",AR11,IF($AA$4=\"Planning\",AT11,\"\")))))))","v":""},{"$f":"IF($AA$4=\"Select Task Type\",\"\",IF($AA$4=\"Grade Separation\",AK11,IF($AA$4=\"CEI\",AM11,IF($AA$4=\"Track Design\",AO11,IF($AA$4=\"Signal Design\",AQ11,IF($AA$4=\"Environmental\",AS11,IF($AA$4=\"Planning\",AU11,\"\")))))))","v":""},null,1,"Project Familiarization",1,"Project management and document review",1,"PROJECT MANAGEMENT/PROJECT ADMINISTRATION",null,null,"A","PROJECT SCOPING AND DATA COLLECTION",1,"DEMAND ASSESSMENT"]
[{"$f":"IF(AG12=0,\"\",AG12)","v":""},"",null,null,null,null,null,null,null,null,null,null,null,null,null,null,null,null,null,null,null,null,null,{"$f":"IF(B12=\"\",0,IF((SUM(D12:W12)=0),0,SUM(D12:W12)))","v":0},{"$f":"IF(SUM(D12:W12)=0,\"\",((SUM(D12:W12))/$X$261))","v":""},null,null,null,null,null,null,null,{"$f":"IF($AA$4=\"Select Task Type\",\"\",IF($AA$4=\"Grade Separation\",AJ12,IF($AA$4=\"CEI\",AL12,IF($AA$4=\"Track Design\",AN12,IF($AA$4=\"Signal Design\",AP12,IF($AA$4=\"Environmental\",AR12,IF($AA$4=\"Planning\",AT12,\"\")))))))","v":""},"",null,2,"Conceptual Design",2,"Track inspection",null,null,null,null,"A.1","Study Area Definition",null,"Review previous studies"]
["","",null,null,null,null,null,null,null,null,null,null,null,null,null,null,null,null,null,null,null,null,null,0,{"$f":"IF(SUM(D13:W13)=0,\"\",((SUM(D13:W13))/$X$261))","v":""},null,null,null,null,null,null,null,"","",null,3,"Construction Cost Estimate",3,"Roadway inspection",null,null,null,null,"A.2","Study Area Field Visit",null,"Interview XX, XX, and XX on near-term rail intermodal and break bulk plans"]
["","",null,null,null,null,null,null,null,null,null,null,null,null,null,null,null,null,null,null,null,null,null,0,"",null,null,null,null,null,null,null,"","",null,4,"Project Coordination",null,null,null,null,null,null,"A.3","Community Characteristics Report",null,"Estimate effects of various rail entities"]
["","",null,null,null,null,null,null,null,null,null,null,null,null,null,null,null,null,null,null,null,null,null,0,"",null,null,null,null,null,null,null,"","",null,null,null,null,null,null,null,null,null,"A.4","Local Land Use and Transportation Plans",null,"Estimate future growth in other bulk and break bulk commodities"]
["","",null,null,null,null,null,null,null,null,null,null,null,null,null,null,null,null,null,null,null,null,null,0,"",null,null,null,null,null,null,null,"","",null,null,null,null,null,null,null,null,null,"A.5","State and Federal Data Sources",null,"Incorporate State Freight Plan into market forecasts "]
["","",null,null,null,null,null,null,null,null,null,null,null,null,null,null,null,null,null,null,null,null,null,0,"",null,null,null,null,null,null,null,"","",null,null,null,null,null,null,null,null,null,"A.6 ","GeoEnvironmental Review",null,"Project port continued share against market growth"]
["","",null,null,null,null,null,null,null,null,null,null,null,null,null,null,null,null,null,null,null,null,null,0,"",null,null,null,null,null,null,null,"","",null,null,null,null,null,null,null,null,null,"A.7","GIS Data Layers and Aerial Photography",null,"Combine forecasts from various groups into a base line forecast"]
["","",null,null,null,null,null,null,null,null,null,null,null,null,null,null,null,null,null,null,null,null,null,0,"",null,null,null,null,null,null,null,"","",null,null,null,null,null,null,null,null,null,"A.8","Evaluation of Existing Transportation Facilities",null,"Develop an updated base forecast"]
["","",null,null,null,null,null,null,null,null,null,null,null,null,null,null,null,null,null,null,null,null,null,0,"",null,null,null,null,null,null,null,"","",null,null,null,null,null,null,null,null,null,"A.9","Traffic Forecast Request",null,"Compare with freight forecast in NC State Freight Plan, contrast against existing port rail capacity, identify delta required to accommodate additional traffic"]
["","",null,null,null,null,null,null,null,null,null,null,null,null,null,null,null,null,null,null,null,null,null,0,"",null,null,null,null,null,null,null,"","",null,null,null,null,null,null,null,null,null,"A.10","Project Data Sheet",null,"Add in empty return exports and revise forecast"]
["","",null,null,null,null,null,null,null,null,null,null,null,null,null,null,null,null,null,null,null,null,null,{"$f":"IF(B22=\"\",0,IF(B22=\"FUNCTIONAL TRACK DESIGN\",\"\",IF((SUM(D22:W22)=0),0,SUM(D22:W22))))","v":0},"",null,null,null,null,null,null,null,"","",null,null,null,null,null,2,"FUNCTIONAL TRACK DESIGN",null,null,"A.11","Start of Study Letters",null,"Develop near-term outlook of market demand and system requirements"]
["","",null,null,null,null,null,null,null,null,null,null,null,null,null,null,null,null,null,null,null,null,null,{"$f":"IF(B23=\"\",0,IF((SUM(D23:W23)=0),0,SUM(D23:W23)))","v":0},"",null,null,null,null,null,null,null,"","",null,null,null,null,null,null,null,null,null,"A.12","Kickoff/Scoping Meeting",null,"Review operations and plans for XX, suggest if port rail facilities can accommodate projected growth"]
["","",null,null,null,null,null,null,null,null,null,null,null,null,null,null,null,null,null,null,null,null,null,{"$f":"IF(B24=\"\",0,IF((SUM(D24:W24)=0),0,SUM(D24:W24)))","v":0},"",null,null,null,null,null,null,null,"","",null,null,null,null,null,null,null,null,null,"A.13",null,null,"Identify conceptual rail capacity and prospects for service assuming successful XX service"]
["","",null,null,null,null,null,null,null,null,null,null,null,null,null,null,null,null,null,null,null,null,null,{"$f":"IF(B25=\"\",0,IF((SUM(D25:W25)=0),0,SUM(D25:W25)))","v":0},"",null,null,null,null,null,null,null,"","",null,null,null,null,null,null,null,null,null,"A.14",null,null,"Evaluate rail operations @ port to identify conflicts and opportunities to serve both intermodal and break bulk rail customers"]
["","",null,null,null,null,null,null,null,null,null,null,null,null,null,null,null,null,null,null,null,null,null,{"$f":"IF(B26=\"\",0,IF((SUM(D26:W26)=0),0,SUM(D26:W26)))","v":0},"",null,null,null,null,null,null,null,"","",null,null,null,null,null,null,null,null,null,"A.15",null,null,"Develop near-term outlook of market demand and system requirements"]
["","",null,null,null,null,null,null,null,null,null,null,null,null,null,null,null,null,null,null,null,null,null,{"$f":"IF(B27=\"\",0,IF((SUM(D27:W27)=0),\"\",SUM(D27:W27)))","v":0},"",null,null,null,null,null,null,null,"","",null,null,null,null,null,null,null,null,null,"A.16"]
["","",null,null,null,null,null,null,null,null,null,null,null,null,null,null,null,null,null,null,null,null,null,0,"",null,null,null,null,null,null,null,"","",null,null,null,null,null,null,null,null,null,"A.17"]
["","",null,null,null,null,null,null,null,null,null,null,null,null,null,null,null,null,null,null,null,null,null,{"$f":"IF(B29=\"\",0,IF(B29=\"TRAFFIC CAPACITY ANALYSIS AND ACCIDENT ANALYSIS\",\"\",IF((SUM(D29:W29)=0),0,SUM(D29:W29))))","v":0},"",null,null,null,null,null,null,null,"","",null,null,null,null,null,null,null,null,null,"B","TRAFFIC CAPACITY ANALYSIS AND ACCIDENT ANALYSIS"]
["","",null,null,null,null,null,null,null,null,null,null,null,null,null,null,null,null,null,null,null,null,null,{"$f":"IF(B30=\"\",0,IF((SUM(D30:W30)=0),0,SUM(D30:W30)))","v":0},"",null,null,null,null,null,null,null,"","",null,null,null,null,null,null,null,null,null,"B.1","Coordinate with Stantec & incorporate the analysis"]
["","",null,null,null,null,null,null,null,null,null,null,null,null,null,null,null,null,null,null,null,null,null,{"$f":"IF(B31=\"\",0,IF((SUM(D31:W31)=0),0,SUM(D31:W31)))","v":0},"",null,null,null,null,null,null,null,"","",null,null,null,null,null,null,null,null,null,"B.2"]
["","",null,null,null,null,null,null,null,null,null,null,null,null,null,null,null,null,null,null,null,null,null,{"$f":"IF(B32=\"\",0,IF(B32=\"PORT MASTER PLAN REVIEW\",\"\",IF((SUM(D32:W32)=0),0,SUM(D32:W32))))","v":0},"",null,null,null,null,null,null,null,"","",null,null,null,null,null,null,null,null,null,"B.3",null,2,"PORT MASTER PLAN REVIEW"]
["","",null,null,null,null,null,null,null,null,null,null,null,null,null,null,null,null,null,null,null,null,null,{"$f":"IF(B33=\"\",0,IF(B33=\"PRELIMINARY TRACK DESIGN\",\"\",IF((SUM(D33:W33)=0),0,SUM(D33:W33))))","v":0},"",null,null,null,null,null,null,null,"","",null,null,null,null,null,3,"PRELIMINARY TRACK DESIGN",null,null,"B.4",null,null,"Identify area needed to accommodate each targeted market"]
["","",null,null,null,null,null,null,null,null,null,null,null,null,null,null,null,null,null,null,null,null,null,{"$f":"IF(B34=\"\",0,IF((SUM(D34:W34)=0),0,SUM(D34:W34)))","v":0},"",null,null,null,null,null,null,null,"","",null,null,null,null,null,null,null,null,null,"B.5",null,null,"Assess ability to meet current and projected needs"]
["","",null,null,null,null,null,null,null,null,null,null,null,null,null,null,null,null,null,null,null,null,null,{"$f":"IF(B35=\"\",0,IF((SUM(D35:W35)=0),0,SUM(D35:W35)))","v":0},"",null,null,null,null,null,null,null,"","",null,null,null,null,null,null,null,null,null,"B.6",null,null,"Coordinate with Port regarding future Port plans"]
["","",null,null,null,null,null,null,null,null,null,null,null,null,null,null,null,null,null,null,null,null,null,{"$f":"IF(B36=\"\",0,IF(B36=\"PROJECT PURPOSE AND NEED\",\"\",IF((SUM(D36:W36)=0),0,SUM(D36:W36))))","v":0},"",null,null,null,null,null,null,null,"","",null,null,null,null,null,null,null,null,null,"C","PROJECT PURPOSE AND NEED",null,"Develop recommendations to layout and/or processes to meet anticipated needs while not conflicting or constraining future activities"]
["","",null,null,null,null,null,null,null,null,null,null,null,null,null,null,null,null,null,null,null,null,null,{"$f":"IF(B37=\"\",0,IF((SUM(D37:W37)=0),0,SUM(D37:W37)))","v":0},"",null,null,null,null,null,null,null,"","",null,null,null,null,null,null,null,null,null,"C.1","Preliminary Purpose and Need",null,"Prepare draft port layout"]
["","",null,null,null,null,null,null,null,null,null,null,null,null,null,null,null,null,null,null,null,null,null,0,"",null,null,null,null,null,null,null,"","",null,null,null,null,null,null,null,null,null,"C.2","Final Purpose and Need Memorandum",null,"Revise per NCDOT comments and prepare final port layout"]
["","",null,null,null,null,null,null,null,null,null,null,null,null,null,null,null,null,null,null,null,null,null,0,"",null,null,null,null,null,null,null,"","",null,null,null,null,null,null,null,null,null,"C.3"]
["","",null,null,null,null,null,null,null,null,null,null,null,null,null,null,null,null,null,null,null,null,null,0,"",null,null,null,null,null,null,null,"","",null,null,null,null,null,null,null,null,null,"C.4"]
["","",null,null,null,null,null,null,null,null,null,null,null,null,null,null,null,null,null,null,null,null,null,0,"",null,null,null,null,null,null,null,"","",null,null,null,null,null,null,null,null,null,"C.5"]
["","",null,null,null,null,null,null,null,null,null,null,null,null,null,null,null,null,null,null,null,null,null,0,"",null,null,null,null,null,null,null,"","",null,null,null,null,null,null,null,null,null,"C.6"]
["","",null,null,null,null,null,null,null,null,null,null,null,null,null,null,null,null,null,null,null,null,null,0,"",null,null,null,null,null,null,null,"","",null,null,null,null,null,null,null,null,null,"C.7"]
["","",null,null,null,null,null,null,null,null,null,null,null,null,null,null,null,null,null,null,null,null,null,{"$f":"IF(B44=\"\",0,IF(B44=\"RAIL INVENTORY AND REVIEW OF EXISTING OPERATIONS\",\"\",IF(B44=\"DEVELOPMENT AND EVALUATION OF DESIGN ALTERNATIVES\",\"\",IF(B44=\"FINAL TRACK DESIGN\",\"\",IF((SUM(D44:W44)=0),0,SUM(D44:W44))))))","v":0},"",null,null,null,null,null,null,null,"","",null,null,null,null,null,4,"FINAL TRACK DESIGN",null,null,"D","DEVELOPMENT AND EVALUATION OF DESIGN ALTERNATIVES",3,"RAIL INVENTORY AND REVIEW OF EXISTING OPERATIONS"]
["","",null,null,null,null,null,null,null,null,null,null,null,null,null,null,null,null,null,null,null,null,null,{"$f":"IF(B45=\"\",0,IF((SUM(D45:W45)=0),0,SUM(D45:W45)))","v":0},"",null,null,null,null,null,null,null,"","",null,null,null,null,null,null,null,null,null,"D.1","Collaboration on Development of Design Alternatives",null,"Review Port facilities on the ground, identify acreage which could accommodate additional functions in support of rail operations"]
["","",null,null,null,null,null,null,null,null,null,null,null,null,null,null,null,null,null,null,null,null,null,0,"",null,null,null,null,null,null,null,"","",null,null,null,null,null,null,null,null,null,"D.2","Qualitative Screening of Design Alternatives",null,"Review XX and XX track charts and track maps for Port"]
["","",null,null,null,null,null,null,null,null,null,null,null,null,null,null,null,null,null,null,null,null,null,0,"",null,null,null,null,null,null,null,"","",null,null,null,null,null,null,null,null,null,"D.3",null,null,"Review any related TSS"]
["","",null,null,null,null,null,null,null,null,null,null,null,null,null,null,null,null,null,null,null,null,null,0,"",null,null,null,null,null,null,null,"","",null,null,null,null,null,null,null,null,null,"D.4",null,null,"Conduct a windshield survey of XX line at Port and document observations"]
["","",null,null,null,null,null,null,null,null,null,null,null,null,null,null,null,null,null,null,null,null,null,0,"",null,null,null,null,null,null,null,"","",null,null,null,null,null,null,null,null,null,"D.5",null,null,"Identify opportunities to locate a future passing siding."]
["","",null,null,null,null,null,null,null,null,null,null,null,null,null,null,null,null,null,null,null,null,null,0,"",null,null,null,null,null,null,null,"","",null,null,null,null,null,null,null,null,null,"D.6"]
["","",null,null,null,null,null,null,null,null,null,null,null,null,null,null,null,null,null,null,null,null,null,0,"",null,null,null,null,null,null,null,"","",null,null,null,null,null,null,null,null,null,"D.7"]
["","",null,null,null,null,null,null,null,null,null,null,null,null,null,null,null,null,null,null,null,null,null,{"$f":"IF(B52=\"\",0,IF(B52=\"BIOTIC RESOURCES\",\"\",IF((SUM(D52:W52)=0),0,SUM(D52:W52))))","v":0},"",null,null,null,null,null,null,null,"","",null,null,null,null,null,null,null,null,null,"E.3","BIOTIC RESOURCES"]
["","",null,null,null,null,null,null,null,null,null,null,null,null,null,null,null,null,null,null,null,null,null,{"$f":"IF(B53=\"\",0,IF((SUM(D53:W53)=0),0,SUM(D53:W53)))","v":0},"",null,null,null,null,null,null,null,"","",null,null,null,null,null,null,null,null,null,"E.3.a","Terrestrial Communities"]
["","",null,null,null,null,null,null,null,null,null,null,null,null,null,null,null,null,null,null,null,null,null,{"$f":"IF(B54=\"\",0,IF((SUM(D54:W54)=0),0,SUM(D54:W54)))","v":0},"",null,null,null,null,null,null,null,"","",null,null,null,null,null,null,null,null,null,"E.3.b","Terrestrial Wildlife"]
["","",null,null,null,null,null,null,null,null,null,null,null,null,null,null,null,null,null,null,null,null,null,{"$f":"IF(B55=\"\",0,IF(B55=\"CAPACITY AND VELOCITY\",\"\",IF((SUM(D55:W55)=0),0,SUM(D55:W55))))","v":0},"",null,null,null,null,null,null,null,"","",null,null,null,null,null,null,null,null,null,"E.3.c","Aquatic Communities and Wildlife",4,"CAPACITY AND VELOCITY"]
["","",null,null,null,null,null,null,null,null,null,null,null,null,null,null,null,null,null,null,null,null,null,{"$f":"IF(B56=\"\",0,IF((SUM(D56:W56)=0),0,SUM(D56:W56)))","v":0},"",null,null,null,null,null,null,null,"","",null,null,null,null,null,null,null,null,null,"E.3.d","Invasive Species",null,"Develop a level of service (LOS) classification for XX"]
["","",null,null,null,null,null,null,null,null,null,null,null,null,null,null,null,null,null,null,null,null,null,0,"",null,null,null,null,null,null,null,"","",null,null,null,null,null,null,null,null,null,"E.3.e",null,null,"Identify theoretical capacity XX based upon tonnage (GMT), GMT per train, and number of trains"]
["","",null,null,null,null,null,null,null,null,null,null,null,null,null,null,null,null,null,null,null,null,null,0,"",null,null,null,null,null,null,null,"","",null,null,null,null,null,null,null,null,null,"E.3.f",null,null,"Compare theoretical capacity with forecast train volumes"]
["","",null,null,null,null,null,null,null,null,null,null,null,null,null,null,null,null,null,null,null,null,null,0,"",null,null,null,null,null,null,null,"","",null,null,null,null,null,null,null,null,null,"E.3.g",null,null,"Observe operations to develop an estimate of current velocity (travel time over mileage) to/from XX"]
["","",null,null,null,null,null,null,null,null,null,null,null,null,null,null,null,null,null,null,null,null,null,0,"",null,null,null,null,null,null,null,"","",null,null,null,null,null,null,null,null,null,"E.3.h",null,null,"Review XX track charts and operating rules, assess for potential changes which could more effectively utilize existing capacity"]
["","",null,null,null,null,null,null,null,null,null,null,null,null,null,null,null,null,null,null,null,null,null,0,"",null,null,null,null,null,null,null,"","",null,null,null,null,null,null,null,null,null,"E.3.i",null,null,"Review related TSS to identify projects which could increase operating speeds and improve velocity"]
["","",null,null,null,null,null,null,null,null,null,null,null,null,null,null,null,null,null,null,null,null,null,{"$f":"IF(B62=\"\",0,IF(B62=\"JURISDICTIONAL ISSUES\",\"\",IF((SUM(D62:W62)=0),0,SUM(D62:W62))))","v":0},"",null,null,null,null,null,null,null,"","",null,null,null,null,null,null,null,null,null,"E.4","JURISDICTIONAL ISSUES"]
["","",null,null,null,null,null,null,null,null,null,null,null,null,null,null,null,null,null,null,null,null,null,{"$f":"IF(B63=\"\",0,IF((SUM(D63:W63)=0),0,SUM(D63:W63)))","v":0},"",null,null,null,null,null,null,null,"","",null,null,null,null,null,null,null,null,null,"E.4.a","Clean Water Act (CWA) Waters of the US"]
["","",null,null,null,null,null,null,null,null,null,null,null,null,null,null,null,null,null,null,null,null,null,{"$f":"IF(B64=\"\",0,IF((SUM(D64:W64)=0),0,SUM(D64:W64)))","v":0},"",null,null,null,null,null,null,null,"","",null,null,null,null,null,null,null,null,null,"E.4.b","CWA Permits"]
["","",null,null,null,null,null,null,null,null,null,null,null,null,null,null,null,null,null,null,null,null,null,{"$f":"IF(B65=\"\",0,IF((SUM(D65:W65)=0),0,SUM(D65:W65)))","v":0},"",null,null,null,null,null,null,null,"","",null,null,null,null,null,null,null,null,null,"E.4.c","Construction Moratoria"]
["","",null,null,null,null,null,null,null,null,null,null,null,null,null,null,null,null,null,null,null,null,null,{"$f":"IF(B66=\"\",0,IF((SUM(D66:W66)=0),0,SUM(D66:W66)))","v":0},"",null,null,null,null,null,null,null,"","",null,null,null,null,null,null,null,null,null,"E.4.d","Rivers and Harbors Act Section 10 Navigable Waters"]
["","",null,null,null,null,null,null,null,null,null,null,null,null,null,null,null,null,null,null,null,null,null,{"$f":"IF(B67=\"\",0,IF(B67=\"RAIL INFRASTRUCTURE IMPROVEMENTS\",\"\",IF((SUM(D67:W67)=0),0,SUM(D67:W67))))","v":0},"",null,null,null,null,null,null,null,"","",null,null,null,null,null,null,null,null,null,"E.4.e","Wetland and Stream Mitigation",5,"RAIL INFRASTRUCTURE IMPROVEMENTS"]
["","",null,null,null,null,null,null,null,null,null,null,null,null,null,null,null,null,null,null,null,null,null,{"$f":"IF(B68=\"\",0,IF((SUM(D68:W68)=0),0,SUM(D68:W68)))","v":0},"",null,null,null,null,null,null,null,"","",null,null,null,null,null,null,null,null,null,"E.4.f","Endangered Species Act Protected Species",null,"Review existing infrastructure"]
["","",null,null,null,null,null,null,null,null,null,null,null,null,null,null,null,null,null,null,null,null,null,0,"",null,null,null,null,null,null,null,"","",null,null,null,null,null,null,null,null,null,"E.4.g","Essential Fish Habitat",null,"Determine potential needs based on growth"]
["","",null,null,null,null,null,null,null,null,null,null,null,null,null,null,null,null,null,null,null,null,null,0,"",null,null,null,null,null,null,null,"","",null,null,null,null,null,null,null,null,null,"E.4.h",null,null,"Suggest potential enhancements to address future needs (X scenarios)"]
["","",null,null,null,null,null,null,null,null,null,null,null,null,null,null,null,null,null,null,null,null,null,0,"",null,null,null,null,null,null,null,"","",null,null,null,null,null,null,null,null,null,"E.4.i",null,null,"Coordinate with NCDOT and others to consider the capacity of XX"]
["","",null,null,null,null,null,null,null,null,null,null,null,null,null,null,null,null,null,null,null,null,null,0,"",null,null,null,null,null,null,null,"","",null,null,null,null,null,null,null,null,null,"E.4.j",null,null,"Develop conceptual recommendations to improve efficiency of operations between XX and YY"]
["","",null,null,null,null,null,null,null,null,null,null,null,null,null,null,null,null,null,null,null,null,null,0,"",null,null,null,null,null,null,null,"","",null,null,null,null,null,null,null,null,null,"E.4.k"]
["","",null,null,null,null,null,null,null,null,null,null,null,null,null,null,null,null,null,null,null,null,null,0,"",null,null,null,null,null,null,null,"","",null,null,null,null,null,null,null,null,null,"E.4.l"]
["","",null,null,null,null,null,null,null,null,null,null,null,null,null,null,null,null,null,null,null,null,null,0,"",null,null,null,null,null,null,null,"","",null,null,null,null,null,null,null,null,null,"E.5","NRTR Document"]
[{"$f":"IF(AG76=0,\"\",AG76)","v":""},"",null,null,null,null,null,null,null,null,null,null,null,null,null,null,null,null,null,null,null,null,null,0,"",null,null,null,null,null,null,null,{"$f":"IF($AA$4=\"Select Task Type\",\"\",IF($AA$4=\"Grade Separation\",AJ76,IF($AA$4=\"CEI\",AL76,IF($AA$4=\"Track Design\",AN76,IF($AA$4=\"Signal Design\",AP76,IF($AA$4=\"Environmental\",AR76,IF($AA$4=\"Planning\",AT76,\"\")))))))","v":""},"",null,null,null,null,null,null,null,null,null,"E.5.a"]
["","",null,null,null,null,null,null,null,null,null,null,null,null,null,null,null,null,null,null,null,null,null,0,{"$f":"IF(SUM(D77:W77)=0,\"\",((SUM(D77:W77))/$X$261))","v":""},null,null,null,null,null,null,null,"","",null,null,null,null,null,null,null,null,null,"E.5.b"]
["","",null,null,null,null,null,null,null,null,null,null,null,null,null,null,null,null,null,null,null,null,null,{"$f":"IF(B78=\"\",0,IF(B78=\"DEVELOP SUGGESTIONS FOR OPERATIONAL AND LOGISTICAL ENHANCEMENTS\",\"\",IF((SUM(D78:W78)=0),0,SUM(D78:W78))))","v":0},"",null,null,null,null,null,null,null,"","",null,null,null,null,null,null,null,null,null,"E.5.c",null,6,"DEVELOP SUGGESTIONS FOR OPERATIONAL AND LOGISTICAL ENHANCEMENTS"]
["","",null,null,null,null,null,null,null,null,null,null,null,null,null,null,null,null,null,null,null,null,null,{"$f":"IF(B79=\"\",0,IF((SUM(D79:W79)=0),0,SUM(D79:W79)))","v":0},"",null,null,null,null,null,null,null,"","",null,null,null,null,null,null,null,null,null,"E.5.d",null,null,"Study current operations and suggest changes that might enhance efficiency or reduce costs"]
["","",null,null,null,null,null,null,null,null,null,null,null,null,null,null,null,null,null,null,null,null,null,0,"",null,null,null,null,null,null,null,"","",null,null,null,null,null,null,null,null,null,"E.5.e",null,null,"Coordinate with NCAG to assure changes are allowable"]
["","",null,null,null,null,null,null,null,null,null,null,null,null,null,null,null,null,null,null,null,null,null,0,"",null,null,null,null,null,null,null,"","",null,null,null,null,null,null,null,null,null,"E.6","Jurisdictional Features Verification",null,"Develop option for development of temporary dray Port to XX"]
["","",null,null,null,null,null,null,null,null,null,null,null,null,null,null,null,null,null,null,null,null,null,0,"",null,null,null,null,null,null,null,"","",null,null,null,null,null,null,null,null,null,"E.6.a",null,null,"Summarize potential changes and corresponding actions"]
["","",null,null,null,null,null,null,null,null,null,null,null,null,null,null,null,null,null,null,null,null,null,0,"",null,null,null,null,null,null,null,"","",null,null,null,null,null,null,null,null,null,"E.6.b"]
["","",null,null,null,null,null,null,null,null,null,null,null,null,null,null,null,null,null,null,null,null,null,0,"",null,null,null,null,null,null,null,"","",null,null,null,null,null,null,null,null,null,"E.6.c"]
["","",null,null,null,null,null,null,null,null,null,null,null,null,null,null,null,null,null,null,null,null,null,0,"",null,null,null,null,null,null,null,"","",null,null,null,null,null,null,null,null,null,"E.6.d"]
["","",null,null,null,null,null,null,null,null,null,null,null,null,null,null,null,null,null,null,null,null,null,0,"",null,null,null,null,null,null,null,"","",null,null,null,null,null,null,null,null,null,"E.6.e"]
["","",null,null,null,null,null,null,null,null,null,null,null,null,null,null,null,null,null,null,null,null,null,{"$f":"IF(B87=\"\",0,IF(B87=\"HUMAN ENVIRONMENT FIELD WORK, ANALYSIS, AND DOCUMENTATION\",\"\",IF((SUM(D87:W87)=0),0,SUM(D87:W87))))","v":0},"",null,null,null,null,null,null,null,"","",null,null,null,null,null,null,null,null,null,"F","HUMAN ENVIRONMENT FIELD WORK, ANALYSIS, AND DOCUMENTATION"]
["","",null,null,null,null,null,null,null,null,null,null,null,null,null,null,null,null,null,null,null,null,null,{"$f":"IF(B88=\"\",0,IF(B88=\"ENVIRONMENTAL SCREENING\",\"\",IF((SUM(D88:W88)=0),0,SUM(D88:W88))))","v":0},"",null,null,null,null,null,null,null,"","",null,null,null,null,null,null,null,null,null,"F.1","Community Impact Assessment",7,"ENVIRONMENTAL SCREENING"]
["","",null,null,null,null,null,null,null,null,null,null,null,null,null,null,null,null,null,null,null,null,null,{"$f":"IF(B89=\"\",0,IF((SUM(D89:W89)=0),0,SUM(D89:W89)))","v":0},"",null,null,null,null,null,null,null,"","",null,null,null,null,null,null,null,null,null,"F.1.a","Identify Community Impact Study Area",null,"Develop GIS map of available data"]
["","",null,null,null,null,null,null,null,null,null,null,null,null,null,null,null,null,null,null,null,null,null,0,"",null,null,null,null,null,null,null,"","",null,null,null,null,null,null,null,null,null,"F.1.b","Community Field Review",null,"Develop list of \"red flag\" issues"]
["","",null,null,null,null,null,null,null,null,null,null,null,null,null,null,null,null,null,null,null,null,null,0,"",null,null,null,null,null,null,null,"","",null,null,null,null,null,null,null,null,null,"F.1.c","Socioeconomic Data"]
["","",null,null,null,null,null,null,null,null,null,null,null,null,null,null,null,null,null,null,null,null,null,0,"",null,null,null,null,null,null,null,"","",null,null,null,null,null,null,null,null,null,"F.1.d","Community Facilities and Services"]
["","",null,null,null,null,null,null,null,null,null,null,null,null,null,null,null,null,null,null,null,null,null,0,"",null,null,null,null,null,null,null,"","",null,null,null,null,null,null,null,null,null,"F.1.e","Local/Regional Land Use and Development Plans"]
["","",null,null,null,null,null,null,null,null,null,null,null,null,null,null,null,null,null,null,null,null,null,0,"",null,null,null,null,null,null,null,"","",null,null,null,null,null,null,null,null,null,"F.1.f","Project Impact Assessment"]
["","",null,null,null,null,null,null,null,null,null,null,null,null,null,null,null,null,null,null,null,null,null,0,"",null,null,null,null,null,null,null,"","",null,null,null,null,null,null,null,null,null,"F.1.g","Community Impact Assessment Report"]
["","",null,null,null,null,null,null,null,null,null,null,null,null,null,null,null,null,null,null,null,null,null,{"$f":"IF(B96=\"\",0,IF(B96=\"ESTIMATE PROJECT SCENARIO BENEFITS\",\"\",IF((SUM(D96:W96)=0),0,SUM(D96:W96))))","v":0},"",null,null,null,null,null,null,null,"","",null,null,null,null,null,null,null,null,null,"F.1.h",null,8,"ESTIMATE PROJECT SCENARIO BENEFITS"]
["","",null,null,null,null,null,null,null,null,null,null,null,null,null,null,null,null,null,null,null,null,null,{"$f":"IF(B97=\"\",0,IF((SUM(D97:W97)=0),0,SUM(D97:W97)))","v":0},"",null,null,null,null,null,null,null,"","",null,null,null,null,null,null,null,null,null,"F.1.i",null,null,"Develop near-term project feasibility criteria and apply to the identified program of projects"]
["","",null,null,null,null,null,null,null,null,null,null,null,null,null,null,null,null,null,null,null,null,null,{"$f":"IF(B98=\"\",0,IF((SUM(D98:W98)=0),0,SUM(D98:W98)))","v":0},"",null,null,null,null,null,null,null,"","",null,null,null,null,null,null,null,null,null,"F.1.j",null,null,"Develop ranked list ordered according to project feasibility criteria"]
["","",null,null,null,null,null,null,null,null,null,null,null,null,null,null,null,null,null,null,null,null,null,{"$f":"IF(B99=\"\",0,IF((SUM(D99:W99)=0),0,SUM(D99:W99)))","v":0},"",null,null,null,null,null,null,null,"","",null,null,null,null,null,null,null,null,null,"F.1.k",null,null,"Perform Benefit Cost Analyses (BCA)  for up to five projects using the OMB BCA methodology"]
["","",null,null,null,null,null,null,null,null,null,null,null,null,null,null,null,null,null,null,null,null,null,{"$f":"IF(B100=\"\",0,IF((SUM(D100:W100)=0),0,SUM(D100:W100)))","v":0},"",null,null,null,null,null,null,null,"","",null,null,null,null,null,null,null,null,null,"F.1.l",null,null,"Revise per NCDOT comments"]
["","",null,null,null,null,null,null,null,null,null,null,null,null,null,null,null,null,null,null,null,null,null,{"$f":"IF(B101=\"\",0,IF(B101=\"INDIRECT AND CUMULATIVE EFFECTS SCREENING\",\"\",IF((SUM(D101:W101)=0),0,SUM(D101:W101))))","v":0},"",null,null,null,null,null,null,null,"","",null,null,null,null,null,null,null,null,null,"F.2","INDIRECT AND CUMULATIVE EFFECTS SCREENING"]
["","",null,null,null,null,null,null,null,null,null,null,null,null,null,null,null,null,null,null,null,null,null,{"$f":"IF(B102=\"\",0,IF((SUM(D102:W102)=0),0,SUM(D102:W102)))","v":0},"",null,null,null,null,null,null,null,"","",null,null,null,null,null,null,null,null,null,"F.2.a","Determine Future Land Use Study Area"]
["","",null,null,null,null,null,null,null,null,null,null,null,null,null,null,null,null,null,null,null,null,null,{"$f":"IF(B103=\"\",0,IF((SUM(D103:W103)=0),0,SUM(D103:W103)))","v":0},"",null,null,null,null,null,null,null,"","",null,null,null,null,null,null,null,null,null,"F.2.b","Determine ICE Study Time Horizon"]
["","",null,null,null,null,null,null,null,null,null,null,null,null,null,null,null,null,null,null,null,null,null,{"$f":"IF(B104=\"\",0,IF((SUM(D104:W104)=0),0,SUM(D104:W104)))","v":0},"",null,null,null,null,null,null,null,"","",null,null,null,null,null,null,null,null,null,"F.2.c","Identify Study Area Conditions and Trends"]
["","",null,null,null,null,null,null,null,null,null,null,null,null,null,null,null,null,null,null,null,null,null,{"$f":"IF(B105=\"\",0,IF((SUM(D105:W105)=0),0,SUM(D105:W105)))","v":0},"",null,null,null,null,null,null,null,"","",null,null,null,null,null,null,null,null,null,"F.2.d","Inventory of Notable Features"]
["","",null,null,null,null,null,null,null,null,null,null,null,null,null,null,null,null,null,null,null,null,null,{"$f":"IF(B106=\"\",0,IF(B106=\"GENERATE DATA NEEDED FOR SCORING IN STI\",\"\",IF((SUM(D106:W106)=0),0,SUM(D106:W106))))","v":0},"",null,null,null,null,null,null,null,"","",null,null,null,null,null,null,null,null,null,"F.2.e","Identify Impact-Causing Activities",9,"GENERATE DATA NEEDED FOR SCORING IN STI"]
["","",null,null,null,null,null,null,null,null,null,null,null,null,null,null,null,null,null,null,null,null,null,{"$f":"IF(B107=\"\",0,IF((SUM(D107:W107)=0),0,SUM(D107:W107)))","v":0},"",null,null,null,null,null,null,null,"","",null,null,null,null,null,null,null,null,null,"F.2.f","Analyze and Evaluate ICE Data",null,"Develop list of alternative solutions"]
["","",null,null,null,null,null,null,null,null,null,null,null,null,null,null,null,null,null,null,null,null,null,0,"",null,null,null,null,null,null,null,"","",null,null,null,null,null,null,null,null,null,"F.2.g","Land Use Development Scenarios",null,"Develop ranking procedure and criteria"]
["","",null,null,null,null,null,null,null,null,null,null,null,null,null,null,null,null,null,null,null,null,null,0,"",null,null,null,null,null,null,null,"","",null,null,null,null,null,null,null,null,null,"F.2.h","Indirect and Cumulative Effects Screening",null,"Adjust per NCDOT comments"]
["","",null,null,null,null,null,null,null,null,null,null,null,null,null,null,null,null,null,null,null,null,null,0,"",null,null,null,null,null,null,null,"","",null,null,null,null,null,null,null,null,null,"F.2.i",null,null,"Apply procedure/criteria to project alternatives"]
["","",null,null,null,null,null,null,null,null,null,null,null,null,null,null,null,null,null,null,null,null,null,0,"",null,null,null,null,null,null,null,"","",null,null,null,null,null,null,null,null,null,"F.2.j",null,null,"Review resulting list"]
["","",null,null,null,null,null,null,null,null,null,null,null,null,null,null,null,null,null,null,null,null,null,0,"",null,null,null,null,null,null,null,"","",null,null,null,null,null,null,null,null,null,"F.2.k",null,null,"Suggest revisions to procedure as needed"]
["","",null,null,null,null,null,null,null,null,null,null,null,null,null,null,null,null,null,null,null,null,null,0,"",null,null,null,null,null,null,null,"","",null,null,null,null,null,null,null,null,null,"F.2.l",null,null,"Revise criteria and redevelop list"]
["","",null,null,null,null,null,null,null,null,null,null,null,null,null,null,null,null,null,null,null,null,null,0,"",null,null,null,null,null,null,null,"","",null,null,null,null,null,null,null,null,null,"F.2.m",null,null,"Suggest project timing"]
["","",null,null,null,null,null,null,null,null,null,null,null,null,null,null,null,null,null,null,null,null,null,{"$f":"IF(B115=\"\",0,IF(B115=\"NOISE AND VIBRATION IMPACT ANALYSIS\",\"\",IF((SUM(D115:W115)=0),0,SUM(D115:W115))))","v":0},"",null,null,null,null,null,null,null,"","",null,null,null,null,null,null,null,null,null,"F.3.","NOISE AND VIBRATION IMPACT ANALYSIS",null,"Suggest project funding source(s)"]
["","",null,null,null,null,null,null,null,null,null,null,null,null,null,null,null,null,null,null,null,null,null,{"$f":"IF(B116=\"\",0,IF((SUM(D116:W116)=0),0,SUM(D116:W116)))","v":0},"",null,null,null,null,null,null,null,"","",null,null,null,null,null,null,null,null,null,"F.3.a","Coordination",null,"Develop opinion of cost for highest 5 ranking projects"]
["","",null,null,null,null,null,null,null,null,null,null,null,null,null,null,null,null,null,null,null,null,null,0,"",null,null,null,null,null,null,null,"","",null,null,null,null,null,null,null,null,null,null,"Initial Meeting with Rail Division",null,"Develop estimate of benefits for highest 5 ranking projects"]
["","",null,null,null,null,null,null,null,null,null,null,null,null,null,null,null,null,null,null,null,null,null,0,"",null,null,null,null,null,null,null,"","",null,null,null,null,null,null,null,null,null,"F.3.b","Data Compilation"]
["","",null,null,null,null,null,null,null,null,null,null,null,null,null,null,null,null,null,null,null,null,null,0,"",null,null,null,null,null,null,null,"","",null,null,null,null,null,null,null,null,null,null,"Project Area Reconnaissance, if applicable"]
["","",null,null,null,null,null,null,null,null,null,null,null,null,null,null,null,null,null,null,null,null,null,0,"",null,null,null,null,null,null,null,"","",null,null,null,null,null,null,null,null,null,null,"Identify noise sensitive land uses"]
["","",null,null,null,null,null,null,null,null,null,null,null,null,null,null,null,null,null,null,null,null,null,0,"",null,null,null,null,null,null,null,"","",null,null,null,null,null,null,null,null,null,null,"Prepare Noise Analysis Work Plan"]
["","",null,null,null,null,null,null,null,null,null,null,null,null,null,null,null,null,null,null,null,null,null,0,"",null,null,null,null,null,null,null,"","",null,null,null,null,null,null,null,null,null,"F.3.c","Selection of Analysis Sites"]
["","",null,null,null,null,null,null,null,null,null,null,null,null,null,null,null,null,null,null,null,null,null,{"$f":"IF(B123=\"\",0,IF(B123=\"IDENTIFY POTENTIAL PROJECTS FOR FEDERAL PROGRAMS\",\"\",IF((SUM(D123:W123)=0),0,SUM(D123:W123))))","v":0},"",null,null,null,null,null,null,null,"","",null,null,null,null,null,null,null,null,null,"F.3.d","Noise Analysis",10,"IDENTIFY POTENTIAL PROJECTS FOR FEDERAL PROGRAMS"]
["","",null,null,null,null,null,null,null,null,null,null,null,null,null,null,null,null,null,null,null,null,null,{"$f":"IF(B124=\"\",0,IF((SUM(D124:W124)=0),0,SUM(D124:W124)))","v":0},"",null,null,null,null,null,null,null,"","",null,null,null,null,null,null,null,null,null,null,"Monitoring / Fieldwork / Processing",null,"Research and prepare a technical memoranda identifying existing federal grant and loan programs for ports and rail improvements"]
["","",null,null,null,null,null,null,null,null,null,null,null,null,null,null,null,null,null,null,null,null,null,0,"",null,null,null,null,null,null,null,"","",null,null,null,null,null,null,null,null,null,null,"Traffic noise analysis",null,"Screen the program of projects for federal grant and loan program eligibility "]
["","",null,null,null,null,null,null,null,null,null,null,null,null,null,null,null,null,null,null,null,null,null,0,"",null,null,null,null,null,null,null,"","",null,null,null,null,null,null,null,null,null,null,"Rail noise analysis",null,"Recommend federal funding resources applicable to candidate projects"]
["","",null,null,null,null,null,null,null,null,null,null,null,null,null,null,null,null,null,null,null,null,null,0,"",null,null,null,null,null,null,null,"","",null,null,null,null,null,null,null,null,null,"F.3.e","Determination of Impacts"]
["","",null,null,null,null,null,null,null,null,null,null,null,null,null,null,null,null,null,null,null,null,null,0,"",null,null,null,null,null,null,null,"","",null,null,null,null,null,null,null,null,null,null,"Traffic noise analysis"]
["","",null,null,null,null,null,null,null,null,null,null,null,null,null,null,null,null,null,null,null,null,null,0,"",null,null,null,null,null,null,null,"","",null,null,null,null,null,null,null,null,null,null,"Rail noise analysis"]
["","",null,null,null,null,null,null,null,null,null,null,null,null,null,null,null,null,null,null,null,null,null,0,"",null,null,null,null,null,null,null,"","",null,null,null,null,null,null,null,null,null,null,"Traffic and rail noise impact assessment"]
["","",null,null,null,null,null,null,null,null,null,null,null,null,null,null,null,null,null,null,null,null,null,0,"",null,null,null,null,null,null,null,"","",null,null,null,null,null,null,null,null,null,"F.3.f","Noise Abatement Considerations"]
["","",null,null,null,null,null,null,null,null,null,null,null,null,null,null,null,null,null,null,null,null,null,{"$f":"IF(B132=\"\",0,IF(B132=\"PREPARE PROGRAM OF PROJECTS\",\"\",IF((SUM(D132:W132)=0),0,SUM(D132:W132))))","v":0},"",null,null,null,null,null,null,null,"","",null,null,null,null,null,null,null,null,null,null,"Noise barrier analysis",11,"PREPARE PROGRAM OF PROJECTS"]
["","",null,null,null,null,null,null,null,null,null,null,null,null,null,null,null,null,null,null,null,null,null,{"$f":"IF(B133=\"\",0,IF((SUM(D133:W133)=0),0,SUM(D133:W133)))","v":0},"",null,null,null,null,null,null,null,"","",null,null,null,null,null,null,null,null,null,null,"QA/Review",null,"Develop ranked list of projects based on benefit data"]
["","",null,null,null,null,null,null,null,null,null,null,null,null,null,null,null,null,null,null,null,null,null,0,"",null,null,null,null,null,null,null,"","",null,null,null,null,null,null,null,null,null,"F.3.g","Vibration Analysis",null,"Develop timing plan "]
["","",null,null,null,null,null,null,null,null,null,null,null,null,null,null,null,null,null,null,null,null,null,0,"",null,null,null,null,null,null,null,"","",null,null,null,null,null,null,null,null,null,"F.3.h","Noise and Vibration Technical Report",null,"Develop list of possible funding sources (limited to most likely source)"]
["","",null,null,null,null,null,null,null,null,null,null,null,null,null,null,null,null,null,null,null,null,null,0,"",null,null,null,null,null,null,null,"","",null,null,null,null,null,null,null,null,null,null,"Draft Report - text, tables, figures",null,"Calculate ranking based on criteria and or weighting data provided by NCDOT"]
["","",null,null,null,null,null,null,null,null,null,null,null,null,null,null,null,null,null,null,null,null,null,0,"",null,null,null,null,null,null,null,"","",null,null,null,null,null,null,null,null,null,null,"Draft Report - Appendices",null,"Submit draft list to NCDOT"]
["","",null,null,null,null,null,null,null,null,null,null,null,null,null,null,null,null,null,null,null,null,null,0,"",null,null,null,null,null,null,null,"","",null,null,null,null,null,null,null,null,null,null,"QA/Review",null,"Revise based on NCDOT comments"]
["","",null,null,null,null,null,null,null,null,null,null,null,null,null,null,null,null,null,null,null,null,null,0,"",null,null,null,null,null,null,null,"","",null,null,null,null,null,null,null,null,null,null,"Prepare Comment/Response Matrix"]
[{"$f":"IF(AG140=0,\"\",AG140)","v":""},"",null,null,null,null,null,null,null,null,null,null,null,null,null,null,null,null,null,null,null,null,null,0,"",null,null,null,null,null,null,null,{"$f":"IF($AA$4=\"Select Task Type\",\"\",IF($AA$4=\"Grade Separation\",AJ140,IF($AA$4=\"CEI\",AL140,IF($AA$4=\"Track Design\",AN140,IF($AA$4=\"Signal Design\",AP140,IF($AA$4=\"Environmental\",AR140,IF($AA$4=\"Planning\",AT140,\"\")))))))","v":""},"",null,null,null,null,null,null,null,null,null,null,"Prepare Final Report (includes QA/Review)"]
["","",null,null,null,null,null,null,null,null,null,null,null,null,null,null,null,null,null,null,null,null,null,0,{"$f":"IF(SUM(D141:W141)=0,\"\",((SUM(D141:W141))/$X$261))","v":""},null,null,null,null,null,null,null,"","",null,null,null,null,null,null,null,null,null,"F.3.i"]
["","",null,null,null,null,null,null,null,null,null,null,null,null,null,null,null,null,null,null,null,null,null,0,"",null,null,null,null,null,null,null,"","",null,null,null,null,null,null,null,null,null,"F.3.j"]
["","",null,null,null,null,null,null,null,null,null,null,null,null,null,null,null,null,null,null,null,null,null,0,"",null,null,null,null,null,null,null,"","",null,null,null,null,null,null,null,null,null,"F.3.k"]
["","",null,null,null,null,null,null,null,null,null,null,null,null,null,null,null,null,null,null,null,null,null,{"$f":"IF(B144=\"\",0,IF(B144=\"STAKEHOLDER INVOLVEMENT\",\"\",IF((SUM(D144:W144)=0),0,SUM(D144:W144))))","v":0},"",null,null,null,null,null,null,null,"","",null,null,null,null,null,null,null,null,null,"F.3.l",null,12,"STAKEHOLDER INVOLVEMENT"]
["","",null,null,null,null,null,null,null,null,null,null,null,null,null,null,null,null,null,null,null,null,null,{"$f":"IF(B145=\"\",0,IF((SUM(D145:W145)=0),0,SUM(D145:W145)))","v":0},"",null,null,null,null,null,null,null,"","",null,null,null,null,null,null,null,null,null,"F.3.m",null,null,"Attend 2 meetings (facilitated by others)"]
["","",null,null,null,null,null,null,null,null,null,null,null,null,null,null,null,null,null,null,null,null,null,{"$f":"IF(B146=\"\",0,IF(B146=\"AIR QUALITY ANALYSIS\",\"\",IF((SUM(D146:W146)=0),0,SUM(D146:W146))))","v":0},"",null,null,null,null,null,null,null,"","",null,null,null,null,null,null,null,null,null,"F.4","AIR QUALITY ANALYSIS",null,"Coordinate with NCDOT to discuss results of stakeholder interaction"]
["","",null,null,null,null,null,null,null,null,null,null,null,null,null,null,null,null,null,null,null,null,null,{"$f":"IF(B147=\"\",0,IF((SUM(D147:W147)=0),0,SUM(D147:W147)))","v":0},"",null,null,null,null,null,null,null,"","",null,null,null,null,null,null,null,null,null,"F.4.a","Data Compilation"]
["","",null,null,null,null,null,null,null,null,null,null,null,null,null,null,null,null,null,null,null,null,null,{"$f":"IF(B148=\"\",0,IF((SUM(D148:W148)=0),0,SUM(D148:W148)))","v":0},"",null,null,null,null,null,null,null,"","",null,null,null,null,null,null,null,null,null,"F.4.b","Attainment Status and Conformity"]
["","",null,null,null,null,null,null,null,null,null,null,null,null,null,null,null,null,null,null,null,null,null,{"$f":"IF(B149=\"\",0,IF((SUM(D149:W149)=0),0,SUM(D149:W149)))","v":0},"",null,null,null,null,null,null,null,"","",null,null,null,null,null,null,null,null,null,"F.4.c","Carbon Monoxide Air Quality Analysis"]
["","",null,null,null,null,null,null,null,null,null,null,null,null,null,null,null,null,null,null,null,null,null,{"$f":"IF(B150=\"\",0,IF((SUM(D150:W150)=0),0,SUM(D150:W150)))","v":0},"",null,null,null,null,null,null,null,"","",null,null,null,null,null,null,null,null,null,"F.4.d","Particulate Matter"]
["","",null,null,null,null,null,null,null,null,null,null,null,null,null,null,null,null,null,null,null,null,null,{"$f":"IF(B151=\"\",0,IF((SUM(D151:W151)=0),0,SUM(D151:W151)))","v":0},"",null,null,null,null,null,null,null,"","",null,null,null,null,null,null,null,null,null,"F.4.e","Mobile Source Air Toxics (MSATs)"]
["","",null,null,null,null,null,null,null,null,null,null,null,null,null,null,null,null,null,null,null,null,null,{"$f":"IF(B152=\"\",0,IF(B152=\"SCHEDULE\",\"\",IF((SUM(D152:W152)=0),0,SUM(D152:W152))))","v":0},"",null,null,null,null,null,null,null,"","",null,null,null,null,null,null,null,null,null,"F.4.f","Greenhouse Gas Emissions (GHGs)",13,"SCHEDULE"]
["","",null,null,null,null,null,null,null,null,null,null,null,null,null,null,null,null,null,null,null,null,null,{"$f":"IF(B153=\"\",0,IF((SUM(D153:W153)=0),0,SUM(D153:W153)))","v":0},"",null,null,null,null,null,null,null,"","",null,null,null,null,null,null,null,null,null,"F.4.g","Air Quality Technical Report",null,"Develop schedule of deliverable and review tasks"]
["","",null,null,null,null,null,null,null,null,null,null,null,null,null,null,null,null,null,null,null,null,null,0,"",null,null,null,null,null,null,null,"","",null,null,null,null,null,null,null,null,null,"F.4.h",null,null,"Update schedule as needed"]
["","",null,null,null,null,null,null,null,null,null,null,null,null,null,null,null,null,null,null,null,null,null,0,"",null,null,null,null,null,null,null,"","",null,null,null,null,null,null,null,null,null,"F.4.i"]
["","",null,null,null,null,null,null,null,null,null,null,null,null,null,null,null,null,null,null,null,null,null,0,"",null,null,null,null,null,null,null,"","",null,null,null,null,null,null,null,null,null,"F.4.j"]
["","",null,null,null,null,null,null,null,null,null,null,null,null,null,null,null,null,null,null,null,null,null,0,"",null,null,null,null,null,null,null,"","",null,null,null,null,null,null,null,null,null,"F.4.k"]
["","",null,null,null,null,null,null,null,null,null,null,null,null,null,null,null,null,null,null,null,null,null,0,"",null,null,null,null,null,null,null,"","",null,null,null,null,null,null,null,null,null,"F.4.l"]
["","",null,null,null,null,null,null,null,null,null,null,null,null,null,null,null,null,null,null,null,null,null,{"$f":"IF(B159=\"\",0,IF(B159=\"CULTURAL RESOURCES ANALYSIS\",\"\",IF((SUM(D159:W159)=0),0,SUM(D159:W159))))","v":0},"",null,null,null,null,null,null,null,"","",null,null,null,null,null,null,null,null,null,"F.5","CULTURAL RESOURCES ANALYSIS"]
["","",null,null,null,null,null,null,null,null,null,null,null,null,null,null,null,null,null,null,null,null,null,{"$f":"IF(B160=\"\",0,IF(B160=\"REPORT\",\"\",IF((SUM(D160:W160)=0),0,SUM(D160:W160))))","v":0},"",null,null,null,null,null,null,null,"","",null,null,null,null,null,null,null,null,null,"F.5.a","Phase 1 Historic Architectural Analysis",14,"REPORT"]
["","",null,null,null,null,null,null,null,null,null,null,null,null,null,null,null,null,null,null,null,null,null,{"$f":"IF(B161=\"\",0,IF(B161=\"ARCHAEOLOGICAL ANALYSIS\",\"\",IF((SUM(D161:W161)=0),0,SUM(D161:W161))))","v":0},"",null,null,null,null,null,null,null,"","",null,null,null,null,null,null,null,null,null,"F.5.b","ARCHAEOLOGICAL ANALYSIS",null,"Prepare draft report (electronic version only) for NCDOT review"]
["","",null,null,null,null,null,null,null,null,null,null,null,null,null,null,null,null,null,null,null,null,null,{"$f":"IF(B162=\"\",0,IF((SUM(D162:W162)=0),0,SUM(D162:W162)))","v":0},"",null,null,null,null,null,null,null,"","",null,null,null,null,null,null,null,null,null,null,"Conduct Background Research of information from NC OSA/ SHPO",null,"Revise per NCDOT comments"]
["","",null,null,null,null,null,null,null,null,null,null,null,null,null,null,null,null,null,null,null,null,null,0,"",null,null,null,null,null,null,null,"","",null,null,null,null,null,null,null,null,null,null,"Collect previously recorded sites and surveys in study area",null,"Prepare final report"]
["","",null,null,null,null,null,null,null,null,null,null,null,null,null,null,null,null,null,null,null,null,null,0,"",null,null,null,null,null,null,null,"","",null,null,null,null,null,null,null,null,null,null,"Prepare Archaeological Overview Report"]
["","",null,null,null,null,null,null,null,null,null,null,null,null,null,null,null,null,null,null,null,null,null,0,"",null,null,null,null,null,null,null,"","",null,null,null,null,null,null,null,null,null,null," known archaeological resources in alternatives or study area"]
["","",null,null,null,null,null,null,null,null,null,null,null,null,null,null,null,null,null,null,null,null,null,0,"",null,null,null,null,null,null,null,"","",null,null,null,null,null,null,null,null,null,null," sites of value for reasons other than recoverable information"]
["","",null,null,null,null,null,null,null,null,null,null,null,null,null,null,null,null,null,null,null,null,null,0,"",null,null,null,null,null,null,null,"","",null,null,null,null,null,null,null,null,null,null," assessment of potential for archaeological sites in areas not previously surveyed"]
["","",null,null,null,null,null,null,null,null,null,null,null,null,null,null,null,null,null,null,null,null,null,0,"",null,null,null,null,null,null,null,"","",null,null,null,null,null,null,null,null,null,null," recommendations regarding need for archaeological survey"]
["","",null,null,null,null,null,null,null,null,null,null,null,null,null,null,null,null,null,null,null,null,null,{"$f":"IF(B169=\"\",0,IF(B169=\"PROJECT COORDINATION\",\"\",IF((SUM(D169:W169)=0),0,SUM(D169:W169))))","v":0},"",null,null,null,null,null,null,null,"","",null,null,null,null,null,null,null,null,null,null,"Graphics showing alternatives, previously studied areas, and known sites",15,"PROJECT COORDINATION"]
["","",null,null,null,null,null,null,null,null,null,null,null,null,null,null,null,null,null,null,null,null,null,{"$f":"IF(B170=\"\",0,IF((SUM(D170:W170)=0),0,SUM(D170:W170)))","v":0},"",null,null,null,null,null,null,null,"","",null,null,null,null,null,null,null,null,null,null,"Submit Draft Archaeological Overview Report",null,"Coordinate internally with staff and subconsultants"]
["","",null,null,null,null,null,null,null,null,null,null,null,null,null,null,null,null,null,null,null,null,null,0,"",null,null,null,null,null,null,null,"","",null,null,null,null,null,null,null,null,null,null,"Address NCDOT comments on Draft Archaeological Overview Report"]
["","",null,null,null,null,null,null,null,null,null,null,null,null,null,null,null,null,null,null,null,null,null,0,"",null,null,null,null,null,null,null,"","",null,null,null,null,null,null,null,null,null,null,"Submit Final Archaeological Overview Report"]
["","",null,null,null,null,null,null,null,null,null,null,null,null,null,null,null,null,null,null,null,null,null,0,"",null,null,null,null,null,null,null,"","",null,null,null,null,null,null,null,null,null,null,"Meeting attendance and coordination"]
["","",null,null,null,null,null,null,null,null,null,null,null,null,null,null,null,null,null,null,null,null,null,0,"",null,null,null,null,null,null,null,"","",null,null,null,null,null,null,null,null,null,"F.5.c"]
["","",null,null,null,null,null,null,null,null,null,null,null,null,null,null,null,null,null,null,null,null,null,0,"",null,null,null,null,null,null,null,"","",null,null,null,null,null,null,null,null,null,"F.5.d"]
["","",null,null,null,null,null,null,null,null,null,null,null,null,null,null,null,null,null,null,null,null,null,{"$f":"IF(B176=\"\",0,IF(B176=\"TRUCK ALTERNATIVE ROUTE ANALYSIS\",\"\",IF((SUM(D176:W176)=0),0,SUM(D176:W176))))","v":0},"",null,null,null,null,null,null,null,"","",null,null,null,null,null,null,null,null,null,"F.5.e",null,16,"TRUCK ALTERNATIVE ROUTE ANALYSIS"]
["","",null,null,null,null,null,null,null,null,null,null,null,null,null,null,null,null,null,null,null,null,null,{"$f":"IF(B177=\"\",0,IF((SUM(D177:W177)=0),0,SUM(D177:W177)))","v":0},"",null,null,null,null,null,null,null,"","",null,null,null,null,null,null,null,null,null,"F.5.f",null,null,"Truck Alternative Route Analysis (XX to the Port)"]
["","",null,null,null,null,null,null,null,null,null,null,null,null,null,null,null,null,null,null,null,null,null,{"$f":"IF(B178=\"\",0,IF((SUM(D178:W178)=0),0,SUM(D178:W178)))","v":0},"",null,null,null,null,null,null,null,"","",null,null,null,null,null,null,null,null,null,"F.5.g"]
["","",null,null,null,null,null,null,null,null,null,null,null,null,null,null,null,null,null,null,null,null,null,{"$f":"IF(B179=\"\",0,IF(B179=\"OTHER PHYSICAL FEATURES ANALYSIS\",\"\",IF((SUM(D179:W179)=0),0,SUM(D179:W179))))","v":0},"",null,null,null,null,null,null,null,"","",null,null,null,null,null,null,null,null,null,"G","OTHER PHYSICAL FEATURES ANALYSIS"]
["","",null,null,null,null,null,null,null,null,null,null,null,null,null,null,null,null,null,null,null,null,null,{"$f":"IF(B180=\"\",0,IF((SUM(D180:W180)=0),0,SUM(D180:W180)))","v":0},"",null,null,null,null,null,null,null,"","",null,null,null,null,null,null,null,null,null,"G.1","Identify Potential Floodplain and Floodway Impacts"]
["","",null,null,null,null,null,null,null,null,null,null,null,null,null,null,null,null,null,null,null,null,null,{"$f":"IF(B181=\"\",0,IF((SUM(D181:W181)=0),0,SUM(D181:W181)))","v":0},"",null,null,null,null,null,null,null,"","",null,null,null,null,null,null,null,null,null,"G.2","Farmland Assessment"]
["","",null,null,null,null,null,null,null,null,null,null,null,null,null,null,null,null,null,null,null,null,null,{"$f":"IF(B182=\"\",0,IF(B182=\"FEASIBILITY STUDY\",\"\",IF((SUM(D182:W182)=0),0,SUM(D182:W182))))","v":0},"",null,null,null,null,null,null,null,"","",null,null,null,null,null,null,null,null,null,"G.3","Hazardous Materials Assessment",17,"FEASIBILITY STUDY"]
["","",null,null,null,null,null,null,null,null,null,null,null,null,null,null,null,null,null,null,null,null,null,{"$f":"IF(B183=\"\",0,IF((SUM(D183:W183)=0),0,SUM(D183:W183)))","v":0},"",null,null,null,null,null,null,null,"","",null,null,null,null,null,null,null,null,null,"G.4","Visual Impact Analysis"]
["","",null,null,null,null,null,null,null,null,null,null,null,null,null,null,null,null,null,null,null,null,null,0,"",null,null,null,null,null,null,null,"","",null,null,null,null,null,null,null,null,null,"G.5","Identify Potential Public Utility Impacts"]
["","",null,null,null,null,null,null,null,null,null,null,null,null,null,null,null,null,null,null,null,null,null,0,"",null,null,null,null,null,null,null,"","",null,null,null,null,null,null,null,null,null,"G.6"]
["","",null,null,null,null,null,null,null,null,null,null,null,null,null,null,null,null,null,null,null,null,null,0,"",null,null,null,null,null,null,null,"","",null,null,null,null,null,null,null,null,null,"G.7"]
["","",null,null,null,null,null,null,null,null,null,null,null,null,null,null,null,null,null,null,null,null,null,0,"",null,null,null,null,null,null,null,"","",null,null,null,null,null,null,null,null,null,"G.8"]
["","",null,null,null,null,null,null,null,null,null,null,null,null,null,null,null,null,null,null,null,null,null,0,"",null,null,null,null,null,null,null,"","",null,null,null,null,null,null,null,null,null,"G.9"]
["","",null,null,null,null,null,null,null,null,null,null,null,null,null,null,null,null,null,null,null,null,null,0,"",null,null,null,null,null,null,null,"","",null,null,null,null,null,null,null,null,null,"G.10"]
["","",null,null,null,null,null,null,null,null,null,null,null,null,null,null,null,null,null,null,null,null,null,{"$f":"IF(B190=\"\",0,IF(B190=\"SECTION 4(F) AND SECTION 6(F)\",\"\",IF((SUM(D190:W190)=0),0,SUM(D190:W190))))","v":0},"",null,null,null,null,null,null,null,"","",null,null,null,null,null,null,null,null,null,"H","SECTION 4(F) AND SECTION 6(F)"]
["","",null,null,null,null,null,null,null,null,null,null,null,null,null,null,null,null,null,null,null,null,null,{"$f":"IF(B191=\"\",0,IF((SUM(D191:W191)=0),0,SUM(D191:W191)))","v":0},"",null,null,null,null,null,null,null,"","",null,null,null,null,null,null,null,null,null,"H.1"]
["","",null,null,null,null,null,null,null,null,null,null,null,null,null,null,null,null,null,null,null,null,null,{"$f":"IF(B192=\"\",0,IF((SUM(D192:W192)=0),0,SUM(D192:W192)))","v":0},"",null,null,null,null,null,null,null,"","",null,null,null,null,null,null,null,null,null,"H.2"]
["","",null,null,null,null,null,null,null,null,null,null,null,null,null,null,null,null,null,null,null,null,null,{"$f":"IF(B193=\"\",0,IF((SUM(D193:W193)=0),0,SUM(D193:W193)))","v":0},"",null,null,null,null,null,null,null,"","",null,null,null,null,null,null,null,null,null,"H.3"]
["","",null,null,null,null,null,null,null,null,null,null,null,null,null,null,null,null,null,null,null,null,null,{"$f":"IF(B194=\"\",0,IF((SUM(D194:W194)=0),0,SUM(D194:W194)))","v":0},"",null,null,null,null,null,null,null,"","",null,null,null,null,null,null,null,null,null,"H.4"]
["","",null,null,null,null,null,null,null,null,null,null,null,null,null,null,null,null,null,null,null,null,null,{"$f":"IF(B195=\"\",0,IF((SUM(D195:W195)=0),0,SUM(D195:W195)))","v":0},"",null,null,null,null,null,null,null,"","",null,null,null,null,null,null,null,null,null,"H.5"]
["","",null,null,null,null,null,null,null,null,null,null,null,null,null,null,null,null,null,null,null,null,null,{"$f":"IF(B196=\"\",0,IF(B196=\"DRAFT ENVIRONMENTAL DOCUMENT\",\"\",IF((SUM(D196:W196)=0),0,SUM(D196:W196))))","v":0},"",null,null,null,null,null,null,null,"","",null,null,null,null,null,null,null,null,null,"I","DRAFT ENVIRONMENTAL DOCUMENT"]
["","",null,null,null,null,null,null,null,null,null,null,null,null,null,null,null,null,null,null,null,null,null,{"$f":"IF(B197=\"\",0,IF((SUM(D197:W197)=0),0,SUM(D197:W197)))","v":0},"",null,null,null,null,null,null,null,"","",null,null,null,null,null,null,null,null,null,"I.1","Purpose and Need"]
["","",null,null,null,null,null,null,null,null,null,null,null,null,null,null,null,null,null,null,null,null,null,0,"",null,null,null,null,null,null,null,"","",null,null,null,null,null,null,null,null,null,"I.2","Alternatives Considered"]
["","",null,null,null,null,null,null,null,null,null,null,null,null,null,null,null,null,null,null,null,null,null,0,"",null,null,null,null,null,null,null,"","",null,null,null,null,null,null,null,null,null,"I.3","Human Environment"]
["","",null,null,null,null,null,null,null,null,null,null,null,null,null,null,null,null,null,null,null,null,null,0,"",null,null,null,null,null,null,null,"","",null,null,null,null,null,null,null,null,null,"I.4","Physical Environment"]
["","",null,null,null,null,null,null,null,null,null,null,null,null,null,null,null,null,null,null,null,null,null,0,"",null,null,null,null,null,null,null,"","",null,null,null,null,null,null,null,null,null,"I.5","Cultural Resources"]
["","",null,null,null,null,null,null,null,null,null,null,null,null,null,null,null,null,null,null,null,null,null,0,"",null,null,null,null,null,null,null,"","",null,null,null,null,null,null,null,null,null,"I.6","Natural Resources"]
["","",null,null,null,null,null,null,null,null,null,null,null,null,null,null,null,null,null,null,null,null,null,0,"",null,null,null,null,null,null,null,"","",null,null,null,null,null,null,null,null,null,"I.7","Environmental Impacts"]
[{"$f":"IF(AG204=0,\"\",AG204)","v":""},"",null,null,null,null,null,null,null,null,null,null,null,null,null,null,null,null,null,null,null,null,null,0,"",null,null,null,null,null,null,null,{"$f":"IF($AA$4=\"Select Task Type\",\"\",IF($AA$4=\"Grade Separation\",AJ204,IF($AA$4=\"CEI\",AL204,IF($AA$4=\"Track Design\",AN204,IF($AA$4=\"Signal Design\",AP204,IF($AA$4=\"Environmental\",AR204,IF($AA$4=\"Planning\",AT204,\"\")))))))","v":""},"",null,null,null,null,null,null,null,null,null,"I.8","Indirect and Cumulative Effects"]
["","",null,null,null,null,null,null,null,null,null,null,null,null,null,null,null,null,null,null,null,null,null,0,{"$f":"IF(SUM(D205:W205)=0,\"\",((SUM(D205:W205))/$X$261))","v":""},null,null,null,null,null,null,null,"","",null,null,null,null,null,null,null,null,null,"I.9","Other Impact Considerations"]
["","",null,null,null,null,null,null,null,null,null,null,null,null,null,null,null,null,null,null,null,null,null,0,"",null,null,null,null,null,null,null,"","",null,null,null,null,null,null,null,null,null,"I.10","Public Involvement ad Agency Coordination"]
["","",null,null,null,null,null,null,null,null,null,null,null,null,null,null,null,null,null,null,null,null,null,0,"",null,null,null,null,null,null,null,"","",null,null,null,null,null,null,null,null,null,"I.11","Compile Draft EA & Final EA"]
["","",null,null,null,null,null,null,null,null,null,null,null,null,null,null,null,null,null,null,null,null,null,0,"",null,null,null,null,null,null,null,"","",null,null,null,null,null,null,null,null,null,"I.12","Review and Distribution of EA"]
["","",null,null,null,null,null,null,null,null,null,null,null,null,null,null,null,null,null,null,null,null,null,0,"",null,null,null,null,null,null,null,"","",null,null,null,null,null,null,null,null,null,"I.13"]
["","",null,null,null,null,null,null,null,null,null,null,null,null,null,null,null,null,null,null,null,null,null,0,"",null,null,null,null,null,null,null,"","",null,null,null,null,null,null,null,null,null,"I.14"]
["","",null,null,null,null,null,null,null,null,null,null,null,null,null,null,null,null,null,null,null,null,null,0,"",null,null,null,null,null,null,null,"","",null,null,null,null,null,null,null,null,null,"I.15"]
["","",null,null,null,null,null,null,null,null,null,null,null,null,null,null,null,null,null,null,null,null,null,0,"",null,null,null,null,null,null,null,"","",null,null,null,null,null,null,null,null,null,"I.16"]
["","",null,null,null,null,null,null,null,null,null,null,null,null,null,null,null,null,null,null,null,null,null,0,"",null,null,null,null,null,null,null,"","",null,null,null,null,null,null,null,null,null,"I.17"]
["","",null,null,null,null,null,null,null,null,null,null,null,null,null,null,null,null,null,null,null,null,null,{"$f":"IF(B214=\"\",0,IF(B214=\"FINAL ENVIRONMENTAL DOCUMENT\",\"\",IF((SUM(D214:W214)=0),0,SUM(D214:W214))))","v":0},"",null,null,null,null,null,null,null,"","",null,null,null,null,null,null,null,null,null,"J","FINAL ENVIRONMENTAL DOCUMENT"]
["","",null,null,null,null,null,null,null,null,null,null,null,null,null,null,null,null,null,null,null,null,null,{"$f":"IF(B215=\"\",0,IF((SUM(D215:W215)=0),0,SUM(D215:W215)))","v":0},"",null,null,null,null,null,null,null,"","",null,null,null,null,null,null,null,null,null,"J.1","Compile FONSI"]
["","",null,null,null,null,null,null,null,null,null,null,null,null,null,null,null,null,null,null,null,null,null,0,"",null,null,null,null,null,null,null,"","",null,null,null,null,null,null,null,null,null,"J.2","Alternative Selection"]
["","",null,null,null,null,null,null,null,null,null,null,null,null,null,null,null,null,null,null,null,null,null,0,"",null,null,null,null,null,null,null,"","",null,null,null,null,null,null,null,null,null,"J.3","Prepare Draft & Final Finding of No Significant Impact (FONSI)"]
["","",null,null,null,null,null,null,null,null,null,null,null,null,null,null,null,null,null,null,null,null,null,0,"",null,null,null,null,null,null,null,"","",null,null,null,null,null,null,null,null,null,"J.4"]
["","",null,null,null,null,null,null,null,null,null,null,null,null,null,null,null,null,null,null,null,null,null,0,"",null,null,null,null,null,null,null,"","",null,null,null,null,null,null,null,null,null,"J.5"]
["","",null,null,null,null,null,null,null,null,null,null,null,null,null,null,null,null,null,null,null,null,null,0,"",null,null,null,null,null,null,null,"","",null,null,null,null,null,null,null,null,null,"J.6"]
["","",null,null,null,null,null,null,null,null,null,null,null,null,null,null,null,null,null,null,null,null,null,0,"",null,null,null,null,null,null,null,"","",null,null,null,null,null,null,null,null,null,"J.7"]
["","",null,null,null,null,null,null,null,null,null,null,null,null,null,null,null,null,null,null,null,null,null,0,"",null,null,null,null,null,null,null,"","",null,null,null,null,null,null,null,null,null,"J.8"]
["","",null,null,null,null,null,null,null,null,null,null,null,null,null,null,null,null,null,null,null,null,null,{"$f":"IF(B223=\"\",0,IF(B223=\"PUBLIC INVOLVEMENT\",\"\",IF((SUM(D223:W223)=0),0,SUM(D223:W223))))","v":0},"",null,null,null,null,null,null,null,"","",null,null,null,null,null,null,null,null,null,"K","PUBLIC INVOLVEMENT"]
["","",null,null,null,null,null,null,null,null,null,null,null,null,null,null,null,null,null,null,null,null,null,{"$f":"IF(B224=\"\",0,IF((SUM(D224:W224)=0),0,SUM(D224:W224)))","v":0},"",null,null,null,null,null,null,null,"","",null,null,null,null,null,null,null,null,null,"K.1","Informal Stakeholder Coordination"]
["","",null,null,null,null,null,null,null,null,null,null,null,null,null,null,null,null,null,null,null,null,null,0,"",null,null,null,null,null,null,null,"","",null,null,null,null,null,null,null,null,null,"K.2","Public Information Meeting"]
["","",null,null,null,null,null,null,null,null,null,null,null,null,null,null,null,null,null,null,null,null,null,0,"",null,null,null,null,null,null,null,"","",null,null,null,null,null,null,null,null,null,"K.3","Public Hearing"]
["","",null,null,null,null,null,null,null,null,null,null,null,null,null,null,null,null,null,null,null,null,null,0,"",null,null,null,null,null,null,null,"","",null,null,null,null,null,null,null,null,null,"K.4","Local Offical Information Meeting"]
["","",null,null,null,null,null,null,null,null,null,null,null,null,null,null,null,null,null,null,null,null,null,0,"",null,null,null,null,null,null,null,"","",null,null,null,null,null,null,null,null,null,"K.5","Mailer"]
["","",null,null,null,null,null,null,null,null,null,null,null,null,null,null,null,null,null,null,null,null,null,0,"",null,null,null,null,null,null,null,"","",null,null,null,null,null,null,null,null,null,"K.6","Meeting Maps"]
["","",null,null,null,null,null,null,null,null,null,null,null,null,null,null,null,null,null,null,null,null,null,0,"",null,null,null,null,null,null,null,"","",null,null,null,null,null,null,null,null,null,"K.7","Meeting Displays"]
["","",null,null,null,null,null,null,null,null,null,null,null,null,null,null,null,null,null,null,null,null,null,0,"",null,null,null,null,null,null,null,"","",null,null,null,null,null,null,null,null,null,"K.8"]
["","",null,null,null,null,null,null,null,null,null,null,null,null,null,null,null,null,null,null,null,null,null,0,"",null,null,null,null,null,null,null,"","",null,null,null,null,null,null,null,null,null,"K.9"]
["","",null,null,null,null,null,null,null,null,null,null,null,null,null,null,null,null,null,null,null,null,null,0,"",null,null,null,null,null,null,null,"","",null,null,null,null,null,null,null,null,null,"K.10"]
["","",null,null,null,null,null,null,null,null,null,null,null,null,null,null,null,null,null,null,null,null,null,0,"",null,null,null,null,null,null,null,"","",null,null,null,null,null,null,null,null,null,"K.11"]
["","",null,null,null,null,null,null,null,null,null,null,null,null,null,null,null,null,null,null,null,null,null,0,"",null,null,null,null,null,null,null,"","",null,null,null,null,null,null,null,null,null,"K.12"]
["","",null,null,null,null,null,null,null,null,null,null,null,null,null,null,null,null,null,null,null,null,null,{"$f":"IF(B236=\"\",0,IF(B236=\"PROJECT COORDINATION AND MANAGEMENT\",\"\",IF((SUM(D236:W236)=0),0,SUM(D236:W236))))","v":0},"",null,null,null,null,null,null,null,"","",null,null,null,null,null,null,null,null,null,"L","PROJECT COORDINATION AND MANAGEMENT"]
["","",null,null,null,null,null,null,null,null,null,null,null,null,null,null,null,null,null,null,null,null,null,{"$f":"IF(B237=\"\",0,IF((SUM(D237:W237)=0),0,SUM(D237:W237)))","v":0},"",null,null,null,null,null,null,null,"","",null,null,null,null,null,null,null,null,null,"L.1","Project Schedule"]
["","",null,null,null,null,null,null,null,null,null,null,null,null,null,null,null,null,null,null,null,null,null,0,"",null,null,null,null,null,null,null,"","",null,null,null,null,null,null,null,null,null,"L.2","Coordination with NCDOT"]
["","",null,null,null,null,null,null,null,null,null,null,null,null,null,null,null,null,null,null,null,null,null,0,"",null,null,null,null,null,null,null,"","",null,null,null,null,null,null,null,null,null,"L.3","General Coordination"]
["","",null,null,null,null,null,null,null,null,null,null,null,null,null,null,null,null,null,null,null,null,null,0,"",null,null,null,null,null,null,null,"","",null,null,null,null,null,null,null,null,null,"L.4"]
["","",null,null,null,null,null,null,null,null,null,null,null,null,null,null,null,null,null,null,null,null,null,0,"",null,null,null,null,null,null,null,"","",null,null,null,null,null,null,null,null,null,"L.5"]
["","",null,null,null,null,null,null,null,null,null,null,null,null,null,null,null,null,null,null,null,null,null,0,"",null,null,null,null,null,null,null,"","",null,null,null,null,null,null,null,null,null,"L.6"]
["","",null,null,null,null,null,null,null,null,null,null,null,null,null,null,null,null,null,null,null,null,null,0,"",null,null,null,null,null,null,null,"","",null,null,null,null,null,null,null,null,null,"L.7"]
["","",null,null,null,null,null,null,null,null,null,null,null,null,null,null,null,null,null,null,null,null,null,0,"",null,null,null,null,null,null,null,"","",null,null,null,null,null,null,null,null,null,"L.8"]
["","",null,null,null,null,null,null,null,null,null,null,null,null,null,null,null,null,null,null,null,null,null,0,"",null,null,null,null,null,null,null,"",""]
["","",null,null,null,null,null,null,null,null,null,null,null,null,null,null,null,null,null,null,null,null,null,0,"",null,null,null,null,null,null,null,"",""]
["","",null,null,null,null,null,null,null,null,null,null,null,null,null,null,null,null,null,null,null,null,null,0,"",null,null,null,null,null,null,null,"",""]
["","",null,null,null,null,null,null,null,null,null,null,null,null,null,null,null,null,null,null,null,null,null,0,"",null,null,null,null,null,null,null,"",""]
["","",null,null,null,null,null,null,null,null,null,null,null,null,null,null,null,null,null,null,null,null,null,0,"",null,null,null,null,null,null,null,"",""]
["","",null,null,null,null,null,null,null,null,null,null,null,null,null,null,null,null,null,null,null,null,null,0,"",null,null,null,null,null,null,null,"",""]
["","",null,null,null,null,null,null,null,null,null,null,null,null,null,null,null,null,null,null,null,null,null,0,"",null,null,null,null,null,null,null,"",""]
["","",null,null,null,null,null,null,null,null,null,null,null,null,null,null,null,null,null,null,null,null,null,0,"",null,null,null,null,null,null,null,"",""]
["","",null,null,null,null,null,null,null,null,null,null,null,null,null,null,null,null,null,null,null,null,null,0,"",null,null,null,null,null,null,null,"",""]
["","",null,null,null,null,null,null,null,null,null,null,null,null,null,null,null,null,null,null,null,null,null,0,"",null,null,null,null,null,null,null,"",""]
["","",null,null,null,null,null,null,null,null,null,null,null,null,null,null,null,null,null,null,null,null,null,0,"",null,null,null,null,null,null,null,"",""]
["","",null,null,null,null,null,null,null,null,null,null,null,null,null,null,null,null,null,null,null,null,null,0,"",null,null,null,null,null,null,null,"",""]
["","",null,null,null,null,null,null,null,null,null,null,null,null,null,null,null,null,null,null,null,null,null,0,"",null,null,null,null,null,null,null,"",""]
["","",null,null,null,null,null,null,null,null,null,null,null,null,null,null,null,null,null,null,null,null,null,0,"",null,null,null,null,null,null,null,"",""]
["","",null,null,null,null,null,null,null,null,null,null,null,null,null,null,null,null,null,null,null,null,null,0,{"$f":"IF(SUM(D259:W259)=0,\"\",((SUM(D259:W259))/$X$261))","v":""},null,null,null,null,null,null,null,"",""]
["","",null,null,null,null,null,null,null,null,null,null,null,null,null,null,null,null,null,null,null,null,null,0,{"$f":"IF(SUM(D260:W260)=0,\"\",((SUM(D260:W260))/$X$261))","v":""},null,null,null,null,null,null,null,"",""]
[null,"TOTAL WORKHOURS/CATEGORY:",null,{"$f":"SUM(D11:D260)","v":0},0,0,0,0,0,0,0,0,0,0,0,0,0,0,0,0,0,0,0,{"$f":"SUM(D261:W261)","v":0},{"$f":"SUM(Y11:Y260)","v":0},{"$f":"SUM(Z11:Z260)","v":0}]
[null,"TOTAL WORKDAYS/CATEGORY:",null,{"$f":"D261/8","v":0},{"$f":"E261/8","v":0},0,0,0,0,0,0,0,0,0,0,0,0,0,0,0,0,0,0]
[null,"HOURLY SALARY RATE:",null,{"$f":"'PEF CLASSIFICATION SHEET'!E1255","v":0},{"$f":"'PEF CLASSIFICATION SHEET'!E1256","v":0},{"$f":"'PEF CLASSIFICATION SHEET'!E1257","v":0},{"$f":"'PEF CLASSIFICATION SHEET'!E1258","v":0},{"$f":"'PEF CLASSIFICATION SHEET'!E1259","v":0},{"$f":"'PEF CLASSIFICATION SHEET'!E1260","v":0},{"$f":"'PEF CLASSIFICATION SHEET'!E1261","v":0},{"$f":"'PEF CLASSIFICATION SHEET'!E1262","v":0},{"$f":"'PEF CLASSIFICATION SHEET'!E1263","v":0},{"$f":"'PEF CLASSIFICATION SHEET'!E1264","v":0},{"$f":"'PEF CLASSIFICATION SHEET'!E1265","v":0},{"$f":"'PEF CLASSIFICATION SHEET'!E1266","v":0},{"$f":"'PEF CLASSIFICATION SHEET'!E1267","v":0},{"$f":"'PEF CLASSIFICATION SHEET'!E1268","v":0},{"$f":"'PEF CLASSIFICATION SHEET'!E1269","v":0},{"$f":"'PEF CLASSIFICATION SHEET'!E1270","v":0},{"$f":"'PEF CLASSIFICATION SHEET'!E1271","v":0},{"$f":"'PEF CLASSIFICATION SHEET'!E1272","v":0},{"$f":"'PEF CLASSIFICATION SHEET'!E1273","v":0},{"$f":"'PEF CLASSIFICATION SHEET'!E1274","v":0}]
[null,"RATES PER DAY:",null,{"$f":"D263*8","v":0},0,0,0,0,0,0,0,0,0,0,0,0,0,0,0,0,0,0,0]
[null,"PAYROLL BURDEN:",null,{"$f":"SUM(D261*D263)","v":0},{"$f":"SUM(E261*E263)","v":0},0,0,0,0,0,0,0,0,0,0,0,0,0,0,0,0,0,0]
[null,"TOTAL WORKDAYS:",null,{"$f":"SUM(D262:W262)","v":0}]
[null,"TOTAL PAYROLL BURDEN:",null,{"$f":"SUM(D265:W265)","v":0}]
[null,"AVERAGE COST PER HOUR:",null,{"$f":"SUM(D267/(D266*8))","v":{"$error":"#DIV/0!"}}]
[null,"GENERAL OVERHEAD:",{"$f":"RAIL.SUB8_CONSULTANT_OVERHEAD","v":0},{"$f":"SUM(D267*C269)","v":0}]
[null,"SUBTOTAL:",null,{"$f":"SUM(D267+D269)","v":0}]
[null,"COMPARATIVE FEE:",{"$f":"RAIL.SUB8_CONSULTANT_FEE","v":0.09},{"$f":"SUM(D270*C271)","v":0}]
[null,"FACILITIES COST OF CAPITAL:",{"$f":"RAIL.SUB8_COSTofCAPITAL","v":0},{"$f":"SUM(D267*C272)","v":0}]
[null,"TOTAL:",null,{"$f":"SUM(D270:D272)","v":0}]
[null,"DIRECT EXPENSES:",null,{"$f":"RAIL.SUB8_DIRECT_NONSALARY_TOTAL","v":0}]
[null,"RAIL GRAND TOTAL:",null,{"$f":"SUM(D273:D274)","v":0}]

{"sheet":"Rail-Exp-Sub8","index":154,"n_rows":46,"n_cols":8,"rows_kept":46,"cut":false,"hidden":true,"merged":[[0,0,0,7],[1,3,1,7]]}
["RAIL--DIRECT EXPENSES - SUBCONSULTANT 8"]
["TIP NUMBER",{"$f":"TIP.NUMBER","v":0},"FIRM:",{"$f":"'Rail-Sub8'!G3","v":"CONSULTANT NAME"}]
[]
["GENERAL PROJECT WORK:","ITEM","QTY","DESCRIPTION",null,null,"UNIT COST "]
[null,"Travel:"]
[null,"Sedan",0,"Trip(s) @",0,"miles @",{"$f":"SEDAN","v":0.7},{"$f":"SUM(C6*E6*G6)","v":0}]
[null,"Carry All",0,"Trip(s) @",0,"miles @",{"$f":"CARRYALL","v":0.72},{"$f":"SUM(C7*E7*G7)","v":0}]
[null,"Car Rental",null,null,0,"days @ ",{"$f":"CARRENTAL","v":50},{"$f":"SUM(E8*G8)","v":0}]
[null,"Gas for Rental",null,null,0,"miles @",{"$f":"GASforRENTAL","v":0.2},{"$f":"SUM(E9*G9)","v":0}]
[null,"Parking:",0,"Trip(s) @",null,null,{"$f":"PARKING","v":3},{"$f":"SUM(C10*G10)","v":0}]
[null,"Per Diem:",0,"Breakfast",null,null,{"$f":"BREAKFAST","v":10.1},{"$f":"SUM(C11*G11)","v":0}]
[null,null,0,"Lunch",null,null,{"$f":"LUNCH","v":13.3},0]
[null,null,0,"Dinner",null,null,{"$f":"DINNER","v":23.1},0]
[null,null,0,"Lodging",null,null,{"$f":"LODGING_LUMP.SUM","v":95},0]
[null,"Reproduction:",0,"8 1/2 x 11 B & W Copies @",null,null,{"$f":"LETTERCOPIES","v":0.14000000000000001},0]
[null,null,0,"11 x 17 B & W Copies @",null,null,{"$f":"LEDGERCOPIES","v":0.34},0]
[null,null,0,"8 1/2 x 11 Color Copies @",null,null,{"$f":"LETTERCOLOR","v":0.83},0]
[null,null,0,"11 x 17 Color Copies @",null,null,{"$f":"LEDGERCOLOR","v":1.66},0]
[null,null,0,"SQ. FT. of Plots (B & W or Color)",null,"<65 SQ. FT.*",{"$f":"ROLLPLOTSshort","v":6.5},0]
[null,null,0,"SQ. FT. of Plots (B & W or Color)",null,">65 SQ. FT.*",{"$f":"ROLLPLOTSlong","v":1.5},0]
[null,null,0,"Cover(s) @",null,null,{"$f":"COVERS","v":0.5},0]
[null,null,0,"Binder(s) @",null,null,{"$f":"BINDERS","v":0.5},0]
[null,null,0,"Blueprints - 8 1/2 x 11 @",null,null,{"$f":"BLUEPRINTSLETTER","v":0.35},0]
[null,null,0,"Blueprints - 42 x 72 @",null,null,{"$f":"BLUEPRINTSLARGE","v":1.3},0]
[null,"Film and Developing:",0,"Roll(s) @",null,null,{"$f":"FILM","v":20},0]
[null,null,null,null,null,"Subtotal",null,{"$f":"SUM(H6:H25)","v":0}]
["MAPS AND DOCUMENTS:","ITEM","QTY","DESCRIPTION",null,null,"UNIT COST "]
[null,"County Tax Maps:",0,"Map(s) @",null,null,{"$f":"County_Tax_Maps","v":7},{"$f":"SUM(C28*G28)","v":0}]
[null,"USGS Maps:",0,"Map(s) @",null,null,{"$f":"USGSMAPS","v":7},{"$f":"SUM(C29*G29)","v":0}]
[null,null,null,null,null,"Subtotal",null,{"$f":"SUM(H28:H29)","v":0}]
["Miscellaneous Other","ITEM","QTY","DESCRIPTION",null,null,"UNIT COST "]
[null,null,null,null,null,null,null,{"$f":"SUM(C32*G32)","v":0}]
[null,null,null,null,null,null,null,{"$f":"SUM(C33*G33)","v":0}]
[null,null,null,null,null,null,null,0]
[null,null,null,null,null,null,null,0]
[null,null,null,null,null,null,null,0]
[null,null,null,null,null,null,null,0]
[null,null,null,null,null,null,null,0]
[null,null,null,null,null,null,null,{"$f":"SUM(C39*G39)","v":0}]
[null,null,null,null,null,null,null,{"$f":"SUM(C40*G40)","v":0}]
[null,null,null,null,null,null,null,{"$f":"SUM(C41*G41)","v":0}]
[null,null,null,null,null,"Subtotal",null,{"$f":"SUM(H32:H41)","v":0}]
[]
[null,null,null,null,null,"TOTAL",null,{"$f":"SUM(H26+H30+H42)","v":0}]
[]
[null,"* Sum of all plots "]

{"sheet":"Rail-Sub9","index":155,"n_rows":275,"n_cols":47,"rows_kept":275,"cut":false,"hidden":true,"merged":[[0,0,1,13],[2,1,2,4],[2,6,2,7],[2,10,2,11],[2,15,2,16],[3,1,3,4],[3,6,3,7],[3,10,3,11],[3,15,3,16],[4,3,4,22],[6,3,9,3],[6,4,9,4],[6,5,9,5],[6,6,9,6],[6,7,9,7],[6,8,9,8],[6,9,9,9],[6,10,9,10],[6,11,9,11],[6,18,9,18],[6,19,9,19],[6,20,9,20],[6,21,9,21],[6,22,9,22],[6,12,9,12],[6,13,9,13],[6,14,9,14],[6,15,9,15],[6,16,9,16],[6,17,9,17],[8,26,8,27],[25,26,25,27],[26,26,26,27],[27,26,27,27],[18,26,18,27],[19,26,19,27],[20,26,20,27],[21,26,21,27],[34,26,34,27],[22,26,22,27],[23,26,23,27],[24,26,24,27],[16,26,16,27],[17,26,17,27],[10,26,10,27],[11,26,11,27],[12,26,12,27],[13,26,13,27],[14,26,14,27],[15,26,15,27],[35,26,35,27],[36,26,36,27],[37,26,37,27],[38,26,38,27],[39,26,39,27],[28,26,28,27],[29,26,29,27],[30,26,30,27],[31,26,31,27],[32,26,32,27],[33,26,33,27],[46,26,46,27],[47,26,47,27],[48,26,48,27],[49,26,49,27],[50,26,50,27],[51,26,51,27],[40,26,40,27],[41,26,41,27],[42,26,42,27],[43,26,43,27],[44,26,44,27],[45,26,45,27],[73,26,73,27],[64,26,64,27],[65,26,65,27],[52,26,52,27],[53,26,53,27],[54,26,54,27],[55,26,55,27],[56,26,56,27],[57,26,57,27],[212,26,212,27],[213,26,213,27],[214,26,214,27],[197,26,197,27],[198,26,198,27],[199,26,199,27],[58,26,58,27],[59,26,59,27],[60,26,60,27],[61,26,61,27],[62,26,62,27],[63,26,63,27],[188,26,188,27],[189,26,189,27],[190,26,190,27],[191,26,191,27],[192,26,192,27],[193,26,193,27],[194,26,194,27],[195,26,195,27],[196,26,196,27],[70,26,70,27],[71,26,71,27],[72,26,72,27],[274,1,275,1],[274,3,275,4],[242,26,242,27],[66,26,66,27],[67,26,67,27],[68,26,68,27],[69,26,69,27],[246,26,246,27],[247,26,247,27],[248,26,248,27],[249,26,249,27],[250,26,250,27],[200,26,200,27],[201,26,201,27],[202,26,202,27],[203,26,203,27],[204,26,204,27],[205,26,205,27],[206,26,206,27],[207,26,207,27],[208,26,208,27],[209,26,209,27],[210,26,210,27],[211,26,211,27],[252,26,252,27],[253,26,253,27],[254,26,254,27],[255,26,255,27],[256,26,256,27],[257,26,257,27],[251,26,251,27],[232,26,232,27],[233,26,233,27],[234,26,234,27],[243,26,243,27],[244,26,244,27],[245,26,245,27],[235,26,235,27],[280,8,280,9],[280,10,280,11],[283,8,283,13],[284,8,284,9],[284,10,284,11],[285,8,285,9],[285,10,285,11],[258,26,258,27],[259,26,259,27],[278,8,278,13],[279,8,279,9],[279,10,279,11],[215,26,215,27],[216,26,216,27],[217,26,217,27],[218,26,218,27],[219,26,219,27],[220,26,220,27],[221,26,221,27],[222,26,222,27],[223,26,223,27],[224,26,224,27],[225,26,225,27],[226,26,226,27],[236,26,236,27],[237,26,237,27],[238,26,238,27],[239,26,239,27],[240,26,240,27],[241,26,241,27],[227,26,227,27],[228,26,228,27],[229,26,229,27],[230,26,230,27],[231,26,231,27],[131,26,131,27],[132,26,132,27],[133,26,133,27],[134,26,134,27],[135,26,135,27],[136,26,136,27],[137,26,137,27],[138,26,138,27],[139,26,139,27],[155,26,155,27],[156,26,156,27],[157,26,157,27],[140,26,140,27],[141,26,141,27],[142,26,142,27],[143,26,143,27],[144,26,144,27],[145,26,145,27],[146,26,146,27],[147,26,147,27],[148,26,148,27],[182,26,182,27],[183,26,183,27],[184,26,184,27],[167,26,167,27],[168,26,168,27],[169,26,169,27],[170,26,170,27],[171,26,171,27],[172,26,172,27],[173,26,173,27],[174,26,174,27],[175,26,175,27],[92,26,92,27],[93,26,93,27],[94,26,94,27],[176,26,176,27],[177,26,177,27],[178,26,178,27],[179,26,179,27],[180,26,180,27],[181,26,181,27],[158,26,158,27],[159,26,159,27],[160,26,160,27],[161,26,161,27],[162,26,162,27],[163,26,163,27],[164,26,164,27],[165,26,165,27],[166,26,166,27],[149,26,149,27],[150,26,150,27],[151,26,151,27],[152,26,152,27],[153,26,153,27],[154,26,154,27],[101,26,101,27],[102,26,102,27],[103,26,103,27],[185,26,185,27],[186,26,186,27],[187,26,187,27],[74,26,74,27],[75,26,75,27],[76,26,76,27],[77,26,77,27],[78,26,78,27],[79,26,79,27],[80,26,80,27],[81,26,81,27],[82,26,82,27],[83,26,83,27],[84,26,84,27],[85,26,85,27],[86,26,86,27],[87,26,87,27],[88,26,88,27],[89,26,89,27],[90,26,90,27],[91,26,91,27],[129,26,129,27],[130,26,130,27],[113,26,113,27],[114,26,114,27],[115,26,115,27],[116,26,116,27],[117,26,117,27],[118,26,118,27],[119,26,119,27],[120,26,120,27],[121,26,121,27],[3,26,3,27],[9,0,9,1],[122,26,122,27],[123,26,123,27],[124,26,124,27],[125,26,125,27],[126,26,126,27],[127,26,127,27],[128,26,128,27],[104,26,104,27],[105,26,105,27],[106,26,106,27],[107,26,107,27],[108,26,108,27],[109,26,109,27],[110,26,110,27],[111,26,111,27],[112,26,112,27],[95,26,95,27],[96,26,96,27],[97,26,97,27],[98,26,98,27],[99,26,99,27],[100,26,100,27]]}
["                                                                      SUBCONSULTANT 9 - RAIL DIVISION BREAKDOWN WORKSHEET -- ENTER WORKHOURS"]
[]
["PROJECT DESCRIPTION: ",{"$f":"PROJECT.DESCRIPTION","v":0},null,null,null,"FIRM:  ",{"$f":"RAIL.SUB9_CONSULTANT_NAME","v":"CONSULTANT NAME"},null,"TASK ORDER NUMBER:",null,{"$f":"TASK.ORDER.NUMBER","v":0},null,"DATE PREPARED:",{"$f":"IF(SCOPE.MANDAY.ESTIMATE.PREPARED.BY.DATE=\"\",\"\",SCOPE.MANDAY.ESTIMATE.PREPARED.BY.DATE)","v":""}]
["PREPARED BY:  ",{"$f":"IF(SCOPE.MANDAY.ESTIMATE.PREPARED.BY=\"\",\"\",SCOPE.MANDAY.ESTIMATE.PREPARED.BY)","v":""},null,null,null,"TIP NUMBER:",{"$f":"TIP.NUMBER","v":0},null,"WBS NUMBER:",null,{"$f":"WBS.NUMBER","v":""},null,"REVISION DATE:",{"$f":"IF(SCOPE.MANDAY.ESTIMATE.APPROVED.BY.DATE=\"\",\"\",SCOPE.MANDAY.ESTIMATE.APPROVED.BY.DATE)","v":""},null,null,null,null,null,null,null,null,null,null,null,"TASK TYPE:","Select Task Type"]
[null,null,null,"ESTIMATED WORKHOURS"]
[null,null,"EMPLOYEE NAMES",{"$f":"IF('PEF CLASSIFICATION SHEET'!D1277=\"\",\"\",LEFT('PEF CLASSIFICATION SHEET'!D1277,4))","v":""},{"$f":"IF('PEF CLASSIFICATION SHEET'!D1278=\"\",\"\",LEFT('PEF CLASSIFICATION SHEET'!D1278,4))","v":""},{"$f":"IF('PEF CLASSIFICATION SHEET'!D1279=\"\",\"\",LEFT('PEF CLASSIFICATION SHEET'!D1279,4))","v":""},{"$f":"IF('PEF CLASSIFICATION SHEET'!D1280=\"\",\"\",LEFT('PEF CLASSIFICATION SHEET'!D1280,4))","v":""},{"$f":"IF('PEF CLASSIFICATION SHEET'!D1281=\"\",\"\",LEFT('PEF CLASSIFICATION SHEET'!D1281,4))","v":""},{"$f":"IF('PEF CLASSIFICATION SHEET'!D1282=\"\",\"\",LEFT('PEF CLASSIFICATION SHEET'!D1282,4))","v":""},{"$f":"IF('PEF CLASSIFICATION SHEET'!D1283=\"\",\"\",LEFT('PEF CLASSIFICATION SHEET'!D1283,4))","v":""},{"$f":"IF('PEF CLASSIFICATION SHEET'!D1284=\"\",\"\",LEFT('PEF CLASSIFICATION SHEET'!D1284,4))","v":""},{"$f":"IF('PEF CLASSIFICATION SHEET'!D1285=\"\",\"\",LEFT('PEF CLASSIFICATION SHEET'!D1285,4))","v":""},{"$f":"IF('PEF CLASSIFICATION SHEET'!D1286=\"\",\"\",LEFT('PEF CLASSIFICATION SHEET'!D1286,4))","v":""},{"$f":"IF('PEF CLASSIFICATION SHEET'!D1287=\"\",\"\",LEFT('PEF CLASSIFICATION SHEET'!D1287,4))","v":""},{"$f":"IF('PEF CLASSIFICATION SHEET'!D1288=\"\",\"\",LEFT('PEF CLASSIFICATION SHEET'!D1288,4))","v":""},{"$f":"IF('PEF CLASSIFICATION SHEET'!D1289=\"\",\"\",LEFT('PEF CLASSIFICATION SHEET'!D1289,4))","v":""},{"$f":"IF('PEF CLASSIFICATION SHEET'!D1290=\"\",\"\",LEFT('PEF CLASSIFICATION SHEET'!D1290,4))","v":""},{"$f":"IF('PEF CLASSIFICATION SHEET'!D1291=\"\",\"\",LEFT('PEF CLASSIFICATION SHEET'!D1291,4))","v":""},{"$f":"IF('PEF CLASSIFICATION SHEET'!D1292=\"\",\"\",LEFT('PEF CLASSIFICATION SHEET'!D1292,4))","v":""},{"$f":"IF('PEF CLASSIFICATION SHEET'!D1293=\"\",\"\",LEFT('PEF CLASSIFICATION SHEET'!D1293,4))","v":""},{"$f":"IF('PEF CLASSIFICATION SHEET'!D1294=\"\",\"\",LEFT('PEF CLASSIFICATION SHEET'!D1294,4))","v":""},{"$f":"IF('PEF CLASSIFICATION SHEET'!D1295=\"\",\"\",LEFT('PEF CLASSIFICATION SHEET'!D1295,4))","v":""},{"$f":"IF('PEF CLASSIFICATION SHEET'!D1296=\"\",\"\",LEFT('PEF CLASSIFICATION SHEET'!D1296,4))","v":""}]
[null,null,null,{"$f":"IF('PEF CLASSIFICATION SHEET'!C1277=\"\",\"\",'PEF CLASSIFICATION SHEET'!C1277)","v":""},{"$f":"IF('PEF CLASSIFICATION SHEET'!C1278=\"\",\"\",'PEF CLASSIFICATION SHEET'!C1278)","v":""},{"$f":"IF('PEF CLASSIFICATION SHEET'!C1279=\"\",\"\",'PEF CLASSIFICATION SHEET'!C1279)","v":""},{"$f":"IF('PEF CLASSIFICATION SHEET'!C1280=\"\",\"\",'PEF CLASSIFICATION SHEET'!C1280)","v":""},{"$f":"IF('PEF CLASSIFICATION SHEET'!C1281=\"\",\"\",'PEF CLASSIFICATION SHEET'!C1281)","v":""},{"$f":"IF('PEF CLASSIFICATION SHEET'!C1282=\"\",\"\",'PEF CLASSIFICATION SHEET'!C1282)","v":""},{"$f":"IF('PEF CLASSIFICATION SHEET'!C1283=\"\",\"\",'PEF CLASSIFICATION SHEET'!C1283)","v":""},{"$f":"IF('PEF CLASSIFICATION SHEET'!C1284=\"\",\"\",'PEF CLASSIFICATION SHEET'!C1284)","v":""},{"$f":"IF('PEF CLASSIFICATION SHEET'!C1285=\"\",\"\",'PEF CLASSIFICATION SHEET'!C1285)","v":""},{"$f":"IF('PEF CLASSIFICATION SHEET'!C1286=\"\",\"\",'PEF CLASSIFICATION SHEET'!C1286)","v":""},{"$f":"IF('PEF CLASSIFICATION SHEET'!C1287=\"\",\"\",'PEF CLASSIFICATION SHEET'!C1287)","v":""},{"$f":"IF('PEF CLASSIFICATION SHEET'!C1288=\"\",\"\",'PEF CLASSIFICATION SHEET'!C1288)","v":""},{"$f":"IF('PEF CLASSIFICATION SHEET'!C1289=\"\",\"\",'PEF CLASSIFICATION SHEET'!C1289)","v":""},{"$f":"IF('PEF CLASSIFICATION SHEET'!C1290=\"\",\"\",'PEF CLASSIFICATION SHEET'!C1290)","v":""},{"$f":"IF('PEF CLASSIFICATION SHEET'!C1291=\"\",\"\",'PEF CLASSIFICATION SHEET'!C1291)","v":""},{"$f":"IF('PEF CLASSIFICATION SHEET'!C1292=\"\",\"\",'PEF CLASSIFICATION SHEET'!C1292)","v":""},{"$f":"IF('PEF CLASSIFICATION SHEET'!C1293=\"\",\"\",'PEF CLASSIFICATION SHEET'!C1293)","v":""},{"$f":"IF('PEF CLASSIFICATION SHEET'!C1294=\"\",\"\",'PEF CLASSIFICATION SHEET'!C1294)","v":""},{"$f":"IF('PEF CLASSIFICATION SHEET'!C1295=\"\",\"\",'PEF CLASSIFICATION SHEET'!C1295)","v":""},{"$f":"IF('PEF CLASSIFICATION SHEET'!C1296=\"\",\"\",'PEF CLASSIFICATION SHEET'!C1296)","v":""},"SUB-","%","PEF"]
[null,null,null,null,null,null,null,null,null,null,null,null,null,null,null,null,null,null,null,null,null,null,null,"TOTAL","OF","ESTIMATE"]
["TASK NO.","TASK DESCRIPTION","CLASSIFICATION",null,null,null,null,null,null,null,null,null,null,null,null,null,null,null,null,null,null,null,null,null,"PROJECT",null,"COMMENTS",null,null,null,null,null,null,null,"Select Task Type","Grade Separation","CEI","Track Design","Signal Design","Environmental","Planning"]
[{"$f":"IF($AA$4=\"Select Task Type\",\"Select the TASK TYPE from drop down list in cell AA4 to populate the task list\",IF($AA$4=\"Grade Separation\",\"You selected Grade Separation\",IF($AA$4=\"CEI\",\"You selected CEI\",IF($AA$4=\"Track Design\",\"You selected Track Design.  When the task is ALL CAPS, this is a header row, if you choose to key mandays associated with that header row the row total will not be displayed but the column and overall total will sum appropriately\",IF($AA$4=\"Signal Design\",\"You selected Signal Design, note that this is initially a blank task list; so please create a task list from scratch\",IF($AA$4=\"Environmental\",\"You selected Environmental.  When the task is ALL CAPS, this is a header row, if you choose to key mandays associated with that header row the row total will not be displayed but the column and overall total will sum appropriately\",IF($AA$4=\"Planning\",\"You selected Planning.  When the task is ALL CAPS, this is a header row, if you choose to key mandays associated with that header row the row total will not be displayed but the column and overall total will sum appropriately\",\"Select the TASK TYPE from drop down list in cell AA4 to populate the task list\")))))))","v":"Select the TASK TYPE from drop down list in cell AA4 to populate the task list"},null,null,null,null,null,null,null,null,null,null,null,null,null,null,null,null,null,null,null,null,null,null,null,null,null,null,null,null,null,null,null,null,null,null,"Grade Separation","Grade Separation","CEI","CEI","Track Design","Track Design","Signal Design","Signal Design","Environmental","Environmental","Planning","Planning"]
[{"$f":"IF(AG11=0,\"\",AG11)","v":""},{"$f":"IF(AH11=0,\"\",AH11)","v":""},null,null,null,null,null,null,null,null,null,null,null,null,null,null,null,null,null,null,null,null,null,{"$f":"IF(B11=\"\",0,IF(B11=\"DEMAND ASSESSMENT\",\"\",IF(B11=\"PROJECT SCOPING AND DATA COLLECTION\",\"\",IF(B11=\"PROJECT MANAGEMENT/PROJECT ADMINISTRATION\",\"\",IF((SUM(D11:W11)=0),0,SUM(D11:W11))))))","v":0},{"$f":"IF(SUM(D11:W11)=0,\"\",((SUM(D11:W11))/$X$261))","v":""},null,null,null,null,null,null,null,{"$f":"IF($AA$4=\"Select Task Type\",\"\",IF($AA$4=\"Grade Separation\",AJ11,IF($AA$4=\"CEI\",AL11,IF($AA$4=\"Track Design\",AN11,IF($AA$4=\"Signal Design\",AP11,IF($AA$4=\"Environmental\",AR11,IF($AA$4=\"Planning\",AT11,\"\")))))))","v":""},{"$f":"IF($AA$4=\"Select Task Type\",\"\",IF($AA$4=\"Grade Separation\",AK11,IF($AA$4=\"CEI\",AM11,IF($AA$4=\"Track Design\",AO11,IF($AA$4=\"Signal Design\",AQ11,IF($AA$4=\"Environmental\",AS11,IF($AA$4=\"Planning\",AU11,\"\")))))))","v":""},null,1,"Project Familiarization",1,"Project management and document review",1,"PROJECT MANAGEMENT/PROJECT ADMINISTRATION",null,null,"A","PROJECT SCOPING AND DATA COLLECTION",1,"DEMAND ASSESSMENT"]
[{"$f":"IF(AG12=0,\"\",AG12)","v":""},"",null,null,null,null,null,null,null,null,null,null,null,null,null,null,null,null,null,null,null,null,null,{"$f":"IF(B12=\"\",0,IF((SUM(D12:W12)=0),0,SUM(D12:W12)))","v":0},{"$f":"IF(SUM(D12:W12)=0,\"\",((SUM(D12:W12))/$X$261))","v":""},null,null,null,null,null,null,null,{"$f":"IF($AA$4=\"Select Task Type\",\"\",IF($AA$4=\"Grade Separation\",AJ12,IF($AA$4=\"CEI\",AL12,IF($AA$4=\"Track Design\",AN12,IF($AA$4=\"Signal Design\",AP12,IF($AA$4=\"Environmental\",AR12,IF($AA$4=\"Planning\",AT12,\"\")))))))","v":""},"",null,2,"Conceptual Design",2,"Track inspection",null,null,null,null,"A.1","Study Area Definition",null,"Review previous studies"]
["","",null,null,null,null,null,null,null,null,null,null,null,null,null,null,null,null,null,null,null,null,null,0,{"$f":"IF(SUM(D13:W13)=0,\"\",((SUM(D13:W13))/$X$261))","v":""},null,null,null,null,null,null,null,"","",null,3,"Construction Cost Estimate",3,"Roadway inspection",null,null,null,null,"A.2","Study Area Field Visit",null,"Interview XX, XX, and XX on near-term rail intermodal and break bulk plans"]
["","",null,null,null,null,null,null,null,null,null,null,null,null,null,null,null,null,null,null,null,null,null,0,"",null,null,null,null,null,null,null,"","",null,4,"Project Coordination",null,null,null,null,null,null,"A.3","Community Characteristics Report",null,"Estimate effects of various rail entities"]
["","",null,null,null,null,null,null,null,null,null,null,null,null,null,null,null,null,null,null,null,null,null,0,"",null,null,null,null,null,null,null,"","",null,null,null,null,null,null,null,null,null,"A.4","Local Land Use and Transportation Plans",null,"Estimate future growth in other bulk and break bulk commodities"]
["","",null,null,null,null,null,null,null,null,null,null,null,null,null,null,null,null,null,null,null,null,null,0,"",null,null,null,null,null,null,null,"","",null,null,null,null,null,null,null,null,null,"A.5","State and Federal Data Sources",null,"Incorporate State Freight Plan into market forecasts "]
["","",null,null,null,null,null,null,null,null,null,null,null,null,null,null,null,null,null,null,null,null,null,0,"",null,null,null,null,null,null,null,"","",null,null,null,null,null,null,null,null,null,"A.6 ","GeoEnvironmental Review",null,"Project port continued share against market growth"]
["","",null,null,null,null,null,null,null,null,null,null,null,null,null,null,null,null,null,null,null,null,null,0,"",null,null,null,null,null,null,null,"","",null,null,null,null,null,null,null,null,null,"A.7","GIS Data Layers and Aerial Photography",null,"Combine forecasts from various groups into a base line forecast"]
["","",null,null,null,null,null,null,null,null,null,null,null,null,null,null,null,null,null,null,null,null,null,0,"",null,null,null,null,null,null,null,"","",null,null,null,null,null,null,null,null,null,"A.8","Evaluation of Existing Transportation Facilities",null,"Develop an updated base forecast"]
["","",null,null,null,null,null,null,null,null,null,null,null,null,null,null,null,null,null,null,null,null,null,0,"",null,null,null,null,null,null,null,"","",null,null,null,null,null,null,null,null,null,"A.9","Traffic Forecast Request",null,"Compare with freight forecast in NC State Freight Plan, contrast against existing port rail capacity, identify delta required to accommodate additional traffic"]
["","",null,null,null,null,null,null,null,null,null,null,null,null,null,null,null,null,null,null,null,null,null,0,"",null,null,null,null,null,null,null,"","",null,null,null,null,null,null,null,null,null,"A.10","Project Data Sheet",null,"Add in empty return exports and revise forecast"]
["","",null,null,null,null,null,null,null,null,null,null,null,null,null,null,null,null,null,null,null,null,null,{"$f":"IF(B22=\"\",0,IF(B22=\"FUNCTIONAL TRACK DESIGN\",\"\",IF((SUM(D22:W22)=0),0,SUM(D22:W22))))","v":0},"",null,null,null,null,null,null,null,"","",null,null,null,null,null,2,"FUNCTIONAL TRACK DESIGN",null,null,"A.11","Start of Study Letters",null,"Develop near-term outlook of market demand and system requirements"]
["","",null,null,null,null,null,null,null,null,null,null,null,null,null,null,null,null,null,null,null,null,null,{"$f":"IF(B23=\"\",0,IF((SUM(D23:W23)=0),0,SUM(D23:W23)))","v":0},"",null,null,null,null,null,null,null,"","",null,null,null,null,null,null,null,null,null,"A.12","Kickoff/Scoping Meeting",null,"Review operations and plans for XX, suggest if port rail facilities can accommodate projected growth"]
["","",null,null,null,null,null,null,null,null,null,null,null,null,null,null,null,null,null,null,null,null,null,{"$f":"IF(B24=\"\",0,IF((SUM(D24:W24)=0),0,SUM(D24:W24)))","v":0},"",null,null,null,null,null,null,null,"","",null,null,null,null,null,null,null,null,null,"A.13",null,null,"Identify conceptual rail capacity and prospects for service assuming successful XX service"]
["","",null,null,null,null,null,null,null,null,null,null,null,null,null,null,null,null,null,null,null,null,null,{"$f":"IF(B25=\"\",0,IF((SUM(D25:W25)=0),0,SUM(D25:W25)))","v":0},"",null,null,null,null,null,null,null,"","",null,null,null,null,null,null,null,null,null,"A.14",null,null,"Evaluate rail operations @ port to identify conflicts and opportunities to serve both intermodal and break bulk rail customers"]
["","",null,null,null,null,null,null,null,null,null,null,null,null,null,null,null,null,null,null,null,null,null,{"$f":"IF(B26=\"\",0,IF((SUM(D26:W26)=0),0,SUM(D26:W26)))","v":0},"",null,null,null,null,null,null,null,"","",null,null,null,null,null,null,null,null,null,"A.15",null,null,"Develop near-term outlook of market demand and system requirements"]
["","",null,null,null,null,null,null,null,null,null,null,null,null,null,null,null,null,null,null,null,null,null,{"$f":"IF(B27=\"\",0,IF((SUM(D27:W27)=0),\"\",SUM(D27:W27)))","v":0},"",null,null,null,null,null,null,null,"","",null,null,null,null,null,null,null,null,null,"A.16"]
["","",null,null,null,null,null,null,null,null,null,null,null,null,null,null,null,null,null,null,null,null,null,0,"",null,null,null,null,null,null,null,"","",null,null,null,null,null,null,null,null,null,"A.17"]
["","",null,null,null,null,null,null,null,null,null,null,null,null,null,null,null,null,null,null,null,null,null,{"$f":"IF(B29=\"\",0,IF(B29=\"TRAFFIC CAPACITY ANALYSIS AND ACCIDENT ANALYSIS\",\"\",IF((SUM(D29:W29)=0),0,SUM(D29:W29))))","v":0},"",null,null,null,null,null,null,null,"","",null,null,null,null,null,null,null,null,null,"B","TRAFFIC CAPACITY ANALYSIS AND ACCIDENT ANALYSIS"]
["","",null,null,null,null,null,null,null,null,null,null,null,null,null,null,null,null,null,null,null,null,null,{"$f":"IF(B30=\"\",0,IF((SUM(D30:W30)=0),0,SUM(D30:W30)))","v":0},"",null,null,null,null,null,null,null,"","",null,null,null,null,null,null,null,null,null,"B.1","Coordinate with Stantec & incorporate the analysis"]
["","",null,null,null,null,null,null,null,null,null,null,null,null,null,null,null,null,null,null,null,null,null,{"$f":"IF(B31=\"\",0,IF((SUM(D31:W31)=0),0,SUM(D31:W31)))","v":0},"",null,null,null,null,null,null,null,"","",null,null,null,null,null,null,null,null,null,"B.2"]
["","",null,null,null,null,null,null,null,null,null,null,null,null,null,null,null,null,null,null,null,null,null,{"$f":"IF(B32=\"\",0,IF(B32=\"PORT MASTER PLAN REVIEW\",\"\",IF((SUM(D32:W32)=0),0,SUM(D32:W32))))","v":0},"",null,null,null,null,null,null,null,"","",null,null,null,null,null,null,null,null,null,"B.3",null,2,"PORT MASTER PLAN REVIEW"]
["","",null,null,null,null,null,null,null,null,null,null,null,null,null,null,null,null,null,null,null,null,null,{"$f":"IF(B33=\"\",0,IF(B33=\"PRELIMINARY TRACK DESIGN\",\"\",IF((SUM(D33:W33)=0),0,SUM(D33:W33))))","v":0},"",null,null,null,null,null,null,null,"","",null,null,null,null,null,3,"PRELIMINARY TRACK DESIGN",null,null,"B.4",null,null,"Identify area needed to accommodate each targeted market"]
["","",null,null,null,null,null,null,null,null,null,null,null,null,null,null,null,null,null,null,null,null,null,{"$f":"IF(B34=\"\",0,IF((SUM(D34:W34)=0),0,SUM(D34:W34)))","v":0},"",null,null,null,null,null,null,null,"","",null,null,null,null,null,null,null,null,null,"B.5",null,null,"Assess ability to meet current and projected needs"]
["","",null,null,null,null,null,null,null,null,null,null,null,null,null,null,null,null,null,null,null,null,null,{"$f":"IF(B35=\"\",0,IF((SUM(D35:W35)=0),0,SUM(D35:W35)))","v":0},"",null,null,null,null,null,null,null,"","",null,null,null,null,null,null,null,null,null,"B.6",null,null,"Coordinate with Port regarding future Port plans"]
["","",null,null,null,null,null,null,null,null,null,null,null,null,null,null,null,null,null,null,null,null,null,{"$f":"IF(B36=\"\",0,IF(B36=\"PROJECT PURPOSE AND NEED\",\"\",IF((SUM(D36:W36)=0),0,SUM(D36:W36))))","v":0},"",null,null,null,null,null,null,null,"","",null,null,null,null,null,null,null,null,null,"C","PROJECT PURPOSE AND NEED",null,"Develop recommendations to layout and/or processes to meet anticipated needs while not conflicting or constraining future activities"]
["","",null,null,null,null,null,null,null,null,null,null,null,null,null,null,null,null,null,null,null,null,null,{"$f":"IF(B37=\"\",0,IF((SUM(D37:W37)=0),0,SUM(D37:W37)))","v":0},"",null,null,null,null,null,null,null,"","",null,null,null,null,null,null,null,null,null,"C.1","Preliminary Purpose and Need",null,"Prepare draft port layout"]
["","",null,null,null,null,null,null,null,null,null,null,null,null,null,null,null,null,null,null,null,null,null,0,"",null,null,null,null,null,null,null,"","",null,null,null,null,null,null,null,null,null,"C.2","Final Purpose and Need Memorandum",null,"Revise per NCDOT comments and prepare final port layout"]
["","",null,null,null,null,null,null,null,null,null,null,null,null,null,null,null,null,null,null,null,null,null,0,"",null,null,null,null,null,null,null,"","",null,null,null,null,null,null,null,null,null,"C.3"]
["","",null,null,null,null,null,null,null,null,null,null,null,null,null,null,null,null,null,null,null,null,null,0,"",null,null,null,null,null,null,null,"","",null,null,null,null,null,null,null,null,null,"C.4"]
["","",null,null,null,null,null,null,null,null,null,null,null,null,null,null,null,null,null,null,null,null,null,0,"",null,null,null,null,null,null,null,"","",null,null,null,null,null,null,null,null,null,"C.5"]
["","",null,null,null,null,null,null,null,null,null,null,null,null,null,null,null,null,null,null,null,null,null,0,"",null,null,null,null,null,null,null,"","",null,null,null,null,null,null,null,null,null,"C.6"]
["","",null,null,null,null,null,null,null,null,null,null,null,null,null,null,null,null,null,null,null,null,null,0,"",null,null,null,null,null,null,null,"","",null,null,null,null,null,null,null,null,null,"C.7"]
["","",null,null,null,null,null,null,null,null,null,null,null,null,null,null,null,null,null,null,null,null,null,{"$f":"IF(B44=\"\",0,IF(B44=\"RAIL INVENTORY AND REVIEW OF EXISTING OPERATIONS\",\"\",IF(B44=\"DEVELOPMENT AND EVALUATION OF DESIGN ALTERNATIVES\",\"\",IF(B44=\"FINAL TRACK DESIGN\",\"\",IF((SUM(D44:W44)=0),0,SUM(D44:W44))))))","v":0},"",null,null,null,null,null,null,null,"","",null,null,null,null,null,4,"FINAL TRACK DESIGN",null,null,"D","DEVELOPMENT AND EVALUATION OF DESIGN ALTERNATIVES",3,"RAIL INVENTORY AND REVIEW OF EXISTING OPERATIONS"]
["","",null,null,null,null,null,null,null,null,null,null,null,null,null,null,null,null,null,null,null,null,null,{"$f":"IF(B45=\"\",0,IF((SUM(D45:W45)=0),0,SUM(D45:W45)))","v":0},"",null,null,null,null,null,null,null,"","",null,null,null,null,null,null,null,null,null,"D.1","Collaboration on Development of Design Alternatives",null,"Review Port facilities on the ground, identify acreage which could accommodate additional functions in support of rail operations"]
["","",null,null,null,null,null,null,null,null,null,null,null,null,null,null,null,null,null,null,null,null,null,0,"",null,null,null,null,null,null,null,"","",null,null,null,null,null,null,null,null,null,"D.2","Qualitative Screening of Design Alternatives",null,"Review XX and XX track charts and track maps for Port"]
["","",null,null,null,null,null,null,null,null,null,null,null,null,null,null,null,null,null,null,null,null,null,0,"",null,null,null,null,null,null,null,"","",null,null,null,null,null,null,null,null,null,"D.3",null,null,"Review any related TSS"]
["","",null,null,null,null,null,null,null,null,null,null,null,null,null,null,null,null,null,null,null,null,null,0,"",null,null,null,null,null,null,null,"","",null,null,null,null,null,null,null,null,null,"D.4",null,null,"Conduct a windshield survey of XX line at Port and document observations"]
["","",null,null,null,null,null,null,null,null,null,null,null,null,null,null,null,null,null,null,null,null,null,0,"",null,null,null,null,null,null,null,"","",null,null,null,null,null,null,null,null,null,"D.5",null,null,"Identify opportunities to locate a future passing siding."]
["","",null,null,null,null,null,null,null,null,null,null,null,null,null,null,null,null,null,null,null,null,null,0,"",null,null,null,null,null,null,null,"","",null,null,null,null,null,null,null,null,null,"D.6"]
["","",null,null,null,null,null,null,null,null,null,null,null,null,null,null,null,null,null,null,null,null,null,0,"",null,null,null,null,null,null,null,"","",null,null,null,null,null,null,null,null,null,"D.7"]
["","",null,null,null,null,null,null,null,null,null,null,null,null,null,null,null,null,null,null,null,null,null,{"$f":"IF(B52=\"\",0,IF(B52=\"BIOTIC RESOURCES\",\"\",IF((SUM(D52:W52)=0),0,SUM(D52:W52))))","v":0},"",null,null,null,null,null,null,null,"","",null,null,null,null,null,null,null,null,null,"E.3","BIOTIC RESOURCES"]
["","",null,null,null,null,null,null,null,null,null,null,null,null,null,null,null,null,null,null,null,null,null,{"$f":"IF(B53=\"\",0,IF((SUM(D53:W53)=0),0,SUM(D53:W53)))","v":0},"",null,null,null,null,null,null,null,"","",null,null,null,null,null,null,null,null,null,"E.3.a","Terrestrial Communities"]
["","",null,null,null,null,null,null,null,null,null,null,null,null,null,null,null,null,null,null,null,null,null,{"$f":"IF(B54=\"\",0,IF((SUM(D54:W54)=0),0,SUM(D54:W54)))","v":0},"",null,null,null,null,null,null,null,"","",null,null,null,null,null,null,null,null,null,"E.3.b","Terrestrial Wildlife"]
["","",null,null,null,null,null,null,null,null,null,null,null,null,null,null,null,null,null,null,null,null,null,{"$f":"IF(B55=\"\",0,IF(B55=\"CAPACITY AND VELOCITY\",\"\",IF((SUM(D55:W55)=0),0,SUM(D55:W55))))","v":0},"",null,null,null,null,null,null,null,"","",null,null,null,null,null,null,null,null,null,"E.3.c","Aquatic Communities and Wildlife",4,"CAPACITY AND VELOCITY"]
["","",null,null,null,null,null,null,null,null,null,null,null,null,null,null,null,null,null,null,null,null,null,{"$f":"IF(B56=\"\",0,IF((SUM(D56:W56)=0),0,SUM(D56:W56)))","v":0},"",null,null,null,null,null,null,null,"","",null,null,null,null,null,null,null,null,null,"E.3.d","Invasive Species",null,"Develop a level of service (LOS) classification for XX"]
["","",null,null,null,null,null,null,null,null,null,null,null,null,null,null,null,null,null,null,null,null,null,0,"",null,null,null,null,null,null,null,"","",null,null,null,null,null,null,null,null,null,"E.3.e",null,null,"Identify theoretical capacity XX based upon tonnage (GMT), GMT per train, and number of trains"]
["","",null,null,null,null,null,null,null,null,null,null,null,null,null,null,null,null,null,null,null,null,null,0,"",null,null,null,null,null,null,null,"","",null,null,null,null,null,null,null,null,null,"E.3.f",null,null,"Compare theoretical capacity with forecast train volumes"]
["","",null,null,null,null,null,null,null,null,null,null,null,null,null,null,null,null,null,null,null,null,null,0,"",null,null,null,null,null,null,null,"","",null,null,null,null,null,null,null,null,null,"E.3.g",null,null,"Observe operations to develop an estimate of current velocity (travel time over mileage) to/from XX"]
["","",null,null,null,null,null,null,null,null,null,null,null,null,null,null,null,null,null,null,null,null,null,0,"",null,null,null,null,null,null,null,"","",null,null,null,null,null,null,null,null,null,"E.3.h",null,null,"Review XX track charts and operating rules, assess for potential changes which could more effectively utilize existing capacity"]
["","",null,null,null,null,null,null,null,null,null,null,null,null,null,null,null,null,null,null,null,null,null,0,"",null,null,null,null,null,null,null,"","",null,null,null,null,null,null,null,null,null,"E.3.i",null,null,"Review related TSS to identify projects which could increase operating speeds and improve velocity"]
["","",null,null,null,null,null,null,null,null,null,null,null,null,null,null,null,null,null,null,null,null,null,{"$f":"IF(B62=\"\",0,IF(B62=\"JURISDICTIONAL ISSUES\",\"\",IF((SUM(D62:W62)=0),0,SUM(D62:W62))))","v":0},"",null,null,null,null,null,null,null,"","",null,null,null,null,null,null,null,null,null,"E.4","JURISDICTIONAL ISSUES"]
["","",null,null,null,null,null,null,null,null,null,null,null,null,null,null,null,null,null,null,null,null,null,{"$f":"IF(B63=\"\",0,IF((SUM(D63:W63)=0),0,SUM(D63:W63)))","v":0},"",null,null,null,null,null,null,null,"","",null,null,null,null,null,null,null,null,null,"E.4.a","Clean Water Act (CWA) Waters of the US"]
["","",null,null,null,null,null,null,null,null,null,null,null,null,null,null,null,null,null,null,null,null,null,{"$f":"IF(B64=\"\",0,IF((SUM(D64:W64)=0),0,SUM(D64:W64)))","v":0},"",null,null,null,null,null,null,null,"","",null,null,null,null,null,null,null,null,null,"E.4.b","CWA Permits"]
["","",null,null,null,null,null,null,null,null,null,null,null,null,null,null,null,null,null,null,null,null,null,{"$f":"IF(B65=\"\",0,IF((SUM(D65:W65)=0),0,SUM(D65:W65)))","v":0},"",null,null,null,null,null,null,null,"","",null,null,null,null,null,null,null,null,null,"E.4.c","Construction Moratoria"]
["","",null,null,null,null,null,null,null,null,null,null,null,null,null,null,null,null,null,null,null,null,null,{"$f":"IF(B66=\"\",0,IF((SUM(D66:W66)=0),0,SUM(D66:W66)))","v":0},"",null,null,null,null,null,null,null,"","",null,null,null,null,null,null,null,null,null,"E.4.d","Rivers and Harbors Act Section 10 Navigable Waters"]
["","",null,null,null,null,null,null,null,null,null,null,null,null,null,null,null,null,null,null,null,null,null,{"$f":"IF(B67=\"\",0,IF(B67=\"RAIL INFRASTRUCTURE IMPROVEMENTS\",\"\",IF((SUM(D67:W67)=0),0,SUM(D67:W67))))","v":0},"",null,null,null,null,null,null,null,"","",null,null,null,null,null,null,null,null,null,"E.4.e","Wetland and Stream Mitigation",5,"RAIL INFRASTRUCTURE IMPROVEMENTS"]
["","",null,null,null,null,null,null,null,null,null,null,null,null,null,null,null,null,null,null,null,null,null,{"$f":"IF(B68=\"\",0,IF((SUM(D68:W68)=0),0,SUM(D68:W68)))","v":0},"",null,null,null,null,null,null,null,"","",null,null,null,null,null,null,null,null,null,"E.4.f","Endangered Species Act Protected Species",null,"Review existing infrastructure"]
["","",null,null,null,null,null,null,null,null,null,null,null,null,null,null,null,null,null,null,null,null,null,0,"",null,null,null,null,null,null,null,"","",null,null,null,null,null,null,null,null,null,"E.4.g","Essential Fish Habitat",null,"Determine potential needs based on growth"]
["","",null,null,null,null,null,null,null,null,null,null,null,null,null,null,null,null,null,null,null,null,null,0,"",null,null,null,null,null,null,null,"","",null,null,null,null,null,null,null,null,null,"E.4.h",null,null,"Suggest potential enhancements to address future needs (X scenarios)"]
["","",null,null,null,null,null,null,null,null,null,null,null,null,null,null,null,null,null,null,null,null,null,0,"",null,null,null,null,null,null,null,"","",null,null,null,null,null,null,null,null,null,"E.4.i",null,null,"Coordinate with NCDOT and others to consider the capacity of XX"]
["","",null,null,null,null,null,null,null,null,null,null,null,null,null,null,null,null,null,null,null,null,null,0,"",null,null,null,null,null,null,null,"","",null,null,null,null,null,null,null,null,null,"E.4.j",null,null,"Develop conceptual recommendations to improve efficiency of operations between XX and YY"]
["","",null,null,null,null,null,null,null,null,null,null,null,null,null,null,null,null,null,null,null,null,null,0,"",null,null,null,null,null,null,null,"","",null,null,null,null,null,null,null,null,null,"E.4.k"]
["","",null,null,null,null,null,null,null,null,null,null,null,null,null,null,null,null,null,null,null,null,null,0,"",null,null,null,null,null,null,null,"","",null,null,null,null,null,null,null,null,null,"E.4.l"]
["","",null,null,null,null,null,null,null,null,null,null,null,null,null,null,null,null,null,null,null,null,null,0,"",null,null,null,null,null,null,null,"","",null,null,null,null,null,null,null,null,null,"E.5","NRTR Document"]
[{"$f":"IF(AG76=0,\"\",AG76)","v":""},"",null,null,null,null,null,null,null,null,null,null,null,null,null,null,null,null,null,null,null,null,null,0,"",null,null,null,null,null,null,null,{"$f":"IF($AA$4=\"Select Task Type\",\"\",IF($AA$4=\"Grade Separation\",AJ76,IF($AA$4=\"CEI\",AL76,IF($AA$4=\"Track Design\",AN76,IF($AA$4=\"Signal Design\",AP76,IF($AA$4=\"Environmental\",AR76,IF($AA$4=\"Planning\",AT76,\"\")))))))","v":""},"",null,null,null,null,null,null,null,null,null,"E.5.a"]
["","",null,null,null,null,null,null,null,null,null,null,null,null,null,null,null,null,null,null,null,null,null,0,{"$f":"IF(SUM(D77:W77)=0,\"\",((SUM(D77:W77))/$X$261))","v":""},null,null,null,null,null,null,null,"","",null,null,null,null,null,null,null,null,null,"E.5.b"]
["","",null,null,null,null,null,null,null,null,null,null,null,null,null,null,null,null,null,null,null,null,null,{"$f":"IF(B78=\"\",0,IF(B78=\"DEVELOP SUGGESTIONS FOR OPERATIONAL AND LOGISTICAL ENHANCEMENTS\",\"\",IF((SUM(D78:W78)=0),0,SUM(D78:W78))))","v":0},"",null,null,null,null,null,null,null,"","",null,null,null,null,null,null,null,null,null,"E.5.c",null,6,"DEVELOP SUGGESTIONS FOR OPERATIONAL AND LOGISTICAL ENHANCEMENTS"]
["","",null,null,null,null,null,null,null,null,null,null,null,null,null,null,null,null,null,null,null,null,null,{"$f":"IF(B79=\"\",0,IF((SUM(D79:W79)=0),0,SUM(D79:W79)))","v":0},"",null,null,null,null,null,null,null,"","",null,null,null,null,null,null,null,null,null,"E.5.d",null,null,"Study current operations and suggest changes that might enhance efficiency or reduce costs"]
["","",null,null,null,null,null,null,null,null,null,null,null,null,null,null,null,null,null,null,null,null,null,0,"",null,null,null,null,null,null,null,"","",null,null,null,null,null,null,null,null,null,"E.5.e",null,null,"Coordinate with NCAG to assure changes are allowable"]
["","",null,null,null,null,null,null,null,null,null,null,null,null,null,null,null,null,null,null,null,null,null,0,"",null,null,null,null,null,null,null,"","",null,null,null,null,null,null,null,null,null,"E.6","Jurisdictional Features Verification",null,"Develop option for development of temporary dray Port to XX"]
["","",null,null,null,null,null,null,null,null,null,null,null,null,null,null,null,null,null,null,null,null,null,0,"",null,null,null,null,null,null,null,"","",null,null,null,null,null,null,null,null,null,"E.6.a",null,null,"Summarize potential changes and corresponding actions"]
["","",null,null,null,null,null,null,null,null,null,null,null,null,null,null,null,null,null,null,null,null,null,0,"",null,null,null,null,null,null,null,"","",null,null,null,null,null,null,null,null,null,"E.6.b"]
["","",null,null,null,null,null,null,null,null,null,null,null,null,null,null,null,null,null,null,null,null,null,0,"",null,null,null,null,null,null,null,"","",null,null,null,null,null,null,null,null,null,"E.6.c"]
["","",null,null,null,null,null,null,null,null,null,null,null,null,null,null,null,null,null,null,null,null,null,0,"",null,null,null,null,null,null,null,"","",null,null,null,null,null,null,null,null,null,"E.6.d"]
["","",null,null,null,null,null,null,null,null,null,null,null,null,null,null,null,null,null,null,null,null,null,0,"",null,null,null,null,null,null,null,"","",null,null,null,null,null,null,null,null,null,"E.6.e"]
["","",null,null,null,null,null,null,null,null,null,null,null,null,null,null,null,null,null,null,null,null,null,{"$f":"IF(B87=\"\",0,IF(B87=\"HUMAN ENVIRONMENT FIELD WORK, ANALYSIS, AND DOCUMENTATION\",\"\",IF((SUM(D87:W87)=0),0,SUM(D87:W87))))","v":0},"",null,null,null,null,null,null,null,"","",null,null,null,null,null,null,null,null,null,"F","HUMAN ENVIRONMENT FIELD WORK, ANALYSIS, AND DOCUMENTATION"]
["","",null,null,null,null,null,null,null,null,null,null,null,null,null,null,null,null,null,null,null,null,null,{"$f":"IF(B88=\"\",0,IF(B88=\"ENVIRONMENTAL SCREENING\",\"\",IF((SUM(D88:W88)=0),0,SUM(D88:W88))))","v":0},"",null,null,null,null,null,null,null,"","",null,null,null,null,null,null,null,null,null,"F.1","Community Impact Assessment",7,"ENVIRONMENTAL SCREENING"]
["","",null,null,null,null,null,null,null,null,null,null,null,null,null,null,null,null,null,null,null,null,null,{"$f":"IF(B89=\"\",0,IF((SUM(D89:W89)=0),0,SUM(D89:W89)))","v":0},"",null,null,null,null,null,null,null,"","",null,null,null,null,null,null,null,null,null,"F.1.a","Identify Community Impact Study Area",null,"Develop GIS map of available data"]
["","",null,null,null,null,null,null,null,null,null,null,null,null,null,null,null,null,null,null,null,null,null,0,"",null,null,null,null,null,null,null,"","",null,null,null,null,null,null,null,null,null,"F.1.b","Community Field Review",null,"Develop list of \"red flag\" issues"]
["","",null,null,null,null,null,null,null,null,null,null,null,null,null,null,null,null,null,null,null,null,null,0,"",null,null,null,null,null,null,null,"","",null,null,null,null,null,null,null,null,null,"F.1.c","Socioeconomic Data"]
["","",null,null,null,null,null,null,null,null,null,null,null,null,null,null,null,null,null,null,null,null,null,0,"",null,null,null,null,null,null,null,"","",null,null,null,null,null,null,null,null,null,"F.1.d","Community Facilities and Services"]
["","",null,null,null,null,null,null,null,null,null,null,null,null,null,null,null,null,null,null,null,null,null,0,"",null,null,null,null,null,null,null,"","",null,null,null,null,null,null,null,null,null,"F.1.e","Local/Regional Land Use and Development Plans"]
["","",null,null,null,null,null,null,null,null,null,null,null,null,null,null,null,null,null,null,null,null,null,0,"",null,null,null,null,null,null,null,"","",null,null,null,null,null,null,null,null,null,"F.1.f","Project Impact Assessment"]
["","",null,null,null,null,null,null,null,null,null,null,null,null,null,null,null,null,null,null,null,null,null,0,"",null,null,null,null,null,null,null,"","",null,null,null,null,null,null,null,null,null,"F.1.g","Community Impact Assessment Report"]
["","",null,null,null,null,null,null,null,null,null,null,null,null,null,null,null,null,null,null,null,null,null,{"$f":"IF(B96=\"\",0,IF(B96=\"ESTIMATE PROJECT SCENARIO BENEFITS\",\"\",IF((SUM(D96:W96)=0),0,SUM(D96:W96))))","v":0},"",null,null,null,null,null,null,null,"","",null,null,null,null,null,null,null,null,null,"F.1.h",null,8,"ESTIMATE PROJECT SCENARIO BENEFITS"]
["","",null,null,null,null,null,null,null,null,null,null,null,null,null,null,null,null,null,null,null,null,null,{"$f":"IF(B97=\"\",0,IF((SUM(D97:W97)=0),0,SUM(D97:W97)))","v":0},"",null,null,null,null,null,null,null,"","",null,null,null,null,null,null,null,null,null,"F.1.i",null,null,"Develop near-term project feasibility criteria and apply to the identified program of projects"]
["","",null,null,null,null,null,null,null,null,null,null,null,null,null,null,null,null,null,null,null,null,null,{"$f":"IF(B98=\"\",0,IF((SUM(D98:W98)=0),0,SUM(D98:W98)))","v":0},"",null,null,null,null,null,null,null,"","",null,null,null,null,null,null,null,null,null,"F.1.j",null,null,"Develop ranked list ordered according to project feasibility criteria"]
["","",null,null,null,null,null,null,null,null,null,null,null,null,null,null,null,null,null,null,null,null,null,{"$f":"IF(B99=\"\",0,IF((SUM(D99:W99)=0),0,SUM(D99:W99)))","v":0},"",null,null,null,null,null,null,null,"","",null,null,null,null,null,null,null,null,null,"F.1.k",null,null,"Perform Benefit Cost Analyses (BCA)  for up to five projects using the OMB BCA methodology"]
["","",null,null,null,null,null,null,null,null,null,null,null,null,null,null,null,null,null,null,null,null,null,{"$f":"IF(B100=\"\",0,IF((SUM(D100:W100)=0),0,SUM(D100:W100)))","v":0},"",null,null,null,null,null,null,null,"","",null,null,null,null,null,null,null,null,null,"F.1.l",null,null,"Revise per NCDOT comments"]
["","",null,null,null,null,null,null,null,null,null,null,null,null,null,null,null,null,null,null,null,null,null,{"$f":"IF(B101=\"\",0,IF(B101=\"INDIRECT AND CUMULATIVE EFFECTS SCREENING\",\"\",IF((SUM(D101:W101)=0),0,SUM(D101:W101))))","v":0},"",null,null,null,null,null,null,null,"","",null,null,null,null,null,null,null,null,null,"F.2","INDIRECT AND CUMULATIVE EFFECTS SCREENING"]
["","",null,null,null,null,null,null,null,null,null,null,null,null,null,null,null,null,null,null,null,null,null,{"$f":"IF(B102=\"\",0,IF((SUM(D102:W102)=0),0,SUM(D102:W102)))","v":0},"",null,null,null,null,null,null,null,"","",null,null,null,null,null,null,null,null,null,"F.2.a","Determine Future Land Use Study Area"]
["","",null,null,null,null,null,null,null,null,null,null,null,null,null,null,null,null,null,null,null,null,null,{"$f":"IF(B103=\"\",0,IF((SUM(D103:W103)=0),0,SUM(D103:W103)))","v":0},"",null,null,null,null,null,null,null,"","",null,null,null,null,null,null,null,null,null,"F.2.b","Determine ICE Study Time Horizon"]
["","",null,null,null,null,null,null,null,null,null,null,null,null,null,null,null,null,null,null,null,null,null,{"$f":"IF(B104=\"\",0,IF((SUM(D104:W104)=0),0,SUM(D104:W104)))","v":0},"",null,null,null,null,null,null,null,"","",null,null,null,null,null,null,null,null,null,"F.2.c","Identify Study Area Conditions and Trends"]
["","",null,null,null,null,null,null,null,null,null,null,null,null,null,null,null,null,null,null,null,null,null,{"$f":"IF(B105=\"\",0,IF((SUM(D105:W105)=0),0,SUM(D105:W105)))","v":0},"",null,null,null,null,null,null,null,"","",null,null,null,null,null,null,null,null,null,"F.2.d","Inventory of Notable Features"]
["","",null,null,null,null,null,null,null,null,null,null,null,null,null,null,null,null,null,null,null,null,null,{"$f":"IF(B106=\"\",0,IF(B106=\"GENERATE DATA NEEDED FOR SCORING IN STI\",\"\",IF((SUM(D106:W106)=0),0,SUM(D106:W106))))","v":0},"",null,null,null,null,null,null,null,"","",null,null,null,null,null,null,null,null,null,"F.2.e","Identify Impact-Causing Activities",9,"GENERATE DATA NEEDED FOR SCORING IN STI"]
["","",null,null,null,null,null,null,null,null,null,null,null,null,null,null,null,null,null,null,null,null,null,{"$f":"IF(B107=\"\",0,IF((SUM(D107:W107)=0),0,SUM(D107:W107)))","v":0},"",null,null,null,null,null,null,null,"","",null,null,null,null,null,null,null,null,null,"F.2.f","Analyze and Evaluate ICE Data",null,"Develop list of alternative solutions"]
["","",null,null,null,null,null,null,null,null,null,null,null,null,null,null,null,null,null,null,null,null,null,0,"",null,null,null,null,null,null,null,"","",null,null,null,null,null,null,null,null,null,"F.2.g","Land Use Development Scenarios",null,"Develop ranking procedure and criteria"]
["","",null,null,null,null,null,null,null,null,null,null,null,null,null,null,null,null,null,null,null,null,null,0,"",null,null,null,null,null,null,null,"","",null,null,null,null,null,null,null,null,null,"F.2.h","Indirect and Cumulative Effects Screening",null,"Adjust per NCDOT comments"]
["","",null,null,null,null,null,null,null,null,null,null,null,null,null,null,null,null,null,null,null,null,null,0,"",null,null,null,null,null,null,null,"","",null,null,null,null,null,null,null,null,null,"F.2.i",null,null,"Apply procedure/criteria to project alternatives"]
["","",null,null,null,null,null,null,null,null,null,null,null,null,null,null,null,null,null,null,null,null,null,0,"",null,null,null,null,null,null,null,"","",null,null,null,null,null,null,null,null,null,"F.2.j",null,null,"Review resulting list"]
["","",null,null,null,null,null,null,null,null,null,null,null,null,null,null,null,null,null,null,null,null,null,0,"",null,null,null,null,null,null,null,"","",null,null,null,null,null,null,null,null,null,"F.2.k",null,null,"Suggest revisions to procedure as needed"]
["","",null,null,null,null,null,null,null,null,null,null,null,null,null,null,null,null,null,null,null,null,null,0,"",null,null,null,null,null,null,null,"","",null,null,null,null,null,null,null,null,null,"F.2.l",null,null,"Revise criteria and redevelop list"]
["","",null,null,null,null,null,null,null,null,null,null,null,null,null,null,null,null,null,null,null,null,null,0,"",null,null,null,null,null,null,null,"","",null,null,null,null,null,null,null,null,null,"F.2.m",null,null,"Suggest project timing"]
["","",null,null,null,null,null,null,null,null,null,null,null,null,null,null,null,null,null,null,null,null,null,{"$f":"IF(B115=\"\",0,IF(B115=\"NOISE AND VIBRATION IMPACT ANALYSIS\",\"\",IF((SUM(D115:W115)=0),0,SUM(D115:W115))))","v":0},"",null,null,null,null,null,null,null,"","",null,null,null,null,null,null,null,null,null,"F.3.","NOISE AND VIBRATION IMPACT ANALYSIS",null,"Suggest project funding source(s)"]
["","",null,null,null,null,null,null,null,null,null,null,null,null,null,null,null,null,null,null,null,null,null,{"$f":"IF(B116=\"\",0,IF((SUM(D116:W116)=0),0,SUM(D116:W116)))","v":0},"",null,null,null,null,null,null,null,"","",null,null,null,null,null,null,null,null,null,"F.3.a","Coordination",null,"Develop opinion of cost for highest 5 ranking projects"]
["","",null,null,null,null,null,null,null,null,null,null,null,null,null,null,null,null,null,null,null,null,null,0,"",null,null,null,null,null,null,null,"","",null,null,null,null,null,null,null,null,null,null,"Initial Meeting with Rail Division",null,"Develop estimate of benefits for highest 5 ranking projects"]
["","",null,null,null,null,null,null,null,null,null,null,null,null,null,null,null,null,null,null,null,null,null,0,"",null,null,null,null,null,null,null,"","",null,null,null,null,null,null,null,null,null,"F.3.b","Data Compilation"]
["","",null,null,null,null,null,null,null,null,null,null,null,null,null,null,null,null,null,null,null,null,null,0,"",null,null,null,null,null,null,null,"","",null,null,null,null,null,null,null,null,null,null,"Project Area Reconnaissance, if applicable"]
["","",null,null,null,null,null,null,null,null,null,null,null,null,null,null,null,null,null,null,null,null,null,0,"",null,null,null,null,null,null,null,"","",null,null,null,null,null,null,null,null,null,null,"Identify noise sensitive land uses"]
["","",null,null,null,null,null,null,null,null,null,null,null,null,null,null,null,null,null,null,null,null,null,0,"",null,null,null,null,null,null,null,"","",null,null,null,null,null,null,null,null,null,null,"Prepare Noise Analysis Work Plan"]
["","",null,null,null,null,null,null,null,null,null,null,null,null,null,null,null,null,null,null,null,null,null,0,"",null,null,null,null,null,null,null,"","",null,null,null,null,null,null,null,null,null,"F.3.c","Selection of Analysis Sites"]
["","",null,null,null,null,null,null,null,null,null,null,null,null,null,null,null,null,null,null,null,null,null,{"$f":"IF(B123=\"\",0,IF(B123=\"IDENTIFY POTENTIAL PROJECTS FOR FEDERAL PROGRAMS\",\"\",IF((SUM(D123:W123)=0),0,SUM(D123:W123))))","v":0},"",null,null,null,null,null,null,null,"","",null,null,null,null,null,null,null,null,null,"F.3.d","Noise Analysis",10,"IDENTIFY POTENTIAL PROJECTS FOR FEDERAL PROGRAMS"]
["","",null,null,null,null,null,null,null,null,null,null,null,null,null,null,null,null,null,null,null,null,null,{"$f":"IF(B124=\"\",0,IF((SUM(D124:W124)=0),0,SUM(D124:W124)))","v":0},"",null,null,null,null,null,null,null,"","",null,null,null,null,null,null,null,null,null,null,"Monitoring / Fieldwork / Processing",null,"Research and prepare a technical memoranda identifying existing federal grant and loan programs for ports and rail improvements"]
["","",null,null,null,null,null,null,null,null,null,null,null,null,null,null,null,null,null,null,null,null,null,0,"",null,null,null,null,null,null,null,"","",null,null,null,null,null,null,null,null,null,null,"Traffic noise analysis",null,"Screen the program of projects for federal grant and loan program eligibility "]
["","",null,null,null,null,null,null,null,null,null,null,null,null,null,null,null,null,null,null,null,null,null,0,"",null,null,null,null,null,null,null,"","",null,null,null,null,null,null,null,null,null,null,"Rail noise analysis",null,"Recommend federal funding resources applicable to candidate projects"]
["","",null,null,null,null,null,null,null,null,null,null,null,null,null,null,null,null,null,null,null,null,null,0,"",null,null,null,null,null,null,null,"","",null,null,null,null,null,null,null,null,null,"F.3.e","Determination of Impacts"]
["","",null,null,null,null,null,null,null,null,null,null,null,null,null,null,null,null,null,null,null,null,null,0,"",null,null,null,null,null,null,null,"","",null,null,null,null,null,null,null,null,null,null,"Traffic noise analysis"]
["","",null,null,null,null,null,null,null,null,null,null,null,null,null,null,null,null,null,null,null,null,null,0,"",null,null,null,null,null,null,null,"","",null,null,null,null,null,null,null,null,null,null,"Rail noise analysis"]
["","",null,null,null,null,null,null,null,null,null,null,null,null,null,null,null,null,null,null,null,null,null,0,"",null,null,null,null,null,null,null,"","",null,null,null,null,null,null,null,null,null,null,"Traffic and rail noise impact assessment"]
["","",null,null,null,null,null,null,null,null,null,null,null,null,null,null,null,null,null,null,null,null,null,0,"",null,null,null,null,null,null,null,"","",null,null,null,null,null,null,null,null,null,"F.3.f","Noise Abatement Considerations"]
["","",null,null,null,null,null,null,null,null,null,null,null,null,null,null,null,null,null,null,null,null,null,{"$f":"IF(B132=\"\",0,IF(B132=\"PREPARE PROGRAM OF PROJECTS\",\"\",IF((SUM(D132:W132)=0),0,SUM(D132:W132))))","v":0},"",null,null,null,null,null,null,null,"","",null,null,null,null,null,null,null,null,null,null,"Noise barrier analysis",11,"PREPARE PROGRAM OF PROJECTS"]
["","",null,null,null,null,null,null,null,null,null,null,null,null,null,null,null,null,null,null,null,null,null,{"$f":"IF(B133=\"\",0,IF((SUM(D133:W133)=0),0,SUM(D133:W133)))","v":0},"",null,null,null,null,null,null,null,"","",null,null,null,null,null,null,null,null,null,null,"QA/Review",null,"Develop ranked list of projects based on benefit data"]
["","",null,null,null,null,null,null,null,null,null,null,null,null,null,null,null,null,null,null,null,null,null,0,"",null,null,null,null,null,null,null,"","",null,null,null,null,null,null,null,null,null,"F.3.g","Vibration Analysis",null,"Develop timing plan "]
["","",null,null,null,null,null,null,null,null,null,null,null,null,null,null,null,null,null,null,null,null,null,0,"",null,null,null,null,null,null,null,"","",null,null,null,null,null,null,null,null,null,"F.3.h","Noise and Vibration Technical Report",null,"Develop list of possible funding sources (limited to most likely source)"]
["","",null,null,null,null,null,null,null,null,null,null,null,null,null,null,null,null,null,null,null,null,null,0,"",null,null,null,null,null,null,null,"","",null,null,null,null,null,null,null,null,null,null,"Draft Report - text, tables, figures",null,"Calculate ranking based on criteria and or weighting data provided by NCDOT"]
["","",null,null,null,null,null,null,null,null,null,null,null,null,null,null,null,null,null,null,null,null,null,0,"",null,null,null,null,null,null,null,"","",null,null,null,null,null,null,null,null,null,null,"Draft Report - Appendices",null,"Submit draft list to NCDOT"]
["","",null,null,null,null,null,null,null,null,null,null,null,null,null,null,null,null,null,null,null,null,null,0,"",null,null,null,null,null,null,null,"","",null,null,null,null,null,null,null,null,null,null,"QA/Review",null,"Revise based on NCDOT comments"]
["","",null,null,null,null,null,null,null,null,null,null,null,null,null,null,null,null,null,null,null,null,null,0,"",null,null,null,null,null,null,null,"","",null,null,null,null,null,null,null,null,null,null,"Prepare Comment/Response Matrix"]
[{"$f":"IF(AG140=0,\"\",AG140)","v":""},"",null,null,null,null,null,null,null,null,null,null,null,null,null,null,null,null,null,null,null,null,null,0,"",null,null,null,null,null,null,null,{"$f":"IF($AA$4=\"Select Task Type\",\"\",IF($AA$4=\"Grade Separation\",AJ140,IF($AA$4=\"CEI\",AL140,IF($AA$4=\"Track Design\",AN140,IF($AA$4=\"Signal Design\",AP140,IF($AA$4=\"Environmental\",AR140,IF($AA$4=\"Planning\",AT140,\"\")))))))","v":""},"",null,null,null,null,null,null,null,null,null,null,"Prepare Final Report (includes QA/Review)"]
["","",null,null,null,null,null,null,null,null,null,null,null,null,null,null,null,null,null,null,null,null,null,0,{"$f":"IF(SUM(D141:W141)=0,\"\",((SUM(D141:W141))/$X$261))","v":""},null,null,null,null,null,null,null,"","",null,null,null,null,null,null,null,null,null,"F.3.i"]
["","",null,null,null,null,null,null,null,null,null,null,null,null,null,null,null,null,null,null,null,null,null,0,"",null,null,null,null,null,null,null,"","",null,null,null,null,null,null,null,null,null,"F.3.j"]
["","",null,null,null,null,null,null,null,null,null,null,null,null,null,null,null,null,null,null,null,null,null,0,"",null,null,null,null,null,null,null,"","",null,null,null,null,null,null,null,null,null,"F.3.k"]
["","",null,null,null,null,null,null,null,null,null,null,null,null,null,null,null,null,null,null,null,null,null,{"$f":"IF(B144=\"\",0,IF(B144=\"STAKEHOLDER INVOLVEMENT\",\"\",IF((SUM(D144:W144)=0),0,SUM(D144:W144))))","v":0},"",null,null,null,null,null,null,null,"","",null,null,null,null,null,null,null,null,null,"F.3.l",null,12,"STAKEHOLDER INVOLVEMENT"]
["","",null,null,null,null,null,null,null,null,null,null,null,null,null,null,null,null,null,null,null,null,null,{"$f":"IF(B145=\"\",0,IF((SUM(D145:W145)=0),0,SUM(D145:W145)))","v":0},"",null,null,null,null,null,null,null,"","",null,null,null,null,null,null,null,null,null,"F.3.m",null,null,"Attend 2 meetings (facilitated by others)"]
["","",null,null,null,null,null,null,null,null,null,null,null,null,null,null,null,null,null,null,null,null,null,{"$f":"IF(B146=\"\",0,IF(B146=\"AIR QUALITY ANALYSIS\",\"\",IF((SUM(D146:W146)=0),0,SUM(D146:W146))))","v":0},"",null,null,null,null,null,null,null,"","",null,null,null,null,null,null,null,null,null,"F.4","AIR QUALITY ANALYSIS",null,"Coordinate with NCDOT to discuss results of stakeholder interaction"]
["","",null,null,null,null,null,null,null,null,null,null,null,null,null,null,null,null,null,null,null,null,null,{"$f":"IF(B147=\"\",0,IF((SUM(D147:W147)=0),0,SUM(D147:W147)))","v":0},"",null,null,null,null,null,null,null,"","",null,null,null,null,null,null,null,null,null,"F.4.a","Data Compilation"]
["","",null,null,null,null,null,null,null,null,null,null,null,null,null,null,null,null,null,null,null,null,null,{"$f":"IF(B148=\"\",0,IF((SUM(D148:W148)=0),0,SUM(D148:W148)))","v":0},"",null,null,null,null,null,null,null,"","",null,null,null,null,null,null,null,null,null,"F.4.b","Attainment Status and Conformity"]
["","",null,null,null,null,null,null,null,null,null,null,null,null,null,null,null,null,null,null,null,null,null,{"$f":"IF(B149=\"\",0,IF((SUM(D149:W149)=0),0,SUM(D149:W149)))","v":0},"",null,null,null,null,null,null,null,"","",null,null,null,null,null,null,null,null,null,"F.4.c","Carbon Monoxide Air Quality Analysis"]
["","",null,null,null,null,null,null,null,null,null,null,null,null,null,null,null,null,null,null,null,null,null,{"$f":"IF(B150=\"\",0,IF((SUM(D150:W150)=0),0,SUM(D150:W150)))","v":0},"",null,null,null,null,null,null,null,"","",null,null,null,null,null,null,null,null,null,"F.4.d","Particulate Matter"]
["","",null,null,null,null,null,null,null,null,null,null,null,null,null,null,null,null,null,null,null,null,null,{"$f":"IF(B151=\"\",0,IF((SUM(D151:W151)=0),0,SUM(D151:W151)))","v":0},"",null,null,null,null,null,null,null,"","",null,null,null,null,null,null,null,null,null,"F.4.e","Mobile Source Air Toxics (MSATs)"]
["","",null,null,null,null,null,null,null,null,null,null,null,null,null,null,null,null,null,null,null,null,null,{"$f":"IF(B152=\"\",0,IF(B152=\"SCHEDULE\",\"\",IF((SUM(D152:W152)=0),0,SUM(D152:W152))))","v":0},"",null,null,null,null,null,null,null,"","",null,null,null,null,null,null,null,null,null,"F.4.f","Greenhouse Gas Emissions (GHGs)",13,"SCHEDULE"]
["","",null,null,null,null,null,null,null,null,null,null,null,null,null,null,null,null,null,null,null,null,null,{"$f":"IF(B153=\"\",0,IF((SUM(D153:W153)=0),0,SUM(D153:W153)))","v":0},"",null,null,null,null,null,null,null,"","",null,null,null,null,null,null,null,null,null,"F.4.g","Air Quality Technical Report",null,"Develop schedule of deliverable and review tasks"]
["","",null,null,null,null,null,null,null,null,null,null,null,null,null,null,null,null,null,null,null,null,null,0,"",null,null,null,null,null,null,null,"","",null,null,null,null,null,null,null,null,null,"F.4.h",null,null,"Update schedule as needed"]
["","",null,null,null,null,null,null,null,null,null,null,null,null,null,null,null,null,null,null,null,null,null,0,"",null,null,null,null,null,null,null,"","",null,null,null,null,null,null,null,null,null,"F.4.i"]
["","",null,null,null,null,null,null,null,null,null,null,null,null,null,null,null,null,null,null,null,null,null,0,"",null,null,null,null,null,null,null,"","",null,null,null,null,null,null,null,null,null,"F.4.j"]
["","",null,null,null,null,null,null,null,null,null,null,null,null,null,null,null,null,null,null,null,null,null,0,"",null,null,null,null,null,null,null,"","",null,null,null,null,null,null,null,null,null,"F.4.k"]
["","",null,null,null,null,null,null,null,null,null,null,null,null,null,null,null,null,null,null,null,null,null,0,"",null,null,null,null,null,null,null,"","",null,null,null,null,null,null,null,null,null,"F.4.l"]
["","",null,null,null,null,null,null,null,null,null,null,null,null,null,null,null,null,null,null,null,null,null,{"$f":"IF(B159=\"\",0,IF(B159=\"CULTURAL RESOURCES ANALYSIS\",\"\",IF((SUM(D159:W159)=0),0,SUM(D159:W159))))","v":0},"",null,null,null,null,null,null,null,"","",null,null,null,null,null,null,null,null,null,"F.5","CULTURAL RESOURCES ANALYSIS"]
["","",null,null,null,null,null,null,null,null,null,null,null,null,null,null,null,null,null,null,null,null,null,{"$f":"IF(B160=\"\",0,IF(B160=\"REPORT\",\"\",IF((SUM(D160:W160)=0),0,SUM(D160:W160))))","v":0},"",null,null,null,null,null,null,null,"","",null,null,null,null,null,null,null,null,null,"F.5.a","Phase 1 Historic Architectural Analysis",14,"REPORT"]
["","",null,null,null,null,null,null,null,null,null,null,null,null,null,null,null,null,null,null,null,null,null,{"$f":"IF(B161=\"\",0,IF(B161=\"ARCHAEOLOGICAL ANALYSIS\",\"\",IF((SUM(D161:W161)=0),0,SUM(D161:W161))))","v":0},"",null,null,null,null,null,null,null,"","",null,null,null,null,null,null,null,null,null,"F.5.b","ARCHAEOLOGICAL ANALYSIS",null,"Prepare draft report (electronic version only) for NCDOT review"]
["","",null,null,null,null,null,null,null,null,null,null,null,null,null,null,null,null,null,null,null,null,null,{"$f":"IF(B162=\"\",0,IF((SUM(D162:W162)=0),0,SUM(D162:W162)))","v":0},"",null,null,null,null,null,null,null,"","",null,null,null,null,null,null,null,null,null,null,"Conduct Background Research of information from NC OSA/ SHPO",null,"Revise per NCDOT comments"]
["","",null,null,null,null,null,null,null,null,null,null,null,null,null,null,null,null,null,null,null,null,null,0,"",null,null,null,null,null,null,null,"","",null,null,null,null,null,null,null,null,null,null,"Collect previously recorded sites and surveys in study area",null,"Prepare final report"]
["","",null,null,null,null,null,null,null,null,null,null,null,null,null,null,null,null,null,null,null,null,null,0,"",null,null,null,null,null,null,null,"","",null,null,null,null,null,null,null,null,null,null,"Prepare Archaeological Overview Report"]
["","",null,null,null,null,null,null,null,null,null,null,null,null,null,null,null,null,null,null,null,null,null,0,"",null,null,null,null,null,null,null,"","",null,null,null,null,null,null,null,null,null,null," known archaeological resources in alternatives or study area"]
["","",null,null,null,null,null,null,null,null,null,null,null,null,null,null,null,null,null,null,null,null,null,0,"",null,null,null,null,null,null,null,"","",null,null,null,null,null,null,null,null,null,null," sites of value for reasons other than recoverable information"]
["","",null,null,null,null,null,null,null,null,null,null,null,null,null,null,null,null,null,null,null,null,null,0,"",null,null,null,null,null,null,null,"","",null,null,null,null,null,null,null,null,null,null," assessment of potential for archaeological sites in areas not previously surveyed"]
["","",null,null,null,null,null,null,null,null,null,null,null,null,null,null,null,null,null,null,null,null,null,0,"",null,null,null,null,null,null,null,"","",null,null,null,null,null,null,null,null,null,null," recommendations regarding need for archaeological survey"]
["","",null,null,null,null,null,null,null,null,null,null,null,null,null,null,null,null,null,null,null,null,null,{"$f":"IF(B169=\"\",0,IF(B169=\"PROJECT COORDINATION\",\"\",IF((SUM(D169:W169)=0),0,SUM(D169:W169))))","v":0},"",null,null,null,null,null,null,null,"","",null,null,null,null,null,null,null,null,null,null,"Graphics showing alternatives, previously studied areas, and known sites",15,"PROJECT COORDINATION"]
["","",null,null,null,null,null,null,null,null,null,null,null,null,null,null,null,null,null,null,null,null,null,{"$f":"IF(B170=\"\",0,IF((SUM(D170:W170)=0),0,SUM(D170:W170)))","v":0},"",null,null,null,null,null,null,null,"","",null,null,null,null,null,null,null,null,null,null,"Submit Draft Archaeological Overview Report",null,"Coordinate internally with staff and subconsultants"]
["","",null,null,null,null,null,null,null,null,null,null,null,null,null,null,null,null,null,null,null,null,null,0,"",null,null,null,null,null,null,null,"","",null,null,null,null,null,null,null,null,null,null,"Address NCDOT comments on Draft Archaeological Overview Report"]
["","",null,null,null,null,null,null,null,null,null,null,null,null,null,null,null,null,null,null,null,null,null,0,"",null,null,null,null,null,null,null,"","",null,null,null,null,null,null,null,null,null,null,"Submit Final Archaeological Overview Report"]
["","",null,null,null,null,null,null,null,null,null,null,null,null,null,null,null,null,null,null,null,null,null,0,"",null,null,null,null,null,null,null,"","",null,null,null,null,null,null,null,null,null,null,"Meeting attendance and coordination"]
["","",null,null,null,null,null,null,null,null,null,null,null,null,null,null,null,null,null,null,null,null,null,0,"",null,null,null,null,null,null,null,"","",null,null,null,null,null,null,null,null,null,"F.5.c"]
["","",null,null,null,null,null,null,null,null,null,null,null,null,null,null,null,null,null,null,null,null,null,0,"",null,null,null,null,null,null,null,"","",null,null,null,null,null,null,null,null,null,"F.5.d"]
["","",null,null,null,null,null,null,null,null,null,null,null,null,null,null,null,null,null,null,null,null,null,{"$f":"IF(B176=\"\",0,IF(B176=\"TRUCK ALTERNATIVE ROUTE ANALYSIS\",\"\",IF((SUM(D176:W176)=0),0,SUM(D176:W176))))","v":0},"",null,null,null,null,null,null,null,"","",null,null,null,null,null,null,null,null,null,"F.5.e",null,16,"TRUCK ALTERNATIVE ROUTE ANALYSIS"]
["","",null,null,null,null,null,null,null,null,null,null,null,null,null,null,null,null,null,null,null,null,null,{"$f":"IF(B177=\"\",0,IF((SUM(D177:W177)=0),0,SUM(D177:W177)))","v":0},"",null,null,null,null,null,null,null,"","",null,null,null,null,null,null,null,null,null,"F.5.f",null,null,"Truck Alternative Route Analysis (XX to the Port)"]
["","",null,null,null,null,null,null,null,null,null,null,null,null,null,null,null,null,null,null,null,null,null,{"$f":"IF(B178=\"\",0,IF((SUM(D178:W178)=0),0,SUM(D178:W178)))","v":0},"",null,null,null,null,null,null,null,"","",null,null,null,null,null,null,null,null,null,"F.5.g"]
["","",null,null,null,null,null,null,null,null,null,null,null,null,null,null,null,null,null,null,null,null,null,{"$f":"IF(B179=\"\",0,IF(B179=\"OTHER PHYSICAL FEATURES ANALYSIS\",\"\",IF((SUM(D179:W179)=0),0,SUM(D179:W179))))","v":0},"",null,null,null,null,null,null,null,"","",null,null,null,null,null,null,null,null,null,"G","OTHER PHYSICAL FEATURES ANALYSIS"]
["","",null,null,null,null,null,null,null,null,null,null,null,null,null,null,null,null,null,null,null,null,null,{"$f":"IF(B180=\"\",0,IF((SUM(D180:W180)=0),0,SUM(D180:W180)))","v":0},"",null,null,null,null,null,null,null,"","",null,null,null,null,null,null,null,null,null,"G.1","Identify Potential Floodplain and Floodway Impacts"]
["","",null,null,null,null,null,null,null,null,null,null,null,null,null,null,null,null,null,null,null,null,null,{"$f":"IF(B181=\"\",0,IF((SUM(D181:W181)=0),0,SUM(D181:W181)))","v":0},"",null,null,null,null,null,null,null,"","",null,null,null,null,null,null,null,null,null,"G.2","Farmland Assessment"]
["","",null,null,null,null,null,null,null,null,null,null,null,null,null,null,null,null,null,null,null,null,null,{"$f":"IF(B182=\"\",0,IF(B182=\"FEASIBILITY STUDY\",\"\",IF((SUM(D182:W182)=0),0,SUM(D182:W182))))","v":0},"",null,null,null,null,null,null,null,"","",null,null,null,null,null,null,null,null,null,"G.3","Hazardous Materials Assessment",17,"FEASIBILITY STUDY"]
["","",null,null,null,null,null,null,null,null,null,null,null,null,null,null,null,null,null,null,null,null,null,{"$f":"IF(B183=\"\",0,IF((SUM(D183:W183)=0),0,SUM(D183:W183)))","v":0},"",null,null,null,null,null,null,null,"","",null,null,null,null,null,null,null,null,null,"G.4","Visual Impact Analysis"]
["","",null,null,null,null,null,null,null,null,null,null,null,null,null,null,null,null,null,null,null,null,null,0,"",null,null,null,null,null,null,null,"","",null,null,null,null,null,null,null,null,null,"G.5","Identify Potential Public Utility Impacts"]
["","",null,null,null,null,null,null,null,null,null,null,null,null,null,null,null,null,null,null,null,null,null,0,"",null,null,null,null,null,null,null,"","",null,null,null,null,null,null,null,null,null,"G.6"]
["","",null,null,null,null,null,null,null,null,null,null,null,null,null,null,null,null,null,null,null,null,null,0,"",null,null,null,null,null,null,null,"","",null,null,null,null,null,null,null,null,null,"G.7"]
["","",null,null,null,null,null,null,null,null,null,null,null,null,null,null,null,null,null,null,null,null,null,0,"",null,null,null,null,null,null,null,"","",null,null,null,null,null,null,null,null,null,"G.8"]
["","",null,null,null,null,null,null,null,null,null,null,null,null,null,null,null,null,null,null,null,null,null,0,"",null,null,null,null,null,null,null,"","",null,null,null,null,null,null,null,null,null,"G.9"]
["","",null,null,null,null,null,null,null,null,null,null,null,null,null,null,null,null,null,null,null,null,null,0,"",null,null,null,null,null,null,null,"","",null,null,null,null,null,null,null,null,null,"G.10"]
["","",null,null,null,null,null,null,null,null,null,null,null,null,null,null,null,null,null,null,null,null,null,{"$f":"IF(B190=\"\",0,IF(B190=\"SECTION 4(F) AND SECTION 6(F)\",\"\",IF((SUM(D190:W190)=0),0,SUM(D190:W190))))","v":0},"",null,null,null,null,null,null,null,"","",null,null,null,null,null,null,null,null,null,"H","SECTION 4(F) AND SECTION 6(F)"]
["","",null,null,null,null,null,null,null,null,null,null,null,null,null,null,null,null,null,null,null,null,null,{"$f":"IF(B191=\"\",0,IF((SUM(D191:W191)=0),0,SUM(D191:W191)))","v":0},"",null,null,null,null,null,null,null,"","",null,null,null,null,null,null,null,null,null,"H.1"]
["","",null,null,null,null,null,null,null,null,null,null,null,null,null,null,null,null,null,null,null,null,null,{"$f":"IF(B192=\"\",0,IF((SUM(D192:W192)=0),0,SUM(D192:W192)))","v":0},"",null,null,null,null,null,null,null,"","",null,null,null,null,null,null,null,null,null,"H.2"]
["","",null,null,null,null,null,null,null,null,null,null,null,null,null,null,null,null,null,null,null,null,null,{"$f":"IF(B193=\"\",0,IF((SUM(D193:W193)=0),0,SUM(D193:W193)))","v":0},"",null,null,null,null,null,null,null,"","",null,null,null,null,null,null,null,null,null,"H.3"]
["","",null,null,null,null,null,null,null,null,null,null,null,null,null,null,null,null,null,null,null,null,null,{"$f":"IF(B194=\"\",0,IF((SUM(D194:W194)=0),0,SUM(D194:W194)))","v":0},"",null,null,null,null,null,null,null,"","",null,null,null,null,null,null,null,null,null,"H.4"]
["","",null,null,null,null,null,null,null,null,null,null,null,null,null,null,null,null,null,null,null,null,null,{"$f":"IF(B195=\"\",0,IF((SUM(D195:W195)=0),0,SUM(D195:W195)))","v":0},"",null,null,null,null,null,null,null,"","",null,null,null,null,null,null,null,null,null,"H.5"]
["","",null,null,null,null,null,null,null,null,null,null,null,null,null,null,null,null,null,null,null,null,null,{"$f":"IF(B196=\"\",0,IF(B196=\"DRAFT ENVIRONMENTAL DOCUMENT\",\"\",IF((SUM(D196:W196)=0),0,SUM(D196:W196))))","v":0},"",null,null,null,null,null,null,null,"","",null,null,null,null,null,null,null,null,null,"I","DRAFT ENVIRONMENTAL DOCUMENT"]
["","",null,null,null,null,null,null,null,null,null,null,null,null,null,null,null,null,null,null,null,null,null,{"$f":"IF(B197=\"\",0,IF((SUM(D197:W197)=0),0,SUM(D197:W197)))","v":0},"",null,null,null,null,null,null,null,"","",null,null,null,null,null,null,null,null,null,"I.1","Purpose and Need"]
["","",null,null,null,null,null,null,null,null,null,null,null,null,null,null,null,null,null,null,null,null,null,0,"",null,null,null,null,null,null,null,"","",null,null,null,null,null,null,null,null,null,"I.2","Alternatives Considered"]
["","",null,null,null,null,null,null,null,null,null,null,null,null,null,null,null,null,null,null,null,null,null,0,"",null,null,null,null,null,null,null,"","",null,null,null,null,null,null,null,null,null,"I.3","Human Environment"]
["","",null,null,null,null,null,null,null,null,null,null,null,null,null,null,null,null,null,null,null,null,null,0,"",null,null,null,null,null,null,null,"","",null,null,null,null,null,null,null,null,null,"I.4","Physical Environment"]
["","",null,null,null,null,null,null,null,null,null,null,null,null,null,null,null,null,null,null,null,null,null,0,"",null,null,null,null,null,null,null,"","",null,null,null,null,null,null,null,null,null,"I.5","Cultural Resources"]
["","",null,null,null,null,null,null,null,null,null,null,null,null,null,null,null,null,null,null,null,null,null,0,"",null,null,null,null,null,null,null,"","",null,null,null,null,null,null,null,null,null,"I.6","Natural Resources"]
["","",null,null,null,null,null,null,null,null,null,null,null,null,null,null,null,null,null,null,null,null,null,0,"",null,null,null,null,null,null,null,"","",null,null,null,null,null,null,null,null,null,"I.7","Environmental Impacts"]
[{"$f":"IF(AG204=0,\"\",AG204)","v":""},"",null,null,null,null,null,null,null,null,null,null,null,null,null,null,null,null,null,null,null,null,null,0,"",null,null,null,null,null,null,null,{"$f":"IF($AA$4=\"Select Task Type\",\"\",IF($AA$4=\"Grade Separation\",AJ204,IF($AA$4=\"CEI\",AL204,IF($AA$4=\"Track Design\",AN204,IF($AA$4=\"Signal Design\",AP204,IF($AA$4=\"Environmental\",AR204,IF($AA$4=\"Planning\",AT204,\"\")))))))","v":""},"",null,null,null,null,null,null,null,null,null,"I.8","Indirect and Cumulative Effects"]
["","",null,null,null,null,null,null,null,null,null,null,null,null,null,null,null,null,null,null,null,null,null,0,{"$f":"IF(SUM(D205:W205)=0,\"\",((SUM(D205:W205))/$X$261))","v":""},null,null,null,null,null,null,null,"","",null,null,null,null,null,null,null,null,null,"I.9","Other Impact Considerations"]
["","",null,null,null,null,null,null,null,null,null,null,null,null,null,null,null,null,null,null,null,null,null,0,"",null,null,null,null,null,null,null,"","",null,null,null,null,null,null,null,null,null,"I.10","Public Involvement ad Agency Coordination"]
["","",null,null,null,null,null,null,null,null,null,null,null,null,null,null,null,null,null,null,null,null,null,0,"",null,null,null,null,null,null,null,"","",null,null,null,null,null,null,null,null,null,"I.11","Compile Draft EA & Final EA"]
["","",null,null,null,null,null,null,null,null,null,null,null,null,null,null,null,null,null,null,null,null,null,0,"",null,null,null,null,null,null,null,"","",null,null,null,null,null,null,null,null,null,"I.12","Review and Distribution of EA"]
["","",null,null,null,null,null,null,null,null,null,null,null,null,null,null,null,null,null,null,null,null,null,0,"",null,null,null,null,null,null,null,"","",null,null,null,null,null,null,null,null,null,"I.13"]
["","",null,null,null,null,null,null,null,null,null,null,null,null,null,null,null,null,null,null,null,null,null,0,"",null,null,null,null,null,null,null,"","",null,null,null,null,null,null,null,null,null,"I.14"]
["","",null,null,null,null,null,null,null,null,null,null,null,null,null,null,null,null,null,null,null,null,null,0,"",null,null,null,null,null,null,null,"","",null,null,null,null,null,null,null,null,null,"I.15"]
["","",null,null,null,null,null,null,null,null,null,null,null,null,null,null,null,null,null,null,null,null,null,0,"",null,null,null,null,null,null,null,"","",null,null,null,null,null,null,null,null,null,"I.16"]
["","",null,null,null,null,null,null,null,null,null,null,null,null,null,null,null,null,null,null,null,null,null,0,"",null,null,null,null,null,null,null,"","",null,null,null,null,null,null,null,null,null,"I.17"]
["","",null,null,null,null,null,null,null,null,null,null,null,null,null,null,null,null,null,null,null,null,null,{"$f":"IF(B214=\"\",0,IF(B214=\"FINAL ENVIRONMENTAL DOCUMENT\",\"\",IF((SUM(D214:W214)=0),0,SUM(D214:W214))))","v":0},"",null,null,null,null,null,null,null,"","",null,null,null,null,null,null,null,null,null,"J","FINAL ENVIRONMENTAL DOCUMENT"]
["","",null,null,null,null,null,null,null,null,null,null,null,null,null,null,null,null,null,null,null,null,null,{"$f":"IF(B215=\"\",0,IF((SUM(D215:W215)=0),0,SUM(D215:W215)))","v":0},"",null,null,null,null,null,null,null,"","",null,null,null,null,null,null,null,null,null,"J.1","Compile FONSI"]
["","",null,null,null,null,null,null,null,null,null,null,null,null,null,null,null,null,null,null,null,null,null,0,"",null,null,null,null,null,null,null,"","",null,null,null,null,null,null,null,null,null,"J.2","Alternative Selection"]
["","",null,null,null,null,null,null,null,null,null,null,null,null,null,null,null,null,null,null,null,null,null,0,"",null,null,null,null,null,null,null,"","",null,null,null,null,null,null,null,null,null,"J.3","Prepare Draft & Final Finding of No Significant Impact (FONSI)"]
["","",null,null,null,null,null,null,null,null,null,null,null,null,null,null,null,null,null,null,null,null,null,0,"",null,null,null,null,null,null,null,"","",null,null,null,null,null,null,null,null,null,"J.4"]
["","",null,null,null,null,null,null,null,null,null,null,null,null,null,null,null,null,null,null,null,null,null,0,"",null,null,null,null,null,null,null,"","",null,null,null,null,null,null,null,null,null,"J.5"]
["","",null,null,null,null,null,null,null,null,null,null,null,null,null,null,null,null,null,null,null,null,null,0,"",null,null,null,null,null,null,null,"","",null,null,null,null,null,null,null,null,null,"J.6"]
["","",null,null,null,null,null,null,null,null,null,null,null,null,null,null,null,null,null,null,null,null,null,0,"",null,null,null,null,null,null,null,"","",null,null,null,null,null,null,null,null,null,"J.7"]
["","",null,null,null,null,null,null,null,null,null,null,null,null,null,null,null,null,null,null,null,null,null,0,"",null,null,null,null,null,null,null,"","",null,null,null,null,null,null,null,null,null,"J.8"]
["","",null,null,null,null,null,null,null,null,null,null,null,null,null,null,null,null,null,null,null,null,null,{"$f":"IF(B223=\"\",0,IF(B223=\"PUBLIC INVOLVEMENT\",\"\",IF((SUM(D223:W223)=0),0,SUM(D223:W223))))","v":0},"",null,null,null,null,null,null,null,"","",null,null,null,null,null,null,null,null,null,"K","PUBLIC INVOLVEMENT"]
["","",null,null,null,null,null,null,null,null,null,null,null,null,null,null,null,null,null,null,null,null,null,{"$f":"IF(B224=\"\",0,IF((SUM(D224:W224)=0),0,SUM(D224:W224)))","v":0},"",null,null,null,null,null,null,null,"","",null,null,null,null,null,null,null,null,null,"K.1","Informal Stakeholder Coordination"]
["","",null,null,null,null,null,null,null,null,null,null,null,null,null,null,null,null,null,null,null,null,null,0,"",null,null,null,null,null,null,null,"","",null,null,null,null,null,null,null,null,null,"K.2","Public Information Meeting"]
["","",null,null,null,null,null,null,null,null,null,null,null,null,null,null,null,null,null,null,null,null,null,0,"",null,null,null,null,null,null,null,"","",null,null,null,null,null,null,null,null,null,"K.3","Public Hearing"]
["","",null,null,null,null,null,null,null,null,null,null,null,null,null,null,null,null,null,null,null,null,null,0,"",null,null,null,null,null,null,null,"","",null,null,null,null,null,null,null,null,null,"K.4","Local Offical Information Meeting"]
["","",null,null,null,null,null,null,null,null,null,null,null,null,null,null,null,null,null,null,null,null,null,0,"",null,null,null,null,null,null,null,"","",null,null,null,null,null,null,null,null,null,"K.5","Mailer"]
["","",null,null,null,null,null,null,null,null,null,null,null,null,null,null,null,null,null,null,null,null,null,0,"",null,null,null,null,null,null,null,"","",null,null,null,null,null,null,null,null,null,"K.6","Meeting Maps"]
["","",null,null,null,null,null,null,null,null,null,null,null,null,null,null,null,null,null,null,null,null,null,0,"",null,null,null,null,null,null,null,"","",null,null,null,null,null,null,null,null,null,"K.7","Meeting Displays"]
["","",null,null,null,null,null,null,null,null,null,null,null,null,null,null,null,null,null,null,null,null,null,0,"",null,null,null,null,null,null,null,"","",null,null,null,null,null,null,null,null,null,"K.8"]
["","",null,null,null,null,null,null,null,null,null,null,null,null,null,null,null,null,null,null,null,null,null,0,"",null,null,null,null,null,null,null,"","",null,null,null,null,null,null,null,null,null,"K.9"]
["","",null,null,null,null,null,null,null,null,null,null,null,null,null,null,null,null,null,null,null,null,null,0,"",null,null,null,null,null,null,null,"","",null,null,null,null,null,null,null,null,null,"K.10"]
["","",null,null,null,null,null,null,null,null,null,null,null,null,null,null,null,null,null,null,null,null,null,0,"",null,null,null,null,null,null,null,"","",null,null,null,null,null,null,null,null,null,"K.11"]
["","",null,null,null,null,null,null,null,null,null,null,null,null,null,null,null,null,null,null,null,null,null,0,"",null,null,null,null,null,null,null,"","",null,null,null,null,null,null,null,null,null,"K.12"]
["","",null,null,null,null,null,null,null,null,null,null,null,null,null,null,null,null,null,null,null,null,null,{"$f":"IF(B236=\"\",0,IF(B236=\"PROJECT COORDINATION AND MANAGEMENT\",\"\",IF((SUM(D236:W236)=0),0,SUM(D236:W236))))","v":0},"",null,null,null,null,null,null,null,"","",null,null,null,null,null,null,null,null,null,"L","PROJECT COORDINATION AND MANAGEMENT"]
["","",null,null,null,null,null,null,null,null,null,null,null,null,null,null,null,null,null,null,null,null,null,{"$f":"IF(B237=\"\",0,IF((SUM(D237:W237)=0),0,SUM(D237:W237)))","v":0},"",null,null,null,null,null,null,null,"","",null,null,null,null,null,null,null,null,null,"L.1","Project Schedule"]
["","",null,null,null,null,null,null,null,null,null,null,null,null,null,null,null,null,null,null,null,null,null,0,"",null,null,null,null,null,null,null,"","",null,null,null,null,null,null,null,null,null,"L.2","Coordination with NCDOT"]
["","",null,null,null,null,null,null,null,null,null,null,null,null,null,null,null,null,null,null,null,null,null,0,"",null,null,null,null,null,null,null,"","",null,null,null,null,null,null,null,null,null,"L.3","General Coordination"]
["","",null,null,null,null,null,null,null,null,null,null,null,null,null,null,null,null,null,null,null,null,null,0,"",null,null,null,null,null,null,null,"","",null,null,null,null,null,null,null,null,null,"L.4"]
["","",null,null,null,null,null,null,null,null,null,null,null,null,null,null,null,null,null,null,null,null,null,0,"",null,null,null,null,null,null,null,"","",null,null,null,null,null,null,null,null,null,"L.5"]
["","",null,null,null,null,null,null,null,null,null,null,null,null,null,null,null,null,null,null,null,null,null,0,"",null,null,null,null,null,null,null,"","",null,null,null,null,null,null,null,null,null,"L.6"]
["","",null,null,null,null,null,null,null,null,null,null,null,null,null,null,null,null,null,null,null,null,null,0,"",null,null,null,null,null,null,null,"","",null,null,null,null,null,null,null,null,null,"L.7"]
["","",null,null,null,null,null,null,null,null,null,null,null,null,null,null,null,null,null,null,null,null,null,0,"",null,null,null,null,null,null,null,"","",null,null,null,null,null,null,null,null,null,"L.8"]
["","",null,null,null,null,null,null,null,null,null,null,null,null,null,null,null,null,null,null,null,null,null,0,"",null,null,null,null,null,null,null,"",""]
["","",null,null,null,null,null,null,null,null,null,null,null,null,null,null,null,null,null,null,null,null,null,0,"",null,null,null,null,null,null,null,"",""]
["","",null,null,null,null,null,null,null,null,null,null,null,null,null,null,null,null,null,null,null,null,null,0,"",null,null,null,null,null,null,null,"",""]
["","",null,null,null,null,null,null,null,null,null,null,null,null,null,null,null,null,null,null,null,null,null,0,"",null,null,null,null,null,null,null,"",""]
["","",null,null,null,null,null,null,null,null,null,null,null,null,null,null,null,null,null,null,null,null,null,0,"",null,null,null,null,null,null,null,"",""]
["","",null,null,null,null,null,null,null,null,null,null,null,null,null,null,null,null,null,null,null,null,null,0,"",null,null,null,null,null,null,null,"",""]
["","",null,null,null,null,null,null,null,null,null,null,null,null,null,null,null,null,null,null,null,null,null,0,"",null,null,null,null,null,null,null,"",""]
["","",null,null,null,null,null,null,null,null,null,null,null,null,null,null,null,null,null,null,null,null,null,0,"",null,null,null,null,null,null,null,"",""]
["","",null,null,null,null,null,null,null,null,null,null,null,null,null,null,null,null,null,null,null,null,null,0,"",null,null,null,null,null,null,null,"",""]
["","",null,null,null,null,null,null,null,null,null,null,null,null,null,null,null,null,null,null,null,null,null,0,"",null,null,null,null,null,null,null,"",""]
["","",null,null,null,null,null,null,null,null,null,null,null,null,null,null,null,null,null,null,null,null,null,0,"",null,null,null,null,null,null,null,"",""]
["","",null,null,null,null,null,null,null,null,null,null,null,null,null,null,null,null,null,null,null,null,null,0,"",null,null,null,null,null,null,null,"",""]
["","",null,null,null,null,null,null,null,null,null,null,null,null,null,null,null,null,null,null,null,null,null,0,"",null,null,null,null,null,null,null,"",""]
["","",null,null,null,null,null,null,null,null,null,null,null,null,null,null,null,null,null,null,null,null,null,0,"",null,null,null,null,null,null,null,"",""]
["","",null,null,null,null,null,null,null,null,null,null,null,null,null,null,null,null,null,null,null,null,null,0,{"$f":"IF(SUM(D259:W259)=0,\"\",((SUM(D259:W259))/$X$261))","v":""},null,null,null,null,null,null,null,"",""]
["","",null,null,null,null,null,null,null,null,null,null,null,null,null,null,null,null,null,null,null,null,null,0,{"$f":"IF(SUM(D260:W260)=0,\"\",((SUM(D260:W260))/$X$261))","v":""},null,null,null,null,null,null,null,"",""]
[null,"TOTAL WORKHOURS/CATEGORY:",null,{"$f":"SUM(D11:D260)","v":0},0,0,0,0,0,0,0,0,0,0,0,0,0,0,0,0,0,0,0,{"$f":"SUM(D261:W261)","v":0},{"$f":"SUM(Y11:Y260)","v":0},{"$f":"SUM(Z11:Z260)","v":0}]
[null,"TOTAL WORKDAYS/CATEGORY:",null,{"$f":"D261/8","v":0},{"$f":"E261/8","v":0},0,0,0,0,0,0,0,0,0,0,0,0,0,0,0,0,0,0]
[null,"HOURLY SALARY RATE:",null,{"$f":"'PEF CLASSIFICATION SHEET'!E1277","v":0},{"$f":"'PEF CLASSIFICATION SHEET'!E1278","v":0},{"$f":"'PEF CLASSIFICATION SHEET'!E1279","v":0},{"$f":"'PEF CLASSIFICATION SHEET'!E1280","v":0},{"$f":"'PEF CLASSIFICATION SHEET'!E1281","v":0},{"$f":"'PEF CLASSIFICATION SHEET'!E1282","v":0},{"$f":"'PEF CLASSIFICATION SHEET'!E1283","v":0},{"$f":"'PEF CLASSIFICATION SHEET'!E1284","v":0},{"$f":"'PEF CLASSIFICATION SHEET'!E1285","v":0},{"$f":"'PEF CLASSIFICATION SHEET'!E1286","v":0},{"$f":"'PEF CLASSIFICATION SHEET'!E1287","v":0},{"$f":"'PEF CLASSIFICATION SHEET'!E1288","v":0},{"$f":"'PEF CLASSIFICATION SHEET'!E1289","v":0},{"$f":"'PEF CLASSIFICATION SHEET'!E1290","v":0},{"$f":"'PEF CLASSIFICATION SHEET'!E1291","v":0},{"$f":"'PEF CLASSIFICATION SHEET'!E1292","v":0},{"$f":"'PEF CLASSIFICATION SHEET'!E1293","v":0},{"$f":"'PEF CLASSIFICATION SHEET'!E1294","v":0},{"$f":"'PEF CLASSIFICATION SHEET'!E1295","v":0},{"$f":"'PEF CLASSIFICATION SHEET'!E1296","v":0}]
[null,"RATES PER DAY:",null,{"$f":"D263*8","v":0},0,0,0,0,0,0,0,0,0,0,0,0,0,0,0,0,0,0,0]
[null,"PAYROLL BURDEN:",null,{"$f":"SUM(D261*D263)","v":0},{"$f":"SUM(E261*E263)","v":0},0,0,0,0,0,0,0,0,0,0,0,0,0,0,0,0,0,0]
[null,"TOTAL WORKDAYS:",null,{"$f":"SUM(D262:W262)","v":0}]
[null,"TOTAL PAYROLL BURDEN:",null,{"$f":"SUM(D265:W265)","v":0}]
[null,"AVERAGE COST PER HOUR:",null,{"$f":"SUM(D267/(D266*8))","v":{"$error":"#DIV/0!"}}]
[null,"GENERAL OVERHEAD:",{"$f":"RAIL.SUB9_CONSULTANT_OVERHEAD","v":0},{"$f":"SUM(D267*C269)","v":0}]
[null,"SUBTOTAL:",null,{"$f":"SUM(D267+D269)","v":0}]
[null,"COMPARATIVE FEE:",{"$f":"RAIL.SUB9_CONSULTANT_FEE","v":0.09},{"$f":"SUM(D270*C271)","v":0}]
[null,"FACILITIES COST OF CAPITAL:",{"$f":"RAIL.SUB9_COSTofCAPITAL","v":0},{"$f":"SUM(D267*C272)","v":0}]
[null,"TOTAL:",null,{"$f":"SUM(D270:D272)","v":0}]
[null,"DIRECT EXPENSES:",null,{"$f":"RAIL.SUB9_DIRECT_NONSALARY_TOTAL","v":0}]
[null,"RAIL GRAND TOTAL:",null,{"$f":"SUM(D273:D274)","v":0}]

{"sheet":"Rail-Exp-Sub9","index":156,"n_rows":46,"n_cols":8,"rows_kept":46,"cut":false,"hidden":true,"merged":[[0,0,0,7],[1,3,1,7]]}
["RAIL--DIRECT EXPENSES - SUBCONSULTANT 9"]
["TIP NUMBER",{"$f":"TIP.NUMBER","v":0},"FIRM:",{"$f":"'Rail-Sub9'!G3","v":"CONSULTANT NAME"}]
[]
["GENERAL PROJECT WORK:","ITEM","QTY","DESCRIPTION",null,null,"UNIT COST "]
[null,"Travel:"]
[null,"Sedan",0,"Trip(s) @",0,"miles @",{"$f":"SEDAN","v":0.7},{"$f":"SUM(C6*E6*G6)","v":0}]
[null,"Carry All",0,"Trip(s) @",0,"miles @",{"$f":"CARRYALL","v":0.72},{"$f":"SUM(C7*E7*G7)","v":0}]
[null,"Car Rental",null,null,0,"days @ ",{"$f":"CARRENTAL","v":50},{"$f":"SUM(E8*G8)","v":0}]
[null,"Gas for Rental",null,null,0,"miles @",{"$f":"GASforRENTAL","v":0.2},{"$f":"SUM(E9*G9)","v":0}]
[null,"Parking:",0,"Trip(s) @",null,null,{"$f":"PARKING","v":3},{"$f":"SUM(C10*G10)","v":0}]
[null,"Per Diem:",0,"Breakfast",null,null,{"$f":"BREAKFAST","v":10.1},{"$f":"SUM(C11*G11)","v":0}]
[null,null,0,"Lunch",null,null,{"$f":"LUNCH","v":13.3},0]
[null,null,0,"Dinner",null,null,{"$f":"DINNER","v":23.1},0]
[null,null,0,"Lodging",null,null,{"$f":"LODGING_LUMP.SUM","v":95},0]
[null,"Reproduction:",0,"8 1/2 x 11 B & W Copies @",null,null,{"$f":"LETTERCOPIES","v":0.14000000000000001},0]
[null,null,0,"11 x 17 B & W Copies @",null,null,{"$f":"LEDGERCOPIES","v":0.34},0]
[null,null,0,"8 1/2 x 11 Color Copies @",null,null,{"$f":"LETTERCOLOR","v":0.83},0]
[null,null,0,"11 x 17 Color Copies @",null,null,{"$f":"LEDGERCOLOR","v":1.66},0]
[null,null,0,"SQ. FT. of Plots (B & W or Color)",null,"<65 SQ. FT.*",{"$f":"ROLLPLOTSshort","v":6.5},0]
[null,null,0,"SQ. FT. of Plots (B & W or Color)",null,">65 SQ. FT.*",{"$f":"ROLLPLOTSlong","v":1.5},0]
[null,null,0,"Cover(s) @",null,null,{"$f":"COVERS","v":0.5},0]
[null,null,0,"Binder(s) @",null,null,{"$f":"BINDERS","v":0.5},0]
[null,null,0,"Blueprints - 8 1/2 x 11 @",null,null,{"$f":"BLUEPRINTSLETTER","v":0.35},0]
[null,null,0,"Blueprints - 42 x 72 @",null,null,{"$f":"BLUEPRINTSLARGE","v":1.3},0]
[null,"Film and Developing:",0,"Roll(s) @",null,null,{"$f":"FILM","v":20},0]
[null,null,null,null,null,"Subtotal",null,{"$f":"SUM(H6:H25)","v":0}]
["MAPS AND DOCUMENTS:","ITEM","QTY","DESCRIPTION",null,null,"UNIT COST "]
[null,"County Tax Maps:",0,"Map(s) @",null,null,{"$f":"County_Tax_Maps","v":7},{"$f":"SUM(C28*G28)","v":0}]
[null,"USGS Maps:",0,"Map(s) @",null,null,{"$f":"USGSMAPS","v":7},{"$f":"SUM(C29*G29)","v":0}]
[null,null,null,null,null,"Subtotal",null,{"$f":"SUM(H28:H29)","v":0}]
["Miscellaneous Other","ITEM","QTY","DESCRIPTION",null,null,"UNIT COST "]
[null,null,null,null,null,null,null,{"$f":"SUM(C32*G32)","v":0}]
[null,null,null,null,null,null,null,{"$f":"SUM(C33*G33)","v":0}]
[null,null,null,null,null,null,null,0]
[null,null,null,null,null,null,null,0]
[null,null,null,null,null,null,null,0]
[null,null,null,null,null,null,null,0]
[null,null,null,null,null,null,null,0]
[null,null,null,null,null,null,null,{"$f":"SUM(C39*G39)","v":0}]
[null,null,null,null,null,null,null,{"$f":"SUM(C40*G40)","v":0}]
[null,null,null,null,null,null,null,{"$f":"SUM(C41*G41)","v":0}]
[null,null,null,null,null,"Subtotal",null,{"$f":"SUM(H32:H41)","v":0}]
[]
[null,null,null,null,null,"TOTAL",null,{"$f":"SUM(H26+H30+H42)","v":0}]
[]
[null,"* Sum of all plots "]

{"sheet":"Rail-Sub10","index":157,"n_rows":275,"n_cols":47,"rows_kept":275,"cut":false,"hidden":true,"merged":[[0,0,1,13],[2,1,2,4],[2,6,2,7],[2,10,2,11],[2,15,2,16],[3,1,3,4],[3,6,3,7],[3,10,3,11],[3,15,3,16],[6,12,9,12],[6,13,9,13],[6,14,9,14],[6,15,9,15],[6,16,9,16],[6,17,9,17],[4,3,4,22],[6,3,9,3],[6,4,9,4],[6,5,9,5],[6,6,9,6],[6,7,9,7],[6,8,9,8],[6,9,9,9],[6,10,9,10],[6,11,9,11],[10,26,10,27],[11,26,11,27],[12,26,12,27],[13,26,13,27],[14,26,14,27],[15,26,15,27],[6,18,9,18],[6,19,9,19],[6,20,9,20],[6,21,9,21],[6,22,9,22],[8,26,8,27],[22,26,22,27],[23,26,23,27],[24,26,24,27],[25,26,25,27],[26,26,26,27],[27,26,27,27],[16,26,16,27],[17,26,17,27],[18,26,18,27],[19,26,19,27],[20,26,20,27],[21,26,21,27],[34,26,34,27],[35,26,35,27],[36,26,36,27],[37,26,37,27],[38,26,38,27],[39,26,39,27],[28,26,28,27],[29,26,29,27],[30,26,30,27],[31,26,31,27],[32,26,32,27],[33,26,33,27],[46,26,46,27],[47,26,47,27],[48,26,48,27],[49,26,49,27],[50,26,50,27],[51,26,51,27],[40,26,40,27],[41,26,41,27],[42,26,42,27],[43,26,43,27],[44,26,44,27],[45,26,45,27],[58,26,58,27],[59,26,59,27],[60,26,60,27],[61,26,61,27],[62,26,62,27],[63,26,63,27],[52,26,52,27],[53,26,53,27],[54,26,54,27],[55,26,55,27],[56,26,56,27],[57,26,57,27],[70,26,70,27],[71,26,71,27],[72,26,72,27],[73,26,73,27],[74,26,74,27],[75,26,75,27],[64,26,64,27],[65,26,65,27],[66,26,66,27],[67,26,67,27],[68,26,68,27],[69,26,69,27],[242,26,242,27],[241,26,241,27],[82,26,82,27],[83,26,83,27],[84,26,84,27],[76,26,76,27],[77,26,77,27],[78,26,78,27],[79,26,79,27],[80,26,80,27],[81,26,81,27],[217,26,217,27],[218,26,218,27],[219,26,219,27],[220,26,220,27],[221,26,221,27],[222,26,222,27],[223,26,223,27],[224,26,224,27],[225,26,225,27],[226,26,226,27],[227,26,227,27],[228,26,228,27],[238,26,238,27],[246,26,246,27],[247,26,247,27],[248,26,248,27],[249,26,249,27],[250,26,250,27],[251,26,251,27],[243,26,243,27],[244,26,244,27],[245,26,245,27],[274,1,275,1],[274,3,275,4],[278,8,278,13],[279,8,279,9],[279,10,279,11],[252,26,252,27],[253,26,253,27],[254,26,254,27],[255,26,255,27],[256,26,256,27],[257,26,257,27],[280,8,280,9],[280,10,280,11],[283,8,283,13],[284,8,284,9],[284,10,284,11],[285,8,285,9],[285,10,285,11],[258,26,258,27],[259,26,259,27],[239,26,239,27],[240,26,240,27],[229,26,229,27],[230,26,230,27],[231,26,231,27],[232,26,232,27],[233,26,233,27],[234,26,234,27],[235,26,235,27],[236,26,236,27],[237,26,237,27],[151,26,151,27],[152,26,152,27],[153,26,153,27],[154,26,154,27],[155,26,155,27],[156,26,156,27],[157,26,157,27],[158,26,158,27],[159,26,159,27],[160,26,160,27],[161,26,161,27],[162,26,162,27],[163,26,163,27],[164,26,164,27],[165,26,165,27],[166,26,166,27],[167,26,167,27],[168,26,168,27],[169,26,169,27],[170,26,170,27],[171,26,171,27],[172,26,172,27],[173,26,173,27],[174,26,174,27],[175,26,175,27],[176,26,176,27],[177,26,177,27],[178,26,178,27],[179,26,179,27],[180,26,180,27],[181,26,181,27],[182,26,182,27],[183,26,183,27],[184,26,184,27],[185,26,185,27],[186,26,186,27],[187,26,187,27],[188,26,188,27],[189,26,189,27],[190,26,190,27],[191,26,191,27],[192,26,192,27],[193,26,193,27],[194,26,194,27],[195,26,195,27],[196,26,196,27],[197,26,197,27],[198,26,198,27],[199,26,199,27],[200,26,200,27],[201,26,201,27],[202,26,202,27],[203,26,203,27],[204,26,204,27],[205,26,205,27],[206,26,206,27],[207,26,207,27],[208,26,208,27],[209,26,209,27],[210,26,210,27],[211,26,211,27],[212,26,212,27],[213,26,213,27],[214,26,214,27],[215,26,215,27],[216,26,216,27],[85,26,85,27],[86,26,86,27],[87,26,87,27],[88,26,88,27],[89,26,89,27],[90,26,90,27],[91,26,91,27],[92,26,92,27],[93,26,93,27],[94,26,94,27],[95,26,95,27],[96,26,96,27],[97,26,97,27],[98,26,98,27],[99,26,99,27],[100,26,100,27],[101,26,101,27],[102,26,102,27],[103,26,103,27],[104,26,104,27],[105,26,105,27],[121,26,121,27],[122,26,122,27],[123,26,123,27],[106,26,106,27],[107,26,107,27],[108,26,108,27],[109,26,109,27],[110,26,110,27],[111,26,111,27],[112,26,112,27],[113,26,113,27],[114,26,114,27],[149,26,149,27],[150,26,150,27],[133,26,133,27],[134,26,134,27],[135,26,135,27],[136,26,136,27],[137,26,137,27],[138,26,138,27],[139,26,139,27],[140,26,140,27],[141,26,141,27],[3,26,3,27],[9,0,9,1],[142,26,142,27],[143,26,143,27],[144,26,144,27],[145,26,145,27],[146,26,146,27],[147,26,147,27],[148,26,148,27],[124,26,124,27],[125,26,125,27],[126,26,126,27],[127,26,127,27],[128,26,128,27],[129,26,129,27],[130,26,130,27],[131,26,131,27],[132,26,132,27],[115,26,115,27],[116,26,116,27],[117,26,117,27],[118,26,118,27],[119,26,119,27],[120,26,120,27]]}
["                                                                      SUBCONSULTANT 10 - RAIL DIVISION BREAKDOWN WORKSHEET -- ENTER WORKHOURS"]
[]
["PROJECT DESCRIPTION: ",{"$f":"PROJECT.DESCRIPTION","v":0},null,null,null,"FIRM:  ",{"$f":"RAIL.SUB10_CONSULTANT_NAME","v":"CONSULTANT NAME"},null,"TASK ORDER NUMBER:",null,{"$f":"TASK.ORDER.NUMBER","v":0},null,"DATE PREPARED:",{"$f":"IF(SCOPE.MANDAY.ESTIMATE.PREPARED.BY.DATE=\"\",\"\",SCOPE.MANDAY.ESTIMATE.PREPARED.BY.DATE)","v":""}]
["PREPARED BY:  ",{"$f":"IF(SCOPE.MANDAY.ESTIMATE.PREPARED.BY=\"\",\"\",SCOPE.MANDAY.ESTIMATE.PREPARED.BY)","v":""},null,null,null,"TIP NUMBER:",{"$f":"TIP.NUMBER","v":0},null,"WBS NUMBER:",null,{"$f":"WBS.NUMBER","v":""},null,"REVISION DATE:",{"$f":"IF(SCOPE.MANDAY.ESTIMATE.APPROVED.BY.DATE=\"\",\"\",SCOPE.MANDAY.ESTIMATE.APPROVED.BY.DATE)","v":""},null,null,null,null,null,null,null,null,null,null,null,"TASK TYPE:","Select Task Type"]
[null,null,null,"ESTIMATED WORKHOURS"]
[null,null,"EMPLOYEE NAMES",{"$f":"IF('PEF CLASSIFICATION SHEET'!D1299=\"\",\"\",LEFT('PEF CLASSIFICATION SHEET'!D1299,4))","v":""},{"$f":"IF('PEF CLASSIFICATION SHEET'!D1300=\"\",\"\",LEFT('PEF CLASSIFICATION SHEET'!D1300,4))","v":""},{"$f":"IF('PEF CLASSIFICATION SHEET'!D1301=\"\",\"\",LEFT('PEF CLASSIFICATION SHEET'!D1301,4))","v":""},{"$f":"IF('PEF CLASSIFICATION SHEET'!D1302=\"\",\"\",LEFT('PEF CLASSIFICATION SHEET'!D1302,4))","v":""},{"$f":"IF('PEF CLASSIFICATION SHEET'!D1303=\"\",\"\",LEFT('PEF CLASSIFICATION SHEET'!D1303,4))","v":""},{"$f":"IF('PEF CLASSIFICATION SHEET'!D1304=\"\",\"\",LEFT('PEF CLASSIFICATION SHEET'!D1304,4))","v":""},{"$f":"IF('PEF CLASSIFICATION SHEET'!D1305=\"\",\"\",LEFT('PEF CLASSIFICATION SHEET'!D1305,4))","v":""},{"$f":"IF('PEF CLASSIFICATION SHEET'!D1306=\"\",\"\",LEFT('PEF CLASSIFICATION SHEET'!D1306,4))","v":""},{"$f":"IF('PEF CLASSIFICATION SHEET'!D1307=\"\",\"\",LEFT('PEF CLASSIFICATION SHEET'!D1307,4))","v":""},{"$f":"IF('PEF CLASSIFICATION SHEET'!D1308=\"\",\"\",LEFT('PEF CLASSIFICATION SHEET'!D1308,4))","v":""},{"$f":"IF('PEF CLASSIFICATION SHEET'!D1309=\"\",\"\",LEFT('PEF CLASSIFICATION SHEET'!D1309,4))","v":""},{"$f":"IF('PEF CLASSIFICATION SHEET'!D1310=\"\",\"\",LEFT('PEF CLASSIFICATION SHEET'!D1310,4))","v":""},{"$f":"IF('PEF CLASSIFICATION SHEET'!D1311=\"\",\"\",LEFT('PEF CLASSIFICATION SHEET'!D1311,4))","v":""},{"$f":"IF('PEF CLASSIFICATION SHEET'!D1312=\"\",\"\",LEFT('PEF CLASSIFICATION SHEET'!D1312,4))","v":""},{"$f":"IF('PEF CLASSIFICATION SHEET'!D1313=\"\",\"\",LEFT('PEF CLASSIFICATION SHEET'!D1313,4))","v":""},{"$f":"IF('PEF CLASSIFICATION SHEET'!D1314=\"\",\"\",LEFT('PEF CLASSIFICATION SHEET'!D1314,4))","v":""},{"$f":"IF('PEF CLASSIFICATION SHEET'!D1315=\"\",\"\",LEFT('PEF CLASSIFICATION SHEET'!D1315,4))","v":""},{"$f":"IF('PEF CLASSIFICATION SHEET'!D1316=\"\",\"\",LEFT('PEF CLASSIFICATION SHEET'!D1316,4))","v":""},{"$f":"IF('PEF CLASSIFICATION SHEET'!D1317=\"\",\"\",LEFT('PEF CLASSIFICATION SHEET'!D1317,4))","v":""},{"$f":"IF('PEF CLASSIFICATION SHEET'!D1318=\"\",\"\",LEFT('PEF CLASSIFICATION SHEET'!D1318,4))","v":""}]
[null,null,null,{"$f":"IF('PEF CLASSIFICATION SHEET'!C1299=\"\",\"\",'PEF CLASSIFICATION SHEET'!C1299)","v":""},{"$f":"IF('PEF CLASSIFICATION SHEET'!C1300=\"\",\"\",'PEF CLASSIFICATION SHEET'!C1300)","v":""},{"$f":"IF('PEF CLASSIFICATION SHEET'!C1301=\"\",\"\",'PEF CLASSIFICATION SHEET'!C1301)","v":""},{"$f":"IF('PEF CLASSIFICATION SHEET'!C1302=\"\",\"\",'PEF CLASSIFICATION SHEET'!C1302)","v":""},{"$f":"IF('PEF CLASSIFICATION SHEET'!C1303=\"\",\"\",'PEF CLASSIFICATION SHEET'!C1303)","v":""},{"$f":"IF('PEF CLASSIFICATION SHEET'!C1304=\"\",\"\",'PEF CLASSIFICATION SHEET'!C1304)","v":""},{"$f":"IF('PEF CLASSIFICATION SHEET'!C1305=\"\",\"\",'PEF CLASSIFICATION SHEET'!C1305)","v":""},{"$f":"IF('PEF CLASSIFICATION SHEET'!C1306=\"\",\"\",'PEF CLASSIFICATION SHEET'!C1306)","v":""},{"$f":"IF('PEF CLASSIFICATION SHEET'!C1307=\"\",\"\",'PEF CLASSIFICATION SHEET'!C1307)","v":""},{"$f":"IF('PEF CLASSIFICATION SHEET'!C1308=\"\",\"\",'PEF CLASSIFICATION SHEET'!C1308)","v":""},{"$f":"IF('PEF CLASSIFICATION SHEET'!C1309=\"\",\"\",'PEF CLASSIFICATION SHEET'!C1309)","v":""},{"$f":"IF('PEF CLASSIFICATION SHEET'!C1310=\"\",\"\",'PEF CLASSIFICATION SHEET'!C1310)","v":""},{"$f":"IF('PEF CLASSIFICATION SHEET'!C1311=\"\",\"\",'PEF CLASSIFICATION SHEET'!C1311)","v":""},{"$f":"IF('PEF CLASSIFICATION SHEET'!C1312=\"\",\"\",'PEF CLASSIFICATION SHEET'!C1312)","v":""},{"$f":"IF('PEF CLASSIFICATION SHEET'!C1313=\"\",\"\",'PEF CLASSIFICATION SHEET'!C1313)","v":""},{"$f":"IF('PEF CLASSIFICATION SHEET'!C1314=\"\",\"\",'PEF CLASSIFICATION SHEET'!C1314)","v":""},{"$f":"IF('PEF CLASSIFICATION SHEET'!C1315=\"\",\"\",'PEF CLASSIFICATION SHEET'!C1315)","v":""},{"$f":"IF('PEF CLASSIFICATION SHEET'!C1316=\"\",\"\",'PEF CLASSIFICATION SHEET'!C1316)","v":""},{"$f":"IF('PEF CLASSIFICATION SHEET'!C1317=\"\",\"\",'PEF CLASSIFICATION SHEET'!C1317)","v":""},{"$f":"IF('PEF CLASSIFICATION SHEET'!C1318=\"\",\"\",'PEF CLASSIFICATION SHEET'!C1318)","v":""},"SUB-","%","PEF"]
[null,null,null,null,null,null,null,null,null,null,null,null,null,null,null,null,null,null,null,null,null,null,null,"TOTAL","OF","ESTIMATE"]
["TASK NO.","TASK DESCRIPTION","CLASSIFICATION",null,null,null,null,null,null,null,null,null,null,null,null,null,null,null,null,null,null,null,null,null,"PROJECT",null,"COMMENTS",null,null,null,null,null,null,null,"Select Task Type","Grade Separation","CEI","Track Design","Signal Design","Environmental","Planning"]
[{"$f":"IF($AA$4=\"Select Task Type\",\"Select the TASK TYPE from drop down list in cell AA4 to populate the task list\",IF($AA$4=\"Grade Separation\",\"You selected Grade Separation\",IF($AA$4=\"CEI\",\"You selected CEI\",IF($AA$4=\"Track Design\",\"You selected Track Design.  When the task is ALL CAPS, this is a header row, if you choose to key mandays associated with that header row the row total will not be displayed but the column and overall total will sum appropriately\",IF($AA$4=\"Signal Design\",\"You selected Signal Design, note that this is initially a blank task list; so please create a task list from scratch\",IF($AA$4=\"Environmental\",\"You selected Environmental.  When the task is ALL CAPS, this is a header row, if you choose to key mandays associated with that header row the row total will not be displayed but the column and overall total will sum appropriately\",IF($AA$4=\"Planning\",\"You selected Planning.  When the task is ALL CAPS, this is a header row, if you choose to key mandays associated with that header row the row total will not be displayed but the column and overall total will sum appropriately\",\"Select the TASK TYPE from drop down list in cell AA4 to populate the task list\")))))))","v":"Select the TASK TYPE from drop down list in cell AA4 to populate the task list"},null,null,null,null,null,null,null,null,null,null,null,null,null,null,null,null,null,null,null,null,null,null,null,null,null,null,null,null,null,null,null,null,null,null,"Grade Separation","Grade Separation","CEI","CEI","Track Design","Track Design","Signal Design","Signal Design","Environmental","Environmental","Planning","Planning"]
[{"$f":"IF(AG11=0,\"\",AG11)","v":""},{"$f":"IF(AH11=0,\"\",AH11)","v":""},null,null,null,null,null,null,null,null,null,null,null,null,null,null,null,null,null,null,null,null,null,{"$f":"IF(B11=\"\",0,IF(B11=\"DEMAND ASSESSMENT\",\"\",IF(B11=\"PROJECT SCOPING AND DATA COLLECTION\",\"\",IF(B11=\"PROJECT MANAGEMENT/PROJECT ADMINISTRATION\",\"\",IF((SUM(D11:W11)=0),0,SUM(D11:W11))))))","v":0},{"$f":"IF(SUM(D11:W11)=0,\"\",((SUM(D11:W11))/$X$261))","v":""},null,null,null,null,null,null,null,{"$f":"IF($AA$4=\"Select Task Type\",\"\",IF($AA$4=\"Grade Separation\",AJ11,IF($AA$4=\"CEI\",AL11,IF($AA$4=\"Track Design\",AN11,IF($AA$4=\"Signal Design\",AP11,IF($AA$4=\"Environmental\",AR11,IF($AA$4=\"Planning\",AT11,\"\")))))))","v":""},{"$f":"IF($AA$4=\"Select Task Type\",\"\",IF($AA$4=\"Grade Separation\",AK11,IF($AA$4=\"CEI\",AM11,IF($AA$4=\"Track Design\",AO11,IF($AA$4=\"Signal Design\",AQ11,IF($AA$4=\"Environmental\",AS11,IF($AA$4=\"Planning\",AU11,\"\")))))))","v":""},null,1,"Project Familiarization",1,"Project management and document review",1,"PROJECT MANAGEMENT/PROJECT ADMINISTRATION",null,null,"A","PROJECT SCOPING AND DATA COLLECTION",1,"DEMAND ASSESSMENT"]
[{"$f":"IF(AG12=0,\"\",AG12)","v":""},"",null,null,null,null,null,null,null,null,null,null,null,null,null,null,null,null,null,null,null,null,null,{"$f":"IF(B12=\"\",0,IF((SUM(D12:W12)=0),0,SUM(D12:W12)))","v":0},{"$f":"IF(SUM(D12:W12)=0,\"\",((SUM(D12:W12))/$X$261))","v":""},null,null,null,null,null,null,null,{"$f":"IF($AA$4=\"Select Task Type\",\"\",IF($AA$4=\"Grade Separation\",AJ12,IF($AA$4=\"CEI\",AL12,IF($AA$4=\"Track Design\",AN12,IF($AA$4=\"Signal Design\",AP12,IF($AA$4=\"Environmental\",AR12,IF($AA$4=\"Planning\",AT12,\"\")))))))","v":""},"",null,2,"Conceptual Design",2,"Track inspection",null,null,null,null,"A.1","Study Area Definition",null,"Review previous studies"]
["","",null,null,null,null,null,null,null,null,null,null,null,null,null,null,null,null,null,null,null,null,null,0,{"$f":"IF(SUM(D13:W13)=0,\"\",((SUM(D13:W13))/$X$261))","v":""},null,null,null,null,null,null,null,"","",null,3,"Construction Cost Estimate",3,"Roadway inspection",null,null,null,null,"A.2","Study Area Field Visit",null,"Interview XX, XX, and XX on near-term rail intermodal and break bulk plans"]
["","",null,null,null,null,null,null,null,null,null,null,null,null,null,null,null,null,null,null,null,null,null,0,"",null,null,null,null,null,null,null,"","",null,4,"Project Coordination",null,null,null,null,null,null,"A.3","Community Characteristics Report",null,"Estimate effects of various rail entities"]
["","",null,null,null,null,null,null,null,null,null,null,null,null,null,null,null,null,null,null,null,null,null,0,"",null,null,null,null,null,null,null,"","",null,null,null,null,null,null,null,null,null,"A.4","Local Land Use and Transportation Plans",null,"Estimate future growth in other bulk and break bulk commodities"]
["","",null,null,null,null,null,null,null,null,null,null,null,null,null,null,null,null,null,null,null,null,null,0,"",null,null,null,null,null,null,null,"","",null,null,null,null,null,null,null,null,null,"A.5","State and Federal Data Sources",null,"Incorporate State Freight Plan into market forecasts "]
["","",null,null,null,null,null,null,null,null,null,null,null,null,null,null,null,null,null,null,null,null,null,0,"",null,null,null,null,null,null,null,"","",null,null,null,null,null,null,null,null,null,"A.6 ","GeoEnvironmental Review",null,"Project port continued share against market growth"]
["","",null,null,null,null,null,null,null,null,null,null,null,null,null,null,null,null,null,null,null,null,null,0,"",null,null,null,null,null,null,null,"","",null,null,null,null,null,null,null,null,null,"A.7","GIS Data Layers and Aerial Photography",null,"Combine forecasts from various groups into a base line forecast"]
["","",null,null,null,null,null,null,null,null,null,null,null,null,null,null,null,null,null,null,null,null,null,0,"",null,null,null,null,null,null,null,"","",null,null,null,null,null,null,null,null,null,"A.8","Evaluation of Existing Transportation Facilities",null,"Develop an updated base forecast"]
["","",null,null,null,null,null,null,null,null,null,null,null,null,null,null,null,null,null,null,null,null,null,0,"",null,null,null,null,null,null,null,"","",null,null,null,null,null,null,null,null,null,"A.9","Traffic Forecast Request",null,"Compare with freight forecast in NC State Freight Plan, contrast against existing port rail capacity, identify delta required to accommodate additional traffic"]
["","",null,null,null,null,null,null,null,null,null,null,null,null,null,null,null,null,null,null,null,null,null,0,"",null,null,null,null,null,null,null,"","",null,null,null,null,null,null,null,null,null,"A.10","Project Data Sheet",null,"Add in empty return exports and revise forecast"]
["","",null,null,null,null,null,null,null,null,null,null,null,null,null,null,null,null,null,null,null,null,null,{"$f":"IF(B22=\"\",0,IF(B22=\"FUNCTIONAL TRACK DESIGN\",\"\",IF((SUM(D22:W22)=0),0,SUM(D22:W22))))","v":0},"",null,null,null,null,null,null,null,"","",null,null,null,null,null,2,"FUNCTIONAL TRACK DESIGN",null,null,"A.11","Start of Study Letters",null,"Develop near-term outlook of market demand and system requirements"]
["","",null,null,null,null,null,null,null,null,null,null,null,null,null,null,null,null,null,null,null,null,null,{"$f":"IF(B23=\"\",0,IF((SUM(D23:W23)=0),0,SUM(D23:W23)))","v":0},"",null,null,null,null,null,null,null,"","",null,null,null,null,null,null,null,null,null,"A.12","Kickoff/Scoping Meeting",null,"Review operations and plans for XX, suggest if port rail facilities can accommodate projected growth"]
["","",null,null,null,null,null,null,null,null,null,null,null,null,null,null,null,null,null,null,null,null,null,{"$f":"IF(B24=\"\",0,IF((SUM(D24:W24)=0),0,SUM(D24:W24)))","v":0},"",null,null,null,null,null,null,null,"","",null,null,null,null,null,null,null,null,null,"A.13",null,null,"Identify conceptual rail capacity and prospects for service assuming successful XX service"]
["","",null,null,null,null,null,null,null,null,null,null,null,null,null,null,null,null,null,null,null,null,null,{"$f":"IF(B25=\"\",0,IF((SUM(D25:W25)=0),0,SUM(D25:W25)))","v":0},"",null,null,null,null,null,null,null,"","",null,null,null,null,null,null,null,null,null,"A.14",null,null,"Evaluate rail operations @ port to identify conflicts and opportunities to serve both intermodal and break bulk rail customers"]
["","",null,null,null,null,null,null,null,null,null,null,null,null,null,null,null,null,null,null,null,null,null,{"$f":"IF(B26=\"\",0,IF((SUM(D26:W26)=0),0,SUM(D26:W26)))","v":0},"",null,null,null,null,null,null,null,"","",null,null,null,null,null,null,null,null,null,"A.15",null,null,"Develop near-term outlook of market demand and system requirements"]
["","",null,null,null,null,null,null,null,null,null,null,null,null,null,null,null,null,null,null,null,null,null,{"$f":"IF(B27=\"\",0,IF((SUM(D27:W27)=0),\"\",SUM(D27:W27)))","v":0},"",null,null,null,null,null,null,null,"","",null,null,null,null,null,null,null,null,null,"A.16"]
["","",null,null,null,null,null,null,null,null,null,null,null,null,null,null,null,null,null,null,null,null,null,0,"",null,null,null,null,null,null,null,"","",null,null,null,null,null,null,null,null,null,"A.17"]
["","",null,null,null,null,null,null,null,null,null,null,null,null,null,null,null,null,null,null,null,null,null,{"$f":"IF(B29=\"\",0,IF(B29=\"TRAFFIC CAPACITY ANALYSIS AND ACCIDENT ANALYSIS\",\"\",IF((SUM(D29:W29)=0),0,SUM(D29:W29))))","v":0},"",null,null,null,null,null,null,null,"","",null,null,null,null,null,null,null,null,null,"B","TRAFFIC CAPACITY ANALYSIS AND ACCIDENT ANALYSIS"]
["","",null,null,null,null,null,null,null,null,null,null,null,null,null,null,null,null,null,null,null,null,null,{"$f":"IF(B30=\"\",0,IF((SUM(D30:W30)=0),0,SUM(D30:W30)))","v":0},"",null,null,null,null,null,null,null,"","",null,null,null,null,null,null,null,null,null,"B.1","Coordinate with Stantec & incorporate the analysis"]
["","",null,null,null,null,null,null,null,null,null,null,null,null,null,null,null,null,null,null,null,null,null,{"$f":"IF(B31=\"\",0,IF((SUM(D31:W31)=0),0,SUM(D31:W31)))","v":0},"",null,null,null,null,null,null,null,"","",null,null,null,null,null,null,null,null,null,"B.2"]
["","",null,null,null,null,null,null,null,null,null,null,null,null,null,null,null,null,null,null,null,null,null,{"$f":"IF(B32=\"\",0,IF(B32=\"PORT MASTER PLAN REVIEW\",\"\",IF((SUM(D32:W32)=0),0,SUM(D32:W32))))","v":0},"",null,null,null,null,null,null,null,"","",null,null,null,null,null,null,null,null,null,"B.3",null,2,"PORT MASTER PLAN REVIEW"]
["","",null,null,null,null,null,null,null,null,null,null,null,null,null,null,null,null,null,null,null,null,null,{"$f":"IF(B33=\"\",0,IF(B33=\"PRELIMINARY TRACK DESIGN\",\"\",IF((SUM(D33:W33)=0),0,SUM(D33:W33))))","v":0},"",null,null,null,null,null,null,null,"","",null,null,null,null,null,3,"PRELIMINARY TRACK DESIGN",null,null,"B.4",null,null,"Identify area needed to accommodate each targeted market"]
["","",null,null,null,null,null,null,null,null,null,null,null,null,null,null,null,null,null,null,null,null,null,{"$f":"IF(B34=\"\",0,IF((SUM(D34:W34)=0),0,SUM(D34:W34)))","v":0},"",null,null,null,null,null,null,null,"","",null,null,null,null,null,null,null,null,null,"B.5",null,null,"Assess ability to meet current and projected needs"]
["","",null,null,null,null,null,null,null,null,null,null,null,null,null,null,null,null,null,null,null,null,null,{"$f":"IF(B35=\"\",0,IF((SUM(D35:W35)=0),0,SUM(D35:W35)))","v":0},"",null,null,null,null,null,null,null,"","",null,null,null,null,null,null,null,null,null,"B.6",null,null,"Coordinate with Port regarding future Port plans"]
["","",null,null,null,null,null,null,null,null,null,null,null,null,null,null,null,null,null,null,null,null,null,{"$f":"IF(B36=\"\",0,IF(B36=\"PROJECT PURPOSE AND NEED\",\"\",IF((SUM(D36:W36)=0),0,SUM(D36:W36))))","v":0},"",null,null,null,null,null,null,null,"","",null,null,null,null,null,null,null,null,null,"C","PROJECT PURPOSE AND NEED",null,"Develop recommendations to layout and/or processes to meet anticipated needs while not conflicting or constraining future activities"]
["","",null,null,null,null,null,null,null,null,null,null,null,null,null,null,null,null,null,null,null,null,null,{"$f":"IF(B37=\"\",0,IF((SUM(D37:W37)=0),0,SUM(D37:W37)))","v":0},"",null,null,null,null,null,null,null,"","",null,null,null,null,null,null,null,null,null,"C.1","Preliminary Purpose and Need",null,"Prepare draft port layout"]
["","",null,null,null,null,null,null,null,null,null,null,null,null,null,null,null,null,null,null,null,null,null,0,"",null,null,null,null,null,null,null,"","",null,null,null,null,null,null,null,null,null,"C.2","Final Purpose and Need Memorandum",null,"Revise per NCDOT comments and prepare final port layout"]
["","",null,null,null,null,null,null,null,null,null,null,null,null,null,null,null,null,null,null,null,null,null,0,"",null,null,null,null,null,null,null,"","",null,null,null,null,null,null,null,null,null,"C.3"]
["","",null,null,null,null,null,null,null,null,null,null,null,null,null,null,null,null,null,null,null,null,null,0,"",null,null,null,null,null,null,null,"","",null,null,null,null,null,null,null,null,null,"C.4"]
["","",null,null,null,null,null,null,null,null,null,null,null,null,null,null,null,null,null,null,null,null,null,0,"",null,null,null,null,null,null,null,"","",null,null,null,null,null,null,null,null,null,"C.5"]
["","",null,null,null,null,null,null,null,null,null,null,null,null,null,null,null,null,null,null,null,null,null,0,"",null,null,null,null,null,null,null,"","",null,null,null,null,null,null,null,null,null,"C.6"]
["","",null,null,null,null,null,null,null,null,null,null,null,null,null,null,null,null,null,null,null,null,null,0,"",null,null,null,null,null,null,null,"","",null,null,null,null,null,null,null,null,null,"C.7"]
["","",null,null,null,null,null,null,null,null,null,null,null,null,null,null,null,null,null,null,null,null,null,{"$f":"IF(B44=\"\",0,IF(B44=\"RAIL INVENTORY AND REVIEW OF EXISTING OPERATIONS\",\"\",IF(B44=\"DEVELOPMENT AND EVALUATION OF DESIGN ALTERNATIVES\",\"\",IF(B44=\"FINAL TRACK DESIGN\",\"\",IF((SUM(D44:W44)=0),0,SUM(D44:W44))))))","v":0},"",null,null,null,null,null,null,null,"","",null,null,null,null,null,4,"FINAL TRACK DESIGN",null,null,"D","DEVELOPMENT AND EVALUATION OF DESIGN ALTERNATIVES",3,"RAIL INVENTORY AND REVIEW OF EXISTING OPERATIONS"]
["","",null,null,null,null,null,null,null,null,null,null,null,null,null,null,null,null,null,null,null,null,null,{"$f":"IF(B45=\"\",0,IF((SUM(D45:W45)=0),0,SUM(D45:W45)))","v":0},"",null,null,null,null,null,null,null,"","",null,null,null,null,null,null,null,null,null,"D.1","Collaboration on Development of Design Alternatives",null,"Review Port facilities on the ground, identify acreage which could accommodate additional functions in support of rail operations"]
["","",null,null,null,null,null,null,null,null,null,null,null,null,null,null,null,null,null,null,null,null,null,0,"",null,null,null,null,null,null,null,"","",null,null,null,null,null,null,null,null,null,"D.2","Qualitative Screening of Design Alternatives",null,"Review XX and XX track charts and track maps for Port"]
["","",null,null,null,null,null,null,null,null,null,null,null,null,null,null,null,null,null,null,null,null,null,0,"",null,null,null,null,null,null,null,"","",null,null,null,null,null,null,null,null,null,"D.3",null,null,"Review any related TSS"]
["","",null,null,null,null,null,null,null,null,null,null,null,null,null,null,null,null,null,null,null,null,null,0,"",null,null,null,null,null,null,null,"","",null,null,null,null,null,null,null,null,null,"D.4",null,null,"Conduct a windshield survey of XX line at Port and document observations"]
["","",null,null,null,null,null,null,null,null,null,null,null,null,null,null,null,null,null,null,null,null,null,0,"",null,null,null,null,null,null,null,"","",null,null,null,null,null,null,null,null,null,"D.5",null,null,"Identify opportunities to locate a future passing siding."]
["","",null,null,null,null,null,null,null,null,null,null,null,null,null,null,null,null,null,null,null,null,null,0,"",null,null,null,null,null,null,null,"","",null,null,null,null,null,null,null,null,null,"D.6"]
["","",null,null,null,null,null,null,null,null,null,null,null,null,null,null,null,null,null,null,null,null,null,0,"",null,null,null,null,null,null,null,"","",null,null,null,null,null,null,null,null,null,"D.7"]
["","",null,null,null,null,null,null,null,null,null,null,null,null,null,null,null,null,null,null,null,null,null,{"$f":"IF(B52=\"\",0,IF(B52=\"BIOTIC RESOURCES\",\"\",IF((SUM(D52:W52)=0),0,SUM(D52:W52))))","v":0},"",null,null,null,null,null,null,null,"","",null,null,null,null,null,null,null,null,null,"E.3","BIOTIC RESOURCES"]
["","",null,null,null,null,null,null,null,null,null,null,null,null,null,null,null,null,null,null,null,null,null,{"$f":"IF(B53=\"\",0,IF((SUM(D53:W53)=0),0,SUM(D53:W53)))","v":0},"",null,null,null,null,null,null,null,"","",null,null,null,null,null,null,null,null,null,"E.3.a","Terrestrial Communities"]
["","",null,null,null,null,null,null,null,null,null,null,null,null,null,null,null,null,null,null,null,null,null,{"$f":"IF(B54=\"\",0,IF((SUM(D54:W54)=0),0,SUM(D54:W54)))","v":0},"",null,null,null,null,null,null,null,"","",null,null,null,null,null,null,null,null,null,"E.3.b","Terrestrial Wildlife"]
["","",null,null,null,null,null,null,null,null,null,null,null,null,null,null,null,null,null,null,null,null,null,{"$f":"IF(B55=\"\",0,IF(B55=\"CAPACITY AND VELOCITY\",\"\",IF((SUM(D55:W55)=0),0,SUM(D55:W55))))","v":0},"",null,null,null,null,null,null,null,"","",null,null,null,null,null,null,null,null,null,"E.3.c","Aquatic Communities and Wildlife",4,"CAPACITY AND VELOCITY"]
["","",null,null,null,null,null,null,null,null,null,null,null,null,null,null,null,null,null,null,null,null,null,{"$f":"IF(B56=\"\",0,IF((SUM(D56:W56)=0),0,SUM(D56:W56)))","v":0},"",null,null,null,null,null,null,null,"","",null,null,null,null,null,null,null,null,null,"E.3.d","Invasive Species",null,"Develop a level of service (LOS) classification for XX"]
["","",null,null,null,null,null,null,null,null,null,null,null,null,null,null,null,null,null,null,null,null,null,0,"",null,null,null,null,null,null,null,"","",null,null,null,null,null,null,null,null,null,"E.3.e",null,null,"Identify theoretical capacity XX based upon tonnage (GMT), GMT per train, and number of trains"]
["","",null,null,null,null,null,null,null,null,null,null,null,null,null,null,null,null,null,null,null,null,null,0,"",null,null,null,null,null,null,null,"","",null,null,null,null,null,null,null,null,null,"E.3.f",null,null,"Compare theoretical capacity with forecast train volumes"]
["","",null,null,null,null,null,null,null,null,null,null,null,null,null,null,null,null,null,null,null,null,null,0,"",null,null,null,null,null,null,null,"","",null,null,null,null,null,null,null,null,null,"E.3.g",null,null,"Observe operations to develop an estimate of current velocity (travel time over mileage) to/from XX"]
["","",null,null,null,null,null,null,null,null,null,null,null,null,null,null,null,null,null,null,null,null,null,0,"",null,null,null,null,null,null,null,"","",null,null,null,null,null,null,null,null,null,"E.3.h",null,null,"Review XX track charts and operating rules, assess for potential changes which could more effectively utilize existing capacity"]
["","",null,null,null,null,null,null,null,null,null,null,null,null,null,null,null,null,null,null,null,null,null,0,"",null,null,null,null,null,null,null,"","",null,null,null,null,null,null,null,null,null,"E.3.i",null,null,"Review related TSS to identify projects which could increase operating speeds and improve velocity"]
["","",null,null,null,null,null,null,null,null,null,null,null,null,null,null,null,null,null,null,null,null,null,{"$f":"IF(B62=\"\",0,IF(B62=\"JURISDICTIONAL ISSUES\",\"\",IF((SUM(D62:W62)=0),0,SUM(D62:W62))))","v":0},"",null,null,null,null,null,null,null,"","",null,null,null,null,null,null,null,null,null,"E.4","JURISDICTIONAL ISSUES"]
["","",null,null,null,null,null,null,null,null,null,null,null,null,null,null,null,null,null,null,null,null,null,{"$f":"IF(B63=\"\",0,IF((SUM(D63:W63)=0),0,SUM(D63:W63)))","v":0},"",null,null,null,null,null,null,null,"","",null,null,null,null,null,null,null,null,null,"E.4.a","Clean Water Act (CWA) Waters of the US"]
["","",null,null,null,null,null,null,null,null,null,null,null,null,null,null,null,null,null,null,null,null,null,{"$f":"IF(B64=\"\",0,IF((SUM(D64:W64)=0),0,SUM(D64:W64)))","v":0},"",null,null,null,null,null,null,null,"","",null,null,null,null,null,null,null,null,null,"E.4.b","CWA Permits"]
["","",null,null,null,null,null,null,null,null,null,null,null,null,null,null,null,null,null,null,null,null,null,{"$f":"IF(B65=\"\",0,IF((SUM(D65:W65)=0),0,SUM(D65:W65)))","v":0},"",null,null,null,null,null,null,null,"","",null,null,null,null,null,null,null,null,null,"E.4.c","Construction Moratoria"]
["","",null,null,null,null,null,null,null,null,null,null,null,null,null,null,null,null,null,null,null,null,null,{"$f":"IF(B66=\"\",0,IF((SUM(D66:W66)=0),0,SUM(D66:W66)))","v":0},"",null,null,null,null,null,null,null,"","",null,null,null,null,null,null,null,null,null,"E.4.d","Rivers and Harbors Act Section 10 Navigable Waters"]
["","",null,null,null,null,null,null,null,null,null,null,null,null,null,null,null,null,null,null,null,null,null,{"$f":"IF(B67=\"\",0,IF(B67=\"RAIL INFRASTRUCTURE IMPROVEMENTS\",\"\",IF((SUM(D67:W67)=0),0,SUM(D67:W67))))","v":0},"",null,null,null,null,null,null,null,"","",null,null,null,null,null,null,null,null,null,"E.4.e","Wetland and Stream Mitigation",5,"RAIL INFRASTRUCTURE IMPROVEMENTS"]
["","",null,null,null,null,null,null,null,null,null,null,null,null,null,null,null,null,null,null,null,null,null,{"$f":"IF(B68=\"\",0,IF((SUM(D68:W68)=0),0,SUM(D68:W68)))","v":0},"",null,null,null,null,null,null,null,"","",null,null,null,null,null,null,null,null,null,"E.4.f","Endangered Species Act Protected Species",null,"Review existing infrastructure"]
["","",null,null,null,null,null,null,null,null,null,null,null,null,null,null,null,null,null,null,null,null,null,0,"",null,null,null,null,null,null,null,"","",null,null,null,null,null,null,null,null,null,"E.4.g","Essential Fish Habitat",null,"Determine potential needs based on growth"]
["","",null,null,null,null,null,null,null,null,null,null,null,null,null,null,null,null,null,null,null,null,null,0,"",null,null,null,null,null,null,null,"","",null,null,null,null,null,null,null,null,null,"E.4.h",null,null,"Suggest potential enhancements to address future needs (X scenarios)"]
["","",null,null,null,null,null,null,null,null,null,null,null,null,null,null,null,null,null,null,null,null,null,0,"",null,null,null,null,null,null,null,"","",null,null,null,null,null,null,null,null,null,"E.4.i",null,null,"Coordinate with NCDOT and others to consider the capacity of XX"]
["","",null,null,null,null,null,null,null,null,null,null,null,null,null,null,null,null,null,null,null,null,null,0,"",null,null,null,null,null,null,null,"","",null,null,null,null,null,null,null,null,null,"E.4.j",null,null,"Develop conceptual recommendations to improve efficiency of operations between XX and YY"]
["","",null,null,null,null,null,null,null,null,null,null,null,null,null,null,null,null,null,null,null,null,null,0,"",null,null,null,null,null,null,null,"","",null,null,null,null,null,null,null,null,null,"E.4.k"]
["","",null,null,null,null,null,null,null,null,null,null,null,null,null,null,null,null,null,null,null,null,null,0,"",null,null,null,null,null,null,null,"","",null,null,null,null,null,null,null,null,null,"E.4.l"]
["","",null,null,null,null,null,null,null,null,null,null,null,null,null,null,null,null,null,null,null,null,null,0,"",null,null,null,null,null,null,null,"","",null,null,null,null,null,null,null,null,null,"E.5","NRTR Document"]
[{"$f":"IF(AG76=0,\"\",AG76)","v":""},"",null,null,null,null,null,null,null,null,null,null,null,null,null,null,null,null,null,null,null,null,null,0,"",null,null,null,null,null,null,null,{"$f":"IF($AA$4=\"Select Task Type\",\"\",IF($AA$4=\"Grade Separation\",AJ76,IF($AA$4=\"CEI\",AL76,IF($AA$4=\"Track Design\",AN76,IF($AA$4=\"Signal Design\",AP76,IF($AA$4=\"Environmental\",AR76,IF($AA$4=\"Planning\",AT76,\"\")))))))","v":""},"",null,null,null,null,null,null,null,null,null,"E.5.a"]
["","",null,null,null,null,null,null,null,null,null,null,null,null,null,null,null,null,null,null,null,null,null,0,{"$f":"IF(SUM(D77:W77)=0,\"\",((SUM(D77:W77))/$X$261))","v":""},null,null,null,null,null,null,null,"","",null,null,null,null,null,null,null,null,null,"E.5.b"]
["","",null,null,null,null,null,null,null,null,null,null,null,null,null,null,null,null,null,null,null,null,null,{"$f":"IF(B78=\"\",0,IF(B78=\"DEVELOP SUGGESTIONS FOR OPERATIONAL AND LOGISTICAL ENHANCEMENTS\",\"\",IF((SUM(D78:W78)=0),0,SUM(D78:W78))))","v":0},"",null,null,null,null,null,null,null,"","",null,null,null,null,null,null,null,null,null,"E.5.c",null,6,"DEVELOP SUGGESTIONS FOR OPERATIONAL AND LOGISTICAL ENHANCEMENTS"]
["","",null,null,null,null,null,null,null,null,null,null,null,null,null,null,null,null,null,null,null,null,null,{"$f":"IF(B79=\"\",0,IF((SUM(D79:W79)=0),0,SUM(D79:W79)))","v":0},"",null,null,null,null,null,null,null,"","",null,null,null,null,null,null,null,null,null,"E.5.d",null,null,"Study current operations and suggest changes that might enhance efficiency or reduce costs"]
["","",null,null,null,null,null,null,null,null,null,null,null,null,null,null,null,null,null,null,null,null,null,0,"",null,null,null,null,null,null,null,"","",null,null,null,null,null,null,null,null,null,"E.5.e",null,null,"Coordinate with NCAG to assure changes are allowable"]
["","",null,null,null,null,null,null,null,null,null,null,null,null,null,null,null,null,null,null,null,null,null,0,"",null,null,null,null,null,null,null,"","",null,null,null,null,null,null,null,null,null,"E.6","Jurisdictional Features Verification",null,"Develop option for development of temporary dray Port to XX"]
["","",null,null,null,null,null,null,null,null,null,null,null,null,null,null,null,null,null,null,null,null,null,0,"",null,null,null,null,null,null,null,"","",null,null,null,null,null,null,null,null,null,"E.6.a",null,null,"Summarize potential changes and corresponding actions"]
["","",null,null,null,null,null,null,null,null,null,null,null,null,null,null,null,null,null,null,null,null,null,0,"",null,null,null,null,null,null,null,"","",null,null,null,null,null,null,null,null,null,"E.6.b"]
["","",null,null,null,null,null,null,null,null,null,null,null,null,null,null,null,null,null,null,null,null,null,0,"",null,null,null,null,null,null,null,"","",null,null,null,null,null,null,null,null,null,"E.6.c"]
["","",null,null,null,null,null,null,null,null,null,null,null,null,null,null,null,null,null,null,null,null,null,0,"",null,null,null,null,null,null,null,"","",null,null,null,null,null,null,null,null,null,"E.6.d"]
["","",null,null,null,null,null,null,null,null,null,null,null,null,null,null,null,null,null,null,null,null,null,0,"",null,null,null,null,null,null,null,"","",null,null,null,null,null,null,null,null,null,"E.6.e"]
["","",null,null,null,null,null,null,null,null,null,null,null,null,null,null,null,null,null,null,null,null,null,{"$f":"IF(B87=\"\",0,IF(B87=\"HUMAN ENVIRONMENT FIELD WORK, ANALYSIS, AND DOCUMENTATION\",\"\",IF((SUM(D87:W87)=0),0,SUM(D87:W87))))","v":0},"",null,null,null,null,null,null,null,"","",null,null,null,null,null,null,null,null,null,"F","HUMAN ENVIRONMENT FIELD WORK, ANALYSIS, AND DOCUMENTATION"]
["","",null,null,null,null,null,null,null,null,null,null,null,null,null,null,null,null,null,null,null,null,null,{"$f":"IF(B88=\"\",0,IF(B88=\"ENVIRONMENTAL SCREENING\",\"\",IF((SUM(D88:W88)=0),0,SUM(D88:W88))))","v":0},"",null,null,null,null,null,null,null,"","",null,null,null,null,null,null,null,null,null,"F.1","Community Impact Assessment",7,"ENVIRONMENTAL SCREENING"]
["","",null,null,null,null,null,null,null,null,null,null,null,null,null,null,null,null,null,null,null,null,null,{"$f":"IF(B89=\"\",0,IF((SUM(D89:W89)=0),0,SUM(D89:W89)))","v":0},"",null,null,null,null,null,null,null,"","",null,null,null,null,null,null,null,null,null,"F.1.a","Identify Community Impact Study Area",null,"Develop GIS map of available data"]
["","",null,null,null,null,null,null,null,null,null,null,null,null,null,null,null,null,null,null,null,null,null,0,"",null,null,null,null,null,null,null,"","",null,null,null,null,null,null,null,null,null,"F.1.b","Community Field Review",null,"Develop list of \"red flag\" issues"]
["","",null,null,null,null,null,null,null,null,null,null,null,null,null,null,null,null,null,null,null,null,null,0,"",null,null,null,null,null,null,null,"","",null,null,null,null,null,null,null,null,null,"F.1.c","Socioeconomic Data"]
["","",null,null,null,null,null,null,null,null,null,null,null,null,null,null,null,null,null,null,null,null,null,0,"",null,null,null,null,null,null,null,"","",null,null,null,null,null,null,null,null,null,"F.1.d","Community Facilities and Services"]
["","",null,null,null,null,null,null,null,null,null,null,null,null,null,null,null,null,null,null,null,null,null,0,"",null,null,null,null,null,null,null,"","",null,null,null,null,null,null,null,null,null,"F.1.e","Local/Regional Land Use and Development Plans"]
["","",null,null,null,null,null,null,null,null,null,null,null,null,null,null,null,null,null,null,null,null,null,0,"",null,null,null,null,null,null,null,"","",null,null,null,null,null,null,null,null,null,"F.1.f","Project Impact Assessment"]
["","",null,null,null,null,null,null,null,null,null,null,null,null,null,null,null,null,null,null,null,null,null,0,"",null,null,null,null,null,null,null,"","",null,null,null,null,null,null,null,null,null,"F.1.g","Community Impact Assessment Report"]
["","",null,null,null,null,null,null,null,null,null,null,null,null,null,null,null,null,null,null,null,null,null,{"$f":"IF(B96=\"\",0,IF(B96=\"ESTIMATE PROJECT SCENARIO BENEFITS\",\"\",IF((SUM(D96:W96)=0),0,SUM(D96:W96))))","v":0},"",null,null,null,null,null,null,null,"","",null,null,null,null,null,null,null,null,null,"F.1.h",null,8,"ESTIMATE PROJECT SCENARIO BENEFITS"]
["","",null,null,null,null,null,null,null,null,null,null,null,null,null,null,null,null,null,null,null,null,null,{"$f":"IF(B97=\"\",0,IF((SUM(D97:W97)=0),0,SUM(D97:W97)))","v":0},"",null,null,null,null,null,null,null,"","",null,null,null,null,null,null,null,null,null,"F.1.i",null,null,"Develop near-term project feasibility criteria and apply to the identified program of projects"]
["","",null,null,null,null,null,null,null,null,null,null,null,null,null,null,null,null,null,null,null,null,null,{"$f":"IF(B98=\"\",0,IF((SUM(D98:W98)=0),0,SUM(D98:W98)))","v":0},"",null,null,null,null,null,null,null,"","",null,null,null,null,null,null,null,null,null,"F.1.j",null,null,"Develop ranked list ordered according to project feasibility criteria"]
["","",null,null,null,null,null,null,null,null,null,null,null,null,null,null,null,null,null,null,null,null,null,{"$f":"IF(B99=\"\",0,IF((SUM(D99:W99)=0),0,SUM(D99:W99)))","v":0},"",null,null,null,null,null,null,null,"","",null,null,null,null,null,null,null,null,null,"F.1.k",null,null,"Perform Benefit Cost Analyses (BCA)  for up to five projects using the OMB BCA methodology"]
["","",null,null,null,null,null,null,null,null,null,null,null,null,null,null,null,null,null,null,null,null,null,{"$f":"IF(B100=\"\",0,IF((SUM(D100:W100)=0),0,SUM(D100:W100)))","v":0},"",null,null,null,null,null,null,null,"","",null,null,null,null,null,null,null,null,null,"F.1.l",null,null,"Revise per NCDOT comments"]
["","",null,null,null,null,null,null,null,null,null,null,null,null,null,null,null,null,null,null,null,null,null,{"$f":"IF(B101=\"\",0,IF(B101=\"INDIRECT AND CUMULATIVE EFFECTS SCREENING\",\"\",IF((SUM(D101:W101)=0),0,SUM(D101:W101))))","v":0},"",null,null,null,null,null,null,null,"","",null,null,null,null,null,null,null,null,null,"F.2","INDIRECT AND CUMULATIVE EFFECTS SCREENING"]
["","",null,null,null,null,null,null,null,null,null,null,null,null,null,null,null,null,null,null,null,null,null,{"$f":"IF(B102=\"\",0,IF((SUM(D102:W102)=0),0,SUM(D102:W102)))","v":0},"",null,null,null,null,null,null,null,"","",null,null,null,null,null,null,null,null,null,"F.2.a","Determine Future Land Use Study Area"]
["","",null,null,null,null,null,null,null,null,null,null,null,null,null,null,null,null,null,null,null,null,null,{"$f":"IF(B103=\"\",0,IF((SUM(D103:W103)=0),0,SUM(D103:W103)))","v":0},"",null,null,null,null,null,null,null,"","",null,null,null,null,null,null,null,null,null,"F.2.b","Determine ICE Study Time Horizon"]
["","",null,null,null,null,null,null,null,null,null,null,null,null,null,null,null,null,null,null,null,null,null,{"$f":"IF(B104=\"\",0,IF((SUM(D104:W104)=0),0,SUM(D104:W104)))","v":0},"",null,null,null,null,null,null,null,"","",null,null,null,null,null,null,null,null,null,"F.2.c","Identify Study Area Conditions and Trends"]
["","",null,null,null,null,null,null,null,null,null,null,null,null,null,null,null,null,null,null,null,null,null,{"$f":"IF(B105=\"\",0,IF((SUM(D105:W105)=0),0,SUM(D105:W105)))","v":0},"",null,null,null,null,null,null,null,"","",null,null,null,null,null,null,null,null,null,"F.2.d","Inventory of Notable Features"]
["","",null,null,null,null,null,null,null,null,null,null,null,null,null,null,null,null,null,null,null,null,null,{"$f":"IF(B106=\"\",0,IF(B106=\"GENERATE DATA NEEDED FOR SCORING IN STI\",\"\",IF((SUM(D106:W106)=0),0,SUM(D106:W106))))","v":0},"",null,null,null,null,null,null,null,"","",null,null,null,null,null,null,null,null,null,"F.2.e","Identify Impact-Causing Activities",9,"GENERATE DATA NEEDED FOR SCORING IN STI"]
["","",null,null,null,null,null,null,null,null,null,null,null,null,null,null,null,null,null,null,null,null,null,{"$f":"IF(B107=\"\",0,IF((SUM(D107:W107)=0),0,SUM(D107:W107)))","v":0},"",null,null,null,null,null,null,null,"","",null,null,null,null,null,null,null,null,null,"F.2.f","Analyze and Evaluate ICE Data",null,"Develop list of alternative solutions"]
["","",null,null,null,null,null,null,null,null,null,null,null,null,null,null,null,null,null,null,null,null,null,0,"",null,null,null,null,null,null,null,"","",null,null,null,null,null,null,null,null,null,"F.2.g","Land Use Development Scenarios",null,"Develop ranking procedure and criteria"]
["","",null,null,null,null,null,null,null,null,null,null,null,null,null,null,null,null,null,null,null,null,null,0,"",null,null,null,null,null,null,null,"","",null,null,null,null,null,null,null,null,null,"F.2.h","Indirect and Cumulative Effects Screening",null,"Adjust per NCDOT comments"]
["","",null,null,null,null,null,null,null,null,null,null,null,null,null,null,null,null,null,null,null,null,null,0,"",null,null,null,null,null,null,null,"","",null,null,null,null,null,null,null,null,null,"F.2.i",null,null,"Apply procedure/criteria to project alternatives"]
["","",null,null,null,null,null,null,null,null,null,null,null,null,null,null,null,null,null,null,null,null,null,0,"",null,null,null,null,null,null,null,"","",null,null,null,null,null,null,null,null,null,"F.2.j",null,null,"Review resulting list"]
["","",null,null,null,null,null,null,null,null,null,null,null,null,null,null,null,null,null,null,null,null,null,0,"",null,null,null,null,null,null,null,"","",null,null,null,null,null,null,null,null,null,"F.2.k",null,null,"Suggest revisions to procedure as needed"]
["","",null,null,null,null,null,null,null,null,null,null,null,null,null,null,null,null,null,null,null,null,null,0,"",null,null,null,null,null,null,null,"","",null,null,null,null,null,null,null,null,null,"F.2.l",null,null,"Revise criteria and redevelop list"]
["","",null,null,null,null,null,null,null,null,null,null,null,null,null,null,null,null,null,null,null,null,null,0,"",null,null,null,null,null,null,null,"","",null,null,null,null,null,null,null,null,null,"F.2.m",null,null,"Suggest project timing"]
["","",null,null,null,null,null,null,null,null,null,null,null,null,null,null,null,null,null,null,null,null,null,{"$f":"IF(B115=\"\",0,IF(B115=\"NOISE AND VIBRATION IMPACT ANALYSIS\",\"\",IF((SUM(D115:W115)=0),0,SUM(D115:W115))))","v":0},"",null,null,null,null,null,null,null,"","",null,null,null,null,null,null,null,null,null,"F.3.","NOISE AND VIBRATION IMPACT ANALYSIS",null,"Suggest project funding source(s)"]
["","",null,null,null,null,null,null,null,null,null,null,null,null,null,null,null,null,null,null,null,null,null,{"$f":"IF(B116=\"\",0,IF((SUM(D116:W116)=0),0,SUM(D116:W116)))","v":0},"",null,null,null,null,null,null,null,"","",null,null,null,null,null,null,null,null,null,"F.3.a","Coordination",null,"Develop opinion of cost for highest 5 ranking projects"]
["","",null,null,null,null,null,null,null,null,null,null,null,null,null,null,null,null,null,null,null,null,null,0,"",null,null,null,null,null,null,null,"","",null,null,null,null,null,null,null,null,null,null,"Initial Meeting with Rail Division",null,"Develop estimate of benefits for highest 5 ranking projects"]
["","",null,null,null,null,null,null,null,null,null,null,null,null,null,null,null,null,null,null,null,null,null,0,"",null,null,null,null,null,null,null,"","",null,null,null,null,null,null,null,null,null,"F.3.b","Data Compilation"]
["","",null,null,null,null,null,null,null,null,null,null,null,null,null,null,null,null,null,null,null,null,null,0,"",null,null,null,null,null,null,null,"","",null,null,null,null,null,null,null,null,null,null,"Project Area Reconnaissance, if applicable"]
["","",null,null,null,null,null,null,null,null,null,null,null,null,null,null,null,null,null,null,null,null,null,0,"",null,null,null,null,null,null,null,"","",null,null,null,null,null,null,null,null,null,null,"Identify noise sensitive land uses"]
["","",null,null,null,null,null,null,null,null,null,null,null,null,null,null,null,null,null,null,null,null,null,0,"",null,null,null,null,null,null,null,"","",null,null,null,null,null,null,null,null,null,null,"Prepare Noise Analysis Work Plan"]
["","",null,null,null,null,null,null,null,null,null,null,null,null,null,null,null,null,null,null,null,null,null,0,"",null,null,null,null,null,null,null,"","",null,null,null,null,null,null,null,null,null,"F.3.c","Selection of Analysis Sites"]
["","",null,null,null,null,null,null,null,null,null,null,null,null,null,null,null,null,null,null,null,null,null,{"$f":"IF(B123=\"\",0,IF(B123=\"IDENTIFY POTENTIAL PROJECTS FOR FEDERAL PROGRAMS\",\"\",IF((SUM(D123:W123)=0),0,SUM(D123:W123))))","v":0},"",null,null,null,null,null,null,null,"","",null,null,null,null,null,null,null,null,null,"F.3.d","Noise Analysis",10,"IDENTIFY POTENTIAL PROJECTS FOR FEDERAL PROGRAMS"]
["","",null,null,null,null,null,null,null,null,null,null,null,null,null,null,null,null,null,null,null,null,null,{"$f":"IF(B124=\"\",0,IF((SUM(D124:W124)=0),0,SUM(D124:W124)))","v":0},"",null,null,null,null,null,null,null,"","",null,null,null,null,null,null,null,null,null,null,"Monitoring / Fieldwork / Processing",null,"Research and prepare a technical memoranda identifying existing federal grant and loan programs for ports and rail improvements"]
["","",null,null,null,null,null,null,null,null,null,null,null,null,null,null,null,null,null,null,null,null,null,0,"",null,null,null,null,null,null,null,"","",null,null,null,null,null,null,null,null,null,null,"Traffic noise analysis",null,"Screen the program of projects for federal grant and loan program eligibility "]
["","",null,null,null,null,null,null,null,null,null,null,null,null,null,null,null,null,null,null,null,null,null,0,"",null,null,null,null,null,null,null,"","",null,null,null,null,null,null,null,null,null,null,"Rail noise analysis",null,"Recommend federal funding resources applicable to candidate projects"]
["","",null,null,null,null,null,null,null,null,null,null,null,null,null,null,null,null,null,null,null,null,null,0,"",null,null,null,null,null,null,null,"","",null,null,null,null,null,null,null,null,null,"F.3.e","Determination of Impacts"]
["","",null,null,null,null,null,null,null,null,null,null,null,null,null,null,null,null,null,null,null,null,null,0,"",null,null,null,null,null,null,null,"","",null,null,null,null,null,null,null,null,null,null,"Traffic noise analysis"]
["","",null,null,null,null,null,null,null,null,null,null,null,null,null,null,null,null,null,null,null,null,null,0,"",null,null,null,null,null,null,null,"","",null,null,null,null,null,null,null,null,null,null,"Rail noise analysis"]
["","",null,null,null,null,null,null,null,null,null,null,null,null,null,null,null,null,null,null,null,null,null,0,"",null,null,null,null,null,null,null,"","",null,null,null,null,null,null,null,null,null,null,"Traffic and rail noise impact assessment"]
["","",null,null,null,null,null,null,null,null,null,null,null,null,null,null,null,null,null,null,null,null,null,0,"",null,null,null,null,null,null,null,"","",null,null,null,null,null,null,null,null,null,"F.3.f","Noise Abatement Considerations"]
["","",null,null,null,null,null,null,null,null,null,null,null,null,null,null,null,null,null,null,null,null,null,{"$f":"IF(B132=\"\",0,IF(B132=\"PREPARE PROGRAM OF PROJECTS\",\"\",IF((SUM(D132:W132)=0),0,SUM(D132:W132))))","v":0},"",null,null,null,null,null,null,null,"","",null,null,null,null,null,null,null,null,null,null,"Noise barrier analysis",11,"PREPARE PROGRAM OF PROJECTS"]
["","",null,null,null,null,null,null,null,null,null,null,null,null,null,null,null,null,null,null,null,null,null,{"$f":"IF(B133=\"\",0,IF((SUM(D133:W133)=0),0,SUM(D133:W133)))","v":0},"",null,null,null,null,null,null,null,"","",null,null,null,null,null,null,null,null,null,null,"QA/Review",null,"Develop ranked list of projects based on benefit data"]
["","",null,null,null,null,null,null,null,null,null,null,null,null,null,null,null,null,null,null,null,null,null,0,"",null,null,null,null,null,null,null,"","",null,null,null,null,null,null,null,null,null,"F.3.g","Vibration Analysis",null,"Develop timing plan "]
["","",null,null,null,null,null,null,null,null,null,null,null,null,null,null,null,null,null,null,null,null,null,0,"",null,null,null,null,null,null,null,"","",null,null,null,null,null,null,null,null,null,"F.3.h","Noise and Vibration Technical Report",null,"Develop list of possible funding sources (limited to most likely source)"]
["","",null,null,null,null,null,null,null,null,null,null,null,null,null,null,null,null,null,null,null,null,null,0,"",null,null,null,null,null,null,null,"","",null,null,null,null,null,null,null,null,null,null,"Draft Report - text, tables, figures",null,"Calculate ranking based on criteria and or weighting data provided by NCDOT"]
["","",null,null,null,null,null,null,null,null,null,null,null,null,null,null,null,null,null,null,null,null,null,0,"",null,null,null,null,null,null,null,"","",null,null,null,null,null,null,null,null,null,null,"Draft Report - Appendices",null,"Submit draft list to NCDOT"]
["","",null,null,null,null,null,null,null,null,null,null,null,null,null,null,null,null,null,null,null,null,null,0,"",null,null,null,null,null,null,null,"","",null,null,null,null,null,null,null,null,null,null,"QA/Review",null,"Revise based on NCDOT comments"]
["","",null,null,null,null,null,null,null,null,null,null,null,null,null,null,null,null,null,null,null,null,null,0,"",null,null,null,null,null,null,null,"","",null,null,null,null,null,null,null,null,null,null,"Prepare Comment/Response Matrix"]
[{"$f":"IF(AG140=0,\"\",AG140)","v":""},"",null,null,null,null,null,null,null,null,null,null,null,null,null,null,null,null,null,null,null,null,null,0,"",null,null,null,null,null,null,null,{"$f":"IF($AA$4=\"Select Task Type\",\"\",IF($AA$4=\"Grade Separation\",AJ140,IF($AA$4=\"CEI\",AL140,IF($AA$4=\"Track Design\",AN140,IF($AA$4=\"Signal Design\",AP140,IF($AA$4=\"Environmental\",AR140,IF($AA$4=\"Planning\",AT140,\"\")))))))","v":""},"",null,null,null,null,null,null,null,null,null,null,"Prepare Final Report (includes QA/Review)"]
["","",null,null,null,null,null,null,null,null,null,null,null,null,null,null,null,null,null,null,null,null,null,0,{"$f":"IF(SUM(D141:W141)=0,\"\",((SUM(D141:W141))/$X$261))","v":""},null,null,null,null,null,null,null,"","",null,null,null,null,null,null,null,null,null,"F.3.i"]
["","",null,null,null,null,null,null,null,null,null,null,null,null,null,null,null,null,null,null,null,null,null,0,"",null,null,null,null,null,null,null,"","",null,null,null,null,null,null,null,null,null,"F.3.j"]
["","",null,null,null,null,null,null,null,null,null,null,null,null,null,null,null,null,null,null,null,null,null,0,"",null,null,null,null,null,null,null,"","",null,null,null,null,null,null,null,null,null,"F.3.k"]
["","",null,null,null,null,null,null,null,null,null,null,null,null,null,null,null,null,null,null,null,null,null,{"$f":"IF(B144=\"\",0,IF(B144=\"STAKEHOLDER INVOLVEMENT\",\"\",IF((SUM(D144:W144)=0),0,SUM(D144:W144))))","v":0},"",null,null,null,null,null,null,null,"","",null,null,null,null,null,null,null,null,null,"F.3.l",null,12,"STAKEHOLDER INVOLVEMENT"]
["","",null,null,null,null,null,null,null,null,null,null,null,null,null,null,null,null,null,null,null,null,null,{"$f":"IF(B145=\"\",0,IF((SUM(D145:W145)=0),0,SUM(D145:W145)))","v":0},"",null,null,null,null,null,null,null,"","",null,null,null,null,null,null,null,null,null,"F.3.m",null,null,"Attend 2 meetings (facilitated by others)"]
["","",null,null,null,null,null,null,null,null,null,null,null,null,null,null,null,null,null,null,null,null,null,{"$f":"IF(B146=\"\",0,IF(B146=\"AIR QUALITY ANALYSIS\",\"\",IF((SUM(D146:W146)=0),0,SUM(D146:W146))))","v":0},"",null,null,null,null,null,null,null,"","",null,null,null,null,null,null,null,null,null,"F.4","AIR QUALITY ANALYSIS",null,"Coordinate with NCDOT to discuss results of stakeholder interaction"]
["","",null,null,null,null,null,null,null,null,null,null,null,null,null,null,null,null,null,null,null,null,null,{"$f":"IF(B147=\"\",0,IF((SUM(D147:W147)=0),0,SUM(D147:W147)))","v":0},"",null,null,null,null,null,null,null,"","",null,null,null,null,null,null,null,null,null,"F.4.a","Data Compilation"]
["","",null,null,null,null,null,null,null,null,null,null,null,null,null,null,null,null,null,null,null,null,null,{"$f":"IF(B148=\"\",0,IF((SUM(D148:W148)=0),0,SUM(D148:W148)))","v":0},"",null,null,null,null,null,null,null,"","",null,null,null,null,null,null,null,null,null,"F.4.b","Attainment Status and Conformity"]
["","",null,null,null,null,null,null,null,null,null,null,null,null,null,null,null,null,null,null,null,null,null,{"$f":"IF(B149=\"\",0,IF((SUM(D149:W149)=0),0,SUM(D149:W149)))","v":0},"",null,null,null,null,null,null,null,"","",null,null,null,null,null,null,null,null,null,"F.4.c","Carbon Monoxide Air Quality Analysis"]
["","",null,null,null,null,null,null,null,null,null,null,null,null,null,null,null,null,null,null,null,null,null,{"$f":"IF(B150=\"\",0,IF((SUM(D150:W150)=0),0,SUM(D150:W150)))","v":0},"",null,null,null,null,null,null,null,"","",null,null,null,null,null,null,null,null,null,"F.4.d","Particulate Matter"]
["","",null,null,null,null,null,null,null,null,null,null,null,null,null,null,null,null,null,null,null,null,null,{"$f":"IF(B151=\"\",0,IF((SUM(D151:W151)=0),0,SUM(D151:W151)))","v":0},"",null,null,null,null,null,null,null,"","",null,null,null,null,null,null,null,null,null,"F.4.e","Mobile Source Air Toxics (MSATs)"]
["","",null,null,null,null,null,null,null,null,null,null,null,null,null,null,null,null,null,null,null,null,null,{"$f":"IF(B152=\"\",0,IF(B152=\"SCHEDULE\",\"\",IF((SUM(D152:W152)=0),0,SUM(D152:W152))))","v":0},"",null,null,null,null,null,null,null,"","",null,null,null,null,null,null,null,null,null,"F.4.f","Greenhouse Gas Emissions (GHGs)",13,"SCHEDULE"]
["","",null,null,null,null,null,null,null,null,null,null,null,null,null,null,null,null,null,null,null,null,null,{"$f":"IF(B153=\"\",0,IF((SUM(D153:W153)=0),0,SUM(D153:W153)))","v":0},"",null,null,null,null,null,null,null,"","",null,null,null,null,null,null,null,null,null,"F.4.g","Air Quality Technical Report",null,"Develop schedule of deliverable and review tasks"]
["","",null,null,null,null,null,null,null,null,null,null,null,null,null,null,null,null,null,null,null,null,null,0,"",null,null,null,null,null,null,null,"","",null,null,null,null,null,null,null,null,null,"F.4.h",null,null,"Update schedule as needed"]
["","",null,null,null,null,null,null,null,null,null,null,null,null,null,null,null,null,null,null,null,null,null,0,"",null,null,null,null,null,null,null,"","",null,null,null,null,null,null,null,null,null,"F.4.i"]
["","",null,null,null,null,null,null,null,null,null,null,null,null,null,null,null,null,null,null,null,null,null,0,"",null,null,null,null,null,null,null,"","",null,null,null,null,null,null,null,null,null,"F.4.j"]
["","",null,null,null,null,null,null,null,null,null,null,null,null,null,null,null,null,null,null,null,null,null,0,"",null,null,null,null,null,null,null,"","",null,null,null,null,null,null,null,null,null,"F.4.k"]
["","",null,null,null,null,null,null,null,null,null,null,null,null,null,null,null,null,null,null,null,null,null,0,"",null,null,null,null,null,null,null,"","",null,null,null,null,null,null,null,null,null,"F.4.l"]
["","",null,null,null,null,null,null,null,null,null,null,null,null,null,null,null,null,null,null,null,null,null,{"$f":"IF(B159=\"\",0,IF(B159=\"CULTURAL RESOURCES ANALYSIS\",\"\",IF((SUM(D159:W159)=0),0,SUM(D159:W159))))","v":0},"",null,null,null,null,null,null,null,"","",null,null,null,null,null,null,null,null,null,"F.5","CULTURAL RESOURCES ANALYSIS"]
["","",null,null,null,null,null,null,null,null,null,null,null,null,null,null,null,null,null,null,null,null,null,{"$f":"IF(B160=\"\",0,IF(B160=\"REPORT\",\"\",IF((SUM(D160:W160)=0),0,SUM(D160:W160))))","v":0},"",null,null,null,null,null,null,null,"","",null,null,null,null,null,null,null,null,null,"F.5.a","Phase 1 Historic Architectural Analysis",14,"REPORT"]
["","",null,null,null,null,null,null,null,null,null,null,null,null,null,null,null,null,null,null,null,null,null,{"$f":"IF(B161=\"\",0,IF(B161=\"ARCHAEOLOGICAL ANALYSIS\",\"\",IF((SUM(D161:W161)=0),0,SUM(D161:W161))))","v":0},"",null,null,null,null,null,null,null,"","",null,null,null,null,null,null,null,null,null,"F.5.b","ARCHAEOLOGICAL ANALYSIS",null,"Prepare draft report (electronic version only) for NCDOT review"]
["","",null,null,null,null,null,null,null,null,null,null,null,null,null,null,null,null,null,null,null,null,null,{"$f":"IF(B162=\"\",0,IF((SUM(D162:W162)=0),0,SUM(D162:W162)))","v":0},"",null,null,null,null,null,null,null,"","",null,null,null,null,null,null,null,null,null,null,"Conduct Background Research of information from NC OSA/ SHPO",null,"Revise per NCDOT comments"]
["","",null,null,null,null,null,null,null,null,null,null,null,null,null,null,null,null,null,null,null,null,null,0,"",null,null,null,null,null,null,null,"","",null,null,null,null,null,null,null,null,null,null,"Collect previously recorded sites and surveys in study area",null,"Prepare final report"]
["","",null,null,null,null,null,null,null,null,null,null,null,null,null,null,null,null,null,null,null,null,null,0,"",null,null,null,null,null,null,null,"","",null,null,null,null,null,null,null,null,null,null,"Prepare Archaeological Overview Report"]
["","",null,null,null,null,null,null,null,null,null,null,null,null,null,null,null,null,null,null,null,null,null,0,"",null,null,null,null,null,null,null,"","",null,null,null,null,null,null,null,null,null,null," known archaeological resources in alternatives or study area"]
["","",null,null,null,null,null,null,null,null,null,null,null,null,null,null,null,null,null,null,null,null,null,0,"",null,null,null,null,null,null,null,"","",null,null,null,null,null,null,null,null,null,null," sites of value for reasons other than recoverable information"]
["","",null,null,null,null,null,null,null,null,null,null,null,null,null,null,null,null,null,null,null,null,null,0,"",null,null,null,null,null,null,null,"","",null,null,null,null,null,null,null,null,null,null," assessment of potential for archaeological sites in areas not previously surveyed"]
["","",null,null,null,null,null,null,null,null,null,null,null,null,null,null,null,null,null,null,null,null,null,0,"",null,null,null,null,null,null,null,"","",null,null,null,null,null,null,null,null,null,null," recommendations regarding need for archaeological survey"]
["","",null,null,null,null,null,null,null,null,null,null,null,null,null,null,null,null,null,null,null,null,null,{"$f":"IF(B169=\"\",0,IF(B169=\"PROJECT COORDINATION\",\"\",IF((SUM(D169:W169)=0),0,SUM(D169:W169))))","v":0},"",null,null,null,null,null,null,null,"","",null,null,null,null,null,null,null,null,null,null,"Graphics showing alternatives, previously studied areas, and known sites",15,"PROJECT COORDINATION"]
["","",null,null,null,null,null,null,null,null,null,null,null,null,null,null,null,null,null,null,null,null,null,{"$f":"IF(B170=\"\",0,IF((SUM(D170:W170)=0),0,SUM(D170:W170)))","v":0},"",null,null,null,null,null,null,null,"","",null,null,null,null,null,null,null,null,null,null,"Submit Draft Archaeological Overview Report",null,"Coordinate internally with staff and subconsultants"]
["","",null,null,null,null,null,null,null,null,null,null,null,null,null,null,null,null,null,null,null,null,null,0,"",null,null,null,null,null,null,null,"","",null,null,null,null,null,null,null,null,null,null,"Address NCDOT comments on Draft Archaeological Overview Report"]
["","",null,null,null,null,null,null,null,null,null,null,null,null,null,null,null,null,null,null,null,null,null,0,"",null,null,null,null,null,null,null,"","",null,null,null,null,null,null,null,null,null,null,"Submit Final Archaeological Overview Report"]
["","",null,null,null,null,null,null,null,null,null,null,null,null,null,null,null,null,null,null,null,null,null,0,"",null,null,null,null,null,null,null,"","",null,null,null,null,null,null,null,null,null,null,"Meeting attendance and coordination"]
["","",null,null,null,null,null,null,null,null,null,null,null,null,null,null,null,null,null,null,null,null,null,0,"",null,null,null,null,null,null,null,"","",null,null,null,null,null,null,null,null,null,"F.5.c"]
["","",null,null,null,null,null,null,null,null,null,null,null,null,null,null,null,null,null,null,null,null,null,0,"",null,null,null,null,null,null,null,"","",null,null,null,null,null,null,null,null,null,"F.5.d"]
["","",null,null,null,null,null,null,null,null,null,null,null,null,null,null,null,null,null,null,null,null,null,{"$f":"IF(B176=\"\",0,IF(B176=\"TRUCK ALTERNATIVE ROUTE ANALYSIS\",\"\",IF((SUM(D176:W176)=0),0,SUM(D176:W176))))","v":0},"",null,null,null,null,null,null,null,"","",null,null,null,null,null,null,null,null,null,"F.5.e",null,16,"TRUCK ALTERNATIVE ROUTE ANALYSIS"]
["","",null,null,null,null,null,null,null,null,null,null,null,null,null,null,null,null,null,null,null,null,null,{"$f":"IF(B177=\"\",0,IF((SUM(D177:W177)=0),0,SUM(D177:W177)))","v":0},"",null,null,null,null,null,null,null,"","",null,null,null,null,null,null,null,null,null,"F.5.f",null,null,"Truck Alternative Route Analysis (XX to the Port)"]
["","",null,null,null,null,null,null,null,null,null,null,null,null,null,null,null,null,null,null,null,null,null,{"$f":"IF(B178=\"\",0,IF((SUM(D178:W178)=0),0,SUM(D178:W178)))","v":0},"",null,null,null,null,null,null,null,"","",null,null,null,null,null,null,null,null,null,"F.5.g"]
["","",null,null,null,null,null,null,null,null,null,null,null,null,null,null,null,null,null,null,null,null,null,{"$f":"IF(B179=\"\",0,IF(B179=\"OTHER PHYSICAL FEATURES ANALYSIS\",\"\",IF((SUM(D179:W179)=0),0,SUM(D179:W179))))","v":0},"",null,null,null,null,null,null,null,"","",null,null,null,null,null,null,null,null,null,"G","OTHER PHYSICAL FEATURES ANALYSIS"]
["","",null,null,null,null,null,null,null,null,null,null,null,null,null,null,null,null,null,null,null,null,null,{"$f":"IF(B180=\"\",0,IF((SUM(D180:W180)=0),0,SUM(D180:W180)))","v":0},"",null,null,null,null,null,null,null,"","",null,null,null,null,null,null,null,null,null,"G.1","Identify Potential Floodplain and Floodway Impacts"]
["","",null,null,null,null,null,null,null,null,null,null,null,null,null,null,null,null,null,null,null,null,null,{"$f":"IF(B181=\"\",0,IF((SUM(D181:W181)=0),0,SUM(D181:W181)))","v":0},"",null,null,null,null,null,null,null,"","",null,null,null,null,null,null,null,null,null,"G.2","Farmland Assessment"]
["","",null,null,null,null,null,null,null,null,null,null,null,null,null,null,null,null,null,null,null,null,null,{"$f":"IF(B182=\"\",0,IF(B182=\"FEASIBILITY STUDY\",\"\",IF((SUM(D182:W182)=0),0,SUM(D182:W182))))","v":0},"",null,null,null,null,null,null,null,"","",null,null,null,null,null,null,null,null,null,"G.3","Hazardous Materials Assessment",17,"FEASIBILITY STUDY"]
["","",null,null,null,null,null,null,null,null,null,null,null,null,null,null,null,null,null,null,null,null,null,{"$f":"IF(B183=\"\",0,IF((SUM(D183:W183)=0),0,SUM(D183:W183)))","v":0},"",null,null,null,null,null,null,null,"","",null,null,null,null,null,null,null,null,null,"G.4","Visual Impact Analysis"]
["","",null,null,null,null,null,null,null,null,null,null,null,null,null,null,null,null,null,null,null,null,null,0,"",null,null,null,null,null,null,null,"","",null,null,null,null,null,null,null,null,null,"G.5","Identify Potential Public Utility Impacts"]
["","",null,null,null,null,null,null,null,null,null,null,null,null,null,null,null,null,null,null,null,null,null,0,"",null,null,null,null,null,null,null,"","",null,null,null,null,null,null,null,null,null,"G.6"]
["","",null,null,null,null,null,null,null,null,null,null,null,null,null,null,null,null,null,null,null,null,null,0,"",null,null,null,null,null,null,null,"","",null,null,null,null,null,null,null,null,null,"G.7"]
["","",null,null,null,null,null,null,null,null,null,null,null,null,null,null,null,null,null,null,null,null,null,0,"",null,null,null,null,null,null,null,"","",null,null,null,null,null,null,null,null,null,"G.8"]
["","",null,null,null,null,null,null,null,null,null,null,null,null,null,null,null,null,null,null,null,null,null,0,"",null,null,null,null,null,null,null,"","",null,null,null,null,null,null,null,null,null,"G.9"]
["","",null,null,null,null,null,null,null,null,null,null,null,null,null,null,null,null,null,null,null,null,null,0,"",null,null,null,null,null,null,null,"","",null,null,null,null,null,null,null,null,null,"G.10"]
["","",null,null,null,null,null,null,null,null,null,null,null,null,null,null,null,null,null,null,null,null,null,{"$f":"IF(B190=\"\",0,IF(B190=\"SECTION 4(F) AND SECTION 6(F)\",\"\",IF((SUM(D190:W190)=0),0,SUM(D190:W190))))","v":0},"",null,null,null,null,null,null,null,"","",null,null,null,null,null,null,null,null,null,"H","SECTION 4(F) AND SECTION 6(F)"]
["","",null,null,null,null,null,null,null,null,null,null,null,null,null,null,null,null,null,null,null,null,null,{"$f":"IF(B191=\"\",0,IF((SUM(D191:W191)=0),0,SUM(D191:W191)))","v":0},"",null,null,null,null,null,null,null,"","",null,null,null,null,null,null,null,null,null,"H.1"]
["","",null,null,null,null,null,null,null,null,null,null,null,null,null,null,null,null,null,null,null,null,null,{"$f":"IF(B192=\"\",0,IF((SUM(D192:W192)=0),0,SUM(D192:W192)))","v":0},"",null,null,null,null,null,null,null,"","",null,null,null,null,null,null,null,null,null,"H.2"]
["","",null,null,null,null,null,null,null,null,null,null,null,null,null,null,null,null,null,null,null,null,null,{"$f":"IF(B193=\"\",0,IF((SUM(D193:W193)=0),0,SUM(D193:W193)))","v":0},"",null,null,null,null,null,null,null,"","",null,null,null,null,null,null,null,null,null,"H.3"]
["","",null,null,null,null,null,null,null,null,null,null,null,null,null,null,null,null,null,null,null,null,null,{"$f":"IF(B194=\"\",0,IF((SUM(D194:W194)=0),0,SUM(D194:W194)))","v":0},"",null,null,null,null,null,null,null,"","",null,null,null,null,null,null,null,null,null,"H.4"]
["","",null,null,null,null,null,null,null,null,null,null,null,null,null,null,null,null,null,null,null,null,null,{"$f":"IF(B195=\"\",0,IF((SUM(D195:W195)=0),0,SUM(D195:W195)))","v":0},"",null,null,null,null,null,null,null,"","",null,null,null,null,null,null,null,null,null,"H.5"]
["","",null,null,null,null,null,null,null,null,null,null,null,null,null,null,null,null,null,null,null,null,null,{"$f":"IF(B196=\"\",0,IF(B196=\"DRAFT ENVIRONMENTAL DOCUMENT\",\"\",IF((SUM(D196:W196)=0),0,SUM(D196:W196))))","v":0},"",null,null,null,null,null,null,null,"","",null,null,null,null,null,null,null,null,null,"I","DRAFT ENVIRONMENTAL DOCUMENT"]
["","",null,null,null,null,null,null,null,null,null,null,null,null,null,null,null,null,null,null,null,null,null,{"$f":"IF(B197=\"\",0,IF((SUM(D197:W197)=0),0,SUM(D197:W197)))","v":0},"",null,null,null,null,null,null,null,"","",null,null,null,null,null,null,null,null,null,"I.1","Purpose and Need"]
["","",null,null,null,null,null,null,null,null,null,null,null,null,null,null,null,null,null,null,null,null,null,0,"",null,null,null,null,null,null,null,"","",null,null,null,null,null,null,null,null,null,"I.2","Alternatives Considered"]
["","",null,null,null,null,null,null,null,null,null,null,null,null,null,null,null,null,null,null,null,null,null,0,"",null,null,null,null,null,null,null,"","",null,null,null,null,null,null,null,null,null,"I.3","Human Environment"]
["","",null,null,null,null,null,null,null,null,null,null,null,null,null,null,null,null,null,null,null,null,null,0,"",null,null,null,null,null,null,null,"","",null,null,null,null,null,null,null,null,null,"I.4","Physical Environment"]
["","",null,null,null,null,null,null,null,null,null,null,null,null,null,null,null,null,null,null,null,null,null,0,"",null,null,null,null,null,null,null,"","",null,null,null,null,null,null,null,null,null,"I.5","Cultural Resources"]
["","",null,null,null,null,null,null,null,null,null,null,null,null,null,null,null,null,null,null,null,null,null,0,"",null,null,null,null,null,null,null,"","",null,null,null,null,null,null,null,null,null,"I.6","Natural Resources"]
["","",null,null,null,null,null,null,null,null,null,null,null,null,null,null,null,null,null,null,null,null,null,0,"",null,null,null,null,null,null,null,"","",null,null,null,null,null,null,null,null,null,"I.7","Environmental Impacts"]
[{"$f":"IF(AG204=0,\"\",AG204)","v":""},"",null,null,null,null,null,null,null,null,null,null,null,null,null,null,null,null,null,null,null,null,null,0,"",null,null,null,null,null,null,null,{"$f":"IF($AA$4=\"Select Task Type\",\"\",IF($AA$4=\"Grade Separation\",AJ204,IF($AA$4=\"CEI\",AL204,IF($AA$4=\"Track Design\",AN204,IF($AA$4=\"Signal Design\",AP204,IF($AA$4=\"Environmental\",AR204,IF($AA$4=\"Planning\",AT204,\"\")))))))","v":""},"",null,null,null,null,null,null,null,null,null,"I.8","Indirect and Cumulative Effects"]
["","",null,null,null,null,null,null,null,null,null,null,null,null,null,null,null,null,null,null,null,null,null,0,{"$f":"IF(SUM(D205:W205)=0,\"\",((SUM(D205:W205))/$X$261))","v":""},null,null,null,null,null,null,null,"","",null,null,null,null,null,null,null,null,null,"I.9","Other Impact Considerations"]
["","",null,null,null,null,null,null,null,null,null,null,null,null,null,null,null,null,null,null,null,null,null,0,"",null,null,null,null,null,null,null,"","",null,null,null,null,null,null,null,null,null,"I.10","Public Involvement ad Agency Coordination"]
["","",null,null,null,null,null,null,null,null,null,null,null,null,null,null,null,null,null,null,null,null,null,0,"",null,null,null,null,null,null,null,"","",null,null,null,null,null,null,null,null,null,"I.11","Compile Draft EA & Final EA"]
["","",null,null,null,null,null,null,null,null,null,null,null,null,null,null,null,null,null,null,null,null,null,0,"",null,null,null,null,null,null,null,"","",null,null,null,null,null,null,null,null,null,"I.12","Review and Distribution of EA"]
["","",null,null,null,null,null,null,null,null,null,null,null,null,null,null,null,null,null,null,null,null,null,0,"",null,null,null,null,null,null,null,"","",null,null,null,null,null,null,null,null,null,"I.13"]
["","",null,null,null,null,null,null,null,null,null,null,null,null,null,null,null,null,null,null,null,null,null,0,"",null,null,null,null,null,null,null,"","",null,null,null,null,null,null,null,null,null,"I.14"]
["","",null,null,null,null,null,null,null,null,null,null,null,null,null,null,null,null,null,null,null,null,null,0,"",null,null,null,null,null,null,null,"","",null,null,null,null,null,null,null,null,null,"I.15"]
["","",null,null,null,null,null,null,null,null,null,null,null,null,null,null,null,null,null,null,null,null,null,0,"",null,null,null,null,null,null,null,"","",null,null,null,null,null,null,null,null,null,"I.16"]
["","",null,null,null,null,null,null,null,null,null,null,null,null,null,null,null,null,null,null,null,null,null,0,"",null,null,null,null,null,null,null,"","",null,null,null,null,null,null,null,null,null,"I.17"]
["","",null,null,null,null,null,null,null,null,null,null,null,null,null,null,null,null,null,null,null,null,null,{"$f":"IF(B214=\"\",0,IF(B214=\"FINAL ENVIRONMENTAL DOCUMENT\",\"\",IF((SUM(D214:W214)=0),0,SUM(D214:W214))))","v":0},"",null,null,null,null,null,null,null,"","",null,null,null,null,null,null,null,null,null,"J","FINAL ENVIRONMENTAL DOCUMENT"]
["","",null,null,null,null,null,null,null,null,null,null,null,null,null,null,null,null,null,null,null,null,null,{"$f":"IF(B215=\"\",0,IF((SUM(D215:W215)=0),0,SUM(D215:W215)))","v":0},"",null,null,null,null,null,null,null,"","",null,null,null,null,null,null,null,null,null,"J.1","Compile FONSI"]
["","",null,null,null,null,null,null,null,null,null,null,null,null,null,null,null,null,null,null,null,null,null,0,"",null,null,null,null,null,null,null,"","",null,null,null,null,null,null,null,null,null,"J.2","Alternative Selection"]
["","",null,null,null,null,null,null,null,null,null,null,null,null,null,null,null,null,null,null,null,null,null,0,"",null,null,null,null,null,null,null,"","",null,null,null,null,null,null,null,null,null,"J.3","Prepare Draft & Final Finding of No Significant Impact (FONSI)"]
["","",null,null,null,null,null,null,null,null,null,null,null,null,null,null,null,null,null,null,null,null,null,0,"",null,null,null,null,null,null,null,"","",null,null,null,null,null,null,null,null,null,"J.4"]
["","",null,null,null,null,null,null,null,null,null,null,null,null,null,null,null,null,null,null,null,null,null,0,"",null,null,null,null,null,null,null,"","",null,null,null,null,null,null,null,null,null,"J.5"]
["","",null,null,null,null,null,null,null,null,null,null,null,null,null,null,null,null,null,null,null,null,null,0,"",null,null,null,null,null,null,null,"","",null,null,null,null,null,null,null,null,null,"J.6"]
["","",null,null,null,null,null,null,null,null,null,null,null,null,null,null,null,null,null,null,null,null,null,0,"",null,null,null,null,null,null,null,"","",null,null,null,null,null,null,null,null,null,"J.7"]
["","",null,null,null,null,null,null,null,null,null,null,null,null,null,null,null,null,null,null,null,null,null,0,"",null,null,null,null,null,null,null,"","",null,null,null,null,null,null,null,null,null,"J.8"]
["","",null,null,null,null,null,null,null,null,null,null,null,null,null,null,null,null,null,null,null,null,null,{"$f":"IF(B223=\"\",0,IF(B223=\"PUBLIC INVOLVEMENT\",\"\",IF((SUM(D223:W223)=0),0,SUM(D223:W223))))","v":0},"",null,null,null,null,null,null,null,"","",null,null,null,null,null,null,null,null,null,"K","PUBLIC INVOLVEMENT"]
["","",null,null,null,null,null,null,null,null,null,null,null,null,null,null,null,null,null,null,null,null,null,{"$f":"IF(B224=\"\",0,IF((SUM(D224:W224)=0),0,SUM(D224:W224)))","v":0},"",null,null,null,null,null,null,null,"","",null,null,null,null,null,null,null,null,null,"K.1","Informal Stakeholder Coordination"]
["","",null,null,null,null,null,null,null,null,null,null,null,null,null,null,null,null,null,null,null,null,null,0,"",null,null,null,null,null,null,null,"","",null,null,null,null,null,null,null,null,null,"K.2","Public Information Meeting"]
["","",null,null,null,null,null,null,null,null,null,null,null,null,null,null,null,null,null,null,null,null,null,0,"",null,null,null,null,null,null,null,"","",null,null,null,null,null,null,null,null,null,"K.3","Public Hearing"]
["","",null,null,null,null,null,null,null,null,null,null,null,null,null,null,null,null,null,null,null,null,null,0,"",null,null,null,null,null,null,null,"","",null,null,null,null,null,null,null,null,null,"K.4","Local Offical Information Meeting"]
["","",null,null,null,null,null,null,null,null,null,null,null,null,null,null,null,null,null,null,null,null,null,0,"",null,null,null,null,null,null,null,"","",null,null,null,null,null,null,null,null,null,"K.5","Mailer"]
["","",null,null,null,null,null,null,null,null,null,null,null,null,null,null,null,null,null,null,null,null,null,0,"",null,null,null,null,null,null,null,"","",null,null,null,null,null,null,null,null,null,"K.6","Meeting Maps"]
["","",null,null,null,null,null,null,null,null,null,null,null,null,null,null,null,null,null,null,null,null,null,0,"",null,null,null,null,null,null,null,"","",null,null,null,null,null,null,null,null,null,"K.7","Meeting Displays"]
["","",null,null,null,null,null,null,null,null,null,null,null,null,null,null,null,null,null,null,null,null,null,0,"",null,null,null,null,null,null,null,"","",null,null,null,null,null,null,null,null,null,"K.8"]
["","",null,null,null,null,null,null,null,null,null,null,null,null,null,null,null,null,null,null,null,null,null,0,"",null,null,null,null,null,null,null,"","",null,null,null,null,null,null,null,null,null,"K.9"]
["","",null,null,null,null,null,null,null,null,null,null,null,null,null,null,null,null,null,null,null,null,null,0,"",null,null,null,null,null,null,null,"","",null,null,null,null,null,null,null,null,null,"K.10"]
["","",null,null,null,null,null,null,null,null,null,null,null,null,null,null,null,null,null,null,null,null,null,0,"",null,null,null,null,null,null,null,"","",null,null,null,null,null,null,null,null,null,"K.11"]
["","",null,null,null,null,null,null,null,null,null,null,null,null,null,null,null,null,null,null,null,null,null,0,"",null,null,null,null,null,null,null,"","",null,null,null,null,null,null,null,null,null,"K.12"]
["","",null,null,null,null,null,null,null,null,null,null,null,null,null,null,null,null,null,null,null,null,null,{"$f":"IF(B236=\"\",0,IF(B236=\"PROJECT COORDINATION AND MANAGEMENT\",\"\",IF((SUM(D236:W236)=0),0,SUM(D236:W236))))","v":0},"",null,null,null,null,null,null,null,"","",null,null,null,null,null,null,null,null,null,"L","PROJECT COORDINATION AND MANAGEMENT"]
["","",null,null,null,null,null,null,null,null,null,null,null,null,null,null,null,null,null,null,null,null,null,{"$f":"IF(B237=\"\",0,IF((SUM(D237:W237)=0),0,SUM(D237:W237)))","v":0},"",null,null,null,null,null,null,null,"","",null,null,null,null,null,null,null,null,null,"L.1","Project Schedule"]
["","",null,null,null,null,null,null,null,null,null,null,null,null,null,null,null,null,null,null,null,null,null,0,"",null,null,null,null,null,null,null,"","",null,null,null,null,null,null,null,null,null,"L.2","Coordination with NCDOT"]
["","",null,null,null,null,null,null,null,null,null,null,null,null,null,null,null,null,null,null,null,null,null,0,"",null,null,null,null,null,null,null,"","",null,null,null,null,null,null,null,null,null,"L.3","General Coordination"]
["","",null,null,null,null,null,null,null,null,null,null,null,null,null,null,null,null,null,null,null,null,null,0,"",null,null,null,null,null,null,null,"","",null,null,null,null,null,null,null,null,null,"L.4"]
["","",null,null,null,null,null,null,null,null,null,null,null,null,null,null,null,null,null,null,null,null,null,0,"",null,null,null,null,null,null,null,"","",null,null,null,null,null,null,null,null,null,"L.5"]
["","",null,null,null,null,null,null,null,null,null,null,null,null,null,null,null,null,null,null,null,null,null,0,"",null,null,null,null,null,null,null,"","",null,null,null,null,null,null,null,null,null,"L.6"]
["","",null,null,null,null,null,null,null,null,null,null,null,null,null,null,null,null,null,null,null,null,null,0,"",null,null,null,null,null,null,null,"","",null,null,null,null,null,null,null,null,null,"L.7"]
["","",null,null,null,null,null,null,null,null,null,null,null,null,null,null,null,null,null,null,null,null,null,0,"",null,null,null,null,null,null,null,"","",null,null,null,null,null,null,null,null,null,"L.8"]
["","",null,null,null,null,null,null,null,null,null,null,null,null,null,null,null,null,null,null,null,null,null,0,"",null,null,null,null,null,null,null,"",""]
["","",null,null,null,null,null,null,null,null,null,null,null,null,null,null,null,null,null,null,null,null,null,0,"",null,null,null,null,null,null,null,"",""]
["","",null,null,null,null,null,null,null,null,null,null,null,null,null,null,null,null,null,null,null,null,null,0,"",null,null,null,null,null,null,null,"",""]
["","",null,null,null,null,null,null,null,null,null,null,null,null,null,null,null,null,null,null,null,null,null,0,"",null,null,null,null,null,null,null,"",""]
["","",null,null,null,null,null,null,null,null,null,null,null,null,null,null,null,null,null,null,null,null,null,0,"",null,null,null,null,null,null,null,"",""]
["","",null,null,null,null,null,null,null,null,null,null,null,null,null,null,null,null,null,null,null,null,null,0,"",null,null,null,null,null,null,null,"",""]
["","",null,null,null,null,null,null,null,null,null,null,null,null,null,null,null,null,null,null,null,null,null,0,"",null,null,null,null,null,null,null,"",""]
["","",null,null,null,null,null,null,null,null,null,null,null,null,null,null,null,null,null,null,null,null,null,0,"",null,null,null,null,null,null,null,"",""]
["","",null,null,null,null,null,null,null,null,null,null,null,null,null,null,null,null,null,null,null,null,null,0,"",null,null,null,null,null,null,null,"",""]
["","",null,null,null,null,null,null,null,null,null,null,null,null,null,null,null,null,null,null,null,null,null,0,"",null,null,null,null,null,null,null,"",""]
["","",null,null,null,null,null,null,null,null,null,null,null,null,null,null,null,null,null,null,null,null,null,0,"",null,null,null,null,null,null,null,"",""]
["","",null,null,null,null,null,null,null,null,null,null,null,null,null,null,null,null,null,null,null,null,null,0,"",null,null,null,null,null,null,null,"",""]
["","",null,null,null,null,null,null,null,null,null,null,null,null,null,null,null,null,null,null,null,null,null,0,"",null,null,null,null,null,null,null,"",""]
["","",null,null,null,null,null,null,null,null,null,null,null,null,null,null,null,null,null,null,null,null,null,0,"",null,null,null,null,null,null,null,"",""]
["","",null,null,null,null,null,null,null,null,null,null,null,null,null,null,null,null,null,null,null,null,null,0,{"$f":"IF(SUM(D259:W259)=0,\"\",((SUM(D259:W259))/$X$261))","v":""},null,null,null,null,null,null,null,"",""]
["","",null,null,null,null,null,null,null,null,null,null,null,null,null,null,null,null,null,null,null,null,null,0,{"$f":"IF(SUM(D260:W260)=0,\"\",((SUM(D260:W260))/$X$261))","v":""},null,null,null,null,null,null,null,"",""]
[null,"TOTAL WORKHOURS/CATEGORY:",null,{"$f":"SUM(D11:D260)","v":0},0,0,0,0,0,0,0,0,0,0,0,0,0,0,0,0,0,0,0,{"$f":"SUM(D261:W261)","v":0},{"$f":"SUM(Y11:Y260)","v":0},{"$f":"SUM(Z11:Z260)","v":0}]
[null,"TOTAL WORKDAYS/CATEGORY:",null,{"$f":"D261/8","v":0},{"$f":"E261/8","v":0},0,0,0,0,0,0,0,0,0,0,0,0,0,0,0,0,0,0]
[null,"HOURLY SALARY RATE:",null,{"$f":"'PEF CLASSIFICATION SHEET'!E1299","v":0},{"$f":"'PEF CLASSIFICATION SHEET'!E1300","v":0},{"$f":"'PEF CLASSIFICATION SHEET'!E1301","v":0},{"$f":"'PEF CLASSIFICATION SHEET'!E1302","v":0},{"$f":"'PEF CLASSIFICATION SHEET'!E1303","v":0},{"$f":"'PEF CLASSIFICATION SHEET'!E1304","v":0},{"$f":"'PEF CLASSIFICATION SHEET'!E1305","v":0},{"$f":"'PEF CLASSIFICATION SHEET'!E1306","v":0},{"$f":"'PEF CLASSIFICATION SHEET'!E1307","v":0},{"$f":"'PEF CLASSIFICATION SHEET'!E1308","v":0},{"$f":"'PEF CLASSIFICATION SHEET'!E1309","v":0},{"$f":"'PEF CLASSIFICATION SHEET'!E1310","v":0},{"$f":"'PEF CLASSIFICATION SHEET'!E1311","v":0},{"$f":"'PEF CLASSIFICATION SHEET'!E1312","v":0},{"$f":"'PEF CLASSIFICATION SHEET'!E1313","v":0},{"$f":"'PEF CLASSIFICATION SHEET'!E1314","v":0},{"$f":"'PEF CLASSIFICATION SHEET'!E1315","v":0},{"$f":"'PEF CLASSIFICATION SHEET'!E1316","v":0},{"$f":"'PEF CLASSIFICATION SHEET'!E1317","v":0},{"$f":"'PEF CLASSIFICATION SHEET'!E1318","v":0}]
[null,"RATES PER DAY:",null,{"$f":"D263*8","v":0},0,0,0,0,0,0,0,0,0,0,0,0,0,0,0,0,0,0,0]
[null,"PAYROLL BURDEN:",null,{"$f":"SUM(D261*D263)","v":0},{"$f":"SUM(E261*E263)","v":0},0,0,0,0,0,0,0,0,0,0,0,0,0,0,0,0,0,0]
[null,"TOTAL WORKDAYS:",null,{"$f":"SUM(D262:W262)","v":0}]
[null,"TOTAL PAYROLL BURDEN:",null,{"$f":"SUM(D265:W265)","v":0}]
[null,"AVERAGE COST PER HOUR:",null,{"$f":"SUM(D267/(D266*8))","v":{"$error":"#DIV/0!"}}]
[null,"GENERAL OVERHEAD:",{"$f":"RAIL.SUB10_CONSULTANT_OVERHEAD","v":0},{"$f":"SUM(D267*C269)","v":0}]
[null,"SUBTOTAL:",null,{"$f":"SUM(D267+D269)","v":0}]
[null,"COMPARATIVE FEE:",{"$f":"RAIL.SUB10_CONSULTANT_FEE","v":0.09},{"$f":"SUM(D270*C271)","v":0}]
[null,"FACILITIES COST OF CAPITAL:",{"$f":"RAIL.SUB10_COSTofCAPITAL","v":0},{"$f":"SUM(D267*C272)","v":0}]
[null,"TOTAL:",null,{"$f":"SUM(D270:D272)","v":0}]
[null,"DIRECT EXPENSES:",null,{"$f":"RAIL.SUB10_DIRECT_NONSALARY_TOTAL","v":0}]
[null,"RAIL GRAND TOTAL:",null,{"$f":"SUM(D273:D274)","v":0}]

{"sheet":"Rail-Exp-Sub10","index":158,"n_rows":46,"n_cols":8,"rows_kept":46,"cut":false,"hidden":true,"merged":[[0,0,0,7],[1,3,1,7]]}
["RAIL--DIRECT EXPENSES - SUBCONSULTANT 10"]
["TIP NUMBER",{"$f":"TIP.NUMBER","v":0},"FIRM:",{"$f":"'Rail-Sub10'!G3","v":"CONSULTANT NAME"}]
[]
["GENERAL PROJECT WORK:","ITEM","QTY","DESCRIPTION",null,null,"UNIT COST "]
[null,"Travel:"]
[null,"Sedan",0,"Trip(s) @",0,"miles @",{"$f":"SEDAN","v":0.7},{"$f":"SUM(C6*E6*G6)","v":0}]
[null,"Carry All",0,"Trip(s) @",0,"miles @",{"$f":"CARRYALL","v":0.72},{"$f":"SUM(C7*E7*G7)","v":0}]
[null,"Car Rental",null,null,0,"days @ ",{"$f":"CARRENTAL","v":50},{"$f":"SUM(E8*G8)","v":0}]
[null,"Gas for Rental",null,null,0,"miles @",{"$f":"GASforRENTAL","v":0.2},{"$f":"SUM(E9*G9)","v":0}]
[null,"Parking:",0,"Trip(s) @",null,null,{"$f":"PARKING","v":3},{"$f":"SUM(C10*G10)","v":0}]
[null,"Per Diem:",0,"Breakfast",null,null,{"$f":"BREAKFAST","v":10.1},{"$f":"SUM(C11*G11)","v":0}]
[null,null,0,"Lunch",null,null,{"$f":"LUNCH","v":13.3},0]
[null,null,0,"Dinner",null,null,{"$f":"DINNER","v":23.1},0]
[null,null,0,"Lodging",null,null,{"$f":"LODGING_LUMP.SUM","v":95},0]
[null,"Reproduction:",0,"8 1/2 x 11 B & W Copies @",null,null,{"$f":"LETTERCOPIES","v":0.14000000000000001},0]
[null,null,0,"11 x 17 B & W Copies @",null,null,{"$f":"LEDGERCOPIES","v":0.34},0]
[null,null,0,"8 1/2 x 11 Color Copies @",null,null,{"$f":"LETTERCOLOR","v":0.83},0]
[null,null,0,"11 x 17 Color Copies @",null,null,{"$f":"LEDGERCOLOR","v":1.66},0]
[null,null,0,"SQ. FT. of Plots (B & W or Color)",null,"<65 SQ. FT.*",{"$f":"ROLLPLOTSshort","v":6.5},0]
[null,null,0,"SQ. FT. of Plots (B & W or Color)",null,">65 SQ. FT.*",{"$f":"ROLLPLOTSlong","v":1.5},0]
[null,null,0,"Cover(s) @",null,null,{"$f":"COVERS","v":0.5},0]
[null,null,0,"Binder(s) @",null,null,{"$f":"BINDERS","v":0.5},0]
[null,null,0,"Blueprints - 8 1/2 x 11 @",null,null,{"$f":"BLUEPRINTSLETTER","v":0.35},0]
[null,null,0,"Blueprints - 42 x 72 @",null,null,{"$f":"BLUEPRINTSLARGE","v":1.3},0]
[null,"Film and Developing:",0,"Roll(s) @",null,null,{"$f":"FILM","v":20},0]
[null,null,null,null,null,"Subtotal",null,{"$f":"SUM(H6:H25)","v":0}]
["MAPS AND DOCUMENTS:","ITEM","QTY","DESCRIPTION",null,null,"UNIT COST "]
[null,"County Tax Maps:",0,"Map(s) @",null,null,{"$f":"County_Tax_Maps","v":7},{"$f":"SUM(C28*G28)","v":0}]
[null,"USGS Maps:",0,"Map(s) @",null,null,{"$f":"USGSMAPS","v":7},{"$f":"SUM(C29*G29)","v":0}]
[null,null,null,null,null,"Subtotal",null,{"$f":"SUM(H28:H29)","v":0}]
["Miscellaneous Other","ITEM","QTY","DESCRIPTION",null,null,"UNIT COST "]
[null,null,null,null,null,null,null,{"$f":"SUM(C32*G32)","v":0}]
[null,null,null,null,null,null,null,{"$f":"SUM(C33*G33)","v":0}]
[null,null,null,null,null,null,null,0]
[null,null,null,null,null,null,null,0]
[null,null,null,null,null,null,null,0]
[null,null,null,null,null,null,null,0]
[null,null,null,null,null,null,null,0]
[null,null,null,null,null,null,null,{"$f":"SUM(C39*G39)","v":0}]
[null,null,null,null,null,null,null,{"$f":"SUM(C40*G40)","v":0}]
[null,null,null,null,null,null,null,{"$f":"SUM(C41*G41)","v":0}]
[null,null,null,null,null,"Subtotal",null,{"$f":"SUM(H32:H41)","v":0}]
[]
[null,null,null,null,null,"TOTAL",null,{"$f":"SUM(H26+H30+H42)","v":0}]
[]
[null,"* Sum of all plots "]

{"sheet":"Signing-Sub1","index":159,"n_rows":136,"n_cols":20,"rows_kept":136,"cut":false,"hidden":true,"merged":[[6,0,6,2],[7,0,7,2],[8,0,8,2],[26,0,26,2],[28,0,28,2],[135,3,135,5],[21,3,21,12],[29,0,29,2],[31,0,31,2],[35,0,35,2],[36,0,36,2],[37,0,37,2],[39,0,39,2],[32,0,32,2],[33,0,33,2],[40,0,40,2],[42,0,42,2],[45,0,45,2],[48,0,48,2],[51,0,51,2],[14,13,14,14],[17,1,17,4],[8,4,8,6],[24,0,24,2],[25,0,25,2]]}
["MDEST6.XLS",null,null,"SIGNING ESTIMATE WORKSHEET - SUBCONSULTANT 1"]
["REV 06/15/23"]
[]
[null,null," DATE:",{"$f":"IF(SCOPE.MANDAY.ESTIMATE.PREPARED.BY.DATE=\"\",\"\",SCOPE.MANDAY.ESTIMATE.PREPARED.BY.DATE)","v":""}]
[null,null,"TIP #:",{"$f":"IF(TIP.NUMBER=\"\",\"\",TIP.NUMBER)","v":""}]
[]
["CONSULTANT:",null,null,{"$f":"SIGNING_SUB1_CONSULTANT_NAME","v":"CONSULTANT NAME"}]
["          PROJECT #:",null,null,"XXXXXX"]
["   PREL EST WORKDAYS:",null,null,{"$f":"O57","v":0}]
[]
[null,null,null,null,null,null,null,null,{"$f":"IF(E14=0,0,1)","v":0},">UTILITY"]
[" ","EST SIGNING RDWY SHEETS:",null,null,null,"# DAYS FIELD TRIPS:",null,null,"(PRELIM)"]
[null,"TOTAL SIGN PLAN SHEETS:",null,null,null,"# DAYS FIELD TRIPS:",null,null,"(SUPPORTS)"," ",null,null,null,"TOTAL # OF SIGNS"]
[null,"# OH STRUCTURES:",null,null,null,"# A&B GRND-MT SIGNS:",null,null,null,null,null,null,null,"NEEDING SUPPORTS:"]
[null,null,null,null,null,"# A&B OVERHEAD SIGNS:",null,null,null,null,null,null,null,{"$f":"SUM(H14,H17)","v":0}]
[null,"# Y-LINES - INTERCHANGE:",null,null,null,"# D SIGNS"]
[null,"# Y-LINES - AT GRADE:",null,null,null,"SIGNS / SUPPORTS ONLY"]
[null,"(only count -Y-lines requiring more than a stop sign)",null,null,null,"TOT.# A,B,D SIGNS:",null,{"$f":"SUM(H14:H16)","v":0}]
[]
[null,null,null,"    ALLOWED ROUNDTRIP MILEAGE PER TRIP:",null,null,null,null,"MILES"]
[]
[null,null,null,"ESTIMATED WORKHOURS"]
[null,null,"EMPLOYEE",{"$f":"IF('PEF CLASSIFICATION SHEET'!D1321=\"\",\"\",LEFT('PEF CLASSIFICATION SHEET'!D1321,4))","v":""},{"$f":"IF('PEF CLASSIFICATION SHEET'!D1322=\"\",\"\",LEFT('PEF CLASSIFICATION SHEET'!D1322,4))","v":""},{"$f":"IF('PEF CLASSIFICATION SHEET'!D1323=\"\",\"\",LEFT('PEF CLASSIFICATION SHEET'!D1323,4))","v":""},{"$f":"IF('PEF CLASSIFICATION SHEET'!D1324=\"\",\"\",LEFT('PEF CLASSIFICATION SHEET'!D1324,4))","v":""},{"$f":"IF('PEF CLASSIFICATION SHEET'!D1325=\"\",\"\",LEFT('PEF CLASSIFICATION SHEET'!D1325,4))","v":""},{"$f":"IF('PEF CLASSIFICATION SHEET'!D1326=\"\",\"\",LEFT('PEF CLASSIFICATION SHEET'!D1326,4))","v":""},{"$f":"IF('PEF CLASSIFICATION SHEET'!D1327=\"\",\"\",LEFT('PEF CLASSIFICATION SHEET'!D1327,4))","v":""},{"$f":"IF('PEF CLASSIFICATION SHEET'!D1328=\"\",\"\",LEFT('PEF CLASSIFICATION SHEET'!D1328,4))","v":""},{"$f":"IF('PEF CLASSIFICATION SHEET'!D1329=\"\",\"\",LEFT('PEF CLASSIFICATION SHEET'!D1329,4))","v":""},{"$f":"IF('PEF CLASSIFICATION SHEET'!D1330=\"\",\"\",LEFT('PEF CLASSIFICATION SHEET'!D1330,4))","v":""}]
["TASK",null,null,{"$f":"IF('PEF CLASSIFICATION SHEET'!C1321=\"\",\"\",'PEF CLASSIFICATION SHEET'!C1321)","v":"TEM I"},{"$f":"IF('PEF CLASSIFICATION SHEET'!C1322=\"\",\"\",'PEF CLASSIFICATION SHEET'!C1322)","v":"TES III"},{"$f":"IF('PEF CLASSIFICATION SHEET'!C1323=\"\",\"\",'PEF CLASSIFICATION SHEET'!C1323)","v":"TE II"},{"$f":"IF('PEF CLASSIFICATION SHEET'!C1324=\"\",\"\",'PEF CLASSIFICATION SHEET'!C1324)","v":"TE I"},{"$f":"IF('PEF CLASSIFICATION SHEET'!C1325=\"\",\"\",'PEF CLASSIFICATION SHEET'!C1325)","v":"TT V"},{"$f":"IF('PEF CLASSIFICATION SHEET'!C1326=\"\",\"\",'PEF CLASSIFICATION SHEET'!C1326)","v":""},{"$f":"IF('PEF CLASSIFICATION SHEET'!C1327=\"\",\"\",'PEF CLASSIFICATION SHEET'!C1327)","v":""},{"$f":"IF('PEF CLASSIFICATION SHEET'!C1328=\"\",\"\",'PEF CLASSIFICATION SHEET'!C1328)","v":""},{"$f":"IF('PEF CLASSIFICATION SHEET'!C1329=\"\",\"\",'PEF CLASSIFICATION SHEET'!C1329)","v":""},{"$f":"IF('PEF CLASSIFICATION SHEET'!C1330=\"\",\"\",'PEF CLASSIFICATION SHEET'!C1330)","v":""}," ","TOTAL","NOTES"]
["PRELIMINARY SIGNING (2SD1)"]
["Field Investigation/Trip",null,null,null,null,null,null,null,null,null,null,null,null,null,{"$f":"SUM(D26:M26)","v":0}]
["Preliminary Signing Concept/Layout\nDocument Conflicts",null,null,null,null,null,null,null,null,null,null,null,null,null,{"$f":"SUM(D27:M27)","v":0}]
[{"$f":"SUM(O26:O27)","v":0},"HR"]
["SIGN DESIGNS (3SD1)"]
["Design Sign Panels (Complete sign\n designs for type \"A\",\"B\" &\"D\" signs) ",null,null,null,null,null,null,null,null,null,null,null,null,null,{"$f":"SUM(D30:M30)","v":0}]
[{"$f":"SUM(O30:O30)","v":0},"HR"]
["SUPPORT DESIGN (3SD1)"]
["Determine preliminary S-Dimensions",null,null,null,null,null,null,null,null,null,null,null,null,null,{"$f":"SUM(D33:M33)","v":0}]
["Prepare preliminary support chart",null,null,null,null,null,null,null,null,null,null,null,null,null,0]
[{"$f":"SUM(O33:O34)","v":0},"HR"]
["SIGNING PLAN SHEETS (3SD1)"]
["Prepare signing plans (plan view\nsheets with notes, stationing)",null,null,null,null,null,null,null,null,null,null,null,null,null,{"$f":"SUM(D37:M37)","v":0}]
["Prepare sheets for type \"E\" & \"F\"\nsigns, cover sheet and support chart",null,null,null,null,null,null,null,null,null,null,null,null,null,0]
[{"$f":"SUM(O37:O38)","v":0},"HR"]
["OVERHEAD DRAWINGS (3SD1)"]
["Prepare structure line drawings (i.e.\nwindload, lanes, structures, slopes,\nS-Dimensions, signs, vertical clearances, lateral offsets, request structure numbers)",null,null,null,null,null,null,null,null,null,null,null,null,null,{"$f":"SUM(D41:M41)","v":0}]
[{"$f":"SUM(O41:O41)","v":0},"HR"]
["QUANTITIES/CALC SHEETS (3SD1)   \nPROJECT SPECIAL PROVISIONS      "]
[{"$f":"SUM(O44:O44)","v":0},"HR",null,null,null,null,null,null,null,null,null,null,null,null,{"$f":"SUM(D43:M43)","v":0}]
[]
["QC/QA (3SD1)",null,null,null,null,null,null,null,null,null,null,null,null,null,null,null,null,null,null," "]
[{"$f":"SUM(O47:O47)","v":0},"HR",null,null,null,null,null,null,null,null,null,null,null,null,{"$f":"SUM(D46:M46)","v":0}]
[]
["ELECTRONIC SUBMITTAL (2SD1,3SD1)"]
[{"$f":"SUM(O50:O50)","v":0},"HR",null,null,null,null,null,null,null,null,null,null,null,null,{"$f":"SUM(D49:M49)","v":0}]
[]
["MEETINGS, ADMIN (2SD1,3SD1)"]
[{"$f":"SUM(O53:O53)","v":0},"HR",null,null,null,null,null,null,null,null,null,null,null,null,{"$f":"SUM(D52:M52)","v":0}]
["TOTAL WORKHOURS",null,null,{"$f":"SUM(D26:D53)","v":0},{"$f":"SUM(E26:E53)","v":0},0,0,0,0,0,0,0,0,null,{"$f":"SUM(O26:O53)","v":0}]
["TOTAL WORKDAYS",null,null,{"$f":"D54/8","v":0},0,0,0,0,0,0,0,0,0,null,0]
[null,null,null,"---","---","---","---","---","---","---","---","---","---",null,"---"]
["TOTAL WORKDAYS",null,null,null,null,null,null,null,null,null,null,null,null,null,{"$f":"O55","v":0}]
[" "]
[]
[]
[null,null,null,"AVERAGE STANDARD RATE PER HOUR"]
[]
[null,null,"A","B","        C","     D","EMPLOYEE",null,"    (B*C)/D"]
["CLASSIFICATION"," NO.WORKDAYS",null,"% TOT WD","      RATE","  FACTOR","NAMES",null,"  AVG STD RATE"]
[{"$f":"IF('PEF CLASSIFICATION SHEET'!C319=\"\",\"\",'PEF CLASSIFICATION SHEET'!C319)","v":"TEM I"},null,{"$f":"D55","v":0},{"$f":"IF(ISERR(+C65/C$77),0,+C65/C$77)","v":0},{"$f":"'PEF CLASSIFICATION SHEET'!E1321","v":0},1,{"$f":"D23","v":""},null,{"$f":"IF(ISERR(+D65*E65/F65),0,+D65*E65/F65)","v":0}]
[{"$f":"IF('PEF CLASSIFICATION SHEET'!C320=\"\",\"\",'PEF CLASSIFICATION SHEET'!C320)","v":"TES III"},null,{"$f":"E55","v":0},{"$f":"IF(ISERR(+C66/C$77),0,+C66/C$77)","v":0},{"$f":"'PEF CLASSIFICATION SHEET'!E1322","v":0},{"$f":"$F$65","v":1},{"$f":"E23","v":""},null,{"$f":"IF(ISERR(+D66*E66/F66),0,+D66*E66/F66)","v":0}]
[{"$f":"IF('PEF CLASSIFICATION SHEET'!C321=\"\",\"\",'PEF CLASSIFICATION SHEET'!C321)","v":"TE II"},null,{"$f":"F55","v":0},{"$f":"IF(ISERR(+C67/C$77),0,+C67/C$77)","v":0},{"$f":"'PEF CLASSIFICATION SHEET'!E1323","v":0},{"$f":"$F$65","v":1},{"$f":"F23","v":""},null,{"$f":"IF(ISERR(+D67*E67/F67),0,+D67*E67/F67)","v":0}]
[{"$f":"IF('PEF CLASSIFICATION SHEET'!C322=\"\",\"\",'PEF CLASSIFICATION SHEET'!C322)","v":"TE I"},null,{"$f":"G55","v":0},{"$f":"IF(ISERR(+C68/C$77),0,+C68/C$77)","v":0},{"$f":"'PEF CLASSIFICATION SHEET'!E1324","v":0},{"$f":"$F$65","v":1},{"$f":"G23","v":""},null,{"$f":"IF(ISERR(+D68*E68/F68),0,+D68*E68/F68)","v":0}]
[{"$f":"IF('PEF CLASSIFICATION SHEET'!C323=\"\",\"\",'PEF CLASSIFICATION SHEET'!C323)","v":"TT V"},null,{"$f":"H55","v":0},{"$f":"IF(ISERR(+C69/C$77),0,+C69/C$77)","v":0},{"$f":"'PEF CLASSIFICATION SHEET'!E1325","v":0},{"$f":"$F$65","v":1},{"$f":"H23","v":""},null,{"$f":"IF(ISERR(+D69*E69/F69),0,+D69*E69/F69)","v":0}]
[{"$f":"IF('PEF CLASSIFICATION SHEET'!C324=\"\",\"\",'PEF CLASSIFICATION SHEET'!C324)","v":""},null,{"$f":"I55","v":0},{"$f":"IF(ISERR(+C70/C$77),0,+C70/C$77)","v":0},{"$f":"'PEF CLASSIFICATION SHEET'!E1326","v":0},{"$f":"$F$65","v":1},{"$f":"I23","v":""},null,{"$f":"IF(ISERR(+D70*E70/F70),0,+D70*E70/F70)","v":0}]
[{"$f":"IF('PEF CLASSIFICATION SHEET'!C325=\"\",\"\",'PEF CLASSIFICATION SHEET'!C325)","v":""},null,{"$f":"J55","v":0},0,{"$f":"'PEF CLASSIFICATION SHEET'!E1327","v":0},1,{"$f":"J23","v":""},null,0]
[{"$f":"IF('PEF CLASSIFICATION SHEET'!C326=\"\",\"\",'PEF CLASSIFICATION SHEET'!C326)","v":""},null,{"$f":"K55","v":0},0,{"$f":"'PEF CLASSIFICATION SHEET'!E1328","v":0},1,{"$f":"K23","v":""},null,0]
[{"$f":"IF('PEF CLASSIFICATION SHEET'!C327=\"\",\"\",'PEF CLASSIFICATION SHEET'!C327)","v":""},null,{"$f":"L55","v":0},0,{"$f":"'PEF CLASSIFICATION SHEET'!E1329","v":0},1,{"$f":"L23","v":""},null,0]
[{"$f":"IF('PEF CLASSIFICATION SHEET'!C328=\"\",\"\",'PEF CLASSIFICATION SHEET'!C328)","v":""},null,{"$f":"M55","v":0},0,{"$f":"'PEF CLASSIFICATION SHEET'!E1330","v":0},1,{"$f":"M23","v":""},null,0]
[" "," "," "," "," "," "," ",null," "]
[null,null,"_________"," ________",null,null,null,null,"   ___________"]
["  TOTAL",null,{"$f":"SUM(C65:C76)","v":0},{"$f":"SUM(D65:D76)","v":0},null,null,null,null,{"$f":"SUM(I65:I76)","v":0}]
[]
[]
[]
[null,null," SALARIES","    =","(AVG STD RATE)(WORKDAYS)(8 HRS)=",null,null,null,{"$f":"C77*I77*8","v":0}]
[null,null," OVERHEAD","    =","(XXX.XX%)(SALARIES)          =",null,null,{"$f":"SIGNING_SUB1_CONSULTANT_OVERHEAD","v":0},{"$f":"I81*H82","v":0}]
[null,null,"      FEE","    =","(9%)(SALARIES+OVERHEAD)      =",null,null,{"$f":"SIGNING_SUB1_CONSULTANT_FEE","v":0.09},{"$f":"(+I81+I82)*H83","v":0}]
[null,null,"FACILITIES COST OF CAPITAL","    =",null,null,null,{"$f":"SIGNING_SUB1_CONSULTANT_COSTofCAPITAL","v":0},{"$f":"I81*(H84)","v":0}]
[" TOT. DIR. SALARY COST",null,null,"    =","(SALARIES+OVERHEAD+FEE)       =",null,null,null,{"$f":"SUM(I81:I84)","v":0}]
[]
[]
[]
[null,null,null,null,"     TIP #:",{"$f":"$D$5","v":""}]
[]
["     DIRECT NON-SALARY COSTS:________________________"]
[null,null,null,null,null,null,null,"   RATE","COST "]
["              TRAVEL:",null,null,{"$f":"($H$12+$H$13+(IF($E$14=0,0,1)))","v":0},"TRIPS x",null,null," "," "]
[null,null,null,null,{"$f":"$H$20","v":0},"MILES RNDTRP",null,{"$f":"SEDAN","v":0.7},{"$f":"IF(ISERR(+D93*E94*H94),0,+D93*E94*H94)","v":0}]
["            1/2 SIZE COPY:",null,null,null,"SETS  x"]
[null,null,null,null,{"$f":"$E$13","v":0},"SHEETS/SET",null,{"$f":"LEDGERCOPIES","v":0.34},{"$f":"IF(ISERR(+D95*E96*H96),0,+D95*E96*H96)","v":0}]
["              ORIGINAL:",null,null,null,"SETS  x"]
[null,null,null,null,{"$f":"$E$13","v":0},"SHEETS/SET",null,{"$f":"BOND.REGULAR","v":0.42},{"$f":"IF(ISERR(+D97*E98*H98),0,+D97*E98*H98)","v":0}]
["               XEROX:",null,null,null,"SETS  x"]
[null,null,null,null,{"$f":"$H$18","v":0},"SHEETS/SET",null,{"$f":"LETTERCOPIES","v":0.14000000000000001},{"$f":"IF(ISERR(+D99*E100*H100),0,+D99*E100*H100)","v":0}]
[]
[null,null,"TRIPS:",null,"BREAKFAST","EACH",null,{"$f":"BREAKFAST","v":10.1},{"$f":"IF(ISERR(+D102*H102),0,+D102*H102)","v":0}]
[]
[null,null,null,null,"LUNCH","EACH",null,{"$f":"LUNCH","v":13.3},{"$f":"IF(ISERR(+D104*H104),0,+D104*H104)","v":0}]
[]
[null,null,null,null,"DINNER","EACH",null,{"$f":"DINNER","v":23.1},{"$f":"IF(ISERR(+D106*H106),0,+D106*H106)","v":0}]
[]
[null,null,null,null,"LODGING","EACH",null,{"$f":"LODGING_LUMP.SUM","v":95},{"$f":"IF(ISERR(+D108*H108),0,+D108*H108)","v":0}]
[]
[null,"MISCELLANEOUS:",null,null,null,null,null,null,{"$f":"IF(ISERR(+D110*H110),0,+D110*H110)","v":0}]
[]
[null,null,null,null,null,null,null,null,{"$f":"IF(ISERR(+D112*H112),0,+D112*H112)","v":0}]
[]
[null,null,null,null,null,null,null,null,{"$f":"IF(ISERR(+D114*H114),0,+D114*H114)","v":0}]
[]
[null,null,null,null,null,null,null,null,{"$f":"IF(ISERR(+D116*H116),0,+D116*H116)","v":0}]
[]
[null,null,null,null,null,null,null,null,{"$f":"IF(ISERR(+D118*H118),0,+D118*H118)","v":0}]
[]
[" TOTAL DIRECT NON-SALARY COST - - - - - - - - - - - - - - - - - -",null,null,null,null,null,null,"=",{"$f":"SUM(I94:I118)","v":0}]
[]
[]
[]
[null,null,null,null,"          TOTAL ESTIMATE  ",null,null,"=",{"$f":"I85+I120","v":0}]
[null,null,null,null,"          COST PER WORKDAY  ",null,null,"=",{"$f":"IF(ISERR(+I124/C77),0,+I124/C77)","v":0}]
[]
[]
[null,null,null,null,"          CONSULTANT'S TOTAL =",null,null,null,{"$f":"I124","v":0}]
[]
[null," CONSULTANT'S TOTAL - TOTAL COST IN_HOUSE ESTIMATE"]
[null," ------------------------------------------------- =",null,null,null,null,null,null,{"$f":"IF(+I128=0,\"       \",IF(ISERR((+I128-(+I85+I120))/(+I85+I120)),0,(+I128-(+I85+I120))/(+I85+I120)))","v":"       "}]
[null,null,"      TOTAL COST IN_HOUSE ESTIMATE"]
[]
[]
[]
[" ESTIMATE PREPARED BY:",null,null,null,null,null,null,"DATE:",{"$f":"IF(D4=\"\",\"\",D4)","v":""}]

{"sheet":"ITS-Sub1","index":160,"n_rows":157,"n_cols":23,"rows_kept":157,"cut":false,"hidden":true,"merged":[[11,17,12,17],[5,1,5,16],[6,1,6,16],[7,1,7,16],[8,1,8,14],[9,2,9,14],[11,0,12,0],[11,15,12,15],[11,16,12,16],[0,1,0,16],[1,1,1,16],[2,1,2,16],[3,1,3,16],[4,1,4,4],[4,5,4,16]]}
[null,"ITS Design - SUBCONSULTANT 1"]
[null,"ITS"]
[null,"SCOPING ESTIMATE PREPARED"]
[null,"FOR"]
[null,{"$f":"CONCATENATE(IF(TIP.NUMBER=\"\",\"TIP\",CONCATENATE(\"TIP:  \",TIP.NUMBER)),IF(TIP.NUMBER=\"\",\"\",\"   \"))","v":"TIP"},null,null,null,{"$f":"Signals!J3","v":"WBS"}]
[null,{"$f":"IF(COUNTY=\"\",\"COUNTY\",CONCATENATE(\"COUNTY:  \",COUNTY))","v":"COUNTY"}]
[null,{"$f":"IF(PROJECT.DESCRIPTION=\"\",\"PROJECT DESCRIPTION\",CONCATENATE(\"Project Description:  \",PROJECT.DESCRIPTION))","v":"PROJECT DESCRIPTION"}]
[null,{"$f":"IF(ITS_SUB1_CONSULTANT_NAME=\"CONSULTANT NAME\",\"CONSULTANT NAME\", CONCATENATE(\"FIRM:  \",ITS_SUB1_CONSULTANT_NAME))","v":"CONSULTANT NAME"}]
[null,null,null,null,null,null,null,null,null,null,null,null,null,null,null,"Prepared By:",{"$f":"IF(SCOPE.MANDAY.ESTIMATE.PREPARED.BY=\"\",\"\",SCOPE.MANDAY.ESTIMATE.PREPARED.BY)","v":""}," ",null,null,null,null," "]
[null,null,"ESTIMATED WORK HOURS",null,null,null,null,null,null,null,null,null,null,null,null,"Date:",{"$f":"IF(SCOPE.MANDAY.ESTIMATE.PREPARED.BY.DATE=\"\",\"\",SCOPE.MANDAY.ESTIMATE.PREPARED.BY.DATE)","v":""},null,null,null,null,null," "]
[null,"POSITION",{"$f":"IF('PEF CLASSIFICATION SHEET'!C1333=\"\",\"\",'PEF CLASSIFICATION SHEET'!C1333)","v":""},{"$f":"IF('PEF CLASSIFICATION SHEET'!C1334=\"\",\"\",'PEF CLASSIFICATION SHEET'!C1334)","v":""},{"$f":"IF('PEF CLASSIFICATION SHEET'!C1335=\"\",\"\",'PEF CLASSIFICATION SHEET'!C1335)","v":""},{"$f":"IF('PEF CLASSIFICATION SHEET'!C1336=\"\",\"\",'PEF CLASSIFICATION SHEET'!C1336)","v":""},{"$f":"IF('PEF CLASSIFICATION SHEET'!C1337=\"\",\"\",'PEF CLASSIFICATION SHEET'!C1337)","v":""},{"$f":"IF('PEF CLASSIFICATION SHEET'!C1338=\"\",\"\",'PEF CLASSIFICATION SHEET'!C1338)","v":""},{"$f":"IF('PEF CLASSIFICATION SHEET'!C1339=\"\",\"\",'PEF CLASSIFICATION SHEET'!C1339)","v":""},{"$f":"IF('PEF CLASSIFICATION SHEET'!C1340=\"\",\"\",'PEF CLASSIFICATION SHEET'!C1340)","v":""},{"$f":"IF('PEF CLASSIFICATION SHEET'!C1341=\"\",\"\",'PEF CLASSIFICATION SHEET'!C1341)","v":""},{"$f":"IF('PEF CLASSIFICATION SHEET'!C1342=\"\",\"\",'PEF CLASSIFICATION SHEET'!C1342)","v":""},{"$f":"IF('PEF CLASSIFICATION SHEET'!C1343=\"\",\"\",'PEF CLASSIFICATION SHEET'!C1343)","v":""},{"$f":"IF('PEF CLASSIFICATION SHEET'!C1344=\"\",\"\",'PEF CLASSIFICATION SHEET'!C1344)","v":""},{"$f":"IF('PEF CLASSIFICATION SHEET'!C1345=\"\",\"\",'PEF CLASSIFICATION SHEET'!C1345)","v":""}," "]
["TASK NUMBER","EMPLOYEE NAME",{"$f":"LEFT('PEF CLASSIFICATION SHEET'!D1333,4)","v":""},{"$f":"LEFT('PEF CLASSIFICATION SHEET'!D1334,4)","v":""},{"$f":"LEFT('PEF CLASSIFICATION SHEET'!D1335,4)","v":""},{"$f":"LEFT('PEF CLASSIFICATION SHEET'!D1336,4)","v":""},{"$f":"LEFT('PEF CLASSIFICATION SHEET'!D1337,4)","v":""},{"$f":"LEFT('PEF CLASSIFICATION SHEET'!D1338,4)","v":""},{"$f":"LEFT('PEF CLASSIFICATION SHEET'!D1339,4)","v":""},{"$f":"LEFT('PEF CLASSIFICATION SHEET'!D1340,4)","v":""},{"$f":"LEFT('PEF CLASSIFICATION SHEET'!D1341,4)","v":""},{"$f":"LEFT('PEF CLASSIFICATION SHEET'!D1342,4)","v":""},{"$f":"LEFT('PEF CLASSIFICATION SHEET'!D1343,4)","v":""},{"$f":"LEFT('PEF CLASSIFICATION SHEET'!D1344,4)","v":""},{"$f":"LEFT('PEF CLASSIFICATION SHEET'!D1345,4)","v":""},"SUBTOTAL RAW LABOR ($)","SUBTOTAL OF HOURS BY TASK","NOTES"]
[null,"RATE",{"$f":"'PEF CLASSIFICATION SHEET'!E1333","v":0},{"$f":"'PEF CLASSIFICATION SHEET'!E1334","v":0},{"$f":"'PEF CLASSIFICATION SHEET'!E1335","v":0},{"$f":"'PEF CLASSIFICATION SHEET'!E1336","v":0},{"$f":"'PEF CLASSIFICATION SHEET'!E1337","v":0},{"$f":"'PEF CLASSIFICATION SHEET'!E1338","v":0},{"$f":"'PEF CLASSIFICATION SHEET'!E1339","v":0},{"$f":"'PEF CLASSIFICATION SHEET'!E1340","v":0},{"$f":"'PEF CLASSIFICATION SHEET'!E1341","v":0},{"$f":"'PEF CLASSIFICATION SHEET'!E1342","v":0},{"$f":"'PEF CLASSIFICATION SHEET'!E1343","v":0},{"$f":"'PEF CLASSIFICATION SHEET'!E1344","v":0},{"$f":"'PEF CLASSIFICATION SHEET'!E1345","v":0}]
["Task 1.0","Project Coordination"," "," ",null,null,null,null,null,null,null,null,null,null,null," ",null,null," "]
[1.1000000000000001,"Project Kick-Off Meeting",null,null,null,null,null,null,null,null,null,null,null,null,null,null,{"$f":"SUM(C15:P15)","v":0}]
[1.2,"Technology Review Meeting with Division",null,null,null,null,null,null,null,null,null,null,null,null,null,null,{"$f":"SUM(C16:P16)","v":0}]
[1.3,"90% PS&E Design Review Meeting",null,null,null,null,null,null,null,null,null,null,null,null,null,null,0]
[1.4,"100% PS&E Final Design Review Meeting",null,null,null,null,null,null,null,null,null,null,null,null,null,null,0]
[1.5,"Miscellaneous Coordination",null,null,null,null,null,null,null,null,null,null,null,null,null,null,0]
[1.6,null,null,null,null,null,null,null,null,null,null,null,null,null,null,null,0]
[1.7,null,null,null,null,null,null,null,null,null,null,null,null,null,null,null,0]
[1.8,null,null,null,null,null,null,null,null,null,null,null,null,null,null,null,0]
[1.9,null,null,null,null,null,null,null,null,null,null,null,null,null,null,null,0]
["1.10",null,null,null,null,null,null,null,null,null,null,null,null,null,null,null,0]
[null,"Subtotal (Hours)",{"$f":"SUM(C15:C24)","v":0},{"$f":"SUM(D15:D24)","v":0},0,0,0,0,0,0,0,0,0,0,0,null,{"$f":"SUM(Q15:Q24)","v":0}]
[null,"Subtotal (Dollars)",{"$f":"C25*C$13","v":0},{"$f":"D25*D$13","v":0},0,0,0,0,0,0,0,0,0,0,0,{"$f":"SUM(C26:O26)","v":0}]
["Task 2.0     ","Preliminary Design"," ",null," "]
[2.1,"ITS Device Site Selections",null,null,null,null,null,null,null,null,null,null,null,null,null,null,{"$f":"SUM(C28:P28)","v":0}]
[2.2000000000000002,"Communication Design",null,null,null,null,null,null,null,null,null,null,null,null,null,null,0]
[2.2999999999999998,"Utility Coordination & Field Work (Power Service)",null,null,null,null,null,null,null,null,null,null,null,null,null,null,0]
[2.4,"Utility Coordination & Field Work (Utility Make-Ready)",null,null,null,null,null,null,null,null,null,null,null,null,null,null,0]
[2.5,null,null,null,null,null,null,null,null,null,null,null,null,null,null,null,0]
[2.6,null,null,null,null,null,null,null,null,null,null,null,null,null,null,null,0]
[2.7,null,null,null,null,null,null,null,null,null,null,null,null,null,null,null,0]
[2.8,null,null,null,null,null,null,null,null,null,null,null,null,null,null,null,0]
[2.9,null,null,null,null,null,null,null,null,null,null,null,null,null,null,null,0]
[null,"Subtotal (Hours)",{"$f":"SUM(C28:C36)","v":0},{"$f":"SUM(D28:D36)","v":0},0,0,0,0,0,0,0,0,0,0,0,null,{"$f":"SUM(Q28:Q36)","v":0}]
[null,"Subtotal (Dollars)",{"$f":"C37*C$13","v":0},{"$f":"D37*D$13","v":0},0,0,0,0,0,0,0,0,0,0,0,{"$f":"SUM(C38:O38)","v":0}]
["Task 3.0     ","Prepare Plans, Specifications & Estimate"]
[3.1,"Prepare Base Mapping",null,null,null,null,null,null,null,null,null,null,null,null,null,null,{"$f":"SUM(C40:P40)","v":0}]
[3.2,"Prepare Cable Routing Sheets & ITS Device Sheets",null,null,null,null,null,null,null,null,null,null,null,null,null,null,0]
[3.3,"Prepare Detail Drawings ",null,null,null,null,null,null,null,null,null,null,null,null,null,null,0]
[3.4,"Prepare Splice Diagrams ",null,null,null,null,null,null,null,null,null,null,null,null,null,null,0]
[3.5,"Prepare Project Special Provisions & Revisions",null,null,null,null,null,null,null,null,null,null,null,null,null,null,0]
[3.6,"Prepare Quantities & Engineer's Estimate",null,null,null,null,null,null,null,null,null,null,null,null,null,null,0]
[3.7,"Submit 90% PS&E",null,null,null,null,null,null,null,null,null,null,null,null,null,null,0]
[3.8,"Submit 100% PS&E",null,null,null,null,null,null,null,null,null,null,null,null,null,null,0]
[3.9,"Submit 100% Unsealed PS&E",null,null,null,null,null,null,null,null,null,null,null,null,null,null,0]
["3.10","Submit Final Sealed PS&E",null,null,null,null,null,null,null,null,null,null,null,null,null,null,0]
["3.11",null,null,null,null,null,null,null,null,null,null,null,null,null,null,null,0]
["3.12",null,null,null,null,null,null,null,null,null,null,null,null,null,null,null,0]
["3.13",null,null,null,null,null,null,null,null,null,null,null,null,null,null,null,0]
["3.14",null,null,null,null,null,null,null,null,null,null,null,null,null,null,null,0]
["3.15",null,null,null,null,null,null,null,null,null,null,null,null,null,null,null,0]
[null,"Subtotal (Hours)",{"$f":"SUM(C40:C54)","v":0},{"$f":"SUM(D40:D54)","v":0},0,0,0,0,0,0,0,0,0,0,0,null,{"$f":"SUM(Q40:Q54)","v":0}]
[null,"Subtotal (Dollars)",{"$f":"C55*C$13","v":0},{"$f":"D55*D$13","v":0},0,0,0,0,0,0,0,0,0,0,0,{"$f":"SUM(C56:O56)","v":0}]
["Task 4.0     ","REPLACE FIELD WITH CATEGORY NAME OF YOUR CHOOSING HERE",null,null,null,null,null,null,null,null,null,null,null,null,null,null,{"$f":"IF(B57=\"REPLACE FIELD WITH CATEGORY NAME OF YOUR CHOOSING HERE\",0,\"\")","v":0}]
[4.0999999999999996,null,null,null,null,null,null,null,null,null,null,null,null,null,null,null,{"$f":"SUM(C58:P58)","v":0}]
[4.2,null,null,null,null,null,null,null,null,null,null,null,null,null,null,null,0]
[4.3,null,null,null,null,null,null,null,null,null,null,null,null,null,null,null,0]
[4.4000000000000004,null,null,null,null,null,null,null,null,null,null,null,null,null,null,null,0]
[4.5,null,null,null,null,null,null,null,null,null,null,null,null,null,null,null,0]
[4.5999999999999996,null,null,null,null,null,null,null,null,null,null,null,null,null,null,null,0]
[4.7,null,null,null,null,null,null,null,null,null,null,null,null,null,null,null,0]
[4.8,null,null,null,null,null,null,null,null,null,null,null,null,null,null,null,0]
[4.9000000000000004,null,null,null,null,null,null,null,null,null,null,null,null,null,null,null,0]
["4.10",null,null,null,null,null,null,null,null,null,null,null,null,null,null,null,0]
[null,"Subtotal (Hours)",{"$f":"SUM(C58:C67)","v":0},{"$f":"SUM(D58:D67)","v":0},0,0,0,0,0,0,0,0,0,0,0,null,{"$f":"SUM(Q58:Q67)","v":0}]
[null,"Subtotal (Dollars)",{"$f":"C68*C$13","v":0},{"$f":"D68*D$13","v":0},0,0,0,0,0,0,0,0,0,0,0,{"$f":"SUM(C69:O69)","v":0}]
["Task 5.0     ","REPLACE FIELD WITH CATEGORY NAME OF YOUR CHOOSING HERE",null,null,null,null,null,null,null,null,null,null,null,null,null,null,{"$f":"IF(B70=\"REPLACE FIELD WITH CATEGORY NAME OF YOUR CHOOSING HERE\",0,\"\")","v":0}]
[5.0999999999999996,null,null,null,null,null,null,null,null,null,null,null,null,null,null,null,{"$f":"SUM(C71:P71)","v":0}]
[5.2,null,null,null,null,null,null,null,null,null,null,null,null,null,null,null,0]
[5.3,null,null,null,null,null,null,null,null,null,null,null,null,null,null,null,0]
[5.4,null,null,null,null,null,null,null,null,null,null,null,null,null,null,null,0]
[5.5,null,null,null,null,null,null,null,null,null,null,null,null,null,null,null,0]
[5.6,null,null,null,null,null,null,null,null,null,null,null,null,null,null,null,0]
[5.7,null,null,null,null,null,null,null,null,null,null,null,null,null,null,null,0]
[5.8,null,null,null,null,null,null,null,null,null,null,null,null,null,null,null,0]
[5.9,null,null,null,null,null,null,null,null,null,null,null,null,null,null,null,0]
["5.10",null,null,null,null,null,null,null,null,null,null,null,null,null,null,null,0]
[null,"Subtotal (Hours)",{"$f":"SUM(C71:C80)","v":0},{"$f":"SUM(D71:D80)","v":0},0,0,0,0,0,0,0,0,0,0,0,null,{"$f":"SUM(Q71:Q80)","v":0}]
[null,"Subtotal (Dollars)",{"$f":"C81*C$13","v":0},{"$f":"D81*D$13","v":0},0,0,0,0,0,0,0,0,0,0,0,{"$f":"SUM(C82:O82)","v":0}]
["Task 6.0     ","REPLACE FIELD WITH CATEGORY NAME OF YOUR CHOOSING HERE",null,null,null,null,null,null,null,null,null,null,null,null,null,null,{"$f":"IF(B83=\"REPLACE FIELD WITH CATEGORY NAME OF YOUR CHOOSING HERE\",0,\"\")","v":0}]
[6.1,null,null,null,null,null,null,null,null,null,null,null,null,null,null,null,{"$f":"SUM(C84:P84)","v":0}]
[6.2,null,null,null,null,null,null,null,null,null,null,null,null,null,null,null,0]
[6.3,null,null,null,null,null,null,null,null,null,null,null,null,null,null,null,0]
[6.4,null,null,null,null,null,null,null,null,null,null,null,null,null,null,null,0]
[6.5,null,null,null,null,null,null,null,null,null,null,null,null,null,null,null,0]
[6.6,null,null,null,null,null,null,null,null,null,null,null,null,null,null,null,0]
[6.7,null,null,null,null,null,null,null,null,null,null,null,null,null,null,null,0]
[6.8,null,null,null,null,null,null,null,null,null,null,null,null,null,null,null,0]
[6.9,null,null,null,null,null,null,null,null,null,null,null,null,null,null,null,0]
["6.10",null,null,null,null,null,null,null,null,null,null,null,null,null,null,null,0]
[null,"Subtotal (Hours)",{"$f":"SUM(C84:C93)","v":0},{"$f":"SUM(D84:D93)","v":0},0,0,0,0,0,0,0,0,0,0,0,null,{"$f":"SUM(Q84:Q93)","v":0}]
[null,"Subtotal (Dollars)",{"$f":"C94*C$13","v":0},{"$f":"D94*D$13","v":0},0,0,0,0,0,0,0,0,0,0,0,{"$f":"SUM(C95:O95)","v":0}]
["Task 7.0     ","REPLACE FIELD WITH CATEGORY NAME OF YOUR CHOOSING HERE",null,null,null,null,null,null,null,null,null,null,null,null,null,null,{"$f":"IF(B96=\"REPLACE FIELD WITH CATEGORY NAME OF YOUR CHOOSING HERE\",0,\"\")","v":0}]
[7.1,null,null,null,null,null,null,null,null,null,null,null,null,null,null,null,{"$f":"SUM(C97:P97)","v":0}]
[7.2,null,null,null,null,null,null,null,null,null,null,null,null,null,null,null,0]
[7.3,null,null,null,null,null,null,null,null,null,null,null,null,null,null,null,0]
[7.4,null,null,null,null,null,null,null,null,null,null,null,null,null,null,null,0]
[7.5,null,null,null,null,null,null,null,null,null,null,null,null,null,null,null,0]
[7.6,null,null,null,null,null,null,null,null,null,null,null,null,null,null,null,0]
[7.7,null,null,null,null,null,null,null,null,null,null,null,null,null,null,null,0]
[7.8,null,null,null,null,null,null,null,null,null,null,null,null,null,null,null,0]
[7.9,null,null,null,null,null,null,null,null,null,null,null,null,null,null,null,0]
["7.10",null,null,null,null,null,null,null,null,null,null,null,null,null,null,null,0]
[null,"Subtotal (Hours)",{"$f":"SUM(C97:C106)","v":0},{"$f":"SUM(D97:D106)","v":0},0,0,0,0,0,0,0,0,0,0,0,null,{"$f":"SUM(Q97:Q106)","v":0}]
[null,"Subtotal (Dollars)",{"$f":"C107*C$13","v":0},{"$f":"D107*D$13","v":0},0,0,0,0,0,0,0,0,0,0,0,{"$f":"SUM(C108:O108)","v":0}]
["Task 8.0     ","REPLACE FIELD WITH CATEGORY NAME OF YOUR CHOOSING HERE",null,null,null,null,null,null,null,null,null,null,null,null,null,null,{"$f":"IF(B109=\"REPLACE FIELD WITH CATEGORY NAME OF YOUR CHOOSING HERE\",0,\"\")","v":0}]
[8.1,null,null,null,null,null,null,null,null,null,null,null,null,null,null,null,{"$f":"SUM(C110:P110)","v":0}]
[8.1999999999999993,null,null,null,null,null,null,null,null,null,null,null,null,null,null,null,0]
[8.3000000000000007,null,null,null,null,null,null,null,null,null,null,null,null,null,null,null,0]
[8.4,null,null,null,null,null,null,null,null,null,null,null,null,null,null,null,0]
[8.5,null,null,null,null,null,null,null,null,null,null,null,null,null,null,null,0]
[8.6,null,null,null,null,null,null,null,null,null,null,null,null,null,null,null,0]
[8.6999999999999993,null,null,null,null,null,null,null,null,null,null,null,null,null,null,null,0]
[8.8000000000000007,null,null,null,null,null,null,null,null,null,null,null,null,null,null,null,0]
[8.9,null,null,null,null,null,null,null,null,null,null,null,null,null,null,null,0]
["8.10",null,null,null,null,null,null,null,null,null,null,null,null,null,null,null,0]
[null,"Subtotal (Hours)",{"$f":"SUM(C110:C119)","v":0},{"$f":"SUM(D110:D119)","v":0},0,0,0,0,0,0,0,0,0,0,0,null,{"$f":"SUM(Q110:Q119)","v":0}]
[null,"Subtotal (Dollars)",{"$f":"C120*C$13","v":0},{"$f":"D120*D$13","v":0},0,0,0,0,0,0,0,0,0,0,0,{"$f":"SUM(C121:O121)","v":0}]
[]
[null,"TOTAL HOURS",{"$f":"SUM(C25,C37,C55,C68,C81,C94,C107,C120)","v":0},{"$f":"SUM(D25,D37,D55,D68,D81,D94,D107,D120)","v":0},0,0,0,0,0,0,0,0,0,0,{"$f":"SUM(O25,O37,O55,O68,O81,O94,O107,O120)","v":0},null,{"$f":"SUM(Q25,Q37,Q55,Q68,Q81,Q94,Q107,Q120)","v":0}]
[null,"TOTAL WORKDAYS",{"$f":"C123/8","v":0},0,0,0,0,0,0,0,0,0,0,0,0,null,{"$f":"SUM(C124:P124)","v":0}]
[null,"TOTAL RAW LABOR",{"$f":"C13*C123","v":0},0,0,0,0,0,0,0,0,0,0,0,0,0,0]
[]
[null,"Contract Overhead Rate",{"$f":"ITS_SUB1_CONSULTANT_OVERHEAD","v":0},null,null,null,null,null,null,null,null,null,null,null,null,null,{"$f":"C127","v":0}]
[null,"Overhead Cost",null,null,null,null,null,null,null,null,null,null,null,null,null,null,{"$f":"Q125*Q127","v":0}]
[null,"Fee",{"$f":"ITS_SUB1_CONSULTANT_FEE","v":0.09},null,null,null,null,null,null,null,null,null,null,null,null,null,{"$f":"(Q125+Q128)*C129","v":0}]
[null,"FCCM",{"$f":"ITS_SUB1_CONSULTANT_COSTofCAPITAL","v":0},null,null,null,null,null,null,null,null,null,null,null,null,null,{"$f":"Q125*C130","v":0}]
[]
[null,"TOTAL RAW LABOR",null,null,null,null,null,null,null,null,null,null,null,null,null,null,{"$f":"Q125+Q128+Q129+Q130","v":0}]
[null,"DIRECT EXPENSES",null,null,null,null,null,null,null,null,null,null,null,null,null,null,{"$f":"ITS_SUB1_DIRECT_NONSALARY_TOTAL","v":0}]
[null,"CABLE ROUTING ESTIMATE",null,null,null,null,null,null,null,null,null,null,null,null,null,null,{"$f":"SUM(Q132:Q133)","v":0}]
[]
[]
[]
[]
[]
[null,null,"Direct Cost Computation"]
[null,null,null,"Qty.",null,"Unit Cost","Sub-Total"]
[null,null,"Mileage",null,"miles",{"$f":"SEDAN","v":0.7},{"$f":"D142*$F142","v":0}]
[null,null,"Lodging",null,"nights",{"$f":"LODGING_LUMP.SUM","v":95},0]
[null,null,"Breakfast",null,"meal",{"$f":"BREAKFAST","v":10.1},0]
[null,null,"Lunch",null,"meal",{"$f":"LUNCH","v":13.3},0]
[null,null,"Dinner",null,"meal",{"$f":"DINNER","v":23.1},0]
[null,null,"Full Size Plans",null,"sheets",{"$f":"BOND.REGULAR","v":0.42},0]
[null,null,"Half Size Plans",null,"sheets",{"$f":"LEDGERCOPIES","v":0.34},0]
[null,null,"Letter Size",null,"sheets",{"$f":"LETTERCOPIES","v":0.14000000000000001},0]
[null,null,"GPS Rental",null,"days",null,0]
[null,null,"OTDR Test",null,"each",null,0]
[null,null,"MISCELLANEOUS",null,"NAME",null,0]
[null,null,null,null,"NAME",null,0]
[null,null,null,null,"NAME",null,0]
[null,null,null,null,"NAME",null,0]
[null,null,null,null,"NAME",null,0]
[null,null,"Total Phase Cost",null,null,null,{"$f":"SUM(G142:G156)","v":0}]

{"sheet":"ITS-Sub2","index":161,"n_rows":157,"n_cols":23,"rows_kept":157,"cut":false,"hidden":true,"merged":[[11,0,12,0],[11,15,12,15],[11,16,12,16],[0,1,0,16],[1,1,1,16],[2,1,2,16],[3,1,3,16],[4,1,4,4],[4,5,4,16],[11,17,12,17],[5,1,5,16],[6,1,6,16],[7,1,7,16],[8,1,8,14],[9,2,9,14]]}
[null,"ITS Design - SUBCONSULTANT 2"]
[null,"ITS"]
[null,"SCOPING ESTIMATE PREPARED"]
[null,"FOR"]
[null,{"$f":"CONCATENATE(IF(TIP.NUMBER=\"\",\"TIP\",CONCATENATE(\"TIP:  \",TIP.NUMBER)),IF(TIP.NUMBER=\"\",\"\",\"   \"))","v":"TIP"},null,null,null,{"$f":"Signals!J3","v":"WBS"}]
[null,{"$f":"IF(COUNTY=\"\",\"COUNTY\",CONCATENATE(\"COUNTY:  \",COUNTY))","v":"COUNTY"}]
[null,{"$f":"IF(PROJECT.DESCRIPTION=\"\",\"PROJECT DESCRIPTION\",CONCATENATE(\"Project Description:  \",PROJECT.DESCRIPTION))","v":"PROJECT DESCRIPTION"}]
[null,{"$f":"IF(ITS_SUB2_CONSULTANT_NAME=\"CONSULTANT NAME\",\"CONSULTANT NAME\", CONCATENATE(\"FIRM:  \",ITS_SUB2_CONSULTANT_NAME))","v":"CONSULTANT NAME"}]
[null,null,null,null,null,null,null,null,null,null,null,null,null,null,null,"Prepared By:",{"$f":"IF(SCOPE.MANDAY.ESTIMATE.PREPARED.BY=\"\",\"\",SCOPE.MANDAY.ESTIMATE.PREPARED.BY)","v":""}," ",null,null,null,null," "]
[null,null,"ESTIMATED WORK HOURS",null,null,null,null,null,null,null,null,null,null,null,null,"Date:",{"$f":"IF(SCOPE.MANDAY.ESTIMATE.PREPARED.BY.DATE=\"\",\"\",SCOPE.MANDAY.ESTIMATE.PREPARED.BY.DATE)","v":""},null,null,null,null,null," "]
[null,"POSITION",{"$f":"IF('PEF CLASSIFICATION SHEET'!C1348=\"\",\"\",'PEF CLASSIFICATION SHEET'!C1348)","v":""},{"$f":"IF('PEF CLASSIFICATION SHEET'!C1349=\"\",\"\",'PEF CLASSIFICATION SHEET'!C1349)","v":""},{"$f":"IF('PEF CLASSIFICATION SHEET'!C1350=\"\",\"\",'PEF CLASSIFICATION SHEET'!C1350)","v":""},{"$f":"IF('PEF CLASSIFICATION SHEET'!C1351=\"\",\"\",'PEF CLASSIFICATION SHEET'!C1351)","v":""},{"$f":"IF('PEF CLASSIFICATION SHEET'!C1352=\"\",\"\",'PEF CLASSIFICATION SHEET'!C1352)","v":""},{"$f":"IF('PEF CLASSIFICATION SHEET'!C1353=\"\",\"\",'PEF CLASSIFICATION SHEET'!C1353)","v":""},{"$f":"IF('PEF CLASSIFICATION SHEET'!C1354=\"\",\"\",'PEF CLASSIFICATION SHEET'!C1354)","v":""},{"$f":"IF('PEF CLASSIFICATION SHEET'!C1355=\"\",\"\",'PEF CLASSIFICATION SHEET'!C1355)","v":""},{"$f":"IF('PEF CLASSIFICATION SHEET'!C1356=\"\",\"\",'PEF CLASSIFICATION SHEET'!C1356)","v":""},{"$f":"IF('PEF CLASSIFICATION SHEET'!C1357=\"\",\"\",'PEF CLASSIFICATION SHEET'!C1357)","v":""},{"$f":"IF('PEF CLASSIFICATION SHEET'!C1358=\"\",\"\",'PEF CLASSIFICATION SHEET'!C1358)","v":""},{"$f":"IF('PEF CLASSIFICATION SHEET'!C1359=\"\",\"\",'PEF CLASSIFICATION SHEET'!C1359)","v":""},{"$f":"IF('PEF CLASSIFICATION SHEET'!C1360=\"\",\"\",'PEF CLASSIFICATION SHEET'!C1360)","v":""}," "]
["TASK NUMBER","EMPLOYEE NAME",{"$f":"LEFT('PEF CLASSIFICATION SHEET'!D1348,4)","v":""},{"$f":"LEFT('PEF CLASSIFICATION SHEET'!D1349,4)","v":""},{"$f":"LEFT('PEF CLASSIFICATION SHEET'!D1350,4)","v":""},{"$f":"LEFT('PEF CLASSIFICATION SHEET'!D1351,4)","v":""},{"$f":"LEFT('PEF CLASSIFICATION SHEET'!D1352,4)","v":""},{"$f":"LEFT('PEF CLASSIFICATION SHEET'!D1353,4)","v":""},{"$f":"LEFT('PEF CLASSIFICATION SHEET'!D1354,4)","v":""},{"$f":"LEFT('PEF CLASSIFICATION SHEET'!D1355,4)","v":""},{"$f":"LEFT('PEF CLASSIFICATION SHEET'!D1356,4)","v":""},{"$f":"LEFT('PEF CLASSIFICATION SHEET'!D1357,4)","v":""},{"$f":"LEFT('PEF CLASSIFICATION SHEET'!D1358,4)","v":""},{"$f":"LEFT('PEF CLASSIFICATION SHEET'!D1359,4)","v":""},{"$f":"LEFT('PEF CLASSIFICATION SHEET'!D1360,4)","v":""},"SUBTOTAL RAW LABOR ($)","SUBTOTAL OF HOURS BY TASK","NOTES"]
[null,"RATE",{"$f":"'PEF CLASSIFICATION SHEET'!E1348","v":0},{"$f":"'PEF CLASSIFICATION SHEET'!E1349","v":0},{"$f":"'PEF CLASSIFICATION SHEET'!E1350","v":0},{"$f":"'PEF CLASSIFICATION SHEET'!E1351","v":0},{"$f":"'PEF CLASSIFICATION SHEET'!E1352","v":0},{"$f":"'PEF CLASSIFICATION SHEET'!E1353","v":0},{"$f":"'PEF CLASSIFICATION SHEET'!E1354","v":0},{"$f":"'PEF CLASSIFICATION SHEET'!E1355","v":0},{"$f":"'PEF CLASSIFICATION SHEET'!E1356","v":0},{"$f":"'PEF CLASSIFICATION SHEET'!E1357","v":0},{"$f":"'PEF CLASSIFICATION SHEET'!E1358","v":0},{"$f":"'PEF CLASSIFICATION SHEET'!E1359","v":0},{"$f":"'PEF CLASSIFICATION SHEET'!E1360","v":0}]
["Task 1.0","Project Coordination"," "," ",null,null,null,null,null,null,null,null,null,null,null," ",null,null," "]
[1.1000000000000001,"Project Kick-Off Meeting",null,null,null,null,null,null,null,null,null,null,null,null,null,null,{"$f":"SUM(C15:P15)","v":0}]
[1.2,"Technology Review Meeting with Division",null,null,null,null,null,null,null,null,null,null,null,null,null,null,{"$f":"SUM(C16:P16)","v":0}]
[1.3,"90% PS&E Design Review Meeting",null,null,null,null,null,null,null,null,null,null,null,null,null,null,0]
[1.4,"100% PS&E Final Design Review Meeting",null,null,null,null,null,null,null,null,null,null,null,null,null,null,0]
[1.5,"Miscellaneous Coordination",null,null,null,null,null,null,null,null,null,null,null,null,null,null,0]
[1.6,null,null,null,null,null,null,null,null,null,null,null,null,null,null,null,0]
[1.7,null,null,null,null,null,null,null,null,null,null,null,null,null,null,null,0]
[1.8,null,null,null,null,null,null,null,null,null,null,null,null,null,null,null,0]
[1.9,null,null,null,null,null,null,null,null,null,null,null,null,null,null,null,0]
["1.10",null,null,null,null,null,null,null,null,null,null,null,null,null,null,null,0]
[null,"Subtotal (Hours)",{"$f":"SUM(C15:C24)","v":0},{"$f":"SUM(D15:D24)","v":0},0,0,0,0,0,0,0,0,0,0,0,null,{"$f":"SUM(Q15:Q24)","v":0}]
[null,"Subtotal (Dollars)",{"$f":"C25*C$13","v":0},{"$f":"D25*D$13","v":0},0,0,0,0,0,0,0,0,0,0,0,{"$f":"SUM(C26:O26)","v":0}]
["Task 2.0     ","Preliminary Design"," ",null," "]
[2.1,"ITS Device Site Selections",null,null,null,null,null,null,null,null,null,null,null,null,null,null,{"$f":"SUM(C28:P28)","v":0}]
[2.2000000000000002,"Communication Design",null,null,null,null,null,null,null,null,null,null,null,null,null,null,0]
[2.2999999999999998,"Utility Coordination & Field Work (Power Service)",null,null,null,null,null,null,null,null,null,null,null,null,null,null,0]
[2.4,"Utility Coordination & Field Work (Utility Make-Ready)",null,null,null,null,null,null,null,null,null,null,null,null,null,null,0]
[2.5,null,null,null,null,null,null,null,null,null,null,null,null,null,null,null,0]
[2.6,null,null,null,null,null,null,null,null,null,null,null,null,null,null,null,0]
[2.7,null,null,null,null,null,null,null,null,null,null,null,null,null,null,null,0]
[2.8,null,null,null,null,null,null,null,null,null,null,null,null,null,null,null,0]
[2.9,null,null,null,null,null,null,null,null,null,null,null,null,null,null,null,0]
[null,"Subtotal (Hours)",{"$f":"SUM(C28:C36)","v":0},{"$f":"SUM(D28:D36)","v":0},0,0,0,0,0,0,0,0,0,0,0,null,{"$f":"SUM(Q28:Q36)","v":0}]
[null,"Subtotal (Dollars)",{"$f":"C37*C$13","v":0},{"$f":"D37*D$13","v":0},0,0,0,0,0,0,0,0,0,0,0,{"$f":"SUM(C38:O38)","v":0}]
["Task 3.0     ","Prepare Plans, Specifications & Estimate"]
[3.1,"Prepare Base Mapping",null,null,null,null,null,null,null,null,null,null,null,null,null,null,{"$f":"SUM(C40:P40)","v":0}]
[3.2,"Prepare Cable Routing Sheets & ITS Device Sheets",null,null,null,null,null,null,null,null,null,null,null,null,null,null,0]
[3.3,"Prepare Detail Drawings ",null,null,null,null,null,null,null,null,null,null,null,null,null,null,0]
[3.4,"Prepare Splice Diagrams ",null,null,null,null,null,null,null,null,null,null,null,null,null,null,0]
[3.5,"Prepare Project Special Provisions & Revisions",null,null,null,null,null,null,null,null,null,null,null,null,null,null,0]
[3.6,"Prepare Quantities & Engineer's Estimate",null,null,null,null,null,null,null,null,null,null,null,null,null,null,0]
[3.7,"Submit 90% PS&E",null,null,null,null,null,null,null,null,null,null,null,null,null,null,0]
[3.8,"Submit 100% PS&E",null,null,null,null,null,null,null,null,null,null,null,null,null,null,0]
[3.9,"Submit 100% Unsealed PS&E",null,null,null,null,null,null,null,null,null,null,null,null,null,null,0]
["3.10","Submit Final Sealed PS&E",null,null,null,null,null,null,null,null,null,null,null,null,null,null,0]
["3.11",null,null,null,null,null,null,null,null,null,null,null,null,null,null,null,0]
["3.12",null,null,null,null,null,null,null,null,null,null,null,null,null,null,null,0]
["3.13",null,null,null,null,null,null,null,null,null,null,null,null,null,null,null,0]
["3.14",null,null,null,null,null,null,null,null,null,null,null,null,null,null,null,0]
["3.15",null,null,null,null,null,null,null,null,null,null,null,null,null,null,null,0]
[null,"Subtotal (Hours)",{"$f":"SUM(C40:C54)","v":0},{"$f":"SUM(D40:D54)","v":0},0,0,0,0,0,0,0,0,0,0,0,null,{"$f":"SUM(Q40:Q54)","v":0}]
[null,"Subtotal (Dollars)",{"$f":"C55*C$13","v":0},{"$f":"D55*D$13","v":0},0,0,0,0,0,0,0,0,0,0,0,{"$f":"SUM(C56:O56)","v":0}]
["Task 4.0     ","REPLACE FIELD WITH CATEGORY NAME OF YOUR CHOOSING HERE",null,null,null,null,null,null,null,null,null,null,null,null,null,null,{"$f":"IF(B57=\"REPLACE FIELD WITH CATEGORY NAME OF YOUR CHOOSING HERE\",0,\"\")","v":0}]
[4.0999999999999996,null,null,null,null,null,null,null,null,null,null,null,null,null,null,null,{"$f":"SUM(C58:P58)","v":0}]
[4.2,null,null,null,null,null,null,null,null,null,null,null,null,null,null,null,0]
[4.3,null,null,null,null,null,null,null,null,null,null,null,null,null,null,null,0]
[4.4000000000000004,null,null,null,null,null,null,null,null,null,null,null,null,null,null,null,0]
[4.5,null,null,null,null,null,null,null,null,null,null,null,null,null,null,null,0]
[4.5999999999999996,null,null,null,null,null,null,null,null,null,null,null,null,null,null,null,0]
[4.7,null,null,null,null,null,null,null,null,null,null,null,null,null,null,null,0]
[4.8,null,null,null,null,null,null,null,null,null,null,null,null,null,null,null,0]
[4.9000000000000004,null,null,null,null,null,null,null,null,null,null,null,null,null,null,null,0]
["4.10",null,null,null,null,null,null,null,null,null,null,null,null,null,null,null,0]
[null,"Subtotal (Hours)",{"$f":"SUM(C58:C67)","v":0},{"$f":"SUM(D58:D67)","v":0},0,0,0,0,0,0,0,0,0,0,0,null,{"$f":"SUM(Q58:Q67)","v":0}]
[null,"Subtotal (Dollars)",{"$f":"C68*C$13","v":0},{"$f":"D68*D$13","v":0},0,0,0,0,0,0,0,0,0,0,0,{"$f":"SUM(C69:O69)","v":0}]
["Task 5.0     ","REPLACE FIELD WITH CATEGORY NAME OF YOUR CHOOSING HERE",null,null,null,null,null,null,null,null,null,null,null,null,null,null,{"$f":"IF(B70=\"REPLACE FIELD WITH CATEGORY NAME OF YOUR CHOOSING HERE\",0,\"\")","v":0}]
[5.0999999999999996,null,null,null,null,null,null,null,null,null,null,null,null,null,null,null,{"$f":"SUM(C71:P71)","v":0}]
[5.2,null,null,null,null,null,null,null,null,null,null,null,null,null,null,null,0]
[5.3,null,null,null,null,null,null,null,null,null,null,null,null,null,null,null,0]
[5.4,null,null,null,null,null,null,null,null,null,null,null,null,null,null,null,0]
[5.5,null,null,null,null,null,null,null,null,null,null,null,null,null,null,null,0]
[5.6,null,null,null,null,null,null,null,null,null,null,null,null,null,null,null,0]
[5.7,null,null,null,null,null,null,null,null,null,null,null,null,null,null,null,0]
[5.8,null,null,null,null,null,null,null,null,null,null,null,null,null,null,null,0]
[5.9,null,null,null,null,null,null,null,null,null,null,null,null,null,null,null,0]
["5.10",null,null,null,null,null,null,null,null,null,null,null,null,null,null,null,0]
[null,"Subtotal (Hours)",{"$f":"SUM(C71:C80)","v":0},{"$f":"SUM(D71:D80)","v":0},0,0,0,0,0,0,0,0,0,0,0,null,{"$f":"SUM(Q71:Q80)","v":0}]
[null,"Subtotal (Dollars)",{"$f":"C81*C$13","v":0},{"$f":"D81*D$13","v":0},0,0,0,0,0,0,0,0,0,0,0,{"$f":"SUM(C82:O82)","v":0}]
["Task 6.0     ","REPLACE FIELD WITH CATEGORY NAME OF YOUR CHOOSING HERE",null,null,null,null,null,null,null,null,null,null,null,null,null,null,{"$f":"IF(B83=\"REPLACE FIELD WITH CATEGORY NAME OF YOUR CHOOSING HERE\",0,\"\")","v":0}]
[6.1,null,null,null,null,null,null,null,null,null,null,null,null,null,null,null,{"$f":"SUM(C84:P84)","v":0}]
[6.2,null,null,null,null,null,null,null,null,null,null,null,null,null,null,null,0]
[6.3,null,null,null,null,null,null,null,null,null,null,null,null,null,null,null,0]
[6.4,null,null,null,null,null,null,null,null,null,null,null,null,null,null,null,0]
[6.5,null,null,null,null,null,null,null,null,null,null,null,null,null,null,null,0]
[6.6,null,null,null,null,null,null,null,null,null,null,null,null,null,null,null,0]
[6.7,null,null,null,null,null,null,null,null,null,null,null,null,null,null,null,0]
[6.8,null,null,null,null,null,null,null,null,null,null,null,null,null,null,null,0]
[6.9,null,null,null,null,null,null,null,null,null,null,null,null,null,null,null,0]
["6.10",null,null,null,null,null,null,null,null,null,null,null,null,null,null,null,0]
[null,"Subtotal (Hours)",{"$f":"SUM(C84:C93)","v":0},{"$f":"SUM(D84:D93)","v":0},0,0,0,0,0,0,0,0,0,0,0,null,{"$f":"SUM(Q84:Q93)","v":0}]
[null,"Subtotal (Dollars)",{"$f":"C94*C$13","v":0},{"$f":"D94*D$13","v":0},0,0,0,0,0,0,0,0,0,0,0,{"$f":"SUM(C95:O95)","v":0}]
["Task 7.0     ","REPLACE FIELD WITH CATEGORY NAME OF YOUR CHOOSING HERE",null,null,null,null,null,null,null,null,null,null,null,null,null,null,{"$f":"IF(B96=\"REPLACE FIELD WITH CATEGORY NAME OF YOUR CHOOSING HERE\",0,\"\")","v":0}]
[7.1,null,null,null,null,null,null,null,null,null,null,null,null,null,null,null,{"$f":"SUM(C97:P97)","v":0}]
[7.2,null,null,null,null,null,null,null,null,null,null,null,null,null,null,null,0]
[7.3,null,null,null,null,null,null,null,null,null,null,null,null,null,null,null,0]
[7.4,null,null,null,null,null,null,null,null,null,null,null,null,null,null,null,0]
[7.5,null,null,null,null,null,null,null,null,null,null,null,null,null,null,null,0]
[7.6,null,null,null,null,null,null,null,null,null,null,null,null,null,null,null,0]
[7.7,null,null,null,null,null,null,null,null,null,null,null,null,null,null,null,0]
[7.8,null,null,null,null,null,null,null,null,null,null,null,null,null,null,null,0]
[7.9,null,null,null,null,null,null,null,null,null,null,null,null,null,null,null,0]
["7.10",null,null,null,null,null,null,null,null,null,null,null,null,null,null,null,0]
[null,"Subtotal (Hours)",{"$f":"SUM(C97:C106)","v":0},{"$f":"SUM(D97:D106)","v":0},0,0,0,0,0,0,0,0,0,0,0,null,{"$f":"SUM(Q97:Q106)","v":0}]
[null,"Subtotal (Dollars)",{"$f":"C107*C$13","v":0},{"$f":"D107*D$13","v":0},0,0,0,0,0,0,0,0,0,0,0,{"$f":"SUM(C108:O108)","v":0}]
["Task 8.0     ","REPLACE FIELD WITH CATEGORY NAME OF YOUR CHOOSING HERE",null,null,null,null,null,null,null,null,null,null,null,null,null,null,{"$f":"IF(B109=\"REPLACE FIELD WITH CATEGORY NAME OF YOUR CHOOSING HERE\",0,\"\")","v":0}]
[8.1,null,null,null,null,null,null,null,null,null,null,null,null,null,null,null,{"$f":"SUM(C110:P110)","v":0}]
[8.1999999999999993,null,null,null,null,null,null,null,null,null,null,null,null,null,null,null,0]
[8.3000000000000007,null,null,null,null,null,null,null,null,null,null,null,null,null,null,null,0]
[8.4,null,null,null,null,null,null,null,null,null,null,null,null,null,null,null,0]
[8.5,null,null,null,null,null,null,null,null,null,null,null,null,null,null,null,0]
[8.6,null,null,null,null,null,null,null,null,null,null,null,null,null,null,null,0]
[8.6999999999999993,null,null,null,null,null,null,null,null,null,null,null,null,null,null,null,0]
[8.8000000000000007,null,null,null,null,null,null,null,null,null,null,null,null,null,null,null,0]
[8.9,null,null,null,null,null,null,null,null,null,null,null,null,null,null,null,0]
["8.10",null,null,null,null,null,null,null,null,null,null,null,null,null,null,null,0]
[null,"Subtotal (Hours)",{"$f":"SUM(C110:C119)","v":0},{"$f":"SUM(D110:D119)","v":0},0,0,0,0,0,0,0,0,0,0,0,null,{"$f":"SUM(Q110:Q119)","v":0}]
[null,"Subtotal (Dollars)",{"$f":"C120*C$13","v":0},{"$f":"D120*D$13","v":0},0,0,0,0,0,0,0,0,0,0,0,{"$f":"SUM(C121:O121)","v":0}]
[]
[null,"TOTAL HOURS",{"$f":"SUM(C25,C37,C55,C68,C81,C94,C107,C120)","v":0},{"$f":"SUM(D25,D37,D55,D68,D81,D94,D107,D120)","v":0},0,0,0,0,0,0,0,0,0,0,{"$f":"SUM(O25,O37,O55,O68,O81,O94,O107,O120)","v":0},null,{"$f":"SUM(Q25,Q37,Q55,Q68,Q81,Q94,Q107,Q120)","v":0}]
[null,"TOTAL WORKDAYS",{"$f":"C123/8","v":0},0,0,0,0,0,0,0,0,0,0,0,0,null,{"$f":"SUM(C124:P124)","v":0}]
[null,"TOTAL RAW LABOR",{"$f":"C13*C123","v":0},0,0,0,0,0,0,0,0,0,0,0,0,0,0]
[]
[null,"Contract Overhead Rate",{"$f":"ITS_SUB2_CONSULTANT_OVERHEAD","v":0},null,null,null,null,null,null,null,null,null,null,null,null,null,{"$f":"C127","v":0}]
[null,"Overhead Cost",null,null,null,null,null,null,null,null,null,null,null,null,null,null,{"$f":"Q125*Q127","v":0}]
[null,"Fee",{"$f":"ITS_SUB2_CONSULTANT_FEE","v":0.09},null,null,null,null,null,null,null,null,null,null,null,null,null,{"$f":"(Q125+Q128)*C129","v":0}]
[null,"FCCM",{"$f":"ITS_SUB2_CONSULTANT_COSTofCAPITAL","v":0},null,null,null,null,null,null,null,null,null,null,null,null,null,{"$f":"Q125*C130","v":0}]
[]
[null,"TOTAL RAW LABOR",null,null,null,null,null,null,null,null,null,null,null,null,null,null,{"$f":"Q125+Q128+Q129+Q130","v":0}]
[null,"DIRECT EXPENSES",null,null,null,null,null,null,null,null,null,null,null,null,null,null,{"$f":"ITS_SUB2_DIRECT_NONSALARY_TOTAL","v":0}]
[null,"CABLE ROUTING ESTIMATE",null,null,null,null,null,null,null,null,null,null,null,null,null,null,{"$f":"SUM(Q132:Q133)","v":0}]
[]
[]
[]
[]
[]
[null,null,"Direct Cost Computation"]
[null,null,null,"Qty.",null,"Unit Cost","Sub-Total"]
[null,null,"Mileage",null,"miles",{"$f":"SEDAN","v":0.7},{"$f":"D142*$F142","v":0}]
[null,null,"Lodging",null,"nights",{"$f":"LODGING_LUMP.SUM","v":95},0]
[null,null,"Breakfast",null,"meal",{"$f":"BREAKFAST","v":10.1},0]
[null,null,"Lunch",null,"meal",{"$f":"LUNCH","v":13.3},0]
[null,null,"Dinner",null,"meal",{"$f":"DINNER","v":23.1},0]
[null,null,"Full Size Plans",null,"sheets",{"$f":"BOND.REGULAR","v":0.42},0]
[null,null,"Half Size Plans",null,"sheets",{"$f":"LEDGERCOPIES","v":0.34},0]
[null,null,"Letter Size",null,"sheets",{"$f":"LETTERCOPIES","v":0.14000000000000001},0]
[null,null,"GPS Rental",null,"days",null,0]
[null,null,"OTDR Test",null,"each",null,0]
[null,null,"MISCELLANEOUS",null,"NAME",null,0]
[null,null,null,null,"NAME",null,0]
[null,null,null,null,"NAME",null,0]
[null,null,null,null,"NAME",null,0]
[null,null,null,null,"NAME",null,0]
[null,null,"Total Phase Cost",null,null,null,{"$f":"SUM(G142:G156)","v":0}]

{"sheet":"ITS-Sub3","index":162,"n_rows":157,"n_cols":23,"rows_kept":157,"cut":false,"hidden":true,"merged":[[11,0,12,0],[11,15,12,15],[11,16,12,16],[0,1,0,16],[1,1,1,16],[2,1,2,16],[3,1,3,16],[4,1,4,4],[4,5,4,16],[11,17,12,17],[5,1,5,16],[6,1,6,16],[7,1,7,16],[8,1,8,14],[9,2,9,14]]}
[null,"ITS Design - SUBCONSULTANT 3"]
[null,"ITS"]
[null,"SCOPING ESTIMATE PREPARED"]
[null,"FOR"]
[null,{"$f":"CONCATENATE(IF(TIP.NUMBER=\"\",\"TIP\",CONCATENATE(\"TIP:  \",TIP.NUMBER)),IF(TIP.NUMBER=\"\",\"\",\"   \"))","v":"TIP"},null,null,null,{"$f":"Signals!J3","v":"WBS"}]
[null,{"$f":"IF(COUNTY=\"\",\"COUNTY\",CONCATENATE(\"COUNTY:  \",COUNTY))","v":"COUNTY"}]
[null,{"$f":"IF(PROJECT.DESCRIPTION=\"\",\"PROJECT DESCRIPTION\",CONCATENATE(\"Project Description:  \",PROJECT.DESCRIPTION))","v":"PROJECT DESCRIPTION"}]
[null,{"$f":"IF(ITS_SUB3_CONSULTANT_NAME=\"CONSULTANT NAME\",\"CONSULTANT NAME\", CONCATENATE(\"FIRM:  \",ITS_SUB3_CONSULTANT_NAME))","v":"CONSULTANT NAME"}]
[null,null,null,null,null,null,null,null,null,null,null,null,null,null,null,"Prepared By:",{"$f":"IF(SCOPE.MANDAY.ESTIMATE.PREPARED.BY=\"\",\"\",SCOPE.MANDAY.ESTIMATE.PREPARED.BY)","v":""}," ",null,null,null,null," "]
[null,null,"ESTIMATED WORK HOURS",null,null,null,null,null,null,null,null,null,null,null,null,"Date:",{"$f":"IF(SCOPE.MANDAY.ESTIMATE.PREPARED.BY.DATE=\"\",\"\",SCOPE.MANDAY.ESTIMATE.PREPARED.BY.DATE)","v":""},null,null,null,null,null," "]
[null,"POSITION",{"$f":"IF('PEF CLASSIFICATION SHEET'!C1363=\"\",\"\",'PEF CLASSIFICATION SHEET'!C1363)","v":""},{"$f":"IF('PEF CLASSIFICATION SHEET'!C1364=\"\",\"\",'PEF CLASSIFICATION SHEET'!C1364)","v":""},{"$f":"IF('PEF CLASSIFICATION SHEET'!C1365=\"\",\"\",'PEF CLASSIFICATION SHEET'!C1365)","v":""},{"$f":"IF('PEF CLASSIFICATION SHEET'!C1366=\"\",\"\",'PEF CLASSIFICATION SHEET'!C1366)","v":""},{"$f":"IF('PEF CLASSIFICATION SHEET'!C1367=\"\",\"\",'PEF CLASSIFICATION SHEET'!C1367)","v":""},{"$f":"IF('PEF CLASSIFICATION SHEET'!C1368=\"\",\"\",'PEF CLASSIFICATION SHEET'!C1368)","v":""},{"$f":"IF('PEF CLASSIFICATION SHEET'!C1369=\"\",\"\",'PEF CLASSIFICATION SHEET'!C1369)","v":""},{"$f":"IF('PEF CLASSIFICATION SHEET'!C1370=\"\",\"\",'PEF CLASSIFICATION SHEET'!C1370)","v":""},{"$f":"IF('PEF CLASSIFICATION SHEET'!C1371=\"\",\"\",'PEF CLASSIFICATION SHEET'!C1371)","v":""},{"$f":"IF('PEF CLASSIFICATION SHEET'!C1372=\"\",\"\",'PEF CLASSIFICATION SHEET'!C1372)","v":""},{"$f":"IF('PEF CLASSIFICATION SHEET'!C1373=\"\",\"\",'PEF CLASSIFICATION SHEET'!C1373)","v":""},{"$f":"IF('PEF CLASSIFICATION SHEET'!C1374=\"\",\"\",'PEF CLASSIFICATION SHEET'!C1374)","v":""},{"$f":"IF('PEF CLASSIFICATION SHEET'!C1375=\"\",\"\",'PEF CLASSIFICATION SHEET'!C1375)","v":""}," "]
["TASK NUMBER","EMPLOYEE NAME",{"$f":"LEFT('PEF CLASSIFICATION SHEET'!D1363,4)","v":""},{"$f":"LEFT('PEF CLASSIFICATION SHEET'!D1364,4)","v":""},{"$f":"LEFT('PEF CLASSIFICATION SHEET'!D1365,4)","v":""},{"$f":"LEFT('PEF CLASSIFICATION SHEET'!D1366,4)","v":""},{"$f":"LEFT('PEF CLASSIFICATION SHEET'!D1367,4)","v":""},{"$f":"LEFT('PEF CLASSIFICATION SHEET'!D1368,4)","v":""},{"$f":"LEFT('PEF CLASSIFICATION SHEET'!D1369,4)","v":""},{"$f":"LEFT('PEF CLASSIFICATION SHEET'!D1370,4)","v":""},{"$f":"LEFT('PEF CLASSIFICATION SHEET'!D1371,4)","v":""},{"$f":"LEFT('PEF CLASSIFICATION SHEET'!D1372,4)","v":""},{"$f":"LEFT('PEF CLASSIFICATION SHEET'!D1373,4)","v":""},{"$f":"LEFT('PEF CLASSIFICATION SHEET'!D1374,4)","v":""},{"$f":"LEFT('PEF CLASSIFICATION SHEET'!D1375,4)","v":""},"SUBTOTAL RAW LABOR ($)","SUBTOTAL OF HOURS BY TASK","NOTES"]
[null,"RATE",{"$f":"'PEF CLASSIFICATION SHEET'!E1363","v":0},{"$f":"'PEF CLASSIFICATION SHEET'!E1364","v":0},{"$f":"'PEF CLASSIFICATION SHEET'!E1365","v":0},{"$f":"'PEF CLASSIFICATION SHEET'!E1366","v":0},{"$f":"'PEF CLASSIFICATION SHEET'!E1367","v":0},{"$f":"'PEF CLASSIFICATION SHEET'!E1368","v":0},{"$f":"'PEF CLASSIFICATION SHEET'!E1369","v":0},{"$f":"'PEF CLASSIFICATION SHEET'!E1370","v":0},{"$f":"'PEF CLASSIFICATION SHEET'!E1371","v":0},{"$f":"'PEF CLASSIFICATION SHEET'!E1372","v":0},{"$f":"'PEF CLASSIFICATION SHEET'!E1373","v":0},{"$f":"'PEF CLASSIFICATION SHEET'!E1374","v":0},{"$f":"'PEF CLASSIFICATION SHEET'!E1375","v":0}]
["Task 1.0","Project Coordination"," "," ",null,null,null,null,null,null,null,null,null,null,null," ",null,null," "]
[1.1000000000000001,"Project Kick-Off Meeting",null,null,null,null,null,null,null,null,null,null,null,null,null,null,{"$f":"SUM(C15:P15)","v":0}]
[1.2,"Technology Review Meeting with Division",null,null,null,null,null,null,null,null,null,null,null,null,null,null,{"$f":"SUM(C16:P16)","v":0}]
[1.3,"90% PS&E Design Review Meeting",null,null,null,null,null,null,null,null,null,null,null,null,null,null,0]
[1.4,"100% PS&E Final Design Review Meeting",null,null,null,null,null,null,null,null,null,null,null,null,null,null,0]
[1.5,"Miscellaneous Coordination",null,null,null,null,null,null,null,null,null,null,null,null,null,null,0]
[1.6,null,null,null,null,null,null,null,null,null,null,null,null,null,null,null,0]
[1.7,null,null,null,null,null,null,null,null,null,null,null,null,null,null,null,0]
[1.8,null,null,null,null,null,null,null,null,null,null,null,null,null,null,null,0]
[1.9,null,null,null,null,null,null,null,null,null,null,null,null,null,null,null,0]
["1.10",null,null,null,null,null,null,null,null,null,null,null,null,null,null,null,0]
[null,"Subtotal (Hours)",{"$f":"SUM(C15:C24)","v":0},{"$f":"SUM(D15:D24)","v":0},0,0,0,0,0,0,0,0,0,0,0,null,{"$f":"SUM(Q15:Q24)","v":0}]
[null,"Subtotal (Dollars)",{"$f":"C25*C$13","v":0},{"$f":"D25*D$13","v":0},0,0,0,0,0,0,0,0,0,0,0,{"$f":"SUM(C26:O26)","v":0}]
["Task 2.0     ","Preliminary Design"," ",null," "]
[2.1,"ITS Device Site Selections",null,null,null,null,null,null,null,null,null,null,null,null,null,null,{"$f":"SUM(C28:P28)","v":0}]
[2.2000000000000002,"Communication Design",null,null,null,null,null,null,null,null,null,null,null,null,null,null,0]
[2.2999999999999998,"Utility Coordination & Field Work (Power Service)",null,null,null,null,null,null,null,null,null,null,null,null,null,null,0]
[2.4,"Utility Coordination & Field Work (Utility Make-Ready)",null,null,null,null,null,null,null,null,null,null,null,null,null,null,0]
[2.5,null,null,null,null,null,null,null,null,null,null,null,null,null,null,null,0]
[2.6,null,null,null,null,null,null,null,null,null,null,null,null,null,null,null,0]
[2.7,null,null,null,null,null,null,null,null,null,null,null,null,null,null,null,0]
[2.8,null,null,null,null,null,null,null,null,null,null,null,null,null,null,null,0]
[2.9,null,null,null,null,null,null,null,null,null,null,null,null,null,null,null,0]
[null,"Subtotal (Hours)",{"$f":"SUM(C28:C36)","v":0},{"$f":"SUM(D28:D36)","v":0},0,0,0,0,0,0,0,0,0,0,0,null,{"$f":"SUM(Q28:Q36)","v":0}]
[null,"Subtotal (Dollars)",{"$f":"C37*C$13","v":0},{"$f":"D37*D$13","v":0},0,0,0,0,0,0,0,0,0,0,0,{"$f":"SUM(C38:O38)","v":0}]
["Task 3.0     ","Prepare Plans, Specifications & Estimate"]
[3.1,"Prepare Base Mapping",null,null,null,null,null,null,null,null,null,null,null,null,null,null,{"$f":"SUM(C40:P40)","v":0}]
[3.2,"Prepare Cable Routing Sheets & ITS Device Sheets",null,null,null,null,null,null,null,null,null,null,null,null,null,null,0]
[3.3,"Prepare Detail Drawings ",null,null,null,null,null,null,null,null,null,null,null,null,null,null,0]
[3.4,"Prepare Splice Diagrams ",null,null,null,null,null,null,null,null,null,null,null,null,null,null,0]
[3.5,"Prepare Project Special Provisions & Revisions",null,null,null,null,null,null,null,null,null,null,null,null,null,null,0]
[3.6,"Prepare Quantities & Engineer's Estimate",null,null,null,null,null,null,null,null,null,null,null,null,null,null,0]
[3.7,"Submit 90% PS&E",null,null,null,null,null,null,null,null,null,null,null,null,null,null,0]
[3.8,"Submit 100% PS&E",null,null,null,null,null,null,null,null,null,null,null,null,null,null,0]
[3.9,"Submit 100% Unsealed PS&E",null,null,null,null,null,null,null,null,null,null,null,null,null,null,0]
["3.10","Submit Final Sealed PS&E",null,null,null,null,null,null,null,null,null,null,null,null,null,null,0]
["3.11",null,null,null,null,null,null,null,null,null,null,null,null,null,null,null,0]
["3.12",null,null,null,null,null,null,null,null,null,null,null,null,null,null,null,0]
["3.13",null,null,null,null,null,null,null,null,null,null,null,null,null,null,null,0]
["3.14",null,null,null,null,null,null,null,null,null,null,null,null,null,null,null,0]
["3.15",null,null,null,null,null,null,null,null,null,null,null,null,null,null,null,0]
[null,"Subtotal (Hours)",{"$f":"SUM(C40:C54)","v":0},{"$f":"SUM(D40:D54)","v":0},0,0,0,0,0,0,0,0,0,0,0,null,{"$f":"SUM(Q40:Q54)","v":0}]
[null,"Subtotal (Dollars)",{"$f":"C55*C$13","v":0},{"$f":"D55*D$13","v":0},0,0,0,0,0,0,0,0,0,0,0,{"$f":"SUM(C56:O56)","v":0}]
["Task 4.0     ","REPLACE FIELD WITH CATEGORY NAME OF YOUR CHOOSING HERE",null,null,null,null,null,null,null,null,null,null,null,null,null,null,{"$f":"IF(B57=\"REPLACE FIELD WITH CATEGORY NAME OF YOUR CHOOSING HERE\",0,\"\")","v":0}]
[4.0999999999999996,null,null,null,null,null,null,null,null,null,null,null,null,null,null,null,{"$f":"SUM(C58:P58)","v":0}]
[4.2,null,null,null,null,null,null,null,null,null,null,null,null,null,null,null,0]
[4.3,null,null,null,null,null,null,null,null,null,null,null,null,null,null,null,0]
[4.4000000000000004,null,null,null,null,null,null,null,null,null,null,null,null,null,null,null,0]
[4.5,null,null,null,null,null,null,null,null,null,null,null,null,null,null,null,0]
[4.5999999999999996,null,null,null,null,null,null,null,null,null,null,null,null,null,null,null,0]
[4.7,null,null,null,null,null,null,null,null,null,null,null,null,null,null,null,0]
[4.8,null,null,null,null,null,null,null,null,null,null,null,null,null,null,null,0]
[4.9000000000000004,null,null,null,null,null,null,null,null,null,null,null,null,null,null,null,0]
["4.10",null,null,null,null,null,null,null,null,null,null,null,null,null,null,null,0]
[null,"Subtotal (Hours)",{"$f":"SUM(C58:C67)","v":0},{"$f":"SUM(D58:D67)","v":0},0,0,0,0,0,0,0,0,0,0,0,null,{"$f":"SUM(Q58:Q67)","v":0}]
[null,"Subtotal (Dollars)",{"$f":"C68*C$13","v":0},{"$f":"D68*D$13","v":0},0,0,0,0,0,0,0,0,0,0,0,{"$f":"SUM(C69:O69)","v":0}]
["Task 5.0     ","REPLACE FIELD WITH CATEGORY NAME OF YOUR CHOOSING HERE",null,null,null,null,null,null,null,null,null,null,null,null,null,null,{"$f":"IF(B70=\"REPLACE FIELD WITH CATEGORY NAME OF YOUR CHOOSING HERE\",0,\"\")","v":0}]
[5.0999999999999996,null,null,null,null,null,null,null,null,null,null,null,null,null,null,null,{"$f":"SUM(C71:P71)","v":0}]
[5.2,null,null,null,null,null,null,null,null,null,null,null,null,null,null,null,0]
[5.3,null,null,null,null,null,null,null,null,null,null,null,null,null,null,null,0]
[5.4,null,null,null,null,null,null,null,null,null,null,null,null,null,null,null,0]
[5.5,null,null,null,null,null,null,null,null,null,null,null,null,null,null,null,0]
[5.6,null,null,null,null,null,null,null,null,null,null,null,null,null,null,null,0]
[5.7,null,null,null,null,null,null,null,null,null,null,null,null,null,null,null,0]
[5.8,null,null,null,null,null,null,null,null,null,null,null,null,null,null,null,0]
[5.9,null,null,null,null,null,null,null,null,null,null,null,null,null,null,null,0]
["5.10",null,null,null,null,null,null,null,null,null,null,null,null,null,null,null,0]
[null,"Subtotal (Hours)",{"$f":"SUM(C71:C80)","v":0},{"$f":"SUM(D71:D80)","v":0},0,0,0,0,0,0,0,0,0,0,0,null,{"$f":"SUM(Q71:Q80)","v":0}]
[null,"Subtotal (Dollars)",{"$f":"C81*C$13","v":0},{"$f":"D81*D$13","v":0},0,0,0,0,0,0,0,0,0,0,0,{"$f":"SUM(C82:O82)","v":0}]
["Task 6.0     ","REPLACE FIELD WITH CATEGORY NAME OF YOUR CHOOSING HERE",null,null,null,null,null,null,null,null,null,null,null,null,null,null,{"$f":"IF(B83=\"REPLACE FIELD WITH CATEGORY NAME OF YOUR CHOOSING HERE\",0,\"\")","v":0}]
[6.1,null,null,null,null,null,null,null,null,null,null,null,null,null,null,null,{"$f":"SUM(C84:P84)","v":0}]
[6.2,null,null,null,null,null,null,null,null,null,null,null,null,null,null,null,0]
[6.3,null,null,null,null,null,null,null,null,null,null,null,null,null,null,null,0]
[6.4,null,null,null,null,null,null,null,null,null,null,null,null,null,null,null,0]
[6.5,null,null,null,null,null,null,null,null,null,null,null,null,null,null,null,0]
[6.6,null,null,null,null,null,null,null,null,null,null,null,null,null,null,null,0]
[6.7,null,null,null,null,null,null,null,null,null,null,null,null,null,null,null,0]
[6.8,null,null,null,null,null,null,null,null,null,null,null,null,null,null,null,0]
[6.9,null,null,null,null,null,null,null,null,null,null,null,null,null,null,null,0]
["6.10",null,null,null,null,null,null,null,null,null,null,null,null,null,null,null,0]
[null,"Subtotal (Hours)",{"$f":"SUM(C84:C93)","v":0},{"$f":"SUM(D84:D93)","v":0},0,0,0,0,0,0,0,0,0,0,0,null,{"$f":"SUM(Q84:Q93)","v":0}]
[null,"Subtotal (Dollars)",{"$f":"C94*C$13","v":0},{"$f":"D94*D$13","v":0},0,0,0,0,0,0,0,0,0,0,0,{"$f":"SUM(C95:O95)","v":0}]
["Task 7.0     ","REPLACE FIELD WITH CATEGORY NAME OF YOUR CHOOSING HERE",null,null,null,null,null,null,null,null,null,null,null,null,null,null,{"$f":"IF(B96=\"REPLACE FIELD WITH CATEGORY NAME OF YOUR CHOOSING HERE\",0,\"\")","v":0}]
[7.1,null,null,null,null,null,null,null,null,null,null,null,null,null,null,null,{"$f":"SUM(C97:P97)","v":0}]
[7.2,null,null,null,null,null,null,null,null,null,null,null,null,null,null,null,0]
[7.3,null,null,null,null,null,null,null,null,null,null,null,null,null,null,null,0]
[7.4,null,null,null,null,null,null,null,null,null,null,null,null,null,null,null,0]
[7.5,null,null,null,null,null,null,null,null,null,null,null,null,null,null,null,0]
[7.6,null,null,null,null,null,null,null,null,null,null,null,null,null,null,null,0]
[7.7,null,null,null,null,null,null,null,null,null,null,null,null,null,null,null,0]
[7.8,null,null,null,null,null,null,null,null,null,null,null,null,null,null,null,0]
[7.9,null,null,null,null,null,null,null,null,null,null,null,null,null,null,null,0]
["7.10",null,null,null,null,null,null,null,null,null,null,null,null,null,null,null,0]
[null,"Subtotal (Hours)",{"$f":"SUM(C97:C106)","v":0},{"$f":"SUM(D97:D106)","v":0},0,0,0,0,0,0,0,0,0,0,0,null,{"$f":"SUM(Q97:Q106)","v":0}]
[null,"Subtotal (Dollars)",{"$f":"C107*C$13","v":0},{"$f":"D107*D$13","v":0},0,0,0,0,0,0,0,0,0,0,0,{"$f":"SUM(C108:O108)","v":0}]
["Task 8.0     ","REPLACE FIELD WITH CATEGORY NAME OF YOUR CHOOSING HERE",null,null,null,null,null,null,null,null,null,null,null,null,null,null,{"$f":"IF(B109=\"REPLACE FIELD WITH CATEGORY NAME OF YOUR CHOOSING HERE\",0,\"\")","v":0}]
[8.1,null,null,null,null,null,null,null,null,null,null,null,null,null,null,null,{"$f":"SUM(C110:P110)","v":0}]
[8.1999999999999993,null,null,null,null,null,null,null,null,null,null,null,null,null,null,null,0]
[8.3000000000000007,null,null,null,null,null,null,null,null,null,null,null,null,null,null,null,0]
[8.4,null,null,null,null,null,null,null,null,null,null,null,null,null,null,null,0]
[8.5,null,null,null,null,null,null,null,null,null,null,null,null,null,null,null,0]
[8.6,null,null,null,null,null,null,null,null,null,null,null,null,null,null,null,0]
[8.6999999999999993,null,null,null,null,null,null,null,null,null,null,null,null,null,null,null,0]
[8.8000000000000007,null,null,null,null,null,null,null,null,null,null,null,null,null,null,null,0]
[8.9,null,null,null,null,null,null,null,null,null,null,null,null,null,null,null,0]
["8.10",null,null,null,null,null,null,null,null,null,null,null,null,null,null,null,0]
[null,"Subtotal (Hours)",{"$f":"SUM(C110:C119)","v":0},{"$f":"SUM(D110:D119)","v":0},0,0,0,0,0,0,0,0,0,0,0,null,{"$f":"SUM(Q110:Q119)","v":0}]
[null,"Subtotal (Dollars)",{"$f":"C120*C$13","v":0},{"$f":"D120*D$13","v":0},0,0,0,0,0,0,0,0,0,0,0,{"$f":"SUM(C121:O121)","v":0}]
[]
[null,"TOTAL HOURS",{"$f":"SUM(C25,C37,C55,C68,C81,C94,C107,C120)","v":0},{"$f":"SUM(D25,D37,D55,D68,D81,D94,D107,D120)","v":0},0,0,0,0,0,0,0,0,0,0,{"$f":"SUM(O25,O37,O55,O68,O81,O94,O107,O120)","v":0},null,{"$f":"SUM(Q25,Q37,Q55,Q68,Q81,Q94,Q107,Q120)","v":0}]
[null,"TOTAL WORKDAYS",{"$f":"C123/8","v":0},0,0,0,0,0,0,0,0,0,0,0,0,null,{"$f":"SUM(C124:P124)","v":0}]
[null,"TOTAL RAW LABOR",{"$f":"C13*C123","v":0},0,0,0,0,0,0,0,0,0,0,0,0,0,0]
[]
[null,"Contract Overhead Rate",{"$f":"ITS_SUB3_CONSULTANT_OVERHEAD","v":0},null,null,null,null,null,null,null,null,null,null,null,null,null,{"$f":"C127","v":0}]
[null,"Overhead Cost",null,null,null,null,null,null,null,null,null,null,null,null,null,null,{"$f":"Q125*Q127","v":0}]
[null,"Fee",{"$f":"ITS_SUB3_CONSULTANT_FEE","v":0.09},null,null,null,null,null,null,null,null,null,null,null,null,null,{"$f":"(Q125+Q128)*C129","v":0}]
[null,"FCCM",{"$f":"ITS_SUB3_CONSULTANT_COSTofCAPITAL","v":0},null,null,null,null,null,null,null,null,null,null,null,null,null,{"$f":"Q125*C130","v":0}]
[]
[null,"TOTAL RAW LABOR",null,null,null,null,null,null,null,null,null,null,null,null,null,null,{"$f":"Q125+Q128+Q129+Q130","v":0}]
[null,"DIRECT EXPENSES",null,null,null,null,null,null,null,null,null,null,null,null,null,null,{"$f":"ITS_SUB3_DIRECT_NONSALARY_TOTAL","v":0}]
[null,"CABLE ROUTING ESTIMATE",null,null,null,null,null,null,null,null,null,null,null,null,null,null,{"$f":"SUM(Q132:Q133)","v":0}]
[]
[]
[]
[]
[]
[null,null,"Direct Cost Computation"]
[null,null,null,"Qty.",null,"Unit Cost","Sub-Total"]
[null,null,"Mileage",null,"miles",{"$f":"SEDAN","v":0.7},{"$f":"D142*$F142","v":0}]
[null,null,"Lodging",null,"nights",{"$f":"LODGING_LUMP.SUM","v":95},0]
[null,null,"Breakfast",null,"meal",{"$f":"BREAKFAST","v":10.1},0]
[null,null,"Lunch",null,"meal",{"$f":"LUNCH","v":13.3},0]
[null,null,"Dinner",null,"meal",{"$f":"DINNER","v":23.1},0]
[null,null,"Full Size Plans",null,"sheets",{"$f":"BOND.REGULAR","v":0.42},0]
[null,null,"Half Size Plans",null,"sheets",{"$f":"LEDGERCOPIES","v":0.34},0]
[null,null,"Letter Size",null,"sheets",{"$f":"LETTERCOPIES","v":0.14000000000000001},0]
[null,null,"GPS Rental",null,"days",null,0]
[null,null,"OTDR Test",null,"each",null,0]
[null,null,"MISCELLANEOUS",null,"NAME",null,0]
[null,null,null,null,"NAME",null,0]
[null,null,null,null,"NAME",null,0]
[null,null,null,null,"NAME",null,0]
[null,null,null,null,"NAME",null,0]
[null,null,"Total Phase Cost",null,null,null,{"$f":"SUM(G142:G156)","v":0}]

{"sheet":"ITS-Sub4","index":163,"n_rows":157,"n_cols":23,"rows_kept":157,"cut":false,"hidden":true,"merged":[[11,0,12,0],[11,15,12,15],[11,16,12,16],[0,1,0,16],[1,1,1,16],[2,1,2,16],[3,1,3,16],[4,1,4,4],[4,5,4,16],[11,17,12,17],[5,1,5,16],[6,1,6,16],[7,1,7,16],[8,1,8,14],[9,2,9,14]]}
[null,"ITS Design - SUBCONSULTANT 4"]
[null,"ITS"]
[null,"SCOPING ESTIMATE PREPARED"]
[null,"FOR"]
[null,{"$f":"CONCATENATE(IF(TIP.NUMBER=\"\",\"TIP\",CONCATENATE(\"TIP:  \",TIP.NUMBER)),IF(TIP.NUMBER=\"\",\"\",\"   \"))","v":"TIP"},null,null,null,{"$f":"Signals!J3","v":"WBS"}]
[null,{"$f":"IF(COUNTY=\"\",\"COUNTY\",CONCATENATE(\"COUNTY:  \",COUNTY))","v":"COUNTY"}]
[null,{"$f":"IF(PROJECT.DESCRIPTION=\"\",\"PROJECT DESCRIPTION\",CONCATENATE(\"Project Description:  \",PROJECT.DESCRIPTION))","v":"PROJECT DESCRIPTION"}]
[null,{"$f":"IF(ITS_SUB4_CONSULTANT_NAME=\"CONSULTANT NAME\",\"CONSULTANT NAME\", CONCATENATE(\"FIRM:  \",ITS_SUB4_CONSULTANT_NAME))","v":"CONSULTANT NAME"}]
[null,null,null,null,null,null,null,null,null,null,null,null,null,null,null,"Prepared By:",{"$f":"IF(SCOPE.MANDAY.ESTIMATE.PREPARED.BY=\"\",\"\",SCOPE.MANDAY.ESTIMATE.PREPARED.BY)","v":""}," ",null,null,null,null," "]
[null,null,"ESTIMATED WORK HOURS",null,null,null,null,null,null,null,null,null,null,null,null,"Date:",{"$f":"IF(SCOPE.MANDAY.ESTIMATE.PREPARED.BY.DATE=\"\",\"\",SCOPE.MANDAY.ESTIMATE.PREPARED.BY.DATE)","v":""},null,null,null,null,null," "]
[null,"POSITION",{"$f":"IF('PEF CLASSIFICATION SHEET'!C1378=\"\",\"\",'PEF CLASSIFICATION SHEET'!C1378)","v":""},{"$f":"IF('PEF CLASSIFICATION SHEET'!C1379=\"\",\"\",'PEF CLASSIFICATION SHEET'!C1379)","v":""},{"$f":"IF('PEF CLASSIFICATION SHEET'!C1380=\"\",\"\",'PEF CLASSIFICATION SHEET'!C1380)","v":""},{"$f":"IF('PEF CLASSIFICATION SHEET'!C1381=\"\",\"\",'PEF CLASSIFICATION SHEET'!C1381)","v":""},{"$f":"IF('PEF CLASSIFICATION SHEET'!C1382=\"\",\"\",'PEF CLASSIFICATION SHEET'!C1382)","v":""},{"$f":"IF('PEF CLASSIFICATION SHEET'!C1383=\"\",\"\",'PEF CLASSIFICATION SHEET'!C1383)","v":""},{"$f":"IF('PEF CLASSIFICATION SHEET'!C1384=\"\",\"\",'PEF CLASSIFICATION SHEET'!C1384)","v":""},{"$f":"IF('PEF CLASSIFICATION SHEET'!C1385=\"\",\"\",'PEF CLASSIFICATION SHEET'!C1385)","v":""},{"$f":"IF('PEF CLASSIFICATION SHEET'!C1386=\"\",\"\",'PEF CLASSIFICATION SHEET'!C1386)","v":""},{"$f":"IF('PEF CLASSIFICATION SHEET'!C1387=\"\",\"\",'PEF CLASSIFICATION SHEET'!C1387)","v":""},{"$f":"IF('PEF CLASSIFICATION SHEET'!C1388=\"\",\"\",'PEF CLASSIFICATION SHEET'!C1388)","v":""},{"$f":"IF('PEF CLASSIFICATION SHEET'!C1389=\"\",\"\",'PEF CLASSIFICATION SHEET'!C1389)","v":""},{"$f":"IF('PEF CLASSIFICATION SHEET'!C1390=\"\",\"\",'PEF CLASSIFICATION SHEET'!C1390)","v":""}," "]
["TASK NUMBER","EMPLOYEE NAME",{"$f":"LEFT('PEF CLASSIFICATION SHEET'!D1378,4)","v":""},{"$f":"LEFT('PEF CLASSIFICATION SHEET'!D1379,4)","v":""},{"$f":"LEFT('PEF CLASSIFICATION SHEET'!D1380,4)","v":""},{"$f":"LEFT('PEF CLASSIFICATION SHEET'!D1381,4)","v":""},{"$f":"LEFT('PEF CLASSIFICATION SHEET'!D1382,4)","v":""},{"$f":"LEFT('PEF CLASSIFICATION SHEET'!D1383,4)","v":""},{"$f":"LEFT('PEF CLASSIFICATION SHEET'!D1384,4)","v":""},{"$f":"LEFT('PEF CLASSIFICATION SHEET'!D1385,4)","v":""},{"$f":"LEFT('PEF CLASSIFICATION SHEET'!D1386,4)","v":""},{"$f":"LEFT('PEF CLASSIFICATION SHEET'!D1387,4)","v":""},{"$f":"LEFT('PEF CLASSIFICATION SHEET'!D1388,4)","v":""},{"$f":"LEFT('PEF CLASSIFICATION SHEET'!D1389,4)","v":""},{"$f":"LEFT('PEF CLASSIFICATION SHEET'!D1390,4)","v":""},"SUBTOTAL RAW LABOR ($)","SUBTOTAL OF HOURS BY TASK","NOTES"]
[null,"RATE",{"$f":"'PEF CLASSIFICATION SHEET'!E1378","v":0},{"$f":"'PEF CLASSIFICATION SHEET'!E1379","v":0},{"$f":"'PEF CLASSIFICATION SHEET'!E1380","v":0},{"$f":"'PEF CLASSIFICATION SHEET'!E1381","v":0},{"$f":"'PEF CLASSIFICATION SHEET'!E1382","v":0},{"$f":"'PEF CLASSIFICATION SHEET'!E1383","v":0},{"$f":"'PEF CLASSIFICATION SHEET'!E1384","v":0},{"$f":"'PEF CLASSIFICATION SHEET'!E1385","v":0},{"$f":"'PEF CLASSIFICATION SHEET'!E1386","v":0},{"$f":"'PEF CLASSIFICATION SHEET'!E1387","v":0},{"$f":"'PEF CLASSIFICATION SHEET'!E1388","v":0},{"$f":"'PEF CLASSIFICATION SHEET'!E1389","v":0},{"$f":"'PEF CLASSIFICATION SHEET'!E1390","v":0}]
["Task 1.0","Project Coordination"," "," ",null,null,null,null,null,null,null,null,null,null,null," ",null,null," "]
[1.1000000000000001,"Project Kick-Off Meeting",null,null,null,null,null,null,null,null,null,null,null,null,null,null,{"$f":"SUM(C15:P15)","v":0}]
[1.2,"Technology Review Meeting with Division",null,null,null,null,null,null,null,null,null,null,null,null,null,null,{"$f":"SUM(C16:P16)","v":0}]
[1.3,"90% PS&E Design Review Meeting",null,null,null,null,null,null,null,null,null,null,null,null,null,null,0]
[1.4,"100% PS&E Final Design Review Meeting",null,null,null,null,null,null,null,null,null,null,null,null,null,null,0]
[1.5,"Miscellaneous Coordination",null,null,null,null,null,null,null,null,null,null,null,null,null,null,0]
[1.6,null,null,null,null,null,null,null,null,null,null,null,null,null,null,null,0]
[1.7,null,null,null,null,null,null,null,null,null,null,null,null,null,null,null,0]
[1.8,null,null,null,null,null,null,null,null,null,null,null,null,null,null,null,0]
[1.9,null,null,null,null,null,null,null,null,null,null,null,null,null,null,null,0]
["1.10",null,null,null,null,null,null,null,null,null,null,null,null,null,null,null,0]
[null,"Subtotal (Hours)",{"$f":"SUM(C15:C24)","v":0},{"$f":"SUM(D15:D24)","v":0},0,0,0,0,0,0,0,0,0,0,0,null,{"$f":"SUM(Q15:Q24)","v":0}]
[null,"Subtotal (Dollars)",{"$f":"C25*C$13","v":0},{"$f":"D25*D$13","v":0},0,0,0,0,0,0,0,0,0,0,0,{"$f":"SUM(C26:O26)","v":0}]
["Task 2.0     ","Preliminary Design"," ",null," "]
[2.1,"ITS Device Site Selections",null,null,null,null,null,null,null,null,null,null,null,null,null,null,{"$f":"SUM(C28:P28)","v":0}]
[2.2000000000000002,"Communication Design",null,null,null,null,null,null,null,null,null,null,null,null,null,null,0]
[2.2999999999999998,"Utility Coordination & Field Work (Power Service)",null,null,null,null,null,null,null,null,null,null,null,null,null,null,0]
[2.4,"Utility Coordination & Field Work (Utility Make-Ready)",null,null,null,null,null,null,null,null,null,null,null,null,null,null,0]
[2.5,null,null,null,null,null,null,null,null,null,null,null,null,null,null,null,0]
[2.6,null,null,null,null,null,null,null,null,null,null,null,null,null,null,null,0]
[2.7,null,null,null,null,null,null,null,null,null,null,null,null,null,null,null,0]
[2.8,null,null,null,null,null,null,null,null,null,null,null,null,null,null,null,0]
[2.9,null,null,null,null,null,null,null,null,null,null,null,null,null,null,null,0]
[null,"Subtotal (Hours)",{"$f":"SUM(C28:C36)","v":0},{"$f":"SUM(D28:D36)","v":0},0,0,0,0,0,0,0,0,0,0,0,null,{"$f":"SUM(Q28:Q36)","v":0}]
[null,"Subtotal (Dollars)",{"$f":"C37*C$13","v":0},{"$f":"D37*D$13","v":0},0,0,0,0,0,0,0,0,0,0,0,{"$f":"SUM(C38:O38)","v":0}]
["Task 3.0     ","Prepare Plans, Specifications & Estimate"]
[3.1,"Prepare Base Mapping",null,null,null,null,null,null,null,null,null,null,null,null,null,null,{"$f":"SUM(C40:P40)","v":0}]
[3.2,"Prepare Cable Routing Sheets & ITS Device Sheets",null,null,null,null,null,null,null,null,null,null,null,null,null,null,0]
[3.3,"Prepare Detail Drawings ",null,null,null,null,null,null,null,null,null,null,null,null,null,null,0]
[3.4,"Prepare Splice Diagrams ",null,null,null,null,null,null,null,null,null,null,null,null,null,null,0]
[3.5,"Prepare Project Special Provisions & Revisions",null,null,null,null,null,null,null,null,null,null,null,null,null,null,0]
[3.6,"Prepare Quantities & Engineer's Estimate",null,null,null,null,null,null,null,null,null,null,null,null,null,null,0]
[3.7,"Submit 90% PS&E",null,null,null,null,null,null,null,null,null,null,null,null,null,null,0]
[3.8,"Submit 100% PS&E",null,null,null,null,null,null,null,null,null,null,null,null,null,null,0]
[3.9,"Submit 100% Unsealed PS&E",null,null,null,null,null,null,null,null,null,null,null,null,null,null,0]
["3.10","Submit Final Sealed PS&E",null,null,null,null,null,null,null,null,null,null,null,null,null,null,0]
["3.11",null,null,null,null,null,null,null,null,null,null,null,null,null,null,null,0]
["3.12",null,null,null,null,null,null,null,null,null,null,null,null,null,null,null,0]
["3.13",null,null,null,null,null,null,null,null,null,null,null,null,null,null,null,0]
["3.14",null,null,null,null,null,null,null,null,null,null,null,null,null,null,null,0]
["3.15",null,null,null,null,null,null,null,null,null,null,null,null,null,null,null,0]
[null,"Subtotal (Hours)",{"$f":"SUM(C40:C54)","v":0},{"$f":"SUM(D40:D54)","v":0},0,0,0,0,0,0,0,0,0,0,0,null,{"$f":"SUM(Q40:Q54)","v":0}]
[null,"Subtotal (Dollars)",{"$f":"C55*C$13","v":0},{"$f":"D55*D$13","v":0},0,0,0,0,0,0,0,0,0,0,0,{"$f":"SUM(C56:O56)","v":0}]
["Task 4.0     ","REPLACE FIELD WITH CATEGORY NAME OF YOUR CHOOSING HERE",null,null,null,null,null,null,null,null,null,null,null,null,null,null,{"$f":"IF(B57=\"REPLACE FIELD WITH CATEGORY NAME OF YOUR CHOOSING HERE\",0,\"\")","v":0}]
[4.0999999999999996,null,null,null,null,null,null,null,null,null,null,null,null,null,null,null,{"$f":"SUM(C58:P58)","v":0}]
[4.2,null,null,null,null,null,null,null,null,null,null,null,null,null,null,null,0]
[4.3,null,null,null,null,null,null,null,null,null,null,null,null,null,null,null,0]
[4.4000000000000004,null,null,null,null,null,null,null,null,null,null,null,null,null,null,null,0]
[4.5,null,null,null,null,null,null,null,null,null,null,null,null,null,null,null,0]
[4.5999999999999996,null,null,null,null,null,null,null,null,null,null,null,null,null,null,null,0]
[4.7,null,null,null,null,null,null,null,null,null,null,null,null,null,null,null,0]
[4.8,null,null,null,null,null,null,null,null,null,null,null,null,null,null,null,0]
[4.9000000000000004,null,null,null,null,null,null,null,null,null,null,null,null,null,null,null,0]
["4.10",null,null,null,null,null,null,null,null,null,null,null,null,null,null,null,0]
[null,"Subtotal (Hours)",{"$f":"SUM(C58:C67)","v":0},{"$f":"SUM(D58:D67)","v":0},0,0,0,0,0,0,0,0,0,0,0,null,{"$f":"SUM(Q58:Q67)","v":0}]
[null,"Subtotal (Dollars)",{"$f":"C68*C$13","v":0},{"$f":"D68*D$13","v":0},0,0,0,0,0,0,0,0,0,0,0,{"$f":"SUM(C69:O69)","v":0}]
["Task 5.0     ","REPLACE FIELD WITH CATEGORY NAME OF YOUR CHOOSING HERE",null,null,null,null,null,null,null,null,null,null,null,null,null,null,{"$f":"IF(B70=\"REPLACE FIELD WITH CATEGORY NAME OF YOUR CHOOSING HERE\",0,\"\")","v":0}]
[5.0999999999999996,null,null,null,null,null,null,null,null,null,null,null,null,null,null,null,{"$f":"SUM(C71:P71)","v":0}]
[5.2,null,null,null,null,null,null,null,null,null,null,null,null,null,null,null,0]
[5.3,null,null,null,null,null,null,null,null,null,null,null,null,null,null,null,0]
[5.4,null,null,null,null,null,null,null,null,null,null,null,null,null,null,null,0]
[5.5,null,null,null,null,null,null,null,null,null,null,null,null,null,null,null,0]
[5.6,null,null,null,null,null,null,null,null,null,null,null,null,null,null,null,0]
[5.7,null,null,null,null,null,null,null,null,null,null,null,null,null,null,null,0]
[5.8,null,null,null,null,null,null,null,null,null,null,null,null,null,null,null,0]
[5.9,null,null,null,null,null,null,null,null,null,null,null,null,null,null,null,0]
["5.10",null,null,null,null,null,null,null,null,null,null,null,null,null,null,null,0]
[null,"Subtotal (Hours)",{"$f":"SUM(C71:C80)","v":0},{"$f":"SUM(D71:D80)","v":0},0,0,0,0,0,0,0,0,0,0,0,null,{"$f":"SUM(Q71:Q80)","v":0}]
[null,"Subtotal (Dollars)",{"$f":"C81*C$13","v":0},{"$f":"D81*D$13","v":0},0,0,0,0,0,0,0,0,0,0,0,{"$f":"SUM(C82:O82)","v":0}]
["Task 6.0     ","REPLACE FIELD WITH CATEGORY NAME OF YOUR CHOOSING HERE",null,null,null,null,null,null,null,null,null,null,null,null,null,null,{"$f":"IF(B83=\"REPLACE FIELD WITH CATEGORY NAME OF YOUR CHOOSING HERE\",0,\"\")","v":0}]
[6.1,null,null,null,null,null,null,null,null,null,null,null,null,null,null,null,{"$f":"SUM(C84:P84)","v":0}]
[6.2,null,null,null,null,null,null,null,null,null,null,null,null,null,null,null,0]
[6.3,null,null,null,null,null,null,null,null,null,null,null,null,null,null,null,0]
[6.4,null,null,null,null,null,null,null,null,null,null,null,null,null,null,null,0]
[6.5,null,null,null,null,null,null,null,null,null,null,null,null,null,null,null,0]
[6.6,null,null,null,null,null,null,null,null,null,null,null,null,null,null,null,0]
[6.7,null,null,null,null,null,null,null,null,null,null,null,null,null,null,null,0]
[6.8,null,null,null,null,null,null,null,null,null,null,null,null,null,null,null,0]
[6.9,null,null,null,null,null,null,null,null,null,null,null,null,null,null,null,0]
["6.10",null,null,null,null,null,null,null,null,null,null,null,null,null,null,null,0]
[null,"Subtotal (Hours)",{"$f":"SUM(C84:C93)","v":0},{"$f":"SUM(D84:D93)","v":0},0,0,0,0,0,0,0,0,0,0,0,null,{"$f":"SUM(Q84:Q93)","v":0}]
[null,"Subtotal (Dollars)",{"$f":"C94*C$13","v":0},{"$f":"D94*D$13","v":0},0,0,0,0,0,0,0,0,0,0,0,{"$f":"SUM(C95:O95)","v":0}]
["Task 7.0     ","REPLACE FIELD WITH CATEGORY NAME OF YOUR CHOOSING HERE",null,null,null,null,null,null,null,null,null,null,null,null,null,null,{"$f":"IF(B96=\"REPLACE FIELD WITH CATEGORY NAME OF YOUR CHOOSING HERE\",0,\"\")","v":0}]
[7.1,null,null,null,null,null,null,null,null,null,null,null,null,null,null,null,{"$f":"SUM(C97:P97)","v":0}]
[7.2,null,null,null,null,null,null,null,null,null,null,null,null,null,null,null,0]
[7.3,null,null,null,null,null,null,null,null,null,null,null,null,null,null,null,0]
[7.4,null,null,null,null,null,null,null,null,null,null,null,null,null,null,null,0]
[7.5,null,null,null,null,null,null,null,null,null,null,null,null,null,null,null,0]
[7.6,null,null,null,null,null,null,null,null,null,null,null,null,null,null,null,0]
[7.7,null,null,null,null,null,null,null,null,null,null,null,null,null,null,null,0]
[7.8,null,null,null,null,null,null,null,null,null,null,null,null,null,null,null,0]
[7.9,null,null,null,null,null,null,null,null,null,null,null,null,null,null,null,0]
["7.10",null,null,null,null,null,null,null,null,null,null,null,null,null,null,null,0]
[null,"Subtotal (Hours)",{"$f":"SUM(C97:C106)","v":0},{"$f":"SUM(D97:D106)","v":0},0,0,0,0,0,0,0,0,0,0,0,null,{"$f":"SUM(Q97:Q106)","v":0}]
[null,"Subtotal (Dollars)",{"$f":"C107*C$13","v":0},{"$f":"D107*D$13","v":0},0,0,0,0,0,0,0,0,0,0,0,{"$f":"SUM(C108:O108)","v":0}]
["Task 8.0     ","REPLACE FIELD WITH CATEGORY NAME OF YOUR CHOOSING HERE",null,null,null,null,null,null,null,null,null,null,null,null,null,null,{"$f":"IF(B109=\"REPLACE FIELD WITH CATEGORY NAME OF YOUR CHOOSING HERE\",0,\"\")","v":0}]
[8.1,null,null,null,null,null,null,null,null,null,null,null,null,null,null,null,{"$f":"SUM(C110:P110)","v":0}]
[8.1999999999999993,null,null,null,null,null,null,null,null,null,null,null,null,null,null,null,0]
[8.3000000000000007,null,null,null,null,null,null,null,null,null,null,null,null,null,null,null,0]
[8.4,null,null,null,null,null,null,null,null,null,null,null,null,null,null,null,0]
[8.5,null,null,null,null,null,null,null,null,null,null,null,null,null,null,null,0]
[8.6,null,null,null,null,null,null,null,null,null,null,null,null,null,null,null,0]
[8.6999999999999993,null,null,null,null,null,null,null,null,null,null,null,null,null,null,null,0]
[8.8000000000000007,null,null,null,null,null,null,null,null,null,null,null,null,null,null,null,0]
[8.9,null,null,null,null,null,null,null,null,null,null,null,null,null,null,null,0]
["8.10",null,null,null,null,null,null,null,null,null,null,null,null,null,null,null,0]
[null,"Subtotal (Hours)",{"$f":"SUM(C110:C119)","v":0},{"$f":"SUM(D110:D119)","v":0},0,0,0,0,0,0,0,0,0,0,0,null,{"$f":"SUM(Q110:Q119)","v":0}]
[null,"Subtotal (Dollars)",{"$f":"C120*C$13","v":0},{"$f":"D120*D$13","v":0},0,0,0,0,0,0,0,0,0,0,0,{"$f":"SUM(C121:O121)","v":0}]
[]
[null,"TOTAL HOURS",{"$f":"SUM(C25,C37,C55,C68,C81,C94,C107,C120)","v":0},{"$f":"SUM(D25,D37,D55,D68,D81,D94,D107,D120)","v":0},0,0,0,0,0,0,0,0,0,0,{"$f":"SUM(O25,O37,O55,O68,O81,O94,O107,O120)","v":0},null,{"$f":"SUM(Q25,Q37,Q55,Q68,Q81,Q94,Q107,Q120)","v":0}]
[null,"TOTAL WORKDAYS",{"$f":"C123/8","v":0},0,0,0,0,0,0,0,0,0,0,0,0,null,{"$f":"SUM(C124:P124)","v":0}]
[null,"TOTAL RAW LABOR",{"$f":"C13*C123","v":0},0,0,0,0,0,0,0,0,0,0,0,0,0,0]
[]
[null,"Contract Overhead Rate",{"$f":"ITS_SUB4_CONSULTANT_OVERHEAD","v":0},null,null,null,null,null,null,null,null,null,null,null,null,null,{"$f":"C127","v":0}]
[null,"Overhead Cost",null,null,null,null,null,null,null,null,null,null,null,null,null,null,{"$f":"Q125*Q127","v":0}]
[null,"Fee",{"$f":"ITS_SUB4_CONSULTANT_FEE","v":0.09},null,null,null,null,null,null,null,null,null,null,null,null,null,{"$f":"(Q125+Q128)*C129","v":0}]
[null,"FCCM",{"$f":"ITS_SUB4_CONSULTANT_COSTofCAPITAL","v":0},null,null,null,null,null,null,null,null,null,null,null,null,null,{"$f":"Q125*C130","v":0}]
[]
[null,"TOTAL RAW LABOR",null,null,null,null,null,null,null,null,null,null,null,null,null,null,{"$f":"Q125+Q128+Q129+Q130","v":0}]
[null,"DIRECT EXPENSES",null,null,null,null,null,null,null,null,null,null,null,null,null,null,{"$f":"ITS_SUB4_DIRECT_NONSALARY_TOTAL","v":0}]
[null,"CABLE ROUTING ESTIMATE",null,null,null,null,null,null,null,null,null,null,null,null,null,null,{"$f":"SUM(Q132:Q133)","v":0}]
[]
[]
[]
[]
[]
[null,null,"Direct Cost Computation"]
[null,null,null,"Qty.",null,"Unit Cost","Sub-Total"]
[null,null,"Mileage",null,"miles",{"$f":"SEDAN","v":0.7},{"$f":"D142*$F142","v":0}]
[null,null,"Lodging",null,"nights",{"$f":"LODGING_LUMP.SUM","v":95},0]
[null,null,"Breakfast",null,"meal",{"$f":"BREAKFAST","v":10.1},0]
[null,null,"Lunch",null,"meal",{"$f":"LUNCH","v":13.3},0]
[null,null,"Dinner",null,"meal",{"$f":"DINNER","v":23.1},0]
[null,null,"Full Size Plans",null,"sheets",{"$f":"BOND.REGULAR","v":0.42},0]
[null,null,"Half Size Plans",null,"sheets",{"$f":"LEDGERCOPIES","v":0.34},0]
[null,null,"Letter Size",null,"sheets",{"$f":"LETTERCOPIES","v":0.14000000000000001},0]
[null,null,"GPS Rental",null,"days",null,0]
[null,null,"OTDR Test",null,"each",null,0]
[null,null,"MISCELLANEOUS",null,"NAME",null,0]
[null,null,null,null,"NAME",null,0]
[null,null,null,null,"NAME",null,0]
[null,null,null,null,"NAME",null,0]
[null,null,null,null,"NAME",null,0]
[null,null,"Total Phase Cost",null,null,null,{"$f":"SUM(G142:G156)","v":0}]

{"sheet":"MunicipalSignalSystem-Sub1","index":164,"n_rows":1300,"n_cols":57,"rows_kept":1300,"cut":false,"hidden":true,"merged":[[589,0,589,2],[589,4,589,5],[596,0,596,15],[586,0,586,2],[586,4,586,5],[587,0,587,2],[587,4,587,5],[588,0,588,2],[588,4,588,5],[580,0,580,3],[581,0,581,3],[583,0,583,2],[584,0,584,2],[584,4,584,5],[585,0,585,2],[585,4,585,5],[542,0,542,3],[543,0,543,3],[575,0,575,3],[576,0,576,3],[577,0,577,3],[579,0,579,3],[474,0,474,3],[475,0,475,3],[507,0,507,3],[508,0,508,3],[509,0,509,3],[541,0,541,3],[406,0,406,3],[407,0,407,3],[439,0,439,3],[440,0,440,3],[441,0,441,3],[473,0,473,3],[357,0,357,3],[358,0,358,3],[371,0,371,3],[372,0,372,3],[373,0,373,3],[405,0,405,3],[313,0,313,3],[314,0,314,3],[342,0,342,3],[343,0,343,3],[344,0,344,3],[356,0,356,3],[220,0,220,3],[221,0,221,3],[249,0,249,3],[250,0,250,3],[251,0,251,3],[312,0,312,3],[188,0,188,3],[189,0,189,3],[202,0,202,3],[203,0,203,3],[204,0,204,3],[219,0,219,3],[159,0,159,3],[160,0,160,3],[174,0,174,3],[175,0,175,3],[176,0,176,3],[187,0,187,3],[115,0,115,3],[116,0,116,3],[137,0,137,3],[138,0,138,3],[139,0,139,3],[158,0,158,3],[28,0,28,3],[29,0,29,3],[52,0,52,3],[53,0,53,3],[54,0,54,3],[114,0,114,3],[12,44,12,45],[12,46,12,47],[12,48,12,49],[12,3,13,3],[12,4,12,5],[12,6,12,7],[27,0,27,3],[12,32,12,33],[12,34,12,35],[12,36,12,37],[12,38,12,39],[12,40,12,41],[12,42,12,43],[12,20,12,21],[12,22,12,23],[12,24,12,25],[12,26,12,27],[12,28,12,29],[12,8,12,9],[12,10,12,11],[12,12,12,13],[12,14,12,15],[12,16,12,17],[12,18,12,19],[12,0,13,0],[12,1,13,1],[12,2,13,2],[12,30,12,31],[11,16,11,17],[11,18,11,19],[11,20,11,21],[10,40,10,41],[10,42,10,43],[10,44,10,45],[10,46,10,47],[10,48,10,49],[10,28,10,29],[11,22,11,23],[11,24,11,25],[11,26,11,27],[11,28,11,29],[10,30,10,31],[11,30,11,31],[11,32,11,33],[11,54,12,54],[11,55,12,55],[11,34,11,35],[11,36,11,37],[11,38,11,39],[11,40,11,41],[11,42,11,43],[11,44,11,45],[12,50,12,51],[12,52,12,53],[11,46,11,47],[11,48,11,49],[11,50,11,51],[11,4,11,5],[11,6,11,7],[11,52,11,53],[10,38,10,39],[10,16,10,17],[10,50,10,51],[10,6,10,7],[10,8,10,9],[10,10,10,11],[10,12,10,13],[10,14,10,15],[10,32,10,33],[10,18,10,19],[10,20,10,21],[10,22,10,23],[10,24,10,25],[10,26,10,27],[11,8,11,9],[11,10,11,11],[11,12,11,13],[11,14,11,15],[10,34,10,35],[10,36,10,37],[10,52,10,53],[10,4,10,5],[0,0,0,31],[1,0,1,31],[4,0,4,9],[4,10,4,31],[5,0,5,31],[6,0,6,31],[7,0,7,31],[8,1,8,3],[9,1,9,3],[9,4,9,69]]}
["MUNICIPAL SIGNAL SYSTEM Design - SUBCONSULTANT 1"]
["MUNICIPAL SIGNAL SYSTEM "]
["SCOPING ESTIMATE PREPARED for"]
[]
[{"$f":"CONCATENATE(IF(TIP.NUMBER=\"\",\"TIP\",CONCATENATE(\"TIP:  \",TIP.NUMBER)),IF(TIP.NUMBER=\"\",\"\",\"   \"))","v":"TIP"},null,null,null,null,null,null,null,null,null,{"$f":"CONCATENATE(IF(WBS.NUMBER=\"\",\"\",\"   \"),IF(WBS.NUMBER=\"\",\"WBS\",CONCATENATE(\"WBS:  \",WBS.NUMBER)))","v":"WBS"}]
[{"$f":"IF(COUNTY=\"\",\"COUNTY\",CONCATENATE(\"COUNTY:  \",COUNTY))","v":"COUNTY"}]
[{"$f":"IF(PROJECT.DESCRIPTION=\"\",\"PROJECT DESCRIPTION\",CONCATENATE(\"Project Description:  \",PROJECT.DESCRIPTION))","v":"PROJECT DESCRIPTION"}]
[{"$f":"IF(MUNICIPAL_SIGNAL_SYSTEM_SUB1_CONSULTANT_NAME=\"CONSULTANT NAME\",\"CONSULTANT NAME\", CONCATENATE(\"FIRM:  \",MUNICIPAL_SIGNAL_SYSTEM_SUB1_CONSULTANT_NAME))","v":"CONSULTANT NAME"}]
["Prepared By:",{"$f":"IF(SCOPE.MANDAY.ESTIMATE.PREPARED.BY=\"\",\"\",SCOPE.MANDAY.ESTIMATE.PREPARED.BY)","v":""},null,null,null,null,null,null,null,null,null,null,null,null,null,null,null,null,null,null,null,null,null,null,null,null,null,null,null,null,null,null," "," ",null,null,null,null," "]
["Date:",{"$f":"IF(SCOPE.MANDAY.ESTIMATE.PREPARED.BY.DATE=\"\",\"\",SCOPE.MANDAY.ESTIMATE.PREPARED.BY.DATE)","v":""},null,null,"ESTIMATED WORK HOURS"]
[null,null,null,"POSITION",{"$f":"IF('PEF CLASSIFICATION SHEET'!C1393=\"\",\"\",'PEF CLASSIFICATION SHEET'!C1393)","v":""},null,{"$f":"IF('PEF CLASSIFICATION SHEET'!C1394=\"\",\"\",'PEF CLASSIFICATION SHEET'!C1394)","v":""},null,{"$f":"IF('PEF CLASSIFICATION SHEET'!C1395=\"\",\"\",'PEF CLASSIFICATION SHEET'!C1395)","v":""},null,{"$f":"IF('PEF CLASSIFICATION SHEET'!C1396=\"\",\"\",'PEF CLASSIFICATION SHEET'!C1396)","v":""},null,{"$f":"IF('PEF CLASSIFICATION SHEET'!C1397=\"\",\"\",'PEF CLASSIFICATION SHEET'!C1397)","v":""},null,{"$f":"IF('PEF CLASSIFICATION SHEET'!C1398=\"\",\"\",'PEF CLASSIFICATION SHEET'!C1398)","v":""},null,{"$f":"IF('PEF CLASSIFICATION SHEET'!C1399=\"\",\"\",'PEF CLASSIFICATION SHEET'!C1399)","v":""},null,{"$f":"IF('PEF CLASSIFICATION SHEET'!C1400=\"\",\"\",'PEF CLASSIFICATION SHEET'!C1400)","v":""},null,{"$f":"IF('PEF CLASSIFICATION SHEET'!C1401=\"\",\"\",'PEF CLASSIFICATION SHEET'!C1401)","v":""},null,{"$f":"IF('PEF CLASSIFICATION SHEET'!C1402=\"\",\"\",'PEF CLASSIFICATION SHEET'!C1402)","v":""},null,{"$f":"IF('PEF CLASSIFICATION SHEET'!C1403=\"\",\"\",'PEF CLASSIFICATION SHEET'!C1403)","v":""},null,{"$f":"IF('PEF CLASSIFICATION SHEET'!C1404=\"\",\"\",'PEF CLASSIFICATION SHEET'!C1404)","v":""},null,{"$f":"IF('PEF CLASSIFICATION SHEET'!$C1405=\"\",\"\",'PEF CLASSIFICATION SHEET'!$C1405)","v":""},null,{"$f":"IF('PEF CLASSIFICATION SHEET'!$C1406=\"\",\"\",'PEF CLASSIFICATION SHEET'!$C1406)","v":""},null,{"$f":"IF('PEF CLASSIFICATION SHEET'!$C1407=\"\",\"\",'PEF CLASSIFICATION SHEET'!$C1407)","v":""},null,{"$f":"IF('PEF CLASSIFICATION SHEET'!$C1408=\"\",\"\",'PEF CLASSIFICATION SHEET'!$C1408)","v":""},null,{"$f":"IF('PEF CLASSIFICATION SHEET'!$C1409=\"\",\"\",'PEF CLASSIFICATION SHEET'!$C1409)","v":""},null,{"$f":"IF('PEF CLASSIFICATION SHEET'!$C1410=\"\",\"\",'PEF CLASSIFICATION SHEET'!$C1410)","v":""},null,{"$f":"IF('PEF CLASSIFICATION SHEET'!$C1411=\"\",\"\",'PEF CLASSIFICATION SHEET'!$C1411)","v":""},null,{"$f":"IF('PEF CLASSIFICATION SHEET'!$C1412=\"\",\"\",'PEF CLASSIFICATION SHEET'!$C1412)","v":""},null,{"$f":"IF('PEF CLASSIFICATION SHEET'!$C1413=\"\",\"\",'PEF CLASSIFICATION SHEET'!$C1413)","v":""},null,{"$f":"IF('PEF CLASSIFICATION SHEET'!$C1414=\"\",\"\",'PEF CLASSIFICATION SHEET'!$C1414)","v":""},null,{"$f":"IF('PEF CLASSIFICATION SHEET'!$C1415=\"\",\"\",'PEF CLASSIFICATION SHEET'!$C1415)","v":""},null,{"$f":"IF('PEF CLASSIFICATION SHEET'!$C1416=\"\",\"\",'PEF CLASSIFICATION SHEET'!$C1416)","v":""},null,{"$f":"IF('PEF CLASSIFICATION SHEET'!$C1417=\"\",\"\",'PEF CLASSIFICATION SHEET'!$C1417)","v":""}]
[null,null,null,"EMPLOYEE NAME & RATE",{"$f":"LEFT('PEF CLASSIFICATION SHEET'!D1393,4)","v":""},null,{"$f":"LEFT('PEF CLASSIFICATION SHEET'!D1394,4)","v":""},null,{"$f":"LEFT('PEF CLASSIFICATION SHEET'!D1395,4)","v":""},null,{"$f":"LEFT('PEF CLASSIFICATION SHEET'!D1396,4)","v":""},null,{"$f":"LEFT('PEF CLASSIFICATION SHEET'!D1397,4)","v":""},null,{"$f":"LEFT('PEF CLASSIFICATION SHEET'!D1398,4)","v":""},null,{"$f":"LEFT('PEF CLASSIFICATION SHEET'!D1399,4)","v":""},null,{"$f":"LEFT('PEF CLASSIFICATION SHEET'!D1400,4)","v":""},null,{"$f":"LEFT('PEF CLASSIFICATION SHEET'!D1401,4)","v":""},null,{"$f":"LEFT('PEF CLASSIFICATION SHEET'!D1402,4)","v":""},null,{"$f":"LEFT('PEF CLASSIFICATION SHEET'!D1403,4)","v":""},null,{"$f":"LEFT('PEF CLASSIFICATION SHEET'!D1404,4)","v":""},null,{"$f":"LEFT('PEF CLASSIFICATION SHEET'!$D1405,4)","v":""},null,{"$f":"LEFT('PEF CLASSIFICATION SHEET'!$D1406,4)","v":""},null,{"$f":"LEFT('PEF CLASSIFICATION SHEET'!$D1407,4)","v":""},null,{"$f":"LEFT('PEF CLASSIFICATION SHEET'!$D1408,4)","v":""},null,{"$f":"LEFT('PEF CLASSIFICATION SHEET'!$D1409,4)","v":""},null,{"$f":"LEFT('PEF CLASSIFICATION SHEET'!$D1410,4)","v":""},null,{"$f":"LEFT('PEF CLASSIFICATION SHEET'!$D1411,4)","v":""},null,{"$f":"LEFT('PEF CLASSIFICATION SHEET'!$D1412,4)","v":""},null,{"$f":"LEFT('PEF CLASSIFICATION SHEET'!$D1413,4)","v":""},null,{"$f":"LEFT('PEF CLASSIFICATION SHEET'!$D1414,4)","v":""},null,{"$f":"LEFT('PEF CLASSIFICATION SHEET'!$D1415,4)","v":""},null,{"$f":"LEFT('PEF CLASSIFICATION SHEET'!$D1416,4)","v":""},null,{"$f":"LEFT('PEF CLASSIFICATION SHEET'!$D1417,4)","v":""},null,"SUBTOTAL OF HOURS BY TASK","NOTES"]
["TASK NUMBER","PROJECT TASK","QTY","UNIT",{"$f":"'PEF CLASSIFICATION SHEET'!E1393","v":0},null,{"$f":"'PEF CLASSIFICATION SHEET'!E1394","v":0},null,{"$f":"'PEF CLASSIFICATION SHEET'!E1395","v":0},null,{"$f":"'PEF CLASSIFICATION SHEET'!E1396","v":0},null,{"$f":"'PEF CLASSIFICATION SHEET'!E1397","v":0},null,{"$f":"'PEF CLASSIFICATION SHEET'!E1398","v":0},null,{"$f":"'PEF CLASSIFICATION SHEET'!E1399","v":0},null,{"$f":"'PEF CLASSIFICATION SHEET'!E1400","v":0},null,{"$f":"'PEF CLASSIFICATION SHEET'!E1401","v":0},null,{"$f":"'PEF CLASSIFICATION SHEET'!E1402","v":0},null,{"$f":"'PEF CLASSIFICATION SHEET'!E1403","v":0},null,{"$f":"'PEF CLASSIFICATION SHEET'!E1404","v":0},null,{"$f":"'PEF CLASSIFICATION SHEET'!$E1405","v":0},null,{"$f":"'PEF CLASSIFICATION SHEET'!$E1406","v":0},null,{"$f":"'PEF CLASSIFICATION SHEET'!$E1407","v":0},null,{"$f":"'PEF CLASSIFICATION SHEET'!$E1408","v":0},null,{"$f":"'PEF CLASSIFICATION SHEET'!$E1409","v":0},null,{"$f":"'PEF CLASSIFICATION SHEET'!$E1410","v":0},null,{"$f":"'PEF CLASSIFICATION SHEET'!$E1411","v":0},null,{"$f":"'PEF CLASSIFICATION SHEET'!$E1412","v":0},null,{"$f":"'PEF CLASSIFICATION SHEET'!$E1413","v":0},null,{"$f":"'PEF CLASSIFICATION SHEET'!$E1414","v":0},null,{"$f":"'PEF CLASSIFICATION SHEET'!$E1415","v":0},null,{"$f":"'PEF CLASSIFICATION SHEET'!$E1416","v":0},null,{"$f":"'PEF CLASSIFICATION SHEET'!$E1417","v":0}]
[null,null,null,null,"Hrs Per Unit","Total Hrs","Hrs Per Unit","Total Hrs","Hrs Per Unit","Total Hrs","Hrs Per Unit","Total Hrs","Hrs Per Unit","Total Hrs","Hrs Per Unit","Total Hrs","Hrs Per Unit","Total Hrs","Hrs Per Unit","Total Hrs","Hrs Per Unit","Total Hrs","Hrs Per Unit","Total Hrs","Hrs Per Unit","Total Hrs","Hrs Per Unit","Total Hrs","Hrs Per Unit","Total Hrs","Hrs Per Unit","Total Hrs","Hrs Per Unit","Total Hrs","Hrs Per Unit","Total Hrs","Hrs Per Unit","Total Hrs","Hrs Per Unit","Total Hrs","Hrs Per Unit","Total Hrs","Hrs Per Unit","Total Hrs","Hrs Per Unit","Total Hrs","Hrs Per Unit","Total Hrs","Hrs Per Unit","Total Hrs","Hrs Per Unit","Total Hrs","Hrs Per Unit","Total Hrs"]
["Task 1.0","PROJECT MANAGEMENT",null,null," ",null," ",null,null,null,null,null,null,null,null,null,null,null,null,null,null,null,null,null,null,null,null,null,null,null,null,null,null,null,null,null,null,null,null,null,null,null,null,null,null,null,null,null,null,null,null,null,null,null,null,null," "]
[1.1000000000000001,"Project Work Plan",null,null,{"$f":"IF($C$16=\"\",\"\",F16/$C$16)","v":""},null,{"$f":"IF($C$16=\"\",\"\",H16/$C$16)","v":""},null,{"$f":"IF($C$16=\"\",\"\",J16/$C$16)","v":""},null,{"$f":"IF($C$16=\"\",\"\",L16/$C$16)","v":""},null,{"$f":"IF($C$16=\"\",\"\",N16/$C$16)","v":""},null,{"$f":"IF($C$16=\"\",\"\",P16/$C$16)","v":""},null,{"$f":"IF($C$16=\"\",\"\",R16/$C$16)","v":""},null,{"$f":"IF($C$16=\"\",\"\",T16/$C$16)","v":""},null,{"$f":"IF($C$16=\"\",\"\",V16/$C$16)","v":""},null,{"$f":"IF($C$16=\"\",\"\",X16/$C$16)","v":""},null,{"$f":"IF($C$16=\"\",\"\",Z16/$C$16)","v":""},null,{"$f":"IF($C$16=\"\",\"\",AB16/$C$16)","v":""},null,{"$f":"IF($C$16=\"\",\"\",AD16/$C$16)","v":""},null,{"$f":"IF($C$16=\"\",\"\",AF16/$C$16)","v":""},null,{"$f":"IF($C$16=\"\",\"\",AH16/$C$16)","v":""},null,{"$f":"IF($C$16=\"\",\"\",AJ16/$C$16)","v":""},null,{"$f":"IF($C$16=\"\",\"\",AL16/$C$16)","v":""},null,{"$f":"IF($C$16=\"\",\"\",AN16/$C$16)","v":""},null,{"$f":"IF($C$16=\"\",\"\",AP16/$C$16)","v":""},null,{"$f":"IF($C$16=\"\",\"\",AR16/$C$16)","v":""},null,{"$f":"IF($C$16=\"\",\"\",AT16/$C$16)","v":""},null,{"$f":"IF($C$16=\"\",\"\",AV16/$C$16)","v":""},null,{"$f":"IF($C$16=\"\",\"\",AX16/$C$16)","v":""},null,{"$f":"IF($C$16=\"\",\"\",AZ16/$C$16)","v":""},null,{"$f":"IF($C$16=\"\",\"\",BB16/$C$16)","v":""},null,{"$f":"SUM(BB16,AZ16,AX16,AV16,AT16,AR16,AP16,AN16,AL16,AJ16,AH16,AF16,AD16,AB16,Z16,X16,V16,T16,R16,P16,N16,L16,J16,H16,F16)","v":0}]
[1.2,"Project Meetings",null,null,{"$f":"IF($C$17=\"\",\"\",F17/$C$17)","v":""},null,{"$f":"IF($C$17=\"\",\"\",H17/$C$17)","v":""},null,{"$f":"IF($C$17=\"\",\"\",J17/$C$17)","v":""},null,{"$f":"IF($C$17=\"\",\"\",L17/$C$17)","v":""},null,{"$f":"IF($C$17=\"\",\"\",N17/$C$17)","v":""},null,{"$f":"IF($C$17=\"\",\"\",P17/$C$17)","v":""},null,{"$f":"IF($C$17=\"\",\"\",R17/$C$17)","v":""},null,{"$f":"IF($C$17=\"\",\"\",T17/$C$17)","v":""},null,{"$f":"IF($C$17=\"\",\"\",V17/$C$17)","v":""},null,{"$f":"IF($C$17=\"\",\"\",X17/$C$17)","v":""},null,{"$f":"IF($C$17=\"\",\"\",Z17/$C$17)","v":""},null,{"$f":"IF($C$17=\"\",\"\",AB17/$C$17)","v":""},null,{"$f":"IF($C$17=\"\",\"\",AD17/$C$17)","v":""},null,{"$f":"IF($C$17=\"\",\"\",AF17/$C$17)","v":""},null,{"$f":"IF($C$17=\"\",\"\",AH17/$C$17)","v":""},null,{"$f":"IF($C$17=\"\",\"\",AJ17/$C$17)","v":""},null,{"$f":"IF($C$17=\"\",\"\",AL17/$C$17)","v":""},null,{"$f":"IF($C$17=\"\",\"\",AN17/$C$17)","v":""},null,{"$f":"IF($C$17=\"\",\"\",AP17/$C$17)","v":""},null,{"$f":"IF($C$17=\"\",\"\",AR17/$C$17)","v":""},null,{"$f":"IF($C$17=\"\",\"\",AT17/$C$17)","v":""},null,{"$f":"IF($C$17=\"\",\"\",AV17/$C$17)","v":""},null,{"$f":"IF($C$17=\"\",\"\",AX17/$C$17)","v":""},null,{"$f":"IF($C$17=\"\",\"\",AZ17/$C$17)","v":""},null,{"$f":"IF($C$17=\"\",\"\",BB17/$C$17)","v":""},null,{"$f":"SUM(BB17,AZ17,AX17,AV17,AT17,AR17,AP17,AN17,AL17,AJ17,AH17,AF17,AD17,AB17,Z17,X17,V17,T17,R17,P17,N17,L17,J17,H17,F17)","v":0}]
[1.3,"Project Status Reports & Invoices",null,null,{"$f":"IF($C$18=\"\",\"\",F18/$C$18)","v":""},null,{"$f":"IF($C$18=\"\",\"\",H18/$C$18)","v":""},null,{"$f":"IF($C$18=\"\",\"\",J18/$C$18)","v":""},null,{"$f":"IF($C$18=\"\",\"\",L18/$C$18)","v":""},null,{"$f":"IF($C$18=\"\",\"\",N18/$C$18)","v":""},null,{"$f":"IF($C$18=\"\",\"\",P18/$C$18)","v":""},null,{"$f":"IF($C$18=\"\",\"\",R18/$C$18)","v":""},null,{"$f":"IF($C$18=\"\",\"\",T18/$C$18)","v":""},null,{"$f":"IF($C$18=\"\",\"\",V18/$C$18)","v":""},null,{"$f":"IF($C$18=\"\",\"\",X18/$C$18)","v":""},null,{"$f":"IF($C$18=\"\",\"\",Z18/$C$18)","v":""},null,{"$f":"IF($C$18=\"\",\"\",AB18/$C$18)","v":""},null,{"$f":"IF($C$18=\"\",\"\",AD18/$C$18)","v":""},null,{"$f":"IF($C$18=\"\",\"\",AF18/$C$18)","v":""},null,{"$f":"IF($C$18=\"\",\"\",AH18/$C$18)","v":""},null,{"$f":"IF($C$18=\"\",\"\",AJ18/$C$18)","v":""},null,{"$f":"IF($C$18=\"\",\"\",AL18/$C$18)","v":""},null,{"$f":"IF($C$18=\"\",\"\",AN18/$C$18)","v":""},null,{"$f":"IF($C$18=\"\",\"\",AP18/$C$18)","v":""},null,{"$f":"IF($C$18=\"\",\"\",AR18/$C$18)","v":""},null,{"$f":"IF($C$18=\"\",\"\",AT18/$C$18)","v":""},null,{"$f":"IF($C$18=\"\",\"\",AV18/$C$18)","v":""},null,{"$f":"IF($C$18=\"\",\"\",AX18/$C$18)","v":""},null,{"$f":"IF($C$18=\"\",\"\",AZ18/$C$18)","v":""},null,{"$f":"IF($C$18=\"\",\"\",BB18/$C$18)","v":""},null,0]
[1.4,"Project Records and Files/Project Web Site",null,null,{"$f":"IF($C$19=\"\",\"\",F19/$C$19)","v":""},null,{"$f":"IF($C$19=\"\",\"\",H19/$C$19)","v":""},null,{"$f":"IF($C$19=\"\",\"\",J19/$C$19)","v":""},null,{"$f":"IF($C$19=\"\",\"\",L19/$C$19)","v":""},null,{"$f":"IF($C$19=\"\",\"\",N19/$C$19)","v":""},null,{"$f":"IF($C$19=\"\",\"\",P19/$C$19)","v":""},null,{"$f":"IF($C$19=\"\",\"\",R19/$C$19)","v":""},null,{"$f":"IF($C$19=\"\",\"\",T19/$C$19)","v":""},null,{"$f":"IF($C$19=\"\",\"\",V19/$C$19)","v":""},null,{"$f":"IF($C$19=\"\",\"\",X19/$C$19)","v":""},null,{"$f":"IF($C$19=\"\",\"\",Z19/$C$19)","v":""},null,{"$f":"IF($C$19=\"\",\"\",AB19/$C$19)","v":""},null,{"$f":"IF($C$19=\"\",\"\",AD19/$C$19)","v":""},null,{"$f":"IF($C$19=\"\",\"\",AF19/$C$19)","v":""},null,{"$f":"IF($C$19=\"\",\"\",AH19/$C$19)","v":""},null,{"$f":"IF($C$19=\"\",\"\",AJ19/$C$19)","v":""},null,{"$f":"IF($C$19=\"\",\"\",AL19/$C$19)","v":""},null,{"$f":"IF($C$19=\"\",\"\",AN19/$C$19)","v":""},null,{"$f":"IF($C$19=\"\",\"\",AP19/$C$19)","v":""},null,{"$f":"IF($C$19=\"\",\"\",AR19/$C$19)","v":""},null,{"$f":"IF($C$19=\"\",\"\",AT19/$C$19)","v":""},null,{"$f":"IF($C$19=\"\",\"\",AV19/$C$19)","v":""},null,{"$f":"IF($C$19=\"\",\"\",AX19/$C$19)","v":""},null,{"$f":"IF($C$19=\"\",\"\",AZ19/$C$19)","v":""},null,{"$f":"IF($C$19=\"\",\"\",BB19/$C$19)","v":""},null,0]
[1.5,"Subconsultant Management and Coordination",null,null,{"$f":"IF($C$20=\"\",\"\",F20/$C$20)","v":""},null,{"$f":"IF($C$20=\"\",\"\",H20/$C$20)","v":""},null,{"$f":"IF($C$20=\"\",\"\",J20/$C$20)","v":""},null,{"$f":"IF($C$20=\"\",\"\",L20/$C$20)","v":""},null,{"$f":"IF($C$20=\"\",\"\",N20/$C$20)","v":""},null,{"$f":"IF($C$20=\"\",\"\",P20/$C$20)","v":""},null,{"$f":"IF($C$20=\"\",\"\",R20/$C$20)","v":""},null,{"$f":"IF($C$20=\"\",\"\",T20/$C$20)","v":""},null,{"$f":"IF($C$20=\"\",\"\",V20/$C$20)","v":""},null,{"$f":"IF($C$20=\"\",\"\",X20/$C$20)","v":""},null,{"$f":"IF($C$20=\"\",\"\",Z20/$C$20)","v":""},null,{"$f":"IF($C$20=\"\",\"\",AB20/$C$20)","v":""},null,{"$f":"IF($C$20=\"\",\"\",AD20/$C$20)","v":""},null,{"$f":"IF($C$20=\"\",\"\",AF20/$C$20)","v":""},null,{"$f":"IF($C$20=\"\",\"\",AH20/$C$20)","v":""},null,{"$f":"IF($C$20=\"\",\"\",AJ20/$C$20)","v":""},null,{"$f":"IF($C$20=\"\",\"\",AL20/$C$20)","v":""},null,{"$f":"IF($C$20=\"\",\"\",AN20/$C$20)","v":""},null,{"$f":"IF($C$20=\"\",\"\",AP20/$C$20)","v":""},null,{"$f":"IF($C$20=\"\",\"\",AR20/$C$20)","v":""},null,{"$f":"IF($C$20=\"\",\"\",AT20/$C$20)","v":""},null,{"$f":"IF($C$20=\"\",\"\",AV20/$C$20)","v":""},null,{"$f":"IF($C$20=\"\",\"\",AX20/$C$20)","v":""},null,{"$f":"IF($C$20=\"\",\"\",AZ20/$C$20)","v":""},null,{"$f":"IF($C$20=\"\",\"\",BB20/$C$20)","v":""},null,0]
[null,null,null,null,{"$f":"IF($C$21=\"\",\"\",F21/$C$21)","v":""},null,{"$f":"IF($C$21=\"\",\"\",H21/$C$21)","v":""},null,{"$f":"IF($C$21=\"\",\"\",J21/$C$21)","v":""},null,{"$f":"IF($C$21=\"\",\"\",L21/$C$21)","v":""},null,{"$f":"IF($C$21=\"\",\"\",N21/$C$21)","v":""},null,{"$f":"IF($C$21=\"\",\"\",P21/$C$21)","v":""},null,{"$f":"IF($C$21=\"\",\"\",R21/$C$21)","v":""},null,{"$f":"IF($C$21=\"\",\"\",T21/$C$21)","v":""},null,{"$f":"IF($C$21=\"\",\"\",V21/$C$21)","v":""},null,{"$f":"IF($C$21=\"\",\"\",X21/$C$21)","v":""},null,{"$f":"IF($C$21=\"\",\"\",Z21/$C$21)","v":""},null,{"$f":"IF($C$21=\"\",\"\",AB21/$C$21)","v":""},null,{"$f":"IF($C$21=\"\",\"\",AD21/$C$21)","v":""},null,{"$f":"IF($C$21=\"\",\"\",AF21/$C$21)","v":""},null,{"$f":"IF($C$21=\"\",\"\",AH21/$C$21)","v":""},null,{"$f":"IF($C$21=\"\",\"\",AJ21/$C$21)","v":""},null,{"$f":"IF($C$21=\"\",\"\",AL21/$C$21)","v":""},null,{"$f":"IF($C$21=\"\",\"\",AN21/$C$21)","v":""},null,{"$f":"IF($C$21=\"\",\"\",AP21/$C$21)","v":""},null,{"$f":"IF($C$21=\"\",\"\",AR21/$C$21)","v":""},null,{"$f":"IF($C$21=\"\",\"\",AT21/$C$21)","v":""},null,{"$f":"IF($C$21=\"\",\"\",AV21/$C$21)","v":""},null,{"$f":"IF($C$21=\"\",\"\",AX21/$C$21)","v":""},null,{"$f":"IF($C$21=\"\",\"\",AZ21/$C$21)","v":""},null,{"$f":"IF($C$21=\"\",\"\",BB21/$C$21)","v":""},null,0]
[null,null,null,null,{"$f":"IF($C$22=\"\",\"\",F22/$C$22)","v":""},null,{"$f":"IF($C$22=\"\",\"\",H22/$C$22)","v":""},null,{"$f":"IF($C$22=\"\",\"\",J22/$C$22)","v":""},null,{"$f":"IF($C$22=\"\",\"\",L22/$C$22)","v":""},null,{"$f":"IF($C$22=\"\",\"\",N22/$C$22)","v":""},null,{"$f":"IF($C$22=\"\",\"\",P22/$C$22)","v":""},null,{"$f":"IF($C$22=\"\",\"\",R22/$C$22)","v":""},null,{"$f":"IF($C$22=\"\",\"\",T22/$C$22)","v":""},null,{"$f":"IF($C$22=\"\",\"\",V22/$C$22)","v":""},null,{"$f":"IF($C$22=\"\",\"\",X22/$C$22)","v":""},null,{"$f":"IF($C$22=\"\",\"\",Z22/$C$22)","v":""},null,{"$f":"IF($C$22=\"\",\"\",AB22/$C$22)","v":""},null,{"$f":"IF($C$22=\"\",\"\",AD22/$C$22)","v":""},null,{"$f":"IF($C$22=\"\",\"\",AF22/$C$22)","v":""},null,{"$f":"IF($C$22=\"\",\"\",AH22/$C$22)","v":""},null,{"$f":"IF($C$22=\"\",\"\",AJ22/$C$22)","v":""},null,{"$f":"IF($C$22=\"\",\"\",AL22/$C$22)","v":""},null,{"$f":"IF($C$22=\"\",\"\",AN22/$C$22)","v":""},null,{"$f":"IF($C$22=\"\",\"\",AP22/$C$22)","v":""},null,{"$f":"IF($C$22=\"\",\"\",AR22/$C$22)","v":""},null,{"$f":"IF($C$22=\"\",\"\",AT22/$C$22)","v":""},null,{"$f":"IF($C$22=\"\",\"\",AV22/$C$22)","v":""},null,{"$f":"IF($C$22=\"\",\"\",AX22/$C$22)","v":""},null,{"$f":"IF($C$22=\"\",\"\",AZ22/$C$22)","v":""},null,{"$f":"IF($C$22=\"\",\"\",BB22/$C$22)","v":""},null,0]
[null,null,null,null,{"$f":"IF($C$23=\"\",\"\",F23/$C$23)","v":""},null,{"$f":"IF($C$23=\"\",\"\",H23/$C$23)","v":""},null,{"$f":"IF($C$23=\"\",\"\",J23/$C$23)","v":""},null,{"$f":"IF($C$23=\"\",\"\",L23/$C$23)","v":""},null,{"$f":"IF($C$23=\"\",\"\",N23/$C$23)","v":""},null,{"$f":"IF($C$23=\"\",\"\",P23/$C$23)","v":""},null,{"$f":"IF($C$23=\"\",\"\",R23/$C$23)","v":""},null,{"$f":"IF($C$23=\"\",\"\",T23/$C$23)","v":""},null,{"$f":"IF($C$23=\"\",\"\",V23/$C$23)","v":""},null,{"$f":"IF($C$23=\"\",\"\",X23/$C$23)","v":""},null,{"$f":"IF($C$23=\"\",\"\",Z23/$C$23)","v":""},null,{"$f":"IF($C$23=\"\",\"\",AB23/$C$23)","v":""},null,{"$f":"IF($C$23=\"\",\"\",AD23/$C$23)","v":""},null,{"$f":"IF($C$23=\"\",\"\",AF23/$C$23)","v":""},null,{"$f":"IF($C$23=\"\",\"\",AH23/$C$23)","v":""},null,{"$f":"IF($C$23=\"\",\"\",AJ23/$C$23)","v":""},null,{"$f":"IF($C$23=\"\",\"\",AL23/$C$23)","v":""},null,{"$f":"IF($C$23=\"\",\"\",AN23/$C$23)","v":""},null,{"$f":"IF($C$23=\"\",\"\",AP23/$C$23)","v":""},null,{"$f":"IF($C$23=\"\",\"\",AR23/$C$23)","v":""},null,{"$f":"IF($C$23=\"\",\"\",AT23/$C$23)","v":""},null,{"$f":"IF($C$23=\"\",\"\",AV23/$C$23)","v":""},null,{"$f":"IF($C$23=\"\",\"\",AX23/$C$23)","v":""},null,{"$f":"IF($C$23=\"\",\"\",AZ23/$C$23)","v":""},null,{"$f":"IF($C$23=\"\",\"\",BB23/$C$23)","v":""},null,0]
[null,null,null,null,{"$f":"IF($C$24=\"\",\"\",F24/$C$24)","v":""},null,{"$f":"IF($C$24=\"\",\"\",H24/$C$24)","v":""},null,{"$f":"IF($C$24=\"\",\"\",J24/$C$24)","v":""},null,{"$f":"IF($C$24=\"\",\"\",L24/$C$24)","v":""},null,{"$f":"IF($C$24=\"\",\"\",N24/$C$24)","v":""},null,{"$f":"IF($C$24=\"\",\"\",P24/$C$24)","v":""},null,{"$f":"IF($C$24=\"\",\"\",R24/$C$24)","v":""},null,{"$f":"IF($C$24=\"\",\"\",T24/$C$24)","v":""},null,{"$f":"IF($C$24=\"\",\"\",V24/$C$24)","v":""},null,{"$f":"IF($C$24=\"\",\"\",X24/$C$24)","v":""},null,{"$f":"IF($C$24=\"\",\"\",Z24/$C$24)","v":""},null,{"$f":"IF($C$24=\"\",\"\",AB24/$C$24)","v":""},null,{"$f":"IF($C$24=\"\",\"\",AD24/$C$24)","v":""},null,{"$f":"IF($C$24=\"\",\"\",AF24/$C$24)","v":""},null,{"$f":"IF($C$24=\"\",\"\",AH24/$C$24)","v":""},null,{"$f":"IF($C$24=\"\",\"\",AJ24/$C$24)","v":""},null,{"$f":"IF($C$24=\"\",\"\",AL24/$C$24)","v":""},null,{"$f":"IF($C$24=\"\",\"\",AN24/$C$24)","v":""},null,{"$f":"IF($C$24=\"\",\"\",AP24/$C$24)","v":""},null,{"$f":"IF($C$24=\"\",\"\",AR24/$C$24)","v":""},null,{"$f":"IF($C$24=\"\",\"\",AT24/$C$24)","v":""},null,{"$f":"IF($C$24=\"\",\"\",AV24/$C$24)","v":""},null,{"$f":"IF($C$24=\"\",\"\",AX24/$C$24)","v":""},null,{"$f":"IF($C$24=\"\",\"\",AZ24/$C$24)","v":""},null,{"$f":"IF($C$24=\"\",\"\",BB24/$C$24)","v":""},null,0]
[null,null,null,null,{"$f":"IF($C$25=\"\",\"\",F25/$C$25)","v":""},null,{"$f":"IF($C$25=\"\",\"\",H25/$C$25)","v":""},null,{"$f":"IF($C$25=\"\",\"\",J25/$C$25)","v":""},null,{"$f":"IF($C$25=\"\",\"\",L25/$C$25)","v":""},null,{"$f":"IF($C$25=\"\",\"\",N25/$C$25)","v":""},null,{"$f":"IF($C$25=\"\",\"\",P25/$C$25)","v":""},null,{"$f":"IF($C$25=\"\",\"\",R25/$C$25)","v":""},null,{"$f":"IF($C$25=\"\",\"\",T25/$C$25)","v":""},null,{"$f":"IF($C$25=\"\",\"\",V25/$C$25)","v":""},null,{"$f":"IF($C$25=\"\",\"\",X25/$C$25)","v":""},null,{"$f":"IF($C$25=\"\",\"\",Z25/$C$25)","v":""},null,{"$f":"IF($C$25=\"\",\"\",AB25/$C$25)","v":""},null,{"$f":"IF($C$25=\"\",\"\",AD25/$C$25)","v":""},null,{"$f":"IF($C$25=\"\",\"\",AF25/$C$25)","v":""},null,{"$f":"IF($C$25=\"\",\"\",AH25/$C$25)","v":""},null,{"$f":"IF($C$25=\"\",\"\",AJ25/$C$25)","v":""},null,{"$f":"IF($C$25=\"\",\"\",AL25/$C$25)","v":""},null,{"$f":"IF($C$25=\"\",\"\",AN25/$C$25)","v":""},null,{"$f":"IF($C$25=\"\",\"\",AP25/$C$25)","v":""},null,{"$f":"IF($C$25=\"\",\"\",AR25/$C$25)","v":""},null,{"$f":"IF($C$25=\"\",\"\",AT25/$C$25)","v":""},null,{"$f":"IF($C$25=\"\",\"\",AV25/$C$25)","v":""},null,{"$f":"IF($C$25=\"\",\"\",AX25/$C$25)","v":""},null,{"$f":"IF($C$25=\"\",\"\",AZ25/$C$25)","v":""},null,{"$f":"IF($C$25=\"\",\"\",BB25/$C$25)","v":""},null,0]
[null,null,null,null,{"$f":"IF($C$26=\"\",\"\",F26/$C$26)","v":""},null,{"$f":"IF($C$26=\"\",\"\",H26/$C$26)","v":""},null,{"$f":"IF($C$26=\"\",\"\",J26/$C$26)","v":""},null,{"$f":"IF($C$26=\"\",\"\",L26/$C$26)","v":""},null,{"$f":"IF($C$26=\"\",\"\",N26/$C$26)","v":""},null,{"$f":"IF($C$26=\"\",\"\",P26/$C$26)","v":""},null,{"$f":"IF($C$26=\"\",\"\",R26/$C$26)","v":""},null,{"$f":"IF($C$26=\"\",\"\",T26/$C$26)","v":""},null,{"$f":"IF($C$26=\"\",\"\",V26/$C$26)","v":""},null,{"$f":"IF($C$26=\"\",\"\",X26/$C$26)","v":""},null,{"$f":"IF($C$26=\"\",\"\",Z26/$C$26)","v":""},null,{"$f":"IF($C$26=\"\",\"\",AB26/$C$26)","v":""},null,{"$f":"IF($C$26=\"\",\"\",AD26/$C$26)","v":""},null,{"$f":"IF($C$26=\"\",\"\",AF26/$C$26)","v":""},null,{"$f":"IF($C$26=\"\",\"\",AH26/$C$26)","v":""},null,{"$f":"IF($C$26=\"\",\"\",AJ26/$C$26)","v":""},null,{"$f":"IF($C$26=\"\",\"\",AL26/$C$26)","v":""},null,{"$f":"IF($C$26=\"\",\"\",AN26/$C$26)","v":""},null,{"$f":"IF($C$26=\"\",\"\",AP26/$C$26)","v":""},null,{"$f":"IF($C$26=\"\",\"\",AR26/$C$26)","v":""},null,{"$f":"IF($C$26=\"\",\"\",AT26/$C$26)","v":""},null,{"$f":"IF($C$26=\"\",\"\",AV26/$C$26)","v":""},null,{"$f":"IF($C$26=\"\",\"\",AX26/$C$26)","v":""},null,{"$f":"IF($C$26=\"\",\"\",AZ26/$C$26)","v":""},null,{"$f":"IF($C$26=\"\",\"\",BB26/$C$26)","v":""},null,{"$f":"SUM(BB26,AZ26,AX26,AV26,AT26,AR26,AP26,AN26,AL26,AJ26,AH26,AF26,AD26,AB26,Z26,X26,V26,T26,R26,P26,N26,L26,J26,H26,F26)","v":0}]
[null,null,null,null,{"$f":"IF($C$27=\"\",\"\",F27/$C$27)","v":""},null,{"$f":"IF($C$27=\"\",\"\",H27/$C$27)","v":""},null,{"$f":"IF($C$27=\"\",\"\",J27/$C$27)","v":""},null,{"$f":"IF($C$27=\"\",\"\",L27/$C$27)","v":""},null,{"$f":"IF($C$27=\"\",\"\",N27/$C$27)","v":""},null,{"$f":"IF($C$27=\"\",\"\",P27/$C$27)","v":""},null,{"$f":"IF($C$27=\"\",\"\",R27/$C$27)","v":""},null,{"$f":"IF($C$27=\"\",\"\",T27/$C$27)","v":""},null,{"$f":"IF($C$27=\"\",\"\",V27/$C$27)","v":""},null,{"$f":"IF($C$27=\"\",\"\",X27/$C$27)","v":""},null,{"$f":"IF($C$27=\"\",\"\",Z27/$C$27)","v":""},null,{"$f":"IF($C$27=\"\",\"\",AB27/$C$27)","v":""},null,{"$f":"IF($C$27=\"\",\"\",AD27/$C$27)","v":""},null,{"$f":"IF($C$27=\"\",\"\",AF27/$C$27)","v":""},null,{"$f":"IF($C$27=\"\",\"\",AH27/$C$27)","v":""},null,{"$f":"IF($C$27=\"\",\"\",AJ27/$C$27)","v":""},null,{"$f":"IF($C$27=\"\",\"\",AL27/$C$27)","v":""},null,{"$f":"IF($C$27=\"\",\"\",AN27/$C$27)","v":""},null,{"$f":"IF($C$27=\"\",\"\",AP27/$C$27)","v":""},null,{"$f":"IF($C$27=\"\",\"\",AR27/$C$27)","v":""},null,{"$f":"IF($C$27=\"\",\"\",AT27/$C$27)","v":""},null,{"$f":"IF($C$27=\"\",\"\",AV27/$C$27)","v":""},null,{"$f":"IF($C$27=\"\",\"\",AX27/$C$27)","v":""},null,{"$f":"IF($C$27=\"\",\"\",AZ27/$C$27)","v":""},null,{"$f":"IF($C$27=\"\",\"\",BB27/$C$27)","v":""},null,{"$f":"SUM(BB27,AZ27,AX27,AV27,AT27,AR27,AP27,AN27,AL27,AJ27,AH27,AF27,AD27,AB27,Z27,X27,V27,T27,R27,P27,N27,L27,J27,H27,F27)","v":0}]
["TOTAL HOURS",null,null,null,null,{"$f":"SUM(F16:F27)","v":0},null,{"$f":"SUM(H16:H27)","v":0},null,{"$f":"SUM(J16:J27)","v":0},null,{"$f":"SUM(L16:L27)","v":0},null,{"$f":"SUM(N16:N27)","v":0},null,{"$f":"SUM(P16:P27)","v":0},null,{"$f":"SUM(R16:R27)","v":0},null,{"$f":"SUM(T16:T27)","v":0},null,{"$f":"SUM(V16:V27)","v":0},null,{"$f":"SUM(X16:X27)","v":0},null,{"$f":"SUM(Z16:Z27)","v":0},null,{"$f":"SUM(AB16:AB27)","v":0},null,{"$f":"SUM(AD16:AD27)","v":0},null,{"$f":"SUM(AF16:AF27)","v":0},null,{"$f":"SUM(AH16:AH27)","v":0},null,{"$f":"SUM(AJ16:AJ27)","v":0},null,{"$f":"SUM(AL16:AL27)","v":0},null,{"$f":"SUM(AN16:AN27)","v":0},null,{"$f":"SUM(AP16:AP27)","v":0},null,{"$f":"SUM(AR16:AR27)","v":0},null,{"$f":"SUM(AT16:AT27)","v":0},null,{"$f":"SUM(AV16:AV27)","v":0},null,{"$f":"SUM(AX16:AX27)","v":0},null,{"$f":"SUM(AZ16:AZ27)","v":0},null,{"$f":"SUM(BB16:BB27)","v":0},{"$f":"SUM(E28:BB28)","v":0}]
["TOTAL WORKDAYS",null,null,null,null,{"$f":"F28/8","v":0},null,{"$f":"H28/8","v":0},null,{"$f":"J28/8","v":0},null,{"$f":"L28/8","v":0},null,{"$f":"N28/8","v":0},null,{"$f":"P28/8","v":0},null,{"$f":"R28/8","v":0},null,{"$f":"T28/8","v":0},null,{"$f":"V28/8","v":0},null,{"$f":"X28/8","v":0},null,{"$f":"Z28/8","v":0},null,{"$f":"AB28/8","v":0},null,{"$f":"AD28/8","v":0},null,0,null,{"$f":"AH28/8","v":0},null,0,null,{"$f":"AL28/8","v":0},null,0,null,{"$f":"AP28/8","v":0},null,0,null,{"$f":"AT28/8","v":0},null,{"$f":"AV28/8","v":0},null,{"$f":"AX28/8","v":0},null,{"$f":"AZ28/8","v":0},null,{"$f":"BB28/8","v":0},{"$f":"SUM(E29:BB29)","v":0}]
["TOTAL RAW LABOR",null,null,null,null,{"$f":"$E$13*F28","v":0},null,{"$f":"$G$13*H28","v":0},null,{"$f":"$I$13*J28","v":0},null,{"$f":"$K$13*L28","v":0},null,{"$f":"$M$13*N28","v":0},null,{"$f":"$O$13*P28","v":0},null,{"$f":"$Q$13*R28","v":0},null,{"$f":"$S$13*T28","v":0},null,{"$f":"$U$13*V28","v":0},null,{"$f":"$W$13*X28","v":0},null,{"$f":"$Y$13*Z28","v":0},null,{"$f":"$AA$13*AB28","v":0},null,{"$f":"$AC$13*AD28","v":0},null,{"$f":"$AC$13*AF28","v":0},null,{"$f":"$AC$13*AH28","v":0},null,{"$f":"$AC$13*AJ28","v":0},null,{"$f":"$AC$13*AL28","v":0},null,{"$f":"$AC$13*AN28","v":0},null,{"$f":"$AC$13*AP28","v":0},null,{"$f":"$AC$13*AR28","v":0},null,{"$f":"$AC$13*AT28","v":0},null,{"$f":"$AC$13*AV28","v":0},null,{"$f":"$AC$13*AX28","v":0},null,{"$f":"$AC$13*AZ28","v":0},null,{"$f":"$AC$13*BB28","v":0},{"$f":"SUM(E30:BB30)","v":0}]
["Task 2.0     ","FUNCTIONAL DESIGN",null,null," ",null," ",null," ",null," ",null," ",null," ",null," ",null," ",null," ",null," ",null," ",null," ",null," ",null," ",null," ",null," ",null," ",null," ",null," ",null," ",null," ",null," ",null," ",null," ",null," "]
[2.1,"Systems Engineering Document/Project Architecture"]
["    2.1.1","    Summarize Existing System Operations and   \n    Functionality",null,null,{"$f":"IF($C$33=\"\",\"\",F33/$C$33)","v":""},null,{"$f":"IF($C$33=\"\",\"\",H33/$C$33)","v":""},null,{"$f":"IF($C$33=\"\",\"\",J33/$C$33)","v":""},null,{"$f":"IF($C$33=\"\",\"\",L33/$C$33)","v":""},null,{"$f":"IF($C$33=\"\",\"\",N33/$C$33)","v":""},null,{"$f":"IF($C$33=\"\",\"\",P33/$C$33)","v":""},null,{"$f":"IF($C$33=\"\",\"\",R33/$C$33)","v":""},null,{"$f":"IF($C$33=\"\",\"\",T33/$C$33)","v":""},null,{"$f":"IF($C$33=\"\",\"\",V33/$C$33)","v":""},null,{"$f":"IF($C$33=\"\",\"\",X33/$C$33)","v":""},null,{"$f":"IF($C$33=\"\",\"\",Z33/$C$33)","v":""},null,{"$f":"IF($C$33=\"\",\"\",AB33/$C$33)","v":""},null,{"$f":"IF($C$33=\"\",\"\",AD33/$C$33)","v":""},null,{"$f":"IF($C$33=\"\",\"\",AF33/$C$33)","v":""},null,{"$f":"IF($C$33=\"\",\"\",AH33/$C$33)","v":""},null,{"$f":"IF($C$33=\"\",\"\",AJ33/$C$33)","v":""},null,{"$f":"IF($C$33=\"\",\"\",AL33/$C$33)","v":""},null,{"$f":"IF($C$33=\"\",\"\",AN33/$C$33)","v":""},null,{"$f":"IF($C$33=\"\",\"\",AP33/$C$33)","v":""},null,{"$f":"IF($C$33=\"\",\"\",AR33/$C$33)","v":""},null,{"$f":"IF($C$33=\"\",\"\",AT33/$C$33)","v":""},null,{"$f":"IF($C$33=\"\",\"\",AV33/$C$33)","v":""},null,{"$f":"IF($C$33=\"\",\"\",AX33/$C$33)","v":""},null,{"$f":"IF($C$33=\"\",\"\",AZ33/$C$33)","v":""},null,{"$f":"IF($C$33=\"\",\"\",BB33/$C$33)","v":""},null,{"$f":"SUM(BB33,AZ33,AX33,AV33,AT33,AR33,AP33,AN33,AL33,AJ33,AH33,AF33,AD33,AB33,Z33,X33,V33,T33,R33,P33,N33,L33,J33,H33,F33)","v":0}]
["    2.1.2    ","    Summarize Proposed System Functional Needs \n    and Boundaries",null,null,{"$f":"IF($C$34=\"\",\"\",F34/$C$34)","v":""},null,{"$f":"IF($C$34=\"\",\"\",H34/$C$34)","v":""},null,{"$f":"IF($C$34=\"\",\"\",J34/$C$34)","v":""},null,{"$f":"IF($C$34=\"\",\"\",L34/$C$34)","v":""},null,{"$f":"IF($C$34=\"\",\"\",N34/$C$34)","v":""},null,{"$f":"IF($C$34=\"\",\"\",P34/$C$34)","v":""},null,{"$f":"IF($C$34=\"\",\"\",R34/$C$34)","v":""},null,{"$f":"IF($C$34=\"\",\"\",T34/$C$34)","v":""},null,{"$f":"IF($C$34=\"\",\"\",V34/$C$34)","v":""},null,{"$f":"IF($C$34=\"\",\"\",X34/$C$34)","v":""},null,{"$f":"IF($C$34=\"\",\"\",Z34/$C$34)","v":""},null,{"$f":"IF($C$34=\"\",\"\",AB34/$C$34)","v":""},null,{"$f":"IF($C$34=\"\",\"\",AD34/$C$34)","v":""},null,{"$f":"IF($C$34=\"\",\"\",AF34/$C$34)","v":""},null,{"$f":"IF($C$34=\"\",\"\",AH34/$C$34)","v":""},null,{"$f":"IF($C$34=\"\",\"\",AJ34/$C$34)","v":""},null,{"$f":"IF($C$34=\"\",\"\",AL34/$C$34)","v":""},null,{"$f":"IF($C$34=\"\",\"\",AN34/$C$34)","v":""},null,{"$f":"IF($C$34=\"\",\"\",AP34/$C$34)","v":""},null,{"$f":"IF($C$34=\"\",\"\",AR34/$C$34)","v":""},null,{"$f":"IF($C$34=\"\",\"\",AT34/$C$34)","v":""},null,{"$f":"IF($C$34=\"\",\"\",AV34/$C$34)","v":""},null,{"$f":"IF($C$34=\"\",\"\",AX34/$C$34)","v":""},null,{"$f":"IF($C$34=\"\",\"\",AZ34/$C$34)","v":""},null,{"$f":"IF($C$34=\"\",\"\",BB34/$C$34)","v":""},null,0]
["    2.1.3","    Summarize Proposed System Concept of \n    Operations",null,null,{"$f":"IF($C$35=\"\",\"\",F35/$C$35)","v":""},null,{"$f":"IF($C$35=\"\",\"\",H35/$C$35)","v":""},null,{"$f":"IF($C$35=\"\",\"\",J35/$C$35)","v":""},null,{"$f":"IF($C$35=\"\",\"\",L35/$C$35)","v":""},null,{"$f":"IF($C$35=\"\",\"\",N35/$C$35)","v":""},null,{"$f":"IF($C$35=\"\",\"\",P35/$C$35)","v":""},null,{"$f":"IF($C$35=\"\",\"\",R35/$C$35)","v":""},null,{"$f":"IF($C$35=\"\",\"\",T35/$C$35)","v":""},null,{"$f":"IF($C$35=\"\",\"\",V35/$C$35)","v":""},null,{"$f":"IF($C$35=\"\",\"\",X35/$C$35)","v":""},null,{"$f":"IF($C$35=\"\",\"\",Z35/$C$35)","v":""},null,{"$f":"IF($C$35=\"\",\"\",AB35/$C$35)","v":""},null,{"$f":"IF($C$35=\"\",\"\",AD35/$C$35)","v":""},null,{"$f":"IF($C$35=\"\",\"\",AF35/$C$35)","v":""},null,{"$f":"IF($C$35=\"\",\"\",AH35/$C$35)","v":""},null,{"$f":"IF($C$35=\"\",\"\",AJ35/$C$35)","v":""},null,{"$f":"IF($C$35=\"\",\"\",AL35/$C$35)","v":""},null,{"$f":"IF($C$35=\"\",\"\",AN35/$C$35)","v":""},null,{"$f":"IF($C$35=\"\",\"\",AP35/$C$35)","v":""},null,{"$f":"IF($C$35=\"\",\"\",AR35/$C$35)","v":""},null,{"$f":"IF($C$35=\"\",\"\",AT35/$C$35)","v":""},null,{"$f":"IF($C$35=\"\",\"\",AV35/$C$35)","v":""},null,{"$f":"IF($C$35=\"\",\"\",AX35/$C$35)","v":""},null,{"$f":"IF($C$35=\"\",\"\",AZ35/$C$35)","v":""},null,{"$f":"IF($C$35=\"\",\"\",BB35/$C$35)","v":""},null,0]
["    2.1.4","    Reference Project Architecture & Ensure \n    Regional Architecture Compliance",null,null,{"$f":"IF($C$36=\"\",\"\",F36/$C$36)","v":""},null,{"$f":"IF($C$36=\"\",\"\",H36/$C$36)","v":""},null,{"$f":"IF($C$36=\"\",\"\",J36/$C$36)","v":""},null,{"$f":"IF($C$36=\"\",\"\",L36/$C$36)","v":""},null,{"$f":"IF($C$36=\"\",\"\",N36/$C$36)","v":""},null,{"$f":"IF($C$36=\"\",\"\",P36/$C$36)","v":""},null,{"$f":"IF($C$36=\"\",\"\",R36/$C$36)","v":""},null,{"$f":"IF($C$36=\"\",\"\",T36/$C$36)","v":""},null,{"$f":"IF($C$36=\"\",\"\",V36/$C$36)","v":""},null,{"$f":"IF($C$36=\"\",\"\",X36/$C$36)","v":""},null,{"$f":"IF($C$36=\"\",\"\",Z36/$C$36)","v":""},null,{"$f":"IF($C$36=\"\",\"\",AB36/$C$36)","v":""},null,{"$f":"IF($C$36=\"\",\"\",AD36/$C$36)","v":""},null,{"$f":"IF($C$36=\"\",\"\",AF36/$C$36)","v":""},null,{"$f":"IF($C$36=\"\",\"\",AH36/$C$36)","v":""},null,{"$f":"IF($C$36=\"\",\"\",AJ36/$C$36)","v":""},null,{"$f":"IF($C$36=\"\",\"\",AL36/$C$36)","v":""},null,{"$f":"IF($C$36=\"\",\"\",AN36/$C$36)","v":""},null,{"$f":"IF($C$36=\"\",\"\",AP36/$C$36)","v":""},null,{"$f":"IF($C$36=\"\",\"\",AR36/$C$36)","v":""},null,{"$f":"IF($C$36=\"\",\"\",AT36/$C$36)","v":""},null,{"$f":"IF($C$36=\"\",\"\",AV36/$C$36)","v":""},null,{"$f":"IF($C$36=\"\",\"\",AX36/$C$36)","v":""},null,{"$f":"IF($C$36=\"\",\"\",AZ36/$C$36)","v":""},null,{"$f":"IF($C$36=\"\",\"\",BB36/$C$36)","v":""},null,0]
["    2.1.5","    Develop Draft Systems Engineering Document",null,null,{"$f":"IF($C$37=\"\",\"\",F37/$C$37)","v":""},null,{"$f":"IF($C$37=\"\",\"\",H37/$C$37)","v":""},null,{"$f":"IF($C$37=\"\",\"\",J37/$C$37)","v":""},null,{"$f":"IF($C$37=\"\",\"\",L37/$C$37)","v":""},null,{"$f":"IF($C$37=\"\",\"\",N37/$C$37)","v":""},null,{"$f":"IF($C$37=\"\",\"\",P37/$C$37)","v":""},null,{"$f":"IF($C$37=\"\",\"\",R37/$C$37)","v":""},null,{"$f":"IF($C$37=\"\",\"\",T37/$C$37)","v":""},null,{"$f":"IF($C$37=\"\",\"\",V37/$C$37)","v":""},null,{"$f":"IF($C$37=\"\",\"\",X37/$C$37)","v":""},null,{"$f":"IF($C$37=\"\",\"\",Z37/$C$37)","v":""},null,{"$f":"IF($C$37=\"\",\"\",AB37/$C$37)","v":""},null,{"$f":"IF($C$37=\"\",\"\",AD37/$C$37)","v":""},null,{"$f":"IF($C$37=\"\",\"\",AF37/$C$37)","v":""},null,{"$f":"IF($C$37=\"\",\"\",AH37/$C$37)","v":""},null,{"$f":"IF($C$37=\"\",\"\",AJ37/$C$37)","v":""},null,{"$f":"IF($C$37=\"\",\"\",AL37/$C$37)","v":""},null,{"$f":"IF($C$37=\"\",\"\",AN37/$C$37)","v":""},null,{"$f":"IF($C$37=\"\",\"\",AP37/$C$37)","v":""},null,{"$f":"IF($C$37=\"\",\"\",AR37/$C$37)","v":""},null,{"$f":"IF($C$37=\"\",\"\",AT37/$C$37)","v":""},null,{"$f":"IF($C$37=\"\",\"\",AV37/$C$37)","v":""},null,{"$f":"IF($C$37=\"\",\"\",AX37/$C$37)","v":""},null,{"$f":"IF($C$37=\"\",\"\",AZ37/$C$37)","v":""},null,{"$f":"IF($C$37=\"\",\"\",BB37/$C$37)","v":""},null,0]
["    2.1.6","    Finalize Systems Engineering Document",null,null,{"$f":"IF($C$38=\"\",\"\",F38/$C$38)","v":""},null,{"$f":"IF($C$38=\"\",\"\",H38/$C$38)","v":""},null,{"$f":"IF($C$38=\"\",\"\",J38/$C$38)","v":""},null,{"$f":"IF($C$38=\"\",\"\",L38/$C$38)","v":""},null,{"$f":"IF($C$38=\"\",\"\",N38/$C$38)","v":""},null,{"$f":"IF($C$38=\"\",\"\",P38/$C$38)","v":""},null,{"$f":"IF($C$38=\"\",\"\",R38/$C$38)","v":""},null,{"$f":"IF($C$38=\"\",\"\",T38/$C$38)","v":""},null,{"$f":"IF($C$38=\"\",\"\",V38/$C$38)","v":""},null,{"$f":"IF($C$38=\"\",\"\",X38/$C$38)","v":""},null,{"$f":"IF($C$38=\"\",\"\",Z38/$C$38)","v":""},null,{"$f":"IF($C$38=\"\",\"\",AB38/$C$38)","v":""},null,{"$f":"IF($C$38=\"\",\"\",AD38/$C$38)","v":""},null,{"$f":"IF($C$38=\"\",\"\",AF38/$C$38)","v":""},null,{"$f":"IF($C$38=\"\",\"\",AH38/$C$38)","v":""},null,{"$f":"IF($C$38=\"\",\"\",AJ38/$C$38)","v":""},null,{"$f":"IF($C$38=\"\",\"\",AL38/$C$38)","v":""},null,{"$f":"IF($C$38=\"\",\"\",AN38/$C$38)","v":""},null,{"$f":"IF($C$38=\"\",\"\",AP38/$C$38)","v":""},null,{"$f":"IF($C$38=\"\",\"\",AR38/$C$38)","v":""},null,{"$f":"IF($C$38=\"\",\"\",AT38/$C$38)","v":""},null,{"$f":"IF($C$38=\"\",\"\",AV38/$C$38)","v":""},null,{"$f":"IF($C$38=\"\",\"\",AX38/$C$38)","v":""},null,{"$f":"IF($C$38=\"\",\"\",AZ38/$C$38)","v":""},null,{"$f":"IF($C$38=\"\",\"\",BB38/$C$38)","v":""},null,0]
["    2.1.7",null,null,null,{"$f":"IF($C$39=\"\",\"\",F39/$C$39)","v":""},null,{"$f":"IF($C$39=\"\",\"\",H39/$C$39)","v":""},null,{"$f":"IF($C$39=\"\",\"\",J39/$C$39)","v":""},null,{"$f":"IF($C$39=\"\",\"\",L39/$C$39)","v":""},null,{"$f":"IF($C$39=\"\",\"\",N39/$C$39)","v":""},null,{"$f":"IF($C$39=\"\",\"\",P39/$C$39)","v":""},null,{"$f":"IF($C$39=\"\",\"\",R39/$C$39)","v":""},null,{"$f":"IF($C$39=\"\",\"\",T39/$C$39)","v":""},null,{"$f":"IF($C$39=\"\",\"\",V39/$C$39)","v":""},null,{"$f":"IF($C$39=\"\",\"\",X39/$C$39)","v":""},null,{"$f":"IF($C$39=\"\",\"\",Z39/$C$39)","v":""},null,{"$f":"IF($C$39=\"\",\"\",AB39/$C$39)","v":""},null,{"$f":"IF($C$39=\"\",\"\",AD39/$C$39)","v":""},null,{"$f":"IF($C$39=\"\",\"\",AF39/$C$39)","v":""},null,{"$f":"IF($C$39=\"\",\"\",AH39/$C$39)","v":""},null,{"$f":"IF($C$39=\"\",\"\",AJ39/$C$39)","v":""},null,{"$f":"IF($C$39=\"\",\"\",AL39/$C$39)","v":""},null,{"$f":"IF($C$39=\"\",\"\",AN39/$C$39)","v":""},null,{"$f":"IF($C$39=\"\",\"\",AP39/$C$39)","v":""},null,{"$f":"IF($C$39=\"\",\"\",AR39/$C$39)","v":""},null,{"$f":"IF($C$39=\"\",\"\",AT39/$C$39)","v":""},null,{"$f":"IF($C$39=\"\",\"\",AV39/$C$39)","v":""},null,{"$f":"IF($C$39=\"\",\"\",AX39/$C$39)","v":""},null,{"$f":"IF($C$39=\"\",\"\",AZ39/$C$39)","v":""},null,{"$f":"IF($C$39=\"\",\"\",BB39/$C$39)","v":""},null,0]
["    2.1.8",null,null,null,{"$f":"IF($C$40=\"\",\"\",F40/$C$40)","v":""},null,{"$f":"IF($C$40=\"\",\"\",H40/$C$40)","v":""},null,{"$f":"IF($C$40=\"\",\"\",J40/$C$40)","v":""},null,{"$f":"IF($C$40=\"\",\"\",L40/$C$40)","v":""},null,{"$f":"IF($C$40=\"\",\"\",N40/$C$40)","v":""},null,{"$f":"IF($C$40=\"\",\"\",P40/$C$40)","v":""},null,{"$f":"IF($C$40=\"\",\"\",R40/$C$40)","v":""},null,{"$f":"IF($C$40=\"\",\"\",T40/$C$40)","v":""},null,{"$f":"IF($C$40=\"\",\"\",V40/$C$40)","v":""},null,{"$f":"IF($C$40=\"\",\"\",X40/$C$40)","v":""},null,{"$f":"IF($C$40=\"\",\"\",Z40/$C$40)","v":""},null,{"$f":"IF($C$40=\"\",\"\",AB40/$C$40)","v":""},null,{"$f":"IF($C$40=\"\",\"\",AD40/$C$40)","v":""},null,{"$f":"IF($C$40=\"\",\"\",AF40/$C$40)","v":""},null,{"$f":"IF($C$40=\"\",\"\",AH40/$C$40)","v":""},null,{"$f":"IF($C$40=\"\",\"\",AJ40/$C$40)","v":""},null,{"$f":"IF($C$40=\"\",\"\",AL40/$C$40)","v":""},null,{"$f":"IF($C$40=\"\",\"\",AN40/$C$40)","v":""},null,{"$f":"IF($C$40=\"\",\"\",AP40/$C$40)","v":""},null,{"$f":"IF($C$40=\"\",\"\",AR40/$C$40)","v":""},null,{"$f":"IF($C$40=\"\",\"\",AT40/$C$40)","v":""},null,{"$f":"IF($C$40=\"\",\"\",AV40/$C$40)","v":""},null,{"$f":"IF($C$40=\"\",\"\",AX40/$C$40)","v":""},null,{"$f":"IF($C$40=\"\",\"\",AZ40/$C$40)","v":""},null,{"$f":"IF($C$40=\"\",\"\",BB40/$C$40)","v":""},null,0]
["    2.1.9",null,null,null,{"$f":"IF($C$41=\"\",\"\",F41/$C$41)","v":""},null,{"$f":"IF($C$41=\"\",\"\",H41/$C$41)","v":""},null,{"$f":"IF($C$41=\"\",\"\",J41/$C$41)","v":""},null,{"$f":"IF($C$41=\"\",\"\",L41/$C$41)","v":""},null,{"$f":"IF($C$41=\"\",\"\",N41/$C$41)","v":""},null,{"$f":"IF($C$41=\"\",\"\",P41/$C$41)","v":""},null,{"$f":"IF($C$41=\"\",\"\",R41/$C$41)","v":""},null,{"$f":"IF($C$41=\"\",\"\",T41/$C$41)","v":""},null,{"$f":"IF($C$41=\"\",\"\",V41/$C$41)","v":""},null,{"$f":"IF($C$41=\"\",\"\",X41/$C$41)","v":""},null,{"$f":"IF($C$41=\"\",\"\",Z41/$C$41)","v":""},null,{"$f":"IF($C$41=\"\",\"\",AB41/$C$41)","v":""},null,{"$f":"IF($C$41=\"\",\"\",AD41/$C$41)","v":""},null,{"$f":"IF($C$41=\"\",\"\",AF41/$C$41)","v":""},null,{"$f":"IF($C$41=\"\",\"\",AH41/$C$41)","v":""},null,{"$f":"IF($C$41=\"\",\"\",AJ41/$C$41)","v":""},null,{"$f":"IF($C$41=\"\",\"\",AL41/$C$41)","v":""},null,{"$f":"IF($C$41=\"\",\"\",AN41/$C$41)","v":""},null,{"$f":"IF($C$41=\"\",\"\",AP41/$C$41)","v":""},null,{"$f":"IF($C$41=\"\",\"\",AR41/$C$41)","v":""},null,{"$f":"IF($C$41=\"\",\"\",AT41/$C$41)","v":""},null,{"$f":"IF($C$41=\"\",\"\",AV41/$C$41)","v":""},null,{"$f":"IF($C$41=\"\",\"\",AX41/$C$41)","v":""},null,{"$f":"IF($C$41=\"\",\"\",AZ41/$C$41)","v":""},null,{"$f":"IF($C$41=\"\",\"\",BB41/$C$41)","v":""},null,0]
[2.2000000000000002,"System Maintenance and Staffing Plan",null,null,{"$f":"IF($C$42=\"\",\"\",F42/$C$42)","v":""},null,{"$f":"IF($C$42=\"\",\"\",H42/$C$42)","v":""},null,{"$f":"IF($C$42=\"\",\"\",J42/$C$42)","v":""},null,{"$f":"IF($C$42=\"\",\"\",L42/$C$42)","v":""},null,{"$f":"IF($C$42=\"\",\"\",N42/$C$42)","v":""},null,{"$f":"IF($C$42=\"\",\"\",P42/$C$42)","v":""},null,{"$f":"IF($C$42=\"\",\"\",R42/$C$42)","v":""},null,{"$f":"IF($C$42=\"\",\"\",T42/$C$42)","v":""},null,{"$f":"IF($C$42=\"\",\"\",V42/$C$42)","v":""},null,{"$f":"IF($C$42=\"\",\"\",X42/$C$42)","v":""},null,{"$f":"IF($C$42=\"\",\"\",Z42/$C$42)","v":""},null,{"$f":"IF($C$42=\"\",\"\",AB42/$C$42)","v":""},null,{"$f":"IF($C$42=\"\",\"\",AD42/$C$42)","v":""},null,{"$f":"IF($C$42=\"\",\"\",AF42/$C$42)","v":""},null,{"$f":"IF($C$42=\"\",\"\",AH42/$C$42)","v":""},null,{"$f":"IF($C$42=\"\",\"\",AJ42/$C$42)","v":""},null,{"$f":"IF($C$42=\"\",\"\",AL42/$C$42)","v":""},null,{"$f":"IF($C$42=\"\",\"\",AN42/$C$42)","v":""},null,{"$f":"IF($C$42=\"\",\"\",AP42/$C$42)","v":""},null,{"$f":"IF($C$42=\"\",\"\",AR42/$C$42)","v":""},null,{"$f":"IF($C$42=\"\",\"\",AT42/$C$42)","v":""},null,{"$f":"IF($C$42=\"\",\"\",AV42/$C$42)","v":""},null,{"$f":"IF($C$42=\"\",\"\",AX42/$C$42)","v":""},null,{"$f":"IF($C$42=\"\",\"\",AZ42/$C$42)","v":""},null,{"$f":"IF($C$42=\"\",\"\",BB42/$C$42)","v":""},null,0]
[2.2999999999999998,"Municipal Remote Monitoring  Center Requirements",null,null,{"$f":"IF($C$43=\"\",\"\",F43/$C$43)","v":""},null,{"$f":"IF($C$43=\"\",\"\",H43/$C$43)","v":""},null,{"$f":"IF($C$43=\"\",\"\",J43/$C$43)","v":""},null,{"$f":"IF($C$43=\"\",\"\",L43/$C$43)","v":""},null,{"$f":"IF($C$43=\"\",\"\",N43/$C$43)","v":""},null,{"$f":"IF($C$43=\"\",\"\",P43/$C$43)","v":""},null,{"$f":"IF($C$43=\"\",\"\",R43/$C$43)","v":""},null,{"$f":"IF($C$43=\"\",\"\",T43/$C$43)","v":""},null,{"$f":"IF($C$43=\"\",\"\",V43/$C$43)","v":""},null,{"$f":"IF($C$43=\"\",\"\",X43/$C$43)","v":""},null,{"$f":"IF($C$43=\"\",\"\",Z43/$C$43)","v":""},null,{"$f":"IF($C$43=\"\",\"\",AB43/$C$43)","v":""},null,{"$f":"IF($C$43=\"\",\"\",AD43/$C$43)","v":""},null,{"$f":"IF($C$43=\"\",\"\",AF43/$C$43)","v":""},null,{"$f":"IF($C$43=\"\",\"\",AH43/$C$43)","v":""},null,{"$f":"IF($C$43=\"\",\"\",AJ43/$C$43)","v":""},null,{"$f":"IF($C$43=\"\",\"\",AL43/$C$43)","v":""},null,{"$f":"IF($C$43=\"\",\"\",AN43/$C$43)","v":""},null,{"$f":"IF($C$43=\"\",\"\",AP43/$C$43)","v":""},null,{"$f":"IF($C$43=\"\",\"\",AR43/$C$43)","v":""},null,{"$f":"IF($C$43=\"\",\"\",AT43/$C$43)","v":""},null,{"$f":"IF($C$43=\"\",\"\",AV43/$C$43)","v":""},null,{"$f":"IF($C$43=\"\",\"\",AX43/$C$43)","v":""},null,{"$f":"IF($C$43=\"\",\"\",AZ43/$C$43)","v":""},null,{"$f":"IF($C$43=\"\",\"\",BB43/$C$43)","v":""},null,0]
[2.4,"Traffic Management Center Modifications",null,null,{"$f":"IF($C$44=\"\",\"\",F44/$C$44)","v":""},null,{"$f":"IF($C$44=\"\",\"\",H44/$C$44)","v":""},null,{"$f":"IF($C$44=\"\",\"\",J44/$C$44)","v":""},null,{"$f":"IF($C$44=\"\",\"\",L44/$C$44)","v":""},null,{"$f":"IF($C$44=\"\",\"\",N44/$C$44)","v":""},null,{"$f":"IF($C$44=\"\",\"\",P44/$C$44)","v":""},null,{"$f":"IF($C$44=\"\",\"\",R44/$C$44)","v":""},null,{"$f":"IF($C$44=\"\",\"\",T44/$C$44)","v":""},null,{"$f":"IF($C$44=\"\",\"\",V44/$C$44)","v":""},null,{"$f":"IF($C$44=\"\",\"\",X44/$C$44)","v":""},null,{"$f":"IF($C$44=\"\",\"\",Z44/$C$44)","v":""},null,{"$f":"IF($C$44=\"\",\"\",AB44/$C$44)","v":""},null,{"$f":"IF($C$44=\"\",\"\",AD44/$C$44)","v":""},null,{"$f":"IF($C$44=\"\",\"\",AF44/$C$44)","v":""},null,{"$f":"IF($C$44=\"\",\"\",AH44/$C$44)","v":""},null,{"$f":"IF($C$44=\"\",\"\",AJ44/$C$44)","v":""},null,{"$f":"IF($C$44=\"\",\"\",AL44/$C$44)","v":""},null,{"$f":"IF($C$44=\"\",\"\",AN44/$C$44)","v":""},null,{"$f":"IF($C$44=\"\",\"\",AP44/$C$44)","v":""},null,{"$f":"IF($C$44=\"\",\"\",AR44/$C$44)","v":""},null,{"$f":"IF($C$44=\"\",\"\",AT44/$C$44)","v":""},null,{"$f":"IF($C$44=\"\",\"\",AV44/$C$44)","v":""},null,{"$f":"IF($C$44=\"\",\"\",AX44/$C$44)","v":""},null,{"$f":"IF($C$44=\"\",\"\",AZ44/$C$44)","v":""},null,{"$f":"IF($C$44=\"\",\"\",BB44/$C$44)","v":""},null,0]
[2.5,"Emergency Vehicle Preemption/ Transit Priority Requirements",null,null,{"$f":"IF($C$45=\"\",\"\",F45/$C$45)","v":""},null,{"$f":"IF($C$45=\"\",\"\",H45/$C$45)","v":""},null,{"$f":"IF($C$45=\"\",\"\",J45/$C$45)","v":""},null,{"$f":"IF($C$45=\"\",\"\",L45/$C$45)","v":""},null,{"$f":"IF($C$45=\"\",\"\",N45/$C$45)","v":""},null,{"$f":"IF($C$45=\"\",\"\",P45/$C$45)","v":""},null,{"$f":"IF($C$45=\"\",\"\",R45/$C$45)","v":""},null,{"$f":"IF($C$45=\"\",\"\",T45/$C$45)","v":""},null,{"$f":"IF($C$45=\"\",\"\",V45/$C$45)","v":""},null,{"$f":"IF($C$45=\"\",\"\",X45/$C$45)","v":""},null,{"$f":"IF($C$45=\"\",\"\",Z45/$C$45)","v":""},null,{"$f":"IF($C$45=\"\",\"\",AB45/$C$45)","v":""},null,{"$f":"IF($C$45=\"\",\"\",AD45/$C$45)","v":""},null,{"$f":"IF($C$45=\"\",\"\",AF45/$C$45)","v":""},null,{"$f":"IF($C$45=\"\",\"\",AH45/$C$45)","v":""},null,{"$f":"IF($C$45=\"\",\"\",AJ45/$C$45)","v":""},null,{"$f":"IF($C$45=\"\",\"\",AL45/$C$45)","v":""},null,{"$f":"IF($C$45=\"\",\"\",AN45/$C$45)","v":""},null,{"$f":"IF($C$45=\"\",\"\",AP45/$C$45)","v":""},null,{"$f":"IF($C$45=\"\",\"\",AR45/$C$45)","v":""},null,{"$f":"IF($C$45=\"\",\"\",AT45/$C$45)","v":""},null,{"$f":"IF($C$45=\"\",\"\",AV45/$C$45)","v":""},null,{"$f":"IF($C$45=\"\",\"\",AX45/$C$45)","v":""},null,{"$f":"IF($C$45=\"\",\"\",AZ45/$C$45)","v":""},null,{"$f":"IF($C$45=\"\",\"\",BB45/$C$45)","v":""},null,0]
[null,null,null,null,{"$f":"IF($C$46=\"\",\"\",F46/$C$46)","v":""},null,{"$f":"IF($C$46=\"\",\"\",H46/$C$46)","v":""},null,{"$f":"IF($C$46=\"\",\"\",J46/$C$46)","v":""},null,{"$f":"IF($C$46=\"\",\"\",L46/$C$46)","v":""},null,{"$f":"IF($C$46=\"\",\"\",N46/$C$46)","v":""},null,{"$f":"IF($C$46=\"\",\"\",P46/$C$46)","v":""},null,{"$f":"IF($C$46=\"\",\"\",R46/$C$46)","v":""},null,{"$f":"IF($C$46=\"\",\"\",T46/$C$46)","v":""},null,{"$f":"IF($C$46=\"\",\"\",V46/$C$46)","v":""},null,{"$f":"IF($C$46=\"\",\"\",X46/$C$46)","v":""},null,{"$f":"IF($C$46=\"\",\"\",Z46/$C$46)","v":""},null,{"$f":"IF($C$46=\"\",\"\",AB46/$C$46)","v":""},null,{"$f":"IF($C$46=\"\",\"\",AD46/$C$46)","v":""},null,{"$f":"IF($C$46=\"\",\"\",AF46/$C$46)","v":""},null,{"$f":"IF($C$46=\"\",\"\",AH46/$C$46)","v":""},null,{"$f":"IF($C$46=\"\",\"\",AJ46/$C$46)","v":""},null,{"$f":"IF($C$46=\"\",\"\",AL46/$C$46)","v":""},null,{"$f":"IF($C$46=\"\",\"\",AN46/$C$46)","v":""},null,{"$f":"IF($C$46=\"\",\"\",AP46/$C$46)","v":""},null,{"$f":"IF($C$46=\"\",\"\",AR46/$C$46)","v":""},null,{"$f":"IF($C$46=\"\",\"\",AT46/$C$46)","v":""},null,{"$f":"IF($C$46=\"\",\"\",AV46/$C$46)","v":""},null,{"$f":"IF($C$46=\"\",\"\",AX46/$C$46)","v":""},null,{"$f":"IF($C$46=\"\",\"\",AZ46/$C$46)","v":""},null,{"$f":"IF($C$46=\"\",\"\",BB46/$C$46)","v":""},null,0]
[null,null,null,null,{"$f":"IF($C$47=\"\",\"\",F47/$C$47)","v":""},null,{"$f":"IF($C$47=\"\",\"\",H47/$C$47)","v":""},null,{"$f":"IF($C$47=\"\",\"\",J47/$C$47)","v":""},null,{"$f":"IF($C$47=\"\",\"\",L47/$C$47)","v":""},null,{"$f":"IF($C$47=\"\",\"\",N47/$C$47)","v":""},null,{"$f":"IF($C$47=\"\",\"\",P47/$C$47)","v":""},null,{"$f":"IF($C$47=\"\",\"\",R47/$C$47)","v":""},null,{"$f":"IF($C$47=\"\",\"\",T47/$C$47)","v":""},null,{"$f":"IF($C$47=\"\",\"\",V47/$C$47)","v":""},null,{"$f":"IF($C$47=\"\",\"\",X47/$C$47)","v":""},null,{"$f":"IF($C$47=\"\",\"\",Z47/$C$47)","v":""},null,{"$f":"IF($C$47=\"\",\"\",AB47/$C$47)","v":""},null,{"$f":"IF($C$47=\"\",\"\",AD47/$C$47)","v":""},null,{"$f":"IF($C$47=\"\",\"\",AF47/$C$47)","v":""},null,{"$f":"IF($C$47=\"\",\"\",AH47/$C$47)","v":""},null,{"$f":"IF($C$47=\"\",\"\",AJ47/$C$47)","v":""},null,{"$f":"IF($C$47=\"\",\"\",AL47/$C$47)","v":""},null,{"$f":"IF($C$47=\"\",\"\",AN47/$C$47)","v":""},null,{"$f":"IF($C$47=\"\",\"\",AP47/$C$47)","v":""},null,{"$f":"IF($C$47=\"\",\"\",AR47/$C$47)","v":""},null,{"$f":"IF($C$47=\"\",\"\",AT47/$C$47)","v":""},null,{"$f":"IF($C$47=\"\",\"\",AV47/$C$47)","v":""},null,{"$f":"IF($C$47=\"\",\"\",AX47/$C$47)","v":""},null,{"$f":"IF($C$47=\"\",\"\",AZ47/$C$47)","v":""},null,{"$f":"IF($C$47=\"\",\"\",BB47/$C$47)","v":""},null,0]
[null,null,null,null,{"$f":"IF($C$48=\"\",\"\",F48/$C$48)","v":""},null,{"$f":"IF($C$48=\"\",\"\",H48/$C$48)","v":""},null,{"$f":"IF($C$48=\"\",\"\",J48/$C$48)","v":""},null,{"$f":"IF($C$48=\"\",\"\",L48/$C$48)","v":""},null,{"$f":"IF($C$48=\"\",\"\",N48/$C$48)","v":""},null,{"$f":"IF($C$48=\"\",\"\",P48/$C$48)","v":""},null,{"$f":"IF($C$48=\"\",\"\",R48/$C$48)","v":""},null,{"$f":"IF($C$48=\"\",\"\",T48/$C$48)","v":""},null,{"$f":"IF($C$48=\"\",\"\",V48/$C$48)","v":""},null,{"$f":"IF($C$48=\"\",\"\",X48/$C$48)","v":""},null,{"$f":"IF($C$48=\"\",\"\",Z48/$C$48)","v":""},null,{"$f":"IF($C$48=\"\",\"\",AB48/$C$48)","v":""},null,{"$f":"IF($C$48=\"\",\"\",AD48/$C$48)","v":""},null,{"$f":"IF($C$48=\"\",\"\",AF48/$C$48)","v":""},null,{"$f":"IF($C$48=\"\",\"\",AH48/$C$48)","v":""},null,{"$f":"IF($C$48=\"\",\"\",AJ48/$C$48)","v":""},null,{"$f":"IF($C$48=\"\",\"\",AL48/$C$48)","v":""},null,{"$f":"IF($C$48=\"\",\"\",AN48/$C$48)","v":""},null,{"$f":"IF($C$48=\"\",\"\",AP48/$C$48)","v":""},null,{"$f":"IF($C$48=\"\",\"\",AR48/$C$48)","v":""},null,{"$f":"IF($C$48=\"\",\"\",AT48/$C$48)","v":""},null,{"$f":"IF($C$48=\"\",\"\",AV48/$C$48)","v":""},null,{"$f":"IF($C$48=\"\",\"\",AX48/$C$48)","v":""},null,{"$f":"IF($C$48=\"\",\"\",AZ48/$C$48)","v":""},null,{"$f":"IF($C$48=\"\",\"\",BB48/$C$48)","v":""},null,0]
[null,null,null,null,{"$f":"IF($C$49=\"\",\"\",F49/$C$49)","v":""},null,{"$f":"IF($C$49=\"\",\"\",H49/$C$49)","v":""},null,{"$f":"IF($C$49=\"\",\"\",J49/$C$49)","v":""},null,{"$f":"IF($C$49=\"\",\"\",L49/$C$49)","v":""},null,{"$f":"IF($C$49=\"\",\"\",N49/$C$49)","v":""},null,{"$f":"IF($C$49=\"\",\"\",P49/$C$49)","v":""},null,{"$f":"IF($C$49=\"\",\"\",R49/$C$49)","v":""},null,{"$f":"IF($C$49=\"\",\"\",T49/$C$49)","v":""},null,{"$f":"IF($C$49=\"\",\"\",V49/$C$49)","v":""},null,{"$f":"IF($C$49=\"\",\"\",X49/$C$49)","v":""},null,{"$f":"IF($C$49=\"\",\"\",Z49/$C$49)","v":""},null,{"$f":"IF($C$49=\"\",\"\",AB49/$C$49)","v":""},null,{"$f":"IF($C$49=\"\",\"\",AD49/$C$49)","v":""},null,{"$f":"IF($C$49=\"\",\"\",AF49/$C$49)","v":""},null,{"$f":"IF($C$49=\"\",\"\",AH49/$C$49)","v":""},null,{"$f":"IF($C$49=\"\",\"\",AJ49/$C$49)","v":""},null,{"$f":"IF($C$49=\"\",\"\",AL49/$C$49)","v":""},null,{"$f":"IF($C$49=\"\",\"\",AN49/$C$49)","v":""},null,{"$f":"IF($C$49=\"\",\"\",AP49/$C$49)","v":""},null,{"$f":"IF($C$49=\"\",\"\",AR49/$C$49)","v":""},null,{"$f":"IF($C$49=\"\",\"\",AT49/$C$49)","v":""},null,{"$f":"IF($C$49=\"\",\"\",AV49/$C$49)","v":""},null,{"$f":"IF($C$49=\"\",\"\",AX49/$C$49)","v":""},null,{"$f":"IF($C$49=\"\",\"\",AZ49/$C$49)","v":""},null,{"$f":"IF($C$49=\"\",\"\",BB49/$C$49)","v":""},null,0]
[null,null,null,null,{"$f":"IF($C$50=\"\",\"\",F50/$C$50)","v":""},null,{"$f":"IF($C$50=\"\",\"\",H50/$C$50)","v":""},null,{"$f":"IF($C$50=\"\",\"\",J50/$C$50)","v":""},null,{"$f":"IF($C$50=\"\",\"\",L50/$C$50)","v":""},null,{"$f":"IF($C$50=\"\",\"\",N50/$C$50)","v":""},null,{"$f":"IF($C$50=\"\",\"\",P50/$C$50)","v":""},null,{"$f":"IF($C$50=\"\",\"\",R50/$C$50)","v":""},null,{"$f":"IF($C$50=\"\",\"\",T50/$C$50)","v":""},null,{"$f":"IF($C$50=\"\",\"\",V50/$C$50)","v":""},null,{"$f":"IF($C$50=\"\",\"\",X50/$C$50)","v":""},null,{"$f":"IF($C$50=\"\",\"\",Z50/$C$50)","v":""},null,{"$f":"IF($C$50=\"\",\"\",AB50/$C$50)","v":""},null,{"$f":"IF($C$50=\"\",\"\",AD50/$C$50)","v":""},null,{"$f":"IF($C$50=\"\",\"\",AF50/$C$50)","v":""},null,{"$f":"IF($C$50=\"\",\"\",AH50/$C$50)","v":""},null,{"$f":"IF($C$50=\"\",\"\",AJ50/$C$50)","v":""},null,{"$f":"IF($C$50=\"\",\"\",AL50/$C$50)","v":""},null,{"$f":"IF($C$50=\"\",\"\",AN50/$C$50)","v":""},null,{"$f":"IF($C$50=\"\",\"\",AP50/$C$50)","v":""},null,{"$f":"IF($C$50=\"\",\"\",AR50/$C$50)","v":""},null,{"$f":"IF($C$50=\"\",\"\",AT50/$C$50)","v":""},null,{"$f":"IF($C$50=\"\",\"\",AV50/$C$50)","v":""},null,{"$f":"IF($C$50=\"\",\"\",AX50/$C$50)","v":""},null,{"$f":"IF($C$50=\"\",\"\",AZ50/$C$50)","v":""},null,{"$f":"IF($C$50=\"\",\"\",BB50/$C$50)","v":""},null,0]
[null,null,null,null,{"$f":"IF($C$51=\"\",\"\",F51/$C$51)","v":""},null,{"$f":"IF($C$51=\"\",\"\",H51/$C$51)","v":""},null,{"$f":"IF($C$51=\"\",\"\",J51/$C$51)","v":""},null,{"$f":"IF($C$51=\"\",\"\",L51/$C$51)","v":""},null,{"$f":"IF($C$51=\"\",\"\",N51/$C$51)","v":""},null,{"$f":"IF($C$51=\"\",\"\",P51/$C$51)","v":""},null,{"$f":"IF($C$51=\"\",\"\",R51/$C$51)","v":""},null,{"$f":"IF($C$51=\"\",\"\",T51/$C$51)","v":""},null,{"$f":"IF($C$51=\"\",\"\",V51/$C$51)","v":""},null,{"$f":"IF($C$51=\"\",\"\",X51/$C$51)","v":""},null,{"$f":"IF($C$51=\"\",\"\",Z51/$C$51)","v":""},null,{"$f":"IF($C$51=\"\",\"\",AB51/$C$51)","v":""},null,{"$f":"IF($C$51=\"\",\"\",AD51/$C$51)","v":""},null,{"$f":"IF($C$51=\"\",\"\",AF51/$C$51)","v":""},null,{"$f":"IF($C$51=\"\",\"\",AH51/$C$51)","v":""},null,{"$f":"IF($C$51=\"\",\"\",AJ51/$C$51)","v":""},null,{"$f":"IF($C$51=\"\",\"\",AL51/$C$51)","v":""},null,{"$f":"IF($C$51=\"\",\"\",AN51/$C$51)","v":""},null,{"$f":"IF($C$51=\"\",\"\",AP51/$C$51)","v":""},null,{"$f":"IF($C$51=\"\",\"\",AR51/$C$51)","v":""},null,{"$f":"IF($C$51=\"\",\"\",AT51/$C$51)","v":""},null,{"$f":"IF($C$51=\"\",\"\",AV51/$C$51)","v":""},null,{"$f":"IF($C$51=\"\",\"\",AX51/$C$51)","v":""},null,{"$f":"IF($C$51=\"\",\"\",AZ51/$C$51)","v":""},null,{"$f":"IF($C$51=\"\",\"\",BB51/$C$51)","v":""},null,0]
[null,null,null,null,{"$f":"IF($C$52=\"\",\"\",F52/$C$52)","v":""},null,{"$f":"IF($C$52=\"\",\"\",H52/$C$52)","v":""},null,{"$f":"IF($C$52=\"\",\"\",J52/$C$52)","v":""},null,{"$f":"IF($C$52=\"\",\"\",L52/$C$52)","v":""},null,{"$f":"IF($C$52=\"\",\"\",N52/$C$52)","v":""},null,{"$f":"IF($C$52=\"\",\"\",P52/$C$52)","v":""},null,{"$f":"IF($C$52=\"\",\"\",R52/$C$52)","v":""},null,{"$f":"IF($C$52=\"\",\"\",T52/$C$52)","v":""},null,{"$f":"IF($C$52=\"\",\"\",V52/$C$52)","v":""},null,{"$f":"IF($C$52=\"\",\"\",X52/$C$52)","v":""},null,{"$f":"IF($C$52=\"\",\"\",Z52/$C$52)","v":""},null,{"$f":"IF($C$52=\"\",\"\",AB52/$C$52)","v":""},null,{"$f":"IF($C$52=\"\",\"\",AD52/$C$52)","v":""},null,{"$f":"IF($C$52=\"\",\"\",AF52/$C$52)","v":""},null,{"$f":"IF($C$52=\"\",\"\",AH52/$C$52)","v":""},null,{"$f":"IF($C$52=\"\",\"\",AJ52/$C$52)","v":""},null,{"$f":"IF($C$52=\"\",\"\",AL52/$C$52)","v":""},null,{"$f":"IF($C$52=\"\",\"\",AN52/$C$52)","v":""},null,{"$f":"IF($C$52=\"\",\"\",AP52/$C$52)","v":""},null,{"$f":"IF($C$52=\"\",\"\",AR52/$C$52)","v":""},null,{"$f":"IF($C$52=\"\",\"\",AT52/$C$52)","v":""},null,{"$f":"IF($C$52=\"\",\"\",AV52/$C$52)","v":""},null,{"$f":"IF($C$52=\"\",\"\",AX52/$C$52)","v":""},null,{"$f":"IF($C$52=\"\",\"\",AZ52/$C$52)","v":""},null,{"$f":"IF($C$52=\"\",\"\",BB52/$C$52)","v":""},null,{"$f":"SUM(BB52,AZ52,AX52,AV52,AT52,AR52,AP52,AN52,AL52,AJ52,AH52,AF52,AD52,AB52,Z52,X52,V52,T52,R52,P52,N52,L52,J52,H52,F52)","v":0}]
["TOTAL HOURS",null,null,null,null,{"$f":"SUM(F32:F52)","v":0},null,{"$f":"SUM(H32:H52)","v":0},null,{"$f":"SUM(J32:J52)","v":0},null,{"$f":"SUM(L32:L52)","v":0},null,{"$f":"SUM(N32:N52)","v":0},null,{"$f":"SUM(P32:P52)","v":0},null,{"$f":"SUM(R32:R52)","v":0},null,{"$f":"SUM(T32:T52)","v":0},null,{"$f":"SUM(V32:V52)","v":0},null,{"$f":"SUM(X32:X52)","v":0},null,{"$f":"SUM(Z32:Z52)","v":0},null,{"$f":"SUM(AB32:AB52)","v":0},null,{"$f":"SUM(AD32:AD52)","v":0},null,{"$f":"SUM(AF32:AF52)","v":0},null,{"$f":"SUM(AH32:AH52)","v":0},null,{"$f":"SUM(AJ32:AJ52)","v":0},null,{"$f":"SUM(AL32:AL52)","v":0},null,{"$f":"SUM(AN32:AN52)","v":0},null,{"$f":"SUM(AP32:AP52)","v":0},null,{"$f":"SUM(AR32:AR52)","v":0},null,{"$f":"SUM(AT32:AT52)","v":0},null,{"$f":"SUM(AV32:AV52)","v":0},null,{"$f":"SUM(AX32:AX52)","v":0},null,{"$f":"SUM(AZ32:AZ52)","v":0},null,{"$f":"SUM(BB32:BB52)","v":0},{"$f":"SUM(E53:BB53)","v":0}]
["TOTAL WORKDAYS",null,null,null,null,{"$f":"F53/8","v":0},null,{"$f":"H53/8","v":0},null,{"$f":"J53/8","v":0},null,{"$f":"L53/8","v":0},null,{"$f":"N53/8","v":0},null,{"$f":"P53/8","v":0},null,{"$f":"R53/8","v":0},null,{"$f":"T53/8","v":0},null,{"$f":"V53/8","v":0},null,{"$f":"X53/8","v":0},null,{"$f":"Z53/8","v":0},null,{"$f":"AB53/8","v":0},null,{"$f":"AD53/8","v":0},null,0,null,{"$f":"AH53/8","v":0},null,0,null,{"$f":"AL53/8","v":0},null,0,null,{"$f":"AP53/8","v":0},null,0,null,{"$f":"AT53/8","v":0},null,{"$f":"AV53/8","v":0},null,{"$f":"AX53/8","v":0},null,{"$f":"AZ53/8","v":0},null,{"$f":"BB53/8","v":0},{"$f":"SUM(E54:BB54)","v":0}]
["TOTAL RAW LABOR",null,null,null,null,{"$f":"$E$13*F53","v":0},null,{"$f":"$G$13*H53","v":0},null,{"$f":"$I$13*J53","v":0},null,{"$f":"$K$13*L53","v":0},null,{"$f":"$M$13*N53","v":0},null,{"$f":"$O$13*P53","v":0},null,{"$f":"$Q$13*R53","v":0},null,{"$f":"$S$13*T53","v":0},null,{"$f":"$U$13*V53","v":0},null,{"$f":"$W$13*X53","v":0},null,{"$f":"$Y$13*Z53","v":0},null,{"$f":"$AA$13*AB53","v":0},null,{"$f":"$AC$13*AD53","v":0},null,{"$f":"$AC$13*AF53","v":0},null,{"$f":"$AC$13*AH53","v":0},null,{"$f":"$AC$13*AJ53","v":0},null,{"$f":"$AC$13*AL53","v":0},null,{"$f":"$AC$13*AN53","v":0},null,{"$f":"$AC$13*AP53","v":0},null,{"$f":"$AC$13*AR53","v":0},null,{"$f":"$AC$13*AT53","v":0},null,{"$f":"$AC$13*AV53","v":0},null,{"$f":"$AC$13*AX53","v":0},null,{"$f":"$AC$13*AZ53","v":0},null,{"$f":"$AC$13*BB53","v":0},{"$f":"SUM(E55:BB55)","v":0}]
["Task 3.0     ","PROGRAMMATIC CATEGORICAL EXCLUSION & SUPPORTING TASKS"]
[3.1,"Misc. Coordination/Administration",null,null,{"$f":"IF($C$57=\"\",\"\",F57/$C$57)","v":""},null,{"$f":"IF($C$57=\"\",\"\",H57/$C$57)","v":""},null,{"$f":"IF($C$57=\"\",\"\",J57/$C$57)","v":""},null,{"$f":"IF($C$57=\"\",\"\",L57/$C$57)","v":""},null,{"$f":"IF($C$57=\"\",\"\",N57/$C$57)","v":""},null,{"$f":"IF($C$57=\"\",\"\",P57/$C$57)","v":""},null,{"$f":"IF($C$57=\"\",\"\",R57/$C$57)","v":""},null,{"$f":"IF($C$57=\"\",\"\",T57/$C$57)","v":""},null,{"$f":"IF($C$57=\"\",\"\",V57/$C$57)","v":""},null,{"$f":"IF($C$57=\"\",\"\",X57/$C$57)","v":""},null,{"$f":"IF($C$57=\"\",\"\",Z57/$C$57)","v":""},null,{"$f":"IF($C$57=\"\",\"\",AB57/$C$57)","v":""},null,{"$f":"IF($C$57=\"\",\"\",AD57/$C$57)","v":""},null,{"$f":"IF($C$57=\"\",\"\",AF57/$C$57)","v":""},null,{"$f":"IF($C$57=\"\",\"\",AH57/$C$57)","v":""},null,{"$f":"IF($C$57=\"\",\"\",AJ57/$C$57)","v":""},null,{"$f":"IF($C$57=\"\",\"\",AL57/$C$57)","v":""},null,{"$f":"IF($C$57=\"\",\"\",AN57/$C$57)","v":""},null,{"$f":"IF($C$57=\"\",\"\",AP57/$C$57)","v":""},null,{"$f":"IF($C$57=\"\",\"\",AR57/$C$57)","v":""},null,{"$f":"IF($C$57=\"\",\"\",AT57/$C$57)","v":""},null,{"$f":"IF($C$57=\"\",\"\",AV57/$C$57)","v":""},null,{"$f":"IF($C$57=\"\",\"\",AX57/$C$57)","v":""},null,{"$f":"IF($C$57=\"\",\"\",AZ57/$C$57)","v":""},null,{"$f":"IF($C$57=\"\",\"\",BB57/$C$57)","v":""},null,{"$f":"SUM(BB57,AZ57,AX57,AV57,AT57,AR57,AP57,AN57,AL57,AJ57,AH57,AF57,AD57,AB57,Z57,X57,V57,T57,R57,P57,N57,L57,J57,H57,F57)","v":0}]
[3.2,"Vicintiy Map/Base Mapping / Other Graphics"]
["    3.2.1","    Create Vicinity Map",null,null,{"$f":"IF($C$59=\"\",\"\",F59/$C$59)","v":""},null,{"$f":"IF($C$59=\"\",\"\",H59/$C$59)","v":""},null,{"$f":"IF($C$59=\"\",\"\",J59/$C$59)","v":""},null,{"$f":"IF($C$59=\"\",\"\",L59/$C$59)","v":""},null,{"$f":"IF($C$59=\"\",\"\",N59/$C$59)","v":""},null,{"$f":"IF($C$59=\"\",\"\",P59/$C$59)","v":""},null,{"$f":"IF($C$59=\"\",\"\",R59/$C$59)","v":""},null,{"$f":"IF($C$59=\"\",\"\",T59/$C$59)","v":""},null,{"$f":"IF($C$59=\"\",\"\",V59/$C$59)","v":""},null,{"$f":"IF($C$59=\"\",\"\",X59/$C$59)","v":""},null,{"$f":"IF($C$59=\"\",\"\",Z59/$C$59)","v":""},null,{"$f":"IF($C$59=\"\",\"\",AB59/$C$59)","v":""},null,{"$f":"IF($C$59=\"\",\"\",AD59/$C$59)","v":""},null,{"$f":"IF($C$59=\"\",\"\",AF59/$C$59)","v":""},null,{"$f":"IF($C$59=\"\",\"\",AH59/$C$59)","v":""},null,{"$f":"IF($C$59=\"\",\"\",AJ59/$C$59)","v":""},null,{"$f":"IF($C$59=\"\",\"\",AL59/$C$59)","v":""},null,{"$f":"IF($C$59=\"\",\"\",AN59/$C$59)","v":""},null,{"$f":"IF($C$59=\"\",\"\",AP59/$C$59)","v":""},null,{"$f":"IF($C$59=\"\",\"\",AR59/$C$59)","v":""},null,{"$f":"IF($C$59=\"\",\"\",AT59/$C$59)","v":""},null,{"$f":"IF($C$59=\"\",\"\",AV59/$C$59)","v":""},null,{"$f":"IF($C$59=\"\",\"\",AX59/$C$59)","v":""},null,{"$f":"IF($C$59=\"\",\"\",AZ59/$C$59)","v":""},null,{"$f":"IF($C$59=\"\",\"\",BB59/$C$59)","v":""},null,{"$f":"SUM(BB59,AZ59,AX59,AV59,AT59,AR59,AP59,AN59,AL59,AJ59,AH59,AF59,AD59,AB59,Z59,X59,V59,T59,R59,P59,N59,L59,J59,H59,F59)","v":0}]
["    3.2.2","    Digitize Feasibility Study Map (cable routing,\n    signals, camera locations)",null,null,{"$f":"IF($C$60=\"\",\"\",F60/$C$60)","v":""},null,{"$f":"IF($C$60=\"\",\"\",H60/$C$60)","v":""},null,{"$f":"IF($C$60=\"\",\"\",J60/$C$60)","v":""},null,{"$f":"IF($C$60=\"\",\"\",L60/$C$60)","v":""},null,{"$f":"IF($C$60=\"\",\"\",N60/$C$60)","v":""},null,{"$f":"IF($C$60=\"\",\"\",P60/$C$60)","v":""},null,{"$f":"IF($C$60=\"\",\"\",R60/$C$60)","v":""},null,{"$f":"IF($C$60=\"\",\"\",T60/$C$60)","v":""},null,{"$f":"IF($C$60=\"\",\"\",V60/$C$60)","v":""},null,{"$f":"IF($C$60=\"\",\"\",X60/$C$60)","v":""},null,{"$f":"IF($C$60=\"\",\"\",Z60/$C$60)","v":""},null,{"$f":"IF($C$60=\"\",\"\",AB60/$C$60)","v":""},null,{"$f":"IF($C$60=\"\",\"\",AD60/$C$60)","v":""},null,{"$f":"IF($C$60=\"\",\"\",AF60/$C$60)","v":""},null,{"$f":"IF($C$60=\"\",\"\",AH60/$C$60)","v":""},null,{"$f":"IF($C$60=\"\",\"\",AJ60/$C$60)","v":""},null,{"$f":"IF($C$60=\"\",\"\",AL60/$C$60)","v":""},null,{"$f":"IF($C$60=\"\",\"\",AN60/$C$60)","v":""},null,{"$f":"IF($C$60=\"\",\"\",AP60/$C$60)","v":""},null,{"$f":"IF($C$60=\"\",\"\",AR60/$C$60)","v":""},null,{"$f":"IF($C$60=\"\",\"\",AT60/$C$60)","v":""},null,{"$f":"IF($C$60=\"\",\"\",AV60/$C$60)","v":""},null,{"$f":"IF($C$60=\"\",\"\",AX60/$C$60)","v":""},null,{"$f":"IF($C$60=\"\",\"\",AZ60/$C$60)","v":""},null,{"$f":"IF($C$60=\"\",\"\",BB60/$C$60)","v":""},null,0]
["    3.2.3","    Add Planimetrics to Base Map",null,null,{"$f":"IF($C$61=\"\",\"\",F61/$C$61)","v":""},null,{"$f":"IF($C$61=\"\",\"\",H61/$C$61)","v":""},null,{"$f":"IF($C$61=\"\",\"\",J61/$C$61)","v":""},null,{"$f":"IF($C$61=\"\",\"\",L61/$C$61)","v":""},null,{"$f":"IF($C$61=\"\",\"\",N61/$C$61)","v":""},null,{"$f":"IF($C$61=\"\",\"\",P61/$C$61)","v":""},null,{"$f":"IF($C$61=\"\",\"\",R61/$C$61)","v":""},null,{"$f":"IF($C$61=\"\",\"\",T61/$C$61)","v":""},null,{"$f":"IF($C$61=\"\",\"\",V61/$C$61)","v":""},null,{"$f":"IF($C$61=\"\",\"\",X61/$C$61)","v":""},null,{"$f":"IF($C$61=\"\",\"\",Z61/$C$61)","v":""},null,{"$f":"IF($C$61=\"\",\"\",AB61/$C$61)","v":""},null,{"$f":"IF($C$61=\"\",\"\",AD61/$C$61)","v":""},null,{"$f":"IF($C$61=\"\",\"\",AF61/$C$61)","v":""},null,{"$f":"IF($C$61=\"\",\"\",AH61/$C$61)","v":""},null,{"$f":"IF($C$61=\"\",\"\",AJ61/$C$61)","v":""},null,{"$f":"IF($C$61=\"\",\"\",AL61/$C$61)","v":""},null,{"$f":"IF($C$61=\"\",\"\",AN61/$C$61)","v":""},null,{"$f":"IF($C$61=\"\",\"\",AP61/$C$61)","v":""},null,{"$f":"IF($C$61=\"\",\"\",AR61/$C$61)","v":""},null,{"$f":"IF($C$61=\"\",\"\",AT61/$C$61)","v":""},null,{"$f":"IF($C$61=\"\",\"\",AV61/$C$61)","v":""},null,{"$f":"IF($C$61=\"\",\"\",AX61/$C$61)","v":""},null,{"$f":"IF($C$61=\"\",\"\",AZ61/$C$61)","v":""},null,{"$f":"IF($C$61=\"\",\"\",BB61/$C$61)","v":""},null,0]
["    3.2.4","    Env. Features Layers (index, historic \n    districts/boundaries/structures, verify \n    community resources/correct autolabeling)",null,null,{"$f":"IF($C$62=\"\",\"\",F62/$C$62)","v":""},null,{"$f":"IF($C$62=\"\",\"\",H62/$C$62)","v":""},null,{"$f":"IF($C$62=\"\",\"\",J62/$C$62)","v":""},null,{"$f":"IF($C$62=\"\",\"\",L62/$C$62)","v":""},null,{"$f":"IF($C$62=\"\",\"\",N62/$C$62)","v":""},null,{"$f":"IF($C$62=\"\",\"\",P62/$C$62)","v":""},null,{"$f":"IF($C$62=\"\",\"\",R62/$C$62)","v":""},null,{"$f":"IF($C$62=\"\",\"\",T62/$C$62)","v":""},null,{"$f":"IF($C$62=\"\",\"\",V62/$C$62)","v":""},null,{"$f":"IF($C$62=\"\",\"\",X62/$C$62)","v":""},null,{"$f":"IF($C$62=\"\",\"\",Z62/$C$62)","v":""},null,{"$f":"IF($C$62=\"\",\"\",AB62/$C$62)","v":""},null,{"$f":"IF($C$62=\"\",\"\",AD62/$C$62)","v":""},null,{"$f":"IF($C$62=\"\",\"\",AF62/$C$62)","v":""},null,{"$f":"IF($C$62=\"\",\"\",AH62/$C$62)","v":""},null,{"$f":"IF($C$62=\"\",\"\",AJ62/$C$62)","v":""},null,{"$f":"IF($C$62=\"\",\"\",AL62/$C$62)","v":""},null,{"$f":"IF($C$62=\"\",\"\",AN62/$C$62)","v":""},null,{"$f":"IF($C$62=\"\",\"\",AP62/$C$62)","v":""},null,{"$f":"IF($C$62=\"\",\"\",AR62/$C$62)","v":""},null,{"$f":"IF($C$62=\"\",\"\",AT62/$C$62)","v":""},null,{"$f":"IF($C$62=\"\",\"\",AV62/$C$62)","v":""},null,{"$f":"IF($C$62=\"\",\"\",AX62/$C$62)","v":""},null,{"$f":"IF($C$62=\"\",\"\",AZ62/$C$62)","v":""},null,{"$f":"IF($C$62=\"\",\"\",BB62/$C$62)","v":""},null,0]
["    3.2.5","    Modifications Following Field Work",null,null,{"$f":"IF($C$63=\"\",\"\",F63/$C$63)","v":""},null,{"$f":"IF($C$63=\"\",\"\",H63/$C$63)","v":""},null,{"$f":"IF($C$63=\"\",\"\",J63/$C$63)","v":""},null,{"$f":"IF($C$63=\"\",\"\",L63/$C$63)","v":""},null,{"$f":"IF($C$63=\"\",\"\",N63/$C$63)","v":""},null,{"$f":"IF($C$63=\"\",\"\",P63/$C$63)","v":""},null,{"$f":"IF($C$63=\"\",\"\",R63/$C$63)","v":""},null,{"$f":"IF($C$63=\"\",\"\",T63/$C$63)","v":""},null,{"$f":"IF($C$63=\"\",\"\",V63/$C$63)","v":""},null,{"$f":"IF($C$63=\"\",\"\",X63/$C$63)","v":""},null,{"$f":"IF($C$63=\"\",\"\",Z63/$C$63)","v":""},null,{"$f":"IF($C$63=\"\",\"\",AB63/$C$63)","v":""},null,{"$f":"IF($C$63=\"\",\"\",AD63/$C$63)","v":""},null,{"$f":"IF($C$63=\"\",\"\",AF63/$C$63)","v":""},null,{"$f":"IF($C$63=\"\",\"\",AH63/$C$63)","v":""},null,{"$f":"IF($C$63=\"\",\"\",AJ63/$C$63)","v":""},null,{"$f":"IF($C$63=\"\",\"\",AL63/$C$63)","v":""},null,{"$f":"IF($C$63=\"\",\"\",AN63/$C$63)","v":""},null,{"$f":"IF($C$63=\"\",\"\",AP63/$C$63)","v":""},null,{"$f":"IF($C$63=\"\",\"\",AR63/$C$63)","v":""},null,{"$f":"IF($C$63=\"\",\"\",AT63/$C$63)","v":""},null,{"$f":"IF($C$63=\"\",\"\",AV63/$C$63)","v":""},null,{"$f":"IF($C$63=\"\",\"\",AX63/$C$63)","v":""},null,{"$f":"IF($C$63=\"\",\"\",AZ63/$C$63)","v":""},null,{"$f":"IF($C$63=\"\",\"\",BB63/$C$63)","v":""},null,0]
["    3.2.6","    Quad Map (needed for Archaeological and \n    Historic Architecture packets)",null,null,{"$f":"IF($C$64=\"\",\"\",F64/$C$64)","v":""},null,{"$f":"IF($C$64=\"\",\"\",H64/$C$64)","v":""},null,{"$f":"IF($C$64=\"\",\"\",J64/$C$64)","v":""},null,{"$f":"IF($C$64=\"\",\"\",L64/$C$64)","v":""},null,{"$f":"IF($C$64=\"\",\"\",N64/$C$64)","v":""},null,{"$f":"IF($C$64=\"\",\"\",P64/$C$64)","v":""},null,{"$f":"IF($C$64=\"\",\"\",R64/$C$64)","v":""},null,{"$f":"IF($C$64=\"\",\"\",T64/$C$64)","v":""},null,{"$f":"IF($C$64=\"\",\"\",V64/$C$64)","v":""},null,{"$f":"IF($C$64=\"\",\"\",X64/$C$64)","v":""},null,{"$f":"IF($C$64=\"\",\"\",Z64/$C$64)","v":""},null,{"$f":"IF($C$64=\"\",\"\",AB64/$C$64)","v":""},null,{"$f":"IF($C$64=\"\",\"\",AD64/$C$64)","v":""},null,{"$f":"IF($C$64=\"\",\"\",AF64/$C$64)","v":""},null,{"$f":"IF($C$64=\"\",\"\",AH64/$C$64)","v":""},null,{"$f":"IF($C$64=\"\",\"\",AJ64/$C$64)","v":""},null,{"$f":"IF($C$64=\"\",\"\",AL64/$C$64)","v":""},null,{"$f":"IF($C$64=\"\",\"\",AN64/$C$64)","v":""},null,{"$f":"IF($C$64=\"\",\"\",AP64/$C$64)","v":""},null,{"$f":"IF($C$64=\"\",\"\",AR64/$C$64)","v":""},null,{"$f":"IF($C$64=\"\",\"\",AT64/$C$64)","v":""},null,{"$f":"IF($C$64=\"\",\"\",AV64/$C$64)","v":""},null,{"$f":"IF($C$64=\"\",\"\",AX64/$C$64)","v":""},null,{"$f":"IF($C$64=\"\",\"\",AZ64/$C$64)","v":""},null,{"$f":"IF($C$64=\"\",\"\",BB64/$C$64)","v":""},null,0]
["    3.2.7",null,null,null,{"$f":"IF($C$65=\"\",\"\",F65/$C$65)","v":""},null,{"$f":"IF($C$65=\"\",\"\",H65/$C$65)","v":""},null,{"$f":"IF($C$65=\"\",\"\",J65/$C$65)","v":""},null,{"$f":"IF($C$65=\"\",\"\",L65/$C$65)","v":""},null,{"$f":"IF($C$65=\"\",\"\",N65/$C$65)","v":""},null,{"$f":"IF($C$65=\"\",\"\",P65/$C$65)","v":""},null,{"$f":"IF($C$65=\"\",\"\",R65/$C$65)","v":""},null,{"$f":"IF($C$65=\"\",\"\",T65/$C$65)","v":""},null,{"$f":"IF($C$65=\"\",\"\",V65/$C$65)","v":""},null,{"$f":"IF($C$65=\"\",\"\",X65/$C$65)","v":""},null,{"$f":"IF($C$65=\"\",\"\",Z65/$C$65)","v":""},null,{"$f":"IF($C$65=\"\",\"\",AB65/$C$65)","v":""},null,{"$f":"IF($C$65=\"\",\"\",AD65/$C$65)","v":""},null,{"$f":"IF($C$65=\"\",\"\",AF65/$C$65)","v":""},null,{"$f":"IF($C$65=\"\",\"\",AH65/$C$65)","v":""},null,{"$f":"IF($C$65=\"\",\"\",AJ65/$C$65)","v":""},null,{"$f":"IF($C$65=\"\",\"\",AL65/$C$65)","v":""},null,{"$f":"IF($C$65=\"\",\"\",AN65/$C$65)","v":""},null,{"$f":"IF($C$65=\"\",\"\",AP65/$C$65)","v":""},null,{"$f":"IF($C$65=\"\",\"\",AR65/$C$65)","v":""},null,{"$f":"IF($C$65=\"\",\"\",AT65/$C$65)","v":""},null,{"$f":"IF($C$65=\"\",\"\",AV65/$C$65)","v":""},null,{"$f":"IF($C$65=\"\",\"\",AX65/$C$65)","v":""},null,{"$f":"IF($C$65=\"\",\"\",AZ65/$C$65)","v":""},null,{"$f":"IF($C$65=\"\",\"\",BB65/$C$65)","v":""},null,0]
["    3.2.8",null,null,null,{"$f":"IF($C$66=\"\",\"\",F66/$C$66)","v":""},null,{"$f":"IF($C$66=\"\",\"\",H66/$C$66)","v":""},null,{"$f":"IF($C$66=\"\",\"\",J66/$C$66)","v":""},null,{"$f":"IF($C$66=\"\",\"\",L66/$C$66)","v":""},null,{"$f":"IF($C$66=\"\",\"\",N66/$C$66)","v":""},null,{"$f":"IF($C$66=\"\",\"\",P66/$C$66)","v":""},null,{"$f":"IF($C$66=\"\",\"\",R66/$C$66)","v":""},null,{"$f":"IF($C$66=\"\",\"\",T66/$C$66)","v":""},null,{"$f":"IF($C$66=\"\",\"\",V66/$C$66)","v":""},null,{"$f":"IF($C$66=\"\",\"\",X66/$C$66)","v":""},null,{"$f":"IF($C$66=\"\",\"\",Z66/$C$66)","v":""},null,{"$f":"IF($C$66=\"\",\"\",AB66/$C$66)","v":""},null,{"$f":"IF($C$66=\"\",\"\",AD66/$C$66)","v":""},null,{"$f":"IF($C$66=\"\",\"\",AF66/$C$66)","v":""},null,{"$f":"IF($C$66=\"\",\"\",AH66/$C$66)","v":""},null,{"$f":"IF($C$66=\"\",\"\",AJ66/$C$66)","v":""},null,{"$f":"IF($C$66=\"\",\"\",AL66/$C$66)","v":""},null,{"$f":"IF($C$66=\"\",\"\",AN66/$C$66)","v":""},null,{"$f":"IF($C$66=\"\",\"\",AP66/$C$66)","v":""},null,{"$f":"IF($C$66=\"\",\"\",AR66/$C$66)","v":""},null,{"$f":"IF($C$66=\"\",\"\",AT66/$C$66)","v":""},null,{"$f":"IF($C$66=\"\",\"\",AV66/$C$66)","v":""},null,{"$f":"IF($C$66=\"\",\"\",AX66/$C$66)","v":""},null,{"$f":"IF($C$66=\"\",\"\",AZ66/$C$66)","v":""},null,{"$f":"IF($C$66=\"\",\"\",BB66/$C$66)","v":""},null,0]
["    3.2.9",null,null,null,{"$f":"IF($C$67=\"\",\"\",F67/$C$67)","v":""},null,{"$f":"IF($C$67=\"\",\"\",H67/$C$67)","v":""},null,{"$f":"IF($C$67=\"\",\"\",J67/$C$67)","v":""},null,{"$f":"IF($C$67=\"\",\"\",L67/$C$67)","v":""},null,{"$f":"IF($C$67=\"\",\"\",N67/$C$67)","v":""},null,{"$f":"IF($C$67=\"\",\"\",P67/$C$67)","v":""},null,{"$f":"IF($C$67=\"\",\"\",R67/$C$67)","v":""},null,{"$f":"IF($C$67=\"\",\"\",T67/$C$67)","v":""},null,{"$f":"IF($C$67=\"\",\"\",V67/$C$67)","v":""},null,{"$f":"IF($C$67=\"\",\"\",X67/$C$67)","v":""},null,{"$f":"IF($C$67=\"\",\"\",Z67/$C$67)","v":""},null,{"$f":"IF($C$67=\"\",\"\",AB67/$C$67)","v":""},null,{"$f":"IF($C$67=\"\",\"\",AD67/$C$67)","v":""},null,{"$f":"IF($C$67=\"\",\"\",AF67/$C$67)","v":""},null,{"$f":"IF($C$67=\"\",\"\",AH67/$C$67)","v":""},null,{"$f":"IF($C$67=\"\",\"\",AJ67/$C$67)","v":""},null,{"$f":"IF($C$67=\"\",\"\",AL67/$C$67)","v":""},null,{"$f":"IF($C$67=\"\",\"\",AN67/$C$67)","v":""},null,{"$f":"IF($C$67=\"\",\"\",AP67/$C$67)","v":""},null,{"$f":"IF($C$67=\"\",\"\",AR67/$C$67)","v":""},null,{"$f":"IF($C$67=\"\",\"\",AT67/$C$67)","v":""},null,{"$f":"IF($C$67=\"\",\"\",AV67/$C$67)","v":""},null,{"$f":"IF($C$67=\"\",\"\",AX67/$C$67)","v":""},null,{"$f":"IF($C$67=\"\",\"\",AZ67/$C$67)","v":""},null,{"$f":"IF($C$67=\"\",\"\",BB67/$C$67)","v":""},null,0]
[3.3,"Historic Architecture"]
["    3.3.1","    Attend meetings with Local \n    Commission/NCDOT Historian/SHPO and \n    summarize (assume up to 3 meetings)",null,null,{"$f":"IF($C$69=\"\",\"\",F69/$C$69)","v":""},null,{"$f":"IF($C$69=\"\",\"\",H69/$C$69)","v":""},null,{"$f":"IF($C$69=\"\",\"\",J69/$C$69)","v":""},null,{"$f":"IF($C$69=\"\",\"\",L69/$C$69)","v":""},null,{"$f":"IF($C$69=\"\",\"\",N69/$C$69)","v":""},null,{"$f":"IF($C$69=\"\",\"\",P69/$C$69)","v":""},null,{"$f":"IF($C$69=\"\",\"\",R69/$C$69)","v":""},null,{"$f":"IF($C$69=\"\",\"\",T69/$C$69)","v":""},null,{"$f":"IF($C$69=\"\",\"\",V69/$C$69)","v":""},null,{"$f":"IF($C$69=\"\",\"\",X69/$C$69)","v":""},null,{"$f":"IF($C$69=\"\",\"\",Z69/$C$69)","v":""},null,{"$f":"IF($C$69=\"\",\"\",AB69/$C$69)","v":""},null,{"$f":"IF($C$69=\"\",\"\",AD69/$C$69)","v":""},null,{"$f":"IF($C$69=\"\",\"\",AF69/$C$69)","v":""},null,{"$f":"IF($C$69=\"\",\"\",AH69/$C$69)","v":""},null,{"$f":"IF($C$69=\"\",\"\",AJ69/$C$69)","v":""},null,{"$f":"IF($C$69=\"\",\"\",AL69/$C$69)","v":""},null,{"$f":"IF($C$69=\"\",\"\",AN69/$C$69)","v":""},null,{"$f":"IF($C$69=\"\",\"\",AP69/$C$69)","v":""},null,{"$f":"IF($C$69=\"\",\"\",AR69/$C$69)","v":""},null,{"$f":"IF($C$69=\"\",\"\",AT69/$C$69)","v":""},null,{"$f":"IF($C$69=\"\",\"\",AV69/$C$69)","v":""},null,{"$f":"IF($C$69=\"\",\"\",AX69/$C$69)","v":""},null,{"$f":"IF($C$69=\"\",\"\",AZ69/$C$69)","v":""},null,{"$f":"IF($C$69=\"\",\"\",BB69/$C$69)","v":""},null,{"$f":"SUM(BB69,AZ69,AX69,AV69,AT69,AR69,AP69,AN69,AL69,AJ69,AH69,AF69,AD69,AB69,Z69,X69,V69,T69,R69,P69,N69,L69,J69,H69,F69)","v":0}]
["    3.3.2","     PA Request Packet (Vicinity Map, PSA Map, \n    Quad Sheet, PA Cultural Resources Screening \n    Checklist)",null,null,{"$f":"IF($C$70=\"\",\"\",F70/$C$70)","v":""},null,{"$f":"IF($C$70=\"\",\"\",H70/$C$70)","v":""},null,{"$f":"IF($C$70=\"\",\"\",J70/$C$70)","v":""},null,{"$f":"IF($C$70=\"\",\"\",L70/$C$70)","v":""},null,{"$f":"IF($C$70=\"\",\"\",N70/$C$70)","v":""},null,{"$f":"IF($C$70=\"\",\"\",P70/$C$70)","v":""},null,{"$f":"IF($C$70=\"\",\"\",R70/$C$70)","v":""},null,{"$f":"IF($C$70=\"\",\"\",T70/$C$70)","v":""},null,{"$f":"IF($C$70=\"\",\"\",V70/$C$70)","v":""},null,{"$f":"IF($C$70=\"\",\"\",X70/$C$70)","v":""},null,{"$f":"IF($C$70=\"\",\"\",Z70/$C$70)","v":""},null,{"$f":"IF($C$70=\"\",\"\",AB70/$C$70)","v":""},null,{"$f":"IF($C$70=\"\",\"\",AD70/$C$70)","v":""},null,{"$f":"IF($C$70=\"\",\"\",AF70/$C$70)","v":""},null,{"$f":"IF($C$70=\"\",\"\",AH70/$C$70)","v":""},null,{"$f":"IF($C$70=\"\",\"\",AJ70/$C$70)","v":""},null,{"$f":"IF($C$70=\"\",\"\",AL70/$C$70)","v":""},null,{"$f":"IF($C$70=\"\",\"\",AN70/$C$70)","v":""},null,{"$f":"IF($C$70=\"\",\"\",AP70/$C$70)","v":""},null,{"$f":"IF($C$70=\"\",\"\",AR70/$C$70)","v":""},null,{"$f":"IF($C$70=\"\",\"\",AT70/$C$70)","v":""},null,{"$f":"IF($C$70=\"\",\"\",AV70/$C$70)","v":""},null,{"$f":"IF($C$70=\"\",\"\",AX70/$C$70)","v":""},null,{"$f":"IF($C$70=\"\",\"\",AZ70/$C$70)","v":""},null,{"$f":"IF($C$70=\"\",\"\",BB70/$C$70)","v":""},null,0]
["    3.3.3","    NCDOT Review of PA Request Packet/Address \n    comments/Submit to \"PA Tracker\"",null,null,{"$f":"IF($C$71=\"\",\"\",F71/$C$71)","v":""},null,{"$f":"IF($C$71=\"\",\"\",H71/$C$71)","v":""},null,{"$f":"IF($C$71=\"\",\"\",J71/$C$71)","v":""},null,{"$f":"IF($C$71=\"\",\"\",L71/$C$71)","v":""},null,{"$f":"IF($C$71=\"\",\"\",N71/$C$71)","v":""},null,{"$f":"IF($C$71=\"\",\"\",P71/$C$71)","v":""},null,{"$f":"IF($C$71=\"\",\"\",R71/$C$71)","v":""},null,{"$f":"IF($C$71=\"\",\"\",T71/$C$71)","v":""},null,{"$f":"IF($C$71=\"\",\"\",V71/$C$71)","v":""},null,{"$f":"IF($C$71=\"\",\"\",X71/$C$71)","v":""},null,{"$f":"IF($C$71=\"\",\"\",Z71/$C$71)","v":""},null,{"$f":"IF($C$71=\"\",\"\",AB71/$C$71)","v":""},null,{"$f":"IF($C$71=\"\",\"\",AD71/$C$71)","v":""},null,{"$f":"IF($C$71=\"\",\"\",AF71/$C$71)","v":""},null,{"$f":"IF($C$71=\"\",\"\",AH71/$C$71)","v":""},null,{"$f":"IF($C$71=\"\",\"\",AJ71/$C$71)","v":""},null,{"$f":"IF($C$71=\"\",\"\",AL71/$C$71)","v":""},null,{"$f":"IF($C$71=\"\",\"\",AN71/$C$71)","v":""},null,{"$f":"IF($C$71=\"\",\"\",AP71/$C$71)","v":""},null,{"$f":"IF($C$71=\"\",\"\",AR71/$C$71)","v":""},null,{"$f":"IF($C$71=\"\",\"\",AT71/$C$71)","v":""},null,{"$f":"IF($C$71=\"\",\"\",AV71/$C$71)","v":""},null,{"$f":"IF($C$71=\"\",\"\",AX71/$C$71)","v":""},null,{"$f":"IF($C$71=\"\",\"\",AZ71/$C$71)","v":""},null,{"$f":"IF($C$71=\"\",\"\",BB71/$C$71)","v":""},null,0]
["    3.3.4","    Coordination/Tabular Summaries of Signal \n    System Work Task",null,null,{"$f":"IF($C$72=\"\",\"\",F72/$C$72)","v":""},null,{"$f":"IF($C$72=\"\",\"\",H72/$C$72)","v":""},null,{"$f":"IF($C$72=\"\",\"\",J72/$C$72)","v":""},null,{"$f":"IF($C$72=\"\",\"\",L72/$C$72)","v":""},null,{"$f":"IF($C$72=\"\",\"\",N72/$C$72)","v":""},null,{"$f":"IF($C$72=\"\",\"\",P72/$C$72)","v":""},null,{"$f":"IF($C$72=\"\",\"\",R72/$C$72)","v":""},null,{"$f":"IF($C$72=\"\",\"\",T72/$C$72)","v":""},null,{"$f":"IF($C$72=\"\",\"\",V72/$C$72)","v":""},null,{"$f":"IF($C$72=\"\",\"\",X72/$C$72)","v":""},null,{"$f":"IF($C$72=\"\",\"\",Z72/$C$72)","v":""},null,{"$f":"IF($C$72=\"\",\"\",AB72/$C$72)","v":""},null,{"$f":"IF($C$72=\"\",\"\",AD72/$C$72)","v":""},null,{"$f":"IF($C$72=\"\",\"\",AF72/$C$72)","v":""},null,{"$f":"IF($C$72=\"\",\"\",AH72/$C$72)","v":""},null,{"$f":"IF($C$72=\"\",\"\",AJ72/$C$72)","v":""},null,{"$f":"IF($C$72=\"\",\"\",AL72/$C$72)","v":""},null,{"$f":"IF($C$72=\"\",\"\",AN72/$C$72)","v":""},null,{"$f":"IF($C$72=\"\",\"\",AP72/$C$72)","v":""},null,{"$f":"IF($C$72=\"\",\"\",AR72/$C$72)","v":""},null,{"$f":"IF($C$72=\"\",\"\",AT72/$C$72)","v":""},null,{"$f":"IF($C$72=\"\",\"\",AV72/$C$72)","v":""},null,{"$f":"IF($C$72=\"\",\"\",AX72/$C$72)","v":""},null,{"$f":"IF($C$72=\"\",\"\",AZ72/$C$72)","v":""},null,{"$f":"IF($C$72=\"\",\"\",BB72/$C$72)","v":""},null,0]
["    3.3.5",null,null,null,{"$f":"IF($C$73=\"\",\"\",F73/$C$73)","v":""},null,{"$f":"IF($C$73=\"\",\"\",H73/$C$73)","v":""},null,{"$f":"IF($C$73=\"\",\"\",J73/$C$73)","v":""},null,{"$f":"IF($C$73=\"\",\"\",L73/$C$73)","v":""},null,{"$f":"IF($C$73=\"\",\"\",N73/$C$73)","v":""},null,{"$f":"IF($C$73=\"\",\"\",P73/$C$73)","v":""},null,{"$f":"IF($C$73=\"\",\"\",R73/$C$73)","v":""},null,{"$f":"IF($C$73=\"\",\"\",T73/$C$73)","v":""},null,{"$f":"IF($C$73=\"\",\"\",V73/$C$73)","v":""},null,{"$f":"IF($C$73=\"\",\"\",X73/$C$73)","v":""},null,{"$f":"IF($C$73=\"\",\"\",Z73/$C$73)","v":""},null,{"$f":"IF($C$73=\"\",\"\",AB73/$C$73)","v":""},null,{"$f":"IF($C$73=\"\",\"\",AD73/$C$73)","v":""},null,{"$f":"IF($C$73=\"\",\"\",AF73/$C$73)","v":""},null,{"$f":"IF($C$73=\"\",\"\",AH73/$C$73)","v":""},null,{"$f":"IF($C$73=\"\",\"\",AJ73/$C$73)","v":""},null,{"$f":"IF($C$73=\"\",\"\",AL73/$C$73)","v":""},null,{"$f":"IF($C$73=\"\",\"\",AN73/$C$73)","v":""},null,{"$f":"IF($C$73=\"\",\"\",AP73/$C$73)","v":""},null,{"$f":"IF($C$73=\"\",\"\",AR73/$C$73)","v":""},null,{"$f":"IF($C$73=\"\",\"\",AT73/$C$73)","v":""},null,{"$f":"IF($C$73=\"\",\"\",AV73/$C$73)","v":""},null,{"$f":"IF($C$73=\"\",\"\",AX73/$C$73)","v":""},null,{"$f":"IF($C$73=\"\",\"\",AZ73/$C$73)","v":""},null,{"$f":"IF($C$73=\"\",\"\",BB73/$C$73)","v":""},null,0]
["    3.3.6",null,null,null,{"$f":"IF($C$74=\"\",\"\",F74/$C$74)","v":""},null,{"$f":"IF($C$74=\"\",\"\",H74/$C$74)","v":""},null,{"$f":"IF($C$74=\"\",\"\",J74/$C$74)","v":""},null,{"$f":"IF($C$74=\"\",\"\",L74/$C$74)","v":""},null,{"$f":"IF($C$74=\"\",\"\",N74/$C$74)","v":""},null,{"$f":"IF($C$74=\"\",\"\",P74/$C$74)","v":""},null,{"$f":"IF($C$74=\"\",\"\",R74/$C$74)","v":""},null,{"$f":"IF($C$74=\"\",\"\",T74/$C$74)","v":""},null,{"$f":"IF($C$74=\"\",\"\",V74/$C$74)","v":""},null,{"$f":"IF($C$74=\"\",\"\",X74/$C$74)","v":""},null,{"$f":"IF($C$74=\"\",\"\",Z74/$C$74)","v":""},null,{"$f":"IF($C$74=\"\",\"\",AB74/$C$74)","v":""},null,{"$f":"IF($C$74=\"\",\"\",AD74/$C$74)","v":""},null,{"$f":"IF($C$74=\"\",\"\",AF74/$C$74)","v":""},null,{"$f":"IF($C$74=\"\",\"\",AH74/$C$74)","v":""},null,{"$f":"IF($C$74=\"\",\"\",AJ74/$C$74)","v":""},null,{"$f":"IF($C$74=\"\",\"\",AL74/$C$74)","v":""},null,{"$f":"IF($C$74=\"\",\"\",AN74/$C$74)","v":""},null,{"$f":"IF($C$74=\"\",\"\",AP74/$C$74)","v":""},null,{"$f":"IF($C$74=\"\",\"\",AR74/$C$74)","v":""},null,{"$f":"IF($C$74=\"\",\"\",AT74/$C$74)","v":""},null,{"$f":"IF($C$74=\"\",\"\",AV74/$C$74)","v":""},null,{"$f":"IF($C$74=\"\",\"\",AX74/$C$74)","v":""},null,{"$f":"IF($C$74=\"\",\"\",AZ74/$C$74)","v":""},null,{"$f":"IF($C$74=\"\",\"\",BB74/$C$74)","v":""},null,0]
["    3.3.7",null,null,null,{"$f":"IF($C$75=\"\",\"\",F75/$C$75)","v":""},null,{"$f":"IF($C$75=\"\",\"\",H75/$C$75)","v":""},null,{"$f":"IF($C$75=\"\",\"\",J75/$C$75)","v":""},null,{"$f":"IF($C$75=\"\",\"\",L75/$C$75)","v":""},null,{"$f":"IF($C$75=\"\",\"\",N75/$C$75)","v":""},null,{"$f":"IF($C$75=\"\",\"\",P75/$C$75)","v":""},null,{"$f":"IF($C$75=\"\",\"\",R75/$C$75)","v":""},null,{"$f":"IF($C$75=\"\",\"\",T75/$C$75)","v":""},null,{"$f":"IF($C$75=\"\",\"\",V75/$C$75)","v":""},null,{"$f":"IF($C$75=\"\",\"\",X75/$C$75)","v":""},null,{"$f":"IF($C$75=\"\",\"\",Z75/$C$75)","v":""},null,{"$f":"IF($C$75=\"\",\"\",AB75/$C$75)","v":""},null,{"$f":"IF($C$75=\"\",\"\",AD75/$C$75)","v":""},null,{"$f":"IF($C$75=\"\",\"\",AF75/$C$75)","v":""},null,{"$f":"IF($C$75=\"\",\"\",AH75/$C$75)","v":""},null,{"$f":"IF($C$75=\"\",\"\",AJ75/$C$75)","v":""},null,{"$f":"IF($C$75=\"\",\"\",AL75/$C$75)","v":""},null,{"$f":"IF($C$75=\"\",\"\",AN75/$C$75)","v":""},null,{"$f":"IF($C$75=\"\",\"\",AP75/$C$75)","v":""},null,{"$f":"IF($C$75=\"\",\"\",AR75/$C$75)","v":""},null,{"$f":"IF($C$75=\"\",\"\",AT75/$C$75)","v":""},null,{"$f":"IF($C$75=\"\",\"\",AV75/$C$75)","v":""},null,{"$f":"IF($C$75=\"\",\"\",AX75/$C$75)","v":""},null,{"$f":"IF($C$75=\"\",\"\",AZ75/$C$75)","v":""},null,{"$f":"IF($C$75=\"\",\"\",BB75/$C$75)","v":""},null,0]
[3.4,"Noise Impacts / Air Quality",null,null,{"$f":"IF($C$76=\"\",\"\",F76/$C$76)","v":""},null,{"$f":"IF($C$76=\"\",\"\",H76/$C$76)","v":""},null,{"$f":"IF($C$76=\"\",\"\",J76/$C$76)","v":""},null,{"$f":"IF($C$76=\"\",\"\",L76/$C$76)","v":""},null,{"$f":"IF($C$76=\"\",\"\",N76/$C$76)","v":""},null,{"$f":"IF($C$76=\"\",\"\",P76/$C$76)","v":""},null,{"$f":"IF($C$76=\"\",\"\",R76/$C$76)","v":""},null,{"$f":"IF($C$76=\"\",\"\",T76/$C$76)","v":""},null,{"$f":"IF($C$76=\"\",\"\",V76/$C$76)","v":""},null,{"$f":"IF($C$76=\"\",\"\",X76/$C$76)","v":""},null,{"$f":"IF($C$76=\"\",\"\",Z76/$C$76)","v":""},null,{"$f":"IF($C$76=\"\",\"\",AB76/$C$76)","v":""},null,{"$f":"IF($C$76=\"\",\"\",AD76/$C$76)","v":""},null,{"$f":"IF($C$76=\"\",\"\",AF76/$C$76)","v":""},null,{"$f":"IF($C$76=\"\",\"\",AH76/$C$76)","v":""},null,{"$f":"IF($C$76=\"\",\"\",AJ76/$C$76)","v":""},null,{"$f":"IF($C$76=\"\",\"\",AL76/$C$76)","v":""},null,{"$f":"IF($C$76=\"\",\"\",AN76/$C$76)","v":""},null,{"$f":"IF($C$76=\"\",\"\",AP76/$C$76)","v":""},null,{"$f":"IF($C$76=\"\",\"\",AR76/$C$76)","v":""},null,{"$f":"IF($C$76=\"\",\"\",AT76/$C$76)","v":""},null,{"$f":"IF($C$76=\"\",\"\",AV76/$C$76)","v":""},null,{"$f":"IF($C$76=\"\",\"\",AX76/$C$76)","v":""},null,{"$f":"IF($C$76=\"\",\"\",AZ76/$C$76)","v":""},null,{"$f":"IF($C$76=\"\",\"\",BB76/$C$76)","v":""},null,0]
[3.5,"Community Studies"]
["    3.5.1","    Obtain GIS Data Sets (minority, low income, \n    LEP)/create census demographic tables",null,null,{"$f":"IF($C$78=\"\",\"\",F78/$C$78)","v":""},null,{"$f":"IF($C$78=\"\",\"\",H78/$C$78)","v":""},null,{"$f":"IF($C$78=\"\",\"\",J78/$C$78)","v":""},null,{"$f":"IF($C$78=\"\",\"\",L78/$C$78)","v":""},null,{"$f":"IF($C$78=\"\",\"\",N78/$C$78)","v":""},null,{"$f":"IF($C$78=\"\",\"\",P78/$C$78)","v":""},null,{"$f":"IF($C$78=\"\",\"\",R78/$C$78)","v":""},null,{"$f":"IF($C$78=\"\",\"\",T78/$C$78)","v":""},null,{"$f":"IF($C$78=\"\",\"\",V78/$C$78)","v":""},null,{"$f":"IF($C$78=\"\",\"\",X78/$C$78)","v":""},null,{"$f":"IF($C$78=\"\",\"\",Z78/$C$78)","v":""},null,{"$f":"IF($C$78=\"\",\"\",AB78/$C$78)","v":""},null,{"$f":"IF($C$78=\"\",\"\",AD78/$C$78)","v":""},null,{"$f":"IF($C$78=\"\",\"\",AF78/$C$78)","v":""},null,{"$f":"IF($C$78=\"\",\"\",AH78/$C$78)","v":""},null,{"$f":"IF($C$78=\"\",\"\",AJ78/$C$78)","v":""},null,{"$f":"IF($C$78=\"\",\"\",AL78/$C$78)","v":""},null,{"$f":"IF($C$78=\"\",\"\",AN78/$C$78)","v":""},null,{"$f":"IF($C$78=\"\",\"\",AP78/$C$78)","v":""},null,{"$f":"IF($C$78=\"\",\"\",AR78/$C$78)","v":""},null,{"$f":"IF($C$78=\"\",\"\",AT78/$C$78)","v":""},null,{"$f":"IF($C$78=\"\",\"\",AV78/$C$78)","v":""},null,{"$f":"IF($C$78=\"\",\"\",AX78/$C$78)","v":""},null,{"$f":"IF($C$78=\"\",\"\",AZ78/$C$78)","v":""},null,{"$f":"IF($C$78=\"\",\"\",BB78/$C$78)","v":""},null,{"$f":"SUM(BB78,AZ78,AX78,AV78,AT78,AR78,AP78,AN78,AL78,AJ78,AH78,AF78,AD78,AB78,Z78,X78,V78,T78,R78,P78,N78,L78,J78,H78,F78)","v":0}]
["    3.5.2","    Q/C tables",null,null,{"$f":"IF($C$79=\"\",\"\",F79/$C$79)","v":""},null,{"$f":"IF($C$79=\"\",\"\",H79/$C$79)","v":""},null,{"$f":"IF($C$79=\"\",\"\",J79/$C$79)","v":""},null,{"$f":"IF($C$79=\"\",\"\",L79/$C$79)","v":""},null,{"$f":"IF($C$79=\"\",\"\",N79/$C$79)","v":""},null,{"$f":"IF($C$79=\"\",\"\",P79/$C$79)","v":""},null,{"$f":"IF($C$79=\"\",\"\",R79/$C$79)","v":""},null,{"$f":"IF($C$79=\"\",\"\",T79/$C$79)","v":""},null,{"$f":"IF($C$79=\"\",\"\",V79/$C$79)","v":""},null,{"$f":"IF($C$79=\"\",\"\",X79/$C$79)","v":""},null,{"$f":"IF($C$79=\"\",\"\",Z79/$C$79)","v":""},null,{"$f":"IF($C$79=\"\",\"\",AB79/$C$79)","v":""},null,{"$f":"IF($C$79=\"\",\"\",AD79/$C$79)","v":""},null,{"$f":"IF($C$79=\"\",\"\",AF79/$C$79)","v":""},null,{"$f":"IF($C$79=\"\",\"\",AH79/$C$79)","v":""},null,{"$f":"IF($C$79=\"\",\"\",AJ79/$C$79)","v":""},null,{"$f":"IF($C$79=\"\",\"\",AL79/$C$79)","v":""},null,{"$f":"IF($C$79=\"\",\"\",AN79/$C$79)","v":""},null,{"$f":"IF($C$79=\"\",\"\",AP79/$C$79)","v":""},null,{"$f":"IF($C$79=\"\",\"\",AR79/$C$79)","v":""},null,{"$f":"IF($C$79=\"\",\"\",AT79/$C$79)","v":""},null,{"$f":"IF($C$79=\"\",\"\",AV79/$C$79)","v":""},null,{"$f":"IF($C$79=\"\",\"\",AX79/$C$79)","v":""},null,{"$f":"IF($C$79=\"\",\"\",AZ79/$C$79)","v":""},null,{"$f":"IF($C$79=\"\",\"\",BB79/$C$79)","v":""},null,0]
["    3.5.3","    Develop mapping of DSA",null,null,{"$f":"IF($C$80=\"\",\"\",F80/$C$80)","v":""},null,{"$f":"IF($C$80=\"\",\"\",H80/$C$80)","v":""},null,{"$f":"IF($C$80=\"\",\"\",J80/$C$80)","v":""},null,{"$f":"IF($C$80=\"\",\"\",L80/$C$80)","v":""},null,{"$f":"IF($C$80=\"\",\"\",N80/$C$80)","v":""},null,{"$f":"IF($C$80=\"\",\"\",P80/$C$80)","v":""},null,{"$f":"IF($C$80=\"\",\"\",R80/$C$80)","v":""},null,{"$f":"IF($C$80=\"\",\"\",T80/$C$80)","v":""},null,{"$f":"IF($C$80=\"\",\"\",V80/$C$80)","v":""},null,{"$f":"IF($C$80=\"\",\"\",X80/$C$80)","v":""},null,{"$f":"IF($C$80=\"\",\"\",Z80/$C$80)","v":""},null,{"$f":"IF($C$80=\"\",\"\",AB80/$C$80)","v":""},null,{"$f":"IF($C$80=\"\",\"\",AD80/$C$80)","v":""},null,{"$f":"IF($C$80=\"\",\"\",AF80/$C$80)","v":""},null,{"$f":"IF($C$80=\"\",\"\",AH80/$C$80)","v":""},null,{"$f":"IF($C$80=\"\",\"\",AJ80/$C$80)","v":""},null,{"$f":"IF($C$80=\"\",\"\",AL80/$C$80)","v":""},null,{"$f":"IF($C$80=\"\",\"\",AN80/$C$80)","v":""},null,{"$f":"IF($C$80=\"\",\"\",AP80/$C$80)","v":""},null,{"$f":"IF($C$80=\"\",\"\",AR80/$C$80)","v":""},null,{"$f":"IF($C$80=\"\",\"\",AT80/$C$80)","v":""},null,{"$f":"IF($C$80=\"\",\"\",AV80/$C$80)","v":""},null,{"$f":"IF($C$80=\"\",\"\",AX80/$C$80)","v":""},null,{"$f":"IF($C$80=\"\",\"\",AZ80/$C$80)","v":""},null,{"$f":"IF($C$80=\"\",\"\",BB80/$C$80)","v":""},null,0]
["    3.5.4","    Assess potential for community impacts",null,null,{"$f":"IF($C$81=\"\",\"\",F81/$C$81)","v":""},null,{"$f":"IF($C$81=\"\",\"\",H81/$C$81)","v":""},null,{"$f":"IF($C$81=\"\",\"\",J81/$C$81)","v":""},null,{"$f":"IF($C$81=\"\",\"\",L81/$C$81)","v":""},null,{"$f":"IF($C$81=\"\",\"\",N81/$C$81)","v":""},null,{"$f":"IF($C$81=\"\",\"\",P81/$C$81)","v":""},null,{"$f":"IF($C$81=\"\",\"\",R81/$C$81)","v":""},null,{"$f":"IF($C$81=\"\",\"\",T81/$C$81)","v":""},null,{"$f":"IF($C$81=\"\",\"\",V81/$C$81)","v":""},null,{"$f":"IF($C$81=\"\",\"\",X81/$C$81)","v":""},null,{"$f":"IF($C$81=\"\",\"\",Z81/$C$81)","v":""},null,{"$f":"IF($C$81=\"\",\"\",AB81/$C$81)","v":""},null,{"$f":"IF($C$81=\"\",\"\",AD81/$C$81)","v":""},null,{"$f":"IF($C$81=\"\",\"\",AF81/$C$81)","v":""},null,{"$f":"IF($C$81=\"\",\"\",AH81/$C$81)","v":""},null,{"$f":"IF($C$81=\"\",\"\",AJ81/$C$81)","v":""},null,{"$f":"IF($C$81=\"\",\"\",AL81/$C$81)","v":""},null,{"$f":"IF($C$81=\"\",\"\",AN81/$C$81)","v":""},null,{"$f":"IF($C$81=\"\",\"\",AP81/$C$81)","v":""},null,{"$f":"IF($C$81=\"\",\"\",AR81/$C$81)","v":""},null,{"$f":"IF($C$81=\"\",\"\",AT81/$C$81)","v":""},null,{"$f":"IF($C$81=\"\",\"\",AV81/$C$81)","v":""},null,{"$f":"IF($C$81=\"\",\"\",AX81/$C$81)","v":""},null,{"$f":"IF($C$81=\"\",\"\",AZ81/$C$81)","v":""},null,{"$f":"IF($C$81=\"\",\"\",BB81/$C$81)","v":""},null,0]
["    3.5.5","    Document findings in memo/Submit to     \n    NCDOT/Address Comments/Finalize",null,null,{"$f":"IF($C$82=\"\",\"\",F82/$C$82)","v":""},null,{"$f":"IF($C$82=\"\",\"\",H82/$C$82)","v":""},null,{"$f":"IF($C$82=\"\",\"\",J82/$C$82)","v":""},null,{"$f":"IF($C$82=\"\",\"\",L82/$C$82)","v":""},null,{"$f":"IF($C$82=\"\",\"\",N82/$C$82)","v":""},null,{"$f":"IF($C$82=\"\",\"\",P82/$C$82)","v":""},null,{"$f":"IF($C$82=\"\",\"\",R82/$C$82)","v":""},null,{"$f":"IF($C$82=\"\",\"\",T82/$C$82)","v":""},null,{"$f":"IF($C$82=\"\",\"\",V82/$C$82)","v":""},null,{"$f":"IF($C$82=\"\",\"\",X82/$C$82)","v":""},null,{"$f":"IF($C$82=\"\",\"\",Z82/$C$82)","v":""},null,{"$f":"IF($C$82=\"\",\"\",AB82/$C$82)","v":""},null,{"$f":"IF($C$82=\"\",\"\",AD82/$C$82)","v":""},null,{"$f":"IF($C$82=\"\",\"\",AF82/$C$82)","v":""},null,{"$f":"IF($C$82=\"\",\"\",AH82/$C$82)","v":""},null,{"$f":"IF($C$82=\"\",\"\",AJ82/$C$82)","v":""},null,{"$f":"IF($C$82=\"\",\"\",AL82/$C$82)","v":""},null,{"$f":"IF($C$82=\"\",\"\",AN82/$C$82)","v":""},null,{"$f":"IF($C$82=\"\",\"\",AP82/$C$82)","v":""},null,{"$f":"IF($C$82=\"\",\"\",AR82/$C$82)","v":""},null,{"$f":"IF($C$82=\"\",\"\",AT82/$C$82)","v":""},null,{"$f":"IF($C$82=\"\",\"\",AV82/$C$82)","v":""},null,{"$f":"IF($C$82=\"\",\"\",AX82/$C$82)","v":""},null,{"$f":"IF($C$82=\"\",\"\",AZ82/$C$82)","v":""},null,{"$f":"IF($C$82=\"\",\"\",BB82/$C$82)","v":""},null,0]
["    3.5.6","    Review project/environmental mapping for \n    Section 4(f)/6(f) properties",null,null,{"$f":"IF($C$83=\"\",\"\",F83/$C$83)","v":""},null,{"$f":"IF($C$83=\"\",\"\",H83/$C$83)","v":""},null,{"$f":"IF($C$83=\"\",\"\",J83/$C$83)","v":""},null,{"$f":"IF($C$83=\"\",\"\",L83/$C$83)","v":""},null,{"$f":"IF($C$83=\"\",\"\",N83/$C$83)","v":""},null,{"$f":"IF($C$83=\"\",\"\",P83/$C$83)","v":""},null,{"$f":"IF($C$83=\"\",\"\",R83/$C$83)","v":""},null,{"$f":"IF($C$83=\"\",\"\",T83/$C$83)","v":""},null,{"$f":"IF($C$83=\"\",\"\",V83/$C$83)","v":""},null,{"$f":"IF($C$83=\"\",\"\",X83/$C$83)","v":""},null,{"$f":"IF($C$83=\"\",\"\",Z83/$C$83)","v":""},null,{"$f":"IF($C$83=\"\",\"\",AB83/$C$83)","v":""},null,{"$f":"IF($C$83=\"\",\"\",AD83/$C$83)","v":""},null,{"$f":"IF($C$83=\"\",\"\",AF83/$C$83)","v":""},null,{"$f":"IF($C$83=\"\",\"\",AH83/$C$83)","v":""},null,{"$f":"IF($C$83=\"\",\"\",AJ83/$C$83)","v":""},null,{"$f":"IF($C$83=\"\",\"\",AL83/$C$83)","v":""},null,{"$f":"IF($C$83=\"\",\"\",AN83/$C$83)","v":""},null,{"$f":"IF($C$83=\"\",\"\",AP83/$C$83)","v":""},null,{"$f":"IF($C$83=\"\",\"\",AR83/$C$83)","v":""},null,{"$f":"IF($C$83=\"\",\"\",AT83/$C$83)","v":""},null,{"$f":"IF($C$83=\"\",\"\",AV83/$C$83)","v":""},null,{"$f":"IF($C$83=\"\",\"\",AX83/$C$83)","v":""},null,{"$f":"IF($C$83=\"\",\"\",AZ83/$C$83)","v":""},null,{"$f":"IF($C$83=\"\",\"\",BB83/$C$83)","v":""},null,0]
["    3.5.7","    Hold meetings with County Parks and \n    Recreation and summarize ",null,null,{"$f":"IF($C$84=\"\",\"\",F84/$C$84)","v":""},null,{"$f":"IF($C$84=\"\",\"\",H84/$C$84)","v":""},null,{"$f":"IF($C$84=\"\",\"\",J84/$C$84)","v":""},null,{"$f":"IF($C$84=\"\",\"\",L84/$C$84)","v":""},null,{"$f":"IF($C$84=\"\",\"\",N84/$C$84)","v":""},null,{"$f":"IF($C$84=\"\",\"\",P84/$C$84)","v":""},null,{"$f":"IF($C$84=\"\",\"\",R84/$C$84)","v":""},null,{"$f":"IF($C$84=\"\",\"\",T84/$C$84)","v":""},null,{"$f":"IF($C$84=\"\",\"\",V84/$C$84)","v":""},null,{"$f":"IF($C$84=\"\",\"\",X84/$C$84)","v":""},null,{"$f":"IF($C$84=\"\",\"\",Z84/$C$84)","v":""},null,{"$f":"IF($C$84=\"\",\"\",AB84/$C$84)","v":""},null,{"$f":"IF($C$84=\"\",\"\",AD84/$C$84)","v":""},null,{"$f":"IF($C$84=\"\",\"\",AF84/$C$84)","v":""},null,{"$f":"IF($C$84=\"\",\"\",AH84/$C$84)","v":""},null,{"$f":"IF($C$84=\"\",\"\",AJ84/$C$84)","v":""},null,{"$f":"IF($C$84=\"\",\"\",AL84/$C$84)","v":""},null,{"$f":"IF($C$84=\"\",\"\",AN84/$C$84)","v":""},null,{"$f":"IF($C$84=\"\",\"\",AP84/$C$84)","v":""},null,{"$f":"IF($C$84=\"\",\"\",AR84/$C$84)","v":""},null,{"$f":"IF($C$84=\"\",\"\",AT84/$C$84)","v":""},null,{"$f":"IF($C$84=\"\",\"\",AV84/$C$84)","v":""},null,{"$f":"IF($C$84=\"\",\"\",AX84/$C$84)","v":""},null,{"$f":"IF($C$84=\"\",\"\",AZ84/$C$84)","v":""},null,{"$f":"IF($C$84=\"\",\"\",BB84/$C$84)","v":""},null,0]
["    3.5.8",null,null,null,{"$f":"IF($C$85=\"\",\"\",F85/$C$85)","v":""},null,{"$f":"IF($C$85=\"\",\"\",H85/$C$85)","v":""},null,{"$f":"IF($C$85=\"\",\"\",J85/$C$85)","v":""},null,{"$f":"IF($C$85=\"\",\"\",L85/$C$85)","v":""},null,{"$f":"IF($C$85=\"\",\"\",N85/$C$85)","v":""},null,{"$f":"IF($C$85=\"\",\"\",P85/$C$85)","v":""},null,{"$f":"IF($C$85=\"\",\"\",R85/$C$85)","v":""},null,{"$f":"IF($C$85=\"\",\"\",T85/$C$85)","v":""},null,{"$f":"IF($C$85=\"\",\"\",V85/$C$85)","v":""},null,{"$f":"IF($C$85=\"\",\"\",X85/$C$85)","v":""},null,{"$f":"IF($C$85=\"\",\"\",Z85/$C$85)","v":""},null,{"$f":"IF($C$85=\"\",\"\",AB85/$C$85)","v":""},null,{"$f":"IF($C$85=\"\",\"\",AD85/$C$85)","v":""},null,{"$f":"IF($C$85=\"\",\"\",AF85/$C$85)","v":""},null,{"$f":"IF($C$85=\"\",\"\",AH85/$C$85)","v":""},null,{"$f":"IF($C$85=\"\",\"\",AJ85/$C$85)","v":""},null,{"$f":"IF($C$85=\"\",\"\",AL85/$C$85)","v":""},null,{"$f":"IF($C$85=\"\",\"\",AN85/$C$85)","v":""},null,{"$f":"IF($C$85=\"\",\"\",AP85/$C$85)","v":""},null,{"$f":"IF($C$85=\"\",\"\",AR85/$C$85)","v":""},null,{"$f":"IF($C$85=\"\",\"\",AT85/$C$85)","v":""},null,{"$f":"IF($C$85=\"\",\"\",AV85/$C$85)","v":""},null,{"$f":"IF($C$85=\"\",\"\",AX85/$C$85)","v":""},null,{"$f":"IF($C$85=\"\",\"\",AZ85/$C$85)","v":""},null,{"$f":"IF($C$85=\"\",\"\",BB85/$C$85)","v":""},null,0]
["    3.5.9",null,null,null,{"$f":"IF($C$86=\"\",\"\",F86/$C$86)","v":""},null,{"$f":"IF($C$86=\"\",\"\",H86/$C$86)","v":""},null,{"$f":"IF($C$86=\"\",\"\",J86/$C$86)","v":""},null,{"$f":"IF($C$86=\"\",\"\",L86/$C$86)","v":""},null,{"$f":"IF($C$86=\"\",\"\",N86/$C$86)","v":""},null,{"$f":"IF($C$86=\"\",\"\",P86/$C$86)","v":""},null,{"$f":"IF($C$86=\"\",\"\",R86/$C$86)","v":""},null,{"$f":"IF($C$86=\"\",\"\",T86/$C$86)","v":""},null,{"$f":"IF($C$86=\"\",\"\",V86/$C$86)","v":""},null,{"$f":"IF($C$86=\"\",\"\",X86/$C$86)","v":""},null,{"$f":"IF($C$86=\"\",\"\",Z86/$C$86)","v":""},null,{"$f":"IF($C$86=\"\",\"\",AB86/$C$86)","v":""},null,{"$f":"IF($C$86=\"\",\"\",AD86/$C$86)","v":""},null,{"$f":"IF($C$86=\"\",\"\",AF86/$C$86)","v":""},null,{"$f":"IF($C$86=\"\",\"\",AH86/$C$86)","v":""},null,{"$f":"IF($C$86=\"\",\"\",AJ86/$C$86)","v":""},null,{"$f":"IF($C$86=\"\",\"\",AL86/$C$86)","v":""},null,{"$f":"IF($C$86=\"\",\"\",AN86/$C$86)","v":""},null,{"$f":"IF($C$86=\"\",\"\",AP86/$C$86)","v":""},null,{"$f":"IF($C$86=\"\",\"\",AR86/$C$86)","v":""},null,{"$f":"IF($C$86=\"\",\"\",AT86/$C$86)","v":""},null,{"$f":"IF($C$86=\"\",\"\",AV86/$C$86)","v":""},null,{"$f":"IF($C$86=\"\",\"\",AX86/$C$86)","v":""},null,{"$f":"IF($C$86=\"\",\"\",AZ86/$C$86)","v":""},null,{"$f":"IF($C$86=\"\",\"\",BB86/$C$86)","v":""},null,0]
["    3.5.10",null,null,null,{"$f":"IF($C$87=\"\",\"\",F87/$C$87)","v":""},null,{"$f":"IF($C$87=\"\",\"\",H87/$C$87)","v":""},null,{"$f":"IF($C$87=\"\",\"\",J87/$C$87)","v":""},null,{"$f":"IF($C$87=\"\",\"\",L87/$C$87)","v":""},null,{"$f":"IF($C$87=\"\",\"\",N87/$C$87)","v":""},null,{"$f":"IF($C$87=\"\",\"\",P87/$C$87)","v":""},null,{"$f":"IF($C$87=\"\",\"\",R87/$C$87)","v":""},null,{"$f":"IF($C$87=\"\",\"\",T87/$C$87)","v":""},null,{"$f":"IF($C$87=\"\",\"\",V87/$C$87)","v":""},null,{"$f":"IF($C$87=\"\",\"\",X87/$C$87)","v":""},null,{"$f":"IF($C$87=\"\",\"\",Z87/$C$87)","v":""},null,{"$f":"IF($C$87=\"\",\"\",AB87/$C$87)","v":""},null,{"$f":"IF($C$87=\"\",\"\",AD87/$C$87)","v":""},null,{"$f":"IF($C$87=\"\",\"\",AF87/$C$87)","v":""},null,{"$f":"IF($C$87=\"\",\"\",AH87/$C$87)","v":""},null,{"$f":"IF($C$87=\"\",\"\",AJ87/$C$87)","v":""},null,{"$f":"IF($C$87=\"\",\"\",AL87/$C$87)","v":""},null,{"$f":"IF($C$87=\"\",\"\",AN87/$C$87)","v":""},null,{"$f":"IF($C$87=\"\",\"\",AP87/$C$87)","v":""},null,{"$f":"IF($C$87=\"\",\"\",AR87/$C$87)","v":""},null,{"$f":"IF($C$87=\"\",\"\",AT87/$C$87)","v":""},null,{"$f":"IF($C$87=\"\",\"\",AV87/$C$87)","v":""},null,{"$f":"IF($C$87=\"\",\"\",AX87/$C$87)","v":""},null,{"$f":"IF($C$87=\"\",\"\",AZ87/$C$87)","v":""},null,{"$f":"IF($C$87=\"\",\"\",BB87/$C$87)","v":""},null,0]
[3.6,"Hazardous Materials"]
["    3.6.1","    Coordinate with GeoEnvironmental Unit for \n    requirements/Prepare Memo ",null,null,{"$f":"IF($C$89=\"\",\"\",F89/$C$89)","v":""},null,{"$f":"IF($C$89=\"\",\"\",H89/$C$89)","v":""},null,{"$f":"IF($C$89=\"\",\"\",J89/$C$89)","v":""},null,{"$f":"IF($C$89=\"\",\"\",L89/$C$89)","v":""},null,{"$f":"IF($C$89=\"\",\"\",N89/$C$89)","v":""},null,{"$f":"IF($C$89=\"\",\"\",P89/$C$89)","v":""},null,{"$f":"IF($C$89=\"\",\"\",R89/$C$89)","v":""},null,{"$f":"IF($C$89=\"\",\"\",T89/$C$89)","v":""},null,{"$f":"IF($C$89=\"\",\"\",V89/$C$89)","v":""},null,{"$f":"IF($C$89=\"\",\"\",X89/$C$89)","v":""},null,{"$f":"IF($C$89=\"\",\"\",Z89/$C$89)","v":""},null,{"$f":"IF($C$89=\"\",\"\",AB89/$C$89)","v":""},null,{"$f":"IF($C$89=\"\",\"\",AD89/$C$89)","v":""},null,{"$f":"IF($C$89=\"\",\"\",AF89/$C$89)","v":""},null,{"$f":"IF($C$89=\"\",\"\",AH89/$C$89)","v":""},null,{"$f":"IF($C$89=\"\",\"\",AJ89/$C$89)","v":""},null,{"$f":"IF($C$89=\"\",\"\",AL89/$C$89)","v":""},null,{"$f":"IF($C$89=\"\",\"\",AN89/$C$89)","v":""},null,{"$f":"IF($C$89=\"\",\"\",AP89/$C$89)","v":""},null,{"$f":"IF($C$89=\"\",\"\",AR89/$C$89)","v":""},null,{"$f":"IF($C$89=\"\",\"\",AT89/$C$89)","v":""},null,{"$f":"IF($C$89=\"\",\"\",AV89/$C$89)","v":""},null,{"$f":"IF($C$89=\"\",\"\",AX89/$C$89)","v":""},null,{"$f":"IF($C$89=\"\",\"\",AZ89/$C$89)","v":""},null,{"$f":"IF($C$89=\"\",\"\",BB89/$C$89)","v":""},null,{"$f":"SUM(BB89,AZ89,AX89,AV89,AT89,AR89,AP89,AN89,AL89,AJ89,AH89,AF89,AD89,AB89,Z89,X89,V89,T89,R89,P89,N89,L89,J89,H89,F89)","v":0}]
["    3.6.2",null,null,null,{"$f":"IF($C$90=\"\",\"\",F90/$C$90)","v":""},null,{"$f":"IF($C$90=\"\",\"\",H90/$C$90)","v":""},null,{"$f":"IF($C$90=\"\",\"\",J90/$C$90)","v":""},null,{"$f":"IF($C$90=\"\",\"\",L90/$C$90)","v":""},null,{"$f":"IF($C$90=\"\",\"\",N90/$C$90)","v":""},null,{"$f":"IF($C$90=\"\",\"\",P90/$C$90)","v":""},null,{"$f":"IF($C$90=\"\",\"\",R90/$C$90)","v":""},null,{"$f":"IF($C$90=\"\",\"\",T90/$C$90)","v":""},null,{"$f":"IF($C$90=\"\",\"\",V90/$C$90)","v":""},null,{"$f":"IF($C$90=\"\",\"\",X90/$C$90)","v":""},null,{"$f":"IF($C$90=\"\",\"\",Z90/$C$90)","v":""},null,{"$f":"IF($C$90=\"\",\"\",AB90/$C$90)","v":""},null,{"$f":"IF($C$90=\"\",\"\",AD90/$C$90)","v":""},null,{"$f":"IF($C$90=\"\",\"\",AF90/$C$90)","v":""},null,{"$f":"IF($C$90=\"\",\"\",AH90/$C$90)","v":""},null,{"$f":"IF($C$90=\"\",\"\",AJ90/$C$90)","v":""},null,{"$f":"IF($C$90=\"\",\"\",AL90/$C$90)","v":""},null,{"$f":"IF($C$90=\"\",\"\",AN90/$C$90)","v":""},null,{"$f":"IF($C$90=\"\",\"\",AP90/$C$90)","v":""},null,{"$f":"IF($C$90=\"\",\"\",AR90/$C$90)","v":""},null,{"$f":"IF($C$90=\"\",\"\",AT90/$C$90)","v":""},null,{"$f":"IF($C$90=\"\",\"\",AV90/$C$90)","v":""},null,{"$f":"IF($C$90=\"\",\"\",AX90/$C$90)","v":""},null,{"$f":"IF($C$90=\"\",\"\",AZ90/$C$90)","v":""},null,{"$f":"IF($C$90=\"\",\"\",BB90/$C$90)","v":""},null,0]
["    3.6.3",null,null,null,{"$f":"IF($C$91=\"\",\"\",F91/$C$91)","v":""},null,{"$f":"IF($C$91=\"\",\"\",H91/$C$91)","v":""},null,{"$f":"IF($C$91=\"\",\"\",J91/$C$91)","v":""},null,{"$f":"IF($C$91=\"\",\"\",L91/$C$91)","v":""},null,{"$f":"IF($C$91=\"\",\"\",N91/$C$91)","v":""},null,{"$f":"IF($C$91=\"\",\"\",P91/$C$91)","v":""},null,{"$f":"IF($C$91=\"\",\"\",R91/$C$91)","v":""},null,{"$f":"IF($C$91=\"\",\"\",T91/$C$91)","v":""},null,{"$f":"IF($C$91=\"\",\"\",V91/$C$91)","v":""},null,{"$f":"IF($C$91=\"\",\"\",X91/$C$91)","v":""},null,{"$f":"IF($C$91=\"\",\"\",Z91/$C$91)","v":""},null,{"$f":"IF($C$91=\"\",\"\",AB91/$C$91)","v":""},null,{"$f":"IF($C$91=\"\",\"\",AD91/$C$91)","v":""},null,{"$f":"IF($C$91=\"\",\"\",AF91/$C$91)","v":""},null,{"$f":"IF($C$91=\"\",\"\",AH91/$C$91)","v":""},null,{"$f":"IF($C$91=\"\",\"\",AJ91/$C$91)","v":""},null,{"$f":"IF($C$91=\"\",\"\",AL91/$C$91)","v":""},null,{"$f":"IF($C$91=\"\",\"\",AN91/$C$91)","v":""},null,{"$f":"IF($C$91=\"\",\"\",AP91/$C$91)","v":""},null,{"$f":"IF($C$91=\"\",\"\",AR91/$C$91)","v":""},null,{"$f":"IF($C$91=\"\",\"\",AT91/$C$91)","v":""},null,{"$f":"IF($C$91=\"\",\"\",AV91/$C$91)","v":""},null,{"$f":"IF($C$91=\"\",\"\",AX91/$C$91)","v":""},null,{"$f":"IF($C$91=\"\",\"\",AZ91/$C$91)","v":""},null,{"$f":"IF($C$91=\"\",\"\",BB91/$C$91)","v":""},null,0]
["    3.6.4",null,null,null,{"$f":"IF($C$92=\"\",\"\",F92/$C$92)","v":""},null,{"$f":"IF($C$92=\"\",\"\",H92/$C$92)","v":""},null,{"$f":"IF($C$92=\"\",\"\",J92/$C$92)","v":""},null,{"$f":"IF($C$92=\"\",\"\",L92/$C$92)","v":""},null,{"$f":"IF($C$92=\"\",\"\",N92/$C$92)","v":""},null,{"$f":"IF($C$92=\"\",\"\",P92/$C$92)","v":""},null,{"$f":"IF($C$92=\"\",\"\",R92/$C$92)","v":""},null,{"$f":"IF($C$92=\"\",\"\",T92/$C$92)","v":""},null,{"$f":"IF($C$92=\"\",\"\",V92/$C$92)","v":""},null,{"$f":"IF($C$92=\"\",\"\",X92/$C$92)","v":""},null,{"$f":"IF($C$92=\"\",\"\",Z92/$C$92)","v":""},null,{"$f":"IF($C$92=\"\",\"\",AB92/$C$92)","v":""},null,{"$f":"IF($C$92=\"\",\"\",AD92/$C$92)","v":""},null,{"$f":"IF($C$92=\"\",\"\",AF92/$C$92)","v":""},null,{"$f":"IF($C$92=\"\",\"\",AH92/$C$92)","v":""},null,{"$f":"IF($C$92=\"\",\"\",AJ92/$C$92)","v":""},null,{"$f":"IF($C$92=\"\",\"\",AL92/$C$92)","v":""},null,{"$f":"IF($C$92=\"\",\"\",AN92/$C$92)","v":""},null,{"$f":"IF($C$92=\"\",\"\",AP92/$C$92)","v":""},null,{"$f":"IF($C$92=\"\",\"\",AR92/$C$92)","v":""},null,{"$f":"IF($C$92=\"\",\"\",AT92/$C$92)","v":""},null,{"$f":"IF($C$92=\"\",\"\",AV92/$C$92)","v":""},null,{"$f":"IF($C$92=\"\",\"\",AX92/$C$92)","v":""},null,{"$f":"IF($C$92=\"\",\"\",AZ92/$C$92)","v":""},null,{"$f":"IF($C$92=\"\",\"\",BB92/$C$92)","v":""},null,0]
[3.7,"Natural Systems Studies"]
["    3.7.1","    Background data collection",null,null,{"$f":"IF($C$94=\"\",\"\",F94/$C$94)","v":""},null,{"$f":"IF($C$94=\"\",\"\",H94/$C$94)","v":""},null,{"$f":"IF($C$94=\"\",\"\",J94/$C$94)","v":""},null,{"$f":"IF($C$94=\"\",\"\",L94/$C$94)","v":""},null,{"$f":"IF($C$94=\"\",\"\",N94/$C$94)","v":""},null,{"$f":"IF($C$94=\"\",\"\",P94/$C$94)","v":""},null,{"$f":"IF($C$94=\"\",\"\",R94/$C$94)","v":""},null,{"$f":"IF($C$94=\"\",\"\",T94/$C$94)","v":""},null,{"$f":"IF($C$94=\"\",\"\",V94/$C$94)","v":""},null,{"$f":"IF($C$94=\"\",\"\",X94/$C$94)","v":""},null,{"$f":"IF($C$94=\"\",\"\",Z94/$C$94)","v":""},null,{"$f":"IF($C$94=\"\",\"\",AB94/$C$94)","v":""},null,{"$f":"IF($C$94=\"\",\"\",AD94/$C$94)","v":""},null,{"$f":"IF($C$94=\"\",\"\",AF94/$C$94)","v":""},null,{"$f":"IF($C$94=\"\",\"\",AH94/$C$94)","v":""},null,{"$f":"IF($C$94=\"\",\"\",AJ94/$C$94)","v":""},null,{"$f":"IF($C$94=\"\",\"\",AL94/$C$94)","v":""},null,{"$f":"IF($C$94=\"\",\"\",AN94/$C$94)","v":""},null,{"$f":"IF($C$94=\"\",\"\",AP94/$C$94)","v":""},null,{"$f":"IF($C$94=\"\",\"\",AR94/$C$94)","v":""},null,{"$f":"IF($C$94=\"\",\"\",AT94/$C$94)","v":""},null,{"$f":"IF($C$94=\"\",\"\",AV94/$C$94)","v":""},null,{"$f":"IF($C$94=\"\",\"\",AX94/$C$94)","v":""},null,{"$f":"IF($C$94=\"\",\"\",AZ94/$C$94)","v":""},null,{"$f":"IF($C$94=\"\",\"\",BB94/$C$94)","v":""},null,{"$f":"SUM(BB94,AZ94,AX94,AV94,AT94,AR94,AP94,AN94,AL94,AJ94,AH94,AF94,AD94,AB94,Z94,X94,V94,T94,R94,P94,N94,L94,J94,H94,F94)","v":0}]
["    3.7.2","    Desktop resource prediction (WOUS, Federally \n    Protected Species)",null,null,{"$f":"IF($C$95=\"\",\"\",F95/$C$95)","v":""},null,{"$f":"IF($C$95=\"\",\"\",H95/$C$95)","v":""},null,{"$f":"IF($C$95=\"\",\"\",J95/$C$95)","v":""},null,{"$f":"IF($C$95=\"\",\"\",L95/$C$95)","v":""},null,{"$f":"IF($C$95=\"\",\"\",N95/$C$95)","v":""},null,{"$f":"IF($C$95=\"\",\"\",P95/$C$95)","v":""},null,{"$f":"IF($C$95=\"\",\"\",R95/$C$95)","v":""},null,{"$f":"IF($C$95=\"\",\"\",T95/$C$95)","v":""},null,{"$f":"IF($C$95=\"\",\"\",V95/$C$95)","v":""},null,{"$f":"IF($C$95=\"\",\"\",X95/$C$95)","v":""},null,{"$f":"IF($C$95=\"\",\"\",Z95/$C$95)","v":""},null,{"$f":"IF($C$95=\"\",\"\",AB95/$C$95)","v":""},null,{"$f":"IF($C$95=\"\",\"\",AD95/$C$95)","v":""},null,{"$f":"IF($C$95=\"\",\"\",AF95/$C$95)","v":""},null,{"$f":"IF($C$95=\"\",\"\",AH95/$C$95)","v":""},null,{"$f":"IF($C$95=\"\",\"\",AJ95/$C$95)","v":""},null,{"$f":"IF($C$95=\"\",\"\",AL95/$C$95)","v":""},null,{"$f":"IF($C$95=\"\",\"\",AN95/$C$95)","v":""},null,{"$f":"IF($C$95=\"\",\"\",AP95/$C$95)","v":""},null,{"$f":"IF($C$95=\"\",\"\",AR95/$C$95)","v":""},null,{"$f":"IF($C$95=\"\",\"\",AT95/$C$95)","v":""},null,{"$f":"IF($C$95=\"\",\"\",AV95/$C$95)","v":""},null,{"$f":"IF($C$95=\"\",\"\",AX95/$C$95)","v":""},null,{"$f":"IF($C$95=\"\",\"\",AZ95/$C$95)","v":""},null,{"$f":"IF($C$95=\"\",\"\",BB95/$C$95)","v":""},null,0]
["    3.7.3","    Memo Development",null,null,{"$f":"IF($C$96=\"\",\"\",F96/$C$96)","v":""},null,{"$f":"IF($C$96=\"\",\"\",H96/$C$96)","v":""},null,{"$f":"IF($C$96=\"\",\"\",J96/$C$96)","v":""},null,{"$f":"IF($C$96=\"\",\"\",L96/$C$96)","v":""},null,{"$f":"IF($C$96=\"\",\"\",N96/$C$96)","v":""},null,{"$f":"IF($C$96=\"\",\"\",P96/$C$96)","v":""},null,{"$f":"IF($C$96=\"\",\"\",R96/$C$96)","v":""},null,{"$f":"IF($C$96=\"\",\"\",T96/$C$96)","v":""},null,{"$f":"IF($C$96=\"\",\"\",V96/$C$96)","v":""},null,{"$f":"IF($C$96=\"\",\"\",X96/$C$96)","v":""},null,{"$f":"IF($C$96=\"\",\"\",Z96/$C$96)","v":""},null,{"$f":"IF($C$96=\"\",\"\",AB96/$C$96)","v":""},null,{"$f":"IF($C$96=\"\",\"\",AD96/$C$96)","v":""},null,{"$f":"IF($C$96=\"\",\"\",AF96/$C$96)","v":""},null,{"$f":"IF($C$96=\"\",\"\",AH96/$C$96)","v":""},null,{"$f":"IF($C$96=\"\",\"\",AJ96/$C$96)","v":""},null,{"$f":"IF($C$96=\"\",\"\",AL96/$C$96)","v":""},null,{"$f":"IF($C$96=\"\",\"\",AN96/$C$96)","v":""},null,{"$f":"IF($C$96=\"\",\"\",AP96/$C$96)","v":""},null,{"$f":"IF($C$96=\"\",\"\",AR96/$C$96)","v":""},null,{"$f":"IF($C$96=\"\",\"\",AT96/$C$96)","v":""},null,{"$f":"IF($C$96=\"\",\"\",AV96/$C$96)","v":""},null,{"$f":"IF($C$96=\"\",\"\",AX96/$C$96)","v":""},null,{"$f":"IF($C$96=\"\",\"\",AZ96/$C$96)","v":""},null,{"$f":"IF($C$96=\"\",\"\",BB96/$C$96)","v":""},null,0]
["    3.7.4","    Field Visit (10 cabinet intersections)",null,null,{"$f":"IF($C$97=\"\",\"\",F97/$C$97)","v":""},null,{"$f":"IF($C$97=\"\",\"\",H97/$C$97)","v":""},null,{"$f":"IF($C$97=\"\",\"\",J97/$C$97)","v":""},null,{"$f":"IF($C$97=\"\",\"\",L97/$C$97)","v":""},null,{"$f":"IF($C$97=\"\",\"\",N97/$C$97)","v":""},null,{"$f":"IF($C$97=\"\",\"\",P97/$C$97)","v":""},null,{"$f":"IF($C$97=\"\",\"\",R97/$C$97)","v":""},null,{"$f":"IF($C$97=\"\",\"\",T97/$C$97)","v":""},null,{"$f":"IF($C$97=\"\",\"\",V97/$C$97)","v":""},null,{"$f":"IF($C$97=\"\",\"\",X97/$C$97)","v":""},null,{"$f":"IF($C$97=\"\",\"\",Z97/$C$97)","v":""},null,{"$f":"IF($C$97=\"\",\"\",AB97/$C$97)","v":""},null,{"$f":"IF($C$97=\"\",\"\",AD97/$C$97)","v":""},null,{"$f":"IF($C$97=\"\",\"\",AF97/$C$97)","v":""},null,{"$f":"IF($C$97=\"\",\"\",AH97/$C$97)","v":""},null,{"$f":"IF($C$97=\"\",\"\",AJ97/$C$97)","v":""},null,{"$f":"IF($C$97=\"\",\"\",AL97/$C$97)","v":""},null,{"$f":"IF($C$97=\"\",\"\",AN97/$C$97)","v":""},null,{"$f":"IF($C$97=\"\",\"\",AP97/$C$97)","v":""},null,{"$f":"IF($C$97=\"\",\"\",AR97/$C$97)","v":""},null,{"$f":"IF($C$97=\"\",\"\",AT97/$C$97)","v":""},null,{"$f":"IF($C$97=\"\",\"\",AV97/$C$97)","v":""},null,{"$f":"IF($C$97=\"\",\"\",AX97/$C$97)","v":""},null,{"$f":"IF($C$97=\"\",\"\",AZ97/$C$97)","v":""},null,{"$f":"IF($C$97=\"\",\"\",BB97/$C$97)","v":""},null,0]
["    3.7.5",null,null,null,{"$f":"IF($C$98=\"\",\"\",F98/$C$98)","v":""},null,{"$f":"IF($C$98=\"\",\"\",H98/$C$98)","v":""},null,{"$f":"IF($C$98=\"\",\"\",J98/$C$98)","v":""},null,{"$f":"IF($C$98=\"\",\"\",L98/$C$98)","v":""},null,{"$f":"IF($C$98=\"\",\"\",N98/$C$98)","v":""},null,{"$f":"IF($C$98=\"\",\"\",P98/$C$98)","v":""},null,{"$f":"IF($C$98=\"\",\"\",R98/$C$98)","v":""},null,{"$f":"IF($C$98=\"\",\"\",T98/$C$98)","v":""},null,{"$f":"IF($C$98=\"\",\"\",V98/$C$98)","v":""},null,{"$f":"IF($C$98=\"\",\"\",X98/$C$98)","v":""},null,{"$f":"IF($C$98=\"\",\"\",Z98/$C$98)","v":""},null,{"$f":"IF($C$98=\"\",\"\",AB98/$C$98)","v":""},null,{"$f":"IF($C$98=\"\",\"\",AD98/$C$98)","v":""},null,{"$f":"IF($C$98=\"\",\"\",AF98/$C$98)","v":""},null,{"$f":"IF($C$98=\"\",\"\",AH98/$C$98)","v":""},null,{"$f":"IF($C$98=\"\",\"\",AJ98/$C$98)","v":""},null,{"$f":"IF($C$98=\"\",\"\",AL98/$C$98)","v":""},null,{"$f":"IF($C$98=\"\",\"\",AN98/$C$98)","v":""},null,{"$f":"IF($C$98=\"\",\"\",AP98/$C$98)","v":""},null,{"$f":"IF($C$98=\"\",\"\",AR98/$C$98)","v":""},null,{"$f":"IF($C$98=\"\",\"\",AT98/$C$98)","v":""},null,{"$f":"IF($C$98=\"\",\"\",AV98/$C$98)","v":""},null,{"$f":"IF($C$98=\"\",\"\",AX98/$C$98)","v":""},null,{"$f":"IF($C$98=\"\",\"\",AZ98/$C$98)","v":""},null,{"$f":"IF($C$98=\"\",\"\",BB98/$C$98)","v":""},null,0]
["    3.7.6",null,null,null,{"$f":"IF($C$99=\"\",\"\",F99/$C$99)","v":""},null,{"$f":"IF($C$99=\"\",\"\",H99/$C$99)","v":""},null,{"$f":"IF($C$99=\"\",\"\",J99/$C$99)","v":""},null,{"$f":"IF($C$99=\"\",\"\",L99/$C$99)","v":""},null,{"$f":"IF($C$99=\"\",\"\",N99/$C$99)","v":""},null,{"$f":"IF($C$99=\"\",\"\",P99/$C$99)","v":""},null,{"$f":"IF($C$99=\"\",\"\",R99/$C$99)","v":""},null,{"$f":"IF($C$99=\"\",\"\",T99/$C$99)","v":""},null,{"$f":"IF($C$99=\"\",\"\",V99/$C$99)","v":""},null,{"$f":"IF($C$99=\"\",\"\",X99/$C$99)","v":""},null,{"$f":"IF($C$99=\"\",\"\",Z99/$C$99)","v":""},null,{"$f":"IF($C$99=\"\",\"\",AB99/$C$99)","v":""},null,{"$f":"IF($C$99=\"\",\"\",AD99/$C$99)","v":""},null,{"$f":"IF($C$99=\"\",\"\",AF99/$C$99)","v":""},null,{"$f":"IF($C$99=\"\",\"\",AH99/$C$99)","v":""},null,{"$f":"IF($C$99=\"\",\"\",AJ99/$C$99)","v":""},null,{"$f":"IF($C$99=\"\",\"\",AL99/$C$99)","v":""},null,{"$f":"IF($C$99=\"\",\"\",AN99/$C$99)","v":""},null,{"$f":"IF($C$99=\"\",\"\",AP99/$C$99)","v":""},null,{"$f":"IF($C$99=\"\",\"\",AR99/$C$99)","v":""},null,{"$f":"IF($C$99=\"\",\"\",AT99/$C$99)","v":""},null,{"$f":"IF($C$99=\"\",\"\",AV99/$C$99)","v":""},null,{"$f":"IF($C$99=\"\",\"\",AX99/$C$99)","v":""},null,{"$f":"IF($C$99=\"\",\"\",AZ99/$C$99)","v":""},null,{"$f":"IF($C$99=\"\",\"\",BB99/$C$99)","v":""},null,0]
["    3.7.7",null,null,null,{"$f":"IF($C$100=\"\",\"\",F100/$C$100)","v":""},null,{"$f":"IF($C$100=\"\",\"\",H100/$C$100)","v":""},null,{"$f":"IF($C$100=\"\",\"\",J100/$C$100)","v":""},null,{"$f":"IF($C$100=\"\",\"\",L100/$C$100)","v":""},null,{"$f":"IF($C$100=\"\",\"\",N100/$C$100)","v":""},null,{"$f":"IF($C$100=\"\",\"\",P100/$C$100)","v":""},null,{"$f":"IF($C$100=\"\",\"\",R100/$C$100)","v":""},null,{"$f":"IF($C$100=\"\",\"\",T100/$C$100)","v":""},null,{"$f":"IF($C$100=\"\",\"\",V100/$C$100)","v":""},null,{"$f":"IF($C$100=\"\",\"\",X100/$C$100)","v":""},null,{"$f":"IF($C$100=\"\",\"\",Z100/$C$100)","v":""},null,{"$f":"IF($C$100=\"\",\"\",AB100/$C$100)","v":""},null,{"$f":"IF($C$100=\"\",\"\",AD100/$C$100)","v":""},null,{"$f":"IF($C$100=\"\",\"\",AF100/$C$100)","v":""},null,{"$f":"IF($C$100=\"\",\"\",AH100/$C$100)","v":""},null,{"$f":"IF($C$100=\"\",\"\",AJ100/$C$100)","v":""},null,{"$f":"IF($C$100=\"\",\"\",AL100/$C$100)","v":""},null,{"$f":"IF($C$100=\"\",\"\",AN100/$C$100)","v":""},null,{"$f":"IF($C$100=\"\",\"\",AP100/$C$100)","v":""},null,{"$f":"IF($C$100=\"\",\"\",AR100/$C$100)","v":""},null,{"$f":"IF($C$100=\"\",\"\",AT100/$C$100)","v":""},null,{"$f":"IF($C$100=\"\",\"\",AV100/$C$100)","v":""},null,{"$f":"IF($C$100=\"\",\"\",AX100/$C$100)","v":""},null,{"$f":"IF($C$100=\"\",\"\",AZ100/$C$100)","v":""},null,{"$f":"IF($C$100=\"\",\"\",BB100/$C$100)","v":""},null,0]
[3.8,"PCE Documentation"]
["    3.8.1","    Draft v1 to NCDOT/Address Comments",null,null,{"$f":"IF($C$102=\"\",\"\",F102/$C$102)","v":""},null,{"$f":"IF($C$102=\"\",\"\",H102/$C$102)","v":""},null,{"$f":"IF($C$102=\"\",\"\",J102/$C$102)","v":""},null,{"$f":"IF($C$102=\"\",\"\",L102/$C$102)","v":""},null,{"$f":"IF($C$102=\"\",\"\",N102/$C$102)","v":""},null,{"$f":"IF($C$102=\"\",\"\",P102/$C$102)","v":""},null,{"$f":"IF($C$102=\"\",\"\",R102/$C$102)","v":""},null,{"$f":"IF($C$102=\"\",\"\",T102/$C$102)","v":""},null,{"$f":"IF($C$102=\"\",\"\",V102/$C$102)","v":""},null,{"$f":"IF($C$102=\"\",\"\",X102/$C$102)","v":""},null,{"$f":"IF($C$102=\"\",\"\",Z102/$C$102)","v":""},null,{"$f":"IF($C$102=\"\",\"\",AB102/$C$102)","v":""},null,{"$f":"IF($C$102=\"\",\"\",AD102/$C$102)","v":""},null,{"$f":"IF($C$102=\"\",\"\",AF102/$C$102)","v":""},null,{"$f":"IF($C$102=\"\",\"\",AH102/$C$102)","v":""},null,{"$f":"IF($C$102=\"\",\"\",AJ102/$C$102)","v":""},null,{"$f":"IF($C$102=\"\",\"\",AL102/$C$102)","v":""},null,{"$f":"IF($C$102=\"\",\"\",AN102/$C$102)","v":""},null,{"$f":"IF($C$102=\"\",\"\",AP102/$C$102)","v":""},null,{"$f":"IF($C$102=\"\",\"\",AR102/$C$102)","v":""},null,{"$f":"IF($C$102=\"\",\"\",AT102/$C$102)","v":""},null,{"$f":"IF($C$102=\"\",\"\",AV102/$C$102)","v":""},null,{"$f":"IF($C$102=\"\",\"\",AX102/$C$102)","v":""},null,{"$f":"IF($C$102=\"\",\"\",AZ102/$C$102)","v":""},null,{"$f":"IF($C$102=\"\",\"\",BB102/$C$102)","v":""},null,{"$f":"SUM(BB102,AZ102,AX102,AV102,AT102,AR102,AP102,AN102,AL102,AJ102,AH102,AF102,AD102,AB102,Z102,X102,V102,T102,R102,P102,N102,L102,J102,H102,F102)","v":0}]
["    3.8.2","    Draft v2 to FHWA/Address Comments",null,null,{"$f":"IF($C$103=\"\",\"\",F103/$C$103)","v":""},null,{"$f":"IF($C$103=\"\",\"\",H103/$C$103)","v":""},null,{"$f":"IF($C$103=\"\",\"\",J103/$C$103)","v":""},null,{"$f":"IF($C$103=\"\",\"\",L103/$C$103)","v":""},null,{"$f":"IF($C$103=\"\",\"\",N103/$C$103)","v":""},null,{"$f":"IF($C$103=\"\",\"\",P103/$C$103)","v":""},null,{"$f":"IF($C$103=\"\",\"\",R103/$C$103)","v":""},null,{"$f":"IF($C$103=\"\",\"\",T103/$C$103)","v":""},null,{"$f":"IF($C$103=\"\",\"\",V103/$C$103)","v":""},null,{"$f":"IF($C$103=\"\",\"\",X103/$C$103)","v":""},null,{"$f":"IF($C$103=\"\",\"\",Z103/$C$103)","v":""},null,{"$f":"IF($C$103=\"\",\"\",AB103/$C$103)","v":""},null,{"$f":"IF($C$103=\"\",\"\",AD103/$C$103)","v":""},null,{"$f":"IF($C$103=\"\",\"\",AF103/$C$103)","v":""},null,{"$f":"IF($C$103=\"\",\"\",AH103/$C$103)","v":""},null,{"$f":"IF($C$103=\"\",\"\",AJ103/$C$103)","v":""},null,{"$f":"IF($C$103=\"\",\"\",AL103/$C$103)","v":""},null,{"$f":"IF($C$103=\"\",\"\",AN103/$C$103)","v":""},null,{"$f":"IF($C$103=\"\",\"\",AP103/$C$103)","v":""},null,{"$f":"IF($C$103=\"\",\"\",AR103/$C$103)","v":""},null,{"$f":"IF($C$103=\"\",\"\",AT103/$C$103)","v":""},null,{"$f":"IF($C$103=\"\",\"\",AV103/$C$103)","v":""},null,{"$f":"IF($C$103=\"\",\"\",AX103/$C$103)","v":""},null,{"$f":"IF($C$103=\"\",\"\",AZ103/$C$103)","v":""},null,{"$f":"IF($C$103=\"\",\"\",BB103/$C$103)","v":""},null,0]
["    3.8.3","    Finalize and distribute copies of PCE Document",null,null,{"$f":"IF($C$104=\"\",\"\",F104/$C$104)","v":""},null,{"$f":"IF($C$104=\"\",\"\",H104/$C$104)","v":""},null,{"$f":"IF($C$104=\"\",\"\",J104/$C$104)","v":""},null,{"$f":"IF($C$104=\"\",\"\",L104/$C$104)","v":""},null,{"$f":"IF($C$104=\"\",\"\",N104/$C$104)","v":""},null,{"$f":"IF($C$104=\"\",\"\",P104/$C$104)","v":""},null,{"$f":"IF($C$104=\"\",\"\",R104/$C$104)","v":""},null,{"$f":"IF($C$104=\"\",\"\",T104/$C$104)","v":""},null,{"$f":"IF($C$104=\"\",\"\",V104/$C$104)","v":""},null,{"$f":"IF($C$104=\"\",\"\",X104/$C$104)","v":""},null,{"$f":"IF($C$104=\"\",\"\",Z104/$C$104)","v":""},null,{"$f":"IF($C$104=\"\",\"\",AB104/$C$104)","v":""},null,{"$f":"IF($C$104=\"\",\"\",AD104/$C$104)","v":""},null,{"$f":"IF($C$104=\"\",\"\",AF104/$C$104)","v":""},null,{"$f":"IF($C$104=\"\",\"\",AH104/$C$104)","v":""},null,{"$f":"IF($C$104=\"\",\"\",AJ104/$C$104)","v":""},null,{"$f":"IF($C$104=\"\",\"\",AL104/$C$104)","v":""},null,{"$f":"IF($C$104=\"\",\"\",AN104/$C$104)","v":""},null,{"$f":"IF($C$104=\"\",\"\",AP104/$C$104)","v":""},null,{"$f":"IF($C$104=\"\",\"\",AR104/$C$104)","v":""},null,{"$f":"IF($C$104=\"\",\"\",AT104/$C$104)","v":""},null,{"$f":"IF($C$104=\"\",\"\",AV104/$C$104)","v":""},null,{"$f":"IF($C$104=\"\",\"\",AX104/$C$104)","v":""},null,{"$f":"IF($C$104=\"\",\"\",AZ104/$C$104)","v":""},null,{"$f":"IF($C$104=\"\",\"\",BB104/$C$104)","v":""},null,0]
["    3.8.4",null,null,null,{"$f":"IF($C$105=\"\",\"\",F105/$C$105)","v":""},null,{"$f":"IF($C$105=\"\",\"\",H105/$C$105)","v":""},null,{"$f":"IF($C$105=\"\",\"\",J105/$C$105)","v":""},null,{"$f":"IF($C$105=\"\",\"\",L105/$C$105)","v":""},null,{"$f":"IF($C$105=\"\",\"\",N105/$C$105)","v":""},null,{"$f":"IF($C$105=\"\",\"\",P105/$C$105)","v":""},null,{"$f":"IF($C$105=\"\",\"\",R105/$C$105)","v":""},null,{"$f":"IF($C$105=\"\",\"\",T105/$C$105)","v":""},null,{"$f":"IF($C$105=\"\",\"\",V105/$C$105)","v":""},null,{"$f":"IF($C$105=\"\",\"\",X105/$C$105)","v":""},null,{"$f":"IF($C$105=\"\",\"\",Z105/$C$105)","v":""},null,{"$f":"IF($C$105=\"\",\"\",AB105/$C$105)","v":""},null,{"$f":"IF($C$105=\"\",\"\",AD105/$C$105)","v":""},null,{"$f":"IF($C$105=\"\",\"\",AF105/$C$105)","v":""},null,{"$f":"IF($C$105=\"\",\"\",AH105/$C$105)","v":""},null,{"$f":"IF($C$105=\"\",\"\",AJ105/$C$105)","v":""},null,{"$f":"IF($C$105=\"\",\"\",AL105/$C$105)","v":""},null,{"$f":"IF($C$105=\"\",\"\",AN105/$C$105)","v":""},null,{"$f":"IF($C$105=\"\",\"\",AP105/$C$105)","v":""},null,{"$f":"IF($C$105=\"\",\"\",AR105/$C$105)","v":""},null,{"$f":"IF($C$105=\"\",\"\",AT105/$C$105)","v":""},null,{"$f":"IF($C$105=\"\",\"\",AV105/$C$105)","v":""},null,{"$f":"IF($C$105=\"\",\"\",AX105/$C$105)","v":""},null,{"$f":"IF($C$105=\"\",\"\",AZ105/$C$105)","v":""},null,{"$f":"IF($C$105=\"\",\"\",BB105/$C$105)","v":""},null,0]
["    3.8.5",null,null,null,{"$f":"IF($C$106=\"\",\"\",F106/$C$106)","v":""},null,{"$f":"IF($C$106=\"\",\"\",H106/$C$106)","v":""},null,{"$f":"IF($C$106=\"\",\"\",J106/$C$106)","v":""},null,{"$f":"IF($C$106=\"\",\"\",L106/$C$106)","v":""},null,{"$f":"IF($C$106=\"\",\"\",N106/$C$106)","v":""},null,{"$f":"IF($C$106=\"\",\"\",P106/$C$106)","v":""},null,{"$f":"IF($C$106=\"\",\"\",R106/$C$106)","v":""},null,{"$f":"IF($C$106=\"\",\"\",T106/$C$106)","v":""},null,{"$f":"IF($C$106=\"\",\"\",V106/$C$106)","v":""},null,{"$f":"IF($C$106=\"\",\"\",X106/$C$106)","v":""},null,{"$f":"IF($C$106=\"\",\"\",Z106/$C$106)","v":""},null,{"$f":"IF($C$106=\"\",\"\",AB106/$C$106)","v":""},null,{"$f":"IF($C$106=\"\",\"\",AD106/$C$106)","v":""},null,{"$f":"IF($C$106=\"\",\"\",AF106/$C$106)","v":""},null,{"$f":"IF($C$106=\"\",\"\",AH106/$C$106)","v":""},null,{"$f":"IF($C$106=\"\",\"\",AJ106/$C$106)","v":""},null,{"$f":"IF($C$106=\"\",\"\",AL106/$C$106)","v":""},null,{"$f":"IF($C$106=\"\",\"\",AN106/$C$106)","v":""},null,{"$f":"IF($C$106=\"\",\"\",AP106/$C$106)","v":""},null,{"$f":"IF($C$106=\"\",\"\",AR106/$C$106)","v":""},null,{"$f":"IF($C$106=\"\",\"\",AT106/$C$106)","v":""},null,{"$f":"IF($C$106=\"\",\"\",AV106/$C$106)","v":""},null,{"$f":"IF($C$106=\"\",\"\",AX106/$C$106)","v":""},null,{"$f":"IF($C$106=\"\",\"\",AZ106/$C$106)","v":""},null,{"$f":"IF($C$106=\"\",\"\",BB106/$C$106)","v":""},null,0]
["    3.8.6",null,null,null,{"$f":"IF($C$107=\"\",\"\",F107/$C$107)","v":""},null,{"$f":"IF($C$107=\"\",\"\",H107/$C$107)","v":""},null,{"$f":"IF($C$107=\"\",\"\",J107/$C$107)","v":""},null,{"$f":"IF($C$107=\"\",\"\",L107/$C$107)","v":""},null,{"$f":"IF($C$107=\"\",\"\",N107/$C$107)","v":""},null,{"$f":"IF($C$107=\"\",\"\",P107/$C$107)","v":""},null,{"$f":"IF($C$107=\"\",\"\",R107/$C$107)","v":""},null,{"$f":"IF($C$107=\"\",\"\",T107/$C$107)","v":""},null,{"$f":"IF($C$107=\"\",\"\",V107/$C$107)","v":""},null,{"$f":"IF($C$107=\"\",\"\",X107/$C$107)","v":""},null,{"$f":"IF($C$107=\"\",\"\",Z107/$C$107)","v":""},null,{"$f":"IF($C$107=\"\",\"\",AB107/$C$107)","v":""},null,{"$f":"IF($C$107=\"\",\"\",AD107/$C$107)","v":""},null,{"$f":"IF($C$107=\"\",\"\",AF107/$C$107)","v":""},null,{"$f":"IF($C$107=\"\",\"\",AH107/$C$107)","v":""},null,{"$f":"IF($C$107=\"\",\"\",AJ107/$C$107)","v":""},null,{"$f":"IF($C$107=\"\",\"\",AL107/$C$107)","v":""},null,{"$f":"IF($C$107=\"\",\"\",AN107/$C$107)","v":""},null,{"$f":"IF($C$107=\"\",\"\",AP107/$C$107)","v":""},null,{"$f":"IF($C$107=\"\",\"\",AR107/$C$107)","v":""},null,{"$f":"IF($C$107=\"\",\"\",AT107/$C$107)","v":""},null,{"$f":"IF($C$107=\"\",\"\",AV107/$C$107)","v":""},null,{"$f":"IF($C$107=\"\",\"\",AX107/$C$107)","v":""},null,{"$f":"IF($C$107=\"\",\"\",AZ107/$C$107)","v":""},null,{"$f":"IF($C$107=\"\",\"\",BB107/$C$107)","v":""},null,0]
[null,null,null,null,{"$f":"IF($C$108=\"\",\"\",F108/$C$108)","v":""},null,{"$f":"IF($C$108=\"\",\"\",H108/$C$108)","v":""},null,{"$f":"IF($C$108=\"\",\"\",J108/$C$108)","v":""},null,{"$f":"IF($C$108=\"\",\"\",L108/$C$108)","v":""},null,{"$f":"IF($C$108=\"\",\"\",N108/$C$108)","v":""},null,{"$f":"IF($C$108=\"\",\"\",P108/$C$108)","v":""},null,{"$f":"IF($C$108=\"\",\"\",R108/$C$108)","v":""},null,{"$f":"IF($C$108=\"\",\"\",T108/$C$108)","v":""},null,{"$f":"IF($C$108=\"\",\"\",V108/$C$108)","v":""},null,{"$f":"IF($C$108=\"\",\"\",X108/$C$108)","v":""},null,{"$f":"IF($C$108=\"\",\"\",Z108/$C$108)","v":""},null,{"$f":"IF($C$108=\"\",\"\",AB108/$C$108)","v":""},null,{"$f":"IF($C$108=\"\",\"\",AD108/$C$108)","v":""},null,{"$f":"IF($C$108=\"\",\"\",AF108/$C$108)","v":""},null,{"$f":"IF($C$108=\"\",\"\",AH108/$C$108)","v":""},null,{"$f":"IF($C$108=\"\",\"\",AJ108/$C$108)","v":""},null,{"$f":"IF($C$108=\"\",\"\",AL108/$C$108)","v":""},null,{"$f":"IF($C$108=\"\",\"\",AN108/$C$108)","v":""},null,{"$f":"IF($C$108=\"\",\"\",AP108/$C$108)","v":""},null,{"$f":"IF($C$108=\"\",\"\",AR108/$C$108)","v":""},null,{"$f":"IF($C$108=\"\",\"\",AT108/$C$108)","v":""},null,{"$f":"IF($C$108=\"\",\"\",AV108/$C$108)","v":""},null,{"$f":"IF($C$108=\"\",\"\",AX108/$C$108)","v":""},null,{"$f":"IF($C$108=\"\",\"\",AZ108/$C$108)","v":""},null,{"$f":"IF($C$108=\"\",\"\",BB108/$C$108)","v":""},null,0]
[null,null,null,null,{"$f":"IF($C$109=\"\",\"\",F109/$C$109)","v":""},null,{"$f":"IF($C$109=\"\",\"\",H109/$C$109)","v":""},null,{"$f":"IF($C$109=\"\",\"\",J109/$C$109)","v":""},null,{"$f":"IF($C$109=\"\",\"\",L109/$C$109)","v":""},null,{"$f":"IF($C$109=\"\",\"\",N109/$C$109)","v":""},null,{"$f":"IF($C$109=\"\",\"\",P109/$C$109)","v":""},null,{"$f":"IF($C$109=\"\",\"\",R109/$C$109)","v":""},null,{"$f":"IF($C$109=\"\",\"\",T109/$C$109)","v":""},null,{"$f":"IF($C$109=\"\",\"\",V109/$C$109)","v":""},null,{"$f":"IF($C$109=\"\",\"\",X109/$C$109)","v":""},null,{"$f":"IF($C$109=\"\",\"\",Z109/$C$109)","v":""},null,{"$f":"IF($C$109=\"\",\"\",AB109/$C$109)","v":""},null,{"$f":"IF($C$109=\"\",\"\",AD109/$C$109)","v":""},null,{"$f":"IF($C$109=\"\",\"\",AF109/$C$109)","v":""},null,{"$f":"IF($C$109=\"\",\"\",AH109/$C$109)","v":""},null,{"$f":"IF($C$109=\"\",\"\",AJ109/$C$109)","v":""},null,{"$f":"IF($C$109=\"\",\"\",AL109/$C$109)","v":""},null,{"$f":"IF($C$109=\"\",\"\",AN109/$C$109)","v":""},null,{"$f":"IF($C$109=\"\",\"\",AP109/$C$109)","v":""},null,{"$f":"IF($C$109=\"\",\"\",AR109/$C$109)","v":""},null,{"$f":"IF($C$109=\"\",\"\",AT109/$C$109)","v":""},null,{"$f":"IF($C$109=\"\",\"\",AV109/$C$109)","v":""},null,{"$f":"IF($C$109=\"\",\"\",AX109/$C$109)","v":""},null,{"$f":"IF($C$109=\"\",\"\",AZ109/$C$109)","v":""},null,{"$f":"IF($C$109=\"\",\"\",BB109/$C$109)","v":""},null,0]
[null,null,null,null,{"$f":"IF($C$110=\"\",\"\",F110/$C$110)","v":""},null,{"$f":"IF($C$110=\"\",\"\",H110/$C$110)","v":""},null,{"$f":"IF($C$110=\"\",\"\",J110/$C$110)","v":""},null,{"$f":"IF($C$110=\"\",\"\",L110/$C$110)","v":""},null,{"$f":"IF($C$110=\"\",\"\",N110/$C$110)","v":""},null,{"$f":"IF($C$110=\"\",\"\",P110/$C$110)","v":""},null,{"$f":"IF($C$110=\"\",\"\",R110/$C$110)","v":""},null,{"$f":"IF($C$110=\"\",\"\",T110/$C$110)","v":""},null,{"$f":"IF($C$110=\"\",\"\",V110/$C$110)","v":""},null,{"$f":"IF($C$110=\"\",\"\",X110/$C$110)","v":""},null,{"$f":"IF($C$110=\"\",\"\",Z110/$C$110)","v":""},null,{"$f":"IF($C$110=\"\",\"\",AB110/$C$110)","v":""},null,{"$f":"IF($C$110=\"\",\"\",AD110/$C$110)","v":""},null,{"$f":"IF($C$110=\"\",\"\",AF110/$C$110)","v":""},null,{"$f":"IF($C$110=\"\",\"\",AH110/$C$110)","v":""},null,{"$f":"IF($C$110=\"\",\"\",AJ110/$C$110)","v":""},null,{"$f":"IF($C$110=\"\",\"\",AL110/$C$110)","v":""},null,{"$f":"IF($C$110=\"\",\"\",AN110/$C$110)","v":""},null,{"$f":"IF($C$110=\"\",\"\",AP110/$C$110)","v":""},null,{"$f":"IF($C$110=\"\",\"\",AR110/$C$110)","v":""},null,{"$f":"IF($C$110=\"\",\"\",AT110/$C$110)","v":""},null,{"$f":"IF($C$110=\"\",\"\",AV110/$C$110)","v":""},null,{"$f":"IF($C$110=\"\",\"\",AX110/$C$110)","v":""},null,{"$f":"IF($C$110=\"\",\"\",AZ110/$C$110)","v":""},null,{"$f":"IF($C$110=\"\",\"\",BB110/$C$110)","v":""},null,0]
[null,null,null,null,{"$f":"IF($C$111=\"\",\"\",F111/$C$111)","v":""},null,{"$f":"IF($C$111=\"\",\"\",H111/$C$111)","v":""},null,{"$f":"IF($C$111=\"\",\"\",J111/$C$111)","v":""},null,{"$f":"IF($C$111=\"\",\"\",L111/$C$111)","v":""},null,{"$f":"IF($C$111=\"\",\"\",N111/$C$111)","v":""},null,{"$f":"IF($C$111=\"\",\"\",P111/$C$111)","v":""},null,{"$f":"IF($C$111=\"\",\"\",R111/$C$111)","v":""},null,{"$f":"IF($C$111=\"\",\"\",T111/$C$111)","v":""},null,{"$f":"IF($C$111=\"\",\"\",V111/$C$111)","v":""},null,{"$f":"IF($C$111=\"\",\"\",X111/$C$111)","v":""},null,{"$f":"IF($C$111=\"\",\"\",Z111/$C$111)","v":""},null,{"$f":"IF($C$111=\"\",\"\",AB111/$C$111)","v":""},null,{"$f":"IF($C$111=\"\",\"\",AD111/$C$111)","v":""},null,{"$f":"IF($C$111=\"\",\"\",AF111/$C$111)","v":""},null,{"$f":"IF($C$111=\"\",\"\",AH111/$C$111)","v":""},null,{"$f":"IF($C$111=\"\",\"\",AJ111/$C$111)","v":""},null,{"$f":"IF($C$111=\"\",\"\",AL111/$C$111)","v":""},null,{"$f":"IF($C$111=\"\",\"\",AN111/$C$111)","v":""},null,{"$f":"IF($C$111=\"\",\"\",AP111/$C$111)","v":""},null,{"$f":"IF($C$111=\"\",\"\",AR111/$C$111)","v":""},null,{"$f":"IF($C$111=\"\",\"\",AT111/$C$111)","v":""},null,{"$f":"IF($C$111=\"\",\"\",AV111/$C$111)","v":""},null,{"$f":"IF($C$111=\"\",\"\",AX111/$C$111)","v":""},null,{"$f":"IF($C$111=\"\",\"\",AZ111/$C$111)","v":""},null,{"$f":"IF($C$111=\"\",\"\",BB111/$C$111)","v":""},null,0]
[null,null,null,null,{"$f":"IF($C$112=\"\",\"\",F112/$C$112)","v":""},null,{"$f":"IF($C$112=\"\",\"\",H112/$C$112)","v":""},null,{"$f":"IF($C$112=\"\",\"\",J112/$C$112)","v":""},null,{"$f":"IF($C$112=\"\",\"\",L112/$C$112)","v":""},null,{"$f":"IF($C$112=\"\",\"\",N112/$C$112)","v":""},null,{"$f":"IF($C$112=\"\",\"\",P112/$C$112)","v":""},null,{"$f":"IF($C$112=\"\",\"\",R112/$C$112)","v":""},null,{"$f":"IF($C$112=\"\",\"\",T112/$C$112)","v":""},null,{"$f":"IF($C$112=\"\",\"\",V112/$C$112)","v":""},null,{"$f":"IF($C$112=\"\",\"\",X112/$C$112)","v":""},null,{"$f":"IF($C$112=\"\",\"\",Z112/$C$112)","v":""},null,{"$f":"IF($C$112=\"\",\"\",AB112/$C$112)","v":""},null,{"$f":"IF($C$112=\"\",\"\",AD112/$C$112)","v":""},null,{"$f":"IF($C$112=\"\",\"\",AF112/$C$112)","v":""},null,{"$f":"IF($C$112=\"\",\"\",AH112/$C$112)","v":""},null,{"$f":"IF($C$112=\"\",\"\",AJ112/$C$112)","v":""},null,{"$f":"IF($C$112=\"\",\"\",AL112/$C$112)","v":""},null,{"$f":"IF($C$112=\"\",\"\",AN112/$C$112)","v":""},null,{"$f":"IF($C$112=\"\",\"\",AP112/$C$112)","v":""},null,{"$f":"IF($C$112=\"\",\"\",AR112/$C$112)","v":""},null,{"$f":"IF($C$112=\"\",\"\",AT112/$C$112)","v":""},null,{"$f":"IF($C$112=\"\",\"\",AV112/$C$112)","v":""},null,{"$f":"IF($C$112=\"\",\"\",AX112/$C$112)","v":""},null,{"$f":"IF($C$112=\"\",\"\",AZ112/$C$112)","v":""},null,{"$f":"IF($C$112=\"\",\"\",BB112/$C$112)","v":""},null,0]
[null,null,null,null,{"$f":"IF($C$113=\"\",\"\",F113/$C$113)","v":""},null,{"$f":"IF($C$113=\"\",\"\",H113/$C$113)","v":""},null,{"$f":"IF($C$113=\"\",\"\",J113/$C$113)","v":""},null,{"$f":"IF($C$113=\"\",\"\",L113/$C$113)","v":""},null,{"$f":"IF($C$113=\"\",\"\",N113/$C$113)","v":""},null,{"$f":"IF($C$113=\"\",\"\",P113/$C$113)","v":""},null,{"$f":"IF($C$113=\"\",\"\",R113/$C$113)","v":""},null,{"$f":"IF($C$113=\"\",\"\",T113/$C$113)","v":""},null,{"$f":"IF($C$113=\"\",\"\",V113/$C$113)","v":""},null,{"$f":"IF($C$113=\"\",\"\",X113/$C$113)","v":""},null,{"$f":"IF($C$113=\"\",\"\",Z113/$C$113)","v":""},null,{"$f":"IF($C$113=\"\",\"\",AB113/$C$113)","v":""},null,{"$f":"IF($C$113=\"\",\"\",AD113/$C$113)","v":""},null,{"$f":"IF($C$113=\"\",\"\",AF113/$C$113)","v":""},null,{"$f":"IF($C$113=\"\",\"\",AH113/$C$113)","v":""},null,{"$f":"IF($C$113=\"\",\"\",AJ113/$C$113)","v":""},null,{"$f":"IF($C$113=\"\",\"\",AL113/$C$113)","v":""},null,{"$f":"IF($C$113=\"\",\"\",AN113/$C$113)","v":""},null,{"$f":"IF($C$113=\"\",\"\",AP113/$C$113)","v":""},null,{"$f":"IF($C$113=\"\",\"\",AR113/$C$113)","v":""},null,{"$f":"IF($C$113=\"\",\"\",AT113/$C$113)","v":""},null,{"$f":"IF($C$113=\"\",\"\",AV113/$C$113)","v":""},null,{"$f":"IF($C$113=\"\",\"\",AX113/$C$113)","v":""},null,{"$f":"IF($C$113=\"\",\"\",AZ113/$C$113)","v":""},null,{"$f":"IF($C$113=\"\",\"\",BB113/$C$113)","v":""},null,0]
[null,null,null,null,{"$f":"IF($C$114=\"\",\"\",F114/$C$114)","v":""},null,{"$f":"IF($C$114=\"\",\"\",H114/$C$114)","v":""},null,{"$f":"IF($C$114=\"\",\"\",J114/$C$114)","v":""},null,{"$f":"IF($C$114=\"\",\"\",L114/$C$114)","v":""},null,{"$f":"IF($C$114=\"\",\"\",N114/$C$114)","v":""},null,{"$f":"IF($C$114=\"\",\"\",P114/$C$114)","v":""},null,{"$f":"IF($C$114=\"\",\"\",R114/$C$114)","v":""},null,{"$f":"IF($C$114=\"\",\"\",T114/$C$114)","v":""},null,{"$f":"IF($C$114=\"\",\"\",V114/$C$114)","v":""},null,{"$f":"IF($C$114=\"\",\"\",X114/$C$114)","v":""},null,{"$f":"IF($C$114=\"\",\"\",Z114/$C$114)","v":""},null,{"$f":"IF($C$114=\"\",\"\",AB114/$C$114)","v":""},null,{"$f":"IF($C$114=\"\",\"\",AD114/$C$114)","v":""},null,{"$f":"IF($C$114=\"\",\"\",AF114/$C$114)","v":""},null,{"$f":"IF($C$114=\"\",\"\",AH114/$C$114)","v":""},null,{"$f":"IF($C$114=\"\",\"\",AJ114/$C$114)","v":""},null,{"$f":"IF($C$114=\"\",\"\",AL114/$C$114)","v":""},null,{"$f":"IF($C$114=\"\",\"\",AN114/$C$114)","v":""},null,{"$f":"IF($C$114=\"\",\"\",AP114/$C$114)","v":""},null,{"$f":"IF($C$114=\"\",\"\",AR114/$C$114)","v":""},null,{"$f":"IF($C$114=\"\",\"\",AT114/$C$114)","v":""},null,{"$f":"IF($C$114=\"\",\"\",AV114/$C$114)","v":""},null,{"$f":"IF($C$114=\"\",\"\",AX114/$C$114)","v":""},null,{"$f":"IF($C$114=\"\",\"\",AZ114/$C$114)","v":""},null,{"$f":"IF($C$114=\"\",\"\",BB114/$C$114)","v":""},null,{"$f":"SUM(BB114,AZ114,AX114,AV114,AT114,AR114,AP114,AN114,AL114,AJ114,AH114,AF114,AD114,AB114,Z114,X114,V114,T114,R114,P114,N114,L114,J114,H114,F114)","v":0}]
["TOTAL HOURS",null,null,null,null,{"$f":"SUM(F57:F114)","v":0},null,{"$f":"SUM(H57:H114)","v":0},null,{"$f":"SUM(J57:J114)","v":0},null,{"$f":"SUM(L57:L114)","v":0},null,{"$f":"SUM(N57:N114)","v":0},null,{"$f":"SUM(P57:P114)","v":0},null,{"$f":"SUM(R57:R114)","v":0},null,{"$f":"SUM(T57:T114)","v":0},null,{"$f":"SUM(V57:V114)","v":0},null,{"$f":"SUM(X57:X114)","v":0},null,{"$f":"SUM(Z57:Z114)","v":0},null,{"$f":"SUM(AB57:AB114)","v":0},null,{"$f":"SUM(AD57:AD114)","v":0},null,{"$f":"SUM(AF57:AF114)","v":0},null,{"$f":"SUM(AH57:AH114)","v":0},null,{"$f":"SUM(AJ57:AJ114)","v":0},null,{"$f":"SUM(AL57:AL114)","v":0},null,{"$f":"SUM(AN57:AN114)","v":0},null,{"$f":"SUM(AP57:AP114)","v":0},null,{"$f":"SUM(AR57:AR114)","v":0},null,{"$f":"SUM(AT57:AT114)","v":0},null,{"$f":"SUM(AV57:AV114)","v":0},null,{"$f":"SUM(AX57:AX114)","v":0},null,{"$f":"SUM(AZ57:AZ114)","v":0},null,{"$f":"SUM(BB57:BB114)","v":0},{"$f":"SUM(E115:BB115)","v":0}]
["TOTAL WORKDAYS",null,null,null,null,{"$f":"F115/8","v":0},null,{"$f":"H115/8","v":0},null,{"$f":"J115/8","v":0},null,{"$f":"L115/8","v":0},null,{"$f":"N115/8","v":0},null,{"$f":"P115/8","v":0},null,{"$f":"R115/8","v":0},null,{"$f":"T115/8","v":0},null,{"$f":"V115/8","v":0},null,{"$f":"X115/8","v":0},null,{"$f":"Z115/8","v":0},null,{"$f":"AB115/8","v":0},null,{"$f":"AD115/8","v":0},null,0,null,{"$f":"AH115/8","v":0},null,0,null,{"$f":"AL115/8","v":0},null,0,null,{"$f":"AP115/8","v":0},null,0,null,{"$f":"AT115/8","v":0},null,{"$f":"AV115/8","v":0},null,{"$f":"AX115/8","v":0},null,{"$f":"AZ115/8","v":0},null,{"$f":"BB115/8","v":0},{"$f":"SUM(E116:BB116)","v":0}]
["TOTAL RAW LABOR",null,null,null,null,{"$f":"$E$13*F115","v":0},null,{"$f":"$G$13*H115","v":0},null,{"$f":"$I$13*J115","v":0},null,{"$f":"$K$13*L115","v":0},null,{"$f":"$M$13*N115","v":0},null,{"$f":"$O$13*P115","v":0},null,{"$f":"$Q$13*R115","v":0},null,{"$f":"$S$13*T115","v":0},null,{"$f":"$U$13*V115","v":0},null,{"$f":"$W$13*X115","v":0},null,{"$f":"$Y$13*Z115","v":0},null,{"$f":"$AA$13*AB115","v":0},null,{"$f":"$AC$13*AD115","v":0},null,{"$f":"$AC$13*AF115","v":0},null,{"$f":"$AC$13*AH115","v":0},null,{"$f":"$AC$13*AJ115","v":0},null,{"$f":"$AC$13*AL115","v":0},null,{"$f":"$AC$13*AN115","v":0},null,{"$f":"$AC$13*AP115","v":0},null,{"$f":"$AC$13*AR115","v":0},null,{"$f":"$AC$13*AT115","v":0},null,{"$f":"$AC$13*AV115","v":0},null,{"$f":"$AC$13*AX115","v":0},null,{"$f":"$AC$13*AZ115","v":0},null,{"$f":"$AC$13*BB115","v":0},{"$f":"SUM(E117:BB117)","v":0}]
["Task 4.0     ","COMMUNICATIONS SYSTEM",null,null,null,null,null,null,null,null,null,null,null,null,null,null,null,null,null,null,null,null,null,null,null,null,null,null,null,null,null,null,null,null,null,null,null,null,null,null,null,null,null,null,null,null,null,null,null,null,null,null,null,null," "]
[4.0999999999999996,"Legacy Systems Review",null,null,{"$f":"IF($C$119=\"\",\"\",F119/$C$119)","v":""},null,{"$f":"IF($C$119=\"\",\"\",H119/$C$119)","v":""},null,{"$f":"IF($C$119=\"\",\"\",J119/$C$119)","v":""},null,{"$f":"IF($C$119=\"\",\"\",L119/$C$119)","v":""},null,{"$f":"IF($C$119=\"\",\"\",N119/$C$119)","v":""},null,{"$f":"IF($C$119=\"\",\"\",P119/$C$119)","v":""},null,{"$f":"IF($C$119=\"\",\"\",R119/$C$119)","v":""},null,{"$f":"IF($C$119=\"\",\"\",T119/$C$119)","v":""},null,{"$f":"IF($C$119=\"\",\"\",V119/$C$119)","v":""},null,{"$f":"IF($C$119=\"\",\"\",X119/$C$119)","v":""},null,{"$f":"IF($C$119=\"\",\"\",Z119/$C$119)","v":""},null,{"$f":"IF($C$119=\"\",\"\",AB119/$C$119)","v":""},null,{"$f":"IF($C$119=\"\",\"\",AD119/$C$119)","v":""},null,{"$f":"IF($C$119=\"\",\"\",AF119/$C$119)","v":""},null,{"$f":"IF($C$119=\"\",\"\",AH119/$C$119)","v":""},null,{"$f":"IF($C$119=\"\",\"\",AJ119/$C$119)","v":""},null,{"$f":"IF($C$119=\"\",\"\",AL119/$C$119)","v":""},null,{"$f":"IF($C$119=\"\",\"\",AN119/$C$119)","v":""},null,{"$f":"IF($C$119=\"\",\"\",AP119/$C$119)","v":""},null,{"$f":"IF($C$119=\"\",\"\",AR119/$C$119)","v":""},null,{"$f":"IF($C$119=\"\",\"\",AT119/$C$119)","v":""},null,{"$f":"IF($C$119=\"\",\"\",AV119/$C$119)","v":""},null,{"$f":"IF($C$119=\"\",\"\",AX119/$C$119)","v":""},null,{"$f":"IF($C$119=\"\",\"\",AZ119/$C$119)","v":""},null,{"$f":"IF($C$119=\"\",\"\",BB119/$C$119)","v":""},null,{"$f":"SUM(BB119,AZ119,AX119,AV119,AT119,AR119,AP119,AN119,AL119,AJ119,AH119,AF119,AD119,AB119,Z119,X119,V119,T119,R119,P119,N119,L119,J119,H119,F119)","v":0}]
[4.2,"Technology Review"]
["    4.2.1","    Wireless Site Surveys (Wireless Tests)",null,null,{"$f":"IF($C$121=\"\",\"\",F121/$C$121)","v":""},null,{"$f":"IF($C$121=\"\",\"\",H121/$C$121)","v":""},null,{"$f":"IF($C$121=\"\",\"\",J121/$C$121)","v":""},null,{"$f":"IF($C$121=\"\",\"\",L121/$C$121)","v":""},null,{"$f":"IF($C$121=\"\",\"\",N121/$C$121)","v":""},null,{"$f":"IF($C$121=\"\",\"\",P121/$C$121)","v":""},null,{"$f":"IF($C$121=\"\",\"\",R121/$C$121)","v":""},null,{"$f":"IF($C$121=\"\",\"\",T121/$C$121)","v":""},null,{"$f":"IF($C$121=\"\",\"\",V121/$C$121)","v":""},null,{"$f":"IF($C$121=\"\",\"\",X121/$C$121)","v":""},null,{"$f":"IF($C$121=\"\",\"\",Z121/$C$121)","v":""},null,{"$f":"IF($C$121=\"\",\"\",AB121/$C$121)","v":""},null,{"$f":"IF($C$121=\"\",\"\",AD121/$C$121)","v":""},null,{"$f":"IF($C$121=\"\",\"\",AF121/$C$121)","v":""},null,{"$f":"IF($C$121=\"\",\"\",AH121/$C$121)","v":""},null,{"$f":"IF($C$121=\"\",\"\",AJ121/$C$121)","v":""},null,{"$f":"IF($C$121=\"\",\"\",AL121/$C$121)","v":""},null,{"$f":"IF($C$121=\"\",\"\",AN121/$C$121)","v":""},null,{"$f":"IF($C$121=\"\",\"\",AP121/$C$121)","v":""},null,{"$f":"IF($C$121=\"\",\"\",AR121/$C$121)","v":""},null,{"$f":"IF($C$121=\"\",\"\",AT121/$C$121)","v":""},null,{"$f":"IF($C$121=\"\",\"\",AV121/$C$121)","v":""},null,{"$f":"IF($C$121=\"\",\"\",AX121/$C$121)","v":""},null,{"$f":"IF($C$121=\"\",\"\",AZ121/$C$121)","v":""},null,{"$f":"IF($C$121=\"\",\"\",BB121/$C$121)","v":""},null,{"$f":"SUM(BB121,AZ121,AX121,AV121,AT121,AR121,AP121,AN121,AL121,AJ121,AH121,AF121,AD121,AB121,Z121,X121,V121,T121,R121,P121,N121,L121,J121,H121,F121)","v":0}]
["    4.2.2","    Alternatives Evaluation",null,null,{"$f":"IF($C$122=\"\",\"\",F122/$C$122)","v":""},null,{"$f":"IF($C$122=\"\",\"\",H122/$C$122)","v":""},null,{"$f":"IF($C$122=\"\",\"\",J122/$C$122)","v":""},null,{"$f":"IF($C$122=\"\",\"\",L122/$C$122)","v":""},null,{"$f":"IF($C$122=\"\",\"\",N122/$C$122)","v":""},null,{"$f":"IF($C$122=\"\",\"\",P122/$C$122)","v":""},null,{"$f":"IF($C$122=\"\",\"\",R122/$C$122)","v":""},null,{"$f":"IF($C$122=\"\",\"\",T122/$C$122)","v":""},null,{"$f":"IF($C$122=\"\",\"\",V122/$C$122)","v":""},null,{"$f":"IF($C$122=\"\",\"\",X122/$C$122)","v":""},null,{"$f":"IF($C$122=\"\",\"\",Z122/$C$122)","v":""},null,{"$f":"IF($C$122=\"\",\"\",AB122/$C$122)","v":""},null,{"$f":"IF($C$122=\"\",\"\",AD122/$C$122)","v":""},null,{"$f":"IF($C$122=\"\",\"\",AF122/$C$122)","v":""},null,{"$f":"IF($C$122=\"\",\"\",AH122/$C$122)","v":""},null,{"$f":"IF($C$122=\"\",\"\",AJ122/$C$122)","v":""},null,{"$f":"IF($C$122=\"\",\"\",AL122/$C$122)","v":""},null,{"$f":"IF($C$122=\"\",\"\",AN122/$C$122)","v":""},null,{"$f":"IF($C$122=\"\",\"\",AP122/$C$122)","v":""},null,{"$f":"IF($C$122=\"\",\"\",AR122/$C$122)","v":""},null,{"$f":"IF($C$122=\"\",\"\",AT122/$C$122)","v":""},null,{"$f":"IF($C$122=\"\",\"\",AV122/$C$122)","v":""},null,{"$f":"IF($C$122=\"\",\"\",AX122/$C$122)","v":""},null,{"$f":"IF($C$122=\"\",\"\",AZ122/$C$122)","v":""},null,{"$f":"IF($C$122=\"\",\"\",BB122/$C$122)","v":""},null,0]
["    4.2.3",null,null,null,{"$f":"IF($C$123=\"\",\"\",F123/$C$123)","v":""},null,{"$f":"IF($C$123=\"\",\"\",H123/$C$123)","v":""},null,{"$f":"IF($C$123=\"\",\"\",J123/$C$123)","v":""},null,{"$f":"IF($C$123=\"\",\"\",L123/$C$123)","v":""},null,{"$f":"IF($C$123=\"\",\"\",N123/$C$123)","v":""},null,{"$f":"IF($C$123=\"\",\"\",P123/$C$123)","v":""},null,{"$f":"IF($C$123=\"\",\"\",R123/$C$123)","v":""},null,{"$f":"IF($C$123=\"\",\"\",T123/$C$123)","v":""},null,{"$f":"IF($C$123=\"\",\"\",V123/$C$123)","v":""},null,{"$f":"IF($C$123=\"\",\"\",X123/$C$123)","v":""},null,{"$f":"IF($C$123=\"\",\"\",Z123/$C$123)","v":""},null,{"$f":"IF($C$123=\"\",\"\",AB123/$C$123)","v":""},null,{"$f":"IF($C$123=\"\",\"\",AD123/$C$123)","v":""},null,{"$f":"IF($C$123=\"\",\"\",AF123/$C$123)","v":""},null,{"$f":"IF($C$123=\"\",\"\",AH123/$C$123)","v":""},null,{"$f":"IF($C$123=\"\",\"\",AJ123/$C$123)","v":""},null,{"$f":"IF($C$123=\"\",\"\",AL123/$C$123)","v":""},null,{"$f":"IF($C$123=\"\",\"\",AN123/$C$123)","v":""},null,{"$f":"IF($C$123=\"\",\"\",AP123/$C$123)","v":""},null,{"$f":"IF($C$123=\"\",\"\",AR123/$C$123)","v":""},null,{"$f":"IF($C$123=\"\",\"\",AT123/$C$123)","v":""},null,{"$f":"IF($C$123=\"\",\"\",AV123/$C$123)","v":""},null,{"$f":"IF($C$123=\"\",\"\",AX123/$C$123)","v":""},null,{"$f":"IF($C$123=\"\",\"\",AZ123/$C$123)","v":""},null,{"$f":"IF($C$123=\"\",\"\",BB123/$C$123)","v":""},null,0]
["    4.2.4",null,null,null,{"$f":"IF($C$124=\"\",\"\",F124/$C$124)","v":""},null,{"$f":"IF($C$124=\"\",\"\",H124/$C$124)","v":""},null,{"$f":"IF($C$124=\"\",\"\",J124/$C$124)","v":""},null,{"$f":"IF($C$124=\"\",\"\",L124/$C$124)","v":""},null,{"$f":"IF($C$124=\"\",\"\",N124/$C$124)","v":""},null,{"$f":"IF($C$124=\"\",\"\",P124/$C$124)","v":""},null,{"$f":"IF($C$124=\"\",\"\",R124/$C$124)","v":""},null,{"$f":"IF($C$124=\"\",\"\",T124/$C$124)","v":""},null,{"$f":"IF($C$124=\"\",\"\",V124/$C$124)","v":""},null,{"$f":"IF($C$124=\"\",\"\",X124/$C$124)","v":""},null,{"$f":"IF($C$124=\"\",\"\",Z124/$C$124)","v":""},null,{"$f":"IF($C$124=\"\",\"\",AB124/$C$124)","v":""},null,{"$f":"IF($C$124=\"\",\"\",AD124/$C$124)","v":""},null,{"$f":"IF($C$124=\"\",\"\",AF124/$C$124)","v":""},null,{"$f":"IF($C$124=\"\",\"\",AH124/$C$124)","v":""},null,{"$f":"IF($C$124=\"\",\"\",AJ124/$C$124)","v":""},null,{"$f":"IF($C$124=\"\",\"\",AL124/$C$124)","v":""},null,{"$f":"IF($C$124=\"\",\"\",AN124/$C$124)","v":""},null,{"$f":"IF($C$124=\"\",\"\",AP124/$C$124)","v":""},null,{"$f":"IF($C$124=\"\",\"\",AR124/$C$124)","v":""},null,{"$f":"IF($C$124=\"\",\"\",AT124/$C$124)","v":""},null,{"$f":"IF($C$124=\"\",\"\",AV124/$C$124)","v":""},null,{"$f":"IF($C$124=\"\",\"\",AX124/$C$124)","v":""},null,{"$f":"IF($C$124=\"\",\"\",AZ124/$C$124)","v":""},null,{"$f":"IF($C$124=\"\",\"\",BB124/$C$124)","v":""},null,0]
["    4.2.5",null,null,null,{"$f":"IF($C$125=\"\",\"\",F125/$C$125)","v":""},null,{"$f":"IF($C$125=\"\",\"\",H125/$C$125)","v":""},null,{"$f":"IF($C$125=\"\",\"\",J125/$C$125)","v":""},null,{"$f":"IF($C$125=\"\",\"\",L125/$C$125)","v":""},null,{"$f":"IF($C$125=\"\",\"\",N125/$C$125)","v":""},null,{"$f":"IF($C$125=\"\",\"\",P125/$C$125)","v":""},null,{"$f":"IF($C$125=\"\",\"\",R125/$C$125)","v":""},null,{"$f":"IF($C$125=\"\",\"\",T125/$C$125)","v":""},null,{"$f":"IF($C$125=\"\",\"\",V125/$C$125)","v":""},null,{"$f":"IF($C$125=\"\",\"\",X125/$C$125)","v":""},null,{"$f":"IF($C$125=\"\",\"\",Z125/$C$125)","v":""},null,{"$f":"IF($C$125=\"\",\"\",AB125/$C$125)","v":""},null,{"$f":"IF($C$125=\"\",\"\",AD125/$C$125)","v":""},null,{"$f":"IF($C$125=\"\",\"\",AF125/$C$125)","v":""},null,{"$f":"IF($C$125=\"\",\"\",AH125/$C$125)","v":""},null,{"$f":"IF($C$125=\"\",\"\",AJ125/$C$125)","v":""},null,{"$f":"IF($C$125=\"\",\"\",AL125/$C$125)","v":""},null,{"$f":"IF($C$125=\"\",\"\",AN125/$C$125)","v":""},null,{"$f":"IF($C$125=\"\",\"\",AP125/$C$125)","v":""},null,{"$f":"IF($C$125=\"\",\"\",AR125/$C$125)","v":""},null,{"$f":"IF($C$125=\"\",\"\",AT125/$C$125)","v":""},null,{"$f":"IF($C$125=\"\",\"\",AV125/$C$125)","v":""},null,{"$f":"IF($C$125=\"\",\"\",AX125/$C$125)","v":""},null,{"$f":"IF($C$125=\"\",\"\",AZ125/$C$125)","v":""},null,{"$f":"IF($C$125=\"\",\"\",BB125/$C$125)","v":""},null,0]
[4.3,"Migration Plan",null,null,{"$f":"IF($C$126=\"\",\"\",F126/$C$126)","v":""},null,{"$f":"IF($C$126=\"\",\"\",H126/$C$126)","v":""},null,{"$f":"IF($C$126=\"\",\"\",J126/$C$126)","v":""},null,{"$f":"IF($C$126=\"\",\"\",L126/$C$126)","v":""},null,{"$f":"IF($C$126=\"\",\"\",N126/$C$126)","v":""},null,{"$f":"IF($C$126=\"\",\"\",P126/$C$126)","v":""},null,{"$f":"IF($C$126=\"\",\"\",R126/$C$126)","v":""},null,{"$f":"IF($C$126=\"\",\"\",T126/$C$126)","v":""},null,{"$f":"IF($C$126=\"\",\"\",V126/$C$126)","v":""},null,{"$f":"IF($C$126=\"\",\"\",X126/$C$126)","v":""},null,{"$f":"IF($C$126=\"\",\"\",Z126/$C$126)","v":""},null,{"$f":"IF($C$126=\"\",\"\",AB126/$C$126)","v":""},null,{"$f":"IF($C$126=\"\",\"\",AD126/$C$126)","v":""},null,{"$f":"IF($C$126=\"\",\"\",AF126/$C$126)","v":""},null,{"$f":"IF($C$126=\"\",\"\",AH126/$C$126)","v":""},null,{"$f":"IF($C$126=\"\",\"\",AJ126/$C$126)","v":""},null,{"$f":"IF($C$126=\"\",\"\",AL126/$C$126)","v":""},null,{"$f":"IF($C$126=\"\",\"\",AN126/$C$126)","v":""},null,{"$f":"IF($C$126=\"\",\"\",AP126/$C$126)","v":""},null,{"$f":"IF($C$126=\"\",\"\",AR126/$C$126)","v":""},null,{"$f":"IF($C$126=\"\",\"\",AT126/$C$126)","v":""},null,{"$f":"IF($C$126=\"\",\"\",AV126/$C$126)","v":""},null,{"$f":"IF($C$126=\"\",\"\",AX126/$C$126)","v":""},null,{"$f":"IF($C$126=\"\",\"\",AZ126/$C$126)","v":""},null,{"$f":"IF($C$126=\"\",\"\",BB126/$C$126)","v":""},null,0]
[4.4000000000000004,"Bandwidth Analysis",null,null,{"$f":"IF($C$127=\"\",\"\",F127/$C$127)","v":""},null,{"$f":"IF($C$127=\"\",\"\",H127/$C$127)","v":""},null,{"$f":"IF($C$127=\"\",\"\",J127/$C$127)","v":""},null,{"$f":"IF($C$127=\"\",\"\",L127/$C$127)","v":""},null,{"$f":"IF($C$127=\"\",\"\",N127/$C$127)","v":""},null,{"$f":"IF($C$127=\"\",\"\",P127/$C$127)","v":""},null,{"$f":"IF($C$127=\"\",\"\",R127/$C$127)","v":""},null,{"$f":"IF($C$127=\"\",\"\",T127/$C$127)","v":""},null,{"$f":"IF($C$127=\"\",\"\",V127/$C$127)","v":""},null,{"$f":"IF($C$127=\"\",\"\",X127/$C$127)","v":""},null,{"$f":"IF($C$127=\"\",\"\",Z127/$C$127)","v":""},null,{"$f":"IF($C$127=\"\",\"\",AB127/$C$127)","v":""},null,{"$f":"IF($C$127=\"\",\"\",AD127/$C$127)","v":""},null,{"$f":"IF($C$127=\"\",\"\",AF127/$C$127)","v":""},null,{"$f":"IF($C$127=\"\",\"\",AH127/$C$127)","v":""},null,{"$f":"IF($C$127=\"\",\"\",AJ127/$C$127)","v":""},null,{"$f":"IF($C$127=\"\",\"\",AL127/$C$127)","v":""},null,{"$f":"IF($C$127=\"\",\"\",AN127/$C$127)","v":""},null,{"$f":"IF($C$127=\"\",\"\",AP127/$C$127)","v":""},null,{"$f":"IF($C$127=\"\",\"\",AR127/$C$127)","v":""},null,{"$f":"IF($C$127=\"\",\"\",AT127/$C$127)","v":""},null,{"$f":"IF($C$127=\"\",\"\",AV127/$C$127)","v":""},null,{"$f":"IF($C$127=\"\",\"\",AX127/$C$127)","v":""},null,{"$f":"IF($C$127=\"\",\"\",AZ127/$C$127)","v":""},null,{"$f":"IF($C$127=\"\",\"\",BB127/$C$127)","v":""},null,0]
[4.5,"Block Diagrams",null,null,{"$f":"IF($C$128=\"\",\"\",F128/$C$128)","v":""},null,{"$f":"IF($C$128=\"\",\"\",H128/$C$128)","v":""},null,{"$f":"IF($C$128=\"\",\"\",J128/$C$128)","v":""},null,{"$f":"IF($C$128=\"\",\"\",L128/$C$128)","v":""},null,{"$f":"IF($C$128=\"\",\"\",N128/$C$128)","v":""},null,{"$f":"IF($C$128=\"\",\"\",P128/$C$128)","v":""},null,{"$f":"IF($C$128=\"\",\"\",R128/$C$128)","v":""},null,{"$f":"IF($C$128=\"\",\"\",T128/$C$128)","v":""},null,{"$f":"IF($C$128=\"\",\"\",V128/$C$128)","v":""},null,{"$f":"IF($C$128=\"\",\"\",X128/$C$128)","v":""},null,{"$f":"IF($C$128=\"\",\"\",Z128/$C$128)","v":""},null,{"$f":"IF($C$128=\"\",\"\",AB128/$C$128)","v":""},null,{"$f":"IF($C$128=\"\",\"\",AD128/$C$128)","v":""},null,{"$f":"IF($C$128=\"\",\"\",AF128/$C$128)","v":""},null,{"$f":"IF($C$128=\"\",\"\",AH128/$C$128)","v":""},null,{"$f":"IF($C$128=\"\",\"\",AJ128/$C$128)","v":""},null,{"$f":"IF($C$128=\"\",\"\",AL128/$C$128)","v":""},null,{"$f":"IF($C$128=\"\",\"\",AN128/$C$128)","v":""},null,{"$f":"IF($C$128=\"\",\"\",AP128/$C$128)","v":""},null,{"$f":"IF($C$128=\"\",\"\",AR128/$C$128)","v":""},null,{"$f":"IF($C$128=\"\",\"\",AT128/$C$128)","v":""},null,{"$f":"IF($C$128=\"\",\"\",AV128/$C$128)","v":""},null,{"$f":"IF($C$128=\"\",\"\",AX128/$C$128)","v":""},null,{"$f":"IF($C$128=\"\",\"\",AZ128/$C$128)","v":""},null,{"$f":"IF($C$128=\"\",\"\",BB128/$C$128)","v":""},null,0]
[4.5999999999999996,"Prepare Communications Technical Memorandum",null,null,{"$f":"IF($C$129=\"\",\"\",F129/$C$129)","v":""},null,{"$f":"IF($C$129=\"\",\"\",H129/$C$129)","v":""},null,{"$f":"IF($C$129=\"\",\"\",J129/$C$129)","v":""},null,{"$f":"IF($C$129=\"\",\"\",L129/$C$129)","v":""},null,{"$f":"IF($C$129=\"\",\"\",N129/$C$129)","v":""},null,{"$f":"IF($C$129=\"\",\"\",P129/$C$129)","v":""},null,{"$f":"IF($C$129=\"\",\"\",R129/$C$129)","v":""},null,{"$f":"IF($C$129=\"\",\"\",T129/$C$129)","v":""},null,{"$f":"IF($C$129=\"\",\"\",V129/$C$129)","v":""},null,{"$f":"IF($C$129=\"\",\"\",X129/$C$129)","v":""},null,{"$f":"IF($C$129=\"\",\"\",Z129/$C$129)","v":""},null,{"$f":"IF($C$129=\"\",\"\",AB129/$C$129)","v":""},null,{"$f":"IF($C$129=\"\",\"\",AD129/$C$129)","v":""},null,{"$f":"IF($C$129=\"\",\"\",AF129/$C$129)","v":""},null,{"$f":"IF($C$129=\"\",\"\",AH129/$C$129)","v":""},null,{"$f":"IF($C$129=\"\",\"\",AJ129/$C$129)","v":""},null,{"$f":"IF($C$129=\"\",\"\",AL129/$C$129)","v":""},null,{"$f":"IF($C$129=\"\",\"\",AN129/$C$129)","v":""},null,{"$f":"IF($C$129=\"\",\"\",AP129/$C$129)","v":""},null,{"$f":"IF($C$129=\"\",\"\",AR129/$C$129)","v":""},null,{"$f":"IF($C$129=\"\",\"\",AT129/$C$129)","v":""},null,{"$f":"IF($C$129=\"\",\"\",AV129/$C$129)","v":""},null,{"$f":"IF($C$129=\"\",\"\",AX129/$C$129)","v":""},null,{"$f":"IF($C$129=\"\",\"\",AZ129/$C$129)","v":""},null,{"$f":"IF($C$129=\"\",\"\",BB129/$C$129)","v":""},null,0]
[4.7,"Quality Reviews",null,null,{"$f":"IF($C$130=\"\",\"\",F130/$C$130)","v":""},null,{"$f":"IF($C$130=\"\",\"\",H130/$C$130)","v":""},null,{"$f":"IF($C$130=\"\",\"\",J130/$C$130)","v":""},null,{"$f":"IF($C$130=\"\",\"\",L130/$C$130)","v":""},null,{"$f":"IF($C$130=\"\",\"\",N130/$C$130)","v":""},null,{"$f":"IF($C$130=\"\",\"\",P130/$C$130)","v":""},null,{"$f":"IF($C$130=\"\",\"\",R130/$C$130)","v":""},null,{"$f":"IF($C$130=\"\",\"\",T130/$C$130)","v":""},null,{"$f":"IF($C$130=\"\",\"\",V130/$C$130)","v":""},null,{"$f":"IF($C$130=\"\",\"\",X130/$C$130)","v":""},null,{"$f":"IF($C$130=\"\",\"\",Z130/$C$130)","v":""},null,{"$f":"IF($C$130=\"\",\"\",AB130/$C$130)","v":""},null,{"$f":"IF($C$130=\"\",\"\",AD130/$C$130)","v":""},null,{"$f":"IF($C$130=\"\",\"\",AF130/$C$130)","v":""},null,{"$f":"IF($C$130=\"\",\"\",AH130/$C$130)","v":""},null,{"$f":"IF($C$130=\"\",\"\",AJ130/$C$130)","v":""},null,{"$f":"IF($C$130=\"\",\"\",AL130/$C$130)","v":""},null,{"$f":"IF($C$130=\"\",\"\",AN130/$C$130)","v":""},null,{"$f":"IF($C$130=\"\",\"\",AP130/$C$130)","v":""},null,{"$f":"IF($C$130=\"\",\"\",AR130/$C$130)","v":""},null,{"$f":"IF($C$130=\"\",\"\",AT130/$C$130)","v":""},null,{"$f":"IF($C$130=\"\",\"\",AV130/$C$130)","v":""},null,{"$f":"IF($C$130=\"\",\"\",AX130/$C$130)","v":""},null,{"$f":"IF($C$130=\"\",\"\",AZ130/$C$130)","v":""},null,{"$f":"IF($C$130=\"\",\"\",BB130/$C$130)","v":""},null,0]
[null,null,null,null,{"$f":"IF($C$131=\"\",\"\",F131/$C$131)","v":""},null,{"$f":"IF($C$131=\"\",\"\",H131/$C$131)","v":""},null,{"$f":"IF($C$131=\"\",\"\",J131/$C$131)","v":""},null,{"$f":"IF($C$131=\"\",\"\",L131/$C$131)","v":""},null,{"$f":"IF($C$131=\"\",\"\",N131/$C$131)","v":""},null,{"$f":"IF($C$131=\"\",\"\",P131/$C$131)","v":""},null,{"$f":"IF($C$131=\"\",\"\",R131/$C$131)","v":""},null,{"$f":"IF($C$131=\"\",\"\",T131/$C$131)","v":""},null,{"$f":"IF($C$131=\"\",\"\",V131/$C$131)","v":""},null,{"$f":"IF($C$131=\"\",\"\",X131/$C$131)","v":""},null,{"$f":"IF($C$131=\"\",\"\",Z131/$C$131)","v":""},null,{"$f":"IF($C$131=\"\",\"\",AB131/$C$131)","v":""},null,{"$f":"IF($C$131=\"\",\"\",AD131/$C$131)","v":""},null,{"$f":"IF($C$131=\"\",\"\",AF131/$C$131)","v":""},null,{"$f":"IF($C$131=\"\",\"\",AH131/$C$131)","v":""},null,{"$f":"IF($C$131=\"\",\"\",AJ131/$C$131)","v":""},null,{"$f":"IF($C$131=\"\",\"\",AL131/$C$131)","v":""},null,{"$f":"IF($C$131=\"\",\"\",AN131/$C$131)","v":""},null,{"$f":"IF($C$131=\"\",\"\",AP131/$C$131)","v":""},null,{"$f":"IF($C$131=\"\",\"\",AR131/$C$131)","v":""},null,{"$f":"IF($C$131=\"\",\"\",AT131/$C$131)","v":""},null,{"$f":"IF($C$131=\"\",\"\",AV131/$C$131)","v":""},null,{"$f":"IF($C$131=\"\",\"\",AX131/$C$131)","v":""},null,{"$f":"IF($C$131=\"\",\"\",AZ131/$C$131)","v":""},null,{"$f":"IF($C$131=\"\",\"\",BB131/$C$131)","v":""},null,0]
[null,null,null,null,{"$f":"IF($C$132=\"\",\"\",F132/$C$132)","v":""},null,{"$f":"IF($C$132=\"\",\"\",H132/$C$132)","v":""},null,{"$f":"IF($C$132=\"\",\"\",J132/$C$132)","v":""},null,{"$f":"IF($C$132=\"\",\"\",L132/$C$132)","v":""},null,{"$f":"IF($C$132=\"\",\"\",N132/$C$132)","v":""},null,{"$f":"IF($C$132=\"\",\"\",P132/$C$132)","v":""},null,{"$f":"IF($C$132=\"\",\"\",R132/$C$132)","v":""},null,{"$f":"IF($C$132=\"\",\"\",T132/$C$132)","v":""},null,{"$f":"IF($C$132=\"\",\"\",V132/$C$132)","v":""},null,{"$f":"IF($C$132=\"\",\"\",X132/$C$132)","v":""},null,{"$f":"IF($C$132=\"\",\"\",Z132/$C$132)","v":""},null,{"$f":"IF($C$132=\"\",\"\",AB132/$C$132)","v":""},null,{"$f":"IF($C$132=\"\",\"\",AD132/$C$132)","v":""},null,{"$f":"IF($C$132=\"\",\"\",AF132/$C$132)","v":""},null,{"$f":"IF($C$132=\"\",\"\",AH132/$C$132)","v":""},null,{"$f":"IF($C$132=\"\",\"\",AJ132/$C$132)","v":""},null,{"$f":"IF($C$132=\"\",\"\",AL132/$C$132)","v":""},null,{"$f":"IF($C$132=\"\",\"\",AN132/$C$132)","v":""},null,{"$f":"IF($C$132=\"\",\"\",AP132/$C$132)","v":""},null,{"$f":"IF($C$132=\"\",\"\",AR132/$C$132)","v":""},null,{"$f":"IF($C$132=\"\",\"\",AT132/$C$132)","v":""},null,{"$f":"IF($C$132=\"\",\"\",AV132/$C$132)","v":""},null,{"$f":"IF($C$132=\"\",\"\",AX132/$C$132)","v":""},null,{"$f":"IF($C$132=\"\",\"\",AZ132/$C$132)","v":""},null,{"$f":"IF($C$132=\"\",\"\",BB132/$C$132)","v":""},null,0]
[null,null,null,null,{"$f":"IF($C$133=\"\",\"\",F133/$C$133)","v":""},null,{"$f":"IF($C$133=\"\",\"\",H133/$C$133)","v":""},null,{"$f":"IF($C$133=\"\",\"\",J133/$C$133)","v":""},null,{"$f":"IF($C$133=\"\",\"\",L133/$C$133)","v":""},null,{"$f":"IF($C$133=\"\",\"\",N133/$C$133)","v":""},null,{"$f":"IF($C$133=\"\",\"\",P133/$C$133)","v":""},null,{"$f":"IF($C$133=\"\",\"\",R133/$C$133)","v":""},null,{"$f":"IF($C$133=\"\",\"\",T133/$C$133)","v":""},null,{"$f":"IF($C$133=\"\",\"\",V133/$C$133)","v":""},null,{"$f":"IF($C$133=\"\",\"\",X133/$C$133)","v":""},null,{"$f":"IF($C$133=\"\",\"\",Z133/$C$133)","v":""},null,{"$f":"IF($C$133=\"\",\"\",AB133/$C$133)","v":""},null,{"$f":"IF($C$133=\"\",\"\",AD133/$C$133)","v":""},null,{"$f":"IF($C$133=\"\",\"\",AF133/$C$133)","v":""},null,{"$f":"IF($C$133=\"\",\"\",AH133/$C$133)","v":""},null,{"$f":"IF($C$133=\"\",\"\",AJ133/$C$133)","v":""},null,{"$f":"IF($C$133=\"\",\"\",AL133/$C$133)","v":""},null,{"$f":"IF($C$133=\"\",\"\",AN133/$C$133)","v":""},null,{"$f":"IF($C$133=\"\",\"\",AP133/$C$133)","v":""},null,{"$f":"IF($C$133=\"\",\"\",AR133/$C$133)","v":""},null,{"$f":"IF($C$133=\"\",\"\",AT133/$C$133)","v":""},null,{"$f":"IF($C$133=\"\",\"\",AV133/$C$133)","v":""},null,{"$f":"IF($C$133=\"\",\"\",AX133/$C$133)","v":""},null,{"$f":"IF($C$133=\"\",\"\",AZ133/$C$133)","v":""},null,{"$f":"IF($C$133=\"\",\"\",BB133/$C$133)","v":""},null,0]
[null,null,null,null,{"$f":"IF($C$134=\"\",\"\",F134/$C$134)","v":""},null,{"$f":"IF($C$134=\"\",\"\",H134/$C$134)","v":""},null,{"$f":"IF($C$134=\"\",\"\",J134/$C$134)","v":""},null,{"$f":"IF($C$134=\"\",\"\",L134/$C$134)","v":""},null,{"$f":"IF($C$134=\"\",\"\",N134/$C$134)","v":""},null,{"$f":"IF($C$134=\"\",\"\",P134/$C$134)","v":""},null,{"$f":"IF($C$134=\"\",\"\",R134/$C$134)","v":""},null,{"$f":"IF($C$134=\"\",\"\",T134/$C$134)","v":""},null,{"$f":"IF($C$134=\"\",\"\",V134/$C$134)","v":""},null,{"$f":"IF($C$134=\"\",\"\",X134/$C$134)","v":""},null,{"$f":"IF($C$134=\"\",\"\",Z134/$C$134)","v":""},null,{"$f":"IF($C$134=\"\",\"\",AB134/$C$134)","v":""},null,{"$f":"IF($C$134=\"\",\"\",AD134/$C$134)","v":""},null,{"$f":"IF($C$134=\"\",\"\",AF134/$C$134)","v":""},null,{"$f":"IF($C$134=\"\",\"\",AH134/$C$134)","v":""},null,{"$f":"IF($C$134=\"\",\"\",AJ134/$C$134)","v":""},null,{"$f":"IF($C$134=\"\",\"\",AL134/$C$134)","v":""},null,{"$f":"IF($C$134=\"\",\"\",AN134/$C$134)","v":""},null,{"$f":"IF($C$134=\"\",\"\",AP134/$C$134)","v":""},null,{"$f":"IF($C$134=\"\",\"\",AR134/$C$134)","v":""},null,{"$f":"IF($C$134=\"\",\"\",AT134/$C$134)","v":""},null,{"$f":"IF($C$134=\"\",\"\",AV134/$C$134)","v":""},null,{"$f":"IF($C$134=\"\",\"\",AX134/$C$134)","v":""},null,{"$f":"IF($C$134=\"\",\"\",AZ134/$C$134)","v":""},null,{"$f":"IF($C$134=\"\",\"\",BB134/$C$134)","v":""},null,0]
[null,null,null,null,{"$f":"IF($C$135=\"\",\"\",F135/$C$135)","v":""},null,{"$f":"IF($C$135=\"\",\"\",H135/$C$135)","v":""},null,{"$f":"IF($C$135=\"\",\"\",J135/$C$135)","v":""},null,{"$f":"IF($C$135=\"\",\"\",L135/$C$135)","v":""},null,{"$f":"IF($C$135=\"\",\"\",N135/$C$135)","v":""},null,{"$f":"IF($C$135=\"\",\"\",P135/$C$135)","v":""},null,{"$f":"IF($C$135=\"\",\"\",R135/$C$135)","v":""},null,{"$f":"IF($C$135=\"\",\"\",T135/$C$135)","v":""},null,{"$f":"IF($C$135=\"\",\"\",V135/$C$135)","v":""},null,{"$f":"IF($C$135=\"\",\"\",X135/$C$135)","v":""},null,{"$f":"IF($C$135=\"\",\"\",Z135/$C$135)","v":""},null,{"$f":"IF($C$135=\"\",\"\",AB135/$C$135)","v":""},null,{"$f":"IF($C$135=\"\",\"\",AD135/$C$135)","v":""},null,{"$f":"IF($C$135=\"\",\"\",AF135/$C$135)","v":""},null,{"$f":"IF($C$135=\"\",\"\",AH135/$C$135)","v":""},null,{"$f":"IF($C$135=\"\",\"\",AJ135/$C$135)","v":""},null,{"$f":"IF($C$135=\"\",\"\",AL135/$C$135)","v":""},null,{"$f":"IF($C$135=\"\",\"\",AN135/$C$135)","v":""},null,{"$f":"IF($C$135=\"\",\"\",AP135/$C$135)","v":""},null,{"$f":"IF($C$135=\"\",\"\",AR135/$C$135)","v":""},null,{"$f":"IF($C$135=\"\",\"\",AT135/$C$135)","v":""},null,{"$f":"IF($C$135=\"\",\"\",AV135/$C$135)","v":""},null,{"$f":"IF($C$135=\"\",\"\",AX135/$C$135)","v":""},null,{"$f":"IF($C$135=\"\",\"\",AZ135/$C$135)","v":""},null,{"$f":"IF($C$135=\"\",\"\",BB135/$C$135)","v":""},null,0]
[null,null,null,null,{"$f":"IF($C$136=\"\",\"\",F136/$C$136)","v":""},null,{"$f":"IF($C$136=\"\",\"\",H136/$C$136)","v":""},null,{"$f":"IF($C$136=\"\",\"\",J136/$C$136)","v":""},null,{"$f":"IF($C$136=\"\",\"\",L136/$C$136)","v":""},null,{"$f":"IF($C$136=\"\",\"\",N136/$C$136)","v":""},null,{"$f":"IF($C$136=\"\",\"\",P136/$C$136)","v":""},null,{"$f":"IF($C$136=\"\",\"\",R136/$C$136)","v":""},null,{"$f":"IF($C$136=\"\",\"\",T136/$C$136)","v":""},null,{"$f":"IF($C$136=\"\",\"\",V136/$C$136)","v":""},null,{"$f":"IF($C$136=\"\",\"\",X136/$C$136)","v":""},null,{"$f":"IF($C$136=\"\",\"\",Z136/$C$136)","v":""},null,{"$f":"IF($C$136=\"\",\"\",AB136/$C$136)","v":""},null,{"$f":"IF($C$136=\"\",\"\",AD136/$C$136)","v":""},null,{"$f":"IF($C$136=\"\",\"\",AF136/$C$136)","v":""},null,{"$f":"IF($C$136=\"\",\"\",AH136/$C$136)","v":""},null,{"$f":"IF($C$136=\"\",\"\",AJ136/$C$136)","v":""},null,{"$f":"IF($C$136=\"\",\"\",AL136/$C$136)","v":""},null,{"$f":"IF($C$136=\"\",\"\",AN136/$C$136)","v":""},null,{"$f":"IF($C$136=\"\",\"\",AP136/$C$136)","v":""},null,{"$f":"IF($C$136=\"\",\"\",AR136/$C$136)","v":""},null,{"$f":"IF($C$136=\"\",\"\",AT136/$C$136)","v":""},null,{"$f":"IF($C$136=\"\",\"\",AV136/$C$136)","v":""},null,{"$f":"IF($C$136=\"\",\"\",AX136/$C$136)","v":""},null,{"$f":"IF($C$136=\"\",\"\",AZ136/$C$136)","v":""},null,{"$f":"IF($C$136=\"\",\"\",BB136/$C$136)","v":""},null,0]
[null,null,null,null,{"$f":"IF($C$137=\"\",\"\",F137/$C$137)","v":""},null,{"$f":"IF($C$137=\"\",\"\",H137/$C$137)","v":""},null,{"$f":"IF($C$137=\"\",\"\",J137/$C$137)","v":""},null,{"$f":"IF($C$137=\"\",\"\",L137/$C$137)","v":""},null,{"$f":"IF($C$137=\"\",\"\",N137/$C$137)","v":""},null,{"$f":"IF($C$137=\"\",\"\",P137/$C$137)","v":""},null,{"$f":"IF($C$137=\"\",\"\",R137/$C$137)","v":""},null,{"$f":"IF($C$137=\"\",\"\",T137/$C$137)","v":""},null,{"$f":"IF($C$137=\"\",\"\",V137/$C$137)","v":""},null,{"$f":"IF($C$137=\"\",\"\",X137/$C$137)","v":""},null,{"$f":"IF($C$137=\"\",\"\",Z137/$C$137)","v":""},null,{"$f":"IF($C$137=\"\",\"\",AB137/$C$137)","v":""},null,{"$f":"IF($C$137=\"\",\"\",AD137/$C$137)","v":""},null,{"$f":"IF($C$137=\"\",\"\",AF137/$C$137)","v":""},null,{"$f":"IF($C$137=\"\",\"\",AH137/$C$137)","v":""},null,{"$f":"IF($C$137=\"\",\"\",AJ137/$C$137)","v":""},null,{"$f":"IF($C$137=\"\",\"\",AL137/$C$137)","v":""},null,{"$f":"IF($C$137=\"\",\"\",AN137/$C$137)","v":""},null,{"$f":"IF($C$137=\"\",\"\",AP137/$C$137)","v":""},null,{"$f":"IF($C$137=\"\",\"\",AR137/$C$137)","v":""},null,{"$f":"IF($C$137=\"\",\"\",AT137/$C$137)","v":""},null,{"$f":"IF($C$137=\"\",\"\",AV137/$C$137)","v":""},null,{"$f":"IF($C$137=\"\",\"\",AX137/$C$137)","v":""},null,{"$f":"IF($C$137=\"\",\"\",AZ137/$C$137)","v":""},null,{"$f":"IF($C$137=\"\",\"\",BB137/$C$137)","v":""},null,{"$f":"SUM(BB137,AZ137,AX137,AV137,AT137,AR137,AP137,AN137,AL137,AJ137,AH137,AF137,AD137,AB137,Z137,X137,V137,T137,R137,P137,N137,L137,J137,H137,F137)","v":0}]
["TOTAL HOURS",null,null,null,null,{"$f":"SUM(F119:F137)","v":0},null,{"$f":"SUM(H119:H137)","v":0},null,{"$f":"SUM(J119:J137)","v":0},null,{"$f":"SUM(L119:L137)","v":0},null,{"$f":"SUM(N119:N137)","v":0},null,{"$f":"SUM(P119:P137)","v":0},null,{"$f":"SUM(R119:R137)","v":0},null,{"$f":"SUM(T119:T137)","v":0},null,{"$f":"SUM(V119:V137)","v":0},null,{"$f":"SUM(X119:X137)","v":0},null,{"$f":"SUM(Z119:Z137)","v":0},null,{"$f":"SUM(AB119:AB137)","v":0},null,{"$f":"SUM(AD119:AD137)","v":0},null,{"$f":"SUM(AF119:AF137)","v":0},null,{"$f":"SUM(AH119:AH137)","v":0},null,{"$f":"SUM(AJ119:AJ137)","v":0},null,{"$f":"SUM(AL119:AL137)","v":0},null,{"$f":"SUM(AN119:AN137)","v":0},null,{"$f":"SUM(AP119:AP137)","v":0},null,{"$f":"SUM(AR119:AR137)","v":0},null,{"$f":"SUM(AT119:AT137)","v":0},null,{"$f":"SUM(AV119:AV137)","v":0},null,{"$f":"SUM(AX119:AX137)","v":0},null,{"$f":"SUM(AZ119:AZ137)","v":0},null,{"$f":"SUM(BB119:BB137)","v":0},{"$f":"SUM(E138:BB138)","v":0}]
["TOTAL WORKDAYS",null,null,null,null,{"$f":"F138/8","v":0},null,{"$f":"H138/8","v":0},null,{"$f":"J138/8","v":0},null,{"$f":"L138/8","v":0},null,{"$f":"N138/8","v":0},null,{"$f":"P138/8","v":0},null,{"$f":"R138/8","v":0},null,{"$f":"T138/8","v":0},null,{"$f":"V138/8","v":0},null,{"$f":"X138/8","v":0},null,{"$f":"Z138/8","v":0},null,{"$f":"AB138/8","v":0},null,{"$f":"AD138/8","v":0},null,0,null,{"$f":"AH138/8","v":0},null,0,null,{"$f":"AL138/8","v":0},null,0,null,{"$f":"AP138/8","v":0},null,0,null,{"$f":"AT138/8","v":0},null,{"$f":"AV138/8","v":0},null,{"$f":"AX138/8","v":0},null,{"$f":"AZ138/8","v":0},null,{"$f":"BB138/8","v":0},{"$f":"SUM(E139:BB139)","v":0}]
["TOTAL RAW LABOR",null,null,null,null,{"$f":"$E$13*F138","v":0},null,{"$f":"$G$13*H138","v":0},null,{"$f":"$I$13*J138","v":0},null,{"$f":"$K$13*L138","v":0},null,{"$f":"$M$13*N138","v":0},null,{"$f":"$O$13*P138","v":0},null,{"$f":"$Q$13*R138","v":0},null,{"$f":"$S$13*T138","v":0},null,{"$f":"$U$13*V138","v":0},null,{"$f":"$W$13*X138","v":0},null,{"$f":"$Y$13*Z138","v":0},null,{"$f":"$AA$13*AB138","v":0},null,{"$f":"$AC$13*AD138","v":0},null,{"$f":"$AC$13*AF138","v":0},null,{"$f":"$AC$13*AH138","v":0},null,{"$f":"$AC$13*AJ138","v":0},null,{"$f":"$AC$13*AL138","v":0},null,{"$f":"$AC$13*AN138","v":0},null,{"$f":"$AC$13*AP138","v":0},null,{"$f":"$AC$13*AR138","v":0},null,{"$f":"$AC$13*AT138","v":0},null,{"$f":"$AC$13*AV138","v":0},null,{"$f":"$AC$13*AX138","v":0},null,{"$f":"$AC$13*AZ138","v":0},null,{"$f":"$AC$13*BB138","v":0},{"$f":"SUM(E140:BB140)","v":0}]
["Task 5.0     ","FIELD EQUIPMENT INVENTORIES"]
[5.0999999999999996,"Existing Data Collection",null,null,{"$f":"IF($C$142=\"\",\"\",F142/$C$142)","v":""},null,{"$f":"IF($C$142=\"\",\"\",H142/$C$142)","v":""},null,{"$f":"IF($C$142=\"\",\"\",J142/$C$142)","v":""},null,{"$f":"IF($C$142=\"\",\"\",L142/$C$142)","v":""},null,{"$f":"IF($C$142=\"\",\"\",N142/$C$142)","v":""},null,{"$f":"IF($C$142=\"\",\"\",P142/$C$142)","v":""},null,{"$f":"IF($C$142=\"\",\"\",R142/$C$142)","v":""},null,{"$f":"IF($C$142=\"\",\"\",T142/$C$142)","v":""},null,{"$f":"IF($C$142=\"\",\"\",V142/$C$142)","v":""},null,{"$f":"IF($C$142=\"\",\"\",X142/$C$142)","v":""},null,{"$f":"IF($C$142=\"\",\"\",Z142/$C$142)","v":""},null,{"$f":"IF($C$142=\"\",\"\",AB142/$C$142)","v":""},null,{"$f":"IF($C$142=\"\",\"\",AD142/$C$142)","v":""},null,{"$f":"IF($C$142=\"\",\"\",AF142/$C$142)","v":""},null,{"$f":"IF($C$142=\"\",\"\",AH142/$C$142)","v":""},null,{"$f":"IF($C$142=\"\",\"\",AJ142/$C$142)","v":""},null,{"$f":"IF($C$142=\"\",\"\",AL142/$C$142)","v":""},null,{"$f":"IF($C$142=\"\",\"\",AN142/$C$142)","v":""},null,{"$f":"IF($C$142=\"\",\"\",AP142/$C$142)","v":""},null,{"$f":"IF($C$142=\"\",\"\",AR142/$C$142)","v":""},null,{"$f":"IF($C$142=\"\",\"\",AT142/$C$142)","v":""},null,{"$f":"IF($C$142=\"\",\"\",AV142/$C$142)","v":""},null,{"$f":"IF($C$142=\"\",\"\",AX142/$C$142)","v":""},null,{"$f":"IF($C$142=\"\",\"\",AZ142/$C$142)","v":""},null,{"$f":"IF($C$142=\"\",\"\",BB142/$C$142)","v":""},null,{"$f":"SUM(BB142,AZ142,AX142,AV142,AT142,AR142,AP142,AN142,AL142,AJ142,AH142,AF142,AD142,AB142,Z142,X142,V142,T142,R142,P142,N142,L142,J142,H142,F142)","v":0}]
[5.2,"Signal Inventories"]
["    5.2.1","    Inventory Existing NCDOT Signals",null,null,{"$f":"IF($C$144=\"\",\"\",F144/$C$144)","v":""},null,{"$f":"IF($C$144=\"\",\"\",H144/$C$144)","v":""},null,{"$f":"IF($C$144=\"\",\"\",J144/$C$144)","v":""},null,{"$f":"IF($C$144=\"\",\"\",L144/$C$144)","v":""},null,{"$f":"IF($C$144=\"\",\"\",N144/$C$144)","v":""},null,{"$f":"IF($C$144=\"\",\"\",P144/$C$144)","v":""},null,{"$f":"IF($C$144=\"\",\"\",R144/$C$144)","v":""},null,{"$f":"IF($C$144=\"\",\"\",T144/$C$144)","v":""},null,{"$f":"IF($C$144=\"\",\"\",V144/$C$144)","v":""},null,{"$f":"IF($C$144=\"\",\"\",X144/$C$144)","v":""},null,{"$f":"IF($C$144=\"\",\"\",Z144/$C$144)","v":""},null,{"$f":"IF($C$144=\"\",\"\",AB144/$C$144)","v":""},null,{"$f":"IF($C$144=\"\",\"\",AD144/$C$144)","v":""},null,{"$f":"IF($C$144=\"\",\"\",AF144/$C$144)","v":""},null,{"$f":"IF($C$144=\"\",\"\",AH144/$C$144)","v":""},null,{"$f":"IF($C$144=\"\",\"\",AJ144/$C$144)","v":""},null,{"$f":"IF($C$144=\"\",\"\",AL144/$C$144)","v":""},null,{"$f":"IF($C$144=\"\",\"\",AN144/$C$144)","v":""},null,{"$f":"IF($C$144=\"\",\"\",AP144/$C$144)","v":""},null,{"$f":"IF($C$144=\"\",\"\",AR144/$C$144)","v":""},null,{"$f":"IF($C$144=\"\",\"\",AT144/$C$144)","v":""},null,{"$f":"IF($C$144=\"\",\"\",AV144/$C$144)","v":""},null,{"$f":"IF($C$144=\"\",\"\",AX144/$C$144)","v":""},null,{"$f":"IF($C$144=\"\",\"\",AZ144/$C$144)","v":""},null,{"$f":"IF($C$144=\"\",\"\",BB144/$C$144)","v":""},null,{"$f":"SUM(BB144,AZ144,AX144,AV144,AT144,AR144,AP144,AN144,AL144,AJ144,AH144,AF144,AD144,AB144,Z144,X144,V144,T144,R144,P144,N144,L144,J144,H144,F144)","v":0}]
["    5.2.2","    Inventory Existing City Signals",null,null,{"$f":"IF($C$145=\"\",\"\",F145/$C$145)","v":""},null,{"$f":"IF($C$145=\"\",\"\",H145/$C$145)","v":""},null,{"$f":"IF($C$145=\"\",\"\",J145/$C$145)","v":""},null,{"$f":"IF($C$145=\"\",\"\",L145/$C$145)","v":""},null,{"$f":"IF($C$145=\"\",\"\",N145/$C$145)","v":""},null,{"$f":"IF($C$145=\"\",\"\",P145/$C$145)","v":""},null,{"$f":"IF($C$145=\"\",\"\",R145/$C$145)","v":""},null,{"$f":"IF($C$145=\"\",\"\",T145/$C$145)","v":""},null,{"$f":"IF($C$145=\"\",\"\",V145/$C$145)","v":""},null,{"$f":"IF($C$145=\"\",\"\",X145/$C$145)","v":""},null,{"$f":"IF($C$145=\"\",\"\",Z145/$C$145)","v":""},null,{"$f":"IF($C$145=\"\",\"\",AB145/$C$145)","v":""},null,{"$f":"IF($C$145=\"\",\"\",AD145/$C$145)","v":""},null,{"$f":"IF($C$145=\"\",\"\",AF145/$C$145)","v":""},null,{"$f":"IF($C$145=\"\",\"\",AH145/$C$145)","v":""},null,{"$f":"IF($C$145=\"\",\"\",AJ145/$C$145)","v":""},null,{"$f":"IF($C$145=\"\",\"\",AL145/$C$145)","v":""},null,{"$f":"IF($C$145=\"\",\"\",AN145/$C$145)","v":""},null,{"$f":"IF($C$145=\"\",\"\",AP145/$C$145)","v":""},null,{"$f":"IF($C$145=\"\",\"\",AR145/$C$145)","v":""},null,{"$f":"IF($C$145=\"\",\"\",AT145/$C$145)","v":""},null,{"$f":"IF($C$145=\"\",\"\",AV145/$C$145)","v":""},null,{"$f":"IF($C$145=\"\",\"\",AX145/$C$145)","v":""},null,{"$f":"IF($C$145=\"\",\"\",AZ145/$C$145)","v":""},null,{"$f":"IF($C$145=\"\",\"\",BB145/$C$145)","v":""},null,0]
["    5.2.3",null,null,null,{"$f":"IF($C$146=\"\",\"\",F146/$C$146)","v":""},null,{"$f":"IF($C$146=\"\",\"\",H146/$C$146)","v":""},null,{"$f":"IF($C$146=\"\",\"\",J146/$C$146)","v":""},null,{"$f":"IF($C$146=\"\",\"\",L146/$C$146)","v":""},null,{"$f":"IF($C$146=\"\",\"\",N146/$C$146)","v":""},null,{"$f":"IF($C$146=\"\",\"\",P146/$C$146)","v":""},null,{"$f":"IF($C$146=\"\",\"\",R146/$C$146)","v":""},null,{"$f":"IF($C$146=\"\",\"\",T146/$C$146)","v":""},null,{"$f":"IF($C$146=\"\",\"\",V146/$C$146)","v":""},null,{"$f":"IF($C$146=\"\",\"\",X146/$C$146)","v":""},null,{"$f":"IF($C$146=\"\",\"\",Z146/$C$146)","v":""},null,{"$f":"IF($C$146=\"\",\"\",AB146/$C$146)","v":""},null,{"$f":"IF($C$146=\"\",\"\",AD146/$C$146)","v":""},null,{"$f":"IF($C$146=\"\",\"\",AF146/$C$146)","v":""},null,{"$f":"IF($C$146=\"\",\"\",AH146/$C$146)","v":""},null,{"$f":"IF($C$146=\"\",\"\",AJ146/$C$146)","v":""},null,{"$f":"IF($C$146=\"\",\"\",AL146/$C$146)","v":""},null,{"$f":"IF($C$146=\"\",\"\",AN146/$C$146)","v":""},null,{"$f":"IF($C$146=\"\",\"\",AP146/$C$146)","v":""},null,{"$f":"IF($C$146=\"\",\"\",AR146/$C$146)","v":""},null,{"$f":"IF($C$146=\"\",\"\",AT146/$C$146)","v":""},null,{"$f":"IF($C$146=\"\",\"\",AV146/$C$146)","v":""},null,{"$f":"IF($C$146=\"\",\"\",AX146/$C$146)","v":""},null,{"$f":"IF($C$146=\"\",\"\",AZ146/$C$146)","v":""},null,{"$f":"IF($C$146=\"\",\"\",BB146/$C$146)","v":""},null,0]
["    5.2.4",null,null,null,{"$f":"IF($C$147=\"\",\"\",F147/$C$147)","v":""},null,{"$f":"IF($C$147=\"\",\"\",H147/$C$147)","v":""},null,{"$f":"IF($C$147=\"\",\"\",J147/$C$147)","v":""},null,{"$f":"IF($C$147=\"\",\"\",L147/$C$147)","v":""},null,{"$f":"IF($C$147=\"\",\"\",N147/$C$147)","v":""},null,{"$f":"IF($C$147=\"\",\"\",P147/$C$147)","v":""},null,{"$f":"IF($C$147=\"\",\"\",R147/$C$147)","v":""},null,{"$f":"IF($C$147=\"\",\"\",T147/$C$147)","v":""},null,{"$f":"IF($C$147=\"\",\"\",V147/$C$147)","v":""},null,{"$f":"IF($C$147=\"\",\"\",X147/$C$147)","v":""},null,{"$f":"IF($C$147=\"\",\"\",Z147/$C$147)","v":""},null,{"$f":"IF($C$147=\"\",\"\",AB147/$C$147)","v":""},null,{"$f":"IF($C$147=\"\",\"\",AD147/$C$147)","v":""},null,{"$f":"IF($C$147=\"\",\"\",AF147/$C$147)","v":""},null,{"$f":"IF($C$147=\"\",\"\",AH147/$C$147)","v":""},null,{"$f":"IF($C$147=\"\",\"\",AJ147/$C$147)","v":""},null,{"$f":"IF($C$147=\"\",\"\",AL147/$C$147)","v":""},null,{"$f":"IF($C$147=\"\",\"\",AN147/$C$147)","v":""},null,{"$f":"IF($C$147=\"\",\"\",AP147/$C$147)","v":""},null,{"$f":"IF($C$147=\"\",\"\",AR147/$C$147)","v":""},null,{"$f":"IF($C$147=\"\",\"\",AT147/$C$147)","v":""},null,{"$f":"IF($C$147=\"\",\"\",AV147/$C$147)","v":""},null,{"$f":"IF($C$147=\"\",\"\",AX147/$C$147)","v":""},null,{"$f":"IF($C$147=\"\",\"\",AZ147/$C$147)","v":""},null,{"$f":"IF($C$147=\"\",\"\",BB147/$C$147)","v":""},null,0]
["    5.2.5",null,null,null,{"$f":"IF($C$148=\"\",\"\",F148/$C$148)","v":""},null,{"$f":"IF($C$148=\"\",\"\",H148/$C$148)","v":""},null,{"$f":"IF($C$148=\"\",\"\",J148/$C$148)","v":""},null,{"$f":"IF($C$148=\"\",\"\",L148/$C$148)","v":""},null,{"$f":"IF($C$148=\"\",\"\",N148/$C$148)","v":""},null,{"$f":"IF($C$148=\"\",\"\",P148/$C$148)","v":""},null,{"$f":"IF($C$148=\"\",\"\",R148/$C$148)","v":""},null,{"$f":"IF($C$148=\"\",\"\",T148/$C$148)","v":""},null,{"$f":"IF($C$148=\"\",\"\",V148/$C$148)","v":""},null,{"$f":"IF($C$148=\"\",\"\",X148/$C$148)","v":""},null,{"$f":"IF($C$148=\"\",\"\",Z148/$C$148)","v":""},null,{"$f":"IF($C$148=\"\",\"\",AB148/$C$148)","v":""},null,{"$f":"IF($C$148=\"\",\"\",AD148/$C$148)","v":""},null,{"$f":"IF($C$148=\"\",\"\",AF148/$C$148)","v":""},null,{"$f":"IF($C$148=\"\",\"\",AH148/$C$148)","v":""},null,{"$f":"IF($C$148=\"\",\"\",AJ148/$C$148)","v":""},null,{"$f":"IF($C$148=\"\",\"\",AL148/$C$148)","v":""},null,{"$f":"IF($C$148=\"\",\"\",AN148/$C$148)","v":""},null,{"$f":"IF($C$148=\"\",\"\",AP148/$C$148)","v":""},null,{"$f":"IF($C$148=\"\",\"\",AR148/$C$148)","v":""},null,{"$f":"IF($C$148=\"\",\"\",AT148/$C$148)","v":""},null,{"$f":"IF($C$148=\"\",\"\",AV148/$C$148)","v":""},null,{"$f":"IF($C$148=\"\",\"\",AX148/$C$148)","v":""},null,{"$f":"IF($C$148=\"\",\"\",AZ148/$C$148)","v":""},null,{"$f":"IF($C$148=\"\",\"\",BB148/$C$148)","v":""},null,0]
[5.3,"Cabinet Replacement and Foundation Requirements",null,null,{"$f":"IF($C$149=\"\",\"\",F149/$C$149)","v":""},null,{"$f":"IF($C$149=\"\",\"\",H149/$C$149)","v":""},null,{"$f":"IF($C$149=\"\",\"\",J149/$C$149)","v":""},null,{"$f":"IF($C$149=\"\",\"\",L149/$C$149)","v":""},null,{"$f":"IF($C$149=\"\",\"\",N149/$C$149)","v":""},null,{"$f":"IF($C$149=\"\",\"\",P149/$C$149)","v":""},null,{"$f":"IF($C$149=\"\",\"\",R149/$C$149)","v":""},null,{"$f":"IF($C$149=\"\",\"\",T149/$C$149)","v":""},null,{"$f":"IF($C$149=\"\",\"\",V149/$C$149)","v":""},null,{"$f":"IF($C$149=\"\",\"\",X149/$C$149)","v":""},null,{"$f":"IF($C$149=\"\",\"\",Z149/$C$149)","v":""},null,{"$f":"IF($C$149=\"\",\"\",AB149/$C$149)","v":""},null,{"$f":"IF($C$149=\"\",\"\",AD149/$C$149)","v":""},null,{"$f":"IF($C$149=\"\",\"\",AF149/$C$149)","v":""},null,{"$f":"IF($C$149=\"\",\"\",AH149/$C$149)","v":""},null,{"$f":"IF($C$149=\"\",\"\",AJ149/$C$149)","v":""},null,{"$f":"IF($C$149=\"\",\"\",AL149/$C$149)","v":""},null,{"$f":"IF($C$149=\"\",\"\",AN149/$C$149)","v":""},null,{"$f":"IF($C$149=\"\",\"\",AP149/$C$149)","v":""},null,{"$f":"IF($C$149=\"\",\"\",AR149/$C$149)","v":""},null,{"$f":"IF($C$149=\"\",\"\",AT149/$C$149)","v":""},null,{"$f":"IF($C$149=\"\",\"\",AV149/$C$149)","v":""},null,{"$f":"IF($C$149=\"\",\"\",AX149/$C$149)","v":""},null,{"$f":"IF($C$149=\"\",\"\",AZ149/$C$149)","v":""},null,{"$f":"IF($C$149=\"\",\"\",BB149/$C$149)","v":""},null,0]
[5.4,"Inventory CCTV Camera Assemblies",null,null,{"$f":"IF($C$150=\"\",\"\",F150/$C$150)","v":""},null,{"$f":"IF($C$150=\"\",\"\",H150/$C$150)","v":""},null,{"$f":"IF($C$150=\"\",\"\",J150/$C$150)","v":""},null,{"$f":"IF($C$150=\"\",\"\",L150/$C$150)","v":""},null,{"$f":"IF($C$150=\"\",\"\",N150/$C$150)","v":""},null,{"$f":"IF($C$150=\"\",\"\",P150/$C$150)","v":""},null,{"$f":"IF($C$150=\"\",\"\",R150/$C$150)","v":""},null,{"$f":"IF($C$150=\"\",\"\",T150/$C$150)","v":""},null,{"$f":"IF($C$150=\"\",\"\",V150/$C$150)","v":""},null,{"$f":"IF($C$150=\"\",\"\",X150/$C$150)","v":""},null,{"$f":"IF($C$150=\"\",\"\",Z150/$C$150)","v":""},null,{"$f":"IF($C$150=\"\",\"\",AB150/$C$150)","v":""},null,{"$f":"IF($C$150=\"\",\"\",AD150/$C$150)","v":""},null,{"$f":"IF($C$150=\"\",\"\",AF150/$C$150)","v":""},null,{"$f":"IF($C$150=\"\",\"\",AH150/$C$150)","v":""},null,{"$f":"IF($C$150=\"\",\"\",AJ150/$C$150)","v":""},null,{"$f":"IF($C$150=\"\",\"\",AL150/$C$150)","v":""},null,{"$f":"IF($C$150=\"\",\"\",AN150/$C$150)","v":""},null,{"$f":"IF($C$150=\"\",\"\",AP150/$C$150)","v":""},null,{"$f":"IF($C$150=\"\",\"\",AR150/$C$150)","v":""},null,{"$f":"IF($C$150=\"\",\"\",AT150/$C$150)","v":""},null,{"$f":"IF($C$150=\"\",\"\",AV150/$C$150)","v":""},null,{"$f":"IF($C$150=\"\",\"\",AX150/$C$150)","v":""},null,{"$f":"IF($C$150=\"\",\"\",AZ150/$C$150)","v":""},null,{"$f":"IF($C$150=\"\",\"\",BB150/$C$150)","v":""},null,0]
[5.5,"Compile and Summarize Inventory Data",null,null,{"$f":"IF($C$151=\"\",\"\",F151/$C$151)","v":""},null,{"$f":"IF($C$151=\"\",\"\",H151/$C$151)","v":""},null,{"$f":"IF($C$151=\"\",\"\",J151/$C$151)","v":""},null,{"$f":"IF($C$151=\"\",\"\",L151/$C$151)","v":""},null,{"$f":"IF($C$151=\"\",\"\",N151/$C$151)","v":""},null,{"$f":"IF($C$151=\"\",\"\",P151/$C$151)","v":""},null,{"$f":"IF($C$151=\"\",\"\",R151/$C$151)","v":""},null,{"$f":"IF($C$151=\"\",\"\",T151/$C$151)","v":""},null,{"$f":"IF($C$151=\"\",\"\",V151/$C$151)","v":""},null,{"$f":"IF($C$151=\"\",\"\",X151/$C$151)","v":""},null,{"$f":"IF($C$151=\"\",\"\",Z151/$C$151)","v":""},null,{"$f":"IF($C$151=\"\",\"\",AB151/$C$151)","v":""},null,{"$f":"IF($C$151=\"\",\"\",AD151/$C$151)","v":""},null,{"$f":"IF($C$151=\"\",\"\",AF151/$C$151)","v":""},null,{"$f":"IF($C$151=\"\",\"\",AH151/$C$151)","v":""},null,{"$f":"IF($C$151=\"\",\"\",AJ151/$C$151)","v":""},null,{"$f":"IF($C$151=\"\",\"\",AL151/$C$151)","v":""},null,{"$f":"IF($C$151=\"\",\"\",AN151/$C$151)","v":""},null,{"$f":"IF($C$151=\"\",\"\",AP151/$C$151)","v":""},null,{"$f":"IF($C$151=\"\",\"\",AR151/$C$151)","v":""},null,{"$f":"IF($C$151=\"\",\"\",AT151/$C$151)","v":""},null,{"$f":"IF($C$151=\"\",\"\",AV151/$C$151)","v":""},null,{"$f":"IF($C$151=\"\",\"\",AX151/$C$151)","v":""},null,{"$f":"IF($C$151=\"\",\"\",AZ151/$C$151)","v":""},null,{"$f":"IF($C$151=\"\",\"\",BB151/$C$151)","v":""},null,0]
[null,null,null,null,{"$f":"IF($C$152=\"\",\"\",F152/$C$152)","v":""},null,{"$f":"IF($C$152=\"\",\"\",H152/$C$152)","v":""},null,{"$f":"IF($C$152=\"\",\"\",J152/$C$152)","v":""},null,{"$f":"IF($C$152=\"\",\"\",L152/$C$152)","v":""},null,{"$f":"IF($C$152=\"\",\"\",N152/$C$152)","v":""},null,{"$f":"IF($C$152=\"\",\"\",P152/$C$152)","v":""},null,{"$f":"IF($C$152=\"\",\"\",R152/$C$152)","v":""},null,{"$f":"IF($C$152=\"\",\"\",T152/$C$152)","v":""},null,{"$f":"IF($C$152=\"\",\"\",V152/$C$152)","v":""},null,{"$f":"IF($C$152=\"\",\"\",X152/$C$152)","v":""},null,{"$f":"IF($C$152=\"\",\"\",Z152/$C$152)","v":""},null,{"$f":"IF($C$152=\"\",\"\",AB152/$C$152)","v":""},null,{"$f":"IF($C$152=\"\",\"\",AD152/$C$152)","v":""},null,{"$f":"IF($C$152=\"\",\"\",AF152/$C$152)","v":""},null,{"$f":"IF($C$152=\"\",\"\",AH152/$C$152)","v":""},null,{"$f":"IF($C$152=\"\",\"\",AJ152/$C$152)","v":""},null,{"$f":"IF($C$152=\"\",\"\",AL152/$C$152)","v":""},null,{"$f":"IF($C$152=\"\",\"\",AN152/$C$152)","v":""},null,{"$f":"IF($C$152=\"\",\"\",AP152/$C$152)","v":""},null,{"$f":"IF($C$152=\"\",\"\",AR152/$C$152)","v":""},null,{"$f":"IF($C$152=\"\",\"\",AT152/$C$152)","v":""},null,{"$f":"IF($C$152=\"\",\"\",AV152/$C$152)","v":""},null,{"$f":"IF($C$152=\"\",\"\",AX152/$C$152)","v":""},null,{"$f":"IF($C$152=\"\",\"\",AZ152/$C$152)","v":""},null,{"$f":"IF($C$152=\"\",\"\",BB152/$C$152)","v":""},null,0]
[null,null,null,null,{"$f":"IF($C$153=\"\",\"\",F153/$C$153)","v":""},null,{"$f":"IF($C$153=\"\",\"\",H153/$C$153)","v":""},null,{"$f":"IF($C$153=\"\",\"\",J153/$C$153)","v":""},null,{"$f":"IF($C$153=\"\",\"\",L153/$C$153)","v":""},null,{"$f":"IF($C$153=\"\",\"\",N153/$C$153)","v":""},null,{"$f":"IF($C$153=\"\",\"\",P153/$C$153)","v":""},null,{"$f":"IF($C$153=\"\",\"\",R153/$C$153)","v":""},null,{"$f":"IF($C$153=\"\",\"\",T153/$C$153)","v":""},null,{"$f":"IF($C$153=\"\",\"\",V153/$C$153)","v":""},null,{"$f":"IF($C$153=\"\",\"\",X153/$C$153)","v":""},null,{"$f":"IF($C$153=\"\",\"\",Z153/$C$153)","v":""},null,{"$f":"IF($C$153=\"\",\"\",AB153/$C$153)","v":""},null,{"$f":"IF($C$153=\"\",\"\",AD153/$C$153)","v":""},null,{"$f":"IF($C$153=\"\",\"\",AF153/$C$153)","v":""},null,{"$f":"IF($C$153=\"\",\"\",AH153/$C$153)","v":""},null,{"$f":"IF($C$153=\"\",\"\",AJ153/$C$153)","v":""},null,{"$f":"IF($C$153=\"\",\"\",AL153/$C$153)","v":""},null,{"$f":"IF($C$153=\"\",\"\",AN153/$C$153)","v":""},null,{"$f":"IF($C$153=\"\",\"\",AP153/$C$153)","v":""},null,{"$f":"IF($C$153=\"\",\"\",AR153/$C$153)","v":""},null,{"$f":"IF($C$153=\"\",\"\",AT153/$C$153)","v":""},null,{"$f":"IF($C$153=\"\",\"\",AV153/$C$153)","v":""},null,{"$f":"IF($C$153=\"\",\"\",AX153/$C$153)","v":""},null,{"$f":"IF($C$153=\"\",\"\",AZ153/$C$153)","v":""},null,{"$f":"IF($C$153=\"\",\"\",BB153/$C$153)","v":""},null,0]
[null,null,null,null,{"$f":"IF($C$154=\"\",\"\",F154/$C$154)","v":""},null,{"$f":"IF($C$154=\"\",\"\",H154/$C$154)","v":""},null,{"$f":"IF($C$154=\"\",\"\",J154/$C$154)","v":""},null,{"$f":"IF($C$154=\"\",\"\",L154/$C$154)","v":""},null,{"$f":"IF($C$154=\"\",\"\",N154/$C$154)","v":""},null,{"$f":"IF($C$154=\"\",\"\",P154/$C$154)","v":""},null,{"$f":"IF($C$154=\"\",\"\",R154/$C$154)","v":""},null,{"$f":"IF($C$154=\"\",\"\",T154/$C$154)","v":""},null,{"$f":"IF($C$154=\"\",\"\",V154/$C$154)","v":""},null,{"$f":"IF($C$154=\"\",\"\",X154/$C$154)","v":""},null,{"$f":"IF($C$154=\"\",\"\",Z154/$C$154)","v":""},null,{"$f":"IF($C$154=\"\",\"\",AB154/$C$154)","v":""},null,{"$f":"IF($C$154=\"\",\"\",AD154/$C$154)","v":""},null,{"$f":"IF($C$154=\"\",\"\",AF154/$C$154)","v":""},null,{"$f":"IF($C$154=\"\",\"\",AH154/$C$154)","v":""},null,{"$f":"IF($C$154=\"\",\"\",AJ154/$C$154)","v":""},null,{"$f":"IF($C$154=\"\",\"\",AL154/$C$154)","v":""},null,{"$f":"IF($C$154=\"\",\"\",AN154/$C$154)","v":""},null,{"$f":"IF($C$154=\"\",\"\",AP154/$C$154)","v":""},null,{"$f":"IF($C$154=\"\",\"\",AR154/$C$154)","v":""},null,{"$f":"IF($C$154=\"\",\"\",AT154/$C$154)","v":""},null,{"$f":"IF($C$154=\"\",\"\",AV154/$C$154)","v":""},null,{"$f":"IF($C$154=\"\",\"\",AX154/$C$154)","v":""},null,{"$f":"IF($C$154=\"\",\"\",AZ154/$C$154)","v":""},null,{"$f":"IF($C$154=\"\",\"\",BB154/$C$154)","v":""},null,0]
[null,null,null,null,{"$f":"IF($C$155=\"\",\"\",F155/$C$155)","v":""},null,{"$f":"IF($C$155=\"\",\"\",H155/$C$155)","v":""},null,{"$f":"IF($C$155=\"\",\"\",J155/$C$155)","v":""},null,{"$f":"IF($C$155=\"\",\"\",L155/$C$155)","v":""},null,{"$f":"IF($C$155=\"\",\"\",N155/$C$155)","v":""},null,{"$f":"IF($C$155=\"\",\"\",P155/$C$155)","v":""},null,{"$f":"IF($C$155=\"\",\"\",R155/$C$155)","v":""},null,{"$f":"IF($C$155=\"\",\"\",T155/$C$155)","v":""},null,{"$f":"IF($C$155=\"\",\"\",V155/$C$155)","v":""},null,{"$f":"IF($C$155=\"\",\"\",X155/$C$155)","v":""},null,{"$f":"IF($C$155=\"\",\"\",Z155/$C$155)","v":""},null,{"$f":"IF($C$155=\"\",\"\",AB155/$C$155)","v":""},null,{"$f":"IF($C$155=\"\",\"\",AD155/$C$155)","v":""},null,{"$f":"IF($C$155=\"\",\"\",AF155/$C$155)","v":""},null,{"$f":"IF($C$155=\"\",\"\",AH155/$C$155)","v":""},null,{"$f":"IF($C$155=\"\",\"\",AJ155/$C$155)","v":""},null,{"$f":"IF($C$155=\"\",\"\",AL155/$C$155)","v":""},null,{"$f":"IF($C$155=\"\",\"\",AN155/$C$155)","v":""},null,{"$f":"IF($C$155=\"\",\"\",AP155/$C$155)","v":""},null,{"$f":"IF($C$155=\"\",\"\",AR155/$C$155)","v":""},null,{"$f":"IF($C$155=\"\",\"\",AT155/$C$155)","v":""},null,{"$f":"IF($C$155=\"\",\"\",AV155/$C$155)","v":""},null,{"$f":"IF($C$155=\"\",\"\",AX155/$C$155)","v":""},null,{"$f":"IF($C$155=\"\",\"\",AZ155/$C$155)","v":""},null,{"$f":"IF($C$155=\"\",\"\",BB155/$C$155)","v":""},null,0]
[null,null,null,null,{"$f":"IF($C$156=\"\",\"\",F156/$C$156)","v":""},null,{"$f":"IF($C$156=\"\",\"\",H156/$C$156)","v":""},null,{"$f":"IF($C$156=\"\",\"\",J156/$C$156)","v":""},null,{"$f":"IF($C$156=\"\",\"\",L156/$C$156)","v":""},null,{"$f":"IF($C$156=\"\",\"\",N156/$C$156)","v":""},null,{"$f":"IF($C$156=\"\",\"\",P156/$C$156)","v":""},null,{"$f":"IF($C$156=\"\",\"\",R156/$C$156)","v":""},null,{"$f":"IF($C$156=\"\",\"\",T156/$C$156)","v":""},null,{"$f":"IF($C$156=\"\",\"\",V156/$C$156)","v":""},null,{"$f":"IF($C$156=\"\",\"\",X156/$C$156)","v":""},null,{"$f":"IF($C$156=\"\",\"\",Z156/$C$156)","v":""},null,{"$f":"IF($C$156=\"\",\"\",AB156/$C$156)","v":""},null,{"$f":"IF($C$156=\"\",\"\",AD156/$C$156)","v":""},null,{"$f":"IF($C$156=\"\",\"\",AF156/$C$156)","v":""},null,{"$f":"IF($C$156=\"\",\"\",AH156/$C$156)","v":""},null,{"$f":"IF($C$156=\"\",\"\",AJ156/$C$156)","v":""},null,{"$f":"IF($C$156=\"\",\"\",AL156/$C$156)","v":""},null,{"$f":"IF($C$156=\"\",\"\",AN156/$C$156)","v":""},null,{"$f":"IF($C$156=\"\",\"\",AP156/$C$156)","v":""},null,{"$f":"IF($C$156=\"\",\"\",AR156/$C$156)","v":""},null,{"$f":"IF($C$156=\"\",\"\",AT156/$C$156)","v":""},null,{"$f":"IF($C$156=\"\",\"\",AV156/$C$156)","v":""},null,{"$f":"IF($C$156=\"\",\"\",AX156/$C$156)","v":""},null,{"$f":"IF($C$156=\"\",\"\",AZ156/$C$156)","v":""},null,{"$f":"IF($C$156=\"\",\"\",BB156/$C$156)","v":""},null,0]
[null,null,null,null,{"$f":"IF($C$157=\"\",\"\",F157/$C$157)","v":""},null,{"$f":"IF($C$157=\"\",\"\",H157/$C$157)","v":""},null,{"$f":"IF($C$157=\"\",\"\",J157/$C$157)","v":""},null,{"$f":"IF($C$157=\"\",\"\",L157/$C$157)","v":""},null,{"$f":"IF($C$157=\"\",\"\",N157/$C$157)","v":""},null,{"$f":"IF($C$157=\"\",\"\",P157/$C$157)","v":""},null,{"$f":"IF($C$157=\"\",\"\",R157/$C$157)","v":""},null,{"$f":"IF($C$157=\"\",\"\",T157/$C$157)","v":""},null,{"$f":"IF($C$157=\"\",\"\",V157/$C$157)","v":""},null,{"$f":"IF($C$157=\"\",\"\",X157/$C$157)","v":""},null,{"$f":"IF($C$157=\"\",\"\",Z157/$C$157)","v":""},null,{"$f":"IF($C$157=\"\",\"\",AB157/$C$157)","v":""},null,{"$f":"IF($C$157=\"\",\"\",AD157/$C$157)","v":""},null,{"$f":"IF($C$157=\"\",\"\",AF157/$C$157)","v":""},null,{"$f":"IF($C$157=\"\",\"\",AH157/$C$157)","v":""},null,{"$f":"IF($C$157=\"\",\"\",AJ157/$C$157)","v":""},null,{"$f":"IF($C$157=\"\",\"\",AL157/$C$157)","v":""},null,{"$f":"IF($C$157=\"\",\"\",AN157/$C$157)","v":""},null,{"$f":"IF($C$157=\"\",\"\",AP157/$C$157)","v":""},null,{"$f":"IF($C$157=\"\",\"\",AR157/$C$157)","v":""},null,{"$f":"IF($C$157=\"\",\"\",AT157/$C$157)","v":""},null,{"$f":"IF($C$157=\"\",\"\",AV157/$C$157)","v":""},null,{"$f":"IF($C$157=\"\",\"\",AX157/$C$157)","v":""},null,{"$f":"IF($C$157=\"\",\"\",AZ157/$C$157)","v":""},null,{"$f":"IF($C$157=\"\",\"\",BB157/$C$157)","v":""},null,0]
[null,null,null,null,{"$f":"IF($C$158=\"\",\"\",F158/$C$158)","v":""},null,{"$f":"IF($C$158=\"\",\"\",H158/$C$158)","v":""},null,{"$f":"IF($C$158=\"\",\"\",J158/$C$158)","v":""},null,{"$f":"IF($C$158=\"\",\"\",L158/$C$158)","v":""},null,{"$f":"IF($C$158=\"\",\"\",N158/$C$158)","v":""},null,{"$f":"IF($C$158=\"\",\"\",P158/$C$158)","v":""},null,{"$f":"IF($C$158=\"\",\"\",R158/$C$158)","v":""},null,{"$f":"IF($C$158=\"\",\"\",T158/$C$158)","v":""},null,{"$f":"IF($C$158=\"\",\"\",V158/$C$158)","v":""},null,{"$f":"IF($C$158=\"\",\"\",X158/$C$158)","v":""},null,{"$f":"IF($C$158=\"\",\"\",Z158/$C$158)","v":""},null,{"$f":"IF($C$158=\"\",\"\",AB158/$C$158)","v":""},null,{"$f":"IF($C$158=\"\",\"\",AD158/$C$158)","v":""},null,{"$f":"IF($C$158=\"\",\"\",AF158/$C$158)","v":""},null,{"$f":"IF($C$158=\"\",\"\",AH158/$C$158)","v":""},null,{"$f":"IF($C$158=\"\",\"\",AJ158/$C$158)","v":""},null,{"$f":"IF($C$158=\"\",\"\",AL158/$C$158)","v":""},null,{"$f":"IF($C$158=\"\",\"\",AN158/$C$158)","v":""},null,{"$f":"IF($C$158=\"\",\"\",AP158/$C$158)","v":""},null,{"$f":"IF($C$158=\"\",\"\",AR158/$C$158)","v":""},null,{"$f":"IF($C$158=\"\",\"\",AT158/$C$158)","v":""},null,{"$f":"IF($C$158=\"\",\"\",AV158/$C$158)","v":""},null,{"$f":"IF($C$158=\"\",\"\",AX158/$C$158)","v":""},null,{"$f":"IF($C$158=\"\",\"\",AZ158/$C$158)","v":""},null,{"$f":"IF($C$158=\"\",\"\",BB158/$C$158)","v":""},null,{"$f":"SUM(BB158,AZ158,AX158,AV158,AT158,AR158,AP158,AN158,AL158,AJ158,AH158,AF158,AD158,AB158,Z158,X158,V158,T158,R158,P158,N158,L158,J158,H158,F158)","v":0}]
["TOTAL HOURS",null,null,null,null,{"$f":"SUM(F142:F158)","v":0},null,{"$f":"SUM(H142:H158)","v":0},null,{"$f":"SUM(J142:J158)","v":0},null,{"$f":"SUM(L142:L158)","v":0},null,{"$f":"SUM(N142:N158)","v":0},null,{"$f":"SUM(P142:P158)","v":0},null,{"$f":"SUM(R142:R158)","v":0},null,{"$f":"SUM(T142:T158)","v":0},null,{"$f":"SUM(V142:V158)","v":0},null,{"$f":"SUM(X142:X158)","v":0},null,{"$f":"SUM(Z142:Z158)","v":0},null,{"$f":"SUM(AB142:AB158)","v":0},null,{"$f":"SUM(AD142:AD158)","v":0},null,{"$f":"SUM(AF142:AF158)","v":0},null,{"$f":"SUM(AH142:AH158)","v":0},null,{"$f":"SUM(AJ142:AJ158)","v":0},null,{"$f":"SUM(AL142:AL158)","v":0},null,{"$f":"SUM(AN142:AN158)","v":0},null,{"$f":"SUM(AP142:AP158)","v":0},null,{"$f":"SUM(AR142:AR158)","v":0},null,{"$f":"SUM(AT142:AT158)","v":0},null,{"$f":"SUM(AV142:AV158)","v":0},null,{"$f":"SUM(AX142:AX158)","v":0},null,{"$f":"SUM(AZ142:AZ158)","v":0},null,{"$f":"SUM(BB142:BB158)","v":0},{"$f":"SUM(E159:BB159)","v":0}]
["TOTAL WORKDAYS",null,null,null,null,{"$f":"F159/8","v":0},null,{"$f":"H159/8","v":0},null,{"$f":"J159/8","v":0},null,{"$f":"L159/8","v":0},null,{"$f":"N159/8","v":0},null,{"$f":"P159/8","v":0},null,{"$f":"R159/8","v":0},null,{"$f":"T159/8","v":0},null,{"$f":"V159/8","v":0},null,{"$f":"X159/8","v":0},null,{"$f":"Z159/8","v":0},null,{"$f":"AB159/8","v":0},null,{"$f":"AD159/8","v":0},null,0,null,{"$f":"AH159/8","v":0},null,0,null,{"$f":"AL159/8","v":0},null,0,null,{"$f":"AP159/8","v":0},null,0,null,{"$f":"AT159/8","v":0},null,{"$f":"AV159/8","v":0},null,{"$f":"AX159/8","v":0},null,{"$f":"AZ159/8","v":0},null,{"$f":"BB159/8","v":0},{"$f":"SUM(E160:BB160)","v":0}]
["TOTAL RAW LABOR",null,null,null,null,{"$f":"$E$13*F159","v":0},null,{"$f":"$G$13*H159","v":0},null,{"$f":"$I$13*J159","v":0},null,{"$f":"$K$13*L159","v":0},null,{"$f":"$M$13*N159","v":0},null,{"$f":"$O$13*P159","v":0},null,{"$f":"$Q$13*R159","v":0},null,{"$f":"$S$13*T159","v":0},null,{"$f":"$U$13*V159","v":0},null,{"$f":"$W$13*X159","v":0},null,{"$f":"$Y$13*Z159","v":0},null,{"$f":"$AA$13*AB159","v":0},null,{"$f":"$AC$13*AD159","v":0},null,{"$f":"$AC$13*AF159","v":0},null,{"$f":"$AC$13*AH159","v":0},null,{"$f":"$AC$13*AJ159","v":0},null,{"$f":"$AC$13*AL159","v":0},null,{"$f":"$AC$13*AN159","v":0},null,{"$f":"$AC$13*AP159","v":0},null,{"$f":"$AC$13*AR159","v":0},null,{"$f":"$AC$13*AT159","v":0},null,{"$f":"$AC$13*AV159","v":0},null,{"$f":"$AC$13*AX159","v":0},null,{"$f":"$AC$13*AZ159","v":0},null,{"$f":"$AC$13*BB159","v":0},{"$f":"SUM(E161:BB161)","v":0}]
["Task 6.0     ","CCTV MONITORING SYSTEM"]
[6.1,"Identification of Preliminary CCTV Locations",null,null,{"$f":"IF($C$163=\"\",\"\",F163/$C$163)","v":""},null,{"$f":"IF($C$163=\"\",\"\",H163/$C$163)","v":""},null,{"$f":"IF($C$163=\"\",\"\",J163/$C$163)","v":""},null,{"$f":"IF($C$163=\"\",\"\",L163/$C$163)","v":""},null,{"$f":"IF($C$163=\"\",\"\",N163/$C$163)","v":""},null,{"$f":"IF($C$163=\"\",\"\",P163/$C$163)","v":""},null,{"$f":"IF($C$163=\"\",\"\",R163/$C$163)","v":""},null,{"$f":"IF($C$163=\"\",\"\",T163/$C$163)","v":""},null,{"$f":"IF($C$163=\"\",\"\",V163/$C$163)","v":""},null,{"$f":"IF($C$163=\"\",\"\",X163/$C$163)","v":""},null,{"$f":"IF($C$163=\"\",\"\",Z163/$C$163)","v":""},null,{"$f":"IF($C$163=\"\",\"\",AB163/$C$163)","v":""},null,{"$f":"IF($C$163=\"\",\"\",AD163/$C$163)","v":""},null,{"$f":"IF($C$163=\"\",\"\",AF163/$C$163)","v":""},null,{"$f":"IF($C$163=\"\",\"\",AH163/$C$163)","v":""},null,{"$f":"IF($C$163=\"\",\"\",AJ163/$C$163)","v":""},null,{"$f":"IF($C$163=\"\",\"\",AL163/$C$163)","v":""},null,{"$f":"IF($C$163=\"\",\"\",AN163/$C$163)","v":""},null,{"$f":"IF($C$163=\"\",\"\",AP163/$C$163)","v":""},null,{"$f":"IF($C$163=\"\",\"\",AR163/$C$163)","v":""},null,{"$f":"IF($C$163=\"\",\"\",AT163/$C$163)","v":""},null,{"$f":"IF($C$163=\"\",\"\",AV163/$C$163)","v":""},null,{"$f":"IF($C$163=\"\",\"\",AX163/$C$163)","v":""},null,{"$f":"IF($C$163=\"\",\"\",AZ163/$C$163)","v":""},null,{"$f":"IF($C$163=\"\",\"\",BB163/$C$163)","v":""},null,{"$f":"SUM(BB163,AZ163,AX163,AV163,AT163,AR163,AP163,AN163,AL163,AJ163,AH163,AF163,AD163,AB163,Z163,X163,V163,T163,R163,P163,N163,L163,J163,H163,F163)","v":0}]
[6.2,"Bucket Truck Surveys of Candidate Sites",null,null,{"$f":"IF($C$164=\"\",\"\",F164/$C$164)","v":""},null,{"$f":"IF($C$164=\"\",\"\",H164/$C$164)","v":""},null,{"$f":"IF($C$164=\"\",\"\",J164/$C$164)","v":""},null,{"$f":"IF($C$164=\"\",\"\",L164/$C$164)","v":""},null,{"$f":"IF($C$164=\"\",\"\",N164/$C$164)","v":""},null,{"$f":"IF($C$164=\"\",\"\",P164/$C$164)","v":""},null,{"$f":"IF($C$164=\"\",\"\",R164/$C$164)","v":""},null,{"$f":"IF($C$164=\"\",\"\",T164/$C$164)","v":""},null,{"$f":"IF($C$164=\"\",\"\",V164/$C$164)","v":""},null,{"$f":"IF($C$164=\"\",\"\",X164/$C$164)","v":""},null,{"$f":"IF($C$164=\"\",\"\",Z164/$C$164)","v":""},null,{"$f":"IF($C$164=\"\",\"\",AB164/$C$164)","v":""},null,{"$f":"IF($C$164=\"\",\"\",AD164/$C$164)","v":""},null,{"$f":"IF($C$164=\"\",\"\",AF164/$C$164)","v":""},null,{"$f":"IF($C$164=\"\",\"\",AH164/$C$164)","v":""},null,{"$f":"IF($C$164=\"\",\"\",AJ164/$C$164)","v":""},null,{"$f":"IF($C$164=\"\",\"\",AL164/$C$164)","v":""},null,{"$f":"IF($C$164=\"\",\"\",AN164/$C$164)","v":""},null,{"$f":"IF($C$164=\"\",\"\",AP164/$C$164)","v":""},null,{"$f":"IF($C$164=\"\",\"\",AR164/$C$164)","v":""},null,{"$f":"IF($C$164=\"\",\"\",AT164/$C$164)","v":""},null,{"$f":"IF($C$164=\"\",\"\",AV164/$C$164)","v":""},null,{"$f":"IF($C$164=\"\",\"\",AX164/$C$164)","v":""},null,{"$f":"IF($C$164=\"\",\"\",AZ164/$C$164)","v":""},null,{"$f":"IF($C$164=\"\",\"\",BB164/$C$164)","v":""},null,0]
[6.3,"Compile and Analyze Site Survey Data",null,null,{"$f":"IF($C$165=\"\",\"\",F165/$C$165)","v":""},null,{"$f":"IF($C$165=\"\",\"\",H165/$C$165)","v":""},null,{"$f":"IF($C$165=\"\",\"\",J165/$C$165)","v":""},null,{"$f":"IF($C$165=\"\",\"\",L165/$C$165)","v":""},null,{"$f":"IF($C$165=\"\",\"\",N165/$C$165)","v":""},null,{"$f":"IF($C$165=\"\",\"\",P165/$C$165)","v":""},null,{"$f":"IF($C$165=\"\",\"\",R165/$C$165)","v":""},null,{"$f":"IF($C$165=\"\",\"\",T165/$C$165)","v":""},null,{"$f":"IF($C$165=\"\",\"\",V165/$C$165)","v":""},null,{"$f":"IF($C$165=\"\",\"\",X165/$C$165)","v":""},null,{"$f":"IF($C$165=\"\",\"\",Z165/$C$165)","v":""},null,{"$f":"IF($C$165=\"\",\"\",AB165/$C$165)","v":""},null,{"$f":"IF($C$165=\"\",\"\",AD165/$C$165)","v":""},null,{"$f":"IF($C$165=\"\",\"\",AF165/$C$165)","v":""},null,{"$f":"IF($C$165=\"\",\"\",AH165/$C$165)","v":""},null,{"$f":"IF($C$165=\"\",\"\",AJ165/$C$165)","v":""},null,{"$f":"IF($C$165=\"\",\"\",AL165/$C$165)","v":""},null,{"$f":"IF($C$165=\"\",\"\",AN165/$C$165)","v":""},null,{"$f":"IF($C$165=\"\",\"\",AP165/$C$165)","v":""},null,{"$f":"IF($C$165=\"\",\"\",AR165/$C$165)","v":""},null,{"$f":"IF($C$165=\"\",\"\",AT165/$C$165)","v":""},null,{"$f":"IF($C$165=\"\",\"\",AV165/$C$165)","v":""},null,{"$f":"IF($C$165=\"\",\"\",AX165/$C$165)","v":""},null,{"$f":"IF($C$165=\"\",\"\",AZ165/$C$165)","v":""},null,{"$f":"IF($C$165=\"\",\"\",BB165/$C$165)","v":""},null,0]
[6.4,"Prepare CCTV Site Study Technical Memorandum",null,null,{"$f":"IF($C$166=\"\",\"\",F166/$C$166)","v":""},null,{"$f":"IF($C$166=\"\",\"\",H166/$C$166)","v":""},null,{"$f":"IF($C$166=\"\",\"\",J166/$C$166)","v":""},null,{"$f":"IF($C$166=\"\",\"\",L166/$C$166)","v":""},null,{"$f":"IF($C$166=\"\",\"\",N166/$C$166)","v":""},null,{"$f":"IF($C$166=\"\",\"\",P166/$C$166)","v":""},null,{"$f":"IF($C$166=\"\",\"\",R166/$C$166)","v":""},null,{"$f":"IF($C$166=\"\",\"\",T166/$C$166)","v":""},null,{"$f":"IF($C$166=\"\",\"\",V166/$C$166)","v":""},null,{"$f":"IF($C$166=\"\",\"\",X166/$C$166)","v":""},null,{"$f":"IF($C$166=\"\",\"\",Z166/$C$166)","v":""},null,{"$f":"IF($C$166=\"\",\"\",AB166/$C$166)","v":""},null,{"$f":"IF($C$166=\"\",\"\",AD166/$C$166)","v":""},null,{"$f":"IF($C$166=\"\",\"\",AF166/$C$166)","v":""},null,{"$f":"IF($C$166=\"\",\"\",AH166/$C$166)","v":""},null,{"$f":"IF($C$166=\"\",\"\",AJ166/$C$166)","v":""},null,{"$f":"IF($C$166=\"\",\"\",AL166/$C$166)","v":""},null,{"$f":"IF($C$166=\"\",\"\",AN166/$C$166)","v":""},null,{"$f":"IF($C$166=\"\",\"\",AP166/$C$166)","v":""},null,{"$f":"IF($C$166=\"\",\"\",AR166/$C$166)","v":""},null,{"$f":"IF($C$166=\"\",\"\",AT166/$C$166)","v":""},null,{"$f":"IF($C$166=\"\",\"\",AV166/$C$166)","v":""},null,{"$f":"IF($C$166=\"\",\"\",AX166/$C$166)","v":""},null,{"$f":"IF($C$166=\"\",\"\",AZ166/$C$166)","v":""},null,{"$f":"IF($C$166=\"\",\"\",BB166/$C$166)","v":""},null,0]
[6.5,"Requirements for System Expansion/Field Investigation",null,null,{"$f":"IF($C$167=\"\",\"\",F167/$C$167)","v":""},null,{"$f":"IF($C$167=\"\",\"\",H167/$C$167)","v":""},null,{"$f":"IF($C$167=\"\",\"\",J167/$C$167)","v":""},null,{"$f":"IF($C$167=\"\",\"\",L167/$C$167)","v":""},null,{"$f":"IF($C$167=\"\",\"\",N167/$C$167)","v":""},null,{"$f":"IF($C$167=\"\",\"\",P167/$C$167)","v":""},null,{"$f":"IF($C$167=\"\",\"\",R167/$C$167)","v":""},null,{"$f":"IF($C$167=\"\",\"\",T167/$C$167)","v":""},null,{"$f":"IF($C$167=\"\",\"\",V167/$C$167)","v":""},null,{"$f":"IF($C$167=\"\",\"\",X167/$C$167)","v":""},null,{"$f":"IF($C$167=\"\",\"\",Z167/$C$167)","v":""},null,{"$f":"IF($C$167=\"\",\"\",AB167/$C$167)","v":""},null,{"$f":"IF($C$167=\"\",\"\",AD167/$C$167)","v":""},null,{"$f":"IF($C$167=\"\",\"\",AF167/$C$167)","v":""},null,{"$f":"IF($C$167=\"\",\"\",AH167/$C$167)","v":""},null,{"$f":"IF($C$167=\"\",\"\",AJ167/$C$167)","v":""},null,{"$f":"IF($C$167=\"\",\"\",AL167/$C$167)","v":""},null,{"$f":"IF($C$167=\"\",\"\",AN167/$C$167)","v":""},null,{"$f":"IF($C$167=\"\",\"\",AP167/$C$167)","v":""},null,{"$f":"IF($C$167=\"\",\"\",AR167/$C$167)","v":""},null,{"$f":"IF($C$167=\"\",\"\",AT167/$C$167)","v":""},null,{"$f":"IF($C$167=\"\",\"\",AV167/$C$167)","v":""},null,{"$f":"IF($C$167=\"\",\"\",AX167/$C$167)","v":""},null,{"$f":"IF($C$167=\"\",\"\",AZ167/$C$167)","v":""},null,{"$f":"IF($C$167=\"\",\"\",BB167/$C$167)","v":""},null,0]
[null,null,null,null,{"$f":"IF($C$168=\"\",\"\",F168/$C$168)","v":""},null,{"$f":"IF($C$168=\"\",\"\",H168/$C$168)","v":""},null,{"$f":"IF($C$168=\"\",\"\",J168/$C$168)","v":""},null,{"$f":"IF($C$168=\"\",\"\",L168/$C$168)","v":""},null,{"$f":"IF($C$168=\"\",\"\",N168/$C$168)","v":""},null,{"$f":"IF($C$168=\"\",\"\",P168/$C$168)","v":""},null,{"$f":"IF($C$168=\"\",\"\",R168/$C$168)","v":""},null,{"$f":"IF($C$168=\"\",\"\",T168/$C$168)","v":""},null,{"$f":"IF($C$168=\"\",\"\",V168/$C$168)","v":""},null,{"$f":"IF($C$168=\"\",\"\",X168/$C$168)","v":""},null,{"$f":"IF($C$168=\"\",\"\",Z168/$C$168)","v":""},null,{"$f":"IF($C$168=\"\",\"\",AB168/$C$168)","v":""},null,{"$f":"IF($C$168=\"\",\"\",AD168/$C$168)","v":""},null,{"$f":"IF($C$168=\"\",\"\",AF168/$C$168)","v":""},null,{"$f":"IF($C$168=\"\",\"\",AH168/$C$168)","v":""},null,{"$f":"IF($C$168=\"\",\"\",AJ168/$C$168)","v":""},null,{"$f":"IF($C$168=\"\",\"\",AL168/$C$168)","v":""},null,{"$f":"IF($C$168=\"\",\"\",AN168/$C$168)","v":""},null,{"$f":"IF($C$168=\"\",\"\",AP168/$C$168)","v":""},null,{"$f":"IF($C$168=\"\",\"\",AR168/$C$168)","v":""},null,{"$f":"IF($C$168=\"\",\"\",AT168/$C$168)","v":""},null,{"$f":"IF($C$168=\"\",\"\",AV168/$C$168)","v":""},null,{"$f":"IF($C$168=\"\",\"\",AX168/$C$168)","v":""},null,{"$f":"IF($C$168=\"\",\"\",AZ168/$C$168)","v":""},null,{"$f":"IF($C$168=\"\",\"\",BB168/$C$168)","v":""},null,0]
[null,null,null,null,{"$f":"IF($C$169=\"\",\"\",F169/$C$169)","v":""},null,{"$f":"IF($C$169=\"\",\"\",H169/$C$169)","v":""},null,{"$f":"IF($C$169=\"\",\"\",J169/$C$169)","v":""},null,{"$f":"IF($C$169=\"\",\"\",L169/$C$169)","v":""},null,{"$f":"IF($C$169=\"\",\"\",N169/$C$169)","v":""},null,{"$f":"IF($C$169=\"\",\"\",P169/$C$169)","v":""},null,{"$f":"IF($C$169=\"\",\"\",R169/$C$169)","v":""},null,{"$f":"IF($C$169=\"\",\"\",T169/$C$169)","v":""},null,{"$f":"IF($C$169=\"\",\"\",V169/$C$169)","v":""},null,{"$f":"IF($C$169=\"\",\"\",X169/$C$169)","v":""},null,{"$f":"IF($C$169=\"\",\"\",Z169/$C$169)","v":""},null,{"$f":"IF($C$169=\"\",\"\",AB169/$C$169)","v":""},null,{"$f":"IF($C$169=\"\",\"\",AD169/$C$169)","v":""},null,{"$f":"IF($C$169=\"\",\"\",AF169/$C$169)","v":""},null,{"$f":"IF($C$169=\"\",\"\",AH169/$C$169)","v":""},null,{"$f":"IF($C$169=\"\",\"\",AJ169/$C$169)","v":""},null,{"$f":"IF($C$169=\"\",\"\",AL169/$C$169)","v":""},null,{"$f":"IF($C$169=\"\",\"\",AN169/$C$169)","v":""},null,{"$f":"IF($C$169=\"\",\"\",AP169/$C$169)","v":""},null,{"$f":"IF($C$169=\"\",\"\",AR169/$C$169)","v":""},null,{"$f":"IF($C$169=\"\",\"\",AT169/$C$169)","v":""},null,{"$f":"IF($C$169=\"\",\"\",AV169/$C$169)","v":""},null,{"$f":"IF($C$169=\"\",\"\",AX169/$C$169)","v":""},null,{"$f":"IF($C$169=\"\",\"\",AZ169/$C$169)","v":""},null,{"$f":"IF($C$169=\"\",\"\",BB169/$C$169)","v":""},null,0]
[null,null,null,null,{"$f":"IF($C$170=\"\",\"\",F170/$C$170)","v":""},null,{"$f":"IF($C$170=\"\",\"\",H170/$C$170)","v":""},null,{"$f":"IF($C$170=\"\",\"\",J170/$C$170)","v":""},null,{"$f":"IF($C$170=\"\",\"\",L170/$C$170)","v":""},null,{"$f":"IF($C$170=\"\",\"\",N170/$C$170)","v":""},null,{"$f":"IF($C$170=\"\",\"\",P170/$C$170)","v":""},null,{"$f":"IF($C$170=\"\",\"\",R170/$C$170)","v":""},null,{"$f":"IF($C$170=\"\",\"\",T170/$C$170)","v":""},null,{"$f":"IF($C$170=\"\",\"\",V170/$C$170)","v":""},null,{"$f":"IF($C$170=\"\",\"\",X170/$C$170)","v":""},null,{"$f":"IF($C$170=\"\",\"\",Z170/$C$170)","v":""},null,{"$f":"IF($C$170=\"\",\"\",AB170/$C$170)","v":""},null,{"$f":"IF($C$170=\"\",\"\",AD170/$C$170)","v":""},null,{"$f":"IF($C$170=\"\",\"\",AF170/$C$170)","v":""},null,{"$f":"IF($C$170=\"\",\"\",AH170/$C$170)","v":""},null,{"$f":"IF($C$170=\"\",\"\",AJ170/$C$170)","v":""},null,{"$f":"IF($C$170=\"\",\"\",AL170/$C$170)","v":""},null,{"$f":"IF($C$170=\"\",\"\",AN170/$C$170)","v":""},null,{"$f":"IF($C$170=\"\",\"\",AP170/$C$170)","v":""},null,{"$f":"IF($C$170=\"\",\"\",AR170/$C$170)","v":""},null,{"$f":"IF($C$170=\"\",\"\",AT170/$C$170)","v":""},null,{"$f":"IF($C$170=\"\",\"\",AV170/$C$170)","v":""},null,{"$f":"IF($C$170=\"\",\"\",AX170/$C$170)","v":""},null,{"$f":"IF($C$170=\"\",\"\",AZ170/$C$170)","v":""},null,{"$f":"IF($C$170=\"\",\"\",BB170/$C$170)","v":""},null,0]
[null,null,null,null,{"$f":"IF($C$171=\"\",\"\",F171/$C$171)","v":""},null,{"$f":"IF($C$171=\"\",\"\",H171/$C$171)","v":""},null,{"$f":"IF($C$171=\"\",\"\",J171/$C$171)","v":""},null,{"$f":"IF($C$171=\"\",\"\",L171/$C$171)","v":""},null,{"$f":"IF($C$171=\"\",\"\",N171/$C$171)","v":""},null,{"$f":"IF($C$171=\"\",\"\",P171/$C$171)","v":""},null,{"$f":"IF($C$171=\"\",\"\",R171/$C$171)","v":""},null,{"$f":"IF($C$171=\"\",\"\",T171/$C$171)","v":""},null,{"$f":"IF($C$171=\"\",\"\",V171/$C$171)","v":""},null,{"$f":"IF($C$171=\"\",\"\",X171/$C$171)","v":""},null,{"$f":"IF($C$171=\"\",\"\",Z171/$C$171)","v":""},null,{"$f":"IF($C$171=\"\",\"\",AB171/$C$171)","v":""},null,{"$f":"IF($C$171=\"\",\"\",AD171/$C$171)","v":""},null,{"$f":"IF($C$171=\"\",\"\",AF171/$C$171)","v":""},null,{"$f":"IF($C$171=\"\",\"\",AH171/$C$171)","v":""},null,{"$f":"IF($C$171=\"\",\"\",AJ171/$C$171)","v":""},null,{"$f":"IF($C$171=\"\",\"\",AL171/$C$171)","v":""},null,{"$f":"IF($C$171=\"\",\"\",AN171/$C$171)","v":""},null,{"$f":"IF($C$171=\"\",\"\",AP171/$C$171)","v":""},null,{"$f":"IF($C$171=\"\",\"\",AR171/$C$171)","v":""},null,{"$f":"IF($C$171=\"\",\"\",AT171/$C$171)","v":""},null,{"$f":"IF($C$171=\"\",\"\",AV171/$C$171)","v":""},null,{"$f":"IF($C$171=\"\",\"\",AX171/$C$171)","v":""},null,{"$f":"IF($C$171=\"\",\"\",AZ171/$C$171)","v":""},null,{"$f":"IF($C$171=\"\",\"\",BB171/$C$171)","v":""},null,0]
[null,null,null,null,{"$f":"IF($C$172=\"\",\"\",F172/$C$172)","v":""},null,{"$f":"IF($C$172=\"\",\"\",H172/$C$172)","v":""},null,{"$f":"IF($C$172=\"\",\"\",J172/$C$172)","v":""},null,{"$f":"IF($C$172=\"\",\"\",L172/$C$172)","v":""},null,{"$f":"IF($C$172=\"\",\"\",N172/$C$172)","v":""},null,{"$f":"IF($C$172=\"\",\"\",P172/$C$172)","v":""},null,{"$f":"IF($C$172=\"\",\"\",R172/$C$172)","v":""},null,{"$f":"IF($C$172=\"\",\"\",T172/$C$172)","v":""},null,{"$f":"IF($C$172=\"\",\"\",V172/$C$172)","v":""},null,{"$f":"IF($C$172=\"\",\"\",X172/$C$172)","v":""},null,{"$f":"IF($C$172=\"\",\"\",Z172/$C$172)","v":""},null,{"$f":"IF($C$172=\"\",\"\",AB172/$C$172)","v":""},null,{"$f":"IF($C$172=\"\",\"\",AD172/$C$172)","v":""},null,{"$f":"IF($C$172=\"\",\"\",AF172/$C$172)","v":""},null,{"$f":"IF($C$172=\"\",\"\",AH172/$C$172)","v":""},null,{"$f":"IF($C$172=\"\",\"\",AJ172/$C$172)","v":""},null,{"$f":"IF($C$172=\"\",\"\",AL172/$C$172)","v":""},null,{"$f":"IF($C$172=\"\",\"\",AN172/$C$172)","v":""},null,{"$f":"IF($C$172=\"\",\"\",AP172/$C$172)","v":""},null,{"$f":"IF($C$172=\"\",\"\",AR172/$C$172)","v":""},null,{"$f":"IF($C$172=\"\",\"\",AT172/$C$172)","v":""},null,{"$f":"IF($C$172=\"\",\"\",AV172/$C$172)","v":""},null,{"$f":"IF($C$172=\"\",\"\",AX172/$C$172)","v":""},null,{"$f":"IF($C$172=\"\",\"\",AZ172/$C$172)","v":""},null,{"$f":"IF($C$172=\"\",\"\",BB172/$C$172)","v":""},null,0]
[null,null,null,null,{"$f":"IF($C$173=\"\",\"\",F173/$C$173)","v":""},null,{"$f":"IF($C$173=\"\",\"\",H173/$C$173)","v":""},null,{"$f":"IF($C$173=\"\",\"\",J173/$C$173)","v":""},null,{"$f":"IF($C$173=\"\",\"\",L173/$C$173)","v":""},null,{"$f":"IF($C$173=\"\",\"\",N173/$C$173)","v":""},null,{"$f":"IF($C$173=\"\",\"\",P173/$C$173)","v":""},null,{"$f":"IF($C$173=\"\",\"\",R173/$C$173)","v":""},null,{"$f":"IF($C$173=\"\",\"\",T173/$C$173)","v":""},null,{"$f":"IF($C$173=\"\",\"\",V173/$C$173)","v":""},null,{"$f":"IF($C$173=\"\",\"\",X173/$C$173)","v":""},null,{"$f":"IF($C$173=\"\",\"\",Z173/$C$173)","v":""},null,{"$f":"IF($C$173=\"\",\"\",AB173/$C$173)","v":""},null,{"$f":"IF($C$173=\"\",\"\",AD173/$C$173)","v":""},null,{"$f":"IF($C$173=\"\",\"\",AF173/$C$173)","v":""},null,{"$f":"IF($C$173=\"\",\"\",AH173/$C$173)","v":""},null,{"$f":"IF($C$173=\"\",\"\",AJ173/$C$173)","v":""},null,{"$f":"IF($C$173=\"\",\"\",AL173/$C$173)","v":""},null,{"$f":"IF($C$173=\"\",\"\",AN173/$C$173)","v":""},null,{"$f":"IF($C$173=\"\",\"\",AP173/$C$173)","v":""},null,{"$f":"IF($C$173=\"\",\"\",AR173/$C$173)","v":""},null,{"$f":"IF($C$173=\"\",\"\",AT173/$C$173)","v":""},null,{"$f":"IF($C$173=\"\",\"\",AV173/$C$173)","v":""},null,{"$f":"IF($C$173=\"\",\"\",AX173/$C$173)","v":""},null,{"$f":"IF($C$173=\"\",\"\",AZ173/$C$173)","v":""},null,{"$f":"IF($C$173=\"\",\"\",BB173/$C$173)","v":""},null,0]
[null,null,null,null,{"$f":"IF($C$174=\"\",\"\",F174/$C$174)","v":""},null,{"$f":"IF($C$174=\"\",\"\",H174/$C$174)","v":""},null,{"$f":"IF($C$174=\"\",\"\",J174/$C$174)","v":""},null,{"$f":"IF($C$174=\"\",\"\",L174/$C$174)","v":""},null,{"$f":"IF($C$174=\"\",\"\",N174/$C$174)","v":""},null,{"$f":"IF($C$174=\"\",\"\",P174/$C$174)","v":""},null,{"$f":"IF($C$174=\"\",\"\",R174/$C$174)","v":""},null,{"$f":"IF($C$174=\"\",\"\",T174/$C$174)","v":""},null,{"$f":"IF($C$174=\"\",\"\",V174/$C$174)","v":""},null,{"$f":"IF($C$174=\"\",\"\",X174/$C$174)","v":""},null,{"$f":"IF($C$174=\"\",\"\",Z174/$C$174)","v":""},null,{"$f":"IF($C$174=\"\",\"\",AB174/$C$174)","v":""},null,{"$f":"IF($C$174=\"\",\"\",AD174/$C$174)","v":""},null,{"$f":"IF($C$174=\"\",\"\",AF174/$C$174)","v":""},null,{"$f":"IF($C$174=\"\",\"\",AH174/$C$174)","v":""},null,{"$f":"IF($C$174=\"\",\"\",AJ174/$C$174)","v":""},null,{"$f":"IF($C$174=\"\",\"\",AL174/$C$174)","v":""},null,{"$f":"IF($C$174=\"\",\"\",AN174/$C$174)","v":""},null,{"$f":"IF($C$174=\"\",\"\",AP174/$C$174)","v":""},null,{"$f":"IF($C$174=\"\",\"\",AR174/$C$174)","v":""},null,{"$f":"IF($C$174=\"\",\"\",AT174/$C$174)","v":""},null,{"$f":"IF($C$174=\"\",\"\",AV174/$C$174)","v":""},null,{"$f":"IF($C$174=\"\",\"\",AX174/$C$174)","v":""},null,{"$f":"IF($C$174=\"\",\"\",AZ174/$C$174)","v":""},null,{"$f":"IF($C$174=\"\",\"\",BB174/$C$174)","v":""},null,{"$f":"SUM(BB174,AZ174,AX174,AV174,AT174,AR174,AP174,AN174,AL174,AJ174,AH174,AF174,AD174,AB174,Z174,X174,V174,T174,R174,P174,N174,L174,J174,H174,F174)","v":0}]
["TOTAL HOURS",null,null,null,null,{"$f":"SUM(F163:F174)","v":0},null,{"$f":"SUM(H163:H174)","v":0},null,{"$f":"SUM(J163:J174)","v":0},null,{"$f":"SUM(L163:L174)","v":0},null,{"$f":"SUM(N163:N174)","v":0},null,{"$f":"SUM(P163:P174)","v":0},null,{"$f":"SUM(R163:R174)","v":0},null,{"$f":"SUM(T163:T174)","v":0},null,{"$f":"SUM(V163:V174)","v":0},null,{"$f":"SUM(X163:X174)","v":0},null,{"$f":"SUM(Z163:Z174)","v":0},null,{"$f":"SUM(AB163:AB174)","v":0},null,{"$f":"SUM(AD163:AD174)","v":0},null,{"$f":"SUM(AF163:AF174)","v":0},null,{"$f":"SUM(AH163:AH174)","v":0},null,{"$f":"SUM(AJ163:AJ174)","v":0},null,{"$f":"SUM(AL163:AL174)","v":0},null,{"$f":"SUM(AN163:AN174)","v":0},null,{"$f":"SUM(AP163:AP174)","v":0},null,{"$f":"SUM(AR163:AR174)","v":0},null,{"$f":"SUM(AT163:AT174)","v":0},null,{"$f":"SUM(AV163:AV174)","v":0},null,{"$f":"SUM(AX163:AX174)","v":0},null,{"$f":"SUM(AZ163:AZ174)","v":0},null,{"$f":"SUM(BB163:BB174)","v":0},{"$f":"SUM(E175:BB175)","v":0}]
["TOTAL WORKDAYS",null,null,null,null,{"$f":"F175/8","v":0},null,{"$f":"H175/8","v":0},null,{"$f":"J175/8","v":0},null,{"$f":"L175/8","v":0},null,{"$f":"N175/8","v":0},null,{"$f":"P175/8","v":0},null,{"$f":"R175/8","v":0},null,{"$f":"T175/8","v":0},null,{"$f":"V175/8","v":0},null,{"$f":"X175/8","v":0},null,{"$f":"Z175/8","v":0},null,{"$f":"AB175/8","v":0},null,{"$f":"AD175/8","v":0},null,0,null,{"$f":"AH175/8","v":0},null,0,null,{"$f":"AL175/8","v":0},null,0,null,{"$f":"AP175/8","v":0},null,0,null,{"$f":"AT175/8","v":0},null,{"$f":"AV175/8","v":0},null,{"$f":"AX175/8","v":0},null,{"$f":"AZ175/8","v":0},null,{"$f":"BB175/8","v":0},{"$f":"SUM(E176:BB176)","v":0}]
["TOTAL RAW LABOR",null,null,null,null,{"$f":"$E$13*F175","v":0},null,{"$f":"$G$13*H175","v":0},null,{"$f":"$I$13*J175","v":0},null,{"$f":"$K$13*L175","v":0},null,{"$f":"$M$13*N175","v":0},null,{"$f":"$O$13*P175","v":0},null,{"$f":"$Q$13*R175","v":0},null,{"$f":"$S$13*T175","v":0},null,{"$f":"$U$13*V175","v":0},null,{"$f":"$W$13*X175","v":0},null,{"$f":"$Y$13*Z175","v":0},null,{"$f":"$AA$13*AB175","v":0},null,{"$f":"$AC$13*AD175","v":0},null,{"$f":"$AC$13*AF175","v":0},null,{"$f":"$AC$13*AH175","v":0},null,{"$f":"$AC$13*AJ175","v":0},null,{"$f":"$AC$13*AL175","v":0},null,{"$f":"$AC$13*AN175","v":0},null,{"$f":"$AC$13*AP175","v":0},null,{"$f":"$AC$13*AR175","v":0},null,{"$f":"$AC$13*AT175","v":0},null,{"$f":"$AC$13*AV175","v":0},null,{"$f":"$AC$13*AX175","v":0},null,{"$f":"$AC$13*AZ175","v":0},null,{"$f":"$AC$13*BB175","v":0},{"$f":"SUM(E177:BB177)","v":0}]
["Task 7.0     ","SYSTEM BOUNDARIES AND SYSTEM DETECTOR LAYOUT"]
[7.1,"Identify System Boundary and Control Sections",null,null,{"$f":"IF($C$179=\"\",\"\",F179/$C$179)","v":""},null,{"$f":"IF($C$179=\"\",\"\",H179/$C$179)","v":""},null,{"$f":"IF($C$179=\"\",\"\",J179/$C$179)","v":""},null,{"$f":"IF($C$179=\"\",\"\",L179/$C$179)","v":""},null,{"$f":"IF($C$179=\"\",\"\",N179/$C$179)","v":""},null,{"$f":"IF($C$179=\"\",\"\",P179/$C$179)","v":""},null,{"$f":"IF($C$179=\"\",\"\",R179/$C$179)","v":""},null,{"$f":"IF($C$179=\"\",\"\",T179/$C$179)","v":""},null,{"$f":"IF($C$179=\"\",\"\",V179/$C$179)","v":""},null,{"$f":"IF($C$179=\"\",\"\",X179/$C$179)","v":""},null,{"$f":"IF($C$179=\"\",\"\",Z179/$C$179)","v":""},null,{"$f":"IF($C$179=\"\",\"\",AB179/$C$179)","v":""},null,{"$f":"IF($C$179=\"\",\"\",AD179/$C$179)","v":""},null,{"$f":"IF($C$179=\"\",\"\",AF179/$C$179)","v":""},null,{"$f":"IF($C$179=\"\",\"\",AH179/$C$179)","v":""},null,{"$f":"IF($C$179=\"\",\"\",AJ179/$C$179)","v":""},null,{"$f":"IF($C$179=\"\",\"\",AL179/$C$179)","v":""},null,{"$f":"IF($C$179=\"\",\"\",AN179/$C$179)","v":""},null,{"$f":"IF($C$179=\"\",\"\",AP179/$C$179)","v":""},null,{"$f":"IF($C$179=\"\",\"\",AR179/$C$179)","v":""},null,{"$f":"IF($C$179=\"\",\"\",AT179/$C$179)","v":""},null,{"$f":"IF($C$179=\"\",\"\",AV179/$C$179)","v":""},null,{"$f":"IF($C$179=\"\",\"\",AX179/$C$179)","v":""},null,{"$f":"IF($C$179=\"\",\"\",AZ179/$C$179)","v":""},null,{"$f":"IF($C$179=\"\",\"\",BB179/$C$179)","v":""},null,{"$f":"SUM(BB179,AZ179,AX179,AV179,AT179,AR179,AP179,AN179,AL179,AJ179,AH179,AF179,AD179,AB179,Z179,X179,V179,T179,R179,P179,N179,L179,J179,H179,F179)","v":0}]
[7.2,"Develop System-Wide System Detector Schematic",null,null,{"$f":"IF($C$180=\"\",\"\",F180/$C$180)","v":""},null,{"$f":"IF($C$180=\"\",\"\",H180/$C$180)","v":""},null,{"$f":"IF($C$180=\"\",\"\",J180/$C$180)","v":""},null,{"$f":"IF($C$180=\"\",\"\",L180/$C$180)","v":""},null,{"$f":"IF($C$180=\"\",\"\",N180/$C$180)","v":""},null,{"$f":"IF($C$180=\"\",\"\",P180/$C$180)","v":""},null,{"$f":"IF($C$180=\"\",\"\",R180/$C$180)","v":""},null,{"$f":"IF($C$180=\"\",\"\",T180/$C$180)","v":""},null,{"$f":"IF($C$180=\"\",\"\",V180/$C$180)","v":""},null,{"$f":"IF($C$180=\"\",\"\",X180/$C$180)","v":""},null,{"$f":"IF($C$180=\"\",\"\",Z180/$C$180)","v":""},null,{"$f":"IF($C$180=\"\",\"\",AB180/$C$180)","v":""},null,{"$f":"IF($C$180=\"\",\"\",AD180/$C$180)","v":""},null,{"$f":"IF($C$180=\"\",\"\",AF180/$C$180)","v":""},null,{"$f":"IF($C$180=\"\",\"\",AH180/$C$180)","v":""},null,{"$f":"IF($C$180=\"\",\"\",AJ180/$C$180)","v":""},null,{"$f":"IF($C$180=\"\",\"\",AL180/$C$180)","v":""},null,{"$f":"IF($C$180=\"\",\"\",AN180/$C$180)","v":""},null,{"$f":"IF($C$180=\"\",\"\",AP180/$C$180)","v":""},null,{"$f":"IF($C$180=\"\",\"\",AR180/$C$180)","v":""},null,{"$f":"IF($C$180=\"\",\"\",AT180/$C$180)","v":""},null,{"$f":"IF($C$180=\"\",\"\",AV180/$C$180)","v":""},null,{"$f":"IF($C$180=\"\",\"\",AX180/$C$180)","v":""},null,{"$f":"IF($C$180=\"\",\"\",AZ180/$C$180)","v":""},null,{"$f":"IF($C$180=\"\",\"\",BB180/$C$180)","v":""},null,0]
[null,null,null,null,{"$f":"IF($C$181=\"\",\"\",F181/$C$181)","v":""},null,{"$f":"IF($C$181=\"\",\"\",H181/$C$181)","v":""},null,{"$f":"IF($C$181=\"\",\"\",J181/$C$181)","v":""},null,{"$f":"IF($C$181=\"\",\"\",L181/$C$181)","v":""},null,{"$f":"IF($C$181=\"\",\"\",N181/$C$181)","v":""},null,{"$f":"IF($C$181=\"\",\"\",P181/$C$181)","v":""},null,{"$f":"IF($C$181=\"\",\"\",R181/$C$181)","v":""},null,{"$f":"IF($C$181=\"\",\"\",T181/$C$181)","v":""},null,{"$f":"IF($C$181=\"\",\"\",V181/$C$181)","v":""},null,{"$f":"IF($C$181=\"\",\"\",X181/$C$181)","v":""},null,{"$f":"IF($C$181=\"\",\"\",Z181/$C$181)","v":""},null,{"$f":"IF($C$181=\"\",\"\",AB181/$C$181)","v":""},null,{"$f":"IF($C$181=\"\",\"\",AD181/$C$181)","v":""},null,{"$f":"IF($C$181=\"\",\"\",AF181/$C$181)","v":""},null,{"$f":"IF($C$181=\"\",\"\",AH181/$C$181)","v":""},null,{"$f":"IF($C$181=\"\",\"\",AJ181/$C$181)","v":""},null,{"$f":"IF($C$181=\"\",\"\",AL181/$C$181)","v":""},null,{"$f":"IF($C$181=\"\",\"\",AN181/$C$181)","v":""},null,{"$f":"IF($C$181=\"\",\"\",AP181/$C$181)","v":""},null,{"$f":"IF($C$181=\"\",\"\",AR181/$C$181)","v":""},null,{"$f":"IF($C$181=\"\",\"\",AT181/$C$181)","v":""},null,{"$f":"IF($C$181=\"\",\"\",AV181/$C$181)","v":""},null,{"$f":"IF($C$181=\"\",\"\",AX181/$C$181)","v":""},null,{"$f":"IF($C$181=\"\",\"\",AZ181/$C$181)","v":""},null,{"$f":"IF($C$181=\"\",\"\",BB181/$C$181)","v":""},null,0]
[null,null,null,null,{"$f":"IF($C$182=\"\",\"\",F182/$C$182)","v":""},null,{"$f":"IF($C$182=\"\",\"\",H182/$C$182)","v":""},null,{"$f":"IF($C$182=\"\",\"\",J182/$C$182)","v":""},null,{"$f":"IF($C$182=\"\",\"\",L182/$C$182)","v":""},null,{"$f":"IF($C$182=\"\",\"\",N182/$C$182)","v":""},null,{"$f":"IF($C$182=\"\",\"\",P182/$C$182)","v":""},null,{"$f":"IF($C$182=\"\",\"\",R182/$C$182)","v":""},null,{"$f":"IF($C$182=\"\",\"\",T182/$C$182)","v":""},null,{"$f":"IF($C$182=\"\",\"\",V182/$C$182)","v":""},null,{"$f":"IF($C$182=\"\",\"\",X182/$C$182)","v":""},null,{"$f":"IF($C$182=\"\",\"\",Z182/$C$182)","v":""},null,{"$f":"IF($C$182=\"\",\"\",AB182/$C$182)","v":""},null,{"$f":"IF($C$182=\"\",\"\",AD182/$C$182)","v":""},null,{"$f":"IF($C$182=\"\",\"\",AF182/$C$182)","v":""},null,{"$f":"IF($C$182=\"\",\"\",AH182/$C$182)","v":""},null,{"$f":"IF($C$182=\"\",\"\",AJ182/$C$182)","v":""},null,{"$f":"IF($C$182=\"\",\"\",AL182/$C$182)","v":""},null,{"$f":"IF($C$182=\"\",\"\",AN182/$C$182)","v":""},null,{"$f":"IF($C$182=\"\",\"\",AP182/$C$182)","v":""},null,{"$f":"IF($C$182=\"\",\"\",AR182/$C$182)","v":""},null,{"$f":"IF($C$182=\"\",\"\",AT182/$C$182)","v":""},null,{"$f":"IF($C$182=\"\",\"\",AV182/$C$182)","v":""},null,{"$f":"IF($C$182=\"\",\"\",AX182/$C$182)","v":""},null,{"$f":"IF($C$182=\"\",\"\",AZ182/$C$182)","v":""},null,{"$f":"IF($C$182=\"\",\"\",BB182/$C$182)","v":""},null,0]
[null,null,null,null,{"$f":"IF($C$183=\"\",\"\",F183/$C$183)","v":""},null,{"$f":"IF($C$183=\"\",\"\",H183/$C$183)","v":""},null,{"$f":"IF($C$183=\"\",\"\",J183/$C$183)","v":""},null,{"$f":"IF($C$183=\"\",\"\",L183/$C$183)","v":""},null,{"$f":"IF($C$183=\"\",\"\",N183/$C$183)","v":""},null,{"$f":"IF($C$183=\"\",\"\",P183/$C$183)","v":""},null,{"$f":"IF($C$183=\"\",\"\",R183/$C$183)","v":""},null,{"$f":"IF($C$183=\"\",\"\",T183/$C$183)","v":""},null,{"$f":"IF($C$183=\"\",\"\",V183/$C$183)","v":""},null,{"$f":"IF($C$183=\"\",\"\",X183/$C$183)","v":""},null,{"$f":"IF($C$183=\"\",\"\",Z183/$C$183)","v":""},null,{"$f":"IF($C$183=\"\",\"\",AB183/$C$183)","v":""},null,{"$f":"IF($C$183=\"\",\"\",AD183/$C$183)","v":""},null,{"$f":"IF($C$183=\"\",\"\",AF183/$C$183)","v":""},null,{"$f":"IF($C$183=\"\",\"\",AH183/$C$183)","v":""},null,{"$f":"IF($C$183=\"\",\"\",AJ183/$C$183)","v":""},null,{"$f":"IF($C$183=\"\",\"\",AL183/$C$183)","v":""},null,{"$f":"IF($C$183=\"\",\"\",AN183/$C$183)","v":""},null,{"$f":"IF($C$183=\"\",\"\",AP183/$C$183)","v":""},null,{"$f":"IF($C$183=\"\",\"\",AR183/$C$183)","v":""},null,{"$f":"IF($C$183=\"\",\"\",AT183/$C$183)","v":""},null,{"$f":"IF($C$183=\"\",\"\",AV183/$C$183)","v":""},null,{"$f":"IF($C$183=\"\",\"\",AX183/$C$183)","v":""},null,{"$f":"IF($C$183=\"\",\"\",AZ183/$C$183)","v":""},null,{"$f":"IF($C$183=\"\",\"\",BB183/$C$183)","v":""},null,0]
[null,null,null,null,{"$f":"IF($C$184=\"\",\"\",F184/$C$184)","v":""},null,{"$f":"IF($C$184=\"\",\"\",H184/$C$184)","v":""},null,{"$f":"IF($C$184=\"\",\"\",J184/$C$184)","v":""},null,{"$f":"IF($C$184=\"\",\"\",L184/$C$184)","v":""},null,{"$f":"IF($C$184=\"\",\"\",N184/$C$184)","v":""},null,{"$f":"IF($C$184=\"\",\"\",P184/$C$184)","v":""},null,{"$f":"IF($C$184=\"\",\"\",R184/$C$184)","v":""},null,{"$f":"IF($C$184=\"\",\"\",T184/$C$184)","v":""},null,{"$f":"IF($C$184=\"\",\"\",V184/$C$184)","v":""},null,{"$f":"IF($C$184=\"\",\"\",X184/$C$184)","v":""},null,{"$f":"IF($C$184=\"\",\"\",Z184/$C$184)","v":""},null,{"$f":"IF($C$184=\"\",\"\",AB184/$C$184)","v":""},null,{"$f":"IF($C$184=\"\",\"\",AD184/$C$184)","v":""},null,{"$f":"IF($C$184=\"\",\"\",AF184/$C$184)","v":""},null,{"$f":"IF($C$184=\"\",\"\",AH184/$C$184)","v":""},null,{"$f":"IF($C$184=\"\",\"\",AJ184/$C$184)","v":""},null,{"$f":"IF($C$184=\"\",\"\",AL184/$C$184)","v":""},null,{"$f":"IF($C$184=\"\",\"\",AN184/$C$184)","v":""},null,{"$f":"IF($C$184=\"\",\"\",AP184/$C$184)","v":""},null,{"$f":"IF($C$184=\"\",\"\",AR184/$C$184)","v":""},null,{"$f":"IF($C$184=\"\",\"\",AT184/$C$184)","v":""},null,{"$f":"IF($C$184=\"\",\"\",AV184/$C$184)","v":""},null,{"$f":"IF($C$184=\"\",\"\",AX184/$C$184)","v":""},null,{"$f":"IF($C$184=\"\",\"\",AZ184/$C$184)","v":""},null,{"$f":"IF($C$184=\"\",\"\",BB184/$C$184)","v":""},null,0]
[null,null,null,null,{"$f":"IF($C$185=\"\",\"\",F185/$C$185)","v":""},null,{"$f":"IF($C$185=\"\",\"\",H185/$C$185)","v":""},null,{"$f":"IF($C$185=\"\",\"\",J185/$C$185)","v":""},null,{"$f":"IF($C$185=\"\",\"\",L185/$C$185)","v":""},null,{"$f":"IF($C$185=\"\",\"\",N185/$C$185)","v":""},null,{"$f":"IF($C$185=\"\",\"\",P185/$C$185)","v":""},null,{"$f":"IF($C$185=\"\",\"\",R185/$C$185)","v":""},null,{"$f":"IF($C$185=\"\",\"\",T185/$C$185)","v":""},null,{"$f":"IF($C$185=\"\",\"\",V185/$C$185)","v":""},null,{"$f":"IF($C$185=\"\",\"\",X185/$C$185)","v":""},null,{"$f":"IF($C$185=\"\",\"\",Z185/$C$185)","v":""},null,{"$f":"IF($C$185=\"\",\"\",AB185/$C$185)","v":""},null,{"$f":"IF($C$185=\"\",\"\",AD185/$C$185)","v":""},null,{"$f":"IF($C$185=\"\",\"\",AF185/$C$185)","v":""},null,{"$f":"IF($C$185=\"\",\"\",AH185/$C$185)","v":""},null,{"$f":"IF($C$185=\"\",\"\",AJ185/$C$185)","v":""},null,{"$f":"IF($C$185=\"\",\"\",AL185/$C$185)","v":""},null,{"$f":"IF($C$185=\"\",\"\",AN185/$C$185)","v":""},null,{"$f":"IF($C$185=\"\",\"\",AP185/$C$185)","v":""},null,{"$f":"IF($C$185=\"\",\"\",AR185/$C$185)","v":""},null,{"$f":"IF($C$185=\"\",\"\",AT185/$C$185)","v":""},null,{"$f":"IF($C$185=\"\",\"\",AV185/$C$185)","v":""},null,{"$f":"IF($C$185=\"\",\"\",AX185/$C$185)","v":""},null,{"$f":"IF($C$185=\"\",\"\",AZ185/$C$185)","v":""},null,{"$f":"IF($C$185=\"\",\"\",BB185/$C$185)","v":""},null,0]
[null,null,null,null,{"$f":"IF($C$186=\"\",\"\",F186/$C$186)","v":""},null,{"$f":"IF($C$186=\"\",\"\",H186/$C$186)","v":""},null,{"$f":"IF($C$186=\"\",\"\",J186/$C$186)","v":""},null,{"$f":"IF($C$186=\"\",\"\",L186/$C$186)","v":""},null,{"$f":"IF($C$186=\"\",\"\",N186/$C$186)","v":""},null,{"$f":"IF($C$186=\"\",\"\",P186/$C$186)","v":""},null,{"$f":"IF($C$186=\"\",\"\",R186/$C$186)","v":""},null,{"$f":"IF($C$186=\"\",\"\",T186/$C$186)","v":""},null,{"$f":"IF($C$186=\"\",\"\",V186/$C$186)","v":""},null,{"$f":"IF($C$186=\"\",\"\",X186/$C$186)","v":""},null,{"$f":"IF($C$186=\"\",\"\",Z186/$C$186)","v":""},null,{"$f":"IF($C$186=\"\",\"\",AB186/$C$186)","v":""},null,{"$f":"IF($C$186=\"\",\"\",AD186/$C$186)","v":""},null,{"$f":"IF($C$186=\"\",\"\",AF186/$C$186)","v":""},null,{"$f":"IF($C$186=\"\",\"\",AH186/$C$186)","v":""},null,{"$f":"IF($C$186=\"\",\"\",AJ186/$C$186)","v":""},null,{"$f":"IF($C$186=\"\",\"\",AL186/$C$186)","v":""},null,{"$f":"IF($C$186=\"\",\"\",AN186/$C$186)","v":""},null,{"$f":"IF($C$186=\"\",\"\",AP186/$C$186)","v":""},null,{"$f":"IF($C$186=\"\",\"\",AR186/$C$186)","v":""},null,{"$f":"IF($C$186=\"\",\"\",AT186/$C$186)","v":""},null,{"$f":"IF($C$186=\"\",\"\",AV186/$C$186)","v":""},null,{"$f":"IF($C$186=\"\",\"\",AX186/$C$186)","v":""},null,{"$f":"IF($C$186=\"\",\"\",AZ186/$C$186)","v":""},null,{"$f":"IF($C$186=\"\",\"\",BB186/$C$186)","v":""},null,0]
[null,null,null,null,{"$f":"IF($C$187=\"\",\"\",F187/$C$187)","v":""},null,{"$f":"IF($C$187=\"\",\"\",H187/$C$187)","v":""},null,{"$f":"IF($C$187=\"\",\"\",J187/$C$187)","v":""},null,{"$f":"IF($C$187=\"\",\"\",L187/$C$187)","v":""},null,{"$f":"IF($C$187=\"\",\"\",N187/$C$187)","v":""},null,{"$f":"IF($C$187=\"\",\"\",P187/$C$187)","v":""},null,{"$f":"IF($C$187=\"\",\"\",R187/$C$187)","v":""},null,{"$f":"IF($C$187=\"\",\"\",T187/$C$187)","v":""},null,{"$f":"IF($C$187=\"\",\"\",V187/$C$187)","v":""},null,{"$f":"IF($C$187=\"\",\"\",X187/$C$187)","v":""},null,{"$f":"IF($C$187=\"\",\"\",Z187/$C$187)","v":""},null,{"$f":"IF($C$187=\"\",\"\",AB187/$C$187)","v":""},null,{"$f":"IF($C$187=\"\",\"\",AD187/$C$187)","v":""},null,{"$f":"IF($C$187=\"\",\"\",AF187/$C$187)","v":""},null,{"$f":"IF($C$187=\"\",\"\",AH187/$C$187)","v":""},null,{"$f":"IF($C$187=\"\",\"\",AJ187/$C$187)","v":""},null,{"$f":"IF($C$187=\"\",\"\",AL187/$C$187)","v":""},null,{"$f":"IF($C$187=\"\",\"\",AN187/$C$187)","v":""},null,{"$f":"IF($C$187=\"\",\"\",AP187/$C$187)","v":""},null,{"$f":"IF($C$187=\"\",\"\",AR187/$C$187)","v":""},null,{"$f":"IF($C$187=\"\",\"\",AT187/$C$187)","v":""},null,{"$f":"IF($C$187=\"\",\"\",AV187/$C$187)","v":""},null,{"$f":"IF($C$187=\"\",\"\",AX187/$C$187)","v":""},null,{"$f":"IF($C$187=\"\",\"\",AZ187/$C$187)","v":""},null,{"$f":"IF($C$187=\"\",\"\",BB187/$C$187)","v":""},null,{"$f":"SUM(BB187,AZ187,AX187,AV187,AT187,AR187,AP187,AN187,AL187,AJ187,AH187,AF187,AD187,AB187,Z187,X187,V187,T187,R187,P187,N187,L187,J187,H187,F187)","v":0}]
["TOTAL HOURS",null,null,null,null,{"$f":"SUM(F179:F187)","v":0},null,{"$f":"SUM(H179:H187)","v":0},null,{"$f":"SUM(J179:J187)","v":0},null,{"$f":"SUM(L179:L187)","v":0},null,{"$f":"SUM(N179:N187)","v":0},null,{"$f":"SUM(P179:P187)","v":0},null,{"$f":"SUM(R179:R187)","v":0},null,{"$f":"SUM(T179:T187)","v":0},null,{"$f":"SUM(V179:V187)","v":0},null,{"$f":"SUM(X179:X187)","v":0},null,{"$f":"SUM(Z179:Z187)","v":0},null,{"$f":"SUM(AB179:AB187)","v":0},null,{"$f":"SUM(AD179:AD187)","v":0},null,{"$f":"SUM(AF179:AF187)","v":0},null,{"$f":"SUM(AH179:AH187)","v":0},null,{"$f":"SUM(AJ179:AJ187)","v":0},null,{"$f":"SUM(AL179:AL187)","v":0},null,{"$f":"SUM(AN179:AN187)","v":0},null,{"$f":"SUM(AP179:AP187)","v":0},null,{"$f":"SUM(AR179:AR187)","v":0},null,{"$f":"SUM(AT179:AT187)","v":0},null,{"$f":"SUM(AV179:AV187)","v":0},null,{"$f":"SUM(AX179:AX187)","v":0},null,{"$f":"SUM(AZ179:AZ187)","v":0},null,{"$f":"SUM(BB179:BB187)","v":0},{"$f":"SUM(E188:BB188)","v":0}]
["TOTAL WORKDAYS",null,null,null,null,{"$f":"F188/8","v":0},null,{"$f":"H188/8","v":0},null,{"$f":"J188/8","v":0},null,{"$f":"L188/8","v":0},null,{"$f":"N188/8","v":0},null,{"$f":"P188/8","v":0},null,{"$f":"R188/8","v":0},null,{"$f":"T188/8","v":0},null,{"$f":"V188/8","v":0},null,{"$f":"X188/8","v":0},null,{"$f":"Z188/8","v":0},null,{"$f":"AB188/8","v":0},null,{"$f":"AD188/8","v":0},null,0,null,{"$f":"AH188/8","v":0},null,0,null,{"$f":"AL188/8","v":0},null,0,null,{"$f":"AP188/8","v":0},null,0,null,{"$f":"AT188/8","v":0},null,{"$f":"AV188/8","v":0},null,{"$f":"AX188/8","v":0},null,{"$f":"AZ188/8","v":0},null,{"$f":"BB188/8","v":0},{"$f":"SUM(E189:BB189)","v":0}]
["TOTAL RAW LABOR",null,null,null,null,{"$f":"$E$13*F188","v":0},null,{"$f":"$G$13*H188","v":0},null,{"$f":"$I$13*J188","v":0},null,{"$f":"$K$13*L188","v":0},null,{"$f":"$M$13*N188","v":0},null,{"$f":"$O$13*P188","v":0},null,{"$f":"$Q$13*R188","v":0},null,{"$f":"$S$13*T188","v":0},null,{"$f":"$U$13*V188","v":0},null,{"$f":"$W$13*X188","v":0},null,{"$f":"$Y$13*Z188","v":0},null,{"$f":"$AA$13*AB188","v":0},null,{"$f":"$AC$13*AD188","v":0},null,{"$f":"$AC$13*AF188","v":0},null,{"$f":"$AC$13*AH188","v":0},null,{"$f":"$AC$13*AJ188","v":0},null,{"$f":"$AC$13*AL188","v":0},null,{"$f":"$AC$13*AN188","v":0},null,{"$f":"$AC$13*AP188","v":0},null,{"$f":"$AC$13*AR188","v":0},null,{"$f":"$AC$13*AT188","v":0},null,{"$f":"$AC$13*AV188","v":0},null,{"$f":"$AC$13*AX188","v":0},null,{"$f":"$AC$13*AZ188","v":0},null,{"$f":"$AC$13*BB188","v":0},{"$f":"SUM(E190:BB190)","v":0}]
["Task 8.0     ","RAILROAD ENCROACHMENT PERMIT COORDINATION"]
[8.1,"Identify Railroad Crossings",null,null,{"$f":"IF($C$192=\"\",\"\",F192/$C$192)","v":""},null,{"$f":"IF($C$192=\"\",\"\",H192/$C$192)","v":""},null,{"$f":"IF($C$192=\"\",\"\",J192/$C$192)","v":""},null,{"$f":"IF($C$192=\"\",\"\",L192/$C$192)","v":""},null,{"$f":"IF($C$192=\"\",\"\",N192/$C$192)","v":""},null,{"$f":"IF($C$192=\"\",\"\",P192/$C$192)","v":""},null,{"$f":"IF($C$192=\"\",\"\",R192/$C$192)","v":""},null,{"$f":"IF($C$192=\"\",\"\",T192/$C$192)","v":""},null,{"$f":"IF($C$192=\"\",\"\",V192/$C$192)","v":""},null,{"$f":"IF($C$192=\"\",\"\",X192/$C$192)","v":""},null,{"$f":"IF($C$192=\"\",\"\",Z192/$C$192)","v":""},null,{"$f":"IF($C$192=\"\",\"\",AB192/$C$192)","v":""},null,{"$f":"IF($C$192=\"\",\"\",AD192/$C$192)","v":""},null,{"$f":"IF($C$192=\"\",\"\",AF192/$C$192)","v":""},null,{"$f":"IF($C$192=\"\",\"\",AH192/$C$192)","v":""},null,{"$f":"IF($C$192=\"\",\"\",AJ192/$C$192)","v":""},null,{"$f":"IF($C$192=\"\",\"\",AL192/$C$192)","v":""},null,{"$f":"IF($C$192=\"\",\"\",AN192/$C$192)","v":""},null,{"$f":"IF($C$192=\"\",\"\",AP192/$C$192)","v":""},null,{"$f":"IF($C$192=\"\",\"\",AR192/$C$192)","v":""},null,{"$f":"IF($C$192=\"\",\"\",AT192/$C$192)","v":""},null,{"$f":"IF($C$192=\"\",\"\",AV192/$C$192)","v":""},null,{"$f":"IF($C$192=\"\",\"\",AX192/$C$192)","v":""},null,{"$f":"IF($C$192=\"\",\"\",AZ192/$C$192)","v":""},null,{"$f":"IF($C$192=\"\",\"\",BB192/$C$192)","v":""},null,{"$f":"SUM(BB192,AZ192,AX192,AV192,AT192,AR192,AP192,AN192,AL192,AJ192,AH192,AF192,AD192,AB192,Z192,X192,V192,T192,R192,P192,N192,L192,J192,H192,F192)","v":0}]
[8.1999999999999993,"Collect Railroad Encroachment Data",null,null,{"$f":"IF($C$193=\"\",\"\",F193/$C$193)","v":""},null,{"$f":"IF($C$193=\"\",\"\",H193/$C$193)","v":""},null,{"$f":"IF($C$193=\"\",\"\",J193/$C$193)","v":""},null,{"$f":"IF($C$193=\"\",\"\",L193/$C$193)","v":""},null,{"$f":"IF($C$193=\"\",\"\",N193/$C$193)","v":""},null,{"$f":"IF($C$193=\"\",\"\",P193/$C$193)","v":""},null,{"$f":"IF($C$193=\"\",\"\",R193/$C$193)","v":""},null,{"$f":"IF($C$193=\"\",\"\",T193/$C$193)","v":""},null,{"$f":"IF($C$193=\"\",\"\",V193/$C$193)","v":""},null,{"$f":"IF($C$193=\"\",\"\",X193/$C$193)","v":""},null,{"$f":"IF($C$193=\"\",\"\",Z193/$C$193)","v":""},null,{"$f":"IF($C$193=\"\",\"\",AB193/$C$193)","v":""},null,{"$f":"IF($C$193=\"\",\"\",AD193/$C$193)","v":""},null,{"$f":"IF($C$193=\"\",\"\",AF193/$C$193)","v":""},null,{"$f":"IF($C$193=\"\",\"\",AH193/$C$193)","v":""},null,{"$f":"IF($C$193=\"\",\"\",AJ193/$C$193)","v":""},null,{"$f":"IF($C$193=\"\",\"\",AL193/$C$193)","v":""},null,{"$f":"IF($C$193=\"\",\"\",AN193/$C$193)","v":""},null,{"$f":"IF($C$193=\"\",\"\",AP193/$C$193)","v":""},null,{"$f":"IF($C$193=\"\",\"\",AR193/$C$193)","v":""},null,{"$f":"IF($C$193=\"\",\"\",AT193/$C$193)","v":""},null,{"$f":"IF($C$193=\"\",\"\",AV193/$C$193)","v":""},null,{"$f":"IF($C$193=\"\",\"\",AX193/$C$193)","v":""},null,{"$f":"IF($C$193=\"\",\"\",AZ193/$C$193)","v":""},null,{"$f":"IF($C$193=\"\",\"\",BB193/$C$193)","v":""},null,0]
[8.3000000000000007,"Prepare Figures & Exhibits for Permits",null,null,{"$f":"IF($C$194=\"\",\"\",F194/$C$194)","v":""},null,{"$f":"IF($C$194=\"\",\"\",H194/$C$194)","v":""},null,{"$f":"IF($C$194=\"\",\"\",J194/$C$194)","v":""},null,{"$f":"IF($C$194=\"\",\"\",L194/$C$194)","v":""},null,{"$f":"IF($C$194=\"\",\"\",N194/$C$194)","v":""},null,{"$f":"IF($C$194=\"\",\"\",P194/$C$194)","v":""},null,{"$f":"IF($C$194=\"\",\"\",R194/$C$194)","v":""},null,{"$f":"IF($C$194=\"\",\"\",T194/$C$194)","v":""},null,{"$f":"IF($C$194=\"\",\"\",V194/$C$194)","v":""},null,{"$f":"IF($C$194=\"\",\"\",X194/$C$194)","v":""},null,{"$f":"IF($C$194=\"\",\"\",Z194/$C$194)","v":""},null,{"$f":"IF($C$194=\"\",\"\",AB194/$C$194)","v":""},null,{"$f":"IF($C$194=\"\",\"\",AD194/$C$194)","v":""},null,{"$f":"IF($C$194=\"\",\"\",AF194/$C$194)","v":""},null,{"$f":"IF($C$194=\"\",\"\",AH194/$C$194)","v":""},null,{"$f":"IF($C$194=\"\",\"\",AJ194/$C$194)","v":""},null,{"$f":"IF($C$194=\"\",\"\",AL194/$C$194)","v":""},null,{"$f":"IF($C$194=\"\",\"\",AN194/$C$194)","v":""},null,{"$f":"IF($C$194=\"\",\"\",AP194/$C$194)","v":""},null,{"$f":"IF($C$194=\"\",\"\",AR194/$C$194)","v":""},null,{"$f":"IF($C$194=\"\",\"\",AT194/$C$194)","v":""},null,{"$f":"IF($C$194=\"\",\"\",AV194/$C$194)","v":""},null,{"$f":"IF($C$194=\"\",\"\",AX194/$C$194)","v":""},null,{"$f":"IF($C$194=\"\",\"\",AZ194/$C$194)","v":""},null,{"$f":"IF($C$194=\"\",\"\",BB194/$C$194)","v":""},null,0]
[8.4,"Complete the Permit Forms",null,null,{"$f":"IF($C$195=\"\",\"\",F195/$C$195)","v":""},null,{"$f":"IF($C$195=\"\",\"\",H195/$C$195)","v":""},null,{"$f":"IF($C$195=\"\",\"\",J195/$C$195)","v":""},null,{"$f":"IF($C$195=\"\",\"\",L195/$C$195)","v":""},null,{"$f":"IF($C$195=\"\",\"\",N195/$C$195)","v":""},null,{"$f":"IF($C$195=\"\",\"\",P195/$C$195)","v":""},null,{"$f":"IF($C$195=\"\",\"\",R195/$C$195)","v":""},null,{"$f":"IF($C$195=\"\",\"\",T195/$C$195)","v":""},null,{"$f":"IF($C$195=\"\",\"\",V195/$C$195)","v":""},null,{"$f":"IF($C$195=\"\",\"\",X195/$C$195)","v":""},null,{"$f":"IF($C$195=\"\",\"\",Z195/$C$195)","v":""},null,{"$f":"IF($C$195=\"\",\"\",AB195/$C$195)","v":""},null,{"$f":"IF($C$195=\"\",\"\",AD195/$C$195)","v":""},null,{"$f":"IF($C$195=\"\",\"\",AF195/$C$195)","v":""},null,{"$f":"IF($C$195=\"\",\"\",AH195/$C$195)","v":""},null,{"$f":"IF($C$195=\"\",\"\",AJ195/$C$195)","v":""},null,{"$f":"IF($C$195=\"\",\"\",AL195/$C$195)","v":""},null,{"$f":"IF($C$195=\"\",\"\",AN195/$C$195)","v":""},null,{"$f":"IF($C$195=\"\",\"\",AP195/$C$195)","v":""},null,{"$f":"IF($C$195=\"\",\"\",AR195/$C$195)","v":""},null,{"$f":"IF($C$195=\"\",\"\",AT195/$C$195)","v":""},null,{"$f":"IF($C$195=\"\",\"\",AV195/$C$195)","v":""},null,{"$f":"IF($C$195=\"\",\"\",AX195/$C$195)","v":""},null,{"$f":"IF($C$195=\"\",\"\",AZ195/$C$195)","v":""},null,{"$f":"IF($C$195=\"\",\"\",BB195/$C$195)","v":""},null,0]
[null,null,null,null,{"$f":"IF($C$196=\"\",\"\",F196/$C$196)","v":""},null,{"$f":"IF($C$196=\"\",\"\",H196/$C$196)","v":""},null,{"$f":"IF($C$196=\"\",\"\",J196/$C$196)","v":""},null,{"$f":"IF($C$196=\"\",\"\",L196/$C$196)","v":""},null,{"$f":"IF($C$196=\"\",\"\",N196/$C$196)","v":""},null,{"$f":"IF($C$196=\"\",\"\",P196/$C$196)","v":""},null,{"$f":"IF($C$196=\"\",\"\",R196/$C$196)","v":""},null,{"$f":"IF($C$196=\"\",\"\",T196/$C$196)","v":""},null,{"$f":"IF($C$196=\"\",\"\",V196/$C$196)","v":""},null,{"$f":"IF($C$196=\"\",\"\",X196/$C$196)","v":""},null,{"$f":"IF($C$196=\"\",\"\",Z196/$C$196)","v":""},null,{"$f":"IF($C$196=\"\",\"\",AB196/$C$196)","v":""},null,{"$f":"IF($C$196=\"\",\"\",AD196/$C$196)","v":""},null,{"$f":"IF($C$196=\"\",\"\",AF196/$C$196)","v":""},null,{"$f":"IF($C$196=\"\",\"\",AH196/$C$196)","v":""},null,{"$f":"IF($C$196=\"\",\"\",AJ196/$C$196)","v":""},null,{"$f":"IF($C$196=\"\",\"\",AL196/$C$196)","v":""},null,{"$f":"IF($C$196=\"\",\"\",AN196/$C$196)","v":""},null,{"$f":"IF($C$196=\"\",\"\",AP196/$C$196)","v":""},null,{"$f":"IF($C$196=\"\",\"\",AR196/$C$196)","v":""},null,{"$f":"IF($C$196=\"\",\"\",AT196/$C$196)","v":""},null,{"$f":"IF($C$196=\"\",\"\",AV196/$C$196)","v":""},null,{"$f":"IF($C$196=\"\",\"\",AX196/$C$196)","v":""},null,{"$f":"IF($C$196=\"\",\"\",AZ196/$C$196)","v":""},null,{"$f":"IF($C$196=\"\",\"\",BB196/$C$196)","v":""},null,0]
[null,null,null,null,{"$f":"IF($C$197=\"\",\"\",F197/$C$197)","v":""},null,{"$f":"IF($C$197=\"\",\"\",H197/$C$197)","v":""},null,{"$f":"IF($C$197=\"\",\"\",J197/$C$197)","v":""},null,{"$f":"IF($C$197=\"\",\"\",L197/$C$197)","v":""},null,{"$f":"IF($C$197=\"\",\"\",N197/$C$197)","v":""},null,{"$f":"IF($C$197=\"\",\"\",P197/$C$197)","v":""},null,{"$f":"IF($C$197=\"\",\"\",R197/$C$197)","v":""},null,{"$f":"IF($C$197=\"\",\"\",T197/$C$197)","v":""},null,{"$f":"IF($C$197=\"\",\"\",V197/$C$197)","v":""},null,{"$f":"IF($C$197=\"\",\"\",X197/$C$197)","v":""},null,{"$f":"IF($C$197=\"\",\"\",Z197/$C$197)","v":""},null,{"$f":"IF($C$197=\"\",\"\",AB197/$C$197)","v":""},null,{"$f":"IF($C$197=\"\",\"\",AD197/$C$197)","v":""},null,{"$f":"IF($C$197=\"\",\"\",AF197/$C$197)","v":""},null,{"$f":"IF($C$197=\"\",\"\",AH197/$C$197)","v":""},null,{"$f":"IF($C$197=\"\",\"\",AJ197/$C$197)","v":""},null,{"$f":"IF($C$197=\"\",\"\",AL197/$C$197)","v":""},null,{"$f":"IF($C$197=\"\",\"\",AN197/$C$197)","v":""},null,{"$f":"IF($C$197=\"\",\"\",AP197/$C$197)","v":""},null,{"$f":"IF($C$197=\"\",\"\",AR197/$C$197)","v":""},null,{"$f":"IF($C$197=\"\",\"\",AT197/$C$197)","v":""},null,{"$f":"IF($C$197=\"\",\"\",AV197/$C$197)","v":""},null,{"$f":"IF($C$197=\"\",\"\",AX197/$C$197)","v":""},null,{"$f":"IF($C$197=\"\",\"\",AZ197/$C$197)","v":""},null,{"$f":"IF($C$197=\"\",\"\",BB197/$C$197)","v":""},null,0]
[null,null,null,null,{"$f":"IF($C$198=\"\",\"\",F198/$C$198)","v":""},null,{"$f":"IF($C$198=\"\",\"\",H198/$C$198)","v":""},null,{"$f":"IF($C$198=\"\",\"\",J198/$C$198)","v":""},null,{"$f":"IF($C$198=\"\",\"\",L198/$C$198)","v":""},null,{"$f":"IF($C$198=\"\",\"\",N198/$C$198)","v":""},null,{"$f":"IF($C$198=\"\",\"\",P198/$C$198)","v":""},null,{"$f":"IF($C$198=\"\",\"\",R198/$C$198)","v":""},null,{"$f":"IF($C$198=\"\",\"\",T198/$C$198)","v":""},null,{"$f":"IF($C$198=\"\",\"\",V198/$C$198)","v":""},null,{"$f":"IF($C$198=\"\",\"\",X198/$C$198)","v":""},null,{"$f":"IF($C$198=\"\",\"\",Z198/$C$198)","v":""},null,{"$f":"IF($C$198=\"\",\"\",AB198/$C$198)","v":""},null,{"$f":"IF($C$198=\"\",\"\",AD198/$C$198)","v":""},null,{"$f":"IF($C$198=\"\",\"\",AF198/$C$198)","v":""},null,{"$f":"IF($C$198=\"\",\"\",AH198/$C$198)","v":""},null,{"$f":"IF($C$198=\"\",\"\",AJ198/$C$198)","v":""},null,{"$f":"IF($C$198=\"\",\"\",AL198/$C$198)","v":""},null,{"$f":"IF($C$198=\"\",\"\",AN198/$C$198)","v":""},null,{"$f":"IF($C$198=\"\",\"\",AP198/$C$198)","v":""},null,{"$f":"IF($C$198=\"\",\"\",AR198/$C$198)","v":""},null,{"$f":"IF($C$198=\"\",\"\",AT198/$C$198)","v":""},null,{"$f":"IF($C$198=\"\",\"\",AV198/$C$198)","v":""},null,{"$f":"IF($C$198=\"\",\"\",AX198/$C$198)","v":""},null,{"$f":"IF($C$198=\"\",\"\",AZ198/$C$198)","v":""},null,{"$f":"IF($C$198=\"\",\"\",BB198/$C$198)","v":""},null,0]
[null,null,null,null,{"$f":"IF($C$199=\"\",\"\",F199/$C$199)","v":""},null,{"$f":"IF($C$199=\"\",\"\",H199/$C$199)","v":""},null,{"$f":"IF($C$199=\"\",\"\",J199/$C$199)","v":""},null,{"$f":"IF($C$199=\"\",\"\",L199/$C$199)","v":""},null,{"$f":"IF($C$199=\"\",\"\",N199/$C$199)","v":""},null,{"$f":"IF($C$199=\"\",\"\",P199/$C$199)","v":""},null,{"$f":"IF($C$199=\"\",\"\",R199/$C$199)","v":""},null,{"$f":"IF($C$199=\"\",\"\",T199/$C$199)","v":""},null,{"$f":"IF($C$199=\"\",\"\",V199/$C$199)","v":""},null,{"$f":"IF($C$199=\"\",\"\",X199/$C$199)","v":""},null,{"$f":"IF($C$199=\"\",\"\",Z199/$C$199)","v":""},null,{"$f":"IF($C$199=\"\",\"\",AB199/$C$199)","v":""},null,{"$f":"IF($C$199=\"\",\"\",AD199/$C$199)","v":""},null,{"$f":"IF($C$199=\"\",\"\",AF199/$C$199)","v":""},null,{"$f":"IF($C$199=\"\",\"\",AH199/$C$199)","v":""},null,{"$f":"IF($C$199=\"\",\"\",AJ199/$C$199)","v":""},null,{"$f":"IF($C$199=\"\",\"\",AL199/$C$199)","v":""},null,{"$f":"IF($C$199=\"\",\"\",AN199/$C$199)","v":""},null,{"$f":"IF($C$199=\"\",\"\",AP199/$C$199)","v":""},null,{"$f":"IF($C$199=\"\",\"\",AR199/$C$199)","v":""},null,{"$f":"IF($C$199=\"\",\"\",AT199/$C$199)","v":""},null,{"$f":"IF($C$199=\"\",\"\",AV199/$C$199)","v":""},null,{"$f":"IF($C$199=\"\",\"\",AX199/$C$199)","v":""},null,{"$f":"IF($C$199=\"\",\"\",AZ199/$C$199)","v":""},null,{"$f":"IF($C$199=\"\",\"\",BB199/$C$199)","v":""},null,0]
[null,null,null,null,{"$f":"IF($C$200=\"\",\"\",F200/$C$200)","v":""},null,{"$f":"IF($C$200=\"\",\"\",H200/$C$200)","v":""},null,{"$f":"IF($C$200=\"\",\"\",J200/$C$200)","v":""},null,{"$f":"IF($C$200=\"\",\"\",L200/$C$200)","v":""},null,{"$f":"IF($C$200=\"\",\"\",N200/$C$200)","v":""},null,{"$f":"IF($C$200=\"\",\"\",P200/$C$200)","v":""},null,{"$f":"IF($C$200=\"\",\"\",R200/$C$200)","v":""},null,{"$f":"IF($C$200=\"\",\"\",T200/$C$200)","v":""},null,{"$f":"IF($C$200=\"\",\"\",V200/$C$200)","v":""},null,{"$f":"IF($C$200=\"\",\"\",X200/$C$200)","v":""},null,{"$f":"IF($C$200=\"\",\"\",Z200/$C$200)","v":""},null,{"$f":"IF($C$200=\"\",\"\",AB200/$C$200)","v":""},null,{"$f":"IF($C$200=\"\",\"\",AD200/$C$200)","v":""},null,{"$f":"IF($C$200=\"\",\"\",AF200/$C$200)","v":""},null,{"$f":"IF($C$200=\"\",\"\",AH200/$C$200)","v":""},null,{"$f":"IF($C$200=\"\",\"\",AJ200/$C$200)","v":""},null,{"$f":"IF($C$200=\"\",\"\",AL200/$C$200)","v":""},null,{"$f":"IF($C$200=\"\",\"\",AN200/$C$200)","v":""},null,{"$f":"IF($C$200=\"\",\"\",AP200/$C$200)","v":""},null,{"$f":"IF($C$200=\"\",\"\",AR200/$C$200)","v":""},null,{"$f":"IF($C$200=\"\",\"\",AT200/$C$200)","v":""},null,{"$f":"IF($C$200=\"\",\"\",AV200/$C$200)","v":""},null,{"$f":"IF($C$200=\"\",\"\",AX200/$C$200)","v":""},null,{"$f":"IF($C$200=\"\",\"\",AZ200/$C$200)","v":""},null,{"$f":"IF($C$200=\"\",\"\",BB200/$C$200)","v":""},null,0]
[null,null,null,null,{"$f":"IF($C$201=\"\",\"\",F201/$C$201)","v":""},null,{"$f":"IF($C$201=\"\",\"\",H201/$C$201)","v":""},null,{"$f":"IF($C$201=\"\",\"\",J201/$C$201)","v":""},null,{"$f":"IF($C$201=\"\",\"\",L201/$C$201)","v":""},null,{"$f":"IF($C$201=\"\",\"\",N201/$C$201)","v":""},null,{"$f":"IF($C$201=\"\",\"\",P201/$C$201)","v":""},null,{"$f":"IF($C$201=\"\",\"\",R201/$C$201)","v":""},null,{"$f":"IF($C$201=\"\",\"\",T201/$C$201)","v":""},null,{"$f":"IF($C$201=\"\",\"\",V201/$C$201)","v":""},null,{"$f":"IF($C$201=\"\",\"\",X201/$C$201)","v":""},null,{"$f":"IF($C$201=\"\",\"\",Z201/$C$201)","v":""},null,{"$f":"IF($C$201=\"\",\"\",AB201/$C$201)","v":""},null,{"$f":"IF($C$201=\"\",\"\",AD201/$C$201)","v":""},null,{"$f":"IF($C$201=\"\",\"\",AF201/$C$201)","v":""},null,{"$f":"IF($C$201=\"\",\"\",AH201/$C$201)","v":""},null,{"$f":"IF($C$201=\"\",\"\",AJ201/$C$201)","v":""},null,{"$f":"IF($C$201=\"\",\"\",AL201/$C$201)","v":""},null,{"$f":"IF($C$201=\"\",\"\",AN201/$C$201)","v":""},null,{"$f":"IF($C$201=\"\",\"\",AP201/$C$201)","v":""},null,{"$f":"IF($C$201=\"\",\"\",AR201/$C$201)","v":""},null,{"$f":"IF($C$201=\"\",\"\",AT201/$C$201)","v":""},null,{"$f":"IF($C$201=\"\",\"\",AV201/$C$201)","v":""},null,{"$f":"IF($C$201=\"\",\"\",AX201/$C$201)","v":""},null,{"$f":"IF($C$201=\"\",\"\",AZ201/$C$201)","v":""},null,{"$f":"IF($C$201=\"\",\"\",BB201/$C$201)","v":""},null,0]
[null,null,null,null,{"$f":"IF($C$202=\"\",\"\",F202/$C$202)","v":""},null,{"$f":"IF($C$202=\"\",\"\",H202/$C$202)","v":""},null,{"$f":"IF($C$202=\"\",\"\",J202/$C$202)","v":""},null,{"$f":"IF($C$202=\"\",\"\",L202/$C$202)","v":""},null,{"$f":"IF($C$202=\"\",\"\",N202/$C$202)","v":""},null,{"$f":"IF($C$202=\"\",\"\",P202/$C$202)","v":""},null,{"$f":"IF($C$202=\"\",\"\",R202/$C$202)","v":""},null,{"$f":"IF($C$202=\"\",\"\",T202/$C$202)","v":""},null,{"$f":"IF($C$202=\"\",\"\",V202/$C$202)","v":""},null,{"$f":"IF($C$202=\"\",\"\",X202/$C$202)","v":""},null,{"$f":"IF($C$202=\"\",\"\",Z202/$C$202)","v":""},null,{"$f":"IF($C$202=\"\",\"\",AB202/$C$202)","v":""},null,{"$f":"IF($C$202=\"\",\"\",AD202/$C$202)","v":""},null,{"$f":"IF($C$202=\"\",\"\",AF202/$C$202)","v":""},null,{"$f":"IF($C$202=\"\",\"\",AH202/$C$202)","v":""},null,{"$f":"IF($C$202=\"\",\"\",AJ202/$C$202)","v":""},null,{"$f":"IF($C$202=\"\",\"\",AL202/$C$202)","v":""},null,{"$f":"IF($C$202=\"\",\"\",AN202/$C$202)","v":""},null,{"$f":"IF($C$202=\"\",\"\",AP202/$C$202)","v":""},null,{"$f":"IF($C$202=\"\",\"\",AR202/$C$202)","v":""},null,{"$f":"IF($C$202=\"\",\"\",AT202/$C$202)","v":""},null,{"$f":"IF($C$202=\"\",\"\",AV202/$C$202)","v":""},null,{"$f":"IF($C$202=\"\",\"\",AX202/$C$202)","v":""},null,{"$f":"IF($C$202=\"\",\"\",AZ202/$C$202)","v":""},null,{"$f":"IF($C$202=\"\",\"\",BB202/$C$202)","v":""},null,{"$f":"SUM(BB202,AZ202,AX202,AV202,AT202,AR202,AP202,AN202,AL202,AJ202,AH202,AF202,AD202,AB202,Z202,X202,V202,T202,R202,P202,N202,L202,J202,H202,F202)","v":0}]
["TOTAL HOURS",null,null,null,null,{"$f":"SUM(F192:F202)","v":0},null,{"$f":"SUM(H192:H202)","v":0},null,{"$f":"SUM(J192:J202)","v":0},null,{"$f":"SUM(L192:L202)","v":0},null,{"$f":"SUM(N192:N202)","v":0},null,{"$f":"SUM(P192:P202)","v":0},null,{"$f":"SUM(R192:R202)","v":0},null,{"$f":"SUM(T192:T202)","v":0},null,{"$f":"SUM(V192:V202)","v":0},null,{"$f":"SUM(X192:X202)","v":0},null,{"$f":"SUM(Z192:Z202)","v":0},null,{"$f":"SUM(AB192:AB202)","v":0},null,{"$f":"SUM(AD192:AD202)","v":0},null,{"$f":"SUM(AF192:AF202)","v":0},null,{"$f":"SUM(AH192:AH202)","v":0},null,{"$f":"SUM(AJ192:AJ202)","v":0},null,{"$f":"SUM(AL192:AL202)","v":0},null,{"$f":"SUM(AN192:AN202)","v":0},null,{"$f":"SUM(AP192:AP202)","v":0},null,{"$f":"SUM(AR192:AR202)","v":0},null,{"$f":"SUM(AT192:AT202)","v":0},null,{"$f":"SUM(AV192:AV202)","v":0},null,{"$f":"SUM(AX192:AX202)","v":0},null,{"$f":"SUM(AZ192:AZ202)","v":0},null,{"$f":"SUM(BB192:BB202)","v":0},{"$f":"SUM(E203:BB203)","v":0}]
["TOTAL WORKDAYS",null,null,null,null,{"$f":"F203/8","v":0},null,{"$f":"H203/8","v":0},null,{"$f":"J203/8","v":0},null,{"$f":"L203/8","v":0},null,{"$f":"N203/8","v":0},null,{"$f":"P203/8","v":0},null,{"$f":"R203/8","v":0},null,{"$f":"T203/8","v":0},null,{"$f":"V203/8","v":0},null,{"$f":"X203/8","v":0},null,{"$f":"Z203/8","v":0},null,{"$f":"AB203/8","v":0},null,{"$f":"AD203/8","v":0},null,0,null,{"$f":"AH203/8","v":0},null,0,null,{"$f":"AL203/8","v":0},null,0,null,{"$f":"AP203/8","v":0},null,0,null,{"$f":"AT203/8","v":0},null,{"$f":"AV203/8","v":0},null,{"$f":"AX203/8","v":0},null,{"$f":"AZ203/8","v":0},null,{"$f":"BB203/8","v":0},{"$f":"SUM(E204:BB204)","v":0}]
["TOTAL RAW LABOR",null,null,null,null,{"$f":"$E$13*F203","v":0},null,{"$f":"$G$13*H203","v":0},null,{"$f":"$I$13*J203","v":0},null,{"$f":"$K$13*L203","v":0},null,{"$f":"$M$13*N203","v":0},null,{"$f":"$O$13*P203","v":0},null,{"$f":"$Q$13*R203","v":0},null,{"$f":"$S$13*T203","v":0},null,{"$f":"$U$13*V203","v":0},null,{"$f":"$W$13*X203","v":0},null,{"$f":"$Y$13*Z203","v":0},null,{"$f":"$AA$13*AB203","v":0},null,{"$f":"$AC$13*AD203","v":0},null,{"$f":"$AC$13*AF203","v":0},null,{"$f":"$AC$13*AH203","v":0},null,{"$f":"$AC$13*AJ203","v":0},null,{"$f":"$AC$13*AL203","v":0},null,{"$f":"$AC$13*AN203","v":0},null,{"$f":"$AC$13*AP203","v":0},null,{"$f":"$AC$13*AR203","v":0},null,{"$f":"$AC$13*AT203","v":0},null,{"$f":"$AC$13*AV203","v":0},null,{"$f":"$AC$13*AX203","v":0},null,{"$f":"$AC$13*AZ203","v":0},null,{"$f":"$AC$13*BB203","v":0},{"$f":"SUM(E205:BB205)","v":0}]
["Task 9.0     ","BASIS OF DESIGN DOCUMENT (BODD)"]
[9.1,"Basis of Design Document (BODD)"]
["    9.1.1","    Prepare and Maintain BODD Notebook",null,null,{"$f":"IF($C$208=\"\",\"\",F208/$C$208)","v":""},null,{"$f":"IF($C$208=\"\",\"\",H208/$C$208)","v":""},null,{"$f":"IF($C$208=\"\",\"\",J208/$C$208)","v":""},null,{"$f":"IF($C$208=\"\",\"\",L208/$C$208)","v":""},null,{"$f":"IF($C$208=\"\",\"\",N208/$C$208)","v":""},null,{"$f":"IF($C$208=\"\",\"\",P208/$C$208)","v":""},null,{"$f":"IF($C$208=\"\",\"\",R208/$C$208)","v":""},null,{"$f":"IF($C$208=\"\",\"\",T208/$C$208)","v":""},null,{"$f":"IF($C$208=\"\",\"\",V208/$C$208)","v":""},null,{"$f":"IF($C$208=\"\",\"\",X208/$C$208)","v":""},null,{"$f":"IF($C$208=\"\",\"\",Z208/$C$208)","v":""},null,{"$f":"IF($C$208=\"\",\"\",AB208/$C$208)","v":""},null,{"$f":"IF($C$208=\"\",\"\",AD208/$C$208)","v":""},null,{"$f":"IF($C$208=\"\",\"\",AF208/$C$208)","v":""},null,{"$f":"IF($C$208=\"\",\"\",AH208/$C$208)","v":""},null,{"$f":"IF($C$208=\"\",\"\",AJ208/$C$208)","v":""},null,{"$f":"IF($C$208=\"\",\"\",AL208/$C$208)","v":""},null,{"$f":"IF($C$208=\"\",\"\",AN208/$C$208)","v":""},null,{"$f":"IF($C$208=\"\",\"\",AP208/$C$208)","v":""},null,{"$f":"IF($C$208=\"\",\"\",AR208/$C$208)","v":""},null,{"$f":"IF($C$208=\"\",\"\",AT208/$C$208)","v":""},null,{"$f":"IF($C$208=\"\",\"\",AV208/$C$208)","v":""},null,{"$f":"IF($C$208=\"\",\"\",AX208/$C$208)","v":""},null,{"$f":"IF($C$208=\"\",\"\",AZ208/$C$208)","v":""},null,{"$f":"IF($C$208=\"\",\"\",BB208/$C$208)","v":""},null,{"$f":"SUM(BB208,AZ208,AX208,AV208,AT208,AR208,AP208,AN208,AL208,AJ208,AH208,AF208,AD208,AB208,Z208,X208,V208,T208,R208,P208,N208,L208,J208,H208,F208)","v":0}]
["    9.1.2","    Prepare and Distribute Project Meeting Minutes",null,null,{"$f":"IF($C$209=\"\",\"\",F209/$C$209)","v":""},null,{"$f":"IF($C$209=\"\",\"\",H209/$C$209)","v":""},null,{"$f":"IF($C$209=\"\",\"\",J209/$C$209)","v":""},null,{"$f":"IF($C$209=\"\",\"\",L209/$C$209)","v":""},null,{"$f":"IF($C$209=\"\",\"\",N209/$C$209)","v":""},null,{"$f":"IF($C$209=\"\",\"\",P209/$C$209)","v":""},null,{"$f":"IF($C$209=\"\",\"\",R209/$C$209)","v":""},null,{"$f":"IF($C$209=\"\",\"\",T209/$C$209)","v":""},null,{"$f":"IF($C$209=\"\",\"\",V209/$C$209)","v":""},null,{"$f":"IF($C$209=\"\",\"\",X209/$C$209)","v":""},null,{"$f":"IF($C$209=\"\",\"\",Z209/$C$209)","v":""},null,{"$f":"IF($C$209=\"\",\"\",AB209/$C$209)","v":""},null,{"$f":"IF($C$209=\"\",\"\",AD209/$C$209)","v":""},null,{"$f":"IF($C$209=\"\",\"\",AF209/$C$209)","v":""},null,{"$f":"IF($C$209=\"\",\"\",AH209/$C$209)","v":""},null,{"$f":"IF($C$209=\"\",\"\",AJ209/$C$209)","v":""},null,{"$f":"IF($C$209=\"\",\"\",AL209/$C$209)","v":""},null,{"$f":"IF($C$209=\"\",\"\",AN209/$C$209)","v":""},null,{"$f":"IF($C$209=\"\",\"\",AP209/$C$209)","v":""},null,{"$f":"IF($C$209=\"\",\"\",AR209/$C$209)","v":""},null,{"$f":"IF($C$209=\"\",\"\",AT209/$C$209)","v":""},null,{"$f":"IF($C$209=\"\",\"\",AV209/$C$209)","v":""},null,{"$f":"IF($C$209=\"\",\"\",AX209/$C$209)","v":""},null,{"$f":"IF($C$209=\"\",\"\",AZ209/$C$209)","v":""},null,{"$f":"IF($C$209=\"\",\"\",BB209/$C$209)","v":""},null,0]
["    9.1.3",null,null,null,{"$f":"IF($C$210=\"\",\"\",F210/$C$210)","v":""},null,{"$f":"IF($C$210=\"\",\"\",H210/$C$210)","v":""},null,{"$f":"IF($C$210=\"\",\"\",J210/$C$210)","v":""},null,{"$f":"IF($C$210=\"\",\"\",L210/$C$210)","v":""},null,{"$f":"IF($C$210=\"\",\"\",N210/$C$210)","v":""},null,{"$f":"IF($C$210=\"\",\"\",P210/$C$210)","v":""},null,{"$f":"IF($C$210=\"\",\"\",R210/$C$210)","v":""},null,{"$f":"IF($C$210=\"\",\"\",T210/$C$210)","v":""},null,{"$f":"IF($C$210=\"\",\"\",V210/$C$210)","v":""},null,{"$f":"IF($C$210=\"\",\"\",X210/$C$210)","v":""},null,{"$f":"IF($C$210=\"\",\"\",Z210/$C$210)","v":""},null,{"$f":"IF($C$210=\"\",\"\",AB210/$C$210)","v":""},null,{"$f":"IF($C$210=\"\",\"\",AD210/$C$210)","v":""},null,{"$f":"IF($C$210=\"\",\"\",AF210/$C$210)","v":""},null,{"$f":"IF($C$210=\"\",\"\",AH210/$C$210)","v":""},null,{"$f":"IF($C$210=\"\",\"\",AJ210/$C$210)","v":""},null,{"$f":"IF($C$210=\"\",\"\",AL210/$C$210)","v":""},null,{"$f":"IF($C$210=\"\",\"\",AN210/$C$210)","v":""},null,{"$f":"IF($C$210=\"\",\"\",AP210/$C$210)","v":""},null,{"$f":"IF($C$210=\"\",\"\",AR210/$C$210)","v":""},null,{"$f":"IF($C$210=\"\",\"\",AT210/$C$210)","v":""},null,{"$f":"IF($C$210=\"\",\"\",AV210/$C$210)","v":""},null,{"$f":"IF($C$210=\"\",\"\",AX210/$C$210)","v":""},null,{"$f":"IF($C$210=\"\",\"\",AZ210/$C$210)","v":""},null,{"$f":"IF($C$210=\"\",\"\",BB210/$C$210)","v":""},null,0]
["    9.1.4",null,null,null,{"$f":"IF($C$211=\"\",\"\",F211/$C$211)","v":""},null,{"$f":"IF($C$211=\"\",\"\",H211/$C$211)","v":""},null,{"$f":"IF($C$211=\"\",\"\",J211/$C$211)","v":""},null,{"$f":"IF($C$211=\"\",\"\",L211/$C$211)","v":""},null,{"$f":"IF($C$211=\"\",\"\",N211/$C$211)","v":""},null,{"$f":"IF($C$211=\"\",\"\",P211/$C$211)","v":""},null,{"$f":"IF($C$211=\"\",\"\",R211/$C$211)","v":""},null,{"$f":"IF($C$211=\"\",\"\",T211/$C$211)","v":""},null,{"$f":"IF($C$211=\"\",\"\",V211/$C$211)","v":""},null,{"$f":"IF($C$211=\"\",\"\",X211/$C$211)","v":""},null,{"$f":"IF($C$211=\"\",\"\",Z211/$C$211)","v":""},null,{"$f":"IF($C$211=\"\",\"\",AB211/$C$211)","v":""},null,{"$f":"IF($C$211=\"\",\"\",AD211/$C$211)","v":""},null,{"$f":"IF($C$211=\"\",\"\",AF211/$C$211)","v":""},null,{"$f":"IF($C$211=\"\",\"\",AH211/$C$211)","v":""},null,{"$f":"IF($C$211=\"\",\"\",AJ211/$C$211)","v":""},null,{"$f":"IF($C$211=\"\",\"\",AL211/$C$211)","v":""},null,{"$f":"IF($C$211=\"\",\"\",AN211/$C$211)","v":""},null,{"$f":"IF($C$211=\"\",\"\",AP211/$C$211)","v":""},null,{"$f":"IF($C$211=\"\",\"\",AR211/$C$211)","v":""},null,{"$f":"IF($C$211=\"\",\"\",AT211/$C$211)","v":""},null,{"$f":"IF($C$211=\"\",\"\",AV211/$C$211)","v":""},null,{"$f":"IF($C$211=\"\",\"\",AX211/$C$211)","v":""},null,{"$f":"IF($C$211=\"\",\"\",AZ211/$C$211)","v":""},null,{"$f":"IF($C$211=\"\",\"\",BB211/$C$211)","v":""},null,0]
["    9.1.5",null,null,null,{"$f":"IF($C$212=\"\",\"\",F212/$C$212)","v":""},null,{"$f":"IF($C$212=\"\",\"\",H212/$C$212)","v":""},null,{"$f":"IF($C$212=\"\",\"\",J212/$C$212)","v":""},null,{"$f":"IF($C$212=\"\",\"\",L212/$C$212)","v":""},null,{"$f":"IF($C$212=\"\",\"\",N212/$C$212)","v":""},null,{"$f":"IF($C$212=\"\",\"\",P212/$C$212)","v":""},null,{"$f":"IF($C$212=\"\",\"\",R212/$C$212)","v":""},null,{"$f":"IF($C$212=\"\",\"\",T212/$C$212)","v":""},null,{"$f":"IF($C$212=\"\",\"\",V212/$C$212)","v":""},null,{"$f":"IF($C$212=\"\",\"\",X212/$C$212)","v":""},null,{"$f":"IF($C$212=\"\",\"\",Z212/$C$212)","v":""},null,{"$f":"IF($C$212=\"\",\"\",AB212/$C$212)","v":""},null,{"$f":"IF($C$212=\"\",\"\",AD212/$C$212)","v":""},null,{"$f":"IF($C$212=\"\",\"\",AF212/$C$212)","v":""},null,{"$f":"IF($C$212=\"\",\"\",AH212/$C$212)","v":""},null,{"$f":"IF($C$212=\"\",\"\",AJ212/$C$212)","v":""},null,{"$f":"IF($C$212=\"\",\"\",AL212/$C$212)","v":""},null,{"$f":"IF($C$212=\"\",\"\",AN212/$C$212)","v":""},null,{"$f":"IF($C$212=\"\",\"\",AP212/$C$212)","v":""},null,{"$f":"IF($C$212=\"\",\"\",AR212/$C$212)","v":""},null,{"$f":"IF($C$212=\"\",\"\",AT212/$C$212)","v":""},null,{"$f":"IF($C$212=\"\",\"\",AV212/$C$212)","v":""},null,{"$f":"IF($C$212=\"\",\"\",AX212/$C$212)","v":""},null,{"$f":"IF($C$212=\"\",\"\",AZ212/$C$212)","v":""},null,{"$f":"IF($C$212=\"\",\"\",BB212/$C$212)","v":""},null,0]
[null,null,null,null,{"$f":"IF($C$213=\"\",\"\",F213/$C$213)","v":""},null,{"$f":"IF($C$213=\"\",\"\",H213/$C$213)","v":""},null,{"$f":"IF($C$213=\"\",\"\",J213/$C$213)","v":""},null,{"$f":"IF($C$213=\"\",\"\",L213/$C$213)","v":""},null,{"$f":"IF($C$213=\"\",\"\",N213/$C$213)","v":""},null,{"$f":"IF($C$213=\"\",\"\",P213/$C$213)","v":""},null,{"$f":"IF($C$213=\"\",\"\",R213/$C$213)","v":""},null,{"$f":"IF($C$213=\"\",\"\",T213/$C$213)","v":""},null,{"$f":"IF($C$213=\"\",\"\",V213/$C$213)","v":""},null,{"$f":"IF($C$213=\"\",\"\",X213/$C$213)","v":""},null,{"$f":"IF($C$213=\"\",\"\",Z213/$C$213)","v":""},null,{"$f":"IF($C$213=\"\",\"\",AB213/$C$213)","v":""},null,{"$f":"IF($C$213=\"\",\"\",AD213/$C$213)","v":""},null,{"$f":"IF($C$213=\"\",\"\",AF213/$C$213)","v":""},null,{"$f":"IF($C$213=\"\",\"\",AH213/$C$213)","v":""},null,{"$f":"IF($C$213=\"\",\"\",AJ213/$C$213)","v":""},null,{"$f":"IF($C$213=\"\",\"\",AL213/$C$213)","v":""},null,{"$f":"IF($C$213=\"\",\"\",AN213/$C$213)","v":""},null,{"$f":"IF($C$213=\"\",\"\",AP213/$C$213)","v":""},null,{"$f":"IF($C$213=\"\",\"\",AR213/$C$213)","v":""},null,{"$f":"IF($C$213=\"\",\"\",AT213/$C$213)","v":""},null,{"$f":"IF($C$213=\"\",\"\",AV213/$C$213)","v":""},null,{"$f":"IF($C$213=\"\",\"\",AX213/$C$213)","v":""},null,{"$f":"IF($C$213=\"\",\"\",AZ213/$C$213)","v":""},null,{"$f":"IF($C$213=\"\",\"\",BB213/$C$213)","v":""},null,0]
[null,null,null,null,{"$f":"IF($C$214=\"\",\"\",F214/$C$214)","v":""},null,{"$f":"IF($C$214=\"\",\"\",H214/$C$214)","v":""},null,{"$f":"IF($C$214=\"\",\"\",J214/$C$214)","v":""},null,{"$f":"IF($C$214=\"\",\"\",L214/$C$214)","v":""},null,{"$f":"IF($C$214=\"\",\"\",N214/$C$214)","v":""},null,{"$f":"IF($C$214=\"\",\"\",P214/$C$214)","v":""},null,{"$f":"IF($C$214=\"\",\"\",R214/$C$214)","v":""},null,{"$f":"IF($C$214=\"\",\"\",T214/$C$214)","v":""},null,{"$f":"IF($C$214=\"\",\"\",V214/$C$214)","v":""},null,{"$f":"IF($C$214=\"\",\"\",X214/$C$214)","v":""},null,{"$f":"IF($C$214=\"\",\"\",Z214/$C$214)","v":""},null,{"$f":"IF($C$214=\"\",\"\",AB214/$C$214)","v":""},null,{"$f":"IF($C$214=\"\",\"\",AD214/$C$214)","v":""},null,{"$f":"IF($C$214=\"\",\"\",AF214/$C$214)","v":""},null,{"$f":"IF($C$214=\"\",\"\",AH214/$C$214)","v":""},null,{"$f":"IF($C$214=\"\",\"\",AJ214/$C$214)","v":""},null,{"$f":"IF($C$214=\"\",\"\",AL214/$C$214)","v":""},null,{"$f":"IF($C$214=\"\",\"\",AN214/$C$214)","v":""},null,{"$f":"IF($C$214=\"\",\"\",AP214/$C$214)","v":""},null,{"$f":"IF($C$214=\"\",\"\",AR214/$C$214)","v":""},null,{"$f":"IF($C$214=\"\",\"\",AT214/$C$214)","v":""},null,{"$f":"IF($C$214=\"\",\"\",AV214/$C$214)","v":""},null,{"$f":"IF($C$214=\"\",\"\",AX214/$C$214)","v":""},null,{"$f":"IF($C$214=\"\",\"\",AZ214/$C$214)","v":""},null,{"$f":"IF($C$214=\"\",\"\",BB214/$C$214)","v":""},null,0]
[null,null,null,null,{"$f":"IF($C$215=\"\",\"\",F215/$C$215)","v":""},null,{"$f":"IF($C$215=\"\",\"\",H215/$C$215)","v":""},null,{"$f":"IF($C$215=\"\",\"\",J215/$C$215)","v":""},null,{"$f":"IF($C$215=\"\",\"\",L215/$C$215)","v":""},null,{"$f":"IF($C$215=\"\",\"\",N215/$C$215)","v":""},null,{"$f":"IF($C$215=\"\",\"\",P215/$C$215)","v":""},null,{"$f":"IF($C$215=\"\",\"\",R215/$C$215)","v":""},null,{"$f":"IF($C$215=\"\",\"\",T215/$C$215)","v":""},null,{"$f":"IF($C$215=\"\",\"\",V215/$C$215)","v":""},null,{"$f":"IF($C$215=\"\",\"\",X215/$C$215)","v":""},null,{"$f":"IF($C$215=\"\",\"\",Z215/$C$215)","v":""},null,{"$f":"IF($C$215=\"\",\"\",AB215/$C$215)","v":""},null,{"$f":"IF($C$215=\"\",\"\",AD215/$C$215)","v":""},null,{"$f":"IF($C$215=\"\",\"\",AF215/$C$215)","v":""},null,{"$f":"IF($C$215=\"\",\"\",AH215/$C$215)","v":""},null,{"$f":"IF($C$215=\"\",\"\",AJ215/$C$215)","v":""},null,{"$f":"IF($C$215=\"\",\"\",AL215/$C$215)","v":""},null,{"$f":"IF($C$215=\"\",\"\",AN215/$C$215)","v":""},null,{"$f":"IF($C$215=\"\",\"\",AP215/$C$215)","v":""},null,{"$f":"IF($C$215=\"\",\"\",AR215/$C$215)","v":""},null,{"$f":"IF($C$215=\"\",\"\",AT215/$C$215)","v":""},null,{"$f":"IF($C$215=\"\",\"\",AV215/$C$215)","v":""},null,{"$f":"IF($C$215=\"\",\"\",AX215/$C$215)","v":""},null,{"$f":"IF($C$215=\"\",\"\",AZ215/$C$215)","v":""},null,{"$f":"IF($C$215=\"\",\"\",BB215/$C$215)","v":""},null,0]
[null,null,null,null,{"$f":"IF($C$216=\"\",\"\",F216/$C$216)","v":""},null,{"$f":"IF($C$216=\"\",\"\",H216/$C$216)","v":""},null,{"$f":"IF($C$216=\"\",\"\",J216/$C$216)","v":""},null,{"$f":"IF($C$216=\"\",\"\",L216/$C$216)","v":""},null,{"$f":"IF($C$216=\"\",\"\",N216/$C$216)","v":""},null,{"$f":"IF($C$216=\"\",\"\",P216/$C$216)","v":""},null,{"$f":"IF($C$216=\"\",\"\",R216/$C$216)","v":""},null,{"$f":"IF($C$216=\"\",\"\",T216/$C$216)","v":""},null,{"$f":"IF($C$216=\"\",\"\",V216/$C$216)","v":""},null,{"$f":"IF($C$216=\"\",\"\",X216/$C$216)","v":""},null,{"$f":"IF($C$216=\"\",\"\",Z216/$C$216)","v":""},null,{"$f":"IF($C$216=\"\",\"\",AB216/$C$216)","v":""},null,{"$f":"IF($C$216=\"\",\"\",AD216/$C$216)","v":""},null,{"$f":"IF($C$216=\"\",\"\",AF216/$C$216)","v":""},null,{"$f":"IF($C$216=\"\",\"\",AH216/$C$216)","v":""},null,{"$f":"IF($C$216=\"\",\"\",AJ216/$C$216)","v":""},null,{"$f":"IF($C$216=\"\",\"\",AL216/$C$216)","v":""},null,{"$f":"IF($C$216=\"\",\"\",AN216/$C$216)","v":""},null,{"$f":"IF($C$216=\"\",\"\",AP216/$C$216)","v":""},null,{"$f":"IF($C$216=\"\",\"\",AR216/$C$216)","v":""},null,{"$f":"IF($C$216=\"\",\"\",AT216/$C$216)","v":""},null,{"$f":"IF($C$216=\"\",\"\",AV216/$C$216)","v":""},null,{"$f":"IF($C$216=\"\",\"\",AX216/$C$216)","v":""},null,{"$f":"IF($C$216=\"\",\"\",AZ216/$C$216)","v":""},null,{"$f":"IF($C$216=\"\",\"\",BB216/$C$216)","v":""},null,0]
[null,null,null,null,{"$f":"IF($C$217=\"\",\"\",F217/$C$217)","v":""},null,{"$f":"IF($C$217=\"\",\"\",H217/$C$217)","v":""},null,{"$f":"IF($C$217=\"\",\"\",J217/$C$217)","v":""},null,{"$f":"IF($C$217=\"\",\"\",L217/$C$217)","v":""},null,{"$f":"IF($C$217=\"\",\"\",N217/$C$217)","v":""},null,{"$f":"IF($C$217=\"\",\"\",P217/$C$217)","v":""},null,{"$f":"IF($C$217=\"\",\"\",R217/$C$217)","v":""},null,{"$f":"IF($C$217=\"\",\"\",T217/$C$217)","v":""},null,{"$f":"IF($C$217=\"\",\"\",V217/$C$217)","v":""},null,{"$f":"IF($C$217=\"\",\"\",X217/$C$217)","v":""},null,{"$f":"IF($C$217=\"\",\"\",Z217/$C$217)","v":""},null,{"$f":"IF($C$217=\"\",\"\",AB217/$C$217)","v":""},null,{"$f":"IF($C$217=\"\",\"\",AD217/$C$217)","v":""},null,{"$f":"IF($C$217=\"\",\"\",AF217/$C$217)","v":""},null,{"$f":"IF($C$217=\"\",\"\",AH217/$C$217)","v":""},null,{"$f":"IF($C$217=\"\",\"\",AJ217/$C$217)","v":""},null,{"$f":"IF($C$217=\"\",\"\",AL217/$C$217)","v":""},null,{"$f":"IF($C$217=\"\",\"\",AN217/$C$217)","v":""},null,{"$f":"IF($C$217=\"\",\"\",AP217/$C$217)","v":""},null,{"$f":"IF($C$217=\"\",\"\",AR217/$C$217)","v":""},null,{"$f":"IF($C$217=\"\",\"\",AT217/$C$217)","v":""},null,{"$f":"IF($C$217=\"\",\"\",AV217/$C$217)","v":""},null,{"$f":"IF($C$217=\"\",\"\",AX217/$C$217)","v":""},null,{"$f":"IF($C$217=\"\",\"\",AZ217/$C$217)","v":""},null,{"$f":"IF($C$217=\"\",\"\",BB217/$C$217)","v":""},null,0]
[null,null,null,null,{"$f":"IF($C$218=\"\",\"\",F218/$C$218)","v":""},null,{"$f":"IF($C$218=\"\",\"\",H218/$C$218)","v":""},null,{"$f":"IF($C$218=\"\",\"\",J218/$C$218)","v":""},null,{"$f":"IF($C$218=\"\",\"\",L218/$C$218)","v":""},null,{"$f":"IF($C$218=\"\",\"\",N218/$C$218)","v":""},null,{"$f":"IF($C$218=\"\",\"\",P218/$C$218)","v":""},null,{"$f":"IF($C$218=\"\",\"\",R218/$C$218)","v":""},null,{"$f":"IF($C$218=\"\",\"\",T218/$C$218)","v":""},null,{"$f":"IF($C$218=\"\",\"\",V218/$C$218)","v":""},null,{"$f":"IF($C$218=\"\",\"\",X218/$C$218)","v":""},null,{"$f":"IF($C$218=\"\",\"\",Z218/$C$218)","v":""},null,{"$f":"IF($C$218=\"\",\"\",AB218/$C$218)","v":""},null,{"$f":"IF($C$218=\"\",\"\",AD218/$C$218)","v":""},null,{"$f":"IF($C$218=\"\",\"\",AF218/$C$218)","v":""},null,{"$f":"IF($C$218=\"\",\"\",AH218/$C$218)","v":""},null,{"$f":"IF($C$218=\"\",\"\",AJ218/$C$218)","v":""},null,{"$f":"IF($C$218=\"\",\"\",AL218/$C$218)","v":""},null,{"$f":"IF($C$218=\"\",\"\",AN218/$C$218)","v":""},null,{"$f":"IF($C$218=\"\",\"\",AP218/$C$218)","v":""},null,{"$f":"IF($C$218=\"\",\"\",AR218/$C$218)","v":""},null,{"$f":"IF($C$218=\"\",\"\",AT218/$C$218)","v":""},null,{"$f":"IF($C$218=\"\",\"\",AV218/$C$218)","v":""},null,{"$f":"IF($C$218=\"\",\"\",AX218/$C$218)","v":""},null,{"$f":"IF($C$218=\"\",\"\",AZ218/$C$218)","v":""},null,{"$f":"IF($C$218=\"\",\"\",BB218/$C$218)","v":""},null,0]
[null,null,null,null,{"$f":"IF($C$219=\"\",\"\",F219/$C$219)","v":""},null,{"$f":"IF($C$219=\"\",\"\",H219/$C$219)","v":""},null,{"$f":"IF($C$219=\"\",\"\",J219/$C$219)","v":""},null,{"$f":"IF($C$219=\"\",\"\",L219/$C$219)","v":""},null,{"$f":"IF($C$219=\"\",\"\",N219/$C$219)","v":""},null,{"$f":"IF($C$219=\"\",\"\",P219/$C$219)","v":""},null,{"$f":"IF($C$219=\"\",\"\",R219/$C$219)","v":""},null,{"$f":"IF($C$219=\"\",\"\",T219/$C$219)","v":""},null,{"$f":"IF($C$219=\"\",\"\",V219/$C$219)","v":""},null,{"$f":"IF($C$219=\"\",\"\",X219/$C$219)","v":""},null,{"$f":"IF($C$219=\"\",\"\",Z219/$C$219)","v":""},null,{"$f":"IF($C$219=\"\",\"\",AB219/$C$219)","v":""},null,{"$f":"IF($C$219=\"\",\"\",AD219/$C$219)","v":""},null,{"$f":"IF($C$219=\"\",\"\",AF219/$C$219)","v":""},null,{"$f":"IF($C$219=\"\",\"\",AH219/$C$219)","v":""},null,{"$f":"IF($C$219=\"\",\"\",AJ219/$C$219)","v":""},null,{"$f":"IF($C$219=\"\",\"\",AL219/$C$219)","v":""},null,{"$f":"IF($C$219=\"\",\"\",AN219/$C$219)","v":""},null,{"$f":"IF($C$219=\"\",\"\",AP219/$C$219)","v":""},null,{"$f":"IF($C$219=\"\",\"\",AR219/$C$219)","v":""},null,{"$f":"IF($C$219=\"\",\"\",AT219/$C$219)","v":""},null,{"$f":"IF($C$219=\"\",\"\",AV219/$C$219)","v":""},null,{"$f":"IF($C$219=\"\",\"\",AX219/$C$219)","v":""},null,{"$f":"IF($C$219=\"\",\"\",AZ219/$C$219)","v":""},null,{"$f":"IF($C$219=\"\",\"\",BB219/$C$219)","v":""},null,{"$f":"SUM(BB219,AZ219,AX219,AV219,AT219,AR219,AP219,AN219,AL219,AJ219,AH219,AF219,AD219,AB219,Z219,X219,V219,T219,R219,P219,N219,L219,J219,H219,F219)","v":0}]
["TOTAL HOURS",null,null,null,null,{"$f":"SUM(F207:F219)","v":0},null,{"$f":"SUM(H207:H219)","v":0},null,{"$f":"SUM(J207:J219)","v":0},null,{"$f":"SUM(L207:L219)","v":0},null,{"$f":"SUM(N207:N219)","v":0},null,{"$f":"SUM(P207:P219)","v":0},null,{"$f":"SUM(R207:R219)","v":0},null,{"$f":"SUM(T207:T219)","v":0},null,{"$f":"SUM(V207:V219)","v":0},null,{"$f":"SUM(X207:X219)","v":0},null,{"$f":"SUM(Z207:Z219)","v":0},null,{"$f":"SUM(AB207:AB219)","v":0},null,{"$f":"SUM(AD207:AD219)","v":0},null,{"$f":"SUM(AF207:AF219)","v":0},null,{"$f":"SUM(AH207:AH219)","v":0},null,{"$f":"SUM(AJ207:AJ219)","v":0},null,{"$f":"SUM(AL207:AL219)","v":0},null,{"$f":"SUM(AN207:AN219)","v":0},null,{"$f":"SUM(AP207:AP219)","v":0},null,{"$f":"SUM(AR207:AR219)","v":0},null,{"$f":"SUM(AT207:AT219)","v":0},null,{"$f":"SUM(AV207:AV219)","v":0},null,{"$f":"SUM(AX207:AX219)","v":0},null,{"$f":"SUM(AZ207:AZ219)","v":0},null,{"$f":"SUM(BB207:BB219)","v":0},{"$f":"SUM(E220:BB220)","v":0}]
["TOTAL WORKDAYS",null,null,null,null,{"$f":"F220/8","v":0},null,{"$f":"H220/8","v":0},null,{"$f":"J220/8","v":0},null,{"$f":"L220/8","v":0},null,{"$f":"N220/8","v":0},null,{"$f":"P220/8","v":0},null,{"$f":"R220/8","v":0},null,{"$f":"T220/8","v":0},null,{"$f":"V220/8","v":0},null,{"$f":"X220/8","v":0},null,{"$f":"Z220/8","v":0},null,{"$f":"AB220/8","v":0},null,{"$f":"AD220/8","v":0},null,0,null,{"$f":"AH220/8","v":0},null,0,null,{"$f":"AL220/8","v":0},null,0,null,{"$f":"AP220/8","v":0},null,0,null,{"$f":"AT220/8","v":0},null,{"$f":"AV220/8","v":0},null,{"$f":"AX220/8","v":0},null,{"$f":"AZ220/8","v":0},null,{"$f":"BB220/8","v":0},{"$f":"SUM(E221:BB221)","v":0}]
["TOTAL RAW LABOR",null,null,null,null,{"$f":"$E$13*F220","v":0},null,{"$f":"$G$13*H220","v":0},null,{"$f":"$I$13*J220","v":0},null,{"$f":"$K$13*L220","v":0},null,{"$f":"$M$13*N220","v":0},null,{"$f":"$O$13*P220","v":0},null,{"$f":"$Q$13*R220","v":0},null,{"$f":"$S$13*T220","v":0},null,{"$f":"$U$13*V220","v":0},null,{"$f":"$W$13*X220","v":0},null,{"$f":"$Y$13*Z220","v":0},null,{"$f":"$AA$13*AB220","v":0},null,{"$f":"$AC$13*AD220","v":0},null,{"$f":"$AC$13*AF220","v":0},null,{"$f":"$AC$13*AH220","v":0},null,{"$f":"$AC$13*AJ220","v":0},null,{"$f":"$AC$13*AL220","v":0},null,{"$f":"$AC$13*AN220","v":0},null,{"$f":"$AC$13*AP220","v":0},null,{"$f":"$AC$13*AR220","v":0},null,{"$f":"$AC$13*AT220","v":0},null,{"$f":"$AC$13*AV220","v":0},null,{"$f":"$AC$13*AX220","v":0},null,{"$f":"$AC$13*AZ220","v":0},null,{"$f":"$AC$13*BB220","v":0},{"$f":"SUM(E222:BB222)","v":0}]
["Task 10.0     ","UTILITY MAKE-READY PLANS"]
[10.1,"Utility Partnering Meeting",null,null,{"$f":"IF($C$224=\"\",\"\",F224/$C$224)","v":""},null,{"$f":"IF($C$224=\"\",\"\",H224/$C$224)","v":""},null,{"$f":"IF($C$224=\"\",\"\",J224/$C$224)","v":""},null,{"$f":"IF($C$224=\"\",\"\",L224/$C$224)","v":""},null,{"$f":"IF($C$224=\"\",\"\",N224/$C$224)","v":""},null,{"$f":"IF($C$224=\"\",\"\",P224/$C$224)","v":""},null,{"$f":"IF($C$224=\"\",\"\",R224/$C$224)","v":""},null,{"$f":"IF($C$224=\"\",\"\",T224/$C$224)","v":""},null,{"$f":"IF($C$224=\"\",\"\",V224/$C$224)","v":""},null,{"$f":"IF($C$224=\"\",\"\",X224/$C$224)","v":""},null,{"$f":"IF($C$224=\"\",\"\",Z224/$C$224)","v":""},null,{"$f":"IF($C$224=\"\",\"\",AB224/$C$224)","v":""},null,{"$f":"IF($C$224=\"\",\"\",AD224/$C$224)","v":""},null,{"$f":"IF($C$224=\"\",\"\",AF224/$C$224)","v":""},null,{"$f":"IF($C$224=\"\",\"\",AH224/$C$224)","v":""},null,{"$f":"IF($C$224=\"\",\"\",AJ224/$C$224)","v":""},null,{"$f":"IF($C$224=\"\",\"\",AL224/$C$224)","v":""},null,{"$f":"IF($C$224=\"\",\"\",AN224/$C$224)","v":""},null,{"$f":"IF($C$224=\"\",\"\",AP224/$C$224)","v":""},null,{"$f":"IF($C$224=\"\",\"\",AR224/$C$224)","v":""},null,{"$f":"IF($C$224=\"\",\"\",AT224/$C$224)","v":""},null,{"$f":"IF($C$224=\"\",\"\",AV224/$C$224)","v":""},null,{"$f":"IF($C$224=\"\",\"\",AX224/$C$224)","v":""},null,{"$f":"IF($C$224=\"\",\"\",AZ224/$C$224)","v":""},null,{"$f":"IF($C$224=\"\",\"\",BB224/$C$224)","v":""},null,{"$f":"SUM(BB224,AZ224,AX224,AV224,AT224,AR224,AP224,AN224,AL224,AJ224,AH224,AF224,AD224,AB224,Z224,X224,V224,T224,R224,P224,N224,L224,J224,H224,F224)","v":0}]
[10.199999999999999,"Acquire & Format Area-Wide Base-Mapping",null,null,{"$f":"IF($C$225=\"\",\"\",F225/$C$225)","v":""},null,{"$f":"IF($C$225=\"\",\"\",H225/$C$225)","v":""},null,{"$f":"IF($C$225=\"\",\"\",J225/$C$225)","v":""},null,{"$f":"IF($C$225=\"\",\"\",L225/$C$225)","v":""},null,{"$f":"IF($C$225=\"\",\"\",N225/$C$225)","v":""},null,{"$f":"IF($C$225=\"\",\"\",P225/$C$225)","v":""},null,{"$f":"IF($C$225=\"\",\"\",R225/$C$225)","v":""},null,{"$f":"IF($C$225=\"\",\"\",T225/$C$225)","v":""},null,{"$f":"IF($C$225=\"\",\"\",V225/$C$225)","v":""},null,{"$f":"IF($C$225=\"\",\"\",X225/$C$225)","v":""},null,{"$f":"IF($C$225=\"\",\"\",Z225/$C$225)","v":""},null,{"$f":"IF($C$225=\"\",\"\",AB225/$C$225)","v":""},null,{"$f":"IF($C$225=\"\",\"\",AD225/$C$225)","v":""},null,{"$f":"IF($C$225=\"\",\"\",AF225/$C$225)","v":""},null,{"$f":"IF($C$225=\"\",\"\",AH225/$C$225)","v":""},null,{"$f":"IF($C$225=\"\",\"\",AJ225/$C$225)","v":""},null,{"$f":"IF($C$225=\"\",\"\",AL225/$C$225)","v":""},null,{"$f":"IF($C$225=\"\",\"\",AN225/$C$225)","v":""},null,{"$f":"IF($C$225=\"\",\"\",AP225/$C$225)","v":""},null,{"$f":"IF($C$225=\"\",\"\",AR225/$C$225)","v":""},null,{"$f":"IF($C$225=\"\",\"\",AT225/$C$225)","v":""},null,{"$f":"IF($C$225=\"\",\"\",AV225/$C$225)","v":""},null,{"$f":"IF($C$225=\"\",\"\",AX225/$C$225)","v":""},null,{"$f":"IF($C$225=\"\",\"\",AZ225/$C$225)","v":""},null,{"$f":"IF($C$225=\"\",\"\",BB225/$C$225)","v":""},null,0]
[10.3,"Preliminary Survey of Candidate Cable Routes ",null,null,{"$f":"IF($C$226=\"\",\"\",F226/$C$226)","v":""},null,{"$f":"IF($C$226=\"\",\"\",H226/$C$226)","v":""},null,{"$f":"IF($C$226=\"\",\"\",J226/$C$226)","v":""},null,{"$f":"IF($C$226=\"\",\"\",L226/$C$226)","v":""},null,{"$f":"IF($C$226=\"\",\"\",N226/$C$226)","v":""},null,{"$f":"IF($C$226=\"\",\"\",P226/$C$226)","v":""},null,{"$f":"IF($C$226=\"\",\"\",R226/$C$226)","v":""},null,{"$f":"IF($C$226=\"\",\"\",T226/$C$226)","v":""},null,{"$f":"IF($C$226=\"\",\"\",V226/$C$226)","v":""},null,{"$f":"IF($C$226=\"\",\"\",X226/$C$226)","v":""},null,{"$f":"IF($C$226=\"\",\"\",Z226/$C$226)","v":""},null,{"$f":"IF($C$226=\"\",\"\",AB226/$C$226)","v":""},null,{"$f":"IF($C$226=\"\",\"\",AD226/$C$226)","v":""},null,{"$f":"IF($C$226=\"\",\"\",AF226/$C$226)","v":""},null,{"$f":"IF($C$226=\"\",\"\",AH226/$C$226)","v":""},null,{"$f":"IF($C$226=\"\",\"\",AJ226/$C$226)","v":""},null,{"$f":"IF($C$226=\"\",\"\",AL226/$C$226)","v":""},null,{"$f":"IF($C$226=\"\",\"\",AN226/$C$226)","v":""},null,{"$f":"IF($C$226=\"\",\"\",AP226/$C$226)","v":""},null,{"$f":"IF($C$226=\"\",\"\",AR226/$C$226)","v":""},null,{"$f":"IF($C$226=\"\",\"\",AT226/$C$226)","v":""},null,{"$f":"IF($C$226=\"\",\"\",AV226/$C$226)","v":""},null,{"$f":"IF($C$226=\"\",\"\",AX226/$C$226)","v":""},null,{"$f":"IF($C$226=\"\",\"\",AZ226/$C$226)","v":""},null,{"$f":"IF($C$226=\"\",\"\",BB226/$C$226)","v":""},null,0]
[10.4,"Develop Preliminary Communications Routing Plan",null,null,{"$f":"IF($C$227=\"\",\"\",F227/$C$227)","v":""},null,{"$f":"IF($C$227=\"\",\"\",H227/$C$227)","v":""},null,{"$f":"IF($C$227=\"\",\"\",J227/$C$227)","v":""},null,{"$f":"IF($C$227=\"\",\"\",L227/$C$227)","v":""},null,{"$f":"IF($C$227=\"\",\"\",N227/$C$227)","v":""},null,{"$f":"IF($C$227=\"\",\"\",P227/$C$227)","v":""},null,{"$f":"IF($C$227=\"\",\"\",R227/$C$227)","v":""},null,{"$f":"IF($C$227=\"\",\"\",T227/$C$227)","v":""},null,{"$f":"IF($C$227=\"\",\"\",V227/$C$227)","v":""},null,{"$f":"IF($C$227=\"\",\"\",X227/$C$227)","v":""},null,{"$f":"IF($C$227=\"\",\"\",Z227/$C$227)","v":""},null,{"$f":"IF($C$227=\"\",\"\",AB227/$C$227)","v":""},null,{"$f":"IF($C$227=\"\",\"\",AD227/$C$227)","v":""},null,{"$f":"IF($C$227=\"\",\"\",AF227/$C$227)","v":""},null,{"$f":"IF($C$227=\"\",\"\",AH227/$C$227)","v":""},null,{"$f":"IF($C$227=\"\",\"\",AJ227/$C$227)","v":""},null,{"$f":"IF($C$227=\"\",\"\",AL227/$C$227)","v":""},null,{"$f":"IF($C$227=\"\",\"\",AN227/$C$227)","v":""},null,{"$f":"IF($C$227=\"\",\"\",AP227/$C$227)","v":""},null,{"$f":"IF($C$227=\"\",\"\",AR227/$C$227)","v":""},null,{"$f":"IF($C$227=\"\",\"\",AT227/$C$227)","v":""},null,{"$f":"IF($C$227=\"\",\"\",AV227/$C$227)","v":""},null,{"$f":"IF($C$227=\"\",\"\",AX227/$C$227)","v":""},null,{"$f":"IF($C$227=\"\",\"\",AZ227/$C$227)","v":""},null,{"$f":"IF($C$227=\"\",\"\",BB227/$C$227)","v":""},null,0]
[10.5,"Inventory of Existing Underground Conduits",null,null,{"$f":"IF($C$228=\"\",\"\",F228/$C$228)","v":""},null,{"$f":"IF($C$228=\"\",\"\",H228/$C$228)","v":""},null,{"$f":"IF($C$228=\"\",\"\",J228/$C$228)","v":""},null,{"$f":"IF($C$228=\"\",\"\",L228/$C$228)","v":""},null,{"$f":"IF($C$228=\"\",\"\",N228/$C$228)","v":""},null,{"$f":"IF($C$228=\"\",\"\",P228/$C$228)","v":""},null,{"$f":"IF($C$228=\"\",\"\",R228/$C$228)","v":""},null,{"$f":"IF($C$228=\"\",\"\",T228/$C$228)","v":""},null,{"$f":"IF($C$228=\"\",\"\",V228/$C$228)","v":""},null,{"$f":"IF($C$228=\"\",\"\",X228/$C$228)","v":""},null,{"$f":"IF($C$228=\"\",\"\",Z228/$C$228)","v":""},null,{"$f":"IF($C$228=\"\",\"\",AB228/$C$228)","v":""},null,{"$f":"IF($C$228=\"\",\"\",AD228/$C$228)","v":""},null,{"$f":"IF($C$228=\"\",\"\",AF228/$C$228)","v":""},null,{"$f":"IF($C$228=\"\",\"\",AH228/$C$228)","v":""},null,{"$f":"IF($C$228=\"\",\"\",AJ228/$C$228)","v":""},null,{"$f":"IF($C$228=\"\",\"\",AL228/$C$228)","v":""},null,{"$f":"IF($C$228=\"\",\"\",AN228/$C$228)","v":""},null,{"$f":"IF($C$228=\"\",\"\",AP228/$C$228)","v":""},null,{"$f":"IF($C$228=\"\",\"\",AR228/$C$228)","v":""},null,{"$f":"IF($C$228=\"\",\"\",AT228/$C$228)","v":""},null,{"$f":"IF($C$228=\"\",\"\",AV228/$C$228)","v":""},null,{"$f":"IF($C$228=\"\",\"\",AX228/$C$228)","v":""},null,{"$f":"IF($C$228=\"\",\"\",AZ228/$C$228)","v":""},null,{"$f":"IF($C$228=\"\",\"\",BB228/$C$228)","v":""},null,0]
[10.6,"Create Cable Routing Base Sheets",null,null,{"$f":"IF($C$229=\"\",\"\",F229/$C$229)","v":""},null,{"$f":"IF($C$229=\"\",\"\",H229/$C$229)","v":""},null,{"$f":"IF($C$229=\"\",\"\",J229/$C$229)","v":""},null,{"$f":"IF($C$229=\"\",\"\",L229/$C$229)","v":""},null,{"$f":"IF($C$229=\"\",\"\",N229/$C$229)","v":""},null,{"$f":"IF($C$229=\"\",\"\",P229/$C$229)","v":""},null,{"$f":"IF($C$229=\"\",\"\",R229/$C$229)","v":""},null,{"$f":"IF($C$229=\"\",\"\",T229/$C$229)","v":""},null,{"$f":"IF($C$229=\"\",\"\",V229/$C$229)","v":""},null,{"$f":"IF($C$229=\"\",\"\",X229/$C$229)","v":""},null,{"$f":"IF($C$229=\"\",\"\",Z229/$C$229)","v":""},null,{"$f":"IF($C$229=\"\",\"\",AB229/$C$229)","v":""},null,{"$f":"IF($C$229=\"\",\"\",AD229/$C$229)","v":""},null,{"$f":"IF($C$229=\"\",\"\",AF229/$C$229)","v":""},null,{"$f":"IF($C$229=\"\",\"\",AH229/$C$229)","v":""},null,{"$f":"IF($C$229=\"\",\"\",AJ229/$C$229)","v":""},null,{"$f":"IF($C$229=\"\",\"\",AL229/$C$229)","v":""},null,{"$f":"IF($C$229=\"\",\"\",AN229/$C$229)","v":""},null,{"$f":"IF($C$229=\"\",\"\",AP229/$C$229)","v":""},null,{"$f":"IF($C$229=\"\",\"\",AR229/$C$229)","v":""},null,{"$f":"IF($C$229=\"\",\"\",AT229/$C$229)","v":""},null,{"$f":"IF($C$229=\"\",\"\",AV229/$C$229)","v":""},null,{"$f":"IF($C$229=\"\",\"\",AX229/$C$229)","v":""},null,{"$f":"IF($C$229=\"\",\"\",AZ229/$C$229)","v":""},null,{"$f":"IF($C$229=\"\",\"\",BB229/$C$229)","v":""},null,0]
[10.7,"Create Master Cable Routing Sheet Key",null,null,{"$f":"IF($C$230=\"\",\"\",F230/$C$230)","v":""},null,{"$f":"IF($C$230=\"\",\"\",H230/$C$230)","v":""},null,{"$f":"IF($C$230=\"\",\"\",J230/$C$230)","v":""},null,{"$f":"IF($C$230=\"\",\"\",L230/$C$230)","v":""},null,{"$f":"IF($C$230=\"\",\"\",N230/$C$230)","v":""},null,{"$f":"IF($C$230=\"\",\"\",P230/$C$230)","v":""},null,{"$f":"IF($C$230=\"\",\"\",R230/$C$230)","v":""},null,{"$f":"IF($C$230=\"\",\"\",T230/$C$230)","v":""},null,{"$f":"IF($C$230=\"\",\"\",V230/$C$230)","v":""},null,{"$f":"IF($C$230=\"\",\"\",X230/$C$230)","v":""},null,{"$f":"IF($C$230=\"\",\"\",Z230/$C$230)","v":""},null,{"$f":"IF($C$230=\"\",\"\",AB230/$C$230)","v":""},null,{"$f":"IF($C$230=\"\",\"\",AD230/$C$230)","v":""},null,{"$f":"IF($C$230=\"\",\"\",AF230/$C$230)","v":""},null,{"$f":"IF($C$230=\"\",\"\",AH230/$C$230)","v":""},null,{"$f":"IF($C$230=\"\",\"\",AJ230/$C$230)","v":""},null,{"$f":"IF($C$230=\"\",\"\",AL230/$C$230)","v":""},null,{"$f":"IF($C$230=\"\",\"\",AN230/$C$230)","v":""},null,{"$f":"IF($C$230=\"\",\"\",AP230/$C$230)","v":""},null,{"$f":"IF($C$230=\"\",\"\",AR230/$C$230)","v":""},null,{"$f":"IF($C$230=\"\",\"\",AT230/$C$230)","v":""},null,{"$f":"IF($C$230=\"\",\"\",AV230/$C$230)","v":""},null,{"$f":"IF($C$230=\"\",\"\",AX230/$C$230)","v":""},null,{"$f":"IF($C$230=\"\",\"\",AZ230/$C$230)","v":""},null,{"$f":"IF($C$230=\"\",\"\",BB230/$C$230)","v":""},null,0]
[10.8,"Field Survey Aerial Routes",null,null,{"$f":"IF($C$231=\"\",\"\",F231/$C$231)","v":""},null,{"$f":"IF($C$231=\"\",\"\",H231/$C$231)","v":""},null,{"$f":"IF($C$231=\"\",\"\",J231/$C$231)","v":""},null,{"$f":"IF($C$231=\"\",\"\",L231/$C$231)","v":""},null,{"$f":"IF($C$231=\"\",\"\",N231/$C$231)","v":""},null,{"$f":"IF($C$231=\"\",\"\",P231/$C$231)","v":""},null,{"$f":"IF($C$231=\"\",\"\",R231/$C$231)","v":""},null,{"$f":"IF($C$231=\"\",\"\",T231/$C$231)","v":""},null,{"$f":"IF($C$231=\"\",\"\",V231/$C$231)","v":""},null,{"$f":"IF($C$231=\"\",\"\",X231/$C$231)","v":""},null,{"$f":"IF($C$231=\"\",\"\",Z231/$C$231)","v":""},null,{"$f":"IF($C$231=\"\",\"\",AB231/$C$231)","v":""},null,{"$f":"IF($C$231=\"\",\"\",AD231/$C$231)","v":""},null,{"$f":"IF($C$231=\"\",\"\",AF231/$C$231)","v":""},null,{"$f":"IF($C$231=\"\",\"\",AH231/$C$231)","v":""},null,{"$f":"IF($C$231=\"\",\"\",AJ231/$C$231)","v":""},null,{"$f":"IF($C$231=\"\",\"\",AL231/$C$231)","v":""},null,{"$f":"IF($C$231=\"\",\"\",AN231/$C$231)","v":""},null,{"$f":"IF($C$231=\"\",\"\",AP231/$C$231)","v":""},null,{"$f":"IF($C$231=\"\",\"\",AR231/$C$231)","v":""},null,{"$f":"IF($C$231=\"\",\"\",AT231/$C$231)","v":""},null,{"$f":"IF($C$231=\"\",\"\",AV231/$C$231)","v":""},null,{"$f":"IF($C$231=\"\",\"\",AX231/$C$231)","v":""},null,{"$f":"IF($C$231=\"\",\"\",AZ231/$C$231)","v":""},null,{"$f":"IF($C$231=\"\",\"\",BB231/$C$231)","v":""},null,0]
[10.9,"Preliminary Utility Make-Ready Plans",null,null,{"$f":"IF($C$232=\"\",\"\",F232/$C$232)","v":""},null,{"$f":"IF($C$232=\"\",\"\",H232/$C$232)","v":""},null,{"$f":"IF($C$232=\"\",\"\",J232/$C$232)","v":""},null,{"$f":"IF($C$232=\"\",\"\",L232/$C$232)","v":""},null,{"$f":"IF($C$232=\"\",\"\",N232/$C$232)","v":""},null,{"$f":"IF($C$232=\"\",\"\",P232/$C$232)","v":""},null,{"$f":"IF($C$232=\"\",\"\",R232/$C$232)","v":""},null,{"$f":"IF($C$232=\"\",\"\",T232/$C$232)","v":""},null,{"$f":"IF($C$232=\"\",\"\",V232/$C$232)","v":""},null,{"$f":"IF($C$232=\"\",\"\",X232/$C$232)","v":""},null,{"$f":"IF($C$232=\"\",\"\",Z232/$C$232)","v":""},null,{"$f":"IF($C$232=\"\",\"\",AB232/$C$232)","v":""},null,{"$f":"IF($C$232=\"\",\"\",AD232/$C$232)","v":""},null,{"$f":"IF($C$232=\"\",\"\",AF232/$C$232)","v":""},null,{"$f":"IF($C$232=\"\",\"\",AH232/$C$232)","v":""},null,{"$f":"IF($C$232=\"\",\"\",AJ232/$C$232)","v":""},null,{"$f":"IF($C$232=\"\",\"\",AL232/$C$232)","v":""},null,{"$f":"IF($C$232=\"\",\"\",AN232/$C$232)","v":""},null,{"$f":"IF($C$232=\"\",\"\",AP232/$C$232)","v":""},null,{"$f":"IF($C$232=\"\",\"\",AR232/$C$232)","v":""},null,{"$f":"IF($C$232=\"\",\"\",AT232/$C$232)","v":""},null,{"$f":"IF($C$232=\"\",\"\",AV232/$C$232)","v":""},null,{"$f":"IF($C$232=\"\",\"\",AX232/$C$232)","v":""},null,{"$f":"IF($C$232=\"\",\"\",AZ232/$C$232)","v":""},null,{"$f":"IF($C$232=\"\",\"\",BB232/$C$232)","v":""},null,0]
["10.10","Make-Ready Walk-Throughs"]
["    10.10.1","    Coordinate and Schedule Utility Make-Ready \n    Walk-Throughs",null,null,{"$f":"IF($C$234=\"\",\"\",F234/$C$234)","v":""},null,{"$f":"IF($C$234=\"\",\"\",H234/$C$234)","v":""},null,{"$f":"IF($C$234=\"\",\"\",J234/$C$234)","v":""},null,{"$f":"IF($C$234=\"\",\"\",L234/$C$234)","v":""},null,{"$f":"IF($C$234=\"\",\"\",N234/$C$234)","v":""},null,{"$f":"IF($C$234=\"\",\"\",P234/$C$234)","v":""},null,{"$f":"IF($C$234=\"\",\"\",R234/$C$234)","v":""},null,{"$f":"IF($C$234=\"\",\"\",T234/$C$234)","v":""},null,{"$f":"IF($C$234=\"\",\"\",V234/$C$234)","v":""},null,{"$f":"IF($C$234=\"\",\"\",X234/$C$234)","v":""},null,{"$f":"IF($C$234=\"\",\"\",Z234/$C$234)","v":""},null,{"$f":"IF($C$234=\"\",\"\",AB234/$C$234)","v":""},null,{"$f":"IF($C$234=\"\",\"\",AD234/$C$234)","v":""},null,{"$f":"IF($C$234=\"\",\"\",AF234/$C$234)","v":""},null,{"$f":"IF($C$234=\"\",\"\",AH234/$C$234)","v":""},null,{"$f":"IF($C$234=\"\",\"\",AJ234/$C$234)","v":""},null,{"$f":"IF($C$234=\"\",\"\",AL234/$C$234)","v":""},null,{"$f":"IF($C$234=\"\",\"\",AN234/$C$234)","v":""},null,{"$f":"IF($C$234=\"\",\"\",AP234/$C$234)","v":""},null,{"$f":"IF($C$234=\"\",\"\",AR234/$C$234)","v":""},null,{"$f":"IF($C$234=\"\",\"\",AT234/$C$234)","v":""},null,{"$f":"IF($C$234=\"\",\"\",AV234/$C$234)","v":""},null,{"$f":"IF($C$234=\"\",\"\",AX234/$C$234)","v":""},null,{"$f":"IF($C$234=\"\",\"\",AZ234/$C$234)","v":""},null,{"$f":"IF($C$234=\"\",\"\",BB234/$C$234)","v":""},null,{"$f":"SUM(BB234,AZ234,AX234,AV234,AT234,AR234,AP234,AN234,AL234,AJ234,AH234,AF234,AD234,AB234,Z234,X234,V234,T234,R234,P234,N234,L234,J234,H234,F234)","v":0}]
["    10.10.2","    Conduct Utility Make-Ready Walk-Throughs",null,null,{"$f":"IF($C$235=\"\",\"\",F235/$C$235)","v":""},null,{"$f":"IF($C$235=\"\",\"\",H235/$C$235)","v":""},null,{"$f":"IF($C$235=\"\",\"\",J235/$C$235)","v":""},null,{"$f":"IF($C$235=\"\",\"\",L235/$C$235)","v":""},null,{"$f":"IF($C$235=\"\",\"\",N235/$C$235)","v":""},null,{"$f":"IF($C$235=\"\",\"\",P235/$C$235)","v":""},null,{"$f":"IF($C$235=\"\",\"\",R235/$C$235)","v":""},null,{"$f":"IF($C$235=\"\",\"\",T235/$C$235)","v":""},null,{"$f":"IF($C$235=\"\",\"\",V235/$C$235)","v":""},null,{"$f":"IF($C$235=\"\",\"\",X235/$C$235)","v":""},null,{"$f":"IF($C$235=\"\",\"\",Z235/$C$235)","v":""},null,{"$f":"IF($C$235=\"\",\"\",AB235/$C$235)","v":""},null,{"$f":"IF($C$235=\"\",\"\",AD235/$C$235)","v":""},null,{"$f":"IF($C$235=\"\",\"\",AF235/$C$235)","v":""},null,{"$f":"IF($C$235=\"\",\"\",AH235/$C$235)","v":""},null,{"$f":"IF($C$235=\"\",\"\",AJ235/$C$235)","v":""},null,{"$f":"IF($C$235=\"\",\"\",AL235/$C$235)","v":""},null,{"$f":"IF($C$235=\"\",\"\",AN235/$C$235)","v":""},null,{"$f":"IF($C$235=\"\",\"\",AP235/$C$235)","v":""},null,{"$f":"IF($C$235=\"\",\"\",AR235/$C$235)","v":""},null,{"$f":"IF($C$235=\"\",\"\",AT235/$C$235)","v":""},null,{"$f":"IF($C$235=\"\",\"\",AV235/$C$235)","v":""},null,{"$f":"IF($C$235=\"\",\"\",AX235/$C$235)","v":""},null,{"$f":"IF($C$235=\"\",\"\",AZ235/$C$235)","v":""},null,{"$f":"IF($C$235=\"\",\"\",BB235/$C$235)","v":""},null,0]
["    10.10.3",null,null,null,{"$f":"IF($C$236=\"\",\"\",F236/$C$236)","v":""},null,{"$f":"IF($C$236=\"\",\"\",H236/$C$236)","v":""},null,{"$f":"IF($C$236=\"\",\"\",J236/$C$236)","v":""},null,{"$f":"IF($C$236=\"\",\"\",L236/$C$236)","v":""},null,{"$f":"IF($C$236=\"\",\"\",N236/$C$236)","v":""},null,{"$f":"IF($C$236=\"\",\"\",P236/$C$236)","v":""},null,{"$f":"IF($C$236=\"\",\"\",R236/$C$236)","v":""},null,{"$f":"IF($C$236=\"\",\"\",T236/$C$236)","v":""},null,{"$f":"IF($C$236=\"\",\"\",V236/$C$236)","v":""},null,{"$f":"IF($C$236=\"\",\"\",X236/$C$236)","v":""},null,{"$f":"IF($C$236=\"\",\"\",Z236/$C$236)","v":""},null,{"$f":"IF($C$236=\"\",\"\",AB236/$C$236)","v":""},null,{"$f":"IF($C$236=\"\",\"\",AD236/$C$236)","v":""},null,{"$f":"IF($C$236=\"\",\"\",AF236/$C$236)","v":""},null,{"$f":"IF($C$236=\"\",\"\",AH236/$C$236)","v":""},null,{"$f":"IF($C$236=\"\",\"\",AJ236/$C$236)","v":""},null,{"$f":"IF($C$236=\"\",\"\",AL236/$C$236)","v":""},null,{"$f":"IF($C$236=\"\",\"\",AN236/$C$236)","v":""},null,{"$f":"IF($C$236=\"\",\"\",AP236/$C$236)","v":""},null,{"$f":"IF($C$236=\"\",\"\",AR236/$C$236)","v":""},null,{"$f":"IF($C$236=\"\",\"\",AT236/$C$236)","v":""},null,{"$f":"IF($C$236=\"\",\"\",AV236/$C$236)","v":""},null,{"$f":"IF($C$236=\"\",\"\",AX236/$C$236)","v":""},null,{"$f":"IF($C$236=\"\",\"\",AZ236/$C$236)","v":""},null,{"$f":"IF($C$236=\"\",\"\",BB236/$C$236)","v":""},null,0]
["    10.10.4",null,null,null,{"$f":"IF($C$237=\"\",\"\",F237/$C$237)","v":""},null,{"$f":"IF($C$237=\"\",\"\",H237/$C$237)","v":""},null,{"$f":"IF($C$237=\"\",\"\",J237/$C$237)","v":""},null,{"$f":"IF($C$237=\"\",\"\",L237/$C$237)","v":""},null,{"$f":"IF($C$237=\"\",\"\",N237/$C$237)","v":""},null,{"$f":"IF($C$237=\"\",\"\",P237/$C$237)","v":""},null,{"$f":"IF($C$237=\"\",\"\",R237/$C$237)","v":""},null,{"$f":"IF($C$237=\"\",\"\",T237/$C$237)","v":""},null,{"$f":"IF($C$237=\"\",\"\",V237/$C$237)","v":""},null,{"$f":"IF($C$237=\"\",\"\",X237/$C$237)","v":""},null,{"$f":"IF($C$237=\"\",\"\",Z237/$C$237)","v":""},null,{"$f":"IF($C$237=\"\",\"\",AB237/$C$237)","v":""},null,{"$f":"IF($C$237=\"\",\"\",AD237/$C$237)","v":""},null,{"$f":"IF($C$237=\"\",\"\",AF237/$C$237)","v":""},null,{"$f":"IF($C$237=\"\",\"\",AH237/$C$237)","v":""},null,{"$f":"IF($C$237=\"\",\"\",AJ237/$C$237)","v":""},null,{"$f":"IF($C$237=\"\",\"\",AL237/$C$237)","v":""},null,{"$f":"IF($C$237=\"\",\"\",AN237/$C$237)","v":""},null,{"$f":"IF($C$237=\"\",\"\",AP237/$C$237)","v":""},null,{"$f":"IF($C$237=\"\",\"\",AR237/$C$237)","v":""},null,{"$f":"IF($C$237=\"\",\"\",AT237/$C$237)","v":""},null,{"$f":"IF($C$237=\"\",\"\",AV237/$C$237)","v":""},null,{"$f":"IF($C$237=\"\",\"\",AX237/$C$237)","v":""},null,{"$f":"IF($C$237=\"\",\"\",AZ237/$C$237)","v":""},null,{"$f":"IF($C$237=\"\",\"\",BB237/$C$237)","v":""},null,0]
["    10.10.5",null,null,null,{"$f":"IF($C$238=\"\",\"\",F238/$C$238)","v":""},null,{"$f":"IF($C$238=\"\",\"\",H238/$C$238)","v":""},null,{"$f":"IF($C$238=\"\",\"\",J238/$C$238)","v":""},null,{"$f":"IF($C$238=\"\",\"\",L238/$C$238)","v":""},null,{"$f":"IF($C$238=\"\",\"\",N238/$C$238)","v":""},null,{"$f":"IF($C$238=\"\",\"\",P238/$C$238)","v":""},null,{"$f":"IF($C$238=\"\",\"\",R238/$C$238)","v":""},null,{"$f":"IF($C$238=\"\",\"\",T238/$C$238)","v":""},null,{"$f":"IF($C$238=\"\",\"\",V238/$C$238)","v":""},null,{"$f":"IF($C$238=\"\",\"\",X238/$C$238)","v":""},null,{"$f":"IF($C$238=\"\",\"\",Z238/$C$238)","v":""},null,{"$f":"IF($C$238=\"\",\"\",AB238/$C$238)","v":""},null,{"$f":"IF($C$238=\"\",\"\",AD238/$C$238)","v":""},null,{"$f":"IF($C$238=\"\",\"\",AF238/$C$238)","v":""},null,{"$f":"IF($C$238=\"\",\"\",AH238/$C$238)","v":""},null,{"$f":"IF($C$238=\"\",\"\",AJ238/$C$238)","v":""},null,{"$f":"IF($C$238=\"\",\"\",AL238/$C$238)","v":""},null,{"$f":"IF($C$238=\"\",\"\",AN238/$C$238)","v":""},null,{"$f":"IF($C$238=\"\",\"\",AP238/$C$238)","v":""},null,{"$f":"IF($C$238=\"\",\"\",AR238/$C$238)","v":""},null,{"$f":"IF($C$238=\"\",\"\",AT238/$C$238)","v":""},null,{"$f":"IF($C$238=\"\",\"\",AV238/$C$238)","v":""},null,{"$f":"IF($C$238=\"\",\"\",AX238/$C$238)","v":""},null,{"$f":"IF($C$238=\"\",\"\",AZ238/$C$238)","v":""},null,{"$f":"IF($C$238=\"\",\"\",BB238/$C$238)","v":""},null,0]
[10.11,"Draft Final Utility Make-Ready Plans",null,null,{"$f":"IF($C$239=\"\",\"\",F239/$C$239)","v":""},null,{"$f":"IF($C$239=\"\",\"\",H239/$C$239)","v":""},null,{"$f":"IF($C$239=\"\",\"\",J239/$C$239)","v":""},null,{"$f":"IF($C$239=\"\",\"\",L239/$C$239)","v":""},null,{"$f":"IF($C$239=\"\",\"\",N239/$C$239)","v":""},null,{"$f":"IF($C$239=\"\",\"\",P239/$C$239)","v":""},null,{"$f":"IF($C$239=\"\",\"\",R239/$C$239)","v":""},null,{"$f":"IF($C$239=\"\",\"\",T239/$C$239)","v":""},null,{"$f":"IF($C$239=\"\",\"\",V239/$C$239)","v":""},null,{"$f":"IF($C$239=\"\",\"\",X239/$C$239)","v":""},null,{"$f":"IF($C$239=\"\",\"\",Z239/$C$239)","v":""},null,{"$f":"IF($C$239=\"\",\"\",AB239/$C$239)","v":""},null,{"$f":"IF($C$239=\"\",\"\",AD239/$C$239)","v":""},null,{"$f":"IF($C$239=\"\",\"\",AF239/$C$239)","v":""},null,{"$f":"IF($C$239=\"\",\"\",AH239/$C$239)","v":""},null,{"$f":"IF($C$239=\"\",\"\",AJ239/$C$239)","v":""},null,{"$f":"IF($C$239=\"\",\"\",AL239/$C$239)","v":""},null,{"$f":"IF($C$239=\"\",\"\",AN239/$C$239)","v":""},null,{"$f":"IF($C$239=\"\",\"\",AP239/$C$239)","v":""},null,{"$f":"IF($C$239=\"\",\"\",AR239/$C$239)","v":""},null,{"$f":"IF($C$239=\"\",\"\",AT239/$C$239)","v":""},null,{"$f":"IF($C$239=\"\",\"\",AV239/$C$239)","v":""},null,{"$f":"IF($C$239=\"\",\"\",AX239/$C$239)","v":""},null,{"$f":"IF($C$239=\"\",\"\",AZ239/$C$239)","v":""},null,{"$f":"IF($C$239=\"\",\"\",BB239/$C$239)","v":""},null,0]
[10.119999999999999,"Final Utility Make-Ready Plans",null,null,{"$f":"IF($C$240=\"\",\"\",F240/$C$240)","v":""},null,{"$f":"IF($C$240=\"\",\"\",H240/$C$240)","v":""},null,{"$f":"IF($C$240=\"\",\"\",J240/$C$240)","v":""},null,{"$f":"IF($C$240=\"\",\"\",L240/$C$240)","v":""},null,{"$f":"IF($C$240=\"\",\"\",N240/$C$240)","v":""},null,{"$f":"IF($C$240=\"\",\"\",P240/$C$240)","v":""},null,{"$f":"IF($C$240=\"\",\"\",R240/$C$240)","v":""},null,{"$f":"IF($C$240=\"\",\"\",T240/$C$240)","v":""},null,{"$f":"IF($C$240=\"\",\"\",V240/$C$240)","v":""},null,{"$f":"IF($C$240=\"\",\"\",X240/$C$240)","v":""},null,{"$f":"IF($C$240=\"\",\"\",Z240/$C$240)","v":""},null,{"$f":"IF($C$240=\"\",\"\",AB240/$C$240)","v":""},null,{"$f":"IF($C$240=\"\",\"\",AD240/$C$240)","v":""},null,{"$f":"IF($C$240=\"\",\"\",AF240/$C$240)","v":""},null,{"$f":"IF($C$240=\"\",\"\",AH240/$C$240)","v":""},null,{"$f":"IF($C$240=\"\",\"\",AJ240/$C$240)","v":""},null,{"$f":"IF($C$240=\"\",\"\",AL240/$C$240)","v":""},null,{"$f":"IF($C$240=\"\",\"\",AN240/$C$240)","v":""},null,{"$f":"IF($C$240=\"\",\"\",AP240/$C$240)","v":""},null,{"$f":"IF($C$240=\"\",\"\",AR240/$C$240)","v":""},null,{"$f":"IF($C$240=\"\",\"\",AT240/$C$240)","v":""},null,{"$f":"IF($C$240=\"\",\"\",AV240/$C$240)","v":""},null,{"$f":"IF($C$240=\"\",\"\",AX240/$C$240)","v":""},null,{"$f":"IF($C$240=\"\",\"\",AZ240/$C$240)","v":""},null,{"$f":"IF($C$240=\"\",\"\",BB240/$C$240)","v":""},null,0]
[10.130000000000001,"Review and Compile UMR Cost Estimates",null,null,{"$f":"IF($C$241=\"\",\"\",F241/$C$241)","v":""},null,{"$f":"IF($C$241=\"\",\"\",H241/$C$241)","v":""},null,{"$f":"IF($C$241=\"\",\"\",J241/$C$241)","v":""},null,{"$f":"IF($C$241=\"\",\"\",L241/$C$241)","v":""},null,{"$f":"IF($C$241=\"\",\"\",N241/$C$241)","v":""},null,{"$f":"IF($C$241=\"\",\"\",P241/$C$241)","v":""},null,{"$f":"IF($C$241=\"\",\"\",R241/$C$241)","v":""},null,{"$f":"IF($C$241=\"\",\"\",T241/$C$241)","v":""},null,{"$f":"IF($C$241=\"\",\"\",V241/$C$241)","v":""},null,{"$f":"IF($C$241=\"\",\"\",X241/$C$241)","v":""},null,{"$f":"IF($C$241=\"\",\"\",Z241/$C$241)","v":""},null,{"$f":"IF($C$241=\"\",\"\",AB241/$C$241)","v":""},null,{"$f":"IF($C$241=\"\",\"\",AD241/$C$241)","v":""},null,{"$f":"IF($C$241=\"\",\"\",AF241/$C$241)","v":""},null,{"$f":"IF($C$241=\"\",\"\",AH241/$C$241)","v":""},null,{"$f":"IF($C$241=\"\",\"\",AJ241/$C$241)","v":""},null,{"$f":"IF($C$241=\"\",\"\",AL241/$C$241)","v":""},null,{"$f":"IF($C$241=\"\",\"\",AN241/$C$241)","v":""},null,{"$f":"IF($C$241=\"\",\"\",AP241/$C$241)","v":""},null,{"$f":"IF($C$241=\"\",\"\",AR241/$C$241)","v":""},null,{"$f":"IF($C$241=\"\",\"\",AT241/$C$241)","v":""},null,{"$f":"IF($C$241=\"\",\"\",AV241/$C$241)","v":""},null,{"$f":"IF($C$241=\"\",\"\",AX241/$C$241)","v":""},null,{"$f":"IF($C$241=\"\",\"\",AZ241/$C$241)","v":""},null,{"$f":"IF($C$241=\"\",\"\",BB241/$C$241)","v":""},null,0]
[10.14,"Deliverables (3 submittals)",null,null,{"$f":"IF($C$242=\"\",\"\",F242/$C$242)","v":""},null,{"$f":"IF($C$242=\"\",\"\",H242/$C$242)","v":""},null,{"$f":"IF($C$242=\"\",\"\",J242/$C$242)","v":""},null,{"$f":"IF($C$242=\"\",\"\",L242/$C$242)","v":""},null,{"$f":"IF($C$242=\"\",\"\",N242/$C$242)","v":""},null,{"$f":"IF($C$242=\"\",\"\",P242/$C$242)","v":""},null,{"$f":"IF($C$242=\"\",\"\",R242/$C$242)","v":""},null,{"$f":"IF($C$242=\"\",\"\",T242/$C$242)","v":""},null,{"$f":"IF($C$242=\"\",\"\",V242/$C$242)","v":""},null,{"$f":"IF($C$242=\"\",\"\",X242/$C$242)","v":""},null,{"$f":"IF($C$242=\"\",\"\",Z242/$C$242)","v":""},null,{"$f":"IF($C$242=\"\",\"\",AB242/$C$242)","v":""},null,{"$f":"IF($C$242=\"\",\"\",AD242/$C$242)","v":""},null,{"$f":"IF($C$242=\"\",\"\",AF242/$C$242)","v":""},null,{"$f":"IF($C$242=\"\",\"\",AH242/$C$242)","v":""},null,{"$f":"IF($C$242=\"\",\"\",AJ242/$C$242)","v":""},null,{"$f":"IF($C$242=\"\",\"\",AL242/$C$242)","v":""},null,{"$f":"IF($C$242=\"\",\"\",AN242/$C$242)","v":""},null,{"$f":"IF($C$242=\"\",\"\",AP242/$C$242)","v":""},null,{"$f":"IF($C$242=\"\",\"\",AR242/$C$242)","v":""},null,{"$f":"IF($C$242=\"\",\"\",AT242/$C$242)","v":""},null,{"$f":"IF($C$242=\"\",\"\",AV242/$C$242)","v":""},null,{"$f":"IF($C$242=\"\",\"\",AX242/$C$242)","v":""},null,{"$f":"IF($C$242=\"\",\"\",AZ242/$C$242)","v":""},null,{"$f":"IF($C$242=\"\",\"\",BB242/$C$242)","v":""},null,0]
[null,null,null,null,{"$f":"IF($C$243=\"\",\"\",F243/$C$243)","v":""},null,{"$f":"IF($C$243=\"\",\"\",H243/$C$243)","v":""},null,{"$f":"IF($C$243=\"\",\"\",J243/$C$243)","v":""},null,{"$f":"IF($C$243=\"\",\"\",L243/$C$243)","v":""},null,{"$f":"IF($C$243=\"\",\"\",N243/$C$243)","v":""},null,{"$f":"IF($C$243=\"\",\"\",P243/$C$243)","v":""},null,{"$f":"IF($C$243=\"\",\"\",R243/$C$243)","v":""},null,{"$f":"IF($C$243=\"\",\"\",T243/$C$243)","v":""},null,{"$f":"IF($C$243=\"\",\"\",V243/$C$243)","v":""},null,{"$f":"IF($C$243=\"\",\"\",X243/$C$243)","v":""},null,{"$f":"IF($C$243=\"\",\"\",Z243/$C$243)","v":""},null,{"$f":"IF($C$243=\"\",\"\",AB243/$C$243)","v":""},null,{"$f":"IF($C$243=\"\",\"\",AD243/$C$243)","v":""},null,{"$f":"IF($C$243=\"\",\"\",AF243/$C$243)","v":""},null,{"$f":"IF($C$243=\"\",\"\",AH243/$C$243)","v":""},null,{"$f":"IF($C$243=\"\",\"\",AJ243/$C$243)","v":""},null,{"$f":"IF($C$243=\"\",\"\",AL243/$C$243)","v":""},null,{"$f":"IF($C$243=\"\",\"\",AN243/$C$243)","v":""},null,{"$f":"IF($C$243=\"\",\"\",AP243/$C$243)","v":""},null,{"$f":"IF($C$243=\"\",\"\",AR243/$C$243)","v":""},null,{"$f":"IF($C$243=\"\",\"\",AT243/$C$243)","v":""},null,{"$f":"IF($C$243=\"\",\"\",AV243/$C$243)","v":""},null,{"$f":"IF($C$243=\"\",\"\",AX243/$C$243)","v":""},null,{"$f":"IF($C$243=\"\",\"\",AZ243/$C$243)","v":""},null,{"$f":"IF($C$243=\"\",\"\",BB243/$C$243)","v":""},null,0]
[null,null,null,null,{"$f":"IF($C$244=\"\",\"\",F244/$C$244)","v":""},null,{"$f":"IF($C$244=\"\",\"\",H244/$C$244)","v":""},null,{"$f":"IF($C$244=\"\",\"\",J244/$C$244)","v":""},null,{"$f":"IF($C$244=\"\",\"\",L244/$C$244)","v":""},null,{"$f":"IF($C$244=\"\",\"\",N244/$C$244)","v":""},null,{"$f":"IF($C$244=\"\",\"\",P244/$C$244)","v":""},null,{"$f":"IF($C$244=\"\",\"\",R244/$C$244)","v":""},null,{"$f":"IF($C$244=\"\",\"\",T244/$C$244)","v":""},null,{"$f":"IF($C$244=\"\",\"\",V244/$C$244)","v":""},null,{"$f":"IF($C$244=\"\",\"\",X244/$C$244)","v":""},null,{"$f":"IF($C$244=\"\",\"\",Z244/$C$244)","v":""},null,{"$f":"IF($C$244=\"\",\"\",AB244/$C$244)","v":""},null,{"$f":"IF($C$244=\"\",\"\",AD244/$C$244)","v":""},null,{"$f":"IF($C$244=\"\",\"\",AF244/$C$244)","v":""},null,{"$f":"IF($C$244=\"\",\"\",AH244/$C$244)","v":""},null,{"$f":"IF($C$244=\"\",\"\",AJ244/$C$244)","v":""},null,{"$f":"IF($C$244=\"\",\"\",AL244/$C$244)","v":""},null,{"$f":"IF($C$244=\"\",\"\",AN244/$C$244)","v":""},null,{"$f":"IF($C$244=\"\",\"\",AP244/$C$244)","v":""},null,{"$f":"IF($C$244=\"\",\"\",AR244/$C$244)","v":""},null,{"$f":"IF($C$244=\"\",\"\",AT244/$C$244)","v":""},null,{"$f":"IF($C$244=\"\",\"\",AV244/$C$244)","v":""},null,{"$f":"IF($C$244=\"\",\"\",AX244/$C$244)","v":""},null,{"$f":"IF($C$244=\"\",\"\",AZ244/$C$244)","v":""},null,{"$f":"IF($C$244=\"\",\"\",BB244/$C$244)","v":""},null,0]
[null,null,null,null,{"$f":"IF($C$245=\"\",\"\",F245/$C$245)","v":""},null,{"$f":"IF($C$245=\"\",\"\",H245/$C$245)","v":""},null,{"$f":"IF($C$245=\"\",\"\",J245/$C$245)","v":""},null,{"$f":"IF($C$245=\"\",\"\",L245/$C$245)","v":""},null,{"$f":"IF($C$245=\"\",\"\",N245/$C$245)","v":""},null,{"$f":"IF($C$245=\"\",\"\",P245/$C$245)","v":""},null,{"$f":"IF($C$245=\"\",\"\",R245/$C$245)","v":""},null,{"$f":"IF($C$245=\"\",\"\",T245/$C$245)","v":""},null,{"$f":"IF($C$245=\"\",\"\",V245/$C$245)","v":""},null,{"$f":"IF($C$245=\"\",\"\",X245/$C$245)","v":""},null,{"$f":"IF($C$245=\"\",\"\",Z245/$C$245)","v":""},null,{"$f":"IF($C$245=\"\",\"\",AB245/$C$245)","v":""},null,{"$f":"IF($C$245=\"\",\"\",AD245/$C$245)","v":""},null,{"$f":"IF($C$245=\"\",\"\",AF245/$C$245)","v":""},null,{"$f":"IF($C$245=\"\",\"\",AH245/$C$245)","v":""},null,{"$f":"IF($C$245=\"\",\"\",AJ245/$C$245)","v":""},null,{"$f":"IF($C$245=\"\",\"\",AL245/$C$245)","v":""},null,{"$f":"IF($C$245=\"\",\"\",AN245/$C$245)","v":""},null,{"$f":"IF($C$245=\"\",\"\",AP245/$C$245)","v":""},null,{"$f":"IF($C$245=\"\",\"\",AR245/$C$245)","v":""},null,{"$f":"IF($C$245=\"\",\"\",AT245/$C$245)","v":""},null,{"$f":"IF($C$245=\"\",\"\",AV245/$C$245)","v":""},null,{"$f":"IF($C$245=\"\",\"\",AX245/$C$245)","v":""},null,{"$f":"IF($C$245=\"\",\"\",AZ245/$C$245)","v":""},null,{"$f":"IF($C$245=\"\",\"\",BB245/$C$245)","v":""},null,0]
[null,null,null,null,{"$f":"IF($C$246=\"\",\"\",F246/$C$246)","v":""},null,{"$f":"IF($C$246=\"\",\"\",H246/$C$246)","v":""},null,{"$f":"IF($C$246=\"\",\"\",J246/$C$246)","v":""},null,{"$f":"IF($C$246=\"\",\"\",L246/$C$246)","v":""},null,{"$f":"IF($C$246=\"\",\"\",N246/$C$246)","v":""},null,{"$f":"IF($C$246=\"\",\"\",P246/$C$246)","v":""},null,{"$f":"IF($C$246=\"\",\"\",R246/$C$246)","v":""},null,{"$f":"IF($C$246=\"\",\"\",T246/$C$246)","v":""},null,{"$f":"IF($C$246=\"\",\"\",V246/$C$246)","v":""},null,{"$f":"IF($C$246=\"\",\"\",X246/$C$246)","v":""},null,{"$f":"IF($C$246=\"\",\"\",Z246/$C$246)","v":""},null,{"$f":"IF($C$246=\"\",\"\",AB246/$C$246)","v":""},null,{"$f":"IF($C$246=\"\",\"\",AD246/$C$246)","v":""},null,{"$f":"IF($C$246=\"\",\"\",AF246/$C$246)","v":""},null,{"$f":"IF($C$246=\"\",\"\",AH246/$C$246)","v":""},null,{"$f":"IF($C$246=\"\",\"\",AJ246/$C$246)","v":""},null,{"$f":"IF($C$246=\"\",\"\",AL246/$C$246)","v":""},null,{"$f":"IF($C$246=\"\",\"\",AN246/$C$246)","v":""},null,{"$f":"IF($C$246=\"\",\"\",AP246/$C$246)","v":""},null,{"$f":"IF($C$246=\"\",\"\",AR246/$C$246)","v":""},null,{"$f":"IF($C$246=\"\",\"\",AT246/$C$246)","v":""},null,{"$f":"IF($C$246=\"\",\"\",AV246/$C$246)","v":""},null,{"$f":"IF($C$246=\"\",\"\",AX246/$C$246)","v":""},null,{"$f":"IF($C$246=\"\",\"\",AZ246/$C$246)","v":""},null,{"$f":"IF($C$246=\"\",\"\",BB246/$C$246)","v":""},null,0]
[null,null,null,null,{"$f":"IF($C$247=\"\",\"\",F247/$C$247)","v":""},null,{"$f":"IF($C$247=\"\",\"\",H247/$C$247)","v":""},null,{"$f":"IF($C$247=\"\",\"\",J247/$C$247)","v":""},null,{"$f":"IF($C$247=\"\",\"\",L247/$C$247)","v":""},null,{"$f":"IF($C$247=\"\",\"\",N247/$C$247)","v":""},null,{"$f":"IF($C$247=\"\",\"\",P247/$C$247)","v":""},null,{"$f":"IF($C$247=\"\",\"\",R247/$C$247)","v":""},null,{"$f":"IF($C$247=\"\",\"\",T247/$C$247)","v":""},null,{"$f":"IF($C$247=\"\",\"\",V247/$C$247)","v":""},null,{"$f":"IF($C$247=\"\",\"\",X247/$C$247)","v":""},null,{"$f":"IF($C$247=\"\",\"\",Z247/$C$247)","v":""},null,{"$f":"IF($C$247=\"\",\"\",AB247/$C$247)","v":""},null,{"$f":"IF($C$247=\"\",\"\",AD247/$C$247)","v":""},null,{"$f":"IF($C$247=\"\",\"\",AF247/$C$247)","v":""},null,{"$f":"IF($C$247=\"\",\"\",AH247/$C$247)","v":""},null,{"$f":"IF($C$247=\"\",\"\",AJ247/$C$247)","v":""},null,{"$f":"IF($C$247=\"\",\"\",AL247/$C$247)","v":""},null,{"$f":"IF($C$247=\"\",\"\",AN247/$C$247)","v":""},null,{"$f":"IF($C$247=\"\",\"\",AP247/$C$247)","v":""},null,{"$f":"IF($C$247=\"\",\"\",AR247/$C$247)","v":""},null,{"$f":"IF($C$247=\"\",\"\",AT247/$C$247)","v":""},null,{"$f":"IF($C$247=\"\",\"\",AV247/$C$247)","v":""},null,{"$f":"IF($C$247=\"\",\"\",AX247/$C$247)","v":""},null,{"$f":"IF($C$247=\"\",\"\",AZ247/$C$247)","v":""},null,{"$f":"IF($C$247=\"\",\"\",BB247/$C$247)","v":""},null,0]
[null,null,null,null,{"$f":"IF($C$248=\"\",\"\",F248/$C$248)","v":""},null,{"$f":"IF($C$248=\"\",\"\",H248/$C$248)","v":""},null,{"$f":"IF($C$248=\"\",\"\",J248/$C$248)","v":""},null,{"$f":"IF($C$248=\"\",\"\",L248/$C$248)","v":""},null,{"$f":"IF($C$248=\"\",\"\",N248/$C$248)","v":""},null,{"$f":"IF($C$248=\"\",\"\",P248/$C$248)","v":""},null,{"$f":"IF($C$248=\"\",\"\",R248/$C$248)","v":""},null,{"$f":"IF($C$248=\"\",\"\",T248/$C$248)","v":""},null,{"$f":"IF($C$248=\"\",\"\",V248/$C$248)","v":""},null,{"$f":"IF($C$248=\"\",\"\",X248/$C$248)","v":""},null,{"$f":"IF($C$248=\"\",\"\",Z248/$C$248)","v":""},null,{"$f":"IF($C$248=\"\",\"\",AB248/$C$248)","v":""},null,{"$f":"IF($C$248=\"\",\"\",AD248/$C$248)","v":""},null,{"$f":"IF($C$248=\"\",\"\",AF248/$C$248)","v":""},null,{"$f":"IF($C$248=\"\",\"\",AH248/$C$248)","v":""},null,{"$f":"IF($C$248=\"\",\"\",AJ248/$C$248)","v":""},null,{"$f":"IF($C$248=\"\",\"\",AL248/$C$248)","v":""},null,{"$f":"IF($C$248=\"\",\"\",AN248/$C$248)","v":""},null,{"$f":"IF($C$248=\"\",\"\",AP248/$C$248)","v":""},null,{"$f":"IF($C$248=\"\",\"\",AR248/$C$248)","v":""},null,{"$f":"IF($C$248=\"\",\"\",AT248/$C$248)","v":""},null,{"$f":"IF($C$248=\"\",\"\",AV248/$C$248)","v":""},null,{"$f":"IF($C$248=\"\",\"\",AX248/$C$248)","v":""},null,{"$f":"IF($C$248=\"\",\"\",AZ248/$C$248)","v":""},null,{"$f":"IF($C$248=\"\",\"\",BB248/$C$248)","v":""},null,0]
[null,null,null,null,{"$f":"IF($C$249=\"\",\"\",F249/$C$249)","v":""},null,{"$f":"IF($C$249=\"\",\"\",H249/$C$249)","v":""},null,{"$f":"IF($C$249=\"\",\"\",J249/$C$249)","v":""},null,{"$f":"IF($C$249=\"\",\"\",L249/$C$249)","v":""},null,{"$f":"IF($C$249=\"\",\"\",N249/$C$249)","v":""},null,{"$f":"IF($C$249=\"\",\"\",P249/$C$249)","v":""},null,{"$f":"IF($C$249=\"\",\"\",R249/$C$249)","v":""},null,{"$f":"IF($C$249=\"\",\"\",T249/$C$249)","v":""},null,{"$f":"IF($C$249=\"\",\"\",V249/$C$249)","v":""},null,{"$f":"IF($C$249=\"\",\"\",X249/$C$249)","v":""},null,{"$f":"IF($C$249=\"\",\"\",Z249/$C$249)","v":""},null,{"$f":"IF($C$249=\"\",\"\",AB249/$C$249)","v":""},null,{"$f":"IF($C$249=\"\",\"\",AD249/$C$249)","v":""},null,{"$f":"IF($C$249=\"\",\"\",AF249/$C$249)","v":""},null,{"$f":"IF($C$249=\"\",\"\",AH249/$C$249)","v":""},null,{"$f":"IF($C$249=\"\",\"\",AJ249/$C$249)","v":""},null,{"$f":"IF($C$249=\"\",\"\",AL249/$C$249)","v":""},null,{"$f":"IF($C$249=\"\",\"\",AN249/$C$249)","v":""},null,{"$f":"IF($C$249=\"\",\"\",AP249/$C$249)","v":""},null,{"$f":"IF($C$249=\"\",\"\",AR249/$C$249)","v":""},null,{"$f":"IF($C$249=\"\",\"\",AT249/$C$249)","v":""},null,{"$f":"IF($C$249=\"\",\"\",AV249/$C$249)","v":""},null,{"$f":"IF($C$249=\"\",\"\",AX249/$C$249)","v":""},null,{"$f":"IF($C$249=\"\",\"\",AZ249/$C$249)","v":""},null,{"$f":"IF($C$249=\"\",\"\",BB249/$C$249)","v":""},null,{"$f":"SUM(BB249,AZ249,AX249,AV249,AT249,AR249,AP249,AN249,AL249,AJ249,AH249,AF249,AD249,AB249,Z249,X249,V249,T249,R249,P249,N249,L249,J249,H249,F249)","v":0}]
["TOTAL HOURS",null,null,null,null,{"$f":"SUM(F224:F249)","v":0},null,{"$f":"SUM(H224:H249)","v":0},null,{"$f":"SUM(J224:J249)","v":0},null,{"$f":"SUM(L224:L249)","v":0},null,{"$f":"SUM(N224:N249)","v":0},null,{"$f":"SUM(P224:P249)","v":0},null,{"$f":"SUM(R224:R249)","v":0},null,{"$f":"SUM(T224:T249)","v":0},null,{"$f":"SUM(V224:V249)","v":0},null,{"$f":"SUM(X224:X249)","v":0},null,{"$f":"SUM(Z224:Z249)","v":0},null,{"$f":"SUM(AB224:AB249)","v":0},null,{"$f":"SUM(AD224:AD249)","v":0},null,{"$f":"SUM(AF224:AF249)","v":0},null,{"$f":"SUM(AH224:AH249)","v":0},null,{"$f":"SUM(AJ224:AJ249)","v":0},null,{"$f":"SUM(AL224:AL249)","v":0},null,{"$f":"SUM(AN224:AN249)","v":0},null,{"$f":"SUM(AP224:AP249)","v":0},null,{"$f":"SUM(AR224:AR249)","v":0},null,{"$f":"SUM(AT224:AT249)","v":0},null,{"$f":"SUM(AV224:AV249)","v":0},null,{"$f":"SUM(AX224:AX249)","v":0},null,{"$f":"SUM(AZ224:AZ249)","v":0},null,{"$f":"SUM(BB224:BB249)","v":0},{"$f":"SUM(E250:BB250)","v":0}]
["TOTAL WORKDAYS",null,null,null,null,{"$f":"F250/8","v":0},null,{"$f":"H250/8","v":0},null,{"$f":"J250/8","v":0},null,{"$f":"L250/8","v":0},null,{"$f":"N250/8","v":0},null,{"$f":"P250/8","v":0},null,{"$f":"R250/8","v":0},null,{"$f":"T250/8","v":0},null,{"$f":"V250/8","v":0},null,{"$f":"X250/8","v":0},null,{"$f":"Z250/8","v":0},null,{"$f":"AB250/8","v":0},null,{"$f":"AD250/8","v":0},null,0,null,{"$f":"AH250/8","v":0},null,0,null,{"$f":"AL250/8","v":0},null,0,null,{"$f":"AP250/8","v":0},null,0,null,{"$f":"AT250/8","v":0},null,{"$f":"AV250/8","v":0},null,{"$f":"AX250/8","v":0},null,{"$f":"AZ250/8","v":0},null,{"$f":"BB250/8","v":0},{"$f":"SUM(E251:BB251)","v":0}]
["TOTAL RAW LABOR",null,null,null,null,{"$f":"$E$13*F250","v":0},null,{"$f":"$G$13*H250","v":0},null,{"$f":"$I$13*J250","v":0},null,{"$f":"$K$13*L250","v":0},null,{"$f":"$M$13*N250","v":0},null,{"$f":"$O$13*P250","v":0},null,{"$f":"$Q$13*R250","v":0},null,{"$f":"$S$13*T250","v":0},null,{"$f":"$U$13*V250","v":0},null,{"$f":"$W$13*X250","v":0},null,{"$f":"$Y$13*Z250","v":0},null,{"$f":"$AA$13*AB250","v":0},null,{"$f":"$AC$13*AD250","v":0},null,{"$f":"$AC$13*AF250","v":0},null,{"$f":"$AC$13*AH250","v":0},null,{"$f":"$AC$13*AJ250","v":0},null,{"$f":"$AC$13*AL250","v":0},null,{"$f":"$AC$13*AN250","v":0},null,{"$f":"$AC$13*AP250","v":0},null,{"$f":"$AC$13*AR250","v":0},null,{"$f":"$AC$13*AT250","v":0},null,{"$f":"$AC$13*AV250","v":0},null,{"$f":"$AC$13*AX250","v":0},null,{"$f":"$AC$13*AZ250","v":0},null,{"$f":"$AC$13*BB250","v":0},{"$f":"SUM(E252:BB252)","v":0}]
["Task 11.0     ","SIGNAL SYSTEM CONSTRUCTION PLANS"]
[11.1,"Preliminary Plans"]
["    11.1.1","    Title Sheet",null,null,{"$f":"IF($C$255=\"\",\"\",F255/$C$255)","v":""},null,{"$f":"IF($C$255=\"\",\"\",H255/$C$255)","v":""},null,{"$f":"IF($C$255=\"\",\"\",J255/$C$255)","v":""},null,{"$f":"IF($C$255=\"\",\"\",L255/$C$255)","v":""},null,{"$f":"IF($C$255=\"\",\"\",N255/$C$255)","v":""},null,{"$f":"IF($C$255=\"\",\"\",P255/$C$255)","v":""},null,{"$f":"IF($C$255=\"\",\"\",R255/$C$255)","v":""},null,{"$f":"IF($C$255=\"\",\"\",T255/$C$255)","v":""},null,{"$f":"IF($C$255=\"\",\"\",V255/$C$255)","v":""},null,{"$f":"IF($C$255=\"\",\"\",X255/$C$255)","v":""},null,{"$f":"IF($C$255=\"\",\"\",Z255/$C$255)","v":""},null,{"$f":"IF($C$255=\"\",\"\",AB255/$C$255)","v":""},null,{"$f":"IF($C$255=\"\",\"\",AD255/$C$255)","v":""},null,{"$f":"IF($C$255=\"\",\"\",AF255/$C$255)","v":""},null,{"$f":"IF($C$255=\"\",\"\",AH255/$C$255)","v":""},null,{"$f":"IF($C$255=\"\",\"\",AJ255/$C$255)","v":""},null,{"$f":"IF($C$255=\"\",\"\",AL255/$C$255)","v":""},null,{"$f":"IF($C$255=\"\",\"\",AN255/$C$255)","v":""},null,{"$f":"IF($C$255=\"\",\"\",AP255/$C$255)","v":""},null,{"$f":"IF($C$255=\"\",\"\",AR255/$C$255)","v":""},null,{"$f":"IF($C$255=\"\",\"\",AT255/$C$255)","v":""},null,{"$f":"IF($C$255=\"\",\"\",AV255/$C$255)","v":""},null,{"$f":"IF($C$255=\"\",\"\",AX255/$C$255)","v":""},null,{"$f":"IF($C$255=\"\",\"\",AZ255/$C$255)","v":""},null,{"$f":"IF($C$255=\"\",\"\",BB255/$C$255)","v":""},null,{"$f":"SUM(BB255,AZ255,AX255,AV255,AT255,AR255,AP255,AN255,AL255,AJ255,AH255,AF255,AD255,AB255,Z255,X255,V255,T255,R255,P255,N255,L255,J255,H255,F255)","v":0}]
["    11.1.2","    Legend and General Notes",null,null,{"$f":"IF($C$256=\"\",\"\",F256/$C$256)","v":""},null,{"$f":"IF($C$256=\"\",\"\",H256/$C$256)","v":""},null,{"$f":"IF($C$256=\"\",\"\",J256/$C$256)","v":""},null,{"$f":"IF($C$256=\"\",\"\",L256/$C$256)","v":""},null,{"$f":"IF($C$256=\"\",\"\",N256/$C$256)","v":""},null,{"$f":"IF($C$256=\"\",\"\",P256/$C$256)","v":""},null,{"$f":"IF($C$256=\"\",\"\",R256/$C$256)","v":""},null,{"$f":"IF($C$256=\"\",\"\",T256/$C$256)","v":""},null,{"$f":"IF($C$256=\"\",\"\",V256/$C$256)","v":""},null,{"$f":"IF($C$256=\"\",\"\",X256/$C$256)","v":""},null,{"$f":"IF($C$256=\"\",\"\",Z256/$C$256)","v":""},null,{"$f":"IF($C$256=\"\",\"\",AB256/$C$256)","v":""},null,{"$f":"IF($C$256=\"\",\"\",AD256/$C$256)","v":""},null,{"$f":"IF($C$256=\"\",\"\",AF256/$C$256)","v":""},null,{"$f":"IF($C$256=\"\",\"\",AH256/$C$256)","v":""},null,{"$f":"IF($C$256=\"\",\"\",AJ256/$C$256)","v":""},null,{"$f":"IF($C$256=\"\",\"\",AL256/$C$256)","v":""},null,{"$f":"IF($C$256=\"\",\"\",AN256/$C$256)","v":""},null,{"$f":"IF($C$256=\"\",\"\",AP256/$C$256)","v":""},null,{"$f":"IF($C$256=\"\",\"\",AR256/$C$256)","v":""},null,{"$f":"IF($C$256=\"\",\"\",AT256/$C$256)","v":""},null,{"$f":"IF($C$256=\"\",\"\",AV256/$C$256)","v":""},null,{"$f":"IF($C$256=\"\",\"\",AX256/$C$256)","v":""},null,{"$f":"IF($C$256=\"\",\"\",AZ256/$C$256)","v":""},null,{"$f":"IF($C$256=\"\",\"\",BB256/$C$256)","v":""},null,0]
["    11.1.3","    Temporary Traffic Control Plans",null,null,{"$f":"IF($C$257=\"\",\"\",F257/$C$257)","v":""},null,{"$f":"IF($C$257=\"\",\"\",H257/$C$257)","v":""},null,{"$f":"IF($C$257=\"\",\"\",J257/$C$257)","v":""},null,{"$f":"IF($C$257=\"\",\"\",L257/$C$257)","v":""},null,{"$f":"IF($C$257=\"\",\"\",N257/$C$257)","v":""},null,{"$f":"IF($C$257=\"\",\"\",P257/$C$257)","v":""},null,{"$f":"IF($C$257=\"\",\"\",R257/$C$257)","v":""},null,{"$f":"IF($C$257=\"\",\"\",T257/$C$257)","v":""},null,{"$f":"IF($C$257=\"\",\"\",V257/$C$257)","v":""},null,{"$f":"IF($C$257=\"\",\"\",X257/$C$257)","v":""},null,{"$f":"IF($C$257=\"\",\"\",Z257/$C$257)","v":""},null,{"$f":"IF($C$257=\"\",\"\",AB257/$C$257)","v":""},null,{"$f":"IF($C$257=\"\",\"\",AD257/$C$257)","v":""},null,{"$f":"IF($C$257=\"\",\"\",AF257/$C$257)","v":""},null,{"$f":"IF($C$257=\"\",\"\",AH257/$C$257)","v":""},null,{"$f":"IF($C$257=\"\",\"\",AJ257/$C$257)","v":""},null,{"$f":"IF($C$257=\"\",\"\",AL257/$C$257)","v":""},null,{"$f":"IF($C$257=\"\",\"\",AN257/$C$257)","v":""},null,{"$f":"IF($C$257=\"\",\"\",AP257/$C$257)","v":""},null,{"$f":"IF($C$257=\"\",\"\",AR257/$C$257)","v":""},null,{"$f":"IF($C$257=\"\",\"\",AT257/$C$257)","v":""},null,{"$f":"IF($C$257=\"\",\"\",AV257/$C$257)","v":""},null,{"$f":"IF($C$257=\"\",\"\",AX257/$C$257)","v":""},null,{"$f":"IF($C$257=\"\",\"\",AZ257/$C$257)","v":""},null,{"$f":"IF($C$257=\"\",\"\",BB257/$C$257)","v":""},null,0]
["    11.1.4","    Summary of Quantities",null,null,{"$f":"IF($C$258=\"\",\"\",F258/$C$258)","v":""},null,{"$f":"IF($C$258=\"\",\"\",H258/$C$258)","v":""},null,{"$f":"IF($C$258=\"\",\"\",J258/$C$258)","v":""},null,{"$f":"IF($C$258=\"\",\"\",L258/$C$258)","v":""},null,{"$f":"IF($C$258=\"\",\"\",N258/$C$258)","v":""},null,{"$f":"IF($C$258=\"\",\"\",P258/$C$258)","v":""},null,{"$f":"IF($C$258=\"\",\"\",R258/$C$258)","v":""},null,{"$f":"IF($C$258=\"\",\"\",T258/$C$258)","v":""},null,{"$f":"IF($C$258=\"\",\"\",V258/$C$258)","v":""},null,{"$f":"IF($C$258=\"\",\"\",X258/$C$258)","v":""},null,{"$f":"IF($C$258=\"\",\"\",Z258/$C$258)","v":""},null,{"$f":"IF($C$258=\"\",\"\",AB258/$C$258)","v":""},null,{"$f":"IF($C$258=\"\",\"\",AD258/$C$258)","v":""},null,{"$f":"IF($C$258=\"\",\"\",AF258/$C$258)","v":""},null,{"$f":"IF($C$258=\"\",\"\",AH258/$C$258)","v":""},null,{"$f":"IF($C$258=\"\",\"\",AJ258/$C$258)","v":""},null,{"$f":"IF($C$258=\"\",\"\",AL258/$C$258)","v":""},null,{"$f":"IF($C$258=\"\",\"\",AN258/$C$258)","v":""},null,{"$f":"IF($C$258=\"\",\"\",AP258/$C$258)","v":""},null,{"$f":"IF($C$258=\"\",\"\",AR258/$C$258)","v":""},null,{"$f":"IF($C$258=\"\",\"\",AT258/$C$258)","v":""},null,{"$f":"IF($C$258=\"\",\"\",AV258/$C$258)","v":""},null,{"$f":"IF($C$258=\"\",\"\",AX258/$C$258)","v":""},null,{"$f":"IF($C$258=\"\",\"\",AZ258/$C$258)","v":""},null,{"$f":"IF($C$258=\"\",\"\",BB258/$C$258)","v":""},null,0]
["    11.1.5","    Summary of Work by CableRouting Sheet",null,null,{"$f":"IF($C$259=\"\",\"\",F259/$C$259)","v":""},null,{"$f":"IF($C$259=\"\",\"\",H259/$C$259)","v":""},null,{"$f":"IF($C$259=\"\",\"\",J259/$C$259)","v":""},null,{"$f":"IF($C$259=\"\",\"\",L259/$C$259)","v":""},null,{"$f":"IF($C$259=\"\",\"\",N259/$C$259)","v":""},null,{"$f":"IF($C$259=\"\",\"\",P259/$C$259)","v":""},null,{"$f":"IF($C$259=\"\",\"\",R259/$C$259)","v":""},null,{"$f":"IF($C$259=\"\",\"\",T259/$C$259)","v":""},null,{"$f":"IF($C$259=\"\",\"\",V259/$C$259)","v":""},null,{"$f":"IF($C$259=\"\",\"\",X259/$C$259)","v":""},null,{"$f":"IF($C$259=\"\",\"\",Z259/$C$259)","v":""},null,{"$f":"IF($C$259=\"\",\"\",AB259/$C$259)","v":""},null,{"$f":"IF($C$259=\"\",\"\",AD259/$C$259)","v":""},null,{"$f":"IF($C$259=\"\",\"\",AF259/$C$259)","v":""},null,{"$f":"IF($C$259=\"\",\"\",AH259/$C$259)","v":""},null,{"$f":"IF($C$259=\"\",\"\",AJ259/$C$259)","v":""},null,{"$f":"IF($C$259=\"\",\"\",AL259/$C$259)","v":""},null,{"$f":"IF($C$259=\"\",\"\",AN259/$C$259)","v":""},null,{"$f":"IF($C$259=\"\",\"\",AP259/$C$259)","v":""},null,{"$f":"IF($C$259=\"\",\"\",AR259/$C$259)","v":""},null,{"$f":"IF($C$259=\"\",\"\",AT259/$C$259)","v":""},null,{"$f":"IF($C$259=\"\",\"\",AV259/$C$259)","v":""},null,{"$f":"IF($C$259=\"\",\"\",AX259/$C$259)","v":""},null,{"$f":"IF($C$259=\"\",\"\",AZ259/$C$259)","v":""},null,{"$f":"IF($C$259=\"\",\"\",BB259/$C$259)","v":""},null,0]
["    11.1.6","    Communications Cable Schematic",null,null,{"$f":"IF($C$260=\"\",\"\",F260/$C$260)","v":""},null,{"$f":"IF($C$260=\"\",\"\",H260/$C$260)","v":""},null,{"$f":"IF($C$260=\"\",\"\",J260/$C$260)","v":""},null,{"$f":"IF($C$260=\"\",\"\",L260/$C$260)","v":""},null,{"$f":"IF($C$260=\"\",\"\",N260/$C$260)","v":""},null,{"$f":"IF($C$260=\"\",\"\",P260/$C$260)","v":""},null,{"$f":"IF($C$260=\"\",\"\",R260/$C$260)","v":""},null,{"$f":"IF($C$260=\"\",\"\",T260/$C$260)","v":""},null,{"$f":"IF($C$260=\"\",\"\",V260/$C$260)","v":""},null,{"$f":"IF($C$260=\"\",\"\",X260/$C$260)","v":""},null,{"$f":"IF($C$260=\"\",\"\",Z260/$C$260)","v":""},null,{"$f":"IF($C$260=\"\",\"\",AB260/$C$260)","v":""},null,{"$f":"IF($C$260=\"\",\"\",AD260/$C$260)","v":""},null,{"$f":"IF($C$260=\"\",\"\",AF260/$C$260)","v":""},null,{"$f":"IF($C$260=\"\",\"\",AH260/$C$260)","v":""},null,{"$f":"IF($C$260=\"\",\"\",AJ260/$C$260)","v":""},null,{"$f":"IF($C$260=\"\",\"\",AL260/$C$260)","v":""},null,{"$f":"IF($C$260=\"\",\"\",AN260/$C$260)","v":""},null,{"$f":"IF($C$260=\"\",\"\",AP260/$C$260)","v":""},null,{"$f":"IF($C$260=\"\",\"\",AR260/$C$260)","v":""},null,{"$f":"IF($C$260=\"\",\"\",AT260/$C$260)","v":""},null,{"$f":"IF($C$260=\"\",\"\",AV260/$C$260)","v":""},null,{"$f":"IF($C$260=\"\",\"\",AX260/$C$260)","v":""},null,{"$f":"IF($C$260=\"\",\"\",AZ260/$C$260)","v":""},null,{"$f":"IF($C$260=\"\",\"\",BB260/$C$260)","v":""},null,0]
["    11.1.7","    Communications Ring Schematics",null,null,{"$f":"IF($C$261=\"\",\"\",F261/$C$261)","v":""},null,{"$f":"IF($C$261=\"\",\"\",H261/$C$261)","v":""},null,{"$f":"IF($C$261=\"\",\"\",J261/$C$261)","v":""},null,{"$f":"IF($C$261=\"\",\"\",L261/$C$261)","v":""},null,{"$f":"IF($C$261=\"\",\"\",N261/$C$261)","v":""},null,{"$f":"IF($C$261=\"\",\"\",P261/$C$261)","v":""},null,{"$f":"IF($C$261=\"\",\"\",R261/$C$261)","v":""},null,{"$f":"IF($C$261=\"\",\"\",T261/$C$261)","v":""},null,{"$f":"IF($C$261=\"\",\"\",V261/$C$261)","v":""},null,{"$f":"IF($C$261=\"\",\"\",X261/$C$261)","v":""},null,{"$f":"IF($C$261=\"\",\"\",Z261/$C$261)","v":""},null,{"$f":"IF($C$261=\"\",\"\",AB261/$C$261)","v":""},null,{"$f":"IF($C$261=\"\",\"\",AD261/$C$261)","v":""},null,{"$f":"IF($C$261=\"\",\"\",AF261/$C$261)","v":""},null,{"$f":"IF($C$261=\"\",\"\",AH261/$C$261)","v":""},null,{"$f":"IF($C$261=\"\",\"\",AJ261/$C$261)","v":""},null,{"$f":"IF($C$261=\"\",\"\",AL261/$C$261)","v":""},null,{"$f":"IF($C$261=\"\",\"\",AN261/$C$261)","v":""},null,{"$f":"IF($C$261=\"\",\"\",AP261/$C$261)","v":""},null,{"$f":"IF($C$261=\"\",\"\",AR261/$C$261)","v":""},null,{"$f":"IF($C$261=\"\",\"\",AT261/$C$261)","v":""},null,{"$f":"IF($C$261=\"\",\"\",AV261/$C$261)","v":""},null,{"$f":"IF($C$261=\"\",\"\",AX261/$C$261)","v":""},null,{"$f":"IF($C$261=\"\",\"\",AZ261/$C$261)","v":""},null,{"$f":"IF($C$261=\"\",\"\",BB261/$C$261)","v":""},null,0]
["    11.1.8","    Summary of Fiber Optic Cables",null,null,{"$f":"IF($C$262=\"\",\"\",F262/$C$262)","v":""},null,{"$f":"IF($C$262=\"\",\"\",H262/$C$262)","v":""},null,{"$f":"IF($C$262=\"\",\"\",J262/$C$262)","v":""},null,{"$f":"IF($C$262=\"\",\"\",L262/$C$262)","v":""},null,{"$f":"IF($C$262=\"\",\"\",N262/$C$262)","v":""},null,{"$f":"IF($C$262=\"\",\"\",P262/$C$262)","v":""},null,{"$f":"IF($C$262=\"\",\"\",R262/$C$262)","v":""},null,{"$f":"IF($C$262=\"\",\"\",T262/$C$262)","v":""},null,{"$f":"IF($C$262=\"\",\"\",V262/$C$262)","v":""},null,{"$f":"IF($C$262=\"\",\"\",X262/$C$262)","v":""},null,{"$f":"IF($C$262=\"\",\"\",Z262/$C$262)","v":""},null,{"$f":"IF($C$262=\"\",\"\",AB262/$C$262)","v":""},null,{"$f":"IF($C$262=\"\",\"\",AD262/$C$262)","v":""},null,{"$f":"IF($C$262=\"\",\"\",AF262/$C$262)","v":""},null,{"$f":"IF($C$262=\"\",\"\",AH262/$C$262)","v":""},null,{"$f":"IF($C$262=\"\",\"\",AJ262/$C$262)","v":""},null,{"$f":"IF($C$262=\"\",\"\",AL262/$C$262)","v":""},null,{"$f":"IF($C$262=\"\",\"\",AN262/$C$262)","v":""},null,{"$f":"IF($C$262=\"\",\"\",AP262/$C$262)","v":""},null,{"$f":"IF($C$262=\"\",\"\",AR262/$C$262)","v":""},null,{"$f":"IF($C$262=\"\",\"\",AT262/$C$262)","v":""},null,{"$f":"IF($C$262=\"\",\"\",AV262/$C$262)","v":""},null,{"$f":"IF($C$262=\"\",\"\",AX262/$C$262)","v":""},null,{"$f":"IF($C$262=\"\",\"\",AZ262/$C$262)","v":""},null,{"$f":"IF($C$262=\"\",\"\",BB262/$C$262)","v":""},null,0]
["    11.1.9","    System Detector Schematic",null,null,{"$f":"IF($C$263=\"\",\"\",F263/$C$263)","v":""},null,{"$f":"IF($C$263=\"\",\"\",H263/$C$263)","v":""},null,{"$f":"IF($C$263=\"\",\"\",J263/$C$263)","v":""},null,{"$f":"IF($C$263=\"\",\"\",L263/$C$263)","v":""},null,{"$f":"IF($C$263=\"\",\"\",N263/$C$263)","v":""},null,{"$f":"IF($C$263=\"\",\"\",P263/$C$263)","v":""},null,{"$f":"IF($C$263=\"\",\"\",R263/$C$263)","v":""},null,{"$f":"IF($C$263=\"\",\"\",T263/$C$263)","v":""},null,{"$f":"IF($C$263=\"\",\"\",V263/$C$263)","v":""},null,{"$f":"IF($C$263=\"\",\"\",X263/$C$263)","v":""},null,{"$f":"IF($C$263=\"\",\"\",Z263/$C$263)","v":""},null,{"$f":"IF($C$263=\"\",\"\",AB263/$C$263)","v":""},null,{"$f":"IF($C$263=\"\",\"\",AD263/$C$263)","v":""},null,{"$f":"IF($C$263=\"\",\"\",AF263/$C$263)","v":""},null,{"$f":"IF($C$263=\"\",\"\",AH263/$C$263)","v":""},null,{"$f":"IF($C$263=\"\",\"\",AJ263/$C$263)","v":""},null,{"$f":"IF($C$263=\"\",\"\",AL263/$C$263)","v":""},null,{"$f":"IF($C$263=\"\",\"\",AN263/$C$263)","v":""},null,{"$f":"IF($C$263=\"\",\"\",AP263/$C$263)","v":""},null,{"$f":"IF($C$263=\"\",\"\",AR263/$C$263)","v":""},null,{"$f":"IF($C$263=\"\",\"\",AT263/$C$263)","v":""},null,{"$f":"IF($C$263=\"\",\"\",AV263/$C$263)","v":""},null,{"$f":"IF($C$263=\"\",\"\",AX263/$C$263)","v":""},null,{"$f":"IF($C$263=\"\",\"\",AZ263/$C$263)","v":""},null,{"$f":"IF($C$263=\"\",\"\",BB263/$C$263)","v":""},null,0]
["    11.1.10","    TMC Block Diagram",null,null,{"$f":"IF($C$264=\"\",\"\",F264/$C$264)","v":""},null,{"$f":"IF($C$264=\"\",\"\",H264/$C$264)","v":""},null,{"$f":"IF($C$264=\"\",\"\",J264/$C$264)","v":""},null,{"$f":"IF($C$264=\"\",\"\",L264/$C$264)","v":""},null,{"$f":"IF($C$264=\"\",\"\",N264/$C$264)","v":""},null,{"$f":"IF($C$264=\"\",\"\",P264/$C$264)","v":""},null,{"$f":"IF($C$264=\"\",\"\",R264/$C$264)","v":""},null,{"$f":"IF($C$264=\"\",\"\",T264/$C$264)","v":""},null,{"$f":"IF($C$264=\"\",\"\",V264/$C$264)","v":""},null,{"$f":"IF($C$264=\"\",\"\",X264/$C$264)","v":""},null,{"$f":"IF($C$264=\"\",\"\",Z264/$C$264)","v":""},null,{"$f":"IF($C$264=\"\",\"\",AB264/$C$264)","v":""},null,{"$f":"IF($C$264=\"\",\"\",AD264/$C$264)","v":""},null,{"$f":"IF($C$264=\"\",\"\",AF264/$C$264)","v":""},null,{"$f":"IF($C$264=\"\",\"\",AH264/$C$264)","v":""},null,{"$f":"IF($C$264=\"\",\"\",AJ264/$C$264)","v":""},null,{"$f":"IF($C$264=\"\",\"\",AL264/$C$264)","v":""},null,{"$f":"IF($C$264=\"\",\"\",AN264/$C$264)","v":""},null,{"$f":"IF($C$264=\"\",\"\",AP264/$C$264)","v":""},null,{"$f":"IF($C$264=\"\",\"\",AR264/$C$264)","v":""},null,{"$f":"IF($C$264=\"\",\"\",AT264/$C$264)","v":""},null,{"$f":"IF($C$264=\"\",\"\",AV264/$C$264)","v":""},null,{"$f":"IF($C$264=\"\",\"\",AX264/$C$264)","v":""},null,{"$f":"IF($C$264=\"\",\"\",AZ264/$C$264)","v":""},null,{"$f":"IF($C$264=\"\",\"\",BB264/$C$264)","v":""},null,0]
["    11.1.11","    System-Wide Block Diagrams",null,null,{"$f":"IF($C$265=\"\",\"\",F265/$C$265)","v":""},null,{"$f":"IF($C$265=\"\",\"\",H265/$C$265)","v":""},null,{"$f":"IF($C$265=\"\",\"\",J265/$C$265)","v":""},null,{"$f":"IF($C$265=\"\",\"\",L265/$C$265)","v":""},null,{"$f":"IF($C$265=\"\",\"\",N265/$C$265)","v":""},null,{"$f":"IF($C$265=\"\",\"\",P265/$C$265)","v":""},null,{"$f":"IF($C$265=\"\",\"\",R265/$C$265)","v":""},null,{"$f":"IF($C$265=\"\",\"\",T265/$C$265)","v":""},null,{"$f":"IF($C$265=\"\",\"\",V265/$C$265)","v":""},null,{"$f":"IF($C$265=\"\",\"\",X265/$C$265)","v":""},null,{"$f":"IF($C$265=\"\",\"\",Z265/$C$265)","v":""},null,{"$f":"IF($C$265=\"\",\"\",AB265/$C$265)","v":""},null,{"$f":"IF($C$265=\"\",\"\",AD265/$C$265)","v":""},null,{"$f":"IF($C$265=\"\",\"\",AF265/$C$265)","v":""},null,{"$f":"IF($C$265=\"\",\"\",AH265/$C$265)","v":""},null,{"$f":"IF($C$265=\"\",\"\",AJ265/$C$265)","v":""},null,{"$f":"IF($C$265=\"\",\"\",AL265/$C$265)","v":""},null,{"$f":"IF($C$265=\"\",\"\",AN265/$C$265)","v":""},null,{"$f":"IF($C$265=\"\",\"\",AP265/$C$265)","v":""},null,{"$f":"IF($C$265=\"\",\"\",AR265/$C$265)","v":""},null,{"$f":"IF($C$265=\"\",\"\",AT265/$C$265)","v":""},null,{"$f":"IF($C$265=\"\",\"\",AV265/$C$265)","v":""},null,{"$f":"IF($C$265=\"\",\"\",AX265/$C$265)","v":""},null,{"$f":"IF($C$265=\"\",\"\",AZ265/$C$265)","v":""},null,{"$f":"IF($C$265=\"\",\"\",BB265/$C$265)","v":""},null,0]
["    11.1.12","    Sheet Layout Key for UMR/Cable Routing \n    Sheets",null,null,{"$f":"IF($C$266=\"\",\"\",F266/$C$266)","v":""},null,{"$f":"IF($C$266=\"\",\"\",H266/$C$266)","v":""},null,{"$f":"IF($C$266=\"\",\"\",J266/$C$266)","v":""},null,{"$f":"IF($C$266=\"\",\"\",L266/$C$266)","v":""},null,{"$f":"IF($C$266=\"\",\"\",N266/$C$266)","v":""},null,{"$f":"IF($C$266=\"\",\"\",P266/$C$266)","v":""},null,{"$f":"IF($C$266=\"\",\"\",R266/$C$266)","v":""},null,{"$f":"IF($C$266=\"\",\"\",T266/$C$266)","v":""},null,{"$f":"IF($C$266=\"\",\"\",V266/$C$266)","v":""},null,{"$f":"IF($C$266=\"\",\"\",X266/$C$266)","v":""},null,{"$f":"IF($C$266=\"\",\"\",Z266/$C$266)","v":""},null,{"$f":"IF($C$266=\"\",\"\",AB266/$C$266)","v":""},null,{"$f":"IF($C$266=\"\",\"\",AD266/$C$266)","v":""},null,{"$f":"IF($C$266=\"\",\"\",AF266/$C$266)","v":""},null,{"$f":"IF($C$266=\"\",\"\",AH266/$C$266)","v":""},null,{"$f":"IF($C$266=\"\",\"\",AJ266/$C$266)","v":""},null,{"$f":"IF($C$266=\"\",\"\",AL266/$C$266)","v":""},null,{"$f":"IF($C$266=\"\",\"\",AN266/$C$266)","v":""},null,{"$f":"IF($C$266=\"\",\"\",AP266/$C$266)","v":""},null,{"$f":"IF($C$266=\"\",\"\",AR266/$C$266)","v":""},null,{"$f":"IF($C$266=\"\",\"\",AT266/$C$266)","v":""},null,{"$f":"IF($C$266=\"\",\"\",AV266/$C$266)","v":""},null,{"$f":"IF($C$266=\"\",\"\",AX266/$C$266)","v":""},null,{"$f":"IF($C$266=\"\",\"\",AZ266/$C$266)","v":""},null,{"$f":"IF($C$266=\"\",\"\",BB266/$C$266)","v":""},null,0]
["    11.1.13","    Construction Notes",null,null,{"$f":"IF($C$267=\"\",\"\",F267/$C$267)","v":""},null,{"$f":"IF($C$267=\"\",\"\",H267/$C$267)","v":""},null,{"$f":"IF($C$267=\"\",\"\",J267/$C$267)","v":""},null,{"$f":"IF($C$267=\"\",\"\",L267/$C$267)","v":""},null,{"$f":"IF($C$267=\"\",\"\",N267/$C$267)","v":""},null,{"$f":"IF($C$267=\"\",\"\",P267/$C$267)","v":""},null,{"$f":"IF($C$267=\"\",\"\",R267/$C$267)","v":""},null,{"$f":"IF($C$267=\"\",\"\",T267/$C$267)","v":""},null,{"$f":"IF($C$267=\"\",\"\",V267/$C$267)","v":""},null,{"$f":"IF($C$267=\"\",\"\",X267/$C$267)","v":""},null,{"$f":"IF($C$267=\"\",\"\",Z267/$C$267)","v":""},null,{"$f":"IF($C$267=\"\",\"\",AB267/$C$267)","v":""},null,{"$f":"IF($C$267=\"\",\"\",AD267/$C$267)","v":""},null,{"$f":"IF($C$267=\"\",\"\",AF267/$C$267)","v":""},null,{"$f":"IF($C$267=\"\",\"\",AH267/$C$267)","v":""},null,{"$f":"IF($C$267=\"\",\"\",AJ267/$C$267)","v":""},null,{"$f":"IF($C$267=\"\",\"\",AL267/$C$267)","v":""},null,{"$f":"IF($C$267=\"\",\"\",AN267/$C$267)","v":""},null,{"$f":"IF($C$267=\"\",\"\",AP267/$C$267)","v":""},null,{"$f":"IF($C$267=\"\",\"\",AR267/$C$267)","v":""},null,{"$f":"IF($C$267=\"\",\"\",AT267/$C$267)","v":""},null,{"$f":"IF($C$267=\"\",\"\",AV267/$C$267)","v":""},null,{"$f":"IF($C$267=\"\",\"\",AX267/$C$267)","v":""},null,{"$f":"IF($C$267=\"\",\"\",AZ267/$C$267)","v":""},null,{"$f":"IF($C$267=\"\",\"\",BB267/$C$267)","v":""},null,0]
["    11.1.14","    Communications Cable Routing Sheets",null,null,{"$f":"IF($C$268=\"\",\"\",F268/$C$268)","v":""},null,{"$f":"IF($C$268=\"\",\"\",H268/$C$268)","v":""},null,{"$f":"IF($C$268=\"\",\"\",J268/$C$268)","v":""},null,{"$f":"IF($C$268=\"\",\"\",L268/$C$268)","v":""},null,{"$f":"IF($C$268=\"\",\"\",N268/$C$268)","v":""},null,{"$f":"IF($C$268=\"\",\"\",P268/$C$268)","v":""},null,{"$f":"IF($C$268=\"\",\"\",R268/$C$268)","v":""},null,{"$f":"IF($C$268=\"\",\"\",T268/$C$268)","v":""},null,{"$f":"IF($C$268=\"\",\"\",V268/$C$268)","v":""},null,{"$f":"IF($C$268=\"\",\"\",X268/$C$268)","v":""},null,{"$f":"IF($C$268=\"\",\"\",Z268/$C$268)","v":""},null,{"$f":"IF($C$268=\"\",\"\",AB268/$C$268)","v":""},null,{"$f":"IF($C$268=\"\",\"\",AD268/$C$268)","v":""},null,{"$f":"IF($C$268=\"\",\"\",AF268/$C$268)","v":""},null,{"$f":"IF($C$268=\"\",\"\",AH268/$C$268)","v":""},null,{"$f":"IF($C$268=\"\",\"\",AJ268/$C$268)","v":""},null,{"$f":"IF($C$268=\"\",\"\",AL268/$C$268)","v":""},null,{"$f":"IF($C$268=\"\",\"\",AN268/$C$268)","v":""},null,{"$f":"IF($C$268=\"\",\"\",AP268/$C$268)","v":""},null,{"$f":"IF($C$268=\"\",\"\",AR268/$C$268)","v":""},null,{"$f":"IF($C$268=\"\",\"\",AT268/$C$268)","v":""},null,{"$f":"IF($C$268=\"\",\"\",AV268/$C$268)","v":""},null,{"$f":"IF($C$268=\"\",\"\",AX268/$C$268)","v":""},null,{"$f":"IF($C$268=\"\",\"\",AZ268/$C$268)","v":""},null,{"$f":"IF($C$268=\"\",\"\",BB268/$C$268)","v":""},null,0]
["    11.1.15","    Typical Details",null,null,{"$f":"IF($C$269=\"\",\"\",F269/$C$269)","v":""},null,{"$f":"IF($C$269=\"\",\"\",H269/$C$269)","v":""},null,{"$f":"IF($C$269=\"\",\"\",J269/$C$269)","v":""},null,{"$f":"IF($C$269=\"\",\"\",L269/$C$269)","v":""},null,{"$f":"IF($C$269=\"\",\"\",N269/$C$269)","v":""},null,{"$f":"IF($C$269=\"\",\"\",P269/$C$269)","v":""},null,{"$f":"IF($C$269=\"\",\"\",R269/$C$269)","v":""},null,{"$f":"IF($C$269=\"\",\"\",T269/$C$269)","v":""},null,{"$f":"IF($C$269=\"\",\"\",V269/$C$269)","v":""},null,{"$f":"IF($C$269=\"\",\"\",X269/$C$269)","v":""},null,{"$f":"IF($C$269=\"\",\"\",Z269/$C$269)","v":""},null,{"$f":"IF($C$269=\"\",\"\",AB269/$C$269)","v":""},null,{"$f":"IF($C$269=\"\",\"\",AD269/$C$269)","v":""},null,{"$f":"IF($C$269=\"\",\"\",AF269/$C$269)","v":""},null,{"$f":"IF($C$269=\"\",\"\",AH269/$C$269)","v":""},null,{"$f":"IF($C$269=\"\",\"\",AJ269/$C$269)","v":""},null,{"$f":"IF($C$269=\"\",\"\",AL269/$C$269)","v":""},null,{"$f":"IF($C$269=\"\",\"\",AN269/$C$269)","v":""},null,{"$f":"IF($C$269=\"\",\"\",AP269/$C$269)","v":""},null,{"$f":"IF($C$269=\"\",\"\",AR269/$C$269)","v":""},null,{"$f":"IF($C$269=\"\",\"\",AT269/$C$269)","v":""},null,{"$f":"IF($C$269=\"\",\"\",AV269/$C$269)","v":""},null,{"$f":"IF($C$269=\"\",\"\",AX269/$C$269)","v":""},null,{"$f":"IF($C$269=\"\",\"\",AZ269/$C$269)","v":""},null,{"$f":"IF($C$269=\"\",\"\",BB269/$C$269)","v":""},null,0]
["    11.1.16","    Summary of Work by CCTV Location",null,null,{"$f":"IF($C$270=\"\",\"\",F270/$C$270)","v":""},null,{"$f":"IF($C$270=\"\",\"\",H270/$C$270)","v":""},null,{"$f":"IF($C$270=\"\",\"\",J270/$C$270)","v":""},null,{"$f":"IF($C$270=\"\",\"\",L270/$C$270)","v":""},null,{"$f":"IF($C$270=\"\",\"\",N270/$C$270)","v":""},null,{"$f":"IF($C$270=\"\",\"\",P270/$C$270)","v":""},null,{"$f":"IF($C$270=\"\",\"\",R270/$C$270)","v":""},null,{"$f":"IF($C$270=\"\",\"\",T270/$C$270)","v":""},null,{"$f":"IF($C$270=\"\",\"\",V270/$C$270)","v":""},null,{"$f":"IF($C$270=\"\",\"\",X270/$C$270)","v":""},null,{"$f":"IF($C$270=\"\",\"\",Z270/$C$270)","v":""},null,{"$f":"IF($C$270=\"\",\"\",AB270/$C$270)","v":""},null,{"$f":"IF($C$270=\"\",\"\",AD270/$C$270)","v":""},null,{"$f":"IF($C$270=\"\",\"\",AF270/$C$270)","v":""},null,{"$f":"IF($C$270=\"\",\"\",AH270/$C$270)","v":""},null,{"$f":"IF($C$270=\"\",\"\",AJ270/$C$270)","v":""},null,{"$f":"IF($C$270=\"\",\"\",AL270/$C$270)","v":""},null,{"$f":"IF($C$270=\"\",\"\",AN270/$C$270)","v":""},null,{"$f":"IF($C$270=\"\",\"\",AP270/$C$270)","v":""},null,{"$f":"IF($C$270=\"\",\"\",AR270/$C$270)","v":""},null,{"$f":"IF($C$270=\"\",\"\",AT270/$C$270)","v":""},null,{"$f":"IF($C$270=\"\",\"\",AV270/$C$270)","v":""},null,{"$f":"IF($C$270=\"\",\"\",AX270/$C$270)","v":""},null,{"$f":"IF($C$270=\"\",\"\",AZ270/$C$270)","v":""},null,{"$f":"IF($C$270=\"\",\"\",BB270/$C$270)","v":""},null,0]
["    11.1.17","    CCTV Site Plans",null,null,{"$f":"IF($C$271=\"\",\"\",F271/$C$271)","v":""},null,{"$f":"IF($C$271=\"\",\"\",H271/$C$271)","v":""},null,{"$f":"IF($C$271=\"\",\"\",J271/$C$271)","v":""},null,{"$f":"IF($C$271=\"\",\"\",L271/$C$271)","v":""},null,{"$f":"IF($C$271=\"\",\"\",N271/$C$271)","v":""},null,{"$f":"IF($C$271=\"\",\"\",P271/$C$271)","v":""},null,{"$f":"IF($C$271=\"\",\"\",R271/$C$271)","v":""},null,{"$f":"IF($C$271=\"\",\"\",T271/$C$271)","v":""},null,{"$f":"IF($C$271=\"\",\"\",V271/$C$271)","v":""},null,{"$f":"IF($C$271=\"\",\"\",X271/$C$271)","v":""},null,{"$f":"IF($C$271=\"\",\"\",Z271/$C$271)","v":""},null,{"$f":"IF($C$271=\"\",\"\",AB271/$C$271)","v":""},null,{"$f":"IF($C$271=\"\",\"\",AD271/$C$271)","v":""},null,{"$f":"IF($C$271=\"\",\"\",AF271/$C$271)","v":""},null,{"$f":"IF($C$271=\"\",\"\",AH271/$C$271)","v":""},null,{"$f":"IF($C$271=\"\",\"\",AJ271/$C$271)","v":""},null,{"$f":"IF($C$271=\"\",\"\",AL271/$C$271)","v":""},null,{"$f":"IF($C$271=\"\",\"\",AN271/$C$271)","v":""},null,{"$f":"IF($C$271=\"\",\"\",AP271/$C$271)","v":""},null,{"$f":"IF($C$271=\"\",\"\",AR271/$C$271)","v":""},null,{"$f":"IF($C$271=\"\",\"\",AT271/$C$271)","v":""},null,{"$f":"IF($C$271=\"\",\"\",AV271/$C$271)","v":""},null,{"$f":"IF($C$271=\"\",\"\",AX271/$C$271)","v":""},null,{"$f":"IF($C$271=\"\",\"\",AZ271/$C$271)","v":""},null,{"$f":"IF($C$271=\"\",\"\",BB271/$C$271)","v":""},null,0]
["    11.1.18","    Wireless Design",null,null,{"$f":"IF($C$272=\"\",\"\",F272/$C$272)","v":""},null,{"$f":"IF($C$272=\"\",\"\",H272/$C$272)","v":""},null,{"$f":"IF($C$272=\"\",\"\",J272/$C$272)","v":""},null,{"$f":"IF($C$272=\"\",\"\",L272/$C$272)","v":""},null,{"$f":"IF($C$272=\"\",\"\",N272/$C$272)","v":""},null,{"$f":"IF($C$272=\"\",\"\",P272/$C$272)","v":""},null,{"$f":"IF($C$272=\"\",\"\",R272/$C$272)","v":""},null,{"$f":"IF($C$272=\"\",\"\",T272/$C$272)","v":""},null,{"$f":"IF($C$272=\"\",\"\",V272/$C$272)","v":""},null,{"$f":"IF($C$272=\"\",\"\",X272/$C$272)","v":""},null,{"$f":"IF($C$272=\"\",\"\",Z272/$C$272)","v":""},null,{"$f":"IF($C$272=\"\",\"\",AB272/$C$272)","v":""},null,{"$f":"IF($C$272=\"\",\"\",AD272/$C$272)","v":""},null,{"$f":"IF($C$272=\"\",\"\",AF272/$C$272)","v":""},null,{"$f":"IF($C$272=\"\",\"\",AH272/$C$272)","v":""},null,{"$f":"IF($C$272=\"\",\"\",AJ272/$C$272)","v":""},null,{"$f":"IF($C$272=\"\",\"\",AL272/$C$272)","v":""},null,{"$f":"IF($C$272=\"\",\"\",AN272/$C$272)","v":""},null,{"$f":"IF($C$272=\"\",\"\",AP272/$C$272)","v":""},null,{"$f":"IF($C$272=\"\",\"\",AR272/$C$272)","v":""},null,{"$f":"IF($C$272=\"\",\"\",AT272/$C$272)","v":""},null,{"$f":"IF($C$272=\"\",\"\",AV272/$C$272)","v":""},null,{"$f":"IF($C$272=\"\",\"\",AX272/$C$272)","v":""},null,{"$f":"IF($C$272=\"\",\"\",AZ272/$C$272)","v":""},null,{"$f":"IF($C$272=\"\",\"\",BB272/$C$272)","v":""},null,0]
["    11.1.19","    Municipal Remote Monitoring Station Details",null,null,{"$f":"IF($C$273=\"\",\"\",F273/$C$273)","v":""},null,{"$f":"IF($C$273=\"\",\"\",H273/$C$273)","v":""},null,{"$f":"IF($C$273=\"\",\"\",J273/$C$273)","v":""},null,{"$f":"IF($C$273=\"\",\"\",L273/$C$273)","v":""},null,{"$f":"IF($C$273=\"\",\"\",N273/$C$273)","v":""},null,{"$f":"IF($C$273=\"\",\"\",P273/$C$273)","v":""},null,{"$f":"IF($C$273=\"\",\"\",R273/$C$273)","v":""},null,{"$f":"IF($C$273=\"\",\"\",T273/$C$273)","v":""},null,{"$f":"IF($C$273=\"\",\"\",V273/$C$273)","v":""},null,{"$f":"IF($C$273=\"\",\"\",X273/$C$273)","v":""},null,{"$f":"IF($C$273=\"\",\"\",Z273/$C$273)","v":""},null,{"$f":"IF($C$273=\"\",\"\",AB273/$C$273)","v":""},null,{"$f":"IF($C$273=\"\",\"\",AD273/$C$273)","v":""},null,{"$f":"IF($C$273=\"\",\"\",AF273/$C$273)","v":""},null,{"$f":"IF($C$273=\"\",\"\",AH273/$C$273)","v":""},null,{"$f":"IF($C$273=\"\",\"\",AJ273/$C$273)","v":""},null,{"$f":"IF($C$273=\"\",\"\",AL273/$C$273)","v":""},null,{"$f":"IF($C$273=\"\",\"\",AN273/$C$273)","v":""},null,{"$f":"IF($C$273=\"\",\"\",AP273/$C$273)","v":""},null,{"$f":"IF($C$273=\"\",\"\",AR273/$C$273)","v":""},null,{"$f":"IF($C$273=\"\",\"\",AT273/$C$273)","v":""},null,{"$f":"IF($C$273=\"\",\"\",AV273/$C$273)","v":""},null,{"$f":"IF($C$273=\"\",\"\",AX273/$C$273)","v":""},null,{"$f":"IF($C$273=\"\",\"\",AZ273/$C$273)","v":""},null,{"$f":"IF($C$273=\"\",\"\",BB273/$C$273)","v":""},null,0]
["    11.1.20","    TMC Modifications",null,null,{"$f":"IF($C$274=\"\",\"\",F274/$C$274)","v":""},null,{"$f":"IF($C$274=\"\",\"\",H274/$C$274)","v":""},null,{"$f":"IF($C$274=\"\",\"\",J274/$C$274)","v":""},null,{"$f":"IF($C$274=\"\",\"\",L274/$C$274)","v":""},null,{"$f":"IF($C$274=\"\",\"\",N274/$C$274)","v":""},null,{"$f":"IF($C$274=\"\",\"\",P274/$C$274)","v":""},null,{"$f":"IF($C$274=\"\",\"\",R274/$C$274)","v":""},null,{"$f":"IF($C$274=\"\",\"\",T274/$C$274)","v":""},null,{"$f":"IF($C$274=\"\",\"\",V274/$C$274)","v":""},null,{"$f":"IF($C$274=\"\",\"\",X274/$C$274)","v":""},null,{"$f":"IF($C$274=\"\",\"\",Z274/$C$274)","v":""},null,{"$f":"IF($C$274=\"\",\"\",AB274/$C$274)","v":""},null,{"$f":"IF($C$274=\"\",\"\",AD274/$C$274)","v":""},null,{"$f":"IF($C$274=\"\",\"\",AF274/$C$274)","v":""},null,{"$f":"IF($C$274=\"\",\"\",AH274/$C$274)","v":""},null,{"$f":"IF($C$274=\"\",\"\",AJ274/$C$274)","v":""},null,{"$f":"IF($C$274=\"\",\"\",AL274/$C$274)","v":""},null,{"$f":"IF($C$274=\"\",\"\",AN274/$C$274)","v":""},null,{"$f":"IF($C$274=\"\",\"\",AP274/$C$274)","v":""},null,{"$f":"IF($C$274=\"\",\"\",AR274/$C$274)","v":""},null,{"$f":"IF($C$274=\"\",\"\",AT274/$C$274)","v":""},null,{"$f":"IF($C$274=\"\",\"\",AV274/$C$274)","v":""},null,{"$f":"IF($C$274=\"\",\"\",AX274/$C$274)","v":""},null,{"$f":"IF($C$274=\"\",\"\",AZ274/$C$274)","v":""},null,{"$f":"IF($C$274=\"\",\"\",BB274/$C$274)","v":""},null,0]
["    11.1.21","    Special Details",null,null,{"$f":"IF($C$275=\"\",\"\",F275/$C$275)","v":""},null,{"$f":"IF($C$275=\"\",\"\",H275/$C$275)","v":""},null,{"$f":"IF($C$275=\"\",\"\",J275/$C$275)","v":""},null,{"$f":"IF($C$275=\"\",\"\",L275/$C$275)","v":""},null,{"$f":"IF($C$275=\"\",\"\",N275/$C$275)","v":""},null,{"$f":"IF($C$275=\"\",\"\",P275/$C$275)","v":""},null,{"$f":"IF($C$275=\"\",\"\",R275/$C$275)","v":""},null,{"$f":"IF($C$275=\"\",\"\",T275/$C$275)","v":""},null,{"$f":"IF($C$275=\"\",\"\",V275/$C$275)","v":""},null,{"$f":"IF($C$275=\"\",\"\",X275/$C$275)","v":""},null,{"$f":"IF($C$275=\"\",\"\",Z275/$C$275)","v":""},null,{"$f":"IF($C$275=\"\",\"\",AB275/$C$275)","v":""},null,{"$f":"IF($C$275=\"\",\"\",AD275/$C$275)","v":""},null,{"$f":"IF($C$275=\"\",\"\",AF275/$C$275)","v":""},null,{"$f":"IF($C$275=\"\",\"\",AH275/$C$275)","v":""},null,{"$f":"IF($C$275=\"\",\"\",AJ275/$C$275)","v":""},null,{"$f":"IF($C$275=\"\",\"\",AL275/$C$275)","v":""},null,{"$f":"IF($C$275=\"\",\"\",AN275/$C$275)","v":""},null,{"$f":"IF($C$275=\"\",\"\",AP275/$C$275)","v":""},null,{"$f":"IF($C$275=\"\",\"\",AR275/$C$275)","v":""},null,{"$f":"IF($C$275=\"\",\"\",AT275/$C$275)","v":""},null,{"$f":"IF($C$275=\"\",\"\",AV275/$C$275)","v":""},null,{"$f":"IF($C$275=\"\",\"\",AX275/$C$275)","v":""},null,{"$f":"IF($C$275=\"\",\"\",AZ275/$C$275)","v":""},null,{"$f":"IF($C$275=\"\",\"\",BB275/$C$275)","v":""},null,0]
["    11.1.22","    Splice Diagrams",null,null,{"$f":"IF($C$276=\"\",\"\",F276/$C$276)","v":""},null,{"$f":"IF($C$276=\"\",\"\",H276/$C$276)","v":""},null,{"$f":"IF($C$276=\"\",\"\",J276/$C$276)","v":""},null,{"$f":"IF($C$276=\"\",\"\",L276/$C$276)","v":""},null,{"$f":"IF($C$276=\"\",\"\",N276/$C$276)","v":""},null,{"$f":"IF($C$276=\"\",\"\",P276/$C$276)","v":""},null,{"$f":"IF($C$276=\"\",\"\",R276/$C$276)","v":""},null,{"$f":"IF($C$276=\"\",\"\",T276/$C$276)","v":""},null,{"$f":"IF($C$276=\"\",\"\",V276/$C$276)","v":""},null,{"$f":"IF($C$276=\"\",\"\",X276/$C$276)","v":""},null,{"$f":"IF($C$276=\"\",\"\",Z276/$C$276)","v":""},null,{"$f":"IF($C$276=\"\",\"\",AB276/$C$276)","v":""},null,{"$f":"IF($C$276=\"\",\"\",AD276/$C$276)","v":""},null,{"$f":"IF($C$276=\"\",\"\",AF276/$C$276)","v":""},null,{"$f":"IF($C$276=\"\",\"\",AH276/$C$276)","v":""},null,{"$f":"IF($C$276=\"\",\"\",AJ276/$C$276)","v":""},null,{"$f":"IF($C$276=\"\",\"\",AL276/$C$276)","v":""},null,{"$f":"IF($C$276=\"\",\"\",AN276/$C$276)","v":""},null,{"$f":"IF($C$276=\"\",\"\",AP276/$C$276)","v":""},null,{"$f":"IF($C$276=\"\",\"\",AR276/$C$276)","v":""},null,{"$f":"IF($C$276=\"\",\"\",AT276/$C$276)","v":""},null,{"$f":"IF($C$276=\"\",\"\",AV276/$C$276)","v":""},null,{"$f":"IF($C$276=\"\",\"\",AX276/$C$276)","v":""},null,{"$f":"IF($C$276=\"\",\"\",AZ276/$C$276)","v":""},null,{"$f":"IF($C$276=\"\",\"\",BB276/$C$276)","v":""},null,0]
["    11.1.23","    Summary of Work by Intersection",null,null,{"$f":"IF($C$277=\"\",\"\",F277/$C$277)","v":""},null,{"$f":"IF($C$277=\"\",\"\",H277/$C$277)","v":""},null,{"$f":"IF($C$277=\"\",\"\",J277/$C$277)","v":""},null,{"$f":"IF($C$277=\"\",\"\",L277/$C$277)","v":""},null,{"$f":"IF($C$277=\"\",\"\",N277/$C$277)","v":""},null,{"$f":"IF($C$277=\"\",\"\",P277/$C$277)","v":""},null,{"$f":"IF($C$277=\"\",\"\",R277/$C$277)","v":""},null,{"$f":"IF($C$277=\"\",\"\",T277/$C$277)","v":""},null,{"$f":"IF($C$277=\"\",\"\",V277/$C$277)","v":""},null,{"$f":"IF($C$277=\"\",\"\",X277/$C$277)","v":""},null,{"$f":"IF($C$277=\"\",\"\",Z277/$C$277)","v":""},null,{"$f":"IF($C$277=\"\",\"\",AB277/$C$277)","v":""},null,{"$f":"IF($C$277=\"\",\"\",AD277/$C$277)","v":""},null,{"$f":"IF($C$277=\"\",\"\",AF277/$C$277)","v":""},null,{"$f":"IF($C$277=\"\",\"\",AH277/$C$277)","v":""},null,{"$f":"IF($C$277=\"\",\"\",AJ277/$C$277)","v":""},null,{"$f":"IF($C$277=\"\",\"\",AL277/$C$277)","v":""},null,{"$f":"IF($C$277=\"\",\"\",AN277/$C$277)","v":""},null,{"$f":"IF($C$277=\"\",\"\",AP277/$C$277)","v":""},null,{"$f":"IF($C$277=\"\",\"\",AR277/$C$277)","v":""},null,{"$f":"IF($C$277=\"\",\"\",AT277/$C$277)","v":""},null,{"$f":"IF($C$277=\"\",\"\",AV277/$C$277)","v":""},null,{"$f":"IF($C$277=\"\",\"\",AX277/$C$277)","v":""},null,{"$f":"IF($C$277=\"\",\"\",AZ277/$C$277)","v":""},null,{"$f":"IF($C$277=\"\",\"\",BB277/$C$277)","v":""},null,0]
["    11.1.24","    Incorporate NCDOT Traffic Signal Design Plans",null,null,{"$f":"IF($C$278=\"\",\"\",F278/$C$278)","v":""},null,{"$f":"IF($C$278=\"\",\"\",H278/$C$278)","v":""},null,{"$f":"IF($C$278=\"\",\"\",J278/$C$278)","v":""},null,{"$f":"IF($C$278=\"\",\"\",L278/$C$278)","v":""},null,{"$f":"IF($C$278=\"\",\"\",N278/$C$278)","v":""},null,{"$f":"IF($C$278=\"\",\"\",P278/$C$278)","v":""},null,{"$f":"IF($C$278=\"\",\"\",R278/$C$278)","v":""},null,{"$f":"IF($C$278=\"\",\"\",T278/$C$278)","v":""},null,{"$f":"IF($C$278=\"\",\"\",V278/$C$278)","v":""},null,{"$f":"IF($C$278=\"\",\"\",X278/$C$278)","v":""},null,{"$f":"IF($C$278=\"\",\"\",Z278/$C$278)","v":""},null,{"$f":"IF($C$278=\"\",\"\",AB278/$C$278)","v":""},null,{"$f":"IF($C$278=\"\",\"\",AD278/$C$278)","v":""},null,{"$f":"IF($C$278=\"\",\"\",AF278/$C$278)","v":""},null,{"$f":"IF($C$278=\"\",\"\",AH278/$C$278)","v":""},null,{"$f":"IF($C$278=\"\",\"\",AJ278/$C$278)","v":""},null,{"$f":"IF($C$278=\"\",\"\",AL278/$C$278)","v":""},null,{"$f":"IF($C$278=\"\",\"\",AN278/$C$278)","v":""},null,{"$f":"IF($C$278=\"\",\"\",AP278/$C$278)","v":""},null,{"$f":"IF($C$278=\"\",\"\",AR278/$C$278)","v":""},null,{"$f":"IF($C$278=\"\",\"\",AT278/$C$278)","v":""},null,{"$f":"IF($C$278=\"\",\"\",AV278/$C$278)","v":""},null,{"$f":"IF($C$278=\"\",\"\",AX278/$C$278)","v":""},null,{"$f":"IF($C$278=\"\",\"\",AZ278/$C$278)","v":""},null,{"$f":"IF($C$278=\"\",\"\",BB278/$C$278)","v":""},null,0]
["    11.1.25","    City Traffic Signal Plans"]
["        11.1.25.1","        Intersection Base Mapping",null,null,{"$f":"IF($C$280=\"\",\"\",F280/$C$280)","v":""},null,{"$f":"IF($C$280=\"\",\"\",H280/$C$280)","v":""},null,{"$f":"IF($C$280=\"\",\"\",J280/$C$280)","v":""},null,{"$f":"IF($C$280=\"\",\"\",L280/$C$280)","v":""},null,{"$f":"IF($C$280=\"\",\"\",N280/$C$280)","v":""},null,{"$f":"IF($C$280=\"\",\"\",P280/$C$280)","v":""},null,{"$f":"IF($C$280=\"\",\"\",R280/$C$280)","v":""},null,{"$f":"IF($C$280=\"\",\"\",T280/$C$280)","v":""},null,{"$f":"IF($C$280=\"\",\"\",V280/$C$280)","v":""},null,{"$f":"IF($C$280=\"\",\"\",X280/$C$280)","v":""},null,{"$f":"IF($C$280=\"\",\"\",Z280/$C$280)","v":""},null,{"$f":"IF($C$280=\"\",\"\",AB280/$C$280)","v":""},null,{"$f":"IF($C$280=\"\",\"\",AD280/$C$280)","v":""},null,{"$f":"IF($C$280=\"\",\"\",AF280/$C$280)","v":""},null,{"$f":"IF($C$280=\"\",\"\",AH280/$C$280)","v":""},null,{"$f":"IF($C$280=\"\",\"\",AJ280/$C$280)","v":""},null,{"$f":"IF($C$280=\"\",\"\",AL280/$C$280)","v":""},null,{"$f":"IF($C$280=\"\",\"\",AN280/$C$280)","v":""},null,{"$f":"IF($C$280=\"\",\"\",AP280/$C$280)","v":""},null,{"$f":"IF($C$280=\"\",\"\",AR280/$C$280)","v":""},null,{"$f":"IF($C$280=\"\",\"\",AT280/$C$280)","v":""},null,{"$f":"IF($C$280=\"\",\"\",AV280/$C$280)","v":""},null,{"$f":"IF($C$280=\"\",\"\",AX280/$C$280)","v":""},null,{"$f":"IF($C$280=\"\",\"\",AZ280/$C$280)","v":""},null,{"$f":"IF($C$280=\"\",\"\",BB280/$C$280)","v":""},null,{"$f":"SUM(BB280,AZ280,AX280,AV280,AT280,AR280,AP280,AN280,AL280,AJ280,AH280,AF280,AD280,AB280,Z280,X280,V280,T280,R280,P280,N280,L280,J280,H280,F280)","v":0}]
["        11.1.25.2","        Plans",null,null,{"$f":"IF($C$281=\"\",\"\",F281/$C$281)","v":""},null,{"$f":"IF($C$281=\"\",\"\",H281/$C$281)","v":""},null,{"$f":"IF($C$281=\"\",\"\",J281/$C$281)","v":""},null,{"$f":"IF($C$281=\"\",\"\",L281/$C$281)","v":""},null,{"$f":"IF($C$281=\"\",\"\",N281/$C$281)","v":""},null,{"$f":"IF($C$281=\"\",\"\",P281/$C$281)","v":""},null,{"$f":"IF($C$281=\"\",\"\",R281/$C$281)","v":""},null,{"$f":"IF($C$281=\"\",\"\",T281/$C$281)","v":""},null,{"$f":"IF($C$281=\"\",\"\",V281/$C$281)","v":""},null,{"$f":"IF($C$281=\"\",\"\",X281/$C$281)","v":""},null,{"$f":"IF($C$281=\"\",\"\",Z281/$C$281)","v":""},null,{"$f":"IF($C$281=\"\",\"\",AB281/$C$281)","v":""},null,{"$f":"IF($C$281=\"\",\"\",AD281/$C$281)","v":""},null,{"$f":"IF($C$281=\"\",\"\",AF281/$C$281)","v":""},null,{"$f":"IF($C$281=\"\",\"\",AH281/$C$281)","v":""},null,{"$f":"IF($C$281=\"\",\"\",AJ281/$C$281)","v":""},null,{"$f":"IF($C$281=\"\",\"\",AL281/$C$281)","v":""},null,{"$f":"IF($C$281=\"\",\"\",AN281/$C$281)","v":""},null,{"$f":"IF($C$281=\"\",\"\",AP281/$C$281)","v":""},null,{"$f":"IF($C$281=\"\",\"\",AR281/$C$281)","v":""},null,{"$f":"IF($C$281=\"\",\"\",AT281/$C$281)","v":""},null,{"$f":"IF($C$281=\"\",\"\",AV281/$C$281)","v":""},null,{"$f":"IF($C$281=\"\",\"\",AX281/$C$281)","v":""},null,{"$f":"IF($C$281=\"\",\"\",AZ281/$C$281)","v":""},null,{"$f":"IF($C$281=\"\",\"\",BB281/$C$281)","v":""},null,0]
["        11.1.25.3","        Local Controller Timings",null,null,{"$f":"IF($C$282=\"\",\"\",F282/$C$282)","v":""},null,{"$f":"IF($C$282=\"\",\"\",H282/$C$282)","v":""},null,{"$f":"IF($C$282=\"\",\"\",J282/$C$282)","v":""},null,{"$f":"IF($C$282=\"\",\"\",L282/$C$282)","v":""},null,{"$f":"IF($C$282=\"\",\"\",N282/$C$282)","v":""},null,{"$f":"IF($C$282=\"\",\"\",P282/$C$282)","v":""},null,{"$f":"IF($C$282=\"\",\"\",R282/$C$282)","v":""},null,{"$f":"IF($C$282=\"\",\"\",T282/$C$282)","v":""},null,{"$f":"IF($C$282=\"\",\"\",V282/$C$282)","v":""},null,{"$f":"IF($C$282=\"\",\"\",X282/$C$282)","v":""},null,{"$f":"IF($C$282=\"\",\"\",Z282/$C$282)","v":""},null,{"$f":"IF($C$282=\"\",\"\",AB282/$C$282)","v":""},null,{"$f":"IF($C$282=\"\",\"\",AD282/$C$282)","v":""},null,{"$f":"IF($C$282=\"\",\"\",AF282/$C$282)","v":""},null,{"$f":"IF($C$282=\"\",\"\",AH282/$C$282)","v":""},null,{"$f":"IF($C$282=\"\",\"\",AJ282/$C$282)","v":""},null,{"$f":"IF($C$282=\"\",\"\",AL282/$C$282)","v":""},null,{"$f":"IF($C$282=\"\",\"\",AN282/$C$282)","v":""},null,{"$f":"IF($C$282=\"\",\"\",AP282/$C$282)","v":""},null,{"$f":"IF($C$282=\"\",\"\",AR282/$C$282)","v":""},null,{"$f":"IF($C$282=\"\",\"\",AT282/$C$282)","v":""},null,{"$f":"IF($C$282=\"\",\"\",AV282/$C$282)","v":""},null,{"$f":"IF($C$282=\"\",\"\",AX282/$C$282)","v":""},null,{"$f":"IF($C$282=\"\",\"\",AZ282/$C$282)","v":""},null,{"$f":"IF($C$282=\"\",\"\",BB282/$C$282)","v":""},null,0]
["        11.1.25.4","        Preemption (Fire Station)",null,null,{"$f":"IF($C$283=\"\",\"\",F283/$C$283)","v":""},null,{"$f":"IF($C$283=\"\",\"\",H283/$C$283)","v":""},null,{"$f":"IF($C$283=\"\",\"\",J283/$C$283)","v":""},null,{"$f":"IF($C$283=\"\",\"\",L283/$C$283)","v":""},null,{"$f":"IF($C$283=\"\",\"\",N283/$C$283)","v":""},null,{"$f":"IF($C$283=\"\",\"\",P283/$C$283)","v":""},null,{"$f":"IF($C$283=\"\",\"\",R283/$C$283)","v":""},null,{"$f":"IF($C$283=\"\",\"\",T283/$C$283)","v":""},null,{"$f":"IF($C$283=\"\",\"\",V283/$C$283)","v":""},null,{"$f":"IF($C$283=\"\",\"\",X283/$C$283)","v":""},null,{"$f":"IF($C$283=\"\",\"\",Z283/$C$283)","v":""},null,{"$f":"IF($C$283=\"\",\"\",AB283/$C$283)","v":""},null,{"$f":"IF($C$283=\"\",\"\",AD283/$C$283)","v":""},null,{"$f":"IF($C$283=\"\",\"\",AF283/$C$283)","v":""},null,{"$f":"IF($C$283=\"\",\"\",AH283/$C$283)","v":""},null,{"$f":"IF($C$283=\"\",\"\",AJ283/$C$283)","v":""},null,{"$f":"IF($C$283=\"\",\"\",AL283/$C$283)","v":""},null,{"$f":"IF($C$283=\"\",\"\",AN283/$C$283)","v":""},null,{"$f":"IF($C$283=\"\",\"\",AP283/$C$283)","v":""},null,{"$f":"IF($C$283=\"\",\"\",AR283/$C$283)","v":""},null,{"$f":"IF($C$283=\"\",\"\",AT283/$C$283)","v":""},null,{"$f":"IF($C$283=\"\",\"\",AV283/$C$283)","v":""},null,{"$f":"IF($C$283=\"\",\"\",AX283/$C$283)","v":""},null,{"$f":"IF($C$283=\"\",\"\",AZ283/$C$283)","v":""},null,{"$f":"IF($C$283=\"\",\"\",BB283/$C$283)","v":""},null,0]
["        11.1.25.5","        Signal Quantity Estimates",null,null,{"$f":"IF($C$284=\"\",\"\",F284/$C$284)","v":""},null,{"$f":"IF($C$284=\"\",\"\",H284/$C$284)","v":""},null,{"$f":"IF($C$284=\"\",\"\",J284/$C$284)","v":""},null,{"$f":"IF($C$284=\"\",\"\",L284/$C$284)","v":""},null,{"$f":"IF($C$284=\"\",\"\",N284/$C$284)","v":""},null,{"$f":"IF($C$284=\"\",\"\",P284/$C$284)","v":""},null,{"$f":"IF($C$284=\"\",\"\",R284/$C$284)","v":""},null,{"$f":"IF($C$284=\"\",\"\",T284/$C$284)","v":""},null,{"$f":"IF($C$284=\"\",\"\",V284/$C$284)","v":""},null,{"$f":"IF($C$284=\"\",\"\",X284/$C$284)","v":""},null,{"$f":"IF($C$284=\"\",\"\",Z284/$C$284)","v":""},null,{"$f":"IF($C$284=\"\",\"\",AB284/$C$284)","v":""},null,{"$f":"IF($C$284=\"\",\"\",AD284/$C$284)","v":""},null,{"$f":"IF($C$284=\"\",\"\",AF284/$C$284)","v":""},null,{"$f":"IF($C$284=\"\",\"\",AH284/$C$284)","v":""},null,{"$f":"IF($C$284=\"\",\"\",AJ284/$C$284)","v":""},null,{"$f":"IF($C$284=\"\",\"\",AL284/$C$284)","v":""},null,{"$f":"IF($C$284=\"\",\"\",AN284/$C$284)","v":""},null,{"$f":"IF($C$284=\"\",\"\",AP284/$C$284)","v":""},null,{"$f":"IF($C$284=\"\",\"\",AR284/$C$284)","v":""},null,{"$f":"IF($C$284=\"\",\"\",AT284/$C$284)","v":""},null,{"$f":"IF($C$284=\"\",\"\",AV284/$C$284)","v":""},null,{"$f":"IF($C$284=\"\",\"\",AX284/$C$284)","v":""},null,{"$f":"IF($C$284=\"\",\"\",AZ284/$C$284)","v":""},null,{"$f":"IF($C$284=\"\",\"\",BB284/$C$284)","v":""},null,0]
["        11.1.25.6","        Electrical & Programming Details - No \n        Preemption",null,null,{"$f":"IF($C$285=\"\",\"\",F285/$C$285)","v":""},null,{"$f":"IF($C$285=\"\",\"\",H285/$C$285)","v":""},null,{"$f":"IF($C$285=\"\",\"\",J285/$C$285)","v":""},null,{"$f":"IF($C$285=\"\",\"\",L285/$C$285)","v":""},null,{"$f":"IF($C$285=\"\",\"\",N285/$C$285)","v":""},null,{"$f":"IF($C$285=\"\",\"\",P285/$C$285)","v":""},null,{"$f":"IF($C$285=\"\",\"\",R285/$C$285)","v":""},null,{"$f":"IF($C$285=\"\",\"\",T285/$C$285)","v":""},null,{"$f":"IF($C$285=\"\",\"\",V285/$C$285)","v":""},null,{"$f":"IF($C$285=\"\",\"\",X285/$C$285)","v":""},null,{"$f":"IF($C$285=\"\",\"\",Z285/$C$285)","v":""},null,{"$f":"IF($C$285=\"\",\"\",AB285/$C$285)","v":""},null,{"$f":"IF($C$285=\"\",\"\",AD285/$C$285)","v":""},null,{"$f":"IF($C$285=\"\",\"\",AF285/$C$285)","v":""},null,{"$f":"IF($C$285=\"\",\"\",AH285/$C$285)","v":""},null,{"$f":"IF($C$285=\"\",\"\",AJ285/$C$285)","v":""},null,{"$f":"IF($C$285=\"\",\"\",AL285/$C$285)","v":""},null,{"$f":"IF($C$285=\"\",\"\",AN285/$C$285)","v":""},null,{"$f":"IF($C$285=\"\",\"\",AP285/$C$285)","v":""},null,{"$f":"IF($C$285=\"\",\"\",AR285/$C$285)","v":""},null,{"$f":"IF($C$285=\"\",\"\",AT285/$C$285)","v":""},null,{"$f":"IF($C$285=\"\",\"\",AV285/$C$285)","v":""},null,{"$f":"IF($C$285=\"\",\"\",AX285/$C$285)","v":""},null,{"$f":"IF($C$285=\"\",\"\",AZ285/$C$285)","v":""},null,{"$f":"IF($C$285=\"\",\"\",BB285/$C$285)","v":""},null,0]
["        11.1.25.7","        Electrical & Programming Details - With \n        Preemption",null,null,{"$f":"IF($C$286=\"\",\"\",F286/$C$286)","v":""},null,{"$f":"IF($C$286=\"\",\"\",H286/$C$286)","v":""},null,{"$f":"IF($C$286=\"\",\"\",J286/$C$286)","v":""},null,{"$f":"IF($C$286=\"\",\"\",L286/$C$286)","v":""},null,{"$f":"IF($C$286=\"\",\"\",N286/$C$286)","v":""},null,{"$f":"IF($C$286=\"\",\"\",P286/$C$286)","v":""},null,{"$f":"IF($C$286=\"\",\"\",R286/$C$286)","v":""},null,{"$f":"IF($C$286=\"\",\"\",T286/$C$286)","v":""},null,{"$f":"IF($C$286=\"\",\"\",V286/$C$286)","v":""},null,{"$f":"IF($C$286=\"\",\"\",X286/$C$286)","v":""},null,{"$f":"IF($C$286=\"\",\"\",Z286/$C$286)","v":""},null,{"$f":"IF($C$286=\"\",\"\",AB286/$C$286)","v":""},null,{"$f":"IF($C$286=\"\",\"\",AD286/$C$286)","v":""},null,{"$f":"IF($C$286=\"\",\"\",AF286/$C$286)","v":""},null,{"$f":"IF($C$286=\"\",\"\",AH286/$C$286)","v":""},null,{"$f":"IF($C$286=\"\",\"\",AJ286/$C$286)","v":""},null,{"$f":"IF($C$286=\"\",\"\",AL286/$C$286)","v":""},null,{"$f":"IF($C$286=\"\",\"\",AN286/$C$286)","v":""},null,{"$f":"IF($C$286=\"\",\"\",AP286/$C$286)","v":""},null,{"$f":"IF($C$286=\"\",\"\",AR286/$C$286)","v":""},null,{"$f":"IF($C$286=\"\",\"\",AT286/$C$286)","v":""},null,{"$f":"IF($C$286=\"\",\"\",AV286/$C$286)","v":""},null,{"$f":"IF($C$286=\"\",\"\",AX286/$C$286)","v":""},null,{"$f":"IF($C$286=\"\",\"\",AZ286/$C$286)","v":""},null,{"$f":"IF($C$286=\"\",\"\",BB286/$C$286)","v":""},null,0]
["        11.1.25.8",null,null,null,{"$f":"IF($C$287=\"\",\"\",F287/$C$287)","v":""},null,{"$f":"IF($C$287=\"\",\"\",H287/$C$287)","v":""},null,{"$f":"IF($C$287=\"\",\"\",J287/$C$287)","v":""},null,{"$f":"IF($C$287=\"\",\"\",L287/$C$287)","v":""},null,{"$f":"IF($C$287=\"\",\"\",N287/$C$287)","v":""},null,{"$f":"IF($C$287=\"\",\"\",P287/$C$287)","v":""},null,{"$f":"IF($C$287=\"\",\"\",R287/$C$287)","v":""},null,{"$f":"IF($C$287=\"\",\"\",T287/$C$287)","v":""},null,{"$f":"IF($C$287=\"\",\"\",V287/$C$287)","v":""},null,{"$f":"IF($C$287=\"\",\"\",X287/$C$287)","v":""},null,{"$f":"IF($C$287=\"\",\"\",Z287/$C$287)","v":""},null,{"$f":"IF($C$287=\"\",\"\",AB287/$C$287)","v":""},null,{"$f":"IF($C$287=\"\",\"\",AD287/$C$287)","v":""},null,{"$f":"IF($C$287=\"\",\"\",AF287/$C$287)","v":""},null,{"$f":"IF($C$287=\"\",\"\",AH287/$C$287)","v":""},null,{"$f":"IF($C$287=\"\",\"\",AJ287/$C$287)","v":""},null,{"$f":"IF($C$287=\"\",\"\",AL287/$C$287)","v":""},null,{"$f":"IF($C$287=\"\",\"\",AN287/$C$287)","v":""},null,{"$f":"IF($C$287=\"\",\"\",AP287/$C$287)","v":""},null,{"$f":"IF($C$287=\"\",\"\",AR287/$C$287)","v":""},null,{"$f":"IF($C$287=\"\",\"\",AT287/$C$287)","v":""},null,{"$f":"IF($C$287=\"\",\"\",AV287/$C$287)","v":""},null,{"$f":"IF($C$287=\"\",\"\",AX287/$C$287)","v":""},null,{"$f":"IF($C$287=\"\",\"\",AZ287/$C$287)","v":""},null,{"$f":"IF($C$287=\"\",\"\",BB287/$C$287)","v":""},null,0]
["        11.1.25.9",null,null,null,{"$f":"IF($C$288=\"\",\"\",F288/$C$288)","v":""},null,{"$f":"IF($C$288=\"\",\"\",H288/$C$288)","v":""},null,{"$f":"IF($C$288=\"\",\"\",J288/$C$288)","v":""},null,{"$f":"IF($C$288=\"\",\"\",L288/$C$288)","v":""},null,{"$f":"IF($C$288=\"\",\"\",N288/$C$288)","v":""},null,{"$f":"IF($C$288=\"\",\"\",P288/$C$288)","v":""},null,{"$f":"IF($C$288=\"\",\"\",R288/$C$288)","v":""},null,{"$f":"IF($C$288=\"\",\"\",T288/$C$288)","v":""},null,{"$f":"IF($C$288=\"\",\"\",V288/$C$288)","v":""},null,{"$f":"IF($C$288=\"\",\"\",X288/$C$288)","v":""},null,{"$f":"IF($C$288=\"\",\"\",Z288/$C$288)","v":""},null,{"$f":"IF($C$288=\"\",\"\",AB288/$C$288)","v":""},null,{"$f":"IF($C$288=\"\",\"\",AD288/$C$288)","v":""},null,{"$f":"IF($C$288=\"\",\"\",AF288/$C$288)","v":""},null,{"$f":"IF($C$288=\"\",\"\",AH288/$C$288)","v":""},null,{"$f":"IF($C$288=\"\",\"\",AJ288/$C$288)","v":""},null,{"$f":"IF($C$288=\"\",\"\",AL288/$C$288)","v":""},null,{"$f":"IF($C$288=\"\",\"\",AN288/$C$288)","v":""},null,{"$f":"IF($C$288=\"\",\"\",AP288/$C$288)","v":""},null,{"$f":"IF($C$288=\"\",\"\",AR288/$C$288)","v":""},null,{"$f":"IF($C$288=\"\",\"\",AT288/$C$288)","v":""},null,{"$f":"IF($C$288=\"\",\"\",AV288/$C$288)","v":""},null,{"$f":"IF($C$288=\"\",\"\",AX288/$C$288)","v":""},null,{"$f":"IF($C$288=\"\",\"\",AZ288/$C$288)","v":""},null,{"$f":"IF($C$288=\"\",\"\",BB288/$C$288)","v":""},null,0]
["        11.1.25.10",null,null,null,{"$f":"IF($C$289=\"\",\"\",F289/$C$289)","v":""},null,{"$f":"IF($C$289=\"\",\"\",H289/$C$289)","v":""},null,{"$f":"IF($C$289=\"\",\"\",J289/$C$289)","v":""},null,{"$f":"IF($C$289=\"\",\"\",L289/$C$289)","v":""},null,{"$f":"IF($C$289=\"\",\"\",N289/$C$289)","v":""},null,{"$f":"IF($C$289=\"\",\"\",P289/$C$289)","v":""},null,{"$f":"IF($C$289=\"\",\"\",R289/$C$289)","v":""},null,{"$f":"IF($C$289=\"\",\"\",T289/$C$289)","v":""},null,{"$f":"IF($C$289=\"\",\"\",V289/$C$289)","v":""},null,{"$f":"IF($C$289=\"\",\"\",X289/$C$289)","v":""},null,{"$f":"IF($C$289=\"\",\"\",Z289/$C$289)","v":""},null,{"$f":"IF($C$289=\"\",\"\",AB289/$C$289)","v":""},null,{"$f":"IF($C$289=\"\",\"\",AD289/$C$289)","v":""},null,{"$f":"IF($C$289=\"\",\"\",AF289/$C$289)","v":""},null,{"$f":"IF($C$289=\"\",\"\",AH289/$C$289)","v":""},null,{"$f":"IF($C$289=\"\",\"\",AJ289/$C$289)","v":""},null,{"$f":"IF($C$289=\"\",\"\",AL289/$C$289)","v":""},null,{"$f":"IF($C$289=\"\",\"\",AN289/$C$289)","v":""},null,{"$f":"IF($C$289=\"\",\"\",AP289/$C$289)","v":""},null,{"$f":"IF($C$289=\"\",\"\",AR289/$C$289)","v":""},null,{"$f":"IF($C$289=\"\",\"\",AT289/$C$289)","v":""},null,{"$f":"IF($C$289=\"\",\"\",AV289/$C$289)","v":""},null,{"$f":"IF($C$289=\"\",\"\",AX289/$C$289)","v":""},null,{"$f":"IF($C$289=\"\",\"\",AZ289/$C$289)","v":""},null,{"$f":"IF($C$289=\"\",\"\",BB289/$C$289)","v":""},null,0]
["    11.1.26","    Preliminary PS&E On-Site Work Sessions",null,null,{"$f":"IF($C$290=\"\",\"\",F290/$C$290)","v":""},null,{"$f":"IF($C$290=\"\",\"\",H290/$C$290)","v":""},null,{"$f":"IF($C$290=\"\",\"\",J290/$C$290)","v":""},null,{"$f":"IF($C$290=\"\",\"\",L290/$C$290)","v":""},null,{"$f":"IF($C$290=\"\",\"\",N290/$C$290)","v":""},null,{"$f":"IF($C$290=\"\",\"\",P290/$C$290)","v":""},null,{"$f":"IF($C$290=\"\",\"\",R290/$C$290)","v":""},null,{"$f":"IF($C$290=\"\",\"\",T290/$C$290)","v":""},null,{"$f":"IF($C$290=\"\",\"\",V290/$C$290)","v":""},null,{"$f":"IF($C$290=\"\",\"\",X290/$C$290)","v":""},null,{"$f":"IF($C$290=\"\",\"\",Z290/$C$290)","v":""},null,{"$f":"IF($C$290=\"\",\"\",AB290/$C$290)","v":""},null,{"$f":"IF($C$290=\"\",\"\",AD290/$C$290)","v":""},null,{"$f":"IF($C$290=\"\",\"\",AF290/$C$290)","v":""},null,{"$f":"IF($C$290=\"\",\"\",AH290/$C$290)","v":""},null,{"$f":"IF($C$290=\"\",\"\",AJ290/$C$290)","v":""},null,{"$f":"IF($C$290=\"\",\"\",AL290/$C$290)","v":""},null,{"$f":"IF($C$290=\"\",\"\",AN290/$C$290)","v":""},null,{"$f":"IF($C$290=\"\",\"\",AP290/$C$290)","v":""},null,{"$f":"IF($C$290=\"\",\"\",AR290/$C$290)","v":""},null,{"$f":"IF($C$290=\"\",\"\",AT290/$C$290)","v":""},null,{"$f":"IF($C$290=\"\",\"\",AV290/$C$290)","v":""},null,{"$f":"IF($C$290=\"\",\"\",AX290/$C$290)","v":""},null,{"$f":"IF($C$290=\"\",\"\",AZ290/$C$290)","v":""},null,{"$f":"IF($C$290=\"\",\"\",BB290/$C$290)","v":""},null,0]
["    11.1.27",null,null,null,{"$f":"IF($C$291=\"\",\"\",F291/$C$291)","v":""},null,{"$f":"IF($C$291=\"\",\"\",H291/$C$291)","v":""},null,{"$f":"IF($C$291=\"\",\"\",J291/$C$291)","v":""},null,{"$f":"IF($C$291=\"\",\"\",L291/$C$291)","v":""},null,{"$f":"IF($C$291=\"\",\"\",N291/$C$291)","v":""},null,{"$f":"IF($C$291=\"\",\"\",P291/$C$291)","v":""},null,{"$f":"IF($C$291=\"\",\"\",R291/$C$291)","v":""},null,{"$f":"IF($C$291=\"\",\"\",T291/$C$291)","v":""},null,{"$f":"IF($C$291=\"\",\"\",V291/$C$291)","v":""},null,{"$f":"IF($C$291=\"\",\"\",X291/$C$291)","v":""},null,{"$f":"IF($C$291=\"\",\"\",Z291/$C$291)","v":""},null,{"$f":"IF($C$291=\"\",\"\",AB291/$C$291)","v":""},null,{"$f":"IF($C$291=\"\",\"\",AD291/$C$291)","v":""},null,{"$f":"IF($C$291=\"\",\"\",AF291/$C$291)","v":""},null,{"$f":"IF($C$291=\"\",\"\",AH291/$C$291)","v":""},null,{"$f":"IF($C$291=\"\",\"\",AJ291/$C$291)","v":""},null,{"$f":"IF($C$291=\"\",\"\",AL291/$C$291)","v":""},null,{"$f":"IF($C$291=\"\",\"\",AN291/$C$291)","v":""},null,{"$f":"IF($C$291=\"\",\"\",AP291/$C$291)","v":""},null,{"$f":"IF($C$291=\"\",\"\",AR291/$C$291)","v":""},null,{"$f":"IF($C$291=\"\",\"\",AT291/$C$291)","v":""},null,{"$f":"IF($C$291=\"\",\"\",AV291/$C$291)","v":""},null,{"$f":"IF($C$291=\"\",\"\",AX291/$C$291)","v":""},null,{"$f":"IF($C$291=\"\",\"\",AZ291/$C$291)","v":""},null,{"$f":"IF($C$291=\"\",\"\",BB291/$C$291)","v":""},null,0]
["    11.1.28",null,null,null,{"$f":"IF($C$292=\"\",\"\",F292/$C$292)","v":""},null,{"$f":"IF($C$292=\"\",\"\",H292/$C$292)","v":""},null,{"$f":"IF($C$292=\"\",\"\",J292/$C$292)","v":""},null,{"$f":"IF($C$292=\"\",\"\",L292/$C$292)","v":""},null,{"$f":"IF($C$292=\"\",\"\",N292/$C$292)","v":""},null,{"$f":"IF($C$292=\"\",\"\",P292/$C$292)","v":""},null,{"$f":"IF($C$292=\"\",\"\",R292/$C$292)","v":""},null,{"$f":"IF($C$292=\"\",\"\",T292/$C$292)","v":""},null,{"$f":"IF($C$292=\"\",\"\",V292/$C$292)","v":""},null,{"$f":"IF($C$292=\"\",\"\",X292/$C$292)","v":""},null,{"$f":"IF($C$292=\"\",\"\",Z292/$C$292)","v":""},null,{"$f":"IF($C$292=\"\",\"\",AB292/$C$292)","v":""},null,{"$f":"IF($C$292=\"\",\"\",AD292/$C$292)","v":""},null,{"$f":"IF($C$292=\"\",\"\",AF292/$C$292)","v":""},null,{"$f":"IF($C$292=\"\",\"\",AH292/$C$292)","v":""},null,{"$f":"IF($C$292=\"\",\"\",AJ292/$C$292)","v":""},null,{"$f":"IF($C$292=\"\",\"\",AL292/$C$292)","v":""},null,{"$f":"IF($C$292=\"\",\"\",AN292/$C$292)","v":""},null,{"$f":"IF($C$292=\"\",\"\",AP292/$C$292)","v":""},null,{"$f":"IF($C$292=\"\",\"\",AR292/$C$292)","v":""},null,{"$f":"IF($C$292=\"\",\"\",AT292/$C$292)","v":""},null,{"$f":"IF($C$292=\"\",\"\",AV292/$C$292)","v":""},null,{"$f":"IF($C$292=\"\",\"\",AX292/$C$292)","v":""},null,{"$f":"IF($C$292=\"\",\"\",AZ292/$C$292)","v":""},null,{"$f":"IF($C$292=\"\",\"\",BB292/$C$292)","v":""},null,0]
["    11.1.29",null,null,null,{"$f":"IF($C$293=\"\",\"\",F293/$C$293)","v":""},null,{"$f":"IF($C$293=\"\",\"\",H293/$C$293)","v":""},null,{"$f":"IF($C$293=\"\",\"\",J293/$C$293)","v":""},null,{"$f":"IF($C$293=\"\",\"\",L293/$C$293)","v":""},null,{"$f":"IF($C$293=\"\",\"\",N293/$C$293)","v":""},null,{"$f":"IF($C$293=\"\",\"\",P293/$C$293)","v":""},null,{"$f":"IF($C$293=\"\",\"\",R293/$C$293)","v":""},null,{"$f":"IF($C$293=\"\",\"\",T293/$C$293)","v":""},null,{"$f":"IF($C$293=\"\",\"\",V293/$C$293)","v":""},null,{"$f":"IF($C$293=\"\",\"\",X293/$C$293)","v":""},null,{"$f":"IF($C$293=\"\",\"\",Z293/$C$293)","v":""},null,{"$f":"IF($C$293=\"\",\"\",AB293/$C$293)","v":""},null,{"$f":"IF($C$293=\"\",\"\",AD293/$C$293)","v":""},null,{"$f":"IF($C$293=\"\",\"\",AF293/$C$293)","v":""},null,{"$f":"IF($C$293=\"\",\"\",AH293/$C$293)","v":""},null,{"$f":"IF($C$293=\"\",\"\",AJ293/$C$293)","v":""},null,{"$f":"IF($C$293=\"\",\"\",AL293/$C$293)","v":""},null,{"$f":"IF($C$293=\"\",\"\",AN293/$C$293)","v":""},null,{"$f":"IF($C$293=\"\",\"\",AP293/$C$293)","v":""},null,{"$f":"IF($C$293=\"\",\"\",AR293/$C$293)","v":""},null,{"$f":"IF($C$293=\"\",\"\",AT293/$C$293)","v":""},null,{"$f":"IF($C$293=\"\",\"\",AV293/$C$293)","v":""},null,{"$f":"IF($C$293=\"\",\"\",AX293/$C$293)","v":""},null,{"$f":"IF($C$293=\"\",\"\",AZ293/$C$293)","v":""},null,{"$f":"IF($C$293=\"\",\"\",BB293/$C$293)","v":""},null,0]
[11.2,"Draft Final Plans"]
["    11.2.1","    Revise and Submit Draft Final Plans",null,null,{"$f":"IF($C$295=\"\",\"\",F295/$C$295)","v":""},null,{"$f":"IF($C$295=\"\",\"\",H295/$C$295)","v":""},null,{"$f":"IF($C$295=\"\",\"\",J295/$C$295)","v":""},null,{"$f":"IF($C$295=\"\",\"\",L295/$C$295)","v":""},null,{"$f":"IF($C$295=\"\",\"\",N295/$C$295)","v":""},null,{"$f":"IF($C$295=\"\",\"\",P295/$C$295)","v":""},null,{"$f":"IF($C$295=\"\",\"\",R295/$C$295)","v":""},null,{"$f":"IF($C$295=\"\",\"\",T295/$C$295)","v":""},null,{"$f":"IF($C$295=\"\",\"\",V295/$C$295)","v":""},null,{"$f":"IF($C$295=\"\",\"\",X295/$C$295)","v":""},null,{"$f":"IF($C$295=\"\",\"\",Z295/$C$295)","v":""},null,{"$f":"IF($C$295=\"\",\"\",AB295/$C$295)","v":""},null,{"$f":"IF($C$295=\"\",\"\",AD295/$C$295)","v":""},null,{"$f":"IF($C$295=\"\",\"\",AF295/$C$295)","v":""},null,{"$f":"IF($C$295=\"\",\"\",AH295/$C$295)","v":""},null,{"$f":"IF($C$295=\"\",\"\",AJ295/$C$295)","v":""},null,{"$f":"IF($C$295=\"\",\"\",AL295/$C$295)","v":""},null,{"$f":"IF($C$295=\"\",\"\",AN295/$C$295)","v":""},null,{"$f":"IF($C$295=\"\",\"\",AP295/$C$295)","v":""},null,{"$f":"IF($C$295=\"\",\"\",AR295/$C$295)","v":""},null,{"$f":"IF($C$295=\"\",\"\",AT295/$C$295)","v":""},null,{"$f":"IF($C$295=\"\",\"\",AV295/$C$295)","v":""},null,{"$f":"IF($C$295=\"\",\"\",AX295/$C$295)","v":""},null,{"$f":"IF($C$295=\"\",\"\",AZ295/$C$295)","v":""},null,{"$f":"IF($C$295=\"\",\"\",BB295/$C$295)","v":""},null,{"$f":"SUM(BB295,AZ295,AX295,AV295,AT295,AR295,AP295,AN295,AL295,AJ295,AH295,AF295,AD295,AB295,Z295,X295,V295,T295,R295,P295,N295,L295,J295,H295,F295)","v":0}]
["    11.2.2",null,null,null,{"$f":"IF($C$296=\"\",\"\",F296/$C$296)","v":""},null,{"$f":"IF($C$296=\"\",\"\",H296/$C$296)","v":""},null,{"$f":"IF($C$296=\"\",\"\",J296/$C$296)","v":""},null,{"$f":"IF($C$296=\"\",\"\",L296/$C$296)","v":""},null,{"$f":"IF($C$296=\"\",\"\",N296/$C$296)","v":""},null,{"$f":"IF($C$296=\"\",\"\",P296/$C$296)","v":""},null,{"$f":"IF($C$296=\"\",\"\",R296/$C$296)","v":""},null,{"$f":"IF($C$296=\"\",\"\",T296/$C$296)","v":""},null,{"$f":"IF($C$296=\"\",\"\",V296/$C$296)","v":""},null,{"$f":"IF($C$296=\"\",\"\",X296/$C$296)","v":""},null,{"$f":"IF($C$296=\"\",\"\",Z296/$C$296)","v":""},null,{"$f":"IF($C$296=\"\",\"\",AB296/$C$296)","v":""},null,{"$f":"IF($C$296=\"\",\"\",AD296/$C$296)","v":""},null,{"$f":"IF($C$296=\"\",\"\",AF296/$C$296)","v":""},null,{"$f":"IF($C$296=\"\",\"\",AH296/$C$296)","v":""},null,{"$f":"IF($C$296=\"\",\"\",AJ296/$C$296)","v":""},null,{"$f":"IF($C$296=\"\",\"\",AL296/$C$296)","v":""},null,{"$f":"IF($C$296=\"\",\"\",AN296/$C$296)","v":""},null,{"$f":"IF($C$296=\"\",\"\",AP296/$C$296)","v":""},null,{"$f":"IF($C$296=\"\",\"\",AR296/$C$296)","v":""},null,{"$f":"IF($C$296=\"\",\"\",AT296/$C$296)","v":""},null,{"$f":"IF($C$296=\"\",\"\",AV296/$C$296)","v":""},null,{"$f":"IF($C$296=\"\",\"\",AX296/$C$296)","v":""},null,{"$f":"IF($C$296=\"\",\"\",AZ296/$C$296)","v":""},null,{"$f":"IF($C$296=\"\",\"\",BB296/$C$296)","v":""},null,0]
["    11.2.3",null,null,null,{"$f":"IF($C$297=\"\",\"\",F297/$C$297)","v":""},null,{"$f":"IF($C$297=\"\",\"\",H297/$C$297)","v":""},null,{"$f":"IF($C$297=\"\",\"\",J297/$C$297)","v":""},null,{"$f":"IF($C$297=\"\",\"\",L297/$C$297)","v":""},null,{"$f":"IF($C$297=\"\",\"\",N297/$C$297)","v":""},null,{"$f":"IF($C$297=\"\",\"\",P297/$C$297)","v":""},null,{"$f":"IF($C$297=\"\",\"\",R297/$C$297)","v":""},null,{"$f":"IF($C$297=\"\",\"\",T297/$C$297)","v":""},null,{"$f":"IF($C$297=\"\",\"\",V297/$C$297)","v":""},null,{"$f":"IF($C$297=\"\",\"\",X297/$C$297)","v":""},null,{"$f":"IF($C$297=\"\",\"\",Z297/$C$297)","v":""},null,{"$f":"IF($C$297=\"\",\"\",AB297/$C$297)","v":""},null,{"$f":"IF($C$297=\"\",\"\",AD297/$C$297)","v":""},null,{"$f":"IF($C$297=\"\",\"\",AF297/$C$297)","v":""},null,{"$f":"IF($C$297=\"\",\"\",AH297/$C$297)","v":""},null,{"$f":"IF($C$297=\"\",\"\",AJ297/$C$297)","v":""},null,{"$f":"IF($C$297=\"\",\"\",AL297/$C$297)","v":""},null,{"$f":"IF($C$297=\"\",\"\",AN297/$C$297)","v":""},null,{"$f":"IF($C$297=\"\",\"\",AP297/$C$297)","v":""},null,{"$f":"IF($C$297=\"\",\"\",AR297/$C$297)","v":""},null,{"$f":"IF($C$297=\"\",\"\",AT297/$C$297)","v":""},null,{"$f":"IF($C$297=\"\",\"\",AV297/$C$297)","v":""},null,{"$f":"IF($C$297=\"\",\"\",AX297/$C$297)","v":""},null,{"$f":"IF($C$297=\"\",\"\",AZ297/$C$297)","v":""},null,{"$f":"IF($C$297=\"\",\"\",BB297/$C$297)","v":""},null,0]
["    11.2.4",null,null,null,{"$f":"IF($C$298=\"\",\"\",F298/$C$298)","v":""},null,{"$f":"IF($C$298=\"\",\"\",H298/$C$298)","v":""},null,{"$f":"IF($C$298=\"\",\"\",J298/$C$298)","v":""},null,{"$f":"IF($C$298=\"\",\"\",L298/$C$298)","v":""},null,{"$f":"IF($C$298=\"\",\"\",N298/$C$298)","v":""},null,{"$f":"IF($C$298=\"\",\"\",P298/$C$298)","v":""},null,{"$f":"IF($C$298=\"\",\"\",R298/$C$298)","v":""},null,{"$f":"IF($C$298=\"\",\"\",T298/$C$298)","v":""},null,{"$f":"IF($C$298=\"\",\"\",V298/$C$298)","v":""},null,{"$f":"IF($C$298=\"\",\"\",X298/$C$298)","v":""},null,{"$f":"IF($C$298=\"\",\"\",Z298/$C$298)","v":""},null,{"$f":"IF($C$298=\"\",\"\",AB298/$C$298)","v":""},null,{"$f":"IF($C$298=\"\",\"\",AD298/$C$298)","v":""},null,{"$f":"IF($C$298=\"\",\"\",AF298/$C$298)","v":""},null,{"$f":"IF($C$298=\"\",\"\",AH298/$C$298)","v":""},null,{"$f":"IF($C$298=\"\",\"\",AJ298/$C$298)","v":""},null,{"$f":"IF($C$298=\"\",\"\",AL298/$C$298)","v":""},null,{"$f":"IF($C$298=\"\",\"\",AN298/$C$298)","v":""},null,{"$f":"IF($C$298=\"\",\"\",AP298/$C$298)","v":""},null,{"$f":"IF($C$298=\"\",\"\",AR298/$C$298)","v":""},null,{"$f":"IF($C$298=\"\",\"\",AT298/$C$298)","v":""},null,{"$f":"IF($C$298=\"\",\"\",AV298/$C$298)","v":""},null,{"$f":"IF($C$298=\"\",\"\",AX298/$C$298)","v":""},null,{"$f":"IF($C$298=\"\",\"\",AZ298/$C$298)","v":""},null,{"$f":"IF($C$298=\"\",\"\",BB298/$C$298)","v":""},null,0]
[11.3,"Final Plans"]
["    11.3.1","    Field Check Final Plans",null,null,{"$f":"IF($C$300=\"\",\"\",F300/$C$300)","v":""},null,{"$f":"IF($C$300=\"\",\"\",H300/$C$300)","v":""},null,{"$f":"IF($C$300=\"\",\"\",J300/$C$300)","v":""},null,{"$f":"IF($C$300=\"\",\"\",L300/$C$300)","v":""},null,{"$f":"IF($C$300=\"\",\"\",N300/$C$300)","v":""},null,{"$f":"IF($C$300=\"\",\"\",P300/$C$300)","v":""},null,{"$f":"IF($C$300=\"\",\"\",R300/$C$300)","v":""},null,{"$f":"IF($C$300=\"\",\"\",T300/$C$300)","v":""},null,{"$f":"IF($C$300=\"\",\"\",V300/$C$300)","v":""},null,{"$f":"IF($C$300=\"\",\"\",X300/$C$300)","v":""},null,{"$f":"IF($C$300=\"\",\"\",Z300/$C$300)","v":""},null,{"$f":"IF($C$300=\"\",\"\",AB300/$C$300)","v":""},null,{"$f":"IF($C$300=\"\",\"\",AD300/$C$300)","v":""},null,{"$f":"IF($C$300=\"\",\"\",AF300/$C$300)","v":""},null,{"$f":"IF($C$300=\"\",\"\",AH300/$C$300)","v":""},null,{"$f":"IF($C$300=\"\",\"\",AJ300/$C$300)","v":""},null,{"$f":"IF($C$300=\"\",\"\",AL300/$C$300)","v":""},null,{"$f":"IF($C$300=\"\",\"\",AN300/$C$300)","v":""},null,{"$f":"IF($C$300=\"\",\"\",AP300/$C$300)","v":""},null,{"$f":"IF($C$300=\"\",\"\",AR300/$C$300)","v":""},null,{"$f":"IF($C$300=\"\",\"\",AT300/$C$300)","v":""},null,{"$f":"IF($C$300=\"\",\"\",AV300/$C$300)","v":""},null,{"$f":"IF($C$300=\"\",\"\",AX300/$C$300)","v":""},null,{"$f":"IF($C$300=\"\",\"\",AZ300/$C$300)","v":""},null,{"$f":"IF($C$300=\"\",\"\",BB300/$C$300)","v":""},null,{"$f":"SUM(BB300,AZ300,AX300,AV300,AT300,AR300,AP300,AN300,AL300,AJ300,AH300,AF300,AD300,AB300,Z300,X300,V300,T300,R300,P300,N300,L300,J300,H300,F300)","v":0}]
["    11.3.2","    Perform Final Revisions and Submit Final Plans",null,null,{"$f":"IF($C$301=\"\",\"\",F301/$C$301)","v":""},null,{"$f":"IF($C$301=\"\",\"\",H301/$C$301)","v":""},null,{"$f":"IF($C$301=\"\",\"\",J301/$C$301)","v":""},null,{"$f":"IF($C$301=\"\",\"\",L301/$C$301)","v":""},null,{"$f":"IF($C$301=\"\",\"\",N301/$C$301)","v":""},null,{"$f":"IF($C$301=\"\",\"\",P301/$C$301)","v":""},null,{"$f":"IF($C$301=\"\",\"\",R301/$C$301)","v":""},null,{"$f":"IF($C$301=\"\",\"\",T301/$C$301)","v":""},null,{"$f":"IF($C$301=\"\",\"\",V301/$C$301)","v":""},null,{"$f":"IF($C$301=\"\",\"\",X301/$C$301)","v":""},null,{"$f":"IF($C$301=\"\",\"\",Z301/$C$301)","v":""},null,{"$f":"IF($C$301=\"\",\"\",AB301/$C$301)","v":""},null,{"$f":"IF($C$301=\"\",\"\",AD301/$C$301)","v":""},null,{"$f":"IF($C$301=\"\",\"\",AF301/$C$301)","v":""},null,{"$f":"IF($C$301=\"\",\"\",AH301/$C$301)","v":""},null,{"$f":"IF($C$301=\"\",\"\",AJ301/$C$301)","v":""},null,{"$f":"IF($C$301=\"\",\"\",AL301/$C$301)","v":""},null,{"$f":"IF($C$301=\"\",\"\",AN301/$C$301)","v":""},null,{"$f":"IF($C$301=\"\",\"\",AP301/$C$301)","v":""},null,{"$f":"IF($C$301=\"\",\"\",AR301/$C$301)","v":""},null,{"$f":"IF($C$301=\"\",\"\",AT301/$C$301)","v":""},null,{"$f":"IF($C$301=\"\",\"\",AV301/$C$301)","v":""},null,{"$f":"IF($C$301=\"\",\"\",AX301/$C$301)","v":""},null,{"$f":"IF($C$301=\"\",\"\",AZ301/$C$301)","v":""},null,{"$f":"IF($C$301=\"\",\"\",BB301/$C$301)","v":""},null,0]
["    11.3.3",null,null,null,{"$f":"IF($C$302=\"\",\"\",F302/$C$302)","v":""},null,{"$f":"IF($C$302=\"\",\"\",H302/$C$302)","v":""},null,{"$f":"IF($C$302=\"\",\"\",J302/$C$302)","v":""},null,{"$f":"IF($C$302=\"\",\"\",L302/$C$302)","v":""},null,{"$f":"IF($C$302=\"\",\"\",N302/$C$302)","v":""},null,{"$f":"IF($C$302=\"\",\"\",P302/$C$302)","v":""},null,{"$f":"IF($C$302=\"\",\"\",R302/$C$302)","v":""},null,{"$f":"IF($C$302=\"\",\"\",T302/$C$302)","v":""},null,{"$f":"IF($C$302=\"\",\"\",V302/$C$302)","v":""},null,{"$f":"IF($C$302=\"\",\"\",X302/$C$302)","v":""},null,{"$f":"IF($C$302=\"\",\"\",Z302/$C$302)","v":""},null,{"$f":"IF($C$302=\"\",\"\",AB302/$C$302)","v":""},null,{"$f":"IF($C$302=\"\",\"\",AD302/$C$302)","v":""},null,{"$f":"IF($C$302=\"\",\"\",AF302/$C$302)","v":""},null,{"$f":"IF($C$302=\"\",\"\",AH302/$C$302)","v":""},null,{"$f":"IF($C$302=\"\",\"\",AJ302/$C$302)","v":""},null,{"$f":"IF($C$302=\"\",\"\",AL302/$C$302)","v":""},null,{"$f":"IF($C$302=\"\",\"\",AN302/$C$302)","v":""},null,{"$f":"IF($C$302=\"\",\"\",AP302/$C$302)","v":""},null,{"$f":"IF($C$302=\"\",\"\",AR302/$C$302)","v":""},null,{"$f":"IF($C$302=\"\",\"\",AT302/$C$302)","v":""},null,{"$f":"IF($C$302=\"\",\"\",AV302/$C$302)","v":""},null,{"$f":"IF($C$302=\"\",\"\",AX302/$C$302)","v":""},null,{"$f":"IF($C$302=\"\",\"\",AZ302/$C$302)","v":""},null,{"$f":"IF($C$302=\"\",\"\",BB302/$C$302)","v":""},null,0]
["    11.3.4",null,null,null,{"$f":"IF($C$303=\"\",\"\",F303/$C$303)","v":""},null,{"$f":"IF($C$303=\"\",\"\",H303/$C$303)","v":""},null,{"$f":"IF($C$303=\"\",\"\",J303/$C$303)","v":""},null,{"$f":"IF($C$303=\"\",\"\",L303/$C$303)","v":""},null,{"$f":"IF($C$303=\"\",\"\",N303/$C$303)","v":""},null,{"$f":"IF($C$303=\"\",\"\",P303/$C$303)","v":""},null,{"$f":"IF($C$303=\"\",\"\",R303/$C$303)","v":""},null,{"$f":"IF($C$303=\"\",\"\",T303/$C$303)","v":""},null,{"$f":"IF($C$303=\"\",\"\",V303/$C$303)","v":""},null,{"$f":"IF($C$303=\"\",\"\",X303/$C$303)","v":""},null,{"$f":"IF($C$303=\"\",\"\",Z303/$C$303)","v":""},null,{"$f":"IF($C$303=\"\",\"\",AB303/$C$303)","v":""},null,{"$f":"IF($C$303=\"\",\"\",AD303/$C$303)","v":""},null,{"$f":"IF($C$303=\"\",\"\",AF303/$C$303)","v":""},null,{"$f":"IF($C$303=\"\",\"\",AH303/$C$303)","v":""},null,{"$f":"IF($C$303=\"\",\"\",AJ303/$C$303)","v":""},null,{"$f":"IF($C$303=\"\",\"\",AL303/$C$303)","v":""},null,{"$f":"IF($C$303=\"\",\"\",AN303/$C$303)","v":""},null,{"$f":"IF($C$303=\"\",\"\",AP303/$C$303)","v":""},null,{"$f":"IF($C$303=\"\",\"\",AR303/$C$303)","v":""},null,{"$f":"IF($C$303=\"\",\"\",AT303/$C$303)","v":""},null,{"$f":"IF($C$303=\"\",\"\",AV303/$C$303)","v":""},null,{"$f":"IF($C$303=\"\",\"\",AX303/$C$303)","v":""},null,{"$f":"IF($C$303=\"\",\"\",AZ303/$C$303)","v":""},null,{"$f":"IF($C$303=\"\",\"\",BB303/$C$303)","v":""},null,0]
["    11.3.5",null,null,null,{"$f":"IF($C$304=\"\",\"\",F304/$C$304)","v":""},null,{"$f":"IF($C$304=\"\",\"\",H304/$C$304)","v":""},null,{"$f":"IF($C$304=\"\",\"\",J304/$C$304)","v":""},null,{"$f":"IF($C$304=\"\",\"\",L304/$C$304)","v":""},null,{"$f":"IF($C$304=\"\",\"\",N304/$C$304)","v":""},null,{"$f":"IF($C$304=\"\",\"\",P304/$C$304)","v":""},null,{"$f":"IF($C$304=\"\",\"\",R304/$C$304)","v":""},null,{"$f":"IF($C$304=\"\",\"\",T304/$C$304)","v":""},null,{"$f":"IF($C$304=\"\",\"\",V304/$C$304)","v":""},null,{"$f":"IF($C$304=\"\",\"\",X304/$C$304)","v":""},null,{"$f":"IF($C$304=\"\",\"\",Z304/$C$304)","v":""},null,{"$f":"IF($C$304=\"\",\"\",AB304/$C$304)","v":""},null,{"$f":"IF($C$304=\"\",\"\",AD304/$C$304)","v":""},null,{"$f":"IF($C$304=\"\",\"\",AF304/$C$304)","v":""},null,{"$f":"IF($C$304=\"\",\"\",AH304/$C$304)","v":""},null,{"$f":"IF($C$304=\"\",\"\",AJ304/$C$304)","v":""},null,{"$f":"IF($C$304=\"\",\"\",AL304/$C$304)","v":""},null,{"$f":"IF($C$304=\"\",\"\",AN304/$C$304)","v":""},null,{"$f":"IF($C$304=\"\",\"\",AP304/$C$304)","v":""},null,{"$f":"IF($C$304=\"\",\"\",AR304/$C$304)","v":""},null,{"$f":"IF($C$304=\"\",\"\",AT304/$C$304)","v":""},null,{"$f":"IF($C$304=\"\",\"\",AV304/$C$304)","v":""},null,{"$f":"IF($C$304=\"\",\"\",AX304/$C$304)","v":""},null,{"$f":"IF($C$304=\"\",\"\",AZ304/$C$304)","v":""},null,{"$f":"IF($C$304=\"\",\"\",BB304/$C$304)","v":""},null,0]
[11.4,"Quality Reviews",null,null,{"$f":"IF($C$305=\"\",\"\",F305/$C$305)","v":""},null,{"$f":"IF($C$305=\"\",\"\",H305/$C$305)","v":""},null,{"$f":"IF($C$305=\"\",\"\",J305/$C$305)","v":""},null,{"$f":"IF($C$305=\"\",\"\",L305/$C$305)","v":""},null,{"$f":"IF($C$305=\"\",\"\",N305/$C$305)","v":""},null,{"$f":"IF($C$305=\"\",\"\",P305/$C$305)","v":""},null,{"$f":"IF($C$305=\"\",\"\",R305/$C$305)","v":""},null,{"$f":"IF($C$305=\"\",\"\",T305/$C$305)","v":""},null,{"$f":"IF($C$305=\"\",\"\",V305/$C$305)","v":""},null,{"$f":"IF($C$305=\"\",\"\",X305/$C$305)","v":""},null,{"$f":"IF($C$305=\"\",\"\",Z305/$C$305)","v":""},null,{"$f":"IF($C$305=\"\",\"\",AB305/$C$305)","v":""},null,{"$f":"IF($C$305=\"\",\"\",AD305/$C$305)","v":""},null,{"$f":"IF($C$305=\"\",\"\",AF305/$C$305)","v":""},null,{"$f":"IF($C$305=\"\",\"\",AH305/$C$305)","v":""},null,{"$f":"IF($C$305=\"\",\"\",AJ305/$C$305)","v":""},null,{"$f":"IF($C$305=\"\",\"\",AL305/$C$305)","v":""},null,{"$f":"IF($C$305=\"\",\"\",AN305/$C$305)","v":""},null,{"$f":"IF($C$305=\"\",\"\",AP305/$C$305)","v":""},null,{"$f":"IF($C$305=\"\",\"\",AR305/$C$305)","v":""},null,{"$f":"IF($C$305=\"\",\"\",AT305/$C$305)","v":""},null,{"$f":"IF($C$305=\"\",\"\",AV305/$C$305)","v":""},null,{"$f":"IF($C$305=\"\",\"\",AX305/$C$305)","v":""},null,{"$f":"IF($C$305=\"\",\"\",AZ305/$C$305)","v":""},null,{"$f":"IF($C$305=\"\",\"\",BB305/$C$305)","v":""},null,0]
[null,null,null,null,{"$f":"IF($C$306=\"\",\"\",F306/$C$306)","v":""},null,{"$f":"IF($C$306=\"\",\"\",H306/$C$306)","v":""},null,{"$f":"IF($C$306=\"\",\"\",J306/$C$306)","v":""},null,{"$f":"IF($C$306=\"\",\"\",L306/$C$306)","v":""},null,{"$f":"IF($C$306=\"\",\"\",N306/$C$306)","v":""},null,{"$f":"IF($C$306=\"\",\"\",P306/$C$306)","v":""},null,{"$f":"IF($C$306=\"\",\"\",R306/$C$306)","v":""},null,{"$f":"IF($C$306=\"\",\"\",T306/$C$306)","v":""},null,{"$f":"IF($C$306=\"\",\"\",V306/$C$306)","v":""},null,{"$f":"IF($C$306=\"\",\"\",X306/$C$306)","v":""},null,{"$f":"IF($C$306=\"\",\"\",Z306/$C$306)","v":""},null,{"$f":"IF($C$306=\"\",\"\",AB306/$C$306)","v":""},null,{"$f":"IF($C$306=\"\",\"\",AD306/$C$306)","v":""},null,{"$f":"IF($C$306=\"\",\"\",AF306/$C$306)","v":""},null,{"$f":"IF($C$306=\"\",\"\",AH306/$C$306)","v":""},null,{"$f":"IF($C$306=\"\",\"\",AJ306/$C$306)","v":""},null,{"$f":"IF($C$306=\"\",\"\",AL306/$C$306)","v":""},null,{"$f":"IF($C$306=\"\",\"\",AN306/$C$306)","v":""},null,{"$f":"IF($C$306=\"\",\"\",AP306/$C$306)","v":""},null,{"$f":"IF($C$306=\"\",\"\",AR306/$C$306)","v":""},null,{"$f":"IF($C$306=\"\",\"\",AT306/$C$306)","v":""},null,{"$f":"IF($C$306=\"\",\"\",AV306/$C$306)","v":""},null,{"$f":"IF($C$306=\"\",\"\",AX306/$C$306)","v":""},null,{"$f":"IF($C$306=\"\",\"\",AZ306/$C$306)","v":""},null,{"$f":"IF($C$306=\"\",\"\",BB306/$C$306)","v":""},null,0]
[null,null,null,null,{"$f":"IF($C$307=\"\",\"\",F307/$C$307)","v":""},null,{"$f":"IF($C$307=\"\",\"\",H307/$C$307)","v":""},null,{"$f":"IF($C$307=\"\",\"\",J307/$C$307)","v":""},null,{"$f":"IF($C$307=\"\",\"\",L307/$C$307)","v":""},null,{"$f":"IF($C$307=\"\",\"\",N307/$C$307)","v":""},null,{"$f":"IF($C$307=\"\",\"\",P307/$C$307)","v":""},null,{"$f":"IF($C$307=\"\",\"\",R307/$C$307)","v":""},null,{"$f":"IF($C$307=\"\",\"\",T307/$C$307)","v":""},null,{"$f":"IF($C$307=\"\",\"\",V307/$C$307)","v":""},null,{"$f":"IF($C$307=\"\",\"\",X307/$C$307)","v":""},null,{"$f":"IF($C$307=\"\",\"\",Z307/$C$307)","v":""},null,{"$f":"IF($C$307=\"\",\"\",AB307/$C$307)","v":""},null,{"$f":"IF($C$307=\"\",\"\",AD307/$C$307)","v":""},null,{"$f":"IF($C$307=\"\",\"\",AF307/$C$307)","v":""},null,{"$f":"IF($C$307=\"\",\"\",AH307/$C$307)","v":""},null,{"$f":"IF($C$307=\"\",\"\",AJ307/$C$307)","v":""},null,{"$f":"IF($C$307=\"\",\"\",AL307/$C$307)","v":""},null,{"$f":"IF($C$307=\"\",\"\",AN307/$C$307)","v":""},null,{"$f":"IF($C$307=\"\",\"\",AP307/$C$307)","v":""},null,{"$f":"IF($C$307=\"\",\"\",AR307/$C$307)","v":""},null,{"$f":"IF($C$307=\"\",\"\",AT307/$C$307)","v":""},null,{"$f":"IF($C$307=\"\",\"\",AV307/$C$307)","v":""},null,{"$f":"IF($C$307=\"\",\"\",AX307/$C$307)","v":""},null,{"$f":"IF($C$307=\"\",\"\",AZ307/$C$307)","v":""},null,{"$f":"IF($C$307=\"\",\"\",BB307/$C$307)","v":""},null,0]
[null,null,null,null,{"$f":"IF($C$308=\"\",\"\",F308/$C$308)","v":""},null,{"$f":"IF($C$308=\"\",\"\",H308/$C$308)","v":""},null,{"$f":"IF($C$308=\"\",\"\",J308/$C$308)","v":""},null,{"$f":"IF($C$308=\"\",\"\",L308/$C$308)","v":""},null,{"$f":"IF($C$308=\"\",\"\",N308/$C$308)","v":""},null,{"$f":"IF($C$308=\"\",\"\",P308/$C$308)","v":""},null,{"$f":"IF($C$308=\"\",\"\",R308/$C$308)","v":""},null,{"$f":"IF($C$308=\"\",\"\",T308/$C$308)","v":""},null,{"$f":"IF($C$308=\"\",\"\",V308/$C$308)","v":""},null,{"$f":"IF($C$308=\"\",\"\",X308/$C$308)","v":""},null,{"$f":"IF($C$308=\"\",\"\",Z308/$C$308)","v":""},null,{"$f":"IF($C$308=\"\",\"\",AB308/$C$308)","v":""},null,{"$f":"IF($C$308=\"\",\"\",AD308/$C$308)","v":""},null,{"$f":"IF($C$308=\"\",\"\",AF308/$C$308)","v":""},null,{"$f":"IF($C$308=\"\",\"\",AH308/$C$308)","v":""},null,{"$f":"IF($C$308=\"\",\"\",AJ308/$C$308)","v":""},null,{"$f":"IF($C$308=\"\",\"\",AL308/$C$308)","v":""},null,{"$f":"IF($C$308=\"\",\"\",AN308/$C$308)","v":""},null,{"$f":"IF($C$308=\"\",\"\",AP308/$C$308)","v":""},null,{"$f":"IF($C$308=\"\",\"\",AR308/$C$308)","v":""},null,{"$f":"IF($C$308=\"\",\"\",AT308/$C$308)","v":""},null,{"$f":"IF($C$308=\"\",\"\",AV308/$C$308)","v":""},null,{"$f":"IF($C$308=\"\",\"\",AX308/$C$308)","v":""},null,{"$f":"IF($C$308=\"\",\"\",AZ308/$C$308)","v":""},null,{"$f":"IF($C$308=\"\",\"\",BB308/$C$308)","v":""},null,0]
[null,null,null,null,{"$f":"IF($C$309=\"\",\"\",F309/$C$309)","v":""},null,{"$f":"IF($C$309=\"\",\"\",H309/$C$309)","v":""},null,{"$f":"IF($C$309=\"\",\"\",J309/$C$309)","v":""},null,{"$f":"IF($C$309=\"\",\"\",L309/$C$309)","v":""},null,{"$f":"IF($C$309=\"\",\"\",N309/$C$309)","v":""},null,{"$f":"IF($C$309=\"\",\"\",P309/$C$309)","v":""},null,{"$f":"IF($C$309=\"\",\"\",R309/$C$309)","v":""},null,{"$f":"IF($C$309=\"\",\"\",T309/$C$309)","v":""},null,{"$f":"IF($C$309=\"\",\"\",V309/$C$309)","v":""},null,{"$f":"IF($C$309=\"\",\"\",X309/$C$309)","v":""},null,{"$f":"IF($C$309=\"\",\"\",Z309/$C$309)","v":""},null,{"$f":"IF($C$309=\"\",\"\",AB309/$C$309)","v":""},null,{"$f":"IF($C$309=\"\",\"\",AD309/$C$309)","v":""},null,{"$f":"IF($C$309=\"\",\"\",AF309/$C$309)","v":""},null,{"$f":"IF($C$309=\"\",\"\",AH309/$C$309)","v":""},null,{"$f":"IF($C$309=\"\",\"\",AJ309/$C$309)","v":""},null,{"$f":"IF($C$309=\"\",\"\",AL309/$C$309)","v":""},null,{"$f":"IF($C$309=\"\",\"\",AN309/$C$309)","v":""},null,{"$f":"IF($C$309=\"\",\"\",AP309/$C$309)","v":""},null,{"$f":"IF($C$309=\"\",\"\",AR309/$C$309)","v":""},null,{"$f":"IF($C$309=\"\",\"\",AT309/$C$309)","v":""},null,{"$f":"IF($C$309=\"\",\"\",AV309/$C$309)","v":""},null,{"$f":"IF($C$309=\"\",\"\",AX309/$C$309)","v":""},null,{"$f":"IF($C$309=\"\",\"\",AZ309/$C$309)","v":""},null,{"$f":"IF($C$309=\"\",\"\",BB309/$C$309)","v":""},null,0]
[null,null,null,null,{"$f":"IF($C$310=\"\",\"\",F310/$C$310)","v":""},null,{"$f":"IF($C$310=\"\",\"\",H310/$C$310)","v":""},null,{"$f":"IF($C$310=\"\",\"\",J310/$C$310)","v":""},null,{"$f":"IF($C$310=\"\",\"\",L310/$C$310)","v":""},null,{"$f":"IF($C$310=\"\",\"\",N310/$C$310)","v":""},null,{"$f":"IF($C$310=\"\",\"\",P310/$C$310)","v":""},null,{"$f":"IF($C$310=\"\",\"\",R310/$C$310)","v":""},null,{"$f":"IF($C$310=\"\",\"\",T310/$C$310)","v":""},null,{"$f":"IF($C$310=\"\",\"\",V310/$C$310)","v":""},null,{"$f":"IF($C$310=\"\",\"\",X310/$C$310)","v":""},null,{"$f":"IF($C$310=\"\",\"\",Z310/$C$310)","v":""},null,{"$f":"IF($C$310=\"\",\"\",AB310/$C$310)","v":""},null,{"$f":"IF($C$310=\"\",\"\",AD310/$C$310)","v":""},null,{"$f":"IF($C$310=\"\",\"\",AF310/$C$310)","v":""},null,{"$f":"IF($C$310=\"\",\"\",AH310/$C$310)","v":""},null,{"$f":"IF($C$310=\"\",\"\",AJ310/$C$310)","v":""},null,{"$f":"IF($C$310=\"\",\"\",AL310/$C$310)","v":""},null,{"$f":"IF($C$310=\"\",\"\",AN310/$C$310)","v":""},null,{"$f":"IF($C$310=\"\",\"\",AP310/$C$310)","v":""},null,{"$f":"IF($C$310=\"\",\"\",AR310/$C$310)","v":""},null,{"$f":"IF($C$310=\"\",\"\",AT310/$C$310)","v":""},null,{"$f":"IF($C$310=\"\",\"\",AV310/$C$310)","v":""},null,{"$f":"IF($C$310=\"\",\"\",AX310/$C$310)","v":""},null,{"$f":"IF($C$310=\"\",\"\",AZ310/$C$310)","v":""},null,{"$f":"IF($C$310=\"\",\"\",BB310/$C$310)","v":""},null,0]
[null,null,null,null,{"$f":"IF($C$311=\"\",\"\",F311/$C$311)","v":""},null,{"$f":"IF($C$311=\"\",\"\",H311/$C$311)","v":""},null,{"$f":"IF($C$311=\"\",\"\",J311/$C$311)","v":""},null,{"$f":"IF($C$311=\"\",\"\",L311/$C$311)","v":""},null,{"$f":"IF($C$311=\"\",\"\",N311/$C$311)","v":""},null,{"$f":"IF($C$311=\"\",\"\",P311/$C$311)","v":""},null,{"$f":"IF($C$311=\"\",\"\",R311/$C$311)","v":""},null,{"$f":"IF($C$311=\"\",\"\",T311/$C$311)","v":""},null,{"$f":"IF($C$311=\"\",\"\",V311/$C$311)","v":""},null,{"$f":"IF($C$311=\"\",\"\",X311/$C$311)","v":""},null,{"$f":"IF($C$311=\"\",\"\",Z311/$C$311)","v":""},null,{"$f":"IF($C$311=\"\",\"\",AB311/$C$311)","v":""},null,{"$f":"IF($C$311=\"\",\"\",AD311/$C$311)","v":""},null,{"$f":"IF($C$311=\"\",\"\",AF311/$C$311)","v":""},null,{"$f":"IF($C$311=\"\",\"\",AH311/$C$311)","v":""},null,{"$f":"IF($C$311=\"\",\"\",AJ311/$C$311)","v":""},null,{"$f":"IF($C$311=\"\",\"\",AL311/$C$311)","v":""},null,{"$f":"IF($C$311=\"\",\"\",AN311/$C$311)","v":""},null,{"$f":"IF($C$311=\"\",\"\",AP311/$C$311)","v":""},null,{"$f":"IF($C$311=\"\",\"\",AR311/$C$311)","v":""},null,{"$f":"IF($C$311=\"\",\"\",AT311/$C$311)","v":""},null,{"$f":"IF($C$311=\"\",\"\",AV311/$C$311)","v":""},null,{"$f":"IF($C$311=\"\",\"\",AX311/$C$311)","v":""},null,{"$f":"IF($C$311=\"\",\"\",AZ311/$C$311)","v":""},null,{"$f":"IF($C$311=\"\",\"\",BB311/$C$311)","v":""},null,0]
[null,null,null,null,{"$f":"IF($C$312=\"\",\"\",F312/$C$312)","v":""},null,{"$f":"IF($C$312=\"\",\"\",H312/$C$312)","v":""},null,{"$f":"IF($C$312=\"\",\"\",J312/$C$312)","v":""},null,{"$f":"IF($C$312=\"\",\"\",L312/$C$312)","v":""},null,{"$f":"IF($C$312=\"\",\"\",N312/$C$312)","v":""},null,{"$f":"IF($C$312=\"\",\"\",P312/$C$312)","v":""},null,{"$f":"IF($C$312=\"\",\"\",R312/$C$312)","v":""},null,{"$f":"IF($C$312=\"\",\"\",T312/$C$312)","v":""},null,{"$f":"IF($C$312=\"\",\"\",V312/$C$312)","v":""},null,{"$f":"IF($C$312=\"\",\"\",X312/$C$312)","v":""},null,{"$f":"IF($C$312=\"\",\"\",Z312/$C$312)","v":""},null,{"$f":"IF($C$312=\"\",\"\",AB312/$C$312)","v":""},null,{"$f":"IF($C$312=\"\",\"\",AD312/$C$312)","v":""},null,{"$f":"IF($C$312=\"\",\"\",AF312/$C$312)","v":""},null,{"$f":"IF($C$312=\"\",\"\",AH312/$C$312)","v":""},null,{"$f":"IF($C$312=\"\",\"\",AJ312/$C$312)","v":""},null,{"$f":"IF($C$312=\"\",\"\",AL312/$C$312)","v":""},null,{"$f":"IF($C$312=\"\",\"\",AN312/$C$312)","v":""},null,{"$f":"IF($C$312=\"\",\"\",AP312/$C$312)","v":""},null,{"$f":"IF($C$312=\"\",\"\",AR312/$C$312)","v":""},null,{"$f":"IF($C$312=\"\",\"\",AT312/$C$312)","v":""},null,{"$f":"IF($C$312=\"\",\"\",AV312/$C$312)","v":""},null,{"$f":"IF($C$312=\"\",\"\",AX312/$C$312)","v":""},null,{"$f":"IF($C$312=\"\",\"\",AZ312/$C$312)","v":""},null,{"$f":"IF($C$312=\"\",\"\",BB312/$C$312)","v":""},null,{"$f":"SUM(BB312,AZ312,AX312,AV312,AT312,AR312,AP312,AN312,AL312,AJ312,AH312,AF312,AD312,AB312,Z312,X312,V312,T312,R312,P312,N312,L312,J312,H312,F312)","v":0}]
["TOTAL HOURS",null,null,null,null,{"$f":"SUM(F254:F312)","v":0},null,{"$f":"SUM(H254:H312)","v":0},null,{"$f":"SUM(J254:J312)","v":0},null,{"$f":"SUM(L254:L312)","v":0},null,{"$f":"SUM(N254:N312)","v":0},null,{"$f":"SUM(P254:P312)","v":0},null,{"$f":"SUM(R254:R312)","v":0},null,{"$f":"SUM(T254:T312)","v":0},null,{"$f":"SUM(V254:V312)","v":0},null,{"$f":"SUM(X254:X312)","v":0},null,{"$f":"SUM(Z254:Z312)","v":0},null,{"$f":"SUM(AB254:AB312)","v":0},null,{"$f":"SUM(AD254:AD312)","v":0},null,{"$f":"SUM(AF254:AF312)","v":0},null,{"$f":"SUM(AH254:AH312)","v":0},null,{"$f":"SUM(AJ254:AJ312)","v":0},null,{"$f":"SUM(AL254:AL312)","v":0},null,{"$f":"SUM(AN254:AN312)","v":0},null,{"$f":"SUM(AP254:AP312)","v":0},null,{"$f":"SUM(AR254:AR312)","v":0},null,{"$f":"SUM(AT254:AT312)","v":0},null,{"$f":"SUM(AV254:AV312)","v":0},null,{"$f":"SUM(AX254:AX312)","v":0},null,{"$f":"SUM(AZ254:AZ312)","v":0},null,{"$f":"SUM(BB254:BB312)","v":0},{"$f":"SUM(E313:BB313)","v":0}]
["TOTAL WORKDAYS",null,null,null,null,{"$f":"F313/8","v":0},null,{"$f":"H313/8","v":0},null,{"$f":"J313/8","v":0},null,{"$f":"L313/8","v":0},null,{"$f":"N313/8","v":0},null,{"$f":"P313/8","v":0},null,{"$f":"R313/8","v":0},null,{"$f":"T313/8","v":0},null,{"$f":"V313/8","v":0},null,{"$f":"X313/8","v":0},null,{"$f":"Z313/8","v":0},null,{"$f":"AB313/8","v":0},null,{"$f":"AD313/8","v":0},null,0,null,{"$f":"AH313/8","v":0},null,0,null,{"$f":"AL313/8","v":0},null,0,null,{"$f":"AP313/8","v":0},null,0,null,{"$f":"AT313/8","v":0},null,{"$f":"AV313/8","v":0},null,{"$f":"AX313/8","v":0},null,{"$f":"AZ313/8","v":0},null,{"$f":"BB313/8","v":0},{"$f":"SUM(E314:BB314)","v":0}]
["TOTAL RAW LABOR",null,null,null,null,{"$f":"$E$13*F313","v":0},null,{"$f":"$G$13*H313","v":0},null,{"$f":"$I$13*J313","v":0},null,{"$f":"$K$13*L313","v":0},null,{"$f":"$M$13*N313","v":0},null,{"$f":"$O$13*P313","v":0},null,{"$f":"$Q$13*R313","v":0},null,{"$f":"$S$13*T313","v":0},null,{"$f":"$U$13*V313","v":0},null,{"$f":"$W$13*X313","v":0},null,{"$f":"$Y$13*Z313","v":0},null,{"$f":"$AA$13*AB313","v":0},null,{"$f":"$AC$13*AD313","v":0},null,{"$f":"$AC$13*AF313","v":0},null,{"$f":"$AC$13*AH313","v":0},null,{"$f":"$AC$13*AJ313","v":0},null,{"$f":"$AC$13*AL313","v":0},null,{"$f":"$AC$13*AN313","v":0},null,{"$f":"$AC$13*AP313","v":0},null,{"$f":"$AC$13*AR313","v":0},null,{"$f":"$AC$13*AT313","v":0},null,{"$f":"$AC$13*AV313","v":0},null,{"$f":"$AC$13*AX313","v":0},null,{"$f":"$AC$13*AZ313","v":0},null,{"$f":"$AC$13*BB313","v":0},{"$f":"SUM(E315:BB315)","v":0}]
["Task 12.0     ","PROJECT SPECIAL PROVISIONS"]
[12.1,"Preliminary Project Special Provisions"]
["    12.1.1","    General Requirements:\n          -  Summary of Work\n          -  Construction Staging/Migration\n          -  Work within Historic Districts\n          -  Railroad Requirements\n          -  Documentation",null,null,{"$f":"IF($C$318=\"\",\"\",F318/$C$318)","v":""},null,{"$f":"IF($C$318=\"\",\"\",H318/$C$318)","v":""},null,{"$f":"IF($C$318=\"\",\"\",J318/$C$318)","v":""},null,{"$f":"IF($C$318=\"\",\"\",L318/$C$318)","v":""},null,{"$f":"IF($C$318=\"\",\"\",N318/$C$318)","v":""},null,{"$f":"IF($C$318=\"\",\"\",P318/$C$318)","v":""},null,{"$f":"IF($C$318=\"\",\"\",R318/$C$318)","v":""},null,{"$f":"IF($C$318=\"\",\"\",T318/$C$318)","v":""},null,{"$f":"IF($C$318=\"\",\"\",V318/$C$318)","v":""},null,{"$f":"IF($C$318=\"\",\"\",X318/$C$318)","v":""},null,{"$f":"IF($C$318=\"\",\"\",Z318/$C$318)","v":""},null,{"$f":"IF($C$318=\"\",\"\",AB318/$C$318)","v":""},null,{"$f":"IF($C$318=\"\",\"\",AD318/$C$318)","v":""},null,{"$f":"IF($C$318=\"\",\"\",AF318/$C$318)","v":""},null,{"$f":"IF($C$318=\"\",\"\",AH318/$C$318)","v":""},null,{"$f":"IF($C$318=\"\",\"\",AJ318/$C$318)","v":""},null,{"$f":"IF($C$318=\"\",\"\",AL318/$C$318)","v":""},null,{"$f":"IF($C$318=\"\",\"\",AN318/$C$318)","v":""},null,{"$f":"IF($C$318=\"\",\"\",AP318/$C$318)","v":""},null,{"$f":"IF($C$318=\"\",\"\",AR318/$C$318)","v":""},null,{"$f":"IF($C$318=\"\",\"\",AT318/$C$318)","v":""},null,{"$f":"IF($C$318=\"\",\"\",AV318/$C$318)","v":""},null,{"$f":"IF($C$318=\"\",\"\",AX318/$C$318)","v":""},null,{"$f":"IF($C$318=\"\",\"\",AZ318/$C$318)","v":""},null,{"$f":"IF($C$318=\"\",\"\",BB318/$C$318)","v":""},null,{"$f":"SUM(BB318,AZ318,AX318,AV318,AT318,AR318,AP318,AN318,AL318,AJ318,AH318,AF318,AD318,AB318,Z318,X318,V318,T318,R318,P318,N318,L318,J318,H318,F318)","v":0}]
["    12.1.2","    Temporary Traffic Control (Maintenance of \n    Traffic)",null,null,{"$f":"IF($C$319=\"\",\"\",F319/$C$319)","v":""},null,{"$f":"IF($C$319=\"\",\"\",H319/$C$319)","v":""},null,{"$f":"IF($C$319=\"\",\"\",J319/$C$319)","v":""},null,{"$f":"IF($C$319=\"\",\"\",L319/$C$319)","v":""},null,{"$f":"IF($C$319=\"\",\"\",N319/$C$319)","v":""},null,{"$f":"IF($C$319=\"\",\"\",P319/$C$319)","v":""},null,{"$f":"IF($C$319=\"\",\"\",R319/$C$319)","v":""},null,{"$f":"IF($C$319=\"\",\"\",T319/$C$319)","v":""},null,{"$f":"IF($C$319=\"\",\"\",V319/$C$319)","v":""},null,{"$f":"IF($C$319=\"\",\"\",X319/$C$319)","v":""},null,{"$f":"IF($C$319=\"\",\"\",Z319/$C$319)","v":""},null,{"$f":"IF($C$319=\"\",\"\",AB319/$C$319)","v":""},null,{"$f":"IF($C$319=\"\",\"\",AD319/$C$319)","v":""},null,{"$f":"IF($C$319=\"\",\"\",AF319/$C$319)","v":""},null,{"$f":"IF($C$319=\"\",\"\",AH319/$C$319)","v":""},null,{"$f":"IF($C$319=\"\",\"\",AJ319/$C$319)","v":""},null,{"$f":"IF($C$319=\"\",\"\",AL319/$C$319)","v":""},null,{"$f":"IF($C$319=\"\",\"\",AN319/$C$319)","v":""},null,{"$f":"IF($C$319=\"\",\"\",AP319/$C$319)","v":""},null,{"$f":"IF($C$319=\"\",\"\",AR319/$C$319)","v":""},null,{"$f":"IF($C$319=\"\",\"\",AT319/$C$319)","v":""},null,{"$f":"IF($C$319=\"\",\"\",AV319/$C$319)","v":""},null,{"$f":"IF($C$319=\"\",\"\",AX319/$C$319)","v":""},null,{"$f":"IF($C$319=\"\",\"\",AZ319/$C$319)","v":""},null,{"$f":"IF($C$319=\"\",\"\",BB319/$C$319)","v":""},null,0]
["    12.1.3","    Central Software",null,null,{"$f":"IF($C$320=\"\",\"\",F320/$C$320)","v":""},null,{"$f":"IF($C$320=\"\",\"\",H320/$C$320)","v":""},null,{"$f":"IF($C$320=\"\",\"\",J320/$C$320)","v":""},null,{"$f":"IF($C$320=\"\",\"\",L320/$C$320)","v":""},null,{"$f":"IF($C$320=\"\",\"\",N320/$C$320)","v":""},null,{"$f":"IF($C$320=\"\",\"\",P320/$C$320)","v":""},null,{"$f":"IF($C$320=\"\",\"\",R320/$C$320)","v":""},null,{"$f":"IF($C$320=\"\",\"\",T320/$C$320)","v":""},null,{"$f":"IF($C$320=\"\",\"\",V320/$C$320)","v":""},null,{"$f":"IF($C$320=\"\",\"\",X320/$C$320)","v":""},null,{"$f":"IF($C$320=\"\",\"\",Z320/$C$320)","v":""},null,{"$f":"IF($C$320=\"\",\"\",AB320/$C$320)","v":""},null,{"$f":"IF($C$320=\"\",\"\",AD320/$C$320)","v":""},null,{"$f":"IF($C$320=\"\",\"\",AF320/$C$320)","v":""},null,{"$f":"IF($C$320=\"\",\"\",AH320/$C$320)","v":""},null,{"$f":"IF($C$320=\"\",\"\",AJ320/$C$320)","v":""},null,{"$f":"IF($C$320=\"\",\"\",AL320/$C$320)","v":""},null,{"$f":"IF($C$320=\"\",\"\",AN320/$C$320)","v":""},null,{"$f":"IF($C$320=\"\",\"\",AP320/$C$320)","v":""},null,{"$f":"IF($C$320=\"\",\"\",AR320/$C$320)","v":""},null,{"$f":"IF($C$320=\"\",\"\",AT320/$C$320)","v":""},null,{"$f":"IF($C$320=\"\",\"\",AV320/$C$320)","v":""},null,{"$f":"IF($C$320=\"\",\"\",AX320/$C$320)","v":""},null,{"$f":"IF($C$320=\"\",\"\",AZ320/$C$320)","v":""},null,{"$f":"IF($C$320=\"\",\"\",BB320/$C$320)","v":""},null,0]
["    12.1.4","    Central Site Equipment & Building Modifications",null,null,{"$f":"IF($C$321=\"\",\"\",F321/$C$321)","v":""},null,{"$f":"IF($C$321=\"\",\"\",H321/$C$321)","v":""},null,{"$f":"IF($C$321=\"\",\"\",J321/$C$321)","v":""},null,{"$f":"IF($C$321=\"\",\"\",L321/$C$321)","v":""},null,{"$f":"IF($C$321=\"\",\"\",N321/$C$321)","v":""},null,{"$f":"IF($C$321=\"\",\"\",P321/$C$321)","v":""},null,{"$f":"IF($C$321=\"\",\"\",R321/$C$321)","v":""},null,{"$f":"IF($C$321=\"\",\"\",T321/$C$321)","v":""},null,{"$f":"IF($C$321=\"\",\"\",V321/$C$321)","v":""},null,{"$f":"IF($C$321=\"\",\"\",X321/$C$321)","v":""},null,{"$f":"IF($C$321=\"\",\"\",Z321/$C$321)","v":""},null,{"$f":"IF($C$321=\"\",\"\",AB321/$C$321)","v":""},null,{"$f":"IF($C$321=\"\",\"\",AD321/$C$321)","v":""},null,{"$f":"IF($C$321=\"\",\"\",AF321/$C$321)","v":""},null,{"$f":"IF($C$321=\"\",\"\",AH321/$C$321)","v":""},null,{"$f":"IF($C$321=\"\",\"\",AJ321/$C$321)","v":""},null,{"$f":"IF($C$321=\"\",\"\",AL321/$C$321)","v":""},null,{"$f":"IF($C$321=\"\",\"\",AN321/$C$321)","v":""},null,{"$f":"IF($C$321=\"\",\"\",AP321/$C$321)","v":""},null,{"$f":"IF($C$321=\"\",\"\",AR321/$C$321)","v":""},null,{"$f":"IF($C$321=\"\",\"\",AT321/$C$321)","v":""},null,{"$f":"IF($C$321=\"\",\"\",AV321/$C$321)","v":""},null,{"$f":"IF($C$321=\"\",\"\",AX321/$C$321)","v":""},null,{"$f":"IF($C$321=\"\",\"\",AZ321/$C$321)","v":""},null,{"$f":"IF($C$321=\"\",\"\",BB321/$C$321)","v":""},null,0]
["    12.1.5","    CCTV Monitoring System\n          -  Central Equipment\n          -  Field Equipment\n          -  Integration and Software Modification",null,null,{"$f":"IF($C$322=\"\",\"\",F322/$C$322)","v":""},null,{"$f":"IF($C$322=\"\",\"\",H322/$C$322)","v":""},null,{"$f":"IF($C$322=\"\",\"\",J322/$C$322)","v":""},null,{"$f":"IF($C$322=\"\",\"\",L322/$C$322)","v":""},null,{"$f":"IF($C$322=\"\",\"\",N322/$C$322)","v":""},null,{"$f":"IF($C$322=\"\",\"\",P322/$C$322)","v":""},null,{"$f":"IF($C$322=\"\",\"\",R322/$C$322)","v":""},null,{"$f":"IF($C$322=\"\",\"\",T322/$C$322)","v":""},null,{"$f":"IF($C$322=\"\",\"\",V322/$C$322)","v":""},null,{"$f":"IF($C$322=\"\",\"\",X322/$C$322)","v":""},null,{"$f":"IF($C$322=\"\",\"\",Z322/$C$322)","v":""},null,{"$f":"IF($C$322=\"\",\"\",AB322/$C$322)","v":""},null,{"$f":"IF($C$322=\"\",\"\",AD322/$C$322)","v":""},null,{"$f":"IF($C$322=\"\",\"\",AF322/$C$322)","v":""},null,{"$f":"IF($C$322=\"\",\"\",AH322/$C$322)","v":""},null,{"$f":"IF($C$322=\"\",\"\",AJ322/$C$322)","v":""},null,{"$f":"IF($C$322=\"\",\"\",AL322/$C$322)","v":""},null,{"$f":"IF($C$322=\"\",\"\",AN322/$C$322)","v":""},null,{"$f":"IF($C$322=\"\",\"\",AP322/$C$322)","v":""},null,{"$f":"IF($C$322=\"\",\"\",AR322/$C$322)","v":""},null,{"$f":"IF($C$322=\"\",\"\",AT322/$C$322)","v":""},null,{"$f":"IF($C$322=\"\",\"\",AV322/$C$322)","v":""},null,{"$f":"IF($C$322=\"\",\"\",AX322/$C$322)","v":""},null,{"$f":"IF($C$322=\"\",\"\",AZ322/$C$322)","v":""},null,{"$f":"IF($C$322=\"\",\"\",BB322/$C$322)","v":""},null,0]
["    12.1.6","    Ethernet Fiber-Optic Communications Network\n          -  Electronics\n          -  Drop Cables and Splice Centers\n          -  Communications Hubs ",null,null,{"$f":"IF($C$323=\"\",\"\",F323/$C$323)","v":""},null,{"$f":"IF($C$323=\"\",\"\",H323/$C$323)","v":""},null,{"$f":"IF($C$323=\"\",\"\",J323/$C$323)","v":""},null,{"$f":"IF($C$323=\"\",\"\",L323/$C$323)","v":""},null,{"$f":"IF($C$323=\"\",\"\",N323/$C$323)","v":""},null,{"$f":"IF($C$323=\"\",\"\",P323/$C$323)","v":""},null,{"$f":"IF($C$323=\"\",\"\",R323/$C$323)","v":""},null,{"$f":"IF($C$323=\"\",\"\",T323/$C$323)","v":""},null,{"$f":"IF($C$323=\"\",\"\",V323/$C$323)","v":""},null,{"$f":"IF($C$323=\"\",\"\",X323/$C$323)","v":""},null,{"$f":"IF($C$323=\"\",\"\",Z323/$C$323)","v":""},null,{"$f":"IF($C$323=\"\",\"\",AB323/$C$323)","v":""},null,{"$f":"IF($C$323=\"\",\"\",AD323/$C$323)","v":""},null,{"$f":"IF($C$323=\"\",\"\",AF323/$C$323)","v":""},null,{"$f":"IF($C$323=\"\",\"\",AH323/$C$323)","v":""},null,{"$f":"IF($C$323=\"\",\"\",AJ323/$C$323)","v":""},null,{"$f":"IF($C$323=\"\",\"\",AL323/$C$323)","v":""},null,{"$f":"IF($C$323=\"\",\"\",AN323/$C$323)","v":""},null,{"$f":"IF($C$323=\"\",\"\",AP323/$C$323)","v":""},null,{"$f":"IF($C$323=\"\",\"\",AR323/$C$323)","v":""},null,{"$f":"IF($C$323=\"\",\"\",AT323/$C$323)","v":""},null,{"$f":"IF($C$323=\"\",\"\",AV323/$C$323)","v":""},null,{"$f":"IF($C$323=\"\",\"\",AX323/$C$323)","v":""},null,{"$f":"IF($C$323=\"\",\"\",AZ323/$C$323)","v":""},null,{"$f":"IF($C$323=\"\",\"\",BB323/$C$323)","v":""},null,0]
["    12.1.7","    Wireless Communications Network\n      -  Electronics\n      -  Hardware\n      -  Software ",null,null,{"$f":"IF($C$324=\"\",\"\",F324/$C$324)","v":""},null,{"$f":"IF($C$324=\"\",\"\",H324/$C$324)","v":""},null,{"$f":"IF($C$324=\"\",\"\",J324/$C$324)","v":""},null,{"$f":"IF($C$324=\"\",\"\",L324/$C$324)","v":""},null,{"$f":"IF($C$324=\"\",\"\",N324/$C$324)","v":""},null,{"$f":"IF($C$324=\"\",\"\",P324/$C$324)","v":""},null,{"$f":"IF($C$324=\"\",\"\",R324/$C$324)","v":""},null,{"$f":"IF($C$324=\"\",\"\",T324/$C$324)","v":""},null,{"$f":"IF($C$324=\"\",\"\",V324/$C$324)","v":""},null,{"$f":"IF($C$324=\"\",\"\",X324/$C$324)","v":""},null,{"$f":"IF($C$324=\"\",\"\",Z324/$C$324)","v":""},null,{"$f":"IF($C$324=\"\",\"\",AB324/$C$324)","v":""},null,{"$f":"IF($C$324=\"\",\"\",AD324/$C$324)","v":""},null,{"$f":"IF($C$324=\"\",\"\",AF324/$C$324)","v":""},null,{"$f":"IF($C$324=\"\",\"\",AH324/$C$324)","v":""},null,{"$f":"IF($C$324=\"\",\"\",AJ324/$C$324)","v":""},null,{"$f":"IF($C$324=\"\",\"\",AL324/$C$324)","v":""},null,{"$f":"IF($C$324=\"\",\"\",AN324/$C$324)","v":""},null,{"$f":"IF($C$324=\"\",\"\",AP324/$C$324)","v":""},null,{"$f":"IF($C$324=\"\",\"\",AR324/$C$324)","v":""},null,{"$f":"IF($C$324=\"\",\"\",AT324/$C$324)","v":""},null,{"$f":"IF($C$324=\"\",\"\",AV324/$C$324)","v":""},null,{"$f":"IF($C$324=\"\",\"\",AX324/$C$324)","v":""},null,{"$f":"IF($C$324=\"\",\"\",AZ324/$C$324)","v":""},null,{"$f":"IF($C$324=\"\",\"\",BB324/$C$324)","v":""},null,0]
["    12.1.8","    Training",null,null,{"$f":"IF($C$325=\"\",\"\",F325/$C$325)","v":""},null,{"$f":"IF($C$325=\"\",\"\",H325/$C$325)","v":""},null,{"$f":"IF($C$325=\"\",\"\",J325/$C$325)","v":""},null,{"$f":"IF($C$325=\"\",\"\",L325/$C$325)","v":""},null,{"$f":"IF($C$325=\"\",\"\",N325/$C$325)","v":""},null,{"$f":"IF($C$325=\"\",\"\",P325/$C$325)","v":""},null,{"$f":"IF($C$325=\"\",\"\",R325/$C$325)","v":""},null,{"$f":"IF($C$325=\"\",\"\",T325/$C$325)","v":""},null,{"$f":"IF($C$325=\"\",\"\",V325/$C$325)","v":""},null,{"$f":"IF($C$325=\"\",\"\",X325/$C$325)","v":""},null,{"$f":"IF($C$325=\"\",\"\",Z325/$C$325)","v":""},null,{"$f":"IF($C$325=\"\",\"\",AB325/$C$325)","v":""},null,{"$f":"IF($C$325=\"\",\"\",AD325/$C$325)","v":""},null,{"$f":"IF($C$325=\"\",\"\",AF325/$C$325)","v":""},null,{"$f":"IF($C$325=\"\",\"\",AH325/$C$325)","v":""},null,{"$f":"IF($C$325=\"\",\"\",AJ325/$C$325)","v":""},null,{"$f":"IF($C$325=\"\",\"\",AL325/$C$325)","v":""},null,{"$f":"IF($C$325=\"\",\"\",AN325/$C$325)","v":""},null,{"$f":"IF($C$325=\"\",\"\",AP325/$C$325)","v":""},null,{"$f":"IF($C$325=\"\",\"\",AR325/$C$325)","v":""},null,{"$f":"IF($C$325=\"\",\"\",AT325/$C$325)","v":""},null,{"$f":"IF($C$325=\"\",\"\",AV325/$C$325)","v":""},null,{"$f":"IF($C$325=\"\",\"\",AX325/$C$325)","v":""},null,{"$f":"IF($C$325=\"\",\"\",AZ325/$C$325)","v":""},null,{"$f":"IF($C$325=\"\",\"\",BB325/$C$325)","v":""},null,0]
["    12.1.9","    Testing & Acceptance",null,null,{"$f":"IF($C$326=\"\",\"\",F326/$C$326)","v":""},null,{"$f":"IF($C$326=\"\",\"\",H326/$C$326)","v":""},null,{"$f":"IF($C$326=\"\",\"\",J326/$C$326)","v":""},null,{"$f":"IF($C$326=\"\",\"\",L326/$C$326)","v":""},null,{"$f":"IF($C$326=\"\",\"\",N326/$C$326)","v":""},null,{"$f":"IF($C$326=\"\",\"\",P326/$C$326)","v":""},null,{"$f":"IF($C$326=\"\",\"\",R326/$C$326)","v":""},null,{"$f":"IF($C$326=\"\",\"\",T326/$C$326)","v":""},null,{"$f":"IF($C$326=\"\",\"\",V326/$C$326)","v":""},null,{"$f":"IF($C$326=\"\",\"\",X326/$C$326)","v":""},null,{"$f":"IF($C$326=\"\",\"\",Z326/$C$326)","v":""},null,{"$f":"IF($C$326=\"\",\"\",AB326/$C$326)","v":""},null,{"$f":"IF($C$326=\"\",\"\",AD326/$C$326)","v":""},null,{"$f":"IF($C$326=\"\",\"\",AF326/$C$326)","v":""},null,{"$f":"IF($C$326=\"\",\"\",AH326/$C$326)","v":""},null,{"$f":"IF($C$326=\"\",\"\",AJ326/$C$326)","v":""},null,{"$f":"IF($C$326=\"\",\"\",AL326/$C$326)","v":""},null,{"$f":"IF($C$326=\"\",\"\",AN326/$C$326)","v":""},null,{"$f":"IF($C$326=\"\",\"\",AP326/$C$326)","v":""},null,{"$f":"IF($C$326=\"\",\"\",AR326/$C$326)","v":""},null,{"$f":"IF($C$326=\"\",\"\",AT326/$C$326)","v":""},null,{"$f":"IF($C$326=\"\",\"\",AV326/$C$326)","v":""},null,{"$f":"IF($C$326=\"\",\"\",AX326/$C$326)","v":""},null,{"$f":"IF($C$326=\"\",\"\",AZ326/$C$326)","v":""},null,{"$f":"IF($C$326=\"\",\"\",BB326/$C$326)","v":""},null,0]
["    12.1.10","    Incorporate & Edit Prior Project Special \n    Provisions",null,null,{"$f":"IF($C$327=\"\",\"\",F327/$C$327)","v":""},null,{"$f":"IF($C$327=\"\",\"\",H327/$C$327)","v":""},null,{"$f":"IF($C$327=\"\",\"\",J327/$C$327)","v":""},null,{"$f":"IF($C$327=\"\",\"\",L327/$C$327)","v":""},null,{"$f":"IF($C$327=\"\",\"\",N327/$C$327)","v":""},null,{"$f":"IF($C$327=\"\",\"\",P327/$C$327)","v":""},null,{"$f":"IF($C$327=\"\",\"\",R327/$C$327)","v":""},null,{"$f":"IF($C$327=\"\",\"\",T327/$C$327)","v":""},null,{"$f":"IF($C$327=\"\",\"\",V327/$C$327)","v":""},null,{"$f":"IF($C$327=\"\",\"\",X327/$C$327)","v":""},null,{"$f":"IF($C$327=\"\",\"\",Z327/$C$327)","v":""},null,{"$f":"IF($C$327=\"\",\"\",AB327/$C$327)","v":""},null,{"$f":"IF($C$327=\"\",\"\",AD327/$C$327)","v":""},null,{"$f":"IF($C$327=\"\",\"\",AF327/$C$327)","v":""},null,{"$f":"IF($C$327=\"\",\"\",AH327/$C$327)","v":""},null,{"$f":"IF($C$327=\"\",\"\",AJ327/$C$327)","v":""},null,{"$f":"IF($C$327=\"\",\"\",AL327/$C$327)","v":""},null,{"$f":"IF($C$327=\"\",\"\",AN327/$C$327)","v":""},null,{"$f":"IF($C$327=\"\",\"\",AP327/$C$327)","v":""},null,{"$f":"IF($C$327=\"\",\"\",AR327/$C$327)","v":""},null,{"$f":"IF($C$327=\"\",\"\",AT327/$C$327)","v":""},null,{"$f":"IF($C$327=\"\",\"\",AV327/$C$327)","v":""},null,{"$f":"IF($C$327=\"\",\"\",AX327/$C$327)","v":""},null,{"$f":"IF($C$327=\"\",\"\",AZ327/$C$327)","v":""},null,{"$f":"IF($C$327=\"\",\"\",BB327/$C$327)","v":""},null,0]
["    12.1.11","    Incorporate  ITSS Unit PSPs Version Updates",null,null,{"$f":"IF($C$328=\"\",\"\",F328/$C$328)","v":""},null,{"$f":"IF($C$328=\"\",\"\",H328/$C$328)","v":""},null,{"$f":"IF($C$328=\"\",\"\",J328/$C$328)","v":""},null,{"$f":"IF($C$328=\"\",\"\",L328/$C$328)","v":""},null,{"$f":"IF($C$328=\"\",\"\",N328/$C$328)","v":""},null,{"$f":"IF($C$328=\"\",\"\",P328/$C$328)","v":""},null,{"$f":"IF($C$328=\"\",\"\",R328/$C$328)","v":""},null,{"$f":"IF($C$328=\"\",\"\",T328/$C$328)","v":""},null,{"$f":"IF($C$328=\"\",\"\",V328/$C$328)","v":""},null,{"$f":"IF($C$328=\"\",\"\",X328/$C$328)","v":""},null,{"$f":"IF($C$328=\"\",\"\",Z328/$C$328)","v":""},null,{"$f":"IF($C$328=\"\",\"\",AB328/$C$328)","v":""},null,{"$f":"IF($C$328=\"\",\"\",AD328/$C$328)","v":""},null,{"$f":"IF($C$328=\"\",\"\",AF328/$C$328)","v":""},null,{"$f":"IF($C$328=\"\",\"\",AH328/$C$328)","v":""},null,{"$f":"IF($C$328=\"\",\"\",AJ328/$C$328)","v":""},null,{"$f":"IF($C$328=\"\",\"\",AL328/$C$328)","v":""},null,{"$f":"IF($C$328=\"\",\"\",AN328/$C$328)","v":""},null,{"$f":"IF($C$328=\"\",\"\",AP328/$C$328)","v":""},null,{"$f":"IF($C$328=\"\",\"\",AR328/$C$328)","v":""},null,{"$f":"IF($C$328=\"\",\"\",AT328/$C$328)","v":""},null,{"$f":"IF($C$328=\"\",\"\",AV328/$C$328)","v":""},null,{"$f":"IF($C$328=\"\",\"\",AX328/$C$328)","v":""},null,{"$f":"IF($C$328=\"\",\"\",AZ328/$C$328)","v":""},null,{"$f":"IF($C$328=\"\",\"\",BB328/$C$328)","v":""},null,0]
["    12.1.12","    Miscellaneous Project Special Provisions",null,null,{"$f":"IF($C$329=\"\",\"\",F329/$C$329)","v":""},null,{"$f":"IF($C$329=\"\",\"\",H329/$C$329)","v":""},null,{"$f":"IF($C$329=\"\",\"\",J329/$C$329)","v":""},null,{"$f":"IF($C$329=\"\",\"\",L329/$C$329)","v":""},null,{"$f":"IF($C$329=\"\",\"\",N329/$C$329)","v":""},null,{"$f":"IF($C$329=\"\",\"\",P329/$C$329)","v":""},null,{"$f":"IF($C$329=\"\",\"\",R329/$C$329)","v":""},null,{"$f":"IF($C$329=\"\",\"\",T329/$C$329)","v":""},null,{"$f":"IF($C$329=\"\",\"\",V329/$C$329)","v":""},null,{"$f":"IF($C$329=\"\",\"\",X329/$C$329)","v":""},null,{"$f":"IF($C$329=\"\",\"\",Z329/$C$329)","v":""},null,{"$f":"IF($C$329=\"\",\"\",AB329/$C$329)","v":""},null,{"$f":"IF($C$329=\"\",\"\",AD329/$C$329)","v":""},null,{"$f":"IF($C$329=\"\",\"\",AF329/$C$329)","v":""},null,{"$f":"IF($C$329=\"\",\"\",AH329/$C$329)","v":""},null,{"$f":"IF($C$329=\"\",\"\",AJ329/$C$329)","v":""},null,{"$f":"IF($C$329=\"\",\"\",AL329/$C$329)","v":""},null,{"$f":"IF($C$329=\"\",\"\",AN329/$C$329)","v":""},null,{"$f":"IF($C$329=\"\",\"\",AP329/$C$329)","v":""},null,{"$f":"IF($C$329=\"\",\"\",AR329/$C$329)","v":""},null,{"$f":"IF($C$329=\"\",\"\",AT329/$C$329)","v":""},null,{"$f":"IF($C$329=\"\",\"\",AV329/$C$329)","v":""},null,{"$f":"IF($C$329=\"\",\"\",AX329/$C$329)","v":""},null,{"$f":"IF($C$329=\"\",\"\",AZ329/$C$329)","v":""},null,{"$f":"IF($C$329=\"\",\"\",BB329/$C$329)","v":""},null,0]
["    12.1.13",null,null,null,{"$f":"IF($C$330=\"\",\"\",F330/$C$330)","v":""},null,{"$f":"IF($C$330=\"\",\"\",H330/$C$330)","v":""},null,{"$f":"IF($C$330=\"\",\"\",J330/$C$330)","v":""},null,{"$f":"IF($C$330=\"\",\"\",L330/$C$330)","v":""},null,{"$f":"IF($C$330=\"\",\"\",N330/$C$330)","v":""},null,{"$f":"IF($C$330=\"\",\"\",P330/$C$330)","v":""},null,{"$f":"IF($C$330=\"\",\"\",R330/$C$330)","v":""},null,{"$f":"IF($C$330=\"\",\"\",T330/$C$330)","v":""},null,{"$f":"IF($C$330=\"\",\"\",V330/$C$330)","v":""},null,{"$f":"IF($C$330=\"\",\"\",X330/$C$330)","v":""},null,{"$f":"IF($C$330=\"\",\"\",Z330/$C$330)","v":""},null,{"$f":"IF($C$330=\"\",\"\",AB330/$C$330)","v":""},null,{"$f":"IF($C$330=\"\",\"\",AD330/$C$330)","v":""},null,{"$f":"IF($C$330=\"\",\"\",AF330/$C$330)","v":""},null,{"$f":"IF($C$330=\"\",\"\",AH330/$C$330)","v":""},null,{"$f":"IF($C$330=\"\",\"\",AJ330/$C$330)","v":""},null,{"$f":"IF($C$330=\"\",\"\",AL330/$C$330)","v":""},null,{"$f":"IF($C$330=\"\",\"\",AN330/$C$330)","v":""},null,{"$f":"IF($C$330=\"\",\"\",AP330/$C$330)","v":""},null,{"$f":"IF($C$330=\"\",\"\",AR330/$C$330)","v":""},null,{"$f":"IF($C$330=\"\",\"\",AT330/$C$330)","v":""},null,{"$f":"IF($C$330=\"\",\"\",AV330/$C$330)","v":""},null,{"$f":"IF($C$330=\"\",\"\",AX330/$C$330)","v":""},null,{"$f":"IF($C$330=\"\",\"\",AZ330/$C$330)","v":""},null,{"$f":"IF($C$330=\"\",\"\",BB330/$C$330)","v":""},null,0]
["    12.1.14",null,null,null,{"$f":"IF($C$331=\"\",\"\",F331/$C$331)","v":""},null,{"$f":"IF($C$331=\"\",\"\",H331/$C$331)","v":""},null,{"$f":"IF($C$331=\"\",\"\",J331/$C$331)","v":""},null,{"$f":"IF($C$331=\"\",\"\",L331/$C$331)","v":""},null,{"$f":"IF($C$331=\"\",\"\",N331/$C$331)","v":""},null,{"$f":"IF($C$331=\"\",\"\",P331/$C$331)","v":""},null,{"$f":"IF($C$331=\"\",\"\",R331/$C$331)","v":""},null,{"$f":"IF($C$331=\"\",\"\",T331/$C$331)","v":""},null,{"$f":"IF($C$331=\"\",\"\",V331/$C$331)","v":""},null,{"$f":"IF($C$331=\"\",\"\",X331/$C$331)","v":""},null,{"$f":"IF($C$331=\"\",\"\",Z331/$C$331)","v":""},null,{"$f":"IF($C$331=\"\",\"\",AB331/$C$331)","v":""},null,{"$f":"IF($C$331=\"\",\"\",AD331/$C$331)","v":""},null,{"$f":"IF($C$331=\"\",\"\",AF331/$C$331)","v":""},null,{"$f":"IF($C$331=\"\",\"\",AH331/$C$331)","v":""},null,{"$f":"IF($C$331=\"\",\"\",AJ331/$C$331)","v":""},null,{"$f":"IF($C$331=\"\",\"\",AL331/$C$331)","v":""},null,{"$f":"IF($C$331=\"\",\"\",AN331/$C$331)","v":""},null,{"$f":"IF($C$331=\"\",\"\",AP331/$C$331)","v":""},null,{"$f":"IF($C$331=\"\",\"\",AR331/$C$331)","v":""},null,{"$f":"IF($C$331=\"\",\"\",AT331/$C$331)","v":""},null,{"$f":"IF($C$331=\"\",\"\",AV331/$C$331)","v":""},null,{"$f":"IF($C$331=\"\",\"\",AX331/$C$331)","v":""},null,{"$f":"IF($C$331=\"\",\"\",AZ331/$C$331)","v":""},null,{"$f":"IF($C$331=\"\",\"\",BB331/$C$331)","v":""},null,0]
["    12.1.15",null,null,null,{"$f":"IF($C$332=\"\",\"\",F332/$C$332)","v":""},null,{"$f":"IF($C$332=\"\",\"\",H332/$C$332)","v":""},null,{"$f":"IF($C$332=\"\",\"\",J332/$C$332)","v":""},null,{"$f":"IF($C$332=\"\",\"\",L332/$C$332)","v":""},null,{"$f":"IF($C$332=\"\",\"\",N332/$C$332)","v":""},null,{"$f":"IF($C$332=\"\",\"\",P332/$C$332)","v":""},null,{"$f":"IF($C$332=\"\",\"\",R332/$C$332)","v":""},null,{"$f":"IF($C$332=\"\",\"\",T332/$C$332)","v":""},null,{"$f":"IF($C$332=\"\",\"\",V332/$C$332)","v":""},null,{"$f":"IF($C$332=\"\",\"\",X332/$C$332)","v":""},null,{"$f":"IF($C$332=\"\",\"\",Z332/$C$332)","v":""},null,{"$f":"IF($C$332=\"\",\"\",AB332/$C$332)","v":""},null,{"$f":"IF($C$332=\"\",\"\",AD332/$C$332)","v":""},null,{"$f":"IF($C$332=\"\",\"\",AF332/$C$332)","v":""},null,{"$f":"IF($C$332=\"\",\"\",AH332/$C$332)","v":""},null,{"$f":"IF($C$332=\"\",\"\",AJ332/$C$332)","v":""},null,{"$f":"IF($C$332=\"\",\"\",AL332/$C$332)","v":""},null,{"$f":"IF($C$332=\"\",\"\",AN332/$C$332)","v":""},null,{"$f":"IF($C$332=\"\",\"\",AP332/$C$332)","v":""},null,{"$f":"IF($C$332=\"\",\"\",AR332/$C$332)","v":""},null,{"$f":"IF($C$332=\"\",\"\",AT332/$C$332)","v":""},null,{"$f":"IF($C$332=\"\",\"\",AV332/$C$332)","v":""},null,{"$f":"IF($C$332=\"\",\"\",AX332/$C$332)","v":""},null,{"$f":"IF($C$332=\"\",\"\",AZ332/$C$332)","v":""},null,{"$f":"IF($C$332=\"\",\"\",BB332/$C$332)","v":""},null,0]
[12.2,"Draft Final Project Special Provisions",null,null,{"$f":"IF($C$333=\"\",\"\",F333/$C$333)","v":""},null,{"$f":"IF($C$333=\"\",\"\",H333/$C$333)","v":""},null,{"$f":"IF($C$333=\"\",\"\",J333/$C$333)","v":""},null,{"$f":"IF($C$333=\"\",\"\",L333/$C$333)","v":""},null,{"$f":"IF($C$333=\"\",\"\",N333/$C$333)","v":""},null,{"$f":"IF($C$333=\"\",\"\",P333/$C$333)","v":""},null,{"$f":"IF($C$333=\"\",\"\",R333/$C$333)","v":""},null,{"$f":"IF($C$333=\"\",\"\",T333/$C$333)","v":""},null,{"$f":"IF($C$333=\"\",\"\",V333/$C$333)","v":""},null,{"$f":"IF($C$333=\"\",\"\",X333/$C$333)","v":""},null,{"$f":"IF($C$333=\"\",\"\",Z333/$C$333)","v":""},null,{"$f":"IF($C$333=\"\",\"\",AB333/$C$333)","v":""},null,{"$f":"IF($C$333=\"\",\"\",AD333/$C$333)","v":""},null,{"$f":"IF($C$333=\"\",\"\",AF333/$C$333)","v":""},null,{"$f":"IF($C$333=\"\",\"\",AH333/$C$333)","v":""},null,{"$f":"IF($C$333=\"\",\"\",AJ333/$C$333)","v":""},null,{"$f":"IF($C$333=\"\",\"\",AL333/$C$333)","v":""},null,{"$f":"IF($C$333=\"\",\"\",AN333/$C$333)","v":""},null,{"$f":"IF($C$333=\"\",\"\",AP333/$C$333)","v":""},null,{"$f":"IF($C$333=\"\",\"\",AR333/$C$333)","v":""},null,{"$f":"IF($C$333=\"\",\"\",AT333/$C$333)","v":""},null,{"$f":"IF($C$333=\"\",\"\",AV333/$C$333)","v":""},null,{"$f":"IF($C$333=\"\",\"\",AX333/$C$333)","v":""},null,{"$f":"IF($C$333=\"\",\"\",AZ333/$C$333)","v":""},null,{"$f":"IF($C$333=\"\",\"\",BB333/$C$333)","v":""},null,0]
[12.3,"Final Project Special Provisions",null,null,{"$f":"IF($C$334=\"\",\"\",F334/$C$334)","v":""},null,{"$f":"IF($C$334=\"\",\"\",H334/$C$334)","v":""},null,{"$f":"IF($C$334=\"\",\"\",J334/$C$334)","v":""},null,{"$f":"IF($C$334=\"\",\"\",L334/$C$334)","v":""},null,{"$f":"IF($C$334=\"\",\"\",N334/$C$334)","v":""},null,{"$f":"IF($C$334=\"\",\"\",P334/$C$334)","v":""},null,{"$f":"IF($C$334=\"\",\"\",R334/$C$334)","v":""},null,{"$f":"IF($C$334=\"\",\"\",T334/$C$334)","v":""},null,{"$f":"IF($C$334=\"\",\"\",V334/$C$334)","v":""},null,{"$f":"IF($C$334=\"\",\"\",X334/$C$334)","v":""},null,{"$f":"IF($C$334=\"\",\"\",Z334/$C$334)","v":""},null,{"$f":"IF($C$334=\"\",\"\",AB334/$C$334)","v":""},null,{"$f":"IF($C$334=\"\",\"\",AD334/$C$334)","v":""},null,{"$f":"IF($C$334=\"\",\"\",AF334/$C$334)","v":""},null,{"$f":"IF($C$334=\"\",\"\",AH334/$C$334)","v":""},null,{"$f":"IF($C$334=\"\",\"\",AJ334/$C$334)","v":""},null,{"$f":"IF($C$334=\"\",\"\",AL334/$C$334)","v":""},null,{"$f":"IF($C$334=\"\",\"\",AN334/$C$334)","v":""},null,{"$f":"IF($C$334=\"\",\"\",AP334/$C$334)","v":""},null,{"$f":"IF($C$334=\"\",\"\",AR334/$C$334)","v":""},null,{"$f":"IF($C$334=\"\",\"\",AT334/$C$334)","v":""},null,{"$f":"IF($C$334=\"\",\"\",AV334/$C$334)","v":""},null,{"$f":"IF($C$334=\"\",\"\",AX334/$C$334)","v":""},null,{"$f":"IF($C$334=\"\",\"\",AZ334/$C$334)","v":""},null,{"$f":"IF($C$334=\"\",\"\",BB334/$C$334)","v":""},null,0]
[12.4,"Quality Reviews ",null,null,{"$f":"IF($C$335=\"\",\"\",F335/$C$335)","v":""},null,{"$f":"IF($C$335=\"\",\"\",H335/$C$335)","v":""},null,{"$f":"IF($C$335=\"\",\"\",J335/$C$335)","v":""},null,{"$f":"IF($C$335=\"\",\"\",L335/$C$335)","v":""},null,{"$f":"IF($C$335=\"\",\"\",N335/$C$335)","v":""},null,{"$f":"IF($C$335=\"\",\"\",P335/$C$335)","v":""},null,{"$f":"IF($C$335=\"\",\"\",R335/$C$335)","v":""},null,{"$f":"IF($C$335=\"\",\"\",T335/$C$335)","v":""},null,{"$f":"IF($C$335=\"\",\"\",V335/$C$335)","v":""},null,{"$f":"IF($C$335=\"\",\"\",X335/$C$335)","v":""},null,{"$f":"IF($C$335=\"\",\"\",Z335/$C$335)","v":""},null,{"$f":"IF($C$335=\"\",\"\",AB335/$C$335)","v":""},null,{"$f":"IF($C$335=\"\",\"\",AD335/$C$335)","v":""},null,{"$f":"IF($C$335=\"\",\"\",AF335/$C$335)","v":""},null,{"$f":"IF($C$335=\"\",\"\",AH335/$C$335)","v":""},null,{"$f":"IF($C$335=\"\",\"\",AJ335/$C$335)","v":""},null,{"$f":"IF($C$335=\"\",\"\",AL335/$C$335)","v":""},null,{"$f":"IF($C$335=\"\",\"\",AN335/$C$335)","v":""},null,{"$f":"IF($C$335=\"\",\"\",AP335/$C$335)","v":""},null,{"$f":"IF($C$335=\"\",\"\",AR335/$C$335)","v":""},null,{"$f":"IF($C$335=\"\",\"\",AT335/$C$335)","v":""},null,{"$f":"IF($C$335=\"\",\"\",AV335/$C$335)","v":""},null,{"$f":"IF($C$335=\"\",\"\",AX335/$C$335)","v":""},null,{"$f":"IF($C$335=\"\",\"\",AZ335/$C$335)","v":""},null,{"$f":"IF($C$335=\"\",\"\",BB335/$C$335)","v":""},null,0]
[null,null,null,null,{"$f":"IF($C$336=\"\",\"\",F336/$C$336)","v":""},null,{"$f":"IF($C$336=\"\",\"\",H336/$C$336)","v":""},null,{"$f":"IF($C$336=\"\",\"\",J336/$C$336)","v":""},null,{"$f":"IF($C$336=\"\",\"\",L336/$C$336)","v":""},null,{"$f":"IF($C$336=\"\",\"\",N336/$C$336)","v":""},null,{"$f":"IF($C$336=\"\",\"\",P336/$C$336)","v":""},null,{"$f":"IF($C$336=\"\",\"\",R336/$C$336)","v":""},null,{"$f":"IF($C$336=\"\",\"\",T336/$C$336)","v":""},null,{"$f":"IF($C$336=\"\",\"\",V336/$C$336)","v":""},null,{"$f":"IF($C$336=\"\",\"\",X336/$C$336)","v":""},null,{"$f":"IF($C$336=\"\",\"\",Z336/$C$336)","v":""},null,{"$f":"IF($C$336=\"\",\"\",AB336/$C$336)","v":""},null,{"$f":"IF($C$336=\"\",\"\",AD336/$C$336)","v":""},null,{"$f":"IF($C$336=\"\",\"\",AF336/$C$336)","v":""},null,{"$f":"IF($C$336=\"\",\"\",AH336/$C$336)","v":""},null,{"$f":"IF($C$336=\"\",\"\",AJ336/$C$336)","v":""},null,{"$f":"IF($C$336=\"\",\"\",AL336/$C$336)","v":""},null,{"$f":"IF($C$336=\"\",\"\",AN336/$C$336)","v":""},null,{"$f":"IF($C$336=\"\",\"\",AP336/$C$336)","v":""},null,{"$f":"IF($C$336=\"\",\"\",AR336/$C$336)","v":""},null,{"$f":"IF($C$336=\"\",\"\",AT336/$C$336)","v":""},null,{"$f":"IF($C$336=\"\",\"\",AV336/$C$336)","v":""},null,{"$f":"IF($C$336=\"\",\"\",AX336/$C$336)","v":""},null,{"$f":"IF($C$336=\"\",\"\",AZ336/$C$336)","v":""},null,{"$f":"IF($C$336=\"\",\"\",BB336/$C$336)","v":""},null,0]
[null,null,null,null,{"$f":"IF($C$337=\"\",\"\",F337/$C$337)","v":""},null,{"$f":"IF($C$337=\"\",\"\",H337/$C$337)","v":""},null,{"$f":"IF($C$337=\"\",\"\",J337/$C$337)","v":""},null,{"$f":"IF($C$337=\"\",\"\",L337/$C$337)","v":""},null,{"$f":"IF($C$337=\"\",\"\",N337/$C$337)","v":""},null,{"$f":"IF($C$337=\"\",\"\",P337/$C$337)","v":""},null,{"$f":"IF($C$337=\"\",\"\",R337/$C$337)","v":""},null,{"$f":"IF($C$337=\"\",\"\",T337/$C$337)","v":""},null,{"$f":"IF($C$337=\"\",\"\",V337/$C$337)","v":""},null,{"$f":"IF($C$337=\"\",\"\",X337/$C$337)","v":""},null,{"$f":"IF($C$337=\"\",\"\",Z337/$C$337)","v":""},null,{"$f":"IF($C$337=\"\",\"\",AB337/$C$337)","v":""},null,{"$f":"IF($C$337=\"\",\"\",AD337/$C$337)","v":""},null,{"$f":"IF($C$337=\"\",\"\",AF337/$C$337)","v":""},null,{"$f":"IF($C$337=\"\",\"\",AH337/$C$337)","v":""},null,{"$f":"IF($C$337=\"\",\"\",AJ337/$C$337)","v":""},null,{"$f":"IF($C$337=\"\",\"\",AL337/$C$337)","v":""},null,{"$f":"IF($C$337=\"\",\"\",AN337/$C$337)","v":""},null,{"$f":"IF($C$337=\"\",\"\",AP337/$C$337)","v":""},null,{"$f":"IF($C$337=\"\",\"\",AR337/$C$337)","v":""},null,{"$f":"IF($C$337=\"\",\"\",AT337/$C$337)","v":""},null,{"$f":"IF($C$337=\"\",\"\",AV337/$C$337)","v":""},null,{"$f":"IF($C$337=\"\",\"\",AX337/$C$337)","v":""},null,{"$f":"IF($C$337=\"\",\"\",AZ337/$C$337)","v":""},null,{"$f":"IF($C$337=\"\",\"\",BB337/$C$337)","v":""},null,0]
[null,null,null,null,{"$f":"IF($C$338=\"\",\"\",F338/$C$338)","v":""},null,{"$f":"IF($C$338=\"\",\"\",H338/$C$338)","v":""},null,{"$f":"IF($C$338=\"\",\"\",J338/$C$338)","v":""},null,{"$f":"IF($C$338=\"\",\"\",L338/$C$338)","v":""},null,{"$f":"IF($C$338=\"\",\"\",N338/$C$338)","v":""},null,{"$f":"IF($C$338=\"\",\"\",P338/$C$338)","v":""},null,{"$f":"IF($C$338=\"\",\"\",R338/$C$338)","v":""},null,{"$f":"IF($C$338=\"\",\"\",T338/$C$338)","v":""},null,{"$f":"IF($C$338=\"\",\"\",V338/$C$338)","v":""},null,{"$f":"IF($C$338=\"\",\"\",X338/$C$338)","v":""},null,{"$f":"IF($C$338=\"\",\"\",Z338/$C$338)","v":""},null,{"$f":"IF($C$338=\"\",\"\",AB338/$C$338)","v":""},null,{"$f":"IF($C$338=\"\",\"\",AD338/$C$338)","v":""},null,{"$f":"IF($C$338=\"\",\"\",AF338/$C$338)","v":""},null,{"$f":"IF($C$338=\"\",\"\",AH338/$C$338)","v":""},null,{"$f":"IF($C$338=\"\",\"\",AJ338/$C$338)","v":""},null,{"$f":"IF($C$338=\"\",\"\",AL338/$C$338)","v":""},null,{"$f":"IF($C$338=\"\",\"\",AN338/$C$338)","v":""},null,{"$f":"IF($C$338=\"\",\"\",AP338/$C$338)","v":""},null,{"$f":"IF($C$338=\"\",\"\",AR338/$C$338)","v":""},null,{"$f":"IF($C$338=\"\",\"\",AT338/$C$338)","v":""},null,{"$f":"IF($C$338=\"\",\"\",AV338/$C$338)","v":""},null,{"$f":"IF($C$338=\"\",\"\",AX338/$C$338)","v":""},null,{"$f":"IF($C$338=\"\",\"\",AZ338/$C$338)","v":""},null,{"$f":"IF($C$338=\"\",\"\",BB338/$C$338)","v":""},null,0]
[null,null,null,null,{"$f":"IF($C$339=\"\",\"\",F339/$C$339)","v":""},null,{"$f":"IF($C$339=\"\",\"\",H339/$C$339)","v":""},null,{"$f":"IF($C$339=\"\",\"\",J339/$C$339)","v":""},null,{"$f":"IF($C$339=\"\",\"\",L339/$C$339)","v":""},null,{"$f":"IF($C$339=\"\",\"\",N339/$C$339)","v":""},null,{"$f":"IF($C$339=\"\",\"\",P339/$C$339)","v":""},null,{"$f":"IF($C$339=\"\",\"\",R339/$C$339)","v":""},null,{"$f":"IF($C$339=\"\",\"\",T339/$C$339)","v":""},null,{"$f":"IF($C$339=\"\",\"\",V339/$C$339)","v":""},null,{"$f":"IF($C$339=\"\",\"\",X339/$C$339)","v":""},null,{"$f":"IF($C$339=\"\",\"\",Z339/$C$339)","v":""},null,{"$f":"IF($C$339=\"\",\"\",AB339/$C$339)","v":""},null,{"$f":"IF($C$339=\"\",\"\",AD339/$C$339)","v":""},null,{"$f":"IF($C$339=\"\",\"\",AF339/$C$339)","v":""},null,{"$f":"IF($C$339=\"\",\"\",AH339/$C$339)","v":""},null,{"$f":"IF($C$339=\"\",\"\",AJ339/$C$339)","v":""},null,{"$f":"IF($C$339=\"\",\"\",AL339/$C$339)","v":""},null,{"$f":"IF($C$339=\"\",\"\",AN339/$C$339)","v":""},null,{"$f":"IF($C$339=\"\",\"\",AP339/$C$339)","v":""},null,{"$f":"IF($C$339=\"\",\"\",AR339/$C$339)","v":""},null,{"$f":"IF($C$339=\"\",\"\",AT339/$C$339)","v":""},null,{"$f":"IF($C$339=\"\",\"\",AV339/$C$339)","v":""},null,{"$f":"IF($C$339=\"\",\"\",AX339/$C$339)","v":""},null,{"$f":"IF($C$339=\"\",\"\",AZ339/$C$339)","v":""},null,{"$f":"IF($C$339=\"\",\"\",BB339/$C$339)","v":""},null,0]
[null,null,null,null,{"$f":"IF($C$340=\"\",\"\",F340/$C$340)","v":""},null,{"$f":"IF($C$340=\"\",\"\",H340/$C$340)","v":""},null,{"$f":"IF($C$340=\"\",\"\",J340/$C$340)","v":""},null,{"$f":"IF($C$340=\"\",\"\",L340/$C$340)","v":""},null,{"$f":"IF($C$340=\"\",\"\",N340/$C$340)","v":""},null,{"$f":"IF($C$340=\"\",\"\",P340/$C$340)","v":""},null,{"$f":"IF($C$340=\"\",\"\",R340/$C$340)","v":""},null,{"$f":"IF($C$340=\"\",\"\",T340/$C$340)","v":""},null,{"$f":"IF($C$340=\"\",\"\",V340/$C$340)","v":""},null,{"$f":"IF($C$340=\"\",\"\",X340/$C$340)","v":""},null,{"$f":"IF($C$340=\"\",\"\",Z340/$C$340)","v":""},null,{"$f":"IF($C$340=\"\",\"\",AB340/$C$340)","v":""},null,{"$f":"IF($C$340=\"\",\"\",AD340/$C$340)","v":""},null,{"$f":"IF($C$340=\"\",\"\",AF340/$C$340)","v":""},null,{"$f":"IF($C$340=\"\",\"\",AH340/$C$340)","v":""},null,{"$f":"IF($C$340=\"\",\"\",AJ340/$C$340)","v":""},null,{"$f":"IF($C$340=\"\",\"\",AL340/$C$340)","v":""},null,{"$f":"IF($C$340=\"\",\"\",AN340/$C$340)","v":""},null,{"$f":"IF($C$340=\"\",\"\",AP340/$C$340)","v":""},null,{"$f":"IF($C$340=\"\",\"\",AR340/$C$340)","v":""},null,{"$f":"IF($C$340=\"\",\"\",AT340/$C$340)","v":""},null,{"$f":"IF($C$340=\"\",\"\",AV340/$C$340)","v":""},null,{"$f":"IF($C$340=\"\",\"\",AX340/$C$340)","v":""},null,{"$f":"IF($C$340=\"\",\"\",AZ340/$C$340)","v":""},null,{"$f":"IF($C$340=\"\",\"\",BB340/$C$340)","v":""},null,0]
[null,null,null,null,{"$f":"IF($C$341=\"\",\"\",F341/$C$341)","v":""},null,{"$f":"IF($C$341=\"\",\"\",H341/$C$341)","v":""},null,{"$f":"IF($C$341=\"\",\"\",J341/$C$341)","v":""},null,{"$f":"IF($C$341=\"\",\"\",L341/$C$341)","v":""},null,{"$f":"IF($C$341=\"\",\"\",N341/$C$341)","v":""},null,{"$f":"IF($C$341=\"\",\"\",P341/$C$341)","v":""},null,{"$f":"IF($C$341=\"\",\"\",R341/$C$341)","v":""},null,{"$f":"IF($C$341=\"\",\"\",T341/$C$341)","v":""},null,{"$f":"IF($C$341=\"\",\"\",V341/$C$341)","v":""},null,{"$f":"IF($C$341=\"\",\"\",X341/$C$341)","v":""},null,{"$f":"IF($C$341=\"\",\"\",Z341/$C$341)","v":""},null,{"$f":"IF($C$341=\"\",\"\",AB341/$C$341)","v":""},null,{"$f":"IF($C$341=\"\",\"\",AD341/$C$341)","v":""},null,{"$f":"IF($C$341=\"\",\"\",AF341/$C$341)","v":""},null,{"$f":"IF($C$341=\"\",\"\",AH341/$C$341)","v":""},null,{"$f":"IF($C$341=\"\",\"\",AJ341/$C$341)","v":""},null,{"$f":"IF($C$341=\"\",\"\",AL341/$C$341)","v":""},null,{"$f":"IF($C$341=\"\",\"\",AN341/$C$341)","v":""},null,{"$f":"IF($C$341=\"\",\"\",AP341/$C$341)","v":""},null,{"$f":"IF($C$341=\"\",\"\",AR341/$C$341)","v":""},null,{"$f":"IF($C$341=\"\",\"\",AT341/$C$341)","v":""},null,{"$f":"IF($C$341=\"\",\"\",AV341/$C$341)","v":""},null,{"$f":"IF($C$341=\"\",\"\",AX341/$C$341)","v":""},null,{"$f":"IF($C$341=\"\",\"\",AZ341/$C$341)","v":""},null,{"$f":"IF($C$341=\"\",\"\",BB341/$C$341)","v":""},null,0]
[null,null,null,null,{"$f":"IF($C$342=\"\",\"\",F342/$C$342)","v":""},null,{"$f":"IF($C$342=\"\",\"\",H342/$C$342)","v":""},null,{"$f":"IF($C$342=\"\",\"\",J342/$C$342)","v":""},null,{"$f":"IF($C$342=\"\",\"\",L342/$C$342)","v":""},null,{"$f":"IF($C$342=\"\",\"\",N342/$C$342)","v":""},null,{"$f":"IF($C$342=\"\",\"\",P342/$C$342)","v":""},null,{"$f":"IF($C$342=\"\",\"\",R342/$C$342)","v":""},null,{"$f":"IF($C$342=\"\",\"\",T342/$C$342)","v":""},null,{"$f":"IF($C$342=\"\",\"\",V342/$C$342)","v":""},null,{"$f":"IF($C$342=\"\",\"\",X342/$C$342)","v":""},null,{"$f":"IF($C$342=\"\",\"\",Z342/$C$342)","v":""},null,{"$f":"IF($C$342=\"\",\"\",AB342/$C$342)","v":""},null,{"$f":"IF($C$342=\"\",\"\",AD342/$C$342)","v":""},null,{"$f":"IF($C$342=\"\",\"\",AF342/$C$342)","v":""},null,{"$f":"IF($C$342=\"\",\"\",AH342/$C$342)","v":""},null,{"$f":"IF($C$342=\"\",\"\",AJ342/$C$342)","v":""},null,{"$f":"IF($C$342=\"\",\"\",AL342/$C$342)","v":""},null,{"$f":"IF($C$342=\"\",\"\",AN342/$C$342)","v":""},null,{"$f":"IF($C$342=\"\",\"\",AP342/$C$342)","v":""},null,{"$f":"IF($C$342=\"\",\"\",AR342/$C$342)","v":""},null,{"$f":"IF($C$342=\"\",\"\",AT342/$C$342)","v":""},null,{"$f":"IF($C$342=\"\",\"\",AV342/$C$342)","v":""},null,{"$f":"IF($C$342=\"\",\"\",AX342/$C$342)","v":""},null,{"$f":"IF($C$342=\"\",\"\",AZ342/$C$342)","v":""},null,{"$f":"IF($C$342=\"\",\"\",BB342/$C$342)","v":""},null,{"$f":"SUM(BB342,AZ342,AX342,AV342,AT342,AR342,AP342,AN342,AL342,AJ342,AH342,AF342,AD342,AB342,Z342,X342,V342,T342,R342,P342,N342,L342,J342,H342,F342)","v":0}]
["TOTAL HOURS",null,null,null,null,{"$f":"SUM(F317:F342)","v":0},null,{"$f":"SUM(H317:H342)","v":0},null,{"$f":"SUM(J317:J342)","v":0},null,{"$f":"SUM(L317:L342)","v":0},null,{"$f":"SUM(N317:N342)","v":0},null,{"$f":"SUM(P317:P342)","v":0},null,{"$f":"SUM(R317:R342)","v":0},null,{"$f":"SUM(T317:T342)","v":0},null,{"$f":"SUM(V317:V342)","v":0},null,{"$f":"SUM(X317:X342)","v":0},null,{"$f":"SUM(Z317:Z342)","v":0},null,{"$f":"SUM(AB317:AB342)","v":0},null,{"$f":"SUM(AD317:AD342)","v":0},null,{"$f":"SUM(AF317:AF342)","v":0},null,{"$f":"SUM(AH317:AH342)","v":0},null,{"$f":"SUM(AJ317:AJ342)","v":0},null,{"$f":"SUM(AL317:AL342)","v":0},null,{"$f":"SUM(AN317:AN342)","v":0},null,{"$f":"SUM(AP317:AP342)","v":0},null,{"$f":"SUM(AR317:AR342)","v":0},null,{"$f":"SUM(AT317:AT342)","v":0},null,{"$f":"SUM(AV317:AV342)","v":0},null,{"$f":"SUM(AX317:AX342)","v":0},null,{"$f":"SUM(AZ317:AZ342)","v":0},null,{"$f":"SUM(BB317:BB342)","v":0},{"$f":"SUM(E343:BB343)","v":0}]
["TOTAL WORKDAYS",null,null,null,null,{"$f":"F343/8","v":0},null,{"$f":"H343/8","v":0},null,{"$f":"J343/8","v":0},null,{"$f":"L343/8","v":0},null,{"$f":"N343/8","v":0},null,{"$f":"P343/8","v":0},null,{"$f":"R343/8","v":0},null,{"$f":"T343/8","v":0},null,{"$f":"V343/8","v":0},null,{"$f":"X343/8","v":0},null,{"$f":"Z343/8","v":0},null,{"$f":"AB343/8","v":0},null,{"$f":"AD343/8","v":0},null,0,null,{"$f":"AH343/8","v":0},null,0,null,{"$f":"AL343/8","v":0},null,0,null,{"$f":"AP343/8","v":0},null,0,null,{"$f":"AT343/8","v":0},null,{"$f":"AV343/8","v":0},null,{"$f":"AX343/8","v":0},null,{"$f":"AZ343/8","v":0},null,{"$f":"BB343/8","v":0},{"$f":"SUM(E344:BB344)","v":0}]
["TOTAL RAW LABOR",null,null,null,null,{"$f":"$E$13*F343","v":0},null,{"$f":"$G$13*H343","v":0},null,{"$f":"$I$13*J343","v":0},null,{"$f":"$K$13*L343","v":0},null,{"$f":"$M$13*N343","v":0},null,{"$f":"$O$13*P343","v":0},null,{"$f":"$Q$13*R343","v":0},null,{"$f":"$S$13*T343","v":0},null,{"$f":"$U$13*V343","v":0},null,{"$f":"$W$13*X343","v":0},null,{"$f":"$Y$13*Z343","v":0},null,{"$f":"$AA$13*AB343","v":0},null,{"$f":"$AC$13*AD343","v":0},null,{"$f":"$AC$13*AF343","v":0},null,{"$f":"$AC$13*AH343","v":0},null,{"$f":"$AC$13*AJ343","v":0},null,{"$f":"$AC$13*AL343","v":0},null,{"$f":"$AC$13*AN343","v":0},null,{"$f":"$AC$13*AP343","v":0},null,{"$f":"$AC$13*AR343","v":0},null,{"$f":"$AC$13*AT343","v":0},null,{"$f":"$AC$13*AV343","v":0},null,{"$f":"$AC$13*AX343","v":0},null,{"$f":"$AC$13*AZ343","v":0},null,{"$f":"$AC$13*BB343","v":0},{"$f":"SUM(E345:BB345)","v":0}]
["Task 13.0     ","ENGINEER'S OPINION OF PROBABLE COST"]
[13.1,"Preliminary Engineer's Opinion of Probable Construction Cost",null,null,{"$f":"IF($C$347=\"\",\"\",F347/$C$347)","v":""},null,{"$f":"IF($C$347=\"\",\"\",H347/$C$347)","v":""},null,{"$f":"IF($C$347=\"\",\"\",J347/$C$347)","v":""},null,{"$f":"IF($C$347=\"\",\"\",L347/$C$347)","v":""},null,{"$f":"IF($C$347=\"\",\"\",N347/$C$347)","v":""},null,{"$f":"IF($C$347=\"\",\"\",P347/$C$347)","v":""},null,{"$f":"IF($C$347=\"\",\"\",R347/$C$347)","v":""},null,{"$f":"IF($C$347=\"\",\"\",T347/$C$347)","v":""},null,{"$f":"IF($C$347=\"\",\"\",V347/$C$347)","v":""},null,{"$f":"IF($C$347=\"\",\"\",X347/$C$347)","v":""},null,{"$f":"IF($C$347=\"\",\"\",Z347/$C$347)","v":""},null,{"$f":"IF($C$347=\"\",\"\",AB347/$C$347)","v":""},null,{"$f":"IF($C$347=\"\",\"\",AD347/$C$347)","v":""},null,{"$f":"IF($C$347=\"\",\"\",AF347/$C$347)","v":""},null,{"$f":"IF($C$347=\"\",\"\",AH347/$C$347)","v":""},null,{"$f":"IF($C$347=\"\",\"\",AJ347/$C$347)","v":""},null,{"$f":"IF($C$347=\"\",\"\",AL347/$C$347)","v":""},null,{"$f":"IF($C$347=\"\",\"\",AN347/$C$347)","v":""},null,{"$f":"IF($C$347=\"\",\"\",AP347/$C$347)","v":""},null,{"$f":"IF($C$347=\"\",\"\",AR347/$C$347)","v":""},null,{"$f":"IF($C$347=\"\",\"\",AT347/$C$347)","v":""},null,{"$f":"IF($C$347=\"\",\"\",AV347/$C$347)","v":""},null,{"$f":"IF($C$347=\"\",\"\",AX347/$C$347)","v":""},null,{"$f":"IF($C$347=\"\",\"\",AZ347/$C$347)","v":""},null,{"$f":"IF($C$347=\"\",\"\",BB347/$C$347)","v":""},null,{"$f":"SUM(BB347,AZ347,AX347,AV347,AT347,AR347,AP347,AN347,AL347,AJ347,AH347,AF347,AD347,AB347,Z347,X347,V347,T347,R347,P347,N347,L347,J347,H347,F347)","v":0}]
[13.2,"Draft Final Engineer's Opinion of Probable Construction Cost",null,null,{"$f":"IF($C$348=\"\",\"\",F348/$C$348)","v":""},null,{"$f":"IF($C$348=\"\",\"\",H348/$C$348)","v":""},null,{"$f":"IF($C$348=\"\",\"\",J348/$C$348)","v":""},null,{"$f":"IF($C$348=\"\",\"\",L348/$C$348)","v":""},null,{"$f":"IF($C$348=\"\",\"\",N348/$C$348)","v":""},null,{"$f":"IF($C$348=\"\",\"\",P348/$C$348)","v":""},null,{"$f":"IF($C$348=\"\",\"\",R348/$C$348)","v":""},null,{"$f":"IF($C$348=\"\",\"\",T348/$C$348)","v":""},null,{"$f":"IF($C$348=\"\",\"\",V348/$C$348)","v":""},null,{"$f":"IF($C$348=\"\",\"\",X348/$C$348)","v":""},null,{"$f":"IF($C$348=\"\",\"\",Z348/$C$348)","v":""},null,{"$f":"IF($C$348=\"\",\"\",AB348/$C$348)","v":""},null,{"$f":"IF($C$348=\"\",\"\",AD348/$C$348)","v":""},null,{"$f":"IF($C$348=\"\",\"\",AF348/$C$348)","v":""},null,{"$f":"IF($C$348=\"\",\"\",AH348/$C$348)","v":""},null,{"$f":"IF($C$348=\"\",\"\",AJ348/$C$348)","v":""},null,{"$f":"IF($C$348=\"\",\"\",AL348/$C$348)","v":""},null,{"$f":"IF($C$348=\"\",\"\",AN348/$C$348)","v":""},null,{"$f":"IF($C$348=\"\",\"\",AP348/$C$348)","v":""},null,{"$f":"IF($C$348=\"\",\"\",AR348/$C$348)","v":""},null,{"$f":"IF($C$348=\"\",\"\",AT348/$C$348)","v":""},null,{"$f":"IF($C$348=\"\",\"\",AV348/$C$348)","v":""},null,{"$f":"IF($C$348=\"\",\"\",AX348/$C$348)","v":""},null,{"$f":"IF($C$348=\"\",\"\",AZ348/$C$348)","v":""},null,{"$f":"IF($C$348=\"\",\"\",BB348/$C$348)","v":""},null,0]
[13.3,"Final Engineer's Opinion of Probable Construction Cost",null,null,{"$f":"IF($C$349=\"\",\"\",F349/$C$349)","v":""},null,{"$f":"IF($C$349=\"\",\"\",H349/$C$349)","v":""},null,{"$f":"IF($C$349=\"\",\"\",J349/$C$349)","v":""},null,{"$f":"IF($C$349=\"\",\"\",L349/$C$349)","v":""},null,{"$f":"IF($C$349=\"\",\"\",N349/$C$349)","v":""},null,{"$f":"IF($C$349=\"\",\"\",P349/$C$349)","v":""},null,{"$f":"IF($C$349=\"\",\"\",R349/$C$349)","v":""},null,{"$f":"IF($C$349=\"\",\"\",T349/$C$349)","v":""},null,{"$f":"IF($C$349=\"\",\"\",V349/$C$349)","v":""},null,{"$f":"IF($C$349=\"\",\"\",X349/$C$349)","v":""},null,{"$f":"IF($C$349=\"\",\"\",Z349/$C$349)","v":""},null,{"$f":"IF($C$349=\"\",\"\",AB349/$C$349)","v":""},null,{"$f":"IF($C$349=\"\",\"\",AD349/$C$349)","v":""},null,{"$f":"IF($C$349=\"\",\"\",AF349/$C$349)","v":""},null,{"$f":"IF($C$349=\"\",\"\",AH349/$C$349)","v":""},null,{"$f":"IF($C$349=\"\",\"\",AJ349/$C$349)","v":""},null,{"$f":"IF($C$349=\"\",\"\",AL349/$C$349)","v":""},null,{"$f":"IF($C$349=\"\",\"\",AN349/$C$349)","v":""},null,{"$f":"IF($C$349=\"\",\"\",AP349/$C$349)","v":""},null,{"$f":"IF($C$349=\"\",\"\",AR349/$C$349)","v":""},null,{"$f":"IF($C$349=\"\",\"\",AT349/$C$349)","v":""},null,{"$f":"IF($C$349=\"\",\"\",AV349/$C$349)","v":""},null,{"$f":"IF($C$349=\"\",\"\",AX349/$C$349)","v":""},null,{"$f":"IF($C$349=\"\",\"\",AZ349/$C$349)","v":""},null,{"$f":"IF($C$349=\"\",\"\",BB349/$C$349)","v":""},null,0]
[null,null,null,null,{"$f":"IF($C$350=\"\",\"\",F350/$C$350)","v":""},null,{"$f":"IF($C$350=\"\",\"\",H350/$C$350)","v":""},null,{"$f":"IF($C$350=\"\",\"\",J350/$C$350)","v":""},null,{"$f":"IF($C$350=\"\",\"\",L350/$C$350)","v":""},null,{"$f":"IF($C$350=\"\",\"\",N350/$C$350)","v":""},null,{"$f":"IF($C$350=\"\",\"\",P350/$C$350)","v":""},null,{"$f":"IF($C$350=\"\",\"\",R350/$C$350)","v":""},null,{"$f":"IF($C$350=\"\",\"\",T350/$C$350)","v":""},null,{"$f":"IF($C$350=\"\",\"\",V350/$C$350)","v":""},null,{"$f":"IF($C$350=\"\",\"\",X350/$C$350)","v":""},null,{"$f":"IF($C$350=\"\",\"\",Z350/$C$350)","v":""},null,{"$f":"IF($C$350=\"\",\"\",AB350/$C$350)","v":""},null,{"$f":"IF($C$350=\"\",\"\",AD350/$C$350)","v":""},null,{"$f":"IF($C$350=\"\",\"\",AF350/$C$350)","v":""},null,{"$f":"IF($C$350=\"\",\"\",AH350/$C$350)","v":""},null,{"$f":"IF($C$350=\"\",\"\",AJ350/$C$350)","v":""},null,{"$f":"IF($C$350=\"\",\"\",AL350/$C$350)","v":""},null,{"$f":"IF($C$350=\"\",\"\",AN350/$C$350)","v":""},null,{"$f":"IF($C$350=\"\",\"\",AP350/$C$350)","v":""},null,{"$f":"IF($C$350=\"\",\"\",AR350/$C$350)","v":""},null,{"$f":"IF($C$350=\"\",\"\",AT350/$C$350)","v":""},null,{"$f":"IF($C$350=\"\",\"\",AV350/$C$350)","v":""},null,{"$f":"IF($C$350=\"\",\"\",AX350/$C$350)","v":""},null,{"$f":"IF($C$350=\"\",\"\",AZ350/$C$350)","v":""},null,{"$f":"IF($C$350=\"\",\"\",BB350/$C$350)","v":""},null,0]
[null,null,null,null,{"$f":"IF($C$351=\"\",\"\",F351/$C$351)","v":""},null,{"$f":"IF($C$351=\"\",\"\",H351/$C$351)","v":""},null,{"$f":"IF($C$351=\"\",\"\",J351/$C$351)","v":""},null,{"$f":"IF($C$351=\"\",\"\",L351/$C$351)","v":""},null,{"$f":"IF($C$351=\"\",\"\",N351/$C$351)","v":""},null,{"$f":"IF($C$351=\"\",\"\",P351/$C$351)","v":""},null,{"$f":"IF($C$351=\"\",\"\",R351/$C$351)","v":""},null,{"$f":"IF($C$351=\"\",\"\",T351/$C$351)","v":""},null,{"$f":"IF($C$351=\"\",\"\",V351/$C$351)","v":""},null,{"$f":"IF($C$351=\"\",\"\",X351/$C$351)","v":""},null,{"$f":"IF($C$351=\"\",\"\",Z351/$C$351)","v":""},null,{"$f":"IF($C$351=\"\",\"\",AB351/$C$351)","v":""},null,{"$f":"IF($C$351=\"\",\"\",AD351/$C$351)","v":""},null,{"$f":"IF($C$351=\"\",\"\",AF351/$C$351)","v":""},null,{"$f":"IF($C$351=\"\",\"\",AH351/$C$351)","v":""},null,{"$f":"IF($C$351=\"\",\"\",AJ351/$C$351)","v":""},null,{"$f":"IF($C$351=\"\",\"\",AL351/$C$351)","v":""},null,{"$f":"IF($C$351=\"\",\"\",AN351/$C$351)","v":""},null,{"$f":"IF($C$351=\"\",\"\",AP351/$C$351)","v":""},null,{"$f":"IF($C$351=\"\",\"\",AR351/$C$351)","v":""},null,{"$f":"IF($C$351=\"\",\"\",AT351/$C$351)","v":""},null,{"$f":"IF($C$351=\"\",\"\",AV351/$C$351)","v":""},null,{"$f":"IF($C$351=\"\",\"\",AX351/$C$351)","v":""},null,{"$f":"IF($C$351=\"\",\"\",AZ351/$C$351)","v":""},null,{"$f":"IF($C$351=\"\",\"\",BB351/$C$351)","v":""},null,0]
[null,null,null,null,{"$f":"IF($C$352=\"\",\"\",F352/$C$352)","v":""},null,{"$f":"IF($C$352=\"\",\"\",H352/$C$352)","v":""},null,{"$f":"IF($C$352=\"\",\"\",J352/$C$352)","v":""},null,{"$f":"IF($C$352=\"\",\"\",L352/$C$352)","v":""},null,{"$f":"IF($C$352=\"\",\"\",N352/$C$352)","v":""},null,{"$f":"IF($C$352=\"\",\"\",P352/$C$352)","v":""},null,{"$f":"IF($C$352=\"\",\"\",R352/$C$352)","v":""},null,{"$f":"IF($C$352=\"\",\"\",T352/$C$352)","v":""},null,{"$f":"IF($C$352=\"\",\"\",V352/$C$352)","v":""},null,{"$f":"IF($C$352=\"\",\"\",X352/$C$352)","v":""},null,{"$f":"IF($C$352=\"\",\"\",Z352/$C$352)","v":""},null,{"$f":"IF($C$352=\"\",\"\",AB352/$C$352)","v":""},null,{"$f":"IF($C$352=\"\",\"\",AD352/$C$352)","v":""},null,{"$f":"IF($C$352=\"\",\"\",AF352/$C$352)","v":""},null,{"$f":"IF($C$352=\"\",\"\",AH352/$C$352)","v":""},null,{"$f":"IF($C$352=\"\",\"\",AJ352/$C$352)","v":""},null,{"$f":"IF($C$352=\"\",\"\",AL352/$C$352)","v":""},null,{"$f":"IF($C$352=\"\",\"\",AN352/$C$352)","v":""},null,{"$f":"IF($C$352=\"\",\"\",AP352/$C$352)","v":""},null,{"$f":"IF($C$352=\"\",\"\",AR352/$C$352)","v":""},null,{"$f":"IF($C$352=\"\",\"\",AT352/$C$352)","v":""},null,{"$f":"IF($C$352=\"\",\"\",AV352/$C$352)","v":""},null,{"$f":"IF($C$352=\"\",\"\",AX352/$C$352)","v":""},null,{"$f":"IF($C$352=\"\",\"\",AZ352/$C$352)","v":""},null,{"$f":"IF($C$352=\"\",\"\",BB352/$C$352)","v":""},null,0]
[null,null,null,null,{"$f":"IF($C$353=\"\",\"\",F353/$C$353)","v":""},null,{"$f":"IF($C$353=\"\",\"\",H353/$C$353)","v":""},null,{"$f":"IF($C$353=\"\",\"\",J353/$C$353)","v":""},null,{"$f":"IF($C$353=\"\",\"\",L353/$C$353)","v":""},null,{"$f":"IF($C$353=\"\",\"\",N353/$C$353)","v":""},null,{"$f":"IF($C$353=\"\",\"\",P353/$C$353)","v":""},null,{"$f":"IF($C$353=\"\",\"\",R353/$C$353)","v":""},null,{"$f":"IF($C$353=\"\",\"\",T353/$C$353)","v":""},null,{"$f":"IF($C$353=\"\",\"\",V353/$C$353)","v":""},null,{"$f":"IF($C$353=\"\",\"\",X353/$C$353)","v":""},null,{"$f":"IF($C$353=\"\",\"\",Z353/$C$353)","v":""},null,{"$f":"IF($C$353=\"\",\"\",AB353/$C$353)","v":""},null,{"$f":"IF($C$353=\"\",\"\",AD353/$C$353)","v":""},null,{"$f":"IF($C$353=\"\",\"\",AF353/$C$353)","v":""},null,{"$f":"IF($C$353=\"\",\"\",AH353/$C$353)","v":""},null,{"$f":"IF($C$353=\"\",\"\",AJ353/$C$353)","v":""},null,{"$f":"IF($C$353=\"\",\"\",AL353/$C$353)","v":""},null,{"$f":"IF($C$353=\"\",\"\",AN353/$C$353)","v":""},null,{"$f":"IF($C$353=\"\",\"\",AP353/$C$353)","v":""},null,{"$f":"IF($C$353=\"\",\"\",AR353/$C$353)","v":""},null,{"$f":"IF($C$353=\"\",\"\",AT353/$C$353)","v":""},null,{"$f":"IF($C$353=\"\",\"\",AV353/$C$353)","v":""},null,{"$f":"IF($C$353=\"\",\"\",AX353/$C$353)","v":""},null,{"$f":"IF($C$353=\"\",\"\",AZ353/$C$353)","v":""},null,{"$f":"IF($C$353=\"\",\"\",BB353/$C$353)","v":""},null,0]
[null,null,null,null,{"$f":"IF($C$354=\"\",\"\",F354/$C$354)","v":""},null,{"$f":"IF($C$354=\"\",\"\",H354/$C$354)","v":""},null,{"$f":"IF($C$354=\"\",\"\",J354/$C$354)","v":""},null,{"$f":"IF($C$354=\"\",\"\",L354/$C$354)","v":""},null,{"$f":"IF($C$354=\"\",\"\",N354/$C$354)","v":""},null,{"$f":"IF($C$354=\"\",\"\",P354/$C$354)","v":""},null,{"$f":"IF($C$354=\"\",\"\",R354/$C$354)","v":""},null,{"$f":"IF($C$354=\"\",\"\",T354/$C$354)","v":""},null,{"$f":"IF($C$354=\"\",\"\",V354/$C$354)","v":""},null,{"$f":"IF($C$354=\"\",\"\",X354/$C$354)","v":""},null,{"$f":"IF($C$354=\"\",\"\",Z354/$C$354)","v":""},null,{"$f":"IF($C$354=\"\",\"\",AB354/$C$354)","v":""},null,{"$f":"IF($C$354=\"\",\"\",AD354/$C$354)","v":""},null,{"$f":"IF($C$354=\"\",\"\",AF354/$C$354)","v":""},null,{"$f":"IF($C$354=\"\",\"\",AH354/$C$354)","v":""},null,{"$f":"IF($C$354=\"\",\"\",AJ354/$C$354)","v":""},null,{"$f":"IF($C$354=\"\",\"\",AL354/$C$354)","v":""},null,{"$f":"IF($C$354=\"\",\"\",AN354/$C$354)","v":""},null,{"$f":"IF($C$354=\"\",\"\",AP354/$C$354)","v":""},null,{"$f":"IF($C$354=\"\",\"\",AR354/$C$354)","v":""},null,{"$f":"IF($C$354=\"\",\"\",AT354/$C$354)","v":""},null,{"$f":"IF($C$354=\"\",\"\",AV354/$C$354)","v":""},null,{"$f":"IF($C$354=\"\",\"\",AX354/$C$354)","v":""},null,{"$f":"IF($C$354=\"\",\"\",AZ354/$C$354)","v":""},null,{"$f":"IF($C$354=\"\",\"\",BB354/$C$354)","v":""},null,0]
[null,null,null,null,{"$f":"IF($C$355=\"\",\"\",F355/$C$355)","v":""},null,{"$f":"IF($C$355=\"\",\"\",H355/$C$355)","v":""},null,{"$f":"IF($C$355=\"\",\"\",J355/$C$355)","v":""},null,{"$f":"IF($C$355=\"\",\"\",L355/$C$355)","v":""},null,{"$f":"IF($C$355=\"\",\"\",N355/$C$355)","v":""},null,{"$f":"IF($C$355=\"\",\"\",P355/$C$355)","v":""},null,{"$f":"IF($C$355=\"\",\"\",R355/$C$355)","v":""},null,{"$f":"IF($C$355=\"\",\"\",T355/$C$355)","v":""},null,{"$f":"IF($C$355=\"\",\"\",V355/$C$355)","v":""},null,{"$f":"IF($C$355=\"\",\"\",X355/$C$355)","v":""},null,{"$f":"IF($C$355=\"\",\"\",Z355/$C$355)","v":""},null,{"$f":"IF($C$355=\"\",\"\",AB355/$C$355)","v":""},null,{"$f":"IF($C$355=\"\",\"\",AD355/$C$355)","v":""},null,{"$f":"IF($C$355=\"\",\"\",AF355/$C$355)","v":""},null,{"$f":"IF($C$355=\"\",\"\",AH355/$C$355)","v":""},null,{"$f":"IF($C$355=\"\",\"\",AJ355/$C$355)","v":""},null,{"$f":"IF($C$355=\"\",\"\",AL355/$C$355)","v":""},null,{"$f":"IF($C$355=\"\",\"\",AN355/$C$355)","v":""},null,{"$f":"IF($C$355=\"\",\"\",AP355/$C$355)","v":""},null,{"$f":"IF($C$355=\"\",\"\",AR355/$C$355)","v":""},null,{"$f":"IF($C$355=\"\",\"\",AT355/$C$355)","v":""},null,{"$f":"IF($C$355=\"\",\"\",AV355/$C$355)","v":""},null,{"$f":"IF($C$355=\"\",\"\",AX355/$C$355)","v":""},null,{"$f":"IF($C$355=\"\",\"\",AZ355/$C$355)","v":""},null,{"$f":"IF($C$355=\"\",\"\",BB355/$C$355)","v":""},null,0]
[null,null,null,null,{"$f":"IF($C$356=\"\",\"\",F356/$C$356)","v":""},null,{"$f":"IF($C$356=\"\",\"\",H356/$C$356)","v":""},null,{"$f":"IF($C$356=\"\",\"\",J356/$C$356)","v":""},null,{"$f":"IF($C$356=\"\",\"\",L356/$C$356)","v":""},null,{"$f":"IF($C$356=\"\",\"\",N356/$C$356)","v":""},null,{"$f":"IF($C$356=\"\",\"\",P356/$C$356)","v":""},null,{"$f":"IF($C$356=\"\",\"\",R356/$C$356)","v":""},null,{"$f":"IF($C$356=\"\",\"\",T356/$C$356)","v":""},null,{"$f":"IF($C$356=\"\",\"\",V356/$C$356)","v":""},null,{"$f":"IF($C$356=\"\",\"\",X356/$C$356)","v":""},null,{"$f":"IF($C$356=\"\",\"\",Z356/$C$356)","v":""},null,{"$f":"IF($C$356=\"\",\"\",AB356/$C$356)","v":""},null,{"$f":"IF($C$356=\"\",\"\",AD356/$C$356)","v":""},null,{"$f":"IF($C$356=\"\",\"\",AF356/$C$356)","v":""},null,{"$f":"IF($C$356=\"\",\"\",AH356/$C$356)","v":""},null,{"$f":"IF($C$356=\"\",\"\",AJ356/$C$356)","v":""},null,{"$f":"IF($C$356=\"\",\"\",AL356/$C$356)","v":""},null,{"$f":"IF($C$356=\"\",\"\",AN356/$C$356)","v":""},null,{"$f":"IF($C$356=\"\",\"\",AP356/$C$356)","v":""},null,{"$f":"IF($C$356=\"\",\"\",AR356/$C$356)","v":""},null,{"$f":"IF($C$356=\"\",\"\",AT356/$C$356)","v":""},null,{"$f":"IF($C$356=\"\",\"\",AV356/$C$356)","v":""},null,{"$f":"IF($C$356=\"\",\"\",AX356/$C$356)","v":""},null,{"$f":"IF($C$356=\"\",\"\",AZ356/$C$356)","v":""},null,{"$f":"IF($C$356=\"\",\"\",BB356/$C$356)","v":""},null,{"$f":"SUM(BB356,AZ356,AX356,AV356,AT356,AR356,AP356,AN356,AL356,AJ356,AH356,AF356,AD356,AB356,Z356,X356,V356,T356,R356,P356,N356,L356,J356,H356,F356)","v":0}]
["TOTAL HOURS",null,null,null,null,{"$f":"SUM(F347:F356)","v":0},null,{"$f":"SUM(H347:H356)","v":0},null,{"$f":"SUM(J347:J356)","v":0},null,{"$f":"SUM(L347:L356)","v":0},null,{"$f":"SUM(N347:N356)","v":0},null,{"$f":"SUM(P347:P356)","v":0},null,{"$f":"SUM(R347:R356)","v":0},null,{"$f":"SUM(T347:T356)","v":0},null,{"$f":"SUM(V347:V356)","v":0},null,{"$f":"SUM(X347:X356)","v":0},null,{"$f":"SUM(Z347:Z356)","v":0},null,{"$f":"SUM(AB347:AB356)","v":0},null,{"$f":"SUM(AD347:AD356)","v":0},null,{"$f":"SUM(AF347:AF356)","v":0},null,{"$f":"SUM(AH347:AH356)","v":0},null,{"$f":"SUM(AJ347:AJ356)","v":0},null,{"$f":"SUM(AL347:AL356)","v":0},null,{"$f":"SUM(AN347:AN356)","v":0},null,{"$f":"SUM(AP347:AP356)","v":0},null,{"$f":"SUM(AR347:AR356)","v":0},null,{"$f":"SUM(AT347:AT356)","v":0},null,{"$f":"SUM(AV347:AV356)","v":0},null,{"$f":"SUM(AX347:AX356)","v":0},null,{"$f":"SUM(AZ347:AZ356)","v":0},null,{"$f":"SUM(BB347:BB356)","v":0},{"$f":"SUM(E357:BB357)","v":0}]
["TOTAL WORKDAYS",null,null,null,null,{"$f":"F357/8","v":0},null,{"$f":"H357/8","v":0},null,{"$f":"J357/8","v":0},null,{"$f":"L357/8","v":0},null,{"$f":"N357/8","v":0},null,{"$f":"P357/8","v":0},null,{"$f":"R357/8","v":0},null,{"$f":"T357/8","v":0},null,{"$f":"V357/8","v":0},null,{"$f":"X357/8","v":0},null,{"$f":"Z357/8","v":0},null,{"$f":"AB357/8","v":0},null,{"$f":"AD357/8","v":0},null,0,null,{"$f":"AH357/8","v":0},null,0,null,{"$f":"AL357/8","v":0},null,0,null,{"$f":"AP357/8","v":0},null,0,null,{"$f":"AT357/8","v":0},null,{"$f":"AV357/8","v":0},null,{"$f":"AX357/8","v":0},null,{"$f":"AZ357/8","v":0},null,{"$f":"BB357/8","v":0},{"$f":"SUM(E358:BB358)","v":0}]
["TOTAL RAW LABOR",null,null,null,null,{"$f":"$E$13*F357","v":0},null,{"$f":"$G$13*H357","v":0},null,{"$f":"$I$13*J357","v":0},null,{"$f":"$K$13*L357","v":0},null,{"$f":"$M$13*N357","v":0},null,{"$f":"$O$13*P357","v":0},null,{"$f":"$Q$13*R357","v":0},null,{"$f":"$S$13*T357","v":0},null,{"$f":"$U$13*V357","v":0},null,{"$f":"$W$13*X357","v":0},null,{"$f":"$Y$13*Z357","v":0},null,{"$f":"$AA$13*AB357","v":0},null,{"$f":"$AC$13*AD357","v":0},null,{"$f":"$AC$13*AF357","v":0},null,{"$f":"$AC$13*AH357","v":0},null,{"$f":"$AC$13*AJ357","v":0},null,{"$f":"$AC$13*AL357","v":0},null,{"$f":"$AC$13*AN357","v":0},null,{"$f":"$AC$13*AP357","v":0},null,{"$f":"$AC$13*AR357","v":0},null,{"$f":"$AC$13*AT357","v":0},null,{"$f":"$AC$13*AV357","v":0},null,{"$f":"$AC$13*AX357","v":0},null,{"$f":"$AC$13*AZ357","v":0},null,{"$f":"$AC$13*BB357","v":0},{"$f":"SUM(E359:BB359)","v":0}]
["Task 14.0     ","PREPARE PS&E DELIVERABLES AND FINAL DOCUMENTATION"]
[14.1,"Prepare PS&E Submittal Deliverables",null,null,{"$f":"IF($C$361=\"\",\"\",F361/$C$361)","v":""},null,{"$f":"IF($C$361=\"\",\"\",H361/$C$361)","v":""},null,{"$f":"IF($C$361=\"\",\"\",J361/$C$361)","v":""},null,{"$f":"IF($C$361=\"\",\"\",L361/$C$361)","v":""},null,{"$f":"IF($C$361=\"\",\"\",N361/$C$361)","v":""},null,{"$f":"IF($C$361=\"\",\"\",P361/$C$361)","v":""},null,{"$f":"IF($C$361=\"\",\"\",R361/$C$361)","v":""},null,{"$f":"IF($C$361=\"\",\"\",T361/$C$361)","v":""},null,{"$f":"IF($C$361=\"\",\"\",V361/$C$361)","v":""},null,{"$f":"IF($C$361=\"\",\"\",X361/$C$361)","v":""},null,{"$f":"IF($C$361=\"\",\"\",Z361/$C$361)","v":""},null,{"$f":"IF($C$361=\"\",\"\",AB361/$C$361)","v":""},null,{"$f":"IF($C$361=\"\",\"\",AD361/$C$361)","v":""},null,{"$f":"IF($C$361=\"\",\"\",AF361/$C$361)","v":""},null,{"$f":"IF($C$361=\"\",\"\",AH361/$C$361)","v":""},null,{"$f":"IF($C$361=\"\",\"\",AJ361/$C$361)","v":""},null,{"$f":"IF($C$361=\"\",\"\",AL361/$C$361)","v":""},null,{"$f":"IF($C$361=\"\",\"\",AN361/$C$361)","v":""},null,{"$f":"IF($C$361=\"\",\"\",AP361/$C$361)","v":""},null,{"$f":"IF($C$361=\"\",\"\",AR361/$C$361)","v":""},null,{"$f":"IF($C$361=\"\",\"\",AT361/$C$361)","v":""},null,{"$f":"IF($C$361=\"\",\"\",AV361/$C$361)","v":""},null,{"$f":"IF($C$361=\"\",\"\",AX361/$C$361)","v":""},null,{"$f":"IF($C$361=\"\",\"\",AZ361/$C$361)","v":""},null,{"$f":"IF($C$361=\"\",\"\",BB361/$C$361)","v":""},null,{"$f":"SUM(BB361,AZ361,AX361,AV361,AT361,AR361,AP361,AN361,AL361,AJ361,AH361,AF361,AD361,AB361,Z361,X361,V361,T361,R361,P361,N361,L361,J361,H361,F361)","v":0}]
[14.2,"PS&E Submittal Review Meetings",null,null,{"$f":"IF($C$362=\"\",\"\",F362/$C$362)","v":""},null,{"$f":"IF($C$362=\"\",\"\",H362/$C$362)","v":""},null,{"$f":"IF($C$362=\"\",\"\",J362/$C$362)","v":""},null,{"$f":"IF($C$362=\"\",\"\",L362/$C$362)","v":""},null,{"$f":"IF($C$362=\"\",\"\",N362/$C$362)","v":""},null,{"$f":"IF($C$362=\"\",\"\",P362/$C$362)","v":""},null,{"$f":"IF($C$362=\"\",\"\",R362/$C$362)","v":""},null,{"$f":"IF($C$362=\"\",\"\",T362/$C$362)","v":""},null,{"$f":"IF($C$362=\"\",\"\",V362/$C$362)","v":""},null,{"$f":"IF($C$362=\"\",\"\",X362/$C$362)","v":""},null,{"$f":"IF($C$362=\"\",\"\",Z362/$C$362)","v":""},null,{"$f":"IF($C$362=\"\",\"\",AB362/$C$362)","v":""},null,{"$f":"IF($C$362=\"\",\"\",AD362/$C$362)","v":""},null,{"$f":"IF($C$362=\"\",\"\",AF362/$C$362)","v":""},null,{"$f":"IF($C$362=\"\",\"\",AH362/$C$362)","v":""},null,{"$f":"IF($C$362=\"\",\"\",AJ362/$C$362)","v":""},null,{"$f":"IF($C$362=\"\",\"\",AL362/$C$362)","v":""},null,{"$f":"IF($C$362=\"\",\"\",AN362/$C$362)","v":""},null,{"$f":"IF($C$362=\"\",\"\",AP362/$C$362)","v":""},null,{"$f":"IF($C$362=\"\",\"\",AR362/$C$362)","v":""},null,{"$f":"IF($C$362=\"\",\"\",AT362/$C$362)","v":""},null,{"$f":"IF($C$362=\"\",\"\",AV362/$C$362)","v":""},null,{"$f":"IF($C$362=\"\",\"\",AX362/$C$362)","v":""},null,{"$f":"IF($C$362=\"\",\"\",AZ362/$C$362)","v":""},null,{"$f":"IF($C$362=\"\",\"\",BB362/$C$362)","v":""},null,0]
[14.3,"Prepare CD/DVD/USB Jump Drive of PS&E Files",null,null,{"$f":"IF($C$363=\"\",\"\",F363/$C$363)","v":""},null,{"$f":"IF($C$363=\"\",\"\",H363/$C$363)","v":""},null,{"$f":"IF($C$363=\"\",\"\",J363/$C$363)","v":""},null,{"$f":"IF($C$363=\"\",\"\",L363/$C$363)","v":""},null,{"$f":"IF($C$363=\"\",\"\",N363/$C$363)","v":""},null,{"$f":"IF($C$363=\"\",\"\",P363/$C$363)","v":""},null,{"$f":"IF($C$363=\"\",\"\",R363/$C$363)","v":""},null,{"$f":"IF($C$363=\"\",\"\",T363/$C$363)","v":""},null,{"$f":"IF($C$363=\"\",\"\",V363/$C$363)","v":""},null,{"$f":"IF($C$363=\"\",\"\",X363/$C$363)","v":""},null,{"$f":"IF($C$363=\"\",\"\",Z363/$C$363)","v":""},null,{"$f":"IF($C$363=\"\",\"\",AB363/$C$363)","v":""},null,{"$f":"IF($C$363=\"\",\"\",AD363/$C$363)","v":""},null,{"$f":"IF($C$363=\"\",\"\",AF363/$C$363)","v":""},null,{"$f":"IF($C$363=\"\",\"\",AH363/$C$363)","v":""},null,{"$f":"IF($C$363=\"\",\"\",AJ363/$C$363)","v":""},null,{"$f":"IF($C$363=\"\",\"\",AL363/$C$363)","v":""},null,{"$f":"IF($C$363=\"\",\"\",AN363/$C$363)","v":""},null,{"$f":"IF($C$363=\"\",\"\",AP363/$C$363)","v":""},null,{"$f":"IF($C$363=\"\",\"\",AR363/$C$363)","v":""},null,{"$f":"IF($C$363=\"\",\"\",AT363/$C$363)","v":""},null,{"$f":"IF($C$363=\"\",\"\",AV363/$C$363)","v":""},null,{"$f":"IF($C$363=\"\",\"\",AX363/$C$363)","v":""},null,{"$f":"IF($C$363=\"\",\"\",AZ363/$C$363)","v":""},null,{"$f":"IF($C$363=\"\",\"\",BB363/$C$363)","v":""},null,0]
[14.4,"Electronic transfer of files to the Department",null,null,{"$f":"IF($C$364=\"\",\"\",F364/$C$364)","v":""},null,{"$f":"IF($C$364=\"\",\"\",H364/$C$364)","v":""},null,{"$f":"IF($C$364=\"\",\"\",J364/$C$364)","v":""},null,{"$f":"IF($C$364=\"\",\"\",L364/$C$364)","v":""},null,{"$f":"IF($C$364=\"\",\"\",N364/$C$364)","v":""},null,{"$f":"IF($C$364=\"\",\"\",P364/$C$364)","v":""},null,{"$f":"IF($C$364=\"\",\"\",R364/$C$364)","v":""},null,{"$f":"IF($C$364=\"\",\"\",T364/$C$364)","v":""},null,{"$f":"IF($C$364=\"\",\"\",V364/$C$364)","v":""},null,{"$f":"IF($C$364=\"\",\"\",X364/$C$364)","v":""},null,{"$f":"IF($C$364=\"\",\"\",Z364/$C$364)","v":""},null,{"$f":"IF($C$364=\"\",\"\",AB364/$C$364)","v":""},null,{"$f":"IF($C$364=\"\",\"\",AD364/$C$364)","v":""},null,{"$f":"IF($C$364=\"\",\"\",AF364/$C$364)","v":""},null,{"$f":"IF($C$364=\"\",\"\",AH364/$C$364)","v":""},null,{"$f":"IF($C$364=\"\",\"\",AJ364/$C$364)","v":""},null,{"$f":"IF($C$364=\"\",\"\",AL364/$C$364)","v":""},null,{"$f":"IF($C$364=\"\",\"\",AN364/$C$364)","v":""},null,{"$f":"IF($C$364=\"\",\"\",AP364/$C$364)","v":""},null,{"$f":"IF($C$364=\"\",\"\",AR364/$C$364)","v":""},null,{"$f":"IF($C$364=\"\",\"\",AT364/$C$364)","v":""},null,{"$f":"IF($C$364=\"\",\"\",AV364/$C$364)","v":""},null,{"$f":"IF($C$364=\"\",\"\",AX364/$C$364)","v":""},null,{"$f":"IF($C$364=\"\",\"\",AZ364/$C$364)","v":""},null,{"$f":"IF($C$364=\"\",\"\",BB364/$C$364)","v":""},null,0]
[null,null,null,null,{"$f":"IF($C$365=\"\",\"\",F365/$C$365)","v":""},null,{"$f":"IF($C$365=\"\",\"\",H365/$C$365)","v":""},null,{"$f":"IF($C$365=\"\",\"\",J365/$C$365)","v":""},null,{"$f":"IF($C$365=\"\",\"\",L365/$C$365)","v":""},null,{"$f":"IF($C$365=\"\",\"\",N365/$C$365)","v":""},null,{"$f":"IF($C$365=\"\",\"\",P365/$C$365)","v":""},null,{"$f":"IF($C$365=\"\",\"\",R365/$C$365)","v":""},null,{"$f":"IF($C$365=\"\",\"\",T365/$C$365)","v":""},null,{"$f":"IF($C$365=\"\",\"\",V365/$C$365)","v":""},null,{"$f":"IF($C$365=\"\",\"\",X365/$C$365)","v":""},null,{"$f":"IF($C$365=\"\",\"\",Z365/$C$365)","v":""},null,{"$f":"IF($C$365=\"\",\"\",AB365/$C$365)","v":""},null,{"$f":"IF($C$365=\"\",\"\",AD365/$C$365)","v":""},null,{"$f":"IF($C$365=\"\",\"\",AF365/$C$365)","v":""},null,{"$f":"IF($C$365=\"\",\"\",AH365/$C$365)","v":""},null,{"$f":"IF($C$365=\"\",\"\",AJ365/$C$365)","v":""},null,{"$f":"IF($C$365=\"\",\"\",AL365/$C$365)","v":""},null,{"$f":"IF($C$365=\"\",\"\",AN365/$C$365)","v":""},null,{"$f":"IF($C$365=\"\",\"\",AP365/$C$365)","v":""},null,{"$f":"IF($C$365=\"\",\"\",AR365/$C$365)","v":""},null,{"$f":"IF($C$365=\"\",\"\",AT365/$C$365)","v":""},null,{"$f":"IF($C$365=\"\",\"\",AV365/$C$365)","v":""},null,{"$f":"IF($C$365=\"\",\"\",AX365/$C$365)","v":""},null,{"$f":"IF($C$365=\"\",\"\",AZ365/$C$365)","v":""},null,{"$f":"IF($C$365=\"\",\"\",BB365/$C$365)","v":""},null,0]
[null,null,null,null,{"$f":"IF($C$366=\"\",\"\",F366/$C$366)","v":""},null,{"$f":"IF($C$366=\"\",\"\",H366/$C$366)","v":""},null,{"$f":"IF($C$366=\"\",\"\",J366/$C$366)","v":""},null,{"$f":"IF($C$366=\"\",\"\",L366/$C$366)","v":""},null,{"$f":"IF($C$366=\"\",\"\",N366/$C$366)","v":""},null,{"$f":"IF($C$366=\"\",\"\",P366/$C$366)","v":""},null,{"$f":"IF($C$366=\"\",\"\",R366/$C$366)","v":""},null,{"$f":"IF($C$366=\"\",\"\",T366/$C$366)","v":""},null,{"$f":"IF($C$366=\"\",\"\",V366/$C$366)","v":""},null,{"$f":"IF($C$366=\"\",\"\",X366/$C$366)","v":""},null,{"$f":"IF($C$366=\"\",\"\",Z366/$C$366)","v":""},null,{"$f":"IF($C$366=\"\",\"\",AB366/$C$366)","v":""},null,{"$f":"IF($C$366=\"\",\"\",AD366/$C$366)","v":""},null,{"$f":"IF($C$366=\"\",\"\",AF366/$C$366)","v":""},null,{"$f":"IF($C$366=\"\",\"\",AH366/$C$366)","v":""},null,{"$f":"IF($C$366=\"\",\"\",AJ366/$C$366)","v":""},null,{"$f":"IF($C$366=\"\",\"\",AL366/$C$366)","v":""},null,{"$f":"IF($C$366=\"\",\"\",AN366/$C$366)","v":""},null,{"$f":"IF($C$366=\"\",\"\",AP366/$C$366)","v":""},null,{"$f":"IF($C$366=\"\",\"\",AR366/$C$366)","v":""},null,{"$f":"IF($C$366=\"\",\"\",AT366/$C$366)","v":""},null,{"$f":"IF($C$366=\"\",\"\",AV366/$C$366)","v":""},null,{"$f":"IF($C$366=\"\",\"\",AX366/$C$366)","v":""},null,{"$f":"IF($C$366=\"\",\"\",AZ366/$C$366)","v":""},null,{"$f":"IF($C$366=\"\",\"\",BB366/$C$366)","v":""},null,0]
[null,null,null,null,{"$f":"IF($C$367=\"\",\"\",F367/$C$367)","v":""},null,{"$f":"IF($C$367=\"\",\"\",H367/$C$367)","v":""},null,{"$f":"IF($C$367=\"\",\"\",J367/$C$367)","v":""},null,{"$f":"IF($C$367=\"\",\"\",L367/$C$367)","v":""},null,{"$f":"IF($C$367=\"\",\"\",N367/$C$367)","v":""},null,{"$f":"IF($C$367=\"\",\"\",P367/$C$367)","v":""},null,{"$f":"IF($C$367=\"\",\"\",R367/$C$367)","v":""},null,{"$f":"IF($C$367=\"\",\"\",T367/$C$367)","v":""},null,{"$f":"IF($C$367=\"\",\"\",V367/$C$367)","v":""},null,{"$f":"IF($C$367=\"\",\"\",X367/$C$367)","v":""},null,{"$f":"IF($C$367=\"\",\"\",Z367/$C$367)","v":""},null,{"$f":"IF($C$367=\"\",\"\",AB367/$C$367)","v":""},null,{"$f":"IF($C$367=\"\",\"\",AD367/$C$367)","v":""},null,{"$f":"IF($C$367=\"\",\"\",AF367/$C$367)","v":""},null,{"$f":"IF($C$367=\"\",\"\",AH367/$C$367)","v":""},null,{"$f":"IF($C$367=\"\",\"\",AJ367/$C$367)","v":""},null,{"$f":"IF($C$367=\"\",\"\",AL367/$C$367)","v":""},null,{"$f":"IF($C$367=\"\",\"\",AN367/$C$367)","v":""},null,{"$f":"IF($C$367=\"\",\"\",AP367/$C$367)","v":""},null,{"$f":"IF($C$367=\"\",\"\",AR367/$C$367)","v":""},null,{"$f":"IF($C$367=\"\",\"\",AT367/$C$367)","v":""},null,{"$f":"IF($C$367=\"\",\"\",AV367/$C$367)","v":""},null,{"$f":"IF($C$367=\"\",\"\",AX367/$C$367)","v":""},null,{"$f":"IF($C$367=\"\",\"\",AZ367/$C$367)","v":""},null,{"$f":"IF($C$367=\"\",\"\",BB367/$C$367)","v":""},null,0]
[null,null,null,null,{"$f":"IF($C$368=\"\",\"\",F368/$C$368)","v":""},null,{"$f":"IF($C$368=\"\",\"\",H368/$C$368)","v":""},null,{"$f":"IF($C$368=\"\",\"\",J368/$C$368)","v":""},null,{"$f":"IF($C$368=\"\",\"\",L368/$C$368)","v":""},null,{"$f":"IF($C$368=\"\",\"\",N368/$C$368)","v":""},null,{"$f":"IF($C$368=\"\",\"\",P368/$C$368)","v":""},null,{"$f":"IF($C$368=\"\",\"\",R368/$C$368)","v":""},null,{"$f":"IF($C$368=\"\",\"\",T368/$C$368)","v":""},null,{"$f":"IF($C$368=\"\",\"\",V368/$C$368)","v":""},null,{"$f":"IF($C$368=\"\",\"\",X368/$C$368)","v":""},null,{"$f":"IF($C$368=\"\",\"\",Z368/$C$368)","v":""},null,{"$f":"IF($C$368=\"\",\"\",AB368/$C$368)","v":""},null,{"$f":"IF($C$368=\"\",\"\",AD368/$C$368)","v":""},null,{"$f":"IF($C$368=\"\",\"\",AF368/$C$368)","v":""},null,{"$f":"IF($C$368=\"\",\"\",AH368/$C$368)","v":""},null,{"$f":"IF($C$368=\"\",\"\",AJ368/$C$368)","v":""},null,{"$f":"IF($C$368=\"\",\"\",AL368/$C$368)","v":""},null,{"$f":"IF($C$368=\"\",\"\",AN368/$C$368)","v":""},null,{"$f":"IF($C$368=\"\",\"\",AP368/$C$368)","v":""},null,{"$f":"IF($C$368=\"\",\"\",AR368/$C$368)","v":""},null,{"$f":"IF($C$368=\"\",\"\",AT368/$C$368)","v":""},null,{"$f":"IF($C$368=\"\",\"\",AV368/$C$368)","v":""},null,{"$f":"IF($C$368=\"\",\"\",AX368/$C$368)","v":""},null,{"$f":"IF($C$368=\"\",\"\",AZ368/$C$368)","v":""},null,{"$f":"IF($C$368=\"\",\"\",BB368/$C$368)","v":""},null,0]
[null,null,null,null,{"$f":"IF($C$369=\"\",\"\",F369/$C$369)","v":""},null,{"$f":"IF($C$369=\"\",\"\",H369/$C$369)","v":""},null,{"$f":"IF($C$369=\"\",\"\",J369/$C$369)","v":""},null,{"$f":"IF($C$369=\"\",\"\",L369/$C$369)","v":""},null,{"$f":"IF($C$369=\"\",\"\",N369/$C$369)","v":""},null,{"$f":"IF($C$369=\"\",\"\",P369/$C$369)","v":""},null,{"$f":"IF($C$369=\"\",\"\",R369/$C$369)","v":""},null,{"$f":"IF($C$369=\"\",\"\",T369/$C$369)","v":""},null,{"$f":"IF($C$369=\"\",\"\",V369/$C$369)","v":""},null,{"$f":"IF($C$369=\"\",\"\",X369/$C$369)","v":""},null,{"$f":"IF($C$369=\"\",\"\",Z369/$C$369)","v":""},null,{"$f":"IF($C$369=\"\",\"\",AB369/$C$369)","v":""},null,{"$f":"IF($C$369=\"\",\"\",AD369/$C$369)","v":""},null,{"$f":"IF($C$369=\"\",\"\",AF369/$C$369)","v":""},null,{"$f":"IF($C$369=\"\",\"\",AH369/$C$369)","v":""},null,{"$f":"IF($C$369=\"\",\"\",AJ369/$C$369)","v":""},null,{"$f":"IF($C$369=\"\",\"\",AL369/$C$369)","v":""},null,{"$f":"IF($C$369=\"\",\"\",AN369/$C$369)","v":""},null,{"$f":"IF($C$369=\"\",\"\",AP369/$C$369)","v":""},null,{"$f":"IF($C$369=\"\",\"\",AR369/$C$369)","v":""},null,{"$f":"IF($C$369=\"\",\"\",AT369/$C$369)","v":""},null,{"$f":"IF($C$369=\"\",\"\",AV369/$C$369)","v":""},null,{"$f":"IF($C$369=\"\",\"\",AX369/$C$369)","v":""},null,{"$f":"IF($C$369=\"\",\"\",AZ369/$C$369)","v":""},null,{"$f":"IF($C$369=\"\",\"\",BB369/$C$369)","v":""},null,0]
[null,null,null,null,{"$f":"IF($C$370=\"\",\"\",F370/$C$370)","v":""},null,{"$f":"IF($C$370=\"\",\"\",H370/$C$370)","v":""},null,{"$f":"IF($C$370=\"\",\"\",J370/$C$370)","v":""},null,{"$f":"IF($C$370=\"\",\"\",L370/$C$370)","v":""},null,{"$f":"IF($C$370=\"\",\"\",N370/$C$370)","v":""},null,{"$f":"IF($C$370=\"\",\"\",P370/$C$370)","v":""},null,{"$f":"IF($C$370=\"\",\"\",R370/$C$370)","v":""},null,{"$f":"IF($C$370=\"\",\"\",T370/$C$370)","v":""},null,{"$f":"IF($C$370=\"\",\"\",V370/$C$370)","v":""},null,{"$f":"IF($C$370=\"\",\"\",X370/$C$370)","v":""},null,{"$f":"IF($C$370=\"\",\"\",Z370/$C$370)","v":""},null,{"$f":"IF($C$370=\"\",\"\",AB370/$C$370)","v":""},null,{"$f":"IF($C$370=\"\",\"\",AD370/$C$370)","v":""},null,{"$f":"IF($C$370=\"\",\"\",AF370/$C$370)","v":""},null,{"$f":"IF($C$370=\"\",\"\",AH370/$C$370)","v":""},null,{"$f":"IF($C$370=\"\",\"\",AJ370/$C$370)","v":""},null,{"$f":"IF($C$370=\"\",\"\",AL370/$C$370)","v":""},null,{"$f":"IF($C$370=\"\",\"\",AN370/$C$370)","v":""},null,{"$f":"IF($C$370=\"\",\"\",AP370/$C$370)","v":""},null,{"$f":"IF($C$370=\"\",\"\",AR370/$C$370)","v":""},null,{"$f":"IF($C$370=\"\",\"\",AT370/$C$370)","v":""},null,{"$f":"IF($C$370=\"\",\"\",AV370/$C$370)","v":""},null,{"$f":"IF($C$370=\"\",\"\",AX370/$C$370)","v":""},null,{"$f":"IF($C$370=\"\",\"\",AZ370/$C$370)","v":""},null,{"$f":"IF($C$370=\"\",\"\",BB370/$C$370)","v":""},null,0]
[null,null,null,null,{"$f":"IF($C$371=\"\",\"\",F371/$C$371)","v":""},null,{"$f":"IF($C$371=\"\",\"\",H371/$C$371)","v":""},null,{"$f":"IF($C$371=\"\",\"\",J371/$C$371)","v":""},null,{"$f":"IF($C$371=\"\",\"\",L371/$C$371)","v":""},null,{"$f":"IF($C$371=\"\",\"\",N371/$C$371)","v":""},null,{"$f":"IF($C$371=\"\",\"\",P371/$C$371)","v":""},null,{"$f":"IF($C$371=\"\",\"\",R371/$C$371)","v":""},null,{"$f":"IF($C$371=\"\",\"\",T371/$C$371)","v":""},null,{"$f":"IF($C$371=\"\",\"\",V371/$C$371)","v":""},null,{"$f":"IF($C$371=\"\",\"\",X371/$C$371)","v":""},null,{"$f":"IF($C$371=\"\",\"\",Z371/$C$371)","v":""},null,{"$f":"IF($C$371=\"\",\"\",AB371/$C$371)","v":""},null,{"$f":"IF($C$371=\"\",\"\",AD371/$C$371)","v":""},null,{"$f":"IF($C$371=\"\",\"\",AF371/$C$371)","v":""},null,{"$f":"IF($C$371=\"\",\"\",AH371/$C$371)","v":""},null,{"$f":"IF($C$371=\"\",\"\",AJ371/$C$371)","v":""},null,{"$f":"IF($C$371=\"\",\"\",AL371/$C$371)","v":""},null,{"$f":"IF($C$371=\"\",\"\",AN371/$C$371)","v":""},null,{"$f":"IF($C$371=\"\",\"\",AP371/$C$371)","v":""},null,{"$f":"IF($C$371=\"\",\"\",AR371/$C$371)","v":""},null,{"$f":"IF($C$371=\"\",\"\",AT371/$C$371)","v":""},null,{"$f":"IF($C$371=\"\",\"\",AV371/$C$371)","v":""},null,{"$f":"IF($C$371=\"\",\"\",AX371/$C$371)","v":""},null,{"$f":"IF($C$371=\"\",\"\",AZ371/$C$371)","v":""},null,{"$f":"IF($C$371=\"\",\"\",BB371/$C$371)","v":""},null,{"$f":"SUM(BB371,AZ371,AX371,AV371,AT371,AR371,AP371,AN371,AL371,AJ371,AH371,AF371,AD371,AB371,Z371,X371,V371,T371,R371,P371,N371,L371,J371,H371,F371)","v":0}]
["TOTAL HOURS",null,null,null,null,{"$f":"SUM(F361:F371)","v":0},null,{"$f":"SUM(H361:H371)","v":0},null,{"$f":"SUM(J361:J371)","v":0},null,{"$f":"SUM(L361:L371)","v":0},null,{"$f":"SUM(N361:N371)","v":0},null,{"$f":"SUM(P361:P371)","v":0},null,{"$f":"SUM(R361:R371)","v":0},null,{"$f":"SUM(T361:T371)","v":0},null,{"$f":"SUM(V361:V371)","v":0},null,{"$f":"SUM(X361:X371)","v":0},null,{"$f":"SUM(Z361:Z371)","v":0},null,{"$f":"SUM(AB361:AB371)","v":0},null,{"$f":"SUM(AD361:AD371)","v":0},null,{"$f":"SUM(AF361:AF371)","v":0},null,{"$f":"SUM(AH361:AH371)","v":0},null,{"$f":"SUM(AJ361:AJ371)","v":0},null,{"$f":"SUM(AL361:AL371)","v":0},null,{"$f":"SUM(AN361:AN371)","v":0},null,{"$f":"SUM(AP361:AP371)","v":0},null,{"$f":"SUM(AR361:AR371)","v":0},null,{"$f":"SUM(AT361:AT371)","v":0},null,{"$f":"SUM(AV361:AV371)","v":0},null,{"$f":"SUM(AX361:AX371)","v":0},null,{"$f":"SUM(AZ361:AZ371)","v":0},null,{"$f":"SUM(BB361:BB371)","v":0},{"$f":"SUM(E372:BB372)","v":0}]
["TOTAL WORKDAYS",null,null,null,null,{"$f":"F372/8","v":0},null,{"$f":"H372/8","v":0},null,{"$f":"J372/8","v":0},null,{"$f":"L372/8","v":0},null,{"$f":"N372/8","v":0},null,{"$f":"P372/8","v":0},null,{"$f":"R372/8","v":0},null,{"$f":"T372/8","v":0},null,{"$f":"V372/8","v":0},null,{"$f":"X372/8","v":0},null,{"$f":"Z372/8","v":0},null,{"$f":"AB372/8","v":0},null,{"$f":"AD372/8","v":0},null,0,null,{"$f":"AH372/8","v":0},null,0,null,{"$f":"AL372/8","v":0},null,0,null,{"$f":"AP372/8","v":0},null,0,null,{"$f":"AT372/8","v":0},null,{"$f":"AV372/8","v":0},null,{"$f":"AX372/8","v":0},null,{"$f":"AZ372/8","v":0},null,{"$f":"BB372/8","v":0},{"$f":"SUM(E373:BB373)","v":0}]
["TOTAL RAW LABOR",null,null,null,null,{"$f":"$E$13*F372","v":0},null,{"$f":"$G$13*H372","v":0},null,{"$f":"$I$13*J372","v":0},null,{"$f":"$K$13*L372","v":0},null,{"$f":"$M$13*N372","v":0},null,{"$f":"$O$13*P372","v":0},null,{"$f":"$Q$13*R372","v":0},null,{"$f":"$S$13*T372","v":0},null,{"$f":"$U$13*V372","v":0},null,{"$f":"$W$13*X372","v":0},null,{"$f":"$Y$13*Z372","v":0},null,{"$f":"$AA$13*AB372","v":0},null,{"$f":"$AC$13*AD372","v":0},null,{"$f":"$AC$13*AF372","v":0},null,{"$f":"$AC$13*AH372","v":0},null,{"$f":"$AC$13*AJ372","v":0},null,{"$f":"$AC$13*AL372","v":0},null,{"$f":"$AC$13*AN372","v":0},null,{"$f":"$AC$13*AP372","v":0},null,{"$f":"$AC$13*AR372","v":0},null,{"$f":"$AC$13*AT372","v":0},null,{"$f":"$AC$13*AV372","v":0},null,{"$f":"$AC$13*AX372","v":0},null,{"$f":"$AC$13*AZ372","v":0},null,{"$f":"$AC$13*BB372","v":0},{"$f":"SUM(E374:BB374)","v":0}]
["Task 15.0     ","REPLACE FIELD WITH CATEGORY NAME OF YOUR CHOOSING HERE",null,null,null,null,null,null,null,null,null,null,null,null,null,null,null,null,null,null,null,null,null,null,null,null,null,null,null,null,null,null,null,null,null,null,null,null,null,null,null,null,null,null,null,null,null,null,null,null,null,null,null,null,{"$f":"IF(B375=\"REPLACE FIELD WITH CATEGORY NAME OF YOUR CHOOSING HERE\",0,\"\")","v":0}]
[null,null,null,null,{"$f":"IF($C$376=\"\",\"\",F376/$C$376)","v":""},null,{"$f":"IF($C$376=\"\",\"\",H376/$C$376)","v":""},null,{"$f":"IF($C$376=\"\",\"\",J376/$C$376)","v":""},null,{"$f":"IF($C$376=\"\",\"\",L376/$C$376)","v":""},null,{"$f":"IF($C$376=\"\",\"\",N376/$C$376)","v":""},null,{"$f":"IF($C$376=\"\",\"\",P376/$C$376)","v":""},null,{"$f":"IF($C$376=\"\",\"\",R376/$C$376)","v":""},null,{"$f":"IF($C$376=\"\",\"\",T376/$C$376)","v":""},null,{"$f":"IF($C$376=\"\",\"\",V376/$C$376)","v":""},null,{"$f":"IF($C$376=\"\",\"\",X376/$C$376)","v":""},null,{"$f":"IF($C$376=\"\",\"\",Z376/$C$376)","v":""},null,{"$f":"IF($C$376=\"\",\"\",AB376/$C$376)","v":""},null,{"$f":"IF($C$376=\"\",\"\",AD376/$C$376)","v":""},null,{"$f":"IF($C$376=\"\",\"\",AF376/$C$376)","v":""},null,{"$f":"IF($C$376=\"\",\"\",AH376/$C$376)","v":""},null,{"$f":"IF($C$376=\"\",\"\",AJ376/$C$376)","v":""},null,{"$f":"IF($C$376=\"\",\"\",AL376/$C$376)","v":""},null,{"$f":"IF($C$376=\"\",\"\",AN376/$C$376)","v":""},null,{"$f":"IF($C$376=\"\",\"\",AP376/$C$376)","v":""},null,{"$f":"IF($C$376=\"\",\"\",AR376/$C$376)","v":""},null,{"$f":"IF($C$376=\"\",\"\",AT376/$C$376)","v":""},null,{"$f":"IF($C$376=\"\",\"\",AV376/$C$376)","v":""},null,{"$f":"IF($C$376=\"\",\"\",AX376/$C$376)","v":""},null,{"$f":"IF($C$376=\"\",\"\",AZ376/$C$376)","v":""},null,{"$f":"IF($C$376=\"\",\"\",BB376/$C$376)","v":""},null,{"$f":"SUM(BB376,AZ376,AX376,AV376,AT376,AR376,AP376,AN376,AL376,AJ376,AH376,AF376,AD376,AB376,Z376,X376,V376,T376,R376,P376,N376,L376,J376,H376,F376)","v":0}]
[null,null,null,null,{"$f":"IF($C$377=\"\",\"\",F377/$C$377)","v":""},null,{"$f":"IF($C$377=\"\",\"\",H377/$C$377)","v":""},null,{"$f":"IF($C$377=\"\",\"\",J377/$C$377)","v":""},null,{"$f":"IF($C$377=\"\",\"\",L377/$C$377)","v":""},null,{"$f":"IF($C$377=\"\",\"\",N377/$C$377)","v":""},null,{"$f":"IF($C$377=\"\",\"\",P377/$C$377)","v":""},null,{"$f":"IF($C$377=\"\",\"\",R377/$C$377)","v":""},null,{"$f":"IF($C$377=\"\",\"\",T377/$C$377)","v":""},null,{"$f":"IF($C$377=\"\",\"\",V377/$C$377)","v":""},null,{"$f":"IF($C$377=\"\",\"\",X377/$C$377)","v":""},null,{"$f":"IF($C$377=\"\",\"\",Z377/$C$377)","v":""},null,{"$f":"IF($C$377=\"\",\"\",AB377/$C$377)","v":""},null,{"$f":"IF($C$377=\"\",\"\",AD377/$C$377)","v":""},null,{"$f":"IF($C$377=\"\",\"\",AF377/$C$377)","v":""},null,{"$f":"IF($C$377=\"\",\"\",AH377/$C$377)","v":""},null,{"$f":"IF($C$377=\"\",\"\",AJ377/$C$377)","v":""},null,{"$f":"IF($C$377=\"\",\"\",AL377/$C$377)","v":""},null,{"$f":"IF($C$377=\"\",\"\",AN377/$C$377)","v":""},null,{"$f":"IF($C$377=\"\",\"\",AP377/$C$377)","v":""},null,{"$f":"IF($C$377=\"\",\"\",AR377/$C$377)","v":""},null,{"$f":"IF($C$377=\"\",\"\",AT377/$C$377)","v":""},null,{"$f":"IF($C$377=\"\",\"\",AV377/$C$377)","v":""},null,{"$f":"IF($C$377=\"\",\"\",AX377/$C$377)","v":""},null,{"$f":"IF($C$377=\"\",\"\",AZ377/$C$377)","v":""},null,{"$f":"IF($C$377=\"\",\"\",BB377/$C$377)","v":""},null,0]
[null,null,null,null,{"$f":"IF($C$378=\"\",\"\",F378/$C$378)","v":""},null,{"$f":"IF($C$378=\"\",\"\",H378/$C$378)","v":""},null,{"$f":"IF($C$378=\"\",\"\",J378/$C$378)","v":""},null,{"$f":"IF($C$378=\"\",\"\",L378/$C$378)","v":""},null,{"$f":"IF($C$378=\"\",\"\",N378/$C$378)","v":""},null,{"$f":"IF($C$378=\"\",\"\",P378/$C$378)","v":""},null,{"$f":"IF($C$378=\"\",\"\",R378/$C$378)","v":""},null,{"$f":"IF($C$378=\"\",\"\",T378/$C$378)","v":""},null,{"$f":"IF($C$378=\"\",\"\",V378/$C$378)","v":""},null,{"$f":"IF($C$378=\"\",\"\",X378/$C$378)","v":""},null,{"$f":"IF($C$378=\"\",\"\",Z378/$C$378)","v":""},null,{"$f":"IF($C$378=\"\",\"\",AB378/$C$378)","v":""},null,{"$f":"IF($C$378=\"\",\"\",AD378/$C$378)","v":""},null,{"$f":"IF($C$378=\"\",\"\",AF378/$C$378)","v":""},null,{"$f":"IF($C$378=\"\",\"\",AH378/$C$378)","v":""},null,{"$f":"IF($C$378=\"\",\"\",AJ378/$C$378)","v":""},null,{"$f":"IF($C$378=\"\",\"\",AL378/$C$378)","v":""},null,{"$f":"IF($C$378=\"\",\"\",AN378/$C$378)","v":""},null,{"$f":"IF($C$378=\"\",\"\",AP378/$C$378)","v":""},null,{"$f":"IF($C$378=\"\",\"\",AR378/$C$378)","v":""},null,{"$f":"IF($C$378=\"\",\"\",AT378/$C$378)","v":""},null,{"$f":"IF($C$378=\"\",\"\",AV378/$C$378)","v":""},null,{"$f":"IF($C$378=\"\",\"\",AX378/$C$378)","v":""},null,{"$f":"IF($C$378=\"\",\"\",AZ378/$C$378)","v":""},null,{"$f":"IF($C$378=\"\",\"\",BB378/$C$378)","v":""},null,0]
[null,null,null,null,{"$f":"IF($C$379=\"\",\"\",F379/$C$379)","v":""},null,{"$f":"IF($C$379=\"\",\"\",H379/$C$379)","v":""},null,{"$f":"IF($C$379=\"\",\"\",J379/$C$379)","v":""},null,{"$f":"IF($C$379=\"\",\"\",L379/$C$379)","v":""},null,{"$f":"IF($C$379=\"\",\"\",N379/$C$379)","v":""},null,{"$f":"IF($C$379=\"\",\"\",P379/$C$379)","v":""},null,{"$f":"IF($C$379=\"\",\"\",R379/$C$379)","v":""},null,{"$f":"IF($C$379=\"\",\"\",T379/$C$379)","v":""},null,{"$f":"IF($C$379=\"\",\"\",V379/$C$379)","v":""},null,{"$f":"IF($C$379=\"\",\"\",X379/$C$379)","v":""},null,{"$f":"IF($C$379=\"\",\"\",Z379/$C$379)","v":""},null,{"$f":"IF($C$379=\"\",\"\",AB379/$C$379)","v":""},null,{"$f":"IF($C$379=\"\",\"\",AD379/$C$379)","v":""},null,{"$f":"IF($C$379=\"\",\"\",AF379/$C$379)","v":""},null,{"$f":"IF($C$379=\"\",\"\",AH379/$C$379)","v":""},null,{"$f":"IF($C$379=\"\",\"\",AJ379/$C$379)","v":""},null,{"$f":"IF($C$379=\"\",\"\",AL379/$C$379)","v":""},null,{"$f":"IF($C$379=\"\",\"\",AN379/$C$379)","v":""},null,{"$f":"IF($C$379=\"\",\"\",AP379/$C$379)","v":""},null,{"$f":"IF($C$379=\"\",\"\",AR379/$C$379)","v":""},null,{"$f":"IF($C$379=\"\",\"\",AT379/$C$379)","v":""},null,{"$f":"IF($C$379=\"\",\"\",AV379/$C$379)","v":""},null,{"$f":"IF($C$379=\"\",\"\",AX379/$C$379)","v":""},null,{"$f":"IF($C$379=\"\",\"\",AZ379/$C$379)","v":""},null,{"$f":"IF($C$379=\"\",\"\",BB379/$C$379)","v":""},null,0]
[null,null,null,null,{"$f":"IF($C$380=\"\",\"\",F380/$C$380)","v":""},null,{"$f":"IF($C$380=\"\",\"\",H380/$C$380)","v":""},null,{"$f":"IF($C$380=\"\",\"\",J380/$C$380)","v":""},null,{"$f":"IF($C$380=\"\",\"\",L380/$C$380)","v":""},null,{"$f":"IF($C$380=\"\",\"\",N380/$C$380)","v":""},null,{"$f":"IF($C$380=\"\",\"\",P380/$C$380)","v":""},null,{"$f":"IF($C$380=\"\",\"\",R380/$C$380)","v":""},null,{"$f":"IF($C$380=\"\",\"\",T380/$C$380)","v":""},null,{"$f":"IF($C$380=\"\",\"\",V380/$C$380)","v":""},null,{"$f":"IF($C$380=\"\",\"\",X380/$C$380)","v":""},null,{"$f":"IF($C$380=\"\",\"\",Z380/$C$380)","v":""},null,{"$f":"IF($C$380=\"\",\"\",AB380/$C$380)","v":""},null,{"$f":"IF($C$380=\"\",\"\",AD380/$C$380)","v":""},null,{"$f":"IF($C$380=\"\",\"\",AF380/$C$380)","v":""},null,{"$f":"IF($C$380=\"\",\"\",AH380/$C$380)","v":""},null,{"$f":"IF($C$380=\"\",\"\",AJ380/$C$380)","v":""},null,{"$f":"IF($C$380=\"\",\"\",AL380/$C$380)","v":""},null,{"$f":"IF($C$380=\"\",\"\",AN380/$C$380)","v":""},null,{"$f":"IF($C$380=\"\",\"\",AP380/$C$380)","v":""},null,{"$f":"IF($C$380=\"\",\"\",AR380/$C$380)","v":""},null,{"$f":"IF($C$380=\"\",\"\",AT380/$C$380)","v":""},null,{"$f":"IF($C$380=\"\",\"\",AV380/$C$380)","v":""},null,{"$f":"IF($C$380=\"\",\"\",AX380/$C$380)","v":""},null,{"$f":"IF($C$380=\"\",\"\",AZ380/$C$380)","v":""},null,{"$f":"IF($C$380=\"\",\"\",BB380/$C$380)","v":""},null,0]
[null,null,null,null,{"$f":"IF($C$381=\"\",\"\",F381/$C$381)","v":""},null,{"$f":"IF($C$381=\"\",\"\",H381/$C$381)","v":""},null,{"$f":"IF($C$381=\"\",\"\",J381/$C$381)","v":""},null,{"$f":"IF($C$381=\"\",\"\",L381/$C$381)","v":""},null,{"$f":"IF($C$381=\"\",\"\",N381/$C$381)","v":""},null,{"$f":"IF($C$381=\"\",\"\",P381/$C$381)","v":""},null,{"$f":"IF($C$381=\"\",\"\",R381/$C$381)","v":""},null,{"$f":"IF($C$381=\"\",\"\",T381/$C$381)","v":""},null,{"$f":"IF($C$381=\"\",\"\",V381/$C$381)","v":""},null,{"$f":"IF($C$381=\"\",\"\",X381/$C$381)","v":""},null,{"$f":"IF($C$381=\"\",\"\",Z381/$C$381)","v":""},null,{"$f":"IF($C$381=\"\",\"\",AB381/$C$381)","v":""},null,{"$f":"IF($C$381=\"\",\"\",AD381/$C$381)","v":""},null,{"$f":"IF($C$381=\"\",\"\",AF381/$C$381)","v":""},null,{"$f":"IF($C$381=\"\",\"\",AH381/$C$381)","v":""},null,{"$f":"IF($C$381=\"\",\"\",AJ381/$C$381)","v":""},null,{"$f":"IF($C$381=\"\",\"\",AL381/$C$381)","v":""},null,{"$f":"IF($C$381=\"\",\"\",AN381/$C$381)","v":""},null,{"$f":"IF($C$381=\"\",\"\",AP381/$C$381)","v":""},null,{"$f":"IF($C$381=\"\",\"\",AR381/$C$381)","v":""},null,{"$f":"IF($C$381=\"\",\"\",AT381/$C$381)","v":""},null,{"$f":"IF($C$381=\"\",\"\",AV381/$C$381)","v":""},null,{"$f":"IF($C$381=\"\",\"\",AX381/$C$381)","v":""},null,{"$f":"IF($C$381=\"\",\"\",AZ381/$C$381)","v":""},null,{"$f":"IF($C$381=\"\",\"\",BB381/$C$381)","v":""},null,0]
[null,null,null,null,{"$f":"IF($C$382=\"\",\"\",F382/$C$382)","v":""},null,{"$f":"IF($C$382=\"\",\"\",H382/$C$382)","v":""},null,{"$f":"IF($C$382=\"\",\"\",J382/$C$382)","v":""},null,{"$f":"IF($C$382=\"\",\"\",L382/$C$382)","v":""},null,{"$f":"IF($C$382=\"\",\"\",N382/$C$382)","v":""},null,{"$f":"IF($C$382=\"\",\"\",P382/$C$382)","v":""},null,{"$f":"IF($C$382=\"\",\"\",R382/$C$382)","v":""},null,{"$f":"IF($C$382=\"\",\"\",T382/$C$382)","v":""},null,{"$f":"IF($C$382=\"\",\"\",V382/$C$382)","v":""},null,{"$f":"IF($C$382=\"\",\"\",X382/$C$382)","v":""},null,{"$f":"IF($C$382=\"\",\"\",Z382/$C$382)","v":""},null,{"$f":"IF($C$382=\"\",\"\",AB382/$C$382)","v":""},null,{"$f":"IF($C$382=\"\",\"\",AD382/$C$382)","v":""},null,{"$f":"IF($C$382=\"\",\"\",AF382/$C$382)","v":""},null,{"$f":"IF($C$382=\"\",\"\",AH382/$C$382)","v":""},null,{"$f":"IF($C$382=\"\",\"\",AJ382/$C$382)","v":""},null,{"$f":"IF($C$382=\"\",\"\",AL382/$C$382)","v":""},null,{"$f":"IF($C$382=\"\",\"\",AN382/$C$382)","v":""},null,{"$f":"IF($C$382=\"\",\"\",AP382/$C$382)","v":""},null,{"$f":"IF($C$382=\"\",\"\",AR382/$C$382)","v":""},null,{"$f":"IF($C$382=\"\",\"\",AT382/$C$382)","v":""},null,{"$f":"IF($C$382=\"\",\"\",AV382/$C$382)","v":""},null,{"$f":"IF($C$382=\"\",\"\",AX382/$C$382)","v":""},null,{"$f":"IF($C$382=\"\",\"\",AZ382/$C$382)","v":""},null,{"$f":"IF($C$382=\"\",\"\",BB382/$C$382)","v":""},null,0]
[null,null,null,null,{"$f":"IF($C$383=\"\",\"\",F383/$C$383)","v":""},null,{"$f":"IF($C$383=\"\",\"\",H383/$C$383)","v":""},null,{"$f":"IF($C$383=\"\",\"\",J383/$C$383)","v":""},null,{"$f":"IF($C$383=\"\",\"\",L383/$C$383)","v":""},null,{"$f":"IF($C$383=\"\",\"\",N383/$C$383)","v":""},null,{"$f":"IF($C$383=\"\",\"\",P383/$C$383)","v":""},null,{"$f":"IF($C$383=\"\",\"\",R383/$C$383)","v":""},null,{"$f":"IF($C$383=\"\",\"\",T383/$C$383)","v":""},null,{"$f":"IF($C$383=\"\",\"\",V383/$C$383)","v":""},null,{"$f":"IF($C$383=\"\",\"\",X383/$C$383)","v":""},null,{"$f":"IF($C$383=\"\",\"\",Z383/$C$383)","v":""},null,{"$f":"IF($C$383=\"\",\"\",AB383/$C$383)","v":""},null,{"$f":"IF($C$383=\"\",\"\",AD383/$C$383)","v":""},null,{"$f":"IF($C$383=\"\",\"\",AF383/$C$383)","v":""},null,{"$f":"IF($C$383=\"\",\"\",AH383/$C$383)","v":""},null,{"$f":"IF($C$383=\"\",\"\",AJ383/$C$383)","v":""},null,{"$f":"IF($C$383=\"\",\"\",AL383/$C$383)","v":""},null,{"$f":"IF($C$383=\"\",\"\",AN383/$C$383)","v":""},null,{"$f":"IF($C$383=\"\",\"\",AP383/$C$383)","v":""},null,{"$f":"IF($C$383=\"\",\"\",AR383/$C$383)","v":""},null,{"$f":"IF($C$383=\"\",\"\",AT383/$C$383)","v":""},null,{"$f":"IF($C$383=\"\",\"\",AV383/$C$383)","v":""},null,{"$f":"IF($C$383=\"\",\"\",AX383/$C$383)","v":""},null,{"$f":"IF($C$383=\"\",\"\",AZ383/$C$383)","v":""},null,{"$f":"IF($C$383=\"\",\"\",BB383/$C$383)","v":""},null,0]
[null,null,null,null,{"$f":"IF($C$384=\"\",\"\",F384/$C$384)","v":""},null,{"$f":"IF($C$384=\"\",\"\",H384/$C$384)","v":""},null,{"$f":"IF($C$384=\"\",\"\",J384/$C$384)","v":""},null,{"$f":"IF($C$384=\"\",\"\",L384/$C$384)","v":""},null,{"$f":"IF($C$384=\"\",\"\",N384/$C$384)","v":""},null,{"$f":"IF($C$384=\"\",\"\",P384/$C$384)","v":""},null,{"$f":"IF($C$384=\"\",\"\",R384/$C$384)","v":""},null,{"$f":"IF($C$384=\"\",\"\",T384/$C$384)","v":""},null,{"$f":"IF($C$384=\"\",\"\",V384/$C$384)","v":""},null,{"$f":"IF($C$384=\"\",\"\",X384/$C$384)","v":""},null,{"$f":"IF($C$384=\"\",\"\",Z384/$C$384)","v":""},null,{"$f":"IF($C$384=\"\",\"\",AB384/$C$384)","v":""},null,{"$f":"IF($C$384=\"\",\"\",AD384/$C$384)","v":""},null,{"$f":"IF($C$384=\"\",\"\",AF384/$C$384)","v":""},null,{"$f":"IF($C$384=\"\",\"\",AH384/$C$384)","v":""},null,{"$f":"IF($C$384=\"\",\"\",AJ384/$C$384)","v":""},null,{"$f":"IF($C$384=\"\",\"\",AL384/$C$384)","v":""},null,{"$f":"IF($C$384=\"\",\"\",AN384/$C$384)","v":""},null,{"$f":"IF($C$384=\"\",\"\",AP384/$C$384)","v":""},null,{"$f":"IF($C$384=\"\",\"\",AR384/$C$384)","v":""},null,{"$f":"IF($C$384=\"\",\"\",AT384/$C$384)","v":""},null,{"$f":"IF($C$384=\"\",\"\",AV384/$C$384)","v":""},null,{"$f":"IF($C$384=\"\",\"\",AX384/$C$384)","v":""},null,{"$f":"IF($C$384=\"\",\"\",AZ384/$C$384)","v":""},null,{"$f":"IF($C$384=\"\",\"\",BB384/$C$384)","v":""},null,0]
[null,null,null,null,{"$f":"IF($C$385=\"\",\"\",F385/$C$385)","v":""},null,{"$f":"IF($C$385=\"\",\"\",H385/$C$385)","v":""},null,{"$f":"IF($C$385=\"\",\"\",J385/$C$385)","v":""},null,{"$f":"IF($C$385=\"\",\"\",L385/$C$385)","v":""},null,{"$f":"IF($C$385=\"\",\"\",N385/$C$385)","v":""},null,{"$f":"IF($C$385=\"\",\"\",P385/$C$385)","v":""},null,{"$f":"IF($C$385=\"\",\"\",R385/$C$385)","v":""},null,{"$f":"IF($C$385=\"\",\"\",T385/$C$385)","v":""},null,{"$f":"IF($C$385=\"\",\"\",V385/$C$385)","v":""},null,{"$f":"IF($C$385=\"\",\"\",X385/$C$385)","v":""},null,{"$f":"IF($C$385=\"\",\"\",Z385/$C$385)","v":""},null,{"$f":"IF($C$385=\"\",\"\",AB385/$C$385)","v":""},null,{"$f":"IF($C$385=\"\",\"\",AD385/$C$385)","v":""},null,{"$f":"IF($C$385=\"\",\"\",AF385/$C$385)","v":""},null,{"$f":"IF($C$385=\"\",\"\",AH385/$C$385)","v":""},null,{"$f":"IF($C$385=\"\",\"\",AJ385/$C$385)","v":""},null,{"$f":"IF($C$385=\"\",\"\",AL385/$C$385)","v":""},null,{"$f":"IF($C$385=\"\",\"\",AN385/$C$385)","v":""},null,{"$f":"IF($C$385=\"\",\"\",AP385/$C$385)","v":""},null,{"$f":"IF($C$385=\"\",\"\",AR385/$C$385)","v":""},null,{"$f":"IF($C$385=\"\",\"\",AT385/$C$385)","v":""},null,{"$f":"IF($C$385=\"\",\"\",AV385/$C$385)","v":""},null,{"$f":"IF($C$385=\"\",\"\",AX385/$C$385)","v":""},null,{"$f":"IF($C$385=\"\",\"\",AZ385/$C$385)","v":""},null,{"$f":"IF($C$385=\"\",\"\",BB385/$C$385)","v":""},null,0]
[null,null,null,null,{"$f":"IF($C$386=\"\",\"\",F386/$C$386)","v":""},null,{"$f":"IF($C$386=\"\",\"\",H386/$C$386)","v":""},null,{"$f":"IF($C$386=\"\",\"\",J386/$C$386)","v":""},null,{"$f":"IF($C$386=\"\",\"\",L386/$C$386)","v":""},null,{"$f":"IF($C$386=\"\",\"\",N386/$C$386)","v":""},null,{"$f":"IF($C$386=\"\",\"\",P386/$C$386)","v":""},null,{"$f":"IF($C$386=\"\",\"\",R386/$C$386)","v":""},null,{"$f":"IF($C$386=\"\",\"\",T386/$C$386)","v":""},null,{"$f":"IF($C$386=\"\",\"\",V386/$C$386)","v":""},null,{"$f":"IF($C$386=\"\",\"\",X386/$C$386)","v":""},null,{"$f":"IF($C$386=\"\",\"\",Z386/$C$386)","v":""},null,{"$f":"IF($C$386=\"\",\"\",AB386/$C$386)","v":""},null,{"$f":"IF($C$386=\"\",\"\",AD386/$C$386)","v":""},null,{"$f":"IF($C$386=\"\",\"\",AF386/$C$386)","v":""},null,{"$f":"IF($C$386=\"\",\"\",AH386/$C$386)","v":""},null,{"$f":"IF($C$386=\"\",\"\",AJ386/$C$386)","v":""},null,{"$f":"IF($C$386=\"\",\"\",AL386/$C$386)","v":""},null,{"$f":"IF($C$386=\"\",\"\",AN386/$C$386)","v":""},null,{"$f":"IF($C$386=\"\",\"\",AP386/$C$386)","v":""},null,{"$f":"IF($C$386=\"\",\"\",AR386/$C$386)","v":""},null,{"$f":"IF($C$386=\"\",\"\",AT386/$C$386)","v":""},null,{"$f":"IF($C$386=\"\",\"\",AV386/$C$386)","v":""},null,{"$f":"IF($C$386=\"\",\"\",AX386/$C$386)","v":""},null,{"$f":"IF($C$386=\"\",\"\",AZ386/$C$386)","v":""},null,{"$f":"IF($C$386=\"\",\"\",BB386/$C$386)","v":""},null,0]
[null,null,null,null,{"$f":"IF($C$387=\"\",\"\",F387/$C$387)","v":""},null,{"$f":"IF($C$387=\"\",\"\",H387/$C$387)","v":""},null,{"$f":"IF($C$387=\"\",\"\",J387/$C$387)","v":""},null,{"$f":"IF($C$387=\"\",\"\",L387/$C$387)","v":""},null,{"$f":"IF($C$387=\"\",\"\",N387/$C$387)","v":""},null,{"$f":"IF($C$387=\"\",\"\",P387/$C$387)","v":""},null,{"$f":"IF($C$387=\"\",\"\",R387/$C$387)","v":""},null,{"$f":"IF($C$387=\"\",\"\",T387/$C$387)","v":""},null,{"$f":"IF($C$387=\"\",\"\",V387/$C$387)","v":""},null,{"$f":"IF($C$387=\"\",\"\",X387/$C$387)","v":""},null,{"$f":"IF($C$387=\"\",\"\",Z387/$C$387)","v":""},null,{"$f":"IF($C$387=\"\",\"\",AB387/$C$387)","v":""},null,{"$f":"IF($C$387=\"\",\"\",AD387/$C$387)","v":""},null,{"$f":"IF($C$387=\"\",\"\",AF387/$C$387)","v":""},null,{"$f":"IF($C$387=\"\",\"\",AH387/$C$387)","v":""},null,{"$f":"IF($C$387=\"\",\"\",AJ387/$C$387)","v":""},null,{"$f":"IF($C$387=\"\",\"\",AL387/$C$387)","v":""},null,{"$f":"IF($C$387=\"\",\"\",AN387/$C$387)","v":""},null,{"$f":"IF($C$387=\"\",\"\",AP387/$C$387)","v":""},null,{"$f":"IF($C$387=\"\",\"\",AR387/$C$387)","v":""},null,{"$f":"IF($C$387=\"\",\"\",AT387/$C$387)","v":""},null,{"$f":"IF($C$387=\"\",\"\",AV387/$C$387)","v":""},null,{"$f":"IF($C$387=\"\",\"\",AX387/$C$387)","v":""},null,{"$f":"IF($C$387=\"\",\"\",AZ387/$C$387)","v":""},null,{"$f":"IF($C$387=\"\",\"\",BB387/$C$387)","v":""},null,0]
[null,null,null,null,{"$f":"IF($C$388=\"\",\"\",F388/$C$388)","v":""},null,{"$f":"IF($C$388=\"\",\"\",H388/$C$388)","v":""},null,{"$f":"IF($C$388=\"\",\"\",J388/$C$388)","v":""},null,{"$f":"IF($C$388=\"\",\"\",L388/$C$388)","v":""},null,{"$f":"IF($C$388=\"\",\"\",N388/$C$388)","v":""},null,{"$f":"IF($C$388=\"\",\"\",P388/$C$388)","v":""},null,{"$f":"IF($C$388=\"\",\"\",R388/$C$388)","v":""},null,{"$f":"IF($C$388=\"\",\"\",T388/$C$388)","v":""},null,{"$f":"IF($C$388=\"\",\"\",V388/$C$388)","v":""},null,{"$f":"IF($C$388=\"\",\"\",X388/$C$388)","v":""},null,{"$f":"IF($C$388=\"\",\"\",Z388/$C$388)","v":""},null,{"$f":"IF($C$388=\"\",\"\",AB388/$C$388)","v":""},null,{"$f":"IF($C$388=\"\",\"\",AD388/$C$388)","v":""},null,{"$f":"IF($C$388=\"\",\"\",AF388/$C$388)","v":""},null,{"$f":"IF($C$388=\"\",\"\",AH388/$C$388)","v":""},null,{"$f":"IF($C$388=\"\",\"\",AJ388/$C$388)","v":""},null,{"$f":"IF($C$388=\"\",\"\",AL388/$C$388)","v":""},null,{"$f":"IF($C$388=\"\",\"\",AN388/$C$388)","v":""},null,{"$f":"IF($C$388=\"\",\"\",AP388/$C$388)","v":""},null,{"$f":"IF($C$388=\"\",\"\",AR388/$C$388)","v":""},null,{"$f":"IF($C$388=\"\",\"\",AT388/$C$388)","v":""},null,{"$f":"IF($C$388=\"\",\"\",AV388/$C$388)","v":""},null,{"$f":"IF($C$388=\"\",\"\",AX388/$C$388)","v":""},null,{"$f":"IF($C$388=\"\",\"\",AZ388/$C$388)","v":""},null,{"$f":"IF($C$388=\"\",\"\",BB388/$C$388)","v":""},null,0]
[null,null,null,null,{"$f":"IF($C$389=\"\",\"\",F389/$C$389)","v":""},null,{"$f":"IF($C$389=\"\",\"\",H389/$C$389)","v":""},null,{"$f":"IF($C$389=\"\",\"\",J389/$C$389)","v":""},null,{"$f":"IF($C$389=\"\",\"\",L389/$C$389)","v":""},null,{"$f":"IF($C$389=\"\",\"\",N389/$C$389)","v":""},null,{"$f":"IF($C$389=\"\",\"\",P389/$C$389)","v":""},null,{"$f":"IF($C$389=\"\",\"\",R389/$C$389)","v":""},null,{"$f":"IF($C$389=\"\",\"\",T389/$C$389)","v":""},null,{"$f":"IF($C$389=\"\",\"\",V389/$C$389)","v":""},null,{"$f":"IF($C$389=\"\",\"\",X389/$C$389)","v":""},null,{"$f":"IF($C$389=\"\",\"\",Z389/$C$389)","v":""},null,{"$f":"IF($C$389=\"\",\"\",AB389/$C$389)","v":""},null,{"$f":"IF($C$389=\"\",\"\",AD389/$C$389)","v":""},null,{"$f":"IF($C$389=\"\",\"\",AF389/$C$389)","v":""},null,{"$f":"IF($C$389=\"\",\"\",AH389/$C$389)","v":""},null,{"$f":"IF($C$389=\"\",\"\",AJ389/$C$389)","v":""},null,{"$f":"IF($C$389=\"\",\"\",AL389/$C$389)","v":""},null,{"$f":"IF($C$389=\"\",\"\",AN389/$C$389)","v":""},null,{"$f":"IF($C$389=\"\",\"\",AP389/$C$389)","v":""},null,{"$f":"IF($C$389=\"\",\"\",AR389/$C$389)","v":""},null,{"$f":"IF($C$389=\"\",\"\",AT389/$C$389)","v":""},null,{"$f":"IF($C$389=\"\",\"\",AV389/$C$389)","v":""},null,{"$f":"IF($C$389=\"\",\"\",AX389/$C$389)","v":""},null,{"$f":"IF($C$389=\"\",\"\",AZ389/$C$389)","v":""},null,{"$f":"IF($C$389=\"\",\"\",BB389/$C$389)","v":""},null,0]
[null,null,null,null,{"$f":"IF($C$390=\"\",\"\",F390/$C$390)","v":""},null,{"$f":"IF($C$390=\"\",\"\",H390/$C$390)","v":""},null,{"$f":"IF($C$390=\"\",\"\",J390/$C$390)","v":""},null,{"$f":"IF($C$390=\"\",\"\",L390/$C$390)","v":""},null,{"$f":"IF($C$390=\"\",\"\",N390/$C$390)","v":""},null,{"$f":"IF($C$390=\"\",\"\",P390/$C$390)","v":""},null,{"$f":"IF($C$390=\"\",\"\",R390/$C$390)","v":""},null,{"$f":"IF($C$390=\"\",\"\",T390/$C$390)","v":""},null,{"$f":"IF($C$390=\"\",\"\",V390/$C$390)","v":""},null,{"$f":"IF($C$390=\"\",\"\",X390/$C$390)","v":""},null,{"$f":"IF($C$390=\"\",\"\",Z390/$C$390)","v":""},null,{"$f":"IF($C$390=\"\",\"\",AB390/$C$390)","v":""},null,{"$f":"IF($C$390=\"\",\"\",AD390/$C$390)","v":""},null,{"$f":"IF($C$390=\"\",\"\",AF390/$C$390)","v":""},null,{"$f":"IF($C$390=\"\",\"\",AH390/$C$390)","v":""},null,{"$f":"IF($C$390=\"\",\"\",AJ390/$C$390)","v":""},null,{"$f":"IF($C$390=\"\",\"\",AL390/$C$390)","v":""},null,{"$f":"IF($C$390=\"\",\"\",AN390/$C$390)","v":""},null,{"$f":"IF($C$390=\"\",\"\",AP390/$C$390)","v":""},null,{"$f":"IF($C$390=\"\",\"\",AR390/$C$390)","v":""},null,{"$f":"IF($C$390=\"\",\"\",AT390/$C$390)","v":""},null,{"$f":"IF($C$390=\"\",\"\",AV390/$C$390)","v":""},null,{"$f":"IF($C$390=\"\",\"\",AX390/$C$390)","v":""},null,{"$f":"IF($C$390=\"\",\"\",AZ390/$C$390)","v":""},null,{"$f":"IF($C$390=\"\",\"\",BB390/$C$390)","v":""},null,0]
[null,null,null,null,{"$f":"IF($C$391=\"\",\"\",F391/$C$391)","v":""},null,{"$f":"IF($C$391=\"\",\"\",H391/$C$391)","v":""},null,{"$f":"IF($C$391=\"\",\"\",J391/$C$391)","v":""},null,{"$f":"IF($C$391=\"\",\"\",L391/$C$391)","v":""},null,{"$f":"IF($C$391=\"\",\"\",N391/$C$391)","v":""},null,{"$f":"IF($C$391=\"\",\"\",P391/$C$391)","v":""},null,{"$f":"IF($C$391=\"\",\"\",R391/$C$391)","v":""},null,{"$f":"IF($C$391=\"\",\"\",T391/$C$391)","v":""},null,{"$f":"IF($C$391=\"\",\"\",V391/$C$391)","v":""},null,{"$f":"IF($C$391=\"\",\"\",X391/$C$391)","v":""},null,{"$f":"IF($C$391=\"\",\"\",Z391/$C$391)","v":""},null,{"$f":"IF($C$391=\"\",\"\",AB391/$C$391)","v":""},null,{"$f":"IF($C$391=\"\",\"\",AD391/$C$391)","v":""},null,{"$f":"IF($C$391=\"\",\"\",AF391/$C$391)","v":""},null,{"$f":"IF($C$391=\"\",\"\",AH391/$C$391)","v":""},null,{"$f":"IF($C$391=\"\",\"\",AJ391/$C$391)","v":""},null,{"$f":"IF($C$391=\"\",\"\",AL391/$C$391)","v":""},null,{"$f":"IF($C$391=\"\",\"\",AN391/$C$391)","v":""},null,{"$f":"IF($C$391=\"\",\"\",AP391/$C$391)","v":""},null,{"$f":"IF($C$391=\"\",\"\",AR391/$C$391)","v":""},null,{"$f":"IF($C$391=\"\",\"\",AT391/$C$391)","v":""},null,{"$f":"IF($C$391=\"\",\"\",AV391/$C$391)","v":""},null,{"$f":"IF($C$391=\"\",\"\",AX391/$C$391)","v":""},null,{"$f":"IF($C$391=\"\",\"\",AZ391/$C$391)","v":""},null,{"$f":"IF($C$391=\"\",\"\",BB391/$C$391)","v":""},null,0]
[null,null,null,null,{"$f":"IF($C$392=\"\",\"\",F392/$C$392)","v":""},null,{"$f":"IF($C$392=\"\",\"\",H392/$C$392)","v":""},null,{"$f":"IF($C$392=\"\",\"\",J392/$C$392)","v":""},null,{"$f":"IF($C$392=\"\",\"\",L392/$C$392)","v":""},null,{"$f":"IF($C$392=\"\",\"\",N392/$C$392)","v":""},null,{"$f":"IF($C$392=\"\",\"\",P392/$C$392)","v":""},null,{"$f":"IF($C$392=\"\",\"\",R392/$C$392)","v":""},null,{"$f":"IF($C$392=\"\",\"\",T392/$C$392)","v":""},null,{"$f":"IF($C$392=\"\",\"\",V392/$C$392)","v":""},null,{"$f":"IF($C$392=\"\",\"\",X392/$C$392)","v":""},null,{"$f":"IF($C$392=\"\",\"\",Z392/$C$392)","v":""},null,{"$f":"IF($C$392=\"\",\"\",AB392/$C$392)","v":""},null,{"$f":"IF($C$392=\"\",\"\",AD392/$C$392)","v":""},null,{"$f":"IF($C$392=\"\",\"\",AF392/$C$392)","v":""},null,{"$f":"IF($C$392=\"\",\"\",AH392/$C$392)","v":""},null,{"$f":"IF($C$392=\"\",\"\",AJ392/$C$392)","v":""},null,{"$f":"IF($C$392=\"\",\"\",AL392/$C$392)","v":""},null,{"$f":"IF($C$392=\"\",\"\",AN392/$C$392)","v":""},null,{"$f":"IF($C$392=\"\",\"\",AP392/$C$392)","v":""},null,{"$f":"IF($C$392=\"\",\"\",AR392/$C$392)","v":""},null,{"$f":"IF($C$392=\"\",\"\",AT392/$C$392)","v":""},null,{"$f":"IF($C$392=\"\",\"\",AV392/$C$392)","v":""},null,{"$f":"IF($C$392=\"\",\"\",AX392/$C$392)","v":""},null,{"$f":"IF($C$392=\"\",\"\",AZ392/$C$392)","v":""},null,{"$f":"IF($C$392=\"\",\"\",BB392/$C$392)","v":""},null,0]
[null,null,null,null,{"$f":"IF($C$393=\"\",\"\",F393/$C$393)","v":""},null,{"$f":"IF($C$393=\"\",\"\",H393/$C$393)","v":""},null,{"$f":"IF($C$393=\"\",\"\",J393/$C$393)","v":""},null,{"$f":"IF($C$393=\"\",\"\",L393/$C$393)","v":""},null,{"$f":"IF($C$393=\"\",\"\",N393/$C$393)","v":""},null,{"$f":"IF($C$393=\"\",\"\",P393/$C$393)","v":""},null,{"$f":"IF($C$393=\"\",\"\",R393/$C$393)","v":""},null,{"$f":"IF($C$393=\"\",\"\",T393/$C$393)","v":""},null,{"$f":"IF($C$393=\"\",\"\",V393/$C$393)","v":""},null,{"$f":"IF($C$393=\"\",\"\",X393/$C$393)","v":""},null,{"$f":"IF($C$393=\"\",\"\",Z393/$C$393)","v":""},null,{"$f":"IF($C$393=\"\",\"\",AB393/$C$393)","v":""},null,{"$f":"IF($C$393=\"\",\"\",AD393/$C$393)","v":""},null,{"$f":"IF($C$393=\"\",\"\",AF393/$C$393)","v":""},null,{"$f":"IF($C$393=\"\",\"\",AH393/$C$393)","v":""},null,{"$f":"IF($C$393=\"\",\"\",AJ393/$C$393)","v":""},null,{"$f":"IF($C$393=\"\",\"\",AL393/$C$393)","v":""},null,{"$f":"IF($C$393=\"\",\"\",AN393/$C$393)","v":""},null,{"$f":"IF($C$393=\"\",\"\",AP393/$C$393)","v":""},null,{"$f":"IF($C$393=\"\",\"\",AR393/$C$393)","v":""},null,{"$f":"IF($C$393=\"\",\"\",AT393/$C$393)","v":""},null,{"$f":"IF($C$393=\"\",\"\",AV393/$C$393)","v":""},null,{"$f":"IF($C$393=\"\",\"\",AX393/$C$393)","v":""},null,{"$f":"IF($C$393=\"\",\"\",AZ393/$C$393)","v":""},null,{"$f":"IF($C$393=\"\",\"\",BB393/$C$393)","v":""},null,0]
[null,null,null,null,{"$f":"IF($C$394=\"\",\"\",F394/$C$394)","v":""},null,{"$f":"IF($C$394=\"\",\"\",H394/$C$394)","v":""},null,{"$f":"IF($C$394=\"\",\"\",J394/$C$394)","v":""},null,{"$f":"IF($C$394=\"\",\"\",L394/$C$394)","v":""},null,{"$f":"IF($C$394=\"\",\"\",N394/$C$394)","v":""},null,{"$f":"IF($C$394=\"\",\"\",P394/$C$394)","v":""},null,{"$f":"IF($C$394=\"\",\"\",R394/$C$394)","v":""},null,{"$f":"IF($C$394=\"\",\"\",T394/$C$394)","v":""},null,{"$f":"IF($C$394=\"\",\"\",V394/$C$394)","v":""},null,{"$f":"IF($C$394=\"\",\"\",X394/$C$394)","v":""},null,{"$f":"IF($C$394=\"\",\"\",Z394/$C$394)","v":""},null,{"$f":"IF($C$394=\"\",\"\",AB394/$C$394)","v":""},null,{"$f":"IF($C$394=\"\",\"\",AD394/$C$394)","v":""},null,{"$f":"IF($C$394=\"\",\"\",AF394/$C$394)","v":""},null,{"$f":"IF($C$394=\"\",\"\",AH394/$C$394)","v":""},null,{"$f":"IF($C$394=\"\",\"\",AJ394/$C$394)","v":""},null,{"$f":"IF($C$394=\"\",\"\",AL394/$C$394)","v":""},null,{"$f":"IF($C$394=\"\",\"\",AN394/$C$394)","v":""},null,{"$f":"IF($C$394=\"\",\"\",AP394/$C$394)","v":""},null,{"$f":"IF($C$394=\"\",\"\",AR394/$C$394)","v":""},null,{"$f":"IF($C$394=\"\",\"\",AT394/$C$394)","v":""},null,{"$f":"IF($C$394=\"\",\"\",AV394/$C$394)","v":""},null,{"$f":"IF($C$394=\"\",\"\",AX394/$C$394)","v":""},null,{"$f":"IF($C$394=\"\",\"\",AZ394/$C$394)","v":""},null,{"$f":"IF($C$394=\"\",\"\",BB394/$C$394)","v":""},null,0]
[null,null,null,null,{"$f":"IF($C$395=\"\",\"\",F395/$C$395)","v":""},null,{"$f":"IF($C$395=\"\",\"\",H395/$C$395)","v":""},null,{"$f":"IF($C$395=\"\",\"\",J395/$C$395)","v":""},null,{"$f":"IF($C$395=\"\",\"\",L395/$C$395)","v":""},null,{"$f":"IF($C$395=\"\",\"\",N395/$C$395)","v":""},null,{"$f":"IF($C$395=\"\",\"\",P395/$C$395)","v":""},null,{"$f":"IF($C$395=\"\",\"\",R395/$C$395)","v":""},null,{"$f":"IF($C$395=\"\",\"\",T395/$C$395)","v":""},null,{"$f":"IF($C$395=\"\",\"\",V395/$C$395)","v":""},null,{"$f":"IF($C$395=\"\",\"\",X395/$C$395)","v":""},null,{"$f":"IF($C$395=\"\",\"\",Z395/$C$395)","v":""},null,{"$f":"IF($C$395=\"\",\"\",AB395/$C$395)","v":""},null,{"$f":"IF($C$395=\"\",\"\",AD395/$C$395)","v":""},null,{"$f":"IF($C$395=\"\",\"\",AF395/$C$395)","v":""},null,{"$f":"IF($C$395=\"\",\"\",AH395/$C$395)","v":""},null,{"$f":"IF($C$395=\"\",\"\",AJ395/$C$395)","v":""},null,{"$f":"IF($C$395=\"\",\"\",AL395/$C$395)","v":""},null,{"$f":"IF($C$395=\"\",\"\",AN395/$C$395)","v":""},null,{"$f":"IF($C$395=\"\",\"\",AP395/$C$395)","v":""},null,{"$f":"IF($C$395=\"\",\"\",AR395/$C$395)","v":""},null,{"$f":"IF($C$395=\"\",\"\",AT395/$C$395)","v":""},null,{"$f":"IF($C$395=\"\",\"\",AV395/$C$395)","v":""},null,{"$f":"IF($C$395=\"\",\"\",AX395/$C$395)","v":""},null,{"$f":"IF($C$395=\"\",\"\",AZ395/$C$395)","v":""},null,{"$f":"IF($C$395=\"\",\"\",BB395/$C$395)","v":""},null,0]
[null,null,null,null,{"$f":"IF($C$396=\"\",\"\",F396/$C$396)","v":""},null,{"$f":"IF($C$396=\"\",\"\",H396/$C$396)","v":""},null,{"$f":"IF($C$396=\"\",\"\",J396/$C$396)","v":""},null,{"$f":"IF($C$396=\"\",\"\",L396/$C$396)","v":""},null,{"$f":"IF($C$396=\"\",\"\",N396/$C$396)","v":""},null,{"$f":"IF($C$396=\"\",\"\",P396/$C$396)","v":""},null,{"$f":"IF($C$396=\"\",\"\",R396/$C$396)","v":""},null,{"$f":"IF($C$396=\"\",\"\",T396/$C$396)","v":""},null,{"$f":"IF($C$396=\"\",\"\",V396/$C$396)","v":""},null,{"$f":"IF($C$396=\"\",\"\",X396/$C$396)","v":""},null,{"$f":"IF($C$396=\"\",\"\",Z396/$C$396)","v":""},null,{"$f":"IF($C$396=\"\",\"\",AB396/$C$396)","v":""},null,{"$f":"IF($C$396=\"\",\"\",AD396/$C$396)","v":""},null,{"$f":"IF($C$396=\"\",\"\",AF396/$C$396)","v":""},null,{"$f":"IF($C$396=\"\",\"\",AH396/$C$396)","v":""},null,{"$f":"IF($C$396=\"\",\"\",AJ396/$C$396)","v":""},null,{"$f":"IF($C$396=\"\",\"\",AL396/$C$396)","v":""},null,{"$f":"IF($C$396=\"\",\"\",AN396/$C$396)","v":""},null,{"$f":"IF($C$396=\"\",\"\",AP396/$C$396)","v":""},null,{"$f":"IF($C$396=\"\",\"\",AR396/$C$396)","v":""},null,{"$f":"IF($C$396=\"\",\"\",AT396/$C$396)","v":""},null,{"$f":"IF($C$396=\"\",\"\",AV396/$C$396)","v":""},null,{"$f":"IF($C$396=\"\",\"\",AX396/$C$396)","v":""},null,{"$f":"IF($C$396=\"\",\"\",AZ396/$C$396)","v":""},null,{"$f":"IF($C$396=\"\",\"\",BB396/$C$396)","v":""},null,0]
[null,null,null,null,{"$f":"IF($C$397=\"\",\"\",F397/$C$397)","v":""},null,{"$f":"IF($C$397=\"\",\"\",H397/$C$397)","v":""},null,{"$f":"IF($C$397=\"\",\"\",J397/$C$397)","v":""},null,{"$f":"IF($C$397=\"\",\"\",L397/$C$397)","v":""},null,{"$f":"IF($C$397=\"\",\"\",N397/$C$397)","v":""},null,{"$f":"IF($C$397=\"\",\"\",P397/$C$397)","v":""},null,{"$f":"IF($C$397=\"\",\"\",R397/$C$397)","v":""},null,{"$f":"IF($C$397=\"\",\"\",T397/$C$397)","v":""},null,{"$f":"IF($C$397=\"\",\"\",V397/$C$397)","v":""},null,{"$f":"IF($C$397=\"\",\"\",X397/$C$397)","v":""},null,{"$f":"IF($C$397=\"\",\"\",Z397/$C$397)","v":""},null,{"$f":"IF($C$397=\"\",\"\",AB397/$C$397)","v":""},null,{"$f":"IF($C$397=\"\",\"\",AD397/$C$397)","v":""},null,{"$f":"IF($C$397=\"\",\"\",AF397/$C$397)","v":""},null,{"$f":"IF($C$397=\"\",\"\",AH397/$C$397)","v":""},null,{"$f":"IF($C$397=\"\",\"\",AJ397/$C$397)","v":""},null,{"$f":"IF($C$397=\"\",\"\",AL397/$C$397)","v":""},null,{"$f":"IF($C$397=\"\",\"\",AN397/$C$397)","v":""},null,{"$f":"IF($C$397=\"\",\"\",AP397/$C$397)","v":""},null,{"$f":"IF($C$397=\"\",\"\",AR397/$C$397)","v":""},null,{"$f":"IF($C$397=\"\",\"\",AT397/$C$397)","v":""},null,{"$f":"IF($C$397=\"\",\"\",AV397/$C$397)","v":""},null,{"$f":"IF($C$397=\"\",\"\",AX397/$C$397)","v":""},null,{"$f":"IF($C$397=\"\",\"\",AZ397/$C$397)","v":""},null,{"$f":"IF($C$397=\"\",\"\",BB397/$C$397)","v":""},null,0]
[null,null,null,null,{"$f":"IF($C$398=\"\",\"\",F398/$C$398)","v":""},null,{"$f":"IF($C$398=\"\",\"\",H398/$C$398)","v":""},null,{"$f":"IF($C$398=\"\",\"\",J398/$C$398)","v":""},null,{"$f":"IF($C$398=\"\",\"\",L398/$C$398)","v":""},null,{"$f":"IF($C$398=\"\",\"\",N398/$C$398)","v":""},null,{"$f":"IF($C$398=\"\",\"\",P398/$C$398)","v":""},null,{"$f":"IF($C$398=\"\",\"\",R398/$C$398)","v":""},null,{"$f":"IF($C$398=\"\",\"\",T398/$C$398)","v":""},null,{"$f":"IF($C$398=\"\",\"\",V398/$C$398)","v":""},null,{"$f":"IF($C$398=\"\",\"\",X398/$C$398)","v":""},null,{"$f":"IF($C$398=\"\",\"\",Z398/$C$398)","v":""},null,{"$f":"IF($C$398=\"\",\"\",AB398/$C$398)","v":""},null,{"$f":"IF($C$398=\"\",\"\",AD398/$C$398)","v":""},null,{"$f":"IF($C$398=\"\",\"\",AF398/$C$398)","v":""},null,{"$f":"IF($C$398=\"\",\"\",AH398/$C$398)","v":""},null,{"$f":"IF($C$398=\"\",\"\",AJ398/$C$398)","v":""},null,{"$f":"IF($C$398=\"\",\"\",AL398/$C$398)","v":""},null,{"$f":"IF($C$398=\"\",\"\",AN398/$C$398)","v":""},null,{"$f":"IF($C$398=\"\",\"\",AP398/$C$398)","v":""},null,{"$f":"IF($C$398=\"\",\"\",AR398/$C$398)","v":""},null,{"$f":"IF($C$398=\"\",\"\",AT398/$C$398)","v":""},null,{"$f":"IF($C$398=\"\",\"\",AV398/$C$398)","v":""},null,{"$f":"IF($C$398=\"\",\"\",AX398/$C$398)","v":""},null,{"$f":"IF($C$398=\"\",\"\",AZ398/$C$398)","v":""},null,{"$f":"IF($C$398=\"\",\"\",BB398/$C$398)","v":""},null,0]
[null,null,null,null,{"$f":"IF($C$399=\"\",\"\",F399/$C$399)","v":""},null,{"$f":"IF($C$399=\"\",\"\",H399/$C$399)","v":""},null,{"$f":"IF($C$399=\"\",\"\",J399/$C$399)","v":""},null,{"$f":"IF($C$399=\"\",\"\",L399/$C$399)","v":""},null,{"$f":"IF($C$399=\"\",\"\",N399/$C$399)","v":""},null,{"$f":"IF($C$399=\"\",\"\",P399/$C$399)","v":""},null,{"$f":"IF($C$399=\"\",\"\",R399/$C$399)","v":""},null,{"$f":"IF($C$399=\"\",\"\",T399/$C$399)","v":""},null,{"$f":"IF($C$399=\"\",\"\",V399/$C$399)","v":""},null,{"$f":"IF($C$399=\"\",\"\",X399/$C$399)","v":""},null,{"$f":"IF($C$399=\"\",\"\",Z399/$C$399)","v":""},null,{"$f":"IF($C$399=\"\",\"\",AB399/$C$399)","v":""},null,{"$f":"IF($C$399=\"\",\"\",AD399/$C$399)","v":""},null,{"$f":"IF($C$399=\"\",\"\",AF399/$C$399)","v":""},null,{"$f":"IF($C$399=\"\",\"\",AH399/$C$399)","v":""},null,{"$f":"IF($C$399=\"\",\"\",AJ399/$C$399)","v":""},null,{"$f":"IF($C$399=\"\",\"\",AL399/$C$399)","v":""},null,{"$f":"IF($C$399=\"\",\"\",AN399/$C$399)","v":""},null,{"$f":"IF($C$399=\"\",\"\",AP399/$C$399)","v":""},null,{"$f":"IF($C$399=\"\",\"\",AR399/$C$399)","v":""},null,{"$f":"IF($C$399=\"\",\"\",AT399/$C$399)","v":""},null,{"$f":"IF($C$399=\"\",\"\",AV399/$C$399)","v":""},null,{"$f":"IF($C$399=\"\",\"\",AX399/$C$399)","v":""},null,{"$f":"IF($C$399=\"\",\"\",AZ399/$C$399)","v":""},null,{"$f":"IF($C$399=\"\",\"\",BB399/$C$399)","v":""},null,0]
[null,null,null,null,{"$f":"IF($C$400=\"\",\"\",F400/$C$400)","v":""},null,{"$f":"IF($C$400=\"\",\"\",H400/$C$400)","v":""},null,{"$f":"IF($C$400=\"\",\"\",J400/$C$400)","v":""},null,{"$f":"IF($C$400=\"\",\"\",L400/$C$400)","v":""},null,{"$f":"IF($C$400=\"\",\"\",N400/$C$400)","v":""},null,{"$f":"IF($C$400=\"\",\"\",P400/$C$400)","v":""},null,{"$f":"IF($C$400=\"\",\"\",R400/$C$400)","v":""},null,{"$f":"IF($C$400=\"\",\"\",T400/$C$400)","v":""},null,{"$f":"IF($C$400=\"\",\"\",V400/$C$400)","v":""},null,{"$f":"IF($C$400=\"\",\"\",X400/$C$400)","v":""},null,{"$f":"IF($C$400=\"\",\"\",Z400/$C$400)","v":""},null,{"$f":"IF($C$400=\"\",\"\",AB400/$C$400)","v":""},null,{"$f":"IF($C$400=\"\",\"\",AD400/$C$400)","v":""},null,{"$f":"IF($C$400=\"\",\"\",AF400/$C$400)","v":""},null,{"$f":"IF($C$400=\"\",\"\",AH400/$C$400)","v":""},null,{"$f":"IF($C$400=\"\",\"\",AJ400/$C$400)","v":""},null,{"$f":"IF($C$400=\"\",\"\",AL400/$C$400)","v":""},null,{"$f":"IF($C$400=\"\",\"\",AN400/$C$400)","v":""},null,{"$f":"IF($C$400=\"\",\"\",AP400/$C$400)","v":""},null,{"$f":"IF($C$400=\"\",\"\",AR400/$C$400)","v":""},null,{"$f":"IF($C$400=\"\",\"\",AT400/$C$400)","v":""},null,{"$f":"IF($C$400=\"\",\"\",AV400/$C$400)","v":""},null,{"$f":"IF($C$400=\"\",\"\",AX400/$C$400)","v":""},null,{"$f":"IF($C$400=\"\",\"\",AZ400/$C$400)","v":""},null,{"$f":"IF($C$400=\"\",\"\",BB400/$C$400)","v":""},null,0]
[null,null,null,null,{"$f":"IF($C$401=\"\",\"\",F401/$C$401)","v":""},null,{"$f":"IF($C$401=\"\",\"\",H401/$C$401)","v":""},null,{"$f":"IF($C$401=\"\",\"\",J401/$C$401)","v":""},null,{"$f":"IF($C$401=\"\",\"\",L401/$C$401)","v":""},null,{"$f":"IF($C$401=\"\",\"\",N401/$C$401)","v":""},null,{"$f":"IF($C$401=\"\",\"\",P401/$C$401)","v":""},null,{"$f":"IF($C$401=\"\",\"\",R401/$C$401)","v":""},null,{"$f":"IF($C$401=\"\",\"\",T401/$C$401)","v":""},null,{"$f":"IF($C$401=\"\",\"\",V401/$C$401)","v":""},null,{"$f":"IF($C$401=\"\",\"\",X401/$C$401)","v":""},null,{"$f":"IF($C$401=\"\",\"\",Z401/$C$401)","v":""},null,{"$f":"IF($C$401=\"\",\"\",AB401/$C$401)","v":""},null,{"$f":"IF($C$401=\"\",\"\",AD401/$C$401)","v":""},null,{"$f":"IF($C$401=\"\",\"\",AF401/$C$401)","v":""},null,{"$f":"IF($C$401=\"\",\"\",AH401/$C$401)","v":""},null,{"$f":"IF($C$401=\"\",\"\",AJ401/$C$401)","v":""},null,{"$f":"IF($C$401=\"\",\"\",AL401/$C$401)","v":""},null,{"$f":"IF($C$401=\"\",\"\",AN401/$C$401)","v":""},null,{"$f":"IF($C$401=\"\",\"\",AP401/$C$401)","v":""},null,{"$f":"IF($C$401=\"\",\"\",AR401/$C$401)","v":""},null,{"$f":"IF($C$401=\"\",\"\",AT401/$C$401)","v":""},null,{"$f":"IF($C$401=\"\",\"\",AV401/$C$401)","v":""},null,{"$f":"IF($C$401=\"\",\"\",AX401/$C$401)","v":""},null,{"$f":"IF($C$401=\"\",\"\",AZ401/$C$401)","v":""},null,{"$f":"IF($C$401=\"\",\"\",BB401/$C$401)","v":""},null,0]
[null,null,null,null,{"$f":"IF($C$402=\"\",\"\",F402/$C$402)","v":""},null,{"$f":"IF($C$402=\"\",\"\",H402/$C$402)","v":""},null,{"$f":"IF($C$402=\"\",\"\",J402/$C$402)","v":""},null,{"$f":"IF($C$402=\"\",\"\",L402/$C$402)","v":""},null,{"$f":"IF($C$402=\"\",\"\",N402/$C$402)","v":""},null,{"$f":"IF($C$402=\"\",\"\",P402/$C$402)","v":""},null,{"$f":"IF($C$402=\"\",\"\",R402/$C$402)","v":""},null,{"$f":"IF($C$402=\"\",\"\",T402/$C$402)","v":""},null,{"$f":"IF($C$402=\"\",\"\",V402/$C$402)","v":""},null,{"$f":"IF($C$402=\"\",\"\",X402/$C$402)","v":""},null,{"$f":"IF($C$402=\"\",\"\",Z402/$C$402)","v":""},null,{"$f":"IF($C$402=\"\",\"\",AB402/$C$402)","v":""},null,{"$f":"IF($C$402=\"\",\"\",AD402/$C$402)","v":""},null,{"$f":"IF($C$402=\"\",\"\",AF402/$C$402)","v":""},null,{"$f":"IF($C$402=\"\",\"\",AH402/$C$402)","v":""},null,{"$f":"IF($C$402=\"\",\"\",AJ402/$C$402)","v":""},null,{"$f":"IF($C$402=\"\",\"\",AL402/$C$402)","v":""},null,{"$f":"IF($C$402=\"\",\"\",AN402/$C$402)","v":""},null,{"$f":"IF($C$402=\"\",\"\",AP402/$C$402)","v":""},null,{"$f":"IF($C$402=\"\",\"\",AR402/$C$402)","v":""},null,{"$f":"IF($C$402=\"\",\"\",AT402/$C$402)","v":""},null,{"$f":"IF($C$402=\"\",\"\",AV402/$C$402)","v":""},null,{"$f":"IF($C$402=\"\",\"\",AX402/$C$402)","v":""},null,{"$f":"IF($C$402=\"\",\"\",AZ402/$C$402)","v":""},null,{"$f":"IF($C$402=\"\",\"\",BB402/$C$402)","v":""},null,0]
[null,null,null,null,{"$f":"IF($C$403=\"\",\"\",F403/$C$403)","v":""},null,{"$f":"IF($C$403=\"\",\"\",H403/$C$403)","v":""},null,{"$f":"IF($C$403=\"\",\"\",J403/$C$403)","v":""},null,{"$f":"IF($C$403=\"\",\"\",L403/$C$403)","v":""},null,{"$f":"IF($C$403=\"\",\"\",N403/$C$403)","v":""},null,{"$f":"IF($C$403=\"\",\"\",P403/$C$403)","v":""},null,{"$f":"IF($C$403=\"\",\"\",R403/$C$403)","v":""},null,{"$f":"IF($C$403=\"\",\"\",T403/$C$403)","v":""},null,{"$f":"IF($C$403=\"\",\"\",V403/$C$403)","v":""},null,{"$f":"IF($C$403=\"\",\"\",X403/$C$403)","v":""},null,{"$f":"IF($C$403=\"\",\"\",Z403/$C$403)","v":""},null,{"$f":"IF($C$403=\"\",\"\",AB403/$C$403)","v":""},null,{"$f":"IF($C$403=\"\",\"\",AD403/$C$403)","v":""},null,{"$f":"IF($C$403=\"\",\"\",AF403/$C$403)","v":""},null,{"$f":"IF($C$403=\"\",\"\",AH403/$C$403)","v":""},null,{"$f":"IF($C$403=\"\",\"\",AJ403/$C$403)","v":""},null,{"$f":"IF($C$403=\"\",\"\",AL403/$C$403)","v":""},null,{"$f":"IF($C$403=\"\",\"\",AN403/$C$403)","v":""},null,{"$f":"IF($C$403=\"\",\"\",AP403/$C$403)","v":""},null,{"$f":"IF($C$403=\"\",\"\",AR403/$C$403)","v":""},null,{"$f":"IF($C$403=\"\",\"\",AT403/$C$403)","v":""},null,{"$f":"IF($C$403=\"\",\"\",AV403/$C$403)","v":""},null,{"$f":"IF($C$403=\"\",\"\",AX403/$C$403)","v":""},null,{"$f":"IF($C$403=\"\",\"\",AZ403/$C$403)","v":""},null,{"$f":"IF($C$403=\"\",\"\",BB403/$C$403)","v":""},null,0]
[null,null,null,null,{"$f":"IF($C$404=\"\",\"\",F404/$C$404)","v":""},null,{"$f":"IF($C$404=\"\",\"\",H404/$C$404)","v":""},null,{"$f":"IF($C$404=\"\",\"\",J404/$C$404)","v":""},null,{"$f":"IF($C$404=\"\",\"\",L404/$C$404)","v":""},null,{"$f":"IF($C$404=\"\",\"\",N404/$C$404)","v":""},null,{"$f":"IF($C$404=\"\",\"\",P404/$C$404)","v":""},null,{"$f":"IF($C$404=\"\",\"\",R404/$C$404)","v":""},null,{"$f":"IF($C$404=\"\",\"\",T404/$C$404)","v":""},null,{"$f":"IF($C$404=\"\",\"\",V404/$C$404)","v":""},null,{"$f":"IF($C$404=\"\",\"\",X404/$C$404)","v":""},null,{"$f":"IF($C$404=\"\",\"\",Z404/$C$404)","v":""},null,{"$f":"IF($C$404=\"\",\"\",AB404/$C$404)","v":""},null,{"$f":"IF($C$404=\"\",\"\",AD404/$C$404)","v":""},null,{"$f":"IF($C$404=\"\",\"\",AF404/$C$404)","v":""},null,{"$f":"IF($C$404=\"\",\"\",AH404/$C$404)","v":""},null,{"$f":"IF($C$404=\"\",\"\",AJ404/$C$404)","v":""},null,{"$f":"IF($C$404=\"\",\"\",AL404/$C$404)","v":""},null,{"$f":"IF($C$404=\"\",\"\",AN404/$C$404)","v":""},null,{"$f":"IF($C$404=\"\",\"\",AP404/$C$404)","v":""},null,{"$f":"IF($C$404=\"\",\"\",AR404/$C$404)","v":""},null,{"$f":"IF($C$404=\"\",\"\",AT404/$C$404)","v":""},null,{"$f":"IF($C$404=\"\",\"\",AV404/$C$404)","v":""},null,{"$f":"IF($C$404=\"\",\"\",AX404/$C$404)","v":""},null,{"$f":"IF($C$404=\"\",\"\",AZ404/$C$404)","v":""},null,{"$f":"IF($C$404=\"\",\"\",BB404/$C$404)","v":""},null,0]
[null,null,null,null,{"$f":"IF($C$405=\"\",\"\",F405/$C$405)","v":""},null,{"$f":"IF($C$405=\"\",\"\",H405/$C$405)","v":""},null,{"$f":"IF($C$405=\"\",\"\",J405/$C$405)","v":""},null,{"$f":"IF($C$405=\"\",\"\",L405/$C$405)","v":""},null,{"$f":"IF($C$405=\"\",\"\",N405/$C$405)","v":""},null,{"$f":"IF($C$405=\"\",\"\",P405/$C$405)","v":""},null,{"$f":"IF($C$405=\"\",\"\",R405/$C$405)","v":""},null,{"$f":"IF($C$405=\"\",\"\",T405/$C$405)","v":""},null,{"$f":"IF($C$405=\"\",\"\",V405/$C$405)","v":""},null,{"$f":"IF($C$405=\"\",\"\",X405/$C$405)","v":""},null,{"$f":"IF($C$405=\"\",\"\",Z405/$C$405)","v":""},null,{"$f":"IF($C$405=\"\",\"\",AB405/$C$405)","v":""},null,{"$f":"IF($C$405=\"\",\"\",AD405/$C$405)","v":""},null,{"$f":"IF($C$405=\"\",\"\",AF405/$C$405)","v":""},null,{"$f":"IF($C$405=\"\",\"\",AH405/$C$405)","v":""},null,{"$f":"IF($C$405=\"\",\"\",AJ405/$C$405)","v":""},null,{"$f":"IF($C$405=\"\",\"\",AL405/$C$405)","v":""},null,{"$f":"IF($C$405=\"\",\"\",AN405/$C$405)","v":""},null,{"$f":"IF($C$405=\"\",\"\",AP405/$C$405)","v":""},null,{"$f":"IF($C$405=\"\",\"\",AR405/$C$405)","v":""},null,{"$f":"IF($C$405=\"\",\"\",AT405/$C$405)","v":""},null,{"$f":"IF($C$405=\"\",\"\",AV405/$C$405)","v":""},null,{"$f":"IF($C$405=\"\",\"\",AX405/$C$405)","v":""},null,{"$f":"IF($C$405=\"\",\"\",AZ405/$C$405)","v":""},null,{"$f":"IF($C$405=\"\",\"\",BB405/$C$405)","v":""},null,{"$f":"SUM(BB405,AZ405,AX405,AV405,AT405,AR405,AP405,AN405,AL405,AJ405,AH405,AF405,AD405,AB405,Z405,X405,V405,T405,R405,P405,N405,L405,J405,H405,F405)","v":0}]
["TOTAL HOURS",null,null,null,null,{"$f":"SUM(F376:F405)","v":0},null,{"$f":"SUM(H376:H405)","v":0},null,{"$f":"SUM(J376:J405)","v":0},null,{"$f":"SUM(L376:L405)","v":0},null,{"$f":"SUM(N376:N405)","v":0},null,{"$f":"SUM(P376:P405)","v":0},null,{"$f":"SUM(R376:R405)","v":0},null,{"$f":"SUM(T376:T405)","v":0},null,{"$f":"SUM(V376:V405)","v":0},null,{"$f":"SUM(X376:X405)","v":0},null,{"$f":"SUM(Z376:Z405)","v":0},null,{"$f":"SUM(AB376:AB405)","v":0},null,{"$f":"SUM(AD376:AD405)","v":0},null,{"$f":"SUM(AF376:AF405)","v":0},null,{"$f":"SUM(AH376:AH405)","v":0},null,{"$f":"SUM(AJ376:AJ405)","v":0},null,{"$f":"SUM(AL376:AL405)","v":0},null,{"$f":"SUM(AN376:AN405)","v":0},null,{"$f":"SUM(AP376:AP405)","v":0},null,{"$f":"SUM(AR376:AR405)","v":0},null,{"$f":"SUM(AT376:AT405)","v":0},null,{"$f":"SUM(AV376:AV405)","v":0},null,{"$f":"SUM(AX376:AX405)","v":0},null,{"$f":"SUM(AZ376:AZ405)","v":0},null,{"$f":"SUM(BB376:BB405)","v":0},{"$f":"SUM(E406:BB406)","v":0}]
["TOTAL WORKDAYS",null,null,null,null,{"$f":"F406/8","v":0},null,{"$f":"H406/8","v":0},null,{"$f":"J406/8","v":0},null,{"$f":"L406/8","v":0},null,{"$f":"N406/8","v":0},null,{"$f":"P406/8","v":0},null,{"$f":"R406/8","v":0},null,{"$f":"T406/8","v":0},null,{"$f":"V406/8","v":0},null,{"$f":"X406/8","v":0},null,{"$f":"Z406/8","v":0},null,{"$f":"AB406/8","v":0},null,{"$f":"AD406/8","v":0},null,0,null,{"$f":"AH406/8","v":0},null,0,null,{"$f":"AL406/8","v":0},null,0,null,{"$f":"AP406/8","v":0},null,0,null,{"$f":"AT406/8","v":0},null,{"$f":"AV406/8","v":0},null,{"$f":"AX406/8","v":0},null,{"$f":"AZ406/8","v":0},null,{"$f":"BB406/8","v":0},{"$f":"SUM(E407:BB407)","v":0}]
["TOTAL RAW LABOR",null,null,null,null,{"$f":"$E$13*F406","v":0},null,{"$f":"$G$13*H406","v":0},null,{"$f":"$I$13*J406","v":0},null,{"$f":"$K$13*L406","v":0},null,{"$f":"$M$13*N406","v":0},null,{"$f":"$O$13*P406","v":0},null,{"$f":"$Q$13*R406","v":0},null,{"$f":"$S$13*T406","v":0},null,{"$f":"$U$13*V406","v":0},null,{"$f":"$W$13*X406","v":0},null,{"$f":"$Y$13*Z406","v":0},null,{"$f":"$AA$13*AB406","v":0},null,{"$f":"$AC$13*AD406","v":0},null,{"$f":"$AC$13*AF406","v":0},null,{"$f":"$AC$13*AH406","v":0},null,{"$f":"$AC$13*AJ406","v":0},null,{"$f":"$AC$13*AL406","v":0},null,{"$f":"$AC$13*AN406","v":0},null,{"$f":"$AC$13*AP406","v":0},null,{"$f":"$AC$13*AR406","v":0},null,{"$f":"$AC$13*AT406","v":0},null,{"$f":"$AC$13*AV406","v":0},null,{"$f":"$AC$13*AX406","v":0},null,{"$f":"$AC$13*AZ406","v":0},null,{"$f":"$AC$13*BB406","v":0},{"$f":"SUM(E408:BB408)","v":0}]
["Task 16.0     ","REPLACE FIELD WITH CATEGORY NAME OF YOUR CHOOSING HERE",null,null,null,null,null,null,null,null,null,null,null,null,null,null,null,null,null,null,null,null,null,null,null,null,null,null,null,null,null,null,null,null,null,null,null,null,null,null,null,null,null,null,null,null,null,null,null,null,null,null,null,null,{"$f":"IF(B409=\"REPLACE FIELD WITH CATEGORY NAME OF YOUR CHOOSING HERE\",0,\"\")","v":0}]
[null,null,null,null,{"$f":"IF($C$410=\"\",\"\",F410/$C$410)","v":""},null,{"$f":"IF($C$410=\"\",\"\",H410/$C$410)","v":""},null,{"$f":"IF($C$410=\"\",\"\",J410/$C$410)","v":""},null,{"$f":"IF($C$410=\"\",\"\",L410/$C$410)","v":""},null,{"$f":"IF($C$410=\"\",\"\",N410/$C$410)","v":""},null,{"$f":"IF($C$410=\"\",\"\",P410/$C$410)","v":""},null,{"$f":"IF($C$410=\"\",\"\",R410/$C$410)","v":""},null,{"$f":"IF($C$410=\"\",\"\",T410/$C$410)","v":""},null,{"$f":"IF($C$410=\"\",\"\",V410/$C$410)","v":""},null,{"$f":"IF($C$410=\"\",\"\",X410/$C$410)","v":""},null,{"$f":"IF($C$410=\"\",\"\",Z410/$C$410)","v":""},null,{"$f":"IF($C$410=\"\",\"\",AB410/$C$410)","v":""},null,{"$f":"IF($C$410=\"\",\"\",AD410/$C$410)","v":""},null,{"$f":"IF($C$410=\"\",\"\",AF410/$C$410)","v":""},null,{"$f":"IF($C$410=\"\",\"\",AH410/$C$410)","v":""},null,{"$f":"IF($C$410=\"\",\"\",AJ410/$C$410)","v":""},null,{"$f":"IF($C$410=\"\",\"\",AL410/$C$410)","v":""},null,{"$f":"IF($C$410=\"\",\"\",AN410/$C$410)","v":""},null,{"$f":"IF($C$410=\"\",\"\",AP410/$C$410)","v":""},null,{"$f":"IF($C$410=\"\",\"\",AR410/$C$410)","v":""},null,{"$f":"IF($C$410=\"\",\"\",AT410/$C$410)","v":""},null,{"$f":"IF($C$410=\"\",\"\",AV410/$C$410)","v":""},null,{"$f":"IF($C$410=\"\",\"\",AX410/$C$410)","v":""},null,{"$f":"IF($C$410=\"\",\"\",AZ410/$C$410)","v":""},null,{"$f":"IF($C$410=\"\",\"\",BB410/$C$410)","v":""},null,{"$f":"SUM(BB410,AZ410,AX410,AV410,AT410,AR410,AP410,AN410,AL410,AJ410,AH410,AF410,AD410,AB410,Z410,X410,V410,T410,R410,P410,N410,L410,J410,H410,F410)","v":0}]
[null,null,null,null,{"$f":"IF($C$411=\"\",\"\",F411/$C$411)","v":""},null,{"$f":"IF($C$411=\"\",\"\",H411/$C$411)","v":""},null,{"$f":"IF($C$411=\"\",\"\",J411/$C$411)","v":""},null,{"$f":"IF($C$411=\"\",\"\",L411/$C$411)","v":""},null,{"$f":"IF($C$411=\"\",\"\",N411/$C$411)","v":""},null,{"$f":"IF($C$411=\"\",\"\",P411/$C$411)","v":""},null,{"$f":"IF($C$411=\"\",\"\",R411/$C$411)","v":""},null,{"$f":"IF($C$411=\"\",\"\",T411/$C$411)","v":""},null,{"$f":"IF($C$411=\"\",\"\",V411/$C$411)","v":""},null,{"$f":"IF($C$411=\"\",\"\",X411/$C$411)","v":""},null,{"$f":"IF($C$411=\"\",\"\",Z411/$C$411)","v":""},null,{"$f":"IF($C$411=\"\",\"\",AB411/$C$411)","v":""},null,{"$f":"IF($C$411=\"\",\"\",AD411/$C$411)","v":""},null,{"$f":"IF($C$411=\"\",\"\",AF411/$C$411)","v":""},null,{"$f":"IF($C$411=\"\",\"\",AH411/$C$411)","v":""},null,{"$f":"IF($C$411=\"\",\"\",AJ411/$C$411)","v":""},null,{"$f":"IF($C$411=\"\",\"\",AL411/$C$411)","v":""},null,{"$f":"IF($C$411=\"\",\"\",AN411/$C$411)","v":""},null,{"$f":"IF($C$411=\"\",\"\",AP411/$C$411)","v":""},null,{"$f":"IF($C$411=\"\",\"\",AR411/$C$411)","v":""},null,{"$f":"IF($C$411=\"\",\"\",AT411/$C$411)","v":""},null,{"$f":"IF($C$411=\"\",\"\",AV411/$C$411)","v":""},null,{"$f":"IF($C$411=\"\",\"\",AX411/$C$411)","v":""},null,{"$f":"IF($C$411=\"\",\"\",AZ411/$C$411)","v":""},null,{"$f":"IF($C$411=\"\",\"\",BB411/$C$411)","v":""},null,0]
[null,null,null,null,{"$f":"IF($C$412=\"\",\"\",F412/$C$412)","v":""},null,{"$f":"IF($C$412=\"\",\"\",H412/$C$412)","v":""},null,{"$f":"IF($C$412=\"\",\"\",J412/$C$412)","v":""},null,{"$f":"IF($C$412=\"\",\"\",L412/$C$412)","v":""},null,{"$f":"IF($C$412=\"\",\"\",N412/$C$412)","v":""},null,{"$f":"IF($C$412=\"\",\"\",P412/$C$412)","v":""},null,{"$f":"IF($C$412=\"\",\"\",R412/$C$412)","v":""},null,{"$f":"IF($C$412=\"\",\"\",T412/$C$412)","v":""},null,{"$f":"IF($C$412=\"\",\"\",V412/$C$412)","v":""},null,{"$f":"IF($C$412=\"\",\"\",X412/$C$412)","v":""},null,{"$f":"IF($C$412=\"\",\"\",Z412/$C$412)","v":""},null,{"$f":"IF($C$412=\"\",\"\",AB412/$C$412)","v":""},null,{"$f":"IF($C$412=\"\",\"\",AD412/$C$412)","v":""},null,{"$f":"IF($C$412=\"\",\"\",AF412/$C$412)","v":""},null,{"$f":"IF($C$412=\"\",\"\",AH412/$C$412)","v":""},null,{"$f":"IF($C$412=\"\",\"\",AJ412/$C$412)","v":""},null,{"$f":"IF($C$412=\"\",\"\",AL412/$C$412)","v":""},null,{"$f":"IF($C$412=\"\",\"\",AN412/$C$412)","v":""},null,{"$f":"IF($C$412=\"\",\"\",AP412/$C$412)","v":""},null,{"$f":"IF($C$412=\"\",\"\",AR412/$C$412)","v":""},null,{"$f":"IF($C$412=\"\",\"\",AT412/$C$412)","v":""},null,{"$f":"IF($C$412=\"\",\"\",AV412/$C$412)","v":""},null,{"$f":"IF($C$412=\"\",\"\",AX412/$C$412)","v":""},null,{"$f":"IF($C$412=\"\",\"\",AZ412/$C$412)","v":""},null,{"$f":"IF($C$412=\"\",\"\",BB412/$C$412)","v":""},null,0]
[null,null,null,null,{"$f":"IF($C$413=\"\",\"\",F413/$C$413)","v":""},null,{"$f":"IF($C$413=\"\",\"\",H413/$C$413)","v":""},null,{"$f":"IF($C$413=\"\",\"\",J413/$C$413)","v":""},null,{"$f":"IF($C$413=\"\",\"\",L413/$C$413)","v":""},null,{"$f":"IF($C$413=\"\",\"\",N413/$C$413)","v":""},null,{"$f":"IF($C$413=\"\",\"\",P413/$C$413)","v":""},null,{"$f":"IF($C$413=\"\",\"\",R413/$C$413)","v":""},null,{"$f":"IF($C$413=\"\",\"\",T413/$C$413)","v":""},null,{"$f":"IF($C$413=\"\",\"\",V413/$C$413)","v":""},null,{"$f":"IF($C$413=\"\",\"\",X413/$C$413)","v":""},null,{"$f":"IF($C$413=\"\",\"\",Z413/$C$413)","v":""},null,{"$f":"IF($C$413=\"\",\"\",AB413/$C$413)","v":""},null,{"$f":"IF($C$413=\"\",\"\",AD413/$C$413)","v":""},null,{"$f":"IF($C$413=\"\",\"\",AF413/$C$413)","v":""},null,{"$f":"IF($C$413=\"\",\"\",AH413/$C$413)","v":""},null,{"$f":"IF($C$413=\"\",\"\",AJ413/$C$413)","v":""},null,{"$f":"IF($C$413=\"\",\"\",AL413/$C$413)","v":""},null,{"$f":"IF($C$413=\"\",\"\",AN413/$C$413)","v":""},null,{"$f":"IF($C$413=\"\",\"\",AP413/$C$413)","v":""},null,{"$f":"IF($C$413=\"\",\"\",AR413/$C$413)","v":""},null,{"$f":"IF($C$413=\"\",\"\",AT413/$C$413)","v":""},null,{"$f":"IF($C$413=\"\",\"\",AV413/$C$413)","v":""},null,{"$f":"IF($C$413=\"\",\"\",AX413/$C$413)","v":""},null,{"$f":"IF($C$413=\"\",\"\",AZ413/$C$413)","v":""},null,{"$f":"IF($C$413=\"\",\"\",BB413/$C$413)","v":""},null,0]
[null,null,null,null,{"$f":"IF($C$414=\"\",\"\",F414/$C$414)","v":""},null,{"$f":"IF($C$414=\"\",\"\",H414/$C$414)","v":""},null,{"$f":"IF($C$414=\"\",\"\",J414/$C$414)","v":""},null,{"$f":"IF($C$414=\"\",\"\",L414/$C$414)","v":""},null,{"$f":"IF($C$414=\"\",\"\",N414/$C$414)","v":""},null,{"$f":"IF($C$414=\"\",\"\",P414/$C$414)","v":""},null,{"$f":"IF($C$414=\"\",\"\",R414/$C$414)","v":""},null,{"$f":"IF($C$414=\"\",\"\",T414/$C$414)","v":""},null,{"$f":"IF($C$414=\"\",\"\",V414/$C$414)","v":""},null,{"$f":"IF($C$414=\"\",\"\",X414/$C$414)","v":""},null,{"$f":"IF($C$414=\"\",\"\",Z414/$C$414)","v":""},null,{"$f":"IF($C$414=\"\",\"\",AB414/$C$414)","v":""},null,{"$f":"IF($C$414=\"\",\"\",AD414/$C$414)","v":""},null,{"$f":"IF($C$414=\"\",\"\",AF414/$C$414)","v":""},null,{"$f":"IF($C$414=\"\",\"\",AH414/$C$414)","v":""},null,{"$f":"IF($C$414=\"\",\"\",AJ414/$C$414)","v":""},null,{"$f":"IF($C$414=\"\",\"\",AL414/$C$414)","v":""},null,{"$f":"IF($C$414=\"\",\"\",AN414/$C$414)","v":""},null,{"$f":"IF($C$414=\"\",\"\",AP414/$C$414)","v":""},null,{"$f":"IF($C$414=\"\",\"\",AR414/$C$414)","v":""},null,{"$f":"IF($C$414=\"\",\"\",AT414/$C$414)","v":""},null,{"$f":"IF($C$414=\"\",\"\",AV414/$C$414)","v":""},null,{"$f":"IF($C$414=\"\",\"\",AX414/$C$414)","v":""},null,{"$f":"IF($C$414=\"\",\"\",AZ414/$C$414)","v":""},null,{"$f":"IF($C$414=\"\",\"\",BB414/$C$414)","v":""},null,0]
[null,null,null,null,{"$f":"IF($C$415=\"\",\"\",F415/$C$415)","v":""},null,{"$f":"IF($C$415=\"\",\"\",H415/$C$415)","v":""},null,{"$f":"IF($C$415=\"\",\"\",J415/$C$415)","v":""},null,{"$f":"IF($C$415=\"\",\"\",L415/$C$415)","v":""},null,{"$f":"IF($C$415=\"\",\"\",N415/$C$415)","v":""},null,{"$f":"IF($C$415=\"\",\"\",P415/$C$415)","v":""},null,{"$f":"IF($C$415=\"\",\"\",R415/$C$415)","v":""},null,{"$f":"IF($C$415=\"\",\"\",T415/$C$415)","v":""},null,{"$f":"IF($C$415=\"\",\"\",V415/$C$415)","v":""},null,{"$f":"IF($C$415=\"\",\"\",X415/$C$415)","v":""},null,{"$f":"IF($C$415=\"\",\"\",Z415/$C$415)","v":""},null,{"$f":"IF($C$415=\"\",\"\",AB415/$C$415)","v":""},null,{"$f":"IF($C$415=\"\",\"\",AD415/$C$415)","v":""},null,{"$f":"IF($C$415=\"\",\"\",AF415/$C$415)","v":""},null,{"$f":"IF($C$415=\"\",\"\",AH415/$C$415)","v":""},null,{"$f":"IF($C$415=\"\",\"\",AJ415/$C$415)","v":""},null,{"$f":"IF($C$415=\"\",\"\",AL415/$C$415)","v":""},null,{"$f":"IF($C$415=\"\",\"\",AN415/$C$415)","v":""},null,{"$f":"IF($C$415=\"\",\"\",AP415/$C$415)","v":""},null,{"$f":"IF($C$415=\"\",\"\",AR415/$C$415)","v":""},null,{"$f":"IF($C$415=\"\",\"\",AT415/$C$415)","v":""},null,{"$f":"IF($C$415=\"\",\"\",AV415/$C$415)","v":""},null,{"$f":"IF($C$415=\"\",\"\",AX415/$C$415)","v":""},null,{"$f":"IF($C$415=\"\",\"\",AZ415/$C$415)","v":""},null,{"$f":"IF($C$415=\"\",\"\",BB415/$C$415)","v":""},null,0]
[null,null,null,null,{"$f":"IF($C$416=\"\",\"\",F416/$C$416)","v":""},null,{"$f":"IF($C$416=\"\",\"\",H416/$C$416)","v":""},null,{"$f":"IF($C$416=\"\",\"\",J416/$C$416)","v":""},null,{"$f":"IF($C$416=\"\",\"\",L416/$C$416)","v":""},null,{"$f":"IF($C$416=\"\",\"\",N416/$C$416)","v":""},null,{"$f":"IF($C$416=\"\",\"\",P416/$C$416)","v":""},null,{"$f":"IF($C$416=\"\",\"\",R416/$C$416)","v":""},null,{"$f":"IF($C$416=\"\",\"\",T416/$C$416)","v":""},null,{"$f":"IF($C$416=\"\",\"\",V416/$C$416)","v":""},null,{"$f":"IF($C$416=\"\",\"\",X416/$C$416)","v":""},null,{"$f":"IF($C$416=\"\",\"\",Z416/$C$416)","v":""},null,{"$f":"IF($C$416=\"\",\"\",AB416/$C$416)","v":""},null,{"$f":"IF($C$416=\"\",\"\",AD416/$C$416)","v":""},null,{"$f":"IF($C$416=\"\",\"\",AF416/$C$416)","v":""},null,{"$f":"IF($C$416=\"\",\"\",AH416/$C$416)","v":""},null,{"$f":"IF($C$416=\"\",\"\",AJ416/$C$416)","v":""},null,{"$f":"IF($C$416=\"\",\"\",AL416/$C$416)","v":""},null,{"$f":"IF($C$416=\"\",\"\",AN416/$C$416)","v":""},null,{"$f":"IF($C$416=\"\",\"\",AP416/$C$416)","v":""},null,{"$f":"IF($C$416=\"\",\"\",AR416/$C$416)","v":""},null,{"$f":"IF($C$416=\"\",\"\",AT416/$C$416)","v":""},null,{"$f":"IF($C$416=\"\",\"\",AV416/$C$416)","v":""},null,{"$f":"IF($C$416=\"\",\"\",AX416/$C$416)","v":""},null,{"$f":"IF($C$416=\"\",\"\",AZ416/$C$416)","v":""},null,{"$f":"IF($C$416=\"\",\"\",BB416/$C$416)","v":""},null,0]
[null,null,null,null,{"$f":"IF($C$417=\"\",\"\",F417/$C$417)","v":""},null,{"$f":"IF($C$417=\"\",\"\",H417/$C$417)","v":""},null,{"$f":"IF($C$417=\"\",\"\",J417/$C$417)","v":""},null,{"$f":"IF($C$417=\"\",\"\",L417/$C$417)","v":""},null,{"$f":"IF($C$417=\"\",\"\",N417/$C$417)","v":""},null,{"$f":"IF($C$417=\"\",\"\",P417/$C$417)","v":""},null,{"$f":"IF($C$417=\"\",\"\",R417/$C$417)","v":""},null,{"$f":"IF($C$417=\"\",\"\",T417/$C$417)","v":""},null,{"$f":"IF($C$417=\"\",\"\",V417/$C$417)","v":""},null,{"$f":"IF($C$417=\"\",\"\",X417/$C$417)","v":""},null,{"$f":"IF($C$417=\"\",\"\",Z417/$C$417)","v":""},null,{"$f":"IF($C$417=\"\",\"\",AB417/$C$417)","v":""},null,{"$f":"IF($C$417=\"\",\"\",AD417/$C$417)","v":""},null,{"$f":"IF($C$417=\"\",\"\",AF417/$C$417)","v":""},null,{"$f":"IF($C$417=\"\",\"\",AH417/$C$417)","v":""},null,{"$f":"IF($C$417=\"\",\"\",AJ417/$C$417)","v":""},null,{"$f":"IF($C$417=\"\",\"\",AL417/$C$417)","v":""},null,{"$f":"IF($C$417=\"\",\"\",AN417/$C$417)","v":""},null,{"$f":"IF($C$417=\"\",\"\",AP417/$C$417)","v":""},null,{"$f":"IF($C$417=\"\",\"\",AR417/$C$417)","v":""},null,{"$f":"IF($C$417=\"\",\"\",AT417/$C$417)","v":""},null,{"$f":"IF($C$417=\"\",\"\",AV417/$C$417)","v":""},null,{"$f":"IF($C$417=\"\",\"\",AX417/$C$417)","v":""},null,{"$f":"IF($C$417=\"\",\"\",AZ417/$C$417)","v":""},null,{"$f":"IF($C$417=\"\",\"\",BB417/$C$417)","v":""},null,0]
[null,null,null,null,{"$f":"IF($C$418=\"\",\"\",F418/$C$418)","v":""},null,{"$f":"IF($C$418=\"\",\"\",H418/$C$418)","v":""},null,{"$f":"IF($C$418=\"\",\"\",J418/$C$418)","v":""},null,{"$f":"IF($C$418=\"\",\"\",L418/$C$418)","v":""},null,{"$f":"IF($C$418=\"\",\"\",N418/$C$418)","v":""},null,{"$f":"IF($C$418=\"\",\"\",P418/$C$418)","v":""},null,{"$f":"IF($C$418=\"\",\"\",R418/$C$418)","v":""},null,{"$f":"IF($C$418=\"\",\"\",T418/$C$418)","v":""},null,{"$f":"IF($C$418=\"\",\"\",V418/$C$418)","v":""},null,{"$f":"IF($C$418=\"\",\"\",X418/$C$418)","v":""},null,{"$f":"IF($C$418=\"\",\"\",Z418/$C$418)","v":""},null,{"$f":"IF($C$418=\"\",\"\",AB418/$C$418)","v":""},null,{"$f":"IF($C$418=\"\",\"\",AD418/$C$418)","v":""},null,{"$f":"IF($C$418=\"\",\"\",AF418/$C$418)","v":""},null,{"$f":"IF($C$418=\"\",\"\",AH418/$C$418)","v":""},null,{"$f":"IF($C$418=\"\",\"\",AJ418/$C$418)","v":""},null,{"$f":"IF($C$418=\"\",\"\",AL418/$C$418)","v":""},null,{"$f":"IF($C$418=\"\",\"\",AN418/$C$418)","v":""},null,{"$f":"IF($C$418=\"\",\"\",AP418/$C$418)","v":""},null,{"$f":"IF($C$418=\"\",\"\",AR418/$C$418)","v":""},null,{"$f":"IF($C$418=\"\",\"\",AT418/$C$418)","v":""},null,{"$f":"IF($C$418=\"\",\"\",AV418/$C$418)","v":""},null,{"$f":"IF($C$418=\"\",\"\",AX418/$C$418)","v":""},null,{"$f":"IF($C$418=\"\",\"\",AZ418/$C$418)","v":""},null,{"$f":"IF($C$418=\"\",\"\",BB418/$C$418)","v":""},null,0]
[null,null,null,null,{"$f":"IF($C$419=\"\",\"\",F419/$C$419)","v":""},null,{"$f":"IF($C$419=\"\",\"\",H419/$C$419)","v":""},null,{"$f":"IF($C$419=\"\",\"\",J419/$C$419)","v":""},null,{"$f":"IF($C$419=\"\",\"\",L419/$C$419)","v":""},null,{"$f":"IF($C$419=\"\",\"\",N419/$C$419)","v":""},null,{"$f":"IF($C$419=\"\",\"\",P419/$C$419)","v":""},null,{"$f":"IF($C$419=\"\",\"\",R419/$C$419)","v":""},null,{"$f":"IF($C$419=\"\",\"\",T419/$C$419)","v":""},null,{"$f":"IF($C$419=\"\",\"\",V419/$C$419)","v":""},null,{"$f":"IF($C$419=\"\",\"\",X419/$C$419)","v":""},null,{"$f":"IF($C$419=\"\",\"\",Z419/$C$419)","v":""},null,{"$f":"IF($C$419=\"\",\"\",AB419/$C$419)","v":""},null,{"$f":"IF($C$419=\"\",\"\",AD419/$C$419)","v":""},null,{"$f":"IF($C$419=\"\",\"\",AF419/$C$419)","v":""},null,{"$f":"IF($C$419=\"\",\"\",AH419/$C$419)","v":""},null,{"$f":"IF($C$419=\"\",\"\",AJ419/$C$419)","v":""},null,{"$f":"IF($C$419=\"\",\"\",AL419/$C$419)","v":""},null,{"$f":"IF($C$419=\"\",\"\",AN419/$C$419)","v":""},null,{"$f":"IF($C$419=\"\",\"\",AP419/$C$419)","v":""},null,{"$f":"IF($C$419=\"\",\"\",AR419/$C$419)","v":""},null,{"$f":"IF($C$419=\"\",\"\",AT419/$C$419)","v":""},null,{"$f":"IF($C$419=\"\",\"\",AV419/$C$419)","v":""},null,{"$f":"IF($C$419=\"\",\"\",AX419/$C$419)","v":""},null,{"$f":"IF($C$419=\"\",\"\",AZ419/$C$419)","v":""},null,{"$f":"IF($C$419=\"\",\"\",BB419/$C$419)","v":""},null,0]
[null,null,null,null,{"$f":"IF($C$420=\"\",\"\",F420/$C$420)","v":""},null,{"$f":"IF($C$420=\"\",\"\",H420/$C$420)","v":""},null,{"$f":"IF($C$420=\"\",\"\",J420/$C$420)","v":""},null,{"$f":"IF($C$420=\"\",\"\",L420/$C$420)","v":""},null,{"$f":"IF($C$420=\"\",\"\",N420/$C$420)","v":""},null,{"$f":"IF($C$420=\"\",\"\",P420/$C$420)","v":""},null,{"$f":"IF($C$420=\"\",\"\",R420/$C$420)","v":""},null,{"$f":"IF($C$420=\"\",\"\",T420/$C$420)","v":""},null,{"$f":"IF($C$420=\"\",\"\",V420/$C$420)","v":""},null,{"$f":"IF($C$420=\"\",\"\",X420/$C$420)","v":""},null,{"$f":"IF($C$420=\"\",\"\",Z420/$C$420)","v":""},null,{"$f":"IF($C$420=\"\",\"\",AB420/$C$420)","v":""},null,{"$f":"IF($C$420=\"\",\"\",AD420/$C$420)","v":""},null,{"$f":"IF($C$420=\"\",\"\",AF420/$C$420)","v":""},null,{"$f":"IF($C$420=\"\",\"\",AH420/$C$420)","v":""},null,{"$f":"IF($C$420=\"\",\"\",AJ420/$C$420)","v":""},null,{"$f":"IF($C$420=\"\",\"\",AL420/$C$420)","v":""},null,{"$f":"IF($C$420=\"\",\"\",AN420/$C$420)","v":""},null,{"$f":"IF($C$420=\"\",\"\",AP420/$C$420)","v":""},null,{"$f":"IF($C$420=\"\",\"\",AR420/$C$420)","v":""},null,{"$f":"IF($C$420=\"\",\"\",AT420/$C$420)","v":""},null,{"$f":"IF($C$420=\"\",\"\",AV420/$C$420)","v":""},null,{"$f":"IF($C$420=\"\",\"\",AX420/$C$420)","v":""},null,{"$f":"IF($C$420=\"\",\"\",AZ420/$C$420)","v":""},null,{"$f":"IF($C$420=\"\",\"\",BB420/$C$420)","v":""},null,0]
[null,null,null,null,{"$f":"IF($C$421=\"\",\"\",F421/$C$421)","v":""},null,{"$f":"IF($C$421=\"\",\"\",H421/$C$421)","v":""},null,{"$f":"IF($C$421=\"\",\"\",J421/$C$421)","v":""},null,{"$f":"IF($C$421=\"\",\"\",L421/$C$421)","v":""},null,{"$f":"IF($C$421=\"\",\"\",N421/$C$421)","v":""},null,{"$f":"IF($C$421=\"\",\"\",P421/$C$421)","v":""},null,{"$f":"IF($C$421=\"\",\"\",R421/$C$421)","v":""},null,{"$f":"IF($C$421=\"\",\"\",T421/$C$421)","v":""},null,{"$f":"IF($C$421=\"\",\"\",V421/$C$421)","v":""},null,{"$f":"IF($C$421=\"\",\"\",X421/$C$421)","v":""},null,{"$f":"IF($C$421=\"\",\"\",Z421/$C$421)","v":""},null,{"$f":"IF($C$421=\"\",\"\",AB421/$C$421)","v":""},null,{"$f":"IF($C$421=\"\",\"\",AD421/$C$421)","v":""},null,{"$f":"IF($C$421=\"\",\"\",AF421/$C$421)","v":""},null,{"$f":"IF($C$421=\"\",\"\",AH421/$C$421)","v":""},null,{"$f":"IF($C$421=\"\",\"\",AJ421/$C$421)","v":""},null,{"$f":"IF($C$421=\"\",\"\",AL421/$C$421)","v":""},null,{"$f":"IF($C$421=\"\",\"\",AN421/$C$421)","v":""},null,{"$f":"IF($C$421=\"\",\"\",AP421/$C$421)","v":""},null,{"$f":"IF($C$421=\"\",\"\",AR421/$C$421)","v":""},null,{"$f":"IF($C$421=\"\",\"\",AT421/$C$421)","v":""},null,{"$f":"IF($C$421=\"\",\"\",AV421/$C$421)","v":""},null,{"$f":"IF($C$421=\"\",\"\",AX421/$C$421)","v":""},null,{"$f":"IF($C$421=\"\",\"\",AZ421/$C$421)","v":""},null,{"$f":"IF($C$421=\"\",\"\",BB421/$C$421)","v":""},null,0]
[null,null,null,null,{"$f":"IF($C$422=\"\",\"\",F422/$C$422)","v":""},null,{"$f":"IF($C$422=\"\",\"\",H422/$C$422)","v":""},null,{"$f":"IF($C$422=\"\",\"\",J422/$C$422)","v":""},null,{"$f":"IF($C$422=\"\",\"\",L422/$C$422)","v":""},null,{"$f":"IF($C$422=\"\",\"\",N422/$C$422)","v":""},null,{"$f":"IF($C$422=\"\",\"\",P422/$C$422)","v":""},null,{"$f":"IF($C$422=\"\",\"\",R422/$C$422)","v":""},null,{"$f":"IF($C$422=\"\",\"\",T422/$C$422)","v":""},null,{"$f":"IF($C$422=\"\",\"\",V422/$C$422)","v":""},null,{"$f":"IF($C$422=\"\",\"\",X422/$C$422)","v":""},null,{"$f":"IF($C$422=\"\",\"\",Z422/$C$422)","v":""},null,{"$f":"IF($C$422=\"\",\"\",AB422/$C$422)","v":""},null,{"$f":"IF($C$422=\"\",\"\",AD422/$C$422)","v":""},null,{"$f":"IF($C$422=\"\",\"\",AF422/$C$422)","v":""},null,{"$f":"IF($C$422=\"\",\"\",AH422/$C$422)","v":""},null,{"$f":"IF($C$422=\"\",\"\",AJ422/$C$422)","v":""},null,{"$f":"IF($C$422=\"\",\"\",AL422/$C$422)","v":""},null,{"$f":"IF($C$422=\"\",\"\",AN422/$C$422)","v":""},null,{"$f":"IF($C$422=\"\",\"\",AP422/$C$422)","v":""},null,{"$f":"IF($C$422=\"\",\"\",AR422/$C$422)","v":""},null,{"$f":"IF($C$422=\"\",\"\",AT422/$C$422)","v":""},null,{"$f":"IF($C$422=\"\",\"\",AV422/$C$422)","v":""},null,{"$f":"IF($C$422=\"\",\"\",AX422/$C$422)","v":""},null,{"$f":"IF($C$422=\"\",\"\",AZ422/$C$422)","v":""},null,{"$f":"IF($C$422=\"\",\"\",BB422/$C$422)","v":""},null,0]
[null,null,null,null,{"$f":"IF($C$423=\"\",\"\",F423/$C$423)","v":""},null,{"$f":"IF($C$423=\"\",\"\",H423/$C$423)","v":""},null,{"$f":"IF($C$423=\"\",\"\",J423/$C$423)","v":""},null,{"$f":"IF($C$423=\"\",\"\",L423/$C$423)","v":""},null,{"$f":"IF($C$423=\"\",\"\",N423/$C$423)","v":""},null,{"$f":"IF($C$423=\"\",\"\",P423/$C$423)","v":""},null,{"$f":"IF($C$423=\"\",\"\",R423/$C$423)","v":""},null,{"$f":"IF($C$423=\"\",\"\",T423/$C$423)","v":""},null,{"$f":"IF($C$423=\"\",\"\",V423/$C$423)","v":""},null,{"$f":"IF($C$423=\"\",\"\",X423/$C$423)","v":""},null,{"$f":"IF($C$423=\"\",\"\",Z423/$C$423)","v":""},null,{"$f":"IF($C$423=\"\",\"\",AB423/$C$423)","v":""},null,{"$f":"IF($C$423=\"\",\"\",AD423/$C$423)","v":""},null,{"$f":"IF($C$423=\"\",\"\",AF423/$C$423)","v":""},null,{"$f":"IF($C$423=\"\",\"\",AH423/$C$423)","v":""},null,{"$f":"IF($C$423=\"\",\"\",AJ423/$C$423)","v":""},null,{"$f":"IF($C$423=\"\",\"\",AL423/$C$423)","v":""},null,{"$f":"IF($C$423=\"\",\"\",AN423/$C$423)","v":""},null,{"$f":"IF($C$423=\"\",\"\",AP423/$C$423)","v":""},null,{"$f":"IF($C$423=\"\",\"\",AR423/$C$423)","v":""},null,{"$f":"IF($C$423=\"\",\"\",AT423/$C$423)","v":""},null,{"$f":"IF($C$423=\"\",\"\",AV423/$C$423)","v":""},null,{"$f":"IF($C$423=\"\",\"\",AX423/$C$423)","v":""},null,{"$f":"IF($C$423=\"\",\"\",AZ423/$C$423)","v":""},null,{"$f":"IF($C$423=\"\",\"\",BB423/$C$423)","v":""},null,0]
[null,null,null,null,{"$f":"IF($C$424=\"\",\"\",F424/$C$424)","v":""},null,{"$f":"IF($C$424=\"\",\"\",H424/$C$424)","v":""},null,{"$f":"IF($C$424=\"\",\"\",J424/$C$424)","v":""},null,{"$f":"IF($C$424=\"\",\"\",L424/$C$424)","v":""},null,{"$f":"IF($C$424=\"\",\"\",N424/$C$424)","v":""},null,{"$f":"IF($C$424=\"\",\"\",P424/$C$424)","v":""},null,{"$f":"IF($C$424=\"\",\"\",R424/$C$424)","v":""},null,{"$f":"IF($C$424=\"\",\"\",T424/$C$424)","v":""},null,{"$f":"IF($C$424=\"\",\"\",V424/$C$424)","v":""},null,{"$f":"IF($C$424=\"\",\"\",X424/$C$424)","v":""},null,{"$f":"IF($C$424=\"\",\"\",Z424/$C$424)","v":""},null,{"$f":"IF($C$424=\"\",\"\",AB424/$C$424)","v":""},null,{"$f":"IF($C$424=\"\",\"\",AD424/$C$424)","v":""},null,{"$f":"IF($C$424=\"\",\"\",AF424/$C$424)","v":""},null,{"$f":"IF($C$424=\"\",\"\",AH424/$C$424)","v":""},null,{"$f":"IF($C$424=\"\",\"\",AJ424/$C$424)","v":""},null,{"$f":"IF($C$424=\"\",\"\",AL424/$C$424)","v":""},null,{"$f":"IF($C$424=\"\",\"\",AN424/$C$424)","v":""},null,{"$f":"IF($C$424=\"\",\"\",AP424/$C$424)","v":""},null,{"$f":"IF($C$424=\"\",\"\",AR424/$C$424)","v":""},null,{"$f":"IF($C$424=\"\",\"\",AT424/$C$424)","v":""},null,{"$f":"IF($C$424=\"\",\"\",AV424/$C$424)","v":""},null,{"$f":"IF($C$424=\"\",\"\",AX424/$C$424)","v":""},null,{"$f":"IF($C$424=\"\",\"\",AZ424/$C$424)","v":""},null,{"$f":"IF($C$424=\"\",\"\",BB424/$C$424)","v":""},null,0]
[null,null,null,null,{"$f":"IF($C$425=\"\",\"\",F425/$C$425)","v":""},null,{"$f":"IF($C$425=\"\",\"\",H425/$C$425)","v":""},null,{"$f":"IF($C$425=\"\",\"\",J425/$C$425)","v":""},null,{"$f":"IF($C$425=\"\",\"\",L425/$C$425)","v":""},null,{"$f":"IF($C$425=\"\",\"\",N425/$C$425)","v":""},null,{"$f":"IF($C$425=\"\",\"\",P425/$C$425)","v":""},null,{"$f":"IF($C$425=\"\",\"\",R425/$C$425)","v":""},null,{"$f":"IF($C$425=\"\",\"\",T425/$C$425)","v":""},null,{"$f":"IF($C$425=\"\",\"\",V425/$C$425)","v":""},null,{"$f":"IF($C$425=\"\",\"\",X425/$C$425)","v":""},null,{"$f":"IF($C$425=\"\",\"\",Z425/$C$425)","v":""},null,{"$f":"IF($C$425=\"\",\"\",AB425/$C$425)","v":""},null,{"$f":"IF($C$425=\"\",\"\",AD425/$C$425)","v":""},null,{"$f":"IF($C$425=\"\",\"\",AF425/$C$425)","v":""},null,{"$f":"IF($C$425=\"\",\"\",AH425/$C$425)","v":""},null,{"$f":"IF($C$425=\"\",\"\",AJ425/$C$425)","v":""},null,{"$f":"IF($C$425=\"\",\"\",AL425/$C$425)","v":""},null,{"$f":"IF($C$425=\"\",\"\",AN425/$C$425)","v":""},null,{"$f":"IF($C$425=\"\",\"\",AP425/$C$425)","v":""},null,{"$f":"IF($C$425=\"\",\"\",AR425/$C$425)","v":""},null,{"$f":"IF($C$425=\"\",\"\",AT425/$C$425)","v":""},null,{"$f":"IF($C$425=\"\",\"\",AV425/$C$425)","v":""},null,{"$f":"IF($C$425=\"\",\"\",AX425/$C$425)","v":""},null,{"$f":"IF($C$425=\"\",\"\",AZ425/$C$425)","v":""},null,{"$f":"IF($C$425=\"\",\"\",BB425/$C$425)","v":""},null,0]
[null,null,null,null,{"$f":"IF($C$426=\"\",\"\",F426/$C$426)","v":""},null,{"$f":"IF($C$426=\"\",\"\",H426/$C$426)","v":""},null,{"$f":"IF($C$426=\"\",\"\",J426/$C$426)","v":""},null,{"$f":"IF($C$426=\"\",\"\",L426/$C$426)","v":""},null,{"$f":"IF($C$426=\"\",\"\",N426/$C$426)","v":""},null,{"$f":"IF($C$426=\"\",\"\",P426/$C$426)","v":""},null,{"$f":"IF($C$426=\"\",\"\",R426/$C$426)","v":""},null,{"$f":"IF($C$426=\"\",\"\",T426/$C$426)","v":""},null,{"$f":"IF($C$426=\"\",\"\",V426/$C$426)","v":""},null,{"$f":"IF($C$426=\"\",\"\",X426/$C$426)","v":""},null,{"$f":"IF($C$426=\"\",\"\",Z426/$C$426)","v":""},null,{"$f":"IF($C$426=\"\",\"\",AB426/$C$426)","v":""},null,{"$f":"IF($C$426=\"\",\"\",AD426/$C$426)","v":""},null,{"$f":"IF($C$426=\"\",\"\",AF426/$C$426)","v":""},null,{"$f":"IF($C$426=\"\",\"\",AH426/$C$426)","v":""},null,{"$f":"IF($C$426=\"\",\"\",AJ426/$C$426)","v":""},null,{"$f":"IF($C$426=\"\",\"\",AL426/$C$426)","v":""},null,{"$f":"IF($C$426=\"\",\"\",AN426/$C$426)","v":""},null,{"$f":"IF($C$426=\"\",\"\",AP426/$C$426)","v":""},null,{"$f":"IF($C$426=\"\",\"\",AR426/$C$426)","v":""},null,{"$f":"IF($C$426=\"\",\"\",AT426/$C$426)","v":""},null,{"$f":"IF($C$426=\"\",\"\",AV426/$C$426)","v":""},null,{"$f":"IF($C$426=\"\",\"\",AX426/$C$426)","v":""},null,{"$f":"IF($C$426=\"\",\"\",AZ426/$C$426)","v":""},null,{"$f":"IF($C$426=\"\",\"\",BB426/$C$426)","v":""},null,0]
[null,null,null,null,{"$f":"IF($C$427=\"\",\"\",F427/$C$427)","v":""},null,{"$f":"IF($C$427=\"\",\"\",H427/$C$427)","v":""},null,{"$f":"IF($C$427=\"\",\"\",J427/$C$427)","v":""},null,{"$f":"IF($C$427=\"\",\"\",L427/$C$427)","v":""},null,{"$f":"IF($C$427=\"\",\"\",N427/$C$427)","v":""},null,{"$f":"IF($C$427=\"\",\"\",P427/$C$427)","v":""},null,{"$f":"IF($C$427=\"\",\"\",R427/$C$427)","v":""},null,{"$f":"IF($C$427=\"\",\"\",T427/$C$427)","v":""},null,{"$f":"IF($C$427=\"\",\"\",V427/$C$427)","v":""},null,{"$f":"IF($C$427=\"\",\"\",X427/$C$427)","v":""},null,{"$f":"IF($C$427=\"\",\"\",Z427/$C$427)","v":""},null,{"$f":"IF($C$427=\"\",\"\",AB427/$C$427)","v":""},null,{"$f":"IF($C$427=\"\",\"\",AD427/$C$427)","v":""},null,{"$f":"IF($C$427=\"\",\"\",AF427/$C$427)","v":""},null,{"$f":"IF($C$427=\"\",\"\",AH427/$C$427)","v":""},null,{"$f":"IF($C$427=\"\",\"\",AJ427/$C$427)","v":""},null,{"$f":"IF($C$427=\"\",\"\",AL427/$C$427)","v":""},null,{"$f":"IF($C$427=\"\",\"\",AN427/$C$427)","v":""},null,{"$f":"IF($C$427=\"\",\"\",AP427/$C$427)","v":""},null,{"$f":"IF($C$427=\"\",\"\",AR427/$C$427)","v":""},null,{"$f":"IF($C$427=\"\",\"\",AT427/$C$427)","v":""},null,{"$f":"IF($C$427=\"\",\"\",AV427/$C$427)","v":""},null,{"$f":"IF($C$427=\"\",\"\",AX427/$C$427)","v":""},null,{"$f":"IF($C$427=\"\",\"\",AZ427/$C$427)","v":""},null,{"$f":"IF($C$427=\"\",\"\",BB427/$C$427)","v":""},null,0]
[null,null,null,null,{"$f":"IF($C$428=\"\",\"\",F428/$C$428)","v":""},null,{"$f":"IF($C$428=\"\",\"\",H428/$C$428)","v":""},null,{"$f":"IF($C$428=\"\",\"\",J428/$C$428)","v":""},null,{"$f":"IF($C$428=\"\",\"\",L428/$C$428)","v":""},null,{"$f":"IF($C$428=\"\",\"\",N428/$C$428)","v":""},null,{"$f":"IF($C$428=\"\",\"\",P428/$C$428)","v":""},null,{"$f":"IF($C$428=\"\",\"\",R428/$C$428)","v":""},null,{"$f":"IF($C$428=\"\",\"\",T428/$C$428)","v":""},null,{"$f":"IF($C$428=\"\",\"\",V428/$C$428)","v":""},null,{"$f":"IF($C$428=\"\",\"\",X428/$C$428)","v":""},null,{"$f":"IF($C$428=\"\",\"\",Z428/$C$428)","v":""},null,{"$f":"IF($C$428=\"\",\"\",AB428/$C$428)","v":""},null,{"$f":"IF($C$428=\"\",\"\",AD428/$C$428)","v":""},null,{"$f":"IF($C$428=\"\",\"\",AF428/$C$428)","v":""},null,{"$f":"IF($C$428=\"\",\"\",AH428/$C$428)","v":""},null,{"$f":"IF($C$428=\"\",\"\",AJ428/$C$428)","v":""},null,{"$f":"IF($C$428=\"\",\"\",AL428/$C$428)","v":""},null,{"$f":"IF($C$428=\"\",\"\",AN428/$C$428)","v":""},null,{"$f":"IF($C$428=\"\",\"\",AP428/$C$428)","v":""},null,{"$f":"IF($C$428=\"\",\"\",AR428/$C$428)","v":""},null,{"$f":"IF($C$428=\"\",\"\",AT428/$C$428)","v":""},null,{"$f":"IF($C$428=\"\",\"\",AV428/$C$428)","v":""},null,{"$f":"IF($C$428=\"\",\"\",AX428/$C$428)","v":""},null,{"$f":"IF($C$428=\"\",\"\",AZ428/$C$428)","v":""},null,{"$f":"IF($C$428=\"\",\"\",BB428/$C$428)","v":""},null,0]
[null,null,null,null,{"$f":"IF($C$429=\"\",\"\",F429/$C$429)","v":""},null,{"$f":"IF($C$429=\"\",\"\",H429/$C$429)","v":""},null,{"$f":"IF($C$429=\"\",\"\",J429/$C$429)","v":""},null,{"$f":"IF($C$429=\"\",\"\",L429/$C$429)","v":""},null,{"$f":"IF($C$429=\"\",\"\",N429/$C$429)","v":""},null,{"$f":"IF($C$429=\"\",\"\",P429/$C$429)","v":""},null,{"$f":"IF($C$429=\"\",\"\",R429/$C$429)","v":""},null,{"$f":"IF($C$429=\"\",\"\",T429/$C$429)","v":""},null,{"$f":"IF($C$429=\"\",\"\",V429/$C$429)","v":""},null,{"$f":"IF($C$429=\"\",\"\",X429/$C$429)","v":""},null,{"$f":"IF($C$429=\"\",\"\",Z429/$C$429)","v":""},null,{"$f":"IF($C$429=\"\",\"\",AB429/$C$429)","v":""},null,{"$f":"IF($C$429=\"\",\"\",AD429/$C$429)","v":""},null,{"$f":"IF($C$429=\"\",\"\",AF429/$C$429)","v":""},null,{"$f":"IF($C$429=\"\",\"\",AH429/$C$429)","v":""},null,{"$f":"IF($C$429=\"\",\"\",AJ429/$C$429)","v":""},null,{"$f":"IF($C$429=\"\",\"\",AL429/$C$429)","v":""},null,{"$f":"IF($C$429=\"\",\"\",AN429/$C$429)","v":""},null,{"$f":"IF($C$429=\"\",\"\",AP429/$C$429)","v":""},null,{"$f":"IF($C$429=\"\",\"\",AR429/$C$429)","v":""},null,{"$f":"IF($C$429=\"\",\"\",AT429/$C$429)","v":""},null,{"$f":"IF($C$429=\"\",\"\",AV429/$C$429)","v":""},null,{"$f":"IF($C$429=\"\",\"\",AX429/$C$429)","v":""},null,{"$f":"IF($C$429=\"\",\"\",AZ429/$C$429)","v":""},null,{"$f":"IF($C$429=\"\",\"\",BB429/$C$429)","v":""},null,0]
[null,null,null,null,{"$f":"IF($C$430=\"\",\"\",F430/$C$430)","v":""},null,{"$f":"IF($C$430=\"\",\"\",H430/$C$430)","v":""},null,{"$f":"IF($C$430=\"\",\"\",J430/$C$430)","v":""},null,{"$f":"IF($C$430=\"\",\"\",L430/$C$430)","v":""},null,{"$f":"IF($C$430=\"\",\"\",N430/$C$430)","v":""},null,{"$f":"IF($C$430=\"\",\"\",P430/$C$430)","v":""},null,{"$f":"IF($C$430=\"\",\"\",R430/$C$430)","v":""},null,{"$f":"IF($C$430=\"\",\"\",T430/$C$430)","v":""},null,{"$f":"IF($C$430=\"\",\"\",V430/$C$430)","v":""},null,{"$f":"IF($C$430=\"\",\"\",X430/$C$430)","v":""},null,{"$f":"IF($C$430=\"\",\"\",Z430/$C$430)","v":""},null,{"$f":"IF($C$430=\"\",\"\",AB430/$C$430)","v":""},null,{"$f":"IF($C$430=\"\",\"\",AD430/$C$430)","v":""},null,{"$f":"IF($C$430=\"\",\"\",AF430/$C$430)","v":""},null,{"$f":"IF($C$430=\"\",\"\",AH430/$C$430)","v":""},null,{"$f":"IF($C$430=\"\",\"\",AJ430/$C$430)","v":""},null,{"$f":"IF($C$430=\"\",\"\",AL430/$C$430)","v":""},null,{"$f":"IF($C$430=\"\",\"\",AN430/$C$430)","v":""},null,{"$f":"IF($C$430=\"\",\"\",AP430/$C$430)","v":""},null,{"$f":"IF($C$430=\"\",\"\",AR430/$C$430)","v":""},null,{"$f":"IF($C$430=\"\",\"\",AT430/$C$430)","v":""},null,{"$f":"IF($C$430=\"\",\"\",AV430/$C$430)","v":""},null,{"$f":"IF($C$430=\"\",\"\",AX430/$C$430)","v":""},null,{"$f":"IF($C$430=\"\",\"\",AZ430/$C$430)","v":""},null,{"$f":"IF($C$430=\"\",\"\",BB430/$C$430)","v":""},null,0]
[null,null,null,null,{"$f":"IF($C$431=\"\",\"\",F431/$C$431)","v":""},null,{"$f":"IF($C$431=\"\",\"\",H431/$C$431)","v":""},null,{"$f":"IF($C$431=\"\",\"\",J431/$C$431)","v":""},null,{"$f":"IF($C$431=\"\",\"\",L431/$C$431)","v":""},null,{"$f":"IF($C$431=\"\",\"\",N431/$C$431)","v":""},null,{"$f":"IF($C$431=\"\",\"\",P431/$C$431)","v":""},null,{"$f":"IF($C$431=\"\",\"\",R431/$C$431)","v":""},null,{"$f":"IF($C$431=\"\",\"\",T431/$C$431)","v":""},null,{"$f":"IF($C$431=\"\",\"\",V431/$C$431)","v":""},null,{"$f":"IF($C$431=\"\",\"\",X431/$C$431)","v":""},null,{"$f":"IF($C$431=\"\",\"\",Z431/$C$431)","v":""},null,{"$f":"IF($C$431=\"\",\"\",AB431/$C$431)","v":""},null,{"$f":"IF($C$431=\"\",\"\",AD431/$C$431)","v":""},null,{"$f":"IF($C$431=\"\",\"\",AF431/$C$431)","v":""},null,{"$f":"IF($C$431=\"\",\"\",AH431/$C$431)","v":""},null,{"$f":"IF($C$431=\"\",\"\",AJ431/$C$431)","v":""},null,{"$f":"IF($C$431=\"\",\"\",AL431/$C$431)","v":""},null,{"$f":"IF($C$431=\"\",\"\",AN431/$C$431)","v":""},null,{"$f":"IF($C$431=\"\",\"\",AP431/$C$431)","v":""},null,{"$f":"IF($C$431=\"\",\"\",AR431/$C$431)","v":""},null,{"$f":"IF($C$431=\"\",\"\",AT431/$C$431)","v":""},null,{"$f":"IF($C$431=\"\",\"\",AV431/$C$431)","v":""},null,{"$f":"IF($C$431=\"\",\"\",AX431/$C$431)","v":""},null,{"$f":"IF($C$431=\"\",\"\",AZ431/$C$431)","v":""},null,{"$f":"IF($C$431=\"\",\"\",BB431/$C$431)","v":""},null,0]
[null,null,null,null,{"$f":"IF($C$432=\"\",\"\",F432/$C$432)","v":""},null,{"$f":"IF($C$432=\"\",\"\",H432/$C$432)","v":""},null,{"$f":"IF($C$432=\"\",\"\",J432/$C$432)","v":""},null,{"$f":"IF($C$432=\"\",\"\",L432/$C$432)","v":""},null,{"$f":"IF($C$432=\"\",\"\",N432/$C$432)","v":""},null,{"$f":"IF($C$432=\"\",\"\",P432/$C$432)","v":""},null,{"$f":"IF($C$432=\"\",\"\",R432/$C$432)","v":""},null,{"$f":"IF($C$432=\"\",\"\",T432/$C$432)","v":""},null,{"$f":"IF($C$432=\"\",\"\",V432/$C$432)","v":""},null,{"$f":"IF($C$432=\"\",\"\",X432/$C$432)","v":""},null,{"$f":"IF($C$432=\"\",\"\",Z432/$C$432)","v":""},null,{"$f":"IF($C$432=\"\",\"\",AB432/$C$432)","v":""},null,{"$f":"IF($C$432=\"\",\"\",AD432/$C$432)","v":""},null,{"$f":"IF($C$432=\"\",\"\",AF432/$C$432)","v":""},null,{"$f":"IF($C$432=\"\",\"\",AH432/$C$432)","v":""},null,{"$f":"IF($C$432=\"\",\"\",AJ432/$C$432)","v":""},null,{"$f":"IF($C$432=\"\",\"\",AL432/$C$432)","v":""},null,{"$f":"IF($C$432=\"\",\"\",AN432/$C$432)","v":""},null,{"$f":"IF($C$432=\"\",\"\",AP432/$C$432)","v":""},null,{"$f":"IF($C$432=\"\",\"\",AR432/$C$432)","v":""},null,{"$f":"IF($C$432=\"\",\"\",AT432/$C$432)","v":""},null,{"$f":"IF($C$432=\"\",\"\",AV432/$C$432)","v":""},null,{"$f":"IF($C$432=\"\",\"\",AX432/$C$432)","v":""},null,{"$f":"IF($C$432=\"\",\"\",AZ432/$C$432)","v":""},null,{"$f":"IF($C$432=\"\",\"\",BB432/$C$432)","v":""},null,0]
[null,null,null,null,{"$f":"IF($C$433=\"\",\"\",F433/$C$433)","v":""},null,{"$f":"IF($C$433=\"\",\"\",H433/$C$433)","v":""},null,{"$f":"IF($C$433=\"\",\"\",J433/$C$433)","v":""},null,{"$f":"IF($C$433=\"\",\"\",L433/$C$433)","v":""},null,{"$f":"IF($C$433=\"\",\"\",N433/$C$433)","v":""},null,{"$f":"IF($C$433=\"\",\"\",P433/$C$433)","v":""},null,{"$f":"IF($C$433=\"\",\"\",R433/$C$433)","v":""},null,{"$f":"IF($C$433=\"\",\"\",T433/$C$433)","v":""},null,{"$f":"IF($C$433=\"\",\"\",V433/$C$433)","v":""},null,{"$f":"IF($C$433=\"\",\"\",X433/$C$433)","v":""},null,{"$f":"IF($C$433=\"\",\"\",Z433/$C$433)","v":""},null,{"$f":"IF($C$433=\"\",\"\",AB433/$C$433)","v":""},null,{"$f":"IF($C$433=\"\",\"\",AD433/$C$433)","v":""},null,{"$f":"IF($C$433=\"\",\"\",AF433/$C$433)","v":""},null,{"$f":"IF($C$433=\"\",\"\",AH433/$C$433)","v":""},null,{"$f":"IF($C$433=\"\",\"\",AJ433/$C$433)","v":""},null,{"$f":"IF($C$433=\"\",\"\",AL433/$C$433)","v":""},null,{"$f":"IF($C$433=\"\",\"\",AN433/$C$433)","v":""},null,{"$f":"IF($C$433=\"\",\"\",AP433/$C$433)","v":""},null,{"$f":"IF($C$433=\"\",\"\",AR433/$C$433)","v":""},null,{"$f":"IF($C$433=\"\",\"\",AT433/$C$433)","v":""},null,{"$f":"IF($C$433=\"\",\"\",AV433/$C$433)","v":""},null,{"$f":"IF($C$433=\"\",\"\",AX433/$C$433)","v":""},null,{"$f":"IF($C$433=\"\",\"\",AZ433/$C$433)","v":""},null,{"$f":"IF($C$433=\"\",\"\",BB433/$C$433)","v":""},null,0]
[null,null,null,null,{"$f":"IF($C$434=\"\",\"\",F434/$C$434)","v":""},null,{"$f":"IF($C$434=\"\",\"\",H434/$C$434)","v":""},null,{"$f":"IF($C$434=\"\",\"\",J434/$C$434)","v":""},null,{"$f":"IF($C$434=\"\",\"\",L434/$C$434)","v":""},null,{"$f":"IF($C$434=\"\",\"\",N434/$C$434)","v":""},null,{"$f":"IF($C$434=\"\",\"\",P434/$C$434)","v":""},null,{"$f":"IF($C$434=\"\",\"\",R434/$C$434)","v":""},null,{"$f":"IF($C$434=\"\",\"\",T434/$C$434)","v":""},null,{"$f":"IF($C$434=\"\",\"\",V434/$C$434)","v":""},null,{"$f":"IF($C$434=\"\",\"\",X434/$C$434)","v":""},null,{"$f":"IF($C$434=\"\",\"\",Z434/$C$434)","v":""},null,{"$f":"IF($C$434=\"\",\"\",AB434/$C$434)","v":""},null,{"$f":"IF($C$434=\"\",\"\",AD434/$C$434)","v":""},null,{"$f":"IF($C$434=\"\",\"\",AF434/$C$434)","v":""},null,{"$f":"IF($C$434=\"\",\"\",AH434/$C$434)","v":""},null,{"$f":"IF($C$434=\"\",\"\",AJ434/$C$434)","v":""},null,{"$f":"IF($C$434=\"\",\"\",AL434/$C$434)","v":""},null,{"$f":"IF($C$434=\"\",\"\",AN434/$C$434)","v":""},null,{"$f":"IF($C$434=\"\",\"\",AP434/$C$434)","v":""},null,{"$f":"IF($C$434=\"\",\"\",AR434/$C$434)","v":""},null,{"$f":"IF($C$434=\"\",\"\",AT434/$C$434)","v":""},null,{"$f":"IF($C$434=\"\",\"\",AV434/$C$434)","v":""},null,{"$f":"IF($C$434=\"\",\"\",AX434/$C$434)","v":""},null,{"$f":"IF($C$434=\"\",\"\",AZ434/$C$434)","v":""},null,{"$f":"IF($C$434=\"\",\"\",BB434/$C$434)","v":""},null,0]
[null,null,null,null,{"$f":"IF($C$435=\"\",\"\",F435/$C$435)","v":""},null,{"$f":"IF($C$435=\"\",\"\",H435/$C$435)","v":""},null,{"$f":"IF($C$435=\"\",\"\",J435/$C$435)","v":""},null,{"$f":"IF($C$435=\"\",\"\",L435/$C$435)","v":""},null,{"$f":"IF($C$435=\"\",\"\",N435/$C$435)","v":""},null,{"$f":"IF($C$435=\"\",\"\",P435/$C$435)","v":""},null,{"$f":"IF($C$435=\"\",\"\",R435/$C$435)","v":""},null,{"$f":"IF($C$435=\"\",\"\",T435/$C$435)","v":""},null,{"$f":"IF($C$435=\"\",\"\",V435/$C$435)","v":""},null,{"$f":"IF($C$435=\"\",\"\",X435/$C$435)","v":""},null,{"$f":"IF($C$435=\"\",\"\",Z435/$C$435)","v":""},null,{"$f":"IF($C$435=\"\",\"\",AB435/$C$435)","v":""},null,{"$f":"IF($C$435=\"\",\"\",AD435/$C$435)","v":""},null,{"$f":"IF($C$435=\"\",\"\",AF435/$C$435)","v":""},null,{"$f":"IF($C$435=\"\",\"\",AH435/$C$435)","v":""},null,{"$f":"IF($C$435=\"\",\"\",AJ435/$C$435)","v":""},null,{"$f":"IF($C$435=\"\",\"\",AL435/$C$435)","v":""},null,{"$f":"IF($C$435=\"\",\"\",AN435/$C$435)","v":""},null,{"$f":"IF($C$435=\"\",\"\",AP435/$C$435)","v":""},null,{"$f":"IF($C$435=\"\",\"\",AR435/$C$435)","v":""},null,{"$f":"IF($C$435=\"\",\"\",AT435/$C$435)","v":""},null,{"$f":"IF($C$435=\"\",\"\",AV435/$C$435)","v":""},null,{"$f":"IF($C$435=\"\",\"\",AX435/$C$435)","v":""},null,{"$f":"IF($C$435=\"\",\"\",AZ435/$C$435)","v":""},null,{"$f":"IF($C$435=\"\",\"\",BB435/$C$435)","v":""},null,0]
[null,null,null,null,{"$f":"IF($C$436=\"\",\"\",F436/$C$436)","v":""},null,{"$f":"IF($C$436=\"\",\"\",H436/$C$436)","v":""},null,{"$f":"IF($C$436=\"\",\"\",J436/$C$436)","v":""},null,{"$f":"IF($C$436=\"\",\"\",L436/$C$436)","v":""},null,{"$f":"IF($C$436=\"\",\"\",N436/$C$436)","v":""},null,{"$f":"IF($C$436=\"\",\"\",P436/$C$436)","v":""},null,{"$f":"IF($C$436=\"\",\"\",R436/$C$436)","v":""},null,{"$f":"IF($C$436=\"\",\"\",T436/$C$436)","v":""},null,{"$f":"IF($C$436=\"\",\"\",V436/$C$436)","v":""},null,{"$f":"IF($C$436=\"\",\"\",X436/$C$436)","v":""},null,{"$f":"IF($C$436=\"\",\"\",Z436/$C$436)","v":""},null,{"$f":"IF($C$436=\"\",\"\",AB436/$C$436)","v":""},null,{"$f":"IF($C$436=\"\",\"\",AD436/$C$436)","v":""},null,{"$f":"IF($C$436=\"\",\"\",AF436/$C$436)","v":""},null,{"$f":"IF($C$436=\"\",\"\",AH436/$C$436)","v":""},null,{"$f":"IF($C$436=\"\",\"\",AJ436/$C$436)","v":""},null,{"$f":"IF($C$436=\"\",\"\",AL436/$C$436)","v":""},null,{"$f":"IF($C$436=\"\",\"\",AN436/$C$436)","v":""},null,{"$f":"IF($C$436=\"\",\"\",AP436/$C$436)","v":""},null,{"$f":"IF($C$436=\"\",\"\",AR436/$C$436)","v":""},null,{"$f":"IF($C$436=\"\",\"\",AT436/$C$436)","v":""},null,{"$f":"IF($C$436=\"\",\"\",AV436/$C$436)","v":""},null,{"$f":"IF($C$436=\"\",\"\",AX436/$C$436)","v":""},null,{"$f":"IF($C$436=\"\",\"\",AZ436/$C$436)","v":""},null,{"$f":"IF($C$436=\"\",\"\",BB436/$C$436)","v":""},null,0]
[null,null,null,null,{"$f":"IF($C$437=\"\",\"\",F437/$C$437)","v":""},null,{"$f":"IF($C$437=\"\",\"\",H437/$C$437)","v":""},null,{"$f":"IF($C$437=\"\",\"\",J437/$C$437)","v":""},null,{"$f":"IF($C$437=\"\",\"\",L437/$C$437)","v":""},null,{"$f":"IF($C$437=\"\",\"\",N437/$C$437)","v":""},null,{"$f":"IF($C$437=\"\",\"\",P437/$C$437)","v":""},null,{"$f":"IF($C$437=\"\",\"\",R437/$C$437)","v":""},null,{"$f":"IF($C$437=\"\",\"\",T437/$C$437)","v":""},null,{"$f":"IF($C$437=\"\",\"\",V437/$C$437)","v":""},null,{"$f":"IF($C$437=\"\",\"\",X437/$C$437)","v":""},null,{"$f":"IF($C$437=\"\",\"\",Z437/$C$437)","v":""},null,{"$f":"IF($C$437=\"\",\"\",AB437/$C$437)","v":""},null,{"$f":"IF($C$437=\"\",\"\",AD437/$C$437)","v":""},null,{"$f":"IF($C$437=\"\",\"\",AF437/$C$437)","v":""},null,{"$f":"IF($C$437=\"\",\"\",AH437/$C$437)","v":""},null,{"$f":"IF($C$437=\"\",\"\",AJ437/$C$437)","v":""},null,{"$f":"IF($C$437=\"\",\"\",AL437/$C$437)","v":""},null,{"$f":"IF($C$437=\"\",\"\",AN437/$C$437)","v":""},null,{"$f":"IF($C$437=\"\",\"\",AP437/$C$437)","v":""},null,{"$f":"IF($C$437=\"\",\"\",AR437/$C$437)","v":""},null,{"$f":"IF($C$437=\"\",\"\",AT437/$C$437)","v":""},null,{"$f":"IF($C$437=\"\",\"\",AV437/$C$437)","v":""},null,{"$f":"IF($C$437=\"\",\"\",AX437/$C$437)","v":""},null,{"$f":"IF($C$437=\"\",\"\",AZ437/$C$437)","v":""},null,{"$f":"IF($C$437=\"\",\"\",BB437/$C$437)","v":""},null,0]
[null,null,null,null,{"$f":"IF($C$438=\"\",\"\",F438/$C$438)","v":""},null,{"$f":"IF($C$438=\"\",\"\",H438/$C$438)","v":""},null,{"$f":"IF($C$438=\"\",\"\",J438/$C$438)","v":""},null,{"$f":"IF($C$438=\"\",\"\",L438/$C$438)","v":""},null,{"$f":"IF($C$438=\"\",\"\",N438/$C$438)","v":""},null,{"$f":"IF($C$438=\"\",\"\",P438/$C$438)","v":""},null,{"$f":"IF($C$438=\"\",\"\",R438/$C$438)","v":""},null,{"$f":"IF($C$438=\"\",\"\",T438/$C$438)","v":""},null,{"$f":"IF($C$438=\"\",\"\",V438/$C$438)","v":""},null,{"$f":"IF($C$438=\"\",\"\",X438/$C$438)","v":""},null,{"$f":"IF($C$438=\"\",\"\",Z438/$C$438)","v":""},null,{"$f":"IF($C$438=\"\",\"\",AB438/$C$438)","v":""},null,{"$f":"IF($C$438=\"\",\"\",AD438/$C$438)","v":""},null,{"$f":"IF($C$438=\"\",\"\",AF438/$C$438)","v":""},null,{"$f":"IF($C$438=\"\",\"\",AH438/$C$438)","v":""},null,{"$f":"IF($C$438=\"\",\"\",AJ438/$C$438)","v":""},null,{"$f":"IF($C$438=\"\",\"\",AL438/$C$438)","v":""},null,{"$f":"IF($C$438=\"\",\"\",AN438/$C$438)","v":""},null,{"$f":"IF($C$438=\"\",\"\",AP438/$C$438)","v":""},null,{"$f":"IF($C$438=\"\",\"\",AR438/$C$438)","v":""},null,{"$f":"IF($C$438=\"\",\"\",AT438/$C$438)","v":""},null,{"$f":"IF($C$438=\"\",\"\",AV438/$C$438)","v":""},null,{"$f":"IF($C$438=\"\",\"\",AX438/$C$438)","v":""},null,{"$f":"IF($C$438=\"\",\"\",AZ438/$C$438)","v":""},null,{"$f":"IF($C$438=\"\",\"\",BB438/$C$438)","v":""},null,0]
[null,null,null,null,{"$f":"IF($C$439=\"\",\"\",F439/$C$439)","v":""},null,{"$f":"IF($C$439=\"\",\"\",H439/$C$439)","v":""},null,{"$f":"IF($C$439=\"\",\"\",J439/$C$439)","v":""},null,{"$f":"IF($C$439=\"\",\"\",L439/$C$439)","v":""},null,{"$f":"IF($C$439=\"\",\"\",N439/$C$439)","v":""},null,{"$f":"IF($C$439=\"\",\"\",P439/$C$439)","v":""},null,{"$f":"IF($C$439=\"\",\"\",R439/$C$439)","v":""},null,{"$f":"IF($C$439=\"\",\"\",T439/$C$439)","v":""},null,{"$f":"IF($C$439=\"\",\"\",V439/$C$439)","v":""},null,{"$f":"IF($C$439=\"\",\"\",X439/$C$439)","v":""},null,{"$f":"IF($C$439=\"\",\"\",Z439/$C$439)","v":""},null,{"$f":"IF($C$439=\"\",\"\",AB439/$C$439)","v":""},null,{"$f":"IF($C$439=\"\",\"\",AD439/$C$439)","v":""},null,{"$f":"IF($C$439=\"\",\"\",AF439/$C$439)","v":""},null,{"$f":"IF($C$439=\"\",\"\",AH439/$C$439)","v":""},null,{"$f":"IF($C$439=\"\",\"\",AJ439/$C$439)","v":""},null,{"$f":"IF($C$439=\"\",\"\",AL439/$C$439)","v":""},null,{"$f":"IF($C$439=\"\",\"\",AN439/$C$439)","v":""},null,{"$f":"IF($C$439=\"\",\"\",AP439/$C$439)","v":""},null,{"$f":"IF($C$439=\"\",\"\",AR439/$C$439)","v":""},null,{"$f":"IF($C$439=\"\",\"\",AT439/$C$439)","v":""},null,{"$f":"IF($C$439=\"\",\"\",AV439/$C$439)","v":""},null,{"$f":"IF($C$439=\"\",\"\",AX439/$C$439)","v":""},null,{"$f":"IF($C$439=\"\",\"\",AZ439/$C$439)","v":""},null,{"$f":"IF($C$439=\"\",\"\",BB439/$C$439)","v":""},null,{"$f":"SUM(BB439,AZ439,AX439,AV439,AT439,AR439,AP439,AN439,AL439,AJ439,AH439,AF439,AD439,AB439,Z439,X439,V439,T439,R439,P439,N439,L439,J439,H439,F439)","v":0}]
["TOTAL HOURS",null,null,null,null,{"$f":"SUM(F410:F439)","v":0},null,{"$f":"SUM(H410:H439)","v":0},null,{"$f":"SUM(J410:J439)","v":0},null,{"$f":"SUM(L410:L439)","v":0},null,{"$f":"SUM(N410:N439)","v":0},null,{"$f":"SUM(P410:P439)","v":0},null,{"$f":"SUM(R410:R439)","v":0},null,{"$f":"SUM(T410:T439)","v":0},null,{"$f":"SUM(V410:V439)","v":0},null,{"$f":"SUM(X410:X439)","v":0},null,{"$f":"SUM(Z410:Z439)","v":0},null,{"$f":"SUM(AB410:AB439)","v":0},null,{"$f":"SUM(AD410:AD439)","v":0},null,{"$f":"SUM(AF410:AF439)","v":0},null,{"$f":"SUM(AH410:AH439)","v":0},null,{"$f":"SUM(AJ410:AJ439)","v":0},null,{"$f":"SUM(AL410:AL439)","v":0},null,{"$f":"SUM(AN410:AN439)","v":0},null,{"$f":"SUM(AP410:AP439)","v":0},null,{"$f":"SUM(AR410:AR439)","v":0},null,{"$f":"SUM(AT410:AT439)","v":0},null,{"$f":"SUM(AV410:AV439)","v":0},null,{"$f":"SUM(AX410:AX439)","v":0},null,{"$f":"SUM(AZ410:AZ439)","v":0},null,{"$f":"SUM(BB410:BB439)","v":0},{"$f":"SUM(E440:BB440)","v":0}]
["TOTAL WORKDAYS",null,null,null,null,{"$f":"F440/8","v":0},null,{"$f":"H440/8","v":0},null,{"$f":"J440/8","v":0},null,{"$f":"L440/8","v":0},null,{"$f":"N440/8","v":0},null,{"$f":"P440/8","v":0},null,{"$f":"R440/8","v":0},null,{"$f":"T440/8","v":0},null,{"$f":"V440/8","v":0},null,{"$f":"X440/8","v":0},null,{"$f":"Z440/8","v":0},null,{"$f":"AB440/8","v":0},null,{"$f":"AD440/8","v":0},null,0,null,{"$f":"AH440/8","v":0},null,0,null,{"$f":"AL440/8","v":0},null,0,null,{"$f":"AP440/8","v":0},null,0,null,{"$f":"AT440/8","v":0},null,{"$f":"AV440/8","v":0},null,{"$f":"AX440/8","v":0},null,{"$f":"AZ440/8","v":0},null,{"$f":"BB440/8","v":0},{"$f":"SUM(E441:BB441)","v":0}]
["TOTAL RAW LABOR",null,null,null,null,{"$f":"$E$13*F440","v":0},null,{"$f":"$G$13*H440","v":0},null,{"$f":"$I$13*J440","v":0},null,{"$f":"$K$13*L440","v":0},null,{"$f":"$M$13*N440","v":0},null,{"$f":"$O$13*P440","v":0},null,{"$f":"$Q$13*R440","v":0},null,{"$f":"$S$13*T440","v":0},null,{"$f":"$U$13*V440","v":0},null,{"$f":"$W$13*X440","v":0},null,{"$f":"$Y$13*Z440","v":0},null,{"$f":"$AA$13*AB440","v":0},null,{"$f":"$AC$13*AD440","v":0},null,{"$f":"$AC$13*AF440","v":0},null,{"$f":"$AC$13*AH440","v":0},null,{"$f":"$AC$13*AJ440","v":0},null,{"$f":"$AC$13*AL440","v":0},null,{"$f":"$AC$13*AN440","v":0},null,{"$f":"$AC$13*AP440","v":0},null,{"$f":"$AC$13*AR440","v":0},null,{"$f":"$AC$13*AT440","v":0},null,{"$f":"$AC$13*AV440","v":0},null,{"$f":"$AC$13*AX440","v":0},null,{"$f":"$AC$13*AZ440","v":0},null,{"$f":"$AC$13*BB440","v":0},{"$f":"SUM(E442:BB442)","v":0}]
["Task 17.0     ","REPLACE FIELD WITH CATEGORY NAME OF YOUR CHOOSING HERE",null,null,null,null,null,null,null,null,null,null,null,null,null,null,null,null,null,null,null,null,null,null,null,null,null,null,null,null,null,null,null,null,null,null,null,null,null,null,null,null,null,null,null,null,null,null,null,null,null,null,null,null,{"$f":"IF(B443=\"REPLACE FIELD WITH CATEGORY NAME OF YOUR CHOOSING HERE\",0,\"\")","v":0}]
[null,null,null,null,{"$f":"IF($C$444=\"\",\"\",F444/$C$444)","v":""},null,{"$f":"IF($C$444=\"\",\"\",H444/$C$444)","v":""},null,{"$f":"IF($C$444=\"\",\"\",J444/$C$444)","v":""},null,{"$f":"IF($C$444=\"\",\"\",L444/$C$444)","v":""},null,{"$f":"IF($C$444=\"\",\"\",N444/$C$444)","v":""},null,{"$f":"IF($C$444=\"\",\"\",P444/$C$444)","v":""},null,{"$f":"IF($C$444=\"\",\"\",R444/$C$444)","v":""},null,{"$f":"IF($C$444=\"\",\"\",T444/$C$444)","v":""},null,{"$f":"IF($C$444=\"\",\"\",V444/$C$444)","v":""},null,{"$f":"IF($C$444=\"\",\"\",X444/$C$444)","v":""},null,{"$f":"IF($C$444=\"\",\"\",Z444/$C$444)","v":""},null,{"$f":"IF($C$444=\"\",\"\",AB444/$C$444)","v":""},null,{"$f":"IF($C$444=\"\",\"\",AD444/$C$444)","v":""},null,{"$f":"IF($C$444=\"\",\"\",AF444/$C$444)","v":""},null,{"$f":"IF($C$444=\"\",\"\",AH444/$C$444)","v":""},null,{"$f":"IF($C$444=\"\",\"\",AJ444/$C$444)","v":""},null,{"$f":"IF($C$444=\"\",\"\",AL444/$C$444)","v":""},null,{"$f":"IF($C$444=\"\",\"\",AN444/$C$444)","v":""},null,{"$f":"IF($C$444=\"\",\"\",AP444/$C$444)","v":""},null,{"$f":"IF($C$444=\"\",\"\",AR444/$C$444)","v":""},null,{"$f":"IF($C$444=\"\",\"\",AT444/$C$444)","v":""},null,{"$f":"IF($C$444=\"\",\"\",AV444/$C$444)","v":""},null,{"$f":"IF($C$444=\"\",\"\",AX444/$C$444)","v":""},null,{"$f":"IF($C$444=\"\",\"\",AZ444/$C$444)","v":""},null,{"$f":"IF($C$444=\"\",\"\",BB444/$C$444)","v":""},null,{"$f":"SUM(BB444,AZ444,AX444,AV444,AT444,AR444,AP444,AN444,AL444,AJ444,AH444,AF444,AD444,AB444,Z444,X444,V444,T444,R444,P444,N444,L444,J444,H444,F444)","v":0}]
[null,null,null,null,{"$f":"IF($C$445=\"\",\"\",F445/$C$445)","v":""},null,{"$f":"IF($C$445=\"\",\"\",H445/$C$445)","v":""},null,{"$f":"IF($C$445=\"\",\"\",J445/$C$445)","v":""},null,{"$f":"IF($C$445=\"\",\"\",L445/$C$445)","v":""},null,{"$f":"IF($C$445=\"\",\"\",N445/$C$445)","v":""},null,{"$f":"IF($C$445=\"\",\"\",P445/$C$445)","v":""},null,{"$f":"IF($C$445=\"\",\"\",R445/$C$445)","v":""},null,{"$f":"IF($C$445=\"\",\"\",T445/$C$445)","v":""},null,{"$f":"IF($C$445=\"\",\"\",V445/$C$445)","v":""},null,{"$f":"IF($C$445=\"\",\"\",X445/$C$445)","v":""},null,{"$f":"IF($C$445=\"\",\"\",Z445/$C$445)","v":""},null,{"$f":"IF($C$445=\"\",\"\",AB445/$C$445)","v":""},null,{"$f":"IF($C$445=\"\",\"\",AD445/$C$445)","v":""},null,{"$f":"IF($C$445=\"\",\"\",AF445/$C$445)","v":""},null,{"$f":"IF($C$445=\"\",\"\",AH445/$C$445)","v":""},null,{"$f":"IF($C$445=\"\",\"\",AJ445/$C$445)","v":""},null,{"$f":"IF($C$445=\"\",\"\",AL445/$C$445)","v":""},null,{"$f":"IF($C$445=\"\",\"\",AN445/$C$445)","v":""},null,{"$f":"IF($C$445=\"\",\"\",AP445/$C$445)","v":""},null,{"$f":"IF($C$445=\"\",\"\",AR445/$C$445)","v":""},null,{"$f":"IF($C$445=\"\",\"\",AT445/$C$445)","v":""},null,{"$f":"IF($C$445=\"\",\"\",AV445/$C$445)","v":""},null,{"$f":"IF($C$445=\"\",\"\",AX445/$C$445)","v":""},null,{"$f":"IF($C$445=\"\",\"\",AZ445/$C$445)","v":""},null,{"$f":"IF($C$445=\"\",\"\",BB445/$C$445)","v":""},null,0]
[null,null,null,null,{"$f":"IF($C$446=\"\",\"\",F446/$C$446)","v":""},null,{"$f":"IF($C$446=\"\",\"\",H446/$C$446)","v":""},null,{"$f":"IF($C$446=\"\",\"\",J446/$C$446)","v":""},null,{"$f":"IF($C$446=\"\",\"\",L446/$C$446)","v":""},null,{"$f":"IF($C$446=\"\",\"\",N446/$C$446)","v":""},null,{"$f":"IF($C$446=\"\",\"\",P446/$C$446)","v":""},null,{"$f":"IF($C$446=\"\",\"\",R446/$C$446)","v":""},null,{"$f":"IF($C$446=\"\",\"\",T446/$C$446)","v":""},null,{"$f":"IF($C$446=\"\",\"\",V446/$C$446)","v":""},null,{"$f":"IF($C$446=\"\",\"\",X446/$C$446)","v":""},null,{"$f":"IF($C$446=\"\",\"\",Z446/$C$446)","v":""},null,{"$f":"IF($C$446=\"\",\"\",AB446/$C$446)","v":""},null,{"$f":"IF($C$446=\"\",\"\",AD446/$C$446)","v":""},null,{"$f":"IF($C$446=\"\",\"\",AF446/$C$446)","v":""},null,{"$f":"IF($C$446=\"\",\"\",AH446/$C$446)","v":""},null,{"$f":"IF($C$446=\"\",\"\",AJ446/$C$446)","v":""},null,{"$f":"IF($C$446=\"\",\"\",AL446/$C$446)","v":""},null,{"$f":"IF($C$446=\"\",\"\",AN446/$C$446)","v":""},null,{"$f":"IF($C$446=\"\",\"\",AP446/$C$446)","v":""},null,{"$f":"IF($C$446=\"\",\"\",AR446/$C$446)","v":""},null,{"$f":"IF($C$446=\"\",\"\",AT446/$C$446)","v":""},null,{"$f":"IF($C$446=\"\",\"\",AV446/$C$446)","v":""},null,{"$f":"IF($C$446=\"\",\"\",AX446/$C$446)","v":""},null,{"$f":"IF($C$446=\"\",\"\",AZ446/$C$446)","v":""},null,{"$f":"IF($C$446=\"\",\"\",BB446/$C$446)","v":""},null,0]
[null,null,null,null,{"$f":"IF($C$447=\"\",\"\",F447/$C$447)","v":""},null,{"$f":"IF($C$447=\"\",\"\",H447/$C$447)","v":""},null,{"$f":"IF($C$447=\"\",\"\",J447/$C$447)","v":""},null,{"$f":"IF($C$447=\"\",\"\",L447/$C$447)","v":""},null,{"$f":"IF($C$447=\"\",\"\",N447/$C$447)","v":""},null,{"$f":"IF($C$447=\"\",\"\",P447/$C$447)","v":""},null,{"$f":"IF($C$447=\"\",\"\",R447/$C$447)","v":""},null,{"$f":"IF($C$447=\"\",\"\",T447/$C$447)","v":""},null,{"$f":"IF($C$447=\"\",\"\",V447/$C$447)","v":""},null,{"$f":"IF($C$447=\"\",\"\",X447/$C$447)","v":""},null,{"$f":"IF($C$447=\"\",\"\",Z447/$C$447)","v":""},null,{"$f":"IF($C$447=\"\",\"\",AB447/$C$447)","v":""},null,{"$f":"IF($C$447=\"\",\"\",AD447/$C$447)","v":""},null,{"$f":"IF($C$447=\"\",\"\",AF447/$C$447)","v":""},null,{"$f":"IF($C$447=\"\",\"\",AH447/$C$447)","v":""},null,{"$f":"IF($C$447=\"\",\"\",AJ447/$C$447)","v":""},null,{"$f":"IF($C$447=\"\",\"\",AL447/$C$447)","v":""},null,{"$f":"IF($C$447=\"\",\"\",AN447/$C$447)","v":""},null,{"$f":"IF($C$447=\"\",\"\",AP447/$C$447)","v":""},null,{"$f":"IF($C$447=\"\",\"\",AR447/$C$447)","v":""},null,{"$f":"IF($C$447=\"\",\"\",AT447/$C$447)","v":""},null,{"$f":"IF($C$447=\"\",\"\",AV447/$C$447)","v":""},null,{"$f":"IF($C$447=\"\",\"\",AX447/$C$447)","v":""},null,{"$f":"IF($C$447=\"\",\"\",AZ447/$C$447)","v":""},null,{"$f":"IF($C$447=\"\",\"\",BB447/$C$447)","v":""},null,0]
[null,null,null,null,{"$f":"IF($C$448=\"\",\"\",F448/$C$448)","v":""},null,{"$f":"IF($C$448=\"\",\"\",H448/$C$448)","v":""},null,{"$f":"IF($C$448=\"\",\"\",J448/$C$448)","v":""},null,{"$f":"IF($C$448=\"\",\"\",L448/$C$448)","v":""},null,{"$f":"IF($C$448=\"\",\"\",N448/$C$448)","v":""},null,{"$f":"IF($C$448=\"\",\"\",P448/$C$448)","v":""},null,{"$f":"IF($C$448=\"\",\"\",R448/$C$448)","v":""},null,{"$f":"IF($C$448=\"\",\"\",T448/$C$448)","v":""},null,{"$f":"IF($C$448=\"\",\"\",V448/$C$448)","v":""},null,{"$f":"IF($C$448=\"\",\"\",X448/$C$448)","v":""},null,{"$f":"IF($C$448=\"\",\"\",Z448/$C$448)","v":""},null,{"$f":"IF($C$448=\"\",\"\",AB448/$C$448)","v":""},null,{"$f":"IF($C$448=\"\",\"\",AD448/$C$448)","v":""},null,{"$f":"IF($C$448=\"\",\"\",AF448/$C$448)","v":""},null,{"$f":"IF($C$448=\"\",\"\",AH448/$C$448)","v":""},null,{"$f":"IF($C$448=\"\",\"\",AJ448/$C$448)","v":""},null,{"$f":"IF($C$448=\"\",\"\",AL448/$C$448)","v":""},null,{"$f":"IF($C$448=\"\",\"\",AN448/$C$448)","v":""},null,{"$f":"IF($C$448=\"\",\"\",AP448/$C$448)","v":""},null,{"$f":"IF($C$448=\"\",\"\",AR448/$C$448)","v":""},null,{"$f":"IF($C$448=\"\",\"\",AT448/$C$448)","v":""},null,{"$f":"IF($C$448=\"\",\"\",AV448/$C$448)","v":""},null,{"$f":"IF($C$448=\"\",\"\",AX448/$C$448)","v":""},null,{"$f":"IF($C$448=\"\",\"\",AZ448/$C$448)","v":""},null,{"$f":"IF($C$448=\"\",\"\",BB448/$C$448)","v":""},null,0]
[null,null,null,null,{"$f":"IF($C$449=\"\",\"\",F449/$C$449)","v":""},null,{"$f":"IF($C$449=\"\",\"\",H449/$C$449)","v":""},null,{"$f":"IF($C$449=\"\",\"\",J449/$C$449)","v":""},null,{"$f":"IF($C$449=\"\",\"\",L449/$C$449)","v":""},null,{"$f":"IF($C$449=\"\",\"\",N449/$C$449)","v":""},null,{"$f":"IF($C$449=\"\",\"\",P449/$C$449)","v":""},null,{"$f":"IF($C$449=\"\",\"\",R449/$C$449)","v":""},null,{"$f":"IF($C$449=\"\",\"\",T449/$C$449)","v":""},null,{"$f":"IF($C$449=\"\",\"\",V449/$C$449)","v":""},null,{"$f":"IF($C$449=\"\",\"\",X449/$C$449)","v":""},null,{"$f":"IF($C$449=\"\",\"\",Z449/$C$449)","v":""},null,{"$f":"IF($C$449=\"\",\"\",AB449/$C$449)","v":""},null,{"$f":"IF($C$449=\"\",\"\",AD449/$C$449)","v":""},null,{"$f":"IF($C$449=\"\",\"\",AF449/$C$449)","v":""},null,{"$f":"IF($C$449=\"\",\"\",AH449/$C$449)","v":""},null,{"$f":"IF($C$449=\"\",\"\",AJ449/$C$449)","v":""},null,{"$f":"IF($C$449=\"\",\"\",AL449/$C$449)","v":""},null,{"$f":"IF($C$449=\"\",\"\",AN449/$C$449)","v":""},null,{"$f":"IF($C$449=\"\",\"\",AP449/$C$449)","v":""},null,{"$f":"IF($C$449=\"\",\"\",AR449/$C$449)","v":""},null,{"$f":"IF($C$449=\"\",\"\",AT449/$C$449)","v":""},null,{"$f":"IF($C$449=\"\",\"\",AV449/$C$449)","v":""},null,{"$f":"IF($C$449=\"\",\"\",AX449/$C$449)","v":""},null,{"$f":"IF($C$449=\"\",\"\",AZ449/$C$449)","v":""},null,{"$f":"IF($C$449=\"\",\"\",BB449/$C$449)","v":""},null,0]
[null,null,null,null,{"$f":"IF($C$450=\"\",\"\",F450/$C$450)","v":""},null,{"$f":"IF($C$450=\"\",\"\",H450/$C$450)","v":""},null,{"$f":"IF($C$450=\"\",\"\",J450/$C$450)","v":""},null,{"$f":"IF($C$450=\"\",\"\",L450/$C$450)","v":""},null,{"$f":"IF($C$450=\"\",\"\",N450/$C$450)","v":""},null,{"$f":"IF($C$450=\"\",\"\",P450/$C$450)","v":""},null,{"$f":"IF($C$450=\"\",\"\",R450/$C$450)","v":""},null,{"$f":"IF($C$450=\"\",\"\",T450/$C$450)","v":""},null,{"$f":"IF($C$450=\"\",\"\",V450/$C$450)","v":""},null,{"$f":"IF($C$450=\"\",\"\",X450/$C$450)","v":""},null,{"$f":"IF($C$450=\"\",\"\",Z450/$C$450)","v":""},null,{"$f":"IF($C$450=\"\",\"\",AB450/$C$450)","v":""},null,{"$f":"IF($C$450=\"\",\"\",AD450/$C$450)","v":""},null,{"$f":"IF($C$450=\"\",\"\",AF450/$C$450)","v":""},null,{"$f":"IF($C$450=\"\",\"\",AH450/$C$450)","v":""},null,{"$f":"IF($C$450=\"\",\"\",AJ450/$C$450)","v":""},null,{"$f":"IF($C$450=\"\",\"\",AL450/$C$450)","v":""},null,{"$f":"IF($C$450=\"\",\"\",AN450/$C$450)","v":""},null,{"$f":"IF($C$450=\"\",\"\",AP450/$C$450)","v":""},null,{"$f":"IF($C$450=\"\",\"\",AR450/$C$450)","v":""},null,{"$f":"IF($C$450=\"\",\"\",AT450/$C$450)","v":""},null,{"$f":"IF($C$450=\"\",\"\",AV450/$C$450)","v":""},null,{"$f":"IF($C$450=\"\",\"\",AX450/$C$450)","v":""},null,{"$f":"IF($C$450=\"\",\"\",AZ450/$C$450)","v":""},null,{"$f":"IF($C$450=\"\",\"\",BB450/$C$450)","v":""},null,0]
[null,null,null,null,{"$f":"IF($C$451=\"\",\"\",F451/$C$451)","v":""},null,{"$f":"IF($C$451=\"\",\"\",H451/$C$451)","v":""},null,{"$f":"IF($C$451=\"\",\"\",J451/$C$451)","v":""},null,{"$f":"IF($C$451=\"\",\"\",L451/$C$451)","v":""},null,{"$f":"IF($C$451=\"\",\"\",N451/$C$451)","v":""},null,{"$f":"IF($C$451=\"\",\"\",P451/$C$451)","v":""},null,{"$f":"IF($C$451=\"\",\"\",R451/$C$451)","v":""},null,{"$f":"IF($C$451=\"\",\"\",T451/$C$451)","v":""},null,{"$f":"IF($C$451=\"\",\"\",V451/$C$451)","v":""},null,{"$f":"IF($C$451=\"\",\"\",X451/$C$451)","v":""},null,{"$f":"IF($C$451=\"\",\"\",Z451/$C$451)","v":""},null,{"$f":"IF($C$451=\"\",\"\",AB451/$C$451)","v":""},null,{"$f":"IF($C$451=\"\",\"\",AD451/$C$451)","v":""},null,{"$f":"IF($C$451=\"\",\"\",AF451/$C$451)","v":""},null,{"$f":"IF($C$451=\"\",\"\",AH451/$C$451)","v":""},null,{"$f":"IF($C$451=\"\",\"\",AJ451/$C$451)","v":""},null,{"$f":"IF($C$451=\"\",\"\",AL451/$C$451)","v":""},null,{"$f":"IF($C$451=\"\",\"\",AN451/$C$451)","v":""},null,{"$f":"IF($C$451=\"\",\"\",AP451/$C$451)","v":""},null,{"$f":"IF($C$451=\"\",\"\",AR451/$C$451)","v":""},null,{"$f":"IF($C$451=\"\",\"\",AT451/$C$451)","v":""},null,{"$f":"IF($C$451=\"\",\"\",AV451/$C$451)","v":""},null,{"$f":"IF($C$451=\"\",\"\",AX451/$C$451)","v":""},null,{"$f":"IF($C$451=\"\",\"\",AZ451/$C$451)","v":""},null,{"$f":"IF($C$451=\"\",\"\",BB451/$C$451)","v":""},null,0]
[null,null,null,null,{"$f":"IF($C$452=\"\",\"\",F452/$C$452)","v":""},null,{"$f":"IF($C$452=\"\",\"\",H452/$C$452)","v":""},null,{"$f":"IF($C$452=\"\",\"\",J452/$C$452)","v":""},null,{"$f":"IF($C$452=\"\",\"\",L452/$C$452)","v":""},null,{"$f":"IF($C$452=\"\",\"\",N452/$C$452)","v":""},null,{"$f":"IF($C$452=\"\",\"\",P452/$C$452)","v":""},null,{"$f":"IF($C$452=\"\",\"\",R452/$C$452)","v":""},null,{"$f":"IF($C$452=\"\",\"\",T452/$C$452)","v":""},null,{"$f":"IF($C$452=\"\",\"\",V452/$C$452)","v":""},null,{"$f":"IF($C$452=\"\",\"\",X452/$C$452)","v":""},null,{"$f":"IF($C$452=\"\",\"\",Z452/$C$452)","v":""},null,{"$f":"IF($C$452=\"\",\"\",AB452/$C$452)","v":""},null,{"$f":"IF($C$452=\"\",\"\",AD452/$C$452)","v":""},null,{"$f":"IF($C$452=\"\",\"\",AF452/$C$452)","v":""},null,{"$f":"IF($C$452=\"\",\"\",AH452/$C$452)","v":""},null,{"$f":"IF($C$452=\"\",\"\",AJ452/$C$452)","v":""},null,{"$f":"IF($C$452=\"\",\"\",AL452/$C$452)","v":""},null,{"$f":"IF($C$452=\"\",\"\",AN452/$C$452)","v":""},null,{"$f":"IF($C$452=\"\",\"\",AP452/$C$452)","v":""},null,{"$f":"IF($C$452=\"\",\"\",AR452/$C$452)","v":""},null,{"$f":"IF($C$452=\"\",\"\",AT452/$C$452)","v":""},null,{"$f":"IF($C$452=\"\",\"\",AV452/$C$452)","v":""},null,{"$f":"IF($C$452=\"\",\"\",AX452/$C$452)","v":""},null,{"$f":"IF($C$452=\"\",\"\",AZ452/$C$452)","v":""},null,{"$f":"IF($C$452=\"\",\"\",BB452/$C$452)","v":""},null,0]
[null,null,null,null,{"$f":"IF($C$453=\"\",\"\",F453/$C$453)","v":""},null,{"$f":"IF($C$453=\"\",\"\",H453/$C$453)","v":""},null,{"$f":"IF($C$453=\"\",\"\",J453/$C$453)","v":""},null,{"$f":"IF($C$453=\"\",\"\",L453/$C$453)","v":""},null,{"$f":"IF($C$453=\"\",\"\",N453/$C$453)","v":""},null,{"$f":"IF($C$453=\"\",\"\",P453/$C$453)","v":""},null,{"$f":"IF($C$453=\"\",\"\",R453/$C$453)","v":""},null,{"$f":"IF($C$453=\"\",\"\",T453/$C$453)","v":""},null,{"$f":"IF($C$453=\"\",\"\",V453/$C$453)","v":""},null,{"$f":"IF($C$453=\"\",\"\",X453/$C$453)","v":""},null,{"$f":"IF($C$453=\"\",\"\",Z453/$C$453)","v":""},null,{"$f":"IF($C$453=\"\",\"\",AB453/$C$453)","v":""},null,{"$f":"IF($C$453=\"\",\"\",AD453/$C$453)","v":""},null,{"$f":"IF($C$453=\"\",\"\",AF453/$C$453)","v":""},null,{"$f":"IF($C$453=\"\",\"\",AH453/$C$453)","v":""},null,{"$f":"IF($C$453=\"\",\"\",AJ453/$C$453)","v":""},null,{"$f":"IF($C$453=\"\",\"\",AL453/$C$453)","v":""},null,{"$f":"IF($C$453=\"\",\"\",AN453/$C$453)","v":""},null,{"$f":"IF($C$453=\"\",\"\",AP453/$C$453)","v":""},null,{"$f":"IF($C$453=\"\",\"\",AR453/$C$453)","v":""},null,{"$f":"IF($C$453=\"\",\"\",AT453/$C$453)","v":""},null,{"$f":"IF($C$453=\"\",\"\",AV453/$C$453)","v":""},null,{"$f":"IF($C$453=\"\",\"\",AX453/$C$453)","v":""},null,{"$f":"IF($C$453=\"\",\"\",AZ453/$C$453)","v":""},null,{"$f":"IF($C$453=\"\",\"\",BB453/$C$453)","v":""},null,0]
[null,null,null,null,{"$f":"IF($C$454=\"\",\"\",F454/$C$454)","v":""},null,{"$f":"IF($C$454=\"\",\"\",H454/$C$454)","v":""},null,{"$f":"IF($C$454=\"\",\"\",J454/$C$454)","v":""},null,{"$f":"IF($C$454=\"\",\"\",L454/$C$454)","v":""},null,{"$f":"IF($C$454=\"\",\"\",N454/$C$454)","v":""},null,{"$f":"IF($C$454=\"\",\"\",P454/$C$454)","v":""},null,{"$f":"IF($C$454=\"\",\"\",R454/$C$454)","v":""},null,{"$f":"IF($C$454=\"\",\"\",T454/$C$454)","v":""},null,{"$f":"IF($C$454=\"\",\"\",V454/$C$454)","v":""},null,{"$f":"IF($C$454=\"\",\"\",X454/$C$454)","v":""},null,{"$f":"IF($C$454=\"\",\"\",Z454/$C$454)","v":""},null,{"$f":"IF($C$454=\"\",\"\",AB454/$C$454)","v":""},null,{"$f":"IF($C$454=\"\",\"\",AD454/$C$454)","v":""},null,{"$f":"IF($C$454=\"\",\"\",AF454/$C$454)","v":""},null,{"$f":"IF($C$454=\"\",\"\",AH454/$C$454)","v":""},null,{"$f":"IF($C$454=\"\",\"\",AJ454/$C$454)","v":""},null,{"$f":"IF($C$454=\"\",\"\",AL454/$C$454)","v":""},null,{"$f":"IF($C$454=\"\",\"\",AN454/$C$454)","v":""},null,{"$f":"IF($C$454=\"\",\"\",AP454/$C$454)","v":""},null,{"$f":"IF($C$454=\"\",\"\",AR454/$C$454)","v":""},null,{"$f":"IF($C$454=\"\",\"\",AT454/$C$454)","v":""},null,{"$f":"IF($C$454=\"\",\"\",AV454/$C$454)","v":""},null,{"$f":"IF($C$454=\"\",\"\",AX454/$C$454)","v":""},null,{"$f":"IF($C$454=\"\",\"\",AZ454/$C$454)","v":""},null,{"$f":"IF($C$454=\"\",\"\",BB454/$C$454)","v":""},null,0]
[null,null,null,null,{"$f":"IF($C$455=\"\",\"\",F455/$C$455)","v":""},null,{"$f":"IF($C$455=\"\",\"\",H455/$C$455)","v":""},null,{"$f":"IF($C$455=\"\",\"\",J455/$C$455)","v":""},null,{"$f":"IF($C$455=\"\",\"\",L455/$C$455)","v":""},null,{"$f":"IF($C$455=\"\",\"\",N455/$C$455)","v":""},null,{"$f":"IF($C$455=\"\",\"\",P455/$C$455)","v":""},null,{"$f":"IF($C$455=\"\",\"\",R455/$C$455)","v":""},null,{"$f":"IF($C$455=\"\",\"\",T455/$C$455)","v":""},null,{"$f":"IF($C$455=\"\",\"\",V455/$C$455)","v":""},null,{"$f":"IF($C$455=\"\",\"\",X455/$C$455)","v":""},null,{"$f":"IF($C$455=\"\",\"\",Z455/$C$455)","v":""},null,{"$f":"IF($C$455=\"\",\"\",AB455/$C$455)","v":""},null,{"$f":"IF($C$455=\"\",\"\",AD455/$C$455)","v":""},null,{"$f":"IF($C$455=\"\",\"\",AF455/$C$455)","v":""},null,{"$f":"IF($C$455=\"\",\"\",AH455/$C$455)","v":""},null,{"$f":"IF($C$455=\"\",\"\",AJ455/$C$455)","v":""},null,{"$f":"IF($C$455=\"\",\"\",AL455/$C$455)","v":""},null,{"$f":"IF($C$455=\"\",\"\",AN455/$C$455)","v":""},null,{"$f":"IF($C$455=\"\",\"\",AP455/$C$455)","v":""},null,{"$f":"IF($C$455=\"\",\"\",AR455/$C$455)","v":""},null,{"$f":"IF($C$455=\"\",\"\",AT455/$C$455)","v":""},null,{"$f":"IF($C$455=\"\",\"\",AV455/$C$455)","v":""},null,{"$f":"IF($C$455=\"\",\"\",AX455/$C$455)","v":""},null,{"$f":"IF($C$455=\"\",\"\",AZ455/$C$455)","v":""},null,{"$f":"IF($C$455=\"\",\"\",BB455/$C$455)","v":""},null,0]
[null,null,null,null,{"$f":"IF($C$456=\"\",\"\",F456/$C$456)","v":""},null,{"$f":"IF($C$456=\"\",\"\",H456/$C$456)","v":""},null,{"$f":"IF($C$456=\"\",\"\",J456/$C$456)","v":""},null,{"$f":"IF($C$456=\"\",\"\",L456/$C$456)","v":""},null,{"$f":"IF($C$456=\"\",\"\",N456/$C$456)","v":""},null,{"$f":"IF($C$456=\"\",\"\",P456/$C$456)","v":""},null,{"$f":"IF($C$456=\"\",\"\",R456/$C$456)","v":""},null,{"$f":"IF($C$456=\"\",\"\",T456/$C$456)","v":""},null,{"$f":"IF($C$456=\"\",\"\",V456/$C$456)","v":""},null,{"$f":"IF($C$456=\"\",\"\",X456/$C$456)","v":""},null,{"$f":"IF($C$456=\"\",\"\",Z456/$C$456)","v":""},null,{"$f":"IF($C$456=\"\",\"\",AB456/$C$456)","v":""},null,{"$f":"IF($C$456=\"\",\"\",AD456/$C$456)","v":""},null,{"$f":"IF($C$456=\"\",\"\",AF456/$C$456)","v":""},null,{"$f":"IF($C$456=\"\",\"\",AH456/$C$456)","v":""},null,{"$f":"IF($C$456=\"\",\"\",AJ456/$C$456)","v":""},null,{"$f":"IF($C$456=\"\",\"\",AL456/$C$456)","v":""},null,{"$f":"IF($C$456=\"\",\"\",AN456/$C$456)","v":""},null,{"$f":"IF($C$456=\"\",\"\",AP456/$C$456)","v":""},null,{"$f":"IF($C$456=\"\",\"\",AR456/$C$456)","v":""},null,{"$f":"IF($C$456=\"\",\"\",AT456/$C$456)","v":""},null,{"$f":"IF($C$456=\"\",\"\",AV456/$C$456)","v":""},null,{"$f":"IF($C$456=\"\",\"\",AX456/$C$456)","v":""},null,{"$f":"IF($C$456=\"\",\"\",AZ456/$C$456)","v":""},null,{"$f":"IF($C$456=\"\",\"\",BB456/$C$456)","v":""},null,0]
[null,null,null,null,{"$f":"IF($C$457=\"\",\"\",F457/$C$457)","v":""},null,{"$f":"IF($C$457=\"\",\"\",H457/$C$457)","v":""},null,{"$f":"IF($C$457=\"\",\"\",J457/$C$457)","v":""},null,{"$f":"IF($C$457=\"\",\"\",L457/$C$457)","v":""},null,{"$f":"IF($C$457=\"\",\"\",N457/$C$457)","v":""},null,{"$f":"IF($C$457=\"\",\"\",P457/$C$457)","v":""},null,{"$f":"IF($C$457=\"\",\"\",R457/$C$457)","v":""},null,{"$f":"IF($C$457=\"\",\"\",T457/$C$457)","v":""},null,{"$f":"IF($C$457=\"\",\"\",V457/$C$457)","v":""},null,{"$f":"IF($C$457=\"\",\"\",X457/$C$457)","v":""},null,{"$f":"IF($C$457=\"\",\"\",Z457/$C$457)","v":""},null,{"$f":"IF($C$457=\"\",\"\",AB457/$C$457)","v":""},null,{"$f":"IF($C$457=\"\",\"\",AD457/$C$457)","v":""},null,{"$f":"IF($C$457=\"\",\"\",AF457/$C$457)","v":""},null,{"$f":"IF($C$457=\"\",\"\",AH457/$C$457)","v":""},null,{"$f":"IF($C$457=\"\",\"\",AJ457/$C$457)","v":""},null,{"$f":"IF($C$457=\"\",\"\",AL457/$C$457)","v":""},null,{"$f":"IF($C$457=\"\",\"\",AN457/$C$457)","v":""},null,{"$f":"IF($C$457=\"\",\"\",AP457/$C$457)","v":""},null,{"$f":"IF($C$457=\"\",\"\",AR457/$C$457)","v":""},null,{"$f":"IF($C$457=\"\",\"\",AT457/$C$457)","v":""},null,{"$f":"IF($C$457=\"\",\"\",AV457/$C$457)","v":""},null,{"$f":"IF($C$457=\"\",\"\",AX457/$C$457)","v":""},null,{"$f":"IF($C$457=\"\",\"\",AZ457/$C$457)","v":""},null,{"$f":"IF($C$457=\"\",\"\",BB457/$C$457)","v":""},null,0]
[null,null,null,null,{"$f":"IF($C$458=\"\",\"\",F458/$C$458)","v":""},null,{"$f":"IF($C$458=\"\",\"\",H458/$C$458)","v":""},null,{"$f":"IF($C$458=\"\",\"\",J458/$C$458)","v":""},null,{"$f":"IF($C$458=\"\",\"\",L458/$C$458)","v":""},null,{"$f":"IF($C$458=\"\",\"\",N458/$C$458)","v":""},null,{"$f":"IF($C$458=\"\",\"\",P458/$C$458)","v":""},null,{"$f":"IF($C$458=\"\",\"\",R458/$C$458)","v":""},null,{"$f":"IF($C$458=\"\",\"\",T458/$C$458)","v":""},null,{"$f":"IF($C$458=\"\",\"\",V458/$C$458)","v":""},null,{"$f":"IF($C$458=\"\",\"\",X458/$C$458)","v":""},null,{"$f":"IF($C$458=\"\",\"\",Z458/$C$458)","v":""},null,{"$f":"IF($C$458=\"\",\"\",AB458/$C$458)","v":""},null,{"$f":"IF($C$458=\"\",\"\",AD458/$C$458)","v":""},null,{"$f":"IF($C$458=\"\",\"\",AF458/$C$458)","v":""},null,{"$f":"IF($C$458=\"\",\"\",AH458/$C$458)","v":""},null,{"$f":"IF($C$458=\"\",\"\",AJ458/$C$458)","v":""},null,{"$f":"IF($C$458=\"\",\"\",AL458/$C$458)","v":""},null,{"$f":"IF($C$458=\"\",\"\",AN458/$C$458)","v":""},null,{"$f":"IF($C$458=\"\",\"\",AP458/$C$458)","v":""},null,{"$f":"IF($C$458=\"\",\"\",AR458/$C$458)","v":""},null,{"$f":"IF($C$458=\"\",\"\",AT458/$C$458)","v":""},null,{"$f":"IF($C$458=\"\",\"\",AV458/$C$458)","v":""},null,{"$f":"IF($C$458=\"\",\"\",AX458/$C$458)","v":""},null,{"$f":"IF($C$458=\"\",\"\",AZ458/$C$458)","v":""},null,{"$f":"IF($C$458=\"\",\"\",BB458/$C$458)","v":""},null,0]
[null,null,null,null,{"$f":"IF($C$459=\"\",\"\",F459/$C$459)","v":""},null,{"$f":"IF($C$459=\"\",\"\",H459/$C$459)","v":""},null,{"$f":"IF($C$459=\"\",\"\",J459/$C$459)","v":""},null,{"$f":"IF($C$459=\"\",\"\",L459/$C$459)","v":""},null,{"$f":"IF($C$459=\"\",\"\",N459/$C$459)","v":""},null,{"$f":"IF($C$459=\"\",\"\",P459/$C$459)","v":""},null,{"$f":"IF($C$459=\"\",\"\",R459/$C$459)","v":""},null,{"$f":"IF($C$459=\"\",\"\",T459/$C$459)","v":""},null,{"$f":"IF($C$459=\"\",\"\",V459/$C$459)","v":""},null,{"$f":"IF($C$459=\"\",\"\",X459/$C$459)","v":""},null,{"$f":"IF($C$459=\"\",\"\",Z459/$C$459)","v":""},null,{"$f":"IF($C$459=\"\",\"\",AB459/$C$459)","v":""},null,{"$f":"IF($C$459=\"\",\"\",AD459/$C$459)","v":""},null,{"$f":"IF($C$459=\"\",\"\",AF459/$C$459)","v":""},null,{"$f":"IF($C$459=\"\",\"\",AH459/$C$459)","v":""},null,{"$f":"IF($C$459=\"\",\"\",AJ459/$C$459)","v":""},null,{"$f":"IF($C$459=\"\",\"\",AL459/$C$459)","v":""},null,{"$f":"IF($C$459=\"\",\"\",AN459/$C$459)","v":""},null,{"$f":"IF($C$459=\"\",\"\",AP459/$C$459)","v":""},null,{"$f":"IF($C$459=\"\",\"\",AR459/$C$459)","v":""},null,{"$f":"IF($C$459=\"\",\"\",AT459/$C$459)","v":""},null,{"$f":"IF($C$459=\"\",\"\",AV459/$C$459)","v":""},null,{"$f":"IF($C$459=\"\",\"\",AX459/$C$459)","v":""},null,{"$f":"IF($C$459=\"\",\"\",AZ459/$C$459)","v":""},null,{"$f":"IF($C$459=\"\",\"\",BB459/$C$459)","v":""},null,0]
[null,null,null,null,{"$f":"IF($C$460=\"\",\"\",F460/$C$460)","v":""},null,{"$f":"IF($C$460=\"\",\"\",H460/$C$460)","v":""},null,{"$f":"IF($C$460=\"\",\"\",J460/$C$460)","v":""},null,{"$f":"IF($C$460=\"\",\"\",L460/$C$460)","v":""},null,{"$f":"IF($C$460=\"\",\"\",N460/$C$460)","v":""},null,{"$f":"IF($C$460=\"\",\"\",P460/$C$460)","v":""},null,{"$f":"IF($C$460=\"\",\"\",R460/$C$460)","v":""},null,{"$f":"IF($C$460=\"\",\"\",T460/$C$460)","v":""},null,{"$f":"IF($C$460=\"\",\"\",V460/$C$460)","v":""},null,{"$f":"IF($C$460=\"\",\"\",X460/$C$460)","v":""},null,{"$f":"IF($C$460=\"\",\"\",Z460/$C$460)","v":""},null,{"$f":"IF($C$460=\"\",\"\",AB460/$C$460)","v":""},null,{"$f":"IF($C$460=\"\",\"\",AD460/$C$460)","v":""},null,{"$f":"IF($C$460=\"\",\"\",AF460/$C$460)","v":""},null,{"$f":"IF($C$460=\"\",\"\",AH460/$C$460)","v":""},null,{"$f":"IF($C$460=\"\",\"\",AJ460/$C$460)","v":""},null,{"$f":"IF($C$460=\"\",\"\",AL460/$C$460)","v":""},null,{"$f":"IF($C$460=\"\",\"\",AN460/$C$460)","v":""},null,{"$f":"IF($C$460=\"\",\"\",AP460/$C$460)","v":""},null,{"$f":"IF($C$460=\"\",\"\",AR460/$C$460)","v":""},null,{"$f":"IF($C$460=\"\",\"\",AT460/$C$460)","v":""},null,{"$f":"IF($C$460=\"\",\"\",AV460/$C$460)","v":""},null,{"$f":"IF($C$460=\"\",\"\",AX460/$C$460)","v":""},null,{"$f":"IF($C$460=\"\",\"\",AZ460/$C$460)","v":""},null,{"$f":"IF($C$460=\"\",\"\",BB460/$C$460)","v":""},null,0]
[null,null,null,null,{"$f":"IF($C$461=\"\",\"\",F461/$C$461)","v":""},null,{"$f":"IF($C$461=\"\",\"\",H461/$C$461)","v":""},null,{"$f":"IF($C$461=\"\",\"\",J461/$C$461)","v":""},null,{"$f":"IF($C$461=\"\",\"\",L461/$C$461)","v":""},null,{"$f":"IF($C$461=\"\",\"\",N461/$C$461)","v":""},null,{"$f":"IF($C$461=\"\",\"\",P461/$C$461)","v":""},null,{"$f":"IF($C$461=\"\",\"\",R461/$C$461)","v":""},null,{"$f":"IF($C$461=\"\",\"\",T461/$C$461)","v":""},null,{"$f":"IF($C$461=\"\",\"\",V461/$C$461)","v":""},null,{"$f":"IF($C$461=\"\",\"\",X461/$C$461)","v":""},null,{"$f":"IF($C$461=\"\",\"\",Z461/$C$461)","v":""},null,{"$f":"IF($C$461=\"\",\"\",AB461/$C$461)","v":""},null,{"$f":"IF($C$461=\"\",\"\",AD461/$C$461)","v":""},null,{"$f":"IF($C$461=\"\",\"\",AF461/$C$461)","v":""},null,{"$f":"IF($C$461=\"\",\"\",AH461/$C$461)","v":""},null,{"$f":"IF($C$461=\"\",\"\",AJ461/$C$461)","v":""},null,{"$f":"IF($C$461=\"\",\"\",AL461/$C$461)","v":""},null,{"$f":"IF($C$461=\"\",\"\",AN461/$C$461)","v":""},null,{"$f":"IF($C$461=\"\",\"\",AP461/$C$461)","v":""},null,{"$f":"IF($C$461=\"\",\"\",AR461/$C$461)","v":""},null,{"$f":"IF($C$461=\"\",\"\",AT461/$C$461)","v":""},null,{"$f":"IF($C$461=\"\",\"\",AV461/$C$461)","v":""},null,{"$f":"IF($C$461=\"\",\"\",AX461/$C$461)","v":""},null,{"$f":"IF($C$461=\"\",\"\",AZ461/$C$461)","v":""},null,{"$f":"IF($C$461=\"\",\"\",BB461/$C$461)","v":""},null,0]
[null,null,null,null,{"$f":"IF($C$462=\"\",\"\",F462/$C$462)","v":""},null,{"$f":"IF($C$462=\"\",\"\",H462/$C$462)","v":""},null,{"$f":"IF($C$462=\"\",\"\",J462/$C$462)","v":""},null,{"$f":"IF($C$462=\"\",\"\",L462/$C$462)","v":""},null,{"$f":"IF($C$462=\"\",\"\",N462/$C$462)","v":""},null,{"$f":"IF($C$462=\"\",\"\",P462/$C$462)","v":""},null,{"$f":"IF($C$462=\"\",\"\",R462/$C$462)","v":""},null,{"$f":"IF($C$462=\"\",\"\",T462/$C$462)","v":""},null,{"$f":"IF($C$462=\"\",\"\",V462/$C$462)","v":""},null,{"$f":"IF($C$462=\"\",\"\",X462/$C$462)","v":""},null,{"$f":"IF($C$462=\"\",\"\",Z462/$C$462)","v":""},null,{"$f":"IF($C$462=\"\",\"\",AB462/$C$462)","v":""},null,{"$f":"IF($C$462=\"\",\"\",AD462/$C$462)","v":""},null,{"$f":"IF($C$462=\"\",\"\",AF462/$C$462)","v":""},null,{"$f":"IF($C$462=\"\",\"\",AH462/$C$462)","v":""},null,{"$f":"IF($C$462=\"\",\"\",AJ462/$C$462)","v":""},null,{"$f":"IF($C$462=\"\",\"\",AL462/$C$462)","v":""},null,{"$f":"IF($C$462=\"\",\"\",AN462/$C$462)","v":""},null,{"$f":"IF($C$462=\"\",\"\",AP462/$C$462)","v":""},null,{"$f":"IF($C$462=\"\",\"\",AR462/$C$462)","v":""},null,{"$f":"IF($C$462=\"\",\"\",AT462/$C$462)","v":""},null,{"$f":"IF($C$462=\"\",\"\",AV462/$C$462)","v":""},null,{"$f":"IF($C$462=\"\",\"\",AX462/$C$462)","v":""},null,{"$f":"IF($C$462=\"\",\"\",AZ462/$C$462)","v":""},null,{"$f":"IF($C$462=\"\",\"\",BB462/$C$462)","v":""},null,0]
[null,null,null,null,{"$f":"IF($C$463=\"\",\"\",F463/$C$463)","v":""},null,{"$f":"IF($C$463=\"\",\"\",H463/$C$463)","v":""},null,{"$f":"IF($C$463=\"\",\"\",J463/$C$463)","v":""},null,{"$f":"IF($C$463=\"\",\"\",L463/$C$463)","v":""},null,{"$f":"IF($C$463=\"\",\"\",N463/$C$463)","v":""},null,{"$f":"IF($C$463=\"\",\"\",P463/$C$463)","v":""},null,{"$f":"IF($C$463=\"\",\"\",R463/$C$463)","v":""},null,{"$f":"IF($C$463=\"\",\"\",T463/$C$463)","v":""},null,{"$f":"IF($C$463=\"\",\"\",V463/$C$463)","v":""},null,{"$f":"IF($C$463=\"\",\"\",X463/$C$463)","v":""},null,{"$f":"IF($C$463=\"\",\"\",Z463/$C$463)","v":""},null,{"$f":"IF($C$463=\"\",\"\",AB463/$C$463)","v":""},null,{"$f":"IF($C$463=\"\",\"\",AD463/$C$463)","v":""},null,{"$f":"IF($C$463=\"\",\"\",AF463/$C$463)","v":""},null,{"$f":"IF($C$463=\"\",\"\",AH463/$C$463)","v":""},null,{"$f":"IF($C$463=\"\",\"\",AJ463/$C$463)","v":""},null,{"$f":"IF($C$463=\"\",\"\",AL463/$C$463)","v":""},null,{"$f":"IF($C$463=\"\",\"\",AN463/$C$463)","v":""},null,{"$f":"IF($C$463=\"\",\"\",AP463/$C$463)","v":""},null,{"$f":"IF($C$463=\"\",\"\",AR463/$C$463)","v":""},null,{"$f":"IF($C$463=\"\",\"\",AT463/$C$463)","v":""},null,{"$f":"IF($C$463=\"\",\"\",AV463/$C$463)","v":""},null,{"$f":"IF($C$463=\"\",\"\",AX463/$C$463)","v":""},null,{"$f":"IF($C$463=\"\",\"\",AZ463/$C$463)","v":""},null,{"$f":"IF($C$463=\"\",\"\",BB463/$C$463)","v":""},null,0]
[null,null,null,null,{"$f":"IF($C$464=\"\",\"\",F464/$C$464)","v":""},null,{"$f":"IF($C$464=\"\",\"\",H464/$C$464)","v":""},null,{"$f":"IF($C$464=\"\",\"\",J464/$C$464)","v":""},null,{"$f":"IF($C$464=\"\",\"\",L464/$C$464)","v":""},null,{"$f":"IF($C$464=\"\",\"\",N464/$C$464)","v":""},null,{"$f":"IF($C$464=\"\",\"\",P464/$C$464)","v":""},null,{"$f":"IF($C$464=\"\",\"\",R464/$C$464)","v":""},null,{"$f":"IF($C$464=\"\",\"\",T464/$C$464)","v":""},null,{"$f":"IF($C$464=\"\",\"\",V464/$C$464)","v":""},null,{"$f":"IF($C$464=\"\",\"\",X464/$C$464)","v":""},null,{"$f":"IF($C$464=\"\",\"\",Z464/$C$464)","v":""},null,{"$f":"IF($C$464=\"\",\"\",AB464/$C$464)","v":""},null,{"$f":"IF($C$464=\"\",\"\",AD464/$C$464)","v":""},null,{"$f":"IF($C$464=\"\",\"\",AF464/$C$464)","v":""},null,{"$f":"IF($C$464=\"\",\"\",AH464/$C$464)","v":""},null,{"$f":"IF($C$464=\"\",\"\",AJ464/$C$464)","v":""},null,{"$f":"IF($C$464=\"\",\"\",AL464/$C$464)","v":""},null,{"$f":"IF($C$464=\"\",\"\",AN464/$C$464)","v":""},null,{"$f":"IF($C$464=\"\",\"\",AP464/$C$464)","v":""},null,{"$f":"IF($C$464=\"\",\"\",AR464/$C$464)","v":""},null,{"$f":"IF($C$464=\"\",\"\",AT464/$C$464)","v":""},null,{"$f":"IF($C$464=\"\",\"\",AV464/$C$464)","v":""},null,{"$f":"IF($C$464=\"\",\"\",AX464/$C$464)","v":""},null,{"$f":"IF($C$464=\"\",\"\",AZ464/$C$464)","v":""},null,{"$f":"IF($C$464=\"\",\"\",BB464/$C$464)","v":""},null,0]
[null,null,null,null,{"$f":"IF($C$465=\"\",\"\",F465/$C$465)","v":""},null,{"$f":"IF($C$465=\"\",\"\",H465/$C$465)","v":""},null,{"$f":"IF($C$465=\"\",\"\",J465/$C$465)","v":""},null,{"$f":"IF($C$465=\"\",\"\",L465/$C$465)","v":""},null,{"$f":"IF($C$465=\"\",\"\",N465/$C$465)","v":""},null,{"$f":"IF($C$465=\"\",\"\",P465/$C$465)","v":""},null,{"$f":"IF($C$465=\"\",\"\",R465/$C$465)","v":""},null,{"$f":"IF($C$465=\"\",\"\",T465/$C$465)","v":""},null,{"$f":"IF($C$465=\"\",\"\",V465/$C$465)","v":""},null,{"$f":"IF($C$465=\"\",\"\",X465/$C$465)","v":""},null,{"$f":"IF($C$465=\"\",\"\",Z465/$C$465)","v":""},null,{"$f":"IF($C$465=\"\",\"\",AB465/$C$465)","v":""},null,{"$f":"IF($C$465=\"\",\"\",AD465/$C$465)","v":""},null,{"$f":"IF($C$465=\"\",\"\",AF465/$C$465)","v":""},null,{"$f":"IF($C$465=\"\",\"\",AH465/$C$465)","v":""},null,{"$f":"IF($C$465=\"\",\"\",AJ465/$C$465)","v":""},null,{"$f":"IF($C$465=\"\",\"\",AL465/$C$465)","v":""},null,{"$f":"IF($C$465=\"\",\"\",AN465/$C$465)","v":""},null,{"$f":"IF($C$465=\"\",\"\",AP465/$C$465)","v":""},null,{"$f":"IF($C$465=\"\",\"\",AR465/$C$465)","v":""},null,{"$f":"IF($C$465=\"\",\"\",AT465/$C$465)","v":""},null,{"$f":"IF($C$465=\"\",\"\",AV465/$C$465)","v":""},null,{"$f":"IF($C$465=\"\",\"\",AX465/$C$465)","v":""},null,{"$f":"IF($C$465=\"\",\"\",AZ465/$C$465)","v":""},null,{"$f":"IF($C$465=\"\",\"\",BB465/$C$465)","v":""},null,0]
[null,null,null,null,{"$f":"IF($C$466=\"\",\"\",F466/$C$466)","v":""},null,{"$f":"IF($C$466=\"\",\"\",H466/$C$466)","v":""},null,{"$f":"IF($C$466=\"\",\"\",J466/$C$466)","v":""},null,{"$f":"IF($C$466=\"\",\"\",L466/$C$466)","v":""},null,{"$f":"IF($C$466=\"\",\"\",N466/$C$466)","v":""},null,{"$f":"IF($C$466=\"\",\"\",P466/$C$466)","v":""},null,{"$f":"IF($C$466=\"\",\"\",R466/$C$466)","v":""},null,{"$f":"IF($C$466=\"\",\"\",T466/$C$466)","v":""},null,{"$f":"IF($C$466=\"\",\"\",V466/$C$466)","v":""},null,{"$f":"IF($C$466=\"\",\"\",X466/$C$466)","v":""},null,{"$f":"IF($C$466=\"\",\"\",Z466/$C$466)","v":""},null,{"$f":"IF($C$466=\"\",\"\",AB466/$C$466)","v":""},null,{"$f":"IF($C$466=\"\",\"\",AD466/$C$466)","v":""},null,{"$f":"IF($C$466=\"\",\"\",AF466/$C$466)","v":""},null,{"$f":"IF($C$466=\"\",\"\",AH466/$C$466)","v":""},null,{"$f":"IF($C$466=\"\",\"\",AJ466/$C$466)","v":""},null,{"$f":"IF($C$466=\"\",\"\",AL466/$C$466)","v":""},null,{"$f":"IF($C$466=\"\",\"\",AN466/$C$466)","v":""},null,{"$f":"IF($C$466=\"\",\"\",AP466/$C$466)","v":""},null,{"$f":"IF($C$466=\"\",\"\",AR466/$C$466)","v":""},null,{"$f":"IF($C$466=\"\",\"\",AT466/$C$466)","v":""},null,{"$f":"IF($C$466=\"\",\"\",AV466/$C$466)","v":""},null,{"$f":"IF($C$466=\"\",\"\",AX466/$C$466)","v":""},null,{"$f":"IF($C$466=\"\",\"\",AZ466/$C$466)","v":""},null,{"$f":"IF($C$466=\"\",\"\",BB466/$C$466)","v":""},null,0]
[null,null,null,null,{"$f":"IF($C$467=\"\",\"\",F467/$C$467)","v":""},null,{"$f":"IF($C$467=\"\",\"\",H467/$C$467)","v":""},null,{"$f":"IF($C$467=\"\",\"\",J467/$C$467)","v":""},null,{"$f":"IF($C$467=\"\",\"\",L467/$C$467)","v":""},null,{"$f":"IF($C$467=\"\",\"\",N467/$C$467)","v":""},null,{"$f":"IF($C$467=\"\",\"\",P467/$C$467)","v":""},null,{"$f":"IF($C$467=\"\",\"\",R467/$C$467)","v":""},null,{"$f":"IF($C$467=\"\",\"\",T467/$C$467)","v":""},null,{"$f":"IF($C$467=\"\",\"\",V467/$C$467)","v":""},null,{"$f":"IF($C$467=\"\",\"\",X467/$C$467)","v":""},null,{"$f":"IF($C$467=\"\",\"\",Z467/$C$467)","v":""},null,{"$f":"IF($C$467=\"\",\"\",AB467/$C$467)","v":""},null,{"$f":"IF($C$467=\"\",\"\",AD467/$C$467)","v":""},null,{"$f":"IF($C$467=\"\",\"\",AF467/$C$467)","v":""},null,{"$f":"IF($C$467=\"\",\"\",AH467/$C$467)","v":""},null,{"$f":"IF($C$467=\"\",\"\",AJ467/$C$467)","v":""},null,{"$f":"IF($C$467=\"\",\"\",AL467/$C$467)","v":""},null,{"$f":"IF($C$467=\"\",\"\",AN467/$C$467)","v":""},null,{"$f":"IF($C$467=\"\",\"\",AP467/$C$467)","v":""},null,{"$f":"IF($C$467=\"\",\"\",AR467/$C$467)","v":""},null,{"$f":"IF($C$467=\"\",\"\",AT467/$C$467)","v":""},null,{"$f":"IF($C$467=\"\",\"\",AV467/$C$467)","v":""},null,{"$f":"IF($C$467=\"\",\"\",AX467/$C$467)","v":""},null,{"$f":"IF($C$467=\"\",\"\",AZ467/$C$467)","v":""},null,{"$f":"IF($C$467=\"\",\"\",BB467/$C$467)","v":""},null,0]
[null,null,null,null,{"$f":"IF($C$468=\"\",\"\",F468/$C$468)","v":""},null,{"$f":"IF($C$468=\"\",\"\",H468/$C$468)","v":""},null,{"$f":"IF($C$468=\"\",\"\",J468/$C$468)","v":""},null,{"$f":"IF($C$468=\"\",\"\",L468/$C$468)","v":""},null,{"$f":"IF($C$468=\"\",\"\",N468/$C$468)","v":""},null,{"$f":"IF($C$468=\"\",\"\",P468/$C$468)","v":""},null,{"$f":"IF($C$468=\"\",\"\",R468/$C$468)","v":""},null,{"$f":"IF($C$468=\"\",\"\",T468/$C$468)","v":""},null,{"$f":"IF($C$468=\"\",\"\",V468/$C$468)","v":""},null,{"$f":"IF($C$468=\"\",\"\",X468/$C$468)","v":""},null,{"$f":"IF($C$468=\"\",\"\",Z468/$C$468)","v":""},null,{"$f":"IF($C$468=\"\",\"\",AB468/$C$468)","v":""},null,{"$f":"IF($C$468=\"\",\"\",AD468/$C$468)","v":""},null,{"$f":"IF($C$468=\"\",\"\",AF468/$C$468)","v":""},null,{"$f":"IF($C$468=\"\",\"\",AH468/$C$468)","v":""},null,{"$f":"IF($C$468=\"\",\"\",AJ468/$C$468)","v":""},null,{"$f":"IF($C$468=\"\",\"\",AL468/$C$468)","v":""},null,{"$f":"IF($C$468=\"\",\"\",AN468/$C$468)","v":""},null,{"$f":"IF($C$468=\"\",\"\",AP468/$C$468)","v":""},null,{"$f":"IF($C$468=\"\",\"\",AR468/$C$468)","v":""},null,{"$f":"IF($C$468=\"\",\"\",AT468/$C$468)","v":""},null,{"$f":"IF($C$468=\"\",\"\",AV468/$C$468)","v":""},null,{"$f":"IF($C$468=\"\",\"\",AX468/$C$468)","v":""},null,{"$f":"IF($C$468=\"\",\"\",AZ468/$C$468)","v":""},null,{"$f":"IF($C$468=\"\",\"\",BB468/$C$468)","v":""},null,0]
[null,null,null,null,{"$f":"IF($C$469=\"\",\"\",F469/$C$469)","v":""},null,{"$f":"IF($C$469=\"\",\"\",H469/$C$469)","v":""},null,{"$f":"IF($C$469=\"\",\"\",J469/$C$469)","v":""},null,{"$f":"IF($C$469=\"\",\"\",L469/$C$469)","v":""},null,{"$f":"IF($C$469=\"\",\"\",N469/$C$469)","v":""},null,{"$f":"IF($C$469=\"\",\"\",P469/$C$469)","v":""},null,{"$f":"IF($C$469=\"\",\"\",R469/$C$469)","v":""},null,{"$f":"IF($C$469=\"\",\"\",T469/$C$469)","v":""},null,{"$f":"IF($C$469=\"\",\"\",V469/$C$469)","v":""},null,{"$f":"IF($C$469=\"\",\"\",X469/$C$469)","v":""},null,{"$f":"IF($C$469=\"\",\"\",Z469/$C$469)","v":""},null,{"$f":"IF($C$469=\"\",\"\",AB469/$C$469)","v":""},null,{"$f":"IF($C$469=\"\",\"\",AD469/$C$469)","v":""},null,{"$f":"IF($C$469=\"\",\"\",AF469/$C$469)","v":""},null,{"$f":"IF($C$469=\"\",\"\",AH469/$C$469)","v":""},null,{"$f":"IF($C$469=\"\",\"\",AJ469/$C$469)","v":""},null,{"$f":"IF($C$469=\"\",\"\",AL469/$C$469)","v":""},null,{"$f":"IF($C$469=\"\",\"\",AN469/$C$469)","v":""},null,{"$f":"IF($C$469=\"\",\"\",AP469/$C$469)","v":""},null,{"$f":"IF($C$469=\"\",\"\",AR469/$C$469)","v":""},null,{"$f":"IF($C$469=\"\",\"\",AT469/$C$469)","v":""},null,{"$f":"IF($C$469=\"\",\"\",AV469/$C$469)","v":""},null,{"$f":"IF($C$469=\"\",\"\",AX469/$C$469)","v":""},null,{"$f":"IF($C$469=\"\",\"\",AZ469/$C$469)","v":""},null,{"$f":"IF($C$469=\"\",\"\",BB469/$C$469)","v":""},null,0]
[null,null,null,null,{"$f":"IF($C$470=\"\",\"\",F470/$C$470)","v":""},null,{"$f":"IF($C$470=\"\",\"\",H470/$C$470)","v":""},null,{"$f":"IF($C$470=\"\",\"\",J470/$C$470)","v":""},null,{"$f":"IF($C$470=\"\",\"\",L470/$C$470)","v":""},null,{"$f":"IF($C$470=\"\",\"\",N470/$C$470)","v":""},null,{"$f":"IF($C$470=\"\",\"\",P470/$C$470)","v":""},null,{"$f":"IF($C$470=\"\",\"\",R470/$C$470)","v":""},null,{"$f":"IF($C$470=\"\",\"\",T470/$C$470)","v":""},null,{"$f":"IF($C$470=\"\",\"\",V470/$C$470)","v":""},null,{"$f":"IF($C$470=\"\",\"\",X470/$C$470)","v":""},null,{"$f":"IF($C$470=\"\",\"\",Z470/$C$470)","v":""},null,{"$f":"IF($C$470=\"\",\"\",AB470/$C$470)","v":""},null,{"$f":"IF($C$470=\"\",\"\",AD470/$C$470)","v":""},null,{"$f":"IF($C$470=\"\",\"\",AF470/$C$470)","v":""},null,{"$f":"IF($C$470=\"\",\"\",AH470/$C$470)","v":""},null,{"$f":"IF($C$470=\"\",\"\",AJ470/$C$470)","v":""},null,{"$f":"IF($C$470=\"\",\"\",AL470/$C$470)","v":""},null,{"$f":"IF($C$470=\"\",\"\",AN470/$C$470)","v":""},null,{"$f":"IF($C$470=\"\",\"\",AP470/$C$470)","v":""},null,{"$f":"IF($C$470=\"\",\"\",AR470/$C$470)","v":""},null,{"$f":"IF($C$470=\"\",\"\",AT470/$C$470)","v":""},null,{"$f":"IF($C$470=\"\",\"\",AV470/$C$470)","v":""},null,{"$f":"IF($C$470=\"\",\"\",AX470/$C$470)","v":""},null,{"$f":"IF($C$470=\"\",\"\",AZ470/$C$470)","v":""},null,{"$f":"IF($C$470=\"\",\"\",BB470/$C$470)","v":""},null,0]
[null,null,null,null,{"$f":"IF($C$471=\"\",\"\",F471/$C$471)","v":""},null,{"$f":"IF($C$471=\"\",\"\",H471/$C$471)","v":""},null,{"$f":"IF($C$471=\"\",\"\",J471/$C$471)","v":""},null,{"$f":"IF($C$471=\"\",\"\",L471/$C$471)","v":""},null,{"$f":"IF($C$471=\"\",\"\",N471/$C$471)","v":""},null,{"$f":"IF($C$471=\"\",\"\",P471/$C$471)","v":""},null,{"$f":"IF($C$471=\"\",\"\",R471/$C$471)","v":""},null,{"$f":"IF($C$471=\"\",\"\",T471/$C$471)","v":""},null,{"$f":"IF($C$471=\"\",\"\",V471/$C$471)","v":""},null,{"$f":"IF($C$471=\"\",\"\",X471/$C$471)","v":""},null,{"$f":"IF($C$471=\"\",\"\",Z471/$C$471)","v":""},null,{"$f":"IF($C$471=\"\",\"\",AB471/$C$471)","v":""},null,{"$f":"IF($C$471=\"\",\"\",AD471/$C$471)","v":""},null,{"$f":"IF($C$471=\"\",\"\",AF471/$C$471)","v":""},null,{"$f":"IF($C$471=\"\",\"\",AH471/$C$471)","v":""},null,{"$f":"IF($C$471=\"\",\"\",AJ471/$C$471)","v":""},null,{"$f":"IF($C$471=\"\",\"\",AL471/$C$471)","v":""},null,{"$f":"IF($C$471=\"\",\"\",AN471/$C$471)","v":""},null,{"$f":"IF($C$471=\"\",\"\",AP471/$C$471)","v":""},null,{"$f":"IF($C$471=\"\",\"\",AR471/$C$471)","v":""},null,{"$f":"IF($C$471=\"\",\"\",AT471/$C$471)","v":""},null,{"$f":"IF($C$471=\"\",\"\",AV471/$C$471)","v":""},null,{"$f":"IF($C$471=\"\",\"\",AX471/$C$471)","v":""},null,{"$f":"IF($C$471=\"\",\"\",AZ471/$C$471)","v":""},null,{"$f":"IF($C$471=\"\",\"\",BB471/$C$471)","v":""},null,0]
[null,null,null,null,{"$f":"IF($C$472=\"\",\"\",F472/$C$472)","v":""},null,{"$f":"IF($C$472=\"\",\"\",H472/$C$472)","v":""},null,{"$f":"IF($C$472=\"\",\"\",J472/$C$472)","v":""},null,{"$f":"IF($C$472=\"\",\"\",L472/$C$472)","v":""},null,{"$f":"IF($C$472=\"\",\"\",N472/$C$472)","v":""},null,{"$f":"IF($C$472=\"\",\"\",P472/$C$472)","v":""},null,{"$f":"IF($C$472=\"\",\"\",R472/$C$472)","v":""},null,{"$f":"IF($C$472=\"\",\"\",T472/$C$472)","v":""},null,{"$f":"IF($C$472=\"\",\"\",V472/$C$472)","v":""},null,{"$f":"IF($C$472=\"\",\"\",X472/$C$472)","v":""},null,{"$f":"IF($C$472=\"\",\"\",Z472/$C$472)","v":""},null,{"$f":"IF($C$472=\"\",\"\",AB472/$C$472)","v":""},null,{"$f":"IF($C$472=\"\",\"\",AD472/$C$472)","v":""},null,{"$f":"IF($C$472=\"\",\"\",AF472/$C$472)","v":""},null,{"$f":"IF($C$472=\"\",\"\",AH472/$C$472)","v":""},null,{"$f":"IF($C$472=\"\",\"\",AJ472/$C$472)","v":""},null,{"$f":"IF($C$472=\"\",\"\",AL472/$C$472)","v":""},null,{"$f":"IF($C$472=\"\",\"\",AN472/$C$472)","v":""},null,{"$f":"IF($C$472=\"\",\"\",AP472/$C$472)","v":""},null,{"$f":"IF($C$472=\"\",\"\",AR472/$C$472)","v":""},null,{"$f":"IF($C$472=\"\",\"\",AT472/$C$472)","v":""},null,{"$f":"IF($C$472=\"\",\"\",AV472/$C$472)","v":""},null,{"$f":"IF($C$472=\"\",\"\",AX472/$C$472)","v":""},null,{"$f":"IF($C$472=\"\",\"\",AZ472/$C$472)","v":""},null,{"$f":"IF($C$472=\"\",\"\",BB472/$C$472)","v":""},null,0]
[null,null,null,null,{"$f":"IF($C$473=\"\",\"\",F473/$C$473)","v":""},null,{"$f":"IF($C$473=\"\",\"\",H473/$C$473)","v":""},null,{"$f":"IF($C$473=\"\",\"\",J473/$C$473)","v":""},null,{"$f":"IF($C$473=\"\",\"\",L473/$C$473)","v":""},null,{"$f":"IF($C$473=\"\",\"\",N473/$C$473)","v":""},null,{"$f":"IF($C$473=\"\",\"\",P473/$C$473)","v":""},null,{"$f":"IF($C$473=\"\",\"\",R473/$C$473)","v":""},null,{"$f":"IF($C$473=\"\",\"\",T473/$C$473)","v":""},null,{"$f":"IF($C$473=\"\",\"\",V473/$C$473)","v":""},null,{"$f":"IF($C$473=\"\",\"\",X473/$C$473)","v":""},null,{"$f":"IF($C$473=\"\",\"\",Z473/$C$473)","v":""},null,{"$f":"IF($C$473=\"\",\"\",AB473/$C$473)","v":""},null,{"$f":"IF($C$473=\"\",\"\",AD473/$C$473)","v":""},null,{"$f":"IF($C$473=\"\",\"\",AF473/$C$473)","v":""},null,{"$f":"IF($C$473=\"\",\"\",AH473/$C$473)","v":""},null,{"$f":"IF($C$473=\"\",\"\",AJ473/$C$473)","v":""},null,{"$f":"IF($C$473=\"\",\"\",AL473/$C$473)","v":""},null,{"$f":"IF($C$473=\"\",\"\",AN473/$C$473)","v":""},null,{"$f":"IF($C$473=\"\",\"\",AP473/$C$473)","v":""},null,{"$f":"IF($C$473=\"\",\"\",AR473/$C$473)","v":""},null,{"$f":"IF($C$473=\"\",\"\",AT473/$C$473)","v":""},null,{"$f":"IF($C$473=\"\",\"\",AV473/$C$473)","v":""},null,{"$f":"IF($C$473=\"\",\"\",AX473/$C$473)","v":""},null,{"$f":"IF($C$473=\"\",\"\",AZ473/$C$473)","v":""},null,{"$f":"IF($C$473=\"\",\"\",BB473/$C$473)","v":""},null,{"$f":"SUM(BB473,AZ473,AX473,AV473,AT473,AR473,AP473,AN473,AL473,AJ473,AH473,AF473,AD473,AB473,Z473,X473,V473,T473,R473,P473,N473,L473,J473,H473,F473)","v":0}]
["TOTAL HOURS",null,null,null,null,{"$f":"SUM(F444:F473)","v":0},null,{"$f":"SUM(H444:H473)","v":0},null,{"$f":"SUM(J444:J473)","v":0},null,{"$f":"SUM(L444:L473)","v":0},null,{"$f":"SUM(N444:N473)","v":0},null,{"$f":"SUM(P444:P473)","v":0},null,{"$f":"SUM(R444:R473)","v":0},null,{"$f":"SUM(T444:T473)","v":0},null,{"$f":"SUM(V444:V473)","v":0},null,{"$f":"SUM(X444:X473)","v":0},null,{"$f":"SUM(Z444:Z473)","v":0},null,{"$f":"SUM(AB444:AB473)","v":0},null,{"$f":"SUM(AD444:AD473)","v":0},null,{"$f":"SUM(AF444:AF473)","v":0},null,{"$f":"SUM(AH444:AH473)","v":0},null,{"$f":"SUM(AJ444:AJ473)","v":0},null,{"$f":"SUM(AL444:AL473)","v":0},null,{"$f":"SUM(AN444:AN473)","v":0},null,{"$f":"SUM(AP444:AP473)","v":0},null,{"$f":"SUM(AR444:AR473)","v":0},null,{"$f":"SUM(AT444:AT473)","v":0},null,{"$f":"SUM(AV444:AV473)","v":0},null,{"$f":"SUM(AX444:AX473)","v":0},null,{"$f":"SUM(AZ444:AZ473)","v":0},null,{"$f":"SUM(BB444:BB473)","v":0},{"$f":"SUM(E474:BB474)","v":0}]
["TOTAL WORKDAYS",null,null,null,null,{"$f":"F474/8","v":0},null,{"$f":"H474/8","v":0},null,{"$f":"J474/8","v":0},null,{"$f":"L474/8","v":0},null,{"$f":"N474/8","v":0},null,{"$f":"P474/8","v":0},null,{"$f":"R474/8","v":0},null,{"$f":"T474/8","v":0},null,{"$f":"V474/8","v":0},null,{"$f":"X474/8","v":0},null,{"$f":"Z474/8","v":0},null,{"$f":"AB474/8","v":0},null,{"$f":"AD474/8","v":0},null,0,null,{"$f":"AH474/8","v":0},null,0,null,{"$f":"AL474/8","v":0},null,0,null,{"$f":"AP474/8","v":0},null,0,null,{"$f":"AT474/8","v":0},null,{"$f":"AV474/8","v":0},null,{"$f":"AX474/8","v":0},null,{"$f":"AZ474/8","v":0},null,{"$f":"BB474/8","v":0},{"$f":"SUM(E475:BB475)","v":0}]
["TOTAL RAW LABOR",null,null,null,null,{"$f":"$E$13*F474","v":0},null,{"$f":"$G$13*H474","v":0},null,{"$f":"$I$13*J474","v":0},null,{"$f":"$K$13*L474","v":0},null,{"$f":"$M$13*N474","v":0},null,{"$f":"$O$13*P474","v":0},null,{"$f":"$Q$13*R474","v":0},null,{"$f":"$S$13*T474","v":0},null,{"$f":"$U$13*V474","v":0},null,{"$f":"$W$13*X474","v":0},null,{"$f":"$Y$13*Z474","v":0},null,{"$f":"$AA$13*AB474","v":0},null,{"$f":"$AC$13*AD474","v":0},null,{"$f":"$AC$13*AF474","v":0},null,{"$f":"$AC$13*AH474","v":0},null,{"$f":"$AC$13*AJ474","v":0},null,{"$f":"$AC$13*AL474","v":0},null,{"$f":"$AC$13*AN474","v":0},null,{"$f":"$AC$13*AP474","v":0},null,{"$f":"$AC$13*AR474","v":0},null,{"$f":"$AC$13*AT474","v":0},null,{"$f":"$AC$13*AV474","v":0},null,{"$f":"$AC$13*AX474","v":0},null,{"$f":"$AC$13*AZ474","v":0},null,{"$f":"$AC$13*BB474","v":0},{"$f":"SUM(E476:BB476)","v":0}]
["Task 18.0     ","REPLACE FIELD WITH CATEGORY NAME OF YOUR CHOOSING HERE",null,null,null,null,null,null,null,null,null,null,null,null,null,null,null,null,null,null,null,null,null,null,null,null,null,null,null,null,null,null,null,null,null,null,null,null,null,null,null,null,null,null,null,null,null,null,null,null,null,null,null,null,{"$f":"IF(B477=\"REPLACE FIELD WITH CATEGORY NAME OF YOUR CHOOSING HERE\",0,\"\")","v":0}]
[null,null,null,null,{"$f":"IF($C$478=\"\",\"\",F478/$C$478)","v":""},null,{"$f":"IF($C$478=\"\",\"\",H478/$C$478)","v":""},null,{"$f":"IF($C$478=\"\",\"\",J478/$C$478)","v":""},null,{"$f":"IF($C$478=\"\",\"\",L478/$C$478)","v":""},null,{"$f":"IF($C$478=\"\",\"\",N478/$C$478)","v":""},null,{"$f":"IF($C$478=\"\",\"\",P478/$C$478)","v":""},null,{"$f":"IF($C$478=\"\",\"\",R478/$C$478)","v":""},null,{"$f":"IF($C$478=\"\",\"\",T478/$C$478)","v":""},null,{"$f":"IF($C$478=\"\",\"\",V478/$C$478)","v":""},null,{"$f":"IF($C$478=\"\",\"\",X478/$C$478)","v":""},null,{"$f":"IF($C$478=\"\",\"\",Z478/$C$478)","v":""},null,{"$f":"IF($C$478=\"\",\"\",AB478/$C$478)","v":""},null,{"$f":"IF($C$478=\"\",\"\",AD478/$C$478)","v":""},null,{"$f":"IF($C$478=\"\",\"\",AF478/$C$478)","v":""},null,{"$f":"IF($C$478=\"\",\"\",AH478/$C$478)","v":""},null,{"$f":"IF($C$478=\"\",\"\",AJ478/$C$478)","v":""},null,{"$f":"IF($C$478=\"\",\"\",AL478/$C$478)","v":""},null,{"$f":"IF($C$478=\"\",\"\",AN478/$C$478)","v":""},null,{"$f":"IF($C$478=\"\",\"\",AP478/$C$478)","v":""},null,{"$f":"IF($C$478=\"\",\"\",AR478/$C$478)","v":""},null,{"$f":"IF($C$478=\"\",\"\",AT478/$C$478)","v":""},null,{"$f":"IF($C$478=\"\",\"\",AV478/$C$478)","v":""},null,{"$f":"IF($C$478=\"\",\"\",AX478/$C$478)","v":""},null,{"$f":"IF($C$478=\"\",\"\",AZ478/$C$478)","v":""},null,{"$f":"IF($C$478=\"\",\"\",BB478/$C$478)","v":""},null,{"$f":"SUM(BB478,AZ478,AX478,AV478,AT478,AR478,AP478,AN478,AL478,AJ478,AH478,AF478,AD478,AB478,Z478,X478,V478,T478,R478,P478,N478,L478,J478,H478,F478)","v":0}]
[null,null,null,null,{"$f":"IF($C$479=\"\",\"\",F479/$C$479)","v":""},null,{"$f":"IF($C$479=\"\",\"\",H479/$C$479)","v":""},null,{"$f":"IF($C$479=\"\",\"\",J479/$C$479)","v":""},null,{"$f":"IF($C$479=\"\",\"\",L479/$C$479)","v":""},null,{"$f":"IF($C$479=\"\",\"\",N479/$C$479)","v":""},null,{"$f":"IF($C$479=\"\",\"\",P479/$C$479)","v":""},null,{"$f":"IF($C$479=\"\",\"\",R479/$C$479)","v":""},null,{"$f":"IF($C$479=\"\",\"\",T479/$C$479)","v":""},null,{"$f":"IF($C$479=\"\",\"\",V479/$C$479)","v":""},null,{"$f":"IF($C$479=\"\",\"\",X479/$C$479)","v":""},null,{"$f":"IF($C$479=\"\",\"\",Z479/$C$479)","v":""},null,{"$f":"IF($C$479=\"\",\"\",AB479/$C$479)","v":""},null,{"$f":"IF($C$479=\"\",\"\",AD479/$C$479)","v":""},null,{"$f":"IF($C$479=\"\",\"\",AF479/$C$479)","v":""},null,{"$f":"IF($C$479=\"\",\"\",AH479/$C$479)","v":""},null,{"$f":"IF($C$479=\"\",\"\",AJ479/$C$479)","v":""},null,{"$f":"IF($C$479=\"\",\"\",AL479/$C$479)","v":""},null,{"$f":"IF($C$479=\"\",\"\",AN479/$C$479)","v":""},null,{"$f":"IF($C$479=\"\",\"\",AP479/$C$479)","v":""},null,{"$f":"IF($C$479=\"\",\"\",AR479/$C$479)","v":""},null,{"$f":"IF($C$479=\"\",\"\",AT479/$C$479)","v":""},null,{"$f":"IF($C$479=\"\",\"\",AV479/$C$479)","v":""},null,{"$f":"IF($C$479=\"\",\"\",AX479/$C$479)","v":""},null,{"$f":"IF($C$479=\"\",\"\",AZ479/$C$479)","v":""},null,{"$f":"IF($C$479=\"\",\"\",BB479/$C$479)","v":""},null,0]
[null,null,null,null,{"$f":"IF($C$480=\"\",\"\",F480/$C$480)","v":""},null,{"$f":"IF($C$480=\"\",\"\",H480/$C$480)","v":""},null,{"$f":"IF($C$480=\"\",\"\",J480/$C$480)","v":""},null,{"$f":"IF($C$480=\"\",\"\",L480/$C$480)","v":""},null,{"$f":"IF($C$480=\"\",\"\",N480/$C$480)","v":""},null,{"$f":"IF($C$480=\"\",\"\",P480/$C$480)","v":""},null,{"$f":"IF($C$480=\"\",\"\",R480/$C$480)","v":""},null,{"$f":"IF($C$480=\"\",\"\",T480/$C$480)","v":""},null,{"$f":"IF($C$480=\"\",\"\",V480/$C$480)","v":""},null,{"$f":"IF($C$480=\"\",\"\",X480/$C$480)","v":""},null,{"$f":"IF($C$480=\"\",\"\",Z480/$C$480)","v":""},null,{"$f":"IF($C$480=\"\",\"\",AB480/$C$480)","v":""},null,{"$f":"IF($C$480=\"\",\"\",AD480/$C$480)","v":""},null,{"$f":"IF($C$480=\"\",\"\",AF480/$C$480)","v":""},null,{"$f":"IF($C$480=\"\",\"\",AH480/$C$480)","v":""},null,{"$f":"IF($C$480=\"\",\"\",AJ480/$C$480)","v":""},null,{"$f":"IF($C$480=\"\",\"\",AL480/$C$480)","v":""},null,{"$f":"IF($C$480=\"\",\"\",AN480/$C$480)","v":""},null,{"$f":"IF($C$480=\"\",\"\",AP480/$C$480)","v":""},null,{"$f":"IF($C$480=\"\",\"\",AR480/$C$480)","v":""},null,{"$f":"IF($C$480=\"\",\"\",AT480/$C$480)","v":""},null,{"$f":"IF($C$480=\"\",\"\",AV480/$C$480)","v":""},null,{"$f":"IF($C$480=\"\",\"\",AX480/$C$480)","v":""},null,{"$f":"IF($C$480=\"\",\"\",AZ480/$C$480)","v":""},null,{"$f":"IF($C$480=\"\",\"\",BB480/$C$480)","v":""},null,0]
[null,null,null,null,{"$f":"IF($C$481=\"\",\"\",F481/$C$481)","v":""},null,{"$f":"IF($C$481=\"\",\"\",H481/$C$481)","v":""},null,{"$f":"IF($C$481=\"\",\"\",J481/$C$481)","v":""},null,{"$f":"IF($C$481=\"\",\"\",L481/$C$481)","v":""},null,{"$f":"IF($C$481=\"\",\"\",N481/$C$481)","v":""},null,{"$f":"IF($C$481=\"\",\"\",P481/$C$481)","v":""},null,{"$f":"IF($C$481=\"\",\"\",R481/$C$481)","v":""},null,{"$f":"IF($C$481=\"\",\"\",T481/$C$481)","v":""},null,{"$f":"IF($C$481=\"\",\"\",V481/$C$481)","v":""},null,{"$f":"IF($C$481=\"\",\"\",X481/$C$481)","v":""},null,{"$f":"IF($C$481=\"\",\"\",Z481/$C$481)","v":""},null,{"$f":"IF($C$481=\"\",\"\",AB481/$C$481)","v":""},null,{"$f":"IF($C$481=\"\",\"\",AD481/$C$481)","v":""},null,{"$f":"IF($C$481=\"\",\"\",AF481/$C$481)","v":""},null,{"$f":"IF($C$481=\"\",\"\",AH481/$C$481)","v":""},null,{"$f":"IF($C$481=\"\",\"\",AJ481/$C$481)","v":""},null,{"$f":"IF($C$481=\"\",\"\",AL481/$C$481)","v":""},null,{"$f":"IF($C$481=\"\",\"\",AN481/$C$481)","v":""},null,{"$f":"IF($C$481=\"\",\"\",AP481/$C$481)","v":""},null,{"$f":"IF($C$481=\"\",\"\",AR481/$C$481)","v":""},null,{"$f":"IF($C$481=\"\",\"\",AT481/$C$481)","v":""},null,{"$f":"IF($C$481=\"\",\"\",AV481/$C$481)","v":""},null,{"$f":"IF($C$481=\"\",\"\",AX481/$C$481)","v":""},null,{"$f":"IF($C$481=\"\",\"\",AZ481/$C$481)","v":""},null,{"$f":"IF($C$481=\"\",\"\",BB481/$C$481)","v":""},null,0]
[null,null,null,null,{"$f":"IF($C$482=\"\",\"\",F482/$C$482)","v":""},null,{"$f":"IF($C$482=\"\",\"\",H482/$C$482)","v":""},null,{"$f":"IF($C$482=\"\",\"\",J482/$C$482)","v":""},null,{"$f":"IF($C$482=\"\",\"\",L482/$C$482)","v":""},null,{"$f":"IF($C$482=\"\",\"\",N482/$C$482)","v":""},null,{"$f":"IF($C$482=\"\",\"\",P482/$C$482)","v":""},null,{"$f":"IF($C$482=\"\",\"\",R482/$C$482)","v":""},null,{"$f":"IF($C$482=\"\",\"\",T482/$C$482)","v":""},null,{"$f":"IF($C$482=\"\",\"\",V482/$C$482)","v":""},null,{"$f":"IF($C$482=\"\",\"\",X482/$C$482)","v":""},null,{"$f":"IF($C$482=\"\",\"\",Z482/$C$482)","v":""},null,{"$f":"IF($C$482=\"\",\"\",AB482/$C$482)","v":""},null,{"$f":"IF($C$482=\"\",\"\",AD482/$C$482)","v":""},null,{"$f":"IF($C$482=\"\",\"\",AF482/$C$482)","v":""},null,{"$f":"IF($C$482=\"\",\"\",AH482/$C$482)","v":""},null,{"$f":"IF($C$482=\"\",\"\",AJ482/$C$482)","v":""},null,{"$f":"IF($C$482=\"\",\"\",AL482/$C$482)","v":""},null,{"$f":"IF($C$482=\"\",\"\",AN482/$C$482)","v":""},null,{"$f":"IF($C$482=\"\",\"\",AP482/$C$482)","v":""},null,{"$f":"IF($C$482=\"\",\"\",AR482/$C$482)","v":""},null,{"$f":"IF($C$482=\"\",\"\",AT482/$C$482)","v":""},null,{"$f":"IF($C$482=\"\",\"\",AV482/$C$482)","v":""},null,{"$f":"IF($C$482=\"\",\"\",AX482/$C$482)","v":""},null,{"$f":"IF($C$482=\"\",\"\",AZ482/$C$482)","v":""},null,{"$f":"IF($C$482=\"\",\"\",BB482/$C$482)","v":""},null,0]
[null,null,null,null,{"$f":"IF($C$483=\"\",\"\",F483/$C$483)","v":""},null,{"$f":"IF($C$483=\"\",\"\",H483/$C$483)","v":""},null,{"$f":"IF($C$483=\"\",\"\",J483/$C$483)","v":""},null,{"$f":"IF($C$483=\"\",\"\",L483/$C$483)","v":""},null,{"$f":"IF($C$483=\"\",\"\",N483/$C$483)","v":""},null,{"$f":"IF($C$483=\"\",\"\",P483/$C$483)","v":""},null,{"$f":"IF($C$483=\"\",\"\",R483/$C$483)","v":""},null,{"$f":"IF($C$483=\"\",\"\",T483/$C$483)","v":""},null,{"$f":"IF($C$483=\"\",\"\",V483/$C$483)","v":""},null,{"$f":"IF($C$483=\"\",\"\",X483/$C$483)","v":""},null,{"$f":"IF($C$483=\"\",\"\",Z483/$C$483)","v":""},null,{"$f":"IF($C$483=\"\",\"\",AB483/$C$483)","v":""},null,{"$f":"IF($C$483=\"\",\"\",AD483/$C$483)","v":""},null,{"$f":"IF($C$483=\"\",\"\",AF483/$C$483)","v":""},null,{"$f":"IF($C$483=\"\",\"\",AH483/$C$483)","v":""},null,{"$f":"IF($C$483=\"\",\"\",AJ483/$C$483)","v":""},null,{"$f":"IF($C$483=\"\",\"\",AL483/$C$483)","v":""},null,{"$f":"IF($C$483=\"\",\"\",AN483/$C$483)","v":""},null,{"$f":"IF($C$483=\"\",\"\",AP483/$C$483)","v":""},null,{"$f":"IF($C$483=\"\",\"\",AR483/$C$483)","v":""},null,{"$f":"IF($C$483=\"\",\"\",AT483/$C$483)","v":""},null,{"$f":"IF($C$483=\"\",\"\",AV483/$C$483)","v":""},null,{"$f":"IF($C$483=\"\",\"\",AX483/$C$483)","v":""},null,{"$f":"IF($C$483=\"\",\"\",AZ483/$C$483)","v":""},null,{"$f":"IF($C$483=\"\",\"\",BB483/$C$483)","v":""},null,0]
[null,null,null,null,{"$f":"IF($C$484=\"\",\"\",F484/$C$484)","v":""},null,{"$f":"IF($C$484=\"\",\"\",H484/$C$484)","v":""},null,{"$f":"IF($C$484=\"\",\"\",J484/$C$484)","v":""},null,{"$f":"IF($C$484=\"\",\"\",L484/$C$484)","v":""},null,{"$f":"IF($C$484=\"\",\"\",N484/$C$484)","v":""},null,{"$f":"IF($C$484=\"\",\"\",P484/$C$484)","v":""},null,{"$f":"IF($C$484=\"\",\"\",R484/$C$484)","v":""},null,{"$f":"IF($C$484=\"\",\"\",T484/$C$484)","v":""},null,{"$f":"IF($C$484=\"\",\"\",V484/$C$484)","v":""},null,{"$f":"IF($C$484=\"\",\"\",X484/$C$484)","v":""},null,{"$f":"IF($C$484=\"\",\"\",Z484/$C$484)","v":""},null,{"$f":"IF($C$484=\"\",\"\",AB484/$C$484)","v":""},null,{"$f":"IF($C$484=\"\",\"\",AD484/$C$484)","v":""},null,{"$f":"IF($C$484=\"\",\"\",AF484/$C$484)","v":""},null,{"$f":"IF($C$484=\"\",\"\",AH484/$C$484)","v":""},null,{"$f":"IF($C$484=\"\",\"\",AJ484/$C$484)","v":""},null,{"$f":"IF($C$484=\"\",\"\",AL484/$C$484)","v":""},null,{"$f":"IF($C$484=\"\",\"\",AN484/$C$484)","v":""},null,{"$f":"IF($C$484=\"\",\"\",AP484/$C$484)","v":""},null,{"$f":"IF($C$484=\"\",\"\",AR484/$C$484)","v":""},null,{"$f":"IF($C$484=\"\",\"\",AT484/$C$484)","v":""},null,{"$f":"IF($C$484=\"\",\"\",AV484/$C$484)","v":""},null,{"$f":"IF($C$484=\"\",\"\",AX484/$C$484)","v":""},null,{"$f":"IF($C$484=\"\",\"\",AZ484/$C$484)","v":""},null,{"$f":"IF($C$484=\"\",\"\",BB484/$C$484)","v":""},null,0]
[null,null,null,null,{"$f":"IF($C$485=\"\",\"\",F485/$C$485)","v":""},null,{"$f":"IF($C$485=\"\",\"\",H485/$C$485)","v":""},null,{"$f":"IF($C$485=\"\",\"\",J485/$C$485)","v":""},null,{"$f":"IF($C$485=\"\",\"\",L485/$C$485)","v":""},null,{"$f":"IF($C$485=\"\",\"\",N485/$C$485)","v":""},null,{"$f":"IF($C$485=\"\",\"\",P485/$C$485)","v":""},null,{"$f":"IF($C$485=\"\",\"\",R485/$C$485)","v":""},null,{"$f":"IF($C$485=\"\",\"\",T485/$C$485)","v":""},null,{"$f":"IF($C$485=\"\",\"\",V485/$C$485)","v":""},null,{"$f":"IF($C$485=\"\",\"\",X485/$C$485)","v":""},null,{"$f":"IF($C$485=\"\",\"\",Z485/$C$485)","v":""},null,{"$f":"IF($C$485=\"\",\"\",AB485/$C$485)","v":""},null,{"$f":"IF($C$485=\"\",\"\",AD485/$C$485)","v":""},null,{"$f":"IF($C$485=\"\",\"\",AF485/$C$485)","v":""},null,{"$f":"IF($C$485=\"\",\"\",AH485/$C$485)","v":""},null,{"$f":"IF($C$485=\"\",\"\",AJ485/$C$485)","v":""},null,{"$f":"IF($C$485=\"\",\"\",AL485/$C$485)","v":""},null,{"$f":"IF($C$485=\"\",\"\",AN485/$C$485)","v":""},null,{"$f":"IF($C$485=\"\",\"\",AP485/$C$485)","v":""},null,{"$f":"IF($C$485=\"\",\"\",AR485/$C$485)","v":""},null,{"$f":"IF($C$485=\"\",\"\",AT485/$C$485)","v":""},null,{"$f":"IF($C$485=\"\",\"\",AV485/$C$485)","v":""},null,{"$f":"IF($C$485=\"\",\"\",AX485/$C$485)","v":""},null,{"$f":"IF($C$485=\"\",\"\",AZ485/$C$485)","v":""},null,{"$f":"IF($C$485=\"\",\"\",BB485/$C$485)","v":""},null,0]
[null,null,null,null,{"$f":"IF($C$486=\"\",\"\",F486/$C$486)","v":""},null,{"$f":"IF($C$486=\"\",\"\",H486/$C$486)","v":""},null,{"$f":"IF($C$486=\"\",\"\",J486/$C$486)","v":""},null,{"$f":"IF($C$486=\"\",\"\",L486/$C$486)","v":""},null,{"$f":"IF($C$486=\"\",\"\",N486/$C$486)","v":""},null,{"$f":"IF($C$486=\"\",\"\",P486/$C$486)","v":""},null,{"$f":"IF($C$486=\"\",\"\",R486/$C$486)","v":""},null,{"$f":"IF($C$486=\"\",\"\",T486/$C$486)","v":""},null,{"$f":"IF($C$486=\"\",\"\",V486/$C$486)","v":""},null,{"$f":"IF($C$486=\"\",\"\",X486/$C$486)","v":""},null,{"$f":"IF($C$486=\"\",\"\",Z486/$C$486)","v":""},null,{"$f":"IF($C$486=\"\",\"\",AB486/$C$486)","v":""},null,{"$f":"IF($C$486=\"\",\"\",AD486/$C$486)","v":""},null,{"$f":"IF($C$486=\"\",\"\",AF486/$C$486)","v":""},null,{"$f":"IF($C$486=\"\",\"\",AH486/$C$486)","v":""},null,{"$f":"IF($C$486=\"\",\"\",AJ486/$C$486)","v":""},null,{"$f":"IF($C$486=\"\",\"\",AL486/$C$486)","v":""},null,{"$f":"IF($C$486=\"\",\"\",AN486/$C$486)","v":""},null,{"$f":"IF($C$486=\"\",\"\",AP486/$C$486)","v":""},null,{"$f":"IF($C$486=\"\",\"\",AR486/$C$486)","v":""},null,{"$f":"IF($C$486=\"\",\"\",AT486/$C$486)","v":""},null,{"$f":"IF($C$486=\"\",\"\",AV486/$C$486)","v":""},null,{"$f":"IF($C$486=\"\",\"\",AX486/$C$486)","v":""},null,{"$f":"IF($C$486=\"\",\"\",AZ486/$C$486)","v":""},null,{"$f":"IF($C$486=\"\",\"\",BB486/$C$486)","v":""},null,0]
[null,null,null,null,{"$f":"IF($C$487=\"\",\"\",F487/$C$487)","v":""},null,{"$f":"IF($C$487=\"\",\"\",H487/$C$487)","v":""},null,{"$f":"IF($C$487=\"\",\"\",J487/$C$487)","v":""},null,{"$f":"IF($C$487=\"\",\"\",L487/$C$487)","v":""},null,{"$f":"IF($C$487=\"\",\"\",N487/$C$487)","v":""},null,{"$f":"IF($C$487=\"\",\"\",P487/$C$487)","v":""},null,{"$f":"IF($C$487=\"\",\"\",R487/$C$487)","v":""},null,{"$f":"IF($C$487=\"\",\"\",T487/$C$487)","v":""},null,{"$f":"IF($C$487=\"\",\"\",V487/$C$487)","v":""},null,{"$f":"IF($C$487=\"\",\"\",X487/$C$487)","v":""},null,{"$f":"IF($C$487=\"\",\"\",Z487/$C$487)","v":""},null,{"$f":"IF($C$487=\"\",\"\",AB487/$C$487)","v":""},null,{"$f":"IF($C$487=\"\",\"\",AD487/$C$487)","v":""},null,{"$f":"IF($C$487=\"\",\"\",AF487/$C$487)","v":""},null,{"$f":"IF($C$487=\"\",\"\",AH487/$C$487)","v":""},null,{"$f":"IF($C$487=\"\",\"\",AJ487/$C$487)","v":""},null,{"$f":"IF($C$487=\"\",\"\",AL487/$C$487)","v":""},null,{"$f":"IF($C$487=\"\",\"\",AN487/$C$487)","v":""},null,{"$f":"IF($C$487=\"\",\"\",AP487/$C$487)","v":""},null,{"$f":"IF($C$487=\"\",\"\",AR487/$C$487)","v":""},null,{"$f":"IF($C$487=\"\",\"\",AT487/$C$487)","v":""},null,{"$f":"IF($C$487=\"\",\"\",AV487/$C$487)","v":""},null,{"$f":"IF($C$487=\"\",\"\",AX487/$C$487)","v":""},null,{"$f":"IF($C$487=\"\",\"\",AZ487/$C$487)","v":""},null,{"$f":"IF($C$487=\"\",\"\",BB487/$C$487)","v":""},null,0]
[null,null,null,null,{"$f":"IF($C$488=\"\",\"\",F488/$C$488)","v":""},null,{"$f":"IF($C$488=\"\",\"\",H488/$C$488)","v":""},null,{"$f":"IF($C$488=\"\",\"\",J488/$C$488)","v":""},null,{"$f":"IF($C$488=\"\",\"\",L488/$C$488)","v":""},null,{"$f":"IF($C$488=\"\",\"\",N488/$C$488)","v":""},null,{"$f":"IF($C$488=\"\",\"\",P488/$C$488)","v":""},null,{"$f":"IF($C$488=\"\",\"\",R488/$C$488)","v":""},null,{"$f":"IF($C$488=\"\",\"\",T488/$C$488)","v":""},null,{"$f":"IF($C$488=\"\",\"\",V488/$C$488)","v":""},null,{"$f":"IF($C$488=\"\",\"\",X488/$C$488)","v":""},null,{"$f":"IF($C$488=\"\",\"\",Z488/$C$488)","v":""},null,{"$f":"IF($C$488=\"\",\"\",AB488/$C$488)","v":""},null,{"$f":"IF($C$488=\"\",\"\",AD488/$C$488)","v":""},null,{"$f":"IF($C$488=\"\",\"\",AF488/$C$488)","v":""},null,{"$f":"IF($C$488=\"\",\"\",AH488/$C$488)","v":""},null,{"$f":"IF($C$488=\"\",\"\",AJ488/$C$488)","v":""},null,{"$f":"IF($C$488=\"\",\"\",AL488/$C$488)","v":""},null,{"$f":"IF($C$488=\"\",\"\",AN488/$C$488)","v":""},null,{"$f":"IF($C$488=\"\",\"\",AP488/$C$488)","v":""},null,{"$f":"IF($C$488=\"\",\"\",AR488/$C$488)","v":""},null,{"$f":"IF($C$488=\"\",\"\",AT488/$C$488)","v":""},null,{"$f":"IF($C$488=\"\",\"\",AV488/$C$488)","v":""},null,{"$f":"IF($C$488=\"\",\"\",AX488/$C$488)","v":""},null,{"$f":"IF($C$488=\"\",\"\",AZ488/$C$488)","v":""},null,{"$f":"IF($C$488=\"\",\"\",BB488/$C$488)","v":""},null,0]
[null,null,null,null,{"$f":"IF($C$489=\"\",\"\",F489/$C$489)","v":""},null,{"$f":"IF($C$489=\"\",\"\",H489/$C$489)","v":""},null,{"$f":"IF($C$489=\"\",\"\",J489/$C$489)","v":""},null,{"$f":"IF($C$489=\"\",\"\",L489/$C$489)","v":""},null,{"$f":"IF($C$489=\"\",\"\",N489/$C$489)","v":""},null,{"$f":"IF($C$489=\"\",\"\",P489/$C$489)","v":""},null,{"$f":"IF($C$489=\"\",\"\",R489/$C$489)","v":""},null,{"$f":"IF($C$489=\"\",\"\",T489/$C$489)","v":""},null,{"$f":"IF($C$489=\"\",\"\",V489/$C$489)","v":""},null,{"$f":"IF($C$489=\"\",\"\",X489/$C$489)","v":""},null,{"$f":"IF($C$489=\"\",\"\",Z489/$C$489)","v":""},null,{"$f":"IF($C$489=\"\",\"\",AB489/$C$489)","v":""},null,{"$f":"IF($C$489=\"\",\"\",AD489/$C$489)","v":""},null,{"$f":"IF($C$489=\"\",\"\",AF489/$C$489)","v":""},null,{"$f":"IF($C$489=\"\",\"\",AH489/$C$489)","v":""},null,{"$f":"IF($C$489=\"\",\"\",AJ489/$C$489)","v":""},null,{"$f":"IF($C$489=\"\",\"\",AL489/$C$489)","v":""},null,{"$f":"IF($C$489=\"\",\"\",AN489/$C$489)","v":""},null,{"$f":"IF($C$489=\"\",\"\",AP489/$C$489)","v":""},null,{"$f":"IF($C$489=\"\",\"\",AR489/$C$489)","v":""},null,{"$f":"IF($C$489=\"\",\"\",AT489/$C$489)","v":""},null,{"$f":"IF($C$489=\"\",\"\",AV489/$C$489)","v":""},null,{"$f":"IF($C$489=\"\",\"\",AX489/$C$489)","v":""},null,{"$f":"IF($C$489=\"\",\"\",AZ489/$C$489)","v":""},null,{"$f":"IF($C$489=\"\",\"\",BB489/$C$489)","v":""},null,0]
[null,null,null,null,{"$f":"IF($C$490=\"\",\"\",F490/$C$490)","v":""},null,{"$f":"IF($C$490=\"\",\"\",H490/$C$490)","v":""},null,{"$f":"IF($C$490=\"\",\"\",J490/$C$490)","v":""},null,{"$f":"IF($C$490=\"\",\"\",L490/$C$490)","v":""},null,{"$f":"IF($C$490=\"\",\"\",N490/$C$490)","v":""},null,{"$f":"IF($C$490=\"\",\"\",P490/$C$490)","v":""},null,{"$f":"IF($C$490=\"\",\"\",R490/$C$490)","v":""},null,{"$f":"IF($C$490=\"\",\"\",T490/$C$490)","v":""},null,{"$f":"IF($C$490=\"\",\"\",V490/$C$490)","v":""},null,{"$f":"IF($C$490=\"\",\"\",X490/$C$490)","v":""},null,{"$f":"IF($C$490=\"\",\"\",Z490/$C$490)","v":""},null,{"$f":"IF($C$490=\"\",\"\",AB490/$C$490)","v":""},null,{"$f":"IF($C$490=\"\",\"\",AD490/$C$490)","v":""},null,{"$f":"IF($C$490=\"\",\"\",AF490/$C$490)","v":""},null,{"$f":"IF($C$490=\"\",\"\",AH490/$C$490)","v":""},null,{"$f":"IF($C$490=\"\",\"\",AJ490/$C$490)","v":""},null,{"$f":"IF($C$490=\"\",\"\",AL490/$C$490)","v":""},null,{"$f":"IF($C$490=\"\",\"\",AN490/$C$490)","v":""},null,{"$f":"IF($C$490=\"\",\"\",AP490/$C$490)","v":""},null,{"$f":"IF($C$490=\"\",\"\",AR490/$C$490)","v":""},null,{"$f":"IF($C$490=\"\",\"\",AT490/$C$490)","v":""},null,{"$f":"IF($C$490=\"\",\"\",AV490/$C$490)","v":""},null,{"$f":"IF($C$490=\"\",\"\",AX490/$C$490)","v":""},null,{"$f":"IF($C$490=\"\",\"\",AZ490/$C$490)","v":""},null,{"$f":"IF($C$490=\"\",\"\",BB490/$C$490)","v":""},null,0]
[null,null,null,null,{"$f":"IF($C$491=\"\",\"\",F491/$C$491)","v":""},null,{"$f":"IF($C$491=\"\",\"\",H491/$C$491)","v":""},null,{"$f":"IF($C$491=\"\",\"\",J491/$C$491)","v":""},null,{"$f":"IF($C$491=\"\",\"\",L491/$C$491)","v":""},null,{"$f":"IF($C$491=\"\",\"\",N491/$C$491)","v":""},null,{"$f":"IF($C$491=\"\",\"\",P491/$C$491)","v":""},null,{"$f":"IF($C$491=\"\",\"\",R491/$C$491)","v":""},null,{"$f":"IF($C$491=\"\",\"\",T491/$C$491)","v":""},null,{"$f":"IF($C$491=\"\",\"\",V491/$C$491)","v":""},null,{"$f":"IF($C$491=\"\",\"\",X491/$C$491)","v":""},null,{"$f":"IF($C$491=\"\",\"\",Z491/$C$491)","v":""},null,{"$f":"IF($C$491=\"\",\"\",AB491/$C$491)","v":""},null,{"$f":"IF($C$491=\"\",\"\",AD491/$C$491)","v":""},null,{"$f":"IF($C$491=\"\",\"\",AF491/$C$491)","v":""},null,{"$f":"IF($C$491=\"\",\"\",AH491/$C$491)","v":""},null,{"$f":"IF($C$491=\"\",\"\",AJ491/$C$491)","v":""},null,{"$f":"IF($C$491=\"\",\"\",AL491/$C$491)","v":""},null,{"$f":"IF($C$491=\"\",\"\",AN491/$C$491)","v":""},null,{"$f":"IF($C$491=\"\",\"\",AP491/$C$491)","v":""},null,{"$f":"IF($C$491=\"\",\"\",AR491/$C$491)","v":""},null,{"$f":"IF($C$491=\"\",\"\",AT491/$C$491)","v":""},null,{"$f":"IF($C$491=\"\",\"\",AV491/$C$491)","v":""},null,{"$f":"IF($C$491=\"\",\"\",AX491/$C$491)","v":""},null,{"$f":"IF($C$491=\"\",\"\",AZ491/$C$491)","v":""},null,{"$f":"IF($C$491=\"\",\"\",BB491/$C$491)","v":""},null,0]
[null,null,null,null,{"$f":"IF($C$492=\"\",\"\",F492/$C$492)","v":""},null,{"$f":"IF($C$492=\"\",\"\",H492/$C$492)","v":""},null,{"$f":"IF($C$492=\"\",\"\",J492/$C$492)","v":""},null,{"$f":"IF($C$492=\"\",\"\",L492/$C$492)","v":""},null,{"$f":"IF($C$492=\"\",\"\",N492/$C$492)","v":""},null,{"$f":"IF($C$492=\"\",\"\",P492/$C$492)","v":""},null,{"$f":"IF($C$492=\"\",\"\",R492/$C$492)","v":""},null,{"$f":"IF($C$492=\"\",\"\",T492/$C$492)","v":""},null,{"$f":"IF($C$492=\"\",\"\",V492/$C$492)","v":""},null,{"$f":"IF($C$492=\"\",\"\",X492/$C$492)","v":""},null,{"$f":"IF($C$492=\"\",\"\",Z492/$C$492)","v":""},null,{"$f":"IF($C$492=\"\",\"\",AB492/$C$492)","v":""},null,{"$f":"IF($C$492=\"\",\"\",AD492/$C$492)","v":""},null,{"$f":"IF($C$492=\"\",\"\",AF492/$C$492)","v":""},null,{"$f":"IF($C$492=\"\",\"\",AH492/$C$492)","v":""},null,{"$f":"IF($C$492=\"\",\"\",AJ492/$C$492)","v":""},null,{"$f":"IF($C$492=\"\",\"\",AL492/$C$492)","v":""},null,{"$f":"IF($C$492=\"\",\"\",AN492/$C$492)","v":""},null,{"$f":"IF($C$492=\"\",\"\",AP492/$C$492)","v":""},null,{"$f":"IF($C$492=\"\",\"\",AR492/$C$492)","v":""},null,{"$f":"IF($C$492=\"\",\"\",AT492/$C$492)","v":""},null,{"$f":"IF($C$492=\"\",\"\",AV492/$C$492)","v":""},null,{"$f":"IF($C$492=\"\",\"\",AX492/$C$492)","v":""},null,{"$f":"IF($C$492=\"\",\"\",AZ492/$C$492)","v":""},null,{"$f":"IF($C$492=\"\",\"\",BB492/$C$492)","v":""},null,0]
[null,null,null,null,{"$f":"IF($C$493=\"\",\"\",F493/$C$493)","v":""},null,{"$f":"IF($C$493=\"\",\"\",H493/$C$493)","v":""},null,{"$f":"IF($C$493=\"\",\"\",J493/$C$493)","v":""},null,{"$f":"IF($C$493=\"\",\"\",L493/$C$493)","v":""},null,{"$f":"IF($C$493=\"\",\"\",N493/$C$493)","v":""},null,{"$f":"IF($C$493=\"\",\"\",P493/$C$493)","v":""},null,{"$f":"IF($C$493=\"\",\"\",R493/$C$493)","v":""},null,{"$f":"IF($C$493=\"\",\"\",T493/$C$493)","v":""},null,{"$f":"IF($C$493=\"\",\"\",V493/$C$493)","v":""},null,{"$f":"IF($C$493=\"\",\"\",X493/$C$493)","v":""},null,{"$f":"IF($C$493=\"\",\"\",Z493/$C$493)","v":""},null,{"$f":"IF($C$493=\"\",\"\",AB493/$C$493)","v":""},null,{"$f":"IF($C$493=\"\",\"\",AD493/$C$493)","v":""},null,{"$f":"IF($C$493=\"\",\"\",AF493/$C$493)","v":""},null,{"$f":"IF($C$493=\"\",\"\",AH493/$C$493)","v":""},null,{"$f":"IF($C$493=\"\",\"\",AJ493/$C$493)","v":""},null,{"$f":"IF($C$493=\"\",\"\",AL493/$C$493)","v":""},null,{"$f":"IF($C$493=\"\",\"\",AN493/$C$493)","v":""},null,{"$f":"IF($C$493=\"\",\"\",AP493/$C$493)","v":""},null,{"$f":"IF($C$493=\"\",\"\",AR493/$C$493)","v":""},null,{"$f":"IF($C$493=\"\",\"\",AT493/$C$493)","v":""},null,{"$f":"IF($C$493=\"\",\"\",AV493/$C$493)","v":""},null,{"$f":"IF($C$493=\"\",\"\",AX493/$C$493)","v":""},null,{"$f":"IF($C$493=\"\",\"\",AZ493/$C$493)","v":""},null,{"$f":"IF($C$493=\"\",\"\",BB493/$C$493)","v":""},null,0]
[null,null,null,null,{"$f":"IF($C$494=\"\",\"\",F494/$C$494)","v":""},null,{"$f":"IF($C$494=\"\",\"\",H494/$C$494)","v":""},null,{"$f":"IF($C$494=\"\",\"\",J494/$C$494)","v":""},null,{"$f":"IF($C$494=\"\",\"\",L494/$C$494)","v":""},null,{"$f":"IF($C$494=\"\",\"\",N494/$C$494)","v":""},null,{"$f":"IF($C$494=\"\",\"\",P494/$C$494)","v":""},null,{"$f":"IF($C$494=\"\",\"\",R494/$C$494)","v":""},null,{"$f":"IF($C$494=\"\",\"\",T494/$C$494)","v":""},null,{"$f":"IF($C$494=\"\",\"\",V494/$C$494)","v":""},null,{"$f":"IF($C$494=\"\",\"\",X494/$C$494)","v":""},null,{"$f":"IF($C$494=\"\",\"\",Z494/$C$494)","v":""},null,{"$f":"IF($C$494=\"\",\"\",AB494/$C$494)","v":""},null,{"$f":"IF($C$494=\"\",\"\",AD494/$C$494)","v":""},null,{"$f":"IF($C$494=\"\",\"\",AF494/$C$494)","v":""},null,{"$f":"IF($C$494=\"\",\"\",AH494/$C$494)","v":""},null,{"$f":"IF($C$494=\"\",\"\",AJ494/$C$494)","v":""},null,{"$f":"IF($C$494=\"\",\"\",AL494/$C$494)","v":""},null,{"$f":"IF($C$494=\"\",\"\",AN494/$C$494)","v":""},null,{"$f":"IF($C$494=\"\",\"\",AP494/$C$494)","v":""},null,{"$f":"IF($C$494=\"\",\"\",AR494/$C$494)","v":""},null,{"$f":"IF($C$494=\"\",\"\",AT494/$C$494)","v":""},null,{"$f":"IF($C$494=\"\",\"\",AV494/$C$494)","v":""},null,{"$f":"IF($C$494=\"\",\"\",AX494/$C$494)","v":""},null,{"$f":"IF($C$494=\"\",\"\",AZ494/$C$494)","v":""},null,{"$f":"IF($C$494=\"\",\"\",BB494/$C$494)","v":""},null,0]
[null,null,null,null,{"$f":"IF($C$495=\"\",\"\",F495/$C$495)","v":""},null,{"$f":"IF($C$495=\"\",\"\",H495/$C$495)","v":""},null,{"$f":"IF($C$495=\"\",\"\",J495/$C$495)","v":""},null,{"$f":"IF($C$495=\"\",\"\",L495/$C$495)","v":""},null,{"$f":"IF($C$495=\"\",\"\",N495/$C$495)","v":""},null,{"$f":"IF($C$495=\"\",\"\",P495/$C$495)","v":""},null,{"$f":"IF($C$495=\"\",\"\",R495/$C$495)","v":""},null,{"$f":"IF($C$495=\"\",\"\",T495/$C$495)","v":""},null,{"$f":"IF($C$495=\"\",\"\",V495/$C$495)","v":""},null,{"$f":"IF($C$495=\"\",\"\",X495/$C$495)","v":""},null,{"$f":"IF($C$495=\"\",\"\",Z495/$C$495)","v":""},null,{"$f":"IF($C$495=\"\",\"\",AB495/$C$495)","v":""},null,{"$f":"IF($C$495=\"\",\"\",AD495/$C$495)","v":""},null,{"$f":"IF($C$495=\"\",\"\",AF495/$C$495)","v":""},null,{"$f":"IF($C$495=\"\",\"\",AH495/$C$495)","v":""},null,{"$f":"IF($C$495=\"\",\"\",AJ495/$C$495)","v":""},null,{"$f":"IF($C$495=\"\",\"\",AL495/$C$495)","v":""},null,{"$f":"IF($C$495=\"\",\"\",AN495/$C$495)","v":""},null,{"$f":"IF($C$495=\"\",\"\",AP495/$C$495)","v":""},null,{"$f":"IF($C$495=\"\",\"\",AR495/$C$495)","v":""},null,{"$f":"IF($C$495=\"\",\"\",AT495/$C$495)","v":""},null,{"$f":"IF($C$495=\"\",\"\",AV495/$C$495)","v":""},null,{"$f":"IF($C$495=\"\",\"\",AX495/$C$495)","v":""},null,{"$f":"IF($C$495=\"\",\"\",AZ495/$C$495)","v":""},null,{"$f":"IF($C$495=\"\",\"\",BB495/$C$495)","v":""},null,0]
[null,null,null,null,{"$f":"IF($C$496=\"\",\"\",F496/$C$496)","v":""},null,{"$f":"IF($C$496=\"\",\"\",H496/$C$496)","v":""},null,{"$f":"IF($C$496=\"\",\"\",J496/$C$496)","v":""},null,{"$f":"IF($C$496=\"\",\"\",L496/$C$496)","v":""},null,{"$f":"IF($C$496=\"\",\"\",N496/$C$496)","v":""},null,{"$f":"IF($C$496=\"\",\"\",P496/$C$496)","v":""},null,{"$f":"IF($C$496=\"\",\"\",R496/$C$496)","v":""},null,{"$f":"IF($C$496=\"\",\"\",T496/$C$496)","v":""},null,{"$f":"IF($C$496=\"\",\"\",V496/$C$496)","v":""},null,{"$f":"IF($C$496=\"\",\"\",X496/$C$496)","v":""},null,{"$f":"IF($C$496=\"\",\"\",Z496/$C$496)","v":""},null,{"$f":"IF($C$496=\"\",\"\",AB496/$C$496)","v":""},null,{"$f":"IF($C$496=\"\",\"\",AD496/$C$496)","v":""},null,{"$f":"IF($C$496=\"\",\"\",AF496/$C$496)","v":""},null,{"$f":"IF($C$496=\"\",\"\",AH496/$C$496)","v":""},null,{"$f":"IF($C$496=\"\",\"\",AJ496/$C$496)","v":""},null,{"$f":"IF($C$496=\"\",\"\",AL496/$C$496)","v":""},null,{"$f":"IF($C$496=\"\",\"\",AN496/$C$496)","v":""},null,{"$f":"IF($C$496=\"\",\"\",AP496/$C$496)","v":""},null,{"$f":"IF($C$496=\"\",\"\",AR496/$C$496)","v":""},null,{"$f":"IF($C$496=\"\",\"\",AT496/$C$496)","v":""},null,{"$f":"IF($C$496=\"\",\"\",AV496/$C$496)","v":""},null,{"$f":"IF($C$496=\"\",\"\",AX496/$C$496)","v":""},null,{"$f":"IF($C$496=\"\",\"\",AZ496/$C$496)","v":""},null,{"$f":"IF($C$496=\"\",\"\",BB496/$C$496)","v":""},null,0]
[null,null,null,null,{"$f":"IF($C$497=\"\",\"\",F497/$C$497)","v":""},null,{"$f":"IF($C$497=\"\",\"\",H497/$C$497)","v":""},null,{"$f":"IF($C$497=\"\",\"\",J497/$C$497)","v":""},null,{"$f":"IF($C$497=\"\",\"\",L497/$C$497)","v":""},null,{"$f":"IF($C$497=\"\",\"\",N497/$C$497)","v":""},null,{"$f":"IF($C$497=\"\",\"\",P497/$C$497)","v":""},null,{"$f":"IF($C$497=\"\",\"\",R497/$C$497)","v":""},null,{"$f":"IF($C$497=\"\",\"\",T497/$C$497)","v":""},null,{"$f":"IF($C$497=\"\",\"\",V497/$C$497)","v":""},null,{"$f":"IF($C$497=\"\",\"\",X497/$C$497)","v":""},null,{"$f":"IF($C$497=\"\",\"\",Z497/$C$497)","v":""},null,{"$f":"IF($C$497=\"\",\"\",AB497/$C$497)","v":""},null,{"$f":"IF($C$497=\"\",\"\",AD497/$C$497)","v":""},null,{"$f":"IF($C$497=\"\",\"\",AF497/$C$497)","v":""},null,{"$f":"IF($C$497=\"\",\"\",AH497/$C$497)","v":""},null,{"$f":"IF($C$497=\"\",\"\",AJ497/$C$497)","v":""},null,{"$f":"IF($C$497=\"\",\"\",AL497/$C$497)","v":""},null,{"$f":"IF($C$497=\"\",\"\",AN497/$C$497)","v":""},null,{"$f":"IF($C$497=\"\",\"\",AP497/$C$497)","v":""},null,{"$f":"IF($C$497=\"\",\"\",AR497/$C$497)","v":""},null,{"$f":"IF($C$497=\"\",\"\",AT497/$C$497)","v":""},null,{"$f":"IF($C$497=\"\",\"\",AV497/$C$497)","v":""},null,{"$f":"IF($C$497=\"\",\"\",AX497/$C$497)","v":""},null,{"$f":"IF($C$497=\"\",\"\",AZ497/$C$497)","v":""},null,{"$f":"IF($C$497=\"\",\"\",BB497/$C$497)","v":""},null,0]
[null,null,null,null,{"$f":"IF($C$498=\"\",\"\",F498/$C$498)","v":""},null,{"$f":"IF($C$498=\"\",\"\",H498/$C$498)","v":""},null,{"$f":"IF($C$498=\"\",\"\",J498/$C$498)","v":""},null,{"$f":"IF($C$498=\"\",\"\",L498/$C$498)","v":""},null,{"$f":"IF($C$498=\"\",\"\",N498/$C$498)","v":""},null,{"$f":"IF($C$498=\"\",\"\",P498/$C$498)","v":""},null,{"$f":"IF($C$498=\"\",\"\",R498/$C$498)","v":""},null,{"$f":"IF($C$498=\"\",\"\",T498/$C$498)","v":""},null,{"$f":"IF($C$498=\"\",\"\",V498/$C$498)","v":""},null,{"$f":"IF($C$498=\"\",\"\",X498/$C$498)","v":""},null,{"$f":"IF($C$498=\"\",\"\",Z498/$C$498)","v":""},null,{"$f":"IF($C$498=\"\",\"\",AB498/$C$498)","v":""},null,{"$f":"IF($C$498=\"\",\"\",AD498/$C$498)","v":""},null,{"$f":"IF($C$498=\"\",\"\",AF498/$C$498)","v":""},null,{"$f":"IF($C$498=\"\",\"\",AH498/$C$498)","v":""},null,{"$f":"IF($C$498=\"\",\"\",AJ498/$C$498)","v":""},null,{"$f":"IF($C$498=\"\",\"\",AL498/$C$498)","v":""},null,{"$f":"IF($C$498=\"\",\"\",AN498/$C$498)","v":""},null,{"$f":"IF($C$498=\"\",\"\",AP498/$C$498)","v":""},null,{"$f":"IF($C$498=\"\",\"\",AR498/$C$498)","v":""},null,{"$f":"IF($C$498=\"\",\"\",AT498/$C$498)","v":""},null,{"$f":"IF($C$498=\"\",\"\",AV498/$C$498)","v":""},null,{"$f":"IF($C$498=\"\",\"\",AX498/$C$498)","v":""},null,{"$f":"IF($C$498=\"\",\"\",AZ498/$C$498)","v":""},null,{"$f":"IF($C$498=\"\",\"\",BB498/$C$498)","v":""},null,0]
[null,null,null,null,{"$f":"IF($C$499=\"\",\"\",F499/$C$499)","v":""},null,{"$f":"IF($C$499=\"\",\"\",H499/$C$499)","v":""},null,{"$f":"IF($C$499=\"\",\"\",J499/$C$499)","v":""},null,{"$f":"IF($C$499=\"\",\"\",L499/$C$499)","v":""},null,{"$f":"IF($C$499=\"\",\"\",N499/$C$499)","v":""},null,{"$f":"IF($C$499=\"\",\"\",P499/$C$499)","v":""},null,{"$f":"IF($C$499=\"\",\"\",R499/$C$499)","v":""},null,{"$f":"IF($C$499=\"\",\"\",T499/$C$499)","v":""},null,{"$f":"IF($C$499=\"\",\"\",V499/$C$499)","v":""},null,{"$f":"IF($C$499=\"\",\"\",X499/$C$499)","v":""},null,{"$f":"IF($C$499=\"\",\"\",Z499/$C$499)","v":""},null,{"$f":"IF($C$499=\"\",\"\",AB499/$C$499)","v":""},null,{"$f":"IF($C$499=\"\",\"\",AD499/$C$499)","v":""},null,{"$f":"IF($C$499=\"\",\"\",AF499/$C$499)","v":""},null,{"$f":"IF($C$499=\"\",\"\",AH499/$C$499)","v":""},null,{"$f":"IF($C$499=\"\",\"\",AJ499/$C$499)","v":""},null,{"$f":"IF($C$499=\"\",\"\",AL499/$C$499)","v":""},null,{"$f":"IF($C$499=\"\",\"\",AN499/$C$499)","v":""},null,{"$f":"IF($C$499=\"\",\"\",AP499/$C$499)","v":""},null,{"$f":"IF($C$499=\"\",\"\",AR499/$C$499)","v":""},null,{"$f":"IF($C$499=\"\",\"\",AT499/$C$499)","v":""},null,{"$f":"IF($C$499=\"\",\"\",AV499/$C$499)","v":""},null,{"$f":"IF($C$499=\"\",\"\",AX499/$C$499)","v":""},null,{"$f":"IF($C$499=\"\",\"\",AZ499/$C$499)","v":""},null,{"$f":"IF($C$499=\"\",\"\",BB499/$C$499)","v":""},null,0]
[null,null,null,null,{"$f":"IF($C$500=\"\",\"\",F500/$C$500)","v":""},null,{"$f":"IF($C$500=\"\",\"\",H500/$C$500)","v":""},null,{"$f":"IF($C$500=\"\",\"\",J500/$C$500)","v":""},null,{"$f":"IF($C$500=\"\",\"\",L500/$C$500)","v":""},null,{"$f":"IF($C$500=\"\",\"\",N500/$C$500)","v":""},null,{"$f":"IF($C$500=\"\",\"\",P500/$C$500)","v":""},null,{"$f":"IF($C$500=\"\",\"\",R500/$C$500)","v":""},null,{"$f":"IF($C$500=\"\",\"\",T500/$C$500)","v":""},null,{"$f":"IF($C$500=\"\",\"\",V500/$C$500)","v":""},null,{"$f":"IF($C$500=\"\",\"\",X500/$C$500)","v":""},null,{"$f":"IF($C$500=\"\",\"\",Z500/$C$500)","v":""},null,{"$f":"IF($C$500=\"\",\"\",AB500/$C$500)","v":""},null,{"$f":"IF($C$500=\"\",\"\",AD500/$C$500)","v":""},null,{"$f":"IF($C$500=\"\",\"\",AF500/$C$500)","v":""},null,{"$f":"IF($C$500=\"\",\"\",AH500/$C$500)","v":""},null,{"$f":"IF($C$500=\"\",\"\",AJ500/$C$500)","v":""},null,{"$f":"IF($C$500=\"\",\"\",AL500/$C$500)","v":""},null,{"$f":"IF($C$500=\"\",\"\",AN500/$C$500)","v":""},null,{"$f":"IF($C$500=\"\",\"\",AP500/$C$500)","v":""},null,{"$f":"IF($C$500=\"\",\"\",AR500/$C$500)","v":""},null,{"$f":"IF($C$500=\"\",\"\",AT500/$C$500)","v":""},null,{"$f":"IF($C$500=\"\",\"\",AV500/$C$500)","v":""},null,{"$f":"IF($C$500=\"\",\"\",AX500/$C$500)","v":""},null,{"$f":"IF($C$500=\"\",\"\",AZ500/$C$500)","v":""},null,{"$f":"IF($C$500=\"\",\"\",BB500/$C$500)","v":""},null,0]
[null,null,null,null,{"$f":"IF($C$501=\"\",\"\",F501/$C$501)","v":""},null,{"$f":"IF($C$501=\"\",\"\",H501/$C$501)","v":""},null,{"$f":"IF($C$501=\"\",\"\",J501/$C$501)","v":""},null,{"$f":"IF($C$501=\"\",\"\",L501/$C$501)","v":""},null,{"$f":"IF($C$501=\"\",\"\",N501/$C$501)","v":""},null,{"$f":"IF($C$501=\"\",\"\",P501/$C$501)","v":""},null,{"$f":"IF($C$501=\"\",\"\",R501/$C$501)","v":""},null,{"$f":"IF($C$501=\"\",\"\",T501/$C$501)","v":""},null,{"$f":"IF($C$501=\"\",\"\",V501/$C$501)","v":""},null,{"$f":"IF($C$501=\"\",\"\",X501/$C$501)","v":""},null,{"$f":"IF($C$501=\"\",\"\",Z501/$C$501)","v":""},null,{"$f":"IF($C$501=\"\",\"\",AB501/$C$501)","v":""},null,{"$f":"IF($C$501=\"\",\"\",AD501/$C$501)","v":""},null,{"$f":"IF($C$501=\"\",\"\",AF501/$C$501)","v":""},null,{"$f":"IF($C$501=\"\",\"\",AH501/$C$501)","v":""},null,{"$f":"IF($C$501=\"\",\"\",AJ501/$C$501)","v":""},null,{"$f":"IF($C$501=\"\",\"\",AL501/$C$501)","v":""},null,{"$f":"IF($C$501=\"\",\"\",AN501/$C$501)","v":""},null,{"$f":"IF($C$501=\"\",\"\",AP501/$C$501)","v":""},null,{"$f":"IF($C$501=\"\",\"\",AR501/$C$501)","v":""},null,{"$f":"IF($C$501=\"\",\"\",AT501/$C$501)","v":""},null,{"$f":"IF($C$501=\"\",\"\",AV501/$C$501)","v":""},null,{"$f":"IF($C$501=\"\",\"\",AX501/$C$501)","v":""},null,{"$f":"IF($C$501=\"\",\"\",AZ501/$C$501)","v":""},null,{"$f":"IF($C$501=\"\",\"\",BB501/$C$501)","v":""},null,0]
[null,null,null,null,{"$f":"IF($C$502=\"\",\"\",F502/$C$502)","v":""},null,{"$f":"IF($C$502=\"\",\"\",H502/$C$502)","v":""},null,{"$f":"IF($C$502=\"\",\"\",J502/$C$502)","v":""},null,{"$f":"IF($C$502=\"\",\"\",L502/$C$502)","v":""},null,{"$f":"IF($C$502=\"\",\"\",N502/$C$502)","v":""},null,{"$f":"IF($C$502=\"\",\"\",P502/$C$502)","v":""},null,{"$f":"IF($C$502=\"\",\"\",R502/$C$502)","v":""},null,{"$f":"IF($C$502=\"\",\"\",T502/$C$502)","v":""},null,{"$f":"IF($C$502=\"\",\"\",V502/$C$502)","v":""},null,{"$f":"IF($C$502=\"\",\"\",X502/$C$502)","v":""},null,{"$f":"IF($C$502=\"\",\"\",Z502/$C$502)","v":""},null,{"$f":"IF($C$502=\"\",\"\",AB502/$C$502)","v":""},null,{"$f":"IF($C$502=\"\",\"\",AD502/$C$502)","v":""},null,{"$f":"IF($C$502=\"\",\"\",AF502/$C$502)","v":""},null,{"$f":"IF($C$502=\"\",\"\",AH502/$C$502)","v":""},null,{"$f":"IF($C$502=\"\",\"\",AJ502/$C$502)","v":""},null,{"$f":"IF($C$502=\"\",\"\",AL502/$C$502)","v":""},null,{"$f":"IF($C$502=\"\",\"\",AN502/$C$502)","v":""},null,{"$f":"IF($C$502=\"\",\"\",AP502/$C$502)","v":""},null,{"$f":"IF($C$502=\"\",\"\",AR502/$C$502)","v":""},null,{"$f":"IF($C$502=\"\",\"\",AT502/$C$502)","v":""},null,{"$f":"IF($C$502=\"\",\"\",AV502/$C$502)","v":""},null,{"$f":"IF($C$502=\"\",\"\",AX502/$C$502)","v":""},null,{"$f":"IF($C$502=\"\",\"\",AZ502/$C$502)","v":""},null,{"$f":"IF($C$502=\"\",\"\",BB502/$C$502)","v":""},null,0]
[null,null,null,null,{"$f":"IF($C$503=\"\",\"\",F503/$C$503)","v":""},null,{"$f":"IF($C$503=\"\",\"\",H503/$C$503)","v":""},null,{"$f":"IF($C$503=\"\",\"\",J503/$C$503)","v":""},null,{"$f":"IF($C$503=\"\",\"\",L503/$C$503)","v":""},null,{"$f":"IF($C$503=\"\",\"\",N503/$C$503)","v":""},null,{"$f":"IF($C$503=\"\",\"\",P503/$C$503)","v":""},null,{"$f":"IF($C$503=\"\",\"\",R503/$C$503)","v":""},null,{"$f":"IF($C$503=\"\",\"\",T503/$C$503)","v":""},null,{"$f":"IF($C$503=\"\",\"\",V503/$C$503)","v":""},null,{"$f":"IF($C$503=\"\",\"\",X503/$C$503)","v":""},null,{"$f":"IF($C$503=\"\",\"\",Z503/$C$503)","v":""},null,{"$f":"IF($C$503=\"\",\"\",AB503/$C$503)","v":""},null,{"$f":"IF($C$503=\"\",\"\",AD503/$C$503)","v":""},null,{"$f":"IF($C$503=\"\",\"\",AF503/$C$503)","v":""},null,{"$f":"IF($C$503=\"\",\"\",AH503/$C$503)","v":""},null,{"$f":"IF($C$503=\"\",\"\",AJ503/$C$503)","v":""},null,{"$f":"IF($C$503=\"\",\"\",AL503/$C$503)","v":""},null,{"$f":"IF($C$503=\"\",\"\",AN503/$C$503)","v":""},null,{"$f":"IF($C$503=\"\",\"\",AP503/$C$503)","v":""},null,{"$f":"IF($C$503=\"\",\"\",AR503/$C$503)","v":""},null,{"$f":"IF($C$503=\"\",\"\",AT503/$C$503)","v":""},null,{"$f":"IF($C$503=\"\",\"\",AV503/$C$503)","v":""},null,{"$f":"IF($C$503=\"\",\"\",AX503/$C$503)","v":""},null,{"$f":"IF($C$503=\"\",\"\",AZ503/$C$503)","v":""},null,{"$f":"IF($C$503=\"\",\"\",BB503/$C$503)","v":""},null,0]
[null,null,null,null,{"$f":"IF($C$504=\"\",\"\",F504/$C$504)","v":""},null,{"$f":"IF($C$504=\"\",\"\",H504/$C$504)","v":""},null,{"$f":"IF($C$504=\"\",\"\",J504/$C$504)","v":""},null,{"$f":"IF($C$504=\"\",\"\",L504/$C$504)","v":""},null,{"$f":"IF($C$504=\"\",\"\",N504/$C$504)","v":""},null,{"$f":"IF($C$504=\"\",\"\",P504/$C$504)","v":""},null,{"$f":"IF($C$504=\"\",\"\",R504/$C$504)","v":""},null,{"$f":"IF($C$504=\"\",\"\",T504/$C$504)","v":""},null,{"$f":"IF($C$504=\"\",\"\",V504/$C$504)","v":""},null,{"$f":"IF($C$504=\"\",\"\",X504/$C$504)","v":""},null,{"$f":"IF($C$504=\"\",\"\",Z504/$C$504)","v":""},null,{"$f":"IF($C$504=\"\",\"\",AB504/$C$504)","v":""},null,{"$f":"IF($C$504=\"\",\"\",AD504/$C$504)","v":""},null,{"$f":"IF($C$504=\"\",\"\",AF504/$C$504)","v":""},null,{"$f":"IF($C$504=\"\",\"\",AH504/$C$504)","v":""},null,{"$f":"IF($C$504=\"\",\"\",AJ504/$C$504)","v":""},null,{"$f":"IF($C$504=\"\",\"\",AL504/$C$504)","v":""},null,{"$f":"IF($C$504=\"\",\"\",AN504/$C$504)","v":""},null,{"$f":"IF($C$504=\"\",\"\",AP504/$C$504)","v":""},null,{"$f":"IF($C$504=\"\",\"\",AR504/$C$504)","v":""},null,{"$f":"IF($C$504=\"\",\"\",AT504/$C$504)","v":""},null,{"$f":"IF($C$504=\"\",\"\",AV504/$C$504)","v":""},null,{"$f":"IF($C$504=\"\",\"\",AX504/$C$504)","v":""},null,{"$f":"IF($C$504=\"\",\"\",AZ504/$C$504)","v":""},null,{"$f":"IF($C$504=\"\",\"\",BB504/$C$504)","v":""},null,0]
[null,null,null,null,{"$f":"IF($C$505=\"\",\"\",F505/$C$505)","v":""},null,{"$f":"IF($C$505=\"\",\"\",H505/$C$505)","v":""},null,{"$f":"IF($C$505=\"\",\"\",J505/$C$505)","v":""},null,{"$f":"IF($C$505=\"\",\"\",L505/$C$505)","v":""},null,{"$f":"IF($C$505=\"\",\"\",N505/$C$505)","v":""},null,{"$f":"IF($C$505=\"\",\"\",P505/$C$505)","v":""},null,{"$f":"IF($C$505=\"\",\"\",R505/$C$505)","v":""},null,{"$f":"IF($C$505=\"\",\"\",T505/$C$505)","v":""},null,{"$f":"IF($C$505=\"\",\"\",V505/$C$505)","v":""},null,{"$f":"IF($C$505=\"\",\"\",X505/$C$505)","v":""},null,{"$f":"IF($C$505=\"\",\"\",Z505/$C$505)","v":""},null,{"$f":"IF($C$505=\"\",\"\",AB505/$C$505)","v":""},null,{"$f":"IF($C$505=\"\",\"\",AD505/$C$505)","v":""},null,{"$f":"IF($C$505=\"\",\"\",AF505/$C$505)","v":""},null,{"$f":"IF($C$505=\"\",\"\",AH505/$C$505)","v":""},null,{"$f":"IF($C$505=\"\",\"\",AJ505/$C$505)","v":""},null,{"$f":"IF($C$505=\"\",\"\",AL505/$C$505)","v":""},null,{"$f":"IF($C$505=\"\",\"\",AN505/$C$505)","v":""},null,{"$f":"IF($C$505=\"\",\"\",AP505/$C$505)","v":""},null,{"$f":"IF($C$505=\"\",\"\",AR505/$C$505)","v":""},null,{"$f":"IF($C$505=\"\",\"\",AT505/$C$505)","v":""},null,{"$f":"IF($C$505=\"\",\"\",AV505/$C$505)","v":""},null,{"$f":"IF($C$505=\"\",\"\",AX505/$C$505)","v":""},null,{"$f":"IF($C$505=\"\",\"\",AZ505/$C$505)","v":""},null,{"$f":"IF($C$505=\"\",\"\",BB505/$C$505)","v":""},null,0]
[null,null,null,null,{"$f":"IF($C$506=\"\",\"\",F506/$C$506)","v":""},null,{"$f":"IF($C$506=\"\",\"\",H506/$C$506)","v":""},null,{"$f":"IF($C$506=\"\",\"\",J506/$C$506)","v":""},null,{"$f":"IF($C$506=\"\",\"\",L506/$C$506)","v":""},null,{"$f":"IF($C$506=\"\",\"\",N506/$C$506)","v":""},null,{"$f":"IF($C$506=\"\",\"\",P506/$C$506)","v":""},null,{"$f":"IF($C$506=\"\",\"\",R506/$C$506)","v":""},null,{"$f":"IF($C$506=\"\",\"\",T506/$C$506)","v":""},null,{"$f":"IF($C$506=\"\",\"\",V506/$C$506)","v":""},null,{"$f":"IF($C$506=\"\",\"\",X506/$C$506)","v":""},null,{"$f":"IF($C$506=\"\",\"\",Z506/$C$506)","v":""},null,{"$f":"IF($C$506=\"\",\"\",AB506/$C$506)","v":""},null,{"$f":"IF($C$506=\"\",\"\",AD506/$C$506)","v":""},null,{"$f":"IF($C$506=\"\",\"\",AF506/$C$506)","v":""},null,{"$f":"IF($C$506=\"\",\"\",AH506/$C$506)","v":""},null,{"$f":"IF($C$506=\"\",\"\",AJ506/$C$506)","v":""},null,{"$f":"IF($C$506=\"\",\"\",AL506/$C$506)","v":""},null,{"$f":"IF($C$506=\"\",\"\",AN506/$C$506)","v":""},null,{"$f":"IF($C$506=\"\",\"\",AP506/$C$506)","v":""},null,{"$f":"IF($C$506=\"\",\"\",AR506/$C$506)","v":""},null,{"$f":"IF($C$506=\"\",\"\",AT506/$C$506)","v":""},null,{"$f":"IF($C$506=\"\",\"\",AV506/$C$506)","v":""},null,{"$f":"IF($C$506=\"\",\"\",AX506/$C$506)","v":""},null,{"$f":"IF($C$506=\"\",\"\",AZ506/$C$506)","v":""},null,{"$f":"IF($C$506=\"\",\"\",BB506/$C$506)","v":""},null,0]
[null,null,null,null,{"$f":"IF($C$507=\"\",\"\",F507/$C$507)","v":""},null,{"$f":"IF($C$507=\"\",\"\",H507/$C$507)","v":""},null,{"$f":"IF($C$507=\"\",\"\",J507/$C$507)","v":""},null,{"$f":"IF($C$507=\"\",\"\",L507/$C$507)","v":""},null,{"$f":"IF($C$507=\"\",\"\",N507/$C$507)","v":""},null,{"$f":"IF($C$507=\"\",\"\",P507/$C$507)","v":""},null,{"$f":"IF($C$507=\"\",\"\",R507/$C$507)","v":""},null,{"$f":"IF($C$507=\"\",\"\",T507/$C$507)","v":""},null,{"$f":"IF($C$507=\"\",\"\",V507/$C$507)","v":""},null,{"$f":"IF($C$507=\"\",\"\",X507/$C$507)","v":""},null,{"$f":"IF($C$507=\"\",\"\",Z507/$C$507)","v":""},null,{"$f":"IF($C$507=\"\",\"\",AB507/$C$507)","v":""},null,{"$f":"IF($C$507=\"\",\"\",AD507/$C$507)","v":""},null,{"$f":"IF($C$507=\"\",\"\",AF507/$C$507)","v":""},null,{"$f":"IF($C$507=\"\",\"\",AH507/$C$507)","v":""},null,{"$f":"IF($C$507=\"\",\"\",AJ507/$C$507)","v":""},null,{"$f":"IF($C$507=\"\",\"\",AL507/$C$507)","v":""},null,{"$f":"IF($C$507=\"\",\"\",AN507/$C$507)","v":""},null,{"$f":"IF($C$507=\"\",\"\",AP507/$C$507)","v":""},null,{"$f":"IF($C$507=\"\",\"\",AR507/$C$507)","v":""},null,{"$f":"IF($C$507=\"\",\"\",AT507/$C$507)","v":""},null,{"$f":"IF($C$507=\"\",\"\",AV507/$C$507)","v":""},null,{"$f":"IF($C$507=\"\",\"\",AX507/$C$507)","v":""},null,{"$f":"IF($C$507=\"\",\"\",AZ507/$C$507)","v":""},null,{"$f":"IF($C$507=\"\",\"\",BB507/$C$507)","v":""},null,{"$f":"SUM(BB507,AZ507,AX507,AV507,AT507,AR507,AP507,AN507,AL507,AJ507,AH507,AF507,AD507,AB507,Z507,X507,V507,T507,R507,P507,N507,L507,J507,H507,F507)","v":0}]
["TOTAL HOURS",null,null,null,null,{"$f":"SUM(F478:F507)","v":0},null,{"$f":"SUM(H478:H507)","v":0},null,{"$f":"SUM(J478:J507)","v":0},null,{"$f":"SUM(L478:L507)","v":0},null,{"$f":"SUM(N478:N507)","v":0},null,{"$f":"SUM(P478:P507)","v":0},null,{"$f":"SUM(R478:R507)","v":0},null,{"$f":"SUM(T478:T507)","v":0},null,{"$f":"SUM(V478:V507)","v":0},null,{"$f":"SUM(X478:X507)","v":0},null,{"$f":"SUM(Z478:Z507)","v":0},null,{"$f":"SUM(AB478:AB507)","v":0},null,{"$f":"SUM(AD478:AD507)","v":0},null,{"$f":"SUM(AF478:AF507)","v":0},null,{"$f":"SUM(AH478:AH507)","v":0},null,{"$f":"SUM(AJ478:AJ507)","v":0},null,{"$f":"SUM(AL478:AL507)","v":0},null,{"$f":"SUM(AN478:AN507)","v":0},null,{"$f":"SUM(AP478:AP507)","v":0},null,{"$f":"SUM(AR478:AR507)","v":0},null,{"$f":"SUM(AT478:AT507)","v":0},null,{"$f":"SUM(AV478:AV507)","v":0},null,{"$f":"SUM(AX478:AX507)","v":0},null,{"$f":"SUM(AZ478:AZ507)","v":0},null,{"$f":"SUM(BB478:BB507)","v":0},{"$f":"SUM(E508:BB508)","v":0}]
["TOTAL WORKDAYS",null,null,null,null,{"$f":"F508/8","v":0},null,{"$f":"H508/8","v":0},null,{"$f":"J508/8","v":0},null,{"$f":"L508/8","v":0},null,{"$f":"N508/8","v":0},null,{"$f":"P508/8","v":0},null,{"$f":"R508/8","v":0},null,{"$f":"T508/8","v":0},null,{"$f":"V508/8","v":0},null,{"$f":"X508/8","v":0},null,{"$f":"Z508/8","v":0},null,{"$f":"AB508/8","v":0},null,{"$f":"AD508/8","v":0},null,0,null,{"$f":"AH508/8","v":0},null,0,null,{"$f":"AL508/8","v":0},null,0,null,{"$f":"AP508/8","v":0},null,0,null,{"$f":"AT508/8","v":0},null,{"$f":"AV508/8","v":0},null,{"$f":"AX508/8","v":0},null,{"$f":"AZ508/8","v":0},null,{"$f":"BB508/8","v":0},{"$f":"SUM(E509:BB509)","v":0}]
["TOTAL RAW LABOR",null,null,null,null,{"$f":"$E$13*F508","v":0},null,{"$f":"$G$13*H508","v":0},null,{"$f":"$I$13*J508","v":0},null,{"$f":"$K$13*L508","v":0},null,{"$f":"$M$13*N508","v":0},null,{"$f":"$O$13*P508","v":0},null,{"$f":"$Q$13*R508","v":0},null,{"$f":"$S$13*T508","v":0},null,{"$f":"$U$13*V508","v":0},null,{"$f":"$W$13*X508","v":0},null,{"$f":"$Y$13*Z508","v":0},null,{"$f":"$AA$13*AB508","v":0},null,{"$f":"$AC$13*AD508","v":0},null,{"$f":"$AC$13*AF508","v":0},null,{"$f":"$AC$13*AH508","v":0},null,{"$f":"$AC$13*AJ508","v":0},null,{"$f":"$AC$13*AL508","v":0},null,{"$f":"$AC$13*AN508","v":0},null,{"$f":"$AC$13*AP508","v":0},null,{"$f":"$AC$13*AR508","v":0},null,{"$f":"$AC$13*AT508","v":0},null,{"$f":"$AC$13*AV508","v":0},null,{"$f":"$AC$13*AX508","v":0},null,{"$f":"$AC$13*AZ508","v":0},null,{"$f":"$AC$13*BB508","v":0},{"$f":"SUM(E510:BB510)","v":0}]
["Task 19.0     ","REPLACE FIELD WITH CATEGORY NAME OF YOUR CHOOSING HERE",null,null,null,null,null,null,null,null,null,null,null,null,null,null,null,null,null,null,null,null,null,null,null,null,null,null,null,null,null,null,null,null,null,null,null,null,null,null,null,null,null,null,null,null,null,null,null,null,null,null,null,null,{"$f":"IF(B511=\"REPLACE FIELD WITH CATEGORY NAME OF YOUR CHOOSING HERE\",0,\"\")","v":0}]
[null,null,null,null,{"$f":"IF($C$512=\"\",\"\",F512/$C$512)","v":""},null,{"$f":"IF($C$512=\"\",\"\",H512/$C$512)","v":""},null,{"$f":"IF($C$512=\"\",\"\",J512/$C$512)","v":""},null,{"$f":"IF($C$512=\"\",\"\",L512/$C$512)","v":""},null,{"$f":"IF($C$512=\"\",\"\",N512/$C$512)","v":""},null,{"$f":"IF($C$512=\"\",\"\",P512/$C$512)","v":""},null,{"$f":"IF($C$512=\"\",\"\",R512/$C$512)","v":""},null,{"$f":"IF($C$512=\"\",\"\",T512/$C$512)","v":""},null,{"$f":"IF($C$512=\"\",\"\",V512/$C$512)","v":""},null,{"$f":"IF($C$512=\"\",\"\",X512/$C$512)","v":""},null,{"$f":"IF($C$512=\"\",\"\",Z512/$C$512)","v":""},null,{"$f":"IF($C$512=\"\",\"\",AB512/$C$512)","v":""},null,{"$f":"IF($C$512=\"\",\"\",AD512/$C$512)","v":""},null,{"$f":"IF($C$512=\"\",\"\",AF512/$C$512)","v":""},null,{"$f":"IF($C$512=\"\",\"\",AH512/$C$512)","v":""},null,{"$f":"IF($C$512=\"\",\"\",AJ512/$C$512)","v":""},null,{"$f":"IF($C$512=\"\",\"\",AL512/$C$512)","v":""},null,{"$f":"IF($C$512=\"\",\"\",AN512/$C$512)","v":""},null,{"$f":"IF($C$512=\"\",\"\",AP512/$C$512)","v":""},null,{"$f":"IF($C$512=\"\",\"\",AR512/$C$512)","v":""},null,{"$f":"IF($C$512=\"\",\"\",AT512/$C$512)","v":""},null,{"$f":"IF($C$512=\"\",\"\",AV512/$C$512)","v":""},null,{"$f":"IF($C$512=\"\",\"\",AX512/$C$512)","v":""},null,{"$f":"IF($C$512=\"\",\"\",AZ512/$C$512)","v":""},null,{"$f":"IF($C$512=\"\",\"\",BB512/$C$512)","v":""},null,{"$f":"SUM(BB512,AZ512,AX512,AV512,AT512,AR512,AP512,AN512,AL512,AJ512,AH512,AF512,AD512,AB512,Z512,X512,V512,T512,R512,P512,N512,L512,J512,H512,F512)","v":0}]
[null,null,null,null,{"$f":"IF($C$513=\"\",\"\",F513/$C$513)","v":""},null,{"$f":"IF($C$513=\"\",\"\",H513/$C$513)","v":""},null,{"$f":"IF($C$513=\"\",\"\",J513/$C$513)","v":""},null,{"$f":"IF($C$513=\"\",\"\",L513/$C$513)","v":""},null,{"$f":"IF($C$513=\"\",\"\",N513/$C$513)","v":""},null,{"$f":"IF($C$513=\"\",\"\",P513/$C$513)","v":""},null,{"$f":"IF($C$513=\"\",\"\",R513/$C$513)","v":""},null,{"$f":"IF($C$513=\"\",\"\",T513/$C$513)","v":""},null,{"$f":"IF($C$513=\"\",\"\",V513/$C$513)","v":""},null,{"$f":"IF($C$513=\"\",\"\",X513/$C$513)","v":""},null,{"$f":"IF($C$513=\"\",\"\",Z513/$C$513)","v":""},null,{"$f":"IF($C$513=\"\",\"\",AB513/$C$513)","v":""},null,{"$f":"IF($C$513=\"\",\"\",AD513/$C$513)","v":""},null,{"$f":"IF($C$513=\"\",\"\",AF513/$C$513)","v":""},null,{"$f":"IF($C$513=\"\",\"\",AH513/$C$513)","v":""},null,{"$f":"IF($C$513=\"\",\"\",AJ513/$C$513)","v":""},null,{"$f":"IF($C$513=\"\",\"\",AL513/$C$513)","v":""},null,{"$f":"IF($C$513=\"\",\"\",AN513/$C$513)","v":""},null,{"$f":"IF($C$513=\"\",\"\",AP513/$C$513)","v":""},null,{"$f":"IF($C$513=\"\",\"\",AR513/$C$513)","v":""},null,{"$f":"IF($C$513=\"\",\"\",AT513/$C$513)","v":""},null,{"$f":"IF($C$513=\"\",\"\",AV513/$C$513)","v":""},null,{"$f":"IF($C$513=\"\",\"\",AX513/$C$513)","v":""},null,{"$f":"IF($C$513=\"\",\"\",AZ513/$C$513)","v":""},null,{"$f":"IF($C$513=\"\",\"\",BB513/$C$513)","v":""},null,0]
[null,null,null,null,{"$f":"IF($C$514=\"\",\"\",F514/$C$514)","v":""},null,{"$f":"IF($C$514=\"\",\"\",H514/$C$514)","v":""},null,{"$f":"IF($C$514=\"\",\"\",J514/$C$514)","v":""},null,{"$f":"IF($C$514=\"\",\"\",L514/$C$514)","v":""},null,{"$f":"IF($C$514=\"\",\"\",N514/$C$514)","v":""},null,{"$f":"IF($C$514=\"\",\"\",P514/$C$514)","v":""},null,{"$f":"IF($C$514=\"\",\"\",R514/$C$514)","v":""},null,{"$f":"IF($C$514=\"\",\"\",T514/$C$514)","v":""},null,{"$f":"IF($C$514=\"\",\"\",V514/$C$514)","v":""},null,{"$f":"IF($C$514=\"\",\"\",X514/$C$514)","v":""},null,{"$f":"IF($C$514=\"\",\"\",Z514/$C$514)","v":""},null,{"$f":"IF($C$514=\"\",\"\",AB514/$C$514)","v":""},null,{"$f":"IF($C$514=\"\",\"\",AD514/$C$514)","v":""},null,{"$f":"IF($C$514=\"\",\"\",AF514/$C$514)","v":""},null,{"$f":"IF($C$514=\"\",\"\",AH514/$C$514)","v":""},null,{"$f":"IF($C$514=\"\",\"\",AJ514/$C$514)","v":""},null,{"$f":"IF($C$514=\"\",\"\",AL514/$C$514)","v":""},null,{"$f":"IF($C$514=\"\",\"\",AN514/$C$514)","v":""},null,{"$f":"IF($C$514=\"\",\"\",AP514/$C$514)","v":""},null,{"$f":"IF($C$514=\"\",\"\",AR514/$C$514)","v":""},null,{"$f":"IF($C$514=\"\",\"\",AT514/$C$514)","v":""},null,{"$f":"IF($C$514=\"\",\"\",AV514/$C$514)","v":""},null,{"$f":"IF($C$514=\"\",\"\",AX514/$C$514)","v":""},null,{"$f":"IF($C$514=\"\",\"\",AZ514/$C$514)","v":""},null,{"$f":"IF($C$514=\"\",\"\",BB514/$C$514)","v":""},null,0]
[null,null,null,null,{"$f":"IF($C$515=\"\",\"\",F515/$C$515)","v":""},null,{"$f":"IF($C$515=\"\",\"\",H515/$C$515)","v":""},null,{"$f":"IF($C$515=\"\",\"\",J515/$C$515)","v":""},null,{"$f":"IF($C$515=\"\",\"\",L515/$C$515)","v":""},null,{"$f":"IF($C$515=\"\",\"\",N515/$C$515)","v":""},null,{"$f":"IF($C$515=\"\",\"\",P515/$C$515)","v":""},null,{"$f":"IF($C$515=\"\",\"\",R515/$C$515)","v":""},null,{"$f":"IF($C$515=\"\",\"\",T515/$C$515)","v":""},null,{"$f":"IF($C$515=\"\",\"\",V515/$C$515)","v":""},null,{"$f":"IF($C$515=\"\",\"\",X515/$C$515)","v":""},null,{"$f":"IF($C$515=\"\",\"\",Z515/$C$515)","v":""},null,{"$f":"IF($C$515=\"\",\"\",AB515/$C$515)","v":""},null,{"$f":"IF($C$515=\"\",\"\",AD515/$C$515)","v":""},null,{"$f":"IF($C$515=\"\",\"\",AF515/$C$515)","v":""},null,{"$f":"IF($C$515=\"\",\"\",AH515/$C$515)","v":""},null,{"$f":"IF($C$515=\"\",\"\",AJ515/$C$515)","v":""},null,{"$f":"IF($C$515=\"\",\"\",AL515/$C$515)","v":""},null,{"$f":"IF($C$515=\"\",\"\",AN515/$C$515)","v":""},null,{"$f":"IF($C$515=\"\",\"\",AP515/$C$515)","v":""},null,{"$f":"IF($C$515=\"\",\"\",AR515/$C$515)","v":""},null,{"$f":"IF($C$515=\"\",\"\",AT515/$C$515)","v":""},null,{"$f":"IF($C$515=\"\",\"\",AV515/$C$515)","v":""},null,{"$f":"IF($C$515=\"\",\"\",AX515/$C$515)","v":""},null,{"$f":"IF($C$515=\"\",\"\",AZ515/$C$515)","v":""},null,{"$f":"IF($C$515=\"\",\"\",BB515/$C$515)","v":""},null,0]
[null,null,null,null,{"$f":"IF($C$516=\"\",\"\",F516/$C$516)","v":""},null,{"$f":"IF($C$516=\"\",\"\",H516/$C$516)","v":""},null,{"$f":"IF($C$516=\"\",\"\",J516/$C$516)","v":""},null,{"$f":"IF($C$516=\"\",\"\",L516/$C$516)","v":""},null,{"$f":"IF($C$516=\"\",\"\",N516/$C$516)","v":""},null,{"$f":"IF($C$516=\"\",\"\",P516/$C$516)","v":""},null,{"$f":"IF($C$516=\"\",\"\",R516/$C$516)","v":""},null,{"$f":"IF($C$516=\"\",\"\",T516/$C$516)","v":""},null,{"$f":"IF($C$516=\"\",\"\",V516/$C$516)","v":""},null,{"$f":"IF($C$516=\"\",\"\",X516/$C$516)","v":""},null,{"$f":"IF($C$516=\"\",\"\",Z516/$C$516)","v":""},null,{"$f":"IF($C$516=\"\",\"\",AB516/$C$516)","v":""},null,{"$f":"IF($C$516=\"\",\"\",AD516/$C$516)","v":""},null,{"$f":"IF($C$516=\"\",\"\",AF516/$C$516)","v":""},null,{"$f":"IF($C$516=\"\",\"\",AH516/$C$516)","v":""},null,{"$f":"IF($C$516=\"\",\"\",AJ516/$C$516)","v":""},null,{"$f":"IF($C$516=\"\",\"\",AL516/$C$516)","v":""},null,{"$f":"IF($C$516=\"\",\"\",AN516/$C$516)","v":""},null,{"$f":"IF($C$516=\"\",\"\",AP516/$C$516)","v":""},null,{"$f":"IF($C$516=\"\",\"\",AR516/$C$516)","v":""},null,{"$f":"IF($C$516=\"\",\"\",AT516/$C$516)","v":""},null,{"$f":"IF($C$516=\"\",\"\",AV516/$C$516)","v":""},null,{"$f":"IF($C$516=\"\",\"\",AX516/$C$516)","v":""},null,{"$f":"IF($C$516=\"\",\"\",AZ516/$C$516)","v":""},null,{"$f":"IF($C$516=\"\",\"\",BB516/$C$516)","v":""},null,0]
[null,null,null,null,{"$f":"IF($C$517=\"\",\"\",F517/$C$517)","v":""},null,{"$f":"IF($C$517=\"\",\"\",H517/$C$517)","v":""},null,{"$f":"IF($C$517=\"\",\"\",J517/$C$517)","v":""},null,{"$f":"IF($C$517=\"\",\"\",L517/$C$517)","v":""},null,{"$f":"IF($C$517=\"\",\"\",N517/$C$517)","v":""},null,{"$f":"IF($C$517=\"\",\"\",P517/$C$517)","v":""},null,{"$f":"IF($C$517=\"\",\"\",R517/$C$517)","v":""},null,{"$f":"IF($C$517=\"\",\"\",T517/$C$517)","v":""},null,{"$f":"IF($C$517=\"\",\"\",V517/$C$517)","v":""},null,{"$f":"IF($C$517=\"\",\"\",X517/$C$517)","v":""},null,{"$f":"IF($C$517=\"\",\"\",Z517/$C$517)","v":""},null,{"$f":"IF($C$517=\"\",\"\",AB517/$C$517)","v":""},null,{"$f":"IF($C$517=\"\",\"\",AD517/$C$517)","v":""},null,{"$f":"IF($C$517=\"\",\"\",AF517/$C$517)","v":""},null,{"$f":"IF($C$517=\"\",\"\",AH517/$C$517)","v":""},null,{"$f":"IF($C$517=\"\",\"\",AJ517/$C$517)","v":""},null,{"$f":"IF($C$517=\"\",\"\",AL517/$C$517)","v":""},null,{"$f":"IF($C$517=\"\",\"\",AN517/$C$517)","v":""},null,{"$f":"IF($C$517=\"\",\"\",AP517/$C$517)","v":""},null,{"$f":"IF($C$517=\"\",\"\",AR517/$C$517)","v":""},null,{"$f":"IF($C$517=\"\",\"\",AT517/$C$517)","v":""},null,{"$f":"IF($C$517=\"\",\"\",AV517/$C$517)","v":""},null,{"$f":"IF($C$517=\"\",\"\",AX517/$C$517)","v":""},null,{"$f":"IF($C$517=\"\",\"\",AZ517/$C$517)","v":""},null,{"$f":"IF($C$517=\"\",\"\",BB517/$C$517)","v":""},null,0]
[null,null,null,null,{"$f":"IF($C$518=\"\",\"\",F518/$C$518)","v":""},null,{"$f":"IF($C$518=\"\",\"\",H518/$C$518)","v":""},null,{"$f":"IF($C$518=\"\",\"\",J518/$C$518)","v":""},null,{"$f":"IF($C$518=\"\",\"\",L518/$C$518)","v":""},null,{"$f":"IF($C$518=\"\",\"\",N518/$C$518)","v":""},null,{"$f":"IF($C$518=\"\",\"\",P518/$C$518)","v":""},null,{"$f":"IF($C$518=\"\",\"\",R518/$C$518)","v":""},null,{"$f":"IF($C$518=\"\",\"\",T518/$C$518)","v":""},null,{"$f":"IF($C$518=\"\",\"\",V518/$C$518)","v":""},null,{"$f":"IF($C$518=\"\",\"\",X518/$C$518)","v":""},null,{"$f":"IF($C$518=\"\",\"\",Z518/$C$518)","v":""},null,{"$f":"IF($C$518=\"\",\"\",AB518/$C$518)","v":""},null,{"$f":"IF($C$518=\"\",\"\",AD518/$C$518)","v":""},null,{"$f":"IF($C$518=\"\",\"\",AF518/$C$518)","v":""},null,{"$f":"IF($C$518=\"\",\"\",AH518/$C$518)","v":""},null,{"$f":"IF($C$518=\"\",\"\",AJ518/$C$518)","v":""},null,{"$f":"IF($C$518=\"\",\"\",AL518/$C$518)","v":""},null,{"$f":"IF($C$518=\"\",\"\",AN518/$C$518)","v":""},null,{"$f":"IF($C$518=\"\",\"\",AP518/$C$518)","v":""},null,{"$f":"IF($C$518=\"\",\"\",AR518/$C$518)","v":""},null,{"$f":"IF($C$518=\"\",\"\",AT518/$C$518)","v":""},null,{"$f":"IF($C$518=\"\",\"\",AV518/$C$518)","v":""},null,{"$f":"IF($C$518=\"\",\"\",AX518/$C$518)","v":""},null,{"$f":"IF($C$518=\"\",\"\",AZ518/$C$518)","v":""},null,{"$f":"IF($C$518=\"\",\"\",BB518/$C$518)","v":""},null,0]
[null,null,null,null,{"$f":"IF($C$519=\"\",\"\",F519/$C$519)","v":""},null,{"$f":"IF($C$519=\"\",\"\",H519/$C$519)","v":""},null,{"$f":"IF($C$519=\"\",\"\",J519/$C$519)","v":""},null,{"$f":"IF($C$519=\"\",\"\",L519/$C$519)","v":""},null,{"$f":"IF($C$519=\"\",\"\",N519/$C$519)","v":""},null,{"$f":"IF($C$519=\"\",\"\",P519/$C$519)","v":""},null,{"$f":"IF($C$519=\"\",\"\",R519/$C$519)","v":""},null,{"$f":"IF($C$519=\"\",\"\",T519/$C$519)","v":""},null,{"$f":"IF($C$519=\"\",\"\",V519/$C$519)","v":""},null,{"$f":"IF($C$519=\"\",\"\",X519/$C$519)","v":""},null,{"$f":"IF($C$519=\"\",\"\",Z519/$C$519)","v":""},null,{"$f":"IF($C$519=\"\",\"\",AB519/$C$519)","v":""},null,{"$f":"IF($C$519=\"\",\"\",AD519/$C$519)","v":""},null,{"$f":"IF($C$519=\"\",\"\",AF519/$C$519)","v":""},null,{"$f":"IF($C$519=\"\",\"\",AH519/$C$519)","v":""},null,{"$f":"IF($C$519=\"\",\"\",AJ519/$C$519)","v":""},null,{"$f":"IF($C$519=\"\",\"\",AL519/$C$519)","v":""},null,{"$f":"IF($C$519=\"\",\"\",AN519/$C$519)","v":""},null,{"$f":"IF($C$519=\"\",\"\",AP519/$C$519)","v":""},null,{"$f":"IF($C$519=\"\",\"\",AR519/$C$519)","v":""},null,{"$f":"IF($C$519=\"\",\"\",AT519/$C$519)","v":""},null,{"$f":"IF($C$519=\"\",\"\",AV519/$C$519)","v":""},null,{"$f":"IF($C$519=\"\",\"\",AX519/$C$519)","v":""},null,{"$f":"IF($C$519=\"\",\"\",AZ519/$C$519)","v":""},null,{"$f":"IF($C$519=\"\",\"\",BB519/$C$519)","v":""},null,0]
[null,null,null,null,{"$f":"IF($C$520=\"\",\"\",F520/$C$520)","v":""},null,{"$f":"IF($C$520=\"\",\"\",H520/$C$520)","v":""},null,{"$f":"IF($C$520=\"\",\"\",J520/$C$520)","v":""},null,{"$f":"IF($C$520=\"\",\"\",L520/$C$520)","v":""},null,{"$f":"IF($C$520=\"\",\"\",N520/$C$520)","v":""},null,{"$f":"IF($C$520=\"\",\"\",P520/$C$520)","v":""},null,{"$f":"IF($C$520=\"\",\"\",R520/$C$520)","v":""},null,{"$f":"IF($C$520=\"\",\"\",T520/$C$520)","v":""},null,{"$f":"IF($C$520=\"\",\"\",V520/$C$520)","v":""},null,{"$f":"IF($C$520=\"\",\"\",X520/$C$520)","v":""},null,{"$f":"IF($C$520=\"\",\"\",Z520/$C$520)","v":""},null,{"$f":"IF($C$520=\"\",\"\",AB520/$C$520)","v":""},null,{"$f":"IF($C$520=\"\",\"\",AD520/$C$520)","v":""},null,{"$f":"IF($C$520=\"\",\"\",AF520/$C$520)","v":""},null,{"$f":"IF($C$520=\"\",\"\",AH520/$C$520)","v":""},null,{"$f":"IF($C$520=\"\",\"\",AJ520/$C$520)","v":""},null,{"$f":"IF($C$520=\"\",\"\",AL520/$C$520)","v":""},null,{"$f":"IF($C$520=\"\",\"\",AN520/$C$520)","v":""},null,{"$f":"IF($C$520=\"\",\"\",AP520/$C$520)","v":""},null,{"$f":"IF($C$520=\"\",\"\",AR520/$C$520)","v":""},null,{"$f":"IF($C$520=\"\",\"\",AT520/$C$520)","v":""},null,{"$f":"IF($C$520=\"\",\"\",AV520/$C$520)","v":""},null,{"$f":"IF($C$520=\"\",\"\",AX520/$C$520)","v":""},null,{"$f":"IF($C$520=\"\",\"\",AZ520/$C$520)","v":""},null,{"$f":"IF($C$520=\"\",\"\",BB520/$C$520)","v":""},null,0]
[null,null,null,null,{"$f":"IF($C$521=\"\",\"\",F521/$C$521)","v":""},null,{"$f":"IF($C$521=\"\",\"\",H521/$C$521)","v":""},null,{"$f":"IF($C$521=\"\",\"\",J521/$C$521)","v":""},null,{"$f":"IF($C$521=\"\",\"\",L521/$C$521)","v":""},null,{"$f":"IF($C$521=\"\",\"\",N521/$C$521)","v":""},null,{"$f":"IF($C$521=\"\",\"\",P521/$C$521)","v":""},null,{"$f":"IF($C$521=\"\",\"\",R521/$C$521)","v":""},null,{"$f":"IF($C$521=\"\",\"\",T521/$C$521)","v":""},null,{"$f":"IF($C$521=\"\",\"\",V521/$C$521)","v":""},null,{"$f":"IF($C$521=\"\",\"\",X521/$C$521)","v":""},null,{"$f":"IF($C$521=\"\",\"\",Z521/$C$521)","v":""},null,{"$f":"IF($C$521=\"\",\"\",AB521/$C$521)","v":""},null,{"$f":"IF($C$521=\"\",\"\",AD521/$C$521)","v":""},null,{"$f":"IF($C$521=\"\",\"\",AF521/$C$521)","v":""},null,{"$f":"IF($C$521=\"\",\"\",AH521/$C$521)","v":""},null,{"$f":"IF($C$521=\"\",\"\",AJ521/$C$521)","v":""},null,{"$f":"IF($C$521=\"\",\"\",AL521/$C$521)","v":""},null,{"$f":"IF($C$521=\"\",\"\",AN521/$C$521)","v":""},null,{"$f":"IF($C$521=\"\",\"\",AP521/$C$521)","v":""},null,{"$f":"IF($C$521=\"\",\"\",AR521/$C$521)","v":""},null,{"$f":"IF($C$521=\"\",\"\",AT521/$C$521)","v":""},null,{"$f":"IF($C$521=\"\",\"\",AV521/$C$521)","v":""},null,{"$f":"IF($C$521=\"\",\"\",AX521/$C$521)","v":""},null,{"$f":"IF($C$521=\"\",\"\",AZ521/$C$521)","v":""},null,{"$f":"IF($C$521=\"\",\"\",BB521/$C$521)","v":""},null,0]
[null,null,null,null,{"$f":"IF($C$522=\"\",\"\",F522/$C$522)","v":""},null,{"$f":"IF($C$522=\"\",\"\",H522/$C$522)","v":""},null,{"$f":"IF($C$522=\"\",\"\",J522/$C$522)","v":""},null,{"$f":"IF($C$522=\"\",\"\",L522/$C$522)","v":""},null,{"$f":"IF($C$522=\"\",\"\",N522/$C$522)","v":""},null,{"$f":"IF($C$522=\"\",\"\",P522/$C$522)","v":""},null,{"$f":"IF($C$522=\"\",\"\",R522/$C$522)","v":""},null,{"$f":"IF($C$522=\"\",\"\",T522/$C$522)","v":""},null,{"$f":"IF($C$522=\"\",\"\",V522/$C$522)","v":""},null,{"$f":"IF($C$522=\"\",\"\",X522/$C$522)","v":""},null,{"$f":"IF($C$522=\"\",\"\",Z522/$C$522)","v":""},null,{"$f":"IF($C$522=\"\",\"\",AB522/$C$522)","v":""},null,{"$f":"IF($C$522=\"\",\"\",AD522/$C$522)","v":""},null,{"$f":"IF($C$522=\"\",\"\",AF522/$C$522)","v":""},null,{"$f":"IF($C$522=\"\",\"\",AH522/$C$522)","v":""},null,{"$f":"IF($C$522=\"\",\"\",AJ522/$C$522)","v":""},null,{"$f":"IF($C$522=\"\",\"\",AL522/$C$522)","v":""},null,{"$f":"IF($C$522=\"\",\"\",AN522/$C$522)","v":""},null,{"$f":"IF($C$522=\"\",\"\",AP522/$C$522)","v":""},null,{"$f":"IF($C$522=\"\",\"\",AR522/$C$522)","v":""},null,{"$f":"IF($C$522=\"\",\"\",AT522/$C$522)","v":""},null,{"$f":"IF($C$522=\"\",\"\",AV522/$C$522)","v":""},null,{"$f":"IF($C$522=\"\",\"\",AX522/$C$522)","v":""},null,{"$f":"IF($C$522=\"\",\"\",AZ522/$C$522)","v":""},null,{"$f":"IF($C$522=\"\",\"\",BB522/$C$522)","v":""},null,0]
[null,null,null,null,{"$f":"IF($C$523=\"\",\"\",F523/$C$523)","v":""},null,{"$f":"IF($C$523=\"\",\"\",H523/$C$523)","v":""},null,{"$f":"IF($C$523=\"\",\"\",J523/$C$523)","v":""},null,{"$f":"IF($C$523=\"\",\"\",L523/$C$523)","v":""},null,{"$f":"IF($C$523=\"\",\"\",N523/$C$523)","v":""},null,{"$f":"IF($C$523=\"\",\"\",P523/$C$523)","v":""},null,{"$f":"IF($C$523=\"\",\"\",R523/$C$523)","v":""},null,{"$f":"IF($C$523=\"\",\"\",T523/$C$523)","v":""},null,{"$f":"IF($C$523=\"\",\"\",V523/$C$523)","v":""},null,{"$f":"IF($C$523=\"\",\"\",X523/$C$523)","v":""},null,{"$f":"IF($C$523=\"\",\"\",Z523/$C$523)","v":""},null,{"$f":"IF($C$523=\"\",\"\",AB523/$C$523)","v":""},null,{"$f":"IF($C$523=\"\",\"\",AD523/$C$523)","v":""},null,{"$f":"IF($C$523=\"\",\"\",AF523/$C$523)","v":""},null,{"$f":"IF($C$523=\"\",\"\",AH523/$C$523)","v":""},null,{"$f":"IF($C$523=\"\",\"\",AJ523/$C$523)","v":""},null,{"$f":"IF($C$523=\"\",\"\",AL523/$C$523)","v":""},null,{"$f":"IF($C$523=\"\",\"\",AN523/$C$523)","v":""},null,{"$f":"IF($C$523=\"\",\"\",AP523/$C$523)","v":""},null,{"$f":"IF($C$523=\"\",\"\",AR523/$C$523)","v":""},null,{"$f":"IF($C$523=\"\",\"\",AT523/$C$523)","v":""},null,{"$f":"IF($C$523=\"\",\"\",AV523/$C$523)","v":""},null,{"$f":"IF($C$523=\"\",\"\",AX523/$C$523)","v":""},null,{"$f":"IF($C$523=\"\",\"\",AZ523/$C$523)","v":""},null,{"$f":"IF($C$523=\"\",\"\",BB523/$C$523)","v":""},null,0]
[null,null,null,null,{"$f":"IF($C$524=\"\",\"\",F524/$C$524)","v":""},null,{"$f":"IF($C$524=\"\",\"\",H524/$C$524)","v":""},null,{"$f":"IF($C$524=\"\",\"\",J524/$C$524)","v":""},null,{"$f":"IF($C$524=\"\",\"\",L524/$C$524)","v":""},null,{"$f":"IF($C$524=\"\",\"\",N524/$C$524)","v":""},null,{"$f":"IF($C$524=\"\",\"\",P524/$C$524)","v":""},null,{"$f":"IF($C$524=\"\",\"\",R524/$C$524)","v":""},null,{"$f":"IF($C$524=\"\",\"\",T524/$C$524)","v":""},null,{"$f":"IF($C$524=\"\",\"\",V524/$C$524)","v":""},null,{"$f":"IF($C$524=\"\",\"\",X524/$C$524)","v":""},null,{"$f":"IF($C$524=\"\",\"\",Z524/$C$524)","v":""},null,{"$f":"IF($C$524=\"\",\"\",AB524/$C$524)","v":""},null,{"$f":"IF($C$524=\"\",\"\",AD524/$C$524)","v":""},null,{"$f":"IF($C$524=\"\",\"\",AF524/$C$524)","v":""},null,{"$f":"IF($C$524=\"\",\"\",AH524/$C$524)","v":""},null,{"$f":"IF($C$524=\"\",\"\",AJ524/$C$524)","v":""},null,{"$f":"IF($C$524=\"\",\"\",AL524/$C$524)","v":""},null,{"$f":"IF($C$524=\"\",\"\",AN524/$C$524)","v":""},null,{"$f":"IF($C$524=\"\",\"\",AP524/$C$524)","v":""},null,{"$f":"IF($C$524=\"\",\"\",AR524/$C$524)","v":""},null,{"$f":"IF($C$524=\"\",\"\",AT524/$C$524)","v":""},null,{"$f":"IF($C$524=\"\",\"\",AV524/$C$524)","v":""},null,{"$f":"IF($C$524=\"\",\"\",AX524/$C$524)","v":""},null,{"$f":"IF($C$524=\"\",\"\",AZ524/$C$524)","v":""},null,{"$f":"IF($C$524=\"\",\"\",BB524/$C$524)","v":""},null,0]
[null,null,null,null,{"$f":"IF($C$525=\"\",\"\",F525/$C$525)","v":""},null,{"$f":"IF($C$525=\"\",\"\",H525/$C$525)","v":""},null,{"$f":"IF($C$525=\"\",\"\",J525/$C$525)","v":""},null,{"$f":"IF($C$525=\"\",\"\",L525/$C$525)","v":""},null,{"$f":"IF($C$525=\"\",\"\",N525/$C$525)","v":""},null,{"$f":"IF($C$525=\"\",\"\",P525/$C$525)","v":""},null,{"$f":"IF($C$525=\"\",\"\",R525/$C$525)","v":""},null,{"$f":"IF($C$525=\"\",\"\",T525/$C$525)","v":""},null,{"$f":"IF($C$525=\"\",\"\",V525/$C$525)","v":""},null,{"$f":"IF($C$525=\"\",\"\",X525/$C$525)","v":""},null,{"$f":"IF($C$525=\"\",\"\",Z525/$C$525)","v":""},null,{"$f":"IF($C$525=\"\",\"\",AB525/$C$525)","v":""},null,{"$f":"IF($C$525=\"\",\"\",AD525/$C$525)","v":""},null,{"$f":"IF($C$525=\"\",\"\",AF525/$C$525)","v":""},null,{"$f":"IF($C$525=\"\",\"\",AH525/$C$525)","v":""},null,{"$f":"IF($C$525=\"\",\"\",AJ525/$C$525)","v":""},null,{"$f":"IF($C$525=\"\",\"\",AL525/$C$525)","v":""},null,{"$f":"IF($C$525=\"\",\"\",AN525/$C$525)","v":""},null,{"$f":"IF($C$525=\"\",\"\",AP525/$C$525)","v":""},null,{"$f":"IF($C$525=\"\",\"\",AR525/$C$525)","v":""},null,{"$f":"IF($C$525=\"\",\"\",AT525/$C$525)","v":""},null,{"$f":"IF($C$525=\"\",\"\",AV525/$C$525)","v":""},null,{"$f":"IF($C$525=\"\",\"\",AX525/$C$525)","v":""},null,{"$f":"IF($C$525=\"\",\"\",AZ525/$C$525)","v":""},null,{"$f":"IF($C$525=\"\",\"\",BB525/$C$525)","v":""},null,0]
[null,null,null,null,{"$f":"IF($C$526=\"\",\"\",F526/$C$526)","v":""},null,{"$f":"IF($C$526=\"\",\"\",H526/$C$526)","v":""},null,{"$f":"IF($C$526=\"\",\"\",J526/$C$526)","v":""},null,{"$f":"IF($C$526=\"\",\"\",L526/$C$526)","v":""},null,{"$f":"IF($C$526=\"\",\"\",N526/$C$526)","v":""},null,{"$f":"IF($C$526=\"\",\"\",P526/$C$526)","v":""},null,{"$f":"IF($C$526=\"\",\"\",R526/$C$526)","v":""},null,{"$f":"IF($C$526=\"\",\"\",T526/$C$526)","v":""},null,{"$f":"IF($C$526=\"\",\"\",V526/$C$526)","v":""},null,{"$f":"IF($C$526=\"\",\"\",X526/$C$526)","v":""},null,{"$f":"IF($C$526=\"\",\"\",Z526/$C$526)","v":""},null,{"$f":"IF($C$526=\"\",\"\",AB526/$C$526)","v":""},null,{"$f":"IF($C$526=\"\",\"\",AD526/$C$526)","v":""},null,{"$f":"IF($C$526=\"\",\"\",AF526/$C$526)","v":""},null,{"$f":"IF($C$526=\"\",\"\",AH526/$C$526)","v":""},null,{"$f":"IF($C$526=\"\",\"\",AJ526/$C$526)","v":""},null,{"$f":"IF($C$526=\"\",\"\",AL526/$C$526)","v":""},null,{"$f":"IF($C$526=\"\",\"\",AN526/$C$526)","v":""},null,{"$f":"IF($C$526=\"\",\"\",AP526/$C$526)","v":""},null,{"$f":"IF($C$526=\"\",\"\",AR526/$C$526)","v":""},null,{"$f":"IF($C$526=\"\",\"\",AT526/$C$526)","v":""},null,{"$f":"IF($C$526=\"\",\"\",AV526/$C$526)","v":""},null,{"$f":"IF($C$526=\"\",\"\",AX526/$C$526)","v":""},null,{"$f":"IF($C$526=\"\",\"\",AZ526/$C$526)","v":""},null,{"$f":"IF($C$526=\"\",\"\",BB526/$C$526)","v":""},null,0]
[null,null,null,null,{"$f":"IF($C$527=\"\",\"\",F527/$C$527)","v":""},null,{"$f":"IF($C$527=\"\",\"\",H527/$C$527)","v":""},null,{"$f":"IF($C$527=\"\",\"\",J527/$C$527)","v":""},null,{"$f":"IF($C$527=\"\",\"\",L527/$C$527)","v":""},null,{"$f":"IF($C$527=\"\",\"\",N527/$C$527)","v":""},null,{"$f":"IF($C$527=\"\",\"\",P527/$C$527)","v":""},null,{"$f":"IF($C$527=\"\",\"\",R527/$C$527)","v":""},null,{"$f":"IF($C$527=\"\",\"\",T527/$C$527)","v":""},null,{"$f":"IF($C$527=\"\",\"\",V527/$C$527)","v":""},null,{"$f":"IF($C$527=\"\",\"\",X527/$C$527)","v":""},null,{"$f":"IF($C$527=\"\",\"\",Z527/$C$527)","v":""},null,{"$f":"IF($C$527=\"\",\"\",AB527/$C$527)","v":""},null,{"$f":"IF($C$527=\"\",\"\",AD527/$C$527)","v":""},null,{"$f":"IF($C$527=\"\",\"\",AF527/$C$527)","v":""},null,{"$f":"IF($C$527=\"\",\"\",AH527/$C$527)","v":""},null,{"$f":"IF($C$527=\"\",\"\",AJ527/$C$527)","v":""},null,{"$f":"IF($C$527=\"\",\"\",AL527/$C$527)","v":""},null,{"$f":"IF($C$527=\"\",\"\",AN527/$C$527)","v":""},null,{"$f":"IF($C$527=\"\",\"\",AP527/$C$527)","v":""},null,{"$f":"IF($C$527=\"\",\"\",AR527/$C$527)","v":""},null,{"$f":"IF($C$527=\"\",\"\",AT527/$C$527)","v":""},null,{"$f":"IF($C$527=\"\",\"\",AV527/$C$527)","v":""},null,{"$f":"IF($C$527=\"\",\"\",AX527/$C$527)","v":""},null,{"$f":"IF($C$527=\"\",\"\",AZ527/$C$527)","v":""},null,{"$f":"IF($C$527=\"\",\"\",BB527/$C$527)","v":""},null,0]
[null,null,null,null,{"$f":"IF($C$528=\"\",\"\",F528/$C$528)","v":""},null,{"$f":"IF($C$528=\"\",\"\",H528/$C$528)","v":""},null,{"$f":"IF($C$528=\"\",\"\",J528/$C$528)","v":""},null,{"$f":"IF($C$528=\"\",\"\",L528/$C$528)","v":""},null,{"$f":"IF($C$528=\"\",\"\",N528/$C$528)","v":""},null,{"$f":"IF($C$528=\"\",\"\",P528/$C$528)","v":""},null,{"$f":"IF($C$528=\"\",\"\",R528/$C$528)","v":""},null,{"$f":"IF($C$528=\"\",\"\",T528/$C$528)","v":""},null,{"$f":"IF($C$528=\"\",\"\",V528/$C$528)","v":""},null,{"$f":"IF($C$528=\"\",\"\",X528/$C$528)","v":""},null,{"$f":"IF($C$528=\"\",\"\",Z528/$C$528)","v":""},null,{"$f":"IF($C$528=\"\",\"\",AB528/$C$528)","v":""},null,{"$f":"IF($C$528=\"\",\"\",AD528/$C$528)","v":""},null,{"$f":"IF($C$528=\"\",\"\",AF528/$C$528)","v":""},null,{"$f":"IF($C$528=\"\",\"\",AH528/$C$528)","v":""},null,{"$f":"IF($C$528=\"\",\"\",AJ528/$C$528)","v":""},null,{"$f":"IF($C$528=\"\",\"\",AL528/$C$528)","v":""},null,{"$f":"IF($C$528=\"\",\"\",AN528/$C$528)","v":""},null,{"$f":"IF($C$528=\"\",\"\",AP528/$C$528)","v":""},null,{"$f":"IF($C$528=\"\",\"\",AR528/$C$528)","v":""},null,{"$f":"IF($C$528=\"\",\"\",AT528/$C$528)","v":""},null,{"$f":"IF($C$528=\"\",\"\",AV528/$C$528)","v":""},null,{"$f":"IF($C$528=\"\",\"\",AX528/$C$528)","v":""},null,{"$f":"IF($C$528=\"\",\"\",AZ528/$C$528)","v":""},null,{"$f":"IF($C$528=\"\",\"\",BB528/$C$528)","v":""},null,0]
[null,null,null,null,{"$f":"IF($C$529=\"\",\"\",F529/$C$529)","v":""},null,{"$f":"IF($C$529=\"\",\"\",H529/$C$529)","v":""},null,{"$f":"IF($C$529=\"\",\"\",J529/$C$529)","v":""},null,{"$f":"IF($C$529=\"\",\"\",L529/$C$529)","v":""},null,{"$f":"IF($C$529=\"\",\"\",N529/$C$529)","v":""},null,{"$f":"IF($C$529=\"\",\"\",P529/$C$529)","v":""},null,{"$f":"IF($C$529=\"\",\"\",R529/$C$529)","v":""},null,{"$f":"IF($C$529=\"\",\"\",T529/$C$529)","v":""},null,{"$f":"IF($C$529=\"\",\"\",V529/$C$529)","v":""},null,{"$f":"IF($C$529=\"\",\"\",X529/$C$529)","v":""},null,{"$f":"IF($C$529=\"\",\"\",Z529/$C$529)","v":""},null,{"$f":"IF($C$529=\"\",\"\",AB529/$C$529)","v":""},null,{"$f":"IF($C$529=\"\",\"\",AD529/$C$529)","v":""},null,{"$f":"IF($C$529=\"\",\"\",AF529/$C$529)","v":""},null,{"$f":"IF($C$529=\"\",\"\",AH529/$C$529)","v":""},null,{"$f":"IF($C$529=\"\",\"\",AJ529/$C$529)","v":""},null,{"$f":"IF($C$529=\"\",\"\",AL529/$C$529)","v":""},null,{"$f":"IF($C$529=\"\",\"\",AN529/$C$529)","v":""},null,{"$f":"IF($C$529=\"\",\"\",AP529/$C$529)","v":""},null,{"$f":"IF($C$529=\"\",\"\",AR529/$C$529)","v":""},null,{"$f":"IF($C$529=\"\",\"\",AT529/$C$529)","v":""},null,{"$f":"IF($C$529=\"\",\"\",AV529/$C$529)","v":""},null,{"$f":"IF($C$529=\"\",\"\",AX529/$C$529)","v":""},null,{"$f":"IF($C$529=\"\",\"\",AZ529/$C$529)","v":""},null,{"$f":"IF($C$529=\"\",\"\",BB529/$C$529)","v":""},null,0]
[null,null,null,null,{"$f":"IF($C$530=\"\",\"\",F530/$C$530)","v":""},null,{"$f":"IF($C$530=\"\",\"\",H530/$C$530)","v":""},null,{"$f":"IF($C$530=\"\",\"\",J530/$C$530)","v":""},null,{"$f":"IF($C$530=\"\",\"\",L530/$C$530)","v":""},null,{"$f":"IF($C$530=\"\",\"\",N530/$C$530)","v":""},null,{"$f":"IF($C$530=\"\",\"\",P530/$C$530)","v":""},null,{"$f":"IF($C$530=\"\",\"\",R530/$C$530)","v":""},null,{"$f":"IF($C$530=\"\",\"\",T530/$C$530)","v":""},null,{"$f":"IF($C$530=\"\",\"\",V530/$C$530)","v":""},null,{"$f":"IF($C$530=\"\",\"\",X530/$C$530)","v":""},null,{"$f":"IF($C$530=\"\",\"\",Z530/$C$530)","v":""},null,{"$f":"IF($C$530=\"\",\"\",AB530/$C$530)","v":""},null,{"$f":"IF($C$530=\"\",\"\",AD530/$C$530)","v":""},null,{"$f":"IF($C$530=\"\",\"\",AF530/$C$530)","v":""},null,{"$f":"IF($C$530=\"\",\"\",AH530/$C$530)","v":""},null,{"$f":"IF($C$530=\"\",\"\",AJ530/$C$530)","v":""},null,{"$f":"IF($C$530=\"\",\"\",AL530/$C$530)","v":""},null,{"$f":"IF($C$530=\"\",\"\",AN530/$C$530)","v":""},null,{"$f":"IF($C$530=\"\",\"\",AP530/$C$530)","v":""},null,{"$f":"IF($C$530=\"\",\"\",AR530/$C$530)","v":""},null,{"$f":"IF($C$530=\"\",\"\",AT530/$C$530)","v":""},null,{"$f":"IF($C$530=\"\",\"\",AV530/$C$530)","v":""},null,{"$f":"IF($C$530=\"\",\"\",AX530/$C$530)","v":""},null,{"$f":"IF($C$530=\"\",\"\",AZ530/$C$530)","v":""},null,{"$f":"IF($C$530=\"\",\"\",BB530/$C$530)","v":""},null,0]
[null,null,null,null,{"$f":"IF($C$531=\"\",\"\",F531/$C$531)","v":""},null,{"$f":"IF($C$531=\"\",\"\",H531/$C$531)","v":""},null,{"$f":"IF($C$531=\"\",\"\",J531/$C$531)","v":""},null,{"$f":"IF($C$531=\"\",\"\",L531/$C$531)","v":""},null,{"$f":"IF($C$531=\"\",\"\",N531/$C$531)","v":""},null,{"$f":"IF($C$531=\"\",\"\",P531/$C$531)","v":""},null,{"$f":"IF($C$531=\"\",\"\",R531/$C$531)","v":""},null,{"$f":"IF($C$531=\"\",\"\",T531/$C$531)","v":""},null,{"$f":"IF($C$531=\"\",\"\",V531/$C$531)","v":""},null,{"$f":"IF($C$531=\"\",\"\",X531/$C$531)","v":""},null,{"$f":"IF($C$531=\"\",\"\",Z531/$C$531)","v":""},null,{"$f":"IF($C$531=\"\",\"\",AB531/$C$531)","v":""},null,{"$f":"IF($C$531=\"\",\"\",AD531/$C$531)","v":""},null,{"$f":"IF($C$531=\"\",\"\",AF531/$C$531)","v":""},null,{"$f":"IF($C$531=\"\",\"\",AH531/$C$531)","v":""},null,{"$f":"IF($C$531=\"\",\"\",AJ531/$C$531)","v":""},null,{"$f":"IF($C$531=\"\",\"\",AL531/$C$531)","v":""},null,{"$f":"IF($C$531=\"\",\"\",AN531/$C$531)","v":""},null,{"$f":"IF($C$531=\"\",\"\",AP531/$C$531)","v":""},null,{"$f":"IF($C$531=\"\",\"\",AR531/$C$531)","v":""},null,{"$f":"IF($C$531=\"\",\"\",AT531/$C$531)","v":""},null,{"$f":"IF($C$531=\"\",\"\",AV531/$C$531)","v":""},null,{"$f":"IF($C$531=\"\",\"\",AX531/$C$531)","v":""},null,{"$f":"IF($C$531=\"\",\"\",AZ531/$C$531)","v":""},null,{"$f":"IF($C$531=\"\",\"\",BB531/$C$531)","v":""},null,0]
[null,null,null,null,{"$f":"IF($C$532=\"\",\"\",F532/$C$532)","v":""},null,{"$f":"IF($C$532=\"\",\"\",H532/$C$532)","v":""},null,{"$f":"IF($C$532=\"\",\"\",J532/$C$532)","v":""},null,{"$f":"IF($C$532=\"\",\"\",L532/$C$532)","v":""},null,{"$f":"IF($C$532=\"\",\"\",N532/$C$532)","v":""},null,{"$f":"IF($C$532=\"\",\"\",P532/$C$532)","v":""},null,{"$f":"IF($C$532=\"\",\"\",R532/$C$532)","v":""},null,{"$f":"IF($C$532=\"\",\"\",T532/$C$532)","v":""},null,{"$f":"IF($C$532=\"\",\"\",V532/$C$532)","v":""},null,{"$f":"IF($C$532=\"\",\"\",X532/$C$532)","v":""},null,{"$f":"IF($C$532=\"\",\"\",Z532/$C$532)","v":""},null,{"$f":"IF($C$532=\"\",\"\",AB532/$C$532)","v":""},null,{"$f":"IF($C$532=\"\",\"\",AD532/$C$532)","v":""},null,{"$f":"IF($C$532=\"\",\"\",AF532/$C$532)","v":""},null,{"$f":"IF($C$532=\"\",\"\",AH532/$C$532)","v":""},null,{"$f":"IF($C$532=\"\",\"\",AJ532/$C$532)","v":""},null,{"$f":"IF($C$532=\"\",\"\",AL532/$C$532)","v":""},null,{"$f":"IF($C$532=\"\",\"\",AN532/$C$532)","v":""},null,{"$f":"IF($C$532=\"\",\"\",AP532/$C$532)","v":""},null,{"$f":"IF($C$532=\"\",\"\",AR532/$C$532)","v":""},null,{"$f":"IF($C$532=\"\",\"\",AT532/$C$532)","v":""},null,{"$f":"IF($C$532=\"\",\"\",AV532/$C$532)","v":""},null,{"$f":"IF($C$532=\"\",\"\",AX532/$C$532)","v":""},null,{"$f":"IF($C$532=\"\",\"\",AZ532/$C$532)","v":""},null,{"$f":"IF($C$532=\"\",\"\",BB532/$C$532)","v":""},null,0]
[null,null,null,null,{"$f":"IF($C$533=\"\",\"\",F533/$C$533)","v":""},null,{"$f":"IF($C$533=\"\",\"\",H533/$C$533)","v":""},null,{"$f":"IF($C$533=\"\",\"\",J533/$C$533)","v":""},null,{"$f":"IF($C$533=\"\",\"\",L533/$C$533)","v":""},null,{"$f":"IF($C$533=\"\",\"\",N533/$C$533)","v":""},null,{"$f":"IF($C$533=\"\",\"\",P533/$C$533)","v":""},null,{"$f":"IF($C$533=\"\",\"\",R533/$C$533)","v":""},null,{"$f":"IF($C$533=\"\",\"\",T533/$C$533)","v":""},null,{"$f":"IF($C$533=\"\",\"\",V533/$C$533)","v":""},null,{"$f":"IF($C$533=\"\",\"\",X533/$C$533)","v":""},null,{"$f":"IF($C$533=\"\",\"\",Z533/$C$533)","v":""},null,{"$f":"IF($C$533=\"\",\"\",AB533/$C$533)","v":""},null,{"$f":"IF($C$533=\"\",\"\",AD533/$C$533)","v":""},null,{"$f":"IF($C$533=\"\",\"\",AF533/$C$533)","v":""},null,{"$f":"IF($C$533=\"\",\"\",AH533/$C$533)","v":""},null,{"$f":"IF($C$533=\"\",\"\",AJ533/$C$533)","v":""},null,{"$f":"IF($C$533=\"\",\"\",AL533/$C$533)","v":""},null,{"$f":"IF($C$533=\"\",\"\",AN533/$C$533)","v":""},null,{"$f":"IF($C$533=\"\",\"\",AP533/$C$533)","v":""},null,{"$f":"IF($C$533=\"\",\"\",AR533/$C$533)","v":""},null,{"$f":"IF($C$533=\"\",\"\",AT533/$C$533)","v":""},null,{"$f":"IF($C$533=\"\",\"\",AV533/$C$533)","v":""},null,{"$f":"IF($C$533=\"\",\"\",AX533/$C$533)","v":""},null,{"$f":"IF($C$533=\"\",\"\",AZ533/$C$533)","v":""},null,{"$f":"IF($C$533=\"\",\"\",BB533/$C$533)","v":""},null,0]
[null,null,null,null,{"$f":"IF($C$534=\"\",\"\",F534/$C$534)","v":""},null,{"$f":"IF($C$534=\"\",\"\",H534/$C$534)","v":""},null,{"$f":"IF($C$534=\"\",\"\",J534/$C$534)","v":""},null,{"$f":"IF($C$534=\"\",\"\",L534/$C$534)","v":""},null,{"$f":"IF($C$534=\"\",\"\",N534/$C$534)","v":""},null,{"$f":"IF($C$534=\"\",\"\",P534/$C$534)","v":""},null,{"$f":"IF($C$534=\"\",\"\",R534/$C$534)","v":""},null,{"$f":"IF($C$534=\"\",\"\",T534/$C$534)","v":""},null,{"$f":"IF($C$534=\"\",\"\",V534/$C$534)","v":""},null,{"$f":"IF($C$534=\"\",\"\",X534/$C$534)","v":""},null,{"$f":"IF($C$534=\"\",\"\",Z534/$C$534)","v":""},null,{"$f":"IF($C$534=\"\",\"\",AB534/$C$534)","v":""},null,{"$f":"IF($C$534=\"\",\"\",AD534/$C$534)","v":""},null,{"$f":"IF($C$534=\"\",\"\",AF534/$C$534)","v":""},null,{"$f":"IF($C$534=\"\",\"\",AH534/$C$534)","v":""},null,{"$f":"IF($C$534=\"\",\"\",AJ534/$C$534)","v":""},null,{"$f":"IF($C$534=\"\",\"\",AL534/$C$534)","v":""},null,{"$f":"IF($C$534=\"\",\"\",AN534/$C$534)","v":""},null,{"$f":"IF($C$534=\"\",\"\",AP534/$C$534)","v":""},null,{"$f":"IF($C$534=\"\",\"\",AR534/$C$534)","v":""},null,{"$f":"IF($C$534=\"\",\"\",AT534/$C$534)","v":""},null,{"$f":"IF($C$534=\"\",\"\",AV534/$C$534)","v":""},null,{"$f":"IF($C$534=\"\",\"\",AX534/$C$534)","v":""},null,{"$f":"IF($C$534=\"\",\"\",AZ534/$C$534)","v":""},null,{"$f":"IF($C$534=\"\",\"\",BB534/$C$534)","v":""},null,0]
[null,null,null,null,{"$f":"IF($C$535=\"\",\"\",F535/$C$535)","v":""},null,{"$f":"IF($C$535=\"\",\"\",H535/$C$535)","v":""},null,{"$f":"IF($C$535=\"\",\"\",J535/$C$535)","v":""},null,{"$f":"IF($C$535=\"\",\"\",L535/$C$535)","v":""},null,{"$f":"IF($C$535=\"\",\"\",N535/$C$535)","v":""},null,{"$f":"IF($C$535=\"\",\"\",P535/$C$535)","v":""},null,{"$f":"IF($C$535=\"\",\"\",R535/$C$535)","v":""},null,{"$f":"IF($C$535=\"\",\"\",T535/$C$535)","v":""},null,{"$f":"IF($C$535=\"\",\"\",V535/$C$535)","v":""},null,{"$f":"IF($C$535=\"\",\"\",X535/$C$535)","v":""},null,{"$f":"IF($C$535=\"\",\"\",Z535/$C$535)","v":""},null,{"$f":"IF($C$535=\"\",\"\",AB535/$C$535)","v":""},null,{"$f":"IF($C$535=\"\",\"\",AD535/$C$535)","v":""},null,{"$f":"IF($C$535=\"\",\"\",AF535/$C$535)","v":""},null,{"$f":"IF($C$535=\"\",\"\",AH535/$C$535)","v":""},null,{"$f":"IF($C$535=\"\",\"\",AJ535/$C$535)","v":""},null,{"$f":"IF($C$535=\"\",\"\",AL535/$C$535)","v":""},null,{"$f":"IF($C$535=\"\",\"\",AN535/$C$535)","v":""},null,{"$f":"IF($C$535=\"\",\"\",AP535/$C$535)","v":""},null,{"$f":"IF($C$535=\"\",\"\",AR535/$C$535)","v":""},null,{"$f":"IF($C$535=\"\",\"\",AT535/$C$535)","v":""},null,{"$f":"IF($C$535=\"\",\"\",AV535/$C$535)","v":""},null,{"$f":"IF($C$535=\"\",\"\",AX535/$C$535)","v":""},null,{"$f":"IF($C$535=\"\",\"\",AZ535/$C$535)","v":""},null,{"$f":"IF($C$535=\"\",\"\",BB535/$C$535)","v":""},null,0]
[null,null,null,null,{"$f":"IF($C$536=\"\",\"\",F536/$C$536)","v":""},null,{"$f":"IF($C$536=\"\",\"\",H536/$C$536)","v":""},null,{"$f":"IF($C$536=\"\",\"\",J536/$C$536)","v":""},null,{"$f":"IF($C$536=\"\",\"\",L536/$C$536)","v":""},null,{"$f":"IF($C$536=\"\",\"\",N536/$C$536)","v":""},null,{"$f":"IF($C$536=\"\",\"\",P536/$C$536)","v":""},null,{"$f":"IF($C$536=\"\",\"\",R536/$C$536)","v":""},null,{"$f":"IF($C$536=\"\",\"\",T536/$C$536)","v":""},null,{"$f":"IF($C$536=\"\",\"\",V536/$C$536)","v":""},null,{"$f":"IF($C$536=\"\",\"\",X536/$C$536)","v":""},null,{"$f":"IF($C$536=\"\",\"\",Z536/$C$536)","v":""},null,{"$f":"IF($C$536=\"\",\"\",AB536/$C$536)","v":""},null,{"$f":"IF($C$536=\"\",\"\",AD536/$C$536)","v":""},null,{"$f":"IF($C$536=\"\",\"\",AF536/$C$536)","v":""},null,{"$f":"IF($C$536=\"\",\"\",AH536/$C$536)","v":""},null,{"$f":"IF($C$536=\"\",\"\",AJ536/$C$536)","v":""},null,{"$f":"IF($C$536=\"\",\"\",AL536/$C$536)","v":""},null,{"$f":"IF($C$536=\"\",\"\",AN536/$C$536)","v":""},null,{"$f":"IF($C$536=\"\",\"\",AP536/$C$536)","v":""},null,{"$f":"IF($C$536=\"\",\"\",AR536/$C$536)","v":""},null,{"$f":"IF($C$536=\"\",\"\",AT536/$C$536)","v":""},null,{"$f":"IF($C$536=\"\",\"\",AV536/$C$536)","v":""},null,{"$f":"IF($C$536=\"\",\"\",AX536/$C$536)","v":""},null,{"$f":"IF($C$536=\"\",\"\",AZ536/$C$536)","v":""},null,{"$f":"IF($C$536=\"\",\"\",BB536/$C$536)","v":""},null,0]
[null,null,null,null,{"$f":"IF($C$537=\"\",\"\",F537/$C$537)","v":""},null,{"$f":"IF($C$537=\"\",\"\",H537/$C$537)","v":""},null,{"$f":"IF($C$537=\"\",\"\",J537/$C$537)","v":""},null,{"$f":"IF($C$537=\"\",\"\",L537/$C$537)","v":""},null,{"$f":"IF($C$537=\"\",\"\",N537/$C$537)","v":""},null,{"$f":"IF($C$537=\"\",\"\",P537/$C$537)","v":""},null,{"$f":"IF($C$537=\"\",\"\",R537/$C$537)","v":""},null,{"$f":"IF($C$537=\"\",\"\",T537/$C$537)","v":""},null,{"$f":"IF($C$537=\"\",\"\",V537/$C$537)","v":""},null,{"$f":"IF($C$537=\"\",\"\",X537/$C$537)","v":""},null,{"$f":"IF($C$537=\"\",\"\",Z537/$C$537)","v":""},null,{"$f":"IF($C$537=\"\",\"\",AB537/$C$537)","v":""},null,{"$f":"IF($C$537=\"\",\"\",AD537/$C$537)","v":""},null,{"$f":"IF($C$537=\"\",\"\",AF537/$C$537)","v":""},null,{"$f":"IF($C$537=\"\",\"\",AH537/$C$537)","v":""},null,{"$f":"IF($C$537=\"\",\"\",AJ537/$C$537)","v":""},null,{"$f":"IF($C$537=\"\",\"\",AL537/$C$537)","v":""},null,{"$f":"IF($C$537=\"\",\"\",AN537/$C$537)","v":""},null,{"$f":"IF($C$537=\"\",\"\",AP537/$C$537)","v":""},null,{"$f":"IF($C$537=\"\",\"\",AR537/$C$537)","v":""},null,{"$f":"IF($C$537=\"\",\"\",AT537/$C$537)","v":""},null,{"$f":"IF($C$537=\"\",\"\",AV537/$C$537)","v":""},null,{"$f":"IF($C$537=\"\",\"\",AX537/$C$537)","v":""},null,{"$f":"IF($C$537=\"\",\"\",AZ537/$C$537)","v":""},null,{"$f":"IF($C$537=\"\",\"\",BB537/$C$537)","v":""},null,0]
[null,null,null,null,{"$f":"IF($C$538=\"\",\"\",F538/$C$538)","v":""},null,{"$f":"IF($C$538=\"\",\"\",H538/$C$538)","v":""},null,{"$f":"IF($C$538=\"\",\"\",J538/$C$538)","v":""},null,{"$f":"IF($C$538=\"\",\"\",L538/$C$538)","v":""},null,{"$f":"IF($C$538=\"\",\"\",N538/$C$538)","v":""},null,{"$f":"IF($C$538=\"\",\"\",P538/$C$538)","v":""},null,{"$f":"IF($C$538=\"\",\"\",R538/$C$538)","v":""},null,{"$f":"IF($C$538=\"\",\"\",T538/$C$538)","v":""},null,{"$f":"IF($C$538=\"\",\"\",V538/$C$538)","v":""},null,{"$f":"IF($C$538=\"\",\"\",X538/$C$538)","v":""},null,{"$f":"IF($C$538=\"\",\"\",Z538/$C$538)","v":""},null,{"$f":"IF($C$538=\"\",\"\",AB538/$C$538)","v":""},null,{"$f":"IF($C$538=\"\",\"\",AD538/$C$538)","v":""},null,{"$f":"IF($C$538=\"\",\"\",AF538/$C$538)","v":""},null,{"$f":"IF($C$538=\"\",\"\",AH538/$C$538)","v":""},null,{"$f":"IF($C$538=\"\",\"\",AJ538/$C$538)","v":""},null,{"$f":"IF($C$538=\"\",\"\",AL538/$C$538)","v":""},null,{"$f":"IF($C$538=\"\",\"\",AN538/$C$538)","v":""},null,{"$f":"IF($C$538=\"\",\"\",AP538/$C$538)","v":""},null,{"$f":"IF($C$538=\"\",\"\",AR538/$C$538)","v":""},null,{"$f":"IF($C$538=\"\",\"\",AT538/$C$538)","v":""},null,{"$f":"IF($C$538=\"\",\"\",AV538/$C$538)","v":""},null,{"$f":"IF($C$538=\"\",\"\",AX538/$C$538)","v":""},null,{"$f":"IF($C$538=\"\",\"\",AZ538/$C$538)","v":""},null,{"$f":"IF($C$538=\"\",\"\",BB538/$C$538)","v":""},null,0]
[null,null,null,null,{"$f":"IF($C$539=\"\",\"\",F539/$C$539)","v":""},null,{"$f":"IF($C$539=\"\",\"\",H539/$C$539)","v":""},null,{"$f":"IF($C$539=\"\",\"\",J539/$C$539)","v":""},null,{"$f":"IF($C$539=\"\",\"\",L539/$C$539)","v":""},null,{"$f":"IF($C$539=\"\",\"\",N539/$C$539)","v":""},null,{"$f":"IF($C$539=\"\",\"\",P539/$C$539)","v":""},null,{"$f":"IF($C$539=\"\",\"\",R539/$C$539)","v":""},null,{"$f":"IF($C$539=\"\",\"\",T539/$C$539)","v":""},null,{"$f":"IF($C$539=\"\",\"\",V539/$C$539)","v":""},null,{"$f":"IF($C$539=\"\",\"\",X539/$C$539)","v":""},null,{"$f":"IF($C$539=\"\",\"\",Z539/$C$539)","v":""},null,{"$f":"IF($C$539=\"\",\"\",AB539/$C$539)","v":""},null,{"$f":"IF($C$539=\"\",\"\",AD539/$C$539)","v":""},null,{"$f":"IF($C$539=\"\",\"\",AF539/$C$539)","v":""},null,{"$f":"IF($C$539=\"\",\"\",AH539/$C$539)","v":""},null,{"$f":"IF($C$539=\"\",\"\",AJ539/$C$539)","v":""},null,{"$f":"IF($C$539=\"\",\"\",AL539/$C$539)","v":""},null,{"$f":"IF($C$539=\"\",\"\",AN539/$C$539)","v":""},null,{"$f":"IF($C$539=\"\",\"\",AP539/$C$539)","v":""},null,{"$f":"IF($C$539=\"\",\"\",AR539/$C$539)","v":""},null,{"$f":"IF($C$539=\"\",\"\",AT539/$C$539)","v":""},null,{"$f":"IF($C$539=\"\",\"\",AV539/$C$539)","v":""},null,{"$f":"IF($C$539=\"\",\"\",AX539/$C$539)","v":""},null,{"$f":"IF($C$539=\"\",\"\",AZ539/$C$539)","v":""},null,{"$f":"IF($C$539=\"\",\"\",BB539/$C$539)","v":""},null,0]
[null,null,null,null,{"$f":"IF($C$540=\"\",\"\",F540/$C$540)","v":""},null,{"$f":"IF($C$540=\"\",\"\",H540/$C$540)","v":""},null,{"$f":"IF($C$540=\"\",\"\",J540/$C$540)","v":""},null,{"$f":"IF($C$540=\"\",\"\",L540/$C$540)","v":""},null,{"$f":"IF($C$540=\"\",\"\",N540/$C$540)","v":""},null,{"$f":"IF($C$540=\"\",\"\",P540/$C$540)","v":""},null,{"$f":"IF($C$540=\"\",\"\",R540/$C$540)","v":""},null,{"$f":"IF($C$540=\"\",\"\",T540/$C$540)","v":""},null,{"$f":"IF($C$540=\"\",\"\",V540/$C$540)","v":""},null,{"$f":"IF($C$540=\"\",\"\",X540/$C$540)","v":""},null,{"$f":"IF($C$540=\"\",\"\",Z540/$C$540)","v":""},null,{"$f":"IF($C$540=\"\",\"\",AB540/$C$540)","v":""},null,{"$f":"IF($C$540=\"\",\"\",AD540/$C$540)","v":""},null,{"$f":"IF($C$540=\"\",\"\",AF540/$C$540)","v":""},null,{"$f":"IF($C$540=\"\",\"\",AH540/$C$540)","v":""},null,{"$f":"IF($C$540=\"\",\"\",AJ540/$C$540)","v":""},null,{"$f":"IF($C$540=\"\",\"\",AL540/$C$540)","v":""},null,{"$f":"IF($C$540=\"\",\"\",AN540/$C$540)","v":""},null,{"$f":"IF($C$540=\"\",\"\",AP540/$C$540)","v":""},null,{"$f":"IF($C$540=\"\",\"\",AR540/$C$540)","v":""},null,{"$f":"IF($C$540=\"\",\"\",AT540/$C$540)","v":""},null,{"$f":"IF($C$540=\"\",\"\",AV540/$C$540)","v":""},null,{"$f":"IF($C$540=\"\",\"\",AX540/$C$540)","v":""},null,{"$f":"IF($C$540=\"\",\"\",AZ540/$C$540)","v":""},null,{"$f":"IF($C$540=\"\",\"\",BB540/$C$540)","v":""},null,0]
[null,null,null,null,{"$f":"IF($C$541=\"\",\"\",F541/$C$541)","v":""},null,{"$f":"IF($C$541=\"\",\"\",H541/$C$541)","v":""},null,{"$f":"IF($C$541=\"\",\"\",J541/$C$541)","v":""},null,{"$f":"IF($C$541=\"\",\"\",L541/$C$541)","v":""},null,{"$f":"IF($C$541=\"\",\"\",N541/$C$541)","v":""},null,{"$f":"IF($C$541=\"\",\"\",P541/$C$541)","v":""},null,{"$f":"IF($C$541=\"\",\"\",R541/$C$541)","v":""},null,{"$f":"IF($C$541=\"\",\"\",T541/$C$541)","v":""},null,{"$f":"IF($C$541=\"\",\"\",V541/$C$541)","v":""},null,{"$f":"IF($C$541=\"\",\"\",X541/$C$541)","v":""},null,{"$f":"IF($C$541=\"\",\"\",Z541/$C$541)","v":""},null,{"$f":"IF($C$541=\"\",\"\",AB541/$C$541)","v":""},null,{"$f":"IF($C$541=\"\",\"\",AD541/$C$541)","v":""},null,{"$f":"IF($C$541=\"\",\"\",AF541/$C$541)","v":""},null,{"$f":"IF($C$541=\"\",\"\",AH541/$C$541)","v":""},null,{"$f":"IF($C$541=\"\",\"\",AJ541/$C$541)","v":""},null,{"$f":"IF($C$541=\"\",\"\",AL541/$C$541)","v":""},null,{"$f":"IF($C$541=\"\",\"\",AN541/$C$541)","v":""},null,{"$f":"IF($C$541=\"\",\"\",AP541/$C$541)","v":""},null,{"$f":"IF($C$541=\"\",\"\",AR541/$C$541)","v":""},null,{"$f":"IF($C$541=\"\",\"\",AT541/$C$541)","v":""},null,{"$f":"IF($C$541=\"\",\"\",AV541/$C$541)","v":""},null,{"$f":"IF($C$541=\"\",\"\",AX541/$C$541)","v":""},null,{"$f":"IF($C$541=\"\",\"\",AZ541/$C$541)","v":""},null,{"$f":"IF($C$541=\"\",\"\",BB541/$C$541)","v":""},null,{"$f":"SUM(BB541,AZ541,AX541,AV541,AT541,AR541,AP541,AN541,AL541,AJ541,AH541,AF541,AD541,AB541,Z541,X541,V541,T541,R541,P541,N541,L541,J541,H541,F541)","v":0}]
["TOTAL HOURS",null,null,null,null,{"$f":"SUM(F512:F541)","v":0},null,{"$f":"SUM(H512:H541)","v":0},null,{"$f":"SUM(J512:J541)","v":0},null,{"$f":"SUM(L512:L541)","v":0},null,{"$f":"SUM(N512:N541)","v":0},null,{"$f":"SUM(P512:P541)","v":0},null,{"$f":"SUM(R512:R541)","v":0},null,{"$f":"SUM(T512:T541)","v":0},null,{"$f":"SUM(V512:V541)","v":0},null,{"$f":"SUM(X512:X541)","v":0},null,{"$f":"SUM(Z512:Z541)","v":0},null,{"$f":"SUM(AB512:AB541)","v":0},null,{"$f":"SUM(AD512:AD541)","v":0},null,{"$f":"SUM(AF512:AF541)","v":0},null,{"$f":"SUM(AH512:AH541)","v":0},null,{"$f":"SUM(AJ512:AJ541)","v":0},null,{"$f":"SUM(AL512:AL541)","v":0},null,{"$f":"SUM(AN512:AN541)","v":0},null,{"$f":"SUM(AP512:AP541)","v":0},null,{"$f":"SUM(AR512:AR541)","v":0},null,{"$f":"SUM(AT512:AT541)","v":0},null,{"$f":"SUM(AV512:AV541)","v":0},null,{"$f":"SUM(AX512:AX541)","v":0},null,{"$f":"SUM(AZ512:AZ541)","v":0},null,{"$f":"SUM(BB512:BB541)","v":0},{"$f":"SUM(E542:BB542)","v":0}]
["TOTAL WORKDAYS",null,null,null,null,{"$f":"F542/8","v":0},null,{"$f":"H542/8","v":0},null,{"$f":"J542/8","v":0},null,{"$f":"L542/8","v":0},null,{"$f":"N542/8","v":0},null,{"$f":"P542/8","v":0},null,{"$f":"R542/8","v":0},null,{"$f":"T542/8","v":0},null,{"$f":"V542/8","v":0},null,{"$f":"X542/8","v":0},null,{"$f":"Z542/8","v":0},null,{"$f":"AB542/8","v":0},null,{"$f":"AD542/8","v":0},null,0,null,{"$f":"AH542/8","v":0},null,0,null,{"$f":"AL542/8","v":0},null,0,null,{"$f":"AP542/8","v":0},null,0,null,{"$f":"AT542/8","v":0},null,{"$f":"AV542/8","v":0},null,{"$f":"AX542/8","v":0},null,{"$f":"AZ542/8","v":0},null,{"$f":"BB542/8","v":0},{"$f":"SUM(E543:BB543)","v":0}]
["TOTAL RAW LABOR",null,null,null,null,{"$f":"$E$13*F542","v":0},null,{"$f":"$G$13*H542","v":0},null,{"$f":"$I$13*J542","v":0},null,{"$f":"$K$13*L542","v":0},null,{"$f":"$M$13*N542","v":0},null,{"$f":"$O$13*P542","v":0},null,{"$f":"$Q$13*R542","v":0},null,{"$f":"$S$13*T542","v":0},null,{"$f":"$U$13*V542","v":0},null,{"$f":"$W$13*X542","v":0},null,{"$f":"$Y$13*Z542","v":0},null,{"$f":"$AA$13*AB542","v":0},null,{"$f":"$AC$13*AD542","v":0},null,{"$f":"$AC$13*AF542","v":0},null,{"$f":"$AC$13*AH542","v":0},null,{"$f":"$AC$13*AJ542","v":0},null,{"$f":"$AC$13*AL542","v":0},null,{"$f":"$AC$13*AN542","v":0},null,{"$f":"$AC$13*AP542","v":0},null,{"$f":"$AC$13*AR542","v":0},null,{"$f":"$AC$13*AT542","v":0},null,{"$f":"$AC$13*AV542","v":0},null,{"$f":"$AC$13*AX542","v":0},null,{"$f":"$AC$13*AZ542","v":0},null,{"$f":"$AC$13*BB542","v":0},{"$f":"SUM(E544:BB544)","v":0}]
["Task 20.0     ","REPLACE FIELD WITH CATEGORY NAME OF YOUR CHOOSING HERE",null,null,null,null,null,null,null,null,null,null,null,null,null,null,null,null,null,null,null,null,null,null,null,null,null,null,null,null,null,null,null,null,null,null,null,null,null,null,null,null,null,null,null,null,null,null,null,null,null,null,null,null,{"$f":"IF(B545=\"REPLACE FIELD WITH CATEGORY NAME OF YOUR CHOOSING HERE\",0,\"\")","v":0}]
[null,null,null,null,{"$f":"IF($C$546=\"\",\"\",F546/$C$546)","v":""},null,{"$f":"IF($C$546=\"\",\"\",H546/$C$546)","v":""},null,{"$f":"IF($C$546=\"\",\"\",J546/$C$546)","v":""},null,{"$f":"IF($C$546=\"\",\"\",L546/$C$546)","v":""},null,{"$f":"IF($C$546=\"\",\"\",N546/$C$546)","v":""},null,{"$f":"IF($C$546=\"\",\"\",P546/$C$546)","v":""},null,{"$f":"IF($C$546=\"\",\"\",R546/$C$546)","v":""},null,{"$f":"IF($C$546=\"\",\"\",T546/$C$546)","v":""},null,{"$f":"IF($C$546=\"\",\"\",V546/$C$546)","v":""},null,{"$f":"IF($C$546=\"\",\"\",X546/$C$546)","v":""},null,{"$f":"IF($C$546=\"\",\"\",Z546/$C$546)","v":""},null,{"$f":"IF($C$546=\"\",\"\",AB546/$C$546)","v":""},null,{"$f":"IF($C$546=\"\",\"\",AD546/$C$546)","v":""},null,{"$f":"IF($C$546=\"\",\"\",AF546/$C$546)","v":""},null,{"$f":"IF($C$546=\"\",\"\",AH546/$C$546)","v":""},null,{"$f":"IF($C$546=\"\",\"\",AJ546/$C$546)","v":""},null,{"$f":"IF($C$546=\"\",\"\",AL546/$C$546)","v":""},null,{"$f":"IF($C$546=\"\",\"\",AN546/$C$546)","v":""},null,{"$f":"IF($C$546=\"\",\"\",AP546/$C$546)","v":""},null,{"$f":"IF($C$546=\"\",\"\",AR546/$C$546)","v":""},null,{"$f":"IF($C$546=\"\",\"\",AT546/$C$546)","v":""},null,{"$f":"IF($C$546=\"\",\"\",AV546/$C$546)","v":""},null,{"$f":"IF($C$546=\"\",\"\",AX546/$C$546)","v":""},null,{"$f":"IF($C$546=\"\",\"\",AZ546/$C$546)","v":""},null,{"$f":"IF($C$546=\"\",\"\",BB546/$C$546)","v":""},null,{"$f":"SUM(BB546,AZ546,AX546,AV546,AT546,AR546,AP546,AN546,AL546,AJ546,AH546,AF546,AD546,AB546,Z546,X546,V546,T546,R546,P546,N546,L546,J546,H546,F546)","v":0}]
[null,null,null,null,{"$f":"IF($C$547=\"\",\"\",F547/$C$547)","v":""},null,{"$f":"IF($C$547=\"\",\"\",H547/$C$547)","v":""},null,{"$f":"IF($C$547=\"\",\"\",J547/$C$547)","v":""},null,{"$f":"IF($C$547=\"\",\"\",L547/$C$547)","v":""},null,{"$f":"IF($C$547=\"\",\"\",N547/$C$547)","v":""},null,{"$f":"IF($C$547=\"\",\"\",P547/$C$547)","v":""},null,{"$f":"IF($C$547=\"\",\"\",R547/$C$547)","v":""},null,{"$f":"IF($C$547=\"\",\"\",T547/$C$547)","v":""},null,{"$f":"IF($C$547=\"\",\"\",V547/$C$547)","v":""},null,{"$f":"IF($C$547=\"\",\"\",X547/$C$547)","v":""},null,{"$f":"IF($C$547=\"\",\"\",Z547/$C$547)","v":""},null,{"$f":"IF($C$547=\"\",\"\",AB547/$C$547)","v":""},null,{"$f":"IF($C$547=\"\",\"\",AD547/$C$547)","v":""},null,{"$f":"IF($C$547=\"\",\"\",AF547/$C$547)","v":""},null,{"$f":"IF($C$547=\"\",\"\",AH547/$C$547)","v":""},null,{"$f":"IF($C$547=\"\",\"\",AJ547/$C$547)","v":""},null,{"$f":"IF($C$547=\"\",\"\",AL547/$C$547)","v":""},null,{"$f":"IF($C$547=\"\",\"\",AN547/$C$547)","v":""},null,{"$f":"IF($C$547=\"\",\"\",AP547/$C$547)","v":""},null,{"$f":"IF($C$547=\"\",\"\",AR547/$C$547)","v":""},null,{"$f":"IF($C$547=\"\",\"\",AT547/$C$547)","v":""},null,{"$f":"IF($C$547=\"\",\"\",AV547/$C$547)","v":""},null,{"$f":"IF($C$547=\"\",\"\",AX547/$C$547)","v":""},null,{"$f":"IF($C$547=\"\",\"\",AZ547/$C$547)","v":""},null,{"$f":"IF($C$547=\"\",\"\",BB547/$C$547)","v":""},null,0]
[null,null,null,null,{"$f":"IF($C$548=\"\",\"\",F548/$C$548)","v":""},null,{"$f":"IF($C$548=\"\",\"\",H548/$C$548)","v":""},null,{"$f":"IF($C$548=\"\",\"\",J548/$C$548)","v":""},null,{"$f":"IF($C$548=\"\",\"\",L548/$C$548)","v":""},null,{"$f":"IF($C$548=\"\",\"\",N548/$C$548)","v":""},null,{"$f":"IF($C$548=\"\",\"\",P548/$C$548)","v":""},null,{"$f":"IF($C$548=\"\",\"\",R548/$C$548)","v":""},null,{"$f":"IF($C$548=\"\",\"\",T548/$C$548)","v":""},null,{"$f":"IF($C$548=\"\",\"\",V548/$C$548)","v":""},null,{"$f":"IF($C$548=\"\",\"\",X548/$C$548)","v":""},null,{"$f":"IF($C$548=\"\",\"\",Z548/$C$548)","v":""},null,{"$f":"IF($C$548=\"\",\"\",AB548/$C$548)","v":""},null,{"$f":"IF($C$548=\"\",\"\",AD548/$C$548)","v":""},null,{"$f":"IF($C$548=\"\",\"\",AF548/$C$548)","v":""},null,{"$f":"IF($C$548=\"\",\"\",AH548/$C$548)","v":""},null,{"$f":"IF($C$548=\"\",\"\",AJ548/$C$548)","v":""},null,{"$f":"IF($C$548=\"\",\"\",AL548/$C$548)","v":""},null,{"$f":"IF($C$548=\"\",\"\",AN548/$C$548)","v":""},null,{"$f":"IF($C$548=\"\",\"\",AP548/$C$548)","v":""},null,{"$f":"IF($C$548=\"\",\"\",AR548/$C$548)","v":""},null,{"$f":"IF($C$548=\"\",\"\",AT548/$C$548)","v":""},null,{"$f":"IF($C$548=\"\",\"\",AV548/$C$548)","v":""},null,{"$f":"IF($C$548=\"\",\"\",AX548/$C$548)","v":""},null,{"$f":"IF($C$548=\"\",\"\",AZ548/$C$548)","v":""},null,{"$f":"IF($C$548=\"\",\"\",BB548/$C$548)","v":""},null,0]
[null,null,null,null,{"$f":"IF($C$549=\"\",\"\",F549/$C$549)","v":""},null,{"$f":"IF($C$549=\"\",\"\",H549/$C$549)","v":""},null,{"$f":"IF($C$549=\"\",\"\",J549/$C$549)","v":""},null,{"$f":"IF($C$549=\"\",\"\",L549/$C$549)","v":""},null,{"$f":"IF($C$549=\"\",\"\",N549/$C$549)","v":""},null,{"$f":"IF($C$549=\"\",\"\",P549/$C$549)","v":""},null,{"$f":"IF($C$549=\"\",\"\",R549/$C$549)","v":""},null,{"$f":"IF($C$549=\"\",\"\",T549/$C$549)","v":""},null,{"$f":"IF($C$549=\"\",\"\",V549/$C$549)","v":""},null,{"$f":"IF($C$549=\"\",\"\",X549/$C$549)","v":""},null,{"$f":"IF($C$549=\"\",\"\",Z549/$C$549)","v":""},null,{"$f":"IF($C$549=\"\",\"\",AB549/$C$549)","v":""},null,{"$f":"IF($C$549=\"\",\"\",AD549/$C$549)","v":""},null,{"$f":"IF($C$549=\"\",\"\",AF549/$C$549)","v":""},null,{"$f":"IF($C$549=\"\",\"\",AH549/$C$549)","v":""},null,{"$f":"IF($C$549=\"\",\"\",AJ549/$C$549)","v":""},null,{"$f":"IF($C$549=\"\",\"\",AL549/$C$549)","v":""},null,{"$f":"IF($C$549=\"\",\"\",AN549/$C$549)","v":""},null,{"$f":"IF($C$549=\"\",\"\",AP549/$C$549)","v":""},null,{"$f":"IF($C$549=\"\",\"\",AR549/$C$549)","v":""},null,{"$f":"IF($C$549=\"\",\"\",AT549/$C$549)","v":""},null,{"$f":"IF($C$549=\"\",\"\",AV549/$C$549)","v":""},null,{"$f":"IF($C$549=\"\",\"\",AX549/$C$549)","v":""},null,{"$f":"IF($C$549=\"\",\"\",AZ549/$C$549)","v":""},null,{"$f":"IF($C$549=\"\",\"\",BB549/$C$549)","v":""},null,0]
[null,null,null,null,{"$f":"IF($C$550=\"\",\"\",F550/$C$550)","v":""},null,{"$f":"IF($C$550=\"\",\"\",H550/$C$550)","v":""},null,{"$f":"IF($C$550=\"\",\"\",J550/$C$550)","v":""},null,{"$f":"IF($C$550=\"\",\"\",L550/$C$550)","v":""},null,{"$f":"IF($C$550=\"\",\"\",N550/$C$550)","v":""},null,{"$f":"IF($C$550=\"\",\"\",P550/$C$550)","v":""},null,{"$f":"IF($C$550=\"\",\"\",R550/$C$550)","v":""},null,{"$f":"IF($C$550=\"\",\"\",T550/$C$550)","v":""},null,{"$f":"IF($C$550=\"\",\"\",V550/$C$550)","v":""},null,{"$f":"IF($C$550=\"\",\"\",X550/$C$550)","v":""},null,{"$f":"IF($C$550=\"\",\"\",Z550/$C$550)","v":""},null,{"$f":"IF($C$550=\"\",\"\",AB550/$C$550)","v":""},null,{"$f":"IF($C$550=\"\",\"\",AD550/$C$550)","v":""},null,{"$f":"IF($C$550=\"\",\"\",AF550/$C$550)","v":""},null,{"$f":"IF($C$550=\"\",\"\",AH550/$C$550)","v":""},null,{"$f":"IF($C$550=\"\",\"\",AJ550/$C$550)","v":""},null,{"$f":"IF($C$550=\"\",\"\",AL550/$C$550)","v":""},null,{"$f":"IF($C$550=\"\",\"\",AN550/$C$550)","v":""},null,{"$f":"IF($C$550=\"\",\"\",AP550/$C$550)","v":""},null,{"$f":"IF($C$550=\"\",\"\",AR550/$C$550)","v":""},null,{"$f":"IF($C$550=\"\",\"\",AT550/$C$550)","v":""},null,{"$f":"IF($C$550=\"\",\"\",AV550/$C$550)","v":""},null,{"$f":"IF($C$550=\"\",\"\",AX550/$C$550)","v":""},null,{"$f":"IF($C$550=\"\",\"\",AZ550/$C$550)","v":""},null,{"$f":"IF($C$550=\"\",\"\",BB550/$C$550)","v":""},null,0]
[null,null,null,null,{"$f":"IF($C$551=\"\",\"\",F551/$C$551)","v":""},null,{"$f":"IF($C$551=\"\",\"\",H551/$C$551)","v":""},null,{"$f":"IF($C$551=\"\",\"\",J551/$C$551)","v":""},null,{"$f":"IF($C$551=\"\",\"\",L551/$C$551)","v":""},null,{"$f":"IF($C$551=\"\",\"\",N551/$C$551)","v":""},null,{"$f":"IF($C$551=\"\",\"\",P551/$C$551)","v":""},null,{"$f":"IF($C$551=\"\",\"\",R551/$C$551)","v":""},null,{"$f":"IF($C$551=\"\",\"\",T551/$C$551)","v":""},null,{"$f":"IF($C$551=\"\",\"\",V551/$C$551)","v":""},null,{"$f":"IF($C$551=\"\",\"\",X551/$C$551)","v":""},null,{"$f":"IF($C$551=\"\",\"\",Z551/$C$551)","v":""},null,{"$f":"IF($C$551=\"\",\"\",AB551/$C$551)","v":""},null,{"$f":"IF($C$551=\"\",\"\",AD551/$C$551)","v":""},null,{"$f":"IF($C$551=\"\",\"\",AF551/$C$551)","v":""},null,{"$f":"IF($C$551=\"\",\"\",AH551/$C$551)","v":""},null,{"$f":"IF($C$551=\"\",\"\",AJ551/$C$551)","v":""},null,{"$f":"IF($C$551=\"\",\"\",AL551/$C$551)","v":""},null,{"$f":"IF($C$551=\"\",\"\",AN551/$C$551)","v":""},null,{"$f":"IF($C$551=\"\",\"\",AP551/$C$551)","v":""},null,{"$f":"IF($C$551=\"\",\"\",AR551/$C$551)","v":""},null,{"$f":"IF($C$551=\"\",\"\",AT551/$C$551)","v":""},null,{"$f":"IF($C$551=\"\",\"\",AV551/$C$551)","v":""},null,{"$f":"IF($C$551=\"\",\"\",AX551/$C$551)","v":""},null,{"$f":"IF($C$551=\"\",\"\",AZ551/$C$551)","v":""},null,{"$f":"IF($C$551=\"\",\"\",BB551/$C$551)","v":""},null,0]
[null,null,null,null,{"$f":"IF($C$552=\"\",\"\",F552/$C$552)","v":""},null,{"$f":"IF($C$552=\"\",\"\",H552/$C$552)","v":""},null,{"$f":"IF($C$552=\"\",\"\",J552/$C$552)","v":""},null,{"$f":"IF($C$552=\"\",\"\",L552/$C$552)","v":""},null,{"$f":"IF($C$552=\"\",\"\",N552/$C$552)","v":""},null,{"$f":"IF($C$552=\"\",\"\",P552/$C$552)","v":""},null,{"$f":"IF($C$552=\"\",\"\",R552/$C$552)","v":""},null,{"$f":"IF($C$552=\"\",\"\",T552/$C$552)","v":""},null,{"$f":"IF($C$552=\"\",\"\",V552/$C$552)","v":""},null,{"$f":"IF($C$552=\"\",\"\",X552/$C$552)","v":""},null,{"$f":"IF($C$552=\"\",\"\",Z552/$C$552)","v":""},null,{"$f":"IF($C$552=\"\",\"\",AB552/$C$552)","v":""},null,{"$f":"IF($C$552=\"\",\"\",AD552/$C$552)","v":""},null,{"$f":"IF($C$552=\"\",\"\",AF552/$C$552)","v":""},null,{"$f":"IF($C$552=\"\",\"\",AH552/$C$552)","v":""},null,{"$f":"IF($C$552=\"\",\"\",AJ552/$C$552)","v":""},null,{"$f":"IF($C$552=\"\",\"\",AL552/$C$552)","v":""},null,{"$f":"IF($C$552=\"\",\"\",AN552/$C$552)","v":""},null,{"$f":"IF($C$552=\"\",\"\",AP552/$C$552)","v":""},null,{"$f":"IF($C$552=\"\",\"\",AR552/$C$552)","v":""},null,{"$f":"IF($C$552=\"\",\"\",AT552/$C$552)","v":""},null,{"$f":"IF($C$552=\"\",\"\",AV552/$C$552)","v":""},null,{"$f":"IF($C$552=\"\",\"\",AX552/$C$552)","v":""},null,{"$f":"IF($C$552=\"\",\"\",AZ552/$C$552)","v":""},null,{"$f":"IF($C$552=\"\",\"\",BB552/$C$552)","v":""},null,0]
[null,null,null,null,{"$f":"IF($C$553=\"\",\"\",F553/$C$553)","v":""},null,{"$f":"IF($C$553=\"\",\"\",H553/$C$553)","v":""},null,{"$f":"IF($C$553=\"\",\"\",J553/$C$553)","v":""},null,{"$f":"IF($C$553=\"\",\"\",L553/$C$553)","v":""},null,{"$f":"IF($C$553=\"\",\"\",N553/$C$553)","v":""},null,{"$f":"IF($C$553=\"\",\"\",P553/$C$553)","v":""},null,{"$f":"IF($C$553=\"\",\"\",R553/$C$553)","v":""},null,{"$f":"IF($C$553=\"\",\"\",T553/$C$553)","v":""},null,{"$f":"IF($C$553=\"\",\"\",V553/$C$553)","v":""},null,{"$f":"IF($C$553=\"\",\"\",X553/$C$553)","v":""},null,{"$f":"IF($C$553=\"\",\"\",Z553/$C$553)","v":""},null,{"$f":"IF($C$553=\"\",\"\",AB553/$C$553)","v":""},null,{"$f":"IF($C$553=\"\",\"\",AD553/$C$553)","v":""},null,{"$f":"IF($C$553=\"\",\"\",AF553/$C$553)","v":""},null,{"$f":"IF($C$553=\"\",\"\",AH553/$C$553)","v":""},null,{"$f":"IF($C$553=\"\",\"\",AJ553/$C$553)","v":""},null,{"$f":"IF($C$553=\"\",\"\",AL553/$C$553)","v":""},null,{"$f":"IF($C$553=\"\",\"\",AN553/$C$553)","v":""},null,{"$f":"IF($C$553=\"\",\"\",AP553/$C$553)","v":""},null,{"$f":"IF($C$553=\"\",\"\",AR553/$C$553)","v":""},null,{"$f":"IF($C$553=\"\",\"\",AT553/$C$553)","v":""},null,{"$f":"IF($C$553=\"\",\"\",AV553/$C$553)","v":""},null,{"$f":"IF($C$553=\"\",\"\",AX553/$C$553)","v":""},null,{"$f":"IF($C$553=\"\",\"\",AZ553/$C$553)","v":""},null,{"$f":"IF($C$553=\"\",\"\",BB553/$C$553)","v":""},null,0]
[null,null,null,null,{"$f":"IF($C$554=\"\",\"\",F554/$C$554)","v":""},null,{"$f":"IF($C$554=\"\",\"\",H554/$C$554)","v":""},null,{"$f":"IF($C$554=\"\",\"\",J554/$C$554)","v":""},null,{"$f":"IF($C$554=\"\",\"\",L554/$C$554)","v":""},null,{"$f":"IF($C$554=\"\",\"\",N554/$C$554)","v":""},null,{"$f":"IF($C$554=\"\",\"\",P554/$C$554)","v":""},null,{"$f":"IF($C$554=\"\",\"\",R554/$C$554)","v":""},null,{"$f":"IF($C$554=\"\",\"\",T554/$C$554)","v":""},null,{"$f":"IF($C$554=\"\",\"\",V554/$C$554)","v":""},null,{"$f":"IF($C$554=\"\",\"\",X554/$C$554)","v":""},null,{"$f":"IF($C$554=\"\",\"\",Z554/$C$554)","v":""},null,{"$f":"IF($C$554=\"\",\"\",AB554/$C$554)","v":""},null,{"$f":"IF($C$554=\"\",\"\",AD554/$C$554)","v":""},null,{"$f":"IF($C$554=\"\",\"\",AF554/$C$554)","v":""},null,{"$f":"IF($C$554=\"\",\"\",AH554/$C$554)","v":""},null,{"$f":"IF($C$554=\"\",\"\",AJ554/$C$554)","v":""},null,{"$f":"IF($C$554=\"\",\"\",AL554/$C$554)","v":""},null,{"$f":"IF($C$554=\"\",\"\",AN554/$C$554)","v":""},null,{"$f":"IF($C$554=\"\",\"\",AP554/$C$554)","v":""},null,{"$f":"IF($C$554=\"\",\"\",AR554/$C$554)","v":""},null,{"$f":"IF($C$554=\"\",\"\",AT554/$C$554)","v":""},null,{"$f":"IF($C$554=\"\",\"\",AV554/$C$554)","v":""},null,{"$f":"IF($C$554=\"\",\"\",AX554/$C$554)","v":""},null,{"$f":"IF($C$554=\"\",\"\",AZ554/$C$554)","v":""},null,{"$f":"IF($C$554=\"\",\"\",BB554/$C$554)","v":""},null,0]
[null,null,null,null,{"$f":"IF($C$555=\"\",\"\",F555/$C$555)","v":""},null,{"$f":"IF($C$555=\"\",\"\",H555/$C$555)","v":""},null,{"$f":"IF($C$555=\"\",\"\",J555/$C$555)","v":""},null,{"$f":"IF($C$555=\"\",\"\",L555/$C$555)","v":""},null,{"$f":"IF($C$555=\"\",\"\",N555/$C$555)","v":""},null,{"$f":"IF($C$555=\"\",\"\",P555/$C$555)","v":""},null,{"$f":"IF($C$555=\"\",\"\",R555/$C$555)","v":""},null,{"$f":"IF($C$555=\"\",\"\",T555/$C$555)","v":""},null,{"$f":"IF($C$555=\"\",\"\",V555/$C$555)","v":""},null,{"$f":"IF($C$555=\"\",\"\",X555/$C$555)","v":""},null,{"$f":"IF($C$555=\"\",\"\",Z555/$C$555)","v":""},null,{"$f":"IF($C$555=\"\",\"\",AB555/$C$555)","v":""},null,{"$f":"IF($C$555=\"\",\"\",AD555/$C$555)","v":""},null,{"$f":"IF($C$555=\"\",\"\",AF555/$C$555)","v":""},null,{"$f":"IF($C$555=\"\",\"\",AH555/$C$555)","v":""},null,{"$f":"IF($C$555=\"\",\"\",AJ555/$C$555)","v":""},null,{"$f":"IF($C$555=\"\",\"\",AL555/$C$555)","v":""},null,{"$f":"IF($C$555=\"\",\"\",AN555/$C$555)","v":""},null,{"$f":"IF($C$555=\"\",\"\",AP555/$C$555)","v":""},null,{"$f":"IF($C$555=\"\",\"\",AR555/$C$555)","v":""},null,{"$f":"IF($C$555=\"\",\"\",AT555/$C$555)","v":""},null,{"$f":"IF($C$555=\"\",\"\",AV555/$C$555)","v":""},null,{"$f":"IF($C$555=\"\",\"\",AX555/$C$555)","v":""},null,{"$f":"IF($C$555=\"\",\"\",AZ555/$C$555)","v":""},null,{"$f":"IF($C$555=\"\",\"\",BB555/$C$555)","v":""},null,0]
[null,null,null,null,{"$f":"IF($C$556=\"\",\"\",F556/$C$556)","v":""},null,{"$f":"IF($C$556=\"\",\"\",H556/$C$556)","v":""},null,{"$f":"IF($C$556=\"\",\"\",J556/$C$556)","v":""},null,{"$f":"IF($C$556=\"\",\"\",L556/$C$556)","v":""},null,{"$f":"IF($C$556=\"\",\"\",N556/$C$556)","v":""},null,{"$f":"IF($C$556=\"\",\"\",P556/$C$556)","v":""},null,{"$f":"IF($C$556=\"\",\"\",R556/$C$556)","v":""},null,{"$f":"IF($C$556=\"\",\"\",T556/$C$556)","v":""},null,{"$f":"IF($C$556=\"\",\"\",V556/$C$556)","v":""},null,{"$f":"IF($C$556=\"\",\"\",X556/$C$556)","v":""},null,{"$f":"IF($C$556=\"\",\"\",Z556/$C$556)","v":""},null,{"$f":"IF($C$556=\"\",\"\",AB556/$C$556)","v":""},null,{"$f":"IF($C$556=\"\",\"\",AD556/$C$556)","v":""},null,{"$f":"IF($C$556=\"\",\"\",AF556/$C$556)","v":""},null,{"$f":"IF($C$556=\"\",\"\",AH556/$C$556)","v":""},null,{"$f":"IF($C$556=\"\",\"\",AJ556/$C$556)","v":""},null,{"$f":"IF($C$556=\"\",\"\",AL556/$C$556)","v":""},null,{"$f":"IF($C$556=\"\",\"\",AN556/$C$556)","v":""},null,{"$f":"IF($C$556=\"\",\"\",AP556/$C$556)","v":""},null,{"$f":"IF($C$556=\"\",\"\",AR556/$C$556)","v":""},null,{"$f":"IF($C$556=\"\",\"\",AT556/$C$556)","v":""},null,{"$f":"IF($C$556=\"\",\"\",AV556/$C$556)","v":""},null,{"$f":"IF($C$556=\"\",\"\",AX556/$C$556)","v":""},null,{"$f":"IF($C$556=\"\",\"\",AZ556/$C$556)","v":""},null,{"$f":"IF($C$556=\"\",\"\",BB556/$C$556)","v":""},null,0]
[null,null,null,null,{"$f":"IF($C$557=\"\",\"\",F557/$C$557)","v":""},null,{"$f":"IF($C$557=\"\",\"\",H557/$C$557)","v":""},null,{"$f":"IF($C$557=\"\",\"\",J557/$C$557)","v":""},null,{"$f":"IF($C$557=\"\",\"\",L557/$C$557)","v":""},null,{"$f":"IF($C$557=\"\",\"\",N557/$C$557)","v":""},null,{"$f":"IF($C$557=\"\",\"\",P557/$C$557)","v":""},null,{"$f":"IF($C$557=\"\",\"\",R557/$C$557)","v":""},null,{"$f":"IF($C$557=\"\",\"\",T557/$C$557)","v":""},null,{"$f":"IF($C$557=\"\",\"\",V557/$C$557)","v":""},null,{"$f":"IF($C$557=\"\",\"\",X557/$C$557)","v":""},null,{"$f":"IF($C$557=\"\",\"\",Z557/$C$557)","v":""},null,{"$f":"IF($C$557=\"\",\"\",AB557/$C$557)","v":""},null,{"$f":"IF($C$557=\"\",\"\",AD557/$C$557)","v":""},null,{"$f":"IF($C$557=\"\",\"\",AF557/$C$557)","v":""},null,{"$f":"IF($C$557=\"\",\"\",AH557/$C$557)","v":""},null,{"$f":"IF($C$557=\"\",\"\",AJ557/$C$557)","v":""},null,{"$f":"IF($C$557=\"\",\"\",AL557/$C$557)","v":""},null,{"$f":"IF($C$557=\"\",\"\",AN557/$C$557)","v":""},null,{"$f":"IF($C$557=\"\",\"\",AP557/$C$557)","v":""},null,{"$f":"IF($C$557=\"\",\"\",AR557/$C$557)","v":""},null,{"$f":"IF($C$557=\"\",\"\",AT557/$C$557)","v":""},null,{"$f":"IF($C$557=\"\",\"\",AV557/$C$557)","v":""},null,{"$f":"IF($C$557=\"\",\"\",AX557/$C$557)","v":""},null,{"$f":"IF($C$557=\"\",\"\",AZ557/$C$557)","v":""},null,{"$f":"IF($C$557=\"\",\"\",BB557/$C$557)","v":""},null,0]
[null,null,null,null,{"$f":"IF($C$558=\"\",\"\",F558/$C$558)","v":""},null,{"$f":"IF($C$558=\"\",\"\",H558/$C$558)","v":""},null,{"$f":"IF($C$558=\"\",\"\",J558/$C$558)","v":""},null,{"$f":"IF($C$558=\"\",\"\",L558/$C$558)","v":""},null,{"$f":"IF($C$558=\"\",\"\",N558/$C$558)","v":""},null,{"$f":"IF($C$558=\"\",\"\",P558/$C$558)","v":""},null,{"$f":"IF($C$558=\"\",\"\",R558/$C$558)","v":""},null,{"$f":"IF($C$558=\"\",\"\",T558/$C$558)","v":""},null,{"$f":"IF($C$558=\"\",\"\",V558/$C$558)","v":""},null,{"$f":"IF($C$558=\"\",\"\",X558/$C$558)","v":""},null,{"$f":"IF($C$558=\"\",\"\",Z558/$C$558)","v":""},null,{"$f":"IF($C$558=\"\",\"\",AB558/$C$558)","v":""},null,{"$f":"IF($C$558=\"\",\"\",AD558/$C$558)","v":""},null,{"$f":"IF($C$558=\"\",\"\",AF558/$C$558)","v":""},null,{"$f":"IF($C$558=\"\",\"\",AH558/$C$558)","v":""},null,{"$f":"IF($C$558=\"\",\"\",AJ558/$C$558)","v":""},null,{"$f":"IF($C$558=\"\",\"\",AL558/$C$558)","v":""},null,{"$f":"IF($C$558=\"\",\"\",AN558/$C$558)","v":""},null,{"$f":"IF($C$558=\"\",\"\",AP558/$C$558)","v":""},null,{"$f":"IF($C$558=\"\",\"\",AR558/$C$558)","v":""},null,{"$f":"IF($C$558=\"\",\"\",AT558/$C$558)","v":""},null,{"$f":"IF($C$558=\"\",\"\",AV558/$C$558)","v":""},null,{"$f":"IF($C$558=\"\",\"\",AX558/$C$558)","v":""},null,{"$f":"IF($C$558=\"\",\"\",AZ558/$C$558)","v":""},null,{"$f":"IF($C$558=\"\",\"\",BB558/$C$558)","v":""},null,0]
[null,null,null,null,{"$f":"IF($C$559=\"\",\"\",F559/$C$559)","v":""},null,{"$f":"IF($C$559=\"\",\"\",H559/$C$559)","v":""},null,{"$f":"IF($C$559=\"\",\"\",J559/$C$559)","v":""},null,{"$f":"IF($C$559=\"\",\"\",L559/$C$559)","v":""},null,{"$f":"IF($C$559=\"\",\"\",N559/$C$559)","v":""},null,{"$f":"IF($C$559=\"\",\"\",P559/$C$559)","v":""},null,{"$f":"IF($C$559=\"\",\"\",R559/$C$559)","v":""},null,{"$f":"IF($C$559=\"\",\"\",T559/$C$559)","v":""},null,{"$f":"IF($C$559=\"\",\"\",V559/$C$559)","v":""},null,{"$f":"IF($C$559=\"\",\"\",X559/$C$559)","v":""},null,{"$f":"IF($C$559=\"\",\"\",Z559/$C$559)","v":""},null,{"$f":"IF($C$559=\"\",\"\",AB559/$C$559)","v":""},null,{"$f":"IF($C$559=\"\",\"\",AD559/$C$559)","v":""},null,{"$f":"IF($C$559=\"\",\"\",AF559/$C$559)","v":""},null,{"$f":"IF($C$559=\"\",\"\",AH559/$C$559)","v":""},null,{"$f":"IF($C$559=\"\",\"\",AJ559/$C$559)","v":""},null,{"$f":"IF($C$559=\"\",\"\",AL559/$C$559)","v":""},null,{"$f":"IF($C$559=\"\",\"\",AN559/$C$559)","v":""},null,{"$f":"IF($C$559=\"\",\"\",AP559/$C$559)","v":""},null,{"$f":"IF($C$559=\"\",\"\",AR559/$C$559)","v":""},null,{"$f":"IF($C$559=\"\",\"\",AT559/$C$559)","v":""},null,{"$f":"IF($C$559=\"\",\"\",AV559/$C$559)","v":""},null,{"$f":"IF($C$559=\"\",\"\",AX559/$C$559)","v":""},null,{"$f":"IF($C$559=\"\",\"\",AZ559/$C$559)","v":""},null,{"$f":"IF($C$559=\"\",\"\",BB559/$C$559)","v":""},null,0]
[null,null,null,null,{"$f":"IF($C$560=\"\",\"\",F560/$C$560)","v":""},null,{"$f":"IF($C$560=\"\",\"\",H560/$C$560)","v":""},null,{"$f":"IF($C$560=\"\",\"\",J560/$C$560)","v":""},null,{"$f":"IF($C$560=\"\",\"\",L560/$C$560)","v":""},null,{"$f":"IF($C$560=\"\",\"\",N560/$C$560)","v":""},null,{"$f":"IF($C$560=\"\",\"\",P560/$C$560)","v":""},null,{"$f":"IF($C$560=\"\",\"\",R560/$C$560)","v":""},null,{"$f":"IF($C$560=\"\",\"\",T560/$C$560)","v":""},null,{"$f":"IF($C$560=\"\",\"\",V560/$C$560)","v":""},null,{"$f":"IF($C$560=\"\",\"\",X560/$C$560)","v":""},null,{"$f":"IF($C$560=\"\",\"\",Z560/$C$560)","v":""},null,{"$f":"IF($C$560=\"\",\"\",AB560/$C$560)","v":""},null,{"$f":"IF($C$560=\"\",\"\",AD560/$C$560)","v":""},null,{"$f":"IF($C$560=\"\",\"\",AF560/$C$560)","v":""},null,{"$f":"IF($C$560=\"\",\"\",AH560/$C$560)","v":""},null,{"$f":"IF($C$560=\"\",\"\",AJ560/$C$560)","v":""},null,{"$f":"IF($C$560=\"\",\"\",AL560/$C$560)","v":""},null,{"$f":"IF($C$560=\"\",\"\",AN560/$C$560)","v":""},null,{"$f":"IF($C$560=\"\",\"\",AP560/$C$560)","v":""},null,{"$f":"IF($C$560=\"\",\"\",AR560/$C$560)","v":""},null,{"$f":"IF($C$560=\"\",\"\",AT560/$C$560)","v":""},null,{"$f":"IF($C$560=\"\",\"\",AV560/$C$560)","v":""},null,{"$f":"IF($C$560=\"\",\"\",AX560/$C$560)","v":""},null,{"$f":"IF($C$560=\"\",\"\",AZ560/$C$560)","v":""},null,{"$f":"IF($C$560=\"\",\"\",BB560/$C$560)","v":""},null,0]
[null,null,null,null,{"$f":"IF($C$561=\"\",\"\",F561/$C$561)","v":""},null,{"$f":"IF($C$561=\"\",\"\",H561/$C$561)","v":""},null,{"$f":"IF($C$561=\"\",\"\",J561/$C$561)","v":""},null,{"$f":"IF($C$561=\"\",\"\",L561/$C$561)","v":""},null,{"$f":"IF($C$561=\"\",\"\",N561/$C$561)","v":""},null,{"$f":"IF($C$561=\"\",\"\",P561/$C$561)","v":""},null,{"$f":"IF($C$561=\"\",\"\",R561/$C$561)","v":""},null,{"$f":"IF($C$561=\"\",\"\",T561/$C$561)","v":""},null,{"$f":"IF($C$561=\"\",\"\",V561/$C$561)","v":""},null,{"$f":"IF($C$561=\"\",\"\",X561/$C$561)","v":""},null,{"$f":"IF($C$561=\"\",\"\",Z561/$C$561)","v":""},null,{"$f":"IF($C$561=\"\",\"\",AB561/$C$561)","v":""},null,{"$f":"IF($C$561=\"\",\"\",AD561/$C$561)","v":""},null,{"$f":"IF($C$561=\"\",\"\",AF561/$C$561)","v":""},null,{"$f":"IF($C$561=\"\",\"\",AH561/$C$561)","v":""},null,{"$f":"IF($C$561=\"\",\"\",AJ561/$C$561)","v":""},null,{"$f":"IF($C$561=\"\",\"\",AL561/$C$561)","v":""},null,{"$f":"IF($C$561=\"\",\"\",AN561/$C$561)","v":""},null,{"$f":"IF($C$561=\"\",\"\",AP561/$C$561)","v":""},null,{"$f":"IF($C$561=\"\",\"\",AR561/$C$561)","v":""},null,{"$f":"IF($C$561=\"\",\"\",AT561/$C$561)","v":""},null,{"$f":"IF($C$561=\"\",\"\",AV561/$C$561)","v":""},null,{"$f":"IF($C$561=\"\",\"\",AX561/$C$561)","v":""},null,{"$f":"IF($C$561=\"\",\"\",AZ561/$C$561)","v":""},null,{"$f":"IF($C$561=\"\",\"\",BB561/$C$561)","v":""},null,0]
[null,null,null,null,{"$f":"IF($C$562=\"\",\"\",F562/$C$562)","v":""},null,{"$f":"IF($C$562=\"\",\"\",H562/$C$562)","v":""},null,{"$f":"IF($C$562=\"\",\"\",J562/$C$562)","v":""},null,{"$f":"IF($C$562=\"\",\"\",L562/$C$562)","v":""},null,{"$f":"IF($C$562=\"\",\"\",N562/$C$562)","v":""},null,{"$f":"IF($C$562=\"\",\"\",P562/$C$562)","v":""},null,{"$f":"IF($C$562=\"\",\"\",R562/$C$562)","v":""},null,{"$f":"IF($C$562=\"\",\"\",T562/$C$562)","v":""},null,{"$f":"IF($C$562=\"\",\"\",V562/$C$562)","v":""},null,{"$f":"IF($C$562=\"\",\"\",X562/$C$562)","v":""},null,{"$f":"IF($C$562=\"\",\"\",Z562/$C$562)","v":""},null,{"$f":"IF($C$562=\"\",\"\",AB562/$C$562)","v":""},null,{"$f":"IF($C$562=\"\",\"\",AD562/$C$562)","v":""},null,{"$f":"IF($C$562=\"\",\"\",AF562/$C$562)","v":""},null,{"$f":"IF($C$562=\"\",\"\",AH562/$C$562)","v":""},null,{"$f":"IF($C$562=\"\",\"\",AJ562/$C$562)","v":""},null,{"$f":"IF($C$562=\"\",\"\",AL562/$C$562)","v":""},null,{"$f":"IF($C$562=\"\",\"\",AN562/$C$562)","v":""},null,{"$f":"IF($C$562=\"\",\"\",AP562/$C$562)","v":""},null,{"$f":"IF($C$562=\"\",\"\",AR562/$C$562)","v":""},null,{"$f":"IF($C$562=\"\",\"\",AT562/$C$562)","v":""},null,{"$f":"IF($C$562=\"\",\"\",AV562/$C$562)","v":""},null,{"$f":"IF($C$562=\"\",\"\",AX562/$C$562)","v":""},null,{"$f":"IF($C$562=\"\",\"\",AZ562/$C$562)","v":""},null,{"$f":"IF($C$562=\"\",\"\",BB562/$C$562)","v":""},null,0]
[null,null,null,null,{"$f":"IF($C$563=\"\",\"\",F563/$C$563)","v":""},null,{"$f":"IF($C$563=\"\",\"\",H563/$C$563)","v":""},null,{"$f":"IF($C$563=\"\",\"\",J563/$C$563)","v":""},null,{"$f":"IF($C$563=\"\",\"\",L563/$C$563)","v":""},null,{"$f":"IF($C$563=\"\",\"\",N563/$C$563)","v":""},null,{"$f":"IF($C$563=\"\",\"\",P563/$C$563)","v":""},null,{"$f":"IF($C$563=\"\",\"\",R563/$C$563)","v":""},null,{"$f":"IF($C$563=\"\",\"\",T563/$C$563)","v":""},null,{"$f":"IF($C$563=\"\",\"\",V563/$C$563)","v":""},null,{"$f":"IF($C$563=\"\",\"\",X563/$C$563)","v":""},null,{"$f":"IF($C$563=\"\",\"\",Z563/$C$563)","v":""},null,{"$f":"IF($C$563=\"\",\"\",AB563/$C$563)","v":""},null,{"$f":"IF($C$563=\"\",\"\",AD563/$C$563)","v":""},null,{"$f":"IF($C$563=\"\",\"\",AF563/$C$563)","v":""},null,{"$f":"IF($C$563=\"\",\"\",AH563/$C$563)","v":""},null,{"$f":"IF($C$563=\"\",\"\",AJ563/$C$563)","v":""},null,{"$f":"IF($C$563=\"\",\"\",AL563/$C$563)","v":""},null,{"$f":"IF($C$563=\"\",\"\",AN563/$C$563)","v":""},null,{"$f":"IF($C$563=\"\",\"\",AP563/$C$563)","v":""},null,{"$f":"IF($C$563=\"\",\"\",AR563/$C$563)","v":""},null,{"$f":"IF($C$563=\"\",\"\",AT563/$C$563)","v":""},null,{"$f":"IF($C$563=\"\",\"\",AV563/$C$563)","v":""},null,{"$f":"IF($C$563=\"\",\"\",AX563/$C$563)","v":""},null,{"$f":"IF($C$563=\"\",\"\",AZ563/$C$563)","v":""},null,{"$f":"IF($C$563=\"\",\"\",BB563/$C$563)","v":""},null,0]
[null,null,null,null,{"$f":"IF($C$564=\"\",\"\",F564/$C$564)","v":""},null,{"$f":"IF($C$564=\"\",\"\",H564/$C$564)","v":""},null,{"$f":"IF($C$564=\"\",\"\",J564/$C$564)","v":""},null,{"$f":"IF($C$564=\"\",\"\",L564/$C$564)","v":""},null,{"$f":"IF($C$564=\"\",\"\",N564/$C$564)","v":""},null,{"$f":"IF($C$564=\"\",\"\",P564/$C$564)","v":""},null,{"$f":"IF($C$564=\"\",\"\",R564/$C$564)","v":""},null,{"$f":"IF($C$564=\"\",\"\",T564/$C$564)","v":""},null,{"$f":"IF($C$564=\"\",\"\",V564/$C$564)","v":""},null,{"$f":"IF($C$564=\"\",\"\",X564/$C$564)","v":""},null,{"$f":"IF($C$564=\"\",\"\",Z564/$C$564)","v":""},null,{"$f":"IF($C$564=\"\",\"\",AB564/$C$564)","v":""},null,{"$f":"IF($C$564=\"\",\"\",AD564/$C$564)","v":""},null,{"$f":"IF($C$564=\"\",\"\",AF564/$C$564)","v":""},null,{"$f":"IF($C$564=\"\",\"\",AH564/$C$564)","v":""},null,{"$f":"IF($C$564=\"\",\"\",AJ564/$C$564)","v":""},null,{"$f":"IF($C$564=\"\",\"\",AL564/$C$564)","v":""},null,{"$f":"IF($C$564=\"\",\"\",AN564/$C$564)","v":""},null,{"$f":"IF($C$564=\"\",\"\",AP564/$C$564)","v":""},null,{"$f":"IF($C$564=\"\",\"\",AR564/$C$564)","v":""},null,{"$f":"IF($C$564=\"\",\"\",AT564/$C$564)","v":""},null,{"$f":"IF($C$564=\"\",\"\",AV564/$C$564)","v":""},null,{"$f":"IF($C$564=\"\",\"\",AX564/$C$564)","v":""},null,{"$f":"IF($C$564=\"\",\"\",AZ564/$C$564)","v":""},null,{"$f":"IF($C$564=\"\",\"\",BB564/$C$564)","v":""},null,0]
[null,null,null,null,{"$f":"IF($C$565=\"\",\"\",F565/$C$565)","v":""},null,{"$f":"IF($C$565=\"\",\"\",H565/$C$565)","v":""},null,{"$f":"IF($C$565=\"\",\"\",J565/$C$565)","v":""},null,{"$f":"IF($C$565=\"\",\"\",L565/$C$565)","v":""},null,{"$f":"IF($C$565=\"\",\"\",N565/$C$565)","v":""},null,{"$f":"IF($C$565=\"\",\"\",P565/$C$565)","v":""},null,{"$f":"IF($C$565=\"\",\"\",R565/$C$565)","v":""},null,{"$f":"IF($C$565=\"\",\"\",T565/$C$565)","v":""},null,{"$f":"IF($C$565=\"\",\"\",V565/$C$565)","v":""},null,{"$f":"IF($C$565=\"\",\"\",X565/$C$565)","v":""},null,{"$f":"IF($C$565=\"\",\"\",Z565/$C$565)","v":""},null,{"$f":"IF($C$565=\"\",\"\",AB565/$C$565)","v":""},null,{"$f":"IF($C$565=\"\",\"\",AD565/$C$565)","v":""},null,{"$f":"IF($C$565=\"\",\"\",AF565/$C$565)","v":""},null,{"$f":"IF($C$565=\"\",\"\",AH565/$C$565)","v":""},null,{"$f":"IF($C$565=\"\",\"\",AJ565/$C$565)","v":""},null,{"$f":"IF($C$565=\"\",\"\",AL565/$C$565)","v":""},null,{"$f":"IF($C$565=\"\",\"\",AN565/$C$565)","v":""},null,{"$f":"IF($C$565=\"\",\"\",AP565/$C$565)","v":""},null,{"$f":"IF($C$565=\"\",\"\",AR565/$C$565)","v":""},null,{"$f":"IF($C$565=\"\",\"\",AT565/$C$565)","v":""},null,{"$f":"IF($C$565=\"\",\"\",AV565/$C$565)","v":""},null,{"$f":"IF($C$565=\"\",\"\",AX565/$C$565)","v":""},null,{"$f":"IF($C$565=\"\",\"\",AZ565/$C$565)","v":""},null,{"$f":"IF($C$565=\"\",\"\",BB565/$C$565)","v":""},null,0]
[null,null,null,null,{"$f":"IF($C$566=\"\",\"\",F566/$C$566)","v":""},null,{"$f":"IF($C$566=\"\",\"\",H566/$C$566)","v":""},null,{"$f":"IF($C$566=\"\",\"\",J566/$C$566)","v":""},null,{"$f":"IF($C$566=\"\",\"\",L566/$C$566)","v":""},null,{"$f":"IF($C$566=\"\",\"\",N566/$C$566)","v":""},null,{"$f":"IF($C$566=\"\",\"\",P566/$C$566)","v":""},null,{"$f":"IF($C$566=\"\",\"\",R566/$C$566)","v":""},null,{"$f":"IF($C$566=\"\",\"\",T566/$C$566)","v":""},null,{"$f":"IF($C$566=\"\",\"\",V566/$C$566)","v":""},null,{"$f":"IF($C$566=\"\",\"\",X566/$C$566)","v":""},null,{"$f":"IF($C$566=\"\",\"\",Z566/$C$566)","v":""},null,{"$f":"IF($C$566=\"\",\"\",AB566/$C$566)","v":""},null,{"$f":"IF($C$566=\"\",\"\",AD566/$C$566)","v":""},null,{"$f":"IF($C$566=\"\",\"\",AF566/$C$566)","v":""},null,{"$f":"IF($C$566=\"\",\"\",AH566/$C$566)","v":""},null,{"$f":"IF($C$566=\"\",\"\",AJ566/$C$566)","v":""},null,{"$f":"IF($C$566=\"\",\"\",AL566/$C$566)","v":""},null,{"$f":"IF($C$566=\"\",\"\",AN566/$C$566)","v":""},null,{"$f":"IF($C$566=\"\",\"\",AP566/$C$566)","v":""},null,{"$f":"IF($C$566=\"\",\"\",AR566/$C$566)","v":""},null,{"$f":"IF($C$566=\"\",\"\",AT566/$C$566)","v":""},null,{"$f":"IF($C$566=\"\",\"\",AV566/$C$566)","v":""},null,{"$f":"IF($C$566=\"\",\"\",AX566/$C$566)","v":""},null,{"$f":"IF($C$566=\"\",\"\",AZ566/$C$566)","v":""},null,{"$f":"IF($C$566=\"\",\"\",BB566/$C$566)","v":""},null,0]
[null,null,null,null,{"$f":"IF($C$567=\"\",\"\",F567/$C$567)","v":""},null,{"$f":"IF($C$567=\"\",\"\",H567/$C$567)","v":""},null,{"$f":"IF($C$567=\"\",\"\",J567/$C$567)","v":""},null,{"$f":"IF($C$567=\"\",\"\",L567/$C$567)","v":""},null,{"$f":"IF($C$567=\"\",\"\",N567/$C$567)","v":""},null,{"$f":"IF($C$567=\"\",\"\",P567/$C$567)","v":""},null,{"$f":"IF($C$567=\"\",\"\",R567/$C$567)","v":""},null,{"$f":"IF($C$567=\"\",\"\",T567/$C$567)","v":""},null,{"$f":"IF($C$567=\"\",\"\",V567/$C$567)","v":""},null,{"$f":"IF($C$567=\"\",\"\",X567/$C$567)","v":""},null,{"$f":"IF($C$567=\"\",\"\",Z567/$C$567)","v":""},null,{"$f":"IF($C$567=\"\",\"\",AB567/$C$567)","v":""},null,{"$f":"IF($C$567=\"\",\"\",AD567/$C$567)","v":""},null,{"$f":"IF($C$567=\"\",\"\",AF567/$C$567)","v":""},null,{"$f":"IF($C$567=\"\",\"\",AH567/$C$567)","v":""},null,{"$f":"IF($C$567=\"\",\"\",AJ567/$C$567)","v":""},null,{"$f":"IF($C$567=\"\",\"\",AL567/$C$567)","v":""},null,{"$f":"IF($C$567=\"\",\"\",AN567/$C$567)","v":""},null,{"$f":"IF($C$567=\"\",\"\",AP567/$C$567)","v":""},null,{"$f":"IF($C$567=\"\",\"\",AR567/$C$567)","v":""},null,{"$f":"IF($C$567=\"\",\"\",AT567/$C$567)","v":""},null,{"$f":"IF($C$567=\"\",\"\",AV567/$C$567)","v":""},null,{"$f":"IF($C$567=\"\",\"\",AX567/$C$567)","v":""},null,{"$f":"IF($C$567=\"\",\"\",AZ567/$C$567)","v":""},null,{"$f":"IF($C$567=\"\",\"\",BB567/$C$567)","v":""},null,0]
[null,null,null,null,{"$f":"IF($C$568=\"\",\"\",F568/$C$568)","v":""},null,{"$f":"IF($C$568=\"\",\"\",H568/$C$568)","v":""},null,{"$f":"IF($C$568=\"\",\"\",J568/$C$568)","v":""},null,{"$f":"IF($C$568=\"\",\"\",L568/$C$568)","v":""},null,{"$f":"IF($C$568=\"\",\"\",N568/$C$568)","v":""},null,{"$f":"IF($C$568=\"\",\"\",P568/$C$568)","v":""},null,{"$f":"IF($C$568=\"\",\"\",R568/$C$568)","v":""},null,{"$f":"IF($C$568=\"\",\"\",T568/$C$568)","v":""},null,{"$f":"IF($C$568=\"\",\"\",V568/$C$568)","v":""},null,{"$f":"IF($C$568=\"\",\"\",X568/$C$568)","v":""},null,{"$f":"IF($C$568=\"\",\"\",Z568/$C$568)","v":""},null,{"$f":"IF($C$568=\"\",\"\",AB568/$C$568)","v":""},null,{"$f":"IF($C$568=\"\",\"\",AD568/$C$568)","v":""},null,{"$f":"IF($C$568=\"\",\"\",AF568/$C$568)","v":""},null,{"$f":"IF($C$568=\"\",\"\",AH568/$C$568)","v":""},null,{"$f":"IF($C$568=\"\",\"\",AJ568/$C$568)","v":""},null,{"$f":"IF($C$568=\"\",\"\",AL568/$C$568)","v":""},null,{"$f":"IF($C$568=\"\",\"\",AN568/$C$568)","v":""},null,{"$f":"IF($C$568=\"\",\"\",AP568/$C$568)","v":""},null,{"$f":"IF($C$568=\"\",\"\",AR568/$C$568)","v":""},null,{"$f":"IF($C$568=\"\",\"\",AT568/$C$568)","v":""},null,{"$f":"IF($C$568=\"\",\"\",AV568/$C$568)","v":""},null,{"$f":"IF($C$568=\"\",\"\",AX568/$C$568)","v":""},null,{"$f":"IF($C$568=\"\",\"\",AZ568/$C$568)","v":""},null,{"$f":"IF($C$568=\"\",\"\",BB568/$C$568)","v":""},null,0]
[null,null,null,null,{"$f":"IF($C$569=\"\",\"\",F569/$C$569)","v":""},null,{"$f":"IF($C$569=\"\",\"\",H569/$C$569)","v":""},null,{"$f":"IF($C$569=\"\",\"\",J569/$C$569)","v":""},null,{"$f":"IF($C$569=\"\",\"\",L569/$C$569)","v":""},null,{"$f":"IF($C$569=\"\",\"\",N569/$C$569)","v":""},null,{"$f":"IF($C$569=\"\",\"\",P569/$C$569)","v":""},null,{"$f":"IF($C$569=\"\",\"\",R569/$C$569)","v":""},null,{"$f":"IF($C$569=\"\",\"\",T569/$C$569)","v":""},null,{"$f":"IF($C$569=\"\",\"\",V569/$C$569)","v":""},null,{"$f":"IF($C$569=\"\",\"\",X569/$C$569)","v":""},null,{"$f":"IF($C$569=\"\",\"\",Z569/$C$569)","v":""},null,{"$f":"IF($C$569=\"\",\"\",AB569/$C$569)","v":""},null,{"$f":"IF($C$569=\"\",\"\",AD569/$C$569)","v":""},null,{"$f":"IF($C$569=\"\",\"\",AF569/$C$569)","v":""},null,{"$f":"IF($C$569=\"\",\"\",AH569/$C$569)","v":""},null,{"$f":"IF($C$569=\"\",\"\",AJ569/$C$569)","v":""},null,{"$f":"IF($C$569=\"\",\"\",AL569/$C$569)","v":""},null,{"$f":"IF($C$569=\"\",\"\",AN569/$C$569)","v":""},null,{"$f":"IF($C$569=\"\",\"\",AP569/$C$569)","v":""},null,{"$f":"IF($C$569=\"\",\"\",AR569/$C$569)","v":""},null,{"$f":"IF($C$569=\"\",\"\",AT569/$C$569)","v":""},null,{"$f":"IF($C$569=\"\",\"\",AV569/$C$569)","v":""},null,{"$f":"IF($C$569=\"\",\"\",AX569/$C$569)","v":""},null,{"$f":"IF($C$569=\"\",\"\",AZ569/$C$569)","v":""},null,{"$f":"IF($C$569=\"\",\"\",BB569/$C$569)","v":""},null,0]
[null,null,null,null,{"$f":"IF($C$570=\"\",\"\",F570/$C$570)","v":""},null,{"$f":"IF($C$570=\"\",\"\",H570/$C$570)","v":""},null,{"$f":"IF($C$570=\"\",\"\",J570/$C$570)","v":""},null,{"$f":"IF($C$570=\"\",\"\",L570/$C$570)","v":""},null,{"$f":"IF($C$570=\"\",\"\",N570/$C$570)","v":""},null,{"$f":"IF($C$570=\"\",\"\",P570/$C$570)","v":""},null,{"$f":"IF($C$570=\"\",\"\",R570/$C$570)","v":""},null,{"$f":"IF($C$570=\"\",\"\",T570/$C$570)","v":""},null,{"$f":"IF($C$570=\"\",\"\",V570/$C$570)","v":""},null,{"$f":"IF($C$570=\"\",\"\",X570/$C$570)","v":""},null,{"$f":"IF($C$570=\"\",\"\",Z570/$C$570)","v":""},null,{"$f":"IF($C$570=\"\",\"\",AB570/$C$570)","v":""},null,{"$f":"IF($C$570=\"\",\"\",AD570/$C$570)","v":""},null,{"$f":"IF($C$570=\"\",\"\",AF570/$C$570)","v":""},null,{"$f":"IF($C$570=\"\",\"\",AH570/$C$570)","v":""},null,{"$f":"IF($C$570=\"\",\"\",AJ570/$C$570)","v":""},null,{"$f":"IF($C$570=\"\",\"\",AL570/$C$570)","v":""},null,{"$f":"IF($C$570=\"\",\"\",AN570/$C$570)","v":""},null,{"$f":"IF($C$570=\"\",\"\",AP570/$C$570)","v":""},null,{"$f":"IF($C$570=\"\",\"\",AR570/$C$570)","v":""},null,{"$f":"IF($C$570=\"\",\"\",AT570/$C$570)","v":""},null,{"$f":"IF($C$570=\"\",\"\",AV570/$C$570)","v":""},null,{"$f":"IF($C$570=\"\",\"\",AX570/$C$570)","v":""},null,{"$f":"IF($C$570=\"\",\"\",AZ570/$C$570)","v":""},null,{"$f":"IF($C$570=\"\",\"\",BB570/$C$570)","v":""},null,0]
[null,null,null,null,{"$f":"IF($C$571=\"\",\"\",F571/$C$571)","v":""},null,{"$f":"IF($C$571=\"\",\"\",H571/$C$571)","v":""},null,{"$f":"IF($C$571=\"\",\"\",J571/$C$571)","v":""},null,{"$f":"IF($C$571=\"\",\"\",L571/$C$571)","v":""},null,{"$f":"IF($C$571=\"\",\"\",N571/$C$571)","v":""},null,{"$f":"IF($C$571=\"\",\"\",P571/$C$571)","v":""},null,{"$f":"IF($C$571=\"\",\"\",R571/$C$571)","v":""},null,{"$f":"IF($C$571=\"\",\"\",T571/$C$571)","v":""},null,{"$f":"IF($C$571=\"\",\"\",V571/$C$571)","v":""},null,{"$f":"IF($C$571=\"\",\"\",X571/$C$571)","v":""},null,{"$f":"IF($C$571=\"\",\"\",Z571/$C$571)","v":""},null,{"$f":"IF($C$571=\"\",\"\",AB571/$C$571)","v":""},null,{"$f":"IF($C$571=\"\",\"\",AD571/$C$571)","v":""},null,{"$f":"IF($C$571=\"\",\"\",AF571/$C$571)","v":""},null,{"$f":"IF($C$571=\"\",\"\",AH571/$C$571)","v":""},null,{"$f":"IF($C$571=\"\",\"\",AJ571/$C$571)","v":""},null,{"$f":"IF($C$571=\"\",\"\",AL571/$C$571)","v":""},null,{"$f":"IF($C$571=\"\",\"\",AN571/$C$571)","v":""},null,{"$f":"IF($C$571=\"\",\"\",AP571/$C$571)","v":""},null,{"$f":"IF($C$571=\"\",\"\",AR571/$C$571)","v":""},null,{"$f":"IF($C$571=\"\",\"\",AT571/$C$571)","v":""},null,{"$f":"IF($C$571=\"\",\"\",AV571/$C$571)","v":""},null,{"$f":"IF($C$571=\"\",\"\",AX571/$C$571)","v":""},null,{"$f":"IF($C$571=\"\",\"\",AZ571/$C$571)","v":""},null,{"$f":"IF($C$571=\"\",\"\",BB571/$C$571)","v":""},null,0]
[null,null,null,null,{"$f":"IF($C$572=\"\",\"\",F572/$C$572)","v":""},null,{"$f":"IF($C$572=\"\",\"\",H572/$C$572)","v":""},null,{"$f":"IF($C$572=\"\",\"\",J572/$C$572)","v":""},null,{"$f":"IF($C$572=\"\",\"\",L572/$C$572)","v":""},null,{"$f":"IF($C$572=\"\",\"\",N572/$C$572)","v":""},null,{"$f":"IF($C$572=\"\",\"\",P572/$C$572)","v":""},null,{"$f":"IF($C$572=\"\",\"\",R572/$C$572)","v":""},null,{"$f":"IF($C$572=\"\",\"\",T572/$C$572)","v":""},null,{"$f":"IF($C$572=\"\",\"\",V572/$C$572)","v":""},null,{"$f":"IF($C$572=\"\",\"\",X572/$C$572)","v":""},null,{"$f":"IF($C$572=\"\",\"\",Z572/$C$572)","v":""},null,{"$f":"IF($C$572=\"\",\"\",AB572/$C$572)","v":""},null,{"$f":"IF($C$572=\"\",\"\",AD572/$C$572)","v":""},null,{"$f":"IF($C$572=\"\",\"\",AF572/$C$572)","v":""},null,{"$f":"IF($C$572=\"\",\"\",AH572/$C$572)","v":""},null,{"$f":"IF($C$572=\"\",\"\",AJ572/$C$572)","v":""},null,{"$f":"IF($C$572=\"\",\"\",AL572/$C$572)","v":""},null,{"$f":"IF($C$572=\"\",\"\",AN572/$C$572)","v":""},null,{"$f":"IF($C$572=\"\",\"\",AP572/$C$572)","v":""},null,{"$f":"IF($C$572=\"\",\"\",AR572/$C$572)","v":""},null,{"$f":"IF($C$572=\"\",\"\",AT572/$C$572)","v":""},null,{"$f":"IF($C$572=\"\",\"\",AV572/$C$572)","v":""},null,{"$f":"IF($C$572=\"\",\"\",AX572/$C$572)","v":""},null,{"$f":"IF($C$572=\"\",\"\",AZ572/$C$572)","v":""},null,{"$f":"IF($C$572=\"\",\"\",BB572/$C$572)","v":""},null,0]
[null,null,null,null,{"$f":"IF($C$573=\"\",\"\",F573/$C$573)","v":""},null,{"$f":"IF($C$573=\"\",\"\",H573/$C$573)","v":""},null,{"$f":"IF($C$573=\"\",\"\",J573/$C$573)","v":""},null,{"$f":"IF($C$573=\"\",\"\",L573/$C$573)","v":""},null,{"$f":"IF($C$573=\"\",\"\",N573/$C$573)","v":""},null,{"$f":"IF($C$573=\"\",\"\",P573/$C$573)","v":""},null,{"$f":"IF($C$573=\"\",\"\",R573/$C$573)","v":""},null,{"$f":"IF($C$573=\"\",\"\",T573/$C$573)","v":""},null,{"$f":"IF($C$573=\"\",\"\",V573/$C$573)","v":""},null,{"$f":"IF($C$573=\"\",\"\",X573/$C$573)","v":""},null,{"$f":"IF($C$573=\"\",\"\",Z573/$C$573)","v":""},null,{"$f":"IF($C$573=\"\",\"\",AB573/$C$573)","v":""},null,{"$f":"IF($C$573=\"\",\"\",AD573/$C$573)","v":""},null,{"$f":"IF($C$573=\"\",\"\",AF573/$C$573)","v":""},null,{"$f":"IF($C$573=\"\",\"\",AH573/$C$573)","v":""},null,{"$f":"IF($C$573=\"\",\"\",AJ573/$C$573)","v":""},null,{"$f":"IF($C$573=\"\",\"\",AL573/$C$573)","v":""},null,{"$f":"IF($C$573=\"\",\"\",AN573/$C$573)","v":""},null,{"$f":"IF($C$573=\"\",\"\",AP573/$C$573)","v":""},null,{"$f":"IF($C$573=\"\",\"\",AR573/$C$573)","v":""},null,{"$f":"IF($C$573=\"\",\"\",AT573/$C$573)","v":""},null,{"$f":"IF($C$573=\"\",\"\",AV573/$C$573)","v":""},null,{"$f":"IF($C$573=\"\",\"\",AX573/$C$573)","v":""},null,{"$f":"IF($C$573=\"\",\"\",AZ573/$C$573)","v":""},null,{"$f":"IF($C$573=\"\",\"\",BB573/$C$573)","v":""},null,0]
[null,null,null,null,{"$f":"IF($C$574=\"\",\"\",F574/$C$574)","v":""},null,{"$f":"IF($C$574=\"\",\"\",H574/$C$574)","v":""},null,{"$f":"IF($C$574=\"\",\"\",J574/$C$574)","v":""},null,{"$f":"IF($C$574=\"\",\"\",L574/$C$574)","v":""},null,{"$f":"IF($C$574=\"\",\"\",N574/$C$574)","v":""},null,{"$f":"IF($C$574=\"\",\"\",P574/$C$574)","v":""},null,{"$f":"IF($C$574=\"\",\"\",R574/$C$574)","v":""},null,{"$f":"IF($C$574=\"\",\"\",T574/$C$574)","v":""},null,{"$f":"IF($C$574=\"\",\"\",V574/$C$574)","v":""},null,{"$f":"IF($C$574=\"\",\"\",X574/$C$574)","v":""},null,{"$f":"IF($C$574=\"\",\"\",Z574/$C$574)","v":""},null,{"$f":"IF($C$574=\"\",\"\",AB574/$C$574)","v":""},null,{"$f":"IF($C$574=\"\",\"\",AD574/$C$574)","v":""},null,{"$f":"IF($C$574=\"\",\"\",AF574/$C$574)","v":""},null,{"$f":"IF($C$574=\"\",\"\",AH574/$C$574)","v":""},null,{"$f":"IF($C$574=\"\",\"\",AJ574/$C$574)","v":""},null,{"$f":"IF($C$574=\"\",\"\",AL574/$C$574)","v":""},null,{"$f":"IF($C$574=\"\",\"\",AN574/$C$574)","v":""},null,{"$f":"IF($C$574=\"\",\"\",AP574/$C$574)","v":""},null,{"$f":"IF($C$574=\"\",\"\",AR574/$C$574)","v":""},null,{"$f":"IF($C$574=\"\",\"\",AT574/$C$574)","v":""},null,{"$f":"IF($C$574=\"\",\"\",AV574/$C$574)","v":""},null,{"$f":"IF($C$574=\"\",\"\",AX574/$C$574)","v":""},null,{"$f":"IF($C$574=\"\",\"\",AZ574/$C$574)","v":""},null,{"$f":"IF($C$574=\"\",\"\",BB574/$C$574)","v":""},null,0]
[null,null,null,null,{"$f":"IF($C$575=\"\",\"\",F575/$C$575)","v":""},null,{"$f":"IF($C$575=\"\",\"\",H575/$C$575)","v":""},null,{"$f":"IF($C$575=\"\",\"\",J575/$C$575)","v":""},null,{"$f":"IF($C$575=\"\",\"\",L575/$C$575)","v":""},null,{"$f":"IF($C$575=\"\",\"\",N575/$C$575)","v":""},null,{"$f":"IF($C$575=\"\",\"\",P575/$C$575)","v":""},null,{"$f":"IF($C$575=\"\",\"\",R575/$C$575)","v":""},null,{"$f":"IF($C$575=\"\",\"\",T575/$C$575)","v":""},null,{"$f":"IF($C$575=\"\",\"\",V575/$C$575)","v":""},null,{"$f":"IF($C$575=\"\",\"\",X575/$C$575)","v":""},null,{"$f":"IF($C$575=\"\",\"\",Z575/$C$575)","v":""},null,{"$f":"IF($C$575=\"\",\"\",AB575/$C$575)","v":""},null,{"$f":"IF($C$575=\"\",\"\",AD575/$C$575)","v":""},null,{"$f":"IF($C$575=\"\",\"\",AF575/$C$575)","v":""},null,{"$f":"IF($C$575=\"\",\"\",AH575/$C$575)","v":""},null,{"$f":"IF($C$575=\"\",\"\",AJ575/$C$575)","v":""},null,{"$f":"IF($C$575=\"\",\"\",AL575/$C$575)","v":""},null,{"$f":"IF($C$575=\"\",\"\",AN575/$C$575)","v":""},null,{"$f":"IF($C$575=\"\",\"\",AP575/$C$575)","v":""},null,{"$f":"IF($C$575=\"\",\"\",AR575/$C$575)","v":""},null,{"$f":"IF($C$575=\"\",\"\",AT575/$C$575)","v":""},null,{"$f":"IF($C$575=\"\",\"\",AV575/$C$575)","v":""},null,{"$f":"IF($C$575=\"\",\"\",AX575/$C$575)","v":""},null,{"$f":"IF($C$575=\"\",\"\",AZ575/$C$575)","v":""},null,{"$f":"IF($C$575=\"\",\"\",BB575/$C$575)","v":""},null,{"$f":"SUM(BB575,AZ575,AX575,AV575,AT575,AR575,AP575,AN575,AL575,AJ575,AH575,AF575,AD575,AB575,Z575,X575,V575,T575,R575,P575,N575,L575,J575,H575,F575)","v":0}]
["TOTAL HOURS",null,null,null,null,{"$f":"SUM(F546:F575)","v":0},null,{"$f":"SUM(H546:H575)","v":0},null,{"$f":"SUM(J546:J575)","v":0},null,{"$f":"SUM(L546:L575)","v":0},null,{"$f":"SUM(N546:N575)","v":0},null,{"$f":"SUM(P546:P575)","v":0},null,{"$f":"SUM(R546:R575)","v":0},null,{"$f":"SUM(T546:T575)","v":0},null,{"$f":"SUM(V546:V575)","v":0},null,{"$f":"SUM(X546:X575)","v":0},null,{"$f":"SUM(Z546:Z575)","v":0},null,{"$f":"SUM(AB546:AB575)","v":0},null,{"$f":"SUM(AD546:AD575)","v":0},null,{"$f":"SUM(AF546:AF575)","v":0},null,{"$f":"SUM(AH546:AH575)","v":0},null,{"$f":"SUM(AJ546:AJ575)","v":0},null,{"$f":"SUM(AL546:AL575)","v":0},null,{"$f":"SUM(AN546:AN575)","v":0},null,{"$f":"SUM(AP546:AP575)","v":0},null,{"$f":"SUM(AR546:AR575)","v":0},null,{"$f":"SUM(AT546:AT575)","v":0},null,{"$f":"SUM(AV546:AV575)","v":0},null,{"$f":"SUM(AX546:AX575)","v":0},null,{"$f":"SUM(AZ546:AZ575)","v":0},null,{"$f":"SUM(BB546:BB575)","v":0},{"$f":"SUM(E576:BB576)","v":0}]
["TOTAL WORKDAYS",null,null,null,null,{"$f":"F576/8","v":0},null,{"$f":"H576/8","v":0},null,{"$f":"J576/8","v":0},null,{"$f":"L576/8","v":0},null,{"$f":"N576/8","v":0},null,{"$f":"P576/8","v":0},null,{"$f":"R576/8","v":0},null,{"$f":"T576/8","v":0},null,{"$f":"V576/8","v":0},null,{"$f":"X576/8","v":0},null,{"$f":"Z576/8","v":0},null,{"$f":"AB576/8","v":0},null,{"$f":"AD576/8","v":0},null,0,null,{"$f":"AH576/8","v":0},null,0,null,{"$f":"AL576/8","v":0},null,0,null,{"$f":"AP576/8","v":0},null,0,null,{"$f":"AT576/8","v":0},null,{"$f":"AV576/8","v":0},null,{"$f":"AX576/8","v":0},null,{"$f":"AZ576/8","v":0},null,{"$f":"BB576/8","v":0},{"$f":"SUM(E577:BB577)","v":0}]
["TOTAL RAW LABOR",null,null,null,null,{"$f":"$E$13*F576","v":0},null,{"$f":"$G$13*H576","v":0},null,{"$f":"$I$13*J576","v":0},null,{"$f":"$K$13*L576","v":0},null,{"$f":"$M$13*N576","v":0},null,{"$f":"$O$13*P576","v":0},null,{"$f":"$Q$13*R576","v":0},null,{"$f":"$S$13*T576","v":0},null,{"$f":"$U$13*V576","v":0},null,{"$f":"$W$13*X576","v":0},null,{"$f":"$Y$13*Z576","v":0},null,{"$f":"$AA$13*AB576","v":0},null,{"$f":"$AC$13*AD576","v":0},null,{"$f":"$AC$13*AF576","v":0},null,{"$f":"$AC$13*AH576","v":0},null,{"$f":"$AC$13*AJ576","v":0},null,{"$f":"$AC$13*AL576","v":0},null,{"$f":"$AC$13*AN576","v":0},null,{"$f":"$AC$13*AP576","v":0},null,{"$f":"$AC$13*AR576","v":0},null,{"$f":"$AC$13*AT576","v":0},null,{"$f":"$AC$13*AV576","v":0},null,{"$f":"$AC$13*AX576","v":0},null,{"$f":"$AC$13*AZ576","v":0},null,{"$f":"$AC$13*BB576","v":0},{"$f":"SUM(E578:BB578)","v":0}]
[]
["TOTAL HOURS",null,null,null,null,{"$f":"SUM(F576,F542,F508,F474,F440,F406,F372,F357,F343,F313,F250,F220,F203,F188,F175,F159,F138,F115,F53,F28)","v":0},null,{"$f":"SUM(H576,H542,H508,H474,H440,H406,H372,H357,H343,H313,H250,H220,H203,H188,H175,H159,H138,H115,H53,H28)","v":0},null,{"$f":"SUM(J576,J542,J508,J474,J440,J406,J372,J357,J343,J313,J250,J220,J203,J188,J175,J159,J138,J115,J53,J28)","v":0},null,{"$f":"SUM(L576,L542,L508,L474,L440,L406,L372,L357,L343,L313,L250,L220,L203,L188,L175,L159,L138,L115,L53,L28)","v":0},null,{"$f":"SUM(N576,N542,N508,N474,N440,N406,N372,N357,N343,N313,N250,N220,N203,N188,N175,N159,N138,N115,N53,N28)","v":0},null,{"$f":"SUM(P576,P542,P508,P474,P440,P406,P372,P357,P343,P313,P250,P220,P203,P188,P175,P159,P138,P115,P53,P28)","v":0},null,{"$f":"SUM(R576,R542,R508,R474,R440,R406,R372,R357,R343,R313,R250,R220,R203,R188,R175,R159,R138,R115,R53,R28)","v":0},null,{"$f":"SUM(T576,T542,T508,T474,T440,T406,T372,T357,T343,T313,T250,T220,T203,T188,T175,T159,T138,T115,T53,T28)","v":0},null,{"$f":"SUM(V576,V542,V508,V474,V440,V406,V372,V357,V343,V313,V250,V220,V203,V188,V175,V159,V138,V115,V53,V28)","v":0},null,{"$f":"SUM(X576,X542,X508,X474,X440,X406,X372,X357,X343,X313,X250,X220,X203,X188,X175,X159,X138,X115,X53,X28)","v":0},null,{"$f":"SUM(Z576,Z542,Z508,Z474,Z440,Z406,Z372,Z357,Z343,Z313,Z250,Z220,Z203,Z188,Z175,Z159,Z138,Z115,Z53,Z28)","v":0},null,{"$f":"SUM(AB576,AB542,AB508,AB474,AB440,AB406,AB372,AB357,AB343,AB313,AB250,AB220,AB203,AB188,AB175,AB159,AB138,AB115,AB53,AB28)","v":0},null,{"$f":"SUM(AD576,AD542,AD508,AD474,AD440,AD406,AD372,AD357,AD343,AD313,AD250,AD220,AD203,AD188,AD175,AD159,AD138,AD115,AD53,AD28)","v":0},null,{"$f":"SUM(AF576,AF542,AF508,AF474,AF440,AF406,AF372,AF357,AF343,AF313,AF250,AF220,AF203,AF188,AF175,AF159,AF138,AF115,AF53,AF28)","v":0},null,{"$f":"SUM(AH576,AH542,AH508,AH474,AH440,AH406,AH372,AH357,AH343,AH313,AH250,AH220,AH203,AH188,AH175,AH159,AH138,AH115,AH53,AH28)","v":0},null,{"$f":"SUM(AJ576,AJ542,AJ508,AJ474,AJ440,AJ406,AJ372,AJ357,AJ343,AJ313,AJ250,AJ220,AJ203,AJ188,AJ175,AJ159,AJ138,AJ115,AJ53,AJ28)","v":0},null,{"$f":"SUM(AL576,AL542,AL508,AL474,AL440,AL406,AL372,AL357,AL343,AL313,AL250,AL220,AL203,AL188,AL175,AL159,AL138,AL115,AL53,AL28)","v":0},null,{"$f":"SUM(AN576,AN542,AN508,AN474,AN440,AN406,AN372,AN357,AN343,AN313,AN250,AN220,AN203,AN188,AN175,AN159,AN138,AN115,AN53,AN28)","v":0},null,{"$f":"SUM(AP576,AP542,AP508,AP474,AP440,AP406,AP372,AP357,AP343,AP313,AP250,AP220,AP203,AP188,AP175,AP159,AP138,AP115,AP53,AP28)","v":0},null,{"$f":"SUM(AR576,AR542,AR508,AR474,AR440,AR406,AR372,AR357,AR343,AR313,AR250,AR220,AR203,AR188,AR175,AR159,AR138,AR115,AR53,AR28)","v":0},null,{"$f":"SUM(AT576,AT542,AT508,AT474,AT440,AT406,AT372,AT357,AT343,AT313,AT250,AT220,AT203,AT188,AT175,AT159,AT138,AT115,AT53,AT28)","v":0},null,{"$f":"SUM(AV576,AV542,AV508,AV474,AV440,AV406,AV372,AV357,AV343,AV313,AV250,AV220,AV203,AV188,AV175,AV159,AV138,AV115,AV53,AV28)","v":0},null,{"$f":"SUM(AX576,AX542,AX508,AX474,AX440,AX406,AX372,AX357,AX343,AX313,AX250,AX220,AX203,AX188,AX175,AX159,AX138,AX115,AX53,AX28)","v":0},null,{"$f":"SUM(AZ576,AZ542,AZ508,AZ474,AZ440,AZ406,AZ372,AZ357,AZ343,AZ313,AZ250,AZ220,AZ203,AZ188,AZ175,AZ159,AZ138,AZ115,AZ53,AZ28)","v":0},null,{"$f":"SUM(BB576,BB542,BB508,BB474,BB440,BB406,BB372,BB357,BB343,BB313,BB250,BB220,BB203,BB188,BB175,BB159,BB138,BB115,BB53,BB28)","v":0},{"$f":"SUM(E580:BB580)","v":0}]
["TOTAL WORKDAYS",null,null,null,null,{"$f":"F580/8","v":0},null,{"$f":"H580/8","v":0},null,{"$f":"J580/8","v":0},null,{"$f":"L580/8","v":0},null,{"$f":"N580/8","v":0},null,{"$f":"P580/8","v":0},null,{"$f":"R580/8","v":0},null,{"$f":"T580/8","v":0},null,{"$f":"V580/8","v":0},null,{"$f":"X580/8","v":0},null,{"$f":"Z580/8","v":0},null,{"$f":"AB580/8","v":0},null,{"$f":"AD580/8","v":0},null,0,null,{"$f":"AH580/8","v":0},null,0,null,{"$f":"AL580/8","v":0},null,0,null,{"$f":"AP580/8","v":0},null,0,null,{"$f":"AT580/8","v":0},null,{"$f":"AV580/8","v":0},null,{"$f":"AX580/8","v":0},null,{"$f":"AZ580/8","v":0},null,{"$f":"BB580/8","v":0},{"$f":"SUM(E581:BB581)","v":0}]
["TOTAL RAW LABOR",null,null,null,null,{"$f":"$E$13*F580","v":0},null,{"$f":"$G$13*H580","v":0},null,{"$f":"$I$13*J580","v":0},null,{"$f":"$K$13*L580","v":0},null,{"$f":"$M$13*N580","v":0},null,{"$f":"$O$13*P580","v":0},null,{"$f":"$Q$13*R580","v":0},null,{"$f":"$S$13*T580","v":0},null,{"$f":"$U$13*V580","v":0},null,{"$f":"$W$13*X580","v":0},null,{"$f":"$Y$13*Z580","v":0},null,{"$f":"$AA$13*AB580","v":0},null,{"$f":"$AC$13*AD580","v":0},null,{"$f":"$AC$13*AF580","v":0},null,{"$f":"$AC$13*AH580","v":0},null,{"$f":"$AC$13*AJ580","v":0},null,{"$f":"$AC$13*AL580","v":0},null,{"$f":"$AC$13*AN580","v":0},null,{"$f":"$AC$13*AP580","v":0},null,{"$f":"$AC$13*AR580","v":0},null,{"$f":"$AC$13*AT580","v":0},null,{"$f":"$AC$13*AV580","v":0},null,{"$f":"$AC$13*AX580","v":0},null,{"$f":"$AC$13*AZ580","v":0},null,{"$f":"$AC$13*BB580","v":0},{"$f":"SUM(E582:BB582)","v":0}]
[]
["Contract Overhead Rate",null,null,{"$f":"MUNICIPAL_SIGNAL_SYSTEM_SUB1_CONSULTANT_OVERHEAD","v":0}]
["Overhead Cost",null,null,null,{"$f":"BC582*D584","v":0}]
["Fee",null,null,{"$f":"MUNICIPAL_SIGNAL_SYSTEM_SUB1_CONSULTANT_FEE","v":0.09},{"$f":"(BC582+E585)*0.09","v":0}]
["FCCM",null,null,{"$f":"MUNICIPAL_SIGNAL_SYSTEM_SUB1_CONSULTANT_COSTofCAPITAL","v":0},{"$f":"BC582*D587","v":0}]
["TOTAL RAW LABOR",null,null,null,{"$f":"BC582+E585+E586+E587","v":0}]
["DIRECT EXPENSES",null,null,null,{"$f":"MUNICIPAL.SIGNAL.SYSTEM_SUB1_DIRECT_NONSALARY_TOTAL","v":0}]
["MUNICIPAL SIGNAL SYSTEM ESTIMATE",null,null,null,{"$f":"SUM(E588:E589)","v":0}]
[]
[]
[]
[]
[]
[{"$f":"CONCATENATE(\"NON-SALARY DIRECT COSTS -   NCDOT (\",A8,\")\")","v":"NON-SALARY DIRECT COSTS -   NCDOT (CONSULTANT NAME)"}]
[]
["Task 1.0","Project Management and Control",null,null,null,null,null,null,null,null,null,null,null,null,null,"Comments "]
["REPRODUCTION"]
[null,"Xerox Copies (8.5\" x 11\" B&W)"]
[null,"Miscellaneous (Project notes, instructions, recordation, documentation,correspondence, misc. meeting minutes, etc.)",null,null,null,null,null,null,null,"Sheets","X",{"$f":"LETTERCOPIES","v":0.14000000000000001},"per Sheet","=",{"$f":"+I601*L601","v":0}]
[1.1000000000000001,"Project Work Plan",null,null,null,null,"copies","X",null,"Sheets","X",{"$f":"LETTERCOPIES","v":0.14000000000000001},"per Sheet","=",{"$f":"+F602*I602*L602","v":0}]
[1.2,"Progress/Status Meeting Minutes",null,"meetings","X",null,"reports","X",null,"Sheets","X",{"$f":"LETTERCOPIES","v":0.14000000000000001},"per Sheet","=",{"$f":"+C603*F603*I603*L603","v":0}]
[1.3,"Project Status Reports  & Invoices",null,"months","X",null,"reports","X",null,"Sheets","X",{"$f":"LETTERCOPIES","v":0.14000000000000001},"per Sheet","=",{"$f":"+C604*F604*I604*L604","v":0}]
[]
[null,"Xerox Copies (11\" x 17\" B&W)"]
[null,"Miscellaneous ",null,null,null,null,null,null,null,"Sheets","X",{"$f":"LEDGERCOPIES","v":0.34},"per Sheet","=",{"$f":"+I607*L607","v":0}]
[1.1000000000000001,"Project Work Plan/Schedule",null,"Months","X",null,"copies","X",null,"Sheets","X",{"$f":"LEDGERCOPIES","v":0.34},"per Sheet","=",{"$f":"+C608*F608*I608*L608","v":0}]
[1.2,"Progress/Status Meeting Minutes",null,null,null,null,"reports","X",null,"Sheets","X",{"$f":"LEDGERCOPIES","v":0.34},"per Sheet","=",{"$f":"+F609*I609*L609","v":0}]
[1.5,"Subconsultant Management and Coordination",null,null,null,null,null,null,null,"Sheets","X",{"$f":"LEDGERCOPIES","v":0.34},"per Sheet","=",{"$f":"+I610*L610","v":0}]
[]
["CAR RENTAL"]
[null," Trips"]
[null,"Kickoff meeting (from )",null,null,null,null,"trips","X",null,"day/Trip","X",{"$f":"CARRENTAL","v":50},"per day","=",{"$f":"+F614*I614*L614","v":0}]
[null,null,null,null,null,null,"trips","X",null,"Miles/Trip","X",{"$f":"GASforRENTAL","v":0.2},"per Mile","=",{"$f":"+F615*I615*L615","v":0}]
[null,"Kickoff meeting (from )",null,null,null,null,"Trips","X",null,"day/Trip","X",{"$f":"CARRENTAL","v":50},"per day","=",0]
[null,null,null,null,null,null,"trips","X",null,"Miles/Trip","X",{"$f":"GASforRENTAL","v":0.2},"per Mile","=",0]
[null,"Project Meetings (from )",null,null,null,null,"Trips","X",null,"day/Trip","X",{"$f":"CARRENTAL","v":50},"per day","=",0]
[null,null,null,null,null,null,"trips","X",null,"Miles/Trip","X",{"$f":"GASforRENTAL","v":0.2},"per Mile","=",0]
[null,"Project Meetings (from )",null,null,null,null,"trips","X",null,"day/Trip","X",{"$f":"CARRENTAL","v":50},"per day","=",0]
[null,null,null,null,null,null,"trips","X",null,"Miles/Trip","X",{"$f":"GASforRENTAL","v":0.2},"per Mile","=",0]
[]
["OVERNIGHT TRAVEL"]
[null,"Hotel - Project Meetings",null,"persons","X",null,"trips","X",null,"nights/trip","X",{"$f":"LODGING_LUMP.SUM","v":95},"per night","=",{"$f":"+C624*F624*I624*L624","v":0}]
[null,"Per Diem - Project Meetings - Breakfast, Lunch, and Dinner",null,"persons","X",null,"trips","X",null,"days/trip","X",{"$f":"BREAKFAST+LUNCH+DINNER","v":46.5},"per day","=",{"$f":"+C625*F625*I625*L625","v":0}]
[null,"Per Diem - Project Meetings - Breakfast",null,"persons","X",null,"trips","X",null,"days/trip","X",{"$f":"BREAKFAST","v":10.1},"per day","=",{"$f":"+C626*F626*I626*L626","v":0}]
[null,"Per Diem - Project Meetings - Lunch",null,"persons","X",null,"trips","X",null,"days/trip","X",{"$f":"LUNCH","v":13.3},"per day","=",0]
[null,"Per Diem - Project Meetings - Dinner",null,"persons","X",null,"trips","X",null,"days/trip","X",{"$f":"DINNER","v":23.1},"per day","=",0]
[]
["OTHER"]
[null,null,null,"UOM","X",null,"UOM","X",null,"UOM","X",null,"UOM","=",{"$f":"+C631*F631*I631*L631","v":0}]
[null,null,null,"UOM","X",null,"UOM","X",null,"UOM","X",null,"UOM","=",0]
[null,null,null,"UOM","X",null,"UOM","X",null,"UOM","X",null,"UOM","=",0]
[null,null,null,"UOM","X",null,"UOM","X",null,"UOM","X",null,"UOM","=",0]
[null,null,null,"UOM","X",null,"UOM","X",null,"UOM","X",null,"UOM","=",0]
[null,{"$f":"CONCATENATE(\"Project Website (\",A8,\" SharePoint)\")","v":"Project Website (CONSULTANT NAME SharePoint)"}]
[null,"Initial Set-up Charge (incl. 1 GB file storage)",null,null,null,null,null,null,null,"Each","X",500,null,"=",{"$f":"+I637*L637","v":0}]
[null,"Monthly Hosting Fee (up to 20 external users)",null,null,null,null,null,null,null,"Months","X",105,"per month","=",{"$f":"+I638*L638","v":0}]
[null,"Additional Gigabit of File Storage",null,null,null,null,null,null,null,"Each","X",15,null,"=",0]
[]
[null,null,null,null,null,null,null,null,null,null,null,null,"Subtotal",null,{"$f":"SUM(O601:O639)","v":0}]
[]
["Task 2.0","Functional Design"]
["REPRODUCTION"]
[null,"Xerox Copies (8.5\" x 11\" B&W)"]
["2.1.1","Exist. Sys Operations & Functionality"]
[null,"Preliminary Tech Memo",null,null,null,null,"Sets","X",null,"Sheets/Set","X",{"$f":"LETTERCOPIES","v":0.14000000000000001},"per Sheet","=",{"$f":"+F647*I647*L647","v":0}]
[null,"Final Tech Memo",null,null,null,null,"Sets","X",null,"Sheets/Set","X",{"$f":"LETTERCOPIES","v":0.14000000000000001},"per Sheet","=",{"$f":"+F648*I648*L648","v":0}]
["2.1.2","Functional Needs & Boundaries"]
[null,"Preliminary Tech Memo",null,null,null,null,"Sets","X",null,"Sheets/Set","X",{"$f":"LETTERCOPIES","v":0.14000000000000001},"per Sheet","=",0]
[null,"Final Tech Memo",null,null,null,null,"Sets","X",null,"Sheets/Set","X",{"$f":"LETTERCOPIES","v":0.14000000000000001},"per Sheet","=",0]
["2.1.3","Concept of Operations"]
[null,"Preliminary Tech Memo",null,null,null,null,"Sets","X",null,"Sheets/Set","X",{"$f":"LETTERCOPIES","v":0.14000000000000001},"per Sheet","=",0]
[null,"Final Tech Memo",null,null,null,null,"Sets","X",null,"Sheets/Set","X",{"$f":"LETTERCOPIES","v":0.14000000000000001},"per Sheet","=",0]
["2.1.4","Regional Architecture Compliance"]
[null,"Preliminary Tech Memo",null,null,null,null,"Sets","X",null,"Sheets/Set","X",{"$f":"LETTERCOPIES","v":0.14000000000000001},"per Sheet","=",0]
[null,"Final Tech Memo",null,null,null,null,"Sets","X",null,"Sheets/Set","X",{"$f":"LETTERCOPIES","v":0.14000000000000001},"per Sheet","=",0]
["2.1.5","Draft Final Systems Engineering Document",null,null,null,null,"Sets","X",null,"Sheets/Set","X",{"$f":"LETTERCOPIES","v":0.14000000000000001},"per Sheet","=",0]
[null,"Binding",null,null,null,null,null,null,null,"sets","X",{"$f":"COVERS+BINDERS","v":1},"per set","=",{"$f":"+I659*L659","v":0}]
["2.1.6","Final Systems Engineering Document",null,null,null,null,"Sets","X",null,"Sheets/Set","X",{"$f":"LETTERCOPIES","v":0.14000000000000001},"per Sheet","=",{"$f":"+F660*I660*L660","v":0}]
[null,"Binding",null,null,null,null,null,null,null,"sets","X",{"$f":"COVERS+BINDERS","v":1},"per set","=",{"$f":"+I661*L661","v":0}]
[null,"Miscellaneous (Corres., etc.)",null,null,null,null,null,null,null,"Sheets","X",{"$f":"LETTERCOPIES","v":0.14000000000000001},"per Sheet","=",{"$f":"+I662*L662","v":0}]
[2.2000000000000002,"System Maintenance & Staffing Plan"]
[null,"Preliminary Tech Memo",null,null,null,null,"Sets","X",null,"Sheets/Set","X",{"$f":"LETTERCOPIES","v":0.14000000000000001},"per Sheet","=",{"$f":"+F664*I664*L664","v":0}]
[null,"Final Tech Memo",null,null,null,null,"Sets","X",null,"Sheets/Set","X",{"$f":"LETTERCOPIES","v":0.14000000000000001},"per Sheet","=",{"$f":"+F665*I665*L665","v":0}]
[2.2999999999999998,"Municipal Building Modifications"]
[null,"Preliminary Tech Memo",null,null,null,null,"Sets","X",null,"Sheets/Set","X",{"$f":"LETTERCOPIES","v":0.14000000000000001},"per Sheet","=",{"$f":"+F667*I667*L667","v":0}]
[null,"Final Tech Memo",null,null,null,null,"Sets","X",null,"Sheets/Set","X",{"$f":"LETTERCOPIES","v":0.14000000000000001},"per Sheet","=",0]
[2.4,"TMC Modifications"]
[null,"Preliminary Tech Memo",null,null,null,null,"Sets","X",null,"Sheets/Set","X",{"$f":"LETTERCOPIES","v":0.14000000000000001},"per Sheet","=",0]
[null,"Final Tech Memo",null,null,null,null,"Sets","X",null,"Sheets/Set","X",{"$f":"LETTERCOPIES","v":0.14000000000000001},"per Sheet","=",0]
[]
[null,"Xerox Copies (11\" x 17\" B&W)"]
[2.1,"Plans and Exhibits - Black/White",null,null,null,null,"Sets","X",null,"Sheets/Set","X",{"$f":"LEDGERCOPIES","v":0.34},"per Sheet","=",0]
[null,"Miscellaneous Check Plots",null,null,null,null,null,null,null,"Sheets","X",{"$f":"LEDGERCOPIES","v":0.34},"per Sheet","=",{"$f":"+I675*L675","v":0}]
[]
[null,"Xerox Copies (8.5\" x 11\" Color)"]
[null,"Plans and Exhibits - Color"]
["2.1.1","Exist. Sys Operations & Functionality"]
[null,"Preliminary Tech Memo",null,null,null,null,"Sets","X",null,"Sheets/Set","X",{"$f":"LETTERCOLOR","v":0.83},"per Sheet","=",{"$f":"+F680*I680*L680","v":0}]
[null,"Final Tech Memo",null,null,null,null,"Sets","X",null,"Sheets/Set","X",{"$f":"LETTERCOLOR","v":0.83},"per Sheet","=",{"$f":"+F681*I681*L681","v":0}]
["2.1.2","Functional Needs & Boundaries"]
[null,"Preliminary Tech Memo",null,null,null,null,"Sets","X",null,"Sheets/Set","X",{"$f":"LETTERCOLOR","v":0.83},"per Sheet","=",0]
[null,"Final Tech Memo",null,null,null,null,"Sets","X",null,"Sheets/Set","X",{"$f":"LETTERCOLOR","v":0.83},"per Sheet","=",0]
["2.1.3","Concept of Operations"]
[null,"Preliminary Tech Memo",null,null,null,null,"Sets","X",null,"Sheets/Set","X",{"$f":"LETTERCOLOR","v":0.83},"per Sheet","=",0]
[null,"Final Tech Memo",null,null,null,null,"Sets","X",null,"Sheets/Set","X",{"$f":"LETTERCOLOR","v":0.83},"per Sheet","=",0]
["2.1.4","Regional Architecture Compliance"]
[null,"Preliminary Tech Memo",null,null,null,null,"Sets","X",null,"Sheets/Set","X",{"$f":"LETTERCOLOR","v":0.83},"per Sheet","=",0]
[null,"Final Tech Memo",null,null,null,null,"Sets","X",null,"Sheets/Set","X",{"$f":"LETTERCOLOR","v":0.83},"per Sheet","=",0]
["2.1.5","Draft Final Systems Engineering Document",null,null,null,null,"Sets","X",null,"Sheets/Set","X",{"$f":"LETTERCOLOR","v":0.83},"per Sheet","=",0]
["2.1.6","Final Systems Engineering Document",null,null,null,null,"Sets","X",null,"Sheets/Set","X",{"$f":"LETTERCOLOR","v":0.83},"per Sheet","=",0]
[2.2000000000000002,"System Maintenance & Staffing Plan"]
[null,"Preliminary Tech Memo",null,null,null,null,"Sets","X",null,"Sheets/Set","X",{"$f":"LETTERCOLOR","v":0.83},"per Sheet","=",0]
[null,"Final Tech Memo",null,null,null,null,"Sets","X",null,"Sheets/Set","X",{"$f":"LETTERCOLOR","v":0.83},"per Sheet","=",0]
[2.2999999999999998,"Municipal Building Modifications"]
[null,"Preliminary Tech Memo",null,null,null,null,"Sets","X",null,"Sheets/Set","X",{"$f":"LETTERCOLOR","v":0.83},"per Sheet","=",0]
[null,"Final Tech Memo",null,null,null,null,"Sets","X",null,"Sheets/Set","X",{"$f":"LETTERCOLOR","v":0.83},"per Sheet","=",0]
[2.4,"TMC Modifications"]
[null,"Preliminary Tech Memo",null,null,null,null,"Sets","X",null,"Sheets/Set","X",{"$f":"LETTERCOLOR","v":0.83},"per Sheet","=",0]
[null,"Final Tech Memo",null,null,null,null,"Sets","X",null,"Sheets/Set","X",{"$f":"LETTERCOLOR","v":0.83},"per Sheet","=",0]
[]
[null,"Miscellaneous Check Plots",null,null,null,null,null,null,null,"Sheets","X",{"$f":"LETTERCOLOR","v":0.83},"per Sheet","=",{"$f":"+I703*L703","v":0}]
[]
[null,"Xerox Copies (11\" x 17\" Color)",null,null,null,null,null,null," "]
[null,"Plans and Exhibits - Color"]
["2.1.1","Exist. Sys Operations & Functionality"]
[null,"Preliminary Tech Memo",null,null,null,null,"Sets","X",null,"Sheets/Set","X",{"$f":"ROLLPLOTSlong","v":1.5},"per Sheet","=",{"$f":"+F708*I708*L708","v":0}]
[null,"Final Tech Memo",null,null,null,null,"Sets","X",null,"Sheets/Set","X",{"$f":"ROLLPLOTSlong","v":1.5},"per Sheet","=",{"$f":"+F709*I709*L709","v":0}]
["2.1.2","Functional Needs & Boundaries"]
[null,"Preliminary Tech Memo",null,null,null,null,"Sets","X",null,"Sheets/Set","X",{"$f":"ROLLPLOTSlong","v":1.5},"per Sheet","=",0]
[null,"Final Tech Memo",null,null,null,null,"Sets","X",null,"Sheets/Set","X",{"$f":"ROLLPLOTSlong","v":1.5},"per Sheet","=",0]
["2.1.3","Concept of Operations"]
[null,"Preliminary Tech Memo",null,null,null,null,"Sets","X",null,"Sheets/Set","X",{"$f":"ROLLPLOTSlong","v":1.5},"per Sheet","=",0]
[null,"Final Tech Memo",null,null,null,null,"Sets","X",null,"Sheets/Set","X",{"$f":"ROLLPLOTSlong","v":1.5},"per Sheet","=",0]
["2.1.4","Regional Architecture Compliance"]
[null,"Preliminary Tech Memo",null,null,null,null,"Sets","X",null,"Sheets/Set","X",{"$f":"ROLLPLOTSlong","v":1.5},"per Sheet","=",0]
[null,"Final Tech Memo",null,null,null,null,"Sets","X",null,"Sheets/Set","X",{"$f":"ROLLPLOTSlong","v":1.5},"per Sheet","=",0]
["2.1.5","Draft Final Systems Engineering Document",null,null,null,null,"Sets","X",null,"Sheets/Set","X",{"$f":"ROLLPLOTSlong","v":1.5},"per Sheet","=",0]
["2.1.6","Final Systems Engineering Document",null,null,null,null,"Sets","X",null,"Sheets/Set","X",{"$f":"ROLLPLOTSlong","v":1.5},"per Sheet","=",0]
[2.2000000000000002,"System Maintenance & Staffing Plan"]
[null,"Preliminary Tech Memo",null,null,null,null,"Sets","X",null,"Sheets/Set","X",{"$f":"ROLLPLOTSlong","v":1.5},"per Sheet","=",0]
[null,"Final Tech Memo",null,null,null,null,"Sets","X",null,"Sheets/Set","X",{"$f":"ROLLPLOTSlong","v":1.5},"per Sheet","=",0]
[2.2999999999999998,"Municipal Building Modifications"]
[null,"Preliminary Tech Memo",null,null,null,null,"Sets","X",null,"Sheets/Set","X",{"$f":"ROLLPLOTSlong","v":1.5},"per Sheet","=",0]
[null,"Final Tech Memo",null,null,null,null,"Sets","X",null,"Sheets/Set","X",{"$f":"ROLLPLOTSlong","v":1.5},"per Sheet","=",0]
[2.4,"TMC Modifications"]
[null,"Preliminary Tech Memo",null,null,null,null,"Sets","X",null,"Sheets/Set","X",{"$f":"ROLLPLOTSlong","v":1.5},"per Sheet","=",0]
[null,"Final Tech Memo",null,null,null,null,"Sets","X",null,"Sheets/Set","X",{"$f":"ROLLPLOTSlong","v":1.5},"per Sheet","=",0]
[]
[null,"Miscellaneous Check Plots",null,null,null,null,null,null,null,"Sheets","X",{"$f":"ROLLPLOTSlong","v":1.5},"per Sheet","=",{"$f":"+I731*L731","v":0}]
[]
["MILEAGE"]
[null," Trips"]
["2.3 & 2.4","Field investigate Muncipal Bldg and TMC",null,null,null,null,"Trips","X",null,"day/Trip","X",{"$f":"CARRENTAL","v":50},"per day","=",{"$f":"+F735*I735*L735","v":0}]
[null,null,null,null,null,null,"Trips","X",null,"Miles/Trip","X",{"$f":"GASforRENTAL","v":0.2},"per Mile","=",{"$f":"+F736*I736*L736","v":0}]
[null," Trips ",null,null,null,null,"Trips","X",null,"Miles/Trip","X",{"$f":"SEDAN","v":0.7},"per Mile","=",0]
[]
["OTHER"]
[null,"Postage & Courier",null,null,null,null,"Pack.","X",25,"Ea",null,null,null,"=",{"$f":"+F740*I740","v":0}]
[null,null,null,"UOM","X",null,"UOM","X",null,"UOM","X",null,"UOM","=",{"$f":"+C741*F741*I741*L741","v":0}]
[null,null,null,"UOM","X",null,"UOM","X",null,"UOM","X",null,"UOM","=",0]
[null,null,null,"UOM","X",null,"UOM","X",null,"UOM","X",null,"UOM","=",0]
[null,null,null,"UOM","X",null,"UOM","X",null,"UOM","X",null,"UOM","=",0]
[null,null,null,"UOM","X",null,"UOM","X",null,"UOM","X",null,"UOM","=",0]
[]
[null,null,null,null,null,null,null,null,null,null,null,null,"Subtotal",null,{"$f":"SUM(O646:O746)","v":0}]
["Task 3.0","Programmatic Categorical Exclusion & Supporting Tasks"]
["REPRODUCTION"]
[null,"Xerox Copies (8.5\" x 11\" B&W)"]
[null,"PCE Document",null,"submittals","X",null,"Sets","X",null,"Sheets","X",{"$f":"LETTERCOPIES","v":0.14000000000000001},"per Sheet","=",{"$f":"+C751*F751*I751*L751","v":0}]
[null,"Miscellaneous",null,null,null,null,null,null,null,"Sheets","X",{"$f":"LETTERCOPIES","v":0.14000000000000001},"per Sheet","=",{"$f":"+I752*L752","v":0}]
[]
[null,"Xerox Copies (8.5\" x 11\" Color)"]
[null,"Overview Map & Inset Maps",null,"submittals","X",null,"sets","X",null,"Sheets","X",{"$f":"LETTERCOLOR","v":0.83},"per Sheet","=",{"$f":"+C755*F755*I755*L755","v":0}]
[null,"Miscellaneous ",null,null,null,null,null,null,null,"Sheets","X",{"$f":"LETTERCOLOR","v":0.83},"per Sheet","=",{"$f":"+I756*L756","v":0}]
[]
[null,"Xerox Copies (11\" x 17\" B&W)"]
[null,"Tabular Summaries of Work",null,"submittals","X",null,"Sets","X",null,"Sheets/Set","X",{"$f":"LEDGERCOPIES","v":0.34},"per Sheet","=",{"$f":"+C759*F759*I759*L759","v":0}]
[null,"Miscellaneous Check Plots",null,null,null,null,null,null,null,"Sheets","X",{"$f":"LEDGERCOPIES","v":0.34},"per Sheet","=",{"$f":"+I760*L760","v":0}]
[]
[null,"Xerox Copies (11\" x 17\" Color)"]
[null,"Inset Maps",null,"submittals","X",null,"Sets","X",null,"Sheets/Set","X",{"$f":"ROLLPLOTSlong","v":1.5},"per Sheet","=",{"$f":"+C763*F763*I763*L763","v":0}]
[null,"Miscellaneous Check Plots",null,null,null,null,null,null,null,"Sheets","X",{"$f":"ROLLPLOTSlong","v":1.5},"per Sheet","=",{"$f":"+I764*L764","v":0}]
[]
[null,"Bond Prints - Color (34\" x 68\")"]
[null,"Overview Map",null,"submittals","X",null,"Sets","X",null,"Sheets/Set","X",{"$f":"BOND.LARGE","v":3.5},"per Sheet","=",{"$f":"+C767*F767*I767*L767","v":0}]
[]
["MILEAGE"]
[null," Trips  ( From )",null,null,null,null,"Trips","X",null,"Miles/Trip","X",{"$f":"SEDAN","v":0.7},"per Mile","=",{"$f":"+F770*I770*L770","v":0}]
[null," Trips"]
[null,"( From )",null,null,null,null,"Trips","X",null,"Miles/Trip","X",{"$f":"SEDAN","v":0.7},"per Mile","=",{"$f":"+F772*I772*L772","v":0}]
[null,"( From )",null,null,null,null,"Trips","X",null,"Miles/Trip","X",{"$f":"SEDAN","v":0.7},"per Mile","=",0]
[]
["OVERNIGHT TRAVEL"]
[null,"Hotel - from ",null,"persons","X",null,"trips","X",null,"nights/trip","X",{"$f":"LODGING_LUMP.SUM","v":95},"per night","=",{"$f":"+C776*F776*I776*L776","v":0}]
[null,"Per Diem -  staff - Breakfast, Lunch, & Dinner",null,"persons","X",null,"trips","X",null,"days/trip","X",{"$f":"BREAKFAST+LUNCH+DINNER","v":46.5},"per day","=",0]
[null,"Per Diem -  staff - Breakfast ",null,"persons","X",null,"trips","X",null,"days/trip","X",{"$f":"BREAKFAST","v":10.1},"per day","=",0]
[null,"Per Diem -  staff - Lunch",null,"persons","X",null,"trips","X",null,"days/trip","X",{"$f":"LUNCH","v":13.3},"per day","=",0]
[null,"Per Diem -  staff -  Dinner",null,"persons","X",null,"trips","X",null,"days/trip","X",{"$f":"DINNER","v":23.1},"per day","=",0]
[]
["OTHER"]
[null,null,null,"UOM","X",null,"UOM","X",null,"UOM","X",null,"UOM","=",{"$f":"+C783*F783*I783*L783","v":0}]
[null,null,null,"UOM","X",null,"UOM","X",null,"UOM","X",null,"UOM","=",0]
[null,null,null,"UOM","X",null,"UOM","X",null,"UOM","X",null,"UOM","=",0]
[null,null,null,"UOM","X",null,"UOM","X",null,"UOM","X",null,"UOM","=",0]
[null,null,null,"UOM","X",null,"UOM","X",null,"UOM","X",null,"UOM","=",0]
[]
[null,null,null,null,null,null,null,null,null,null,null,null,"Subtotal",null,{"$f":"SUM(O751:O780)","v":0}]
["Task 4.0","Communications System"]
["REPRODUCTION"]
[null,"Xerox Copies (8.5\" x 11\" B&W)"]
[null,"Communications Technical Memo",null,"submittals","X",null,"Sets","X",null,"Sheets","X",{"$f":"LETTERCOPIES","v":0.14000000000000001},"per Sheet","=",{"$f":"+C793*F793*I793*L793","v":0}]
[null,"Miscellaneous",null,null,null,null,null,null,null,"Sheets","X",{"$f":"LETTERCOPIES","v":0.14000000000000001},"per Sheet","=",{"$f":"+I794*L794","v":0}]
[]
[null,"Xerox Copies (11\" x 17\" B&W)"]
[null,"Block Diagrams",null,"submittals","X",null,"Sets","X",null,"Sheets/Set","X",{"$f":"LEDGERCOPIES","v":0.34},"per Sheet","=",{"$f":"+C797*F797*I797*L797","v":0}]
[null,"Miscellaneous",null,null,null,null,null,null,null,"Sheets/Set","X",{"$f":"LEDGERCOPIES","v":0.34},"per Sheet","=",{"$f":"+I798*L798","v":0}]
[]
[null,"Xerox Copies (8.5\" x 11\" Color)"]
[null,"Communications Technical Memo",null,"submittals","X",null,"Sets","X",null,"Sheets","X",{"$f":"LETTERCOLOR","v":0.83},"per Sheet","=",{"$f":"+C801*F801*I801*L801","v":0}]
[null,"Miscellaneous",null,null,null,null,null,null,null,"Sheets","X",{"$f":"LETTERCOLOR","v":0.83},"per Sheet","=",{"$f":"+I802*L802","v":0}]
[]
[null,"Xerox Copies (11\" x 17\" Color)"]
[null,"tech memo  - Color",null,null,null,null,"Sets","X",null,"Sheets/Set","X",{"$f":"ROLLPLOTSlong","v":1.5},"per Sheet","=",{"$f":"+F805*I805*L805","v":0}]
[]
[null,"Bond Prints (34\" x 68\")"]
[null,"Preliminary Comm Route Plan - Color",null,"submittals","X",null,"Sets","X",null,"Sheets/Set","X",{"$f":"BOND.LARGE","v":3.5},"per Sheet","=",{"$f":"+C808*F808*I808*L808","v":0}]
["CAR RENTAL"]
[null," Trips"]
[null,"Wireless Testing",null,null,null,null,"Trips","X",null,"day/Trip","X",{"$f":"CARRENTAL","v":50},"per day","=",{"$f":"+F811*I811*L811","v":0}]
[null,null,null,null,null,null,"trips","X",null,"Miles/Trip","X",{"$f":"GASforRENTAL","v":0.2},"per Mile","=",0]
["OVERNIGHT TRAVEL"]
[null,"Hotel - wireless testing",null,"persons","X",null,"trips","X",null,"nights/trip","X",{"$f":"LODGING_LUMP.SUM","v":95},"per night","=",{"$f":"+C814*F814*I814*L814","v":0}]
[null,"Per Diem - wireless testing - Breakfast, Lunch, and Dinner",null,"persons","X",null,"trips","X",null,"days/trip","X",{"$f":"BREAKFAST+LUNCH+DINNER","v":46.5},"per day","=",0]
[null,"Per Diem - wireless testing - Breakfast",null,"persons","X",null,"trips","X",null,"days/trip","X",{"$f":"BREAKFAST","v":10.1},"per day","=",0]
[null,"Per Diem - wireless testing - Lunch",null,"persons","X",null,"trips","X",null,"days/trip","X",{"$f":"LUNCH","v":13.3},"per day","=",0]
[null,"Per Diem - wireless testing - Dinner",null,"persons","X",null,"trips","X",null,"days/trip","X",{"$f":"DINNER","v":23.1},"per day","=",0]
[]
["OTHER"]
[null,"Postage & Courier",null,null,null,null,"Pack.","X",25,"Ea",null,null,null,"=",{"$f":"+F821*I821","v":0}]
[null,null,null,"UOM","X",null,"UOM","X",null,"UOM","X",null,"UOM","=",{"$f":"+C822*F822*I822*L822","v":0}]
[null,null,null,"UOM","X",null,"UOM","X",null,"UOM","X",null,"UOM","=",0]
[null,null,null,"UOM","X",null,"UOM","X",null,"UOM","X",null,"UOM","=",0]
[null,null,null,"UOM","X",null,"UOM","X",null,"UOM","X",null,"UOM","=",0]
[null,null,null,"UOM","X",null,"UOM","X",null,"UOM","X",null,"UOM","=",0]
[]
[null,null,null,null,null,null,null,null,null,null,null,null,"Subtotal",null,{"$f":"SUM(O793:O826)","v":0}]
["Task 5.0","Field Equipment Inventories"]
["REPRODUCTION"]
[null,"Xerox Copies (8.5\" x 11\" B&W)"]
["5.2.1","State Inventory Sheets",null,null,null,null,"sheets","X",null,"intersection","X",{"$f":"LETTERCOPIES","v":0.14000000000000001},"per Sheet","=",{"$f":"+F832*I832*L832","v":0}]
["5.2.2","City Inventory Sheets",null,null,null,null,"sheet","X",null,"intersection","X",{"$f":"LETTERCOPIES","v":0.14000000000000001},"per Sheet","=",{"$f":"+F833*I833*L833","v":0}]
[5.4,"Inventory CCTV Cabinets",null,null,null,null,"sheets","X",null,"cameras","X",{"$f":"LETTERCOPIES","v":0.14000000000000001},"per Sheet","=",0]
[null,"Miscellaneous",null,null,null,null,null,null,null,"Sheets","X",{"$f":"LETTERCOPIES","v":0.14000000000000001},"per Sheet","=",{"$f":"+I835*L835","v":0}]
[null,"Xerox Copies (11\" x 17\" B&W)"]
[5.2,"Signal Plans (NCDOT)",null,null,null,null,"Sets","X",null,"Sheets/Set","X",{"$f":"LEDGERCOPIES","v":0.34},"per Sheet","=",{"$f":"+F837*I837*L837","v":0}]
[5.2,"Signal Plans (CITY)",null,null,null,null,"Sets","X",null,"Sheets/Set","X",{"$f":"LEDGERCOPIES","v":0.34},"per Sheet","=",0]
[null,"Miscellaneous",null,null,null,null,null,null,null,"Sheets/Set","X",{"$f":"LEDGERCOPIES","v":0.34},"per Sheet","=",{"$f":"+I839*L839","v":0}]
[]
["CAR RENTAL"]
[null," Trips"]
[null,"Signals Data Collection Field Trips",null,null,null,null,"Trips","X",null,"day/Trip","X",{"$f":"CARRENTAL","v":50},"per day","=",{"$f":"+F843*I843*L843","v":0}]
[null,null,null,null,null,null,"trips","X",null,"Miles/Trip","X",{"$f":"GASforRENTAL","v":0.2},"per Mile","=",0]
[null,"CCTV Cabinet Inventory Field Trips",null,null,null,null,"Trips","X",null,"day/Trip","X",{"$f":"CARRENTAL","v":50},"per day","=",0]
[null,null,null,null,null,null,"trips","X",null,"Miles/Trip","X",{"$f":"GASforRENTAL","v":0.2},"per Mile","=",0]
[]
["OVERNIGHT TRAVEL"]
[null,"Hotel - signal inventories",null,"persons","X",null,"trips","X",null,"nights/trip","X",{"$f":"LODGING_LUMP.SUM","v":95},"per night","=",{"$f":"+C849*F849*I849*L849","v":0}]
[null,"Hotel - CCTV inventories",null,"person","X",null,"trips","X",null,"nights/trip","X",{"$f":"LODGING_LUMP.SUM","v":95},"per night","=",0]
[null,"Per Diem - Signal inventories - Breakfast, Lunch, & Dinner",null,"persons","X",null,"trips","X",null,"days/trip","X",{"$f":"BREAKFAST+LUNCH+DINNER","v":46.5},"per day","=",0]
[null,"Per Diem - Signal inventories - Breakfast ",null,"persons","X",null,"trips","X",null,"days/trip","X",{"$f":"BREAKFAST","v":10.1},"per day","=",0]
[null,"Per Diem - Signal inventories - Lunch",null,"persons","X",null,"trips","X",null,"days/trip","X",{"$f":"LUNCH","v":13.3},"per day","=",0]
[null,"Per Diem - Signal inventories - Dinner",null,"persons","X",null,"trips","X",null,"days/trip","X",{"$f":"DINNER","v":23.1},"per day","=",0]
[null,"Per Diem - CCTV inventories - Breakfast, Lunch, & Dinner",null,"person","X",null,"trips","X",null,"days/trip","X",{"$f":"BREAKFAST+LUNCH+DINNER","v":46.5},"per day","=",0]
[null,"Per Diem - CCTV inventories - Breakfast",null,"person","X",null,"trips","X",null,"days/trip","X",{"$f":"BREAKFAST","v":10.1},"per day","=",0]
[null,"Per Diem - CCTV inventories - Lunch",null,"person","X",null,"trips","X",null,"days/trip","X",{"$f":"LUNCH","v":13.3},"per day","=",0]
[null,"Per Diem - CCTV inventories - Dinner",null,"person","X",null,"trips","X",null,"days/trip","X",{"$f":"DINNER","v":23.1},"per day","=",0]
[]
["OTHER"]
[null,null,null,"UOM","X",null,"UOM","X",null,"UOM","X",null,"UOM","=",{"$f":"+C861*F861*I861*L861","v":0}]
[null,null,null,"UOM","X",null,"UOM","X",null,"UOM","X",null,"UOM","=",0]
[null,null,null,"UOM","X",null,"UOM","X",null,"UOM","X",null,"UOM","=",0]
[null,null,null,"UOM","X",null,"UOM","X",null,"UOM","X",null,"UOM","=",0]
[null,null,null,"UOM","X",null,"UOM","X",null,"UOM","X",null,"UOM","=",0]
[]
[]
[null,null,null,null,null,null,null,null,null,null,null,null,"Subtotal",null,{"$f":"SUM(O832:O865)","v":0}]
["Task 6.0","CCTV Monitoring System"]
["REPRODUCTION"]
[null,"Xerox Copies (8.5\" x 11\") - B&W"]
[6.1,"Recommended Bucket Truck Survey Locations",null,"submittals","X",null,"Sets","X",null,"Sheets/Set","X",{"$f":"LETTERCOPIES","v":0.14000000000000001},"per Sheet","=",{"$f":"+C872*F872*I872*L872","v":0}]
[6.3,"Site Survey Compilation & Analysis Tech Memo",null,"submittals","X",null,"Sets","X",null,"Sheets/Set","X",{"$f":"LETTERCOPIES","v":0.14000000000000001},"per Sheet","=",0]
[6.4,"CCTV Site Study Technical Memo",null,"submittals","X",null,"Sets","X",null,"Sheets/Set","X",{"$f":"LETTERCOPIES","v":0.14000000000000001},"per Sheet","=",0]
[null,"Miscellaneous ",null,null,null,null,null,null,null,"Sheets","X",{"$f":"LETTERCOPIES","v":0.14000000000000001},"per Sheet","=",{"$f":"+I875*L875","v":0}]
[]
[null,"Xerox Copies (8.5\" x 11\") - Color"]
[6.1,"Recommended Bucket Truck Survey Locations",null,"submittals","X",null,"Sets","X",null,"Sheets/Set","X",{"$f":"LETTERCOLOR","v":0.83},"per Sheet","=",{"$f":"+C878*F878*I878*L878","v":0}]
[6.3,"Site Survey Compilation & Analysis Tech Memo",null,"submittals","X",null,"Sets","X",null,"Sheets/Set","X",{"$f":"LETTERCOLOR","v":0.83},"per Sheet","=",0]
[6.4,"CCTV Site Study Technical Memo",null,"submittals","X",null,"Sets","X",null,"Sheets/Set","X",{"$f":"LETTERCOLOR","v":0.83},"per Sheet","=",0]
[null,"Miscellaneous ",null,null,null,null,null,null,null,"Sheets","X",{"$f":"LETTERCOLOR","v":0.83},"per Sheet","=",{"$f":"+I881*L881","v":0}]
[]
[null,"Bond Prints (22\" x 34\")"]
[null,"Miscellaneous",null,null,null,null,null,null,null,"Sheets/Set","X",{"$f":"BOND.REGULAR","v":0.42},"per Sheet","=",{"$f":"+I884*L884","v":0}]
[]
["CAR RENTAL"]
[null," Trips"]
[null,"initial scouting + bucket truck surveys",null,null,null,null,"trips","X",null,"day/Trip","X",{"$f":"CARRENTAL","v":50},"per day","=",{"$f":"+F888*I888*L888","v":0}]
[]
[null,"Roundtrip  to",null,null,null,null,"trips","X",null,"Miles/Trip","X",{"$f":"GASforRENTAL","v":0.2},"per Mile","=",{"$f":"+F890*I890*L890","v":0}]
[null,"Roundtrip  to",null,null,null,null,"trips","X",null,"Miles/Trip","X",{"$f":"GASforRENTAL","v":0.2},"per Mile","=",0]
[null,"Local Travel in ",null,null,null,null,"days","X",null,"Miles/Day","X",{"$f":"GASforRENTAL","v":0.2},"per Mile","=",0]
["OVERNIGHT TRAVEL"]
[null,"Hotel",null,"person","X",null,"trips","X",null,"nights/trip","X",{"$f":"LODGING_LUMP.SUM","v":95},"per night","=",{"$f":"+C894*F894*I894*L894","v":0}]
[null,"Per Diem - Breakfast, Lunch, & Dinner",null,"person","X",null,"trips","X",null,"days/trip","X",{"$f":"BREAKFAST+LUNCH+DINNER","v":46.5},"per day","=",0]
[null,"Per Diem - Breakfast",null,"person","X",null,"trips","X",null,"days/trip","X",{"$f":"BREAKFAST","v":10.1},"per day","=",0]
[null,"Per Diem - Lunch",null,"person","X",null,"trips","X",null,"days/trip","X",{"$f":"LUNCH","v":13.3},"per day","=",0]
[null,"Per Diem - Dinner",null,"person","X",null,"trips","X",null,"days/trip","X",{"$f":"DINNER","v":23.1},"per day","=",0]
[]
[]
["OTHER"]
[null,"Postage & Courier",null,null,null,null,"Pack.","X",25,"Ea",null,null,null,"=",{"$f":"+F902*I902","v":0}]
[null,null,null,"UOM","X",null,"UOM","X",null,"UOM","X",null,"UOM","=",{"$f":"+C903*F903*I903*L903","v":0}]
[null,null,null,"UOM","X",null,"UOM","X",null,"UOM","X",null,"UOM","=",0]
[null,null,null,"UOM","X",null,"UOM","X",null,"UOM","X",null,"UOM","=",0]
[null,null,null,"UOM","X",null,"UOM","X",null,"UOM","X",null,"UOM","=",0]
[null,null,null,"UOM","X",null,"UOM","X",null,"UOM","X",null,"UOM","=",0]
[]
[null,null,null,null,null,null,null,null,null,null,null,null,"Subtotal",null,{"$f":"SUM(O872:O907)","v":0}]
[]
["Task 8.0","Railroad Encroachment Permit Coordination"]
["REPRODUCTION"]
[null,"Xerox Copies (8.5\" x 11\")"]
[null,"Permit Applications",null,null,null,null,"Sets","X",null,"Sheets/Set","X",{"$f":"LETTERCOPIES","v":0.14000000000000001},"per Sheet","=",{"$f":"+F914*I914*L914","v":0}]
[null,"Technical Reports, Special Provisions, documentation, etc",null,null,null,null,"Sets","X",null,"Sheets/Set","X",{"$f":"LETTERCOPIES","v":0.14000000000000001},"per Sheet","=",{"$f":"+F915*I915*L915","v":0}]
[]
[null,"Xerox Copies (11\" x 17\")"]
[null,"plan sheets",null,null,null,null,"Sets","X",null,"Sheets/Set","X",{"$f":"LEDGERCOPIES","v":0.34},"per Sheet","=",0]
[null,"miscellaneous ",null,null,null,null,null,null,null,"Sheets/Set","X",{"$f":"LEDGERCOPIES","v":0.34},"per Sheet","=",{"$f":"+I919*L919","v":0}]
["MILEAGE"]
[null," Trips",null,null,null,null,"Trips","X",null,"Miles/Trip","X",{"$f":"SEDAN","v":0.7},"per Mile","=",0]
[]
["CAR RENTAL"]
[null," Trips"]
[null,"Roundtrip -  to ",null,null,null,null,"trips","X",null,"day/Trip","X",{"$f":"CARRENTAL","v":50},"per day","=",0]
[null,null,null,null,null,null,"trips","X",null,"Miles/Trip","X",{"$f":"GASforRENTAL","v":0.2},"per Mile","=",0]
[null,"Local Mileage in ",null,null,null,null,"trips","X",null,"Miles/Trip","X",{"$f":"GASforRENTAL","v":0.2},"per Mile","=",0]
["OVERNIGHT TRAVEL"]
[null,"Hotel",null,"persons","X",null,"trips","X",null,"nights/trip","X",{"$f":"LODGING_LUMP.SUM","v":95},"per night","=",{"$f":"+C929*F929*I929*L929","v":0}]
[null,"Per Diem - Breakfast, Lunch, and Dinner",null,"persons","X",null,"trips","X",null,"days/trip","X",{"$f":"BREAKFAST+LUNCH+DINNER","v":46.5},"per day","=",0]
[null,"Per Diem - Breakfast ",null,"persons","X",null,"trips","X",null,"days/trip","X",{"$f":"BREAKFAST","v":10.1},"per day","=",0]
[null,"Per Diem - Lunch",null,"persons","X",null,"trips","X",null,"days/trip","X",{"$f":"LUNCH","v":13.3},"per day","=",0]
[null,"Per Diem - Dinner",null,"persons","X",null,"trips","X",null,"days/trip","X",{"$f":"DINNER","v":23.1},"per day","=",0]
[]
["OTHER"]
[null,"Postage & Courier",null,null,null,null,"Pack.","X",25,"Ea",null,null,null,"=",{"$f":"+F936*I936","v":0}]
[null,null,null,"UOM","X",null,"UOM","X",null,"UOM","X",null,"UOM","=",{"$f":"+C937*F937*I937*L937","v":0}]
[null,null,null,"UOM","X",null,"UOM","X",null,"UOM","X",null,"UOM","=",0]
[null,null,null,"UOM","X",null,"UOM","X",null,"UOM","X",null,"UOM","=",0]
[null,null,null,"UOM","X",null,"UOM","X",null,"UOM","X",null,"UOM","=",0]
[null,null,null,"UOM","X",null,"UOM","X",null,"UOM","X",null,"UOM","=",0]
[]
[]
[null,null,null,null,null,null,null,null,null,null,null,null,"Subtotal",null,{"$f":"SUM(O914:O941)","v":0}]
["Task 9.0","Basis of Design Document (BODD)"]
["REPRODUCTION"]
[null,"Xerox Copies (8.5\" x 11\")",null,"version","X",null,"Sets","X",null,"Sheets/Set","X",{"$f":"LETTERCOPIES","v":0.14000000000000001},"per Sheet","=",{"$f":"+C947*F947*I947*L947","v":0}]
[null,"BODD notebook",null,"updates","X",null,"Sets","X",null,"Sheets/Set","X",{"$f":"LETTERCOPIES","v":0.14000000000000001},"per Sheet","=",{"$f":"+C948*F948*I948*L948","v":0}]
[null,"Miscellaneous "]
[]
[null,"Xerox Copies (11\" x 17\")"]
[null,"BODD Graphics - Color",null,"versions","X",null,"Sets","X",null,"Sheets/Set","X",{"$f":"ROLLPLOTSlong","v":1.5},"per Sheet","=",{"$f":"+C952*F952*I952*L952","v":0}]
[null,"BODD Exhibits - Black/White",null,"versions","X",null,"Sets","X",null,"Sheets/Set","X",{"$f":"LEDGERCOPIES","v":0.34},"per Sheet","=",0]
[null,"Miscellaneous - Color",null,null,null,null,"Sets","X",null,"Sheets/Set","X",{"$f":"ROLLPLOTSlong","v":1.5},"per Sheet","=",{"$f":"+F954*I954*L954","v":0}]
[null,"Miscellaneous - Black/White",null,null,null,null,"Sets","X",null,"Sheets/Set","X",{"$f":"LEDGERCOPIES","v":0.34},"per Sheet","=",{"$f":"+F955*I955*L955","v":0}]
[]
[null,"BODD Notebooks"]
[null,"3\" Heavy-Duty D-ring Presentation Binder",null,null,null,null,"volumes","X",null,"Binders","X",14.29,"per binder","=",{"$f":"+F958*I958*L958","v":0}]
[null,"Sheet Lifters",null,null,null,null,"Binders","X",null,"pair/binder","X",1.99,"per pair","=",0]
[null,"Media Storage Pages (CD pockets)",null,null,null,null,null,null,null,"5-packs","X",7.99,"per pack","=",{"$f":"+I960*L960","v":0}]
[null,"Untabbed Business Card Pages",null,null,null,null,null,null,null,"10-packs","X",3.99,"per pack","=",{"$f":"+I961*L961","v":0}]
[null,"Self-Adhesive Business Card Holders",null,null,null,null,null,null,null,"10-packs","X",3.99,"per pack","=",0]
[null,"Direct Print Dividers, 5-Tab (4/pack) (10 tabs/binder for 4 binders)",null,null,null,null,null,null,null,"4-packs","X",23.99,"per pack","=",0]
[null,"Direct Print Dividers, 5-Tab (24/pack) (10 tabs/binder for 12 binders)",null,null,null,null,null,null,null,"24-packs","X",142.99,"per pack","=",0]
[]
["OTHER"]
[null,"Miscellaneous",null,null,null,null,"Sets","X",null,"Sheets/Set","X",{"$f":"LETTERCOPIES","v":0.14000000000000001},"per Sheet","=",{"$f":"+F967*I967*L967","v":0}]
[null,null,null,null,null,null,null,null,null,"Sheets","X",{"$f":"LETTERCOPIES","v":0.14000000000000001},"per Sheet","=",{"$f":"+I968*L968","v":0}]
[null,null,null,"UOM","X",null,"UOM","X",null,"UOM","X",null,"UOM","=",{"$f":"+C969*F969*I969*L969","v":0}]
[null,null,null,"UOM","X",null,"UOM","X",null,"UOM","X",null,"UOM","=",0]
[null,null,null,"UOM","X",null,"UOM","X",null,"UOM","X",null,"UOM","=",0]
[null,null,null,"UOM","X",null,"UOM","X",null,"UOM","X",null,"UOM","=",0]
[null,null,null,"UOM","X",null,"UOM","X",null,"UOM","X",null,"UOM","=",0]
[]
[null,null,null,null,null,null,null,null,null,null,null,null,"Subtotal",null,{"$f":"SUM(O947:O973)","v":0}]
["Task 10.0","Utility Make-Ready Plans"]
["REPRODUCTION"]
[null,"Xerox Copies (8.5\" x 11\")"]
[null,"Utility Partnering Meeting Handouts",null,null,null,null,"Sets","X",null,"Sheets/Set","X",{"$f":"LETTERCOPIES","v":0.14000000000000001},"per Sheet","=",{"$f":"+F979*I979*L979","v":0}]
[null,"Miscellaneous ",null,null,null,null,null,null,null,"Sheets","X",{"$f":"LETTERCOPIES","v":0.14000000000000001},"per Sheet","=",{"$f":"+I980*L980","v":0}]
[]
[null,"Xerox Copies (11\" x 17\")"]
[null,"Utility Partnering Meeting Examples",null,null,null,null,"Sets","X",null,"Sheets/Set","X",{"$f":"LEDGERCOPIES","v":0.34},"per Sheet","=",{"$f":"+F983*I983*L983","v":0}]
[null,"Preliminary UMR Plans",null,null,null,null,"Sets","X",null,"Sheets/Set","X",{"$f":"LEDGERCOPIES","v":0.34},"per Sheet","=",0]
[null,"QC Set",null,null,null,null,"Sets","X",null,"Sheets/Set","X",{"$f":"LEDGERCOPIES","v":0.34},"per Sheet","=",0]
[null,"Record Set - Consultant ",null,null,null,null,"Sets","X",null,"Sheets/Set","X",{"$f":"LEDGERCOPIES","v":0.34},"per Sheet","=",0]
[null,"Covers & Binding",null,null,null,null,null,null,null,"sets","X",{"$f":"COVERS+BINDERS","v":1},"per set","=",{"$f":"+I987*L987","v":0}]
[null,"Draft Final UMR Plans",null,null,null,null,"Sets","X",null,"Sheets/Set","X",{"$f":"LEDGERCOPIES","v":0.34},"per Sheet","=",0]
[null,"QC Set",null,null,null,null,"Sets","X",null,"Sheets/Set","X",{"$f":"LEDGERCOPIES","v":0.34},"per Sheet","=",0]
[null,"Record Set - Consultant ",null,null,null,null,"Sets","X",null,"Sheets/Set","X",{"$f":"LEDGERCOPIES","v":0.34},"per Sheet","=",0]
[null,"Covers & Binding",null,null,null,null,null,null,null,"sets","X",{"$f":"COVERS+BINDERS","v":1},"per set","=",{"$f":"+I991*L991","v":0}]
[null,"Final UMR Plans",null,null,null,null,"Sets","X",null,"Sheets/Set","X",{"$f":"LEDGERCOPIES","v":0.34},"per Sheet","=",0]
[null,"QC Set",null,null,null,null,"Sets","X",null,"Sheets/Set","X",{"$f":"LEDGERCOPIES","v":0.34},"per Sheet","=",0]
[null,"Record Set - Consultant ",null,null,null,null,"Sets","X",null,"Sheets/Set","X",{"$f":"LEDGERCOPIES","v":0.34},"per Sheet","=",0]
[null,"Covers & Binding",null,null,null,null,null,null,null,"sets","X",{"$f":"COVERS+BINDERS","v":1},"per set","=",{"$f":"+I995*L995","v":0}]
[]
[null,"Bond Prints (22\" x 34\")"]
[null,"Final UMR plans - Deliverables",null,null,null,null,"Sets","X",null,"Sheets/Set","X",{"$f":"BOND.REGULAR","v":0.42},"per Sheet","=",{"$f":"+F998*I998*L998","v":0}]
[null,"QC Set",null,null,null,null,"Sets","X",null,"Sheets/Set","X",{"$f":"BOND.REGULAR","v":0.42},"per Sheet","=",{"$f":"+F999*I999*L999","v":0}]
[null,{"$f":"CONCATENATE(\"Record Set - Consultant\",\" \",A8)","v":"Record Set - Consultant CONSULTANT NAME"},null,null,null,null,"Sets","X",null,"Sheets/Set","X",{"$f":"BOND.REGULAR","v":0.42},"per Sheet","=",{"$f":"+F1000*I1000*L1000","v":0}]
[null,"Covers & Binding",null,null,null,null,null,null,null,"sets","X",{"$f":"COVERS+BINDERS","v":1},"per set","=",{"$f":"+I1001*L1001","v":0}]
[]
["MILEAGE"]
[null," Trips",null,null,null,null,"Trips","X",null,"Miles/Trip","X",{"$f":"SEDAN","v":0.7},"per Mile","=",{"$f":"+F1004*I1004*L1004","v":0}]
[]
["CAR RENTAL"]
[null," Trips"]
[10.1,"Utility Partnering Meeting",null,null,null,null,"Trips","X",null,"day/Trip","X",{"$f":"CARRENTAL","v":50},"per day","=",{"$f":"+F1008*I1008*L1008","v":0}]
[null,null,null,null,null,null,"trips","X",null,"Miles/Trip","X",{"$f":"GASforRENTAL","v":0.2},"per Mile","=",0]
[10.3,"Preliminary Cable Route Survey",null,null,null,null,"trips","X",null,"day/Trip","X",{"$f":"CARRENTAL","v":50},"per day","=",0]
[null,"Roundtrip -  to ",null,null,null,null,"trips","X",null,"Miles/Trip","X",{"$f":"GASforRENTAL","v":0.2},"per Mile","=",0]
[null,"Local Mileage in ",null,null,null,null,"trips","X",null,"Miles/Trip","X",{"$f":"GASforRENTAL","v":0.2},"per Mile","=",0]
[10.8,"Field Survey Aerial Routes",null,null,null,null,"Trips","X",null,"day/Trip","X",{"$f":"CARRENTAL","v":50},"per day","=",0]
[null,"Roundtrip -  to ",null,null,null,null,"trips","X",null,"Miles/Trip","X",{"$f":"GASforRENTAL","v":0.2},"per Mile","=",0]
[null,"Local Mileage in ",null,null,null,null,"trips","X",null,"Miles/Trip","X",{"$f":"GASforRENTAL","v":0.2},"per Mile","=",0]
[10.1,"UMR Walk-throughs",null,null,null,null,"Trips","X",null,"day/Trip","X",{"$f":"CARRENTAL","v":50},"per day","=",0]
[null,"Roundtrip -  to ",null,null,null,null,"trips","X",null,"Miles/Trip","X",{"$f":"GASforRENTAL","v":0.2},"per Mile","=",0]
[null,"Local Mileage in ",null,null,null,null,"trips","X",null,"Miles/Trip","X",{"$f":"GASforRENTAL","v":0.2},"per Mile","=",0]
[]
["OVERNIGHT TRAVEL"]
[10.1,"Hotel",null,"persons","X",null,"trips","X",null,"nights/trip","X",{"$f":"LODGING_LUMP.SUM","v":95},"per night","=",{"$f":"+C1021*F1021*I1021*L1021","v":0}]
[null,"Per Diem - Breakfast, Lunch, & Dinner",null,"persons","X",null,"trips","X",null,"days/trip","X",{"$f":"BREAKFAST+LUNCH+DINNER","v":46.5},"per day","=",{"$f":"+C1022*F1022*I1022*L1022","v":0}]
[null,"Per Diem - Breakfast  ",null,"persons","X",null,"trips","X",null,"days/trip","X",{"$f":"BREAKFAST","v":10.1},"per day","=",0]
[null,"Per Diem - Lunch",null,"persons","X",null,"trips","X",null,"days/trip","X",{"$f":"LUNCH","v":13.3},"per day","=",0]
[null,"Per Diem - Dinner",null,"persons","X",null,"trips","X",null,"days/trip","X",{"$f":"DINNER","v":23.1},"per day","=",0]
[10.3,"Hotel",null,"persons","X",null,"trips","X",null,"nights/trip","X",{"$f":"LODGING_LUMP.SUM","v":95},"per night","=",0]
[null,"Per Diem - Breakfast, Lunch, & Dinner",null,"persons","X",null,"trips","X",null,"days/trip","X",{"$f":"BREAKFAST+LUNCH+DINNER","v":46.5},"per day","=",0]
[null,"Per Diem - Breakfast  ",null,"persons","X",null,"trips","X",null,"days/trip","X",{"$f":"BREAKFAST","v":10.1},"per day","=",0]
[null,"Per Diem - Lunch",null,"persons","X",null,"trips","X",null,"days/trip","X",{"$f":"LUNCH","v":13.3},"per day","=",0]
[null,"Per Diem - Dinner",null,"persons","X",null,"trips","X",null,"days/trip","X",{"$f":"DINNER","v":23.1},"per day","=",0]
[10.8,"Hotel",null,"persons","X",null,"trips","X",null,"nights/trip","X",{"$f":"LODGING_LUMP.SUM","v":95},"per night","=",0]
[null,"Per Diem - Breakfast, Lunch, & Dinner",null,"persons","X",null,"trips","X",null,"days/trip","X",{"$f":"BREAKFAST+LUNCH+DINNER","v":46.5},"per day","=",0]
[null,"Per Diem - Breakfast  ",null,"persons","X",null,"trips","X",null,"days/trip","X",{"$f":"BREAKFAST","v":10.1},"per day","=",0]
[null,"Per Diem - Lunch",null,"persons","X",null,"trips","X",null,"days/trip","X",{"$f":"LUNCH","v":13.3},"per day","=",0]
[null,"Per Diem - Dinner",null,"persons","X",null,"trips","X",null,"days/trip","X",{"$f":"DINNER","v":23.1},"per day","=",0]
[10.1,"Hotel",null,"persons","X",null,"trips","X",null,"nights/trip","X",{"$f":"LODGING_LUMP.SUM","v":95},"per night","=",0]
[null,"Per Diem - Breakfast, Lunch, & Dinner",null,"persons","X",null,"trips","X",null,"days/trip","X",{"$f":"BREAKFAST+LUNCH+DINNER","v":46.5},"per day","=",0]
[null,"Per Diem - Breakfast  ",null,"persons","X",null,"trips","X",null,"days/trip","X",{"$f":"BREAKFAST","v":10.1},"per day","=",0]
[null,"Per Diem - Lunch",null,"persons","X",null,"trips","X",null,"days/trip","X",{"$f":"LUNCH","v":13.3},"per day","=",0]
[null,"Per Diem - Dinner",null,"persons","X",null,"trips","X",null,"days/trip","X",{"$f":"DINNER","v":23.1},"per day","=",0]
[]
[]
["OTHER"]
[null,"Postage & Courier"]
[null,"FedEx (2-day Economy) UMR Plans to Utilities & City",null,"Submittals","X",null,"Pack.","X",10,"Ea",null,null,null,"=",{"$f":"+C1045*F1045*I1045","v":0}]
[null,"Miscellaneous",null,null,null,null,"Pack.","X",25,"Ea",null,null,null,"=",{"$f":"+F1046*I1046","v":0}]
[null,null,null,"UOM","X",null,"UOM","X",null,"UOM","X",null,"UOM","=",{"$f":"+C1047*F1047*I1047*L1047","v":0}]
[null,null,null,"UOM","X",null,"UOM","X",null,"UOM","X",null,"UOM","=",0]
[null,null,null,"UOM","X",null,"UOM","X",null,"UOM","X",null,"UOM","=",0]
[null,null,null,"UOM","X",null,"UOM","X",null,"UOM","X",null,"UOM","=",0]
[null,null,null,"UOM","X",null,"UOM","X",null,"UOM","X",null,"UOM","=",0]
[]
[]
[null,null,null,null,null,null,null,null,null,null,null,null,"Subtotal",null,{"$f":"SUM(O979:O1052)","v":0}]
["Task 11.0","Construction Plans (See Deliverables also)"]
[]
["CAR RENTAL"]
[null," Trips"]
[]
["11.1.14","CL Sheet Field Investigation",null,null,null,null,"trips","X",null,"day/Trip","X",{"$f":"CARRENTAL","v":50},"per day","=",{"$f":"+F1060*I1060*L1060","v":0}]
[null,null,null,null,null,null,"trips","X",null,"Miles/Trip","X",{"$f":"GASforRENTAL","v":0.2},"per Mile","=",{"$f":"+F1061*I1061*L1061","v":0}]
[]
["11.1.19 thru 20","Field Investigate Bldg. Mods.",null,null,null,null,"trips","X",null,"day/Trip","X",{"$f":"CARRENTAL","v":50},"per day","=",0]
[null,null,null,null,null,null,"trips","X",null,"Miles/Trip","X",{"$f":"GASforRENTAL","v":0.2},"per Mile","=",0]
[11.4,"Field Check Final Plans",null,null,null,null,"trips","X",null,"day/Trip","X",{"$f":"CARRENTAL","v":50},"per day","=",0]
[null,null,null,null,null,null,"trips","X",null,"Miles/Trip","X",{"$f":"GASforRENTAL","v":0.2},"per Mile","=",0]
[]
["OVERNIGHT TRAVEL"]
[null,"Hotel"]
["11.1.26","Prelim PS&E On-site work sessions - back to back with steering committeee meetings",null,"persons","X",null,"trips","X",null,"nights/trip","X",{"$f":"LODGING_LUMP.SUM","v":95},"per night","=",{"$f":"+C1070*F1070*I1070*L1070","v":0}]
["11.1.19 thru 20","Field Investigate Bldg. Mods.",null,"persons","X",null,"trips","X",null,"nights/trip","X",{"$f":"LODGING_LUMP.SUM","v":95},"per night","=",{"$f":"+C1071*F1071*I1071*L1071","v":0}]
[null,"Per Diem (Breakfast, Lunch, & Dinner)"]
["11.1.19 thru 20","Field Investigate Bldg. Mods.",null,"persons","X",null,"trips","X",null,"days/trip","X",{"$f":"BREAKFAST+LUNCH+DINNER","v":46.5},"per day","=",{"$f":"+C1073*F1073*I1073*L1073","v":0}]
["11.1.26","Prelim PS&E On-site work sessions - back to back with steering committeee meetings",null,"persons","X",null,"trips","X",null,"days/trip","X",{"$f":"BREAKFAST+LUNCH+DINNER","v":46.5},"per day","=",0]
[null,"Per Diem (Breakfast)"]
["11.1.19 thru 20","Field Investigate Bldg. Mods.",null,"persons","X",null,"trips","X",null,"days/trip","X",{"$f":"BREAKFAST","v":10.1},"per day","=",{"$f":"+C1076*F1076*I1076*L1076","v":0}]
["11.1.26","Prelim PS&E On-site work sessions - back to back with steering committeee meetings",null,"persons","X",null,"trips","X",null,"days/trip","X",{"$f":"BREAKFAST","v":10.1},"per day","=",0]
[null,"Per Diem (Lunch)"]
["11.1.19 thru 20","Field Investigate Bldg. Mods.",null,"persons","X",null,"trips","X",null,"days/trip","X",{"$f":"LUNCH","v":13.3},"per day","=",{"$f":"+C1079*F1079*I1079*L1079","v":0}]
["11.1.26","Prelim PS&E On-site work sessions - back to back with steering committeee meetings",null,"persons","X",null,"trips","X",null,"days/trip","X",{"$f":"LUNCH","v":13.3},"per day","=",0]
[null,"Per Diem (Dinner)"]
["11.1.19 thru 20","Field Investigate Bldg. Mods.",null,"persons","X",null,"trips","X",null,"days/trip","X",{"$f":"DINNER","v":23.1},"per day","=",0]
["11.1.26","Prelim PS&E On-site work sessions - back to back with steering committeee meetings",null,"persons","X",null,"trips","X",null,"days/trip","X",{"$f":"DINNER","v":23.1},"per day","=",0]
[]
["OTHER"]
[null,"Miscellaneous",null,null,null,null,"Sets","X",null,"Sheets/Set","X",{"$f":"LETTERCOPIES","v":0.14000000000000001},"per Sheet","=",{"$f":"+F1086*I1086*L1086","v":0}]
[null,null,null,null,null,null,null,null,null,"Sheets","X",{"$f":"LETTERCOPIES","v":0.14000000000000001},"per Sheet","=",{"$f":"+I1087*L1087","v":0}]
[null,null,null,"UOM","X",null,"UOM","X",null,"UOM","X",null,"UOM","=",{"$f":"+C1088*F1088*I1088*L1088","v":0}]
[null,null,null,"UOM","X",null,"UOM","X",null,"UOM","X",null,"UOM","=",0]
[null,null,null,"UOM","X",null,"UOM","X",null,"UOM","X",null,"UOM","=",0]
[null,null,null,"UOM","X",null,"UOM","X",null,"UOM","X",null,"UOM","=",0]
[null,null,null,"UOM","X",null,"UOM","X",null,"UOM","X",null,"UOM","=",0]
[]
[null,null,null,null,null,null,null,null,null,null,null,null,"Subtotal",null,{"$f":"SUM(O1060:O1092)","v":0}]
["Task 12.0","Project Special Provisions (See Deliverables also)"]
["REPRODUCTION/PRINTING/DOCUMENTATION"]
[null,"Xerox Copies (8.5\" x 11\")"]
[null,"Miscellaneous (Corres., etc.)"]
[null,null,null,null,null,null,null,null,null,"Sheets","X",{"$f":"LETTERCOPIES","v":0.14000000000000001},"per Sheet","=",{"$f":"+I1099*L1099","v":0}]
[null,null,null,"UOM","X",null,"UOM","X",null,"UOM","X",null,"UOM","=",{"$f":"+C1100*F1100*I1100*L1100","v":0}]
[null,null,null,"UOM","X",null,"UOM","X",null,"UOM","X",null,"UOM","=",0]
[null,null,null,"UOM","X",null,"UOM","X",null,"UOM","X",null,"UOM","=",0]
[null,null,null,"UOM","X",null,"UOM","X",null,"UOM","X",null,"UOM","=",0]
[null,null,null,"UOM","X",null,"UOM","X",null,"UOM","X",null,"UOM","=",0]
[]
[null,null,null,null,null,null,null,null,null,null,null,null,"Subtotal",null,{"$f":"SUM(O1097:O1104)","v":0}]
["Task 13.0","Engineer's Opinion of Probable Cost"]
["REPRODUCTION"]
[null,"Xerox Copies (8.5\" x 11\")"]
[null,"Preliminary Opinion of Cost"]
[null,"Final Opinion of Cost",null,null,null,null,"Sets","X",null,"Sheets/Set","X",{"$f":"LETTERCOPIES","v":0.14000000000000001},"per Sheet","=",{"$f":"+F1111*I1111*L1111","v":0}]
[null,"Miscellaneous",null,null,null,null,"Sets","X",null,"Sheets/Set","X",{"$f":"LETTERCOPIES","v":0.14000000000000001},"per Sheet","=",{"$f":"+F1112*I1112*L1112","v":0}]
[null,null,null,null,null,null,null,null,null,"Sheets","X",{"$f":"LETTERCOPIES","v":0.14000000000000001},"per Sheet","=",{"$f":"+I1113*L1113","v":0}]
[]
["OTHER"]
[null,null,null,"UOM","X",null,"UOM","X",null,"UOM","X",null,"UOM","=",{"$f":"+C1116*F1116*I1116*L1116","v":0}]
[null,null,null,"UOM","X",null,"UOM","X",null,"UOM","X",null,"UOM","=",0]
[null,null,null,"UOM","X",null,"UOM","X",null,"UOM","X",null,"UOM","=",0]
[null,null,null,"UOM","X",null,"UOM","X",null,"UOM","X",null,"UOM","=",0]
[null,null,null,"UOM","X",null,"UOM","X",null,"UOM","X",null,"UOM","=",0]
[]
[null,null,null,null,null,null,null,null,null,null,null,null,"Subtotal",null,{"$f":"SUM(O1110:O1120)","v":0}]
["Task 14.0","Prepare PS&E Deliverables and Final Documentation"]
["REPRODUCTION"]
[null,"Xerox Copies (8.5\" x 11\")"]
[null,"Preliminary Special Provisions",null,null,null,null,"Sets","X",null,"Sheets/Set","X",{"$f":"LETTERCOPIES","v":0.14000000000000001},"per Sheet","=",{"$f":"+F1126*I1126*L1126","v":0}]
[null,"Covers & Binding",null,null,null,null,null,null,null,"sets","X",{"$f":"COVERS+BINDERS","v":1},"per set","=",{"$f":"+I1127*L1127","v":0}]
[null,"QC Set",null,null,null,null,"Sets","X",null,"Sheets/Set","X",{"$f":"LETTERCOPIES","v":0.14000000000000001},"per Sheet","=",{"$f":"+F1128*I1128*L1128","v":0}]
[null,"Record Set - Consultant",null,null,null,null,"Sets","X",null,"Sheets/Set","X",{"$f":"LETTERCOPIES","v":0.14000000000000001},"per Sheet","=",0]
[null,"Draft Final Special Provisions",null,null,null,null,"Sets","X",null,"Sheets/Set","X",{"$f":"LETTERCOPIES","v":0.14000000000000001},"per Sheet","=",0]
[null,"Covers & Binding",null,null,null,null,null,null,null,"sets","X",{"$f":"COVERS+BINDERS","v":1},"per set","=",{"$f":"+I1131*L1131","v":0}]
[null,"QC Set",null,null,null,null,"Sets","X",null,"Sheets/Set","X",{"$f":"LETTERCOPIES","v":0.14000000000000001},"per Sheet","=",{"$f":"+F1132*I1132*L1132","v":0}]
[null,"Record Set - Consultant",null,null,null,null,"Sets","X",null,"Sheets/Set","X",{"$f":"LETTERCOPIES","v":0.14000000000000001},"per Sheet","=",0]
[null,"Final Special Provisions",null,null,null,null,"Sets","X",null,"Sheets/Set","X",{"$f":"LETTERCOPIES","v":0.14000000000000001},"per Sheet","=",0]
[null,"Covers & Binding",null,null,null,null,null,null,null,"sets","X",{"$f":"COVERS+BINDERS","v":1},"per set","=",{"$f":"+I1135*L1135","v":0}]
[null,"QC Set",null,null,null,null,"Sets","X",null,"Sheets/Set","X",{"$f":"LETTERCOPIES","v":0.14000000000000001},"per Sheet","=",{"$f":"+F1136*I1136*L1136","v":0}]
[null,"Record Set - Consultant",null,null,null,null,"Sets","X",null,"Sheets/Set","X",{"$f":"LETTERCOPIES","v":0.14000000000000001},"per Sheet","=",0]
[null,"Misc. (Corres., Signal Calcs, etc.)",null,null,null,null,null,null,null,"Sheets","X",{"$f":"LETTERCOPIES","v":0.14000000000000001},"per Sheet","=",{"$f":"+I1138*L1138","v":0}]
[]
[]
[null,"Xerox Copies (11\" x 17\")"]
[null,"Preliminary Construction Plans (no NCDOT Signals)",null,null,null,null,"Sets","X",null,"Sheets/Set","X",{"$f":"LEDGERCOPIES","v":0.34},"per Sheet","=",{"$f":"+F1142*I1142*L1142","v":0}]
[null,"QC Set",null,null,null,null,"Sets","X",null,"Sheets/Set","X",{"$f":"LEDGERCOPIES","v":0.34},"per Sheet","=",0]
[null,"Record Set - Consultant",null,null,null,null,"Sets","X",null,"Sheets/Set","X",{"$f":"LEDGERCOPIES","v":0.34},"per Sheet","=",0]
[null,"Covers & Binding",null,null,null,null,"Sets","X",null,"Volumes/Set","X",{"$f":"COVERS+BINDERS","v":1},"per set","=",0]
[null,"Draft Final Construction Plans (incl. NCDOT Signals)",null,null,null,null,"Sets","X",null,"Sheets/Set","X",{"$f":"LEDGERCOPIES","v":0.34},"per Sheet","=",0]
[null,"QC Set",null,null,null,null,"Sets","X",null,"Sheets/Set","X",{"$f":"LEDGERCOPIES","v":0.34},"per Sheet","=",0]
[null,"Record Set - Consultant",null,null,null,null,"Sets","X",null,"Sheets/Set","X",{"$f":"LEDGERCOPIES","v":0.34},"per Sheet","=",0]
[null,"Covers & Binding",null,null,null,null,"Sets","X",null,"Volumes/Set","X",{"$f":"COVERS+BINDERS","v":1},"per set","=",0]
[null,"Final Construction Plans (incl. NCDOT Signals)",null,null,null,null,"Sets","X",null,"Sheets/Set","X",{"$f":"LEDGERCOPIES","v":0.34},"per Sheet","=",0]
[null,"QC Set",null,null,null,null,"Sets","X",null,"Sheets/Set","X",{"$f":"LEDGERCOPIES","v":0.34},"per Sheet","=",0]
[null,"Record Set - Consultant",null,null,null,null,"Sets","X",null,"Sheets/Set","X",{"$f":"LEDGERCOPIES","v":0.34},"per Sheet","=",0]
[null,"Covers & Binding",null,null,null,null,"Sets","X",null,"Volumes/Set","X",{"$f":"COVERS+BINDERS","v":1},"per set","=",0]
[]
[null,"Bond Prints (22\" x 34\")"]
[null,"Final Construction Plans",null,null,null,null,"Sets","X",null,"Sheets/Set","X",{"$f":"BOND.REGULAR","v":0.42},"per Sheet","=",{"$f":"+F1156*I1156*L1156","v":0}]
[null,"QC Set",null,null,null,null,"Sets","X",null,"Sheets/Set","X",{"$f":"BOND.REGULAR","v":0.42},"per Sheet","=",0]
[null,"Record Set - Consultant",null,null,null,null,"Sets","X",null,"Sheets/Set","X",{"$f":"BOND.REGULAR","v":0.42},"per Sheet","=",0]
[null,"Covers & Binding",null,null,null,null,"Sets","X",null,"Volumes/Set","X",{"$f":"COVERS+BINDERS","v":1},"per set","=",0]
[]
["MILEAGE"]
[null,"NCDOT Delivery/Pick-up",null,null,null,null,"Trips","X",null,"Miles/Trip","X",{"$f":"SEDAN","v":0.7},"per Mile","=",{"$f":"+F1162*I1162*L1162","v":0}]
[]
["OTHER"]
[null,"USB Jump Drive (16 GB)",null,null,null,null,"Each","X",19.989999999999998,"Ea",null,null,null,"=",{"$f":"+F1165*I1165","v":0}]
[null,null,null,"UOM","X",null,"UOM","X",null,"UOM","X",null,"UOM","=",{"$f":"+C1166*F1166*I1166*L1166","v":0}]
[null,null,null,"UOM","X",null,"UOM","X",null,"UOM","X",null,"UOM","=",0]
[null,null,null,"UOM","X",null,"UOM","X",null,"UOM","X",null,"UOM","=",0]
[null,null,null,"UOM","X",null,"UOM","X",null,"UOM","X",null,"UOM","=",0]
[null,null,null,"UOM","X",null,"UOM","X",null,"UOM","X",null,"UOM","=",0]
[]
[null,null,null,null,null,null,null,null,null,null,null,null,"Subtotal",null,{"$f":"SUM(O1126:O1170)","v":0}]
[]
["Task 15.0",{"$f":"IF(B375=\"REPLACE FIELD WITH CATEGORY NAME OF YOUR CHOOSING HERE\",\"Category Not Defined Above, Please do not key values in this section\",B375)","v":"Category Not Defined Above, Please do not key values in this section"},null,null,null,null,null,null,null,null,null,null,null,null,{"$f":"IF(B1174=\"Category Not Defined Above, Please do not key values in this section\",0,\"\")","v":0}]
["OTHER","UOM = Unit of Measure",null,null,null,null,null,null,null,null,null,null,null,null,{"$f":"IF(B1174=\"Category Not Defined Above, Please do not key values in this section\",0,\"\")","v":0}]
[null,null,null,"UOM","X",null,"UOM","X",null,"UOM","X",null,"UOM","=",{"$f":"+C1176*F1176*I1176*L1176","v":0}]
[null,null,null,"UOM","X",null,"UOM","X",null,"UOM","X",null,"UOM","=",0]
[null,null,null,"UOM","X",null,"UOM","X",null,"UOM","X",null,"UOM","=",0]
[null,null,null,"UOM","X",null,"UOM","X",null,"UOM","X",null,"UOM","=",0]
[null,null,null,"UOM","X",null,"UOM","X",null,"UOM","X",null,"UOM","=",0]
[null,null,null,"UOM","X",null,"UOM","X",null,"UOM","X",null,"UOM","=",0]
[null,null,null,"UOM","X",null,"UOM","X",null,"UOM","X",null,"UOM","=",0]
[null,null,null,"UOM","X",null,"UOM","X",null,"UOM","X",null,"UOM","=",0]
[null,null,null,"UOM","X",null,"UOM","X",null,"UOM","X",null,"UOM","=",0]
[null,null,null,"UOM","X",null,"UOM","X",null,"UOM","X",null,"UOM","=",0]
[null,null,null,"UOM","X",null,"UOM","X",null,"UOM","X",null,"UOM","=",0]
[null,null,null,"UOM","X",null,"UOM","X",null,"UOM","X",null,"UOM","=",0]
[null,null,null,"UOM","X",null,"UOM","X",null,"UOM","X",null,"UOM","=",0]
[null,null,null,"UOM","X",null,"UOM","X",null,"UOM","X",null,"UOM","=",0]
[null,null,null,"UOM","X",null,"UOM","X",null,"UOM","X",null,"UOM","=",0]
[]
[null,null,null,null,null,null,null,null,null,null,null,null,"Subtotal",null,{"$f":"SUM(O1176:O1190)","v":0}]
[]
[]
["Task 16.0",{"$f":"IF(B409=\"REPLACE FIELD WITH CATEGORY NAME OF YOUR CHOOSING HERE\",\"Category Not Defined Above, Please do not key values in this section\",B409)","v":"Category Not Defined Above, Please do not key values in this section"},null,null,null,null,null,null,null,null,null,null,null,null,{"$f":"IF(B1195=\"Category Not Defined Above, Please do not key values in this section\",0,\"\")","v":0}]
["OTHER","UOM = Unit of Measure",null,null,null,null,null,null,null,null,null,null,null,null,{"$f":"IF(B1195=\"Category Not Defined Above, Please do not key values in this section\",0,\"\")","v":0}]
[null,null,null,"UOM","X",null,"UOM","X",null,"UOM","X",null,"UOM","=",{"$f":"+C1197*F1197*I1197*L1197","v":0}]
[null,null,null,"UOM","X",null,"UOM","X",null,"UOM","X",null,"UOM","=",0]
[null,null,null,"UOM","X",null,"UOM","X",null,"UOM","X",null,"UOM","=",0]
[null,null,null,"UOM","X",null,"UOM","X",null,"UOM","X",null,"UOM","=",0]
[null,null,null,"UOM","X",null,"UOM","X",null,"UOM","X",null,"UOM","=",0]
[null,null,null,"UOM","X",null,"UOM","X",null,"UOM","X",null,"UOM","=",0]
[null,null,null,"UOM","X",null,"UOM","X",null,"UOM","X",null,"UOM","=",0]
[null,null,null,"UOM","X",null,"UOM","X",null,"UOM","X",null,"UOM","=",0]
[null,null,null,"UOM","X",null,"UOM","X",null,"UOM","X",null,"UOM","=",0]
[null,null,null,"UOM","X",null,"UOM","X",null,"UOM","X",null,"UOM","=",0]
[null,null,null,"UOM","X",null,"UOM","X",null,"UOM","X",null,"UOM","=",0]
[null,null,null,"UOM","X",null,"UOM","X",null,"UOM","X",null,"UOM","=",0]
[null,null,null,"UOM","X",null,"UOM","X",null,"UOM","X",null,"UOM","=",0]
[null,null,null,"UOM","X",null,"UOM","X",null,"UOM","X",null,"UOM","=",0]
[null,null,null,"UOM","X",null,"UOM","X",null,"UOM","X",null,"UOM","=",0]
[]
[null,null,null,null,null,null,null,null,null,null,null,null,"Subtotal",null,{"$f":"SUM(O1197:O1211)","v":0}]
[]
[]
["Task 17.0",{"$f":"IF(B443=\"REPLACE FIELD WITH CATEGORY NAME OF YOUR CHOOSING HERE\",\"Category Not Defined Above, Please do not key values in this section\",B443)","v":"Category Not Defined Above, Please do not key values in this section"},null,null,null,null,null,null,null,null,null,null,null,null,{"$f":"IF(B1216=\"Category Not Defined Above, Please do not key values in this section\",0,\"\")","v":0}]
["OTHER","UOM = Unit of Measure",null,null,null,null,null,null,null,null,null,null,null,null,{"$f":"IF(B1216=\"Category Not Defined Above, Please do not key values in this section\",0,\"\")","v":0}]
[null,null,null,"UOM","X",null,"UOM","X",null,"UOM","X",null,"UOM","=",{"$f":"+C1218*F1218*I1218*L1218","v":0}]
[null,null,null,"UOM","X",null,"UOM","X",null,"UOM","X",null,"UOM","=",0]
[null,null,null,"UOM","X",null,"UOM","X",null,"UOM","X",null,"UOM","=",0]
[null,null,null,"UOM","X",null,"UOM","X",null,"UOM","X",null,"UOM","=",0]
[null,null,null,"UOM","X",null,"UOM","X",null,"UOM","X",null,"UOM","=",0]
[null,null,null,"UOM","X",null,"UOM","X",null,"UOM","X",null,"UOM","=",0]
[null,null,null,"UOM","X",null,"UOM","X",null,"UOM","X",null,"UOM","=",0]
[null,null,null,"UOM","X",null,"UOM","X",null,"UOM","X",null,"UOM","=",0]
[null,null,null,"UOM","X",null,"UOM","X",null,"UOM","X",null,"UOM","=",0]
[null,null,null,"UOM","X",null,"UOM","X",null,"UOM","X",null,"UOM","=",0]
[null,null,null,"UOM","X",null,"UOM","X",null,"UOM","X",null,"UOM","=",0]
[null,null,null,"UOM","X",null,"UOM","X",null,"UOM","X",null,"UOM","=",0]
[null,null,null,"UOM","X",null,"UOM","X",null,"UOM","X",null,"UOM","=",0]
[null,null,null,"UOM","X",null,"UOM","X",null,"UOM","X",null,"UOM","=",0]
[null,null,null,"UOM","X",null,"UOM","X",null,"UOM","X",null,"UOM","=",0]
[]
[null,null,null,null,null,null,null,null,null,null,null,null,"Subtotal",null,{"$f":"SUM(O1218:O1232)","v":0}]
[]
[]
["Task 18.0",{"$f":"IF(B477=\"REPLACE FIELD WITH CATEGORY NAME OF YOUR CHOOSING HERE\",\"Category Not Defined Above, Please do not key values in this section\",B477)","v":"Category Not Defined Above, Please do not key values in this section"},null,null,null,null,null,null,null,null,null,null,null,null,{"$f":"IF(B1237=\"Category Not Defined Above, Please do not key values in this section\",0,\"\")","v":0}]
["OTHER","UOM = Unit of Measure",null,null,null,null,null,null,null,null,null,null,null,null,{"$f":"IF(B1237=\"Category Not Defined Above, Please do not key values in this section\",0,\"\")","v":0}]
[null,null,null,"UOM","X",null,"UOM","X",null,"UOM","X",null,"UOM","=",{"$f":"+C1239*F1239*I1239*L1239","v":0}]
[null,null,null,"UOM","X",null,"UOM","X",null,"UOM","X",null,"UOM","=",0]
[null,null,null,"UOM","X",null,"UOM","X",null,"UOM","X",null,"UOM","=",0]
[null,null,null,"UOM","X",null,"UOM","X",null,"UOM","X",null,"UOM","=",0]
[null,null,null,"UOM","X",null,"UOM","X",null,"UOM","X",null,"UOM","=",0]
[null,null,null,"UOM","X",null,"UOM","X",null,"UOM","X",null,"UOM","=",0]
[null,null,null,"UOM","X",null,"UOM","X",null,"UOM","X",null,"UOM","=",0]
[null,null,null,"UOM","X",null,"UOM","X",null,"UOM","X",null,"UOM","=",0]
[null,null,null,"UOM","X",null,"UOM","X",null,"UOM","X",null,"UOM","=",0]
[null,null,null,"UOM","X",null,"UOM","X",null,"UOM","X",null,"UOM","=",0]
[null,null,null,"UOM","X",null,"UOM","X",null,"UOM","X",null,"UOM","=",0]
[null,null,null,"UOM","X",null,"UOM","X",null,"UOM","X",null,"UOM","=",0]
[null,null,null,"UOM","X",null,"UOM","X",null,"UOM","X",null,"UOM","=",0]
[null,null,null,"UOM","X",null,"UOM","X",null,"UOM","X",null,"UOM","=",0]
[null,null,null,"UOM","X",null,"UOM","X",null,"UOM","X",null,"UOM","=",0]
[]
[null,null,null,null,null,null,null,null,null,null,null,null,"Subtotal",null,{"$f":"SUM(O1239:O1253)","v":0}]
[]
[]
["Task 19.0",{"$f":"IF(B511=\"REPLACE FIELD WITH CATEGORY NAME OF YOUR CHOOSING HERE\",\"Category Not Defined Above, Please do not key values in this section\",B511)","v":"Category Not Defined Above, Please do not key values in this section"},null,null,null,null,null,null,null,null,null,null,null,null,{"$f":"IF(B1258=\"Category Not Defined Above, Please do not key values in this section\",0,\"\")","v":0}]
["OTHER","UOM = Unit of Measure",null,null,null,null,null,null,null,null,null,null,null,null,{"$f":"IF(B1258=\"Category Not Defined Above, Please do not key values in this section\",0,\"\")","v":0}]
[null,null,null,"UOM","X",null,"UOM","X",null,"UOM","X",null,"UOM","=",{"$f":"+C1260*F1260*I1260*L1260","v":0}]
[null,null,null,"UOM","X",null,"UOM","X",null,"UOM","X",null,"UOM","=",0]
[null,null,null,"UOM","X",null,"UOM","X",null,"UOM","X",null,"UOM","=",0]
[null,null,null,"UOM","X",null,"UOM","X",null,"UOM","X",null,"UOM","=",0]
[null,null,null,"UOM","X",null,"UOM","X",null,"UOM","X",null,"UOM","=",0]
[null,null,null,"UOM","X",null,"UOM","X",null,"UOM","X",null,"UOM","=",0]
[null,null,null,"UOM","X",null,"UOM","X",null,"UOM","X",null,"UOM","=",0]
[null,null,null,"UOM","X",null,"UOM","X",null,"UOM","X",null,"UOM","=",0]
[null,null,null,"UOM","X",null,"UOM","X",null,"UOM","X",null,"UOM","=",0]
[null,null,null,"UOM","X",null,"UOM","X",null,"UOM","X",null,"UOM","=",0]
[null,null,null,"UOM","X",null,"UOM","X",null,"UOM","X",null,"UOM","=",0]
[null,null,null,"UOM","X",null,"UOM","X",null,"UOM","X",null,"UOM","=",0]
[null,null,null,"UOM","X",null,"UOM","X",null,"UOM","X",null,"UOM","=",0]
[null,null,null,"UOM","X",null,"UOM","X",null,"UOM","X",null,"UOM","=",0]
[null,null,null,"UOM","X",null,"UOM","X",null,"UOM","X",null,"UOM","=",0]
[]
[null,null,null,null,null,null,null,null,null,null,null,null,"Subtotal",null,{"$f":"SUM(O1260:O1274)","v":0}]
[]
[]
["Task 20.0",{"$f":"IF(B545=\"REPLACE FIELD WITH CATEGORY NAME OF YOUR CHOOSING HERE\",\"Category Not Defined Above, Please do not key values in this section\",B545)","v":"Category Not Defined Above, Please do not key values in this section"},null,null,null,null,null,null,null,null,null,null,null,null,{"$f":"IF(B1279=\"Category Not Defined Above, Please do not key values in this section\",0,\"\")","v":0}]
["OTHER","UOM = Unit of Measure",null,null,null,null,null,null,null,null,null,null,null,null,{"$f":"IF(B1279=\"Category Not Defined Above, Please do not key values in this section\",0,\"\")","v":0}]
[null,null,null,"UOM","X",null,"UOM","X",null,"UOM","X",null,"UOM","=",{"$f":"+C1281*F1281*I1281*L1281","v":0}]
[null,null,null,"UOM","X",null,"UOM","X",null,"UOM","X",null,"UOM","=",0]
[null,null,null,"UOM","X",null,"UOM","X",null,"UOM","X",null,"UOM","=",0]
[null,null,null,"UOM","X",null,"UOM","X",null,"UOM","X",null,"UOM","=",0]
[null,null,null,"UOM","X",null,"UOM","X",null,"UOM","X",null,"UOM","=",0]
[null,null,null,"UOM","X",null,"UOM","X",null,"UOM","X",null,"UOM","=",0]
[null,null,null,"UOM","X",null,"UOM","X",null,"UOM","X",null,"UOM","=",0]
[null,null,null,"UOM","X",null,"UOM","X",null,"UOM","X",null,"UOM","=",0]
[null,null,null,"UOM","X",null,"UOM","X",null,"UOM","X",null,"UOM","=",0]
[null,null,null,"UOM","X",null,"UOM","X",null,"UOM","X",null,"UOM","=",0]
[null,null,null,"UOM","X",null,"UOM","X",null,"UOM","X",null,"UOM","=",0]
[null,null,null,"UOM","X",null,"UOM","X",null,"UOM","X",null,"UOM","=",0]
[null,null,null,"UOM","X",null,"UOM","X",null,"UOM","X",null,"UOM","=",0]
[null,null,null,"UOM","X",null,"UOM","X",null,"UOM","X",null,"UOM","=",0]
[null,null,null,"UOM","X",null,"UOM","X",null,"UOM","X",null,"UOM","=",0]
[]
[null,null,null,null,null,null,null,null,null,null,null,null,"Subtotal",null,{"$f":"SUM(O1281:O1295)","v":0}]
[]
[]
[null,null,null,null,null,null,null,null,"Non-Salary Expense Total",null,null,null,null,null,{"$f":"O1297+O1276+O1255+O1234+O1213+O1192+O1172+O1122+O1106+O1094+O1054+O975+O944+O909+O868+O828+O789+O747+O641","v":0}]

{"sheet":"MunicipalSignalSystem-Sub2","index":165,"n_rows":1300,"n_cols":57,"rows_kept":1300,"cut":false,"hidden":true,"merged":[[10,4,10,5],[0,0,0,31],[1,0,1,31],[4,0,4,9],[4,10,4,31],[5,0,5,31],[6,0,6,31],[7,0,7,31],[8,1,8,3],[9,1,9,3],[9,4,9,69],[11,4,11,5],[11,6,11,7],[11,52,11,53],[10,38,10,39],[10,16,10,17],[10,50,10,51],[10,6,10,7],[10,8,10,9],[10,10,10,11],[10,12,10,13],[10,14,10,15],[10,32,10,33],[10,18,10,19],[10,20,10,21],[10,22,10,23],[10,24,10,25],[10,26,10,27],[11,8,11,9],[11,10,11,11],[11,12,11,13],[11,14,11,15],[10,34,10,35],[10,36,10,37],[10,52,10,53],[11,54,12,54],[11,55,12,55],[11,34,11,35],[11,36,11,37],[11,38,11,39],[11,40,11,41],[11,42,11,43],[11,44,11,45],[12,50,12,51],[12,52,12,53],[11,46,11,47],[11,48,11,49],[11,50,11,51],[12,30,12,31],[11,16,11,17],[11,18,11,19],[11,20,11,21],[10,40,10,41],[10,42,10,43],[10,44,10,45],[10,46,10,47],[10,48,10,49],[10,28,10,29],[11,22,11,23],[11,24,11,25],[11,26,11,27],[11,28,11,29],[10,30,10,31],[11,30,11,31],[11,32,11,33],[12,8,12,9],[12,10,12,11],[12,12,12,13],[12,14,12,15],[12,16,12,17],[12,18,12,19],[12,0,13,0],[12,1,13,1],[12,2,13,2],[28,0,28,3],[29,0,29,3],[52,0,52,3],[53,0,53,3],[54,0,54,3],[114,0,114,3],[12,44,12,45],[12,46,12,47],[12,48,12,49],[12,3,13,3],[12,4,12,5],[12,6,12,7],[27,0,27,3],[12,32,12,33],[12,34,12,35],[12,36,12,37],[12,38,12,39],[12,40,12,41],[12,42,12,43],[12,20,12,21],[12,22,12,23],[12,24,12,25],[12,26,12,27],[12,28,12,29],[159,0,159,3],[160,0,160,3],[174,0,174,3],[175,0,175,3],[176,0,176,3],[187,0,187,3],[115,0,115,3],[116,0,116,3],[137,0,137,3],[138,0,138,3],[139,0,139,3],[158,0,158,3],[220,0,220,3],[221,0,221,3],[249,0,249,3],[250,0,250,3],[251,0,251,3],[312,0,312,3],[188,0,188,3],[189,0,189,3],[202,0,202,3],[203,0,203,3],[204,0,204,3],[219,0,219,3],[357,0,357,3],[358,0,358,3],[371,0,371,3],[372,0,372,3],[373,0,373,3],[405,0,405,3],[313,0,313,3],[314,0,314,3],[342,0,342,3],[343,0,343,3],[344,0,344,3],[356,0,356,3],[474,0,474,3],[475,0,475,3],[507,0,507,3],[508,0,508,3],[509,0,509,3],[541,0,541,3],[406,0,406,3],[407,0,407,3],[439,0,439,3],[440,0,440,3],[441,0,441,3],[473,0,473,3],[580,0,580,3],[581,0,581,3],[583,0,583,2],[584,0,584,2],[584,4,584,5],[585,0,585,2],[585,4,585,5],[542,0,542,3],[543,0,543,3],[575,0,575,3],[576,0,576,3],[577,0,577,3],[579,0,579,3],[589,0,589,2],[589,4,589,5],[596,0,596,15],[586,0,586,2],[586,4,586,5],[587,0,587,2],[587,4,587,5],[588,0,588,2],[588,4,588,5]]}
["MUNICIPAL SIGNAL SYSTEM Design - SUBCONSULTANT 2"]
["MUNICIPAL SIGNAL SYSTEM "]
["SCOPING ESTIMATE PREPARED for"]
[]
[{"$f":"CONCATENATE(IF(TIP.NUMBER=\"\",\"TIP\",CONCATENATE(\"TIP:  \",TIP.NUMBER)),IF(TIP.NUMBER=\"\",\"\",\"   \"))","v":"TIP"},null,null,null,null,null,null,null,null,null,{"$f":"CONCATENATE(IF(WBS.NUMBER=\"\",\"\",\"   \"),IF(WBS.NUMBER=\"\",\"WBS\",CONCATENATE(\"WBS:  \",WBS.NUMBER)))","v":"WBS"}]
[{"$f":"IF(COUNTY=\"\",\"COUNTY\",CONCATENATE(\"COUNTY:  \",COUNTY))","v":"COUNTY"}]
[{"$f":"IF(PROJECT.DESCRIPTION=\"\",\"PROJECT DESCRIPTION\",CONCATENATE(\"Project Description:  \",PROJECT.DESCRIPTION))","v":"PROJECT DESCRIPTION"}]
[{"$f":"IF(MUNICIPAL_SIGNAL_SYSTEM_SUB2_CONSULTANT_NAME=\"CONSULTANT NAME\",\"CONSULTANT NAME\", CONCATENATE(\"FIRM:  \",MUNICIPAL_SIGNAL_SYSTEM_SUB2_CONSULTANT_NAME))","v":"CONSULTANT NAME"}]
["Prepared By:",{"$f":"IF(SCOPE.MANDAY.ESTIMATE.PREPARED.BY=\"\",\"\",SCOPE.MANDAY.ESTIMATE.PREPARED.BY)","v":""},null,null,null,null,null,null,null,null,null,null,null,null,null,null,null,null,null,null,null,null,null,null,null,null,null,null,null,null,null,null," "," ",null,null,null,null," "]
["Date:",{"$f":"IF(SCOPE.MANDAY.ESTIMATE.PREPARED.BY.DATE=\"\",\"\",SCOPE.MANDAY.ESTIMATE.PREPARED.BY.DATE)","v":""},null,null,"ESTIMATED WORK HOURS"]
[null,null,null,"POSITION",{"$f":"IF('PEF CLASSIFICATION SHEET'!C1420=\"\",\"\",'PEF CLASSIFICATION SHEET'!C1420)","v":""},null,{"$f":"IF('PEF CLASSIFICATION SHEET'!C1421=\"\",\"\",'PEF CLASSIFICATION SHEET'!C1421)","v":""},null,{"$f":"IF('PEF CLASSIFICATION SHEET'!C1422=\"\",\"\",'PEF CLASSIFICATION SHEET'!C1422)","v":""},null,{"$f":"IF('PEF CLASSIFICATION SHEET'!C1423=\"\",\"\",'PEF CLASSIFICATION SHEET'!C1423)","v":""},null,{"$f":"IF('PEF CLASSIFICATION SHEET'!C1424=\"\",\"\",'PEF CLASSIFICATION SHEET'!C1424)","v":""},null,{"$f":"IF('PEF CLASSIFICATION SHEET'!C1425=\"\",\"\",'PEF CLASSIFICATION SHEET'!C1425)","v":""},null,{"$f":"IF('PEF CLASSIFICATION SHEET'!C1426=\"\",\"\",'PEF CLASSIFICATION SHEET'!C1426)","v":""},null,{"$f":"IF('PEF CLASSIFICATION SHEET'!C1427=\"\",\"\",'PEF CLASSIFICATION SHEET'!C1427)","v":""},null,{"$f":"IF('PEF CLASSIFICATION SHEET'!C1428=\"\",\"\",'PEF CLASSIFICATION SHEET'!C1428)","v":""},null,{"$f":"IF('PEF CLASSIFICATION SHEET'!C1429=\"\",\"\",'PEF CLASSIFICATION SHEET'!C1429)","v":""},null,{"$f":"IF('PEF CLASSIFICATION SHEET'!C1430=\"\",\"\",'PEF CLASSIFICATION SHEET'!C1430)","v":""},null,{"$f":"IF('PEF CLASSIFICATION SHEET'!C1431=\"\",\"\",'PEF CLASSIFICATION SHEET'!C1431)","v":""},null,{"$f":"IF('PEF CLASSIFICATION SHEET'!$C1432=\"\",\"\",'PEF CLASSIFICATION SHEET'!$C1432)","v":""},null,{"$f":"IF('PEF CLASSIFICATION SHEET'!$C1433=\"\",\"\",'PEF CLASSIFICATION SHEET'!$C1433)","v":""},null,{"$f":"IF('PEF CLASSIFICATION SHEET'!$C1434=\"\",\"\",'PEF CLASSIFICATION SHEET'!$C1434)","v":""},null,{"$f":"IF('PEF CLASSIFICATION SHEET'!$C1435=\"\",\"\",'PEF CLASSIFICATION SHEET'!$C1435)","v":""},null,{"$f":"IF('PEF CLASSIFICATION SHEET'!$C1436=\"\",\"\",'PEF CLASSIFICATION SHEET'!$C1436)","v":""},null,{"$f":"IF('PEF CLASSIFICATION SHEET'!$C1437=\"\",\"\",'PEF CLASSIFICATION SHEET'!$C1437)","v":""},null,{"$f":"IF('PEF CLASSIFICATION SHEET'!$C1438=\"\",\"\",'PEF CLASSIFICATION SHEET'!$C1438)","v":""},null,{"$f":"IF('PEF CLASSIFICATION SHEET'!$C1439=\"\",\"\",'PEF CLASSIFICATION SHEET'!$C1439)","v":""},null,{"$f":"IF('PEF CLASSIFICATION SHEET'!$C1440=\"\",\"\",'PEF CLASSIFICATION SHEET'!$C1440)","v":""},null,{"$f":"IF('PEF CLASSIFICATION SHEET'!$C1441=\"\",\"\",'PEF CLASSIFICATION SHEET'!$C1441)","v":""},null,{"$f":"IF('PEF CLASSIFICATION SHEET'!$C1442=\"\",\"\",'PEF CLASSIFICATION SHEET'!$C1442)","v":""},null,{"$f":"IF('PEF CLASSIFICATION SHEET'!$C1443=\"\",\"\",'PEF CLASSIFICATION SHEET'!$C1443)","v":""},null,{"$f":"IF('PEF CLASSIFICATION SHEET'!$C1444=\"\",\"\",'PEF CLASSIFICATION SHEET'!$C1444)","v":""}]
[null,null,null,"EMPLOYEE NAME & RATE",{"$f":"LEFT('PEF CLASSIFICATION SHEET'!D1420,4)","v":""},null,{"$f":"LEFT('PEF CLASSIFICATION SHEET'!D1421,4)","v":""},null,{"$f":"LEFT('PEF CLASSIFICATION SHEET'!D1422,4)","v":""},null,{"$f":"LEFT('PEF CLASSIFICATION SHEET'!D1423,4)","v":""},null,{"$f":"LEFT('PEF CLASSIFICATION SHEET'!D1424,4)","v":""},null,{"$f":"LEFT('PEF CLASSIFICATION SHEET'!D1425,4)","v":""},null,{"$f":"LEFT('PEF CLASSIFICATION SHEET'!D1426,4)","v":""},null,{"$f":"LEFT('PEF CLASSIFICATION SHEET'!D1427,4)","v":""},null,{"$f":"LEFT('PEF CLASSIFICATION SHEET'!D1428,4)","v":""},null,{"$f":"LEFT('PEF CLASSIFICATION SHEET'!D1429,4)","v":""},null,{"$f":"LEFT('PEF CLASSIFICATION SHEET'!D1430,4)","v":""},null,{"$f":"LEFT('PEF CLASSIFICATION SHEET'!D1431,4)","v":""},null,{"$f":"LEFT('PEF CLASSIFICATION SHEET'!$D1432,4)","v":""},null,{"$f":"LEFT('PEF CLASSIFICATION SHEET'!$D1433,4)","v":""},null,{"$f":"LEFT('PEF CLASSIFICATION SHEET'!$D1434,4)","v":""},null,{"$f":"LEFT('PEF CLASSIFICATION SHEET'!$D1435,4)","v":""},null,{"$f":"LEFT('PEF CLASSIFICATION SHEET'!$D1436,4)","v":""},null,{"$f":"LEFT('PEF CLASSIFICATION SHEET'!$D1437,4)","v":""},null,{"$f":"LEFT('PEF CLASSIFICATION SHEET'!$D1438,4)","v":""},null,{"$f":"LEFT('PEF CLASSIFICATION SHEET'!$D1439,4)","v":""},null,{"$f":"LEFT('PEF CLASSIFICATION SHEET'!$D1440,4)","v":""},null,{"$f":"LEFT('PEF CLASSIFICATION SHEET'!$D1441,4)","v":""},null,{"$f":"LEFT('PEF CLASSIFICATION SHEET'!$D1442,4)","v":""},null,{"$f":"LEFT('PEF CLASSIFICATION SHEET'!$D1443,4)","v":""},null,{"$f":"LEFT('PEF CLASSIFICATION SHEET'!$D1444,4)","v":""},null,"SUBTOTAL OF HOURS BY TASK","NOTES"]
["TASK NUMBER","PROJECT TASK","QTY","UNIT",{"$f":"'PEF CLASSIFICATION SHEET'!E1420","v":0},null,{"$f":"'PEF CLASSIFICATION SHEET'!E1421","v":0},null,{"$f":"'PEF CLASSIFICATION SHEET'!E1422","v":0},null,{"$f":"'PEF CLASSIFICATION SHEET'!E1423","v":0},null,{"$f":"'PEF CLASSIFICATION SHEET'!E1424","v":0},null,{"$f":"'PEF CLASSIFICATION SHEET'!E1425","v":0},null,{"$f":"'PEF CLASSIFICATION SHEET'!E1426","v":0},null,{"$f":"'PEF CLASSIFICATION SHEET'!E1427","v":0},null,{"$f":"'PEF CLASSIFICATION SHEET'!E1428","v":0},null,{"$f":"'PEF CLASSIFICATION SHEET'!E1429","v":0},null,{"$f":"'PEF CLASSIFICATION SHEET'!E1430","v":0},null,{"$f":"'PEF CLASSIFICATION SHEET'!E1431","v":0},null,{"$f":"'PEF CLASSIFICATION SHEET'!$E1432","v":0},null,{"$f":"'PEF CLASSIFICATION SHEET'!$E1433","v":0},null,{"$f":"'PEF CLASSIFICATION SHEET'!$E1434","v":0},null,{"$f":"'PEF CLASSIFICATION SHEET'!$E1435","v":0},null,{"$f":"'PEF CLASSIFICATION SHEET'!$E1436","v":0},null,{"$f":"'PEF CLASSIFICATION SHEET'!$E1437","v":0},null,{"$f":"'PEF CLASSIFICATION SHEET'!$E1438","v":0},null,{"$f":"'PEF CLASSIFICATION SHEET'!$E1439","v":0},null,{"$f":"'PEF CLASSIFICATION SHEET'!$E1440","v":0},null,{"$f":"'PEF CLASSIFICATION SHEET'!$E1441","v":0},null,{"$f":"'PEF CLASSIFICATION SHEET'!$E1442","v":0},null,{"$f":"'PEF CLASSIFICATION SHEET'!$E1443","v":0},null,{"$f":"'PEF CLASSIFICATION SHEET'!$E1444","v":0}]
[null,null,null,null,"Hrs Per Unit","Total Hrs","Hrs Per Unit","Total Hrs","Hrs Per Unit","Total Hrs","Hrs Per Unit","Total Hrs","Hrs Per Unit","Total Hrs","Hrs Per Unit","Total Hrs","Hrs Per Unit","Total Hrs","Hrs Per Unit","Total Hrs","Hrs Per Unit","Total Hrs","Hrs Per Unit","Total Hrs","Hrs Per Unit","Total Hrs","Hrs Per Unit","Total Hrs","Hrs Per Unit","Total Hrs","Hrs Per Unit","Total Hrs","Hrs Per Unit","Total Hrs","Hrs Per Unit","Total Hrs","Hrs Per Unit","Total Hrs","Hrs Per Unit","Total Hrs","Hrs Per Unit","Total Hrs","Hrs Per Unit","Total Hrs","Hrs Per Unit","Total Hrs","Hrs Per Unit","Total Hrs","Hrs Per Unit","Total Hrs","Hrs Per Unit","Total Hrs","Hrs Per Unit","Total Hrs"]
["Task 1.0","PROJECT MANAGEMENT",null,null," ",null," ",null,null,null,null,null,null,null,null,null,null,null,null,null,null,null,null,null,null,null,null,null,null,null,null,null,null,null,null,null,null,null,null,null,null,null,null,null,null,null,null,null,null,null,null,null,null,null,null,null," "]
[1.1000000000000001,"Project Work Plan",null,null,{"$f":"IF($C$16=\"\",\"\",F16/$C$16)","v":""},null,{"$f":"IF($C$16=\"\",\"\",H16/$C$16)","v":""},null,{"$f":"IF($C$16=\"\",\"\",J16/$C$16)","v":""},null,{"$f":"IF($C$16=\"\",\"\",L16/$C$16)","v":""},null,{"$f":"IF($C$16=\"\",\"\",N16/$C$16)","v":""},null,{"$f":"IF($C$16=\"\",\"\",P16/$C$16)","v":""},null,{"$f":"IF($C$16=\"\",\"\",R16/$C$16)","v":""},null,{"$f":"IF($C$16=\"\",\"\",T16/$C$16)","v":""},null,{"$f":"IF($C$16=\"\",\"\",V16/$C$16)","v":""},null,{"$f":"IF($C$16=\"\",\"\",X16/$C$16)","v":""},null,{"$f":"IF($C$16=\"\",\"\",Z16/$C$16)","v":""},null,{"$f":"IF($C$16=\"\",\"\",AB16/$C$16)","v":""},null,{"$f":"IF($C$16=\"\",\"\",AD16/$C$16)","v":""},null,{"$f":"IF($C$16=\"\",\"\",AF16/$C$16)","v":""},null,{"$f":"IF($C$16=\"\",\"\",AH16/$C$16)","v":""},null,{"$f":"IF($C$16=\"\",\"\",AJ16/$C$16)","v":""},null,{"$f":"IF($C$16=\"\",\"\",AL16/$C$16)","v":""},null,{"$f":"IF($C$16=\"\",\"\",AN16/$C$16)","v":""},null,{"$f":"IF($C$16=\"\",\"\",AP16/$C$16)","v":""},null,{"$f":"IF($C$16=\"\",\"\",AR16/$C$16)","v":""},null,{"$f":"IF($C$16=\"\",\"\",AT16/$C$16)","v":""},null,{"$f":"IF($C$16=\"\",\"\",AV16/$C$16)","v":""},null,{"$f":"IF($C$16=\"\",\"\",AX16/$C$16)","v":""},null,{"$f":"IF($C$16=\"\",\"\",AZ16/$C$16)","v":""},null,{"$f":"IF($C$16=\"\",\"\",BB16/$C$16)","v":""},null,{"$f":"SUM(BB16,AZ16,AX16,AV16,AT16,AR16,AP16,AN16,AL16,AJ16,AH16,AF16,AD16,AB16,Z16,X16,V16,T16,R16,P16,N16,L16,J16,H16,F16)","v":0}]
[1.2,"Project Meetings",null,null,{"$f":"IF($C$17=\"\",\"\",F17/$C$17)","v":""},null,{"$f":"IF($C$17=\"\",\"\",H17/$C$17)","v":""},null,{"$f":"IF($C$17=\"\",\"\",J17/$C$17)","v":""},null,{"$f":"IF($C$17=\"\",\"\",L17/$C$17)","v":""},null,{"$f":"IF($C$17=\"\",\"\",N17/$C$17)","v":""},null,{"$f":"IF($C$17=\"\",\"\",P17/$C$17)","v":""},null,{"$f":"IF($C$17=\"\",\"\",R17/$C$17)","v":""},null,{"$f":"IF($C$17=\"\",\"\",T17/$C$17)","v":""},null,{"$f":"IF($C$17=\"\",\"\",V17/$C$17)","v":""},null,{"$f":"IF($C$17=\"\",\"\",X17/$C$17)","v":""},null,{"$f":"IF($C$17=\"\",\"\",Z17/$C$17)","v":""},null,{"$f":"IF($C$17=\"\",\"\",AB17/$C$17)","v":""},null,{"$f":"IF($C$17=\"\",\"\",AD17/$C$17)","v":""},null,{"$f":"IF($C$17=\"\",\"\",AF17/$C$17)","v":""},null,{"$f":"IF($C$17=\"\",\"\",AH17/$C$17)","v":""},null,{"$f":"IF($C$17=\"\",\"\",AJ17/$C$17)","v":""},null,{"$f":"IF($C$17=\"\",\"\",AL17/$C$17)","v":""},null,{"$f":"IF($C$17=\"\",\"\",AN17/$C$17)","v":""},null,{"$f":"IF($C$17=\"\",\"\",AP17/$C$17)","v":""},null,{"$f":"IF($C$17=\"\",\"\",AR17/$C$17)","v":""},null,{"$f":"IF($C$17=\"\",\"\",AT17/$C$17)","v":""},null,{"$f":"IF($C$17=\"\",\"\",AV17/$C$17)","v":""},null,{"$f":"IF($C$17=\"\",\"\",AX17/$C$17)","v":""},null,{"$f":"IF($C$17=\"\",\"\",AZ17/$C$17)","v":""},null,{"$f":"IF($C$17=\"\",\"\",BB17/$C$17)","v":""},null,{"$f":"SUM(BB17,AZ17,AX17,AV17,AT17,AR17,AP17,AN17,AL17,AJ17,AH17,AF17,AD17,AB17,Z17,X17,V17,T17,R17,P17,N17,L17,J17,H17,F17)","v":0}]
[1.3,"Project Status Reports & Invoices",null,null,{"$f":"IF($C$18=\"\",\"\",F18/$C$18)","v":""},null,{"$f":"IF($C$18=\"\",\"\",H18/$C$18)","v":""},null,{"$f":"IF($C$18=\"\",\"\",J18/$C$18)","v":""},null,{"$f":"IF($C$18=\"\",\"\",L18/$C$18)","v":""},null,{"$f":"IF($C$18=\"\",\"\",N18/$C$18)","v":""},null,{"$f":"IF($C$18=\"\",\"\",P18/$C$18)","v":""},null,{"$f":"IF($C$18=\"\",\"\",R18/$C$18)","v":""},null,{"$f":"IF($C$18=\"\",\"\",T18/$C$18)","v":""},null,{"$f":"IF($C$18=\"\",\"\",V18/$C$18)","v":""},null,{"$f":"IF($C$18=\"\",\"\",X18/$C$18)","v":""},null,{"$f":"IF($C$18=\"\",\"\",Z18/$C$18)","v":""},null,{"$f":"IF($C$18=\"\",\"\",AB18/$C$18)","v":""},null,{"$f":"IF($C$18=\"\",\"\",AD18/$C$18)","v":""},null,{"$f":"IF($C$18=\"\",\"\",AF18/$C$18)","v":""},null,{"$f":"IF($C$18=\"\",\"\",AH18/$C$18)","v":""},null,{"$f":"IF($C$18=\"\",\"\",AJ18/$C$18)","v":""},null,{"$f":"IF($C$18=\"\",\"\",AL18/$C$18)","v":""},null,{"$f":"IF($C$18=\"\",\"\",AN18/$C$18)","v":""},null,{"$f":"IF($C$18=\"\",\"\",AP18/$C$18)","v":""},null,{"$f":"IF($C$18=\"\",\"\",AR18/$C$18)","v":""},null,{"$f":"IF($C$18=\"\",\"\",AT18/$C$18)","v":""},null,{"$f":"IF($C$18=\"\",\"\",AV18/$C$18)","v":""},null,{"$f":"IF($C$18=\"\",\"\",AX18/$C$18)","v":""},null,{"$f":"IF($C$18=\"\",\"\",AZ18/$C$18)","v":""},null,{"$f":"IF($C$18=\"\",\"\",BB18/$C$18)","v":""},null,0]
[1.4,"Project Records and Files/Project Web Site",null,null,{"$f":"IF($C$19=\"\",\"\",F19/$C$19)","v":""},null,{"$f":"IF($C$19=\"\",\"\",H19/$C$19)","v":""},null,{"$f":"IF($C$19=\"\",\"\",J19/$C$19)","v":""},null,{"$f":"IF($C$19=\"\",\"\",L19/$C$19)","v":""},null,{"$f":"IF($C$19=\"\",\"\",N19/$C$19)","v":""},null,{"$f":"IF($C$19=\"\",\"\",P19/$C$19)","v":""},null,{"$f":"IF($C$19=\"\",\"\",R19/$C$19)","v":""},null,{"$f":"IF($C$19=\"\",\"\",T19/$C$19)","v":""},null,{"$f":"IF($C$19=\"\",\"\",V19/$C$19)","v":""},null,{"$f":"IF($C$19=\"\",\"\",X19/$C$19)","v":""},null,{"$f":"IF($C$19=\"\",\"\",Z19/$C$19)","v":""},null,{"$f":"IF($C$19=\"\",\"\",AB19/$C$19)","v":""},null,{"$f":"IF($C$19=\"\",\"\",AD19/$C$19)","v":""},null,{"$f":"IF($C$19=\"\",\"\",AF19/$C$19)","v":""},null,{"$f":"IF($C$19=\"\",\"\",AH19/$C$19)","v":""},null,{"$f":"IF($C$19=\"\",\"\",AJ19/$C$19)","v":""},null,{"$f":"IF($C$19=\"\",\"\",AL19/$C$19)","v":""},null,{"$f":"IF($C$19=\"\",\"\",AN19/$C$19)","v":""},null,{"$f":"IF($C$19=\"\",\"\",AP19/$C$19)","v":""},null,{"$f":"IF($C$19=\"\",\"\",AR19/$C$19)","v":""},null,{"$f":"IF($C$19=\"\",\"\",AT19/$C$19)","v":""},null,{"$f":"IF($C$19=\"\",\"\",AV19/$C$19)","v":""},null,{"$f":"IF($C$19=\"\",\"\",AX19/$C$19)","v":""},null,{"$f":"IF($C$19=\"\",\"\",AZ19/$C$19)","v":""},null,{"$f":"IF($C$19=\"\",\"\",BB19/$C$19)","v":""},null,0]
[1.5,"Subconsultant Management and Coordination",null,null,{"$f":"IF($C$20=\"\",\"\",F20/$C$20)","v":""},null,{"$f":"IF($C$20=\"\",\"\",H20/$C$20)","v":""},null,{"$f":"IF($C$20=\"\",\"\",J20/$C$20)","v":""},null,{"$f":"IF($C$20=\"\",\"\",L20/$C$20)","v":""},null,{"$f":"IF($C$20=\"\",\"\",N20/$C$20)","v":""},null,{"$f":"IF($C$20=\"\",\"\",P20/$C$20)","v":""},null,{"$f":"IF($C$20=\"\",\"\",R20/$C$20)","v":""},null,{"$f":"IF($C$20=\"\",\"\",T20/$C$20)","v":""},null,{"$f":"IF($C$20=\"\",\"\",V20/$C$20)","v":""},null,{"$f":"IF($C$20=\"\",\"\",X20/$C$20)","v":""},null,{"$f":"IF($C$20=\"\",\"\",Z20/$C$20)","v":""},null,{"$f":"IF($C$20=\"\",\"\",AB20/$C$20)","v":""},null,{"$f":"IF($C$20=\"\",\"\",AD20/$C$20)","v":""},null,{"$f":"IF($C$20=\"\",\"\",AF20/$C$20)","v":""},null,{"$f":"IF($C$20=\"\",\"\",AH20/$C$20)","v":""},null,{"$f":"IF($C$20=\"\",\"\",AJ20/$C$20)","v":""},null,{"$f":"IF($C$20=\"\",\"\",AL20/$C$20)","v":""},null,{"$f":"IF($C$20=\"\",\"\",AN20/$C$20)","v":""},null,{"$f":"IF($C$20=\"\",\"\",AP20/$C$20)","v":""},null,{"$f":"IF($C$20=\"\",\"\",AR20/$C$20)","v":""},null,{"$f":"IF($C$20=\"\",\"\",AT20/$C$20)","v":""},null,{"$f":"IF($C$20=\"\",\"\",AV20/$C$20)","v":""},null,{"$f":"IF($C$20=\"\",\"\",AX20/$C$20)","v":""},null,{"$f":"IF($C$20=\"\",\"\",AZ20/$C$20)","v":""},null,{"$f":"IF($C$20=\"\",\"\",BB20/$C$20)","v":""},null,0]
[null,null,null,null,{"$f":"IF($C$21=\"\",\"\",F21/$C$21)","v":""},null,{"$f":"IF($C$21=\"\",\"\",H21/$C$21)","v":""},null,{"$f":"IF($C$21=\"\",\"\",J21/$C$21)","v":""},null,{"$f":"IF($C$21=\"\",\"\",L21/$C$21)","v":""},null,{"$f":"IF($C$21=\"\",\"\",N21/$C$21)","v":""},null,{"$f":"IF($C$21=\"\",\"\",P21/$C$21)","v":""},null,{"$f":"IF($C$21=\"\",\"\",R21/$C$21)","v":""},null,{"$f":"IF($C$21=\"\",\"\",T21/$C$21)","v":""},null,{"$f":"IF($C$21=\"\",\"\",V21/$C$21)","v":""},null,{"$f":"IF($C$21=\"\",\"\",X21/$C$21)","v":""},null,{"$f":"IF($C$21=\"\",\"\",Z21/$C$21)","v":""},null,{"$f":"IF($C$21=\"\",\"\",AB21/$C$21)","v":""},null,{"$f":"IF($C$21=\"\",\"\",AD21/$C$21)","v":""},null,{"$f":"IF($C$21=\"\",\"\",AF21/$C$21)","v":""},null,{"$f":"IF($C$21=\"\",\"\",AH21/$C$21)","v":""},null,{"$f":"IF($C$21=\"\",\"\",AJ21/$C$21)","v":""},null,{"$f":"IF($C$21=\"\",\"\",AL21/$C$21)","v":""},null,{"$f":"IF($C$21=\"\",\"\",AN21/$C$21)","v":""},null,{"$f":"IF($C$21=\"\",\"\",AP21/$C$21)","v":""},null,{"$f":"IF($C$21=\"\",\"\",AR21/$C$21)","v":""},null,{"$f":"IF($C$21=\"\",\"\",AT21/$C$21)","v":""},null,{"$f":"IF($C$21=\"\",\"\",AV21/$C$21)","v":""},null,{"$f":"IF($C$21=\"\",\"\",AX21/$C$21)","v":""},null,{"$f":"IF($C$21=\"\",\"\",AZ21/$C$21)","v":""},null,{"$f":"IF($C$21=\"\",\"\",BB21/$C$21)","v":""},null,0]
[null,null,null,null,{"$f":"IF($C$22=\"\",\"\",F22/$C$22)","v":""},null,{"$f":"IF($C$22=\"\",\"\",H22/$C$22)","v":""},null,{"$f":"IF($C$22=\"\",\"\",J22/$C$22)","v":""},null,{"$f":"IF($C$22=\"\",\"\",L22/$C$22)","v":""},null,{"$f":"IF($C$22=\"\",\"\",N22/$C$22)","v":""},null,{"$f":"IF($C$22=\"\",\"\",P22/$C$22)","v":""},null,{"$f":"IF($C$22=\"\",\"\",R22/$C$22)","v":""},null,{"$f":"IF($C$22=\"\",\"\",T22/$C$22)","v":""},null,{"$f":"IF($C$22=\"\",\"\",V22/$C$22)","v":""},null,{"$f":"IF($C$22=\"\",\"\",X22/$C$22)","v":""},null,{"$f":"IF($C$22=\"\",\"\",Z22/$C$22)","v":""},null,{"$f":"IF($C$22=\"\",\"\",AB22/$C$22)","v":""},null,{"$f":"IF($C$22=\"\",\"\",AD22/$C$22)","v":""},null,{"$f":"IF($C$22=\"\",\"\",AF22/$C$22)","v":""},null,{"$f":"IF($C$22=\"\",\"\",AH22/$C$22)","v":""},null,{"$f":"IF($C$22=\"\",\"\",AJ22/$C$22)","v":""},null,{"$f":"IF($C$22=\"\",\"\",AL22/$C$22)","v":""},null,{"$f":"IF($C$22=\"\",\"\",AN22/$C$22)","v":""},null,{"$f":"IF($C$22=\"\",\"\",AP22/$C$22)","v":""},null,{"$f":"IF($C$22=\"\",\"\",AR22/$C$22)","v":""},null,{"$f":"IF($C$22=\"\",\"\",AT22/$C$22)","v":""},null,{"$f":"IF($C$22=\"\",\"\",AV22/$C$22)","v":""},null,{"$f":"IF($C$22=\"\",\"\",AX22/$C$22)","v":""},null,{"$f":"IF($C$22=\"\",\"\",AZ22/$C$22)","v":""},null,{"$f":"IF($C$22=\"\",\"\",BB22/$C$22)","v":""},null,0]
[null,null,null,null,{"$f":"IF($C$23=\"\",\"\",F23/$C$23)","v":""},null,{"$f":"IF($C$23=\"\",\"\",H23/$C$23)","v":""},null,{"$f":"IF($C$23=\"\",\"\",J23/$C$23)","v":""},null,{"$f":"IF($C$23=\"\",\"\",L23/$C$23)","v":""},null,{"$f":"IF($C$23=\"\",\"\",N23/$C$23)","v":""},null,{"$f":"IF($C$23=\"\",\"\",P23/$C$23)","v":""},null,{"$f":"IF($C$23=\"\",\"\",R23/$C$23)","v":""},null,{"$f":"IF($C$23=\"\",\"\",T23/$C$23)","v":""},null,{"$f":"IF($C$23=\"\",\"\",V23/$C$23)","v":""},null,{"$f":"IF($C$23=\"\",\"\",X23/$C$23)","v":""},null,{"$f":"IF($C$23=\"\",\"\",Z23/$C$23)","v":""},null,{"$f":"IF($C$23=\"\",\"\",AB23/$C$23)","v":""},null,{"$f":"IF($C$23=\"\",\"\",AD23/$C$23)","v":""},null,{"$f":"IF($C$23=\"\",\"\",AF23/$C$23)","v":""},null,{"$f":"IF($C$23=\"\",\"\",AH23/$C$23)","v":""},null,{"$f":"IF($C$23=\"\",\"\",AJ23/$C$23)","v":""},null,{"$f":"IF($C$23=\"\",\"\",AL23/$C$23)","v":""},null,{"$f":"IF($C$23=\"\",\"\",AN23/$C$23)","v":""},null,{"$f":"IF($C$23=\"\",\"\",AP23/$C$23)","v":""},null,{"$f":"IF($C$23=\"\",\"\",AR23/$C$23)","v":""},null,{"$f":"IF($C$23=\"\",\"\",AT23/$C$23)","v":""},null,{"$f":"IF($C$23=\"\",\"\",AV23/$C$23)","v":""},null,{"$f":"IF($C$23=\"\",\"\",AX23/$C$23)","v":""},null,{"$f":"IF($C$23=\"\",\"\",AZ23/$C$23)","v":""},null,{"$f":"IF($C$23=\"\",\"\",BB23/$C$23)","v":""},null,0]
[null,null,null,null,{"$f":"IF($C$24=\"\",\"\",F24/$C$24)","v":""},null,{"$f":"IF($C$24=\"\",\"\",H24/$C$24)","v":""},null,{"$f":"IF($C$24=\"\",\"\",J24/$C$24)","v":""},null,{"$f":"IF($C$24=\"\",\"\",L24/$C$24)","v":""},null,{"$f":"IF($C$24=\"\",\"\",N24/$C$24)","v":""},null,{"$f":"IF($C$24=\"\",\"\",P24/$C$24)","v":""},null,{"$f":"IF($C$24=\"\",\"\",R24/$C$24)","v":""},null,{"$f":"IF($C$24=\"\",\"\",T24/$C$24)","v":""},null,{"$f":"IF($C$24=\"\",\"\",V24/$C$24)","v":""},null,{"$f":"IF($C$24=\"\",\"\",X24/$C$24)","v":""},null,{"$f":"IF($C$24=\"\",\"\",Z24/$C$24)","v":""},null,{"$f":"IF($C$24=\"\",\"\",AB24/$C$24)","v":""},null,{"$f":"IF($C$24=\"\",\"\",AD24/$C$24)","v":""},null,{"$f":"IF($C$24=\"\",\"\",AF24/$C$24)","v":""},null,{"$f":"IF($C$24=\"\",\"\",AH24/$C$24)","v":""},null,{"$f":"IF($C$24=\"\",\"\",AJ24/$C$24)","v":""},null,{"$f":"IF($C$24=\"\",\"\",AL24/$C$24)","v":""},null,{"$f":"IF($C$24=\"\",\"\",AN24/$C$24)","v":""},null,{"$f":"IF($C$24=\"\",\"\",AP24/$C$24)","v":""},null,{"$f":"IF($C$24=\"\",\"\",AR24/$C$24)","v":""},null,{"$f":"IF($C$24=\"\",\"\",AT24/$C$24)","v":""},null,{"$f":"IF($C$24=\"\",\"\",AV24/$C$24)","v":""},null,{"$f":"IF($C$24=\"\",\"\",AX24/$C$24)","v":""},null,{"$f":"IF($C$24=\"\",\"\",AZ24/$C$24)","v":""},null,{"$f":"IF($C$24=\"\",\"\",BB24/$C$24)","v":""},null,0]
[null,null,null,null,{"$f":"IF($C$25=\"\",\"\",F25/$C$25)","v":""},null,{"$f":"IF($C$25=\"\",\"\",H25/$C$25)","v":""},null,{"$f":"IF($C$25=\"\",\"\",J25/$C$25)","v":""},null,{"$f":"IF($C$25=\"\",\"\",L25/$C$25)","v":""},null,{"$f":"IF($C$25=\"\",\"\",N25/$C$25)","v":""},null,{"$f":"IF($C$25=\"\",\"\",P25/$C$25)","v":""},null,{"$f":"IF($C$25=\"\",\"\",R25/$C$25)","v":""},null,{"$f":"IF($C$25=\"\",\"\",T25/$C$25)","v":""},null,{"$f":"IF($C$25=\"\",\"\",V25/$C$25)","v":""},null,{"$f":"IF($C$25=\"\",\"\",X25/$C$25)","v":""},null,{"$f":"IF($C$25=\"\",\"\",Z25/$C$25)","v":""},null,{"$f":"IF($C$25=\"\",\"\",AB25/$C$25)","v":""},null,{"$f":"IF($C$25=\"\",\"\",AD25/$C$25)","v":""},null,{"$f":"IF($C$25=\"\",\"\",AF25/$C$25)","v":""},null,{"$f":"IF($C$25=\"\",\"\",AH25/$C$25)","v":""},null,{"$f":"IF($C$25=\"\",\"\",AJ25/$C$25)","v":""},null,{"$f":"IF($C$25=\"\",\"\",AL25/$C$25)","v":""},null,{"$f":"IF($C$25=\"\",\"\",AN25/$C$25)","v":""},null,{"$f":"IF($C$25=\"\",\"\",AP25/$C$25)","v":""},null,{"$f":"IF($C$25=\"\",\"\",AR25/$C$25)","v":""},null,{"$f":"IF($C$25=\"\",\"\",AT25/$C$25)","v":""},null,{"$f":"IF($C$25=\"\",\"\",AV25/$C$25)","v":""},null,{"$f":"IF($C$25=\"\",\"\",AX25/$C$25)","v":""},null,{"$f":"IF($C$25=\"\",\"\",AZ25/$C$25)","v":""},null,{"$f":"IF($C$25=\"\",\"\",BB25/$C$25)","v":""},null,0]
[null,null,null,null,{"$f":"IF($C$26=\"\",\"\",F26/$C$26)","v":""},null,{"$f":"IF($C$26=\"\",\"\",H26/$C$26)","v":""},null,{"$f":"IF($C$26=\"\",\"\",J26/$C$26)","v":""},null,{"$f":"IF($C$26=\"\",\"\",L26/$C$26)","v":""},null,{"$f":"IF($C$26=\"\",\"\",N26/$C$26)","v":""},null,{"$f":"IF($C$26=\"\",\"\",P26/$C$26)","v":""},null,{"$f":"IF($C$26=\"\",\"\",R26/$C$26)","v":""},null,{"$f":"IF($C$26=\"\",\"\",T26/$C$26)","v":""},null,{"$f":"IF($C$26=\"\",\"\",V26/$C$26)","v":""},null,{"$f":"IF($C$26=\"\",\"\",X26/$C$26)","v":""},null,{"$f":"IF($C$26=\"\",\"\",Z26/$C$26)","v":""},null,{"$f":"IF($C$26=\"\",\"\",AB26/$C$26)","v":""},null,{"$f":"IF($C$26=\"\",\"\",AD26/$C$26)","v":""},null,{"$f":"IF($C$26=\"\",\"\",AF26/$C$26)","v":""},null,{"$f":"IF($C$26=\"\",\"\",AH26/$C$26)","v":""},null,{"$f":"IF($C$26=\"\",\"\",AJ26/$C$26)","v":""},null,{"$f":"IF($C$26=\"\",\"\",AL26/$C$26)","v":""},null,{"$f":"IF($C$26=\"\",\"\",AN26/$C$26)","v":""},null,{"$f":"IF($C$26=\"\",\"\",AP26/$C$26)","v":""},null,{"$f":"IF($C$26=\"\",\"\",AR26/$C$26)","v":""},null,{"$f":"IF($C$26=\"\",\"\",AT26/$C$26)","v":""},null,{"$f":"IF($C$26=\"\",\"\",AV26/$C$26)","v":""},null,{"$f":"IF($C$26=\"\",\"\",AX26/$C$26)","v":""},null,{"$f":"IF($C$26=\"\",\"\",AZ26/$C$26)","v":""},null,{"$f":"IF($C$26=\"\",\"\",BB26/$C$26)","v":""},null,{"$f":"SUM(BB26,AZ26,AX26,AV26,AT26,AR26,AP26,AN26,AL26,AJ26,AH26,AF26,AD26,AB26,Z26,X26,V26,T26,R26,P26,N26,L26,J26,H26,F26)","v":0}]
[null,null,null,null,{"$f":"IF($C$27=\"\",\"\",F27/$C$27)","v":""},null,{"$f":"IF($C$27=\"\",\"\",H27/$C$27)","v":""},null,{"$f":"IF($C$27=\"\",\"\",J27/$C$27)","v":""},null,{"$f":"IF($C$27=\"\",\"\",L27/$C$27)","v":""},null,{"$f":"IF($C$27=\"\",\"\",N27/$C$27)","v":""},null,{"$f":"IF($C$27=\"\",\"\",P27/$C$27)","v":""},null,{"$f":"IF($C$27=\"\",\"\",R27/$C$27)","v":""},null,{"$f":"IF($C$27=\"\",\"\",T27/$C$27)","v":""},null,{"$f":"IF($C$27=\"\",\"\",V27/$C$27)","v":""},null,{"$f":"IF($C$27=\"\",\"\",X27/$C$27)","v":""},null,{"$f":"IF($C$27=\"\",\"\",Z27/$C$27)","v":""},null,{"$f":"IF($C$27=\"\",\"\",AB27/$C$27)","v":""},null,{"$f":"IF($C$27=\"\",\"\",AD27/$C$27)","v":""},null,{"$f":"IF($C$27=\"\",\"\",AF27/$C$27)","v":""},null,{"$f":"IF($C$27=\"\",\"\",AH27/$C$27)","v":""},null,{"$f":"IF($C$27=\"\",\"\",AJ27/$C$27)","v":""},null,{"$f":"IF($C$27=\"\",\"\",AL27/$C$27)","v":""},null,{"$f":"IF($C$27=\"\",\"\",AN27/$C$27)","v":""},null,{"$f":"IF($C$27=\"\",\"\",AP27/$C$27)","v":""},null,{"$f":"IF($C$27=\"\",\"\",AR27/$C$27)","v":""},null,{"$f":"IF($C$27=\"\",\"\",AT27/$C$27)","v":""},null,{"$f":"IF($C$27=\"\",\"\",AV27/$C$27)","v":""},null,{"$f":"IF($C$27=\"\",\"\",AX27/$C$27)","v":""},null,{"$f":"IF($C$27=\"\",\"\",AZ27/$C$27)","v":""},null,{"$f":"IF($C$27=\"\",\"\",BB27/$C$27)","v":""},null,{"$f":"SUM(BB27,AZ27,AX27,AV27,AT27,AR27,AP27,AN27,AL27,AJ27,AH27,AF27,AD27,AB27,Z27,X27,V27,T27,R27,P27,N27,L27,J27,H27,F27)","v":0}]
["TOTAL HOURS",null,null,null,null,{"$f":"SUM(F16:F27)","v":0},null,{"$f":"SUM(H16:H27)","v":0},null,{"$f":"SUM(J16:J27)","v":0},null,{"$f":"SUM(L16:L27)","v":0},null,{"$f":"SUM(N16:N27)","v":0},null,{"$f":"SUM(P16:P27)","v":0},null,{"$f":"SUM(R16:R27)","v":0},null,{"$f":"SUM(T16:T27)","v":0},null,{"$f":"SUM(V16:V27)","v":0},null,{"$f":"SUM(X16:X27)","v":0},null,{"$f":"SUM(Z16:Z27)","v":0},null,{"$f":"SUM(AB16:AB27)","v":0},null,{"$f":"SUM(AD16:AD27)","v":0},null,{"$f":"SUM(AF16:AF27)","v":0},null,{"$f":"SUM(AH16:AH27)","v":0},null,{"$f":"SUM(AJ16:AJ27)","v":0},null,{"$f":"SUM(AL16:AL27)","v":0},null,{"$f":"SUM(AN16:AN27)","v":0},null,{"$f":"SUM(AP16:AP27)","v":0},null,{"$f":"SUM(AR16:AR27)","v":0},null,{"$f":"SUM(AT16:AT27)","v":0},null,{"$f":"SUM(AV16:AV27)","v":0},null,{"$f":"SUM(AX16:AX27)","v":0},null,{"$f":"SUM(AZ16:AZ27)","v":0},null,{"$f":"SUM(BB16:BB27)","v":0},{"$f":"SUM(E28:BB28)","v":0}]
["TOTAL WORKDAYS",null,null,null,null,{"$f":"F28/8","v":0},null,{"$f":"H28/8","v":0},null,{"$f":"J28/8","v":0},null,{"$f":"L28/8","v":0},null,{"$f":"N28/8","v":0},null,{"$f":"P28/8","v":0},null,{"$f":"R28/8","v":0},null,{"$f":"T28/8","v":0},null,{"$f":"V28/8","v":0},null,{"$f":"X28/8","v":0},null,{"$f":"Z28/8","v":0},null,{"$f":"AB28/8","v":0},null,{"$f":"AD28/8","v":0},null,0,null,{"$f":"AH28/8","v":0},null,0,null,{"$f":"AL28/8","v":0},null,0,null,{"$f":"AP28/8","v":0},null,0,null,{"$f":"AT28/8","v":0},null,{"$f":"AV28/8","v":0},null,{"$f":"AX28/8","v":0},null,{"$f":"AZ28/8","v":0},null,{"$f":"BB28/8","v":0},{"$f":"SUM(E29:BB29)","v":0}]
["TOTAL RAW LABOR",null,null,null,null,{"$f":"$E$13*F28","v":0},null,{"$f":"$G$13*H28","v":0},null,{"$f":"$I$13*J28","v":0},null,{"$f":"$K$13*L28","v":0},null,{"$f":"$M$13*N28","v":0},null,{"$f":"$O$13*P28","v":0},null,{"$f":"$Q$13*R28","v":0},null,{"$f":"$S$13*T28","v":0},null,{"$f":"$U$13*V28","v":0},null,{"$f":"$W$13*X28","v":0},null,{"$f":"$Y$13*Z28","v":0},null,{"$f":"$AA$13*AB28","v":0},null,{"$f":"$AC$13*AD28","v":0},null,{"$f":"$AC$13*AF28","v":0},null,{"$f":"$AC$13*AH28","v":0},null,{"$f":"$AC$13*AJ28","v":0},null,{"$f":"$AC$13*AL28","v":0},null,{"$f":"$AC$13*AN28","v":0},null,{"$f":"$AC$13*AP28","v":0},null,{"$f":"$AC$13*AR28","v":0},null,{"$f":"$AC$13*AT28","v":0},null,{"$f":"$AC$13*AV28","v":0},null,{"$f":"$AC$13*AX28","v":0},null,{"$f":"$AC$13*AZ28","v":0},null,{"$f":"$AC$13*BB28","v":0},{"$f":"SUM(E30:BB30)","v":0}]
["Task 2.0     ","FUNCTIONAL DESIGN",null,null," ",null," ",null," ",null," ",null," ",null," ",null," ",null," ",null," ",null," ",null," ",null," ",null," ",null," ",null," ",null," ",null," ",null," ",null," ",null," ",null," ",null," ",null," ",null," ",null," "]
[2.1,"Systems Engineering Document/Project Architecture"]
["    2.1.1","    Summarize Existing System Operations and   \n    Functionality",null,null,{"$f":"IF($C$33=\"\",\"\",F33/$C$33)","v":""},null,{"$f":"IF($C$33=\"\",\"\",H33/$C$33)","v":""},null,{"$f":"IF($C$33=\"\",\"\",J33/$C$33)","v":""},null,{"$f":"IF($C$33=\"\",\"\",L33/$C$33)","v":""},null,{"$f":"IF($C$33=\"\",\"\",N33/$C$33)","v":""},null,{"$f":"IF($C$33=\"\",\"\",P33/$C$33)","v":""},null,{"$f":"IF($C$33=\"\",\"\",R33/$C$33)","v":""},null,{"$f":"IF($C$33=\"\",\"\",T33/$C$33)","v":""},null,{"$f":"IF($C$33=\"\",\"\",V33/$C$33)","v":""},null,{"$f":"IF($C$33=\"\",\"\",X33/$C$33)","v":""},null,{"$f":"IF($C$33=\"\",\"\",Z33/$C$33)","v":""},null,{"$f":"IF($C$33=\"\",\"\",AB33/$C$33)","v":""},null,{"$f":"IF($C$33=\"\",\"\",AD33/$C$33)","v":""},null,{"$f":"IF($C$33=\"\",\"\",AF33/$C$33)","v":""},null,{"$f":"IF($C$33=\"\",\"\",AH33/$C$33)","v":""},null,{"$f":"IF($C$33=\"\",\"\",AJ33/$C$33)","v":""},null,{"$f":"IF($C$33=\"\",\"\",AL33/$C$33)","v":""},null,{"$f":"IF($C$33=\"\",\"\",AN33/$C$33)","v":""},null,{"$f":"IF($C$33=\"\",\"\",AP33/$C$33)","v":""},null,{"$f":"IF($C$33=\"\",\"\",AR33/$C$33)","v":""},null,{"$f":"IF($C$33=\"\",\"\",AT33/$C$33)","v":""},null,{"$f":"IF($C$33=\"\",\"\",AV33/$C$33)","v":""},null,{"$f":"IF($C$33=\"\",\"\",AX33/$C$33)","v":""},null,{"$f":"IF($C$33=\"\",\"\",AZ33/$C$33)","v":""},null,{"$f":"IF($C$33=\"\",\"\",BB33/$C$33)","v":""},null,{"$f":"SUM(BB33,AZ33,AX33,AV33,AT33,AR33,AP33,AN33,AL33,AJ33,AH33,AF33,AD33,AB33,Z33,X33,V33,T33,R33,P33,N33,L33,J33,H33,F33)","v":0}]
["    2.1.2    ","    Summarize Proposed System Functional Needs \n    and Boundaries",null,null,{"$f":"IF($C$34=\"\",\"\",F34/$C$34)","v":""},null,{"$f":"IF($C$34=\"\",\"\",H34/$C$34)","v":""},null,{"$f":"IF($C$34=\"\",\"\",J34/$C$34)","v":""},null,{"$f":"IF($C$34=\"\",\"\",L34/$C$34)","v":""},null,{"$f":"IF($C$34=\"\",\"\",N34/$C$34)","v":""},null,{"$f":"IF($C$34=\"\",\"\",P34/$C$34)","v":""},null,{"$f":"IF($C$34=\"\",\"\",R34/$C$34)","v":""},null,{"$f":"IF($C$34=\"\",\"\",T34/$C$34)","v":""},null,{"$f":"IF($C$34=\"\",\"\",V34/$C$34)","v":""},null,{"$f":"IF($C$34=\"\",\"\",X34/$C$34)","v":""},null,{"$f":"IF($C$34=\"\",\"\",Z34/$C$34)","v":""},null,{"$f":"IF($C$34=\"\",\"\",AB34/$C$34)","v":""},null,{"$f":"IF($C$34=\"\",\"\",AD34/$C$34)","v":""},null,{"$f":"IF($C$34=\"\",\"\",AF34/$C$34)","v":""},null,{"$f":"IF($C$34=\"\",\"\",AH34/$C$34)","v":""},null,{"$f":"IF($C$34=\"\",\"\",AJ34/$C$34)","v":""},null,{"$f":"IF($C$34=\"\",\"\",AL34/$C$34)","v":""},null,{"$f":"IF($C$34=\"\",\"\",AN34/$C$34)","v":""},null,{"$f":"IF($C$34=\"\",\"\",AP34/$C$34)","v":""},null,{"$f":"IF($C$34=\"\",\"\",AR34/$C$34)","v":""},null,{"$f":"IF($C$34=\"\",\"\",AT34/$C$34)","v":""},null,{"$f":"IF($C$34=\"\",\"\",AV34/$C$34)","v":""},null,{"$f":"IF($C$34=\"\",\"\",AX34/$C$34)","v":""},null,{"$f":"IF($C$34=\"\",\"\",AZ34/$C$34)","v":""},null,{"$f":"IF($C$34=\"\",\"\",BB34/$C$34)","v":""},null,0]
["    2.1.3","    Summarize Proposed System Concept of \n    Operations",null,null,{"$f":"IF($C$35=\"\",\"\",F35/$C$35)","v":""},null,{"$f":"IF($C$35=\"\",\"\",H35/$C$35)","v":""},null,{"$f":"IF($C$35=\"\",\"\",J35/$C$35)","v":""},null,{"$f":"IF($C$35=\"\",\"\",L35/$C$35)","v":""},null,{"$f":"IF($C$35=\"\",\"\",N35/$C$35)","v":""},null,{"$f":"IF($C$35=\"\",\"\",P35/$C$35)","v":""},null,{"$f":"IF($C$35=\"\",\"\",R35/$C$35)","v":""},null,{"$f":"IF($C$35=\"\",\"\",T35/$C$35)","v":""},null,{"$f":"IF($C$35=\"\",\"\",V35/$C$35)","v":""},null,{"$f":"IF($C$35=\"\",\"\",X35/$C$35)","v":""},null,{"$f":"IF($C$35=\"\",\"\",Z35/$C$35)","v":""},null,{"$f":"IF($C$35=\"\",\"\",AB35/$C$35)","v":""},null,{"$f":"IF($C$35=\"\",\"\",AD35/$C$35)","v":""},null,{"$f":"IF($C$35=\"\",\"\",AF35/$C$35)","v":""},null,{"$f":"IF($C$35=\"\",\"\",AH35/$C$35)","v":""},null,{"$f":"IF($C$35=\"\",\"\",AJ35/$C$35)","v":""},null,{"$f":"IF($C$35=\"\",\"\",AL35/$C$35)","v":""},null,{"$f":"IF($C$35=\"\",\"\",AN35/$C$35)","v":""},null,{"$f":"IF($C$35=\"\",\"\",AP35/$C$35)","v":""},null,{"$f":"IF($C$35=\"\",\"\",AR35/$C$35)","v":""},null,{"$f":"IF($C$35=\"\",\"\",AT35/$C$35)","v":""},null,{"$f":"IF($C$35=\"\",\"\",AV35/$C$35)","v":""},null,{"$f":"IF($C$35=\"\",\"\",AX35/$C$35)","v":""},null,{"$f":"IF($C$35=\"\",\"\",AZ35/$C$35)","v":""},null,{"$f":"IF($C$35=\"\",\"\",BB35/$C$35)","v":""},null,0]
["    2.1.4","    Reference Project Architecture & Ensure \n    Regional Architecture Compliance",null,null,{"$f":"IF($C$36=\"\",\"\",F36/$C$36)","v":""},null,{"$f":"IF($C$36=\"\",\"\",H36/$C$36)","v":""},null,{"$f":"IF($C$36=\"\",\"\",J36/$C$36)","v":""},null,{"$f":"IF($C$36=\"\",\"\",L36/$C$36)","v":""},null,{"$f":"IF($C$36=\"\",\"\",N36/$C$36)","v":""},null,{"$f":"IF($C$36=\"\",\"\",P36/$C$36)","v":""},null,{"$f":"IF($C$36=\"\",\"\",R36/$C$36)","v":""},null,{"$f":"IF($C$36=\"\",\"\",T36/$C$36)","v":""},null,{"$f":"IF($C$36=\"\",\"\",V36/$C$36)","v":""},null,{"$f":"IF($C$36=\"\",\"\",X36/$C$36)","v":""},null,{"$f":"IF($C$36=\"\",\"\",Z36/$C$36)","v":""},null,{"$f":"IF($C$36=\"\",\"\",AB36/$C$36)","v":""},null,{"$f":"IF($C$36=\"\",\"\",AD36/$C$36)","v":""},null,{"$f":"IF($C$36=\"\",\"\",AF36/$C$36)","v":""},null,{"$f":"IF($C$36=\"\",\"\",AH36/$C$36)","v":""},null,{"$f":"IF($C$36=\"\",\"\",AJ36/$C$36)","v":""},null,{"$f":"IF($C$36=\"\",\"\",AL36/$C$36)","v":""},null,{"$f":"IF($C$36=\"\",\"\",AN36/$C$36)","v":""},null,{"$f":"IF($C$36=\"\",\"\",AP36/$C$36)","v":""},null,{"$f":"IF($C$36=\"\",\"\",AR36/$C$36)","v":""},null,{"$f":"IF($C$36=\"\",\"\",AT36/$C$36)","v":""},null,{"$f":"IF($C$36=\"\",\"\",AV36/$C$36)","v":""},null,{"$f":"IF($C$36=\"\",\"\",AX36/$C$36)","v":""},null,{"$f":"IF($C$36=\"\",\"\",AZ36/$C$36)","v":""},null,{"$f":"IF($C$36=\"\",\"\",BB36/$C$36)","v":""},null,0]
["    2.1.5","    Develop Draft Systems Engineering Document",null,null,{"$f":"IF($C$37=\"\",\"\",F37/$C$37)","v":""},null,{"$f":"IF($C$37=\"\",\"\",H37/$C$37)","v":""},null,{"$f":"IF($C$37=\"\",\"\",J37/$C$37)","v":""},null,{"$f":"IF($C$37=\"\",\"\",L37/$C$37)","v":""},null,{"$f":"IF($C$37=\"\",\"\",N37/$C$37)","v":""},null,{"$f":"IF($C$37=\"\",\"\",P37/$C$37)","v":""},null,{"$f":"IF($C$37=\"\",\"\",R37/$C$37)","v":""},null,{"$f":"IF($C$37=\"\",\"\",T37/$C$37)","v":""},null,{"$f":"IF($C$37=\"\",\"\",V37/$C$37)","v":""},null,{"$f":"IF($C$37=\"\",\"\",X37/$C$37)","v":""},null,{"$f":"IF($C$37=\"\",\"\",Z37/$C$37)","v":""},null,{"$f":"IF($C$37=\"\",\"\",AB37/$C$37)","v":""},null,{"$f":"IF($C$37=\"\",\"\",AD37/$C$37)","v":""},null,{"$f":"IF($C$37=\"\",\"\",AF37/$C$37)","v":""},null,{"$f":"IF($C$37=\"\",\"\",AH37/$C$37)","v":""},null,{"$f":"IF($C$37=\"\",\"\",AJ37/$C$37)","v":""},null,{"$f":"IF($C$37=\"\",\"\",AL37/$C$37)","v":""},null,{"$f":"IF($C$37=\"\",\"\",AN37/$C$37)","v":""},null,{"$f":"IF($C$37=\"\",\"\",AP37/$C$37)","v":""},null,{"$f":"IF($C$37=\"\",\"\",AR37/$C$37)","v":""},null,{"$f":"IF($C$37=\"\",\"\",AT37/$C$37)","v":""},null,{"$f":"IF($C$37=\"\",\"\",AV37/$C$37)","v":""},null,{"$f":"IF($C$37=\"\",\"\",AX37/$C$37)","v":""},null,{"$f":"IF($C$37=\"\",\"\",AZ37/$C$37)","v":""},null,{"$f":"IF($C$37=\"\",\"\",BB37/$C$37)","v":""},null,0]
["    2.1.6","    Finalize Systems Engineering Document",null,null,{"$f":"IF($C$38=\"\",\"\",F38/$C$38)","v":""},null,{"$f":"IF($C$38=\"\",\"\",H38/$C$38)","v":""},null,{"$f":"IF($C$38=\"\",\"\",J38/$C$38)","v":""},null,{"$f":"IF($C$38=\"\",\"\",L38/$C$38)","v":""},null,{"$f":"IF($C$38=\"\",\"\",N38/$C$38)","v":""},null,{"$f":"IF($C$38=\"\",\"\",P38/$C$38)","v":""},null,{"$f":"IF($C$38=\"\",\"\",R38/$C$38)","v":""},null,{"$f":"IF($C$38=\"\",\"\",T38/$C$38)","v":""},null,{"$f":"IF($C$38=\"\",\"\",V38/$C$38)","v":""},null,{"$f":"IF($C$38=\"\",\"\",X38/$C$38)","v":""},null,{"$f":"IF($C$38=\"\",\"\",Z38/$C$38)","v":""},null,{"$f":"IF($C$38=\"\",\"\",AB38/$C$38)","v":""},null,{"$f":"IF($C$38=\"\",\"\",AD38/$C$38)","v":""},null,{"$f":"IF($C$38=\"\",\"\",AF38/$C$38)","v":""},null,{"$f":"IF($C$38=\"\",\"\",AH38/$C$38)","v":""},null,{"$f":"IF($C$38=\"\",\"\",AJ38/$C$38)","v":""},null,{"$f":"IF($C$38=\"\",\"\",AL38/$C$38)","v":""},null,{"$f":"IF($C$38=\"\",\"\",AN38/$C$38)","v":""},null,{"$f":"IF($C$38=\"\",\"\",AP38/$C$38)","v":""},null,{"$f":"IF($C$38=\"\",\"\",AR38/$C$38)","v":""},null,{"$f":"IF($C$38=\"\",\"\",AT38/$C$38)","v":""},null,{"$f":"IF($C$38=\"\",\"\",AV38/$C$38)","v":""},null,{"$f":"IF($C$38=\"\",\"\",AX38/$C$38)","v":""},null,{"$f":"IF($C$38=\"\",\"\",AZ38/$C$38)","v":""},null,{"$f":"IF($C$38=\"\",\"\",BB38/$C$38)","v":""},null,0]
["    2.1.7",null,null,null,{"$f":"IF($C$39=\"\",\"\",F39/$C$39)","v":""},null,{"$f":"IF($C$39=\"\",\"\",H39/$C$39)","v":""},null,{"$f":"IF($C$39=\"\",\"\",J39/$C$39)","v":""},null,{"$f":"IF($C$39=\"\",\"\",L39/$C$39)","v":""},null,{"$f":"IF($C$39=\"\",\"\",N39/$C$39)","v":""},null,{"$f":"IF($C$39=\"\",\"\",P39/$C$39)","v":""},null,{"$f":"IF($C$39=\"\",\"\",R39/$C$39)","v":""},null,{"$f":"IF($C$39=\"\",\"\",T39/$C$39)","v":""},null,{"$f":"IF($C$39=\"\",\"\",V39/$C$39)","v":""},null,{"$f":"IF($C$39=\"\",\"\",X39/$C$39)","v":""},null,{"$f":"IF($C$39=\"\",\"\",Z39/$C$39)","v":""},null,{"$f":"IF($C$39=\"\",\"\",AB39/$C$39)","v":""},null,{"$f":"IF($C$39=\"\",\"\",AD39/$C$39)","v":""},null,{"$f":"IF($C$39=\"\",\"\",AF39/$C$39)","v":""},null,{"$f":"IF($C$39=\"\",\"\",AH39/$C$39)","v":""},null,{"$f":"IF($C$39=\"\",\"\",AJ39/$C$39)","v":""},null,{"$f":"IF($C$39=\"\",\"\",AL39/$C$39)","v":""},null,{"$f":"IF($C$39=\"\",\"\",AN39/$C$39)","v":""},null,{"$f":"IF($C$39=\"\",\"\",AP39/$C$39)","v":""},null,{"$f":"IF($C$39=\"\",\"\",AR39/$C$39)","v":""},null,{"$f":"IF($C$39=\"\",\"\",AT39/$C$39)","v":""},null,{"$f":"IF($C$39=\"\",\"\",AV39/$C$39)","v":""},null,{"$f":"IF($C$39=\"\",\"\",AX39/$C$39)","v":""},null,{"$f":"IF($C$39=\"\",\"\",AZ39/$C$39)","v":""},null,{"$f":"IF($C$39=\"\",\"\",BB39/$C$39)","v":""},null,0]
["    2.1.8",null,null,null,{"$f":"IF($C$40=\"\",\"\",F40/$C$40)","v":""},null,{"$f":"IF($C$40=\"\",\"\",H40/$C$40)","v":""},null,{"$f":"IF($C$40=\"\",\"\",J40/$C$40)","v":""},null,{"$f":"IF($C$40=\"\",\"\",L40/$C$40)","v":""},null,{"$f":"IF($C$40=\"\",\"\",N40/$C$40)","v":""},null,{"$f":"IF($C$40=\"\",\"\",P40/$C$40)","v":""},null,{"$f":"IF($C$40=\"\",\"\",R40/$C$40)","v":""},null,{"$f":"IF($C$40=\"\",\"\",T40/$C$40)","v":""},null,{"$f":"IF($C$40=\"\",\"\",V40/$C$40)","v":""},null,{"$f":"IF($C$40=\"\",\"\",X40/$C$40)","v":""},null,{"$f":"IF($C$40=\"\",\"\",Z40/$C$40)","v":""},null,{"$f":"IF($C$40=\"\",\"\",AB40/$C$40)","v":""},null,{"$f":"IF($C$40=\"\",\"\",AD40/$C$40)","v":""},null,{"$f":"IF($C$40=\"\",\"\",AF40/$C$40)","v":""},null,{"$f":"IF($C$40=\"\",\"\",AH40/$C$40)","v":""},null,{"$f":"IF($C$40=\"\",\"\",AJ40/$C$40)","v":""},null,{"$f":"IF($C$40=\"\",\"\",AL40/$C$40)","v":""},null,{"$f":"IF($C$40=\"\",\"\",AN40/$C$40)","v":""},null,{"$f":"IF($C$40=\"\",\"\",AP40/$C$40)","v":""},null,{"$f":"IF($C$40=\"\",\"\",AR40/$C$40)","v":""},null,{"$f":"IF($C$40=\"\",\"\",AT40/$C$40)","v":""},null,{"$f":"IF($C$40=\"\",\"\",AV40/$C$40)","v":""},null,{"$f":"IF($C$40=\"\",\"\",AX40/$C$40)","v":""},null,{"$f":"IF($C$40=\"\",\"\",AZ40/$C$40)","v":""},null,{"$f":"IF($C$40=\"\",\"\",BB40/$C$40)","v":""},null,0]
["    2.1.9",null,null,null,{"$f":"IF($C$41=\"\",\"\",F41/$C$41)","v":""},null,{"$f":"IF($C$41=\"\",\"\",H41/$C$41)","v":""},null,{"$f":"IF($C$41=\"\",\"\",J41/$C$41)","v":""},null,{"$f":"IF($C$41=\"\",\"\",L41/$C$41)","v":""},null,{"$f":"IF($C$41=\"\",\"\",N41/$C$41)","v":""},null,{"$f":"IF($C$41=\"\",\"\",P41/$C$41)","v":""},null,{"$f":"IF($C$41=\"\",\"\",R41/$C$41)","v":""},null,{"$f":"IF($C$41=\"\",\"\",T41/$C$41)","v":""},null,{"$f":"IF($C$41=\"\",\"\",V41/$C$41)","v":""},null,{"$f":"IF($C$41=\"\",\"\",X41/$C$41)","v":""},null,{"$f":"IF($C$41=\"\",\"\",Z41/$C$41)","v":""},null,{"$f":"IF($C$41=\"\",\"\",AB41/$C$41)","v":""},null,{"$f":"IF($C$41=\"\",\"\",AD41/$C$41)","v":""},null,{"$f":"IF($C$41=\"\",\"\",AF41/$C$41)","v":""},null,{"$f":"IF($C$41=\"\",\"\",AH41/$C$41)","v":""},null,{"$f":"IF($C$41=\"\",\"\",AJ41/$C$41)","v":""},null,{"$f":"IF($C$41=\"\",\"\",AL41/$C$41)","v":""},null,{"$f":"IF($C$41=\"\",\"\",AN41/$C$41)","v":""},null,{"$f":"IF($C$41=\"\",\"\",AP41/$C$41)","v":""},null,{"$f":"IF($C$41=\"\",\"\",AR41/$C$41)","v":""},null,{"$f":"IF($C$41=\"\",\"\",AT41/$C$41)","v":""},null,{"$f":"IF($C$41=\"\",\"\",AV41/$C$41)","v":""},null,{"$f":"IF($C$41=\"\",\"\",AX41/$C$41)","v":""},null,{"$f":"IF($C$41=\"\",\"\",AZ41/$C$41)","v":""},null,{"$f":"IF($C$41=\"\",\"\",BB41/$C$41)","v":""},null,0]
[2.2000000000000002,"System Maintenance and Staffing Plan",null,null,{"$f":"IF($C$42=\"\",\"\",F42/$C$42)","v":""},null,{"$f":"IF($C$42=\"\",\"\",H42/$C$42)","v":""},null,{"$f":"IF($C$42=\"\",\"\",J42/$C$42)","v":""},null,{"$f":"IF($C$42=\"\",\"\",L42/$C$42)","v":""},null,{"$f":"IF($C$42=\"\",\"\",N42/$C$42)","v":""},null,{"$f":"IF($C$42=\"\",\"\",P42/$C$42)","v":""},null,{"$f":"IF($C$42=\"\",\"\",R42/$C$42)","v":""},null,{"$f":"IF($C$42=\"\",\"\",T42/$C$42)","v":""},null,{"$f":"IF($C$42=\"\",\"\",V42/$C$42)","v":""},null,{"$f":"IF($C$42=\"\",\"\",X42/$C$42)","v":""},null,{"$f":"IF($C$42=\"\",\"\",Z42/$C$42)","v":""},null,{"$f":"IF($C$42=\"\",\"\",AB42/$C$42)","v":""},null,{"$f":"IF($C$42=\"\",\"\",AD42/$C$42)","v":""},null,{"$f":"IF($C$42=\"\",\"\",AF42/$C$42)","v":""},null,{"$f":"IF($C$42=\"\",\"\",AH42/$C$42)","v":""},null,{"$f":"IF($C$42=\"\",\"\",AJ42/$C$42)","v":""},null,{"$f":"IF($C$42=\"\",\"\",AL42/$C$42)","v":""},null,{"$f":"IF($C$42=\"\",\"\",AN42/$C$42)","v":""},null,{"$f":"IF($C$42=\"\",\"\",AP42/$C$42)","v":""},null,{"$f":"IF($C$42=\"\",\"\",AR42/$C$42)","v":""},null,{"$f":"IF($C$42=\"\",\"\",AT42/$C$42)","v":""},null,{"$f":"IF($C$42=\"\",\"\",AV42/$C$42)","v":""},null,{"$f":"IF($C$42=\"\",\"\",AX42/$C$42)","v":""},null,{"$f":"IF($C$42=\"\",\"\",AZ42/$C$42)","v":""},null,{"$f":"IF($C$42=\"\",\"\",BB42/$C$42)","v":""},null,0]
[2.2999999999999998,"Municipal Remote Monitoring  Center Requirements",null,null,{"$f":"IF($C$43=\"\",\"\",F43/$C$43)","v":""},null,{"$f":"IF($C$43=\"\",\"\",H43/$C$43)","v":""},null,{"$f":"IF($C$43=\"\",\"\",J43/$C$43)","v":""},null,{"$f":"IF($C$43=\"\",\"\",L43/$C$43)","v":""},null,{"$f":"IF($C$43=\"\",\"\",N43/$C$43)","v":""},null,{"$f":"IF($C$43=\"\",\"\",P43/$C$43)","v":""},null,{"$f":"IF($C$43=\"\",\"\",R43/$C$43)","v":""},null,{"$f":"IF($C$43=\"\",\"\",T43/$C$43)","v":""},null,{"$f":"IF($C$43=\"\",\"\",V43/$C$43)","v":""},null,{"$f":"IF($C$43=\"\",\"\",X43/$C$43)","v":""},null,{"$f":"IF($C$43=\"\",\"\",Z43/$C$43)","v":""},null,{"$f":"IF($C$43=\"\",\"\",AB43/$C$43)","v":""},null,{"$f":"IF($C$43=\"\",\"\",AD43/$C$43)","v":""},null,{"$f":"IF($C$43=\"\",\"\",AF43/$C$43)","v":""},null,{"$f":"IF($C$43=\"\",\"\",AH43/$C$43)","v":""},null,{"$f":"IF($C$43=\"\",\"\",AJ43/$C$43)","v":""},null,{"$f":"IF($C$43=\"\",\"\",AL43/$C$43)","v":""},null,{"$f":"IF($C$43=\"\",\"\",AN43/$C$43)","v":""},null,{"$f":"IF($C$43=\"\",\"\",AP43/$C$43)","v":""},null,{"$f":"IF($C$43=\"\",\"\",AR43/$C$43)","v":""},null,{"$f":"IF($C$43=\"\",\"\",AT43/$C$43)","v":""},null,{"$f":"IF($C$43=\"\",\"\",AV43/$C$43)","v":""},null,{"$f":"IF($C$43=\"\",\"\",AX43/$C$43)","v":""},null,{"$f":"IF($C$43=\"\",\"\",AZ43/$C$43)","v":""},null,{"$f":"IF($C$43=\"\",\"\",BB43/$C$43)","v":""},null,0]
[2.4,"Traffic Management Center Modifications",null,null,{"$f":"IF($C$44=\"\",\"\",F44/$C$44)","v":""},null,{"$f":"IF($C$44=\"\",\"\",H44/$C$44)","v":""},null,{"$f":"IF($C$44=\"\",\"\",J44/$C$44)","v":""},null,{"$f":"IF($C$44=\"\",\"\",L44/$C$44)","v":""},null,{"$f":"IF($C$44=\"\",\"\",N44/$C$44)","v":""},null,{"$f":"IF($C$44=\"\",\"\",P44/$C$44)","v":""},null,{"$f":"IF($C$44=\"\",\"\",R44/$C$44)","v":""},null,{"$f":"IF($C$44=\"\",\"\",T44/$C$44)","v":""},null,{"$f":"IF($C$44=\"\",\"\",V44/$C$44)","v":""},null,{"$f":"IF($C$44=\"\",\"\",X44/$C$44)","v":""},null,{"$f":"IF($C$44=\"\",\"\",Z44/$C$44)","v":""},null,{"$f":"IF($C$44=\"\",\"\",AB44/$C$44)","v":""},null,{"$f":"IF($C$44=\"\",\"\",AD44/$C$44)","v":""},null,{"$f":"IF($C$44=\"\",\"\",AF44/$C$44)","v":""},null,{"$f":"IF($C$44=\"\",\"\",AH44/$C$44)","v":""},null,{"$f":"IF($C$44=\"\",\"\",AJ44/$C$44)","v":""},null,{"$f":"IF($C$44=\"\",\"\",AL44/$C$44)","v":""},null,{"$f":"IF($C$44=\"\",\"\",AN44/$C$44)","v":""},null,{"$f":"IF($C$44=\"\",\"\",AP44/$C$44)","v":""},null,{"$f":"IF($C$44=\"\",\"\",AR44/$C$44)","v":""},null,{"$f":"IF($C$44=\"\",\"\",AT44/$C$44)","v":""},null,{"$f":"IF($C$44=\"\",\"\",AV44/$C$44)","v":""},null,{"$f":"IF($C$44=\"\",\"\",AX44/$C$44)","v":""},null,{"$f":"IF($C$44=\"\",\"\",AZ44/$C$44)","v":""},null,{"$f":"IF($C$44=\"\",\"\",BB44/$C$44)","v":""},null,0]
[2.5,"Emergency Vehicle Preemption/ Transit Priority Requirements",null,null,{"$f":"IF($C$45=\"\",\"\",F45/$C$45)","v":""},null,{"$f":"IF($C$45=\"\",\"\",H45/$C$45)","v":""},null,{"$f":"IF($C$45=\"\",\"\",J45/$C$45)","v":""},null,{"$f":"IF($C$45=\"\",\"\",L45/$C$45)","v":""},null,{"$f":"IF($C$45=\"\",\"\",N45/$C$45)","v":""},null,{"$f":"IF($C$45=\"\",\"\",P45/$C$45)","v":""},null,{"$f":"IF($C$45=\"\",\"\",R45/$C$45)","v":""},null,{"$f":"IF($C$45=\"\",\"\",T45/$C$45)","v":""},null,{"$f":"IF($C$45=\"\",\"\",V45/$C$45)","v":""},null,{"$f":"IF($C$45=\"\",\"\",X45/$C$45)","v":""},null,{"$f":"IF($C$45=\"\",\"\",Z45/$C$45)","v":""},null,{"$f":"IF($C$45=\"\",\"\",AB45/$C$45)","v":""},null,{"$f":"IF($C$45=\"\",\"\",AD45/$C$45)","v":""},null,{"$f":"IF($C$45=\"\",\"\",AF45/$C$45)","v":""},null,{"$f":"IF($C$45=\"\",\"\",AH45/$C$45)","v":""},null,{"$f":"IF($C$45=\"\",\"\",AJ45/$C$45)","v":""},null,{"$f":"IF($C$45=\"\",\"\",AL45/$C$45)","v":""},null,{"$f":"IF($C$45=\"\",\"\",AN45/$C$45)","v":""},null,{"$f":"IF($C$45=\"\",\"\",AP45/$C$45)","v":""},null,{"$f":"IF($C$45=\"\",\"\",AR45/$C$45)","v":""},null,{"$f":"IF($C$45=\"\",\"\",AT45/$C$45)","v":""},null,{"$f":"IF($C$45=\"\",\"\",AV45/$C$45)","v":""},null,{"$f":"IF($C$45=\"\",\"\",AX45/$C$45)","v":""},null,{"$f":"IF($C$45=\"\",\"\",AZ45/$C$45)","v":""},null,{"$f":"IF($C$45=\"\",\"\",BB45/$C$45)","v":""},null,0]
[null,null,null,null,{"$f":"IF($C$46=\"\",\"\",F46/$C$46)","v":""},null,{"$f":"IF($C$46=\"\",\"\",H46/$C$46)","v":""},null,{"$f":"IF($C$46=\"\",\"\",J46/$C$46)","v":""},null,{"$f":"IF($C$46=\"\",\"\",L46/$C$46)","v":""},null,{"$f":"IF($C$46=\"\",\"\",N46/$C$46)","v":""},null,{"$f":"IF($C$46=\"\",\"\",P46/$C$46)","v":""},null,{"$f":"IF($C$46=\"\",\"\",R46/$C$46)","v":""},null,{"$f":"IF($C$46=\"\",\"\",T46/$C$46)","v":""},null,{"$f":"IF($C$46=\"\",\"\",V46/$C$46)","v":""},null,{"$f":"IF($C$46=\"\",\"\",X46/$C$46)","v":""},null,{"$f":"IF($C$46=\"\",\"\",Z46/$C$46)","v":""},null,{"$f":"IF($C$46=\"\",\"\",AB46/$C$46)","v":""},null,{"$f":"IF($C$46=\"\",\"\",AD46/$C$46)","v":""},null,{"$f":"IF($C$46=\"\",\"\",AF46/$C$46)","v":""},null,{"$f":"IF($C$46=\"\",\"\",AH46/$C$46)","v":""},null,{"$f":"IF($C$46=\"\",\"\",AJ46/$C$46)","v":""},null,{"$f":"IF($C$46=\"\",\"\",AL46/$C$46)","v":""},null,{"$f":"IF($C$46=\"\",\"\",AN46/$C$46)","v":""},null,{"$f":"IF($C$46=\"\",\"\",AP46/$C$46)","v":""},null,{"$f":"IF($C$46=\"\",\"\",AR46/$C$46)","v":""},null,{"$f":"IF($C$46=\"\",\"\",AT46/$C$46)","v":""},null,{"$f":"IF($C$46=\"\",\"\",AV46/$C$46)","v":""},null,{"$f":"IF($C$46=\"\",\"\",AX46/$C$46)","v":""},null,{"$f":"IF($C$46=\"\",\"\",AZ46/$C$46)","v":""},null,{"$f":"IF($C$46=\"\",\"\",BB46/$C$46)","v":""},null,0]
[null,null,null,null,{"$f":"IF($C$47=\"\",\"\",F47/$C$47)","v":""},null,{"$f":"IF($C$47=\"\",\"\",H47/$C$47)","v":""},null,{"$f":"IF($C$47=\"\",\"\",J47/$C$47)","v":""},null,{"$f":"IF($C$47=\"\",\"\",L47/$C$47)","v":""},null,{"$f":"IF($C$47=\"\",\"\",N47/$C$47)","v":""},null,{"$f":"IF($C$47=\"\",\"\",P47/$C$47)","v":""},null,{"$f":"IF($C$47=\"\",\"\",R47/$C$47)","v":""},null,{"$f":"IF($C$47=\"\",\"\",T47/$C$47)","v":""},null,{"$f":"IF($C$47=\"\",\"\",V47/$C$47)","v":""},null,{"$f":"IF($C$47=\"\",\"\",X47/$C$47)","v":""},null,{"$f":"IF($C$47=\"\",\"\",Z47/$C$47)","v":""},null,{"$f":"IF($C$47=\"\",\"\",AB47/$C$47)","v":""},null,{"$f":"IF($C$47=\"\",\"\",AD47/$C$47)","v":""},null,{"$f":"IF($C$47=\"\",\"\",AF47/$C$47)","v":""},null,{"$f":"IF($C$47=\"\",\"\",AH47/$C$47)","v":""},null,{"$f":"IF($C$47=\"\",\"\",AJ47/$C$47)","v":""},null,{"$f":"IF($C$47=\"\",\"\",AL47/$C$47)","v":""},null,{"$f":"IF($C$47=\"\",\"\",AN47/$C$47)","v":""},null,{"$f":"IF($C$47=\"\",\"\",AP47/$C$47)","v":""},null,{"$f":"IF($C$47=\"\",\"\",AR47/$C$47)","v":""},null,{"$f":"IF($C$47=\"\",\"\",AT47/$C$47)","v":""},null,{"$f":"IF($C$47=\"\",\"\",AV47/$C$47)","v":""},null,{"$f":"IF($C$47=\"\",\"\",AX47/$C$47)","v":""},null,{"$f":"IF($C$47=\"\",\"\",AZ47/$C$47)","v":""},null,{"$f":"IF($C$47=\"\",\"\",BB47/$C$47)","v":""},null,0]
[null,null,null,null,{"$f":"IF($C$48=\"\",\"\",F48/$C$48)","v":""},null,{"$f":"IF($C$48=\"\",\"\",H48/$C$48)","v":""},null,{"$f":"IF($C$48=\"\",\"\",J48/$C$48)","v":""},null,{"$f":"IF($C$48=\"\",\"\",L48/$C$48)","v":""},null,{"$f":"IF($C$48=\"\",\"\",N48/$C$48)","v":""},null,{"$f":"IF($C$48=\"\",\"\",P48/$C$48)","v":""},null,{"$f":"IF($C$48=\"\",\"\",R48/$C$48)","v":""},null,{"$f":"IF($C$48=\"\",\"\",T48/$C$48)","v":""},null,{"$f":"IF($C$48=\"\",\"\",V48/$C$48)","v":""},null,{"$f":"IF($C$48=\"\",\"\",X48/$C$48)","v":""},null,{"$f":"IF($C$48=\"\",\"\",Z48/$C$48)","v":""},null,{"$f":"IF($C$48=\"\",\"\",AB48/$C$48)","v":""},null,{"$f":"IF($C$48=\"\",\"\",AD48/$C$48)","v":""},null,{"$f":"IF($C$48=\"\",\"\",AF48/$C$48)","v":""},null,{"$f":"IF($C$48=\"\",\"\",AH48/$C$48)","v":""},null,{"$f":"IF($C$48=\"\",\"\",AJ48/$C$48)","v":""},null,{"$f":"IF($C$48=\"\",\"\",AL48/$C$48)","v":""},null,{"$f":"IF($C$48=\"\",\"\",AN48/$C$48)","v":""},null,{"$f":"IF($C$48=\"\",\"\",AP48/$C$48)","v":""},null,{"$f":"IF($C$48=\"\",\"\",AR48/$C$48)","v":""},null,{"$f":"IF($C$48=\"\",\"\",AT48/$C$48)","v":""},null,{"$f":"IF($C$48=\"\",\"\",AV48/$C$48)","v":""},null,{"$f":"IF($C$48=\"\",\"\",AX48/$C$48)","v":""},null,{"$f":"IF($C$48=\"\",\"\",AZ48/$C$48)","v":""},null,{"$f":"IF($C$48=\"\",\"\",BB48/$C$48)","v":""},null,0]
[null,null,null,null,{"$f":"IF($C$49=\"\",\"\",F49/$C$49)","v":""},null,{"$f":"IF($C$49=\"\",\"\",H49/$C$49)","v":""},null,{"$f":"IF($C$49=\"\",\"\",J49/$C$49)","v":""},null,{"$f":"IF($C$49=\"\",\"\",L49/$C$49)","v":""},null,{"$f":"IF($C$49=\"\",\"\",N49/$C$49)","v":""},null,{"$f":"IF($C$49=\"\",\"\",P49/$C$49)","v":""},null,{"$f":"IF($C$49=\"\",\"\",R49/$C$49)","v":""},null,{"$f":"IF($C$49=\"\",\"\",T49/$C$49)","v":""},null,{"$f":"IF($C$49=\"\",\"\",V49/$C$49)","v":""},null,{"$f":"IF($C$49=\"\",\"\",X49/$C$49)","v":""},null,{"$f":"IF($C$49=\"\",\"\",Z49/$C$49)","v":""},null,{"$f":"IF($C$49=\"\",\"\",AB49/$C$49)","v":""},null,{"$f":"IF($C$49=\"\",\"\",AD49/$C$49)","v":""},null,{"$f":"IF($C$49=\"\",\"\",AF49/$C$49)","v":""},null,{"$f":"IF($C$49=\"\",\"\",AH49/$C$49)","v":""},null,{"$f":"IF($C$49=\"\",\"\",AJ49/$C$49)","v":""},null,{"$f":"IF($C$49=\"\",\"\",AL49/$C$49)","v":""},null,{"$f":"IF($C$49=\"\",\"\",AN49/$C$49)","v":""},null,{"$f":"IF($C$49=\"\",\"\",AP49/$C$49)","v":""},null,{"$f":"IF($C$49=\"\",\"\",AR49/$C$49)","v":""},null,{"$f":"IF($C$49=\"\",\"\",AT49/$C$49)","v":""},null,{"$f":"IF($C$49=\"\",\"\",AV49/$C$49)","v":""},null,{"$f":"IF($C$49=\"\",\"\",AX49/$C$49)","v":""},null,{"$f":"IF($C$49=\"\",\"\",AZ49/$C$49)","v":""},null,{"$f":"IF($C$49=\"\",\"\",BB49/$C$49)","v":""},null,0]
[null,null,null,null,{"$f":"IF($C$50=\"\",\"\",F50/$C$50)","v":""},null,{"$f":"IF($C$50=\"\",\"\",H50/$C$50)","v":""},null,{"$f":"IF($C$50=\"\",\"\",J50/$C$50)","v":""},null,{"$f":"IF($C$50=\"\",\"\",L50/$C$50)","v":""},null,{"$f":"IF($C$50=\"\",\"\",N50/$C$50)","v":""},null,{"$f":"IF($C$50=\"\",\"\",P50/$C$50)","v":""},null,{"$f":"IF($C$50=\"\",\"\",R50/$C$50)","v":""},null,{"$f":"IF($C$50=\"\",\"\",T50/$C$50)","v":""},null,{"$f":"IF($C$50=\"\",\"\",V50/$C$50)","v":""},null,{"$f":"IF($C$50=\"\",\"\",X50/$C$50)","v":""},null,{"$f":"IF($C$50=\"\",\"\",Z50/$C$50)","v":""},null,{"$f":"IF($C$50=\"\",\"\",AB50/$C$50)","v":""},null,{"$f":"IF($C$50=\"\",\"\",AD50/$C$50)","v":""},null,{"$f":"IF($C$50=\"\",\"\",AF50/$C$50)","v":""},null,{"$f":"IF($C$50=\"\",\"\",AH50/$C$50)","v":""},null,{"$f":"IF($C$50=\"\",\"\",AJ50/$C$50)","v":""},null,{"$f":"IF($C$50=\"\",\"\",AL50/$C$50)","v":""},null,{"$f":"IF($C$50=\"\",\"\",AN50/$C$50)","v":""},null,{"$f":"IF($C$50=\"\",\"\",AP50/$C$50)","v":""},null,{"$f":"IF($C$50=\"\",\"\",AR50/$C$50)","v":""},null,{"$f":"IF($C$50=\"\",\"\",AT50/$C$50)","v":""},null,{"$f":"IF($C$50=\"\",\"\",AV50/$C$50)","v":""},null,{"$f":"IF($C$50=\"\",\"\",AX50/$C$50)","v":""},null,{"$f":"IF($C$50=\"\",\"\",AZ50/$C$50)","v":""},null,{"$f":"IF($C$50=\"\",\"\",BB50/$C$50)","v":""},null,0]
[null,null,null,null,{"$f":"IF($C$51=\"\",\"\",F51/$C$51)","v":""},null,{"$f":"IF($C$51=\"\",\"\",H51/$C$51)","v":""},null,{"$f":"IF($C$51=\"\",\"\",J51/$C$51)","v":""},null,{"$f":"IF($C$51=\"\",\"\",L51/$C$51)","v":""},null,{"$f":"IF($C$51=\"\",\"\",N51/$C$51)","v":""},null,{"$f":"IF($C$51=\"\",\"\",P51/$C$51)","v":""},null,{"$f":"IF($C$51=\"\",\"\",R51/$C$51)","v":""},null,{"$f":"IF($C$51=\"\",\"\",T51/$C$51)","v":""},null,{"$f":"IF($C$51=\"\",\"\",V51/$C$51)","v":""},null,{"$f":"IF($C$51=\"\",\"\",X51/$C$51)","v":""},null,{"$f":"IF($C$51=\"\",\"\",Z51/$C$51)","v":""},null,{"$f":"IF($C$51=\"\",\"\",AB51/$C$51)","v":""},null,{"$f":"IF($C$51=\"\",\"\",AD51/$C$51)","v":""},null,{"$f":"IF($C$51=\"\",\"\",AF51/$C$51)","v":""},null,{"$f":"IF($C$51=\"\",\"\",AH51/$C$51)","v":""},null,{"$f":"IF($C$51=\"\",\"\",AJ51/$C$51)","v":""},null,{"$f":"IF($C$51=\"\",\"\",AL51/$C$51)","v":""},null,{"$f":"IF($C$51=\"\",\"\",AN51/$C$51)","v":""},null,{"$f":"IF($C$51=\"\",\"\",AP51/$C$51)","v":""},null,{"$f":"IF($C$51=\"\",\"\",AR51/$C$51)","v":""},null,{"$f":"IF($C$51=\"\",\"\",AT51/$C$51)","v":""},null,{"$f":"IF($C$51=\"\",\"\",AV51/$C$51)","v":""},null,{"$f":"IF($C$51=\"\",\"\",AX51/$C$51)","v":""},null,{"$f":"IF($C$51=\"\",\"\",AZ51/$C$51)","v":""},null,{"$f":"IF($C$51=\"\",\"\",BB51/$C$51)","v":""},null,0]
[null,null,null,null,{"$f":"IF($C$52=\"\",\"\",F52/$C$52)","v":""},null,{"$f":"IF($C$52=\"\",\"\",H52/$C$52)","v":""},null,{"$f":"IF($C$52=\"\",\"\",J52/$C$52)","v":""},null,{"$f":"IF($C$52=\"\",\"\",L52/$C$52)","v":""},null,{"$f":"IF($C$52=\"\",\"\",N52/$C$52)","v":""},null,{"$f":"IF($C$52=\"\",\"\",P52/$C$52)","v":""},null,{"$f":"IF($C$52=\"\",\"\",R52/$C$52)","v":""},null,{"$f":"IF($C$52=\"\",\"\",T52/$C$52)","v":""},null,{"$f":"IF($C$52=\"\",\"\",V52/$C$52)","v":""},null,{"$f":"IF($C$52=\"\",\"\",X52/$C$52)","v":""},null,{"$f":"IF($C$52=\"\",\"\",Z52/$C$52)","v":""},null,{"$f":"IF($C$52=\"\",\"\",AB52/$C$52)","v":""},null,{"$f":"IF($C$52=\"\",\"\",AD52/$C$52)","v":""},null,{"$f":"IF($C$52=\"\",\"\",AF52/$C$52)","v":""},null,{"$f":"IF($C$52=\"\",\"\",AH52/$C$52)","v":""},null,{"$f":"IF($C$52=\"\",\"\",AJ52/$C$52)","v":""},null,{"$f":"IF($C$52=\"\",\"\",AL52/$C$52)","v":""},null,{"$f":"IF($C$52=\"\",\"\",AN52/$C$52)","v":""},null,{"$f":"IF($C$52=\"\",\"\",AP52/$C$52)","v":""},null,{"$f":"IF($C$52=\"\",\"\",AR52/$C$52)","v":""},null,{"$f":"IF($C$52=\"\",\"\",AT52/$C$52)","v":""},null,{"$f":"IF($C$52=\"\",\"\",AV52/$C$52)","v":""},null,{"$f":"IF($C$52=\"\",\"\",AX52/$C$52)","v":""},null,{"$f":"IF($C$52=\"\",\"\",AZ52/$C$52)","v":""},null,{"$f":"IF($C$52=\"\",\"\",BB52/$C$52)","v":""},null,{"$f":"SUM(BB52,AZ52,AX52,AV52,AT52,AR52,AP52,AN52,AL52,AJ52,AH52,AF52,AD52,AB52,Z52,X52,V52,T52,R52,P52,N52,L52,J52,H52,F52)","v":0}]
["TOTAL HOURS",null,null,null,null,{"$f":"SUM(F32:F52)","v":0},null,{"$f":"SUM(H32:H52)","v":0},null,{"$f":"SUM(J32:J52)","v":0},null,{"$f":"SUM(L32:L52)","v":0},null,{"$f":"SUM(N32:N52)","v":0},null,{"$f":"SUM(P32:P52)","v":0},null,{"$f":"SUM(R32:R52)","v":0},null,{"$f":"SUM(T32:T52)","v":0},null,{"$f":"SUM(V32:V52)","v":0},null,{"$f":"SUM(X32:X52)","v":0},null,{"$f":"SUM(Z32:Z52)","v":0},null,{"$f":"SUM(AB32:AB52)","v":0},null,{"$f":"SUM(AD32:AD52)","v":0},null,{"$f":"SUM(AF32:AF52)","v":0},null,{"$f":"SUM(AH32:AH52)","v":0},null,{"$f":"SUM(AJ32:AJ52)","v":0},null,{"$f":"SUM(AL32:AL52)","v":0},null,{"$f":"SUM(AN32:AN52)","v":0},null,{"$f":"SUM(AP32:AP52)","v":0},null,{"$f":"SUM(AR32:AR52)","v":0},null,{"$f":"SUM(AT32:AT52)","v":0},null,{"$f":"SUM(AV32:AV52)","v":0},null,{"$f":"SUM(AX32:AX52)","v":0},null,{"$f":"SUM(AZ32:AZ52)","v":0},null,{"$f":"SUM(BB32:BB52)","v":0},{"$f":"SUM(E53:BB53)","v":0}]
["TOTAL WORKDAYS",null,null,null,null,{"$f":"F53/8","v":0},null,{"$f":"H53/8","v":0},null,{"$f":"J53/8","v":0},null,{"$f":"L53/8","v":0},null,{"$f":"N53/8","v":0},null,{"$f":"P53/8","v":0},null,{"$f":"R53/8","v":0},null,{"$f":"T53/8","v":0},null,{"$f":"V53/8","v":0},null,{"$f":"X53/8","v":0},null,{"$f":"Z53/8","v":0},null,{"$f":"AB53/8","v":0},null,{"$f":"AD53/8","v":0},null,0,null,{"$f":"AH53/8","v":0},null,0,null,{"$f":"AL53/8","v":0},null,0,null,{"$f":"AP53/8","v":0},null,0,null,{"$f":"AT53/8","v":0},null,{"$f":"AV53/8","v":0},null,{"$f":"AX53/8","v":0},null,{"$f":"AZ53/8","v":0},null,{"$f":"BB53/8","v":0},{"$f":"SUM(E54:BB54)","v":0}]
["TOTAL RAW LABOR",null,null,null,null,{"$f":"$E$13*F53","v":0},null,{"$f":"$G$13*H53","v":0},null,{"$f":"$I$13*J53","v":0},null,{"$f":"$K$13*L53","v":0},null,{"$f":"$M$13*N53","v":0},null,{"$f":"$O$13*P53","v":0},null,{"$f":"$Q$13*R53","v":0},null,{"$f":"$S$13*T53","v":0},null,{"$f":"$U$13*V53","v":0},null,{"$f":"$W$13*X53","v":0},null,{"$f":"$Y$13*Z53","v":0},null,{"$f":"$AA$13*AB53","v":0},null,{"$f":"$AC$13*AD53","v":0},null,{"$f":"$AC$13*AF53","v":0},null,{"$f":"$AC$13*AH53","v":0},null,{"$f":"$AC$13*AJ53","v":0},null,{"$f":"$AC$13*AL53","v":0},null,{"$f":"$AC$13*AN53","v":0},null,{"$f":"$AC$13*AP53","v":0},null,{"$f":"$AC$13*AR53","v":0},null,{"$f":"$AC$13*AT53","v":0},null,{"$f":"$AC$13*AV53","v":0},null,{"$f":"$AC$13*AX53","v":0},null,{"$f":"$AC$13*AZ53","v":0},null,{"$f":"$AC$13*BB53","v":0},{"$f":"SUM(E55:BB55)","v":0}]
["Task 3.0     ","PROGRAMMATIC CATEGORICAL EXCLUSION & SUPPORTING TASKS"]
[3.1,"Misc. Coordination/Administration",null,null,{"$f":"IF($C$57=\"\",\"\",F57/$C$57)","v":""},null,{"$f":"IF($C$57=\"\",\"\",H57/$C$57)","v":""},null,{"$f":"IF($C$57=\"\",\"\",J57/$C$57)","v":""},null,{"$f":"IF($C$57=\"\",\"\",L57/$C$57)","v":""},null,{"$f":"IF($C$57=\"\",\"\",N57/$C$57)","v":""},null,{"$f":"IF($C$57=\"\",\"\",P57/$C$57)","v":""},null,{"$f":"IF($C$57=\"\",\"\",R57/$C$57)","v":""},null,{"$f":"IF($C$57=\"\",\"\",T57/$C$57)","v":""},null,{"$f":"IF($C$57=\"\",\"\",V57/$C$57)","v":""},null,{"$f":"IF($C$57=\"\",\"\",X57/$C$57)","v":""},null,{"$f":"IF($C$57=\"\",\"\",Z57/$C$57)","v":""},null,{"$f":"IF($C$57=\"\",\"\",AB57/$C$57)","v":""},null,{"$f":"IF($C$57=\"\",\"\",AD57/$C$57)","v":""},null,{"$f":"IF($C$57=\"\",\"\",AF57/$C$57)","v":""},null,{"$f":"IF($C$57=\"\",\"\",AH57/$C$57)","v":""},null,{"$f":"IF($C$57=\"\",\"\",AJ57/$C$57)","v":""},null,{"$f":"IF($C$57=\"\",\"\",AL57/$C$57)","v":""},null,{"$f":"IF($C$57=\"\",\"\",AN57/$C$57)","v":""},null,{"$f":"IF($C$57=\"\",\"\",AP57/$C$57)","v":""},null,{"$f":"IF($C$57=\"\",\"\",AR57/$C$57)","v":""},null,{"$f":"IF($C$57=\"\",\"\",AT57/$C$57)","v":""},null,{"$f":"IF($C$57=\"\",\"\",AV57/$C$57)","v":""},null,{"$f":"IF($C$57=\"\",\"\",AX57/$C$57)","v":""},null,{"$f":"IF($C$57=\"\",\"\",AZ57/$C$57)","v":""},null,{"$f":"IF($C$57=\"\",\"\",BB57/$C$57)","v":""},null,{"$f":"SUM(BB57,AZ57,AX57,AV57,AT57,AR57,AP57,AN57,AL57,AJ57,AH57,AF57,AD57,AB57,Z57,X57,V57,T57,R57,P57,N57,L57,J57,H57,F57)","v":0}]
[3.2,"Vicintiy Map/Base Mapping / Other Graphics"]
["    3.2.1","    Create Vicinity Map",null,null,{"$f":"IF($C$59=\"\",\"\",F59/$C$59)","v":""},null,{"$f":"IF($C$59=\"\",\"\",H59/$C$59)","v":""},null,{"$f":"IF($C$59=\"\",\"\",J59/$C$59)","v":""},null,{"$f":"IF($C$59=\"\",\"\",L59/$C$59)","v":""},null,{"$f":"IF($C$59=\"\",\"\",N59/$C$59)","v":""},null,{"$f":"IF($C$59=\"\",\"\",P59/$C$59)","v":""},null,{"$f":"IF($C$59=\"\",\"\",R59/$C$59)","v":""},null,{"$f":"IF($C$59=\"\",\"\",T59/$C$59)","v":""},null,{"$f":"IF($C$59=\"\",\"\",V59/$C$59)","v":""},null,{"$f":"IF($C$59=\"\",\"\",X59/$C$59)","v":""},null,{"$f":"IF($C$59=\"\",\"\",Z59/$C$59)","v":""},null,{"$f":"IF($C$59=\"\",\"\",AB59/$C$59)","v":""},null,{"$f":"IF($C$59=\"\",\"\",AD59/$C$59)","v":""},null,{"$f":"IF($C$59=\"\",\"\",AF59/$C$59)","v":""},null,{"$f":"IF($C$59=\"\",\"\",AH59/$C$59)","v":""},null,{"$f":"IF($C$59=\"\",\"\",AJ59/$C$59)","v":""},null,{"$f":"IF($C$59=\"\",\"\",AL59/$C$59)","v":""},null,{"$f":"IF($C$59=\"\",\"\",AN59/$C$59)","v":""},null,{"$f":"IF($C$59=\"\",\"\",AP59/$C$59)","v":""},null,{"$f":"IF($C$59=\"\",\"\",AR59/$C$59)","v":""},null,{"$f":"IF($C$59=\"\",\"\",AT59/$C$59)","v":""},null,{"$f":"IF($C$59=\"\",\"\",AV59/$C$59)","v":""},null,{"$f":"IF($C$59=\"\",\"\",AX59/$C$59)","v":""},null,{"$f":"IF($C$59=\"\",\"\",AZ59/$C$59)","v":""},null,{"$f":"IF($C$59=\"\",\"\",BB59/$C$59)","v":""},null,{"$f":"SUM(BB59,AZ59,AX59,AV59,AT59,AR59,AP59,AN59,AL59,AJ59,AH59,AF59,AD59,AB59,Z59,X59,V59,T59,R59,P59,N59,L59,J59,H59,F59)","v":0}]
["    3.2.2","    Digitize Feasibility Study Map (cable routing,\n    signals, camera locations)",null,null,{"$f":"IF($C$60=\"\",\"\",F60/$C$60)","v":""},null,{"$f":"IF($C$60=\"\",\"\",H60/$C$60)","v":""},null,{"$f":"IF($C$60=\"\",\"\",J60/$C$60)","v":""},null,{"$f":"IF($C$60=\"\",\"\",L60/$C$60)","v":""},null,{"$f":"IF($C$60=\"\",\"\",N60/$C$60)","v":""},null,{"$f":"IF($C$60=\"\",\"\",P60/$C$60)","v":""},null,{"$f":"IF($C$60=\"\",\"\",R60/$C$60)","v":""},null,{"$f":"IF($C$60=\"\",\"\",T60/$C$60)","v":""},null,{"$f":"IF($C$60=\"\",\"\",V60/$C$60)","v":""},null,{"$f":"IF($C$60=\"\",\"\",X60/$C$60)","v":""},null,{"$f":"IF($C$60=\"\",\"\",Z60/$C$60)","v":""},null,{"$f":"IF($C$60=\"\",\"\",AB60/$C$60)","v":""},null,{"$f":"IF($C$60=\"\",\"\",AD60/$C$60)","v":""},null,{"$f":"IF($C$60=\"\",\"\",AF60/$C$60)","v":""},null,{"$f":"IF($C$60=\"\",\"\",AH60/$C$60)","v":""},null,{"$f":"IF($C$60=\"\",\"\",AJ60/$C$60)","v":""},null,{"$f":"IF($C$60=\"\",\"\",AL60/$C$60)","v":""},null,{"$f":"IF($C$60=\"\",\"\",AN60/$C$60)","v":""},null,{"$f":"IF($C$60=\"\",\"\",AP60/$C$60)","v":""},null,{"$f":"IF($C$60=\"\",\"\",AR60/$C$60)","v":""},null,{"$f":"IF($C$60=\"\",\"\",AT60/$C$60)","v":""},null,{"$f":"IF($C$60=\"\",\"\",AV60/$C$60)","v":""},null,{"$f":"IF($C$60=\"\",\"\",AX60/$C$60)","v":""},null,{"$f":"IF($C$60=\"\",\"\",AZ60/$C$60)","v":""},null,{"$f":"IF($C$60=\"\",\"\",BB60/$C$60)","v":""},null,0]
["    3.2.3","    Add Planimetrics to Base Map",null,null,{"$f":"IF($C$61=\"\",\"\",F61/$C$61)","v":""},null,{"$f":"IF($C$61=\"\",\"\",H61/$C$61)","v":""},null,{"$f":"IF($C$61=\"\",\"\",J61/$C$61)","v":""},null,{"$f":"IF($C$61=\"\",\"\",L61/$C$61)","v":""},null,{"$f":"IF($C$61=\"\",\"\",N61/$C$61)","v":""},null,{"$f":"IF($C$61=\"\",\"\",P61/$C$61)","v":""},null,{"$f":"IF($C$61=\"\",\"\",R61/$C$61)","v":""},null,{"$f":"IF($C$61=\"\",\"\",T61/$C$61)","v":""},null,{"$f":"IF($C$61=\"\",\"\",V61/$C$61)","v":""},null,{"$f":"IF($C$61=\"\",\"\",X61/$C$61)","v":""},null,{"$f":"IF($C$61=\"\",\"\",Z61/$C$61)","v":""},null,{"$f":"IF($C$61=\"\",\"\",AB61/$C$61)","v":""},null,{"$f":"IF($C$61=\"\",\"\",AD61/$C$61)","v":""},null,{"$f":"IF($C$61=\"\",\"\",AF61/$C$61)","v":""},null,{"$f":"IF($C$61=\"\",\"\",AH61/$C$61)","v":""},null,{"$f":"IF($C$61=\"\",\"\",AJ61/$C$61)","v":""},null,{"$f":"IF($C$61=\"\",\"\",AL61/$C$61)","v":""},null,{"$f":"IF($C$61=\"\",\"\",AN61/$C$61)","v":""},null,{"$f":"IF($C$61=\"\",\"\",AP61/$C$61)","v":""},null,{"$f":"IF($C$61=\"\",\"\",AR61/$C$61)","v":""},null,{"$f":"IF($C$61=\"\",\"\",AT61/$C$61)","v":""},null,{"$f":"IF($C$61=\"\",\"\",AV61/$C$61)","v":""},null,{"$f":"IF($C$61=\"\",\"\",AX61/$C$61)","v":""},null,{"$f":"IF($C$61=\"\",\"\",AZ61/$C$61)","v":""},null,{"$f":"IF($C$61=\"\",\"\",BB61/$C$61)","v":""},null,0]
["    3.2.4","    Env. Features Layers (index, historic \n    districts/boundaries/structures, verify \n    community resources/correct autolabeling)",null,null,{"$f":"IF($C$62=\"\",\"\",F62/$C$62)","v":""},null,{"$f":"IF($C$62=\"\",\"\",H62/$C$62)","v":""},null,{"$f":"IF($C$62=\"\",\"\",J62/$C$62)","v":""},null,{"$f":"IF($C$62=\"\",\"\",L62/$C$62)","v":""},null,{"$f":"IF($C$62=\"\",\"\",N62/$C$62)","v":""},null,{"$f":"IF($C$62=\"\",\"\",P62/$C$62)","v":""},null,{"$f":"IF($C$62=\"\",\"\",R62/$C$62)","v":""},null,{"$f":"IF($C$62=\"\",\"\",T62/$C$62)","v":""},null,{"$f":"IF($C$62=\"\",\"\",V62/$C$62)","v":""},null,{"$f":"IF($C$62=\"\",\"\",X62/$C$62)","v":""},null,{"$f":"IF($C$62=\"\",\"\",Z62/$C$62)","v":""},null,{"$f":"IF($C$62=\"\",\"\",AB62/$C$62)","v":""},null,{"$f":"IF($C$62=\"\",\"\",AD62/$C$62)","v":""},null,{"$f":"IF($C$62=\"\",\"\",AF62/$C$62)","v":""},null,{"$f":"IF($C$62=\"\",\"\",AH62/$C$62)","v":""},null,{"$f":"IF($C$62=\"\",\"\",AJ62/$C$62)","v":""},null,{"$f":"IF($C$62=\"\",\"\",AL62/$C$62)","v":""},null,{"$f":"IF($C$62=\"\",\"\",AN62/$C$62)","v":""},null,{"$f":"IF($C$62=\"\",\"\",AP62/$C$62)","v":""},null,{"$f":"IF($C$62=\"\",\"\",AR62/$C$62)","v":""},null,{"$f":"IF($C$62=\"\",\"\",AT62/$C$62)","v":""},null,{"$f":"IF($C$62=\"\",\"\",AV62/$C$62)","v":""},null,{"$f":"IF($C$62=\"\",\"\",AX62/$C$62)","v":""},null,{"$f":"IF($C$62=\"\",\"\",AZ62/$C$62)","v":""},null,{"$f":"IF($C$62=\"\",\"\",BB62/$C$62)","v":""},null,0]
["    3.2.5","    Modifications Following Field Work",null,null,{"$f":"IF($C$63=\"\",\"\",F63/$C$63)","v":""},null,{"$f":"IF($C$63=\"\",\"\",H63/$C$63)","v":""},null,{"$f":"IF($C$63=\"\",\"\",J63/$C$63)","v":""},null,{"$f":"IF($C$63=\"\",\"\",L63/$C$63)","v":""},null,{"$f":"IF($C$63=\"\",\"\",N63/$C$63)","v":""},null,{"$f":"IF($C$63=\"\",\"\",P63/$C$63)","v":""},null,{"$f":"IF($C$63=\"\",\"\",R63/$C$63)","v":""},null,{"$f":"IF($C$63=\"\",\"\",T63/$C$63)","v":""},null,{"$f":"IF($C$63=\"\",\"\",V63/$C$63)","v":""},null,{"$f":"IF($C$63=\"\",\"\",X63/$C$63)","v":""},null,{"$f":"IF($C$63=\"\",\"\",Z63/$C$63)","v":""},null,{"$f":"IF($C$63=\"\",\"\",AB63/$C$63)","v":""},null,{"$f":"IF($C$63=\"\",\"\",AD63/$C$63)","v":""},null,{"$f":"IF($C$63=\"\",\"\",AF63/$C$63)","v":""},null,{"$f":"IF($C$63=\"\",\"\",AH63/$C$63)","v":""},null,{"$f":"IF($C$63=\"\",\"\",AJ63/$C$63)","v":""},null,{"$f":"IF($C$63=\"\",\"\",AL63/$C$63)","v":""},null,{"$f":"IF($C$63=\"\",\"\",AN63/$C$63)","v":""},null,{"$f":"IF($C$63=\"\",\"\",AP63/$C$63)","v":""},null,{"$f":"IF($C$63=\"\",\"\",AR63/$C$63)","v":""},null,{"$f":"IF($C$63=\"\",\"\",AT63/$C$63)","v":""},null,{"$f":"IF($C$63=\"\",\"\",AV63/$C$63)","v":""},null,{"$f":"IF($C$63=\"\",\"\",AX63/$C$63)","v":""},null,{"$f":"IF($C$63=\"\",\"\",AZ63/$C$63)","v":""},null,{"$f":"IF($C$63=\"\",\"\",BB63/$C$63)","v":""},null,0]
["    3.2.6","    Quad Map (needed for Archaeological and \n    Historic Architecture packets)",null,null,{"$f":"IF($C$64=\"\",\"\",F64/$C$64)","v":""},null,{"$f":"IF($C$64=\"\",\"\",H64/$C$64)","v":""},null,{"$f":"IF($C$64=\"\",\"\",J64/$C$64)","v":""},null,{"$f":"IF($C$64=\"\",\"\",L64/$C$64)","v":""},null,{"$f":"IF($C$64=\"\",\"\",N64/$C$64)","v":""},null,{"$f":"IF($C$64=\"\",\"\",P64/$C$64)","v":""},null,{"$f":"IF($C$64=\"\",\"\",R64/$C$64)","v":""},null,{"$f":"IF($C$64=\"\",\"\",T64/$C$64)","v":""},null,{"$f":"IF($C$64=\"\",\"\",V64/$C$64)","v":""},null,{"$f":"IF($C$64=\"\",\"\",X64/$C$64)","v":""},null,{"$f":"IF($C$64=\"\",\"\",Z64/$C$64)","v":""},null,{"$f":"IF($C$64=\"\",\"\",AB64/$C$64)","v":""},null,{"$f":"IF($C$64=\"\",\"\",AD64/$C$64)","v":""},null,{"$f":"IF($C$64=\"\",\"\",AF64/$C$64)","v":""},null,{"$f":"IF($C$64=\"\",\"\",AH64/$C$64)","v":""},null,{"$f":"IF($C$64=\"\",\"\",AJ64/$C$64)","v":""},null,{"$f":"IF($C$64=\"\",\"\",AL64/$C$64)","v":""},null,{"$f":"IF($C$64=\"\",\"\",AN64/$C$64)","v":""},null,{"$f":"IF($C$64=\"\",\"\",AP64/$C$64)","v":""},null,{"$f":"IF($C$64=\"\",\"\",AR64/$C$64)","v":""},null,{"$f":"IF($C$64=\"\",\"\",AT64/$C$64)","v":""},null,{"$f":"IF($C$64=\"\",\"\",AV64/$C$64)","v":""},null,{"$f":"IF($C$64=\"\",\"\",AX64/$C$64)","v":""},null,{"$f":"IF($C$64=\"\",\"\",AZ64/$C$64)","v":""},null,{"$f":"IF($C$64=\"\",\"\",BB64/$C$64)","v":""},null,0]
["    3.2.7",null,null,null,{"$f":"IF($C$65=\"\",\"\",F65/$C$65)","v":""},null,{"$f":"IF($C$65=\"\",\"\",H65/$C$65)","v":""},null,{"$f":"IF($C$65=\"\",\"\",J65/$C$65)","v":""},null,{"$f":"IF($C$65=\"\",\"\",L65/$C$65)","v":""},null,{"$f":"IF($C$65=\"\",\"\",N65/$C$65)","v":""},null,{"$f":"IF($C$65=\"\",\"\",P65/$C$65)","v":""},null,{"$f":"IF($C$65=\"\",\"\",R65/$C$65)","v":""},null,{"$f":"IF($C$65=\"\",\"\",T65/$C$65)","v":""},null,{"$f":"IF($C$65=\"\",\"\",V65/$C$65)","v":""},null,{"$f":"IF($C$65=\"\",\"\",X65/$C$65)","v":""},null,{"$f":"IF($C$65=\"\",\"\",Z65/$C$65)","v":""},null,{"$f":"IF($C$65=\"\",\"\",AB65/$C$65)","v":""},null,{"$f":"IF($C$65=\"\",\"\",AD65/$C$65)","v":""},null,{"$f":"IF($C$65=\"\",\"\",AF65/$C$65)","v":""},null,{"$f":"IF($C$65=\"\",\"\",AH65/$C$65)","v":""},null,{"$f":"IF($C$65=\"\",\"\",AJ65/$C$65)","v":""},null,{"$f":"IF($C$65=\"\",\"\",AL65/$C$65)","v":""},null,{"$f":"IF($C$65=\"\",\"\",AN65/$C$65)","v":""},null,{"$f":"IF($C$65=\"\",\"\",AP65/$C$65)","v":""},null,{"$f":"IF($C$65=\"\",\"\",AR65/$C$65)","v":""},null,{"$f":"IF($C$65=\"\",\"\",AT65/$C$65)","v":""},null,{"$f":"IF($C$65=\"\",\"\",AV65/$C$65)","v":""},null,{"$f":"IF($C$65=\"\",\"\",AX65/$C$65)","v":""},null,{"$f":"IF($C$65=\"\",\"\",AZ65/$C$65)","v":""},null,{"$f":"IF($C$65=\"\",\"\",BB65/$C$65)","v":""},null,0]
["    3.2.8",null,null,null,{"$f":"IF($C$66=\"\",\"\",F66/$C$66)","v":""},null,{"$f":"IF($C$66=\"\",\"\",H66/$C$66)","v":""},null,{"$f":"IF($C$66=\"\",\"\",J66/$C$66)","v":""},null,{"$f":"IF($C$66=\"\",\"\",L66/$C$66)","v":""},null,{"$f":"IF($C$66=\"\",\"\",N66/$C$66)","v":""},null,{"$f":"IF($C$66=\"\",\"\",P66/$C$66)","v":""},null,{"$f":"IF($C$66=\"\",\"\",R66/$C$66)","v":""},null,{"$f":"IF($C$66=\"\",\"\",T66/$C$66)","v":""},null,{"$f":"IF($C$66=\"\",\"\",V66/$C$66)","v":""},null,{"$f":"IF($C$66=\"\",\"\",X66/$C$66)","v":""},null,{"$f":"IF($C$66=\"\",\"\",Z66/$C$66)","v":""},null,{"$f":"IF($C$66=\"\",\"\",AB66/$C$66)","v":""},null,{"$f":"IF($C$66=\"\",\"\",AD66/$C$66)","v":""},null,{"$f":"IF($C$66=\"\",\"\",AF66/$C$66)","v":""},null,{"$f":"IF($C$66=\"\",\"\",AH66/$C$66)","v":""},null,{"$f":"IF($C$66=\"\",\"\",AJ66/$C$66)","v":""},null,{"$f":"IF($C$66=\"\",\"\",AL66/$C$66)","v":""},null,{"$f":"IF($C$66=\"\",\"\",AN66/$C$66)","v":""},null,{"$f":"IF($C$66=\"\",\"\",AP66/$C$66)","v":""},null,{"$f":"IF($C$66=\"\",\"\",AR66/$C$66)","v":""},null,{"$f":"IF($C$66=\"\",\"\",AT66/$C$66)","v":""},null,{"$f":"IF($C$66=\"\",\"\",AV66/$C$66)","v":""},null,{"$f":"IF($C$66=\"\",\"\",AX66/$C$66)","v":""},null,{"$f":"IF($C$66=\"\",\"\",AZ66/$C$66)","v":""},null,{"$f":"IF($C$66=\"\",\"\",BB66/$C$66)","v":""},null,0]
["    3.2.9",null,null,null,{"$f":"IF($C$67=\"\",\"\",F67/$C$67)","v":""},null,{"$f":"IF($C$67=\"\",\"\",H67/$C$67)","v":""},null,{"$f":"IF($C$67=\"\",\"\",J67/$C$67)","v":""},null,{"$f":"IF($C$67=\"\",\"\",L67/$C$67)","v":""},null,{"$f":"IF($C$67=\"\",\"\",N67/$C$67)","v":""},null,{"$f":"IF($C$67=\"\",\"\",P67/$C$67)","v":""},null,{"$f":"IF($C$67=\"\",\"\",R67/$C$67)","v":""},null,{"$f":"IF($C$67=\"\",\"\",T67/$C$67)","v":""},null,{"$f":"IF($C$67=\"\",\"\",V67/$C$67)","v":""},null,{"$f":"IF($C$67=\"\",\"\",X67/$C$67)","v":""},null,{"$f":"IF($C$67=\"\",\"\",Z67/$C$67)","v":""},null,{"$f":"IF($C$67=\"\",\"\",AB67/$C$67)","v":""},null,{"$f":"IF($C$67=\"\",\"\",AD67/$C$67)","v":""},null,{"$f":"IF($C$67=\"\",\"\",AF67/$C$67)","v":""},null,{"$f":"IF($C$67=\"\",\"\",AH67/$C$67)","v":""},null,{"$f":"IF($C$67=\"\",\"\",AJ67/$C$67)","v":""},null,{"$f":"IF($C$67=\"\",\"\",AL67/$C$67)","v":""},null,{"$f":"IF($C$67=\"\",\"\",AN67/$C$67)","v":""},null,{"$f":"IF($C$67=\"\",\"\",AP67/$C$67)","v":""},null,{"$f":"IF($C$67=\"\",\"\",AR67/$C$67)","v":""},null,{"$f":"IF($C$67=\"\",\"\",AT67/$C$67)","v":""},null,{"$f":"IF($C$67=\"\",\"\",AV67/$C$67)","v":""},null,{"$f":"IF($C$67=\"\",\"\",AX67/$C$67)","v":""},null,{"$f":"IF($C$67=\"\",\"\",AZ67/$C$67)","v":""},null,{"$f":"IF($C$67=\"\",\"\",BB67/$C$67)","v":""},null,0]
[3.3,"Historic Architecture"]
["    3.3.1","    Attend meetings with Local \n    Commission/NCDOT Historian/SHPO and \n    summarize (assume up to 3 meetings)",null,null,{"$f":"IF($C$69=\"\",\"\",F69/$C$69)","v":""},null,{"$f":"IF($C$69=\"\",\"\",H69/$C$69)","v":""},null,{"$f":"IF($C$69=\"\",\"\",J69/$C$69)","v":""},null,{"$f":"IF($C$69=\"\",\"\",L69/$C$69)","v":""},null,{"$f":"IF($C$69=\"\",\"\",N69/$C$69)","v":""},null,{"$f":"IF($C$69=\"\",\"\",P69/$C$69)","v":""},null,{"$f":"IF($C$69=\"\",\"\",R69/$C$69)","v":""},null,{"$f":"IF($C$69=\"\",\"\",T69/$C$69)","v":""},null,{"$f":"IF($C$69=\"\",\"\",V69/$C$69)","v":""},null,{"$f":"IF($C$69=\"\",\"\",X69/$C$69)","v":""},null,{"$f":"IF($C$69=\"\",\"\",Z69/$C$69)","v":""},null,{"$f":"IF($C$69=\"\",\"\",AB69/$C$69)","v":""},null,{"$f":"IF($C$69=\"\",\"\",AD69/$C$69)","v":""},null,{"$f":"IF($C$69=\"\",\"\",AF69/$C$69)","v":""},null,{"$f":"IF($C$69=\"\",\"\",AH69/$C$69)","v":""},null,{"$f":"IF($C$69=\"\",\"\",AJ69/$C$69)","v":""},null,{"$f":"IF($C$69=\"\",\"\",AL69/$C$69)","v":""},null,{"$f":"IF($C$69=\"\",\"\",AN69/$C$69)","v":""},null,{"$f":"IF($C$69=\"\",\"\",AP69/$C$69)","v":""},null,{"$f":"IF($C$69=\"\",\"\",AR69/$C$69)","v":""},null,{"$f":"IF($C$69=\"\",\"\",AT69/$C$69)","v":""},null,{"$f":"IF($C$69=\"\",\"\",AV69/$C$69)","v":""},null,{"$f":"IF($C$69=\"\",\"\",AX69/$C$69)","v":""},null,{"$f":"IF($C$69=\"\",\"\",AZ69/$C$69)","v":""},null,{"$f":"IF($C$69=\"\",\"\",BB69/$C$69)","v":""},null,{"$f":"SUM(BB69,AZ69,AX69,AV69,AT69,AR69,AP69,AN69,AL69,AJ69,AH69,AF69,AD69,AB69,Z69,X69,V69,T69,R69,P69,N69,L69,J69,H69,F69)","v":0}]
["    3.3.2","     PA Request Packet (Vicinity Map, PSA Map, \n    Quad Sheet, PA Cultural Resources Screening \n    Checklist)",null,null,{"$f":"IF($C$70=\"\",\"\",F70/$C$70)","v":""},null,{"$f":"IF($C$70=\"\",\"\",H70/$C$70)","v":""},null,{"$f":"IF($C$70=\"\",\"\",J70/$C$70)","v":""},null,{"$f":"IF($C$70=\"\",\"\",L70/$C$70)","v":""},null,{"$f":"IF($C$70=\"\",\"\",N70/$C$70)","v":""},null,{"$f":"IF($C$70=\"\",\"\",P70/$C$70)","v":""},null,{"$f":"IF($C$70=\"\",\"\",R70/$C$70)","v":""},null,{"$f":"IF($C$70=\"\",\"\",T70/$C$70)","v":""},null,{"$f":"IF($C$70=\"\",\"\",V70/$C$70)","v":""},null,{"$f":"IF($C$70=\"\",\"\",X70/$C$70)","v":""},null,{"$f":"IF($C$70=\"\",\"\",Z70/$C$70)","v":""},null,{"$f":"IF($C$70=\"\",\"\",AB70/$C$70)","v":""},null,{"$f":"IF($C$70=\"\",\"\",AD70/$C$70)","v":""},null,{"$f":"IF($C$70=\"\",\"\",AF70/$C$70)","v":""},null,{"$f":"IF($C$70=\"\",\"\",AH70/$C$70)","v":""},null,{"$f":"IF($C$70=\"\",\"\",AJ70/$C$70)","v":""},null,{"$f":"IF($C$70=\"\",\"\",AL70/$C$70)","v":""},null,{"$f":"IF($C$70=\"\",\"\",AN70/$C$70)","v":""},null,{"$f":"IF($C$70=\"\",\"\",AP70/$C$70)","v":""},null,{"$f":"IF($C$70=\"\",\"\",AR70/$C$70)","v":""},null,{"$f":"IF($C$70=\"\",\"\",AT70/$C$70)","v":""},null,{"$f":"IF($C$70=\"\",\"\",AV70/$C$70)","v":""},null,{"$f":"IF($C$70=\"\",\"\",AX70/$C$70)","v":""},null,{"$f":"IF($C$70=\"\",\"\",AZ70/$C$70)","v":""},null,{"$f":"IF($C$70=\"\",\"\",BB70/$C$70)","v":""},null,0]
["    3.3.3","    NCDOT Review of PA Request Packet/Address \n    comments/Submit to \"PA Tracker\"",null,null,{"$f":"IF($C$71=\"\",\"\",F71/$C$71)","v":""},null,{"$f":"IF($C$71=\"\",\"\",H71/$C$71)","v":""},null,{"$f":"IF($C$71=\"\",\"\",J71/$C$71)","v":""},null,{"$f":"IF($C$71=\"\",\"\",L71/$C$71)","v":""},null,{"$f":"IF($C$71=\"\",\"\",N71/$C$71)","v":""},null,{"$f":"IF($C$71=\"\",\"\",P71/$C$71)","v":""},null,{"$f":"IF($C$71=\"\",\"\",R71/$C$71)","v":""},null,{"$f":"IF($C$71=\"\",\"\",T71/$C$71)","v":""},null,{"$f":"IF($C$71=\"\",\"\",V71/$C$71)","v":""},null,{"$f":"IF($C$71=\"\",\"\",X71/$C$71)","v":""},null,{"$f":"IF($C$71=\"\",\"\",Z71/$C$71)","v":""},null,{"$f":"IF($C$71=\"\",\"\",AB71/$C$71)","v":""},null,{"$f":"IF($C$71=\"\",\"\",AD71/$C$71)","v":""},null,{"$f":"IF($C$71=\"\",\"\",AF71/$C$71)","v":""},null,{"$f":"IF($C$71=\"\",\"\",AH71/$C$71)","v":""},null,{"$f":"IF($C$71=\"\",\"\",AJ71/$C$71)","v":""},null,{"$f":"IF($C$71=\"\",\"\",AL71/$C$71)","v":""},null,{"$f":"IF($C$71=\"\",\"\",AN71/$C$71)","v":""},null,{"$f":"IF($C$71=\"\",\"\",AP71/$C$71)","v":""},null,{"$f":"IF($C$71=\"\",\"\",AR71/$C$71)","v":""},null,{"$f":"IF($C$71=\"\",\"\",AT71/$C$71)","v":""},null,{"$f":"IF($C$71=\"\",\"\",AV71/$C$71)","v":""},null,{"$f":"IF($C$71=\"\",\"\",AX71/$C$71)","v":""},null,{"$f":"IF($C$71=\"\",\"\",AZ71/$C$71)","v":""},null,{"$f":"IF($C$71=\"\",\"\",BB71/$C$71)","v":""},null,0]
["    3.3.4","    Coordination/Tabular Summaries of Signal \n    System Work Task",null,null,{"$f":"IF($C$72=\"\",\"\",F72/$C$72)","v":""},null,{"$f":"IF($C$72=\"\",\"\",H72/$C$72)","v":""},null,{"$f":"IF($C$72=\"\",\"\",J72/$C$72)","v":""},null,{"$f":"IF($C$72=\"\",\"\",L72/$C$72)","v":""},null,{"$f":"IF($C$72=\"\",\"\",N72/$C$72)","v":""},null,{"$f":"IF($C$72=\"\",\"\",P72/$C$72)","v":""},null,{"$f":"IF($C$72=\"\",\"\",R72/$C$72)","v":""},null,{"$f":"IF($C$72=\"\",\"\",T72/$C$72)","v":""},null,{"$f":"IF($C$72=\"\",\"\",V72/$C$72)","v":""},null,{"$f":"IF($C$72=\"\",\"\",X72/$C$72)","v":""},null,{"$f":"IF($C$72=\"\",\"\",Z72/$C$72)","v":""},null,{"$f":"IF($C$72=\"\",\"\",AB72/$C$72)","v":""},null,{"$f":"IF($C$72=\"\",\"\",AD72/$C$72)","v":""},null,{"$f":"IF($C$72=\"\",\"\",AF72/$C$72)","v":""},null,{"$f":"IF($C$72=\"\",\"\",AH72/$C$72)","v":""},null,{"$f":"IF($C$72=\"\",\"\",AJ72/$C$72)","v":""},null,{"$f":"IF($C$72=\"\",\"\",AL72/$C$72)","v":""},null,{"$f":"IF($C$72=\"\",\"\",AN72/$C$72)","v":""},null,{"$f":"IF($C$72=\"\",\"\",AP72/$C$72)","v":""},null,{"$f":"IF($C$72=\"\",\"\",AR72/$C$72)","v":""},null,{"$f":"IF($C$72=\"\",\"\",AT72/$C$72)","v":""},null,{"$f":"IF($C$72=\"\",\"\",AV72/$C$72)","v":""},null,{"$f":"IF($C$72=\"\",\"\",AX72/$C$72)","v":""},null,{"$f":"IF($C$72=\"\",\"\",AZ72/$C$72)","v":""},null,{"$f":"IF($C$72=\"\",\"\",BB72/$C$72)","v":""},null,0]
["    3.3.5",null,null,null,{"$f":"IF($C$73=\"\",\"\",F73/$C$73)","v":""},null,{"$f":"IF($C$73=\"\",\"\",H73/$C$73)","v":""},null,{"$f":"IF($C$73=\"\",\"\",J73/$C$73)","v":""},null,{"$f":"IF($C$73=\"\",\"\",L73/$C$73)","v":""},null,{"$f":"IF($C$73=\"\",\"\",N73/$C$73)","v":""},null,{"$f":"IF($C$73=\"\",\"\",P73/$C$73)","v":""},null,{"$f":"IF($C$73=\"\",\"\",R73/$C$73)","v":""},null,{"$f":"IF($C$73=\"\",\"\",T73/$C$73)","v":""},null,{"$f":"IF($C$73=\"\",\"\",V73/$C$73)","v":""},null,{"$f":"IF($C$73=\"\",\"\",X73/$C$73)","v":""},null,{"$f":"IF($C$73=\"\",\"\",Z73/$C$73)","v":""},null,{"$f":"IF($C$73=\"\",\"\",AB73/$C$73)","v":""},null,{"$f":"IF($C$73=\"\",\"\",AD73/$C$73)","v":""},null,{"$f":"IF($C$73=\"\",\"\",AF73/$C$73)","v":""},null,{"$f":"IF($C$73=\"\",\"\",AH73/$C$73)","v":""},null,{"$f":"IF($C$73=\"\",\"\",AJ73/$C$73)","v":""},null,{"$f":"IF($C$73=\"\",\"\",AL73/$C$73)","v":""},null,{"$f":"IF($C$73=\"\",\"\",AN73/$C$73)","v":""},null,{"$f":"IF($C$73=\"\",\"\",AP73/$C$73)","v":""},null,{"$f":"IF($C$73=\"\",\"\",AR73/$C$73)","v":""},null,{"$f":"IF($C$73=\"\",\"\",AT73/$C$73)","v":""},null,{"$f":"IF($C$73=\"\",\"\",AV73/$C$73)","v":""},null,{"$f":"IF($C$73=\"\",\"\",AX73/$C$73)","v":""},null,{"$f":"IF($C$73=\"\",\"\",AZ73/$C$73)","v":""},null,{"$f":"IF($C$73=\"\",\"\",BB73/$C$73)","v":""},null,0]
["    3.3.6",null,null,null,{"$f":"IF($C$74=\"\",\"\",F74/$C$74)","v":""},null,{"$f":"IF($C$74=\"\",\"\",H74/$C$74)","v":""},null,{"$f":"IF($C$74=\"\",\"\",J74/$C$74)","v":""},null,{"$f":"IF($C$74=\"\",\"\",L74/$C$74)","v":""},null,{"$f":"IF($C$74=\"\",\"\",N74/$C$74)","v":""},null,{"$f":"IF($C$74=\"\",\"\",P74/$C$74)","v":""},null,{"$f":"IF($C$74=\"\",\"\",R74/$C$74)","v":""},null,{"$f":"IF($C$74=\"\",\"\",T74/$C$74)","v":""},null,{"$f":"IF($C$74=\"\",\"\",V74/$C$74)","v":""},null,{"$f":"IF($C$74=\"\",\"\",X74/$C$74)","v":""},null,{"$f":"IF($C$74=\"\",\"\",Z74/$C$74)","v":""},null,{"$f":"IF($C$74=\"\",\"\",AB74/$C$74)","v":""},null,{"$f":"IF($C$74=\"\",\"\",AD74/$C$74)","v":""},null,{"$f":"IF($C$74=\"\",\"\",AF74/$C$74)","v":""},null,{"$f":"IF($C$74=\"\",\"\",AH74/$C$74)","v":""},null,{"$f":"IF($C$74=\"\",\"\",AJ74/$C$74)","v":""},null,{"$f":"IF($C$74=\"\",\"\",AL74/$C$74)","v":""},null,{"$f":"IF($C$74=\"\",\"\",AN74/$C$74)","v":""},null,{"$f":"IF($C$74=\"\",\"\",AP74/$C$74)","v":""},null,{"$f":"IF($C$74=\"\",\"\",AR74/$C$74)","v":""},null,{"$f":"IF($C$74=\"\",\"\",AT74/$C$74)","v":""},null,{"$f":"IF($C$74=\"\",\"\",AV74/$C$74)","v":""},null,{"$f":"IF($C$74=\"\",\"\",AX74/$C$74)","v":""},null,{"$f":"IF($C$74=\"\",\"\",AZ74/$C$74)","v":""},null,{"$f":"IF($C$74=\"\",\"\",BB74/$C$74)","v":""},null,0]
["    3.3.7",null,null,null,{"$f":"IF($C$75=\"\",\"\",F75/$C$75)","v":""},null,{"$f":"IF($C$75=\"\",\"\",H75/$C$75)","v":""},null,{"$f":"IF($C$75=\"\",\"\",J75/$C$75)","v":""},null,{"$f":"IF($C$75=\"\",\"\",L75/$C$75)","v":""},null,{"$f":"IF($C$75=\"\",\"\",N75/$C$75)","v":""},null,{"$f":"IF($C$75=\"\",\"\",P75/$C$75)","v":""},null,{"$f":"IF($C$75=\"\",\"\",R75/$C$75)","v":""},null,{"$f":"IF($C$75=\"\",\"\",T75/$C$75)","v":""},null,{"$f":"IF($C$75=\"\",\"\",V75/$C$75)","v":""},null,{"$f":"IF($C$75=\"\",\"\",X75/$C$75)","v":""},null,{"$f":"IF($C$75=\"\",\"\",Z75/$C$75)","v":""},null,{"$f":"IF($C$75=\"\",\"\",AB75/$C$75)","v":""},null,{"$f":"IF($C$75=\"\",\"\",AD75/$C$75)","v":""},null,{"$f":"IF($C$75=\"\",\"\",AF75/$C$75)","v":""},null,{"$f":"IF($C$75=\"\",\"\",AH75/$C$75)","v":""},null,{"$f":"IF($C$75=\"\",\"\",AJ75/$C$75)","v":""},null,{"$f":"IF($C$75=\"\",\"\",AL75/$C$75)","v":""},null,{"$f":"IF($C$75=\"\",\"\",AN75/$C$75)","v":""},null,{"$f":"IF($C$75=\"\",\"\",AP75/$C$75)","v":""},null,{"$f":"IF($C$75=\"\",\"\",AR75/$C$75)","v":""},null,{"$f":"IF($C$75=\"\",\"\",AT75/$C$75)","v":""},null,{"$f":"IF($C$75=\"\",\"\",AV75/$C$75)","v":""},null,{"$f":"IF($C$75=\"\",\"\",AX75/$C$75)","v":""},null,{"$f":"IF($C$75=\"\",\"\",AZ75/$C$75)","v":""},null,{"$f":"IF($C$75=\"\",\"\",BB75/$C$75)","v":""},null,0]
[3.4,"Noise Impacts / Air Quality",null,null,{"$f":"IF($C$76=\"\",\"\",F76/$C$76)","v":""},null,{"$f":"IF($C$76=\"\",\"\",H76/$C$76)","v":""},null,{"$f":"IF($C$76=\"\",\"\",J76/$C$76)","v":""},null,{"$f":"IF($C$76=\"\",\"\",L76/$C$76)","v":""},null,{"$f":"IF($C$76=\"\",\"\",N76/$C$76)","v":""},null,{"$f":"IF($C$76=\"\",\"\",P76/$C$76)","v":""},null,{"$f":"IF($C$76=\"\",\"\",R76/$C$76)","v":""},null,{"$f":"IF($C$76=\"\",\"\",T76/$C$76)","v":""},null,{"$f":"IF($C$76=\"\",\"\",V76/$C$76)","v":""},null,{"$f":"IF($C$76=\"\",\"\",X76/$C$76)","v":""},null,{"$f":"IF($C$76=\"\",\"\",Z76/$C$76)","v":""},null,{"$f":"IF($C$76=\"\",\"\",AB76/$C$76)","v":""},null,{"$f":"IF($C$76=\"\",\"\",AD76/$C$76)","v":""},null,{"$f":"IF($C$76=\"\",\"\",AF76/$C$76)","v":""},null,{"$f":"IF($C$76=\"\",\"\",AH76/$C$76)","v":""},null,{"$f":"IF($C$76=\"\",\"\",AJ76/$C$76)","v":""},null,{"$f":"IF($C$76=\"\",\"\",AL76/$C$76)","v":""},null,{"$f":"IF($C$76=\"\",\"\",AN76/$C$76)","v":""},null,{"$f":"IF($C$76=\"\",\"\",AP76/$C$76)","v":""},null,{"$f":"IF($C$76=\"\",\"\",AR76/$C$76)","v":""},null,{"$f":"IF($C$76=\"\",\"\",AT76/$C$76)","v":""},null,{"$f":"IF($C$76=\"\",\"\",AV76/$C$76)","v":""},null,{"$f":"IF($C$76=\"\",\"\",AX76/$C$76)","v":""},null,{"$f":"IF($C$76=\"\",\"\",AZ76/$C$76)","v":""},null,{"$f":"IF($C$76=\"\",\"\",BB76/$C$76)","v":""},null,0]
[3.5,"Community Studies"]
["    3.5.1","    Obtain GIS Data Sets (minority, low income, \n    LEP)/create census demographic tables",null,null,{"$f":"IF($C$78=\"\",\"\",F78/$C$78)","v":""},null,{"$f":"IF($C$78=\"\",\"\",H78/$C$78)","v":""},null,{"$f":"IF($C$78=\"\",\"\",J78/$C$78)","v":""},null,{"$f":"IF($C$78=\"\",\"\",L78/$C$78)","v":""},null,{"$f":"IF($C$78=\"\",\"\",N78/$C$78)","v":""},null,{"$f":"IF($C$78=\"\",\"\",P78/$C$78)","v":""},null,{"$f":"IF($C$78=\"\",\"\",R78/$C$78)","v":""},null,{"$f":"IF($C$78=\"\",\"\",T78/$C$78)","v":""},null,{"$f":"IF($C$78=\"\",\"\",V78/$C$78)","v":""},null,{"$f":"IF($C$78=\"\",\"\",X78/$C$78)","v":""},null,{"$f":"IF($C$78=\"\",\"\",Z78/$C$78)","v":""},null,{"$f":"IF($C$78=\"\",\"\",AB78/$C$78)","v":""},null,{"$f":"IF($C$78=\"\",\"\",AD78/$C$78)","v":""},null,{"$f":"IF($C$78=\"\",\"\",AF78/$C$78)","v":""},null,{"$f":"IF($C$78=\"\",\"\",AH78/$C$78)","v":""},null,{"$f":"IF($C$78=\"\",\"\",AJ78/$C$78)","v":""},null,{"$f":"IF($C$78=\"\",\"\",AL78/$C$78)","v":""},null,{"$f":"IF($C$78=\"\",\"\",AN78/$C$78)","v":""},null,{"$f":"IF($C$78=\"\",\"\",AP78/$C$78)","v":""},null,{"$f":"IF($C$78=\"\",\"\",AR78/$C$78)","v":""},null,{"$f":"IF($C$78=\"\",\"\",AT78/$C$78)","v":""},null,{"$f":"IF($C$78=\"\",\"\",AV78/$C$78)","v":""},null,{"$f":"IF($C$78=\"\",\"\",AX78/$C$78)","v":""},null,{"$f":"IF($C$78=\"\",\"\",AZ78/$C$78)","v":""},null,{"$f":"IF($C$78=\"\",\"\",BB78/$C$78)","v":""},null,{"$f":"SUM(BB78,AZ78,AX78,AV78,AT78,AR78,AP78,AN78,AL78,AJ78,AH78,AF78,AD78,AB78,Z78,X78,V78,T78,R78,P78,N78,L78,J78,H78,F78)","v":0}]
["    3.5.2","    Q/C tables",null,null,{"$f":"IF($C$79=\"\",\"\",F79/$C$79)","v":""},null,{"$f":"IF($C$79=\"\",\"\",H79/$C$79)","v":""},null,{"$f":"IF($C$79=\"\",\"\",J79/$C$79)","v":""},null,{"$f":"IF($C$79=\"\",\"\",L79/$C$79)","v":""},null,{"$f":"IF($C$79=\"\",\"\",N79/$C$79)","v":""},null,{"$f":"IF($C$79=\"\",\"\",P79/$C$79)","v":""},null,{"$f":"IF($C$79=\"\",\"\",R79/$C$79)","v":""},null,{"$f":"IF($C$79=\"\",\"\",T79/$C$79)","v":""},null,{"$f":"IF($C$79=\"\",\"\",V79/$C$79)","v":""},null,{"$f":"IF($C$79=\"\",\"\",X79/$C$79)","v":""},null,{"$f":"IF($C$79=\"\",\"\",Z79/$C$79)","v":""},null,{"$f":"IF($C$79=\"\",\"\",AB79/$C$79)","v":""},null,{"$f":"IF($C$79=\"\",\"\",AD79/$C$79)","v":""},null,{"$f":"IF($C$79=\"\",\"\",AF79/$C$79)","v":""},null,{"$f":"IF($C$79=\"\",\"\",AH79/$C$79)","v":""},null,{"$f":"IF($C$79=\"\",\"\",AJ79/$C$79)","v":""},null,{"$f":"IF($C$79=\"\",\"\",AL79/$C$79)","v":""},null,{"$f":"IF($C$79=\"\",\"\",AN79/$C$79)","v":""},null,{"$f":"IF($C$79=\"\",\"\",AP79/$C$79)","v":""},null,{"$f":"IF($C$79=\"\",\"\",AR79/$C$79)","v":""},null,{"$f":"IF($C$79=\"\",\"\",AT79/$C$79)","v":""},null,{"$f":"IF($C$79=\"\",\"\",AV79/$C$79)","v":""},null,{"$f":"IF($C$79=\"\",\"\",AX79/$C$79)","v":""},null,{"$f":"IF($C$79=\"\",\"\",AZ79/$C$79)","v":""},null,{"$f":"IF($C$79=\"\",\"\",BB79/$C$79)","v":""},null,0]
["    3.5.3","    Develop mapping of DSA",null,null,{"$f":"IF($C$80=\"\",\"\",F80/$C$80)","v":""},null,{"$f":"IF($C$80=\"\",\"\",H80/$C$80)","v":""},null,{"$f":"IF($C$80=\"\",\"\",J80/$C$80)","v":""},null,{"$f":"IF($C$80=\"\",\"\",L80/$C$80)","v":""},null,{"$f":"IF($C$80=\"\",\"\",N80/$C$80)","v":""},null,{"$f":"IF($C$80=\"\",\"\",P80/$C$80)","v":""},null,{"$f":"IF($C$80=\"\",\"\",R80/$C$80)","v":""},null,{"$f":"IF($C$80=\"\",\"\",T80/$C$80)","v":""},null,{"$f":"IF($C$80=\"\",\"\",V80/$C$80)","v":""},null,{"$f":"IF($C$80=\"\",\"\",X80/$C$80)","v":""},null,{"$f":"IF($C$80=\"\",\"\",Z80/$C$80)","v":""},null,{"$f":"IF($C$80=\"\",\"\",AB80/$C$80)","v":""},null,{"$f":"IF($C$80=\"\",\"\",AD80/$C$80)","v":""},null,{"$f":"IF($C$80=\"\",\"\",AF80/$C$80)","v":""},null,{"$f":"IF($C$80=\"\",\"\",AH80/$C$80)","v":""},null,{"$f":"IF($C$80=\"\",\"\",AJ80/$C$80)","v":""},null,{"$f":"IF($C$80=\"\",\"\",AL80/$C$80)","v":""},null,{"$f":"IF($C$80=\"\",\"\",AN80/$C$80)","v":""},null,{"$f":"IF($C$80=\"\",\"\",AP80/$C$80)","v":""},null,{"$f":"IF($C$80=\"\",\"\",AR80/$C$80)","v":""},null,{"$f":"IF($C$80=\"\",\"\",AT80/$C$80)","v":""},null,{"$f":"IF($C$80=\"\",\"\",AV80/$C$80)","v":""},null,{"$f":"IF($C$80=\"\",\"\",AX80/$C$80)","v":""},null,{"$f":"IF($C$80=\"\",\"\",AZ80/$C$80)","v":""},null,{"$f":"IF($C$80=\"\",\"\",BB80/$C$80)","v":""},null,0]
["    3.5.4","    Assess potential for community impacts",null,null,{"$f":"IF($C$81=\"\",\"\",F81/$C$81)","v":""},null,{"$f":"IF($C$81=\"\",\"\",H81/$C$81)","v":""},null,{"$f":"IF($C$81=\"\",\"\",J81/$C$81)","v":""},null,{"$f":"IF($C$81=\"\",\"\",L81/$C$81)","v":""},null,{"$f":"IF($C$81=\"\",\"\",N81/$C$81)","v":""},null,{"$f":"IF($C$81=\"\",\"\",P81/$C$81)","v":""},null,{"$f":"IF($C$81=\"\",\"\",R81/$C$81)","v":""},null,{"$f":"IF($C$81=\"\",\"\",T81/$C$81)","v":""},null,{"$f":"IF($C$81=\"\",\"\",V81/$C$81)","v":""},null,{"$f":"IF($C$81=\"\",\"\",X81/$C$81)","v":""},null,{"$f":"IF($C$81=\"\",\"\",Z81/$C$81)","v":""},null,{"$f":"IF($C$81=\"\",\"\",AB81/$C$81)","v":""},null,{"$f":"IF($C$81=\"\",\"\",AD81/$C$81)","v":""},null,{"$f":"IF($C$81=\"\",\"\",AF81/$C$81)","v":""},null,{"$f":"IF($C$81=\"\",\"\",AH81/$C$81)","v":""},null,{"$f":"IF($C$81=\"\",\"\",AJ81/$C$81)","v":""},null,{"$f":"IF($C$81=\"\",\"\",AL81/$C$81)","v":""},null,{"$f":"IF($C$81=\"\",\"\",AN81/$C$81)","v":""},null,{"$f":"IF($C$81=\"\",\"\",AP81/$C$81)","v":""},null,{"$f":"IF($C$81=\"\",\"\",AR81/$C$81)","v":""},null,{"$f":"IF($C$81=\"\",\"\",AT81/$C$81)","v":""},null,{"$f":"IF($C$81=\"\",\"\",AV81/$C$81)","v":""},null,{"$f":"IF($C$81=\"\",\"\",AX81/$C$81)","v":""},null,{"$f":"IF($C$81=\"\",\"\",AZ81/$C$81)","v":""},null,{"$f":"IF($C$81=\"\",\"\",BB81/$C$81)","v":""},null,0]
["    3.5.5","    Document findings in memo/Submit to     \n    NCDOT/Address Comments/Finalize",null,null,{"$f":"IF($C$82=\"\",\"\",F82/$C$82)","v":""},null,{"$f":"IF($C$82=\"\",\"\",H82/$C$82)","v":""},null,{"$f":"IF($C$82=\"\",\"\",J82/$C$82)","v":""},null,{"$f":"IF($C$82=\"\",\"\",L82/$C$82)","v":""},null,{"$f":"IF($C$82=\"\",\"\",N82/$C$82)","v":""},null,{"$f":"IF($C$82=\"\",\"\",P82/$C$82)","v":""},null,{"$f":"IF($C$82=\"\",\"\",R82/$C$82)","v":""},null,{"$f":"IF($C$82=\"\",\"\",T82/$C$82)","v":""},null,{"$f":"IF($C$82=\"\",\"\",V82/$C$82)","v":""},null,{"$f":"IF($C$82=\"\",\"\",X82/$C$82)","v":""},null,{"$f":"IF($C$82=\"\",\"\",Z82/$C$82)","v":""},null,{"$f":"IF($C$82=\"\",\"\",AB82/$C$82)","v":""},null,{"$f":"IF($C$82=\"\",\"\",AD82/$C$82)","v":""},null,{"$f":"IF($C$82=\"\",\"\",AF82/$C$82)","v":""},null,{"$f":"IF($C$82=\"\",\"\",AH82/$C$82)","v":""},null,{"$f":"IF($C$82=\"\",\"\",AJ82/$C$82)","v":""},null,{"$f":"IF($C$82=\"\",\"\",AL82/$C$82)","v":""},null,{"$f":"IF($C$82=\"\",\"\",AN82/$C$82)","v":""},null,{"$f":"IF($C$82=\"\",\"\",AP82/$C$82)","v":""},null,{"$f":"IF($C$82=\"\",\"\",AR82/$C$82)","v":""},null,{"$f":"IF($C$82=\"\",\"\",AT82/$C$82)","v":""},null,{"$f":"IF($C$82=\"\",\"\",AV82/$C$82)","v":""},null,{"$f":"IF($C$82=\"\",\"\",AX82/$C$82)","v":""},null,{"$f":"IF($C$82=\"\",\"\",AZ82/$C$82)","v":""},null,{"$f":"IF($C$82=\"\",\"\",BB82/$C$82)","v":""},null,0]
["    3.5.6","    Review project/environmental mapping for \n    Section 4(f)/6(f) properties",null,null,{"$f":"IF($C$83=\"\",\"\",F83/$C$83)","v":""},null,{"$f":"IF($C$83=\"\",\"\",H83/$C$83)","v":""},null,{"$f":"IF($C$83=\"\",\"\",J83/$C$83)","v":""},null,{"$f":"IF($C$83=\"\",\"\",L83/$C$83)","v":""},null,{"$f":"IF($C$83=\"\",\"\",N83/$C$83)","v":""},null,{"$f":"IF($C$83=\"\",\"\",P83/$C$83)","v":""},null,{"$f":"IF($C$83=\"\",\"\",R83/$C$83)","v":""},null,{"$f":"IF($C$83=\"\",\"\",T83/$C$83)","v":""},null,{"$f":"IF($C$83=\"\",\"\",V83/$C$83)","v":""},null,{"$f":"IF($C$83=\"\",\"\",X83/$C$83)","v":""},null,{"$f":"IF($C$83=\"\",\"\",Z83/$C$83)","v":""},null,{"$f":"IF($C$83=\"\",\"\",AB83/$C$83)","v":""},null,{"$f":"IF($C$83=\"\",\"\",AD83/$C$83)","v":""},null,{"$f":"IF($C$83=\"\",\"\",AF83/$C$83)","v":""},null,{"$f":"IF($C$83=\"\",\"\",AH83/$C$83)","v":""},null,{"$f":"IF($C$83=\"\",\"\",AJ83/$C$83)","v":""},null,{"$f":"IF($C$83=\"\",\"\",AL83/$C$83)","v":""},null,{"$f":"IF($C$83=\"\",\"\",AN83/$C$83)","v":""},null,{"$f":"IF($C$83=\"\",\"\",AP83/$C$83)","v":""},null,{"$f":"IF($C$83=\"\",\"\",AR83/$C$83)","v":""},null,{"$f":"IF($C$83=\"\",\"\",AT83/$C$83)","v":""},null,{"$f":"IF($C$83=\"\",\"\",AV83/$C$83)","v":""},null,{"$f":"IF($C$83=\"\",\"\",AX83/$C$83)","v":""},null,{"$f":"IF($C$83=\"\",\"\",AZ83/$C$83)","v":""},null,{"$f":"IF($C$83=\"\",\"\",BB83/$C$83)","v":""},null,0]
["    3.5.7","    Hold meetings with County Parks and \n    Recreation and summarize ",null,null,{"$f":"IF($C$84=\"\",\"\",F84/$C$84)","v":""},null,{"$f":"IF($C$84=\"\",\"\",H84/$C$84)","v":""},null,{"$f":"IF($C$84=\"\",\"\",J84/$C$84)","v":""},null,{"$f":"IF($C$84=\"\",\"\",L84/$C$84)","v":""},null,{"$f":"IF($C$84=\"\",\"\",N84/$C$84)","v":""},null,{"$f":"IF($C$84=\"\",\"\",P84/$C$84)","v":""},null,{"$f":"IF($C$84=\"\",\"\",R84/$C$84)","v":""},null,{"$f":"IF($C$84=\"\",\"\",T84/$C$84)","v":""},null,{"$f":"IF($C$84=\"\",\"\",V84/$C$84)","v":""},null,{"$f":"IF($C$84=\"\",\"\",X84/$C$84)","v":""},null,{"$f":"IF($C$84=\"\",\"\",Z84/$C$84)","v":""},null,{"$f":"IF($C$84=\"\",\"\",AB84/$C$84)","v":""},null,{"$f":"IF($C$84=\"\",\"\",AD84/$C$84)","v":""},null,{"$f":"IF($C$84=\"\",\"\",AF84/$C$84)","v":""},null,{"$f":"IF($C$84=\"\",\"\",AH84/$C$84)","v":""},null,{"$f":"IF($C$84=\"\",\"\",AJ84/$C$84)","v":""},null,{"$f":"IF($C$84=\"\",\"\",AL84/$C$84)","v":""},null,{"$f":"IF($C$84=\"\",\"\",AN84/$C$84)","v":""},null,{"$f":"IF($C$84=\"\",\"\",AP84/$C$84)","v":""},null,{"$f":"IF($C$84=\"\",\"\",AR84/$C$84)","v":""},null,{"$f":"IF($C$84=\"\",\"\",AT84/$C$84)","v":""},null,{"$f":"IF($C$84=\"\",\"\",AV84/$C$84)","v":""},null,{"$f":"IF($C$84=\"\",\"\",AX84/$C$84)","v":""},null,{"$f":"IF($C$84=\"\",\"\",AZ84/$C$84)","v":""},null,{"$f":"IF($C$84=\"\",\"\",BB84/$C$84)","v":""},null,0]
["    3.5.8",null,null,null,{"$f":"IF($C$85=\"\",\"\",F85/$C$85)","v":""},null,{"$f":"IF($C$85=\"\",\"\",H85/$C$85)","v":""},null,{"$f":"IF($C$85=\"\",\"\",J85/$C$85)","v":""},null,{"$f":"IF($C$85=\"\",\"\",L85/$C$85)","v":""},null,{"$f":"IF($C$85=\"\",\"\",N85/$C$85)","v":""},null,{"$f":"IF($C$85=\"\",\"\",P85/$C$85)","v":""},null,{"$f":"IF($C$85=\"\",\"\",R85/$C$85)","v":""},null,{"$f":"IF($C$85=\"\",\"\",T85/$C$85)","v":""},null,{"$f":"IF($C$85=\"\",\"\",V85/$C$85)","v":""},null,{"$f":"IF($C$85=\"\",\"\",X85/$C$85)","v":""},null,{"$f":"IF($C$85=\"\",\"\",Z85/$C$85)","v":""},null,{"$f":"IF($C$85=\"\",\"\",AB85/$C$85)","v":""},null,{"$f":"IF($C$85=\"\",\"\",AD85/$C$85)","v":""},null,{"$f":"IF($C$85=\"\",\"\",AF85/$C$85)","v":""},null,{"$f":"IF($C$85=\"\",\"\",AH85/$C$85)","v":""},null,{"$f":"IF($C$85=\"\",\"\",AJ85/$C$85)","v":""},null,{"$f":"IF($C$85=\"\",\"\",AL85/$C$85)","v":""},null,{"$f":"IF($C$85=\"\",\"\",AN85/$C$85)","v":""},null,{"$f":"IF($C$85=\"\",\"\",AP85/$C$85)","v":""},null,{"$f":"IF($C$85=\"\",\"\",AR85/$C$85)","v":""},null,{"$f":"IF($C$85=\"\",\"\",AT85/$C$85)","v":""},null,{"$f":"IF($C$85=\"\",\"\",AV85/$C$85)","v":""},null,{"$f":"IF($C$85=\"\",\"\",AX85/$C$85)","v":""},null,{"$f":"IF($C$85=\"\",\"\",AZ85/$C$85)","v":""},null,{"$f":"IF($C$85=\"\",\"\",BB85/$C$85)","v":""},null,0]
["    3.5.9",null,null,null,{"$f":"IF($C$86=\"\",\"\",F86/$C$86)","v":""},null,{"$f":"IF($C$86=\"\",\"\",H86/$C$86)","v":""},null,{"$f":"IF($C$86=\"\",\"\",J86/$C$86)","v":""},null,{"$f":"IF($C$86=\"\",\"\",L86/$C$86)","v":""},null,{"$f":"IF($C$86=\"\",\"\",N86/$C$86)","v":""},null,{"$f":"IF($C$86=\"\",\"\",P86/$C$86)","v":""},null,{"$f":"IF($C$86=\"\",\"\",R86/$C$86)","v":""},null,{"$f":"IF($C$86=\"\",\"\",T86/$C$86)","v":""},null,{"$f":"IF($C$86=\"\",\"\",V86/$C$86)","v":""},null,{"$f":"IF($C$86=\"\",\"\",X86/$C$86)","v":""},null,{"$f":"IF($C$86=\"\",\"\",Z86/$C$86)","v":""},null,{"$f":"IF($C$86=\"\",\"\",AB86/$C$86)","v":""},null,{"$f":"IF($C$86=\"\",\"\",AD86/$C$86)","v":""},null,{"$f":"IF($C$86=\"\",\"\",AF86/$C$86)","v":""},null,{"$f":"IF($C$86=\"\",\"\",AH86/$C$86)","v":""},null,{"$f":"IF($C$86=\"\",\"\",AJ86/$C$86)","v":""},null,{"$f":"IF($C$86=\"\",\"\",AL86/$C$86)","v":""},null,{"$f":"IF($C$86=\"\",\"\",AN86/$C$86)","v":""},null,{"$f":"IF($C$86=\"\",\"\",AP86/$C$86)","v":""},null,{"$f":"IF($C$86=\"\",\"\",AR86/$C$86)","v":""},null,{"$f":"IF($C$86=\"\",\"\",AT86/$C$86)","v":""},null,{"$f":"IF($C$86=\"\",\"\",AV86/$C$86)","v":""},null,{"$f":"IF($C$86=\"\",\"\",AX86/$C$86)","v":""},null,{"$f":"IF($C$86=\"\",\"\",AZ86/$C$86)","v":""},null,{"$f":"IF($C$86=\"\",\"\",BB86/$C$86)","v":""},null,0]
["    3.5.10",null,null,null,{"$f":"IF($C$87=\"\",\"\",F87/$C$87)","v":""},null,{"$f":"IF($C$87=\"\",\"\",H87/$C$87)","v":""},null,{"$f":"IF($C$87=\"\",\"\",J87/$C$87)","v":""},null,{"$f":"IF($C$87=\"\",\"\",L87/$C$87)","v":""},null,{"$f":"IF($C$87=\"\",\"\",N87/$C$87)","v":""},null,{"$f":"IF($C$87=\"\",\"\",P87/$C$87)","v":""},null,{"$f":"IF($C$87=\"\",\"\",R87/$C$87)","v":""},null,{"$f":"IF($C$87=\"\",\"\",T87/$C$87)","v":""},null,{"$f":"IF($C$87=\"\",\"\",V87/$C$87)","v":""},null,{"$f":"IF($C$87=\"\",\"\",X87/$C$87)","v":""},null,{"$f":"IF($C$87=\"\",\"\",Z87/$C$87)","v":""},null,{"$f":"IF($C$87=\"\",\"\",AB87/$C$87)","v":""},null,{"$f":"IF($C$87=\"\",\"\",AD87/$C$87)","v":""},null,{"$f":"IF($C$87=\"\",\"\",AF87/$C$87)","v":""},null,{"$f":"IF($C$87=\"\",\"\",AH87/$C$87)","v":""},null,{"$f":"IF($C$87=\"\",\"\",AJ87/$C$87)","v":""},null,{"$f":"IF($C$87=\"\",\"\",AL87/$C$87)","v":""},null,{"$f":"IF($C$87=\"\",\"\",AN87/$C$87)","v":""},null,{"$f":"IF($C$87=\"\",\"\",AP87/$C$87)","v":""},null,{"$f":"IF($C$87=\"\",\"\",AR87/$C$87)","v":""},null,{"$f":"IF($C$87=\"\",\"\",AT87/$C$87)","v":""},null,{"$f":"IF($C$87=\"\",\"\",AV87/$C$87)","v":""},null,{"$f":"IF($C$87=\"\",\"\",AX87/$C$87)","v":""},null,{"$f":"IF($C$87=\"\",\"\",AZ87/$C$87)","v":""},null,{"$f":"IF($C$87=\"\",\"\",BB87/$C$87)","v":""},null,0]
[3.6,"Hazardous Materials"]
["    3.6.1","    Coordinate with GeoEnvironmental Unit for \n    requirements/Prepare Memo ",null,null,{"$f":"IF($C$89=\"\",\"\",F89/$C$89)","v":""},null,{"$f":"IF($C$89=\"\",\"\",H89/$C$89)","v":""},null,{"$f":"IF($C$89=\"\",\"\",J89/$C$89)","v":""},null,{"$f":"IF($C$89=\"\",\"\",L89/$C$89)","v":""},null,{"$f":"IF($C$89=\"\",\"\",N89/$C$89)","v":""},null,{"$f":"IF($C$89=\"\",\"\",P89/$C$89)","v":""},null,{"$f":"IF($C$89=\"\",\"\",R89/$C$89)","v":""},null,{"$f":"IF($C$89=\"\",\"\",T89/$C$89)","v":""},null,{"$f":"IF($C$89=\"\",\"\",V89/$C$89)","v":""},null,{"$f":"IF($C$89=\"\",\"\",X89/$C$89)","v":""},null,{"$f":"IF($C$89=\"\",\"\",Z89/$C$89)","v":""},null,{"$f":"IF($C$89=\"\",\"\",AB89/$C$89)","v":""},null,{"$f":"IF($C$89=\"\",\"\",AD89/$C$89)","v":""},null,{"$f":"IF($C$89=\"\",\"\",AF89/$C$89)","v":""},null,{"$f":"IF($C$89=\"\",\"\",AH89/$C$89)","v":""},null,{"$f":"IF($C$89=\"\",\"\",AJ89/$C$89)","v":""},null,{"$f":"IF($C$89=\"\",\"\",AL89/$C$89)","v":""},null,{"$f":"IF($C$89=\"\",\"\",AN89/$C$89)","v":""},null,{"$f":"IF($C$89=\"\",\"\",AP89/$C$89)","v":""},null,{"$f":"IF($C$89=\"\",\"\",AR89/$C$89)","v":""},null,{"$f":"IF($C$89=\"\",\"\",AT89/$C$89)","v":""},null,{"$f":"IF($C$89=\"\",\"\",AV89/$C$89)","v":""},null,{"$f":"IF($C$89=\"\",\"\",AX89/$C$89)","v":""},null,{"$f":"IF($C$89=\"\",\"\",AZ89/$C$89)","v":""},null,{"$f":"IF($C$89=\"\",\"\",BB89/$C$89)","v":""},null,{"$f":"SUM(BB89,AZ89,AX89,AV89,AT89,AR89,AP89,AN89,AL89,AJ89,AH89,AF89,AD89,AB89,Z89,X89,V89,T89,R89,P89,N89,L89,J89,H89,F89)","v":0}]
["    3.6.2",null,null,null,{"$f":"IF($C$90=\"\",\"\",F90/$C$90)","v":""},null,{"$f":"IF($C$90=\"\",\"\",H90/$C$90)","v":""},null,{"$f":"IF($C$90=\"\",\"\",J90/$C$90)","v":""},null,{"$f":"IF($C$90=\"\",\"\",L90/$C$90)","v":""},null,{"$f":"IF($C$90=\"\",\"\",N90/$C$90)","v":""},null,{"$f":"IF($C$90=\"\",\"\",P90/$C$90)","v":""},null,{"$f":"IF($C$90=\"\",\"\",R90/$C$90)","v":""},null,{"$f":"IF($C$90=\"\",\"\",T90/$C$90)","v":""},null,{"$f":"IF($C$90=\"\",\"\",V90/$C$90)","v":""},null,{"$f":"IF($C$90=\"\",\"\",X90/$C$90)","v":""},null,{"$f":"IF($C$90=\"\",\"\",Z90/$C$90)","v":""},null,{"$f":"IF($C$90=\"\",\"\",AB90/$C$90)","v":""},null,{"$f":"IF($C$90=\"\",\"\",AD90/$C$90)","v":""},null,{"$f":"IF($C$90=\"\",\"\",AF90/$C$90)","v":""},null,{"$f":"IF($C$90=\"\",\"\",AH90/$C$90)","v":""},null,{"$f":"IF($C$90=\"\",\"\",AJ90/$C$90)","v":""},null,{"$f":"IF($C$90=\"\",\"\",AL90/$C$90)","v":""},null,{"$f":"IF($C$90=\"\",\"\",AN90/$C$90)","v":""},null,{"$f":"IF($C$90=\"\",\"\",AP90/$C$90)","v":""},null,{"$f":"IF($C$90=\"\",\"\",AR90/$C$90)","v":""},null,{"$f":"IF($C$90=\"\",\"\",AT90/$C$90)","v":""},null,{"$f":"IF($C$90=\"\",\"\",AV90/$C$90)","v":""},null,{"$f":"IF($C$90=\"\",\"\",AX90/$C$90)","v":""},null,{"$f":"IF($C$90=\"\",\"\",AZ90/$C$90)","v":""},null,{"$f":"IF($C$90=\"\",\"\",BB90/$C$90)","v":""},null,0]
["    3.6.3",null,null,null,{"$f":"IF($C$91=\"\",\"\",F91/$C$91)","v":""},null,{"$f":"IF($C$91=\"\",\"\",H91/$C$91)","v":""},null,{"$f":"IF($C$91=\"\",\"\",J91/$C$91)","v":""},null,{"$f":"IF($C$91=\"\",\"\",L91/$C$91)","v":""},null,{"$f":"IF($C$91=\"\",\"\",N91/$C$91)","v":""},null,{"$f":"IF($C$91=\"\",\"\",P91/$C$91)","v":""},null,{"$f":"IF($C$91=\"\",\"\",R91/$C$91)","v":""},null,{"$f":"IF($C$91=\"\",\"\",T91/$C$91)","v":""},null,{"$f":"IF($C$91=\"\",\"\",V91/$C$91)","v":""},null,{"$f":"IF($C$91=\"\",\"\",X91/$C$91)","v":""},null,{"$f":"IF($C$91=\"\",\"\",Z91/$C$91)","v":""},null,{"$f":"IF($C$91=\"\",\"\",AB91/$C$91)","v":""},null,{"$f":"IF($C$91=\"\",\"\",AD91/$C$91)","v":""},null,{"$f":"IF($C$91=\"\",\"\",AF91/$C$91)","v":""},null,{"$f":"IF($C$91=\"\",\"\",AH91/$C$91)","v":""},null,{"$f":"IF($C$91=\"\",\"\",AJ91/$C$91)","v":""},null,{"$f":"IF($C$91=\"\",\"\",AL91/$C$91)","v":""},null,{"$f":"IF($C$91=\"\",\"\",AN91/$C$91)","v":""},null,{"$f":"IF($C$91=\"\",\"\",AP91/$C$91)","v":""},null,{"$f":"IF($C$91=\"\",\"\",AR91/$C$91)","v":""},null,{"$f":"IF($C$91=\"\",\"\",AT91/$C$91)","v":""},null,{"$f":"IF($C$91=\"\",\"\",AV91/$C$91)","v":""},null,{"$f":"IF($C$91=\"\",\"\",AX91/$C$91)","v":""},null,{"$f":"IF($C$91=\"\",\"\",AZ91/$C$91)","v":""},null,{"$f":"IF($C$91=\"\",\"\",BB91/$C$91)","v":""},null,0]
["    3.6.4",null,null,null,{"$f":"IF($C$92=\"\",\"\",F92/$C$92)","v":""},null,{"$f":"IF($C$92=\"\",\"\",H92/$C$92)","v":""},null,{"$f":"IF($C$92=\"\",\"\",J92/$C$92)","v":""},null,{"$f":"IF($C$92=\"\",\"\",L92/$C$92)","v":""},null,{"$f":"IF($C$92=\"\",\"\",N92/$C$92)","v":""},null,{"$f":"IF($C$92=\"\",\"\",P92/$C$92)","v":""},null,{"$f":"IF($C$92=\"\",\"\",R92/$C$92)","v":""},null,{"$f":"IF($C$92=\"\",\"\",T92/$C$92)","v":""},null,{"$f":"IF($C$92=\"\",\"\",V92/$C$92)","v":""},null,{"$f":"IF($C$92=\"\",\"\",X92/$C$92)","v":""},null,{"$f":"IF($C$92=\"\",\"\",Z92/$C$92)","v":""},null,{"$f":"IF($C$92=\"\",\"\",AB92/$C$92)","v":""},null,{"$f":"IF($C$92=\"\",\"\",AD92/$C$92)","v":""},null,{"$f":"IF($C$92=\"\",\"\",AF92/$C$92)","v":""},null,{"$f":"IF($C$92=\"\",\"\",AH92/$C$92)","v":""},null,{"$f":"IF($C$92=\"\",\"\",AJ92/$C$92)","v":""},null,{"$f":"IF($C$92=\"\",\"\",AL92/$C$92)","v":""},null,{"$f":"IF($C$92=\"\",\"\",AN92/$C$92)","v":""},null,{"$f":"IF($C$92=\"\",\"\",AP92/$C$92)","v":""},null,{"$f":"IF($C$92=\"\",\"\",AR92/$C$92)","v":""},null,{"$f":"IF($C$92=\"\",\"\",AT92/$C$92)","v":""},null,{"$f":"IF($C$92=\"\",\"\",AV92/$C$92)","v":""},null,{"$f":"IF($C$92=\"\",\"\",AX92/$C$92)","v":""},null,{"$f":"IF($C$92=\"\",\"\",AZ92/$C$92)","v":""},null,{"$f":"IF($C$92=\"\",\"\",BB92/$C$92)","v":""},null,0]
[3.7,"Natural Systems Studies"]
["    3.7.1","    Background data collection",null,null,{"$f":"IF($C$94=\"\",\"\",F94/$C$94)","v":""},null,{"$f":"IF($C$94=\"\",\"\",H94/$C$94)","v":""},null,{"$f":"IF($C$94=\"\",\"\",J94/$C$94)","v":""},null,{"$f":"IF($C$94=\"\",\"\",L94/$C$94)","v":""},null,{"$f":"IF($C$94=\"\",\"\",N94/$C$94)","v":""},null,{"$f":"IF($C$94=\"\",\"\",P94/$C$94)","v":""},null,{"$f":"IF($C$94=\"\",\"\",R94/$C$94)","v":""},null,{"$f":"IF($C$94=\"\",\"\",T94/$C$94)","v":""},null,{"$f":"IF($C$94=\"\",\"\",V94/$C$94)","v":""},null,{"$f":"IF($C$94=\"\",\"\",X94/$C$94)","v":""},null,{"$f":"IF($C$94=\"\",\"\",Z94/$C$94)","v":""},null,{"$f":"IF($C$94=\"\",\"\",AB94/$C$94)","v":""},null,{"$f":"IF($C$94=\"\",\"\",AD94/$C$94)","v":""},null,{"$f":"IF($C$94=\"\",\"\",AF94/$C$94)","v":""},null,{"$f":"IF($C$94=\"\",\"\",AH94/$C$94)","v":""},null,{"$f":"IF($C$94=\"\",\"\",AJ94/$C$94)","v":""},null,{"$f":"IF($C$94=\"\",\"\",AL94/$C$94)","v":""},null,{"$f":"IF($C$94=\"\",\"\",AN94/$C$94)","v":""},null,{"$f":"IF($C$94=\"\",\"\",AP94/$C$94)","v":""},null,{"$f":"IF($C$94=\"\",\"\",AR94/$C$94)","v":""},null,{"$f":"IF($C$94=\"\",\"\",AT94/$C$94)","v":""},null,{"$f":"IF($C$94=\"\",\"\",AV94/$C$94)","v":""},null,{"$f":"IF($C$94=\"\",\"\",AX94/$C$94)","v":""},null,{"$f":"IF($C$94=\"\",\"\",AZ94/$C$94)","v":""},null,{"$f":"IF($C$94=\"\",\"\",BB94/$C$94)","v":""},null,{"$f":"SUM(BB94,AZ94,AX94,AV94,AT94,AR94,AP94,AN94,AL94,AJ94,AH94,AF94,AD94,AB94,Z94,X94,V94,T94,R94,P94,N94,L94,J94,H94,F94)","v":0}]
["    3.7.2","    Desktop resource prediction (WOUS, Federally \n    Protected Species)",null,null,{"$f":"IF($C$95=\"\",\"\",F95/$C$95)","v":""},null,{"$f":"IF($C$95=\"\",\"\",H95/$C$95)","v":""},null,{"$f":"IF($C$95=\"\",\"\",J95/$C$95)","v":""},null,{"$f":"IF($C$95=\"\",\"\",L95/$C$95)","v":""},null,{"$f":"IF($C$95=\"\",\"\",N95/$C$95)","v":""},null,{"$f":"IF($C$95=\"\",\"\",P95/$C$95)","v":""},null,{"$f":"IF($C$95=\"\",\"\",R95/$C$95)","v":""},null,{"$f":"IF($C$95=\"\",\"\",T95/$C$95)","v":""},null,{"$f":"IF($C$95=\"\",\"\",V95/$C$95)","v":""},null,{"$f":"IF($C$95=\"\",\"\",X95/$C$95)","v":""},null,{"$f":"IF($C$95=\"\",\"\",Z95/$C$95)","v":""},null,{"$f":"IF($C$95=\"\",\"\",AB95/$C$95)","v":""},null,{"$f":"IF($C$95=\"\",\"\",AD95/$C$95)","v":""},null,{"$f":"IF($C$95=\"\",\"\",AF95/$C$95)","v":""},null,{"$f":"IF($C$95=\"\",\"\",AH95/$C$95)","v":""},null,{"$f":"IF($C$95=\"\",\"\",AJ95/$C$95)","v":""},null,{"$f":"IF($C$95=\"\",\"\",AL95/$C$95)","v":""},null,{"$f":"IF($C$95=\"\",\"\",AN95/$C$95)","v":""},null,{"$f":"IF($C$95=\"\",\"\",AP95/$C$95)","v":""},null,{"$f":"IF($C$95=\"\",\"\",AR95/$C$95)","v":""},null,{"$f":"IF($C$95=\"\",\"\",AT95/$C$95)","v":""},null,{"$f":"IF($C$95=\"\",\"\",AV95/$C$95)","v":""},null,{"$f":"IF($C$95=\"\",\"\",AX95/$C$95)","v":""},null,{"$f":"IF($C$95=\"\",\"\",AZ95/$C$95)","v":""},null,{"$f":"IF($C$95=\"\",\"\",BB95/$C$95)","v":""},null,0]
["    3.7.3","    Memo Development",null,null,{"$f":"IF($C$96=\"\",\"\",F96/$C$96)","v":""},null,{"$f":"IF($C$96=\"\",\"\",H96/$C$96)","v":""},null,{"$f":"IF($C$96=\"\",\"\",J96/$C$96)","v":""},null,{"$f":"IF($C$96=\"\",\"\",L96/$C$96)","v":""},null,{"$f":"IF($C$96=\"\",\"\",N96/$C$96)","v":""},null,{"$f":"IF($C$96=\"\",\"\",P96/$C$96)","v":""},null,{"$f":"IF($C$96=\"\",\"\",R96/$C$96)","v":""},null,{"$f":"IF($C$96=\"\",\"\",T96/$C$96)","v":""},null,{"$f":"IF($C$96=\"\",\"\",V96/$C$96)","v":""},null,{"$f":"IF($C$96=\"\",\"\",X96/$C$96)","v":""},null,{"$f":"IF($C$96=\"\",\"\",Z96/$C$96)","v":""},null,{"$f":"IF($C$96=\"\",\"\",AB96/$C$96)","v":""},null,{"$f":"IF($C$96=\"\",\"\",AD96/$C$96)","v":""},null,{"$f":"IF($C$96=\"\",\"\",AF96/$C$96)","v":""},null,{"$f":"IF($C$96=\"\",\"\",AH96/$C$96)","v":""},null,{"$f":"IF($C$96=\"\",\"\",AJ96/$C$96)","v":""},null,{"$f":"IF($C$96=\"\",\"\",AL96/$C$96)","v":""},null,{"$f":"IF($C$96=\"\",\"\",AN96/$C$96)","v":""},null,{"$f":"IF($C$96=\"\",\"\",AP96/$C$96)","v":""},null,{"$f":"IF($C$96=\"\",\"\",AR96/$C$96)","v":""},null,{"$f":"IF($C$96=\"\",\"\",AT96/$C$96)","v":""},null,{"$f":"IF($C$96=\"\",\"\",AV96/$C$96)","v":""},null,{"$f":"IF($C$96=\"\",\"\",AX96/$C$96)","v":""},null,{"$f":"IF($C$96=\"\",\"\",AZ96/$C$96)","v":""},null,{"$f":"IF($C$96=\"\",\"\",BB96/$C$96)","v":""},null,0]
["    3.7.4","    Field Visit (10 cabinet intersections)",null,null,{"$f":"IF($C$97=\"\",\"\",F97/$C$97)","v":""},null,{"$f":"IF($C$97=\"\",\"\",H97/$C$97)","v":""},null,{"$f":"IF($C$97=\"\",\"\",J97/$C$97)","v":""},null,{"$f":"IF($C$97=\"\",\"\",L97/$C$97)","v":""},null,{"$f":"IF($C$97=\"\",\"\",N97/$C$97)","v":""},null,{"$f":"IF($C$97=\"\",\"\",P97/$C$97)","v":""},null,{"$f":"IF($C$97=\"\",\"\",R97/$C$97)","v":""},null,{"$f":"IF($C$97=\"\",\"\",T97/$C$97)","v":""},null,{"$f":"IF($C$97=\"\",\"\",V97/$C$97)","v":""},null,{"$f":"IF($C$97=\"\",\"\",X97/$C$97)","v":""},null,{"$f":"IF($C$97=\"\",\"\",Z97/$C$97)","v":""},null,{"$f":"IF($C$97=\"\",\"\",AB97/$C$97)","v":""},null,{"$f":"IF($C$97=\"\",\"\",AD97/$C$97)","v":""},null,{"$f":"IF($C$97=\"\",\"\",AF97/$C$97)","v":""},null,{"$f":"IF($C$97=\"\",\"\",AH97/$C$97)","v":""},null,{"$f":"IF($C$97=\"\",\"\",AJ97/$C$97)","v":""},null,{"$f":"IF($C$97=\"\",\"\",AL97/$C$97)","v":""},null,{"$f":"IF($C$97=\"\",\"\",AN97/$C$97)","v":""},null,{"$f":"IF($C$97=\"\",\"\",AP97/$C$97)","v":""},null,{"$f":"IF($C$97=\"\",\"\",AR97/$C$97)","v":""},null,{"$f":"IF($C$97=\"\",\"\",AT97/$C$97)","v":""},null,{"$f":"IF($C$97=\"\",\"\",AV97/$C$97)","v":""},null,{"$f":"IF($C$97=\"\",\"\",AX97/$C$97)","v":""},null,{"$f":"IF($C$97=\"\",\"\",AZ97/$C$97)","v":""},null,{"$f":"IF($C$97=\"\",\"\",BB97/$C$97)","v":""},null,0]
["    3.7.5",null,null,null,{"$f":"IF($C$98=\"\",\"\",F98/$C$98)","v":""},null,{"$f":"IF($C$98=\"\",\"\",H98/$C$98)","v":""},null,{"$f":"IF($C$98=\"\",\"\",J98/$C$98)","v":""},null,{"$f":"IF($C$98=\"\",\"\",L98/$C$98)","v":""},null,{"$f":"IF($C$98=\"\",\"\",N98/$C$98)","v":""},null,{"$f":"IF($C$98=\"\",\"\",P98/$C$98)","v":""},null,{"$f":"IF($C$98=\"\",\"\",R98/$C$98)","v":""},null,{"$f":"IF($C$98=\"\",\"\",T98/$C$98)","v":""},null,{"$f":"IF($C$98=\"\",\"\",V98/$C$98)","v":""},null,{"$f":"IF($C$98=\"\",\"\",X98/$C$98)","v":""},null,{"$f":"IF($C$98=\"\",\"\",Z98/$C$98)","v":""},null,{"$f":"IF($C$98=\"\",\"\",AB98/$C$98)","v":""},null,{"$f":"IF($C$98=\"\",\"\",AD98/$C$98)","v":""},null,{"$f":"IF($C$98=\"\",\"\",AF98/$C$98)","v":""},null,{"$f":"IF($C$98=\"\",\"\",AH98/$C$98)","v":""},null,{"$f":"IF($C$98=\"\",\"\",AJ98/$C$98)","v":""},null,{"$f":"IF($C$98=\"\",\"\",AL98/$C$98)","v":""},null,{"$f":"IF($C$98=\"\",\"\",AN98/$C$98)","v":""},null,{"$f":"IF($C$98=\"\",\"\",AP98/$C$98)","v":""},null,{"$f":"IF($C$98=\"\",\"\",AR98/$C$98)","v":""},null,{"$f":"IF($C$98=\"\",\"\",AT98/$C$98)","v":""},null,{"$f":"IF($C$98=\"\",\"\",AV98/$C$98)","v":""},null,{"$f":"IF($C$98=\"\",\"\",AX98/$C$98)","v":""},null,{"$f":"IF($C$98=\"\",\"\",AZ98/$C$98)","v":""},null,{"$f":"IF($C$98=\"\",\"\",BB98/$C$98)","v":""},null,0]
["    3.7.6",null,null,null,{"$f":"IF($C$99=\"\",\"\",F99/$C$99)","v":""},null,{"$f":"IF($C$99=\"\",\"\",H99/$C$99)","v":""},null,{"$f":"IF($C$99=\"\",\"\",J99/$C$99)","v":""},null,{"$f":"IF($C$99=\"\",\"\",L99/$C$99)","v":""},null,{"$f":"IF($C$99=\"\",\"\",N99/$C$99)","v":""},null,{"$f":"IF($C$99=\"\",\"\",P99/$C$99)","v":""},null,{"$f":"IF($C$99=\"\",\"\",R99/$C$99)","v":""},null,{"$f":"IF($C$99=\"\",\"\",T99/$C$99)","v":""},null,{"$f":"IF($C$99=\"\",\"\",V99/$C$99)","v":""},null,{"$f":"IF($C$99=\"\",\"\",X99/$C$99)","v":""},null,{"$f":"IF($C$99=\"\",\"\",Z99/$C$99)","v":""},null,{"$f":"IF($C$99=\"\",\"\",AB99/$C$99)","v":""},null,{"$f":"IF($C$99=\"\",\"\",AD99/$C$99)","v":""},null,{"$f":"IF($C$99=\"\",\"\",AF99/$C$99)","v":""},null,{"$f":"IF($C$99=\"\",\"\",AH99/$C$99)","v":""},null,{"$f":"IF($C$99=\"\",\"\",AJ99/$C$99)","v":""},null,{"$f":"IF($C$99=\"\",\"\",AL99/$C$99)","v":""},null,{"$f":"IF($C$99=\"\",\"\",AN99/$C$99)","v":""},null,{"$f":"IF($C$99=\"\",\"\",AP99/$C$99)","v":""},null,{"$f":"IF($C$99=\"\",\"\",AR99/$C$99)","v":""},null,{"$f":"IF($C$99=\"\",\"\",AT99/$C$99)","v":""},null,{"$f":"IF($C$99=\"\",\"\",AV99/$C$99)","v":""},null,{"$f":"IF($C$99=\"\",\"\",AX99/$C$99)","v":""},null,{"$f":"IF($C$99=\"\",\"\",AZ99/$C$99)","v":""},null,{"$f":"IF($C$99=\"\",\"\",BB99/$C$99)","v":""},null,0]
["    3.7.7",null,null,null,{"$f":"IF($C$100=\"\",\"\",F100/$C$100)","v":""},null,{"$f":"IF($C$100=\"\",\"\",H100/$C$100)","v":""},null,{"$f":"IF($C$100=\"\",\"\",J100/$C$100)","v":""},null,{"$f":"IF($C$100=\"\",\"\",L100/$C$100)","v":""},null,{"$f":"IF($C$100=\"\",\"\",N100/$C$100)","v":""},null,{"$f":"IF($C$100=\"\",\"\",P100/$C$100)","v":""},null,{"$f":"IF($C$100=\"\",\"\",R100/$C$100)","v":""},null,{"$f":"IF($C$100=\"\",\"\",T100/$C$100)","v":""},null,{"$f":"IF($C$100=\"\",\"\",V100/$C$100)","v":""},null,{"$f":"IF($C$100=\"\",\"\",X100/$C$100)","v":""},null,{"$f":"IF($C$100=\"\",\"\",Z100/$C$100)","v":""},null,{"$f":"IF($C$100=\"\",\"\",AB100/$C$100)","v":""},null,{"$f":"IF($C$100=\"\",\"\",AD100/$C$100)","v":""},null,{"$f":"IF($C$100=\"\",\"\",AF100/$C$100)","v":""},null,{"$f":"IF($C$100=\"\",\"\",AH100/$C$100)","v":""},null,{"$f":"IF($C$100=\"\",\"\",AJ100/$C$100)","v":""},null,{"$f":"IF($C$100=\"\",\"\",AL100/$C$100)","v":""},null,{"$f":"IF($C$100=\"\",\"\",AN100/$C$100)","v":""},null,{"$f":"IF($C$100=\"\",\"\",AP100/$C$100)","v":""},null,{"$f":"IF($C$100=\"\",\"\",AR100/$C$100)","v":""},null,{"$f":"IF($C$100=\"\",\"\",AT100/$C$100)","v":""},null,{"$f":"IF($C$100=\"\",\"\",AV100/$C$100)","v":""},null,{"$f":"IF($C$100=\"\",\"\",AX100/$C$100)","v":""},null,{"$f":"IF($C$100=\"\",\"\",AZ100/$C$100)","v":""},null,{"$f":"IF($C$100=\"\",\"\",BB100/$C$100)","v":""},null,0]
[3.8,"PCE Documentation"]
["    3.8.1","    Draft v1 to NCDOT/Address Comments",null,null,{"$f":"IF($C$102=\"\",\"\",F102/$C$102)","v":""},null,{"$f":"IF($C$102=\"\",\"\",H102/$C$102)","v":""},null,{"$f":"IF($C$102=\"\",\"\",J102/$C$102)","v":""},null,{"$f":"IF($C$102=\"\",\"\",L102/$C$102)","v":""},null,{"$f":"IF($C$102=\"\",\"\",N102/$C$102)","v":""},null,{"$f":"IF($C$102=\"\",\"\",P102/$C$102)","v":""},null,{"$f":"IF($C$102=\"\",\"\",R102/$C$102)","v":""},null,{"$f":"IF($C$102=\"\",\"\",T102/$C$102)","v":""},null,{"$f":"IF($C$102=\"\",\"\",V102/$C$102)","v":""},null,{"$f":"IF($C$102=\"\",\"\",X102/$C$102)","v":""},null,{"$f":"IF($C$102=\"\",\"\",Z102/$C$102)","v":""},null,{"$f":"IF($C$102=\"\",\"\",AB102/$C$102)","v":""},null,{"$f":"IF($C$102=\"\",\"\",AD102/$C$102)","v":""},null,{"$f":"IF($C$102=\"\",\"\",AF102/$C$102)","v":""},null,{"$f":"IF($C$102=\"\",\"\",AH102/$C$102)","v":""},null,{"$f":"IF($C$102=\"\",\"\",AJ102/$C$102)","v":""},null,{"$f":"IF($C$102=\"\",\"\",AL102/$C$102)","v":""},null,{"$f":"IF($C$102=\"\",\"\",AN102/$C$102)","v":""},null,{"$f":"IF($C$102=\"\",\"\",AP102/$C$102)","v":""},null,{"$f":"IF($C$102=\"\",\"\",AR102/$C$102)","v":""},null,{"$f":"IF($C$102=\"\",\"\",AT102/$C$102)","v":""},null,{"$f":"IF($C$102=\"\",\"\",AV102/$C$102)","v":""},null,{"$f":"IF($C$102=\"\",\"\",AX102/$C$102)","v":""},null,{"$f":"IF($C$102=\"\",\"\",AZ102/$C$102)","v":""},null,{"$f":"IF($C$102=\"\",\"\",BB102/$C$102)","v":""},null,{"$f":"SUM(BB102,AZ102,AX102,AV102,AT102,AR102,AP102,AN102,AL102,AJ102,AH102,AF102,AD102,AB102,Z102,X102,V102,T102,R102,P102,N102,L102,J102,H102,F102)","v":0}]
["    3.8.2","    Draft v2 to FHWA/Address Comments",null,null,{"$f":"IF($C$103=\"\",\"\",F103/$C$103)","v":""},null,{"$f":"IF($C$103=\"\",\"\",H103/$C$103)","v":""},null,{"$f":"IF($C$103=\"\",\"\",J103/$C$103)","v":""},null,{"$f":"IF($C$103=\"\",\"\",L103/$C$103)","v":""},null,{"$f":"IF($C$103=\"\",\"\",N103/$C$103)","v":""},null,{"$f":"IF($C$103=\"\",\"\",P103/$C$103)","v":""},null,{"$f":"IF($C$103=\"\",\"\",R103/$C$103)","v":""},null,{"$f":"IF($C$103=\"\",\"\",T103/$C$103)","v":""},null,{"$f":"IF($C$103=\"\",\"\",V103/$C$103)","v":""},null,{"$f":"IF($C$103=\"\",\"\",X103/$C$103)","v":""},null,{"$f":"IF($C$103=\"\",\"\",Z103/$C$103)","v":""},null,{"$f":"IF($C$103=\"\",\"\",AB103/$C$103)","v":""},null,{"$f":"IF($C$103=\"\",\"\",AD103/$C$103)","v":""},null,{"$f":"IF($C$103=\"\",\"\",AF103/$C$103)","v":""},null,{"$f":"IF($C$103=\"\",\"\",AH103/$C$103)","v":""},null,{"$f":"IF($C$103=\"\",\"\",AJ103/$C$103)","v":""},null,{"$f":"IF($C$103=\"\",\"\",AL103/$C$103)","v":""},null,{"$f":"IF($C$103=\"\",\"\",AN103/$C$103)","v":""},null,{"$f":"IF($C$103=\"\",\"\",AP103/$C$103)","v":""},null,{"$f":"IF($C$103=\"\",\"\",AR103/$C$103)","v":""},null,{"$f":"IF($C$103=\"\",\"\",AT103/$C$103)","v":""},null,{"$f":"IF($C$103=\"\",\"\",AV103/$C$103)","v":""},null,{"$f":"IF($C$103=\"\",\"\",AX103/$C$103)","v":""},null,{"$f":"IF($C$103=\"\",\"\",AZ103/$C$103)","v":""},null,{"$f":"IF($C$103=\"\",\"\",BB103/$C$103)","v":""},null,0]
["    3.8.3","    Finalize and distribute copies of PCE Document",null,null,{"$f":"IF($C$104=\"\",\"\",F104/$C$104)","v":""},null,{"$f":"IF($C$104=\"\",\"\",H104/$C$104)","v":""},null,{"$f":"IF($C$104=\"\",\"\",J104/$C$104)","v":""},null,{"$f":"IF($C$104=\"\",\"\",L104/$C$104)","v":""},null,{"$f":"IF($C$104=\"\",\"\",N104/$C$104)","v":""},null,{"$f":"IF($C$104=\"\",\"\",P104/$C$104)","v":""},null,{"$f":"IF($C$104=\"\",\"\",R104/$C$104)","v":""},null,{"$f":"IF($C$104=\"\",\"\",T104/$C$104)","v":""},null,{"$f":"IF($C$104=\"\",\"\",V104/$C$104)","v":""},null,{"$f":"IF($C$104=\"\",\"\",X104/$C$104)","v":""},null,{"$f":"IF($C$104=\"\",\"\",Z104/$C$104)","v":""},null,{"$f":"IF($C$104=\"\",\"\",AB104/$C$104)","v":""},null,{"$f":"IF($C$104=\"\",\"\",AD104/$C$104)","v":""},null,{"$f":"IF($C$104=\"\",\"\",AF104/$C$104)","v":""},null,{"$f":"IF($C$104=\"\",\"\",AH104/$C$104)","v":""},null,{"$f":"IF($C$104=\"\",\"\",AJ104/$C$104)","v":""},null,{"$f":"IF($C$104=\"\",\"\",AL104/$C$104)","v":""},null,{"$f":"IF($C$104=\"\",\"\",AN104/$C$104)","v":""},null,{"$f":"IF($C$104=\"\",\"\",AP104/$C$104)","v":""},null,{"$f":"IF($C$104=\"\",\"\",AR104/$C$104)","v":""},null,{"$f":"IF($C$104=\"\",\"\",AT104/$C$104)","v":""},null,{"$f":"IF($C$104=\"\",\"\",AV104/$C$104)","v":""},null,{"$f":"IF($C$104=\"\",\"\",AX104/$C$104)","v":""},null,{"$f":"IF($C$104=\"\",\"\",AZ104/$C$104)","v":""},null,{"$f":"IF($C$104=\"\",\"\",BB104/$C$104)","v":""},null,0]
["    3.8.4",null,null,null,{"$f":"IF($C$105=\"\",\"\",F105/$C$105)","v":""},null,{"$f":"IF($C$105=\"\",\"\",H105/$C$105)","v":""},null,{"$f":"IF($C$105=\"\",\"\",J105/$C$105)","v":""},null,{"$f":"IF($C$105=\"\",\"\",L105/$C$105)","v":""},null,{"$f":"IF($C$105=\"\",\"\",N105/$C$105)","v":""},null,{"$f":"IF($C$105=\"\",\"\",P105/$C$105)","v":""},null,{"$f":"IF($C$105=\"\",\"\",R105/$C$105)","v":""},null,{"$f":"IF($C$105=\"\",\"\",T105/$C$105)","v":""},null,{"$f":"IF($C$105=\"\",\"\",V105/$C$105)","v":""},null,{"$f":"IF($C$105=\"\",\"\",X105/$C$105)","v":""},null,{"$f":"IF($C$105=\"\",\"\",Z105/$C$105)","v":""},null,{"$f":"IF($C$105=\"\",\"\",AB105/$C$105)","v":""},null,{"$f":"IF($C$105=\"\",\"\",AD105/$C$105)","v":""},null,{"$f":"IF($C$105=\"\",\"\",AF105/$C$105)","v":""},null,{"$f":"IF($C$105=\"\",\"\",AH105/$C$105)","v":""},null,{"$f":"IF($C$105=\"\",\"\",AJ105/$C$105)","v":""},null,{"$f":"IF($C$105=\"\",\"\",AL105/$C$105)","v":""},null,{"$f":"IF($C$105=\"\",\"\",AN105/$C$105)","v":""},null,{"$f":"IF($C$105=\"\",\"\",AP105/$C$105)","v":""},null,{"$f":"IF($C$105=\"\",\"\",AR105/$C$105)","v":""},null,{"$f":"IF($C$105=\"\",\"\",AT105/$C$105)","v":""},null,{"$f":"IF($C$105=\"\",\"\",AV105/$C$105)","v":""},null,{"$f":"IF($C$105=\"\",\"\",AX105/$C$105)","v":""},null,{"$f":"IF($C$105=\"\",\"\",AZ105/$C$105)","v":""},null,{"$f":"IF($C$105=\"\",\"\",BB105/$C$105)","v":""},null,0]
["    3.8.5",null,null,null,{"$f":"IF($C$106=\"\",\"\",F106/$C$106)","v":""},null,{"$f":"IF($C$106=\"\",\"\",H106/$C$106)","v":""},null,{"$f":"IF($C$106=\"\",\"\",J106/$C$106)","v":""},null,{"$f":"IF($C$106=\"\",\"\",L106/$C$106)","v":""},null,{"$f":"IF($C$106=\"\",\"\",N106/$C$106)","v":""},null,{"$f":"IF($C$106=\"\",\"\",P106/$C$106)","v":""},null,{"$f":"IF($C$106=\"\",\"\",R106/$C$106)","v":""},null,{"$f":"IF($C$106=\"\",\"\",T106/$C$106)","v":""},null,{"$f":"IF($C$106=\"\",\"\",V106/$C$106)","v":""},null,{"$f":"IF($C$106=\"\",\"\",X106/$C$106)","v":""},null,{"$f":"IF($C$106=\"\",\"\",Z106/$C$106)","v":""},null,{"$f":"IF($C$106=\"\",\"\",AB106/$C$106)","v":""},null,{"$f":"IF($C$106=\"\",\"\",AD106/$C$106)","v":""},null,{"$f":"IF($C$106=\"\",\"\",AF106/$C$106)","v":""},null,{"$f":"IF($C$106=\"\",\"\",AH106/$C$106)","v":""},null,{"$f":"IF($C$106=\"\",\"\",AJ106/$C$106)","v":""},null,{"$f":"IF($C$106=\"\",\"\",AL106/$C$106)","v":""},null,{"$f":"IF($C$106=\"\",\"\",AN106/$C$106)","v":""},null,{"$f":"IF($C$106=\"\",\"\",AP106/$C$106)","v":""},null,{"$f":"IF($C$106=\"\",\"\",AR106/$C$106)","v":""},null,{"$f":"IF($C$106=\"\",\"\",AT106/$C$106)","v":""},null,{"$f":"IF($C$106=\"\",\"\",AV106/$C$106)","v":""},null,{"$f":"IF($C$106=\"\",\"\",AX106/$C$106)","v":""},null,{"$f":"IF($C$106=\"\",\"\",AZ106/$C$106)","v":""},null,{"$f":"IF($C$106=\"\",\"\",BB106/$C$106)","v":""},null,0]
["    3.8.6",null,null,null,{"$f":"IF($C$107=\"\",\"\",F107/$C$107)","v":""},null,{"$f":"IF($C$107=\"\",\"\",H107/$C$107)","v":""},null,{"$f":"IF($C$107=\"\",\"\",J107/$C$107)","v":""},null,{"$f":"IF($C$107=\"\",\"\",L107/$C$107)","v":""},null,{"$f":"IF($C$107=\"\",\"\",N107/$C$107)","v":""},null,{"$f":"IF($C$107=\"\",\"\",P107/$C$107)","v":""},null,{"$f":"IF($C$107=\"\",\"\",R107/$C$107)","v":""},null,{"$f":"IF($C$107=\"\",\"\",T107/$C$107)","v":""},null,{"$f":"IF($C$107=\"\",\"\",V107/$C$107)","v":""},null,{"$f":"IF($C$107=\"\",\"\",X107/$C$107)","v":""},null,{"$f":"IF($C$107=\"\",\"\",Z107/$C$107)","v":""},null,{"$f":"IF($C$107=\"\",\"\",AB107/$C$107)","v":""},null,{"$f":"IF($C$107=\"\",\"\",AD107/$C$107)","v":""},null,{"$f":"IF($C$107=\"\",\"\",AF107/$C$107)","v":""},null,{"$f":"IF($C$107=\"\",\"\",AH107/$C$107)","v":""},null,{"$f":"IF($C$107=\"\",\"\",AJ107/$C$107)","v":""},null,{"$f":"IF($C$107=\"\",\"\",AL107/$C$107)","v":""},null,{"$f":"IF($C$107=\"\",\"\",AN107/$C$107)","v":""},null,{"$f":"IF($C$107=\"\",\"\",AP107/$C$107)","v":""},null,{"$f":"IF($C$107=\"\",\"\",AR107/$C$107)","v":""},null,{"$f":"IF($C$107=\"\",\"\",AT107/$C$107)","v":""},null,{"$f":"IF($C$107=\"\",\"\",AV107/$C$107)","v":""},null,{"$f":"IF($C$107=\"\",\"\",AX107/$C$107)","v":""},null,{"$f":"IF($C$107=\"\",\"\",AZ107/$C$107)","v":""},null,{"$f":"IF($C$107=\"\",\"\",BB107/$C$107)","v":""},null,0]
[null,null,null,null,{"$f":"IF($C$108=\"\",\"\",F108/$C$108)","v":""},null,{"$f":"IF($C$108=\"\",\"\",H108/$C$108)","v":""},null,{"$f":"IF($C$108=\"\",\"\",J108/$C$108)","v":""},null,{"$f":"IF($C$108=\"\",\"\",L108/$C$108)","v":""},null,{"$f":"IF($C$108=\"\",\"\",N108/$C$108)","v":""},null,{"$f":"IF($C$108=\"\",\"\",P108/$C$108)","v":""},null,{"$f":"IF($C$108=\"\",\"\",R108/$C$108)","v":""},null,{"$f":"IF($C$108=\"\",\"\",T108/$C$108)","v":""},null,{"$f":"IF($C$108=\"\",\"\",V108/$C$108)","v":""},null,{"$f":"IF($C$108=\"\",\"\",X108/$C$108)","v":""},null,{"$f":"IF($C$108=\"\",\"\",Z108/$C$108)","v":""},null,{"$f":"IF($C$108=\"\",\"\",AB108/$C$108)","v":""},null,{"$f":"IF($C$108=\"\",\"\",AD108/$C$108)","v":""},null,{"$f":"IF($C$108=\"\",\"\",AF108/$C$108)","v":""},null,{"$f":"IF($C$108=\"\",\"\",AH108/$C$108)","v":""},null,{"$f":"IF($C$108=\"\",\"\",AJ108/$C$108)","v":""},null,{"$f":"IF($C$108=\"\",\"\",AL108/$C$108)","v":""},null,{"$f":"IF($C$108=\"\",\"\",AN108/$C$108)","v":""},null,{"$f":"IF($C$108=\"\",\"\",AP108/$C$108)","v":""},null,{"$f":"IF($C$108=\"\",\"\",AR108/$C$108)","v":""},null,{"$f":"IF($C$108=\"\",\"\",AT108/$C$108)","v":""},null,{"$f":"IF($C$108=\"\",\"\",AV108/$C$108)","v":""},null,{"$f":"IF($C$108=\"\",\"\",AX108/$C$108)","v":""},null,{"$f":"IF($C$108=\"\",\"\",AZ108/$C$108)","v":""},null,{"$f":"IF($C$108=\"\",\"\",BB108/$C$108)","v":""},null,0]
[null,null,null,null,{"$f":"IF($C$109=\"\",\"\",F109/$C$109)","v":""},null,{"$f":"IF($C$109=\"\",\"\",H109/$C$109)","v":""},null,{"$f":"IF($C$109=\"\",\"\",J109/$C$109)","v":""},null,{"$f":"IF($C$109=\"\",\"\",L109/$C$109)","v":""},null,{"$f":"IF($C$109=\"\",\"\",N109/$C$109)","v":""},null,{"$f":"IF($C$109=\"\",\"\",P109/$C$109)","v":""},null,{"$f":"IF($C$109=\"\",\"\",R109/$C$109)","v":""},null,{"$f":"IF($C$109=\"\",\"\",T109/$C$109)","v":""},null,{"$f":"IF($C$109=\"\",\"\",V109/$C$109)","v":""},null,{"$f":"IF($C$109=\"\",\"\",X109/$C$109)","v":""},null,{"$f":"IF($C$109=\"\",\"\",Z109/$C$109)","v":""},null,{"$f":"IF($C$109=\"\",\"\",AB109/$C$109)","v":""},null,{"$f":"IF($C$109=\"\",\"\",AD109/$C$109)","v":""},null,{"$f":"IF($C$109=\"\",\"\",AF109/$C$109)","v":""},null,{"$f":"IF($C$109=\"\",\"\",AH109/$C$109)","v":""},null,{"$f":"IF($C$109=\"\",\"\",AJ109/$C$109)","v":""},null,{"$f":"IF($C$109=\"\",\"\",AL109/$C$109)","v":""},null,{"$f":"IF($C$109=\"\",\"\",AN109/$C$109)","v":""},null,{"$f":"IF($C$109=\"\",\"\",AP109/$C$109)","v":""},null,{"$f":"IF($C$109=\"\",\"\",AR109/$C$109)","v":""},null,{"$f":"IF($C$109=\"\",\"\",AT109/$C$109)","v":""},null,{"$f":"IF($C$109=\"\",\"\",AV109/$C$109)","v":""},null,{"$f":"IF($C$109=\"\",\"\",AX109/$C$109)","v":""},null,{"$f":"IF($C$109=\"\",\"\",AZ109/$C$109)","v":""},null,{"$f":"IF($C$109=\"\",\"\",BB109/$C$109)","v":""},null,0]
[null,null,null,null,{"$f":"IF($C$110=\"\",\"\",F110/$C$110)","v":""},null,{"$f":"IF($C$110=\"\",\"\",H110/$C$110)","v":""},null,{"$f":"IF($C$110=\"\",\"\",J110/$C$110)","v":""},null,{"$f":"IF($C$110=\"\",\"\",L110/$C$110)","v":""},null,{"$f":"IF($C$110=\"\",\"\",N110/$C$110)","v":""},null,{"$f":"IF($C$110=\"\",\"\",P110/$C$110)","v":""},null,{"$f":"IF($C$110=\"\",\"\",R110/$C$110)","v":""},null,{"$f":"IF($C$110=\"\",\"\",T110/$C$110)","v":""},null,{"$f":"IF($C$110=\"\",\"\",V110/$C$110)","v":""},null,{"$f":"IF($C$110=\"\",\"\",X110/$C$110)","v":""},null,{"$f":"IF($C$110=\"\",\"\",Z110/$C$110)","v":""},null,{"$f":"IF($C$110=\"\",\"\",AB110/$C$110)","v":""},null,{"$f":"IF($C$110=\"\",\"\",AD110/$C$110)","v":""},null,{"$f":"IF($C$110=\"\",\"\",AF110/$C$110)","v":""},null,{"$f":"IF($C$110=\"\",\"\",AH110/$C$110)","v":""},null,{"$f":"IF($C$110=\"\",\"\",AJ110/$C$110)","v":""},null,{"$f":"IF($C$110=\"\",\"\",AL110/$C$110)","v":""},null,{"$f":"IF($C$110=\"\",\"\",AN110/$C$110)","v":""},null,{"$f":"IF($C$110=\"\",\"\",AP110/$C$110)","v":""},null,{"$f":"IF($C$110=\"\",\"\",AR110/$C$110)","v":""},null,{"$f":"IF($C$110=\"\",\"\",AT110/$C$110)","v":""},null,{"$f":"IF($C$110=\"\",\"\",AV110/$C$110)","v":""},null,{"$f":"IF($C$110=\"\",\"\",AX110/$C$110)","v":""},null,{"$f":"IF($C$110=\"\",\"\",AZ110/$C$110)","v":""},null,{"$f":"IF($C$110=\"\",\"\",BB110/$C$110)","v":""},null,0]
[null,null,null,null,{"$f":"IF($C$111=\"\",\"\",F111/$C$111)","v":""},null,{"$f":"IF($C$111=\"\",\"\",H111/$C$111)","v":""},null,{"$f":"IF($C$111=\"\",\"\",J111/$C$111)","v":""},null,{"$f":"IF($C$111=\"\",\"\",L111/$C$111)","v":""},null,{"$f":"IF($C$111=\"\",\"\",N111/$C$111)","v":""},null,{"$f":"IF($C$111=\"\",\"\",P111/$C$111)","v":""},null,{"$f":"IF($C$111=\"\",\"\",R111/$C$111)","v":""},null,{"$f":"IF($C$111=\"\",\"\",T111/$C$111)","v":""},null,{"$f":"IF($C$111=\"\",\"\",V111/$C$111)","v":""},null,{"$f":"IF($C$111=\"\",\"\",X111/$C$111)","v":""},null,{"$f":"IF($C$111=\"\",\"\",Z111/$C$111)","v":""},null,{"$f":"IF($C$111=\"\",\"\",AB111/$C$111)","v":""},null,{"$f":"IF($C$111=\"\",\"\",AD111/$C$111)","v":""},null,{"$f":"IF($C$111=\"\",\"\",AF111/$C$111)","v":""},null,{"$f":"IF($C$111=\"\",\"\",AH111/$C$111)","v":""},null,{"$f":"IF($C$111=\"\",\"\",AJ111/$C$111)","v":""},null,{"$f":"IF($C$111=\"\",\"\",AL111/$C$111)","v":""},null,{"$f":"IF($C$111=\"\",\"\",AN111/$C$111)","v":""},null,{"$f":"IF($C$111=\"\",\"\",AP111/$C$111)","v":""},null,{"$f":"IF($C$111=\"\",\"\",AR111/$C$111)","v":""},null,{"$f":"IF($C$111=\"\",\"\",AT111/$C$111)","v":""},null,{"$f":"IF($C$111=\"\",\"\",AV111/$C$111)","v":""},null,{"$f":"IF($C$111=\"\",\"\",AX111/$C$111)","v":""},null,{"$f":"IF($C$111=\"\",\"\",AZ111/$C$111)","v":""},null,{"$f":"IF($C$111=\"\",\"\",BB111/$C$111)","v":""},null,0]
[null,null,null,null,{"$f":"IF($C$112=\"\",\"\",F112/$C$112)","v":""},null,{"$f":"IF($C$112=\"\",\"\",H112/$C$112)","v":""},null,{"$f":"IF($C$112=\"\",\"\",J112/$C$112)","v":""},null,{"$f":"IF($C$112=\"\",\"\",L112/$C$112)","v":""},null,{"$f":"IF($C$112=\"\",\"\",N112/$C$112)","v":""},null,{"$f":"IF($C$112=\"\",\"\",P112/$C$112)","v":""},null,{"$f":"IF($C$112=\"\",\"\",R112/$C$112)","v":""},null,{"$f":"IF($C$112=\"\",\"\",T112/$C$112)","v":""},null,{"$f":"IF($C$112=\"\",\"\",V112/$C$112)","v":""},null,{"$f":"IF($C$112=\"\",\"\",X112/$C$112)","v":""},null,{"$f":"IF($C$112=\"\",\"\",Z112/$C$112)","v":""},null,{"$f":"IF($C$112=\"\",\"\",AB112/$C$112)","v":""},null,{"$f":"IF($C$112=\"\",\"\",AD112/$C$112)","v":""},null,{"$f":"IF($C$112=\"\",\"\",AF112/$C$112)","v":""},null,{"$f":"IF($C$112=\"\",\"\",AH112/$C$112)","v":""},null,{"$f":"IF($C$112=\"\",\"\",AJ112/$C$112)","v":""},null,{"$f":"IF($C$112=\"\",\"\",AL112/$C$112)","v":""},null,{"$f":"IF($C$112=\"\",\"\",AN112/$C$112)","v":""},null,{"$f":"IF($C$112=\"\",\"\",AP112/$C$112)","v":""},null,{"$f":"IF($C$112=\"\",\"\",AR112/$C$112)","v":""},null,{"$f":"IF($C$112=\"\",\"\",AT112/$C$112)","v":""},null,{"$f":"IF($C$112=\"\",\"\",AV112/$C$112)","v":""},null,{"$f":"IF($C$112=\"\",\"\",AX112/$C$112)","v":""},null,{"$f":"IF($C$112=\"\",\"\",AZ112/$C$112)","v":""},null,{"$f":"IF($C$112=\"\",\"\",BB112/$C$112)","v":""},null,0]
[null,null,null,null,{"$f":"IF($C$113=\"\",\"\",F113/$C$113)","v":""},null,{"$f":"IF($C$113=\"\",\"\",H113/$C$113)","v":""},null,{"$f":"IF($C$113=\"\",\"\",J113/$C$113)","v":""},null,{"$f":"IF($C$113=\"\",\"\",L113/$C$113)","v":""},null,{"$f":"IF($C$113=\"\",\"\",N113/$C$113)","v":""},null,{"$f":"IF($C$113=\"\",\"\",P113/$C$113)","v":""},null,{"$f":"IF($C$113=\"\",\"\",R113/$C$113)","v":""},null,{"$f":"IF($C$113=\"\",\"\",T113/$C$113)","v":""},null,{"$f":"IF($C$113=\"\",\"\",V113/$C$113)","v":""},null,{"$f":"IF($C$113=\"\",\"\",X113/$C$113)","v":""},null,{"$f":"IF($C$113=\"\",\"\",Z113/$C$113)","v":""},null,{"$f":"IF($C$113=\"\",\"\",AB113/$C$113)","v":""},null,{"$f":"IF($C$113=\"\",\"\",AD113/$C$113)","v":""},null,{"$f":"IF($C$113=\"\",\"\",AF113/$C$113)","v":""},null,{"$f":"IF($C$113=\"\",\"\",AH113/$C$113)","v":""},null,{"$f":"IF($C$113=\"\",\"\",AJ113/$C$113)","v":""},null,{"$f":"IF($C$113=\"\",\"\",AL113/$C$113)","v":""},null,{"$f":"IF($C$113=\"\",\"\",AN113/$C$113)","v":""},null,{"$f":"IF($C$113=\"\",\"\",AP113/$C$113)","v":""},null,{"$f":"IF($C$113=\"\",\"\",AR113/$C$113)","v":""},null,{"$f":"IF($C$113=\"\",\"\",AT113/$C$113)","v":""},null,{"$f":"IF($C$113=\"\",\"\",AV113/$C$113)","v":""},null,{"$f":"IF($C$113=\"\",\"\",AX113/$C$113)","v":""},null,{"$f":"IF($C$113=\"\",\"\",AZ113/$C$113)","v":""},null,{"$f":"IF($C$113=\"\",\"\",BB113/$C$113)","v":""},null,0]
[null,null,null,null,{"$f":"IF($C$114=\"\",\"\",F114/$C$114)","v":""},null,{"$f":"IF($C$114=\"\",\"\",H114/$C$114)","v":""},null,{"$f":"IF($C$114=\"\",\"\",J114/$C$114)","v":""},null,{"$f":"IF($C$114=\"\",\"\",L114/$C$114)","v":""},null,{"$f":"IF($C$114=\"\",\"\",N114/$C$114)","v":""},null,{"$f":"IF($C$114=\"\",\"\",P114/$C$114)","v":""},null,{"$f":"IF($C$114=\"\",\"\",R114/$C$114)","v":""},null,{"$f":"IF($C$114=\"\",\"\",T114/$C$114)","v":""},null,{"$f":"IF($C$114=\"\",\"\",V114/$C$114)","v":""},null,{"$f":"IF($C$114=\"\",\"\",X114/$C$114)","v":""},null,{"$f":"IF($C$114=\"\",\"\",Z114/$C$114)","v":""},null,{"$f":"IF($C$114=\"\",\"\",AB114/$C$114)","v":""},null,{"$f":"IF($C$114=\"\",\"\",AD114/$C$114)","v":""},null,{"$f":"IF($C$114=\"\",\"\",AF114/$C$114)","v":""},null,{"$f":"IF($C$114=\"\",\"\",AH114/$C$114)","v":""},null,{"$f":"IF($C$114=\"\",\"\",AJ114/$C$114)","v":""},null,{"$f":"IF($C$114=\"\",\"\",AL114/$C$114)","v":""},null,{"$f":"IF($C$114=\"\",\"\",AN114/$C$114)","v":""},null,{"$f":"IF($C$114=\"\",\"\",AP114/$C$114)","v":""},null,{"$f":"IF($C$114=\"\",\"\",AR114/$C$114)","v":""},null,{"$f":"IF($C$114=\"\",\"\",AT114/$C$114)","v":""},null,{"$f":"IF($C$114=\"\",\"\",AV114/$C$114)","v":""},null,{"$f":"IF($C$114=\"\",\"\",AX114/$C$114)","v":""},null,{"$f":"IF($C$114=\"\",\"\",AZ114/$C$114)","v":""},null,{"$f":"IF($C$114=\"\",\"\",BB114/$C$114)","v":""},null,{"$f":"SUM(BB114,AZ114,AX114,AV114,AT114,AR114,AP114,AN114,AL114,AJ114,AH114,AF114,AD114,AB114,Z114,X114,V114,T114,R114,P114,N114,L114,J114,H114,F114)","v":0}]
["TOTAL HOURS",null,null,null,null,{"$f":"SUM(F57:F114)","v":0},null,{"$f":"SUM(H57:H114)","v":0},null,{"$f":"SUM(J57:J114)","v":0},null,{"$f":"SUM(L57:L114)","v":0},null,{"$f":"SUM(N57:N114)","v":0},null,{"$f":"SUM(P57:P114)","v":0},null,{"$f":"SUM(R57:R114)","v":0},null,{"$f":"SUM(T57:T114)","v":0},null,{"$f":"SUM(V57:V114)","v":0},null,{"$f":"SUM(X57:X114)","v":0},null,{"$f":"SUM(Z57:Z114)","v":0},null,{"$f":"SUM(AB57:AB114)","v":0},null,{"$f":"SUM(AD57:AD114)","v":0},null,{"$f":"SUM(AF57:AF114)","v":0},null,{"$f":"SUM(AH57:AH114)","v":0},null,{"$f":"SUM(AJ57:AJ114)","v":0},null,{"$f":"SUM(AL57:AL114)","v":0},null,{"$f":"SUM(AN57:AN114)","v":0},null,{"$f":"SUM(AP57:AP114)","v":0},null,{"$f":"SUM(AR57:AR114)","v":0},null,{"$f":"SUM(AT57:AT114)","v":0},null,{"$f":"SUM(AV57:AV114)","v":0},null,{"$f":"SUM(AX57:AX114)","v":0},null,{"$f":"SUM(AZ57:AZ114)","v":0},null,{"$f":"SUM(BB57:BB114)","v":0},{"$f":"SUM(E115:BB115)","v":0}]
["TOTAL WORKDAYS",null,null,null,null,{"$f":"F115/8","v":0},null,{"$f":"H115/8","v":0},null,{"$f":"J115/8","v":0},null,{"$f":"L115/8","v":0},null,{"$f":"N115/8","v":0},null,{"$f":"P115/8","v":0},null,{"$f":"R115/8","v":0},null,{"$f":"T115/8","v":0},null,{"$f":"V115/8","v":0},null,{"$f":"X115/8","v":0},null,{"$f":"Z115/8","v":0},null,{"$f":"AB115/8","v":0},null,{"$f":"AD115/8","v":0},null,0,null,{"$f":"AH115/8","v":0},null,0,null,{"$f":"AL115/8","v":0},null,0,null,{"$f":"AP115/8","v":0},null,0,null,{"$f":"AT115/8","v":0},null,{"$f":"AV115/8","v":0},null,{"$f":"AX115/8","v":0},null,{"$f":"AZ115/8","v":0},null,{"$f":"BB115/8","v":0},{"$f":"SUM(E116:BB116)","v":0}]
["TOTAL RAW LABOR",null,null,null,null,{"$f":"$E$13*F115","v":0},null,{"$f":"$G$13*H115","v":0},null,{"$f":"$I$13*J115","v":0},null,{"$f":"$K$13*L115","v":0},null,{"$f":"$M$13*N115","v":0},null,{"$f":"$O$13*P115","v":0},null,{"$f":"$Q$13*R115","v":0},null,{"$f":"$S$13*T115","v":0},null,{"$f":"$U$13*V115","v":0},null,{"$f":"$W$13*X115","v":0},null,{"$f":"$Y$13*Z115","v":0},null,{"$f":"$AA$13*AB115","v":0},null,{"$f":"$AC$13*AD115","v":0},null,{"$f":"$AC$13*AF115","v":0},null,{"$f":"$AC$13*AH115","v":0},null,{"$f":"$AC$13*AJ115","v":0},null,{"$f":"$AC$13*AL115","v":0},null,{"$f":"$AC$13*AN115","v":0},null,{"$f":"$AC$13*AP115","v":0},null,{"$f":"$AC$13*AR115","v":0},null,{"$f":"$AC$13*AT115","v":0},null,{"$f":"$AC$13*AV115","v":0},null,{"$f":"$AC$13*AX115","v":0},null,{"$f":"$AC$13*AZ115","v":0},null,{"$f":"$AC$13*BB115","v":0},{"$f":"SUM(E117:BB117)","v":0}]
["Task 4.0     ","COMMUNICATIONS SYSTEM",null,null,null,null,null,null,null,null,null,null,null,null,null,null,null,null,null,null,null,null,null,null,null,null,null,null,null,null,null,null,null,null,null,null,null,null,null,null,null,null,null,null,null,null,null,null,null,null,null,null,null,null," "]
[4.0999999999999996,"Legacy Systems Review",null,null,{"$f":"IF($C$119=\"\",\"\",F119/$C$119)","v":""},null,{"$f":"IF($C$119=\"\",\"\",H119/$C$119)","v":""},null,{"$f":"IF($C$119=\"\",\"\",J119/$C$119)","v":""},null,{"$f":"IF($C$119=\"\",\"\",L119/$C$119)","v":""},null,{"$f":"IF($C$119=\"\",\"\",N119/$C$119)","v":""},null,{"$f":"IF($C$119=\"\",\"\",P119/$C$119)","v":""},null,{"$f":"IF($C$119=\"\",\"\",R119/$C$119)","v":""},null,{"$f":"IF($C$119=\"\",\"\",T119/$C$119)","v":""},null,{"$f":"IF($C$119=\"\",\"\",V119/$C$119)","v":""},null,{"$f":"IF($C$119=\"\",\"\",X119/$C$119)","v":""},null,{"$f":"IF($C$119=\"\",\"\",Z119/$C$119)","v":""},null,{"$f":"IF($C$119=\"\",\"\",AB119/$C$119)","v":""},null,{"$f":"IF($C$119=\"\",\"\",AD119/$C$119)","v":""},null,{"$f":"IF($C$119=\"\",\"\",AF119/$C$119)","v":""},null,{"$f":"IF($C$119=\"\",\"\",AH119/$C$119)","v":""},null,{"$f":"IF($C$119=\"\",\"\",AJ119/$C$119)","v":""},null,{"$f":"IF($C$119=\"\",\"\",AL119/$C$119)","v":""},null,{"$f":"IF($C$119=\"\",\"\",AN119/$C$119)","v":""},null,{"$f":"IF($C$119=\"\",\"\",AP119/$C$119)","v":""},null,{"$f":"IF($C$119=\"\",\"\",AR119/$C$119)","v":""},null,{"$f":"IF($C$119=\"\",\"\",AT119/$C$119)","v":""},null,{"$f":"IF($C$119=\"\",\"\",AV119/$C$119)","v":""},null,{"$f":"IF($C$119=\"\",\"\",AX119/$C$119)","v":""},null,{"$f":"IF($C$119=\"\",\"\",AZ119/$C$119)","v":""},null,{"$f":"IF($C$119=\"\",\"\",BB119/$C$119)","v":""},null,{"$f":"SUM(BB119,AZ119,AX119,AV119,AT119,AR119,AP119,AN119,AL119,AJ119,AH119,AF119,AD119,AB119,Z119,X119,V119,T119,R119,P119,N119,L119,J119,H119,F119)","v":0}]
[4.2,"Technology Review"]
["    4.2.1","    Wireless Site Surveys (Wireless Tests)",null,null,{"$f":"IF($C$121=\"\",\"\",F121/$C$121)","v":""},null,{"$f":"IF($C$121=\"\",\"\",H121/$C$121)","v":""},null,{"$f":"IF($C$121=\"\",\"\",J121/$C$121)","v":""},null,{"$f":"IF($C$121=\"\",\"\",L121/$C$121)","v":""},null,{"$f":"IF($C$121=\"\",\"\",N121/$C$121)","v":""},null,{"$f":"IF($C$121=\"\",\"\",P121/$C$121)","v":""},null,{"$f":"IF($C$121=\"\",\"\",R121/$C$121)","v":""},null,{"$f":"IF($C$121=\"\",\"\",T121/$C$121)","v":""},null,{"$f":"IF($C$121=\"\",\"\",V121/$C$121)","v":""},null,{"$f":"IF($C$121=\"\",\"\",X121/$C$121)","v":""},null,{"$f":"IF($C$121=\"\",\"\",Z121/$C$121)","v":""},null,{"$f":"IF($C$121=\"\",\"\",AB121/$C$121)","v":""},null,{"$f":"IF($C$121=\"\",\"\",AD121/$C$121)","v":""},null,{"$f":"IF($C$121=\"\",\"\",AF121/$C$121)","v":""},null,{"$f":"IF($C$121=\"\",\"\",AH121/$C$121)","v":""},null,{"$f":"IF($C$121=\"\",\"\",AJ121/$C$121)","v":""},null,{"$f":"IF($C$121=\"\",\"\",AL121/$C$121)","v":""},null,{"$f":"IF($C$121=\"\",\"\",AN121/$C$121)","v":""},null,{"$f":"IF($C$121=\"\",\"\",AP121/$C$121)","v":""},null,{"$f":"IF($C$121=\"\",\"\",AR121/$C$121)","v":""},null,{"$f":"IF($C$121=\"\",\"\",AT121/$C$121)","v":""},null,{"$f":"IF($C$121=\"\",\"\",AV121/$C$121)","v":""},null,{"$f":"IF($C$121=\"\",\"\",AX121/$C$121)","v":""},null,{"$f":"IF($C$121=\"\",\"\",AZ121/$C$121)","v":""},null,{"$f":"IF($C$121=\"\",\"\",BB121/$C$121)","v":""},null,{"$f":"SUM(BB121,AZ121,AX121,AV121,AT121,AR121,AP121,AN121,AL121,AJ121,AH121,AF121,AD121,AB121,Z121,X121,V121,T121,R121,P121,N121,L121,J121,H121,F121)","v":0}]
["    4.2.2","    Alternatives Evaluation",null,null,{"$f":"IF($C$122=\"\",\"\",F122/$C$122)","v":""},null,{"$f":"IF($C$122=\"\",\"\",H122/$C$122)","v":""},null,{"$f":"IF($C$122=\"\",\"\",J122/$C$122)","v":""},null,{"$f":"IF($C$122=\"\",\"\",L122/$C$122)","v":""},null,{"$f":"IF($C$122=\"\",\"\",N122/$C$122)","v":""},null,{"$f":"IF($C$122=\"\",\"\",P122/$C$122)","v":""},null,{"$f":"IF($C$122=\"\",\"\",R122/$C$122)","v":""},null,{"$f":"IF($C$122=\"\",\"\",T122/$C$122)","v":""},null,{"$f":"IF($C$122=\"\",\"\",V122/$C$122)","v":""},null,{"$f":"IF($C$122=\"\",\"\",X122/$C$122)","v":""},null,{"$f":"IF($C$122=\"\",\"\",Z122/$C$122)","v":""},null,{"$f":"IF($C$122=\"\",\"\",AB122/$C$122)","v":""},null,{"$f":"IF($C$122=\"\",\"\",AD122/$C$122)","v":""},null,{"$f":"IF($C$122=\"\",\"\",AF122/$C$122)","v":""},null,{"$f":"IF($C$122=\"\",\"\",AH122/$C$122)","v":""},null,{"$f":"IF($C$122=\"\",\"\",AJ122/$C$122)","v":""},null,{"$f":"IF($C$122=\"\",\"\",AL122/$C$122)","v":""},null,{"$f":"IF($C$122=\"\",\"\",AN122/$C$122)","v":""},null,{"$f":"IF($C$122=\"\",\"\",AP122/$C$122)","v":""},null,{"$f":"IF($C$122=\"\",\"\",AR122/$C$122)","v":""},null,{"$f":"IF($C$122=\"\",\"\",AT122/$C$122)","v":""},null,{"$f":"IF($C$122=\"\",\"\",AV122/$C$122)","v":""},null,{"$f":"IF($C$122=\"\",\"\",AX122/$C$122)","v":""},null,{"$f":"IF($C$122=\"\",\"\",AZ122/$C$122)","v":""},null,{"$f":"IF($C$122=\"\",\"\",BB122/$C$122)","v":""},null,0]
["    4.2.3",null,null,null,{"$f":"IF($C$123=\"\",\"\",F123/$C$123)","v":""},null,{"$f":"IF($C$123=\"\",\"\",H123/$C$123)","v":""},null,{"$f":"IF($C$123=\"\",\"\",J123/$C$123)","v":""},null,{"$f":"IF($C$123=\"\",\"\",L123/$C$123)","v":""},null,{"$f":"IF($C$123=\"\",\"\",N123/$C$123)","v":""},null,{"$f":"IF($C$123=\"\",\"\",P123/$C$123)","v":""},null,{"$f":"IF($C$123=\"\",\"\",R123/$C$123)","v":""},null,{"$f":"IF($C$123=\"\",\"\",T123/$C$123)","v":""},null,{"$f":"IF($C$123=\"\",\"\",V123/$C$123)","v":""},null,{"$f":"IF($C$123=\"\",\"\",X123/$C$123)","v":""},null,{"$f":"IF($C$123=\"\",\"\",Z123/$C$123)","v":""},null,{"$f":"IF($C$123=\"\",\"\",AB123/$C$123)","v":""},null,{"$f":"IF($C$123=\"\",\"\",AD123/$C$123)","v":""},null,{"$f":"IF($C$123=\"\",\"\",AF123/$C$123)","v":""},null,{"$f":"IF($C$123=\"\",\"\",AH123/$C$123)","v":""},null,{"$f":"IF($C$123=\"\",\"\",AJ123/$C$123)","v":""},null,{"$f":"IF($C$123=\"\",\"\",AL123/$C$123)","v":""},null,{"$f":"IF($C$123=\"\",\"\",AN123/$C$123)","v":""},null,{"$f":"IF($C$123=\"\",\"\",AP123/$C$123)","v":""},null,{"$f":"IF($C$123=\"\",\"\",AR123/$C$123)","v":""},null,{"$f":"IF($C$123=\"\",\"\",AT123/$C$123)","v":""},null,{"$f":"IF($C$123=\"\",\"\",AV123/$C$123)","v":""},null,{"$f":"IF($C$123=\"\",\"\",AX123/$C$123)","v":""},null,{"$f":"IF($C$123=\"\",\"\",AZ123/$C$123)","v":""},null,{"$f":"IF($C$123=\"\",\"\",BB123/$C$123)","v":""},null,0]
["    4.2.4",null,null,null,{"$f":"IF($C$124=\"\",\"\",F124/$C$124)","v":""},null,{"$f":"IF($C$124=\"\",\"\",H124/$C$124)","v":""},null,{"$f":"IF($C$124=\"\",\"\",J124/$C$124)","v":""},null,{"$f":"IF($C$124=\"\",\"\",L124/$C$124)","v":""},null,{"$f":"IF($C$124=\"\",\"\",N124/$C$124)","v":""},null,{"$f":"IF($C$124=\"\",\"\",P124/$C$124)","v":""},null,{"$f":"IF($C$124=\"\",\"\",R124/$C$124)","v":""},null,{"$f":"IF($C$124=\"\",\"\",T124/$C$124)","v":""},null,{"$f":"IF($C$124=\"\",\"\",V124/$C$124)","v":""},null,{"$f":"IF($C$124=\"\",\"\",X124/$C$124)","v":""},null,{"$f":"IF($C$124=\"\",\"\",Z124/$C$124)","v":""},null,{"$f":"IF($C$124=\"\",\"\",AB124/$C$124)","v":""},null,{"$f":"IF($C$124=\"\",\"\",AD124/$C$124)","v":""},null,{"$f":"IF($C$124=\"\",\"\",AF124/$C$124)","v":""},null,{"$f":"IF($C$124=\"\",\"\",AH124/$C$124)","v":""},null,{"$f":"IF($C$124=\"\",\"\",AJ124/$C$124)","v":""},null,{"$f":"IF($C$124=\"\",\"\",AL124/$C$124)","v":""},null,{"$f":"IF($C$124=\"\",\"\",AN124/$C$124)","v":""},null,{"$f":"IF($C$124=\"\",\"\",AP124/$C$124)","v":""},null,{"$f":"IF($C$124=\"\",\"\",AR124/$C$124)","v":""},null,{"$f":"IF($C$124=\"\",\"\",AT124/$C$124)","v":""},null,{"$f":"IF($C$124=\"\",\"\",AV124/$C$124)","v":""},null,{"$f":"IF($C$124=\"\",\"\",AX124/$C$124)","v":""},null,{"$f":"IF($C$124=\"\",\"\",AZ124/$C$124)","v":""},null,{"$f":"IF($C$124=\"\",\"\",BB124/$C$124)","v":""},null,0]
["    4.2.5",null,null,null,{"$f":"IF($C$125=\"\",\"\",F125/$C$125)","v":""},null,{"$f":"IF($C$125=\"\",\"\",H125/$C$125)","v":""},null,{"$f":"IF($C$125=\"\",\"\",J125/$C$125)","v":""},null,{"$f":"IF($C$125=\"\",\"\",L125/$C$125)","v":""},null,{"$f":"IF($C$125=\"\",\"\",N125/$C$125)","v":""},null,{"$f":"IF($C$125=\"\",\"\",P125/$C$125)","v":""},null,{"$f":"IF($C$125=\"\",\"\",R125/$C$125)","v":""},null,{"$f":"IF($C$125=\"\",\"\",T125/$C$125)","v":""},null,{"$f":"IF($C$125=\"\",\"\",V125/$C$125)","v":""},null,{"$f":"IF($C$125=\"\",\"\",X125/$C$125)","v":""},null,{"$f":"IF($C$125=\"\",\"\",Z125/$C$125)","v":""},null,{"$f":"IF($C$125=\"\",\"\",AB125/$C$125)","v":""},null,{"$f":"IF($C$125=\"\",\"\",AD125/$C$125)","v":""},null,{"$f":"IF($C$125=\"\",\"\",AF125/$C$125)","v":""},null,{"$f":"IF($C$125=\"\",\"\",AH125/$C$125)","v":""},null,{"$f":"IF($C$125=\"\",\"\",AJ125/$C$125)","v":""},null,{"$f":"IF($C$125=\"\",\"\",AL125/$C$125)","v":""},null,{"$f":"IF($C$125=\"\",\"\",AN125/$C$125)","v":""},null,{"$f":"IF($C$125=\"\",\"\",AP125/$C$125)","v":""},null,{"$f":"IF($C$125=\"\",\"\",AR125/$C$125)","v":""},null,{"$f":"IF($C$125=\"\",\"\",AT125/$C$125)","v":""},null,{"$f":"IF($C$125=\"\",\"\",AV125/$C$125)","v":""},null,{"$f":"IF($C$125=\"\",\"\",AX125/$C$125)","v":""},null,{"$f":"IF($C$125=\"\",\"\",AZ125/$C$125)","v":""},null,{"$f":"IF($C$125=\"\",\"\",BB125/$C$125)","v":""},null,0]
[4.3,"Migration Plan",null,null,{"$f":"IF($C$126=\"\",\"\",F126/$C$126)","v":""},null,{"$f":"IF($C$126=\"\",\"\",H126/$C$126)","v":""},null,{"$f":"IF($C$126=\"\",\"\",J126/$C$126)","v":""},null,{"$f":"IF($C$126=\"\",\"\",L126/$C$126)","v":""},null,{"$f":"IF($C$126=\"\",\"\",N126/$C$126)","v":""},null,{"$f":"IF($C$126=\"\",\"\",P126/$C$126)","v":""},null,{"$f":"IF($C$126=\"\",\"\",R126/$C$126)","v":""},null,{"$f":"IF($C$126=\"\",\"\",T126/$C$126)","v":""},null,{"$f":"IF($C$126=\"\",\"\",V126/$C$126)","v":""},null,{"$f":"IF($C$126=\"\",\"\",X126/$C$126)","v":""},null,{"$f":"IF($C$126=\"\",\"\",Z126/$C$126)","v":""},null,{"$f":"IF($C$126=\"\",\"\",AB126/$C$126)","v":""},null,{"$f":"IF($C$126=\"\",\"\",AD126/$C$126)","v":""},null,{"$f":"IF($C$126=\"\",\"\",AF126/$C$126)","v":""},null,{"$f":"IF($C$126=\"\",\"\",AH126/$C$126)","v":""},null,{"$f":"IF($C$126=\"\",\"\",AJ126/$C$126)","v":""},null,{"$f":"IF($C$126=\"\",\"\",AL126/$C$126)","v":""},null,{"$f":"IF($C$126=\"\",\"\",AN126/$C$126)","v":""},null,{"$f":"IF($C$126=\"\",\"\",AP126/$C$126)","v":""},null,{"$f":"IF($C$126=\"\",\"\",AR126/$C$126)","v":""},null,{"$f":"IF($C$126=\"\",\"\",AT126/$C$126)","v":""},null,{"$f":"IF($C$126=\"\",\"\",AV126/$C$126)","v":""},null,{"$f":"IF($C$126=\"\",\"\",AX126/$C$126)","v":""},null,{"$f":"IF($C$126=\"\",\"\",AZ126/$C$126)","v":""},null,{"$f":"IF($C$126=\"\",\"\",BB126/$C$126)","v":""},null,0]
[4.4000000000000004,"Bandwidth Analysis",null,null,{"$f":"IF($C$127=\"\",\"\",F127/$C$127)","v":""},null,{"$f":"IF($C$127=\"\",\"\",H127/$C$127)","v":""},null,{"$f":"IF($C$127=\"\",\"\",J127/$C$127)","v":""},null,{"$f":"IF($C$127=\"\",\"\",L127/$C$127)","v":""},null,{"$f":"IF($C$127=\"\",\"\",N127/$C$127)","v":""},null,{"$f":"IF($C$127=\"\",\"\",P127/$C$127)","v":""},null,{"$f":"IF($C$127=\"\",\"\",R127/$C$127)","v":""},null,{"$f":"IF($C$127=\"\",\"\",T127/$C$127)","v":""},null,{"$f":"IF($C$127=\"\",\"\",V127/$C$127)","v":""},null,{"$f":"IF($C$127=\"\",\"\",X127/$C$127)","v":""},null,{"$f":"IF($C$127=\"\",\"\",Z127/$C$127)","v":""},null,{"$f":"IF($C$127=\"\",\"\",AB127/$C$127)","v":""},null,{"$f":"IF($C$127=\"\",\"\",AD127/$C$127)","v":""},null,{"$f":"IF($C$127=\"\",\"\",AF127/$C$127)","v":""},null,{"$f":"IF($C$127=\"\",\"\",AH127/$C$127)","v":""},null,{"$f":"IF($C$127=\"\",\"\",AJ127/$C$127)","v":""},null,{"$f":"IF($C$127=\"\",\"\",AL127/$C$127)","v":""},null,{"$f":"IF($C$127=\"\",\"\",AN127/$C$127)","v":""},null,{"$f":"IF($C$127=\"\",\"\",AP127/$C$127)","v":""},null,{"$f":"IF($C$127=\"\",\"\",AR127/$C$127)","v":""},null,{"$f":"IF($C$127=\"\",\"\",AT127/$C$127)","v":""},null,{"$f":"IF($C$127=\"\",\"\",AV127/$C$127)","v":""},null,{"$f":"IF($C$127=\"\",\"\",AX127/$C$127)","v":""},null,{"$f":"IF($C$127=\"\",\"\",AZ127/$C$127)","v":""},null,{"$f":"IF($C$127=\"\",\"\",BB127/$C$127)","v":""},null,0]
[4.5,"Block Diagrams",null,null,{"$f":"IF($C$128=\"\",\"\",F128/$C$128)","v":""},null,{"$f":"IF($C$128=\"\",\"\",H128/$C$128)","v":""},null,{"$f":"IF($C$128=\"\",\"\",J128/$C$128)","v":""},null,{"$f":"IF($C$128=\"\",\"\",L128/$C$128)","v":""},null,{"$f":"IF($C$128=\"\",\"\",N128/$C$128)","v":""},null,{"$f":"IF($C$128=\"\",\"\",P128/$C$128)","v":""},null,{"$f":"IF($C$128=\"\",\"\",R128/$C$128)","v":""},null,{"$f":"IF($C$128=\"\",\"\",T128/$C$128)","v":""},null,{"$f":"IF($C$128=\"\",\"\",V128/$C$128)","v":""},null,{"$f":"IF($C$128=\"\",\"\",X128/$C$128)","v":""},null,{"$f":"IF($C$128=\"\",\"\",Z128/$C$128)","v":""},null,{"$f":"IF($C$128=\"\",\"\",AB128/$C$128)","v":""},null,{"$f":"IF($C$128=\"\",\"\",AD128/$C$128)","v":""},null,{"$f":"IF($C$128=\"\",\"\",AF128/$C$128)","v":""},null,{"$f":"IF($C$128=\"\",\"\",AH128/$C$128)","v":""},null,{"$f":"IF($C$128=\"\",\"\",AJ128/$C$128)","v":""},null,{"$f":"IF($C$128=\"\",\"\",AL128/$C$128)","v":""},null,{"$f":"IF($C$128=\"\",\"\",AN128/$C$128)","v":""},null,{"$f":"IF($C$128=\"\",\"\",AP128/$C$128)","v":""},null,{"$f":"IF($C$128=\"\",\"\",AR128/$C$128)","v":""},null,{"$f":"IF($C$128=\"\",\"\",AT128/$C$128)","v":""},null,{"$f":"IF($C$128=\"\",\"\",AV128/$C$128)","v":""},null,{"$f":"IF($C$128=\"\",\"\",AX128/$C$128)","v":""},null,{"$f":"IF($C$128=\"\",\"\",AZ128/$C$128)","v":""},null,{"$f":"IF($C$128=\"\",\"\",BB128/$C$128)","v":""},null,0]
[4.5999999999999996,"Prepare Communications Technical Memorandum",null,null,{"$f":"IF($C$129=\"\",\"\",F129/$C$129)","v":""},null,{"$f":"IF($C$129=\"\",\"\",H129/$C$129)","v":""},null,{"$f":"IF($C$129=\"\",\"\",J129/$C$129)","v":""},null,{"$f":"IF($C$129=\"\",\"\",L129/$C$129)","v":""},null,{"$f":"IF($C$129=\"\",\"\",N129/$C$129)","v":""},null,{"$f":"IF($C$129=\"\",\"\",P129/$C$129)","v":""},null,{"$f":"IF($C$129=\"\",\"\",R129/$C$129)","v":""},null,{"$f":"IF($C$129=\"\",\"\",T129/$C$129)","v":""},null,{"$f":"IF($C$129=\"\",\"\",V129/$C$129)","v":""},null,{"$f":"IF($C$129=\"\",\"\",X129/$C$129)","v":""},null,{"$f":"IF($C$129=\"\",\"\",Z129/$C$129)","v":""},null,{"$f":"IF($C$129=\"\",\"\",AB129/$C$129)","v":""},null,{"$f":"IF($C$129=\"\",\"\",AD129/$C$129)","v":""},null,{"$f":"IF($C$129=\"\",\"\",AF129/$C$129)","v":""},null,{"$f":"IF($C$129=\"\",\"\",AH129/$C$129)","v":""},null,{"$f":"IF($C$129=\"\",\"\",AJ129/$C$129)","v":""},null,{"$f":"IF($C$129=\"\",\"\",AL129/$C$129)","v":""},null,{"$f":"IF($C$129=\"\",\"\",AN129/$C$129)","v":""},null,{"$f":"IF($C$129=\"\",\"\",AP129/$C$129)","v":""},null,{"$f":"IF($C$129=\"\",\"\",AR129/$C$129)","v":""},null,{"$f":"IF($C$129=\"\",\"\",AT129/$C$129)","v":""},null,{"$f":"IF($C$129=\"\",\"\",AV129/$C$129)","v":""},null,{"$f":"IF($C$129=\"\",\"\",AX129/$C$129)","v":""},null,{"$f":"IF($C$129=\"\",\"\",AZ129/$C$129)","v":""},null,{"$f":"IF($C$129=\"\",\"\",BB129/$C$129)","v":""},null,0]
[4.7,"Quality Reviews",null,null,{"$f":"IF($C$130=\"\",\"\",F130/$C$130)","v":""},null,{"$f":"IF($C$130=\"\",\"\",H130/$C$130)","v":""},null,{"$f":"IF($C$130=\"\",\"\",J130/$C$130)","v":""},null,{"$f":"IF($C$130=\"\",\"\",L130/$C$130)","v":""},null,{"$f":"IF($C$130=\"\",\"\",N130/$C$130)","v":""},null,{"$f":"IF($C$130=\"\",\"\",P130/$C$130)","v":""},null,{"$f":"IF($C$130=\"\",\"\",R130/$C$130)","v":""},null,{"$f":"IF($C$130=\"\",\"\",T130/$C$130)","v":""},null,{"$f":"IF($C$130=\"\",\"\",V130/$C$130)","v":""},null,{"$f":"IF($C$130=\"\",\"\",X130/$C$130)","v":""},null,{"$f":"IF($C$130=\"\",\"\",Z130/$C$130)","v":""},null,{"$f":"IF($C$130=\"\",\"\",AB130/$C$130)","v":""},null,{"$f":"IF($C$130=\"\",\"\",AD130/$C$130)","v":""},null,{"$f":"IF($C$130=\"\",\"\",AF130/$C$130)","v":""},null,{"$f":"IF($C$130=\"\",\"\",AH130/$C$130)","v":""},null,{"$f":"IF($C$130=\"\",\"\",AJ130/$C$130)","v":""},null,{"$f":"IF($C$130=\"\",\"\",AL130/$C$130)","v":""},null,{"$f":"IF($C$130=\"\",\"\",AN130/$C$130)","v":""},null,{"$f":"IF($C$130=\"\",\"\",AP130/$C$130)","v":""},null,{"$f":"IF($C$130=\"\",\"\",AR130/$C$130)","v":""},null,{"$f":"IF($C$130=\"\",\"\",AT130/$C$130)","v":""},null,{"$f":"IF($C$130=\"\",\"\",AV130/$C$130)","v":""},null,{"$f":"IF($C$130=\"\",\"\",AX130/$C$130)","v":""},null,{"$f":"IF($C$130=\"\",\"\",AZ130/$C$130)","v":""},null,{"$f":"IF($C$130=\"\",\"\",BB130/$C$130)","v":""},null,0]
[null,null,null,null,{"$f":"IF($C$131=\"\",\"\",F131/$C$131)","v":""},null,{"$f":"IF($C$131=\"\",\"\",H131/$C$131)","v":""},null,{"$f":"IF($C$131=\"\",\"\",J131/$C$131)","v":""},null,{"$f":"IF($C$131=\"\",\"\",L131/$C$131)","v":""},null,{"$f":"IF($C$131=\"\",\"\",N131/$C$131)","v":""},null,{"$f":"IF($C$131=\"\",\"\",P131/$C$131)","v":""},null,{"$f":"IF($C$131=\"\",\"\",R131/$C$131)","v":""},null,{"$f":"IF($C$131=\"\",\"\",T131/$C$131)","v":""},null,{"$f":"IF($C$131=\"\",\"\",V131/$C$131)","v":""},null,{"$f":"IF($C$131=\"\",\"\",X131/$C$131)","v":""},null,{"$f":"IF($C$131=\"\",\"\",Z131/$C$131)","v":""},null,{"$f":"IF($C$131=\"\",\"\",AB131/$C$131)","v":""},null,{"$f":"IF($C$131=\"\",\"\",AD131/$C$131)","v":""},null,{"$f":"IF($C$131=\"\",\"\",AF131/$C$131)","v":""},null,{"$f":"IF($C$131=\"\",\"\",AH131/$C$131)","v":""},null,{"$f":"IF($C$131=\"\",\"\",AJ131/$C$131)","v":""},null,{"$f":"IF($C$131=\"\",\"\",AL131/$C$131)","v":""},null,{"$f":"IF($C$131=\"\",\"\",AN131/$C$131)","v":""},null,{"$f":"IF($C$131=\"\",\"\",AP131/$C$131)","v":""},null,{"$f":"IF($C$131=\"\",\"\",AR131/$C$131)","v":""},null,{"$f":"IF($C$131=\"\",\"\",AT131/$C$131)","v":""},null,{"$f":"IF($C$131=\"\",\"\",AV131/$C$131)","v":""},null,{"$f":"IF($C$131=\"\",\"\",AX131/$C$131)","v":""},null,{"$f":"IF($C$131=\"\",\"\",AZ131/$C$131)","v":""},null,{"$f":"IF($C$131=\"\",\"\",BB131/$C$131)","v":""},null,0]
[null,null,null,null,{"$f":"IF($C$132=\"\",\"\",F132/$C$132)","v":""},null,{"$f":"IF($C$132=\"\",\"\",H132/$C$132)","v":""},null,{"$f":"IF($C$132=\"\",\"\",J132/$C$132)","v":""},null,{"$f":"IF($C$132=\"\",\"\",L132/$C$132)","v":""},null,{"$f":"IF($C$132=\"\",\"\",N132/$C$132)","v":""},null,{"$f":"IF($C$132=\"\",\"\",P132/$C$132)","v":""},null,{"$f":"IF($C$132=\"\",\"\",R132/$C$132)","v":""},null,{"$f":"IF($C$132=\"\",\"\",T132/$C$132)","v":""},null,{"$f":"IF($C$132=\"\",\"\",V132/$C$132)","v":""},null,{"$f":"IF($C$132=\"\",\"\",X132/$C$132)","v":""},null,{"$f":"IF($C$132=\"\",\"\",Z132/$C$132)","v":""},null,{"$f":"IF($C$132=\"\",\"\",AB132/$C$132)","v":""},null,{"$f":"IF($C$132=\"\",\"\",AD132/$C$132)","v":""},null,{"$f":"IF($C$132=\"\",\"\",AF132/$C$132)","v":""},null,{"$f":"IF($C$132=\"\",\"\",AH132/$C$132)","v":""},null,{"$f":"IF($C$132=\"\",\"\",AJ132/$C$132)","v":""},null,{"$f":"IF($C$132=\"\",\"\",AL132/$C$132)","v":""},null,{"$f":"IF($C$132=\"\",\"\",AN132/$C$132)","v":""},null,{"$f":"IF($C$132=\"\",\"\",AP132/$C$132)","v":""},null,{"$f":"IF($C$132=\"\",\"\",AR132/$C$132)","v":""},null,{"$f":"IF($C$132=\"\",\"\",AT132/$C$132)","v":""},null,{"$f":"IF($C$132=\"\",\"\",AV132/$C$132)","v":""},null,{"$f":"IF($C$132=\"\",\"\",AX132/$C$132)","v":""},null,{"$f":"IF($C$132=\"\",\"\",AZ132/$C$132)","v":""},null,{"$f":"IF($C$132=\"\",\"\",BB132/$C$132)","v":""},null,0]
[null,null,null,null,{"$f":"IF($C$133=\"\",\"\",F133/$C$133)","v":""},null,{"$f":"IF($C$133=\"\",\"\",H133/$C$133)","v":""},null,{"$f":"IF($C$133=\"\",\"\",J133/$C$133)","v":""},null,{"$f":"IF($C$133=\"\",\"\",L133/$C$133)","v":""},null,{"$f":"IF($C$133=\"\",\"\",N133/$C$133)","v":""},null,{"$f":"IF($C$133=\"\",\"\",P133/$C$133)","v":""},null,{"$f":"IF($C$133=\"\",\"\",R133/$C$133)","v":""},null,{"$f":"IF($C$133=\"\",\"\",T133/$C$133)","v":""},null,{"$f":"IF($C$133=\"\",\"\",V133/$C$133)","v":""},null,{"$f":"IF($C$133=\"\",\"\",X133/$C$133)","v":""},null,{"$f":"IF($C$133=\"\",\"\",Z133/$C$133)","v":""},null,{"$f":"IF($C$133=\"\",\"\",AB133/$C$133)","v":""},null,{"$f":"IF($C$133=\"\",\"\",AD133/$C$133)","v":""},null,{"$f":"IF($C$133=\"\",\"\",AF133/$C$133)","v":""},null,{"$f":"IF($C$133=\"\",\"\",AH133/$C$133)","v":""},null,{"$f":"IF($C$133=\"\",\"\",AJ133/$C$133)","v":""},null,{"$f":"IF($C$133=\"\",\"\",AL133/$C$133)","v":""},null,{"$f":"IF($C$133=\"\",\"\",AN133/$C$133)","v":""},null,{"$f":"IF($C$133=\"\",\"\",AP133/$C$133)","v":""},null,{"$f":"IF($C$133=\"\",\"\",AR133/$C$133)","v":""},null,{"$f":"IF($C$133=\"\",\"\",AT133/$C$133)","v":""},null,{"$f":"IF($C$133=\"\",\"\",AV133/$C$133)","v":""},null,{"$f":"IF($C$133=\"\",\"\",AX133/$C$133)","v":""},null,{"$f":"IF($C$133=\"\",\"\",AZ133/$C$133)","v":""},null,{"$f":"IF($C$133=\"\",\"\",BB133/$C$133)","v":""},null,0]
[null,null,null,null,{"$f":"IF($C$134=\"\",\"\",F134/$C$134)","v":""},null,{"$f":"IF($C$134=\"\",\"\",H134/$C$134)","v":""},null,{"$f":"IF($C$134=\"\",\"\",J134/$C$134)","v":""},null,{"$f":"IF($C$134=\"\",\"\",L134/$C$134)","v":""},null,{"$f":"IF($C$134=\"\",\"\",N134/$C$134)","v":""},null,{"$f":"IF($C$134=\"\",\"\",P134/$C$134)","v":""},null,{"$f":"IF($C$134=\"\",\"\",R134/$C$134)","v":""},null,{"$f":"IF($C$134=\"\",\"\",T134/$C$134)","v":""},null,{"$f":"IF($C$134=\"\",\"\",V134/$C$134)","v":""},null,{"$f":"IF($C$134=\"\",\"\",X134/$C$134)","v":""},null,{"$f":"IF($C$134=\"\",\"\",Z134/$C$134)","v":""},null,{"$f":"IF($C$134=\"\",\"\",AB134/$C$134)","v":""},null,{"$f":"IF($C$134=\"\",\"\",AD134/$C$134)","v":""},null,{"$f":"IF($C$134=\"\",\"\",AF134/$C$134)","v":""},null,{"$f":"IF($C$134=\"\",\"\",AH134/$C$134)","v":""},null,{"$f":"IF($C$134=\"\",\"\",AJ134/$C$134)","v":""},null,{"$f":"IF($C$134=\"\",\"\",AL134/$C$134)","v":""},null,{"$f":"IF($C$134=\"\",\"\",AN134/$C$134)","v":""},null,{"$f":"IF($C$134=\"\",\"\",AP134/$C$134)","v":""},null,{"$f":"IF($C$134=\"\",\"\",AR134/$C$134)","v":""},null,{"$f":"IF($C$134=\"\",\"\",AT134/$C$134)","v":""},null,{"$f":"IF($C$134=\"\",\"\",AV134/$C$134)","v":""},null,{"$f":"IF($C$134=\"\",\"\",AX134/$C$134)","v":""},null,{"$f":"IF($C$134=\"\",\"\",AZ134/$C$134)","v":""},null,{"$f":"IF($C$134=\"\",\"\",BB134/$C$134)","v":""},null,0]
[null,null,null,null,{"$f":"IF($C$135=\"\",\"\",F135/$C$135)","v":""},null,{"$f":"IF($C$135=\"\",\"\",H135/$C$135)","v":""},null,{"$f":"IF($C$135=\"\",\"\",J135/$C$135)","v":""},null,{"$f":"IF($C$135=\"\",\"\",L135/$C$135)","v":""},null,{"$f":"IF($C$135=\"\",\"\",N135/$C$135)","v":""},null,{"$f":"IF($C$135=\"\",\"\",P135/$C$135)","v":""},null,{"$f":"IF($C$135=\"\",\"\",R135/$C$135)","v":""},null,{"$f":"IF($C$135=\"\",\"\",T135/$C$135)","v":""},null,{"$f":"IF($C$135=\"\",\"\",V135/$C$135)","v":""},null,{"$f":"IF($C$135=\"\",\"\",X135/$C$135)","v":""},null,{"$f":"IF($C$135=\"\",\"\",Z135/$C$135)","v":""},null,{"$f":"IF($C$135=\"\",\"\",AB135/$C$135)","v":""},null,{"$f":"IF($C$135=\"\",\"\",AD135/$C$135)","v":""},null,{"$f":"IF($C$135=\"\",\"\",AF135/$C$135)","v":""},null,{"$f":"IF($C$135=\"\",\"\",AH135/$C$135)","v":""},null,{"$f":"IF($C$135=\"\",\"\",AJ135/$C$135)","v":""},null,{"$f":"IF($C$135=\"\",\"\",AL135/$C$135)","v":""},null,{"$f":"IF($C$135=\"\",\"\",AN135/$C$135)","v":""},null,{"$f":"IF($C$135=\"\",\"\",AP135/$C$135)","v":""},null,{"$f":"IF($C$135=\"\",\"\",AR135/$C$135)","v":""},null,{"$f":"IF($C$135=\"\",\"\",AT135/$C$135)","v":""},null,{"$f":"IF($C$135=\"\",\"\",AV135/$C$135)","v":""},null,{"$f":"IF($C$135=\"\",\"\",AX135/$C$135)","v":""},null,{"$f":"IF($C$135=\"\",\"\",AZ135/$C$135)","v":""},null,{"$f":"IF($C$135=\"\",\"\",BB135/$C$135)","v":""},null,0]
[null,null,null,null,{"$f":"IF($C$136=\"\",\"\",F136/$C$136)","v":""},null,{"$f":"IF($C$136=\"\",\"\",H136/$C$136)","v":""},null,{"$f":"IF($C$136=\"\",\"\",J136/$C$136)","v":""},null,{"$f":"IF($C$136=\"\",\"\",L136/$C$136)","v":""},null,{"$f":"IF($C$136=\"\",\"\",N136/$C$136)","v":""},null,{"$f":"IF($C$136=\"\",\"\",P136/$C$136)","v":""},null,{"$f":"IF($C$136=\"\",\"\",R136/$C$136)","v":""},null,{"$f":"IF($C$136=\"\",\"\",T136/$C$136)","v":""},null,{"$f":"IF($C$136=\"\",\"\",V136/$C$136)","v":""},null,{"$f":"IF($C$136=\"\",\"\",X136/$C$136)","v":""},null,{"$f":"IF($C$136=\"\",\"\",Z136/$C$136)","v":""},null,{"$f":"IF($C$136=\"\",\"\",AB136/$C$136)","v":""},null,{"$f":"IF($C$136=\"\",\"\",AD136/$C$136)","v":""},null,{"$f":"IF($C$136=\"\",\"\",AF136/$C$136)","v":""},null,{"$f":"IF($C$136=\"\",\"\",AH136/$C$136)","v":""},null,{"$f":"IF($C$136=\"\",\"\",AJ136/$C$136)","v":""},null,{"$f":"IF($C$136=\"\",\"\",AL136/$C$136)","v":""},null,{"$f":"IF($C$136=\"\",\"\",AN136/$C$136)","v":""},null,{"$f":"IF($C$136=\"\",\"\",AP136/$C$136)","v":""},null,{"$f":"IF($C$136=\"\",\"\",AR136/$C$136)","v":""},null,{"$f":"IF($C$136=\"\",\"\",AT136/$C$136)","v":""},null,{"$f":"IF($C$136=\"\",\"\",AV136/$C$136)","v":""},null,{"$f":"IF($C$136=\"\",\"\",AX136/$C$136)","v":""},null,{"$f":"IF($C$136=\"\",\"\",AZ136/$C$136)","v":""},null,{"$f":"IF($C$136=\"\",\"\",BB136/$C$136)","v":""},null,0]
[null,null,null,null,{"$f":"IF($C$137=\"\",\"\",F137/$C$137)","v":""},null,{"$f":"IF($C$137=\"\",\"\",H137/$C$137)","v":""},null,{"$f":"IF($C$137=\"\",\"\",J137/$C$137)","v":""},null,{"$f":"IF($C$137=\"\",\"\",L137/$C$137)","v":""},null,{"$f":"IF($C$137=\"\",\"\",N137/$C$137)","v":""},null,{"$f":"IF($C$137=\"\",\"\",P137/$C$137)","v":""},null,{"$f":"IF($C$137=\"\",\"\",R137/$C$137)","v":""},null,{"$f":"IF($C$137=\"\",\"\",T137/$C$137)","v":""},null,{"$f":"IF($C$137=\"\",\"\",V137/$C$137)","v":""},null,{"$f":"IF($C$137=\"\",\"\",X137/$C$137)","v":""},null,{"$f":"IF($C$137=\"\",\"\",Z137/$C$137)","v":""},null,{"$f":"IF($C$137=\"\",\"\",AB137/$C$137)","v":""},null,{"$f":"IF($C$137=\"\",\"\",AD137/$C$137)","v":""},null,{"$f":"IF($C$137=\"\",\"\",AF137/$C$137)","v":""},null,{"$f":"IF($C$137=\"\",\"\",AH137/$C$137)","v":""},null,{"$f":"IF($C$137=\"\",\"\",AJ137/$C$137)","v":""},null,{"$f":"IF($C$137=\"\",\"\",AL137/$C$137)","v":""},null,{"$f":"IF($C$137=\"\",\"\",AN137/$C$137)","v":""},null,{"$f":"IF($C$137=\"\",\"\",AP137/$C$137)","v":""},null,{"$f":"IF($C$137=\"\",\"\",AR137/$C$137)","v":""},null,{"$f":"IF($C$137=\"\",\"\",AT137/$C$137)","v":""},null,{"$f":"IF($C$137=\"\",\"\",AV137/$C$137)","v":""},null,{"$f":"IF($C$137=\"\",\"\",AX137/$C$137)","v":""},null,{"$f":"IF($C$137=\"\",\"\",AZ137/$C$137)","v":""},null,{"$f":"IF($C$137=\"\",\"\",BB137/$C$137)","v":""},null,{"$f":"SUM(BB137,AZ137,AX137,AV137,AT137,AR137,AP137,AN137,AL137,AJ137,AH137,AF137,AD137,AB137,Z137,X137,V137,T137,R137,P137,N137,L137,J137,H137,F137)","v":0}]
["TOTAL HOURS",null,null,null,null,{"$f":"SUM(F119:F137)","v":0},null,{"$f":"SUM(H119:H137)","v":0},null,{"$f":"SUM(J119:J137)","v":0},null,{"$f":"SUM(L119:L137)","v":0},null,{"$f":"SUM(N119:N137)","v":0},null,{"$f":"SUM(P119:P137)","v":0},null,{"$f":"SUM(R119:R137)","v":0},null,{"$f":"SUM(T119:T137)","v":0},null,{"$f":"SUM(V119:V137)","v":0},null,{"$f":"SUM(X119:X137)","v":0},null,{"$f":"SUM(Z119:Z137)","v":0},null,{"$f":"SUM(AB119:AB137)","v":0},null,{"$f":"SUM(AD119:AD137)","v":0},null,{"$f":"SUM(AF119:AF137)","v":0},null,{"$f":"SUM(AH119:AH137)","v":0},null,{"$f":"SUM(AJ119:AJ137)","v":0},null,{"$f":"SUM(AL119:AL137)","v":0},null,{"$f":"SUM(AN119:AN137)","v":0},null,{"$f":"SUM(AP119:AP137)","v":0},null,{"$f":"SUM(AR119:AR137)","v":0},null,{"$f":"SUM(AT119:AT137)","v":0},null,{"$f":"SUM(AV119:AV137)","v":0},null,{"$f":"SUM(AX119:AX137)","v":0},null,{"$f":"SUM(AZ119:AZ137)","v":0},null,{"$f":"SUM(BB119:BB137)","v":0},{"$f":"SUM(E138:BB138)","v":0}]
["TOTAL WORKDAYS",null,null,null,null,{"$f":"F138/8","v":0},null,{"$f":"H138/8","v":0},null,{"$f":"J138/8","v":0},null,{"$f":"L138/8","v":0},null,{"$f":"N138/8","v":0},null,{"$f":"P138/8","v":0},null,{"$f":"R138/8","v":0},null,{"$f":"T138/8","v":0},null,{"$f":"V138/8","v":0},null,{"$f":"X138/8","v":0},null,{"$f":"Z138/8","v":0},null,{"$f":"AB138/8","v":0},null,{"$f":"AD138/8","v":0},null,0,null,{"$f":"AH138/8","v":0},null,0,null,{"$f":"AL138/8","v":0},null,0,null,{"$f":"AP138/8","v":0},null,0,null,{"$f":"AT138/8","v":0},null,{"$f":"AV138/8","v":0},null,{"$f":"AX138/8","v":0},null,{"$f":"AZ138/8","v":0},null,{"$f":"BB138/8","v":0},{"$f":"SUM(E139:BB139)","v":0}]
["TOTAL RAW LABOR",null,null,null,null,{"$f":"$E$13*F138","v":0},null,{"$f":"$G$13*H138","v":0},null,{"$f":"$I$13*J138","v":0},null,{"$f":"$K$13*L138","v":0},null,{"$f":"$M$13*N138","v":0},null,{"$f":"$O$13*P138","v":0},null,{"$f":"$Q$13*R138","v":0},null,{"$f":"$S$13*T138","v":0},null,{"$f":"$U$13*V138","v":0},null,{"$f":"$W$13*X138","v":0},null,{"$f":"$Y$13*Z138","v":0},null,{"$f":"$AA$13*AB138","v":0},null,{"$f":"$AC$13*AD138","v":0},null,{"$f":"$AC$13*AF138","v":0},null,{"$f":"$AC$13*AH138","v":0},null,{"$f":"$AC$13*AJ138","v":0},null,{"$f":"$AC$13*AL138","v":0},null,{"$f":"$AC$13*AN138","v":0},null,{"$f":"$AC$13*AP138","v":0},null,{"$f":"$AC$13*AR138","v":0},null,{"$f":"$AC$13*AT138","v":0},null,{"$f":"$AC$13*AV138","v":0},null,{"$f":"$AC$13*AX138","v":0},null,{"$f":"$AC$13*AZ138","v":0},null,{"$f":"$AC$13*BB138","v":0},{"$f":"SUM(E140:BB140)","v":0}]
["Task 5.0     ","FIELD EQUIPMENT INVENTORIES"]
[5.0999999999999996,"Existing Data Collection",null,null,{"$f":"IF($C$142=\"\",\"\",F142/$C$142)","v":""},null,{"$f":"IF($C$142=\"\",\"\",H142/$C$142)","v":""},null,{"$f":"IF($C$142=\"\",\"\",J142/$C$142)","v":""},null,{"$f":"IF($C$142=\"\",\"\",L142/$C$142)","v":""},null,{"$f":"IF($C$142=\"\",\"\",N142/$C$142)","v":""},null,{"$f":"IF($C$142=\"\",\"\",P142/$C$142)","v":""},null,{"$f":"IF($C$142=\"\",\"\",R142/$C$142)","v":""},null,{"$f":"IF($C$142=\"\",\"\",T142/$C$142)","v":""},null,{"$f":"IF($C$142=\"\",\"\",V142/$C$142)","v":""},null,{"$f":"IF($C$142=\"\",\"\",X142/$C$142)","v":""},null,{"$f":"IF($C$142=\"\",\"\",Z142/$C$142)","v":""},null,{"$f":"IF($C$142=\"\",\"\",AB142/$C$142)","v":""},null,{"$f":"IF($C$142=\"\",\"\",AD142/$C$142)","v":""},null,{"$f":"IF($C$142=\"\",\"\",AF142/$C$142)","v":""},null,{"$f":"IF($C$142=\"\",\"\",AH142/$C$142)","v":""},null,{"$f":"IF($C$142=\"\",\"\",AJ142/$C$142)","v":""},null,{"$f":"IF($C$142=\"\",\"\",AL142/$C$142)","v":""},null,{"$f":"IF($C$142=\"\",\"\",AN142/$C$142)","v":""},null,{"$f":"IF($C$142=\"\",\"\",AP142/$C$142)","v":""},null,{"$f":"IF($C$142=\"\",\"\",AR142/$C$142)","v":""},null,{"$f":"IF($C$142=\"\",\"\",AT142/$C$142)","v":""},null,{"$f":"IF($C$142=\"\",\"\",AV142/$C$142)","v":""},null,{"$f":"IF($C$142=\"\",\"\",AX142/$C$142)","v":""},null,{"$f":"IF($C$142=\"\",\"\",AZ142/$C$142)","v":""},null,{"$f":"IF($C$142=\"\",\"\",BB142/$C$142)","v":""},null,{"$f":"SUM(BB142,AZ142,AX142,AV142,AT142,AR142,AP142,AN142,AL142,AJ142,AH142,AF142,AD142,AB142,Z142,X142,V142,T142,R142,P142,N142,L142,J142,H142,F142)","v":0}]
[5.2,"Signal Inventories"]
["    5.2.1","    Inventory Existing NCDOT Signals",null,null,{"$f":"IF($C$144=\"\",\"\",F144/$C$144)","v":""},null,{"$f":"IF($C$144=\"\",\"\",H144/$C$144)","v":""},null,{"$f":"IF($C$144=\"\",\"\",J144/$C$144)","v":""},null,{"$f":"IF($C$144=\"\",\"\",L144/$C$144)","v":""},null,{"$f":"IF($C$144=\"\",\"\",N144/$C$144)","v":""},null,{"$f":"IF($C$144=\"\",\"\",P144/$C$144)","v":""},null,{"$f":"IF($C$144=\"\",\"\",R144/$C$144)","v":""},null,{"$f":"IF($C$144=\"\",\"\",T144/$C$144)","v":""},null,{"$f":"IF($C$144=\"\",\"\",V144/$C$144)","v":""},null,{"$f":"IF($C$144=\"\",\"\",X144/$C$144)","v":""},null,{"$f":"IF($C$144=\"\",\"\",Z144/$C$144)","v":""},null,{"$f":"IF($C$144=\"\",\"\",AB144/$C$144)","v":""},null,{"$f":"IF($C$144=\"\",\"\",AD144/$C$144)","v":""},null,{"$f":"IF($C$144=\"\",\"\",AF144/$C$144)","v":""},null,{"$f":"IF($C$144=\"\",\"\",AH144/$C$144)","v":""},null,{"$f":"IF($C$144=\"\",\"\",AJ144/$C$144)","v":""},null,{"$f":"IF($C$144=\"\",\"\",AL144/$C$144)","v":""},null,{"$f":"IF($C$144=\"\",\"\",AN144/$C$144)","v":""},null,{"$f":"IF($C$144=\"\",\"\",AP144/$C$144)","v":""},null,{"$f":"IF($C$144=\"\",\"\",AR144/$C$144)","v":""},null,{"$f":"IF($C$144=\"\",\"\",AT144/$C$144)","v":""},null,{"$f":"IF($C$144=\"\",\"\",AV144/$C$144)","v":""},null,{"$f":"IF($C$144=\"\",\"\",AX144/$C$144)","v":""},null,{"$f":"IF($C$144=\"\",\"\",AZ144/$C$144)","v":""},null,{"$f":"IF($C$144=\"\",\"\",BB144/$C$144)","v":""},null,{"$f":"SUM(BB144,AZ144,AX144,AV144,AT144,AR144,AP144,AN144,AL144,AJ144,AH144,AF144,AD144,AB144,Z144,X144,V144,T144,R144,P144,N144,L144,J144,H144,F144)","v":0}]
["    5.2.2","    Inventory Existing City Signals",null,null,{"$f":"IF($C$145=\"\",\"\",F145/$C$145)","v":""},null,{"$f":"IF($C$145=\"\",\"\",H145/$C$145)","v":""},null,{"$f":"IF($C$145=\"\",\"\",J145/$C$145)","v":""},null,{"$f":"IF($C$145=\"\",\"\",L145/$C$145)","v":""},null,{"$f":"IF($C$145=\"\",\"\",N145/$C$145)","v":""},null,{"$f":"IF($C$145=\"\",\"\",P145/$C$145)","v":""},null,{"$f":"IF($C$145=\"\",\"\",R145/$C$145)","v":""},null,{"$f":"IF($C$145=\"\",\"\",T145/$C$145)","v":""},null,{"$f":"IF($C$145=\"\",\"\",V145/$C$145)","v":""},null,{"$f":"IF($C$145=\"\",\"\",X145/$C$145)","v":""},null,{"$f":"IF($C$145=\"\",\"\",Z145/$C$145)","v":""},null,{"$f":"IF($C$145=\"\",\"\",AB145/$C$145)","v":""},null,{"$f":"IF($C$145=\"\",\"\",AD145/$C$145)","v":""},null,{"$f":"IF($C$145=\"\",\"\",AF145/$C$145)","v":""},null,{"$f":"IF($C$145=\"\",\"\",AH145/$C$145)","v":""},null,{"$f":"IF($C$145=\"\",\"\",AJ145/$C$145)","v":""},null,{"$f":"IF($C$145=\"\",\"\",AL145/$C$145)","v":""},null,{"$f":"IF($C$145=\"\",\"\",AN145/$C$145)","v":""},null,{"$f":"IF($C$145=\"\",\"\",AP145/$C$145)","v":""},null,{"$f":"IF($C$145=\"\",\"\",AR145/$C$145)","v":""},null,{"$f":"IF($C$145=\"\",\"\",AT145/$C$145)","v":""},null,{"$f":"IF($C$145=\"\",\"\",AV145/$C$145)","v":""},null,{"$f":"IF($C$145=\"\",\"\",AX145/$C$145)","v":""},null,{"$f":"IF($C$145=\"\",\"\",AZ145/$C$145)","v":""},null,{"$f":"IF($C$145=\"\",\"\",BB145/$C$145)","v":""},null,0]
["    5.2.3",null,null,null,{"$f":"IF($C$146=\"\",\"\",F146/$C$146)","v":""},null,{"$f":"IF($C$146=\"\",\"\",H146/$C$146)","v":""},null,{"$f":"IF($C$146=\"\",\"\",J146/$C$146)","v":""},null,{"$f":"IF($C$146=\"\",\"\",L146/$C$146)","v":""},null,{"$f":"IF($C$146=\"\",\"\",N146/$C$146)","v":""},null,{"$f":"IF($C$146=\"\",\"\",P146/$C$146)","v":""},null,{"$f":"IF($C$146=\"\",\"\",R146/$C$146)","v":""},null,{"$f":"IF($C$146=\"\",\"\",T146/$C$146)","v":""},null,{"$f":"IF($C$146=\"\",\"\",V146/$C$146)","v":""},null,{"$f":"IF($C$146=\"\",\"\",X146/$C$146)","v":""},null,{"$f":"IF($C$146=\"\",\"\",Z146/$C$146)","v":""},null,{"$f":"IF($C$146=\"\",\"\",AB146/$C$146)","v":""},null,{"$f":"IF($C$146=\"\",\"\",AD146/$C$146)","v":""},null,{"$f":"IF($C$146=\"\",\"\",AF146/$C$146)","v":""},null,{"$f":"IF($C$146=\"\",\"\",AH146/$C$146)","v":""},null,{"$f":"IF($C$146=\"\",\"\",AJ146/$C$146)","v":""},null,{"$f":"IF($C$146=\"\",\"\",AL146/$C$146)","v":""},null,{"$f":"IF($C$146=\"\",\"\",AN146/$C$146)","v":""},null,{"$f":"IF($C$146=\"\",\"\",AP146/$C$146)","v":""},null,{"$f":"IF($C$146=\"\",\"\",AR146/$C$146)","v":""},null,{"$f":"IF($C$146=\"\",\"\",AT146/$C$146)","v":""},null,{"$f":"IF($C$146=\"\",\"\",AV146/$C$146)","v":""},null,{"$f":"IF($C$146=\"\",\"\",AX146/$C$146)","v":""},null,{"$f":"IF($C$146=\"\",\"\",AZ146/$C$146)","v":""},null,{"$f":"IF($C$146=\"\",\"\",BB146/$C$146)","v":""},null,0]
["    5.2.4",null,null,null,{"$f":"IF($C$147=\"\",\"\",F147/$C$147)","v":""},null,{"$f":"IF($C$147=\"\",\"\",H147/$C$147)","v":""},null,{"$f":"IF($C$147=\"\",\"\",J147/$C$147)","v":""},null,{"$f":"IF($C$147=\"\",\"\",L147/$C$147)","v":""},null,{"$f":"IF($C$147=\"\",\"\",N147/$C$147)","v":""},null,{"$f":"IF($C$147=\"\",\"\",P147/$C$147)","v":""},null,{"$f":"IF($C$147=\"\",\"\",R147/$C$147)","v":""},null,{"$f":"IF($C$147=\"\",\"\",T147/$C$147)","v":""},null,{"$f":"IF($C$147=\"\",\"\",V147/$C$147)","v":""},null,{"$f":"IF($C$147=\"\",\"\",X147/$C$147)","v":""},null,{"$f":"IF($C$147=\"\",\"\",Z147/$C$147)","v":""},null,{"$f":"IF($C$147=\"\",\"\",AB147/$C$147)","v":""},null,{"$f":"IF($C$147=\"\",\"\",AD147/$C$147)","v":""},null,{"$f":"IF($C$147=\"\",\"\",AF147/$C$147)","v":""},null,{"$f":"IF($C$147=\"\",\"\",AH147/$C$147)","v":""},null,{"$f":"IF($C$147=\"\",\"\",AJ147/$C$147)","v":""},null,{"$f":"IF($C$147=\"\",\"\",AL147/$C$147)","v":""},null,{"$f":"IF($C$147=\"\",\"\",AN147/$C$147)","v":""},null,{"$f":"IF($C$147=\"\",\"\",AP147/$C$147)","v":""},null,{"$f":"IF($C$147=\"\",\"\",AR147/$C$147)","v":""},null,{"$f":"IF($C$147=\"\",\"\",AT147/$C$147)","v":""},null,{"$f":"IF($C$147=\"\",\"\",AV147/$C$147)","v":""},null,{"$f":"IF($C$147=\"\",\"\",AX147/$C$147)","v":""},null,{"$f":"IF($C$147=\"\",\"\",AZ147/$C$147)","v":""},null,{"$f":"IF($C$147=\"\",\"\",BB147/$C$147)","v":""},null,0]
["    5.2.5",null,null,null,{"$f":"IF($C$148=\"\",\"\",F148/$C$148)","v":""},null,{"$f":"IF($C$148=\"\",\"\",H148/$C$148)","v":""},null,{"$f":"IF($C$148=\"\",\"\",J148/$C$148)","v":""},null,{"$f":"IF($C$148=\"\",\"\",L148/$C$148)","v":""},null,{"$f":"IF($C$148=\"\",\"\",N148/$C$148)","v":""},null,{"$f":"IF($C$148=\"\",\"\",P148/$C$148)","v":""},null,{"$f":"IF($C$148=\"\",\"\",R148/$C$148)","v":""},null,{"$f":"IF($C$148=\"\",\"\",T148/$C$148)","v":""},null,{"$f":"IF($C$148=\"\",\"\",V148/$C$148)","v":""},null,{"$f":"IF($C$148=\"\",\"\",X148/$C$148)","v":""},null,{"$f":"IF($C$148=\"\",\"\",Z148/$C$148)","v":""},null,{"$f":"IF($C$148=\"\",\"\",AB148/$C$148)","v":""},null,{"$f":"IF($C$148=\"\",\"\",AD148/$C$148)","v":""},null,{"$f":"IF($C$148=\"\",\"\",AF148/$C$148)","v":""},null,{"$f":"IF($C$148=\"\",\"\",AH148/$C$148)","v":""},null,{"$f":"IF($C$148=\"\",\"\",AJ148/$C$148)","v":""},null,{"$f":"IF($C$148=\"\",\"\",AL148/$C$148)","v":""},null,{"$f":"IF($C$148=\"\",\"\",AN148/$C$148)","v":""},null,{"$f":"IF($C$148=\"\",\"\",AP148/$C$148)","v":""},null,{"$f":"IF($C$148=\"\",\"\",AR148/$C$148)","v":""},null,{"$f":"IF($C$148=\"\",\"\",AT148/$C$148)","v":""},null,{"$f":"IF($C$148=\"\",\"\",AV148/$C$148)","v":""},null,{"$f":"IF($C$148=\"\",\"\",AX148/$C$148)","v":""},null,{"$f":"IF($C$148=\"\",\"\",AZ148/$C$148)","v":""},null,{"$f":"IF($C$148=\"\",\"\",BB148/$C$148)","v":""},null,0]
[5.3,"Cabinet Replacement and Foundation Requirements",null,null,{"$f":"IF($C$149=\"\",\"\",F149/$C$149)","v":""},null,{"$f":"IF($C$149=\"\",\"\",H149/$C$149)","v":""},null,{"$f":"IF($C$149=\"\",\"\",J149/$C$149)","v":""},null,{"$f":"IF($C$149=\"\",\"\",L149/$C$149)","v":""},null,{"$f":"IF($C$149=\"\",\"\",N149/$C$149)","v":""},null,{"$f":"IF($C$149=\"\",\"\",P149/$C$149)","v":""},null,{"$f":"IF($C$149=\"\",\"\",R149/$C$149)","v":""},null,{"$f":"IF($C$149=\"\",\"\",T149/$C$149)","v":""},null,{"$f":"IF($C$149=\"\",\"\",V149/$C$149)","v":""},null,{"$f":"IF($C$149=\"\",\"\",X149/$C$149)","v":""},null,{"$f":"IF($C$149=\"\",\"\",Z149/$C$149)","v":""},null,{"$f":"IF($C$149=\"\",\"\",AB149/$C$149)","v":""},null,{"$f":"IF($C$149=\"\",\"\",AD149/$C$149)","v":""},null,{"$f":"IF($C$149=\"\",\"\",AF149/$C$149)","v":""},null,{"$f":"IF($C$149=\"\",\"\",AH149/$C$149)","v":""},null,{"$f":"IF($C$149=\"\",\"\",AJ149/$C$149)","v":""},null,{"$f":"IF($C$149=\"\",\"\",AL149/$C$149)","v":""},null,{"$f":"IF($C$149=\"\",\"\",AN149/$C$149)","v":""},null,{"$f":"IF($C$149=\"\",\"\",AP149/$C$149)","v":""},null,{"$f":"IF($C$149=\"\",\"\",AR149/$C$149)","v":""},null,{"$f":"IF($C$149=\"\",\"\",AT149/$C$149)","v":""},null,{"$f":"IF($C$149=\"\",\"\",AV149/$C$149)","v":""},null,{"$f":"IF($C$149=\"\",\"\",AX149/$C$149)","v":""},null,{"$f":"IF($C$149=\"\",\"\",AZ149/$C$149)","v":""},null,{"$f":"IF($C$149=\"\",\"\",BB149/$C$149)","v":""},null,0]
[5.4,"Inventory CCTV Camera Assemblies",null,null,{"$f":"IF($C$150=\"\",\"\",F150/$C$150)","v":""},null,{"$f":"IF($C$150=\"\",\"\",H150/$C$150)","v":""},null,{"$f":"IF($C$150=\"\",\"\",J150/$C$150)","v":""},null,{"$f":"IF($C$150=\"\",\"\",L150/$C$150)","v":""},null,{"$f":"IF($C$150=\"\",\"\",N150/$C$150)","v":""},null,{"$f":"IF($C$150=\"\",\"\",P150/$C$150)","v":""},null,{"$f":"IF($C$150=\"\",\"\",R150/$C$150)","v":""},null,{"$f":"IF($C$150=\"\",\"\",T150/$C$150)","v":""},null,{"$f":"IF($C$150=\"\",\"\",V150/$C$150)","v":""},null,{"$f":"IF($C$150=\"\",\"\",X150/$C$150)","v":""},null,{"$f":"IF($C$150=\"\",\"\",Z150/$C$150)","v":""},null,{"$f":"IF($C$150=\"\",\"\",AB150/$C$150)","v":""},null,{"$f":"IF($C$150=\"\",\"\",AD150/$C$150)","v":""},null,{"$f":"IF($C$150=\"\",\"\",AF150/$C$150)","v":""},null,{"$f":"IF($C$150=\"\",\"\",AH150/$C$150)","v":""},null,{"$f":"IF($C$150=\"\",\"\",AJ150/$C$150)","v":""},null,{"$f":"IF($C$150=\"\",\"\",AL150/$C$150)","v":""},null,{"$f":"IF($C$150=\"\",\"\",AN150/$C$150)","v":""},null,{"$f":"IF($C$150=\"\",\"\",AP150/$C$150)","v":""},null,{"$f":"IF($C$150=\"\",\"\",AR150/$C$150)","v":""},null,{"$f":"IF($C$150=\"\",\"\",AT150/$C$150)","v":""},null,{"$f":"IF($C$150=\"\",\"\",AV150/$C$150)","v":""},null,{"$f":"IF($C$150=\"\",\"\",AX150/$C$150)","v":""},null,{"$f":"IF($C$150=\"\",\"\",AZ150/$C$150)","v":""},null,{"$f":"IF($C$150=\"\",\"\",BB150/$C$150)","v":""},null,0]
[5.5,"Compile and Summarize Inventory Data",null,null,{"$f":"IF($C$151=\"\",\"\",F151/$C$151)","v":""},null,{"$f":"IF($C$151=\"\",\"\",H151/$C$151)","v":""},null,{"$f":"IF($C$151=\"\",\"\",J151/$C$151)","v":""},null,{"$f":"IF($C$151=\"\",\"\",L151/$C$151)","v":""},null,{"$f":"IF($C$151=\"\",\"\",N151/$C$151)","v":""},null,{"$f":"IF($C$151=\"\",\"\",P151/$C$151)","v":""},null,{"$f":"IF($C$151=\"\",\"\",R151/$C$151)","v":""},null,{"$f":"IF($C$151=\"\",\"\",T151/$C$151)","v":""},null,{"$f":"IF($C$151=\"\",\"\",V151/$C$151)","v":""},null,{"$f":"IF($C$151=\"\",\"\",X151/$C$151)","v":""},null,{"$f":"IF($C$151=\"\",\"\",Z151/$C$151)","v":""},null,{"$f":"IF($C$151=\"\",\"\",AB151/$C$151)","v":""},null,{"$f":"IF($C$151=\"\",\"\",AD151/$C$151)","v":""},null,{"$f":"IF($C$151=\"\",\"\",AF151/$C$151)","v":""},null,{"$f":"IF($C$151=\"\",\"\",AH151/$C$151)","v":""},null,{"$f":"IF($C$151=\"\",\"\",AJ151/$C$151)","v":""},null,{"$f":"IF($C$151=\"\",\"\",AL151/$C$151)","v":""},null,{"$f":"IF($C$151=\"\",\"\",AN151/$C$151)","v":""},null,{"$f":"IF($C$151=\"\",\"\",AP151/$C$151)","v":""},null,{"$f":"IF($C$151=\"\",\"\",AR151/$C$151)","v":""},null,{"$f":"IF($C$151=\"\",\"\",AT151/$C$151)","v":""},null,{"$f":"IF($C$151=\"\",\"\",AV151/$C$151)","v":""},null,{"$f":"IF($C$151=\"\",\"\",AX151/$C$151)","v":""},null,{"$f":"IF($C$151=\"\",\"\",AZ151/$C$151)","v":""},null,{"$f":"IF($C$151=\"\",\"\",BB151/$C$151)","v":""},null,0]
[null,null,null,null,{"$f":"IF($C$152=\"\",\"\",F152/$C$152)","v":""},null,{"$f":"IF($C$152=\"\",\"\",H152/$C$152)","v":""},null,{"$f":"IF($C$152=\"\",\"\",J152/$C$152)","v":""},null,{"$f":"IF($C$152=\"\",\"\",L152/$C$152)","v":""},null,{"$f":"IF($C$152=\"\",\"\",N152/$C$152)","v":""},null,{"$f":"IF($C$152=\"\",\"\",P152/$C$152)","v":""},null,{"$f":"IF($C$152=\"\",\"\",R152/$C$152)","v":""},null,{"$f":"IF($C$152=\"\",\"\",T152/$C$152)","v":""},null,{"$f":"IF($C$152=\"\",\"\",V152/$C$152)","v":""},null,{"$f":"IF($C$152=\"\",\"\",X152/$C$152)","v":""},null,{"$f":"IF($C$152=\"\",\"\",Z152/$C$152)","v":""},null,{"$f":"IF($C$152=\"\",\"\",AB152/$C$152)","v":""},null,{"$f":"IF($C$152=\"\",\"\",AD152/$C$152)","v":""},null,{"$f":"IF($C$152=\"\",\"\",AF152/$C$152)","v":""},null,{"$f":"IF($C$152=\"\",\"\",AH152/$C$152)","v":""},null,{"$f":"IF($C$152=\"\",\"\",AJ152/$C$152)","v":""},null,{"$f":"IF($C$152=\"\",\"\",AL152/$C$152)","v":""},null,{"$f":"IF($C$152=\"\",\"\",AN152/$C$152)","v":""},null,{"$f":"IF($C$152=\"\",\"\",AP152/$C$152)","v":""},null,{"$f":"IF($C$152=\"\",\"\",AR152/$C$152)","v":""},null,{"$f":"IF($C$152=\"\",\"\",AT152/$C$152)","v":""},null,{"$f":"IF($C$152=\"\",\"\",AV152/$C$152)","v":""},null,{"$f":"IF($C$152=\"\",\"\",AX152/$C$152)","v":""},null,{"$f":"IF($C$152=\"\",\"\",AZ152/$C$152)","v":""},null,{"$f":"IF($C$152=\"\",\"\",BB152/$C$152)","v":""},null,0]
[null,null,null,null,{"$f":"IF($C$153=\"\",\"\",F153/$C$153)","v":""},null,{"$f":"IF($C$153=\"\",\"\",H153/$C$153)","v":""},null,{"$f":"IF($C$153=\"\",\"\",J153/$C$153)","v":""},null,{"$f":"IF($C$153=\"\",\"\",L153/$C$153)","v":""},null,{"$f":"IF($C$153=\"\",\"\",N153/$C$153)","v":""},null,{"$f":"IF($C$153=\"\",\"\",P153/$C$153)","v":""},null,{"$f":"IF($C$153=\"\",\"\",R153/$C$153)","v":""},null,{"$f":"IF($C$153=\"\",\"\",T153/$C$153)","v":""},null,{"$f":"IF($C$153=\"\",\"\",V153/$C$153)","v":""},null,{"$f":"IF($C$153=\"\",\"\",X153/$C$153)","v":""},null,{"$f":"IF($C$153=\"\",\"\",Z153/$C$153)","v":""},null,{"$f":"IF($C$153=\"\",\"\",AB153/$C$153)","v":""},null,{"$f":"IF($C$153=\"\",\"\",AD153/$C$153)","v":""},null,{"$f":"IF($C$153=\"\",\"\",AF153/$C$153)","v":""},null,{"$f":"IF($C$153=\"\",\"\",AH153/$C$153)","v":""},null,{"$f":"IF($C$153=\"\",\"\",AJ153/$C$153)","v":""},null,{"$f":"IF($C$153=\"\",\"\",AL153/$C$153)","v":""},null,{"$f":"IF($C$153=\"\",\"\",AN153/$C$153)","v":""},null,{"$f":"IF($C$153=\"\",\"\",AP153/$C$153)","v":""},null,{"$f":"IF($C$153=\"\",\"\",AR153/$C$153)","v":""},null,{"$f":"IF($C$153=\"\",\"\",AT153/$C$153)","v":""},null,{"$f":"IF($C$153=\"\",\"\",AV153/$C$153)","v":""},null,{"$f":"IF($C$153=\"\",\"\",AX153/$C$153)","v":""},null,{"$f":"IF($C$153=\"\",\"\",AZ153/$C$153)","v":""},null,{"$f":"IF($C$153=\"\",\"\",BB153/$C$153)","v":""},null,0]
[null,null,null,null,{"$f":"IF($C$154=\"\",\"\",F154/$C$154)","v":""},null,{"$f":"IF($C$154=\"\",\"\",H154/$C$154)","v":""},null,{"$f":"IF($C$154=\"\",\"\",J154/$C$154)","v":""},null,{"$f":"IF($C$154=\"\",\"\",L154/$C$154)","v":""},null,{"$f":"IF($C$154=\"\",\"\",N154/$C$154)","v":""},null,{"$f":"IF($C$154=\"\",\"\",P154/$C$154)","v":""},null,{"$f":"IF($C$154=\"\",\"\",R154/$C$154)","v":""},null,{"$f":"IF($C$154=\"\",\"\",T154/$C$154)","v":""},null,{"$f":"IF($C$154=\"\",\"\",V154/$C$154)","v":""},null,{"$f":"IF($C$154=\"\",\"\",X154/$C$154)","v":""},null,{"$f":"IF($C$154=\"\",\"\",Z154/$C$154)","v":""},null,{"$f":"IF($C$154=\"\",\"\",AB154/$C$154)","v":""},null,{"$f":"IF($C$154=\"\",\"\",AD154/$C$154)","v":""},null,{"$f":"IF($C$154=\"\",\"\",AF154/$C$154)","v":""},null,{"$f":"IF($C$154=\"\",\"\",AH154/$C$154)","v":""},null,{"$f":"IF($C$154=\"\",\"\",AJ154/$C$154)","v":""},null,{"$f":"IF($C$154=\"\",\"\",AL154/$C$154)","v":""},null,{"$f":"IF($C$154=\"\",\"\",AN154/$C$154)","v":""},null,{"$f":"IF($C$154=\"\",\"\",AP154/$C$154)","v":""},null,{"$f":"IF($C$154=\"\",\"\",AR154/$C$154)","v":""},null,{"$f":"IF($C$154=\"\",\"\",AT154/$C$154)","v":""},null,{"$f":"IF($C$154=\"\",\"\",AV154/$C$154)","v":""},null,{"$f":"IF($C$154=\"\",\"\",AX154/$C$154)","v":""},null,{"$f":"IF($C$154=\"\",\"\",AZ154/$C$154)","v":""},null,{"$f":"IF($C$154=\"\",\"\",BB154/$C$154)","v":""},null,0]
[null,null,null,null,{"$f":"IF($C$155=\"\",\"\",F155/$C$155)","v":""},null,{"$f":"IF($C$155=\"\",\"\",H155/$C$155)","v":""},null,{"$f":"IF($C$155=\"\",\"\",J155/$C$155)","v":""},null,{"$f":"IF($C$155=\"\",\"\",L155/$C$155)","v":""},null,{"$f":"IF($C$155=\"\",\"\",N155/$C$155)","v":""},null,{"$f":"IF($C$155=\"\",\"\",P155/$C$155)","v":""},null,{"$f":"IF($C$155=\"\",\"\",R155/$C$155)","v":""},null,{"$f":"IF($C$155=\"\",\"\",T155/$C$155)","v":""},null,{"$f":"IF($C$155=\"\",\"\",V155/$C$155)","v":""},null,{"$f":"IF($C$155=\"\",\"\",X155/$C$155)","v":""},null,{"$f":"IF($C$155=\"\",\"\",Z155/$C$155)","v":""},null,{"$f":"IF($C$155=\"\",\"\",AB155/$C$155)","v":""},null,{"$f":"IF($C$155=\"\",\"\",AD155/$C$155)","v":""},null,{"$f":"IF($C$155=\"\",\"\",AF155/$C$155)","v":""},null,{"$f":"IF($C$155=\"\",\"\",AH155/$C$155)","v":""},null,{"$f":"IF($C$155=\"\",\"\",AJ155/$C$155)","v":""},null,{"$f":"IF($C$155=\"\",\"\",AL155/$C$155)","v":""},null,{"$f":"IF($C$155=\"\",\"\",AN155/$C$155)","v":""},null,{"$f":"IF($C$155=\"\",\"\",AP155/$C$155)","v":""},null,{"$f":"IF($C$155=\"\",\"\",AR155/$C$155)","v":""},null,{"$f":"IF($C$155=\"\",\"\",AT155/$C$155)","v":""},null,{"$f":"IF($C$155=\"\",\"\",AV155/$C$155)","v":""},null,{"$f":"IF($C$155=\"\",\"\",AX155/$C$155)","v":""},null,{"$f":"IF($C$155=\"\",\"\",AZ155/$C$155)","v":""},null,{"$f":"IF($C$155=\"\",\"\",BB155/$C$155)","v":""},null,0]
[null,null,null,null,{"$f":"IF($C$156=\"\",\"\",F156/$C$156)","v":""},null,{"$f":"IF($C$156=\"\",\"\",H156/$C$156)","v":""},null,{"$f":"IF($C$156=\"\",\"\",J156/$C$156)","v":""},null,{"$f":"IF($C$156=\"\",\"\",L156/$C$156)","v":""},null,{"$f":"IF($C$156=\"\",\"\",N156/$C$156)","v":""},null,{"$f":"IF($C$156=\"\",\"\",P156/$C$156)","v":""},null,{"$f":"IF($C$156=\"\",\"\",R156/$C$156)","v":""},null,{"$f":"IF($C$156=\"\",\"\",T156/$C$156)","v":""},null,{"$f":"IF($C$156=\"\",\"\",V156/$C$156)","v":""},null,{"$f":"IF($C$156=\"\",\"\",X156/$C$156)","v":""},null,{"$f":"IF($C$156=\"\",\"\",Z156/$C$156)","v":""},null,{"$f":"IF($C$156=\"\",\"\",AB156/$C$156)","v":""},null,{"$f":"IF($C$156=\"\",\"\",AD156/$C$156)","v":""},null,{"$f":"IF($C$156=\"\",\"\",AF156/$C$156)","v":""},null,{"$f":"IF($C$156=\"\",\"\",AH156/$C$156)","v":""},null,{"$f":"IF($C$156=\"\",\"\",AJ156/$C$156)","v":""},null,{"$f":"IF($C$156=\"\",\"\",AL156/$C$156)","v":""},null,{"$f":"IF($C$156=\"\",\"\",AN156/$C$156)","v":""},null,{"$f":"IF($C$156=\"\",\"\",AP156/$C$156)","v":""},null,{"$f":"IF($C$156=\"\",\"\",AR156/$C$156)","v":""},null,{"$f":"IF($C$156=\"\",\"\",AT156/$C$156)","v":""},null,{"$f":"IF($C$156=\"\",\"\",AV156/$C$156)","v":""},null,{"$f":"IF($C$156=\"\",\"\",AX156/$C$156)","v":""},null,{"$f":"IF($C$156=\"\",\"\",AZ156/$C$156)","v":""},null,{"$f":"IF($C$156=\"\",\"\",BB156/$C$156)","v":""},null,0]
[null,null,null,null,{"$f":"IF($C$157=\"\",\"\",F157/$C$157)","v":""},null,{"$f":"IF($C$157=\"\",\"\",H157/$C$157)","v":""},null,{"$f":"IF($C$157=\"\",\"\",J157/$C$157)","v":""},null,{"$f":"IF($C$157=\"\",\"\",L157/$C$157)","v":""},null,{"$f":"IF($C$157=\"\",\"\",N157/$C$157)","v":""},null,{"$f":"IF($C$157=\"\",\"\",P157/$C$157)","v":""},null,{"$f":"IF($C$157=\"\",\"\",R157/$C$157)","v":""},null,{"$f":"IF($C$157=\"\",\"\",T157/$C$157)","v":""},null,{"$f":"IF($C$157=\"\",\"\",V157/$C$157)","v":""},null,{"$f":"IF($C$157=\"\",\"\",X157/$C$157)","v":""},null,{"$f":"IF($C$157=\"\",\"\",Z157/$C$157)","v":""},null,{"$f":"IF($C$157=\"\",\"\",AB157/$C$157)","v":""},null,{"$f":"IF($C$157=\"\",\"\",AD157/$C$157)","v":""},null,{"$f":"IF($C$157=\"\",\"\",AF157/$C$157)","v":""},null,{"$f":"IF($C$157=\"\",\"\",AH157/$C$157)","v":""},null,{"$f":"IF($C$157=\"\",\"\",AJ157/$C$157)","v":""},null,{"$f":"IF($C$157=\"\",\"\",AL157/$C$157)","v":""},null,{"$f":"IF($C$157=\"\",\"\",AN157/$C$157)","v":""},null,{"$f":"IF($C$157=\"\",\"\",AP157/$C$157)","v":""},null,{"$f":"IF($C$157=\"\",\"\",AR157/$C$157)","v":""},null,{"$f":"IF($C$157=\"\",\"\",AT157/$C$157)","v":""},null,{"$f":"IF($C$157=\"\",\"\",AV157/$C$157)","v":""},null,{"$f":"IF($C$157=\"\",\"\",AX157/$C$157)","v":""},null,{"$f":"IF($C$157=\"\",\"\",AZ157/$C$157)","v":""},null,{"$f":"IF($C$157=\"\",\"\",BB157/$C$157)","v":""},null,0]
[null,null,null,null,{"$f":"IF($C$158=\"\",\"\",F158/$C$158)","v":""},null,{"$f":"IF($C$158=\"\",\"\",H158/$C$158)","v":""},null,{"$f":"IF($C$158=\"\",\"\",J158/$C$158)","v":""},null,{"$f":"IF($C$158=\"\",\"\",L158/$C$158)","v":""},null,{"$f":"IF($C$158=\"\",\"\",N158/$C$158)","v":""},null,{"$f":"IF($C$158=\"\",\"\",P158/$C$158)","v":""},null,{"$f":"IF($C$158=\"\",\"\",R158/$C$158)","v":""},null,{"$f":"IF($C$158=\"\",\"\",T158/$C$158)","v":""},null,{"$f":"IF($C$158=\"\",\"\",V158/$C$158)","v":""},null,{"$f":"IF($C$158=\"\",\"\",X158/$C$158)","v":""},null,{"$f":"IF($C$158=\"\",\"\",Z158/$C$158)","v":""},null,{"$f":"IF($C$158=\"\",\"\",AB158/$C$158)","v":""},null,{"$f":"IF($C$158=\"\",\"\",AD158/$C$158)","v":""},null,{"$f":"IF($C$158=\"\",\"\",AF158/$C$158)","v":""},null,{"$f":"IF($C$158=\"\",\"\",AH158/$C$158)","v":""},null,{"$f":"IF($C$158=\"\",\"\",AJ158/$C$158)","v":""},null,{"$f":"IF($C$158=\"\",\"\",AL158/$C$158)","v":""},null,{"$f":"IF($C$158=\"\",\"\",AN158/$C$158)","v":""},null,{"$f":"IF($C$158=\"\",\"\",AP158/$C$158)","v":""},null,{"$f":"IF($C$158=\"\",\"\",AR158/$C$158)","v":""},null,{"$f":"IF($C$158=\"\",\"\",AT158/$C$158)","v":""},null,{"$f":"IF($C$158=\"\",\"\",AV158/$C$158)","v":""},null,{"$f":"IF($C$158=\"\",\"\",AX158/$C$158)","v":""},null,{"$f":"IF($C$158=\"\",\"\",AZ158/$C$158)","v":""},null,{"$f":"IF($C$158=\"\",\"\",BB158/$C$158)","v":""},null,{"$f":"SUM(BB158,AZ158,AX158,AV158,AT158,AR158,AP158,AN158,AL158,AJ158,AH158,AF158,AD158,AB158,Z158,X158,V158,T158,R158,P158,N158,L158,J158,H158,F158)","v":0}]
["TOTAL HOURS",null,null,null,null,{"$f":"SUM(F142:F158)","v":0},null,{"$f":"SUM(H142:H158)","v":0},null,{"$f":"SUM(J142:J158)","v":0},null,{"$f":"SUM(L142:L158)","v":0},null,{"$f":"SUM(N142:N158)","v":0},null,{"$f":"SUM(P142:P158)","v":0},null,{"$f":"SUM(R142:R158)","v":0},null,{"$f":"SUM(T142:T158)","v":0},null,{"$f":"SUM(V142:V158)","v":0},null,{"$f":"SUM(X142:X158)","v":0},null,{"$f":"SUM(Z142:Z158)","v":0},null,{"$f":"SUM(AB142:AB158)","v":0},null,{"$f":"SUM(AD142:AD158)","v":0},null,{"$f":"SUM(AF142:AF158)","v":0},null,{"$f":"SUM(AH142:AH158)","v":0},null,{"$f":"SUM(AJ142:AJ158)","v":0},null,{"$f":"SUM(AL142:AL158)","v":0},null,{"$f":"SUM(AN142:AN158)","v":0},null,{"$f":"SUM(AP142:AP158)","v":0},null,{"$f":"SUM(AR142:AR158)","v":0},null,{"$f":"SUM(AT142:AT158)","v":0},null,{"$f":"SUM(AV142:AV158)","v":0},null,{"$f":"SUM(AX142:AX158)","v":0},null,{"$f":"SUM(AZ142:AZ158)","v":0},null,{"$f":"SUM(BB142:BB158)","v":0},{"$f":"SUM(E159:BB159)","v":0}]
["TOTAL WORKDAYS",null,null,null,null,{"$f":"F159/8","v":0},null,{"$f":"H159/8","v":0},null,{"$f":"J159/8","v":0},null,{"$f":"L159/8","v":0},null,{"$f":"N159/8","v":0},null,{"$f":"P159/8","v":0},null,{"$f":"R159/8","v":0},null,{"$f":"T159/8","v":0},null,{"$f":"V159/8","v":0},null,{"$f":"X159/8","v":0},null,{"$f":"Z159/8","v":0},null,{"$f":"AB159/8","v":0},null,{"$f":"AD159/8","v":0},null,0,null,{"$f":"AH159/8","v":0},null,0,null,{"$f":"AL159/8","v":0},null,0,null,{"$f":"AP159/8","v":0},null,0,null,{"$f":"AT159/8","v":0},null,{"$f":"AV159/8","v":0},null,{"$f":"AX159/8","v":0},null,{"$f":"AZ159/8","v":0},null,{"$f":"BB159/8","v":0},{"$f":"SUM(E160:BB160)","v":0}]
["TOTAL RAW LABOR",null,null,null,null,{"$f":"$E$13*F159","v":0},null,{"$f":"$G$13*H159","v":0},null,{"$f":"$I$13*J159","v":0},null,{"$f":"$K$13*L159","v":0},null,{"$f":"$M$13*N159","v":0},null,{"$f":"$O$13*P159","v":0},null,{"$f":"$Q$13*R159","v":0},null,{"$f":"$S$13*T159","v":0},null,{"$f":"$U$13*V159","v":0},null,{"$f":"$W$13*X159","v":0},null,{"$f":"$Y$13*Z159","v":0},null,{"$f":"$AA$13*AB159","v":0},null,{"$f":"$AC$13*AD159","v":0},null,{"$f":"$AC$13*AF159","v":0},null,{"$f":"$AC$13*AH159","v":0},null,{"$f":"$AC$13*AJ159","v":0},null,{"$f":"$AC$13*AL159","v":0},null,{"$f":"$AC$13*AN159","v":0},null,{"$f":"$AC$13*AP159","v":0},null,{"$f":"$AC$13*AR159","v":0},null,{"$f":"$AC$13*AT159","v":0},null,{"$f":"$AC$13*AV159","v":0},null,{"$f":"$AC$13*AX159","v":0},null,{"$f":"$AC$13*AZ159","v":0},null,{"$f":"$AC$13*BB159","v":0},{"$f":"SUM(E161:BB161)","v":0}]
["Task 6.0     ","CCTV MONITORING SYSTEM"]
[6.1,"Identification of Preliminary CCTV Locations",null,null,{"$f":"IF($C$163=\"\",\"\",F163/$C$163)","v":""},null,{"$f":"IF($C$163=\"\",\"\",H163/$C$163)","v":""},null,{"$f":"IF($C$163=\"\",\"\",J163/$C$163)","v":""},null,{"$f":"IF($C$163=\"\",\"\",L163/$C$163)","v":""},null,{"$f":"IF($C$163=\"\",\"\",N163/$C$163)","v":""},null,{"$f":"IF($C$163=\"\",\"\",P163/$C$163)","v":""},null,{"$f":"IF($C$163=\"\",\"\",R163/$C$163)","v":""},null,{"$f":"IF($C$163=\"\",\"\",T163/$C$163)","v":""},null,{"$f":"IF($C$163=\"\",\"\",V163/$C$163)","v":""},null,{"$f":"IF($C$163=\"\",\"\",X163/$C$163)","v":""},null,{"$f":"IF($C$163=\"\",\"\",Z163/$C$163)","v":""},null,{"$f":"IF($C$163=\"\",\"\",AB163/$C$163)","v":""},null,{"$f":"IF($C$163=\"\",\"\",AD163/$C$163)","v":""},null,{"$f":"IF($C$163=\"\",\"\",AF163/$C$163)","v":""},null,{"$f":"IF($C$163=\"\",\"\",AH163/$C$163)","v":""},null,{"$f":"IF($C$163=\"\",\"\",AJ163/$C$163)","v":""},null,{"$f":"IF($C$163=\"\",\"\",AL163/$C$163)","v":""},null,{"$f":"IF($C$163=\"\",\"\",AN163/$C$163)","v":""},null,{"$f":"IF($C$163=\"\",\"\",AP163/$C$163)","v":""},null,{"$f":"IF($C$163=\"\",\"\",AR163/$C$163)","v":""},null,{"$f":"IF($C$163=\"\",\"\",AT163/$C$163)","v":""},null,{"$f":"IF($C$163=\"\",\"\",AV163/$C$163)","v":""},null,{"$f":"IF($C$163=\"\",\"\",AX163/$C$163)","v":""},null,{"$f":"IF($C$163=\"\",\"\",AZ163/$C$163)","v":""},null,{"$f":"IF($C$163=\"\",\"\",BB163/$C$163)","v":""},null,{"$f":"SUM(BB163,AZ163,AX163,AV163,AT163,AR163,AP163,AN163,AL163,AJ163,AH163,AF163,AD163,AB163,Z163,X163,V163,T163,R163,P163,N163,L163,J163,H163,F163)","v":0}]
[6.2,"Bucket Truck Surveys of Candidate Sites",null,null,{"$f":"IF($C$164=\"\",\"\",F164/$C$164)","v":""},null,{"$f":"IF($C$164=\"\",\"\",H164/$C$164)","v":""},null,{"$f":"IF($C$164=\"\",\"\",J164/$C$164)","v":""},null,{"$f":"IF($C$164=\"\",\"\",L164/$C$164)","v":""},null,{"$f":"IF($C$164=\"\",\"\",N164/$C$164)","v":""},null,{"$f":"IF($C$164=\"\",\"\",P164/$C$164)","v":""},null,{"$f":"IF($C$164=\"\",\"\",R164/$C$164)","v":""},null,{"$f":"IF($C$164=\"\",\"\",T164/$C$164)","v":""},null,{"$f":"IF($C$164=\"\",\"\",V164/$C$164)","v":""},null,{"$f":"IF($C$164=\"\",\"\",X164/$C$164)","v":""},null,{"$f":"IF($C$164=\"\",\"\",Z164/$C$164)","v":""},null,{"$f":"IF($C$164=\"\",\"\",AB164/$C$164)","v":""},null,{"$f":"IF($C$164=\"\",\"\",AD164/$C$164)","v":""},null,{"$f":"IF($C$164=\"\",\"\",AF164/$C$164)","v":""},null,{"$f":"IF($C$164=\"\",\"\",AH164/$C$164)","v":""},null,{"$f":"IF($C$164=\"\",\"\",AJ164/$C$164)","v":""},null,{"$f":"IF($C$164=\"\",\"\",AL164/$C$164)","v":""},null,{"$f":"IF($C$164=\"\",\"\",AN164/$C$164)","v":""},null,{"$f":"IF($C$164=\"\",\"\",AP164/$C$164)","v":""},null,{"$f":"IF($C$164=\"\",\"\",AR164/$C$164)","v":""},null,{"$f":"IF($C$164=\"\",\"\",AT164/$C$164)","v":""},null,{"$f":"IF($C$164=\"\",\"\",AV164/$C$164)","v":""},null,{"$f":"IF($C$164=\"\",\"\",AX164/$C$164)","v":""},null,{"$f":"IF($C$164=\"\",\"\",AZ164/$C$164)","v":""},null,{"$f":"IF($C$164=\"\",\"\",BB164/$C$164)","v":""},null,0]
[6.3,"Compile and Analyze Site Survey Data",null,null,{"$f":"IF($C$165=\"\",\"\",F165/$C$165)","v":""},null,{"$f":"IF($C$165=\"\",\"\",H165/$C$165)","v":""},null,{"$f":"IF($C$165=\"\",\"\",J165/$C$165)","v":""},null,{"$f":"IF($C$165=\"\",\"\",L165/$C$165)","v":""},null,{"$f":"IF($C$165=\"\",\"\",N165/$C$165)","v":""},null,{"$f":"IF($C$165=\"\",\"\",P165/$C$165)","v":""},null,{"$f":"IF($C$165=\"\",\"\",R165/$C$165)","v":""},null,{"$f":"IF($C$165=\"\",\"\",T165/$C$165)","v":""},null,{"$f":"IF($C$165=\"\",\"\",V165/$C$165)","v":""},null,{"$f":"IF($C$165=\"\",\"\",X165/$C$165)","v":""},null,{"$f":"IF($C$165=\"\",\"\",Z165/$C$165)","v":""},null,{"$f":"IF($C$165=\"\",\"\",AB165/$C$165)","v":""},null,{"$f":"IF($C$165=\"\",\"\",AD165/$C$165)","v":""},null,{"$f":"IF($C$165=\"\",\"\",AF165/$C$165)","v":""},null,{"$f":"IF($C$165=\"\",\"\",AH165/$C$165)","v":""},null,{"$f":"IF($C$165=\"\",\"\",AJ165/$C$165)","v":""},null,{"$f":"IF($C$165=\"\",\"\",AL165/$C$165)","v":""},null,{"$f":"IF($C$165=\"\",\"\",AN165/$C$165)","v":""},null,{"$f":"IF($C$165=\"\",\"\",AP165/$C$165)","v":""},null,{"$f":"IF($C$165=\"\",\"\",AR165/$C$165)","v":""},null,{"$f":"IF($C$165=\"\",\"\",AT165/$C$165)","v":""},null,{"$f":"IF($C$165=\"\",\"\",AV165/$C$165)","v":""},null,{"$f":"IF($C$165=\"\",\"\",AX165/$C$165)","v":""},null,{"$f":"IF($C$165=\"\",\"\",AZ165/$C$165)","v":""},null,{"$f":"IF($C$165=\"\",\"\",BB165/$C$165)","v":""},null,0]
[6.4,"Prepare CCTV Site Study Technical Memorandum",null,null,{"$f":"IF($C$166=\"\",\"\",F166/$C$166)","v":""},null,{"$f":"IF($C$166=\"\",\"\",H166/$C$166)","v":""},null,{"$f":"IF($C$166=\"\",\"\",J166/$C$166)","v":""},null,{"$f":"IF($C$166=\"\",\"\",L166/$C$166)","v":""},null,{"$f":"IF($C$166=\"\",\"\",N166/$C$166)","v":""},null,{"$f":"IF($C$166=\"\",\"\",P166/$C$166)","v":""},null,{"$f":"IF($C$166=\"\",\"\",R166/$C$166)","v":""},null,{"$f":"IF($C$166=\"\",\"\",T166/$C$166)","v":""},null,{"$f":"IF($C$166=\"\",\"\",V166/$C$166)","v":""},null,{"$f":"IF($C$166=\"\",\"\",X166/$C$166)","v":""},null,{"$f":"IF($C$166=\"\",\"\",Z166/$C$166)","v":""},null,{"$f":"IF($C$166=\"\",\"\",AB166/$C$166)","v":""},null,{"$f":"IF($C$166=\"\",\"\",AD166/$C$166)","v":""},null,{"$f":"IF($C$166=\"\",\"\",AF166/$C$166)","v":""},null,{"$f":"IF($C$166=\"\",\"\",AH166/$C$166)","v":""},null,{"$f":"IF($C$166=\"\",\"\",AJ166/$C$166)","v":""},null,{"$f":"IF($C$166=\"\",\"\",AL166/$C$166)","v":""},null,{"$f":"IF($C$166=\"\",\"\",AN166/$C$166)","v":""},null,{"$f":"IF($C$166=\"\",\"\",AP166/$C$166)","v":""},null,{"$f":"IF($C$166=\"\",\"\",AR166/$C$166)","v":""},null,{"$f":"IF($C$166=\"\",\"\",AT166/$C$166)","v":""},null,{"$f":"IF($C$166=\"\",\"\",AV166/$C$166)","v":""},null,{"$f":"IF($C$166=\"\",\"\",AX166/$C$166)","v":""},null,{"$f":"IF($C$166=\"\",\"\",AZ166/$C$166)","v":""},null,{"$f":"IF($C$166=\"\",\"\",BB166/$C$166)","v":""},null,0]
[6.5,"Requirements for System Expansion/Field Investigation",null,null,{"$f":"IF($C$167=\"\",\"\",F167/$C$167)","v":""},null,{"$f":"IF($C$167=\"\",\"\",H167/$C$167)","v":""},null,{"$f":"IF($C$167=\"\",\"\",J167/$C$167)","v":""},null,{"$f":"IF($C$167=\"\",\"\",L167/$C$167)","v":""},null,{"$f":"IF($C$167=\"\",\"\",N167/$C$167)","v":""},null,{"$f":"IF($C$167=\"\",\"\",P167/$C$167)","v":""},null,{"$f":"IF($C$167=\"\",\"\",R167/$C$167)","v":""},null,{"$f":"IF($C$167=\"\",\"\",T167/$C$167)","v":""},null,{"$f":"IF($C$167=\"\",\"\",V167/$C$167)","v":""},null,{"$f":"IF($C$167=\"\",\"\",X167/$C$167)","v":""},null,{"$f":"IF($C$167=\"\",\"\",Z167/$C$167)","v":""},null,{"$f":"IF($C$167=\"\",\"\",AB167/$C$167)","v":""},null,{"$f":"IF($C$167=\"\",\"\",AD167/$C$167)","v":""},null,{"$f":"IF($C$167=\"\",\"\",AF167/$C$167)","v":""},null,{"$f":"IF($C$167=\"\",\"\",AH167/$C$167)","v":""},null,{"$f":"IF($C$167=\"\",\"\",AJ167/$C$167)","v":""},null,{"$f":"IF($C$167=\"\",\"\",AL167/$C$167)","v":""},null,{"$f":"IF($C$167=\"\",\"\",AN167/$C$167)","v":""},null,{"$f":"IF($C$167=\"\",\"\",AP167/$C$167)","v":""},null,{"$f":"IF($C$167=\"\",\"\",AR167/$C$167)","v":""},null,{"$f":"IF($C$167=\"\",\"\",AT167/$C$167)","v":""},null,{"$f":"IF($C$167=\"\",\"\",AV167/$C$167)","v":""},null,{"$f":"IF($C$167=\"\",\"\",AX167/$C$167)","v":""},null,{"$f":"IF($C$167=\"\",\"\",AZ167/$C$167)","v":""},null,{"$f":"IF($C$167=\"\",\"\",BB167/$C$167)","v":""},null,0]
[null,null,null,null,{"$f":"IF($C$168=\"\",\"\",F168/$C$168)","v":""},null,{"$f":"IF($C$168=\"\",\"\",H168/$C$168)","v":""},null,{"$f":"IF($C$168=\"\",\"\",J168/$C$168)","v":""},null,{"$f":"IF($C$168=\"\",\"\",L168/$C$168)","v":""},null,{"$f":"IF($C$168=\"\",\"\",N168/$C$168)","v":""},null,{"$f":"IF($C$168=\"\",\"\",P168/$C$168)","v":""},null,{"$f":"IF($C$168=\"\",\"\",R168/$C$168)","v":""},null,{"$f":"IF($C$168=\"\",\"\",T168/$C$168)","v":""},null,{"$f":"IF($C$168=\"\",\"\",V168/$C$168)","v":""},null,{"$f":"IF($C$168=\"\",\"\",X168/$C$168)","v":""},null,{"$f":"IF($C$168=\"\",\"\",Z168/$C$168)","v":""},null,{"$f":"IF($C$168=\"\",\"\",AB168/$C$168)","v":""},null,{"$f":"IF($C$168=\"\",\"\",AD168/$C$168)","v":""},null,{"$f":"IF($C$168=\"\",\"\",AF168/$C$168)","v":""},null,{"$f":"IF($C$168=\"\",\"\",AH168/$C$168)","v":""},null,{"$f":"IF($C$168=\"\",\"\",AJ168/$C$168)","v":""},null,{"$f":"IF($C$168=\"\",\"\",AL168/$C$168)","v":""},null,{"$f":"IF($C$168=\"\",\"\",AN168/$C$168)","v":""},null,{"$f":"IF($C$168=\"\",\"\",AP168/$C$168)","v":""},null,{"$f":"IF($C$168=\"\",\"\",AR168/$C$168)","v":""},null,{"$f":"IF($C$168=\"\",\"\",AT168/$C$168)","v":""},null,{"$f":"IF($C$168=\"\",\"\",AV168/$C$168)","v":""},null,{"$f":"IF($C$168=\"\",\"\",AX168/$C$168)","v":""},null,{"$f":"IF($C$168=\"\",\"\",AZ168/$C$168)","v":""},null,{"$f":"IF($C$168=\"\",\"\",BB168/$C$168)","v":""},null,0]
[null,null,null,null,{"$f":"IF($C$169=\"\",\"\",F169/$C$169)","v":""},null,{"$f":"IF($C$169=\"\",\"\",H169/$C$169)","v":""},null,{"$f":"IF($C$169=\"\",\"\",J169/$C$169)","v":""},null,{"$f":"IF($C$169=\"\",\"\",L169/$C$169)","v":""},null,{"$f":"IF($C$169=\"\",\"\",N169/$C$169)","v":""},null,{"$f":"IF($C$169=\"\",\"\",P169/$C$169)","v":""},null,{"$f":"IF($C$169=\"\",\"\",R169/$C$169)","v":""},null,{"$f":"IF($C$169=\"\",\"\",T169/$C$169)","v":""},null,{"$f":"IF($C$169=\"\",\"\",V169/$C$169)","v":""},null,{"$f":"IF($C$169=\"\",\"\",X169/$C$169)","v":""},null,{"$f":"IF($C$169=\"\",\"\",Z169/$C$169)","v":""},null,{"$f":"IF($C$169=\"\",\"\",AB169/$C$169)","v":""},null,{"$f":"IF($C$169=\"\",\"\",AD169/$C$169)","v":""},null,{"$f":"IF($C$169=\"\",\"\",AF169/$C$169)","v":""},null,{"$f":"IF($C$169=\"\",\"\",AH169/$C$169)","v":""},null,{"$f":"IF($C$169=\"\",\"\",AJ169/$C$169)","v":""},null,{"$f":"IF($C$169=\"\",\"\",AL169/$C$169)","v":""},null,{"$f":"IF($C$169=\"\",\"\",AN169/$C$169)","v":""},null,{"$f":"IF($C$169=\"\",\"\",AP169/$C$169)","v":""},null,{"$f":"IF($C$169=\"\",\"\",AR169/$C$169)","v":""},null,{"$f":"IF($C$169=\"\",\"\",AT169/$C$169)","v":""},null,{"$f":"IF($C$169=\"\",\"\",AV169/$C$169)","v":""},null,{"$f":"IF($C$169=\"\",\"\",AX169/$C$169)","v":""},null,{"$f":"IF($C$169=\"\",\"\",AZ169/$C$169)","v":""},null,{"$f":"IF($C$169=\"\",\"\",BB169/$C$169)","v":""},null,0]
[null,null,null,null,{"$f":"IF($C$170=\"\",\"\",F170/$C$170)","v":""},null,{"$f":"IF($C$170=\"\",\"\",H170/$C$170)","v":""},null,{"$f":"IF($C$170=\"\",\"\",J170/$C$170)","v":""},null,{"$f":"IF($C$170=\"\",\"\",L170/$C$170)","v":""},null,{"$f":"IF($C$170=\"\",\"\",N170/$C$170)","v":""},null,{"$f":"IF($C$170=\"\",\"\",P170/$C$170)","v":""},null,{"$f":"IF($C$170=\"\",\"\",R170/$C$170)","v":""},null,{"$f":"IF($C$170=\"\",\"\",T170/$C$170)","v":""},null,{"$f":"IF($C$170=\"\",\"\",V170/$C$170)","v":""},null,{"$f":"IF($C$170=\"\",\"\",X170/$C$170)","v":""},null,{"$f":"IF($C$170=\"\",\"\",Z170/$C$170)","v":""},null,{"$f":"IF($C$170=\"\",\"\",AB170/$C$170)","v":""},null,{"$f":"IF($C$170=\"\",\"\",AD170/$C$170)","v":""},null,{"$f":"IF($C$170=\"\",\"\",AF170/$C$170)","v":""},null,{"$f":"IF($C$170=\"\",\"\",AH170/$C$170)","v":""},null,{"$f":"IF($C$170=\"\",\"\",AJ170/$C$170)","v":""},null,{"$f":"IF($C$170=\"\",\"\",AL170/$C$170)","v":""},null,{"$f":"IF($C$170=\"\",\"\",AN170/$C$170)","v":""},null,{"$f":"IF($C$170=\"\",\"\",AP170/$C$170)","v":""},null,{"$f":"IF($C$170=\"\",\"\",AR170/$C$170)","v":""},null,{"$f":"IF($C$170=\"\",\"\",AT170/$C$170)","v":""},null,{"$f":"IF($C$170=\"\",\"\",AV170/$C$170)","v":""},null,{"$f":"IF($C$170=\"\",\"\",AX170/$C$170)","v":""},null,{"$f":"IF($C$170=\"\",\"\",AZ170/$C$170)","v":""},null,{"$f":"IF($C$170=\"\",\"\",BB170/$C$170)","v":""},null,0]
[null,null,null,null,{"$f":"IF($C$171=\"\",\"\",F171/$C$171)","v":""},null,{"$f":"IF($C$171=\"\",\"\",H171/$C$171)","v":""},null,{"$f":"IF($C$171=\"\",\"\",J171/$C$171)","v":""},null,{"$f":"IF($C$171=\"\",\"\",L171/$C$171)","v":""},null,{"$f":"IF($C$171=\"\",\"\",N171/$C$171)","v":""},null,{"$f":"IF($C$171=\"\",\"\",P171/$C$171)","v":""},null,{"$f":"IF($C$171=\"\",\"\",R171/$C$171)","v":""},null,{"$f":"IF($C$171=\"\",\"\",T171/$C$171)","v":""},null,{"$f":"IF($C$171=\"\",\"\",V171/$C$171)","v":""},null,{"$f":"IF($C$171=\"\",\"\",X171/$C$171)","v":""},null,{"$f":"IF($C$171=\"\",\"\",Z171/$C$171)","v":""},null,{"$f":"IF($C$171=\"\",\"\",AB171/$C$171)","v":""},null,{"$f":"IF($C$171=\"\",\"\",AD171/$C$171)","v":""},null,{"$f":"IF($C$171=\"\",\"\",AF171/$C$171)","v":""},null,{"$f":"IF($C$171=\"\",\"\",AH171/$C$171)","v":""},null,{"$f":"IF($C$171=\"\",\"\",AJ171/$C$171)","v":""},null,{"$f":"IF($C$171=\"\",\"\",AL171/$C$171)","v":""},null,{"$f":"IF($C$171=\"\",\"\",AN171/$C$171)","v":""},null,{"$f":"IF($C$171=\"\",\"\",AP171/$C$171)","v":""},null,{"$f":"IF($C$171=\"\",\"\",AR171/$C$171)","v":""},null,{"$f":"IF($C$171=\"\",\"\",AT171/$C$171)","v":""},null,{"$f":"IF($C$171=\"\",\"\",AV171/$C$171)","v":""},null,{"$f":"IF($C$171=\"\",\"\",AX171/$C$171)","v":""},null,{"$f":"IF($C$171=\"\",\"\",AZ171/$C$171)","v":""},null,{"$f":"IF($C$171=\"\",\"\",BB171/$C$171)","v":""},null,0]
[null,null,null,null,{"$f":"IF($C$172=\"\",\"\",F172/$C$172)","v":""},null,{"$f":"IF($C$172=\"\",\"\",H172/$C$172)","v":""},null,{"$f":"IF($C$172=\"\",\"\",J172/$C$172)","v":""},null,{"$f":"IF($C$172=\"\",\"\",L172/$C$172)","v":""},null,{"$f":"IF($C$172=\"\",\"\",N172/$C$172)","v":""},null,{"$f":"IF($C$172=\"\",\"\",P172/$C$172)","v":""},null,{"$f":"IF($C$172=\"\",\"\",R172/$C$172)","v":""},null,{"$f":"IF($C$172=\"\",\"\",T172/$C$172)","v":""},null,{"$f":"IF($C$172=\"\",\"\",V172/$C$172)","v":""},null,{"$f":"IF($C$172=\"\",\"\",X172/$C$172)","v":""},null,{"$f":"IF($C$172=\"\",\"\",Z172/$C$172)","v":""},null,{"$f":"IF($C$172=\"\",\"\",AB172/$C$172)","v":""},null,{"$f":"IF($C$172=\"\",\"\",AD172/$C$172)","v":""},null,{"$f":"IF($C$172=\"\",\"\",AF172/$C$172)","v":""},null,{"$f":"IF($C$172=\"\",\"\",AH172/$C$172)","v":""},null,{"$f":"IF($C$172=\"\",\"\",AJ172/$C$172)","v":""},null,{"$f":"IF($C$172=\"\",\"\",AL172/$C$172)","v":""},null,{"$f":"IF($C$172=\"\",\"\",AN172/$C$172)","v":""},null,{"$f":"IF($C$172=\"\",\"\",AP172/$C$172)","v":""},null,{"$f":"IF($C$172=\"\",\"\",AR172/$C$172)","v":""},null,{"$f":"IF($C$172=\"\",\"\",AT172/$C$172)","v":""},null,{"$f":"IF($C$172=\"\",\"\",AV172/$C$172)","v":""},null,{"$f":"IF($C$172=\"\",\"\",AX172/$C$172)","v":""},null,{"$f":"IF($C$172=\"\",\"\",AZ172/$C$172)","v":""},null,{"$f":"IF($C$172=\"\",\"\",BB172/$C$172)","v":""},null,0]
[null,null,null,null,{"$f":"IF($C$173=\"\",\"\",F173/$C$173)","v":""},null,{"$f":"IF($C$173=\"\",\"\",H173/$C$173)","v":""},null,{"$f":"IF($C$173=\"\",\"\",J173/$C$173)","v":""},null,{"$f":"IF($C$173=\"\",\"\",L173/$C$173)","v":""},null,{"$f":"IF($C$173=\"\",\"\",N173/$C$173)","v":""},null,{"$f":"IF($C$173=\"\",\"\",P173/$C$173)","v":""},null,{"$f":"IF($C$173=\"\",\"\",R173/$C$173)","v":""},null,{"$f":"IF($C$173=\"\",\"\",T173/$C$173)","v":""},null,{"$f":"IF($C$173=\"\",\"\",V173/$C$173)","v":""},null,{"$f":"IF($C$173=\"\",\"\",X173/$C$173)","v":""},null,{"$f":"IF($C$173=\"\",\"\",Z173/$C$173)","v":""},null,{"$f":"IF($C$173=\"\",\"\",AB173/$C$173)","v":""},null,{"$f":"IF($C$173=\"\",\"\",AD173/$C$173)","v":""},null,{"$f":"IF($C$173=\"\",\"\",AF173/$C$173)","v":""},null,{"$f":"IF($C$173=\"\",\"\",AH173/$C$173)","v":""},null,{"$f":"IF($C$173=\"\",\"\",AJ173/$C$173)","v":""},null,{"$f":"IF($C$173=\"\",\"\",AL173/$C$173)","v":""},null,{"$f":"IF($C$173=\"\",\"\",AN173/$C$173)","v":""},null,{"$f":"IF($C$173=\"\",\"\",AP173/$C$173)","v":""},null,{"$f":"IF($C$173=\"\",\"\",AR173/$C$173)","v":""},null,{"$f":"IF($C$173=\"\",\"\",AT173/$C$173)","v":""},null,{"$f":"IF($C$173=\"\",\"\",AV173/$C$173)","v":""},null,{"$f":"IF($C$173=\"\",\"\",AX173/$C$173)","v":""},null,{"$f":"IF($C$173=\"\",\"\",AZ173/$C$173)","v":""},null,{"$f":"IF($C$173=\"\",\"\",BB173/$C$173)","v":""},null,0]
[null,null,null,null,{"$f":"IF($C$174=\"\",\"\",F174/$C$174)","v":""},null,{"$f":"IF($C$174=\"\",\"\",H174/$C$174)","v":""},null,{"$f":"IF($C$174=\"\",\"\",J174/$C$174)","v":""},null,{"$f":"IF($C$174=\"\",\"\",L174/$C$174)","v":""},null,{"$f":"IF($C$174=\"\",\"\",N174/$C$174)","v":""},null,{"$f":"IF($C$174=\"\",\"\",P174/$C$174)","v":""},null,{"$f":"IF($C$174=\"\",\"\",R174/$C$174)","v":""},null,{"$f":"IF($C$174=\"\",\"\",T174/$C$174)","v":""},null,{"$f":"IF($C$174=\"\",\"\",V174/$C$174)","v":""},null,{"$f":"IF($C$174=\"\",\"\",X174/$C$174)","v":""},null,{"$f":"IF($C$174=\"\",\"\",Z174/$C$174)","v":""},null,{"$f":"IF($C$174=\"\",\"\",AB174/$C$174)","v":""},null,{"$f":"IF($C$174=\"\",\"\",AD174/$C$174)","v":""},null,{"$f":"IF($C$174=\"\",\"\",AF174/$C$174)","v":""},null,{"$f":"IF($C$174=\"\",\"\",AH174/$C$174)","v":""},null,{"$f":"IF($C$174=\"\",\"\",AJ174/$C$174)","v":""},null,{"$f":"IF($C$174=\"\",\"\",AL174/$C$174)","v":""},null,{"$f":"IF($C$174=\"\",\"\",AN174/$C$174)","v":""},null,{"$f":"IF($C$174=\"\",\"\",AP174/$C$174)","v":""},null,{"$f":"IF($C$174=\"\",\"\",AR174/$C$174)","v":""},null,{"$f":"IF($C$174=\"\",\"\",AT174/$C$174)","v":""},null,{"$f":"IF($C$174=\"\",\"\",AV174/$C$174)","v":""},null,{"$f":"IF($C$174=\"\",\"\",AX174/$C$174)","v":""},null,{"$f":"IF($C$174=\"\",\"\",AZ174/$C$174)","v":""},null,{"$f":"IF($C$174=\"\",\"\",BB174/$C$174)","v":""},null,{"$f":"SUM(BB174,AZ174,AX174,AV174,AT174,AR174,AP174,AN174,AL174,AJ174,AH174,AF174,AD174,AB174,Z174,X174,V174,T174,R174,P174,N174,L174,J174,H174,F174)","v":0}]
["TOTAL HOURS",null,null,null,null,{"$f":"SUM(F163:F174)","v":0},null,{"$f":"SUM(H163:H174)","v":0},null,{"$f":"SUM(J163:J174)","v":0},null,{"$f":"SUM(L163:L174)","v":0},null,{"$f":"SUM(N163:N174)","v":0},null,{"$f":"SUM(P163:P174)","v":0},null,{"$f":"SUM(R163:R174)","v":0},null,{"$f":"SUM(T163:T174)","v":0},null,{"$f":"SUM(V163:V174)","v":0},null,{"$f":"SUM(X163:X174)","v":0},null,{"$f":"SUM(Z163:Z174)","v":0},null,{"$f":"SUM(AB163:AB174)","v":0},null,{"$f":"SUM(AD163:AD174)","v":0},null,{"$f":"SUM(AF163:AF174)","v":0},null,{"$f":"SUM(AH163:AH174)","v":0},null,{"$f":"SUM(AJ163:AJ174)","v":0},null,{"$f":"SUM(AL163:AL174)","v":0},null,{"$f":"SUM(AN163:AN174)","v":0},null,{"$f":"SUM(AP163:AP174)","v":0},null,{"$f":"SUM(AR163:AR174)","v":0},null,{"$f":"SUM(AT163:AT174)","v":0},null,{"$f":"SUM(AV163:AV174)","v":0},null,{"$f":"SUM(AX163:AX174)","v":0},null,{"$f":"SUM(AZ163:AZ174)","v":0},null,{"$f":"SUM(BB163:BB174)","v":0},{"$f":"SUM(E175:BB175)","v":0}]
["TOTAL WORKDAYS",null,null,null,null,{"$f":"F175/8","v":0},null,{"$f":"H175/8","v":0},null,{"$f":"J175/8","v":0},null,{"$f":"L175/8","v":0},null,{"$f":"N175/8","v":0},null,{"$f":"P175/8","v":0},null,{"$f":"R175/8","v":0},null,{"$f":"T175/8","v":0},null,{"$f":"V175/8","v":0},null,{"$f":"X175/8","v":0},null,{"$f":"Z175/8","v":0},null,{"$f":"AB175/8","v":0},null,{"$f":"AD175/8","v":0},null,0,null,{"$f":"AH175/8","v":0},null,0,null,{"$f":"AL175/8","v":0},null,0,null,{"$f":"AP175/8","v":0},null,0,null,{"$f":"AT175/8","v":0},null,{"$f":"AV175/8","v":0},null,{"$f":"AX175/8","v":0},null,{"$f":"AZ175/8","v":0},null,{"$f":"BB175/8","v":0},{"$f":"SUM(E176:BB176)","v":0}]
["TOTAL RAW LABOR",null,null,null,null,{"$f":"$E$13*F175","v":0},null,{"$f":"$G$13*H175","v":0},null,{"$f":"$I$13*J175","v":0},null,{"$f":"$K$13*L175","v":0},null,{"$f":"$M$13*N175","v":0},null,{"$f":"$O$13*P175","v":0},null,{"$f":"$Q$13*R175","v":0},null,{"$f":"$S$13*T175","v":0},null,{"$f":"$U$13*V175","v":0},null,{"$f":"$W$13*X175","v":0},null,{"$f":"$Y$13*Z175","v":0},null,{"$f":"$AA$13*AB175","v":0},null,{"$f":"$AC$13*AD175","v":0},null,{"$f":"$AC$13*AF175","v":0},null,{"$f":"$AC$13*AH175","v":0},null,{"$f":"$AC$13*AJ175","v":0},null,{"$f":"$AC$13*AL175","v":0},null,{"$f":"$AC$13*AN175","v":0},null,{"$f":"$AC$13*AP175","v":0},null,{"$f":"$AC$13*AR175","v":0},null,{"$f":"$AC$13*AT175","v":0},null,{"$f":"$AC$13*AV175","v":0},null,{"$f":"$AC$13*AX175","v":0},null,{"$f":"$AC$13*AZ175","v":0},null,{"$f":"$AC$13*BB175","v":0},{"$f":"SUM(E177:BB177)","v":0}]
["Task 7.0     ","SYSTEM BOUNDARIES AND SYSTEM DETECTOR LAYOUT"]
[7.1,"Identify System Boundary and Control Sections",null,null,{"$f":"IF($C$179=\"\",\"\",F179/$C$179)","v":""},null,{"$f":"IF($C$179=\"\",\"\",H179/$C$179)","v":""},null,{"$f":"IF($C$179=\"\",\"\",J179/$C$179)","v":""},null,{"$f":"IF($C$179=\"\",\"\",L179/$C$179)","v":""},null,{"$f":"IF($C$179=\"\",\"\",N179/$C$179)","v":""},null,{"$f":"IF($C$179=\"\",\"\",P179/$C$179)","v":""},null,{"$f":"IF($C$179=\"\",\"\",R179/$C$179)","v":""},null,{"$f":"IF($C$179=\"\",\"\",T179/$C$179)","v":""},null,{"$f":"IF($C$179=\"\",\"\",V179/$C$179)","v":""},null,{"$f":"IF($C$179=\"\",\"\",X179/$C$179)","v":""},null,{"$f":"IF($C$179=\"\",\"\",Z179/$C$179)","v":""},null,{"$f":"IF($C$179=\"\",\"\",AB179/$C$179)","v":""},null,{"$f":"IF($C$179=\"\",\"\",AD179/$C$179)","v":""},null,{"$f":"IF($C$179=\"\",\"\",AF179/$C$179)","v":""},null,{"$f":"IF($C$179=\"\",\"\",AH179/$C$179)","v":""},null,{"$f":"IF($C$179=\"\",\"\",AJ179/$C$179)","v":""},null,{"$f":"IF($C$179=\"\",\"\",AL179/$C$179)","v":""},null,{"$f":"IF($C$179=\"\",\"\",AN179/$C$179)","v":""},null,{"$f":"IF($C$179=\"\",\"\",AP179/$C$179)","v":""},null,{"$f":"IF($C$179=\"\",\"\",AR179/$C$179)","v":""},null,{"$f":"IF($C$179=\"\",\"\",AT179/$C$179)","v":""},null,{"$f":"IF($C$179=\"\",\"\",AV179/$C$179)","v":""},null,{"$f":"IF($C$179=\"\",\"\",AX179/$C$179)","v":""},null,{"$f":"IF($C$179=\"\",\"\",AZ179/$C$179)","v":""},null,{"$f":"IF($C$179=\"\",\"\",BB179/$C$179)","v":""},null,{"$f":"SUM(BB179,AZ179,AX179,AV179,AT179,AR179,AP179,AN179,AL179,AJ179,AH179,AF179,AD179,AB179,Z179,X179,V179,T179,R179,P179,N179,L179,J179,H179,F179)","v":0}]
[7.2,"Develop System-Wide System Detector Schematic",null,null,{"$f":"IF($C$180=\"\",\"\",F180/$C$180)","v":""},null,{"$f":"IF($C$180=\"\",\"\",H180/$C$180)","v":""},null,{"$f":"IF($C$180=\"\",\"\",J180/$C$180)","v":""},null,{"$f":"IF($C$180=\"\",\"\",L180/$C$180)","v":""},null,{"$f":"IF($C$180=\"\",\"\",N180/$C$180)","v":""},null,{"$f":"IF($C$180=\"\",\"\",P180/$C$180)","v":""},null,{"$f":"IF($C$180=\"\",\"\",R180/$C$180)","v":""},null,{"$f":"IF($C$180=\"\",\"\",T180/$C$180)","v":""},null,{"$f":"IF($C$180=\"\",\"\",V180/$C$180)","v":""},null,{"$f":"IF($C$180=\"\",\"\",X180/$C$180)","v":""},null,{"$f":"IF($C$180=\"\",\"\",Z180/$C$180)","v":""},null,{"$f":"IF($C$180=\"\",\"\",AB180/$C$180)","v":""},null,{"$f":"IF($C$180=\"\",\"\",AD180/$C$180)","v":""},null,{"$f":"IF($C$180=\"\",\"\",AF180/$C$180)","v":""},null,{"$f":"IF($C$180=\"\",\"\",AH180/$C$180)","v":""},null,{"$f":"IF($C$180=\"\",\"\",AJ180/$C$180)","v":""},null,{"$f":"IF($C$180=\"\",\"\",AL180/$C$180)","v":""},null,{"$f":"IF($C$180=\"\",\"\",AN180/$C$180)","v":""},null,{"$f":"IF($C$180=\"\",\"\",AP180/$C$180)","v":""},null,{"$f":"IF($C$180=\"\",\"\",AR180/$C$180)","v":""},null,{"$f":"IF($C$180=\"\",\"\",AT180/$C$180)","v":""},null,{"$f":"IF($C$180=\"\",\"\",AV180/$C$180)","v":""},null,{"$f":"IF($C$180=\"\",\"\",AX180/$C$180)","v":""},null,{"$f":"IF($C$180=\"\",\"\",AZ180/$C$180)","v":""},null,{"$f":"IF($C$180=\"\",\"\",BB180/$C$180)","v":""},null,0]
[null,null,null,null,{"$f":"IF($C$181=\"\",\"\",F181/$C$181)","v":""},null,{"$f":"IF($C$181=\"\",\"\",H181/$C$181)","v":""},null,{"$f":"IF($C$181=\"\",\"\",J181/$C$181)","v":""},null,{"$f":"IF($C$181=\"\",\"\",L181/$C$181)","v":""},null,{"$f":"IF($C$181=\"\",\"\",N181/$C$181)","v":""},null,{"$f":"IF($C$181=\"\",\"\",P181/$C$181)","v":""},null,{"$f":"IF($C$181=\"\",\"\",R181/$C$181)","v":""},null,{"$f":"IF($C$181=\"\",\"\",T181/$C$181)","v":""},null,{"$f":"IF($C$181=\"\",\"\",V181/$C$181)","v":""},null,{"$f":"IF($C$181=\"\",\"\",X181/$C$181)","v":""},null,{"$f":"IF($C$181=\"\",\"\",Z181/$C$181)","v":""},null,{"$f":"IF($C$181=\"\",\"\",AB181/$C$181)","v":""},null,{"$f":"IF($C$181=\"\",\"\",AD181/$C$181)","v":""},null,{"$f":"IF($C$181=\"\",\"\",AF181/$C$181)","v":""},null,{"$f":"IF($C$181=\"\",\"\",AH181/$C$181)","v":""},null,{"$f":"IF($C$181=\"\",\"\",AJ181/$C$181)","v":""},null,{"$f":"IF($C$181=\"\",\"\",AL181/$C$181)","v":""},null,{"$f":"IF($C$181=\"\",\"\",AN181/$C$181)","v":""},null,{"$f":"IF($C$181=\"\",\"\",AP181/$C$181)","v":""},null,{"$f":"IF($C$181=\"\",\"\",AR181/$C$181)","v":""},null,{"$f":"IF($C$181=\"\",\"\",AT181/$C$181)","v":""},null,{"$f":"IF($C$181=\"\",\"\",AV181/$C$181)","v":""},null,{"$f":"IF($C$181=\"\",\"\",AX181/$C$181)","v":""},null,{"$f":"IF($C$181=\"\",\"\",AZ181/$C$181)","v":""},null,{"$f":"IF($C$181=\"\",\"\",BB181/$C$181)","v":""},null,0]
[null,null,null,null,{"$f":"IF($C$182=\"\",\"\",F182/$C$182)","v":""},null,{"$f":"IF($C$182=\"\",\"\",H182/$C$182)","v":""},null,{"$f":"IF($C$182=\"\",\"\",J182/$C$182)","v":""},null,{"$f":"IF($C$182=\"\",\"\",L182/$C$182)","v":""},null,{"$f":"IF($C$182=\"\",\"\",N182/$C$182)","v":""},null,{"$f":"IF($C$182=\"\",\"\",P182/$C$182)","v":""},null,{"$f":"IF($C$182=\"\",\"\",R182/$C$182)","v":""},null,{"$f":"IF($C$182=\"\",\"\",T182/$C$182)","v":""},null,{"$f":"IF($C$182=\"\",\"\",V182/$C$182)","v":""},null,{"$f":"IF($C$182=\"\",\"\",X182/$C$182)","v":""},null,{"$f":"IF($C$182=\"\",\"\",Z182/$C$182)","v":""},null,{"$f":"IF($C$182=\"\",\"\",AB182/$C$182)","v":""},null,{"$f":"IF($C$182=\"\",\"\",AD182/$C$182)","v":""},null,{"$f":"IF($C$182=\"\",\"\",AF182/$C$182)","v":""},null,{"$f":"IF($C$182=\"\",\"\",AH182/$C$182)","v":""},null,{"$f":"IF($C$182=\"\",\"\",AJ182/$C$182)","v":""},null,{"$f":"IF($C$182=\"\",\"\",AL182/$C$182)","v":""},null,{"$f":"IF($C$182=\"\",\"\",AN182/$C$182)","v":""},null,{"$f":"IF($C$182=\"\",\"\",AP182/$C$182)","v":""},null,{"$f":"IF($C$182=\"\",\"\",AR182/$C$182)","v":""},null,{"$f":"IF($C$182=\"\",\"\",AT182/$C$182)","v":""},null,{"$f":"IF($C$182=\"\",\"\",AV182/$C$182)","v":""},null,{"$f":"IF($C$182=\"\",\"\",AX182/$C$182)","v":""},null,{"$f":"IF($C$182=\"\",\"\",AZ182/$C$182)","v":""},null,{"$f":"IF($C$182=\"\",\"\",BB182/$C$182)","v":""},null,0]
[null,null,null,null,{"$f":"IF($C$183=\"\",\"\",F183/$C$183)","v":""},null,{"$f":"IF($C$183=\"\",\"\",H183/$C$183)","v":""},null,{"$f":"IF($C$183=\"\",\"\",J183/$C$183)","v":""},null,{"$f":"IF($C$183=\"\",\"\",L183/$C$183)","v":""},null,{"$f":"IF($C$183=\"\",\"\",N183/$C$183)","v":""},null,{"$f":"IF($C$183=\"\",\"\",P183/$C$183)","v":""},null,{"$f":"IF($C$183=\"\",\"\",R183/$C$183)","v":""},null,{"$f":"IF($C$183=\"\",\"\",T183/$C$183)","v":""},null,{"$f":"IF($C$183=\"\",\"\",V183/$C$183)","v":""},null,{"$f":"IF($C$183=\"\",\"\",X183/$C$183)","v":""},null,{"$f":"IF($C$183=\"\",\"\",Z183/$C$183)","v":""},null,{"$f":"IF($C$183=\"\",\"\",AB183/$C$183)","v":""},null,{"$f":"IF($C$183=\"\",\"\",AD183/$C$183)","v":""},null,{"$f":"IF($C$183=\"\",\"\",AF183/$C$183)","v":""},null,{"$f":"IF($C$183=\"\",\"\",AH183/$C$183)","v":""},null,{"$f":"IF($C$183=\"\",\"\",AJ183/$C$183)","v":""},null,{"$f":"IF($C$183=\"\",\"\",AL183/$C$183)","v":""},null,{"$f":"IF($C$183=\"\",\"\",AN183/$C$183)","v":""},null,{"$f":"IF($C$183=\"\",\"\",AP183/$C$183)","v":""},null,{"$f":"IF($C$183=\"\",\"\",AR183/$C$183)","v":""},null,{"$f":"IF($C$183=\"\",\"\",AT183/$C$183)","v":""},null,{"$f":"IF($C$183=\"\",\"\",AV183/$C$183)","v":""},null,{"$f":"IF($C$183=\"\",\"\",AX183/$C$183)","v":""},null,{"$f":"IF($C$183=\"\",\"\",AZ183/$C$183)","v":""},null,{"$f":"IF($C$183=\"\",\"\",BB183/$C$183)","v":""},null,0]
[null,null,null,null,{"$f":"IF($C$184=\"\",\"\",F184/$C$184)","v":""},null,{"$f":"IF($C$184=\"\",\"\",H184/$C$184)","v":""},null,{"$f":"IF($C$184=\"\",\"\",J184/$C$184)","v":""},null,{"$f":"IF($C$184=\"\",\"\",L184/$C$184)","v":""},null,{"$f":"IF($C$184=\"\",\"\",N184/$C$184)","v":""},null,{"$f":"IF($C$184=\"\",\"\",P184/$C$184)","v":""},null,{"$f":"IF($C$184=\"\",\"\",R184/$C$184)","v":""},null,{"$f":"IF($C$184=\"\",\"\",T184/$C$184)","v":""},null,{"$f":"IF($C$184=\"\",\"\",V184/$C$184)","v":""},null,{"$f":"IF($C$184=\"\",\"\",X184/$C$184)","v":""},null,{"$f":"IF($C$184=\"\",\"\",Z184/$C$184)","v":""},null,{"$f":"IF($C$184=\"\",\"\",AB184/$C$184)","v":""},null,{"$f":"IF($C$184=\"\",\"\",AD184/$C$184)","v":""},null,{"$f":"IF($C$184=\"\",\"\",AF184/$C$184)","v":""},null,{"$f":"IF($C$184=\"\",\"\",AH184/$C$184)","v":""},null,{"$f":"IF($C$184=\"\",\"\",AJ184/$C$184)","v":""},null,{"$f":"IF($C$184=\"\",\"\",AL184/$C$184)","v":""},null,{"$f":"IF($C$184=\"\",\"\",AN184/$C$184)","v":""},null,{"$f":"IF($C$184=\"\",\"\",AP184/$C$184)","v":""},null,{"$f":"IF($C$184=\"\",\"\",AR184/$C$184)","v":""},null,{"$f":"IF($C$184=\"\",\"\",AT184/$C$184)","v":""},null,{"$f":"IF($C$184=\"\",\"\",AV184/$C$184)","v":""},null,{"$f":"IF($C$184=\"\",\"\",AX184/$C$184)","v":""},null,{"$f":"IF($C$184=\"\",\"\",AZ184/$C$184)","v":""},null,{"$f":"IF($C$184=\"\",\"\",BB184/$C$184)","v":""},null,0]
[null,null,null,null,{"$f":"IF($C$185=\"\",\"\",F185/$C$185)","v":""},null,{"$f":"IF($C$185=\"\",\"\",H185/$C$185)","v":""},null,{"$f":"IF($C$185=\"\",\"\",J185/$C$185)","v":""},null,{"$f":"IF($C$185=\"\",\"\",L185/$C$185)","v":""},null,{"$f":"IF($C$185=\"\",\"\",N185/$C$185)","v":""},null,{"$f":"IF($C$185=\"\",\"\",P185/$C$185)","v":""},null,{"$f":"IF($C$185=\"\",\"\",R185/$C$185)","v":""},null,{"$f":"IF($C$185=\"\",\"\",T185/$C$185)","v":""},null,{"$f":"IF($C$185=\"\",\"\",V185/$C$185)","v":""},null,{"$f":"IF($C$185=\"\",\"\",X185/$C$185)","v":""},null,{"$f":"IF($C$185=\"\",\"\",Z185/$C$185)","v":""},null,{"$f":"IF($C$185=\"\",\"\",AB185/$C$185)","v":""},null,{"$f":"IF($C$185=\"\",\"\",AD185/$C$185)","v":""},null,{"$f":"IF($C$185=\"\",\"\",AF185/$C$185)","v":""},null,{"$f":"IF($C$185=\"\",\"\",AH185/$C$185)","v":""},null,{"$f":"IF($C$185=\"\",\"\",AJ185/$C$185)","v":""},null,{"$f":"IF($C$185=\"\",\"\",AL185/$C$185)","v":""},null,{"$f":"IF($C$185=\"\",\"\",AN185/$C$185)","v":""},null,{"$f":"IF($C$185=\"\",\"\",AP185/$C$185)","v":""},null,{"$f":"IF($C$185=\"\",\"\",AR185/$C$185)","v":""},null,{"$f":"IF($C$185=\"\",\"\",AT185/$C$185)","v":""},null,{"$f":"IF($C$185=\"\",\"\",AV185/$C$185)","v":""},null,{"$f":"IF($C$185=\"\",\"\",AX185/$C$185)","v":""},null,{"$f":"IF($C$185=\"\",\"\",AZ185/$C$185)","v":""},null,{"$f":"IF($C$185=\"\",\"\",BB185/$C$185)","v":""},null,0]
[null,null,null,null,{"$f":"IF($C$186=\"\",\"\",F186/$C$186)","v":""},null,{"$f":"IF($C$186=\"\",\"\",H186/$C$186)","v":""},null,{"$f":"IF($C$186=\"\",\"\",J186/$C$186)","v":""},null,{"$f":"IF($C$186=\"\",\"\",L186/$C$186)","v":""},null,{"$f":"IF($C$186=\"\",\"\",N186/$C$186)","v":""},null,{"$f":"IF($C$186=\"\",\"\",P186/$C$186)","v":""},null,{"$f":"IF($C$186=\"\",\"\",R186/$C$186)","v":""},null,{"$f":"IF($C$186=\"\",\"\",T186/$C$186)","v":""},null,{"$f":"IF($C$186=\"\",\"\",V186/$C$186)","v":""},null,{"$f":"IF($C$186=\"\",\"\",X186/$C$186)","v":""},null,{"$f":"IF($C$186=\"\",\"\",Z186/$C$186)","v":""},null,{"$f":"IF($C$186=\"\",\"\",AB186/$C$186)","v":""},null,{"$f":"IF($C$186=\"\",\"\",AD186/$C$186)","v":""},null,{"$f":"IF($C$186=\"\",\"\",AF186/$C$186)","v":""},null,{"$f":"IF($C$186=\"\",\"\",AH186/$C$186)","v":""},null,{"$f":"IF($C$186=\"\",\"\",AJ186/$C$186)","v":""},null,{"$f":"IF($C$186=\"\",\"\",AL186/$C$186)","v":""},null,{"$f":"IF($C$186=\"\",\"\",AN186/$C$186)","v":""},null,{"$f":"IF($C$186=\"\",\"\",AP186/$C$186)","v":""},null,{"$f":"IF($C$186=\"\",\"\",AR186/$C$186)","v":""},null,{"$f":"IF($C$186=\"\",\"\",AT186/$C$186)","v":""},null,{"$f":"IF($C$186=\"\",\"\",AV186/$C$186)","v":""},null,{"$f":"IF($C$186=\"\",\"\",AX186/$C$186)","v":""},null,{"$f":"IF($C$186=\"\",\"\",AZ186/$C$186)","v":""},null,{"$f":"IF($C$186=\"\",\"\",BB186/$C$186)","v":""},null,0]
[null,null,null,null,{"$f":"IF($C$187=\"\",\"\",F187/$C$187)","v":""},null,{"$f":"IF($C$187=\"\",\"\",H187/$C$187)","v":""},null,{"$f":"IF($C$187=\"\",\"\",J187/$C$187)","v":""},null,{"$f":"IF($C$187=\"\",\"\",L187/$C$187)","v":""},null,{"$f":"IF($C$187=\"\",\"\",N187/$C$187)","v":""},null,{"$f":"IF($C$187=\"\",\"\",P187/$C$187)","v":""},null,{"$f":"IF($C$187=\"\",\"\",R187/$C$187)","v":""},null,{"$f":"IF($C$187=\"\",\"\",T187/$C$187)","v":""},null,{"$f":"IF($C$187=\"\",\"\",V187/$C$187)","v":""},null,{"$f":"IF($C$187=\"\",\"\",X187/$C$187)","v":""},null,{"$f":"IF($C$187=\"\",\"\",Z187/$C$187)","v":""},null,{"$f":"IF($C$187=\"\",\"\",AB187/$C$187)","v":""},null,{"$f":"IF($C$187=\"\",\"\",AD187/$C$187)","v":""},null,{"$f":"IF($C$187=\"\",\"\",AF187/$C$187)","v":""},null,{"$f":"IF($C$187=\"\",\"\",AH187/$C$187)","v":""},null,{"$f":"IF($C$187=\"\",\"\",AJ187/$C$187)","v":""},null,{"$f":"IF($C$187=\"\",\"\",AL187/$C$187)","v":""},null,{"$f":"IF($C$187=\"\",\"\",AN187/$C$187)","v":""},null,{"$f":"IF($C$187=\"\",\"\",AP187/$C$187)","v":""},null,{"$f":"IF($C$187=\"\",\"\",AR187/$C$187)","v":""},null,{"$f":"IF($C$187=\"\",\"\",AT187/$C$187)","v":""},null,{"$f":"IF($C$187=\"\",\"\",AV187/$C$187)","v":""},null,{"$f":"IF($C$187=\"\",\"\",AX187/$C$187)","v":""},null,{"$f":"IF($C$187=\"\",\"\",AZ187/$C$187)","v":""},null,{"$f":"IF($C$187=\"\",\"\",BB187/$C$187)","v":""},null,{"$f":"SUM(BB187,AZ187,AX187,AV187,AT187,AR187,AP187,AN187,AL187,AJ187,AH187,AF187,AD187,AB187,Z187,X187,V187,T187,R187,P187,N187,L187,J187,H187,F187)","v":0}]
["TOTAL HOURS",null,null,null,null,{"$f":"SUM(F179:F187)","v":0},null,{"$f":"SUM(H179:H187)","v":0},null,{"$f":"SUM(J179:J187)","v":0},null,{"$f":"SUM(L179:L187)","v":0},null,{"$f":"SUM(N179:N187)","v":0},null,{"$f":"SUM(P179:P187)","v":0},null,{"$f":"SUM(R179:R187)","v":0},null,{"$f":"SUM(T179:T187)","v":0},null,{"$f":"SUM(V179:V187)","v":0},null,{"$f":"SUM(X179:X187)","v":0},null,{"$f":"SUM(Z179:Z187)","v":0},null,{"$f":"SUM(AB179:AB187)","v":0},null,{"$f":"SUM(AD179:AD187)","v":0},null,{"$f":"SUM(AF179:AF187)","v":0},null,{"$f":"SUM(AH179:AH187)","v":0},null,{"$f":"SUM(AJ179:AJ187)","v":0},null,{"$f":"SUM(AL179:AL187)","v":0},null,{"$f":"SUM(AN179:AN187)","v":0},null,{"$f":"SUM(AP179:AP187)","v":0},null,{"$f":"SUM(AR179:AR187)","v":0},null,{"$f":"SUM(AT179:AT187)","v":0},null,{"$f":"SUM(AV179:AV187)","v":0},null,{"$f":"SUM(AX179:AX187)","v":0},null,{"$f":"SUM(AZ179:AZ187)","v":0},null,{"$f":"SUM(BB179:BB187)","v":0},{"$f":"SUM(E188:BB188)","v":0}]
["TOTAL WORKDAYS",null,null,null,null,{"$f":"F188/8","v":0},null,{"$f":"H188/8","v":0},null,{"$f":"J188/8","v":0},null,{"$f":"L188/8","v":0},null,{"$f":"N188/8","v":0},null,{"$f":"P188/8","v":0},null,{"$f":"R188/8","v":0},null,{"$f":"T188/8","v":0},null,{"$f":"V188/8","v":0},null,{"$f":"X188/8","v":0},null,{"$f":"Z188/8","v":0},null,{"$f":"AB188/8","v":0},null,{"$f":"AD188/8","v":0},null,0,null,{"$f":"AH188/8","v":0},null,0,null,{"$f":"AL188/8","v":0},null,0,null,{"$f":"AP188/8","v":0},null,0,null,{"$f":"AT188/8","v":0},null,{"$f":"AV188/8","v":0},null,{"$f":"AX188/8","v":0},null,{"$f":"AZ188/8","v":0},null,{"$f":"BB188/8","v":0},{"$f":"SUM(E189:BB189)","v":0}]
["TOTAL RAW LABOR",null,null,null,null,{"$f":"$E$13*F188","v":0},null,{"$f":"$G$13*H188","v":0},null,{"$f":"$I$13*J188","v":0},null,{"$f":"$K$13*L188","v":0},null,{"$f":"$M$13*N188","v":0},null,{"$f":"$O$13*P188","v":0},null,{"$f":"$Q$13*R188","v":0},null,{"$f":"$S$13*T188","v":0},null,{"$f":"$U$13*V188","v":0},null,{"$f":"$W$13*X188","v":0},null,{"$f":"$Y$13*Z188","v":0},null,{"$f":"$AA$13*AB188","v":0},null,{"$f":"$AC$13*AD188","v":0},null,{"$f":"$AC$13*AF188","v":0},null,{"$f":"$AC$13*AH188","v":0},null,{"$f":"$AC$13*AJ188","v":0},null,{"$f":"$AC$13*AL188","v":0},null,{"$f":"$AC$13*AN188","v":0},null,{"$f":"$AC$13*AP188","v":0},null,{"$f":"$AC$13*AR188","v":0},null,{"$f":"$AC$13*AT188","v":0},null,{"$f":"$AC$13*AV188","v":0},null,{"$f":"$AC$13*AX188","v":0},null,{"$f":"$AC$13*AZ188","v":0},null,{"$f":"$AC$13*BB188","v":0},{"$f":"SUM(E190:BB190)","v":0}]
["Task 8.0     ","RAILROAD ENCROACHMENT PERMIT COORDINATION"]
[8.1,"Identify Railroad Crossings",null,null,{"$f":"IF($C$192=\"\",\"\",F192/$C$192)","v":""},null,{"$f":"IF($C$192=\"\",\"\",H192/$C$192)","v":""},null,{"$f":"IF($C$192=\"\",\"\",J192/$C$192)","v":""},null,{"$f":"IF($C$192=\"\",\"\",L192/$C$192)","v":""},null,{"$f":"IF($C$192=\"\",\"\",N192/$C$192)","v":""},null,{"$f":"IF($C$192=\"\",\"\",P192/$C$192)","v":""},null,{"$f":"IF($C$192=\"\",\"\",R192/$C$192)","v":""},null,{"$f":"IF($C$192=\"\",\"\",T192/$C$192)","v":""},null,{"$f":"IF($C$192=\"\",\"\",V192/$C$192)","v":""},null,{"$f":"IF($C$192=\"\",\"\",X192/$C$192)","v":""},null,{"$f":"IF($C$192=\"\",\"\",Z192/$C$192)","v":""},null,{"$f":"IF($C$192=\"\",\"\",AB192/$C$192)","v":""},null,{"$f":"IF($C$192=\"\",\"\",AD192/$C$192)","v":""},null,{"$f":"IF($C$192=\"\",\"\",AF192/$C$192)","v":""},null,{"$f":"IF($C$192=\"\",\"\",AH192/$C$192)","v":""},null,{"$f":"IF($C$192=\"\",\"\",AJ192/$C$192)","v":""},null,{"$f":"IF($C$192=\"\",\"\",AL192/$C$192)","v":""},null,{"$f":"IF($C$192=\"\",\"\",AN192/$C$192)","v":""},null,{"$f":"IF($C$192=\"\",\"\",AP192/$C$192)","v":""},null,{"$f":"IF($C$192=\"\",\"\",AR192/$C$192)","v":""},null,{"$f":"IF($C$192=\"\",\"\",AT192/$C$192)","v":""},null,{"$f":"IF($C$192=\"\",\"\",AV192/$C$192)","v":""},null,{"$f":"IF($C$192=\"\",\"\",AX192/$C$192)","v":""},null,{"$f":"IF($C$192=\"\",\"\",AZ192/$C$192)","v":""},null,{"$f":"IF($C$192=\"\",\"\",BB192/$C$192)","v":""},null,{"$f":"SUM(BB192,AZ192,AX192,AV192,AT192,AR192,AP192,AN192,AL192,AJ192,AH192,AF192,AD192,AB192,Z192,X192,V192,T192,R192,P192,N192,L192,J192,H192,F192)","v":0}]
[8.1999999999999993,"Collect Railroad Encroachment Data",null,null,{"$f":"IF($C$193=\"\",\"\",F193/$C$193)","v":""},null,{"$f":"IF($C$193=\"\",\"\",H193/$C$193)","v":""},null,{"$f":"IF($C$193=\"\",\"\",J193/$C$193)","v":""},null,{"$f":"IF($C$193=\"\",\"\",L193/$C$193)","v":""},null,{"$f":"IF($C$193=\"\",\"\",N193/$C$193)","v":""},null,{"$f":"IF($C$193=\"\",\"\",P193/$C$193)","v":""},null,{"$f":"IF($C$193=\"\",\"\",R193/$C$193)","v":""},null,{"$f":"IF($C$193=\"\",\"\",T193/$C$193)","v":""},null,{"$f":"IF($C$193=\"\",\"\",V193/$C$193)","v":""},null,{"$f":"IF($C$193=\"\",\"\",X193/$C$193)","v":""},null,{"$f":"IF($C$193=\"\",\"\",Z193/$C$193)","v":""},null,{"$f":"IF($C$193=\"\",\"\",AB193/$C$193)","v":""},null,{"$f":"IF($C$193=\"\",\"\",AD193/$C$193)","v":""},null,{"$f":"IF($C$193=\"\",\"\",AF193/$C$193)","v":""},null,{"$f":"IF($C$193=\"\",\"\",AH193/$C$193)","v":""},null,{"$f":"IF($C$193=\"\",\"\",AJ193/$C$193)","v":""},null,{"$f":"IF($C$193=\"\",\"\",AL193/$C$193)","v":""},null,{"$f":"IF($C$193=\"\",\"\",AN193/$C$193)","v":""},null,{"$f":"IF($C$193=\"\",\"\",AP193/$C$193)","v":""},null,{"$f":"IF($C$193=\"\",\"\",AR193/$C$193)","v":""},null,{"$f":"IF($C$193=\"\",\"\",AT193/$C$193)","v":""},null,{"$f":"IF($C$193=\"\",\"\",AV193/$C$193)","v":""},null,{"$f":"IF($C$193=\"\",\"\",AX193/$C$193)","v":""},null,{"$f":"IF($C$193=\"\",\"\",AZ193/$C$193)","v":""},null,{"$f":"IF($C$193=\"\",\"\",BB193/$C$193)","v":""},null,0]
[8.3000000000000007,"Prepare Figures & Exhibits for Permits",null,null,{"$f":"IF($C$194=\"\",\"\",F194/$C$194)","v":""},null,{"$f":"IF($C$194=\"\",\"\",H194/$C$194)","v":""},null,{"$f":"IF($C$194=\"\",\"\",J194/$C$194)","v":""},null,{"$f":"IF($C$194=\"\",\"\",L194/$C$194)","v":""},null,{"$f":"IF($C$194=\"\",\"\",N194/$C$194)","v":""},null,{"$f":"IF($C$194=\"\",\"\",P194/$C$194)","v":""},null,{"$f":"IF($C$194=\"\",\"\",R194/$C$194)","v":""},null,{"$f":"IF($C$194=\"\",\"\",T194/$C$194)","v":""},null,{"$f":"IF($C$194=\"\",\"\",V194/$C$194)","v":""},null,{"$f":"IF($C$194=\"\",\"\",X194/$C$194)","v":""},null,{"$f":"IF($C$194=\"\",\"\",Z194/$C$194)","v":""},null,{"$f":"IF($C$194=\"\",\"\",AB194/$C$194)","v":""},null,{"$f":"IF($C$194=\"\",\"\",AD194/$C$194)","v":""},null,{"$f":"IF($C$194=\"\",\"\",AF194/$C$194)","v":""},null,{"$f":"IF($C$194=\"\",\"\",AH194/$C$194)","v":""},null,{"$f":"IF($C$194=\"\",\"\",AJ194/$C$194)","v":""},null,{"$f":"IF($C$194=\"\",\"\",AL194/$C$194)","v":""},null,{"$f":"IF($C$194=\"\",\"\",AN194/$C$194)","v":""},null,{"$f":"IF($C$194=\"\",\"\",AP194/$C$194)","v":""},null,{"$f":"IF($C$194=\"\",\"\",AR194/$C$194)","v":""},null,{"$f":"IF($C$194=\"\",\"\",AT194/$C$194)","v":""},null,{"$f":"IF($C$194=\"\",\"\",AV194/$C$194)","v":""},null,{"$f":"IF($C$194=\"\",\"\",AX194/$C$194)","v":""},null,{"$f":"IF($C$194=\"\",\"\",AZ194/$C$194)","v":""},null,{"$f":"IF($C$194=\"\",\"\",BB194/$C$194)","v":""},null,0]
[8.4,"Complete the Permit Forms",null,null,{"$f":"IF($C$195=\"\",\"\",F195/$C$195)","v":""},null,{"$f":"IF($C$195=\"\",\"\",H195/$C$195)","v":""},null,{"$f":"IF($C$195=\"\",\"\",J195/$C$195)","v":""},null,{"$f":"IF($C$195=\"\",\"\",L195/$C$195)","v":""},null,{"$f":"IF($C$195=\"\",\"\",N195/$C$195)","v":""},null,{"$f":"IF($C$195=\"\",\"\",P195/$C$195)","v":""},null,{"$f":"IF($C$195=\"\",\"\",R195/$C$195)","v":""},null,{"$f":"IF($C$195=\"\",\"\",T195/$C$195)","v":""},null,{"$f":"IF($C$195=\"\",\"\",V195/$C$195)","v":""},null,{"$f":"IF($C$195=\"\",\"\",X195/$C$195)","v":""},null,{"$f":"IF($C$195=\"\",\"\",Z195/$C$195)","v":""},null,{"$f":"IF($C$195=\"\",\"\",AB195/$C$195)","v":""},null,{"$f":"IF($C$195=\"\",\"\",AD195/$C$195)","v":""},null,{"$f":"IF($C$195=\"\",\"\",AF195/$C$195)","v":""},null,{"$f":"IF($C$195=\"\",\"\",AH195/$C$195)","v":""},null,{"$f":"IF($C$195=\"\",\"\",AJ195/$C$195)","v":""},null,{"$f":"IF($C$195=\"\",\"\",AL195/$C$195)","v":""},null,{"$f":"IF($C$195=\"\",\"\",AN195/$C$195)","v":""},null,{"$f":"IF($C$195=\"\",\"\",AP195/$C$195)","v":""},null,{"$f":"IF($C$195=\"\",\"\",AR195/$C$195)","v":""},null,{"$f":"IF($C$195=\"\",\"\",AT195/$C$195)","v":""},null,{"$f":"IF($C$195=\"\",\"\",AV195/$C$195)","v":""},null,{"$f":"IF($C$195=\"\",\"\",AX195/$C$195)","v":""},null,{"$f":"IF($C$195=\"\",\"\",AZ195/$C$195)","v":""},null,{"$f":"IF($C$195=\"\",\"\",BB195/$C$195)","v":""},null,0]
[null,null,null,null,{"$f":"IF($C$196=\"\",\"\",F196/$C$196)","v":""},null,{"$f":"IF($C$196=\"\",\"\",H196/$C$196)","v":""},null,{"$f":"IF($C$196=\"\",\"\",J196/$C$196)","v":""},null,{"$f":"IF($C$196=\"\",\"\",L196/$C$196)","v":""},null,{"$f":"IF($C$196=\"\",\"\",N196/$C$196)","v":""},null,{"$f":"IF($C$196=\"\",\"\",P196/$C$196)","v":""},null,{"$f":"IF($C$196=\"\",\"\",R196/$C$196)","v":""},null,{"$f":"IF($C$196=\"\",\"\",T196/$C$196)","v":""},null,{"$f":"IF($C$196=\"\",\"\",V196/$C$196)","v":""},null,{"$f":"IF($C$196=\"\",\"\",X196/$C$196)","v":""},null,{"$f":"IF($C$196=\"\",\"\",Z196/$C$196)","v":""},null,{"$f":"IF($C$196=\"\",\"\",AB196/$C$196)","v":""},null,{"$f":"IF($C$196=\"\",\"\",AD196/$C$196)","v":""},null,{"$f":"IF($C$196=\"\",\"\",AF196/$C$196)","v":""},null,{"$f":"IF($C$196=\"\",\"\",AH196/$C$196)","v":""},null,{"$f":"IF($C$196=\"\",\"\",AJ196/$C$196)","v":""},null,{"$f":"IF($C$196=\"\",\"\",AL196/$C$196)","v":""},null,{"$f":"IF($C$196=\"\",\"\",AN196/$C$196)","v":""},null,{"$f":"IF($C$196=\"\",\"\",AP196/$C$196)","v":""},null,{"$f":"IF($C$196=\"\",\"\",AR196/$C$196)","v":""},null,{"$f":"IF($C$196=\"\",\"\",AT196/$C$196)","v":""},null,{"$f":"IF($C$196=\"\",\"\",AV196/$C$196)","v":""},null,{"$f":"IF($C$196=\"\",\"\",AX196/$C$196)","v":""},null,{"$f":"IF($C$196=\"\",\"\",AZ196/$C$196)","v":""},null,{"$f":"IF($C$196=\"\",\"\",BB196/$C$196)","v":""},null,0]
[null,null,null,null,{"$f":"IF($C$197=\"\",\"\",F197/$C$197)","v":""},null,{"$f":"IF($C$197=\"\",\"\",H197/$C$197)","v":""},null,{"$f":"IF($C$197=\"\",\"\",J197/$C$197)","v":""},null,{"$f":"IF($C$197=\"\",\"\",L197/$C$197)","v":""},null,{"$f":"IF($C$197=\"\",\"\",N197/$C$197)","v":""},null,{"$f":"IF($C$197=\"\",\"\",P197/$C$197)","v":""},null,{"$f":"IF($C$197=\"\",\"\",R197/$C$197)","v":""},null,{"$f":"IF($C$197=\"\",\"\",T197/$C$197)","v":""},null,{"$f":"IF($C$197=\"\",\"\",V197/$C$197)","v":""},null,{"$f":"IF($C$197=\"\",\"\",X197/$C$197)","v":""},null,{"$f":"IF($C$197=\"\",\"\",Z197/$C$197)","v":""},null,{"$f":"IF($C$197=\"\",\"\",AB197/$C$197)","v":""},null,{"$f":"IF($C$197=\"\",\"\",AD197/$C$197)","v":""},null,{"$f":"IF($C$197=\"\",\"\",AF197/$C$197)","v":""},null,{"$f":"IF($C$197=\"\",\"\",AH197/$C$197)","v":""},null,{"$f":"IF($C$197=\"\",\"\",AJ197/$C$197)","v":""},null,{"$f":"IF($C$197=\"\",\"\",AL197/$C$197)","v":""},null,{"$f":"IF($C$197=\"\",\"\",AN197/$C$197)","v":""},null,{"$f":"IF($C$197=\"\",\"\",AP197/$C$197)","v":""},null,{"$f":"IF($C$197=\"\",\"\",AR197/$C$197)","v":""},null,{"$f":"IF($C$197=\"\",\"\",AT197/$C$197)","v":""},null,{"$f":"IF($C$197=\"\",\"\",AV197/$C$197)","v":""},null,{"$f":"IF($C$197=\"\",\"\",AX197/$C$197)","v":""},null,{"$f":"IF($C$197=\"\",\"\",AZ197/$C$197)","v":""},null,{"$f":"IF($C$197=\"\",\"\",BB197/$C$197)","v":""},null,0]
[null,null,null,null,{"$f":"IF($C$198=\"\",\"\",F198/$C$198)","v":""},null,{"$f":"IF($C$198=\"\",\"\",H198/$C$198)","v":""},null,{"$f":"IF($C$198=\"\",\"\",J198/$C$198)","v":""},null,{"$f":"IF($C$198=\"\",\"\",L198/$C$198)","v":""},null,{"$f":"IF($C$198=\"\",\"\",N198/$C$198)","v":""},null,{"$f":"IF($C$198=\"\",\"\",P198/$C$198)","v":""},null,{"$f":"IF($C$198=\"\",\"\",R198/$C$198)","v":""},null,{"$f":"IF($C$198=\"\",\"\",T198/$C$198)","v":""},null,{"$f":"IF($C$198=\"\",\"\",V198/$C$198)","v":""},null,{"$f":"IF($C$198=\"\",\"\",X198/$C$198)","v":""},null,{"$f":"IF($C$198=\"\",\"\",Z198/$C$198)","v":""},null,{"$f":"IF($C$198=\"\",\"\",AB198/$C$198)","v":""},null,{"$f":"IF($C$198=\"\",\"\",AD198/$C$198)","v":""},null,{"$f":"IF($C$198=\"\",\"\",AF198/$C$198)","v":""},null,{"$f":"IF($C$198=\"\",\"\",AH198/$C$198)","v":""},null,{"$f":"IF($C$198=\"\",\"\",AJ198/$C$198)","v":""},null,{"$f":"IF($C$198=\"\",\"\",AL198/$C$198)","v":""},null,{"$f":"IF($C$198=\"\",\"\",AN198/$C$198)","v":""},null,{"$f":"IF($C$198=\"\",\"\",AP198/$C$198)","v":""},null,{"$f":"IF($C$198=\"\",\"\",AR198/$C$198)","v":""},null,{"$f":"IF($C$198=\"\",\"\",AT198/$C$198)","v":""},null,{"$f":"IF($C$198=\"\",\"\",AV198/$C$198)","v":""},null,{"$f":"IF($C$198=\"\",\"\",AX198/$C$198)","v":""},null,{"$f":"IF($C$198=\"\",\"\",AZ198/$C$198)","v":""},null,{"$f":"IF($C$198=\"\",\"\",BB198/$C$198)","v":""},null,0]
[null,null,null,null,{"$f":"IF($C$199=\"\",\"\",F199/$C$199)","v":""},null,{"$f":"IF($C$199=\"\",\"\",H199/$C$199)","v":""},null,{"$f":"IF($C$199=\"\",\"\",J199/$C$199)","v":""},null,{"$f":"IF($C$199=\"\",\"\",L199/$C$199)","v":""},null,{"$f":"IF($C$199=\"\",\"\",N199/$C$199)","v":""},null,{"$f":"IF($C$199=\"\",\"\",P199/$C$199)","v":""},null,{"$f":"IF($C$199=\"\",\"\",R199/$C$199)","v":""},null,{"$f":"IF($C$199=\"\",\"\",T199/$C$199)","v":""},null,{"$f":"IF($C$199=\"\",\"\",V199/$C$199)","v":""},null,{"$f":"IF($C$199=\"\",\"\",X199/$C$199)","v":""},null,{"$f":"IF($C$199=\"\",\"\",Z199/$C$199)","v":""},null,{"$f":"IF($C$199=\"\",\"\",AB199/$C$199)","v":""},null,{"$f":"IF($C$199=\"\",\"\",AD199/$C$199)","v":""},null,{"$f":"IF($C$199=\"\",\"\",AF199/$C$199)","v":""},null,{"$f":"IF($C$199=\"\",\"\",AH199/$C$199)","v":""},null,{"$f":"IF($C$199=\"\",\"\",AJ199/$C$199)","v":""},null,{"$f":"IF($C$199=\"\",\"\",AL199/$C$199)","v":""},null,{"$f":"IF($C$199=\"\",\"\",AN199/$C$199)","v":""},null,{"$f":"IF($C$199=\"\",\"\",AP199/$C$199)","v":""},null,{"$f":"IF($C$199=\"\",\"\",AR199/$C$199)","v":""},null,{"$f":"IF($C$199=\"\",\"\",AT199/$C$199)","v":""},null,{"$f":"IF($C$199=\"\",\"\",AV199/$C$199)","v":""},null,{"$f":"IF($C$199=\"\",\"\",AX199/$C$199)","v":""},null,{"$f":"IF($C$199=\"\",\"\",AZ199/$C$199)","v":""},null,{"$f":"IF($C$199=\"\",\"\",BB199/$C$199)","v":""},null,0]
[null,null,null,null,{"$f":"IF($C$200=\"\",\"\",F200/$C$200)","v":""},null,{"$f":"IF($C$200=\"\",\"\",H200/$C$200)","v":""},null,{"$f":"IF($C$200=\"\",\"\",J200/$C$200)","v":""},null,{"$f":"IF($C$200=\"\",\"\",L200/$C$200)","v":""},null,{"$f":"IF($C$200=\"\",\"\",N200/$C$200)","v":""},null,{"$f":"IF($C$200=\"\",\"\",P200/$C$200)","v":""},null,{"$f":"IF($C$200=\"\",\"\",R200/$C$200)","v":""},null,{"$f":"IF($C$200=\"\",\"\",T200/$C$200)","v":""},null,{"$f":"IF($C$200=\"\",\"\",V200/$C$200)","v":""},null,{"$f":"IF($C$200=\"\",\"\",X200/$C$200)","v":""},null,{"$f":"IF($C$200=\"\",\"\",Z200/$C$200)","v":""},null,{"$f":"IF($C$200=\"\",\"\",AB200/$C$200)","v":""},null,{"$f":"IF($C$200=\"\",\"\",AD200/$C$200)","v":""},null,{"$f":"IF($C$200=\"\",\"\",AF200/$C$200)","v":""},null,{"$f":"IF($C$200=\"\",\"\",AH200/$C$200)","v":""},null,{"$f":"IF($C$200=\"\",\"\",AJ200/$C$200)","v":""},null,{"$f":"IF($C$200=\"\",\"\",AL200/$C$200)","v":""},null,{"$f":"IF($C$200=\"\",\"\",AN200/$C$200)","v":""},null,{"$f":"IF($C$200=\"\",\"\",AP200/$C$200)","v":""},null,{"$f":"IF($C$200=\"\",\"\",AR200/$C$200)","v":""},null,{"$f":"IF($C$200=\"\",\"\",AT200/$C$200)","v":""},null,{"$f":"IF($C$200=\"\",\"\",AV200/$C$200)","v":""},null,{"$f":"IF($C$200=\"\",\"\",AX200/$C$200)","v":""},null,{"$f":"IF($C$200=\"\",\"\",AZ200/$C$200)","v":""},null,{"$f":"IF($C$200=\"\",\"\",BB200/$C$200)","v":""},null,0]
[null,null,null,null,{"$f":"IF($C$201=\"\",\"\",F201/$C$201)","v":""},null,{"$f":"IF($C$201=\"\",\"\",H201/$C$201)","v":""},null,{"$f":"IF($C$201=\"\",\"\",J201/$C$201)","v":""},null,{"$f":"IF($C$201=\"\",\"\",L201/$C$201)","v":""},null,{"$f":"IF($C$201=\"\",\"\",N201/$C$201)","v":""},null,{"$f":"IF($C$201=\"\",\"\",P201/$C$201)","v":""},null,{"$f":"IF($C$201=\"\",\"\",R201/$C$201)","v":""},null,{"$f":"IF($C$201=\"\",\"\",T201/$C$201)","v":""},null,{"$f":"IF($C$201=\"\",\"\",V201/$C$201)","v":""},null,{"$f":"IF($C$201=\"\",\"\",X201/$C$201)","v":""},null,{"$f":"IF($C$201=\"\",\"\",Z201/$C$201)","v":""},null,{"$f":"IF($C$201=\"\",\"\",AB201/$C$201)","v":""},null,{"$f":"IF($C$201=\"\",\"\",AD201/$C$201)","v":""},null,{"$f":"IF($C$201=\"\",\"\",AF201/$C$201)","v":""},null,{"$f":"IF($C$201=\"\",\"\",AH201/$C$201)","v":""},null,{"$f":"IF($C$201=\"\",\"\",AJ201/$C$201)","v":""},null,{"$f":"IF($C$201=\"\",\"\",AL201/$C$201)","v":""},null,{"$f":"IF($C$201=\"\",\"\",AN201/$C$201)","v":""},null,{"$f":"IF($C$201=\"\",\"\",AP201/$C$201)","v":""},null,{"$f":"IF($C$201=\"\",\"\",AR201/$C$201)","v":""},null,{"$f":"IF($C$201=\"\",\"\",AT201/$C$201)","v":""},null,{"$f":"IF($C$201=\"\",\"\",AV201/$C$201)","v":""},null,{"$f":"IF($C$201=\"\",\"\",AX201/$C$201)","v":""},null,{"$f":"IF($C$201=\"\",\"\",AZ201/$C$201)","v":""},null,{"$f":"IF($C$201=\"\",\"\",BB201/$C$201)","v":""},null,0]
[null,null,null,null,{"$f":"IF($C$202=\"\",\"\",F202/$C$202)","v":""},null,{"$f":"IF($C$202=\"\",\"\",H202/$C$202)","v":""},null,{"$f":"IF($C$202=\"\",\"\",J202/$C$202)","v":""},null,{"$f":"IF($C$202=\"\",\"\",L202/$C$202)","v":""},null,{"$f":"IF($C$202=\"\",\"\",N202/$C$202)","v":""},null,{"$f":"IF($C$202=\"\",\"\",P202/$C$202)","v":""},null,{"$f":"IF($C$202=\"\",\"\",R202/$C$202)","v":""},null,{"$f":"IF($C$202=\"\",\"\",T202/$C$202)","v":""},null,{"$f":"IF($C$202=\"\",\"\",V202/$C$202)","v":""},null,{"$f":"IF($C$202=\"\",\"\",X202/$C$202)","v":""},null,{"$f":"IF($C$202=\"\",\"\",Z202/$C$202)","v":""},null,{"$f":"IF($C$202=\"\",\"\",AB202/$C$202)","v":""},null,{"$f":"IF($C$202=\"\",\"\",AD202/$C$202)","v":""},null,{"$f":"IF($C$202=\"\",\"\",AF202/$C$202)","v":""},null,{"$f":"IF($C$202=\"\",\"\",AH202/$C$202)","v":""},null,{"$f":"IF($C$202=\"\",\"\",AJ202/$C$202)","v":""},null,{"$f":"IF($C$202=\"\",\"\",AL202/$C$202)","v":""},null,{"$f":"IF($C$202=\"\",\"\",AN202/$C$202)","v":""},null,{"$f":"IF($C$202=\"\",\"\",AP202/$C$202)","v":""},null,{"$f":"IF($C$202=\"\",\"\",AR202/$C$202)","v":""},null,{"$f":"IF($C$202=\"\",\"\",AT202/$C$202)","v":""},null,{"$f":"IF($C$202=\"\",\"\",AV202/$C$202)","v":""},null,{"$f":"IF($C$202=\"\",\"\",AX202/$C$202)","v":""},null,{"$f":"IF($C$202=\"\",\"\",AZ202/$C$202)","v":""},null,{"$f":"IF($C$202=\"\",\"\",BB202/$C$202)","v":""},null,{"$f":"SUM(BB202,AZ202,AX202,AV202,AT202,AR202,AP202,AN202,AL202,AJ202,AH202,AF202,AD202,AB202,Z202,X202,V202,T202,R202,P202,N202,L202,J202,H202,F202)","v":0}]
["TOTAL HOURS",null,null,null,null,{"$f":"SUM(F192:F202)","v":0},null,{"$f":"SUM(H192:H202)","v":0},null,{"$f":"SUM(J192:J202)","v":0},null,{"$f":"SUM(L192:L202)","v":0},null,{"$f":"SUM(N192:N202)","v":0},null,{"$f":"SUM(P192:P202)","v":0},null,{"$f":"SUM(R192:R202)","v":0},null,{"$f":"SUM(T192:T202)","v":0},null,{"$f":"SUM(V192:V202)","v":0},null,{"$f":"SUM(X192:X202)","v":0},null,{"$f":"SUM(Z192:Z202)","v":0},null,{"$f":"SUM(AB192:AB202)","v":0},null,{"$f":"SUM(AD192:AD202)","v":0},null,{"$f":"SUM(AF192:AF202)","v":0},null,{"$f":"SUM(AH192:AH202)","v":0},null,{"$f":"SUM(AJ192:AJ202)","v":0},null,{"$f":"SUM(AL192:AL202)","v":0},null,{"$f":"SUM(AN192:AN202)","v":0},null,{"$f":"SUM(AP192:AP202)","v":0},null,{"$f":"SUM(AR192:AR202)","v":0},null,{"$f":"SUM(AT192:AT202)","v":0},null,{"$f":"SUM(AV192:AV202)","v":0},null,{"$f":"SUM(AX192:AX202)","v":0},null,{"$f":"SUM(AZ192:AZ202)","v":0},null,{"$f":"SUM(BB192:BB202)","v":0},{"$f":"SUM(E203:BB203)","v":0}]
["TOTAL WORKDAYS",null,null,null,null,{"$f":"F203/8","v":0},null,{"$f":"H203/8","v":0},null,{"$f":"J203/8","v":0},null,{"$f":"L203/8","v":0},null,{"$f":"N203/8","v":0},null,{"$f":"P203/8","v":0},null,{"$f":"R203/8","v":0},null,{"$f":"T203/8","v":0},null,{"$f":"V203/8","v":0},null,{"$f":"X203/8","v":0},null,{"$f":"Z203/8","v":0},null,{"$f":"AB203/8","v":0},null,{"$f":"AD203/8","v":0},null,0,null,{"$f":"AH203/8","v":0},null,0,null,{"$f":"AL203/8","v":0},null,0,null,{"$f":"AP203/8","v":0},null,0,null,{"$f":"AT203/8","v":0},null,{"$f":"AV203/8","v":0},null,{"$f":"AX203/8","v":0},null,{"$f":"AZ203/8","v":0},null,{"$f":"BB203/8","v":0},{"$f":"SUM(E204:BB204)","v":0}]
["TOTAL RAW LABOR",null,null,null,null,{"$f":"$E$13*F203","v":0},null,{"$f":"$G$13*H203","v":0},null,{"$f":"$I$13*J203","v":0},null,{"$f":"$K$13*L203","v":0},null,{"$f":"$M$13*N203","v":0},null,{"$f":"$O$13*P203","v":0},null,{"$f":"$Q$13*R203","v":0},null,{"$f":"$S$13*T203","v":0},null,{"$f":"$U$13*V203","v":0},null,{"$f":"$W$13*X203","v":0},null,{"$f":"$Y$13*Z203","v":0},null,{"$f":"$AA$13*AB203","v":0},null,{"$f":"$AC$13*AD203","v":0},null,{"$f":"$AC$13*AF203","v":0},null,{"$f":"$AC$13*AH203","v":0},null,{"$f":"$AC$13*AJ203","v":0},null,{"$f":"$AC$13*AL203","v":0},null,{"$f":"$AC$13*AN203","v":0},null,{"$f":"$AC$13*AP203","v":0},null,{"$f":"$AC$13*AR203","v":0},null,{"$f":"$AC$13*AT203","v":0},null,{"$f":"$AC$13*AV203","v":0},null,{"$f":"$AC$13*AX203","v":0},null,{"$f":"$AC$13*AZ203","v":0},null,{"$f":"$AC$13*BB203","v":0},{"$f":"SUM(E205:BB205)","v":0}]
["Task 9.0     ","BASIS OF DESIGN DOCUMENT (BODD)"]
[9.1,"Basis of Design Document (BODD)"]
["    9.1.1","    Prepare and Maintain BODD Notebook",null,null,{"$f":"IF($C$208=\"\",\"\",F208/$C$208)","v":""},null,{"$f":"IF($C$208=\"\",\"\",H208/$C$208)","v":""},null,{"$f":"IF($C$208=\"\",\"\",J208/$C$208)","v":""},null,{"$f":"IF($C$208=\"\",\"\",L208/$C$208)","v":""},null,{"$f":"IF($C$208=\"\",\"\",N208/$C$208)","v":""},null,{"$f":"IF($C$208=\"\",\"\",P208/$C$208)","v":""},null,{"$f":"IF($C$208=\"\",\"\",R208/$C$208)","v":""},null,{"$f":"IF($C$208=\"\",\"\",T208/$C$208)","v":""},null,{"$f":"IF($C$208=\"\",\"\",V208/$C$208)","v":""},null,{"$f":"IF($C$208=\"\",\"\",X208/$C$208)","v":""},null,{"$f":"IF($C$208=\"\",\"\",Z208/$C$208)","v":""},null,{"$f":"IF($C$208=\"\",\"\",AB208/$C$208)","v":""},null,{"$f":"IF($C$208=\"\",\"\",AD208/$C$208)","v":""},null,{"$f":"IF($C$208=\"\",\"\",AF208/$C$208)","v":""},null,{"$f":"IF($C$208=\"\",\"\",AH208/$C$208)","v":""},null,{"$f":"IF($C$208=\"\",\"\",AJ208/$C$208)","v":""},null,{"$f":"IF($C$208=\"\",\"\",AL208/$C$208)","v":""},null,{"$f":"IF($C$208=\"\",\"\",AN208/$C$208)","v":""},null,{"$f":"IF($C$208=\"\",\"\",AP208/$C$208)","v":""},null,{"$f":"IF($C$208=\"\",\"\",AR208/$C$208)","v":""},null,{"$f":"IF($C$208=\"\",\"\",AT208/$C$208)","v":""},null,{"$f":"IF($C$208=\"\",\"\",AV208/$C$208)","v":""},null,{"$f":"IF($C$208=\"\",\"\",AX208/$C$208)","v":""},null,{"$f":"IF($C$208=\"\",\"\",AZ208/$C$208)","v":""},null,{"$f":"IF($C$208=\"\",\"\",BB208/$C$208)","v":""},null,{"$f":"SUM(BB208,AZ208,AX208,AV208,AT208,AR208,AP208,AN208,AL208,AJ208,AH208,AF208,AD208,AB208,Z208,X208,V208,T208,R208,P208,N208,L208,J208,H208,F208)","v":0}]
["    9.1.2","    Prepare and Distribute Project Meeting Minutes",null,null,{"$f":"IF($C$209=\"\",\"\",F209/$C$209)","v":""},null,{"$f":"IF($C$209=\"\",\"\",H209/$C$209)","v":""},null,{"$f":"IF($C$209=\"\",\"\",J209/$C$209)","v":""},null,{"$f":"IF($C$209=\"\",\"\",L209/$C$209)","v":""},null,{"$f":"IF($C$209=\"\",\"\",N209/$C$209)","v":""},null,{"$f":"IF($C$209=\"\",\"\",P209/$C$209)","v":""},null,{"$f":"IF($C$209=\"\",\"\",R209/$C$209)","v":""},null,{"$f":"IF($C$209=\"\",\"\",T209/$C$209)","v":""},null,{"$f":"IF($C$209=\"\",\"\",V209/$C$209)","v":""},null,{"$f":"IF($C$209=\"\",\"\",X209/$C$209)","v":""},null,{"$f":"IF($C$209=\"\",\"\",Z209/$C$209)","v":""},null,{"$f":"IF($C$209=\"\",\"\",AB209/$C$209)","v":""},null,{"$f":"IF($C$209=\"\",\"\",AD209/$C$209)","v":""},null,{"$f":"IF($C$209=\"\",\"\",AF209/$C$209)","v":""},null,{"$f":"IF($C$209=\"\",\"\",AH209/$C$209)","v":""},null,{"$f":"IF($C$209=\"\",\"\",AJ209/$C$209)","v":""},null,{"$f":"IF($C$209=\"\",\"\",AL209/$C$209)","v":""},null,{"$f":"IF($C$209=\"\",\"\",AN209/$C$209)","v":""},null,{"$f":"IF($C$209=\"\",\"\",AP209/$C$209)","v":""},null,{"$f":"IF($C$209=\"\",\"\",AR209/$C$209)","v":""},null,{"$f":"IF($C$209=\"\",\"\",AT209/$C$209)","v":""},null,{"$f":"IF($C$209=\"\",\"\",AV209/$C$209)","v":""},null,{"$f":"IF($C$209=\"\",\"\",AX209/$C$209)","v":""},null,{"$f":"IF($C$209=\"\",\"\",AZ209/$C$209)","v":""},null,{"$f":"IF($C$209=\"\",\"\",BB209/$C$209)","v":""},null,0]
["    9.1.3",null,null,null,{"$f":"IF($C$210=\"\",\"\",F210/$C$210)","v":""},null,{"$f":"IF($C$210=\"\",\"\",H210/$C$210)","v":""},null,{"$f":"IF($C$210=\"\",\"\",J210/$C$210)","v":""},null,{"$f":"IF($C$210=\"\",\"\",L210/$C$210)","v":""},null,{"$f":"IF($C$210=\"\",\"\",N210/$C$210)","v":""},null,{"$f":"IF($C$210=\"\",\"\",P210/$C$210)","v":""},null,{"$f":"IF($C$210=\"\",\"\",R210/$C$210)","v":""},null,{"$f":"IF($C$210=\"\",\"\",T210/$C$210)","v":""},null,{"$f":"IF($C$210=\"\",\"\",V210/$C$210)","v":""},null,{"$f":"IF($C$210=\"\",\"\",X210/$C$210)","v":""},null,{"$f":"IF($C$210=\"\",\"\",Z210/$C$210)","v":""},null,{"$f":"IF($C$210=\"\",\"\",AB210/$C$210)","v":""},null,{"$f":"IF($C$210=\"\",\"\",AD210/$C$210)","v":""},null,{"$f":"IF($C$210=\"\",\"\",AF210/$C$210)","v":""},null,{"$f":"IF($C$210=\"\",\"\",AH210/$C$210)","v":""},null,{"$f":"IF($C$210=\"\",\"\",AJ210/$C$210)","v":""},null,{"$f":"IF($C$210=\"\",\"\",AL210/$C$210)","v":""},null,{"$f":"IF($C$210=\"\",\"\",AN210/$C$210)","v":""},null,{"$f":"IF($C$210=\"\",\"\",AP210/$C$210)","v":""},null,{"$f":"IF($C$210=\"\",\"\",AR210/$C$210)","v":""},null,{"$f":"IF($C$210=\"\",\"\",AT210/$C$210)","v":""},null,{"$f":"IF($C$210=\"\",\"\",AV210/$C$210)","v":""},null,{"$f":"IF($C$210=\"\",\"\",AX210/$C$210)","v":""},null,{"$f":"IF($C$210=\"\",\"\",AZ210/$C$210)","v":""},null,{"$f":"IF($C$210=\"\",\"\",BB210/$C$210)","v":""},null,0]
["    9.1.4",null,null,null,{"$f":"IF($C$211=\"\",\"\",F211/$C$211)","v":""},null,{"$f":"IF($C$211=\"\",\"\",H211/$C$211)","v":""},null,{"$f":"IF($C$211=\"\",\"\",J211/$C$211)","v":""},null,{"$f":"IF($C$211=\"\",\"\",L211/$C$211)","v":""},null,{"$f":"IF($C$211=\"\",\"\",N211/$C$211)","v":""},null,{"$f":"IF($C$211=\"\",\"\",P211/$C$211)","v":""},null,{"$f":"IF($C$211=\"\",\"\",R211/$C$211)","v":""},null,{"$f":"IF($C$211=\"\",\"\",T211/$C$211)","v":""},null,{"$f":"IF($C$211=\"\",\"\",V211/$C$211)","v":""},null,{"$f":"IF($C$211=\"\",\"\",X211/$C$211)","v":""},null,{"$f":"IF($C$211=\"\",\"\",Z211/$C$211)","v":""},null,{"$f":"IF($C$211=\"\",\"\",AB211/$C$211)","v":""},null,{"$f":"IF($C$211=\"\",\"\",AD211/$C$211)","v":""},null,{"$f":"IF($C$211=\"\",\"\",AF211/$C$211)","v":""},null,{"$f":"IF($C$211=\"\",\"\",AH211/$C$211)","v":""},null,{"$f":"IF($C$211=\"\",\"\",AJ211/$C$211)","v":""},null,{"$f":"IF($C$211=\"\",\"\",AL211/$C$211)","v":""},null,{"$f":"IF($C$211=\"\",\"\",AN211/$C$211)","v":""},null,{"$f":"IF($C$211=\"\",\"\",AP211/$C$211)","v":""},null,{"$f":"IF($C$211=\"\",\"\",AR211/$C$211)","v":""},null,{"$f":"IF($C$211=\"\",\"\",AT211/$C$211)","v":""},null,{"$f":"IF($C$211=\"\",\"\",AV211/$C$211)","v":""},null,{"$f":"IF($C$211=\"\",\"\",AX211/$C$211)","v":""},null,{"$f":"IF($C$211=\"\",\"\",AZ211/$C$211)","v":""},null,{"$f":"IF($C$211=\"\",\"\",BB211/$C$211)","v":""},null,0]
["    9.1.5",null,null,null,{"$f":"IF($C$212=\"\",\"\",F212/$C$212)","v":""},null,{"$f":"IF($C$212=\"\",\"\",H212/$C$212)","v":""},null,{"$f":"IF($C$212=\"\",\"\",J212/$C$212)","v":""},null,{"$f":"IF($C$212=\"\",\"\",L212/$C$212)","v":""},null,{"$f":"IF($C$212=\"\",\"\",N212/$C$212)","v":""},null,{"$f":"IF($C$212=\"\",\"\",P212/$C$212)","v":""},null,{"$f":"IF($C$212=\"\",\"\",R212/$C$212)","v":""},null,{"$f":"IF($C$212=\"\",\"\",T212/$C$212)","v":""},null,{"$f":"IF($C$212=\"\",\"\",V212/$C$212)","v":""},null,{"$f":"IF($C$212=\"\",\"\",X212/$C$212)","v":""},null,{"$f":"IF($C$212=\"\",\"\",Z212/$C$212)","v":""},null,{"$f":"IF($C$212=\"\",\"\",AB212/$C$212)","v":""},null,{"$f":"IF($C$212=\"\",\"\",AD212/$C$212)","v":""},null,{"$f":"IF($C$212=\"\",\"\",AF212/$C$212)","v":""},null,{"$f":"IF($C$212=\"\",\"\",AH212/$C$212)","v":""},null,{"$f":"IF($C$212=\"\",\"\",AJ212/$C$212)","v":""},null,{"$f":"IF($C$212=\"\",\"\",AL212/$C$212)","v":""},null,{"$f":"IF($C$212=\"\",\"\",AN212/$C$212)","v":""},null,{"$f":"IF($C$212=\"\",\"\",AP212/$C$212)","v":""},null,{"$f":"IF($C$212=\"\",\"\",AR212/$C$212)","v":""},null,{"$f":"IF($C$212=\"\",\"\",AT212/$C$212)","v":""},null,{"$f":"IF($C$212=\"\",\"\",AV212/$C$212)","v":""},null,{"$f":"IF($C$212=\"\",\"\",AX212/$C$212)","v":""},null,{"$f":"IF($C$212=\"\",\"\",AZ212/$C$212)","v":""},null,{"$f":"IF($C$212=\"\",\"\",BB212/$C$212)","v":""},null,0]
[null,null,null,null,{"$f":"IF($C$213=\"\",\"\",F213/$C$213)","v":""},null,{"$f":"IF($C$213=\"\",\"\",H213/$C$213)","v":""},null,{"$f":"IF($C$213=\"\",\"\",J213/$C$213)","v":""},null,{"$f":"IF($C$213=\"\",\"\",L213/$C$213)","v":""},null,{"$f":"IF($C$213=\"\",\"\",N213/$C$213)","v":""},null,{"$f":"IF($C$213=\"\",\"\",P213/$C$213)","v":""},null,{"$f":"IF($C$213=\"\",\"\",R213/$C$213)","v":""},null,{"$f":"IF($C$213=\"\",\"\",T213/$C$213)","v":""},null,{"$f":"IF($C$213=\"\",\"\",V213/$C$213)","v":""},null,{"$f":"IF($C$213=\"\",\"\",X213/$C$213)","v":""},null,{"$f":"IF($C$213=\"\",\"\",Z213/$C$213)","v":""},null,{"$f":"IF($C$213=\"\",\"\",AB213/$C$213)","v":""},null,{"$f":"IF($C$213=\"\",\"\",AD213/$C$213)","v":""},null,{"$f":"IF($C$213=\"\",\"\",AF213/$C$213)","v":""},null,{"$f":"IF($C$213=\"\",\"\",AH213/$C$213)","v":""},null,{"$f":"IF($C$213=\"\",\"\",AJ213/$C$213)","v":""},null,{"$f":"IF($C$213=\"\",\"\",AL213/$C$213)","v":""},null,{"$f":"IF($C$213=\"\",\"\",AN213/$C$213)","v":""},null,{"$f":"IF($C$213=\"\",\"\",AP213/$C$213)","v":""},null,{"$f":"IF($C$213=\"\",\"\",AR213/$C$213)","v":""},null,{"$f":"IF($C$213=\"\",\"\",AT213/$C$213)","v":""},null,{"$f":"IF($C$213=\"\",\"\",AV213/$C$213)","v":""},null,{"$f":"IF($C$213=\"\",\"\",AX213/$C$213)","v":""},null,{"$f":"IF($C$213=\"\",\"\",AZ213/$C$213)","v":""},null,{"$f":"IF($C$213=\"\",\"\",BB213/$C$213)","v":""},null,0]
[null,null,null,null,{"$f":"IF($C$214=\"\",\"\",F214/$C$214)","v":""},null,{"$f":"IF($C$214=\"\",\"\",H214/$C$214)","v":""},null,{"$f":"IF($C$214=\"\",\"\",J214/$C$214)","v":""},null,{"$f":"IF($C$214=\"\",\"\",L214/$C$214)","v":""},null,{"$f":"IF($C$214=\"\",\"\",N214/$C$214)","v":""},null,{"$f":"IF($C$214=\"\",\"\",P214/$C$214)","v":""},null,{"$f":"IF($C$214=\"\",\"\",R214/$C$214)","v":""},null,{"$f":"IF($C$214=\"\",\"\",T214/$C$214)","v":""},null,{"$f":"IF($C$214=\"\",\"\",V214/$C$214)","v":""},null,{"$f":"IF($C$214=\"\",\"\",X214/$C$214)","v":""},null,{"$f":"IF($C$214=\"\",\"\",Z214/$C$214)","v":""},null,{"$f":"IF($C$214=\"\",\"\",AB214/$C$214)","v":""},null,{"$f":"IF($C$214=\"\",\"\",AD214/$C$214)","v":""},null,{"$f":"IF($C$214=\"\",\"\",AF214/$C$214)","v":""},null,{"$f":"IF($C$214=\"\",\"\",AH214/$C$214)","v":""},null,{"$f":"IF($C$214=\"\",\"\",AJ214/$C$214)","v":""},null,{"$f":"IF($C$214=\"\",\"\",AL214/$C$214)","v":""},null,{"$f":"IF($C$214=\"\",\"\",AN214/$C$214)","v":""},null,{"$f":"IF($C$214=\"\",\"\",AP214/$C$214)","v":""},null,{"$f":"IF($C$214=\"\",\"\",AR214/$C$214)","v":""},null,{"$f":"IF($C$214=\"\",\"\",AT214/$C$214)","v":""},null,{"$f":"IF($C$214=\"\",\"\",AV214/$C$214)","v":""},null,{"$f":"IF($C$214=\"\",\"\",AX214/$C$214)","v":""},null,{"$f":"IF($C$214=\"\",\"\",AZ214/$C$214)","v":""},null,{"$f":"IF($C$214=\"\",\"\",BB214/$C$214)","v":""},null,0]
[null,null,null,null,{"$f":"IF($C$215=\"\",\"\",F215/$C$215)","v":""},null,{"$f":"IF($C$215=\"\",\"\",H215/$C$215)","v":""},null,{"$f":"IF($C$215=\"\",\"\",J215/$C$215)","v":""},null,{"$f":"IF($C$215=\"\",\"\",L215/$C$215)","v":""},null,{"$f":"IF($C$215=\"\",\"\",N215/$C$215)","v":""},null,{"$f":"IF($C$215=\"\",\"\",P215/$C$215)","v":""},null,{"$f":"IF($C$215=\"\",\"\",R215/$C$215)","v":""},null,{"$f":"IF($C$215=\"\",\"\",T215/$C$215)","v":""},null,{"$f":"IF($C$215=\"\",\"\",V215/$C$215)","v":""},null,{"$f":"IF($C$215=\"\",\"\",X215/$C$215)","v":""},null,{"$f":"IF($C$215=\"\",\"\",Z215/$C$215)","v":""},null,{"$f":"IF($C$215=\"\",\"\",AB215/$C$215)","v":""},null,{"$f":"IF($C$215=\"\",\"\",AD215/$C$215)","v":""},null,{"$f":"IF($C$215=\"\",\"\",AF215/$C$215)","v":""},null,{"$f":"IF($C$215=\"\",\"\",AH215/$C$215)","v":""},null,{"$f":"IF($C$215=\"\",\"\",AJ215/$C$215)","v":""},null,{"$f":"IF($C$215=\"\",\"\",AL215/$C$215)","v":""},null,{"$f":"IF($C$215=\"\",\"\",AN215/$C$215)","v":""},null,{"$f":"IF($C$215=\"\",\"\",AP215/$C$215)","v":""},null,{"$f":"IF($C$215=\"\",\"\",AR215/$C$215)","v":""},null,{"$f":"IF($C$215=\"\",\"\",AT215/$C$215)","v":""},null,{"$f":"IF($C$215=\"\",\"\",AV215/$C$215)","v":""},null,{"$f":"IF($C$215=\"\",\"\",AX215/$C$215)","v":""},null,{"$f":"IF($C$215=\"\",\"\",AZ215/$C$215)","v":""},null,{"$f":"IF($C$215=\"\",\"\",BB215/$C$215)","v":""},null,0]
[null,null,null,null,{"$f":"IF($C$216=\"\",\"\",F216/$C$216)","v":""},null,{"$f":"IF($C$216=\"\",\"\",H216/$C$216)","v":""},null,{"$f":"IF($C$216=\"\",\"\",J216/$C$216)","v":""},null,{"$f":"IF($C$216=\"\",\"\",L216/$C$216)","v":""},null,{"$f":"IF($C$216=\"\",\"\",N216/$C$216)","v":""},null,{"$f":"IF($C$216=\"\",\"\",P216/$C$216)","v":""},null,{"$f":"IF($C$216=\"\",\"\",R216/$C$216)","v":""},null,{"$f":"IF($C$216=\"\",\"\",T216/$C$216)","v":""},null,{"$f":"IF($C$216=\"\",\"\",V216/$C$216)","v":""},null,{"$f":"IF($C$216=\"\",\"\",X216/$C$216)","v":""},null,{"$f":"IF($C$216=\"\",\"\",Z216/$C$216)","v":""},null,{"$f":"IF($C$216=\"\",\"\",AB216/$C$216)","v":""},null,{"$f":"IF($C$216=\"\",\"\",AD216/$C$216)","v":""},null,{"$f":"IF($C$216=\"\",\"\",AF216/$C$216)","v":""},null,{"$f":"IF($C$216=\"\",\"\",AH216/$C$216)","v":""},null,{"$f":"IF($C$216=\"\",\"\",AJ216/$C$216)","v":""},null,{"$f":"IF($C$216=\"\",\"\",AL216/$C$216)","v":""},null,{"$f":"IF($C$216=\"\",\"\",AN216/$C$216)","v":""},null,{"$f":"IF($C$216=\"\",\"\",AP216/$C$216)","v":""},null,{"$f":"IF($C$216=\"\",\"\",AR216/$C$216)","v":""},null,{"$f":"IF($C$216=\"\",\"\",AT216/$C$216)","v":""},null,{"$f":"IF($C$216=\"\",\"\",AV216/$C$216)","v":""},null,{"$f":"IF($C$216=\"\",\"\",AX216/$C$216)","v":""},null,{"$f":"IF($C$216=\"\",\"\",AZ216/$C$216)","v":""},null,{"$f":"IF($C$216=\"\",\"\",BB216/$C$216)","v":""},null,0]
[null,null,null,null,{"$f":"IF($C$217=\"\",\"\",F217/$C$217)","v":""},null,{"$f":"IF($C$217=\"\",\"\",H217/$C$217)","v":""},null,{"$f":"IF($C$217=\"\",\"\",J217/$C$217)","v":""},null,{"$f":"IF($C$217=\"\",\"\",L217/$C$217)","v":""},null,{"$f":"IF($C$217=\"\",\"\",N217/$C$217)","v":""},null,{"$f":"IF($C$217=\"\",\"\",P217/$C$217)","v":""},null,{"$f":"IF($C$217=\"\",\"\",R217/$C$217)","v":""},null,{"$f":"IF($C$217=\"\",\"\",T217/$C$217)","v":""},null,{"$f":"IF($C$217=\"\",\"\",V217/$C$217)","v":""},null,{"$f":"IF($C$217=\"\",\"\",X217/$C$217)","v":""},null,{"$f":"IF($C$217=\"\",\"\",Z217/$C$217)","v":""},null,{"$f":"IF($C$217=\"\",\"\",AB217/$C$217)","v":""},null,{"$f":"IF($C$217=\"\",\"\",AD217/$C$217)","v":""},null,{"$f":"IF($C$217=\"\",\"\",AF217/$C$217)","v":""},null,{"$f":"IF($C$217=\"\",\"\",AH217/$C$217)","v":""},null,{"$f":"IF($C$217=\"\",\"\",AJ217/$C$217)","v":""},null,{"$f":"IF($C$217=\"\",\"\",AL217/$C$217)","v":""},null,{"$f":"IF($C$217=\"\",\"\",AN217/$C$217)","v":""},null,{"$f":"IF($C$217=\"\",\"\",AP217/$C$217)","v":""},null,{"$f":"IF($C$217=\"\",\"\",AR217/$C$217)","v":""},null,{"$f":"IF($C$217=\"\",\"\",AT217/$C$217)","v":""},null,{"$f":"IF($C$217=\"\",\"\",AV217/$C$217)","v":""},null,{"$f":"IF($C$217=\"\",\"\",AX217/$C$217)","v":""},null,{"$f":"IF($C$217=\"\",\"\",AZ217/$C$217)","v":""},null,{"$f":"IF($C$217=\"\",\"\",BB217/$C$217)","v":""},null,0]
[null,null,null,null,{"$f":"IF($C$218=\"\",\"\",F218/$C$218)","v":""},null,{"$f":"IF($C$218=\"\",\"\",H218/$C$218)","v":""},null,{"$f":"IF($C$218=\"\",\"\",J218/$C$218)","v":""},null,{"$f":"IF($C$218=\"\",\"\",L218/$C$218)","v":""},null,{"$f":"IF($C$218=\"\",\"\",N218/$C$218)","v":""},null,{"$f":"IF($C$218=\"\",\"\",P218/$C$218)","v":""},null,{"$f":"IF($C$218=\"\",\"\",R218/$C$218)","v":""},null,{"$f":"IF($C$218=\"\",\"\",T218/$C$218)","v":""},null,{"$f":"IF($C$218=\"\",\"\",V218/$C$218)","v":""},null,{"$f":"IF($C$218=\"\",\"\",X218/$C$218)","v":""},null,{"$f":"IF($C$218=\"\",\"\",Z218/$C$218)","v":""},null,{"$f":"IF($C$218=\"\",\"\",AB218/$C$218)","v":""},null,{"$f":"IF($C$218=\"\",\"\",AD218/$C$218)","v":""},null,{"$f":"IF($C$218=\"\",\"\",AF218/$C$218)","v":""},null,{"$f":"IF($C$218=\"\",\"\",AH218/$C$218)","v":""},null,{"$f":"IF($C$218=\"\",\"\",AJ218/$C$218)","v":""},null,{"$f":"IF($C$218=\"\",\"\",AL218/$C$218)","v":""},null,{"$f":"IF($C$218=\"\",\"\",AN218/$C$218)","v":""},null,{"$f":"IF($C$218=\"\",\"\",AP218/$C$218)","v":""},null,{"$f":"IF($C$218=\"\",\"\",AR218/$C$218)","v":""},null,{"$f":"IF($C$218=\"\",\"\",AT218/$C$218)","v":""},null,{"$f":"IF($C$218=\"\",\"\",AV218/$C$218)","v":""},null,{"$f":"IF($C$218=\"\",\"\",AX218/$C$218)","v":""},null,{"$f":"IF($C$218=\"\",\"\",AZ218/$C$218)","v":""},null,{"$f":"IF($C$218=\"\",\"\",BB218/$C$218)","v":""},null,0]
[null,null,null,null,{"$f":"IF($C$219=\"\",\"\",F219/$C$219)","v":""},null,{"$f":"IF($C$219=\"\",\"\",H219/$C$219)","v":""},null,{"$f":"IF($C$219=\"\",\"\",J219/$C$219)","v":""},null,{"$f":"IF($C$219=\"\",\"\",L219/$C$219)","v":""},null,{"$f":"IF($C$219=\"\",\"\",N219/$C$219)","v":""},null,{"$f":"IF($C$219=\"\",\"\",P219/$C$219)","v":""},null,{"$f":"IF($C$219=\"\",\"\",R219/$C$219)","v":""},null,{"$f":"IF($C$219=\"\",\"\",T219/$C$219)","v":""},null,{"$f":"IF($C$219=\"\",\"\",V219/$C$219)","v":""},null,{"$f":"IF($C$219=\"\",\"\",X219/$C$219)","v":""},null,{"$f":"IF($C$219=\"\",\"\",Z219/$C$219)","v":""},null,{"$f":"IF($C$219=\"\",\"\",AB219/$C$219)","v":""},null,{"$f":"IF($C$219=\"\",\"\",AD219/$C$219)","v":""},null,{"$f":"IF($C$219=\"\",\"\",AF219/$C$219)","v":""},null,{"$f":"IF($C$219=\"\",\"\",AH219/$C$219)","v":""},null,{"$f":"IF($C$219=\"\",\"\",AJ219/$C$219)","v":""},null,{"$f":"IF($C$219=\"\",\"\",AL219/$C$219)","v":""},null,{"$f":"IF($C$219=\"\",\"\",AN219/$C$219)","v":""},null,{"$f":"IF($C$219=\"\",\"\",AP219/$C$219)","v":""},null,{"$f":"IF($C$219=\"\",\"\",AR219/$C$219)","v":""},null,{"$f":"IF($C$219=\"\",\"\",AT219/$C$219)","v":""},null,{"$f":"IF($C$219=\"\",\"\",AV219/$C$219)","v":""},null,{"$f":"IF($C$219=\"\",\"\",AX219/$C$219)","v":""},null,{"$f":"IF($C$219=\"\",\"\",AZ219/$C$219)","v":""},null,{"$f":"IF($C$219=\"\",\"\",BB219/$C$219)","v":""},null,{"$f":"SUM(BB219,AZ219,AX219,AV219,AT219,AR219,AP219,AN219,AL219,AJ219,AH219,AF219,AD219,AB219,Z219,X219,V219,T219,R219,P219,N219,L219,J219,H219,F219)","v":0}]
["TOTAL HOURS",null,null,null,null,{"$f":"SUM(F207:F219)","v":0},null,{"$f":"SUM(H207:H219)","v":0},null,{"$f":"SUM(J207:J219)","v":0},null,{"$f":"SUM(L207:L219)","v":0},null,{"$f":"SUM(N207:N219)","v":0},null,{"$f":"SUM(P207:P219)","v":0},null,{"$f":"SUM(R207:R219)","v":0},null,{"$f":"SUM(T207:T219)","v":0},null,{"$f":"SUM(V207:V219)","v":0},null,{"$f":"SUM(X207:X219)","v":0},null,{"$f":"SUM(Z207:Z219)","v":0},null,{"$f":"SUM(AB207:AB219)","v":0},null,{"$f":"SUM(AD207:AD219)","v":0},null,{"$f":"SUM(AF207:AF219)","v":0},null,{"$f":"SUM(AH207:AH219)","v":0},null,{"$f":"SUM(AJ207:AJ219)","v":0},null,{"$f":"SUM(AL207:AL219)","v":0},null,{"$f":"SUM(AN207:AN219)","v":0},null,{"$f":"SUM(AP207:AP219)","v":0},null,{"$f":"SUM(AR207:AR219)","v":0},null,{"$f":"SUM(AT207:AT219)","v":0},null,{"$f":"SUM(AV207:AV219)","v":0},null,{"$f":"SUM(AX207:AX219)","v":0},null,{"$f":"SUM(AZ207:AZ219)","v":0},null,{"$f":"SUM(BB207:BB219)","v":0},{"$f":"SUM(E220:BB220)","v":0}]
["TOTAL WORKDAYS",null,null,null,null,{"$f":"F220/8","v":0},null,{"$f":"H220/8","v":0},null,{"$f":"J220/8","v":0},null,{"$f":"L220/8","v":0},null,{"$f":"N220/8","v":0},null,{"$f":"P220/8","v":0},null,{"$f":"R220/8","v":0},null,{"$f":"T220/8","v":0},null,{"$f":"V220/8","v":0},null,{"$f":"X220/8","v":0},null,{"$f":"Z220/8","v":0},null,{"$f":"AB220/8","v":0},null,{"$f":"AD220/8","v":0},null,0,null,{"$f":"AH220/8","v":0},null,0,null,{"$f":"AL220/8","v":0},null,0,null,{"$f":"AP220/8","v":0},null,0,null,{"$f":"AT220/8","v":0},null,{"$f":"AV220/8","v":0},null,{"$f":"AX220/8","v":0},null,{"$f":"AZ220/8","v":0},null,{"$f":"BB220/8","v":0},{"$f":"SUM(E221:BB221)","v":0}]
["TOTAL RAW LABOR",null,null,null,null,{"$f":"$E$13*F220","v":0},null,{"$f":"$G$13*H220","v":0},null,{"$f":"$I$13*J220","v":0},null,{"$f":"$K$13*L220","v":0},null,{"$f":"$M$13*N220","v":0},null,{"$f":"$O$13*P220","v":0},null,{"$f":"$Q$13*R220","v":0},null,{"$f":"$S$13*T220","v":0},null,{"$f":"$U$13*V220","v":0},null,{"$f":"$W$13*X220","v":0},null,{"$f":"$Y$13*Z220","v":0},null,{"$f":"$AA$13*AB220","v":0},null,{"$f":"$AC$13*AD220","v":0},null,{"$f":"$AC$13*AF220","v":0},null,{"$f":"$AC$13*AH220","v":0},null,{"$f":"$AC$13*AJ220","v":0},null,{"$f":"$AC$13*AL220","v":0},null,{"$f":"$AC$13*AN220","v":0},null,{"$f":"$AC$13*AP220","v":0},null,{"$f":"$AC$13*AR220","v":0},null,{"$f":"$AC$13*AT220","v":0},null,{"$f":"$AC$13*AV220","v":0},null,{"$f":"$AC$13*AX220","v":0},null,{"$f":"$AC$13*AZ220","v":0},null,{"$f":"$AC$13*BB220","v":0},{"$f":"SUM(E222:BB222)","v":0}]
["Task 10.0     ","UTILITY MAKE-READY PLANS"]
[10.1,"Utility Partnering Meeting",null,null,{"$f":"IF($C$224=\"\",\"\",F224/$C$224)","v":""},null,{"$f":"IF($C$224=\"\",\"\",H224/$C$224)","v":""},null,{"$f":"IF($C$224=\"\",\"\",J224/$C$224)","v":""},null,{"$f":"IF($C$224=\"\",\"\",L224/$C$224)","v":""},null,{"$f":"IF($C$224=\"\",\"\",N224/$C$224)","v":""},null,{"$f":"IF($C$224=\"\",\"\",P224/$C$224)","v":""},null,{"$f":"IF($C$224=\"\",\"\",R224/$C$224)","v":""},null,{"$f":"IF($C$224=\"\",\"\",T224/$C$224)","v":""},null,{"$f":"IF($C$224=\"\",\"\",V224/$C$224)","v":""},null,{"$f":"IF($C$224=\"\",\"\",X224/$C$224)","v":""},null,{"$f":"IF($C$224=\"\",\"\",Z224/$C$224)","v":""},null,{"$f":"IF($C$224=\"\",\"\",AB224/$C$224)","v":""},null,{"$f":"IF($C$224=\"\",\"\",AD224/$C$224)","v":""},null,{"$f":"IF($C$224=\"\",\"\",AF224/$C$224)","v":""},null,{"$f":"IF($C$224=\"\",\"\",AH224/$C$224)","v":""},null,{"$f":"IF($C$224=\"\",\"\",AJ224/$C$224)","v":""},null,{"$f":"IF($C$224=\"\",\"\",AL224/$C$224)","v":""},null,{"$f":"IF($C$224=\"\",\"\",AN224/$C$224)","v":""},null,{"$f":"IF($C$224=\"\",\"\",AP224/$C$224)","v":""},null,{"$f":"IF($C$224=\"\",\"\",AR224/$C$224)","v":""},null,{"$f":"IF($C$224=\"\",\"\",AT224/$C$224)","v":""},null,{"$f":"IF($C$224=\"\",\"\",AV224/$C$224)","v":""},null,{"$f":"IF($C$224=\"\",\"\",AX224/$C$224)","v":""},null,{"$f":"IF($C$224=\"\",\"\",AZ224/$C$224)","v":""},null,{"$f":"IF($C$224=\"\",\"\",BB224/$C$224)","v":""},null,{"$f":"SUM(BB224,AZ224,AX224,AV224,AT224,AR224,AP224,AN224,AL224,AJ224,AH224,AF224,AD224,AB224,Z224,X224,V224,T224,R224,P224,N224,L224,J224,H224,F224)","v":0}]
[10.199999999999999,"Acquire & Format Area-Wide Base-Mapping",null,null,{"$f":"IF($C$225=\"\",\"\",F225/$C$225)","v":""},null,{"$f":"IF($C$225=\"\",\"\",H225/$C$225)","v":""},null,{"$f":"IF($C$225=\"\",\"\",J225/$C$225)","v":""},null,{"$f":"IF($C$225=\"\",\"\",L225/$C$225)","v":""},null,{"$f":"IF($C$225=\"\",\"\",N225/$C$225)","v":""},null,{"$f":"IF($C$225=\"\",\"\",P225/$C$225)","v":""},null,{"$f":"IF($C$225=\"\",\"\",R225/$C$225)","v":""},null,{"$f":"IF($C$225=\"\",\"\",T225/$C$225)","v":""},null,{"$f":"IF($C$225=\"\",\"\",V225/$C$225)","v":""},null,{"$f":"IF($C$225=\"\",\"\",X225/$C$225)","v":""},null,{"$f":"IF($C$225=\"\",\"\",Z225/$C$225)","v":""},null,{"$f":"IF($C$225=\"\",\"\",AB225/$C$225)","v":""},null,{"$f":"IF($C$225=\"\",\"\",AD225/$C$225)","v":""},null,{"$f":"IF($C$225=\"\",\"\",AF225/$C$225)","v":""},null,{"$f":"IF($C$225=\"\",\"\",AH225/$C$225)","v":""},null,{"$f":"IF($C$225=\"\",\"\",AJ225/$C$225)","v":""},null,{"$f":"IF($C$225=\"\",\"\",AL225/$C$225)","v":""},null,{"$f":"IF($C$225=\"\",\"\",AN225/$C$225)","v":""},null,{"$f":"IF($C$225=\"\",\"\",AP225/$C$225)","v":""},null,{"$f":"IF($C$225=\"\",\"\",AR225/$C$225)","v":""},null,{"$f":"IF($C$225=\"\",\"\",AT225/$C$225)","v":""},null,{"$f":"IF($C$225=\"\",\"\",AV225/$C$225)","v":""},null,{"$f":"IF($C$225=\"\",\"\",AX225/$C$225)","v":""},null,{"$f":"IF($C$225=\"\",\"\",AZ225/$C$225)","v":""},null,{"$f":"IF($C$225=\"\",\"\",BB225/$C$225)","v":""},null,0]
[10.3,"Preliminary Survey of Candidate Cable Routes ",null,null,{"$f":"IF($C$226=\"\",\"\",F226/$C$226)","v":""},null,{"$f":"IF($C$226=\"\",\"\",H226/$C$226)","v":""},null,{"$f":"IF($C$226=\"\",\"\",J226/$C$226)","v":""},null,{"$f":"IF($C$226=\"\",\"\",L226/$C$226)","v":""},null,{"$f":"IF($C$226=\"\",\"\",N226/$C$226)","v":""},null,{"$f":"IF($C$226=\"\",\"\",P226/$C$226)","v":""},null,{"$f":"IF($C$226=\"\",\"\",R226/$C$226)","v":""},null,{"$f":"IF($C$226=\"\",\"\",T226/$C$226)","v":""},null,{"$f":"IF($C$226=\"\",\"\",V226/$C$226)","v":""},null,{"$f":"IF($C$226=\"\",\"\",X226/$C$226)","v":""},null,{"$f":"IF($C$226=\"\",\"\",Z226/$C$226)","v":""},null,{"$f":"IF($C$226=\"\",\"\",AB226/$C$226)","v":""},null,{"$f":"IF($C$226=\"\",\"\",AD226/$C$226)","v":""},null,{"$f":"IF($C$226=\"\",\"\",AF226/$C$226)","v":""},null,{"$f":"IF($C$226=\"\",\"\",AH226/$C$226)","v":""},null,{"$f":"IF($C$226=\"\",\"\",AJ226/$C$226)","v":""},null,{"$f":"IF($C$226=\"\",\"\",AL226/$C$226)","v":""},null,{"$f":"IF($C$226=\"\",\"\",AN226/$C$226)","v":""},null,{"$f":"IF($C$226=\"\",\"\",AP226/$C$226)","v":""},null,{"$f":"IF($C$226=\"\",\"\",AR226/$C$226)","v":""},null,{"$f":"IF($C$226=\"\",\"\",AT226/$C$226)","v":""},null,{"$f":"IF($C$226=\"\",\"\",AV226/$C$226)","v":""},null,{"$f":"IF($C$226=\"\",\"\",AX226/$C$226)","v":""},null,{"$f":"IF($C$226=\"\",\"\",AZ226/$C$226)","v":""},null,{"$f":"IF($C$226=\"\",\"\",BB226/$C$226)","v":""},null,0]
[10.4,"Develop Preliminary Communications Routing Plan",null,null,{"$f":"IF($C$227=\"\",\"\",F227/$C$227)","v":""},null,{"$f":"IF($C$227=\"\",\"\",H227/$C$227)","v":""},null,{"$f":"IF($C$227=\"\",\"\",J227/$C$227)","v":""},null,{"$f":"IF($C$227=\"\",\"\",L227/$C$227)","v":""},null,{"$f":"IF($C$227=\"\",\"\",N227/$C$227)","v":""},null,{"$f":"IF($C$227=\"\",\"\",P227/$C$227)","v":""},null,{"$f":"IF($C$227=\"\",\"\",R227/$C$227)","v":""},null,{"$f":"IF($C$227=\"\",\"\",T227/$C$227)","v":""},null,{"$f":"IF($C$227=\"\",\"\",V227/$C$227)","v":""},null,{"$f":"IF($C$227=\"\",\"\",X227/$C$227)","v":""},null,{"$f":"IF($C$227=\"\",\"\",Z227/$C$227)","v":""},null,{"$f":"IF($C$227=\"\",\"\",AB227/$C$227)","v":""},null,{"$f":"IF($C$227=\"\",\"\",AD227/$C$227)","v":""},null,{"$f":"IF($C$227=\"\",\"\",AF227/$C$227)","v":""},null,{"$f":"IF($C$227=\"\",\"\",AH227/$C$227)","v":""},null,{"$f":"IF($C$227=\"\",\"\",AJ227/$C$227)","v":""},null,{"$f":"IF($C$227=\"\",\"\",AL227/$C$227)","v":""},null,{"$f":"IF($C$227=\"\",\"\",AN227/$C$227)","v":""},null,{"$f":"IF($C$227=\"\",\"\",AP227/$C$227)","v":""},null,{"$f":"IF($C$227=\"\",\"\",AR227/$C$227)","v":""},null,{"$f":"IF($C$227=\"\",\"\",AT227/$C$227)","v":""},null,{"$f":"IF($C$227=\"\",\"\",AV227/$C$227)","v":""},null,{"$f":"IF($C$227=\"\",\"\",AX227/$C$227)","v":""},null,{"$f":"IF($C$227=\"\",\"\",AZ227/$C$227)","v":""},null,{"$f":"IF($C$227=\"\",\"\",BB227/$C$227)","v":""},null,0]
[10.5,"Inventory of Existing Underground Conduits",null,null,{"$f":"IF($C$228=\"\",\"\",F228/$C$228)","v":""},null,{"$f":"IF($C$228=\"\",\"\",H228/$C$228)","v":""},null,{"$f":"IF($C$228=\"\",\"\",J228/$C$228)","v":""},null,{"$f":"IF($C$228=\"\",\"\",L228/$C$228)","v":""},null,{"$f":"IF($C$228=\"\",\"\",N228/$C$228)","v":""},null,{"$f":"IF($C$228=\"\",\"\",P228/$C$228)","v":""},null,{"$f":"IF($C$228=\"\",\"\",R228/$C$228)","v":""},null,{"$f":"IF($C$228=\"\",\"\",T228/$C$228)","v":""},null,{"$f":"IF($C$228=\"\",\"\",V228/$C$228)","v":""},null,{"$f":"IF($C$228=\"\",\"\",X228/$C$228)","v":""},null,{"$f":"IF($C$228=\"\",\"\",Z228/$C$228)","v":""},null,{"$f":"IF($C$228=\"\",\"\",AB228/$C$228)","v":""},null,{"$f":"IF($C$228=\"\",\"\",AD228/$C$228)","v":""},null,{"$f":"IF($C$228=\"\",\"\",AF228/$C$228)","v":""},null,{"$f":"IF($C$228=\"\",\"\",AH228/$C$228)","v":""},null,{"$f":"IF($C$228=\"\",\"\",AJ228/$C$228)","v":""},null,{"$f":"IF($C$228=\"\",\"\",AL228/$C$228)","v":""},null,{"$f":"IF($C$228=\"\",\"\",AN228/$C$228)","v":""},null,{"$f":"IF($C$228=\"\",\"\",AP228/$C$228)","v":""},null,{"$f":"IF($C$228=\"\",\"\",AR228/$C$228)","v":""},null,{"$f":"IF($C$228=\"\",\"\",AT228/$C$228)","v":""},null,{"$f":"IF($C$228=\"\",\"\",AV228/$C$228)","v":""},null,{"$f":"IF($C$228=\"\",\"\",AX228/$C$228)","v":""},null,{"$f":"IF($C$228=\"\",\"\",AZ228/$C$228)","v":""},null,{"$f":"IF($C$228=\"\",\"\",BB228/$C$228)","v":""},null,0]
[10.6,"Create Cable Routing Base Sheets",null,null,{"$f":"IF($C$229=\"\",\"\",F229/$C$229)","v":""},null,{"$f":"IF($C$229=\"\",\"\",H229/$C$229)","v":""},null,{"$f":"IF($C$229=\"\",\"\",J229/$C$229)","v":""},null,{"$f":"IF($C$229=\"\",\"\",L229/$C$229)","v":""},null,{"$f":"IF($C$229=\"\",\"\",N229/$C$229)","v":""},null,{"$f":"IF($C$229=\"\",\"\",P229/$C$229)","v":""},null,{"$f":"IF($C$229=\"\",\"\",R229/$C$229)","v":""},null,{"$f":"IF($C$229=\"\",\"\",T229/$C$229)","v":""},null,{"$f":"IF($C$229=\"\",\"\",V229/$C$229)","v":""},null,{"$f":"IF($C$229=\"\",\"\",X229/$C$229)","v":""},null,{"$f":"IF($C$229=\"\",\"\",Z229/$C$229)","v":""},null,{"$f":"IF($C$229=\"\",\"\",AB229/$C$229)","v":""},null,{"$f":"IF($C$229=\"\",\"\",AD229/$C$229)","v":""},null,{"$f":"IF($C$229=\"\",\"\",AF229/$C$229)","v":""},null,{"$f":"IF($C$229=\"\",\"\",AH229/$C$229)","v":""},null,{"$f":"IF($C$229=\"\",\"\",AJ229/$C$229)","v":""},null,{"$f":"IF($C$229=\"\",\"\",AL229/$C$229)","v":""},null,{"$f":"IF($C$229=\"\",\"\",AN229/$C$229)","v":""},null,{"$f":"IF($C$229=\"\",\"\",AP229/$C$229)","v":""},null,{"$f":"IF($C$229=\"\",\"\",AR229/$C$229)","v":""},null,{"$f":"IF($C$229=\"\",\"\",AT229/$C$229)","v":""},null,{"$f":"IF($C$229=\"\",\"\",AV229/$C$229)","v":""},null,{"$f":"IF($C$229=\"\",\"\",AX229/$C$229)","v":""},null,{"$f":"IF($C$229=\"\",\"\",AZ229/$C$229)","v":""},null,{"$f":"IF($C$229=\"\",\"\",BB229/$C$229)","v":""},null,0]
[10.7,"Create Master Cable Routing Sheet Key",null,null,{"$f":"IF($C$230=\"\",\"\",F230/$C$230)","v":""},null,{"$f":"IF($C$230=\"\",\"\",H230/$C$230)","v":""},null,{"$f":"IF($C$230=\"\",\"\",J230/$C$230)","v":""},null,{"$f":"IF($C$230=\"\",\"\",L230/$C$230)","v":""},null,{"$f":"IF($C$230=\"\",\"\",N230/$C$230)","v":""},null,{"$f":"IF($C$230=\"\",\"\",P230/$C$230)","v":""},null,{"$f":"IF($C$230=\"\",\"\",R230/$C$230)","v":""},null,{"$f":"IF($C$230=\"\",\"\",T230/$C$230)","v":""},null,{"$f":"IF($C$230=\"\",\"\",V230/$C$230)","v":""},null,{"$f":"IF($C$230=\"\",\"\",X230/$C$230)","v":""},null,{"$f":"IF($C$230=\"\",\"\",Z230/$C$230)","v":""},null,{"$f":"IF($C$230=\"\",\"\",AB230/$C$230)","v":""},null,{"$f":"IF($C$230=\"\",\"\",AD230/$C$230)","v":""},null,{"$f":"IF($C$230=\"\",\"\",AF230/$C$230)","v":""},null,{"$f":"IF($C$230=\"\",\"\",AH230/$C$230)","v":""},null,{"$f":"IF($C$230=\"\",\"\",AJ230/$C$230)","v":""},null,{"$f":"IF($C$230=\"\",\"\",AL230/$C$230)","v":""},null,{"$f":"IF($C$230=\"\",\"\",AN230/$C$230)","v":""},null,{"$f":"IF($C$230=\"\",\"\",AP230/$C$230)","v":""},null,{"$f":"IF($C$230=\"\",\"\",AR230/$C$230)","v":""},null,{"$f":"IF($C$230=\"\",\"\",AT230/$C$230)","v":""},null,{"$f":"IF($C$230=\"\",\"\",AV230/$C$230)","v":""},null,{"$f":"IF($C$230=\"\",\"\",AX230/$C$230)","v":""},null,{"$f":"IF($C$230=\"\",\"\",AZ230/$C$230)","v":""},null,{"$f":"IF($C$230=\"\",\"\",BB230/$C$230)","v":""},null,0]
[10.8,"Field Survey Aerial Routes",null,null,{"$f":"IF($C$231=\"\",\"\",F231/$C$231)","v":""},null,{"$f":"IF($C$231=\"\",\"\",H231/$C$231)","v":""},null,{"$f":"IF($C$231=\"\",\"\",J231/$C$231)","v":""},null,{"$f":"IF($C$231=\"\",\"\",L231/$C$231)","v":""},null,{"$f":"IF($C$231=\"\",\"\",N231/$C$231)","v":""},null,{"$f":"IF($C$231=\"\",\"\",P231/$C$231)","v":""},null,{"$f":"IF($C$231=\"\",\"\",R231/$C$231)","v":""},null,{"$f":"IF($C$231=\"\",\"\",T231/$C$231)","v":""},null,{"$f":"IF($C$231=\"\",\"\",V231/$C$231)","v":""},null,{"$f":"IF($C$231=\"\",\"\",X231/$C$231)","v":""},null,{"$f":"IF($C$231=\"\",\"\",Z231/$C$231)","v":""},null,{"$f":"IF($C$231=\"\",\"\",AB231/$C$231)","v":""},null,{"$f":"IF($C$231=\"\",\"\",AD231/$C$231)","v":""},null,{"$f":"IF($C$231=\"\",\"\",AF231/$C$231)","v":""},null,{"$f":"IF($C$231=\"\",\"\",AH231/$C$231)","v":""},null,{"$f":"IF($C$231=\"\",\"\",AJ231/$C$231)","v":""},null,{"$f":"IF($C$231=\"\",\"\",AL231/$C$231)","v":""},null,{"$f":"IF($C$231=\"\",\"\",AN231/$C$231)","v":""},null,{"$f":"IF($C$231=\"\",\"\",AP231/$C$231)","v":""},null,{"$f":"IF($C$231=\"\",\"\",AR231/$C$231)","v":""},null,{"$f":"IF($C$231=\"\",\"\",AT231/$C$231)","v":""},null,{"$f":"IF($C$231=\"\",\"\",AV231/$C$231)","v":""},null,{"$f":"IF($C$231=\"\",\"\",AX231/$C$231)","v":""},null,{"$f":"IF($C$231=\"\",\"\",AZ231/$C$231)","v":""},null,{"$f":"IF($C$231=\"\",\"\",BB231/$C$231)","v":""},null,0]
[10.9,"Preliminary Utility Make-Ready Plans",null,null,{"$f":"IF($C$232=\"\",\"\",F232/$C$232)","v":""},null,{"$f":"IF($C$232=\"\",\"\",H232/$C$232)","v":""},null,{"$f":"IF($C$232=\"\",\"\",J232/$C$232)","v":""},null,{"$f":"IF($C$232=\"\",\"\",L232/$C$232)","v":""},null,{"$f":"IF($C$232=\"\",\"\",N232/$C$232)","v":""},null,{"$f":"IF($C$232=\"\",\"\",P232/$C$232)","v":""},null,{"$f":"IF($C$232=\"\",\"\",R232/$C$232)","v":""},null,{"$f":"IF($C$232=\"\",\"\",T232/$C$232)","v":""},null,{"$f":"IF($C$232=\"\",\"\",V232/$C$232)","v":""},null,{"$f":"IF($C$232=\"\",\"\",X232/$C$232)","v":""},null,{"$f":"IF($C$232=\"\",\"\",Z232/$C$232)","v":""},null,{"$f":"IF($C$232=\"\",\"\",AB232/$C$232)","v":""},null,{"$f":"IF($C$232=\"\",\"\",AD232/$C$232)","v":""},null,{"$f":"IF($C$232=\"\",\"\",AF232/$C$232)","v":""},null,{"$f":"IF($C$232=\"\",\"\",AH232/$C$232)","v":""},null,{"$f":"IF($C$232=\"\",\"\",AJ232/$C$232)","v":""},null,{"$f":"IF($C$232=\"\",\"\",AL232/$C$232)","v":""},null,{"$f":"IF($C$232=\"\",\"\",AN232/$C$232)","v":""},null,{"$f":"IF($C$232=\"\",\"\",AP232/$C$232)","v":""},null,{"$f":"IF($C$232=\"\",\"\",AR232/$C$232)","v":""},null,{"$f":"IF($C$232=\"\",\"\",AT232/$C$232)","v":""},null,{"$f":"IF($C$232=\"\",\"\",AV232/$C$232)","v":""},null,{"$f":"IF($C$232=\"\",\"\",AX232/$C$232)","v":""},null,{"$f":"IF($C$232=\"\",\"\",AZ232/$C$232)","v":""},null,{"$f":"IF($C$232=\"\",\"\",BB232/$C$232)","v":""},null,0]
["10.10","Make-Ready Walk-Throughs"]
["    10.10.1","    Coordinate and Schedule Utility Make-Ready \n    Walk-Throughs",null,null,{"$f":"IF($C$234=\"\",\"\",F234/$C$234)","v":""},null,{"$f":"IF($C$234=\"\",\"\",H234/$C$234)","v":""},null,{"$f":"IF($C$234=\"\",\"\",J234/$C$234)","v":""},null,{"$f":"IF($C$234=\"\",\"\",L234/$C$234)","v":""},null,{"$f":"IF($C$234=\"\",\"\",N234/$C$234)","v":""},null,{"$f":"IF($C$234=\"\",\"\",P234/$C$234)","v":""},null,{"$f":"IF($C$234=\"\",\"\",R234/$C$234)","v":""},null,{"$f":"IF($C$234=\"\",\"\",T234/$C$234)","v":""},null,{"$f":"IF($C$234=\"\",\"\",V234/$C$234)","v":""},null,{"$f":"IF($C$234=\"\",\"\",X234/$C$234)","v":""},null,{"$f":"IF($C$234=\"\",\"\",Z234/$C$234)","v":""},null,{"$f":"IF($C$234=\"\",\"\",AB234/$C$234)","v":""},null,{"$f":"IF($C$234=\"\",\"\",AD234/$C$234)","v":""},null,{"$f":"IF($C$234=\"\",\"\",AF234/$C$234)","v":""},null,{"$f":"IF($C$234=\"\",\"\",AH234/$C$234)","v":""},null,{"$f":"IF($C$234=\"\",\"\",AJ234/$C$234)","v":""},null,{"$f":"IF($C$234=\"\",\"\",AL234/$C$234)","v":""},null,{"$f":"IF($C$234=\"\",\"\",AN234/$C$234)","v":""},null,{"$f":"IF($C$234=\"\",\"\",AP234/$C$234)","v":""},null,{"$f":"IF($C$234=\"\",\"\",AR234/$C$234)","v":""},null,{"$f":"IF($C$234=\"\",\"\",AT234/$C$234)","v":""},null,{"$f":"IF($C$234=\"\",\"\",AV234/$C$234)","v":""},null,{"$f":"IF($C$234=\"\",\"\",AX234/$C$234)","v":""},null,{"$f":"IF($C$234=\"\",\"\",AZ234/$C$234)","v":""},null,{"$f":"IF($C$234=\"\",\"\",BB234/$C$234)","v":""},null,{"$f":"SUM(BB234,AZ234,AX234,AV234,AT234,AR234,AP234,AN234,AL234,AJ234,AH234,AF234,AD234,AB234,Z234,X234,V234,T234,R234,P234,N234,L234,J234,H234,F234)","v":0}]
["    10.10.2","    Conduct Utility Make-Ready Walk-Throughs",null,null,{"$f":"IF($C$235=\"\",\"\",F235/$C$235)","v":""},null,{"$f":"IF($C$235=\"\",\"\",H235/$C$235)","v":""},null,{"$f":"IF($C$235=\"\",\"\",J235/$C$235)","v":""},null,{"$f":"IF($C$235=\"\",\"\",L235/$C$235)","v":""},null,{"$f":"IF($C$235=\"\",\"\",N235/$C$235)","v":""},null,{"$f":"IF($C$235=\"\",\"\",P235/$C$235)","v":""},null,{"$f":"IF($C$235=\"\",\"\",R235/$C$235)","v":""},null,{"$f":"IF($C$235=\"\",\"\",T235/$C$235)","v":""},null,{"$f":"IF($C$235=\"\",\"\",V235/$C$235)","v":""},null,{"$f":"IF($C$235=\"\",\"\",X235/$C$235)","v":""},null,{"$f":"IF($C$235=\"\",\"\",Z235/$C$235)","v":""},null,{"$f":"IF($C$235=\"\",\"\",AB235/$C$235)","v":""},null,{"$f":"IF($C$235=\"\",\"\",AD235/$C$235)","v":""},null,{"$f":"IF($C$235=\"\",\"\",AF235/$C$235)","v":""},null,{"$f":"IF($C$235=\"\",\"\",AH235/$C$235)","v":""},null,{"$f":"IF($C$235=\"\",\"\",AJ235/$C$235)","v":""},null,{"$f":"IF($C$235=\"\",\"\",AL235/$C$235)","v":""},null,{"$f":"IF($C$235=\"\",\"\",AN235/$C$235)","v":""},null,{"$f":"IF($C$235=\"\",\"\",AP235/$C$235)","v":""},null,{"$f":"IF($C$235=\"\",\"\",AR235/$C$235)","v":""},null,{"$f":"IF($C$235=\"\",\"\",AT235/$C$235)","v":""},null,{"$f":"IF($C$235=\"\",\"\",AV235/$C$235)","v":""},null,{"$f":"IF($C$235=\"\",\"\",AX235/$C$235)","v":""},null,{"$f":"IF($C$235=\"\",\"\",AZ235/$C$235)","v":""},null,{"$f":"IF($C$235=\"\",\"\",BB235/$C$235)","v":""},null,0]
["    10.10.3",null,null,null,{"$f":"IF($C$236=\"\",\"\",F236/$C$236)","v":""},null,{"$f":"IF($C$236=\"\",\"\",H236/$C$236)","v":""},null,{"$f":"IF($C$236=\"\",\"\",J236/$C$236)","v":""},null,{"$f":"IF($C$236=\"\",\"\",L236/$C$236)","v":""},null,{"$f":"IF($C$236=\"\",\"\",N236/$C$236)","v":""},null,{"$f":"IF($C$236=\"\",\"\",P236/$C$236)","v":""},null,{"$f":"IF($C$236=\"\",\"\",R236/$C$236)","v":""},null,{"$f":"IF($C$236=\"\",\"\",T236/$C$236)","v":""},null,{"$f":"IF($C$236=\"\",\"\",V236/$C$236)","v":""},null,{"$f":"IF($C$236=\"\",\"\",X236/$C$236)","v":""},null,{"$f":"IF($C$236=\"\",\"\",Z236/$C$236)","v":""},null,{"$f":"IF($C$236=\"\",\"\",AB236/$C$236)","v":""},null,{"$f":"IF($C$236=\"\",\"\",AD236/$C$236)","v":""},null,{"$f":"IF($C$236=\"\",\"\",AF236/$C$236)","v":""},null,{"$f":"IF($C$236=\"\",\"\",AH236/$C$236)","v":""},null,{"$f":"IF($C$236=\"\",\"\",AJ236/$C$236)","v":""},null,{"$f":"IF($C$236=\"\",\"\",AL236/$C$236)","v":""},null,{"$f":"IF($C$236=\"\",\"\",AN236/$C$236)","v":""},null,{"$f":"IF($C$236=\"\",\"\",AP236/$C$236)","v":""},null,{"$f":"IF($C$236=\"\",\"\",AR236/$C$236)","v":""},null,{"$f":"IF($C$236=\"\",\"\",AT236/$C$236)","v":""},null,{"$f":"IF($C$236=\"\",\"\",AV236/$C$236)","v":""},null,{"$f":"IF($C$236=\"\",\"\",AX236/$C$236)","v":""},null,{"$f":"IF($C$236=\"\",\"\",AZ236/$C$236)","v":""},null,{"$f":"IF($C$236=\"\",\"\",BB236/$C$236)","v":""},null,0]
["    10.10.4",null,null,null,{"$f":"IF($C$237=\"\",\"\",F237/$C$237)","v":""},null,{"$f":"IF($C$237=\"\",\"\",H237/$C$237)","v":""},null,{"$f":"IF($C$237=\"\",\"\",J237/$C$237)","v":""},null,{"$f":"IF($C$237=\"\",\"\",L237/$C$237)","v":""},null,{"$f":"IF($C$237=\"\",\"\",N237/$C$237)","v":""},null,{"$f":"IF($C$237=\"\",\"\",P237/$C$237)","v":""},null,{"$f":"IF($C$237=\"\",\"\",R237/$C$237)","v":""},null,{"$f":"IF($C$237=\"\",\"\",T237/$C$237)","v":""},null,{"$f":"IF($C$237=\"\",\"\",V237/$C$237)","v":""},null,{"$f":"IF($C$237=\"\",\"\",X237/$C$237)","v":""},null,{"$f":"IF($C$237=\"\",\"\",Z237/$C$237)","v":""},null,{"$f":"IF($C$237=\"\",\"\",AB237/$C$237)","v":""},null,{"$f":"IF($C$237=\"\",\"\",AD237/$C$237)","v":""},null,{"$f":"IF($C$237=\"\",\"\",AF237/$C$237)","v":""},null,{"$f":"IF($C$237=\"\",\"\",AH237/$C$237)","v":""},null,{"$f":"IF($C$237=\"\",\"\",AJ237/$C$237)","v":""},null,{"$f":"IF($C$237=\"\",\"\",AL237/$C$237)","v":""},null,{"$f":"IF($C$237=\"\",\"\",AN237/$C$237)","v":""},null,{"$f":"IF($C$237=\"\",\"\",AP237/$C$237)","v":""},null,{"$f":"IF($C$237=\"\",\"\",AR237/$C$237)","v":""},null,{"$f":"IF($C$237=\"\",\"\",AT237/$C$237)","v":""},null,{"$f":"IF($C$237=\"\",\"\",AV237/$C$237)","v":""},null,{"$f":"IF($C$237=\"\",\"\",AX237/$C$237)","v":""},null,{"$f":"IF($C$237=\"\",\"\",AZ237/$C$237)","v":""},null,{"$f":"IF($C$237=\"\",\"\",BB237/$C$237)","v":""},null,0]
["    10.10.5",null,null,null,{"$f":"IF($C$238=\"\",\"\",F238/$C$238)","v":""},null,{"$f":"IF($C$238=\"\",\"\",H238/$C$238)","v":""},null,{"$f":"IF($C$238=\"\",\"\",J238/$C$238)","v":""},null,{"$f":"IF($C$238=\"\",\"\",L238/$C$238)","v":""},null,{"$f":"IF($C$238=\"\",\"\",N238/$C$238)","v":""},null,{"$f":"IF($C$238=\"\",\"\",P238/$C$238)","v":""},null,{"$f":"IF($C$238=\"\",\"\",R238/$C$238)","v":""},null,{"$f":"IF($C$238=\"\",\"\",T238/$C$238)","v":""},null,{"$f":"IF($C$238=\"\",\"\",V238/$C$238)","v":""},null,{"$f":"IF($C$238=\"\",\"\",X238/$C$238)","v":""},null,{"$f":"IF($C$238=\"\",\"\",Z238/$C$238)","v":""},null,{"$f":"IF($C$238=\"\",\"\",AB238/$C$238)","v":""},null,{"$f":"IF($C$238=\"\",\"\",AD238/$C$238)","v":""},null,{"$f":"IF($C$238=\"\",\"\",AF238/$C$238)","v":""},null,{"$f":"IF($C$238=\"\",\"\",AH238/$C$238)","v":""},null,{"$f":"IF($C$238=\"\",\"\",AJ238/$C$238)","v":""},null,{"$f":"IF($C$238=\"\",\"\",AL238/$C$238)","v":""},null,{"$f":"IF($C$238=\"\",\"\",AN238/$C$238)","v":""},null,{"$f":"IF($C$238=\"\",\"\",AP238/$C$238)","v":""},null,{"$f":"IF($C$238=\"\",\"\",AR238/$C$238)","v":""},null,{"$f":"IF($C$238=\"\",\"\",AT238/$C$238)","v":""},null,{"$f":"IF($C$238=\"\",\"\",AV238/$C$238)","v":""},null,{"$f":"IF($C$238=\"\",\"\",AX238/$C$238)","v":""},null,{"$f":"IF($C$238=\"\",\"\",AZ238/$C$238)","v":""},null,{"$f":"IF($C$238=\"\",\"\",BB238/$C$238)","v":""},null,0]
[10.11,"Draft Final Utility Make-Ready Plans",null,null,{"$f":"IF($C$239=\"\",\"\",F239/$C$239)","v":""},null,{"$f":"IF($C$239=\"\",\"\",H239/$C$239)","v":""},null,{"$f":"IF($C$239=\"\",\"\",J239/$C$239)","v":""},null,{"$f":"IF($C$239=\"\",\"\",L239/$C$239)","v":""},null,{"$f":"IF($C$239=\"\",\"\",N239/$C$239)","v":""},null,{"$f":"IF($C$239=\"\",\"\",P239/$C$239)","v":""},null,{"$f":"IF($C$239=\"\",\"\",R239/$C$239)","v":""},null,{"$f":"IF($C$239=\"\",\"\",T239/$C$239)","v":""},null,{"$f":"IF($C$239=\"\",\"\",V239/$C$239)","v":""},null,{"$f":"IF($C$239=\"\",\"\",X239/$C$239)","v":""},null,{"$f":"IF($C$239=\"\",\"\",Z239/$C$239)","v":""},null,{"$f":"IF($C$239=\"\",\"\",AB239/$C$239)","v":""},null,{"$f":"IF($C$239=\"\",\"\",AD239/$C$239)","v":""},null,{"$f":"IF($C$239=\"\",\"\",AF239/$C$239)","v":""},null,{"$f":"IF($C$239=\"\",\"\",AH239/$C$239)","v":""},null,{"$f":"IF($C$239=\"\",\"\",AJ239/$C$239)","v":""},null,{"$f":"IF($C$239=\"\",\"\",AL239/$C$239)","v":""},null,{"$f":"IF($C$239=\"\",\"\",AN239/$C$239)","v":""},null,{"$f":"IF($C$239=\"\",\"\",AP239/$C$239)","v":""},null,{"$f":"IF($C$239=\"\",\"\",AR239/$C$239)","v":""},null,{"$f":"IF($C$239=\"\",\"\",AT239/$C$239)","v":""},null,{"$f":"IF($C$239=\"\",\"\",AV239/$C$239)","v":""},null,{"$f":"IF($C$239=\"\",\"\",AX239/$C$239)","v":""},null,{"$f":"IF($C$239=\"\",\"\",AZ239/$C$239)","v":""},null,{"$f":"IF($C$239=\"\",\"\",BB239/$C$239)","v":""},null,0]
[10.119999999999999,"Final Utility Make-Ready Plans",null,null,{"$f":"IF($C$240=\"\",\"\",F240/$C$240)","v":""},null,{"$f":"IF($C$240=\"\",\"\",H240/$C$240)","v":""},null,{"$f":"IF($C$240=\"\",\"\",J240/$C$240)","v":""},null,{"$f":"IF($C$240=\"\",\"\",L240/$C$240)","v":""},null,{"$f":"IF($C$240=\"\",\"\",N240/$C$240)","v":""},null,{"$f":"IF($C$240=\"\",\"\",P240/$C$240)","v":""},null,{"$f":"IF($C$240=\"\",\"\",R240/$C$240)","v":""},null,{"$f":"IF($C$240=\"\",\"\",T240/$C$240)","v":""},null,{"$f":"IF($C$240=\"\",\"\",V240/$C$240)","v":""},null,{"$f":"IF($C$240=\"\",\"\",X240/$C$240)","v":""},null,{"$f":"IF($C$240=\"\",\"\",Z240/$C$240)","v":""},null,{"$f":"IF($C$240=\"\",\"\",AB240/$C$240)","v":""},null,{"$f":"IF($C$240=\"\",\"\",AD240/$C$240)","v":""},null,{"$f":"IF($C$240=\"\",\"\",AF240/$C$240)","v":""},null,{"$f":"IF($C$240=\"\",\"\",AH240/$C$240)","v":""},null,{"$f":"IF($C$240=\"\",\"\",AJ240/$C$240)","v":""},null,{"$f":"IF($C$240=\"\",\"\",AL240/$C$240)","v":""},null,{"$f":"IF($C$240=\"\",\"\",AN240/$C$240)","v":""},null,{"$f":"IF($C$240=\"\",\"\",AP240/$C$240)","v":""},null,{"$f":"IF($C$240=\"\",\"\",AR240/$C$240)","v":""},null,{"$f":"IF($C$240=\"\",\"\",AT240/$C$240)","v":""},null,{"$f":"IF($C$240=\"\",\"\",AV240/$C$240)","v":""},null,{"$f":"IF($C$240=\"\",\"\",AX240/$C$240)","v":""},null,{"$f":"IF($C$240=\"\",\"\",AZ240/$C$240)","v":""},null,{"$f":"IF($C$240=\"\",\"\",BB240/$C$240)","v":""},null,0]
[10.130000000000001,"Review and Compile UMR Cost Estimates",null,null,{"$f":"IF($C$241=\"\",\"\",F241/$C$241)","v":""},null,{"$f":"IF($C$241=\"\",\"\",H241/$C$241)","v":""},null,{"$f":"IF($C$241=\"\",\"\",J241/$C$241)","v":""},null,{"$f":"IF($C$241=\"\",\"\",L241/$C$241)","v":""},null,{"$f":"IF($C$241=\"\",\"\",N241/$C$241)","v":""},null,{"$f":"IF($C$241=\"\",\"\",P241/$C$241)","v":""},null,{"$f":"IF($C$241=\"\",\"\",R241/$C$241)","v":""},null,{"$f":"IF($C$241=\"\",\"\",T241/$C$241)","v":""},null,{"$f":"IF($C$241=\"\",\"\",V241/$C$241)","v":""},null,{"$f":"IF($C$241=\"\",\"\",X241/$C$241)","v":""},null,{"$f":"IF($C$241=\"\",\"\",Z241/$C$241)","v":""},null,{"$f":"IF($C$241=\"\",\"\",AB241/$C$241)","v":""},null,{"$f":"IF($C$241=\"\",\"\",AD241/$C$241)","v":""},null,{"$f":"IF($C$241=\"\",\"\",AF241/$C$241)","v":""},null,{"$f":"IF($C$241=\"\",\"\",AH241/$C$241)","v":""},null,{"$f":"IF($C$241=\"\",\"\",AJ241/$C$241)","v":""},null,{"$f":"IF($C$241=\"\",\"\",AL241/$C$241)","v":""},null,{"$f":"IF($C$241=\"\",\"\",AN241/$C$241)","v":""},null,{"$f":"IF($C$241=\"\",\"\",AP241/$C$241)","v":""},null,{"$f":"IF($C$241=\"\",\"\",AR241/$C$241)","v":""},null,{"$f":"IF($C$241=\"\",\"\",AT241/$C$241)","v":""},null,{"$f":"IF($C$241=\"\",\"\",AV241/$C$241)","v":""},null,{"$f":"IF($C$241=\"\",\"\",AX241/$C$241)","v":""},null,{"$f":"IF($C$241=\"\",\"\",AZ241/$C$241)","v":""},null,{"$f":"IF($C$241=\"\",\"\",BB241/$C$241)","v":""},null,0]
[10.14,"Deliverables (3 submittals)",null,null,{"$f":"IF($C$242=\"\",\"\",F242/$C$242)","v":""},null,{"$f":"IF($C$242=\"\",\"\",H242/$C$242)","v":""},null,{"$f":"IF($C$242=\"\",\"\",J242/$C$242)","v":""},null,{"$f":"IF($C$242=\"\",\"\",L242/$C$242)","v":""},null,{"$f":"IF($C$242=\"\",\"\",N242/$C$242)","v":""},null,{"$f":"IF($C$242=\"\",\"\",P242/$C$242)","v":""},null,{"$f":"IF($C$242=\"\",\"\",R242/$C$242)","v":""},null,{"$f":"IF($C$242=\"\",\"\",T242/$C$242)","v":""},null,{"$f":"IF($C$242=\"\",\"\",V242/$C$242)","v":""},null,{"$f":"IF($C$242=\"\",\"\",X242/$C$242)","v":""},null,{"$f":"IF($C$242=\"\",\"\",Z242/$C$242)","v":""},null,{"$f":"IF($C$242=\"\",\"\",AB242/$C$242)","v":""},null,{"$f":"IF($C$242=\"\",\"\",AD242/$C$242)","v":""},null,{"$f":"IF($C$242=\"\",\"\",AF242/$C$242)","v":""},null,{"$f":"IF($C$242=\"\",\"\",AH242/$C$242)","v":""},null,{"$f":"IF($C$242=\"\",\"\",AJ242/$C$242)","v":""},null,{"$f":"IF($C$242=\"\",\"\",AL242/$C$242)","v":""},null,{"$f":"IF($C$242=\"\",\"\",AN242/$C$242)","v":""},null,{"$f":"IF($C$242=\"\",\"\",AP242/$C$242)","v":""},null,{"$f":"IF($C$242=\"\",\"\",AR242/$C$242)","v":""},null,{"$f":"IF($C$242=\"\",\"\",AT242/$C$242)","v":""},null,{"$f":"IF($C$242=\"\",\"\",AV242/$C$242)","v":""},null,{"$f":"IF($C$242=\"\",\"\",AX242/$C$242)","v":""},null,{"$f":"IF($C$242=\"\",\"\",AZ242/$C$242)","v":""},null,{"$f":"IF($C$242=\"\",\"\",BB242/$C$242)","v":""},null,0]
[null,null,null,null,{"$f":"IF($C$243=\"\",\"\",F243/$C$243)","v":""},null,{"$f":"IF($C$243=\"\",\"\",H243/$C$243)","v":""},null,{"$f":"IF($C$243=\"\",\"\",J243/$C$243)","v":""},null,{"$f":"IF($C$243=\"\",\"\",L243/$C$243)","v":""},null,{"$f":"IF($C$243=\"\",\"\",N243/$C$243)","v":""},null,{"$f":"IF($C$243=\"\",\"\",P243/$C$243)","v":""},null,{"$f":"IF($C$243=\"\",\"\",R243/$C$243)","v":""},null,{"$f":"IF($C$243=\"\",\"\",T243/$C$243)","v":""},null,{"$f":"IF($C$243=\"\",\"\",V243/$C$243)","v":""},null,{"$f":"IF($C$243=\"\",\"\",X243/$C$243)","v":""},null,{"$f":"IF($C$243=\"\",\"\",Z243/$C$243)","v":""},null,{"$f":"IF($C$243=\"\",\"\",AB243/$C$243)","v":""},null,{"$f":"IF($C$243=\"\",\"\",AD243/$C$243)","v":""},null,{"$f":"IF($C$243=\"\",\"\",AF243/$C$243)","v":""},null,{"$f":"IF($C$243=\"\",\"\",AH243/$C$243)","v":""},null,{"$f":"IF($C$243=\"\",\"\",AJ243/$C$243)","v":""},null,{"$f":"IF($C$243=\"\",\"\",AL243/$C$243)","v":""},null,{"$f":"IF($C$243=\"\",\"\",AN243/$C$243)","v":""},null,{"$f":"IF($C$243=\"\",\"\",AP243/$C$243)","v":""},null,{"$f":"IF($C$243=\"\",\"\",AR243/$C$243)","v":""},null,{"$f":"IF($C$243=\"\",\"\",AT243/$C$243)","v":""},null,{"$f":"IF($C$243=\"\",\"\",AV243/$C$243)","v":""},null,{"$f":"IF($C$243=\"\",\"\",AX243/$C$243)","v":""},null,{"$f":"IF($C$243=\"\",\"\",AZ243/$C$243)","v":""},null,{"$f":"IF($C$243=\"\",\"\",BB243/$C$243)","v":""},null,0]
[null,null,null,null,{"$f":"IF($C$244=\"\",\"\",F244/$C$244)","v":""},null,{"$f":"IF($C$244=\"\",\"\",H244/$C$244)","v":""},null,{"$f":"IF($C$244=\"\",\"\",J244/$C$244)","v":""},null,{"$f":"IF($C$244=\"\",\"\",L244/$C$244)","v":""},null,{"$f":"IF($C$244=\"\",\"\",N244/$C$244)","v":""},null,{"$f":"IF($C$244=\"\",\"\",P244/$C$244)","v":""},null,{"$f":"IF($C$244=\"\",\"\",R244/$C$244)","v":""},null,{"$f":"IF($C$244=\"\",\"\",T244/$C$244)","v":""},null,{"$f":"IF($C$244=\"\",\"\",V244/$C$244)","v":""},null,{"$f":"IF($C$244=\"\",\"\",X244/$C$244)","v":""},null,{"$f":"IF($C$244=\"\",\"\",Z244/$C$244)","v":""},null,{"$f":"IF($C$244=\"\",\"\",AB244/$C$244)","v":""},null,{"$f":"IF($C$244=\"\",\"\",AD244/$C$244)","v":""},null,{"$f":"IF($C$244=\"\",\"\",AF244/$C$244)","v":""},null,{"$f":"IF($C$244=\"\",\"\",AH244/$C$244)","v":""},null,{"$f":"IF($C$244=\"\",\"\",AJ244/$C$244)","v":""},null,{"$f":"IF($C$244=\"\",\"\",AL244/$C$244)","v":""},null,{"$f":"IF($C$244=\"\",\"\",AN244/$C$244)","v":""},null,{"$f":"IF($C$244=\"\",\"\",AP244/$C$244)","v":""},null,{"$f":"IF($C$244=\"\",\"\",AR244/$C$244)","v":""},null,{"$f":"IF($C$244=\"\",\"\",AT244/$C$244)","v":""},null,{"$f":"IF($C$244=\"\",\"\",AV244/$C$244)","v":""},null,{"$f":"IF($C$244=\"\",\"\",AX244/$C$244)","v":""},null,{"$f":"IF($C$244=\"\",\"\",AZ244/$C$244)","v":""},null,{"$f":"IF($C$244=\"\",\"\",BB244/$C$244)","v":""},null,0]
[null,null,null,null,{"$f":"IF($C$245=\"\",\"\",F245/$C$245)","v":""},null,{"$f":"IF($C$245=\"\",\"\",H245/$C$245)","v":""},null,{"$f":"IF($C$245=\"\",\"\",J245/$C$245)","v":""},null,{"$f":"IF($C$245=\"\",\"\",L245/$C$245)","v":""},null,{"$f":"IF($C$245=\"\",\"\",N245/$C$245)","v":""},null,{"$f":"IF($C$245=\"\",\"\",P245/$C$245)","v":""},null,{"$f":"IF($C$245=\"\",\"\",R245/$C$245)","v":""},null,{"$f":"IF($C$245=\"\",\"\",T245/$C$245)","v":""},null,{"$f":"IF($C$245=\"\",\"\",V245/$C$245)","v":""},null,{"$f":"IF($C$245=\"\",\"\",X245/$C$245)","v":""},null,{"$f":"IF($C$245=\"\",\"\",Z245/$C$245)","v":""},null,{"$f":"IF($C$245=\"\",\"\",AB245/$C$245)","v":""},null,{"$f":"IF($C$245=\"\",\"\",AD245/$C$245)","v":""},null,{"$f":"IF($C$245=\"\",\"\",AF245/$C$245)","v":""},null,{"$f":"IF($C$245=\"\",\"\",AH245/$C$245)","v":""},null,{"$f":"IF($C$245=\"\",\"\",AJ245/$C$245)","v":""},null,{"$f":"IF($C$245=\"\",\"\",AL245/$C$245)","v":""},null,{"$f":"IF($C$245=\"\",\"\",AN245/$C$245)","v":""},null,{"$f":"IF($C$245=\"\",\"\",AP245/$C$245)","v":""},null,{"$f":"IF($C$245=\"\",\"\",AR245/$C$245)","v":""},null,{"$f":"IF($C$245=\"\",\"\",AT245/$C$245)","v":""},null,{"$f":"IF($C$245=\"\",\"\",AV245/$C$245)","v":""},null,{"$f":"IF($C$245=\"\",\"\",AX245/$C$245)","v":""},null,{"$f":"IF($C$245=\"\",\"\",AZ245/$C$245)","v":""},null,{"$f":"IF($C$245=\"\",\"\",BB245/$C$245)","v":""},null,0]
[null,null,null,null,{"$f":"IF($C$246=\"\",\"\",F246/$C$246)","v":""},null,{"$f":"IF($C$246=\"\",\"\",H246/$C$246)","v":""},null,{"$f":"IF($C$246=\"\",\"\",J246/$C$246)","v":""},null,{"$f":"IF($C$246=\"\",\"\",L246/$C$246)","v":""},null,{"$f":"IF($C$246=\"\",\"\",N246/$C$246)","v":""},null,{"$f":"IF($C$246=\"\",\"\",P246/$C$246)","v":""},null,{"$f":"IF($C$246=\"\",\"\",R246/$C$246)","v":""},null,{"$f":"IF($C$246=\"\",\"\",T246/$C$246)","v":""},null,{"$f":"IF($C$246=\"\",\"\",V246/$C$246)","v":""},null,{"$f":"IF($C$246=\"\",\"\",X246/$C$246)","v":""},null,{"$f":"IF($C$246=\"\",\"\",Z246/$C$246)","v":""},null,{"$f":"IF($C$246=\"\",\"\",AB246/$C$246)","v":""},null,{"$f":"IF($C$246=\"\",\"\",AD246/$C$246)","v":""},null,{"$f":"IF($C$246=\"\",\"\",AF246/$C$246)","v":""},null,{"$f":"IF($C$246=\"\",\"\",AH246/$C$246)","v":""},null,{"$f":"IF($C$246=\"\",\"\",AJ246/$C$246)","v":""},null,{"$f":"IF($C$246=\"\",\"\",AL246/$C$246)","v":""},null,{"$f":"IF($C$246=\"\",\"\",AN246/$C$246)","v":""},null,{"$f":"IF($C$246=\"\",\"\",AP246/$C$246)","v":""},null,{"$f":"IF($C$246=\"\",\"\",AR246/$C$246)","v":""},null,{"$f":"IF($C$246=\"\",\"\",AT246/$C$246)","v":""},null,{"$f":"IF($C$246=\"\",\"\",AV246/$C$246)","v":""},null,{"$f":"IF($C$246=\"\",\"\",AX246/$C$246)","v":""},null,{"$f":"IF($C$246=\"\",\"\",AZ246/$C$246)","v":""},null,{"$f":"IF($C$246=\"\",\"\",BB246/$C$246)","v":""},null,0]
[null,null,null,null,{"$f":"IF($C$247=\"\",\"\",F247/$C$247)","v":""},null,{"$f":"IF($C$247=\"\",\"\",H247/$C$247)","v":""},null,{"$f":"IF($C$247=\"\",\"\",J247/$C$247)","v":""},null,{"$f":"IF($C$247=\"\",\"\",L247/$C$247)","v":""},null,{"$f":"IF($C$247=\"\",\"\",N247/$C$247)","v":""},null,{"$f":"IF($C$247=\"\",\"\",P247/$C$247)","v":""},null,{"$f":"IF($C$247=\"\",\"\",R247/$C$247)","v":""},null,{"$f":"IF($C$247=\"\",\"\",T247/$C$247)","v":""},null,{"$f":"IF($C$247=\"\",\"\",V247/$C$247)","v":""},null,{"$f":"IF($C$247=\"\",\"\",X247/$C$247)","v":""},null,{"$f":"IF($C$247=\"\",\"\",Z247/$C$247)","v":""},null,{"$f":"IF($C$247=\"\",\"\",AB247/$C$247)","v":""},null,{"$f":"IF($C$247=\"\",\"\",AD247/$C$247)","v":""},null,{"$f":"IF($C$247=\"\",\"\",AF247/$C$247)","v":""},null,{"$f":"IF($C$247=\"\",\"\",AH247/$C$247)","v":""},null,{"$f":"IF($C$247=\"\",\"\",AJ247/$C$247)","v":""},null,{"$f":"IF($C$247=\"\",\"\",AL247/$C$247)","v":""},null,{"$f":"IF($C$247=\"\",\"\",AN247/$C$247)","v":""},null,{"$f":"IF($C$247=\"\",\"\",AP247/$C$247)","v":""},null,{"$f":"IF($C$247=\"\",\"\",AR247/$C$247)","v":""},null,{"$f":"IF($C$247=\"\",\"\",AT247/$C$247)","v":""},null,{"$f":"IF($C$247=\"\",\"\",AV247/$C$247)","v":""},null,{"$f":"IF($C$247=\"\",\"\",AX247/$C$247)","v":""},null,{"$f":"IF($C$247=\"\",\"\",AZ247/$C$247)","v":""},null,{"$f":"IF($C$247=\"\",\"\",BB247/$C$247)","v":""},null,0]
[null,null,null,null,{"$f":"IF($C$248=\"\",\"\",F248/$C$248)","v":""},null,{"$f":"IF($C$248=\"\",\"\",H248/$C$248)","v":""},null,{"$f":"IF($C$248=\"\",\"\",J248/$C$248)","v":""},null,{"$f":"IF($C$248=\"\",\"\",L248/$C$248)","v":""},null,{"$f":"IF($C$248=\"\",\"\",N248/$C$248)","v":""},null,{"$f":"IF($C$248=\"\",\"\",P248/$C$248)","v":""},null,{"$f":"IF($C$248=\"\",\"\",R248/$C$248)","v":""},null,{"$f":"IF($C$248=\"\",\"\",T248/$C$248)","v":""},null,{"$f":"IF($C$248=\"\",\"\",V248/$C$248)","v":""},null,{"$f":"IF($C$248=\"\",\"\",X248/$C$248)","v":""},null,{"$f":"IF($C$248=\"\",\"\",Z248/$C$248)","v":""},null,{"$f":"IF($C$248=\"\",\"\",AB248/$C$248)","v":""},null,{"$f":"IF($C$248=\"\",\"\",AD248/$C$248)","v":""},null,{"$f":"IF($C$248=\"\",\"\",AF248/$C$248)","v":""},null,{"$f":"IF($C$248=\"\",\"\",AH248/$C$248)","v":""},null,{"$f":"IF($C$248=\"\",\"\",AJ248/$C$248)","v":""},null,{"$f":"IF($C$248=\"\",\"\",AL248/$C$248)","v":""},null,{"$f":"IF($C$248=\"\",\"\",AN248/$C$248)","v":""},null,{"$f":"IF($C$248=\"\",\"\",AP248/$C$248)","v":""},null,{"$f":"IF($C$248=\"\",\"\",AR248/$C$248)","v":""},null,{"$f":"IF($C$248=\"\",\"\",AT248/$C$248)","v":""},null,{"$f":"IF($C$248=\"\",\"\",AV248/$C$248)","v":""},null,{"$f":"IF($C$248=\"\",\"\",AX248/$C$248)","v":""},null,{"$f":"IF($C$248=\"\",\"\",AZ248/$C$248)","v":""},null,{"$f":"IF($C$248=\"\",\"\",BB248/$C$248)","v":""},null,0]
[null,null,null,null,{"$f":"IF($C$249=\"\",\"\",F249/$C$249)","v":""},null,{"$f":"IF($C$249=\"\",\"\",H249/$C$249)","v":""},null,{"$f":"IF($C$249=\"\",\"\",J249/$C$249)","v":""},null,{"$f":"IF($C$249=\"\",\"\",L249/$C$249)","v":""},null,{"$f":"IF($C$249=\"\",\"\",N249/$C$249)","v":""},null,{"$f":"IF($C$249=\"\",\"\",P249/$C$249)","v":""},null,{"$f":"IF($C$249=\"\",\"\",R249/$C$249)","v":""},null,{"$f":"IF($C$249=\"\",\"\",T249/$C$249)","v":""},null,{"$f":"IF($C$249=\"\",\"\",V249/$C$249)","v":""},null,{"$f":"IF($C$249=\"\",\"\",X249/$C$249)","v":""},null,{"$f":"IF($C$249=\"\",\"\",Z249/$C$249)","v":""},null,{"$f":"IF($C$249=\"\",\"\",AB249/$C$249)","v":""},null,{"$f":"IF($C$249=\"\",\"\",AD249/$C$249)","v":""},null,{"$f":"IF($C$249=\"\",\"\",AF249/$C$249)","v":""},null,{"$f":"IF($C$249=\"\",\"\",AH249/$C$249)","v":""},null,{"$f":"IF($C$249=\"\",\"\",AJ249/$C$249)","v":""},null,{"$f":"IF($C$249=\"\",\"\",AL249/$C$249)","v":""},null,{"$f":"IF($C$249=\"\",\"\",AN249/$C$249)","v":""},null,{"$f":"IF($C$249=\"\",\"\",AP249/$C$249)","v":""},null,{"$f":"IF($C$249=\"\",\"\",AR249/$C$249)","v":""},null,{"$f":"IF($C$249=\"\",\"\",AT249/$C$249)","v":""},null,{"$f":"IF($C$249=\"\",\"\",AV249/$C$249)","v":""},null,{"$f":"IF($C$249=\"\",\"\",AX249/$C$249)","v":""},null,{"$f":"IF($C$249=\"\",\"\",AZ249/$C$249)","v":""},null,{"$f":"IF($C$249=\"\",\"\",BB249/$C$249)","v":""},null,{"$f":"SUM(BB249,AZ249,AX249,AV249,AT249,AR249,AP249,AN249,AL249,AJ249,AH249,AF249,AD249,AB249,Z249,X249,V249,T249,R249,P249,N249,L249,J249,H249,F249)","v":0}]
["TOTAL HOURS",null,null,null,null,{"$f":"SUM(F224:F249)","v":0},null,{"$f":"SUM(H224:H249)","v":0},null,{"$f":"SUM(J224:J249)","v":0},null,{"$f":"SUM(L224:L249)","v":0},null,{"$f":"SUM(N224:N249)","v":0},null,{"$f":"SUM(P224:P249)","v":0},null,{"$f":"SUM(R224:R249)","v":0},null,{"$f":"SUM(T224:T249)","v":0},null,{"$f":"SUM(V224:V249)","v":0},null,{"$f":"SUM(X224:X249)","v":0},null,{"$f":"SUM(Z224:Z249)","v":0},null,{"$f":"SUM(AB224:AB249)","v":0},null,{"$f":"SUM(AD224:AD249)","v":0},null,{"$f":"SUM(AF224:AF249)","v":0},null,{"$f":"SUM(AH224:AH249)","v":0},null,{"$f":"SUM(AJ224:AJ249)","v":0},null,{"$f":"SUM(AL224:AL249)","v":0},null,{"$f":"SUM(AN224:AN249)","v":0},null,{"$f":"SUM(AP224:AP249)","v":0},null,{"$f":"SUM(AR224:AR249)","v":0},null,{"$f":"SUM(AT224:AT249)","v":0},null,{"$f":"SUM(AV224:AV249)","v":0},null,{"$f":"SUM(AX224:AX249)","v":0},null,{"$f":"SUM(AZ224:AZ249)","v":0},null,{"$f":"SUM(BB224:BB249)","v":0},{"$f":"SUM(E250:BB250)","v":0}]
["TOTAL WORKDAYS",null,null,null,null,{"$f":"F250/8","v":0},null,{"$f":"H250/8","v":0},null,{"$f":"J250/8","v":0},null,{"$f":"L250/8","v":0},null,{"$f":"N250/8","v":0},null,{"$f":"P250/8","v":0},null,{"$f":"R250/8","v":0},null,{"$f":"T250/8","v":0},null,{"$f":"V250/8","v":0},null,{"$f":"X250/8","v":0},null,{"$f":"Z250/8","v":0},null,{"$f":"AB250/8","v":0},null,{"$f":"AD250/8","v":0},null,0,null,{"$f":"AH250/8","v":0},null,0,null,{"$f":"AL250/8","v":0},null,0,null,{"$f":"AP250/8","v":0},null,0,null,{"$f":"AT250/8","v":0},null,{"$f":"AV250/8","v":0},null,{"$f":"AX250/8","v":0},null,{"$f":"AZ250/8","v":0},null,{"$f":"BB250/8","v":0},{"$f":"SUM(E251:BB251)","v":0}]
["TOTAL RAW LABOR",null,null,null,null,{"$f":"$E$13*F250","v":0},null,{"$f":"$G$13*H250","v":0},null,{"$f":"$I$13*J250","v":0},null,{"$f":"$K$13*L250","v":0},null,{"$f":"$M$13*N250","v":0},null,{"$f":"$O$13*P250","v":0},null,{"$f":"$Q$13*R250","v":0},null,{"$f":"$S$13*T250","v":0},null,{"$f":"$U$13*V250","v":0},null,{"$f":"$W$13*X250","v":0},null,{"$f":"$Y$13*Z250","v":0},null,{"$f":"$AA$13*AB250","v":0},null,{"$f":"$AC$13*AD250","v":0},null,{"$f":"$AC$13*AF250","v":0},null,{"$f":"$AC$13*AH250","v":0},null,{"$f":"$AC$13*AJ250","v":0},null,{"$f":"$AC$13*AL250","v":0},null,{"$f":"$AC$13*AN250","v":0},null,{"$f":"$AC$13*AP250","v":0},null,{"$f":"$AC$13*AR250","v":0},null,{"$f":"$AC$13*AT250","v":0},null,{"$f":"$AC$13*AV250","v":0},null,{"$f":"$AC$13*AX250","v":0},null,{"$f":"$AC$13*AZ250","v":0},null,{"$f":"$AC$13*BB250","v":0},{"$f":"SUM(E252:BB252)","v":0}]
["Task 11.0     ","SIGNAL SYSTEM CONSTRUCTION PLANS"]
[11.1,"Preliminary Plans"]
["    11.1.1","    Title Sheet",null,null,{"$f":"IF($C$255=\"\",\"\",F255/$C$255)","v":""},null,{"$f":"IF($C$255=\"\",\"\",H255/$C$255)","v":""},null,{"$f":"IF($C$255=\"\",\"\",J255/$C$255)","v":""},null,{"$f":"IF($C$255=\"\",\"\",L255/$C$255)","v":""},null,{"$f":"IF($C$255=\"\",\"\",N255/$C$255)","v":""},null,{"$f":"IF($C$255=\"\",\"\",P255/$C$255)","v":""},null,{"$f":"IF($C$255=\"\",\"\",R255/$C$255)","v":""},null,{"$f":"IF($C$255=\"\",\"\",T255/$C$255)","v":""},null,{"$f":"IF($C$255=\"\",\"\",V255/$C$255)","v":""},null,{"$f":"IF($C$255=\"\",\"\",X255/$C$255)","v":""},null,{"$f":"IF($C$255=\"\",\"\",Z255/$C$255)","v":""},null,{"$f":"IF($C$255=\"\",\"\",AB255/$C$255)","v":""},null,{"$f":"IF($C$255=\"\",\"\",AD255/$C$255)","v":""},null,{"$f":"IF($C$255=\"\",\"\",AF255/$C$255)","v":""},null,{"$f":"IF($C$255=\"\",\"\",AH255/$C$255)","v":""},null,{"$f":"IF($C$255=\"\",\"\",AJ255/$C$255)","v":""},null,{"$f":"IF($C$255=\"\",\"\",AL255/$C$255)","v":""},null,{"$f":"IF($C$255=\"\",\"\",AN255/$C$255)","v":""},null,{"$f":"IF($C$255=\"\",\"\",AP255/$C$255)","v":""},null,{"$f":"IF($C$255=\"\",\"\",AR255/$C$255)","v":""},null,{"$f":"IF($C$255=\"\",\"\",AT255/$C$255)","v":""},null,{"$f":"IF($C$255=\"\",\"\",AV255/$C$255)","v":""},null,{"$f":"IF($C$255=\"\",\"\",AX255/$C$255)","v":""},null,{"$f":"IF($C$255=\"\",\"\",AZ255/$C$255)","v":""},null,{"$f":"IF($C$255=\"\",\"\",BB255/$C$255)","v":""},null,{"$f":"SUM(BB255,AZ255,AX255,AV255,AT255,AR255,AP255,AN255,AL255,AJ255,AH255,AF255,AD255,AB255,Z255,X255,V255,T255,R255,P255,N255,L255,J255,H255,F255)","v":0}]
["    11.1.2","    Legend and General Notes",null,null,{"$f":"IF($C$256=\"\",\"\",F256/$C$256)","v":""},null,{"$f":"IF($C$256=\"\",\"\",H256/$C$256)","v":""},null,{"$f":"IF($C$256=\"\",\"\",J256/$C$256)","v":""},null,{"$f":"IF($C$256=\"\",\"\",L256/$C$256)","v":""},null,{"$f":"IF($C$256=\"\",\"\",N256/$C$256)","v":""},null,{"$f":"IF($C$256=\"\",\"\",P256/$C$256)","v":""},null,{"$f":"IF($C$256=\"\",\"\",R256/$C$256)","v":""},null,{"$f":"IF($C$256=\"\",\"\",T256/$C$256)","v":""},null,{"$f":"IF($C$256=\"\",\"\",V256/$C$256)","v":""},null,{"$f":"IF($C$256=\"\",\"\",X256/$C$256)","v":""},null,{"$f":"IF($C$256=\"\",\"\",Z256/$C$256)","v":""},null,{"$f":"IF($C$256=\"\",\"\",AB256/$C$256)","v":""},null,{"$f":"IF($C$256=\"\",\"\",AD256/$C$256)","v":""},null,{"$f":"IF($C$256=\"\",\"\",AF256/$C$256)","v":""},null,{"$f":"IF($C$256=\"\",\"\",AH256/$C$256)","v":""},null,{"$f":"IF($C$256=\"\",\"\",AJ256/$C$256)","v":""},null,{"$f":"IF($C$256=\"\",\"\",AL256/$C$256)","v":""},null,{"$f":"IF($C$256=\"\",\"\",AN256/$C$256)","v":""},null,{"$f":"IF($C$256=\"\",\"\",AP256/$C$256)","v":""},null,{"$f":"IF($C$256=\"\",\"\",AR256/$C$256)","v":""},null,{"$f":"IF($C$256=\"\",\"\",AT256/$C$256)","v":""},null,{"$f":"IF($C$256=\"\",\"\",AV256/$C$256)","v":""},null,{"$f":"IF($C$256=\"\",\"\",AX256/$C$256)","v":""},null,{"$f":"IF($C$256=\"\",\"\",AZ256/$C$256)","v":""},null,{"$f":"IF($C$256=\"\",\"\",BB256/$C$256)","v":""},null,0]
["    11.1.3","    Temporary Traffic Control Plans",null,null,{"$f":"IF($C$257=\"\",\"\",F257/$C$257)","v":""},null,{"$f":"IF($C$257=\"\",\"\",H257/$C$257)","v":""},null,{"$f":"IF($C$257=\"\",\"\",J257/$C$257)","v":""},null,{"$f":"IF($C$257=\"\",\"\",L257/$C$257)","v":""},null,{"$f":"IF($C$257=\"\",\"\",N257/$C$257)","v":""},null,{"$f":"IF($C$257=\"\",\"\",P257/$C$257)","v":""},null,{"$f":"IF($C$257=\"\",\"\",R257/$C$257)","v":""},null,{"$f":"IF($C$257=\"\",\"\",T257/$C$257)","v":""},null,{"$f":"IF($C$257=\"\",\"\",V257/$C$257)","v":""},null,{"$f":"IF($C$257=\"\",\"\",X257/$C$257)","v":""},null,{"$f":"IF($C$257=\"\",\"\",Z257/$C$257)","v":""},null,{"$f":"IF($C$257=\"\",\"\",AB257/$C$257)","v":""},null,{"$f":"IF($C$257=\"\",\"\",AD257/$C$257)","v":""},null,{"$f":"IF($C$257=\"\",\"\",AF257/$C$257)","v":""},null,{"$f":"IF($C$257=\"\",\"\",AH257/$C$257)","v":""},null,{"$f":"IF($C$257=\"\",\"\",AJ257/$C$257)","v":""},null,{"$f":"IF($C$257=\"\",\"\",AL257/$C$257)","v":""},null,{"$f":"IF($C$257=\"\",\"\",AN257/$C$257)","v":""},null,{"$f":"IF($C$257=\"\",\"\",AP257/$C$257)","v":""},null,{"$f":"IF($C$257=\"\",\"\",AR257/$C$257)","v":""},null,{"$f":"IF($C$257=\"\",\"\",AT257/$C$257)","v":""},null,{"$f":"IF($C$257=\"\",\"\",AV257/$C$257)","v":""},null,{"$f":"IF($C$257=\"\",\"\",AX257/$C$257)","v":""},null,{"$f":"IF($C$257=\"\",\"\",AZ257/$C$257)","v":""},null,{"$f":"IF($C$257=\"\",\"\",BB257/$C$257)","v":""},null,0]
["    11.1.4","    Summary of Quantities",null,null,{"$f":"IF($C$258=\"\",\"\",F258/$C$258)","v":""},null,{"$f":"IF($C$258=\"\",\"\",H258/$C$258)","v":""},null,{"$f":"IF($C$258=\"\",\"\",J258/$C$258)","v":""},null,{"$f":"IF($C$258=\"\",\"\",L258/$C$258)","v":""},null,{"$f":"IF($C$258=\"\",\"\",N258/$C$258)","v":""},null,{"$f":"IF($C$258=\"\",\"\",P258/$C$258)","v":""},null,{"$f":"IF($C$258=\"\",\"\",R258/$C$258)","v":""},null,{"$f":"IF($C$258=\"\",\"\",T258/$C$258)","v":""},null,{"$f":"IF($C$258=\"\",\"\",V258/$C$258)","v":""},null,{"$f":"IF($C$258=\"\",\"\",X258/$C$258)","v":""},null,{"$f":"IF($C$258=\"\",\"\",Z258/$C$258)","v":""},null,{"$f":"IF($C$258=\"\",\"\",AB258/$C$258)","v":""},null,{"$f":"IF($C$258=\"\",\"\",AD258/$C$258)","v":""},null,{"$f":"IF($C$258=\"\",\"\",AF258/$C$258)","v":""},null,{"$f":"IF($C$258=\"\",\"\",AH258/$C$258)","v":""},null,{"$f":"IF($C$258=\"\",\"\",AJ258/$C$258)","v":""},null,{"$f":"IF($C$258=\"\",\"\",AL258/$C$258)","v":""},null,{"$f":"IF($C$258=\"\",\"\",AN258/$C$258)","v":""},null,{"$f":"IF($C$258=\"\",\"\",AP258/$C$258)","v":""},null,{"$f":"IF($C$258=\"\",\"\",AR258/$C$258)","v":""},null,{"$f":"IF($C$258=\"\",\"\",AT258/$C$258)","v":""},null,{"$f":"IF($C$258=\"\",\"\",AV258/$C$258)","v":""},null,{"$f":"IF($C$258=\"\",\"\",AX258/$C$258)","v":""},null,{"$f":"IF($C$258=\"\",\"\",AZ258/$C$258)","v":""},null,{"$f":"IF($C$258=\"\",\"\",BB258/$C$258)","v":""},null,0]
["    11.1.5","    Summary of Work by CableRouting Sheet",null,null,{"$f":"IF($C$259=\"\",\"\",F259/$C$259)","v":""},null,{"$f":"IF($C$259=\"\",\"\",H259/$C$259)","v":""},null,{"$f":"IF($C$259=\"\",\"\",J259/$C$259)","v":""},null,{"$f":"IF($C$259=\"\",\"\",L259/$C$259)","v":""},null,{"$f":"IF($C$259=\"\",\"\",N259/$C$259)","v":""},null,{"$f":"IF($C$259=\"\",\"\",P259/$C$259)","v":""},null,{"$f":"IF($C$259=\"\",\"\",R259/$C$259)","v":""},null,{"$f":"IF($C$259=\"\",\"\",T259/$C$259)","v":""},null,{"$f":"IF($C$259=\"\",\"\",V259/$C$259)","v":""},null,{"$f":"IF($C$259=\"\",\"\",X259/$C$259)","v":""},null,{"$f":"IF($C$259=\"\",\"\",Z259/$C$259)","v":""},null,{"$f":"IF($C$259=\"\",\"\",AB259/$C$259)","v":""},null,{"$f":"IF($C$259=\"\",\"\",AD259/$C$259)","v":""},null,{"$f":"IF($C$259=\"\",\"\",AF259/$C$259)","v":""},null,{"$f":"IF($C$259=\"\",\"\",AH259/$C$259)","v":""},null,{"$f":"IF($C$259=\"\",\"\",AJ259/$C$259)","v":""},null,{"$f":"IF($C$259=\"\",\"\",AL259/$C$259)","v":""},null,{"$f":"IF($C$259=\"\",\"\",AN259/$C$259)","v":""},null,{"$f":"IF($C$259=\"\",\"\",AP259/$C$259)","v":""},null,{"$f":"IF($C$259=\"\",\"\",AR259/$C$259)","v":""},null,{"$f":"IF($C$259=\"\",\"\",AT259/$C$259)","v":""},null,{"$f":"IF($C$259=\"\",\"\",AV259/$C$259)","v":""},null,{"$f":"IF($C$259=\"\",\"\",AX259/$C$259)","v":""},null,{"$f":"IF($C$259=\"\",\"\",AZ259/$C$259)","v":""},null,{"$f":"IF($C$259=\"\",\"\",BB259/$C$259)","v":""},null,0]
["    11.1.6","    Communications Cable Schematic",null,null,{"$f":"IF($C$260=\"\",\"\",F260/$C$260)","v":""},null,{"$f":"IF($C$260=\"\",\"\",H260/$C$260)","v":""},null,{"$f":"IF($C$260=\"\",\"\",J260/$C$260)","v":""},null,{"$f":"IF($C$260=\"\",\"\",L260/$C$260)","v":""},null,{"$f":"IF($C$260=\"\",\"\",N260/$C$260)","v":""},null,{"$f":"IF($C$260=\"\",\"\",P260/$C$260)","v":""},null,{"$f":"IF($C$260=\"\",\"\",R260/$C$260)","v":""},null,{"$f":"IF($C$260=\"\",\"\",T260/$C$260)","v":""},null,{"$f":"IF($C$260=\"\",\"\",V260/$C$260)","v":""},null,{"$f":"IF($C$260=\"\",\"\",X260/$C$260)","v":""},null,{"$f":"IF($C$260=\"\",\"\",Z260/$C$260)","v":""},null,{"$f":"IF($C$260=\"\",\"\",AB260/$C$260)","v":""},null,{"$f":"IF($C$260=\"\",\"\",AD260/$C$260)","v":""},null,{"$f":"IF($C$260=\"\",\"\",AF260/$C$260)","v":""},null,{"$f":"IF($C$260=\"\",\"\",AH260/$C$260)","v":""},null,{"$f":"IF($C$260=\"\",\"\",AJ260/$C$260)","v":""},null,{"$f":"IF($C$260=\"\",\"\",AL260/$C$260)","v":""},null,{"$f":"IF($C$260=\"\",\"\",AN260/$C$260)","v":""},null,{"$f":"IF($C$260=\"\",\"\",AP260/$C$260)","v":""},null,{"$f":"IF($C$260=\"\",\"\",AR260/$C$260)","v":""},null,{"$f":"IF($C$260=\"\",\"\",AT260/$C$260)","v":""},null,{"$f":"IF($C$260=\"\",\"\",AV260/$C$260)","v":""},null,{"$f":"IF($C$260=\"\",\"\",AX260/$C$260)","v":""},null,{"$f":"IF($C$260=\"\",\"\",AZ260/$C$260)","v":""},null,{"$f":"IF($C$260=\"\",\"\",BB260/$C$260)","v":""},null,0]
["    11.1.7","    Communications Ring Schematics",null,null,{"$f":"IF($C$261=\"\",\"\",F261/$C$261)","v":""},null,{"$f":"IF($C$261=\"\",\"\",H261/$C$261)","v":""},null,{"$f":"IF($C$261=\"\",\"\",J261/$C$261)","v":""},null,{"$f":"IF($C$261=\"\",\"\",L261/$C$261)","v":""},null,{"$f":"IF($C$261=\"\",\"\",N261/$C$261)","v":""},null,{"$f":"IF($C$261=\"\",\"\",P261/$C$261)","v":""},null,{"$f":"IF($C$261=\"\",\"\",R261/$C$261)","v":""},null,{"$f":"IF($C$261=\"\",\"\",T261/$C$261)","v":""},null,{"$f":"IF($C$261=\"\",\"\",V261/$C$261)","v":""},null,{"$f":"IF($C$261=\"\",\"\",X261/$C$261)","v":""},null,{"$f":"IF($C$261=\"\",\"\",Z261/$C$261)","v":""},null,{"$f":"IF($C$261=\"\",\"\",AB261/$C$261)","v":""},null,{"$f":"IF($C$261=\"\",\"\",AD261/$C$261)","v":""},null,{"$f":"IF($C$261=\"\",\"\",AF261/$C$261)","v":""},null,{"$f":"IF($C$261=\"\",\"\",AH261/$C$261)","v":""},null,{"$f":"IF($C$261=\"\",\"\",AJ261/$C$261)","v":""},null,{"$f":"IF($C$261=\"\",\"\",AL261/$C$261)","v":""},null,{"$f":"IF($C$261=\"\",\"\",AN261/$C$261)","v":""},null,{"$f":"IF($C$261=\"\",\"\",AP261/$C$261)","v":""},null,{"$f":"IF($C$261=\"\",\"\",AR261/$C$261)","v":""},null,{"$f":"IF($C$261=\"\",\"\",AT261/$C$261)","v":""},null,{"$f":"IF($C$261=\"\",\"\",AV261/$C$261)","v":""},null,{"$f":"IF($C$261=\"\",\"\",AX261/$C$261)","v":""},null,{"$f":"IF($C$261=\"\",\"\",AZ261/$C$261)","v":""},null,{"$f":"IF($C$261=\"\",\"\",BB261/$C$261)","v":""},null,0]
["    11.1.8","    Summary of Fiber Optic Cables",null,null,{"$f":"IF($C$262=\"\",\"\",F262/$C$262)","v":""},null,{"$f":"IF($C$262=\"\",\"\",H262/$C$262)","v":""},null,{"$f":"IF($C$262=\"\",\"\",J262/$C$262)","v":""},null,{"$f":"IF($C$262=\"\",\"\",L262/$C$262)","v":""},null,{"$f":"IF($C$262=\"\",\"\",N262/$C$262)","v":""},null,{"$f":"IF($C$262=\"\",\"\",P262/$C$262)","v":""},null,{"$f":"IF($C$262=\"\",\"\",R262/$C$262)","v":""},null,{"$f":"IF($C$262=\"\",\"\",T262/$C$262)","v":""},null,{"$f":"IF($C$262=\"\",\"\",V262/$C$262)","v":""},null,{"$f":"IF($C$262=\"\",\"\",X262/$C$262)","v":""},null,{"$f":"IF($C$262=\"\",\"\",Z262/$C$262)","v":""},null,{"$f":"IF($C$262=\"\",\"\",AB262/$C$262)","v":""},null,{"$f":"IF($C$262=\"\",\"\",AD262/$C$262)","v":""},null,{"$f":"IF($C$262=\"\",\"\",AF262/$C$262)","v":""},null,{"$f":"IF($C$262=\"\",\"\",AH262/$C$262)","v":""},null,{"$f":"IF($C$262=\"\",\"\",AJ262/$C$262)","v":""},null,{"$f":"IF($C$262=\"\",\"\",AL262/$C$262)","v":""},null,{"$f":"IF($C$262=\"\",\"\",AN262/$C$262)","v":""},null,{"$f":"IF($C$262=\"\",\"\",AP262/$C$262)","v":""},null,{"$f":"IF($C$262=\"\",\"\",AR262/$C$262)","v":""},null,{"$f":"IF($C$262=\"\",\"\",AT262/$C$262)","v":""},null,{"$f":"IF($C$262=\"\",\"\",AV262/$C$262)","v":""},null,{"$f":"IF($C$262=\"\",\"\",AX262/$C$262)","v":""},null,{"$f":"IF($C$262=\"\",\"\",AZ262/$C$262)","v":""},null,{"$f":"IF($C$262=\"\",\"\",BB262/$C$262)","v":""},null,0]
["    11.1.9","    System Detector Schematic",null,null,{"$f":"IF($C$263=\"\",\"\",F263/$C$263)","v":""},null,{"$f":"IF($C$263=\"\",\"\",H263/$C$263)","v":""},null,{"$f":"IF($C$263=\"\",\"\",J263/$C$263)","v":""},null,{"$f":"IF($C$263=\"\",\"\",L263/$C$263)","v":""},null,{"$f":"IF($C$263=\"\",\"\",N263/$C$263)","v":""},null,{"$f":"IF($C$263=\"\",\"\",P263/$C$263)","v":""},null,{"$f":"IF($C$263=\"\",\"\",R263/$C$263)","v":""},null,{"$f":"IF($C$263=\"\",\"\",T263/$C$263)","v":""},null,{"$f":"IF($C$263=\"\",\"\",V263/$C$263)","v":""},null,{"$f":"IF($C$263=\"\",\"\",X263/$C$263)","v":""},null,{"$f":"IF($C$263=\"\",\"\",Z263/$C$263)","v":""},null,{"$f":"IF($C$263=\"\",\"\",AB263/$C$263)","v":""},null,{"$f":"IF($C$263=\"\",\"\",AD263/$C$263)","v":""},null,{"$f":"IF($C$263=\"\",\"\",AF263/$C$263)","v":""},null,{"$f":"IF($C$263=\"\",\"\",AH263/$C$263)","v":""},null,{"$f":"IF($C$263=\"\",\"\",AJ263/$C$263)","v":""},null,{"$f":"IF($C$263=\"\",\"\",AL263/$C$263)","v":""},null,{"$f":"IF($C$263=\"\",\"\",AN263/$C$263)","v":""},null,{"$f":"IF($C$263=\"\",\"\",AP263/$C$263)","v":""},null,{"$f":"IF($C$263=\"\",\"\",AR263/$C$263)","v":""},null,{"$f":"IF($C$263=\"\",\"\",AT263/$C$263)","v":""},null,{"$f":"IF($C$263=\"\",\"\",AV263/$C$263)","v":""},null,{"$f":"IF($C$263=\"\",\"\",AX263/$C$263)","v":""},null,{"$f":"IF($C$263=\"\",\"\",AZ263/$C$263)","v":""},null,{"$f":"IF($C$263=\"\",\"\",BB263/$C$263)","v":""},null,0]
["    11.1.10","    TMC Block Diagram",null,null,{"$f":"IF($C$264=\"\",\"\",F264/$C$264)","v":""},null,{"$f":"IF($C$264=\"\",\"\",H264/$C$264)","v":""},null,{"$f":"IF($C$264=\"\",\"\",J264/$C$264)","v":""},null,{"$f":"IF($C$264=\"\",\"\",L264/$C$264)","v":""},null,{"$f":"IF($C$264=\"\",\"\",N264/$C$264)","v":""},null,{"$f":"IF($C$264=\"\",\"\",P264/$C$264)","v":""},null,{"$f":"IF($C$264=\"\",\"\",R264/$C$264)","v":""},null,{"$f":"IF($C$264=\"\",\"\",T264/$C$264)","v":""},null,{"$f":"IF($C$264=\"\",\"\",V264/$C$264)","v":""},null,{"$f":"IF($C$264=\"\",\"\",X264/$C$264)","v":""},null,{"$f":"IF($C$264=\"\",\"\",Z264/$C$264)","v":""},null,{"$f":"IF($C$264=\"\",\"\",AB264/$C$264)","v":""},null,{"$f":"IF($C$264=\"\",\"\",AD264/$C$264)","v":""},null,{"$f":"IF($C$264=\"\",\"\",AF264/$C$264)","v":""},null,{"$f":"IF($C$264=\"\",\"\",AH264/$C$264)","v":""},null,{"$f":"IF($C$264=\"\",\"\",AJ264/$C$264)","v":""},null,{"$f":"IF($C$264=\"\",\"\",AL264/$C$264)","v":""},null,{"$f":"IF($C$264=\"\",\"\",AN264/$C$264)","v":""},null,{"$f":"IF($C$264=\"\",\"\",AP264/$C$264)","v":""},null,{"$f":"IF($C$264=\"\",\"\",AR264/$C$264)","v":""},null,{"$f":"IF($C$264=\"\",\"\",AT264/$C$264)","v":""},null,{"$f":"IF($C$264=\"\",\"\",AV264/$C$264)","v":""},null,{"$f":"IF($C$264=\"\",\"\",AX264/$C$264)","v":""},null,{"$f":"IF($C$264=\"\",\"\",AZ264/$C$264)","v":""},null,{"$f":"IF($C$264=\"\",\"\",BB264/$C$264)","v":""},null,0]
["    11.1.11","    System-Wide Block Diagrams",null,null,{"$f":"IF($C$265=\"\",\"\",F265/$C$265)","v":""},null,{"$f":"IF($C$265=\"\",\"\",H265/$C$265)","v":""},null,{"$f":"IF($C$265=\"\",\"\",J265/$C$265)","v":""},null,{"$f":"IF($C$265=\"\",\"\",L265/$C$265)","v":""},null,{"$f":"IF($C$265=\"\",\"\",N265/$C$265)","v":""},null,{"$f":"IF($C$265=\"\",\"\",P265/$C$265)","v":""},null,{"$f":"IF($C$265=\"\",\"\",R265/$C$265)","v":""},null,{"$f":"IF($C$265=\"\",\"\",T265/$C$265)","v":""},null,{"$f":"IF($C$265=\"\",\"\",V265/$C$265)","v":""},null,{"$f":"IF($C$265=\"\",\"\",X265/$C$265)","v":""},null,{"$f":"IF($C$265=\"\",\"\",Z265/$C$265)","v":""},null,{"$f":"IF($C$265=\"\",\"\",AB265/$C$265)","v":""},null,{"$f":"IF($C$265=\"\",\"\",AD265/$C$265)","v":""},null,{"$f":"IF($C$265=\"\",\"\",AF265/$C$265)","v":""},null,{"$f":"IF($C$265=\"\",\"\",AH265/$C$265)","v":""},null,{"$f":"IF($C$265=\"\",\"\",AJ265/$C$265)","v":""},null,{"$f":"IF($C$265=\"\",\"\",AL265/$C$265)","v":""},null,{"$f":"IF($C$265=\"\",\"\",AN265/$C$265)","v":""},null,{"$f":"IF($C$265=\"\",\"\",AP265/$C$265)","v":""},null,{"$f":"IF($C$265=\"\",\"\",AR265/$C$265)","v":""},null,{"$f":"IF($C$265=\"\",\"\",AT265/$C$265)","v":""},null,{"$f":"IF($C$265=\"\",\"\",AV265/$C$265)","v":""},null,{"$f":"IF($C$265=\"\",\"\",AX265/$C$265)","v":""},null,{"$f":"IF($C$265=\"\",\"\",AZ265/$C$265)","v":""},null,{"$f":"IF($C$265=\"\",\"\",BB265/$C$265)","v":""},null,0]
["    11.1.12","    Sheet Layout Key for UMR/Cable Routing \n    Sheets",null,null,{"$f":"IF($C$266=\"\",\"\",F266/$C$266)","v":""},null,{"$f":"IF($C$266=\"\",\"\",H266/$C$266)","v":""},null,{"$f":"IF($C$266=\"\",\"\",J266/$C$266)","v":""},null,{"$f":"IF($C$266=\"\",\"\",L266/$C$266)","v":""},null,{"$f":"IF($C$266=\"\",\"\",N266/$C$266)","v":""},null,{"$f":"IF($C$266=\"\",\"\",P266/$C$266)","v":""},null,{"$f":"IF($C$266=\"\",\"\",R266/$C$266)","v":""},null,{"$f":"IF($C$266=\"\",\"\",T266/$C$266)","v":""},null,{"$f":"IF($C$266=\"\",\"\",V266/$C$266)","v":""},null,{"$f":"IF($C$266=\"\",\"\",X266/$C$266)","v":""},null,{"$f":"IF($C$266=\"\",\"\",Z266/$C$266)","v":""},null,{"$f":"IF($C$266=\"\",\"\",AB266/$C$266)","v":""},null,{"$f":"IF($C$266=\"\",\"\",AD266/$C$266)","v":""},null,{"$f":"IF($C$266=\"\",\"\",AF266/$C$266)","v":""},null,{"$f":"IF($C$266=\"\",\"\",AH266/$C$266)","v":""},null,{"$f":"IF($C$266=\"\",\"\",AJ266/$C$266)","v":""},null,{"$f":"IF($C$266=\"\",\"\",AL266/$C$266)","v":""},null,{"$f":"IF($C$266=\"\",\"\",AN266/$C$266)","v":""},null,{"$f":"IF($C$266=\"\",\"\",AP266/$C$266)","v":""},null,{"$f":"IF($C$266=\"\",\"\",AR266/$C$266)","v":""},null,{"$f":"IF($C$266=\"\",\"\",AT266/$C$266)","v":""},null,{"$f":"IF($C$266=\"\",\"\",AV266/$C$266)","v":""},null,{"$f":"IF($C$266=\"\",\"\",AX266/$C$266)","v":""},null,{"$f":"IF($C$266=\"\",\"\",AZ266/$C$266)","v":""},null,{"$f":"IF($C$266=\"\",\"\",BB266/$C$266)","v":""},null,0]
["    11.1.13","    Construction Notes",null,null,{"$f":"IF($C$267=\"\",\"\",F267/$C$267)","v":""},null,{"$f":"IF($C$267=\"\",\"\",H267/$C$267)","v":""},null,{"$f":"IF($C$267=\"\",\"\",J267/$C$267)","v":""},null,{"$f":"IF($C$267=\"\",\"\",L267/$C$267)","v":""},null,{"$f":"IF($C$267=\"\",\"\",N267/$C$267)","v":""},null,{"$f":"IF($C$267=\"\",\"\",P267/$C$267)","v":""},null,{"$f":"IF($C$267=\"\",\"\",R267/$C$267)","v":""},null,{"$f":"IF($C$267=\"\",\"\",T267/$C$267)","v":""},null,{"$f":"IF($C$267=\"\",\"\",V267/$C$267)","v":""},null,{"$f":"IF($C$267=\"\",\"\",X267/$C$267)","v":""},null,{"$f":"IF($C$267=\"\",\"\",Z267/$C$267)","v":""},null,{"$f":"IF($C$267=\"\",\"\",AB267/$C$267)","v":""},null,{"$f":"IF($C$267=\"\",\"\",AD267/$C$267)","v":""},null,{"$f":"IF($C$267=\"\",\"\",AF267/$C$267)","v":""},null,{"$f":"IF($C$267=\"\",\"\",AH267/$C$267)","v":""},null,{"$f":"IF($C$267=\"\",\"\",AJ267/$C$267)","v":""},null,{"$f":"IF($C$267=\"\",\"\",AL267/$C$267)","v":""},null,{"$f":"IF($C$267=\"\",\"\",AN267/$C$267)","v":""},null,{"$f":"IF($C$267=\"\",\"\",AP267/$C$267)","v":""},null,{"$f":"IF($C$267=\"\",\"\",AR267/$C$267)","v":""},null,{"$f":"IF($C$267=\"\",\"\",AT267/$C$267)","v":""},null,{"$f":"IF($C$267=\"\",\"\",AV267/$C$267)","v":""},null,{"$f":"IF($C$267=\"\",\"\",AX267/$C$267)","v":""},null,{"$f":"IF($C$267=\"\",\"\",AZ267/$C$267)","v":""},null,{"$f":"IF($C$267=\"\",\"\",BB267/$C$267)","v":""},null,0]
["    11.1.14","    Communications Cable Routing Sheets",null,null,{"$f":"IF($C$268=\"\",\"\",F268/$C$268)","v":""},null,{"$f":"IF($C$268=\"\",\"\",H268/$C$268)","v":""},null,{"$f":"IF($C$268=\"\",\"\",J268/$C$268)","v":""},null,{"$f":"IF($C$268=\"\",\"\",L268/$C$268)","v":""},null,{"$f":"IF($C$268=\"\",\"\",N268/$C$268)","v":""},null,{"$f":"IF($C$268=\"\",\"\",P268/$C$268)","v":""},null,{"$f":"IF($C$268=\"\",\"\",R268/$C$268)","v":""},null,{"$f":"IF($C$268=\"\",\"\",T268/$C$268)","v":""},null,{"$f":"IF($C$268=\"\",\"\",V268/$C$268)","v":""},null,{"$f":"IF($C$268=\"\",\"\",X268/$C$268)","v":""},null,{"$f":"IF($C$268=\"\",\"\",Z268/$C$268)","v":""},null,{"$f":"IF($C$268=\"\",\"\",AB268/$C$268)","v":""},null,{"$f":"IF($C$268=\"\",\"\",AD268/$C$268)","v":""},null,{"$f":"IF($C$268=\"\",\"\",AF268/$C$268)","v":""},null,{"$f":"IF($C$268=\"\",\"\",AH268/$C$268)","v":""},null,{"$f":"IF($C$268=\"\",\"\",AJ268/$C$268)","v":""},null,{"$f":"IF($C$268=\"\",\"\",AL268/$C$268)","v":""},null,{"$f":"IF($C$268=\"\",\"\",AN268/$C$268)","v":""},null,{"$f":"IF($C$268=\"\",\"\",AP268/$C$268)","v":""},null,{"$f":"IF($C$268=\"\",\"\",AR268/$C$268)","v":""},null,{"$f":"IF($C$268=\"\",\"\",AT268/$C$268)","v":""},null,{"$f":"IF($C$268=\"\",\"\",AV268/$C$268)","v":""},null,{"$f":"IF($C$268=\"\",\"\",AX268/$C$268)","v":""},null,{"$f":"IF($C$268=\"\",\"\",AZ268/$C$268)","v":""},null,{"$f":"IF($C$268=\"\",\"\",BB268/$C$268)","v":""},null,0]
["    11.1.15","    Typical Details",null,null,{"$f":"IF($C$269=\"\",\"\",F269/$C$269)","v":""},null,{"$f":"IF($C$269=\"\",\"\",H269/$C$269)","v":""},null,{"$f":"IF($C$269=\"\",\"\",J269/$C$269)","v":""},null,{"$f":"IF($C$269=\"\",\"\",L269/$C$269)","v":""},null,{"$f":"IF($C$269=\"\",\"\",N269/$C$269)","v":""},null,{"$f":"IF($C$269=\"\",\"\",P269/$C$269)","v":""},null,{"$f":"IF($C$269=\"\",\"\",R269/$C$269)","v":""},null,{"$f":"IF($C$269=\"\",\"\",T269/$C$269)","v":""},null,{"$f":"IF($C$269=\"\",\"\",V269/$C$269)","v":""},null,{"$f":"IF($C$269=\"\",\"\",X269/$C$269)","v":""},null,{"$f":"IF($C$269=\"\",\"\",Z269/$C$269)","v":""},null,{"$f":"IF($C$269=\"\",\"\",AB269/$C$269)","v":""},null,{"$f":"IF($C$269=\"\",\"\",AD269/$C$269)","v":""},null,{"$f":"IF($C$269=\"\",\"\",AF269/$C$269)","v":""},null,{"$f":"IF($C$269=\"\",\"\",AH269/$C$269)","v":""},null,{"$f":"IF($C$269=\"\",\"\",AJ269/$C$269)","v":""},null,{"$f":"IF($C$269=\"\",\"\",AL269/$C$269)","v":""},null,{"$f":"IF($C$269=\"\",\"\",AN269/$C$269)","v":""},null,{"$f":"IF($C$269=\"\",\"\",AP269/$C$269)","v":""},null,{"$f":"IF($C$269=\"\",\"\",AR269/$C$269)","v":""},null,{"$f":"IF($C$269=\"\",\"\",AT269/$C$269)","v":""},null,{"$f":"IF($C$269=\"\",\"\",AV269/$C$269)","v":""},null,{"$f":"IF($C$269=\"\",\"\",AX269/$C$269)","v":""},null,{"$f":"IF($C$269=\"\",\"\",AZ269/$C$269)","v":""},null,{"$f":"IF($C$269=\"\",\"\",BB269/$C$269)","v":""},null,0]
["    11.1.16","    Summary of Work by CCTV Location",null,null,{"$f":"IF($C$270=\"\",\"\",F270/$C$270)","v":""},null,{"$f":"IF($C$270=\"\",\"\",H270/$C$270)","v":""},null,{"$f":"IF($C$270=\"\",\"\",J270/$C$270)","v":""},null,{"$f":"IF($C$270=\"\",\"\",L270/$C$270)","v":""},null,{"$f":"IF($C$270=\"\",\"\",N270/$C$270)","v":""},null,{"$f":"IF($C$270=\"\",\"\",P270/$C$270)","v":""},null,{"$f":"IF($C$270=\"\",\"\",R270/$C$270)","v":""},null,{"$f":"IF($C$270=\"\",\"\",T270/$C$270)","v":""},null,{"$f":"IF($C$270=\"\",\"\",V270/$C$270)","v":""},null,{"$f":"IF($C$270=\"\",\"\",X270/$C$270)","v":""},null,{"$f":"IF($C$270=\"\",\"\",Z270/$C$270)","v":""},null,{"$f":"IF($C$270=\"\",\"\",AB270/$C$270)","v":""},null,{"$f":"IF($C$270=\"\",\"\",AD270/$C$270)","v":""},null,{"$f":"IF($C$270=\"\",\"\",AF270/$C$270)","v":""},null,{"$f":"IF($C$270=\"\",\"\",AH270/$C$270)","v":""},null,{"$f":"IF($C$270=\"\",\"\",AJ270/$C$270)","v":""},null,{"$f":"IF($C$270=\"\",\"\",AL270/$C$270)","v":""},null,{"$f":"IF($C$270=\"\",\"\",AN270/$C$270)","v":""},null,{"$f":"IF($C$270=\"\",\"\",AP270/$C$270)","v":""},null,{"$f":"IF($C$270=\"\",\"\",AR270/$C$270)","v":""},null,{"$f":"IF($C$270=\"\",\"\",AT270/$C$270)","v":""},null,{"$f":"IF($C$270=\"\",\"\",AV270/$C$270)","v":""},null,{"$f":"IF($C$270=\"\",\"\",AX270/$C$270)","v":""},null,{"$f":"IF($C$270=\"\",\"\",AZ270/$C$270)","v":""},null,{"$f":"IF($C$270=\"\",\"\",BB270/$C$270)","v":""},null,0]
["    11.1.17","    CCTV Site Plans",null,null,{"$f":"IF($C$271=\"\",\"\",F271/$C$271)","v":""},null,{"$f":"IF($C$271=\"\",\"\",H271/$C$271)","v":""},null,{"$f":"IF($C$271=\"\",\"\",J271/$C$271)","v":""},null,{"$f":"IF($C$271=\"\",\"\",L271/$C$271)","v":""},null,{"$f":"IF($C$271=\"\",\"\",N271/$C$271)","v":""},null,{"$f":"IF($C$271=\"\",\"\",P271/$C$271)","v":""},null,{"$f":"IF($C$271=\"\",\"\",R271/$C$271)","v":""},null,{"$f":"IF($C$271=\"\",\"\",T271/$C$271)","v":""},null,{"$f":"IF($C$271=\"\",\"\",V271/$C$271)","v":""},null,{"$f":"IF($C$271=\"\",\"\",X271/$C$271)","v":""},null,{"$f":"IF($C$271=\"\",\"\",Z271/$C$271)","v":""},null,{"$f":"IF($C$271=\"\",\"\",AB271/$C$271)","v":""},null,{"$f":"IF($C$271=\"\",\"\",AD271/$C$271)","v":""},null,{"$f":"IF($C$271=\"\",\"\",AF271/$C$271)","v":""},null,{"$f":"IF($C$271=\"\",\"\",AH271/$C$271)","v":""},null,{"$f":"IF($C$271=\"\",\"\",AJ271/$C$271)","v":""},null,{"$f":"IF($C$271=\"\",\"\",AL271/$C$271)","v":""},null,{"$f":"IF($C$271=\"\",\"\",AN271/$C$271)","v":""},null,{"$f":"IF($C$271=\"\",\"\",AP271/$C$271)","v":""},null,{"$f":"IF($C$271=\"\",\"\",AR271/$C$271)","v":""},null,{"$f":"IF($C$271=\"\",\"\",AT271/$C$271)","v":""},null,{"$f":"IF($C$271=\"\",\"\",AV271/$C$271)","v":""},null,{"$f":"IF($C$271=\"\",\"\",AX271/$C$271)","v":""},null,{"$f":"IF($C$271=\"\",\"\",AZ271/$C$271)","v":""},null,{"$f":"IF($C$271=\"\",\"\",BB271/$C$271)","v":""},null,0]
["    11.1.18","    Wireless Design",null,null,{"$f":"IF($C$272=\"\",\"\",F272/$C$272)","v":""},null,{"$f":"IF($C$272=\"\",\"\",H272/$C$272)","v":""},null,{"$f":"IF($C$272=\"\",\"\",J272/$C$272)","v":""},null,{"$f":"IF($C$272=\"\",\"\",L272/$C$272)","v":""},null,{"$f":"IF($C$272=\"\",\"\",N272/$C$272)","v":""},null,{"$f":"IF($C$272=\"\",\"\",P272/$C$272)","v":""},null,{"$f":"IF($C$272=\"\",\"\",R272/$C$272)","v":""},null,{"$f":"IF($C$272=\"\",\"\",T272/$C$272)","v":""},null,{"$f":"IF($C$272=\"\",\"\",V272/$C$272)","v":""},null,{"$f":"IF($C$272=\"\",\"\",X272/$C$272)","v":""},null,{"$f":"IF($C$272=\"\",\"\",Z272/$C$272)","v":""},null,{"$f":"IF($C$272=\"\",\"\",AB272/$C$272)","v":""},null,{"$f":"IF($C$272=\"\",\"\",AD272/$C$272)","v":""},null,{"$f":"IF($C$272=\"\",\"\",AF272/$C$272)","v":""},null,{"$f":"IF($C$272=\"\",\"\",AH272/$C$272)","v":""},null,{"$f":"IF($C$272=\"\",\"\",AJ272/$C$272)","v":""},null,{"$f":"IF($C$272=\"\",\"\",AL272/$C$272)","v":""},null,{"$f":"IF($C$272=\"\",\"\",AN272/$C$272)","v":""},null,{"$f":"IF($C$272=\"\",\"\",AP272/$C$272)","v":""},null,{"$f":"IF($C$272=\"\",\"\",AR272/$C$272)","v":""},null,{"$f":"IF($C$272=\"\",\"\",AT272/$C$272)","v":""},null,{"$f":"IF($C$272=\"\",\"\",AV272/$C$272)","v":""},null,{"$f":"IF($C$272=\"\",\"\",AX272/$C$272)","v":""},null,{"$f":"IF($C$272=\"\",\"\",AZ272/$C$272)","v":""},null,{"$f":"IF($C$272=\"\",\"\",BB272/$C$272)","v":""},null,0]
["    11.1.19","    Municipal Remote Monitoring Station Details",null,null,{"$f":"IF($C$273=\"\",\"\",F273/$C$273)","v":""},null,{"$f":"IF($C$273=\"\",\"\",H273/$C$273)","v":""},null,{"$f":"IF($C$273=\"\",\"\",J273/$C$273)","v":""},null,{"$f":"IF($C$273=\"\",\"\",L273/$C$273)","v":""},null,{"$f":"IF($C$273=\"\",\"\",N273/$C$273)","v":""},null,{"$f":"IF($C$273=\"\",\"\",P273/$C$273)","v":""},null,{"$f":"IF($C$273=\"\",\"\",R273/$C$273)","v":""},null,{"$f":"IF($C$273=\"\",\"\",T273/$C$273)","v":""},null,{"$f":"IF($C$273=\"\",\"\",V273/$C$273)","v":""},null,{"$f":"IF($C$273=\"\",\"\",X273/$C$273)","v":""},null,{"$f":"IF($C$273=\"\",\"\",Z273/$C$273)","v":""},null,{"$f":"IF($C$273=\"\",\"\",AB273/$C$273)","v":""},null,{"$f":"IF($C$273=\"\",\"\",AD273/$C$273)","v":""},null,{"$f":"IF($C$273=\"\",\"\",AF273/$C$273)","v":""},null,{"$f":"IF($C$273=\"\",\"\",AH273/$C$273)","v":""},null,{"$f":"IF($C$273=\"\",\"\",AJ273/$C$273)","v":""},null,{"$f":"IF($C$273=\"\",\"\",AL273/$C$273)","v":""},null,{"$f":"IF($C$273=\"\",\"\",AN273/$C$273)","v":""},null,{"$f":"IF($C$273=\"\",\"\",AP273/$C$273)","v":""},null,{"$f":"IF($C$273=\"\",\"\",AR273/$C$273)","v":""},null,{"$f":"IF($C$273=\"\",\"\",AT273/$C$273)","v":""},null,{"$f":"IF($C$273=\"\",\"\",AV273/$C$273)","v":""},null,{"$f":"IF($C$273=\"\",\"\",AX273/$C$273)","v":""},null,{"$f":"IF($C$273=\"\",\"\",AZ273/$C$273)","v":""},null,{"$f":"IF($C$273=\"\",\"\",BB273/$C$273)","v":""},null,0]
["    11.1.20","    TMC Modifications",null,null,{"$f":"IF($C$274=\"\",\"\",F274/$C$274)","v":""},null,{"$f":"IF($C$274=\"\",\"\",H274/$C$274)","v":""},null,{"$f":"IF($C$274=\"\",\"\",J274/$C$274)","v":""},null,{"$f":"IF($C$274=\"\",\"\",L274/$C$274)","v":""},null,{"$f":"IF($C$274=\"\",\"\",N274/$C$274)","v":""},null,{"$f":"IF($C$274=\"\",\"\",P274/$C$274)","v":""},null,{"$f":"IF($C$274=\"\",\"\",R274/$C$274)","v":""},null,{"$f":"IF($C$274=\"\",\"\",T274/$C$274)","v":""},null,{"$f":"IF($C$274=\"\",\"\",V274/$C$274)","v":""},null,{"$f":"IF($C$274=\"\",\"\",X274/$C$274)","v":""},null,{"$f":"IF($C$274=\"\",\"\",Z274/$C$274)","v":""},null,{"$f":"IF($C$274=\"\",\"\",AB274/$C$274)","v":""},null,{"$f":"IF($C$274=\"\",\"\",AD274/$C$274)","v":""},null,{"$f":"IF($C$274=\"\",\"\",AF274/$C$274)","v":""},null,{"$f":"IF($C$274=\"\",\"\",AH274/$C$274)","v":""},null,{"$f":"IF($C$274=\"\",\"\",AJ274/$C$274)","v":""},null,{"$f":"IF($C$274=\"\",\"\",AL274/$C$274)","v":""},null,{"$f":"IF($C$274=\"\",\"\",AN274/$C$274)","v":""},null,{"$f":"IF($C$274=\"\",\"\",AP274/$C$274)","v":""},null,{"$f":"IF($C$274=\"\",\"\",AR274/$C$274)","v":""},null,{"$f":"IF($C$274=\"\",\"\",AT274/$C$274)","v":""},null,{"$f":"IF($C$274=\"\",\"\",AV274/$C$274)","v":""},null,{"$f":"IF($C$274=\"\",\"\",AX274/$C$274)","v":""},null,{"$f":"IF($C$274=\"\",\"\",AZ274/$C$274)","v":""},null,{"$f":"IF($C$274=\"\",\"\",BB274/$C$274)","v":""},null,0]
["    11.1.21","    Special Details",null,null,{"$f":"IF($C$275=\"\",\"\",F275/$C$275)","v":""},null,{"$f":"IF($C$275=\"\",\"\",H275/$C$275)","v":""},null,{"$f":"IF($C$275=\"\",\"\",J275/$C$275)","v":""},null,{"$f":"IF($C$275=\"\",\"\",L275/$C$275)","v":""},null,{"$f":"IF($C$275=\"\",\"\",N275/$C$275)","v":""},null,{"$f":"IF($C$275=\"\",\"\",P275/$C$275)","v":""},null,{"$f":"IF($C$275=\"\",\"\",R275/$C$275)","v":""},null,{"$f":"IF($C$275=\"\",\"\",T275/$C$275)","v":""},null,{"$f":"IF($C$275=\"\",\"\",V275/$C$275)","v":""},null,{"$f":"IF($C$275=\"\",\"\",X275/$C$275)","v":""},null,{"$f":"IF($C$275=\"\",\"\",Z275/$C$275)","v":""},null,{"$f":"IF($C$275=\"\",\"\",AB275/$C$275)","v":""},null,{"$f":"IF($C$275=\"\",\"\",AD275/$C$275)","v":""},null,{"$f":"IF($C$275=\"\",\"\",AF275/$C$275)","v":""},null,{"$f":"IF($C$275=\"\",\"\",AH275/$C$275)","v":""},null,{"$f":"IF($C$275=\"\",\"\",AJ275/$C$275)","v":""},null,{"$f":"IF($C$275=\"\",\"\",AL275/$C$275)","v":""},null,{"$f":"IF($C$275=\"\",\"\",AN275/$C$275)","v":""},null,{"$f":"IF($C$275=\"\",\"\",AP275/$C$275)","v":""},null,{"$f":"IF($C$275=\"\",\"\",AR275/$C$275)","v":""},null,{"$f":"IF($C$275=\"\",\"\",AT275/$C$275)","v":""},null,{"$f":"IF($C$275=\"\",\"\",AV275/$C$275)","v":""},null,{"$f":"IF($C$275=\"\",\"\",AX275/$C$275)","v":""},null,{"$f":"IF($C$275=\"\",\"\",AZ275/$C$275)","v":""},null,{"$f":"IF($C$275=\"\",\"\",BB275/$C$275)","v":""},null,0]
["    11.1.22","    Splice Diagrams",null,null,{"$f":"IF($C$276=\"\",\"\",F276/$C$276)","v":""},null,{"$f":"IF($C$276=\"\",\"\",H276/$C$276)","v":""},null,{"$f":"IF($C$276=\"\",\"\",J276/$C$276)","v":""},null,{"$f":"IF($C$276=\"\",\"\",L276/$C$276)","v":""},null,{"$f":"IF($C$276=\"\",\"\",N276/$C$276)","v":""},null,{"$f":"IF($C$276=\"\",\"\",P276/$C$276)","v":""},null,{"$f":"IF($C$276=\"\",\"\",R276/$C$276)","v":""},null,{"$f":"IF($C$276=\"\",\"\",T276/$C$276)","v":""},null,{"$f":"IF($C$276=\"\",\"\",V276/$C$276)","v":""},null,{"$f":"IF($C$276=\"\",\"\",X276/$C$276)","v":""},null,{"$f":"IF($C$276=\"\",\"\",Z276/$C$276)","v":""},null,{"$f":"IF($C$276=\"\",\"\",AB276/$C$276)","v":""},null,{"$f":"IF($C$276=\"\",\"\",AD276/$C$276)","v":""},null,{"$f":"IF($C$276=\"\",\"\",AF276/$C$276)","v":""},null,{"$f":"IF($C$276=\"\",\"\",AH276/$C$276)","v":""},null,{"$f":"IF($C$276=\"\",\"\",AJ276/$C$276)","v":""},null,{"$f":"IF($C$276=\"\",\"\",AL276/$C$276)","v":""},null,{"$f":"IF($C$276=\"\",\"\",AN276/$C$276)","v":""},null,{"$f":"IF($C$276=\"\",\"\",AP276/$C$276)","v":""},null,{"$f":"IF($C$276=\"\",\"\",AR276/$C$276)","v":""},null,{"$f":"IF($C$276=\"\",\"\",AT276/$C$276)","v":""},null,{"$f":"IF($C$276=\"\",\"\",AV276/$C$276)","v":""},null,{"$f":"IF($C$276=\"\",\"\",AX276/$C$276)","v":""},null,{"$f":"IF($C$276=\"\",\"\",AZ276/$C$276)","v":""},null,{"$f":"IF($C$276=\"\",\"\",BB276/$C$276)","v":""},null,0]
["    11.1.23","    Summary of Work by Intersection",null,null,{"$f":"IF($C$277=\"\",\"\",F277/$C$277)","v":""},null,{"$f":"IF($C$277=\"\",\"\",H277/$C$277)","v":""},null,{"$f":"IF($C$277=\"\",\"\",J277/$C$277)","v":""},null,{"$f":"IF($C$277=\"\",\"\",L277/$C$277)","v":""},null,{"$f":"IF($C$277=\"\",\"\",N277/$C$277)","v":""},null,{"$f":"IF($C$277=\"\",\"\",P277/$C$277)","v":""},null,{"$f":"IF($C$277=\"\",\"\",R277/$C$277)","v":""},null,{"$f":"IF($C$277=\"\",\"\",T277/$C$277)","v":""},null,{"$f":"IF($C$277=\"\",\"\",V277/$C$277)","v":""},null,{"$f":"IF($C$277=\"\",\"\",X277/$C$277)","v":""},null,{"$f":"IF($C$277=\"\",\"\",Z277/$C$277)","v":""},null,{"$f":"IF($C$277=\"\",\"\",AB277/$C$277)","v":""},null,{"$f":"IF($C$277=\"\",\"\",AD277/$C$277)","v":""},null,{"$f":"IF($C$277=\"\",\"\",AF277/$C$277)","v":""},null,{"$f":"IF($C$277=\"\",\"\",AH277/$C$277)","v":""},null,{"$f":"IF($C$277=\"\",\"\",AJ277/$C$277)","v":""},null,{"$f":"IF($C$277=\"\",\"\",AL277/$C$277)","v":""},null,{"$f":"IF($C$277=\"\",\"\",AN277/$C$277)","v":""},null,{"$f":"IF($C$277=\"\",\"\",AP277/$C$277)","v":""},null,{"$f":"IF($C$277=\"\",\"\",AR277/$C$277)","v":""},null,{"$f":"IF($C$277=\"\",\"\",AT277/$C$277)","v":""},null,{"$f":"IF($C$277=\"\",\"\",AV277/$C$277)","v":""},null,{"$f":"IF($C$277=\"\",\"\",AX277/$C$277)","v":""},null,{"$f":"IF($C$277=\"\",\"\",AZ277/$C$277)","v":""},null,{"$f":"IF($C$277=\"\",\"\",BB277/$C$277)","v":""},null,0]
["    11.1.24","    Incorporate NCDOT Traffic Signal Design Plans",null,null,{"$f":"IF($C$278=\"\",\"\",F278/$C$278)","v":""},null,{"$f":"IF($C$278=\"\",\"\",H278/$C$278)","v":""},null,{"$f":"IF($C$278=\"\",\"\",J278/$C$278)","v":""},null,{"$f":"IF($C$278=\"\",\"\",L278/$C$278)","v":""},null,{"$f":"IF($C$278=\"\",\"\",N278/$C$278)","v":""},null,{"$f":"IF($C$278=\"\",\"\",P278/$C$278)","v":""},null,{"$f":"IF($C$278=\"\",\"\",R278/$C$278)","v":""},null,{"$f":"IF($C$278=\"\",\"\",T278/$C$278)","v":""},null,{"$f":"IF($C$278=\"\",\"\",V278/$C$278)","v":""},null,{"$f":"IF($C$278=\"\",\"\",X278/$C$278)","v":""},null,{"$f":"IF($C$278=\"\",\"\",Z278/$C$278)","v":""},null,{"$f":"IF($C$278=\"\",\"\",AB278/$C$278)","v":""},null,{"$f":"IF($C$278=\"\",\"\",AD278/$C$278)","v":""},null,{"$f":"IF($C$278=\"\",\"\",AF278/$C$278)","v":""},null,{"$f":"IF($C$278=\"\",\"\",AH278/$C$278)","v":""},null,{"$f":"IF($C$278=\"\",\"\",AJ278/$C$278)","v":""},null,{"$f":"IF($C$278=\"\",\"\",AL278/$C$278)","v":""},null,{"$f":"IF($C$278=\"\",\"\",AN278/$C$278)","v":""},null,{"$f":"IF($C$278=\"\",\"\",AP278/$C$278)","v":""},null,{"$f":"IF($C$278=\"\",\"\",AR278/$C$278)","v":""},null,{"$f":"IF($C$278=\"\",\"\",AT278/$C$278)","v":""},null,{"$f":"IF($C$278=\"\",\"\",AV278/$C$278)","v":""},null,{"$f":"IF($C$278=\"\",\"\",AX278/$C$278)","v":""},null,{"$f":"IF($C$278=\"\",\"\",AZ278/$C$278)","v":""},null,{"$f":"IF($C$278=\"\",\"\",BB278/$C$278)","v":""},null,0]
["    11.1.25","    City Traffic Signal Plans"]
["        11.1.25.1","        Intersection Base Mapping",null,null,{"$f":"IF($C$280=\"\",\"\",F280/$C$280)","v":""},null,{"$f":"IF($C$280=\"\",\"\",H280/$C$280)","v":""},null,{"$f":"IF($C$280=\"\",\"\",J280/$C$280)","v":""},null,{"$f":"IF($C$280=\"\",\"\",L280/$C$280)","v":""},null,{"$f":"IF($C$280=\"\",\"\",N280/$C$280)","v":""},null,{"$f":"IF($C$280=\"\",\"\",P280/$C$280)","v":""},null,{"$f":"IF($C$280=\"\",\"\",R280/$C$280)","v":""},null,{"$f":"IF($C$280=\"\",\"\",T280/$C$280)","v":""},null,{"$f":"IF($C$280=\"\",\"\",V280/$C$280)","v":""},null,{"$f":"IF($C$280=\"\",\"\",X280/$C$280)","v":""},null,{"$f":"IF($C$280=\"\",\"\",Z280/$C$280)","v":""},null,{"$f":"IF($C$280=\"\",\"\",AB280/$C$280)","v":""},null,{"$f":"IF($C$280=\"\",\"\",AD280/$C$280)","v":""},null,{"$f":"IF($C$280=\"\",\"\",AF280/$C$280)","v":""},null,{"$f":"IF($C$280=\"\",\"\",AH280/$C$280)","v":""},null,{"$f":"IF($C$280=\"\",\"\",AJ280/$C$280)","v":""},null,{"$f":"IF($C$280=\"\",\"\",AL280/$C$280)","v":""},null,{"$f":"IF($C$280=\"\",\"\",AN280/$C$280)","v":""},null,{"$f":"IF($C$280=\"\",\"\",AP280/$C$280)","v":""},null,{"$f":"IF($C$280=\"\",\"\",AR280/$C$280)","v":""},null,{"$f":"IF($C$280=\"\",\"\",AT280/$C$280)","v":""},null,{"$f":"IF($C$280=\"\",\"\",AV280/$C$280)","v":""},null,{"$f":"IF($C$280=\"\",\"\",AX280/$C$280)","v":""},null,{"$f":"IF($C$280=\"\",\"\",AZ280/$C$280)","v":""},null,{"$f":"IF($C$280=\"\",\"\",BB280/$C$280)","v":""},null,{"$f":"SUM(BB280,AZ280,AX280,AV280,AT280,AR280,AP280,AN280,AL280,AJ280,AH280,AF280,AD280,AB280,Z280,X280,V280,T280,R280,P280,N280,L280,J280,H280,F280)","v":0}]
["        11.1.25.2","        Plans",null,null,{"$f":"IF($C$281=\"\",\"\",F281/$C$281)","v":""},null,{"$f":"IF($C$281=\"\",\"\",H281/$C$281)","v":""},null,{"$f":"IF($C$281=\"\",\"\",J281/$C$281)","v":""},null,{"$f":"IF($C$281=\"\",\"\",L281/$C$281)","v":""},null,{"$f":"IF($C$281=\"\",\"\",N281/$C$281)","v":""},null,{"$f":"IF($C$281=\"\",\"\",P281/$C$281)","v":""},null,{"$f":"IF($C$281=\"\",\"\",R281/$C$281)","v":""},null,{"$f":"IF($C$281=\"\",\"\",T281/$C$281)","v":""},null,{"$f":"IF($C$281=\"\",\"\",V281/$C$281)","v":""},null,{"$f":"IF($C$281=\"\",\"\",X281/$C$281)","v":""},null,{"$f":"IF($C$281=\"\",\"\",Z281/$C$281)","v":""},null,{"$f":"IF($C$281=\"\",\"\",AB281/$C$281)","v":""},null,{"$f":"IF($C$281=\"\",\"\",AD281/$C$281)","v":""},null,{"$f":"IF($C$281=\"\",\"\",AF281/$C$281)","v":""},null,{"$f":"IF($C$281=\"\",\"\",AH281/$C$281)","v":""},null,{"$f":"IF($C$281=\"\",\"\",AJ281/$C$281)","v":""},null,{"$f":"IF($C$281=\"\",\"\",AL281/$C$281)","v":""},null,{"$f":"IF($C$281=\"\",\"\",AN281/$C$281)","v":""},null,{"$f":"IF($C$281=\"\",\"\",AP281/$C$281)","v":""},null,{"$f":"IF($C$281=\"\",\"\",AR281/$C$281)","v":""},null,{"$f":"IF($C$281=\"\",\"\",AT281/$C$281)","v":""},null,{"$f":"IF($C$281=\"\",\"\",AV281/$C$281)","v":""},null,{"$f":"IF($C$281=\"\",\"\",AX281/$C$281)","v":""},null,{"$f":"IF($C$281=\"\",\"\",AZ281/$C$281)","v":""},null,{"$f":"IF($C$281=\"\",\"\",BB281/$C$281)","v":""},null,0]
["        11.1.25.3","        Local Controller Timings",null,null,{"$f":"IF($C$282=\"\",\"\",F282/$C$282)","v":""},null,{"$f":"IF($C$282=\"\",\"\",H282/$C$282)","v":""},null,{"$f":"IF($C$282=\"\",\"\",J282/$C$282)","v":""},null,{"$f":"IF($C$282=\"\",\"\",L282/$C$282)","v":""},null,{"$f":"IF($C$282=\"\",\"\",N282/$C$282)","v":""},null,{"$f":"IF($C$282=\"\",\"\",P282/$C$282)","v":""},null,{"$f":"IF($C$282=\"\",\"\",R282/$C$282)","v":""},null,{"$f":"IF($C$282=\"\",\"\",T282/$C$282)","v":""},null,{"$f":"IF($C$282=\"\",\"\",V282/$C$282)","v":""},null,{"$f":"IF($C$282=\"\",\"\",X282/$C$282)","v":""},null,{"$f":"IF($C$282=\"\",\"\",Z282/$C$282)","v":""},null,{"$f":"IF($C$282=\"\",\"\",AB282/$C$282)","v":""},null,{"$f":"IF($C$282=\"\",\"\",AD282/$C$282)","v":""},null,{"$f":"IF($C$282=\"\",\"\",AF282/$C$282)","v":""},null,{"$f":"IF($C$282=\"\",\"\",AH282/$C$282)","v":""},null,{"$f":"IF($C$282=\"\",\"\",AJ282/$C$282)","v":""},null,{"$f":"IF($C$282=\"\",\"\",AL282/$C$282)","v":""},null,{"$f":"IF($C$282=\"\",\"\",AN282/$C$282)","v":""},null,{"$f":"IF($C$282=\"\",\"\",AP282/$C$282)","v":""},null,{"$f":"IF($C$282=\"\",\"\",AR282/$C$282)","v":""},null,{"$f":"IF($C$282=\"\",\"\",AT282/$C$282)","v":""},null,{"$f":"IF($C$282=\"\",\"\",AV282/$C$282)","v":""},null,{"$f":"IF($C$282=\"\",\"\",AX282/$C$282)","v":""},null,{"$f":"IF($C$282=\"\",\"\",AZ282/$C$282)","v":""},null,{"$f":"IF($C$282=\"\",\"\",BB282/$C$282)","v":""},null,0]
["        11.1.25.4","        Preemption (Fire Station)",null,null,{"$f":"IF($C$283=\"\",\"\",F283/$C$283)","v":""},null,{"$f":"IF($C$283=\"\",\"\",H283/$C$283)","v":""},null,{"$f":"IF($C$283=\"\",\"\",J283/$C$283)","v":""},null,{"$f":"IF($C$283=\"\",\"\",L283/$C$283)","v":""},null,{"$f":"IF($C$283=\"\",\"\",N283/$C$283)","v":""},null,{"$f":"IF($C$283=\"\",\"\",P283/$C$283)","v":""},null,{"$f":"IF($C$283=\"\",\"\",R283/$C$283)","v":""},null,{"$f":"IF($C$283=\"\",\"\",T283/$C$283)","v":""},null,{"$f":"IF($C$283=\"\",\"\",V283/$C$283)","v":""},null,{"$f":"IF($C$283=\"\",\"\",X283/$C$283)","v":""},null,{"$f":"IF($C$283=\"\",\"\",Z283/$C$283)","v":""},null,{"$f":"IF($C$283=\"\",\"\",AB283/$C$283)","v":""},null,{"$f":"IF($C$283=\"\",\"\",AD283/$C$283)","v":""},null,{"$f":"IF($C$283=\"\",\"\",AF283/$C$283)","v":""},null,{"$f":"IF($C$283=\"\",\"\",AH283/$C$283)","v":""},null,{"$f":"IF($C$283=\"\",\"\",AJ283/$C$283)","v":""},null,{"$f":"IF($C$283=\"\",\"\",AL283/$C$283)","v":""},null,{"$f":"IF($C$283=\"\",\"\",AN283/$C$283)","v":""},null,{"$f":"IF($C$283=\"\",\"\",AP283/$C$283)","v":""},null,{"$f":"IF($C$283=\"\",\"\",AR283/$C$283)","v":""},null,{"$f":"IF($C$283=\"\",\"\",AT283/$C$283)","v":""},null,{"$f":"IF($C$283=\"\",\"\",AV283/$C$283)","v":""},null,{"$f":"IF($C$283=\"\",\"\",AX283/$C$283)","v":""},null,{"$f":"IF($C$283=\"\",\"\",AZ283/$C$283)","v":""},null,{"$f":"IF($C$283=\"\",\"\",BB283/$C$283)","v":""},null,0]
["        11.1.25.5","        Signal Quantity Estimates",null,null,{"$f":"IF($C$284=\"\",\"\",F284/$C$284)","v":""},null,{"$f":"IF($C$284=\"\",\"\",H284/$C$284)","v":""},null,{"$f":"IF($C$284=\"\",\"\",J284/$C$284)","v":""},null,{"$f":"IF($C$284=\"\",\"\",L284/$C$284)","v":""},null,{"$f":"IF($C$284=\"\",\"\",N284/$C$284)","v":""},null,{"$f":"IF($C$284=\"\",\"\",P284/$C$284)","v":""},null,{"$f":"IF($C$284=\"\",\"\",R284/$C$284)","v":""},null,{"$f":"IF($C$284=\"\",\"\",T284/$C$284)","v":""},null,{"$f":"IF($C$284=\"\",\"\",V284/$C$284)","v":""},null,{"$f":"IF($C$284=\"\",\"\",X284/$C$284)","v":""},null,{"$f":"IF($C$284=\"\",\"\",Z284/$C$284)","v":""},null,{"$f":"IF($C$284=\"\",\"\",AB284/$C$284)","v":""},null,{"$f":"IF($C$284=\"\",\"\",AD284/$C$284)","v":""},null,{"$f":"IF($C$284=\"\",\"\",AF284/$C$284)","v":""},null,{"$f":"IF($C$284=\"\",\"\",AH284/$C$284)","v":""},null,{"$f":"IF($C$284=\"\",\"\",AJ284/$C$284)","v":""},null,{"$f":"IF($C$284=\"\",\"\",AL284/$C$284)","v":""},null,{"$f":"IF($C$284=\"\",\"\",AN284/$C$284)","v":""},null,{"$f":"IF($C$284=\"\",\"\",AP284/$C$284)","v":""},null,{"$f":"IF($C$284=\"\",\"\",AR284/$C$284)","v":""},null,{"$f":"IF($C$284=\"\",\"\",AT284/$C$284)","v":""},null,{"$f":"IF($C$284=\"\",\"\",AV284/$C$284)","v":""},null,{"$f":"IF($C$284=\"\",\"\",AX284/$C$284)","v":""},null,{"$f":"IF($C$284=\"\",\"\",AZ284/$C$284)","v":""},null,{"$f":"IF($C$284=\"\",\"\",BB284/$C$284)","v":""},null,0]
["        11.1.25.6","        Electrical & Programming Details - No \n        Preemption",null,null,{"$f":"IF($C$285=\"\",\"\",F285/$C$285)","v":""},null,{"$f":"IF($C$285=\"\",\"\",H285/$C$285)","v":""},null,{"$f":"IF($C$285=\"\",\"\",J285/$C$285)","v":""},null,{"$f":"IF($C$285=\"\",\"\",L285/$C$285)","v":""},null,{"$f":"IF($C$285=\"\",\"\",N285/$C$285)","v":""},null,{"$f":"IF($C$285=\"\",\"\",P285/$C$285)","v":""},null,{"$f":"IF($C$285=\"\",\"\",R285/$C$285)","v":""},null,{"$f":"IF($C$285=\"\",\"\",T285/$C$285)","v":""},null,{"$f":"IF($C$285=\"\",\"\",V285/$C$285)","v":""},null,{"$f":"IF($C$285=\"\",\"\",X285/$C$285)","v":""},null,{"$f":"IF($C$285=\"\",\"\",Z285/$C$285)","v":""},null,{"$f":"IF($C$285=\"\",\"\",AB285/$C$285)","v":""},null,{"$f":"IF($C$285=\"\",\"\",AD285/$C$285)","v":""},null,{"$f":"IF($C$285=\"\",\"\",AF285/$C$285)","v":""},null,{"$f":"IF($C$285=\"\",\"\",AH285/$C$285)","v":""},null,{"$f":"IF($C$285=\"\",\"\",AJ285/$C$285)","v":""},null,{"$f":"IF($C$285=\"\",\"\",AL285/$C$285)","v":""},null,{"$f":"IF($C$285=\"\",\"\",AN285/$C$285)","v":""},null,{"$f":"IF($C$285=\"\",\"\",AP285/$C$285)","v":""},null,{"$f":"IF($C$285=\"\",\"\",AR285/$C$285)","v":""},null,{"$f":"IF($C$285=\"\",\"\",AT285/$C$285)","v":""},null,{"$f":"IF($C$285=\"\",\"\",AV285/$C$285)","v":""},null,{"$f":"IF($C$285=\"\",\"\",AX285/$C$285)","v":""},null,{"$f":"IF($C$285=\"\",\"\",AZ285/$C$285)","v":""},null,{"$f":"IF($C$285=\"\",\"\",BB285/$C$285)","v":""},null,0]
["        11.1.25.7","        Electrical & Programming Details - With \n        Preemption",null,null,{"$f":"IF($C$286=\"\",\"\",F286/$C$286)","v":""},null,{"$f":"IF($C$286=\"\",\"\",H286/$C$286)","v":""},null,{"$f":"IF($C$286=\"\",\"\",J286/$C$286)","v":""},null,{"$f":"IF($C$286=\"\",\"\",L286/$C$286)","v":""},null,{"$f":"IF($C$286=\"\",\"\",N286/$C$286)","v":""},null,{"$f":"IF($C$286=\"\",\"\",P286/$C$286)","v":""},null,{"$f":"IF($C$286=\"\",\"\",R286/$C$286)","v":""},null,{"$f":"IF($C$286=\"\",\"\",T286/$C$286)","v":""},null,{"$f":"IF($C$286=\"\",\"\",V286/$C$286)","v":""},null,{"$f":"IF($C$286=\"\",\"\",X286/$C$286)","v":""},null,{"$f":"IF($C$286=\"\",\"\",Z286/$C$286)","v":""},null,{"$f":"IF($C$286=\"\",\"\",AB286/$C$286)","v":""},null,{"$f":"IF($C$286=\"\",\"\",AD286/$C$286)","v":""},null,{"$f":"IF($C$286=\"\",\"\",AF286/$C$286)","v":""},null,{"$f":"IF($C$286=\"\",\"\",AH286/$C$286)","v":""},null,{"$f":"IF($C$286=\"\",\"\",AJ286/$C$286)","v":""},null,{"$f":"IF($C$286=\"\",\"\",AL286/$C$286)","v":""},null,{"$f":"IF($C$286=\"\",\"\",AN286/$C$286)","v":""},null,{"$f":"IF($C$286=\"\",\"\",AP286/$C$286)","v":""},null,{"$f":"IF($C$286=\"\",\"\",AR286/$C$286)","v":""},null,{"$f":"IF($C$286=\"\",\"\",AT286/$C$286)","v":""},null,{"$f":"IF($C$286=\"\",\"\",AV286/$C$286)","v":""},null,{"$f":"IF($C$286=\"\",\"\",AX286/$C$286)","v":""},null,{"$f":"IF($C$286=\"\",\"\",AZ286/$C$286)","v":""},null,{"$f":"IF($C$286=\"\",\"\",BB286/$C$286)","v":""},null,0]
["        11.1.25.8",null,null,null,{"$f":"IF($C$287=\"\",\"\",F287/$C$287)","v":""},null,{"$f":"IF($C$287=\"\",\"\",H287/$C$287)","v":""},null,{"$f":"IF($C$287=\"\",\"\",J287/$C$287)","v":""},null,{"$f":"IF($C$287=\"\",\"\",L287/$C$287)","v":""},null,{"$f":"IF($C$287=\"\",\"\",N287/$C$287)","v":""},null,{"$f":"IF($C$287=\"\",\"\",P287/$C$287)","v":""},null,{"$f":"IF($C$287=\"\",\"\",R287/$C$287)","v":""},null,{"$f":"IF($C$287=\"\",\"\",T287/$C$287)","v":""},null,{"$f":"IF($C$287=\"\",\"\",V287/$C$287)","v":""},null,{"$f":"IF($C$287=\"\",\"\",X287/$C$287)","v":""},null,{"$f":"IF($C$287=\"\",\"\",Z287/$C$287)","v":""},null,{"$f":"IF($C$287=\"\",\"\",AB287/$C$287)","v":""},null,{"$f":"IF($C$287=\"\",\"\",AD287/$C$287)","v":""},null,{"$f":"IF($C$287=\"\",\"\",AF287/$C$287)","v":""},null,{"$f":"IF($C$287=\"\",\"\",AH287/$C$287)","v":""},null,{"$f":"IF($C$287=\"\",\"\",AJ287/$C$287)","v":""},null,{"$f":"IF($C$287=\"\",\"\",AL287/$C$287)","v":""},null,{"$f":"IF($C$287=\"\",\"\",AN287/$C$287)","v":""},null,{"$f":"IF($C$287=\"\",\"\",AP287/$C$287)","v":""},null,{"$f":"IF($C$287=\"\",\"\",AR287/$C$287)","v":""},null,{"$f":"IF($C$287=\"\",\"\",AT287/$C$287)","v":""},null,{"$f":"IF($C$287=\"\",\"\",AV287/$C$287)","v":""},null,{"$f":"IF($C$287=\"\",\"\",AX287/$C$287)","v":""},null,{"$f":"IF($C$287=\"\",\"\",AZ287/$C$287)","v":""},null,{"$f":"IF($C$287=\"\",\"\",BB287/$C$287)","v":""},null,0]
["        11.1.25.9",null,null,null,{"$f":"IF($C$288=\"\",\"\",F288/$C$288)","v":""},null,{"$f":"IF($C$288=\"\",\"\",H288/$C$288)","v":""},null,{"$f":"IF($C$288=\"\",\"\",J288/$C$288)","v":""},null,{"$f":"IF($C$288=\"\",\"\",L288/$C$288)","v":""},null,{"$f":"IF($C$288=\"\",\"\",N288/$C$288)","v":""},null,{"$f":"IF($C$288=\"\",\"\",P288/$C$288)","v":""},null,{"$f":"IF($C$288=\"\",\"\",R288/$C$288)","v":""},null,{"$f":"IF($C$288=\"\",\"\",T288/$C$288)","v":""},null,{"$f":"IF($C$288=\"\",\"\",V288/$C$288)","v":""},null,{"$f":"IF($C$288=\"\",\"\",X288/$C$288)","v":""},null,{"$f":"IF($C$288=\"\",\"\",Z288/$C$288)","v":""},null,{"$f":"IF($C$288=\"\",\"\",AB288/$C$288)","v":""},null,{"$f":"IF($C$288=\"\",\"\",AD288/$C$288)","v":""},null,{"$f":"IF($C$288=\"\",\"\",AF288/$C$288)","v":""},null,{"$f":"IF($C$288=\"\",\"\",AH288/$C$288)","v":""},null,{"$f":"IF($C$288=\"\",\"\",AJ288/$C$288)","v":""},null,{"$f":"IF($C$288=\"\",\"\",AL288/$C$288)","v":""},null,{"$f":"IF($C$288=\"\",\"\",AN288/$C$288)","v":""},null,{"$f":"IF($C$288=\"\",\"\",AP288/$C$288)","v":""},null,{"$f":"IF($C$288=\"\",\"\",AR288/$C$288)","v":""},null,{"$f":"IF($C$288=\"\",\"\",AT288/$C$288)","v":""},null,{"$f":"IF($C$288=\"\",\"\",AV288/$C$288)","v":""},null,{"$f":"IF($C$288=\"\",\"\",AX288/$C$288)","v":""},null,{"$f":"IF($C$288=\"\",\"\",AZ288/$C$288)","v":""},null,{"$f":"IF($C$288=\"\",\"\",BB288/$C$288)","v":""},null,0]
["        11.1.25.10",null,null,null,{"$f":"IF($C$289=\"\",\"\",F289/$C$289)","v":""},null,{"$f":"IF($C$289=\"\",\"\",H289/$C$289)","v":""},null,{"$f":"IF($C$289=\"\",\"\",J289/$C$289)","v":""},null,{"$f":"IF($C$289=\"\",\"\",L289/$C$289)","v":""},null,{"$f":"IF($C$289=\"\",\"\",N289/$C$289)","v":""},null,{"$f":"IF($C$289=\"\",\"\",P289/$C$289)","v":""},null,{"$f":"IF($C$289=\"\",\"\",R289/$C$289)","v":""},null,{"$f":"IF($C$289=\"\",\"\",T289/$C$289)","v":""},null,{"$f":"IF($C$289=\"\",\"\",V289/$C$289)","v":""},null,{"$f":"IF($C$289=\"\",\"\",X289/$C$289)","v":""},null,{"$f":"IF($C$289=\"\",\"\",Z289/$C$289)","v":""},null,{"$f":"IF($C$289=\"\",\"\",AB289/$C$289)","v":""},null,{"$f":"IF($C$289=\"\",\"\",AD289/$C$289)","v":""},null,{"$f":"IF($C$289=\"\",\"\",AF289/$C$289)","v":""},null,{"$f":"IF($C$289=\"\",\"\",AH289/$C$289)","v":""},null,{"$f":"IF($C$289=\"\",\"\",AJ289/$C$289)","v":""},null,{"$f":"IF($C$289=\"\",\"\",AL289/$C$289)","v":""},null,{"$f":"IF($C$289=\"\",\"\",AN289/$C$289)","v":""},null,{"$f":"IF($C$289=\"\",\"\",AP289/$C$289)","v":""},null,{"$f":"IF($C$289=\"\",\"\",AR289/$C$289)","v":""},null,{"$f":"IF($C$289=\"\",\"\",AT289/$C$289)","v":""},null,{"$f":"IF($C$289=\"\",\"\",AV289/$C$289)","v":""},null,{"$f":"IF($C$289=\"\",\"\",AX289/$C$289)","v":""},null,{"$f":"IF($C$289=\"\",\"\",AZ289/$C$289)","v":""},null,{"$f":"IF($C$289=\"\",\"\",BB289/$C$289)","v":""},null,0]
["    11.1.26","    Preliminary PS&E On-Site Work Sessions",null,null,{"$f":"IF($C$290=\"\",\"\",F290/$C$290)","v":""},null,{"$f":"IF($C$290=\"\",\"\",H290/$C$290)","v":""},null,{"$f":"IF($C$290=\"\",\"\",J290/$C$290)","v":""},null,{"$f":"IF($C$290=\"\",\"\",L290/$C$290)","v":""},null,{"$f":"IF($C$290=\"\",\"\",N290/$C$290)","v":""},null,{"$f":"IF($C$290=\"\",\"\",P290/$C$290)","v":""},null,{"$f":"IF($C$290=\"\",\"\",R290/$C$290)","v":""},null,{"$f":"IF($C$290=\"\",\"\",T290/$C$290)","v":""},null,{"$f":"IF($C$290=\"\",\"\",V290/$C$290)","v":""},null,{"$f":"IF($C$290=\"\",\"\",X290/$C$290)","v":""},null,{"$f":"IF($C$290=\"\",\"\",Z290/$C$290)","v":""},null,{"$f":"IF($C$290=\"\",\"\",AB290/$C$290)","v":""},null,{"$f":"IF($C$290=\"\",\"\",AD290/$C$290)","v":""},null,{"$f":"IF($C$290=\"\",\"\",AF290/$C$290)","v":""},null,{"$f":"IF($C$290=\"\",\"\",AH290/$C$290)","v":""},null,{"$f":"IF($C$290=\"\",\"\",AJ290/$C$290)","v":""},null,{"$f":"IF($C$290=\"\",\"\",AL290/$C$290)","v":""},null,{"$f":"IF($C$290=\"\",\"\",AN290/$C$290)","v":""},null,{"$f":"IF($C$290=\"\",\"\",AP290/$C$290)","v":""},null,{"$f":"IF($C$290=\"\",\"\",AR290/$C$290)","v":""},null,{"$f":"IF($C$290=\"\",\"\",AT290/$C$290)","v":""},null,{"$f":"IF($C$290=\"\",\"\",AV290/$C$290)","v":""},null,{"$f":"IF($C$290=\"\",\"\",AX290/$C$290)","v":""},null,{"$f":"IF($C$290=\"\",\"\",AZ290/$C$290)","v":""},null,{"$f":"IF($C$290=\"\",\"\",BB290/$C$290)","v":""},null,0]
["    11.1.27",null,null,null,{"$f":"IF($C$291=\"\",\"\",F291/$C$291)","v":""},null,{"$f":"IF($C$291=\"\",\"\",H291/$C$291)","v":""},null,{"$f":"IF($C$291=\"\",\"\",J291/$C$291)","v":""},null,{"$f":"IF($C$291=\"\",\"\",L291/$C$291)","v":""},null,{"$f":"IF($C$291=\"\",\"\",N291/$C$291)","v":""},null,{"$f":"IF($C$291=\"\",\"\",P291/$C$291)","v":""},null,{"$f":"IF($C$291=\"\",\"\",R291/$C$291)","v":""},null,{"$f":"IF($C$291=\"\",\"\",T291/$C$291)","v":""},null,{"$f":"IF($C$291=\"\",\"\",V291/$C$291)","v":""},null,{"$f":"IF($C$291=\"\",\"\",X291/$C$291)","v":""},null,{"$f":"IF($C$291=\"\",\"\",Z291/$C$291)","v":""},null,{"$f":"IF($C$291=\"\",\"\",AB291/$C$291)","v":""},null,{"$f":"IF($C$291=\"\",\"\",AD291/$C$291)","v":""},null,{"$f":"IF($C$291=\"\",\"\",AF291/$C$291)","v":""},null,{"$f":"IF($C$291=\"\",\"\",AH291/$C$291)","v":""},null,{"$f":"IF($C$291=\"\",\"\",AJ291/$C$291)","v":""},null,{"$f":"IF($C$291=\"\",\"\",AL291/$C$291)","v":""},null,{"$f":"IF($C$291=\"\",\"\",AN291/$C$291)","v":""},null,{"$f":"IF($C$291=\"\",\"\",AP291/$C$291)","v":""},null,{"$f":"IF($C$291=\"\",\"\",AR291/$C$291)","v":""},null,{"$f":"IF($C$291=\"\",\"\",AT291/$C$291)","v":""},null,{"$f":"IF($C$291=\"\",\"\",AV291/$C$291)","v":""},null,{"$f":"IF($C$291=\"\",\"\",AX291/$C$291)","v":""},null,{"$f":"IF($C$291=\"\",\"\",AZ291/$C$291)","v":""},null,{"$f":"IF($C$291=\"\",\"\",BB291/$C$291)","v":""},null,0]
["    11.1.28",null,null,null,{"$f":"IF($C$292=\"\",\"\",F292/$C$292)","v":""},null,{"$f":"IF($C$292=\"\",\"\",H292/$C$292)","v":""},null,{"$f":"IF($C$292=\"\",\"\",J292/$C$292)","v":""},null,{"$f":"IF($C$292=\"\",\"\",L292/$C$292)","v":""},null,{"$f":"IF($C$292=\"\",\"\",N292/$C$292)","v":""},null,{"$f":"IF($C$292=\"\",\"\",P292/$C$292)","v":""},null,{"$f":"IF($C$292=\"\",\"\",R292/$C$292)","v":""},null,{"$f":"IF($C$292=\"\",\"\",T292/$C$292)","v":""},null,{"$f":"IF($C$292=\"\",\"\",V292/$C$292)","v":""},null,{"$f":"IF($C$292=\"\",\"\",X292/$C$292)","v":""},null,{"$f":"IF($C$292=\"\",\"\",Z292/$C$292)","v":""},null,{"$f":"IF($C$292=\"\",\"\",AB292/$C$292)","v":""},null,{"$f":"IF($C$292=\"\",\"\",AD292/$C$292)","v":""},null,{"$f":"IF($C$292=\"\",\"\",AF292/$C$292)","v":""},null,{"$f":"IF($C$292=\"\",\"\",AH292/$C$292)","v":""},null,{"$f":"IF($C$292=\"\",\"\",AJ292/$C$292)","v":""},null,{"$f":"IF($C$292=\"\",\"\",AL292/$C$292)","v":""},null,{"$f":"IF($C$292=\"\",\"\",AN292/$C$292)","v":""},null,{"$f":"IF($C$292=\"\",\"\",AP292/$C$292)","v":""},null,{"$f":"IF($C$292=\"\",\"\",AR292/$C$292)","v":""},null,{"$f":"IF($C$292=\"\",\"\",AT292/$C$292)","v":""},null,{"$f":"IF($C$292=\"\",\"\",AV292/$C$292)","v":""},null,{"$f":"IF($C$292=\"\",\"\",AX292/$C$292)","v":""},null,{"$f":"IF($C$292=\"\",\"\",AZ292/$C$292)","v":""},null,{"$f":"IF($C$292=\"\",\"\",BB292/$C$292)","v":""},null,0]
["    11.1.29",null,null,null,{"$f":"IF($C$293=\"\",\"\",F293/$C$293)","v":""},null,{"$f":"IF($C$293=\"\",\"\",H293/$C$293)","v":""},null,{"$f":"IF($C$293=\"\",\"\",J293/$C$293)","v":""},null,{"$f":"IF($C$293=\"\",\"\",L293/$C$293)","v":""},null,{"$f":"IF($C$293=\"\",\"\",N293/$C$293)","v":""},null,{"$f":"IF($C$293=\"\",\"\",P293/$C$293)","v":""},null,{"$f":"IF($C$293=\"\",\"\",R293/$C$293)","v":""},null,{"$f":"IF($C$293=\"\",\"\",T293/$C$293)","v":""},null,{"$f":"IF($C$293=\"\",\"\",V293/$C$293)","v":""},null,{"$f":"IF($C$293=\"\",\"\",X293/$C$293)","v":""},null,{"$f":"IF($C$293=\"\",\"\",Z293/$C$293)","v":""},null,{"$f":"IF($C$293=\"\",\"\",AB293/$C$293)","v":""},null,{"$f":"IF($C$293=\"\",\"\",AD293/$C$293)","v":""},null,{"$f":"IF($C$293=\"\",\"\",AF293/$C$293)","v":""},null,{"$f":"IF($C$293=\"\",\"\",AH293/$C$293)","v":""},null,{"$f":"IF($C$293=\"\",\"\",AJ293/$C$293)","v":""},null,{"$f":"IF($C$293=\"\",\"\",AL293/$C$293)","v":""},null,{"$f":"IF($C$293=\"\",\"\",AN293/$C$293)","v":""},null,{"$f":"IF($C$293=\"\",\"\",AP293/$C$293)","v":""},null,{"$f":"IF($C$293=\"\",\"\",AR293/$C$293)","v":""},null,{"$f":"IF($C$293=\"\",\"\",AT293/$C$293)","v":""},null,{"$f":"IF($C$293=\"\",\"\",AV293/$C$293)","v":""},null,{"$f":"IF($C$293=\"\",\"\",AX293/$C$293)","v":""},null,{"$f":"IF($C$293=\"\",\"\",AZ293/$C$293)","v":""},null,{"$f":"IF($C$293=\"\",\"\",BB293/$C$293)","v":""},null,0]
[11.2,"Draft Final Plans"]
["    11.2.1","    Revise and Submit Draft Final Plans",null,null,{"$f":"IF($C$295=\"\",\"\",F295/$C$295)","v":""},null,{"$f":"IF($C$295=\"\",\"\",H295/$C$295)","v":""},null,{"$f":"IF($C$295=\"\",\"\",J295/$C$295)","v":""},null,{"$f":"IF($C$295=\"\",\"\",L295/$C$295)","v":""},null,{"$f":"IF($C$295=\"\",\"\",N295/$C$295)","v":""},null,{"$f":"IF($C$295=\"\",\"\",P295/$C$295)","v":""},null,{"$f":"IF($C$295=\"\",\"\",R295/$C$295)","v":""},null,{"$f":"IF($C$295=\"\",\"\",T295/$C$295)","v":""},null,{"$f":"IF($C$295=\"\",\"\",V295/$C$295)","v":""},null,{"$f":"IF($C$295=\"\",\"\",X295/$C$295)","v":""},null,{"$f":"IF($C$295=\"\",\"\",Z295/$C$295)","v":""},null,{"$f":"IF($C$295=\"\",\"\",AB295/$C$295)","v":""},null,{"$f":"IF($C$295=\"\",\"\",AD295/$C$295)","v":""},null,{"$f":"IF($C$295=\"\",\"\",AF295/$C$295)","v":""},null,{"$f":"IF($C$295=\"\",\"\",AH295/$C$295)","v":""},null,{"$f":"IF($C$295=\"\",\"\",AJ295/$C$295)","v":""},null,{"$f":"IF($C$295=\"\",\"\",AL295/$C$295)","v":""},null,{"$f":"IF($C$295=\"\",\"\",AN295/$C$295)","v":""},null,{"$f":"IF($C$295=\"\",\"\",AP295/$C$295)","v":""},null,{"$f":"IF($C$295=\"\",\"\",AR295/$C$295)","v":""},null,{"$f":"IF($C$295=\"\",\"\",AT295/$C$295)","v":""},null,{"$f":"IF($C$295=\"\",\"\",AV295/$C$295)","v":""},null,{"$f":"IF($C$295=\"\",\"\",AX295/$C$295)","v":""},null,{"$f":"IF($C$295=\"\",\"\",AZ295/$C$295)","v":""},null,{"$f":"IF($C$295=\"\",\"\",BB295/$C$295)","v":""},null,{"$f":"SUM(BB295,AZ295,AX295,AV295,AT295,AR295,AP295,AN295,AL295,AJ295,AH295,AF295,AD295,AB295,Z295,X295,V295,T295,R295,P295,N295,L295,J295,H295,F295)","v":0}]
["    11.2.2",null,null,null,{"$f":"IF($C$296=\"\",\"\",F296/$C$296)","v":""},null,{"$f":"IF($C$296=\"\",\"\",H296/$C$296)","v":""},null,{"$f":"IF($C$296=\"\",\"\",J296/$C$296)","v":""},null,{"$f":"IF($C$296=\"\",\"\",L296/$C$296)","v":""},null,{"$f":"IF($C$296=\"\",\"\",N296/$C$296)","v":""},null,{"$f":"IF($C$296=\"\",\"\",P296/$C$296)","v":""},null,{"$f":"IF($C$296=\"\",\"\",R296/$C$296)","v":""},null,{"$f":"IF($C$296=\"\",\"\",T296/$C$296)","v":""},null,{"$f":"IF($C$296=\"\",\"\",V296/$C$296)","v":""},null,{"$f":"IF($C$296=\"\",\"\",X296/$C$296)","v":""},null,{"$f":"IF($C$296=\"\",\"\",Z296/$C$296)","v":""},null,{"$f":"IF($C$296=\"\",\"\",AB296/$C$296)","v":""},null,{"$f":"IF($C$296=\"\",\"\",AD296/$C$296)","v":""},null,{"$f":"IF($C$296=\"\",\"\",AF296/$C$296)","v":""},null,{"$f":"IF($C$296=\"\",\"\",AH296/$C$296)","v":""},null,{"$f":"IF($C$296=\"\",\"\",AJ296/$C$296)","v":""},null,{"$f":"IF($C$296=\"\",\"\",AL296/$C$296)","v":""},null,{"$f":"IF($C$296=\"\",\"\",AN296/$C$296)","v":""},null,{"$f":"IF($C$296=\"\",\"\",AP296/$C$296)","v":""},null,{"$f":"IF($C$296=\"\",\"\",AR296/$C$296)","v":""},null,{"$f":"IF($C$296=\"\",\"\",AT296/$C$296)","v":""},null,{"$f":"IF($C$296=\"\",\"\",AV296/$C$296)","v":""},null,{"$f":"IF($C$296=\"\",\"\",AX296/$C$296)","v":""},null,{"$f":"IF($C$296=\"\",\"\",AZ296/$C$296)","v":""},null,{"$f":"IF($C$296=\"\",\"\",BB296/$C$296)","v":""},null,0]
["    11.2.3",null,null,null,{"$f":"IF($C$297=\"\",\"\",F297/$C$297)","v":""},null,{"$f":"IF($C$297=\"\",\"\",H297/$C$297)","v":""},null,{"$f":"IF($C$297=\"\",\"\",J297/$C$297)","v":""},null,{"$f":"IF($C$297=\"\",\"\",L297/$C$297)","v":""},null,{"$f":"IF($C$297=\"\",\"\",N297/$C$297)","v":""},null,{"$f":"IF($C$297=\"\",\"\",P297/$C$297)","v":""},null,{"$f":"IF($C$297=\"\",\"\",R297/$C$297)","v":""},null,{"$f":"IF($C$297=\"\",\"\",T297/$C$297)","v":""},null,{"$f":"IF($C$297=\"\",\"\",V297/$C$297)","v":""},null,{"$f":"IF($C$297=\"\",\"\",X297/$C$297)","v":""},null,{"$f":"IF($C$297=\"\",\"\",Z297/$C$297)","v":""},null,{"$f":"IF($C$297=\"\",\"\",AB297/$C$297)","v":""},null,{"$f":"IF($C$297=\"\",\"\",AD297/$C$297)","v":""},null,{"$f":"IF($C$297=\"\",\"\",AF297/$C$297)","v":""},null,{"$f":"IF($C$297=\"\",\"\",AH297/$C$297)","v":""},null,{"$f":"IF($C$297=\"\",\"\",AJ297/$C$297)","v":""},null,{"$f":"IF($C$297=\"\",\"\",AL297/$C$297)","v":""},null,{"$f":"IF($C$297=\"\",\"\",AN297/$C$297)","v":""},null,{"$f":"IF($C$297=\"\",\"\",AP297/$C$297)","v":""},null,{"$f":"IF($C$297=\"\",\"\",AR297/$C$297)","v":""},null,{"$f":"IF($C$297=\"\",\"\",AT297/$C$297)","v":""},null,{"$f":"IF($C$297=\"\",\"\",AV297/$C$297)","v":""},null,{"$f":"IF($C$297=\"\",\"\",AX297/$C$297)","v":""},null,{"$f":"IF($C$297=\"\",\"\",AZ297/$C$297)","v":""},null,{"$f":"IF($C$297=\"\",\"\",BB297/$C$297)","v":""},null,0]
["    11.2.4",null,null,null,{"$f":"IF($C$298=\"\",\"\",F298/$C$298)","v":""},null,{"$f":"IF($C$298=\"\",\"\",H298/$C$298)","v":""},null,{"$f":"IF($C$298=\"\",\"\",J298/$C$298)","v":""},null,{"$f":"IF($C$298=\"\",\"\",L298/$C$298)","v":""},null,{"$f":"IF($C$298=\"\",\"\",N298/$C$298)","v":""},null,{"$f":"IF($C$298=\"\",\"\",P298/$C$298)","v":""},null,{"$f":"IF($C$298=\"\",\"\",R298/$C$298)","v":""},null,{"$f":"IF($C$298=\"\",\"\",T298/$C$298)","v":""},null,{"$f":"IF($C$298=\"\",\"\",V298/$C$298)","v":""},null,{"$f":"IF($C$298=\"\",\"\",X298/$C$298)","v":""},null,{"$f":"IF($C$298=\"\",\"\",Z298/$C$298)","v":""},null,{"$f":"IF($C$298=\"\",\"\",AB298/$C$298)","v":""},null,{"$f":"IF($C$298=\"\",\"\",AD298/$C$298)","v":""},null,{"$f":"IF($C$298=\"\",\"\",AF298/$C$298)","v":""},null,{"$f":"IF($C$298=\"\",\"\",AH298/$C$298)","v":""},null,{"$f":"IF($C$298=\"\",\"\",AJ298/$C$298)","v":""},null,{"$f":"IF($C$298=\"\",\"\",AL298/$C$298)","v":""},null,{"$f":"IF($C$298=\"\",\"\",AN298/$C$298)","v":""},null,{"$f":"IF($C$298=\"\",\"\",AP298/$C$298)","v":""},null,{"$f":"IF($C$298=\"\",\"\",AR298/$C$298)","v":""},null,{"$f":"IF($C$298=\"\",\"\",AT298/$C$298)","v":""},null,{"$f":"IF($C$298=\"\",\"\",AV298/$C$298)","v":""},null,{"$f":"IF($C$298=\"\",\"\",AX298/$C$298)","v":""},null,{"$f":"IF($C$298=\"\",\"\",AZ298/$C$298)","v":""},null,{"$f":"IF($C$298=\"\",\"\",BB298/$C$298)","v":""},null,0]
[11.3,"Final Plans"]
["    11.3.1","    Field Check Final Plans",null,null,{"$f":"IF($C$300=\"\",\"\",F300/$C$300)","v":""},null,{"$f":"IF($C$300=\"\",\"\",H300/$C$300)","v":""},null,{"$f":"IF($C$300=\"\",\"\",J300/$C$300)","v":""},null,{"$f":"IF($C$300=\"\",\"\",L300/$C$300)","v":""},null,{"$f":"IF($C$300=\"\",\"\",N300/$C$300)","v":""},null,{"$f":"IF($C$300=\"\",\"\",P300/$C$300)","v":""},null,{"$f":"IF($C$300=\"\",\"\",R300/$C$300)","v":""},null,{"$f":"IF($C$300=\"\",\"\",T300/$C$300)","v":""},null,{"$f":"IF($C$300=\"\",\"\",V300/$C$300)","v":""},null,{"$f":"IF($C$300=\"\",\"\",X300/$C$300)","v":""},null,{"$f":"IF($C$300=\"\",\"\",Z300/$C$300)","v":""},null,{"$f":"IF($C$300=\"\",\"\",AB300/$C$300)","v":""},null,{"$f":"IF($C$300=\"\",\"\",AD300/$C$300)","v":""},null,{"$f":"IF($C$300=\"\",\"\",AF300/$C$300)","v":""},null,{"$f":"IF($C$300=\"\",\"\",AH300/$C$300)","v":""},null,{"$f":"IF($C$300=\"\",\"\",AJ300/$C$300)","v":""},null,{"$f":"IF($C$300=\"\",\"\",AL300/$C$300)","v":""},null,{"$f":"IF($C$300=\"\",\"\",AN300/$C$300)","v":""},null,{"$f":"IF($C$300=\"\",\"\",AP300/$C$300)","v":""},null,{"$f":"IF($C$300=\"\",\"\",AR300/$C$300)","v":""},null,{"$f":"IF($C$300=\"\",\"\",AT300/$C$300)","v":""},null,{"$f":"IF($C$300=\"\",\"\",AV300/$C$300)","v":""},null,{"$f":"IF($C$300=\"\",\"\",AX300/$C$300)","v":""},null,{"$f":"IF($C$300=\"\",\"\",AZ300/$C$300)","v":""},null,{"$f":"IF($C$300=\"\",\"\",BB300/$C$300)","v":""},null,{"$f":"SUM(BB300,AZ300,AX300,AV300,AT300,AR300,AP300,AN300,AL300,AJ300,AH300,AF300,AD300,AB300,Z300,X300,V300,T300,R300,P300,N300,L300,J300,H300,F300)","v":0}]
["    11.3.2","    Perform Final Revisions and Submit Final Plans",null,null,{"$f":"IF($C$301=\"\",\"\",F301/$C$301)","v":""},null,{"$f":"IF($C$301=\"\",\"\",H301/$C$301)","v":""},null,{"$f":"IF($C$301=\"\",\"\",J301/$C$301)","v":""},null,{"$f":"IF($C$301=\"\",\"\",L301/$C$301)","v":""},null,{"$f":"IF($C$301=\"\",\"\",N301/$C$301)","v":""},null,{"$f":"IF($C$301=\"\",\"\",P301/$C$301)","v":""},null,{"$f":"IF($C$301=\"\",\"\",R301/$C$301)","v":""},null,{"$f":"IF($C$301=\"\",\"\",T301/$C$301)","v":""},null,{"$f":"IF($C$301=\"\",\"\",V301/$C$301)","v":""},null,{"$f":"IF($C$301=\"\",\"\",X301/$C$301)","v":""},null,{"$f":"IF($C$301=\"\",\"\",Z301/$C$301)","v":""},null,{"$f":"IF($C$301=\"\",\"\",AB301/$C$301)","v":""},null,{"$f":"IF($C$301=\"\",\"\",AD301/$C$301)","v":""},null,{"$f":"IF($C$301=\"\",\"\",AF301/$C$301)","v":""},null,{"$f":"IF($C$301=\"\",\"\",AH301/$C$301)","v":""},null,{"$f":"IF($C$301=\"\",\"\",AJ301/$C$301)","v":""},null,{"$f":"IF($C$301=\"\",\"\",AL301/$C$301)","v":""},null,{"$f":"IF($C$301=\"\",\"\",AN301/$C$301)","v":""},null,{"$f":"IF($C$301=\"\",\"\",AP301/$C$301)","v":""},null,{"$f":"IF($C$301=\"\",\"\",AR301/$C$301)","v":""},null,{"$f":"IF($C$301=\"\",\"\",AT301/$C$301)","v":""},null,{"$f":"IF($C$301=\"\",\"\",AV301/$C$301)","v":""},null,{"$f":"IF($C$301=\"\",\"\",AX301/$C$301)","v":""},null,{"$f":"IF($C$301=\"\",\"\",AZ301/$C$301)","v":""},null,{"$f":"IF($C$301=\"\",\"\",BB301/$C$301)","v":""},null,0]
["    11.3.3",null,null,null,{"$f":"IF($C$302=\"\",\"\",F302/$C$302)","v":""},null,{"$f":"IF($C$302=\"\",\"\",H302/$C$302)","v":""},null,{"$f":"IF($C$302=\"\",\"\",J302/$C$302)","v":""},null,{"$f":"IF($C$302=\"\",\"\",L302/$C$302)","v":""},null,{"$f":"IF($C$302=\"\",\"\",N302/$C$302)","v":""},null,{"$f":"IF($C$302=\"\",\"\",P302/$C$302)","v":""},null,{"$f":"IF($C$302=\"\",\"\",R302/$C$302)","v":""},null,{"$f":"IF($C$302=\"\",\"\",T302/$C$302)","v":""},null,{"$f":"IF($C$302=\"\",\"\",V302/$C$302)","v":""},null,{"$f":"IF($C$302=\"\",\"\",X302/$C$302)","v":""},null,{"$f":"IF($C$302=\"\",\"\",Z302/$C$302)","v":""},null,{"$f":"IF($C$302=\"\",\"\",AB302/$C$302)","v":""},null,{"$f":"IF($C$302=\"\",\"\",AD302/$C$302)","v":""},null,{"$f":"IF($C$302=\"\",\"\",AF302/$C$302)","v":""},null,{"$f":"IF($C$302=\"\",\"\",AH302/$C$302)","v":""},null,{"$f":"IF($C$302=\"\",\"\",AJ302/$C$302)","v":""},null,{"$f":"IF($C$302=\"\",\"\",AL302/$C$302)","v":""},null,{"$f":"IF($C$302=\"\",\"\",AN302/$C$302)","v":""},null,{"$f":"IF($C$302=\"\",\"\",AP302/$C$302)","v":""},null,{"$f":"IF($C$302=\"\",\"\",AR302/$C$302)","v":""},null,{"$f":"IF($C$302=\"\",\"\",AT302/$C$302)","v":""},null,{"$f":"IF($C$302=\"\",\"\",AV302/$C$302)","v":""},null,{"$f":"IF($C$302=\"\",\"\",AX302/$C$302)","v":""},null,{"$f":"IF($C$302=\"\",\"\",AZ302/$C$302)","v":""},null,{"$f":"IF($C$302=\"\",\"\",BB302/$C$302)","v":""},null,0]
["    11.3.4",null,null,null,{"$f":"IF($C$303=\"\",\"\",F303/$C$303)","v":""},null,{"$f":"IF($C$303=\"\",\"\",H303/$C$303)","v":""},null,{"$f":"IF($C$303=\"\",\"\",J303/$C$303)","v":""},null,{"$f":"IF($C$303=\"\",\"\",L303/$C$303)","v":""},null,{"$f":"IF($C$303=\"\",\"\",N303/$C$303)","v":""},null,{"$f":"IF($C$303=\"\",\"\",P303/$C$303)","v":""},null,{"$f":"IF($C$303=\"\",\"\",R303/$C$303)","v":""},null,{"$f":"IF($C$303=\"\",\"\",T303/$C$303)","v":""},null,{"$f":"IF($C$303=\"\",\"\",V303/$C$303)","v":""},null,{"$f":"IF($C$303=\"\",\"\",X303/$C$303)","v":""},null,{"$f":"IF($C$303=\"\",\"\",Z303/$C$303)","v":""},null,{"$f":"IF($C$303=\"\",\"\",AB303/$C$303)","v":""},null,{"$f":"IF($C$303=\"\",\"\",AD303/$C$303)","v":""},null,{"$f":"IF($C$303=\"\",\"\",AF303/$C$303)","v":""},null,{"$f":"IF($C$303=\"\",\"\",AH303/$C$303)","v":""},null,{"$f":"IF($C$303=\"\",\"\",AJ303/$C$303)","v":""},null,{"$f":"IF($C$303=\"\",\"\",AL303/$C$303)","v":""},null,{"$f":"IF($C$303=\"\",\"\",AN303/$C$303)","v":""},null,{"$f":"IF($C$303=\"\",\"\",AP303/$C$303)","v":""},null,{"$f":"IF($C$303=\"\",\"\",AR303/$C$303)","v":""},null,{"$f":"IF($C$303=\"\",\"\",AT303/$C$303)","v":""},null,{"$f":"IF($C$303=\"\",\"\",AV303/$C$303)","v":""},null,{"$f":"IF($C$303=\"\",\"\",AX303/$C$303)","v":""},null,{"$f":"IF($C$303=\"\",\"\",AZ303/$C$303)","v":""},null,{"$f":"IF($C$303=\"\",\"\",BB303/$C$303)","v":""},null,0]
["    11.3.5",null,null,null,{"$f":"IF($C$304=\"\",\"\",F304/$C$304)","v":""},null,{"$f":"IF($C$304=\"\",\"\",H304/$C$304)","v":""},null,{"$f":"IF($C$304=\"\",\"\",J304/$C$304)","v":""},null,{"$f":"IF($C$304=\"\",\"\",L304/$C$304)","v":""},null,{"$f":"IF($C$304=\"\",\"\",N304/$C$304)","v":""},null,{"$f":"IF($C$304=\"\",\"\",P304/$C$304)","v":""},null,{"$f":"IF($C$304=\"\",\"\",R304/$C$304)","v":""},null,{"$f":"IF($C$304=\"\",\"\",T304/$C$304)","v":""},null,{"$f":"IF($C$304=\"\",\"\",V304/$C$304)","v":""},null,{"$f":"IF($C$304=\"\",\"\",X304/$C$304)","v":""},null,{"$f":"IF($C$304=\"\",\"\",Z304/$C$304)","v":""},null,{"$f":"IF($C$304=\"\",\"\",AB304/$C$304)","v":""},null,{"$f":"IF($C$304=\"\",\"\",AD304/$C$304)","v":""},null,{"$f":"IF($C$304=\"\",\"\",AF304/$C$304)","v":""},null,{"$f":"IF($C$304=\"\",\"\",AH304/$C$304)","v":""},null,{"$f":"IF($C$304=\"\",\"\",AJ304/$C$304)","v":""},null,{"$f":"IF($C$304=\"\",\"\",AL304/$C$304)","v":""},null,{"$f":"IF($C$304=\"\",\"\",AN304/$C$304)","v":""},null,{"$f":"IF($C$304=\"\",\"\",AP304/$C$304)","v":""},null,{"$f":"IF($C$304=\"\",\"\",AR304/$C$304)","v":""},null,{"$f":"IF($C$304=\"\",\"\",AT304/$C$304)","v":""},null,{"$f":"IF($C$304=\"\",\"\",AV304/$C$304)","v":""},null,{"$f":"IF($C$304=\"\",\"\",AX304/$C$304)","v":""},null,{"$f":"IF($C$304=\"\",\"\",AZ304/$C$304)","v":""},null,{"$f":"IF($C$304=\"\",\"\",BB304/$C$304)","v":""},null,0]
[11.4,"Quality Reviews",null,null,{"$f":"IF($C$305=\"\",\"\",F305/$C$305)","v":""},null,{"$f":"IF($C$305=\"\",\"\",H305/$C$305)","v":""},null,{"$f":"IF($C$305=\"\",\"\",J305/$C$305)","v":""},null,{"$f":"IF($C$305=\"\",\"\",L305/$C$305)","v":""},null,{"$f":"IF($C$305=\"\",\"\",N305/$C$305)","v":""},null,{"$f":"IF($C$305=\"\",\"\",P305/$C$305)","v":""},null,{"$f":"IF($C$305=\"\",\"\",R305/$C$305)","v":""},null,{"$f":"IF($C$305=\"\",\"\",T305/$C$305)","v":""},null,{"$f":"IF($C$305=\"\",\"\",V305/$C$305)","v":""},null,{"$f":"IF($C$305=\"\",\"\",X305/$C$305)","v":""},null,{"$f":"IF($C$305=\"\",\"\",Z305/$C$305)","v":""},null,{"$f":"IF($C$305=\"\",\"\",AB305/$C$305)","v":""},null,{"$f":"IF($C$305=\"\",\"\",AD305/$C$305)","v":""},null,{"$f":"IF($C$305=\"\",\"\",AF305/$C$305)","v":""},null,{"$f":"IF($C$305=\"\",\"\",AH305/$C$305)","v":""},null,{"$f":"IF($C$305=\"\",\"\",AJ305/$C$305)","v":""},null,{"$f":"IF($C$305=\"\",\"\",AL305/$C$305)","v":""},null,{"$f":"IF($C$305=\"\",\"\",AN305/$C$305)","v":""},null,{"$f":"IF($C$305=\"\",\"\",AP305/$C$305)","v":""},null,{"$f":"IF($C$305=\"\",\"\",AR305/$C$305)","v":""},null,{"$f":"IF($C$305=\"\",\"\",AT305/$C$305)","v":""},null,{"$f":"IF($C$305=\"\",\"\",AV305/$C$305)","v":""},null,{"$f":"IF($C$305=\"\",\"\",AX305/$C$305)","v":""},null,{"$f":"IF($C$305=\"\",\"\",AZ305/$C$305)","v":""},null,{"$f":"IF($C$305=\"\",\"\",BB305/$C$305)","v":""},null,0]
[null,null,null,null,{"$f":"IF($C$306=\"\",\"\",F306/$C$306)","v":""},null,{"$f":"IF($C$306=\"\",\"\",H306/$C$306)","v":""},null,{"$f":"IF($C$306=\"\",\"\",J306/$C$306)","v":""},null,{"$f":"IF($C$306=\"\",\"\",L306/$C$306)","v":""},null,{"$f":"IF($C$306=\"\",\"\",N306/$C$306)","v":""},null,{"$f":"IF($C$306=\"\",\"\",P306/$C$306)","v":""},null,{"$f":"IF($C$306=\"\",\"\",R306/$C$306)","v":""},null,{"$f":"IF($C$306=\"\",\"\",T306/$C$306)","v":""},null,{"$f":"IF($C$306=\"\",\"\",V306/$C$306)","v":""},null,{"$f":"IF($C$306=\"\",\"\",X306/$C$306)","v":""},null,{"$f":"IF($C$306=\"\",\"\",Z306/$C$306)","v":""},null,{"$f":"IF($C$306=\"\",\"\",AB306/$C$306)","v":""},null,{"$f":"IF($C$306=\"\",\"\",AD306/$C$306)","v":""},null,{"$f":"IF($C$306=\"\",\"\",AF306/$C$306)","v":""},null,{"$f":"IF($C$306=\"\",\"\",AH306/$C$306)","v":""},null,{"$f":"IF($C$306=\"\",\"\",AJ306/$C$306)","v":""},null,{"$f":"IF($C$306=\"\",\"\",AL306/$C$306)","v":""},null,{"$f":"IF($C$306=\"\",\"\",AN306/$C$306)","v":""},null,{"$f":"IF($C$306=\"\",\"\",AP306/$C$306)","v":""},null,{"$f":"IF($C$306=\"\",\"\",AR306/$C$306)","v":""},null,{"$f":"IF($C$306=\"\",\"\",AT306/$C$306)","v":""},null,{"$f":"IF($C$306=\"\",\"\",AV306/$C$306)","v":""},null,{"$f":"IF($C$306=\"\",\"\",AX306/$C$306)","v":""},null,{"$f":"IF($C$306=\"\",\"\",AZ306/$C$306)","v":""},null,{"$f":"IF($C$306=\"\",\"\",BB306/$C$306)","v":""},null,0]
[null,null,null,null,{"$f":"IF($C$307=\"\",\"\",F307/$C$307)","v":""},null,{"$f":"IF($C$307=\"\",\"\",H307/$C$307)","v":""},null,{"$f":"IF($C$307=\"\",\"\",J307/$C$307)","v":""},null,{"$f":"IF($C$307=\"\",\"\",L307/$C$307)","v":""},null,{"$f":"IF($C$307=\"\",\"\",N307/$C$307)","v":""},null,{"$f":"IF($C$307=\"\",\"\",P307/$C$307)","v":""},null,{"$f":"IF($C$307=\"\",\"\",R307/$C$307)","v":""},null,{"$f":"IF($C$307=\"\",\"\",T307/$C$307)","v":""},null,{"$f":"IF($C$307=\"\",\"\",V307/$C$307)","v":""},null,{"$f":"IF($C$307=\"\",\"\",X307/$C$307)","v":""},null,{"$f":"IF($C$307=\"\",\"\",Z307/$C$307)","v":""},null,{"$f":"IF($C$307=\"\",\"\",AB307/$C$307)","v":""},null,{"$f":"IF($C$307=\"\",\"\",AD307/$C$307)","v":""},null,{"$f":"IF($C$307=\"\",\"\",AF307/$C$307)","v":""},null,{"$f":"IF($C$307=\"\",\"\",AH307/$C$307)","v":""},null,{"$f":"IF($C$307=\"\",\"\",AJ307/$C$307)","v":""},null,{"$f":"IF($C$307=\"\",\"\",AL307/$C$307)","v":""},null,{"$f":"IF($C$307=\"\",\"\",AN307/$C$307)","v":""},null,{"$f":"IF($C$307=\"\",\"\",AP307/$C$307)","v":""},null,{"$f":"IF($C$307=\"\",\"\",AR307/$C$307)","v":""},null,{"$f":"IF($C$307=\"\",\"\",AT307/$C$307)","v":""},null,{"$f":"IF($C$307=\"\",\"\",AV307/$C$307)","v":""},null,{"$f":"IF($C$307=\"\",\"\",AX307/$C$307)","v":""},null,{"$f":"IF($C$307=\"\",\"\",AZ307/$C$307)","v":""},null,{"$f":"IF($C$307=\"\",\"\",BB307/$C$307)","v":""},null,0]
[null,null,null,null,{"$f":"IF($C$308=\"\",\"\",F308/$C$308)","v":""},null,{"$f":"IF($C$308=\"\",\"\",H308/$C$308)","v":""},null,{"$f":"IF($C$308=\"\",\"\",J308/$C$308)","v":""},null,{"$f":"IF($C$308=\"\",\"\",L308/$C$308)","v":""},null,{"$f":"IF($C$308=\"\",\"\",N308/$C$308)","v":""},null,{"$f":"IF($C$308=\"\",\"\",P308/$C$308)","v":""},null,{"$f":"IF($C$308=\"\",\"\",R308/$C$308)","v":""},null,{"$f":"IF($C$308=\"\",\"\",T308/$C$308)","v":""},null,{"$f":"IF($C$308=\"\",\"\",V308/$C$308)","v":""},null,{"$f":"IF($C$308=\"\",\"\",X308/$C$308)","v":""},null,{"$f":"IF($C$308=\"\",\"\",Z308/$C$308)","v":""},null,{"$f":"IF($C$308=\"\",\"\",AB308/$C$308)","v":""},null,{"$f":"IF($C$308=\"\",\"\",AD308/$C$308)","v":""},null,{"$f":"IF($C$308=\"\",\"\",AF308/$C$308)","v":""},null,{"$f":"IF($C$308=\"\",\"\",AH308/$C$308)","v":""},null,{"$f":"IF($C$308=\"\",\"\",AJ308/$C$308)","v":""},null,{"$f":"IF($C$308=\"\",\"\",AL308/$C$308)","v":""},null,{"$f":"IF($C$308=\"\",\"\",AN308/$C$308)","v":""},null,{"$f":"IF($C$308=\"\",\"\",AP308/$C$308)","v":""},null,{"$f":"IF($C$308=\"\",\"\",AR308/$C$308)","v":""},null,{"$f":"IF($C$308=\"\",\"\",AT308/$C$308)","v":""},null,{"$f":"IF($C$308=\"\",\"\",AV308/$C$308)","v":""},null,{"$f":"IF($C$308=\"\",\"\",AX308/$C$308)","v":""},null,{"$f":"IF($C$308=\"\",\"\",AZ308/$C$308)","v":""},null,{"$f":"IF($C$308=\"\",\"\",BB308/$C$308)","v":""},null,0]
[null,null,null,null,{"$f":"IF($C$309=\"\",\"\",F309/$C$309)","v":""},null,{"$f":"IF($C$309=\"\",\"\",H309/$C$309)","v":""},null,{"$f":"IF($C$309=\"\",\"\",J309/$C$309)","v":""},null,{"$f":"IF($C$309=\"\",\"\",L309/$C$309)","v":""},null,{"$f":"IF($C$309=\"\",\"\",N309/$C$309)","v":""},null,{"$f":"IF($C$309=\"\",\"\",P309/$C$309)","v":""},null,{"$f":"IF($C$309=\"\",\"\",R309/$C$309)","v":""},null,{"$f":"IF($C$309=\"\",\"\",T309/$C$309)","v":""},null,{"$f":"IF($C$309=\"\",\"\",V309/$C$309)","v":""},null,{"$f":"IF($C$309=\"\",\"\",X309/$C$309)","v":""},null,{"$f":"IF($C$309=\"\",\"\",Z309/$C$309)","v":""},null,{"$f":"IF($C$309=\"\",\"\",AB309/$C$309)","v":""},null,{"$f":"IF($C$309=\"\",\"\",AD309/$C$309)","v":""},null,{"$f":"IF($C$309=\"\",\"\",AF309/$C$309)","v":""},null,{"$f":"IF($C$309=\"\",\"\",AH309/$C$309)","v":""},null,{"$f":"IF($C$309=\"\",\"\",AJ309/$C$309)","v":""},null,{"$f":"IF($C$309=\"\",\"\",AL309/$C$309)","v":""},null,{"$f":"IF($C$309=\"\",\"\",AN309/$C$309)","v":""},null,{"$f":"IF($C$309=\"\",\"\",AP309/$C$309)","v":""},null,{"$f":"IF($C$309=\"\",\"\",AR309/$C$309)","v":""},null,{"$f":"IF($C$309=\"\",\"\",AT309/$C$309)","v":""},null,{"$f":"IF($C$309=\"\",\"\",AV309/$C$309)","v":""},null,{"$f":"IF($C$309=\"\",\"\",AX309/$C$309)","v":""},null,{"$f":"IF($C$309=\"\",\"\",AZ309/$C$309)","v":""},null,{"$f":"IF($C$309=\"\",\"\",BB309/$C$309)","v":""},null,0]
[null,null,null,null,{"$f":"IF($C$310=\"\",\"\",F310/$C$310)","v":""},null,{"$f":"IF($C$310=\"\",\"\",H310/$C$310)","v":""},null,{"$f":"IF($C$310=\"\",\"\",J310/$C$310)","v":""},null,{"$f":"IF($C$310=\"\",\"\",L310/$C$310)","v":""},null,{"$f":"IF($C$310=\"\",\"\",N310/$C$310)","v":""},null,{"$f":"IF($C$310=\"\",\"\",P310/$C$310)","v":""},null,{"$f":"IF($C$310=\"\",\"\",R310/$C$310)","v":""},null,{"$f":"IF($C$310=\"\",\"\",T310/$C$310)","v":""},null,{"$f":"IF($C$310=\"\",\"\",V310/$C$310)","v":""},null,{"$f":"IF($C$310=\"\",\"\",X310/$C$310)","v":""},null,{"$f":"IF($C$310=\"\",\"\",Z310/$C$310)","v":""},null,{"$f":"IF($C$310=\"\",\"\",AB310/$C$310)","v":""},null,{"$f":"IF($C$310=\"\",\"\",AD310/$C$310)","v":""},null,{"$f":"IF($C$310=\"\",\"\",AF310/$C$310)","v":""},null,{"$f":"IF($C$310=\"\",\"\",AH310/$C$310)","v":""},null,{"$f":"IF($C$310=\"\",\"\",AJ310/$C$310)","v":""},null,{"$f":"IF($C$310=\"\",\"\",AL310/$C$310)","v":""},null,{"$f":"IF($C$310=\"\",\"\",AN310/$C$310)","v":""},null,{"$f":"IF($C$310=\"\",\"\",AP310/$C$310)","v":""},null,{"$f":"IF($C$310=\"\",\"\",AR310/$C$310)","v":""},null,{"$f":"IF($C$310=\"\",\"\",AT310/$C$310)","v":""},null,{"$f":"IF($C$310=\"\",\"\",AV310/$C$310)","v":""},null,{"$f":"IF($C$310=\"\",\"\",AX310/$C$310)","v":""},null,{"$f":"IF($C$310=\"\",\"\",AZ310/$C$310)","v":""},null,{"$f":"IF($C$310=\"\",\"\",BB310/$C$310)","v":""},null,0]
[null,null,null,null,{"$f":"IF($C$311=\"\",\"\",F311/$C$311)","v":""},null,{"$f":"IF($C$311=\"\",\"\",H311/$C$311)","v":""},null,{"$f":"IF($C$311=\"\",\"\",J311/$C$311)","v":""},null,{"$f":"IF($C$311=\"\",\"\",L311/$C$311)","v":""},null,{"$f":"IF($C$311=\"\",\"\",N311/$C$311)","v":""},null,{"$f":"IF($C$311=\"\",\"\",P311/$C$311)","v":""},null,{"$f":"IF($C$311=\"\",\"\",R311/$C$311)","v":""},null,{"$f":"IF($C$311=\"\",\"\",T311/$C$311)","v":""},null,{"$f":"IF($C$311=\"\",\"\",V311/$C$311)","v":""},null,{"$f":"IF($C$311=\"\",\"\",X311/$C$311)","v":""},null,{"$f":"IF($C$311=\"\",\"\",Z311/$C$311)","v":""},null,{"$f":"IF($C$311=\"\",\"\",AB311/$C$311)","v":""},null,{"$f":"IF($C$311=\"\",\"\",AD311/$C$311)","v":""},null,{"$f":"IF($C$311=\"\",\"\",AF311/$C$311)","v":""},null,{"$f":"IF($C$311=\"\",\"\",AH311/$C$311)","v":""},null,{"$f":"IF($C$311=\"\",\"\",AJ311/$C$311)","v":""},null,{"$f":"IF($C$311=\"\",\"\",AL311/$C$311)","v":""},null,{"$f":"IF($C$311=\"\",\"\",AN311/$C$311)","v":""},null,{"$f":"IF($C$311=\"\",\"\",AP311/$C$311)","v":""},null,{"$f":"IF($C$311=\"\",\"\",AR311/$C$311)","v":""},null,{"$f":"IF($C$311=\"\",\"\",AT311/$C$311)","v":""},null,{"$f":"IF($C$311=\"\",\"\",AV311/$C$311)","v":""},null,{"$f":"IF($C$311=\"\",\"\",AX311/$C$311)","v":""},null,{"$f":"IF($C$311=\"\",\"\",AZ311/$C$311)","v":""},null,{"$f":"IF($C$311=\"\",\"\",BB311/$C$311)","v":""},null,0]
[null,null,null,null,{"$f":"IF($C$312=\"\",\"\",F312/$C$312)","v":""},null,{"$f":"IF($C$312=\"\",\"\",H312/$C$312)","v":""},null,{"$f":"IF($C$312=\"\",\"\",J312/$C$312)","v":""},null,{"$f":"IF($C$312=\"\",\"\",L312/$C$312)","v":""},null,{"$f":"IF($C$312=\"\",\"\",N312/$C$312)","v":""},null,{"$f":"IF($C$312=\"\",\"\",P312/$C$312)","v":""},null,{"$f":"IF($C$312=\"\",\"\",R312/$C$312)","v":""},null,{"$f":"IF($C$312=\"\",\"\",T312/$C$312)","v":""},null,{"$f":"IF($C$312=\"\",\"\",V312/$C$312)","v":""},null,{"$f":"IF($C$312=\"\",\"\",X312/$C$312)","v":""},null,{"$f":"IF($C$312=\"\",\"\",Z312/$C$312)","v":""},null,{"$f":"IF($C$312=\"\",\"\",AB312/$C$312)","v":""},null,{"$f":"IF($C$312=\"\",\"\",AD312/$C$312)","v":""},null,{"$f":"IF($C$312=\"\",\"\",AF312/$C$312)","v":""},null,{"$f":"IF($C$312=\"\",\"\",AH312/$C$312)","v":""},null,{"$f":"IF($C$312=\"\",\"\",AJ312/$C$312)","v":""},null,{"$f":"IF($C$312=\"\",\"\",AL312/$C$312)","v":""},null,{"$f":"IF($C$312=\"\",\"\",AN312/$C$312)","v":""},null,{"$f":"IF($C$312=\"\",\"\",AP312/$C$312)","v":""},null,{"$f":"IF($C$312=\"\",\"\",AR312/$C$312)","v":""},null,{"$f":"IF($C$312=\"\",\"\",AT312/$C$312)","v":""},null,{"$f":"IF($C$312=\"\",\"\",AV312/$C$312)","v":""},null,{"$f":"IF($C$312=\"\",\"\",AX312/$C$312)","v":""},null,{"$f":"IF($C$312=\"\",\"\",AZ312/$C$312)","v":""},null,{"$f":"IF($C$312=\"\",\"\",BB312/$C$312)","v":""},null,{"$f":"SUM(BB312,AZ312,AX312,AV312,AT312,AR312,AP312,AN312,AL312,AJ312,AH312,AF312,AD312,AB312,Z312,X312,V312,T312,R312,P312,N312,L312,J312,H312,F312)","v":0}]
["TOTAL HOURS",null,null,null,null,{"$f":"SUM(F254:F312)","v":0},null,{"$f":"SUM(H254:H312)","v":0},null,{"$f":"SUM(J254:J312)","v":0},null,{"$f":"SUM(L254:L312)","v":0},null,{"$f":"SUM(N254:N312)","v":0},null,{"$f":"SUM(P254:P312)","v":0},null,{"$f":"SUM(R254:R312)","v":0},null,{"$f":"SUM(T254:T312)","v":0},null,{"$f":"SUM(V254:V312)","v":0},null,{"$f":"SUM(X254:X312)","v":0},null,{"$f":"SUM(Z254:Z312)","v":0},null,{"$f":"SUM(AB254:AB312)","v":0},null,{"$f":"SUM(AD254:AD312)","v":0},null,{"$f":"SUM(AF254:AF312)","v":0},null,{"$f":"SUM(AH254:AH312)","v":0},null,{"$f":"SUM(AJ254:AJ312)","v":0},null,{"$f":"SUM(AL254:AL312)","v":0},null,{"$f":"SUM(AN254:AN312)","v":0},null,{"$f":"SUM(AP254:AP312)","v":0},null,{"$f":"SUM(AR254:AR312)","v":0},null,{"$f":"SUM(AT254:AT312)","v":0},null,{"$f":"SUM(AV254:AV312)","v":0},null,{"$f":"SUM(AX254:AX312)","v":0},null,{"$f":"SUM(AZ254:AZ312)","v":0},null,{"$f":"SUM(BB254:BB312)","v":0},{"$f":"SUM(E313:BB313)","v":0}]
["TOTAL WORKDAYS",null,null,null,null,{"$f":"F313/8","v":0},null,{"$f":"H313/8","v":0},null,{"$f":"J313/8","v":0},null,{"$f":"L313/8","v":0},null,{"$f":"N313/8","v":0},null,{"$f":"P313/8","v":0},null,{"$f":"R313/8","v":0},null,{"$f":"T313/8","v":0},null,{"$f":"V313/8","v":0},null,{"$f":"X313/8","v":0},null,{"$f":"Z313/8","v":0},null,{"$f":"AB313/8","v":0},null,{"$f":"AD313/8","v":0},null,0,null,{"$f":"AH313/8","v":0},null,0,null,{"$f":"AL313/8","v":0},null,0,null,{"$f":"AP313/8","v":0},null,0,null,{"$f":"AT313/8","v":0},null,{"$f":"AV313/8","v":0},null,{"$f":"AX313/8","v":0},null,{"$f":"AZ313/8","v":0},null,{"$f":"BB313/8","v":0},{"$f":"SUM(E314:BB314)","v":0}]
["TOTAL RAW LABOR",null,null,null,null,{"$f":"$E$13*F313","v":0},null,{"$f":"$G$13*H313","v":0},null,{"$f":"$I$13*J313","v":0},null,{"$f":"$K$13*L313","v":0},null,{"$f":"$M$13*N313","v":0},null,{"$f":"$O$13*P313","v":0},null,{"$f":"$Q$13*R313","v":0},null,{"$f":"$S$13*T313","v":0},null,{"$f":"$U$13*V313","v":0},null,{"$f":"$W$13*X313","v":0},null,{"$f":"$Y$13*Z313","v":0},null,{"$f":"$AA$13*AB313","v":0},null,{"$f":"$AC$13*AD313","v":0},null,{"$f":"$AC$13*AF313","v":0},null,{"$f":"$AC$13*AH313","v":0},null,{"$f":"$AC$13*AJ313","v":0},null,{"$f":"$AC$13*AL313","v":0},null,{"$f":"$AC$13*AN313","v":0},null,{"$f":"$AC$13*AP313","v":0},null,{"$f":"$AC$13*AR313","v":0},null,{"$f":"$AC$13*AT313","v":0},null,{"$f":"$AC$13*AV313","v":0},null,{"$f":"$AC$13*AX313","v":0},null,{"$f":"$AC$13*AZ313","v":0},null,{"$f":"$AC$13*BB313","v":0},{"$f":"SUM(E315:BB315)","v":0}]
["Task 12.0     ","PROJECT SPECIAL PROVISIONS"]
[12.1,"Preliminary Project Special Provisions"]
["    12.1.1","    General Requirements:\n          -  Summary of Work\n          -  Construction Staging/Migration\n          -  Work within Historic Districts\n          -  Railroad Requirements\n          -  Documentation",null,null,{"$f":"IF($C$318=\"\",\"\",F318/$C$318)","v":""},null,{"$f":"IF($C$318=\"\",\"\",H318/$C$318)","v":""},null,{"$f":"IF($C$318=\"\",\"\",J318/$C$318)","v":""},null,{"$f":"IF($C$318=\"\",\"\",L318/$C$318)","v":""},null,{"$f":"IF($C$318=\"\",\"\",N318/$C$318)","v":""},null,{"$f":"IF($C$318=\"\",\"\",P318/$C$318)","v":""},null,{"$f":"IF($C$318=\"\",\"\",R318/$C$318)","v":""},null,{"$f":"IF($C$318=\"\",\"\",T318/$C$318)","v":""},null,{"$f":"IF($C$318=\"\",\"\",V318/$C$318)","v":""},null,{"$f":"IF($C$318=\"\",\"\",X318/$C$318)","v":""},null,{"$f":"IF($C$318=\"\",\"\",Z318/$C$318)","v":""},null,{"$f":"IF($C$318=\"\",\"\",AB318/$C$318)","v":""},null,{"$f":"IF($C$318=\"\",\"\",AD318/$C$318)","v":""},null,{"$f":"IF($C$318=\"\",\"\",AF318/$C$318)","v":""},null,{"$f":"IF($C$318=\"\",\"\",AH318/$C$318)","v":""},null,{"$f":"IF($C$318=\"\",\"\",AJ318/$C$318)","v":""},null,{"$f":"IF($C$318=\"\",\"\",AL318/$C$318)","v":""},null,{"$f":"IF($C$318=\"\",\"\",AN318/$C$318)","v":""},null,{"$f":"IF($C$318=\"\",\"\",AP318/$C$318)","v":""},null,{"$f":"IF($C$318=\"\",\"\",AR318/$C$318)","v":""},null,{"$f":"IF($C$318=\"\",\"\",AT318/$C$318)","v":""},null,{"$f":"IF($C$318=\"\",\"\",AV318/$C$318)","v":""},null,{"$f":"IF($C$318=\"\",\"\",AX318/$C$318)","v":""},null,{"$f":"IF($C$318=\"\",\"\",AZ318/$C$318)","v":""},null,{"$f":"IF($C$318=\"\",\"\",BB318/$C$318)","v":""},null,{"$f":"SUM(BB318,AZ318,AX318,AV318,AT318,AR318,AP318,AN318,AL318,AJ318,AH318,AF318,AD318,AB318,Z318,X318,V318,T318,R318,P318,N318,L318,J318,H318,F318)","v":0}]
["    12.1.2","    Temporary Traffic Control (Maintenance of \n    Traffic)",null,null,{"$f":"IF($C$319=\"\",\"\",F319/$C$319)","v":""},null,{"$f":"IF($C$319=\"\",\"\",H319/$C$319)","v":""},null,{"$f":"IF($C$319=\"\",\"\",J319/$C$319)","v":""},null,{"$f":"IF($C$319=\"\",\"\",L319/$C$319)","v":""},null,{"$f":"IF($C$319=\"\",\"\",N319/$C$319)","v":""},null,{"$f":"IF($C$319=\"\",\"\",P319/$C$319)","v":""},null,{"$f":"IF($C$319=\"\",\"\",R319/$C$319)","v":""},null,{"$f":"IF($C$319=\"\",\"\",T319/$C$319)","v":""},null,{"$f":"IF($C$319=\"\",\"\",V319/$C$319)","v":""},null,{"$f":"IF($C$319=\"\",\"\",X319/$C$319)","v":""},null,{"$f":"IF($C$319=\"\",\"\",Z319/$C$319)","v":""},null,{"$f":"IF($C$319=\"\",\"\",AB319/$C$319)","v":""},null,{"$f":"IF($C$319=\"\",\"\",AD319/$C$319)","v":""},null,{"$f":"IF($C$319=\"\",\"\",AF319/$C$319)","v":""},null,{"$f":"IF($C$319=\"\",\"\",AH319/$C$319)","v":""},null,{"$f":"IF($C$319=\"\",\"\",AJ319/$C$319)","v":""},null,{"$f":"IF($C$319=\"\",\"\",AL319/$C$319)","v":""},null,{"$f":"IF($C$319=\"\",\"\",AN319/$C$319)","v":""},null,{"$f":"IF($C$319=\"\",\"\",AP319/$C$319)","v":""},null,{"$f":"IF($C$319=\"\",\"\",AR319/$C$319)","v":""},null,{"$f":"IF($C$319=\"\",\"\",AT319/$C$319)","v":""},null,{"$f":"IF($C$319=\"\",\"\",AV319/$C$319)","v":""},null,{"$f":"IF($C$319=\"\",\"\",AX319/$C$319)","v":""},null,{"$f":"IF($C$319=\"\",\"\",AZ319/$C$319)","v":""},null,{"$f":"IF($C$319=\"\",\"\",BB319/$C$319)","v":""},null,0]
["    12.1.3","    Central Software",null,null,{"$f":"IF($C$320=\"\",\"\",F320/$C$320)","v":""},null,{"$f":"IF($C$320=\"\",\"\",H320/$C$320)","v":""},null,{"$f":"IF($C$320=\"\",\"\",J320/$C$320)","v":""},null,{"$f":"IF($C$320=\"\",\"\",L320/$C$320)","v":""},null,{"$f":"IF($C$320=\"\",\"\",N320/$C$320)","v":""},null,{"$f":"IF($C$320=\"\",\"\",P320/$C$320)","v":""},null,{"$f":"IF($C$320=\"\",\"\",R320/$C$320)","v":""},null,{"$f":"IF($C$320=\"\",\"\",T320/$C$320)","v":""},null,{"$f":"IF($C$320=\"\",\"\",V320/$C$320)","v":""},null,{"$f":"IF($C$320=\"\",\"\",X320/$C$320)","v":""},null,{"$f":"IF($C$320=\"\",\"\",Z320/$C$320)","v":""},null,{"$f":"IF($C$320=\"\",\"\",AB320/$C$320)","v":""},null,{"$f":"IF($C$320=\"\",\"\",AD320/$C$320)","v":""},null,{"$f":"IF($C$320=\"\",\"\",AF320/$C$320)","v":""},null,{"$f":"IF($C$320=\"\",\"\",AH320/$C$320)","v":""},null,{"$f":"IF($C$320=\"\",\"\",AJ320/$C$320)","v":""},null,{"$f":"IF($C$320=\"\",\"\",AL320/$C$320)","v":""},null,{"$f":"IF($C$320=\"\",\"\",AN320/$C$320)","v":""},null,{"$f":"IF($C$320=\"\",\"\",AP320/$C$320)","v":""},null,{"$f":"IF($C$320=\"\",\"\",AR320/$C$320)","v":""},null,{"$f":"IF($C$320=\"\",\"\",AT320/$C$320)","v":""},null,{"$f":"IF($C$320=\"\",\"\",AV320/$C$320)","v":""},null,{"$f":"IF($C$320=\"\",\"\",AX320/$C$320)","v":""},null,{"$f":"IF($C$320=\"\",\"\",AZ320/$C$320)","v":""},null,{"$f":"IF($C$320=\"\",\"\",BB320/$C$320)","v":""},null,0]
["    12.1.4","    Central Site Equipment & Building Modifications",null,null,{"$f":"IF($C$321=\"\",\"\",F321/$C$321)","v":""},null,{"$f":"IF($C$321=\"\",\"\",H321/$C$321)","v":""},null,{"$f":"IF($C$321=\"\",\"\",J321/$C$321)","v":""},null,{"$f":"IF($C$321=\"\",\"\",L321/$C$321)","v":""},null,{"$f":"IF($C$321=\"\",\"\",N321/$C$321)","v":""},null,{"$f":"IF($C$321=\"\",\"\",P321/$C$321)","v":""},null,{"$f":"IF($C$321=\"\",\"\",R321/$C$321)","v":""},null,{"$f":"IF($C$321=\"\",\"\",T321/$C$321)","v":""},null,{"$f":"IF($C$321=\"\",\"\",V321/$C$321)","v":""},null,{"$f":"IF($C$321=\"\",\"\",X321/$C$321)","v":""},null,{"$f":"IF($C$321=\"\",\"\",Z321/$C$321)","v":""},null,{"$f":"IF($C$321=\"\",\"\",AB321/$C$321)","v":""},null,{"$f":"IF($C$321=\"\",\"\",AD321/$C$321)","v":""},null,{"$f":"IF($C$321=\"\",\"\",AF321/$C$321)","v":""},null,{"$f":"IF($C$321=\"\",\"\",AH321/$C$321)","v":""},null,{"$f":"IF($C$321=\"\",\"\",AJ321/$C$321)","v":""},null,{"$f":"IF($C$321=\"\",\"\",AL321/$C$321)","v":""},null,{"$f":"IF($C$321=\"\",\"\",AN321/$C$321)","v":""},null,{"$f":"IF($C$321=\"\",\"\",AP321/$C$321)","v":""},null,{"$f":"IF($C$321=\"\",\"\",AR321/$C$321)","v":""},null,{"$f":"IF($C$321=\"\",\"\",AT321/$C$321)","v":""},null,{"$f":"IF($C$321=\"\",\"\",AV321/$C$321)","v":""},null,{"$f":"IF($C$321=\"\",\"\",AX321/$C$321)","v":""},null,{"$f":"IF($C$321=\"\",\"\",AZ321/$C$321)","v":""},null,{"$f":"IF($C$321=\"\",\"\",BB321/$C$321)","v":""},null,0]
["    12.1.5","    CCTV Monitoring System\n          -  Central Equipment\n          -  Field Equipment\n          -  Integration and Software Modification",null,null,{"$f":"IF($C$322=\"\",\"\",F322/$C$322)","v":""},null,{"$f":"IF($C$322=\"\",\"\",H322/$C$322)","v":""},null,{"$f":"IF($C$322=\"\",\"\",J322/$C$322)","v":""},null,{"$f":"IF($C$322=\"\",\"\",L322/$C$322)","v":""},null,{"$f":"IF($C$322=\"\",\"\",N322/$C$322)","v":""},null,{"$f":"IF($C$322=\"\",\"\",P322/$C$322)","v":""},null,{"$f":"IF($C$322=\"\",\"\",R322/$C$322)","v":""},null,{"$f":"IF($C$322=\"\",\"\",T322/$C$322)","v":""},null,{"$f":"IF($C$322=\"\",\"\",V322/$C$322)","v":""},null,{"$f":"IF($C$322=\"\",\"\",X322/$C$322)","v":""},null,{"$f":"IF($C$322=\"\",\"\",Z322/$C$322)","v":""},null,{"$f":"IF($C$322=\"\",\"\",AB322/$C$322)","v":""},null,{"$f":"IF($C$322=\"\",\"\",AD322/$C$322)","v":""},null,{"$f":"IF($C$322=\"\",\"\",AF322/$C$322)","v":""},null,{"$f":"IF($C$322=\"\",\"\",AH322/$C$322)","v":""},null,{"$f":"IF($C$322=\"\",\"\",AJ322/$C$322)","v":""},null,{"$f":"IF($C$322=\"\",\"\",AL322/$C$322)","v":""},null,{"$f":"IF($C$322=\"\",\"\",AN322/$C$322)","v":""},null,{"$f":"IF($C$322=\"\",\"\",AP322/$C$322)","v":""},null,{"$f":"IF($C$322=\"\",\"\",AR322/$C$322)","v":""},null,{"$f":"IF($C$322=\"\",\"\",AT322/$C$322)","v":""},null,{"$f":"IF($C$322=\"\",\"\",AV322/$C$322)","v":""},null,{"$f":"IF($C$322=\"\",\"\",AX322/$C$322)","v":""},null,{"$f":"IF($C$322=\"\",\"\",AZ322/$C$322)","v":""},null,{"$f":"IF($C$322=\"\",\"\",BB322/$C$322)","v":""},null,0]
["    12.1.6","    Ethernet Fiber-Optic Communications Network\n          -  Electronics\n          -  Drop Cables and Splice Centers\n          -  Communications Hubs ",null,null,{"$f":"IF($C$323=\"\",\"\",F323/$C$323)","v":""},null,{"$f":"IF($C$323=\"\",\"\",H323/$C$323)","v":""},null,{"$f":"IF($C$323=\"\",\"\",J323/$C$323)","v":""},null,{"$f":"IF($C$323=\"\",\"\",L323/$C$323)","v":""},null,{"$f":"IF($C$323=\"\",\"\",N323/$C$323)","v":""},null,{"$f":"IF($C$323=\"\",\"\",P323/$C$323)","v":""},null,{"$f":"IF($C$323=\"\",\"\",R323/$C$323)","v":""},null,{"$f":"IF($C$323=\"\",\"\",T323/$C$323)","v":""},null,{"$f":"IF($C$323=\"\",\"\",V323/$C$323)","v":""},null,{"$f":"IF($C$323=\"\",\"\",X323/$C$323)","v":""},null,{"$f":"IF($C$323=\"\",\"\",Z323/$C$323)","v":""},null,{"$f":"IF($C$323=\"\",\"\",AB323/$C$323)","v":""},null,{"$f":"IF($C$323=\"\",\"\",AD323/$C$323)","v":""},null,{"$f":"IF($C$323=\"\",\"\",AF323/$C$323)","v":""},null,{"$f":"IF($C$323=\"\",\"\",AH323/$C$323)","v":""},null,{"$f":"IF($C$323=\"\",\"\",AJ323/$C$323)","v":""},null,{"$f":"IF($C$323=\"\",\"\",AL323/$C$323)","v":""},null,{"$f":"IF($C$323=\"\",\"\",AN323/$C$323)","v":""},null,{"$f":"IF($C$323=\"\",\"\",AP323/$C$323)","v":""},null,{"$f":"IF($C$323=\"\",\"\",AR323/$C$323)","v":""},null,{"$f":"IF($C$323=\"\",\"\",AT323/$C$323)","v":""},null,{"$f":"IF($C$323=\"\",\"\",AV323/$C$323)","v":""},null,{"$f":"IF($C$323=\"\",\"\",AX323/$C$323)","v":""},null,{"$f":"IF($C$323=\"\",\"\",AZ323/$C$323)","v":""},null,{"$f":"IF($C$323=\"\",\"\",BB323/$C$323)","v":""},null,0]
["    12.1.7","    Wireless Communications Network\n      -  Electronics\n      -  Hardware\n      -  Software ",null,null,{"$f":"IF($C$324=\"\",\"\",F324/$C$324)","v":""},null,{"$f":"IF($C$324=\"\",\"\",H324/$C$324)","v":""},null,{"$f":"IF($C$324=\"\",\"\",J324/$C$324)","v":""},null,{"$f":"IF($C$324=\"\",\"\",L324/$C$324)","v":""},null,{"$f":"IF($C$324=\"\",\"\",N324/$C$324)","v":""},null,{"$f":"IF($C$324=\"\",\"\",P324/$C$324)","v":""},null,{"$f":"IF($C$324=\"\",\"\",R324/$C$324)","v":""},null,{"$f":"IF($C$324=\"\",\"\",T324/$C$324)","v":""},null,{"$f":"IF($C$324=\"\",\"\",V324/$C$324)","v":""},null,{"$f":"IF($C$324=\"\",\"\",X324/$C$324)","v":""},null,{"$f":"IF($C$324=\"\",\"\",Z324/$C$324)","v":""},null,{"$f":"IF($C$324=\"\",\"\",AB324/$C$324)","v":""},null,{"$f":"IF($C$324=\"\",\"\",AD324/$C$324)","v":""},null,{"$f":"IF($C$324=\"\",\"\",AF324/$C$324)","v":""},null,{"$f":"IF($C$324=\"\",\"\",AH324/$C$324)","v":""},null,{"$f":"IF($C$324=\"\",\"\",AJ324/$C$324)","v":""},null,{"$f":"IF($C$324=\"\",\"\",AL324/$C$324)","v":""},null,{"$f":"IF($C$324=\"\",\"\",AN324/$C$324)","v":""},null,{"$f":"IF($C$324=\"\",\"\",AP324/$C$324)","v":""},null,{"$f":"IF($C$324=\"\",\"\",AR324/$C$324)","v":""},null,{"$f":"IF($C$324=\"\",\"\",AT324/$C$324)","v":""},null,{"$f":"IF($C$324=\"\",\"\",AV324/$C$324)","v":""},null,{"$f":"IF($C$324=\"\",\"\",AX324/$C$324)","v":""},null,{"$f":"IF($C$324=\"\",\"\",AZ324/$C$324)","v":""},null,{"$f":"IF($C$324=\"\",\"\",BB324/$C$324)","v":""},null,0]
["    12.1.8","    Training",null,null,{"$f":"IF($C$325=\"\",\"\",F325/$C$325)","v":""},null,{"$f":"IF($C$325=\"\",\"\",H325/$C$325)","v":""},null,{"$f":"IF($C$325=\"\",\"\",J325/$C$325)","v":""},null,{"$f":"IF($C$325=\"\",\"\",L325/$C$325)","v":""},null,{"$f":"IF($C$325=\"\",\"\",N325/$C$325)","v":""},null,{"$f":"IF($C$325=\"\",\"\",P325/$C$325)","v":""},null,{"$f":"IF($C$325=\"\",\"\",R325/$C$325)","v":""},null,{"$f":"IF($C$325=\"\",\"\",T325/$C$325)","v":""},null,{"$f":"IF($C$325=\"\",\"\",V325/$C$325)","v":""},null,{"$f":"IF($C$325=\"\",\"\",X325/$C$325)","v":""},null,{"$f":"IF($C$325=\"\",\"\",Z325/$C$325)","v":""},null,{"$f":"IF($C$325=\"\",\"\",AB325/$C$325)","v":""},null,{"$f":"IF($C$325=\"\",\"\",AD325/$C$325)","v":""},null,{"$f":"IF($C$325=\"\",\"\",AF325/$C$325)","v":""},null,{"$f":"IF($C$325=\"\",\"\",AH325/$C$325)","v":""},null,{"$f":"IF($C$325=\"\",\"\",AJ325/$C$325)","v":""},null,{"$f":"IF($C$325=\"\",\"\",AL325/$C$325)","v":""},null,{"$f":"IF($C$325=\"\",\"\",AN325/$C$325)","v":""},null,{"$f":"IF($C$325=\"\",\"\",AP325/$C$325)","v":""},null,{"$f":"IF($C$325=\"\",\"\",AR325/$C$325)","v":""},null,{"$f":"IF($C$325=\"\",\"\",AT325/$C$325)","v":""},null,{"$f":"IF($C$325=\"\",\"\",AV325/$C$325)","v":""},null,{"$f":"IF($C$325=\"\",\"\",AX325/$C$325)","v":""},null,{"$f":"IF($C$325=\"\",\"\",AZ325/$C$325)","v":""},null,{"$f":"IF($C$325=\"\",\"\",BB325/$C$325)","v":""},null,0]
["    12.1.9","    Testing & Acceptance",null,null,{"$f":"IF($C$326=\"\",\"\",F326/$C$326)","v":""},null,{"$f":"IF($C$326=\"\",\"\",H326/$C$326)","v":""},null,{"$f":"IF($C$326=\"\",\"\",J326/$C$326)","v":""},null,{"$f":"IF($C$326=\"\",\"\",L326/$C$326)","v":""},null,{"$f":"IF($C$326=\"\",\"\",N326/$C$326)","v":""},null,{"$f":"IF($C$326=\"\",\"\",P326/$C$326)","v":""},null,{"$f":"IF($C$326=\"\",\"\",R326/$C$326)","v":""},null,{"$f":"IF($C$326=\"\",\"\",T326/$C$326)","v":""},null,{"$f":"IF($C$326=\"\",\"\",V326/$C$326)","v":""},null,{"$f":"IF($C$326=\"\",\"\",X326/$C$326)","v":""},null,{"$f":"IF($C$326=\"\",\"\",Z326/$C$326)","v":""},null,{"$f":"IF($C$326=\"\",\"\",AB326/$C$326)","v":""},null,{"$f":"IF($C$326=\"\",\"\",AD326/$C$326)","v":""},null,{"$f":"IF($C$326=\"\",\"\",AF326/$C$326)","v":""},null,{"$f":"IF($C$326=\"\",\"\",AH326/$C$326)","v":""},null,{"$f":"IF($C$326=\"\",\"\",AJ326/$C$326)","v":""},null,{"$f":"IF($C$326=\"\",\"\",AL326/$C$326)","v":""},null,{"$f":"IF($C$326=\"\",\"\",AN326/$C$326)","v":""},null,{"$f":"IF($C$326=\"\",\"\",AP326/$C$326)","v":""},null,{"$f":"IF($C$326=\"\",\"\",AR326/$C$326)","v":""},null,{"$f":"IF($C$326=\"\",\"\",AT326/$C$326)","v":""},null,{"$f":"IF($C$326=\"\",\"\",AV326/$C$326)","v":""},null,{"$f":"IF($C$326=\"\",\"\",AX326/$C$326)","v":""},null,{"$f":"IF($C$326=\"\",\"\",AZ326/$C$326)","v":""},null,{"$f":"IF($C$326=\"\",\"\",BB326/$C$326)","v":""},null,0]
["    12.1.10","    Incorporate & Edit Prior Project Special \n    Provisions",null,null,{"$f":"IF($C$327=\"\",\"\",F327/$C$327)","v":""},null,{"$f":"IF($C$327=\"\",\"\",H327/$C$327)","v":""},null,{"$f":"IF($C$327=\"\",\"\",J327/$C$327)","v":""},null,{"$f":"IF($C$327=\"\",\"\",L327/$C$327)","v":""},null,{"$f":"IF($C$327=\"\",\"\",N327/$C$327)","v":""},null,{"$f":"IF($C$327=\"\",\"\",P327/$C$327)","v":""},null,{"$f":"IF($C$327=\"\",\"\",R327/$C$327)","v":""},null,{"$f":"IF($C$327=\"\",\"\",T327/$C$327)","v":""},null,{"$f":"IF($C$327=\"\",\"\",V327/$C$327)","v":""},null,{"$f":"IF($C$327=\"\",\"\",X327/$C$327)","v":""},null,{"$f":"IF($C$327=\"\",\"\",Z327/$C$327)","v":""},null,{"$f":"IF($C$327=\"\",\"\",AB327/$C$327)","v":""},null,{"$f":"IF($C$327=\"\",\"\",AD327/$C$327)","v":""},null,{"$f":"IF($C$327=\"\",\"\",AF327/$C$327)","v":""},null,{"$f":"IF($C$327=\"\",\"\",AH327/$C$327)","v":""},null,{"$f":"IF($C$327=\"\",\"\",AJ327/$C$327)","v":""},null,{"$f":"IF($C$327=\"\",\"\",AL327/$C$327)","v":""},null,{"$f":"IF($C$327=\"\",\"\",AN327/$C$327)","v":""},null,{"$f":"IF($C$327=\"\",\"\",AP327/$C$327)","v":""},null,{"$f":"IF($C$327=\"\",\"\",AR327/$C$327)","v":""},null,{"$f":"IF($C$327=\"\",\"\",AT327/$C$327)","v":""},null,{"$f":"IF($C$327=\"\",\"\",AV327/$C$327)","v":""},null,{"$f":"IF($C$327=\"\",\"\",AX327/$C$327)","v":""},null,{"$f":"IF($C$327=\"\",\"\",AZ327/$C$327)","v":""},null,{"$f":"IF($C$327=\"\",\"\",BB327/$C$327)","v":""},null,0]
["    12.1.11","    Incorporate  ITSS Unit PSPs Version Updates",null,null,{"$f":"IF($C$328=\"\",\"\",F328/$C$328)","v":""},null,{"$f":"IF($C$328=\"\",\"\",H328/$C$328)","v":""},null,{"$f":"IF($C$328=\"\",\"\",J328/$C$328)","v":""},null,{"$f":"IF($C$328=\"\",\"\",L328/$C$328)","v":""},null,{"$f":"IF($C$328=\"\",\"\",N328/$C$328)","v":""},null,{"$f":"IF($C$328=\"\",\"\",P328/$C$328)","v":""},null,{"$f":"IF($C$328=\"\",\"\",R328/$C$328)","v":""},null,{"$f":"IF($C$328=\"\",\"\",T328/$C$328)","v":""},null,{"$f":"IF($C$328=\"\",\"\",V328/$C$328)","v":""},null,{"$f":"IF($C$328=\"\",\"\",X328/$C$328)","v":""},null,{"$f":"IF($C$328=\"\",\"\",Z328/$C$328)","v":""},null,{"$f":"IF($C$328=\"\",\"\",AB328/$C$328)","v":""},null,{"$f":"IF($C$328=\"\",\"\",AD328/$C$328)","v":""},null,{"$f":"IF($C$328=\"\",\"\",AF328/$C$328)","v":""},null,{"$f":"IF($C$328=\"\",\"\",AH328/$C$328)","v":""},null,{"$f":"IF($C$328=\"\",\"\",AJ328/$C$328)","v":""},null,{"$f":"IF($C$328=\"\",\"\",AL328/$C$328)","v":""},null,{"$f":"IF($C$328=\"\",\"\",AN328/$C$328)","v":""},null,{"$f":"IF($C$328=\"\",\"\",AP328/$C$328)","v":""},null,{"$f":"IF($C$328=\"\",\"\",AR328/$C$328)","v":""},null,{"$f":"IF($C$328=\"\",\"\",AT328/$C$328)","v":""},null,{"$f":"IF($C$328=\"\",\"\",AV328/$C$328)","v":""},null,{"$f":"IF($C$328=\"\",\"\",AX328/$C$328)","v":""},null,{"$f":"IF($C$328=\"\",\"\",AZ328/$C$328)","v":""},null,{"$f":"IF($C$328=\"\",\"\",BB328/$C$328)","v":""},null,0]
["    12.1.12","    Miscellaneous Project Special Provisions",null,null,{"$f":"IF($C$329=\"\",\"\",F329/$C$329)","v":""},null,{"$f":"IF($C$329=\"\",\"\",H329/$C$329)","v":""},null,{"$f":"IF($C$329=\"\",\"\",J329/$C$329)","v":""},null,{"$f":"IF($C$329=\"\",\"\",L329/$C$329)","v":""},null,{"$f":"IF($C$329=\"\",\"\",N329/$C$329)","v":""},null,{"$f":"IF($C$329=\"\",\"\",P329/$C$329)","v":""},null,{"$f":"IF($C$329=\"\",\"\",R329/$C$329)","v":""},null,{"$f":"IF($C$329=\"\",\"\",T329/$C$329)","v":""},null,{"$f":"IF($C$329=\"\",\"\",V329/$C$329)","v":""},null,{"$f":"IF($C$329=\"\",\"\",X329/$C$329)","v":""},null,{"$f":"IF($C$329=\"\",\"\",Z329/$C$329)","v":""},null,{"$f":"IF($C$329=\"\",\"\",AB329/$C$329)","v":""},null,{"$f":"IF($C$329=\"\",\"\",AD329/$C$329)","v":""},null,{"$f":"IF($C$329=\"\",\"\",AF329/$C$329)","v":""},null,{"$f":"IF($C$329=\"\",\"\",AH329/$C$329)","v":""},null,{"$f":"IF($C$329=\"\",\"\",AJ329/$C$329)","v":""},null,{"$f":"IF($C$329=\"\",\"\",AL329/$C$329)","v":""},null,{"$f":"IF($C$329=\"\",\"\",AN329/$C$329)","v":""},null,{"$f":"IF($C$329=\"\",\"\",AP329/$C$329)","v":""},null,{"$f":"IF($C$329=\"\",\"\",AR329/$C$329)","v":""},null,{"$f":"IF($C$329=\"\",\"\",AT329/$C$329)","v":""},null,{"$f":"IF($C$329=\"\",\"\",AV329/$C$329)","v":""},null,{"$f":"IF($C$329=\"\",\"\",AX329/$C$329)","v":""},null,{"$f":"IF($C$329=\"\",\"\",AZ329/$C$329)","v":""},null,{"$f":"IF($C$329=\"\",\"\",BB329/$C$329)","v":""},null,0]
["    12.1.13",null,null,null,{"$f":"IF($C$330=\"\",\"\",F330/$C$330)","v":""},null,{"$f":"IF($C$330=\"\",\"\",H330/$C$330)","v":""},null,{"$f":"IF($C$330=\"\",\"\",J330/$C$330)","v":""},null,{"$f":"IF($C$330=\"\",\"\",L330/$C$330)","v":""},null,{"$f":"IF($C$330=\"\",\"\",N330/$C$330)","v":""},null,{"$f":"IF($C$330=\"\",\"\",P330/$C$330)","v":""},null,{"$f":"IF($C$330=\"\",\"\",R330/$C$330)","v":""},null,{"$f":"IF($C$330=\"\",\"\",T330/$C$330)","v":""},null,{"$f":"IF($C$330=\"\",\"\",V330/$C$330)","v":""},null,{"$f":"IF($C$330=\"\",\"\",X330/$C$330)","v":""},null,{"$f":"IF($C$330=\"\",\"\",Z330/$C$330)","v":""},null,{"$f":"IF($C$330=\"\",\"\",AB330/$C$330)","v":""},null,{"$f":"IF($C$330=\"\",\"\",AD330/$C$330)","v":""},null,{"$f":"IF($C$330=\"\",\"\",AF330/$C$330)","v":""},null,{"$f":"IF($C$330=\"\",\"\",AH330/$C$330)","v":""},null,{"$f":"IF($C$330=\"\",\"\",AJ330/$C$330)","v":""},null,{"$f":"IF($C$330=\"\",\"\",AL330/$C$330)","v":""},null,{"$f":"IF($C$330=\"\",\"\",AN330/$C$330)","v":""},null,{"$f":"IF($C$330=\"\",\"\",AP330/$C$330)","v":""},null,{"$f":"IF($C$330=\"\",\"\",AR330/$C$330)","v":""},null,{"$f":"IF($C$330=\"\",\"\",AT330/$C$330)","v":""},null,{"$f":"IF($C$330=\"\",\"\",AV330/$C$330)","v":""},null,{"$f":"IF($C$330=\"\",\"\",AX330/$C$330)","v":""},null,{"$f":"IF($C$330=\"\",\"\",AZ330/$C$330)","v":""},null,{"$f":"IF($C$330=\"\",\"\",BB330/$C$330)","v":""},null,0]
["    12.1.14",null,null,null,{"$f":"IF($C$331=\"\",\"\",F331/$C$331)","v":""},null,{"$f":"IF($C$331=\"\",\"\",H331/$C$331)","v":""},null,{"$f":"IF($C$331=\"\",\"\",J331/$C$331)","v":""},null,{"$f":"IF($C$331=\"\",\"\",L331/$C$331)","v":""},null,{"$f":"IF($C$331=\"\",\"\",N331/$C$331)","v":""},null,{"$f":"IF($C$331=\"\",\"\",P331/$C$331)","v":""},null,{"$f":"IF($C$331=\"\",\"\",R331/$C$331)","v":""},null,{"$f":"IF($C$331=\"\",\"\",T331/$C$331)","v":""},null,{"$f":"IF($C$331=\"\",\"\",V331/$C$331)","v":""},null,{"$f":"IF($C$331=\"\",\"\",X331/$C$331)","v":""},null,{"$f":"IF($C$331=\"\",\"\",Z331/$C$331)","v":""},null,{"$f":"IF($C$331=\"\",\"\",AB331/$C$331)","v":""},null,{"$f":"IF($C$331=\"\",\"\",AD331/$C$331)","v":""},null,{"$f":"IF($C$331=\"\",\"\",AF331/$C$331)","v":""},null,{"$f":"IF($C$331=\"\",\"\",AH331/$C$331)","v":""},null,{"$f":"IF($C$331=\"\",\"\",AJ331/$C$331)","v":""},null,{"$f":"IF($C$331=\"\",\"\",AL331/$C$331)","v":""},null,{"$f":"IF($C$331=\"\",\"\",AN331/$C$331)","v":""},null,{"$f":"IF($C$331=\"\",\"\",AP331/$C$331)","v":""},null,{"$f":"IF($C$331=\"\",\"\",AR331/$C$331)","v":""},null,{"$f":"IF($C$331=\"\",\"\",AT331/$C$331)","v":""},null,{"$f":"IF($C$331=\"\",\"\",AV331/$C$331)","v":""},null,{"$f":"IF($C$331=\"\",\"\",AX331/$C$331)","v":""},null,{"$f":"IF($C$331=\"\",\"\",AZ331/$C$331)","v":""},null,{"$f":"IF($C$331=\"\",\"\",BB331/$C$331)","v":""},null,0]
["    12.1.15",null,null,null,{"$f":"IF($C$332=\"\",\"\",F332/$C$332)","v":""},null,{"$f":"IF($C$332=\"\",\"\",H332/$C$332)","v":""},null,{"$f":"IF($C$332=\"\",\"\",J332/$C$332)","v":""},null,{"$f":"IF($C$332=\"\",\"\",L332/$C$332)","v":""},null,{"$f":"IF($C$332=\"\",\"\",N332/$C$332)","v":""},null,{"$f":"IF($C$332=\"\",\"\",P332/$C$332)","v":""},null,{"$f":"IF($C$332=\"\",\"\",R332/$C$332)","v":""},null,{"$f":"IF($C$332=\"\",\"\",T332/$C$332)","v":""},null,{"$f":"IF($C$332=\"\",\"\",V332/$C$332)","v":""},null,{"$f":"IF($C$332=\"\",\"\",X332/$C$332)","v":""},null,{"$f":"IF($C$332=\"\",\"\",Z332/$C$332)","v":""},null,{"$f":"IF($C$332=\"\",\"\",AB332/$C$332)","v":""},null,{"$f":"IF($C$332=\"\",\"\",AD332/$C$332)","v":""},null,{"$f":"IF($C$332=\"\",\"\",AF332/$C$332)","v":""},null,{"$f":"IF($C$332=\"\",\"\",AH332/$C$332)","v":""},null,{"$f":"IF($C$332=\"\",\"\",AJ332/$C$332)","v":""},null,{"$f":"IF($C$332=\"\",\"\",AL332/$C$332)","v":""},null,{"$f":"IF($C$332=\"\",\"\",AN332/$C$332)","v":""},null,{"$f":"IF($C$332=\"\",\"\",AP332/$C$332)","v":""},null,{"$f":"IF($C$332=\"\",\"\",AR332/$C$332)","v":""},null,{"$f":"IF($C$332=\"\",\"\",AT332/$C$332)","v":""},null,{"$f":"IF($C$332=\"\",\"\",AV332/$C$332)","v":""},null,{"$f":"IF($C$332=\"\",\"\",AX332/$C$332)","v":""},null,{"$f":"IF($C$332=\"\",\"\",AZ332/$C$332)","v":""},null,{"$f":"IF($C$332=\"\",\"\",BB332/$C$332)","v":""},null,0]
[12.2,"Draft Final Project Special Provisions",null,null,{"$f":"IF($C$333=\"\",\"\",F333/$C$333)","v":""},null,{"$f":"IF($C$333=\"\",\"\",H333/$C$333)","v":""},null,{"$f":"IF($C$333=\"\",\"\",J333/$C$333)","v":""},null,{"$f":"IF($C$333=\"\",\"\",L333/$C$333)","v":""},null,{"$f":"IF($C$333=\"\",\"\",N333/$C$333)","v":""},null,{"$f":"IF($C$333=\"\",\"\",P333/$C$333)","v":""},null,{"$f":"IF($C$333=\"\",\"\",R333/$C$333)","v":""},null,{"$f":"IF($C$333=\"\",\"\",T333/$C$333)","v":""},null,{"$f":"IF($C$333=\"\",\"\",V333/$C$333)","v":""},null,{"$f":"IF($C$333=\"\",\"\",X333/$C$333)","v":""},null,{"$f":"IF($C$333=\"\",\"\",Z333/$C$333)","v":""},null,{"$f":"IF($C$333=\"\",\"\",AB333/$C$333)","v":""},null,{"$f":"IF($C$333=\"\",\"\",AD333/$C$333)","v":""},null,{"$f":"IF($C$333=\"\",\"\",AF333/$C$333)","v":""},null,{"$f":"IF($C$333=\"\",\"\",AH333/$C$333)","v":""},null,{"$f":"IF($C$333=\"\",\"\",AJ333/$C$333)","v":""},null,{"$f":"IF($C$333=\"\",\"\",AL333/$C$333)","v":""},null,{"$f":"IF($C$333=\"\",\"\",AN333/$C$333)","v":""},null,{"$f":"IF($C$333=\"\",\"\",AP333/$C$333)","v":""},null,{"$f":"IF($C$333=\"\",\"\",AR333/$C$333)","v":""},null,{"$f":"IF($C$333=\"\",\"\",AT333/$C$333)","v":""},null,{"$f":"IF($C$333=\"\",\"\",AV333/$C$333)","v":""},null,{"$f":"IF($C$333=\"\",\"\",AX333/$C$333)","v":""},null,{"$f":"IF($C$333=\"\",\"\",AZ333/$C$333)","v":""},null,{"$f":"IF($C$333=\"\",\"\",BB333/$C$333)","v":""},null,0]
[12.3,"Final Project Special Provisions",null,null,{"$f":"IF($C$334=\"\",\"\",F334/$C$334)","v":""},null,{"$f":"IF($C$334=\"\",\"\",H334/$C$334)","v":""},null,{"$f":"IF($C$334=\"\",\"\",J334/$C$334)","v":""},null,{"$f":"IF($C$334=\"\",\"\",L334/$C$334)","v":""},null,{"$f":"IF($C$334=\"\",\"\",N334/$C$334)","v":""},null,{"$f":"IF($C$334=\"\",\"\",P334/$C$334)","v":""},null,{"$f":"IF($C$334=\"\",\"\",R334/$C$334)","v":""},null,{"$f":"IF($C$334=\"\",\"\",T334/$C$334)","v":""},null,{"$f":"IF($C$334=\"\",\"\",V334/$C$334)","v":""},null,{"$f":"IF($C$334=\"\",\"\",X334/$C$334)","v":""},null,{"$f":"IF($C$334=\"\",\"\",Z334/$C$334)","v":""},null,{"$f":"IF($C$334=\"\",\"\",AB334/$C$334)","v":""},null,{"$f":"IF($C$334=\"\",\"\",AD334/$C$334)","v":""},null,{"$f":"IF($C$334=\"\",\"\",AF334/$C$334)","v":""},null,{"$f":"IF($C$334=\"\",\"\",AH334/$C$334)","v":""},null,{"$f":"IF($C$334=\"\",\"\",AJ334/$C$334)","v":""},null,{"$f":"IF($C$334=\"\",\"\",AL334/$C$334)","v":""},null,{"$f":"IF($C$334=\"\",\"\",AN334/$C$334)","v":""},null,{"$f":"IF($C$334=\"\",\"\",AP334/$C$334)","v":""},null,{"$f":"IF($C$334=\"\",\"\",AR334/$C$334)","v":""},null,{"$f":"IF($C$334=\"\",\"\",AT334/$C$334)","v":""},null,{"$f":"IF($C$334=\"\",\"\",AV334/$C$334)","v":""},null,{"$f":"IF($C$334=\"\",\"\",AX334/$C$334)","v":""},null,{"$f":"IF($C$334=\"\",\"\",AZ334/$C$334)","v":""},null,{"$f":"IF($C$334=\"\",\"\",BB334/$C$334)","v":""},null,0]
[12.4,"Quality Reviews ",null,null,{"$f":"IF($C$335=\"\",\"\",F335/$C$335)","v":""},null,{"$f":"IF($C$335=\"\",\"\",H335/$C$335)","v":""},null,{"$f":"IF($C$335=\"\",\"\",J335/$C$335)","v":""},null,{"$f":"IF($C$335=\"\",\"\",L335/$C$335)","v":""},null,{"$f":"IF($C$335=\"\",\"\",N335/$C$335)","v":""},null,{"$f":"IF($C$335=\"\",\"\",P335/$C$335)","v":""},null,{"$f":"IF($C$335=\"\",\"\",R335/$C$335)","v":""},null,{"$f":"IF($C$335=\"\",\"\",T335/$C$335)","v":""},null,{"$f":"IF($C$335=\"\",\"\",V335/$C$335)","v":""},null,{"$f":"IF($C$335=\"\",\"\",X335/$C$335)","v":""},null,{"$f":"IF($C$335=\"\",\"\",Z335/$C$335)","v":""},null,{"$f":"IF($C$335=\"\",\"\",AB335/$C$335)","v":""},null,{"$f":"IF($C$335=\"\",\"\",AD335/$C$335)","v":""},null,{"$f":"IF($C$335=\"\",\"\",AF335/$C$335)","v":""},null,{"$f":"IF($C$335=\"\",\"\",AH335/$C$335)","v":""},null,{"$f":"IF($C$335=\"\",\"\",AJ335/$C$335)","v":""},null,{"$f":"IF($C$335=\"\",\"\",AL335/$C$335)","v":""},null,{"$f":"IF($C$335=\"\",\"\",AN335/$C$335)","v":""},null,{"$f":"IF($C$335=\"\",\"\",AP335/$C$335)","v":""},null,{"$f":"IF($C$335=\"\",\"\",AR335/$C$335)","v":""},null,{"$f":"IF($C$335=\"\",\"\",AT335/$C$335)","v":""},null,{"$f":"IF($C$335=\"\",\"\",AV335/$C$335)","v":""},null,{"$f":"IF($C$335=\"\",\"\",AX335/$C$335)","v":""},null,{"$f":"IF($C$335=\"\",\"\",AZ335/$C$335)","v":""},null,{"$f":"IF($C$335=\"\",\"\",BB335/$C$335)","v":""},null,0]
[null,null,null,null,{"$f":"IF($C$336=\"\",\"\",F336/$C$336)","v":""},null,{"$f":"IF($C$336=\"\",\"\",H336/$C$336)","v":""},null,{"$f":"IF($C$336=\"\",\"\",J336/$C$336)","v":""},null,{"$f":"IF($C$336=\"\",\"\",L336/$C$336)","v":""},null,{"$f":"IF($C$336=\"\",\"\",N336/$C$336)","v":""},null,{"$f":"IF($C$336=\"\",\"\",P336/$C$336)","v":""},null,{"$f":"IF($C$336=\"\",\"\",R336/$C$336)","v":""},null,{"$f":"IF($C$336=\"\",\"\",T336/$C$336)","v":""},null,{"$f":"IF($C$336=\"\",\"\",V336/$C$336)","v":""},null,{"$f":"IF($C$336=\"\",\"\",X336/$C$336)","v":""},null,{"$f":"IF($C$336=\"\",\"\",Z336/$C$336)","v":""},null,{"$f":"IF($C$336=\"\",\"\",AB336/$C$336)","v":""},null,{"$f":"IF($C$336=\"\",\"\",AD336/$C$336)","v":""},null,{"$f":"IF($C$336=\"\",\"\",AF336/$C$336)","v":""},null,{"$f":"IF($C$336=\"\",\"\",AH336/$C$336)","v":""},null,{"$f":"IF($C$336=\"\",\"\",AJ336/$C$336)","v":""},null,{"$f":"IF($C$336=\"\",\"\",AL336/$C$336)","v":""},null,{"$f":"IF($C$336=\"\",\"\",AN336/$C$336)","v":""},null,{"$f":"IF($C$336=\"\",\"\",AP336/$C$336)","v":""},null,{"$f":"IF($C$336=\"\",\"\",AR336/$C$336)","v":""},null,{"$f":"IF($C$336=\"\",\"\",AT336/$C$336)","v":""},null,{"$f":"IF($C$336=\"\",\"\",AV336/$C$336)","v":""},null,{"$f":"IF($C$336=\"\",\"\",AX336/$C$336)","v":""},null,{"$f":"IF($C$336=\"\",\"\",AZ336/$C$336)","v":""},null,{"$f":"IF($C$336=\"\",\"\",BB336/$C$336)","v":""},null,0]
[null,null,null,null,{"$f":"IF($C$337=\"\",\"\",F337/$C$337)","v":""},null,{"$f":"IF($C$337=\"\",\"\",H337/$C$337)","v":""},null,{"$f":"IF($C$337=\"\",\"\",J337/$C$337)","v":""},null,{"$f":"IF($C$337=\"\",\"\",L337/$C$337)","v":""},null,{"$f":"IF($C$337=\"\",\"\",N337/$C$337)","v":""},null,{"$f":"IF($C$337=\"\",\"\",P337/$C$337)","v":""},null,{"$f":"IF($C$337=\"\",\"\",R337/$C$337)","v":""},null,{"$f":"IF($C$337=\"\",\"\",T337/$C$337)","v":""},null,{"$f":"IF($C$337=\"\",\"\",V337/$C$337)","v":""},null,{"$f":"IF($C$337=\"\",\"\",X337/$C$337)","v":""},null,{"$f":"IF($C$337=\"\",\"\",Z337/$C$337)","v":""},null,{"$f":"IF($C$337=\"\",\"\",AB337/$C$337)","v":""},null,{"$f":"IF($C$337=\"\",\"\",AD337/$C$337)","v":""},null,{"$f":"IF($C$337=\"\",\"\",AF337/$C$337)","v":""},null,{"$f":"IF($C$337=\"\",\"\",AH337/$C$337)","v":""},null,{"$f":"IF($C$337=\"\",\"\",AJ337/$C$337)","v":""},null,{"$f":"IF($C$337=\"\",\"\",AL337/$C$337)","v":""},null,{"$f":"IF($C$337=\"\",\"\",AN337/$C$337)","v":""},null,{"$f":"IF($C$337=\"\",\"\",AP337/$C$337)","v":""},null,{"$f":"IF($C$337=\"\",\"\",AR337/$C$337)","v":""},null,{"$f":"IF($C$337=\"\",\"\",AT337/$C$337)","v":""},null,{"$f":"IF($C$337=\"\",\"\",AV337/$C$337)","v":""},null,{"$f":"IF($C$337=\"\",\"\",AX337/$C$337)","v":""},null,{"$f":"IF($C$337=\"\",\"\",AZ337/$C$337)","v":""},null,{"$f":"IF($C$337=\"\",\"\",BB337/$C$337)","v":""},null,0]
[null,null,null,null,{"$f":"IF($C$338=\"\",\"\",F338/$C$338)","v":""},null,{"$f":"IF($C$338=\"\",\"\",H338/$C$338)","v":""},null,{"$f":"IF($C$338=\"\",\"\",J338/$C$338)","v":""},null,{"$f":"IF($C$338=\"\",\"\",L338/$C$338)","v":""},null,{"$f":"IF($C$338=\"\",\"\",N338/$C$338)","v":""},null,{"$f":"IF($C$338=\"\",\"\",P338/$C$338)","v":""},null,{"$f":"IF($C$338=\"\",\"\",R338/$C$338)","v":""},null,{"$f":"IF($C$338=\"\",\"\",T338/$C$338)","v":""},null,{"$f":"IF($C$338=\"\",\"\",V338/$C$338)","v":""},null,{"$f":"IF($C$338=\"\",\"\",X338/$C$338)","v":""},null,{"$f":"IF($C$338=\"\",\"\",Z338/$C$338)","v":""},null,{"$f":"IF($C$338=\"\",\"\",AB338/$C$338)","v":""},null,{"$f":"IF($C$338=\"\",\"\",AD338/$C$338)","v":""},null,{"$f":"IF($C$338=\"\",\"\",AF338/$C$338)","v":""},null,{"$f":"IF($C$338=\"\",\"\",AH338/$C$338)","v":""},null,{"$f":"IF($C$338=\"\",\"\",AJ338/$C$338)","v":""},null,{"$f":"IF($C$338=\"\",\"\",AL338/$C$338)","v":""},null,{"$f":"IF($C$338=\"\",\"\",AN338/$C$338)","v":""},null,{"$f":"IF($C$338=\"\",\"\",AP338/$C$338)","v":""},null,{"$f":"IF($C$338=\"\",\"\",AR338/$C$338)","v":""},null,{"$f":"IF($C$338=\"\",\"\",AT338/$C$338)","v":""},null,{"$f":"IF($C$338=\"\",\"\",AV338/$C$338)","v":""},null,{"$f":"IF($C$338=\"\",\"\",AX338/$C$338)","v":""},null,{"$f":"IF($C$338=\"\",\"\",AZ338/$C$338)","v":""},null,{"$f":"IF($C$338=\"\",\"\",BB338/$C$338)","v":""},null,0]
[null,null,null,null,{"$f":"IF($C$339=\"\",\"\",F339/$C$339)","v":""},null,{"$f":"IF($C$339=\"\",\"\",H339/$C$339)","v":""},null,{"$f":"IF($C$339=\"\",\"\",J339/$C$339)","v":""},null,{"$f":"IF($C$339=\"\",\"\",L339/$C$339)","v":""},null,{"$f":"IF($C$339=\"\",\"\",N339/$C$339)","v":""},null,{"$f":"IF($C$339=\"\",\"\",P339/$C$339)","v":""},null,{"$f":"IF($C$339=\"\",\"\",R339/$C$339)","v":""},null,{"$f":"IF($C$339=\"\",\"\",T339/$C$339)","v":""},null,{"$f":"IF($C$339=\"\",\"\",V339/$C$339)","v":""},null,{"$f":"IF($C$339=\"\",\"\",X339/$C$339)","v":""},null,{"$f":"IF($C$339=\"\",\"\",Z339/$C$339)","v":""},null,{"$f":"IF($C$339=\"\",\"\",AB339/$C$339)","v":""},null,{"$f":"IF($C$339=\"\",\"\",AD339/$C$339)","v":""},null,{"$f":"IF($C$339=\"\",\"\",AF339/$C$339)","v":""},null,{"$f":"IF($C$339=\"\",\"\",AH339/$C$339)","v":""},null,{"$f":"IF($C$339=\"\",\"\",AJ339/$C$339)","v":""},null,{"$f":"IF($C$339=\"\",\"\",AL339/$C$339)","v":""},null,{"$f":"IF($C$339=\"\",\"\",AN339/$C$339)","v":""},null,{"$f":"IF($C$339=\"\",\"\",AP339/$C$339)","v":""},null,{"$f":"IF($C$339=\"\",\"\",AR339/$C$339)","v":""},null,{"$f":"IF($C$339=\"\",\"\",AT339/$C$339)","v":""},null,{"$f":"IF($C$339=\"\",\"\",AV339/$C$339)","v":""},null,{"$f":"IF($C$339=\"\",\"\",AX339/$C$339)","v":""},null,{"$f":"IF($C$339=\"\",\"\",AZ339/$C$339)","v":""},null,{"$f":"IF($C$339=\"\",\"\",BB339/$C$339)","v":""},null,0]
[null,null,null,null,{"$f":"IF($C$340=\"\",\"\",F340/$C$340)","v":""},null,{"$f":"IF($C$340=\"\",\"\",H340/$C$340)","v":""},null,{"$f":"IF($C$340=\"\",\"\",J340/$C$340)","v":""},null,{"$f":"IF($C$340=\"\",\"\",L340/$C$340)","v":""},null,{"$f":"IF($C$340=\"\",\"\",N340/$C$340)","v":""},null,{"$f":"IF($C$340=\"\",\"\",P340/$C$340)","v":""},null,{"$f":"IF($C$340=\"\",\"\",R340/$C$340)","v":""},null,{"$f":"IF($C$340=\"\",\"\",T340/$C$340)","v":""},null,{"$f":"IF($C$340=\"\",\"\",V340/$C$340)","v":""},null,{"$f":"IF($C$340=\"\",\"\",X340/$C$340)","v":""},null,{"$f":"IF($C$340=\"\",\"\",Z340/$C$340)","v":""},null,{"$f":"IF($C$340=\"\",\"\",AB340/$C$340)","v":""},null,{"$f":"IF($C$340=\"\",\"\",AD340/$C$340)","v":""},null,{"$f":"IF($C$340=\"\",\"\",AF340/$C$340)","v":""},null,{"$f":"IF($C$340=\"\",\"\",AH340/$C$340)","v":""},null,{"$f":"IF($C$340=\"\",\"\",AJ340/$C$340)","v":""},null,{"$f":"IF($C$340=\"\",\"\",AL340/$C$340)","v":""},null,{"$f":"IF($C$340=\"\",\"\",AN340/$C$340)","v":""},null,{"$f":"IF($C$340=\"\",\"\",AP340/$C$340)","v":""},null,{"$f":"IF($C$340=\"\",\"\",AR340/$C$340)","v":""},null,{"$f":"IF($C$340=\"\",\"\",AT340/$C$340)","v":""},null,{"$f":"IF($C$340=\"\",\"\",AV340/$C$340)","v":""},null,{"$f":"IF($C$340=\"\",\"\",AX340/$C$340)","v":""},null,{"$f":"IF($C$340=\"\",\"\",AZ340/$C$340)","v":""},null,{"$f":"IF($C$340=\"\",\"\",BB340/$C$340)","v":""},null,0]
[null,null,null,null,{"$f":"IF($C$341=\"\",\"\",F341/$C$341)","v":""},null,{"$f":"IF($C$341=\"\",\"\",H341/$C$341)","v":""},null,{"$f":"IF($C$341=\"\",\"\",J341/$C$341)","v":""},null,{"$f":"IF($C$341=\"\",\"\",L341/$C$341)","v":""},null,{"$f":"IF($C$341=\"\",\"\",N341/$C$341)","v":""},null,{"$f":"IF($C$341=\"\",\"\",P341/$C$341)","v":""},null,{"$f":"IF($C$341=\"\",\"\",R341/$C$341)","v":""},null,{"$f":"IF($C$341=\"\",\"\",T341/$C$341)","v":""},null,{"$f":"IF($C$341=\"\",\"\",V341/$C$341)","v":""},null,{"$f":"IF($C$341=\"\",\"\",X341/$C$341)","v":""},null,{"$f":"IF($C$341=\"\",\"\",Z341/$C$341)","v":""},null,{"$f":"IF($C$341=\"\",\"\",AB341/$C$341)","v":""},null,{"$f":"IF($C$341=\"\",\"\",AD341/$C$341)","v":""},null,{"$f":"IF($C$341=\"\",\"\",AF341/$C$341)","v":""},null,{"$f":"IF($C$341=\"\",\"\",AH341/$C$341)","v":""},null,{"$f":"IF($C$341=\"\",\"\",AJ341/$C$341)","v":""},null,{"$f":"IF($C$341=\"\",\"\",AL341/$C$341)","v":""},null,{"$f":"IF($C$341=\"\",\"\",AN341/$C$341)","v":""},null,{"$f":"IF($C$341=\"\",\"\",AP341/$C$341)","v":""},null,{"$f":"IF($C$341=\"\",\"\",AR341/$C$341)","v":""},null,{"$f":"IF($C$341=\"\",\"\",AT341/$C$341)","v":""},null,{"$f":"IF($C$341=\"\",\"\",AV341/$C$341)","v":""},null,{"$f":"IF($C$341=\"\",\"\",AX341/$C$341)","v":""},null,{"$f":"IF($C$341=\"\",\"\",AZ341/$C$341)","v":""},null,{"$f":"IF($C$341=\"\",\"\",BB341/$C$341)","v":""},null,0]
[null,null,null,null,{"$f":"IF($C$342=\"\",\"\",F342/$C$342)","v":""},null,{"$f":"IF($C$342=\"\",\"\",H342/$C$342)","v":""},null,{"$f":"IF($C$342=\"\",\"\",J342/$C$342)","v":""},null,{"$f":"IF($C$342=\"\",\"\",L342/$C$342)","v":""},null,{"$f":"IF($C$342=\"\",\"\",N342/$C$342)","v":""},null,{"$f":"IF($C$342=\"\",\"\",P342/$C$342)","v":""},null,{"$f":"IF($C$342=\"\",\"\",R342/$C$342)","v":""},null,{"$f":"IF($C$342=\"\",\"\",T342/$C$342)","v":""},null,{"$f":"IF($C$342=\"\",\"\",V342/$C$342)","v":""},null,{"$f":"IF($C$342=\"\",\"\",X342/$C$342)","v":""},null,{"$f":"IF($C$342=\"\",\"\",Z342/$C$342)","v":""},null,{"$f":"IF($C$342=\"\",\"\",AB342/$C$342)","v":""},null,{"$f":"IF($C$342=\"\",\"\",AD342/$C$342)","v":""},null,{"$f":"IF($C$342=\"\",\"\",AF342/$C$342)","v":""},null,{"$f":"IF($C$342=\"\",\"\",AH342/$C$342)","v":""},null,{"$f":"IF($C$342=\"\",\"\",AJ342/$C$342)","v":""},null,{"$f":"IF($C$342=\"\",\"\",AL342/$C$342)","v":""},null,{"$f":"IF($C$342=\"\",\"\",AN342/$C$342)","v":""},null,{"$f":"IF($C$342=\"\",\"\",AP342/$C$342)","v":""},null,{"$f":"IF($C$342=\"\",\"\",AR342/$C$342)","v":""},null,{"$f":"IF($C$342=\"\",\"\",AT342/$C$342)","v":""},null,{"$f":"IF($C$342=\"\",\"\",AV342/$C$342)","v":""},null,{"$f":"IF($C$342=\"\",\"\",AX342/$C$342)","v":""},null,{"$f":"IF($C$342=\"\",\"\",AZ342/$C$342)","v":""},null,{"$f":"IF($C$342=\"\",\"\",BB342/$C$342)","v":""},null,{"$f":"SUM(BB342,AZ342,AX342,AV342,AT342,AR342,AP342,AN342,AL342,AJ342,AH342,AF342,AD342,AB342,Z342,X342,V342,T342,R342,P342,N342,L342,J342,H342,F342)","v":0}]
["TOTAL HOURS",null,null,null,null,{"$f":"SUM(F317:F342)","v":0},null,{"$f":"SUM(H317:H342)","v":0},null,{"$f":"SUM(J317:J342)","v":0},null,{"$f":"SUM(L317:L342)","v":0},null,{"$f":"SUM(N317:N342)","v":0},null,{"$f":"SUM(P317:P342)","v":0},null,{"$f":"SUM(R317:R342)","v":0},null,{"$f":"SUM(T317:T342)","v":0},null,{"$f":"SUM(V317:V342)","v":0},null,{"$f":"SUM(X317:X342)","v":0},null,{"$f":"SUM(Z317:Z342)","v":0},null,{"$f":"SUM(AB317:AB342)","v":0},null,{"$f":"SUM(AD317:AD342)","v":0},null,{"$f":"SUM(AF317:AF342)","v":0},null,{"$f":"SUM(AH317:AH342)","v":0},null,{"$f":"SUM(AJ317:AJ342)","v":0},null,{"$f":"SUM(AL317:AL342)","v":0},null,{"$f":"SUM(AN317:AN342)","v":0},null,{"$f":"SUM(AP317:AP342)","v":0},null,{"$f":"SUM(AR317:AR342)","v":0},null,{"$f":"SUM(AT317:AT342)","v":0},null,{"$f":"SUM(AV317:AV342)","v":0},null,{"$f":"SUM(AX317:AX342)","v":0},null,{"$f":"SUM(AZ317:AZ342)","v":0},null,{"$f":"SUM(BB317:BB342)","v":0},{"$f":"SUM(E343:BB343)","v":0}]
["TOTAL WORKDAYS",null,null,null,null,{"$f":"F343/8","v":0},null,{"$f":"H343/8","v":0},null,{"$f":"J343/8","v":0},null,{"$f":"L343/8","v":0},null,{"$f":"N343/8","v":0},null,{"$f":"P343/8","v":0},null,{"$f":"R343/8","v":0},null,{"$f":"T343/8","v":0},null,{"$f":"V343/8","v":0},null,{"$f":"X343/8","v":0},null,{"$f":"Z343/8","v":0},null,{"$f":"AB343/8","v":0},null,{"$f":"AD343/8","v":0},null,0,null,{"$f":"AH343/8","v":0},null,0,null,{"$f":"AL343/8","v":0},null,0,null,{"$f":"AP343/8","v":0},null,0,null,{"$f":"AT343/8","v":0},null,{"$f":"AV343/8","v":0},null,{"$f":"AX343/8","v":0},null,{"$f":"AZ343/8","v":0},null,{"$f":"BB343/8","v":0},{"$f":"SUM(E344:BB344)","v":0}]
["TOTAL RAW LABOR",null,null,null,null,{"$f":"$E$13*F343","v":0},null,{"$f":"$G$13*H343","v":0},null,{"$f":"$I$13*J343","v":0},null,{"$f":"$K$13*L343","v":0},null,{"$f":"$M$13*N343","v":0},null,{"$f":"$O$13*P343","v":0},null,{"$f":"$Q$13*R343","v":0},null,{"$f":"$S$13*T343","v":0},null,{"$f":"$U$13*V343","v":0},null,{"$f":"$W$13*X343","v":0},null,{"$f":"$Y$13*Z343","v":0},null,{"$f":"$AA$13*AB343","v":0},null,{"$f":"$AC$13*AD343","v":0},null,{"$f":"$AC$13*AF343","v":0},null,{"$f":"$AC$13*AH343","v":0},null,{"$f":"$AC$13*AJ343","v":0},null,{"$f":"$AC$13*AL343","v":0},null,{"$f":"$AC$13*AN343","v":0},null,{"$f":"$AC$13*AP343","v":0},null,{"$f":"$AC$13*AR343","v":0},null,{"$f":"$AC$13*AT343","v":0},null,{"$f":"$AC$13*AV343","v":0},null,{"$f":"$AC$13*AX343","v":0},null,{"$f":"$AC$13*AZ343","v":0},null,{"$f":"$AC$13*BB343","v":0},{"$f":"SUM(E345:BB345)","v":0}]
["Task 13.0     ","ENGINEER'S OPINION OF PROBABLE COST"]
[13.1,"Preliminary Engineer's Opinion of Probable Construction Cost",null,null,{"$f":"IF($C$347=\"\",\"\",F347/$C$347)","v":""},null,{"$f":"IF($C$347=\"\",\"\",H347/$C$347)","v":""},null,{"$f":"IF($C$347=\"\",\"\",J347/$C$347)","v":""},null,{"$f":"IF($C$347=\"\",\"\",L347/$C$347)","v":""},null,{"$f":"IF($C$347=\"\",\"\",N347/$C$347)","v":""},null,{"$f":"IF($C$347=\"\",\"\",P347/$C$347)","v":""},null,{"$f":"IF($C$347=\"\",\"\",R347/$C$347)","v":""},null,{"$f":"IF($C$347=\"\",\"\",T347/$C$347)","v":""},null,{"$f":"IF($C$347=\"\",\"\",V347/$C$347)","v":""},null,{"$f":"IF($C$347=\"\",\"\",X347/$C$347)","v":""},null,{"$f":"IF($C$347=\"\",\"\",Z347/$C$347)","v":""},null,{"$f":"IF($C$347=\"\",\"\",AB347/$C$347)","v":""},null,{"$f":"IF($C$347=\"\",\"\",AD347/$C$347)","v":""},null,{"$f":"IF($C$347=\"\",\"\",AF347/$C$347)","v":""},null,{"$f":"IF($C$347=\"\",\"\",AH347/$C$347)","v":""},null,{"$f":"IF($C$347=\"\",\"\",AJ347/$C$347)","v":""},null,{"$f":"IF($C$347=\"\",\"\",AL347/$C$347)","v":""},null,{"$f":"IF($C$347=\"\",\"\",AN347/$C$347)","v":""},null,{"$f":"IF($C$347=\"\",\"\",AP347/$C$347)","v":""},null,{"$f":"IF($C$347=\"\",\"\",AR347/$C$347)","v":""},null,{"$f":"IF($C$347=\"\",\"\",AT347/$C$347)","v":""},null,{"$f":"IF($C$347=\"\",\"\",AV347/$C$347)","v":""},null,{"$f":"IF($C$347=\"\",\"\",AX347/$C$347)","v":""},null,{"$f":"IF($C$347=\"\",\"\",AZ347/$C$347)","v":""},null,{"$f":"IF($C$347=\"\",\"\",BB347/$C$347)","v":""},null,{"$f":"SUM(BB347,AZ347,AX347,AV347,AT347,AR347,AP347,AN347,AL347,AJ347,AH347,AF347,AD347,AB347,Z347,X347,V347,T347,R347,P347,N347,L347,J347,H347,F347)","v":0}]
[13.2,"Draft Final Engineer's Opinion of Probable Construction Cost",null,null,{"$f":"IF($C$348=\"\",\"\",F348/$C$348)","v":""},null,{"$f":"IF($C$348=\"\",\"\",H348/$C$348)","v":""},null,{"$f":"IF($C$348=\"\",\"\",J348/$C$348)","v":""},null,{"$f":"IF($C$348=\"\",\"\",L348/$C$348)","v":""},null,{"$f":"IF($C$348=\"\",\"\",N348/$C$348)","v":""},null,{"$f":"IF($C$348=\"\",\"\",P348/$C$348)","v":""},null,{"$f":"IF($C$348=\"\",\"\",R348/$C$348)","v":""},null,{"$f":"IF($C$348=\"\",\"\",T348/$C$348)","v":""},null,{"$f":"IF($C$348=\"\",\"\",V348/$C$348)","v":""},null,{"$f":"IF($C$348=\"\",\"\",X348/$C$348)","v":""},null,{"$f":"IF($C$348=\"\",\"\",Z348/$C$348)","v":""},null,{"$f":"IF($C$348=\"\",\"\",AB348/$C$348)","v":""},null,{"$f":"IF($C$348=\"\",\"\",AD348/$C$348)","v":""},null,{"$f":"IF($C$348=\"\",\"\",AF348/$C$348)","v":""},null,{"$f":"IF($C$348=\"\",\"\",AH348/$C$348)","v":""},null,{"$f":"IF($C$348=\"\",\"\",AJ348/$C$348)","v":""},null,{"$f":"IF($C$348=\"\",\"\",AL348/$C$348)","v":""},null,{"$f":"IF($C$348=\"\",\"\",AN348/$C$348)","v":""},null,{"$f":"IF($C$348=\"\",\"\",AP348/$C$348)","v":""},null,{"$f":"IF($C$348=\"\",\"\",AR348/$C$348)","v":""},null,{"$f":"IF($C$348=\"\",\"\",AT348/$C$348)","v":""},null,{"$f":"IF($C$348=\"\",\"\",AV348/$C$348)","v":""},null,{"$f":"IF($C$348=\"\",\"\",AX348/$C$348)","v":""},null,{"$f":"IF($C$348=\"\",\"\",AZ348/$C$348)","v":""},null,{"$f":"IF($C$348=\"\",\"\",BB348/$C$348)","v":""},null,0]
[13.3,"Final Engineer's Opinion of Probable Construction Cost",null,null,{"$f":"IF($C$349=\"\",\"\",F349/$C$349)","v":""},null,{"$f":"IF($C$349=\"\",\"\",H349/$C$349)","v":""},null,{"$f":"IF($C$349=\"\",\"\",J349/$C$349)","v":""},null,{"$f":"IF($C$349=\"\",\"\",L349/$C$349)","v":""},null,{"$f":"IF($C$349=\"\",\"\",N349/$C$349)","v":""},null,{"$f":"IF($C$349=\"\",\"\",P349/$C$349)","v":""},null,{"$f":"IF($C$349=\"\",\"\",R349/$C$349)","v":""},null,{"$f":"IF($C$349=\"\",\"\",T349/$C$349)","v":""},null,{"$f":"IF($C$349=\"\",\"\",V349/$C$349)","v":""},null,{"$f":"IF($C$349=\"\",\"\",X349/$C$349)","v":""},null,{"$f":"IF($C$349=\"\",\"\",Z349/$C$349)","v":""},null,{"$f":"IF($C$349=\"\",\"\",AB349/$C$349)","v":""},null,{"$f":"IF($C$349=\"\",\"\",AD349/$C$349)","v":""},null,{"$f":"IF($C$349=\"\",\"\",AF349/$C$349)","v":""},null,{"$f":"IF($C$349=\"\",\"\",AH349/$C$349)","v":""},null,{"$f":"IF($C$349=\"\",\"\",AJ349/$C$349)","v":""},null,{"$f":"IF($C$349=\"\",\"\",AL349/$C$349)","v":""},null,{"$f":"IF($C$349=\"\",\"\",AN349/$C$349)","v":""},null,{"$f":"IF($C$349=\"\",\"\",AP349/$C$349)","v":""},null,{"$f":"IF($C$349=\"\",\"\",AR349/$C$349)","v":""},null,{"$f":"IF($C$349=\"\",\"\",AT349/$C$349)","v":""},null,{"$f":"IF($C$349=\"\",\"\",AV349/$C$349)","v":""},null,{"$f":"IF($C$349=\"\",\"\",AX349/$C$349)","v":""},null,{"$f":"IF($C$349=\"\",\"\",AZ349/$C$349)","v":""},null,{"$f":"IF($C$349=\"\",\"\",BB349/$C$349)","v":""},null,0]
[null,null,null,null,{"$f":"IF($C$350=\"\",\"\",F350/$C$350)","v":""},null,{"$f":"IF($C$350=\"\",\"\",H350/$C$350)","v":""},null,{"$f":"IF($C$350=\"\",\"\",J350/$C$350)","v":""},null,{"$f":"IF($C$350=\"\",\"\",L350/$C$350)","v":""},null,{"$f":"IF($C$350=\"\",\"\",N350/$C$350)","v":""},null,{"$f":"IF($C$350=\"\",\"\",P350/$C$350)","v":""},null,{"$f":"IF($C$350=\"\",\"\",R350/$C$350)","v":""},null,{"$f":"IF($C$350=\"\",\"\",T350/$C$350)","v":""},null,{"$f":"IF($C$350=\"\",\"\",V350/$C$350)","v":""},null,{"$f":"IF($C$350=\"\",\"\",X350/$C$350)","v":""},null,{"$f":"IF($C$350=\"\",\"\",Z350/$C$350)","v":""},null,{"$f":"IF($C$350=\"\",\"\",AB350/$C$350)","v":""},null,{"$f":"IF($C$350=\"\",\"\",AD350/$C$350)","v":""},null,{"$f":"IF($C$350=\"\",\"\",AF350/$C$350)","v":""},null,{"$f":"IF($C$350=\"\",\"\",AH350/$C$350)","v":""},null,{"$f":"IF($C$350=\"\",\"\",AJ350/$C$350)","v":""},null,{"$f":"IF($C$350=\"\",\"\",AL350/$C$350)","v":""},null,{"$f":"IF($C$350=\"\",\"\",AN350/$C$350)","v":""},null,{"$f":"IF($C$350=\"\",\"\",AP350/$C$350)","v":""},null,{"$f":"IF($C$350=\"\",\"\",AR350/$C$350)","v":""},null,{"$f":"IF($C$350=\"\",\"\",AT350/$C$350)","v":""},null,{"$f":"IF($C$350=\"\",\"\",AV350/$C$350)","v":""},null,{"$f":"IF($C$350=\"\",\"\",AX350/$C$350)","v":""},null,{"$f":"IF($C$350=\"\",\"\",AZ350/$C$350)","v":""},null,{"$f":"IF($C$350=\"\",\"\",BB350/$C$350)","v":""},null,0]
[null,null,null,null,{"$f":"IF($C$351=\"\",\"\",F351/$C$351)","v":""},null,{"$f":"IF($C$351=\"\",\"\",H351/$C$351)","v":""},null,{"$f":"IF($C$351=\"\",\"\",J351/$C$351)","v":""},null,{"$f":"IF($C$351=\"\",\"\",L351/$C$351)","v":""},null,{"$f":"IF($C$351=\"\",\"\",N351/$C$351)","v":""},null,{"$f":"IF($C$351=\"\",\"\",P351/$C$351)","v":""},null,{"$f":"IF($C$351=\"\",\"\",R351/$C$351)","v":""},null,{"$f":"IF($C$351=\"\",\"\",T351/$C$351)","v":""},null,{"$f":"IF($C$351=\"\",\"\",V351/$C$351)","v":""},null,{"$f":"IF($C$351=\"\",\"\",X351/$C$351)","v":""},null,{"$f":"IF($C$351=\"\",\"\",Z351/$C$351)","v":""},null,{"$f":"IF($C$351=\"\",\"\",AB351/$C$351)","v":""},null,{"$f":"IF($C$351=\"\",\"\",AD351/$C$351)","v":""},null,{"$f":"IF($C$351=\"\",\"\",AF351/$C$351)","v":""},null,{"$f":"IF($C$351=\"\",\"\",AH351/$C$351)","v":""},null,{"$f":"IF($C$351=\"\",\"\",AJ351/$C$351)","v":""},null,{"$f":"IF($C$351=\"\",\"\",AL351/$C$351)","v":""},null,{"$f":"IF($C$351=\"\",\"\",AN351/$C$351)","v":""},null,{"$f":"IF($C$351=\"\",\"\",AP351/$C$351)","v":""},null,{"$f":"IF($C$351=\"\",\"\",AR351/$C$351)","v":""},null,{"$f":"IF($C$351=\"\",\"\",AT351/$C$351)","v":""},null,{"$f":"IF($C$351=\"\",\"\",AV351/$C$351)","v":""},null,{"$f":"IF($C$351=\"\",\"\",AX351/$C$351)","v":""},null,{"$f":"IF($C$351=\"\",\"\",AZ351/$C$351)","v":""},null,{"$f":"IF($C$351=\"\",\"\",BB351/$C$351)","v":""},null,0]
[null,null,null,null,{"$f":"IF($C$352=\"\",\"\",F352/$C$352)","v":""},null,{"$f":"IF($C$352=\"\",\"\",H352/$C$352)","v":""},null,{"$f":"IF($C$352=\"\",\"\",J352/$C$352)","v":""},null,{"$f":"IF($C$352=\"\",\"\",L352/$C$352)","v":""},null,{"$f":"IF($C$352=\"\",\"\",N352/$C$352)","v":""},null,{"$f":"IF($C$352=\"\",\"\",P352/$C$352)","v":""},null,{"$f":"IF($C$352=\"\",\"\",R352/$C$352)","v":""},null,{"$f":"IF($C$352=\"\",\"\",T352/$C$352)","v":""},null,{"$f":"IF($C$352=\"\",\"\",V352/$C$352)","v":""},null,{"$f":"IF($C$352=\"\",\"\",X352/$C$352)","v":""},null,{"$f":"IF($C$352=\"\",\"\",Z352/$C$352)","v":""},null,{"$f":"IF($C$352=\"\",\"\",AB352/$C$352)","v":""},null,{"$f":"IF($C$352=\"\",\"\",AD352/$C$352)","v":""},null,{"$f":"IF($C$352=\"\",\"\",AF352/$C$352)","v":""},null,{"$f":"IF($C$352=\"\",\"\",AH352/$C$352)","v":""},null,{"$f":"IF($C$352=\"\",\"\",AJ352/$C$352)","v":""},null,{"$f":"IF($C$352=\"\",\"\",AL352/$C$352)","v":""},null,{"$f":"IF($C$352=\"\",\"\",AN352/$C$352)","v":""},null,{"$f":"IF($C$352=\"\",\"\",AP352/$C$352)","v":""},null,{"$f":"IF($C$352=\"\",\"\",AR352/$C$352)","v":""},null,{"$f":"IF($C$352=\"\",\"\",AT352/$C$352)","v":""},null,{"$f":"IF($C$352=\"\",\"\",AV352/$C$352)","v":""},null,{"$f":"IF($C$352=\"\",\"\",AX352/$C$352)","v":""},null,{"$f":"IF($C$352=\"\",\"\",AZ352/$C$352)","v":""},null,{"$f":"IF($C$352=\"\",\"\",BB352/$C$352)","v":""},null,0]
[null,null,null,null,{"$f":"IF($C$353=\"\",\"\",F353/$C$353)","v":""},null,{"$f":"IF($C$353=\"\",\"\",H353/$C$353)","v":""},null,{"$f":"IF($C$353=\"\",\"\",J353/$C$353)","v":""},null,{"$f":"IF($C$353=\"\",\"\",L353/$C$353)","v":""},null,{"$f":"IF($C$353=\"\",\"\",N353/$C$353)","v":""},null,{"$f":"IF($C$353=\"\",\"\",P353/$C$353)","v":""},null,{"$f":"IF($C$353=\"\",\"\",R353/$C$353)","v":""},null,{"$f":"IF($C$353=\"\",\"\",T353/$C$353)","v":""},null,{"$f":"IF($C$353=\"\",\"\",V353/$C$353)","v":""},null,{"$f":"IF($C$353=\"\",\"\",X353/$C$353)","v":""},null,{"$f":"IF($C$353=\"\",\"\",Z353/$C$353)","v":""},null,{"$f":"IF($C$353=\"\",\"\",AB353/$C$353)","v":""},null,{"$f":"IF($C$353=\"\",\"\",AD353/$C$353)","v":""},null,{"$f":"IF($C$353=\"\",\"\",AF353/$C$353)","v":""},null,{"$f":"IF($C$353=\"\",\"\",AH353/$C$353)","v":""},null,{"$f":"IF($C$353=\"\",\"\",AJ353/$C$353)","v":""},null,{"$f":"IF($C$353=\"\",\"\",AL353/$C$353)","v":""},null,{"$f":"IF($C$353=\"\",\"\",AN353/$C$353)","v":""},null,{"$f":"IF($C$353=\"\",\"\",AP353/$C$353)","v":""},null,{"$f":"IF($C$353=\"\",\"\",AR353/$C$353)","v":""},null,{"$f":"IF($C$353=\"\",\"\",AT353/$C$353)","v":""},null,{"$f":"IF($C$353=\"\",\"\",AV353/$C$353)","v":""},null,{"$f":"IF($C$353=\"\",\"\",AX353/$C$353)","v":""},null,{"$f":"IF($C$353=\"\",\"\",AZ353/$C$353)","v":""},null,{"$f":"IF($C$353=\"\",\"\",BB353/$C$353)","v":""},null,0]
[null,null,null,null,{"$f":"IF($C$354=\"\",\"\",F354/$C$354)","v":""},null,{"$f":"IF($C$354=\"\",\"\",H354/$C$354)","v":""},null,{"$f":"IF($C$354=\"\",\"\",J354/$C$354)","v":""},null,{"$f":"IF($C$354=\"\",\"\",L354/$C$354)","v":""},null,{"$f":"IF($C$354=\"\",\"\",N354/$C$354)","v":""},null,{"$f":"IF($C$354=\"\",\"\",P354/$C$354)","v":""},null,{"$f":"IF($C$354=\"\",\"\",R354/$C$354)","v":""},null,{"$f":"IF($C$354=\"\",\"\",T354/$C$354)","v":""},null,{"$f":"IF($C$354=\"\",\"\",V354/$C$354)","v":""},null,{"$f":"IF($C$354=\"\",\"\",X354/$C$354)","v":""},null,{"$f":"IF($C$354=\"\",\"\",Z354/$C$354)","v":""},null,{"$f":"IF($C$354=\"\",\"\",AB354/$C$354)","v":""},null,{"$f":"IF($C$354=\"\",\"\",AD354/$C$354)","v":""},null,{"$f":"IF($C$354=\"\",\"\",AF354/$C$354)","v":""},null,{"$f":"IF($C$354=\"\",\"\",AH354/$C$354)","v":""},null,{"$f":"IF($C$354=\"\",\"\",AJ354/$C$354)","v":""},null,{"$f":"IF($C$354=\"\",\"\",AL354/$C$354)","v":""},null,{"$f":"IF($C$354=\"\",\"\",AN354/$C$354)","v":""},null,{"$f":"IF($C$354=\"\",\"\",AP354/$C$354)","v":""},null,{"$f":"IF($C$354=\"\",\"\",AR354/$C$354)","v":""},null,{"$f":"IF($C$354=\"\",\"\",AT354/$C$354)","v":""},null,{"$f":"IF($C$354=\"\",\"\",AV354/$C$354)","v":""},null,{"$f":"IF($C$354=\"\",\"\",AX354/$C$354)","v":""},null,{"$f":"IF($C$354=\"\",\"\",AZ354/$C$354)","v":""},null,{"$f":"IF($C$354=\"\",\"\",BB354/$C$354)","v":""},null,0]
[null,null,null,null,{"$f":"IF($C$355=\"\",\"\",F355/$C$355)","v":""},null,{"$f":"IF($C$355=\"\",\"\",H355/$C$355)","v":""},null,{"$f":"IF($C$355=\"\",\"\",J355/$C$355)","v":""},null,{"$f":"IF($C$355=\"\",\"\",L355/$C$355)","v":""},null,{"$f":"IF($C$355=\"\",\"\",N355/$C$355)","v":""},null,{"$f":"IF($C$355=\"\",\"\",P355/$C$355)","v":""},null,{"$f":"IF($C$355=\"\",\"\",R355/$C$355)","v":""},null,{"$f":"IF($C$355=\"\",\"\",T355/$C$355)","v":""},null,{"$f":"IF($C$355=\"\",\"\",V355/$C$355)","v":""},null,{"$f":"IF($C$355=\"\",\"\",X355/$C$355)","v":""},null,{"$f":"IF($C$355=\"\",\"\",Z355/$C$355)","v":""},null,{"$f":"IF($C$355=\"\",\"\",AB355/$C$355)","v":""},null,{"$f":"IF($C$355=\"\",\"\",AD355/$C$355)","v":""},null,{"$f":"IF($C$355=\"\",\"\",AF355/$C$355)","v":""},null,{"$f":"IF($C$355=\"\",\"\",AH355/$C$355)","v":""},null,{"$f":"IF($C$355=\"\",\"\",AJ355/$C$355)","v":""},null,{"$f":"IF($C$355=\"\",\"\",AL355/$C$355)","v":""},null,{"$f":"IF($C$355=\"\",\"\",AN355/$C$355)","v":""},null,{"$f":"IF($C$355=\"\",\"\",AP355/$C$355)","v":""},null,{"$f":"IF($C$355=\"\",\"\",AR355/$C$355)","v":""},null,{"$f":"IF($C$355=\"\",\"\",AT355/$C$355)","v":""},null,{"$f":"IF($C$355=\"\",\"\",AV355/$C$355)","v":""},null,{"$f":"IF($C$355=\"\",\"\",AX355/$C$355)","v":""},null,{"$f":"IF($C$355=\"\",\"\",AZ355/$C$355)","v":""},null,{"$f":"IF($C$355=\"\",\"\",BB355/$C$355)","v":""},null,0]
[null,null,null,null,{"$f":"IF($C$356=\"\",\"\",F356/$C$356)","v":""},null,{"$f":"IF($C$356=\"\",\"\",H356/$C$356)","v":""},null,{"$f":"IF($C$356=\"\",\"\",J356/$C$356)","v":""},null,{"$f":"IF($C$356=\"\",\"\",L356/$C$356)","v":""},null,{"$f":"IF($C$356=\"\",\"\",N356/$C$356)","v":""},null,{"$f":"IF($C$356=\"\",\"\",P356/$C$356)","v":""},null,{"$f":"IF($C$356=\"\",\"\",R356/$C$356)","v":""},null,{"$f":"IF($C$356=\"\",\"\",T356/$C$356)","v":""},null,{"$f":"IF($C$356=\"\",\"\",V356/$C$356)","v":""},null,{"$f":"IF($C$356=\"\",\"\",X356/$C$356)","v":""},null,{"$f":"IF($C$356=\"\",\"\",Z356/$C$356)","v":""},null,{"$f":"IF($C$356=\"\",\"\",AB356/$C$356)","v":""},null,{"$f":"IF($C$356=\"\",\"\",AD356/$C$356)","v":""},null,{"$f":"IF($C$356=\"\",\"\",AF356/$C$356)","v":""},null,{"$f":"IF($C$356=\"\",\"\",AH356/$C$356)","v":""},null,{"$f":"IF($C$356=\"\",\"\",AJ356/$C$356)","v":""},null,{"$f":"IF($C$356=\"\",\"\",AL356/$C$356)","v":""},null,{"$f":"IF($C$356=\"\",\"\",AN356/$C$356)","v":""},null,{"$f":"IF($C$356=\"\",\"\",AP356/$C$356)","v":""},null,{"$f":"IF($C$356=\"\",\"\",AR356/$C$356)","v":""},null,{"$f":"IF($C$356=\"\",\"\",AT356/$C$356)","v":""},null,{"$f":"IF($C$356=\"\",\"\",AV356/$C$356)","v":""},null,{"$f":"IF($C$356=\"\",\"\",AX356/$C$356)","v":""},null,{"$f":"IF($C$356=\"\",\"\",AZ356/$C$356)","v":""},null,{"$f":"IF($C$356=\"\",\"\",BB356/$C$356)","v":""},null,{"$f":"SUM(BB356,AZ356,AX356,AV356,AT356,AR356,AP356,AN356,AL356,AJ356,AH356,AF356,AD356,AB356,Z356,X356,V356,T356,R356,P356,N356,L356,J356,H356,F356)","v":0}]
["TOTAL HOURS",null,null,null,null,{"$f":"SUM(F347:F356)","v":0},null,{"$f":"SUM(H347:H356)","v":0},null,{"$f":"SUM(J347:J356)","v":0},null,{"$f":"SUM(L347:L356)","v":0},null,{"$f":"SUM(N347:N356)","v":0},null,{"$f":"SUM(P347:P356)","v":0},null,{"$f":"SUM(R347:R356)","v":0},null,{"$f":"SUM(T347:T356)","v":0},null,{"$f":"SUM(V347:V356)","v":0},null,{"$f":"SUM(X347:X356)","v":0},null,{"$f":"SUM(Z347:Z356)","v":0},null,{"$f":"SUM(AB347:AB356)","v":0},null,{"$f":"SUM(AD347:AD356)","v":0},null,{"$f":"SUM(AF347:AF356)","v":0},null,{"$f":"SUM(AH347:AH356)","v":0},null,{"$f":"SUM(AJ347:AJ356)","v":0},null,{"$f":"SUM(AL347:AL356)","v":0},null,{"$f":"SUM(AN347:AN356)","v":0},null,{"$f":"SUM(AP347:AP356)","v":0},null,{"$f":"SUM(AR347:AR356)","v":0},null,{"$f":"SUM(AT347:AT356)","v":0},null,{"$f":"SUM(AV347:AV356)","v":0},null,{"$f":"SUM(AX347:AX356)","v":0},null,{"$f":"SUM(AZ347:AZ356)","v":0},null,{"$f":"SUM(BB347:BB356)","v":0},{"$f":"SUM(E357:BB357)","v":0}]
["TOTAL WORKDAYS",null,null,null,null,{"$f":"F357/8","v":0},null,{"$f":"H357/8","v":0},null,{"$f":"J357/8","v":0},null,{"$f":"L357/8","v":0},null,{"$f":"N357/8","v":0},null,{"$f":"P357/8","v":0},null,{"$f":"R357/8","v":0},null,{"$f":"T357/8","v":0},null,{"$f":"V357/8","v":0},null,{"$f":"X357/8","v":0},null,{"$f":"Z357/8","v":0},null,{"$f":"AB357/8","v":0},null,{"$f":"AD357/8","v":0},null,0,null,{"$f":"AH357/8","v":0},null,0,null,{"$f":"AL357/8","v":0},null,0,null,{"$f":"AP357/8","v":0},null,0,null,{"$f":"AT357/8","v":0},null,{"$f":"AV357/8","v":0},null,{"$f":"AX357/8","v":0},null,{"$f":"AZ357/8","v":0},null,{"$f":"BB357/8","v":0},{"$f":"SUM(E358:BB358)","v":0}]
["TOTAL RAW LABOR",null,null,null,null,{"$f":"$E$13*F357","v":0},null,{"$f":"$G$13*H357","v":0},null,{"$f":"$I$13*J357","v":0},null,{"$f":"$K$13*L357","v":0},null,{"$f":"$M$13*N357","v":0},null,{"$f":"$O$13*P357","v":0},null,{"$f":"$Q$13*R357","v":0},null,{"$f":"$S$13*T357","v":0},null,{"$f":"$U$13*V357","v":0},null,{"$f":"$W$13*X357","v":0},null,{"$f":"$Y$13*Z357","v":0},null,{"$f":"$AA$13*AB357","v":0},null,{"$f":"$AC$13*AD357","v":0},null,{"$f":"$AC$13*AF357","v":0},null,{"$f":"$AC$13*AH357","v":0},null,{"$f":"$AC$13*AJ357","v":0},null,{"$f":"$AC$13*AL357","v":0},null,{"$f":"$AC$13*AN357","v":0},null,{"$f":"$AC$13*AP357","v":0},null,{"$f":"$AC$13*AR357","v":0},null,{"$f":"$AC$13*AT357","v":0},null,{"$f":"$AC$13*AV357","v":0},null,{"$f":"$AC$13*AX357","v":0},null,{"$f":"$AC$13*AZ357","v":0},null,{"$f":"$AC$13*BB357","v":0},{"$f":"SUM(E359:BB359)","v":0}]
["Task 14.0     ","PREPARE PS&E DELIVERABLES AND FINAL DOCUMENTATION"]
[14.1,"Prepare PS&E Submittal Deliverables",null,null,{"$f":"IF($C$361=\"\",\"\",F361/$C$361)","v":""},null,{"$f":"IF($C$361=\"\",\"\",H361/$C$361)","v":""},null,{"$f":"IF($C$361=\"\",\"\",J361/$C$361)","v":""},null,{"$f":"IF($C$361=\"\",\"\",L361/$C$361)","v":""},null,{"$f":"IF($C$361=\"\",\"\",N361/$C$361)","v":""},null,{"$f":"IF($C$361=\"\",\"\",P361/$C$361)","v":""},null,{"$f":"IF($C$361=\"\",\"\",R361/$C$361)","v":""},null,{"$f":"IF($C$361=\"\",\"\",T361/$C$361)","v":""},null,{"$f":"IF($C$361=\"\",\"\",V361/$C$361)","v":""},null,{"$f":"IF($C$361=\"\",\"\",X361/$C$361)","v":""},null,{"$f":"IF($C$361=\"\",\"\",Z361/$C$361)","v":""},null,{"$f":"IF($C$361=\"\",\"\",AB361/$C$361)","v":""},null,{"$f":"IF($C$361=\"\",\"\",AD361/$C$361)","v":""},null,{"$f":"IF($C$361=\"\",\"\",AF361/$C$361)","v":""},null,{"$f":"IF($C$361=\"\",\"\",AH361/$C$361)","v":""},null,{"$f":"IF($C$361=\"\",\"\",AJ361/$C$361)","v":""},null,{"$f":"IF($C$361=\"\",\"\",AL361/$C$361)","v":""},null,{"$f":"IF($C$361=\"\",\"\",AN361/$C$361)","v":""},null,{"$f":"IF($C$361=\"\",\"\",AP361/$C$361)","v":""},null,{"$f":"IF($C$361=\"\",\"\",AR361/$C$361)","v":""},null,{"$f":"IF($C$361=\"\",\"\",AT361/$C$361)","v":""},null,{"$f":"IF($C$361=\"\",\"\",AV361/$C$361)","v":""},null,{"$f":"IF($C$361=\"\",\"\",AX361/$C$361)","v":""},null,{"$f":"IF($C$361=\"\",\"\",AZ361/$C$361)","v":""},null,{"$f":"IF($C$361=\"\",\"\",BB361/$C$361)","v":""},null,{"$f":"SUM(BB361,AZ361,AX361,AV361,AT361,AR361,AP361,AN361,AL361,AJ361,AH361,AF361,AD361,AB361,Z361,X361,V361,T361,R361,P361,N361,L361,J361,H361,F361)","v":0}]
[14.2,"PS&E Submittal Review Meetings",null,null,{"$f":"IF($C$362=\"\",\"\",F362/$C$362)","v":""},null,{"$f":"IF($C$362=\"\",\"\",H362/$C$362)","v":""},null,{"$f":"IF($C$362=\"\",\"\",J362/$C$362)","v":""},null,{"$f":"IF($C$362=\"\",\"\",L362/$C$362)","v":""},null,{"$f":"IF($C$362=\"\",\"\",N362/$C$362)","v":""},null,{"$f":"IF($C$362=\"\",\"\",P362/$C$362)","v":""},null,{"$f":"IF($C$362=\"\",\"\",R362/$C$362)","v":""},null,{"$f":"IF($C$362=\"\",\"\",T362/$C$362)","v":""},null,{"$f":"IF($C$362=\"\",\"\",V362/$C$362)","v":""},null,{"$f":"IF($C$362=\"\",\"\",X362/$C$362)","v":""},null,{"$f":"IF($C$362=\"\",\"\",Z362/$C$362)","v":""},null,{"$f":"IF($C$362=\"\",\"\",AB362/$C$362)","v":""},null,{"$f":"IF($C$362=\"\",\"\",AD362/$C$362)","v":""},null,{"$f":"IF($C$362=\"\",\"\",AF362/$C$362)","v":""},null,{"$f":"IF($C$362=\"\",\"\",AH362/$C$362)","v":""},null,{"$f":"IF($C$362=\"\",\"\",AJ362/$C$362)","v":""},null,{"$f":"IF($C$362=\"\",\"\",AL362/$C$362)","v":""},null,{"$f":"IF($C$362=\"\",\"\",AN362/$C$362)","v":""},null,{"$f":"IF($C$362=\"\",\"\",AP362/$C$362)","v":""},null,{"$f":"IF($C$362=\"\",\"\",AR362/$C$362)","v":""},null,{"$f":"IF($C$362=\"\",\"\",AT362/$C$362)","v":""},null,{"$f":"IF($C$362=\"\",\"\",AV362/$C$362)","v":""},null,{"$f":"IF($C$362=\"\",\"\",AX362/$C$362)","v":""},null,{"$f":"IF($C$362=\"\",\"\",AZ362/$C$362)","v":""},null,{"$f":"IF($C$362=\"\",\"\",BB362/$C$362)","v":""},null,0]
[14.3,"Prepare CD/DVD/USB Jump Drive of PS&E Files",null,null,{"$f":"IF($C$363=\"\",\"\",F363/$C$363)","v":""},null,{"$f":"IF($C$363=\"\",\"\",H363/$C$363)","v":""},null,{"$f":"IF($C$363=\"\",\"\",J363/$C$363)","v":""},null,{"$f":"IF($C$363=\"\",\"\",L363/$C$363)","v":""},null,{"$f":"IF($C$363=\"\",\"\",N363/$C$363)","v":""},null,{"$f":"IF($C$363=\"\",\"\",P363/$C$363)","v":""},null,{"$f":"IF($C$363=\"\",\"\",R363/$C$363)","v":""},null,{"$f":"IF($C$363=\"\",\"\",T363/$C$363)","v":""},null,{"$f":"IF($C$363=\"\",\"\",V363/$C$363)","v":""},null,{"$f":"IF($C$363=\"\",\"\",X363/$C$363)","v":""},null,{"$f":"IF($C$363=\"\",\"\",Z363/$C$363)","v":""},null,{"$f":"IF($C$363=\"\",\"\",AB363/$C$363)","v":""},null,{"$f":"IF($C$363=\"\",\"\",AD363/$C$363)","v":""},null,{"$f":"IF($C$363=\"\",\"\",AF363/$C$363)","v":""},null,{"$f":"IF($C$363=\"\",\"\",AH363/$C$363)","v":""},null,{"$f":"IF($C$363=\"\",\"\",AJ363/$C$363)","v":""},null,{"$f":"IF($C$363=\"\",\"\",AL363/$C$363)","v":""},null,{"$f":"IF($C$363=\"\",\"\",AN363/$C$363)","v":""},null,{"$f":"IF($C$363=\"\",\"\",AP363/$C$363)","v":""},null,{"$f":"IF($C$363=\"\",\"\",AR363/$C$363)","v":""},null,{"$f":"IF($C$363=\"\",\"\",AT363/$C$363)","v":""},null,{"$f":"IF($C$363=\"\",\"\",AV363/$C$363)","v":""},null,{"$f":"IF($C$363=\"\",\"\",AX363/$C$363)","v":""},null,{"$f":"IF($C$363=\"\",\"\",AZ363/$C$363)","v":""},null,{"$f":"IF($C$363=\"\",\"\",BB363/$C$363)","v":""},null,0]
[14.4,"Electronic transfer of files to the Department",null,null,{"$f":"IF($C$364=\"\",\"\",F364/$C$364)","v":""},null,{"$f":"IF($C$364=\"\",\"\",H364/$C$364)","v":""},null,{"$f":"IF($C$364=\"\",\"\",J364/$C$364)","v":""},null,{"$f":"IF($C$364=\"\",\"\",L364/$C$364)","v":""},null,{"$f":"IF($C$364=\"\",\"\",N364/$C$364)","v":""},null,{"$f":"IF($C$364=\"\",\"\",P364/$C$364)","v":""},null,{"$f":"IF($C$364=\"\",\"\",R364/$C$364)","v":""},null,{"$f":"IF($C$364=\"\",\"\",T364/$C$364)","v":""},null,{"$f":"IF($C$364=\"\",\"\",V364/$C$364)","v":""},null,{"$f":"IF($C$364=\"\",\"\",X364/$C$364)","v":""},null,{"$f":"IF($C$364=\"\",\"\",Z364/$C$364)","v":""},null,{"$f":"IF($C$364=\"\",\"\",AB364/$C$364)","v":""},null,{"$f":"IF($C$364=\"\",\"\",AD364/$C$364)","v":""},null,{"$f":"IF($C$364=\"\",\"\",AF364/$C$364)","v":""},null,{"$f":"IF($C$364=\"\",\"\",AH364/$C$364)","v":""},null,{"$f":"IF($C$364=\"\",\"\",AJ364/$C$364)","v":""},null,{"$f":"IF($C$364=\"\",\"\",AL364/$C$364)","v":""},null,{"$f":"IF($C$364=\"\",\"\",AN364/$C$364)","v":""},null,{"$f":"IF($C$364=\"\",\"\",AP364/$C$364)","v":""},null,{"$f":"IF($C$364=\"\",\"\",AR364/$C$364)","v":""},null,{"$f":"IF($C$364=\"\",\"\",AT364/$C$364)","v":""},null,{"$f":"IF($C$364=\"\",\"\",AV364/$C$364)","v":""},null,{"$f":"IF($C$364=\"\",\"\",AX364/$C$364)","v":""},null,{"$f":"IF($C$364=\"\",\"\",AZ364/$C$364)","v":""},null,{"$f":"IF($C$364=\"\",\"\",BB364/$C$364)","v":""},null,0]
[null,null,null,null,{"$f":"IF($C$365=\"\",\"\",F365/$C$365)","v":""},null,{"$f":"IF($C$365=\"\",\"\",H365/$C$365)","v":""},null,{"$f":"IF($C$365=\"\",\"\",J365/$C$365)","v":""},null,{"$f":"IF($C$365=\"\",\"\",L365/$C$365)","v":""},null,{"$f":"IF($C$365=\"\",\"\",N365/$C$365)","v":""},null,{"$f":"IF($C$365=\"\",\"\",P365/$C$365)","v":""},null,{"$f":"IF($C$365=\"\",\"\",R365/$C$365)","v":""},null,{"$f":"IF($C$365=\"\",\"\",T365/$C$365)","v":""},null,{"$f":"IF($C$365=\"\",\"\",V365/$C$365)","v":""},null,{"$f":"IF($C$365=\"\",\"\",X365/$C$365)","v":""},null,{"$f":"IF($C$365=\"\",\"\",Z365/$C$365)","v":""},null,{"$f":"IF($C$365=\"\",\"\",AB365/$C$365)","v":""},null,{"$f":"IF($C$365=\"\",\"\",AD365/$C$365)","v":""},null,{"$f":"IF($C$365=\"\",\"\",AF365/$C$365)","v":""},null,{"$f":"IF($C$365=\"\",\"\",AH365/$C$365)","v":""},null,{"$f":"IF($C$365=\"\",\"\",AJ365/$C$365)","v":""},null,{"$f":"IF($C$365=\"\",\"\",AL365/$C$365)","v":""},null,{"$f":"IF($C$365=\"\",\"\",AN365/$C$365)","v":""},null,{"$f":"IF($C$365=\"\",\"\",AP365/$C$365)","v":""},null,{"$f":"IF($C$365=\"\",\"\",AR365/$C$365)","v":""},null,{"$f":"IF($C$365=\"\",\"\",AT365/$C$365)","v":""},null,{"$f":"IF($C$365=\"\",\"\",AV365/$C$365)","v":""},null,{"$f":"IF($C$365=\"\",\"\",AX365/$C$365)","v":""},null,{"$f":"IF($C$365=\"\",\"\",AZ365/$C$365)","v":""},null,{"$f":"IF($C$365=\"\",\"\",BB365/$C$365)","v":""},null,0]
[null,null,null,null,{"$f":"IF($C$366=\"\",\"\",F366/$C$366)","v":""},null,{"$f":"IF($C$366=\"\",\"\",H366/$C$366)","v":""},null,{"$f":"IF($C$366=\"\",\"\",J366/$C$366)","v":""},null,{"$f":"IF($C$366=\"\",\"\",L366/$C$366)","v":""},null,{"$f":"IF($C$366=\"\",\"\",N366/$C$366)","v":""},null,{"$f":"IF($C$366=\"\",\"\",P366/$C$366)","v":""},null,{"$f":"IF($C$366=\"\",\"\",R366/$C$366)","v":""},null,{"$f":"IF($C$366=\"\",\"\",T366/$C$366)","v":""},null,{"$f":"IF($C$366=\"\",\"\",V366/$C$366)","v":""},null,{"$f":"IF($C$366=\"\",\"\",X366/$C$366)","v":""},null,{"$f":"IF($C$366=\"\",\"\",Z366/$C$366)","v":""},null,{"$f":"IF($C$366=\"\",\"\",AB366/$C$366)","v":""},null,{"$f":"IF($C$366=\"\",\"\",AD366/$C$366)","v":""},null,{"$f":"IF($C$366=\"\",\"\",AF366/$C$366)","v":""},null,{"$f":"IF($C$366=\"\",\"\",AH366/$C$366)","v":""},null,{"$f":"IF($C$366=\"\",\"\",AJ366/$C$366)","v":""},null,{"$f":"IF($C$366=\"\",\"\",AL366/$C$366)","v":""},null,{"$f":"IF($C$366=\"\",\"\",AN366/$C$366)","v":""},null,{"$f":"IF($C$366=\"\",\"\",AP366/$C$366)","v":""},null,{"$f":"IF($C$366=\"\",\"\",AR366/$C$366)","v":""},null,{"$f":"IF($C$366=\"\",\"\",AT366/$C$366)","v":""},null,{"$f":"IF($C$366=\"\",\"\",AV366/$C$366)","v":""},null,{"$f":"IF($C$366=\"\",\"\",AX366/$C$366)","v":""},null,{"$f":"IF($C$366=\"\",\"\",AZ366/$C$366)","v":""},null,{"$f":"IF($C$366=\"\",\"\",BB366/$C$366)","v":""},null,0]
[null,null,null,null,{"$f":"IF($C$367=\"\",\"\",F367/$C$367)","v":""},null,{"$f":"IF($C$367=\"\",\"\",H367/$C$367)","v":""},null,{"$f":"IF($C$367=\"\",\"\",J367/$C$367)","v":""},null,{"$f":"IF($C$367=\"\",\"\",L367/$C$367)","v":""},null,{"$f":"IF($C$367=\"\",\"\",N367/$C$367)","v":""},null,{"$f":"IF($C$367=\"\",\"\",P367/$C$367)","v":""},null,{"$f":"IF($C$367=\"\",\"\",R367/$C$367)","v":""},null,{"$f":"IF($C$367=\"\",\"\",T367/$C$367)","v":""},null,{"$f":"IF($C$367=\"\",\"\",V367/$C$367)","v":""},null,{"$f":"IF($C$367=\"\",\"\",X367/$C$367)","v":""},null,{"$f":"IF($C$367=\"\",\"\",Z367/$C$367)","v":""},null,{"$f":"IF($C$367=\"\",\"\",AB367/$C$367)","v":""},null,{"$f":"IF($C$367=\"\",\"\",AD367/$C$367)","v":""},null,{"$f":"IF($C$367=\"\",\"\",AF367/$C$367)","v":""},null,{"$f":"IF($C$367=\"\",\"\",AH367/$C$367)","v":""},null,{"$f":"IF($C$367=\"\",\"\",AJ367/$C$367)","v":""},null,{"$f":"IF($C$367=\"\",\"\",AL367/$C$367)","v":""},null,{"$f":"IF($C$367=\"\",\"\",AN367/$C$367)","v":""},null,{"$f":"IF($C$367=\"\",\"\",AP367/$C$367)","v":""},null,{"$f":"IF($C$367=\"\",\"\",AR367/$C$367)","v":""},null,{"$f":"IF($C$367=\"\",\"\",AT367/$C$367)","v":""},null,{"$f":"IF($C$367=\"\",\"\",AV367/$C$367)","v":""},null,{"$f":"IF($C$367=\"\",\"\",AX367/$C$367)","v":""},null,{"$f":"IF($C$367=\"\",\"\",AZ367/$C$367)","v":""},null,{"$f":"IF($C$367=\"\",\"\",BB367/$C$367)","v":""},null,0]
[null,null,null,null,{"$f":"IF($C$368=\"\",\"\",F368/$C$368)","v":""},null,{"$f":"IF($C$368=\"\",\"\",H368/$C$368)","v":""},null,{"$f":"IF($C$368=\"\",\"\",J368/$C$368)","v":""},null,{"$f":"IF($C$368=\"\",\"\",L368/$C$368)","v":""},null,{"$f":"IF($C$368=\"\",\"\",N368/$C$368)","v":""},null,{"$f":"IF($C$368=\"\",\"\",P368/$C$368)","v":""},null,{"$f":"IF($C$368=\"\",\"\",R368/$C$368)","v":""},null,{"$f":"IF($C$368=\"\",\"\",T368/$C$368)","v":""},null,{"$f":"IF($C$368=\"\",\"\",V368/$C$368)","v":""},null,{"$f":"IF($C$368=\"\",\"\",X368/$C$368)","v":""},null,{"$f":"IF($C$368=\"\",\"\",Z368/$C$368)","v":""},null,{"$f":"IF($C$368=\"\",\"\",AB368/$C$368)","v":""},null,{"$f":"IF($C$368=\"\",\"\",AD368/$C$368)","v":""},null,{"$f":"IF($C$368=\"\",\"\",AF368/$C$368)","v":""},null,{"$f":"IF($C$368=\"\",\"\",AH368/$C$368)","v":""},null,{"$f":"IF($C$368=\"\",\"\",AJ368/$C$368)","v":""},null,{"$f":"IF($C$368=\"\",\"\",AL368/$C$368)","v":""},null,{"$f":"IF($C$368=\"\",\"\",AN368/$C$368)","v":""},null,{"$f":"IF($C$368=\"\",\"\",AP368/$C$368)","v":""},null,{"$f":"IF($C$368=\"\",\"\",AR368/$C$368)","v":""},null,{"$f":"IF($C$368=\"\",\"\",AT368/$C$368)","v":""},null,{"$f":"IF($C$368=\"\",\"\",AV368/$C$368)","v":""},null,{"$f":"IF($C$368=\"\",\"\",AX368/$C$368)","v":""},null,{"$f":"IF($C$368=\"\",\"\",AZ368/$C$368)","v":""},null,{"$f":"IF($C$368=\"\",\"\",BB368/$C$368)","v":""},null,0]
[null,null,null,null,{"$f":"IF($C$369=\"\",\"\",F369/$C$369)","v":""},null,{"$f":"IF($C$369=\"\",\"\",H369/$C$369)","v":""},null,{"$f":"IF($C$369=\"\",\"\",J369/$C$369)","v":""},null,{"$f":"IF($C$369=\"\",\"\",L369/$C$369)","v":""},null,{"$f":"IF($C$369=\"\",\"\",N369/$C$369)","v":""},null,{"$f":"IF($C$369=\"\",\"\",P369/$C$369)","v":""},null,{"$f":"IF($C$369=\"\",\"\",R369/$C$369)","v":""},null,{"$f":"IF($C$369=\"\",\"\",T369/$C$369)","v":""},null,{"$f":"IF($C$369=\"\",\"\",V369/$C$369)","v":""},null,{"$f":"IF($C$369=\"\",\"\",X369/$C$369)","v":""},null,{"$f":"IF($C$369=\"\",\"\",Z369/$C$369)","v":""},null,{"$f":"IF($C$369=\"\",\"\",AB369/$C$369)","v":""},null,{"$f":"IF($C$369=\"\",\"\",AD369/$C$369)","v":""},null,{"$f":"IF($C$369=\"\",\"\",AF369/$C$369)","v":""},null,{"$f":"IF($C$369=\"\",\"\",AH369/$C$369)","v":""},null,{"$f":"IF($C$369=\"\",\"\",AJ369/$C$369)","v":""},null,{"$f":"IF($C$369=\"\",\"\",AL369/$C$369)","v":""},null,{"$f":"IF($C$369=\"\",\"\",AN369/$C$369)","v":""},null,{"$f":"IF($C$369=\"\",\"\",AP369/$C$369)","v":""},null,{"$f":"IF($C$369=\"\",\"\",AR369/$C$369)","v":""},null,{"$f":"IF($C$369=\"\",\"\",AT369/$C$369)","v":""},null,{"$f":"IF($C$369=\"\",\"\",AV369/$C$369)","v":""},null,{"$f":"IF($C$369=\"\",\"\",AX369/$C$369)","v":""},null,{"$f":"IF($C$369=\"\",\"\",AZ369/$C$369)","v":""},null,{"$f":"IF($C$369=\"\",\"\",BB369/$C$369)","v":""},null,0]
[null,null,null,null,{"$f":"IF($C$370=\"\",\"\",F370/$C$370)","v":""},null,{"$f":"IF($C$370=\"\",\"\",H370/$C$370)","v":""},null,{"$f":"IF($C$370=\"\",\"\",J370/$C$370)","v":""},null,{"$f":"IF($C$370=\"\",\"\",L370/$C$370)","v":""},null,{"$f":"IF($C$370=\"\",\"\",N370/$C$370)","v":""},null,{"$f":"IF($C$370=\"\",\"\",P370/$C$370)","v":""},null,{"$f":"IF($C$370=\"\",\"\",R370/$C$370)","v":""},null,{"$f":"IF($C$370=\"\",\"\",T370/$C$370)","v":""},null,{"$f":"IF($C$370=\"\",\"\",V370/$C$370)","v":""},null,{"$f":"IF($C$370=\"\",\"\",X370/$C$370)","v":""},null,{"$f":"IF($C$370=\"\",\"\",Z370/$C$370)","v":""},null,{"$f":"IF($C$370=\"\",\"\",AB370/$C$370)","v":""},null,{"$f":"IF($C$370=\"\",\"\",AD370/$C$370)","v":""},null,{"$f":"IF($C$370=\"\",\"\",AF370/$C$370)","v":""},null,{"$f":"IF($C$370=\"\",\"\",AH370/$C$370)","v":""},null,{"$f":"IF($C$370=\"\",\"\",AJ370/$C$370)","v":""},null,{"$f":"IF($C$370=\"\",\"\",AL370/$C$370)","v":""},null,{"$f":"IF($C$370=\"\",\"\",AN370/$C$370)","v":""},null,{"$f":"IF($C$370=\"\",\"\",AP370/$C$370)","v":""},null,{"$f":"IF($C$370=\"\",\"\",AR370/$C$370)","v":""},null,{"$f":"IF($C$370=\"\",\"\",AT370/$C$370)","v":""},null,{"$f":"IF($C$370=\"\",\"\",AV370/$C$370)","v":""},null,{"$f":"IF($C$370=\"\",\"\",AX370/$C$370)","v":""},null,{"$f":"IF($C$370=\"\",\"\",AZ370/$C$370)","v":""},null,{"$f":"IF($C$370=\"\",\"\",BB370/$C$370)","v":""},null,0]
[null,null,null,null,{"$f":"IF($C$371=\"\",\"\",F371/$C$371)","v":""},null,{"$f":"IF($C$371=\"\",\"\",H371/$C$371)","v":""},null,{"$f":"IF($C$371=\"\",\"\",J371/$C$371)","v":""},null,{"$f":"IF($C$371=\"\",\"\",L371/$C$371)","v":""},null,{"$f":"IF($C$371=\"\",\"\",N371/$C$371)","v":""},null,{"$f":"IF($C$371=\"\",\"\",P371/$C$371)","v":""},null,{"$f":"IF($C$371=\"\",\"\",R371/$C$371)","v":""},null,{"$f":"IF($C$371=\"\",\"\",T371/$C$371)","v":""},null,{"$f":"IF($C$371=\"\",\"\",V371/$C$371)","v":""},null,{"$f":"IF($C$371=\"\",\"\",X371/$C$371)","v":""},null,{"$f":"IF($C$371=\"\",\"\",Z371/$C$371)","v":""},null,{"$f":"IF($C$371=\"\",\"\",AB371/$C$371)","v":""},null,{"$f":"IF($C$371=\"\",\"\",AD371/$C$371)","v":""},null,{"$f":"IF($C$371=\"\",\"\",AF371/$C$371)","v":""},null,{"$f":"IF($C$371=\"\",\"\",AH371/$C$371)","v":""},null,{"$f":"IF($C$371=\"\",\"\",AJ371/$C$371)","v":""},null,{"$f":"IF($C$371=\"\",\"\",AL371/$C$371)","v":""},null,{"$f":"IF($C$371=\"\",\"\",AN371/$C$371)","v":""},null,{"$f":"IF($C$371=\"\",\"\",AP371/$C$371)","v":""},null,{"$f":"IF($C$371=\"\",\"\",AR371/$C$371)","v":""},null,{"$f":"IF($C$371=\"\",\"\",AT371/$C$371)","v":""},null,{"$f":"IF($C$371=\"\",\"\",AV371/$C$371)","v":""},null,{"$f":"IF($C$371=\"\",\"\",AX371/$C$371)","v":""},null,{"$f":"IF($C$371=\"\",\"\",AZ371/$C$371)","v":""},null,{"$f":"IF($C$371=\"\",\"\",BB371/$C$371)","v":""},null,{"$f":"SUM(BB371,AZ371,AX371,AV371,AT371,AR371,AP371,AN371,AL371,AJ371,AH371,AF371,AD371,AB371,Z371,X371,V371,T371,R371,P371,N371,L371,J371,H371,F371)","v":0}]
["TOTAL HOURS",null,null,null,null,{"$f":"SUM(F361:F371)","v":0},null,{"$f":"SUM(H361:H371)","v":0},null,{"$f":"SUM(J361:J371)","v":0},null,{"$f":"SUM(L361:L371)","v":0},null,{"$f":"SUM(N361:N371)","v":0},null,{"$f":"SUM(P361:P371)","v":0},null,{"$f":"SUM(R361:R371)","v":0},null,{"$f":"SUM(T361:T371)","v":0},null,{"$f":"SUM(V361:V371)","v":0},null,{"$f":"SUM(X361:X371)","v":0},null,{"$f":"SUM(Z361:Z371)","v":0},null,{"$f":"SUM(AB361:AB371)","v":0},null,{"$f":"SUM(AD361:AD371)","v":0},null,{"$f":"SUM(AF361:AF371)","v":0},null,{"$f":"SUM(AH361:AH371)","v":0},null,{"$f":"SUM(AJ361:AJ371)","v":0},null,{"$f":"SUM(AL361:AL371)","v":0},null,{"$f":"SUM(AN361:AN371)","v":0},null,{"$f":"SUM(AP361:AP371)","v":0},null,{"$f":"SUM(AR361:AR371)","v":0},null,{"$f":"SUM(AT361:AT371)","v":0},null,{"$f":"SUM(AV361:AV371)","v":0},null,{"$f":"SUM(AX361:AX371)","v":0},null,{"$f":"SUM(AZ361:AZ371)","v":0},null,{"$f":"SUM(BB361:BB371)","v":0},{"$f":"SUM(E372:BB372)","v":0}]
["TOTAL WORKDAYS",null,null,null,null,{"$f":"F372/8","v":0},null,{"$f":"H372/8","v":0},null,{"$f":"J372/8","v":0},null,{"$f":"L372/8","v":0},null,{"$f":"N372/8","v":0},null,{"$f":"P372/8","v":0},null,{"$f":"R372/8","v":0},null,{"$f":"T372/8","v":0},null,{"$f":"V372/8","v":0},null,{"$f":"X372/8","v":0},null,{"$f":"Z372/8","v":0},null,{"$f":"AB372/8","v":0},null,{"$f":"AD372/8","v":0},null,0,null,{"$f":"AH372/8","v":0},null,0,null,{"$f":"AL372/8","v":0},null,0,null,{"$f":"AP372/8","v":0},null,0,null,{"$f":"AT372/8","v":0},null,{"$f":"AV372/8","v":0},null,{"$f":"AX372/8","v":0},null,{"$f":"AZ372/8","v":0},null,{"$f":"BB372/8","v":0},{"$f":"SUM(E373:BB373)","v":0}]
["TOTAL RAW LABOR",null,null,null,null,{"$f":"$E$13*F372","v":0},null,{"$f":"$G$13*H372","v":0},null,{"$f":"$I$13*J372","v":0},null,{"$f":"$K$13*L372","v":0},null,{"$f":"$M$13*N372","v":0},null,{"$f":"$O$13*P372","v":0},null,{"$f":"$Q$13*R372","v":0},null,{"$f":"$S$13*T372","v":0},null,{"$f":"$U$13*V372","v":0},null,{"$f":"$W$13*X372","v":0},null,{"$f":"$Y$13*Z372","v":0},null,{"$f":"$AA$13*AB372","v":0},null,{"$f":"$AC$13*AD372","v":0},null,{"$f":"$AC$13*AF372","v":0},null,{"$f":"$AC$13*AH372","v":0},null,{"$f":"$AC$13*AJ372","v":0},null,{"$f":"$AC$13*AL372","v":0},null,{"$f":"$AC$13*AN372","v":0},null,{"$f":"$AC$13*AP372","v":0},null,{"$f":"$AC$13*AR372","v":0},null,{"$f":"$AC$13*AT372","v":0},null,{"$f":"$AC$13*AV372","v":0},null,{"$f":"$AC$13*AX372","v":0},null,{"$f":"$AC$13*AZ372","v":0},null,{"$f":"$AC$13*BB372","v":0},{"$f":"SUM(E374:BB374)","v":0}]
["Task 15.0     ","REPLACE FIELD WITH CATEGORY NAME OF YOUR CHOOSING HERE",null,null,null,null,null,null,null,null,null,null,null,null,null,null,null,null,null,null,null,null,null,null,null,null,null,null,null,null,null,null,null,null,null,null,null,null,null,null,null,null,null,null,null,null,null,null,null,null,null,null,null,null,{"$f":"IF(B375=\"REPLACE FIELD WITH CATEGORY NAME OF YOUR CHOOSING HERE\",0,\"\")","v":0}]
[null,null,null,null,{"$f":"IF($C$376=\"\",\"\",F376/$C$376)","v":""},null,{"$f":"IF($C$376=\"\",\"\",H376/$C$376)","v":""},null,{"$f":"IF($C$376=\"\",\"\",J376/$C$376)","v":""},null,{"$f":"IF($C$376=\"\",\"\",L376/$C$376)","v":""},null,{"$f":"IF($C$376=\"\",\"\",N376/$C$376)","v":""},null,{"$f":"IF($C$376=\"\",\"\",P376/$C$376)","v":""},null,{"$f":"IF($C$376=\"\",\"\",R376/$C$376)","v":""},null,{"$f":"IF($C$376=\"\",\"\",T376/$C$376)","v":""},null,{"$f":"IF($C$376=\"\",\"\",V376/$C$376)","v":""},null,{"$f":"IF($C$376=\"\",\"\",X376/$C$376)","v":""},null,{"$f":"IF($C$376=\"\",\"\",Z376/$C$376)","v":""},null,{"$f":"IF($C$376=\"\",\"\",AB376/$C$376)","v":""},null,{"$f":"IF($C$376=\"\",\"\",AD376/$C$376)","v":""},null,{"$f":"IF($C$376=\"\",\"\",AF376/$C$376)","v":""},null,{"$f":"IF($C$376=\"\",\"\",AH376/$C$376)","v":""},null,{"$f":"IF($C$376=\"\",\"\",AJ376/$C$376)","v":""},null,{"$f":"IF($C$376=\"\",\"\",AL376/$C$376)","v":""},null,{"$f":"IF($C$376=\"\",\"\",AN376/$C$376)","v":""},null,{"$f":"IF($C$376=\"\",\"\",AP376/$C$376)","v":""},null,{"$f":"IF($C$376=\"\",\"\",AR376/$C$376)","v":""},null,{"$f":"IF($C$376=\"\",\"\",AT376/$C$376)","v":""},null,{"$f":"IF($C$376=\"\",\"\",AV376/$C$376)","v":""},null,{"$f":"IF($C$376=\"\",\"\",AX376/$C$376)","v":""},null,{"$f":"IF($C$376=\"\",\"\",AZ376/$C$376)","v":""},null,{"$f":"IF($C$376=\"\",\"\",BB376/$C$376)","v":""},null,{"$f":"SUM(BB376,AZ376,AX376,AV376,AT376,AR376,AP376,AN376,AL376,AJ376,AH376,AF376,AD376,AB376,Z376,X376,V376,T376,R376,P376,N376,L376,J376,H376,F376)","v":0}]
[null,null,null,null,{"$f":"IF($C$377=\"\",\"\",F377/$C$377)","v":""},null,{"$f":"IF($C$377=\"\",\"\",H377/$C$377)","v":""},null,{"$f":"IF($C$377=\"\",\"\",J377/$C$377)","v":""},null,{"$f":"IF($C$377=\"\",\"\",L377/$C$377)","v":""},null,{"$f":"IF($C$377=\"\",\"\",N377/$C$377)","v":""},null,{"$f":"IF($C$377=\"\",\"\",P377/$C$377)","v":""},null,{"$f":"IF($C$377=\"\",\"\",R377/$C$377)","v":""},null,{"$f":"IF($C$377=\"\",\"\",T377/$C$377)","v":""},null,{"$f":"IF($C$377=\"\",\"\",V377/$C$377)","v":""},null,{"$f":"IF($C$377=\"\",\"\",X377/$C$377)","v":""},null,{"$f":"IF($C$377=\"\",\"\",Z377/$C$377)","v":""},null,{"$f":"IF($C$377=\"\",\"\",AB377/$C$377)","v":""},null,{"$f":"IF($C$377=\"\",\"\",AD377/$C$377)","v":""},null,{"$f":"IF($C$377=\"\",\"\",AF377/$C$377)","v":""},null,{"$f":"IF($C$377=\"\",\"\",AH377/$C$377)","v":""},null,{"$f":"IF($C$377=\"\",\"\",AJ377/$C$377)","v":""},null,{"$f":"IF($C$377=\"\",\"\",AL377/$C$377)","v":""},null,{"$f":"IF($C$377=\"\",\"\",AN377/$C$377)","v":""},null,{"$f":"IF($C$377=\"\",\"\",AP377/$C$377)","v":""},null,{"$f":"IF($C$377=\"\",\"\",AR377/$C$377)","v":""},null,{"$f":"IF($C$377=\"\",\"\",AT377/$C$377)","v":""},null,{"$f":"IF($C$377=\"\",\"\",AV377/$C$377)","v":""},null,{"$f":"IF($C$377=\"\",\"\",AX377/$C$377)","v":""},null,{"$f":"IF($C$377=\"\",\"\",AZ377/$C$377)","v":""},null,{"$f":"IF($C$377=\"\",\"\",BB377/$C$377)","v":""},null,0]
[null,null,null,null,{"$f":"IF($C$378=\"\",\"\",F378/$C$378)","v":""},null,{"$f":"IF($C$378=\"\",\"\",H378/$C$378)","v":""},null,{"$f":"IF($C$378=\"\",\"\",J378/$C$378)","v":""},null,{"$f":"IF($C$378=\"\",\"\",L378/$C$378)","v":""},null,{"$f":"IF($C$378=\"\",\"\",N378/$C$378)","v":""},null,{"$f":"IF($C$378=\"\",\"\",P378/$C$378)","v":""},null,{"$f":"IF($C$378=\"\",\"\",R378/$C$378)","v":""},null,{"$f":"IF($C$378=\"\",\"\",T378/$C$378)","v":""},null,{"$f":"IF($C$378=\"\",\"\",V378/$C$378)","v":""},null,{"$f":"IF($C$378=\"\",\"\",X378/$C$378)","v":""},null,{"$f":"IF($C$378=\"\",\"\",Z378/$C$378)","v":""},null,{"$f":"IF($C$378=\"\",\"\",AB378/$C$378)","v":""},null,{"$f":"IF($C$378=\"\",\"\",AD378/$C$378)","v":""},null,{"$f":"IF($C$378=\"\",\"\",AF378/$C$378)","v":""},null,{"$f":"IF($C$378=\"\",\"\",AH378/$C$378)","v":""},null,{"$f":"IF($C$378=\"\",\"\",AJ378/$C$378)","v":""},null,{"$f":"IF($C$378=\"\",\"\",AL378/$C$378)","v":""},null,{"$f":"IF($C$378=\"\",\"\",AN378/$C$378)","v":""},null,{"$f":"IF($C$378=\"\",\"\",AP378/$C$378)","v":""},null,{"$f":"IF($C$378=\"\",\"\",AR378/$C$378)","v":""},null,{"$f":"IF($C$378=\"\",\"\",AT378/$C$378)","v":""},null,{"$f":"IF($C$378=\"\",\"\",AV378/$C$378)","v":""},null,{"$f":"IF($C$378=\"\",\"\",AX378/$C$378)","v":""},null,{"$f":"IF($C$378=\"\",\"\",AZ378/$C$378)","v":""},null,{"$f":"IF($C$378=\"\",\"\",BB378/$C$378)","v":""},null,0]
[null,null,null,null,{"$f":"IF($C$379=\"\",\"\",F379/$C$379)","v":""},null,{"$f":"IF($C$379=\"\",\"\",H379/$C$379)","v":""},null,{"$f":"IF($C$379=\"\",\"\",J379/$C$379)","v":""},null,{"$f":"IF($C$379=\"\",\"\",L379/$C$379)","v":""},null,{"$f":"IF($C$379=\"\",\"\",N379/$C$379)","v":""},null,{"$f":"IF($C$379=\"\",\"\",P379/$C$379)","v":""},null,{"$f":"IF($C$379=\"\",\"\",R379/$C$379)","v":""},null,{"$f":"IF($C$379=\"\",\"\",T379/$C$379)","v":""},null,{"$f":"IF($C$379=\"\",\"\",V379/$C$379)","v":""},null,{"$f":"IF($C$379=\"\",\"\",X379/$C$379)","v":""},null,{"$f":"IF($C$379=\"\",\"\",Z379/$C$379)","v":""},null,{"$f":"IF($C$379=\"\",\"\",AB379/$C$379)","v":""},null,{"$f":"IF($C$379=\"\",\"\",AD379/$C$379)","v":""},null,{"$f":"IF($C$379=\"\",\"\",AF379/$C$379)","v":""},null,{"$f":"IF($C$379=\"\",\"\",AH379/$C$379)","v":""},null,{"$f":"IF($C$379=\"\",\"\",AJ379/$C$379)","v":""},null,{"$f":"IF($C$379=\"\",\"\",AL379/$C$379)","v":""},null,{"$f":"IF($C$379=\"\",\"\",AN379/$C$379)","v":""},null,{"$f":"IF($C$379=\"\",\"\",AP379/$C$379)","v":""},null,{"$f":"IF($C$379=\"\",\"\",AR379/$C$379)","v":""},null,{"$f":"IF($C$379=\"\",\"\",AT379/$C$379)","v":""},null,{"$f":"IF($C$379=\"\",\"\",AV379/$C$379)","v":""},null,{"$f":"IF($C$379=\"\",\"\",AX379/$C$379)","v":""},null,{"$f":"IF($C$379=\"\",\"\",AZ379/$C$379)","v":""},null,{"$f":"IF($C$379=\"\",\"\",BB379/$C$379)","v":""},null,0]
[null,null,null,null,{"$f":"IF($C$380=\"\",\"\",F380/$C$380)","v":""},null,{"$f":"IF($C$380=\"\",\"\",H380/$C$380)","v":""},null,{"$f":"IF($C$380=\"\",\"\",J380/$C$380)","v":""},null,{"$f":"IF($C$380=\"\",\"\",L380/$C$380)","v":""},null,{"$f":"IF($C$380=\"\",\"\",N380/$C$380)","v":""},null,{"$f":"IF($C$380=\"\",\"\",P380/$C$380)","v":""},null,{"$f":"IF($C$380=\"\",\"\",R380/$C$380)","v":""},null,{"$f":"IF($C$380=\"\",\"\",T380/$C$380)","v":""},null,{"$f":"IF($C$380=\"\",\"\",V380/$C$380)","v":""},null,{"$f":"IF($C$380=\"\",\"\",X380/$C$380)","v":""},null,{"$f":"IF($C$380=\"\",\"\",Z380/$C$380)","v":""},null,{"$f":"IF($C$380=\"\",\"\",AB380/$C$380)","v":""},null,{"$f":"IF($C$380=\"\",\"\",AD380/$C$380)","v":""},null,{"$f":"IF($C$380=\"\",\"\",AF380/$C$380)","v":""},null,{"$f":"IF($C$380=\"\",\"\",AH380/$C$380)","v":""},null,{"$f":"IF($C$380=\"\",\"\",AJ380/$C$380)","v":""},null,{"$f":"IF($C$380=\"\",\"\",AL380/$C$380)","v":""},null,{"$f":"IF($C$380=\"\",\"\",AN380/$C$380)","v":""},null,{"$f":"IF($C$380=\"\",\"\",AP380/$C$380)","v":""},null,{"$f":"IF($C$380=\"\",\"\",AR380/$C$380)","v":""},null,{"$f":"IF($C$380=\"\",\"\",AT380/$C$380)","v":""},null,{"$f":"IF($C$380=\"\",\"\",AV380/$C$380)","v":""},null,{"$f":"IF($C$380=\"\",\"\",AX380/$C$380)","v":""},null,{"$f":"IF($C$380=\"\",\"\",AZ380/$C$380)","v":""},null,{"$f":"IF($C$380=\"\",\"\",BB380/$C$380)","v":""},null,0]
[null,null,null,null,{"$f":"IF($C$381=\"\",\"\",F381/$C$381)","v":""},null,{"$f":"IF($C$381=\"\",\"\",H381/$C$381)","v":""},null,{"$f":"IF($C$381=\"\",\"\",J381/$C$381)","v":""},null,{"$f":"IF($C$381=\"\",\"\",L381/$C$381)","v":""},null,{"$f":"IF($C$381=\"\",\"\",N381/$C$381)","v":""},null,{"$f":"IF($C$381=\"\",\"\",P381/$C$381)","v":""},null,{"$f":"IF($C$381=\"\",\"\",R381/$C$381)","v":""},null,{"$f":"IF($C$381=\"\",\"\",T381/$C$381)","v":""},null,{"$f":"IF($C$381=\"\",\"\",V381/$C$381)","v":""},null,{"$f":"IF($C$381=\"\",\"\",X381/$C$381)","v":""},null,{"$f":"IF($C$381=\"\",\"\",Z381/$C$381)","v":""},null,{"$f":"IF($C$381=\"\",\"\",AB381/$C$381)","v":""},null,{"$f":"IF($C$381=\"\",\"\",AD381/$C$381)","v":""},null,{"$f":"IF($C$381=\"\",\"\",AF381/$C$381)","v":""},null,{"$f":"IF($C$381=\"\",\"\",AH381/$C$381)","v":""},null,{"$f":"IF($C$381=\"\",\"\",AJ381/$C$381)","v":""},null,{"$f":"IF($C$381=\"\",\"\",AL381/$C$381)","v":""},null,{"$f":"IF($C$381=\"\",\"\",AN381/$C$381)","v":""},null,{"$f":"IF($C$381=\"\",\"\",AP381/$C$381)","v":""},null,{"$f":"IF($C$381=\"\",\"\",AR381/$C$381)","v":""},null,{"$f":"IF($C$381=\"\",\"\",AT381/$C$381)","v":""},null,{"$f":"IF($C$381=\"\",\"\",AV381/$C$381)","v":""},null,{"$f":"IF($C$381=\"\",\"\",AX381/$C$381)","v":""},null,{"$f":"IF($C$381=\"\",\"\",AZ381/$C$381)","v":""},null,{"$f":"IF($C$381=\"\",\"\",BB381/$C$381)","v":""},null,0]
[null,null,null,null,{"$f":"IF($C$382=\"\",\"\",F382/$C$382)","v":""},null,{"$f":"IF($C$382=\"\",\"\",H382/$C$382)","v":""},null,{"$f":"IF($C$382=\"\",\"\",J382/$C$382)","v":""},null,{"$f":"IF($C$382=\"\",\"\",L382/$C$382)","v":""},null,{"$f":"IF($C$382=\"\",\"\",N382/$C$382)","v":""},null,{"$f":"IF($C$382=\"\",\"\",P382/$C$382)","v":""},null,{"$f":"IF($C$382=\"\",\"\",R382/$C$382)","v":""},null,{"$f":"IF($C$382=\"\",\"\",T382/$C$382)","v":""},null,{"$f":"IF($C$382=\"\",\"\",V382/$C$382)","v":""},null,{"$f":"IF($C$382=\"\",\"\",X382/$C$382)","v":""},null,{"$f":"IF($C$382=\"\",\"\",Z382/$C$382)","v":""},null,{"$f":"IF($C$382=\"\",\"\",AB382/$C$382)","v":""},null,{"$f":"IF($C$382=\"\",\"\",AD382/$C$382)","v":""},null,{"$f":"IF($C$382=\"\",\"\",AF382/$C$382)","v":""},null,{"$f":"IF($C$382=\"\",\"\",AH382/$C$382)","v":""},null,{"$f":"IF($C$382=\"\",\"\",AJ382/$C$382)","v":""},null,{"$f":"IF($C$382=\"\",\"\",AL382/$C$382)","v":""},null,{"$f":"IF($C$382=\"\",\"\",AN382/$C$382)","v":""},null,{"$f":"IF($C$382=\"\",\"\",AP382/$C$382)","v":""},null,{"$f":"IF($C$382=\"\",\"\",AR382/$C$382)","v":""},null,{"$f":"IF($C$382=\"\",\"\",AT382/$C$382)","v":""},null,{"$f":"IF($C$382=\"\",\"\",AV382/$C$382)","v":""},null,{"$f":"IF($C$382=\"\",\"\",AX382/$C$382)","v":""},null,{"$f":"IF($C$382=\"\",\"\",AZ382/$C$382)","v":""},null,{"$f":"IF($C$382=\"\",\"\",BB382/$C$382)","v":""},null,0]
[null,null,null,null,{"$f":"IF($C$383=\"\",\"\",F383/$C$383)","v":""},null,{"$f":"IF($C$383=\"\",\"\",H383/$C$383)","v":""},null,{"$f":"IF($C$383=\"\",\"\",J383/$C$383)","v":""},null,{"$f":"IF($C$383=\"\",\"\",L383/$C$383)","v":""},null,{"$f":"IF($C$383=\"\",\"\",N383/$C$383)","v":""},null,{"$f":"IF($C$383=\"\",\"\",P383/$C$383)","v":""},null,{"$f":"IF($C$383=\"\",\"\",R383/$C$383)","v":""},null,{"$f":"IF($C$383=\"\",\"\",T383/$C$383)","v":""},null,{"$f":"IF($C$383=\"\",\"\",V383/$C$383)","v":""},null,{"$f":"IF($C$383=\"\",\"\",X383/$C$383)","v":""},null,{"$f":"IF($C$383=\"\",\"\",Z383/$C$383)","v":""},null,{"$f":"IF($C$383=\"\",\"\",AB383/$C$383)","v":""},null,{"$f":"IF($C$383=\"\",\"\",AD383/$C$383)","v":""},null,{"$f":"IF($C$383=\"\",\"\",AF383/$C$383)","v":""},null,{"$f":"IF($C$383=\"\",\"\",AH383/$C$383)","v":""},null,{"$f":"IF($C$383=\"\",\"\",AJ383/$C$383)","v":""},null,{"$f":"IF($C$383=\"\",\"\",AL383/$C$383)","v":""},null,{"$f":"IF($C$383=\"\",\"\",AN383/$C$383)","v":""},null,{"$f":"IF($C$383=\"\",\"\",AP383/$C$383)","v":""},null,{"$f":"IF($C$383=\"\",\"\",AR383/$C$383)","v":""},null,{"$f":"IF($C$383=\"\",\"\",AT383/$C$383)","v":""},null,{"$f":"IF($C$383=\"\",\"\",AV383/$C$383)","v":""},null,{"$f":"IF($C$383=\"\",\"\",AX383/$C$383)","v":""},null,{"$f":"IF($C$383=\"\",\"\",AZ383/$C$383)","v":""},null,{"$f":"IF($C$383=\"\",\"\",BB383/$C$383)","v":""},null,0]
[null,null,null,null,{"$f":"IF($C$384=\"\",\"\",F384/$C$384)","v":""},null,{"$f":"IF($C$384=\"\",\"\",H384/$C$384)","v":""},null,{"$f":"IF($C$384=\"\",\"\",J384/$C$384)","v":""},null,{"$f":"IF($C$384=\"\",\"\",L384/$C$384)","v":""},null,{"$f":"IF($C$384=\"\",\"\",N384/$C$384)","v":""},null,{"$f":"IF($C$384=\"\",\"\",P384/$C$384)","v":""},null,{"$f":"IF($C$384=\"\",\"\",R384/$C$384)","v":""},null,{"$f":"IF($C$384=\"\",\"\",T384/$C$384)","v":""},null,{"$f":"IF($C$384=\"\",\"\",V384/$C$384)","v":""},null,{"$f":"IF($C$384=\"\",\"\",X384/$C$384)","v":""},null,{"$f":"IF($C$384=\"\",\"\",Z384/$C$384)","v":""},null,{"$f":"IF($C$384=\"\",\"\",AB384/$C$384)","v":""},null,{"$f":"IF($C$384=\"\",\"\",AD384/$C$384)","v":""},null,{"$f":"IF($C$384=\"\",\"\",AF384/$C$384)","v":""},null,{"$f":"IF($C$384=\"\",\"\",AH384/$C$384)","v":""},null,{"$f":"IF($C$384=\"\",\"\",AJ384/$C$384)","v":""},null,{"$f":"IF($C$384=\"\",\"\",AL384/$C$384)","v":""},null,{"$f":"IF($C$384=\"\",\"\",AN384/$C$384)","v":""},null,{"$f":"IF($C$384=\"\",\"\",AP384/$C$384)","v":""},null,{"$f":"IF($C$384=\"\",\"\",AR384/$C$384)","v":""},null,{"$f":"IF($C$384=\"\",\"\",AT384/$C$384)","v":""},null,{"$f":"IF($C$384=\"\",\"\",AV384/$C$384)","v":""},null,{"$f":"IF($C$384=\"\",\"\",AX384/$C$384)","v":""},null,{"$f":"IF($C$384=\"\",\"\",AZ384/$C$384)","v":""},null,{"$f":"IF($C$384=\"\",\"\",BB384/$C$384)","v":""},null,0]
[null,null,null,null,{"$f":"IF($C$385=\"\",\"\",F385/$C$385)","v":""},null,{"$f":"IF($C$385=\"\",\"\",H385/$C$385)","v":""},null,{"$f":"IF($C$385=\"\",\"\",J385/$C$385)","v":""},null,{"$f":"IF($C$385=\"\",\"\",L385/$C$385)","v":""},null,{"$f":"IF($C$385=\"\",\"\",N385/$C$385)","v":""},null,{"$f":"IF($C$385=\"\",\"\",P385/$C$385)","v":""},null,{"$f":"IF($C$385=\"\",\"\",R385/$C$385)","v":""},null,{"$f":"IF($C$385=\"\",\"\",T385/$C$385)","v":""},null,{"$f":"IF($C$385=\"\",\"\",V385/$C$385)","v":""},null,{"$f":"IF($C$385=\"\",\"\",X385/$C$385)","v":""},null,{"$f":"IF($C$385=\"\",\"\",Z385/$C$385)","v":""},null,{"$f":"IF($C$385=\"\",\"\",AB385/$C$385)","v":""},null,{"$f":"IF($C$385=\"\",\"\",AD385/$C$385)","v":""},null,{"$f":"IF($C$385=\"\",\"\",AF385/$C$385)","v":""},null,{"$f":"IF($C$385=\"\",\"\",AH385/$C$385)","v":""},null,{"$f":"IF($C$385=\"\",\"\",AJ385/$C$385)","v":""},null,{"$f":"IF($C$385=\"\",\"\",AL385/$C$385)","v":""},null,{"$f":"IF($C$385=\"\",\"\",AN385/$C$385)","v":""},null,{"$f":"IF($C$385=\"\",\"\",AP385/$C$385)","v":""},null,{"$f":"IF($C$385=\"\",\"\",AR385/$C$385)","v":""},null,{"$f":"IF($C$385=\"\",\"\",AT385/$C$385)","v":""},null,{"$f":"IF($C$385=\"\",\"\",AV385/$C$385)","v":""},null,{"$f":"IF($C$385=\"\",\"\",AX385/$C$385)","v":""},null,{"$f":"IF($C$385=\"\",\"\",AZ385/$C$385)","v":""},null,{"$f":"IF($C$385=\"\",\"\",BB385/$C$385)","v":""},null,0]
[null,null,null,null,{"$f":"IF($C$386=\"\",\"\",F386/$C$386)","v":""},null,{"$f":"IF($C$386=\"\",\"\",H386/$C$386)","v":""},null,{"$f":"IF($C$386=\"\",\"\",J386/$C$386)","v":""},null,{"$f":"IF($C$386=\"\",\"\",L386/$C$386)","v":""},null,{"$f":"IF($C$386=\"\",\"\",N386/$C$386)","v":""},null,{"$f":"IF($C$386=\"\",\"\",P386/$C$386)","v":""},null,{"$f":"IF($C$386=\"\",\"\",R386/$C$386)","v":""},null,{"$f":"IF($C$386=\"\",\"\",T386/$C$386)","v":""},null,{"$f":"IF($C$386=\"\",\"\",V386/$C$386)","v":""},null,{"$f":"IF($C$386=\"\",\"\",X386/$C$386)","v":""},null,{"$f":"IF($C$386=\"\",\"\",Z386/$C$386)","v":""},null,{"$f":"IF($C$386=\"\",\"\",AB386/$C$386)","v":""},null,{"$f":"IF($C$386=\"\",\"\",AD386/$C$386)","v":""},null,{"$f":"IF($C$386=\"\",\"\",AF386/$C$386)","v":""},null,{"$f":"IF($C$386=\"\",\"\",AH386/$C$386)","v":""},null,{"$f":"IF($C$386=\"\",\"\",AJ386/$C$386)","v":""},null,{"$f":"IF($C$386=\"\",\"\",AL386/$C$386)","v":""},null,{"$f":"IF($C$386=\"\",\"\",AN386/$C$386)","v":""},null,{"$f":"IF($C$386=\"\",\"\",AP386/$C$386)","v":""},null,{"$f":"IF($C$386=\"\",\"\",AR386/$C$386)","v":""},null,{"$f":"IF($C$386=\"\",\"\",AT386/$C$386)","v":""},null,{"$f":"IF($C$386=\"\",\"\",AV386/$C$386)","v":""},null,{"$f":"IF($C$386=\"\",\"\",AX386/$C$386)","v":""},null,{"$f":"IF($C$386=\"\",\"\",AZ386/$C$386)","v":""},null,{"$f":"IF($C$386=\"\",\"\",BB386/$C$386)","v":""},null,0]
[null,null,null,null,{"$f":"IF($C$387=\"\",\"\",F387/$C$387)","v":""},null,{"$f":"IF($C$387=\"\",\"\",H387/$C$387)","v":""},null,{"$f":"IF($C$387=\"\",\"\",J387/$C$387)","v":""},null,{"$f":"IF($C$387=\"\",\"\",L387/$C$387)","v":""},null,{"$f":"IF($C$387=\"\",\"\",N387/$C$387)","v":""},null,{"$f":"IF($C$387=\"\",\"\",P387/$C$387)","v":""},null,{"$f":"IF($C$387=\"\",\"\",R387/$C$387)","v":""},null,{"$f":"IF($C$387=\"\",\"\",T387/$C$387)","v":""},null,{"$f":"IF($C$387=\"\",\"\",V387/$C$387)","v":""},null,{"$f":"IF($C$387=\"\",\"\",X387/$C$387)","v":""},null,{"$f":"IF($C$387=\"\",\"\",Z387/$C$387)","v":""},null,{"$f":"IF($C$387=\"\",\"\",AB387/$C$387)","v":""},null,{"$f":"IF($C$387=\"\",\"\",AD387/$C$387)","v":""},null,{"$f":"IF($C$387=\"\",\"\",AF387/$C$387)","v":""},null,{"$f":"IF($C$387=\"\",\"\",AH387/$C$387)","v":""},null,{"$f":"IF($C$387=\"\",\"\",AJ387/$C$387)","v":""},null,{"$f":"IF($C$387=\"\",\"\",AL387/$C$387)","v":""},null,{"$f":"IF($C$387=\"\",\"\",AN387/$C$387)","v":""},null,{"$f":"IF($C$387=\"\",\"\",AP387/$C$387)","v":""},null,{"$f":"IF($C$387=\"\",\"\",AR387/$C$387)","v":""},null,{"$f":"IF($C$387=\"\",\"\",AT387/$C$387)","v":""},null,{"$f":"IF($C$387=\"\",\"\",AV387/$C$387)","v":""},null,{"$f":"IF($C$387=\"\",\"\",AX387/$C$387)","v":""},null,{"$f":"IF($C$387=\"\",\"\",AZ387/$C$387)","v":""},null,{"$f":"IF($C$387=\"\",\"\",BB387/$C$387)","v":""},null,0]
[null,null,null,null,{"$f":"IF($C$388=\"\",\"\",F388/$C$388)","v":""},null,{"$f":"IF($C$388=\"\",\"\",H388/$C$388)","v":""},null,{"$f":"IF($C$388=\"\",\"\",J388/$C$388)","v":""},null,{"$f":"IF($C$388=\"\",\"\",L388/$C$388)","v":""},null,{"$f":"IF($C$388=\"\",\"\",N388/$C$388)","v":""},null,{"$f":"IF($C$388=\"\",\"\",P388/$C$388)","v":""},null,{"$f":"IF($C$388=\"\",\"\",R388/$C$388)","v":""},null,{"$f":"IF($C$388=\"\",\"\",T388/$C$388)","v":""},null,{"$f":"IF($C$388=\"\",\"\",V388/$C$388)","v":""},null,{"$f":"IF($C$388=\"\",\"\",X388/$C$388)","v":""},null,{"$f":"IF($C$388=\"\",\"\",Z388/$C$388)","v":""},null,{"$f":"IF($C$388=\"\",\"\",AB388/$C$388)","v":""},null,{"$f":"IF($C$388=\"\",\"\",AD388/$C$388)","v":""},null,{"$f":"IF($C$388=\"\",\"\",AF388/$C$388)","v":""},null,{"$f":"IF($C$388=\"\",\"\",AH388/$C$388)","v":""},null,{"$f":"IF($C$388=\"\",\"\",AJ388/$C$388)","v":""},null,{"$f":"IF($C$388=\"\",\"\",AL388/$C$388)","v":""},null,{"$f":"IF($C$388=\"\",\"\",AN388/$C$388)","v":""},null,{"$f":"IF($C$388=\"\",\"\",AP388/$C$388)","v":""},null,{"$f":"IF($C$388=\"\",\"\",AR388/$C$388)","v":""},null,{"$f":"IF($C$388=\"\",\"\",AT388/$C$388)","v":""},null,{"$f":"IF($C$388=\"\",\"\",AV388/$C$388)","v":""},null,{"$f":"IF($C$388=\"\",\"\",AX388/$C$388)","v":""},null,{"$f":"IF($C$388=\"\",\"\",AZ388/$C$388)","v":""},null,{"$f":"IF($C$388=\"\",\"\",BB388/$C$388)","v":""},null,0]
[null,null,null,null,{"$f":"IF($C$389=\"\",\"\",F389/$C$389)","v":""},null,{"$f":"IF($C$389=\"\",\"\",H389/$C$389)","v":""},null,{"$f":"IF($C$389=\"\",\"\",J389/$C$389)","v":""},null,{"$f":"IF($C$389=\"\",\"\",L389/$C$389)","v":""},null,{"$f":"IF($C$389=\"\",\"\",N389/$C$389)","v":""},null,{"$f":"IF($C$389=\"\",\"\",P389/$C$389)","v":""},null,{"$f":"IF($C$389=\"\",\"\",R389/$C$389)","v":""},null,{"$f":"IF($C$389=\"\",\"\",T389/$C$389)","v":""},null,{"$f":"IF($C$389=\"\",\"\",V389/$C$389)","v":""},null,{"$f":"IF($C$389=\"\",\"\",X389/$C$389)","v":""},null,{"$f":"IF($C$389=\"\",\"\",Z389/$C$389)","v":""},null,{"$f":"IF($C$389=\"\",\"\",AB389/$C$389)","v":""},null,{"$f":"IF($C$389=\"\",\"\",AD389/$C$389)","v":""},null,{"$f":"IF($C$389=\"\",\"\",AF389/$C$389)","v":""},null,{"$f":"IF($C$389=\"\",\"\",AH389/$C$389)","v":""},null,{"$f":"IF($C$389=\"\",\"\",AJ389/$C$389)","v":""},null,{"$f":"IF($C$389=\"\",\"\",AL389/$C$389)","v":""},null,{"$f":"IF($C$389=\"\",\"\",AN389/$C$389)","v":""},null,{"$f":"IF($C$389=\"\",\"\",AP389/$C$389)","v":""},null,{"$f":"IF($C$389=\"\",\"\",AR389/$C$389)","v":""},null,{"$f":"IF($C$389=\"\",\"\",AT389/$C$389)","v":""},null,{"$f":"IF($C$389=\"\",\"\",AV389/$C$389)","v":""},null,{"$f":"IF($C$389=\"\",\"\",AX389/$C$389)","v":""},null,{"$f":"IF($C$389=\"\",\"\",AZ389/$C$389)","v":""},null,{"$f":"IF($C$389=\"\",\"\",BB389/$C$389)","v":""},null,0]
[null,null,null,null,{"$f":"IF($C$390=\"\",\"\",F390/$C$390)","v":""},null,{"$f":"IF($C$390=\"\",\"\",H390/$C$390)","v":""},null,{"$f":"IF($C$390=\"\",\"\",J390/$C$390)","v":""},null,{"$f":"IF($C$390=\"\",\"\",L390/$C$390)","v":""},null,{"$f":"IF($C$390=\"\",\"\",N390/$C$390)","v":""},null,{"$f":"IF($C$390=\"\",\"\",P390/$C$390)","v":""},null,{"$f":"IF($C$390=\"\",\"\",R390/$C$390)","v":""},null,{"$f":"IF($C$390=\"\",\"\",T390/$C$390)","v":""},null,{"$f":"IF($C$390=\"\",\"\",V390/$C$390)","v":""},null,{"$f":"IF($C$390=\"\",\"\",X390/$C$390)","v":""},null,{"$f":"IF($C$390=\"\",\"\",Z390/$C$390)","v":""},null,{"$f":"IF($C$390=\"\",\"\",AB390/$C$390)","v":""},null,{"$f":"IF($C$390=\"\",\"\",AD390/$C$390)","v":""},null,{"$f":"IF($C$390=\"\",\"\",AF390/$C$390)","v":""},null,{"$f":"IF($C$390=\"\",\"\",AH390/$C$390)","v":""},null,{"$f":"IF($C$390=\"\",\"\",AJ390/$C$390)","v":""},null,{"$f":"IF($C$390=\"\",\"\",AL390/$C$390)","v":""},null,{"$f":"IF($C$390=\"\",\"\",AN390/$C$390)","v":""},null,{"$f":"IF($C$390=\"\",\"\",AP390/$C$390)","v":""},null,{"$f":"IF($C$390=\"\",\"\",AR390/$C$390)","v":""},null,{"$f":"IF($C$390=\"\",\"\",AT390/$C$390)","v":""},null,{"$f":"IF($C$390=\"\",\"\",AV390/$C$390)","v":""},null,{"$f":"IF($C$390=\"\",\"\",AX390/$C$390)","v":""},null,{"$f":"IF($C$390=\"\",\"\",AZ390/$C$390)","v":""},null,{"$f":"IF($C$390=\"\",\"\",BB390/$C$390)","v":""},null,0]
[null,null,null,null,{"$f":"IF($C$391=\"\",\"\",F391/$C$391)","v":""},null,{"$f":"IF($C$391=\"\",\"\",H391/$C$391)","v":""},null,{"$f":"IF($C$391=\"\",\"\",J391/$C$391)","v":""},null,{"$f":"IF($C$391=\"\",\"\",L391/$C$391)","v":""},null,{"$f":"IF($C$391=\"\",\"\",N391/$C$391)","v":""},null,{"$f":"IF($C$391=\"\",\"\",P391/$C$391)","v":""},null,{"$f":"IF($C$391=\"\",\"\",R391/$C$391)","v":""},null,{"$f":"IF($C$391=\"\",\"\",T391/$C$391)","v":""},null,{"$f":"IF($C$391=\"\",\"\",V391/$C$391)","v":""},null,{"$f":"IF($C$391=\"\",\"\",X391/$C$391)","v":""},null,{"$f":"IF($C$391=\"\",\"\",Z391/$C$391)","v":""},null,{"$f":"IF($C$391=\"\",\"\",AB391/$C$391)","v":""},null,{"$f":"IF($C$391=\"\",\"\",AD391/$C$391)","v":""},null,{"$f":"IF($C$391=\"\",\"\",AF391/$C$391)","v":""},null,{"$f":"IF($C$391=\"\",\"\",AH391/$C$391)","v":""},null,{"$f":"IF($C$391=\"\",\"\",AJ391/$C$391)","v":""},null,{"$f":"IF($C$391=\"\",\"\",AL391/$C$391)","v":""},null,{"$f":"IF($C$391=\"\",\"\",AN391/$C$391)","v":""},null,{"$f":"IF($C$391=\"\",\"\",AP391/$C$391)","v":""},null,{"$f":"IF($C$391=\"\",\"\",AR391/$C$391)","v":""},null,{"$f":"IF($C$391=\"\",\"\",AT391/$C$391)","v":""},null,{"$f":"IF($C$391=\"\",\"\",AV391/$C$391)","v":""},null,{"$f":"IF($C$391=\"\",\"\",AX391/$C$391)","v":""},null,{"$f":"IF($C$391=\"\",\"\",AZ391/$C$391)","v":""},null,{"$f":"IF($C$391=\"\",\"\",BB391/$C$391)","v":""},null,0]
[null,null,null,null,{"$f":"IF($C$392=\"\",\"\",F392/$C$392)","v":""},null,{"$f":"IF($C$392=\"\",\"\",H392/$C$392)","v":""},null,{"$f":"IF($C$392=\"\",\"\",J392/$C$392)","v":""},null,{"$f":"IF($C$392=\"\",\"\",L392/$C$392)","v":""},null,{"$f":"IF($C$392=\"\",\"\",N392/$C$392)","v":""},null,{"$f":"IF($C$392=\"\",\"\",P392/$C$392)","v":""},null,{"$f":"IF($C$392=\"\",\"\",R392/$C$392)","v":""},null,{"$f":"IF($C$392=\"\",\"\",T392/$C$392)","v":""},null,{"$f":"IF($C$392=\"\",\"\",V392/$C$392)","v":""},null,{"$f":"IF($C$392=\"\",\"\",X392/$C$392)","v":""},null,{"$f":"IF($C$392=\"\",\"\",Z392/$C$392)","v":""},null,{"$f":"IF($C$392=\"\",\"\",AB392/$C$392)","v":""},null,{"$f":"IF($C$392=\"\",\"\",AD392/$C$392)","v":""},null,{"$f":"IF($C$392=\"\",\"\",AF392/$C$392)","v":""},null,{"$f":"IF($C$392=\"\",\"\",AH392/$C$392)","v":""},null,{"$f":"IF($C$392=\"\",\"\",AJ392/$C$392)","v":""},null,{"$f":"IF($C$392=\"\",\"\",AL392/$C$392)","v":""},null,{"$f":"IF($C$392=\"\",\"\",AN392/$C$392)","v":""},null,{"$f":"IF($C$392=\"\",\"\",AP392/$C$392)","v":""},null,{"$f":"IF($C$392=\"\",\"\",AR392/$C$392)","v":""},null,{"$f":"IF($C$392=\"\",\"\",AT392/$C$392)","v":""},null,{"$f":"IF($C$392=\"\",\"\",AV392/$C$392)","v":""},null,{"$f":"IF($C$392=\"\",\"\",AX392/$C$392)","v":""},null,{"$f":"IF($C$392=\"\",\"\",AZ392/$C$392)","v":""},null,{"$f":"IF($C$392=\"\",\"\",BB392/$C$392)","v":""},null,0]
[null,null,null,null,{"$f":"IF($C$393=\"\",\"\",F393/$C$393)","v":""},null,{"$f":"IF($C$393=\"\",\"\",H393/$C$393)","v":""},null,{"$f":"IF($C$393=\"\",\"\",J393/$C$393)","v":""},null,{"$f":"IF($C$393=\"\",\"\",L393/$C$393)","v":""},null,{"$f":"IF($C$393=\"\",\"\",N393/$C$393)","v":""},null,{"$f":"IF($C$393=\"\",\"\",P393/$C$393)","v":""},null,{"$f":"IF($C$393=\"\",\"\",R393/$C$393)","v":""},null,{"$f":"IF($C$393=\"\",\"\",T393/$C$393)","v":""},null,{"$f":"IF($C$393=\"\",\"\",V393/$C$393)","v":""},null,{"$f":"IF($C$393=\"\",\"\",X393/$C$393)","v":""},null,{"$f":"IF($C$393=\"\",\"\",Z393/$C$393)","v":""},null,{"$f":"IF($C$393=\"\",\"\",AB393/$C$393)","v":""},null,{"$f":"IF($C$393=\"\",\"\",AD393/$C$393)","v":""},null,{"$f":"IF($C$393=\"\",\"\",AF393/$C$393)","v":""},null,{"$f":"IF($C$393=\"\",\"\",AH393/$C$393)","v":""},null,{"$f":"IF($C$393=\"\",\"\",AJ393/$C$393)","v":""},null,{"$f":"IF($C$393=\"\",\"\",AL393/$C$393)","v":""},null,{"$f":"IF($C$393=\"\",\"\",AN393/$C$393)","v":""},null,{"$f":"IF($C$393=\"\",\"\",AP393/$C$393)","v":""},null,{"$f":"IF($C$393=\"\",\"\",AR393/$C$393)","v":""},null,{"$f":"IF($C$393=\"\",\"\",AT393/$C$393)","v":""},null,{"$f":"IF($C$393=\"\",\"\",AV393/$C$393)","v":""},null,{"$f":"IF($C$393=\"\",\"\",AX393/$C$393)","v":""},null,{"$f":"IF($C$393=\"\",\"\",AZ393/$C$393)","v":""},null,{"$f":"IF($C$393=\"\",\"\",BB393/$C$393)","v":""},null,0]
[null,null,null,null,{"$f":"IF($C$394=\"\",\"\",F394/$C$394)","v":""},null,{"$f":"IF($C$394=\"\",\"\",H394/$C$394)","v":""},null,{"$f":"IF($C$394=\"\",\"\",J394/$C$394)","v":""},null,{"$f":"IF($C$394=\"\",\"\",L394/$C$394)","v":""},null,{"$f":"IF($C$394=\"\",\"\",N394/$C$394)","v":""},null,{"$f":"IF($C$394=\"\",\"\",P394/$C$394)","v":""},null,{"$f":"IF($C$394=\"\",\"\",R394/$C$394)","v":""},null,{"$f":"IF($C$394=\"\",\"\",T394/$C$394)","v":""},null,{"$f":"IF($C$394=\"\",\"\",V394/$C$394)","v":""},null,{"$f":"IF($C$394=\"\",\"\",X394/$C$394)","v":""},null,{"$f":"IF($C$394=\"\",\"\",Z394/$C$394)","v":""},null,{"$f":"IF($C$394=\"\",\"\",AB394/$C$394)","v":""},null,{"$f":"IF($C$394=\"\",\"\",AD394/$C$394)","v":""},null,{"$f":"IF($C$394=\"\",\"\",AF394/$C$394)","v":""},null,{"$f":"IF($C$394=\"\",\"\",AH394/$C$394)","v":""},null,{"$f":"IF($C$394=\"\",\"\",AJ394/$C$394)","v":""},null,{"$f":"IF($C$394=\"\",\"\",AL394/$C$394)","v":""},null,{"$f":"IF($C$394=\"\",\"\",AN394/$C$394)","v":""},null,{"$f":"IF($C$394=\"\",\"\",AP394/$C$394)","v":""},null,{"$f":"IF($C$394=\"\",\"\",AR394/$C$394)","v":""},null,{"$f":"IF($C$394=\"\",\"\",AT394/$C$394)","v":""},null,{"$f":"IF($C$394=\"\",\"\",AV394/$C$394)","v":""},null,{"$f":"IF($C$394=\"\",\"\",AX394/$C$394)","v":""},null,{"$f":"IF($C$394=\"\",\"\",AZ394/$C$394)","v":""},null,{"$f":"IF($C$394=\"\",\"\",BB394/$C$394)","v":""},null,0]
[null,null,null,null,{"$f":"IF($C$395=\"\",\"\",F395/$C$395)","v":""},null,{"$f":"IF($C$395=\"\",\"\",H395/$C$395)","v":""},null,{"$f":"IF($C$395=\"\",\"\",J395/$C$395)","v":""},null,{"$f":"IF($C$395=\"\",\"\",L395/$C$395)","v":""},null,{"$f":"IF($C$395=\"\",\"\",N395/$C$395)","v":""},null,{"$f":"IF($C$395=\"\",\"\",P395/$C$395)","v":""},null,{"$f":"IF($C$395=\"\",\"\",R395/$C$395)","v":""},null,{"$f":"IF($C$395=\"\",\"\",T395/$C$395)","v":""},null,{"$f":"IF($C$395=\"\",\"\",V395/$C$395)","v":""},null,{"$f":"IF($C$395=\"\",\"\",X395/$C$395)","v":""},null,{"$f":"IF($C$395=\"\",\"\",Z395/$C$395)","v":""},null,{"$f":"IF($C$395=\"\",\"\",AB395/$C$395)","v":""},null,{"$f":"IF($C$395=\"\",\"\",AD395/$C$395)","v":""},null,{"$f":"IF($C$395=\"\",\"\",AF395/$C$395)","v":""},null,{"$f":"IF($C$395=\"\",\"\",AH395/$C$395)","v":""},null,{"$f":"IF($C$395=\"\",\"\",AJ395/$C$395)","v":""},null,{"$f":"IF($C$395=\"\",\"\",AL395/$C$395)","v":""},null,{"$f":"IF($C$395=\"\",\"\",AN395/$C$395)","v":""},null,{"$f":"IF($C$395=\"\",\"\",AP395/$C$395)","v":""},null,{"$f":"IF($C$395=\"\",\"\",AR395/$C$395)","v":""},null,{"$f":"IF($C$395=\"\",\"\",AT395/$C$395)","v":""},null,{"$f":"IF($C$395=\"\",\"\",AV395/$C$395)","v":""},null,{"$f":"IF($C$395=\"\",\"\",AX395/$C$395)","v":""},null,{"$f":"IF($C$395=\"\",\"\",AZ395/$C$395)","v":""},null,{"$f":"IF($C$395=\"\",\"\",BB395/$C$395)","v":""},null,0]
[null,null,null,null,{"$f":"IF($C$396=\"\",\"\",F396/$C$396)","v":""},null,{"$f":"IF($C$396=\"\",\"\",H396/$C$396)","v":""},null,{"$f":"IF($C$396=\"\",\"\",J396/$C$396)","v":""},null,{"$f":"IF($C$396=\"\",\"\",L396/$C$396)","v":""},null,{"$f":"IF($C$396=\"\",\"\",N396/$C$396)","v":""},null,{"$f":"IF($C$396=\"\",\"\",P396/$C$396)","v":""},null,{"$f":"IF($C$396=\"\",\"\",R396/$C$396)","v":""},null,{"$f":"IF($C$396=\"\",\"\",T396/$C$396)","v":""},null,{"$f":"IF($C$396=\"\",\"\",V396/$C$396)","v":""},null,{"$f":"IF($C$396=\"\",\"\",X396/$C$396)","v":""},null,{"$f":"IF($C$396=\"\",\"\",Z396/$C$396)","v":""},null,{"$f":"IF($C$396=\"\",\"\",AB396/$C$396)","v":""},null,{"$f":"IF($C$396=\"\",\"\",AD396/$C$396)","v":""},null,{"$f":"IF($C$396=\"\",\"\",AF396/$C$396)","v":""},null,{"$f":"IF($C$396=\"\",\"\",AH396/$C$396)","v":""},null,{"$f":"IF($C$396=\"\",\"\",AJ396/$C$396)","v":""},null,{"$f":"IF($C$396=\"\",\"\",AL396/$C$396)","v":""},null,{"$f":"IF($C$396=\"\",\"\",AN396/$C$396)","v":""},null,{"$f":"IF($C$396=\"\",\"\",AP396/$C$396)","v":""},null,{"$f":"IF($C$396=\"\",\"\",AR396/$C$396)","v":""},null,{"$f":"IF($C$396=\"\",\"\",AT396/$C$396)","v":""},null,{"$f":"IF($C$396=\"\",\"\",AV396/$C$396)","v":""},null,{"$f":"IF($C$396=\"\",\"\",AX396/$C$396)","v":""},null,{"$f":"IF($C$396=\"\",\"\",AZ396/$C$396)","v":""},null,{"$f":"IF($C$396=\"\",\"\",BB396/$C$396)","v":""},null,0]
[null,null,null,null,{"$f":"IF($C$397=\"\",\"\",F397/$C$397)","v":""},null,{"$f":"IF($C$397=\"\",\"\",H397/$C$397)","v":""},null,{"$f":"IF($C$397=\"\",\"\",J397/$C$397)","v":""},null,{"$f":"IF($C$397=\"\",\"\",L397/$C$397)","v":""},null,{"$f":"IF($C$397=\"\",\"\",N397/$C$397)","v":""},null,{"$f":"IF($C$397=\"\",\"\",P397/$C$397)","v":""},null,{"$f":"IF($C$397=\"\",\"\",R397/$C$397)","v":""},null,{"$f":"IF($C$397=\"\",\"\",T397/$C$397)","v":""},null,{"$f":"IF($C$397=\"\",\"\",V397/$C$397)","v":""},null,{"$f":"IF($C$397=\"\",\"\",X397/$C$397)","v":""},null,{"$f":"IF($C$397=\"\",\"\",Z397/$C$397)","v":""},null,{"$f":"IF($C$397=\"\",\"\",AB397/$C$397)","v":""},null,{"$f":"IF($C$397=\"\",\"\",AD397/$C$397)","v":""},null,{"$f":"IF($C$397=\"\",\"\",AF397/$C$397)","v":""},null,{"$f":"IF($C$397=\"\",\"\",AH397/$C$397)","v":""},null,{"$f":"IF($C$397=\"\",\"\",AJ397/$C$397)","v":""},null,{"$f":"IF($C$397=\"\",\"\",AL397/$C$397)","v":""},null,{"$f":"IF($C$397=\"\",\"\",AN397/$C$397)","v":""},null,{"$f":"IF($C$397=\"\",\"\",AP397/$C$397)","v":""},null,{"$f":"IF($C$397=\"\",\"\",AR397/$C$397)","v":""},null,{"$f":"IF($C$397=\"\",\"\",AT397/$C$397)","v":""},null,{"$f":"IF($C$397=\"\",\"\",AV397/$C$397)","v":""},null,{"$f":"IF($C$397=\"\",\"\",AX397/$C$397)","v":""},null,{"$f":"IF($C$397=\"\",\"\",AZ397/$C$397)","v":""},null,{"$f":"IF($C$397=\"\",\"\",BB397/$C$397)","v":""},null,0]
[null,null,null,null,{"$f":"IF($C$398=\"\",\"\",F398/$C$398)","v":""},null,{"$f":"IF($C$398=\"\",\"\",H398/$C$398)","v":""},null,{"$f":"IF($C$398=\"\",\"\",J398/$C$398)","v":""},null,{"$f":"IF($C$398=\"\",\"\",L398/$C$398)","v":""},null,{"$f":"IF($C$398=\"\",\"\",N398/$C$398)","v":""},null,{"$f":"IF($C$398=\"\",\"\",P398/$C$398)","v":""},null,{"$f":"IF($C$398=\"\",\"\",R398/$C$398)","v":""},null,{"$f":"IF($C$398=\"\",\"\",T398/$C$398)","v":""},null,{"$f":"IF($C$398=\"\",\"\",V398/$C$398)","v":""},null,{"$f":"IF($C$398=\"\",\"\",X398/$C$398)","v":""},null,{"$f":"IF($C$398=\"\",\"\",Z398/$C$398)","v":""},null,{"$f":"IF($C$398=\"\",\"\",AB398/$C$398)","v":""},null,{"$f":"IF($C$398=\"\",\"\",AD398/$C$398)","v":""},null,{"$f":"IF($C$398=\"\",\"\",AF398/$C$398)","v":""},null,{"$f":"IF($C$398=\"\",\"\",AH398/$C$398)","v":""},null,{"$f":"IF($C$398=\"\",\"\",AJ398/$C$398)","v":""},null,{"$f":"IF($C$398=\"\",\"\",AL398/$C$398)","v":""},null,{"$f":"IF($C$398=\"\",\"\",AN398/$C$398)","v":""},null,{"$f":"IF($C$398=\"\",\"\",AP398/$C$398)","v":""},null,{"$f":"IF($C$398=\"\",\"\",AR398/$C$398)","v":""},null,{"$f":"IF($C$398=\"\",\"\",AT398/$C$398)","v":""},null,{"$f":"IF($C$398=\"\",\"\",AV398/$C$398)","v":""},null,{"$f":"IF($C$398=\"\",\"\",AX398/$C$398)","v":""},null,{"$f":"IF($C$398=\"\",\"\",AZ398/$C$398)","v":""},null,{"$f":"IF($C$398=\"\",\"\",BB398/$C$398)","v":""},null,0]
[null,null,null,null,{"$f":"IF($C$399=\"\",\"\",F399/$C$399)","v":""},null,{"$f":"IF($C$399=\"\",\"\",H399/$C$399)","v":""},null,{"$f":"IF($C$399=\"\",\"\",J399/$C$399)","v":""},null,{"$f":"IF($C$399=\"\",\"\",L399/$C$399)","v":""},null,{"$f":"IF($C$399=\"\",\"\",N399/$C$399)","v":""},null,{"$f":"IF($C$399=\"\",\"\",P399/$C$399)","v":""},null,{"$f":"IF($C$399=\"\",\"\",R399/$C$399)","v":""},null,{"$f":"IF($C$399=\"\",\"\",T399/$C$399)","v":""},null,{"$f":"IF($C$399=\"\",\"\",V399/$C$399)","v":""},null,{"$f":"IF($C$399=\"\",\"\",X399/$C$399)","v":""},null,{"$f":"IF($C$399=\"\",\"\",Z399/$C$399)","v":""},null,{"$f":"IF($C$399=\"\",\"\",AB399/$C$399)","v":""},null,{"$f":"IF($C$399=\"\",\"\",AD399/$C$399)","v":""},null,{"$f":"IF($C$399=\"\",\"\",AF399/$C$399)","v":""},null,{"$f":"IF($C$399=\"\",\"\",AH399/$C$399)","v":""},null,{"$f":"IF($C$399=\"\",\"\",AJ399/$C$399)","v":""},null,{"$f":"IF($C$399=\"\",\"\",AL399/$C$399)","v":""},null,{"$f":"IF($C$399=\"\",\"\",AN399/$C$399)","v":""},null,{"$f":"IF($C$399=\"\",\"\",AP399/$C$399)","v":""},null,{"$f":"IF($C$399=\"\",\"\",AR399/$C$399)","v":""},null,{"$f":"IF($C$399=\"\",\"\",AT399/$C$399)","v":""},null,{"$f":"IF($C$399=\"\",\"\",AV399/$C$399)","v":""},null,{"$f":"IF($C$399=\"\",\"\",AX399/$C$399)","v":""},null,{"$f":"IF($C$399=\"\",\"\",AZ399/$C$399)","v":""},null,{"$f":"IF($C$399=\"\",\"\",BB399/$C$399)","v":""},null,0]
[null,null,null,null,{"$f":"IF($C$400=\"\",\"\",F400/$C$400)","v":""},null,{"$f":"IF($C$400=\"\",\"\",H400/$C$400)","v":""},null,{"$f":"IF($C$400=\"\",\"\",J400/$C$400)","v":""},null,{"$f":"IF($C$400=\"\",\"\",L400/$C$400)","v":""},null,{"$f":"IF($C$400=\"\",\"\",N400/$C$400)","v":""},null,{"$f":"IF($C$400=\"\",\"\",P400/$C$400)","v":""},null,{"$f":"IF($C$400=\"\",\"\",R400/$C$400)","v":""},null,{"$f":"IF($C$400=\"\",\"\",T400/$C$400)","v":""},null,{"$f":"IF($C$400=\"\",\"\",V400/$C$400)","v":""},null,{"$f":"IF($C$400=\"\",\"\",X400/$C$400)","v":""},null,{"$f":"IF($C$400=\"\",\"\",Z400/$C$400)","v":""},null,{"$f":"IF($C$400=\"\",\"\",AB400/$C$400)","v":""},null,{"$f":"IF($C$400=\"\",\"\",AD400/$C$400)","v":""},null,{"$f":"IF($C$400=\"\",\"\",AF400/$C$400)","v":""},null,{"$f":"IF($C$400=\"\",\"\",AH400/$C$400)","v":""},null,{"$f":"IF($C$400=\"\",\"\",AJ400/$C$400)","v":""},null,{"$f":"IF($C$400=\"\",\"\",AL400/$C$400)","v":""},null,{"$f":"IF($C$400=\"\",\"\",AN400/$C$400)","v":""},null,{"$f":"IF($C$400=\"\",\"\",AP400/$C$400)","v":""},null,{"$f":"IF($C$400=\"\",\"\",AR400/$C$400)","v":""},null,{"$f":"IF($C$400=\"\",\"\",AT400/$C$400)","v":""},null,{"$f":"IF($C$400=\"\",\"\",AV400/$C$400)","v":""},null,{"$f":"IF($C$400=\"\",\"\",AX400/$C$400)","v":""},null,{"$f":"IF($C$400=\"\",\"\",AZ400/$C$400)","v":""},null,{"$f":"IF($C$400=\"\",\"\",BB400/$C$400)","v":""},null,0]
[null,null,null,null,{"$f":"IF($C$401=\"\",\"\",F401/$C$401)","v":""},null,{"$f":"IF($C$401=\"\",\"\",H401/$C$401)","v":""},null,{"$f":"IF($C$401=\"\",\"\",J401/$C$401)","v":""},null,{"$f":"IF($C$401=\"\",\"\",L401/$C$401)","v":""},null,{"$f":"IF($C$401=\"\",\"\",N401/$C$401)","v":""},null,{"$f":"IF($C$401=\"\",\"\",P401/$C$401)","v":""},null,{"$f":"IF($C$401=\"\",\"\",R401/$C$401)","v":""},null,{"$f":"IF($C$401=\"\",\"\",T401/$C$401)","v":""},null,{"$f":"IF($C$401=\"\",\"\",V401/$C$401)","v":""},null,{"$f":"IF($C$401=\"\",\"\",X401/$C$401)","v":""},null,{"$f":"IF($C$401=\"\",\"\",Z401/$C$401)","v":""},null,{"$f":"IF($C$401=\"\",\"\",AB401/$C$401)","v":""},null,{"$f":"IF($C$401=\"\",\"\",AD401/$C$401)","v":""},null,{"$f":"IF($C$401=\"\",\"\",AF401/$C$401)","v":""},null,{"$f":"IF($C$401=\"\",\"\",AH401/$C$401)","v":""},null,{"$f":"IF($C$401=\"\",\"\",AJ401/$C$401)","v":""},null,{"$f":"IF($C$401=\"\",\"\",AL401/$C$401)","v":""},null,{"$f":"IF($C$401=\"\",\"\",AN401/$C$401)","v":""},null,{"$f":"IF($C$401=\"\",\"\",AP401/$C$401)","v":""},null,{"$f":"IF($C$401=\"\",\"\",AR401/$C$401)","v":""},null,{"$f":"IF($C$401=\"\",\"\",AT401/$C$401)","v":""},null,{"$f":"IF($C$401=\"\",\"\",AV401/$C$401)","v":""},null,{"$f":"IF($C$401=\"\",\"\",AX401/$C$401)","v":""},null,{"$f":"IF($C$401=\"\",\"\",AZ401/$C$401)","v":""},null,{"$f":"IF($C$401=\"\",\"\",BB401/$C$401)","v":""},null,0]
[null,null,null,null,{"$f":"IF($C$402=\"\",\"\",F402/$C$402)","v":""},null,{"$f":"IF($C$402=\"\",\"\",H402/$C$402)","v":""},null,{"$f":"IF($C$402=\"\",\"\",J402/$C$402)","v":""},null,{"$f":"IF($C$402=\"\",\"\",L402/$C$402)","v":""},null,{"$f":"IF($C$402=\"\",\"\",N402/$C$402)","v":""},null,{"$f":"IF($C$402=\"\",\"\",P402/$C$402)","v":""},null,{"$f":"IF($C$402=\"\",\"\",R402/$C$402)","v":""},null,{"$f":"IF($C$402=\"\",\"\",T402/$C$402)","v":""},null,{"$f":"IF($C$402=\"\",\"\",V402/$C$402)","v":""},null,{"$f":"IF($C$402=\"\",\"\",X402/$C$402)","v":""},null,{"$f":"IF($C$402=\"\",\"\",Z402/$C$402)","v":""},null,{"$f":"IF($C$402=\"\",\"\",AB402/$C$402)","v":""},null,{"$f":"IF($C$402=\"\",\"\",AD402/$C$402)","v":""},null,{"$f":"IF($C$402=\"\",\"\",AF402/$C$402)","v":""},null,{"$f":"IF($C$402=\"\",\"\",AH402/$C$402)","v":""},null,{"$f":"IF($C$402=\"\",\"\",AJ402/$C$402)","v":""},null,{"$f":"IF($C$402=\"\",\"\",AL402/$C$402)","v":""},null,{"$f":"IF($C$402=\"\",\"\",AN402/$C$402)","v":""},null,{"$f":"IF($C$402=\"\",\"\",AP402/$C$402)","v":""},null,{"$f":"IF($C$402=\"\",\"\",AR402/$C$402)","v":""},null,{"$f":"IF($C$402=\"\",\"\",AT402/$C$402)","v":""},null,{"$f":"IF($C$402=\"\",\"\",AV402/$C$402)","v":""},null,{"$f":"IF($C$402=\"\",\"\",AX402/$C$402)","v":""},null,{"$f":"IF($C$402=\"\",\"\",AZ402/$C$402)","v":""},null,{"$f":"IF($C$402=\"\",\"\",BB402/$C$402)","v":""},null,0]
[null,null,null,null,{"$f":"IF($C$403=\"\",\"\",F403/$C$403)","v":""},null,{"$f":"IF($C$403=\"\",\"\",H403/$C$403)","v":""},null,{"$f":"IF($C$403=\"\",\"\",J403/$C$403)","v":""},null,{"$f":"IF($C$403=\"\",\"\",L403/$C$403)","v":""},null,{"$f":"IF($C$403=\"\",\"\",N403/$C$403)","v":""},null,{"$f":"IF($C$403=\"\",\"\",P403/$C$403)","v":""},null,{"$f":"IF($C$403=\"\",\"\",R403/$C$403)","v":""},null,{"$f":"IF($C$403=\"\",\"\",T403/$C$403)","v":""},null,{"$f":"IF($C$403=\"\",\"\",V403/$C$403)","v":""},null,{"$f":"IF($C$403=\"\",\"\",X403/$C$403)","v":""},null,{"$f":"IF($C$403=\"\",\"\",Z403/$C$403)","v":""},null,{"$f":"IF($C$403=\"\",\"\",AB403/$C$403)","v":""},null,{"$f":"IF($C$403=\"\",\"\",AD403/$C$403)","v":""},null,{"$f":"IF($C$403=\"\",\"\",AF403/$C$403)","v":""},null,{"$f":"IF($C$403=\"\",\"\",AH403/$C$403)","v":""},null,{"$f":"IF($C$403=\"\",\"\",AJ403/$C$403)","v":""},null,{"$f":"IF($C$403=\"\",\"\",AL403/$C$403)","v":""},null,{"$f":"IF($C$403=\"\",\"\",AN403/$C$403)","v":""},null,{"$f":"IF($C$403=\"\",\"\",AP403/$C$403)","v":""},null,{"$f":"IF($C$403=\"\",\"\",AR403/$C$403)","v":""},null,{"$f":"IF($C$403=\"\",\"\",AT403/$C$403)","v":""},null,{"$f":"IF($C$403=\"\",\"\",AV403/$C$403)","v":""},null,{"$f":"IF($C$403=\"\",\"\",AX403/$C$403)","v":""},null,{"$f":"IF($C$403=\"\",\"\",AZ403/$C$403)","v":""},null,{"$f":"IF($C$403=\"\",\"\",BB403/$C$403)","v":""},null,0]
[null,null,null,null,{"$f":"IF($C$404=\"\",\"\",F404/$C$404)","v":""},null,{"$f":"IF($C$404=\"\",\"\",H404/$C$404)","v":""},null,{"$f":"IF($C$404=\"\",\"\",J404/$C$404)","v":""},null,{"$f":"IF($C$404=\"\",\"\",L404/$C$404)","v":""},null,{"$f":"IF($C$404=\"\",\"\",N404/$C$404)","v":""},null,{"$f":"IF($C$404=\"\",\"\",P404/$C$404)","v":""},null,{"$f":"IF($C$404=\"\",\"\",R404/$C$404)","v":""},null,{"$f":"IF($C$404=\"\",\"\",T404/$C$404)","v":""},null,{"$f":"IF($C$404=\"\",\"\",V404/$C$404)","v":""},null,{"$f":"IF($C$404=\"\",\"\",X404/$C$404)","v":""},null,{"$f":"IF($C$404=\"\",\"\",Z404/$C$404)","v":""},null,{"$f":"IF($C$404=\"\",\"\",AB404/$C$404)","v":""},null,{"$f":"IF($C$404=\"\",\"\",AD404/$C$404)","v":""},null,{"$f":"IF($C$404=\"\",\"\",AF404/$C$404)","v":""},null,{"$f":"IF($C$404=\"\",\"\",AH404/$C$404)","v":""},null,{"$f":"IF($C$404=\"\",\"\",AJ404/$C$404)","v":""},null,{"$f":"IF($C$404=\"\",\"\",AL404/$C$404)","v":""},null,{"$f":"IF($C$404=\"\",\"\",AN404/$C$404)","v":""},null,{"$f":"IF($C$404=\"\",\"\",AP404/$C$404)","v":""},null,{"$f":"IF($C$404=\"\",\"\",AR404/$C$404)","v":""},null,{"$f":"IF($C$404=\"\",\"\",AT404/$C$404)","v":""},null,{"$f":"IF($C$404=\"\",\"\",AV404/$C$404)","v":""},null,{"$f":"IF($C$404=\"\",\"\",AX404/$C$404)","v":""},null,{"$f":"IF($C$404=\"\",\"\",AZ404/$C$404)","v":""},null,{"$f":"IF($C$404=\"\",\"\",BB404/$C$404)","v":""},null,0]
[null,null,null,null,{"$f":"IF($C$405=\"\",\"\",F405/$C$405)","v":""},null,{"$f":"IF($C$405=\"\",\"\",H405/$C$405)","v":""},null,{"$f":"IF($C$405=\"\",\"\",J405/$C$405)","v":""},null,{"$f":"IF($C$405=\"\",\"\",L405/$C$405)","v":""},null,{"$f":"IF($C$405=\"\",\"\",N405/$C$405)","v":""},null,{"$f":"IF($C$405=\"\",\"\",P405/$C$405)","v":""},null,{"$f":"IF($C$405=\"\",\"\",R405/$C$405)","v":""},null,{"$f":"IF($C$405=\"\",\"\",T405/$C$405)","v":""},null,{"$f":"IF($C$405=\"\",\"\",V405/$C$405)","v":""},null,{"$f":"IF($C$405=\"\",\"\",X405/$C$405)","v":""},null,{"$f":"IF($C$405=\"\",\"\",Z405/$C$405)","v":""},null,{"$f":"IF($C$405=\"\",\"\",AB405/$C$405)","v":""},null,{"$f":"IF($C$405=\"\",\"\",AD405/$C$405)","v":""},null,{"$f":"IF($C$405=\"\",\"\",AF405/$C$405)","v":""},null,{"$f":"IF($C$405=\"\",\"\",AH405/$C$405)","v":""},null,{"$f":"IF($C$405=\"\",\"\",AJ405/$C$405)","v":""},null,{"$f":"IF($C$405=\"\",\"\",AL405/$C$405)","v":""},null,{"$f":"IF($C$405=\"\",\"\",AN405/$C$405)","v":""},null,{"$f":"IF($C$405=\"\",\"\",AP405/$C$405)","v":""},null,{"$f":"IF($C$405=\"\",\"\",AR405/$C$405)","v":""},null,{"$f":"IF($C$405=\"\",\"\",AT405/$C$405)","v":""},null,{"$f":"IF($C$405=\"\",\"\",AV405/$C$405)","v":""},null,{"$f":"IF($C$405=\"\",\"\",AX405/$C$405)","v":""},null,{"$f":"IF($C$405=\"\",\"\",AZ405/$C$405)","v":""},null,{"$f":"IF($C$405=\"\",\"\",BB405/$C$405)","v":""},null,{"$f":"SUM(BB405,AZ405,AX405,AV405,AT405,AR405,AP405,AN405,AL405,AJ405,AH405,AF405,AD405,AB405,Z405,X405,V405,T405,R405,P405,N405,L405,J405,H405,F405)","v":0}]
["TOTAL HOURS",null,null,null,null,{"$f":"SUM(F376:F405)","v":0},null,{"$f":"SUM(H376:H405)","v":0},null,{"$f":"SUM(J376:J405)","v":0},null,{"$f":"SUM(L376:L405)","v":0},null,{"$f":"SUM(N376:N405)","v":0},null,{"$f":"SUM(P376:P405)","v":0},null,{"$f":"SUM(R376:R405)","v":0},null,{"$f":"SUM(T376:T405)","v":0},null,{"$f":"SUM(V376:V405)","v":0},null,{"$f":"SUM(X376:X405)","v":0},null,{"$f":"SUM(Z376:Z405)","v":0},null,{"$f":"SUM(AB376:AB405)","v":0},null,{"$f":"SUM(AD376:AD405)","v":0},null,{"$f":"SUM(AF376:AF405)","v":0},null,{"$f":"SUM(AH376:AH405)","v":0},null,{"$f":"SUM(AJ376:AJ405)","v":0},null,{"$f":"SUM(AL376:AL405)","v":0},null,{"$f":"SUM(AN376:AN405)","v":0},null,{"$f":"SUM(AP376:AP405)","v":0},null,{"$f":"SUM(AR376:AR405)","v":0},null,{"$f":"SUM(AT376:AT405)","v":0},null,{"$f":"SUM(AV376:AV405)","v":0},null,{"$f":"SUM(AX376:AX405)","v":0},null,{"$f":"SUM(AZ376:AZ405)","v":0},null,{"$f":"SUM(BB376:BB405)","v":0},{"$f":"SUM(E406:BB406)","v":0}]
["TOTAL WORKDAYS",null,null,null,null,{"$f":"F406/8","v":0},null,{"$f":"H406/8","v":0},null,{"$f":"J406/8","v":0},null,{"$f":"L406/8","v":0},null,{"$f":"N406/8","v":0},null,{"$f":"P406/8","v":0},null,{"$f":"R406/8","v":0},null,{"$f":"T406/8","v":0},null,{"$f":"V406/8","v":0},null,{"$f":"X406/8","v":0},null,{"$f":"Z406/8","v":0},null,{"$f":"AB406/8","v":0},null,{"$f":"AD406/8","v":0},null,0,null,{"$f":"AH406/8","v":0},null,0,null,{"$f":"AL406/8","v":0},null,0,null,{"$f":"AP406/8","v":0},null,0,null,{"$f":"AT406/8","v":0},null,{"$f":"AV406/8","v":0},null,{"$f":"AX406/8","v":0},null,{"$f":"AZ406/8","v":0},null,{"$f":"BB406/8","v":0},{"$f":"SUM(E407:BB407)","v":0}]
["TOTAL RAW LABOR",null,null,null,null,{"$f":"$E$13*F406","v":0},null,{"$f":"$G$13*H406","v":0},null,{"$f":"$I$13*J406","v":0},null,{"$f":"$K$13*L406","v":0},null,{"$f":"$M$13*N406","v":0},null,{"$f":"$O$13*P406","v":0},null,{"$f":"$Q$13*R406","v":0},null,{"$f":"$S$13*T406","v":0},null,{"$f":"$U$13*V406","v":0},null,{"$f":"$W$13*X406","v":0},null,{"$f":"$Y$13*Z406","v":0},null,{"$f":"$AA$13*AB406","v":0},null,{"$f":"$AC$13*AD406","v":0},null,{"$f":"$AC$13*AF406","v":0},null,{"$f":"$AC$13*AH406","v":0},null,{"$f":"$AC$13*AJ406","v":0},null,{"$f":"$AC$13*AL406","v":0},null,{"$f":"$AC$13*AN406","v":0},null,{"$f":"$AC$13*AP406","v":0},null,{"$f":"$AC$13*AR406","v":0},null,{"$f":"$AC$13*AT406","v":0},null,{"$f":"$AC$13*AV406","v":0},null,{"$f":"$AC$13*AX406","v":0},null,{"$f":"$AC$13*AZ406","v":0},null,{"$f":"$AC$13*BB406","v":0},{"$f":"SUM(E408:BB408)","v":0}]
["Task 16.0     ","REPLACE FIELD WITH CATEGORY NAME OF YOUR CHOOSING HERE",null,null,null,null,null,null,null,null,null,null,null,null,null,null,null,null,null,null,null,null,null,null,null,null,null,null,null,null,null,null,null,null,null,null,null,null,null,null,null,null,null,null,null,null,null,null,null,null,null,null,null,null,{"$f":"IF(B409=\"REPLACE FIELD WITH CATEGORY NAME OF YOUR CHOOSING HERE\",0,\"\")","v":0}]
[null,null,null,null,{"$f":"IF($C$410=\"\",\"\",F410/$C$410)","v":""},null,{"$f":"IF($C$410=\"\",\"\",H410/$C$410)","v":""},null,{"$f":"IF($C$410=\"\",\"\",J410/$C$410)","v":""},null,{"$f":"IF($C$410=\"\",\"\",L410/$C$410)","v":""},null,{"$f":"IF($C$410=\"\",\"\",N410/$C$410)","v":""},null,{"$f":"IF($C$410=\"\",\"\",P410/$C$410)","v":""},null,{"$f":"IF($C$410=\"\",\"\",R410/$C$410)","v":""},null,{"$f":"IF($C$410=\"\",\"\",T410/$C$410)","v":""},null,{"$f":"IF($C$410=\"\",\"\",V410/$C$410)","v":""},null,{"$f":"IF($C$410=\"\",\"\",X410/$C$410)","v":""},null,{"$f":"IF($C$410=\"\",\"\",Z410/$C$410)","v":""},null,{"$f":"IF($C$410=\"\",\"\",AB410/$C$410)","v":""},null,{"$f":"IF($C$410=\"\",\"\",AD410/$C$410)","v":""},null,{"$f":"IF($C$410=\"\",\"\",AF410/$C$410)","v":""},null,{"$f":"IF($C$410=\"\",\"\",AH410/$C$410)","v":""},null,{"$f":"IF($C$410=\"\",\"\",AJ410/$C$410)","v":""},null,{"$f":"IF($C$410=\"\",\"\",AL410/$C$410)","v":""},null,{"$f":"IF($C$410=\"\",\"\",AN410/$C$410)","v":""},null,{"$f":"IF($C$410=\"\",\"\",AP410/$C$410)","v":""},null,{"$f":"IF($C$410=\"\",\"\",AR410/$C$410)","v":""},null,{"$f":"IF($C$410=\"\",\"\",AT410/$C$410)","v":""},null,{"$f":"IF($C$410=\"\",\"\",AV410/$C$410)","v":""},null,{"$f":"IF($C$410=\"\",\"\",AX410/$C$410)","v":""},null,{"$f":"IF($C$410=\"\",\"\",AZ410/$C$410)","v":""},null,{"$f":"IF($C$410=\"\",\"\",BB410/$C$410)","v":""},null,{"$f":"SUM(BB410,AZ410,AX410,AV410,AT410,AR410,AP410,AN410,AL410,AJ410,AH410,AF410,AD410,AB410,Z410,X410,V410,T410,R410,P410,N410,L410,J410,H410,F410)","v":0}]
[null,null,null,null,{"$f":"IF($C$411=\"\",\"\",F411/$C$411)","v":""},null,{"$f":"IF($C$411=\"\",\"\",H411/$C$411)","v":""},null,{"$f":"IF($C$411=\"\",\"\",J411/$C$411)","v":""},null,{"$f":"IF($C$411=\"\",\"\",L411/$C$411)","v":""},null,{"$f":"IF($C$411=\"\",\"\",N411/$C$411)","v":""},null,{"$f":"IF($C$411=\"\",\"\",P411/$C$411)","v":""},null,{"$f":"IF($C$411=\"\",\"\",R411/$C$411)","v":""},null,{"$f":"IF($C$411=\"\",\"\",T411/$C$411)","v":""},null,{"$f":"IF($C$411=\"\",\"\",V411/$C$411)","v":""},null,{"$f":"IF($C$411=\"\",\"\",X411/$C$411)","v":""},null,{"$f":"IF($C$411=\"\",\"\",Z411/$C$411)","v":""},null,{"$f":"IF($C$411=\"\",\"\",AB411/$C$411)","v":""},null,{"$f":"IF($C$411=\"\",\"\",AD411/$C$411)","v":""},null,{"$f":"IF($C$411=\"\",\"\",AF411/$C$411)","v":""},null,{"$f":"IF($C$411=\"\",\"\",AH411/$C$411)","v":""},null,{"$f":"IF($C$411=\"\",\"\",AJ411/$C$411)","v":""},null,{"$f":"IF($C$411=\"\",\"\",AL411/$C$411)","v":""},null,{"$f":"IF($C$411=\"\",\"\",AN411/$C$411)","v":""},null,{"$f":"IF($C$411=\"\",\"\",AP411/$C$411)","v":""},null,{"$f":"IF($C$411=\"\",\"\",AR411/$C$411)","v":""},null,{"$f":"IF($C$411=\"\",\"\",AT411/$C$411)","v":""},null,{"$f":"IF($C$411=\"\",\"\",AV411/$C$411)","v":""},null,{"$f":"IF($C$411=\"\",\"\",AX411/$C$411)","v":""},null,{"$f":"IF($C$411=\"\",\"\",AZ411/$C$411)","v":""},null,{"$f":"IF($C$411=\"\",\"\",BB411/$C$411)","v":""},null,0]
[null,null,null,null,{"$f":"IF($C$412=\"\",\"\",F412/$C$412)","v":""},null,{"$f":"IF($C$412=\"\",\"\",H412/$C$412)","v":""},null,{"$f":"IF($C$412=\"\",\"\",J412/$C$412)","v":""},null,{"$f":"IF($C$412=\"\",\"\",L412/$C$412)","v":""},null,{"$f":"IF($C$412=\"\",\"\",N412/$C$412)","v":""},null,{"$f":"IF($C$412=\"\",\"\",P412/$C$412)","v":""},null,{"$f":"IF($C$412=\"\",\"\",R412/$C$412)","v":""},null,{"$f":"IF($C$412=\"\",\"\",T412/$C$412)","v":""},null,{"$f":"IF($C$412=\"\",\"\",V412/$C$412)","v":""},null,{"$f":"IF($C$412=\"\",\"\",X412/$C$412)","v":""},null,{"$f":"IF($C$412=\"\",\"\",Z412/$C$412)","v":""},null,{"$f":"IF($C$412=\"\",\"\",AB412/$C$412)","v":""},null,{"$f":"IF($C$412=\"\",\"\",AD412/$C$412)","v":""},null,{"$f":"IF($C$412=\"\",\"\",AF412/$C$412)","v":""},null,{"$f":"IF($C$412=\"\",\"\",AH412/$C$412)","v":""},null,{"$f":"IF($C$412=\"\",\"\",AJ412/$C$412)","v":""},null,{"$f":"IF($C$412=\"\",\"\",AL412/$C$412)","v":""},null,{"$f":"IF($C$412=\"\",\"\",AN412/$C$412)","v":""},null,{"$f":"IF($C$412=\"\",\"\",AP412/$C$412)","v":""},null,{"$f":"IF($C$412=\"\",\"\",AR412/$C$412)","v":""},null,{"$f":"IF($C$412=\"\",\"\",AT412/$C$412)","v":""},null,{"$f":"IF($C$412=\"\",\"\",AV412/$C$412)","v":""},null,{"$f":"IF($C$412=\"\",\"\",AX412/$C$412)","v":""},null,{"$f":"IF($C$412=\"\",\"\",AZ412/$C$412)","v":""},null,{"$f":"IF($C$412=\"\",\"\",BB412/$C$412)","v":""},null,0]
[null,null,null,null,{"$f":"IF($C$413=\"\",\"\",F413/$C$413)","v":""},null,{"$f":"IF($C$413=\"\",\"\",H413/$C$413)","v":""},null,{"$f":"IF($C$413=\"\",\"\",J413/$C$413)","v":""},null,{"$f":"IF($C$413=\"\",\"\",L413/$C$413)","v":""},null,{"$f":"IF($C$413=\"\",\"\",N413/$C$413)","v":""},null,{"$f":"IF($C$413=\"\",\"\",P413/$C$413)","v":""},null,{"$f":"IF($C$413=\"\",\"\",R413/$C$413)","v":""},null,{"$f":"IF($C$413=\"\",\"\",T413/$C$413)","v":""},null,{"$f":"IF($C$413=\"\",\"\",V413/$C$413)","v":""},null,{"$f":"IF($C$413=\"\",\"\",X413/$C$413)","v":""},null,{"$f":"IF($C$413=\"\",\"\",Z413/$C$413)","v":""},null,{"$f":"IF($C$413=\"\",\"\",AB413/$C$413)","v":""},null,{"$f":"IF($C$413=\"\",\"\",AD413/$C$413)","v":""},null,{"$f":"IF($C$413=\"\",\"\",AF413/$C$413)","v":""},null,{"$f":"IF($C$413=\"\",\"\",AH413/$C$413)","v":""},null,{"$f":"IF($C$413=\"\",\"\",AJ413/$C$413)","v":""},null,{"$f":"IF($C$413=\"\",\"\",AL413/$C$413)","v":""},null,{"$f":"IF($C$413=\"\",\"\",AN413/$C$413)","v":""},null,{"$f":"IF($C$413=\"\",\"\",AP413/$C$413)","v":""},null,{"$f":"IF($C$413=\"\",\"\",AR413/$C$413)","v":""},null,{"$f":"IF($C$413=\"\",\"\",AT413/$C$413)","v":""},null,{"$f":"IF($C$413=\"\",\"\",AV413/$C$413)","v":""},null,{"$f":"IF($C$413=\"\",\"\",AX413/$C$413)","v":""},null,{"$f":"IF($C$413=\"\",\"\",AZ413/$C$413)","v":""},null,{"$f":"IF($C$413=\"\",\"\",BB413/$C$413)","v":""},null,0]
[null,null,null,null,{"$f":"IF($C$414=\"\",\"\",F414/$C$414)","v":""},null,{"$f":"IF($C$414=\"\",\"\",H414/$C$414)","v":""},null,{"$f":"IF($C$414=\"\",\"\",J414/$C$414)","v":""},null,{"$f":"IF($C$414=\"\",\"\",L414/$C$414)","v":""},null,{"$f":"IF($C$414=\"\",\"\",N414/$C$414)","v":""},null,{"$f":"IF($C$414=\"\",\"\",P414/$C$414)","v":""},null,{"$f":"IF($C$414=\"\",\"\",R414/$C$414)","v":""},null,{"$f":"IF($C$414=\"\",\"\",T414/$C$414)","v":""},null,{"$f":"IF($C$414=\"\",\"\",V414/$C$414)","v":""},null,{"$f":"IF($C$414=\"\",\"\",X414/$C$414)","v":""},null,{"$f":"IF($C$414=\"\",\"\",Z414/$C$414)","v":""},null,{"$f":"IF($C$414=\"\",\"\",AB414/$C$414)","v":""},null,{"$f":"IF($C$414=\"\",\"\",AD414/$C$414)","v":""},null,{"$f":"IF($C$414=\"\",\"\",AF414/$C$414)","v":""},null,{"$f":"IF($C$414=\"\",\"\",AH414/$C$414)","v":""},null,{"$f":"IF($C$414=\"\",\"\",AJ414/$C$414)","v":""},null,{"$f":"IF($C$414=\"\",\"\",AL414/$C$414)","v":""},null,{"$f":"IF($C$414=\"\",\"\",AN414/$C$414)","v":""},null,{"$f":"IF($C$414=\"\",\"\",AP414/$C$414)","v":""},null,{"$f":"IF($C$414=\"\",\"\",AR414/$C$414)","v":""},null,{"$f":"IF($C$414=\"\",\"\",AT414/$C$414)","v":""},null,{"$f":"IF($C$414=\"\",\"\",AV414/$C$414)","v":""},null,{"$f":"IF($C$414=\"\",\"\",AX414/$C$414)","v":""},null,{"$f":"IF($C$414=\"\",\"\",AZ414/$C$414)","v":""},null,{"$f":"IF($C$414=\"\",\"\",BB414/$C$414)","v":""},null,0]
[null,null,null,null,{"$f":"IF($C$415=\"\",\"\",F415/$C$415)","v":""},null,{"$f":"IF($C$415=\"\",\"\",H415/$C$415)","v":""},null,{"$f":"IF($C$415=\"\",\"\",J415/$C$415)","v":""},null,{"$f":"IF($C$415=\"\",\"\",L415/$C$415)","v":""},null,{"$f":"IF($C$415=\"\",\"\",N415/$C$415)","v":""},null,{"$f":"IF($C$415=\"\",\"\",P415/$C$415)","v":""},null,{"$f":"IF($C$415=\"\",\"\",R415/$C$415)","v":""},null,{"$f":"IF($C$415=\"\",\"\",T415/$C$415)","v":""},null,{"$f":"IF($C$415=\"\",\"\",V415/$C$415)","v":""},null,{"$f":"IF($C$415=\"\",\"\",X415/$C$415)","v":""},null,{"$f":"IF($C$415=\"\",\"\",Z415/$C$415)","v":""},null,{"$f":"IF($C$415=\"\",\"\",AB415/$C$415)","v":""},null,{"$f":"IF($C$415=\"\",\"\",AD415/$C$415)","v":""},null,{"$f":"IF($C$415=\"\",\"\",AF415/$C$415)","v":""},null,{"$f":"IF($C$415=\"\",\"\",AH415/$C$415)","v":""},null,{"$f":"IF($C$415=\"\",\"\",AJ415/$C$415)","v":""},null,{"$f":"IF($C$415=\"\",\"\",AL415/$C$415)","v":""},null,{"$f":"IF($C$415=\"\",\"\",AN415/$C$415)","v":""},null,{"$f":"IF($C$415=\"\",\"\",AP415/$C$415)","v":""},null,{"$f":"IF($C$415=\"\",\"\",AR415/$C$415)","v":""},null,{"$f":"IF($C$415=\"\",\"\",AT415/$C$415)","v":""},null,{"$f":"IF($C$415=\"\",\"\",AV415/$C$415)","v":""},null,{"$f":"IF($C$415=\"\",\"\",AX415/$C$415)","v":""},null,{"$f":"IF($C$415=\"\",\"\",AZ415/$C$415)","v":""},null,{"$f":"IF($C$415=\"\",\"\",BB415/$C$415)","v":""},null,0]
[null,null,null,null,{"$f":"IF($C$416=\"\",\"\",F416/$C$416)","v":""},null,{"$f":"IF($C$416=\"\",\"\",H416/$C$416)","v":""},null,{"$f":"IF($C$416=\"\",\"\",J416/$C$416)","v":""},null,{"$f":"IF($C$416=\"\",\"\",L416/$C$416)","v":""},null,{"$f":"IF($C$416=\"\",\"\",N416/$C$416)","v":""},null,{"$f":"IF($C$416=\"\",\"\",P416/$C$416)","v":""},null,{"$f":"IF($C$416=\"\",\"\",R416/$C$416)","v":""},null,{"$f":"IF($C$416=\"\",\"\",T416/$C$416)","v":""},null,{"$f":"IF($C$416=\"\",\"\",V416/$C$416)","v":""},null,{"$f":"IF($C$416=\"\",\"\",X416/$C$416)","v":""},null,{"$f":"IF($C$416=\"\",\"\",Z416/$C$416)","v":""},null,{"$f":"IF($C$416=\"\",\"\",AB416/$C$416)","v":""},null,{"$f":"IF($C$416=\"\",\"\",AD416/$C$416)","v":""},null,{"$f":"IF($C$416=\"\",\"\",AF416/$C$416)","v":""},null,{"$f":"IF($C$416=\"\",\"\",AH416/$C$416)","v":""},null,{"$f":"IF($C$416=\"\",\"\",AJ416/$C$416)","v":""},null,{"$f":"IF($C$416=\"\",\"\",AL416/$C$416)","v":""},null,{"$f":"IF($C$416=\"\",\"\",AN416/$C$416)","v":""},null,{"$f":"IF($C$416=\"\",\"\",AP416/$C$416)","v":""},null,{"$f":"IF($C$416=\"\",\"\",AR416/$C$416)","v":""},null,{"$f":"IF($C$416=\"\",\"\",AT416/$C$416)","v":""},null,{"$f":"IF($C$416=\"\",\"\",AV416/$C$416)","v":""},null,{"$f":"IF($C$416=\"\",\"\",AX416/$C$416)","v":""},null,{"$f":"IF($C$416=\"\",\"\",AZ416/$C$416)","v":""},null,{"$f":"IF($C$416=\"\",\"\",BB416/$C$416)","v":""},null,0]
[null,null,null,null,{"$f":"IF($C$417=\"\",\"\",F417/$C$417)","v":""},null,{"$f":"IF($C$417=\"\",\"\",H417/$C$417)","v":""},null,{"$f":"IF($C$417=\"\",\"\",J417/$C$417)","v":""},null,{"$f":"IF($C$417=\"\",\"\",L417/$C$417)","v":""},null,{"$f":"IF($C$417=\"\",\"\",N417/$C$417)","v":""},null,{"$f":"IF($C$417=\"\",\"\",P417/$C$417)","v":""},null,{"$f":"IF($C$417=\"\",\"\",R417/$C$417)","v":""},null,{"$f":"IF($C$417=\"\",\"\",T417/$C$417)","v":""},null,{"$f":"IF($C$417=\"\",\"\",V417/$C$417)","v":""},null,{"$f":"IF($C$417=\"\",\"\",X417/$C$417)","v":""},null,{"$f":"IF($C$417=\"\",\"\",Z417/$C$417)","v":""},null,{"$f":"IF($C$417=\"\",\"\",AB417/$C$417)","v":""},null,{"$f":"IF($C$417=\"\",\"\",AD417/$C$417)","v":""},null,{"$f":"IF($C$417=\"\",\"\",AF417/$C$417)","v":""},null,{"$f":"IF($C$417=\"\",\"\",AH417/$C$417)","v":""},null,{"$f":"IF($C$417=\"\",\"\",AJ417/$C$417)","v":""},null,{"$f":"IF($C$417=\"\",\"\",AL417/$C$417)","v":""},null,{"$f":"IF($C$417=\"\",\"\",AN417/$C$417)","v":""},null,{"$f":"IF($C$417=\"\",\"\",AP417/$C$417)","v":""},null,{"$f":"IF($C$417=\"\",\"\",AR417/$C$417)","v":""},null,{"$f":"IF($C$417=\"\",\"\",AT417/$C$417)","v":""},null,{"$f":"IF($C$417=\"\",\"\",AV417/$C$417)","v":""},null,{"$f":"IF($C$417=\"\",\"\",AX417/$C$417)","v":""},null,{"$f":"IF($C$417=\"\",\"\",AZ417/$C$417)","v":""},null,{"$f":"IF($C$417=\"\",\"\",BB417/$C$417)","v":""},null,0]
[null,null,null,null,{"$f":"IF($C$418=\"\",\"\",F418/$C$418)","v":""},null,{"$f":"IF($C$418=\"\",\"\",H418/$C$418)","v":""},null,{"$f":"IF($C$418=\"\",\"\",J418/$C$418)","v":""},null,{"$f":"IF($C$418=\"\",\"\",L418/$C$418)","v":""},null,{"$f":"IF($C$418=\"\",\"\",N418/$C$418)","v":""},null,{"$f":"IF($C$418=\"\",\"\",P418/$C$418)","v":""},null,{"$f":"IF($C$418=\"\",\"\",R418/$C$418)","v":""},null,{"$f":"IF($C$418=\"\",\"\",T418/$C$418)","v":""},null,{"$f":"IF($C$418=\"\",\"\",V418/$C$418)","v":""},null,{"$f":"IF($C$418=\"\",\"\",X418/$C$418)","v":""},null,{"$f":"IF($C$418=\"\",\"\",Z418/$C$418)","v":""},null,{"$f":"IF($C$418=\"\",\"\",AB418/$C$418)","v":""},null,{"$f":"IF($C$418=\"\",\"\",AD418/$C$418)","v":""},null,{"$f":"IF($C$418=\"\",\"\",AF418/$C$418)","v":""},null,{"$f":"IF($C$418=\"\",\"\",AH418/$C$418)","v":""},null,{"$f":"IF($C$418=\"\",\"\",AJ418/$C$418)","v":""},null,{"$f":"IF($C$418=\"\",\"\",AL418/$C$418)","v":""},null,{"$f":"IF($C$418=\"\",\"\",AN418/$C$418)","v":""},null,{"$f":"IF($C$418=\"\",\"\",AP418/$C$418)","v":""},null,{"$f":"IF($C$418=\"\",\"\",AR418/$C$418)","v":""},null,{"$f":"IF($C$418=\"\",\"\",AT418/$C$418)","v":""},null,{"$f":"IF($C$418=\"\",\"\",AV418/$C$418)","v":""},null,{"$f":"IF($C$418=\"\",\"\",AX418/$C$418)","v":""},null,{"$f":"IF($C$418=\"\",\"\",AZ418/$C$418)","v":""},null,{"$f":"IF($C$418=\"\",\"\",BB418/$C$418)","v":""},null,0]
[null,null,null,null,{"$f":"IF($C$419=\"\",\"\",F419/$C$419)","v":""},null,{"$f":"IF($C$419=\"\",\"\",H419/$C$419)","v":""},null,{"$f":"IF($C$419=\"\",\"\",J419/$C$419)","v":""},null,{"$f":"IF($C$419=\"\",\"\",L419/$C$419)","v":""},null,{"$f":"IF($C$419=\"\",\"\",N419/$C$419)","v":""},null,{"$f":"IF($C$419=\"\",\"\",P419/$C$419)","v":""},null,{"$f":"IF($C$419=\"\",\"\",R419/$C$419)","v":""},null,{"$f":"IF($C$419=\"\",\"\",T419/$C$419)","v":""},null,{"$f":"IF($C$419=\"\",\"\",V419/$C$419)","v":""},null,{"$f":"IF($C$419=\"\",\"\",X419/$C$419)","v":""},null,{"$f":"IF($C$419=\"\",\"\",Z419/$C$419)","v":""},null,{"$f":"IF($C$419=\"\",\"\",AB419/$C$419)","v":""},null,{"$f":"IF($C$419=\"\",\"\",AD419/$C$419)","v":""},null,{"$f":"IF($C$419=\"\",\"\",AF419/$C$419)","v":""},null,{"$f":"IF($C$419=\"\",\"\",AH419/$C$419)","v":""},null,{"$f":"IF($C$419=\"\",\"\",AJ419/$C$419)","v":""},null,{"$f":"IF($C$419=\"\",\"\",AL419/$C$419)","v":""},null,{"$f":"IF($C$419=\"\",\"\",AN419/$C$419)","v":""},null,{"$f":"IF($C$419=\"\",\"\",AP419/$C$419)","v":""},null,{"$f":"IF($C$419=\"\",\"\",AR419/$C$419)","v":""},null,{"$f":"IF($C$419=\"\",\"\",AT419/$C$419)","v":""},null,{"$f":"IF($C$419=\"\",\"\",AV419/$C$419)","v":""},null,{"$f":"IF($C$419=\"\",\"\",AX419/$C$419)","v":""},null,{"$f":"IF($C$419=\"\",\"\",AZ419/$C$419)","v":""},null,{"$f":"IF($C$419=\"\",\"\",BB419/$C$419)","v":""},null,0]
[null,null,null,null,{"$f":"IF($C$420=\"\",\"\",F420/$C$420)","v":""},null,{"$f":"IF($C$420=\"\",\"\",H420/$C$420)","v":""},null,{"$f":"IF($C$420=\"\",\"\",J420/$C$420)","v":""},null,{"$f":"IF($C$420=\"\",\"\",L420/$C$420)","v":""},null,{"$f":"IF($C$420=\"\",\"\",N420/$C$420)","v":""},null,{"$f":"IF($C$420=\"\",\"\",P420/$C$420)","v":""},null,{"$f":"IF($C$420=\"\",\"\",R420/$C$420)","v":""},null,{"$f":"IF($C$420=\"\",\"\",T420/$C$420)","v":""},null,{"$f":"IF($C$420=\"\",\"\",V420/$C$420)","v":""},null,{"$f":"IF($C$420=\"\",\"\",X420/$C$420)","v":""},null,{"$f":"IF($C$420=\"\",\"\",Z420/$C$420)","v":""},null,{"$f":"IF($C$420=\"\",\"\",AB420/$C$420)","v":""},null,{"$f":"IF($C$420=\"\",\"\",AD420/$C$420)","v":""},null,{"$f":"IF($C$420=\"\",\"\",AF420/$C$420)","v":""},null,{"$f":"IF($C$420=\"\",\"\",AH420/$C$420)","v":""},null,{"$f":"IF($C$420=\"\",\"\",AJ420/$C$420)","v":""},null,{"$f":"IF($C$420=\"\",\"\",AL420/$C$420)","v":""},null,{"$f":"IF($C$420=\"\",\"\",AN420/$C$420)","v":""},null,{"$f":"IF($C$420=\"\",\"\",AP420/$C$420)","v":""},null,{"$f":"IF($C$420=\"\",\"\",AR420/$C$420)","v":""},null,{"$f":"IF($C$420=\"\",\"\",AT420/$C$420)","v":""},null,{"$f":"IF($C$420=\"\",\"\",AV420/$C$420)","v":""},null,{"$f":"IF($C$420=\"\",\"\",AX420/$C$420)","v":""},null,{"$f":"IF($C$420=\"\",\"\",AZ420/$C$420)","v":""},null,{"$f":"IF($C$420=\"\",\"\",BB420/$C$420)","v":""},null,0]
[null,null,null,null,{"$f":"IF($C$421=\"\",\"\",F421/$C$421)","v":""},null,{"$f":"IF($C$421=\"\",\"\",H421/$C$421)","v":""},null,{"$f":"IF($C$421=\"\",\"\",J421/$C$421)","v":""},null,{"$f":"IF($C$421=\"\",\"\",L421/$C$421)","v":""},null,{"$f":"IF($C$421=\"\",\"\",N421/$C$421)","v":""},null,{"$f":"IF($C$421=\"\",\"\",P421/$C$421)","v":""},null,{"$f":"IF($C$421=\"\",\"\",R421/$C$421)","v":""},null,{"$f":"IF($C$421=\"\",\"\",T421/$C$421)","v":""},null,{"$f":"IF($C$421=\"\",\"\",V421/$C$421)","v":""},null,{"$f":"IF($C$421=\"\",\"\",X421/$C$421)","v":""},null,{"$f":"IF($C$421=\"\",\"\",Z421/$C$421)","v":""},null,{"$f":"IF($C$421=\"\",\"\",AB421/$C$421)","v":""},null,{"$f":"IF($C$421=\"\",\"\",AD421/$C$421)","v":""},null,{"$f":"IF($C$421=\"\",\"\",AF421/$C$421)","v":""},null,{"$f":"IF($C$421=\"\",\"\",AH421/$C$421)","v":""},null,{"$f":"IF($C$421=\"\",\"\",AJ421/$C$421)","v":""},null,{"$f":"IF($C$421=\"\",\"\",AL421/$C$421)","v":""},null,{"$f":"IF($C$421=\"\",\"\",AN421/$C$421)","v":""},null,{"$f":"IF($C$421=\"\",\"\",AP421/$C$421)","v":""},null,{"$f":"IF($C$421=\"\",\"\",AR421/$C$421)","v":""},null,{"$f":"IF($C$421=\"\",\"\",AT421/$C$421)","v":""},null,{"$f":"IF($C$421=\"\",\"\",AV421/$C$421)","v":""},null,{"$f":"IF($C$421=\"\",\"\",AX421/$C$421)","v":""},null,{"$f":"IF($C$421=\"\",\"\",AZ421/$C$421)","v":""},null,{"$f":"IF($C$421=\"\",\"\",BB421/$C$421)","v":""},null,0]
[null,null,null,null,{"$f":"IF($C$422=\"\",\"\",F422/$C$422)","v":""},null,{"$f":"IF($C$422=\"\",\"\",H422/$C$422)","v":""},null,{"$f":"IF($C$422=\"\",\"\",J422/$C$422)","v":""},null,{"$f":"IF($C$422=\"\",\"\",L422/$C$422)","v":""},null,{"$f":"IF($C$422=\"\",\"\",N422/$C$422)","v":""},null,{"$f":"IF($C$422=\"\",\"\",P422/$C$422)","v":""},null,{"$f":"IF($C$422=\"\",\"\",R422/$C$422)","v":""},null,{"$f":"IF($C$422=\"\",\"\",T422/$C$422)","v":""},null,{"$f":"IF($C$422=\"\",\"\",V422/$C$422)","v":""},null,{"$f":"IF($C$422=\"\",\"\",X422/$C$422)","v":""},null,{"$f":"IF($C$422=\"\",\"\",Z422/$C$422)","v":""},null,{"$f":"IF($C$422=\"\",\"\",AB422/$C$422)","v":""},null,{"$f":"IF($C$422=\"\",\"\",AD422/$C$422)","v":""},null,{"$f":"IF($C$422=\"\",\"\",AF422/$C$422)","v":""},null,{"$f":"IF($C$422=\"\",\"\",AH422/$C$422)","v":""},null,{"$f":"IF($C$422=\"\",\"\",AJ422/$C$422)","v":""},null,{"$f":"IF($C$422=\"\",\"\",AL422/$C$422)","v":""},null,{"$f":"IF($C$422=\"\",\"\",AN422/$C$422)","v":""},null,{"$f":"IF($C$422=\"\",\"\",AP422/$C$422)","v":""},null,{"$f":"IF($C$422=\"\",\"\",AR422/$C$422)","v":""},null,{"$f":"IF($C$422=\"\",\"\",AT422/$C$422)","v":""},null,{"$f":"IF($C$422=\"\",\"\",AV422/$C$422)","v":""},null,{"$f":"IF($C$422=\"\",\"\",AX422/$C$422)","v":""},null,{"$f":"IF($C$422=\"\",\"\",AZ422/$C$422)","v":""},null,{"$f":"IF($C$422=\"\",\"\",BB422/$C$422)","v":""},null,0]
[null,null,null,null,{"$f":"IF($C$423=\"\",\"\",F423/$C$423)","v":""},null,{"$f":"IF($C$423=\"\",\"\",H423/$C$423)","v":""},null,{"$f":"IF($C$423=\"\",\"\",J423/$C$423)","v":""},null,{"$f":"IF($C$423=\"\",\"\",L423/$C$423)","v":""},null,{"$f":"IF($C$423=\"\",\"\",N423/$C$423)","v":""},null,{"$f":"IF($C$423=\"\",\"\",P423/$C$423)","v":""},null,{"$f":"IF($C$423=\"\",\"\",R423/$C$423)","v":""},null,{"$f":"IF($C$423=\"\",\"\",T423/$C$423)","v":""},null,{"$f":"IF($C$423=\"\",\"\",V423/$C$423)","v":""},null,{"$f":"IF($C$423=\"\",\"\",X423/$C$423)","v":""},null,{"$f":"IF($C$423=\"\",\"\",Z423/$C$423)","v":""},null,{"$f":"IF($C$423=\"\",\"\",AB423/$C$423)","v":""},null,{"$f":"IF($C$423=\"\",\"\",AD423/$C$423)","v":""},null,{"$f":"IF($C$423=\"\",\"\",AF423/$C$423)","v":""},null,{"$f":"IF($C$423=\"\",\"\",AH423/$C$423)","v":""},null,{"$f":"IF($C$423=\"\",\"\",AJ423/$C$423)","v":""},null,{"$f":"IF($C$423=\"\",\"\",AL423/$C$423)","v":""},null,{"$f":"IF($C$423=\"\",\"\",AN423/$C$423)","v":""},null,{"$f":"IF($C$423=\"\",\"\",AP423/$C$423)","v":""},null,{"$f":"IF($C$423=\"\",\"\",AR423/$C$423)","v":""},null,{"$f":"IF($C$423=\"\",\"\",AT423/$C$423)","v":""},null,{"$f":"IF($C$423=\"\",\"\",AV423/$C$423)","v":""},null,{"$f":"IF($C$423=\"\",\"\",AX423/$C$423)","v":""},null,{"$f":"IF($C$423=\"\",\"\",AZ423/$C$423)","v":""},null,{"$f":"IF($C$423=\"\",\"\",BB423/$C$423)","v":""},null,0]
[null,null,null,null,{"$f":"IF($C$424=\"\",\"\",F424/$C$424)","v":""},null,{"$f":"IF($C$424=\"\",\"\",H424/$C$424)","v":""},null,{"$f":"IF($C$424=\"\",\"\",J424/$C$424)","v":""},null,{"$f":"IF($C$424=\"\",\"\",L424/$C$424)","v":""},null,{"$f":"IF($C$424=\"\",\"\",N424/$C$424)","v":""},null,{"$f":"IF($C$424=\"\",\"\",P424/$C$424)","v":""},null,{"$f":"IF($C$424=\"\",\"\",R424/$C$424)","v":""},null,{"$f":"IF($C$424=\"\",\"\",T424/$C$424)","v":""},null,{"$f":"IF($C$424=\"\",\"\",V424/$C$424)","v":""},null,{"$f":"IF($C$424=\"\",\"\",X424/$C$424)","v":""},null,{"$f":"IF($C$424=\"\",\"\",Z424/$C$424)","v":""},null,{"$f":"IF($C$424=\"\",\"\",AB424/$C$424)","v":""},null,{"$f":"IF($C$424=\"\",\"\",AD424/$C$424)","v":""},null,{"$f":"IF($C$424=\"\",\"\",AF424/$C$424)","v":""},null,{"$f":"IF($C$424=\"\",\"\",AH424/$C$424)","v":""},null,{"$f":"IF($C$424=\"\",\"\",AJ424/$C$424)","v":""},null,{"$f":"IF($C$424=\"\",\"\",AL424/$C$424)","v":""},null,{"$f":"IF($C$424=\"\",\"\",AN424/$C$424)","v":""},null,{"$f":"IF($C$424=\"\",\"\",AP424/$C$424)","v":""},null,{"$f":"IF($C$424=\"\",\"\",AR424/$C$424)","v":""},null,{"$f":"IF($C$424=\"\",\"\",AT424/$C$424)","v":""},null,{"$f":"IF($C$424=\"\",\"\",AV424/$C$424)","v":""},null,{"$f":"IF($C$424=\"\",\"\",AX424/$C$424)","v":""},null,{"$f":"IF($C$424=\"\",\"\",AZ424/$C$424)","v":""},null,{"$f":"IF($C$424=\"\",\"\",BB424/$C$424)","v":""},null,0]
[null,null,null,null,{"$f":"IF($C$425=\"\",\"\",F425/$C$425)","v":""},null,{"$f":"IF($C$425=\"\",\"\",H425/$C$425)","v":""},null,{"$f":"IF($C$425=\"\",\"\",J425/$C$425)","v":""},null,{"$f":"IF($C$425=\"\",\"\",L425/$C$425)","v":""},null,{"$f":"IF($C$425=\"\",\"\",N425/$C$425)","v":""},null,{"$f":"IF($C$425=\"\",\"\",P425/$C$425)","v":""},null,{"$f":"IF($C$425=\"\",\"\",R425/$C$425)","v":""},null,{"$f":"IF($C$425=\"\",\"\",T425/$C$425)","v":""},null,{"$f":"IF($C$425=\"\",\"\",V425/$C$425)","v":""},null,{"$f":"IF($C$425=\"\",\"\",X425/$C$425)","v":""},null,{"$f":"IF($C$425=\"\",\"\",Z425/$C$425)","v":""},null,{"$f":"IF($C$425=\"\",\"\",AB425/$C$425)","v":""},null,{"$f":"IF($C$425=\"\",\"\",AD425/$C$425)","v":""},null,{"$f":"IF($C$425=\"\",\"\",AF425/$C$425)","v":""},null,{"$f":"IF($C$425=\"\",\"\",AH425/$C$425)","v":""},null,{"$f":"IF($C$425=\"\",\"\",AJ425/$C$425)","v":""},null,{"$f":"IF($C$425=\"\",\"\",AL425/$C$425)","v":""},null,{"$f":"IF($C$425=\"\",\"\",AN425/$C$425)","v":""},null,{"$f":"IF($C$425=\"\",\"\",AP425/$C$425)","v":""},null,{"$f":"IF($C$425=\"\",\"\",AR425/$C$425)","v":""},null,{"$f":"IF($C$425=\"\",\"\",AT425/$C$425)","v":""},null,{"$f":"IF($C$425=\"\",\"\",AV425/$C$425)","v":""},null,{"$f":"IF($C$425=\"\",\"\",AX425/$C$425)","v":""},null,{"$f":"IF($C$425=\"\",\"\",AZ425/$C$425)","v":""},null,{"$f":"IF($C$425=\"\",\"\",BB425/$C$425)","v":""},null,0]
[null,null,null,null,{"$f":"IF($C$426=\"\",\"\",F426/$C$426)","v":""},null,{"$f":"IF($C$426=\"\",\"\",H426/$C$426)","v":""},null,{"$f":"IF($C$426=\"\",\"\",J426/$C$426)","v":""},null,{"$f":"IF($C$426=\"\",\"\",L426/$C$426)","v":""},null,{"$f":"IF($C$426=\"\",\"\",N426/$C$426)","v":""},null,{"$f":"IF($C$426=\"\",\"\",P426/$C$426)","v":""},null,{"$f":"IF($C$426=\"\",\"\",R426/$C$426)","v":""},null,{"$f":"IF($C$426=\"\",\"\",T426/$C$426)","v":""},null,{"$f":"IF($C$426=\"\",\"\",V426/$C$426)","v":""},null,{"$f":"IF($C$426=\"\",\"\",X426/$C$426)","v":""},null,{"$f":"IF($C$426=\"\",\"\",Z426/$C$426)","v":""},null,{"$f":"IF($C$426=\"\",\"\",AB426/$C$426)","v":""},null,{"$f":"IF($C$426=\"\",\"\",AD426/$C$426)","v":""},null,{"$f":"IF($C$426=\"\",\"\",AF426/$C$426)","v":""},null,{"$f":"IF($C$426=\"\",\"\",AH426/$C$426)","v":""},null,{"$f":"IF($C$426=\"\",\"\",AJ426/$C$426)","v":""},null,{"$f":"IF($C$426=\"\",\"\",AL426/$C$426)","v":""},null,{"$f":"IF($C$426=\"\",\"\",AN426/$C$426)","v":""},null,{"$f":"IF($C$426=\"\",\"\",AP426/$C$426)","v":""},null,{"$f":"IF($C$426=\"\",\"\",AR426/$C$426)","v":""},null,{"$f":"IF($C$426=\"\",\"\",AT426/$C$426)","v":""},null,{"$f":"IF($C$426=\"\",\"\",AV426/$C$426)","v":""},null,{"$f":"IF($C$426=\"\",\"\",AX426/$C$426)","v":""},null,{"$f":"IF($C$426=\"\",\"\",AZ426/$C$426)","v":""},null,{"$f":"IF($C$426=\"\",\"\",BB426/$C$426)","v":""},null,0]
[null,null,null,null,{"$f":"IF($C$427=\"\",\"\",F427/$C$427)","v":""},null,{"$f":"IF($C$427=\"\",\"\",H427/$C$427)","v":""},null,{"$f":"IF($C$427=\"\",\"\",J427/$C$427)","v":""},null,{"$f":"IF($C$427=\"\",\"\",L427/$C$427)","v":""},null,{"$f":"IF($C$427=\"\",\"\",N427/$C$427)","v":""},null,{"$f":"IF($C$427=\"\",\"\",P427/$C$427)","v":""},null,{"$f":"IF($C$427=\"\",\"\",R427/$C$427)","v":""},null,{"$f":"IF($C$427=\"\",\"\",T427/$C$427)","v":""},null,{"$f":"IF($C$427=\"\",\"\",V427/$C$427)","v":""},null,{"$f":"IF($C$427=\"\",\"\",X427/$C$427)","v":""},null,{"$f":"IF($C$427=\"\",\"\",Z427/$C$427)","v":""},null,{"$f":"IF($C$427=\"\",\"\",AB427/$C$427)","v":""},null,{"$f":"IF($C$427=\"\",\"\",AD427/$C$427)","v":""},null,{"$f":"IF($C$427=\"\",\"\",AF427/$C$427)","v":""},null,{"$f":"IF($C$427=\"\",\"\",AH427/$C$427)","v":""},null,{"$f":"IF($C$427=\"\",\"\",AJ427/$C$427)","v":""},null,{"$f":"IF($C$427=\"\",\"\",AL427/$C$427)","v":""},null,{"$f":"IF($C$427=\"\",\"\",AN427/$C$427)","v":""},null,{"$f":"IF($C$427=\"\",\"\",AP427/$C$427)","v":""},null,{"$f":"IF($C$427=\"\",\"\",AR427/$C$427)","v":""},null,{"$f":"IF($C$427=\"\",\"\",AT427/$C$427)","v":""},null,{"$f":"IF($C$427=\"\",\"\",AV427/$C$427)","v":""},null,{"$f":"IF($C$427=\"\",\"\",AX427/$C$427)","v":""},null,{"$f":"IF($C$427=\"\",\"\",AZ427/$C$427)","v":""},null,{"$f":"IF($C$427=\"\",\"\",BB427/$C$427)","v":""},null,0]
[null,null,null,null,{"$f":"IF($C$428=\"\",\"\",F428/$C$428)","v":""},null,{"$f":"IF($C$428=\"\",\"\",H428/$C$428)","v":""},null,{"$f":"IF($C$428=\"\",\"\",J428/$C$428)","v":""},null,{"$f":"IF($C$428=\"\",\"\",L428/$C$428)","v":""},null,{"$f":"IF($C$428=\"\",\"\",N428/$C$428)","v":""},null,{"$f":"IF($C$428=\"\",\"\",P428/$C$428)","v":""},null,{"$f":"IF($C$428=\"\",\"\",R428/$C$428)","v":""},null,{"$f":"IF($C$428=\"\",\"\",T428/$C$428)","v":""},null,{"$f":"IF($C$428=\"\",\"\",V428/$C$428)","v":""},null,{"$f":"IF($C$428=\"\",\"\",X428/$C$428)","v":""},null,{"$f":"IF($C$428=\"\",\"\",Z428/$C$428)","v":""},null,{"$f":"IF($C$428=\"\",\"\",AB428/$C$428)","v":""},null,{"$f":"IF($C$428=\"\",\"\",AD428/$C$428)","v":""},null,{"$f":"IF($C$428=\"\",\"\",AF428/$C$428)","v":""},null,{"$f":"IF($C$428=\"\",\"\",AH428/$C$428)","v":""},null,{"$f":"IF($C$428=\"\",\"\",AJ428/$C$428)","v":""},null,{"$f":"IF($C$428=\"\",\"\",AL428/$C$428)","v":""},null,{"$f":"IF($C$428=\"\",\"\",AN428/$C$428)","v":""},null,{"$f":"IF($C$428=\"\",\"\",AP428/$C$428)","v":""},null,{"$f":"IF($C$428=\"\",\"\",AR428/$C$428)","v":""},null,{"$f":"IF($C$428=\"\",\"\",AT428/$C$428)","v":""},null,{"$f":"IF($C$428=\"\",\"\",AV428/$C$428)","v":""},null,{"$f":"IF($C$428=\"\",\"\",AX428/$C$428)","v":""},null,{"$f":"IF($C$428=\"\",\"\",AZ428/$C$428)","v":""},null,{"$f":"IF($C$428=\"\",\"\",BB428/$C$428)","v":""},null,0]
[null,null,null,null,{"$f":"IF($C$429=\"\",\"\",F429/$C$429)","v":""},null,{"$f":"IF($C$429=\"\",\"\",H429/$C$429)","v":""},null,{"$f":"IF($C$429=\"\",\"\",J429/$C$429)","v":""},null,{"$f":"IF($C$429=\"\",\"\",L429/$C$429)","v":""},null,{"$f":"IF($C$429=\"\",\"\",N429/$C$429)","v":""},null,{"$f":"IF($C$429=\"\",\"\",P429/$C$429)","v":""},null,{"$f":"IF($C$429=\"\",\"\",R429/$C$429)","v":""},null,{"$f":"IF($C$429=\"\",\"\",T429/$C$429)","v":""},null,{"$f":"IF($C$429=\"\",\"\",V429/$C$429)","v":""},null,{"$f":"IF($C$429=\"\",\"\",X429/$C$429)","v":""},null,{"$f":"IF($C$429=\"\",\"\",Z429/$C$429)","v":""},null,{"$f":"IF($C$429=\"\",\"\",AB429/$C$429)","v":""},null,{"$f":"IF($C$429=\"\",\"\",AD429/$C$429)","v":""},null,{"$f":"IF($C$429=\"\",\"\",AF429/$C$429)","v":""},null,{"$f":"IF($C$429=\"\",\"\",AH429/$C$429)","v":""},null,{"$f":"IF($C$429=\"\",\"\",AJ429/$C$429)","v":""},null,{"$f":"IF($C$429=\"\",\"\",AL429/$C$429)","v":""},null,{"$f":"IF($C$429=\"\",\"\",AN429/$C$429)","v":""},null,{"$f":"IF($C$429=\"\",\"\",AP429/$C$429)","v":""},null,{"$f":"IF($C$429=\"\",\"\",AR429/$C$429)","v":""},null,{"$f":"IF($C$429=\"\",\"\",AT429/$C$429)","v":""},null,{"$f":"IF($C$429=\"\",\"\",AV429/$C$429)","v":""},null,{"$f":"IF($C$429=\"\",\"\",AX429/$C$429)","v":""},null,{"$f":"IF($C$429=\"\",\"\",AZ429/$C$429)","v":""},null,{"$f":"IF($C$429=\"\",\"\",BB429/$C$429)","v":""},null,0]
[null,null,null,null,{"$f":"IF($C$430=\"\",\"\",F430/$C$430)","v":""},null,{"$f":"IF($C$430=\"\",\"\",H430/$C$430)","v":""},null,{"$f":"IF($C$430=\"\",\"\",J430/$C$430)","v":""},null,{"$f":"IF($C$430=\"\",\"\",L430/$C$430)","v":""},null,{"$f":"IF($C$430=\"\",\"\",N430/$C$430)","v":""},null,{"$f":"IF($C$430=\"\",\"\",P430/$C$430)","v":""},null,{"$f":"IF($C$430=\"\",\"\",R430/$C$430)","v":""},null,{"$f":"IF($C$430=\"\",\"\",T430/$C$430)","v":""},null,{"$f":"IF($C$430=\"\",\"\",V430/$C$430)","v":""},null,{"$f":"IF($C$430=\"\",\"\",X430/$C$430)","v":""},null,{"$f":"IF($C$430=\"\",\"\",Z430/$C$430)","v":""},null,{"$f":"IF($C$430=\"\",\"\",AB430/$C$430)","v":""},null,{"$f":"IF($C$430=\"\",\"\",AD430/$C$430)","v":""},null,{"$f":"IF($C$430=\"\",\"\",AF430/$C$430)","v":""},null,{"$f":"IF($C$430=\"\",\"\",AH430/$C$430)","v":""},null,{"$f":"IF($C$430=\"\",\"\",AJ430/$C$430)","v":""},null,{"$f":"IF($C$430=\"\",\"\",AL430/$C$430)","v":""},null,{"$f":"IF($C$430=\"\",\"\",AN430/$C$430)","v":""},null,{"$f":"IF($C$430=\"\",\"\",AP430/$C$430)","v":""},null,{"$f":"IF($C$430=\"\",\"\",AR430/$C$430)","v":""},null,{"$f":"IF($C$430=\"\",\"\",AT430/$C$430)","v":""},null,{"$f":"IF($C$430=\"\",\"\",AV430/$C$430)","v":""},null,{"$f":"IF($C$430=\"\",\"\",AX430/$C$430)","v":""},null,{"$f":"IF($C$430=\"\",\"\",AZ430/$C$430)","v":""},null,{"$f":"IF($C$430=\"\",\"\",BB430/$C$430)","v":""},null,0]
[null,null,null,null,{"$f":"IF($C$431=\"\",\"\",F431/$C$431)","v":""},null,{"$f":"IF($C$431=\"\",\"\",H431/$C$431)","v":""},null,{"$f":"IF($C$431=\"\",\"\",J431/$C$431)","v":""},null,{"$f":"IF($C$431=\"\",\"\",L431/$C$431)","v":""},null,{"$f":"IF($C$431=\"\",\"\",N431/$C$431)","v":""},null,{"$f":"IF($C$431=\"\",\"\",P431/$C$431)","v":""},null,{"$f":"IF($C$431=\"\",\"\",R431/$C$431)","v":""},null,{"$f":"IF($C$431=\"\",\"\",T431/$C$431)","v":""},null,{"$f":"IF($C$431=\"\",\"\",V431/$C$431)","v":""},null,{"$f":"IF($C$431=\"\",\"\",X431/$C$431)","v":""},null,{"$f":"IF($C$431=\"\",\"\",Z431/$C$431)","v":""},null,{"$f":"IF($C$431=\"\",\"\",AB431/$C$431)","v":""},null,{"$f":"IF($C$431=\"\",\"\",AD431/$C$431)","v":""},null,{"$f":"IF($C$431=\"\",\"\",AF431/$C$431)","v":""},null,{"$f":"IF($C$431=\"\",\"\",AH431/$C$431)","v":""},null,{"$f":"IF($C$431=\"\",\"\",AJ431/$C$431)","v":""},null,{"$f":"IF($C$431=\"\",\"\",AL431/$C$431)","v":""},null,{"$f":"IF($C$431=\"\",\"\",AN431/$C$431)","v":""},null,{"$f":"IF($C$431=\"\",\"\",AP431/$C$431)","v":""},null,{"$f":"IF($C$431=\"\",\"\",AR431/$C$431)","v":""},null,{"$f":"IF($C$431=\"\",\"\",AT431/$C$431)","v":""},null,{"$f":"IF($C$431=\"\",\"\",AV431/$C$431)","v":""},null,{"$f":"IF($C$431=\"\",\"\",AX431/$C$431)","v":""},null,{"$f":"IF($C$431=\"\",\"\",AZ431/$C$431)","v":""},null,{"$f":"IF($C$431=\"\",\"\",BB431/$C$431)","v":""},null,0]
[null,null,null,null,{"$f":"IF($C$432=\"\",\"\",F432/$C$432)","v":""},null,{"$f":"IF($C$432=\"\",\"\",H432/$C$432)","v":""},null,{"$f":"IF($C$432=\"\",\"\",J432/$C$432)","v":""},null,{"$f":"IF($C$432=\"\",\"\",L432/$C$432)","v":""},null,{"$f":"IF($C$432=\"\",\"\",N432/$C$432)","v":""},null,{"$f":"IF($C$432=\"\",\"\",P432/$C$432)","v":""},null,{"$f":"IF($C$432=\"\",\"\",R432/$C$432)","v":""},null,{"$f":"IF($C$432=\"\",\"\",T432/$C$432)","v":""},null,{"$f":"IF($C$432=\"\",\"\",V432/$C$432)","v":""},null,{"$f":"IF($C$432=\"\",\"\",X432/$C$432)","v":""},null,{"$f":"IF($C$432=\"\",\"\",Z432/$C$432)","v":""},null,{"$f":"IF($C$432=\"\",\"\",AB432/$C$432)","v":""},null,{"$f":"IF($C$432=\"\",\"\",AD432/$C$432)","v":""},null,{"$f":"IF($C$432=\"\",\"\",AF432/$C$432)","v":""},null,{"$f":"IF($C$432=\"\",\"\",AH432/$C$432)","v":""},null,{"$f":"IF($C$432=\"\",\"\",AJ432/$C$432)","v":""},null,{"$f":"IF($C$432=\"\",\"\",AL432/$C$432)","v":""},null,{"$f":"IF($C$432=\"\",\"\",AN432/$C$432)","v":""},null,{"$f":"IF($C$432=\"\",\"\",AP432/$C$432)","v":""},null,{"$f":"IF($C$432=\"\",\"\",AR432/$C$432)","v":""},null,{"$f":"IF($C$432=\"\",\"\",AT432/$C$432)","v":""},null,{"$f":"IF($C$432=\"\",\"\",AV432/$C$432)","v":""},null,{"$f":"IF($C$432=\"\",\"\",AX432/$C$432)","v":""},null,{"$f":"IF($C$432=\"\",\"\",AZ432/$C$432)","v":""},null,{"$f":"IF($C$432=\"\",\"\",BB432/$C$432)","v":""},null,0]
[null,null,null,null,{"$f":"IF($C$433=\"\",\"\",F433/$C$433)","v":""},null,{"$f":"IF($C$433=\"\",\"\",H433/$C$433)","v":""},null,{"$f":"IF($C$433=\"\",\"\",J433/$C$433)","v":""},null,{"$f":"IF($C$433=\"\",\"\",L433/$C$433)","v":""},null,{"$f":"IF($C$433=\"\",\"\",N433/$C$433)","v":""},null,{"$f":"IF($C$433=\"\",\"\",P433/$C$433)","v":""},null,{"$f":"IF($C$433=\"\",\"\",R433/$C$433)","v":""},null,{"$f":"IF($C$433=\"\",\"\",T433/$C$433)","v":""},null,{"$f":"IF($C$433=\"\",\"\",V433/$C$433)","v":""},null,{"$f":"IF($C$433=\"\",\"\",X433/$C$433)","v":""},null,{"$f":"IF($C$433=\"\",\"\",Z433/$C$433)","v":""},null,{"$f":"IF($C$433=\"\",\"\",AB433/$C$433)","v":""},null,{"$f":"IF($C$433=\"\",\"\",AD433/$C$433)","v":""},null,{"$f":"IF($C$433=\"\",\"\",AF433/$C$433)","v":""},null,{"$f":"IF($C$433=\"\",\"\",AH433/$C$433)","v":""},null,{"$f":"IF($C$433=\"\",\"\",AJ433/$C$433)","v":""},null,{"$f":"IF($C$433=\"\",\"\",AL433/$C$433)","v":""},null,{"$f":"IF($C$433=\"\",\"\",AN433/$C$433)","v":""},null,{"$f":"IF($C$433=\"\",\"\",AP433/$C$433)","v":""},null,{"$f":"IF($C$433=\"\",\"\",AR433/$C$433)","v":""},null,{"$f":"IF($C$433=\"\",\"\",AT433/$C$433)","v":""},null,{"$f":"IF($C$433=\"\",\"\",AV433/$C$433)","v":""},null,{"$f":"IF($C$433=\"\",\"\",AX433/$C$433)","v":""},null,{"$f":"IF($C$433=\"\",\"\",AZ433/$C$433)","v":""},null,{"$f":"IF($C$433=\"\",\"\",BB433/$C$433)","v":""},null,0]
[null,null,null,null,{"$f":"IF($C$434=\"\",\"\",F434/$C$434)","v":""},null,{"$f":"IF($C$434=\"\",\"\",H434/$C$434)","v":""},null,{"$f":"IF($C$434=\"\",\"\",J434/$C$434)","v":""},null,{"$f":"IF($C$434=\"\",\"\",L434/$C$434)","v":""},null,{"$f":"IF($C$434=\"\",\"\",N434/$C$434)","v":""},null,{"$f":"IF($C$434=\"\",\"\",P434/$C$434)","v":""},null,{"$f":"IF($C$434=\"\",\"\",R434/$C$434)","v":""},null,{"$f":"IF($C$434=\"\",\"\",T434/$C$434)","v":""},null,{"$f":"IF($C$434=\"\",\"\",V434/$C$434)","v":""},null,{"$f":"IF($C$434=\"\",\"\",X434/$C$434)","v":""},null,{"$f":"IF($C$434=\"\",\"\",Z434/$C$434)","v":""},null,{"$f":"IF($C$434=\"\",\"\",AB434/$C$434)","v":""},null,{"$f":"IF($C$434=\"\",\"\",AD434/$C$434)","v":""},null,{"$f":"IF($C$434=\"\",\"\",AF434/$C$434)","v":""},null,{"$f":"IF($C$434=\"\",\"\",AH434/$C$434)","v":""},null,{"$f":"IF($C$434=\"\",\"\",AJ434/$C$434)","v":""},null,{"$f":"IF($C$434=\"\",\"\",AL434/$C$434)","v":""},null,{"$f":"IF($C$434=\"\",\"\",AN434/$C$434)","v":""},null,{"$f":"IF($C$434=\"\",\"\",AP434/$C$434)","v":""},null,{"$f":"IF($C$434=\"\",\"\",AR434/$C$434)","v":""},null,{"$f":"IF($C$434=\"\",\"\",AT434/$C$434)","v":""},null,{"$f":"IF($C$434=\"\",\"\",AV434/$C$434)","v":""},null,{"$f":"IF($C$434=\"\",\"\",AX434/$C$434)","v":""},null,{"$f":"IF($C$434=\"\",\"\",AZ434/$C$434)","v":""},null,{"$f":"IF($C$434=\"\",\"\",BB434/$C$434)","v":""},null,0]
[null,null,null,null,{"$f":"IF($C$435=\"\",\"\",F435/$C$435)","v":""},null,{"$f":"IF($C$435=\"\",\"\",H435/$C$435)","v":""},null,{"$f":"IF($C$435=\"\",\"\",J435/$C$435)","v":""},null,{"$f":"IF($C$435=\"\",\"\",L435/$C$435)","v":""},null,{"$f":"IF($C$435=\"\",\"\",N435/$C$435)","v":""},null,{"$f":"IF($C$435=\"\",\"\",P435/$C$435)","v":""},null,{"$f":"IF($C$435=\"\",\"\",R435/$C$435)","v":""},null,{"$f":"IF($C$435=\"\",\"\",T435/$C$435)","v":""},null,{"$f":"IF($C$435=\"\",\"\",V435/$C$435)","v":""},null,{"$f":"IF($C$435=\"\",\"\",X435/$C$435)","v":""},null,{"$f":"IF($C$435=\"\",\"\",Z435/$C$435)","v":""},null,{"$f":"IF($C$435=\"\",\"\",AB435/$C$435)","v":""},null,{"$f":"IF($C$435=\"\",\"\",AD435/$C$435)","v":""},null,{"$f":"IF($C$435=\"\",\"\",AF435/$C$435)","v":""},null,{"$f":"IF($C$435=\"\",\"\",AH435/$C$435)","v":""},null,{"$f":"IF($C$435=\"\",\"\",AJ435/$C$435)","v":""},null,{"$f":"IF($C$435=\"\",\"\",AL435/$C$435)","v":""},null,{"$f":"IF($C$435=\"\",\"\",AN435/$C$435)","v":""},null,{"$f":"IF($C$435=\"\",\"\",AP435/$C$435)","v":""},null,{"$f":"IF($C$435=\"\",\"\",AR435/$C$435)","v":""},null,{"$f":"IF($C$435=\"\",\"\",AT435/$C$435)","v":""},null,{"$f":"IF($C$435=\"\",\"\",AV435/$C$435)","v":""},null,{"$f":"IF($C$435=\"\",\"\",AX435/$C$435)","v":""},null,{"$f":"IF($C$435=\"\",\"\",AZ435/$C$435)","v":""},null,{"$f":"IF($C$435=\"\",\"\",BB435/$C$435)","v":""},null,0]
[null,null,null,null,{"$f":"IF($C$436=\"\",\"\",F436/$C$436)","v":""},null,{"$f":"IF($C$436=\"\",\"\",H436/$C$436)","v":""},null,{"$f":"IF($C$436=\"\",\"\",J436/$C$436)","v":""},null,{"$f":"IF($C$436=\"\",\"\",L436/$C$436)","v":""},null,{"$f":"IF($C$436=\"\",\"\",N436/$C$436)","v":""},null,{"$f":"IF($C$436=\"\",\"\",P436/$C$436)","v":""},null,{"$f":"IF($C$436=\"\",\"\",R436/$C$436)","v":""},null,{"$f":"IF($C$436=\"\",\"\",T436/$C$436)","v":""},null,{"$f":"IF($C$436=\"\",\"\",V436/$C$436)","v":""},null,{"$f":"IF($C$436=\"\",\"\",X436/$C$436)","v":""},null,{"$f":"IF($C$436=\"\",\"\",Z436/$C$436)","v":""},null,{"$f":"IF($C$436=\"\",\"\",AB436/$C$436)","v":""},null,{"$f":"IF($C$436=\"\",\"\",AD436/$C$436)","v":""},null,{"$f":"IF($C$436=\"\",\"\",AF436/$C$436)","v":""},null,{"$f":"IF($C$436=\"\",\"\",AH436/$C$436)","v":""},null,{"$f":"IF($C$436=\"\",\"\",AJ436/$C$436)","v":""},null,{"$f":"IF($C$436=\"\",\"\",AL436/$C$436)","v":""},null,{"$f":"IF($C$436=\"\",\"\",AN436/$C$436)","v":""},null,{"$f":"IF($C$436=\"\",\"\",AP436/$C$436)","v":""},null,{"$f":"IF($C$436=\"\",\"\",AR436/$C$436)","v":""},null,{"$f":"IF($C$436=\"\",\"\",AT436/$C$436)","v":""},null,{"$f":"IF($C$436=\"\",\"\",AV436/$C$436)","v":""},null,{"$f":"IF($C$436=\"\",\"\",AX436/$C$436)","v":""},null,{"$f":"IF($C$436=\"\",\"\",AZ436/$C$436)","v":""},null,{"$f":"IF($C$436=\"\",\"\",BB436/$C$436)","v":""},null,0]
[null,null,null,null,{"$f":"IF($C$437=\"\",\"\",F437/$C$437)","v":""},null,{"$f":"IF($C$437=\"\",\"\",H437/$C$437)","v":""},null,{"$f":"IF($C$437=\"\",\"\",J437/$C$437)","v":""},null,{"$f":"IF($C$437=\"\",\"\",L437/$C$437)","v":""},null,{"$f":"IF($C$437=\"\",\"\",N437/$C$437)","v":""},null,{"$f":"IF($C$437=\"\",\"\",P437/$C$437)","v":""},null,{"$f":"IF($C$437=\"\",\"\",R437/$C$437)","v":""},null,{"$f":"IF($C$437=\"\",\"\",T437/$C$437)","v":""},null,{"$f":"IF($C$437=\"\",\"\",V437/$C$437)","v":""},null,{"$f":"IF($C$437=\"\",\"\",X437/$C$437)","v":""},null,{"$f":"IF($C$437=\"\",\"\",Z437/$C$437)","v":""},null,{"$f":"IF($C$437=\"\",\"\",AB437/$C$437)","v":""},null,{"$f":"IF($C$437=\"\",\"\",AD437/$C$437)","v":""},null,{"$f":"IF($C$437=\"\",\"\",AF437/$C$437)","v":""},null,{"$f":"IF($C$437=\"\",\"\",AH437/$C$437)","v":""},null,{"$f":"IF($C$437=\"\",\"\",AJ437/$C$437)","v":""},null,{"$f":"IF($C$437=\"\",\"\",AL437/$C$437)","v":""},null,{"$f":"IF($C$437=\"\",\"\",AN437/$C$437)","v":""},null,{"$f":"IF($C$437=\"\",\"\",AP437/$C$437)","v":""},null,{"$f":"IF($C$437=\"\",\"\",AR437/$C$437)","v":""},null,{"$f":"IF($C$437=\"\",\"\",AT437/$C$437)","v":""},null,{"$f":"IF($C$437=\"\",\"\",AV437/$C$437)","v":""},null,{"$f":"IF($C$437=\"\",\"\",AX437/$C$437)","v":""},null,{"$f":"IF($C$437=\"\",\"\",AZ437/$C$437)","v":""},null,{"$f":"IF($C$437=\"\",\"\",BB437/$C$437)","v":""},null,0]
[null,null,null,null,{"$f":"IF($C$438=\"\",\"\",F438/$C$438)","v":""},null,{"$f":"IF($C$438=\"\",\"\",H438/$C$438)","v":""},null,{"$f":"IF($C$438=\"\",\"\",J438/$C$438)","v":""},null,{"$f":"IF($C$438=\"\",\"\",L438/$C$438)","v":""},null,{"$f":"IF($C$438=\"\",\"\",N438/$C$438)","v":""},null,{"$f":"IF($C$438=\"\",\"\",P438/$C$438)","v":""},null,{"$f":"IF($C$438=\"\",\"\",R438/$C$438)","v":""},null,{"$f":"IF($C$438=\"\",\"\",T438/$C$438)","v":""},null,{"$f":"IF($C$438=\"\",\"\",V438/$C$438)","v":""},null,{"$f":"IF($C$438=\"\",\"\",X438/$C$438)","v":""},null,{"$f":"IF($C$438=\"\",\"\",Z438/$C$438)","v":""},null,{"$f":"IF($C$438=\"\",\"\",AB438/$C$438)","v":""},null,{"$f":"IF($C$438=\"\",\"\",AD438/$C$438)","v":""},null,{"$f":"IF($C$438=\"\",\"\",AF438/$C$438)","v":""},null,{"$f":"IF($C$438=\"\",\"\",AH438/$C$438)","v":""},null,{"$f":"IF($C$438=\"\",\"\",AJ438/$C$438)","v":""},null,{"$f":"IF($C$438=\"\",\"\",AL438/$C$438)","v":""},null,{"$f":"IF($C$438=\"\",\"\",AN438/$C$438)","v":""},null,{"$f":"IF($C$438=\"\",\"\",AP438/$C$438)","v":""},null,{"$f":"IF($C$438=\"\",\"\",AR438/$C$438)","v":""},null,{"$f":"IF($C$438=\"\",\"\",AT438/$C$438)","v":""},null,{"$f":"IF($C$438=\"\",\"\",AV438/$C$438)","v":""},null,{"$f":"IF($C$438=\"\",\"\",AX438/$C$438)","v":""},null,{"$f":"IF($C$438=\"\",\"\",AZ438/$C$438)","v":""},null,{"$f":"IF($C$438=\"\",\"\",BB438/$C$438)","v":""},null,0]
[null,null,null,null,{"$f":"IF($C$439=\"\",\"\",F439/$C$439)","v":""},null,{"$f":"IF($C$439=\"\",\"\",H439/$C$439)","v":""},null,{"$f":"IF($C$439=\"\",\"\",J439/$C$439)","v":""},null,{"$f":"IF($C$439=\"\",\"\",L439/$C$439)","v":""},null,{"$f":"IF($C$439=\"\",\"\",N439/$C$439)","v":""},null,{"$f":"IF($C$439=\"\",\"\",P439/$C$439)","v":""},null,{"$f":"IF($C$439=\"\",\"\",R439/$C$439)","v":""},null,{"$f":"IF($C$439=\"\",\"\",T439/$C$439)","v":""},null,{"$f":"IF($C$439=\"\",\"\",V439/$C$439)","v":""},null,{"$f":"IF($C$439=\"\",\"\",X439/$C$439)","v":""},null,{"$f":"IF($C$439=\"\",\"\",Z439/$C$439)","v":""},null,{"$f":"IF($C$439=\"\",\"\",AB439/$C$439)","v":""},null,{"$f":"IF($C$439=\"\",\"\",AD439/$C$439)","v":""},null,{"$f":"IF($C$439=\"\",\"\",AF439/$C$439)","v":""},null,{"$f":"IF($C$439=\"\",\"\",AH439/$C$439)","v":""},null,{"$f":"IF($C$439=\"\",\"\",AJ439/$C$439)","v":""},null,{"$f":"IF($C$439=\"\",\"\",AL439/$C$439)","v":""},null,{"$f":"IF($C$439=\"\",\"\",AN439/$C$439)","v":""},null,{"$f":"IF($C$439=\"\",\"\",AP439/$C$439)","v":""},null,{"$f":"IF($C$439=\"\",\"\",AR439/$C$439)","v":""},null,{"$f":"IF($C$439=\"\",\"\",AT439/$C$439)","v":""},null,{"$f":"IF($C$439=\"\",\"\",AV439/$C$439)","v":""},null,{"$f":"IF($C$439=\"\",\"\",AX439/$C$439)","v":""},null,{"$f":"IF($C$439=\"\",\"\",AZ439/$C$439)","v":""},null,{"$f":"IF($C$439=\"\",\"\",BB439/$C$439)","v":""},null,{"$f":"SUM(BB439,AZ439,AX439,AV439,AT439,AR439,AP439,AN439,AL439,AJ439,AH439,AF439,AD439,AB439,Z439,X439,V439,T439,R439,P439,N439,L439,J439,H439,F439)","v":0}]
["TOTAL HOURS",null,null,null,null,{"$f":"SUM(F410:F439)","v":0},null,{"$f":"SUM(H410:H439)","v":0},null,{"$f":"SUM(J410:J439)","v":0},null,{"$f":"SUM(L410:L439)","v":0},null,{"$f":"SUM(N410:N439)","v":0},null,{"$f":"SUM(P410:P439)","v":0},null,{"$f":"SUM(R410:R439)","v":0},null,{"$f":"SUM(T410:T439)","v":0},null,{"$f":"SUM(V410:V439)","v":0},null,{"$f":"SUM(X410:X439)","v":0},null,{"$f":"SUM(Z410:Z439)","v":0},null,{"$f":"SUM(AB410:AB439)","v":0},null,{"$f":"SUM(AD410:AD439)","v":0},null,{"$f":"SUM(AF410:AF439)","v":0},null,{"$f":"SUM(AH410:AH439)","v":0},null,{"$f":"SUM(AJ410:AJ439)","v":0},null,{"$f":"SUM(AL410:AL439)","v":0},null,{"$f":"SUM(AN410:AN439)","v":0},null,{"$f":"SUM(AP410:AP439)","v":0},null,{"$f":"SUM(AR410:AR439)","v":0},null,{"$f":"SUM(AT410:AT439)","v":0},null,{"$f":"SUM(AV410:AV439)","v":0},null,{"$f":"SUM(AX410:AX439)","v":0},null,{"$f":"SUM(AZ410:AZ439)","v":0},null,{"$f":"SUM(BB410:BB439)","v":0},{"$f":"SUM(E440:BB440)","v":0}]
["TOTAL WORKDAYS",null,null,null,null,{"$f":"F440/8","v":0},null,{"$f":"H440/8","v":0},null,{"$f":"J440/8","v":0},null,{"$f":"L440/8","v":0},null,{"$f":"N440/8","v":0},null,{"$f":"P440/8","v":0},null,{"$f":"R440/8","v":0},null,{"$f":"T440/8","v":0},null,{"$f":"V440/8","v":0},null,{"$f":"X440/8","v":0},null,{"$f":"Z440/8","v":0},null,{"$f":"AB440/8","v":0},null,{"$f":"AD440/8","v":0},null,0,null,{"$f":"AH440/8","v":0},null,0,null,{"$f":"AL440/8","v":0},null,0,null,{"$f":"AP440/8","v":0},null,0,null,{"$f":"AT440/8","v":0},null,{"$f":"AV440/8","v":0},null,{"$f":"AX440/8","v":0},null,{"$f":"AZ440/8","v":0},null,{"$f":"BB440/8","v":0},{"$f":"SUM(E441:BB441)","v":0}]
["TOTAL RAW LABOR",null,null,null,null,{"$f":"$E$13*F440","v":0},null,{"$f":"$G$13*H440","v":0},null,{"$f":"$I$13*J440","v":0},null,{"$f":"$K$13*L440","v":0},null,{"$f":"$M$13*N440","v":0},null,{"$f":"$O$13*P440","v":0},null,{"$f":"$Q$13*R440","v":0},null,{"$f":"$S$13*T440","v":0},null,{"$f":"$U$13*V440","v":0},null,{"$f":"$W$13*X440","v":0},null,{"$f":"$Y$13*Z440","v":0},null,{"$f":"$AA$13*AB440","v":0},null,{"$f":"$AC$13*AD440","v":0},null,{"$f":"$AC$13*AF440","v":0},null,{"$f":"$AC$13*AH440","v":0},null,{"$f":"$AC$13*AJ440","v":0},null,{"$f":"$AC$13*AL440","v":0},null,{"$f":"$AC$13*AN440","v":0},null,{"$f":"$AC$13*AP440","v":0},null,{"$f":"$AC$13*AR440","v":0},null,{"$f":"$AC$13*AT440","v":0},null,{"$f":"$AC$13*AV440","v":0},null,{"$f":"$AC$13*AX440","v":0},null,{"$f":"$AC$13*AZ440","v":0},null,{"$f":"$AC$13*BB440","v":0},{"$f":"SUM(E442:BB442)","v":0}]
["Task 17.0     ","REPLACE FIELD WITH CATEGORY NAME OF YOUR CHOOSING HERE",null,null,null,null,null,null,null,null,null,null,null,null,null,null,null,null,null,null,null,null,null,null,null,null,null,null,null,null,null,null,null,null,null,null,null,null,null,null,null,null,null,null,null,null,null,null,null,null,null,null,null,null,{"$f":"IF(B443=\"REPLACE FIELD WITH CATEGORY NAME OF YOUR CHOOSING HERE\",0,\"\")","v":0}]
[null,null,null,null,{"$f":"IF($C$444=\"\",\"\",F444/$C$444)","v":""},null,{"$f":"IF($C$444=\"\",\"\",H444/$C$444)","v":""},null,{"$f":"IF($C$444=\"\",\"\",J444/$C$444)","v":""},null,{"$f":"IF($C$444=\"\",\"\",L444/$C$444)","v":""},null,{"$f":"IF($C$444=\"\",\"\",N444/$C$444)","v":""},null,{"$f":"IF($C$444=\"\",\"\",P444/$C$444)","v":""},null,{"$f":"IF($C$444=\"\",\"\",R444/$C$444)","v":""},null,{"$f":"IF($C$444=\"\",\"\",T444/$C$444)","v":""},null,{"$f":"IF($C$444=\"\",\"\",V444/$C$444)","v":""},null,{"$f":"IF($C$444=\"\",\"\",X444/$C$444)","v":""},null,{"$f":"IF($C$444=\"\",\"\",Z444/$C$444)","v":""},null,{"$f":"IF($C$444=\"\",\"\",AB444/$C$444)","v":""},null,{"$f":"IF($C$444=\"\",\"\",AD444/$C$444)","v":""},null,{"$f":"IF($C$444=\"\",\"\",AF444/$C$444)","v":""},null,{"$f":"IF($C$444=\"\",\"\",AH444/$C$444)","v":""},null,{"$f":"IF($C$444=\"\",\"\",AJ444/$C$444)","v":""},null,{"$f":"IF($C$444=\"\",\"\",AL444/$C$444)","v":""},null,{"$f":"IF($C$444=\"\",\"\",AN444/$C$444)","v":""},null,{"$f":"IF($C$444=\"\",\"\",AP444/$C$444)","v":""},null,{"$f":"IF($C$444=\"\",\"\",AR444/$C$444)","v":""},null,{"$f":"IF($C$444=\"\",\"\",AT444/$C$444)","v":""},null,{"$f":"IF($C$444=\"\",\"\",AV444/$C$444)","v":""},null,{"$f":"IF($C$444=\"\",\"\",AX444/$C$444)","v":""},null,{"$f":"IF($C$444=\"\",\"\",AZ444/$C$444)","v":""},null,{"$f":"IF($C$444=\"\",\"\",BB444/$C$444)","v":""},null,{"$f":"SUM(BB444,AZ444,AX444,AV444,AT444,AR444,AP444,AN444,AL444,AJ444,AH444,AF444,AD444,AB444,Z444,X444,V444,T444,R444,P444,N444,L444,J444,H444,F444)","v":0}]
[null,null,null,null,{"$f":"IF($C$445=\"\",\"\",F445/$C$445)","v":""},null,{"$f":"IF($C$445=\"\",\"\",H445/$C$445)","v":""},null,{"$f":"IF($C$445=\"\",\"\",J445/$C$445)","v":""},null,{"$f":"IF($C$445=\"\",\"\",L445/$C$445)","v":""},null,{"$f":"IF($C$445=\"\",\"\",N445/$C$445)","v":""},null,{"$f":"IF($C$445=\"\",\"\",P445/$C$445)","v":""},null,{"$f":"IF($C$445=\"\",\"\",R445/$C$445)","v":""},null,{"$f":"IF($C$445=\"\",\"\",T445/$C$445)","v":""},null,{"$f":"IF($C$445=\"\",\"\",V445/$C$445)","v":""},null,{"$f":"IF($C$445=\"\",\"\",X445/$C$445)","v":""},null,{"$f":"IF($C$445=\"\",\"\",Z445/$C$445)","v":""},null,{"$f":"IF($C$445=\"\",\"\",AB445/$C$445)","v":""},null,{"$f":"IF($C$445=\"\",\"\",AD445/$C$445)","v":""},null,{"$f":"IF($C$445=\"\",\"\",AF445/$C$445)","v":""},null,{"$f":"IF($C$445=\"\",\"\",AH445/$C$445)","v":""},null,{"$f":"IF($C$445=\"\",\"\",AJ445/$C$445)","v":""},null,{"$f":"IF($C$445=\"\",\"\",AL445/$C$445)","v":""},null,{"$f":"IF($C$445=\"\",\"\",AN445/$C$445)","v":""},null,{"$f":"IF($C$445=\"\",\"\",AP445/$C$445)","v":""},null,{"$f":"IF($C$445=\"\",\"\",AR445/$C$445)","v":""},null,{"$f":"IF($C$445=\"\",\"\",AT445/$C$445)","v":""},null,{"$f":"IF($C$445=\"\",\"\",AV445/$C$445)","v":""},null,{"$f":"IF($C$445=\"\",\"\",AX445/$C$445)","v":""},null,{"$f":"IF($C$445=\"\",\"\",AZ445/$C$445)","v":""},null,{"$f":"IF($C$445=\"\",\"\",BB445/$C$445)","v":""},null,0]
[null,null,null,null,{"$f":"IF($C$446=\"\",\"\",F446/$C$446)","v":""},null,{"$f":"IF($C$446=\"\",\"\",H446/$C$446)","v":""},null,{"$f":"IF($C$446=\"\",\"\",J446/$C$446)","v":""},null,{"$f":"IF($C$446=\"\",\"\",L446/$C$446)","v":""},null,{"$f":"IF($C$446=\"\",\"\",N446/$C$446)","v":""},null,{"$f":"IF($C$446=\"\",\"\",P446/$C$446)","v":""},null,{"$f":"IF($C$446=\"\",\"\",R446/$C$446)","v":""},null,{"$f":"IF($C$446=\"\",\"\",T446/$C$446)","v":""},null,{"$f":"IF($C$446=\"\",\"\",V446/$C$446)","v":""},null,{"$f":"IF($C$446=\"\",\"\",X446/$C$446)","v":""},null,{"$f":"IF($C$446=\"\",\"\",Z446/$C$446)","v":""},null,{"$f":"IF($C$446=\"\",\"\",AB446/$C$446)","v":""},null,{"$f":"IF($C$446=\"\",\"\",AD446/$C$446)","v":""},null,{"$f":"IF($C$446=\"\",\"\",AF446/$C$446)","v":""},null,{"$f":"IF($C$446=\"\",\"\",AH446/$C$446)","v":""},null,{"$f":"IF($C$446=\"\",\"\",AJ446/$C$446)","v":""},null,{"$f":"IF($C$446=\"\",\"\",AL446/$C$446)","v":""},null,{"$f":"IF($C$446=\"\",\"\",AN446/$C$446)","v":""},null,{"$f":"IF($C$446=\"\",\"\",AP446/$C$446)","v":""},null,{"$f":"IF($C$446=\"\",\"\",AR446/$C$446)","v":""},null,{"$f":"IF($C$446=\"\",\"\",AT446/$C$446)","v":""},null,{"$f":"IF($C$446=\"\",\"\",AV446/$C$446)","v":""},null,{"$f":"IF($C$446=\"\",\"\",AX446/$C$446)","v":""},null,{"$f":"IF($C$446=\"\",\"\",AZ446/$C$446)","v":""},null,{"$f":"IF($C$446=\"\",\"\",BB446/$C$446)","v":""},null,0]
[null,null,null,null,{"$f":"IF($C$447=\"\",\"\",F447/$C$447)","v":""},null,{"$f":"IF($C$447=\"\",\"\",H447/$C$447)","v":""},null,{"$f":"IF($C$447=\"\",\"\",J447/$C$447)","v":""},null,{"$f":"IF($C$447=\"\",\"\",L447/$C$447)","v":""},null,{"$f":"IF($C$447=\"\",\"\",N447/$C$447)","v":""},null,{"$f":"IF($C$447=\"\",\"\",P447/$C$447)","v":""},null,{"$f":"IF($C$447=\"\",\"\",R447/$C$447)","v":""},null,{"$f":"IF($C$447=\"\",\"\",T447/$C$447)","v":""},null,{"$f":"IF($C$447=\"\",\"\",V447/$C$447)","v":""},null,{"$f":"IF($C$447=\"\",\"\",X447/$C$447)","v":""},null,{"$f":"IF($C$447=\"\",\"\",Z447/$C$447)","v":""},null,{"$f":"IF($C$447=\"\",\"\",AB447/$C$447)","v":""},null,{"$f":"IF($C$447=\"\",\"\",AD447/$C$447)","v":""},null,{"$f":"IF($C$447=\"\",\"\",AF447/$C$447)","v":""},null,{"$f":"IF($C$447=\"\",\"\",AH447/$C$447)","v":""},null,{"$f":"IF($C$447=\"\",\"\",AJ447/$C$447)","v":""},null,{"$f":"IF($C$447=\"\",\"\",AL447/$C$447)","v":""},null,{"$f":"IF($C$447=\"\",\"\",AN447/$C$447)","v":""},null,{"$f":"IF($C$447=\"\",\"\",AP447/$C$447)","v":""},null,{"$f":"IF($C$447=\"\",\"\",AR447/$C$447)","v":""},null,{"$f":"IF($C$447=\"\",\"\",AT447/$C$447)","v":""},null,{"$f":"IF($C$447=\"\",\"\",AV447/$C$447)","v":""},null,{"$f":"IF($C$447=\"\",\"\",AX447/$C$447)","v":""},null,{"$f":"IF($C$447=\"\",\"\",AZ447/$C$447)","v":""},null,{"$f":"IF($C$447=\"\",\"\",BB447/$C$447)","v":""},null,0]
[null,null,null,null,{"$f":"IF($C$448=\"\",\"\",F448/$C$448)","v":""},null,{"$f":"IF($C$448=\"\",\"\",H448/$C$448)","v":""},null,{"$f":"IF($C$448=\"\",\"\",J448/$C$448)","v":""},null,{"$f":"IF($C$448=\"\",\"\",L448/$C$448)","v":""},null,{"$f":"IF($C$448=\"\",\"\",N448/$C$448)","v":""},null,{"$f":"IF($C$448=\"\",\"\",P448/$C$448)","v":""},null,{"$f":"IF($C$448=\"\",\"\",R448/$C$448)","v":""},null,{"$f":"IF($C$448=\"\",\"\",T448/$C$448)","v":""},null,{"$f":"IF($C$448=\"\",\"\",V448/$C$448)","v":""},null,{"$f":"IF($C$448=\"\",\"\",X448/$C$448)","v":""},null,{"$f":"IF($C$448=\"\",\"\",Z448/$C$448)","v":""},null,{"$f":"IF($C$448=\"\",\"\",AB448/$C$448)","v":""},null,{"$f":"IF($C$448=\"\",\"\",AD448/$C$448)","v":""},null,{"$f":"IF($C$448=\"\",\"\",AF448/$C$448)","v":""},null,{"$f":"IF($C$448=\"\",\"\",AH448/$C$448)","v":""},null,{"$f":"IF($C$448=\"\",\"\",AJ448/$C$448)","v":""},null,{"$f":"IF($C$448=\"\",\"\",AL448/$C$448)","v":""},null,{"$f":"IF($C$448=\"\",\"\",AN448/$C$448)","v":""},null,{"$f":"IF($C$448=\"\",\"\",AP448/$C$448)","v":""},null,{"$f":"IF($C$448=\"\",\"\",AR448/$C$448)","v":""},null,{"$f":"IF($C$448=\"\",\"\",AT448/$C$448)","v":""},null,{"$f":"IF($C$448=\"\",\"\",AV448/$C$448)","v":""},null,{"$f":"IF($C$448=\"\",\"\",AX448/$C$448)","v":""},null,{"$f":"IF($C$448=\"\",\"\",AZ448/$C$448)","v":""},null,{"$f":"IF($C$448=\"\",\"\",BB448/$C$448)","v":""},null,0]
[null,null,null,null,{"$f":"IF($C$449=\"\",\"\",F449/$C$449)","v":""},null,{"$f":"IF($C$449=\"\",\"\",H449/$C$449)","v":""},null,{"$f":"IF($C$449=\"\",\"\",J449/$C$449)","v":""},null,{"$f":"IF($C$449=\"\",\"\",L449/$C$449)","v":""},null,{"$f":"IF($C$449=\"\",\"\",N449/$C$449)","v":""},null,{"$f":"IF($C$449=\"\",\"\",P449/$C$449)","v":""},null,{"$f":"IF($C$449=\"\",\"\",R449/$C$449)","v":""},null,{"$f":"IF($C$449=\"\",\"\",T449/$C$449)","v":""},null,{"$f":"IF($C$449=\"\",\"\",V449/$C$449)","v":""},null,{"$f":"IF($C$449=\"\",\"\",X449/$C$449)","v":""},null,{"$f":"IF($C$449=\"\",\"\",Z449/$C$449)","v":""},null,{"$f":"IF($C$449=\"\",\"\",AB449/$C$449)","v":""},null,{"$f":"IF($C$449=\"\",\"\",AD449/$C$449)","v":""},null,{"$f":"IF($C$449=\"\",\"\",AF449/$C$449)","v":""},null,{"$f":"IF($C$449=\"\",\"\",AH449/$C$449)","v":""},null,{"$f":"IF($C$449=\"\",\"\",AJ449/$C$449)","v":""},null,{"$f":"IF($C$449=\"\",\"\",AL449/$C$449)","v":""},null,{"$f":"IF($C$449=\"\",\"\",AN449/$C$449)","v":""},null,{"$f":"IF($C$449=\"\",\"\",AP449/$C$449)","v":""},null,{"$f":"IF($C$449=\"\",\"\",AR449/$C$449)","v":""},null,{"$f":"IF($C$449=\"\",\"\",AT449/$C$449)","v":""},null,{"$f":"IF($C$449=\"\",\"\",AV449/$C$449)","v":""},null,{"$f":"IF($C$449=\"\",\"\",AX449/$C$449)","v":""},null,{"$f":"IF($C$449=\"\",\"\",AZ449/$C$449)","v":""},null,{"$f":"IF($C$449=\"\",\"\",BB449/$C$449)","v":""},null,0]
[null,null,null,null,{"$f":"IF($C$450=\"\",\"\",F450/$C$450)","v":""},null,{"$f":"IF($C$450=\"\",\"\",H450/$C$450)","v":""},null,{"$f":"IF($C$450=\"\",\"\",J450/$C$450)","v":""},null,{"$f":"IF($C$450=\"\",\"\",L450/$C$450)","v":""},null,{"$f":"IF($C$450=\"\",\"\",N450/$C$450)","v":""},null,{"$f":"IF($C$450=\"\",\"\",P450/$C$450)","v":""},null,{"$f":"IF($C$450=\"\",\"\",R450/$C$450)","v":""},null,{"$f":"IF($C$450=\"\",\"\",T450/$C$450)","v":""},null,{"$f":"IF($C$450=\"\",\"\",V450/$C$450)","v":""},null,{"$f":"IF($C$450=\"\",\"\",X450/$C$450)","v":""},null,{"$f":"IF($C$450=\"\",\"\",Z450/$C$450)","v":""},null,{"$f":"IF($C$450=\"\",\"\",AB450/$C$450)","v":""},null,{"$f":"IF($C$450=\"\",\"\",AD450/$C$450)","v":""},null,{"$f":"IF($C$450=\"\",\"\",AF450/$C$450)","v":""},null,{"$f":"IF($C$450=\"\",\"\",AH450/$C$450)","v":""},null,{"$f":"IF($C$450=\"\",\"\",AJ450/$C$450)","v":""},null,{"$f":"IF($C$450=\"\",\"\",AL450/$C$450)","v":""},null,{"$f":"IF($C$450=\"\",\"\",AN450/$C$450)","v":""},null,{"$f":"IF($C$450=\"\",\"\",AP450/$C$450)","v":""},null,{"$f":"IF($C$450=\"\",\"\",AR450/$C$450)","v":""},null,{"$f":"IF($C$450=\"\",\"\",AT450/$C$450)","v":""},null,{"$f":"IF($C$450=\"\",\"\",AV450/$C$450)","v":""},null,{"$f":"IF($C$450=\"\",\"\",AX450/$C$450)","v":""},null,{"$f":"IF($C$450=\"\",\"\",AZ450/$C$450)","v":""},null,{"$f":"IF($C$450=\"\",\"\",BB450/$C$450)","v":""},null,0]
[null,null,null,null,{"$f":"IF($C$451=\"\",\"\",F451/$C$451)","v":""},null,{"$f":"IF($C$451=\"\",\"\",H451/$C$451)","v":""},null,{"$f":"IF($C$451=\"\",\"\",J451/$C$451)","v":""},null,{"$f":"IF($C$451=\"\",\"\",L451/$C$451)","v":""},null,{"$f":"IF($C$451=\"\",\"\",N451/$C$451)","v":""},null,{"$f":"IF($C$451=\"\",\"\",P451/$C$451)","v":""},null,{"$f":"IF($C$451=\"\",\"\",R451/$C$451)","v":""},null,{"$f":"IF($C$451=\"\",\"\",T451/$C$451)","v":""},null,{"$f":"IF($C$451=\"\",\"\",V451/$C$451)","v":""},null,{"$f":"IF($C$451=\"\",\"\",X451/$C$451)","v":""},null,{"$f":"IF($C$451=\"\",\"\",Z451/$C$451)","v":""},null,{"$f":"IF($C$451=\"\",\"\",AB451/$C$451)","v":""},null,{"$f":"IF($C$451=\"\",\"\",AD451/$C$451)","v":""},null,{"$f":"IF($C$451=\"\",\"\",AF451/$C$451)","v":""},null,{"$f":"IF($C$451=\"\",\"\",AH451/$C$451)","v":""},null,{"$f":"IF($C$451=\"\",\"\",AJ451/$C$451)","v":""},null,{"$f":"IF($C$451=\"\",\"\",AL451/$C$451)","v":""},null,{"$f":"IF($C$451=\"\",\"\",AN451/$C$451)","v":""},null,{"$f":"IF($C$451=\"\",\"\",AP451/$C$451)","v":""},null,{"$f":"IF($C$451=\"\",\"\",AR451/$C$451)","v":""},null,{"$f":"IF($C$451=\"\",\"\",AT451/$C$451)","v":""},null,{"$f":"IF($C$451=\"\",\"\",AV451/$C$451)","v":""},null,{"$f":"IF($C$451=\"\",\"\",AX451/$C$451)","v":""},null,{"$f":"IF($C$451=\"\",\"\",AZ451/$C$451)","v":""},null,{"$f":"IF($C$451=\"\",\"\",BB451/$C$451)","v":""},null,0]
[null,null,null,null,{"$f":"IF($C$452=\"\",\"\",F452/$C$452)","v":""},null,{"$f":"IF($C$452=\"\",\"\",H452/$C$452)","v":""},null,{"$f":"IF($C$452=\"\",\"\",J452/$C$452)","v":""},null,{"$f":"IF($C$452=\"\",\"\",L452/$C$452)","v":""},null,{"$f":"IF($C$452=\"\",\"\",N452/$C$452)","v":""},null,{"$f":"IF($C$452=\"\",\"\",P452/$C$452)","v":""},null,{"$f":"IF($C$452=\"\",\"\",R452/$C$452)","v":""},null,{"$f":"IF($C$452=\"\",\"\",T452/$C$452)","v":""},null,{"$f":"IF($C$452=\"\",\"\",V452/$C$452)","v":""},null,{"$f":"IF($C$452=\"\",\"\",X452/$C$452)","v":""},null,{"$f":"IF($C$452=\"\",\"\",Z452/$C$452)","v":""},null,{"$f":"IF($C$452=\"\",\"\",AB452/$C$452)","v":""},null,{"$f":"IF($C$452=\"\",\"\",AD452/$C$452)","v":""},null,{"$f":"IF($C$452=\"\",\"\",AF452/$C$452)","v":""},null,{"$f":"IF($C$452=\"\",\"\",AH452/$C$452)","v":""},null,{"$f":"IF($C$452=\"\",\"\",AJ452/$C$452)","v":""},null,{"$f":"IF($C$452=\"\",\"\",AL452/$C$452)","v":""},null,{"$f":"IF($C$452=\"\",\"\",AN452/$C$452)","v":""},null,{"$f":"IF($C$452=\"\",\"\",AP452/$C$452)","v":""},null,{"$f":"IF($C$452=\"\",\"\",AR452/$C$452)","v":""},null,{"$f":"IF($C$452=\"\",\"\",AT452/$C$452)","v":""},null,{"$f":"IF($C$452=\"\",\"\",AV452/$C$452)","v":""},null,{"$f":"IF($C$452=\"\",\"\",AX452/$C$452)","v":""},null,{"$f":"IF($C$452=\"\",\"\",AZ452/$C$452)","v":""},null,{"$f":"IF($C$452=\"\",\"\",BB452/$C$452)","v":""},null,0]
[null,null,null,null,{"$f":"IF($C$453=\"\",\"\",F453/$C$453)","v":""},null,{"$f":"IF($C$453=\"\",\"\",H453/$C$453)","v":""},null,{"$f":"IF($C$453=\"\",\"\",J453/$C$453)","v":""},null,{"$f":"IF($C$453=\"\",\"\",L453/$C$453)","v":""},null,{"$f":"IF($C$453=\"\",\"\",N453/$C$453)","v":""},null,{"$f":"IF($C$453=\"\",\"\",P453/$C$453)","v":""},null,{"$f":"IF($C$453=\"\",\"\",R453/$C$453)","v":""},null,{"$f":"IF($C$453=\"\",\"\",T453/$C$453)","v":""},null,{"$f":"IF($C$453=\"\",\"\",V453/$C$453)","v":""},null,{"$f":"IF($C$453=\"\",\"\",X453/$C$453)","v":""},null,{"$f":"IF($C$453=\"\",\"\",Z453/$C$453)","v":""},null,{"$f":"IF($C$453=\"\",\"\",AB453/$C$453)","v":""},null,{"$f":"IF($C$453=\"\",\"\",AD453/$C$453)","v":""},null,{"$f":"IF($C$453=\"\",\"\",AF453/$C$453)","v":""},null,{"$f":"IF($C$453=\"\",\"\",AH453/$C$453)","v":""},null,{"$f":"IF($C$453=\"\",\"\",AJ453/$C$453)","v":""},null,{"$f":"IF($C$453=\"\",\"\",AL453/$C$453)","v":""},null,{"$f":"IF($C$453=\"\",\"\",AN453/$C$453)","v":""},null,{"$f":"IF($C$453=\"\",\"\",AP453/$C$453)","v":""},null,{"$f":"IF($C$453=\"\",\"\",AR453/$C$453)","v":""},null,{"$f":"IF($C$453=\"\",\"\",AT453/$C$453)","v":""},null,{"$f":"IF($C$453=\"\",\"\",AV453/$C$453)","v":""},null,{"$f":"IF($C$453=\"\",\"\",AX453/$C$453)","v":""},null,{"$f":"IF($C$453=\"\",\"\",AZ453/$C$453)","v":""},null,{"$f":"IF($C$453=\"\",\"\",BB453/$C$453)","v":""},null,0]
[null,null,null,null,{"$f":"IF($C$454=\"\",\"\",F454/$C$454)","v":""},null,{"$f":"IF($C$454=\"\",\"\",H454/$C$454)","v":""},null,{"$f":"IF($C$454=\"\",\"\",J454/$C$454)","v":""},null,{"$f":"IF($C$454=\"\",\"\",L454/$C$454)","v":""},null,{"$f":"IF($C$454=\"\",\"\",N454/$C$454)","v":""},null,{"$f":"IF($C$454=\"\",\"\",P454/$C$454)","v":""},null,{"$f":"IF($C$454=\"\",\"\",R454/$C$454)","v":""},null,{"$f":"IF($C$454=\"\",\"\",T454/$C$454)","v":""},null,{"$f":"IF($C$454=\"\",\"\",V454/$C$454)","v":""},null,{"$f":"IF($C$454=\"\",\"\",X454/$C$454)","v":""},null,{"$f":"IF($C$454=\"\",\"\",Z454/$C$454)","v":""},null,{"$f":"IF($C$454=\"\",\"\",AB454/$C$454)","v":""},null,{"$f":"IF($C$454=\"\",\"\",AD454/$C$454)","v":""},null,{"$f":"IF($C$454=\"\",\"\",AF454/$C$454)","v":""},null,{"$f":"IF($C$454=\"\",\"\",AH454/$C$454)","v":""},null,{"$f":"IF($C$454=\"\",\"\",AJ454/$C$454)","v":""},null,{"$f":"IF($C$454=\"\",\"\",AL454/$C$454)","v":""},null,{"$f":"IF($C$454=\"\",\"\",AN454/$C$454)","v":""},null,{"$f":"IF($C$454=\"\",\"\",AP454/$C$454)","v":""},null,{"$f":"IF($C$454=\"\",\"\",AR454/$C$454)","v":""},null,{"$f":"IF($C$454=\"\",\"\",AT454/$C$454)","v":""},null,{"$f":"IF($C$454=\"\",\"\",AV454/$C$454)","v":""},null,{"$f":"IF($C$454=\"\",\"\",AX454/$C$454)","v":""},null,{"$f":"IF($C$454=\"\",\"\",AZ454/$C$454)","v":""},null,{"$f":"IF($C$454=\"\",\"\",BB454/$C$454)","v":""},null,0]
[null,null,null,null,{"$f":"IF($C$455=\"\",\"\",F455/$C$455)","v":""},null,{"$f":"IF($C$455=\"\",\"\",H455/$C$455)","v":""},null,{"$f":"IF($C$455=\"\",\"\",J455/$C$455)","v":""},null,{"$f":"IF($C$455=\"\",\"\",L455/$C$455)","v":""},null,{"$f":"IF($C$455=\"\",\"\",N455/$C$455)","v":""},null,{"$f":"IF($C$455=\"\",\"\",P455/$C$455)","v":""},null,{"$f":"IF($C$455=\"\",\"\",R455/$C$455)","v":""},null,{"$f":"IF($C$455=\"\",\"\",T455/$C$455)","v":""},null,{"$f":"IF($C$455=\"\",\"\",V455/$C$455)","v":""},null,{"$f":"IF($C$455=\"\",\"\",X455/$C$455)","v":""},null,{"$f":"IF($C$455=\"\",\"\",Z455/$C$455)","v":""},null,{"$f":"IF($C$455=\"\",\"\",AB455/$C$455)","v":""},null,{"$f":"IF($C$455=\"\",\"\",AD455/$C$455)","v":""},null,{"$f":"IF($C$455=\"\",\"\",AF455/$C$455)","v":""},null,{"$f":"IF($C$455=\"\",\"\",AH455/$C$455)","v":""},null,{"$f":"IF($C$455=\"\",\"\",AJ455/$C$455)","v":""},null,{"$f":"IF($C$455=\"\",\"\",AL455/$C$455)","v":""},null,{"$f":"IF($C$455=\"\",\"\",AN455/$C$455)","v":""},null,{"$f":"IF($C$455=\"\",\"\",AP455/$C$455)","v":""},null,{"$f":"IF($C$455=\"\",\"\",AR455/$C$455)","v":""},null,{"$f":"IF($C$455=\"\",\"\",AT455/$C$455)","v":""},null,{"$f":"IF($C$455=\"\",\"\",AV455/$C$455)","v":""},null,{"$f":"IF($C$455=\"\",\"\",AX455/$C$455)","v":""},null,{"$f":"IF($C$455=\"\",\"\",AZ455/$C$455)","v":""},null,{"$f":"IF($C$455=\"\",\"\",BB455/$C$455)","v":""},null,0]
[null,null,null,null,{"$f":"IF($C$456=\"\",\"\",F456/$C$456)","v":""},null,{"$f":"IF($C$456=\"\",\"\",H456/$C$456)","v":""},null,{"$f":"IF($C$456=\"\",\"\",J456/$C$456)","v":""},null,{"$f":"IF($C$456=\"\",\"\",L456/$C$456)","v":""},null,{"$f":"IF($C$456=\"\",\"\",N456/$C$456)","v":""},null,{"$f":"IF($C$456=\"\",\"\",P456/$C$456)","v":""},null,{"$f":"IF($C$456=\"\",\"\",R456/$C$456)","v":""},null,{"$f":"IF($C$456=\"\",\"\",T456/$C$456)","v":""},null,{"$f":"IF($C$456=\"\",\"\",V456/$C$456)","v":""},null,{"$f":"IF($C$456=\"\",\"\",X456/$C$456)","v":""},null,{"$f":"IF($C$456=\"\",\"\",Z456/$C$456)","v":""},null,{"$f":"IF($C$456=\"\",\"\",AB456/$C$456)","v":""},null,{"$f":"IF($C$456=\"\",\"\",AD456/$C$456)","v":""},null,{"$f":"IF($C$456=\"\",\"\",AF456/$C$456)","v":""},null,{"$f":"IF($C$456=\"\",\"\",AH456/$C$456)","v":""},null,{"$f":"IF($C$456=\"\",\"\",AJ456/$C$456)","v":""},null,{"$f":"IF($C$456=\"\",\"\",AL456/$C$456)","v":""},null,{"$f":"IF($C$456=\"\",\"\",AN456/$C$456)","v":""},null,{"$f":"IF($C$456=\"\",\"\",AP456/$C$456)","v":""},null,{"$f":"IF($C$456=\"\",\"\",AR456/$C$456)","v":""},null,{"$f":"IF($C$456=\"\",\"\",AT456/$C$456)","v":""},null,{"$f":"IF($C$456=\"\",\"\",AV456/$C$456)","v":""},null,{"$f":"IF($C$456=\"\",\"\",AX456/$C$456)","v":""},null,{"$f":"IF($C$456=\"\",\"\",AZ456/$C$456)","v":""},null,{"$f":"IF($C$456=\"\",\"\",BB456/$C$456)","v":""},null,0]
[null,null,null,null,{"$f":"IF($C$457=\"\",\"\",F457/$C$457)","v":""},null,{"$f":"IF($C$457=\"\",\"\",H457/$C$457)","v":""},null,{"$f":"IF($C$457=\"\",\"\",J457/$C$457)","v":""},null,{"$f":"IF($C$457=\"\",\"\",L457/$C$457)","v":""},null,{"$f":"IF($C$457=\"\",\"\",N457/$C$457)","v":""},null,{"$f":"IF($C$457=\"\",\"\",P457/$C$457)","v":""},null,{"$f":"IF($C$457=\"\",\"\",R457/$C$457)","v":""},null,{"$f":"IF($C$457=\"\",\"\",T457/$C$457)","v":""},null,{"$f":"IF($C$457=\"\",\"\",V457/$C$457)","v":""},null,{"$f":"IF($C$457=\"\",\"\",X457/$C$457)","v":""},null,{"$f":"IF($C$457=\"\",\"\",Z457/$C$457)","v":""},null,{"$f":"IF($C$457=\"\",\"\",AB457/$C$457)","v":""},null,{"$f":"IF($C$457=\"\",\"\",AD457/$C$457)","v":""},null,{"$f":"IF($C$457=\"\",\"\",AF457/$C$457)","v":""},null,{"$f":"IF($C$457=\"\",\"\",AH457/$C$457)","v":""},null,{"$f":"IF($C$457=\"\",\"\",AJ457/$C$457)","v":""},null,{"$f":"IF($C$457=\"\",\"\",AL457/$C$457)","v":""},null,{"$f":"IF($C$457=\"\",\"\",AN457/$C$457)","v":""},null,{"$f":"IF($C$457=\"\",\"\",AP457/$C$457)","v":""},null,{"$f":"IF($C$457=\"\",\"\",AR457/$C$457)","v":""},null,{"$f":"IF($C$457=\"\",\"\",AT457/$C$457)","v":""},null,{"$f":"IF($C$457=\"\",\"\",AV457/$C$457)","v":""},null,{"$f":"IF($C$457=\"\",\"\",AX457/$C$457)","v":""},null,{"$f":"IF($C$457=\"\",\"\",AZ457/$C$457)","v":""},null,{"$f":"IF($C$457=\"\",\"\",BB457/$C$457)","v":""},null,0]
[null,null,null,null,{"$f":"IF($C$458=\"\",\"\",F458/$C$458)","v":""},null,{"$f":"IF($C$458=\"\",\"\",H458/$C$458)","v":""},null,{"$f":"IF($C$458=\"\",\"\",J458/$C$458)","v":""},null,{"$f":"IF($C$458=\"\",\"\",L458/$C$458)","v":""},null,{"$f":"IF($C$458=\"\",\"\",N458/$C$458)","v":""},null,{"$f":"IF($C$458=\"\",\"\",P458/$C$458)","v":""},null,{"$f":"IF($C$458=\"\",\"\",R458/$C$458)","v":""},null,{"$f":"IF($C$458=\"\",\"\",T458/$C$458)","v":""},null,{"$f":"IF($C$458=\"\",\"\",V458/$C$458)","v":""},null,{"$f":"IF($C$458=\"\",\"\",X458/$C$458)","v":""},null,{"$f":"IF($C$458=\"\",\"\",Z458/$C$458)","v":""},null,{"$f":"IF($C$458=\"\",\"\",AB458/$C$458)","v":""},null,{"$f":"IF($C$458=\"\",\"\",AD458/$C$458)","v":""},null,{"$f":"IF($C$458=\"\",\"\",AF458/$C$458)","v":""},null,{"$f":"IF($C$458=\"\",\"\",AH458/$C$458)","v":""},null,{"$f":"IF($C$458=\"\",\"\",AJ458/$C$458)","v":""},null,{"$f":"IF($C$458=\"\",\"\",AL458/$C$458)","v":""},null,{"$f":"IF($C$458=\"\",\"\",AN458/$C$458)","v":""},null,{"$f":"IF($C$458=\"\",\"\",AP458/$C$458)","v":""},null,{"$f":"IF($C$458=\"\",\"\",AR458/$C$458)","v":""},null,{"$f":"IF($C$458=\"\",\"\",AT458/$C$458)","v":""},null,{"$f":"IF($C$458=\"\",\"\",AV458/$C$458)","v":""},null,{"$f":"IF($C$458=\"\",\"\",AX458/$C$458)","v":""},null,{"$f":"IF($C$458=\"\",\"\",AZ458/$C$458)","v":""},null,{"$f":"IF($C$458=\"\",\"\",BB458/$C$458)","v":""},null,0]
[null,null,null,null,{"$f":"IF($C$459=\"\",\"\",F459/$C$459)","v":""},null,{"$f":"IF($C$459=\"\",\"\",H459/$C$459)","v":""},null,{"$f":"IF($C$459=\"\",\"\",J459/$C$459)","v":""},null,{"$f":"IF($C$459=\"\",\"\",L459/$C$459)","v":""},null,{"$f":"IF($C$459=\"\",\"\",N459/$C$459)","v":""},null,{"$f":"IF($C$459=\"\",\"\",P459/$C$459)","v":""},null,{"$f":"IF($C$459=\"\",\"\",R459/$C$459)","v":""},null,{"$f":"IF($C$459=\"\",\"\",T459/$C$459)","v":""},null,{"$f":"IF($C$459=\"\",\"\",V459/$C$459)","v":""},null,{"$f":"IF($C$459=\"\",\"\",X459/$C$459)","v":""},null,{"$f":"IF($C$459=\"\",\"\",Z459/$C$459)","v":""},null,{"$f":"IF($C$459=\"\",\"\",AB459/$C$459)","v":""},null,{"$f":"IF($C$459=\"\",\"\",AD459/$C$459)","v":""},null,{"$f":"IF($C$459=\"\",\"\",AF459/$C$459)","v":""},null,{"$f":"IF($C$459=\"\",\"\",AH459/$C$459)","v":""},null,{"$f":"IF($C$459=\"\",\"\",AJ459/$C$459)","v":""},null,{"$f":"IF($C$459=\"\",\"\",AL459/$C$459)","v":""},null,{"$f":"IF($C$459=\"\",\"\",AN459/$C$459)","v":""},null,{"$f":"IF($C$459=\"\",\"\",AP459/$C$459)","v":""},null,{"$f":"IF($C$459=\"\",\"\",AR459/$C$459)","v":""},null,{"$f":"IF($C$459=\"\",\"\",AT459/$C$459)","v":""},null,{"$f":"IF($C$459=\"\",\"\",AV459/$C$459)","v":""},null,{"$f":"IF($C$459=\"\",\"\",AX459/$C$459)","v":""},null,{"$f":"IF($C$459=\"\",\"\",AZ459/$C$459)","v":""},null,{"$f":"IF($C$459=\"\",\"\",BB459/$C$459)","v":""},null,0]
[null,null,null,null,{"$f":"IF($C$460=\"\",\"\",F460/$C$460)","v":""},null,{"$f":"IF($C$460=\"\",\"\",H460/$C$460)","v":""},null,{"$f":"IF($C$460=\"\",\"\",J460/$C$460)","v":""},null,{"$f":"IF($C$460=\"\",\"\",L460/$C$460)","v":""},null,{"$f":"IF($C$460=\"\",\"\",N460/$C$460)","v":""},null,{"$f":"IF($C$460=\"\",\"\",P460/$C$460)","v":""},null,{"$f":"IF($C$460=\"\",\"\",R460/$C$460)","v":""},null,{"$f":"IF($C$460=\"\",\"\",T460/$C$460)","v":""},null,{"$f":"IF($C$460=\"\",\"\",V460/$C$460)","v":""},null,{"$f":"IF($C$460=\"\",\"\",X460/$C$460)","v":""},null,{"$f":"IF($C$460=\"\",\"\",Z460/$C$460)","v":""},null,{"$f":"IF($C$460=\"\",\"\",AB460/$C$460)","v":""},null,{"$f":"IF($C$460=\"\",\"\",AD460/$C$460)","v":""},null,{"$f":"IF($C$460=\"\",\"\",AF460/$C$460)","v":""},null,{"$f":"IF($C$460=\"\",\"\",AH460/$C$460)","v":""},null,{"$f":"IF($C$460=\"\",\"\",AJ460/$C$460)","v":""},null,{"$f":"IF($C$460=\"\",\"\",AL460/$C$460)","v":""},null,{"$f":"IF($C$460=\"\",\"\",AN460/$C$460)","v":""},null,{"$f":"IF($C$460=\"\",\"\",AP460/$C$460)","v":""},null,{"$f":"IF($C$460=\"\",\"\",AR460/$C$460)","v":""},null,{"$f":"IF($C$460=\"\",\"\",AT460/$C$460)","v":""},null,{"$f":"IF($C$460=\"\",\"\",AV460/$C$460)","v":""},null,{"$f":"IF($C$460=\"\",\"\",AX460/$C$460)","v":""},null,{"$f":"IF($C$460=\"\",\"\",AZ460/$C$460)","v":""},null,{"$f":"IF($C$460=\"\",\"\",BB460/$C$460)","v":""},null,0]
[null,null,null,null,{"$f":"IF($C$461=\"\",\"\",F461/$C$461)","v":""},null,{"$f":"IF($C$461=\"\",\"\",H461/$C$461)","v":""},null,{"$f":"IF($C$461=\"\",\"\",J461/$C$461)","v":""},null,{"$f":"IF($C$461=\"\",\"\",L461/$C$461)","v":""},null,{"$f":"IF($C$461=\"\",\"\",N461/$C$461)","v":""},null,{"$f":"IF($C$461=\"\",\"\",P461/$C$461)","v":""},null,{"$f":"IF($C$461=\"\",\"\",R461/$C$461)","v":""},null,{"$f":"IF($C$461=\"\",\"\",T461/$C$461)","v":""},null,{"$f":"IF($C$461=\"\",\"\",V461/$C$461)","v":""},null,{"$f":"IF($C$461=\"\",\"\",X461/$C$461)","v":""},null,{"$f":"IF($C$461=\"\",\"\",Z461/$C$461)","v":""},null,{"$f":"IF($C$461=\"\",\"\",AB461/$C$461)","v":""},null,{"$f":"IF($C$461=\"\",\"\",AD461/$C$461)","v":""},null,{"$f":"IF($C$461=\"\",\"\",AF461/$C$461)","v":""},null,{"$f":"IF($C$461=\"\",\"\",AH461/$C$461)","v":""},null,{"$f":"IF($C$461=\"\",\"\",AJ461/$C$461)","v":""},null,{"$f":"IF($C$461=\"\",\"\",AL461/$C$461)","v":""},null,{"$f":"IF($C$461=\"\",\"\",AN461/$C$461)","v":""},null,{"$f":"IF($C$461=\"\",\"\",AP461/$C$461)","v":""},null,{"$f":"IF($C$461=\"\",\"\",AR461/$C$461)","v":""},null,{"$f":"IF($C$461=\"\",\"\",AT461/$C$461)","v":""},null,{"$f":"IF($C$461=\"\",\"\",AV461/$C$461)","v":""},null,{"$f":"IF($C$461=\"\",\"\",AX461/$C$461)","v":""},null,{"$f":"IF($C$461=\"\",\"\",AZ461/$C$461)","v":""},null,{"$f":"IF($C$461=\"\",\"\",BB461/$C$461)","v":""},null,0]
[null,null,null,null,{"$f":"IF($C$462=\"\",\"\",F462/$C$462)","v":""},null,{"$f":"IF($C$462=\"\",\"\",H462/$C$462)","v":""},null,{"$f":"IF($C$462=\"\",\"\",J462/$C$462)","v":""},null,{"$f":"IF($C$462=\"\",\"\",L462/$C$462)","v":""},null,{"$f":"IF($C$462=\"\",\"\",N462/$C$462)","v":""},null,{"$f":"IF($C$462=\"\",\"\",P462/$C$462)","v":""},null,{"$f":"IF($C$462=\"\",\"\",R462/$C$462)","v":""},null,{"$f":"IF($C$462=\"\",\"\",T462/$C$462)","v":""},null,{"$f":"IF($C$462=\"\",\"\",V462/$C$462)","v":""},null,{"$f":"IF($C$462=\"\",\"\",X462/$C$462)","v":""},null,{"$f":"IF($C$462=\"\",\"\",Z462/$C$462)","v":""},null,{"$f":"IF($C$462=\"\",\"\",AB462/$C$462)","v":""},null,{"$f":"IF($C$462=\"\",\"\",AD462/$C$462)","v":""},null,{"$f":"IF($C$462=\"\",\"\",AF462/$C$462)","v":""},null,{"$f":"IF($C$462=\"\",\"\",AH462/$C$462)","v":""},null,{"$f":"IF($C$462=\"\",\"\",AJ462/$C$462)","v":""},null,{"$f":"IF($C$462=\"\",\"\",AL462/$C$462)","v":""},null,{"$f":"IF($C$462=\"\",\"\",AN462/$C$462)","v":""},null,{"$f":"IF($C$462=\"\",\"\",AP462/$C$462)","v":""},null,{"$f":"IF($C$462=\"\",\"\",AR462/$C$462)","v":""},null,{"$f":"IF($C$462=\"\",\"\",AT462/$C$462)","v":""},null,{"$f":"IF($C$462=\"\",\"\",AV462/$C$462)","v":""},null,{"$f":"IF($C$462=\"\",\"\",AX462/$C$462)","v":""},null,{"$f":"IF($C$462=\"\",\"\",AZ462/$C$462)","v":""},null,{"$f":"IF($C$462=\"\",\"\",BB462/$C$462)","v":""},null,0]
[null,null,null,null,{"$f":"IF($C$463=\"\",\"\",F463/$C$463)","v":""},null,{"$f":"IF($C$463=\"\",\"\",H463/$C$463)","v":""},null,{"$f":"IF($C$463=\"\",\"\",J463/$C$463)","v":""},null,{"$f":"IF($C$463=\"\",\"\",L463/$C$463)","v":""},null,{"$f":"IF($C$463=\"\",\"\",N463/$C$463)","v":""},null,{"$f":"IF($C$463=\"\",\"\",P463/$C$463)","v":""},null,{"$f":"IF($C$463=\"\",\"\",R463/$C$463)","v":""},null,{"$f":"IF($C$463=\"\",\"\",T463/$C$463)","v":""},null,{"$f":"IF($C$463=\"\",\"\",V463/$C$463)","v":""},null,{"$f":"IF($C$463=\"\",\"\",X463/$C$463)","v":""},null,{"$f":"IF($C$463=\"\",\"\",Z463/$C$463)","v":""},null,{"$f":"IF($C$463=\"\",\"\",AB463/$C$463)","v":""},null,{"$f":"IF($C$463=\"\",\"\",AD463/$C$463)","v":""},null,{"$f":"IF($C$463=\"\",\"\",AF463/$C$463)","v":""},null,{"$f":"IF($C$463=\"\",\"\",AH463/$C$463)","v":""},null,{"$f":"IF($C$463=\"\",\"\",AJ463/$C$463)","v":""},null,{"$f":"IF($C$463=\"\",\"\",AL463/$C$463)","v":""},null,{"$f":"IF($C$463=\"\",\"\",AN463/$C$463)","v":""},null,{"$f":"IF($C$463=\"\",\"\",AP463/$C$463)","v":""},null,{"$f":"IF($C$463=\"\",\"\",AR463/$C$463)","v":""},null,{"$f":"IF($C$463=\"\",\"\",AT463/$C$463)","v":""},null,{"$f":"IF($C$463=\"\",\"\",AV463/$C$463)","v":""},null,{"$f":"IF($C$463=\"\",\"\",AX463/$C$463)","v":""},null,{"$f":"IF($C$463=\"\",\"\",AZ463/$C$463)","v":""},null,{"$f":"IF($C$463=\"\",\"\",BB463/$C$463)","v":""},null,0]
[null,null,null,null,{"$f":"IF($C$464=\"\",\"\",F464/$C$464)","v":""},null,{"$f":"IF($C$464=\"\",\"\",H464/$C$464)","v":""},null,{"$f":"IF($C$464=\"\",\"\",J464/$C$464)","v":""},null,{"$f":"IF($C$464=\"\",\"\",L464/$C$464)","v":""},null,{"$f":"IF($C$464=\"\",\"\",N464/$C$464)","v":""},null,{"$f":"IF($C$464=\"\",\"\",P464/$C$464)","v":""},null,{"$f":"IF($C$464=\"\",\"\",R464/$C$464)","v":""},null,{"$f":"IF($C$464=\"\",\"\",T464/$C$464)","v":""},null,{"$f":"IF($C$464=\"\",\"\",V464/$C$464)","v":""},null,{"$f":"IF($C$464=\"\",\"\",X464/$C$464)","v":""},null,{"$f":"IF($C$464=\"\",\"\",Z464/$C$464)","v":""},null,{"$f":"IF($C$464=\"\",\"\",AB464/$C$464)","v":""},null,{"$f":"IF($C$464=\"\",\"\",AD464/$C$464)","v":""},null,{"$f":"IF($C$464=\"\",\"\",AF464/$C$464)","v":""},null,{"$f":"IF($C$464=\"\",\"\",AH464/$C$464)","v":""},null,{"$f":"IF($C$464=\"\",\"\",AJ464/$C$464)","v":""},null,{"$f":"IF($C$464=\"\",\"\",AL464/$C$464)","v":""},null,{"$f":"IF($C$464=\"\",\"\",AN464/$C$464)","v":""},null,{"$f":"IF($C$464=\"\",\"\",AP464/$C$464)","v":""},null,{"$f":"IF($C$464=\"\",\"\",AR464/$C$464)","v":""},null,{"$f":"IF($C$464=\"\",\"\",AT464/$C$464)","v":""},null,{"$f":"IF($C$464=\"\",\"\",AV464/$C$464)","v":""},null,{"$f":"IF($C$464=\"\",\"\",AX464/$C$464)","v":""},null,{"$f":"IF($C$464=\"\",\"\",AZ464/$C$464)","v":""},null,{"$f":"IF($C$464=\"\",\"\",BB464/$C$464)","v":""},null,0]
[null,null,null,null,{"$f":"IF($C$465=\"\",\"\",F465/$C$465)","v":""},null,{"$f":"IF($C$465=\"\",\"\",H465/$C$465)","v":""},null,{"$f":"IF($C$465=\"\",\"\",J465/$C$465)","v":""},null,{"$f":"IF($C$465=\"\",\"\",L465/$C$465)","v":""},null,{"$f":"IF($C$465=\"\",\"\",N465/$C$465)","v":""},null,{"$f":"IF($C$465=\"\",\"\",P465/$C$465)","v":""},null,{"$f":"IF($C$465=\"\",\"\",R465/$C$465)","v":""},null,{"$f":"IF($C$465=\"\",\"\",T465/$C$465)","v":""},null,{"$f":"IF($C$465=\"\",\"\",V465/$C$465)","v":""},null,{"$f":"IF($C$465=\"\",\"\",X465/$C$465)","v":""},null,{"$f":"IF($C$465=\"\",\"\",Z465/$C$465)","v":""},null,{"$f":"IF($C$465=\"\",\"\",AB465/$C$465)","v":""},null,{"$f":"IF($C$465=\"\",\"\",AD465/$C$465)","v":""},null,{"$f":"IF($C$465=\"\",\"\",AF465/$C$465)","v":""},null,{"$f":"IF($C$465=\"\",\"\",AH465/$C$465)","v":""},null,{"$f":"IF($C$465=\"\",\"\",AJ465/$C$465)","v":""},null,{"$f":"IF($C$465=\"\",\"\",AL465/$C$465)","v":""},null,{"$f":"IF($C$465=\"\",\"\",AN465/$C$465)","v":""},null,{"$f":"IF($C$465=\"\",\"\",AP465/$C$465)","v":""},null,{"$f":"IF($C$465=\"\",\"\",AR465/$C$465)","v":""},null,{"$f":"IF($C$465=\"\",\"\",AT465/$C$465)","v":""},null,{"$f":"IF($C$465=\"\",\"\",AV465/$C$465)","v":""},null,{"$f":"IF($C$465=\"\",\"\",AX465/$C$465)","v":""},null,{"$f":"IF($C$465=\"\",\"\",AZ465/$C$465)","v":""},null,{"$f":"IF($C$465=\"\",\"\",BB465/$C$465)","v":""},null,0]
[null,null,null,null,{"$f":"IF($C$466=\"\",\"\",F466/$C$466)","v":""},null,{"$f":"IF($C$466=\"\",\"\",H466/$C$466)","v":""},null,{"$f":"IF($C$466=\"\",\"\",J466/$C$466)","v":""},null,{"$f":"IF($C$466=\"\",\"\",L466/$C$466)","v":""},null,{"$f":"IF($C$466=\"\",\"\",N466/$C$466)","v":""},null,{"$f":"IF($C$466=\"\",\"\",P466/$C$466)","v":""},null,{"$f":"IF($C$466=\"\",\"\",R466/$C$466)","v":""},null,{"$f":"IF($C$466=\"\",\"\",T466/$C$466)","v":""},null,{"$f":"IF($C$466=\"\",\"\",V466/$C$466)","v":""},null,{"$f":"IF($C$466=\"\",\"\",X466/$C$466)","v":""},null,{"$f":"IF($C$466=\"\",\"\",Z466/$C$466)","v":""},null,{"$f":"IF($C$466=\"\",\"\",AB466/$C$466)","v":""},null,{"$f":"IF($C$466=\"\",\"\",AD466/$C$466)","v":""},null,{"$f":"IF($C$466=\"\",\"\",AF466/$C$466)","v":""},null,{"$f":"IF($C$466=\"\",\"\",AH466/$C$466)","v":""},null,{"$f":"IF($C$466=\"\",\"\",AJ466/$C$466)","v":""},null,{"$f":"IF($C$466=\"\",\"\",AL466/$C$466)","v":""},null,{"$f":"IF($C$466=\"\",\"\",AN466/$C$466)","v":""},null,{"$f":"IF($C$466=\"\",\"\",AP466/$C$466)","v":""},null,{"$f":"IF($C$466=\"\",\"\",AR466/$C$466)","v":""},null,{"$f":"IF($C$466=\"\",\"\",AT466/$C$466)","v":""},null,{"$f":"IF($C$466=\"\",\"\",AV466/$C$466)","v":""},null,{"$f":"IF($C$466=\"\",\"\",AX466/$C$466)","v":""},null,{"$f":"IF($C$466=\"\",\"\",AZ466/$C$466)","v":""},null,{"$f":"IF($C$466=\"\",\"\",BB466/$C$466)","v":""},null,0]
[null,null,null,null,{"$f":"IF($C$467=\"\",\"\",F467/$C$467)","v":""},null,{"$f":"IF($C$467=\"\",\"\",H467/$C$467)","v":""},null,{"$f":"IF($C$467=\"\",\"\",J467/$C$467)","v":""},null,{"$f":"IF($C$467=\"\",\"\",L467/$C$467)","v":""},null,{"$f":"IF($C$467=\"\",\"\",N467/$C$467)","v":""},null,{"$f":"IF($C$467=\"\",\"\",P467/$C$467)","v":""},null,{"$f":"IF($C$467=\"\",\"\",R467/$C$467)","v":""},null,{"$f":"IF($C$467=\"\",\"\",T467/$C$467)","v":""},null,{"$f":"IF($C$467=\"\",\"\",V467/$C$467)","v":""},null,{"$f":"IF($C$467=\"\",\"\",X467/$C$467)","v":""},null,{"$f":"IF($C$467=\"\",\"\",Z467/$C$467)","v":""},null,{"$f":"IF($C$467=\"\",\"\",AB467/$C$467)","v":""},null,{"$f":"IF($C$467=\"\",\"\",AD467/$C$467)","v":""},null,{"$f":"IF($C$467=\"\",\"\",AF467/$C$467)","v":""},null,{"$f":"IF($C$467=\"\",\"\",AH467/$C$467)","v":""},null,{"$f":"IF($C$467=\"\",\"\",AJ467/$C$467)","v":""},null,{"$f":"IF($C$467=\"\",\"\",AL467/$C$467)","v":""},null,{"$f":"IF($C$467=\"\",\"\",AN467/$C$467)","v":""},null,{"$f":"IF($C$467=\"\",\"\",AP467/$C$467)","v":""},null,{"$f":"IF($C$467=\"\",\"\",AR467/$C$467)","v":""},null,{"$f":"IF($C$467=\"\",\"\",AT467/$C$467)","v":""},null,{"$f":"IF($C$467=\"\",\"\",AV467/$C$467)","v":""},null,{"$f":"IF($C$467=\"\",\"\",AX467/$C$467)","v":""},null,{"$f":"IF($C$467=\"\",\"\",AZ467/$C$467)","v":""},null,{"$f":"IF($C$467=\"\",\"\",BB467/$C$467)","v":""},null,0]
[null,null,null,null,{"$f":"IF($C$468=\"\",\"\",F468/$C$468)","v":""},null,{"$f":"IF($C$468=\"\",\"\",H468/$C$468)","v":""},null,{"$f":"IF($C$468=\"\",\"\",J468/$C$468)","v":""},null,{"$f":"IF($C$468=\"\",\"\",L468/$C$468)","v":""},null,{"$f":"IF($C$468=\"\",\"\",N468/$C$468)","v":""},null,{"$f":"IF($C$468=\"\",\"\",P468/$C$468)","v":""},null,{"$f":"IF($C$468=\"\",\"\",R468/$C$468)","v":""},null,{"$f":"IF($C$468=\"\",\"\",T468/$C$468)","v":""},null,{"$f":"IF($C$468=\"\",\"\",V468/$C$468)","v":""},null,{"$f":"IF($C$468=\"\",\"\",X468/$C$468)","v":""},null,{"$f":"IF($C$468=\"\",\"\",Z468/$C$468)","v":""},null,{"$f":"IF($C$468=\"\",\"\",AB468/$C$468)","v":""},null,{"$f":"IF($C$468=\"\",\"\",AD468/$C$468)","v":""},null,{"$f":"IF($C$468=\"\",\"\",AF468/$C$468)","v":""},null,{"$f":"IF($C$468=\"\",\"\",AH468/$C$468)","v":""},null,{"$f":"IF($C$468=\"\",\"\",AJ468/$C$468)","v":""},null,{"$f":"IF($C$468=\"\",\"\",AL468/$C$468)","v":""},null,{"$f":"IF($C$468=\"\",\"\",AN468/$C$468)","v":""},null,{"$f":"IF($C$468=\"\",\"\",AP468/$C$468)","v":""},null,{"$f":"IF($C$468=\"\",\"\",AR468/$C$468)","v":""},null,{"$f":"IF($C$468=\"\",\"\",AT468/$C$468)","v":""},null,{"$f":"IF($C$468=\"\",\"\",AV468/$C$468)","v":""},null,{"$f":"IF($C$468=\"\",\"\",AX468/$C$468)","v":""},null,{"$f":"IF($C$468=\"\",\"\",AZ468/$C$468)","v":""},null,{"$f":"IF($C$468=\"\",\"\",BB468/$C$468)","v":""},null,0]
[null,null,null,null,{"$f":"IF($C$469=\"\",\"\",F469/$C$469)","v":""},null,{"$f":"IF($C$469=\"\",\"\",H469/$C$469)","v":""},null,{"$f":"IF($C$469=\"\",\"\",J469/$C$469)","v":""},null,{"$f":"IF($C$469=\"\",\"\",L469/$C$469)","v":""},null,{"$f":"IF($C$469=\"\",\"\",N469/$C$469)","v":""},null,{"$f":"IF($C$469=\"\",\"\",P469/$C$469)","v":""},null,{"$f":"IF($C$469=\"\",\"\",R469/$C$469)","v":""},null,{"$f":"IF($C$469=\"\",\"\",T469/$C$469)","v":""},null,{"$f":"IF($C$469=\"\",\"\",V469/$C$469)","v":""},null,{"$f":"IF($C$469=\"\",\"\",X469/$C$469)","v":""},null,{"$f":"IF($C$469=\"\",\"\",Z469/$C$469)","v":""},null,{"$f":"IF($C$469=\"\",\"\",AB469/$C$469)","v":""},null,{"$f":"IF($C$469=\"\",\"\",AD469/$C$469)","v":""},null,{"$f":"IF($C$469=\"\",\"\",AF469/$C$469)","v":""},null,{"$f":"IF($C$469=\"\",\"\",AH469/$C$469)","v":""},null,{"$f":"IF($C$469=\"\",\"\",AJ469/$C$469)","v":""},null,{"$f":"IF($C$469=\"\",\"\",AL469/$C$469)","v":""},null,{"$f":"IF($C$469=\"\",\"\",AN469/$C$469)","v":""},null,{"$f":"IF($C$469=\"\",\"\",AP469/$C$469)","v":""},null,{"$f":"IF($C$469=\"\",\"\",AR469/$C$469)","v":""},null,{"$f":"IF($C$469=\"\",\"\",AT469/$C$469)","v":""},null,{"$f":"IF($C$469=\"\",\"\",AV469/$C$469)","v":""},null,{"$f":"IF($C$469=\"\",\"\",AX469/$C$469)","v":""},null,{"$f":"IF($C$469=\"\",\"\",AZ469/$C$469)","v":""},null,{"$f":"IF($C$469=\"\",\"\",BB469/$C$469)","v":""},null,0]
[null,null,null,null,{"$f":"IF($C$470=\"\",\"\",F470/$C$470)","v":""},null,{"$f":"IF($C$470=\"\",\"\",H470/$C$470)","v":""},null,{"$f":"IF($C$470=\"\",\"\",J470/$C$470)","v":""},null,{"$f":"IF($C$470=\"\",\"\",L470/$C$470)","v":""},null,{"$f":"IF($C$470=\"\",\"\",N470/$C$470)","v":""},null,{"$f":"IF($C$470=\"\",\"\",P470/$C$470)","v":""},null,{"$f":"IF($C$470=\"\",\"\",R470/$C$470)","v":""},null,{"$f":"IF($C$470=\"\",\"\",T470/$C$470)","v":""},null,{"$f":"IF($C$470=\"\",\"\",V470/$C$470)","v":""},null,{"$f":"IF($C$470=\"\",\"\",X470/$C$470)","v":""},null,{"$f":"IF($C$470=\"\",\"\",Z470/$C$470)","v":""},null,{"$f":"IF($C$470=\"\",\"\",AB470/$C$470)","v":""},null,{"$f":"IF($C$470=\"\",\"\",AD470/$C$470)","v":""},null,{"$f":"IF($C$470=\"\",\"\",AF470/$C$470)","v":""},null,{"$f":"IF($C$470=\"\",\"\",AH470/$C$470)","v":""},null,{"$f":"IF($C$470=\"\",\"\",AJ470/$C$470)","v":""},null,{"$f":"IF($C$470=\"\",\"\",AL470/$C$470)","v":""},null,{"$f":"IF($C$470=\"\",\"\",AN470/$C$470)","v":""},null,{"$f":"IF($C$470=\"\",\"\",AP470/$C$470)","v":""},null,{"$f":"IF($C$470=\"\",\"\",AR470/$C$470)","v":""},null,{"$f":"IF($C$470=\"\",\"\",AT470/$C$470)","v":""},null,{"$f":"IF($C$470=\"\",\"\",AV470/$C$470)","v":""},null,{"$f":"IF($C$470=\"\",\"\",AX470/$C$470)","v":""},null,{"$f":"IF($C$470=\"\",\"\",AZ470/$C$470)","v":""},null,{"$f":"IF($C$470=\"\",\"\",BB470/$C$470)","v":""},null,0]
[null,null,null,null,{"$f":"IF($C$471=\"\",\"\",F471/$C$471)","v":""},null,{"$f":"IF($C$471=\"\",\"\",H471/$C$471)","v":""},null,{"$f":"IF($C$471=\"\",\"\",J471/$C$471)","v":""},null,{"$f":"IF($C$471=\"\",\"\",L471/$C$471)","v":""},null,{"$f":"IF($C$471=\"\",\"\",N471/$C$471)","v":""},null,{"$f":"IF($C$471=\"\",\"\",P471/$C$471)","v":""},null,{"$f":"IF($C$471=\"\",\"\",R471/$C$471)","v":""},null,{"$f":"IF($C$471=\"\",\"\",T471/$C$471)","v":""},null,{"$f":"IF($C$471=\"\",\"\",V471/$C$471)","v":""},null,{"$f":"IF($C$471=\"\",\"\",X471/$C$471)","v":""},null,{"$f":"IF($C$471=\"\",\"\",Z471/$C$471)","v":""},null,{"$f":"IF($C$471=\"\",\"\",AB471/$C$471)","v":""},null,{"$f":"IF($C$471=\"\",\"\",AD471/$C$471)","v":""},null,{"$f":"IF($C$471=\"\",\"\",AF471/$C$471)","v":""},null,{"$f":"IF($C$471=\"\",\"\",AH471/$C$471)","v":""},null,{"$f":"IF($C$471=\"\",\"\",AJ471/$C$471)","v":""},null,{"$f":"IF($C$471=\"\",\"\",AL471/$C$471)","v":""},null,{"$f":"IF($C$471=\"\",\"\",AN471/$C$471)","v":""},null,{"$f":"IF($C$471=\"\",\"\",AP471/$C$471)","v":""},null,{"$f":"IF($C$471=\"\",\"\",AR471/$C$471)","v":""},null,{"$f":"IF($C$471=\"\",\"\",AT471/$C$471)","v":""},null,{"$f":"IF($C$471=\"\",\"\",AV471/$C$471)","v":""},null,{"$f":"IF($C$471=\"\",\"\",AX471/$C$471)","v":""},null,{"$f":"IF($C$471=\"\",\"\",AZ471/$C$471)","v":""},null,{"$f":"IF($C$471=\"\",\"\",BB471/$C$471)","v":""},null,0]
[null,null,null,null,{"$f":"IF($C$472=\"\",\"\",F472/$C$472)","v":""},null,{"$f":"IF($C$472=\"\",\"\",H472/$C$472)","v":""},null,{"$f":"IF($C$472=\"\",\"\",J472/$C$472)","v":""},null,{"$f":"IF($C$472=\"\",\"\",L472/$C$472)","v":""},null,{"$f":"IF($C$472=\"\",\"\",N472/$C$472)","v":""},null,{"$f":"IF($C$472=\"\",\"\",P472/$C$472)","v":""},null,{"$f":"IF($C$472=\"\",\"\",R472/$C$472)","v":""},null,{"$f":"IF($C$472=\"\",\"\",T472/$C$472)","v":""},null,{"$f":"IF($C$472=\"\",\"\",V472/$C$472)","v":""},null,{"$f":"IF($C$472=\"\",\"\",X472/$C$472)","v":""},null,{"$f":"IF($C$472=\"\",\"\",Z472/$C$472)","v":""},null,{"$f":"IF($C$472=\"\",\"\",AB472/$C$472)","v":""},null,{"$f":"IF($C$472=\"\",\"\",AD472/$C$472)","v":""},null,{"$f":"IF($C$472=\"\",\"\",AF472/$C$472)","v":""},null,{"$f":"IF($C$472=\"\",\"\",AH472/$C$472)","v":""},null,{"$f":"IF($C$472=\"\",\"\",AJ472/$C$472)","v":""},null,{"$f":"IF($C$472=\"\",\"\",AL472/$C$472)","v":""},null,{"$f":"IF($C$472=\"\",\"\",AN472/$C$472)","v":""},null,{"$f":"IF($C$472=\"\",\"\",AP472/$C$472)","v":""},null,{"$f":"IF($C$472=\"\",\"\",AR472/$C$472)","v":""},null,{"$f":"IF($C$472=\"\",\"\",AT472/$C$472)","v":""},null,{"$f":"IF($C$472=\"\",\"\",AV472/$C$472)","v":""},null,{"$f":"IF($C$472=\"\",\"\",AX472/$C$472)","v":""},null,{"$f":"IF($C$472=\"\",\"\",AZ472/$C$472)","v":""},null,{"$f":"IF($C$472=\"\",\"\",BB472/$C$472)","v":""},null,0]
[null,null,null,null,{"$f":"IF($C$473=\"\",\"\",F473/$C$473)","v":""},null,{"$f":"IF($C$473=\"\",\"\",H473/$C$473)","v":""},null,{"$f":"IF($C$473=\"\",\"\",J473/$C$473)","v":""},null,{"$f":"IF($C$473=\"\",\"\",L473/$C$473)","v":""},null,{"$f":"IF($C$473=\"\",\"\",N473/$C$473)","v":""},null,{"$f":"IF($C$473=\"\",\"\",P473/$C$473)","v":""},null,{"$f":"IF($C$473=\"\",\"\",R473/$C$473)","v":""},null,{"$f":"IF($C$473=\"\",\"\",T473/$C$473)","v":""},null,{"$f":"IF($C$473=\"\",\"\",V473/$C$473)","v":""},null,{"$f":"IF($C$473=\"\",\"\",X473/$C$473)","v":""},null,{"$f":"IF($C$473=\"\",\"\",Z473/$C$473)","v":""},null,{"$f":"IF($C$473=\"\",\"\",AB473/$C$473)","v":""},null,{"$f":"IF($C$473=\"\",\"\",AD473/$C$473)","v":""},null,{"$f":"IF($C$473=\"\",\"\",AF473/$C$473)","v":""},null,{"$f":"IF($C$473=\"\",\"\",AH473/$C$473)","v":""},null,{"$f":"IF($C$473=\"\",\"\",AJ473/$C$473)","v":""},null,{"$f":"IF($C$473=\"\",\"\",AL473/$C$473)","v":""},null,{"$f":"IF($C$473=\"\",\"\",AN473/$C$473)","v":""},null,{"$f":"IF($C$473=\"\",\"\",AP473/$C$473)","v":""},null,{"$f":"IF($C$473=\"\",\"\",AR473/$C$473)","v":""},null,{"$f":"IF($C$473=\"\",\"\",AT473/$C$473)","v":""},null,{"$f":"IF($C$473=\"\",\"\",AV473/$C$473)","v":""},null,{"$f":"IF($C$473=\"\",\"\",AX473/$C$473)","v":""},null,{"$f":"IF($C$473=\"\",\"\",AZ473/$C$473)","v":""},null,{"$f":"IF($C$473=\"\",\"\",BB473/$C$473)","v":""},null,{"$f":"SUM(BB473,AZ473,AX473,AV473,AT473,AR473,AP473,AN473,AL473,AJ473,AH473,AF473,AD473,AB473,Z473,X473,V473,T473,R473,P473,N473,L473,J473,H473,F473)","v":0}]
["TOTAL HOURS",null,null,null,null,{"$f":"SUM(F444:F473)","v":0},null,{"$f":"SUM(H444:H473)","v":0},null,{"$f":"SUM(J444:J473)","v":0},null,{"$f":"SUM(L444:L473)","v":0},null,{"$f":"SUM(N444:N473)","v":0},null,{"$f":"SUM(P444:P473)","v":0},null,{"$f":"SUM(R444:R473)","v":0},null,{"$f":"SUM(T444:T473)","v":0},null,{"$f":"SUM(V444:V473)","v":0},null,{"$f":"SUM(X444:X473)","v":0},null,{"$f":"SUM(Z444:Z473)","v":0},null,{"$f":"SUM(AB444:AB473)","v":0},null,{"$f":"SUM(AD444:AD473)","v":0},null,{"$f":"SUM(AF444:AF473)","v":0},null,{"$f":"SUM(AH444:AH473)","v":0},null,{"$f":"SUM(AJ444:AJ473)","v":0},null,{"$f":"SUM(AL444:AL473)","v":0},null,{"$f":"SUM(AN444:AN473)","v":0},null,{"$f":"SUM(AP444:AP473)","v":0},null,{"$f":"SUM(AR444:AR473)","v":0},null,{"$f":"SUM(AT444:AT473)","v":0},null,{"$f":"SUM(AV444:AV473)","v":0},null,{"$f":"SUM(AX444:AX473)","v":0},null,{"$f":"SUM(AZ444:AZ473)","v":0},null,{"$f":"SUM(BB444:BB473)","v":0},{"$f":"SUM(E474:BB474)","v":0}]
["TOTAL WORKDAYS",null,null,null,null,{"$f":"F474/8","v":0},null,{"$f":"H474/8","v":0},null,{"$f":"J474/8","v":0},null,{"$f":"L474/8","v":0},null,{"$f":"N474/8","v":0},null,{"$f":"P474/8","v":0},null,{"$f":"R474/8","v":0},null,{"$f":"T474/8","v":0},null,{"$f":"V474/8","v":0},null,{"$f":"X474/8","v":0},null,{"$f":"Z474/8","v":0},null,{"$f":"AB474/8","v":0},null,{"$f":"AD474/8","v":0},null,0,null,{"$f":"AH474/8","v":0},null,0,null,{"$f":"AL474/8","v":0},null,0,null,{"$f":"AP474/8","v":0},null,0,null,{"$f":"AT474/8","v":0},null,{"$f":"AV474/8","v":0},null,{"$f":"AX474/8","v":0},null,{"$f":"AZ474/8","v":0},null,{"$f":"BB474/8","v":0},{"$f":"SUM(E475:BB475)","v":0}]
["TOTAL RAW LABOR",null,null,null,null,{"$f":"$E$13*F474","v":0},null,{"$f":"$G$13*H474","v":0},null,{"$f":"$I$13*J474","v":0},null,{"$f":"$K$13*L474","v":0},null,{"$f":"$M$13*N474","v":0},null,{"$f":"$O$13*P474","v":0},null,{"$f":"$Q$13*R474","v":0},null,{"$f":"$S$13*T474","v":0},null,{"$f":"$U$13*V474","v":0},null,{"$f":"$W$13*X474","v":0},null,{"$f":"$Y$13*Z474","v":0},null,{"$f":"$AA$13*AB474","v":0},null,{"$f":"$AC$13*AD474","v":0},null,{"$f":"$AC$13*AF474","v":0},null,{"$f":"$AC$13*AH474","v":0},null,{"$f":"$AC$13*AJ474","v":0},null,{"$f":"$AC$13*AL474","v":0},null,{"$f":"$AC$13*AN474","v":0},null,{"$f":"$AC$13*AP474","v":0},null,{"$f":"$AC$13*AR474","v":0},null,{"$f":"$AC$13*AT474","v":0},null,{"$f":"$AC$13*AV474","v":0},null,{"$f":"$AC$13*AX474","v":0},null,{"$f":"$AC$13*AZ474","v":0},null,{"$f":"$AC$13*BB474","v":0},{"$f":"SUM(E476:BB476)","v":0}]
["Task 18.0     ","REPLACE FIELD WITH CATEGORY NAME OF YOUR CHOOSING HERE",null,null,null,null,null,null,null,null,null,null,null,null,null,null,null,null,null,null,null,null,null,null,null,null,null,null,null,null,null,null,null,null,null,null,null,null,null,null,null,null,null,null,null,null,null,null,null,null,null,null,null,null,{"$f":"IF(B477=\"REPLACE FIELD WITH CATEGORY NAME OF YOUR CHOOSING HERE\",0,\"\")","v":0}]
[null,null,null,null,{"$f":"IF($C$478=\"\",\"\",F478/$C$478)","v":""},null,{"$f":"IF($C$478=\"\",\"\",H478/$C$478)","v":""},null,{"$f":"IF($C$478=\"\",\"\",J478/$C$478)","v":""},null,{"$f":"IF($C$478=\"\",\"\",L478/$C$478)","v":""},null,{"$f":"IF($C$478=\"\",\"\",N478/$C$478)","v":""},null,{"$f":"IF($C$478=\"\",\"\",P478/$C$478)","v":""},null,{"$f":"IF($C$478=\"\",\"\",R478/$C$478)","v":""},null,{"$f":"IF($C$478=\"\",\"\",T478/$C$478)","v":""},null,{"$f":"IF($C$478=\"\",\"\",V478/$C$478)","v":""},null,{"$f":"IF($C$478=\"\",\"\",X478/$C$478)","v":""},null,{"$f":"IF($C$478=\"\",\"\",Z478/$C$478)","v":""},null,{"$f":"IF($C$478=\"\",\"\",AB478/$C$478)","v":""},null,{"$f":"IF($C$478=\"\",\"\",AD478/$C$478)","v":""},null,{"$f":"IF($C$478=\"\",\"\",AF478/$C$478)","v":""},null,{"$f":"IF($C$478=\"\",\"\",AH478/$C$478)","v":""},null,{"$f":"IF($C$478=\"\",\"\",AJ478/$C$478)","v":""},null,{"$f":"IF($C$478=\"\",\"\",AL478/$C$478)","v":""},null,{"$f":"IF($C$478=\"\",\"\",AN478/$C$478)","v":""},null,{"$f":"IF($C$478=\"\",\"\",AP478/$C$478)","v":""},null,{"$f":"IF($C$478=\"\",\"\",AR478/$C$478)","v":""},null,{"$f":"IF($C$478=\"\",\"\",AT478/$C$478)","v":""},null,{"$f":"IF($C$478=\"\",\"\",AV478/$C$478)","v":""},null,{"$f":"IF($C$478=\"\",\"\",AX478/$C$478)","v":""},null,{"$f":"IF($C$478=\"\",\"\",AZ478/$C$478)","v":""},null,{"$f":"IF($C$478=\"\",\"\",BB478/$C$478)","v":""},null,{"$f":"SUM(BB478,AZ478,AX478,AV478,AT478,AR478,AP478,AN478,AL478,AJ478,AH478,AF478,AD478,AB478,Z478,X478,V478,T478,R478,P478,N478,L478,J478,H478,F478)","v":0}]
[null,null,null,null,{"$f":"IF($C$479=\"\",\"\",F479/$C$479)","v":""},null,{"$f":"IF($C$479=\"\",\"\",H479/$C$479)","v":""},null,{"$f":"IF($C$479=\"\",\"\",J479/$C$479)","v":""},null,{"$f":"IF($C$479=\"\",\"\",L479/$C$479)","v":""},null,{"$f":"IF($C$479=\"\",\"\",N479/$C$479)","v":""},null,{"$f":"IF($C$479=\"\",\"\",P479/$C$479)","v":""},null,{"$f":"IF($C$479=\"\",\"\",R479/$C$479)","v":""},null,{"$f":"IF($C$479=\"\",\"\",T479/$C$479)","v":""},null,{"$f":"IF($C$479=\"\",\"\",V479/$C$479)","v":""},null,{"$f":"IF($C$479=\"\",\"\",X479/$C$479)","v":""},null,{"$f":"IF($C$479=\"\",\"\",Z479/$C$479)","v":""},null,{"$f":"IF($C$479=\"\",\"\",AB479/$C$479)","v":""},null,{"$f":"IF($C$479=\"\",\"\",AD479/$C$479)","v":""},null,{"$f":"IF($C$479=\"\",\"\",AF479/$C$479)","v":""},null,{"$f":"IF($C$479=\"\",\"\",AH479/$C$479)","v":""},null,{"$f":"IF($C$479=\"\",\"\",AJ479/$C$479)","v":""},null,{"$f":"IF($C$479=\"\",\"\",AL479/$C$479)","v":""},null,{"$f":"IF($C$479=\"\",\"\",AN479/$C$479)","v":""},null,{"$f":"IF($C$479=\"\",\"\",AP479/$C$479)","v":""},null,{"$f":"IF($C$479=\"\",\"\",AR479/$C$479)","v":""},null,{"$f":"IF($C$479=\"\",\"\",AT479/$C$479)","v":""},null,{"$f":"IF($C$479=\"\",\"\",AV479/$C$479)","v":""},null,{"$f":"IF($C$479=\"\",\"\",AX479/$C$479)","v":""},null,{"$f":"IF($C$479=\"\",\"\",AZ479/$C$479)","v":""},null,{"$f":"IF($C$479=\"\",\"\",BB479/$C$479)","v":""},null,0]
[null,null,null,null,{"$f":"IF($C$480=\"\",\"\",F480/$C$480)","v":""},null,{"$f":"IF($C$480=\"\",\"\",H480/$C$480)","v":""},null,{"$f":"IF($C$480=\"\",\"\",J480/$C$480)","v":""},null,{"$f":"IF($C$480=\"\",\"\",L480/$C$480)","v":""},null,{"$f":"IF($C$480=\"\",\"\",N480/$C$480)","v":""},null,{"$f":"IF($C$480=\"\",\"\",P480/$C$480)","v":""},null,{"$f":"IF($C$480=\"\",\"\",R480/$C$480)","v":""},null,{"$f":"IF($C$480=\"\",\"\",T480/$C$480)","v":""},null,{"$f":"IF($C$480=\"\",\"\",V480/$C$480)","v":""},null,{"$f":"IF($C$480=\"\",\"\",X480/$C$480)","v":""},null,{"$f":"IF($C$480=\"\",\"\",Z480/$C$480)","v":""},null,{"$f":"IF($C$480=\"\",\"\",AB480/$C$480)","v":""},null,{"$f":"IF($C$480=\"\",\"\",AD480/$C$480)","v":""},null,{"$f":"IF($C$480=\"\",\"\",AF480/$C$480)","v":""},null,{"$f":"IF($C$480=\"\",\"\",AH480/$C$480)","v":""},null,{"$f":"IF($C$480=\"\",\"\",AJ480/$C$480)","v":""},null,{"$f":"IF($C$480=\"\",\"\",AL480/$C$480)","v":""},null,{"$f":"IF($C$480=\"\",\"\",AN480/$C$480)","v":""},null,{"$f":"IF($C$480=\"\",\"\",AP480/$C$480)","v":""},null,{"$f":"IF($C$480=\"\",\"\",AR480/$C$480)","v":""},null,{"$f":"IF($C$480=\"\",\"\",AT480/$C$480)","v":""},null,{"$f":"IF($C$480=\"\",\"\",AV480/$C$480)","v":""},null,{"$f":"IF($C$480=\"\",\"\",AX480/$C$480)","v":""},null,{"$f":"IF($C$480=\"\",\"\",AZ480/$C$480)","v":""},null,{"$f":"IF($C$480=\"\",\"\",BB480/$C$480)","v":""},null,0]
[null,null,null,null,{"$f":"IF($C$481=\"\",\"\",F481/$C$481)","v":""},null,{"$f":"IF($C$481=\"\",\"\",H481/$C$481)","v":""},null,{"$f":"IF($C$481=\"\",\"\",J481/$C$481)","v":""},null,{"$f":"IF($C$481=\"\",\"\",L481/$C$481)","v":""},null,{"$f":"IF($C$481=\"\",\"\",N481/$C$481)","v":""},null,{"$f":"IF($C$481=\"\",\"\",P481/$C$481)","v":""},null,{"$f":"IF($C$481=\"\",\"\",R481/$C$481)","v":""},null,{"$f":"IF($C$481=\"\",\"\",T481/$C$481)","v":""},null,{"$f":"IF($C$481=\"\",\"\",V481/$C$481)","v":""},null,{"$f":"IF($C$481=\"\",\"\",X481/$C$481)","v":""},null,{"$f":"IF($C$481=\"\",\"\",Z481/$C$481)","v":""},null,{"$f":"IF($C$481=\"\",\"\",AB481/$C$481)","v":""},null,{"$f":"IF($C$481=\"\",\"\",AD481/$C$481)","v":""},null,{"$f":"IF($C$481=\"\",\"\",AF481/$C$481)","v":""},null,{"$f":"IF($C$481=\"\",\"\",AH481/$C$481)","v":""},null,{"$f":"IF($C$481=\"\",\"\",AJ481/$C$481)","v":""},null,{"$f":"IF($C$481=\"\",\"\",AL481/$C$481)","v":""},null,{"$f":"IF($C$481=\"\",\"\",AN481/$C$481)","v":""},null,{"$f":"IF($C$481=\"\",\"\",AP481/$C$481)","v":""},null,{"$f":"IF($C$481=\"\",\"\",AR481/$C$481)","v":""},null,{"$f":"IF($C$481=\"\",\"\",AT481/$C$481)","v":""},null,{"$f":"IF($C$481=\"\",\"\",AV481/$C$481)","v":""},null,{"$f":"IF($C$481=\"\",\"\",AX481/$C$481)","v":""},null,{"$f":"IF($C$481=\"\",\"\",AZ481/$C$481)","v":""},null,{"$f":"IF($C$481=\"\",\"\",BB481/$C$481)","v":""},null,0]
[null,null,null,null,{"$f":"IF($C$482=\"\",\"\",F482/$C$482)","v":""},null,{"$f":"IF($C$482=\"\",\"\",H482/$C$482)","v":""},null,{"$f":"IF($C$482=\"\",\"\",J482/$C$482)","v":""},null,{"$f":"IF($C$482=\"\",\"\",L482/$C$482)","v":""},null,{"$f":"IF($C$482=\"\",\"\",N482/$C$482)","v":""},null,{"$f":"IF($C$482=\"\",\"\",P482/$C$482)","v":""},null,{"$f":"IF($C$482=\"\",\"\",R482/$C$482)","v":""},null,{"$f":"IF($C$482=\"\",\"\",T482/$C$482)","v":""},null,{"$f":"IF($C$482=\"\",\"\",V482/$C$482)","v":""},null,{"$f":"IF($C$482=\"\",\"\",X482/$C$482)","v":""},null,{"$f":"IF($C$482=\"\",\"\",Z482/$C$482)","v":""},null,{"$f":"IF($C$482=\"\",\"\",AB482/$C$482)","v":""},null,{"$f":"IF($C$482=\"\",\"\",AD482/$C$482)","v":""},null,{"$f":"IF($C$482=\"\",\"\",AF482/$C$482)","v":""},null,{"$f":"IF($C$482=\"\",\"\",AH482/$C$482)","v":""},null,{"$f":"IF($C$482=\"\",\"\",AJ482/$C$482)","v":""},null,{"$f":"IF($C$482=\"\",\"\",AL482/$C$482)","v":""},null,{"$f":"IF($C$482=\"\",\"\",AN482/$C$482)","v":""},null,{"$f":"IF($C$482=\"\",\"\",AP482/$C$482)","v":""},null,{"$f":"IF($C$482=\"\",\"\",AR482/$C$482)","v":""},null,{"$f":"IF($C$482=\"\",\"\",AT482/$C$482)","v":""},null,{"$f":"IF($C$482=\"\",\"\",AV482/$C$482)","v":""},null,{"$f":"IF($C$482=\"\",\"\",AX482/$C$482)","v":""},null,{"$f":"IF($C$482=\"\",\"\",AZ482/$C$482)","v":""},null,{"$f":"IF($C$482=\"\",\"\",BB482/$C$482)","v":""},null,0]
[null,null,null,null,{"$f":"IF($C$483=\"\",\"\",F483/$C$483)","v":""},null,{"$f":"IF($C$483=\"\",\"\",H483/$C$483)","v":""},null,{"$f":"IF($C$483=\"\",\"\",J483/$C$483)","v":""},null,{"$f":"IF($C$483=\"\",\"\",L483/$C$483)","v":""},null,{"$f":"IF($C$483=\"\",\"\",N483/$C$483)","v":""},null,{"$f":"IF($C$483=\"\",\"\",P483/$C$483)","v":""},null,{"$f":"IF($C$483=\"\",\"\",R483/$C$483)","v":""},null,{"$f":"IF($C$483=\"\",\"\",T483/$C$483)","v":""},null,{"$f":"IF($C$483=\"\",\"\",V483/$C$483)","v":""},null,{"$f":"IF($C$483=\"\",\"\",X483/$C$483)","v":""},null,{"$f":"IF($C$483=\"\",\"\",Z483/$C$483)","v":""},null,{"$f":"IF($C$483=\"\",\"\",AB483/$C$483)","v":""},null,{"$f":"IF($C$483=\"\",\"\",AD483/$C$483)","v":""},null,{"$f":"IF($C$483=\"\",\"\",AF483/$C$483)","v":""},null,{"$f":"IF($C$483=\"\",\"\",AH483/$C$483)","v":""},null,{"$f":"IF($C$483=\"\",\"\",AJ483/$C$483)","v":""},null,{"$f":"IF($C$483=\"\",\"\",AL483/$C$483)","v":""},null,{"$f":"IF($C$483=\"\",\"\",AN483/$C$483)","v":""},null,{"$f":"IF($C$483=\"\",\"\",AP483/$C$483)","v":""},null,{"$f":"IF($C$483=\"\",\"\",AR483/$C$483)","v":""},null,{"$f":"IF($C$483=\"\",\"\",AT483/$C$483)","v":""},null,{"$f":"IF($C$483=\"\",\"\",AV483/$C$483)","v":""},null,{"$f":"IF($C$483=\"\",\"\",AX483/$C$483)","v":""},null,{"$f":"IF($C$483=\"\",\"\",AZ483/$C$483)","v":""},null,{"$f":"IF($C$483=\"\",\"\",BB483/$C$483)","v":""},null,0]
[null,null,null,null,{"$f":"IF($C$484=\"\",\"\",F484/$C$484)","v":""},null,{"$f":"IF($C$484=\"\",\"\",H484/$C$484)","v":""},null,{"$f":"IF($C$484=\"\",\"\",J484/$C$484)","v":""},null,{"$f":"IF($C$484=\"\",\"\",L484/$C$484)","v":""},null,{"$f":"IF($C$484=\"\",\"\",N484/$C$484)","v":""},null,{"$f":"IF($C$484=\"\",\"\",P484/$C$484)","v":""},null,{"$f":"IF($C$484=\"\",\"\",R484/$C$484)","v":""},null,{"$f":"IF($C$484=\"\",\"\",T484/$C$484)","v":""},null,{"$f":"IF($C$484=\"\",\"\",V484/$C$484)","v":""},null,{"$f":"IF($C$484=\"\",\"\",X484/$C$484)","v":""},null,{"$f":"IF($C$484=\"\",\"\",Z484/$C$484)","v":""},null,{"$f":"IF($C$484=\"\",\"\",AB484/$C$484)","v":""},null,{"$f":"IF($C$484=\"\",\"\",AD484/$C$484)","v":""},null,{"$f":"IF($C$484=\"\",\"\",AF484/$C$484)","v":""},null,{"$f":"IF($C$484=\"\",\"\",AH484/$C$484)","v":""},null,{"$f":"IF($C$484=\"\",\"\",AJ484/$C$484)","v":""},null,{"$f":"IF($C$484=\"\",\"\",AL484/$C$484)","v":""},null,{"$f":"IF($C$484=\"\",\"\",AN484/$C$484)","v":""},null,{"$f":"IF($C$484=\"\",\"\",AP484/$C$484)","v":""},null,{"$f":"IF($C$484=\"\",\"\",AR484/$C$484)","v":""},null,{"$f":"IF($C$484=\"\",\"\",AT484/$C$484)","v":""},null,{"$f":"IF($C$484=\"\",\"\",AV484/$C$484)","v":""},null,{"$f":"IF($C$484=\"\",\"\",AX484/$C$484)","v":""},null,{"$f":"IF($C$484=\"\",\"\",AZ484/$C$484)","v":""},null,{"$f":"IF($C$484=\"\",\"\",BB484/$C$484)","v":""},null,0]
[null,null,null,null,{"$f":"IF($C$485=\"\",\"\",F485/$C$485)","v":""},null,{"$f":"IF($C$485=\"\",\"\",H485/$C$485)","v":""},null,{"$f":"IF($C$485=\"\",\"\",J485/$C$485)","v":""},null,{"$f":"IF($C$485=\"\",\"\",L485/$C$485)","v":""},null,{"$f":"IF($C$485=\"\",\"\",N485/$C$485)","v":""},null,{"$f":"IF($C$485=\"\",\"\",P485/$C$485)","v":""},null,{"$f":"IF($C$485=\"\",\"\",R485/$C$485)","v":""},null,{"$f":"IF($C$485=\"\",\"\",T485/$C$485)","v":""},null,{"$f":"IF($C$485=\"\",\"\",V485/$C$485)","v":""},null,{"$f":"IF($C$485=\"\",\"\",X485/$C$485)","v":""},null,{"$f":"IF($C$485=\"\",\"\",Z485/$C$485)","v":""},null,{"$f":"IF($C$485=\"\",\"\",AB485/$C$485)","v":""},null,{"$f":"IF($C$485=\"\",\"\",AD485/$C$485)","v":""},null,{"$f":"IF($C$485=\"\",\"\",AF485/$C$485)","v":""},null,{"$f":"IF($C$485=\"\",\"\",AH485/$C$485)","v":""},null,{"$f":"IF($C$485=\"\",\"\",AJ485/$C$485)","v":""},null,{"$f":"IF($C$485=\"\",\"\",AL485/$C$485)","v":""},null,{"$f":"IF($C$485=\"\",\"\",AN485/$C$485)","v":""},null,{"$f":"IF($C$485=\"\",\"\",AP485/$C$485)","v":""},null,{"$f":"IF($C$485=\"\",\"\",AR485/$C$485)","v":""},null,{"$f":"IF($C$485=\"\",\"\",AT485/$C$485)","v":""},null,{"$f":"IF($C$485=\"\",\"\",AV485/$C$485)","v":""},null,{"$f":"IF($C$485=\"\",\"\",AX485/$C$485)","v":""},null,{"$f":"IF($C$485=\"\",\"\",AZ485/$C$485)","v":""},null,{"$f":"IF($C$485=\"\",\"\",BB485/$C$485)","v":""},null,0]
[null,null,null,null,{"$f":"IF($C$486=\"\",\"\",F486/$C$486)","v":""},null,{"$f":"IF($C$486=\"\",\"\",H486/$C$486)","v":""},null,{"$f":"IF($C$486=\"\",\"\",J486/$C$486)","v":""},null,{"$f":"IF($C$486=\"\",\"\",L486/$C$486)","v":""},null,{"$f":"IF($C$486=\"\",\"\",N486/$C$486)","v":""},null,{"$f":"IF($C$486=\"\",\"\",P486/$C$486)","v":""},null,{"$f":"IF($C$486=\"\",\"\",R486/$C$486)","v":""},null,{"$f":"IF($C$486=\"\",\"\",T486/$C$486)","v":""},null,{"$f":"IF($C$486=\"\",\"\",V486/$C$486)","v":""},null,{"$f":"IF($C$486=\"\",\"\",X486/$C$486)","v":""},null,{"$f":"IF($C$486=\"\",\"\",Z486/$C$486)","v":""},null,{"$f":"IF($C$486=\"\",\"\",AB486/$C$486)","v":""},null,{"$f":"IF($C$486=\"\",\"\",AD486/$C$486)","v":""},null,{"$f":"IF($C$486=\"\",\"\",AF486/$C$486)","v":""},null,{"$f":"IF($C$486=\"\",\"\",AH486/$C$486)","v":""},null,{"$f":"IF($C$486=\"\",\"\",AJ486/$C$486)","v":""},null,{"$f":"IF($C$486=\"\",\"\",AL486/$C$486)","v":""},null,{"$f":"IF($C$486=\"\",\"\",AN486/$C$486)","v":""},null,{"$f":"IF($C$486=\"\",\"\",AP486/$C$486)","v":""},null,{"$f":"IF($C$486=\"\",\"\",AR486/$C$486)","v":""},null,{"$f":"IF($C$486=\"\",\"\",AT486/$C$486)","v":""},null,{"$f":"IF($C$486=\"\",\"\",AV486/$C$486)","v":""},null,{"$f":"IF($C$486=\"\",\"\",AX486/$C$486)","v":""},null,{"$f":"IF($C$486=\"\",\"\",AZ486/$C$486)","v":""},null,{"$f":"IF($C$486=\"\",\"\",BB486/$C$486)","v":""},null,0]
[null,null,null,null,{"$f":"IF($C$487=\"\",\"\",F487/$C$487)","v":""},null,{"$f":"IF($C$487=\"\",\"\",H487/$C$487)","v":""},null,{"$f":"IF($C$487=\"\",\"\",J487/$C$487)","v":""},null,{"$f":"IF($C$487=\"\",\"\",L487/$C$487)","v":""},null,{"$f":"IF($C$487=\"\",\"\",N487/$C$487)","v":""},null,{"$f":"IF($C$487=\"\",\"\",P487/$C$487)","v":""},null,{"$f":"IF($C$487=\"\",\"\",R487/$C$487)","v":""},null,{"$f":"IF($C$487=\"\",\"\",T487/$C$487)","v":""},null,{"$f":"IF($C$487=\"\",\"\",V487/$C$487)","v":""},null,{"$f":"IF($C$487=\"\",\"\",X487/$C$487)","v":""},null,{"$f":"IF($C$487=\"\",\"\",Z487/$C$487)","v":""},null,{"$f":"IF($C$487=\"\",\"\",AB487/$C$487)","v":""},null,{"$f":"IF($C$487=\"\",\"\",AD487/$C$487)","v":""},null,{"$f":"IF($C$487=\"\",\"\",AF487/$C$487)","v":""},null,{"$f":"IF($C$487=\"\",\"\",AH487/$C$487)","v":""},null,{"$f":"IF($C$487=\"\",\"\",AJ487/$C$487)","v":""},null,{"$f":"IF($C$487=\"\",\"\",AL487/$C$487)","v":""},null,{"$f":"IF($C$487=\"\",\"\",AN487/$C$487)","v":""},null,{"$f":"IF($C$487=\"\",\"\",AP487/$C$487)","v":""},null,{"$f":"IF($C$487=\"\",\"\",AR487/$C$487)","v":""},null,{"$f":"IF($C$487=\"\",\"\",AT487/$C$487)","v":""},null,{"$f":"IF($C$487=\"\",\"\",AV487/$C$487)","v":""},null,{"$f":"IF($C$487=\"\",\"\",AX487/$C$487)","v":""},null,{"$f":"IF($C$487=\"\",\"\",AZ487/$C$487)","v":""},null,{"$f":"IF($C$487=\"\",\"\",BB487/$C$487)","v":""},null,0]
[null,null,null,null,{"$f":"IF($C$488=\"\",\"\",F488/$C$488)","v":""},null,{"$f":"IF($C$488=\"\",\"\",H488/$C$488)","v":""},null,{"$f":"IF($C$488=\"\",\"\",J488/$C$488)","v":""},null,{"$f":"IF($C$488=\"\",\"\",L488/$C$488)","v":""},null,{"$f":"IF($C$488=\"\",\"\",N488/$C$488)","v":""},null,{"$f":"IF($C$488=\"\",\"\",P488/$C$488)","v":""},null,{"$f":"IF($C$488=\"\",\"\",R488/$C$488)","v":""},null,{"$f":"IF($C$488=\"\",\"\",T488/$C$488)","v":""},null,{"$f":"IF($C$488=\"\",\"\",V488/$C$488)","v":""},null,{"$f":"IF($C$488=\"\",\"\",X488/$C$488)","v":""},null,{"$f":"IF($C$488=\"\",\"\",Z488/$C$488)","v":""},null,{"$f":"IF($C$488=\"\",\"\",AB488/$C$488)","v":""},null,{"$f":"IF($C$488=\"\",\"\",AD488/$C$488)","v":""},null,{"$f":"IF($C$488=\"\",\"\",AF488/$C$488)","v":""},null,{"$f":"IF($C$488=\"\",\"\",AH488/$C$488)","v":""},null,{"$f":"IF($C$488=\"\",\"\",AJ488/$C$488)","v":""},null,{"$f":"IF($C$488=\"\",\"\",AL488/$C$488)","v":""},null,{"$f":"IF($C$488=\"\",\"\",AN488/$C$488)","v":""},null,{"$f":"IF($C$488=\"\",\"\",AP488/$C$488)","v":""},null,{"$f":"IF($C$488=\"\",\"\",AR488/$C$488)","v":""},null,{"$f":"IF($C$488=\"\",\"\",AT488/$C$488)","v":""},null,{"$f":"IF($C$488=\"\",\"\",AV488/$C$488)","v":""},null,{"$f":"IF($C$488=\"\",\"\",AX488/$C$488)","v":""},null,{"$f":"IF($C$488=\"\",\"\",AZ488/$C$488)","v":""},null,{"$f":"IF($C$488=\"\",\"\",BB488/$C$488)","v":""},null,0]
[null,null,null,null,{"$f":"IF($C$489=\"\",\"\",F489/$C$489)","v":""},null,{"$f":"IF($C$489=\"\",\"\",H489/$C$489)","v":""},null,{"$f":"IF($C$489=\"\",\"\",J489/$C$489)","v":""},null,{"$f":"IF($C$489=\"\",\"\",L489/$C$489)","v":""},null,{"$f":"IF($C$489=\"\",\"\",N489/$C$489)","v":""},null,{"$f":"IF($C$489=\"\",\"\",P489/$C$489)","v":""},null,{"$f":"IF($C$489=\"\",\"\",R489/$C$489)","v":""},null,{"$f":"IF($C$489=\"\",\"\",T489/$C$489)","v":""},null,{"$f":"IF($C$489=\"\",\"\",V489/$C$489)","v":""},null,{"$f":"IF($C$489=\"\",\"\",X489/$C$489)","v":""},null,{"$f":"IF($C$489=\"\",\"\",Z489/$C$489)","v":""},null,{"$f":"IF($C$489=\"\",\"\",AB489/$C$489)","v":""},null,{"$f":"IF($C$489=\"\",\"\",AD489/$C$489)","v":""},null,{"$f":"IF($C$489=\"\",\"\",AF489/$C$489)","v":""},null,{"$f":"IF($C$489=\"\",\"\",AH489/$C$489)","v":""},null,{"$f":"IF($C$489=\"\",\"\",AJ489/$C$489)","v":""},null,{"$f":"IF($C$489=\"\",\"\",AL489/$C$489)","v":""},null,{"$f":"IF($C$489=\"\",\"\",AN489/$C$489)","v":""},null,{"$f":"IF($C$489=\"\",\"\",AP489/$C$489)","v":""},null,{"$f":"IF($C$489=\"\",\"\",AR489/$C$489)","v":""},null,{"$f":"IF($C$489=\"\",\"\",AT489/$C$489)","v":""},null,{"$f":"IF($C$489=\"\",\"\",AV489/$C$489)","v":""},null,{"$f":"IF($C$489=\"\",\"\",AX489/$C$489)","v":""},null,{"$f":"IF($C$489=\"\",\"\",AZ489/$C$489)","v":""},null,{"$f":"IF($C$489=\"\",\"\",BB489/$C$489)","v":""},null,0]
[null,null,null,null,{"$f":"IF($C$490=\"\",\"\",F490/$C$490)","v":""},null,{"$f":"IF($C$490=\"\",\"\",H490/$C$490)","v":""},null,{"$f":"IF($C$490=\"\",\"\",J490/$C$490)","v":""},null,{"$f":"IF($C$490=\"\",\"\",L490/$C$490)","v":""},null,{"$f":"IF($C$490=\"\",\"\",N490/$C$490)","v":""},null,{"$f":"IF($C$490=\"\",\"\",P490/$C$490)","v":""},null,{"$f":"IF($C$490=\"\",\"\",R490/$C$490)","v":""},null,{"$f":"IF($C$490=\"\",\"\",T490/$C$490)","v":""},null,{"$f":"IF($C$490=\"\",\"\",V490/$C$490)","v":""},null,{"$f":"IF($C$490=\"\",\"\",X490/$C$490)","v":""},null,{"$f":"IF($C$490=\"\",\"\",Z490/$C$490)","v":""},null,{"$f":"IF($C$490=\"\",\"\",AB490/$C$490)","v":""},null,{"$f":"IF($C$490=\"\",\"\",AD490/$C$490)","v":""},null,{"$f":"IF($C$490=\"\",\"\",AF490/$C$490)","v":""},null,{"$f":"IF($C$490=\"\",\"\",AH490/$C$490)","v":""},null,{"$f":"IF($C$490=\"\",\"\",AJ490/$C$490)","v":""},null,{"$f":"IF($C$490=\"\",\"\",AL490/$C$490)","v":""},null,{"$f":"IF($C$490=\"\",\"\",AN490/$C$490)","v":""},null,{"$f":"IF($C$490=\"\",\"\",AP490/$C$490)","v":""},null,{"$f":"IF($C$490=\"\",\"\",AR490/$C$490)","v":""},null,{"$f":"IF($C$490=\"\",\"\",AT490/$C$490)","v":""},null,{"$f":"IF($C$490=\"\",\"\",AV490/$C$490)","v":""},null,{"$f":"IF($C$490=\"\",\"\",AX490/$C$490)","v":""},null,{"$f":"IF($C$490=\"\",\"\",AZ490/$C$490)","v":""},null,{"$f":"IF($C$490=\"\",\"\",BB490/$C$490)","v":""},null,0]
[null,null,null,null,{"$f":"IF($C$491=\"\",\"\",F491/$C$491)","v":""},null,{"$f":"IF($C$491=\"\",\"\",H491/$C$491)","v":""},null,{"$f":"IF($C$491=\"\",\"\",J491/$C$491)","v":""},null,{"$f":"IF($C$491=\"\",\"\",L491/$C$491)","v":""},null,{"$f":"IF($C$491=\"\",\"\",N491/$C$491)","v":""},null,{"$f":"IF($C$491=\"\",\"\",P491/$C$491)","v":""},null,{"$f":"IF($C$491=\"\",\"\",R491/$C$491)","v":""},null,{"$f":"IF($C$491=\"\",\"\",T491/$C$491)","v":""},null,{"$f":"IF($C$491=\"\",\"\",V491/$C$491)","v":""},null,{"$f":"IF($C$491=\"\",\"\",X491/$C$491)","v":""},null,{"$f":"IF($C$491=\"\",\"\",Z491/$C$491)","v":""},null,{"$f":"IF($C$491=\"\",\"\",AB491/$C$491)","v":""},null,{"$f":"IF($C$491=\"\",\"\",AD491/$C$491)","v":""},null,{"$f":"IF($C$491=\"\",\"\",AF491/$C$491)","v":""},null,{"$f":"IF($C$491=\"\",\"\",AH491/$C$491)","v":""},null,{"$f":"IF($C$491=\"\",\"\",AJ491/$C$491)","v":""},null,{"$f":"IF($C$491=\"\",\"\",AL491/$C$491)","v":""},null,{"$f":"IF($C$491=\"\",\"\",AN491/$C$491)","v":""},null,{"$f":"IF($C$491=\"\",\"\",AP491/$C$491)","v":""},null,{"$f":"IF($C$491=\"\",\"\",AR491/$C$491)","v":""},null,{"$f":"IF($C$491=\"\",\"\",AT491/$C$491)","v":""},null,{"$f":"IF($C$491=\"\",\"\",AV491/$C$491)","v":""},null,{"$f":"IF($C$491=\"\",\"\",AX491/$C$491)","v":""},null,{"$f":"IF($C$491=\"\",\"\",AZ491/$C$491)","v":""},null,{"$f":"IF($C$491=\"\",\"\",BB491/$C$491)","v":""},null,0]
[null,null,null,null,{"$f":"IF($C$492=\"\",\"\",F492/$C$492)","v":""},null,{"$f":"IF($C$492=\"\",\"\",H492/$C$492)","v":""},null,{"$f":"IF($C$492=\"\",\"\",J492/$C$492)","v":""},null,{"$f":"IF($C$492=\"\",\"\",L492/$C$492)","v":""},null,{"$f":"IF($C$492=\"\",\"\",N492/$C$492)","v":""},null,{"$f":"IF($C$492=\"\",\"\",P492/$C$492)","v":""},null,{"$f":"IF($C$492=\"\",\"\",R492/$C$492)","v":""},null,{"$f":"IF($C$492=\"\",\"\",T492/$C$492)","v":""},null,{"$f":"IF($C$492=\"\",\"\",V492/$C$492)","v":""},null,{"$f":"IF($C$492=\"\",\"\",X492/$C$492)","v":""},null,{"$f":"IF($C$492=\"\",\"\",Z492/$C$492)","v":""},null,{"$f":"IF($C$492=\"\",\"\",AB492/$C$492)","v":""},null,{"$f":"IF($C$492=\"\",\"\",AD492/$C$492)","v":""},null,{"$f":"IF($C$492=\"\",\"\",AF492/$C$492)","v":""},null,{"$f":"IF($C$492=\"\",\"\",AH492/$C$492)","v":""},null,{"$f":"IF($C$492=\"\",\"\",AJ492/$C$492)","v":""},null,{"$f":"IF($C$492=\"\",\"\",AL492/$C$492)","v":""},null,{"$f":"IF($C$492=\"\",\"\",AN492/$C$492)","v":""},null,{"$f":"IF($C$492=\"\",\"\",AP492/$C$492)","v":""},null,{"$f":"IF($C$492=\"\",\"\",AR492/$C$492)","v":""},null,{"$f":"IF($C$492=\"\",\"\",AT492/$C$492)","v":""},null,{"$f":"IF($C$492=\"\",\"\",AV492/$C$492)","v":""},null,{"$f":"IF($C$492=\"\",\"\",AX492/$C$492)","v":""},null,{"$f":"IF($C$492=\"\",\"\",AZ492/$C$492)","v":""},null,{"$f":"IF($C$492=\"\",\"\",BB492/$C$492)","v":""},null,0]
[null,null,null,null,{"$f":"IF($C$493=\"\",\"\",F493/$C$493)","v":""},null,{"$f":"IF($C$493=\"\",\"\",H493/$C$493)","v":""},null,{"$f":"IF($C$493=\"\",\"\",J493/$C$493)","v":""},null,{"$f":"IF($C$493=\"\",\"\",L493/$C$493)","v":""},null,{"$f":"IF($C$493=\"\",\"\",N493/$C$493)","v":""},null,{"$f":"IF($C$493=\"\",\"\",P493/$C$493)","v":""},null,{"$f":"IF($C$493=\"\",\"\",R493/$C$493)","v":""},null,{"$f":"IF($C$493=\"\",\"\",T493/$C$493)","v":""},null,{"$f":"IF($C$493=\"\",\"\",V493/$C$493)","v":""},null,{"$f":"IF($C$493=\"\",\"\",X493/$C$493)","v":""},null,{"$f":"IF($C$493=\"\",\"\",Z493/$C$493)","v":""},null,{"$f":"IF($C$493=\"\",\"\",AB493/$C$493)","v":""},null,{"$f":"IF($C$493=\"\",\"\",AD493/$C$493)","v":""},null,{"$f":"IF($C$493=\"\",\"\",AF493/$C$493)","v":""},null,{"$f":"IF($C$493=\"\",\"\",AH493/$C$493)","v":""},null,{"$f":"IF($C$493=\"\",\"\",AJ493/$C$493)","v":""},null,{"$f":"IF($C$493=\"\",\"\",AL493/$C$493)","v":""},null,{"$f":"IF($C$493=\"\",\"\",AN493/$C$493)","v":""},null,{"$f":"IF($C$493=\"\",\"\",AP493/$C$493)","v":""},null,{"$f":"IF($C$493=\"\",\"\",AR493/$C$493)","v":""},null,{"$f":"IF($C$493=\"\",\"\",AT493/$C$493)","v":""},null,{"$f":"IF($C$493=\"\",\"\",AV493/$C$493)","v":""},null,{"$f":"IF($C$493=\"\",\"\",AX493/$C$493)","v":""},null,{"$f":"IF($C$493=\"\",\"\",AZ493/$C$493)","v":""},null,{"$f":"IF($C$493=\"\",\"\",BB493/$C$493)","v":""},null,0]
[null,null,null,null,{"$f":"IF($C$494=\"\",\"\",F494/$C$494)","v":""},null,{"$f":"IF($C$494=\"\",\"\",H494/$C$494)","v":""},null,{"$f":"IF($C$494=\"\",\"\",J494/$C$494)","v":""},null,{"$f":"IF($C$494=\"\",\"\",L494/$C$494)","v":""},null,{"$f":"IF($C$494=\"\",\"\",N494/$C$494)","v":""},null,{"$f":"IF($C$494=\"\",\"\",P494/$C$494)","v":""},null,{"$f":"IF($C$494=\"\",\"\",R494/$C$494)","v":""},null,{"$f":"IF($C$494=\"\",\"\",T494/$C$494)","v":""},null,{"$f":"IF($C$494=\"\",\"\",V494/$C$494)","v":""},null,{"$f":"IF($C$494=\"\",\"\",X494/$C$494)","v":""},null,{"$f":"IF($C$494=\"\",\"\",Z494/$C$494)","v":""},null,{"$f":"IF($C$494=\"\",\"\",AB494/$C$494)","v":""},null,{"$f":"IF($C$494=\"\",\"\",AD494/$C$494)","v":""},null,{"$f":"IF($C$494=\"\",\"\",AF494/$C$494)","v":""},null,{"$f":"IF($C$494=\"\",\"\",AH494/$C$494)","v":""},null,{"$f":"IF($C$494=\"\",\"\",AJ494/$C$494)","v":""},null,{"$f":"IF($C$494=\"\",\"\",AL494/$C$494)","v":""},null,{"$f":"IF($C$494=\"\",\"\",AN494/$C$494)","v":""},null,{"$f":"IF($C$494=\"\",\"\",AP494/$C$494)","v":""},null,{"$f":"IF($C$494=\"\",\"\",AR494/$C$494)","v":""},null,{"$f":"IF($C$494=\"\",\"\",AT494/$C$494)","v":""},null,{"$f":"IF($C$494=\"\",\"\",AV494/$C$494)","v":""},null,{"$f":"IF($C$494=\"\",\"\",AX494/$C$494)","v":""},null,{"$f":"IF($C$494=\"\",\"\",AZ494/$C$494)","v":""},null,{"$f":"IF($C$494=\"\",\"\",BB494/$C$494)","v":""},null,0]
[null,null,null,null,{"$f":"IF($C$495=\"\",\"\",F495/$C$495)","v":""},null,{"$f":"IF($C$495=\"\",\"\",H495/$C$495)","v":""},null,{"$f":"IF($C$495=\"\",\"\",J495/$C$495)","v":""},null,{"$f":"IF($C$495=\"\",\"\",L495/$C$495)","v":""},null,{"$f":"IF($C$495=\"\",\"\",N495/$C$495)","v":""},null,{"$f":"IF($C$495=\"\",\"\",P495/$C$495)","v":""},null,{"$f":"IF($C$495=\"\",\"\",R495/$C$495)","v":""},null,{"$f":"IF($C$495=\"\",\"\",T495/$C$495)","v":""},null,{"$f":"IF($C$495=\"\",\"\",V495/$C$495)","v":""},null,{"$f":"IF($C$495=\"\",\"\",X495/$C$495)","v":""},null,{"$f":"IF($C$495=\"\",\"\",Z495/$C$495)","v":""},null,{"$f":"IF($C$495=\"\",\"\",AB495/$C$495)","v":""},null,{"$f":"IF($C$495=\"\",\"\",AD495/$C$495)","v":""},null,{"$f":"IF($C$495=\"\",\"\",AF495/$C$495)","v":""},null,{"$f":"IF($C$495=\"\",\"\",AH495/$C$495)","v":""},null,{"$f":"IF($C$495=\"\",\"\",AJ495/$C$495)","v":""},null,{"$f":"IF($C$495=\"\",\"\",AL495/$C$495)","v":""},null,{"$f":"IF($C$495=\"\",\"\",AN495/$C$495)","v":""},null,{"$f":"IF($C$495=\"\",\"\",AP495/$C$495)","v":""},null,{"$f":"IF($C$495=\"\",\"\",AR495/$C$495)","v":""},null,{"$f":"IF($C$495=\"\",\"\",AT495/$C$495)","v":""},null,{"$f":"IF($C$495=\"\",\"\",AV495/$C$495)","v":""},null,{"$f":"IF($C$495=\"\",\"\",AX495/$C$495)","v":""},null,{"$f":"IF($C$495=\"\",\"\",AZ495/$C$495)","v":""},null,{"$f":"IF($C$495=\"\",\"\",BB495/$C$495)","v":""},null,0]
[null,null,null,null,{"$f":"IF($C$496=\"\",\"\",F496/$C$496)","v":""},null,{"$f":"IF($C$496=\"\",\"\",H496/$C$496)","v":""},null,{"$f":"IF($C$496=\"\",\"\",J496/$C$496)","v":""},null,{"$f":"IF($C$496=\"\",\"\",L496/$C$496)","v":""},null,{"$f":"IF($C$496=\"\",\"\",N496/$C$496)","v":""},null,{"$f":"IF($C$496=\"\",\"\",P496/$C$496)","v":""},null,{"$f":"IF($C$496=\"\",\"\",R496/$C$496)","v":""},null,{"$f":"IF($C$496=\"\",\"\",T496/$C$496)","v":""},null,{"$f":"IF($C$496=\"\",\"\",V496/$C$496)","v":""},null,{"$f":"IF($C$496=\"\",\"\",X496/$C$496)","v":""},null,{"$f":"IF($C$496=\"\",\"\",Z496/$C$496)","v":""},null,{"$f":"IF($C$496=\"\",\"\",AB496/$C$496)","v":""},null,{"$f":"IF($C$496=\"\",\"\",AD496/$C$496)","v":""},null,{"$f":"IF($C$496=\"\",\"\",AF496/$C$496)","v":""},null,{"$f":"IF($C$496=\"\",\"\",AH496/$C$496)","v":""},null,{"$f":"IF($C$496=\"\",\"\",AJ496/$C$496)","v":""},null,{"$f":"IF($C$496=\"\",\"\",AL496/$C$496)","v":""},null,{"$f":"IF($C$496=\"\",\"\",AN496/$C$496)","v":""},null,{"$f":"IF($C$496=\"\",\"\",AP496/$C$496)","v":""},null,{"$f":"IF($C$496=\"\",\"\",AR496/$C$496)","v":""},null,{"$f":"IF($C$496=\"\",\"\",AT496/$C$496)","v":""},null,{"$f":"IF($C$496=\"\",\"\",AV496/$C$496)","v":""},null,{"$f":"IF($C$496=\"\",\"\",AX496/$C$496)","v":""},null,{"$f":"IF($C$496=\"\",\"\",AZ496/$C$496)","v":""},null,{"$f":"IF($C$496=\"\",\"\",BB496/$C$496)","v":""},null,0]
[null,null,null,null,{"$f":"IF($C$497=\"\",\"\",F497/$C$497)","v":""},null,{"$f":"IF($C$497=\"\",\"\",H497/$C$497)","v":""},null,{"$f":"IF($C$497=\"\",\"\",J497/$C$497)","v":""},null,{"$f":"IF($C$497=\"\",\"\",L497/$C$497)","v":""},null,{"$f":"IF($C$497=\"\",\"\",N497/$C$497)","v":""},null,{"$f":"IF($C$497=\"\",\"\",P497/$C$497)","v":""},null,{"$f":"IF($C$497=\"\",\"\",R497/$C$497)","v":""},null,{"$f":"IF($C$497=\"\",\"\",T497/$C$497)","v":""},null,{"$f":"IF($C$497=\"\",\"\",V497/$C$497)","v":""},null,{"$f":"IF($C$497=\"\",\"\",X497/$C$497)","v":""},null,{"$f":"IF($C$497=\"\",\"\",Z497/$C$497)","v":""},null,{"$f":"IF($C$497=\"\",\"\",AB497/$C$497)","v":""},null,{"$f":"IF($C$497=\"\",\"\",AD497/$C$497)","v":""},null,{"$f":"IF($C$497=\"\",\"\",AF497/$C$497)","v":""},null,{"$f":"IF($C$497=\"\",\"\",AH497/$C$497)","v":""},null,{"$f":"IF($C$497=\"\",\"\",AJ497/$C$497)","v":""},null,{"$f":"IF($C$497=\"\",\"\",AL497/$C$497)","v":""},null,{"$f":"IF($C$497=\"\",\"\",AN497/$C$497)","v":""},null,{"$f":"IF($C$497=\"\",\"\",AP497/$C$497)","v":""},null,{"$f":"IF($C$497=\"\",\"\",AR497/$C$497)","v":""},null,{"$f":"IF($C$497=\"\",\"\",AT497/$C$497)","v":""},null,{"$f":"IF($C$497=\"\",\"\",AV497/$C$497)","v":""},null,{"$f":"IF($C$497=\"\",\"\",AX497/$C$497)","v":""},null,{"$f":"IF($C$497=\"\",\"\",AZ497/$C$497)","v":""},null,{"$f":"IF($C$497=\"\",\"\",BB497/$C$497)","v":""},null,0]
[null,null,null,null,{"$f":"IF($C$498=\"\",\"\",F498/$C$498)","v":""},null,{"$f":"IF($C$498=\"\",\"\",H498/$C$498)","v":""},null,{"$f":"IF($C$498=\"\",\"\",J498/$C$498)","v":""},null,{"$f":"IF($C$498=\"\",\"\",L498/$C$498)","v":""},null,{"$f":"IF($C$498=\"\",\"\",N498/$C$498)","v":""},null,{"$f":"IF($C$498=\"\",\"\",P498/$C$498)","v":""},null,{"$f":"IF($C$498=\"\",\"\",R498/$C$498)","v":""},null,{"$f":"IF($C$498=\"\",\"\",T498/$C$498)","v":""},null,{"$f":"IF($C$498=\"\",\"\",V498/$C$498)","v":""},null,{"$f":"IF($C$498=\"\",\"\",X498/$C$498)","v":""},null,{"$f":"IF($C$498=\"\",\"\",Z498/$C$498)","v":""},null,{"$f":"IF($C$498=\"\",\"\",AB498/$C$498)","v":""},null,{"$f":"IF($C$498=\"\",\"\",AD498/$C$498)","v":""},null,{"$f":"IF($C$498=\"\",\"\",AF498/$C$498)","v":""},null,{"$f":"IF($C$498=\"\",\"\",AH498/$C$498)","v":""},null,{"$f":"IF($C$498=\"\",\"\",AJ498/$C$498)","v":""},null,{"$f":"IF($C$498=\"\",\"\",AL498/$C$498)","v":""},null,{"$f":"IF($C$498=\"\",\"\",AN498/$C$498)","v":""},null,{"$f":"IF($C$498=\"\",\"\",AP498/$C$498)","v":""},null,{"$f":"IF($C$498=\"\",\"\",AR498/$C$498)","v":""},null,{"$f":"IF($C$498=\"\",\"\",AT498/$C$498)","v":""},null,{"$f":"IF($C$498=\"\",\"\",AV498/$C$498)","v":""},null,{"$f":"IF($C$498=\"\",\"\",AX498/$C$498)","v":""},null,{"$f":"IF($C$498=\"\",\"\",AZ498/$C$498)","v":""},null,{"$f":"IF($C$498=\"\",\"\",BB498/$C$498)","v":""},null,0]
[null,null,null,null,{"$f":"IF($C$499=\"\",\"\",F499/$C$499)","v":""},null,{"$f":"IF($C$499=\"\",\"\",H499/$C$499)","v":""},null,{"$f":"IF($C$499=\"\",\"\",J499/$C$499)","v":""},null,{"$f":"IF($C$499=\"\",\"\",L499/$C$499)","v":""},null,{"$f":"IF($C$499=\"\",\"\",N499/$C$499)","v":""},null,{"$f":"IF($C$499=\"\",\"\",P499/$C$499)","v":""},null,{"$f":"IF($C$499=\"\",\"\",R499/$C$499)","v":""},null,{"$f":"IF($C$499=\"\",\"\",T499/$C$499)","v":""},null,{"$f":"IF($C$499=\"\",\"\",V499/$C$499)","v":""},null,{"$f":"IF($C$499=\"\",\"\",X499/$C$499)","v":""},null,{"$f":"IF($C$499=\"\",\"\",Z499/$C$499)","v":""},null,{"$f":"IF($C$499=\"\",\"\",AB499/$C$499)","v":""},null,{"$f":"IF($C$499=\"\",\"\",AD499/$C$499)","v":""},null,{"$f":"IF($C$499=\"\",\"\",AF499/$C$499)","v":""},null,{"$f":"IF($C$499=\"\",\"\",AH499/$C$499)","v":""},null,{"$f":"IF($C$499=\"\",\"\",AJ499/$C$499)","v":""},null,{"$f":"IF($C$499=\"\",\"\",AL499/$C$499)","v":""},null,{"$f":"IF($C$499=\"\",\"\",AN499/$C$499)","v":""},null,{"$f":"IF($C$499=\"\",\"\",AP499/$C$499)","v":""},null,{"$f":"IF($C$499=\"\",\"\",AR499/$C$499)","v":""},null,{"$f":"IF($C$499=\"\",\"\",AT499/$C$499)","v":""},null,{"$f":"IF($C$499=\"\",\"\",AV499/$C$499)","v":""},null,{"$f":"IF($C$499=\"\",\"\",AX499/$C$499)","v":""},null,{"$f":"IF($C$499=\"\",\"\",AZ499/$C$499)","v":""},null,{"$f":"IF($C$499=\"\",\"\",BB499/$C$499)","v":""},null,0]
[null,null,null,null,{"$f":"IF($C$500=\"\",\"\",F500/$C$500)","v":""},null,{"$f":"IF($C$500=\"\",\"\",H500/$C$500)","v":""},null,{"$f":"IF($C$500=\"\",\"\",J500/$C$500)","v":""},null,{"$f":"IF($C$500=\"\",\"\",L500/$C$500)","v":""},null,{"$f":"IF($C$500=\"\",\"\",N500/$C$500)","v":""},null,{"$f":"IF($C$500=\"\",\"\",P500/$C$500)","v":""},null,{"$f":"IF($C$500=\"\",\"\",R500/$C$500)","v":""},null,{"$f":"IF($C$500=\"\",\"\",T500/$C$500)","v":""},null,{"$f":"IF($C$500=\"\",\"\",V500/$C$500)","v":""},null,{"$f":"IF($C$500=\"\",\"\",X500/$C$500)","v":""},null,{"$f":"IF($C$500=\"\",\"\",Z500/$C$500)","v":""},null,{"$f":"IF($C$500=\"\",\"\",AB500/$C$500)","v":""},null,{"$f":"IF($C$500=\"\",\"\",AD500/$C$500)","v":""},null,{"$f":"IF($C$500=\"\",\"\",AF500/$C$500)","v":""},null,{"$f":"IF($C$500=\"\",\"\",AH500/$C$500)","v":""},null,{"$f":"IF($C$500=\"\",\"\",AJ500/$C$500)","v":""},null,{"$f":"IF($C$500=\"\",\"\",AL500/$C$500)","v":""},null,{"$f":"IF($C$500=\"\",\"\",AN500/$C$500)","v":""},null,{"$f":"IF($C$500=\"\",\"\",AP500/$C$500)","v":""},null,{"$f":"IF($C$500=\"\",\"\",AR500/$C$500)","v":""},null,{"$f":"IF($C$500=\"\",\"\",AT500/$C$500)","v":""},null,{"$f":"IF($C$500=\"\",\"\",AV500/$C$500)","v":""},null,{"$f":"IF($C$500=\"\",\"\",AX500/$C$500)","v":""},null,{"$f":"IF($C$500=\"\",\"\",AZ500/$C$500)","v":""},null,{"$f":"IF($C$500=\"\",\"\",BB500/$C$500)","v":""},null,0]
[null,null,null,null,{"$f":"IF($C$501=\"\",\"\",F501/$C$501)","v":""},null,{"$f":"IF($C$501=\"\",\"\",H501/$C$501)","v":""},null,{"$f":"IF($C$501=\"\",\"\",J501/$C$501)","v":""},null,{"$f":"IF($C$501=\"\",\"\",L501/$C$501)","v":""},null,{"$f":"IF($C$501=\"\",\"\",N501/$C$501)","v":""},null,{"$f":"IF($C$501=\"\",\"\",P501/$C$501)","v":""},null,{"$f":"IF($C$501=\"\",\"\",R501/$C$501)","v":""},null,{"$f":"IF($C$501=\"\",\"\",T501/$C$501)","v":""},null,{"$f":"IF($C$501=\"\",\"\",V501/$C$501)","v":""},null,{"$f":"IF($C$501=\"\",\"\",X501/$C$501)","v":""},null,{"$f":"IF($C$501=\"\",\"\",Z501/$C$501)","v":""},null,{"$f":"IF($C$501=\"\",\"\",AB501/$C$501)","v":""},null,{"$f":"IF($C$501=\"\",\"\",AD501/$C$501)","v":""},null,{"$f":"IF($C$501=\"\",\"\",AF501/$C$501)","v":""},null,{"$f":"IF($C$501=\"\",\"\",AH501/$C$501)","v":""},null,{"$f":"IF($C$501=\"\",\"\",AJ501/$C$501)","v":""},null,{"$f":"IF($C$501=\"\",\"\",AL501/$C$501)","v":""},null,{"$f":"IF($C$501=\"\",\"\",AN501/$C$501)","v":""},null,{"$f":"IF($C$501=\"\",\"\",AP501/$C$501)","v":""},null,{"$f":"IF($C$501=\"\",\"\",AR501/$C$501)","v":""},null,{"$f":"IF($C$501=\"\",\"\",AT501/$C$501)","v":""},null,{"$f":"IF($C$501=\"\",\"\",AV501/$C$501)","v":""},null,{"$f":"IF($C$501=\"\",\"\",AX501/$C$501)","v":""},null,{"$f":"IF($C$501=\"\",\"\",AZ501/$C$501)","v":""},null,{"$f":"IF($C$501=\"\",\"\",BB501/$C$501)","v":""},null,0]
[null,null,null,null,{"$f":"IF($C$502=\"\",\"\",F502/$C$502)","v":""},null,{"$f":"IF($C$502=\"\",\"\",H502/$C$502)","v":""},null,{"$f":"IF($C$502=\"\",\"\",J502/$C$502)","v":""},null,{"$f":"IF($C$502=\"\",\"\",L502/$C$502)","v":""},null,{"$f":"IF($C$502=\"\",\"\",N502/$C$502)","v":""},null,{"$f":"IF($C$502=\"\",\"\",P502/$C$502)","v":""},null,{"$f":"IF($C$502=\"\",\"\",R502/$C$502)","v":""},null,{"$f":"IF($C$502=\"\",\"\",T502/$C$502)","v":""},null,{"$f":"IF($C$502=\"\",\"\",V502/$C$502)","v":""},null,{"$f":"IF($C$502=\"\",\"\",X502/$C$502)","v":""},null,{"$f":"IF($C$502=\"\",\"\",Z502/$C$502)","v":""},null,{"$f":"IF($C$502=\"\",\"\",AB502/$C$502)","v":""},null,{"$f":"IF($C$502=\"\",\"\",AD502/$C$502)","v":""},null,{"$f":"IF($C$502=\"\",\"\",AF502/$C$502)","v":""},null,{"$f":"IF($C$502=\"\",\"\",AH502/$C$502)","v":""},null,{"$f":"IF($C$502=\"\",\"\",AJ502/$C$502)","v":""},null,{"$f":"IF($C$502=\"\",\"\",AL502/$C$502)","v":""},null,{"$f":"IF($C$502=\"\",\"\",AN502/$C$502)","v":""},null,{"$f":"IF($C$502=\"\",\"\",AP502/$C$502)","v":""},null,{"$f":"IF($C$502=\"\",\"\",AR502/$C$502)","v":""},null,{"$f":"IF($C$502=\"\",\"\",AT502/$C$502)","v":""},null,{"$f":"IF($C$502=\"\",\"\",AV502/$C$502)","v":""},null,{"$f":"IF($C$502=\"\",\"\",AX502/$C$502)","v":""},null,{"$f":"IF($C$502=\"\",\"\",AZ502/$C$502)","v":""},null,{"$f":"IF($C$502=\"\",\"\",BB502/$C$502)","v":""},null,0]
[null,null,null,null,{"$f":"IF($C$503=\"\",\"\",F503/$C$503)","v":""},null,{"$f":"IF($C$503=\"\",\"\",H503/$C$503)","v":""},null,{"$f":"IF($C$503=\"\",\"\",J503/$C$503)","v":""},null,{"$f":"IF($C$503=\"\",\"\",L503/$C$503)","v":""},null,{"$f":"IF($C$503=\"\",\"\",N503/$C$503)","v":""},null,{"$f":"IF($C$503=\"\",\"\",P503/$C$503)","v":""},null,{"$f":"IF($C$503=\"\",\"\",R503/$C$503)","v":""},null,{"$f":"IF($C$503=\"\",\"\",T503/$C$503)","v":""},null,{"$f":"IF($C$503=\"\",\"\",V503/$C$503)","v":""},null,{"$f":"IF($C$503=\"\",\"\",X503/$C$503)","v":""},null,{"$f":"IF($C$503=\"\",\"\",Z503/$C$503)","v":""},null,{"$f":"IF($C$503=\"\",\"\",AB503/$C$503)","v":""},null,{"$f":"IF($C$503=\"\",\"\",AD503/$C$503)","v":""},null,{"$f":"IF($C$503=\"\",\"\",AF503/$C$503)","v":""},null,{"$f":"IF($C$503=\"\",\"\",AH503/$C$503)","v":""},null,{"$f":"IF($C$503=\"\",\"\",AJ503/$C$503)","v":""},null,{"$f":"IF($C$503=\"\",\"\",AL503/$C$503)","v":""},null,{"$f":"IF($C$503=\"\",\"\",AN503/$C$503)","v":""},null,{"$f":"IF($C$503=\"\",\"\",AP503/$C$503)","v":""},null,{"$f":"IF($C$503=\"\",\"\",AR503/$C$503)","v":""},null,{"$f":"IF($C$503=\"\",\"\",AT503/$C$503)","v":""},null,{"$f":"IF($C$503=\"\",\"\",AV503/$C$503)","v":""},null,{"$f":"IF($C$503=\"\",\"\",AX503/$C$503)","v":""},null,{"$f":"IF($C$503=\"\",\"\",AZ503/$C$503)","v":""},null,{"$f":"IF($C$503=\"\",\"\",BB503/$C$503)","v":""},null,0]
[null,null,null,null,{"$f":"IF($C$504=\"\",\"\",F504/$C$504)","v":""},null,{"$f":"IF($C$504=\"\",\"\",H504/$C$504)","v":""},null,{"$f":"IF($C$504=\"\",\"\",J504/$C$504)","v":""},null,{"$f":"IF($C$504=\"\",\"\",L504/$C$504)","v":""},null,{"$f":"IF($C$504=\"\",\"\",N504/$C$504)","v":""},null,{"$f":"IF($C$504=\"\",\"\",P504/$C$504)","v":""},null,{"$f":"IF($C$504=\"\",\"\",R504/$C$504)","v":""},null,{"$f":"IF($C$504=\"\",\"\",T504/$C$504)","v":""},null,{"$f":"IF($C$504=\"\",\"\",V504/$C$504)","v":""},null,{"$f":"IF($C$504=\"\",\"\",X504/$C$504)","v":""},null,{"$f":"IF($C$504=\"\",\"\",Z504/$C$504)","v":""},null,{"$f":"IF($C$504=\"\",\"\",AB504/$C$504)","v":""},null,{"$f":"IF($C$504=\"\",\"\",AD504/$C$504)","v":""},null,{"$f":"IF($C$504=\"\",\"\",AF504/$C$504)","v":""},null,{"$f":"IF($C$504=\"\",\"\",AH504/$C$504)","v":""},null,{"$f":"IF($C$504=\"\",\"\",AJ504/$C$504)","v":""},null,{"$f":"IF($C$504=\"\",\"\",AL504/$C$504)","v":""},null,{"$f":"IF($C$504=\"\",\"\",AN504/$C$504)","v":""},null,{"$f":"IF($C$504=\"\",\"\",AP504/$C$504)","v":""},null,{"$f":"IF($C$504=\"\",\"\",AR504/$C$504)","v":""},null,{"$f":"IF($C$504=\"\",\"\",AT504/$C$504)","v":""},null,{"$f":"IF($C$504=\"\",\"\",AV504/$C$504)","v":""},null,{"$f":"IF($C$504=\"\",\"\",AX504/$C$504)","v":""},null,{"$f":"IF($C$504=\"\",\"\",AZ504/$C$504)","v":""},null,{"$f":"IF($C$504=\"\",\"\",BB504/$C$504)","v":""},null,0]
[null,null,null,null,{"$f":"IF($C$505=\"\",\"\",F505/$C$505)","v":""},null,{"$f":"IF($C$505=\"\",\"\",H505/$C$505)","v":""},null,{"$f":"IF($C$505=\"\",\"\",J505/$C$505)","v":""},null,{"$f":"IF($C$505=\"\",\"\",L505/$C$505)","v":""},null,{"$f":"IF($C$505=\"\",\"\",N505/$C$505)","v":""},null,{"$f":"IF($C$505=\"\",\"\",P505/$C$505)","v":""},null,{"$f":"IF($C$505=\"\",\"\",R505/$C$505)","v":""},null,{"$f":"IF($C$505=\"\",\"\",T505/$C$505)","v":""},null,{"$f":"IF($C$505=\"\",\"\",V505/$C$505)","v":""},null,{"$f":"IF($C$505=\"\",\"\",X505/$C$505)","v":""},null,{"$f":"IF($C$505=\"\",\"\",Z505/$C$505)","v":""},null,{"$f":"IF($C$505=\"\",\"\",AB505/$C$505)","v":""},null,{"$f":"IF($C$505=\"\",\"\",AD505/$C$505)","v":""},null,{"$f":"IF($C$505=\"\",\"\",AF505/$C$505)","v":""},null,{"$f":"IF($C$505=\"\",\"\",AH505/$C$505)","v":""},null,{"$f":"IF($C$505=\"\",\"\",AJ505/$C$505)","v":""},null,{"$f":"IF($C$505=\"\",\"\",AL505/$C$505)","v":""},null,{"$f":"IF($C$505=\"\",\"\",AN505/$C$505)","v":""},null,{"$f":"IF($C$505=\"\",\"\",AP505/$C$505)","v":""},null,{"$f":"IF($C$505=\"\",\"\",AR505/$C$505)","v":""},null,{"$f":"IF($C$505=\"\",\"\",AT505/$C$505)","v":""},null,{"$f":"IF($C$505=\"\",\"\",AV505/$C$505)","v":""},null,{"$f":"IF($C$505=\"\",\"\",AX505/$C$505)","v":""},null,{"$f":"IF($C$505=\"\",\"\",AZ505/$C$505)","v":""},null,{"$f":"IF($C$505=\"\",\"\",BB505/$C$505)","v":""},null,0]
[null,null,null,null,{"$f":"IF($C$506=\"\",\"\",F506/$C$506)","v":""},null,{"$f":"IF($C$506=\"\",\"\",H506/$C$506)","v":""},null,{"$f":"IF($C$506=\"\",\"\",J506/$C$506)","v":""},null,{"$f":"IF($C$506=\"\",\"\",L506/$C$506)","v":""},null,{"$f":"IF($C$506=\"\",\"\",N506/$C$506)","v":""},null,{"$f":"IF($C$506=\"\",\"\",P506/$C$506)","v":""},null,{"$f":"IF($C$506=\"\",\"\",R506/$C$506)","v":""},null,{"$f":"IF($C$506=\"\",\"\",T506/$C$506)","v":""},null,{"$f":"IF($C$506=\"\",\"\",V506/$C$506)","v":""},null,{"$f":"IF($C$506=\"\",\"\",X506/$C$506)","v":""},null,{"$f":"IF($C$506=\"\",\"\",Z506/$C$506)","v":""},null,{"$f":"IF($C$506=\"\",\"\",AB506/$C$506)","v":""},null,{"$f":"IF($C$506=\"\",\"\",AD506/$C$506)","v":""},null,{"$f":"IF($C$506=\"\",\"\",AF506/$C$506)","v":""},null,{"$f":"IF($C$506=\"\",\"\",AH506/$C$506)","v":""},null,{"$f":"IF($C$506=\"\",\"\",AJ506/$C$506)","v":""},null,{"$f":"IF($C$506=\"\",\"\",AL506/$C$506)","v":""},null,{"$f":"IF($C$506=\"\",\"\",AN506/$C$506)","v":""},null,{"$f":"IF($C$506=\"\",\"\",AP506/$C$506)","v":""},null,{"$f":"IF($C$506=\"\",\"\",AR506/$C$506)","v":""},null,{"$f":"IF($C$506=\"\",\"\",AT506/$C$506)","v":""},null,{"$f":"IF($C$506=\"\",\"\",AV506/$C$506)","v":""},null,{"$f":"IF($C$506=\"\",\"\",AX506/$C$506)","v":""},null,{"$f":"IF($C$506=\"\",\"\",AZ506/$C$506)","v":""},null,{"$f":"IF($C$506=\"\",\"\",BB506/$C$506)","v":""},null,0]
[null,null,null,null,{"$f":"IF($C$507=\"\",\"\",F507/$C$507)","v":""},null,{"$f":"IF($C$507=\"\",\"\",H507/$C$507)","v":""},null,{"$f":"IF($C$507=\"\",\"\",J507/$C$507)","v":""},null,{"$f":"IF($C$507=\"\",\"\",L507/$C$507)","v":""},null,{"$f":"IF($C$507=\"\",\"\",N507/$C$507)","v":""},null,{"$f":"IF($C$507=\"\",\"\",P507/$C$507)","v":""},null,{"$f":"IF($C$507=\"\",\"\",R507/$C$507)","v":""},null,{"$f":"IF($C$507=\"\",\"\",T507/$C$507)","v":""},null,{"$f":"IF($C$507=\"\",\"\",V507/$C$507)","v":""},null,{"$f":"IF($C$507=\"\",\"\",X507/$C$507)","v":""},null,{"$f":"IF($C$507=\"\",\"\",Z507/$C$507)","v":""},null,{"$f":"IF($C$507=\"\",\"\",AB507/$C$507)","v":""},null,{"$f":"IF($C$507=\"\",\"\",AD507/$C$507)","v":""},null,{"$f":"IF($C$507=\"\",\"\",AF507/$C$507)","v":""},null,{"$f":"IF($C$507=\"\",\"\",AH507/$C$507)","v":""},null,{"$f":"IF($C$507=\"\",\"\",AJ507/$C$507)","v":""},null,{"$f":"IF($C$507=\"\",\"\",AL507/$C$507)","v":""},null,{"$f":"IF($C$507=\"\",\"\",AN507/$C$507)","v":""},null,{"$f":"IF($C$507=\"\",\"\",AP507/$C$507)","v":""},null,{"$f":"IF($C$507=\"\",\"\",AR507/$C$507)","v":""},null,{"$f":"IF($C$507=\"\",\"\",AT507/$C$507)","v":""},null,{"$f":"IF($C$507=\"\",\"\",AV507/$C$507)","v":""},null,{"$f":"IF($C$507=\"\",\"\",AX507/$C$507)","v":""},null,{"$f":"IF($C$507=\"\",\"\",AZ507/$C$507)","v":""},null,{"$f":"IF($C$507=\"\",\"\",BB507/$C$507)","v":""},null,{"$f":"SUM(BB507,AZ507,AX507,AV507,AT507,AR507,AP507,AN507,AL507,AJ507,AH507,AF507,AD507,AB507,Z507,X507,V507,T507,R507,P507,N507,L507,J507,H507,F507)","v":0}]
["TOTAL HOURS",null,null,null,null,{"$f":"SUM(F478:F507)","v":0},null,{"$f":"SUM(H478:H507)","v":0},null,{"$f":"SUM(J478:J507)","v":0},null,{"$f":"SUM(L478:L507)","v":0},null,{"$f":"SUM(N478:N507)","v":0},null,{"$f":"SUM(P478:P507)","v":0},null,{"$f":"SUM(R478:R507)","v":0},null,{"$f":"SUM(T478:T507)","v":0},null,{"$f":"SUM(V478:V507)","v":0},null,{"$f":"SUM(X478:X507)","v":0},null,{"$f":"SUM(Z478:Z507)","v":0},null,{"$f":"SUM(AB478:AB507)","v":0},null,{"$f":"SUM(AD478:AD507)","v":0},null,{"$f":"SUM(AF478:AF507)","v":0},null,{"$f":"SUM(AH478:AH507)","v":0},null,{"$f":"SUM(AJ478:AJ507)","v":0},null,{"$f":"SUM(AL478:AL507)","v":0},null,{"$f":"SUM(AN478:AN507)","v":0},null,{"$f":"SUM(AP478:AP507)","v":0},null,{"$f":"SUM(AR478:AR507)","v":0},null,{"$f":"SUM(AT478:AT507)","v":0},null,{"$f":"SUM(AV478:AV507)","v":0},null,{"$f":"SUM(AX478:AX507)","v":0},null,{"$f":"SUM(AZ478:AZ507)","v":0},null,{"$f":"SUM(BB478:BB507)","v":0},{"$f":"SUM(E508:BB508)","v":0}]
["TOTAL WORKDAYS",null,null,null,null,{"$f":"F508/8","v":0},null,{"$f":"H508/8","v":0},null,{"$f":"J508/8","v":0},null,{"$f":"L508/8","v":0},null,{"$f":"N508/8","v":0},null,{"$f":"P508/8","v":0},null,{"$f":"R508/8","v":0},null,{"$f":"T508/8","v":0},null,{"$f":"V508/8","v":0},null,{"$f":"X508/8","v":0},null,{"$f":"Z508/8","v":0},null,{"$f":"AB508/8","v":0},null,{"$f":"AD508/8","v":0},null,0,null,{"$f":"AH508/8","v":0},null,0,null,{"$f":"AL508/8","v":0},null,0,null,{"$f":"AP508/8","v":0},null,0,null,{"$f":"AT508/8","v":0},null,{"$f":"AV508/8","v":0},null,{"$f":"AX508/8","v":0},null,{"$f":"AZ508/8","v":0},null,{"$f":"BB508/8","v":0},{"$f":"SUM(E509:BB509)","v":0}]
["TOTAL RAW LABOR",null,null,null,null,{"$f":"$E$13*F508","v":0},null,{"$f":"$G$13*H508","v":0},null,{"$f":"$I$13*J508","v":0},null,{"$f":"$K$13*L508","v":0},null,{"$f":"$M$13*N508","v":0},null,{"$f":"$O$13*P508","v":0},null,{"$f":"$Q$13*R508","v":0},null,{"$f":"$S$13*T508","v":0},null,{"$f":"$U$13*V508","v":0},null,{"$f":"$W$13*X508","v":0},null,{"$f":"$Y$13*Z508","v":0},null,{"$f":"$AA$13*AB508","v":0},null,{"$f":"$AC$13*AD508","v":0},null,{"$f":"$AC$13*AF508","v":0},null,{"$f":"$AC$13*AH508","v":0},null,{"$f":"$AC$13*AJ508","v":0},null,{"$f":"$AC$13*AL508","v":0},null,{"$f":"$AC$13*AN508","v":0},null,{"$f":"$AC$13*AP508","v":0},null,{"$f":"$AC$13*AR508","v":0},null,{"$f":"$AC$13*AT508","v":0},null,{"$f":"$AC$13*AV508","v":0},null,{"$f":"$AC$13*AX508","v":0},null,{"$f":"$AC$13*AZ508","v":0},null,{"$f":"$AC$13*BB508","v":0},{"$f":"SUM(E510:BB510)","v":0}]
["Task 19.0     ","REPLACE FIELD WITH CATEGORY NAME OF YOUR CHOOSING HERE",null,null,null,null,null,null,null,null,null,null,null,null,null,null,null,null,null,null,null,null,null,null,null,null,null,null,null,null,null,null,null,null,null,null,null,null,null,null,null,null,null,null,null,null,null,null,null,null,null,null,null,null,{"$f":"IF(B511=\"REPLACE FIELD WITH CATEGORY NAME OF YOUR CHOOSING HERE\",0,\"\")","v":0}]
[null,null,null,null,{"$f":"IF($C$512=\"\",\"\",F512/$C$512)","v":""},null,{"$f":"IF($C$512=\"\",\"\",H512/$C$512)","v":""},null,{"$f":"IF($C$512=\"\",\"\",J512/$C$512)","v":""},null,{"$f":"IF($C$512=\"\",\"\",L512/$C$512)","v":""},null,{"$f":"IF($C$512=\"\",\"\",N512/$C$512)","v":""},null,{"$f":"IF($C$512=\"\",\"\",P512/$C$512)","v":""},null,{"$f":"IF($C$512=\"\",\"\",R512/$C$512)","v":""},null,{"$f":"IF($C$512=\"\",\"\",T512/$C$512)","v":""},null,{"$f":"IF($C$512=\"\",\"\",V512/$C$512)","v":""},null,{"$f":"IF($C$512=\"\",\"\",X512/$C$512)","v":""},null,{"$f":"IF($C$512=\"\",\"\",Z512/$C$512)","v":""},null,{"$f":"IF($C$512=\"\",\"\",AB512/$C$512)","v":""},null,{"$f":"IF($C$512=\"\",\"\",AD512/$C$512)","v":""},null,{"$f":"IF($C$512=\"\",\"\",AF512/$C$512)","v":""},null,{"$f":"IF($C$512=\"\",\"\",AH512/$C$512)","v":""},null,{"$f":"IF($C$512=\"\",\"\",AJ512/$C$512)","v":""},null,{"$f":"IF($C$512=\"\",\"\",AL512/$C$512)","v":""},null,{"$f":"IF($C$512=\"\",\"\",AN512/$C$512)","v":""},null,{"$f":"IF($C$512=\"\",\"\",AP512/$C$512)","v":""},null,{"$f":"IF($C$512=\"\",\"\",AR512/$C$512)","v":""},null,{"$f":"IF($C$512=\"\",\"\",AT512/$C$512)","v":""},null,{"$f":"IF($C$512=\"\",\"\",AV512/$C$512)","v":""},null,{"$f":"IF($C$512=\"\",\"\",AX512/$C$512)","v":""},null,{"$f":"IF($C$512=\"\",\"\",AZ512/$C$512)","v":""},null,{"$f":"IF($C$512=\"\",\"\",BB512/$C$512)","v":""},null,{"$f":"SUM(BB512,AZ512,AX512,AV512,AT512,AR512,AP512,AN512,AL512,AJ512,AH512,AF512,AD512,AB512,Z512,X512,V512,T512,R512,P512,N512,L512,J512,H512,F512)","v":0}]
[null,null,null,null,{"$f":"IF($C$513=\"\",\"\",F513/$C$513)","v":""},null,{"$f":"IF($C$513=\"\",\"\",H513/$C$513)","v":""},null,{"$f":"IF($C$513=\"\",\"\",J513/$C$513)","v":""},null,{"$f":"IF($C$513=\"\",\"\",L513/$C$513)","v":""},null,{"$f":"IF($C$513=\"\",\"\",N513/$C$513)","v":""},null,{"$f":"IF($C$513=\"\",\"\",P513/$C$513)","v":""},null,{"$f":"IF($C$513=\"\",\"\",R513/$C$513)","v":""},null,{"$f":"IF($C$513=\"\",\"\",T513/$C$513)","v":""},null,{"$f":"IF($C$513=\"\",\"\",V513/$C$513)","v":""},null,{"$f":"IF($C$513=\"\",\"\",X513/$C$513)","v":""},null,{"$f":"IF($C$513=\"\",\"\",Z513/$C$513)","v":""},null,{"$f":"IF($C$513=\"\",\"\",AB513/$C$513)","v":""},null,{"$f":"IF($C$513=\"\",\"\",AD513/$C$513)","v":""},null,{"$f":"IF($C$513=\"\",\"\",AF513/$C$513)","v":""},null,{"$f":"IF($C$513=\"\",\"\",AH513/$C$513)","v":""},null,{"$f":"IF($C$513=\"\",\"\",AJ513/$C$513)","v":""},null,{"$f":"IF($C$513=\"\",\"\",AL513/$C$513)","v":""},null,{"$f":"IF($C$513=\"\",\"\",AN513/$C$513)","v":""},null,{"$f":"IF($C$513=\"\",\"\",AP513/$C$513)","v":""},null,{"$f":"IF($C$513=\"\",\"\",AR513/$C$513)","v":""},null,{"$f":"IF($C$513=\"\",\"\",AT513/$C$513)","v":""},null,{"$f":"IF($C$513=\"\",\"\",AV513/$C$513)","v":""},null,{"$f":"IF($C$513=\"\",\"\",AX513/$C$513)","v":""},null,{"$f":"IF($C$513=\"\",\"\",AZ513/$C$513)","v":""},null,{"$f":"IF($C$513=\"\",\"\",BB513/$C$513)","v":""},null,0]
[null,null,null,null,{"$f":"IF($C$514=\"\",\"\",F514/$C$514)","v":""},null,{"$f":"IF($C$514=\"\",\"\",H514/$C$514)","v":""},null,{"$f":"IF($C$514=\"\",\"\",J514/$C$514)","v":""},null,{"$f":"IF($C$514=\"\",\"\",L514/$C$514)","v":""},null,{"$f":"IF($C$514=\"\",\"\",N514/$C$514)","v":""},null,{"$f":"IF($C$514=\"\",\"\",P514/$C$514)","v":""},null,{"$f":"IF($C$514=\"\",\"\",R514/$C$514)","v":""},null,{"$f":"IF($C$514=\"\",\"\",T514/$C$514)","v":""},null,{"$f":"IF($C$514=\"\",\"\",V514/$C$514)","v":""},null,{"$f":"IF($C$514=\"\",\"\",X514/$C$514)","v":""},null,{"$f":"IF($C$514=\"\",\"\",Z514/$C$514)","v":""},null,{"$f":"IF($C$514=\"\",\"\",AB514/$C$514)","v":""},null,{"$f":"IF($C$514=\"\",\"\",AD514/$C$514)","v":""},null,{"$f":"IF($C$514=\"\",\"\",AF514/$C$514)","v":""},null,{"$f":"IF($C$514=\"\",\"\",AH514/$C$514)","v":""},null,{"$f":"IF($C$514=\"\",\"\",AJ514/$C$514)","v":""},null,{"$f":"IF($C$514=\"\",\"\",AL514/$C$514)","v":""},null,{"$f":"IF($C$514=\"\",\"\",AN514/$C$514)","v":""},null,{"$f":"IF($C$514=\"\",\"\",AP514/$C$514)","v":""},null,{"$f":"IF($C$514=\"\",\"\",AR514/$C$514)","v":""},null,{"$f":"IF($C$514=\"\",\"\",AT514/$C$514)","v":""},null,{"$f":"IF($C$514=\"\",\"\",AV514/$C$514)","v":""},null,{"$f":"IF($C$514=\"\",\"\",AX514/$C$514)","v":""},null,{"$f":"IF($C$514=\"\",\"\",AZ514/$C$514)","v":""},null,{"$f":"IF($C$514=\"\",\"\",BB514/$C$514)","v":""},null,0]
[null,null,null,null,{"$f":"IF($C$515=\"\",\"\",F515/$C$515)","v":""},null,{"$f":"IF($C$515=\"\",\"\",H515/$C$515)","v":""},null,{"$f":"IF($C$515=\"\",\"\",J515/$C$515)","v":""},null,{"$f":"IF($C$515=\"\",\"\",L515/$C$515)","v":""},null,{"$f":"IF($C$515=\"\",\"\",N515/$C$515)","v":""},null,{"$f":"IF($C$515=\"\",\"\",P515/$C$515)","v":""},null,{"$f":"IF($C$515=\"\",\"\",R515/$C$515)","v":""},null,{"$f":"IF($C$515=\"\",\"\",T515/$C$515)","v":""},null,{"$f":"IF($C$515=\"\",\"\",V515/$C$515)","v":""},null,{"$f":"IF($C$515=\"\",\"\",X515/$C$515)","v":""},null,{"$f":"IF($C$515=\"\",\"\",Z515/$C$515)","v":""},null,{"$f":"IF($C$515=\"\",\"\",AB515/$C$515)","v":""},null,{"$f":"IF($C$515=\"\",\"\",AD515/$C$515)","v":""},null,{"$f":"IF($C$515=\"\",\"\",AF515/$C$515)","v":""},null,{"$f":"IF($C$515=\"\",\"\",AH515/$C$515)","v":""},null,{"$f":"IF($C$515=\"\",\"\",AJ515/$C$515)","v":""},null,{"$f":"IF($C$515=\"\",\"\",AL515/$C$515)","v":""},null,{"$f":"IF($C$515=\"\",\"\",AN515/$C$515)","v":""},null,{"$f":"IF($C$515=\"\",\"\",AP515/$C$515)","v":""},null,{"$f":"IF($C$515=\"\",\"\",AR515/$C$515)","v":""},null,{"$f":"IF($C$515=\"\",\"\",AT515/$C$515)","v":""},null,{"$f":"IF($C$515=\"\",\"\",AV515/$C$515)","v":""},null,{"$f":"IF($C$515=\"\",\"\",AX515/$C$515)","v":""},null,{"$f":"IF($C$515=\"\",\"\",AZ515/$C$515)","v":""},null,{"$f":"IF($C$515=\"\",\"\",BB515/$C$515)","v":""},null,0]
[null,null,null,null,{"$f":"IF($C$516=\"\",\"\",F516/$C$516)","v":""},null,{"$f":"IF($C$516=\"\",\"\",H516/$C$516)","v":""},null,{"$f":"IF($C$516=\"\",\"\",J516/$C$516)","v":""},null,{"$f":"IF($C$516=\"\",\"\",L516/$C$516)","v":""},null,{"$f":"IF($C$516=\"\",\"\",N516/$C$516)","v":""},null,{"$f":"IF($C$516=\"\",\"\",P516/$C$516)","v":""},null,{"$f":"IF($C$516=\"\",\"\",R516/$C$516)","v":""},null,{"$f":"IF($C$516=\"\",\"\",T516/$C$516)","v":""},null,{"$f":"IF($C$516=\"\",\"\",V516/$C$516)","v":""},null,{"$f":"IF($C$516=\"\",\"\",X516/$C$516)","v":""},null,{"$f":"IF($C$516=\"\",\"\",Z516/$C$516)","v":""},null,{"$f":"IF($C$516=\"\",\"\",AB516/$C$516)","v":""},null,{"$f":"IF($C$516=\"\",\"\",AD516/$C$516)","v":""},null,{"$f":"IF($C$516=\"\",\"\",AF516/$C$516)","v":""},null,{"$f":"IF($C$516=\"\",\"\",AH516/$C$516)","v":""},null,{"$f":"IF($C$516=\"\",\"\",AJ516/$C$516)","v":""},null,{"$f":"IF($C$516=\"\",\"\",AL516/$C$516)","v":""},null,{"$f":"IF($C$516=\"\",\"\",AN516/$C$516)","v":""},null,{"$f":"IF($C$516=\"\",\"\",AP516/$C$516)","v":""},null,{"$f":"IF($C$516=\"\",\"\",AR516/$C$516)","v":""},null,{"$f":"IF($C$516=\"\",\"\",AT516/$C$516)","v":""},null,{"$f":"IF($C$516=\"\",\"\",AV516/$C$516)","v":""},null,{"$f":"IF($C$516=\"\",\"\",AX516/$C$516)","v":""},null,{"$f":"IF($C$516=\"\",\"\",AZ516/$C$516)","v":""},null,{"$f":"IF($C$516=\"\",\"\",BB516/$C$516)","v":""},null,0]
[null,null,null,null,{"$f":"IF($C$517=\"\",\"\",F517/$C$517)","v":""},null,{"$f":"IF($C$517=\"\",\"\",H517/$C$517)","v":""},null,{"$f":"IF($C$517=\"\",\"\",J517/$C$517)","v":""},null,{"$f":"IF($C$517=\"\",\"\",L517/$C$517)","v":""},null,{"$f":"IF($C$517=\"\",\"\",N517/$C$517)","v":""},null,{"$f":"IF($C$517=\"\",\"\",P517/$C$517)","v":""},null,{"$f":"IF($C$517=\"\",\"\",R517/$C$517)","v":""},null,{"$f":"IF($C$517=\"\",\"\",T517/$C$517)","v":""},null,{"$f":"IF($C$517=\"\",\"\",V517/$C$517)","v":""},null,{"$f":"IF($C$517=\"\",\"\",X517/$C$517)","v":""},null,{"$f":"IF($C$517=\"\",\"\",Z517/$C$517)","v":""},null,{"$f":"IF($C$517=\"\",\"\",AB517/$C$517)","v":""},null,{"$f":"IF($C$517=\"\",\"\",AD517/$C$517)","v":""},null,{"$f":"IF($C$517=\"\",\"\",AF517/$C$517)","v":""},null,{"$f":"IF($C$517=\"\",\"\",AH517/$C$517)","v":""},null,{"$f":"IF($C$517=\"\",\"\",AJ517/$C$517)","v":""},null,{"$f":"IF($C$517=\"\",\"\",AL517/$C$517)","v":""},null,{"$f":"IF($C$517=\"\",\"\",AN517/$C$517)","v":""},null,{"$f":"IF($C$517=\"\",\"\",AP517/$C$517)","v":""},null,{"$f":"IF($C$517=\"\",\"\",AR517/$C$517)","v":""},null,{"$f":"IF($C$517=\"\",\"\",AT517/$C$517)","v":""},null,{"$f":"IF($C$517=\"\",\"\",AV517/$C$517)","v":""},null,{"$f":"IF($C$517=\"\",\"\",AX517/$C$517)","v":""},null,{"$f":"IF($C$517=\"\",\"\",AZ517/$C$517)","v":""},null,{"$f":"IF($C$517=\"\",\"\",BB517/$C$517)","v":""},null,0]
[null,null,null,null,{"$f":"IF($C$518=\"\",\"\",F518/$C$518)","v":""},null,{"$f":"IF($C$518=\"\",\"\",H518/$C$518)","v":""},null,{"$f":"IF($C$518=\"\",\"\",J518/$C$518)","v":""},null,{"$f":"IF($C$518=\"\",\"\",L518/$C$518)","v":""},null,{"$f":"IF($C$518=\"\",\"\",N518/$C$518)","v":""},null,{"$f":"IF($C$518=\"\",\"\",P518/$C$518)","v":""},null,{"$f":"IF($C$518=\"\",\"\",R518/$C$518)","v":""},null,{"$f":"IF($C$518=\"\",\"\",T518/$C$518)","v":""},null,{"$f":"IF($C$518=\"\",\"\",V518/$C$518)","v":""},null,{"$f":"IF($C$518=\"\",\"\",X518/$C$518)","v":""},null,{"$f":"IF($C$518=\"\",\"\",Z518/$C$518)","v":""},null,{"$f":"IF($C$518=\"\",\"\",AB518/$C$518)","v":""},null,{"$f":"IF($C$518=\"\",\"\",AD518/$C$518)","v":""},null,{"$f":"IF($C$518=\"\",\"\",AF518/$C$518)","v":""},null,{"$f":"IF($C$518=\"\",\"\",AH518/$C$518)","v":""},null,{"$f":"IF($C$518=\"\",\"\",AJ518/$C$518)","v":""},null,{"$f":"IF($C$518=\"\",\"\",AL518/$C$518)","v":""},null,{"$f":"IF($C$518=\"\",\"\",AN518/$C$518)","v":""},null,{"$f":"IF($C$518=\"\",\"\",AP518/$C$518)","v":""},null,{"$f":"IF($C$518=\"\",\"\",AR518/$C$518)","v":""},null,{"$f":"IF($C$518=\"\",\"\",AT518/$C$518)","v":""},null,{"$f":"IF($C$518=\"\",\"\",AV518/$C$518)","v":""},null,{"$f":"IF($C$518=\"\",\"\",AX518/$C$518)","v":""},null,{"$f":"IF($C$518=\"\",\"\",AZ518/$C$518)","v":""},null,{"$f":"IF($C$518=\"\",\"\",BB518/$C$518)","v":""},null,0]
[null,null,null,null,{"$f":"IF($C$519=\"\",\"\",F519/$C$519)","v":""},null,{"$f":"IF($C$519=\"\",\"\",H519/$C$519)","v":""},null,{"$f":"IF($C$519=\"\",\"\",J519/$C$519)","v":""},null,{"$f":"IF($C$519=\"\",\"\",L519/$C$519)","v":""},null,{"$f":"IF($C$519=\"\",\"\",N519/$C$519)","v":""},null,{"$f":"IF($C$519=\"\",\"\",P519/$C$519)","v":""},null,{"$f":"IF($C$519=\"\",\"\",R519/$C$519)","v":""},null,{"$f":"IF($C$519=\"\",\"\",T519/$C$519)","v":""},null,{"$f":"IF($C$519=\"\",\"\",V519/$C$519)","v":""},null,{"$f":"IF($C$519=\"\",\"\",X519/$C$519)","v":""},null,{"$f":"IF($C$519=\"\",\"\",Z519/$C$519)","v":""},null,{"$f":"IF($C$519=\"\",\"\",AB519/$C$519)","v":""},null,{"$f":"IF($C$519=\"\",\"\",AD519/$C$519)","v":""},null,{"$f":"IF($C$519=\"\",\"\",AF519/$C$519)","v":""},null,{"$f":"IF($C$519=\"\",\"\",AH519/$C$519)","v":""},null,{"$f":"IF($C$519=\"\",\"\",AJ519/$C$519)","v":""},null,{"$f":"IF($C$519=\"\",\"\",AL519/$C$519)","v":""},null,{"$f":"IF($C$519=\"\",\"\",AN519/$C$519)","v":""},null,{"$f":"IF($C$519=\"\",\"\",AP519/$C$519)","v":""},null,{"$f":"IF($C$519=\"\",\"\",AR519/$C$519)","v":""},null,{"$f":"IF($C$519=\"\",\"\",AT519/$C$519)","v":""},null,{"$f":"IF($C$519=\"\",\"\",AV519/$C$519)","v":""},null,{"$f":"IF($C$519=\"\",\"\",AX519/$C$519)","v":""},null,{"$f":"IF($C$519=\"\",\"\",AZ519/$C$519)","v":""},null,{"$f":"IF($C$519=\"\",\"\",BB519/$C$519)","v":""},null,0]
[null,null,null,null,{"$f":"IF($C$520=\"\",\"\",F520/$C$520)","v":""},null,{"$f":"IF($C$520=\"\",\"\",H520/$C$520)","v":""},null,{"$f":"IF($C$520=\"\",\"\",J520/$C$520)","v":""},null,{"$f":"IF($C$520=\"\",\"\",L520/$C$520)","v":""},null,{"$f":"IF($C$520=\"\",\"\",N520/$C$520)","v":""},null,{"$f":"IF($C$520=\"\",\"\",P520/$C$520)","v":""},null,{"$f":"IF($C$520=\"\",\"\",R520/$C$520)","v":""},null,{"$f":"IF($C$520=\"\",\"\",T520/$C$520)","v":""},null,{"$f":"IF($C$520=\"\",\"\",V520/$C$520)","v":""},null,{"$f":"IF($C$520=\"\",\"\",X520/$C$520)","v":""},null,{"$f":"IF($C$520=\"\",\"\",Z520/$C$520)","v":""},null,{"$f":"IF($C$520=\"\",\"\",AB520/$C$520)","v":""},null,{"$f":"IF($C$520=\"\",\"\",AD520/$C$520)","v":""},null,{"$f":"IF($C$520=\"\",\"\",AF520/$C$520)","v":""},null,{"$f":"IF($C$520=\"\",\"\",AH520/$C$520)","v":""},null,{"$f":"IF($C$520=\"\",\"\",AJ520/$C$520)","v":""},null,{"$f":"IF($C$520=\"\",\"\",AL520/$C$520)","v":""},null,{"$f":"IF($C$520=\"\",\"\",AN520/$C$520)","v":""},null,{"$f":"IF($C$520=\"\",\"\",AP520/$C$520)","v":""},null,{"$f":"IF($C$520=\"\",\"\",AR520/$C$520)","v":""},null,{"$f":"IF($C$520=\"\",\"\",AT520/$C$520)","v":""},null,{"$f":"IF($C$520=\"\",\"\",AV520/$C$520)","v":""},null,{"$f":"IF($C$520=\"\",\"\",AX520/$C$520)","v":""},null,{"$f":"IF($C$520=\"\",\"\",AZ520/$C$520)","v":""},null,{"$f":"IF($C$520=\"\",\"\",BB520/$C$520)","v":""},null,0]
[null,null,null,null,{"$f":"IF($C$521=\"\",\"\",F521/$C$521)","v":""},null,{"$f":"IF($C$521=\"\",\"\",H521/$C$521)","v":""},null,{"$f":"IF($C$521=\"\",\"\",J521/$C$521)","v":""},null,{"$f":"IF($C$521=\"\",\"\",L521/$C$521)","v":""},null,{"$f":"IF($C$521=\"\",\"\",N521/$C$521)","v":""},null,{"$f":"IF($C$521=\"\",\"\",P521/$C$521)","v":""},null,{"$f":"IF($C$521=\"\",\"\",R521/$C$521)","v":""},null,{"$f":"IF($C$521=\"\",\"\",T521/$C$521)","v":""},null,{"$f":"IF($C$521=\"\",\"\",V521/$C$521)","v":""},null,{"$f":"IF($C$521=\"\",\"\",X521/$C$521)","v":""},null,{"$f":"IF($C$521=\"\",\"\",Z521/$C$521)","v":""},null,{"$f":"IF($C$521=\"\",\"\",AB521/$C$521)","v":""},null,{"$f":"IF($C$521=\"\",\"\",AD521/$C$521)","v":""},null,{"$f":"IF($C$521=\"\",\"\",AF521/$C$521)","v":""},null,{"$f":"IF($C$521=\"\",\"\",AH521/$C$521)","v":""},null,{"$f":"IF($C$521=\"\",\"\",AJ521/$C$521)","v":""},null,{"$f":"IF($C$521=\"\",\"\",AL521/$C$521)","v":""},null,{"$f":"IF($C$521=\"\",\"\",AN521/$C$521)","v":""},null,{"$f":"IF($C$521=\"\",\"\",AP521/$C$521)","v":""},null,{"$f":"IF($C$521=\"\",\"\",AR521/$C$521)","v":""},null,{"$f":"IF($C$521=\"\",\"\",AT521/$C$521)","v":""},null,{"$f":"IF($C$521=\"\",\"\",AV521/$C$521)","v":""},null,{"$f":"IF($C$521=\"\",\"\",AX521/$C$521)","v":""},null,{"$f":"IF($C$521=\"\",\"\",AZ521/$C$521)","v":""},null,{"$f":"IF($C$521=\"\",\"\",BB521/$C$521)","v":""},null,0]
[null,null,null,null,{"$f":"IF($C$522=\"\",\"\",F522/$C$522)","v":""},null,{"$f":"IF($C$522=\"\",\"\",H522/$C$522)","v":""},null,{"$f":"IF($C$522=\"\",\"\",J522/$C$522)","v":""},null,{"$f":"IF($C$522=\"\",\"\",L522/$C$522)","v":""},null,{"$f":"IF($C$522=\"\",\"\",N522/$C$522)","v":""},null,{"$f":"IF($C$522=\"\",\"\",P522/$C$522)","v":""},null,{"$f":"IF($C$522=\"\",\"\",R522/$C$522)","v":""},null,{"$f":"IF($C$522=\"\",\"\",T522/$C$522)","v":""},null,{"$f":"IF($C$522=\"\",\"\",V522/$C$522)","v":""},null,{"$f":"IF($C$522=\"\",\"\",X522/$C$522)","v":""},null,{"$f":"IF($C$522=\"\",\"\",Z522/$C$522)","v":""},null,{"$f":"IF($C$522=\"\",\"\",AB522/$C$522)","v":""},null,{"$f":"IF($C$522=\"\",\"\",AD522/$C$522)","v":""},null,{"$f":"IF($C$522=\"\",\"\",AF522/$C$522)","v":""},null,{"$f":"IF($C$522=\"\",\"\",AH522/$C$522)","v":""},null,{"$f":"IF($C$522=\"\",\"\",AJ522/$C$522)","v":""},null,{"$f":"IF($C$522=\"\",\"\",AL522/$C$522)","v":""},null,{"$f":"IF($C$522=\"\",\"\",AN522/$C$522)","v":""},null,{"$f":"IF($C$522=\"\",\"\",AP522/$C$522)","v":""},null,{"$f":"IF($C$522=\"\",\"\",AR522/$C$522)","v":""},null,{"$f":"IF($C$522=\"\",\"\",AT522/$C$522)","v":""},null,{"$f":"IF($C$522=\"\",\"\",AV522/$C$522)","v":""},null,{"$f":"IF($C$522=\"\",\"\",AX522/$C$522)","v":""},null,{"$f":"IF($C$522=\"\",\"\",AZ522/$C$522)","v":""},null,{"$f":"IF($C$522=\"\",\"\",BB522/$C$522)","v":""},null,0]
[null,null,null,null,{"$f":"IF($C$523=\"\",\"\",F523/$C$523)","v":""},null,{"$f":"IF($C$523=\"\",\"\",H523/$C$523)","v":""},null,{"$f":"IF($C$523=\"\",\"\",J523/$C$523)","v":""},null,{"$f":"IF($C$523=\"\",\"\",L523/$C$523)","v":""},null,{"$f":"IF($C$523=\"\",\"\",N523/$C$523)","v":""},null,{"$f":"IF($C$523=\"\",\"\",P523/$C$523)","v":""},null,{"$f":"IF($C$523=\"\",\"\",R523/$C$523)","v":""},null,{"$f":"IF($C$523=\"\",\"\",T523/$C$523)","v":""},null,{"$f":"IF($C$523=\"\",\"\",V523/$C$523)","v":""},null,{"$f":"IF($C$523=\"\",\"\",X523/$C$523)","v":""},null,{"$f":"IF($C$523=\"\",\"\",Z523/$C$523)","v":""},null,{"$f":"IF($C$523=\"\",\"\",AB523/$C$523)","v":""},null,{"$f":"IF($C$523=\"\",\"\",AD523/$C$523)","v":""},null,{"$f":"IF($C$523=\"\",\"\",AF523/$C$523)","v":""},null,{"$f":"IF($C$523=\"\",\"\",AH523/$C$523)","v":""},null,{"$f":"IF($C$523=\"\",\"\",AJ523/$C$523)","v":""},null,{"$f":"IF($C$523=\"\",\"\",AL523/$C$523)","v":""},null,{"$f":"IF($C$523=\"\",\"\",AN523/$C$523)","v":""},null,{"$f":"IF($C$523=\"\",\"\",AP523/$C$523)","v":""},null,{"$f":"IF($C$523=\"\",\"\",AR523/$C$523)","v":""},null,{"$f":"IF($C$523=\"\",\"\",AT523/$C$523)","v":""},null,{"$f":"IF($C$523=\"\",\"\",AV523/$C$523)","v":""},null,{"$f":"IF($C$523=\"\",\"\",AX523/$C$523)","v":""},null,{"$f":"IF($C$523=\"\",\"\",AZ523/$C$523)","v":""},null,{"$f":"IF($C$523=\"\",\"\",BB523/$C$523)","v":""},null,0]
[null,null,null,null,{"$f":"IF($C$524=\"\",\"\",F524/$C$524)","v":""},null,{"$f":"IF($C$524=\"\",\"\",H524/$C$524)","v":""},null,{"$f":"IF($C$524=\"\",\"\",J524/$C$524)","v":""},null,{"$f":"IF($C$524=\"\",\"\",L524/$C$524)","v":""},null,{"$f":"IF($C$524=\"\",\"\",N524/$C$524)","v":""},null,{"$f":"IF($C$524=\"\",\"\",P524/$C$524)","v":""},null,{"$f":"IF($C$524=\"\",\"\",R524/$C$524)","v":""},null,{"$f":"IF($C$524=\"\",\"\",T524/$C$524)","v":""},null,{"$f":"IF($C$524=\"\",\"\",V524/$C$524)","v":""},null,{"$f":"IF($C$524=\"\",\"\",X524/$C$524)","v":""},null,{"$f":"IF($C$524=\"\",\"\",Z524/$C$524)","v":""},null,{"$f":"IF($C$524=\"\",\"\",AB524/$C$524)","v":""},null,{"$f":"IF($C$524=\"\",\"\",AD524/$C$524)","v":""},null,{"$f":"IF($C$524=\"\",\"\",AF524/$C$524)","v":""},null,{"$f":"IF($C$524=\"\",\"\",AH524/$C$524)","v":""},null,{"$f":"IF($C$524=\"\",\"\",AJ524/$C$524)","v":""},null,{"$f":"IF($C$524=\"\",\"\",AL524/$C$524)","v":""},null,{"$f":"IF($C$524=\"\",\"\",AN524/$C$524)","v":""},null,{"$f":"IF($C$524=\"\",\"\",AP524/$C$524)","v":""},null,{"$f":"IF($C$524=\"\",\"\",AR524/$C$524)","v":""},null,{"$f":"IF($C$524=\"\",\"\",AT524/$C$524)","v":""},null,{"$f":"IF($C$524=\"\",\"\",AV524/$C$524)","v":""},null,{"$f":"IF($C$524=\"\",\"\",AX524/$C$524)","v":""},null,{"$f":"IF($C$524=\"\",\"\",AZ524/$C$524)","v":""},null,{"$f":"IF($C$524=\"\",\"\",BB524/$C$524)","v":""},null,0]
[null,null,null,null,{"$f":"IF($C$525=\"\",\"\",F525/$C$525)","v":""},null,{"$f":"IF($C$525=\"\",\"\",H525/$C$525)","v":""},null,{"$f":"IF($C$525=\"\",\"\",J525/$C$525)","v":""},null,{"$f":"IF($C$525=\"\",\"\",L525/$C$525)","v":""},null,{"$f":"IF($C$525=\"\",\"\",N525/$C$525)","v":""},null,{"$f":"IF($C$525=\"\",\"\",P525/$C$525)","v":""},null,{"$f":"IF($C$525=\"\",\"\",R525/$C$525)","v":""},null,{"$f":"IF($C$525=\"\",\"\",T525/$C$525)","v":""},null,{"$f":"IF($C$525=\"\",\"\",V525/$C$525)","v":""},null,{"$f":"IF($C$525=\"\",\"\",X525/$C$525)","v":""},null,{"$f":"IF($C$525=\"\",\"\",Z525/$C$525)","v":""},null,{"$f":"IF($C$525=\"\",\"\",AB525/$C$525)","v":""},null,{"$f":"IF($C$525=\"\",\"\",AD525/$C$525)","v":""},null,{"$f":"IF($C$525=\"\",\"\",AF525/$C$525)","v":""},null,{"$f":"IF($C$525=\"\",\"\",AH525/$C$525)","v":""},null,{"$f":"IF($C$525=\"\",\"\",AJ525/$C$525)","v":""},null,{"$f":"IF($C$525=\"\",\"\",AL525/$C$525)","v":""},null,{"$f":"IF($C$525=\"\",\"\",AN525/$C$525)","v":""},null,{"$f":"IF($C$525=\"\",\"\",AP525/$C$525)","v":""},null,{"$f":"IF($C$525=\"\",\"\",AR525/$C$525)","v":""},null,{"$f":"IF($C$525=\"\",\"\",AT525/$C$525)","v":""},null,{"$f":"IF($C$525=\"\",\"\",AV525/$C$525)","v":""},null,{"$f":"IF($C$525=\"\",\"\",AX525/$C$525)","v":""},null,{"$f":"IF($C$525=\"\",\"\",AZ525/$C$525)","v":""},null,{"$f":"IF($C$525=\"\",\"\",BB525/$C$525)","v":""},null,0]
[null,null,null,null,{"$f":"IF($C$526=\"\",\"\",F526/$C$526)","v":""},null,{"$f":"IF($C$526=\"\",\"\",H526/$C$526)","v":""},null,{"$f":"IF($C$526=\"\",\"\",J526/$C$526)","v":""},null,{"$f":"IF($C$526=\"\",\"\",L526/$C$526)","v":""},null,{"$f":"IF($C$526=\"\",\"\",N526/$C$526)","v":""},null,{"$f":"IF($C$526=\"\",\"\",P526/$C$526)","v":""},null,{"$f":"IF($C$526=\"\",\"\",R526/$C$526)","v":""},null,{"$f":"IF($C$526=\"\",\"\",T526/$C$526)","v":""},null,{"$f":"IF($C$526=\"\",\"\",V526/$C$526)","v":""},null,{"$f":"IF($C$526=\"\",\"\",X526/$C$526)","v":""},null,{"$f":"IF($C$526=\"\",\"\",Z526/$C$526)","v":""},null,{"$f":"IF($C$526=\"\",\"\",AB526/$C$526)","v":""},null,{"$f":"IF($C$526=\"\",\"\",AD526/$C$526)","v":""},null,{"$f":"IF($C$526=\"\",\"\",AF526/$C$526)","v":""},null,{"$f":"IF($C$526=\"\",\"\",AH526/$C$526)","v":""},null,{"$f":"IF($C$526=\"\",\"\",AJ526/$C$526)","v":""},null,{"$f":"IF($C$526=\"\",\"\",AL526/$C$526)","v":""},null,{"$f":"IF($C$526=\"\",\"\",AN526/$C$526)","v":""},null,{"$f":"IF($C$526=\"\",\"\",AP526/$C$526)","v":""},null,{"$f":"IF($C$526=\"\",\"\",AR526/$C$526)","v":""},null,{"$f":"IF($C$526=\"\",\"\",AT526/$C$526)","v":""},null,{"$f":"IF($C$526=\"\",\"\",AV526/$C$526)","v":""},null,{"$f":"IF($C$526=\"\",\"\",AX526/$C$526)","v":""},null,{"$f":"IF($C$526=\"\",\"\",AZ526/$C$526)","v":""},null,{"$f":"IF($C$526=\"\",\"\",BB526/$C$526)","v":""},null,0]
[null,null,null,null,{"$f":"IF($C$527=\"\",\"\",F527/$C$527)","v":""},null,{"$f":"IF($C$527=\"\",\"\",H527/$C$527)","v":""},null,{"$f":"IF($C$527=\"\",\"\",J527/$C$527)","v":""},null,{"$f":"IF($C$527=\"\",\"\",L527/$C$527)","v":""},null,{"$f":"IF($C$527=\"\",\"\",N527/$C$527)","v":""},null,{"$f":"IF($C$527=\"\",\"\",P527/$C$527)","v":""},null,{"$f":"IF($C$527=\"\",\"\",R527/$C$527)","v":""},null,{"$f":"IF($C$527=\"\",\"\",T527/$C$527)","v":""},null,{"$f":"IF($C$527=\"\",\"\",V527/$C$527)","v":""},null,{"$f":"IF($C$527=\"\",\"\",X527/$C$527)","v":""},null,{"$f":"IF($C$527=\"\",\"\",Z527/$C$527)","v":""},null,{"$f":"IF($C$527=\"\",\"\",AB527/$C$527)","v":""},null,{"$f":"IF($C$527=\"\",\"\",AD527/$C$527)","v":""},null,{"$f":"IF($C$527=\"\",\"\",AF527/$C$527)","v":""},null,{"$f":"IF($C$527=\"\",\"\",AH527/$C$527)","v":""},null,{"$f":"IF($C$527=\"\",\"\",AJ527/$C$527)","v":""},null,{"$f":"IF($C$527=\"\",\"\",AL527/$C$527)","v":""},null,{"$f":"IF($C$527=\"\",\"\",AN527/$C$527)","v":""},null,{"$f":"IF($C$527=\"\",\"\",AP527/$C$527)","v":""},null,{"$f":"IF($C$527=\"\",\"\",AR527/$C$527)","v":""},null,{"$f":"IF($C$527=\"\",\"\",AT527/$C$527)","v":""},null,{"$f":"IF($C$527=\"\",\"\",AV527/$C$527)","v":""},null,{"$f":"IF($C$527=\"\",\"\",AX527/$C$527)","v":""},null,{"$f":"IF($C$527=\"\",\"\",AZ527/$C$527)","v":""},null,{"$f":"IF($C$527=\"\",\"\",BB527/$C$527)","v":""},null,0]
[null,null,null,null,{"$f":"IF($C$528=\"\",\"\",F528/$C$528)","v":""},null,{"$f":"IF($C$528=\"\",\"\",H528/$C$528)","v":""},null,{"$f":"IF($C$528=\"\",\"\",J528/$C$528)","v":""},null,{"$f":"IF($C$528=\"\",\"\",L528/$C$528)","v":""},null,{"$f":"IF($C$528=\"\",\"\",N528/$C$528)","v":""},null,{"$f":"IF($C$528=\"\",\"\",P528/$C$528)","v":""},null,{"$f":"IF($C$528=\"\",\"\",R528/$C$528)","v":""},null,{"$f":"IF($C$528=\"\",\"\",T528/$C$528)","v":""},null,{"$f":"IF($C$528=\"\",\"\",V528/$C$528)","v":""},null,{"$f":"IF($C$528=\"\",\"\",X528/$C$528)","v":""},null,{"$f":"IF($C$528=\"\",\"\",Z528/$C$528)","v":""},null,{"$f":"IF($C$528=\"\",\"\",AB528/$C$528)","v":""},null,{"$f":"IF($C$528=\"\",\"\",AD528/$C$528)","v":""},null,{"$f":"IF($C$528=\"\",\"\",AF528/$C$528)","v":""},null,{"$f":"IF($C$528=\"\",\"\",AH528/$C$528)","v":""},null,{"$f":"IF($C$528=\"\",\"\",AJ528/$C$528)","v":""},null,{"$f":"IF($C$528=\"\",\"\",AL528/$C$528)","v":""},null,{"$f":"IF($C$528=\"\",\"\",AN528/$C$528)","v":""},null,{"$f":"IF($C$528=\"\",\"\",AP528/$C$528)","v":""},null,{"$f":"IF($C$528=\"\",\"\",AR528/$C$528)","v":""},null,{"$f":"IF($C$528=\"\",\"\",AT528/$C$528)","v":""},null,{"$f":"IF($C$528=\"\",\"\",AV528/$C$528)","v":""},null,{"$f":"IF($C$528=\"\",\"\",AX528/$C$528)","v":""},null,{"$f":"IF($C$528=\"\",\"\",AZ528/$C$528)","v":""},null,{"$f":"IF($C$528=\"\",\"\",BB528/$C$528)","v":""},null,0]
[null,null,null,null,{"$f":"IF($C$529=\"\",\"\",F529/$C$529)","v":""},null,{"$f":"IF($C$529=\"\",\"\",H529/$C$529)","v":""},null,{"$f":"IF($C$529=\"\",\"\",J529/$C$529)","v":""},null,{"$f":"IF($C$529=\"\",\"\",L529/$C$529)","v":""},null,{"$f":"IF($C$529=\"\",\"\",N529/$C$529)","v":""},null,{"$f":"IF($C$529=\"\",\"\",P529/$C$529)","v":""},null,{"$f":"IF($C$529=\"\",\"\",R529/$C$529)","v":""},null,{"$f":"IF($C$529=\"\",\"\",T529/$C$529)","v":""},null,{"$f":"IF($C$529=\"\",\"\",V529/$C$529)","v":""},null,{"$f":"IF($C$529=\"\",\"\",X529/$C$529)","v":""},null,{"$f":"IF($C$529=\"\",\"\",Z529/$C$529)","v":""},null,{"$f":"IF($C$529=\"\",\"\",AB529/$C$529)","v":""},null,{"$f":"IF($C$529=\"\",\"\",AD529/$C$529)","v":""},null,{"$f":"IF($C$529=\"\",\"\",AF529/$C$529)","v":""},null,{"$f":"IF($C$529=\"\",\"\",AH529/$C$529)","v":""},null,{"$f":"IF($C$529=\"\",\"\",AJ529/$C$529)","v":""},null,{"$f":"IF($C$529=\"\",\"\",AL529/$C$529)","v":""},null,{"$f":"IF($C$529=\"\",\"\",AN529/$C$529)","v":""},null,{"$f":"IF($C$529=\"\",\"\",AP529/$C$529)","v":""},null,{"$f":"IF($C$529=\"\",\"\",AR529/$C$529)","v":""},null,{"$f":"IF($C$529=\"\",\"\",AT529/$C$529)","v":""},null,{"$f":"IF($C$529=\"\",\"\",AV529/$C$529)","v":""},null,{"$f":"IF($C$529=\"\",\"\",AX529/$C$529)","v":""},null,{"$f":"IF($C$529=\"\",\"\",AZ529/$C$529)","v":""},null,{"$f":"IF($C$529=\"\",\"\",BB529/$C$529)","v":""},null,0]
[null,null,null,null,{"$f":"IF($C$530=\"\",\"\",F530/$C$530)","v":""},null,{"$f":"IF($C$530=\"\",\"\",H530/$C$530)","v":""},null,{"$f":"IF($C$530=\"\",\"\",J530/$C$530)","v":""},null,{"$f":"IF($C$530=\"\",\"\",L530/$C$530)","v":""},null,{"$f":"IF($C$530=\"\",\"\",N530/$C$530)","v":""},null,{"$f":"IF($C$530=\"\",\"\",P530/$C$530)","v":""},null,{"$f":"IF($C$530=\"\",\"\",R530/$C$530)","v":""},null,{"$f":"IF($C$530=\"\",\"\",T530/$C$530)","v":""},null,{"$f":"IF($C$530=\"\",\"\",V530/$C$530)","v":""},null,{"$f":"IF($C$530=\"\",\"\",X530/$C$530)","v":""},null,{"$f":"IF($C$530=\"\",\"\",Z530/$C$530)","v":""},null,{"$f":"IF($C$530=\"\",\"\",AB530/$C$530)","v":""},null,{"$f":"IF($C$530=\"\",\"\",AD530/$C$530)","v":""},null,{"$f":"IF($C$530=\"\",\"\",AF530/$C$530)","v":""},null,{"$f":"IF($C$530=\"\",\"\",AH530/$C$530)","v":""},null,{"$f":"IF($C$530=\"\",\"\",AJ530/$C$530)","v":""},null,{"$f":"IF($C$530=\"\",\"\",AL530/$C$530)","v":""},null,{"$f":"IF($C$530=\"\",\"\",AN530/$C$530)","v":""},null,{"$f":"IF($C$530=\"\",\"\",AP530/$C$530)","v":""},null,{"$f":"IF($C$530=\"\",\"\",AR530/$C$530)","v":""},null,{"$f":"IF($C$530=\"\",\"\",AT530/$C$530)","v":""},null,{"$f":"IF($C$530=\"\",\"\",AV530/$C$530)","v":""},null,{"$f":"IF($C$530=\"\",\"\",AX530/$C$530)","v":""},null,{"$f":"IF($C$530=\"\",\"\",AZ530/$C$530)","v":""},null,{"$f":"IF($C$530=\"\",\"\",BB530/$C$530)","v":""},null,0]
[null,null,null,null,{"$f":"IF($C$531=\"\",\"\",F531/$C$531)","v":""},null,{"$f":"IF($C$531=\"\",\"\",H531/$C$531)","v":""},null,{"$f":"IF($C$531=\"\",\"\",J531/$C$531)","v":""},null,{"$f":"IF($C$531=\"\",\"\",L531/$C$531)","v":""},null,{"$f":"IF($C$531=\"\",\"\",N531/$C$531)","v":""},null,{"$f":"IF($C$531=\"\",\"\",P531/$C$531)","v":""},null,{"$f":"IF($C$531=\"\",\"\",R531/$C$531)","v":""},null,{"$f":"IF($C$531=\"\",\"\",T531/$C$531)","v":""},null,{"$f":"IF($C$531=\"\",\"\",V531/$C$531)","v":""},null,{"$f":"IF($C$531=\"\",\"\",X531/$C$531)","v":""},null,{"$f":"IF($C$531=\"\",\"\",Z531/$C$531)","v":""},null,{"$f":"IF($C$531=\"\",\"\",AB531/$C$531)","v":""},null,{"$f":"IF($C$531=\"\",\"\",AD531/$C$531)","v":""},null,{"$f":"IF($C$531=\"\",\"\",AF531/$C$531)","v":""},null,{"$f":"IF($C$531=\"\",\"\",AH531/$C$531)","v":""},null,{"$f":"IF($C$531=\"\",\"\",AJ531/$C$531)","v":""},null,{"$f":"IF($C$531=\"\",\"\",AL531/$C$531)","v":""},null,{"$f":"IF($C$531=\"\",\"\",AN531/$C$531)","v":""},null,{"$f":"IF($C$531=\"\",\"\",AP531/$C$531)","v":""},null,{"$f":"IF($C$531=\"\",\"\",AR531/$C$531)","v":""},null,{"$f":"IF($C$531=\"\",\"\",AT531/$C$531)","v":""},null,{"$f":"IF($C$531=\"\",\"\",AV531/$C$531)","v":""},null,{"$f":"IF($C$531=\"\",\"\",AX531/$C$531)","v":""},null,{"$f":"IF($C$531=\"\",\"\",AZ531/$C$531)","v":""},null,{"$f":"IF($C$531=\"\",\"\",BB531/$C$531)","v":""},null,0]
[null,null,null,null,{"$f":"IF($C$532=\"\",\"\",F532/$C$532)","v":""},null,{"$f":"IF($C$532=\"\",\"\",H532/$C$532)","v":""},null,{"$f":"IF($C$532=\"\",\"\",J532/$C$532)","v":""},null,{"$f":"IF($C$532=\"\",\"\",L532/$C$532)","v":""},null,{"$f":"IF($C$532=\"\",\"\",N532/$C$532)","v":""},null,{"$f":"IF($C$532=\"\",\"\",P532/$C$532)","v":""},null,{"$f":"IF($C$532=\"\",\"\",R532/$C$532)","v":""},null,{"$f":"IF($C$532=\"\",\"\",T532/$C$532)","v":""},null,{"$f":"IF($C$532=\"\",\"\",V532/$C$532)","v":""},null,{"$f":"IF($C$532=\"\",\"\",X532/$C$532)","v":""},null,{"$f":"IF($C$532=\"\",\"\",Z532/$C$532)","v":""},null,{"$f":"IF($C$532=\"\",\"\",AB532/$C$532)","v":""},null,{"$f":"IF($C$532=\"\",\"\",AD532/$C$532)","v":""},null,{"$f":"IF($C$532=\"\",\"\",AF532/$C$532)","v":""},null,{"$f":"IF($C$532=\"\",\"\",AH532/$C$532)","v":""},null,{"$f":"IF($C$532=\"\",\"\",AJ532/$C$532)","v":""},null,{"$f":"IF($C$532=\"\",\"\",AL532/$C$532)","v":""},null,{"$f":"IF($C$532=\"\",\"\",AN532/$C$532)","v":""},null,{"$f":"IF($C$532=\"\",\"\",AP532/$C$532)","v":""},null,{"$f":"IF($C$532=\"\",\"\",AR532/$C$532)","v":""},null,{"$f":"IF($C$532=\"\",\"\",AT532/$C$532)","v":""},null,{"$f":"IF($C$532=\"\",\"\",AV532/$C$532)","v":""},null,{"$f":"IF($C$532=\"\",\"\",AX532/$C$532)","v":""},null,{"$f":"IF($C$532=\"\",\"\",AZ532/$C$532)","v":""},null,{"$f":"IF($C$532=\"\",\"\",BB532/$C$532)","v":""},null,0]
[null,null,null,null,{"$f":"IF($C$533=\"\",\"\",F533/$C$533)","v":""},null,{"$f":"IF($C$533=\"\",\"\",H533/$C$533)","v":""},null,{"$f":"IF($C$533=\"\",\"\",J533/$C$533)","v":""},null,{"$f":"IF($C$533=\"\",\"\",L533/$C$533)","v":""},null,{"$f":"IF($C$533=\"\",\"\",N533/$C$533)","v":""},null,{"$f":"IF($C$533=\"\",\"\",P533/$C$533)","v":""},null,{"$f":"IF($C$533=\"\",\"\",R533/$C$533)","v":""},null,{"$f":"IF($C$533=\"\",\"\",T533/$C$533)","v":""},null,{"$f":"IF($C$533=\"\",\"\",V533/$C$533)","v":""},null,{"$f":"IF($C$533=\"\",\"\",X533/$C$533)","v":""},null,{"$f":"IF($C$533=\"\",\"\",Z533/$C$533)","v":""},null,{"$f":"IF($C$533=\"\",\"\",AB533/$C$533)","v":""},null,{"$f":"IF($C$533=\"\",\"\",AD533/$C$533)","v":""},null,{"$f":"IF($C$533=\"\",\"\",AF533/$C$533)","v":""},null,{"$f":"IF($C$533=\"\",\"\",AH533/$C$533)","v":""},null,{"$f":"IF($C$533=\"\",\"\",AJ533/$C$533)","v":""},null,{"$f":"IF($C$533=\"\",\"\",AL533/$C$533)","v":""},null,{"$f":"IF($C$533=\"\",\"\",AN533/$C$533)","v":""},null,{"$f":"IF($C$533=\"\",\"\",AP533/$C$533)","v":""},null,{"$f":"IF($C$533=\"\",\"\",AR533/$C$533)","v":""},null,{"$f":"IF($C$533=\"\",\"\",AT533/$C$533)","v":""},null,{"$f":"IF($C$533=\"\",\"\",AV533/$C$533)","v":""},null,{"$f":"IF($C$533=\"\",\"\",AX533/$C$533)","v":""},null,{"$f":"IF($C$533=\"\",\"\",AZ533/$C$533)","v":""},null,{"$f":"IF($C$533=\"\",\"\",BB533/$C$533)","v":""},null,0]
[null,null,null,null,{"$f":"IF($C$534=\"\",\"\",F534/$C$534)","v":""},null,{"$f":"IF($C$534=\"\",\"\",H534/$C$534)","v":""},null,{"$f":"IF($C$534=\"\",\"\",J534/$C$534)","v":""},null,{"$f":"IF($C$534=\"\",\"\",L534/$C$534)","v":""},null,{"$f":"IF($C$534=\"\",\"\",N534/$C$534)","v":""},null,{"$f":"IF($C$534=\"\",\"\",P534/$C$534)","v":""},null,{"$f":"IF($C$534=\"\",\"\",R534/$C$534)","v":""},null,{"$f":"IF($C$534=\"\",\"\",T534/$C$534)","v":""},null,{"$f":"IF($C$534=\"\",\"\",V534/$C$534)","v":""},null,{"$f":"IF($C$534=\"\",\"\",X534/$C$534)","v":""},null,{"$f":"IF($C$534=\"\",\"\",Z534/$C$534)","v":""},null,{"$f":"IF($C$534=\"\",\"\",AB534/$C$534)","v":""},null,{"$f":"IF($C$534=\"\",\"\",AD534/$C$534)","v":""},null,{"$f":"IF($C$534=\"\",\"\",AF534/$C$534)","v":""},null,{"$f":"IF($C$534=\"\",\"\",AH534/$C$534)","v":""},null,{"$f":"IF($C$534=\"\",\"\",AJ534/$C$534)","v":""},null,{"$f":"IF($C$534=\"\",\"\",AL534/$C$534)","v":""},null,{"$f":"IF($C$534=\"\",\"\",AN534/$C$534)","v":""},null,{"$f":"IF($C$534=\"\",\"\",AP534/$C$534)","v":""},null,{"$f":"IF($C$534=\"\",\"\",AR534/$C$534)","v":""},null,{"$f":"IF($C$534=\"\",\"\",AT534/$C$534)","v":""},null,{"$f":"IF($C$534=\"\",\"\",AV534/$C$534)","v":""},null,{"$f":"IF($C$534=\"\",\"\",AX534/$C$534)","v":""},null,{"$f":"IF($C$534=\"\",\"\",AZ534/$C$534)","v":""},null,{"$f":"IF($C$534=\"\",\"\",BB534/$C$534)","v":""},null,0]
[null,null,null,null,{"$f":"IF($C$535=\"\",\"\",F535/$C$535)","v":""},null,{"$f":"IF($C$535=\"\",\"\",H535/$C$535)","v":""},null,{"$f":"IF($C$535=\"\",\"\",J535/$C$535)","v":""},null,{"$f":"IF($C$535=\"\",\"\",L535/$C$535)","v":""},null,{"$f":"IF($C$535=\"\",\"\",N535/$C$535)","v":""},null,{"$f":"IF($C$535=\"\",\"\",P535/$C$535)","v":""},null,{"$f":"IF($C$535=\"\",\"\",R535/$C$535)","v":""},null,{"$f":"IF($C$535=\"\",\"\",T535/$C$535)","v":""},null,{"$f":"IF($C$535=\"\",\"\",V535/$C$535)","v":""},null,{"$f":"IF($C$535=\"\",\"\",X535/$C$535)","v":""},null,{"$f":"IF($C$535=\"\",\"\",Z535/$C$535)","v":""},null,{"$f":"IF($C$535=\"\",\"\",AB535/$C$535)","v":""},null,{"$f":"IF($C$535=\"\",\"\",AD535/$C$535)","v":""},null,{"$f":"IF($C$535=\"\",\"\",AF535/$C$535)","v":""},null,{"$f":"IF($C$535=\"\",\"\",AH535/$C$535)","v":""},null,{"$f":"IF($C$535=\"\",\"\",AJ535/$C$535)","v":""},null,{"$f":"IF($C$535=\"\",\"\",AL535/$C$535)","v":""},null,{"$f":"IF($C$535=\"\",\"\",AN535/$C$535)","v":""},null,{"$f":"IF($C$535=\"\",\"\",AP535/$C$535)","v":""},null,{"$f":"IF($C$535=\"\",\"\",AR535/$C$535)","v":""},null,{"$f":"IF($C$535=\"\",\"\",AT535/$C$535)","v":""},null,{"$f":"IF($C$535=\"\",\"\",AV535/$C$535)","v":""},null,{"$f":"IF($C$535=\"\",\"\",AX535/$C$535)","v":""},null,{"$f":"IF($C$535=\"\",\"\",AZ535/$C$535)","v":""},null,{"$f":"IF($C$535=\"\",\"\",BB535/$C$535)","v":""},null,0]
[null,null,null,null,{"$f":"IF($C$536=\"\",\"\",F536/$C$536)","v":""},null,{"$f":"IF($C$536=\"\",\"\",H536/$C$536)","v":""},null,{"$f":"IF($C$536=\"\",\"\",J536/$C$536)","v":""},null,{"$f":"IF($C$536=\"\",\"\",L536/$C$536)","v":""},null,{"$f":"IF($C$536=\"\",\"\",N536/$C$536)","v":""},null,{"$f":"IF($C$536=\"\",\"\",P536/$C$536)","v":""},null,{"$f":"IF($C$536=\"\",\"\",R536/$C$536)","v":""},null,{"$f":"IF($C$536=\"\",\"\",T536/$C$536)","v":""},null,{"$f":"IF($C$536=\"\",\"\",V536/$C$536)","v":""},null,{"$f":"IF($C$536=\"\",\"\",X536/$C$536)","v":""},null,{"$f":"IF($C$536=\"\",\"\",Z536/$C$536)","v":""},null,{"$f":"IF($C$536=\"\",\"\",AB536/$C$536)","v":""},null,{"$f":"IF($C$536=\"\",\"\",AD536/$C$536)","v":""},null,{"$f":"IF($C$536=\"\",\"\",AF536/$C$536)","v":""},null,{"$f":"IF($C$536=\"\",\"\",AH536/$C$536)","v":""},null,{"$f":"IF($C$536=\"\",\"\",AJ536/$C$536)","v":""},null,{"$f":"IF($C$536=\"\",\"\",AL536/$C$536)","v":""},null,{"$f":"IF($C$536=\"\",\"\",AN536/$C$536)","v":""},null,{"$f":"IF($C$536=\"\",\"\",AP536/$C$536)","v":""},null,{"$f":"IF($C$536=\"\",\"\",AR536/$C$536)","v":""},null,{"$f":"IF($C$536=\"\",\"\",AT536/$C$536)","v":""},null,{"$f":"IF($C$536=\"\",\"\",AV536/$C$536)","v":""},null,{"$f":"IF($C$536=\"\",\"\",AX536/$C$536)","v":""},null,{"$f":"IF($C$536=\"\",\"\",AZ536/$C$536)","v":""},null,{"$f":"IF($C$536=\"\",\"\",BB536/$C$536)","v":""},null,0]
[null,null,null,null,{"$f":"IF($C$537=\"\",\"\",F537/$C$537)","v":""},null,{"$f":"IF($C$537=\"\",\"\",H537/$C$537)","v":""},null,{"$f":"IF($C$537=\"\",\"\",J537/$C$537)","v":""},null,{"$f":"IF($C$537=\"\",\"\",L537/$C$537)","v":""},null,{"$f":"IF($C$537=\"\",\"\",N537/$C$537)","v":""},null,{"$f":"IF($C$537=\"\",\"\",P537/$C$537)","v":""},null,{"$f":"IF($C$537=\"\",\"\",R537/$C$537)","v":""},null,{"$f":"IF($C$537=\"\",\"\",T537/$C$537)","v":""},null,{"$f":"IF($C$537=\"\",\"\",V537/$C$537)","v":""},null,{"$f":"IF($C$537=\"\",\"\",X537/$C$537)","v":""},null,{"$f":"IF($C$537=\"\",\"\",Z537/$C$537)","v":""},null,{"$f":"IF($C$537=\"\",\"\",AB537/$C$537)","v":""},null,{"$f":"IF($C$537=\"\",\"\",AD537/$C$537)","v":""},null,{"$f":"IF($C$537=\"\",\"\",AF537/$C$537)","v":""},null,{"$f":"IF($C$537=\"\",\"\",AH537/$C$537)","v":""},null,{"$f":"IF($C$537=\"\",\"\",AJ537/$C$537)","v":""},null,{"$f":"IF($C$537=\"\",\"\",AL537/$C$537)","v":""},null,{"$f":"IF($C$537=\"\",\"\",AN537/$C$537)","v":""},null,{"$f":"IF($C$537=\"\",\"\",AP537/$C$537)","v":""},null,{"$f":"IF($C$537=\"\",\"\",AR537/$C$537)","v":""},null,{"$f":"IF($C$537=\"\",\"\",AT537/$C$537)","v":""},null,{"$f":"IF($C$537=\"\",\"\",AV537/$C$537)","v":""},null,{"$f":"IF($C$537=\"\",\"\",AX537/$C$537)","v":""},null,{"$f":"IF($C$537=\"\",\"\",AZ537/$C$537)","v":""},null,{"$f":"IF($C$537=\"\",\"\",BB537/$C$537)","v":""},null,0]
[null,null,null,null,{"$f":"IF($C$538=\"\",\"\",F538/$C$538)","v":""},null,{"$f":"IF($C$538=\"\",\"\",H538/$C$538)","v":""},null,{"$f":"IF($C$538=\"\",\"\",J538/$C$538)","v":""},null,{"$f":"IF($C$538=\"\",\"\",L538/$C$538)","v":""},null,{"$f":"IF($C$538=\"\",\"\",N538/$C$538)","v":""},null,{"$f":"IF($C$538=\"\",\"\",P538/$C$538)","v":""},null,{"$f":"IF($C$538=\"\",\"\",R538/$C$538)","v":""},null,{"$f":"IF($C$538=\"\",\"\",T538/$C$538)","v":""},null,{"$f":"IF($C$538=\"\",\"\",V538/$C$538)","v":""},null,{"$f":"IF($C$538=\"\",\"\",X538/$C$538)","v":""},null,{"$f":"IF($C$538=\"\",\"\",Z538/$C$538)","v":""},null,{"$f":"IF($C$538=\"\",\"\",AB538/$C$538)","v":""},null,{"$f":"IF($C$538=\"\",\"\",AD538/$C$538)","v":""},null,{"$f":"IF($C$538=\"\",\"\",AF538/$C$538)","v":""},null,{"$f":"IF($C$538=\"\",\"\",AH538/$C$538)","v":""},null,{"$f":"IF($C$538=\"\",\"\",AJ538/$C$538)","v":""},null,{"$f":"IF($C$538=\"\",\"\",AL538/$C$538)","v":""},null,{"$f":"IF($C$538=\"\",\"\",AN538/$C$538)","v":""},null,{"$f":"IF($C$538=\"\",\"\",AP538/$C$538)","v":""},null,{"$f":"IF($C$538=\"\",\"\",AR538/$C$538)","v":""},null,{"$f":"IF($C$538=\"\",\"\",AT538/$C$538)","v":""},null,{"$f":"IF($C$538=\"\",\"\",AV538/$C$538)","v":""},null,{"$f":"IF($C$538=\"\",\"\",AX538/$C$538)","v":""},null,{"$f":"IF($C$538=\"\",\"\",AZ538/$C$538)","v":""},null,{"$f":"IF($C$538=\"\",\"\",BB538/$C$538)","v":""},null,0]
[null,null,null,null,{"$f":"IF($C$539=\"\",\"\",F539/$C$539)","v":""},null,{"$f":"IF($C$539=\"\",\"\",H539/$C$539)","v":""},null,{"$f":"IF($C$539=\"\",\"\",J539/$C$539)","v":""},null,{"$f":"IF($C$539=\"\",\"\",L539/$C$539)","v":""},null,{"$f":"IF($C$539=\"\",\"\",N539/$C$539)","v":""},null,{"$f":"IF($C$539=\"\",\"\",P539/$C$539)","v":""},null,{"$f":"IF($C$539=\"\",\"\",R539/$C$539)","v":""},null,{"$f":"IF($C$539=\"\",\"\",T539/$C$539)","v":""},null,{"$f":"IF($C$539=\"\",\"\",V539/$C$539)","v":""},null,{"$f":"IF($C$539=\"\",\"\",X539/$C$539)","v":""},null,{"$f":"IF($C$539=\"\",\"\",Z539/$C$539)","v":""},null,{"$f":"IF($C$539=\"\",\"\",AB539/$C$539)","v":""},null,{"$f":"IF($C$539=\"\",\"\",AD539/$C$539)","v":""},null,{"$f":"IF($C$539=\"\",\"\",AF539/$C$539)","v":""},null,{"$f":"IF($C$539=\"\",\"\",AH539/$C$539)","v":""},null,{"$f":"IF($C$539=\"\",\"\",AJ539/$C$539)","v":""},null,{"$f":"IF($C$539=\"\",\"\",AL539/$C$539)","v":""},null,{"$f":"IF($C$539=\"\",\"\",AN539/$C$539)","v":""},null,{"$f":"IF($C$539=\"\",\"\",AP539/$C$539)","v":""},null,{"$f":"IF($C$539=\"\",\"\",AR539/$C$539)","v":""},null,{"$f":"IF($C$539=\"\",\"\",AT539/$C$539)","v":""},null,{"$f":"IF($C$539=\"\",\"\",AV539/$C$539)","v":""},null,{"$f":"IF($C$539=\"\",\"\",AX539/$C$539)","v":""},null,{"$f":"IF($C$539=\"\",\"\",AZ539/$C$539)","v":""},null,{"$f":"IF($C$539=\"\",\"\",BB539/$C$539)","v":""},null,0]
[null,null,null,null,{"$f":"IF($C$540=\"\",\"\",F540/$C$540)","v":""},null,{"$f":"IF($C$540=\"\",\"\",H540/$C$540)","v":""},null,{"$f":"IF($C$540=\"\",\"\",J540/$C$540)","v":""},null,{"$f":"IF($C$540=\"\",\"\",L540/$C$540)","v":""},null,{"$f":"IF($C$540=\"\",\"\",N540/$C$540)","v":""},null,{"$f":"IF($C$540=\"\",\"\",P540/$C$540)","v":""},null,{"$f":"IF($C$540=\"\",\"\",R540/$C$540)","v":""},null,{"$f":"IF($C$540=\"\",\"\",T540/$C$540)","v":""},null,{"$f":"IF($C$540=\"\",\"\",V540/$C$540)","v":""},null,{"$f":"IF($C$540=\"\",\"\",X540/$C$540)","v":""},null,{"$f":"IF($C$540=\"\",\"\",Z540/$C$540)","v":""},null,{"$f":"IF($C$540=\"\",\"\",AB540/$C$540)","v":""},null,{"$f":"IF($C$540=\"\",\"\",AD540/$C$540)","v":""},null,{"$f":"IF($C$540=\"\",\"\",AF540/$C$540)","v":""},null,{"$f":"IF($C$540=\"\",\"\",AH540/$C$540)","v":""},null,{"$f":"IF($C$540=\"\",\"\",AJ540/$C$540)","v":""},null,{"$f":"IF($C$540=\"\",\"\",AL540/$C$540)","v":""},null,{"$f":"IF($C$540=\"\",\"\",AN540/$C$540)","v":""},null,{"$f":"IF($C$540=\"\",\"\",AP540/$C$540)","v":""},null,{"$f":"IF($C$540=\"\",\"\",AR540/$C$540)","v":""},null,{"$f":"IF($C$540=\"\",\"\",AT540/$C$540)","v":""},null,{"$f":"IF($C$540=\"\",\"\",AV540/$C$540)","v":""},null,{"$f":"IF($C$540=\"\",\"\",AX540/$C$540)","v":""},null,{"$f":"IF($C$540=\"\",\"\",AZ540/$C$540)","v":""},null,{"$f":"IF($C$540=\"\",\"\",BB540/$C$540)","v":""},null,0]
[null,null,null,null,{"$f":"IF($C$541=\"\",\"\",F541/$C$541)","v":""},null,{"$f":"IF($C$541=\"\",\"\",H541/$C$541)","v":""},null,{"$f":"IF($C$541=\"\",\"\",J541/$C$541)","v":""},null,{"$f":"IF($C$541=\"\",\"\",L541/$C$541)","v":""},null,{"$f":"IF($C$541=\"\",\"\",N541/$C$541)","v":""},null,{"$f":"IF($C$541=\"\",\"\",P541/$C$541)","v":""},null,{"$f":"IF($C$541=\"\",\"\",R541/$C$541)","v":""},null,{"$f":"IF($C$541=\"\",\"\",T541/$C$541)","v":""},null,{"$f":"IF($C$541=\"\",\"\",V541/$C$541)","v":""},null,{"$f":"IF($C$541=\"\",\"\",X541/$C$541)","v":""},null,{"$f":"IF($C$541=\"\",\"\",Z541/$C$541)","v":""},null,{"$f":"IF($C$541=\"\",\"\",AB541/$C$541)","v":""},null,{"$f":"IF($C$541=\"\",\"\",AD541/$C$541)","v":""},null,{"$f":"IF($C$541=\"\",\"\",AF541/$C$541)","v":""},null,{"$f":"IF($C$541=\"\",\"\",AH541/$C$541)","v":""},null,{"$f":"IF($C$541=\"\",\"\",AJ541/$C$541)","v":""},null,{"$f":"IF($C$541=\"\",\"\",AL541/$C$541)","v":""},null,{"$f":"IF($C$541=\"\",\"\",AN541/$C$541)","v":""},null,{"$f":"IF($C$541=\"\",\"\",AP541/$C$541)","v":""},null,{"$f":"IF($C$541=\"\",\"\",AR541/$C$541)","v":""},null,{"$f":"IF($C$541=\"\",\"\",AT541/$C$541)","v":""},null,{"$f":"IF($C$541=\"\",\"\",AV541/$C$541)","v":""},null,{"$f":"IF($C$541=\"\",\"\",AX541/$C$541)","v":""},null,{"$f":"IF($C$541=\"\",\"\",AZ541/$C$541)","v":""},null,{"$f":"IF($C$541=\"\",\"\",BB541/$C$541)","v":""},null,{"$f":"SUM(BB541,AZ541,AX541,AV541,AT541,AR541,AP541,AN541,AL541,AJ541,AH541,AF541,AD541,AB541,Z541,X541,V541,T541,R541,P541,N541,L541,J541,H541,F541)","v":0}]
["TOTAL HOURS",null,null,null,null,{"$f":"SUM(F512:F541)","v":0},null,{"$f":"SUM(H512:H541)","v":0},null,{"$f":"SUM(J512:J541)","v":0},null,{"$f":"SUM(L512:L541)","v":0},null,{"$f":"SUM(N512:N541)","v":0},null,{"$f":"SUM(P512:P541)","v":0},null,{"$f":"SUM(R512:R541)","v":0},null,{"$f":"SUM(T512:T541)","v":0},null,{"$f":"SUM(V512:V541)","v":0},null,{"$f":"SUM(X512:X541)","v":0},null,{"$f":"SUM(Z512:Z541)","v":0},null,{"$f":"SUM(AB512:AB541)","v":0},null,{"$f":"SUM(AD512:AD541)","v":0},null,{"$f":"SUM(AF512:AF541)","v":0},null,{"$f":"SUM(AH512:AH541)","v":0},null,{"$f":"SUM(AJ512:AJ541)","v":0},null,{"$f":"SUM(AL512:AL541)","v":0},null,{"$f":"SUM(AN512:AN541)","v":0},null,{"$f":"SUM(AP512:AP541)","v":0},null,{"$f":"SUM(AR512:AR541)","v":0},null,{"$f":"SUM(AT512:AT541)","v":0},null,{"$f":"SUM(AV512:AV541)","v":0},null,{"$f":"SUM(AX512:AX541)","v":0},null,{"$f":"SUM(AZ512:AZ541)","v":0},null,{"$f":"SUM(BB512:BB541)","v":0},{"$f":"SUM(E542:BB542)","v":0}]
["TOTAL WORKDAYS",null,null,null,null,{"$f":"F542/8","v":0},null,{"$f":"H542/8","v":0},null,{"$f":"J542/8","v":0},null,{"$f":"L542/8","v":0},null,{"$f":"N542/8","v":0},null,{"$f":"P542/8","v":0},null,{"$f":"R542/8","v":0},null,{"$f":"T542/8","v":0},null,{"$f":"V542/8","v":0},null,{"$f":"X542/8","v":0},null,{"$f":"Z542/8","v":0},null,{"$f":"AB542/8","v":0},null,{"$f":"AD542/8","v":0},null,0,null,{"$f":"AH542/8","v":0},null,0,null,{"$f":"AL542/8","v":0},null,0,null,{"$f":"AP542/8","v":0},null,0,null,{"$f":"AT542/8","v":0},null,{"$f":"AV542/8","v":0},null,{"$f":"AX542/8","v":0},null,{"$f":"AZ542/8","v":0},null,{"$f":"BB542/8","v":0},{"$f":"SUM(E543:BB543)","v":0}]
["TOTAL RAW LABOR",null,null,null,null,{"$f":"$E$13*F542","v":0},null,{"$f":"$G$13*H542","v":0},null,{"$f":"$I$13*J542","v":0},null,{"$f":"$K$13*L542","v":0},null,{"$f":"$M$13*N542","v":0},null,{"$f":"$O$13*P542","v":0},null,{"$f":"$Q$13*R542","v":0},null,{"$f":"$S$13*T542","v":0},null,{"$f":"$U$13*V542","v":0},null,{"$f":"$W$13*X542","v":0},null,{"$f":"$Y$13*Z542","v":0},null,{"$f":"$AA$13*AB542","v":0},null,{"$f":"$AC$13*AD542","v":0},null,{"$f":"$AC$13*AF542","v":0},null,{"$f":"$AC$13*AH542","v":0},null,{"$f":"$AC$13*AJ542","v":0},null,{"$f":"$AC$13*AL542","v":0},null,{"$f":"$AC$13*AN542","v":0},null,{"$f":"$AC$13*AP542","v":0},null,{"$f":"$AC$13*AR542","v":0},null,{"$f":"$AC$13*AT542","v":0},null,{"$f":"$AC$13*AV542","v":0},null,{"$f":"$AC$13*AX542","v":0},null,{"$f":"$AC$13*AZ542","v":0},null,{"$f":"$AC$13*BB542","v":0},{"$f":"SUM(E544:BB544)","v":0}]
["Task 20.0     ","REPLACE FIELD WITH CATEGORY NAME OF YOUR CHOOSING HERE",null,null,null,null,null,null,null,null,null,null,null,null,null,null,null,null,null,null,null,null,null,null,null,null,null,null,null,null,null,null,null,null,null,null,null,null,null,null,null,null,null,null,null,null,null,null,null,null,null,null,null,null,{"$f":"IF(B545=\"REPLACE FIELD WITH CATEGORY NAME OF YOUR CHOOSING HERE\",0,\"\")","v":0}]
[null,null,null,null,{"$f":"IF($C$546=\"\",\"\",F546/$C$546)","v":""},null,{"$f":"IF($C$546=\"\",\"\",H546/$C$546)","v":""},null,{"$f":"IF($C$546=\"\",\"\",J546/$C$546)","v":""},null,{"$f":"IF($C$546=\"\",\"\",L546/$C$546)","v":""},null,{"$f":"IF($C$546=\"\",\"\",N546/$C$546)","v":""},null,{"$f":"IF($C$546=\"\",\"\",P546/$C$546)","v":""},null,{"$f":"IF($C$546=\"\",\"\",R546/$C$546)","v":""},null,{"$f":"IF($C$546=\"\",\"\",T546/$C$546)","v":""},null,{"$f":"IF($C$546=\"\",\"\",V546/$C$546)","v":""},null,{"$f":"IF($C$546=\"\",\"\",X546/$C$546)","v":""},null,{"$f":"IF($C$546=\"\",\"\",Z546/$C$546)","v":""},null,{"$f":"IF($C$546=\"\",\"\",AB546/$C$546)","v":""},null,{"$f":"IF($C$546=\"\",\"\",AD546/$C$546)","v":""},null,{"$f":"IF($C$546=\"\",\"\",AF546/$C$546)","v":""},null,{"$f":"IF($C$546=\"\",\"\",AH546/$C$546)","v":""},null,{"$f":"IF($C$546=\"\",\"\",AJ546/$C$546)","v":""},null,{"$f":"IF($C$546=\"\",\"\",AL546/$C$546)","v":""},null,{"$f":"IF($C$546=\"\",\"\",AN546/$C$546)","v":""},null,{"$f":"IF($C$546=\"\",\"\",AP546/$C$546)","v":""},null,{"$f":"IF($C$546=\"\",\"\",AR546/$C$546)","v":""},null,{"$f":"IF($C$546=\"\",\"\",AT546/$C$546)","v":""},null,{"$f":"IF($C$546=\"\",\"\",AV546/$C$546)","v":""},null,{"$f":"IF($C$546=\"\",\"\",AX546/$C$546)","v":""},null,{"$f":"IF($C$546=\"\",\"\",AZ546/$C$546)","v":""},null,{"$f":"IF($C$546=\"\",\"\",BB546/$C$546)","v":""},null,{"$f":"SUM(BB546,AZ546,AX546,AV546,AT546,AR546,AP546,AN546,AL546,AJ546,AH546,AF546,AD546,AB546,Z546,X546,V546,T546,R546,P546,N546,L546,J546,H546,F546)","v":0}]
[null,null,null,null,{"$f":"IF($C$547=\"\",\"\",F547/$C$547)","v":""},null,{"$f":"IF($C$547=\"\",\"\",H547/$C$547)","v":""},null,{"$f":"IF($C$547=\"\",\"\",J547/$C$547)","v":""},null,{"$f":"IF($C$547=\"\",\"\",L547/$C$547)","v":""},null,{"$f":"IF($C$547=\"\",\"\",N547/$C$547)","v":""},null,{"$f":"IF($C$547=\"\",\"\",P547/$C$547)","v":""},null,{"$f":"IF($C$547=\"\",\"\",R547/$C$547)","v":""},null,{"$f":"IF($C$547=\"\",\"\",T547/$C$547)","v":""},null,{"$f":"IF($C$547=\"\",\"\",V547/$C$547)","v":""},null,{"$f":"IF($C$547=\"\",\"\",X547/$C$547)","v":""},null,{"$f":"IF($C$547=\"\",\"\",Z547/$C$547)","v":""},null,{"$f":"IF($C$547=\"\",\"\",AB547/$C$547)","v":""},null,{"$f":"IF($C$547=\"\",\"\",AD547/$C$547)","v":""},null,{"$f":"IF($C$547=\"\",\"\",AF547/$C$547)","v":""},null,{"$f":"IF($C$547=\"\",\"\",AH547/$C$547)","v":""},null,{"$f":"IF($C$547=\"\",\"\",AJ547/$C$547)","v":""},null,{"$f":"IF($C$547=\"\",\"\",AL547/$C$547)","v":""},null,{"$f":"IF($C$547=\"\",\"\",AN547/$C$547)","v":""},null,{"$f":"IF($C$547=\"\",\"\",AP547/$C$547)","v":""},null,{"$f":"IF($C$547=\"\",\"\",AR547/$C$547)","v":""},null,{"$f":"IF($C$547=\"\",\"\",AT547/$C$547)","v":""},null,{"$f":"IF($C$547=\"\",\"\",AV547/$C$547)","v":""},null,{"$f":"IF($C$547=\"\",\"\",AX547/$C$547)","v":""},null,{"$f":"IF($C$547=\"\",\"\",AZ547/$C$547)","v":""},null,{"$f":"IF($C$547=\"\",\"\",BB547/$C$547)","v":""},null,0]
[null,null,null,null,{"$f":"IF($C$548=\"\",\"\",F548/$C$548)","v":""},null,{"$f":"IF($C$548=\"\",\"\",H548/$C$548)","v":""},null,{"$f":"IF($C$548=\"\",\"\",J548/$C$548)","v":""},null,{"$f":"IF($C$548=\"\",\"\",L548/$C$548)","v":""},null,{"$f":"IF($C$548=\"\",\"\",N548/$C$548)","v":""},null,{"$f":"IF($C$548=\"\",\"\",P548/$C$548)","v":""},null,{"$f":"IF($C$548=\"\",\"\",R548/$C$548)","v":""},null,{"$f":"IF($C$548=\"\",\"\",T548/$C$548)","v":""},null,{"$f":"IF($C$548=\"\",\"\",V548/$C$548)","v":""},null,{"$f":"IF($C$548=\"\",\"\",X548/$C$548)","v":""},null,{"$f":"IF($C$548=\"\",\"\",Z548/$C$548)","v":""},null,{"$f":"IF($C$548=\"\",\"\",AB548/$C$548)","v":""},null,{"$f":"IF($C$548=\"\",\"\",AD548/$C$548)","v":""},null,{"$f":"IF($C$548=\"\",\"\",AF548/$C$548)","v":""},null,{"$f":"IF($C$548=\"\",\"\",AH548/$C$548)","v":""},null,{"$f":"IF($C$548=\"\",\"\",AJ548/$C$548)","v":""},null,{"$f":"IF($C$548=\"\",\"\",AL548/$C$548)","v":""},null,{"$f":"IF($C$548=\"\",\"\",AN548/$C$548)","v":""},null,{"$f":"IF($C$548=\"\",\"\",AP548/$C$548)","v":""},null,{"$f":"IF($C$548=\"\",\"\",AR548/$C$548)","v":""},null,{"$f":"IF($C$548=\"\",\"\",AT548/$C$548)","v":""},null,{"$f":"IF($C$548=\"\",\"\",AV548/$C$548)","v":""},null,{"$f":"IF($C$548=\"\",\"\",AX548/$C$548)","v":""},null,{"$f":"IF($C$548=\"\",\"\",AZ548/$C$548)","v":""},null,{"$f":"IF($C$548=\"\",\"\",BB548/$C$548)","v":""},null,0]
[null,null,null,null,{"$f":"IF($C$549=\"\",\"\",F549/$C$549)","v":""},null,{"$f":"IF($C$549=\"\",\"\",H549/$C$549)","v":""},null,{"$f":"IF($C$549=\"\",\"\",J549/$C$549)","v":""},null,{"$f":"IF($C$549=\"\",\"\",L549/$C$549)","v":""},null,{"$f":"IF($C$549=\"\",\"\",N549/$C$549)","v":""},null,{"$f":"IF($C$549=\"\",\"\",P549/$C$549)","v":""},null,{"$f":"IF($C$549=\"\",\"\",R549/$C$549)","v":""},null,{"$f":"IF($C$549=\"\",\"\",T549/$C$549)","v":""},null,{"$f":"IF($C$549=\"\",\"\",V549/$C$549)","v":""},null,{"$f":"IF($C$549=\"\",\"\",X549/$C$549)","v":""},null,{"$f":"IF($C$549=\"\",\"\",Z549/$C$549)","v":""},null,{"$f":"IF($C$549=\"\",\"\",AB549/$C$549)","v":""},null,{"$f":"IF($C$549=\"\",\"\",AD549/$C$549)","v":""},null,{"$f":"IF($C$549=\"\",\"\",AF549/$C$549)","v":""},null,{"$f":"IF($C$549=\"\",\"\",AH549/$C$549)","v":""},null,{"$f":"IF($C$549=\"\",\"\",AJ549/$C$549)","v":""},null,{"$f":"IF($C$549=\"\",\"\",AL549/$C$549)","v":""},null,{"$f":"IF($C$549=\"\",\"\",AN549/$C$549)","v":""},null,{"$f":"IF($C$549=\"\",\"\",AP549/$C$549)","v":""},null,{"$f":"IF($C$549=\"\",\"\",AR549/$C$549)","v":""},null,{"$f":"IF($C$549=\"\",\"\",AT549/$C$549)","v":""},null,{"$f":"IF($C$549=\"\",\"\",AV549/$C$549)","v":""},null,{"$f":"IF($C$549=\"\",\"\",AX549/$C$549)","v":""},null,{"$f":"IF($C$549=\"\",\"\",AZ549/$C$549)","v":""},null,{"$f":"IF($C$549=\"\",\"\",BB549/$C$549)","v":""},null,0]
[null,null,null,null,{"$f":"IF($C$550=\"\",\"\",F550/$C$550)","v":""},null,{"$f":"IF($C$550=\"\",\"\",H550/$C$550)","v":""},null,{"$f":"IF($C$550=\"\",\"\",J550/$C$550)","v":""},null,{"$f":"IF($C$550=\"\",\"\",L550/$C$550)","v":""},null,{"$f":"IF($C$550=\"\",\"\",N550/$C$550)","v":""},null,{"$f":"IF($C$550=\"\",\"\",P550/$C$550)","v":""},null,{"$f":"IF($C$550=\"\",\"\",R550/$C$550)","v":""},null,{"$f":"IF($C$550=\"\",\"\",T550/$C$550)","v":""},null,{"$f":"IF($C$550=\"\",\"\",V550/$C$550)","v":""},null,{"$f":"IF($C$550=\"\",\"\",X550/$C$550)","v":""},null,{"$f":"IF($C$550=\"\",\"\",Z550/$C$550)","v":""},null,{"$f":"IF($C$550=\"\",\"\",AB550/$C$550)","v":""},null,{"$f":"IF($C$550=\"\",\"\",AD550/$C$550)","v":""},null,{"$f":"IF($C$550=\"\",\"\",AF550/$C$550)","v":""},null,{"$f":"IF($C$550=\"\",\"\",AH550/$C$550)","v":""},null,{"$f":"IF($C$550=\"\",\"\",AJ550/$C$550)","v":""},null,{"$f":"IF($C$550=\"\",\"\",AL550/$C$550)","v":""},null,{"$f":"IF($C$550=\"\",\"\",AN550/$C$550)","v":""},null,{"$f":"IF($C$550=\"\",\"\",AP550/$C$550)","v":""},null,{"$f":"IF($C$550=\"\",\"\",AR550/$C$550)","v":""},null,{"$f":"IF($C$550=\"\",\"\",AT550/$C$550)","v":""},null,{"$f":"IF($C$550=\"\",\"\",AV550/$C$550)","v":""},null,{"$f":"IF($C$550=\"\",\"\",AX550/$C$550)","v":""},null,{"$f":"IF($C$550=\"\",\"\",AZ550/$C$550)","v":""},null,{"$f":"IF($C$550=\"\",\"\",BB550/$C$550)","v":""},null,0]
[null,null,null,null,{"$f":"IF($C$551=\"\",\"\",F551/$C$551)","v":""},null,{"$f":"IF($C$551=\"\",\"\",H551/$C$551)","v":""},null,{"$f":"IF($C$551=\"\",\"\",J551/$C$551)","v":""},null,{"$f":"IF($C$551=\"\",\"\",L551/$C$551)","v":""},null,{"$f":"IF($C$551=\"\",\"\",N551/$C$551)","v":""},null,{"$f":"IF($C$551=\"\",\"\",P551/$C$551)","v":""},null,{"$f":"IF($C$551=\"\",\"\",R551/$C$551)","v":""},null,{"$f":"IF($C$551=\"\",\"\",T551/$C$551)","v":""},null,{"$f":"IF($C$551=\"\",\"\",V551/$C$551)","v":""},null,{"$f":"IF($C$551=\"\",\"\",X551/$C$551)","v":""},null,{"$f":"IF($C$551=\"\",\"\",Z551/$C$551)","v":""},null,{"$f":"IF($C$551=\"\",\"\",AB551/$C$551)","v":""},null,{"$f":"IF($C$551=\"\",\"\",AD551/$C$551)","v":""},null,{"$f":"IF($C$551=\"\",\"\",AF551/$C$551)","v":""},null,{"$f":"IF($C$551=\"\",\"\",AH551/$C$551)","v":""},null,{"$f":"IF($C$551=\"\",\"\",AJ551/$C$551)","v":""},null,{"$f":"IF($C$551=\"\",\"\",AL551/$C$551)","v":""},null,{"$f":"IF($C$551=\"\",\"\",AN551/$C$551)","v":""},null,{"$f":"IF($C$551=\"\",\"\",AP551/$C$551)","v":""},null,{"$f":"IF($C$551=\"\",\"\",AR551/$C$551)","v":""},null,{"$f":"IF($C$551=\"\",\"\",AT551/$C$551)","v":""},null,{"$f":"IF($C$551=\"\",\"\",AV551/$C$551)","v":""},null,{"$f":"IF($C$551=\"\",\"\",AX551/$C$551)","v":""},null,{"$f":"IF($C$551=\"\",\"\",AZ551/$C$551)","v":""},null,{"$f":"IF($C$551=\"\",\"\",BB551/$C$551)","v":""},null,0]
[null,null,null,null,{"$f":"IF($C$552=\"\",\"\",F552/$C$552)","v":""},null,{"$f":"IF($C$552=\"\",\"\",H552/$C$552)","v":""},null,{"$f":"IF($C$552=\"\",\"\",J552/$C$552)","v":""},null,{"$f":"IF($C$552=\"\",\"\",L552/$C$552)","v":""},null,{"$f":"IF($C$552=\"\",\"\",N552/$C$552)","v":""},null,{"$f":"IF($C$552=\"\",\"\",P552/$C$552)","v":""},null,{"$f":"IF($C$552=\"\",\"\",R552/$C$552)","v":""},null,{"$f":"IF($C$552=\"\",\"\",T552/$C$552)","v":""},null,{"$f":"IF($C$552=\"\",\"\",V552/$C$552)","v":""},null,{"$f":"IF($C$552=\"\",\"\",X552/$C$552)","v":""},null,{"$f":"IF($C$552=\"\",\"\",Z552/$C$552)","v":""},null,{"$f":"IF($C$552=\"\",\"\",AB552/$C$552)","v":""},null,{"$f":"IF($C$552=\"\",\"\",AD552/$C$552)","v":""},null,{"$f":"IF($C$552=\"\",\"\",AF552/$C$552)","v":""},null,{"$f":"IF($C$552=\"\",\"\",AH552/$C$552)","v":""},null,{"$f":"IF($C$552=\"\",\"\",AJ552/$C$552)","v":""},null,{"$f":"IF($C$552=\"\",\"\",AL552/$C$552)","v":""},null,{"$f":"IF($C$552=\"\",\"\",AN552/$C$552)","v":""},null,{"$f":"IF($C$552=\"\",\"\",AP552/$C$552)","v":""},null,{"$f":"IF($C$552=\"\",\"\",AR552/$C$552)","v":""},null,{"$f":"IF($C$552=\"\",\"\",AT552/$C$552)","v":""},null,{"$f":"IF($C$552=\"\",\"\",AV552/$C$552)","v":""},null,{"$f":"IF($C$552=\"\",\"\",AX552/$C$552)","v":""},null,{"$f":"IF($C$552=\"\",\"\",AZ552/$C$552)","v":""},null,{"$f":"IF($C$552=\"\",\"\",BB552/$C$552)","v":""},null,0]
[null,null,null,null,{"$f":"IF($C$553=\"\",\"\",F553/$C$553)","v":""},null,{"$f":"IF($C$553=\"\",\"\",H553/$C$553)","v":""},null,{"$f":"IF($C$553=\"\",\"\",J553/$C$553)","v":""},null,{"$f":"IF($C$553=\"\",\"\",L553/$C$553)","v":""},null,{"$f":"IF($C$553=\"\",\"\",N553/$C$553)","v":""},null,{"$f":"IF($C$553=\"\",\"\",P553/$C$553)","v":""},null,{"$f":"IF($C$553=\"\",\"\",R553/$C$553)","v":""},null,{"$f":"IF($C$553=\"\",\"\",T553/$C$553)","v":""},null,{"$f":"IF($C$553=\"\",\"\",V553/$C$553)","v":""},null,{"$f":"IF($C$553=\"\",\"\",X553/$C$553)","v":""},null,{"$f":"IF($C$553=\"\",\"\",Z553/$C$553)","v":""},null,{"$f":"IF($C$553=\"\",\"\",AB553/$C$553)","v":""},null,{"$f":"IF($C$553=\"\",\"\",AD553/$C$553)","v":""},null,{"$f":"IF($C$553=\"\",\"\",AF553/$C$553)","v":""},null,{"$f":"IF($C$553=\"\",\"\",AH553/$C$553)","v":""},null,{"$f":"IF($C$553=\"\",\"\",AJ553/$C$553)","v":""},null,{"$f":"IF($C$553=\"\",\"\",AL553/$C$553)","v":""},null,{"$f":"IF($C$553=\"\",\"\",AN553/$C$553)","v":""},null,{"$f":"IF($C$553=\"\",\"\",AP553/$C$553)","v":""},null,{"$f":"IF($C$553=\"\",\"\",AR553/$C$553)","v":""},null,{"$f":"IF($C$553=\"\",\"\",AT553/$C$553)","v":""},null,{"$f":"IF($C$553=\"\",\"\",AV553/$C$553)","v":""},null,{"$f":"IF($C$553=\"\",\"\",AX553/$C$553)","v":""},null,{"$f":"IF($C$553=\"\",\"\",AZ553/$C$553)","v":""},null,{"$f":"IF($C$553=\"\",\"\",BB553/$C$553)","v":""},null,0]
[null,null,null,null,{"$f":"IF($C$554=\"\",\"\",F554/$C$554)","v":""},null,{"$f":"IF($C$554=\"\",\"\",H554/$C$554)","v":""},null,{"$f":"IF($C$554=\"\",\"\",J554/$C$554)","v":""},null,{"$f":"IF($C$554=\"\",\"\",L554/$C$554)","v":""},null,{"$f":"IF($C$554=\"\",\"\",N554/$C$554)","v":""},null,{"$f":"IF($C$554=\"\",\"\",P554/$C$554)","v":""},null,{"$f":"IF($C$554=\"\",\"\",R554/$C$554)","v":""},null,{"$f":"IF($C$554=\"\",\"\",T554/$C$554)","v":""},null,{"$f":"IF($C$554=\"\",\"\",V554/$C$554)","v":""},null,{"$f":"IF($C$554=\"\",\"\",X554/$C$554)","v":""},null,{"$f":"IF($C$554=\"\",\"\",Z554/$C$554)","v":""},null,{"$f":"IF($C$554=\"\",\"\",AB554/$C$554)","v":""},null,{"$f":"IF($C$554=\"\",\"\",AD554/$C$554)","v":""},null,{"$f":"IF($C$554=\"\",\"\",AF554/$C$554)","v":""},null,{"$f":"IF($C$554=\"\",\"\",AH554/$C$554)","v":""},null,{"$f":"IF($C$554=\"\",\"\",AJ554/$C$554)","v":""},null,{"$f":"IF($C$554=\"\",\"\",AL554/$C$554)","v":""},null,{"$f":"IF($C$554=\"\",\"\",AN554/$C$554)","v":""},null,{"$f":"IF($C$554=\"\",\"\",AP554/$C$554)","v":""},null,{"$f":"IF($C$554=\"\",\"\",AR554/$C$554)","v":""},null,{"$f":"IF($C$554=\"\",\"\",AT554/$C$554)","v":""},null,{"$f":"IF($C$554=\"\",\"\",AV554/$C$554)","v":""},null,{"$f":"IF($C$554=\"\",\"\",AX554/$C$554)","v":""},null,{"$f":"IF($C$554=\"\",\"\",AZ554/$C$554)","v":""},null,{"$f":"IF($C$554=\"\",\"\",BB554/$C$554)","v":""},null,0]
[null,null,null,null,{"$f":"IF($C$555=\"\",\"\",F555/$C$555)","v":""},null,{"$f":"IF($C$555=\"\",\"\",H555/$C$555)","v":""},null,{"$f":"IF($C$555=\"\",\"\",J555/$C$555)","v":""},null,{"$f":"IF($C$555=\"\",\"\",L555/$C$555)","v":""},null,{"$f":"IF($C$555=\"\",\"\",N555/$C$555)","v":""},null,{"$f":"IF($C$555=\"\",\"\",P555/$C$555)","v":""},null,{"$f":"IF($C$555=\"\",\"\",R555/$C$555)","v":""},null,{"$f":"IF($C$555=\"\",\"\",T555/$C$555)","v":""},null,{"$f":"IF($C$555=\"\",\"\",V555/$C$555)","v":""},null,{"$f":"IF($C$555=\"\",\"\",X555/$C$555)","v":""},null,{"$f":"IF($C$555=\"\",\"\",Z555/$C$555)","v":""},null,{"$f":"IF($C$555=\"\",\"\",AB555/$C$555)","v":""},null,{"$f":"IF($C$555=\"\",\"\",AD555/$C$555)","v":""},null,{"$f":"IF($C$555=\"\",\"\",AF555/$C$555)","v":""},null,{"$f":"IF($C$555=\"\",\"\",AH555/$C$555)","v":""},null,{"$f":"IF($C$555=\"\",\"\",AJ555/$C$555)","v":""},null,{"$f":"IF($C$555=\"\",\"\",AL555/$C$555)","v":""},null,{"$f":"IF($C$555=\"\",\"\",AN555/$C$555)","v":""},null,{"$f":"IF($C$555=\"\",\"\",AP555/$C$555)","v":""},null,{"$f":"IF($C$555=\"\",\"\",AR555/$C$555)","v":""},null,{"$f":"IF($C$555=\"\",\"\",AT555/$C$555)","v":""},null,{"$f":"IF($C$555=\"\",\"\",AV555/$C$555)","v":""},null,{"$f":"IF($C$555=\"\",\"\",AX555/$C$555)","v":""},null,{"$f":"IF($C$555=\"\",\"\",AZ555/$C$555)","v":""},null,{"$f":"IF($C$555=\"\",\"\",BB555/$C$555)","v":""},null,0]
[null,null,null,null,{"$f":"IF($C$556=\"\",\"\",F556/$C$556)","v":""},null,{"$f":"IF($C$556=\"\",\"\",H556/$C$556)","v":""},null,{"$f":"IF($C$556=\"\",\"\",J556/$C$556)","v":""},null,{"$f":"IF($C$556=\"\",\"\",L556/$C$556)","v":""},null,{"$f":"IF($C$556=\"\",\"\",N556/$C$556)","v":""},null,{"$f":"IF($C$556=\"\",\"\",P556/$C$556)","v":""},null,{"$f":"IF($C$556=\"\",\"\",R556/$C$556)","v":""},null,{"$f":"IF($C$556=\"\",\"\",T556/$C$556)","v":""},null,{"$f":"IF($C$556=\"\",\"\",V556/$C$556)","v":""},null,{"$f":"IF($C$556=\"\",\"\",X556/$C$556)","v":""},null,{"$f":"IF($C$556=\"\",\"\",Z556/$C$556)","v":""},null,{"$f":"IF($C$556=\"\",\"\",AB556/$C$556)","v":""},null,{"$f":"IF($C$556=\"\",\"\",AD556/$C$556)","v":""},null,{"$f":"IF($C$556=\"\",\"\",AF556/$C$556)","v":""},null,{"$f":"IF($C$556=\"\",\"\",AH556/$C$556)","v":""},null,{"$f":"IF($C$556=\"\",\"\",AJ556/$C$556)","v":""},null,{"$f":"IF($C$556=\"\",\"\",AL556/$C$556)","v":""},null,{"$f":"IF($C$556=\"\",\"\",AN556/$C$556)","v":""},null,{"$f":"IF($C$556=\"\",\"\",AP556/$C$556)","v":""},null,{"$f":"IF($C$556=\"\",\"\",AR556/$C$556)","v":""},null,{"$f":"IF($C$556=\"\",\"\",AT556/$C$556)","v":""},null,{"$f":"IF($C$556=\"\",\"\",AV556/$C$556)","v":""},null,{"$f":"IF($C$556=\"\",\"\",AX556/$C$556)","v":""},null,{"$f":"IF($C$556=\"\",\"\",AZ556/$C$556)","v":""},null,{"$f":"IF($C$556=\"\",\"\",BB556/$C$556)","v":""},null,0]
[null,null,null,null,{"$f":"IF($C$557=\"\",\"\",F557/$C$557)","v":""},null,{"$f":"IF($C$557=\"\",\"\",H557/$C$557)","v":""},null,{"$f":"IF($C$557=\"\",\"\",J557/$C$557)","v":""},null,{"$f":"IF($C$557=\"\",\"\",L557/$C$557)","v":""},null,{"$f":"IF($C$557=\"\",\"\",N557/$C$557)","v":""},null,{"$f":"IF($C$557=\"\",\"\",P557/$C$557)","v":""},null,{"$f":"IF($C$557=\"\",\"\",R557/$C$557)","v":""},null,{"$f":"IF($C$557=\"\",\"\",T557/$C$557)","v":""},null,{"$f":"IF($C$557=\"\",\"\",V557/$C$557)","v":""},null,{"$f":"IF($C$557=\"\",\"\",X557/$C$557)","v":""},null,{"$f":"IF($C$557=\"\",\"\",Z557/$C$557)","v":""},null,{"$f":"IF($C$557=\"\",\"\",AB557/$C$557)","v":""},null,{"$f":"IF($C$557=\"\",\"\",AD557/$C$557)","v":""},null,{"$f":"IF($C$557=\"\",\"\",AF557/$C$557)","v":""},null,{"$f":"IF($C$557=\"\",\"\",AH557/$C$557)","v":""},null,{"$f":"IF($C$557=\"\",\"\",AJ557/$C$557)","v":""},null,{"$f":"IF($C$557=\"\",\"\",AL557/$C$557)","v":""},null,{"$f":"IF($C$557=\"\",\"\",AN557/$C$557)","v":""},null,{"$f":"IF($C$557=\"\",\"\",AP557/$C$557)","v":""},null,{"$f":"IF($C$557=\"\",\"\",AR557/$C$557)","v":""},null,{"$f":"IF($C$557=\"\",\"\",AT557/$C$557)","v":""},null,{"$f":"IF($C$557=\"\",\"\",AV557/$C$557)","v":""},null,{"$f":"IF($C$557=\"\",\"\",AX557/$C$557)","v":""},null,{"$f":"IF($C$557=\"\",\"\",AZ557/$C$557)","v":""},null,{"$f":"IF($C$557=\"\",\"\",BB557/$C$557)","v":""},null,0]
[null,null,null,null,{"$f":"IF($C$558=\"\",\"\",F558/$C$558)","v":""},null,{"$f":"IF($C$558=\"\",\"\",H558/$C$558)","v":""},null,{"$f":"IF($C$558=\"\",\"\",J558/$C$558)","v":""},null,{"$f":"IF($C$558=\"\",\"\",L558/$C$558)","v":""},null,{"$f":"IF($C$558=\"\",\"\",N558/$C$558)","v":""},null,{"$f":"IF($C$558=\"\",\"\",P558/$C$558)","v":""},null,{"$f":"IF($C$558=\"\",\"\",R558/$C$558)","v":""},null,{"$f":"IF($C$558=\"\",\"\",T558/$C$558)","v":""},null,{"$f":"IF($C$558=\"\",\"\",V558/$C$558)","v":""},null,{"$f":"IF($C$558=\"\",\"\",X558/$C$558)","v":""},null,{"$f":"IF($C$558=\"\",\"\",Z558/$C$558)","v":""},null,{"$f":"IF($C$558=\"\",\"\",AB558/$C$558)","v":""},null,{"$f":"IF($C$558=\"\",\"\",AD558/$C$558)","v":""},null,{"$f":"IF($C$558=\"\",\"\",AF558/$C$558)","v":""},null,{"$f":"IF($C$558=\"\",\"\",AH558/$C$558)","v":""},null,{"$f":"IF($C$558=\"\",\"\",AJ558/$C$558)","v":""},null,{"$f":"IF($C$558=\"\",\"\",AL558/$C$558)","v":""},null,{"$f":"IF($C$558=\"\",\"\",AN558/$C$558)","v":""},null,{"$f":"IF($C$558=\"\",\"\",AP558/$C$558)","v":""},null,{"$f":"IF($C$558=\"\",\"\",AR558/$C$558)","v":""},null,{"$f":"IF($C$558=\"\",\"\",AT558/$C$558)","v":""},null,{"$f":"IF($C$558=\"\",\"\",AV558/$C$558)","v":""},null,{"$f":"IF($C$558=\"\",\"\",AX558/$C$558)","v":""},null,{"$f":"IF($C$558=\"\",\"\",AZ558/$C$558)","v":""},null,{"$f":"IF($C$558=\"\",\"\",BB558/$C$558)","v":""},null,0]
[null,null,null,null,{"$f":"IF($C$559=\"\",\"\",F559/$C$559)","v":""},null,{"$f":"IF($C$559=\"\",\"\",H559/$C$559)","v":""},null,{"$f":"IF($C$559=\"\",\"\",J559/$C$559)","v":""},null,{"$f":"IF($C$559=\"\",\"\",L559/$C$559)","v":""},null,{"$f":"IF($C$559=\"\",\"\",N559/$C$559)","v":""},null,{"$f":"IF($C$559=\"\",\"\",P559/$C$559)","v":""},null,{"$f":"IF($C$559=\"\",\"\",R559/$C$559)","v":""},null,{"$f":"IF($C$559=\"\",\"\",T559/$C$559)","v":""},null,{"$f":"IF($C$559=\"\",\"\",V559/$C$559)","v":""},null,{"$f":"IF($C$559=\"\",\"\",X559/$C$559)","v":""},null,{"$f":"IF($C$559=\"\",\"\",Z559/$C$559)","v":""},null,{"$f":"IF($C$559=\"\",\"\",AB559/$C$559)","v":""},null,{"$f":"IF($C$559=\"\",\"\",AD559/$C$559)","v":""},null,{"$f":"IF($C$559=\"\",\"\",AF559/$C$559)","v":""},null,{"$f":"IF($C$559=\"\",\"\",AH559/$C$559)","v":""},null,{"$f":"IF($C$559=\"\",\"\",AJ559/$C$559)","v":""},null,{"$f":"IF($C$559=\"\",\"\",AL559/$C$559)","v":""},null,{"$f":"IF($C$559=\"\",\"\",AN559/$C$559)","v":""},null,{"$f":"IF($C$559=\"\",\"\",AP559/$C$559)","v":""},null,{"$f":"IF($C$559=\"\",\"\",AR559/$C$559)","v":""},null,{"$f":"IF($C$559=\"\",\"\",AT559/$C$559)","v":""},null,{"$f":"IF($C$559=\"\",\"\",AV559/$C$559)","v":""},null,{"$f":"IF($C$559=\"\",\"\",AX559/$C$559)","v":""},null,{"$f":"IF($C$559=\"\",\"\",AZ559/$C$559)","v":""},null,{"$f":"IF($C$559=\"\",\"\",BB559/$C$559)","v":""},null,0]
[null,null,null,null,{"$f":"IF($C$560=\"\",\"\",F560/$C$560)","v":""},null,{"$f":"IF($C$560=\"\",\"\",H560/$C$560)","v":""},null,{"$f":"IF($C$560=\"\",\"\",J560/$C$560)","v":""},null,{"$f":"IF($C$560=\"\",\"\",L560/$C$560)","v":""},null,{"$f":"IF($C$560=\"\",\"\",N560/$C$560)","v":""},null,{"$f":"IF($C$560=\"\",\"\",P560/$C$560)","v":""},null,{"$f":"IF($C$560=\"\",\"\",R560/$C$560)","v":""},null,{"$f":"IF($C$560=\"\",\"\",T560/$C$560)","v":""},null,{"$f":"IF($C$560=\"\",\"\",V560/$C$560)","v":""},null,{"$f":"IF($C$560=\"\",\"\",X560/$C$560)","v":""},null,{"$f":"IF($C$560=\"\",\"\",Z560/$C$560)","v":""},null,{"$f":"IF($C$560=\"\",\"\",AB560/$C$560)","v":""},null,{"$f":"IF($C$560=\"\",\"\",AD560/$C$560)","v":""},null,{"$f":"IF($C$560=\"\",\"\",AF560/$C$560)","v":""},null,{"$f":"IF($C$560=\"\",\"\",AH560/$C$560)","v":""},null,{"$f":"IF($C$560=\"\",\"\",AJ560/$C$560)","v":""},null,{"$f":"IF($C$560=\"\",\"\",AL560/$C$560)","v":""},null,{"$f":"IF($C$560=\"\",\"\",AN560/$C$560)","v":""},null,{"$f":"IF($C$560=\"\",\"\",AP560/$C$560)","v":""},null,{"$f":"IF($C$560=\"\",\"\",AR560/$C$560)","v":""},null,{"$f":"IF($C$560=\"\",\"\",AT560/$C$560)","v":""},null,{"$f":"IF($C$560=\"\",\"\",AV560/$C$560)","v":""},null,{"$f":"IF($C$560=\"\",\"\",AX560/$C$560)","v":""},null,{"$f":"IF($C$560=\"\",\"\",AZ560/$C$560)","v":""},null,{"$f":"IF($C$560=\"\",\"\",BB560/$C$560)","v":""},null,0]
[null,null,null,null,{"$f":"IF($C$561=\"\",\"\",F561/$C$561)","v":""},null,{"$f":"IF($C$561=\"\",\"\",H561/$C$561)","v":""},null,{"$f":"IF($C$561=\"\",\"\",J561/$C$561)","v":""},null,{"$f":"IF($C$561=\"\",\"\",L561/$C$561)","v":""},null,{"$f":"IF($C$561=\"\",\"\",N561/$C$561)","v":""},null,{"$f":"IF($C$561=\"\",\"\",P561/$C$561)","v":""},null,{"$f":"IF($C$561=\"\",\"\",R561/$C$561)","v":""},null,{"$f":"IF($C$561=\"\",\"\",T561/$C$561)","v":""},null,{"$f":"IF($C$561=\"\",\"\",V561/$C$561)","v":""},null,{"$f":"IF($C$561=\"\",\"\",X561/$C$561)","v":""},null,{"$f":"IF($C$561=\"\",\"\",Z561/$C$561)","v":""},null,{"$f":"IF($C$561=\"\",\"\",AB561/$C$561)","v":""},null,{"$f":"IF($C$561=\"\",\"\",AD561/$C$561)","v":""},null,{"$f":"IF($C$561=\"\",\"\",AF561/$C$561)","v":""},null,{"$f":"IF($C$561=\"\",\"\",AH561/$C$561)","v":""},null,{"$f":"IF($C$561=\"\",\"\",AJ561/$C$561)","v":""},null,{"$f":"IF($C$561=\"\",\"\",AL561/$C$561)","v":""},null,{"$f":"IF($C$561=\"\",\"\",AN561/$C$561)","v":""},null,{"$f":"IF($C$561=\"\",\"\",AP561/$C$561)","v":""},null,{"$f":"IF($C$561=\"\",\"\",AR561/$C$561)","v":""},null,{"$f":"IF($C$561=\"\",\"\",AT561/$C$561)","v":""},null,{"$f":"IF($C$561=\"\",\"\",AV561/$C$561)","v":""},null,{"$f":"IF($C$561=\"\",\"\",AX561/$C$561)","v":""},null,{"$f":"IF($C$561=\"\",\"\",AZ561/$C$561)","v":""},null,{"$f":"IF($C$561=\"\",\"\",BB561/$C$561)","v":""},null,0]
[null,null,null,null,{"$f":"IF($C$562=\"\",\"\",F562/$C$562)","v":""},null,{"$f":"IF($C$562=\"\",\"\",H562/$C$562)","v":""},null,{"$f":"IF($C$562=\"\",\"\",J562/$C$562)","v":""},null,{"$f":"IF($C$562=\"\",\"\",L562/$C$562)","v":""},null,{"$f":"IF($C$562=\"\",\"\",N562/$C$562)","v":""},null,{"$f":"IF($C$562=\"\",\"\",P562/$C$562)","v":""},null,{"$f":"IF($C$562=\"\",\"\",R562/$C$562)","v":""},null,{"$f":"IF($C$562=\"\",\"\",T562/$C$562)","v":""},null,{"$f":"IF($C$562=\"\",\"\",V562/$C$562)","v":""},null,{"$f":"IF($C$562=\"\",\"\",X562/$C$562)","v":""},null,{"$f":"IF($C$562=\"\",\"\",Z562/$C$562)","v":""},null,{"$f":"IF($C$562=\"\",\"\",AB562/$C$562)","v":""},null,{"$f":"IF($C$562=\"\",\"\",AD562/$C$562)","v":""},null,{"$f":"IF($C$562=\"\",\"\",AF562/$C$562)","v":""},null,{"$f":"IF($C$562=\"\",\"\",AH562/$C$562)","v":""},null,{"$f":"IF($C$562=\"\",\"\",AJ562/$C$562)","v":""},null,{"$f":"IF($C$562=\"\",\"\",AL562/$C$562)","v":""},null,{"$f":"IF($C$562=\"\",\"\",AN562/$C$562)","v":""},null,{"$f":"IF($C$562=\"\",\"\",AP562/$C$562)","v":""},null,{"$f":"IF($C$562=\"\",\"\",AR562/$C$562)","v":""},null,{"$f":"IF($C$562=\"\",\"\",AT562/$C$562)","v":""},null,{"$f":"IF($C$562=\"\",\"\",AV562/$C$562)","v":""},null,{"$f":"IF($C$562=\"\",\"\",AX562/$C$562)","v":""},null,{"$f":"IF($C$562=\"\",\"\",AZ562/$C$562)","v":""},null,{"$f":"IF($C$562=\"\",\"\",BB562/$C$562)","v":""},null,0]
[null,null,null,null,{"$f":"IF($C$563=\"\",\"\",F563/$C$563)","v":""},null,{"$f":"IF($C$563=\"\",\"\",H563/$C$563)","v":""},null,{"$f":"IF($C$563=\"\",\"\",J563/$C$563)","v":""},null,{"$f":"IF($C$563=\"\",\"\",L563/$C$563)","v":""},null,{"$f":"IF($C$563=\"\",\"\",N563/$C$563)","v":""},null,{"$f":"IF($C$563=\"\",\"\",P563/$C$563)","v":""},null,{"$f":"IF($C$563=\"\",\"\",R563/$C$563)","v":""},null,{"$f":"IF($C$563=\"\",\"\",T563/$C$563)","v":""},null,{"$f":"IF($C$563=\"\",\"\",V563/$C$563)","v":""},null,{"$f":"IF($C$563=\"\",\"\",X563/$C$563)","v":""},null,{"$f":"IF($C$563=\"\",\"\",Z563/$C$563)","v":""},null,{"$f":"IF($C$563=\"\",\"\",AB563/$C$563)","v":""},null,{"$f":"IF($C$563=\"\",\"\",AD563/$C$563)","v":""},null,{"$f":"IF($C$563=\"\",\"\",AF563/$C$563)","v":""},null,{"$f":"IF($C$563=\"\",\"\",AH563/$C$563)","v":""},null,{"$f":"IF($C$563=\"\",\"\",AJ563/$C$563)","v":""},null,{"$f":"IF($C$563=\"\",\"\",AL563/$C$563)","v":""},null,{"$f":"IF($C$563=\"\",\"\",AN563/$C$563)","v":""},null,{"$f":"IF($C$563=\"\",\"\",AP563/$C$563)","v":""},null,{"$f":"IF($C$563=\"\",\"\",AR563/$C$563)","v":""},null,{"$f":"IF($C$563=\"\",\"\",AT563/$C$563)","v":""},null,{"$f":"IF($C$563=\"\",\"\",AV563/$C$563)","v":""},null,{"$f":"IF($C$563=\"\",\"\",AX563/$C$563)","v":""},null,{"$f":"IF($C$563=\"\",\"\",AZ563/$C$563)","v":""},null,{"$f":"IF($C$563=\"\",\"\",BB563/$C$563)","v":""},null,0]
[null,null,null,null,{"$f":"IF($C$564=\"\",\"\",F564/$C$564)","v":""},null,{"$f":"IF($C$564=\"\",\"\",H564/$C$564)","v":""},null,{"$f":"IF($C$564=\"\",\"\",J564/$C$564)","v":""},null,{"$f":"IF($C$564=\"\",\"\",L564/$C$564)","v":""},null,{"$f":"IF($C$564=\"\",\"\",N564/$C$564)","v":""},null,{"$f":"IF($C$564=\"\",\"\",P564/$C$564)","v":""},null,{"$f":"IF($C$564=\"\",\"\",R564/$C$564)","v":""},null,{"$f":"IF($C$564=\"\",\"\",T564/$C$564)","v":""},null,{"$f":"IF($C$564=\"\",\"\",V564/$C$564)","v":""},null,{"$f":"IF($C$564=\"\",\"\",X564/$C$564)","v":""},null,{"$f":"IF($C$564=\"\",\"\",Z564/$C$564)","v":""},null,{"$f":"IF($C$564=\"\",\"\",AB564/$C$564)","v":""},null,{"$f":"IF($C$564=\"\",\"\",AD564/$C$564)","v":""},null,{"$f":"IF($C$564=\"\",\"\",AF564/$C$564)","v":""},null,{"$f":"IF($C$564=\"\",\"\",AH564/$C$564)","v":""},null,{"$f":"IF($C$564=\"\",\"\",AJ564/$C$564)","v":""},null,{"$f":"IF($C$564=\"\",\"\",AL564/$C$564)","v":""},null,{"$f":"IF($C$564=\"\",\"\",AN564/$C$564)","v":""},null,{"$f":"IF($C$564=\"\",\"\",AP564/$C$564)","v":""},null,{"$f":"IF($C$564=\"\",\"\",AR564/$C$564)","v":""},null,{"$f":"IF($C$564=\"\",\"\",AT564/$C$564)","v":""},null,{"$f":"IF($C$564=\"\",\"\",AV564/$C$564)","v":""},null,{"$f":"IF($C$564=\"\",\"\",AX564/$C$564)","v":""},null,{"$f":"IF($C$564=\"\",\"\",AZ564/$C$564)","v":""},null,{"$f":"IF($C$564=\"\",\"\",BB564/$C$564)","v":""},null,0]
[null,null,null,null,{"$f":"IF($C$565=\"\",\"\",F565/$C$565)","v":""},null,{"$f":"IF($C$565=\"\",\"\",H565/$C$565)","v":""},null,{"$f":"IF($C$565=\"\",\"\",J565/$C$565)","v":""},null,{"$f":"IF($C$565=\"\",\"\",L565/$C$565)","v":""},null,{"$f":"IF($C$565=\"\",\"\",N565/$C$565)","v":""},null,{"$f":"IF($C$565=\"\",\"\",P565/$C$565)","v":""},null,{"$f":"IF($C$565=\"\",\"\",R565/$C$565)","v":""},null,{"$f":"IF($C$565=\"\",\"\",T565/$C$565)","v":""},null,{"$f":"IF($C$565=\"\",\"\",V565/$C$565)","v":""},null,{"$f":"IF($C$565=\"\",\"\",X565/$C$565)","v":""},null,{"$f":"IF($C$565=\"\",\"\",Z565/$C$565)","v":""},null,{"$f":"IF($C$565=\"\",\"\",AB565/$C$565)","v":""},null,{"$f":"IF($C$565=\"\",\"\",AD565/$C$565)","v":""},null,{"$f":"IF($C$565=\"\",\"\",AF565/$C$565)","v":""},null,{"$f":"IF($C$565=\"\",\"\",AH565/$C$565)","v":""},null,{"$f":"IF($C$565=\"\",\"\",AJ565/$C$565)","v":""},null,{"$f":"IF($C$565=\"\",\"\",AL565/$C$565)","v":""},null,{"$f":"IF($C$565=\"\",\"\",AN565/$C$565)","v":""},null,{"$f":"IF($C$565=\"\",\"\",AP565/$C$565)","v":""},null,{"$f":"IF($C$565=\"\",\"\",AR565/$C$565)","v":""},null,{"$f":"IF($C$565=\"\",\"\",AT565/$C$565)","v":""},null,{"$f":"IF($C$565=\"\",\"\",AV565/$C$565)","v":""},null,{"$f":"IF($C$565=\"\",\"\",AX565/$C$565)","v":""},null,{"$f":"IF($C$565=\"\",\"\",AZ565/$C$565)","v":""},null,{"$f":"IF($C$565=\"\",\"\",BB565/$C$565)","v":""},null,0]
[null,null,null,null,{"$f":"IF($C$566=\"\",\"\",F566/$C$566)","v":""},null,{"$f":"IF($C$566=\"\",\"\",H566/$C$566)","v":""},null,{"$f":"IF($C$566=\"\",\"\",J566/$C$566)","v":""},null,{"$f":"IF($C$566=\"\",\"\",L566/$C$566)","v":""},null,{"$f":"IF($C$566=\"\",\"\",N566/$C$566)","v":""},null,{"$f":"IF($C$566=\"\",\"\",P566/$C$566)","v":""},null,{"$f":"IF($C$566=\"\",\"\",R566/$C$566)","v":""},null,{"$f":"IF($C$566=\"\",\"\",T566/$C$566)","v":""},null,{"$f":"IF($C$566=\"\",\"\",V566/$C$566)","v":""},null,{"$f":"IF($C$566=\"\",\"\",X566/$C$566)","v":""},null,{"$f":"IF($C$566=\"\",\"\",Z566/$C$566)","v":""},null,{"$f":"IF($C$566=\"\",\"\",AB566/$C$566)","v":""},null,{"$f":"IF($C$566=\"\",\"\",AD566/$C$566)","v":""},null,{"$f":"IF($C$566=\"\",\"\",AF566/$C$566)","v":""},null,{"$f":"IF($C$566=\"\",\"\",AH566/$C$566)","v":""},null,{"$f":"IF($C$566=\"\",\"\",AJ566/$C$566)","v":""},null,{"$f":"IF($C$566=\"\",\"\",AL566/$C$566)","v":""},null,{"$f":"IF($C$566=\"\",\"\",AN566/$C$566)","v":""},null,{"$f":"IF($C$566=\"\",\"\",AP566/$C$566)","v":""},null,{"$f":"IF($C$566=\"\",\"\",AR566/$C$566)","v":""},null,{"$f":"IF($C$566=\"\",\"\",AT566/$C$566)","v":""},null,{"$f":"IF($C$566=\"\",\"\",AV566/$C$566)","v":""},null,{"$f":"IF($C$566=\"\",\"\",AX566/$C$566)","v":""},null,{"$f":"IF($C$566=\"\",\"\",AZ566/$C$566)","v":""},null,{"$f":"IF($C$566=\"\",\"\",BB566/$C$566)","v":""},null,0]
[null,null,null,null,{"$f":"IF($C$567=\"\",\"\",F567/$C$567)","v":""},null,{"$f":"IF($C$567=\"\",\"\",H567/$C$567)","v":""},null,{"$f":"IF($C$567=\"\",\"\",J567/$C$567)","v":""},null,{"$f":"IF($C$567=\"\",\"\",L567/$C$567)","v":""},null,{"$f":"IF($C$567=\"\",\"\",N567/$C$567)","v":""},null,{"$f":"IF($C$567=\"\",\"\",P567/$C$567)","v":""},null,{"$f":"IF($C$567=\"\",\"\",R567/$C$567)","v":""},null,{"$f":"IF($C$567=\"\",\"\",T567/$C$567)","v":""},null,{"$f":"IF($C$567=\"\",\"\",V567/$C$567)","v":""},null,{"$f":"IF($C$567=\"\",\"\",X567/$C$567)","v":""},null,{"$f":"IF($C$567=\"\",\"\",Z567/$C$567)","v":""},null,{"$f":"IF($C$567=\"\",\"\",AB567/$C$567)","v":""},null,{"$f":"IF($C$567=\"\",\"\",AD567/$C$567)","v":""},null,{"$f":"IF($C$567=\"\",\"\",AF567/$C$567)","v":""},null,{"$f":"IF($C$567=\"\",\"\",AH567/$C$567)","v":""},null,{"$f":"IF($C$567=\"\",\"\",AJ567/$C$567)","v":""},null,{"$f":"IF($C$567=\"\",\"\",AL567/$C$567)","v":""},null,{"$f":"IF($C$567=\"\",\"\",AN567/$C$567)","v":""},null,{"$f":"IF($C$567=\"\",\"\",AP567/$C$567)","v":""},null,{"$f":"IF($C$567=\"\",\"\",AR567/$C$567)","v":""},null,{"$f":"IF($C$567=\"\",\"\",AT567/$C$567)","v":""},null,{"$f":"IF($C$567=\"\",\"\",AV567/$C$567)","v":""},null,{"$f":"IF($C$567=\"\",\"\",AX567/$C$567)","v":""},null,{"$f":"IF($C$567=\"\",\"\",AZ567/$C$567)","v":""},null,{"$f":"IF($C$567=\"\",\"\",BB567/$C$567)","v":""},null,0]
[null,null,null,null,{"$f":"IF($C$568=\"\",\"\",F568/$C$568)","v":""},null,{"$f":"IF($C$568=\"\",\"\",H568/$C$568)","v":""},null,{"$f":"IF($C$568=\"\",\"\",J568/$C$568)","v":""},null,{"$f":"IF($C$568=\"\",\"\",L568/$C$568)","v":""},null,{"$f":"IF($C$568=\"\",\"\",N568/$C$568)","v":""},null,{"$f":"IF($C$568=\"\",\"\",P568/$C$568)","v":""},null,{"$f":"IF($C$568=\"\",\"\",R568/$C$568)","v":""},null,{"$f":"IF($C$568=\"\",\"\",T568/$C$568)","v":""},null,{"$f":"IF($C$568=\"\",\"\",V568/$C$568)","v":""},null,{"$f":"IF($C$568=\"\",\"\",X568/$C$568)","v":""},null,{"$f":"IF($C$568=\"\",\"\",Z568/$C$568)","v":""},null,{"$f":"IF($C$568=\"\",\"\",AB568/$C$568)","v":""},null,{"$f":"IF($C$568=\"\",\"\",AD568/$C$568)","v":""},null,{"$f":"IF($C$568=\"\",\"\",AF568/$C$568)","v":""},null,{"$f":"IF($C$568=\"\",\"\",AH568/$C$568)","v":""},null,{"$f":"IF($C$568=\"\",\"\",AJ568/$C$568)","v":""},null,{"$f":"IF($C$568=\"\",\"\",AL568/$C$568)","v":""},null,{"$f":"IF($C$568=\"\",\"\",AN568/$C$568)","v":""},null,{"$f":"IF($C$568=\"\",\"\",AP568/$C$568)","v":""},null,{"$f":"IF($C$568=\"\",\"\",AR568/$C$568)","v":""},null,{"$f":"IF($C$568=\"\",\"\",AT568/$C$568)","v":""},null,{"$f":"IF($C$568=\"\",\"\",AV568/$C$568)","v":""},null,{"$f":"IF($C$568=\"\",\"\",AX568/$C$568)","v":""},null,{"$f":"IF($C$568=\"\",\"\",AZ568/$C$568)","v":""},null,{"$f":"IF($C$568=\"\",\"\",BB568/$C$568)","v":""},null,0]
[null,null,null,null,{"$f":"IF($C$569=\"\",\"\",F569/$C$569)","v":""},null,{"$f":"IF($C$569=\"\",\"\",H569/$C$569)","v":""},null,{"$f":"IF($C$569=\"\",\"\",J569/$C$569)","v":""},null,{"$f":"IF($C$569=\"\",\"\",L569/$C$569)","v":""},null,{"$f":"IF($C$569=\"\",\"\",N569/$C$569)","v":""},null,{"$f":"IF($C$569=\"\",\"\",P569/$C$569)","v":""},null,{"$f":"IF($C$569=\"\",\"\",R569/$C$569)","v":""},null,{"$f":"IF($C$569=\"\",\"\",T569/$C$569)","v":""},null,{"$f":"IF($C$569=\"\",\"\",V569/$C$569)","v":""},null,{"$f":"IF($C$569=\"\",\"\",X569/$C$569)","v":""},null,{"$f":"IF($C$569=\"\",\"\",Z569/$C$569)","v":""},null,{"$f":"IF($C$569=\"\",\"\",AB569/$C$569)","v":""},null,{"$f":"IF($C$569=\"\",\"\",AD569/$C$569)","v":""},null,{"$f":"IF($C$569=\"\",\"\",AF569/$C$569)","v":""},null,{"$f":"IF($C$569=\"\",\"\",AH569/$C$569)","v":""},null,{"$f":"IF($C$569=\"\",\"\",AJ569/$C$569)","v":""},null,{"$f":"IF($C$569=\"\",\"\",AL569/$C$569)","v":""},null,{"$f":"IF($C$569=\"\",\"\",AN569/$C$569)","v":""},null,{"$f":"IF($C$569=\"\",\"\",AP569/$C$569)","v":""},null,{"$f":"IF($C$569=\"\",\"\",AR569/$C$569)","v":""},null,{"$f":"IF($C$569=\"\",\"\",AT569/$C$569)","v":""},null,{"$f":"IF($C$569=\"\",\"\",AV569/$C$569)","v":""},null,{"$f":"IF($C$569=\"\",\"\",AX569/$C$569)","v":""},null,{"$f":"IF($C$569=\"\",\"\",AZ569/$C$569)","v":""},null,{"$f":"IF($C$569=\"\",\"\",BB569/$C$569)","v":""},null,0]
[null,null,null,null,{"$f":"IF($C$570=\"\",\"\",F570/$C$570)","v":""},null,{"$f":"IF($C$570=\"\",\"\",H570/$C$570)","v":""},null,{"$f":"IF($C$570=\"\",\"\",J570/$C$570)","v":""},null,{"$f":"IF($C$570=\"\",\"\",L570/$C$570)","v":""},null,{"$f":"IF($C$570=\"\",\"\",N570/$C$570)","v":""},null,{"$f":"IF($C$570=\"\",\"\",P570/$C$570)","v":""},null,{"$f":"IF($C$570=\"\",\"\",R570/$C$570)","v":""},null,{"$f":"IF($C$570=\"\",\"\",T570/$C$570)","v":""},null,{"$f":"IF($C$570=\"\",\"\",V570/$C$570)","v":""},null,{"$f":"IF($C$570=\"\",\"\",X570/$C$570)","v":""},null,{"$f":"IF($C$570=\"\",\"\",Z570/$C$570)","v":""},null,{"$f":"IF($C$570=\"\",\"\",AB570/$C$570)","v":""},null,{"$f":"IF($C$570=\"\",\"\",AD570/$C$570)","v":""},null,{"$f":"IF($C$570=\"\",\"\",AF570/$C$570)","v":""},null,{"$f":"IF($C$570=\"\",\"\",AH570/$C$570)","v":""},null,{"$f":"IF($C$570=\"\",\"\",AJ570/$C$570)","v":""},null,{"$f":"IF($C$570=\"\",\"\",AL570/$C$570)","v":""},null,{"$f":"IF($C$570=\"\",\"\",AN570/$C$570)","v":""},null,{"$f":"IF($C$570=\"\",\"\",AP570/$C$570)","v":""},null,{"$f":"IF($C$570=\"\",\"\",AR570/$C$570)","v":""},null,{"$f":"IF($C$570=\"\",\"\",AT570/$C$570)","v":""},null,{"$f":"IF($C$570=\"\",\"\",AV570/$C$570)","v":""},null,{"$f":"IF($C$570=\"\",\"\",AX570/$C$570)","v":""},null,{"$f":"IF($C$570=\"\",\"\",AZ570/$C$570)","v":""},null,{"$f":"IF($C$570=\"\",\"\",BB570/$C$570)","v":""},null,0]
[null,null,null,null,{"$f":"IF($C$571=\"\",\"\",F571/$C$571)","v":""},null,{"$f":"IF($C$571=\"\",\"\",H571/$C$571)","v":""},null,{"$f":"IF($C$571=\"\",\"\",J571/$C$571)","v":""},null,{"$f":"IF($C$571=\"\",\"\",L571/$C$571)","v":""},null,{"$f":"IF($C$571=\"\",\"\",N571/$C$571)","v":""},null,{"$f":"IF($C$571=\"\",\"\",P571/$C$571)","v":""},null,{"$f":"IF($C$571=\"\",\"\",R571/$C$571)","v":""},null,{"$f":"IF($C$571=\"\",\"\",T571/$C$571)","v":""},null,{"$f":"IF($C$571=\"\",\"\",V571/$C$571)","v":""},null,{"$f":"IF($C$571=\"\",\"\",X571/$C$571)","v":""},null,{"$f":"IF($C$571=\"\",\"\",Z571/$C$571)","v":""},null,{"$f":"IF($C$571=\"\",\"\",AB571/$C$571)","v":""},null,{"$f":"IF($C$571=\"\",\"\",AD571/$C$571)","v":""},null,{"$f":"IF($C$571=\"\",\"\",AF571/$C$571)","v":""},null,{"$f":"IF($C$571=\"\",\"\",AH571/$C$571)","v":""},null,{"$f":"IF($C$571=\"\",\"\",AJ571/$C$571)","v":""},null,{"$f":"IF($C$571=\"\",\"\",AL571/$C$571)","v":""},null,{"$f":"IF($C$571=\"\",\"\",AN571/$C$571)","v":""},null,{"$f":"IF($C$571=\"\",\"\",AP571/$C$571)","v":""},null,{"$f":"IF($C$571=\"\",\"\",AR571/$C$571)","v":""},null,{"$f":"IF($C$571=\"\",\"\",AT571/$C$571)","v":""},null,{"$f":"IF($C$571=\"\",\"\",AV571/$C$571)","v":""},null,{"$f":"IF($C$571=\"\",\"\",AX571/$C$571)","v":""},null,{"$f":"IF($C$571=\"\",\"\",AZ571/$C$571)","v":""},null,{"$f":"IF($C$571=\"\",\"\",BB571/$C$571)","v":""},null,0]
[null,null,null,null,{"$f":"IF($C$572=\"\",\"\",F572/$C$572)","v":""},null,{"$f":"IF($C$572=\"\",\"\",H572/$C$572)","v":""},null,{"$f":"IF($C$572=\"\",\"\",J572/$C$572)","v":""},null,{"$f":"IF($C$572=\"\",\"\",L572/$C$572)","v":""},null,{"$f":"IF($C$572=\"\",\"\",N572/$C$572)","v":""},null,{"$f":"IF($C$572=\"\",\"\",P572/$C$572)","v":""},null,{"$f":"IF($C$572=\"\",\"\",R572/$C$572)","v":""},null,{"$f":"IF($C$572=\"\",\"\",T572/$C$572)","v":""},null,{"$f":"IF($C$572=\"\",\"\",V572/$C$572)","v":""},null,{"$f":"IF($C$572=\"\",\"\",X572/$C$572)","v":""},null,{"$f":"IF($C$572=\"\",\"\",Z572/$C$572)","v":""},null,{"$f":"IF($C$572=\"\",\"\",AB572/$C$572)","v":""},null,{"$f":"IF($C$572=\"\",\"\",AD572/$C$572)","v":""},null,{"$f":"IF($C$572=\"\",\"\",AF572/$C$572)","v":""},null,{"$f":"IF($C$572=\"\",\"\",AH572/$C$572)","v":""},null,{"$f":"IF($C$572=\"\",\"\",AJ572/$C$572)","v":""},null,{"$f":"IF($C$572=\"\",\"\",AL572/$C$572)","v":""},null,{"$f":"IF($C$572=\"\",\"\",AN572/$C$572)","v":""},null,{"$f":"IF($C$572=\"\",\"\",AP572/$C$572)","v":""},null,{"$f":"IF($C$572=\"\",\"\",AR572/$C$572)","v":""},null,{"$f":"IF($C$572=\"\",\"\",AT572/$C$572)","v":""},null,{"$f":"IF($C$572=\"\",\"\",AV572/$C$572)","v":""},null,{"$f":"IF($C$572=\"\",\"\",AX572/$C$572)","v":""},null,{"$f":"IF($C$572=\"\",\"\",AZ572/$C$572)","v":""},null,{"$f":"IF($C$572=\"\",\"\",BB572/$C$572)","v":""},null,0]
[null,null,null,null,{"$f":"IF($C$573=\"\",\"\",F573/$C$573)","v":""},null,{"$f":"IF($C$573=\"\",\"\",H573/$C$573)","v":""},null,{"$f":"IF($C$573=\"\",\"\",J573/$C$573)","v":""},null,{"$f":"IF($C$573=\"\",\"\",L573/$C$573)","v":""},null,{"$f":"IF($C$573=\"\",\"\",N573/$C$573)","v":""},null,{"$f":"IF($C$573=\"\",\"\",P573/$C$573)","v":""},null,{"$f":"IF($C$573=\"\",\"\",R573/$C$573)","v":""},null,{"$f":"IF($C$573=\"\",\"\",T573/$C$573)","v":""},null,{"$f":"IF($C$573=\"\",\"\",V573/$C$573)","v":""},null,{"$f":"IF($C$573=\"\",\"\",X573/$C$573)","v":""},null,{"$f":"IF($C$573=\"\",\"\",Z573/$C$573)","v":""},null,{"$f":"IF($C$573=\"\",\"\",AB573/$C$573)","v":""},null,{"$f":"IF($C$573=\"\",\"\",AD573/$C$573)","v":""},null,{"$f":"IF($C$573=\"\",\"\",AF573/$C$573)","v":""},null,{"$f":"IF($C$573=\"\",\"\",AH573/$C$573)","v":""},null,{"$f":"IF($C$573=\"\",\"\",AJ573/$C$573)","v":""},null,{"$f":"IF($C$573=\"\",\"\",AL573/$C$573)","v":""},null,{"$f":"IF($C$573=\"\",\"\",AN573/$C$573)","v":""},null,{"$f":"IF($C$573=\"\",\"\",AP573/$C$573)","v":""},null,{"$f":"IF($C$573=\"\",\"\",AR573/$C$573)","v":""},null,{"$f":"IF($C$573=\"\",\"\",AT573/$C$573)","v":""},null,{"$f":"IF($C$573=\"\",\"\",AV573/$C$573)","v":""},null,{"$f":"IF($C$573=\"\",\"\",AX573/$C$573)","v":""},null,{"$f":"IF($C$573=\"\",\"\",AZ573/$C$573)","v":""},null,{"$f":"IF($C$573=\"\",\"\",BB573/$C$573)","v":""},null,0]
[null,null,null,null,{"$f":"IF($C$574=\"\",\"\",F574/$C$574)","v":""},null,{"$f":"IF($C$574=\"\",\"\",H574/$C$574)","v":""},null,{"$f":"IF($C$574=\"\",\"\",J574/$C$574)","v":""},null,{"$f":"IF($C$574=\"\",\"\",L574/$C$574)","v":""},null,{"$f":"IF($C$574=\"\",\"\",N574/$C$574)","v":""},null,{"$f":"IF($C$574=\"\",\"\",P574/$C$574)","v":""},null,{"$f":"IF($C$574=\"\",\"\",R574/$C$574)","v":""},null,{"$f":"IF($C$574=\"\",\"\",T574/$C$574)","v":""},null,{"$f":"IF($C$574=\"\",\"\",V574/$C$574)","v":""},null,{"$f":"IF($C$574=\"\",\"\",X574/$C$574)","v":""},null,{"$f":"IF($C$574=\"\",\"\",Z574/$C$574)","v":""},null,{"$f":"IF($C$574=\"\",\"\",AB574/$C$574)","v":""},null,{"$f":"IF($C$574=\"\",\"\",AD574/$C$574)","v":""},null,{"$f":"IF($C$574=\"\",\"\",AF574/$C$574)","v":""},null,{"$f":"IF($C$574=\"\",\"\",AH574/$C$574)","v":""},null,{"$f":"IF($C$574=\"\",\"\",AJ574/$C$574)","v":""},null,{"$f":"IF($C$574=\"\",\"\",AL574/$C$574)","v":""},null,{"$f":"IF($C$574=\"\",\"\",AN574/$C$574)","v":""},null,{"$f":"IF($C$574=\"\",\"\",AP574/$C$574)","v":""},null,{"$f":"IF($C$574=\"\",\"\",AR574/$C$574)","v":""},null,{"$f":"IF($C$574=\"\",\"\",AT574/$C$574)","v":""},null,{"$f":"IF($C$574=\"\",\"\",AV574/$C$574)","v":""},null,{"$f":"IF($C$574=\"\",\"\",AX574/$C$574)","v":""},null,{"$f":"IF($C$574=\"\",\"\",AZ574/$C$574)","v":""},null,{"$f":"IF($C$574=\"\",\"\",BB574/$C$574)","v":""},null,0]
[null,null,null,null,{"$f":"IF($C$575=\"\",\"\",F575/$C$575)","v":""},null,{"$f":"IF($C$575=\"\",\"\",H575/$C$575)","v":""},null,{"$f":"IF($C$575=\"\",\"\",J575/$C$575)","v":""},null,{"$f":"IF($C$575=\"\",\"\",L575/$C$575)","v":""},null,{"$f":"IF($C$575=\"\",\"\",N575/$C$575)","v":""},null,{"$f":"IF($C$575=\"\",\"\",P575/$C$575)","v":""},null,{"$f":"IF($C$575=\"\",\"\",R575/$C$575)","v":""},null,{"$f":"IF($C$575=\"\",\"\",T575/$C$575)","v":""},null,{"$f":"IF($C$575=\"\",\"\",V575/$C$575)","v":""},null,{"$f":"IF($C$575=\"\",\"\",X575/$C$575)","v":""},null,{"$f":"IF($C$575=\"\",\"\",Z575/$C$575)","v":""},null,{"$f":"IF($C$575=\"\",\"\",AB575/$C$575)","v":""},null,{"$f":"IF($C$575=\"\",\"\",AD575/$C$575)","v":""},null,{"$f":"IF($C$575=\"\",\"\",AF575/$C$575)","v":""},null,{"$f":"IF($C$575=\"\",\"\",AH575/$C$575)","v":""},null,{"$f":"IF($C$575=\"\",\"\",AJ575/$C$575)","v":""},null,{"$f":"IF($C$575=\"\",\"\",AL575/$C$575)","v":""},null,{"$f":"IF($C$575=\"\",\"\",AN575/$C$575)","v":""},null,{"$f":"IF($C$575=\"\",\"\",AP575/$C$575)","v":""},null,{"$f":"IF($C$575=\"\",\"\",AR575/$C$575)","v":""},null,{"$f":"IF($C$575=\"\",\"\",AT575/$C$575)","v":""},null,{"$f":"IF($C$575=\"\",\"\",AV575/$C$575)","v":""},null,{"$f":"IF($C$575=\"\",\"\",AX575/$C$575)","v":""},null,{"$f":"IF($C$575=\"\",\"\",AZ575/$C$575)","v":""},null,{"$f":"IF($C$575=\"\",\"\",BB575/$C$575)","v":""},null,{"$f":"SUM(BB575,AZ575,AX575,AV575,AT575,AR575,AP575,AN575,AL575,AJ575,AH575,AF575,AD575,AB575,Z575,X575,V575,T575,R575,P575,N575,L575,J575,H575,F575)","v":0}]
["TOTAL HOURS",null,null,null,null,{"$f":"SUM(F546:F575)","v":0},null,{"$f":"SUM(H546:H575)","v":0},null,{"$f":"SUM(J546:J575)","v":0},null,{"$f":"SUM(L546:L575)","v":0},null,{"$f":"SUM(N546:N575)","v":0},null,{"$f":"SUM(P546:P575)","v":0},null,{"$f":"SUM(R546:R575)","v":0},null,{"$f":"SUM(T546:T575)","v":0},null,{"$f":"SUM(V546:V575)","v":0},null,{"$f":"SUM(X546:X575)","v":0},null,{"$f":"SUM(Z546:Z575)","v":0},null,{"$f":"SUM(AB546:AB575)","v":0},null,{"$f":"SUM(AD546:AD575)","v":0},null,{"$f":"SUM(AF546:AF575)","v":0},null,{"$f":"SUM(AH546:AH575)","v":0},null,{"$f":"SUM(AJ546:AJ575)","v":0},null,{"$f":"SUM(AL546:AL575)","v":0},null,{"$f":"SUM(AN546:AN575)","v":0},null,{"$f":"SUM(AP546:AP575)","v":0},null,{"$f":"SUM(AR546:AR575)","v":0},null,{"$f":"SUM(AT546:AT575)","v":0},null,{"$f":"SUM(AV546:AV575)","v":0},null,{"$f":"SUM(AX546:AX575)","v":0},null,{"$f":"SUM(AZ546:AZ575)","v":0},null,{"$f":"SUM(BB546:BB575)","v":0},{"$f":"SUM(E576:BB576)","v":0}]
["TOTAL WORKDAYS",null,null,null,null,{"$f":"F576/8","v":0},null,{"$f":"H576/8","v":0},null,{"$f":"J576/8","v":0},null,{"$f":"L576/8","v":0},null,{"$f":"N576/8","v":0},null,{"$f":"P576/8","v":0},null,{"$f":"R576/8","v":0},null,{"$f":"T576/8","v":0},null,{"$f":"V576/8","v":0},null,{"$f":"X576/8","v":0},null,{"$f":"Z576/8","v":0},null,{"$f":"AB576/8","v":0},null,{"$f":"AD576/8","v":0},null,0,null,{"$f":"AH576/8","v":0},null,0,null,{"$f":"AL576/8","v":0},null,0,null,{"$f":"AP576/8","v":0},null,0,null,{"$f":"AT576/8","v":0},null,{"$f":"AV576/8","v":0},null,{"$f":"AX576/8","v":0},null,{"$f":"AZ576/8","v":0},null,{"$f":"BB576/8","v":0},{"$f":"SUM(E577:BB577)","v":0}]
["TOTAL RAW LABOR",null,null,null,null,{"$f":"$E$13*F576","v":0},null,{"$f":"$G$13*H576","v":0},null,{"$f":"$I$13*J576","v":0},null,{"$f":"$K$13*L576","v":0},null,{"$f":"$M$13*N576","v":0},null,{"$f":"$O$13*P576","v":0},null,{"$f":"$Q$13*R576","v":0},null,{"$f":"$S$13*T576","v":0},null,{"$f":"$U$13*V576","v":0},null,{"$f":"$W$13*X576","v":0},null,{"$f":"$Y$13*Z576","v":0},null,{"$f":"$AA$13*AB576","v":0},null,{"$f":"$AC$13*AD576","v":0},null,{"$f":"$AC$13*AF576","v":0},null,{"$f":"$AC$13*AH576","v":0},null,{"$f":"$AC$13*AJ576","v":0},null,{"$f":"$AC$13*AL576","v":0},null,{"$f":"$AC$13*AN576","v":0},null,{"$f":"$AC$13*AP576","v":0},null,{"$f":"$AC$13*AR576","v":0},null,{"$f":"$AC$13*AT576","v":0},null,{"$f":"$AC$13*AV576","v":0},null,{"$f":"$AC$13*AX576","v":0},null,{"$f":"$AC$13*AZ576","v":0},null,{"$f":"$AC$13*BB576","v":0},{"$f":"SUM(E578:BB578)","v":0}]
[]
["TOTAL HOURS",null,null,null,null,{"$f":"SUM(F576,F542,F508,F474,F440,F406,F372,F357,F343,F313,F250,F220,F203,F188,F175,F159,F138,F115,F53,F28)","v":0},null,{"$f":"SUM(H576,H542,H508,H474,H440,H406,H372,H357,H343,H313,H250,H220,H203,H188,H175,H159,H138,H115,H53,H28)","v":0},null,{"$f":"SUM(J576,J542,J508,J474,J440,J406,J372,J357,J343,J313,J250,J220,J203,J188,J175,J159,J138,J115,J53,J28)","v":0},null,{"$f":"SUM(L576,L542,L508,L474,L440,L406,L372,L357,L343,L313,L250,L220,L203,L188,L175,L159,L138,L115,L53,L28)","v":0},null,{"$f":"SUM(N576,N542,N508,N474,N440,N406,N372,N357,N343,N313,N250,N220,N203,N188,N175,N159,N138,N115,N53,N28)","v":0},null,{"$f":"SUM(P576,P542,P508,P474,P440,P406,P372,P357,P343,P313,P250,P220,P203,P188,P175,P159,P138,P115,P53,P28)","v":0},null,{"$f":"SUM(R576,R542,R508,R474,R440,R406,R372,R357,R343,R313,R250,R220,R203,R188,R175,R159,R138,R115,R53,R28)","v":0},null,{"$f":"SUM(T576,T542,T508,T474,T440,T406,T372,T357,T343,T313,T250,T220,T203,T188,T175,T159,T138,T115,T53,T28)","v":0},null,{"$f":"SUM(V576,V542,V508,V474,V440,V406,V372,V357,V343,V313,V250,V220,V203,V188,V175,V159,V138,V115,V53,V28)","v":0},null,{"$f":"SUM(X576,X542,X508,X474,X440,X406,X372,X357,X343,X313,X250,X220,X203,X188,X175,X159,X138,X115,X53,X28)","v":0},null,{"$f":"SUM(Z576,Z542,Z508,Z474,Z440,Z406,Z372,Z357,Z343,Z313,Z250,Z220,Z203,Z188,Z175,Z159,Z138,Z115,Z53,Z28)","v":0},null,{"$f":"SUM(AB576,AB542,AB508,AB474,AB440,AB406,AB372,AB357,AB343,AB313,AB250,AB220,AB203,AB188,AB175,AB159,AB138,AB115,AB53,AB28)","v":0},null,{"$f":"SUM(AD576,AD542,AD508,AD474,AD440,AD406,AD372,AD357,AD343,AD313,AD250,AD220,AD203,AD188,AD175,AD159,AD138,AD115,AD53,AD28)","v":0},null,{"$f":"SUM(AF576,AF542,AF508,AF474,AF440,AF406,AF372,AF357,AF343,AF313,AF250,AF220,AF203,AF188,AF175,AF159,AF138,AF115,AF53,AF28)","v":0},null,{"$f":"SUM(AH576,AH542,AH508,AH474,AH440,AH406,AH372,AH357,AH343,AH313,AH250,AH220,AH203,AH188,AH175,AH159,AH138,AH115,AH53,AH28)","v":0},null,{"$f":"SUM(AJ576,AJ542,AJ508,AJ474,AJ440,AJ406,AJ372,AJ357,AJ343,AJ313,AJ250,AJ220,AJ203,AJ188,AJ175,AJ159,AJ138,AJ115,AJ53,AJ28)","v":0},null,{"$f":"SUM(AL576,AL542,AL508,AL474,AL440,AL406,AL372,AL357,AL343,AL313,AL250,AL220,AL203,AL188,AL175,AL159,AL138,AL115,AL53,AL28)","v":0},null,{"$f":"SUM(AN576,AN542,AN508,AN474,AN440,AN406,AN372,AN357,AN343,AN313,AN250,AN220,AN203,AN188,AN175,AN159,AN138,AN115,AN53,AN28)","v":0},null,{"$f":"SUM(AP576,AP542,AP508,AP474,AP440,AP406,AP372,AP357,AP343,AP313,AP250,AP220,AP203,AP188,AP175,AP159,AP138,AP115,AP53,AP28)","v":0},null,{"$f":"SUM(AR576,AR542,AR508,AR474,AR440,AR406,AR372,AR357,AR343,AR313,AR250,AR220,AR203,AR188,AR175,AR159,AR138,AR115,AR53,AR28)","v":0},null,{"$f":"SUM(AT576,AT542,AT508,AT474,AT440,AT406,AT372,AT357,AT343,AT313,AT250,AT220,AT203,AT188,AT175,AT159,AT138,AT115,AT53,AT28)","v":0},null,{"$f":"SUM(AV576,AV542,AV508,AV474,AV440,AV406,AV372,AV357,AV343,AV313,AV250,AV220,AV203,AV188,AV175,AV159,AV138,AV115,AV53,AV28)","v":0},null,{"$f":"SUM(AX576,AX542,AX508,AX474,AX440,AX406,AX372,AX357,AX343,AX313,AX250,AX220,AX203,AX188,AX175,AX159,AX138,AX115,AX53,AX28)","v":0},null,{"$f":"SUM(AZ576,AZ542,AZ508,AZ474,AZ440,AZ406,AZ372,AZ357,AZ343,AZ313,AZ250,AZ220,AZ203,AZ188,AZ175,AZ159,AZ138,AZ115,AZ53,AZ28)","v":0},null,{"$f":"SUM(BB576,BB542,BB508,BB474,BB440,BB406,BB372,BB357,BB343,BB313,BB250,BB220,BB203,BB188,BB175,BB159,BB138,BB115,BB53,BB28)","v":0},{"$f":"SUM(E580:BB580)","v":0}]
["TOTAL WORKDAYS",null,null,null,null,{"$f":"F580/8","v":0},null,{"$f":"H580/8","v":0},null,{"$f":"J580/8","v":0},null,{"$f":"L580/8","v":0},null,{"$f":"N580/8","v":0},null,{"$f":"P580/8","v":0},null,{"$f":"R580/8","v":0},null,{"$f":"T580/8","v":0},null,{"$f":"V580/8","v":0},null,{"$f":"X580/8","v":0},null,{"$f":"Z580/8","v":0},null,{"$f":"AB580/8","v":0},null,{"$f":"AD580/8","v":0},null,0,null,{"$f":"AH580/8","v":0},null,0,null,{"$f":"AL580/8","v":0},null,0,null,{"$f":"AP580/8","v":0},null,0,null,{"$f":"AT580/8","v":0},null,{"$f":"AV580/8","v":0},null,{"$f":"AX580/8","v":0},null,{"$f":"AZ580/8","v":0},null,{"$f":"BB580/8","v":0},{"$f":"SUM(E581:BB581)","v":0}]
["TOTAL RAW LABOR",null,null,null,null,{"$f":"$E$13*F580","v":0},null,{"$f":"$G$13*H580","v":0},null,{"$f":"$I$13*J580","v":0},null,{"$f":"$K$13*L580","v":0},null,{"$f":"$M$13*N580","v":0},null,{"$f":"$O$13*P580","v":0},null,{"$f":"$Q$13*R580","v":0},null,{"$f":"$S$13*T580","v":0},null,{"$f":"$U$13*V580","v":0},null,{"$f":"$W$13*X580","v":0},null,{"$f":"$Y$13*Z580","v":0},null,{"$f":"$AA$13*AB580","v":0},null,{"$f":"$AC$13*AD580","v":0},null,{"$f":"$AC$13*AF580","v":0},null,{"$f":"$AC$13*AH580","v":0},null,{"$f":"$AC$13*AJ580","v":0},null,{"$f":"$AC$13*AL580","v":0},null,{"$f":"$AC$13*AN580","v":0},null,{"$f":"$AC$13*AP580","v":0},null,{"$f":"$AC$13*AR580","v":0},null,{"$f":"$AC$13*AT580","v":0},null,{"$f":"$AC$13*AV580","v":0},null,{"$f":"$AC$13*AX580","v":0},null,{"$f":"$AC$13*AZ580","v":0},null,{"$f":"$AC$13*BB580","v":0},{"$f":"SUM(E582:BB582)","v":0}]
[]
["Contract Overhead Rate",null,null,{"$f":"MUNICIPAL_SIGNAL_SYSTEM_SUB2_CONSULTANT_OVERHEAD","v":0}]
["Overhead Cost",null,null,null,{"$f":"BC582*D584","v":0}]
["Fee",null,null,{"$f":"MUNICIPAL_SIGNAL_SYSTEM_SUB2_CONSULTANT_FEE","v":0.09},{"$f":"(BC582+E585)*0.09","v":0}]
["FCCM",null,null,{"$f":"MUNICIPAL_SIGNAL_SYSTEM_SUB2_CONSULTANT_COSTofCAPITAL","v":0},{"$f":"BC582*D587","v":0}]
["TOTAL RAW LABOR",null,null,null,{"$f":"BC582+E585+E586+E587","v":0}]
["DIRECT EXPENSES",null,null,null,{"$f":"MUNICIPAL.SIGNAL.SYSTEM_SUB2_DIRECT_NONSALARY_TOTAL","v":0}]
["MUNICIPAL SIGNAL SYSTEM ESTIMATE",null,null,null,{"$f":"SUM(E588:E589)","v":0}]
[]
[]
[]
[]
[]
[{"$f":"CONCATENATE(\"NON-SALARY DIRECT COSTS -   NCDOT (\",A8,\")\")","v":"NON-SALARY DIRECT COSTS -   NCDOT (CONSULTANT NAME)"}]
[]
["Task 1.0","Project Management and Control",null,null,null,null,null,null,null,null,null,null,null,null,null,"Comments "]
["REPRODUCTION"]
[null,"Xerox Copies (8.5\" x 11\" B&W)"]
[null,"Miscellaneous (Project notes, instructions, recordation, documentation,correspondence, misc. meeting minutes, etc.)",null,null,null,null,null,null,null,"Sheets","X",{"$f":"LETTERCOPIES","v":0.14000000000000001},"per Sheet","=",{"$f":"+I601*L601","v":0}]
[1.1000000000000001,"Project Work Plan",null,null,null,null,"copies","X",null,"Sheets","X",{"$f":"LETTERCOPIES","v":0.14000000000000001},"per Sheet","=",{"$f":"+F602*I602*L602","v":0}]
[1.2,"Progress/Status Meeting Minutes",null,"meetings","X",null,"reports","X",null,"Sheets","X",{"$f":"LETTERCOPIES","v":0.14000000000000001},"per Sheet","=",{"$f":"+C603*F603*I603*L603","v":0}]
[1.3,"Project Status Reports  & Invoices",null,"months","X",null,"reports","X",null,"Sheets","X",{"$f":"LETTERCOPIES","v":0.14000000000000001},"per Sheet","=",{"$f":"+C604*F604*I604*L604","v":0}]
[]
[null,"Xerox Copies (11\" x 17\" B&W)"]
[null,"Miscellaneous ",null,null,null,null,null,null,null,"Sheets","X",{"$f":"LEDGERCOPIES","v":0.34},"per Sheet","=",{"$f":"+I607*L607","v":0}]
[1.1000000000000001,"Project Work Plan/Schedule",null,"Months","X",null,"copies","X",null,"Sheets","X",{"$f":"LEDGERCOPIES","v":0.34},"per Sheet","=",{"$f":"+C608*F608*I608*L608","v":0}]
[1.2,"Progress/Status Meeting Minutes",null,null,null,null,"reports","X",null,"Sheets","X",{"$f":"LEDGERCOPIES","v":0.34},"per Sheet","=",{"$f":"+F609*I609*L609","v":0}]
[1.5,"Subconsultant Management and Coordination",null,null,null,null,null,null,null,"Sheets","X",{"$f":"LEDGERCOPIES","v":0.34},"per Sheet","=",{"$f":"+I610*L610","v":0}]
[]
["CAR RENTAL"]
[null," Trips"]
[null,"Kickoff meeting (from )",null,null,null,null,"trips","X",null,"day/Trip","X",{"$f":"CARRENTAL","v":50},"per day","=",{"$f":"+F614*I614*L614","v":0}]
[null,null,null,null,null,null,"trips","X",null,"Miles/Trip","X",{"$f":"GASforRENTAL","v":0.2},"per Mile","=",{"$f":"+F615*I615*L615","v":0}]
[null,"Kickoff meeting (from )",null,null,null,null,"Trips","X",null,"day/Trip","X",{"$f":"CARRENTAL","v":50},"per day","=",0]
[null,null,null,null,null,null,"trips","X",null,"Miles/Trip","X",{"$f":"GASforRENTAL","v":0.2},"per Mile","=",0]
[null,"Project Meetings (from )",null,null,null,null,"Trips","X",null,"day/Trip","X",{"$f":"CARRENTAL","v":50},"per day","=",0]
[null,null,null,null,null,null,"trips","X",null,"Miles/Trip","X",{"$f":"GASforRENTAL","v":0.2},"per Mile","=",0]
[null,"Project Meetings (from )",null,null,null,null,"trips","X",null,"day/Trip","X",{"$f":"CARRENTAL","v":50},"per day","=",0]
[null,null,null,null,null,null,"trips","X",null,"Miles/Trip","X",{"$f":"GASforRENTAL","v":0.2},"per Mile","=",0]
[]
["OVERNIGHT TRAVEL"]
[null,"Hotel - Project Meetings",null,"persons","X",null,"trips","X",null,"nights/trip","X",{"$f":"LODGING_LUMP.SUM","v":95},"per night","=",{"$f":"+C624*F624*I624*L624","v":0}]
[null,"Per Diem - Project Meetings - Breakfast, Lunch, and Dinner",null,"persons","X",null,"trips","X",null,"days/trip","X",{"$f":"BREAKFAST+LUNCH+DINNER","v":46.5},"per day","=",{"$f":"+C625*F625*I625*L625","v":0}]
[null,"Per Diem - Project Meetings - Breakfast",null,"persons","X",null,"trips","X",null,"days/trip","X",{"$f":"BREAKFAST","v":10.1},"per day","=",{"$f":"+C626*F626*I626*L626","v":0}]
[null,"Per Diem - Project Meetings - Lunch",null,"persons","X",null,"trips","X",null,"days/trip","X",{"$f":"LUNCH","v":13.3},"per day","=",0]
[null,"Per Diem - Project Meetings - Dinner",null,"persons","X",null,"trips","X",null,"days/trip","X",{"$f":"DINNER","v":23.1},"per day","=",0]
[]
["OTHER"]
[null,null,null,"UOM","X",null,"UOM","X",null,"UOM","X",null,"UOM","=",{"$f":"+C631*F631*I631*L631","v":0}]
[null,null,null,"UOM","X",null,"UOM","X",null,"UOM","X",null,"UOM","=",0]
[null,null,null,"UOM","X",null,"UOM","X",null,"UOM","X",null,"UOM","=",0]
[null,null,null,"UOM","X",null,"UOM","X",null,"UOM","X",null,"UOM","=",0]
[null,null,null,"UOM","X",null,"UOM","X",null,"UOM","X",null,"UOM","=",0]
[null,{"$f":"CONCATENATE(\"Project Website (\",A8,\" SharePoint)\")","v":"Project Website (CONSULTANT NAME SharePoint)"}]
[null,"Initial Set-up Charge (incl. 1 GB file storage)",null,null,null,null,null,null,null,"Each","X",500,null,"=",{"$f":"+I637*L637","v":0}]
[null,"Monthly Hosting Fee (up to 20 external users)",null,null,null,null,null,null,null,"Months","X",105,"per month","=",{"$f":"+I638*L638","v":0}]
[null,"Additional Gigabit of File Storage",null,null,null,null,null,null,null,"Each","X",15,null,"=",0]
[]
[null,null,null,null,null,null,null,null,null,null,null,null,"Subtotal",null,{"$f":"SUM(O601:O639)","v":0}]
[]
["Task 2.0","Functional Design"]
["REPRODUCTION"]
[null,"Xerox Copies (8.5\" x 11\" B&W)"]
["2.1.1","Exist. Sys Operations & Functionality"]
[null,"Preliminary Tech Memo",null,null,null,null,"Sets","X",null,"Sheets/Set","X",{"$f":"LETTERCOPIES","v":0.14000000000000001},"per Sheet","=",{"$f":"+F647*I647*L647","v":0}]
[null,"Final Tech Memo",null,null,null,null,"Sets","X",null,"Sheets/Set","X",{"$f":"LETTERCOPIES","v":0.14000000000000001},"per Sheet","=",{"$f":"+F648*I648*L648","v":0}]
["2.1.2","Functional Needs & Boundaries"]
[null,"Preliminary Tech Memo",null,null,null,null,"Sets","X",null,"Sheets/Set","X",{"$f":"LETTERCOPIES","v":0.14000000000000001},"per Sheet","=",0]
[null,"Final Tech Memo",null,null,null,null,"Sets","X",null,"Sheets/Set","X",{"$f":"LETTERCOPIES","v":0.14000000000000001},"per Sheet","=",0]
["2.1.3","Concept of Operations"]
[null,"Preliminary Tech Memo",null,null,null,null,"Sets","X",null,"Sheets/Set","X",{"$f":"LETTERCOPIES","v":0.14000000000000001},"per Sheet","=",0]
[null,"Final Tech Memo",null,null,null,null,"Sets","X",null,"Sheets/Set","X",{"$f":"LETTERCOPIES","v":0.14000000000000001},"per Sheet","=",0]
["2.1.4","Regional Architecture Compliance"]
[null,"Preliminary Tech Memo",null,null,null,null,"Sets","X",null,"Sheets/Set","X",{"$f":"LETTERCOPIES","v":0.14000000000000001},"per Sheet","=",0]
[null,"Final Tech Memo",null,null,null,null,"Sets","X",null,"Sheets/Set","X",{"$f":"LETTERCOPIES","v":0.14000000000000001},"per Sheet","=",0]
["2.1.5","Draft Final Systems Engineering Document",null,null,null,null,"Sets","X",null,"Sheets/Set","X",{"$f":"LETTERCOPIES","v":0.14000000000000001},"per Sheet","=",0]
[null,"Binding",null,null,null,null,null,null,null,"sets","X",{"$f":"COVERS+BINDERS","v":1},"per set","=",{"$f":"+I659*L659","v":0}]
["2.1.6","Final Systems Engineering Document",null,null,null,null,"Sets","X",null,"Sheets/Set","X",{"$f":"LETTERCOPIES","v":0.14000000000000001},"per Sheet","=",{"$f":"+F660*I660*L660","v":0}]
[null,"Binding",null,null,null,null,null,null,null,"sets","X",{"$f":"COVERS+BINDERS","v":1},"per set","=",{"$f":"+I661*L661","v":0}]
[null,"Miscellaneous (Corres., etc.)",null,null,null,null,null,null,null,"Sheets","X",{"$f":"LETTERCOPIES","v":0.14000000000000001},"per Sheet","=",{"$f":"+I662*L662","v":0}]
[2.2000000000000002,"System Maintenance & Staffing Plan"]
[null,"Preliminary Tech Memo",null,null,null,null,"Sets","X",null,"Sheets/Set","X",{"$f":"LETTERCOPIES","v":0.14000000000000001},"per Sheet","=",{"$f":"+F664*I664*L664","v":0}]
[null,"Final Tech Memo",null,null,null,null,"Sets","X",null,"Sheets/Set","X",{"$f":"LETTERCOPIES","v":0.14000000000000001},"per Sheet","=",{"$f":"+F665*I665*L665","v":0}]
[2.2999999999999998,"Municipal Building Modifications"]
[null,"Preliminary Tech Memo",null,null,null,null,"Sets","X",null,"Sheets/Set","X",{"$f":"LETTERCOPIES","v":0.14000000000000001},"per Sheet","=",{"$f":"+F667*I667*L667","v":0}]
[null,"Final Tech Memo",null,null,null,null,"Sets","X",null,"Sheets/Set","X",{"$f":"LETTERCOPIES","v":0.14000000000000001},"per Sheet","=",0]
[2.4,"TMC Modifications"]
[null,"Preliminary Tech Memo",null,null,null,null,"Sets","X",null,"Sheets/Set","X",{"$f":"LETTERCOPIES","v":0.14000000000000001},"per Sheet","=",0]
[null,"Final Tech Memo",null,null,null,null,"Sets","X",null,"Sheets/Set","X",{"$f":"LETTERCOPIES","v":0.14000000000000001},"per Sheet","=",0]
[]
[null,"Xerox Copies (11\" x 17\" B&W)"]
[2.1,"Plans and Exhibits - Black/White",null,null,null,null,"Sets","X",null,"Sheets/Set","X",{"$f":"LEDGERCOPIES","v":0.34},"per Sheet","=",0]
[null,"Miscellaneous Check Plots",null,null,null,null,null,null,null,"Sheets","X",{"$f":"LEDGERCOPIES","v":0.34},"per Sheet","=",{"$f":"+I675*L675","v":0}]
[]
[null,"Xerox Copies (8.5\" x 11\" Color)"]
[null,"Plans and Exhibits - Color"]
["2.1.1","Exist. Sys Operations & Functionality"]
[null,"Preliminary Tech Memo",null,null,null,null,"Sets","X",null,"Sheets/Set","X",{"$f":"LETTERCOLOR","v":0.83},"per Sheet","=",{"$f":"+F680*I680*L680","v":0}]
[null,"Final Tech Memo",null,null,null,null,"Sets","X",null,"Sheets/Set","X",{"$f":"LETTERCOLOR","v":0.83},"per Sheet","=",{"$f":"+F681*I681*L681","v":0}]
["2.1.2","Functional Needs & Boundaries"]
[null,"Preliminary Tech Memo",null,null,null,null,"Sets","X",null,"Sheets/Set","X",{"$f":"LETTERCOLOR","v":0.83},"per Sheet","=",0]
[null,"Final Tech Memo",null,null,null,null,"Sets","X",null,"Sheets/Set","X",{"$f":"LETTERCOLOR","v":0.83},"per Sheet","=",0]
["2.1.3","Concept of Operations"]
[null,"Preliminary Tech Memo",null,null,null,null,"Sets","X",null,"Sheets/Set","X",{"$f":"LETTERCOLOR","v":0.83},"per Sheet","=",0]
[null,"Final Tech Memo",null,null,null,null,"Sets","X",null,"Sheets/Set","X",{"$f":"LETTERCOLOR","v":0.83},"per Sheet","=",0]
["2.1.4","Regional Architecture Compliance"]
[null,"Preliminary Tech Memo",null,null,null,null,"Sets","X",null,"Sheets/Set","X",{"$f":"LETTERCOLOR","v":0.83},"per Sheet","=",0]
[null,"Final Tech Memo",null,null,null,null,"Sets","X",null,"Sheets/Set","X",{"$f":"LETTERCOLOR","v":0.83},"per Sheet","=",0]
["2.1.5","Draft Final Systems Engineering Document",null,null,null,null,"Sets","X",null,"Sheets/Set","X",{"$f":"LETTERCOLOR","v":0.83},"per Sheet","=",0]
["2.1.6","Final Systems Engineering Document",null,null,null,null,"Sets","X",null,"Sheets/Set","X",{"$f":"LETTERCOLOR","v":0.83},"per Sheet","=",0]
[2.2000000000000002,"System Maintenance & Staffing Plan"]
[null,"Preliminary Tech Memo",null,null,null,null,"Sets","X",null,"Sheets/Set","X",{"$f":"LETTERCOLOR","v":0.83},"per Sheet","=",0]
[null,"Final Tech Memo",null,null,null,null,"Sets","X",null,"Sheets/Set","X",{"$f":"LETTERCOLOR","v":0.83},"per Sheet","=",0]
[2.2999999999999998,"Municipal Building Modifications"]
[null,"Preliminary Tech Memo",null,null,null,null,"Sets","X",null,"Sheets/Set","X",{"$f":"LETTERCOLOR","v":0.83},"per Sheet","=",0]
[null,"Final Tech Memo",null,null,null,null,"Sets","X",null,"Sheets/Set","X",{"$f":"LETTERCOLOR","v":0.83},"per Sheet","=",0]
[2.4,"TMC Modifications"]
[null,"Preliminary Tech Memo",null,null,null,null,"Sets","X",null,"Sheets/Set","X",{"$f":"LETTERCOLOR","v":0.83},"per Sheet","=",0]
[null,"Final Tech Memo",null,null,null,null,"Sets","X",null,"Sheets/Set","X",{"$f":"LETTERCOLOR","v":0.83},"per Sheet","=",0]
[]
[null,"Miscellaneous Check Plots",null,null,null,null,null,null,null,"Sheets","X",{"$f":"LETTERCOLOR","v":0.83},"per Sheet","=",{"$f":"+I703*L703","v":0}]
[]
[null,"Xerox Copies (11\" x 17\" Color)",null,null,null,null,null,null," "]
[null,"Plans and Exhibits - Color"]
["2.1.1","Exist. Sys Operations & Functionality"]
[null,"Preliminary Tech Memo",null,null,null,null,"Sets","X",null,"Sheets/Set","X",{"$f":"ROLLPLOTSlong","v":1.5},"per Sheet","=",{"$f":"+F708*I708*L708","v":0}]
[null,"Final Tech Memo",null,null,null,null,"Sets","X",null,"Sheets/Set","X",{"$f":"ROLLPLOTSlong","v":1.5},"per Sheet","=",{"$f":"+F709*I709*L709","v":0}]
["2.1.2","Functional Needs & Boundaries"]
[null,"Preliminary Tech Memo",null,null,null,null,"Sets","X",null,"Sheets/Set","X",{"$f":"ROLLPLOTSlong","v":1.5},"per Sheet","=",0]
[null,"Final Tech Memo",null,null,null,null,"Sets","X",null,"Sheets/Set","X",{"$f":"ROLLPLOTSlong","v":1.5},"per Sheet","=",0]
["2.1.3","Concept of Operations"]
[null,"Preliminary Tech Memo",null,null,null,null,"Sets","X",null,"Sheets/Set","X",{"$f":"ROLLPLOTSlong","v":1.5},"per Sheet","=",0]
[null,"Final Tech Memo",null,null,null,null,"Sets","X",null,"Sheets/Set","X",{"$f":"ROLLPLOTSlong","v":1.5},"per Sheet","=",0]
["2.1.4","Regional Architecture Compliance"]
[null,"Preliminary Tech Memo",null,null,null,null,"Sets","X",null,"Sheets/Set","X",{"$f":"ROLLPLOTSlong","v":1.5},"per Sheet","=",0]
[null,"Final Tech Memo",null,null,null,null,"Sets","X",null,"Sheets/Set","X",{"$f":"ROLLPLOTSlong","v":1.5},"per Sheet","=",0]
["2.1.5","Draft Final Systems Engineering Document",null,null,null,null,"Sets","X",null,"Sheets/Set","X",{"$f":"ROLLPLOTSlong","v":1.5},"per Sheet","=",0]
["2.1.6","Final Systems Engineering Document",null,null,null,null,"Sets","X",null,"Sheets/Set","X",{"$f":"ROLLPLOTSlong","v":1.5},"per Sheet","=",0]
[2.2000000000000002,"System Maintenance & Staffing Plan"]
[null,"Preliminary Tech Memo",null,null,null,null,"Sets","X",null,"Sheets/Set","X",{"$f":"ROLLPLOTSlong","v":1.5},"per Sheet","=",0]
[null,"Final Tech Memo",null,null,null,null,"Sets","X",null,"Sheets/Set","X",{"$f":"ROLLPLOTSlong","v":1.5},"per Sheet","=",0]
[2.2999999999999998,"Municipal Building Modifications"]
[null,"Preliminary Tech Memo",null,null,null,null,"Sets","X",null,"Sheets/Set","X",{"$f":"ROLLPLOTSlong","v":1.5},"per Sheet","=",0]
[null,"Final Tech Memo",null,null,null,null,"Sets","X",null,"Sheets/Set","X",{"$f":"ROLLPLOTSlong","v":1.5},"per Sheet","=",0]
[2.4,"TMC Modifications"]
[null,"Preliminary Tech Memo",null,null,null,null,"Sets","X",null,"Sheets/Set","X",{"$f":"ROLLPLOTSlong","v":1.5},"per Sheet","=",0]
[null,"Final Tech Memo",null,null,null,null,"Sets","X",null,"Sheets/Set","X",{"$f":"ROLLPLOTSlong","v":1.5},"per Sheet","=",0]
[]
[null,"Miscellaneous Check Plots",null,null,null,null,null,null,null,"Sheets","X",{"$f":"ROLLPLOTSlong","v":1.5},"per Sheet","=",{"$f":"+I731*L731","v":0}]
[]
["MILEAGE"]
[null," Trips"]
["2.3 & 2.4","Field investigate Muncipal Bldg and TMC",null,null,null,null,"Trips","X",null,"day/Trip","X",{"$f":"CARRENTAL","v":50},"per day","=",{"$f":"+F735*I735*L735","v":0}]
[null,null,null,null,null,null,"Trips","X",null,"Miles/Trip","X",{"$f":"GASforRENTAL","v":0.2},"per Mile","=",{"$f":"+F736*I736*L736","v":0}]
[null," Trips ",null,null,null,null,"Trips","X",null,"Miles/Trip","X",{"$f":"SEDAN","v":0.7},"per Mile","=",0]
[]
["OTHER"]
[null,"Postage & Courier",null,null,null,null,"Pack.","X",25,"Ea",null,null,null,"=",{"$f":"+F740*I740","v":0}]
[null,null,null,"UOM","X",null,"UOM","X",null,"UOM","X",null,"UOM","=",{"$f":"+C741*F741*I741*L741","v":0}]
[null,null,null,"UOM","X",null,"UOM","X",null,"UOM","X",null,"UOM","=",0]
[null,null,null,"UOM","X",null,"UOM","X",null,"UOM","X",null,"UOM","=",0]
[null,null,null,"UOM","X",null,"UOM","X",null,"UOM","X",null,"UOM","=",0]
[null,null,null,"UOM","X",null,"UOM","X",null,"UOM","X",null,"UOM","=",0]
[]
[null,null,null,null,null,null,null,null,null,null,null,null,"Subtotal",null,{"$f":"SUM(O646:O746)","v":0}]
["Task 3.0","Programmatic Categorical Exclusion & Supporting Tasks"]
["REPRODUCTION"]
[null,"Xerox Copies (8.5\" x 11\" B&W)"]
[null,"PCE Document",null,"submittals","X",null,"Sets","X",null,"Sheets","X",{"$f":"LETTERCOPIES","v":0.14000000000000001},"per Sheet","=",{"$f":"+C751*F751*I751*L751","v":0}]
[null,"Miscellaneous",null,null,null,null,null,null,null,"Sheets","X",{"$f":"LETTERCOPIES","v":0.14000000000000001},"per Sheet","=",{"$f":"+I752*L752","v":0}]
[]
[null,"Xerox Copies (8.5\" x 11\" Color)"]
[null,"Overview Map & Inset Maps",null,"submittals","X",null,"sets","X",null,"Sheets","X",{"$f":"LETTERCOLOR","v":0.83},"per Sheet","=",{"$f":"+C755*F755*I755*L755","v":0}]
[null,"Miscellaneous ",null,null,null,null,null,null,null,"Sheets","X",{"$f":"LETTERCOLOR","v":0.83},"per Sheet","=",{"$f":"+I756*L756","v":0}]
[]
[null,"Xerox Copies (11\" x 17\" B&W)"]
[null,"Tabular Summaries of Work",null,"submittals","X",null,"Sets","X",null,"Sheets/Set","X",{"$f":"LEDGERCOPIES","v":0.34},"per Sheet","=",{"$f":"+C759*F759*I759*L759","v":0}]
[null,"Miscellaneous Check Plots",null,null,null,null,null,null,null,"Sheets","X",{"$f":"LEDGERCOPIES","v":0.34},"per Sheet","=",{"$f":"+I760*L760","v":0}]
[]
[null,"Xerox Copies (11\" x 17\" Color)"]
[null,"Inset Maps",null,"submittals","X",null,"Sets","X",null,"Sheets/Set","X",{"$f":"ROLLPLOTSlong","v":1.5},"per Sheet","=",{"$f":"+C763*F763*I763*L763","v":0}]
[null,"Miscellaneous Check Plots",null,null,null,null,null,null,null,"Sheets","X",{"$f":"ROLLPLOTSlong","v":1.5},"per Sheet","=",{"$f":"+I764*L764","v":0}]
[]
[null,"Bond Prints - Color (34\" x 68\")"]
[null,"Overview Map",null,"submittals","X",null,"Sets","X",null,"Sheets/Set","X",{"$f":"BOND.LARGE","v":3.5},"per Sheet","=",{"$f":"+C767*F767*I767*L767","v":0}]
[]
["MILEAGE"]
[null," Trips  ( From )",null,null,null,null,"Trips","X",null,"Miles/Trip","X",{"$f":"SEDAN","v":0.7},"per Mile","=",{"$f":"+F770*I770*L770","v":0}]
[null," Trips"]
[null,"( From )",null,null,null,null,"Trips","X",null,"Miles/Trip","X",{"$f":"SEDAN","v":0.7},"per Mile","=",{"$f":"+F772*I772*L772","v":0}]
[null,"( From )",null,null,null,null,"Trips","X",null,"Miles/Trip","X",{"$f":"SEDAN","v":0.7},"per Mile","=",0]
[]
["OVERNIGHT TRAVEL"]
[null,"Hotel - from ",null,"persons","X",null,"trips","X",null,"nights/trip","X",{"$f":"LODGING_LUMP.SUM","v":95},"per night","=",{"$f":"+C776*F776*I776*L776","v":0}]
[null,"Per Diem -  staff - Breakfast, Lunch, & Dinner",null,"persons","X",null,"trips","X",null,"days/trip","X",{"$f":"BREAKFAST+LUNCH+DINNER","v":46.5},"per day","=",0]
[null,"Per Diem -  staff - Breakfast ",null,"persons","X",null,"trips","X",null,"days/trip","X",{"$f":"BREAKFAST","v":10.1},"per day","=",0]
[null,"Per Diem -  staff - Lunch",null,"persons","X",null,"trips","X",null,"days/trip","X",{"$f":"LUNCH","v":13.3},"per day","=",0]
[null,"Per Diem -  staff -  Dinner",null,"persons","X",null,"trips","X",null,"days/trip","X",{"$f":"DINNER","v":23.1},"per day","=",0]
[]
["OTHER"]
[null,null,null,"UOM","X",null,"UOM","X",null,"UOM","X",null,"UOM","=",{"$f":"+C783*F783*I783*L783","v":0}]
[null,null,null,"UOM","X",null,"UOM","X",null,"UOM","X",null,"UOM","=",0]
[null,null,null,"UOM","X",null,"UOM","X",null,"UOM","X",null,"UOM","=",0]
[null,null,null,"UOM","X",null,"UOM","X",null,"UOM","X",null,"UOM","=",0]
[null,null,null,"UOM","X",null,"UOM","X",null,"UOM","X",null,"UOM","=",0]
[]
[null,null,null,null,null,null,null,null,null,null,null,null,"Subtotal",null,{"$f":"SUM(O751:O780)","v":0}]
["Task 4.0","Communications System"]
["REPRODUCTION"]
[null,"Xerox Copies (8.5\" x 11\" B&W)"]
[null,"Communications Technical Memo",null,"submittals","X",null,"Sets","X",null,"Sheets","X",{"$f":"LETTERCOPIES","v":0.14000000000000001},"per Sheet","=",{"$f":"+C793*F793*I793*L793","v":0}]
[null,"Miscellaneous",null,null,null,null,null,null,null,"Sheets","X",{"$f":"LETTERCOPIES","v":0.14000000000000001},"per Sheet","=",{"$f":"+I794*L794","v":0}]
[]
[null,"Xerox Copies (11\" x 17\" B&W)"]
[null,"Block Diagrams",null,"submittals","X",null,"Sets","X",null,"Sheets/Set","X",{"$f":"LEDGERCOPIES","v":0.34},"per Sheet","=",{"$f":"+C797*F797*I797*L797","v":0}]
[null,"Miscellaneous",null,null,null,null,null,null,null,"Sheets/Set","X",{"$f":"LEDGERCOPIES","v":0.34},"per Sheet","=",{"$f":"+I798*L798","v":0}]
[]
[null,"Xerox Copies (8.5\" x 11\" Color)"]
[null,"Communications Technical Memo",null,"submittals","X",null,"Sets","X",null,"Sheets","X",{"$f":"LETTERCOLOR","v":0.83},"per Sheet","=",{"$f":"+C801*F801*I801*L801","v":0}]
[null,"Miscellaneous",null,null,null,null,null,null,null,"Sheets","X",{"$f":"LETTERCOLOR","v":0.83},"per Sheet","=",{"$f":"+I802*L802","v":0}]
[]
[null,"Xerox Copies (11\" x 17\" Color)"]
[null,"tech memo  - Color",null,null,null,null,"Sets","X",null,"Sheets/Set","X",{"$f":"ROLLPLOTSlong","v":1.5},"per Sheet","=",{"$f":"+F805*I805*L805","v":0}]
[]
[null,"Bond Prints (34\" x 68\")"]
[null,"Preliminary Comm Route Plan - Color",null,"submittals","X",null,"Sets","X",null,"Sheets/Set","X",{"$f":"BOND.LARGE","v":3.5},"per Sheet","=",{"$f":"+C808*F808*I808*L808","v":0}]
["CAR RENTAL"]
[null," Trips"]
[null,"Wireless Testing",null,null,null,null,"Trips","X",null,"day/Trip","X",{"$f":"CARRENTAL","v":50},"per day","=",{"$f":"+F811*I811*L811","v":0}]
[null,null,null,null,null,null,"trips","X",null,"Miles/Trip","X",{"$f":"GASforRENTAL","v":0.2},"per Mile","=",0]
["OVERNIGHT TRAVEL"]
[null,"Hotel - wireless testing",null,"persons","X",null,"trips","X",null,"nights/trip","X",{"$f":"LODGING_LUMP.SUM","v":95},"per night","=",{"$f":"+C814*F814*I814*L814","v":0}]
[null,"Per Diem - wireless testing - Breakfast, Lunch, and Dinner",null,"persons","X",null,"trips","X",null,"days/trip","X",{"$f":"BREAKFAST+LUNCH+DINNER","v":46.5},"per day","=",0]
[null,"Per Diem - wireless testing - Breakfast",null,"persons","X",null,"trips","X",null,"days/trip","X",{"$f":"BREAKFAST","v":10.1},"per day","=",0]
[null,"Per Diem - wireless testing - Lunch",null,"persons","X",null,"trips","X",null,"days/trip","X",{"$f":"LUNCH","v":13.3},"per day","=",0]
[null,"Per Diem - wireless testing - Dinner",null,"persons","X",null,"trips","X",null,"days/trip","X",{"$f":"DINNER","v":23.1},"per day","=",0]
[]
["OTHER"]
[null,"Postage & Courier",null,null,null,null,"Pack.","X",25,"Ea",null,null,null,"=",{"$f":"+F821*I821","v":0}]
[null,null,null,"UOM","X",null,"UOM","X",null,"UOM","X",null,"UOM","=",{"$f":"+C822*F822*I822*L822","v":0}]
[null,null,null,"UOM","X",null,"UOM","X",null,"UOM","X",null,"UOM","=",0]
[null,null,null,"UOM","X",null,"UOM","X",null,"UOM","X",null,"UOM","=",0]
[null,null,null,"UOM","X",null,"UOM","X",null,"UOM","X",null,"UOM","=",0]
[null,null,null,"UOM","X",null,"UOM","X",null,"UOM","X",null,"UOM","=",0]
[]
[null,null,null,null,null,null,null,null,null,null,null,null,"Subtotal",null,{"$f":"SUM(O793:O826)","v":0}]
["Task 5.0","Field Equipment Inventories"]
["REPRODUCTION"]
[null,"Xerox Copies (8.5\" x 11\" B&W)"]
["5.2.1","State Inventory Sheets",null,null,null,null,"sheets","X",null,"intersection","X",{"$f":"LETTERCOPIES","v":0.14000000000000001},"per Sheet","=",{"$f":"+F832*I832*L832","v":0}]
["5.2.2","City Inventory Sheets",null,null,null,null,"sheet","X",null,"intersection","X",{"$f":"LETTERCOPIES","v":0.14000000000000001},"per Sheet","=",{"$f":"+F833*I833*L833","v":0}]
[5.4,"Inventory CCTV Cabinets",null,null,null,null,"sheets","X",null,"cameras","X",{"$f":"LETTERCOPIES","v":0.14000000000000001},"per Sheet","=",0]
[null,"Miscellaneous",null,null,null,null,null,null,null,"Sheets","X",{"$f":"LETTERCOPIES","v":0.14000000000000001},"per Sheet","=",{"$f":"+I835*L835","v":0}]
[null,"Xerox Copies (11\" x 17\" B&W)"]
[5.2,"Signal Plans (NCDOT)",null,null,null,null,"Sets","X",null,"Sheets/Set","X",{"$f":"LEDGERCOPIES","v":0.34},"per Sheet","=",{"$f":"+F837*I837*L837","v":0}]
[5.2,"Signal Plans (CITY)",null,null,null,null,"Sets","X",null,"Sheets/Set","X",{"$f":"LEDGERCOPIES","v":0.34},"per Sheet","=",0]
[null,"Miscellaneous",null,null,null,null,null,null,null,"Sheets/Set","X",{"$f":"LEDGERCOPIES","v":0.34},"per Sheet","=",{"$f":"+I839*L839","v":0}]
[]
["CAR RENTAL"]
[null," Trips"]
[null,"Signals Data Collection Field Trips",null,null,null,null,"Trips","X",null,"day/Trip","X",{"$f":"CARRENTAL","v":50},"per day","=",{"$f":"+F843*I843*L843","v":0}]
[null,null,null,null,null,null,"trips","X",null,"Miles/Trip","X",{"$f":"GASforRENTAL","v":0.2},"per Mile","=",0]
[null,"CCTV Cabinet Inventory Field Trips",null,null,null,null,"Trips","X",null,"day/Trip","X",{"$f":"CARRENTAL","v":50},"per day","=",0]
[null,null,null,null,null,null,"trips","X",null,"Miles/Trip","X",{"$f":"GASforRENTAL","v":0.2},"per Mile","=",0]
[]
["OVERNIGHT TRAVEL"]
[null,"Hotel - signal inventories",null,"persons","X",null,"trips","X",null,"nights/trip","X",{"$f":"LODGING_LUMP.SUM","v":95},"per night","=",{"$f":"+C849*F849*I849*L849","v":0}]
[null,"Hotel - CCTV inventories",null,"person","X",null,"trips","X",null,"nights/trip","X",{"$f":"LODGING_LUMP.SUM","v":95},"per night","=",0]
[null,"Per Diem - Signal inventories - Breakfast, Lunch, & Dinner",null,"persons","X",null,"trips","X",null,"days/trip","X",{"$f":"BREAKFAST+LUNCH+DINNER","v":46.5},"per day","=",0]
[null,"Per Diem - Signal inventories - Breakfast ",null,"persons","X",null,"trips","X",null,"days/trip","X",{"$f":"BREAKFAST","v":10.1},"per day","=",0]
[null,"Per Diem - Signal inventories - Lunch",null,"persons","X",null,"trips","X",null,"days/trip","X",{"$f":"LUNCH","v":13.3},"per day","=",0]
[null,"Per Diem - Signal inventories - Dinner",null,"persons","X",null,"trips","X",null,"days/trip","X",{"$f":"DINNER","v":23.1},"per day","=",0]
[null,"Per Diem - CCTV inventories - Breakfast, Lunch, & Dinner",null,"person","X",null,"trips","X",null,"days/trip","X",{"$f":"BREAKFAST+LUNCH+DINNER","v":46.5},"per day","=",0]
[null,"Per Diem - CCTV inventories - Breakfast",null,"person","X",null,"trips","X",null,"days/trip","X",{"$f":"BREAKFAST","v":10.1},"per day","=",0]
[null,"Per Diem - CCTV inventories - Lunch",null,"person","X",null,"trips","X",null,"days/trip","X",{"$f":"LUNCH","v":13.3},"per day","=",0]
[null,"Per Diem - CCTV inventories - Dinner",null,"person","X",null,"trips","X",null,"days/trip","X",{"$f":"DINNER","v":23.1},"per day","=",0]
[]
["OTHER"]
[null,null,null,"UOM","X",null,"UOM","X",null,"UOM","X",null,"UOM","=",{"$f":"+C861*F861*I861*L861","v":0}]
[null,null,null,"UOM","X",null,"UOM","X",null,"UOM","X",null,"UOM","=",0]
[null,null,null,"UOM","X",null,"UOM","X",null,"UOM","X",null,"UOM","=",0]
[null,null,null,"UOM","X",null,"UOM","X",null,"UOM","X",null,"UOM","=",0]
[null,null,null,"UOM","X",null,"UOM","X",null,"UOM","X",null,"UOM","=",0]
[]
[]
[null,null,null,null,null,null,null,null,null,null,null,null,"Subtotal",null,{"$f":"SUM(O832:O865)","v":0}]
["Task 6.0","CCTV Monitoring System"]
["REPRODUCTION"]
[null,"Xerox Copies (8.5\" x 11\") - B&W"]
[6.1,"Recommended Bucket Truck Survey Locations",null,"submittals","X",null,"Sets","X",null,"Sheets/Set","X",{"$f":"LETTERCOPIES","v":0.14000000000000001},"per Sheet","=",{"$f":"+C872*F872*I872*L872","v":0}]
[6.3,"Site Survey Compilation & Analysis Tech Memo",null,"submittals","X",null,"Sets","X",null,"Sheets/Set","X",{"$f":"LETTERCOPIES","v":0.14000000000000001},"per Sheet","=",0]
[6.4,"CCTV Site Study Technical Memo",null,"submittals","X",null,"Sets","X",null,"Sheets/Set","X",{"$f":"LETTERCOPIES","v":0.14000000000000001},"per Sheet","=",0]
[null,"Miscellaneous ",null,null,null,null,null,null,null,"Sheets","X",{"$f":"LETTERCOPIES","v":0.14000000000000001},"per Sheet","=",{"$f":"+I875*L875","v":0}]
[]
[null,"Xerox Copies (8.5\" x 11\") - Color"]
[6.1,"Recommended Bucket Truck Survey Locations",null,"submittals","X",null,"Sets","X",null,"Sheets/Set","X",{"$f":"LETTERCOLOR","v":0.83},"per Sheet","=",{"$f":"+C878*F878*I878*L878","v":0}]
[6.3,"Site Survey Compilation & Analysis Tech Memo",null,"submittals","X",null,"Sets","X",null,"Sheets/Set","X",{"$f":"LETTERCOLOR","v":0.83},"per Sheet","=",0]
[6.4,"CCTV Site Study Technical Memo",null,"submittals","X",null,"Sets","X",null,"Sheets/Set","X",{"$f":"LETTERCOLOR","v":0.83},"per Sheet","=",0]
[null,"Miscellaneous ",null,null,null,null,null,null,null,"Sheets","X",{"$f":"LETTERCOLOR","v":0.83},"per Sheet","=",{"$f":"+I881*L881","v":0}]
[]
[null,"Bond Prints (22\" x 34\")"]
[null,"Miscellaneous",null,null,null,null,null,null,null,"Sheets/Set","X",{"$f":"BOND.REGULAR","v":0.42},"per Sheet","=",{"$f":"+I884*L884","v":0}]
[]
["CAR RENTAL"]
[null," Trips"]
[null,"initial scouting + bucket truck surveys",null,null,null,null,"trips","X",null,"day/Trip","X",{"$f":"CARRENTAL","v":50},"per day","=",{"$f":"+F888*I888*L888","v":0}]
[]
[null,"Roundtrip  to",null,null,null,null,"trips","X",null,"Miles/Trip","X",{"$f":"GASforRENTAL","v":0.2},"per Mile","=",{"$f":"+F890*I890*L890","v":0}]
[null,"Roundtrip  to",null,null,null,null,"trips","X",null,"Miles/Trip","X",{"$f":"GASforRENTAL","v":0.2},"per Mile","=",0]
[null,"Local Travel in ",null,null,null,null,"days","X",null,"Miles/Day","X",{"$f":"GASforRENTAL","v":0.2},"per Mile","=",0]
["OVERNIGHT TRAVEL"]
[null,"Hotel",null,"person","X",null,"trips","X",null,"nights/trip","X",{"$f":"LODGING_LUMP.SUM","v":95},"per night","=",{"$f":"+C894*F894*I894*L894","v":0}]
[null,"Per Diem - Breakfast, Lunch, & Dinner",null,"person","X",null,"trips","X",null,"days/trip","X",{"$f":"BREAKFAST+LUNCH+DINNER","v":46.5},"per day","=",0]
[null,"Per Diem - Breakfast",null,"person","X",null,"trips","X",null,"days/trip","X",{"$f":"BREAKFAST","v":10.1},"per day","=",0]
[null,"Per Diem - Lunch",null,"person","X",null,"trips","X",null,"days/trip","X",{"$f":"LUNCH","v":13.3},"per day","=",0]
[null,"Per Diem - Dinner",null,"person","X",null,"trips","X",null,"days/trip","X",{"$f":"DINNER","v":23.1},"per day","=",0]
[]
[]
["OTHER"]
[null,"Postage & Courier",null,null,null,null,"Pack.","X",25,"Ea",null,null,null,"=",{"$f":"+F902*I902","v":0}]
[null,null,null,"UOM","X",null,"UOM","X",null,"UOM","X",null,"UOM","=",{"$f":"+C903*F903*I903*L903","v":0}]
[null,null,null,"UOM","X",null,"UOM","X",null,"UOM","X",null,"UOM","=",0]
[null,null,null,"UOM","X",null,"UOM","X",null,"UOM","X",null,"UOM","=",0]
[null,null,null,"UOM","X",null,"UOM","X",null,"UOM","X",null,"UOM","=",0]
[null,null,null,"UOM","X",null,"UOM","X",null,"UOM","X",null,"UOM","=",0]
[]
[null,null,null,null,null,null,null,null,null,null,null,null,"Subtotal",null,{"$f":"SUM(O872:O907)","v":0}]
[]
["Task 8.0","Railroad Encroachment Permit Coordination"]
["REPRODUCTION"]
[null,"Xerox Copies (8.5\" x 11\")"]
[null,"Permit Applications",null,null,null,null,"Sets","X",null,"Sheets/Set","X",{"$f":"LETTERCOPIES","v":0.14000000000000001},"per Sheet","=",{"$f":"+F914*I914*L914","v":0}]
[null,"Technical Reports, Special Provisions, documentation, etc",null,null,null,null,"Sets","X",null,"Sheets/Set","X",{"$f":"LETTERCOPIES","v":0.14000000000000001},"per Sheet","=",{"$f":"+F915*I915*L915","v":0}]
[]
[null,"Xerox Copies (11\" x 17\")"]
[null,"plan sheets",null,null,null,null,"Sets","X",null,"Sheets/Set","X",{"$f":"LEDGERCOPIES","v":0.34},"per Sheet","=",0]
[null,"miscellaneous ",null,null,null,null,null,null,null,"Sheets/Set","X",{"$f":"LEDGERCOPIES","v":0.34},"per Sheet","=",{"$f":"+I919*L919","v":0}]
["MILEAGE"]
[null," Trips",null,null,null,null,"Trips","X",null,"Miles/Trip","X",{"$f":"SEDAN","v":0.7},"per Mile","=",0]
[]
["CAR RENTAL"]
[null," Trips"]
[null,"Roundtrip -  to ",null,null,null,null,"trips","X",null,"day/Trip","X",{"$f":"CARRENTAL","v":50},"per day","=",0]
[null,null,null,null,null,null,"trips","X",null,"Miles/Trip","X",{"$f":"GASforRENTAL","v":0.2},"per Mile","=",0]
[null,"Local Mileage in ",null,null,null,null,"trips","X",null,"Miles/Trip","X",{"$f":"GASforRENTAL","v":0.2},"per Mile","=",0]
["OVERNIGHT TRAVEL"]
[null,"Hotel",null,"persons","X",null,"trips","X",null,"nights/trip","X",{"$f":"LODGING_LUMP.SUM","v":95},"per night","=",{"$f":"+C929*F929*I929*L929","v":0}]
[null,"Per Diem - Breakfast, Lunch, and Dinner",null,"persons","X",null,"trips","X",null,"days/trip","X",{"$f":"BREAKFAST+LUNCH+DINNER","v":46.5},"per day","=",0]
[null,"Per Diem - Breakfast ",null,"persons","X",null,"trips","X",null,"days/trip","X",{"$f":"BREAKFAST","v":10.1},"per day","=",0]
[null,"Per Diem - Lunch",null,"persons","X",null,"trips","X",null,"days/trip","X",{"$f":"LUNCH","v":13.3},"per day","=",0]
[null,"Per Diem - Dinner",null,"persons","X",null,"trips","X",null,"days/trip","X",{"$f":"DINNER","v":23.1},"per day","=",0]
[]
["OTHER"]
[null,"Postage & Courier",null,null,null,null,"Pack.","X",25,"Ea",null,null,null,"=",{"$f":"+F936*I936","v":0}]
[null,null,null,"UOM","X",null,"UOM","X",null,"UOM","X",null,"UOM","=",{"$f":"+C937*F937*I937*L937","v":0}]
[null,null,null,"UOM","X",null,"UOM","X",null,"UOM","X",null,"UOM","=",0]
[null,null,null,"UOM","X",null,"UOM","X",null,"UOM","X",null,"UOM","=",0]
[null,null,null,"UOM","X",null,"UOM","X",null,"UOM","X",null,"UOM","=",0]
[null,null,null,"UOM","X",null,"UOM","X",null,"UOM","X",null,"UOM","=",0]
[]
[]
[null,null,null,null,null,null,null,null,null,null,null,null,"Subtotal",null,{"$f":"SUM(O914:O941)","v":0}]
["Task 9.0","Basis of Design Document (BODD)"]
["REPRODUCTION"]
[null,"Xerox Copies (8.5\" x 11\")",null,"version","X",null,"Sets","X",null,"Sheets/Set","X",{"$f":"LETTERCOPIES","v":0.14000000000000001},"per Sheet","=",{"$f":"+C947*F947*I947*L947","v":0}]
[null,"BODD notebook",null,"updates","X",null,"Sets","X",null,"Sheets/Set","X",{"$f":"LETTERCOPIES","v":0.14000000000000001},"per Sheet","=",{"$f":"+C948*F948*I948*L948","v":0}]
[null,"Miscellaneous "]
[]
[null,"Xerox Copies (11\" x 17\")"]
[null,"BODD Graphics - Color",null,"versions","X",null,"Sets","X",null,"Sheets/Set","X",{"$f":"ROLLPLOTSlong","v":1.5},"per Sheet","=",{"$f":"+C952*F952*I952*L952","v":0}]
[null,"BODD Exhibits - Black/White",null,"versions","X",null,"Sets","X",null,"Sheets/Set","X",{"$f":"LEDGERCOPIES","v":0.34},"per Sheet","=",0]
[null,"Miscellaneous - Color",null,null,null,null,"Sets","X",null,"Sheets/Set","X",{"$f":"ROLLPLOTSlong","v":1.5},"per Sheet","=",{"$f":"+F954*I954*L954","v":0}]
[null,"Miscellaneous - Black/White",null,null,null,null,"Sets","X",null,"Sheets/Set","X",{"$f":"LEDGERCOPIES","v":0.34},"per Sheet","=",{"$f":"+F955*I955*L955","v":0}]
[]
[null,"BODD Notebooks"]
[null,"3\" Heavy-Duty D-ring Presentation Binder",null,null,null,null,"volumes","X",null,"Binders","X",14.29,"per binder","=",{"$f":"+F958*I958*L958","v":0}]
[null,"Sheet Lifters",null,null,null,null,"Binders","X",null,"pair/binder","X",1.99,"per pair","=",0]
[null,"Media Storage Pages (CD pockets)",null,null,null,null,null,null,null,"5-packs","X",7.99,"per pack","=",{"$f":"+I960*L960","v":0}]
[null,"Untabbed Business Card Pages",null,null,null,null,null,null,null,"10-packs","X",3.99,"per pack","=",{"$f":"+I961*L961","v":0}]
[null,"Self-Adhesive Business Card Holders",null,null,null,null,null,null,null,"10-packs","X",3.99,"per pack","=",0]
[null,"Direct Print Dividers, 5-Tab (4/pack) (10 tabs/binder for 4 binders)",null,null,null,null,null,null,null,"4-packs","X",23.99,"per pack","=",0]
[null,"Direct Print Dividers, 5-Tab (24/pack) (10 tabs/binder for 12 binders)",null,null,null,null,null,null,null,"24-packs","X",142.99,"per pack","=",0]
[]
["OTHER"]
[null,"Miscellaneous",null,null,null,null,"Sets","X",null,"Sheets/Set","X",{"$f":"LETTERCOPIES","v":0.14000000000000001},"per Sheet","=",{"$f":"+F967*I967*L967","v":0}]
[null,null,null,null,null,null,null,null,null,"Sheets","X",{"$f":"LETTERCOPIES","v":0.14000000000000001},"per Sheet","=",{"$f":"+I968*L968","v":0}]
[null,null,null,"UOM","X",null,"UOM","X",null,"UOM","X",null,"UOM","=",{"$f":"+C969*F969*I969*L969","v":0}]
[null,null,null,"UOM","X",null,"UOM","X",null,"UOM","X",null,"UOM","=",0]
[null,null,null,"UOM","X",null,"UOM","X",null,"UOM","X",null,"UOM","=",0]
[null,null,null,"UOM","X",null,"UOM","X",null,"UOM","X",null,"UOM","=",0]
[null,null,null,"UOM","X",null,"UOM","X",null,"UOM","X",null,"UOM","=",0]
[]
[null,null,null,null,null,null,null,null,null,null,null,null,"Subtotal",null,{"$f":"SUM(O947:O973)","v":0}]
["Task 10.0","Utility Make-Ready Plans"]
["REPRODUCTION"]
[null,"Xerox Copies (8.5\" x 11\")"]
[null,"Utility Partnering Meeting Handouts",null,null,null,null,"Sets","X",null,"Sheets/Set","X",{"$f":"LETTERCOPIES","v":0.14000000000000001},"per Sheet","=",{"$f":"+F979*I979*L979","v":0}]
[null,"Miscellaneous ",null,null,null,null,null,null,null,"Sheets","X",{"$f":"LETTERCOPIES","v":0.14000000000000001},"per Sheet","=",{"$f":"+I980*L980","v":0}]
[]
[null,"Xerox Copies (11\" x 17\")"]
[null,"Utility Partnering Meeting Examples",null,null,null,null,"Sets","X",null,"Sheets/Set","X",{"$f":"LEDGERCOPIES","v":0.34},"per Sheet","=",{"$f":"+F983*I983*L983","v":0}]
[null,"Preliminary UMR Plans",null,null,null,null,"Sets","X",null,"Sheets/Set","X",{"$f":"LEDGERCOPIES","v":0.34},"per Sheet","=",0]
[null,"QC Set",null,null,null,null,"Sets","X",null,"Sheets/Set","X",{"$f":"LEDGERCOPIES","v":0.34},"per Sheet","=",0]
[null,"Record Set - Consultant ",null,null,null,null,"Sets","X",null,"Sheets/Set","X",{"$f":"LEDGERCOPIES","v":0.34},"per Sheet","=",0]
[null,"Covers & Binding",null,null,null,null,null,null,null,"sets","X",{"$f":"COVERS+BINDERS","v":1},"per set","=",{"$f":"+I987*L987","v":0}]
[null,"Draft Final UMR Plans",null,null,null,null,"Sets","X",null,"Sheets/Set","X",{"$f":"LEDGERCOPIES","v":0.34},"per Sheet","=",0]
[null,"QC Set",null,null,null,null,"Sets","X",null,"Sheets/Set","X",{"$f":"LEDGERCOPIES","v":0.34},"per Sheet","=",0]
[null,"Record Set - Consultant ",null,null,null,null,"Sets","X",null,"Sheets/Set","X",{"$f":"LEDGERCOPIES","v":0.34},"per Sheet","=",0]
[null,"Covers & Binding",null,null,null,null,null,null,null,"sets","X",{"$f":"COVERS+BINDERS","v":1},"per set","=",{"$f":"+I991*L991","v":0}]
[null,"Final UMR Plans",null,null,null,null,"Sets","X",null,"Sheets/Set","X",{"$f":"LEDGERCOPIES","v":0.34},"per Sheet","=",0]
[null,"QC Set",null,null,null,null,"Sets","X",null,"Sheets/Set","X",{"$f":"LEDGERCOPIES","v":0.34},"per Sheet","=",0]
[null,"Record Set - Consultant ",null,null,null,null,"Sets","X",null,"Sheets/Set","X",{"$f":"LEDGERCOPIES","v":0.34},"per Sheet","=",0]
[null,"Covers & Binding",null,null,null,null,null,null,null,"sets","X",{"$f":"COVERS+BINDERS","v":1},"per set","=",{"$f":"+I995*L995","v":0}]
[]
[null,"Bond Prints (22\" x 34\")"]
[null,"Final UMR plans - Deliverables",null,null,null,null,"Sets","X",null,"Sheets/Set","X",{"$f":"BOND.REGULAR","v":0.42},"per Sheet","=",{"$f":"+F998*I998*L998","v":0}]
[null,"QC Set",null,null,null,null,"Sets","X",null,"Sheets/Set","X",{"$f":"BOND.REGULAR","v":0.42},"per Sheet","=",{"$f":"+F999*I999*L999","v":0}]
[null,{"$f":"CONCATENATE(\"Record Set - Consultant\",\" \",A8)","v":"Record Set - Consultant CONSULTANT NAME"},null,null,null,null,"Sets","X",null,"Sheets/Set","X",{"$f":"BOND.REGULAR","v":0.42},"per Sheet","=",{"$f":"+F1000*I1000*L1000","v":0}]
[null,"Covers & Binding",null,null,null,null,null,null,null,"sets","X",{"$f":"COVERS+BINDERS","v":1},"per set","=",{"$f":"+I1001*L1001","v":0}]
[]
["MILEAGE"]
[null," Trips",null,null,null,null,"Trips","X",null,"Miles/Trip","X",{"$f":"SEDAN","v":0.7},"per Mile","=",{"$f":"+F1004*I1004*L1004","v":0}]
[]
["CAR RENTAL"]
[null," Trips"]
[10.1,"Utility Partnering Meeting",null,null,null,null,"Trips","X",null,"day/Trip","X",{"$f":"CARRENTAL","v":50},"per day","=",{"$f":"+F1008*I1008*L1008","v":0}]
[null,null,null,null,null,null,"trips","X",null,"Miles/Trip","X",{"$f":"GASforRENTAL","v":0.2},"per Mile","=",0]
[10.3,"Preliminary Cable Route Survey",null,null,null,null,"trips","X",null,"day/Trip","X",{"$f":"CARRENTAL","v":50},"per day","=",0]
[null,"Roundtrip -  to ",null,null,null,null,"trips","X",null,"Miles/Trip","X",{"$f":"GASforRENTAL","v":0.2},"per Mile","=",0]
[null,"Local Mileage in ",null,null,null,null,"trips","X",null,"Miles/Trip","X",{"$f":"GASforRENTAL","v":0.2},"per Mile","=",0]
[10.8,"Field Survey Aerial Routes",null,null,null,null,"Trips","X",null,"day/Trip","X",{"$f":"CARRENTAL","v":50},"per day","=",0]
[null,"Roundtrip -  to ",null,null,null,null,"trips","X",null,"Miles/Trip","X",{"$f":"GASforRENTAL","v":0.2},"per Mile","=",0]
[null,"Local Mileage in ",null,null,null,null,"trips","X",null,"Miles/Trip","X",{"$f":"GASforRENTAL","v":0.2},"per Mile","=",0]
[10.1,"UMR Walk-throughs",null,null,null,null,"Trips","X",null,"day/Trip","X",{"$f":"CARRENTAL","v":50},"per day","=",0]
[null,"Roundtrip -  to ",null,null,null,null,"trips","X",null,"Miles/Trip","X",{"$f":"GASforRENTAL","v":0.2},"per Mile","=",0]
[null,"Local Mileage in ",null,null,null,null,"trips","X",null,"Miles/Trip","X",{"$f":"GASforRENTAL","v":0.2},"per Mile","=",0]
[]
["OVERNIGHT TRAVEL"]
[10.1,"Hotel",null,"persons","X",null,"trips","X",null,"nights/trip","X",{"$f":"LODGING_LUMP.SUM","v":95},"per night","=",{"$f":"+C1021*F1021*I1021*L1021","v":0}]
[null,"Per Diem - Breakfast, Lunch, & Dinner",null,"persons","X",null,"trips","X",null,"days/trip","X",{"$f":"BREAKFAST+LUNCH+DINNER","v":46.5},"per day","=",{"$f":"+C1022*F1022*I1022*L1022","v":0}]
[null,"Per Diem - Breakfast  ",null,"persons","X",null,"trips","X",null,"days/trip","X",{"$f":"BREAKFAST","v":10.1},"per day","=",0]
[null,"Per Diem - Lunch",null,"persons","X",null,"trips","X",null,"days/trip","X",{"$f":"LUNCH","v":13.3},"per day","=",0]
[null,"Per Diem - Dinner",null,"persons","X",null,"trips","X",null,"days/trip","X",{"$f":"DINNER","v":23.1},"per day","=",0]
[10.3,"Hotel",null,"persons","X",null,"trips","X",null,"nights/trip","X",{"$f":"LODGING_LUMP.SUM","v":95},"per night","=",0]
[null,"Per Diem - Breakfast, Lunch, & Dinner",null,"persons","X",null,"trips","X",null,"days/trip","X",{"$f":"BREAKFAST+LUNCH+DINNER","v":46.5},"per day","=",0]
[null,"Per Diem - Breakfast  ",null,"persons","X",null,"trips","X",null,"days/trip","X",{"$f":"BREAKFAST","v":10.1},"per day","=",0]
[null,"Per Diem - Lunch",null,"persons","X",null,"trips","X",null,"days/trip","X",{"$f":"LUNCH","v":13.3},"per day","=",0]
[null,"Per Diem - Dinner",null,"persons","X",null,"trips","X",null,"days/trip","X",{"$f":"DINNER","v":23.1},"per day","=",0]
[10.8,"Hotel",null,"persons","X",null,"trips","X",null,"nights/trip","X",{"$f":"LODGING_LUMP.SUM","v":95},"per night","=",0]
[null,"Per Diem - Breakfast, Lunch, & Dinner",null,"persons","X",null,"trips","X",null,"days/trip","X",{"$f":"BREAKFAST+LUNCH+DINNER","v":46.5},"per day","=",0]
[null,"Per Diem - Breakfast  ",null,"persons","X",null,"trips","X",null,"days/trip","X",{"$f":"BREAKFAST","v":10.1},"per day","=",0]
[null,"Per Diem - Lunch",null,"persons","X",null,"trips","X",null,"days/trip","X",{"$f":"LUNCH","v":13.3},"per day","=",0]
[null,"Per Diem - Dinner",null,"persons","X",null,"trips","X",null,"days/trip","X",{"$f":"DINNER","v":23.1},"per day","=",0]
[10.1,"Hotel",null,"persons","X",null,"trips","X",null,"nights/trip","X",{"$f":"LODGING_LUMP.SUM","v":95},"per night","=",0]
[null,"Per Diem - Breakfast, Lunch, & Dinner",null,"persons","X",null,"trips","X",null,"days/trip","X",{"$f":"BREAKFAST+LUNCH+DINNER","v":46.5},"per day","=",0]
[null,"Per Diem - Breakfast  ",null,"persons","X",null,"trips","X",null,"days/trip","X",{"$f":"BREAKFAST","v":10.1},"per day","=",0]
[null,"Per Diem - Lunch",null,"persons","X",null,"trips","X",null,"days/trip","X",{"$f":"LUNCH","v":13.3},"per day","=",0]
[null,"Per Diem - Dinner",null,"persons","X",null,"trips","X",null,"days/trip","X",{"$f":"DINNER","v":23.1},"per day","=",0]
[]
[]
["OTHER"]
[null,"Postage & Courier"]
[null,"FedEx (2-day Economy) UMR Plans to Utilities & City",null,"Submittals","X",null,"Pack.","X",10,"Ea",null,null,null,"=",{"$f":"+C1045*F1045*I1045","v":0}]
[null,"Miscellaneous",null,null,null,null,"Pack.","X",25,"Ea",null,null,null,"=",{"$f":"+F1046*I1046","v":0}]
[null,null,null,"UOM","X",null,"UOM","X",null,"UOM","X",null,"UOM","=",{"$f":"+C1047*F1047*I1047*L1047","v":0}]
[null,null,null,"UOM","X",null,"UOM","X",null,"UOM","X",null,"UOM","=",0]
[null,null,null,"UOM","X",null,"UOM","X",null,"UOM","X",null,"UOM","=",0]
[null,null,null,"UOM","X",null,"UOM","X",null,"UOM","X",null,"UOM","=",0]
[null,null,null,"UOM","X",null,"UOM","X",null,"UOM","X",null,"UOM","=",0]
[]
[]
[null,null,null,null,null,null,null,null,null,null,null,null,"Subtotal",null,{"$f":"SUM(O979:O1052)","v":0}]
["Task 11.0","Construction Plans (See Deliverables also)"]
[]
["CAR RENTAL"]
[null," Trips"]
[]
["11.1.14","CL Sheet Field Investigation",null,null,null,null,"trips","X",null,"day/Trip","X",{"$f":"CARRENTAL","v":50},"per day","=",{"$f":"+F1060*I1060*L1060","v":0}]
[null,null,null,null,null,null,"trips","X",null,"Miles/Trip","X",{"$f":"GASforRENTAL","v":0.2},"per Mile","=",{"$f":"+F1061*I1061*L1061","v":0}]
[]
["11.1.19 thru 20","Field Investigate Bldg. Mods.",null,null,null,null,"trips","X",null,"day/Trip","X",{"$f":"CARRENTAL","v":50},"per day","=",0]
[null,null,null,null,null,null,"trips","X",null,"Miles/Trip","X",{"$f":"GASforRENTAL","v":0.2},"per Mile","=",0]
[11.4,"Field Check Final Plans",null,null,null,null,"trips","X",null,"day/Trip","X",{"$f":"CARRENTAL","v":50},"per day","=",0]
[null,null,null,null,null,null,"trips","X",null,"Miles/Trip","X",{"$f":"GASforRENTAL","v":0.2},"per Mile","=",0]
[]
["OVERNIGHT TRAVEL"]
[null,"Hotel"]
["11.1.26","Prelim PS&E On-site work sessions - back to back with steering committeee meetings",null,"persons","X",null,"trips","X",null,"nights/trip","X",{"$f":"LODGING_LUMP.SUM","v":95},"per night","=",{"$f":"+C1070*F1070*I1070*L1070","v":0}]
["11.1.19 thru 20","Field Investigate Bldg. Mods.",null,"persons","X",null,"trips","X",null,"nights/trip","X",{"$f":"LODGING_LUMP.SUM","v":95},"per night","=",{"$f":"+C1071*F1071*I1071*L1071","v":0}]
[null,"Per Diem (Breakfast, Lunch, & Dinner)"]
["11.1.19 thru 20","Field Investigate Bldg. Mods.",null,"persons","X",null,"trips","X",null,"days/trip","X",{"$f":"BREAKFAST+LUNCH+DINNER","v":46.5},"per day","=",{"$f":"+C1073*F1073*I1073*L1073","v":0}]
["11.1.26","Prelim PS&E On-site work sessions - back to back with steering committeee meetings",null,"persons","X",null,"trips","X",null,"days/trip","X",{"$f":"BREAKFAST+LUNCH+DINNER","v":46.5},"per day","=",0]
[null,"Per Diem (Breakfast)"]
["11.1.19 thru 20","Field Investigate Bldg. Mods.",null,"persons","X",null,"trips","X",null,"days/trip","X",{"$f":"BREAKFAST","v":10.1},"per day","=",{"$f":"+C1076*F1076*I1076*L1076","v":0}]
["11.1.26","Prelim PS&E On-site work sessions - back to back with steering committeee meetings",null,"persons","X",null,"trips","X",null,"days/trip","X",{"$f":"BREAKFAST","v":10.1},"per day","=",0]
[null,"Per Diem (Lunch)"]
["11.1.19 thru 20","Field Investigate Bldg. Mods.",null,"persons","X",null,"trips","X",null,"days/trip","X",{"$f":"LUNCH","v":13.3},"per day","=",{"$f":"+C1079*F1079*I1079*L1079","v":0}]
["11.1.26","Prelim PS&E On-site work sessions - back to back with steering committeee meetings",null,"persons","X",null,"trips","X",null,"days/trip","X",{"$f":"LUNCH","v":13.3},"per day","=",0]
[null,"Per Diem (Dinner)"]
["11.1.19 thru 20","Field Investigate Bldg. Mods.",null,"persons","X",null,"trips","X",null,"days/trip","X",{"$f":"DINNER","v":23.1},"per day","=",0]
["11.1.26","Prelim PS&E On-site work sessions - back to back with steering committeee meetings",null,"persons","X",null,"trips","X",null,"days/trip","X",{"$f":"DINNER","v":23.1},"per day","=",0]
[]
["OTHER"]
[null,"Miscellaneous",null,null,null,null,"Sets","X",null,"Sheets/Set","X",{"$f":"LETTERCOPIES","v":0.14000000000000001},"per Sheet","=",{"$f":"+F1086*I1086*L1086","v":0}]
[null,null,null,null,null,null,null,null,null,"Sheets","X",{"$f":"LETTERCOPIES","v":0.14000000000000001},"per Sheet","=",{"$f":"+I1087*L1087","v":0}]
[null,null,null,"UOM","X",null,"UOM","X",null,"UOM","X",null,"UOM","=",{"$f":"+C1088*F1088*I1088*L1088","v":0}]
[null,null,null,"UOM","X",null,"UOM","X",null,"UOM","X",null,"UOM","=",0]
[null,null,null,"UOM","X",null,"UOM","X",null,"UOM","X",null,"UOM","=",0]
[null,null,null,"UOM","X",null,"UOM","X",null,"UOM","X",null,"UOM","=",0]
[null,null,null,"UOM","X",null,"UOM","X",null,"UOM","X",null,"UOM","=",0]
[]
[null,null,null,null,null,null,null,null,null,null,null,null,"Subtotal",null,{"$f":"SUM(O1060:O1092)","v":0}]
["Task 12.0","Project Special Provisions (See Deliverables also)"]
["REPRODUCTION/PRINTING/DOCUMENTATION"]
[null,"Xerox Copies (8.5\" x 11\")"]
[null,"Miscellaneous (Corres., etc.)"]
[null,null,null,null,null,null,null,null,null,"Sheets","X",{"$f":"LETTERCOPIES","v":0.14000000000000001},"per Sheet","=",{"$f":"+I1099*L1099","v":0}]
[null,null,null,"UOM","X",null,"UOM","X",null,"UOM","X",null,"UOM","=",{"$f":"+C1100*F1100*I1100*L1100","v":0}]
[null,null,null,"UOM","X",null,"UOM","X",null,"UOM","X",null,"UOM","=",0]
[null,null,null,"UOM","X",null,"UOM","X",null,"UOM","X",null,"UOM","=",0]
[null,null,null,"UOM","X",null,"UOM","X",null,"UOM","X",null,"UOM","=",0]
[null,null,null,"UOM","X",null,"UOM","X",null,"UOM","X",null,"UOM","=",0]
[]
[null,null,null,null,null,null,null,null,null,null,null,null,"Subtotal",null,{"$f":"SUM(O1097:O1104)","v":0}]
["Task 13.0","Engineer's Opinion of Probable Cost"]
["REPRODUCTION"]
[null,"Xerox Copies (8.5\" x 11\")"]
[null,"Preliminary Opinion of Cost"]
[null,"Final Opinion of Cost",null,null,null,null,"Sets","X",null,"Sheets/Set","X",{"$f":"LETTERCOPIES","v":0.14000000000000001},"per Sheet","=",{"$f":"+F1111*I1111*L1111","v":0}]
[null,"Miscellaneous",null,null,null,null,"Sets","X",null,"Sheets/Set","X",{"$f":"LETTERCOPIES","v":0.14000000000000001},"per Sheet","=",{"$f":"+F1112*I1112*L1112","v":0}]
[null,null,null,null,null,null,null,null,null,"Sheets","X",{"$f":"LETTERCOPIES","v":0.14000000000000001},"per Sheet","=",{"$f":"+I1113*L1113","v":0}]
[]
["OTHER"]
[null,null,null,"UOM","X",null,"UOM","X",null,"UOM","X",null,"UOM","=",{"$f":"+C1116*F1116*I1116*L1116","v":0}]
[null,null,null,"UOM","X",null,"UOM","X",null,"UOM","X",null,"UOM","=",0]
[null,null,null,"UOM","X",null,"UOM","X",null,"UOM","X",null,"UOM","=",0]
[null,null,null,"UOM","X",null,"UOM","X",null,"UOM","X",null,"UOM","=",0]
[null,null,null,"UOM","X",null,"UOM","X",null,"UOM","X",null,"UOM","=",0]
[]
[null,null,null,null,null,null,null,null,null,null,null,null,"Subtotal",null,{"$f":"SUM(O1110:O1120)","v":0}]
["Task 14.0","Prepare PS&E Deliverables and Final Documentation"]
["REPRODUCTION"]
[null,"Xerox Copies (8.5\" x 11\")"]
[null,"Preliminary Special Provisions",null,null,null,null,"Sets","X",null,"Sheets/Set","X",{"$f":"LETTERCOPIES","v":0.14000000000000001},"per Sheet","=",{"$f":"+F1126*I1126*L1126","v":0}]
[null,"Covers & Binding",null,null,null,null,null,null,null,"sets","X",{"$f":"COVERS+BINDERS","v":1},"per set","=",{"$f":"+I1127*L1127","v":0}]
[null,"QC Set",null,null,null,null,"Sets","X",null,"Sheets/Set","X",{"$f":"LETTERCOPIES","v":0.14000000000000001},"per Sheet","=",{"$f":"+F1128*I1128*L1128","v":0}]
[null,"Record Set - Consultant",null,null,null,null,"Sets","X",null,"Sheets/Set","X",{"$f":"LETTERCOPIES","v":0.14000000000000001},"per Sheet","=",0]
[null,"Draft Final Special Provisions",null,null,null,null,"Sets","X",null,"Sheets/Set","X",{"$f":"LETTERCOPIES","v":0.14000000000000001},"per Sheet","=",0]
[null,"Covers & Binding",null,null,null,null,null,null,null,"sets","X",{"$f":"COVERS+BINDERS","v":1},"per set","=",{"$f":"+I1131*L1131","v":0}]
[null,"QC Set",null,null,null,null,"Sets","X",null,"Sheets/Set","X",{"$f":"LETTERCOPIES","v":0.14000000000000001},"per Sheet","=",{"$f":"+F1132*I1132*L1132","v":0}]
[null,"Record Set - Consultant",null,null,null,null,"Sets","X",null,"Sheets/Set","X",{"$f":"LETTERCOPIES","v":0.14000000000000001},"per Sheet","=",0]
[null,"Final Special Provisions",null,null,null,null,"Sets","X",null,"Sheets/Set","X",{"$f":"LETTERCOPIES","v":0.14000000000000001},"per Sheet","=",0]
[null,"Covers & Binding",null,null,null,null,null,null,null,"sets","X",{"$f":"COVERS+BINDERS","v":1},"per set","=",{"$f":"+I1135*L1135","v":0}]
[null,"QC Set",null,null,null,null,"Sets","X",null,"Sheets/Set","X",{"$f":"LETTERCOPIES","v":0.14000000000000001},"per Sheet","=",{"$f":"+F1136*I1136*L1136","v":0}]
[null,"Record Set - Consultant",null,null,null,null,"Sets","X",null,"Sheets/Set","X",{"$f":"LETTERCOPIES","v":0.14000000000000001},"per Sheet","=",0]
[null,"Misc. (Corres., Signal Calcs, etc.)",null,null,null,null,null,null,null,"Sheets","X",{"$f":"LETTERCOPIES","v":0.14000000000000001},"per Sheet","=",{"$f":"+I1138*L1138","v":0}]
[]
[]
[null,"Xerox Copies (11\" x 17\")"]
[null,"Preliminary Construction Plans (no NCDOT Signals)",null,null,null,null,"Sets","X",null,"Sheets/Set","X",{"$f":"LEDGERCOPIES","v":0.34},"per Sheet","=",{"$f":"+F1142*I1142*L1142","v":0}]
[null,"QC Set",null,null,null,null,"Sets","X",null,"Sheets/Set","X",{"$f":"LEDGERCOPIES","v":0.34},"per Sheet","=",0]
[null,"Record Set - Consultant",null,null,null,null,"Sets","X",null,"Sheets/Set","X",{"$f":"LEDGERCOPIES","v":0.34},"per Sheet","=",0]
[null,"Covers & Binding",null,null,null,null,"Sets","X",null,"Volumes/Set","X",{"$f":"COVERS+BINDERS","v":1},"per set","=",0]
[null,"Draft Final Construction Plans (incl. NCDOT Signals)",null,null,null,null,"Sets","X",null,"Sheets/Set","X",{"$f":"LEDGERCOPIES","v":0.34},"per Sheet","=",0]
[null,"QC Set",null,null,null,null,"Sets","X",null,"Sheets/Set","X",{"$f":"LEDGERCOPIES","v":0.34},"per Sheet","=",0]
[null,"Record Set - Consultant",null,null,null,null,"Sets","X",null,"Sheets/Set","X",{"$f":"LEDGERCOPIES","v":0.34},"per Sheet","=",0]
[null,"Covers & Binding",null,null,null,null,"Sets","X",null,"Volumes/Set","X",{"$f":"COVERS+BINDERS","v":1},"per set","=",0]
[null,"Final Construction Plans (incl. NCDOT Signals)",null,null,null,null,"Sets","X",null,"Sheets/Set","X",{"$f":"LEDGERCOPIES","v":0.34},"per Sheet","=",0]
[null,"QC Set",null,null,null,null,"Sets","X",null,"Sheets/Set","X",{"$f":"LEDGERCOPIES","v":0.34},"per Sheet","=",0]
[null,"Record Set - Consultant",null,null,null,null,"Sets","X",null,"Sheets/Set","X",{"$f":"LEDGERCOPIES","v":0.34},"per Sheet","=",0]
[null,"Covers & Binding",null,null,null,null,"Sets","X",null,"Volumes/Set","X",{"$f":"COVERS+BINDERS","v":1},"per set","=",0]
[]
[null,"Bond Prints (22\" x 34\")"]
[null,"Final Construction Plans",null,null,null,null,"Sets","X",null,"Sheets/Set","X",{"$f":"BOND.REGULAR","v":0.42},"per Sheet","=",{"$f":"+F1156*I1156*L1156","v":0}]
[null,"QC Set",null,null,null,null,"Sets","X",null,"Sheets/Set","X",{"$f":"BOND.REGULAR","v":0.42},"per Sheet","=",0]
[null,"Record Set - Consultant",null,null,null,null,"Sets","X",null,"Sheets/Set","X",{"$f":"BOND.REGULAR","v":0.42},"per Sheet","=",0]
[null,"Covers & Binding",null,null,null,null,"Sets","X",null,"Volumes/Set","X",{"$f":"COVERS+BINDERS","v":1},"per set","=",0]
[]
["MILEAGE"]
[null,"NCDOT Delivery/Pick-up",null,null,null,null,"Trips","X",null,"Miles/Trip","X",{"$f":"SEDAN","v":0.7},"per Mile","=",{"$f":"+F1162*I1162*L1162","v":0}]
[]
["OTHER"]
[null,"USB Jump Drive (16 GB)",null,null,null,null,"Each","X",19.989999999999998,"Ea",null,null,null,"=",{"$f":"+F1165*I1165","v":0}]
[null,null,null,"UOM","X",null,"UOM","X",null,"UOM","X",null,"UOM","=",{"$f":"+C1166*F1166*I1166*L1166","v":0}]
[null,null,null,"UOM","X",null,"UOM","X",null,"UOM","X",null,"UOM","=",0]
[null,null,null,"UOM","X",null,"UOM","X",null,"UOM","X",null,"UOM","=",0]
[null,null,null,"UOM","X",null,"UOM","X",null,"UOM","X",null,"UOM","=",0]
[null,null,null,"UOM","X",null,"UOM","X",null,"UOM","X",null,"UOM","=",0]
[]
[null,null,null,null,null,null,null,null,null,null,null,null,"Subtotal",null,{"$f":"SUM(O1126:O1170)","v":0}]
[]
["Task 15.0",{"$f":"IF(B375=\"REPLACE FIELD WITH CATEGORY NAME OF YOUR CHOOSING HERE\",\"Category Not Defined Above, Please do not key values in this section\",B375)","v":"Category Not Defined Above, Please do not key values in this section"},null,null,null,null,null,null,null,null,null,null,null,null,{"$f":"IF(B1174=\"Category Not Defined Above, Please do not key values in this section\",0,\"\")","v":0}]
["OTHER","UOM = Unit of Measure",null,null,null,null,null,null,null,null,null,null,null,null,{"$f":"IF(B1174=\"Category Not Defined Above, Please do not key values in this section\",0,\"\")","v":0}]
[null,null,null,"UOM","X",null,"UOM","X",null,"UOM","X",null,"UOM","=",{"$f":"+C1176*F1176*I1176*L1176","v":0}]
[null,null,null,"UOM","X",null,"UOM","X",null,"UOM","X",null,"UOM","=",0]
[null,null,null,"UOM","X",null,"UOM","X",null,"UOM","X",null,"UOM","=",0]
[null,null,null,"UOM","X",null,"UOM","X",null,"UOM","X",null,"UOM","=",0]
[null,null,null,"UOM","X",null,"UOM","X",null,"UOM","X",null,"UOM","=",0]
[null,null,null,"UOM","X",null,"UOM","X",null,"UOM","X",null,"UOM","=",0]
[null,null,null,"UOM","X",null,"UOM","X",null,"UOM","X",null,"UOM","=",0]
[null,null,null,"UOM","X",null,"UOM","X",null,"UOM","X",null,"UOM","=",0]
[null,null,null,"UOM","X",null,"UOM","X",null,"UOM","X",null,"UOM","=",0]
[null,null,null,"UOM","X",null,"UOM","X",null,"UOM","X",null,"UOM","=",0]
[null,null,null,"UOM","X",null,"UOM","X",null,"UOM","X",null,"UOM","=",0]
[null,null,null,"UOM","X",null,"UOM","X",null,"UOM","X",null,"UOM","=",0]
[null,null,null,"UOM","X",null,"UOM","X",null,"UOM","X",null,"UOM","=",0]
[null,null,null,"UOM","X",null,"UOM","X",null,"UOM","X",null,"UOM","=",0]
[null,null,null,"UOM","X",null,"UOM","X",null,"UOM","X",null,"UOM","=",0]
[]
[null,null,null,null,null,null,null,null,null,null,null,null,"Subtotal",null,{"$f":"SUM(O1176:O1190)","v":0}]
[]
[]
["Task 16.0",{"$f":"IF(B409=\"REPLACE FIELD WITH CATEGORY NAME OF YOUR CHOOSING HERE\",\"Category Not Defined Above, Please do not key values in this section\",B409)","v":"Category Not Defined Above, Please do not key values in this section"},null,null,null,null,null,null,null,null,null,null,null,null,{"$f":"IF(B1195=\"Category Not Defined Above, Please do not key values in this section\",0,\"\")","v":0}]
["OTHER","UOM = Unit of Measure",null,null,null,null,null,null,null,null,null,null,null,null,{"$f":"IF(B1195=\"Category Not Defined Above, Please do not key values in this section\",0,\"\")","v":0}]
[null,null,null,"UOM","X",null,"UOM","X",null,"UOM","X",null,"UOM","=",{"$f":"+C1197*F1197*I1197*L1197","v":0}]
[null,null,null,"UOM","X",null,"UOM","X",null,"UOM","X",null,"UOM","=",0]
[null,null,null,"UOM","X",null,"UOM","X",null,"UOM","X",null,"UOM","=",0]
[null,null,null,"UOM","X",null,"UOM","X",null,"UOM","X",null,"UOM","=",0]
[null,null,null,"UOM","X",null,"UOM","X",null,"UOM","X",null,"UOM","=",0]
[null,null,null,"UOM","X",null,"UOM","X",null,"UOM","X",null,"UOM","=",0]
[null,null,null,"UOM","X",null,"UOM","X",null,"UOM","X",null,"UOM","=",0]
[null,null,null,"UOM","X",null,"UOM","X",null,"UOM","X",null,"UOM","=",0]
[null,null,null,"UOM","X",null,"UOM","X",null,"UOM","X",null,"UOM","=",0]
[null,null,null,"UOM","X",null,"UOM","X",null,"UOM","X",null,"UOM","=",0]
[null,null,null,"UOM","X",null,"UOM","X",null,"UOM","X",null,"UOM","=",0]
[null,null,null,"UOM","X",null,"UOM","X",null,"UOM","X",null,"UOM","=",0]
[null,null,null,"UOM","X",null,"UOM","X",null,"UOM","X",null,"UOM","=",0]
[null,null,null,"UOM","X",null,"UOM","X",null,"UOM","X",null,"UOM","=",0]
[null,null,null,"UOM","X",null,"UOM","X",null,"UOM","X",null,"UOM","=",0]
[]
[null,null,null,null,null,null,null,null,null,null,null,null,"Subtotal",null,{"$f":"SUM(O1197:O1211)","v":0}]
[]
[]
["Task 17.0",{"$f":"IF(B443=\"REPLACE FIELD WITH CATEGORY NAME OF YOUR CHOOSING HERE\",\"Category Not Defined Above, Please do not key values in this section\",B443)","v":"Category Not Defined Above, Please do not key values in this section"},null,null,null,null,null,null,null,null,null,null,null,null,{"$f":"IF(B1216=\"Category Not Defined Above, Please do not key values in this section\",0,\"\")","v":0}]
["OTHER","UOM = Unit of Measure",null,null,null,null,null,null,null,null,null,null,null,null,{"$f":"IF(B1216=\"Category Not Defined Above, Please do not key values in this section\",0,\"\")","v":0}]
[null,null,null,"UOM","X",null,"UOM","X",null,"UOM","X",null,"UOM","=",{"$f":"+C1218*F1218*I1218*L1218","v":0}]
[null,null,null,"UOM","X",null,"UOM","X",null,"UOM","X",null,"UOM","=",0]
[null,null,null,"UOM","X",null,"UOM","X",null,"UOM","X",null,"UOM","=",0]
[null,null,null,"UOM","X",null,"UOM","X",null,"UOM","X",null,"UOM","=",0]
[null,null,null,"UOM","X",null,"UOM","X",null,"UOM","X",null,"UOM","=",0]
[null,null,null,"UOM","X",null,"UOM","X",null,"UOM","X",null,"UOM","=",0]
[null,null,null,"UOM","X",null,"UOM","X",null,"UOM","X",null,"UOM","=",0]
[null,null,null,"UOM","X",null,"UOM","X",null,"UOM","X",null,"UOM","=",0]
[null,null,null,"UOM","X",null,"UOM","X",null,"UOM","X",null,"UOM","=",0]
[null,null,null,"UOM","X",null,"UOM","X",null,"UOM","X",null,"UOM","=",0]
[null,null,null,"UOM","X",null,"UOM","X",null,"UOM","X",null,"UOM","=",0]
[null,null,null,"UOM","X",null,"UOM","X",null,"UOM","X",null,"UOM","=",0]
[null,null,null,"UOM","X",null,"UOM","X",null,"UOM","X",null,"UOM","=",0]
[null,null,null,"UOM","X",null,"UOM","X",null,"UOM","X",null,"UOM","=",0]
[null,null,null,"UOM","X",null,"UOM","X",null,"UOM","X",null,"UOM","=",0]
[]
[null,null,null,null,null,null,null,null,null,null,null,null,"Subtotal",null,{"$f":"SUM(O1218:O1232)","v":0}]
[]
[]
["Task 18.0",{"$f":"IF(B477=\"REPLACE FIELD WITH CATEGORY NAME OF YOUR CHOOSING HERE\",\"Category Not Defined Above, Please do not key values in this section\",B477)","v":"Category Not Defined Above, Please do not key values in this section"},null,null,null,null,null,null,null,null,null,null,null,null,{"$f":"IF(B1237=\"Category Not Defined Above, Please do not key values in this section\",0,\"\")","v":0}]
["OTHER","UOM = Unit of Measure",null,null,null,null,null,null,null,null,null,null,null,null,{"$f":"IF(B1237=\"Category Not Defined Above, Please do not key values in this section\",0,\"\")","v":0}]
[null,null,null,"UOM","X",null,"UOM","X",null,"UOM","X",null,"UOM","=",{"$f":"+C1239*F1239*I1239*L1239","v":0}]
[null,null,null,"UOM","X",null,"UOM","X",null,"UOM","X",null,"UOM","=",0]
[null,null,null,"UOM","X",null,"UOM","X",null,"UOM","X",null,"UOM","=",0]
[null,null,null,"UOM","X",null,"UOM","X",null,"UOM","X",null,"UOM","=",0]
[null,null,null,"UOM","X",null,"UOM","X",null,"UOM","X",null,"UOM","=",0]
[null,null,null,"UOM","X",null,"UOM","X",null,"UOM","X",null,"UOM","=",0]
[null,null,null,"UOM","X",null,"UOM","X",null,"UOM","X",null,"UOM","=",0]
[null,null,null,"UOM","X",null,"UOM","X",null,"UOM","X",null,"UOM","=",0]
[null,null,null,"UOM","X",null,"UOM","X",null,"UOM","X",null,"UOM","=",0]
[null,null,null,"UOM","X",null,"UOM","X",null,"UOM","X",null,"UOM","=",0]
[null,null,null,"UOM","X",null,"UOM","X",null,"UOM","X",null,"UOM","=",0]
[null,null,null,"UOM","X",null,"UOM","X",null,"UOM","X",null,"UOM","=",0]
[null,null,null,"UOM","X",null,"UOM","X",null,"UOM","X",null,"UOM","=",0]
[null,null,null,"UOM","X",null,"UOM","X",null,"UOM","X",null,"UOM","=",0]
[null,null,null,"UOM","X",null,"UOM","X",null,"UOM","X",null,"UOM","=",0]
[]
[null,null,null,null,null,null,null,null,null,null,null,null,"Subtotal",null,{"$f":"SUM(O1239:O1253)","v":0}]
[]
[]
["Task 19.0",{"$f":"IF(B511=\"REPLACE FIELD WITH CATEGORY NAME OF YOUR CHOOSING HERE\",\"Category Not Defined Above, Please do not key values in this section\",B511)","v":"Category Not Defined Above, Please do not key values in this section"},null,null,null,null,null,null,null,null,null,null,null,null,{"$f":"IF(B1258=\"Category Not Defined Above, Please do not key values in this section\",0,\"\")","v":0}]
["OTHER","UOM = Unit of Measure",null,null,null,null,null,null,null,null,null,null,null,null,{"$f":"IF(B1258=\"Category Not Defined Above, Please do not key values in this section\",0,\"\")","v":0}]
[null,null,null,"UOM","X",null,"UOM","X",null,"UOM","X",null,"UOM","=",{"$f":"+C1260*F1260*I1260*L1260","v":0}]
[null,null,null,"UOM","X",null,"UOM","X",null,"UOM","X",null,"UOM","=",0]
[null,null,null,"UOM","X",null,"UOM","X",null,"UOM","X",null,"UOM","=",0]
[null,null,null,"UOM","X",null,"UOM","X",null,"UOM","X",null,"UOM","=",0]
[null,null,null,"UOM","X",null,"UOM","X",null,"UOM","X",null,"UOM","=",0]
[null,null,null,"UOM","X",null,"UOM","X",null,"UOM","X",null,"UOM","=",0]
[null,null,null,"UOM","X",null,"UOM","X",null,"UOM","X",null,"UOM","=",0]
[null,null,null,"UOM","X",null,"UOM","X",null,"UOM","X",null,"UOM","=",0]
[null,null,null,"UOM","X",null,"UOM","X",null,"UOM","X",null,"UOM","=",0]
[null,null,null,"UOM","X",null,"UOM","X",null,"UOM","X",null,"UOM","=",0]
[null,null,null,"UOM","X",null,"UOM","X",null,"UOM","X",null,"UOM","=",0]
[null,null,null,"UOM","X",null,"UOM","X",null,"UOM","X",null,"UOM","=",0]
[null,null,null,"UOM","X",null,"UOM","X",null,"UOM","X",null,"UOM","=",0]
[null,null,null,"UOM","X",null,"UOM","X",null,"UOM","X",null,"UOM","=",0]
[null,null,null,"UOM","X",null,"UOM","X",null,"UOM","X",null,"UOM","=",0]
[]
[null,null,null,null,null,null,null,null,null,null,null,null,"Subtotal",null,{"$f":"SUM(O1260:O1274)","v":0}]
[]
[]
["Task 20.0",{"$f":"IF(B545=\"REPLACE FIELD WITH CATEGORY NAME OF YOUR CHOOSING HERE\",\"Category Not Defined Above, Please do not key values in this section\",B545)","v":"Category Not Defined Above, Please do not key values in this section"},null,null,null,null,null,null,null,null,null,null,null,null,{"$f":"IF(B1279=\"Category Not Defined Above, Please do not key values in this section\",0,\"\")","v":0}]
["OTHER","UOM = Unit of Measure",null,null,null,null,null,null,null,null,null,null,null,null,{"$f":"IF(B1279=\"Category Not Defined Above, Please do not key values in this section\",0,\"\")","v":0}]
[null,null,null,"UOM","X",null,"UOM","X",null,"UOM","X",null,"UOM","=",{"$f":"+C1281*F1281*I1281*L1281","v":0}]
[null,null,null,"UOM","X",null,"UOM","X",null,"UOM","X",null,"UOM","=",0]
[null,null,null,"UOM","X",null,"UOM","X",null,"UOM","X",null,"UOM","=",0]
[null,null,null,"UOM","X",null,"UOM","X",null,"UOM","X",null,"UOM","=",0]
[null,null,null,"UOM","X",null,"UOM","X",null,"UOM","X",null,"UOM","=",0]
[null,null,null,"UOM","X",null,"UOM","X",null,"UOM","X",null,"UOM","=",0]
[null,null,null,"UOM","X",null,"UOM","X",null,"UOM","X",null,"UOM","=",0]
[null,null,null,"UOM","X",null,"UOM","X",null,"UOM","X",null,"UOM","=",0]
[null,null,null,"UOM","X",null,"UOM","X",null,"UOM","X",null,"UOM","=",0]
[null,null,null,"UOM","X",null,"UOM","X",null,"UOM","X",null,"UOM","=",0]
[null,null,null,"UOM","X",null,"UOM","X",null,"UOM","X",null,"UOM","=",0]
[null,null,null,"UOM","X",null,"UOM","X",null,"UOM","X",null,"UOM","=",0]
[null,null,null,"UOM","X",null,"UOM","X",null,"UOM","X",null,"UOM","=",0]
[null,null,null,"UOM","X",null,"UOM","X",null,"UOM","X",null,"UOM","=",0]
[null,null,null,"UOM","X",null,"UOM","X",null,"UOM","X",null,"UOM","=",0]
[]
[null,null,null,null,null,null,null,null,null,null,null,null,"Subtotal",null,{"$f":"SUM(O1281:O1295)","v":0}]
[]
[]
[null,null,null,null,null,null,null,null,"Non-Salary Expense Total",null,null,null,null,null,{"$f":"O1297+O1276+O1255+O1234+O1213+O1192+O1172+O1122+O1106+O1094+O1054+O975+O944+O909+O868+O828+O789+O747+O641","v":0}]

{"sheet":"MunicipalSignalSystem-Sub3","index":166,"n_rows":1300,"n_cols":57,"rows_kept":1300,"cut":false,"hidden":true,"merged":[[10,4,10,5],[0,0,0,31],[1,0,1,31],[4,0,4,9],[4,10,4,31],[5,0,5,31],[6,0,6,31],[7,0,7,31],[8,1,8,3],[9,1,9,3],[9,4,9,69],[11,4,11,5],[11,6,11,7],[11,52,11,53],[10,38,10,39],[10,16,10,17],[10,50,10,51],[10,6,10,7],[10,8,10,9],[10,10,10,11],[10,12,10,13],[10,14,10,15],[10,32,10,33],[10,18,10,19],[10,20,10,21],[10,22,10,23],[10,24,10,25],[10,26,10,27],[11,8,11,9],[11,10,11,11],[11,12,11,13],[11,14,11,15],[10,34,10,35],[10,36,10,37],[10,52,10,53],[11,54,12,54],[11,55,12,55],[11,34,11,35],[11,36,11,37],[11,38,11,39],[11,40,11,41],[11,42,11,43],[11,44,11,45],[12,50,12,51],[12,52,12,53],[11,46,11,47],[11,48,11,49],[11,50,11,51],[12,30,12,31],[11,16,11,17],[11,18,11,19],[11,20,11,21],[10,40,10,41],[10,42,10,43],[10,44,10,45],[10,46,10,47],[10,48,10,49],[10,28,10,29],[11,22,11,23],[11,24,11,25],[11,26,11,27],[11,28,11,29],[10,30,10,31],[11,30,11,31],[11,32,11,33],[12,8,12,9],[12,10,12,11],[12,12,12,13],[12,14,12,15],[12,16,12,17],[12,18,12,19],[12,0,13,0],[12,1,13,1],[12,2,13,2],[28,0,28,3],[29,0,29,3],[52,0,52,3],[53,0,53,3],[54,0,54,3],[114,0,114,3],[12,44,12,45],[12,46,12,47],[12,48,12,49],[12,3,13,3],[12,4,12,5],[12,6,12,7],[27,0,27,3],[12,32,12,33],[12,34,12,35],[12,36,12,37],[12,38,12,39],[12,40,12,41],[12,42,12,43],[12,20,12,21],[12,22,12,23],[12,24,12,25],[12,26,12,27],[12,28,12,29],[159,0,159,3],[160,0,160,3],[174,0,174,3],[175,0,175,3],[176,0,176,3],[187,0,187,3],[115,0,115,3],[116,0,116,3],[137,0,137,3],[138,0,138,3],[139,0,139,3],[158,0,158,3],[220,0,220,3],[221,0,221,3],[249,0,249,3],[250,0,250,3],[251,0,251,3],[312,0,312,3],[188,0,188,3],[189,0,189,3],[202,0,202,3],[203,0,203,3],[204,0,204,3],[219,0,219,3],[357,0,357,3],[358,0,358,3],[371,0,371,3],[372,0,372,3],[373,0,373,3],[405,0,405,3],[313,0,313,3],[314,0,314,3],[342,0,342,3],[343,0,343,3],[344,0,344,3],[356,0,356,3],[474,0,474,3],[475,0,475,3],[507,0,507,3],[508,0,508,3],[509,0,509,3],[541,0,541,3],[406,0,406,3],[407,0,407,3],[439,0,439,3],[440,0,440,3],[441,0,441,3],[473,0,473,3],[580,0,580,3],[581,0,581,3],[583,0,583,2],[584,0,584,2],[584,4,584,5],[585,0,585,2],[585,4,585,5],[542,0,542,3],[543,0,543,3],[575,0,575,3],[576,0,576,3],[577,0,577,3],[579,0,579,3],[589,0,589,2],[589,4,589,5],[596,0,596,15],[586,0,586,2],[586,4,586,5],[587,0,587,2],[587,4,587,5],[588,0,588,2],[588,4,588,5]]}
["MUNICIPAL SIGNAL SYSTEM Design - SUBCONSULTANT 3"]
["MUNICIPAL SIGNAL SYSTEM "]
["SCOPING ESTIMATE PREPARED for"]
[]
[{"$f":"CONCATENATE(IF(TIP.NUMBER=\"\",\"TIP\",CONCATENATE(\"TIP:  \",TIP.NUMBER)),IF(TIP.NUMBER=\"\",\"\",\"   \"))","v":"TIP"},null,null,null,null,null,null,null,null,null,{"$f":"CONCATENATE(IF(WBS.NUMBER=\"\",\"\",\"   \"),IF(WBS.NUMBER=\"\",\"WBS\",CONCATENATE(\"WBS:  \",WBS.NUMBER)))","v":"WBS"}]
[{"$f":"IF(COUNTY=\"\",\"COUNTY\",CONCATENATE(\"COUNTY:  \",COUNTY))","v":"COUNTY"}]
[{"$f":"IF(PROJECT.DESCRIPTION=\"\",\"PROJECT DESCRIPTION\",CONCATENATE(\"Project Description:  \",PROJECT.DESCRIPTION))","v":"PROJECT DESCRIPTION"}]
[{"$f":"IF(MUNICIPAL_SIGNAL_SYSTEM_SUB3_CONSULTANT_NAME=\"CONSULTANT NAME\",\"CONSULTANT NAME\", CONCATENATE(\"FIRM:  \",MUNICIPAL_SIGNAL_SYSTEM_SUB3_CONSULTANT_NAME))","v":"CONSULTANT NAME"}]
["Prepared By:",{"$f":"IF(SCOPE.MANDAY.ESTIMATE.PREPARED.BY=\"\",\"\",SCOPE.MANDAY.ESTIMATE.PREPARED.BY)","v":""},null,null,null,null,null,null,null,null,null,null,null,null,null,null,null,null,null,null,null,null,null,null,null,null,null,null,null,null,null,null," "," ",null,null,null,null," "]
["Date:",{"$f":"IF(SCOPE.MANDAY.ESTIMATE.PREPARED.BY.DATE=\"\",\"\",SCOPE.MANDAY.ESTIMATE.PREPARED.BY.DATE)","v":""},null,null,"ESTIMATED WORK HOURS"]
[null,null,null,"POSITION",{"$f":"IF('PEF CLASSIFICATION SHEET'!C1447=\"\",\"\",'PEF CLASSIFICATION SHEET'!C1447)","v":""},null,{"$f":"IF('PEF CLASSIFICATION SHEET'!C1448=\"\",\"\",'PEF CLASSIFICATION SHEET'!C1448)","v":""},null,{"$f":"IF('PEF CLASSIFICATION SHEET'!C1449=\"\",\"\",'PEF CLASSIFICATION SHEET'!C1449)","v":""},null,{"$f":"IF('PEF CLASSIFICATION SHEET'!C1450=\"\",\"\",'PEF CLASSIFICATION SHEET'!C1450)","v":""},null,{"$f":"IF('PEF CLASSIFICATION SHEET'!C1451=\"\",\"\",'PEF CLASSIFICATION SHEET'!C1451)","v":""},null,{"$f":"IF('PEF CLASSIFICATION SHEET'!C1452=\"\",\"\",'PEF CLASSIFICATION SHEET'!C1452)","v":""},null,{"$f":"IF('PEF CLASSIFICATION SHEET'!C1453=\"\",\"\",'PEF CLASSIFICATION SHEET'!C1453)","v":""},null,{"$f":"IF('PEF CLASSIFICATION SHEET'!C1454=\"\",\"\",'PEF CLASSIFICATION SHEET'!C1454)","v":""},null,{"$f":"IF('PEF CLASSIFICATION SHEET'!C1455=\"\",\"\",'PEF CLASSIFICATION SHEET'!C1455)","v":""},null,{"$f":"IF('PEF CLASSIFICATION SHEET'!C1456=\"\",\"\",'PEF CLASSIFICATION SHEET'!C1456)","v":""},null,{"$f":"IF('PEF CLASSIFICATION SHEET'!C1457=\"\",\"\",'PEF CLASSIFICATION SHEET'!C1457)","v":""},null,{"$f":"IF('PEF CLASSIFICATION SHEET'!C1458=\"\",\"\",'PEF CLASSIFICATION SHEET'!C1458)","v":""},null,{"$f":"IF('PEF CLASSIFICATION SHEET'!$C1459=\"\",\"\",'PEF CLASSIFICATION SHEET'!$C1459)","v":""},null,{"$f":"IF('PEF CLASSIFICATION SHEET'!$C1460=\"\",\"\",'PEF CLASSIFICATION SHEET'!$C1460)","v":""},null,{"$f":"IF('PEF CLASSIFICATION SHEET'!$C1461=\"\",\"\",'PEF CLASSIFICATION SHEET'!$C1461)","v":""},null,{"$f":"IF('PEF CLASSIFICATION SHEET'!$C1462=\"\",\"\",'PEF CLASSIFICATION SHEET'!$C1462)","v":""},null,{"$f":"IF('PEF CLASSIFICATION SHEET'!$C1463=\"\",\"\",'PEF CLASSIFICATION SHEET'!$C1463)","v":""},null,{"$f":"IF('PEF CLASSIFICATION SHEET'!$C1464=\"\",\"\",'PEF CLASSIFICATION SHEET'!$C1464)","v":""},null,{"$f":"IF('PEF CLASSIFICATION SHEET'!$C1465=\"\",\"\",'PEF CLASSIFICATION SHEET'!$C1465)","v":""},null,{"$f":"IF('PEF CLASSIFICATION SHEET'!$C1466=\"\",\"\",'PEF CLASSIFICATION SHEET'!$C1466)","v":""},null,{"$f":"IF('PEF CLASSIFICATION SHEET'!$C1467=\"\",\"\",'PEF CLASSIFICATION SHEET'!$C1467)","v":""},null,{"$f":"IF('PEF CLASSIFICATION SHEET'!$C1468=\"\",\"\",'PEF CLASSIFICATION SHEET'!$C1468)","v":""},null,{"$f":"IF('PEF CLASSIFICATION SHEET'!$C1469=\"\",\"\",'PEF CLASSIFICATION SHEET'!$C1469)","v":""},null,{"$f":"IF('PEF CLASSIFICATION SHEET'!$C1470=\"\",\"\",'PEF CLASSIFICATION SHEET'!$C1470)","v":""},null,{"$f":"IF('PEF CLASSIFICATION SHEET'!$C1471=\"\",\"\",'PEF CLASSIFICATION SHEET'!$C1471)","v":""}]
[null,null,null,"EMPLOYEE NAME & RATE",{"$f":"LEFT('PEF CLASSIFICATION SHEET'!D1447,4)","v":""},null,{"$f":"LEFT('PEF CLASSIFICATION SHEET'!D1448,4)","v":""},null,{"$f":"LEFT('PEF CLASSIFICATION SHEET'!D1449,4)","v":""},null,{"$f":"LEFT('PEF CLASSIFICATION SHEET'!D1450,4)","v":""},null,{"$f":"LEFT('PEF CLASSIFICATION SHEET'!D1451,4)","v":""},null,{"$f":"LEFT('PEF CLASSIFICATION SHEET'!D1452,4)","v":""},null,{"$f":"LEFT('PEF CLASSIFICATION SHEET'!D1453,4)","v":""},null,{"$f":"LEFT('PEF CLASSIFICATION SHEET'!D1454,4)","v":""},null,{"$f":"LEFT('PEF CLASSIFICATION SHEET'!D1455,4)","v":""},null,{"$f":"LEFT('PEF CLASSIFICATION SHEET'!D1456,4)","v":""},null,{"$f":"LEFT('PEF CLASSIFICATION SHEET'!D1457,4)","v":""},null,{"$f":"LEFT('PEF CLASSIFICATION SHEET'!D1458,4)","v":""},null,{"$f":"LEFT('PEF CLASSIFICATION SHEET'!$D1459,4)","v":""},null,{"$f":"LEFT('PEF CLASSIFICATION SHEET'!$D1460,4)","v":""},null,{"$f":"LEFT('PEF CLASSIFICATION SHEET'!$D1461,4)","v":""},null,{"$f":"LEFT('PEF CLASSIFICATION SHEET'!$D1462,4)","v":""},null,{"$f":"LEFT('PEF CLASSIFICATION SHEET'!$D1463,4)","v":""},null,{"$f":"LEFT('PEF CLASSIFICATION SHEET'!$D1464,4)","v":""},null,{"$f":"LEFT('PEF CLASSIFICATION SHEET'!$D1465,4)","v":""},null,{"$f":"LEFT('PEF CLASSIFICATION SHEET'!$D1466,4)","v":""},null,{"$f":"LEFT('PEF CLASSIFICATION SHEET'!$D1467,4)","v":""},null,{"$f":"LEFT('PEF CLASSIFICATION SHEET'!$D1468,4)","v":""},null,{"$f":"LEFT('PEF CLASSIFICATION SHEET'!$D1469,4)","v":""},null,{"$f":"LEFT('PEF CLASSIFICATION SHEET'!$D1470,4)","v":""},null,{"$f":"LEFT('PEF CLASSIFICATION SHEET'!$D1471,4)","v":""},null,"SUBTOTAL OF HOURS BY TASK","NOTES"]
["TASK NUMBER","PROJECT TASK","QTY","UNIT",{"$f":"'PEF CLASSIFICATION SHEET'!E1447","v":0},null,{"$f":"'PEF CLASSIFICATION SHEET'!E1448","v":0},null,{"$f":"'PEF CLASSIFICATION SHEET'!E1449","v":0},null,{"$f":"'PEF CLASSIFICATION SHEET'!E1450","v":0},null,{"$f":"'PEF CLASSIFICATION SHEET'!E1451","v":0},null,{"$f":"'PEF CLASSIFICATION SHEET'!E1452","v":0},null,{"$f":"'PEF CLASSIFICATION SHEET'!E1453","v":0},null,{"$f":"'PEF CLASSIFICATION SHEET'!E1454","v":0},null,{"$f":"'PEF CLASSIFICATION SHEET'!E1455","v":0},null,{"$f":"'PEF CLASSIFICATION SHEET'!E1456","v":0},null,{"$f":"'PEF CLASSIFICATION SHEET'!E1457","v":0},null,{"$f":"'PEF CLASSIFICATION SHEET'!E1458","v":0},null,{"$f":"'PEF CLASSIFICATION SHEET'!$E1459","v":0},null,{"$f":"'PEF CLASSIFICATION SHEET'!$E1460","v":0},null,{"$f":"'PEF CLASSIFICATION SHEET'!$E1461","v":0},null,{"$f":"'PEF CLASSIFICATION SHEET'!$E1462","v":0},null,{"$f":"'PEF CLASSIFICATION SHEET'!$E1463","v":0},null,{"$f":"'PEF CLASSIFICATION SHEET'!$E1464","v":0},null,{"$f":"'PEF CLASSIFICATION SHEET'!$E1465","v":0},null,{"$f":"'PEF CLASSIFICATION SHEET'!$E1466","v":0},null,{"$f":"'PEF CLASSIFICATION SHEET'!$E1467","v":0},null,{"$f":"'PEF CLASSIFICATION SHEET'!$E1468","v":0},null,{"$f":"'PEF CLASSIFICATION SHEET'!$E1469","v":0},null,{"$f":"'PEF CLASSIFICATION SHEET'!$E1470","v":0},null,{"$f":"'PEF CLASSIFICATION SHEET'!$E1471","v":0}]
[null,null,null,null,"Hrs Per Unit","Total Hrs","Hrs Per Unit","Total Hrs","Hrs Per Unit","Total Hrs","Hrs Per Unit","Total Hrs","Hrs Per Unit","Total Hrs","Hrs Per Unit","Total Hrs","Hrs Per Unit","Total Hrs","Hrs Per Unit","Total Hrs","Hrs Per Unit","Total Hrs","Hrs Per Unit","Total Hrs","Hrs Per Unit","Total Hrs","Hrs Per Unit","Total Hrs","Hrs Per Unit","Total Hrs","Hrs Per Unit","Total Hrs","Hrs Per Unit","Total Hrs","Hrs Per Unit","Total Hrs","Hrs Per Unit","Total Hrs","Hrs Per Unit","Total Hrs","Hrs Per Unit","Total Hrs","Hrs Per Unit","Total Hrs","Hrs Per Unit","Total Hrs","Hrs Per Unit","Total Hrs","Hrs Per Unit","Total Hrs","Hrs Per Unit","Total Hrs","Hrs Per Unit","Total Hrs"]
["Task 1.0","PROJECT MANAGEMENT",null,null," ",null," ",null,null,null,null,null,null,null,null,null,null,null,null,null,null,null,null,null,null,null,null,null,null,null,null,null,null,null,null,null,null,null,null,null,null,null,null,null,null,null,null,null,null,null,null,null,null,null,null,null," "]
[1.1000000000000001,"Project Work Plan",null,null,{"$f":"IF($C$16=\"\",\"\",F16/$C$16)","v":""},null,{"$f":"IF($C$16=\"\",\"\",H16/$C$16)","v":""},null,{"$f":"IF($C$16=\"\",\"\",J16/$C$16)","v":""},null,{"$f":"IF($C$16=\"\",\"\",L16/$C$16)","v":""},null,{"$f":"IF($C$16=\"\",\"\",N16/$C$16)","v":""},null,{"$f":"IF($C$16=\"\",\"\",P16/$C$16)","v":""},null,{"$f":"IF($C$16=\"\",\"\",R16/$C$16)","v":""},null,{"$f":"IF($C$16=\"\",\"\",T16/$C$16)","v":""},null,{"$f":"IF($C$16=\"\",\"\",V16/$C$16)","v":""},null,{"$f":"IF($C$16=\"\",\"\",X16/$C$16)","v":""},null,{"$f":"IF($C$16=\"\",\"\",Z16/$C$16)","v":""},null,{"$f":"IF($C$16=\"\",\"\",AB16/$C$16)","v":""},null,{"$f":"IF($C$16=\"\",\"\",AD16/$C$16)","v":""},null,{"$f":"IF($C$16=\"\",\"\",AF16/$C$16)","v":""},null,{"$f":"IF($C$16=\"\",\"\",AH16/$C$16)","v":""},null,{"$f":"IF($C$16=\"\",\"\",AJ16/$C$16)","v":""},null,{"$f":"IF($C$16=\"\",\"\",AL16/$C$16)","v":""},null,{"$f":"IF($C$16=\"\",\"\",AN16/$C$16)","v":""},null,{"$f":"IF($C$16=\"\",\"\",AP16/$C$16)","v":""},null,{"$f":"IF($C$16=\"\",\"\",AR16/$C$16)","v":""},null,{"$f":"IF($C$16=\"\",\"\",AT16/$C$16)","v":""},null,{"$f":"IF($C$16=\"\",\"\",AV16/$C$16)","v":""},null,{"$f":"IF($C$16=\"\",\"\",AX16/$C$16)","v":""},null,{"$f":"IF($C$16=\"\",\"\",AZ16/$C$16)","v":""},null,{"$f":"IF($C$16=\"\",\"\",BB16/$C$16)","v":""},null,{"$f":"SUM(BB16,AZ16,AX16,AV16,AT16,AR16,AP16,AN16,AL16,AJ16,AH16,AF16,AD16,AB16,Z16,X16,V16,T16,R16,P16,N16,L16,J16,H16,F16)","v":0}]
[1.2,"Project Meetings",null,null,{"$f":"IF($C$17=\"\",\"\",F17/$C$17)","v":""},null,{"$f":"IF($C$17=\"\",\"\",H17/$C$17)","v":""},null,{"$f":"IF($C$17=\"\",\"\",J17/$C$17)","v":""},null,{"$f":"IF($C$17=\"\",\"\",L17/$C$17)","v":""},null,{"$f":"IF($C$17=\"\",\"\",N17/$C$17)","v":""},null,{"$f":"IF($C$17=\"\",\"\",P17/$C$17)","v":""},null,{"$f":"IF($C$17=\"\",\"\",R17/$C$17)","v":""},null,{"$f":"IF($C$17=\"\",\"\",T17/$C$17)","v":""},null,{"$f":"IF($C$17=\"\",\"\",V17/$C$17)","v":""},null,{"$f":"IF($C$17=\"\",\"\",X17/$C$17)","v":""},null,{"$f":"IF($C$17=\"\",\"\",Z17/$C$17)","v":""},null,{"$f":"IF($C$17=\"\",\"\",AB17/$C$17)","v":""},null,{"$f":"IF($C$17=\"\",\"\",AD17/$C$17)","v":""},null,{"$f":"IF($C$17=\"\",\"\",AF17/$C$17)","v":""},null,{"$f":"IF($C$17=\"\",\"\",AH17/$C$17)","v":""},null,{"$f":"IF($C$17=\"\",\"\",AJ17/$C$17)","v":""},null,{"$f":"IF($C$17=\"\",\"\",AL17/$C$17)","v":""},null,{"$f":"IF($C$17=\"\",\"\",AN17/$C$17)","v":""},null,{"$f":"IF($C$17=\"\",\"\",AP17/$C$17)","v":""},null,{"$f":"IF($C$17=\"\",\"\",AR17/$C$17)","v":""},null,{"$f":"IF($C$17=\"\",\"\",AT17/$C$17)","v":""},null,{"$f":"IF($C$17=\"\",\"\",AV17/$C$17)","v":""},null,{"$f":"IF($C$17=\"\",\"\",AX17/$C$17)","v":""},null,{"$f":"IF($C$17=\"\",\"\",AZ17/$C$17)","v":""},null,{"$f":"IF($C$17=\"\",\"\",BB17/$C$17)","v":""},null,{"$f":"SUM(BB17,AZ17,AX17,AV17,AT17,AR17,AP17,AN17,AL17,AJ17,AH17,AF17,AD17,AB17,Z17,X17,V17,T17,R17,P17,N17,L17,J17,H17,F17)","v":0}]
[1.3,"Project Status Reports & Invoices",null,null,{"$f":"IF($C$18=\"\",\"\",F18/$C$18)","v":""},null,{"$f":"IF($C$18=\"\",\"\",H18/$C$18)","v":""},null,{"$f":"IF($C$18=\"\",\"\",J18/$C$18)","v":""},null,{"$f":"IF($C$18=\"\",\"\",L18/$C$18)","v":""},null,{"$f":"IF($C$18=\"\",\"\",N18/$C$18)","v":""},null,{"$f":"IF($C$18=\"\",\"\",P18/$C$18)","v":""},null,{"$f":"IF($C$18=\"\",\"\",R18/$C$18)","v":""},null,{"$f":"IF($C$18=\"\",\"\",T18/$C$18)","v":""},null,{"$f":"IF($C$18=\"\",\"\",V18/$C$18)","v":""},null,{"$f":"IF($C$18=\"\",\"\",X18/$C$18)","v":""},null,{"$f":"IF($C$18=\"\",\"\",Z18/$C$18)","v":""},null,{"$f":"IF($C$18=\"\",\"\",AB18/$C$18)","v":""},null,{"$f":"IF($C$18=\"\",\"\",AD18/$C$18)","v":""},null,{"$f":"IF($C$18=\"\",\"\",AF18/$C$18)","v":""},null,{"$f":"IF($C$18=\"\",\"\",AH18/$C$18)","v":""},null,{"$f":"IF($C$18=\"\",\"\",AJ18/$C$18)","v":""},null,{"$f":"IF($C$18=\"\",\"\",AL18/$C$18)","v":""},null,{"$f":"IF($C$18=\"\",\"\",AN18/$C$18)","v":""},null,{"$f":"IF($C$18=\"\",\"\",AP18/$C$18)","v":""},null,{"$f":"IF($C$18=\"\",\"\",AR18/$C$18)","v":""},null,{"$f":"IF($C$18=\"\",\"\",AT18/$C$18)","v":""},null,{"$f":"IF($C$18=\"\",\"\",AV18/$C$18)","v":""},null,{"$f":"IF($C$18=\"\",\"\",AX18/$C$18)","v":""},null,{"$f":"IF($C$18=\"\",\"\",AZ18/$C$18)","v":""},null,{"$f":"IF($C$18=\"\",\"\",BB18/$C$18)","v":""},null,0]
[1.4,"Project Records and Files/Project Web Site",null,null,{"$f":"IF($C$19=\"\",\"\",F19/$C$19)","v":""},null,{"$f":"IF($C$19=\"\",\"\",H19/$C$19)","v":""},null,{"$f":"IF($C$19=\"\",\"\",J19/$C$19)","v":""},null,{"$f":"IF($C$19=\"\",\"\",L19/$C$19)","v":""},null,{"$f":"IF($C$19=\"\",\"\",N19/$C$19)","v":""},null,{"$f":"IF($C$19=\"\",\"\",P19/$C$19)","v":""},null,{"$f":"IF($C$19=\"\",\"\",R19/$C$19)","v":""},null,{"$f":"IF($C$19=\"\",\"\",T19/$C$19)","v":""},null,{"$f":"IF($C$19=\"\",\"\",V19/$C$19)","v":""},null,{"$f":"IF($C$19=\"\",\"\",X19/$C$19)","v":""},null,{"$f":"IF($C$19=\"\",\"\",Z19/$C$19)","v":""},null,{"$f":"IF($C$19=\"\",\"\",AB19/$C$19)","v":""},null,{"$f":"IF($C$19=\"\",\"\",AD19/$C$19)","v":""},null,{"$f":"IF($C$19=\"\",\"\",AF19/$C$19)","v":""},null,{"$f":"IF($C$19=\"\",\"\",AH19/$C$19)","v":""},null,{"$f":"IF($C$19=\"\",\"\",AJ19/$C$19)","v":""},null,{"$f":"IF($C$19=\"\",\"\",AL19/$C$19)","v":""},null,{"$f":"IF($C$19=\"\",\"\",AN19/$C$19)","v":""},null,{"$f":"IF($C$19=\"\",\"\",AP19/$C$19)","v":""},null,{"$f":"IF($C$19=\"\",\"\",AR19/$C$19)","v":""},null,{"$f":"IF($C$19=\"\",\"\",AT19/$C$19)","v":""},null,{"$f":"IF($C$19=\"\",\"\",AV19/$C$19)","v":""},null,{"$f":"IF($C$19=\"\",\"\",AX19/$C$19)","v":""},null,{"$f":"IF($C$19=\"\",\"\",AZ19/$C$19)","v":""},null,{"$f":"IF($C$19=\"\",\"\",BB19/$C$19)","v":""},null,0]
[1.5,"Subconsultant Management and Coordination",null,null,{"$f":"IF($C$20=\"\",\"\",F20/$C$20)","v":""},null,{"$f":"IF($C$20=\"\",\"\",H20/$C$20)","v":""},null,{"$f":"IF($C$20=\"\",\"\",J20/$C$20)","v":""},null,{"$f":"IF($C$20=\"\",\"\",L20/$C$20)","v":""},null,{"$f":"IF($C$20=\"\",\"\",N20/$C$20)","v":""},null,{"$f":"IF($C$20=\"\",\"\",P20/$C$20)","v":""},null,{"$f":"IF($C$20=\"\",\"\",R20/$C$20)","v":""},null,{"$f":"IF($C$20=\"\",\"\",T20/$C$20)","v":""},null,{"$f":"IF($C$20=\"\",\"\",V20/$C$20)","v":""},null,{"$f":"IF($C$20=\"\",\"\",X20/$C$20)","v":""},null,{"$f":"IF($C$20=\"\",\"\",Z20/$C$20)","v":""},null,{"$f":"IF($C$20=\"\",\"\",AB20/$C$20)","v":""},null,{"$f":"IF($C$20=\"\",\"\",AD20/$C$20)","v":""},null,{"$f":"IF($C$20=\"\",\"\",AF20/$C$20)","v":""},null,{"$f":"IF($C$20=\"\",\"\",AH20/$C$20)","v":""},null,{"$f":"IF($C$20=\"\",\"\",AJ20/$C$20)","v":""},null,{"$f":"IF($C$20=\"\",\"\",AL20/$C$20)","v":""},null,{"$f":"IF($C$20=\"\",\"\",AN20/$C$20)","v":""},null,{"$f":"IF($C$20=\"\",\"\",AP20/$C$20)","v":""},null,{"$f":"IF($C$20=\"\",\"\",AR20/$C$20)","v":""},null,{"$f":"IF($C$20=\"\",\"\",AT20/$C$20)","v":""},null,{"$f":"IF($C$20=\"\",\"\",AV20/$C$20)","v":""},null,{"$f":"IF($C$20=\"\",\"\",AX20/$C$20)","v":""},null,{"$f":"IF($C$20=\"\",\"\",AZ20/$C$20)","v":""},null,{"$f":"IF($C$20=\"\",\"\",BB20/$C$20)","v":""},null,0]
[null,null,null,null,{"$f":"IF($C$21=\"\",\"\",F21/$C$21)","v":""},null,{"$f":"IF($C$21=\"\",\"\",H21/$C$21)","v":""},null,{"$f":"IF($C$21=\"\",\"\",J21/$C$21)","v":""},null,{"$f":"IF($C$21=\"\",\"\",L21/$C$21)","v":""},null,{"$f":"IF($C$21=\"\",\"\",N21/$C$21)","v":""},null,{"$f":"IF($C$21=\"\",\"\",P21/$C$21)","v":""},null,{"$f":"IF($C$21=\"\",\"\",R21/$C$21)","v":""},null,{"$f":"IF($C$21=\"\",\"\",T21/$C$21)","v":""},null,{"$f":"IF($C$21=\"\",\"\",V21/$C$21)","v":""},null,{"$f":"IF($C$21=\"\",\"\",X21/$C$21)","v":""},null,{"$f":"IF($C$21=\"\",\"\",Z21/$C$21)","v":""},null,{"$f":"IF($C$21=\"\",\"\",AB21/$C$21)","v":""},null,{"$f":"IF($C$21=\"\",\"\",AD21/$C$21)","v":""},null,{"$f":"IF($C$21=\"\",\"\",AF21/$C$21)","v":""},null,{"$f":"IF($C$21=\"\",\"\",AH21/$C$21)","v":""},null,{"$f":"IF($C$21=\"\",\"\",AJ21/$C$21)","v":""},null,{"$f":"IF($C$21=\"\",\"\",AL21/$C$21)","v":""},null,{"$f":"IF($C$21=\"\",\"\",AN21/$C$21)","v":""},null,{"$f":"IF($C$21=\"\",\"\",AP21/$C$21)","v":""},null,{"$f":"IF($C$21=\"\",\"\",AR21/$C$21)","v":""},null,{"$f":"IF($C$21=\"\",\"\",AT21/$C$21)","v":""},null,{"$f":"IF($C$21=\"\",\"\",AV21/$C$21)","v":""},null,{"$f":"IF($C$21=\"\",\"\",AX21/$C$21)","v":""},null,{"$f":"IF($C$21=\"\",\"\",AZ21/$C$21)","v":""},null,{"$f":"IF($C$21=\"\",\"\",BB21/$C$21)","v":""},null,0]
[null,null,null,null,{"$f":"IF($C$22=\"\",\"\",F22/$C$22)","v":""},null,{"$f":"IF($C$22=\"\",\"\",H22/$C$22)","v":""},null,{"$f":"IF($C$22=\"\",\"\",J22/$C$22)","v":""},null,{"$f":"IF($C$22=\"\",\"\",L22/$C$22)","v":""},null,{"$f":"IF($C$22=\"\",\"\",N22/$C$22)","v":""},null,{"$f":"IF($C$22=\"\",\"\",P22/$C$22)","v":""},null,{"$f":"IF($C$22=\"\",\"\",R22/$C$22)","v":""},null,{"$f":"IF($C$22=\"\",\"\",T22/$C$22)","v":""},null,{"$f":"IF($C$22=\"\",\"\",V22/$C$22)","v":""},null,{"$f":"IF($C$22=\"\",\"\",X22/$C$22)","v":""},null,{"$f":"IF($C$22=\"\",\"\",Z22/$C$22)","v":""},null,{"$f":"IF($C$22=\"\",\"\",AB22/$C$22)","v":""},null,{"$f":"IF($C$22=\"\",\"\",AD22/$C$22)","v":""},null,{"$f":"IF($C$22=\"\",\"\",AF22/$C$22)","v":""},null,{"$f":"IF($C$22=\"\",\"\",AH22/$C$22)","v":""},null,{"$f":"IF($C$22=\"\",\"\",AJ22/$C$22)","v":""},null,{"$f":"IF($C$22=\"\",\"\",AL22/$C$22)","v":""},null,{"$f":"IF($C$22=\"\",\"\",AN22/$C$22)","v":""},null,{"$f":"IF($C$22=\"\",\"\",AP22/$C$22)","v":""},null,{"$f":"IF($C$22=\"\",\"\",AR22/$C$22)","v":""},null,{"$f":"IF($C$22=\"\",\"\",AT22/$C$22)","v":""},null,{"$f":"IF($C$22=\"\",\"\",AV22/$C$22)","v":""},null,{"$f":"IF($C$22=\"\",\"\",AX22/$C$22)","v":""},null,{"$f":"IF($C$22=\"\",\"\",AZ22/$C$22)","v":""},null,{"$f":"IF($C$22=\"\",\"\",BB22/$C$22)","v":""},null,0]
[null,null,null,null,{"$f":"IF($C$23=\"\",\"\",F23/$C$23)","v":""},null,{"$f":"IF($C$23=\"\",\"\",H23/$C$23)","v":""},null,{"$f":"IF($C$23=\"\",\"\",J23/$C$23)","v":""},null,{"$f":"IF($C$23=\"\",\"\",L23/$C$23)","v":""},null,{"$f":"IF($C$23=\"\",\"\",N23/$C$23)","v":""},null,{"$f":"IF($C$23=\"\",\"\",P23/$C$23)","v":""},null,{"$f":"IF($C$23=\"\",\"\",R23/$C$23)","v":""},null,{"$f":"IF($C$23=\"\",\"\",T23/$C$23)","v":""},null,{"$f":"IF($C$23=\"\",\"\",V23/$C$23)","v":""},null,{"$f":"IF($C$23=\"\",\"\",X23/$C$23)","v":""},null,{"$f":"IF($C$23=\"\",\"\",Z23/$C$23)","v":""},null,{"$f":"IF($C$23=\"\",\"\",AB23/$C$23)","v":""},null,{"$f":"IF($C$23=\"\",\"\",AD23/$C$23)","v":""},null,{"$f":"IF($C$23=\"\",\"\",AF23/$C$23)","v":""},null,{"$f":"IF($C$23=\"\",\"\",AH23/$C$23)","v":""},null,{"$f":"IF($C$23=\"\",\"\",AJ23/$C$23)","v":""},null,{"$f":"IF($C$23=\"\",\"\",AL23/$C$23)","v":""},null,{"$f":"IF($C$23=\"\",\"\",AN23/$C$23)","v":""},null,{"$f":"IF($C$23=\"\",\"\",AP23/$C$23)","v":""},null,{"$f":"IF($C$23=\"\",\"\",AR23/$C$23)","v":""},null,{"$f":"IF($C$23=\"\",\"\",AT23/$C$23)","v":""},null,{"$f":"IF($C$23=\"\",\"\",AV23/$C$23)","v":""},null,{"$f":"IF($C$23=\"\",\"\",AX23/$C$23)","v":""},null,{"$f":"IF($C$23=\"\",\"\",AZ23/$C$23)","v":""},null,{"$f":"IF($C$23=\"\",\"\",BB23/$C$23)","v":""},null,0]
[null,null,null,null,{"$f":"IF($C$24=\"\",\"\",F24/$C$24)","v":""},null,{"$f":"IF($C$24=\"\",\"\",H24/$C$24)","v":""},null,{"$f":"IF($C$24=\"\",\"\",J24/$C$24)","v":""},null,{"$f":"IF($C$24=\"\",\"\",L24/$C$24)","v":""},null,{"$f":"IF($C$24=\"\",\"\",N24/$C$24)","v":""},null,{"$f":"IF($C$24=\"\",\"\",P24/$C$24)","v":""},null,{"$f":"IF($C$24=\"\",\"\",R24/$C$24)","v":""},null,{"$f":"IF($C$24=\"\",\"\",T24/$C$24)","v":""},null,{"$f":"IF($C$24=\"\",\"\",V24/$C$24)","v":""},null,{"$f":"IF($C$24=\"\",\"\",X24/$C$24)","v":""},null,{"$f":"IF($C$24=\"\",\"\",Z24/$C$24)","v":""},null,{"$f":"IF($C$24=\"\",\"\",AB24/$C$24)","v":""},null,{"$f":"IF($C$24=\"\",\"\",AD24/$C$24)","v":""},null,{"$f":"IF($C$24=\"\",\"\",AF24/$C$24)","v":""},null,{"$f":"IF($C$24=\"\",\"\",AH24/$C$24)","v":""},null,{"$f":"IF($C$24=\"\",\"\",AJ24/$C$24)","v":""},null,{"$f":"IF($C$24=\"\",\"\",AL24/$C$24)","v":""},null,{"$f":"IF($C$24=\"\",\"\",AN24/$C$24)","v":""},null,{"$f":"IF($C$24=\"\",\"\",AP24/$C$24)","v":""},null,{"$f":"IF($C$24=\"\",\"\",AR24/$C$24)","v":""},null,{"$f":"IF($C$24=\"\",\"\",AT24/$C$24)","v":""},null,{"$f":"IF($C$24=\"\",\"\",AV24/$C$24)","v":""},null,{"$f":"IF($C$24=\"\",\"\",AX24/$C$24)","v":""},null,{"$f":"IF($C$24=\"\",\"\",AZ24/$C$24)","v":""},null,{"$f":"IF($C$24=\"\",\"\",BB24/$C$24)","v":""},null,0]
[null,null,null,null,{"$f":"IF($C$25=\"\",\"\",F25/$C$25)","v":""},null,{"$f":"IF($C$25=\"\",\"\",H25/$C$25)","v":""},null,{"$f":"IF($C$25=\"\",\"\",J25/$C$25)","v":""},null,{"$f":"IF($C$25=\"\",\"\",L25/$C$25)","v":""},null,{"$f":"IF($C$25=\"\",\"\",N25/$C$25)","v":""},null,{"$f":"IF($C$25=\"\",\"\",P25/$C$25)","v":""},null,{"$f":"IF($C$25=\"\",\"\",R25/$C$25)","v":""},null,{"$f":"IF($C$25=\"\",\"\",T25/$C$25)","v":""},null,{"$f":"IF($C$25=\"\",\"\",V25/$C$25)","v":""},null,{"$f":"IF($C$25=\"\",\"\",X25/$C$25)","v":""},null,{"$f":"IF($C$25=\"\",\"\",Z25/$C$25)","v":""},null,{"$f":"IF($C$25=\"\",\"\",AB25/$C$25)","v":""},null,{"$f":"IF($C$25=\"\",\"\",AD25/$C$25)","v":""},null,{"$f":"IF($C$25=\"\",\"\",AF25/$C$25)","v":""},null,{"$f":"IF($C$25=\"\",\"\",AH25/$C$25)","v":""},null,{"$f":"IF($C$25=\"\",\"\",AJ25/$C$25)","v":""},null,{"$f":"IF($C$25=\"\",\"\",AL25/$C$25)","v":""},null,{"$f":"IF($C$25=\"\",\"\",AN25/$C$25)","v":""},null,{"$f":"IF($C$25=\"\",\"\",AP25/$C$25)","v":""},null,{"$f":"IF($C$25=\"\",\"\",AR25/$C$25)","v":""},null,{"$f":"IF($C$25=\"\",\"\",AT25/$C$25)","v":""},null,{"$f":"IF($C$25=\"\",\"\",AV25/$C$25)","v":""},null,{"$f":"IF($C$25=\"\",\"\",AX25/$C$25)","v":""},null,{"$f":"IF($C$25=\"\",\"\",AZ25/$C$25)","v":""},null,{"$f":"IF($C$25=\"\",\"\",BB25/$C$25)","v":""},null,0]
[null,null,null,null,{"$f":"IF($C$26=\"\",\"\",F26/$C$26)","v":""},null,{"$f":"IF($C$26=\"\",\"\",H26/$C$26)","v":""},null,{"$f":"IF($C$26=\"\",\"\",J26/$C$26)","v":""},null,{"$f":"IF($C$26=\"\",\"\",L26/$C$26)","v":""},null,{"$f":"IF($C$26=\"\",\"\",N26/$C$26)","v":""},null,{"$f":"IF($C$26=\"\",\"\",P26/$C$26)","v":""},null,{"$f":"IF($C$26=\"\",\"\",R26/$C$26)","v":""},null,{"$f":"IF($C$26=\"\",\"\",T26/$C$26)","v":""},null,{"$f":"IF($C$26=\"\",\"\",V26/$C$26)","v":""},null,{"$f":"IF($C$26=\"\",\"\",X26/$C$26)","v":""},null,{"$f":"IF($C$26=\"\",\"\",Z26/$C$26)","v":""},null,{"$f":"IF($C$26=\"\",\"\",AB26/$C$26)","v":""},null,{"$f":"IF($C$26=\"\",\"\",AD26/$C$26)","v":""},null,{"$f":"IF($C$26=\"\",\"\",AF26/$C$26)","v":""},null,{"$f":"IF($C$26=\"\",\"\",AH26/$C$26)","v":""},null,{"$f":"IF($C$26=\"\",\"\",AJ26/$C$26)","v":""},null,{"$f":"IF($C$26=\"\",\"\",AL26/$C$26)","v":""},null,{"$f":"IF($C$26=\"\",\"\",AN26/$C$26)","v":""},null,{"$f":"IF($C$26=\"\",\"\",AP26/$C$26)","v":""},null,{"$f":"IF($C$26=\"\",\"\",AR26/$C$26)","v":""},null,{"$f":"IF($C$26=\"\",\"\",AT26/$C$26)","v":""},null,{"$f":"IF($C$26=\"\",\"\",AV26/$C$26)","v":""},null,{"$f":"IF($C$26=\"\",\"\",AX26/$C$26)","v":""},null,{"$f":"IF($C$26=\"\",\"\",AZ26/$C$26)","v":""},null,{"$f":"IF($C$26=\"\",\"\",BB26/$C$26)","v":""},null,{"$f":"SUM(BB26,AZ26,AX26,AV26,AT26,AR26,AP26,AN26,AL26,AJ26,AH26,AF26,AD26,AB26,Z26,X26,V26,T26,R26,P26,N26,L26,J26,H26,F26)","v":0}]
[null,null,null,null,{"$f":"IF($C$27=\"\",\"\",F27/$C$27)","v":""},null,{"$f":"IF($C$27=\"\",\"\",H27/$C$27)","v":""},null,{"$f":"IF($C$27=\"\",\"\",J27/$C$27)","v":""},null,{"$f":"IF($C$27=\"\",\"\",L27/$C$27)","v":""},null,{"$f":"IF($C$27=\"\",\"\",N27/$C$27)","v":""},null,{"$f":"IF($C$27=\"\",\"\",P27/$C$27)","v":""},null,{"$f":"IF($C$27=\"\",\"\",R27/$C$27)","v":""},null,{"$f":"IF($C$27=\"\",\"\",T27/$C$27)","v":""},null,{"$f":"IF($C$27=\"\",\"\",V27/$C$27)","v":""},null,{"$f":"IF($C$27=\"\",\"\",X27/$C$27)","v":""},null,{"$f":"IF($C$27=\"\",\"\",Z27/$C$27)","v":""},null,{"$f":"IF($C$27=\"\",\"\",AB27/$C$27)","v":""},null,{"$f":"IF($C$27=\"\",\"\",AD27/$C$27)","v":""},null,{"$f":"IF($C$27=\"\",\"\",AF27/$C$27)","v":""},null,{"$f":"IF($C$27=\"\",\"\",AH27/$C$27)","v":""},null,{"$f":"IF($C$27=\"\",\"\",AJ27/$C$27)","v":""},null,{"$f":"IF($C$27=\"\",\"\",AL27/$C$27)","v":""},null,{"$f":"IF($C$27=\"\",\"\",AN27/$C$27)","v":""},null,{"$f":"IF($C$27=\"\",\"\",AP27/$C$27)","v":""},null,{"$f":"IF($C$27=\"\",\"\",AR27/$C$27)","v":""},null,{"$f":"IF($C$27=\"\",\"\",AT27/$C$27)","v":""},null,{"$f":"IF($C$27=\"\",\"\",AV27/$C$27)","v":""},null,{"$f":"IF($C$27=\"\",\"\",AX27/$C$27)","v":""},null,{"$f":"IF($C$27=\"\",\"\",AZ27/$C$27)","v":""},null,{"$f":"IF($C$27=\"\",\"\",BB27/$C$27)","v":""},null,{"$f":"SUM(BB27,AZ27,AX27,AV27,AT27,AR27,AP27,AN27,AL27,AJ27,AH27,AF27,AD27,AB27,Z27,X27,V27,T27,R27,P27,N27,L27,J27,H27,F27)","v":0}]
["TOTAL HOURS",null,null,null,null,{"$f":"SUM(F16:F27)","v":0},null,{"$f":"SUM(H16:H27)","v":0},null,{"$f":"SUM(J16:J27)","v":0},null,{"$f":"SUM(L16:L27)","v":0},null,{"$f":"SUM(N16:N27)","v":0},null,{"$f":"SUM(P16:P27)","v":0},null,{"$f":"SUM(R16:R27)","v":0},null,{"$f":"SUM(T16:T27)","v":0},null,{"$f":"SUM(V16:V27)","v":0},null,{"$f":"SUM(X16:X27)","v":0},null,{"$f":"SUM(Z16:Z27)","v":0},null,{"$f":"SUM(AB16:AB27)","v":0},null,{"$f":"SUM(AD16:AD27)","v":0},null,{"$f":"SUM(AF16:AF27)","v":0},null,{"$f":"SUM(AH16:AH27)","v":0},null,{"$f":"SUM(AJ16:AJ27)","v":0},null,{"$f":"SUM(AL16:AL27)","v":0},null,{"$f":"SUM(AN16:AN27)","v":0},null,{"$f":"SUM(AP16:AP27)","v":0},null,{"$f":"SUM(AR16:AR27)","v":0},null,{"$f":"SUM(AT16:AT27)","v":0},null,{"$f":"SUM(AV16:AV27)","v":0},null,{"$f":"SUM(AX16:AX27)","v":0},null,{"$f":"SUM(AZ16:AZ27)","v":0},null,{"$f":"SUM(BB16:BB27)","v":0},{"$f":"SUM(E28:BB28)","v":0}]
["TOTAL WORKDAYS",null,null,null,null,{"$f":"F28/8","v":0},null,{"$f":"H28/8","v":0},null,{"$f":"J28/8","v":0},null,{"$f":"L28/8","v":0},null,{"$f":"N28/8","v":0},null,{"$f":"P28/8","v":0},null,{"$f":"R28/8","v":0},null,{"$f":"T28/8","v":0},null,{"$f":"V28/8","v":0},null,{"$f":"X28/8","v":0},null,{"$f":"Z28/8","v":0},null,{"$f":"AB28/8","v":0},null,{"$f":"AD28/8","v":0},null,0,null,{"$f":"AH28/8","v":0},null,0,null,{"$f":"AL28/8","v":0},null,0,null,{"$f":"AP28/8","v":0},null,0,null,{"$f":"AT28/8","v":0},null,{"$f":"AV28/8","v":0},null,{"$f":"AX28/8","v":0},null,{"$f":"AZ28/8","v":0},null,{"$f":"BB28/8","v":0},{"$f":"SUM(E29:BB29)","v":0}]
["TOTAL RAW LABOR",null,null,null,null,{"$f":"$E$13*F28","v":0},null,{"$f":"$G$13*H28","v":0},null,{"$f":"$I$13*J28","v":0},null,{"$f":"$K$13*L28","v":0},null,{"$f":"$M$13*N28","v":0},null,{"$f":"$O$13*P28","v":0},null,{"$f":"$Q$13*R28","v":0},null,{"$f":"$S$13*T28","v":0},null,{"$f":"$U$13*V28","v":0},null,{"$f":"$W$13*X28","v":0},null,{"$f":"$Y$13*Z28","v":0},null,{"$f":"$AA$13*AB28","v":0},null,{"$f":"$AC$13*AD28","v":0},null,{"$f":"$AC$13*AF28","v":0},null,{"$f":"$AC$13*AH28","v":0},null,{"$f":"$AC$13*AJ28","v":0},null,{"$f":"$AC$13*AL28","v":0},null,{"$f":"$AC$13*AN28","v":0},null,{"$f":"$AC$13*AP28","v":0},null,{"$f":"$AC$13*AR28","v":0},null,{"$f":"$AC$13*AT28","v":0},null,{"$f":"$AC$13*AV28","v":0},null,{"$f":"$AC$13*AX28","v":0},null,{"$f":"$AC$13*AZ28","v":0},null,{"$f":"$AC$13*BB28","v":0},{"$f":"SUM(E30:BB30)","v":0}]
["Task 2.0     ","FUNCTIONAL DESIGN",null,null," ",null," ",null," ",null," ",null," ",null," ",null," ",null," ",null," ",null," ",null," ",null," ",null," ",null," ",null," ",null," ",null," ",null," ",null," ",null," ",null," ",null," ",null," ",null," ",null," "]
[2.1,"Systems Engineering Document/Project Architecture"]
["    2.1.1","    Summarize Existing System Operations and   \n    Functionality",null,null,{"$f":"IF($C$33=\"\",\"\",F33/$C$33)","v":""},null,{"$f":"IF($C$33=\"\",\"\",H33/$C$33)","v":""},null,{"$f":"IF($C$33=\"\",\"\",J33/$C$33)","v":""},null,{"$f":"IF($C$33=\"\",\"\",L33/$C$33)","v":""},null,{"$f":"IF($C$33=\"\",\"\",N33/$C$33)","v":""},null,{"$f":"IF($C$33=\"\",\"\",P33/$C$33)","v":""},null,{"$f":"IF($C$33=\"\",\"\",R33/$C$33)","v":""},null,{"$f":"IF($C$33=\"\",\"\",T33/$C$33)","v":""},null,{"$f":"IF($C$33=\"\",\"\",V33/$C$33)","v":""},null,{"$f":"IF($C$33=\"\",\"\",X33/$C$33)","v":""},null,{"$f":"IF($C$33=\"\",\"\",Z33/$C$33)","v":""},null,{"$f":"IF($C$33=\"\",\"\",AB33/$C$33)","v":""},null,{"$f":"IF($C$33=\"\",\"\",AD33/$C$33)","v":""},null,{"$f":"IF($C$33=\"\",\"\",AF33/$C$33)","v":""},null,{"$f":"IF($C$33=\"\",\"\",AH33/$C$33)","v":""},null,{"$f":"IF($C$33=\"\",\"\",AJ33/$C$33)","v":""},null,{"$f":"IF($C$33=\"\",\"\",AL33/$C$33)","v":""},null,{"$f":"IF($C$33=\"\",\"\",AN33/$C$33)","v":""},null,{"$f":"IF($C$33=\"\",\"\",AP33/$C$33)","v":""},null,{"$f":"IF($C$33=\"\",\"\",AR33/$C$33)","v":""},null,{"$f":"IF($C$33=\"\",\"\",AT33/$C$33)","v":""},null,{"$f":"IF($C$33=\"\",\"\",AV33/$C$33)","v":""},null,{"$f":"IF($C$33=\"\",\"\",AX33/$C$33)","v":""},null,{"$f":"IF($C$33=\"\",\"\",AZ33/$C$33)","v":""},null,{"$f":"IF($C$33=\"\",\"\",BB33/$C$33)","v":""},null,{"$f":"SUM(BB33,AZ33,AX33,AV33,AT33,AR33,AP33,AN33,AL33,AJ33,AH33,AF33,AD33,AB33,Z33,X33,V33,T33,R33,P33,N33,L33,J33,H33,F33)","v":0}]
["    2.1.2    ","    Summarize Proposed System Functional Needs \n    and Boundaries",null,null,{"$f":"IF($C$34=\"\",\"\",F34/$C$34)","v":""},null,{"$f":"IF($C$34=\"\",\"\",H34/$C$34)","v":""},null,{"$f":"IF($C$34=\"\",\"\",J34/$C$34)","v":""},null,{"$f":"IF($C$34=\"\",\"\",L34/$C$34)","v":""},null,{"$f":"IF($C$34=\"\",\"\",N34/$C$34)","v":""},null,{"$f":"IF($C$34=\"\",\"\",P34/$C$34)","v":""},null,{"$f":"IF($C$34=\"\",\"\",R34/$C$34)","v":""},null,{"$f":"IF($C$34=\"\",\"\",T34/$C$34)","v":""},null,{"$f":"IF($C$34=\"\",\"\",V34/$C$34)","v":""},null,{"$f":"IF($C$34=\"\",\"\",X34/$C$34)","v":""},null,{"$f":"IF($C$34=\"\",\"\",Z34/$C$34)","v":""},null,{"$f":"IF($C$34=\"\",\"\",AB34/$C$34)","v":""},null,{"$f":"IF($C$34=\"\",\"\",AD34/$C$34)","v":""},null,{"$f":"IF($C$34=\"\",\"\",AF34/$C$34)","v":""},null,{"$f":"IF($C$34=\"\",\"\",AH34/$C$34)","v":""},null,{"$f":"IF($C$34=\"\",\"\",AJ34/$C$34)","v":""},null,{"$f":"IF($C$34=\"\",\"\",AL34/$C$34)","v":""},null,{"$f":"IF($C$34=\"\",\"\",AN34/$C$34)","v":""},null,{"$f":"IF($C$34=\"\",\"\",AP34/$C$34)","v":""},null,{"$f":"IF($C$34=\"\",\"\",AR34/$C$34)","v":""},null,{"$f":"IF($C$34=\"\",\"\",AT34/$C$34)","v":""},null,{"$f":"IF($C$34=\"\",\"\",AV34/$C$34)","v":""},null,{"$f":"IF($C$34=\"\",\"\",AX34/$C$34)","v":""},null,{"$f":"IF($C$34=\"\",\"\",AZ34/$C$34)","v":""},null,{"$f":"IF($C$34=\"\",\"\",BB34/$C$34)","v":""},null,0]
["    2.1.3","    Summarize Proposed System Concept of \n    Operations",null,null,{"$f":"IF($C$35=\"\",\"\",F35/$C$35)","v":""},null,{"$f":"IF($C$35=\"\",\"\",H35/$C$35)","v":""},null,{"$f":"IF($C$35=\"\",\"\",J35/$C$35)","v":""},null,{"$f":"IF($C$35=\"\",\"\",L35/$C$35)","v":""},null,{"$f":"IF($C$35=\"\",\"\",N35/$C$35)","v":""},null,{"$f":"IF($C$35=\"\",\"\",P35/$C$35)","v":""},null,{"$f":"IF($C$35=\"\",\"\",R35/$C$35)","v":""},null,{"$f":"IF($C$35=\"\",\"\",T35/$C$35)","v":""},null,{"$f":"IF($C$35=\"\",\"\",V35/$C$35)","v":""},null,{"$f":"IF($C$35=\"\",\"\",X35/$C$35)","v":""},null,{"$f":"IF($C$35=\"\",\"\",Z35/$C$35)","v":""},null,{"$f":"IF($C$35=\"\",\"\",AB35/$C$35)","v":""},null,{"$f":"IF($C$35=\"\",\"\",AD35/$C$35)","v":""},null,{"$f":"IF($C$35=\"\",\"\",AF35/$C$35)","v":""},null,{"$f":"IF($C$35=\"\",\"\",AH35/$C$35)","v":""},null,{"$f":"IF($C$35=\"\",\"\",AJ35/$C$35)","v":""},null,{"$f":"IF($C$35=\"\",\"\",AL35/$C$35)","v":""},null,{"$f":"IF($C$35=\"\",\"\",AN35/$C$35)","v":""},null,{"$f":"IF($C$35=\"\",\"\",AP35/$C$35)","v":""},null,{"$f":"IF($C$35=\"\",\"\",AR35/$C$35)","v":""},null,{"$f":"IF($C$35=\"\",\"\",AT35/$C$35)","v":""},null,{"$f":"IF($C$35=\"\",\"\",AV35/$C$35)","v":""},null,{"$f":"IF($C$35=\"\",\"\",AX35/$C$35)","v":""},null,{"$f":"IF($C$35=\"\",\"\",AZ35/$C$35)","v":""},null,{"$f":"IF($C$35=\"\",\"\",BB35/$C$35)","v":""},null,0]
["    2.1.4","    Reference Project Architecture & Ensure \n    Regional Architecture Compliance",null,null,{"$f":"IF($C$36=\"\",\"\",F36/$C$36)","v":""},null,{"$f":"IF($C$36=\"\",\"\",H36/$C$36)","v":""},null,{"$f":"IF($C$36=\"\",\"\",J36/$C$36)","v":""},null,{"$f":"IF($C$36=\"\",\"\",L36/$C$36)","v":""},null,{"$f":"IF($C$36=\"\",\"\",N36/$C$36)","v":""},null,{"$f":"IF($C$36=\"\",\"\",P36/$C$36)","v":""},null,{"$f":"IF($C$36=\"\",\"\",R36/$C$36)","v":""},null,{"$f":"IF($C$36=\"\",\"\",T36/$C$36)","v":""},null,{"$f":"IF($C$36=\"\",\"\",V36/$C$36)","v":""},null,{"$f":"IF($C$36=\"\",\"\",X36/$C$36)","v":""},null,{"$f":"IF($C$36=\"\",\"\",Z36/$C$36)","v":""},null,{"$f":"IF($C$36=\"\",\"\",AB36/$C$36)","v":""},null,{"$f":"IF($C$36=\"\",\"\",AD36/$C$36)","v":""},null,{"$f":"IF($C$36=\"\",\"\",AF36/$C$36)","v":""},null,{"$f":"IF($C$36=\"\",\"\",AH36/$C$36)","v":""},null,{"$f":"IF($C$36=\"\",\"\",AJ36/$C$36)","v":""},null,{"$f":"IF($C$36=\"\",\"\",AL36/$C$36)","v":""},null,{"$f":"IF($C$36=\"\",\"\",AN36/$C$36)","v":""},null,{"$f":"IF($C$36=\"\",\"\",AP36/$C$36)","v":""},null,{"$f":"IF($C$36=\"\",\"\",AR36/$C$36)","v":""},null,{"$f":"IF($C$36=\"\",\"\",AT36/$C$36)","v":""},null,{"$f":"IF($C$36=\"\",\"\",AV36/$C$36)","v":""},null,{"$f":"IF($C$36=\"\",\"\",AX36/$C$36)","v":""},null,{"$f":"IF($C$36=\"\",\"\",AZ36/$C$36)","v":""},null,{"$f":"IF($C$36=\"\",\"\",BB36/$C$36)","v":""},null,0]
["    2.1.5","    Develop Draft Systems Engineering Document",null,null,{"$f":"IF($C$37=\"\",\"\",F37/$C$37)","v":""},null,{"$f":"IF($C$37=\"\",\"\",H37/$C$37)","v":""},null,{"$f":"IF($C$37=\"\",\"\",J37/$C$37)","v":""},null,{"$f":"IF($C$37=\"\",\"\",L37/$C$37)","v":""},null,{"$f":"IF($C$37=\"\",\"\",N37/$C$37)","v":""},null,{"$f":"IF($C$37=\"\",\"\",P37/$C$37)","v":""},null,{"$f":"IF($C$37=\"\",\"\",R37/$C$37)","v":""},null,{"$f":"IF($C$37=\"\",\"\",T37/$C$37)","v":""},null,{"$f":"IF($C$37=\"\",\"\",V37/$C$37)","v":""},null,{"$f":"IF($C$37=\"\",\"\",X37/$C$37)","v":""},null,{"$f":"IF($C$37=\"\",\"\",Z37/$C$37)","v":""},null,{"$f":"IF($C$37=\"\",\"\",AB37/$C$37)","v":""},null,{"$f":"IF($C$37=\"\",\"\",AD37/$C$37)","v":""},null,{"$f":"IF($C$37=\"\",\"\",AF37/$C$37)","v":""},null,{"$f":"IF($C$37=\"\",\"\",AH37/$C$37)","v":""},null,{"$f":"IF($C$37=\"\",\"\",AJ37/$C$37)","v":""},null,{"$f":"IF($C$37=\"\",\"\",AL37/$C$37)","v":""},null,{"$f":"IF($C$37=\"\",\"\",AN37/$C$37)","v":""},null,{"$f":"IF($C$37=\"\",\"\",AP37/$C$37)","v":""},null,{"$f":"IF($C$37=\"\",\"\",AR37/$C$37)","v":""},null,{"$f":"IF($C$37=\"\",\"\",AT37/$C$37)","v":""},null,{"$f":"IF($C$37=\"\",\"\",AV37/$C$37)","v":""},null,{"$f":"IF($C$37=\"\",\"\",AX37/$C$37)","v":""},null,{"$f":"IF($C$37=\"\",\"\",AZ37/$C$37)","v":""},null,{"$f":"IF($C$37=\"\",\"\",BB37/$C$37)","v":""},null,0]
["    2.1.6","    Finalize Systems Engineering Document",null,null,{"$f":"IF($C$38=\"\",\"\",F38/$C$38)","v":""},null,{"$f":"IF($C$38=\"\",\"\",H38/$C$38)","v":""},null,{"$f":"IF($C$38=\"\",\"\",J38/$C$38)","v":""},null,{"$f":"IF($C$38=\"\",\"\",L38/$C$38)","v":""},null,{"$f":"IF($C$38=\"\",\"\",N38/$C$38)","v":""},null,{"$f":"IF($C$38=\"\",\"\",P38/$C$38)","v":""},null,{"$f":"IF($C$38=\"\",\"\",R38/$C$38)","v":""},null,{"$f":"IF($C$38=\"\",\"\",T38/$C$38)","v":""},null,{"$f":"IF($C$38=\"\",\"\",V38/$C$38)","v":""},null,{"$f":"IF($C$38=\"\",\"\",X38/$C$38)","v":""},null,{"$f":"IF($C$38=\"\",\"\",Z38/$C$38)","v":""},null,{"$f":"IF($C$38=\"\",\"\",AB38/$C$38)","v":""},null,{"$f":"IF($C$38=\"\",\"\",AD38/$C$38)","v":""},null,{"$f":"IF($C$38=\"\",\"\",AF38/$C$38)","v":""},null,{"$f":"IF($C$38=\"\",\"\",AH38/$C$38)","v":""},null,{"$f":"IF($C$38=\"\",\"\",AJ38/$C$38)","v":""},null,{"$f":"IF($C$38=\"\",\"\",AL38/$C$38)","v":""},null,{"$f":"IF($C$38=\"\",\"\",AN38/$C$38)","v":""},null,{"$f":"IF($C$38=\"\",\"\",AP38/$C$38)","v":""},null,{"$f":"IF($C$38=\"\",\"\",AR38/$C$38)","v":""},null,{"$f":"IF($C$38=\"\",\"\",AT38/$C$38)","v":""},null,{"$f":"IF($C$38=\"\",\"\",AV38/$C$38)","v":""},null,{"$f":"IF($C$38=\"\",\"\",AX38/$C$38)","v":""},null,{"$f":"IF($C$38=\"\",\"\",AZ38/$C$38)","v":""},null,{"$f":"IF($C$38=\"\",\"\",BB38/$C$38)","v":""},null,0]
["    2.1.7",null,null,null,{"$f":"IF($C$39=\"\",\"\",F39/$C$39)","v":""},null,{"$f":"IF($C$39=\"\",\"\",H39/$C$39)","v":""},null,{"$f":"IF($C$39=\"\",\"\",J39/$C$39)","v":""},null,{"$f":"IF($C$39=\"\",\"\",L39/$C$39)","v":""},null,{"$f":"IF($C$39=\"\",\"\",N39/$C$39)","v":""},null,{"$f":"IF($C$39=\"\",\"\",P39/$C$39)","v":""},null,{"$f":"IF($C$39=\"\",\"\",R39/$C$39)","v":""},null,{"$f":"IF($C$39=\"\",\"\",T39/$C$39)","v":""},null,{"$f":"IF($C$39=\"\",\"\",V39/$C$39)","v":""},null,{"$f":"IF($C$39=\"\",\"\",X39/$C$39)","v":""},null,{"$f":"IF($C$39=\"\",\"\",Z39/$C$39)","v":""},null,{"$f":"IF($C$39=\"\",\"\",AB39/$C$39)","v":""},null,{"$f":"IF($C$39=\"\",\"\",AD39/$C$39)","v":""},null,{"$f":"IF($C$39=\"\",\"\",AF39/$C$39)","v":""},null,{"$f":"IF($C$39=\"\",\"\",AH39/$C$39)","v":""},null,{"$f":"IF($C$39=\"\",\"\",AJ39/$C$39)","v":""},null,{"$f":"IF($C$39=\"\",\"\",AL39/$C$39)","v":""},null,{"$f":"IF($C$39=\"\",\"\",AN39/$C$39)","v":""},null,{"$f":"IF($C$39=\"\",\"\",AP39/$C$39)","v":""},null,{"$f":"IF($C$39=\"\",\"\",AR39/$C$39)","v":""},null,{"$f":"IF($C$39=\"\",\"\",AT39/$C$39)","v":""},null,{"$f":"IF($C$39=\"\",\"\",AV39/$C$39)","v":""},null,{"$f":"IF($C$39=\"\",\"\",AX39/$C$39)","v":""},null,{"$f":"IF($C$39=\"\",\"\",AZ39/$C$39)","v":""},null,{"$f":"IF($C$39=\"\",\"\",BB39/$C$39)","v":""},null,0]
["    2.1.8",null,null,null,{"$f":"IF($C$40=\"\",\"\",F40/$C$40)","v":""},null,{"$f":"IF($C$40=\"\",\"\",H40/$C$40)","v":""},null,{"$f":"IF($C$40=\"\",\"\",J40/$C$40)","v":""},null,{"$f":"IF($C$40=\"\",\"\",L40/$C$40)","v":""},null,{"$f":"IF($C$40=\"\",\"\",N40/$C$40)","v":""},null,{"$f":"IF($C$40=\"\",\"\",P40/$C$40)","v":""},null,{"$f":"IF($C$40=\"\",\"\",R40/$C$40)","v":""},null,{"$f":"IF($C$40=\"\",\"\",T40/$C$40)","v":""},null,{"$f":"IF($C$40=\"\",\"\",V40/$C$40)","v":""},null,{"$f":"IF($C$40=\"\",\"\",X40/$C$40)","v":""},null,{"$f":"IF($C$40=\"\",\"\",Z40/$C$40)","v":""},null,{"$f":"IF($C$40=\"\",\"\",AB40/$C$40)","v":""},null,{"$f":"IF($C$40=\"\",\"\",AD40/$C$40)","v":""},null,{"$f":"IF($C$40=\"\",\"\",AF40/$C$40)","v":""},null,{"$f":"IF($C$40=\"\",\"\",AH40/$C$40)","v":""},null,{"$f":"IF($C$40=\"\",\"\",AJ40/$C$40)","v":""},null,{"$f":"IF($C$40=\"\",\"\",AL40/$C$40)","v":""},null,{"$f":"IF($C$40=\"\",\"\",AN40/$C$40)","v":""},null,{"$f":"IF($C$40=\"\",\"\",AP40/$C$40)","v":""},null,{"$f":"IF($C$40=\"\",\"\",AR40/$C$40)","v":""},null,{"$f":"IF($C$40=\"\",\"\",AT40/$C$40)","v":""},null,{"$f":"IF($C$40=\"\",\"\",AV40/$C$40)","v":""},null,{"$f":"IF($C$40=\"\",\"\",AX40/$C$40)","v":""},null,{"$f":"IF($C$40=\"\",\"\",AZ40/$C$40)","v":""},null,{"$f":"IF($C$40=\"\",\"\",BB40/$C$40)","v":""},null,0]
["    2.1.9",null,null,null,{"$f":"IF($C$41=\"\",\"\",F41/$C$41)","v":""},null,{"$f":"IF($C$41=\"\",\"\",H41/$C$41)","v":""},null,{"$f":"IF($C$41=\"\",\"\",J41/$C$41)","v":""},null,{"$f":"IF($C$41=\"\",\"\",L41/$C$41)","v":""},null,{"$f":"IF($C$41=\"\",\"\",N41/$C$41)","v":""},null,{"$f":"IF($C$41=\"\",\"\",P41/$C$41)","v":""},null,{"$f":"IF($C$41=\"\",\"\",R41/$C$41)","v":""},null,{"$f":"IF($C$41=\"\",\"\",T41/$C$41)","v":""},null,{"$f":"IF($C$41=\"\",\"\",V41/$C$41)","v":""},null,{"$f":"IF($C$41=\"\",\"\",X41/$C$41)","v":""},null,{"$f":"IF($C$41=\"\",\"\",Z41/$C$41)","v":""},null,{"$f":"IF($C$41=\"\",\"\",AB41/$C$41)","v":""},null,{"$f":"IF($C$41=\"\",\"\",AD41/$C$41)","v":""},null,{"$f":"IF($C$41=\"\",\"\",AF41/$C$41)","v":""},null,{"$f":"IF($C$41=\"\",\"\",AH41/$C$41)","v":""},null,{"$f":"IF($C$41=\"\",\"\",AJ41/$C$41)","v":""},null,{"$f":"IF($C$41=\"\",\"\",AL41/$C$41)","v":""},null,{"$f":"IF($C$41=\"\",\"\",AN41/$C$41)","v":""},null,{"$f":"IF($C$41=\"\",\"\",AP41/$C$41)","v":""},null,{"$f":"IF($C$41=\"\",\"\",AR41/$C$41)","v":""},null,{"$f":"IF($C$41=\"\",\"\",AT41/$C$41)","v":""},null,{"$f":"IF($C$41=\"\",\"\",AV41/$C$41)","v":""},null,{"$f":"IF($C$41=\"\",\"\",AX41/$C$41)","v":""},null,{"$f":"IF($C$41=\"\",\"\",AZ41/$C$41)","v":""},null,{"$f":"IF($C$41=\"\",\"\",BB41/$C$41)","v":""},null,0]
[2.2000000000000002,"System Maintenance and Staffing Plan",null,null,{"$f":"IF($C$42=\"\",\"\",F42/$C$42)","v":""},null,{"$f":"IF($C$42=\"\",\"\",H42/$C$42)","v":""},null,{"$f":"IF($C$42=\"\",\"\",J42/$C$42)","v":""},null,{"$f":"IF($C$42=\"\",\"\",L42/$C$42)","v":""},null,{"$f":"IF($C$42=\"\",\"\",N42/$C$42)","v":""},null,{"$f":"IF($C$42=\"\",\"\",P42/$C$42)","v":""},null,{"$f":"IF($C$42=\"\",\"\",R42/$C$42)","v":""},null,{"$f":"IF($C$42=\"\",\"\",T42/$C$42)","v":""},null,{"$f":"IF($C$42=\"\",\"\",V42/$C$42)","v":""},null,{"$f":"IF($C$42=\"\",\"\",X42/$C$42)","v":""},null,{"$f":"IF($C$42=\"\",\"\",Z42/$C$42)","v":""},null,{"$f":"IF($C$42=\"\",\"\",AB42/$C$42)","v":""},null,{"$f":"IF($C$42=\"\",\"\",AD42/$C$42)","v":""},null,{"$f":"IF($C$42=\"\",\"\",AF42/$C$42)","v":""},null,{"$f":"IF($C$42=\"\",\"\",AH42/$C$42)","v":""},null,{"$f":"IF($C$42=\"\",\"\",AJ42/$C$42)","v":""},null,{"$f":"IF($C$42=\"\",\"\",AL42/$C$42)","v":""},null,{"$f":"IF($C$42=\"\",\"\",AN42/$C$42)","v":""},null,{"$f":"IF($C$42=\"\",\"\",AP42/$C$42)","v":""},null,{"$f":"IF($C$42=\"\",\"\",AR42/$C$42)","v":""},null,{"$f":"IF($C$42=\"\",\"\",AT42/$C$42)","v":""},null,{"$f":"IF($C$42=\"\",\"\",AV42/$C$42)","v":""},null,{"$f":"IF($C$42=\"\",\"\",AX42/$C$42)","v":""},null,{"$f":"IF($C$42=\"\",\"\",AZ42/$C$42)","v":""},null,{"$f":"IF($C$42=\"\",\"\",BB42/$C$42)","v":""},null,0]
[2.2999999999999998,"Municipal Remote Monitoring  Center Requirements",null,null,{"$f":"IF($C$43=\"\",\"\",F43/$C$43)","v":""},null,{"$f":"IF($C$43=\"\",\"\",H43/$C$43)","v":""},null,{"$f":"IF($C$43=\"\",\"\",J43/$C$43)","v":""},null,{"$f":"IF($C$43=\"\",\"\",L43/$C$43)","v":""},null,{"$f":"IF($C$43=\"\",\"\",N43/$C$43)","v":""},null,{"$f":"IF($C$43=\"\",\"\",P43/$C$43)","v":""},null,{"$f":"IF($C$43=\"\",\"\",R43/$C$43)","v":""},null,{"$f":"IF($C$43=\"\",\"\",T43/$C$43)","v":""},null,{"$f":"IF($C$43=\"\",\"\",V43/$C$43)","v":""},null,{"$f":"IF($C$43=\"\",\"\",X43/$C$43)","v":""},null,{"$f":"IF($C$43=\"\",\"\",Z43/$C$43)","v":""},null,{"$f":"IF($C$43=\"\",\"\",AB43/$C$43)","v":""},null,{"$f":"IF($C$43=\"\",\"\",AD43/$C$43)","v":""},null,{"$f":"IF($C$43=\"\",\"\",AF43/$C$43)","v":""},null,{"$f":"IF($C$43=\"\",\"\",AH43/$C$43)","v":""},null,{"$f":"IF($C$43=\"\",\"\",AJ43/$C$43)","v":""},null,{"$f":"IF($C$43=\"\",\"\",AL43/$C$43)","v":""},null,{"$f":"IF($C$43=\"\",\"\",AN43/$C$43)","v":""},null,{"$f":"IF($C$43=\"\",\"\",AP43/$C$43)","v":""},null,{"$f":"IF($C$43=\"\",\"\",AR43/$C$43)","v":""},null,{"$f":"IF($C$43=\"\",\"\",AT43/$C$43)","v":""},null,{"$f":"IF($C$43=\"\",\"\",AV43/$C$43)","v":""},null,{"$f":"IF($C$43=\"\",\"\",AX43/$C$43)","v":""},null,{"$f":"IF($C$43=\"\",\"\",AZ43/$C$43)","v":""},null,{"$f":"IF($C$43=\"\",\"\",BB43/$C$43)","v":""},null,0]
[2.4,"Traffic Management Center Modifications",null,null,{"$f":"IF($C$44=\"\",\"\",F44/$C$44)","v":""},null,{"$f":"IF($C$44=\"\",\"\",H44/$C$44)","v":""},null,{"$f":"IF($C$44=\"\",\"\",J44/$C$44)","v":""},null,{"$f":"IF($C$44=\"\",\"\",L44/$C$44)","v":""},null,{"$f":"IF($C$44=\"\",\"\",N44/$C$44)","v":""},null,{"$f":"IF($C$44=\"\",\"\",P44/$C$44)","v":""},null,{"$f":"IF($C$44=\"\",\"\",R44/$C$44)","v":""},null,{"$f":"IF($C$44=\"\",\"\",T44/$C$44)","v":""},null,{"$f":"IF($C$44=\"\",\"\",V44/$C$44)","v":""},null,{"$f":"IF($C$44=\"\",\"\",X44/$C$44)","v":""},null,{"$f":"IF($C$44=\"\",\"\",Z44/$C$44)","v":""},null,{"$f":"IF($C$44=\"\",\"\",AB44/$C$44)","v":""},null,{"$f":"IF($C$44=\"\",\"\",AD44/$C$44)","v":""},null,{"$f":"IF($C$44=\"\",\"\",AF44/$C$44)","v":""},null,{"$f":"IF($C$44=\"\",\"\",AH44/$C$44)","v":""},null,{"$f":"IF($C$44=\"\",\"\",AJ44/$C$44)","v":""},null,{"$f":"IF($C$44=\"\",\"\",AL44/$C$44)","v":""},null,{"$f":"IF($C$44=\"\",\"\",AN44/$C$44)","v":""},null,{"$f":"IF($C$44=\"\",\"\",AP44/$C$44)","v":""},null,{"$f":"IF($C$44=\"\",\"\",AR44/$C$44)","v":""},null,{"$f":"IF($C$44=\"\",\"\",AT44/$C$44)","v":""},null,{"$f":"IF($C$44=\"\",\"\",AV44/$C$44)","v":""},null,{"$f":"IF($C$44=\"\",\"\",AX44/$C$44)","v":""},null,{"$f":"IF($C$44=\"\",\"\",AZ44/$C$44)","v":""},null,{"$f":"IF($C$44=\"\",\"\",BB44/$C$44)","v":""},null,0]
[2.5,"Emergency Vehicle Preemption/ Transit Priority Requirements",null,null,{"$f":"IF($C$45=\"\",\"\",F45/$C$45)","v":""},null,{"$f":"IF($C$45=\"\",\"\",H45/$C$45)","v":""},null,{"$f":"IF($C$45=\"\",\"\",J45/$C$45)","v":""},null,{"$f":"IF($C$45=\"\",\"\",L45/$C$45)","v":""},null,{"$f":"IF($C$45=\"\",\"\",N45/$C$45)","v":""},null,{"$f":"IF($C$45=\"\",\"\",P45/$C$45)","v":""},null,{"$f":"IF($C$45=\"\",\"\",R45/$C$45)","v":""},null,{"$f":"IF($C$45=\"\",\"\",T45/$C$45)","v":""},null,{"$f":"IF($C$45=\"\",\"\",V45/$C$45)","v":""},null,{"$f":"IF($C$45=\"\",\"\",X45/$C$45)","v":""},null,{"$f":"IF($C$45=\"\",\"\",Z45/$C$45)","v":""},null,{"$f":"IF($C$45=\"\",\"\",AB45/$C$45)","v":""},null,{"$f":"IF($C$45=\"\",\"\",AD45/$C$45)","v":""},null,{"$f":"IF($C$45=\"\",\"\",AF45/$C$45)","v":""},null,{"$f":"IF($C$45=\"\",\"\",AH45/$C$45)","v":""},null,{"$f":"IF($C$45=\"\",\"\",AJ45/$C$45)","v":""},null,{"$f":"IF($C$45=\"\",\"\",AL45/$C$45)","v":""},null,{"$f":"IF($C$45=\"\",\"\",AN45/$C$45)","v":""},null,{"$f":"IF($C$45=\"\",\"\",AP45/$C$45)","v":""},null,{"$f":"IF($C$45=\"\",\"\",AR45/$C$45)","v":""},null,{"$f":"IF($C$45=\"\",\"\",AT45/$C$45)","v":""},null,{"$f":"IF($C$45=\"\",\"\",AV45/$C$45)","v":""},null,{"$f":"IF($C$45=\"\",\"\",AX45/$C$45)","v":""},null,{"$f":"IF($C$45=\"\",\"\",AZ45/$C$45)","v":""},null,{"$f":"IF($C$45=\"\",\"\",BB45/$C$45)","v":""},null,0]
[null,null,null,null,{"$f":"IF($C$46=\"\",\"\",F46/$C$46)","v":""},null,{"$f":"IF($C$46=\"\",\"\",H46/$C$46)","v":""},null,{"$f":"IF($C$46=\"\",\"\",J46/$C$46)","v":""},null,{"$f":"IF($C$46=\"\",\"\",L46/$C$46)","v":""},null,{"$f":"IF($C$46=\"\",\"\",N46/$C$46)","v":""},null,{"$f":"IF($C$46=\"\",\"\",P46/$C$46)","v":""},null,{"$f":"IF($C$46=\"\",\"\",R46/$C$46)","v":""},null,{"$f":"IF($C$46=\"\",\"\",T46/$C$46)","v":""},null,{"$f":"IF($C$46=\"\",\"\",V46/$C$46)","v":""},null,{"$f":"IF($C$46=\"\",\"\",X46/$C$46)","v":""},null,{"$f":"IF($C$46=\"\",\"\",Z46/$C$46)","v":""},null,{"$f":"IF($C$46=\"\",\"\",AB46/$C$46)","v":""},null,{"$f":"IF($C$46=\"\",\"\",AD46/$C$46)","v":""},null,{"$f":"IF($C$46=\"\",\"\",AF46/$C$46)","v":""},null,{"$f":"IF($C$46=\"\",\"\",AH46/$C$46)","v":""},null,{"$f":"IF($C$46=\"\",\"\",AJ46/$C$46)","v":""},null,{"$f":"IF($C$46=\"\",\"\",AL46/$C$46)","v":""},null,{"$f":"IF($C$46=\"\",\"\",AN46/$C$46)","v":""},null,{"$f":"IF($C$46=\"\",\"\",AP46/$C$46)","v":""},null,{"$f":"IF($C$46=\"\",\"\",AR46/$C$46)","v":""},null,{"$f":"IF($C$46=\"\",\"\",AT46/$C$46)","v":""},null,{"$f":"IF($C$46=\"\",\"\",AV46/$C$46)","v":""},null,{"$f":"IF($C$46=\"\",\"\",AX46/$C$46)","v":""},null,{"$f":"IF($C$46=\"\",\"\",AZ46/$C$46)","v":""},null,{"$f":"IF($C$46=\"\",\"\",BB46/$C$46)","v":""},null,0]
[null,null,null,null,{"$f":"IF($C$47=\"\",\"\",F47/$C$47)","v":""},null,{"$f":"IF($C$47=\"\",\"\",H47/$C$47)","v":""},null,{"$f":"IF($C$47=\"\",\"\",J47/$C$47)","v":""},null,{"$f":"IF($C$47=\"\",\"\",L47/$C$47)","v":""},null,{"$f":"IF($C$47=\"\",\"\",N47/$C$47)","v":""},null,{"$f":"IF($C$47=\"\",\"\",P47/$C$47)","v":""},null,{"$f":"IF($C$47=\"\",\"\",R47/$C$47)","v":""},null,{"$f":"IF($C$47=\"\",\"\",T47/$C$47)","v":""},null,{"$f":"IF($C$47=\"\",\"\",V47/$C$47)","v":""},null,{"$f":"IF($C$47=\"\",\"\",X47/$C$47)","v":""},null,{"$f":"IF($C$47=\"\",\"\",Z47/$C$47)","v":""},null,{"$f":"IF($C$47=\"\",\"\",AB47/$C$47)","v":""},null,{"$f":"IF($C$47=\"\",\"\",AD47/$C$47)","v":""},null,{"$f":"IF($C$47=\"\",\"\",AF47/$C$47)","v":""},null,{"$f":"IF($C$47=\"\",\"\",AH47/$C$47)","v":""},null,{"$f":"IF($C$47=\"\",\"\",AJ47/$C$47)","v":""},null,{"$f":"IF($C$47=\"\",\"\",AL47/$C$47)","v":""},null,{"$f":"IF($C$47=\"\",\"\",AN47/$C$47)","v":""},null,{"$f":"IF($C$47=\"\",\"\",AP47/$C$47)","v":""},null,{"$f":"IF($C$47=\"\",\"\",AR47/$C$47)","v":""},null,{"$f":"IF($C$47=\"\",\"\",AT47/$C$47)","v":""},null,{"$f":"IF($C$47=\"\",\"\",AV47/$C$47)","v":""},null,{"$f":"IF($C$47=\"\",\"\",AX47/$C$47)","v":""},null,{"$f":"IF($C$47=\"\",\"\",AZ47/$C$47)","v":""},null,{"$f":"IF($C$47=\"\",\"\",BB47/$C$47)","v":""},null,0]
[null,null,null,null,{"$f":"IF($C$48=\"\",\"\",F48/$C$48)","v":""},null,{"$f":"IF($C$48=\"\",\"\",H48/$C$48)","v":""},null,{"$f":"IF($C$48=\"\",\"\",J48/$C$48)","v":""},null,{"$f":"IF($C$48=\"\",\"\",L48/$C$48)","v":""},null,{"$f":"IF($C$48=\"\",\"\",N48/$C$48)","v":""},null,{"$f":"IF($C$48=\"\",\"\",P48/$C$48)","v":""},null,{"$f":"IF($C$48=\"\",\"\",R48/$C$48)","v":""},null,{"$f":"IF($C$48=\"\",\"\",T48/$C$48)","v":""},null,{"$f":"IF($C$48=\"\",\"\",V48/$C$48)","v":""},null,{"$f":"IF($C$48=\"\",\"\",X48/$C$48)","v":""},null,{"$f":"IF($C$48=\"\",\"\",Z48/$C$48)","v":""},null,{"$f":"IF($C$48=\"\",\"\",AB48/$C$48)","v":""},null,{"$f":"IF($C$48=\"\",\"\",AD48/$C$48)","v":""},null,{"$f":"IF($C$48=\"\",\"\",AF48/$C$48)","v":""},null,{"$f":"IF($C$48=\"\",\"\",AH48/$C$48)","v":""},null,{"$f":"IF($C$48=\"\",\"\",AJ48/$C$48)","v":""},null,{"$f":"IF($C$48=\"\",\"\",AL48/$C$48)","v":""},null,{"$f":"IF($C$48=\"\",\"\",AN48/$C$48)","v":""},null,{"$f":"IF($C$48=\"\",\"\",AP48/$C$48)","v":""},null,{"$f":"IF($C$48=\"\",\"\",AR48/$C$48)","v":""},null,{"$f":"IF($C$48=\"\",\"\",AT48/$C$48)","v":""},null,{"$f":"IF($C$48=\"\",\"\",AV48/$C$48)","v":""},null,{"$f":"IF($C$48=\"\",\"\",AX48/$C$48)","v":""},null,{"$f":"IF($C$48=\"\",\"\",AZ48/$C$48)","v":""},null,{"$f":"IF($C$48=\"\",\"\",BB48/$C$48)","v":""},null,0]
[null,null,null,null,{"$f":"IF($C$49=\"\",\"\",F49/$C$49)","v":""},null,{"$f":"IF($C$49=\"\",\"\",H49/$C$49)","v":""},null,{"$f":"IF($C$49=\"\",\"\",J49/$C$49)","v":""},null,{"$f":"IF($C$49=\"\",\"\",L49/$C$49)","v":""},null,{"$f":"IF($C$49=\"\",\"\",N49/$C$49)","v":""},null,{"$f":"IF($C$49=\"\",\"\",P49/$C$49)","v":""},null,{"$f":"IF($C$49=\"\",\"\",R49/$C$49)","v":""},null,{"$f":"IF($C$49=\"\",\"\",T49/$C$49)","v":""},null,{"$f":"IF($C$49=\"\",\"\",V49/$C$49)","v":""},null,{"$f":"IF($C$49=\"\",\"\",X49/$C$49)","v":""},null,{"$f":"IF($C$49=\"\",\"\",Z49/$C$49)","v":""},null,{"$f":"IF($C$49=\"\",\"\",AB49/$C$49)","v":""},null,{"$f":"IF($C$49=\"\",\"\",AD49/$C$49)","v":""},null,{"$f":"IF($C$49=\"\",\"\",AF49/$C$49)","v":""},null,{"$f":"IF($C$49=\"\",\"\",AH49/$C$49)","v":""},null,{"$f":"IF($C$49=\"\",\"\",AJ49/$C$49)","v":""},null,{"$f":"IF($C$49=\"\",\"\",AL49/$C$49)","v":""},null,{"$f":"IF($C$49=\"\",\"\",AN49/$C$49)","v":""},null,{"$f":"IF($C$49=\"\",\"\",AP49/$C$49)","v":""},null,{"$f":"IF($C$49=\"\",\"\",AR49/$C$49)","v":""},null,{"$f":"IF($C$49=\"\",\"\",AT49/$C$49)","v":""},null,{"$f":"IF($C$49=\"\",\"\",AV49/$C$49)","v":""},null,{"$f":"IF($C$49=\"\",\"\",AX49/$C$49)","v":""},null,{"$f":"IF($C$49=\"\",\"\",AZ49/$C$49)","v":""},null,{"$f":"IF($C$49=\"\",\"\",BB49/$C$49)","v":""},null,0]
[null,null,null,null,{"$f":"IF($C$50=\"\",\"\",F50/$C$50)","v":""},null,{"$f":"IF($C$50=\"\",\"\",H50/$C$50)","v":""},null,{"$f":"IF($C$50=\"\",\"\",J50/$C$50)","v":""},null,{"$f":"IF($C$50=\"\",\"\",L50/$C$50)","v":""},null,{"$f":"IF($C$50=\"\",\"\",N50/$C$50)","v":""},null,{"$f":"IF($C$50=\"\",\"\",P50/$C$50)","v":""},null,{"$f":"IF($C$50=\"\",\"\",R50/$C$50)","v":""},null,{"$f":"IF($C$50=\"\",\"\",T50/$C$50)","v":""},null,{"$f":"IF($C$50=\"\",\"\",V50/$C$50)","v":""},null,{"$f":"IF($C$50=\"\",\"\",X50/$C$50)","v":""},null,{"$f":"IF($C$50=\"\",\"\",Z50/$C$50)","v":""},null,{"$f":"IF($C$50=\"\",\"\",AB50/$C$50)","v":""},null,{"$f":"IF($C$50=\"\",\"\",AD50/$C$50)","v":""},null,{"$f":"IF($C$50=\"\",\"\",AF50/$C$50)","v":""},null,{"$f":"IF($C$50=\"\",\"\",AH50/$C$50)","v":""},null,{"$f":"IF($C$50=\"\",\"\",AJ50/$C$50)","v":""},null,{"$f":"IF($C$50=\"\",\"\",AL50/$C$50)","v":""},null,{"$f":"IF($C$50=\"\",\"\",AN50/$C$50)","v":""},null,{"$f":"IF($C$50=\"\",\"\",AP50/$C$50)","v":""},null,{"$f":"IF($C$50=\"\",\"\",AR50/$C$50)","v":""},null,{"$f":"IF($C$50=\"\",\"\",AT50/$C$50)","v":""},null,{"$f":"IF($C$50=\"\",\"\",AV50/$C$50)","v":""},null,{"$f":"IF($C$50=\"\",\"\",AX50/$C$50)","v":""},null,{"$f":"IF($C$50=\"\",\"\",AZ50/$C$50)","v":""},null,{"$f":"IF($C$50=\"\",\"\",BB50/$C$50)","v":""},null,0]
[null,null,null,null,{"$f":"IF($C$51=\"\",\"\",F51/$C$51)","v":""},null,{"$f":"IF($C$51=\"\",\"\",H51/$C$51)","v":""},null,{"$f":"IF($C$51=\"\",\"\",J51/$C$51)","v":""},null,{"$f":"IF($C$51=\"\",\"\",L51/$C$51)","v":""},null,{"$f":"IF($C$51=\"\",\"\",N51/$C$51)","v":""},null,{"$f":"IF($C$51=\"\",\"\",P51/$C$51)","v":""},null,{"$f":"IF($C$51=\"\",\"\",R51/$C$51)","v":""},null,{"$f":"IF($C$51=\"\",\"\",T51/$C$51)","v":""},null,{"$f":"IF($C$51=\"\",\"\",V51/$C$51)","v":""},null,{"$f":"IF($C$51=\"\",\"\",X51/$C$51)","v":""},null,{"$f":"IF($C$51=\"\",\"\",Z51/$C$51)","v":""},null,{"$f":"IF($C$51=\"\",\"\",AB51/$C$51)","v":""},null,{"$f":"IF($C$51=\"\",\"\",AD51/$C$51)","v":""},null,{"$f":"IF($C$51=\"\",\"\",AF51/$C$51)","v":""},null,{"$f":"IF($C$51=\"\",\"\",AH51/$C$51)","v":""},null,{"$f":"IF($C$51=\"\",\"\",AJ51/$C$51)","v":""},null,{"$f":"IF($C$51=\"\",\"\",AL51/$C$51)","v":""},null,{"$f":"IF($C$51=\"\",\"\",AN51/$C$51)","v":""},null,{"$f":"IF($C$51=\"\",\"\",AP51/$C$51)","v":""},null,{"$f":"IF($C$51=\"\",\"\",AR51/$C$51)","v":""},null,{"$f":"IF($C$51=\"\",\"\",AT51/$C$51)","v":""},null,{"$f":"IF($C$51=\"\",\"\",AV51/$C$51)","v":""},null,{"$f":"IF($C$51=\"\",\"\",AX51/$C$51)","v":""},null,{"$f":"IF($C$51=\"\",\"\",AZ51/$C$51)","v":""},null,{"$f":"IF($C$51=\"\",\"\",BB51/$C$51)","v":""},null,0]
[null,null,null,null,{"$f":"IF($C$52=\"\",\"\",F52/$C$52)","v":""},null,{"$f":"IF($C$52=\"\",\"\",H52/$C$52)","v":""},null,{"$f":"IF($C$52=\"\",\"\",J52/$C$52)","v":""},null,{"$f":"IF($C$52=\"\",\"\",L52/$C$52)","v":""},null,{"$f":"IF($C$52=\"\",\"\",N52/$C$52)","v":""},null,{"$f":"IF($C$52=\"\",\"\",P52/$C$52)","v":""},null,{"$f":"IF($C$52=\"\",\"\",R52/$C$52)","v":""},null,{"$f":"IF($C$52=\"\",\"\",T52/$C$52)","v":""},null,{"$f":"IF($C$52=\"\",\"\",V52/$C$52)","v":""},null,{"$f":"IF($C$52=\"\",\"\",X52/$C$52)","v":""},null,{"$f":"IF($C$52=\"\",\"\",Z52/$C$52)","v":""},null,{"$f":"IF($C$52=\"\",\"\",AB52/$C$52)","v":""},null,{"$f":"IF($C$52=\"\",\"\",AD52/$C$52)","v":""},null,{"$f":"IF($C$52=\"\",\"\",AF52/$C$52)","v":""},null,{"$f":"IF($C$52=\"\",\"\",AH52/$C$52)","v":""},null,{"$f":"IF($C$52=\"\",\"\",AJ52/$C$52)","v":""},null,{"$f":"IF($C$52=\"\",\"\",AL52/$C$52)","v":""},null,{"$f":"IF($C$52=\"\",\"\",AN52/$C$52)","v":""},null,{"$f":"IF($C$52=\"\",\"\",AP52/$C$52)","v":""},null,{"$f":"IF($C$52=\"\",\"\",AR52/$C$52)","v":""},null,{"$f":"IF($C$52=\"\",\"\",AT52/$C$52)","v":""},null,{"$f":"IF($C$52=\"\",\"\",AV52/$C$52)","v":""},null,{"$f":"IF($C$52=\"\",\"\",AX52/$C$52)","v":""},null,{"$f":"IF($C$52=\"\",\"\",AZ52/$C$52)","v":""},null,{"$f":"IF($C$52=\"\",\"\",BB52/$C$52)","v":""},null,{"$f":"SUM(BB52,AZ52,AX52,AV52,AT52,AR52,AP52,AN52,AL52,AJ52,AH52,AF52,AD52,AB52,Z52,X52,V52,T52,R52,P52,N52,L52,J52,H52,F52)","v":0}]
["TOTAL HOURS",null,null,null,null,{"$f":"SUM(F32:F52)","v":0},null,{"$f":"SUM(H32:H52)","v":0},null,{"$f":"SUM(J32:J52)","v":0},null,{"$f":"SUM(L32:L52)","v":0},null,{"$f":"SUM(N32:N52)","v":0},null,{"$f":"SUM(P32:P52)","v":0},null,{"$f":"SUM(R32:R52)","v":0},null,{"$f":"SUM(T32:T52)","v":0},null,{"$f":"SUM(V32:V52)","v":0},null,{"$f":"SUM(X32:X52)","v":0},null,{"$f":"SUM(Z32:Z52)","v":0},null,{"$f":"SUM(AB32:AB52)","v":0},null,{"$f":"SUM(AD32:AD52)","v":0},null,{"$f":"SUM(AF32:AF52)","v":0},null,{"$f":"SUM(AH32:AH52)","v":0},null,{"$f":"SUM(AJ32:AJ52)","v":0},null,{"$f":"SUM(AL32:AL52)","v":0},null,{"$f":"SUM(AN32:AN52)","v":0},null,{"$f":"SUM(AP32:AP52)","v":0},null,{"$f":"SUM(AR32:AR52)","v":0},null,{"$f":"SUM(AT32:AT52)","v":0},null,{"$f":"SUM(AV32:AV52)","v":0},null,{"$f":"SUM(AX32:AX52)","v":0},null,{"$f":"SUM(AZ32:AZ52)","v":0},null,{"$f":"SUM(BB32:BB52)","v":0},{"$f":"SUM(E53:BB53)","v":0}]
["TOTAL WORKDAYS",null,null,null,null,{"$f":"F53/8","v":0},null,{"$f":"H53/8","v":0},null,{"$f":"J53/8","v":0},null,{"$f":"L53/8","v":0},null,{"$f":"N53/8","v":0},null,{"$f":"P53/8","v":0},null,{"$f":"R53/8","v":0},null,{"$f":"T53/8","v":0},null,{"$f":"V53/8","v":0},null,{"$f":"X53/8","v":0},null,{"$f":"Z53/8","v":0},null,{"$f":"AB53/8","v":0},null,{"$f":"AD53/8","v":0},null,0,null,{"$f":"AH53/8","v":0},null,0,null,{"$f":"AL53/8","v":0},null,0,null,{"$f":"AP53/8","v":0},null,0,null,{"$f":"AT53/8","v":0},null,{"$f":"AV53/8","v":0},null,{"$f":"AX53/8","v":0},null,{"$f":"AZ53/8","v":0},null,{"$f":"BB53/8","v":0},{"$f":"SUM(E54:BB54)","v":0}]
["TOTAL RAW LABOR",null,null,null,null,{"$f":"$E$13*F53","v":0},null,{"$f":"$G$13*H53","v":0},null,{"$f":"$I$13*J53","v":0},null,{"$f":"$K$13*L53","v":0},null,{"$f":"$M$13*N53","v":0},null,{"$f":"$O$13*P53","v":0},null,{"$f":"$Q$13*R53","v":0},null,{"$f":"$S$13*T53","v":0},null,{"$f":"$U$13*V53","v":0},null,{"$f":"$W$13*X53","v":0},null,{"$f":"$Y$13*Z53","v":0},null,{"$f":"$AA$13*AB53","v":0},null,{"$f":"$AC$13*AD53","v":0},null,{"$f":"$AC$13*AF53","v":0},null,{"$f":"$AC$13*AH53","v":0},null,{"$f":"$AC$13*AJ53","v":0},null,{"$f":"$AC$13*AL53","v":0},null,{"$f":"$AC$13*AN53","v":0},null,{"$f":"$AC$13*AP53","v":0},null,{"$f":"$AC$13*AR53","v":0},null,{"$f":"$AC$13*AT53","v":0},null,{"$f":"$AC$13*AV53","v":0},null,{"$f":"$AC$13*AX53","v":0},null,{"$f":"$AC$13*AZ53","v":0},null,{"$f":"$AC$13*BB53","v":0},{"$f":"SUM(E55:BB55)","v":0}]
["Task 3.0     ","PROGRAMMATIC CATEGORICAL EXCLUSION & SUPPORTING TASKS"]
[3.1,"Misc. Coordination/Administration",null,null,{"$f":"IF($C$57=\"\",\"\",F57/$C$57)","v":""},null,{"$f":"IF($C$57=\"\",\"\",H57/$C$57)","v":""},null,{"$f":"IF($C$57=\"\",\"\",J57/$C$57)","v":""},null,{"$f":"IF($C$57=\"\",\"\",L57/$C$57)","v":""},null,{"$f":"IF($C$57=\"\",\"\",N57/$C$57)","v":""},null,{"$f":"IF($C$57=\"\",\"\",P57/$C$57)","v":""},null,{"$f":"IF($C$57=\"\",\"\",R57/$C$57)","v":""},null,{"$f":"IF($C$57=\"\",\"\",T57/$C$57)","v":""},null,{"$f":"IF($C$57=\"\",\"\",V57/$C$57)","v":""},null,{"$f":"IF($C$57=\"\",\"\",X57/$C$57)","v":""},null,{"$f":"IF($C$57=\"\",\"\",Z57/$C$57)","v":""},null,{"$f":"IF($C$57=\"\",\"\",AB57/$C$57)","v":""},null,{"$f":"IF($C$57=\"\",\"\",AD57/$C$57)","v":""},null,{"$f":"IF($C$57=\"\",\"\",AF57/$C$57)","v":""},null,{"$f":"IF($C$57=\"\",\"\",AH57/$C$57)","v":""},null,{"$f":"IF($C$57=\"\",\"\",AJ57/$C$57)","v":""},null,{"$f":"IF($C$57=\"\",\"\",AL57/$C$57)","v":""},null,{"$f":"IF($C$57=\"\",\"\",AN57/$C$57)","v":""},null,{"$f":"IF($C$57=\"\",\"\",AP57/$C$57)","v":""},null,{"$f":"IF($C$57=\"\",\"\",AR57/$C$57)","v":""},null,{"$f":"IF($C$57=\"\",\"\",AT57/$C$57)","v":""},null,{"$f":"IF($C$57=\"\",\"\",AV57/$C$57)","v":""},null,{"$f":"IF($C$57=\"\",\"\",AX57/$C$57)","v":""},null,{"$f":"IF($C$57=\"\",\"\",AZ57/$C$57)","v":""},null,{"$f":"IF($C$57=\"\",\"\",BB57/$C$57)","v":""},null,{"$f":"SUM(BB57,AZ57,AX57,AV57,AT57,AR57,AP57,AN57,AL57,AJ57,AH57,AF57,AD57,AB57,Z57,X57,V57,T57,R57,P57,N57,L57,J57,H57,F57)","v":0}]
[3.2,"Vicintiy Map/Base Mapping / Other Graphics"]
["    3.2.1","    Create Vicinity Map",null,null,{"$f":"IF($C$59=\"\",\"\",F59/$C$59)","v":""},null,{"$f":"IF($C$59=\"\",\"\",H59/$C$59)","v":""},null,{"$f":"IF($C$59=\"\",\"\",J59/$C$59)","v":""},null,{"$f":"IF($C$59=\"\",\"\",L59/$C$59)","v":""},null,{"$f":"IF($C$59=\"\",\"\",N59/$C$59)","v":""},null,{"$f":"IF($C$59=\"\",\"\",P59/$C$59)","v":""},null,{"$f":"IF($C$59=\"\",\"\",R59/$C$59)","v":""},null,{"$f":"IF($C$59=\"\",\"\",T59/$C$59)","v":""},null,{"$f":"IF($C$59=\"\",\"\",V59/$C$59)","v":""},null,{"$f":"IF($C$59=\"\",\"\",X59/$C$59)","v":""},null,{"$f":"IF($C$59=\"\",\"\",Z59/$C$59)","v":""},null,{"$f":"IF($C$59=\"\",\"\",AB59/$C$59)","v":""},null,{"$f":"IF($C$59=\"\",\"\",AD59/$C$59)","v":""},null,{"$f":"IF($C$59=\"\",\"\",AF59/$C$59)","v":""},null,{"$f":"IF($C$59=\"\",\"\",AH59/$C$59)","v":""},null,{"$f":"IF($C$59=\"\",\"\",AJ59/$C$59)","v":""},null,{"$f":"IF($C$59=\"\",\"\",AL59/$C$59)","v":""},null,{"$f":"IF($C$59=\"\",\"\",AN59/$C$59)","v":""},null,{"$f":"IF($C$59=\"\",\"\",AP59/$C$59)","v":""},null,{"$f":"IF($C$59=\"\",\"\",AR59/$C$59)","v":""},null,{"$f":"IF($C$59=\"\",\"\",AT59/$C$59)","v":""},null,{"$f":"IF($C$59=\"\",\"\",AV59/$C$59)","v":""},null,{"$f":"IF($C$59=\"\",\"\",AX59/$C$59)","v":""},null,{"$f":"IF($C$59=\"\",\"\",AZ59/$C$59)","v":""},null,{"$f":"IF($C$59=\"\",\"\",BB59/$C$59)","v":""},null,{"$f":"SUM(BB59,AZ59,AX59,AV59,AT59,AR59,AP59,AN59,AL59,AJ59,AH59,AF59,AD59,AB59,Z59,X59,V59,T59,R59,P59,N59,L59,J59,H59,F59)","v":0}]
["    3.2.2","    Digitize Feasibility Study Map (cable routing,\n    signals, camera locations)",null,null,{"$f":"IF($C$60=\"\",\"\",F60/$C$60)","v":""},null,{"$f":"IF($C$60=\"\",\"\",H60/$C$60)","v":""},null,{"$f":"IF($C$60=\"\",\"\",J60/$C$60)","v":""},null,{"$f":"IF($C$60=\"\",\"\",L60/$C$60)","v":""},null,{"$f":"IF($C$60=\"\",\"\",N60/$C$60)","v":""},null,{"$f":"IF($C$60=\"\",\"\",P60/$C$60)","v":""},null,{"$f":"IF($C$60=\"\",\"\",R60/$C$60)","v":""},null,{"$f":"IF($C$60=\"\",\"\",T60/$C$60)","v":""},null,{"$f":"IF($C$60=\"\",\"\",V60/$C$60)","v":""},null,{"$f":"IF($C$60=\"\",\"\",X60/$C$60)","v":""},null,{"$f":"IF($C$60=\"\",\"\",Z60/$C$60)","v":""},null,{"$f":"IF($C$60=\"\",\"\",AB60/$C$60)","v":""},null,{"$f":"IF($C$60=\"\",\"\",AD60/$C$60)","v":""},null,{"$f":"IF($C$60=\"\",\"\",AF60/$C$60)","v":""},null,{"$f":"IF($C$60=\"\",\"\",AH60/$C$60)","v":""},null,{"$f":"IF($C$60=\"\",\"\",AJ60/$C$60)","v":""},null,{"$f":"IF($C$60=\"\",\"\",AL60/$C$60)","v":""},null,{"$f":"IF($C$60=\"\",\"\",AN60/$C$60)","v":""},null,{"$f":"IF($C$60=\"\",\"\",AP60/$C$60)","v":""},null,{"$f":"IF($C$60=\"\",\"\",AR60/$C$60)","v":""},null,{"$f":"IF($C$60=\"\",\"\",AT60/$C$60)","v":""},null,{"$f":"IF($C$60=\"\",\"\",AV60/$C$60)","v":""},null,{"$f":"IF($C$60=\"\",\"\",AX60/$C$60)","v":""},null,{"$f":"IF($C$60=\"\",\"\",AZ60/$C$60)","v":""},null,{"$f":"IF($C$60=\"\",\"\",BB60/$C$60)","v":""},null,0]
["    3.2.3","    Add Planimetrics to Base Map",null,null,{"$f":"IF($C$61=\"\",\"\",F61/$C$61)","v":""},null,{"$f":"IF($C$61=\"\",\"\",H61/$C$61)","v":""},null,{"$f":"IF($C$61=\"\",\"\",J61/$C$61)","v":""},null,{"$f":"IF($C$61=\"\",\"\",L61/$C$61)","v":""},null,{"$f":"IF($C$61=\"\",\"\",N61/$C$61)","v":""},null,{"$f":"IF($C$61=\"\",\"\",P61/$C$61)","v":""},null,{"$f":"IF($C$61=\"\",\"\",R61/$C$61)","v":""},null,{"$f":"IF($C$61=\"\",\"\",T61/$C$61)","v":""},null,{"$f":"IF($C$61=\"\",\"\",V61/$C$61)","v":""},null,{"$f":"IF($C$61=\"\",\"\",X61/$C$61)","v":""},null,{"$f":"IF($C$61=\"\",\"\",Z61/$C$61)","v":""},null,{"$f":"IF($C$61=\"\",\"\",AB61/$C$61)","v":""},null,{"$f":"IF($C$61=\"\",\"\",AD61/$C$61)","v":""},null,{"$f":"IF($C$61=\"\",\"\",AF61/$C$61)","v":""},null,{"$f":"IF($C$61=\"\",\"\",AH61/$C$61)","v":""},null,{"$f":"IF($C$61=\"\",\"\",AJ61/$C$61)","v":""},null,{"$f":"IF($C$61=\"\",\"\",AL61/$C$61)","v":""},null,{"$f":"IF($C$61=\"\",\"\",AN61/$C$61)","v":""},null,{"$f":"IF($C$61=\"\",\"\",AP61/$C$61)","v":""},null,{"$f":"IF($C$61=\"\",\"\",AR61/$C$61)","v":""},null,{"$f":"IF($C$61=\"\",\"\",AT61/$C$61)","v":""},null,{"$f":"IF($C$61=\"\",\"\",AV61/$C$61)","v":""},null,{"$f":"IF($C$61=\"\",\"\",AX61/$C$61)","v":""},null,{"$f":"IF($C$61=\"\",\"\",AZ61/$C$61)","v":""},null,{"$f":"IF($C$61=\"\",\"\",BB61/$C$61)","v":""},null,0]
["    3.2.4","    Env. Features Layers (index, historic \n    districts/boundaries/structures, verify \n    community resources/correct autolabeling)",null,null,{"$f":"IF($C$62=\"\",\"\",F62/$C$62)","v":""},null,{"$f":"IF($C$62=\"\",\"\",H62/$C$62)","v":""},null,{"$f":"IF($C$62=\"\",\"\",J62/$C$62)","v":""},null,{"$f":"IF($C$62=\"\",\"\",L62/$C$62)","v":""},null,{"$f":"IF($C$62=\"\",\"\",N62/$C$62)","v":""},null,{"$f":"IF($C$62=\"\",\"\",P62/$C$62)","v":""},null,{"$f":"IF($C$62=\"\",\"\",R62/$C$62)","v":""},null,{"$f":"IF($C$62=\"\",\"\",T62/$C$62)","v":""},null,{"$f":"IF($C$62=\"\",\"\",V62/$C$62)","v":""},null,{"$f":"IF($C$62=\"\",\"\",X62/$C$62)","v":""},null,{"$f":"IF($C$62=\"\",\"\",Z62/$C$62)","v":""},null,{"$f":"IF($C$62=\"\",\"\",AB62/$C$62)","v":""},null,{"$f":"IF($C$62=\"\",\"\",AD62/$C$62)","v":""},null,{"$f":"IF($C$62=\"\",\"\",AF62/$C$62)","v":""},null,{"$f":"IF($C$62=\"\",\"\",AH62/$C$62)","v":""},null,{"$f":"IF($C$62=\"\",\"\",AJ62/$C$62)","v":""},null,{"$f":"IF($C$62=\"\",\"\",AL62/$C$62)","v":""},null,{"$f":"IF($C$62=\"\",\"\",AN62/$C$62)","v":""},null,{"$f":"IF($C$62=\"\",\"\",AP62/$C$62)","v":""},null,{"$f":"IF($C$62=\"\",\"\",AR62/$C$62)","v":""},null,{"$f":"IF($C$62=\"\",\"\",AT62/$C$62)","v":""},null,{"$f":"IF($C$62=\"\",\"\",AV62/$C$62)","v":""},null,{"$f":"IF($C$62=\"\",\"\",AX62/$C$62)","v":""},null,{"$f":"IF($C$62=\"\",\"\",AZ62/$C$62)","v":""},null,{"$f":"IF($C$62=\"\",\"\",BB62/$C$62)","v":""},null,0]
["    3.2.5","    Modifications Following Field Work",null,null,{"$f":"IF($C$63=\"\",\"\",F63/$C$63)","v":""},null,{"$f":"IF($C$63=\"\",\"\",H63/$C$63)","v":""},null,{"$f":"IF($C$63=\"\",\"\",J63/$C$63)","v":""},null,{"$f":"IF($C$63=\"\",\"\",L63/$C$63)","v":""},null,{"$f":"IF($C$63=\"\",\"\",N63/$C$63)","v":""},null,{"$f":"IF($C$63=\"\",\"\",P63/$C$63)","v":""},null,{"$f":"IF($C$63=\"\",\"\",R63/$C$63)","v":""},null,{"$f":"IF($C$63=\"\",\"\",T63/$C$63)","v":""},null,{"$f":"IF($C$63=\"\",\"\",V63/$C$63)","v":""},null,{"$f":"IF($C$63=\"\",\"\",X63/$C$63)","v":""},null,{"$f":"IF($C$63=\"\",\"\",Z63/$C$63)","v":""},null,{"$f":"IF($C$63=\"\",\"\",AB63/$C$63)","v":""},null,{"$f":"IF($C$63=\"\",\"\",AD63/$C$63)","v":""},null,{"$f":"IF($C$63=\"\",\"\",AF63/$C$63)","v":""},null,{"$f":"IF($C$63=\"\",\"\",AH63/$C$63)","v":""},null,{"$f":"IF($C$63=\"\",\"\",AJ63/$C$63)","v":""},null,{"$f":"IF($C$63=\"\",\"\",AL63/$C$63)","v":""},null,{"$f":"IF($C$63=\"\",\"\",AN63/$C$63)","v":""},null,{"$f":"IF($C$63=\"\",\"\",AP63/$C$63)","v":""},null,{"$f":"IF($C$63=\"\",\"\",AR63/$C$63)","v":""},null,{"$f":"IF($C$63=\"\",\"\",AT63/$C$63)","v":""},null,{"$f":"IF($C$63=\"\",\"\",AV63/$C$63)","v":""},null,{"$f":"IF($C$63=\"\",\"\",AX63/$C$63)","v":""},null,{"$f":"IF($C$63=\"\",\"\",AZ63/$C$63)","v":""},null,{"$f":"IF($C$63=\"\",\"\",BB63/$C$63)","v":""},null,0]
["    3.2.6","    Quad Map (needed for Archaeological and \n    Historic Architecture packets)",null,null,{"$f":"IF($C$64=\"\",\"\",F64/$C$64)","v":""},null,{"$f":"IF($C$64=\"\",\"\",H64/$C$64)","v":""},null,{"$f":"IF($C$64=\"\",\"\",J64/$C$64)","v":""},null,{"$f":"IF($C$64=\"\",\"\",L64/$C$64)","v":""},null,{"$f":"IF($C$64=\"\",\"\",N64/$C$64)","v":""},null,{"$f":"IF($C$64=\"\",\"\",P64/$C$64)","v":""},null,{"$f":"IF($C$64=\"\",\"\",R64/$C$64)","v":""},null,{"$f":"IF($C$64=\"\",\"\",T64/$C$64)","v":""},null,{"$f":"IF($C$64=\"\",\"\",V64/$C$64)","v":""},null,{"$f":"IF($C$64=\"\",\"\",X64/$C$64)","v":""},null,{"$f":"IF($C$64=\"\",\"\",Z64/$C$64)","v":""},null,{"$f":"IF($C$64=\"\",\"\",AB64/$C$64)","v":""},null,{"$f":"IF($C$64=\"\",\"\",AD64/$C$64)","v":""},null,{"$f":"IF($C$64=\"\",\"\",AF64/$C$64)","v":""},null,{"$f":"IF($C$64=\"\",\"\",AH64/$C$64)","v":""},null,{"$f":"IF($C$64=\"\",\"\",AJ64/$C$64)","v":""},null,{"$f":"IF($C$64=\"\",\"\",AL64/$C$64)","v":""},null,{"$f":"IF($C$64=\"\",\"\",AN64/$C$64)","v":""},null,{"$f":"IF($C$64=\"\",\"\",AP64/$C$64)","v":""},null,{"$f":"IF($C$64=\"\",\"\",AR64/$C$64)","v":""},null,{"$f":"IF($C$64=\"\",\"\",AT64/$C$64)","v":""},null,{"$f":"IF($C$64=\"\",\"\",AV64/$C$64)","v":""},null,{"$f":"IF($C$64=\"\",\"\",AX64/$C$64)","v":""},null,{"$f":"IF($C$64=\"\",\"\",AZ64/$C$64)","v":""},null,{"$f":"IF($C$64=\"\",\"\",BB64/$C$64)","v":""},null,0]
["    3.2.7",null,null,null,{"$f":"IF($C$65=\"\",\"\",F65/$C$65)","v":""},null,{"$f":"IF($C$65=\"\",\"\",H65/$C$65)","v":""},null,{"$f":"IF($C$65=\"\",\"\",J65/$C$65)","v":""},null,{"$f":"IF($C$65=\"\",\"\",L65/$C$65)","v":""},null,{"$f":"IF($C$65=\"\",\"\",N65/$C$65)","v":""},null,{"$f":"IF($C$65=\"\",\"\",P65/$C$65)","v":""},null,{"$f":"IF($C$65=\"\",\"\",R65/$C$65)","v":""},null,{"$f":"IF($C$65=\"\",\"\",T65/$C$65)","v":""},null,{"$f":"IF($C$65=\"\",\"\",V65/$C$65)","v":""},null,{"$f":"IF($C$65=\"\",\"\",X65/$C$65)","v":""},null,{"$f":"IF($C$65=\"\",\"\",Z65/$C$65)","v":""},null,{"$f":"IF($C$65=\"\",\"\",AB65/$C$65)","v":""},null,{"$f":"IF($C$65=\"\",\"\",AD65/$C$65)","v":""},null,{"$f":"IF($C$65=\"\",\"\",AF65/$C$65)","v":""},null,{"$f":"IF($C$65=\"\",\"\",AH65/$C$65)","v":""},null,{"$f":"IF($C$65=\"\",\"\",AJ65/$C$65)","v":""},null,{"$f":"IF($C$65=\"\",\"\",AL65/$C$65)","v":""},null,{"$f":"IF($C$65=\"\",\"\",AN65/$C$65)","v":""},null,{"$f":"IF($C$65=\"\",\"\",AP65/$C$65)","v":""},null,{"$f":"IF($C$65=\"\",\"\",AR65/$C$65)","v":""},null,{"$f":"IF($C$65=\"\",\"\",AT65/$C$65)","v":""},null,{"$f":"IF($C$65=\"\",\"\",AV65/$C$65)","v":""},null,{"$f":"IF($C$65=\"\",\"\",AX65/$C$65)","v":""},null,{"$f":"IF($C$65=\"\",\"\",AZ65/$C$65)","v":""},null,{"$f":"IF($C$65=\"\",\"\",BB65/$C$65)","v":""},null,0]
["    3.2.8",null,null,null,{"$f":"IF($C$66=\"\",\"\",F66/$C$66)","v":""},null,{"$f":"IF($C$66=\"\",\"\",H66/$C$66)","v":""},null,{"$f":"IF($C$66=\"\",\"\",J66/$C$66)","v":""},null,{"$f":"IF($C$66=\"\",\"\",L66/$C$66)","v":""},null,{"$f":"IF($C$66=\"\",\"\",N66/$C$66)","v":""},null,{"$f":"IF($C$66=\"\",\"\",P66/$C$66)","v":""},null,{"$f":"IF($C$66=\"\",\"\",R66/$C$66)","v":""},null,{"$f":"IF($C$66=\"\",\"\",T66/$C$66)","v":""},null,{"$f":"IF($C$66=\"\",\"\",V66/$C$66)","v":""},null,{"$f":"IF($C$66=\"\",\"\",X66/$C$66)","v":""},null,{"$f":"IF($C$66=\"\",\"\",Z66/$C$66)","v":""},null,{"$f":"IF($C$66=\"\",\"\",AB66/$C$66)","v":""},null,{"$f":"IF($C$66=\"\",\"\",AD66/$C$66)","v":""},null,{"$f":"IF($C$66=\"\",\"\",AF66/$C$66)","v":""},null,{"$f":"IF($C$66=\"\",\"\",AH66/$C$66)","v":""},null,{"$f":"IF($C$66=\"\",\"\",AJ66/$C$66)","v":""},null,{"$f":"IF($C$66=\"\",\"\",AL66/$C$66)","v":""},null,{"$f":"IF($C$66=\"\",\"\",AN66/$C$66)","v":""},null,{"$f":"IF($C$66=\"\",\"\",AP66/$C$66)","v":""},null,{"$f":"IF($C$66=\"\",\"\",AR66/$C$66)","v":""},null,{"$f":"IF($C$66=\"\",\"\",AT66/$C$66)","v":""},null,{"$f":"IF($C$66=\"\",\"\",AV66/$C$66)","v":""},null,{"$f":"IF($C$66=\"\",\"\",AX66/$C$66)","v":""},null,{"$f":"IF($C$66=\"\",\"\",AZ66/$C$66)","v":""},null,{"$f":"IF($C$66=\"\",\"\",BB66/$C$66)","v":""},null,0]
["    3.2.9",null,null,null,{"$f":"IF($C$67=\"\",\"\",F67/$C$67)","v":""},null,{"$f":"IF($C$67=\"\",\"\",H67/$C$67)","v":""},null,{"$f":"IF($C$67=\"\",\"\",J67/$C$67)","v":""},null,{"$f":"IF($C$67=\"\",\"\",L67/$C$67)","v":""},null,{"$f":"IF($C$67=\"\",\"\",N67/$C$67)","v":""},null,{"$f":"IF($C$67=\"\",\"\",P67/$C$67)","v":""},null,{"$f":"IF($C$67=\"\",\"\",R67/$C$67)","v":""},null,{"$f":"IF($C$67=\"\",\"\",T67/$C$67)","v":""},null,{"$f":"IF($C$67=\"\",\"\",V67/$C$67)","v":""},null,{"$f":"IF($C$67=\"\",\"\",X67/$C$67)","v":""},null,{"$f":"IF($C$67=\"\",\"\",Z67/$C$67)","v":""},null,{"$f":"IF($C$67=\"\",\"\",AB67/$C$67)","v":""},null,{"$f":"IF($C$67=\"\",\"\",AD67/$C$67)","v":""},null,{"$f":"IF($C$67=\"\",\"\",AF67/$C$67)","v":""},null,{"$f":"IF($C$67=\"\",\"\",AH67/$C$67)","v":""},null,{"$f":"IF($C$67=\"\",\"\",AJ67/$C$67)","v":""},null,{"$f":"IF($C$67=\"\",\"\",AL67/$C$67)","v":""},null,{"$f":"IF($C$67=\"\",\"\",AN67/$C$67)","v":""},null,{"$f":"IF($C$67=\"\",\"\",AP67/$C$67)","v":""},null,{"$f":"IF($C$67=\"\",\"\",AR67/$C$67)","v":""},null,{"$f":"IF($C$67=\"\",\"\",AT67/$C$67)","v":""},null,{"$f":"IF($C$67=\"\",\"\",AV67/$C$67)","v":""},null,{"$f":"IF($C$67=\"\",\"\",AX67/$C$67)","v":""},null,{"$f":"IF($C$67=\"\",\"\",AZ67/$C$67)","v":""},null,{"$f":"IF($C$67=\"\",\"\",BB67/$C$67)","v":""},null,0]
[3.3,"Historic Architecture"]
["    3.3.1","    Attend meetings with Local \n    Commission/NCDOT Historian/SHPO and \n    summarize (assume up to 3 meetings)",null,null,{"$f":"IF($C$69=\"\",\"\",F69/$C$69)","v":""},null,{"$f":"IF($C$69=\"\",\"\",H69/$C$69)","v":""},null,{"$f":"IF($C$69=\"\",\"\",J69/$C$69)","v":""},null,{"$f":"IF($C$69=\"\",\"\",L69/$C$69)","v":""},null,{"$f":"IF($C$69=\"\",\"\",N69/$C$69)","v":""},null,{"$f":"IF($C$69=\"\",\"\",P69/$C$69)","v":""},null,{"$f":"IF($C$69=\"\",\"\",R69/$C$69)","v":""},null,{"$f":"IF($C$69=\"\",\"\",T69/$C$69)","v":""},null,{"$f":"IF($C$69=\"\",\"\",V69/$C$69)","v":""},null,{"$f":"IF($C$69=\"\",\"\",X69/$C$69)","v":""},null,{"$f":"IF($C$69=\"\",\"\",Z69/$C$69)","v":""},null,{"$f":"IF($C$69=\"\",\"\",AB69/$C$69)","v":""},null,{"$f":"IF($C$69=\"\",\"\",AD69/$C$69)","v":""},null,{"$f":"IF($C$69=\"\",\"\",AF69/$C$69)","v":""},null,{"$f":"IF($C$69=\"\",\"\",AH69/$C$69)","v":""},null,{"$f":"IF($C$69=\"\",\"\",AJ69/$C$69)","v":""},null,{"$f":"IF($C$69=\"\",\"\",AL69/$C$69)","v":""},null,{"$f":"IF($C$69=\"\",\"\",AN69/$C$69)","v":""},null,{"$f":"IF($C$69=\"\",\"\",AP69/$C$69)","v":""},null,{"$f":"IF($C$69=\"\",\"\",AR69/$C$69)","v":""},null,{"$f":"IF($C$69=\"\",\"\",AT69/$C$69)","v":""},null,{"$f":"IF($C$69=\"\",\"\",AV69/$C$69)","v":""},null,{"$f":"IF($C$69=\"\",\"\",AX69/$C$69)","v":""},null,{"$f":"IF($C$69=\"\",\"\",AZ69/$C$69)","v":""},null,{"$f":"IF($C$69=\"\",\"\",BB69/$C$69)","v":""},null,{"$f":"SUM(BB69,AZ69,AX69,AV69,AT69,AR69,AP69,AN69,AL69,AJ69,AH69,AF69,AD69,AB69,Z69,X69,V69,T69,R69,P69,N69,L69,J69,H69,F69)","v":0}]
["    3.3.2","     PA Request Packet (Vicinity Map, PSA Map, \n    Quad Sheet, PA Cultural Resources Screening \n    Checklist)",null,null,{"$f":"IF($C$70=\"\",\"\",F70/$C$70)","v":""},null,{"$f":"IF($C$70=\"\",\"\",H70/$C$70)","v":""},null,{"$f":"IF($C$70=\"\",\"\",J70/$C$70)","v":""},null,{"$f":"IF($C$70=\"\",\"\",L70/$C$70)","v":""},null,{"$f":"IF($C$70=\"\",\"\",N70/$C$70)","v":""},null,{"$f":"IF($C$70=\"\",\"\",P70/$C$70)","v":""},null,{"$f":"IF($C$70=\"\",\"\",R70/$C$70)","v":""},null,{"$f":"IF($C$70=\"\",\"\",T70/$C$70)","v":""},null,{"$f":"IF($C$70=\"\",\"\",V70/$C$70)","v":""},null,{"$f":"IF($C$70=\"\",\"\",X70/$C$70)","v":""},null,{"$f":"IF($C$70=\"\",\"\",Z70/$C$70)","v":""},null,{"$f":"IF($C$70=\"\",\"\",AB70/$C$70)","v":""},null,{"$f":"IF($C$70=\"\",\"\",AD70/$C$70)","v":""},null,{"$f":"IF($C$70=\"\",\"\",AF70/$C$70)","v":""},null,{"$f":"IF($C$70=\"\",\"\",AH70/$C$70)","v":""},null,{"$f":"IF($C$70=\"\",\"\",AJ70/$C$70)","v":""},null,{"$f":"IF($C$70=\"\",\"\",AL70/$C$70)","v":""},null,{"$f":"IF($C$70=\"\",\"\",AN70/$C$70)","v":""},null,{"$f":"IF($C$70=\"\",\"\",AP70/$C$70)","v":""},null,{"$f":"IF($C$70=\"\",\"\",AR70/$C$70)","v":""},null,{"$f":"IF($C$70=\"\",\"\",AT70/$C$70)","v":""},null,{"$f":"IF($C$70=\"\",\"\",AV70/$C$70)","v":""},null,{"$f":"IF($C$70=\"\",\"\",AX70/$C$70)","v":""},null,{"$f":"IF($C$70=\"\",\"\",AZ70/$C$70)","v":""},null,{"$f":"IF($C$70=\"\",\"\",BB70/$C$70)","v":""},null,0]
["    3.3.3","    NCDOT Review of PA Request Packet/Address \n    comments/Submit to \"PA Tracker\"",null,null,{"$f":"IF($C$71=\"\",\"\",F71/$C$71)","v":""},null,{"$f":"IF($C$71=\"\",\"\",H71/$C$71)","v":""},null,{"$f":"IF($C$71=\"\",\"\",J71/$C$71)","v":""},null,{"$f":"IF($C$71=\"\",\"\",L71/$C$71)","v":""},null,{"$f":"IF($C$71=\"\",\"\",N71/$C$71)","v":""},null,{"$f":"IF($C$71=\"\",\"\",P71/$C$71)","v":""},null,{"$f":"IF($C$71=\"\",\"\",R71/$C$71)","v":""},null,{"$f":"IF($C$71=\"\",\"\",T71/$C$71)","v":""},null,{"$f":"IF($C$71=\"\",\"\",V71/$C$71)","v":""},null,{"$f":"IF($C$71=\"\",\"\",X71/$C$71)","v":""},null,{"$f":"IF($C$71=\"\",\"\",Z71/$C$71)","v":""},null,{"$f":"IF($C$71=\"\",\"\",AB71/$C$71)","v":""},null,{"$f":"IF($C$71=\"\",\"\",AD71/$C$71)","v":""},null,{"$f":"IF($C$71=\"\",\"\",AF71/$C$71)","v":""},null,{"$f":"IF($C$71=\"\",\"\",AH71/$C$71)","v":""},null,{"$f":"IF($C$71=\"\",\"\",AJ71/$C$71)","v":""},null,{"$f":"IF($C$71=\"\",\"\",AL71/$C$71)","v":""},null,{"$f":"IF($C$71=\"\",\"\",AN71/$C$71)","v":""},null,{"$f":"IF($C$71=\"\",\"\",AP71/$C$71)","v":""},null,{"$f":"IF($C$71=\"\",\"\",AR71/$C$71)","v":""},null,{"$f":"IF($C$71=\"\",\"\",AT71/$C$71)","v":""},null,{"$f":"IF($C$71=\"\",\"\",AV71/$C$71)","v":""},null,{"$f":"IF($C$71=\"\",\"\",AX71/$C$71)","v":""},null,{"$f":"IF($C$71=\"\",\"\",AZ71/$C$71)","v":""},null,{"$f":"IF($C$71=\"\",\"\",BB71/$C$71)","v":""},null,0]
["    3.3.4","    Coordination/Tabular Summaries of Signal \n    System Work Task",null,null,{"$f":"IF($C$72=\"\",\"\",F72/$C$72)","v":""},null,{"$f":"IF($C$72=\"\",\"\",H72/$C$72)","v":""},null,{"$f":"IF($C$72=\"\",\"\",J72/$C$72)","v":""},null,{"$f":"IF($C$72=\"\",\"\",L72/$C$72)","v":""},null,{"$f":"IF($C$72=\"\",\"\",N72/$C$72)","v":""},null,{"$f":"IF($C$72=\"\",\"\",P72/$C$72)","v":""},null,{"$f":"IF($C$72=\"\",\"\",R72/$C$72)","v":""},null,{"$f":"IF($C$72=\"\",\"\",T72/$C$72)","v":""},null,{"$f":"IF($C$72=\"\",\"\",V72/$C$72)","v":""},null,{"$f":"IF($C$72=\"\",\"\",X72/$C$72)","v":""},null,{"$f":"IF($C$72=\"\",\"\",Z72/$C$72)","v":""},null,{"$f":"IF($C$72=\"\",\"\",AB72/$C$72)","v":""},null,{"$f":"IF($C$72=\"\",\"\",AD72/$C$72)","v":""},null,{"$f":"IF($C$72=\"\",\"\",AF72/$C$72)","v":""},null,{"$f":"IF($C$72=\"\",\"\",AH72/$C$72)","v":""},null,{"$f":"IF($C$72=\"\",\"\",AJ72/$C$72)","v":""},null,{"$f":"IF($C$72=\"\",\"\",AL72/$C$72)","v":""},null,{"$f":"IF($C$72=\"\",\"\",AN72/$C$72)","v":""},null,{"$f":"IF($C$72=\"\",\"\",AP72/$C$72)","v":""},null,{"$f":"IF($C$72=\"\",\"\",AR72/$C$72)","v":""},null,{"$f":"IF($C$72=\"\",\"\",AT72/$C$72)","v":""},null,{"$f":"IF($C$72=\"\",\"\",AV72/$C$72)","v":""},null,{"$f":"IF($C$72=\"\",\"\",AX72/$C$72)","v":""},null,{"$f":"IF($C$72=\"\",\"\",AZ72/$C$72)","v":""},null,{"$f":"IF($C$72=\"\",\"\",BB72/$C$72)","v":""},null,0]
["    3.3.5",null,null,null,{"$f":"IF($C$73=\"\",\"\",F73/$C$73)","v":""},null,{"$f":"IF($C$73=\"\",\"\",H73/$C$73)","v":""},null,{"$f":"IF($C$73=\"\",\"\",J73/$C$73)","v":""},null,{"$f":"IF($C$73=\"\",\"\",L73/$C$73)","v":""},null,{"$f":"IF($C$73=\"\",\"\",N73/$C$73)","v":""},null,{"$f":"IF($C$73=\"\",\"\",P73/$C$73)","v":""},null,{"$f":"IF($C$73=\"\",\"\",R73/$C$73)","v":""},null,{"$f":"IF($C$73=\"\",\"\",T73/$C$73)","v":""},null,{"$f":"IF($C$73=\"\",\"\",V73/$C$73)","v":""},null,{"$f":"IF($C$73=\"\",\"\",X73/$C$73)","v":""},null,{"$f":"IF($C$73=\"\",\"\",Z73/$C$73)","v":""},null,{"$f":"IF($C$73=\"\",\"\",AB73/$C$73)","v":""},null,{"$f":"IF($C$73=\"\",\"\",AD73/$C$73)","v":""},null,{"$f":"IF($C$73=\"\",\"\",AF73/$C$73)","v":""},null,{"$f":"IF($C$73=\"\",\"\",AH73/$C$73)","v":""},null,{"$f":"IF($C$73=\"\",\"\",AJ73/$C$73)","v":""},null,{"$f":"IF($C$73=\"\",\"\",AL73/$C$73)","v":""},null,{"$f":"IF($C$73=\"\",\"\",AN73/$C$73)","v":""},null,{"$f":"IF($C$73=\"\",\"\",AP73/$C$73)","v":""},null,{"$f":"IF($C$73=\"\",\"\",AR73/$C$73)","v":""},null,{"$f":"IF($C$73=\"\",\"\",AT73/$C$73)","v":""},null,{"$f":"IF($C$73=\"\",\"\",AV73/$C$73)","v":""},null,{"$f":"IF($C$73=\"\",\"\",AX73/$C$73)","v":""},null,{"$f":"IF($C$73=\"\",\"\",AZ73/$C$73)","v":""},null,{"$f":"IF($C$73=\"\",\"\",BB73/$C$73)","v":""},null,0]
["    3.3.6",null,null,null,{"$f":"IF($C$74=\"\",\"\",F74/$C$74)","v":""},null,{"$f":"IF($C$74=\"\",\"\",H74/$C$74)","v":""},null,{"$f":"IF($C$74=\"\",\"\",J74/$C$74)","v":""},null,{"$f":"IF($C$74=\"\",\"\",L74/$C$74)","v":""},null,{"$f":"IF($C$74=\"\",\"\",N74/$C$74)","v":""},null,{"$f":"IF($C$74=\"\",\"\",P74/$C$74)","v":""},null,{"$f":"IF($C$74=\"\",\"\",R74/$C$74)","v":""},null,{"$f":"IF($C$74=\"\",\"\",T74/$C$74)","v":""},null,{"$f":"IF($C$74=\"\",\"\",V74/$C$74)","v":""},null,{"$f":"IF($C$74=\"\",\"\",X74/$C$74)","v":""},null,{"$f":"IF($C$74=\"\",\"\",Z74/$C$74)","v":""},null,{"$f":"IF($C$74=\"\",\"\",AB74/$C$74)","v":""},null,{"$f":"IF($C$74=\"\",\"\",AD74/$C$74)","v":""},null,{"$f":"IF($C$74=\"\",\"\",AF74/$C$74)","v":""},null,{"$f":"IF($C$74=\"\",\"\",AH74/$C$74)","v":""},null,{"$f":"IF($C$74=\"\",\"\",AJ74/$C$74)","v":""},null,{"$f":"IF($C$74=\"\",\"\",AL74/$C$74)","v":""},null,{"$f":"IF($C$74=\"\",\"\",AN74/$C$74)","v":""},null,{"$f":"IF($C$74=\"\",\"\",AP74/$C$74)","v":""},null,{"$f":"IF($C$74=\"\",\"\",AR74/$C$74)","v":""},null,{"$f":"IF($C$74=\"\",\"\",AT74/$C$74)","v":""},null,{"$f":"IF($C$74=\"\",\"\",AV74/$C$74)","v":""},null,{"$f":"IF($C$74=\"\",\"\",AX74/$C$74)","v":""},null,{"$f":"IF($C$74=\"\",\"\",AZ74/$C$74)","v":""},null,{"$f":"IF($C$74=\"\",\"\",BB74/$C$74)","v":""},null,0]
["    3.3.7",null,null,null,{"$f":"IF($C$75=\"\",\"\",F75/$C$75)","v":""},null,{"$f":"IF($C$75=\"\",\"\",H75/$C$75)","v":""},null,{"$f":"IF($C$75=\"\",\"\",J75/$C$75)","v":""},null,{"$f":"IF($C$75=\"\",\"\",L75/$C$75)","v":""},null,{"$f":"IF($C$75=\"\",\"\",N75/$C$75)","v":""},null,{"$f":"IF($C$75=\"\",\"\",P75/$C$75)","v":""},null,{"$f":"IF($C$75=\"\",\"\",R75/$C$75)","v":""},null,{"$f":"IF($C$75=\"\",\"\",T75/$C$75)","v":""},null,{"$f":"IF($C$75=\"\",\"\",V75/$C$75)","v":""},null,{"$f":"IF($C$75=\"\",\"\",X75/$C$75)","v":""},null,{"$f":"IF($C$75=\"\",\"\",Z75/$C$75)","v":""},null,{"$f":"IF($C$75=\"\",\"\",AB75/$C$75)","v":""},null,{"$f":"IF($C$75=\"\",\"\",AD75/$C$75)","v":""},null,{"$f":"IF($C$75=\"\",\"\",AF75/$C$75)","v":""},null,{"$f":"IF($C$75=\"\",\"\",AH75/$C$75)","v":""},null,{"$f":"IF($C$75=\"\",\"\",AJ75/$C$75)","v":""},null,{"$f":"IF($C$75=\"\",\"\",AL75/$C$75)","v":""},null,{"$f":"IF($C$75=\"\",\"\",AN75/$C$75)","v":""},null,{"$f":"IF($C$75=\"\",\"\",AP75/$C$75)","v":""},null,{"$f":"IF($C$75=\"\",\"\",AR75/$C$75)","v":""},null,{"$f":"IF($C$75=\"\",\"\",AT75/$C$75)","v":""},null,{"$f":"IF($C$75=\"\",\"\",AV75/$C$75)","v":""},null,{"$f":"IF($C$75=\"\",\"\",AX75/$C$75)","v":""},null,{"$f":"IF($C$75=\"\",\"\",AZ75/$C$75)","v":""},null,{"$f":"IF($C$75=\"\",\"\",BB75/$C$75)","v":""},null,0]
[3.4,"Noise Impacts / Air Quality",null,null,{"$f":"IF($C$76=\"\",\"\",F76/$C$76)","v":""},null,{"$f":"IF($C$76=\"\",\"\",H76/$C$76)","v":""},null,{"$f":"IF($C$76=\"\",\"\",J76/$C$76)","v":""},null,{"$f":"IF($C$76=\"\",\"\",L76/$C$76)","v":""},null,{"$f":"IF($C$76=\"\",\"\",N76/$C$76)","v":""},null,{"$f":"IF($C$76=\"\",\"\",P76/$C$76)","v":""},null,{"$f":"IF($C$76=\"\",\"\",R76/$C$76)","v":""},null,{"$f":"IF($C$76=\"\",\"\",T76/$C$76)","v":""},null,{"$f":"IF($C$76=\"\",\"\",V76/$C$76)","v":""},null,{"$f":"IF($C$76=\"\",\"\",X76/$C$76)","v":""},null,{"$f":"IF($C$76=\"\",\"\",Z76/$C$76)","v":""},null,{"$f":"IF($C$76=\"\",\"\",AB76/$C$76)","v":""},null,{"$f":"IF($C$76=\"\",\"\",AD76/$C$76)","v":""},null,{"$f":"IF($C$76=\"\",\"\",AF76/$C$76)","v":""},null,{"$f":"IF($C$76=\"\",\"\",AH76/$C$76)","v":""},null,{"$f":"IF($C$76=\"\",\"\",AJ76/$C$76)","v":""},null,{"$f":"IF($C$76=\"\",\"\",AL76/$C$76)","v":""},null,{"$f":"IF($C$76=\"\",\"\",AN76/$C$76)","v":""},null,{"$f":"IF($C$76=\"\",\"\",AP76/$C$76)","v":""},null,{"$f":"IF($C$76=\"\",\"\",AR76/$C$76)","v":""},null,{"$f":"IF($C$76=\"\",\"\",AT76/$C$76)","v":""},null,{"$f":"IF($C$76=\"\",\"\",AV76/$C$76)","v":""},null,{"$f":"IF($C$76=\"\",\"\",AX76/$C$76)","v":""},null,{"$f":"IF($C$76=\"\",\"\",AZ76/$C$76)","v":""},null,{"$f":"IF($C$76=\"\",\"\",BB76/$C$76)","v":""},null,0]
[3.5,"Community Studies"]
["    3.5.1","    Obtain GIS Data Sets (minority, low income, \n    LEP)/create census demographic tables",null,null,{"$f":"IF($C$78=\"\",\"\",F78/$C$78)","v":""},null,{"$f":"IF($C$78=\"\",\"\",H78/$C$78)","v":""},null,{"$f":"IF($C$78=\"\",\"\",J78/$C$78)","v":""},null,{"$f":"IF($C$78=\"\",\"\",L78/$C$78)","v":""},null,{"$f":"IF($C$78=\"\",\"\",N78/$C$78)","v":""},null,{"$f":"IF($C$78=\"\",\"\",P78/$C$78)","v":""},null,{"$f":"IF($C$78=\"\",\"\",R78/$C$78)","v":""},null,{"$f":"IF($C$78=\"\",\"\",T78/$C$78)","v":""},null,{"$f":"IF($C$78=\"\",\"\",V78/$C$78)","v":""},null,{"$f":"IF($C$78=\"\",\"\",X78/$C$78)","v":""},null,{"$f":"IF($C$78=\"\",\"\",Z78/$C$78)","v":""},null,{"$f":"IF($C$78=\"\",\"\",AB78/$C$78)","v":""},null,{"$f":"IF($C$78=\"\",\"\",AD78/$C$78)","v":""},null,{"$f":"IF($C$78=\"\",\"\",AF78/$C$78)","v":""},null,{"$f":"IF($C$78=\"\",\"\",AH78/$C$78)","v":""},null,{"$f":"IF($C$78=\"\",\"\",AJ78/$C$78)","v":""},null,{"$f":"IF($C$78=\"\",\"\",AL78/$C$78)","v":""},null,{"$f":"IF($C$78=\"\",\"\",AN78/$C$78)","v":""},null,{"$f":"IF($C$78=\"\",\"\",AP78/$C$78)","v":""},null,{"$f":"IF($C$78=\"\",\"\",AR78/$C$78)","v":""},null,{"$f":"IF($C$78=\"\",\"\",AT78/$C$78)","v":""},null,{"$f":"IF($C$78=\"\",\"\",AV78/$C$78)","v":""},null,{"$f":"IF($C$78=\"\",\"\",AX78/$C$78)","v":""},null,{"$f":"IF($C$78=\"\",\"\",AZ78/$C$78)","v":""},null,{"$f":"IF($C$78=\"\",\"\",BB78/$C$78)","v":""},null,{"$f":"SUM(BB78,AZ78,AX78,AV78,AT78,AR78,AP78,AN78,AL78,AJ78,AH78,AF78,AD78,AB78,Z78,X78,V78,T78,R78,P78,N78,L78,J78,H78,F78)","v":0}]
["    3.5.2","    Q/C tables",null,null,{"$f":"IF($C$79=\"\",\"\",F79/$C$79)","v":""},null,{"$f":"IF($C$79=\"\",\"\",H79/$C$79)","v":""},null,{"$f":"IF($C$79=\"\",\"\",J79/$C$79)","v":""},null,{"$f":"IF($C$79=\"\",\"\",L79/$C$79)","v":""},null,{"$f":"IF($C$79=\"\",\"\",N79/$C$79)","v":""},null,{"$f":"IF($C$79=\"\",\"\",P79/$C$79)","v":""},null,{"$f":"IF($C$79=\"\",\"\",R79/$C$79)","v":""},null,{"$f":"IF($C$79=\"\",\"\",T79/$C$79)","v":""},null,{"$f":"IF($C$79=\"\",\"\",V79/$C$79)","v":""},null,{"$f":"IF($C$79=\"\",\"\",X79/$C$79)","v":""},null,{"$f":"IF($C$79=\"\",\"\",Z79/$C$79)","v":""},null,{"$f":"IF($C$79=\"\",\"\",AB79/$C$79)","v":""},null,{"$f":"IF($C$79=\"\",\"\",AD79/$C$79)","v":""},null,{"$f":"IF($C$79=\"\",\"\",AF79/$C$79)","v":""},null,{"$f":"IF($C$79=\"\",\"\",AH79/$C$79)","v":""},null,{"$f":"IF($C$79=\"\",\"\",AJ79/$C$79)","v":""},null,{"$f":"IF($C$79=\"\",\"\",AL79/$C$79)","v":""},null,{"$f":"IF($C$79=\"\",\"\",AN79/$C$79)","v":""},null,{"$f":"IF($C$79=\"\",\"\",AP79/$C$79)","v":""},null,{"$f":"IF($C$79=\"\",\"\",AR79/$C$79)","v":""},null,{"$f":"IF($C$79=\"\",\"\",AT79/$C$79)","v":""},null,{"$f":"IF($C$79=\"\",\"\",AV79/$C$79)","v":""},null,{"$f":"IF($C$79=\"\",\"\",AX79/$C$79)","v":""},null,{"$f":"IF($C$79=\"\",\"\",AZ79/$C$79)","v":""},null,{"$f":"IF($C$79=\"\",\"\",BB79/$C$79)","v":""},null,0]
["    3.5.3","    Develop mapping of DSA",null,null,{"$f":"IF($C$80=\"\",\"\",F80/$C$80)","v":""},null,{"$f":"IF($C$80=\"\",\"\",H80/$C$80)","v":""},null,{"$f":"IF($C$80=\"\",\"\",J80/$C$80)","v":""},null,{"$f":"IF($C$80=\"\",\"\",L80/$C$80)","v":""},null,{"$f":"IF($C$80=\"\",\"\",N80/$C$80)","v":""},null,{"$f":"IF($C$80=\"\",\"\",P80/$C$80)","v":""},null,{"$f":"IF($C$80=\"\",\"\",R80/$C$80)","v":""},null,{"$f":"IF($C$80=\"\",\"\",T80/$C$80)","v":""},null,{"$f":"IF($C$80=\"\",\"\",V80/$C$80)","v":""},null,{"$f":"IF($C$80=\"\",\"\",X80/$C$80)","v":""},null,{"$f":"IF($C$80=\"\",\"\",Z80/$C$80)","v":""},null,{"$f":"IF($C$80=\"\",\"\",AB80/$C$80)","v":""},null,{"$f":"IF($C$80=\"\",\"\",AD80/$C$80)","v":""},null,{"$f":"IF($C$80=\"\",\"\",AF80/$C$80)","v":""},null,{"$f":"IF($C$80=\"\",\"\",AH80/$C$80)","v":""},null,{"$f":"IF($C$80=\"\",\"\",AJ80/$C$80)","v":""},null,{"$f":"IF($C$80=\"\",\"\",AL80/$C$80)","v":""},null,{"$f":"IF($C$80=\"\",\"\",AN80/$C$80)","v":""},null,{"$f":"IF($C$80=\"\",\"\",AP80/$C$80)","v":""},null,{"$f":"IF($C$80=\"\",\"\",AR80/$C$80)","v":""},null,{"$f":"IF($C$80=\"\",\"\",AT80/$C$80)","v":""},null,{"$f":"IF($C$80=\"\",\"\",AV80/$C$80)","v":""},null,{"$f":"IF($C$80=\"\",\"\",AX80/$C$80)","v":""},null,{"$f":"IF($C$80=\"\",\"\",AZ80/$C$80)","v":""},null,{"$f":"IF($C$80=\"\",\"\",BB80/$C$80)","v":""},null,0]
["    3.5.4","    Assess potential for community impacts",null,null,{"$f":"IF($C$81=\"\",\"\",F81/$C$81)","v":""},null,{"$f":"IF($C$81=\"\",\"\",H81/$C$81)","v":""},null,{"$f":"IF($C$81=\"\",\"\",J81/$C$81)","v":""},null,{"$f":"IF($C$81=\"\",\"\",L81/$C$81)","v":""},null,{"$f":"IF($C$81=\"\",\"\",N81/$C$81)","v":""},null,{"$f":"IF($C$81=\"\",\"\",P81/$C$81)","v":""},null,{"$f":"IF($C$81=\"\",\"\",R81/$C$81)","v":""},null,{"$f":"IF($C$81=\"\",\"\",T81/$C$81)","v":""},null,{"$f":"IF($C$81=\"\",\"\",V81/$C$81)","v":""},null,{"$f":"IF($C$81=\"\",\"\",X81/$C$81)","v":""},null,{"$f":"IF($C$81=\"\",\"\",Z81/$C$81)","v":""},null,{"$f":"IF($C$81=\"\",\"\",AB81/$C$81)","v":""},null,{"$f":"IF($C$81=\"\",\"\",AD81/$C$81)","v":""},null,{"$f":"IF($C$81=\"\",\"\",AF81/$C$81)","v":""},null,{"$f":"IF($C$81=\"\",\"\",AH81/$C$81)","v":""},null,{"$f":"IF($C$81=\"\",\"\",AJ81/$C$81)","v":""},null,{"$f":"IF($C$81=\"\",\"\",AL81/$C$81)","v":""},null,{"$f":"IF($C$81=\"\",\"\",AN81/$C$81)","v":""},null,{"$f":"IF($C$81=\"\",\"\",AP81/$C$81)","v":""},null,{"$f":"IF($C$81=\"\",\"\",AR81/$C$81)","v":""},null,{"$f":"IF($C$81=\"\",\"\",AT81/$C$81)","v":""},null,{"$f":"IF($C$81=\"\",\"\",AV81/$C$81)","v":""},null,{"$f":"IF($C$81=\"\",\"\",AX81/$C$81)","v":""},null,{"$f":"IF($C$81=\"\",\"\",AZ81/$C$81)","v":""},null,{"$f":"IF($C$81=\"\",\"\",BB81/$C$81)","v":""},null,0]
["    3.5.5","    Document findings in memo/Submit to     \n    NCDOT/Address Comments/Finalize",null,null,{"$f":"IF($C$82=\"\",\"\",F82/$C$82)","v":""},null,{"$f":"IF($C$82=\"\",\"\",H82/$C$82)","v":""},null,{"$f":"IF($C$82=\"\",\"\",J82/$C$82)","v":""},null,{"$f":"IF($C$82=\"\",\"\",L82/$C$82)","v":""},null,{"$f":"IF($C$82=\"\",\"\",N82/$C$82)","v":""},null,{"$f":"IF($C$82=\"\",\"\",P82/$C$82)","v":""},null,{"$f":"IF($C$82=\"\",\"\",R82/$C$82)","v":""},null,{"$f":"IF($C$82=\"\",\"\",T82/$C$82)","v":""},null,{"$f":"IF($C$82=\"\",\"\",V82/$C$82)","v":""},null,{"$f":"IF($C$82=\"\",\"\",X82/$C$82)","v":""},null,{"$f":"IF($C$82=\"\",\"\",Z82/$C$82)","v":""},null,{"$f":"IF($C$82=\"\",\"\",AB82/$C$82)","v":""},null,{"$f":"IF($C$82=\"\",\"\",AD82/$C$82)","v":""},null,{"$f":"IF($C$82=\"\",\"\",AF82/$C$82)","v":""},null,{"$f":"IF($C$82=\"\",\"\",AH82/$C$82)","v":""},null,{"$f":"IF($C$82=\"\",\"\",AJ82/$C$82)","v":""},null,{"$f":"IF($C$82=\"\",\"\",AL82/$C$82)","v":""},null,{"$f":"IF($C$82=\"\",\"\",AN82/$C$82)","v":""},null,{"$f":"IF($C$82=\"\",\"\",AP82/$C$82)","v":""},null,{"$f":"IF($C$82=\"\",\"\",AR82/$C$82)","v":""},null,{"$f":"IF($C$82=\"\",\"\",AT82/$C$82)","v":""},null,{"$f":"IF($C$82=\"\",\"\",AV82/$C$82)","v":""},null,{"$f":"IF($C$82=\"\",\"\",AX82/$C$82)","v":""},null,{"$f":"IF($C$82=\"\",\"\",AZ82/$C$82)","v":""},null,{"$f":"IF($C$82=\"\",\"\",BB82/$C$82)","v":""},null,0]
["    3.5.6","    Review project/environmental mapping for \n    Section 4(f)/6(f) properties",null,null,{"$f":"IF($C$83=\"\",\"\",F83/$C$83)","v":""},null,{"$f":"IF($C$83=\"\",\"\",H83/$C$83)","v":""},null,{"$f":"IF($C$83=\"\",\"\",J83/$C$83)","v":""},null,{"$f":"IF($C$83=\"\",\"\",L83/$C$83)","v":""},null,{"$f":"IF($C$83=\"\",\"\",N83/$C$83)","v":""},null,{"$f":"IF($C$83=\"\",\"\",P83/$C$83)","v":""},null,{"$f":"IF($C$83=\"\",\"\",R83/$C$83)","v":""},null,{"$f":"IF($C$83=\"\",\"\",T83/$C$83)","v":""},null,{"$f":"IF($C$83=\"\",\"\",V83/$C$83)","v":""},null,{"$f":"IF($C$83=\"\",\"\",X83/$C$83)","v":""},null,{"$f":"IF($C$83=\"\",\"\",Z83/$C$83)","v":""},null,{"$f":"IF($C$83=\"\",\"\",AB83/$C$83)","v":""},null,{"$f":"IF($C$83=\"\",\"\",AD83/$C$83)","v":""},null,{"$f":"IF($C$83=\"\",\"\",AF83/$C$83)","v":""},null,{"$f":"IF($C$83=\"\",\"\",AH83/$C$83)","v":""},null,{"$f":"IF($C$83=\"\",\"\",AJ83/$C$83)","v":""},null,{"$f":"IF($C$83=\"\",\"\",AL83/$C$83)","v":""},null,{"$f":"IF($C$83=\"\",\"\",AN83/$C$83)","v":""},null,{"$f":"IF($C$83=\"\",\"\",AP83/$C$83)","v":""},null,{"$f":"IF($C$83=\"\",\"\",AR83/$C$83)","v":""},null,{"$f":"IF($C$83=\"\",\"\",AT83/$C$83)","v":""},null,{"$f":"IF($C$83=\"\",\"\",AV83/$C$83)","v":""},null,{"$f":"IF($C$83=\"\",\"\",AX83/$C$83)","v":""},null,{"$f":"IF($C$83=\"\",\"\",AZ83/$C$83)","v":""},null,{"$f":"IF($C$83=\"\",\"\",BB83/$C$83)","v":""},null,0]
["    3.5.7","    Hold meetings with County Parks and \n    Recreation and summarize ",null,null,{"$f":"IF($C$84=\"\",\"\",F84/$C$84)","v":""},null,{"$f":"IF($C$84=\"\",\"\",H84/$C$84)","v":""},null,{"$f":"IF($C$84=\"\",\"\",J84/$C$84)","v":""},null,{"$f":"IF($C$84=\"\",\"\",L84/$C$84)","v":""},null,{"$f":"IF($C$84=\"\",\"\",N84/$C$84)","v":""},null,{"$f":"IF($C$84=\"\",\"\",P84/$C$84)","v":""},null,{"$f":"IF($C$84=\"\",\"\",R84/$C$84)","v":""},null,{"$f":"IF($C$84=\"\",\"\",T84/$C$84)","v":""},null,{"$f":"IF($C$84=\"\",\"\",V84/$C$84)","v":""},null,{"$f":"IF($C$84=\"\",\"\",X84/$C$84)","v":""},null,{"$f":"IF($C$84=\"\",\"\",Z84/$C$84)","v":""},null,{"$f":"IF($C$84=\"\",\"\",AB84/$C$84)","v":""},null,{"$f":"IF($C$84=\"\",\"\",AD84/$C$84)","v":""},null,{"$f":"IF($C$84=\"\",\"\",AF84/$C$84)","v":""},null,{"$f":"IF($C$84=\"\",\"\",AH84/$C$84)","v":""},null,{"$f":"IF($C$84=\"\",\"\",AJ84/$C$84)","v":""},null,{"$f":"IF($C$84=\"\",\"\",AL84/$C$84)","v":""},null,{"$f":"IF($C$84=\"\",\"\",AN84/$C$84)","v":""},null,{"$f":"IF($C$84=\"\",\"\",AP84/$C$84)","v":""},null,{"$f":"IF($C$84=\"\",\"\",AR84/$C$84)","v":""},null,{"$f":"IF($C$84=\"\",\"\",AT84/$C$84)","v":""},null,{"$f":"IF($C$84=\"\",\"\",AV84/$C$84)","v":""},null,{"$f":"IF($C$84=\"\",\"\",AX84/$C$84)","v":""},null,{"$f":"IF($C$84=\"\",\"\",AZ84/$C$84)","v":""},null,{"$f":"IF($C$84=\"\",\"\",BB84/$C$84)","v":""},null,0]
["    3.5.8",null,null,null,{"$f":"IF($C$85=\"\",\"\",F85/$C$85)","v":""},null,{"$f":"IF($C$85=\"\",\"\",H85/$C$85)","v":""},null,{"$f":"IF($C$85=\"\",\"\",J85/$C$85)","v":""},null,{"$f":"IF($C$85=\"\",\"\",L85/$C$85)","v":""},null,{"$f":"IF($C$85=\"\",\"\",N85/$C$85)","v":""},null,{"$f":"IF($C$85=\"\",\"\",P85/$C$85)","v":""},null,{"$f":"IF($C$85=\"\",\"\",R85/$C$85)","v":""},null,{"$f":"IF($C$85=\"\",\"\",T85/$C$85)","v":""},null,{"$f":"IF($C$85=\"\",\"\",V85/$C$85)","v":""},null,{"$f":"IF($C$85=\"\",\"\",X85/$C$85)","v":""},null,{"$f":"IF($C$85=\"\",\"\",Z85/$C$85)","v":""},null,{"$f":"IF($C$85=\"\",\"\",AB85/$C$85)","v":""},null,{"$f":"IF($C$85=\"\",\"\",AD85/$C$85)","v":""},null,{"$f":"IF($C$85=\"\",\"\",AF85/$C$85)","v":""},null,{"$f":"IF($C$85=\"\",\"\",AH85/$C$85)","v":""},null,{"$f":"IF($C$85=\"\",\"\",AJ85/$C$85)","v":""},null,{"$f":"IF($C$85=\"\",\"\",AL85/$C$85)","v":""},null,{"$f":"IF($C$85=\"\",\"\",AN85/$C$85)","v":""},null,{"$f":"IF($C$85=\"\",\"\",AP85/$C$85)","v":""},null,{"$f":"IF($C$85=\"\",\"\",AR85/$C$85)","v":""},null,{"$f":"IF($C$85=\"\",\"\",AT85/$C$85)","v":""},null,{"$f":"IF($C$85=\"\",\"\",AV85/$C$85)","v":""},null,{"$f":"IF($C$85=\"\",\"\",AX85/$C$85)","v":""},null,{"$f":"IF($C$85=\"\",\"\",AZ85/$C$85)","v":""},null,{"$f":"IF($C$85=\"\",\"\",BB85/$C$85)","v":""},null,0]
["    3.5.9",null,null,null,{"$f":"IF($C$86=\"\",\"\",F86/$C$86)","v":""},null,{"$f":"IF($C$86=\"\",\"\",H86/$C$86)","v":""},null,{"$f":"IF($C$86=\"\",\"\",J86/$C$86)","v":""},null,{"$f":"IF($C$86=\"\",\"\",L86/$C$86)","v":""},null,{"$f":"IF($C$86=\"\",\"\",N86/$C$86)","v":""},null,{"$f":"IF($C$86=\"\",\"\",P86/$C$86)","v":""},null,{"$f":"IF($C$86=\"\",\"\",R86/$C$86)","v":""},null,{"$f":"IF($C$86=\"\",\"\",T86/$C$86)","v":""},null,{"$f":"IF($C$86=\"\",\"\",V86/$C$86)","v":""},null,{"$f":"IF($C$86=\"\",\"\",X86/$C$86)","v":""},null,{"$f":"IF($C$86=\"\",\"\",Z86/$C$86)","v":""},null,{"$f":"IF($C$86=\"\",\"\",AB86/$C$86)","v":""},null,{"$f":"IF($C$86=\"\",\"\",AD86/$C$86)","v":""},null,{"$f":"IF($C$86=\"\",\"\",AF86/$C$86)","v":""},null,{"$f":"IF($C$86=\"\",\"\",AH86/$C$86)","v":""},null,{"$f":"IF($C$86=\"\",\"\",AJ86/$C$86)","v":""},null,{"$f":"IF($C$86=\"\",\"\",AL86/$C$86)","v":""},null,{"$f":"IF($C$86=\"\",\"\",AN86/$C$86)","v":""},null,{"$f":"IF($C$86=\"\",\"\",AP86/$C$86)","v":""},null,{"$f":"IF($C$86=\"\",\"\",AR86/$C$86)","v":""},null,{"$f":"IF($C$86=\"\",\"\",AT86/$C$86)","v":""},null,{"$f":"IF($C$86=\"\",\"\",AV86/$C$86)","v":""},null,{"$f":"IF($C$86=\"\",\"\",AX86/$C$86)","v":""},null,{"$f":"IF($C$86=\"\",\"\",AZ86/$C$86)","v":""},null,{"$f":"IF($C$86=\"\",\"\",BB86/$C$86)","v":""},null,0]
["    3.5.10",null,null,null,{"$f":"IF($C$87=\"\",\"\",F87/$C$87)","v":""},null,{"$f":"IF($C$87=\"\",\"\",H87/$C$87)","v":""},null,{"$f":"IF($C$87=\"\",\"\",J87/$C$87)","v":""},null,{"$f":"IF($C$87=\"\",\"\",L87/$C$87)","v":""},null,{"$f":"IF($C$87=\"\",\"\",N87/$C$87)","v":""},null,{"$f":"IF($C$87=\"\",\"\",P87/$C$87)","v":""},null,{"$f":"IF($C$87=\"\",\"\",R87/$C$87)","v":""},null,{"$f":"IF($C$87=\"\",\"\",T87/$C$87)","v":""},null,{"$f":"IF($C$87=\"\",\"\",V87/$C$87)","v":""},null,{"$f":"IF($C$87=\"\",\"\",X87/$C$87)","v":""},null,{"$f":"IF($C$87=\"\",\"\",Z87/$C$87)","v":""},null,{"$f":"IF($C$87=\"\",\"\",AB87/$C$87)","v":""},null,{"$f":"IF($C$87=\"\",\"\",AD87/$C$87)","v":""},null,{"$f":"IF($C$87=\"\",\"\",AF87/$C$87)","v":""},null,{"$f":"IF($C$87=\"\",\"\",AH87/$C$87)","v":""},null,{"$f":"IF($C$87=\"\",\"\",AJ87/$C$87)","v":""},null,{"$f":"IF($C$87=\"\",\"\",AL87/$C$87)","v":""},null,{"$f":"IF($C$87=\"\",\"\",AN87/$C$87)","v":""},null,{"$f":"IF($C$87=\"\",\"\",AP87/$C$87)","v":""},null,{"$f":"IF($C$87=\"\",\"\",AR87/$C$87)","v":""},null,{"$f":"IF($C$87=\"\",\"\",AT87/$C$87)","v":""},null,{"$f":"IF($C$87=\"\",\"\",AV87/$C$87)","v":""},null,{"$f":"IF($C$87=\"\",\"\",AX87/$C$87)","v":""},null,{"$f":"IF($C$87=\"\",\"\",AZ87/$C$87)","v":""},null,{"$f":"IF($C$87=\"\",\"\",BB87/$C$87)","v":""},null,0]
[3.6,"Hazardous Materials"]
["    3.6.1","    Coordinate with GeoEnvironmental Unit for \n    requirements/Prepare Memo ",null,null,{"$f":"IF($C$89=\"\",\"\",F89/$C$89)","v":""},null,{"$f":"IF($C$89=\"\",\"\",H89/$C$89)","v":""},null,{"$f":"IF($C$89=\"\",\"\",J89/$C$89)","v":""},null,{"$f":"IF($C$89=\"\",\"\",L89/$C$89)","v":""},null,{"$f":"IF($C$89=\"\",\"\",N89/$C$89)","v":""},null,{"$f":"IF($C$89=\"\",\"\",P89/$C$89)","v":""},null,{"$f":"IF($C$89=\"\",\"\",R89/$C$89)","v":""},null,{"$f":"IF($C$89=\"\",\"\",T89/$C$89)","v":""},null,{"$f":"IF($C$89=\"\",\"\",V89/$C$89)","v":""},null,{"$f":"IF($C$89=\"\",\"\",X89/$C$89)","v":""},null,{"$f":"IF($C$89=\"\",\"\",Z89/$C$89)","v":""},null,{"$f":"IF($C$89=\"\",\"\",AB89/$C$89)","v":""},null,{"$f":"IF($C$89=\"\",\"\",AD89/$C$89)","v":""},null,{"$f":"IF($C$89=\"\",\"\",AF89/$C$89)","v":""},null,{"$f":"IF($C$89=\"\",\"\",AH89/$C$89)","v":""},null,{"$f":"IF($C$89=\"\",\"\",AJ89/$C$89)","v":""},null,{"$f":"IF($C$89=\"\",\"\",AL89/$C$89)","v":""},null,{"$f":"IF($C$89=\"\",\"\",AN89/$C$89)","v":""},null,{"$f":"IF($C$89=\"\",\"\",AP89/$C$89)","v":""},null,{"$f":"IF($C$89=\"\",\"\",AR89/$C$89)","v":""},null,{"$f":"IF($C$89=\"\",\"\",AT89/$C$89)","v":""},null,{"$f":"IF($C$89=\"\",\"\",AV89/$C$89)","v":""},null,{"$f":"IF($C$89=\"\",\"\",AX89/$C$89)","v":""},null,{"$f":"IF($C$89=\"\",\"\",AZ89/$C$89)","v":""},null,{"$f":"IF($C$89=\"\",\"\",BB89/$C$89)","v":""},null,{"$f":"SUM(BB89,AZ89,AX89,AV89,AT89,AR89,AP89,AN89,AL89,AJ89,AH89,AF89,AD89,AB89,Z89,X89,V89,T89,R89,P89,N89,L89,J89,H89,F89)","v":0}]
["    3.6.2",null,null,null,{"$f":"IF($C$90=\"\",\"\",F90/$C$90)","v":""},null,{"$f":"IF($C$90=\"\",\"\",H90/$C$90)","v":""},null,{"$f":"IF($C$90=\"\",\"\",J90/$C$90)","v":""},null,{"$f":"IF($C$90=\"\",\"\",L90/$C$90)","v":""},null,{"$f":"IF($C$90=\"\",\"\",N90/$C$90)","v":""},null,{"$f":"IF($C$90=\"\",\"\",P90/$C$90)","v":""},null,{"$f":"IF($C$90=\"\",\"\",R90/$C$90)","v":""},null,{"$f":"IF($C$90=\"\",\"\",T90/$C$90)","v":""},null,{"$f":"IF($C$90=\"\",\"\",V90/$C$90)","v":""},null,{"$f":"IF($C$90=\"\",\"\",X90/$C$90)","v":""},null,{"$f":"IF($C$90=\"\",\"\",Z90/$C$90)","v":""},null,{"$f":"IF($C$90=\"\",\"\",AB90/$C$90)","v":""},null,{"$f":"IF($C$90=\"\",\"\",AD90/$C$90)","v":""},null,{"$f":"IF($C$90=\"\",\"\",AF90/$C$90)","v":""},null,{"$f":"IF($C$90=\"\",\"\",AH90/$C$90)","v":""},null,{"$f":"IF($C$90=\"\",\"\",AJ90/$C$90)","v":""},null,{"$f":"IF($C$90=\"\",\"\",AL90/$C$90)","v":""},null,{"$f":"IF($C$90=\"\",\"\",AN90/$C$90)","v":""},null,{"$f":"IF($C$90=\"\",\"\",AP90/$C$90)","v":""},null,{"$f":"IF($C$90=\"\",\"\",AR90/$C$90)","v":""},null,{"$f":"IF($C$90=\"\",\"\",AT90/$C$90)","v":""},null,{"$f":"IF($C$90=\"\",\"\",AV90/$C$90)","v":""},null,{"$f":"IF($C$90=\"\",\"\",AX90/$C$90)","v":""},null,{"$f":"IF($C$90=\"\",\"\",AZ90/$C$90)","v":""},null,{"$f":"IF($C$90=\"\",\"\",BB90/$C$90)","v":""},null,0]
["    3.6.3",null,null,null,{"$f":"IF($C$91=\"\",\"\",F91/$C$91)","v":""},null,{"$f":"IF($C$91=\"\",\"\",H91/$C$91)","v":""},null,{"$f":"IF($C$91=\"\",\"\",J91/$C$91)","v":""},null,{"$f":"IF($C$91=\"\",\"\",L91/$C$91)","v":""},null,{"$f":"IF($C$91=\"\",\"\",N91/$C$91)","v":""},null,{"$f":"IF($C$91=\"\",\"\",P91/$C$91)","v":""},null,{"$f":"IF($C$91=\"\",\"\",R91/$C$91)","v":""},null,{"$f":"IF($C$91=\"\",\"\",T91/$C$91)","v":""},null,{"$f":"IF($C$91=\"\",\"\",V91/$C$91)","v":""},null,{"$f":"IF($C$91=\"\",\"\",X91/$C$91)","v":""},null,{"$f":"IF($C$91=\"\",\"\",Z91/$C$91)","v":""},null,{"$f":"IF($C$91=\"\",\"\",AB91/$C$91)","v":""},null,{"$f":"IF($C$91=\"\",\"\",AD91/$C$91)","v":""},null,{"$f":"IF($C$91=\"\",\"\",AF91/$C$91)","v":""},null,{"$f":"IF($C$91=\"\",\"\",AH91/$C$91)","v":""},null,{"$f":"IF($C$91=\"\",\"\",AJ91/$C$91)","v":""},null,{"$f":"IF($C$91=\"\",\"\",AL91/$C$91)","v":""},null,{"$f":"IF($C$91=\"\",\"\",AN91/$C$91)","v":""},null,{"$f":"IF($C$91=\"\",\"\",AP91/$C$91)","v":""},null,{"$f":"IF($C$91=\"\",\"\",AR91/$C$91)","v":""},null,{"$f":"IF($C$91=\"\",\"\",AT91/$C$91)","v":""},null,{"$f":"IF($C$91=\"\",\"\",AV91/$C$91)","v":""},null,{"$f":"IF($C$91=\"\",\"\",AX91/$C$91)","v":""},null,{"$f":"IF($C$91=\"\",\"\",AZ91/$C$91)","v":""},null,{"$f":"IF($C$91=\"\",\"\",BB91/$C$91)","v":""},null,0]
["    3.6.4",null,null,null,{"$f":"IF($C$92=\"\",\"\",F92/$C$92)","v":""},null,{"$f":"IF($C$92=\"\",\"\",H92/$C$92)","v":""},null,{"$f":"IF($C$92=\"\",\"\",J92/$C$92)","v":""},null,{"$f":"IF($C$92=\"\",\"\",L92/$C$92)","v":""},null,{"$f":"IF($C$92=\"\",\"\",N92/$C$92)","v":""},null,{"$f":"IF($C$92=\"\",\"\",P92/$C$92)","v":""},null,{"$f":"IF($C$92=\"\",\"\",R92/$C$92)","v":""},null,{"$f":"IF($C$92=\"\",\"\",T92/$C$92)","v":""},null,{"$f":"IF($C$92=\"\",\"\",V92/$C$92)","v":""},null,{"$f":"IF($C$92=\"\",\"\",X92/$C$92)","v":""},null,{"$f":"IF($C$92=\"\",\"\",Z92/$C$92)","v":""},null,{"$f":"IF($C$92=\"\",\"\",AB92/$C$92)","v":""},null,{"$f":"IF($C$92=\"\",\"\",AD92/$C$92)","v":""},null,{"$f":"IF($C$92=\"\",\"\",AF92/$C$92)","v":""},null,{"$f":"IF($C$92=\"\",\"\",AH92/$C$92)","v":""},null,{"$f":"IF($C$92=\"\",\"\",AJ92/$C$92)","v":""},null,{"$f":"IF($C$92=\"\",\"\",AL92/$C$92)","v":""},null,{"$f":"IF($C$92=\"\",\"\",AN92/$C$92)","v":""},null,{"$f":"IF($C$92=\"\",\"\",AP92/$C$92)","v":""},null,{"$f":"IF($C$92=\"\",\"\",AR92/$C$92)","v":""},null,{"$f":"IF($C$92=\"\",\"\",AT92/$C$92)","v":""},null,{"$f":"IF($C$92=\"\",\"\",AV92/$C$92)","v":""},null,{"$f":"IF($C$92=\"\",\"\",AX92/$C$92)","v":""},null,{"$f":"IF($C$92=\"\",\"\",AZ92/$C$92)","v":""},null,{"$f":"IF($C$92=\"\",\"\",BB92/$C$92)","v":""},null,0]
[3.7,"Natural Systems Studies"]
["    3.7.1","    Background data collection",null,null,{"$f":"IF($C$94=\"\",\"\",F94/$C$94)","v":""},null,{"$f":"IF($C$94=\"\",\"\",H94/$C$94)","v":""},null,{"$f":"IF($C$94=\"\",\"\",J94/$C$94)","v":""},null,{"$f":"IF($C$94=\"\",\"\",L94/$C$94)","v":""},null,{"$f":"IF($C$94=\"\",\"\",N94/$C$94)","v":""},null,{"$f":"IF($C$94=\"\",\"\",P94/$C$94)","v":""},null,{"$f":"IF($C$94=\"\",\"\",R94/$C$94)","v":""},null,{"$f":"IF($C$94=\"\",\"\",T94/$C$94)","v":""},null,{"$f":"IF($C$94=\"\",\"\",V94/$C$94)","v":""},null,{"$f":"IF($C$94=\"\",\"\",X94/$C$94)","v":""},null,{"$f":"IF($C$94=\"\",\"\",Z94/$C$94)","v":""},null,{"$f":"IF($C$94=\"\",\"\",AB94/$C$94)","v":""},null,{"$f":"IF($C$94=\"\",\"\",AD94/$C$94)","v":""},null,{"$f":"IF($C$94=\"\",\"\",AF94/$C$94)","v":""},null,{"$f":"IF($C$94=\"\",\"\",AH94/$C$94)","v":""},null,{"$f":"IF($C$94=\"\",\"\",AJ94/$C$94)","v":""},null,{"$f":"IF($C$94=\"\",\"\",AL94/$C$94)","v":""},null,{"$f":"IF($C$94=\"\",\"\",AN94/$C$94)","v":""},null,{"$f":"IF($C$94=\"\",\"\",AP94/$C$94)","v":""},null,{"$f":"IF($C$94=\"\",\"\",AR94/$C$94)","v":""},null,{"$f":"IF($C$94=\"\",\"\",AT94/$C$94)","v":""},null,{"$f":"IF($C$94=\"\",\"\",AV94/$C$94)","v":""},null,{"$f":"IF($C$94=\"\",\"\",AX94/$C$94)","v":""},null,{"$f":"IF($C$94=\"\",\"\",AZ94/$C$94)","v":""},null,{"$f":"IF($C$94=\"\",\"\",BB94/$C$94)","v":""},null,{"$f":"SUM(BB94,AZ94,AX94,AV94,AT94,AR94,AP94,AN94,AL94,AJ94,AH94,AF94,AD94,AB94,Z94,X94,V94,T94,R94,P94,N94,L94,J94,H94,F94)","v":0}]
["    3.7.2","    Desktop resource prediction (WOUS, Federally \n    Protected Species)",null,null,{"$f":"IF($C$95=\"\",\"\",F95/$C$95)","v":""},null,{"$f":"IF($C$95=\"\",\"\",H95/$C$95)","v":""},null,{"$f":"IF($C$95=\"\",\"\",J95/$C$95)","v":""},null,{"$f":"IF($C$95=\"\",\"\",L95/$C$95)","v":""},null,{"$f":"IF($C$95=\"\",\"\",N95/$C$95)","v":""},null,{"$f":"IF($C$95=\"\",\"\",P95/$C$95)","v":""},null,{"$f":"IF($C$95=\"\",\"\",R95/$C$95)","v":""},null,{"$f":"IF($C$95=\"\",\"\",T95/$C$95)","v":""},null,{"$f":"IF($C$95=\"\",\"\",V95/$C$95)","v":""},null,{"$f":"IF($C$95=\"\",\"\",X95/$C$95)","v":""},null,{"$f":"IF($C$95=\"\",\"\",Z95/$C$95)","v":""},null,{"$f":"IF($C$95=\"\",\"\",AB95/$C$95)","v":""},null,{"$f":"IF($C$95=\"\",\"\",AD95/$C$95)","v":""},null,{"$f":"IF($C$95=\"\",\"\",AF95/$C$95)","v":""},null,{"$f":"IF($C$95=\"\",\"\",AH95/$C$95)","v":""},null,{"$f":"IF($C$95=\"\",\"\",AJ95/$C$95)","v":""},null,{"$f":"IF($C$95=\"\",\"\",AL95/$C$95)","v":""},null,{"$f":"IF($C$95=\"\",\"\",AN95/$C$95)","v":""},null,{"$f":"IF($C$95=\"\",\"\",AP95/$C$95)","v":""},null,{"$f":"IF($C$95=\"\",\"\",AR95/$C$95)","v":""},null,{"$f":"IF($C$95=\"\",\"\",AT95/$C$95)","v":""},null,{"$f":"IF($C$95=\"\",\"\",AV95/$C$95)","v":""},null,{"$f":"IF($C$95=\"\",\"\",AX95/$C$95)","v":""},null,{"$f":"IF($C$95=\"\",\"\",AZ95/$C$95)","v":""},null,{"$f":"IF($C$95=\"\",\"\",BB95/$C$95)","v":""},null,0]
["    3.7.3","    Memo Development",null,null,{"$f":"IF($C$96=\"\",\"\",F96/$C$96)","v":""},null,{"$f":"IF($C$96=\"\",\"\",H96/$C$96)","v":""},null,{"$f":"IF($C$96=\"\",\"\",J96/$C$96)","v":""},null,{"$f":"IF($C$96=\"\",\"\",L96/$C$96)","v":""},null,{"$f":"IF($C$96=\"\",\"\",N96/$C$96)","v":""},null,{"$f":"IF($C$96=\"\",\"\",P96/$C$96)","v":""},null,{"$f":"IF($C$96=\"\",\"\",R96/$C$96)","v":""},null,{"$f":"IF($C$96=\"\",\"\",T96/$C$96)","v":""},null,{"$f":"IF($C$96=\"\",\"\",V96/$C$96)","v":""},null,{"$f":"IF($C$96=\"\",\"\",X96/$C$96)","v":""},null,{"$f":"IF($C$96=\"\",\"\",Z96/$C$96)","v":""},null,{"$f":"IF($C$96=\"\",\"\",AB96/$C$96)","v":""},null,{"$f":"IF($C$96=\"\",\"\",AD96/$C$96)","v":""},null,{"$f":"IF($C$96=\"\",\"\",AF96/$C$96)","v":""},null,{"$f":"IF($C$96=\"\",\"\",AH96/$C$96)","v":""},null,{"$f":"IF($C$96=\"\",\"\",AJ96/$C$96)","v":""},null,{"$f":"IF($C$96=\"\",\"\",AL96/$C$96)","v":""},null,{"$f":"IF($C$96=\"\",\"\",AN96/$C$96)","v":""},null,{"$f":"IF($C$96=\"\",\"\",AP96/$C$96)","v":""},null,{"$f":"IF($C$96=\"\",\"\",AR96/$C$96)","v":""},null,{"$f":"IF($C$96=\"\",\"\",AT96/$C$96)","v":""},null,{"$f":"IF($C$96=\"\",\"\",AV96/$C$96)","v":""},null,{"$f":"IF($C$96=\"\",\"\",AX96/$C$96)","v":""},null,{"$f":"IF($C$96=\"\",\"\",AZ96/$C$96)","v":""},null,{"$f":"IF($C$96=\"\",\"\",BB96/$C$96)","v":""},null,0]
["    3.7.4","    Field Visit (10 cabinet intersections)",null,null,{"$f":"IF($C$97=\"\",\"\",F97/$C$97)","v":""},null,{"$f":"IF($C$97=\"\",\"\",H97/$C$97)","v":""},null,{"$f":"IF($C$97=\"\",\"\",J97/$C$97)","v":""},null,{"$f":"IF($C$97=\"\",\"\",L97/$C$97)","v":""},null,{"$f":"IF($C$97=\"\",\"\",N97/$C$97)","v":""},null,{"$f":"IF($C$97=\"\",\"\",P97/$C$97)","v":""},null,{"$f":"IF($C$97=\"\",\"\",R97/$C$97)","v":""},null,{"$f":"IF($C$97=\"\",\"\",T97/$C$97)","v":""},null,{"$f":"IF($C$97=\"\",\"\",V97/$C$97)","v":""},null,{"$f":"IF($C$97=\"\",\"\",X97/$C$97)","v":""},null,{"$f":"IF($C$97=\"\",\"\",Z97/$C$97)","v":""},null,{"$f":"IF($C$97=\"\",\"\",AB97/$C$97)","v":""},null,{"$f":"IF($C$97=\"\",\"\",AD97/$C$97)","v":""},null,{"$f":"IF($C$97=\"\",\"\",AF97/$C$97)","v":""},null,{"$f":"IF($C$97=\"\",\"\",AH97/$C$97)","v":""},null,{"$f":"IF($C$97=\"\",\"\",AJ97/$C$97)","v":""},null,{"$f":"IF($C$97=\"\",\"\",AL97/$C$97)","v":""},null,{"$f":"IF($C$97=\"\",\"\",AN97/$C$97)","v":""},null,{"$f":"IF($C$97=\"\",\"\",AP97/$C$97)","v":""},null,{"$f":"IF($C$97=\"\",\"\",AR97/$C$97)","v":""},null,{"$f":"IF($C$97=\"\",\"\",AT97/$C$97)","v":""},null,{"$f":"IF($C$97=\"\",\"\",AV97/$C$97)","v":""},null,{"$f":"IF($C$97=\"\",\"\",AX97/$C$97)","v":""},null,{"$f":"IF($C$97=\"\",\"\",AZ97/$C$97)","v":""},null,{"$f":"IF($C$97=\"\",\"\",BB97/$C$97)","v":""},null,0]
["    3.7.5",null,null,null,{"$f":"IF($C$98=\"\",\"\",F98/$C$98)","v":""},null,{"$f":"IF($C$98=\"\",\"\",H98/$C$98)","v":""},null,{"$f":"IF($C$98=\"\",\"\",J98/$C$98)","v":""},null,{"$f":"IF($C$98=\"\",\"\",L98/$C$98)","v":""},null,{"$f":"IF($C$98=\"\",\"\",N98/$C$98)","v":""},null,{"$f":"IF($C$98=\"\",\"\",P98/$C$98)","v":""},null,{"$f":"IF($C$98=\"\",\"\",R98/$C$98)","v":""},null,{"$f":"IF($C$98=\"\",\"\",T98/$C$98)","v":""},null,{"$f":"IF($C$98=\"\",\"\",V98/$C$98)","v":""},null,{"$f":"IF($C$98=\"\",\"\",X98/$C$98)","v":""},null,{"$f":"IF($C$98=\"\",\"\",Z98/$C$98)","v":""},null,{"$f":"IF($C$98=\"\",\"\",AB98/$C$98)","v":""},null,{"$f":"IF($C$98=\"\",\"\",AD98/$C$98)","v":""},null,{"$f":"IF($C$98=\"\",\"\",AF98/$C$98)","v":""},null,{"$f":"IF($C$98=\"\",\"\",AH98/$C$98)","v":""},null,{"$f":"IF($C$98=\"\",\"\",AJ98/$C$98)","v":""},null,{"$f":"IF($C$98=\"\",\"\",AL98/$C$98)","v":""},null,{"$f":"IF($C$98=\"\",\"\",AN98/$C$98)","v":""},null,{"$f":"IF($C$98=\"\",\"\",AP98/$C$98)","v":""},null,{"$f":"IF($C$98=\"\",\"\",AR98/$C$98)","v":""},null,{"$f":"IF($C$98=\"\",\"\",AT98/$C$98)","v":""},null,{"$f":"IF($C$98=\"\",\"\",AV98/$C$98)","v":""},null,{"$f":"IF($C$98=\"\",\"\",AX98/$C$98)","v":""},null,{"$f":"IF($C$98=\"\",\"\",AZ98/$C$98)","v":""},null,{"$f":"IF($C$98=\"\",\"\",BB98/$C$98)","v":""},null,0]
["    3.7.6",null,null,null,{"$f":"IF($C$99=\"\",\"\",F99/$C$99)","v":""},null,{"$f":"IF($C$99=\"\",\"\",H99/$C$99)","v":""},null,{"$f":"IF($C$99=\"\",\"\",J99/$C$99)","v":""},null,{"$f":"IF($C$99=\"\",\"\",L99/$C$99)","v":""},null,{"$f":"IF($C$99=\"\",\"\",N99/$C$99)","v":""},null,{"$f":"IF($C$99=\"\",\"\",P99/$C$99)","v":""},null,{"$f":"IF($C$99=\"\",\"\",R99/$C$99)","v":""},null,{"$f":"IF($C$99=\"\",\"\",T99/$C$99)","v":""},null,{"$f":"IF($C$99=\"\",\"\",V99/$C$99)","v":""},null,{"$f":"IF($C$99=\"\",\"\",X99/$C$99)","v":""},null,{"$f":"IF($C$99=\"\",\"\",Z99/$C$99)","v":""},null,{"$f":"IF($C$99=\"\",\"\",AB99/$C$99)","v":""},null,{"$f":"IF($C$99=\"\",\"\",AD99/$C$99)","v":""},null,{"$f":"IF($C$99=\"\",\"\",AF99/$C$99)","v":""},null,{"$f":"IF($C$99=\"\",\"\",AH99/$C$99)","v":""},null,{"$f":"IF($C$99=\"\",\"\",AJ99/$C$99)","v":""},null,{"$f":"IF($C$99=\"\",\"\",AL99/$C$99)","v":""},null,{"$f":"IF($C$99=\"\",\"\",AN99/$C$99)","v":""},null,{"$f":"IF($C$99=\"\",\"\",AP99/$C$99)","v":""},null,{"$f":"IF($C$99=\"\",\"\",AR99/$C$99)","v":""},null,{"$f":"IF($C$99=\"\",\"\",AT99/$C$99)","v":""},null,{"$f":"IF($C$99=\"\",\"\",AV99/$C$99)","v":""},null,{"$f":"IF($C$99=\"\",\"\",AX99/$C$99)","v":""},null,{"$f":"IF($C$99=\"\",\"\",AZ99/$C$99)","v":""},null,{"$f":"IF($C$99=\"\",\"\",BB99/$C$99)","v":""},null,0]
["    3.7.7",null,null,null,{"$f":"IF($C$100=\"\",\"\",F100/$C$100)","v":""},null,{"$f":"IF($C$100=\"\",\"\",H100/$C$100)","v":""},null,{"$f":"IF($C$100=\"\",\"\",J100/$C$100)","v":""},null,{"$f":"IF($C$100=\"\",\"\",L100/$C$100)","v":""},null,{"$f":"IF($C$100=\"\",\"\",N100/$C$100)","v":""},null,{"$f":"IF($C$100=\"\",\"\",P100/$C$100)","v":""},null,{"$f":"IF($C$100=\"\",\"\",R100/$C$100)","v":""},null,{"$f":"IF($C$100=\"\",\"\",T100/$C$100)","v":""},null,{"$f":"IF($C$100=\"\",\"\",V100/$C$100)","v":""},null,{"$f":"IF($C$100=\"\",\"\",X100/$C$100)","v":""},null,{"$f":"IF($C$100=\"\",\"\",Z100/$C$100)","v":""},null,{"$f":"IF($C$100=\"\",\"\",AB100/$C$100)","v":""},null,{"$f":"IF($C$100=\"\",\"\",AD100/$C$100)","v":""},null,{"$f":"IF($C$100=\"\",\"\",AF100/$C$100)","v":""},null,{"$f":"IF($C$100=\"\",\"\",AH100/$C$100)","v":""},null,{"$f":"IF($C$100=\"\",\"\",AJ100/$C$100)","v":""},null,{"$f":"IF($C$100=\"\",\"\",AL100/$C$100)","v":""},null,{"$f":"IF($C$100=\"\",\"\",AN100/$C$100)","v":""},null,{"$f":"IF($C$100=\"\",\"\",AP100/$C$100)","v":""},null,{"$f":"IF($C$100=\"\",\"\",AR100/$C$100)","v":""},null,{"$f":"IF($C$100=\"\",\"\",AT100/$C$100)","v":""},null,{"$f":"IF($C$100=\"\",\"\",AV100/$C$100)","v":""},null,{"$f":"IF($C$100=\"\",\"\",AX100/$C$100)","v":""},null,{"$f":"IF($C$100=\"\",\"\",AZ100/$C$100)","v":""},null,{"$f":"IF($C$100=\"\",\"\",BB100/$C$100)","v":""},null,0]
[3.8,"PCE Documentation"]
["    3.8.1","    Draft v1 to NCDOT/Address Comments",null,null,{"$f":"IF($C$102=\"\",\"\",F102/$C$102)","v":""},null,{"$f":"IF($C$102=\"\",\"\",H102/$C$102)","v":""},null,{"$f":"IF($C$102=\"\",\"\",J102/$C$102)","v":""},null,{"$f":"IF($C$102=\"\",\"\",L102/$C$102)","v":""},null,{"$f":"IF($C$102=\"\",\"\",N102/$C$102)","v":""},null,{"$f":"IF($C$102=\"\",\"\",P102/$C$102)","v":""},null,{"$f":"IF($C$102=\"\",\"\",R102/$C$102)","v":""},null,{"$f":"IF($C$102=\"\",\"\",T102/$C$102)","v":""},null,{"$f":"IF($C$102=\"\",\"\",V102/$C$102)","v":""},null,{"$f":"IF($C$102=\"\",\"\",X102/$C$102)","v":""},null,{"$f":"IF($C$102=\"\",\"\",Z102/$C$102)","v":""},null,{"$f":"IF($C$102=\"\",\"\",AB102/$C$102)","v":""},null,{"$f":"IF($C$102=\"\",\"\",AD102/$C$102)","v":""},null,{"$f":"IF($C$102=\"\",\"\",AF102/$C$102)","v":""},null,{"$f":"IF($C$102=\"\",\"\",AH102/$C$102)","v":""},null,{"$f":"IF($C$102=\"\",\"\",AJ102/$C$102)","v":""},null,{"$f":"IF($C$102=\"\",\"\",AL102/$C$102)","v":""},null,{"$f":"IF($C$102=\"\",\"\",AN102/$C$102)","v":""},null,{"$f":"IF($C$102=\"\",\"\",AP102/$C$102)","v":""},null,{"$f":"IF($C$102=\"\",\"\",AR102/$C$102)","v":""},null,{"$f":"IF($C$102=\"\",\"\",AT102/$C$102)","v":""},null,{"$f":"IF($C$102=\"\",\"\",AV102/$C$102)","v":""},null,{"$f":"IF($C$102=\"\",\"\",AX102/$C$102)","v":""},null,{"$f":"IF($C$102=\"\",\"\",AZ102/$C$102)","v":""},null,{"$f":"IF($C$102=\"\",\"\",BB102/$C$102)","v":""},null,{"$f":"SUM(BB102,AZ102,AX102,AV102,AT102,AR102,AP102,AN102,AL102,AJ102,AH102,AF102,AD102,AB102,Z102,X102,V102,T102,R102,P102,N102,L102,J102,H102,F102)","v":0}]
["    3.8.2","    Draft v2 to FHWA/Address Comments",null,null,{"$f":"IF($C$103=\"\",\"\",F103/$C$103)","v":""},null,{"$f":"IF($C$103=\"\",\"\",H103/$C$103)","v":""},null,{"$f":"IF($C$103=\"\",\"\",J103/$C$103)","v":""},null,{"$f":"IF($C$103=\"\",\"\",L103/$C$103)","v":""},null,{"$f":"IF($C$103=\"\",\"\",N103/$C$103)","v":""},null,{"$f":"IF($C$103=\"\",\"\",P103/$C$103)","v":""},null,{"$f":"IF($C$103=\"\",\"\",R103/$C$103)","v":""},null,{"$f":"IF($C$103=\"\",\"\",T103/$C$103)","v":""},null,{"$f":"IF($C$103=\"\",\"\",V103/$C$103)","v":""},null,{"$f":"IF($C$103=\"\",\"\",X103/$C$103)","v":""},null,{"$f":"IF($C$103=\"\",\"\",Z103/$C$103)","v":""},null,{"$f":"IF($C$103=\"\",\"\",AB103/$C$103)","v":""},null,{"$f":"IF($C$103=\"\",\"\",AD103/$C$103)","v":""},null,{"$f":"IF($C$103=\"\",\"\",AF103/$C$103)","v":""},null,{"$f":"IF($C$103=\"\",\"\",AH103/$C$103)","v":""},null,{"$f":"IF($C$103=\"\",\"\",AJ103/$C$103)","v":""},null,{"$f":"IF($C$103=\"\",\"\",AL103/$C$103)","v":""},null,{"$f":"IF($C$103=\"\",\"\",AN103/$C$103)","v":""},null,{"$f":"IF($C$103=\"\",\"\",AP103/$C$103)","v":""},null,{"$f":"IF($C$103=\"\",\"\",AR103/$C$103)","v":""},null,{"$f":"IF($C$103=\"\",\"\",AT103/$C$103)","v":""},null,{"$f":"IF($C$103=\"\",\"\",AV103/$C$103)","v":""},null,{"$f":"IF($C$103=\"\",\"\",AX103/$C$103)","v":""},null,{"$f":"IF($C$103=\"\",\"\",AZ103/$C$103)","v":""},null,{"$f":"IF($C$103=\"\",\"\",BB103/$C$103)","v":""},null,0]
["    3.8.3","    Finalize and distribute copies of PCE Document",null,null,{"$f":"IF($C$104=\"\",\"\",F104/$C$104)","v":""},null,{"$f":"IF($C$104=\"\",\"\",H104/$C$104)","v":""},null,{"$f":"IF($C$104=\"\",\"\",J104/$C$104)","v":""},null,{"$f":"IF($C$104=\"\",\"\",L104/$C$104)","v":""},null,{"$f":"IF($C$104=\"\",\"\",N104/$C$104)","v":""},null,{"$f":"IF($C$104=\"\",\"\",P104/$C$104)","v":""},null,{"$f":"IF($C$104=\"\",\"\",R104/$C$104)","v":""},null,{"$f":"IF($C$104=\"\",\"\",T104/$C$104)","v":""},null,{"$f":"IF($C$104=\"\",\"\",V104/$C$104)","v":""},null,{"$f":"IF($C$104=\"\",\"\",X104/$C$104)","v":""},null,{"$f":"IF($C$104=\"\",\"\",Z104/$C$104)","v":""},null,{"$f":"IF($C$104=\"\",\"\",AB104/$C$104)","v":""},null,{"$f":"IF($C$104=\"\",\"\",AD104/$C$104)","v":""},null,{"$f":"IF($C$104=\"\",\"\",AF104/$C$104)","v":""},null,{"$f":"IF($C$104=\"\",\"\",AH104/$C$104)","v":""},null,{"$f":"IF($C$104=\"\",\"\",AJ104/$C$104)","v":""},null,{"$f":"IF($C$104=\"\",\"\",AL104/$C$104)","v":""},null,{"$f":"IF($C$104=\"\",\"\",AN104/$C$104)","v":""},null,{"$f":"IF($C$104=\"\",\"\",AP104/$C$104)","v":""},null,{"$f":"IF($C$104=\"\",\"\",AR104/$C$104)","v":""},null,{"$f":"IF($C$104=\"\",\"\",AT104/$C$104)","v":""},null,{"$f":"IF($C$104=\"\",\"\",AV104/$C$104)","v":""},null,{"$f":"IF($C$104=\"\",\"\",AX104/$C$104)","v":""},null,{"$f":"IF($C$104=\"\",\"\",AZ104/$C$104)","v":""},null,{"$f":"IF($C$104=\"\",\"\",BB104/$C$104)","v":""},null,0]
["    3.8.4",null,null,null,{"$f":"IF($C$105=\"\",\"\",F105/$C$105)","v":""},null,{"$f":"IF($C$105=\"\",\"\",H105/$C$105)","v":""},null,{"$f":"IF($C$105=\"\",\"\",J105/$C$105)","v":""},null,{"$f":"IF($C$105=\"\",\"\",L105/$C$105)","v":""},null,{"$f":"IF($C$105=\"\",\"\",N105/$C$105)","v":""},null,{"$f":"IF($C$105=\"\",\"\",P105/$C$105)","v":""},null,{"$f":"IF($C$105=\"\",\"\",R105/$C$105)","v":""},null,{"$f":"IF($C$105=\"\",\"\",T105/$C$105)","v":""},null,{"$f":"IF($C$105=\"\",\"\",V105/$C$105)","v":""},null,{"$f":"IF($C$105=\"\",\"\",X105/$C$105)","v":""},null,{"$f":"IF($C$105=\"\",\"\",Z105/$C$105)","v":""},null,{"$f":"IF($C$105=\"\",\"\",AB105/$C$105)","v":""},null,{"$f":"IF($C$105=\"\",\"\",AD105/$C$105)","v":""},null,{"$f":"IF($C$105=\"\",\"\",AF105/$C$105)","v":""},null,{"$f":"IF($C$105=\"\",\"\",AH105/$C$105)","v":""},null,{"$f":"IF($C$105=\"\",\"\",AJ105/$C$105)","v":""},null,{"$f":"IF($C$105=\"\",\"\",AL105/$C$105)","v":""},null,{"$f":"IF($C$105=\"\",\"\",AN105/$C$105)","v":""},null,{"$f":"IF($C$105=\"\",\"\",AP105/$C$105)","v":""},null,{"$f":"IF($C$105=\"\",\"\",AR105/$C$105)","v":""},null,{"$f":"IF($C$105=\"\",\"\",AT105/$C$105)","v":""},null,{"$f":"IF($C$105=\"\",\"\",AV105/$C$105)","v":""},null,{"$f":"IF($C$105=\"\",\"\",AX105/$C$105)","v":""},null,{"$f":"IF($C$105=\"\",\"\",AZ105/$C$105)","v":""},null,{"$f":"IF($C$105=\"\",\"\",BB105/$C$105)","v":""},null,0]
["    3.8.5",null,null,null,{"$f":"IF($C$106=\"\",\"\",F106/$C$106)","v":""},null,{"$f":"IF($C$106=\"\",\"\",H106/$C$106)","v":""},null,{"$f":"IF($C$106=\"\",\"\",J106/$C$106)","v":""},null,{"$f":"IF($C$106=\"\",\"\",L106/$C$106)","v":""},null,{"$f":"IF($C$106=\"\",\"\",N106/$C$106)","v":""},null,{"$f":"IF($C$106=\"\",\"\",P106/$C$106)","v":""},null,{"$f":"IF($C$106=\"\",\"\",R106/$C$106)","v":""},null,{"$f":"IF($C$106=\"\",\"\",T106/$C$106)","v":""},null,{"$f":"IF($C$106=\"\",\"\",V106/$C$106)","v":""},null,{"$f":"IF($C$106=\"\",\"\",X106/$C$106)","v":""},null,{"$f":"IF($C$106=\"\",\"\",Z106/$C$106)","v":""},null,{"$f":"IF($C$106=\"\",\"\",AB106/$C$106)","v":""},null,{"$f":"IF($C$106=\"\",\"\",AD106/$C$106)","v":""},null,{"$f":"IF($C$106=\"\",\"\",AF106/$C$106)","v":""},null,{"$f":"IF($C$106=\"\",\"\",AH106/$C$106)","v":""},null,{"$f":"IF($C$106=\"\",\"\",AJ106/$C$106)","v":""},null,{"$f":"IF($C$106=\"\",\"\",AL106/$C$106)","v":""},null,{"$f":"IF($C$106=\"\",\"\",AN106/$C$106)","v":""},null,{"$f":"IF($C$106=\"\",\"\",AP106/$C$106)","v":""},null,{"$f":"IF($C$106=\"\",\"\",AR106/$C$106)","v":""},null,{"$f":"IF($C$106=\"\",\"\",AT106/$C$106)","v":""},null,{"$f":"IF($C$106=\"\",\"\",AV106/$C$106)","v":""},null,{"$f":"IF($C$106=\"\",\"\",AX106/$C$106)","v":""},null,{"$f":"IF($C$106=\"\",\"\",AZ106/$C$106)","v":""},null,{"$f":"IF($C$106=\"\",\"\",BB106/$C$106)","v":""},null,0]
["    3.8.6",null,null,null,{"$f":"IF($C$107=\"\",\"\",F107/$C$107)","v":""},null,{"$f":"IF($C$107=\"\",\"\",H107/$C$107)","v":""},null,{"$f":"IF($C$107=\"\",\"\",J107/$C$107)","v":""},null,{"$f":"IF($C$107=\"\",\"\",L107/$C$107)","v":""},null,{"$f":"IF($C$107=\"\",\"\",N107/$C$107)","v":""},null,{"$f":"IF($C$107=\"\",\"\",P107/$C$107)","v":""},null,{"$f":"IF($C$107=\"\",\"\",R107/$C$107)","v":""},null,{"$f":"IF($C$107=\"\",\"\",T107/$C$107)","v":""},null,{"$f":"IF($C$107=\"\",\"\",V107/$C$107)","v":""},null,{"$f":"IF($C$107=\"\",\"\",X107/$C$107)","v":""},null,{"$f":"IF($C$107=\"\",\"\",Z107/$C$107)","v":""},null,{"$f":"IF($C$107=\"\",\"\",AB107/$C$107)","v":""},null,{"$f":"IF($C$107=\"\",\"\",AD107/$C$107)","v":""},null,{"$f":"IF($C$107=\"\",\"\",AF107/$C$107)","v":""},null,{"$f":"IF($C$107=\"\",\"\",AH107/$C$107)","v":""},null,{"$f":"IF($C$107=\"\",\"\",AJ107/$C$107)","v":""},null,{"$f":"IF($C$107=\"\",\"\",AL107/$C$107)","v":""},null,{"$f":"IF($C$107=\"\",\"\",AN107/$C$107)","v":""},null,{"$f":"IF($C$107=\"\",\"\",AP107/$C$107)","v":""},null,{"$f":"IF($C$107=\"\",\"\",AR107/$C$107)","v":""},null,{"$f":"IF($C$107=\"\",\"\",AT107/$C$107)","v":""},null,{"$f":"IF($C$107=\"\",\"\",AV107/$C$107)","v":""},null,{"$f":"IF($C$107=\"\",\"\",AX107/$C$107)","v":""},null,{"$f":"IF($C$107=\"\",\"\",AZ107/$C$107)","v":""},null,{"$f":"IF($C$107=\"\",\"\",BB107/$C$107)","v":""},null,0]
[null,null,null,null,{"$f":"IF($C$108=\"\",\"\",F108/$C$108)","v":""},null,{"$f":"IF($C$108=\"\",\"\",H108/$C$108)","v":""},null,{"$f":"IF($C$108=\"\",\"\",J108/$C$108)","v":""},null,{"$f":"IF($C$108=\"\",\"\",L108/$C$108)","v":""},null,{"$f":"IF($C$108=\"\",\"\",N108/$C$108)","v":""},null,{"$f":"IF($C$108=\"\",\"\",P108/$C$108)","v":""},null,{"$f":"IF($C$108=\"\",\"\",R108/$C$108)","v":""},null,{"$f":"IF($C$108=\"\",\"\",T108/$C$108)","v":""},null,{"$f":"IF($C$108=\"\",\"\",V108/$C$108)","v":""},null,{"$f":"IF($C$108=\"\",\"\",X108/$C$108)","v":""},null,{"$f":"IF($C$108=\"\",\"\",Z108/$C$108)","v":""},null,{"$f":"IF($C$108=\"\",\"\",AB108/$C$108)","v":""},null,{"$f":"IF($C$108=\"\",\"\",AD108/$C$108)","v":""},null,{"$f":"IF($C$108=\"\",\"\",AF108/$C$108)","v":""},null,{"$f":"IF($C$108=\"\",\"\",AH108/$C$108)","v":""},null,{"$f":"IF($C$108=\"\",\"\",AJ108/$C$108)","v":""},null,{"$f":"IF($C$108=\"\",\"\",AL108/$C$108)","v":""},null,{"$f":"IF($C$108=\"\",\"\",AN108/$C$108)","v":""},null,{"$f":"IF($C$108=\"\",\"\",AP108/$C$108)","v":""},null,{"$f":"IF($C$108=\"\",\"\",AR108/$C$108)","v":""},null,{"$f":"IF($C$108=\"\",\"\",AT108/$C$108)","v":""},null,{"$f":"IF($C$108=\"\",\"\",AV108/$C$108)","v":""},null,{"$f":"IF($C$108=\"\",\"\",AX108/$C$108)","v":""},null,{"$f":"IF($C$108=\"\",\"\",AZ108/$C$108)","v":""},null,{"$f":"IF($C$108=\"\",\"\",BB108/$C$108)","v":""},null,0]
[null,null,null,null,{"$f":"IF($C$109=\"\",\"\",F109/$C$109)","v":""},null,{"$f":"IF($C$109=\"\",\"\",H109/$C$109)","v":""},null,{"$f":"IF($C$109=\"\",\"\",J109/$C$109)","v":""},null,{"$f":"IF($C$109=\"\",\"\",L109/$C$109)","v":""},null,{"$f":"IF($C$109=\"\",\"\",N109/$C$109)","v":""},null,{"$f":"IF($C$109=\"\",\"\",P109/$C$109)","v":""},null,{"$f":"IF($C$109=\"\",\"\",R109/$C$109)","v":""},null,{"$f":"IF($C$109=\"\",\"\",T109/$C$109)","v":""},null,{"$f":"IF($C$109=\"\",\"\",V109/$C$109)","v":""},null,{"$f":"IF($C$109=\"\",\"\",X109/$C$109)","v":""},null,{"$f":"IF($C$109=\"\",\"\",Z109/$C$109)","v":""},null,{"$f":"IF($C$109=\"\",\"\",AB109/$C$109)","v":""},null,{"$f":"IF($C$109=\"\",\"\",AD109/$C$109)","v":""},null,{"$f":"IF($C$109=\"\",\"\",AF109/$C$109)","v":""},null,{"$f":"IF($C$109=\"\",\"\",AH109/$C$109)","v":""},null,{"$f":"IF($C$109=\"\",\"\",AJ109/$C$109)","v":""},null,{"$f":"IF($C$109=\"\",\"\",AL109/$C$109)","v":""},null,{"$f":"IF($C$109=\"\",\"\",AN109/$C$109)","v":""},null,{"$f":"IF($C$109=\"\",\"\",AP109/$C$109)","v":""},null,{"$f":"IF($C$109=\"\",\"\",AR109/$C$109)","v":""},null,{"$f":"IF($C$109=\"\",\"\",AT109/$C$109)","v":""},null,{"$f":"IF($C$109=\"\",\"\",AV109/$C$109)","v":""},null,{"$f":"IF($C$109=\"\",\"\",AX109/$C$109)","v":""},null,{"$f":"IF($C$109=\"\",\"\",AZ109/$C$109)","v":""},null,{"$f":"IF($C$109=\"\",\"\",BB109/$C$109)","v":""},null,0]
[null,null,null,null,{"$f":"IF($C$110=\"\",\"\",F110/$C$110)","v":""},null,{"$f":"IF($C$110=\"\",\"\",H110/$C$110)","v":""},null,{"$f":"IF($C$110=\"\",\"\",J110/$C$110)","v":""},null,{"$f":"IF($C$110=\"\",\"\",L110/$C$110)","v":""},null,{"$f":"IF($C$110=\"\",\"\",N110/$C$110)","v":""},null,{"$f":"IF($C$110=\"\",\"\",P110/$C$110)","v":""},null,{"$f":"IF($C$110=\"\",\"\",R110/$C$110)","v":""},null,{"$f":"IF($C$110=\"\",\"\",T110/$C$110)","v":""},null,{"$f":"IF($C$110=\"\",\"\",V110/$C$110)","v":""},null,{"$f":"IF($C$110=\"\",\"\",X110/$C$110)","v":""},null,{"$f":"IF($C$110=\"\",\"\",Z110/$C$110)","v":""},null,{"$f":"IF($C$110=\"\",\"\",AB110/$C$110)","v":""},null,{"$f":"IF($C$110=\"\",\"\",AD110/$C$110)","v":""},null,{"$f":"IF($C$110=\"\",\"\",AF110/$C$110)","v":""},null,{"$f":"IF($C$110=\"\",\"\",AH110/$C$110)","v":""},null,{"$f":"IF($C$110=\"\",\"\",AJ110/$C$110)","v":""},null,{"$f":"IF($C$110=\"\",\"\",AL110/$C$110)","v":""},null,{"$f":"IF($C$110=\"\",\"\",AN110/$C$110)","v":""},null,{"$f":"IF($C$110=\"\",\"\",AP110/$C$110)","v":""},null,{"$f":"IF($C$110=\"\",\"\",AR110/$C$110)","v":""},null,{"$f":"IF($C$110=\"\",\"\",AT110/$C$110)","v":""},null,{"$f":"IF($C$110=\"\",\"\",AV110/$C$110)","v":""},null,{"$f":"IF($C$110=\"\",\"\",AX110/$C$110)","v":""},null,{"$f":"IF($C$110=\"\",\"\",AZ110/$C$110)","v":""},null,{"$f":"IF($C$110=\"\",\"\",BB110/$C$110)","v":""},null,0]
[null,null,null,null,{"$f":"IF($C$111=\"\",\"\",F111/$C$111)","v":""},null,{"$f":"IF($C$111=\"\",\"\",H111/$C$111)","v":""},null,{"$f":"IF($C$111=\"\",\"\",J111/$C$111)","v":""},null,{"$f":"IF($C$111=\"\",\"\",L111/$C$111)","v":""},null,{"$f":"IF($C$111=\"\",\"\",N111/$C$111)","v":""},null,{"$f":"IF($C$111=\"\",\"\",P111/$C$111)","v":""},null,{"$f":"IF($C$111=\"\",\"\",R111/$C$111)","v":""},null,{"$f":"IF($C$111=\"\",\"\",T111/$C$111)","v":""},null,{"$f":"IF($C$111=\"\",\"\",V111/$C$111)","v":""},null,{"$f":"IF($C$111=\"\",\"\",X111/$C$111)","v":""},null,{"$f":"IF($C$111=\"\",\"\",Z111/$C$111)","v":""},null,{"$f":"IF($C$111=\"\",\"\",AB111/$C$111)","v":""},null,{"$f":"IF($C$111=\"\",\"\",AD111/$C$111)","v":""},null,{"$f":"IF($C$111=\"\",\"\",AF111/$C$111)","v":""},null,{"$f":"IF($C$111=\"\",\"\",AH111/$C$111)","v":""},null,{"$f":"IF($C$111=\"\",\"\",AJ111/$C$111)","v":""},null,{"$f":"IF($C$111=\"\",\"\",AL111/$C$111)","v":""},null,{"$f":"IF($C$111=\"\",\"\",AN111/$C$111)","v":""},null,{"$f":"IF($C$111=\"\",\"\",AP111/$C$111)","v":""},null,{"$f":"IF($C$111=\"\",\"\",AR111/$C$111)","v":""},null,{"$f":"IF($C$111=\"\",\"\",AT111/$C$111)","v":""},null,{"$f":"IF($C$111=\"\",\"\",AV111/$C$111)","v":""},null,{"$f":"IF($C$111=\"\",\"\",AX111/$C$111)","v":""},null,{"$f":"IF($C$111=\"\",\"\",AZ111/$C$111)","v":""},null,{"$f":"IF($C$111=\"\",\"\",BB111/$C$111)","v":""},null,0]
[null,null,null,null,{"$f":"IF($C$112=\"\",\"\",F112/$C$112)","v":""},null,{"$f":"IF($C$112=\"\",\"\",H112/$C$112)","v":""},null,{"$f":"IF($C$112=\"\",\"\",J112/$C$112)","v":""},null,{"$f":"IF($C$112=\"\",\"\",L112/$C$112)","v":""},null,{"$f":"IF($C$112=\"\",\"\",N112/$C$112)","v":""},null,{"$f":"IF($C$112=\"\",\"\",P112/$C$112)","v":""},null,{"$f":"IF($C$112=\"\",\"\",R112/$C$112)","v":""},null,{"$f":"IF($C$112=\"\",\"\",T112/$C$112)","v":""},null,{"$f":"IF($C$112=\"\",\"\",V112/$C$112)","v":""},null,{"$f":"IF($C$112=\"\",\"\",X112/$C$112)","v":""},null,{"$f":"IF($C$112=\"\",\"\",Z112/$C$112)","v":""},null,{"$f":"IF($C$112=\"\",\"\",AB112/$C$112)","v":""},null,{"$f":"IF($C$112=\"\",\"\",AD112/$C$112)","v":""},null,{"$f":"IF($C$112=\"\",\"\",AF112/$C$112)","v":""},null,{"$f":"IF($C$112=\"\",\"\",AH112/$C$112)","v":""},null,{"$f":"IF($C$112=\"\",\"\",AJ112/$C$112)","v":""},null,{"$f":"IF($C$112=\"\",\"\",AL112/$C$112)","v":""},null,{"$f":"IF($C$112=\"\",\"\",AN112/$C$112)","v":""},null,{"$f":"IF($C$112=\"\",\"\",AP112/$C$112)","v":""},null,{"$f":"IF($C$112=\"\",\"\",AR112/$C$112)","v":""},null,{"$f":"IF($C$112=\"\",\"\",AT112/$C$112)","v":""},null,{"$f":"IF($C$112=\"\",\"\",AV112/$C$112)","v":""},null,{"$f":"IF($C$112=\"\",\"\",AX112/$C$112)","v":""},null,{"$f":"IF($C$112=\"\",\"\",AZ112/$C$112)","v":""},null,{"$f":"IF($C$112=\"\",\"\",BB112/$C$112)","v":""},null,0]
[null,null,null,null,{"$f":"IF($C$113=\"\",\"\",F113/$C$113)","v":""},null,{"$f":"IF($C$113=\"\",\"\",H113/$C$113)","v":""},null,{"$f":"IF($C$113=\"\",\"\",J113/$C$113)","v":""},null,{"$f":"IF($C$113=\"\",\"\",L113/$C$113)","v":""},null,{"$f":"IF($C$113=\"\",\"\",N113/$C$113)","v":""},null,{"$f":"IF($C$113=\"\",\"\",P113/$C$113)","v":""},null,{"$f":"IF($C$113=\"\",\"\",R113/$C$113)","v":""},null,{"$f":"IF($C$113=\"\",\"\",T113/$C$113)","v":""},null,{"$f":"IF($C$113=\"\",\"\",V113/$C$113)","v":""},null,{"$f":"IF($C$113=\"\",\"\",X113/$C$113)","v":""},null,{"$f":"IF($C$113=\"\",\"\",Z113/$C$113)","v":""},null,{"$f":"IF($C$113=\"\",\"\",AB113/$C$113)","v":""},null,{"$f":"IF($C$113=\"\",\"\",AD113/$C$113)","v":""},null,{"$f":"IF($C$113=\"\",\"\",AF113/$C$113)","v":""},null,{"$f":"IF($C$113=\"\",\"\",AH113/$C$113)","v":""},null,{"$f":"IF($C$113=\"\",\"\",AJ113/$C$113)","v":""},null,{"$f":"IF($C$113=\"\",\"\",AL113/$C$113)","v":""},null,{"$f":"IF($C$113=\"\",\"\",AN113/$C$113)","v":""},null,{"$f":"IF($C$113=\"\",\"\",AP113/$C$113)","v":""},null,{"$f":"IF($C$113=\"\",\"\",AR113/$C$113)","v":""},null,{"$f":"IF($C$113=\"\",\"\",AT113/$C$113)","v":""},null,{"$f":"IF($C$113=\"\",\"\",AV113/$C$113)","v":""},null,{"$f":"IF($C$113=\"\",\"\",AX113/$C$113)","v":""},null,{"$f":"IF($C$113=\"\",\"\",AZ113/$C$113)","v":""},null,{"$f":"IF($C$113=\"\",\"\",BB113/$C$113)","v":""},null,0]
[null,null,null,null,{"$f":"IF($C$114=\"\",\"\",F114/$C$114)","v":""},null,{"$f":"IF($C$114=\"\",\"\",H114/$C$114)","v":""},null,{"$f":"IF($C$114=\"\",\"\",J114/$C$114)","v":""},null,{"$f":"IF($C$114=\"\",\"\",L114/$C$114)","v":""},null,{"$f":"IF($C$114=\"\",\"\",N114/$C$114)","v":""},null,{"$f":"IF($C$114=\"\",\"\",P114/$C$114)","v":""},null,{"$f":"IF($C$114=\"\",\"\",R114/$C$114)","v":""},null,{"$f":"IF($C$114=\"\",\"\",T114/$C$114)","v":""},null,{"$f":"IF($C$114=\"\",\"\",V114/$C$114)","v":""},null,{"$f":"IF($C$114=\"\",\"\",X114/$C$114)","v":""},null,{"$f":"IF($C$114=\"\",\"\",Z114/$C$114)","v":""},null,{"$f":"IF($C$114=\"\",\"\",AB114/$C$114)","v":""},null,{"$f":"IF($C$114=\"\",\"\",AD114/$C$114)","v":""},null,{"$f":"IF($C$114=\"\",\"\",AF114/$C$114)","v":""},null,{"$f":"IF($C$114=\"\",\"\",AH114/$C$114)","v":""},null,{"$f":"IF($C$114=\"\",\"\",AJ114/$C$114)","v":""},null,{"$f":"IF($C$114=\"\",\"\",AL114/$C$114)","v":""},null,{"$f":"IF($C$114=\"\",\"\",AN114/$C$114)","v":""},null,{"$f":"IF($C$114=\"\",\"\",AP114/$C$114)","v":""},null,{"$f":"IF($C$114=\"\",\"\",AR114/$C$114)","v":""},null,{"$f":"IF($C$114=\"\",\"\",AT114/$C$114)","v":""},null,{"$f":"IF($C$114=\"\",\"\",AV114/$C$114)","v":""},null,{"$f":"IF($C$114=\"\",\"\",AX114/$C$114)","v":""},null,{"$f":"IF($C$114=\"\",\"\",AZ114/$C$114)","v":""},null,{"$f":"IF($C$114=\"\",\"\",BB114/$C$114)","v":""},null,{"$f":"SUM(BB114,AZ114,AX114,AV114,AT114,AR114,AP114,AN114,AL114,AJ114,AH114,AF114,AD114,AB114,Z114,X114,V114,T114,R114,P114,N114,L114,J114,H114,F114)","v":0}]
["TOTAL HOURS",null,null,null,null,{"$f":"SUM(F57:F114)","v":0},null,{"$f":"SUM(H57:H114)","v":0},null,{"$f":"SUM(J57:J114)","v":0},null,{"$f":"SUM(L57:L114)","v":0},null,{"$f":"SUM(N57:N114)","v":0},null,{"$f":"SUM(P57:P114)","v":0},null,{"$f":"SUM(R57:R114)","v":0},null,{"$f":"SUM(T57:T114)","v":0},null,{"$f":"SUM(V57:V114)","v":0},null,{"$f":"SUM(X57:X114)","v":0},null,{"$f":"SUM(Z57:Z114)","v":0},null,{"$f":"SUM(AB57:AB114)","v":0},null,{"$f":"SUM(AD57:AD114)","v":0},null,{"$f":"SUM(AF57:AF114)","v":0},null,{"$f":"SUM(AH57:AH114)","v":0},null,{"$f":"SUM(AJ57:AJ114)","v":0},null,{"$f":"SUM(AL57:AL114)","v":0},null,{"$f":"SUM(AN57:AN114)","v":0},null,{"$f":"SUM(AP57:AP114)","v":0},null,{"$f":"SUM(AR57:AR114)","v":0},null,{"$f":"SUM(AT57:AT114)","v":0},null,{"$f":"SUM(AV57:AV114)","v":0},null,{"$f":"SUM(AX57:AX114)","v":0},null,{"$f":"SUM(AZ57:AZ114)","v":0},null,{"$f":"SUM(BB57:BB114)","v":0},{"$f":"SUM(E115:BB115)","v":0}]
["TOTAL WORKDAYS",null,null,null,null,{"$f":"F115/8","v":0},null,{"$f":"H115/8","v":0},null,{"$f":"J115/8","v":0},null,{"$f":"L115/8","v":0},null,{"$f":"N115/8","v":0},null,{"$f":"P115/8","v":0},null,{"$f":"R115/8","v":0},null,{"$f":"T115/8","v":0},null,{"$f":"V115/8","v":0},null,{"$f":"X115/8","v":0},null,{"$f":"Z115/8","v":0},null,{"$f":"AB115/8","v":0},null,{"$f":"AD115/8","v":0},null,0,null,{"$f":"AH115/8","v":0},null,0,null,{"$f":"AL115/8","v":0},null,0,null,{"$f":"AP115/8","v":0},null,0,null,{"$f":"AT115/8","v":0},null,{"$f":"AV115/8","v":0},null,{"$f":"AX115/8","v":0},null,{"$f":"AZ115/8","v":0},null,{"$f":"BB115/8","v":0},{"$f":"SUM(E116:BB116)","v":0}]
["TOTAL RAW LABOR",null,null,null,null,{"$f":"$E$13*F115","v":0},null,{"$f":"$G$13*H115","v":0},null,{"$f":"$I$13*J115","v":0},null,{"$f":"$K$13*L115","v":0},null,{"$f":"$M$13*N115","v":0},null,{"$f":"$O$13*P115","v":0},null,{"$f":"$Q$13*R115","v":0},null,{"$f":"$S$13*T115","v":0},null,{"$f":"$U$13*V115","v":0},null,{"$f":"$W$13*X115","v":0},null,{"$f":"$Y$13*Z115","v":0},null,{"$f":"$AA$13*AB115","v":0},null,{"$f":"$AC$13*AD115","v":0},null,{"$f":"$AC$13*AF115","v":0},null,{"$f":"$AC$13*AH115","v":0},null,{"$f":"$AC$13*AJ115","v":0},null,{"$f":"$AC$13*AL115","v":0},null,{"$f":"$AC$13*AN115","v":0},null,{"$f":"$AC$13*AP115","v":0},null,{"$f":"$AC$13*AR115","v":0},null,{"$f":"$AC$13*AT115","v":0},null,{"$f":"$AC$13*AV115","v":0},null,{"$f":"$AC$13*AX115","v":0},null,{"$f":"$AC$13*AZ115","v":0},null,{"$f":"$AC$13*BB115","v":0},{"$f":"SUM(E117:BB117)","v":0}]
["Task 4.0     ","COMMUNICATIONS SYSTEM",null,null,null,null,null,null,null,null,null,null,null,null,null,null,null,null,null,null,null,null,null,null,null,null,null,null,null,null,null,null,null,null,null,null,null,null,null,null,null,null,null,null,null,null,null,null,null,null,null,null,null,null," "]
[4.0999999999999996,"Legacy Systems Review",null,null,{"$f":"IF($C$119=\"\",\"\",F119/$C$119)","v":""},null,{"$f":"IF($C$119=\"\",\"\",H119/$C$119)","v":""},null,{"$f":"IF($C$119=\"\",\"\",J119/$C$119)","v":""},null,{"$f":"IF($C$119=\"\",\"\",L119/$C$119)","v":""},null,{"$f":"IF($C$119=\"\",\"\",N119/$C$119)","v":""},null,{"$f":"IF($C$119=\"\",\"\",P119/$C$119)","v":""},null,{"$f":"IF($C$119=\"\",\"\",R119/$C$119)","v":""},null,{"$f":"IF($C$119=\"\",\"\",T119/$C$119)","v":""},null,{"$f":"IF($C$119=\"\",\"\",V119/$C$119)","v":""},null,{"$f":"IF($C$119=\"\",\"\",X119/$C$119)","v":""},null,{"$f":"IF($C$119=\"\",\"\",Z119/$C$119)","v":""},null,{"$f":"IF($C$119=\"\",\"\",AB119/$C$119)","v":""},null,{"$f":"IF($C$119=\"\",\"\",AD119/$C$119)","v":""},null,{"$f":"IF($C$119=\"\",\"\",AF119/$C$119)","v":""},null,{"$f":"IF($C$119=\"\",\"\",AH119/$C$119)","v":""},null,{"$f":"IF($C$119=\"\",\"\",AJ119/$C$119)","v":""},null,{"$f":"IF($C$119=\"\",\"\",AL119/$C$119)","v":""},null,{"$f":"IF($C$119=\"\",\"\",AN119/$C$119)","v":""},null,{"$f":"IF($C$119=\"\",\"\",AP119/$C$119)","v":""},null,{"$f":"IF($C$119=\"\",\"\",AR119/$C$119)","v":""},null,{"$f":"IF($C$119=\"\",\"\",AT119/$C$119)","v":""},null,{"$f":"IF($C$119=\"\",\"\",AV119/$C$119)","v":""},null,{"$f":"IF($C$119=\"\",\"\",AX119/$C$119)","v":""},null,{"$f":"IF($C$119=\"\",\"\",AZ119/$C$119)","v":""},null,{"$f":"IF($C$119=\"\",\"\",BB119/$C$119)","v":""},null,{"$f":"SUM(BB119,AZ119,AX119,AV119,AT119,AR119,AP119,AN119,AL119,AJ119,AH119,AF119,AD119,AB119,Z119,X119,V119,T119,R119,P119,N119,L119,J119,H119,F119)","v":0}]
[4.2,"Technology Review"]
["    4.2.1","    Wireless Site Surveys (Wireless Tests)",null,null,{"$f":"IF($C$121=\"\",\"\",F121/$C$121)","v":""},null,{"$f":"IF($C$121=\"\",\"\",H121/$C$121)","v":""},null,{"$f":"IF($C$121=\"\",\"\",J121/$C$121)","v":""},null,{"$f":"IF($C$121=\"\",\"\",L121/$C$121)","v":""},null,{"$f":"IF($C$121=\"\",\"\",N121/$C$121)","v":""},null,{"$f":"IF($C$121=\"\",\"\",P121/$C$121)","v":""},null,{"$f":"IF($C$121=\"\",\"\",R121/$C$121)","v":""},null,{"$f":"IF($C$121=\"\",\"\",T121/$C$121)","v":""},null,{"$f":"IF($C$121=\"\",\"\",V121/$C$121)","v":""},null,{"$f":"IF($C$121=\"\",\"\",X121/$C$121)","v":""},null,{"$f":"IF($C$121=\"\",\"\",Z121/$C$121)","v":""},null,{"$f":"IF($C$121=\"\",\"\",AB121/$C$121)","v":""},null,{"$f":"IF($C$121=\"\",\"\",AD121/$C$121)","v":""},null,{"$f":"IF($C$121=\"\",\"\",AF121/$C$121)","v":""},null,{"$f":"IF($C$121=\"\",\"\",AH121/$C$121)","v":""},null,{"$f":"IF($C$121=\"\",\"\",AJ121/$C$121)","v":""},null,{"$f":"IF($C$121=\"\",\"\",AL121/$C$121)","v":""},null,{"$f":"IF($C$121=\"\",\"\",AN121/$C$121)","v":""},null,{"$f":"IF($C$121=\"\",\"\",AP121/$C$121)","v":""},null,{"$f":"IF($C$121=\"\",\"\",AR121/$C$121)","v":""},null,{"$f":"IF($C$121=\"\",\"\",AT121/$C$121)","v":""},null,{"$f":"IF($C$121=\"\",\"\",AV121/$C$121)","v":""},null,{"$f":"IF($C$121=\"\",\"\",AX121/$C$121)","v":""},null,{"$f":"IF($C$121=\"\",\"\",AZ121/$C$121)","v":""},null,{"$f":"IF($C$121=\"\",\"\",BB121/$C$121)","v":""},null,{"$f":"SUM(BB121,AZ121,AX121,AV121,AT121,AR121,AP121,AN121,AL121,AJ121,AH121,AF121,AD121,AB121,Z121,X121,V121,T121,R121,P121,N121,L121,J121,H121,F121)","v":0}]
["    4.2.2","    Alternatives Evaluation",null,null,{"$f":"IF($C$122=\"\",\"\",F122/$C$122)","v":""},null,{"$f":"IF($C$122=\"\",\"\",H122/$C$122)","v":""},null,{"$f":"IF($C$122=\"\",\"\",J122/$C$122)","v":""},null,{"$f":"IF($C$122=\"\",\"\",L122/$C$122)","v":""},null,{"$f":"IF($C$122=\"\",\"\",N122/$C$122)","v":""},null,{"$f":"IF($C$122=\"\",\"\",P122/$C$122)","v":""},null,{"$f":"IF($C$122=\"\",\"\",R122/$C$122)","v":""},null,{"$f":"IF($C$122=\"\",\"\",T122/$C$122)","v":""},null,{"$f":"IF($C$122=\"\",\"\",V122/$C$122)","v":""},null,{"$f":"IF($C$122=\"\",\"\",X122/$C$122)","v":""},null,{"$f":"IF($C$122=\"\",\"\",Z122/$C$122)","v":""},null,{"$f":"IF($C$122=\"\",\"\",AB122/$C$122)","v":""},null,{"$f":"IF($C$122=\"\",\"\",AD122/$C$122)","v":""},null,{"$f":"IF($C$122=\"\",\"\",AF122/$C$122)","v":""},null,{"$f":"IF($C$122=\"\",\"\",AH122/$C$122)","v":""},null,{"$f":"IF($C$122=\"\",\"\",AJ122/$C$122)","v":""},null,{"$f":"IF($C$122=\"\",\"\",AL122/$C$122)","v":""},null,{"$f":"IF($C$122=\"\",\"\",AN122/$C$122)","v":""},null,{"$f":"IF($C$122=\"\",\"\",AP122/$C$122)","v":""},null,{"$f":"IF($C$122=\"\",\"\",AR122/$C$122)","v":""},null,{"$f":"IF($C$122=\"\",\"\",AT122/$C$122)","v":""},null,{"$f":"IF($C$122=\"\",\"\",AV122/$C$122)","v":""},null,{"$f":"IF($C$122=\"\",\"\",AX122/$C$122)","v":""},null,{"$f":"IF($C$122=\"\",\"\",AZ122/$C$122)","v":""},null,{"$f":"IF($C$122=\"\",\"\",BB122/$C$122)","v":""},null,0]
["    4.2.3",null,null,null,{"$f":"IF($C$123=\"\",\"\",F123/$C$123)","v":""},null,{"$f":"IF($C$123=\"\",\"\",H123/$C$123)","v":""},null,{"$f":"IF($C$123=\"\",\"\",J123/$C$123)","v":""},null,{"$f":"IF($C$123=\"\",\"\",L123/$C$123)","v":""},null,{"$f":"IF($C$123=\"\",\"\",N123/$C$123)","v":""},null,{"$f":"IF($C$123=\"\",\"\",P123/$C$123)","v":""},null,{"$f":"IF($C$123=\"\",\"\",R123/$C$123)","v":""},null,{"$f":"IF($C$123=\"\",\"\",T123/$C$123)","v":""},null,{"$f":"IF($C$123=\"\",\"\",V123/$C$123)","v":""},null,{"$f":"IF($C$123=\"\",\"\",X123/$C$123)","v":""},null,{"$f":"IF($C$123=\"\",\"\",Z123/$C$123)","v":""},null,{"$f":"IF($C$123=\"\",\"\",AB123/$C$123)","v":""},null,{"$f":"IF($C$123=\"\",\"\",AD123/$C$123)","v":""},null,{"$f":"IF($C$123=\"\",\"\",AF123/$C$123)","v":""},null,{"$f":"IF($C$123=\"\",\"\",AH123/$C$123)","v":""},null,{"$f":"IF($C$123=\"\",\"\",AJ123/$C$123)","v":""},null,{"$f":"IF($C$123=\"\",\"\",AL123/$C$123)","v":""},null,{"$f":"IF($C$123=\"\",\"\",AN123/$C$123)","v":""},null,{"$f":"IF($C$123=\"\",\"\",AP123/$C$123)","v":""},null,{"$f":"IF($C$123=\"\",\"\",AR123/$C$123)","v":""},null,{"$f":"IF($C$123=\"\",\"\",AT123/$C$123)","v":""},null,{"$f":"IF($C$123=\"\",\"\",AV123/$C$123)","v":""},null,{"$f":"IF($C$123=\"\",\"\",AX123/$C$123)","v":""},null,{"$f":"IF($C$123=\"\",\"\",AZ123/$C$123)","v":""},null,{"$f":"IF($C$123=\"\",\"\",BB123/$C$123)","v":""},null,0]
["    4.2.4",null,null,null,{"$f":"IF($C$124=\"\",\"\",F124/$C$124)","v":""},null,{"$f":"IF($C$124=\"\",\"\",H124/$C$124)","v":""},null,{"$f":"IF($C$124=\"\",\"\",J124/$C$124)","v":""},null,{"$f":"IF($C$124=\"\",\"\",L124/$C$124)","v":""},null,{"$f":"IF($C$124=\"\",\"\",N124/$C$124)","v":""},null,{"$f":"IF($C$124=\"\",\"\",P124/$C$124)","v":""},null,{"$f":"IF($C$124=\"\",\"\",R124/$C$124)","v":""},null,{"$f":"IF($C$124=\"\",\"\",T124/$C$124)","v":""},null,{"$f":"IF($C$124=\"\",\"\",V124/$C$124)","v":""},null,{"$f":"IF($C$124=\"\",\"\",X124/$C$124)","v":""},null,{"$f":"IF($C$124=\"\",\"\",Z124/$C$124)","v":""},null,{"$f":"IF($C$124=\"\",\"\",AB124/$C$124)","v":""},null,{"$f":"IF($C$124=\"\",\"\",AD124/$C$124)","v":""},null,{"$f":"IF($C$124=\"\",\"\",AF124/$C$124)","v":""},null,{"$f":"IF($C$124=\"\",\"\",AH124/$C$124)","v":""},null,{"$f":"IF($C$124=\"\",\"\",AJ124/$C$124)","v":""},null,{"$f":"IF($C$124=\"\",\"\",AL124/$C$124)","v":""},null,{"$f":"IF($C$124=\"\",\"\",AN124/$C$124)","v":""},null,{"$f":"IF($C$124=\"\",\"\",AP124/$C$124)","v":""},null,{"$f":"IF($C$124=\"\",\"\",AR124/$C$124)","v":""},null,{"$f":"IF($C$124=\"\",\"\",AT124/$C$124)","v":""},null,{"$f":"IF($C$124=\"\",\"\",AV124/$C$124)","v":""},null,{"$f":"IF($C$124=\"\",\"\",AX124/$C$124)","v":""},null,{"$f":"IF($C$124=\"\",\"\",AZ124/$C$124)","v":""},null,{"$f":"IF($C$124=\"\",\"\",BB124/$C$124)","v":""},null,0]
["    4.2.5",null,null,null,{"$f":"IF($C$125=\"\",\"\",F125/$C$125)","v":""},null,{"$f":"IF($C$125=\"\",\"\",H125/$C$125)","v":""},null,{"$f":"IF($C$125=\"\",\"\",J125/$C$125)","v":""},null,{"$f":"IF($C$125=\"\",\"\",L125/$C$125)","v":""},null,{"$f":"IF($C$125=\"\",\"\",N125/$C$125)","v":""},null,{"$f":"IF($C$125=\"\",\"\",P125/$C$125)","v":""},null,{"$f":"IF($C$125=\"\",\"\",R125/$C$125)","v":""},null,{"$f":"IF($C$125=\"\",\"\",T125/$C$125)","v":""},null,{"$f":"IF($C$125=\"\",\"\",V125/$C$125)","v":""},null,{"$f":"IF($C$125=\"\",\"\",X125/$C$125)","v":""},null,{"$f":"IF($C$125=\"\",\"\",Z125/$C$125)","v":""},null,{"$f":"IF($C$125=\"\",\"\",AB125/$C$125)","v":""},null,{"$f":"IF($C$125=\"\",\"\",AD125/$C$125)","v":""},null,{"$f":"IF($C$125=\"\",\"\",AF125/$C$125)","v":""},null,{"$f":"IF($C$125=\"\",\"\",AH125/$C$125)","v":""},null,{"$f":"IF($C$125=\"\",\"\",AJ125/$C$125)","v":""},null,{"$f":"IF($C$125=\"\",\"\",AL125/$C$125)","v":""},null,{"$f":"IF($C$125=\"\",\"\",AN125/$C$125)","v":""},null,{"$f":"IF($C$125=\"\",\"\",AP125/$C$125)","v":""},null,{"$f":"IF($C$125=\"\",\"\",AR125/$C$125)","v":""},null,{"$f":"IF($C$125=\"\",\"\",AT125/$C$125)","v":""},null,{"$f":"IF($C$125=\"\",\"\",AV125/$C$125)","v":""},null,{"$f":"IF($C$125=\"\",\"\",AX125/$C$125)","v":""},null,{"$f":"IF($C$125=\"\",\"\",AZ125/$C$125)","v":""},null,{"$f":"IF($C$125=\"\",\"\",BB125/$C$125)","v":""},null,0]
[4.3,"Migration Plan",null,null,{"$f":"IF($C$126=\"\",\"\",F126/$C$126)","v":""},null,{"$f":"IF($C$126=\"\",\"\",H126/$C$126)","v":""},null,{"$f":"IF($C$126=\"\",\"\",J126/$C$126)","v":""},null,{"$f":"IF($C$126=\"\",\"\",L126/$C$126)","v":""},null,{"$f":"IF($C$126=\"\",\"\",N126/$C$126)","v":""},null,{"$f":"IF($C$126=\"\",\"\",P126/$C$126)","v":""},null,{"$f":"IF($C$126=\"\",\"\",R126/$C$126)","v":""},null,{"$f":"IF($C$126=\"\",\"\",T126/$C$126)","v":""},null,{"$f":"IF($C$126=\"\",\"\",V126/$C$126)","v":""},null,{"$f":"IF($C$126=\"\",\"\",X126/$C$126)","v":""},null,{"$f":"IF($C$126=\"\",\"\",Z126/$C$126)","v":""},null,{"$f":"IF($C$126=\"\",\"\",AB126/$C$126)","v":""},null,{"$f":"IF($C$126=\"\",\"\",AD126/$C$126)","v":""},null,{"$f":"IF($C$126=\"\",\"\",AF126/$C$126)","v":""},null,{"$f":"IF($C$126=\"\",\"\",AH126/$C$126)","v":""},null,{"$f":"IF($C$126=\"\",\"\",AJ126/$C$126)","v":""},null,{"$f":"IF($C$126=\"\",\"\",AL126/$C$126)","v":""},null,{"$f":"IF($C$126=\"\",\"\",AN126/$C$126)","v":""},null,{"$f":"IF($C$126=\"\",\"\",AP126/$C$126)","v":""},null,{"$f":"IF($C$126=\"\",\"\",AR126/$C$126)","v":""},null,{"$f":"IF($C$126=\"\",\"\",AT126/$C$126)","v":""},null,{"$f":"IF($C$126=\"\",\"\",AV126/$C$126)","v":""},null,{"$f":"IF($C$126=\"\",\"\",AX126/$C$126)","v":""},null,{"$f":"IF($C$126=\"\",\"\",AZ126/$C$126)","v":""},null,{"$f":"IF($C$126=\"\",\"\",BB126/$C$126)","v":""},null,0]
[4.4000000000000004,"Bandwidth Analysis",null,null,{"$f":"IF($C$127=\"\",\"\",F127/$C$127)","v":""},null,{"$f":"IF($C$127=\"\",\"\",H127/$C$127)","v":""},null,{"$f":"IF($C$127=\"\",\"\",J127/$C$127)","v":""},null,{"$f":"IF($C$127=\"\",\"\",L127/$C$127)","v":""},null,{"$f":"IF($C$127=\"\",\"\",N127/$C$127)","v":""},null,{"$f":"IF($C$127=\"\",\"\",P127/$C$127)","v":""},null,{"$f":"IF($C$127=\"\",\"\",R127/$C$127)","v":""},null,{"$f":"IF($C$127=\"\",\"\",T127/$C$127)","v":""},null,{"$f":"IF($C$127=\"\",\"\",V127/$C$127)","v":""},null,{"$f":"IF($C$127=\"\",\"\",X127/$C$127)","v":""},null,{"$f":"IF($C$127=\"\",\"\",Z127/$C$127)","v":""},null,{"$f":"IF($C$127=\"\",\"\",AB127/$C$127)","v":""},null,{"$f":"IF($C$127=\"\",\"\",AD127/$C$127)","v":""},null,{"$f":"IF($C$127=\"\",\"\",AF127/$C$127)","v":""},null,{"$f":"IF($C$127=\"\",\"\",AH127/$C$127)","v":""},null,{"$f":"IF($C$127=\"\",\"\",AJ127/$C$127)","v":""},null,{"$f":"IF($C$127=\"\",\"\",AL127/$C$127)","v":""},null,{"$f":"IF($C$127=\"\",\"\",AN127/$C$127)","v":""},null,{"$f":"IF($C$127=\"\",\"\",AP127/$C$127)","v":""},null,{"$f":"IF($C$127=\"\",\"\",AR127/$C$127)","v":""},null,{"$f":"IF($C$127=\"\",\"\",AT127/$C$127)","v":""},null,{"$f":"IF($C$127=\"\",\"\",AV127/$C$127)","v":""},null,{"$f":"IF($C$127=\"\",\"\",AX127/$C$127)","v":""},null,{"$f":"IF($C$127=\"\",\"\",AZ127/$C$127)","v":""},null,{"$f":"IF($C$127=\"\",\"\",BB127/$C$127)","v":""},null,0]
[4.5,"Block Diagrams",null,null,{"$f":"IF($C$128=\"\",\"\",F128/$C$128)","v":""},null,{"$f":"IF($C$128=\"\",\"\",H128/$C$128)","v":""},null,{"$f":"IF($C$128=\"\",\"\",J128/$C$128)","v":""},null,{"$f":"IF($C$128=\"\",\"\",L128/$C$128)","v":""},null,{"$f":"IF($C$128=\"\",\"\",N128/$C$128)","v":""},null,{"$f":"IF($C$128=\"\",\"\",P128/$C$128)","v":""},null,{"$f":"IF($C$128=\"\",\"\",R128/$C$128)","v":""},null,{"$f":"IF($C$128=\"\",\"\",T128/$C$128)","v":""},null,{"$f":"IF($C$128=\"\",\"\",V128/$C$128)","v":""},null,{"$f":"IF($C$128=\"\",\"\",X128/$C$128)","v":""},null,{"$f":"IF($C$128=\"\",\"\",Z128/$C$128)","v":""},null,{"$f":"IF($C$128=\"\",\"\",AB128/$C$128)","v":""},null,{"$f":"IF($C$128=\"\",\"\",AD128/$C$128)","v":""},null,{"$f":"IF($C$128=\"\",\"\",AF128/$C$128)","v":""},null,{"$f":"IF($C$128=\"\",\"\",AH128/$C$128)","v":""},null,{"$f":"IF($C$128=\"\",\"\",AJ128/$C$128)","v":""},null,{"$f":"IF($C$128=\"\",\"\",AL128/$C$128)","v":""},null,{"$f":"IF($C$128=\"\",\"\",AN128/$C$128)","v":""},null,{"$f":"IF($C$128=\"\",\"\",AP128/$C$128)","v":""},null,{"$f":"IF($C$128=\"\",\"\",AR128/$C$128)","v":""},null,{"$f":"IF($C$128=\"\",\"\",AT128/$C$128)","v":""},null,{"$f":"IF($C$128=\"\",\"\",AV128/$C$128)","v":""},null,{"$f":"IF($C$128=\"\",\"\",AX128/$C$128)","v":""},null,{"$f":"IF($C$128=\"\",\"\",AZ128/$C$128)","v":""},null,{"$f":"IF($C$128=\"\",\"\",BB128/$C$128)","v":""},null,0]
[4.5999999999999996,"Prepare Communications Technical Memorandum",null,null,{"$f":"IF($C$129=\"\",\"\",F129/$C$129)","v":""},null,{"$f":"IF($C$129=\"\",\"\",H129/$C$129)","v":""},null,{"$f":"IF($C$129=\"\",\"\",J129/$C$129)","v":""},null,{"$f":"IF($C$129=\"\",\"\",L129/$C$129)","v":""},null,{"$f":"IF($C$129=\"\",\"\",N129/$C$129)","v":""},null,{"$f":"IF($C$129=\"\",\"\",P129/$C$129)","v":""},null,{"$f":"IF($C$129=\"\",\"\",R129/$C$129)","v":""},null,{"$f":"IF($C$129=\"\",\"\",T129/$C$129)","v":""},null,{"$f":"IF($C$129=\"\",\"\",V129/$C$129)","v":""},null,{"$f":"IF($C$129=\"\",\"\",X129/$C$129)","v":""},null,{"$f":"IF($C$129=\"\",\"\",Z129/$C$129)","v":""},null,{"$f":"IF($C$129=\"\",\"\",AB129/$C$129)","v":""},null,{"$f":"IF($C$129=\"\",\"\",AD129/$C$129)","v":""},null,{"$f":"IF($C$129=\"\",\"\",AF129/$C$129)","v":""},null,{"$f":"IF($C$129=\"\",\"\",AH129/$C$129)","v":""},null,{"$f":"IF($C$129=\"\",\"\",AJ129/$C$129)","v":""},null,{"$f":"IF($C$129=\"\",\"\",AL129/$C$129)","v":""},null,{"$f":"IF($C$129=\"\",\"\",AN129/$C$129)","v":""},null,{"$f":"IF($C$129=\"\",\"\",AP129/$C$129)","v":""},null,{"$f":"IF($C$129=\"\",\"\",AR129/$C$129)","v":""},null,{"$f":"IF($C$129=\"\",\"\",AT129/$C$129)","v":""},null,{"$f":"IF($C$129=\"\",\"\",AV129/$C$129)","v":""},null,{"$f":"IF($C$129=\"\",\"\",AX129/$C$129)","v":""},null,{"$f":"IF($C$129=\"\",\"\",AZ129/$C$129)","v":""},null,{"$f":"IF($C$129=\"\",\"\",BB129/$C$129)","v":""},null,0]
[4.7,"Quality Reviews",null,null,{"$f":"IF($C$130=\"\",\"\",F130/$C$130)","v":""},null,{"$f":"IF($C$130=\"\",\"\",H130/$C$130)","v":""},null,{"$f":"IF($C$130=\"\",\"\",J130/$C$130)","v":""},null,{"$f":"IF($C$130=\"\",\"\",L130/$C$130)","v":""},null,{"$f":"IF($C$130=\"\",\"\",N130/$C$130)","v":""},null,{"$f":"IF($C$130=\"\",\"\",P130/$C$130)","v":""},null,{"$f":"IF($C$130=\"\",\"\",R130/$C$130)","v":""},null,{"$f":"IF($C$130=\"\",\"\",T130/$C$130)","v":""},null,{"$f":"IF($C$130=\"\",\"\",V130/$C$130)","v":""},null,{"$f":"IF($C$130=\"\",\"\",X130/$C$130)","v":""},null,{"$f":"IF($C$130=\"\",\"\",Z130/$C$130)","v":""},null,{"$f":"IF($C$130=\"\",\"\",AB130/$C$130)","v":""},null,{"$f":"IF($C$130=\"\",\"\",AD130/$C$130)","v":""},null,{"$f":"IF($C$130=\"\",\"\",AF130/$C$130)","v":""},null,{"$f":"IF($C$130=\"\",\"\",AH130/$C$130)","v":""},null,{"$f":"IF($C$130=\"\",\"\",AJ130/$C$130)","v":""},null,{"$f":"IF($C$130=\"\",\"\",AL130/$C$130)","v":""},null,{"$f":"IF($C$130=\"\",\"\",AN130/$C$130)","v":""},null,{"$f":"IF($C$130=\"\",\"\",AP130/$C$130)","v":""},null,{"$f":"IF($C$130=\"\",\"\",AR130/$C$130)","v":""},null,{"$f":"IF($C$130=\"\",\"\",AT130/$C$130)","v":""},null,{"$f":"IF($C$130=\"\",\"\",AV130/$C$130)","v":""},null,{"$f":"IF($C$130=\"\",\"\",AX130/$C$130)","v":""},null,{"$f":"IF($C$130=\"\",\"\",AZ130/$C$130)","v":""},null,{"$f":"IF($C$130=\"\",\"\",BB130/$C$130)","v":""},null,0]
[null,null,null,null,{"$f":"IF($C$131=\"\",\"\",F131/$C$131)","v":""},null,{"$f":"IF($C$131=\"\",\"\",H131/$C$131)","v":""},null,{"$f":"IF($C$131=\"\",\"\",J131/$C$131)","v":""},null,{"$f":"IF($C$131=\"\",\"\",L131/$C$131)","v":""},null,{"$f":"IF($C$131=\"\",\"\",N131/$C$131)","v":""},null,{"$f":"IF($C$131=\"\",\"\",P131/$C$131)","v":""},null,{"$f":"IF($C$131=\"\",\"\",R131/$C$131)","v":""},null,{"$f":"IF($C$131=\"\",\"\",T131/$C$131)","v":""},null,{"$f":"IF($C$131=\"\",\"\",V131/$C$131)","v":""},null,{"$f":"IF($C$131=\"\",\"\",X131/$C$131)","v":""},null,{"$f":"IF($C$131=\"\",\"\",Z131/$C$131)","v":""},null,{"$f":"IF($C$131=\"\",\"\",AB131/$C$131)","v":""},null,{"$f":"IF($C$131=\"\",\"\",AD131/$C$131)","v":""},null,{"$f":"IF($C$131=\"\",\"\",AF131/$C$131)","v":""},null,{"$f":"IF($C$131=\"\",\"\",AH131/$C$131)","v":""},null,{"$f":"IF($C$131=\"\",\"\",AJ131/$C$131)","v":""},null,{"$f":"IF($C$131=\"\",\"\",AL131/$C$131)","v":""},null,{"$f":"IF($C$131=\"\",\"\",AN131/$C$131)","v":""},null,{"$f":"IF($C$131=\"\",\"\",AP131/$C$131)","v":""},null,{"$f":"IF($C$131=\"\",\"\",AR131/$C$131)","v":""},null,{"$f":"IF($C$131=\"\",\"\",AT131/$C$131)","v":""},null,{"$f":"IF($C$131=\"\",\"\",AV131/$C$131)","v":""},null,{"$f":"IF($C$131=\"\",\"\",AX131/$C$131)","v":""},null,{"$f":"IF($C$131=\"\",\"\",AZ131/$C$131)","v":""},null,{"$f":"IF($C$131=\"\",\"\",BB131/$C$131)","v":""},null,0]
[null,null,null,null,{"$f":"IF($C$132=\"\",\"\",F132/$C$132)","v":""},null,{"$f":"IF($C$132=\"\",\"\",H132/$C$132)","v":""},null,{"$f":"IF($C$132=\"\",\"\",J132/$C$132)","v":""},null,{"$f":"IF($C$132=\"\",\"\",L132/$C$132)","v":""},null,{"$f":"IF($C$132=\"\",\"\",N132/$C$132)","v":""},null,{"$f":"IF($C$132=\"\",\"\",P132/$C$132)","v":""},null,{"$f":"IF($C$132=\"\",\"\",R132/$C$132)","v":""},null,{"$f":"IF($C$132=\"\",\"\",T132/$C$132)","v":""},null,{"$f":"IF($C$132=\"\",\"\",V132/$C$132)","v":""},null,{"$f":"IF($C$132=\"\",\"\",X132/$C$132)","v":""},null,{"$f":"IF($C$132=\"\",\"\",Z132/$C$132)","v":""},null,{"$f":"IF($C$132=\"\",\"\",AB132/$C$132)","v":""},null,{"$f":"IF($C$132=\"\",\"\",AD132/$C$132)","v":""},null,{"$f":"IF($C$132=\"\",\"\",AF132/$C$132)","v":""},null,{"$f":"IF($C$132=\"\",\"\",AH132/$C$132)","v":""},null,{"$f":"IF($C$132=\"\",\"\",AJ132/$C$132)","v":""},null,{"$f":"IF($C$132=\"\",\"\",AL132/$C$132)","v":""},null,{"$f":"IF($C$132=\"\",\"\",AN132/$C$132)","v":""},null,{"$f":"IF($C$132=\"\",\"\",AP132/$C$132)","v":""},null,{"$f":"IF($C$132=\"\",\"\",AR132/$C$132)","v":""},null,{"$f":"IF($C$132=\"\",\"\",AT132/$C$132)","v":""},null,{"$f":"IF($C$132=\"\",\"\",AV132/$C$132)","v":""},null,{"$f":"IF($C$132=\"\",\"\",AX132/$C$132)","v":""},null,{"$f":"IF($C$132=\"\",\"\",AZ132/$C$132)","v":""},null,{"$f":"IF($C$132=\"\",\"\",BB132/$C$132)","v":""},null,0]
[null,null,null,null,{"$f":"IF($C$133=\"\",\"\",F133/$C$133)","v":""},null,{"$f":"IF($C$133=\"\",\"\",H133/$C$133)","v":""},null,{"$f":"IF($C$133=\"\",\"\",J133/$C$133)","v":""},null,{"$f":"IF($C$133=\"\",\"\",L133/$C$133)","v":""},null,{"$f":"IF($C$133=\"\",\"\",N133/$C$133)","v":""},null,{"$f":"IF($C$133=\"\",\"\",P133/$C$133)","v":""},null,{"$f":"IF($C$133=\"\",\"\",R133/$C$133)","v":""},null,{"$f":"IF($C$133=\"\",\"\",T133/$C$133)","v":""},null,{"$f":"IF($C$133=\"\",\"\",V133/$C$133)","v":""},null,{"$f":"IF($C$133=\"\",\"\",X133/$C$133)","v":""},null,{"$f":"IF($C$133=\"\",\"\",Z133/$C$133)","v":""},null,{"$f":"IF($C$133=\"\",\"\",AB133/$C$133)","v":""},null,{"$f":"IF($C$133=\"\",\"\",AD133/$C$133)","v":""},null,{"$f":"IF($C$133=\"\",\"\",AF133/$C$133)","v":""},null,{"$f":"IF($C$133=\"\",\"\",AH133/$C$133)","v":""},null,{"$f":"IF($C$133=\"\",\"\",AJ133/$C$133)","v":""},null,{"$f":"IF($C$133=\"\",\"\",AL133/$C$133)","v":""},null,{"$f":"IF($C$133=\"\",\"\",AN133/$C$133)","v":""},null,{"$f":"IF($C$133=\"\",\"\",AP133/$C$133)","v":""},null,{"$f":"IF($C$133=\"\",\"\",AR133/$C$133)","v":""},null,{"$f":"IF($C$133=\"\",\"\",AT133/$C$133)","v":""},null,{"$f":"IF($C$133=\"\",\"\",AV133/$C$133)","v":""},null,{"$f":"IF($C$133=\"\",\"\",AX133/$C$133)","v":""},null,{"$f":"IF($C$133=\"\",\"\",AZ133/$C$133)","v":""},null,{"$f":"IF($C$133=\"\",\"\",BB133/$C$133)","v":""},null,0]
[null,null,null,null,{"$f":"IF($C$134=\"\",\"\",F134/$C$134)","v":""},null,{"$f":"IF($C$134=\"\",\"\",H134/$C$134)","v":""},null,{"$f":"IF($C$134=\"\",\"\",J134/$C$134)","v":""},null,{"$f":"IF($C$134=\"\",\"\",L134/$C$134)","v":""},null,{"$f":"IF($C$134=\"\",\"\",N134/$C$134)","v":""},null,{"$f":"IF($C$134=\"\",\"\",P134/$C$134)","v":""},null,{"$f":"IF($C$134=\"\",\"\",R134/$C$134)","v":""},null,{"$f":"IF($C$134=\"\",\"\",T134/$C$134)","v":""},null,{"$f":"IF($C$134=\"\",\"\",V134/$C$134)","v":""},null,{"$f":"IF($C$134=\"\",\"\",X134/$C$134)","v":""},null,{"$f":"IF($C$134=\"\",\"\",Z134/$C$134)","v":""},null,{"$f":"IF($C$134=\"\",\"\",AB134/$C$134)","v":""},null,{"$f":"IF($C$134=\"\",\"\",AD134/$C$134)","v":""},null,{"$f":"IF($C$134=\"\",\"\",AF134/$C$134)","v":""},null,{"$f":"IF($C$134=\"\",\"\",AH134/$C$134)","v":""},null,{"$f":"IF($C$134=\"\",\"\",AJ134/$C$134)","v":""},null,{"$f":"IF($C$134=\"\",\"\",AL134/$C$134)","v":""},null,{"$f":"IF($C$134=\"\",\"\",AN134/$C$134)","v":""},null,{"$f":"IF($C$134=\"\",\"\",AP134/$C$134)","v":""},null,{"$f":"IF($C$134=\"\",\"\",AR134/$C$134)","v":""},null,{"$f":"IF($C$134=\"\",\"\",AT134/$C$134)","v":""},null,{"$f":"IF($C$134=\"\",\"\",AV134/$C$134)","v":""},null,{"$f":"IF($C$134=\"\",\"\",AX134/$C$134)","v":""},null,{"$f":"IF($C$134=\"\",\"\",AZ134/$C$134)","v":""},null,{"$f":"IF($C$134=\"\",\"\",BB134/$C$134)","v":""},null,0]
[null,null,null,null,{"$f":"IF($C$135=\"\",\"\",F135/$C$135)","v":""},null,{"$f":"IF($C$135=\"\",\"\",H135/$C$135)","v":""},null,{"$f":"IF($C$135=\"\",\"\",J135/$C$135)","v":""},null,{"$f":"IF($C$135=\"\",\"\",L135/$C$135)","v":""},null,{"$f":"IF($C$135=\"\",\"\",N135/$C$135)","v":""},null,{"$f":"IF($C$135=\"\",\"\",P135/$C$135)","v":""},null,{"$f":"IF($C$135=\"\",\"\",R135/$C$135)","v":""},null,{"$f":"IF($C$135=\"\",\"\",T135/$C$135)","v":""},null,{"$f":"IF($C$135=\"\",\"\",V135/$C$135)","v":""},null,{"$f":"IF($C$135=\"\",\"\",X135/$C$135)","v":""},null,{"$f":"IF($C$135=\"\",\"\",Z135/$C$135)","v":""},null,{"$f":"IF($C$135=\"\",\"\",AB135/$C$135)","v":""},null,{"$f":"IF($C$135=\"\",\"\",AD135/$C$135)","v":""},null,{"$f":"IF($C$135=\"\",\"\",AF135/$C$135)","v":""},null,{"$f":"IF($C$135=\"\",\"\",AH135/$C$135)","v":""},null,{"$f":"IF($C$135=\"\",\"\",AJ135/$C$135)","v":""},null,{"$f":"IF($C$135=\"\",\"\",AL135/$C$135)","v":""},null,{"$f":"IF($C$135=\"\",\"\",AN135/$C$135)","v":""},null,{"$f":"IF($C$135=\"\",\"\",AP135/$C$135)","v":""},null,{"$f":"IF($C$135=\"\",\"\",AR135/$C$135)","v":""},null,{"$f":"IF($C$135=\"\",\"\",AT135/$C$135)","v":""},null,{"$f":"IF($C$135=\"\",\"\",AV135/$C$135)","v":""},null,{"$f":"IF($C$135=\"\",\"\",AX135/$C$135)","v":""},null,{"$f":"IF($C$135=\"\",\"\",AZ135/$C$135)","v":""},null,{"$f":"IF($C$135=\"\",\"\",BB135/$C$135)","v":""},null,0]
[null,null,null,null,{"$f":"IF($C$136=\"\",\"\",F136/$C$136)","v":""},null,{"$f":"IF($C$136=\"\",\"\",H136/$C$136)","v":""},null,{"$f":"IF($C$136=\"\",\"\",J136/$C$136)","v":""},null,{"$f":"IF($C$136=\"\",\"\",L136/$C$136)","v":""},null,{"$f":"IF($C$136=\"\",\"\",N136/$C$136)","v":""},null,{"$f":"IF($C$136=\"\",\"\",P136/$C$136)","v":""},null,{"$f":"IF($C$136=\"\",\"\",R136/$C$136)","v":""},null,{"$f":"IF($C$136=\"\",\"\",T136/$C$136)","v":""},null,{"$f":"IF($C$136=\"\",\"\",V136/$C$136)","v":""},null,{"$f":"IF($C$136=\"\",\"\",X136/$C$136)","v":""},null,{"$f":"IF($C$136=\"\",\"\",Z136/$C$136)","v":""},null,{"$f":"IF($C$136=\"\",\"\",AB136/$C$136)","v":""},null,{"$f":"IF($C$136=\"\",\"\",AD136/$C$136)","v":""},null,{"$f":"IF($C$136=\"\",\"\",AF136/$C$136)","v":""},null,{"$f":"IF($C$136=\"\",\"\",AH136/$C$136)","v":""},null,{"$f":"IF($C$136=\"\",\"\",AJ136/$C$136)","v":""},null,{"$f":"IF($C$136=\"\",\"\",AL136/$C$136)","v":""},null,{"$f":"IF($C$136=\"\",\"\",AN136/$C$136)","v":""},null,{"$f":"IF($C$136=\"\",\"\",AP136/$C$136)","v":""},null,{"$f":"IF($C$136=\"\",\"\",AR136/$C$136)","v":""},null,{"$f":"IF($C$136=\"\",\"\",AT136/$C$136)","v":""},null,{"$f":"IF($C$136=\"\",\"\",AV136/$C$136)","v":""},null,{"$f":"IF($C$136=\"\",\"\",AX136/$C$136)","v":""},null,{"$f":"IF($C$136=\"\",\"\",AZ136/$C$136)","v":""},null,{"$f":"IF($C$136=\"\",\"\",BB136/$C$136)","v":""},null,0]
[null,null,null,null,{"$f":"IF($C$137=\"\",\"\",F137/$C$137)","v":""},null,{"$f":"IF($C$137=\"\",\"\",H137/$C$137)","v":""},null,{"$f":"IF($C$137=\"\",\"\",J137/$C$137)","v":""},null,{"$f":"IF($C$137=\"\",\"\",L137/$C$137)","v":""},null,{"$f":"IF($C$137=\"\",\"\",N137/$C$137)","v":""},null,{"$f":"IF($C$137=\"\",\"\",P137/$C$137)","v":""},null,{"$f":"IF($C$137=\"\",\"\",R137/$C$137)","v":""},null,{"$f":"IF($C$137=\"\",\"\",T137/$C$137)","v":""},null,{"$f":"IF($C$137=\"\",\"\",V137/$C$137)","v":""},null,{"$f":"IF($C$137=\"\",\"\",X137/$C$137)","v":""},null,{"$f":"IF($C$137=\"\",\"\",Z137/$C$137)","v":""},null,{"$f":"IF($C$137=\"\",\"\",AB137/$C$137)","v":""},null,{"$f":"IF($C$137=\"\",\"\",AD137/$C$137)","v":""},null,{"$f":"IF($C$137=\"\",\"\",AF137/$C$137)","v":""},null,{"$f":"IF($C$137=\"\",\"\",AH137/$C$137)","v":""},null,{"$f":"IF($C$137=\"\",\"\",AJ137/$C$137)","v":""},null,{"$f":"IF($C$137=\"\",\"\",AL137/$C$137)","v":""},null,{"$f":"IF($C$137=\"\",\"\",AN137/$C$137)","v":""},null,{"$f":"IF($C$137=\"\",\"\",AP137/$C$137)","v":""},null,{"$f":"IF($C$137=\"\",\"\",AR137/$C$137)","v":""},null,{"$f":"IF($C$137=\"\",\"\",AT137/$C$137)","v":""},null,{"$f":"IF($C$137=\"\",\"\",AV137/$C$137)","v":""},null,{"$f":"IF($C$137=\"\",\"\",AX137/$C$137)","v":""},null,{"$f":"IF($C$137=\"\",\"\",AZ137/$C$137)","v":""},null,{"$f":"IF($C$137=\"\",\"\",BB137/$C$137)","v":""},null,{"$f":"SUM(BB137,AZ137,AX137,AV137,AT137,AR137,AP137,AN137,AL137,AJ137,AH137,AF137,AD137,AB137,Z137,X137,V137,T137,R137,P137,N137,L137,J137,H137,F137)","v":0}]
["TOTAL HOURS",null,null,null,null,{"$f":"SUM(F119:F137)","v":0},null,{"$f":"SUM(H119:H137)","v":0},null,{"$f":"SUM(J119:J137)","v":0},null,{"$f":"SUM(L119:L137)","v":0},null,{"$f":"SUM(N119:N137)","v":0},null,{"$f":"SUM(P119:P137)","v":0},null,{"$f":"SUM(R119:R137)","v":0},null,{"$f":"SUM(T119:T137)","v":0},null,{"$f":"SUM(V119:V137)","v":0},null,{"$f":"SUM(X119:X137)","v":0},null,{"$f":"SUM(Z119:Z137)","v":0},null,{"$f":"SUM(AB119:AB137)","v":0},null,{"$f":"SUM(AD119:AD137)","v":0},null,{"$f":"SUM(AF119:AF137)","v":0},null,{"$f":"SUM(AH119:AH137)","v":0},null,{"$f":"SUM(AJ119:AJ137)","v":0},null,{"$f":"SUM(AL119:AL137)","v":0},null,{"$f":"SUM(AN119:AN137)","v":0},null,{"$f":"SUM(AP119:AP137)","v":0},null,{"$f":"SUM(AR119:AR137)","v":0},null,{"$f":"SUM(AT119:AT137)","v":0},null,{"$f":"SUM(AV119:AV137)","v":0},null,{"$f":"SUM(AX119:AX137)","v":0},null,{"$f":"SUM(AZ119:AZ137)","v":0},null,{"$f":"SUM(BB119:BB137)","v":0},{"$f":"SUM(E138:BB138)","v":0}]
["TOTAL WORKDAYS",null,null,null,null,{"$f":"F138/8","v":0},null,{"$f":"H138/8","v":0},null,{"$f":"J138/8","v":0},null,{"$f":"L138/8","v":0},null,{"$f":"N138/8","v":0},null,{"$f":"P138/8","v":0},null,{"$f":"R138/8","v":0},null,{"$f":"T138/8","v":0},null,{"$f":"V138/8","v":0},null,{"$f":"X138/8","v":0},null,{"$f":"Z138/8","v":0},null,{"$f":"AB138/8","v":0},null,{"$f":"AD138/8","v":0},null,0,null,{"$f":"AH138/8","v":0},null,0,null,{"$f":"AL138/8","v":0},null,0,null,{"$f":"AP138/8","v":0},null,0,null,{"$f":"AT138/8","v":0},null,{"$f":"AV138/8","v":0},null,{"$f":"AX138/8","v":0},null,{"$f":"AZ138/8","v":0},null,{"$f":"BB138/8","v":0},{"$f":"SUM(E139:BB139)","v":0}]
["TOTAL RAW LABOR",null,null,null,null,{"$f":"$E$13*F138","v":0},null,{"$f":"$G$13*H138","v":0},null,{"$f":"$I$13*J138","v":0},null,{"$f":"$K$13*L138","v":0},null,{"$f":"$M$13*N138","v":0},null,{"$f":"$O$13*P138","v":0},null,{"$f":"$Q$13*R138","v":0},null,{"$f":"$S$13*T138","v":0},null,{"$f":"$U$13*V138","v":0},null,{"$f":"$W$13*X138","v":0},null,{"$f":"$Y$13*Z138","v":0},null,{"$f":"$AA$13*AB138","v":0},null,{"$f":"$AC$13*AD138","v":0},null,{"$f":"$AC$13*AF138","v":0},null,{"$f":"$AC$13*AH138","v":0},null,{"$f":"$AC$13*AJ138","v":0},null,{"$f":"$AC$13*AL138","v":0},null,{"$f":"$AC$13*AN138","v":0},null,{"$f":"$AC$13*AP138","v":0},null,{"$f":"$AC$13*AR138","v":0},null,{"$f":"$AC$13*AT138","v":0},null,{"$f":"$AC$13*AV138","v":0},null,{"$f":"$AC$13*AX138","v":0},null,{"$f":"$AC$13*AZ138","v":0},null,{"$f":"$AC$13*BB138","v":0},{"$f":"SUM(E140:BB140)","v":0}]
["Task 5.0     ","FIELD EQUIPMENT INVENTORIES"]
[5.0999999999999996,"Existing Data Collection",null,null,{"$f":"IF($C$142=\"\",\"\",F142/$C$142)","v":""},null,{"$f":"IF($C$142=\"\",\"\",H142/$C$142)","v":""},null,{"$f":"IF($C$142=\"\",\"\",J142/$C$142)","v":""},null,{"$f":"IF($C$142=\"\",\"\",L142/$C$142)","v":""},null,{"$f":"IF($C$142=\"\",\"\",N142/$C$142)","v":""},null,{"$f":"IF($C$142=\"\",\"\",P142/$C$142)","v":""},null,{"$f":"IF($C$142=\"\",\"\",R142/$C$142)","v":""},null,{"$f":"IF($C$142=\"\",\"\",T142/$C$142)","v":""},null,{"$f":"IF($C$142=\"\",\"\",V142/$C$142)","v":""},null,{"$f":"IF($C$142=\"\",\"\",X142/$C$142)","v":""},null,{"$f":"IF($C$142=\"\",\"\",Z142/$C$142)","v":""},null,{"$f":"IF($C$142=\"\",\"\",AB142/$C$142)","v":""},null,{"$f":"IF($C$142=\"\",\"\",AD142/$C$142)","v":""},null,{"$f":"IF($C$142=\"\",\"\",AF142/$C$142)","v":""},null,{"$f":"IF($C$142=\"\",\"\",AH142/$C$142)","v":""},null,{"$f":"IF($C$142=\"\",\"\",AJ142/$C$142)","v":""},null,{"$f":"IF($C$142=\"\",\"\",AL142/$C$142)","v":""},null,{"$f":"IF($C$142=\"\",\"\",AN142/$C$142)","v":""},null,{"$f":"IF($C$142=\"\",\"\",AP142/$C$142)","v":""},null,{"$f":"IF($C$142=\"\",\"\",AR142/$C$142)","v":""},null,{"$f":"IF($C$142=\"\",\"\",AT142/$C$142)","v":""},null,{"$f":"IF($C$142=\"\",\"\",AV142/$C$142)","v":""},null,{"$f":"IF($C$142=\"\",\"\",AX142/$C$142)","v":""},null,{"$f":"IF($C$142=\"\",\"\",AZ142/$C$142)","v":""},null,{"$f":"IF($C$142=\"\",\"\",BB142/$C$142)","v":""},null,{"$f":"SUM(BB142,AZ142,AX142,AV142,AT142,AR142,AP142,AN142,AL142,AJ142,AH142,AF142,AD142,AB142,Z142,X142,V142,T142,R142,P142,N142,L142,J142,H142,F142)","v":0}]
[5.2,"Signal Inventories"]
["    5.2.1","    Inventory Existing NCDOT Signals",null,null,{"$f":"IF($C$144=\"\",\"\",F144/$C$144)","v":""},null,{"$f":"IF($C$144=\"\",\"\",H144/$C$144)","v":""},null,{"$f":"IF($C$144=\"\",\"\",J144/$C$144)","v":""},null,{"$f":"IF($C$144=\"\",\"\",L144/$C$144)","v":""},null,{"$f":"IF($C$144=\"\",\"\",N144/$C$144)","v":""},null,{"$f":"IF($C$144=\"\",\"\",P144/$C$144)","v":""},null,{"$f":"IF($C$144=\"\",\"\",R144/$C$144)","v":""},null,{"$f":"IF($C$144=\"\",\"\",T144/$C$144)","v":""},null,{"$f":"IF($C$144=\"\",\"\",V144/$C$144)","v":""},null,{"$f":"IF($C$144=\"\",\"\",X144/$C$144)","v":""},null,{"$f":"IF($C$144=\"\",\"\",Z144/$C$144)","v":""},null,{"$f":"IF($C$144=\"\",\"\",AB144/$C$144)","v":""},null,{"$f":"IF($C$144=\"\",\"\",AD144/$C$144)","v":""},null,{"$f":"IF($C$144=\"\",\"\",AF144/$C$144)","v":""},null,{"$f":"IF($C$144=\"\",\"\",AH144/$C$144)","v":""},null,{"$f":"IF($C$144=\"\",\"\",AJ144/$C$144)","v":""},null,{"$f":"IF($C$144=\"\",\"\",AL144/$C$144)","v":""},null,{"$f":"IF($C$144=\"\",\"\",AN144/$C$144)","v":""},null,{"$f":"IF($C$144=\"\",\"\",AP144/$C$144)","v":""},null,{"$f":"IF($C$144=\"\",\"\",AR144/$C$144)","v":""},null,{"$f":"IF($C$144=\"\",\"\",AT144/$C$144)","v":""},null,{"$f":"IF($C$144=\"\",\"\",AV144/$C$144)","v":""},null,{"$f":"IF($C$144=\"\",\"\",AX144/$C$144)","v":""},null,{"$f":"IF($C$144=\"\",\"\",AZ144/$C$144)","v":""},null,{"$f":"IF($C$144=\"\",\"\",BB144/$C$144)","v":""},null,{"$f":"SUM(BB144,AZ144,AX144,AV144,AT144,AR144,AP144,AN144,AL144,AJ144,AH144,AF144,AD144,AB144,Z144,X144,V144,T144,R144,P144,N144,L144,J144,H144,F144)","v":0}]
["    5.2.2","    Inventory Existing City Signals",null,null,{"$f":"IF($C$145=\"\",\"\",F145/$C$145)","v":""},null,{"$f":"IF($C$145=\"\",\"\",H145/$C$145)","v":""},null,{"$f":"IF($C$145=\"\",\"\",J145/$C$145)","v":""},null,{"$f":"IF($C$145=\"\",\"\",L145/$C$145)","v":""},null,{"$f":"IF($C$145=\"\",\"\",N145/$C$145)","v":""},null,{"$f":"IF($C$145=\"\",\"\",P145/$C$145)","v":""},null,{"$f":"IF($C$145=\"\",\"\",R145/$C$145)","v":""},null,{"$f":"IF($C$145=\"\",\"\",T145/$C$145)","v":""},null,{"$f":"IF($C$145=\"\",\"\",V145/$C$145)","v":""},null,{"$f":"IF($C$145=\"\",\"\",X145/$C$145)","v":""},null,{"$f":"IF($C$145=\"\",\"\",Z145/$C$145)","v":""},null,{"$f":"IF($C$145=\"\",\"\",AB145/$C$145)","v":""},null,{"$f":"IF($C$145=\"\",\"\",AD145/$C$145)","v":""},null,{"$f":"IF($C$145=\"\",\"\",AF145/$C$145)","v":""},null,{"$f":"IF($C$145=\"\",\"\",AH145/$C$145)","v":""},null,{"$f":"IF($C$145=\"\",\"\",AJ145/$C$145)","v":""},null,{"$f":"IF($C$145=\"\",\"\",AL145/$C$145)","v":""},null,{"$f":"IF($C$145=\"\",\"\",AN145/$C$145)","v":""},null,{"$f":"IF($C$145=\"\",\"\",AP145/$C$145)","v":""},null,{"$f":"IF($C$145=\"\",\"\",AR145/$C$145)","v":""},null,{"$f":"IF($C$145=\"\",\"\",AT145/$C$145)","v":""},null,{"$f":"IF($C$145=\"\",\"\",AV145/$C$145)","v":""},null,{"$f":"IF($C$145=\"\",\"\",AX145/$C$145)","v":""},null,{"$f":"IF($C$145=\"\",\"\",AZ145/$C$145)","v":""},null,{"$f":"IF($C$145=\"\",\"\",BB145/$C$145)","v":""},null,0]
["    5.2.3",null,null,null,{"$f":"IF($C$146=\"\",\"\",F146/$C$146)","v":""},null,{"$f":"IF($C$146=\"\",\"\",H146/$C$146)","v":""},null,{"$f":"IF($C$146=\"\",\"\",J146/$C$146)","v":""},null,{"$f":"IF($C$146=\"\",\"\",L146/$C$146)","v":""},null,{"$f":"IF($C$146=\"\",\"\",N146/$C$146)","v":""},null,{"$f":"IF($C$146=\"\",\"\",P146/$C$146)","v":""},null,{"$f":"IF($C$146=\"\",\"\",R146/$C$146)","v":""},null,{"$f":"IF($C$146=\"\",\"\",T146/$C$146)","v":""},null,{"$f":"IF($C$146=\"\",\"\",V146/$C$146)","v":""},null,{"$f":"IF($C$146=\"\",\"\",X146/$C$146)","v":""},null,{"$f":"IF($C$146=\"\",\"\",Z146/$C$146)","v":""},null,{"$f":"IF($C$146=\"\",\"\",AB146/$C$146)","v":""},null,{"$f":"IF($C$146=\"\",\"\",AD146/$C$146)","v":""},null,{"$f":"IF($C$146=\"\",\"\",AF146/$C$146)","v":""},null,{"$f":"IF($C$146=\"\",\"\",AH146/$C$146)","v":""},null,{"$f":"IF($C$146=\"\",\"\",AJ146/$C$146)","v":""},null,{"$f":"IF($C$146=\"\",\"\",AL146/$C$146)","v":""},null,{"$f":"IF($C$146=\"\",\"\",AN146/$C$146)","v":""},null,{"$f":"IF($C$146=\"\",\"\",AP146/$C$146)","v":""},null,{"$f":"IF($C$146=\"\",\"\",AR146/$C$146)","v":""},null,{"$f":"IF($C$146=\"\",\"\",AT146/$C$146)","v":""},null,{"$f":"IF($C$146=\"\",\"\",AV146/$C$146)","v":""},null,{"$f":"IF($C$146=\"\",\"\",AX146/$C$146)","v":""},null,{"$f":"IF($C$146=\"\",\"\",AZ146/$C$146)","v":""},null,{"$f":"IF($C$146=\"\",\"\",BB146/$C$146)","v":""},null,0]
["    5.2.4",null,null,null,{"$f":"IF($C$147=\"\",\"\",F147/$C$147)","v":""},null,{"$f":"IF($C$147=\"\",\"\",H147/$C$147)","v":""},null,{"$f":"IF($C$147=\"\",\"\",J147/$C$147)","v":""},null,{"$f":"IF($C$147=\"\",\"\",L147/$C$147)","v":""},null,{"$f":"IF($C$147=\"\",\"\",N147/$C$147)","v":""},null,{"$f":"IF($C$147=\"\",\"\",P147/$C$147)","v":""},null,{"$f":"IF($C$147=\"\",\"\",R147/$C$147)","v":""},null,{"$f":"IF($C$147=\"\",\"\",T147/$C$147)","v":""},null,{"$f":"IF($C$147=\"\",\"\",V147/$C$147)","v":""},null,{"$f":"IF($C$147=\"\",\"\",X147/$C$147)","v":""},null,{"$f":"IF($C$147=\"\",\"\",Z147/$C$147)","v":""},null,{"$f":"IF($C$147=\"\",\"\",AB147/$C$147)","v":""},null,{"$f":"IF($C$147=\"\",\"\",AD147/$C$147)","v":""},null,{"$f":"IF($C$147=\"\",\"\",AF147/$C$147)","v":""},null,{"$f":"IF($C$147=\"\",\"\",AH147/$C$147)","v":""},null,{"$f":"IF($C$147=\"\",\"\",AJ147/$C$147)","v":""},null,{"$f":"IF($C$147=\"\",\"\",AL147/$C$147)","v":""},null,{"$f":"IF($C$147=\"\",\"\",AN147/$C$147)","v":""},null,{"$f":"IF($C$147=\"\",\"\",AP147/$C$147)","v":""},null,{"$f":"IF($C$147=\"\",\"\",AR147/$C$147)","v":""},null,{"$f":"IF($C$147=\"\",\"\",AT147/$C$147)","v":""},null,{"$f":"IF($C$147=\"\",\"\",AV147/$C$147)","v":""},null,{"$f":"IF($C$147=\"\",\"\",AX147/$C$147)","v":""},null,{"$f":"IF($C$147=\"\",\"\",AZ147/$C$147)","v":""},null,{"$f":"IF($C$147=\"\",\"\",BB147/$C$147)","v":""},null,0]
["    5.2.5",null,null,null,{"$f":"IF($C$148=\"\",\"\",F148/$C$148)","v":""},null,{"$f":"IF($C$148=\"\",\"\",H148/$C$148)","v":""},null,{"$f":"IF($C$148=\"\",\"\",J148/$C$148)","v":""},null,{"$f":"IF($C$148=\"\",\"\",L148/$C$148)","v":""},null,{"$f":"IF($C$148=\"\",\"\",N148/$C$148)","v":""},null,{"$f":"IF($C$148=\"\",\"\",P148/$C$148)","v":""},null,{"$f":"IF($C$148=\"\",\"\",R148/$C$148)","v":""},null,{"$f":"IF($C$148=\"\",\"\",T148/$C$148)","v":""},null,{"$f":"IF($C$148=\"\",\"\",V148/$C$148)","v":""},null,{"$f":"IF($C$148=\"\",\"\",X148/$C$148)","v":""},null,{"$f":"IF($C$148=\"\",\"\",Z148/$C$148)","v":""},null,{"$f":"IF($C$148=\"\",\"\",AB148/$C$148)","v":""},null,{"$f":"IF($C$148=\"\",\"\",AD148/$C$148)","v":""},null,{"$f":"IF($C$148=\"\",\"\",AF148/$C$148)","v":""},null,{"$f":"IF($C$148=\"\",\"\",AH148/$C$148)","v":""},null,{"$f":"IF($C$148=\"\",\"\",AJ148/$C$148)","v":""},null,{"$f":"IF($C$148=\"\",\"\",AL148/$C$148)","v":""},null,{"$f":"IF($C$148=\"\",\"\",AN148/$C$148)","v":""},null,{"$f":"IF($C$148=\"\",\"\",AP148/$C$148)","v":""},null,{"$f":"IF($C$148=\"\",\"\",AR148/$C$148)","v":""},null,{"$f":"IF($C$148=\"\",\"\",AT148/$C$148)","v":""},null,{"$f":"IF($C$148=\"\",\"\",AV148/$C$148)","v":""},null,{"$f":"IF($C$148=\"\",\"\",AX148/$C$148)","v":""},null,{"$f":"IF($C$148=\"\",\"\",AZ148/$C$148)","v":""},null,{"$f":"IF($C$148=\"\",\"\",BB148/$C$148)","v":""},null,0]
[5.3,"Cabinet Replacement and Foundation Requirements",null,null,{"$f":"IF($C$149=\"\",\"\",F149/$C$149)","v":""},null,{"$f":"IF($C$149=\"\",\"\",H149/$C$149)","v":""},null,{"$f":"IF($C$149=\"\",\"\",J149/$C$149)","v":""},null,{"$f":"IF($C$149=\"\",\"\",L149/$C$149)","v":""},null,{"$f":"IF($C$149=\"\",\"\",N149/$C$149)","v":""},null,{"$f":"IF($C$149=\"\",\"\",P149/$C$149)","v":""},null,{"$f":"IF($C$149=\"\",\"\",R149/$C$149)","v":""},null,{"$f":"IF($C$149=\"\",\"\",T149/$C$149)","v":""},null,{"$f":"IF($C$149=\"\",\"\",V149/$C$149)","v":""},null,{"$f":"IF($C$149=\"\",\"\",X149/$C$149)","v":""},null,{"$f":"IF($C$149=\"\",\"\",Z149/$C$149)","v":""},null,{"$f":"IF($C$149=\"\",\"\",AB149/$C$149)","v":""},null,{"$f":"IF($C$149=\"\",\"\",AD149/$C$149)","v":""},null,{"$f":"IF($C$149=\"\",\"\",AF149/$C$149)","v":""},null,{"$f":"IF($C$149=\"\",\"\",AH149/$C$149)","v":""},null,{"$f":"IF($C$149=\"\",\"\",AJ149/$C$149)","v":""},null,{"$f":"IF($C$149=\"\",\"\",AL149/$C$149)","v":""},null,{"$f":"IF($C$149=\"\",\"\",AN149/$C$149)","v":""},null,{"$f":"IF($C$149=\"\",\"\",AP149/$C$149)","v":""},null,{"$f":"IF($C$149=\"\",\"\",AR149/$C$149)","v":""},null,{"$f":"IF($C$149=\"\",\"\",AT149/$C$149)","v":""},null,{"$f":"IF($C$149=\"\",\"\",AV149/$C$149)","v":""},null,{"$f":"IF($C$149=\"\",\"\",AX149/$C$149)","v":""},null,{"$f":"IF($C$149=\"\",\"\",AZ149/$C$149)","v":""},null,{"$f":"IF($C$149=\"\",\"\",BB149/$C$149)","v":""},null,0]
[5.4,"Inventory CCTV Camera Assemblies",null,null,{"$f":"IF($C$150=\"\",\"\",F150/$C$150)","v":""},null,{"$f":"IF($C$150=\"\",\"\",H150/$C$150)","v":""},null,{"$f":"IF($C$150=\"\",\"\",J150/$C$150)","v":""},null,{"$f":"IF($C$150=\"\",\"\",L150/$C$150)","v":""},null,{"$f":"IF($C$150=\"\",\"\",N150/$C$150)","v":""},null,{"$f":"IF($C$150=\"\",\"\",P150/$C$150)","v":""},null,{"$f":"IF($C$150=\"\",\"\",R150/$C$150)","v":""},null,{"$f":"IF($C$150=\"\",\"\",T150/$C$150)","v":""},null,{"$f":"IF($C$150=\"\",\"\",V150/$C$150)","v":""},null,{"$f":"IF($C$150=\"\",\"\",X150/$C$150)","v":""},null,{"$f":"IF($C$150=\"\",\"\",Z150/$C$150)","v":""},null,{"$f":"IF($C$150=\"\",\"\",AB150/$C$150)","v":""},null,{"$f":"IF($C$150=\"\",\"\",AD150/$C$150)","v":""},null,{"$f":"IF($C$150=\"\",\"\",AF150/$C$150)","v":""},null,{"$f":"IF($C$150=\"\",\"\",AH150/$C$150)","v":""},null,{"$f":"IF($C$150=\"\",\"\",AJ150/$C$150)","v":""},null,{"$f":"IF($C$150=\"\",\"\",AL150/$C$150)","v":""},null,{"$f":"IF($C$150=\"\",\"\",AN150/$C$150)","v":""},null,{"$f":"IF($C$150=\"\",\"\",AP150/$C$150)","v":""},null,{"$f":"IF($C$150=\"\",\"\",AR150/$C$150)","v":""},null,{"$f":"IF($C$150=\"\",\"\",AT150/$C$150)","v":""},null,{"$f":"IF($C$150=\"\",\"\",AV150/$C$150)","v":""},null,{"$f":"IF($C$150=\"\",\"\",AX150/$C$150)","v":""},null,{"$f":"IF($C$150=\"\",\"\",AZ150/$C$150)","v":""},null,{"$f":"IF($C$150=\"\",\"\",BB150/$C$150)","v":""},null,0]
[5.5,"Compile and Summarize Inventory Data",null,null,{"$f":"IF($C$151=\"\",\"\",F151/$C$151)","v":""},null,{"$f":"IF($C$151=\"\",\"\",H151/$C$151)","v":""},null,{"$f":"IF($C$151=\"\",\"\",J151/$C$151)","v":""},null,{"$f":"IF($C$151=\"\",\"\",L151/$C$151)","v":""},null,{"$f":"IF($C$151=\"\",\"\",N151/$C$151)","v":""},null,{"$f":"IF($C$151=\"\",\"\",P151/$C$151)","v":""},null,{"$f":"IF($C$151=\"\",\"\",R151/$C$151)","v":""},null,{"$f":"IF($C$151=\"\",\"\",T151/$C$151)","v":""},null,{"$f":"IF($C$151=\"\",\"\",V151/$C$151)","v":""},null,{"$f":"IF($C$151=\"\",\"\",X151/$C$151)","v":""},null,{"$f":"IF($C$151=\"\",\"\",Z151/$C$151)","v":""},null,{"$f":"IF($C$151=\"\",\"\",AB151/$C$151)","v":""},null,{"$f":"IF($C$151=\"\",\"\",AD151/$C$151)","v":""},null,{"$f":"IF($C$151=\"\",\"\",AF151/$C$151)","v":""},null,{"$f":"IF($C$151=\"\",\"\",AH151/$C$151)","v":""},null,{"$f":"IF($C$151=\"\",\"\",AJ151/$C$151)","v":""},null,{"$f":"IF($C$151=\"\",\"\",AL151/$C$151)","v":""},null,{"$f":"IF($C$151=\"\",\"\",AN151/$C$151)","v":""},null,{"$f":"IF($C$151=\"\",\"\",AP151/$C$151)","v":""},null,{"$f":"IF($C$151=\"\",\"\",AR151/$C$151)","v":""},null,{"$f":"IF($C$151=\"\",\"\",AT151/$C$151)","v":""},null,{"$f":"IF($C$151=\"\",\"\",AV151/$C$151)","v":""},null,{"$f":"IF($C$151=\"\",\"\",AX151/$C$151)","v":""},null,{"$f":"IF($C$151=\"\",\"\",AZ151/$C$151)","v":""},null,{"$f":"IF($C$151=\"\",\"\",BB151/$C$151)","v":""},null,0]
[null,null,null,null,{"$f":"IF($C$152=\"\",\"\",F152/$C$152)","v":""},null,{"$f":"IF($C$152=\"\",\"\",H152/$C$152)","v":""},null,{"$f":"IF($C$152=\"\",\"\",J152/$C$152)","v":""},null,{"$f":"IF($C$152=\"\",\"\",L152/$C$152)","v":""},null,{"$f":"IF($C$152=\"\",\"\",N152/$C$152)","v":""},null,{"$f":"IF($C$152=\"\",\"\",P152/$C$152)","v":""},null,{"$f":"IF($C$152=\"\",\"\",R152/$C$152)","v":""},null,{"$f":"IF($C$152=\"\",\"\",T152/$C$152)","v":""},null,{"$f":"IF($C$152=\"\",\"\",V152/$C$152)","v":""},null,{"$f":"IF($C$152=\"\",\"\",X152/$C$152)","v":""},null,{"$f":"IF($C$152=\"\",\"\",Z152/$C$152)","v":""},null,{"$f":"IF($C$152=\"\",\"\",AB152/$C$152)","v":""},null,{"$f":"IF($C$152=\"\",\"\",AD152/$C$152)","v":""},null,{"$f":"IF($C$152=\"\",\"\",AF152/$C$152)","v":""},null,{"$f":"IF($C$152=\"\",\"\",AH152/$C$152)","v":""},null,{"$f":"IF($C$152=\"\",\"\",AJ152/$C$152)","v":""},null,{"$f":"IF($C$152=\"\",\"\",AL152/$C$152)","v":""},null,{"$f":"IF($C$152=\"\",\"\",AN152/$C$152)","v":""},null,{"$f":"IF($C$152=\"\",\"\",AP152/$C$152)","v":""},null,{"$f":"IF($C$152=\"\",\"\",AR152/$C$152)","v":""},null,{"$f":"IF($C$152=\"\",\"\",AT152/$C$152)","v":""},null,{"$f":"IF($C$152=\"\",\"\",AV152/$C$152)","v":""},null,{"$f":"IF($C$152=\"\",\"\",AX152/$C$152)","v":""},null,{"$f":"IF($C$152=\"\",\"\",AZ152/$C$152)","v":""},null,{"$f":"IF($C$152=\"\",\"\",BB152/$C$152)","v":""},null,0]
[null,null,null,null,{"$f":"IF($C$153=\"\",\"\",F153/$C$153)","v":""},null,{"$f":"IF($C$153=\"\",\"\",H153/$C$153)","v":""},null,{"$f":"IF($C$153=\"\",\"\",J153/$C$153)","v":""},null,{"$f":"IF($C$153=\"\",\"\",L153/$C$153)","v":""},null,{"$f":"IF($C$153=\"\",\"\",N153/$C$153)","v":""},null,{"$f":"IF($C$153=\"\",\"\",P153/$C$153)","v":""},null,{"$f":"IF($C$153=\"\",\"\",R153/$C$153)","v":""},null,{"$f":"IF($C$153=\"\",\"\",T153/$C$153)","v":""},null,{"$f":"IF($C$153=\"\",\"\",V153/$C$153)","v":""},null,{"$f":"IF($C$153=\"\",\"\",X153/$C$153)","v":""},null,{"$f":"IF($C$153=\"\",\"\",Z153/$C$153)","v":""},null,{"$f":"IF($C$153=\"\",\"\",AB153/$C$153)","v":""},null,{"$f":"IF($C$153=\"\",\"\",AD153/$C$153)","v":""},null,{"$f":"IF($C$153=\"\",\"\",AF153/$C$153)","v":""},null,{"$f":"IF($C$153=\"\",\"\",AH153/$C$153)","v":""},null,{"$f":"IF($C$153=\"\",\"\",AJ153/$C$153)","v":""},null,{"$f":"IF($C$153=\"\",\"\",AL153/$C$153)","v":""},null,{"$f":"IF($C$153=\"\",\"\",AN153/$C$153)","v":""},null,{"$f":"IF($C$153=\"\",\"\",AP153/$C$153)","v":""},null,{"$f":"IF($C$153=\"\",\"\",AR153/$C$153)","v":""},null,{"$f":"IF($C$153=\"\",\"\",AT153/$C$153)","v":""},null,{"$f":"IF($C$153=\"\",\"\",AV153/$C$153)","v":""},null,{"$f":"IF($C$153=\"\",\"\",AX153/$C$153)","v":""},null,{"$f":"IF($C$153=\"\",\"\",AZ153/$C$153)","v":""},null,{"$f":"IF($C$153=\"\",\"\",BB153/$C$153)","v":""},null,0]
[null,null,null,null,{"$f":"IF($C$154=\"\",\"\",F154/$C$154)","v":""},null,{"$f":"IF($C$154=\"\",\"\",H154/$C$154)","v":""},null,{"$f":"IF($C$154=\"\",\"\",J154/$C$154)","v":""},null,{"$f":"IF($C$154=\"\",\"\",L154/$C$154)","v":""},null,{"$f":"IF($C$154=\"\",\"\",N154/$C$154)","v":""},null,{"$f":"IF($C$154=\"\",\"\",P154/$C$154)","v":""},null,{"$f":"IF($C$154=\"\",\"\",R154/$C$154)","v":""},null,{"$f":"IF($C$154=\"\",\"\",T154/$C$154)","v":""},null,{"$f":"IF($C$154=\"\",\"\",V154/$C$154)","v":""},null,{"$f":"IF($C$154=\"\",\"\",X154/$C$154)","v":""},null,{"$f":"IF($C$154=\"\",\"\",Z154/$C$154)","v":""},null,{"$f":"IF($C$154=\"\",\"\",AB154/$C$154)","v":""},null,{"$f":"IF($C$154=\"\",\"\",AD154/$C$154)","v":""},null,{"$f":"IF($C$154=\"\",\"\",AF154/$C$154)","v":""},null,{"$f":"IF($C$154=\"\",\"\",AH154/$C$154)","v":""},null,{"$f":"IF($C$154=\"\",\"\",AJ154/$C$154)","v":""},null,{"$f":"IF($C$154=\"\",\"\",AL154/$C$154)","v":""},null,{"$f":"IF($C$154=\"\",\"\",AN154/$C$154)","v":""},null,{"$f":"IF($C$154=\"\",\"\",AP154/$C$154)","v":""},null,{"$f":"IF($C$154=\"\",\"\",AR154/$C$154)","v":""},null,{"$f":"IF($C$154=\"\",\"\",AT154/$C$154)","v":""},null,{"$f":"IF($C$154=\"\",\"\",AV154/$C$154)","v":""},null,{"$f":"IF($C$154=\"\",\"\",AX154/$C$154)","v":""},null,{"$f":"IF($C$154=\"\",\"\",AZ154/$C$154)","v":""},null,{"$f":"IF($C$154=\"\",\"\",BB154/$C$154)","v":""},null,0]
[null,null,null,null,{"$f":"IF($C$155=\"\",\"\",F155/$C$155)","v":""},null,{"$f":"IF($C$155=\"\",\"\",H155/$C$155)","v":""},null,{"$f":"IF($C$155=\"\",\"\",J155/$C$155)","v":""},null,{"$f":"IF($C$155=\"\",\"\",L155/$C$155)","v":""},null,{"$f":"IF($C$155=\"\",\"\",N155/$C$155)","v":""},null,{"$f":"IF($C$155=\"\",\"\",P155/$C$155)","v":""},null,{"$f":"IF($C$155=\"\",\"\",R155/$C$155)","v":""},null,{"$f":"IF($C$155=\"\",\"\",T155/$C$155)","v":""},null,{"$f":"IF($C$155=\"\",\"\",V155/$C$155)","v":""},null,{"$f":"IF($C$155=\"\",\"\",X155/$C$155)","v":""},null,{"$f":"IF($C$155=\"\",\"\",Z155/$C$155)","v":""},null,{"$f":"IF($C$155=\"\",\"\",AB155/$C$155)","v":""},null,{"$f":"IF($C$155=\"\",\"\",AD155/$C$155)","v":""},null,{"$f":"IF($C$155=\"\",\"\",AF155/$C$155)","v":""},null,{"$f":"IF($C$155=\"\",\"\",AH155/$C$155)","v":""},null,{"$f":"IF($C$155=\"\",\"\",AJ155/$C$155)","v":""},null,{"$f":"IF($C$155=\"\",\"\",AL155/$C$155)","v":""},null,{"$f":"IF($C$155=\"\",\"\",AN155/$C$155)","v":""},null,{"$f":"IF($C$155=\"\",\"\",AP155/$C$155)","v":""},null,{"$f":"IF($C$155=\"\",\"\",AR155/$C$155)","v":""},null,{"$f":"IF($C$155=\"\",\"\",AT155/$C$155)","v":""},null,{"$f":"IF($C$155=\"\",\"\",AV155/$C$155)","v":""},null,{"$f":"IF($C$155=\"\",\"\",AX155/$C$155)","v":""},null,{"$f":"IF($C$155=\"\",\"\",AZ155/$C$155)","v":""},null,{"$f":"IF($C$155=\"\",\"\",BB155/$C$155)","v":""},null,0]
[null,null,null,null,{"$f":"IF($C$156=\"\",\"\",F156/$C$156)","v":""},null,{"$f":"IF($C$156=\"\",\"\",H156/$C$156)","v":""},null,{"$f":"IF($C$156=\"\",\"\",J156/$C$156)","v":""},null,{"$f":"IF($C$156=\"\",\"\",L156/$C$156)","v":""},null,{"$f":"IF($C$156=\"\",\"\",N156/$C$156)","v":""},null,{"$f":"IF($C$156=\"\",\"\",P156/$C$156)","v":""},null,{"$f":"IF($C$156=\"\",\"\",R156/$C$156)","v":""},null,{"$f":"IF($C$156=\"\",\"\",T156/$C$156)","v":""},null,{"$f":"IF($C$156=\"\",\"\",V156/$C$156)","v":""},null,{"$f":"IF($C$156=\"\",\"\",X156/$C$156)","v":""},null,{"$f":"IF($C$156=\"\",\"\",Z156/$C$156)","v":""},null,{"$f":"IF($C$156=\"\",\"\",AB156/$C$156)","v":""},null,{"$f":"IF($C$156=\"\",\"\",AD156/$C$156)","v":""},null,{"$f":"IF($C$156=\"\",\"\",AF156/$C$156)","v":""},null,{"$f":"IF($C$156=\"\",\"\",AH156/$C$156)","v":""},null,{"$f":"IF($C$156=\"\",\"\",AJ156/$C$156)","v":""},null,{"$f":"IF($C$156=\"\",\"\",AL156/$C$156)","v":""},null,{"$f":"IF($C$156=\"\",\"\",AN156/$C$156)","v":""},null,{"$f":"IF($C$156=\"\",\"\",AP156/$C$156)","v":""},null,{"$f":"IF($C$156=\"\",\"\",AR156/$C$156)","v":""},null,{"$f":"IF($C$156=\"\",\"\",AT156/$C$156)","v":""},null,{"$f":"IF($C$156=\"\",\"\",AV156/$C$156)","v":""},null,{"$f":"IF($C$156=\"\",\"\",AX156/$C$156)","v":""},null,{"$f":"IF($C$156=\"\",\"\",AZ156/$C$156)","v":""},null,{"$f":"IF($C$156=\"\",\"\",BB156/$C$156)","v":""},null,0]
[null,null,null,null,{"$f":"IF($C$157=\"\",\"\",F157/$C$157)","v":""},null,{"$f":"IF($C$157=\"\",\"\",H157/$C$157)","v":""},null,{"$f":"IF($C$157=\"\",\"\",J157/$C$157)","v":""},null,{"$f":"IF($C$157=\"\",\"\",L157/$C$157)","v":""},null,{"$f":"IF($C$157=\"\",\"\",N157/$C$157)","v":""},null,{"$f":"IF($C$157=\"\",\"\",P157/$C$157)","v":""},null,{"$f":"IF($C$157=\"\",\"\",R157/$C$157)","v":""},null,{"$f":"IF($C$157=\"\",\"\",T157/$C$157)","v":""},null,{"$f":"IF($C$157=\"\",\"\",V157/$C$157)","v":""},null,{"$f":"IF($C$157=\"\",\"\",X157/$C$157)","v":""},null,{"$f":"IF($C$157=\"\",\"\",Z157/$C$157)","v":""},null,{"$f":"IF($C$157=\"\",\"\",AB157/$C$157)","v":""},null,{"$f":"IF($C$157=\"\",\"\",AD157/$C$157)","v":""},null,{"$f":"IF($C$157=\"\",\"\",AF157/$C$157)","v":""},null,{"$f":"IF($C$157=\"\",\"\",AH157/$C$157)","v":""},null,{"$f":"IF($C$157=\"\",\"\",AJ157/$C$157)","v":""},null,{"$f":"IF($C$157=\"\",\"\",AL157/$C$157)","v":""},null,{"$f":"IF($C$157=\"\",\"\",AN157/$C$157)","v":""},null,{"$f":"IF($C$157=\"\",\"\",AP157/$C$157)","v":""},null,{"$f":"IF($C$157=\"\",\"\",AR157/$C$157)","v":""},null,{"$f":"IF($C$157=\"\",\"\",AT157/$C$157)","v":""},null,{"$f":"IF($C$157=\"\",\"\",AV157/$C$157)","v":""},null,{"$f":"IF($C$157=\"\",\"\",AX157/$C$157)","v":""},null,{"$f":"IF($C$157=\"\",\"\",AZ157/$C$157)","v":""},null,{"$f":"IF($C$157=\"\",\"\",BB157/$C$157)","v":""},null,0]
[null,null,null,null,{"$f":"IF($C$158=\"\",\"\",F158/$C$158)","v":""},null,{"$f":"IF($C$158=\"\",\"\",H158/$C$158)","v":""},null,{"$f":"IF($C$158=\"\",\"\",J158/$C$158)","v":""},null,{"$f":"IF($C$158=\"\",\"\",L158/$C$158)","v":""},null,{"$f":"IF($C$158=\"\",\"\",N158/$C$158)","v":""},null,{"$f":"IF($C$158=\"\",\"\",P158/$C$158)","v":""},null,{"$f":"IF($C$158=\"\",\"\",R158/$C$158)","v":""},null,{"$f":"IF($C$158=\"\",\"\",T158/$C$158)","v":""},null,{"$f":"IF($C$158=\"\",\"\",V158/$C$158)","v":""},null,{"$f":"IF($C$158=\"\",\"\",X158/$C$158)","v":""},null,{"$f":"IF($C$158=\"\",\"\",Z158/$C$158)","v":""},null,{"$f":"IF($C$158=\"\",\"\",AB158/$C$158)","v":""},null,{"$f":"IF($C$158=\"\",\"\",AD158/$C$158)","v":""},null,{"$f":"IF($C$158=\"\",\"\",AF158/$C$158)","v":""},null,{"$f":"IF($C$158=\"\",\"\",AH158/$C$158)","v":""},null,{"$f":"IF($C$158=\"\",\"\",AJ158/$C$158)","v":""},null,{"$f":"IF($C$158=\"\",\"\",AL158/$C$158)","v":""},null,{"$f":"IF($C$158=\"\",\"\",AN158/$C$158)","v":""},null,{"$f":"IF($C$158=\"\",\"\",AP158/$C$158)","v":""},null,{"$f":"IF($C$158=\"\",\"\",AR158/$C$158)","v":""},null,{"$f":"IF($C$158=\"\",\"\",AT158/$C$158)","v":""},null,{"$f":"IF($C$158=\"\",\"\",AV158/$C$158)","v":""},null,{"$f":"IF($C$158=\"\",\"\",AX158/$C$158)","v":""},null,{"$f":"IF($C$158=\"\",\"\",AZ158/$C$158)","v":""},null,{"$f":"IF($C$158=\"\",\"\",BB158/$C$158)","v":""},null,{"$f":"SUM(BB158,AZ158,AX158,AV158,AT158,AR158,AP158,AN158,AL158,AJ158,AH158,AF158,AD158,AB158,Z158,X158,V158,T158,R158,P158,N158,L158,J158,H158,F158)","v":0}]
["TOTAL HOURS",null,null,null,null,{"$f":"SUM(F142:F158)","v":0},null,{"$f":"SUM(H142:H158)","v":0},null,{"$f":"SUM(J142:J158)","v":0},null,{"$f":"SUM(L142:L158)","v":0},null,{"$f":"SUM(N142:N158)","v":0},null,{"$f":"SUM(P142:P158)","v":0},null,{"$f":"SUM(R142:R158)","v":0},null,{"$f":"SUM(T142:T158)","v":0},null,{"$f":"SUM(V142:V158)","v":0},null,{"$f":"SUM(X142:X158)","v":0},null,{"$f":"SUM(Z142:Z158)","v":0},null,{"$f":"SUM(AB142:AB158)","v":0},null,{"$f":"SUM(AD142:AD158)","v":0},null,{"$f":"SUM(AF142:AF158)","v":0},null,{"$f":"SUM(AH142:AH158)","v":0},null,{"$f":"SUM(AJ142:AJ158)","v":0},null,{"$f":"SUM(AL142:AL158)","v":0},null,{"$f":"SUM(AN142:AN158)","v":0},null,{"$f":"SUM(AP142:AP158)","v":0},null,{"$f":"SUM(AR142:AR158)","v":0},null,{"$f":"SUM(AT142:AT158)","v":0},null,{"$f":"SUM(AV142:AV158)","v":0},null,{"$f":"SUM(AX142:AX158)","v":0},null,{"$f":"SUM(AZ142:AZ158)","v":0},null,{"$f":"SUM(BB142:BB158)","v":0},{"$f":"SUM(E159:BB159)","v":0}]
["TOTAL WORKDAYS",null,null,null,null,{"$f":"F159/8","v":0},null,{"$f":"H159/8","v":0},null,{"$f":"J159/8","v":0},null,{"$f":"L159/8","v":0},null,{"$f":"N159/8","v":0},null,{"$f":"P159/8","v":0},null,{"$f":"R159/8","v":0},null,{"$f":"T159/8","v":0},null,{"$f":"V159/8","v":0},null,{"$f":"X159/8","v":0},null,{"$f":"Z159/8","v":0},null,{"$f":"AB159/8","v":0},null,{"$f":"AD159/8","v":0},null,0,null,{"$f":"AH159/8","v":0},null,0,null,{"$f":"AL159/8","v":0},null,0,null,{"$f":"AP159/8","v":0},null,0,null,{"$f":"AT159/8","v":0},null,{"$f":"AV159/8","v":0},null,{"$f":"AX159/8","v":0},null,{"$f":"AZ159/8","v":0},null,{"$f":"BB159/8","v":0},{"$f":"SUM(E160:BB160)","v":0}]
["TOTAL RAW LABOR",null,null,null,null,{"$f":"$E$13*F159","v":0},null,{"$f":"$G$13*H159","v":0},null,{"$f":"$I$13*J159","v":0},null,{"$f":"$K$13*L159","v":0},null,{"$f":"$M$13*N159","v":0},null,{"$f":"$O$13*P159","v":0},null,{"$f":"$Q$13*R159","v":0},null,{"$f":"$S$13*T159","v":0},null,{"$f":"$U$13*V159","v":0},null,{"$f":"$W$13*X159","v":0},null,{"$f":"$Y$13*Z159","v":0},null,{"$f":"$AA$13*AB159","v":0},null,{"$f":"$AC$13*AD159","v":0},null,{"$f":"$AC$13*AF159","v":0},null,{"$f":"$AC$13*AH159","v":0},null,{"$f":"$AC$13*AJ159","v":0},null,{"$f":"$AC$13*AL159","v":0},null,{"$f":"$AC$13*AN159","v":0},null,{"$f":"$AC$13*AP159","v":0},null,{"$f":"$AC$13*AR159","v":0},null,{"$f":"$AC$13*AT159","v":0},null,{"$f":"$AC$13*AV159","v":0},null,{"$f":"$AC$13*AX159","v":0},null,{"$f":"$AC$13*AZ159","v":0},null,{"$f":"$AC$13*BB159","v":0},{"$f":"SUM(E161:BB161)","v":0}]
["Task 6.0     ","CCTV MONITORING SYSTEM"]
[6.1,"Identification of Preliminary CCTV Locations",null,null,{"$f":"IF($C$163=\"\",\"\",F163/$C$163)","v":""},null,{"$f":"IF($C$163=\"\",\"\",H163/$C$163)","v":""},null,{"$f":"IF($C$163=\"\",\"\",J163/$C$163)","v":""},null,{"$f":"IF($C$163=\"\",\"\",L163/$C$163)","v":""},null,{"$f":"IF($C$163=\"\",\"\",N163/$C$163)","v":""},null,{"$f":"IF($C$163=\"\",\"\",P163/$C$163)","v":""},null,{"$f":"IF($C$163=\"\",\"\",R163/$C$163)","v":""},null,{"$f":"IF($C$163=\"\",\"\",T163/$C$163)","v":""},null,{"$f":"IF($C$163=\"\",\"\",V163/$C$163)","v":""},null,{"$f":"IF($C$163=\"\",\"\",X163/$C$163)","v":""},null,{"$f":"IF($C$163=\"\",\"\",Z163/$C$163)","v":""},null,{"$f":"IF($C$163=\"\",\"\",AB163/$C$163)","v":""},null,{"$f":"IF($C$163=\"\",\"\",AD163/$C$163)","v":""},null,{"$f":"IF($C$163=\"\",\"\",AF163/$C$163)","v":""},null,{"$f":"IF($C$163=\"\",\"\",AH163/$C$163)","v":""},null,{"$f":"IF($C$163=\"\",\"\",AJ163/$C$163)","v":""},null,{"$f":"IF($C$163=\"\",\"\",AL163/$C$163)","v":""},null,{"$f":"IF($C$163=\"\",\"\",AN163/$C$163)","v":""},null,{"$f":"IF($C$163=\"\",\"\",AP163/$C$163)","v":""},null,{"$f":"IF($C$163=\"\",\"\",AR163/$C$163)","v":""},null,{"$f":"IF($C$163=\"\",\"\",AT163/$C$163)","v":""},null,{"$f":"IF($C$163=\"\",\"\",AV163/$C$163)","v":""},null,{"$f":"IF($C$163=\"\",\"\",AX163/$C$163)","v":""},null,{"$f":"IF($C$163=\"\",\"\",AZ163/$C$163)","v":""},null,{"$f":"IF($C$163=\"\",\"\",BB163/$C$163)","v":""},null,{"$f":"SUM(BB163,AZ163,AX163,AV163,AT163,AR163,AP163,AN163,AL163,AJ163,AH163,AF163,AD163,AB163,Z163,X163,V163,T163,R163,P163,N163,L163,J163,H163,F163)","v":0}]
[6.2,"Bucket Truck Surveys of Candidate Sites",null,null,{"$f":"IF($C$164=\"\",\"\",F164/$C$164)","v":""},null,{"$f":"IF($C$164=\"\",\"\",H164/$C$164)","v":""},null,{"$f":"IF($C$164=\"\",\"\",J164/$C$164)","v":""},null,{"$f":"IF($C$164=\"\",\"\",L164/$C$164)","v":""},null,{"$f":"IF($C$164=\"\",\"\",N164/$C$164)","v":""},null,{"$f":"IF($C$164=\"\",\"\",P164/$C$164)","v":""},null,{"$f":"IF($C$164=\"\",\"\",R164/$C$164)","v":""},null,{"$f":"IF($C$164=\"\",\"\",T164/$C$164)","v":""},null,{"$f":"IF($C$164=\"\",\"\",V164/$C$164)","v":""},null,{"$f":"IF($C$164=\"\",\"\",X164/$C$164)","v":""},null,{"$f":"IF($C$164=\"\",\"\",Z164/$C$164)","v":""},null,{"$f":"IF($C$164=\"\",\"\",AB164/$C$164)","v":""},null,{"$f":"IF($C$164=\"\",\"\",AD164/$C$164)","v":""},null,{"$f":"IF($C$164=\"\",\"\",AF164/$C$164)","v":""},null,{"$f":"IF($C$164=\"\",\"\",AH164/$C$164)","v":""},null,{"$f":"IF($C$164=\"\",\"\",AJ164/$C$164)","v":""},null,{"$f":"IF($C$164=\"\",\"\",AL164/$C$164)","v":""},null,{"$f":"IF($C$164=\"\",\"\",AN164/$C$164)","v":""},null,{"$f":"IF($C$164=\"\",\"\",AP164/$C$164)","v":""},null,{"$f":"IF($C$164=\"\",\"\",AR164/$C$164)","v":""},null,{"$f":"IF($C$164=\"\",\"\",AT164/$C$164)","v":""},null,{"$f":"IF($C$164=\"\",\"\",AV164/$C$164)","v":""},null,{"$f":"IF($C$164=\"\",\"\",AX164/$C$164)","v":""},null,{"$f":"IF($C$164=\"\",\"\",AZ164/$C$164)","v":""},null,{"$f":"IF($C$164=\"\",\"\",BB164/$C$164)","v":""},null,0]
[6.3,"Compile and Analyze Site Survey Data",null,null,{"$f":"IF($C$165=\"\",\"\",F165/$C$165)","v":""},null,{"$f":"IF($C$165=\"\",\"\",H165/$C$165)","v":""},null,{"$f":"IF($C$165=\"\",\"\",J165/$C$165)","v":""},null,{"$f":"IF($C$165=\"\",\"\",L165/$C$165)","v":""},null,{"$f":"IF($C$165=\"\",\"\",N165/$C$165)","v":""},null,{"$f":"IF($C$165=\"\",\"\",P165/$C$165)","v":""},null,{"$f":"IF($C$165=\"\",\"\",R165/$C$165)","v":""},null,{"$f":"IF($C$165=\"\",\"\",T165/$C$165)","v":""},null,{"$f":"IF($C$165=\"\",\"\",V165/$C$165)","v":""},null,{"$f":"IF($C$165=\"\",\"\",X165/$C$165)","v":""},null,{"$f":"IF($C$165=\"\",\"\",Z165/$C$165)","v":""},null,{"$f":"IF($C$165=\"\",\"\",AB165/$C$165)","v":""},null,{"$f":"IF($C$165=\"\",\"\",AD165/$C$165)","v":""},null,{"$f":"IF($C$165=\"\",\"\",AF165/$C$165)","v":""},null,{"$f":"IF($C$165=\"\",\"\",AH165/$C$165)","v":""},null,{"$f":"IF($C$165=\"\",\"\",AJ165/$C$165)","v":""},null,{"$f":"IF($C$165=\"\",\"\",AL165/$C$165)","v":""},null,{"$f":"IF($C$165=\"\",\"\",AN165/$C$165)","v":""},null,{"$f":"IF($C$165=\"\",\"\",AP165/$C$165)","v":""},null,{"$f":"IF($C$165=\"\",\"\",AR165/$C$165)","v":""},null,{"$f":"IF($C$165=\"\",\"\",AT165/$C$165)","v":""},null,{"$f":"IF($C$165=\"\",\"\",AV165/$C$165)","v":""},null,{"$f":"IF($C$165=\"\",\"\",AX165/$C$165)","v":""},null,{"$f":"IF($C$165=\"\",\"\",AZ165/$C$165)","v":""},null,{"$f":"IF($C$165=\"\",\"\",BB165/$C$165)","v":""},null,0]
[6.4,"Prepare CCTV Site Study Technical Memorandum",null,null,{"$f":"IF($C$166=\"\",\"\",F166/$C$166)","v":""},null,{"$f":"IF($C$166=\"\",\"\",H166/$C$166)","v":""},null,{"$f":"IF($C$166=\"\",\"\",J166/$C$166)","v":""},null,{"$f":"IF($C$166=\"\",\"\",L166/$C$166)","v":""},null,{"$f":"IF($C$166=\"\",\"\",N166/$C$166)","v":""},null,{"$f":"IF($C$166=\"\",\"\",P166/$C$166)","v":""},null,{"$f":"IF($C$166=\"\",\"\",R166/$C$166)","v":""},null,{"$f":"IF($C$166=\"\",\"\",T166/$C$166)","v":""},null,{"$f":"IF($C$166=\"\",\"\",V166/$C$166)","v":""},null,{"$f":"IF($C$166=\"\",\"\",X166/$C$166)","v":""},null,{"$f":"IF($C$166=\"\",\"\",Z166/$C$166)","v":""},null,{"$f":"IF($C$166=\"\",\"\",AB166/$C$166)","v":""},null,{"$f":"IF($C$166=\"\",\"\",AD166/$C$166)","v":""},null,{"$f":"IF($C$166=\"\",\"\",AF166/$C$166)","v":""},null,{"$f":"IF($C$166=\"\",\"\",AH166/$C$166)","v":""},null,{"$f":"IF($C$166=\"\",\"\",AJ166/$C$166)","v":""},null,{"$f":"IF($C$166=\"\",\"\",AL166/$C$166)","v":""},null,{"$f":"IF($C$166=\"\",\"\",AN166/$C$166)","v":""},null,{"$f":"IF($C$166=\"\",\"\",AP166/$C$166)","v":""},null,{"$f":"IF($C$166=\"\",\"\",AR166/$C$166)","v":""},null,{"$f":"IF($C$166=\"\",\"\",AT166/$C$166)","v":""},null,{"$f":"IF($C$166=\"\",\"\",AV166/$C$166)","v":""},null,{"$f":"IF($C$166=\"\",\"\",AX166/$C$166)","v":""},null,{"$f":"IF($C$166=\"\",\"\",AZ166/$C$166)","v":""},null,{"$f":"IF($C$166=\"\",\"\",BB166/$C$166)","v":""},null,0]
[6.5,"Requirements for System Expansion/Field Investigation",null,null,{"$f":"IF($C$167=\"\",\"\",F167/$C$167)","v":""},null,{"$f":"IF($C$167=\"\",\"\",H167/$C$167)","v":""},null,{"$f":"IF($C$167=\"\",\"\",J167/$C$167)","v":""},null,{"$f":"IF($C$167=\"\",\"\",L167/$C$167)","v":""},null,{"$f":"IF($C$167=\"\",\"\",N167/$C$167)","v":""},null,{"$f":"IF($C$167=\"\",\"\",P167/$C$167)","v":""},null,{"$f":"IF($C$167=\"\",\"\",R167/$C$167)","v":""},null,{"$f":"IF($C$167=\"\",\"\",T167/$C$167)","v":""},null,{"$f":"IF($C$167=\"\",\"\",V167/$C$167)","v":""},null,{"$f":"IF($C$167=\"\",\"\",X167/$C$167)","v":""},null,{"$f":"IF($C$167=\"\",\"\",Z167/$C$167)","v":""},null,{"$f":"IF($C$167=\"\",\"\",AB167/$C$167)","v":""},null,{"$f":"IF($C$167=\"\",\"\",AD167/$C$167)","v":""},null,{"$f":"IF($C$167=\"\",\"\",AF167/$C$167)","v":""},null,{"$f":"IF($C$167=\"\",\"\",AH167/$C$167)","v":""},null,{"$f":"IF($C$167=\"\",\"\",AJ167/$C$167)","v":""},null,{"$f":"IF($C$167=\"\",\"\",AL167/$C$167)","v":""},null,{"$f":"IF($C$167=\"\",\"\",AN167/$C$167)","v":""},null,{"$f":"IF($C$167=\"\",\"\",AP167/$C$167)","v":""},null,{"$f":"IF($C$167=\"\",\"\",AR167/$C$167)","v":""},null,{"$f":"IF($C$167=\"\",\"\",AT167/$C$167)","v":""},null,{"$f":"IF($C$167=\"\",\"\",AV167/$C$167)","v":""},null,{"$f":"IF($C$167=\"\",\"\",AX167/$C$167)","v":""},null,{"$f":"IF($C$167=\"\",\"\",AZ167/$C$167)","v":""},null,{"$f":"IF($C$167=\"\",\"\",BB167/$C$167)","v":""},null,0]
[null,null,null,null,{"$f":"IF($C$168=\"\",\"\",F168/$C$168)","v":""},null,{"$f":"IF($C$168=\"\",\"\",H168/$C$168)","v":""},null,{"$f":"IF($C$168=\"\",\"\",J168/$C$168)","v":""},null,{"$f":"IF($C$168=\"\",\"\",L168/$C$168)","v":""},null,{"$f":"IF($C$168=\"\",\"\",N168/$C$168)","v":""},null,{"$f":"IF($C$168=\"\",\"\",P168/$C$168)","v":""},null,{"$f":"IF($C$168=\"\",\"\",R168/$C$168)","v":""},null,{"$f":"IF($C$168=\"\",\"\",T168/$C$168)","v":""},null,{"$f":"IF($C$168=\"\",\"\",V168/$C$168)","v":""},null,{"$f":"IF($C$168=\"\",\"\",X168/$C$168)","v":""},null,{"$f":"IF($C$168=\"\",\"\",Z168/$C$168)","v":""},null,{"$f":"IF($C$168=\"\",\"\",AB168/$C$168)","v":""},null,{"$f":"IF($C$168=\"\",\"\",AD168/$C$168)","v":""},null,{"$f":"IF($C$168=\"\",\"\",AF168/$C$168)","v":""},null,{"$f":"IF($C$168=\"\",\"\",AH168/$C$168)","v":""},null,{"$f":"IF($C$168=\"\",\"\",AJ168/$C$168)","v":""},null,{"$f":"IF($C$168=\"\",\"\",AL168/$C$168)","v":""},null,{"$f":"IF($C$168=\"\",\"\",AN168/$C$168)","v":""},null,{"$f":"IF($C$168=\"\",\"\",AP168/$C$168)","v":""},null,{"$f":"IF($C$168=\"\",\"\",AR168/$C$168)","v":""},null,{"$f":"IF($C$168=\"\",\"\",AT168/$C$168)","v":""},null,{"$f":"IF($C$168=\"\",\"\",AV168/$C$168)","v":""},null,{"$f":"IF($C$168=\"\",\"\",AX168/$C$168)","v":""},null,{"$f":"IF($C$168=\"\",\"\",AZ168/$C$168)","v":""},null,{"$f":"IF($C$168=\"\",\"\",BB168/$C$168)","v":""},null,0]
[null,null,null,null,{"$f":"IF($C$169=\"\",\"\",F169/$C$169)","v":""},null,{"$f":"IF($C$169=\"\",\"\",H169/$C$169)","v":""},null,{"$f":"IF($C$169=\"\",\"\",J169/$C$169)","v":""},null,{"$f":"IF($C$169=\"\",\"\",L169/$C$169)","v":""},null,{"$f":"IF($C$169=\"\",\"\",N169/$C$169)","v":""},null,{"$f":"IF($C$169=\"\",\"\",P169/$C$169)","v":""},null,{"$f":"IF($C$169=\"\",\"\",R169/$C$169)","v":""},null,{"$f":"IF($C$169=\"\",\"\",T169/$C$169)","v":""},null,{"$f":"IF($C$169=\"\",\"\",V169/$C$169)","v":""},null,{"$f":"IF($C$169=\"\",\"\",X169/$C$169)","v":""},null,{"$f":"IF($C$169=\"\",\"\",Z169/$C$169)","v":""},null,{"$f":"IF($C$169=\"\",\"\",AB169/$C$169)","v":""},null,{"$f":"IF($C$169=\"\",\"\",AD169/$C$169)","v":""},null,{"$f":"IF($C$169=\"\",\"\",AF169/$C$169)","v":""},null,{"$f":"IF($C$169=\"\",\"\",AH169/$C$169)","v":""},null,{"$f":"IF($C$169=\"\",\"\",AJ169/$C$169)","v":""},null,{"$f":"IF($C$169=\"\",\"\",AL169/$C$169)","v":""},null,{"$f":"IF($C$169=\"\",\"\",AN169/$C$169)","v":""},null,{"$f":"IF($C$169=\"\",\"\",AP169/$C$169)","v":""},null,{"$f":"IF($C$169=\"\",\"\",AR169/$C$169)","v":""},null,{"$f":"IF($C$169=\"\",\"\",AT169/$C$169)","v":""},null,{"$f":"IF($C$169=\"\",\"\",AV169/$C$169)","v":""},null,{"$f":"IF($C$169=\"\",\"\",AX169/$C$169)","v":""},null,{"$f":"IF($C$169=\"\",\"\",AZ169/$C$169)","v":""},null,{"$f":"IF($C$169=\"\",\"\",BB169/$C$169)","v":""},null,0]
[null,null,null,null,{"$f":"IF($C$170=\"\",\"\",F170/$C$170)","v":""},null,{"$f":"IF($C$170=\"\",\"\",H170/$C$170)","v":""},null,{"$f":"IF($C$170=\"\",\"\",J170/$C$170)","v":""},null,{"$f":"IF($C$170=\"\",\"\",L170/$C$170)","v":""},null,{"$f":"IF($C$170=\"\",\"\",N170/$C$170)","v":""},null,{"$f":"IF($C$170=\"\",\"\",P170/$C$170)","v":""},null,{"$f":"IF($C$170=\"\",\"\",R170/$C$170)","v":""},null,{"$f":"IF($C$170=\"\",\"\",T170/$C$170)","v":""},null,{"$f":"IF($C$170=\"\",\"\",V170/$C$170)","v":""},null,{"$f":"IF($C$170=\"\",\"\",X170/$C$170)","v":""},null,{"$f":"IF($C$170=\"\",\"\",Z170/$C$170)","v":""},null,{"$f":"IF($C$170=\"\",\"\",AB170/$C$170)","v":""},null,{"$f":"IF($C$170=\"\",\"\",AD170/$C$170)","v":""},null,{"$f":"IF($C$170=\"\",\"\",AF170/$C$170)","v":""},null,{"$f":"IF($C$170=\"\",\"\",AH170/$C$170)","v":""},null,{"$f":"IF($C$170=\"\",\"\",AJ170/$C$170)","v":""},null,{"$f":"IF($C$170=\"\",\"\",AL170/$C$170)","v":""},null,{"$f":"IF($C$170=\"\",\"\",AN170/$C$170)","v":""},null,{"$f":"IF($C$170=\"\",\"\",AP170/$C$170)","v":""},null,{"$f":"IF($C$170=\"\",\"\",AR170/$C$170)","v":""},null,{"$f":"IF($C$170=\"\",\"\",AT170/$C$170)","v":""},null,{"$f":"IF($C$170=\"\",\"\",AV170/$C$170)","v":""},null,{"$f":"IF($C$170=\"\",\"\",AX170/$C$170)","v":""},null,{"$f":"IF($C$170=\"\",\"\",AZ170/$C$170)","v":""},null,{"$f":"IF($C$170=\"\",\"\",BB170/$C$170)","v":""},null,0]
[null,null,null,null,{"$f":"IF($C$171=\"\",\"\",F171/$C$171)","v":""},null,{"$f":"IF($C$171=\"\",\"\",H171/$C$171)","v":""},null,{"$f":"IF($C$171=\"\",\"\",J171/$C$171)","v":""},null,{"$f":"IF($C$171=\"\",\"\",L171/$C$171)","v":""},null,{"$f":"IF($C$171=\"\",\"\",N171/$C$171)","v":""},null,{"$f":"IF($C$171=\"\",\"\",P171/$C$171)","v":""},null,{"$f":"IF($C$171=\"\",\"\",R171/$C$171)","v":""},null,{"$f":"IF($C$171=\"\",\"\",T171/$C$171)","v":""},null,{"$f":"IF($C$171=\"\",\"\",V171/$C$171)","v":""},null,{"$f":"IF($C$171=\"\",\"\",X171/$C$171)","v":""},null,{"$f":"IF($C$171=\"\",\"\",Z171/$C$171)","v":""},null,{"$f":"IF($C$171=\"\",\"\",AB171/$C$171)","v":""},null,{"$f":"IF($C$171=\"\",\"\",AD171/$C$171)","v":""},null,{"$f":"IF($C$171=\"\",\"\",AF171/$C$171)","v":""},null,{"$f":"IF($C$171=\"\",\"\",AH171/$C$171)","v":""},null,{"$f":"IF($C$171=\"\",\"\",AJ171/$C$171)","v":""},null,{"$f":"IF($C$171=\"\",\"\",AL171/$C$171)","v":""},null,{"$f":"IF($C$171=\"\",\"\",AN171/$C$171)","v":""},null,{"$f":"IF($C$171=\"\",\"\",AP171/$C$171)","v":""},null,{"$f":"IF($C$171=\"\",\"\",AR171/$C$171)","v":""},null,{"$f":"IF($C$171=\"\",\"\",AT171/$C$171)","v":""},null,{"$f":"IF($C$171=\"\",\"\",AV171/$C$171)","v":""},null,{"$f":"IF($C$171=\"\",\"\",AX171/$C$171)","v":""},null,{"$f":"IF($C$171=\"\",\"\",AZ171/$C$171)","v":""},null,{"$f":"IF($C$171=\"\",\"\",BB171/$C$171)","v":""},null,0]
[null,null,null,null,{"$f":"IF($C$172=\"\",\"\",F172/$C$172)","v":""},null,{"$f":"IF($C$172=\"\",\"\",H172/$C$172)","v":""},null,{"$f":"IF($C$172=\"\",\"\",J172/$C$172)","v":""},null,{"$f":"IF($C$172=\"\",\"\",L172/$C$172)","v":""},null,{"$f":"IF($C$172=\"\",\"\",N172/$C$172)","v":""},null,{"$f":"IF($C$172=\"\",\"\",P172/$C$172)","v":""},null,{"$f":"IF($C$172=\"\",\"\",R172/$C$172)","v":""},null,{"$f":"IF($C$172=\"\",\"\",T172/$C$172)","v":""},null,{"$f":"IF($C$172=\"\",\"\",V172/$C$172)","v":""},null,{"$f":"IF($C$172=\"\",\"\",X172/$C$172)","v":""},null,{"$f":"IF($C$172=\"\",\"\",Z172/$C$172)","v":""},null,{"$f":"IF($C$172=\"\",\"\",AB172/$C$172)","v":""},null,{"$f":"IF($C$172=\"\",\"\",AD172/$C$172)","v":""},null,{"$f":"IF($C$172=\"\",\"\",AF172/$C$172)","v":""},null,{"$f":"IF($C$172=\"\",\"\",AH172/$C$172)","v":""},null,{"$f":"IF($C$172=\"\",\"\",AJ172/$C$172)","v":""},null,{"$f":"IF($C$172=\"\",\"\",AL172/$C$172)","v":""},null,{"$f":"IF($C$172=\"\",\"\",AN172/$C$172)","v":""},null,{"$f":"IF($C$172=\"\",\"\",AP172/$C$172)","v":""},null,{"$f":"IF($C$172=\"\",\"\",AR172/$C$172)","v":""},null,{"$f":"IF($C$172=\"\",\"\",AT172/$C$172)","v":""},null,{"$f":"IF($C$172=\"\",\"\",AV172/$C$172)","v":""},null,{"$f":"IF($C$172=\"\",\"\",AX172/$C$172)","v":""},null,{"$f":"IF($C$172=\"\",\"\",AZ172/$C$172)","v":""},null,{"$f":"IF($C$172=\"\",\"\",BB172/$C$172)","v":""},null,0]
[null,null,null,null,{"$f":"IF($C$173=\"\",\"\",F173/$C$173)","v":""},null,{"$f":"IF($C$173=\"\",\"\",H173/$C$173)","v":""},null,{"$f":"IF($C$173=\"\",\"\",J173/$C$173)","v":""},null,{"$f":"IF($C$173=\"\",\"\",L173/$C$173)","v":""},null,{"$f":"IF($C$173=\"\",\"\",N173/$C$173)","v":""},null,{"$f":"IF($C$173=\"\",\"\",P173/$C$173)","v":""},null,{"$f":"IF($C$173=\"\",\"\",R173/$C$173)","v":""},null,{"$f":"IF($C$173=\"\",\"\",T173/$C$173)","v":""},null,{"$f":"IF($C$173=\"\",\"\",V173/$C$173)","v":""},null,{"$f":"IF($C$173=\"\",\"\",X173/$C$173)","v":""},null,{"$f":"IF($C$173=\"\",\"\",Z173/$C$173)","v":""},null,{"$f":"IF($C$173=\"\",\"\",AB173/$C$173)","v":""},null,{"$f":"IF($C$173=\"\",\"\",AD173/$C$173)","v":""},null,{"$f":"IF($C$173=\"\",\"\",AF173/$C$173)","v":""},null,{"$f":"IF($C$173=\"\",\"\",AH173/$C$173)","v":""},null,{"$f":"IF($C$173=\"\",\"\",AJ173/$C$173)","v":""},null,{"$f":"IF($C$173=\"\",\"\",AL173/$C$173)","v":""},null,{"$f":"IF($C$173=\"\",\"\",AN173/$C$173)","v":""},null,{"$f":"IF($C$173=\"\",\"\",AP173/$C$173)","v":""},null,{"$f":"IF($C$173=\"\",\"\",AR173/$C$173)","v":""},null,{"$f":"IF($C$173=\"\",\"\",AT173/$C$173)","v":""},null,{"$f":"IF($C$173=\"\",\"\",AV173/$C$173)","v":""},null,{"$f":"IF($C$173=\"\",\"\",AX173/$C$173)","v":""},null,{"$f":"IF($C$173=\"\",\"\",AZ173/$C$173)","v":""},null,{"$f":"IF($C$173=\"\",\"\",BB173/$C$173)","v":""},null,0]
[null,null,null,null,{"$f":"IF($C$174=\"\",\"\",F174/$C$174)","v":""},null,{"$f":"IF($C$174=\"\",\"\",H174/$C$174)","v":""},null,{"$f":"IF($C$174=\"\",\"\",J174/$C$174)","v":""},null,{"$f":"IF($C$174=\"\",\"\",L174/$C$174)","v":""},null,{"$f":"IF($C$174=\"\",\"\",N174/$C$174)","v":""},null,{"$f":"IF($C$174=\"\",\"\",P174/$C$174)","v":""},null,{"$f":"IF($C$174=\"\",\"\",R174/$C$174)","v":""},null,{"$f":"IF($C$174=\"\",\"\",T174/$C$174)","v":""},null,{"$f":"IF($C$174=\"\",\"\",V174/$C$174)","v":""},null,{"$f":"IF($C$174=\"\",\"\",X174/$C$174)","v":""},null,{"$f":"IF($C$174=\"\",\"\",Z174/$C$174)","v":""},null,{"$f":"IF($C$174=\"\",\"\",AB174/$C$174)","v":""},null,{"$f":"IF($C$174=\"\",\"\",AD174/$C$174)","v":""},null,{"$f":"IF($C$174=\"\",\"\",AF174/$C$174)","v":""},null,{"$f":"IF($C$174=\"\",\"\",AH174/$C$174)","v":""},null,{"$f":"IF($C$174=\"\",\"\",AJ174/$C$174)","v":""},null,{"$f":"IF($C$174=\"\",\"\",AL174/$C$174)","v":""},null,{"$f":"IF($C$174=\"\",\"\",AN174/$C$174)","v":""},null,{"$f":"IF($C$174=\"\",\"\",AP174/$C$174)","v":""},null,{"$f":"IF($C$174=\"\",\"\",AR174/$C$174)","v":""},null,{"$f":"IF($C$174=\"\",\"\",AT174/$C$174)","v":""},null,{"$f":"IF($C$174=\"\",\"\",AV174/$C$174)","v":""},null,{"$f":"IF($C$174=\"\",\"\",AX174/$C$174)","v":""},null,{"$f":"IF($C$174=\"\",\"\",AZ174/$C$174)","v":""},null,{"$f":"IF($C$174=\"\",\"\",BB174/$C$174)","v":""},null,{"$f":"SUM(BB174,AZ174,AX174,AV174,AT174,AR174,AP174,AN174,AL174,AJ174,AH174,AF174,AD174,AB174,Z174,X174,V174,T174,R174,P174,N174,L174,J174,H174,F174)","v":0}]
["TOTAL HOURS",null,null,null,null,{"$f":"SUM(F163:F174)","v":0},null,{"$f":"SUM(H163:H174)","v":0},null,{"$f":"SUM(J163:J174)","v":0},null,{"$f":"SUM(L163:L174)","v":0},null,{"$f":"SUM(N163:N174)","v":0},null,{"$f":"SUM(P163:P174)","v":0},null,{"$f":"SUM(R163:R174)","v":0},null,{"$f":"SUM(T163:T174)","v":0},null,{"$f":"SUM(V163:V174)","v":0},null,{"$f":"SUM(X163:X174)","v":0},null,{"$f":"SUM(Z163:Z174)","v":0},null,{"$f":"SUM(AB163:AB174)","v":0},null,{"$f":"SUM(AD163:AD174)","v":0},null,{"$f":"SUM(AF163:AF174)","v":0},null,{"$f":"SUM(AH163:AH174)","v":0},null,{"$f":"SUM(AJ163:AJ174)","v":0},null,{"$f":"SUM(AL163:AL174)","v":0},null,{"$f":"SUM(AN163:AN174)","v":0},null,{"$f":"SUM(AP163:AP174)","v":0},null,{"$f":"SUM(AR163:AR174)","v":0},null,{"$f":"SUM(AT163:AT174)","v":0},null,{"$f":"SUM(AV163:AV174)","v":0},null,{"$f":"SUM(AX163:AX174)","v":0},null,{"$f":"SUM(AZ163:AZ174)","v":0},null,{"$f":"SUM(BB163:BB174)","v":0},{"$f":"SUM(E175:BB175)","v":0}]
["TOTAL WORKDAYS",null,null,null,null,{"$f":"F175/8","v":0},null,{"$f":"H175/8","v":0},null,{"$f":"J175/8","v":0},null,{"$f":"L175/8","v":0},null,{"$f":"N175/8","v":0},null,{"$f":"P175/8","v":0},null,{"$f":"R175/8","v":0},null,{"$f":"T175/8","v":0},null,{"$f":"V175/8","v":0},null,{"$f":"X175/8","v":0},null,{"$f":"Z175/8","v":0},null,{"$f":"AB175/8","v":0},null,{"$f":"AD175/8","v":0},null,0,null,{"$f":"AH175/8","v":0},null,0,null,{"$f":"AL175/8","v":0},null,0,null,{"$f":"AP175/8","v":0},null,0,null,{"$f":"AT175/8","v":0},null,{"$f":"AV175/8","v":0},null,{"$f":"AX175/8","v":0},null,{"$f":"AZ175/8","v":0},null,{"$f":"BB175/8","v":0},{"$f":"SUM(E176:BB176)","v":0}]
["TOTAL RAW LABOR",null,null,null,null,{"$f":"$E$13*F175","v":0},null,{"$f":"$G$13*H175","v":0},null,{"$f":"$I$13*J175","v":0},null,{"$f":"$K$13*L175","v":0},null,{"$f":"$M$13*N175","v":0},null,{"$f":"$O$13*P175","v":0},null,{"$f":"$Q$13*R175","v":0},null,{"$f":"$S$13*T175","v":0},null,{"$f":"$U$13*V175","v":0},null,{"$f":"$W$13*X175","v":0},null,{"$f":"$Y$13*Z175","v":0},null,{"$f":"$AA$13*AB175","v":0},null,{"$f":"$AC$13*AD175","v":0},null,{"$f":"$AC$13*AF175","v":0},null,{"$f":"$AC$13*AH175","v":0},null,{"$f":"$AC$13*AJ175","v":0},null,{"$f":"$AC$13*AL175","v":0},null,{"$f":"$AC$13*AN175","v":0},null,{"$f":"$AC$13*AP175","v":0},null,{"$f":"$AC$13*AR175","v":0},null,{"$f":"$AC$13*AT175","v":0},null,{"$f":"$AC$13*AV175","v":0},null,{"$f":"$AC$13*AX175","v":0},null,{"$f":"$AC$13*AZ175","v":0},null,{"$f":"$AC$13*BB175","v":0},{"$f":"SUM(E177:BB177)","v":0}]
["Task 7.0     ","SYSTEM BOUNDARIES AND SYSTEM DETECTOR LAYOUT"]
[7.1,"Identify System Boundary and Control Sections",null,null,{"$f":"IF($C$179=\"\",\"\",F179/$C$179)","v":""},null,{"$f":"IF($C$179=\"\",\"\",H179/$C$179)","v":""},null,{"$f":"IF($C$179=\"\",\"\",J179/$C$179)","v":""},null,{"$f":"IF($C$179=\"\",\"\",L179/$C$179)","v":""},null,{"$f":"IF($C$179=\"\",\"\",N179/$C$179)","v":""},null,{"$f":"IF($C$179=\"\",\"\",P179/$C$179)","v":""},null,{"$f":"IF($C$179=\"\",\"\",R179/$C$179)","v":""},null,{"$f":"IF($C$179=\"\",\"\",T179/$C$179)","v":""},null,{"$f":"IF($C$179=\"\",\"\",V179/$C$179)","v":""},null,{"$f":"IF($C$179=\"\",\"\",X179/$C$179)","v":""},null,{"$f":"IF($C$179=\"\",\"\",Z179/$C$179)","v":""},null,{"$f":"IF($C$179=\"\",\"\",AB179/$C$179)","v":""},null,{"$f":"IF($C$179=\"\",\"\",AD179/$C$179)","v":""},null,{"$f":"IF($C$179=\"\",\"\",AF179/$C$179)","v":""},null,{"$f":"IF($C$179=\"\",\"\",AH179/$C$179)","v":""},null,{"$f":"IF($C$179=\"\",\"\",AJ179/$C$179)","v":""},null,{"$f":"IF($C$179=\"\",\"\",AL179/$C$179)","v":""},null,{"$f":"IF($C$179=\"\",\"\",AN179/$C$179)","v":""},null,{"$f":"IF($C$179=\"\",\"\",AP179/$C$179)","v":""},null,{"$f":"IF($C$179=\"\",\"\",AR179/$C$179)","v":""},null,{"$f":"IF($C$179=\"\",\"\",AT179/$C$179)","v":""},null,{"$f":"IF($C$179=\"\",\"\",AV179/$C$179)","v":""},null,{"$f":"IF($C$179=\"\",\"\",AX179/$C$179)","v":""},null,{"$f":"IF($C$179=\"\",\"\",AZ179/$C$179)","v":""},null,{"$f":"IF($C$179=\"\",\"\",BB179/$C$179)","v":""},null,{"$f":"SUM(BB179,AZ179,AX179,AV179,AT179,AR179,AP179,AN179,AL179,AJ179,AH179,AF179,AD179,AB179,Z179,X179,V179,T179,R179,P179,N179,L179,J179,H179,F179)","v":0}]
[7.2,"Develop System-Wide System Detector Schematic",null,null,{"$f":"IF($C$180=\"\",\"\",F180/$C$180)","v":""},null,{"$f":"IF($C$180=\"\",\"\",H180/$C$180)","v":""},null,{"$f":"IF($C$180=\"\",\"\",J180/$C$180)","v":""},null,{"$f":"IF($C$180=\"\",\"\",L180/$C$180)","v":""},null,{"$f":"IF($C$180=\"\",\"\",N180/$C$180)","v":""},null,{"$f":"IF($C$180=\"\",\"\",P180/$C$180)","v":""},null,{"$f":"IF($C$180=\"\",\"\",R180/$C$180)","v":""},null,{"$f":"IF($C$180=\"\",\"\",T180/$C$180)","v":""},null,{"$f":"IF($C$180=\"\",\"\",V180/$C$180)","v":""},null,{"$f":"IF($C$180=\"\",\"\",X180/$C$180)","v":""},null,{"$f":"IF($C$180=\"\",\"\",Z180/$C$180)","v":""},null,{"$f":"IF($C$180=\"\",\"\",AB180/$C$180)","v":""},null,{"$f":"IF($C$180=\"\",\"\",AD180/$C$180)","v":""},null,{"$f":"IF($C$180=\"\",\"\",AF180/$C$180)","v":""},null,{"$f":"IF($C$180=\"\",\"\",AH180/$C$180)","v":""},null,{"$f":"IF($C$180=\"\",\"\",AJ180/$C$180)","v":""},null,{"$f":"IF($C$180=\"\",\"\",AL180/$C$180)","v":""},null,{"$f":"IF($C$180=\"\",\"\",AN180/$C$180)","v":""},null,{"$f":"IF($C$180=\"\",\"\",AP180/$C$180)","v":""},null,{"$f":"IF($C$180=\"\",\"\",AR180/$C$180)","v":""},null,{"$f":"IF($C$180=\"\",\"\",AT180/$C$180)","v":""},null,{"$f":"IF($C$180=\"\",\"\",AV180/$C$180)","v":""},null,{"$f":"IF($C$180=\"\",\"\",AX180/$C$180)","v":""},null,{"$f":"IF($C$180=\"\",\"\",AZ180/$C$180)","v":""},null,{"$f":"IF($C$180=\"\",\"\",BB180/$C$180)","v":""},null,0]
[null,null,null,null,{"$f":"IF($C$181=\"\",\"\",F181/$C$181)","v":""},null,{"$f":"IF($C$181=\"\",\"\",H181/$C$181)","v":""},null,{"$f":"IF($C$181=\"\",\"\",J181/$C$181)","v":""},null,{"$f":"IF($C$181=\"\",\"\",L181/$C$181)","v":""},null,{"$f":"IF($C$181=\"\",\"\",N181/$C$181)","v":""},null,{"$f":"IF($C$181=\"\",\"\",P181/$C$181)","v":""},null,{"$f":"IF($C$181=\"\",\"\",R181/$C$181)","v":""},null,{"$f":"IF($C$181=\"\",\"\",T181/$C$181)","v":""},null,{"$f":"IF($C$181=\"\",\"\",V181/$C$181)","v":""},null,{"$f":"IF($C$181=\"\",\"\",X181/$C$181)","v":""},null,{"$f":"IF($C$181=\"\",\"\",Z181/$C$181)","v":""},null,{"$f":"IF($C$181=\"\",\"\",AB181/$C$181)","v":""},null,{"$f":"IF($C$181=\"\",\"\",AD181/$C$181)","v":""},null,{"$f":"IF($C$181=\"\",\"\",AF181/$C$181)","v":""},null,{"$f":"IF($C$181=\"\",\"\",AH181/$C$181)","v":""},null,{"$f":"IF($C$181=\"\",\"\",AJ181/$C$181)","v":""},null,{"$f":"IF($C$181=\"\",\"\",AL181/$C$181)","v":""},null,{"$f":"IF($C$181=\"\",\"\",AN181/$C$181)","v":""},null,{"$f":"IF($C$181=\"\",\"\",AP181/$C$181)","v":""},null,{"$f":"IF($C$181=\"\",\"\",AR181/$C$181)","v":""},null,{"$f":"IF($C$181=\"\",\"\",AT181/$C$181)","v":""},null,{"$f":"IF($C$181=\"\",\"\",AV181/$C$181)","v":""},null,{"$f":"IF($C$181=\"\",\"\",AX181/$C$181)","v":""},null,{"$f":"IF($C$181=\"\",\"\",AZ181/$C$181)","v":""},null,{"$f":"IF($C$181=\"\",\"\",BB181/$C$181)","v":""},null,0]
[null,null,null,null,{"$f":"IF($C$182=\"\",\"\",F182/$C$182)","v":""},null,{"$f":"IF($C$182=\"\",\"\",H182/$C$182)","v":""},null,{"$f":"IF($C$182=\"\",\"\",J182/$C$182)","v":""},null,{"$f":"IF($C$182=\"\",\"\",L182/$C$182)","v":""},null,{"$f":"IF($C$182=\"\",\"\",N182/$C$182)","v":""},null,{"$f":"IF($C$182=\"\",\"\",P182/$C$182)","v":""},null,{"$f":"IF($C$182=\"\",\"\",R182/$C$182)","v":""},null,{"$f":"IF($C$182=\"\",\"\",T182/$C$182)","v":""},null,{"$f":"IF($C$182=\"\",\"\",V182/$C$182)","v":""},null,{"$f":"IF($C$182=\"\",\"\",X182/$C$182)","v":""},null,{"$f":"IF($C$182=\"\",\"\",Z182/$C$182)","v":""},null,{"$f":"IF($C$182=\"\",\"\",AB182/$C$182)","v":""},null,{"$f":"IF($C$182=\"\",\"\",AD182/$C$182)","v":""},null,{"$f":"IF($C$182=\"\",\"\",AF182/$C$182)","v":""},null,{"$f":"IF($C$182=\"\",\"\",AH182/$C$182)","v":""},null,{"$f":"IF($C$182=\"\",\"\",AJ182/$C$182)","v":""},null,{"$f":"IF($C$182=\"\",\"\",AL182/$C$182)","v":""},null,{"$f":"IF($C$182=\"\",\"\",AN182/$C$182)","v":""},null,{"$f":"IF($C$182=\"\",\"\",AP182/$C$182)","v":""},null,{"$f":"IF($C$182=\"\",\"\",AR182/$C$182)","v":""},null,{"$f":"IF($C$182=\"\",\"\",AT182/$C$182)","v":""},null,{"$f":"IF($C$182=\"\",\"\",AV182/$C$182)","v":""},null,{"$f":"IF($C$182=\"\",\"\",AX182/$C$182)","v":""},null,{"$f":"IF($C$182=\"\",\"\",AZ182/$C$182)","v":""},null,{"$f":"IF($C$182=\"\",\"\",BB182/$C$182)","v":""},null,0]
[null,null,null,null,{"$f":"IF($C$183=\"\",\"\",F183/$C$183)","v":""},null,{"$f":"IF($C$183=\"\",\"\",H183/$C$183)","v":""},null,{"$f":"IF($C$183=\"\",\"\",J183/$C$183)","v":""},null,{"$f":"IF($C$183=\"\",\"\",L183/$C$183)","v":""},null,{"$f":"IF($C$183=\"\",\"\",N183/$C$183)","v":""},null,{"$f":"IF($C$183=\"\",\"\",P183/$C$183)","v":""},null,{"$f":"IF($C$183=\"\",\"\",R183/$C$183)","v":""},null,{"$f":"IF($C$183=\"\",\"\",T183/$C$183)","v":""},null,{"$f":"IF($C$183=\"\",\"\",V183/$C$183)","v":""},null,{"$f":"IF($C$183=\"\",\"\",X183/$C$183)","v":""},null,{"$f":"IF($C$183=\"\",\"\",Z183/$C$183)","v":""},null,{"$f":"IF($C$183=\"\",\"\",AB183/$C$183)","v":""},null,{"$f":"IF($C$183=\"\",\"\",AD183/$C$183)","v":""},null,{"$f":"IF($C$183=\"\",\"\",AF183/$C$183)","v":""},null,{"$f":"IF($C$183=\"\",\"\",AH183/$C$183)","v":""},null,{"$f":"IF($C$183=\"\",\"\",AJ183/$C$183)","v":""},null,{"$f":"IF($C$183=\"\",\"\",AL183/$C$183)","v":""},null,{"$f":"IF($C$183=\"\",\"\",AN183/$C$183)","v":""},null,{"$f":"IF($C$183=\"\",\"\",AP183/$C$183)","v":""},null,{"$f":"IF($C$183=\"\",\"\",AR183/$C$183)","v":""},null,{"$f":"IF($C$183=\"\",\"\",AT183/$C$183)","v":""},null,{"$f":"IF($C$183=\"\",\"\",AV183/$C$183)","v":""},null,{"$f":"IF($C$183=\"\",\"\",AX183/$C$183)","v":""},null,{"$f":"IF($C$183=\"\",\"\",AZ183/$C$183)","v":""},null,{"$f":"IF($C$183=\"\",\"\",BB183/$C$183)","v":""},null,0]
[null,null,null,null,{"$f":"IF($C$184=\"\",\"\",F184/$C$184)","v":""},null,{"$f":"IF($C$184=\"\",\"\",H184/$C$184)","v":""},null,{"$f":"IF($C$184=\"\",\"\",J184/$C$184)","v":""},null,{"$f":"IF($C$184=\"\",\"\",L184/$C$184)","v":""},null,{"$f":"IF($C$184=\"\",\"\",N184/$C$184)","v":""},null,{"$f":"IF($C$184=\"\",\"\",P184/$C$184)","v":""},null,{"$f":"IF($C$184=\"\",\"\",R184/$C$184)","v":""},null,{"$f":"IF($C$184=\"\",\"\",T184/$C$184)","v":""},null,{"$f":"IF($C$184=\"\",\"\",V184/$C$184)","v":""},null,{"$f":"IF($C$184=\"\",\"\",X184/$C$184)","v":""},null,{"$f":"IF($C$184=\"\",\"\",Z184/$C$184)","v":""},null,{"$f":"IF($C$184=\"\",\"\",AB184/$C$184)","v":""},null,{"$f":"IF($C$184=\"\",\"\",AD184/$C$184)","v":""},null,{"$f":"IF($C$184=\"\",\"\",AF184/$C$184)","v":""},null,{"$f":"IF($C$184=\"\",\"\",AH184/$C$184)","v":""},null,{"$f":"IF($C$184=\"\",\"\",AJ184/$C$184)","v":""},null,{"$f":"IF($C$184=\"\",\"\",AL184/$C$184)","v":""},null,{"$f":"IF($C$184=\"\",\"\",AN184/$C$184)","v":""},null,{"$f":"IF($C$184=\"\",\"\",AP184/$C$184)","v":""},null,{"$f":"IF($C$184=\"\",\"\",AR184/$C$184)","v":""},null,{"$f":"IF($C$184=\"\",\"\",AT184/$C$184)","v":""},null,{"$f":"IF($C$184=\"\",\"\",AV184/$C$184)","v":""},null,{"$f":"IF($C$184=\"\",\"\",AX184/$C$184)","v":""},null,{"$f":"IF($C$184=\"\",\"\",AZ184/$C$184)","v":""},null,{"$f":"IF($C$184=\"\",\"\",BB184/$C$184)","v":""},null,0]
[null,null,null,null,{"$f":"IF($C$185=\"\",\"\",F185/$C$185)","v":""},null,{"$f":"IF($C$185=\"\",\"\",H185/$C$185)","v":""},null,{"$f":"IF($C$185=\"\",\"\",J185/$C$185)","v":""},null,{"$f":"IF($C$185=\"\",\"\",L185/$C$185)","v":""},null,{"$f":"IF($C$185=\"\",\"\",N185/$C$185)","v":""},null,{"$f":"IF($C$185=\"\",\"\",P185/$C$185)","v":""},null,{"$f":"IF($C$185=\"\",\"\",R185/$C$185)","v":""},null,{"$f":"IF($C$185=\"\",\"\",T185/$C$185)","v":""},null,{"$f":"IF($C$185=\"\",\"\",V185/$C$185)","v":""},null,{"$f":"IF($C$185=\"\",\"\",X185/$C$185)","v":""},null,{"$f":"IF($C$185=\"\",\"\",Z185/$C$185)","v":""},null,{"$f":"IF($C$185=\"\",\"\",AB185/$C$185)","v":""},null,{"$f":"IF($C$185=\"\",\"\",AD185/$C$185)","v":""},null,{"$f":"IF($C$185=\"\",\"\",AF185/$C$185)","v":""},null,{"$f":"IF($C$185=\"\",\"\",AH185/$C$185)","v":""},null,{"$f":"IF($C$185=\"\",\"\",AJ185/$C$185)","v":""},null,{"$f":"IF($C$185=\"\",\"\",AL185/$C$185)","v":""},null,{"$f":"IF($C$185=\"\",\"\",AN185/$C$185)","v":""},null,{"$f":"IF($C$185=\"\",\"\",AP185/$C$185)","v":""},null,{"$f":"IF($C$185=\"\",\"\",AR185/$C$185)","v":""},null,{"$f":"IF($C$185=\"\",\"\",AT185/$C$185)","v":""},null,{"$f":"IF($C$185=\"\",\"\",AV185/$C$185)","v":""},null,{"$f":"IF($C$185=\"\",\"\",AX185/$C$185)","v":""},null,{"$f":"IF($C$185=\"\",\"\",AZ185/$C$185)","v":""},null,{"$f":"IF($C$185=\"\",\"\",BB185/$C$185)","v":""},null,0]
[null,null,null,null,{"$f":"IF($C$186=\"\",\"\",F186/$C$186)","v":""},null,{"$f":"IF($C$186=\"\",\"\",H186/$C$186)","v":""},null,{"$f":"IF($C$186=\"\",\"\",J186/$C$186)","v":""},null,{"$f":"IF($C$186=\"\",\"\",L186/$C$186)","v":""},null,{"$f":"IF($C$186=\"\",\"\",N186/$C$186)","v":""},null,{"$f":"IF($C$186=\"\",\"\",P186/$C$186)","v":""},null,{"$f":"IF($C$186=\"\",\"\",R186/$C$186)","v":""},null,{"$f":"IF($C$186=\"\",\"\",T186/$C$186)","v":""},null,{"$f":"IF($C$186=\"\",\"\",V186/$C$186)","v":""},null,{"$f":"IF($C$186=\"\",\"\",X186/$C$186)","v":""},null,{"$f":"IF($C$186=\"\",\"\",Z186/$C$186)","v":""},null,{"$f":"IF($C$186=\"\",\"\",AB186/$C$186)","v":""},null,{"$f":"IF($C$186=\"\",\"\",AD186/$C$186)","v":""},null,{"$f":"IF($C$186=\"\",\"\",AF186/$C$186)","v":""},null,{"$f":"IF($C$186=\"\",\"\",AH186/$C$186)","v":""},null,{"$f":"IF($C$186=\"\",\"\",AJ186/$C$186)","v":""},null,{"$f":"IF($C$186=\"\",\"\",AL186/$C$186)","v":""},null,{"$f":"IF($C$186=\"\",\"\",AN186/$C$186)","v":""},null,{"$f":"IF($C$186=\"\",\"\",AP186/$C$186)","v":""},null,{"$f":"IF($C$186=\"\",\"\",AR186/$C$186)","v":""},null,{"$f":"IF($C$186=\"\",\"\",AT186/$C$186)","v":""},null,{"$f":"IF($C$186=\"\",\"\",AV186/$C$186)","v":""},null,{"$f":"IF($C$186=\"\",\"\",AX186/$C$186)","v":""},null,{"$f":"IF($C$186=\"\",\"\",AZ186/$C$186)","v":""},null,{"$f":"IF($C$186=\"\",\"\",BB186/$C$186)","v":""},null,0]
[null,null,null,null,{"$f":"IF($C$187=\"\",\"\",F187/$C$187)","v":""},null,{"$f":"IF($C$187=\"\",\"\",H187/$C$187)","v":""},null,{"$f":"IF($C$187=\"\",\"\",J187/$C$187)","v":""},null,{"$f":"IF($C$187=\"\",\"\",L187/$C$187)","v":""},null,{"$f":"IF($C$187=\"\",\"\",N187/$C$187)","v":""},null,{"$f":"IF($C$187=\"\",\"\",P187/$C$187)","v":""},null,{"$f":"IF($C$187=\"\",\"\",R187/$C$187)","v":""},null,{"$f":"IF($C$187=\"\",\"\",T187/$C$187)","v":""},null,{"$f":"IF($C$187=\"\",\"\",V187/$C$187)","v":""},null,{"$f":"IF($C$187=\"\",\"\",X187/$C$187)","v":""},null,{"$f":"IF($C$187=\"\",\"\",Z187/$C$187)","v":""},null,{"$f":"IF($C$187=\"\",\"\",AB187/$C$187)","v":""},null,{"$f":"IF($C$187=\"\",\"\",AD187/$C$187)","v":""},null,{"$f":"IF($C$187=\"\",\"\",AF187/$C$187)","v":""},null,{"$f":"IF($C$187=\"\",\"\",AH187/$C$187)","v":""},null,{"$f":"IF($C$187=\"\",\"\",AJ187/$C$187)","v":""},null,{"$f":"IF($C$187=\"\",\"\",AL187/$C$187)","v":""},null,{"$f":"IF($C$187=\"\",\"\",AN187/$C$187)","v":""},null,{"$f":"IF($C$187=\"\",\"\",AP187/$C$187)","v":""},null,{"$f":"IF($C$187=\"\",\"\",AR187/$C$187)","v":""},null,{"$f":"IF($C$187=\"\",\"\",AT187/$C$187)","v":""},null,{"$f":"IF($C$187=\"\",\"\",AV187/$C$187)","v":""},null,{"$f":"IF($C$187=\"\",\"\",AX187/$C$187)","v":""},null,{"$f":"IF($C$187=\"\",\"\",AZ187/$C$187)","v":""},null,{"$f":"IF($C$187=\"\",\"\",BB187/$C$187)","v":""},null,{"$f":"SUM(BB187,AZ187,AX187,AV187,AT187,AR187,AP187,AN187,AL187,AJ187,AH187,AF187,AD187,AB187,Z187,X187,V187,T187,R187,P187,N187,L187,J187,H187,F187)","v":0}]
["TOTAL HOURS",null,null,null,null,{"$f":"SUM(F179:F187)","v":0},null,{"$f":"SUM(H179:H187)","v":0},null,{"$f":"SUM(J179:J187)","v":0},null,{"$f":"SUM(L179:L187)","v":0},null,{"$f":"SUM(N179:N187)","v":0},null,{"$f":"SUM(P179:P187)","v":0},null,{"$f":"SUM(R179:R187)","v":0},null,{"$f":"SUM(T179:T187)","v":0},null,{"$f":"SUM(V179:V187)","v":0},null,{"$f":"SUM(X179:X187)","v":0},null,{"$f":"SUM(Z179:Z187)","v":0},null,{"$f":"SUM(AB179:AB187)","v":0},null,{"$f":"SUM(AD179:AD187)","v":0},null,{"$f":"SUM(AF179:AF187)","v":0},null,{"$f":"SUM(AH179:AH187)","v":0},null,{"$f":"SUM(AJ179:AJ187)","v":0},null,{"$f":"SUM(AL179:AL187)","v":0},null,{"$f":"SUM(AN179:AN187)","v":0},null,{"$f":"SUM(AP179:AP187)","v":0},null,{"$f":"SUM(AR179:AR187)","v":0},null,{"$f":"SUM(AT179:AT187)","v":0},null,{"$f":"SUM(AV179:AV187)","v":0},null,{"$f":"SUM(AX179:AX187)","v":0},null,{"$f":"SUM(AZ179:AZ187)","v":0},null,{"$f":"SUM(BB179:BB187)","v":0},{"$f":"SUM(E188:BB188)","v":0}]
["TOTAL WORKDAYS",null,null,null,null,{"$f":"F188/8","v":0},null,{"$f":"H188/8","v":0},null,{"$f":"J188/8","v":0},null,{"$f":"L188/8","v":0},null,{"$f":"N188/8","v":0},null,{"$f":"P188/8","v":0},null,{"$f":"R188/8","v":0},null,{"$f":"T188/8","v":0},null,{"$f":"V188/8","v":0},null,{"$f":"X188/8","v":0},null,{"$f":"Z188/8","v":0},null,{"$f":"AB188/8","v":0},null,{"$f":"AD188/8","v":0},null,0,null,{"$f":"AH188/8","v":0},null,0,null,{"$f":"AL188/8","v":0},null,0,null,{"$f":"AP188/8","v":0},null,0,null,{"$f":"AT188/8","v":0},null,{"$f":"AV188/8","v":0},null,{"$f":"AX188/8","v":0},null,{"$f":"AZ188/8","v":0},null,{"$f":"BB188/8","v":0},{"$f":"SUM(E189:BB189)","v":0}]
["TOTAL RAW LABOR",null,null,null,null,{"$f":"$E$13*F188","v":0},null,{"$f":"$G$13*H188","v":0},null,{"$f":"$I$13*J188","v":0},null,{"$f":"$K$13*L188","v":0},null,{"$f":"$M$13*N188","v":0},null,{"$f":"$O$13*P188","v":0},null,{"$f":"$Q$13*R188","v":0},null,{"$f":"$S$13*T188","v":0},null,{"$f":"$U$13*V188","v":0},null,{"$f":"$W$13*X188","v":0},null,{"$f":"$Y$13*Z188","v":0},null,{"$f":"$AA$13*AB188","v":0},null,{"$f":"$AC$13*AD188","v":0},null,{"$f":"$AC$13*AF188","v":0},null,{"$f":"$AC$13*AH188","v":0},null,{"$f":"$AC$13*AJ188","v":0},null,{"$f":"$AC$13*AL188","v":0},null,{"$f":"$AC$13*AN188","v":0},null,{"$f":"$AC$13*AP188","v":0},null,{"$f":"$AC$13*AR188","v":0},null,{"$f":"$AC$13*AT188","v":0},null,{"$f":"$AC$13*AV188","v":0},null,{"$f":"$AC$13*AX188","v":0},null,{"$f":"$AC$13*AZ188","v":0},null,{"$f":"$AC$13*BB188","v":0},{"$f":"SUM(E190:BB190)","v":0}]
["Task 8.0     ","RAILROAD ENCROACHMENT PERMIT COORDINATION"]
[8.1,"Identify Railroad Crossings",null,null,{"$f":"IF($C$192=\"\",\"\",F192/$C$192)","v":""},null,{"$f":"IF($C$192=\"\",\"\",H192/$C$192)","v":""},null,{"$f":"IF($C$192=\"\",\"\",J192/$C$192)","v":""},null,{"$f":"IF($C$192=\"\",\"\",L192/$C$192)","v":""},null,{"$f":"IF($C$192=\"\",\"\",N192/$C$192)","v":""},null,{"$f":"IF($C$192=\"\",\"\",P192/$C$192)","v":""},null,{"$f":"IF($C$192=\"\",\"\",R192/$C$192)","v":""},null,{"$f":"IF($C$192=\"\",\"\",T192/$C$192)","v":""},null,{"$f":"IF($C$192=\"\",\"\",V192/$C$192)","v":""},null,{"$f":"IF($C$192=\"\",\"\",X192/$C$192)","v":""},null,{"$f":"IF($C$192=\"\",\"\",Z192/$C$192)","v":""},null,{"$f":"IF($C$192=\"\",\"\",AB192/$C$192)","v":""},null,{"$f":"IF($C$192=\"\",\"\",AD192/$C$192)","v":""},null,{"$f":"IF($C$192=\"\",\"\",AF192/$C$192)","v":""},null,{"$f":"IF($C$192=\"\",\"\",AH192/$C$192)","v":""},null,{"$f":"IF($C$192=\"\",\"\",AJ192/$C$192)","v":""},null,{"$f":"IF($C$192=\"\",\"\",AL192/$C$192)","v":""},null,{"$f":"IF($C$192=\"\",\"\",AN192/$C$192)","v":""},null,{"$f":"IF($C$192=\"\",\"\",AP192/$C$192)","v":""},null,{"$f":"IF($C$192=\"\",\"\",AR192/$C$192)","v":""},null,{"$f":"IF($C$192=\"\",\"\",AT192/$C$192)","v":""},null,{"$f":"IF($C$192=\"\",\"\",AV192/$C$192)","v":""},null,{"$f":"IF($C$192=\"\",\"\",AX192/$C$192)","v":""},null,{"$f":"IF($C$192=\"\",\"\",AZ192/$C$192)","v":""},null,{"$f":"IF($C$192=\"\",\"\",BB192/$C$192)","v":""},null,{"$f":"SUM(BB192,AZ192,AX192,AV192,AT192,AR192,AP192,AN192,AL192,AJ192,AH192,AF192,AD192,AB192,Z192,X192,V192,T192,R192,P192,N192,L192,J192,H192,F192)","v":0}]
[8.1999999999999993,"Collect Railroad Encroachment Data",null,null,{"$f":"IF($C$193=\"\",\"\",F193/$C$193)","v":""},null,{"$f":"IF($C$193=\"\",\"\",H193/$C$193)","v":""},null,{"$f":"IF($C$193=\"\",\"\",J193/$C$193)","v":""},null,{"$f":"IF($C$193=\"\",\"\",L193/$C$193)","v":""},null,{"$f":"IF($C$193=\"\",\"\",N193/$C$193)","v":""},null,{"$f":"IF($C$193=\"\",\"\",P193/$C$193)","v":""},null,{"$f":"IF($C$193=\"\",\"\",R193/$C$193)","v":""},null,{"$f":"IF($C$193=\"\",\"\",T193/$C$193)","v":""},null,{"$f":"IF($C$193=\"\",\"\",V193/$C$193)","v":""},null,{"$f":"IF($C$193=\"\",\"\",X193/$C$193)","v":""},null,{"$f":"IF($C$193=\"\",\"\",Z193/$C$193)","v":""},null,{"$f":"IF($C$193=\"\",\"\",AB193/$C$193)","v":""},null,{"$f":"IF($C$193=\"\",\"\",AD193/$C$193)","v":""},null,{"$f":"IF($C$193=\"\",\"\",AF193/$C$193)","v":""},null,{"$f":"IF($C$193=\"\",\"\",AH193/$C$193)","v":""},null,{"$f":"IF($C$193=\"\",\"\",AJ193/$C$193)","v":""},null,{"$f":"IF($C$193=\"\",\"\",AL193/$C$193)","v":""},null,{"$f":"IF($C$193=\"\",\"\",AN193/$C$193)","v":""},null,{"$f":"IF($C$193=\"\",\"\",AP193/$C$193)","v":""},null,{"$f":"IF($C$193=\"\",\"\",AR193/$C$193)","v":""},null,{"$f":"IF($C$193=\"\",\"\",AT193/$C$193)","v":""},null,{"$f":"IF($C$193=\"\",\"\",AV193/$C$193)","v":""},null,{"$f":"IF($C$193=\"\",\"\",AX193/$C$193)","v":""},null,{"$f":"IF($C$193=\"\",\"\",AZ193/$C$193)","v":""},null,{"$f":"IF($C$193=\"\",\"\",BB193/$C$193)","v":""},null,0]
[8.3000000000000007,"Prepare Figures & Exhibits for Permits",null,null,{"$f":"IF($C$194=\"\",\"\",F194/$C$194)","v":""},null,{"$f":"IF($C$194=\"\",\"\",H194/$C$194)","v":""},null,{"$f":"IF($C$194=\"\",\"\",J194/$C$194)","v":""},null,{"$f":"IF($C$194=\"\",\"\",L194/$C$194)","v":""},null,{"$f":"IF($C$194=\"\",\"\",N194/$C$194)","v":""},null,{"$f":"IF($C$194=\"\",\"\",P194/$C$194)","v":""},null,{"$f":"IF($C$194=\"\",\"\",R194/$C$194)","v":""},null,{"$f":"IF($C$194=\"\",\"\",T194/$C$194)","v":""},null,{"$f":"IF($C$194=\"\",\"\",V194/$C$194)","v":""},null,{"$f":"IF($C$194=\"\",\"\",X194/$C$194)","v":""},null,{"$f":"IF($C$194=\"\",\"\",Z194/$C$194)","v":""},null,{"$f":"IF($C$194=\"\",\"\",AB194/$C$194)","v":""},null,{"$f":"IF($C$194=\"\",\"\",AD194/$C$194)","v":""},null,{"$f":"IF($C$194=\"\",\"\",AF194/$C$194)","v":""},null,{"$f":"IF($C$194=\"\",\"\",AH194/$C$194)","v":""},null,{"$f":"IF($C$194=\"\",\"\",AJ194/$C$194)","v":""},null,{"$f":"IF($C$194=\"\",\"\",AL194/$C$194)","v":""},null,{"$f":"IF($C$194=\"\",\"\",AN194/$C$194)","v":""},null,{"$f":"IF($C$194=\"\",\"\",AP194/$C$194)","v":""},null,{"$f":"IF($C$194=\"\",\"\",AR194/$C$194)","v":""},null,{"$f":"IF($C$194=\"\",\"\",AT194/$C$194)","v":""},null,{"$f":"IF($C$194=\"\",\"\",AV194/$C$194)","v":""},null,{"$f":"IF($C$194=\"\",\"\",AX194/$C$194)","v":""},null,{"$f":"IF($C$194=\"\",\"\",AZ194/$C$194)","v":""},null,{"$f":"IF($C$194=\"\",\"\",BB194/$C$194)","v":""},null,0]
[8.4,"Complete the Permit Forms",null,null,{"$f":"IF($C$195=\"\",\"\",F195/$C$195)","v":""},null,{"$f":"IF($C$195=\"\",\"\",H195/$C$195)","v":""},null,{"$f":"IF($C$195=\"\",\"\",J195/$C$195)","v":""},null,{"$f":"IF($C$195=\"\",\"\",L195/$C$195)","v":""},null,{"$f":"IF($C$195=\"\",\"\",N195/$C$195)","v":""},null,{"$f":"IF($C$195=\"\",\"\",P195/$C$195)","v":""},null,{"$f":"IF($C$195=\"\",\"\",R195/$C$195)","v":""},null,{"$f":"IF($C$195=\"\",\"\",T195/$C$195)","v":""},null,{"$f":"IF($C$195=\"\",\"\",V195/$C$195)","v":""},null,{"$f":"IF($C$195=\"\",\"\",X195/$C$195)","v":""},null,{"$f":"IF($C$195=\"\",\"\",Z195/$C$195)","v":""},null,{"$f":"IF($C$195=\"\",\"\",AB195/$C$195)","v":""},null,{"$f":"IF($C$195=\"\",\"\",AD195/$C$195)","v":""},null,{"$f":"IF($C$195=\"\",\"\",AF195/$C$195)","v":""},null,{"$f":"IF($C$195=\"\",\"\",AH195/$C$195)","v":""},null,{"$f":"IF($C$195=\"\",\"\",AJ195/$C$195)","v":""},null,{"$f":"IF($C$195=\"\",\"\",AL195/$C$195)","v":""},null,{"$f":"IF($C$195=\"\",\"\",AN195/$C$195)","v":""},null,{"$f":"IF($C$195=\"\",\"\",AP195/$C$195)","v":""},null,{"$f":"IF($C$195=\"\",\"\",AR195/$C$195)","v":""},null,{"$f":"IF($C$195=\"\",\"\",AT195/$C$195)","v":""},null,{"$f":"IF($C$195=\"\",\"\",AV195/$C$195)","v":""},null,{"$f":"IF($C$195=\"\",\"\",AX195/$C$195)","v":""},null,{"$f":"IF($C$195=\"\",\"\",AZ195/$C$195)","v":""},null,{"$f":"IF($C$195=\"\",\"\",BB195/$C$195)","v":""},null,0]
[null,null,null,null,{"$f":"IF($C$196=\"\",\"\",F196/$C$196)","v":""},null,{"$f":"IF($C$196=\"\",\"\",H196/$C$196)","v":""},null,{"$f":"IF($C$196=\"\",\"\",J196/$C$196)","v":""},null,{"$f":"IF($C$196=\"\",\"\",L196/$C$196)","v":""},null,{"$f":"IF($C$196=\"\",\"\",N196/$C$196)","v":""},null,{"$f":"IF($C$196=\"\",\"\",P196/$C$196)","v":""},null,{"$f":"IF($C$196=\"\",\"\",R196/$C$196)","v":""},null,{"$f":"IF($C$196=\"\",\"\",T196/$C$196)","v":""},null,{"$f":"IF($C$196=\"\",\"\",V196/$C$196)","v":""},null,{"$f":"IF($C$196=\"\",\"\",X196/$C$196)","v":""},null,{"$f":"IF($C$196=\"\",\"\",Z196/$C$196)","v":""},null,{"$f":"IF($C$196=\"\",\"\",AB196/$C$196)","v":""},null,{"$f":"IF($C$196=\"\",\"\",AD196/$C$196)","v":""},null,{"$f":"IF($C$196=\"\",\"\",AF196/$C$196)","v":""},null,{"$f":"IF($C$196=\"\",\"\",AH196/$C$196)","v":""},null,{"$f":"IF($C$196=\"\",\"\",AJ196/$C$196)","v":""},null,{"$f":"IF($C$196=\"\",\"\",AL196/$C$196)","v":""},null,{"$f":"IF($C$196=\"\",\"\",AN196/$C$196)","v":""},null,{"$f":"IF($C$196=\"\",\"\",AP196/$C$196)","v":""},null,{"$f":"IF($C$196=\"\",\"\",AR196/$C$196)","v":""},null,{"$f":"IF($C$196=\"\",\"\",AT196/$C$196)","v":""},null,{"$f":"IF($C$196=\"\",\"\",AV196/$C$196)","v":""},null,{"$f":"IF($C$196=\"\",\"\",AX196/$C$196)","v":""},null,{"$f":"IF($C$196=\"\",\"\",AZ196/$C$196)","v":""},null,{"$f":"IF($C$196=\"\",\"\",BB196/$C$196)","v":""},null,0]
[null,null,null,null,{"$f":"IF($C$197=\"\",\"\",F197/$C$197)","v":""},null,{"$f":"IF($C$197=\"\",\"\",H197/$C$197)","v":""},null,{"$f":"IF($C$197=\"\",\"\",J197/$C$197)","v":""},null,{"$f":"IF($C$197=\"\",\"\",L197/$C$197)","v":""},null,{"$f":"IF($C$197=\"\",\"\",N197/$C$197)","v":""},null,{"$f":"IF($C$197=\"\",\"\",P197/$C$197)","v":""},null,{"$f":"IF($C$197=\"\",\"\",R197/$C$197)","v":""},null,{"$f":"IF($C$197=\"\",\"\",T197/$C$197)","v":""},null,{"$f":"IF($C$197=\"\",\"\",V197/$C$197)","v":""},null,{"$f":"IF($C$197=\"\",\"\",X197/$C$197)","v":""},null,{"$f":"IF($C$197=\"\",\"\",Z197/$C$197)","v":""},null,{"$f":"IF($C$197=\"\",\"\",AB197/$C$197)","v":""},null,{"$f":"IF($C$197=\"\",\"\",AD197/$C$197)","v":""},null,{"$f":"IF($C$197=\"\",\"\",AF197/$C$197)","v":""},null,{"$f":"IF($C$197=\"\",\"\",AH197/$C$197)","v":""},null,{"$f":"IF($C$197=\"\",\"\",AJ197/$C$197)","v":""},null,{"$f":"IF($C$197=\"\",\"\",AL197/$C$197)","v":""},null,{"$f":"IF($C$197=\"\",\"\",AN197/$C$197)","v":""},null,{"$f":"IF($C$197=\"\",\"\",AP197/$C$197)","v":""},null,{"$f":"IF($C$197=\"\",\"\",AR197/$C$197)","v":""},null,{"$f":"IF($C$197=\"\",\"\",AT197/$C$197)","v":""},null,{"$f":"IF($C$197=\"\",\"\",AV197/$C$197)","v":""},null,{"$f":"IF($C$197=\"\",\"\",AX197/$C$197)","v":""},null,{"$f":"IF($C$197=\"\",\"\",AZ197/$C$197)","v":""},null,{"$f":"IF($C$197=\"\",\"\",BB197/$C$197)","v":""},null,0]
[null,null,null,null,{"$f":"IF($C$198=\"\",\"\",F198/$C$198)","v":""},null,{"$f":"IF($C$198=\"\",\"\",H198/$C$198)","v":""},null,{"$f":"IF($C$198=\"\",\"\",J198/$C$198)","v":""},null,{"$f":"IF($C$198=\"\",\"\",L198/$C$198)","v":""},null,{"$f":"IF($C$198=\"\",\"\",N198/$C$198)","v":""},null,{"$f":"IF($C$198=\"\",\"\",P198/$C$198)","v":""},null,{"$f":"IF($C$198=\"\",\"\",R198/$C$198)","v":""},null,{"$f":"IF($C$198=\"\",\"\",T198/$C$198)","v":""},null,{"$f":"IF($C$198=\"\",\"\",V198/$C$198)","v":""},null,{"$f":"IF($C$198=\"\",\"\",X198/$C$198)","v":""},null,{"$f":"IF($C$198=\"\",\"\",Z198/$C$198)","v":""},null,{"$f":"IF($C$198=\"\",\"\",AB198/$C$198)","v":""},null,{"$f":"IF($C$198=\"\",\"\",AD198/$C$198)","v":""},null,{"$f":"IF($C$198=\"\",\"\",AF198/$C$198)","v":""},null,{"$f":"IF($C$198=\"\",\"\",AH198/$C$198)","v":""},null,{"$f":"IF($C$198=\"\",\"\",AJ198/$C$198)","v":""},null,{"$f":"IF($C$198=\"\",\"\",AL198/$C$198)","v":""},null,{"$f":"IF($C$198=\"\",\"\",AN198/$C$198)","v":""},null,{"$f":"IF($C$198=\"\",\"\",AP198/$C$198)","v":""},null,{"$f":"IF($C$198=\"\",\"\",AR198/$C$198)","v":""},null,{"$f":"IF($C$198=\"\",\"\",AT198/$C$198)","v":""},null,{"$f":"IF($C$198=\"\",\"\",AV198/$C$198)","v":""},null,{"$f":"IF($C$198=\"\",\"\",AX198/$C$198)","v":""},null,{"$f":"IF($C$198=\"\",\"\",AZ198/$C$198)","v":""},null,{"$f":"IF($C$198=\"\",\"\",BB198/$C$198)","v":""},null,0]
[null,null,null,null,{"$f":"IF($C$199=\"\",\"\",F199/$C$199)","v":""},null,{"$f":"IF($C$199=\"\",\"\",H199/$C$199)","v":""},null,{"$f":"IF($C$199=\"\",\"\",J199/$C$199)","v":""},null,{"$f":"IF($C$199=\"\",\"\",L199/$C$199)","v":""},null,{"$f":"IF($C$199=\"\",\"\",N199/$C$199)","v":""},null,{"$f":"IF($C$199=\"\",\"\",P199/$C$199)","v":""},null,{"$f":"IF($C$199=\"\",\"\",R199/$C$199)","v":""},null,{"$f":"IF($C$199=\"\",\"\",T199/$C$199)","v":""},null,{"$f":"IF($C$199=\"\",\"\",V199/$C$199)","v":""},null,{"$f":"IF($C$199=\"\",\"\",X199/$C$199)","v":""},null,{"$f":"IF($C$199=\"\",\"\",Z199/$C$199)","v":""},null,{"$f":"IF($C$199=\"\",\"\",AB199/$C$199)","v":""},null,{"$f":"IF($C$199=\"\",\"\",AD199/$C$199)","v":""},null,{"$f":"IF($C$199=\"\",\"\",AF199/$C$199)","v":""},null,{"$f":"IF($C$199=\"\",\"\",AH199/$C$199)","v":""},null,{"$f":"IF($C$199=\"\",\"\",AJ199/$C$199)","v":""},null,{"$f":"IF($C$199=\"\",\"\",AL199/$C$199)","v":""},null,{"$f":"IF($C$199=\"\",\"\",AN199/$C$199)","v":""},null,{"$f":"IF($C$199=\"\",\"\",AP199/$C$199)","v":""},null,{"$f":"IF($C$199=\"\",\"\",AR199/$C$199)","v":""},null,{"$f":"IF($C$199=\"\",\"\",AT199/$C$199)","v":""},null,{"$f":"IF($C$199=\"\",\"\",AV199/$C$199)","v":""},null,{"$f":"IF($C$199=\"\",\"\",AX199/$C$199)","v":""},null,{"$f":"IF($C$199=\"\",\"\",AZ199/$C$199)","v":""},null,{"$f":"IF($C$199=\"\",\"\",BB199/$C$199)","v":""},null,0]
[null,null,null,null,{"$f":"IF($C$200=\"\",\"\",F200/$C$200)","v":""},null,{"$f":"IF($C$200=\"\",\"\",H200/$C$200)","v":""},null,{"$f":"IF($C$200=\"\",\"\",J200/$C$200)","v":""},null,{"$f":"IF($C$200=\"\",\"\",L200/$C$200)","v":""},null,{"$f":"IF($C$200=\"\",\"\",N200/$C$200)","v":""},null,{"$f":"IF($C$200=\"\",\"\",P200/$C$200)","v":""},null,{"$f":"IF($C$200=\"\",\"\",R200/$C$200)","v":""},null,{"$f":"IF($C$200=\"\",\"\",T200/$C$200)","v":""},null,{"$f":"IF($C$200=\"\",\"\",V200/$C$200)","v":""},null,{"$f":"IF($C$200=\"\",\"\",X200/$C$200)","v":""},null,{"$f":"IF($C$200=\"\",\"\",Z200/$C$200)","v":""},null,{"$f":"IF($C$200=\"\",\"\",AB200/$C$200)","v":""},null,{"$f":"IF($C$200=\"\",\"\",AD200/$C$200)","v":""},null,{"$f":"IF($C$200=\"\",\"\",AF200/$C$200)","v":""},null,{"$f":"IF($C$200=\"\",\"\",AH200/$C$200)","v":""},null,{"$f":"IF($C$200=\"\",\"\",AJ200/$C$200)","v":""},null,{"$f":"IF($C$200=\"\",\"\",AL200/$C$200)","v":""},null,{"$f":"IF($C$200=\"\",\"\",AN200/$C$200)","v":""},null,{"$f":"IF($C$200=\"\",\"\",AP200/$C$200)","v":""},null,{"$f":"IF($C$200=\"\",\"\",AR200/$C$200)","v":""},null,{"$f":"IF($C$200=\"\",\"\",AT200/$C$200)","v":""},null,{"$f":"IF($C$200=\"\",\"\",AV200/$C$200)","v":""},null,{"$f":"IF($C$200=\"\",\"\",AX200/$C$200)","v":""},null,{"$f":"IF($C$200=\"\",\"\",AZ200/$C$200)","v":""},null,{"$f":"IF($C$200=\"\",\"\",BB200/$C$200)","v":""},null,0]
[null,null,null,null,{"$f":"IF($C$201=\"\",\"\",F201/$C$201)","v":""},null,{"$f":"IF($C$201=\"\",\"\",H201/$C$201)","v":""},null,{"$f":"IF($C$201=\"\",\"\",J201/$C$201)","v":""},null,{"$f":"IF($C$201=\"\",\"\",L201/$C$201)","v":""},null,{"$f":"IF($C$201=\"\",\"\",N201/$C$201)","v":""},null,{"$f":"IF($C$201=\"\",\"\",P201/$C$201)","v":""},null,{"$f":"IF($C$201=\"\",\"\",R201/$C$201)","v":""},null,{"$f":"IF($C$201=\"\",\"\",T201/$C$201)","v":""},null,{"$f":"IF($C$201=\"\",\"\",V201/$C$201)","v":""},null,{"$f":"IF($C$201=\"\",\"\",X201/$C$201)","v":""},null,{"$f":"IF($C$201=\"\",\"\",Z201/$C$201)","v":""},null,{"$f":"IF($C$201=\"\",\"\",AB201/$C$201)","v":""},null,{"$f":"IF($C$201=\"\",\"\",AD201/$C$201)","v":""},null,{"$f":"IF($C$201=\"\",\"\",AF201/$C$201)","v":""},null,{"$f":"IF($C$201=\"\",\"\",AH201/$C$201)","v":""},null,{"$f":"IF($C$201=\"\",\"\",AJ201/$C$201)","v":""},null,{"$f":"IF($C$201=\"\",\"\",AL201/$C$201)","v":""},null,{"$f":"IF($C$201=\"\",\"\",AN201/$C$201)","v":""},null,{"$f":"IF($C$201=\"\",\"\",AP201/$C$201)","v":""},null,{"$f":"IF($C$201=\"\",\"\",AR201/$C$201)","v":""},null,{"$f":"IF($C$201=\"\",\"\",AT201/$C$201)","v":""},null,{"$f":"IF($C$201=\"\",\"\",AV201/$C$201)","v":""},null,{"$f":"IF($C$201=\"\",\"\",AX201/$C$201)","v":""},null,{"$f":"IF($C$201=\"\",\"\",AZ201/$C$201)","v":""},null,{"$f":"IF($C$201=\"\",\"\",BB201/$C$201)","v":""},null,0]
[null,null,null,null,{"$f":"IF($C$202=\"\",\"\",F202/$C$202)","v":""},null,{"$f":"IF($C$202=\"\",\"\",H202/$C$202)","v":""},null,{"$f":"IF($C$202=\"\",\"\",J202/$C$202)","v":""},null,{"$f":"IF($C$202=\"\",\"\",L202/$C$202)","v":""},null,{"$f":"IF($C$202=\"\",\"\",N202/$C$202)","v":""},null,{"$f":"IF($C$202=\"\",\"\",P202/$C$202)","v":""},null,{"$f":"IF($C$202=\"\",\"\",R202/$C$202)","v":""},null,{"$f":"IF($C$202=\"\",\"\",T202/$C$202)","v":""},null,{"$f":"IF($C$202=\"\",\"\",V202/$C$202)","v":""},null,{"$f":"IF($C$202=\"\",\"\",X202/$C$202)","v":""},null,{"$f":"IF($C$202=\"\",\"\",Z202/$C$202)","v":""},null,{"$f":"IF($C$202=\"\",\"\",AB202/$C$202)","v":""},null,{"$f":"IF($C$202=\"\",\"\",AD202/$C$202)","v":""},null,{"$f":"IF($C$202=\"\",\"\",AF202/$C$202)","v":""},null,{"$f":"IF($C$202=\"\",\"\",AH202/$C$202)","v":""},null,{"$f":"IF($C$202=\"\",\"\",AJ202/$C$202)","v":""},null,{"$f":"IF($C$202=\"\",\"\",AL202/$C$202)","v":""},null,{"$f":"IF($C$202=\"\",\"\",AN202/$C$202)","v":""},null,{"$f":"IF($C$202=\"\",\"\",AP202/$C$202)","v":""},null,{"$f":"IF($C$202=\"\",\"\",AR202/$C$202)","v":""},null,{"$f":"IF($C$202=\"\",\"\",AT202/$C$202)","v":""},null,{"$f":"IF($C$202=\"\",\"\",AV202/$C$202)","v":""},null,{"$f":"IF($C$202=\"\",\"\",AX202/$C$202)","v":""},null,{"$f":"IF($C$202=\"\",\"\",AZ202/$C$202)","v":""},null,{"$f":"IF($C$202=\"\",\"\",BB202/$C$202)","v":""},null,{"$f":"SUM(BB202,AZ202,AX202,AV202,AT202,AR202,AP202,AN202,AL202,AJ202,AH202,AF202,AD202,AB202,Z202,X202,V202,T202,R202,P202,N202,L202,J202,H202,F202)","v":0}]
["TOTAL HOURS",null,null,null,null,{"$f":"SUM(F192:F202)","v":0},null,{"$f":"SUM(H192:H202)","v":0},null,{"$f":"SUM(J192:J202)","v":0},null,{"$f":"SUM(L192:L202)","v":0},null,{"$f":"SUM(N192:N202)","v":0},null,{"$f":"SUM(P192:P202)","v":0},null,{"$f":"SUM(R192:R202)","v":0},null,{"$f":"SUM(T192:T202)","v":0},null,{"$f":"SUM(V192:V202)","v":0},null,{"$f":"SUM(X192:X202)","v":0},null,{"$f":"SUM(Z192:Z202)","v":0},null,{"$f":"SUM(AB192:AB202)","v":0},null,{"$f":"SUM(AD192:AD202)","v":0},null,{"$f":"SUM(AF192:AF202)","v":0},null,{"$f":"SUM(AH192:AH202)","v":0},null,{"$f":"SUM(AJ192:AJ202)","v":0},null,{"$f":"SUM(AL192:AL202)","v":0},null,{"$f":"SUM(AN192:AN202)","v":0},null,{"$f":"SUM(AP192:AP202)","v":0},null,{"$f":"SUM(AR192:AR202)","v":0},null,{"$f":"SUM(AT192:AT202)","v":0},null,{"$f":"SUM(AV192:AV202)","v":0},null,{"$f":"SUM(AX192:AX202)","v":0},null,{"$f":"SUM(AZ192:AZ202)","v":0},null,{"$f":"SUM(BB192:BB202)","v":0},{"$f":"SUM(E203:BB203)","v":0}]
["TOTAL WORKDAYS",null,null,null,null,{"$f":"F203/8","v":0},null,{"$f":"H203/8","v":0},null,{"$f":"J203/8","v":0},null,{"$f":"L203/8","v":0},null,{"$f":"N203/8","v":0},null,{"$f":"P203/8","v":0},null,{"$f":"R203/8","v":0},null,{"$f":"T203/8","v":0},null,{"$f":"V203/8","v":0},null,{"$f":"X203/8","v":0},null,{"$f":"Z203/8","v":0},null,{"$f":"AB203/8","v":0},null,{"$f":"AD203/8","v":0},null,0,null,{"$f":"AH203/8","v":0},null,0,null,{"$f":"AL203/8","v":0},null,0,null,{"$f":"AP203/8","v":0},null,0,null,{"$f":"AT203/8","v":0},null,{"$f":"AV203/8","v":0},null,{"$f":"AX203/8","v":0},null,{"$f":"AZ203/8","v":0},null,{"$f":"BB203/8","v":0},{"$f":"SUM(E204:BB204)","v":0}]
["TOTAL RAW LABOR",null,null,null,null,{"$f":"$E$13*F203","v":0},null,{"$f":"$G$13*H203","v":0},null,{"$f":"$I$13*J203","v":0},null,{"$f":"$K$13*L203","v":0},null,{"$f":"$M$13*N203","v":0},null,{"$f":"$O$13*P203","v":0},null,{"$f":"$Q$13*R203","v":0},null,{"$f":"$S$13*T203","v":0},null,{"$f":"$U$13*V203","v":0},null,{"$f":"$W$13*X203","v":0},null,{"$f":"$Y$13*Z203","v":0},null,{"$f":"$AA$13*AB203","v":0},null,{"$f":"$AC$13*AD203","v":0},null,{"$f":"$AC$13*AF203","v":0},null,{"$f":"$AC$13*AH203","v":0},null,{"$f":"$AC$13*AJ203","v":0},null,{"$f":"$AC$13*AL203","v":0},null,{"$f":"$AC$13*AN203","v":0},null,{"$f":"$AC$13*AP203","v":0},null,{"$f":"$AC$13*AR203","v":0},null,{"$f":"$AC$13*AT203","v":0},null,{"$f":"$AC$13*AV203","v":0},null,{"$f":"$AC$13*AX203","v":0},null,{"$f":"$AC$13*AZ203","v":0},null,{"$f":"$AC$13*BB203","v":0},{"$f":"SUM(E205:BB205)","v":0}]
["Task 9.0     ","BASIS OF DESIGN DOCUMENT (BODD)"]
[9.1,"Basis of Design Document (BODD)"]
["    9.1.1","    Prepare and Maintain BODD Notebook",null,null,{"$f":"IF($C$208=\"\",\"\",F208/$C$208)","v":""},null,{"$f":"IF($C$208=\"\",\"\",H208/$C$208)","v":""},null,{"$f":"IF($C$208=\"\",\"\",J208/$C$208)","v":""},null,{"$f":"IF($C$208=\"\",\"\",L208/$C$208)","v":""},null,{"$f":"IF($C$208=\"\",\"\",N208/$C$208)","v":""},null,{"$f":"IF($C$208=\"\",\"\",P208/$C$208)","v":""},null,{"$f":"IF($C$208=\"\",\"\",R208/$C$208)","v":""},null,{"$f":"IF($C$208=\"\",\"\",T208/$C$208)","v":""},null,{"$f":"IF($C$208=\"\",\"\",V208/$C$208)","v":""},null,{"$f":"IF($C$208=\"\",\"\",X208/$C$208)","v":""},null,{"$f":"IF($C$208=\"\",\"\",Z208/$C$208)","v":""},null,{"$f":"IF($C$208=\"\",\"\",AB208/$C$208)","v":""},null,{"$f":"IF($C$208=\"\",\"\",AD208/$C$208)","v":""},null,{"$f":"IF($C$208=\"\",\"\",AF208/$C$208)","v":""},null,{"$f":"IF($C$208=\"\",\"\",AH208/$C$208)","v":""},null,{"$f":"IF($C$208=\"\",\"\",AJ208/$C$208)","v":""},null,{"$f":"IF($C$208=\"\",\"\",AL208/$C$208)","v":""},null,{"$f":"IF($C$208=\"\",\"\",AN208/$C$208)","v":""},null,{"$f":"IF($C$208=\"\",\"\",AP208/$C$208)","v":""},null,{"$f":"IF($C$208=\"\",\"\",AR208/$C$208)","v":""},null,{"$f":"IF($C$208=\"\",\"\",AT208/$C$208)","v":""},null,{"$f":"IF($C$208=\"\",\"\",AV208/$C$208)","v":""},null,{"$f":"IF($C$208=\"\",\"\",AX208/$C$208)","v":""},null,{"$f":"IF($C$208=\"\",\"\",AZ208/$C$208)","v":""},null,{"$f":"IF($C$208=\"\",\"\",BB208/$C$208)","v":""},null,{"$f":"SUM(BB208,AZ208,AX208,AV208,AT208,AR208,AP208,AN208,AL208,AJ208,AH208,AF208,AD208,AB208,Z208,X208,V208,T208,R208,P208,N208,L208,J208,H208,F208)","v":0}]
["    9.1.2","    Prepare and Distribute Project Meeting Minutes",null,null,{"$f":"IF($C$209=\"\",\"\",F209/$C$209)","v":""},null,{"$f":"IF($C$209=\"\",\"\",H209/$C$209)","v":""},null,{"$f":"IF($C$209=\"\",\"\",J209/$C$209)","v":""},null,{"$f":"IF($C$209=\"\",\"\",L209/$C$209)","v":""},null,{"$f":"IF($C$209=\"\",\"\",N209/$C$209)","v":""},null,{"$f":"IF($C$209=\"\",\"\",P209/$C$209)","v":""},null,{"$f":"IF($C$209=\"\",\"\",R209/$C$209)","v":""},null,{"$f":"IF($C$209=\"\",\"\",T209/$C$209)","v":""},null,{"$f":"IF($C$209=\"\",\"\",V209/$C$209)","v":""},null,{"$f":"IF($C$209=\"\",\"\",X209/$C$209)","v":""},null,{"$f":"IF($C$209=\"\",\"\",Z209/$C$209)","v":""},null,{"$f":"IF($C$209=\"\",\"\",AB209/$C$209)","v":""},null,{"$f":"IF($C$209=\"\",\"\",AD209/$C$209)","v":""},null,{"$f":"IF($C$209=\"\",\"\",AF209/$C$209)","v":""},null,{"$f":"IF($C$209=\"\",\"\",AH209/$C$209)","v":""},null,{"$f":"IF($C$209=\"\",\"\",AJ209/$C$209)","v":""},null,{"$f":"IF($C$209=\"\",\"\",AL209/$C$209)","v":""},null,{"$f":"IF($C$209=\"\",\"\",AN209/$C$209)","v":""},null,{"$f":"IF($C$209=\"\",\"\",AP209/$C$209)","v":""},null,{"$f":"IF($C$209=\"\",\"\",AR209/$C$209)","v":""},null,{"$f":"IF($C$209=\"\",\"\",AT209/$C$209)","v":""},null,{"$f":"IF($C$209=\"\",\"\",AV209/$C$209)","v":""},null,{"$f":"IF($C$209=\"\",\"\",AX209/$C$209)","v":""},null,{"$f":"IF($C$209=\"\",\"\",AZ209/$C$209)","v":""},null,{"$f":"IF($C$209=\"\",\"\",BB209/$C$209)","v":""},null,0]
["    9.1.3",null,null,null,{"$f":"IF($C$210=\"\",\"\",F210/$C$210)","v":""},null,{"$f":"IF($C$210=\"\",\"\",H210/$C$210)","v":""},null,{"$f":"IF($C$210=\"\",\"\",J210/$C$210)","v":""},null,{"$f":"IF($C$210=\"\",\"\",L210/$C$210)","v":""},null,{"$f":"IF($C$210=\"\",\"\",N210/$C$210)","v":""},null,{"$f":"IF($C$210=\"\",\"\",P210/$C$210)","v":""},null,{"$f":"IF($C$210=\"\",\"\",R210/$C$210)","v":""},null,{"$f":"IF($C$210=\"\",\"\",T210/$C$210)","v":""},null,{"$f":"IF($C$210=\"\",\"\",V210/$C$210)","v":""},null,{"$f":"IF($C$210=\"\",\"\",X210/$C$210)","v":""},null,{"$f":"IF($C$210=\"\",\"\",Z210/$C$210)","v":""},null,{"$f":"IF($C$210=\"\",\"\",AB210/$C$210)","v":""},null,{"$f":"IF($C$210=\"\",\"\",AD210/$C$210)","v":""},null,{"$f":"IF($C$210=\"\",\"\",AF210/$C$210)","v":""},null,{"$f":"IF($C$210=\"\",\"\",AH210/$C$210)","v":""},null,{"$f":"IF($C$210=\"\",\"\",AJ210/$C$210)","v":""},null,{"$f":"IF($C$210=\"\",\"\",AL210/$C$210)","v":""},null,{"$f":"IF($C$210=\"\",\"\",AN210/$C$210)","v":""},null,{"$f":"IF($C$210=\"\",\"\",AP210/$C$210)","v":""},null,{"$f":"IF($C$210=\"\",\"\",AR210/$C$210)","v":""},null,{"$f":"IF($C$210=\"\",\"\",AT210/$C$210)","v":""},null,{"$f":"IF($C$210=\"\",\"\",AV210/$C$210)","v":""},null,{"$f":"IF($C$210=\"\",\"\",AX210/$C$210)","v":""},null,{"$f":"IF($C$210=\"\",\"\",AZ210/$C$210)","v":""},null,{"$f":"IF($C$210=\"\",\"\",BB210/$C$210)","v":""},null,0]
["    9.1.4",null,null,null,{"$f":"IF($C$211=\"\",\"\",F211/$C$211)","v":""},null,{"$f":"IF($C$211=\"\",\"\",H211/$C$211)","v":""},null,{"$f":"IF($C$211=\"\",\"\",J211/$C$211)","v":""},null,{"$f":"IF($C$211=\"\",\"\",L211/$C$211)","v":""},null,{"$f":"IF($C$211=\"\",\"\",N211/$C$211)","v":""},null,{"$f":"IF($C$211=\"\",\"\",P211/$C$211)","v":""},null,{"$f":"IF($C$211=\"\",\"\",R211/$C$211)","v":""},null,{"$f":"IF($C$211=\"\",\"\",T211/$C$211)","v":""},null,{"$f":"IF($C$211=\"\",\"\",V211/$C$211)","v":""},null,{"$f":"IF($C$211=\"\",\"\",X211/$C$211)","v":""},null,{"$f":"IF($C$211=\"\",\"\",Z211/$C$211)","v":""},null,{"$f":"IF($C$211=\"\",\"\",AB211/$C$211)","v":""},null,{"$f":"IF($C$211=\"\",\"\",AD211/$C$211)","v":""},null,{"$f":"IF($C$211=\"\",\"\",AF211/$C$211)","v":""},null,{"$f":"IF($C$211=\"\",\"\",AH211/$C$211)","v":""},null,{"$f":"IF($C$211=\"\",\"\",AJ211/$C$211)","v":""},null,{"$f":"IF($C$211=\"\",\"\",AL211/$C$211)","v":""},null,{"$f":"IF($C$211=\"\",\"\",AN211/$C$211)","v":""},null,{"$f":"IF($C$211=\"\",\"\",AP211/$C$211)","v":""},null,{"$f":"IF($C$211=\"\",\"\",AR211/$C$211)","v":""},null,{"$f":"IF($C$211=\"\",\"\",AT211/$C$211)","v":""},null,{"$f":"IF($C$211=\"\",\"\",AV211/$C$211)","v":""},null,{"$f":"IF($C$211=\"\",\"\",AX211/$C$211)","v":""},null,{"$f":"IF($C$211=\"\",\"\",AZ211/$C$211)","v":""},null,{"$f":"IF($C$211=\"\",\"\",BB211/$C$211)","v":""},null,0]
["    9.1.5",null,null,null,{"$f":"IF($C$212=\"\",\"\",F212/$C$212)","v":""},null,{"$f":"IF($C$212=\"\",\"\",H212/$C$212)","v":""},null,{"$f":"IF($C$212=\"\",\"\",J212/$C$212)","v":""},null,{"$f":"IF($C$212=\"\",\"\",L212/$C$212)","v":""},null,{"$f":"IF($C$212=\"\",\"\",N212/$C$212)","v":""},null,{"$f":"IF($C$212=\"\",\"\",P212/$C$212)","v":""},null,{"$f":"IF($C$212=\"\",\"\",R212/$C$212)","v":""},null,{"$f":"IF($C$212=\"\",\"\",T212/$C$212)","v":""},null,{"$f":"IF($C$212=\"\",\"\",V212/$C$212)","v":""},null,{"$f":"IF($C$212=\"\",\"\",X212/$C$212)","v":""},null,{"$f":"IF($C$212=\"\",\"\",Z212/$C$212)","v":""},null,{"$f":"IF($C$212=\"\",\"\",AB212/$C$212)","v":""},null,{"$f":"IF($C$212=\"\",\"\",AD212/$C$212)","v":""},null,{"$f":"IF($C$212=\"\",\"\",AF212/$C$212)","v":""},null,{"$f":"IF($C$212=\"\",\"\",AH212/$C$212)","v":""},null,{"$f":"IF($C$212=\"\",\"\",AJ212/$C$212)","v":""},null,{"$f":"IF($C$212=\"\",\"\",AL212/$C$212)","v":""},null,{"$f":"IF($C$212=\"\",\"\",AN212/$C$212)","v":""},null,{"$f":"IF($C$212=\"\",\"\",AP212/$C$212)","v":""},null,{"$f":"IF($C$212=\"\",\"\",AR212/$C$212)","v":""},null,{"$f":"IF($C$212=\"\",\"\",AT212/$C$212)","v":""},null,{"$f":"IF($C$212=\"\",\"\",AV212/$C$212)","v":""},null,{"$f":"IF($C$212=\"\",\"\",AX212/$C$212)","v":""},null,{"$f":"IF($C$212=\"\",\"\",AZ212/$C$212)","v":""},null,{"$f":"IF($C$212=\"\",\"\",BB212/$C$212)","v":""},null,0]
[null,null,null,null,{"$f":"IF($C$213=\"\",\"\",F213/$C$213)","v":""},null,{"$f":"IF($C$213=\"\",\"\",H213/$C$213)","v":""},null,{"$f":"IF($C$213=\"\",\"\",J213/$C$213)","v":""},null,{"$f":"IF($C$213=\"\",\"\",L213/$C$213)","v":""},null,{"$f":"IF($C$213=\"\",\"\",N213/$C$213)","v":""},null,{"$f":"IF($C$213=\"\",\"\",P213/$C$213)","v":""},null,{"$f":"IF($C$213=\"\",\"\",R213/$C$213)","v":""},null,{"$f":"IF($C$213=\"\",\"\",T213/$C$213)","v":""},null,{"$f":"IF($C$213=\"\",\"\",V213/$C$213)","v":""},null,{"$f":"IF($C$213=\"\",\"\",X213/$C$213)","v":""},null,{"$f":"IF($C$213=\"\",\"\",Z213/$C$213)","v":""},null,{"$f":"IF($C$213=\"\",\"\",AB213/$C$213)","v":""},null,{"$f":"IF($C$213=\"\",\"\",AD213/$C$213)","v":""},null,{"$f":"IF($C$213=\"\",\"\",AF213/$C$213)","v":""},null,{"$f":"IF($C$213=\"\",\"\",AH213/$C$213)","v":""},null,{"$f":"IF($C$213=\"\",\"\",AJ213/$C$213)","v":""},null,{"$f":"IF($C$213=\"\",\"\",AL213/$C$213)","v":""},null,{"$f":"IF($C$213=\"\",\"\",AN213/$C$213)","v":""},null,{"$f":"IF($C$213=\"\",\"\",AP213/$C$213)","v":""},null,{"$f":"IF($C$213=\"\",\"\",AR213/$C$213)","v":""},null,{"$f":"IF($C$213=\"\",\"\",AT213/$C$213)","v":""},null,{"$f":"IF($C$213=\"\",\"\",AV213/$C$213)","v":""},null,{"$f":"IF($C$213=\"\",\"\",AX213/$C$213)","v":""},null,{"$f":"IF($C$213=\"\",\"\",AZ213/$C$213)","v":""},null,{"$f":"IF($C$213=\"\",\"\",BB213/$C$213)","v":""},null,0]
[null,null,null,null,{"$f":"IF($C$214=\"\",\"\",F214/$C$214)","v":""},null,{"$f":"IF($C$214=\"\",\"\",H214/$C$214)","v":""},null,{"$f":"IF($C$214=\"\",\"\",J214/$C$214)","v":""},null,{"$f":"IF($C$214=\"\",\"\",L214/$C$214)","v":""},null,{"$f":"IF($C$214=\"\",\"\",N214/$C$214)","v":""},null,{"$f":"IF($C$214=\"\",\"\",P214/$C$214)","v":""},null,{"$f":"IF($C$214=\"\",\"\",R214/$C$214)","v":""},null,{"$f":"IF($C$214=\"\",\"\",T214/$C$214)","v":""},null,{"$f":"IF($C$214=\"\",\"\",V214/$C$214)","v":""},null,{"$f":"IF($C$214=\"\",\"\",X214/$C$214)","v":""},null,{"$f":"IF($C$214=\"\",\"\",Z214/$C$214)","v":""},null,{"$f":"IF($C$214=\"\",\"\",AB214/$C$214)","v":""},null,{"$f":"IF($C$214=\"\",\"\",AD214/$C$214)","v":""},null,{"$f":"IF($C$214=\"\",\"\",AF214/$C$214)","v":""},null,{"$f":"IF($C$214=\"\",\"\",AH214/$C$214)","v":""},null,{"$f":"IF($C$214=\"\",\"\",AJ214/$C$214)","v":""},null,{"$f":"IF($C$214=\"\",\"\",AL214/$C$214)","v":""},null,{"$f":"IF($C$214=\"\",\"\",AN214/$C$214)","v":""},null,{"$f":"IF($C$214=\"\",\"\",AP214/$C$214)","v":""},null,{"$f":"IF($C$214=\"\",\"\",AR214/$C$214)","v":""},null,{"$f":"IF($C$214=\"\",\"\",AT214/$C$214)","v":""},null,{"$f":"IF($C$214=\"\",\"\",AV214/$C$214)","v":""},null,{"$f":"IF($C$214=\"\",\"\",AX214/$C$214)","v":""},null,{"$f":"IF($C$214=\"\",\"\",AZ214/$C$214)","v":""},null,{"$f":"IF($C$214=\"\",\"\",BB214/$C$214)","v":""},null,0]
[null,null,null,null,{"$f":"IF($C$215=\"\",\"\",F215/$C$215)","v":""},null,{"$f":"IF($C$215=\"\",\"\",H215/$C$215)","v":""},null,{"$f":"IF($C$215=\"\",\"\",J215/$C$215)","v":""},null,{"$f":"IF($C$215=\"\",\"\",L215/$C$215)","v":""},null,{"$f":"IF($C$215=\"\",\"\",N215/$C$215)","v":""},null,{"$f":"IF($C$215=\"\",\"\",P215/$C$215)","v":""},null,{"$f":"IF($C$215=\"\",\"\",R215/$C$215)","v":""},null,{"$f":"IF($C$215=\"\",\"\",T215/$C$215)","v":""},null,{"$f":"IF($C$215=\"\",\"\",V215/$C$215)","v":""},null,{"$f":"IF($C$215=\"\",\"\",X215/$C$215)","v":""},null,{"$f":"IF($C$215=\"\",\"\",Z215/$C$215)","v":""},null,{"$f":"IF($C$215=\"\",\"\",AB215/$C$215)","v":""},null,{"$f":"IF($C$215=\"\",\"\",AD215/$C$215)","v":""},null,{"$f":"IF($C$215=\"\",\"\",AF215/$C$215)","v":""},null,{"$f":"IF($C$215=\"\",\"\",AH215/$C$215)","v":""},null,{"$f":"IF($C$215=\"\",\"\",AJ215/$C$215)","v":""},null,{"$f":"IF($C$215=\"\",\"\",AL215/$C$215)","v":""},null,{"$f":"IF($C$215=\"\",\"\",AN215/$C$215)","v":""},null,{"$f":"IF($C$215=\"\",\"\",AP215/$C$215)","v":""},null,{"$f":"IF($C$215=\"\",\"\",AR215/$C$215)","v":""},null,{"$f":"IF($C$215=\"\",\"\",AT215/$C$215)","v":""},null,{"$f":"IF($C$215=\"\",\"\",AV215/$C$215)","v":""},null,{"$f":"IF($C$215=\"\",\"\",AX215/$C$215)","v":""},null,{"$f":"IF($C$215=\"\",\"\",AZ215/$C$215)","v":""},null,{"$f":"IF($C$215=\"\",\"\",BB215/$C$215)","v":""},null,0]
[null,null,null,null,{"$f":"IF($C$216=\"\",\"\",F216/$C$216)","v":""},null,{"$f":"IF($C$216=\"\",\"\",H216/$C$216)","v":""},null,{"$f":"IF($C$216=\"\",\"\",J216/$C$216)","v":""},null,{"$f":"IF($C$216=\"\",\"\",L216/$C$216)","v":""},null,{"$f":"IF($C$216=\"\",\"\",N216/$C$216)","v":""},null,{"$f":"IF($C$216=\"\",\"\",P216/$C$216)","v":""},null,{"$f":"IF($C$216=\"\",\"\",R216/$C$216)","v":""},null,{"$f":"IF($C$216=\"\",\"\",T216/$C$216)","v":""},null,{"$f":"IF($C$216=\"\",\"\",V216/$C$216)","v":""},null,{"$f":"IF($C$216=\"\",\"\",X216/$C$216)","v":""},null,{"$f":"IF($C$216=\"\",\"\",Z216/$C$216)","v":""},null,{"$f":"IF($C$216=\"\",\"\",AB216/$C$216)","v":""},null,{"$f":"IF($C$216=\"\",\"\",AD216/$C$216)","v":""},null,{"$f":"IF($C$216=\"\",\"\",AF216/$C$216)","v":""},null,{"$f":"IF($C$216=\"\",\"\",AH216/$C$216)","v":""},null,{"$f":"IF($C$216=\"\",\"\",AJ216/$C$216)","v":""},null,{"$f":"IF($C$216=\"\",\"\",AL216/$C$216)","v":""},null,{"$f":"IF($C$216=\"\",\"\",AN216/$C$216)","v":""},null,{"$f":"IF($C$216=\"\",\"\",AP216/$C$216)","v":""},null,{"$f":"IF($C$216=\"\",\"\",AR216/$C$216)","v":""},null,{"$f":"IF($C$216=\"\",\"\",AT216/$C$216)","v":""},null,{"$f":"IF($C$216=\"\",\"\",AV216/$C$216)","v":""},null,{"$f":"IF($C$216=\"\",\"\",AX216/$C$216)","v":""},null,{"$f":"IF($C$216=\"\",\"\",AZ216/$C$216)","v":""},null,{"$f":"IF($C$216=\"\",\"\",BB216/$C$216)","v":""},null,0]
[null,null,null,null,{"$f":"IF($C$217=\"\",\"\",F217/$C$217)","v":""},null,{"$f":"IF($C$217=\"\",\"\",H217/$C$217)","v":""},null,{"$f":"IF($C$217=\"\",\"\",J217/$C$217)","v":""},null,{"$f":"IF($C$217=\"\",\"\",L217/$C$217)","v":""},null,{"$f":"IF($C$217=\"\",\"\",N217/$C$217)","v":""},null,{"$f":"IF($C$217=\"\",\"\",P217/$C$217)","v":""},null,{"$f":"IF($C$217=\"\",\"\",R217/$C$217)","v":""},null,{"$f":"IF($C$217=\"\",\"\",T217/$C$217)","v":""},null,{"$f":"IF($C$217=\"\",\"\",V217/$C$217)","v":""},null,{"$f":"IF($C$217=\"\",\"\",X217/$C$217)","v":""},null,{"$f":"IF($C$217=\"\",\"\",Z217/$C$217)","v":""},null,{"$f":"IF($C$217=\"\",\"\",AB217/$C$217)","v":""},null,{"$f":"IF($C$217=\"\",\"\",AD217/$C$217)","v":""},null,{"$f":"IF($C$217=\"\",\"\",AF217/$C$217)","v":""},null,{"$f":"IF($C$217=\"\",\"\",AH217/$C$217)","v":""},null,{"$f":"IF($C$217=\"\",\"\",AJ217/$C$217)","v":""},null,{"$f":"IF($C$217=\"\",\"\",AL217/$C$217)","v":""},null,{"$f":"IF($C$217=\"\",\"\",AN217/$C$217)","v":""},null,{"$f":"IF($C$217=\"\",\"\",AP217/$C$217)","v":""},null,{"$f":"IF($C$217=\"\",\"\",AR217/$C$217)","v":""},null,{"$f":"IF($C$217=\"\",\"\",AT217/$C$217)","v":""},null,{"$f":"IF($C$217=\"\",\"\",AV217/$C$217)","v":""},null,{"$f":"IF($C$217=\"\",\"\",AX217/$C$217)","v":""},null,{"$f":"IF($C$217=\"\",\"\",AZ217/$C$217)","v":""},null,{"$f":"IF($C$217=\"\",\"\",BB217/$C$217)","v":""},null,0]
[null,null,null,null,{"$f":"IF($C$218=\"\",\"\",F218/$C$218)","v":""},null,{"$f":"IF($C$218=\"\",\"\",H218/$C$218)","v":""},null,{"$f":"IF($C$218=\"\",\"\",J218/$C$218)","v":""},null,{"$f":"IF($C$218=\"\",\"\",L218/$C$218)","v":""},null,{"$f":"IF($C$218=\"\",\"\",N218/$C$218)","v":""},null,{"$f":"IF($C$218=\"\",\"\",P218/$C$218)","v":""},null,{"$f":"IF($C$218=\"\",\"\",R218/$C$218)","v":""},null,{"$f":"IF($C$218=\"\",\"\",T218/$C$218)","v":""},null,{"$f":"IF($C$218=\"\",\"\",V218/$C$218)","v":""},null,{"$f":"IF($C$218=\"\",\"\",X218/$C$218)","v":""},null,{"$f":"IF($C$218=\"\",\"\",Z218/$C$218)","v":""},null,{"$f":"IF($C$218=\"\",\"\",AB218/$C$218)","v":""},null,{"$f":"IF($C$218=\"\",\"\",AD218/$C$218)","v":""},null,{"$f":"IF($C$218=\"\",\"\",AF218/$C$218)","v":""},null,{"$f":"IF($C$218=\"\",\"\",AH218/$C$218)","v":""},null,{"$f":"IF($C$218=\"\",\"\",AJ218/$C$218)","v":""},null,{"$f":"IF($C$218=\"\",\"\",AL218/$C$218)","v":""},null,{"$f":"IF($C$218=\"\",\"\",AN218/$C$218)","v":""},null,{"$f":"IF($C$218=\"\",\"\",AP218/$C$218)","v":""},null,{"$f":"IF($C$218=\"\",\"\",AR218/$C$218)","v":""},null,{"$f":"IF($C$218=\"\",\"\",AT218/$C$218)","v":""},null,{"$f":"IF($C$218=\"\",\"\",AV218/$C$218)","v":""},null,{"$f":"IF($C$218=\"\",\"\",AX218/$C$218)","v":""},null,{"$f":"IF($C$218=\"\",\"\",AZ218/$C$218)","v":""},null,{"$f":"IF($C$218=\"\",\"\",BB218/$C$218)","v":""},null,0]
[null,null,null,null,{"$f":"IF($C$219=\"\",\"\",F219/$C$219)","v":""},null,{"$f":"IF($C$219=\"\",\"\",H219/$C$219)","v":""},null,{"$f":"IF($C$219=\"\",\"\",J219/$C$219)","v":""},null,{"$f":"IF($C$219=\"\",\"\",L219/$C$219)","v":""},null,{"$f":"IF($C$219=\"\",\"\",N219/$C$219)","v":""},null,{"$f":"IF($C$219=\"\",\"\",P219/$C$219)","v":""},null,{"$f":"IF($C$219=\"\",\"\",R219/$C$219)","v":""},null,{"$f":"IF($C$219=\"\",\"\",T219/$C$219)","v":""},null,{"$f":"IF($C$219=\"\",\"\",V219/$C$219)","v":""},null,{"$f":"IF($C$219=\"\",\"\",X219/$C$219)","v":""},null,{"$f":"IF($C$219=\"\",\"\",Z219/$C$219)","v":""},null,{"$f":"IF($C$219=\"\",\"\",AB219/$C$219)","v":""},null,{"$f":"IF($C$219=\"\",\"\",AD219/$C$219)","v":""},null,{"$f":"IF($C$219=\"\",\"\",AF219/$C$219)","v":""},null,{"$f":"IF($C$219=\"\",\"\",AH219/$C$219)","v":""},null,{"$f":"IF($C$219=\"\",\"\",AJ219/$C$219)","v":""},null,{"$f":"IF($C$219=\"\",\"\",AL219/$C$219)","v":""},null,{"$f":"IF($C$219=\"\",\"\",AN219/$C$219)","v":""},null,{"$f":"IF($C$219=\"\",\"\",AP219/$C$219)","v":""},null,{"$f":"IF($C$219=\"\",\"\",AR219/$C$219)","v":""},null,{"$f":"IF($C$219=\"\",\"\",AT219/$C$219)","v":""},null,{"$f":"IF($C$219=\"\",\"\",AV219/$C$219)","v":""},null,{"$f":"IF($C$219=\"\",\"\",AX219/$C$219)","v":""},null,{"$f":"IF($C$219=\"\",\"\",AZ219/$C$219)","v":""},null,{"$f":"IF($C$219=\"\",\"\",BB219/$C$219)","v":""},null,{"$f":"SUM(BB219,AZ219,AX219,AV219,AT219,AR219,AP219,AN219,AL219,AJ219,AH219,AF219,AD219,AB219,Z219,X219,V219,T219,R219,P219,N219,L219,J219,H219,F219)","v":0}]
["TOTAL HOURS",null,null,null,null,{"$f":"SUM(F207:F219)","v":0},null,{"$f":"SUM(H207:H219)","v":0},null,{"$f":"SUM(J207:J219)","v":0},null,{"$f":"SUM(L207:L219)","v":0},null,{"$f":"SUM(N207:N219)","v":0},null,{"$f":"SUM(P207:P219)","v":0},null,{"$f":"SUM(R207:R219)","v":0},null,{"$f":"SUM(T207:T219)","v":0},null,{"$f":"SUM(V207:V219)","v":0},null,{"$f":"SUM(X207:X219)","v":0},null,{"$f":"SUM(Z207:Z219)","v":0},null,{"$f":"SUM(AB207:AB219)","v":0},null,{"$f":"SUM(AD207:AD219)","v":0},null,{"$f":"SUM(AF207:AF219)","v":0},null,{"$f":"SUM(AH207:AH219)","v":0},null,{"$f":"SUM(AJ207:AJ219)","v":0},null,{"$f":"SUM(AL207:AL219)","v":0},null,{"$f":"SUM(AN207:AN219)","v":0},null,{"$f":"SUM(AP207:AP219)","v":0},null,{"$f":"SUM(AR207:AR219)","v":0},null,{"$f":"SUM(AT207:AT219)","v":0},null,{"$f":"SUM(AV207:AV219)","v":0},null,{"$f":"SUM(AX207:AX219)","v":0},null,{"$f":"SUM(AZ207:AZ219)","v":0},null,{"$f":"SUM(BB207:BB219)","v":0},{"$f":"SUM(E220:BB220)","v":0}]
["TOTAL WORKDAYS",null,null,null,null,{"$f":"F220/8","v":0},null,{"$f":"H220/8","v":0},null,{"$f":"J220/8","v":0},null,{"$f":"L220/8","v":0},null,{"$f":"N220/8","v":0},null,{"$f":"P220/8","v":0},null,{"$f":"R220/8","v":0},null,{"$f":"T220/8","v":0},null,{"$f":"V220/8","v":0},null,{"$f":"X220/8","v":0},null,{"$f":"Z220/8","v":0},null,{"$f":"AB220/8","v":0},null,{"$f":"AD220/8","v":0},null,0,null,{"$f":"AH220/8","v":0},null,0,null,{"$f":"AL220/8","v":0},null,0,null,{"$f":"AP220/8","v":0},null,0,null,{"$f":"AT220/8","v":0},null,{"$f":"AV220/8","v":0},null,{"$f":"AX220/8","v":0},null,{"$f":"AZ220/8","v":0},null,{"$f":"BB220/8","v":0},{"$f":"SUM(E221:BB221)","v":0}]
["TOTAL RAW LABOR",null,null,null,null,{"$f":"$E$13*F220","v":0},null,{"$f":"$G$13*H220","v":0},null,{"$f":"$I$13*J220","v":0},null,{"$f":"$K$13*L220","v":0},null,{"$f":"$M$13*N220","v":0},null,{"$f":"$O$13*P220","v":0},null,{"$f":"$Q$13*R220","v":0},null,{"$f":"$S$13*T220","v":0},null,{"$f":"$U$13*V220","v":0},null,{"$f":"$W$13*X220","v":0},null,{"$f":"$Y$13*Z220","v":0},null,{"$f":"$AA$13*AB220","v":0},null,{"$f":"$AC$13*AD220","v":0},null,{"$f":"$AC$13*AF220","v":0},null,{"$f":"$AC$13*AH220","v":0},null,{"$f":"$AC$13*AJ220","v":0},null,{"$f":"$AC$13*AL220","v":0},null,{"$f":"$AC$13*AN220","v":0},null,{"$f":"$AC$13*AP220","v":0},null,{"$f":"$AC$13*AR220","v":0},null,{"$f":"$AC$13*AT220","v":0},null,{"$f":"$AC$13*AV220","v":0},null,{"$f":"$AC$13*AX220","v":0},null,{"$f":"$AC$13*AZ220","v":0},null,{"$f":"$AC$13*BB220","v":0},{"$f":"SUM(E222:BB222)","v":0}]
["Task 10.0     ","UTILITY MAKE-READY PLANS"]
[10.1,"Utility Partnering Meeting",null,null,{"$f":"IF($C$224=\"\",\"\",F224/$C$224)","v":""},null,{"$f":"IF($C$224=\"\",\"\",H224/$C$224)","v":""},null,{"$f":"IF($C$224=\"\",\"\",J224/$C$224)","v":""},null,{"$f":"IF($C$224=\"\",\"\",L224/$C$224)","v":""},null,{"$f":"IF($C$224=\"\",\"\",N224/$C$224)","v":""},null,{"$f":"IF($C$224=\"\",\"\",P224/$C$224)","v":""},null,{"$f":"IF($C$224=\"\",\"\",R224/$C$224)","v":""},null,{"$f":"IF($C$224=\"\",\"\",T224/$C$224)","v":""},null,{"$f":"IF($C$224=\"\",\"\",V224/$C$224)","v":""},null,{"$f":"IF($C$224=\"\",\"\",X224/$C$224)","v":""},null,{"$f":"IF($C$224=\"\",\"\",Z224/$C$224)","v":""},null,{"$f":"IF($C$224=\"\",\"\",AB224/$C$224)","v":""},null,{"$f":"IF($C$224=\"\",\"\",AD224/$C$224)","v":""},null,{"$f":"IF($C$224=\"\",\"\",AF224/$C$224)","v":""},null,{"$f":"IF($C$224=\"\",\"\",AH224/$C$224)","v":""},null,{"$f":"IF($C$224=\"\",\"\",AJ224/$C$224)","v":""},null,{"$f":"IF($C$224=\"\",\"\",AL224/$C$224)","v":""},null,{"$f":"IF($C$224=\"\",\"\",AN224/$C$224)","v":""},null,{"$f":"IF($C$224=\"\",\"\",AP224/$C$224)","v":""},null,{"$f":"IF($C$224=\"\",\"\",AR224/$C$224)","v":""},null,{"$f":"IF($C$224=\"\",\"\",AT224/$C$224)","v":""},null,{"$f":"IF($C$224=\"\",\"\",AV224/$C$224)","v":""},null,{"$f":"IF($C$224=\"\",\"\",AX224/$C$224)","v":""},null,{"$f":"IF($C$224=\"\",\"\",AZ224/$C$224)","v":""},null,{"$f":"IF($C$224=\"\",\"\",BB224/$C$224)","v":""},null,{"$f":"SUM(BB224,AZ224,AX224,AV224,AT224,AR224,AP224,AN224,AL224,AJ224,AH224,AF224,AD224,AB224,Z224,X224,V224,T224,R224,P224,N224,L224,J224,H224,F224)","v":0}]
[10.199999999999999,"Acquire & Format Area-Wide Base-Mapping",null,null,{"$f":"IF($C$225=\"\",\"\",F225/$C$225)","v":""},null,{"$f":"IF($C$225=\"\",\"\",H225/$C$225)","v":""},null,{"$f":"IF($C$225=\"\",\"\",J225/$C$225)","v":""},null,{"$f":"IF($C$225=\"\",\"\",L225/$C$225)","v":""},null,{"$f":"IF($C$225=\"\",\"\",N225/$C$225)","v":""},null,{"$f":"IF($C$225=\"\",\"\",P225/$C$225)","v":""},null,{"$f":"IF($C$225=\"\",\"\",R225/$C$225)","v":""},null,{"$f":"IF($C$225=\"\",\"\",T225/$C$225)","v":""},null,{"$f":"IF($C$225=\"\",\"\",V225/$C$225)","v":""},null,{"$f":"IF($C$225=\"\",\"\",X225/$C$225)","v":""},null,{"$f":"IF($C$225=\"\",\"\",Z225/$C$225)","v":""},null,{"$f":"IF($C$225=\"\",\"\",AB225/$C$225)","v":""},null,{"$f":"IF($C$225=\"\",\"\",AD225/$C$225)","v":""},null,{"$f":"IF($C$225=\"\",\"\",AF225/$C$225)","v":""},null,{"$f":"IF($C$225=\"\",\"\",AH225/$C$225)","v":""},null,{"$f":"IF($C$225=\"\",\"\",AJ225/$C$225)","v":""},null,{"$f":"IF($C$225=\"\",\"\",AL225/$C$225)","v":""},null,{"$f":"IF($C$225=\"\",\"\",AN225/$C$225)","v":""},null,{"$f":"IF($C$225=\"\",\"\",AP225/$C$225)","v":""},null,{"$f":"IF($C$225=\"\",\"\",AR225/$C$225)","v":""},null,{"$f":"IF($C$225=\"\",\"\",AT225/$C$225)","v":""},null,{"$f":"IF($C$225=\"\",\"\",AV225/$C$225)","v":""},null,{"$f":"IF($C$225=\"\",\"\",AX225/$C$225)","v":""},null,{"$f":"IF($C$225=\"\",\"\",AZ225/$C$225)","v":""},null,{"$f":"IF($C$225=\"\",\"\",BB225/$C$225)","v":""},null,0]
[10.3,"Preliminary Survey of Candidate Cable Routes ",null,null,{"$f":"IF($C$226=\"\",\"\",F226/$C$226)","v":""},null,{"$f":"IF($C$226=\"\",\"\",H226/$C$226)","v":""},null,{"$f":"IF($C$226=\"\",\"\",J226/$C$226)","v":""},null,{"$f":"IF($C$226=\"\",\"\",L226/$C$226)","v":""},null,{"$f":"IF($C$226=\"\",\"\",N226/$C$226)","v":""},null,{"$f":"IF($C$226=\"\",\"\",P226/$C$226)","v":""},null,{"$f":"IF($C$226=\"\",\"\",R226/$C$226)","v":""},null,{"$f":"IF($C$226=\"\",\"\",T226/$C$226)","v":""},null,{"$f":"IF($C$226=\"\",\"\",V226/$C$226)","v":""},null,{"$f":"IF($C$226=\"\",\"\",X226/$C$226)","v":""},null,{"$f":"IF($C$226=\"\",\"\",Z226/$C$226)","v":""},null,{"$f":"IF($C$226=\"\",\"\",AB226/$C$226)","v":""},null,{"$f":"IF($C$226=\"\",\"\",AD226/$C$226)","v":""},null,{"$f":"IF($C$226=\"\",\"\",AF226/$C$226)","v":""},null,{"$f":"IF($C$226=\"\",\"\",AH226/$C$226)","v":""},null,{"$f":"IF($C$226=\"\",\"\",AJ226/$C$226)","v":""},null,{"$f":"IF($C$226=\"\",\"\",AL226/$C$226)","v":""},null,{"$f":"IF($C$226=\"\",\"\",AN226/$C$226)","v":""},null,{"$f":"IF($C$226=\"\",\"\",AP226/$C$226)","v":""},null,{"$f":"IF($C$226=\"\",\"\",AR226/$C$226)","v":""},null,{"$f":"IF($C$226=\"\",\"\",AT226/$C$226)","v":""},null,{"$f":"IF($C$226=\"\",\"\",AV226/$C$226)","v":""},null,{"$f":"IF($C$226=\"\",\"\",AX226/$C$226)","v":""},null,{"$f":"IF($C$226=\"\",\"\",AZ226/$C$226)","v":""},null,{"$f":"IF($C$226=\"\",\"\",BB226/$C$226)","v":""},null,0]
[10.4,"Develop Preliminary Communications Routing Plan",null,null,{"$f":"IF($C$227=\"\",\"\",F227/$C$227)","v":""},null,{"$f":"IF($C$227=\"\",\"\",H227/$C$227)","v":""},null,{"$f":"IF($C$227=\"\",\"\",J227/$C$227)","v":""},null,{"$f":"IF($C$227=\"\",\"\",L227/$C$227)","v":""},null,{"$f":"IF($C$227=\"\",\"\",N227/$C$227)","v":""},null,{"$f":"IF($C$227=\"\",\"\",P227/$C$227)","v":""},null,{"$f":"IF($C$227=\"\",\"\",R227/$C$227)","v":""},null,{"$f":"IF($C$227=\"\",\"\",T227/$C$227)","v":""},null,{"$f":"IF($C$227=\"\",\"\",V227/$C$227)","v":""},null,{"$f":"IF($C$227=\"\",\"\",X227/$C$227)","v":""},null,{"$f":"IF($C$227=\"\",\"\",Z227/$C$227)","v":""},null,{"$f":"IF($C$227=\"\",\"\",AB227/$C$227)","v":""},null,{"$f":"IF($C$227=\"\",\"\",AD227/$C$227)","v":""},null,{"$f":"IF($C$227=\"\",\"\",AF227/$C$227)","v":""},null,{"$f":"IF($C$227=\"\",\"\",AH227/$C$227)","v":""},null,{"$f":"IF($C$227=\"\",\"\",AJ227/$C$227)","v":""},null,{"$f":"IF($C$227=\"\",\"\",AL227/$C$227)","v":""},null,{"$f":"IF($C$227=\"\",\"\",AN227/$C$227)","v":""},null,{"$f":"IF($C$227=\"\",\"\",AP227/$C$227)","v":""},null,{"$f":"IF($C$227=\"\",\"\",AR227/$C$227)","v":""},null,{"$f":"IF($C$227=\"\",\"\",AT227/$C$227)","v":""},null,{"$f":"IF($C$227=\"\",\"\",AV227/$C$227)","v":""},null,{"$f":"IF($C$227=\"\",\"\",AX227/$C$227)","v":""},null,{"$f":"IF($C$227=\"\",\"\",AZ227/$C$227)","v":""},null,{"$f":"IF($C$227=\"\",\"\",BB227/$C$227)","v":""},null,0]
[10.5,"Inventory of Existing Underground Conduits",null,null,{"$f":"IF($C$228=\"\",\"\",F228/$C$228)","v":""},null,{"$f":"IF($C$228=\"\",\"\",H228/$C$228)","v":""},null,{"$f":"IF($C$228=\"\",\"\",J228/$C$228)","v":""},null,{"$f":"IF($C$228=\"\",\"\",L228/$C$228)","v":""},null,{"$f":"IF($C$228=\"\",\"\",N228/$C$228)","v":""},null,{"$f":"IF($C$228=\"\",\"\",P228/$C$228)","v":""},null,{"$f":"IF($C$228=\"\",\"\",R228/$C$228)","v":""},null,{"$f":"IF($C$228=\"\",\"\",T228/$C$228)","v":""},null,{"$f":"IF($C$228=\"\",\"\",V228/$C$228)","v":""},null,{"$f":"IF($C$228=\"\",\"\",X228/$C$228)","v":""},null,{"$f":"IF($C$228=\"\",\"\",Z228/$C$228)","v":""},null,{"$f":"IF($C$228=\"\",\"\",AB228/$C$228)","v":""},null,{"$f":"IF($C$228=\"\",\"\",AD228/$C$228)","v":""},null,{"$f":"IF($C$228=\"\",\"\",AF228/$C$228)","v":""},null,{"$f":"IF($C$228=\"\",\"\",AH228/$C$228)","v":""},null,{"$f":"IF($C$228=\"\",\"\",AJ228/$C$228)","v":""},null,{"$f":"IF($C$228=\"\",\"\",AL228/$C$228)","v":""},null,{"$f":"IF($C$228=\"\",\"\",AN228/$C$228)","v":""},null,{"$f":"IF($C$228=\"\",\"\",AP228/$C$228)","v":""},null,{"$f":"IF($C$228=\"\",\"\",AR228/$C$228)","v":""},null,{"$f":"IF($C$228=\"\",\"\",AT228/$C$228)","v":""},null,{"$f":"IF($C$228=\"\",\"\",AV228/$C$228)","v":""},null,{"$f":"IF($C$228=\"\",\"\",AX228/$C$228)","v":""},null,{"$f":"IF($C$228=\"\",\"\",AZ228/$C$228)","v":""},null,{"$f":"IF($C$228=\"\",\"\",BB228/$C$228)","v":""},null,0]
[10.6,"Create Cable Routing Base Sheets",null,null,{"$f":"IF($C$229=\"\",\"\",F229/$C$229)","v":""},null,{"$f":"IF($C$229=\"\",\"\",H229/$C$229)","v":""},null,{"$f":"IF($C$229=\"\",\"\",J229/$C$229)","v":""},null,{"$f":"IF($C$229=\"\",\"\",L229/$C$229)","v":""},null,{"$f":"IF($C$229=\"\",\"\",N229/$C$229)","v":""},null,{"$f":"IF($C$229=\"\",\"\",P229/$C$229)","v":""},null,{"$f":"IF($C$229=\"\",\"\",R229/$C$229)","v":""},null,{"$f":"IF($C$229=\"\",\"\",T229/$C$229)","v":""},null,{"$f":"IF($C$229=\"\",\"\",V229/$C$229)","v":""},null,{"$f":"IF($C$229=\"\",\"\",X229/$C$229)","v":""},null,{"$f":"IF($C$229=\"\",\"\",Z229/$C$229)","v":""},null,{"$f":"IF($C$229=\"\",\"\",AB229/$C$229)","v":""},null,{"$f":"IF($C$229=\"\",\"\",AD229/$C$229)","v":""},null,{"$f":"IF($C$229=\"\",\"\",AF229/$C$229)","v":""},null,{"$f":"IF($C$229=\"\",\"\",AH229/$C$229)","v":""},null,{"$f":"IF($C$229=\"\",\"\",AJ229/$C$229)","v":""},null,{"$f":"IF($C$229=\"\",\"\",AL229/$C$229)","v":""},null,{"$f":"IF($C$229=\"\",\"\",AN229/$C$229)","v":""},null,{"$f":"IF($C$229=\"\",\"\",AP229/$C$229)","v":""},null,{"$f":"IF($C$229=\"\",\"\",AR229/$C$229)","v":""},null,{"$f":"IF($C$229=\"\",\"\",AT229/$C$229)","v":""},null,{"$f":"IF($C$229=\"\",\"\",AV229/$C$229)","v":""},null,{"$f":"IF($C$229=\"\",\"\",AX229/$C$229)","v":""},null,{"$f":"IF($C$229=\"\",\"\",AZ229/$C$229)","v":""},null,{"$f":"IF($C$229=\"\",\"\",BB229/$C$229)","v":""},null,0]
[10.7,"Create Master Cable Routing Sheet Key",null,null,{"$f":"IF($C$230=\"\",\"\",F230/$C$230)","v":""},null,{"$f":"IF($C$230=\"\",\"\",H230/$C$230)","v":""},null,{"$f":"IF($C$230=\"\",\"\",J230/$C$230)","v":""},null,{"$f":"IF($C$230=\"\",\"\",L230/$C$230)","v":""},null,{"$f":"IF($C$230=\"\",\"\",N230/$C$230)","v":""},null,{"$f":"IF($C$230=\"\",\"\",P230/$C$230)","v":""},null,{"$f":"IF($C$230=\"\",\"\",R230/$C$230)","v":""},null,{"$f":"IF($C$230=\"\",\"\",T230/$C$230)","v":""},null,{"$f":"IF($C$230=\"\",\"\",V230/$C$230)","v":""},null,{"$f":"IF($C$230=\"\",\"\",X230/$C$230)","v":""},null,{"$f":"IF($C$230=\"\",\"\",Z230/$C$230)","v":""},null,{"$f":"IF($C$230=\"\",\"\",AB230/$C$230)","v":""},null,{"$f":"IF($C$230=\"\",\"\",AD230/$C$230)","v":""},null,{"$f":"IF($C$230=\"\",\"\",AF230/$C$230)","v":""},null,{"$f":"IF($C$230=\"\",\"\",AH230/$C$230)","v":""},null,{"$f":"IF($C$230=\"\",\"\",AJ230/$C$230)","v":""},null,{"$f":"IF($C$230=\"\",\"\",AL230/$C$230)","v":""},null,{"$f":"IF($C$230=\"\",\"\",AN230/$C$230)","v":""},null,{"$f":"IF($C$230=\"\",\"\",AP230/$C$230)","v":""},null,{"$f":"IF($C$230=\"\",\"\",AR230/$C$230)","v":""},null,{"$f":"IF($C$230=\"\",\"\",AT230/$C$230)","v":""},null,{"$f":"IF($C$230=\"\",\"\",AV230/$C$230)","v":""},null,{"$f":"IF($C$230=\"\",\"\",AX230/$C$230)","v":""},null,{"$f":"IF($C$230=\"\",\"\",AZ230/$C$230)","v":""},null,{"$f":"IF($C$230=\"\",\"\",BB230/$C$230)","v":""},null,0]
[10.8,"Field Survey Aerial Routes",null,null,{"$f":"IF($C$231=\"\",\"\",F231/$C$231)","v":""},null,{"$f":"IF($C$231=\"\",\"\",H231/$C$231)","v":""},null,{"$f":"IF($C$231=\"\",\"\",J231/$C$231)","v":""},null,{"$f":"IF($C$231=\"\",\"\",L231/$C$231)","v":""},null,{"$f":"IF($C$231=\"\",\"\",N231/$C$231)","v":""},null,{"$f":"IF($C$231=\"\",\"\",P231/$C$231)","v":""},null,{"$f":"IF($C$231=\"\",\"\",R231/$C$231)","v":""},null,{"$f":"IF($C$231=\"\",\"\",T231/$C$231)","v":""},null,{"$f":"IF($C$231=\"\",\"\",V231/$C$231)","v":""},null,{"$f":"IF($C$231=\"\",\"\",X231/$C$231)","v":""},null,{"$f":"IF($C$231=\"\",\"\",Z231/$C$231)","v":""},null,{"$f":"IF($C$231=\"\",\"\",AB231/$C$231)","v":""},null,{"$f":"IF($C$231=\"\",\"\",AD231/$C$231)","v":""},null,{"$f":"IF($C$231=\"\",\"\",AF231/$C$231)","v":""},null,{"$f":"IF($C$231=\"\",\"\",AH231/$C$231)","v":""},null,{"$f":"IF($C$231=\"\",\"\",AJ231/$C$231)","v":""},null,{"$f":"IF($C$231=\"\",\"\",AL231/$C$231)","v":""},null,{"$f":"IF($C$231=\"\",\"\",AN231/$C$231)","v":""},null,{"$f":"IF($C$231=\"\",\"\",AP231/$C$231)","v":""},null,{"$f":"IF($C$231=\"\",\"\",AR231/$C$231)","v":""},null,{"$f":"IF($C$231=\"\",\"\",AT231/$C$231)","v":""},null,{"$f":"IF($C$231=\"\",\"\",AV231/$C$231)","v":""},null,{"$f":"IF($C$231=\"\",\"\",AX231/$C$231)","v":""},null,{"$f":"IF($C$231=\"\",\"\",AZ231/$C$231)","v":""},null,{"$f":"IF($C$231=\"\",\"\",BB231/$C$231)","v":""},null,0]
[10.9,"Preliminary Utility Make-Ready Plans",null,null,{"$f":"IF($C$232=\"\",\"\",F232/$C$232)","v":""},null,{"$f":"IF($C$232=\"\",\"\",H232/$C$232)","v":""},null,{"$f":"IF($C$232=\"\",\"\",J232/$C$232)","v":""},null,{"$f":"IF($C$232=\"\",\"\",L232/$C$232)","v":""},null,{"$f":"IF($C$232=\"\",\"\",N232/$C$232)","v":""},null,{"$f":"IF($C$232=\"\",\"\",P232/$C$232)","v":""},null,{"$f":"IF($C$232=\"\",\"\",R232/$C$232)","v":""},null,{"$f":"IF($C$232=\"\",\"\",T232/$C$232)","v":""},null,{"$f":"IF($C$232=\"\",\"\",V232/$C$232)","v":""},null,{"$f":"IF($C$232=\"\",\"\",X232/$C$232)","v":""},null,{"$f":"IF($C$232=\"\",\"\",Z232/$C$232)","v":""},null,{"$f":"IF($C$232=\"\",\"\",AB232/$C$232)","v":""},null,{"$f":"IF($C$232=\"\",\"\",AD232/$C$232)","v":""},null,{"$f":"IF($C$232=\"\",\"\",AF232/$C$232)","v":""},null,{"$f":"IF($C$232=\"\",\"\",AH232/$C$232)","v":""},null,{"$f":"IF($C$232=\"\",\"\",AJ232/$C$232)","v":""},null,{"$f":"IF($C$232=\"\",\"\",AL232/$C$232)","v":""},null,{"$f":"IF($C$232=\"\",\"\",AN232/$C$232)","v":""},null,{"$f":"IF($C$232=\"\",\"\",AP232/$C$232)","v":""},null,{"$f":"IF($C$232=\"\",\"\",AR232/$C$232)","v":""},null,{"$f":"IF($C$232=\"\",\"\",AT232/$C$232)","v":""},null,{"$f":"IF($C$232=\"\",\"\",AV232/$C$232)","v":""},null,{"$f":"IF($C$232=\"\",\"\",AX232/$C$232)","v":""},null,{"$f":"IF($C$232=\"\",\"\",AZ232/$C$232)","v":""},null,{"$f":"IF($C$232=\"\",\"\",BB232/$C$232)","v":""},null,0]
["10.10","Make-Ready Walk-Throughs"]
["    10.10.1","    Coordinate and Schedule Utility Make-Ready \n    Walk-Throughs",null,null,{"$f":"IF($C$234=\"\",\"\",F234/$C$234)","v":""},null,{"$f":"IF($C$234=\"\",\"\",H234/$C$234)","v":""},null,{"$f":"IF($C$234=\"\",\"\",J234/$C$234)","v":""},null,{"$f":"IF($C$234=\"\",\"\",L234/$C$234)","v":""},null,{"$f":"IF($C$234=\"\",\"\",N234/$C$234)","v":""},null,{"$f":"IF($C$234=\"\",\"\",P234/$C$234)","v":""},null,{"$f":"IF($C$234=\"\",\"\",R234/$C$234)","v":""},null,{"$f":"IF($C$234=\"\",\"\",T234/$C$234)","v":""},null,{"$f":"IF($C$234=\"\",\"\",V234/$C$234)","v":""},null,{"$f":"IF($C$234=\"\",\"\",X234/$C$234)","v":""},null,{"$f":"IF($C$234=\"\",\"\",Z234/$C$234)","v":""},null,{"$f":"IF($C$234=\"\",\"\",AB234/$C$234)","v":""},null,{"$f":"IF($C$234=\"\",\"\",AD234/$C$234)","v":""},null,{"$f":"IF($C$234=\"\",\"\",AF234/$C$234)","v":""},null,{"$f":"IF($C$234=\"\",\"\",AH234/$C$234)","v":""},null,{"$f":"IF($C$234=\"\",\"\",AJ234/$C$234)","v":""},null,{"$f":"IF($C$234=\"\",\"\",AL234/$C$234)","v":""},null,{"$f":"IF($C$234=\"\",\"\",AN234/$C$234)","v":""},null,{"$f":"IF($C$234=\"\",\"\",AP234/$C$234)","v":""},null,{"$f":"IF($C$234=\"\",\"\",AR234/$C$234)","v":""},null,{"$f":"IF($C$234=\"\",\"\",AT234/$C$234)","v":""},null,{"$f":"IF($C$234=\"\",\"\",AV234/$C$234)","v":""},null,{"$f":"IF($C$234=\"\",\"\",AX234/$C$234)","v":""},null,{"$f":"IF($C$234=\"\",\"\",AZ234/$C$234)","v":""},null,{"$f":"IF($C$234=\"\",\"\",BB234/$C$234)","v":""},null,{"$f":"SUM(BB234,AZ234,AX234,AV234,AT234,AR234,AP234,AN234,AL234,AJ234,AH234,AF234,AD234,AB234,Z234,X234,V234,T234,R234,P234,N234,L234,J234,H234,F234)","v":0}]
["    10.10.2","    Conduct Utility Make-Ready Walk-Throughs",null,null,{"$f":"IF($C$235=\"\",\"\",F235/$C$235)","v":""},null,{"$f":"IF($C$235=\"\",\"\",H235/$C$235)","v":""},null,{"$f":"IF($C$235=\"\",\"\",J235/$C$235)","v":""},null,{"$f":"IF($C$235=\"\",\"\",L235/$C$235)","v":""},null,{"$f":"IF($C$235=\"\",\"\",N235/$C$235)","v":""},null,{"$f":"IF($C$235=\"\",\"\",P235/$C$235)","v":""},null,{"$f":"IF($C$235=\"\",\"\",R235/$C$235)","v":""},null,{"$f":"IF($C$235=\"\",\"\",T235/$C$235)","v":""},null,{"$f":"IF($C$235=\"\",\"\",V235/$C$235)","v":""},null,{"$f":"IF($C$235=\"\",\"\",X235/$C$235)","v":""},null,{"$f":"IF($C$235=\"\",\"\",Z235/$C$235)","v":""},null,{"$f":"IF($C$235=\"\",\"\",AB235/$C$235)","v":""},null,{"$f":"IF($C$235=\"\",\"\",AD235/$C$235)","v":""},null,{"$f":"IF($C$235=\"\",\"\",AF235/$C$235)","v":""},null,{"$f":"IF($C$235=\"\",\"\",AH235/$C$235)","v":""},null,{"$f":"IF($C$235=\"\",\"\",AJ235/$C$235)","v":""},null,{"$f":"IF($C$235=\"\",\"\",AL235/$C$235)","v":""},null,{"$f":"IF($C$235=\"\",\"\",AN235/$C$235)","v":""},null,{"$f":"IF($C$235=\"\",\"\",AP235/$C$235)","v":""},null,{"$f":"IF($C$235=\"\",\"\",AR235/$C$235)","v":""},null,{"$f":"IF($C$235=\"\",\"\",AT235/$C$235)","v":""},null,{"$f":"IF($C$235=\"\",\"\",AV235/$C$235)","v":""},null,{"$f":"IF($C$235=\"\",\"\",AX235/$C$235)","v":""},null,{"$f":"IF($C$235=\"\",\"\",AZ235/$C$235)","v":""},null,{"$f":"IF($C$235=\"\",\"\",BB235/$C$235)","v":""},null,0]
["    10.10.3",null,null,null,{"$f":"IF($C$236=\"\",\"\",F236/$C$236)","v":""},null,{"$f":"IF($C$236=\"\",\"\",H236/$C$236)","v":""},null,{"$f":"IF($C$236=\"\",\"\",J236/$C$236)","v":""},null,{"$f":"IF($C$236=\"\",\"\",L236/$C$236)","v":""},null,{"$f":"IF($C$236=\"\",\"\",N236/$C$236)","v":""},null,{"$f":"IF($C$236=\"\",\"\",P236/$C$236)","v":""},null,{"$f":"IF($C$236=\"\",\"\",R236/$C$236)","v":""},null,{"$f":"IF($C$236=\"\",\"\",T236/$C$236)","v":""},null,{"$f":"IF($C$236=\"\",\"\",V236/$C$236)","v":""},null,{"$f":"IF($C$236=\"\",\"\",X236/$C$236)","v":""},null,{"$f":"IF($C$236=\"\",\"\",Z236/$C$236)","v":""},null,{"$f":"IF($C$236=\"\",\"\",AB236/$C$236)","v":""},null,{"$f":"IF($C$236=\"\",\"\",AD236/$C$236)","v":""},null,{"$f":"IF($C$236=\"\",\"\",AF236/$C$236)","v":""},null,{"$f":"IF($C$236=\"\",\"\",AH236/$C$236)","v":""},null,{"$f":"IF($C$236=\"\",\"\",AJ236/$C$236)","v":""},null,{"$f":"IF($C$236=\"\",\"\",AL236/$C$236)","v":""},null,{"$f":"IF($C$236=\"\",\"\",AN236/$C$236)","v":""},null,{"$f":"IF($C$236=\"\",\"\",AP236/$C$236)","v":""},null,{"$f":"IF($C$236=\"\",\"\",AR236/$C$236)","v":""},null,{"$f":"IF($C$236=\"\",\"\",AT236/$C$236)","v":""},null,{"$f":"IF($C$236=\"\",\"\",AV236/$C$236)","v":""},null,{"$f":"IF($C$236=\"\",\"\",AX236/$C$236)","v":""},null,{"$f":"IF($C$236=\"\",\"\",AZ236/$C$236)","v":""},null,{"$f":"IF($C$236=\"\",\"\",BB236/$C$236)","v":""},null,0]
["    10.10.4",null,null,null,{"$f":"IF($C$237=\"\",\"\",F237/$C$237)","v":""},null,{"$f":"IF($C$237=\"\",\"\",H237/$C$237)","v":""},null,{"$f":"IF($C$237=\"\",\"\",J237/$C$237)","v":""},null,{"$f":"IF($C$237=\"\",\"\",L237/$C$237)","v":""},null,{"$f":"IF($C$237=\"\",\"\",N237/$C$237)","v":""},null,{"$f":"IF($C$237=\"\",\"\",P237/$C$237)","v":""},null,{"$f":"IF($C$237=\"\",\"\",R237/$C$237)","v":""},null,{"$f":"IF($C$237=\"\",\"\",T237/$C$237)","v":""},null,{"$f":"IF($C$237=\"\",\"\",V237/$C$237)","v":""},null,{"$f":"IF($C$237=\"\",\"\",X237/$C$237)","v":""},null,{"$f":"IF($C$237=\"\",\"\",Z237/$C$237)","v":""},null,{"$f":"IF($C$237=\"\",\"\",AB237/$C$237)","v":""},null,{"$f":"IF($C$237=\"\",\"\",AD237/$C$237)","v":""},null,{"$f":"IF($C$237=\"\",\"\",AF237/$C$237)","v":""},null,{"$f":"IF($C$237=\"\",\"\",AH237/$C$237)","v":""},null,{"$f":"IF($C$237=\"\",\"\",AJ237/$C$237)","v":""},null,{"$f":"IF($C$237=\"\",\"\",AL237/$C$237)","v":""},null,{"$f":"IF($C$237=\"\",\"\",AN237/$C$237)","v":""},null,{"$f":"IF($C$237=\"\",\"\",AP237/$C$237)","v":""},null,{"$f":"IF($C$237=\"\",\"\",AR237/$C$237)","v":""},null,{"$f":"IF($C$237=\"\",\"\",AT237/$C$237)","v":""},null,{"$f":"IF($C$237=\"\",\"\",AV237/$C$237)","v":""},null,{"$f":"IF($C$237=\"\",\"\",AX237/$C$237)","v":""},null,{"$f":"IF($C$237=\"\",\"\",AZ237/$C$237)","v":""},null,{"$f":"IF($C$237=\"\",\"\",BB237/$C$237)","v":""},null,0]
["    10.10.5",null,null,null,{"$f":"IF($C$238=\"\",\"\",F238/$C$238)","v":""},null,{"$f":"IF($C$238=\"\",\"\",H238/$C$238)","v":""},null,{"$f":"IF($C$238=\"\",\"\",J238/$C$238)","v":""},null,{"$f":"IF($C$238=\"\",\"\",L238/$C$238)","v":""},null,{"$f":"IF($C$238=\"\",\"\",N238/$C$238)","v":""},null,{"$f":"IF($C$238=\"\",\"\",P238/$C$238)","v":""},null,{"$f":"IF($C$238=\"\",\"\",R238/$C$238)","v":""},null,{"$f":"IF($C$238=\"\",\"\",T238/$C$238)","v":""},null,{"$f":"IF($C$238=\"\",\"\",V238/$C$238)","v":""},null,{"$f":"IF($C$238=\"\",\"\",X238/$C$238)","v":""},null,{"$f":"IF($C$238=\"\",\"\",Z238/$C$238)","v":""},null,{"$f":"IF($C$238=\"\",\"\",AB238/$C$238)","v":""},null,{"$f":"IF($C$238=\"\",\"\",AD238/$C$238)","v":""},null,{"$f":"IF($C$238=\"\",\"\",AF238/$C$238)","v":""},null,{"$f":"IF($C$238=\"\",\"\",AH238/$C$238)","v":""},null,{"$f":"IF($C$238=\"\",\"\",AJ238/$C$238)","v":""},null,{"$f":"IF($C$238=\"\",\"\",AL238/$C$238)","v":""},null,{"$f":"IF($C$238=\"\",\"\",AN238/$C$238)","v":""},null,{"$f":"IF($C$238=\"\",\"\",AP238/$C$238)","v":""},null,{"$f":"IF($C$238=\"\",\"\",AR238/$C$238)","v":""},null,{"$f":"IF($C$238=\"\",\"\",AT238/$C$238)","v":""},null,{"$f":"IF($C$238=\"\",\"\",AV238/$C$238)","v":""},null,{"$f":"IF($C$238=\"\",\"\",AX238/$C$238)","v":""},null,{"$f":"IF($C$238=\"\",\"\",AZ238/$C$238)","v":""},null,{"$f":"IF($C$238=\"\",\"\",BB238/$C$238)","v":""},null,0]
[10.11,"Draft Final Utility Make-Ready Plans",null,null,{"$f":"IF($C$239=\"\",\"\",F239/$C$239)","v":""},null,{"$f":"IF($C$239=\"\",\"\",H239/$C$239)","v":""},null,{"$f":"IF($C$239=\"\",\"\",J239/$C$239)","v":""},null,{"$f":"IF($C$239=\"\",\"\",L239/$C$239)","v":""},null,{"$f":"IF($C$239=\"\",\"\",N239/$C$239)","v":""},null,{"$f":"IF($C$239=\"\",\"\",P239/$C$239)","v":""},null,{"$f":"IF($C$239=\"\",\"\",R239/$C$239)","v":""},null,{"$f":"IF($C$239=\"\",\"\",T239/$C$239)","v":""},null,{"$f":"IF($C$239=\"\",\"\",V239/$C$239)","v":""},null,{"$f":"IF($C$239=\"\",\"\",X239/$C$239)","v":""},null,{"$f":"IF($C$239=\"\",\"\",Z239/$C$239)","v":""},null,{"$f":"IF($C$239=\"\",\"\",AB239/$C$239)","v":""},null,{"$f":"IF($C$239=\"\",\"\",AD239/$C$239)","v":""},null,{"$f":"IF($C$239=\"\",\"\",AF239/$C$239)","v":""},null,{"$f":"IF($C$239=\"\",\"\",AH239/$C$239)","v":""},null,{"$f":"IF($C$239=\"\",\"\",AJ239/$C$239)","v":""},null,{"$f":"IF($C$239=\"\",\"\",AL239/$C$239)","v":""},null,{"$f":"IF($C$239=\"\",\"\",AN239/$C$239)","v":""},null,{"$f":"IF($C$239=\"\",\"\",AP239/$C$239)","v":""},null,{"$f":"IF($C$239=\"\",\"\",AR239/$C$239)","v":""},null,{"$f":"IF($C$239=\"\",\"\",AT239/$C$239)","v":""},null,{"$f":"IF($C$239=\"\",\"\",AV239/$C$239)","v":""},null,{"$f":"IF($C$239=\"\",\"\",AX239/$C$239)","v":""},null,{"$f":"IF($C$239=\"\",\"\",AZ239/$C$239)","v":""},null,{"$f":"IF($C$239=\"\",\"\",BB239/$C$239)","v":""},null,0]
[10.119999999999999,"Final Utility Make-Ready Plans",null,null,{"$f":"IF($C$240=\"\",\"\",F240/$C$240)","v":""},null,{"$f":"IF($C$240=\"\",\"\",H240/$C$240)","v":""},null,{"$f":"IF($C$240=\"\",\"\",J240/$C$240)","v":""},null,{"$f":"IF($C$240=\"\",\"\",L240/$C$240)","v":""},null,{"$f":"IF($C$240=\"\",\"\",N240/$C$240)","v":""},null,{"$f":"IF($C$240=\"\",\"\",P240/$C$240)","v":""},null,{"$f":"IF($C$240=\"\",\"\",R240/$C$240)","v":""},null,{"$f":"IF($C$240=\"\",\"\",T240/$C$240)","v":""},null,{"$f":"IF($C$240=\"\",\"\",V240/$C$240)","v":""},null,{"$f":"IF($C$240=\"\",\"\",X240/$C$240)","v":""},null,{"$f":"IF($C$240=\"\",\"\",Z240/$C$240)","v":""},null,{"$f":"IF($C$240=\"\",\"\",AB240/$C$240)","v":""},null,{"$f":"IF($C$240=\"\",\"\",AD240/$C$240)","v":""},null,{"$f":"IF($C$240=\"\",\"\",AF240/$C$240)","v":""},null,{"$f":"IF($C$240=\"\",\"\",AH240/$C$240)","v":""},null,{"$f":"IF($C$240=\"\",\"\",AJ240/$C$240)","v":""},null,{"$f":"IF($C$240=\"\",\"\",AL240/$C$240)","v":""},null,{"$f":"IF($C$240=\"\",\"\",AN240/$C$240)","v":""},null,{"$f":"IF($C$240=\"\",\"\",AP240/$C$240)","v":""},null,{"$f":"IF($C$240=\"\",\"\",AR240/$C$240)","v":""},null,{"$f":"IF($C$240=\"\",\"\",AT240/$C$240)","v":""},null,{"$f":"IF($C$240=\"\",\"\",AV240/$C$240)","v":""},null,{"$f":"IF($C$240=\"\",\"\",AX240/$C$240)","v":""},null,{"$f":"IF($C$240=\"\",\"\",AZ240/$C$240)","v":""},null,{"$f":"IF($C$240=\"\",\"\",BB240/$C$240)","v":""},null,0]
[10.130000000000001,"Review and Compile UMR Cost Estimates",null,null,{"$f":"IF($C$241=\"\",\"\",F241/$C$241)","v":""},null,{"$f":"IF($C$241=\"\",\"\",H241/$C$241)","v":""},null,{"$f":"IF($C$241=\"\",\"\",J241/$C$241)","v":""},null,{"$f":"IF($C$241=\"\",\"\",L241/$C$241)","v":""},null,{"$f":"IF($C$241=\"\",\"\",N241/$C$241)","v":""},null,{"$f":"IF($C$241=\"\",\"\",P241/$C$241)","v":""},null,{"$f":"IF($C$241=\"\",\"\",R241/$C$241)","v":""},null,{"$f":"IF($C$241=\"\",\"\",T241/$C$241)","v":""},null,{"$f":"IF($C$241=\"\",\"\",V241/$C$241)","v":""},null,{"$f":"IF($C$241=\"\",\"\",X241/$C$241)","v":""},null,{"$f":"IF($C$241=\"\",\"\",Z241/$C$241)","v":""},null,{"$f":"IF($C$241=\"\",\"\",AB241/$C$241)","v":""},null,{"$f":"IF($C$241=\"\",\"\",AD241/$C$241)","v":""},null,{"$f":"IF($C$241=\"\",\"\",AF241/$C$241)","v":""},null,{"$f":"IF($C$241=\"\",\"\",AH241/$C$241)","v":""},null,{"$f":"IF($C$241=\"\",\"\",AJ241/$C$241)","v":""},null,{"$f":"IF($C$241=\"\",\"\",AL241/$C$241)","v":""},null,{"$f":"IF($C$241=\"\",\"\",AN241/$C$241)","v":""},null,{"$f":"IF($C$241=\"\",\"\",AP241/$C$241)","v":""},null,{"$f":"IF($C$241=\"\",\"\",AR241/$C$241)","v":""},null,{"$f":"IF($C$241=\"\",\"\",AT241/$C$241)","v":""},null,{"$f":"IF($C$241=\"\",\"\",AV241/$C$241)","v":""},null,{"$f":"IF($C$241=\"\",\"\",AX241/$C$241)","v":""},null,{"$f":"IF($C$241=\"\",\"\",AZ241/$C$241)","v":""},null,{"$f":"IF($C$241=\"\",\"\",BB241/$C$241)","v":""},null,0]
[10.14,"Deliverables (3 submittals)",null,null,{"$f":"IF($C$242=\"\",\"\",F242/$C$242)","v":""},null,{"$f":"IF($C$242=\"\",\"\",H242/$C$242)","v":""},null,{"$f":"IF($C$242=\"\",\"\",J242/$C$242)","v":""},null,{"$f":"IF($C$242=\"\",\"\",L242/$C$242)","v":""},null,{"$f":"IF($C$242=\"\",\"\",N242/$C$242)","v":""},null,{"$f":"IF($C$242=\"\",\"\",P242/$C$242)","v":""},null,{"$f":"IF($C$242=\"\",\"\",R242/$C$242)","v":""},null,{"$f":"IF($C$242=\"\",\"\",T242/$C$242)","v":""},null,{"$f":"IF($C$242=\"\",\"\",V242/$C$242)","v":""},null,{"$f":"IF($C$242=\"\",\"\",X242/$C$242)","v":""},null,{"$f":"IF($C$242=\"\",\"\",Z242/$C$242)","v":""},null,{"$f":"IF($C$242=\"\",\"\",AB242/$C$242)","v":""},null,{"$f":"IF($C$242=\"\",\"\",AD242/$C$242)","v":""},null,{"$f":"IF($C$242=\"\",\"\",AF242/$C$242)","v":""},null,{"$f":"IF($C$242=\"\",\"\",AH242/$C$242)","v":""},null,{"$f":"IF($C$242=\"\",\"\",AJ242/$C$242)","v":""},null,{"$f":"IF($C$242=\"\",\"\",AL242/$C$242)","v":""},null,{"$f":"IF($C$242=\"\",\"\",AN242/$C$242)","v":""},null,{"$f":"IF($C$242=\"\",\"\",AP242/$C$242)","v":""},null,{"$f":"IF($C$242=\"\",\"\",AR242/$C$242)","v":""},null,{"$f":"IF($C$242=\"\",\"\",AT242/$C$242)","v":""},null,{"$f":"IF($C$242=\"\",\"\",AV242/$C$242)","v":""},null,{"$f":"IF($C$242=\"\",\"\",AX242/$C$242)","v":""},null,{"$f":"IF($C$242=\"\",\"\",AZ242/$C$242)","v":""},null,{"$f":"IF($C$242=\"\",\"\",BB242/$C$242)","v":""},null,0]
[null,null,null,null,{"$f":"IF($C$243=\"\",\"\",F243/$C$243)","v":""},null,{"$f":"IF($C$243=\"\",\"\",H243/$C$243)","v":""},null,{"$f":"IF($C$243=\"\",\"\",J243/$C$243)","v":""},null,{"$f":"IF($C$243=\"\",\"\",L243/$C$243)","v":""},null,{"$f":"IF($C$243=\"\",\"\",N243/$C$243)","v":""},null,{"$f":"IF($C$243=\"\",\"\",P243/$C$243)","v":""},null,{"$f":"IF($C$243=\"\",\"\",R243/$C$243)","v":""},null,{"$f":"IF($C$243=\"\",\"\",T243/$C$243)","v":""},null,{"$f":"IF($C$243=\"\",\"\",V243/$C$243)","v":""},null,{"$f":"IF($C$243=\"\",\"\",X243/$C$243)","v":""},null,{"$f":"IF($C$243=\"\",\"\",Z243/$C$243)","v":""},null,{"$f":"IF($C$243=\"\",\"\",AB243/$C$243)","v":""},null,{"$f":"IF($C$243=\"\",\"\",AD243/$C$243)","v":""},null,{"$f":"IF($C$243=\"\",\"\",AF243/$C$243)","v":""},null,{"$f":"IF($C$243=\"\",\"\",AH243/$C$243)","v":""},null,{"$f":"IF($C$243=\"\",\"\",AJ243/$C$243)","v":""},null,{"$f":"IF($C$243=\"\",\"\",AL243/$C$243)","v":""},null,{"$f":"IF($C$243=\"\",\"\",AN243/$C$243)","v":""},null,{"$f":"IF($C$243=\"\",\"\",AP243/$C$243)","v":""},null,{"$f":"IF($C$243=\"\",\"\",AR243/$C$243)","v":""},null,{"$f":"IF($C$243=\"\",\"\",AT243/$C$243)","v":""},null,{"$f":"IF($C$243=\"\",\"\",AV243/$C$243)","v":""},null,{"$f":"IF($C$243=\"\",\"\",AX243/$C$243)","v":""},null,{"$f":"IF($C$243=\"\",\"\",AZ243/$C$243)","v":""},null,{"$f":"IF($C$243=\"\",\"\",BB243/$C$243)","v":""},null,0]
[null,null,null,null,{"$f":"IF($C$244=\"\",\"\",F244/$C$244)","v":""},null,{"$f":"IF($C$244=\"\",\"\",H244/$C$244)","v":""},null,{"$f":"IF($C$244=\"\",\"\",J244/$C$244)","v":""},null,{"$f":"IF($C$244=\"\",\"\",L244/$C$244)","v":""},null,{"$f":"IF($C$244=\"\",\"\",N244/$C$244)","v":""},null,{"$f":"IF($C$244=\"\",\"\",P244/$C$244)","v":""},null,{"$f":"IF($C$244=\"\",\"\",R244/$C$244)","v":""},null,{"$f":"IF($C$244=\"\",\"\",T244/$C$244)","v":""},null,{"$f":"IF($C$244=\"\",\"\",V244/$C$244)","v":""},null,{"$f":"IF($C$244=\"\",\"\",X244/$C$244)","v":""},null,{"$f":"IF($C$244=\"\",\"\",Z244/$C$244)","v":""},null,{"$f":"IF($C$244=\"\",\"\",AB244/$C$244)","v":""},null,{"$f":"IF($C$244=\"\",\"\",AD244/$C$244)","v":""},null,{"$f":"IF($C$244=\"\",\"\",AF244/$C$244)","v":""},null,{"$f":"IF($C$244=\"\",\"\",AH244/$C$244)","v":""},null,{"$f":"IF($C$244=\"\",\"\",AJ244/$C$244)","v":""},null,{"$f":"IF($C$244=\"\",\"\",AL244/$C$244)","v":""},null,{"$f":"IF($C$244=\"\",\"\",AN244/$C$244)","v":""},null,{"$f":"IF($C$244=\"\",\"\",AP244/$C$244)","v":""},null,{"$f":"IF($C$244=\"\",\"\",AR244/$C$244)","v":""},null,{"$f":"IF($C$244=\"\",\"\",AT244/$C$244)","v":""},null,{"$f":"IF($C$244=\"\",\"\",AV244/$C$244)","v":""},null,{"$f":"IF($C$244=\"\",\"\",AX244/$C$244)","v":""},null,{"$f":"IF($C$244=\"\",\"\",AZ244/$C$244)","v":""},null,{"$f":"IF($C$244=\"\",\"\",BB244/$C$244)","v":""},null,0]
[null,null,null,null,{"$f":"IF($C$245=\"\",\"\",F245/$C$245)","v":""},null,{"$f":"IF($C$245=\"\",\"\",H245/$C$245)","v":""},null,{"$f":"IF($C$245=\"\",\"\",J245/$C$245)","v":""},null,{"$f":"IF($C$245=\"\",\"\",L245/$C$245)","v":""},null,{"$f":"IF($C$245=\"\",\"\",N245/$C$245)","v":""},null,{"$f":"IF($C$245=\"\",\"\",P245/$C$245)","v":""},null,{"$f":"IF($C$245=\"\",\"\",R245/$C$245)","v":""},null,{"$f":"IF($C$245=\"\",\"\",T245/$C$245)","v":""},null,{"$f":"IF($C$245=\"\",\"\",V245/$C$245)","v":""},null,{"$f":"IF($C$245=\"\",\"\",X245/$C$245)","v":""},null,{"$f":"IF($C$245=\"\",\"\",Z245/$C$245)","v":""},null,{"$f":"IF($C$245=\"\",\"\",AB245/$C$245)","v":""},null,{"$f":"IF($C$245=\"\",\"\",AD245/$C$245)","v":""},null,{"$f":"IF($C$245=\"\",\"\",AF245/$C$245)","v":""},null,{"$f":"IF($C$245=\"\",\"\",AH245/$C$245)","v":""},null,{"$f":"IF($C$245=\"\",\"\",AJ245/$C$245)","v":""},null,{"$f":"IF($C$245=\"\",\"\",AL245/$C$245)","v":""},null,{"$f":"IF($C$245=\"\",\"\",AN245/$C$245)","v":""},null,{"$f":"IF($C$245=\"\",\"\",AP245/$C$245)","v":""},null,{"$f":"IF($C$245=\"\",\"\",AR245/$C$245)","v":""},null,{"$f":"IF($C$245=\"\",\"\",AT245/$C$245)","v":""},null,{"$f":"IF($C$245=\"\",\"\",AV245/$C$245)","v":""},null,{"$f":"IF($C$245=\"\",\"\",AX245/$C$245)","v":""},null,{"$f":"IF($C$245=\"\",\"\",AZ245/$C$245)","v":""},null,{"$f":"IF($C$245=\"\",\"\",BB245/$C$245)","v":""},null,0]
[null,null,null,null,{"$f":"IF($C$246=\"\",\"\",F246/$C$246)","v":""},null,{"$f":"IF($C$246=\"\",\"\",H246/$C$246)","v":""},null,{"$f":"IF($C$246=\"\",\"\",J246/$C$246)","v":""},null,{"$f":"IF($C$246=\"\",\"\",L246/$C$246)","v":""},null,{"$f":"IF($C$246=\"\",\"\",N246/$C$246)","v":""},null,{"$f":"IF($C$246=\"\",\"\",P246/$C$246)","v":""},null,{"$f":"IF($C$246=\"\",\"\",R246/$C$246)","v":""},null,{"$f":"IF($C$246=\"\",\"\",T246/$C$246)","v":""},null,{"$f":"IF($C$246=\"\",\"\",V246/$C$246)","v":""},null,{"$f":"IF($C$246=\"\",\"\",X246/$C$246)","v":""},null,{"$f":"IF($C$246=\"\",\"\",Z246/$C$246)","v":""},null,{"$f":"IF($C$246=\"\",\"\",AB246/$C$246)","v":""},null,{"$f":"IF($C$246=\"\",\"\",AD246/$C$246)","v":""},null,{"$f":"IF($C$246=\"\",\"\",AF246/$C$246)","v":""},null,{"$f":"IF($C$246=\"\",\"\",AH246/$C$246)","v":""},null,{"$f":"IF($C$246=\"\",\"\",AJ246/$C$246)","v":""},null,{"$f":"IF($C$246=\"\",\"\",AL246/$C$246)","v":""},null,{"$f":"IF($C$246=\"\",\"\",AN246/$C$246)","v":""},null,{"$f":"IF($C$246=\"\",\"\",AP246/$C$246)","v":""},null,{"$f":"IF($C$246=\"\",\"\",AR246/$C$246)","v":""},null,{"$f":"IF($C$246=\"\",\"\",AT246/$C$246)","v":""},null,{"$f":"IF($C$246=\"\",\"\",AV246/$C$246)","v":""},null,{"$f":"IF($C$246=\"\",\"\",AX246/$C$246)","v":""},null,{"$f":"IF($C$246=\"\",\"\",AZ246/$C$246)","v":""},null,{"$f":"IF($C$246=\"\",\"\",BB246/$C$246)","v":""},null,0]
[null,null,null,null,{"$f":"IF($C$247=\"\",\"\",F247/$C$247)","v":""},null,{"$f":"IF($C$247=\"\",\"\",H247/$C$247)","v":""},null,{"$f":"IF($C$247=\"\",\"\",J247/$C$247)","v":""},null,{"$f":"IF($C$247=\"\",\"\",L247/$C$247)","v":""},null,{"$f":"IF($C$247=\"\",\"\",N247/$C$247)","v":""},null,{"$f":"IF($C$247=\"\",\"\",P247/$C$247)","v":""},null,{"$f":"IF($C$247=\"\",\"\",R247/$C$247)","v":""},null,{"$f":"IF($C$247=\"\",\"\",T247/$C$247)","v":""},null,{"$f":"IF($C$247=\"\",\"\",V247/$C$247)","v":""},null,{"$f":"IF($C$247=\"\",\"\",X247/$C$247)","v":""},null,{"$f":"IF($C$247=\"\",\"\",Z247/$C$247)","v":""},null,{"$f":"IF($C$247=\"\",\"\",AB247/$C$247)","v":""},null,{"$f":"IF($C$247=\"\",\"\",AD247/$C$247)","v":""},null,{"$f":"IF($C$247=\"\",\"\",AF247/$C$247)","v":""},null,{"$f":"IF($C$247=\"\",\"\",AH247/$C$247)","v":""},null,{"$f":"IF($C$247=\"\",\"\",AJ247/$C$247)","v":""},null,{"$f":"IF($C$247=\"\",\"\",AL247/$C$247)","v":""},null,{"$f":"IF($C$247=\"\",\"\",AN247/$C$247)","v":""},null,{"$f":"IF($C$247=\"\",\"\",AP247/$C$247)","v":""},null,{"$f":"IF($C$247=\"\",\"\",AR247/$C$247)","v":""},null,{"$f":"IF($C$247=\"\",\"\",AT247/$C$247)","v":""},null,{"$f":"IF($C$247=\"\",\"\",AV247/$C$247)","v":""},null,{"$f":"IF($C$247=\"\",\"\",AX247/$C$247)","v":""},null,{"$f":"IF($C$247=\"\",\"\",AZ247/$C$247)","v":""},null,{"$f":"IF($C$247=\"\",\"\",BB247/$C$247)","v":""},null,0]
[null,null,null,null,{"$f":"IF($C$248=\"\",\"\",F248/$C$248)","v":""},null,{"$f":"IF($C$248=\"\",\"\",H248/$C$248)","v":""},null,{"$f":"IF($C$248=\"\",\"\",J248/$C$248)","v":""},null,{"$f":"IF($C$248=\"\",\"\",L248/$C$248)","v":""},null,{"$f":"IF($C$248=\"\",\"\",N248/$C$248)","v":""},null,{"$f":"IF($C$248=\"\",\"\",P248/$C$248)","v":""},null,{"$f":"IF($C$248=\"\",\"\",R248/$C$248)","v":""},null,{"$f":"IF($C$248=\"\",\"\",T248/$C$248)","v":""},null,{"$f":"IF($C$248=\"\",\"\",V248/$C$248)","v":""},null,{"$f":"IF($C$248=\"\",\"\",X248/$C$248)","v":""},null,{"$f":"IF($C$248=\"\",\"\",Z248/$C$248)","v":""},null,{"$f":"IF($C$248=\"\",\"\",AB248/$C$248)","v":""},null,{"$f":"IF($C$248=\"\",\"\",AD248/$C$248)","v":""},null,{"$f":"IF($C$248=\"\",\"\",AF248/$C$248)","v":""},null,{"$f":"IF($C$248=\"\",\"\",AH248/$C$248)","v":""},null,{"$f":"IF($C$248=\"\",\"\",AJ248/$C$248)","v":""},null,{"$f":"IF($C$248=\"\",\"\",AL248/$C$248)","v":""},null,{"$f":"IF($C$248=\"\",\"\",AN248/$C$248)","v":""},null,{"$f":"IF($C$248=\"\",\"\",AP248/$C$248)","v":""},null,{"$f":"IF($C$248=\"\",\"\",AR248/$C$248)","v":""},null,{"$f":"IF($C$248=\"\",\"\",AT248/$C$248)","v":""},null,{"$f":"IF($C$248=\"\",\"\",AV248/$C$248)","v":""},null,{"$f":"IF($C$248=\"\",\"\",AX248/$C$248)","v":""},null,{"$f":"IF($C$248=\"\",\"\",AZ248/$C$248)","v":""},null,{"$f":"IF($C$248=\"\",\"\",BB248/$C$248)","v":""},null,0]
[null,null,null,null,{"$f":"IF($C$249=\"\",\"\",F249/$C$249)","v":""},null,{"$f":"IF($C$249=\"\",\"\",H249/$C$249)","v":""},null,{"$f":"IF($C$249=\"\",\"\",J249/$C$249)","v":""},null,{"$f":"IF($C$249=\"\",\"\",L249/$C$249)","v":""},null,{"$f":"IF($C$249=\"\",\"\",N249/$C$249)","v":""},null,{"$f":"IF($C$249=\"\",\"\",P249/$C$249)","v":""},null,{"$f":"IF($C$249=\"\",\"\",R249/$C$249)","v":""},null,{"$f":"IF($C$249=\"\",\"\",T249/$C$249)","v":""},null,{"$f":"IF($C$249=\"\",\"\",V249/$C$249)","v":""},null,{"$f":"IF($C$249=\"\",\"\",X249/$C$249)","v":""},null,{"$f":"IF($C$249=\"\",\"\",Z249/$C$249)","v":""},null,{"$f":"IF($C$249=\"\",\"\",AB249/$C$249)","v":""},null,{"$f":"IF($C$249=\"\",\"\",AD249/$C$249)","v":""},null,{"$f":"IF($C$249=\"\",\"\",AF249/$C$249)","v":""},null,{"$f":"IF($C$249=\"\",\"\",AH249/$C$249)","v":""},null,{"$f":"IF($C$249=\"\",\"\",AJ249/$C$249)","v":""},null,{"$f":"IF($C$249=\"\",\"\",AL249/$C$249)","v":""},null,{"$f":"IF($C$249=\"\",\"\",AN249/$C$249)","v":""},null,{"$f":"IF($C$249=\"\",\"\",AP249/$C$249)","v":""},null,{"$f":"IF($C$249=\"\",\"\",AR249/$C$249)","v":""},null,{"$f":"IF($C$249=\"\",\"\",AT249/$C$249)","v":""},null,{"$f":"IF($C$249=\"\",\"\",AV249/$C$249)","v":""},null,{"$f":"IF($C$249=\"\",\"\",AX249/$C$249)","v":""},null,{"$f":"IF($C$249=\"\",\"\",AZ249/$C$249)","v":""},null,{"$f":"IF($C$249=\"\",\"\",BB249/$C$249)","v":""},null,{"$f":"SUM(BB249,AZ249,AX249,AV249,AT249,AR249,AP249,AN249,AL249,AJ249,AH249,AF249,AD249,AB249,Z249,X249,V249,T249,R249,P249,N249,L249,J249,H249,F249)","v":0}]
["TOTAL HOURS",null,null,null,null,{"$f":"SUM(F224:F249)","v":0},null,{"$f":"SUM(H224:H249)","v":0},null,{"$f":"SUM(J224:J249)","v":0},null,{"$f":"SUM(L224:L249)","v":0},null,{"$f":"SUM(N224:N249)","v":0},null,{"$f":"SUM(P224:P249)","v":0},null,{"$f":"SUM(R224:R249)","v":0},null,{"$f":"SUM(T224:T249)","v":0},null,{"$f":"SUM(V224:V249)","v":0},null,{"$f":"SUM(X224:X249)","v":0},null,{"$f":"SUM(Z224:Z249)","v":0},null,{"$f":"SUM(AB224:AB249)","v":0},null,{"$f":"SUM(AD224:AD249)","v":0},null,{"$f":"SUM(AF224:AF249)","v":0},null,{"$f":"SUM(AH224:AH249)","v":0},null,{"$f":"SUM(AJ224:AJ249)","v":0},null,{"$f":"SUM(AL224:AL249)","v":0},null,{"$f":"SUM(AN224:AN249)","v":0},null,{"$f":"SUM(AP224:AP249)","v":0},null,{"$f":"SUM(AR224:AR249)","v":0},null,{"$f":"SUM(AT224:AT249)","v":0},null,{"$f":"SUM(AV224:AV249)","v":0},null,{"$f":"SUM(AX224:AX249)","v":0},null,{"$f":"SUM(AZ224:AZ249)","v":0},null,{"$f":"SUM(BB224:BB249)","v":0},{"$f":"SUM(E250:BB250)","v":0}]
["TOTAL WORKDAYS",null,null,null,null,{"$f":"F250/8","v":0},null,{"$f":"H250/8","v":0},null,{"$f":"J250/8","v":0},null,{"$f":"L250/8","v":0},null,{"$f":"N250/8","v":0},null,{"$f":"P250/8","v":0},null,{"$f":"R250/8","v":0},null,{"$f":"T250/8","v":0},null,{"$f":"V250/8","v":0},null,{"$f":"X250/8","v":0},null,{"$f":"Z250/8","v":0},null,{"$f":"AB250/8","v":0},null,{"$f":"AD250/8","v":0},null,0,null,{"$f":"AH250/8","v":0},null,0,null,{"$f":"AL250/8","v":0},null,0,null,{"$f":"AP250/8","v":0},null,0,null,{"$f":"AT250/8","v":0},null,{"$f":"AV250/8","v":0},null,{"$f":"AX250/8","v":0},null,{"$f":"AZ250/8","v":0},null,{"$f":"BB250/8","v":0},{"$f":"SUM(E251:BB251)","v":0}]
["TOTAL RAW LABOR",null,null,null,null,{"$f":"$E$13*F250","v":0},null,{"$f":"$G$13*H250","v":0},null,{"$f":"$I$13*J250","v":0},null,{"$f":"$K$13*L250","v":0},null,{"$f":"$M$13*N250","v":0},null,{"$f":"$O$13*P250","v":0},null,{"$f":"$Q$13*R250","v":0},null,{"$f":"$S$13*T250","v":0},null,{"$f":"$U$13*V250","v":0},null,{"$f":"$W$13*X250","v":0},null,{"$f":"$Y$13*Z250","v":0},null,{"$f":"$AA$13*AB250","v":0},null,{"$f":"$AC$13*AD250","v":0},null,{"$f":"$AC$13*AF250","v":0},null,{"$f":"$AC$13*AH250","v":0},null,{"$f":"$AC$13*AJ250","v":0},null,{"$f":"$AC$13*AL250","v":0},null,{"$f":"$AC$13*AN250","v":0},null,{"$f":"$AC$13*AP250","v":0},null,{"$f":"$AC$13*AR250","v":0},null,{"$f":"$AC$13*AT250","v":0},null,{"$f":"$AC$13*AV250","v":0},null,{"$f":"$AC$13*AX250","v":0},null,{"$f":"$AC$13*AZ250","v":0},null,{"$f":"$AC$13*BB250","v":0},{"$f":"SUM(E252:BB252)","v":0}]
["Task 11.0     ","SIGNAL SYSTEM CONSTRUCTION PLANS"]
[11.1,"Preliminary Plans"]
["    11.1.1","    Title Sheet",null,null,{"$f":"IF($C$255=\"\",\"\",F255/$C$255)","v":""},null,{"$f":"IF($C$255=\"\",\"\",H255/$C$255)","v":""},null,{"$f":"IF($C$255=\"\",\"\",J255/$C$255)","v":""},null,{"$f":"IF($C$255=\"\",\"\",L255/$C$255)","v":""},null,{"$f":"IF($C$255=\"\",\"\",N255/$C$255)","v":""},null,{"$f":"IF($C$255=\"\",\"\",P255/$C$255)","v":""},null,{"$f":"IF($C$255=\"\",\"\",R255/$C$255)","v":""},null,{"$f":"IF($C$255=\"\",\"\",T255/$C$255)","v":""},null,{"$f":"IF($C$255=\"\",\"\",V255/$C$255)","v":""},null,{"$f":"IF($C$255=\"\",\"\",X255/$C$255)","v":""},null,{"$f":"IF($C$255=\"\",\"\",Z255/$C$255)","v":""},null,{"$f":"IF($C$255=\"\",\"\",AB255/$C$255)","v":""},null,{"$f":"IF($C$255=\"\",\"\",AD255/$C$255)","v":""},null,{"$f":"IF($C$255=\"\",\"\",AF255/$C$255)","v":""},null,{"$f":"IF($C$255=\"\",\"\",AH255/$C$255)","v":""},null,{"$f":"IF($C$255=\"\",\"\",AJ255/$C$255)","v":""},null,{"$f":"IF($C$255=\"\",\"\",AL255/$C$255)","v":""},null,{"$f":"IF($C$255=\"\",\"\",AN255/$C$255)","v":""},null,{"$f":"IF($C$255=\"\",\"\",AP255/$C$255)","v":""},null,{"$f":"IF($C$255=\"\",\"\",AR255/$C$255)","v":""},null,{"$f":"IF($C$255=\"\",\"\",AT255/$C$255)","v":""},null,{"$f":"IF($C$255=\"\",\"\",AV255/$C$255)","v":""},null,{"$f":"IF($C$255=\"\",\"\",AX255/$C$255)","v":""},null,{"$f":"IF($C$255=\"\",\"\",AZ255/$C$255)","v":""},null,{"$f":"IF($C$255=\"\",\"\",BB255/$C$255)","v":""},null,{"$f":"SUM(BB255,AZ255,AX255,AV255,AT255,AR255,AP255,AN255,AL255,AJ255,AH255,AF255,AD255,AB255,Z255,X255,V255,T255,R255,P255,N255,L255,J255,H255,F255)","v":0}]
["    11.1.2","    Legend and General Notes",null,null,{"$f":"IF($C$256=\"\",\"\",F256/$C$256)","v":""},null,{"$f":"IF($C$256=\"\",\"\",H256/$C$256)","v":""},null,{"$f":"IF($C$256=\"\",\"\",J256/$C$256)","v":""},null,{"$f":"IF($C$256=\"\",\"\",L256/$C$256)","v":""},null,{"$f":"IF($C$256=\"\",\"\",N256/$C$256)","v":""},null,{"$f":"IF($C$256=\"\",\"\",P256/$C$256)","v":""},null,{"$f":"IF($C$256=\"\",\"\",R256/$C$256)","v":""},null,{"$f":"IF($C$256=\"\",\"\",T256/$C$256)","v":""},null,{"$f":"IF($C$256=\"\",\"\",V256/$C$256)","v":""},null,{"$f":"IF($C$256=\"\",\"\",X256/$C$256)","v":""},null,{"$f":"IF($C$256=\"\",\"\",Z256/$C$256)","v":""},null,{"$f":"IF($C$256=\"\",\"\",AB256/$C$256)","v":""},null,{"$f":"IF($C$256=\"\",\"\",AD256/$C$256)","v":""},null,{"$f":"IF($C$256=\"\",\"\",AF256/$C$256)","v":""},null,{"$f":"IF($C$256=\"\",\"\",AH256/$C$256)","v":""},null,{"$f":"IF($C$256=\"\",\"\",AJ256/$C$256)","v":""},null,{"$f":"IF($C$256=\"\",\"\",AL256/$C$256)","v":""},null,{"$f":"IF($C$256=\"\",\"\",AN256/$C$256)","v":""},null,{"$f":"IF($C$256=\"\",\"\",AP256/$C$256)","v":""},null,{"$f":"IF($C$256=\"\",\"\",AR256/$C$256)","v":""},null,{"$f":"IF($C$256=\"\",\"\",AT256/$C$256)","v":""},null,{"$f":"IF($C$256=\"\",\"\",AV256/$C$256)","v":""},null,{"$f":"IF($C$256=\"\",\"\",AX256/$C$256)","v":""},null,{"$f":"IF($C$256=\"\",\"\",AZ256/$C$256)","v":""},null,{"$f":"IF($C$256=\"\",\"\",BB256/$C$256)","v":""},null,0]
["    11.1.3","    Temporary Traffic Control Plans",null,null,{"$f":"IF($C$257=\"\",\"\",F257/$C$257)","v":""},null,{"$f":"IF($C$257=\"\",\"\",H257/$C$257)","v":""},null,{"$f":"IF($C$257=\"\",\"\",J257/$C$257)","v":""},null,{"$f":"IF($C$257=\"\",\"\",L257/$C$257)","v":""},null,{"$f":"IF($C$257=\"\",\"\",N257/$C$257)","v":""},null,{"$f":"IF($C$257=\"\",\"\",P257/$C$257)","v":""},null,{"$f":"IF($C$257=\"\",\"\",R257/$C$257)","v":""},null,{"$f":"IF($C$257=\"\",\"\",T257/$C$257)","v":""},null,{"$f":"IF($C$257=\"\",\"\",V257/$C$257)","v":""},null,{"$f":"IF($C$257=\"\",\"\",X257/$C$257)","v":""},null,{"$f":"IF($C$257=\"\",\"\",Z257/$C$257)","v":""},null,{"$f":"IF($C$257=\"\",\"\",AB257/$C$257)","v":""},null,{"$f":"IF($C$257=\"\",\"\",AD257/$C$257)","v":""},null,{"$f":"IF($C$257=\"\",\"\",AF257/$C$257)","v":""},null,{"$f":"IF($C$257=\"\",\"\",AH257/$C$257)","v":""},null,{"$f":"IF($C$257=\"\",\"\",AJ257/$C$257)","v":""},null,{"$f":"IF($C$257=\"\",\"\",AL257/$C$257)","v":""},null,{"$f":"IF($C$257=\"\",\"\",AN257/$C$257)","v":""},null,{"$f":"IF($C$257=\"\",\"\",AP257/$C$257)","v":""},null,{"$f":"IF($C$257=\"\",\"\",AR257/$C$257)","v":""},null,{"$f":"IF($C$257=\"\",\"\",AT257/$C$257)","v":""},null,{"$f":"IF($C$257=\"\",\"\",AV257/$C$257)","v":""},null,{"$f":"IF($C$257=\"\",\"\",AX257/$C$257)","v":""},null,{"$f":"IF($C$257=\"\",\"\",AZ257/$C$257)","v":""},null,{"$f":"IF($C$257=\"\",\"\",BB257/$C$257)","v":""},null,0]
["    11.1.4","    Summary of Quantities",null,null,{"$f":"IF($C$258=\"\",\"\",F258/$C$258)","v":""},null,{"$f":"IF($C$258=\"\",\"\",H258/$C$258)","v":""},null,{"$f":"IF($C$258=\"\",\"\",J258/$C$258)","v":""},null,{"$f":"IF($C$258=\"\",\"\",L258/$C$258)","v":""},null,{"$f":"IF($C$258=\"\",\"\",N258/$C$258)","v":""},null,{"$f":"IF($C$258=\"\",\"\",P258/$C$258)","v":""},null,{"$f":"IF($C$258=\"\",\"\",R258/$C$258)","v":""},null,{"$f":"IF($C$258=\"\",\"\",T258/$C$258)","v":""},null,{"$f":"IF($C$258=\"\",\"\",V258/$C$258)","v":""},null,{"$f":"IF($C$258=\"\",\"\",X258/$C$258)","v":""},null,{"$f":"IF($C$258=\"\",\"\",Z258/$C$258)","v":""},null,{"$f":"IF($C$258=\"\",\"\",AB258/$C$258)","v":""},null,{"$f":"IF($C$258=\"\",\"\",AD258/$C$258)","v":""},null,{"$f":"IF($C$258=\"\",\"\",AF258/$C$258)","v":""},null,{"$f":"IF($C$258=\"\",\"\",AH258/$C$258)","v":""},null,{"$f":"IF($C$258=\"\",\"\",AJ258/$C$258)","v":""},null,{"$f":"IF($C$258=\"\",\"\",AL258/$C$258)","v":""},null,{"$f":"IF($C$258=\"\",\"\",AN258/$C$258)","v":""},null,{"$f":"IF($C$258=\"\",\"\",AP258/$C$258)","v":""},null,{"$f":"IF($C$258=\"\",\"\",AR258/$C$258)","v":""},null,{"$f":"IF($C$258=\"\",\"\",AT258/$C$258)","v":""},null,{"$f":"IF($C$258=\"\",\"\",AV258/$C$258)","v":""},null,{"$f":"IF($C$258=\"\",\"\",AX258/$C$258)","v":""},null,{"$f":"IF($C$258=\"\",\"\",AZ258/$C$258)","v":""},null,{"$f":"IF($C$258=\"\",\"\",BB258/$C$258)","v":""},null,0]
["    11.1.5","    Summary of Work by CableRouting Sheet",null,null,{"$f":"IF($C$259=\"\",\"\",F259/$C$259)","v":""},null,{"$f":"IF($C$259=\"\",\"\",H259/$C$259)","v":""},null,{"$f":"IF($C$259=\"\",\"\",J259/$C$259)","v":""},null,{"$f":"IF($C$259=\"\",\"\",L259/$C$259)","v":""},null,{"$f":"IF($C$259=\"\",\"\",N259/$C$259)","v":""},null,{"$f":"IF($C$259=\"\",\"\",P259/$C$259)","v":""},null,{"$f":"IF($C$259=\"\",\"\",R259/$C$259)","v":""},null,{"$f":"IF($C$259=\"\",\"\",T259/$C$259)","v":""},null,{"$f":"IF($C$259=\"\",\"\",V259/$C$259)","v":""},null,{"$f":"IF($C$259=\"\",\"\",X259/$C$259)","v":""},null,{"$f":"IF($C$259=\"\",\"\",Z259/$C$259)","v":""},null,{"$f":"IF($C$259=\"\",\"\",AB259/$C$259)","v":""},null,{"$f":"IF($C$259=\"\",\"\",AD259/$C$259)","v":""},null,{"$f":"IF($C$259=\"\",\"\",AF259/$C$259)","v":""},null,{"$f":"IF($C$259=\"\",\"\",AH259/$C$259)","v":""},null,{"$f":"IF($C$259=\"\",\"\",AJ259/$C$259)","v":""},null,{"$f":"IF($C$259=\"\",\"\",AL259/$C$259)","v":""},null,{"$f":"IF($C$259=\"\",\"\",AN259/$C$259)","v":""},null,{"$f":"IF($C$259=\"\",\"\",AP259/$C$259)","v":""},null,{"$f":"IF($C$259=\"\",\"\",AR259/$C$259)","v":""},null,{"$f":"IF($C$259=\"\",\"\",AT259/$C$259)","v":""},null,{"$f":"IF($C$259=\"\",\"\",AV259/$C$259)","v":""},null,{"$f":"IF($C$259=\"\",\"\",AX259/$C$259)","v":""},null,{"$f":"IF($C$259=\"\",\"\",AZ259/$C$259)","v":""},null,{"$f":"IF($C$259=\"\",\"\",BB259/$C$259)","v":""},null,0]
["    11.1.6","    Communications Cable Schematic",null,null,{"$f":"IF($C$260=\"\",\"\",F260/$C$260)","v":""},null,{"$f":"IF($C$260=\"\",\"\",H260/$C$260)","v":""},null,{"$f":"IF($C$260=\"\",\"\",J260/$C$260)","v":""},null,{"$f":"IF($C$260=\"\",\"\",L260/$C$260)","v":""},null,{"$f":"IF($C$260=\"\",\"\",N260/$C$260)","v":""},null,{"$f":"IF($C$260=\"\",\"\",P260/$C$260)","v":""},null,{"$f":"IF($C$260=\"\",\"\",R260/$C$260)","v":""},null,{"$f":"IF($C$260=\"\",\"\",T260/$C$260)","v":""},null,{"$f":"IF($C$260=\"\",\"\",V260/$C$260)","v":""},null,{"$f":"IF($C$260=\"\",\"\",X260/$C$260)","v":""},null,{"$f":"IF($C$260=\"\",\"\",Z260/$C$260)","v":""},null,{"$f":"IF($C$260=\"\",\"\",AB260/$C$260)","v":""},null,{"$f":"IF($C$260=\"\",\"\",AD260/$C$260)","v":""},null,{"$f":"IF($C$260=\"\",\"\",AF260/$C$260)","v":""},null,{"$f":"IF($C$260=\"\",\"\",AH260/$C$260)","v":""},null,{"$f":"IF($C$260=\"\",\"\",AJ260/$C$260)","v":""},null,{"$f":"IF($C$260=\"\",\"\",AL260/$C$260)","v":""},null,{"$f":"IF($C$260=\"\",\"\",AN260/$C$260)","v":""},null,{"$f":"IF($C$260=\"\",\"\",AP260/$C$260)","v":""},null,{"$f":"IF($C$260=\"\",\"\",AR260/$C$260)","v":""},null,{"$f":"IF($C$260=\"\",\"\",AT260/$C$260)","v":""},null,{"$f":"IF($C$260=\"\",\"\",AV260/$C$260)","v":""},null,{"$f":"IF($C$260=\"\",\"\",AX260/$C$260)","v":""},null,{"$f":"IF($C$260=\"\",\"\",AZ260/$C$260)","v":""},null,{"$f":"IF($C$260=\"\",\"\",BB260/$C$260)","v":""},null,0]
["    11.1.7","    Communications Ring Schematics",null,null,{"$f":"IF($C$261=\"\",\"\",F261/$C$261)","v":""},null,{"$f":"IF($C$261=\"\",\"\",H261/$C$261)","v":""},null,{"$f":"IF($C$261=\"\",\"\",J261/$C$261)","v":""},null,{"$f":"IF($C$261=\"\",\"\",L261/$C$261)","v":""},null,{"$f":"IF($C$261=\"\",\"\",N261/$C$261)","v":""},null,{"$f":"IF($C$261=\"\",\"\",P261/$C$261)","v":""},null,{"$f":"IF($C$261=\"\",\"\",R261/$C$261)","v":""},null,{"$f":"IF($C$261=\"\",\"\",T261/$C$261)","v":""},null,{"$f":"IF($C$261=\"\",\"\",V261/$C$261)","v":""},null,{"$f":"IF($C$261=\"\",\"\",X261/$C$261)","v":""},null,{"$f":"IF($C$261=\"\",\"\",Z261/$C$261)","v":""},null,{"$f":"IF($C$261=\"\",\"\",AB261/$C$261)","v":""},null,{"$f":"IF($C$261=\"\",\"\",AD261/$C$261)","v":""},null,{"$f":"IF($C$261=\"\",\"\",AF261/$C$261)","v":""},null,{"$f":"IF($C$261=\"\",\"\",AH261/$C$261)","v":""},null,{"$f":"IF($C$261=\"\",\"\",AJ261/$C$261)","v":""},null,{"$f":"IF($C$261=\"\",\"\",AL261/$C$261)","v":""},null,{"$f":"IF($C$261=\"\",\"\",AN261/$C$261)","v":""},null,{"$f":"IF($C$261=\"\",\"\",AP261/$C$261)","v":""},null,{"$f":"IF($C$261=\"\",\"\",AR261/$C$261)","v":""},null,{"$f":"IF($C$261=\"\",\"\",AT261/$C$261)","v":""},null,{"$f":"IF($C$261=\"\",\"\",AV261/$C$261)","v":""},null,{"$f":"IF($C$261=\"\",\"\",AX261/$C$261)","v":""},null,{"$f":"IF($C$261=\"\",\"\",AZ261/$C$261)","v":""},null,{"$f":"IF($C$261=\"\",\"\",BB261/$C$261)","v":""},null,0]
["    11.1.8","    Summary of Fiber Optic Cables",null,null,{"$f":"IF($C$262=\"\",\"\",F262/$C$262)","v":""},null,{"$f":"IF($C$262=\"\",\"\",H262/$C$262)","v":""},null,{"$f":"IF($C$262=\"\",\"\",J262/$C$262)","v":""},null,{"$f":"IF($C$262=\"\",\"\",L262/$C$262)","v":""},null,{"$f":"IF($C$262=\"\",\"\",N262/$C$262)","v":""},null,{"$f":"IF($C$262=\"\",\"\",P262/$C$262)","v":""},null,{"$f":"IF($C$262=\"\",\"\",R262/$C$262)","v":""},null,{"$f":"IF($C$262=\"\",\"\",T262/$C$262)","v":""},null,{"$f":"IF($C$262=\"\",\"\",V262/$C$262)","v":""},null,{"$f":"IF($C$262=\"\",\"\",X262/$C$262)","v":""},null,{"$f":"IF($C$262=\"\",\"\",Z262/$C$262)","v":""},null,{"$f":"IF($C$262=\"\",\"\",AB262/$C$262)","v":""},null,{"$f":"IF($C$262=\"\",\"\",AD262/$C$262)","v":""},null,{"$f":"IF($C$262=\"\",\"\",AF262/$C$262)","v":""},null,{"$f":"IF($C$262=\"\",\"\",AH262/$C$262)","v":""},null,{"$f":"IF($C$262=\"\",\"\",AJ262/$C$262)","v":""},null,{"$f":"IF($C$262=\"\",\"\",AL262/$C$262)","v":""},null,{"$f":"IF($C$262=\"\",\"\",AN262/$C$262)","v":""},null,{"$f":"IF($C$262=\"\",\"\",AP262/$C$262)","v":""},null,{"$f":"IF($C$262=\"\",\"\",AR262/$C$262)","v":""},null,{"$f":"IF($C$262=\"\",\"\",AT262/$C$262)","v":""},null,{"$f":"IF($C$262=\"\",\"\",AV262/$C$262)","v":""},null,{"$f":"IF($C$262=\"\",\"\",AX262/$C$262)","v":""},null,{"$f":"IF($C$262=\"\",\"\",AZ262/$C$262)","v":""},null,{"$f":"IF($C$262=\"\",\"\",BB262/$C$262)","v":""},null,0]
["    11.1.9","    System Detector Schematic",null,null,{"$f":"IF($C$263=\"\",\"\",F263/$C$263)","v":""},null,{"$f":"IF($C$263=\"\",\"\",H263/$C$263)","v":""},null,{"$f":"IF($C$263=\"\",\"\",J263/$C$263)","v":""},null,{"$f":"IF($C$263=\"\",\"\",L263/$C$263)","v":""},null,{"$f":"IF($C$263=\"\",\"\",N263/$C$263)","v":""},null,{"$f":"IF($C$263=\"\",\"\",P263/$C$263)","v":""},null,{"$f":"IF($C$263=\"\",\"\",R263/$C$263)","v":""},null,{"$f":"IF($C$263=\"\",\"\",T263/$C$263)","v":""},null,{"$f":"IF($C$263=\"\",\"\",V263/$C$263)","v":""},null,{"$f":"IF($C$263=\"\",\"\",X263/$C$263)","v":""},null,{"$f":"IF($C$263=\"\",\"\",Z263/$C$263)","v":""},null,{"$f":"IF($C$263=\"\",\"\",AB263/$C$263)","v":""},null,{"$f":"IF($C$263=\"\",\"\",AD263/$C$263)","v":""},null,{"$f":"IF($C$263=\"\",\"\",AF263/$C$263)","v":""},null,{"$f":"IF($C$263=\"\",\"\",AH263/$C$263)","v":""},null,{"$f":"IF($C$263=\"\",\"\",AJ263/$C$263)","v":""},null,{"$f":"IF($C$263=\"\",\"\",AL263/$C$263)","v":""},null,{"$f":"IF($C$263=\"\",\"\",AN263/$C$263)","v":""},null,{"$f":"IF($C$263=\"\",\"\",AP263/$C$263)","v":""},null,{"$f":"IF($C$263=\"\",\"\",AR263/$C$263)","v":""},null,{"$f":"IF($C$263=\"\",\"\",AT263/$C$263)","v":""},null,{"$f":"IF($C$263=\"\",\"\",AV263/$C$263)","v":""},null,{"$f":"IF($C$263=\"\",\"\",AX263/$C$263)","v":""},null,{"$f":"IF($C$263=\"\",\"\",AZ263/$C$263)","v":""},null,{"$f":"IF($C$263=\"\",\"\",BB263/$C$263)","v":""},null,0]
["    11.1.10","    TMC Block Diagram",null,null,{"$f":"IF($C$264=\"\",\"\",F264/$C$264)","v":""},null,{"$f":"IF($C$264=\"\",\"\",H264/$C$264)","v":""},null,{"$f":"IF($C$264=\"\",\"\",J264/$C$264)","v":""},null,{"$f":"IF($C$264=\"\",\"\",L264/$C$264)","v":""},null,{"$f":"IF($C$264=\"\",\"\",N264/$C$264)","v":""},null,{"$f":"IF($C$264=\"\",\"\",P264/$C$264)","v":""},null,{"$f":"IF($C$264=\"\",\"\",R264/$C$264)","v":""},null,{"$f":"IF($C$264=\"\",\"\",T264/$C$264)","v":""},null,{"$f":"IF($C$264=\"\",\"\",V264/$C$264)","v":""},null,{"$f":"IF($C$264=\"\",\"\",X264/$C$264)","v":""},null,{"$f":"IF($C$264=\"\",\"\",Z264/$C$264)","v":""},null,{"$f":"IF($C$264=\"\",\"\",AB264/$C$264)","v":""},null,{"$f":"IF($C$264=\"\",\"\",AD264/$C$264)","v":""},null,{"$f":"IF($C$264=\"\",\"\",AF264/$C$264)","v":""},null,{"$f":"IF($C$264=\"\",\"\",AH264/$C$264)","v":""},null,{"$f":"IF($C$264=\"\",\"\",AJ264/$C$264)","v":""},null,{"$f":"IF($C$264=\"\",\"\",AL264/$C$264)","v":""},null,{"$f":"IF($C$264=\"\",\"\",AN264/$C$264)","v":""},null,{"$f":"IF($C$264=\"\",\"\",AP264/$C$264)","v":""},null,{"$f":"IF($C$264=\"\",\"\",AR264/$C$264)","v":""},null,{"$f":"IF($C$264=\"\",\"\",AT264/$C$264)","v":""},null,{"$f":"IF($C$264=\"\",\"\",AV264/$C$264)","v":""},null,{"$f":"IF($C$264=\"\",\"\",AX264/$C$264)","v":""},null,{"$f":"IF($C$264=\"\",\"\",AZ264/$C$264)","v":""},null,{"$f":"IF($C$264=\"\",\"\",BB264/$C$264)","v":""},null,0]
["    11.1.11","    System-Wide Block Diagrams",null,null,{"$f":"IF($C$265=\"\",\"\",F265/$C$265)","v":""},null,{"$f":"IF($C$265=\"\",\"\",H265/$C$265)","v":""},null,{"$f":"IF($C$265=\"\",\"\",J265/$C$265)","v":""},null,{"$f":"IF($C$265=\"\",\"\",L265/$C$265)","v":""},null,{"$f":"IF($C$265=\"\",\"\",N265/$C$265)","v":""},null,{"$f":"IF($C$265=\"\",\"\",P265/$C$265)","v":""},null,{"$f":"IF($C$265=\"\",\"\",R265/$C$265)","v":""},null,{"$f":"IF($C$265=\"\",\"\",T265/$C$265)","v":""},null,{"$f":"IF($C$265=\"\",\"\",V265/$C$265)","v":""},null,{"$f":"IF($C$265=\"\",\"\",X265/$C$265)","v":""},null,{"$f":"IF($C$265=\"\",\"\",Z265/$C$265)","v":""},null,{"$f":"IF($C$265=\"\",\"\",AB265/$C$265)","v":""},null,{"$f":"IF($C$265=\"\",\"\",AD265/$C$265)","v":""},null,{"$f":"IF($C$265=\"\",\"\",AF265/$C$265)","v":""},null,{"$f":"IF($C$265=\"\",\"\",AH265/$C$265)","v":""},null,{"$f":"IF($C$265=\"\",\"\",AJ265/$C$265)","v":""},null,{"$f":"IF($C$265=\"\",\"\",AL265/$C$265)","v":""},null,{"$f":"IF($C$265=\"\",\"\",AN265/$C$265)","v":""},null,{"$f":"IF($C$265=\"\",\"\",AP265/$C$265)","v":""},null,{"$f":"IF($C$265=\"\",\"\",AR265/$C$265)","v":""},null,{"$f":"IF($C$265=\"\",\"\",AT265/$C$265)","v":""},null,{"$f":"IF($C$265=\"\",\"\",AV265/$C$265)","v":""},null,{"$f":"IF($C$265=\"\",\"\",AX265/$C$265)","v":""},null,{"$f":"IF($C$265=\"\",\"\",AZ265/$C$265)","v":""},null,{"$f":"IF($C$265=\"\",\"\",BB265/$C$265)","v":""},null,0]
["    11.1.12","    Sheet Layout Key for UMR/Cable Routing \n    Sheets",null,null,{"$f":"IF($C$266=\"\",\"\",F266/$C$266)","v":""},null,{"$f":"IF($C$266=\"\",\"\",H266/$C$266)","v":""},null,{"$f":"IF($C$266=\"\",\"\",J266/$C$266)","v":""},null,{"$f":"IF($C$266=\"\",\"\",L266/$C$266)","v":""},null,{"$f":"IF($C$266=\"\",\"\",N266/$C$266)","v":""},null,{"$f":"IF($C$266=\"\",\"\",P266/$C$266)","v":""},null,{"$f":"IF($C$266=\"\",\"\",R266/$C$266)","v":""},null,{"$f":"IF($C$266=\"\",\"\",T266/$C$266)","v":""},null,{"$f":"IF($C$266=\"\",\"\",V266/$C$266)","v":""},null,{"$f":"IF($C$266=\"\",\"\",X266/$C$266)","v":""},null,{"$f":"IF($C$266=\"\",\"\",Z266/$C$266)","v":""},null,{"$f":"IF($C$266=\"\",\"\",AB266/$C$266)","v":""},null,{"$f":"IF($C$266=\"\",\"\",AD266/$C$266)","v":""},null,{"$f":"IF($C$266=\"\",\"\",AF266/$C$266)","v":""},null,{"$f":"IF($C$266=\"\",\"\",AH266/$C$266)","v":""},null,{"$f":"IF($C$266=\"\",\"\",AJ266/$C$266)","v":""},null,{"$f":"IF($C$266=\"\",\"\",AL266/$C$266)","v":""},null,{"$f":"IF($C$266=\"\",\"\",AN266/$C$266)","v":""},null,{"$f":"IF($C$266=\"\",\"\",AP266/$C$266)","v":""},null,{"$f":"IF($C$266=\"\",\"\",AR266/$C$266)","v":""},null,{"$f":"IF($C$266=\"\",\"\",AT266/$C$266)","v":""},null,{"$f":"IF($C$266=\"\",\"\",AV266/$C$266)","v":""},null,{"$f":"IF($C$266=\"\",\"\",AX266/$C$266)","v":""},null,{"$f":"IF($C$266=\"\",\"\",AZ266/$C$266)","v":""},null,{"$f":"IF($C$266=\"\",\"\",BB266/$C$266)","v":""},null,0]
["    11.1.13","    Construction Notes",null,null,{"$f":"IF($C$267=\"\",\"\",F267/$C$267)","v":""},null,{"$f":"IF($C$267=\"\",\"\",H267/$C$267)","v":""},null,{"$f":"IF($C$267=\"\",\"\",J267/$C$267)","v":""},null,{"$f":"IF($C$267=\"\",\"\",L267/$C$267)","v":""},null,{"$f":"IF($C$267=\"\",\"\",N267/$C$267)","v":""},null,{"$f":"IF($C$267=\"\",\"\",P267/$C$267)","v":""},null,{"$f":"IF($C$267=\"\",\"\",R267/$C$267)","v":""},null,{"$f":"IF($C$267=\"\",\"\",T267/$C$267)","v":""},null,{"$f":"IF($C$267=\"\",\"\",V267/$C$267)","v":""},null,{"$f":"IF($C$267=\"\",\"\",X267/$C$267)","v":""},null,{"$f":"IF($C$267=\"\",\"\",Z267/$C$267)","v":""},null,{"$f":"IF($C$267=\"\",\"\",AB267/$C$267)","v":""},null,{"$f":"IF($C$267=\"\",\"\",AD267/$C$267)","v":""},null,{"$f":"IF($C$267=\"\",\"\",AF267/$C$267)","v":""},null,{"$f":"IF($C$267=\"\",\"\",AH267/$C$267)","v":""},null,{"$f":"IF($C$267=\"\",\"\",AJ267/$C$267)","v":""},null,{"$f":"IF($C$267=\"\",\"\",AL267/$C$267)","v":""},null,{"$f":"IF($C$267=\"\",\"\",AN267/$C$267)","v":""},null,{"$f":"IF($C$267=\"\",\"\",AP267/$C$267)","v":""},null,{"$f":"IF($C$267=\"\",\"\",AR267/$C$267)","v":""},null,{"$f":"IF($C$267=\"\",\"\",AT267/$C$267)","v":""},null,{"$f":"IF($C$267=\"\",\"\",AV267/$C$267)","v":""},null,{"$f":"IF($C$267=\"\",\"\",AX267/$C$267)","v":""},null,{"$f":"IF($C$267=\"\",\"\",AZ267/$C$267)","v":""},null,{"$f":"IF($C$267=\"\",\"\",BB267/$C$267)","v":""},null,0]
["    11.1.14","    Communications Cable Routing Sheets",null,null,{"$f":"IF($C$268=\"\",\"\",F268/$C$268)","v":""},null,{"$f":"IF($C$268=\"\",\"\",H268/$C$268)","v":""},null,{"$f":"IF($C$268=\"\",\"\",J268/$C$268)","v":""},null,{"$f":"IF($C$268=\"\",\"\",L268/$C$268)","v":""},null,{"$f":"IF($C$268=\"\",\"\",N268/$C$268)","v":""},null,{"$f":"IF($C$268=\"\",\"\",P268/$C$268)","v":""},null,{"$f":"IF($C$268=\"\",\"\",R268/$C$268)","v":""},null,{"$f":"IF($C$268=\"\",\"\",T268/$C$268)","v":""},null,{"$f":"IF($C$268=\"\",\"\",V268/$C$268)","v":""},null,{"$f":"IF($C$268=\"\",\"\",X268/$C$268)","v":""},null,{"$f":"IF($C$268=\"\",\"\",Z268/$C$268)","v":""},null,{"$f":"IF($C$268=\"\",\"\",AB268/$C$268)","v":""},null,{"$f":"IF($C$268=\"\",\"\",AD268/$C$268)","v":""},null,{"$f":"IF($C$268=\"\",\"\",AF268/$C$268)","v":""},null,{"$f":"IF($C$268=\"\",\"\",AH268/$C$268)","v":""},null,{"$f":"IF($C$268=\"\",\"\",AJ268/$C$268)","v":""},null,{"$f":"IF($C$268=\"\",\"\",AL268/$C$268)","v":""},null,{"$f":"IF($C$268=\"\",\"\",AN268/$C$268)","v":""},null,{"$f":"IF($C$268=\"\",\"\",AP268/$C$268)","v":""},null,{"$f":"IF($C$268=\"\",\"\",AR268/$C$268)","v":""},null,{"$f":"IF($C$268=\"\",\"\",AT268/$C$268)","v":""},null,{"$f":"IF($C$268=\"\",\"\",AV268/$C$268)","v":""},null,{"$f":"IF($C$268=\"\",\"\",AX268/$C$268)","v":""},null,{"$f":"IF($C$268=\"\",\"\",AZ268/$C$268)","v":""},null,{"$f":"IF($C$268=\"\",\"\",BB268/$C$268)","v":""},null,0]
["    11.1.15","    Typical Details",null,null,{"$f":"IF($C$269=\"\",\"\",F269/$C$269)","v":""},null,{"$f":"IF($C$269=\"\",\"\",H269/$C$269)","v":""},null,{"$f":"IF($C$269=\"\",\"\",J269/$C$269)","v":""},null,{"$f":"IF($C$269=\"\",\"\",L269/$C$269)","v":""},null,{"$f":"IF($C$269=\"\",\"\",N269/$C$269)","v":""},null,{"$f":"IF($C$269=\"\",\"\",P269/$C$269)","v":""},null,{"$f":"IF($C$269=\"\",\"\",R269/$C$269)","v":""},null,{"$f":"IF($C$269=\"\",\"\",T269/$C$269)","v":""},null,{"$f":"IF($C$269=\"\",\"\",V269/$C$269)","v":""},null,{"$f":"IF($C$269=\"\",\"\",X269/$C$269)","v":""},null,{"$f":"IF($C$269=\"\",\"\",Z269/$C$269)","v":""},null,{"$f":"IF($C$269=\"\",\"\",AB269/$C$269)","v":""},null,{"$f":"IF($C$269=\"\",\"\",AD269/$C$269)","v":""},null,{"$f":"IF($C$269=\"\",\"\",AF269/$C$269)","v":""},null,{"$f":"IF($C$269=\"\",\"\",AH269/$C$269)","v":""},null,{"$f":"IF($C$269=\"\",\"\",AJ269/$C$269)","v":""},null,{"$f":"IF($C$269=\"\",\"\",AL269/$C$269)","v":""},null,{"$f":"IF($C$269=\"\",\"\",AN269/$C$269)","v":""},null,{"$f":"IF($C$269=\"\",\"\",AP269/$C$269)","v":""},null,{"$f":"IF($C$269=\"\",\"\",AR269/$C$269)","v":""},null,{"$f":"IF($C$269=\"\",\"\",AT269/$C$269)","v":""},null,{"$f":"IF($C$269=\"\",\"\",AV269/$C$269)","v":""},null,{"$f":"IF($C$269=\"\",\"\",AX269/$C$269)","v":""},null,{"$f":"IF($C$269=\"\",\"\",AZ269/$C$269)","v":""},null,{"$f":"IF($C$269=\"\",\"\",BB269/$C$269)","v":""},null,0]
["    11.1.16","    Summary of Work by CCTV Location",null,null,{"$f":"IF($C$270=\"\",\"\",F270/$C$270)","v":""},null,{"$f":"IF($C$270=\"\",\"\",H270/$C$270)","v":""},null,{"$f":"IF($C$270=\"\",\"\",J270/$C$270)","v":""},null,{"$f":"IF($C$270=\"\",\"\",L270/$C$270)","v":""},null,{"$f":"IF($C$270=\"\",\"\",N270/$C$270)","v":""},null,{"$f":"IF($C$270=\"\",\"\",P270/$C$270)","v":""},null,{"$f":"IF($C$270=\"\",\"\",R270/$C$270)","v":""},null,{"$f":"IF($C$270=\"\",\"\",T270/$C$270)","v":""},null,{"$f":"IF($C$270=\"\",\"\",V270/$C$270)","v":""},null,{"$f":"IF($C$270=\"\",\"\",X270/$C$270)","v":""},null,{"$f":"IF($C$270=\"\",\"\",Z270/$C$270)","v":""},null,{"$f":"IF($C$270=\"\",\"\",AB270/$C$270)","v":""},null,{"$f":"IF($C$270=\"\",\"\",AD270/$C$270)","v":""},null,{"$f":"IF($C$270=\"\",\"\",AF270/$C$270)","v":""},null,{"$f":"IF($C$270=\"\",\"\",AH270/$C$270)","v":""},null,{"$f":"IF($C$270=\"\",\"\",AJ270/$C$270)","v":""},null,{"$f":"IF($C$270=\"\",\"\",AL270/$C$270)","v":""},null,{"$f":"IF($C$270=\"\",\"\",AN270/$C$270)","v":""},null,{"$f":"IF($C$270=\"\",\"\",AP270/$C$270)","v":""},null,{"$f":"IF($C$270=\"\",\"\",AR270/$C$270)","v":""},null,{"$f":"IF($C$270=\"\",\"\",AT270/$C$270)","v":""},null,{"$f":"IF($C$270=\"\",\"\",AV270/$C$270)","v":""},null,{"$f":"IF($C$270=\"\",\"\",AX270/$C$270)","v":""},null,{"$f":"IF($C$270=\"\",\"\",AZ270/$C$270)","v":""},null,{"$f":"IF($C$270=\"\",\"\",BB270/$C$270)","v":""},null,0]
["    11.1.17","    CCTV Site Plans",null,null,{"$f":"IF($C$271=\"\",\"\",F271/$C$271)","v":""},null,{"$f":"IF($C$271=\"\",\"\",H271/$C$271)","v":""},null,{"$f":"IF($C$271=\"\",\"\",J271/$C$271)","v":""},null,{"$f":"IF($C$271=\"\",\"\",L271/$C$271)","v":""},null,{"$f":"IF($C$271=\"\",\"\",N271/$C$271)","v":""},null,{"$f":"IF($C$271=\"\",\"\",P271/$C$271)","v":""},null,{"$f":"IF($C$271=\"\",\"\",R271/$C$271)","v":""},null,{"$f":"IF($C$271=\"\",\"\",T271/$C$271)","v":""},null,{"$f":"IF($C$271=\"\",\"\",V271/$C$271)","v":""},null,{"$f":"IF($C$271=\"\",\"\",X271/$C$271)","v":""},null,{"$f":"IF($C$271=\"\",\"\",Z271/$C$271)","v":""},null,{"$f":"IF($C$271=\"\",\"\",AB271/$C$271)","v":""},null,{"$f":"IF($C$271=\"\",\"\",AD271/$C$271)","v":""},null,{"$f":"IF($C$271=\"\",\"\",AF271/$C$271)","v":""},null,{"$f":"IF($C$271=\"\",\"\",AH271/$C$271)","v":""},null,{"$f":"IF($C$271=\"\",\"\",AJ271/$C$271)","v":""},null,{"$f":"IF($C$271=\"\",\"\",AL271/$C$271)","v":""},null,{"$f":"IF($C$271=\"\",\"\",AN271/$C$271)","v":""},null,{"$f":"IF($C$271=\"\",\"\",AP271/$C$271)","v":""},null,{"$f":"IF($C$271=\"\",\"\",AR271/$C$271)","v":""},null,{"$f":"IF($C$271=\"\",\"\",AT271/$C$271)","v":""},null,{"$f":"IF($C$271=\"\",\"\",AV271/$C$271)","v":""},null,{"$f":"IF($C$271=\"\",\"\",AX271/$C$271)","v":""},null,{"$f":"IF($C$271=\"\",\"\",AZ271/$C$271)","v":""},null,{"$f":"IF($C$271=\"\",\"\",BB271/$C$271)","v":""},null,0]
["    11.1.18","    Wireless Design",null,null,{"$f":"IF($C$272=\"\",\"\",F272/$C$272)","v":""},null,{"$f":"IF($C$272=\"\",\"\",H272/$C$272)","v":""},null,{"$f":"IF($C$272=\"\",\"\",J272/$C$272)","v":""},null,{"$f":"IF($C$272=\"\",\"\",L272/$C$272)","v":""},null,{"$f":"IF($C$272=\"\",\"\",N272/$C$272)","v":""},null,{"$f":"IF($C$272=\"\",\"\",P272/$C$272)","v":""},null,{"$f":"IF($C$272=\"\",\"\",R272/$C$272)","v":""},null,{"$f":"IF($C$272=\"\",\"\",T272/$C$272)","v":""},null,{"$f":"IF($C$272=\"\",\"\",V272/$C$272)","v":""},null,{"$f":"IF($C$272=\"\",\"\",X272/$C$272)","v":""},null,{"$f":"IF($C$272=\"\",\"\",Z272/$C$272)","v":""},null,{"$f":"IF($C$272=\"\",\"\",AB272/$C$272)","v":""},null,{"$f":"IF($C$272=\"\",\"\",AD272/$C$272)","v":""},null,{"$f":"IF($C$272=\"\",\"\",AF272/$C$272)","v":""},null,{"$f":"IF($C$272=\"\",\"\",AH272/$C$272)","v":""},null,{"$f":"IF($C$272=\"\",\"\",AJ272/$C$272)","v":""},null,{"$f":"IF($C$272=\"\",\"\",AL272/$C$272)","v":""},null,{"$f":"IF($C$272=\"\",\"\",AN272/$C$272)","v":""},null,{"$f":"IF($C$272=\"\",\"\",AP272/$C$272)","v":""},null,{"$f":"IF($C$272=\"\",\"\",AR272/$C$272)","v":""},null,{"$f":"IF($C$272=\"\",\"\",AT272/$C$272)","v":""},null,{"$f":"IF($C$272=\"\",\"\",AV272/$C$272)","v":""},null,{"$f":"IF($C$272=\"\",\"\",AX272/$C$272)","v":""},null,{"$f":"IF($C$272=\"\",\"\",AZ272/$C$272)","v":""},null,{"$f":"IF($C$272=\"\",\"\",BB272/$C$272)","v":""},null,0]
["    11.1.19","    Municipal Remote Monitoring Station Details",null,null,{"$f":"IF($C$273=\"\",\"\",F273/$C$273)","v":""},null,{"$f":"IF($C$273=\"\",\"\",H273/$C$273)","v":""},null,{"$f":"IF($C$273=\"\",\"\",J273/$C$273)","v":""},null,{"$f":"IF($C$273=\"\",\"\",L273/$C$273)","v":""},null,{"$f":"IF($C$273=\"\",\"\",N273/$C$273)","v":""},null,{"$f":"IF($C$273=\"\",\"\",P273/$C$273)","v":""},null,{"$f":"IF($C$273=\"\",\"\",R273/$C$273)","v":""},null,{"$f":"IF($C$273=\"\",\"\",T273/$C$273)","v":""},null,{"$f":"IF($C$273=\"\",\"\",V273/$C$273)","v":""},null,{"$f":"IF($C$273=\"\",\"\",X273/$C$273)","v":""},null,{"$f":"IF($C$273=\"\",\"\",Z273/$C$273)","v":""},null,{"$f":"IF($C$273=\"\",\"\",AB273/$C$273)","v":""},null,{"$f":"IF($C$273=\"\",\"\",AD273/$C$273)","v":""},null,{"$f":"IF($C$273=\"\",\"\",AF273/$C$273)","v":""},null,{"$f":"IF($C$273=\"\",\"\",AH273/$C$273)","v":""},null,{"$f":"IF($C$273=\"\",\"\",AJ273/$C$273)","v":""},null,{"$f":"IF($C$273=\"\",\"\",AL273/$C$273)","v":""},null,{"$f":"IF($C$273=\"\",\"\",AN273/$C$273)","v":""},null,{"$f":"IF($C$273=\"\",\"\",AP273/$C$273)","v":""},null,{"$f":"IF($C$273=\"\",\"\",AR273/$C$273)","v":""},null,{"$f":"IF($C$273=\"\",\"\",AT273/$C$273)","v":""},null,{"$f":"IF($C$273=\"\",\"\",AV273/$C$273)","v":""},null,{"$f":"IF($C$273=\"\",\"\",AX273/$C$273)","v":""},null,{"$f":"IF($C$273=\"\",\"\",AZ273/$C$273)","v":""},null,{"$f":"IF($C$273=\"\",\"\",BB273/$C$273)","v":""},null,0]
["    11.1.20","    TMC Modifications",null,null,{"$f":"IF($C$274=\"\",\"\",F274/$C$274)","v":""},null,{"$f":"IF($C$274=\"\",\"\",H274/$C$274)","v":""},null,{"$f":"IF($C$274=\"\",\"\",J274/$C$274)","v":""},null,{"$f":"IF($C$274=\"\",\"\",L274/$C$274)","v":""},null,{"$f":"IF($C$274=\"\",\"\",N274/$C$274)","v":""},null,{"$f":"IF($C$274=\"\",\"\",P274/$C$274)","v":""},null,{"$f":"IF($C$274=\"\",\"\",R274/$C$274)","v":""},null,{"$f":"IF($C$274=\"\",\"\",T274/$C$274)","v":""},null,{"$f":"IF($C$274=\"\",\"\",V274/$C$274)","v":""},null,{"$f":"IF($C$274=\"\",\"\",X274/$C$274)","v":""},null,{"$f":"IF($C$274=\"\",\"\",Z274/$C$274)","v":""},null,{"$f":"IF($C$274=\"\",\"\",AB274/$C$274)","v":""},null,{"$f":"IF($C$274=\"\",\"\",AD274/$C$274)","v":""},null,{"$f":"IF($C$274=\"\",\"\",AF274/$C$274)","v":""},null,{"$f":"IF($C$274=\"\",\"\",AH274/$C$274)","v":""},null,{"$f":"IF($C$274=\"\",\"\",AJ274/$C$274)","v":""},null,{"$f":"IF($C$274=\"\",\"\",AL274/$C$274)","v":""},null,{"$f":"IF($C$274=\"\",\"\",AN274/$C$274)","v":""},null,{"$f":"IF($C$274=\"\",\"\",AP274/$C$274)","v":""},null,{"$f":"IF($C$274=\"\",\"\",AR274/$C$274)","v":""},null,{"$f":"IF($C$274=\"\",\"\",AT274/$C$274)","v":""},null,{"$f":"IF($C$274=\"\",\"\",AV274/$C$274)","v":""},null,{"$f":"IF($C$274=\"\",\"\",AX274/$C$274)","v":""},null,{"$f":"IF($C$274=\"\",\"\",AZ274/$C$274)","v":""},null,{"$f":"IF($C$274=\"\",\"\",BB274/$C$274)","v":""},null,0]
["    11.1.21","    Special Details",null,null,{"$f":"IF($C$275=\"\",\"\",F275/$C$275)","v":""},null,{"$f":"IF($C$275=\"\",\"\",H275/$C$275)","v":""},null,{"$f":"IF($C$275=\"\",\"\",J275/$C$275)","v":""},null,{"$f":"IF($C$275=\"\",\"\",L275/$C$275)","v":""},null,{"$f":"IF($C$275=\"\",\"\",N275/$C$275)","v":""},null,{"$f":"IF($C$275=\"\",\"\",P275/$C$275)","v":""},null,{"$f":"IF($C$275=\"\",\"\",R275/$C$275)","v":""},null,{"$f":"IF($C$275=\"\",\"\",T275/$C$275)","v":""},null,{"$f":"IF($C$275=\"\",\"\",V275/$C$275)","v":""},null,{"$f":"IF($C$275=\"\",\"\",X275/$C$275)","v":""},null,{"$f":"IF($C$275=\"\",\"\",Z275/$C$275)","v":""},null,{"$f":"IF($C$275=\"\",\"\",AB275/$C$275)","v":""},null,{"$f":"IF($C$275=\"\",\"\",AD275/$C$275)","v":""},null,{"$f":"IF($C$275=\"\",\"\",AF275/$C$275)","v":""},null,{"$f":"IF($C$275=\"\",\"\",AH275/$C$275)","v":""},null,{"$f":"IF($C$275=\"\",\"\",AJ275/$C$275)","v":""},null,{"$f":"IF($C$275=\"\",\"\",AL275/$C$275)","v":""},null,{"$f":"IF($C$275=\"\",\"\",AN275/$C$275)","v":""},null,{"$f":"IF($C$275=\"\",\"\",AP275/$C$275)","v":""},null,{"$f":"IF($C$275=\"\",\"\",AR275/$C$275)","v":""},null,{"$f":"IF($C$275=\"\",\"\",AT275/$C$275)","v":""},null,{"$f":"IF($C$275=\"\",\"\",AV275/$C$275)","v":""},null,{"$f":"IF($C$275=\"\",\"\",AX275/$C$275)","v":""},null,{"$f":"IF($C$275=\"\",\"\",AZ275/$C$275)","v":""},null,{"$f":"IF($C$275=\"\",\"\",BB275/$C$275)","v":""},null,0]
["    11.1.22","    Splice Diagrams",null,null,{"$f":"IF($C$276=\"\",\"\",F276/$C$276)","v":""},null,{"$f":"IF($C$276=\"\",\"\",H276/$C$276)","v":""},null,{"$f":"IF($C$276=\"\",\"\",J276/$C$276)","v":""},null,{"$f":"IF($C$276=\"\",\"\",L276/$C$276)","v":""},null,{"$f":"IF($C$276=\"\",\"\",N276/$C$276)","v":""},null,{"$f":"IF($C$276=\"\",\"\",P276/$C$276)","v":""},null,{"$f":"IF($C$276=\"\",\"\",R276/$C$276)","v":""},null,{"$f":"IF($C$276=\"\",\"\",T276/$C$276)","v":""},null,{"$f":"IF($C$276=\"\",\"\",V276/$C$276)","v":""},null,{"$f":"IF($C$276=\"\",\"\",X276/$C$276)","v":""},null,{"$f":"IF($C$276=\"\",\"\",Z276/$C$276)","v":""},null,{"$f":"IF($C$276=\"\",\"\",AB276/$C$276)","v":""},null,{"$f":"IF($C$276=\"\",\"\",AD276/$C$276)","v":""},null,{"$f":"IF($C$276=\"\",\"\",AF276/$C$276)","v":""},null,{"$f":"IF($C$276=\"\",\"\",AH276/$C$276)","v":""},null,{"$f":"IF($C$276=\"\",\"\",AJ276/$C$276)","v":""},null,{"$f":"IF($C$276=\"\",\"\",AL276/$C$276)","v":""},null,{"$f":"IF($C$276=\"\",\"\",AN276/$C$276)","v":""},null,{"$f":"IF($C$276=\"\",\"\",AP276/$C$276)","v":""},null,{"$f":"IF($C$276=\"\",\"\",AR276/$C$276)","v":""},null,{"$f":"IF($C$276=\"\",\"\",AT276/$C$276)","v":""},null,{"$f":"IF($C$276=\"\",\"\",AV276/$C$276)","v":""},null,{"$f":"IF($C$276=\"\",\"\",AX276/$C$276)","v":""},null,{"$f":"IF($C$276=\"\",\"\",AZ276/$C$276)","v":""},null,{"$f":"IF($C$276=\"\",\"\",BB276/$C$276)","v":""},null,0]
["    11.1.23","    Summary of Work by Intersection",null,null,{"$f":"IF($C$277=\"\",\"\",F277/$C$277)","v":""},null,{"$f":"IF($C$277=\"\",\"\",H277/$C$277)","v":""},null,{"$f":"IF($C$277=\"\",\"\",J277/$C$277)","v":""},null,{"$f":"IF($C$277=\"\",\"\",L277/$C$277)","v":""},null,{"$f":"IF($C$277=\"\",\"\",N277/$C$277)","v":""},null,{"$f":"IF($C$277=\"\",\"\",P277/$C$277)","v":""},null,{"$f":"IF($C$277=\"\",\"\",R277/$C$277)","v":""},null,{"$f":"IF($C$277=\"\",\"\",T277/$C$277)","v":""},null,{"$f":"IF($C$277=\"\",\"\",V277/$C$277)","v":""},null,{"$f":"IF($C$277=\"\",\"\",X277/$C$277)","v":""},null,{"$f":"IF($C$277=\"\",\"\",Z277/$C$277)","v":""},null,{"$f":"IF($C$277=\"\",\"\",AB277/$C$277)","v":""},null,{"$f":"IF($C$277=\"\",\"\",AD277/$C$277)","v":""},null,{"$f":"IF($C$277=\"\",\"\",AF277/$C$277)","v":""},null,{"$f":"IF($C$277=\"\",\"\",AH277/$C$277)","v":""},null,{"$f":"IF($C$277=\"\",\"\",AJ277/$C$277)","v":""},null,{"$f":"IF($C$277=\"\",\"\",AL277/$C$277)","v":""},null,{"$f":"IF($C$277=\"\",\"\",AN277/$C$277)","v":""},null,{"$f":"IF($C$277=\"\",\"\",AP277/$C$277)","v":""},null,{"$f":"IF($C$277=\"\",\"\",AR277/$C$277)","v":""},null,{"$f":"IF($C$277=\"\",\"\",AT277/$C$277)","v":""},null,{"$f":"IF($C$277=\"\",\"\",AV277/$C$277)","v":""},null,{"$f":"IF($C$277=\"\",\"\",AX277/$C$277)","v":""},null,{"$f":"IF($C$277=\"\",\"\",AZ277/$C$277)","v":""},null,{"$f":"IF($C$277=\"\",\"\",BB277/$C$277)","v":""},null,0]
["    11.1.24","    Incorporate NCDOT Traffic Signal Design Plans",null,null,{"$f":"IF($C$278=\"\",\"\",F278/$C$278)","v":""},null,{"$f":"IF($C$278=\"\",\"\",H278/$C$278)","v":""},null,{"$f":"IF($C$278=\"\",\"\",J278/$C$278)","v":""},null,{"$f":"IF($C$278=\"\",\"\",L278/$C$278)","v":""},null,{"$f":"IF($C$278=\"\",\"\",N278/$C$278)","v":""},null,{"$f":"IF($C$278=\"\",\"\",P278/$C$278)","v":""},null,{"$f":"IF($C$278=\"\",\"\",R278/$C$278)","v":""},null,{"$f":"IF($C$278=\"\",\"\",T278/$C$278)","v":""},null,{"$f":"IF($C$278=\"\",\"\",V278/$C$278)","v":""},null,{"$f":"IF($C$278=\"\",\"\",X278/$C$278)","v":""},null,{"$f":"IF($C$278=\"\",\"\",Z278/$C$278)","v":""},null,{"$f":"IF($C$278=\"\",\"\",AB278/$C$278)","v":""},null,{"$f":"IF($C$278=\"\",\"\",AD278/$C$278)","v":""},null,{"$f":"IF($C$278=\"\",\"\",AF278/$C$278)","v":""},null,{"$f":"IF($C$278=\"\",\"\",AH278/$C$278)","v":""},null,{"$f":"IF($C$278=\"\",\"\",AJ278/$C$278)","v":""},null,{"$f":"IF($C$278=\"\",\"\",AL278/$C$278)","v":""},null,{"$f":"IF($C$278=\"\",\"\",AN278/$C$278)","v":""},null,{"$f":"IF($C$278=\"\",\"\",AP278/$C$278)","v":""},null,{"$f":"IF($C$278=\"\",\"\",AR278/$C$278)","v":""},null,{"$f":"IF($C$278=\"\",\"\",AT278/$C$278)","v":""},null,{"$f":"IF($C$278=\"\",\"\",AV278/$C$278)","v":""},null,{"$f":"IF($C$278=\"\",\"\",AX278/$C$278)","v":""},null,{"$f":"IF($C$278=\"\",\"\",AZ278/$C$278)","v":""},null,{"$f":"IF($C$278=\"\",\"\",BB278/$C$278)","v":""},null,0]
["    11.1.25","    City Traffic Signal Plans"]
["        11.1.25.1","        Intersection Base Mapping",null,null,{"$f":"IF($C$280=\"\",\"\",F280/$C$280)","v":""},null,{"$f":"IF($C$280=\"\",\"\",H280/$C$280)","v":""},null,{"$f":"IF($C$280=\"\",\"\",J280/$C$280)","v":""},null,{"$f":"IF($C$280=\"\",\"\",L280/$C$280)","v":""},null,{"$f":"IF($C$280=\"\",\"\",N280/$C$280)","v":""},null,{"$f":"IF($C$280=\"\",\"\",P280/$C$280)","v":""},null,{"$f":"IF($C$280=\"\",\"\",R280/$C$280)","v":""},null,{"$f":"IF($C$280=\"\",\"\",T280/$C$280)","v":""},null,{"$f":"IF($C$280=\"\",\"\",V280/$C$280)","v":""},null,{"$f":"IF($C$280=\"\",\"\",X280/$C$280)","v":""},null,{"$f":"IF($C$280=\"\",\"\",Z280/$C$280)","v":""},null,{"$f":"IF($C$280=\"\",\"\",AB280/$C$280)","v":""},null,{"$f":"IF($C$280=\"\",\"\",AD280/$C$280)","v":""},null,{"$f":"IF($C$280=\"\",\"\",AF280/$C$280)","v":""},null,{"$f":"IF($C$280=\"\",\"\",AH280/$C$280)","v":""},null,{"$f":"IF($C$280=\"\",\"\",AJ280/$C$280)","v":""},null,{"$f":"IF($C$280=\"\",\"\",AL280/$C$280)","v":""},null,{"$f":"IF($C$280=\"\",\"\",AN280/$C$280)","v":""},null,{"$f":"IF($C$280=\"\",\"\",AP280/$C$280)","v":""},null,{"$f":"IF($C$280=\"\",\"\",AR280/$C$280)","v":""},null,{"$f":"IF($C$280=\"\",\"\",AT280/$C$280)","v":""},null,{"$f":"IF($C$280=\"\",\"\",AV280/$C$280)","v":""},null,{"$f":"IF($C$280=\"\",\"\",AX280/$C$280)","v":""},null,{"$f":"IF($C$280=\"\",\"\",AZ280/$C$280)","v":""},null,{"$f":"IF($C$280=\"\",\"\",BB280/$C$280)","v":""},null,{"$f":"SUM(BB280,AZ280,AX280,AV280,AT280,AR280,AP280,AN280,AL280,AJ280,AH280,AF280,AD280,AB280,Z280,X280,V280,T280,R280,P280,N280,L280,J280,H280,F280)","v":0}]
["        11.1.25.2","        Plans",null,null,{"$f":"IF($C$281=\"\",\"\",F281/$C$281)","v":""},null,{"$f":"IF($C$281=\"\",\"\",H281/$C$281)","v":""},null,{"$f":"IF($C$281=\"\",\"\",J281/$C$281)","v":""},null,{"$f":"IF($C$281=\"\",\"\",L281/$C$281)","v":""},null,{"$f":"IF($C$281=\"\",\"\",N281/$C$281)","v":""},null,{"$f":"IF($C$281=\"\",\"\",P281/$C$281)","v":""},null,{"$f":"IF($C$281=\"\",\"\",R281/$C$281)","v":""},null,{"$f":"IF($C$281=\"\",\"\",T281/$C$281)","v":""},null,{"$f":"IF($C$281=\"\",\"\",V281/$C$281)","v":""},null,{"$f":"IF($C$281=\"\",\"\",X281/$C$281)","v":""},null,{"$f":"IF($C$281=\"\",\"\",Z281/$C$281)","v":""},null,{"$f":"IF($C$281=\"\",\"\",AB281/$C$281)","v":""},null,{"$f":"IF($C$281=\"\",\"\",AD281/$C$281)","v":""},null,{"$f":"IF($C$281=\"\",\"\",AF281/$C$281)","v":""},null,{"$f":"IF($C$281=\"\",\"\",AH281/$C$281)","v":""},null,{"$f":"IF($C$281=\"\",\"\",AJ281/$C$281)","v":""},null,{"$f":"IF($C$281=\"\",\"\",AL281/$C$281)","v":""},null,{"$f":"IF($C$281=\"\",\"\",AN281/$C$281)","v":""},null,{"$f":"IF($C$281=\"\",\"\",AP281/$C$281)","v":""},null,{"$f":"IF($C$281=\"\",\"\",AR281/$C$281)","v":""},null,{"$f":"IF($C$281=\"\",\"\",AT281/$C$281)","v":""},null,{"$f":"IF($C$281=\"\",\"\",AV281/$C$281)","v":""},null,{"$f":"IF($C$281=\"\",\"\",AX281/$C$281)","v":""},null,{"$f":"IF($C$281=\"\",\"\",AZ281/$C$281)","v":""},null,{"$f":"IF($C$281=\"\",\"\",BB281/$C$281)","v":""},null,0]
["        11.1.25.3","        Local Controller Timings",null,null,{"$f":"IF($C$282=\"\",\"\",F282/$C$282)","v":""},null,{"$f":"IF($C$282=\"\",\"\",H282/$C$282)","v":""},null,{"$f":"IF($C$282=\"\",\"\",J282/$C$282)","v":""},null,{"$f":"IF($C$282=\"\",\"\",L282/$C$282)","v":""},null,{"$f":"IF($C$282=\"\",\"\",N282/$C$282)","v":""},null,{"$f":"IF($C$282=\"\",\"\",P282/$C$282)","v":""},null,{"$f":"IF($C$282=\"\",\"\",R282/$C$282)","v":""},null,{"$f":"IF($C$282=\"\",\"\",T282/$C$282)","v":""},null,{"$f":"IF($C$282=\"\",\"\",V282/$C$282)","v":""},null,{"$f":"IF($C$282=\"\",\"\",X282/$C$282)","v":""},null,{"$f":"IF($C$282=\"\",\"\",Z282/$C$282)","v":""},null,{"$f":"IF($C$282=\"\",\"\",AB282/$C$282)","v":""},null,{"$f":"IF($C$282=\"\",\"\",AD282/$C$282)","v":""},null,{"$f":"IF($C$282=\"\",\"\",AF282/$C$282)","v":""},null,{"$f":"IF($C$282=\"\",\"\",AH282/$C$282)","v":""},null,{"$f":"IF($C$282=\"\",\"\",AJ282/$C$282)","v":""},null,{"$f":"IF($C$282=\"\",\"\",AL282/$C$282)","v":""},null,{"$f":"IF($C$282=\"\",\"\",AN282/$C$282)","v":""},null,{"$f":"IF($C$282=\"\",\"\",AP282/$C$282)","v":""},null,{"$f":"IF($C$282=\"\",\"\",AR282/$C$282)","v":""},null,{"$f":"IF($C$282=\"\",\"\",AT282/$C$282)","v":""},null,{"$f":"IF($C$282=\"\",\"\",AV282/$C$282)","v":""},null,{"$f":"IF($C$282=\"\",\"\",AX282/$C$282)","v":""},null,{"$f":"IF($C$282=\"\",\"\",AZ282/$C$282)","v":""},null,{"$f":"IF($C$282=\"\",\"\",BB282/$C$282)","v":""},null,0]
["        11.1.25.4","        Preemption (Fire Station)",null,null,{"$f":"IF($C$283=\"\",\"\",F283/$C$283)","v":""},null,{"$f":"IF($C$283=\"\",\"\",H283/$C$283)","v":""},null,{"$f":"IF($C$283=\"\",\"\",J283/$C$283)","v":""},null,{"$f":"IF($C$283=\"\",\"\",L283/$C$283)","v":""},null,{"$f":"IF($C$283=\"\",\"\",N283/$C$283)","v":""},null,{"$f":"IF($C$283=\"\",\"\",P283/$C$283)","v":""},null,{"$f":"IF($C$283=\"\",\"\",R283/$C$283)","v":""},null,{"$f":"IF($C$283=\"\",\"\",T283/$C$283)","v":""},null,{"$f":"IF($C$283=\"\",\"\",V283/$C$283)","v":""},null,{"$f":"IF($C$283=\"\",\"\",X283/$C$283)","v":""},null,{"$f":"IF($C$283=\"\",\"\",Z283/$C$283)","v":""},null,{"$f":"IF($C$283=\"\",\"\",AB283/$C$283)","v":""},null,{"$f":"IF($C$283=\"\",\"\",AD283/$C$283)","v":""},null,{"$f":"IF($C$283=\"\",\"\",AF283/$C$283)","v":""},null,{"$f":"IF($C$283=\"\",\"\",AH283/$C$283)","v":""},null,{"$f":"IF($C$283=\"\",\"\",AJ283/$C$283)","v":""},null,{"$f":"IF($C$283=\"\",\"\",AL283/$C$283)","v":""},null,{"$f":"IF($C$283=\"\",\"\",AN283/$C$283)","v":""},null,{"$f":"IF($C$283=\"\",\"\",AP283/$C$283)","v":""},null,{"$f":"IF($C$283=\"\",\"\",AR283/$C$283)","v":""},null,{"$f":"IF($C$283=\"\",\"\",AT283/$C$283)","v":""},null,{"$f":"IF($C$283=\"\",\"\",AV283/$C$283)","v":""},null,{"$f":"IF($C$283=\"\",\"\",AX283/$C$283)","v":""},null,{"$f":"IF($C$283=\"\",\"\",AZ283/$C$283)","v":""},null,{"$f":"IF($C$283=\"\",\"\",BB283/$C$283)","v":""},null,0]
["        11.1.25.5","        Signal Quantity Estimates",null,null,{"$f":"IF($C$284=\"\",\"\",F284/$C$284)","v":""},null,{"$f":"IF($C$284=\"\",\"\",H284/$C$284)","v":""},null,{"$f":"IF($C$284=\"\",\"\",J284/$C$284)","v":""},null,{"$f":"IF($C$284=\"\",\"\",L284/$C$284)","v":""},null,{"$f":"IF($C$284=\"\",\"\",N284/$C$284)","v":""},null,{"$f":"IF($C$284=\"\",\"\",P284/$C$284)","v":""},null,{"$f":"IF($C$284=\"\",\"\",R284/$C$284)","v":""},null,{"$f":"IF($C$284=\"\",\"\",T284/$C$284)","v":""},null,{"$f":"IF($C$284=\"\",\"\",V284/$C$284)","v":""},null,{"$f":"IF($C$284=\"\",\"\",X284/$C$284)","v":""},null,{"$f":"IF($C$284=\"\",\"\",Z284/$C$284)","v":""},null,{"$f":"IF($C$284=\"\",\"\",AB284/$C$284)","v":""},null,{"$f":"IF($C$284=\"\",\"\",AD284/$C$284)","v":""},null,{"$f":"IF($C$284=\"\",\"\",AF284/$C$284)","v":""},null,{"$f":"IF($C$284=\"\",\"\",AH284/$C$284)","v":""},null,{"$f":"IF($C$284=\"\",\"\",AJ284/$C$284)","v":""},null,{"$f":"IF($C$284=\"\",\"\",AL284/$C$284)","v":""},null,{"$f":"IF($C$284=\"\",\"\",AN284/$C$284)","v":""},null,{"$f":"IF($C$284=\"\",\"\",AP284/$C$284)","v":""},null,{"$f":"IF($C$284=\"\",\"\",AR284/$C$284)","v":""},null,{"$f":"IF($C$284=\"\",\"\",AT284/$C$284)","v":""},null,{"$f":"IF($C$284=\"\",\"\",AV284/$C$284)","v":""},null,{"$f":"IF($C$284=\"\",\"\",AX284/$C$284)","v":""},null,{"$f":"IF($C$284=\"\",\"\",AZ284/$C$284)","v":""},null,{"$f":"IF($C$284=\"\",\"\",BB284/$C$284)","v":""},null,0]
["        11.1.25.6","        Electrical & Programming Details - No \n        Preemption",null,null,{"$f":"IF($C$285=\"\",\"\",F285/$C$285)","v":""},null,{"$f":"IF($C$285=\"\",\"\",H285/$C$285)","v":""},null,{"$f":"IF($C$285=\"\",\"\",J285/$C$285)","v":""},null,{"$f":"IF($C$285=\"\",\"\",L285/$C$285)","v":""},null,{"$f":"IF($C$285=\"\",\"\",N285/$C$285)","v":""},null,{"$f":"IF($C$285=\"\",\"\",P285/$C$285)","v":""},null,{"$f":"IF($C$285=\"\",\"\",R285/$C$285)","v":""},null,{"$f":"IF($C$285=\"\",\"\",T285/$C$285)","v":""},null,{"$f":"IF($C$285=\"\",\"\",V285/$C$285)","v":""},null,{"$f":"IF($C$285=\"\",\"\",X285/$C$285)","v":""},null,{"$f":"IF($C$285=\"\",\"\",Z285/$C$285)","v":""},null,{"$f":"IF($C$285=\"\",\"\",AB285/$C$285)","v":""},null,{"$f":"IF($C$285=\"\",\"\",AD285/$C$285)","v":""},null,{"$f":"IF($C$285=\"\",\"\",AF285/$C$285)","v":""},null,{"$f":"IF($C$285=\"\",\"\",AH285/$C$285)","v":""},null,{"$f":"IF($C$285=\"\",\"\",AJ285/$C$285)","v":""},null,{"$f":"IF($C$285=\"\",\"\",AL285/$C$285)","v":""},null,{"$f":"IF($C$285=\"\",\"\",AN285/$C$285)","v":""},null,{"$f":"IF($C$285=\"\",\"\",AP285/$C$285)","v":""},null,{"$f":"IF($C$285=\"\",\"\",AR285/$C$285)","v":""},null,{"$f":"IF($C$285=\"\",\"\",AT285/$C$285)","v":""},null,{"$f":"IF($C$285=\"\",\"\",AV285/$C$285)","v":""},null,{"$f":"IF($C$285=\"\",\"\",AX285/$C$285)","v":""},null,{"$f":"IF($C$285=\"\",\"\",AZ285/$C$285)","v":""},null,{"$f":"IF($C$285=\"\",\"\",BB285/$C$285)","v":""},null,0]
["        11.1.25.7","        Electrical & Programming Details - With \n        Preemption",null,null,{"$f":"IF($C$286=\"\",\"\",F286/$C$286)","v":""},null,{"$f":"IF($C$286=\"\",\"\",H286/$C$286)","v":""},null,{"$f":"IF($C$286=\"\",\"\",J286/$C$286)","v":""},null,{"$f":"IF($C$286=\"\",\"\",L286/$C$286)","v":""},null,{"$f":"IF($C$286=\"\",\"\",N286/$C$286)","v":""},null,{"$f":"IF($C$286=\"\",\"\",P286/$C$286)","v":""},null,{"$f":"IF($C$286=\"\",\"\",R286/$C$286)","v":""},null,{"$f":"IF($C$286=\"\",\"\",T286/$C$286)","v":""},null,{"$f":"IF($C$286=\"\",\"\",V286/$C$286)","v":""},null,{"$f":"IF($C$286=\"\",\"\",X286/$C$286)","v":""},null,{"$f":"IF($C$286=\"\",\"\",Z286/$C$286)","v":""},null,{"$f":"IF($C$286=\"\",\"\",AB286/$C$286)","v":""},null,{"$f":"IF($C$286=\"\",\"\",AD286/$C$286)","v":""},null,{"$f":"IF($C$286=\"\",\"\",AF286/$C$286)","v":""},null,{"$f":"IF($C$286=\"\",\"\",AH286/$C$286)","v":""},null,{"$f":"IF($C$286=\"\",\"\",AJ286/$C$286)","v":""},null,{"$f":"IF($C$286=\"\",\"\",AL286/$C$286)","v":""},null,{"$f":"IF($C$286=\"\",\"\",AN286/$C$286)","v":""},null,{"$f":"IF($C$286=\"\",\"\",AP286/$C$286)","v":""},null,{"$f":"IF($C$286=\"\",\"\",AR286/$C$286)","v":""},null,{"$f":"IF($C$286=\"\",\"\",AT286/$C$286)","v":""},null,{"$f":"IF($C$286=\"\",\"\",AV286/$C$286)","v":""},null,{"$f":"IF($C$286=\"\",\"\",AX286/$C$286)","v":""},null,{"$f":"IF($C$286=\"\",\"\",AZ286/$C$286)","v":""},null,{"$f":"IF($C$286=\"\",\"\",BB286/$C$286)","v":""},null,0]
["        11.1.25.8",null,null,null,{"$f":"IF($C$287=\"\",\"\",F287/$C$287)","v":""},null,{"$f":"IF($C$287=\"\",\"\",H287/$C$287)","v":""},null,{"$f":"IF($C$287=\"\",\"\",J287/$C$287)","v":""},null,{"$f":"IF($C$287=\"\",\"\",L287/$C$287)","v":""},null,{"$f":"IF($C$287=\"\",\"\",N287/$C$287)","v":""},null,{"$f":"IF($C$287=\"\",\"\",P287/$C$287)","v":""},null,{"$f":"IF($C$287=\"\",\"\",R287/$C$287)","v":""},null,{"$f":"IF($C$287=\"\",\"\",T287/$C$287)","v":""},null,{"$f":"IF($C$287=\"\",\"\",V287/$C$287)","v":""},null,{"$f":"IF($C$287=\"\",\"\",X287/$C$287)","v":""},null,{"$f":"IF($C$287=\"\",\"\",Z287/$C$287)","v":""},null,{"$f":"IF($C$287=\"\",\"\",AB287/$C$287)","v":""},null,{"$f":"IF($C$287=\"\",\"\",AD287/$C$287)","v":""},null,{"$f":"IF($C$287=\"\",\"\",AF287/$C$287)","v":""},null,{"$f":"IF($C$287=\"\",\"\",AH287/$C$287)","v":""},null,{"$f":"IF($C$287=\"\",\"\",AJ287/$C$287)","v":""},null,{"$f":"IF($C$287=\"\",\"\",AL287/$C$287)","v":""},null,{"$f":"IF($C$287=\"\",\"\",AN287/$C$287)","v":""},null,{"$f":"IF($C$287=\"\",\"\",AP287/$C$287)","v":""},null,{"$f":"IF($C$287=\"\",\"\",AR287/$C$287)","v":""},null,{"$f":"IF($C$287=\"\",\"\",AT287/$C$287)","v":""},null,{"$f":"IF($C$287=\"\",\"\",AV287/$C$287)","v":""},null,{"$f":"IF($C$287=\"\",\"\",AX287/$C$287)","v":""},null,{"$f":"IF($C$287=\"\",\"\",AZ287/$C$287)","v":""},null,{"$f":"IF($C$287=\"\",\"\",BB287/$C$287)","v":""},null,0]
["        11.1.25.9",null,null,null,{"$f":"IF($C$288=\"\",\"\",F288/$C$288)","v":""},null,{"$f":"IF($C$288=\"\",\"\",H288/$C$288)","v":""},null,{"$f":"IF($C$288=\"\",\"\",J288/$C$288)","v":""},null,{"$f":"IF($C$288=\"\",\"\",L288/$C$288)","v":""},null,{"$f":"IF($C$288=\"\",\"\",N288/$C$288)","v":""},null,{"$f":"IF($C$288=\"\",\"\",P288/$C$288)","v":""},null,{"$f":"IF($C$288=\"\",\"\",R288/$C$288)","v":""},null,{"$f":"IF($C$288=\"\",\"\",T288/$C$288)","v":""},null,{"$f":"IF($C$288=\"\",\"\",V288/$C$288)","v":""},null,{"$f":"IF($C$288=\"\",\"\",X288/$C$288)","v":""},null,{"$f":"IF($C$288=\"\",\"\",Z288/$C$288)","v":""},null,{"$f":"IF($C$288=\"\",\"\",AB288/$C$288)","v":""},null,{"$f":"IF($C$288=\"\",\"\",AD288/$C$288)","v":""},null,{"$f":"IF($C$288=\"\",\"\",AF288/$C$288)","v":""},null,{"$f":"IF($C$288=\"\",\"\",AH288/$C$288)","v":""},null,{"$f":"IF($C$288=\"\",\"\",AJ288/$C$288)","v":""},null,{"$f":"IF($C$288=\"\",\"\",AL288/$C$288)","v":""},null,{"$f":"IF($C$288=\"\",\"\",AN288/$C$288)","v":""},null,{"$f":"IF($C$288=\"\",\"\",AP288/$C$288)","v":""},null,{"$f":"IF($C$288=\"\",\"\",AR288/$C$288)","v":""},null,{"$f":"IF($C$288=\"\",\"\",AT288/$C$288)","v":""},null,{"$f":"IF($C$288=\"\",\"\",AV288/$C$288)","v":""},null,{"$f":"IF($C$288=\"\",\"\",AX288/$C$288)","v":""},null,{"$f":"IF($C$288=\"\",\"\",AZ288/$C$288)","v":""},null,{"$f":"IF($C$288=\"\",\"\",BB288/$C$288)","v":""},null,0]
["        11.1.25.10",null,null,null,{"$f":"IF($C$289=\"\",\"\",F289/$C$289)","v":""},null,{"$f":"IF($C$289=\"\",\"\",H289/$C$289)","v":""},null,{"$f":"IF($C$289=\"\",\"\",J289/$C$289)","v":""},null,{"$f":"IF($C$289=\"\",\"\",L289/$C$289)","v":""},null,{"$f":"IF($C$289=\"\",\"\",N289/$C$289)","v":""},null,{"$f":"IF($C$289=\"\",\"\",P289/$C$289)","v":""},null,{"$f":"IF($C$289=\"\",\"\",R289/$C$289)","v":""},null,{"$f":"IF($C$289=\"\",\"\",T289/$C$289)","v":""},null,{"$f":"IF($C$289=\"\",\"\",V289/$C$289)","v":""},null,{"$f":"IF($C$289=\"\",\"\",X289/$C$289)","v":""},null,{"$f":"IF($C$289=\"\",\"\",Z289/$C$289)","v":""},null,{"$f":"IF($C$289=\"\",\"\",AB289/$C$289)","v":""},null,{"$f":"IF($C$289=\"\",\"\",AD289/$C$289)","v":""},null,{"$f":"IF($C$289=\"\",\"\",AF289/$C$289)","v":""},null,{"$f":"IF($C$289=\"\",\"\",AH289/$C$289)","v":""},null,{"$f":"IF($C$289=\"\",\"\",AJ289/$C$289)","v":""},null,{"$f":"IF($C$289=\"\",\"\",AL289/$C$289)","v":""},null,{"$f":"IF($C$289=\"\",\"\",AN289/$C$289)","v":""},null,{"$f":"IF($C$289=\"\",\"\",AP289/$C$289)","v":""},null,{"$f":"IF($C$289=\"\",\"\",AR289/$C$289)","v":""},null,{"$f":"IF($C$289=\"\",\"\",AT289/$C$289)","v":""},null,{"$f":"IF($C$289=\"\",\"\",AV289/$C$289)","v":""},null,{"$f":"IF($C$289=\"\",\"\",AX289/$C$289)","v":""},null,{"$f":"IF($C$289=\"\",\"\",AZ289/$C$289)","v":""},null,{"$f":"IF($C$289=\"\",\"\",BB289/$C$289)","v":""},null,0]
["    11.1.26","    Preliminary PS&E On-Site Work Sessions",null,null,{"$f":"IF($C$290=\"\",\"\",F290/$C$290)","v":""},null,{"$f":"IF($C$290=\"\",\"\",H290/$C$290)","v":""},null,{"$f":"IF($C$290=\"\",\"\",J290/$C$290)","v":""},null,{"$f":"IF($C$290=\"\",\"\",L290/$C$290)","v":""},null,{"$f":"IF($C$290=\"\",\"\",N290/$C$290)","v":""},null,{"$f":"IF($C$290=\"\",\"\",P290/$C$290)","v":""},null,{"$f":"IF($C$290=\"\",\"\",R290/$C$290)","v":""},null,{"$f":"IF($C$290=\"\",\"\",T290/$C$290)","v":""},null,{"$f":"IF($C$290=\"\",\"\",V290/$C$290)","v":""},null,{"$f":"IF($C$290=\"\",\"\",X290/$C$290)","v":""},null,{"$f":"IF($C$290=\"\",\"\",Z290/$C$290)","v":""},null,{"$f":"IF($C$290=\"\",\"\",AB290/$C$290)","v":""},null,{"$f":"IF($C$290=\"\",\"\",AD290/$C$290)","v":""},null,{"$f":"IF($C$290=\"\",\"\",AF290/$C$290)","v":""},null,{"$f":"IF($C$290=\"\",\"\",AH290/$C$290)","v":""},null,{"$f":"IF($C$290=\"\",\"\",AJ290/$C$290)","v":""},null,{"$f":"IF($C$290=\"\",\"\",AL290/$C$290)","v":""},null,{"$f":"IF($C$290=\"\",\"\",AN290/$C$290)","v":""},null,{"$f":"IF($C$290=\"\",\"\",AP290/$C$290)","v":""},null,{"$f":"IF($C$290=\"\",\"\",AR290/$C$290)","v":""},null,{"$f":"IF($C$290=\"\",\"\",AT290/$C$290)","v":""},null,{"$f":"IF($C$290=\"\",\"\",AV290/$C$290)","v":""},null,{"$f":"IF($C$290=\"\",\"\",AX290/$C$290)","v":""},null,{"$f":"IF($C$290=\"\",\"\",AZ290/$C$290)","v":""},null,{"$f":"IF($C$290=\"\",\"\",BB290/$C$290)","v":""},null,0]
["    11.1.27",null,null,null,{"$f":"IF($C$291=\"\",\"\",F291/$C$291)","v":""},null,{"$f":"IF($C$291=\"\",\"\",H291/$C$291)","v":""},null,{"$f":"IF($C$291=\"\",\"\",J291/$C$291)","v":""},null,{"$f":"IF($C$291=\"\",\"\",L291/$C$291)","v":""},null,{"$f":"IF($C$291=\"\",\"\",N291/$C$291)","v":""},null,{"$f":"IF($C$291=\"\",\"\",P291/$C$291)","v":""},null,{"$f":"IF($C$291=\"\",\"\",R291/$C$291)","v":""},null,{"$f":"IF($C$291=\"\",\"\",T291/$C$291)","v":""},null,{"$f":"IF($C$291=\"\",\"\",V291/$C$291)","v":""},null,{"$f":"IF($C$291=\"\",\"\",X291/$C$291)","v":""},null,{"$f":"IF($C$291=\"\",\"\",Z291/$C$291)","v":""},null,{"$f":"IF($C$291=\"\",\"\",AB291/$C$291)","v":""},null,{"$f":"IF($C$291=\"\",\"\",AD291/$C$291)","v":""},null,{"$f":"IF($C$291=\"\",\"\",AF291/$C$291)","v":""},null,{"$f":"IF($C$291=\"\",\"\",AH291/$C$291)","v":""},null,{"$f":"IF($C$291=\"\",\"\",AJ291/$C$291)","v":""},null,{"$f":"IF($C$291=\"\",\"\",AL291/$C$291)","v":""},null,{"$f":"IF($C$291=\"\",\"\",AN291/$C$291)","v":""},null,{"$f":"IF($C$291=\"\",\"\",AP291/$C$291)","v":""},null,{"$f":"IF($C$291=\"\",\"\",AR291/$C$291)","v":""},null,{"$f":"IF($C$291=\"\",\"\",AT291/$C$291)","v":""},null,{"$f":"IF($C$291=\"\",\"\",AV291/$C$291)","v":""},null,{"$f":"IF($C$291=\"\",\"\",AX291/$C$291)","v":""},null,{"$f":"IF($C$291=\"\",\"\",AZ291/$C$291)","v":""},null,{"$f":"IF($C$291=\"\",\"\",BB291/$C$291)","v":""},null,0]
["    11.1.28",null,null,null,{"$f":"IF($C$292=\"\",\"\",F292/$C$292)","v":""},null,{"$f":"IF($C$292=\"\",\"\",H292/$C$292)","v":""},null,{"$f":"IF($C$292=\"\",\"\",J292/$C$292)","v":""},null,{"$f":"IF($C$292=\"\",\"\",L292/$C$292)","v":""},null,{"$f":"IF($C$292=\"\",\"\",N292/$C$292)","v":""},null,{"$f":"IF($C$292=\"\",\"\",P292/$C$292)","v":""},null,{"$f":"IF($C$292=\"\",\"\",R292/$C$292)","v":""},null,{"$f":"IF($C$292=\"\",\"\",T292/$C$292)","v":""},null,{"$f":"IF($C$292=\"\",\"\",V292/$C$292)","v":""},null,{"$f":"IF($C$292=\"\",\"\",X292/$C$292)","v":""},null,{"$f":"IF($C$292=\"\",\"\",Z292/$C$292)","v":""},null,{"$f":"IF($C$292=\"\",\"\",AB292/$C$292)","v":""},null,{"$f":"IF($C$292=\"\",\"\",AD292/$C$292)","v":""},null,{"$f":"IF($C$292=\"\",\"\",AF292/$C$292)","v":""},null,{"$f":"IF($C$292=\"\",\"\",AH292/$C$292)","v":""},null,{"$f":"IF($C$292=\"\",\"\",AJ292/$C$292)","v":""},null,{"$f":"IF($C$292=\"\",\"\",AL292/$C$292)","v":""},null,{"$f":"IF($C$292=\"\",\"\",AN292/$C$292)","v":""},null,{"$f":"IF($C$292=\"\",\"\",AP292/$C$292)","v":""},null,{"$f":"IF($C$292=\"\",\"\",AR292/$C$292)","v":""},null,{"$f":"IF($C$292=\"\",\"\",AT292/$C$292)","v":""},null,{"$f":"IF($C$292=\"\",\"\",AV292/$C$292)","v":""},null,{"$f":"IF($C$292=\"\",\"\",AX292/$C$292)","v":""},null,{"$f":"IF($C$292=\"\",\"\",AZ292/$C$292)","v":""},null,{"$f":"IF($C$292=\"\",\"\",BB292/$C$292)","v":""},null,0]
["    11.1.29",null,null,null,{"$f":"IF($C$293=\"\",\"\",F293/$C$293)","v":""},null,{"$f":"IF($C$293=\"\",\"\",H293/$C$293)","v":""},null,{"$f":"IF($C$293=\"\",\"\",J293/$C$293)","v":""},null,{"$f":"IF($C$293=\"\",\"\",L293/$C$293)","v":""},null,{"$f":"IF($C$293=\"\",\"\",N293/$C$293)","v":""},null,{"$f":"IF($C$293=\"\",\"\",P293/$C$293)","v":""},null,{"$f":"IF($C$293=\"\",\"\",R293/$C$293)","v":""},null,{"$f":"IF($C$293=\"\",\"\",T293/$C$293)","v":""},null,{"$f":"IF($C$293=\"\",\"\",V293/$C$293)","v":""},null,{"$f":"IF($C$293=\"\",\"\",X293/$C$293)","v":""},null,{"$f":"IF($C$293=\"\",\"\",Z293/$C$293)","v":""},null,{"$f":"IF($C$293=\"\",\"\",AB293/$C$293)","v":""},null,{"$f":"IF($C$293=\"\",\"\",AD293/$C$293)","v":""},null,{"$f":"IF($C$293=\"\",\"\",AF293/$C$293)","v":""},null,{"$f":"IF($C$293=\"\",\"\",AH293/$C$293)","v":""},null,{"$f":"IF($C$293=\"\",\"\",AJ293/$C$293)","v":""},null,{"$f":"IF($C$293=\"\",\"\",AL293/$C$293)","v":""},null,{"$f":"IF($C$293=\"\",\"\",AN293/$C$293)","v":""},null,{"$f":"IF($C$293=\"\",\"\",AP293/$C$293)","v":""},null,{"$f":"IF($C$293=\"\",\"\",AR293/$C$293)","v":""},null,{"$f":"IF($C$293=\"\",\"\",AT293/$C$293)","v":""},null,{"$f":"IF($C$293=\"\",\"\",AV293/$C$293)","v":""},null,{"$f":"IF($C$293=\"\",\"\",AX293/$C$293)","v":""},null,{"$f":"IF($C$293=\"\",\"\",AZ293/$C$293)","v":""},null,{"$f":"IF($C$293=\"\",\"\",BB293/$C$293)","v":""},null,0]
[11.2,"Draft Final Plans"]
["    11.2.1","    Revise and Submit Draft Final Plans",null,null,{"$f":"IF($C$295=\"\",\"\",F295/$C$295)","v":""},null,{"$f":"IF($C$295=\"\",\"\",H295/$C$295)","v":""},null,{"$f":"IF($C$295=\"\",\"\",J295/$C$295)","v":""},null,{"$f":"IF($C$295=\"\",\"\",L295/$C$295)","v":""},null,{"$f":"IF($C$295=\"\",\"\",N295/$C$295)","v":""},null,{"$f":"IF($C$295=\"\",\"\",P295/$C$295)","v":""},null,{"$f":"IF($C$295=\"\",\"\",R295/$C$295)","v":""},null,{"$f":"IF($C$295=\"\",\"\",T295/$C$295)","v":""},null,{"$f":"IF($C$295=\"\",\"\",V295/$C$295)","v":""},null,{"$f":"IF($C$295=\"\",\"\",X295/$C$295)","v":""},null,{"$f":"IF($C$295=\"\",\"\",Z295/$C$295)","v":""},null,{"$f":"IF($C$295=\"\",\"\",AB295/$C$295)","v":""},null,{"$f":"IF($C$295=\"\",\"\",AD295/$C$295)","v":""},null,{"$f":"IF($C$295=\"\",\"\",AF295/$C$295)","v":""},null,{"$f":"IF($C$295=\"\",\"\",AH295/$C$295)","v":""},null,{"$f":"IF($C$295=\"\",\"\",AJ295/$C$295)","v":""},null,{"$f":"IF($C$295=\"\",\"\",AL295/$C$295)","v":""},null,{"$f":"IF($C$295=\"\",\"\",AN295/$C$295)","v":""},null,{"$f":"IF($C$295=\"\",\"\",AP295/$C$295)","v":""},null,{"$f":"IF($C$295=\"\",\"\",AR295/$C$295)","v":""},null,{"$f":"IF($C$295=\"\",\"\",AT295/$C$295)","v":""},null,{"$f":"IF($C$295=\"\",\"\",AV295/$C$295)","v":""},null,{"$f":"IF($C$295=\"\",\"\",AX295/$C$295)","v":""},null,{"$f":"IF($C$295=\"\",\"\",AZ295/$C$295)","v":""},null,{"$f":"IF($C$295=\"\",\"\",BB295/$C$295)","v":""},null,{"$f":"SUM(BB295,AZ295,AX295,AV295,AT295,AR295,AP295,AN295,AL295,AJ295,AH295,AF295,AD295,AB295,Z295,X295,V295,T295,R295,P295,N295,L295,J295,H295,F295)","v":0}]
["    11.2.2",null,null,null,{"$f":"IF($C$296=\"\",\"\",F296/$C$296)","v":""},null,{"$f":"IF($C$296=\"\",\"\",H296/$C$296)","v":""},null,{"$f":"IF($C$296=\"\",\"\",J296/$C$296)","v":""},null,{"$f":"IF($C$296=\"\",\"\",L296/$C$296)","v":""},null,{"$f":"IF($C$296=\"\",\"\",N296/$C$296)","v":""},null,{"$f":"IF($C$296=\"\",\"\",P296/$C$296)","v":""},null,{"$f":"IF($C$296=\"\",\"\",R296/$C$296)","v":""},null,{"$f":"IF($C$296=\"\",\"\",T296/$C$296)","v":""},null,{"$f":"IF($C$296=\"\",\"\",V296/$C$296)","v":""},null,{"$f":"IF($C$296=\"\",\"\",X296/$C$296)","v":""},null,{"$f":"IF($C$296=\"\",\"\",Z296/$C$296)","v":""},null,{"$f":"IF($C$296=\"\",\"\",AB296/$C$296)","v":""},null,{"$f":"IF($C$296=\"\",\"\",AD296/$C$296)","v":""},null,{"$f":"IF($C$296=\"\",\"\",AF296/$C$296)","v":""},null,{"$f":"IF($C$296=\"\",\"\",AH296/$C$296)","v":""},null,{"$f":"IF($C$296=\"\",\"\",AJ296/$C$296)","v":""},null,{"$f":"IF($C$296=\"\",\"\",AL296/$C$296)","v":""},null,{"$f":"IF($C$296=\"\",\"\",AN296/$C$296)","v":""},null,{"$f":"IF($C$296=\"\",\"\",AP296/$C$296)","v":""},null,{"$f":"IF($C$296=\"\",\"\",AR296/$C$296)","v":""},null,{"$f":"IF($C$296=\"\",\"\",AT296/$C$296)","v":""},null,{"$f":"IF($C$296=\"\",\"\",AV296/$C$296)","v":""},null,{"$f":"IF($C$296=\"\",\"\",AX296/$C$296)","v":""},null,{"$f":"IF($C$296=\"\",\"\",AZ296/$C$296)","v":""},null,{"$f":"IF($C$296=\"\",\"\",BB296/$C$296)","v":""},null,0]
["    11.2.3",null,null,null,{"$f":"IF($C$297=\"\",\"\",F297/$C$297)","v":""},null,{"$f":"IF($C$297=\"\",\"\",H297/$C$297)","v":""},null,{"$f":"IF($C$297=\"\",\"\",J297/$C$297)","v":""},null,{"$f":"IF($C$297=\"\",\"\",L297/$C$297)","v":""},null,{"$f":"IF($C$297=\"\",\"\",N297/$C$297)","v":""},null,{"$f":"IF($C$297=\"\",\"\",P297/$C$297)","v":""},null,{"$f":"IF($C$297=\"\",\"\",R297/$C$297)","v":""},null,{"$f":"IF($C$297=\"\",\"\",T297/$C$297)","v":""},null,{"$f":"IF($C$297=\"\",\"\",V297/$C$297)","v":""},null,{"$f":"IF($C$297=\"\",\"\",X297/$C$297)","v":""},null,{"$f":"IF($C$297=\"\",\"\",Z297/$C$297)","v":""},null,{"$f":"IF($C$297=\"\",\"\",AB297/$C$297)","v":""},null,{"$f":"IF($C$297=\"\",\"\",AD297/$C$297)","v":""},null,{"$f":"IF($C$297=\"\",\"\",AF297/$C$297)","v":""},null,{"$f":"IF($C$297=\"\",\"\",AH297/$C$297)","v":""},null,{"$f":"IF($C$297=\"\",\"\",AJ297/$C$297)","v":""},null,{"$f":"IF($C$297=\"\",\"\",AL297/$C$297)","v":""},null,{"$f":"IF($C$297=\"\",\"\",AN297/$C$297)","v":""},null,{"$f":"IF($C$297=\"\",\"\",AP297/$C$297)","v":""},null,{"$f":"IF($C$297=\"\",\"\",AR297/$C$297)","v":""},null,{"$f":"IF($C$297=\"\",\"\",AT297/$C$297)","v":""},null,{"$f":"IF($C$297=\"\",\"\",AV297/$C$297)","v":""},null,{"$f":"IF($C$297=\"\",\"\",AX297/$C$297)","v":""},null,{"$f":"IF($C$297=\"\",\"\",AZ297/$C$297)","v":""},null,{"$f":"IF($C$297=\"\",\"\",BB297/$C$297)","v":""},null,0]
["    11.2.4",null,null,null,{"$f":"IF($C$298=\"\",\"\",F298/$C$298)","v":""},null,{"$f":"IF($C$298=\"\",\"\",H298/$C$298)","v":""},null,{"$f":"IF($C$298=\"\",\"\",J298/$C$298)","v":""},null,{"$f":"IF($C$298=\"\",\"\",L298/$C$298)","v":""},null,{"$f":"IF($C$298=\"\",\"\",N298/$C$298)","v":""},null,{"$f":"IF($C$298=\"\",\"\",P298/$C$298)","v":""},null,{"$f":"IF($C$298=\"\",\"\",R298/$C$298)","v":""},null,{"$f":"IF($C$298=\"\",\"\",T298/$C$298)","v":""},null,{"$f":"IF($C$298=\"\",\"\",V298/$C$298)","v":""},null,{"$f":"IF($C$298=\"\",\"\",X298/$C$298)","v":""},null,{"$f":"IF($C$298=\"\",\"\",Z298/$C$298)","v":""},null,{"$f":"IF($C$298=\"\",\"\",AB298/$C$298)","v":""},null,{"$f":"IF($C$298=\"\",\"\",AD298/$C$298)","v":""},null,{"$f":"IF($C$298=\"\",\"\",AF298/$C$298)","v":""},null,{"$f":"IF($C$298=\"\",\"\",AH298/$C$298)","v":""},null,{"$f":"IF($C$298=\"\",\"\",AJ298/$C$298)","v":""},null,{"$f":"IF($C$298=\"\",\"\",AL298/$C$298)","v":""},null,{"$f":"IF($C$298=\"\",\"\",AN298/$C$298)","v":""},null,{"$f":"IF($C$298=\"\",\"\",AP298/$C$298)","v":""},null,{"$f":"IF($C$298=\"\",\"\",AR298/$C$298)","v":""},null,{"$f":"IF($C$298=\"\",\"\",AT298/$C$298)","v":""},null,{"$f":"IF($C$298=\"\",\"\",AV298/$C$298)","v":""},null,{"$f":"IF($C$298=\"\",\"\",AX298/$C$298)","v":""},null,{"$f":"IF($C$298=\"\",\"\",AZ298/$C$298)","v":""},null,{"$f":"IF($C$298=\"\",\"\",BB298/$C$298)","v":""},null,0]
[11.3,"Final Plans"]
["    11.3.1","    Field Check Final Plans",null,null,{"$f":"IF($C$300=\"\",\"\",F300/$C$300)","v":""},null,{"$f":"IF($C$300=\"\",\"\",H300/$C$300)","v":""},null,{"$f":"IF($C$300=\"\",\"\",J300/$C$300)","v":""},null,{"$f":"IF($C$300=\"\",\"\",L300/$C$300)","v":""},null,{"$f":"IF($C$300=\"\",\"\",N300/$C$300)","v":""},null,{"$f":"IF($C$300=\"\",\"\",P300/$C$300)","v":""},null,{"$f":"IF($C$300=\"\",\"\",R300/$C$300)","v":""},null,{"$f":"IF($C$300=\"\",\"\",T300/$C$300)","v":""},null,{"$f":"IF($C$300=\"\",\"\",V300/$C$300)","v":""},null,{"$f":"IF($C$300=\"\",\"\",X300/$C$300)","v":""},null,{"$f":"IF($C$300=\"\",\"\",Z300/$C$300)","v":""},null,{"$f":"IF($C$300=\"\",\"\",AB300/$C$300)","v":""},null,{"$f":"IF($C$300=\"\",\"\",AD300/$C$300)","v":""},null,{"$f":"IF($C$300=\"\",\"\",AF300/$C$300)","v":""},null,{"$f":"IF($C$300=\"\",\"\",AH300/$C$300)","v":""},null,{"$f":"IF($C$300=\"\",\"\",AJ300/$C$300)","v":""},null,{"$f":"IF($C$300=\"\",\"\",AL300/$C$300)","v":""},null,{"$f":"IF($C$300=\"\",\"\",AN300/$C$300)","v":""},null,{"$f":"IF($C$300=\"\",\"\",AP300/$C$300)","v":""},null,{"$f":"IF($C$300=\"\",\"\",AR300/$C$300)","v":""},null,{"$f":"IF($C$300=\"\",\"\",AT300/$C$300)","v":""},null,{"$f":"IF($C$300=\"\",\"\",AV300/$C$300)","v":""},null,{"$f":"IF($C$300=\"\",\"\",AX300/$C$300)","v":""},null,{"$f":"IF($C$300=\"\",\"\",AZ300/$C$300)","v":""},null,{"$f":"IF($C$300=\"\",\"\",BB300/$C$300)","v":""},null,{"$f":"SUM(BB300,AZ300,AX300,AV300,AT300,AR300,AP300,AN300,AL300,AJ300,AH300,AF300,AD300,AB300,Z300,X300,V300,T300,R300,P300,N300,L300,J300,H300,F300)","v":0}]
["    11.3.2","    Perform Final Revisions and Submit Final Plans",null,null,{"$f":"IF($C$301=\"\",\"\",F301/$C$301)","v":""},null,{"$f":"IF($C$301=\"\",\"\",H301/$C$301)","v":""},null,{"$f":"IF($C$301=\"\",\"\",J301/$C$301)","v":""},null,{"$f":"IF($C$301=\"\",\"\",L301/$C$301)","v":""},null,{"$f":"IF($C$301=\"\",\"\",N301/$C$301)","v":""},null,{"$f":"IF($C$301=\"\",\"\",P301/$C$301)","v":""},null,{"$f":"IF($C$301=\"\",\"\",R301/$C$301)","v":""},null,{"$f":"IF($C$301=\"\",\"\",T301/$C$301)","v":""},null,{"$f":"IF($C$301=\"\",\"\",V301/$C$301)","v":""},null,{"$f":"IF($C$301=\"\",\"\",X301/$C$301)","v":""},null,{"$f":"IF($C$301=\"\",\"\",Z301/$C$301)","v":""},null,{"$f":"IF($C$301=\"\",\"\",AB301/$C$301)","v":""},null,{"$f":"IF($C$301=\"\",\"\",AD301/$C$301)","v":""},null,{"$f":"IF($C$301=\"\",\"\",AF301/$C$301)","v":""},null,{"$f":"IF($C$301=\"\",\"\",AH301/$C$301)","v":""},null,{"$f":"IF($C$301=\"\",\"\",AJ301/$C$301)","v":""},null,{"$f":"IF($C$301=\"\",\"\",AL301/$C$301)","v":""},null,{"$f":"IF($C$301=\"\",\"\",AN301/$C$301)","v":""},null,{"$f":"IF($C$301=\"\",\"\",AP301/$C$301)","v":""},null,{"$f":"IF($C$301=\"\",\"\",AR301/$C$301)","v":""},null,{"$f":"IF($C$301=\"\",\"\",AT301/$C$301)","v":""},null,{"$f":"IF($C$301=\"\",\"\",AV301/$C$301)","v":""},null,{"$f":"IF($C$301=\"\",\"\",AX301/$C$301)","v":""},null,{"$f":"IF($C$301=\"\",\"\",AZ301/$C$301)","v":""},null,{"$f":"IF($C$301=\"\",\"\",BB301/$C$301)","v":""},null,0]
["    11.3.3",null,null,null,{"$f":"IF($C$302=\"\",\"\",F302/$C$302)","v":""},null,{"$f":"IF($C$302=\"\",\"\",H302/$C$302)","v":""},null,{"$f":"IF($C$302=\"\",\"\",J302/$C$302)","v":""},null,{"$f":"IF($C$302=\"\",\"\",L302/$C$302)","v":""},null,{"$f":"IF($C$302=\"\",\"\",N302/$C$302)","v":""},null,{"$f":"IF($C$302=\"\",\"\",P302/$C$302)","v":""},null,{"$f":"IF($C$302=\"\",\"\",R302/$C$302)","v":""},null,{"$f":"IF($C$302=\"\",\"\",T302/$C$302)","v":""},null,{"$f":"IF($C$302=\"\",\"\",V302/$C$302)","v":""},null,{"$f":"IF($C$302=\"\",\"\",X302/$C$302)","v":""},null,{"$f":"IF($C$302=\"\",\"\",Z302/$C$302)","v":""},null,{"$f":"IF($C$302=\"\",\"\",AB302/$C$302)","v":""},null,{"$f":"IF($C$302=\"\",\"\",AD302/$C$302)","v":""},null,{"$f":"IF($C$302=\"\",\"\",AF302/$C$302)","v":""},null,{"$f":"IF($C$302=\"\",\"\",AH302/$C$302)","v":""},null,{"$f":"IF($C$302=\"\",\"\",AJ302/$C$302)","v":""},null,{"$f":"IF($C$302=\"\",\"\",AL302/$C$302)","v":""},null,{"$f":"IF($C$302=\"\",\"\",AN302/$C$302)","v":""},null,{"$f":"IF($C$302=\"\",\"\",AP302/$C$302)","v":""},null,{"$f":"IF($C$302=\"\",\"\",AR302/$C$302)","v":""},null,{"$f":"IF($C$302=\"\",\"\",AT302/$C$302)","v":""},null,{"$f":"IF($C$302=\"\",\"\",AV302/$C$302)","v":""},null,{"$f":"IF($C$302=\"\",\"\",AX302/$C$302)","v":""},null,{"$f":"IF($C$302=\"\",\"\",AZ302/$C$302)","v":""},null,{"$f":"IF($C$302=\"\",\"\",BB302/$C$302)","v":""},null,0]
["    11.3.4",null,null,null,{"$f":"IF($C$303=\"\",\"\",F303/$C$303)","v":""},null,{"$f":"IF($C$303=\"\",\"\",H303/$C$303)","v":""},null,{"$f":"IF($C$303=\"\",\"\",J303/$C$303)","v":""},null,{"$f":"IF($C$303=\"\",\"\",L303/$C$303)","v":""},null,{"$f":"IF($C$303=\"\",\"\",N303/$C$303)","v":""},null,{"$f":"IF($C$303=\"\",\"\",P303/$C$303)","v":""},null,{"$f":"IF($C$303=\"\",\"\",R303/$C$303)","v":""},null,{"$f":"IF($C$303=\"\",\"\",T303/$C$303)","v":""},null,{"$f":"IF($C$303=\"\",\"\",V303/$C$303)","v":""},null,{"$f":"IF($C$303=\"\",\"\",X303/$C$303)","v":""},null,{"$f":"IF($C$303=\"\",\"\",Z303/$C$303)","v":""},null,{"$f":"IF($C$303=\"\",\"\",AB303/$C$303)","v":""},null,{"$f":"IF($C$303=\"\",\"\",AD303/$C$303)","v":""},null,{"$f":"IF($C$303=\"\",\"\",AF303/$C$303)","v":""},null,{"$f":"IF($C$303=\"\",\"\",AH303/$C$303)","v":""},null,{"$f":"IF($C$303=\"\",\"\",AJ303/$C$303)","v":""},null,{"$f":"IF($C$303=\"\",\"\",AL303/$C$303)","v":""},null,{"$f":"IF($C$303=\"\",\"\",AN303/$C$303)","v":""},null,{"$f":"IF($C$303=\"\",\"\",AP303/$C$303)","v":""},null,{"$f":"IF($C$303=\"\",\"\",AR303/$C$303)","v":""},null,{"$f":"IF($C$303=\"\",\"\",AT303/$C$303)","v":""},null,{"$f":"IF($C$303=\"\",\"\",AV303/$C$303)","v":""},null,{"$f":"IF($C$303=\"\",\"\",AX303/$C$303)","v":""},null,{"$f":"IF($C$303=\"\",\"\",AZ303/$C$303)","v":""},null,{"$f":"IF($C$303=\"\",\"\",BB303/$C$303)","v":""},null,0]
["    11.3.5",null,null,null,{"$f":"IF($C$304=\"\",\"\",F304/$C$304)","v":""},null,{"$f":"IF($C$304=\"\",\"\",H304/$C$304)","v":""},null,{"$f":"IF($C$304=\"\",\"\",J304/$C$304)","v":""},null,{"$f":"IF($C$304=\"\",\"\",L304/$C$304)","v":""},null,{"$f":"IF($C$304=\"\",\"\",N304/$C$304)","v":""},null,{"$f":"IF($C$304=\"\",\"\",P304/$C$304)","v":""},null,{"$f":"IF($C$304=\"\",\"\",R304/$C$304)","v":""},null,{"$f":"IF($C$304=\"\",\"\",T304/$C$304)","v":""},null,{"$f":"IF($C$304=\"\",\"\",V304/$C$304)","v":""},null,{"$f":"IF($C$304=\"\",\"\",X304/$C$304)","v":""},null,{"$f":"IF($C$304=\"\",\"\",Z304/$C$304)","v":""},null,{"$f":"IF($C$304=\"\",\"\",AB304/$C$304)","v":""},null,{"$f":"IF($C$304=\"\",\"\",AD304/$C$304)","v":""},null,{"$f":"IF($C$304=\"\",\"\",AF304/$C$304)","v":""},null,{"$f":"IF($C$304=\"\",\"\",AH304/$C$304)","v":""},null,{"$f":"IF($C$304=\"\",\"\",AJ304/$C$304)","v":""},null,{"$f":"IF($C$304=\"\",\"\",AL304/$C$304)","v":""},null,{"$f":"IF($C$304=\"\",\"\",AN304/$C$304)","v":""},null,{"$f":"IF($C$304=\"\",\"\",AP304/$C$304)","v":""},null,{"$f":"IF($C$304=\"\",\"\",AR304/$C$304)","v":""},null,{"$f":"IF($C$304=\"\",\"\",AT304/$C$304)","v":""},null,{"$f":"IF($C$304=\"\",\"\",AV304/$C$304)","v":""},null,{"$f":"IF($C$304=\"\",\"\",AX304/$C$304)","v":""},null,{"$f":"IF($C$304=\"\",\"\",AZ304/$C$304)","v":""},null,{"$f":"IF($C$304=\"\",\"\",BB304/$C$304)","v":""},null,0]
[11.4,"Quality Reviews",null,null,{"$f":"IF($C$305=\"\",\"\",F305/$C$305)","v":""},null,{"$f":"IF($C$305=\"\",\"\",H305/$C$305)","v":""},null,{"$f":"IF($C$305=\"\",\"\",J305/$C$305)","v":""},null,{"$f":"IF($C$305=\"\",\"\",L305/$C$305)","v":""},null,{"$f":"IF($C$305=\"\",\"\",N305/$C$305)","v":""},null,{"$f":"IF($C$305=\"\",\"\",P305/$C$305)","v":""},null,{"$f":"IF($C$305=\"\",\"\",R305/$C$305)","v":""},null,{"$f":"IF($C$305=\"\",\"\",T305/$C$305)","v":""},null,{"$f":"IF($C$305=\"\",\"\",V305/$C$305)","v":""},null,{"$f":"IF($C$305=\"\",\"\",X305/$C$305)","v":""},null,{"$f":"IF($C$305=\"\",\"\",Z305/$C$305)","v":""},null,{"$f":"IF($C$305=\"\",\"\",AB305/$C$305)","v":""},null,{"$f":"IF($C$305=\"\",\"\",AD305/$C$305)","v":""},null,{"$f":"IF($C$305=\"\",\"\",AF305/$C$305)","v":""},null,{"$f":"IF($C$305=\"\",\"\",AH305/$C$305)","v":""},null,{"$f":"IF($C$305=\"\",\"\",AJ305/$C$305)","v":""},null,{"$f":"IF($C$305=\"\",\"\",AL305/$C$305)","v":""},null,{"$f":"IF($C$305=\"\",\"\",AN305/$C$305)","v":""},null,{"$f":"IF($C$305=\"\",\"\",AP305/$C$305)","v":""},null,{"$f":"IF($C$305=\"\",\"\",AR305/$C$305)","v":""},null,{"$f":"IF($C$305=\"\",\"\",AT305/$C$305)","v":""},null,{"$f":"IF($C$305=\"\",\"\",AV305/$C$305)","v":""},null,{"$f":"IF($C$305=\"\",\"\",AX305/$C$305)","v":""},null,{"$f":"IF($C$305=\"\",\"\",AZ305/$C$305)","v":""},null,{"$f":"IF($C$305=\"\",\"\",BB305/$C$305)","v":""},null,0]
[null,null,null,null,{"$f":"IF($C$306=\"\",\"\",F306/$C$306)","v":""},null,{"$f":"IF($C$306=\"\",\"\",H306/$C$306)","v":""},null,{"$f":"IF($C$306=\"\",\"\",J306/$C$306)","v":""},null,{"$f":"IF($C$306=\"\",\"\",L306/$C$306)","v":""},null,{"$f":"IF($C$306=\"\",\"\",N306/$C$306)","v":""},null,{"$f":"IF($C$306=\"\",\"\",P306/$C$306)","v":""},null,{"$f":"IF($C$306=\"\",\"\",R306/$C$306)","v":""},null,{"$f":"IF($C$306=\"\",\"\",T306/$C$306)","v":""},null,{"$f":"IF($C$306=\"\",\"\",V306/$C$306)","v":""},null,{"$f":"IF($C$306=\"\",\"\",X306/$C$306)","v":""},null,{"$f":"IF($C$306=\"\",\"\",Z306/$C$306)","v":""},null,{"$f":"IF($C$306=\"\",\"\",AB306/$C$306)","v":""},null,{"$f":"IF($C$306=\"\",\"\",AD306/$C$306)","v":""},null,{"$f":"IF($C$306=\"\",\"\",AF306/$C$306)","v":""},null,{"$f":"IF($C$306=\"\",\"\",AH306/$C$306)","v":""},null,{"$f":"IF($C$306=\"\",\"\",AJ306/$C$306)","v":""},null,{"$f":"IF($C$306=\"\",\"\",AL306/$C$306)","v":""},null,{"$f":"IF($C$306=\"\",\"\",AN306/$C$306)","v":""},null,{"$f":"IF($C$306=\"\",\"\",AP306/$C$306)","v":""},null,{"$f":"IF($C$306=\"\",\"\",AR306/$C$306)","v":""},null,{"$f":"IF($C$306=\"\",\"\",AT306/$C$306)","v":""},null,{"$f":"IF($C$306=\"\",\"\",AV306/$C$306)","v":""},null,{"$f":"IF($C$306=\"\",\"\",AX306/$C$306)","v":""},null,{"$f":"IF($C$306=\"\",\"\",AZ306/$C$306)","v":""},null,{"$f":"IF($C$306=\"\",\"\",BB306/$C$306)","v":""},null,0]
[null,null,null,null,{"$f":"IF($C$307=\"\",\"\",F307/$C$307)","v":""},null,{"$f":"IF($C$307=\"\",\"\",H307/$C$307)","v":""},null,{"$f":"IF($C$307=\"\",\"\",J307/$C$307)","v":""},null,{"$f":"IF($C$307=\"\",\"\",L307/$C$307)","v":""},null,{"$f":"IF($C$307=\"\",\"\",N307/$C$307)","v":""},null,{"$f":"IF($C$307=\"\",\"\",P307/$C$307)","v":""},null,{"$f":"IF($C$307=\"\",\"\",R307/$C$307)","v":""},null,{"$f":"IF($C$307=\"\",\"\",T307/$C$307)","v":""},null,{"$f":"IF($C$307=\"\",\"\",V307/$C$307)","v":""},null,{"$f":"IF($C$307=\"\",\"\",X307/$C$307)","v":""},null,{"$f":"IF($C$307=\"\",\"\",Z307/$C$307)","v":""},null,{"$f":"IF($C$307=\"\",\"\",AB307/$C$307)","v":""},null,{"$f":"IF($C$307=\"\",\"\",AD307/$C$307)","v":""},null,{"$f":"IF($C$307=\"\",\"\",AF307/$C$307)","v":""},null,{"$f":"IF($C$307=\"\",\"\",AH307/$C$307)","v":""},null,{"$f":"IF($C$307=\"\",\"\",AJ307/$C$307)","v":""},null,{"$f":"IF($C$307=\"\",\"\",AL307/$C$307)","v":""},null,{"$f":"IF($C$307=\"\",\"\",AN307/$C$307)","v":""},null,{"$f":"IF($C$307=\"\",\"\",AP307/$C$307)","v":""},null,{"$f":"IF($C$307=\"\",\"\",AR307/$C$307)","v":""},null,{"$f":"IF($C$307=\"\",\"\",AT307/$C$307)","v":""},null,{"$f":"IF($C$307=\"\",\"\",AV307/$C$307)","v":""},null,{"$f":"IF($C$307=\"\",\"\",AX307/$C$307)","v":""},null,{"$f":"IF($C$307=\"\",\"\",AZ307/$C$307)","v":""},null,{"$f":"IF($C$307=\"\",\"\",BB307/$C$307)","v":""},null,0]
[null,null,null,null,{"$f":"IF($C$308=\"\",\"\",F308/$C$308)","v":""},null,{"$f":"IF($C$308=\"\",\"\",H308/$C$308)","v":""},null,{"$f":"IF($C$308=\"\",\"\",J308/$C$308)","v":""},null,{"$f":"IF($C$308=\"\",\"\",L308/$C$308)","v":""},null,{"$f":"IF($C$308=\"\",\"\",N308/$C$308)","v":""},null,{"$f":"IF($C$308=\"\",\"\",P308/$C$308)","v":""},null,{"$f":"IF($C$308=\"\",\"\",R308/$C$308)","v":""},null,{"$f":"IF($C$308=\"\",\"\",T308/$C$308)","v":""},null,{"$f":"IF($C$308=\"\",\"\",V308/$C$308)","v":""},null,{"$f":"IF($C$308=\"\",\"\",X308/$C$308)","v":""},null,{"$f":"IF($C$308=\"\",\"\",Z308/$C$308)","v":""},null,{"$f":"IF($C$308=\"\",\"\",AB308/$C$308)","v":""},null,{"$f":"IF($C$308=\"\",\"\",AD308/$C$308)","v":""},null,{"$f":"IF($C$308=\"\",\"\",AF308/$C$308)","v":""},null,{"$f":"IF($C$308=\"\",\"\",AH308/$C$308)","v":""},null,{"$f":"IF($C$308=\"\",\"\",AJ308/$C$308)","v":""},null,{"$f":"IF($C$308=\"\",\"\",AL308/$C$308)","v":""},null,{"$f":"IF($C$308=\"\",\"\",AN308/$C$308)","v":""},null,{"$f":"IF($C$308=\"\",\"\",AP308/$C$308)","v":""},null,{"$f":"IF($C$308=\"\",\"\",AR308/$C$308)","v":""},null,{"$f":"IF($C$308=\"\",\"\",AT308/$C$308)","v":""},null,{"$f":"IF($C$308=\"\",\"\",AV308/$C$308)","v":""},null,{"$f":"IF($C$308=\"\",\"\",AX308/$C$308)","v":""},null,{"$f":"IF($C$308=\"\",\"\",AZ308/$C$308)","v":""},null,{"$f":"IF($C$308=\"\",\"\",BB308/$C$308)","v":""},null,0]
[null,null,null,null,{"$f":"IF($C$309=\"\",\"\",F309/$C$309)","v":""},null,{"$f":"IF($C$309=\"\",\"\",H309/$C$309)","v":""},null,{"$f":"IF($C$309=\"\",\"\",J309/$C$309)","v":""},null,{"$f":"IF($C$309=\"\",\"\",L309/$C$309)","v":""},null,{"$f":"IF($C$309=\"\",\"\",N309/$C$309)","v":""},null,{"$f":"IF($C$309=\"\",\"\",P309/$C$309)","v":""},null,{"$f":"IF($C$309=\"\",\"\",R309/$C$309)","v":""},null,{"$f":"IF($C$309=\"\",\"\",T309/$C$309)","v":""},null,{"$f":"IF($C$309=\"\",\"\",V309/$C$309)","v":""},null,{"$f":"IF($C$309=\"\",\"\",X309/$C$309)","v":""},null,{"$f":"IF($C$309=\"\",\"\",Z309/$C$309)","v":""},null,{"$f":"IF($C$309=\"\",\"\",AB309/$C$309)","v":""},null,{"$f":"IF($C$309=\"\",\"\",AD309/$C$309)","v":""},null,{"$f":"IF($C$309=\"\",\"\",AF309/$C$309)","v":""},null,{"$f":"IF($C$309=\"\",\"\",AH309/$C$309)","v":""},null,{"$f":"IF($C$309=\"\",\"\",AJ309/$C$309)","v":""},null,{"$f":"IF($C$309=\"\",\"\",AL309/$C$309)","v":""},null,{"$f":"IF($C$309=\"\",\"\",AN309/$C$309)","v":""},null,{"$f":"IF($C$309=\"\",\"\",AP309/$C$309)","v":""},null,{"$f":"IF($C$309=\"\",\"\",AR309/$C$309)","v":""},null,{"$f":"IF($C$309=\"\",\"\",AT309/$C$309)","v":""},null,{"$f":"IF($C$309=\"\",\"\",AV309/$C$309)","v":""},null,{"$f":"IF($C$309=\"\",\"\",AX309/$C$309)","v":""},null,{"$f":"IF($C$309=\"\",\"\",AZ309/$C$309)","v":""},null,{"$f":"IF($C$309=\"\",\"\",BB309/$C$309)","v":""},null,0]
[null,null,null,null,{"$f":"IF($C$310=\"\",\"\",F310/$C$310)","v":""},null,{"$f":"IF($C$310=\"\",\"\",H310/$C$310)","v":""},null,{"$f":"IF($C$310=\"\",\"\",J310/$C$310)","v":""},null,{"$f":"IF($C$310=\"\",\"\",L310/$C$310)","v":""},null,{"$f":"IF($C$310=\"\",\"\",N310/$C$310)","v":""},null,{"$f":"IF($C$310=\"\",\"\",P310/$C$310)","v":""},null,{"$f":"IF($C$310=\"\",\"\",R310/$C$310)","v":""},null,{"$f":"IF($C$310=\"\",\"\",T310/$C$310)","v":""},null,{"$f":"IF($C$310=\"\",\"\",V310/$C$310)","v":""},null,{"$f":"IF($C$310=\"\",\"\",X310/$C$310)","v":""},null,{"$f":"IF($C$310=\"\",\"\",Z310/$C$310)","v":""},null,{"$f":"IF($C$310=\"\",\"\",AB310/$C$310)","v":""},null,{"$f":"IF($C$310=\"\",\"\",AD310/$C$310)","v":""},null,{"$f":"IF($C$310=\"\",\"\",AF310/$C$310)","v":""},null,{"$f":"IF($C$310=\"\",\"\",AH310/$C$310)","v":""},null,{"$f":"IF($C$310=\"\",\"\",AJ310/$C$310)","v":""},null,{"$f":"IF($C$310=\"\",\"\",AL310/$C$310)","v":""},null,{"$f":"IF($C$310=\"\",\"\",AN310/$C$310)","v":""},null,{"$f":"IF($C$310=\"\",\"\",AP310/$C$310)","v":""},null,{"$f":"IF($C$310=\"\",\"\",AR310/$C$310)","v":""},null,{"$f":"IF($C$310=\"\",\"\",AT310/$C$310)","v":""},null,{"$f":"IF($C$310=\"\",\"\",AV310/$C$310)","v":""},null,{"$f":"IF($C$310=\"\",\"\",AX310/$C$310)","v":""},null,{"$f":"IF($C$310=\"\",\"\",AZ310/$C$310)","v":""},null,{"$f":"IF($C$310=\"\",\"\",BB310/$C$310)","v":""},null,0]
[null,null,null,null,{"$f":"IF($C$311=\"\",\"\",F311/$C$311)","v":""},null,{"$f":"IF($C$311=\"\",\"\",H311/$C$311)","v":""},null,{"$f":"IF($C$311=\"\",\"\",J311/$C$311)","v":""},null,{"$f":"IF($C$311=\"\",\"\",L311/$C$311)","v":""},null,{"$f":"IF($C$311=\"\",\"\",N311/$C$311)","v":""},null,{"$f":"IF($C$311=\"\",\"\",P311/$C$311)","v":""},null,{"$f":"IF($C$311=\"\",\"\",R311/$C$311)","v":""},null,{"$f":"IF($C$311=\"\",\"\",T311/$C$311)","v":""},null,{"$f":"IF($C$311=\"\",\"\",V311/$C$311)","v":""},null,{"$f":"IF($C$311=\"\",\"\",X311/$C$311)","v":""},null,{"$f":"IF($C$311=\"\",\"\",Z311/$C$311)","v":""},null,{"$f":"IF($C$311=\"\",\"\",AB311/$C$311)","v":""},null,{"$f":"IF($C$311=\"\",\"\",AD311/$C$311)","v":""},null,{"$f":"IF($C$311=\"\",\"\",AF311/$C$311)","v":""},null,{"$f":"IF($C$311=\"\",\"\",AH311/$C$311)","v":""},null,{"$f":"IF($C$311=\"\",\"\",AJ311/$C$311)","v":""},null,{"$f":"IF($C$311=\"\",\"\",AL311/$C$311)","v":""},null,{"$f":"IF($C$311=\"\",\"\",AN311/$C$311)","v":""},null,{"$f":"IF($C$311=\"\",\"\",AP311/$C$311)","v":""},null,{"$f":"IF($C$311=\"\",\"\",AR311/$C$311)","v":""},null,{"$f":"IF($C$311=\"\",\"\",AT311/$C$311)","v":""},null,{"$f":"IF($C$311=\"\",\"\",AV311/$C$311)","v":""},null,{"$f":"IF($C$311=\"\",\"\",AX311/$C$311)","v":""},null,{"$f":"IF($C$311=\"\",\"\",AZ311/$C$311)","v":""},null,{"$f":"IF($C$311=\"\",\"\",BB311/$C$311)","v":""},null,0]
[null,null,null,null,{"$f":"IF($C$312=\"\",\"\",F312/$C$312)","v":""},null,{"$f":"IF($C$312=\"\",\"\",H312/$C$312)","v":""},null,{"$f":"IF($C$312=\"\",\"\",J312/$C$312)","v":""},null,{"$f":"IF($C$312=\"\",\"\",L312/$C$312)","v":""},null,{"$f":"IF($C$312=\"\",\"\",N312/$C$312)","v":""},null,{"$f":"IF($C$312=\"\",\"\",P312/$C$312)","v":""},null,{"$f":"IF($C$312=\"\",\"\",R312/$C$312)","v":""},null,{"$f":"IF($C$312=\"\",\"\",T312/$C$312)","v":""},null,{"$f":"IF($C$312=\"\",\"\",V312/$C$312)","v":""},null,{"$f":"IF($C$312=\"\",\"\",X312/$C$312)","v":""},null,{"$f":"IF($C$312=\"\",\"\",Z312/$C$312)","v":""},null,{"$f":"IF($C$312=\"\",\"\",AB312/$C$312)","v":""},null,{"$f":"IF($C$312=\"\",\"\",AD312/$C$312)","v":""},null,{"$f":"IF($C$312=\"\",\"\",AF312/$C$312)","v":""},null,{"$f":"IF($C$312=\"\",\"\",AH312/$C$312)","v":""},null,{"$f":"IF($C$312=\"\",\"\",AJ312/$C$312)","v":""},null,{"$f":"IF($C$312=\"\",\"\",AL312/$C$312)","v":""},null,{"$f":"IF($C$312=\"\",\"\",AN312/$C$312)","v":""},null,{"$f":"IF($C$312=\"\",\"\",AP312/$C$312)","v":""},null,{"$f":"IF($C$312=\"\",\"\",AR312/$C$312)","v":""},null,{"$f":"IF($C$312=\"\",\"\",AT312/$C$312)","v":""},null,{"$f":"IF($C$312=\"\",\"\",AV312/$C$312)","v":""},null,{"$f":"IF($C$312=\"\",\"\",AX312/$C$312)","v":""},null,{"$f":"IF($C$312=\"\",\"\",AZ312/$C$312)","v":""},null,{"$f":"IF($C$312=\"\",\"\",BB312/$C$312)","v":""},null,{"$f":"SUM(BB312,AZ312,AX312,AV312,AT312,AR312,AP312,AN312,AL312,AJ312,AH312,AF312,AD312,AB312,Z312,X312,V312,T312,R312,P312,N312,L312,J312,H312,F312)","v":0}]
["TOTAL HOURS",null,null,null,null,{"$f":"SUM(F254:F312)","v":0},null,{"$f":"SUM(H254:H312)","v":0},null,{"$f":"SUM(J254:J312)","v":0},null,{"$f":"SUM(L254:L312)","v":0},null,{"$f":"SUM(N254:N312)","v":0},null,{"$f":"SUM(P254:P312)","v":0},null,{"$f":"SUM(R254:R312)","v":0},null,{"$f":"SUM(T254:T312)","v":0},null,{"$f":"SUM(V254:V312)","v":0},null,{"$f":"SUM(X254:X312)","v":0},null,{"$f":"SUM(Z254:Z312)","v":0},null,{"$f":"SUM(AB254:AB312)","v":0},null,{"$f":"SUM(AD254:AD312)","v":0},null,{"$f":"SUM(AF254:AF312)","v":0},null,{"$f":"SUM(AH254:AH312)","v":0},null,{"$f":"SUM(AJ254:AJ312)","v":0},null,{"$f":"SUM(AL254:AL312)","v":0},null,{"$f":"SUM(AN254:AN312)","v":0},null,{"$f":"SUM(AP254:AP312)","v":0},null,{"$f":"SUM(AR254:AR312)","v":0},null,{"$f":"SUM(AT254:AT312)","v":0},null,{"$f":"SUM(AV254:AV312)","v":0},null,{"$f":"SUM(AX254:AX312)","v":0},null,{"$f":"SUM(AZ254:AZ312)","v":0},null,{"$f":"SUM(BB254:BB312)","v":0},{"$f":"SUM(E313:BB313)","v":0}]
["TOTAL WORKDAYS",null,null,null,null,{"$f":"F313/8","v":0},null,{"$f":"H313/8","v":0},null,{"$f":"J313/8","v":0},null,{"$f":"L313/8","v":0},null,{"$f":"N313/8","v":0},null,{"$f":"P313/8","v":0},null,{"$f":"R313/8","v":0},null,{"$f":"T313/8","v":0},null,{"$f":"V313/8","v":0},null,{"$f":"X313/8","v":0},null,{"$f":"Z313/8","v":0},null,{"$f":"AB313/8","v":0},null,{"$f":"AD313/8","v":0},null,0,null,{"$f":"AH313/8","v":0},null,0,null,{"$f":"AL313/8","v":0},null,0,null,{"$f":"AP313/8","v":0},null,0,null,{"$f":"AT313/8","v":0},null,{"$f":"AV313/8","v":0},null,{"$f":"AX313/8","v":0},null,{"$f":"AZ313/8","v":0},null,{"$f":"BB313/8","v":0},{"$f":"SUM(E314:BB314)","v":0}]
["TOTAL RAW LABOR",null,null,null,null,{"$f":"$E$13*F313","v":0},null,{"$f":"$G$13*H313","v":0},null,{"$f":"$I$13*J313","v":0},null,{"$f":"$K$13*L313","v":0},null,{"$f":"$M$13*N313","v":0},null,{"$f":"$O$13*P313","v":0},null,{"$f":"$Q$13*R313","v":0},null,{"$f":"$S$13*T313","v":0},null,{"$f":"$U$13*V313","v":0},null,{"$f":"$W$13*X313","v":0},null,{"$f":"$Y$13*Z313","v":0},null,{"$f":"$AA$13*AB313","v":0},null,{"$f":"$AC$13*AD313","v":0},null,{"$f":"$AC$13*AF313","v":0},null,{"$f":"$AC$13*AH313","v":0},null,{"$f":"$AC$13*AJ313","v":0},null,{"$f":"$AC$13*AL313","v":0},null,{"$f":"$AC$13*AN313","v":0},null,{"$f":"$AC$13*AP313","v":0},null,{"$f":"$AC$13*AR313","v":0},null,{"$f":"$AC$13*AT313","v":0},null,{"$f":"$AC$13*AV313","v":0},null,{"$f":"$AC$13*AX313","v":0},null,{"$f":"$AC$13*AZ313","v":0},null,{"$f":"$AC$13*BB313","v":0},{"$f":"SUM(E315:BB315)","v":0}]
["Task 12.0     ","PROJECT SPECIAL PROVISIONS"]
[12.1,"Preliminary Project Special Provisions"]
["    12.1.1","    General Requirements:\n          -  Summary of Work\n          -  Construction Staging/Migration\n          -  Work within Historic Districts\n          -  Railroad Requirements\n          -  Documentation",null,null,{"$f":"IF($C$318=\"\",\"\",F318/$C$318)","v":""},null,{"$f":"IF($C$318=\"\",\"\",H318/$C$318)","v":""},null,{"$f":"IF($C$318=\"\",\"\",J318/$C$318)","v":""},null,{"$f":"IF($C$318=\"\",\"\",L318/$C$318)","v":""},null,{"$f":"IF($C$318=\"\",\"\",N318/$C$318)","v":""},null,{"$f":"IF($C$318=\"\",\"\",P318/$C$318)","v":""},null,{"$f":"IF($C$318=\"\",\"\",R318/$C$318)","v":""},null,{"$f":"IF($C$318=\"\",\"\",T318/$C$318)","v":""},null,{"$f":"IF($C$318=\"\",\"\",V318/$C$318)","v":""},null,{"$f":"IF($C$318=\"\",\"\",X318/$C$318)","v":""},null,{"$f":"IF($C$318=\"\",\"\",Z318/$C$318)","v":""},null,{"$f":"IF($C$318=\"\",\"\",AB318/$C$318)","v":""},null,{"$f":"IF($C$318=\"\",\"\",AD318/$C$318)","v":""},null,{"$f":"IF($C$318=\"\",\"\",AF318/$C$318)","v":""},null,{"$f":"IF($C$318=\"\",\"\",AH318/$C$318)","v":""},null,{"$f":"IF($C$318=\"\",\"\",AJ318/$C$318)","v":""},null,{"$f":"IF($C$318=\"\",\"\",AL318/$C$318)","v":""},null,{"$f":"IF($C$318=\"\",\"\",AN318/$C$318)","v":""},null,{"$f":"IF($C$318=\"\",\"\",AP318/$C$318)","v":""},null,{"$f":"IF($C$318=\"\",\"\",AR318/$C$318)","v":""},null,{"$f":"IF($C$318=\"\",\"\",AT318/$C$318)","v":""},null,{"$f":"IF($C$318=\"\",\"\",AV318/$C$318)","v":""},null,{"$f":"IF($C$318=\"\",\"\",AX318/$C$318)","v":""},null,{"$f":"IF($C$318=\"\",\"\",AZ318/$C$318)","v":""},null,{"$f":"IF($C$318=\"\",\"\",BB318/$C$318)","v":""},null,{"$f":"SUM(BB318,AZ318,AX318,AV318,AT318,AR318,AP318,AN318,AL318,AJ318,AH318,AF318,AD318,AB318,Z318,X318,V318,T318,R318,P318,N318,L318,J318,H318,F318)","v":0}]
["    12.1.2","    Temporary Traffic Control (Maintenance of \n    Traffic)",null,null,{"$f":"IF($C$319=\"\",\"\",F319/$C$319)","v":""},null,{"$f":"IF($C$319=\"\",\"\",H319/$C$319)","v":""},null,{"$f":"IF($C$319=\"\",\"\",J319/$C$319)","v":""},null,{"$f":"IF($C$319=\"\",\"\",L319/$C$319)","v":""},null,{"$f":"IF($C$319=\"\",\"\",N319/$C$319)","v":""},null,{"$f":"IF($C$319=\"\",\"\",P319/$C$319)","v":""},null,{"$f":"IF($C$319=\"\",\"\",R319/$C$319)","v":""},null,{"$f":"IF($C$319=\"\",\"\",T319/$C$319)","v":""},null,{"$f":"IF($C$319=\"\",\"\",V319/$C$319)","v":""},null,{"$f":"IF($C$319=\"\",\"\",X319/$C$319)","v":""},null,{"$f":"IF($C$319=\"\",\"\",Z319/$C$319)","v":""},null,{"$f":"IF($C$319=\"\",\"\",AB319/$C$319)","v":""},null,{"$f":"IF($C$319=\"\",\"\",AD319/$C$319)","v":""},null,{"$f":"IF($C$319=\"\",\"\",AF319/$C$319)","v":""},null,{"$f":"IF($C$319=\"\",\"\",AH319/$C$319)","v":""},null,{"$f":"IF($C$319=\"\",\"\",AJ319/$C$319)","v":""},null,{"$f":"IF($C$319=\"\",\"\",AL319/$C$319)","v":""},null,{"$f":"IF($C$319=\"\",\"\",AN319/$C$319)","v":""},null,{"$f":"IF($C$319=\"\",\"\",AP319/$C$319)","v":""},null,{"$f":"IF($C$319=\"\",\"\",AR319/$C$319)","v":""},null,{"$f":"IF($C$319=\"\",\"\",AT319/$C$319)","v":""},null,{"$f":"IF($C$319=\"\",\"\",AV319/$C$319)","v":""},null,{"$f":"IF($C$319=\"\",\"\",AX319/$C$319)","v":""},null,{"$f":"IF($C$319=\"\",\"\",AZ319/$C$319)","v":""},null,{"$f":"IF($C$319=\"\",\"\",BB319/$C$319)","v":""},null,0]
["    12.1.3","    Central Software",null,null,{"$f":"IF($C$320=\"\",\"\",F320/$C$320)","v":""},null,{"$f":"IF($C$320=\"\",\"\",H320/$C$320)","v":""},null,{"$f":"IF($C$320=\"\",\"\",J320/$C$320)","v":""},null,{"$f":"IF($C$320=\"\",\"\",L320/$C$320)","v":""},null,{"$f":"IF($C$320=\"\",\"\",N320/$C$320)","v":""},null,{"$f":"IF($C$320=\"\",\"\",P320/$C$320)","v":""},null,{"$f":"IF($C$320=\"\",\"\",R320/$C$320)","v":""},null,{"$f":"IF($C$320=\"\",\"\",T320/$C$320)","v":""},null,{"$f":"IF($C$320=\"\",\"\",V320/$C$320)","v":""},null,{"$f":"IF($C$320=\"\",\"\",X320/$C$320)","v":""},null,{"$f":"IF($C$320=\"\",\"\",Z320/$C$320)","v":""},null,{"$f":"IF($C$320=\"\",\"\",AB320/$C$320)","v":""},null,{"$f":"IF($C$320=\"\",\"\",AD320/$C$320)","v":""},null,{"$f":"IF($C$320=\"\",\"\",AF320/$C$320)","v":""},null,{"$f":"IF($C$320=\"\",\"\",AH320/$C$320)","v":""},null,{"$f":"IF($C$320=\"\",\"\",AJ320/$C$320)","v":""},null,{"$f":"IF($C$320=\"\",\"\",AL320/$C$320)","v":""},null,{"$f":"IF($C$320=\"\",\"\",AN320/$C$320)","v":""},null,{"$f":"IF($C$320=\"\",\"\",AP320/$C$320)","v":""},null,{"$f":"IF($C$320=\"\",\"\",AR320/$C$320)","v":""},null,{"$f":"IF($C$320=\"\",\"\",AT320/$C$320)","v":""},null,{"$f":"IF($C$320=\"\",\"\",AV320/$C$320)","v":""},null,{"$f":"IF($C$320=\"\",\"\",AX320/$C$320)","v":""},null,{"$f":"IF($C$320=\"\",\"\",AZ320/$C$320)","v":""},null,{"$f":"IF($C$320=\"\",\"\",BB320/$C$320)","v":""},null,0]
["    12.1.4","    Central Site Equipment & Building Modifications",null,null,{"$f":"IF($C$321=\"\",\"\",F321/$C$321)","v":""},null,{"$f":"IF($C$321=\"\",\"\",H321/$C$321)","v":""},null,{"$f":"IF($C$321=\"\",\"\",J321/$C$321)","v":""},null,{"$f":"IF($C$321=\"\",\"\",L321/$C$321)","v":""},null,{"$f":"IF($C$321=\"\",\"\",N321/$C$321)","v":""},null,{"$f":"IF($C$321=\"\",\"\",P321/$C$321)","v":""},null,{"$f":"IF($C$321=\"\",\"\",R321/$C$321)","v":""},null,{"$f":"IF($C$321=\"\",\"\",T321/$C$321)","v":""},null,{"$f":"IF($C$321=\"\",\"\",V321/$C$321)","v":""},null,{"$f":"IF($C$321=\"\",\"\",X321/$C$321)","v":""},null,{"$f":"IF($C$321=\"\",\"\",Z321/$C$321)","v":""},null,{"$f":"IF($C$321=\"\",\"\",AB321/$C$321)","v":""},null,{"$f":"IF($C$321=\"\",\"\",AD321/$C$321)","v":""},null,{"$f":"IF($C$321=\"\",\"\",AF321/$C$321)","v":""},null,{"$f":"IF($C$321=\"\",\"\",AH321/$C$321)","v":""},null,{"$f":"IF($C$321=\"\",\"\",AJ321/$C$321)","v":""},null,{"$f":"IF($C$321=\"\",\"\",AL321/$C$321)","v":""},null,{"$f":"IF($C$321=\"\",\"\",AN321/$C$321)","v":""},null,{"$f":"IF($C$321=\"\",\"\",AP321/$C$321)","v":""},null,{"$f":"IF($C$321=\"\",\"\",AR321/$C$321)","v":""},null,{"$f":"IF($C$321=\"\",\"\",AT321/$C$321)","v":""},null,{"$f":"IF($C$321=\"\",\"\",AV321/$C$321)","v":""},null,{"$f":"IF($C$321=\"\",\"\",AX321/$C$321)","v":""},null,{"$f":"IF($C$321=\"\",\"\",AZ321/$C$321)","v":""},null,{"$f":"IF($C$321=\"\",\"\",BB321/$C$321)","v":""},null,0]
["    12.1.5","    CCTV Monitoring System\n          -  Central Equipment\n          -  Field Equipment\n          -  Integration and Software Modification",null,null,{"$f":"IF($C$322=\"\",\"\",F322/$C$322)","v":""},null,{"$f":"IF($C$322=\"\",\"\",H322/$C$322)","v":""},null,{"$f":"IF($C$322=\"\",\"\",J322/$C$322)","v":""},null,{"$f":"IF($C$322=\"\",\"\",L322/$C$322)","v":""},null,{"$f":"IF($C$322=\"\",\"\",N322/$C$322)","v":""},null,{"$f":"IF($C$322=\"\",\"\",P322/$C$322)","v":""},null,{"$f":"IF($C$322=\"\",\"\",R322/$C$322)","v":""},null,{"$f":"IF($C$322=\"\",\"\",T322/$C$322)","v":""},null,{"$f":"IF($C$322=\"\",\"\",V322/$C$322)","v":""},null,{"$f":"IF($C$322=\"\",\"\",X322/$C$322)","v":""},null,{"$f":"IF($C$322=\"\",\"\",Z322/$C$322)","v":""},null,{"$f":"IF($C$322=\"\",\"\",AB322/$C$322)","v":""},null,{"$f":"IF($C$322=\"\",\"\",AD322/$C$322)","v":""},null,{"$f":"IF($C$322=\"\",\"\",AF322/$C$322)","v":""},null,{"$f":"IF($C$322=\"\",\"\",AH322/$C$322)","v":""},null,{"$f":"IF($C$322=\"\",\"\",AJ322/$C$322)","v":""},null,{"$f":"IF($C$322=\"\",\"\",AL322/$C$322)","v":""},null,{"$f":"IF($C$322=\"\",\"\",AN322/$C$322)","v":""},null,{"$f":"IF($C$322=\"\",\"\",AP322/$C$322)","v":""},null,{"$f":"IF($C$322=\"\",\"\",AR322/$C$322)","v":""},null,{"$f":"IF($C$322=\"\",\"\",AT322/$C$322)","v":""},null,{"$f":"IF($C$322=\"\",\"\",AV322/$C$322)","v":""},null,{"$f":"IF($C$322=\"\",\"\",AX322/$C$322)","v":""},null,{"$f":"IF($C$322=\"\",\"\",AZ322/$C$322)","v":""},null,{"$f":"IF($C$322=\"\",\"\",BB322/$C$322)","v":""},null,0]
["    12.1.6","    Ethernet Fiber-Optic Communications Network\n          -  Electronics\n          -  Drop Cables and Splice Centers\n          -  Communications Hubs ",null,null,{"$f":"IF($C$323=\"\",\"\",F323/$C$323)","v":""},null,{"$f":"IF($C$323=\"\",\"\",H323/$C$323)","v":""},null,{"$f":"IF($C$323=\"\",\"\",J323/$C$323)","v":""},null,{"$f":"IF($C$323=\"\",\"\",L323/$C$323)","v":""},null,{"$f":"IF($C$323=\"\",\"\",N323/$C$323)","v":""},null,{"$f":"IF($C$323=\"\",\"\",P323/$C$323)","v":""},null,{"$f":"IF($C$323=\"\",\"\",R323/$C$323)","v":""},null,{"$f":"IF($C$323=\"\",\"\",T323/$C$323)","v":""},null,{"$f":"IF($C$323=\"\",\"\",V323/$C$323)","v":""},null,{"$f":"IF($C$323=\"\",\"\",X323/$C$323)","v":""},null,{"$f":"IF($C$323=\"\",\"\",Z323/$C$323)","v":""},null,{"$f":"IF($C$323=\"\",\"\",AB323/$C$323)","v":""},null,{"$f":"IF($C$323=\"\",\"\",AD323/$C$323)","v":""},null,{"$f":"IF($C$323=\"\",\"\",AF323/$C$323)","v":""},null,{"$f":"IF($C$323=\"\",\"\",AH323/$C$323)","v":""},null,{"$f":"IF($C$323=\"\",\"\",AJ323/$C$323)","v":""},null,{"$f":"IF($C$323=\"\",\"\",AL323/$C$323)","v":""},null,{"$f":"IF($C$323=\"\",\"\",AN323/$C$323)","v":""},null,{"$f":"IF($C$323=\"\",\"\",AP323/$C$323)","v":""},null,{"$f":"IF($C$323=\"\",\"\",AR323/$C$323)","v":""},null,{"$f":"IF($C$323=\"\",\"\",AT323/$C$323)","v":""},null,{"$f":"IF($C$323=\"\",\"\",AV323/$C$323)","v":""},null,{"$f":"IF($C$323=\"\",\"\",AX323/$C$323)","v":""},null,{"$f":"IF($C$323=\"\",\"\",AZ323/$C$323)","v":""},null,{"$f":"IF($C$323=\"\",\"\",BB323/$C$323)","v":""},null,0]
["    12.1.7","    Wireless Communications Network\n      -  Electronics\n      -  Hardware\n      -  Software ",null,null,{"$f":"IF($C$324=\"\",\"\",F324/$C$324)","v":""},null,{"$f":"IF($C$324=\"\",\"\",H324/$C$324)","v":""},null,{"$f":"IF($C$324=\"\",\"\",J324/$C$324)","v":""},null,{"$f":"IF($C$324=\"\",\"\",L324/$C$324)","v":""},null,{"$f":"IF($C$324=\"\",\"\",N324/$C$324)","v":""},null,{"$f":"IF($C$324=\"\",\"\",P324/$C$324)","v":""},null,{"$f":"IF($C$324=\"\",\"\",R324/$C$324)","v":""},null,{"$f":"IF($C$324=\"\",\"\",T324/$C$324)","v":""},null,{"$f":"IF($C$324=\"\",\"\",V324/$C$324)","v":""},null,{"$f":"IF($C$324=\"\",\"\",X324/$C$324)","v":""},null,{"$f":"IF($C$324=\"\",\"\",Z324/$C$324)","v":""},null,{"$f":"IF($C$324=\"\",\"\",AB324/$C$324)","v":""},null,{"$f":"IF($C$324=\"\",\"\",AD324/$C$324)","v":""},null,{"$f":"IF($C$324=\"\",\"\",AF324/$C$324)","v":""},null,{"$f":"IF($C$324=\"\",\"\",AH324/$C$324)","v":""},null,{"$f":"IF($C$324=\"\",\"\",AJ324/$C$324)","v":""},null,{"$f":"IF($C$324=\"\",\"\",AL324/$C$324)","v":""},null,{"$f":"IF($C$324=\"\",\"\",AN324/$C$324)","v":""},null,{"$f":"IF($C$324=\"\",\"\",AP324/$C$324)","v":""},null,{"$f":"IF($C$324=\"\",\"\",AR324/$C$324)","v":""},null,{"$f":"IF($C$324=\"\",\"\",AT324/$C$324)","v":""},null,{"$f":"IF($C$324=\"\",\"\",AV324/$C$324)","v":""},null,{"$f":"IF($C$324=\"\",\"\",AX324/$C$324)","v":""},null,{"$f":"IF($C$324=\"\",\"\",AZ324/$C$324)","v":""},null,{"$f":"IF($C$324=\"\",\"\",BB324/$C$324)","v":""},null,0]
["    12.1.8","    Training",null,null,{"$f":"IF($C$325=\"\",\"\",F325/$C$325)","v":""},null,{"$f":"IF($C$325=\"\",\"\",H325/$C$325)","v":""},null,{"$f":"IF($C$325=\"\",\"\",J325/$C$325)","v":""},null,{"$f":"IF($C$325=\"\",\"\",L325/$C$325)","v":""},null,{"$f":"IF($C$325=\"\",\"\",N325/$C$325)","v":""},null,{"$f":"IF($C$325=\"\",\"\",P325/$C$325)","v":""},null,{"$f":"IF($C$325=\"\",\"\",R325/$C$325)","v":""},null,{"$f":"IF($C$325=\"\",\"\",T325/$C$325)","v":""},null,{"$f":"IF($C$325=\"\",\"\",V325/$C$325)","v":""},null,{"$f":"IF($C$325=\"\",\"\",X325/$C$325)","v":""},null,{"$f":"IF($C$325=\"\",\"\",Z325/$C$325)","v":""},null,{"$f":"IF($C$325=\"\",\"\",AB325/$C$325)","v":""},null,{"$f":"IF($C$325=\"\",\"\",AD325/$C$325)","v":""},null,{"$f":"IF($C$325=\"\",\"\",AF325/$C$325)","v":""},null,{"$f":"IF($C$325=\"\",\"\",AH325/$C$325)","v":""},null,{"$f":"IF($C$325=\"\",\"\",AJ325/$C$325)","v":""},null,{"$f":"IF($C$325=\"\",\"\",AL325/$C$325)","v":""},null,{"$f":"IF($C$325=\"\",\"\",AN325/$C$325)","v":""},null,{"$f":"IF($C$325=\"\",\"\",AP325/$C$325)","v":""},null,{"$f":"IF($C$325=\"\",\"\",AR325/$C$325)","v":""},null,{"$f":"IF($C$325=\"\",\"\",AT325/$C$325)","v":""},null,{"$f":"IF($C$325=\"\",\"\",AV325/$C$325)","v":""},null,{"$f":"IF($C$325=\"\",\"\",AX325/$C$325)","v":""},null,{"$f":"IF($C$325=\"\",\"\",AZ325/$C$325)","v":""},null,{"$f":"IF($C$325=\"\",\"\",BB325/$C$325)","v":""},null,0]
["    12.1.9","    Testing & Acceptance",null,null,{"$f":"IF($C$326=\"\",\"\",F326/$C$326)","v":""},null,{"$f":"IF($C$326=\"\",\"\",H326/$C$326)","v":""},null,{"$f":"IF($C$326=\"\",\"\",J326/$C$326)","v":""},null,{"$f":"IF($C$326=\"\",\"\",L326/$C$326)","v":""},null,{"$f":"IF($C$326=\"\",\"\",N326/$C$326)","v":""},null,{"$f":"IF($C$326=\"\",\"\",P326/$C$326)","v":""},null,{"$f":"IF($C$326=\"\",\"\",R326/$C$326)","v":""},null,{"$f":"IF($C$326=\"\",\"\",T326/$C$326)","v":""},null,{"$f":"IF($C$326=\"\",\"\",V326/$C$326)","v":""},null,{"$f":"IF($C$326=\"\",\"\",X326/$C$326)","v":""},null,{"$f":"IF($C$326=\"\",\"\",Z326/$C$326)","v":""},null,{"$f":"IF($C$326=\"\",\"\",AB326/$C$326)","v":""},null,{"$f":"IF($C$326=\"\",\"\",AD326/$C$326)","v":""},null,{"$f":"IF($C$326=\"\",\"\",AF326/$C$326)","v":""},null,{"$f":"IF($C$326=\"\",\"\",AH326/$C$326)","v":""},null,{"$f":"IF($C$326=\"\",\"\",AJ326/$C$326)","v":""},null,{"$f":"IF($C$326=\"\",\"\",AL326/$C$326)","v":""},null,{"$f":"IF($C$326=\"\",\"\",AN326/$C$326)","v":""},null,{"$f":"IF($C$326=\"\",\"\",AP326/$C$326)","v":""},null,{"$f":"IF($C$326=\"\",\"\",AR326/$C$326)","v":""},null,{"$f":"IF($C$326=\"\",\"\",AT326/$C$326)","v":""},null,{"$f":"IF($C$326=\"\",\"\",AV326/$C$326)","v":""},null,{"$f":"IF($C$326=\"\",\"\",AX326/$C$326)","v":""},null,{"$f":"IF($C$326=\"\",\"\",AZ326/$C$326)","v":""},null,{"$f":"IF($C$326=\"\",\"\",BB326/$C$326)","v":""},null,0]
["    12.1.10","    Incorporate & Edit Prior Project Special \n    Provisions",null,null,{"$f":"IF($C$327=\"\",\"\",F327/$C$327)","v":""},null,{"$f":"IF($C$327=\"\",\"\",H327/$C$327)","v":""},null,{"$f":"IF($C$327=\"\",\"\",J327/$C$327)","v":""},null,{"$f":"IF($C$327=\"\",\"\",L327/$C$327)","v":""},null,{"$f":"IF($C$327=\"\",\"\",N327/$C$327)","v":""},null,{"$f":"IF($C$327=\"\",\"\",P327/$C$327)","v":""},null,{"$f":"IF($C$327=\"\",\"\",R327/$C$327)","v":""},null,{"$f":"IF($C$327=\"\",\"\",T327/$C$327)","v":""},null,{"$f":"IF($C$327=\"\",\"\",V327/$C$327)","v":""},null,{"$f":"IF($C$327=\"\",\"\",X327/$C$327)","v":""},null,{"$f":"IF($C$327=\"\",\"\",Z327/$C$327)","v":""},null,{"$f":"IF($C$327=\"\",\"\",AB327/$C$327)","v":""},null,{"$f":"IF($C$327=\"\",\"\",AD327/$C$327)","v":""},null,{"$f":"IF($C$327=\"\",\"\",AF327/$C$327)","v":""},null,{"$f":"IF($C$327=\"\",\"\",AH327/$C$327)","v":""},null,{"$f":"IF($C$327=\"\",\"\",AJ327/$C$327)","v":""},null,{"$f":"IF($C$327=\"\",\"\",AL327/$C$327)","v":""},null,{"$f":"IF($C$327=\"\",\"\",AN327/$C$327)","v":""},null,{"$f":"IF($C$327=\"\",\"\",AP327/$C$327)","v":""},null,{"$f":"IF($C$327=\"\",\"\",AR327/$C$327)","v":""},null,{"$f":"IF($C$327=\"\",\"\",AT327/$C$327)","v":""},null,{"$f":"IF($C$327=\"\",\"\",AV327/$C$327)","v":""},null,{"$f":"IF($C$327=\"\",\"\",AX327/$C$327)","v":""},null,{"$f":"IF($C$327=\"\",\"\",AZ327/$C$327)","v":""},null,{"$f":"IF($C$327=\"\",\"\",BB327/$C$327)","v":""},null,0]
["    12.1.11","    Incorporate  ITSS Unit PSPs Version Updates",null,null,{"$f":"IF($C$328=\"\",\"\",F328/$C$328)","v":""},null,{"$f":"IF($C$328=\"\",\"\",H328/$C$328)","v":""},null,{"$f":"IF($C$328=\"\",\"\",J328/$C$328)","v":""},null,{"$f":"IF($C$328=\"\",\"\",L328/$C$328)","v":""},null,{"$f":"IF($C$328=\"\",\"\",N328/$C$328)","v":""},null,{"$f":"IF($C$328=\"\",\"\",P328/$C$328)","v":""},null,{"$f":"IF($C$328=\"\",\"\",R328/$C$328)","v":""},null,{"$f":"IF($C$328=\"\",\"\",T328/$C$328)","v":""},null,{"$f":"IF($C$328=\"\",\"\",V328/$C$328)","v":""},null,{"$f":"IF($C$328=\"\",\"\",X328/$C$328)","v":""},null,{"$f":"IF($C$328=\"\",\"\",Z328/$C$328)","v":""},null,{"$f":"IF($C$328=\"\",\"\",AB328/$C$328)","v":""},null,{"$f":"IF($C$328=\"\",\"\",AD328/$C$328)","v":""},null,{"$f":"IF($C$328=\"\",\"\",AF328/$C$328)","v":""},null,{"$f":"IF($C$328=\"\",\"\",AH328/$C$328)","v":""},null,{"$f":"IF($C$328=\"\",\"\",AJ328/$C$328)","v":""},null,{"$f":"IF($C$328=\"\",\"\",AL328/$C$328)","v":""},null,{"$f":"IF($C$328=\"\",\"\",AN328/$C$328)","v":""},null,{"$f":"IF($C$328=\"\",\"\",AP328/$C$328)","v":""},null,{"$f":"IF($C$328=\"\",\"\",AR328/$C$328)","v":""},null,{"$f":"IF($C$328=\"\",\"\",AT328/$C$328)","v":""},null,{"$f":"IF($C$328=\"\",\"\",AV328/$C$328)","v":""},null,{"$f":"IF($C$328=\"\",\"\",AX328/$C$328)","v":""},null,{"$f":"IF($C$328=\"\",\"\",AZ328/$C$328)","v":""},null,{"$f":"IF($C$328=\"\",\"\",BB328/$C$328)","v":""},null,0]
["    12.1.12","    Miscellaneous Project Special Provisions",null,null,{"$f":"IF($C$329=\"\",\"\",F329/$C$329)","v":""},null,{"$f":"IF($C$329=\"\",\"\",H329/$C$329)","v":""},null,{"$f":"IF($C$329=\"\",\"\",J329/$C$329)","v":""},null,{"$f":"IF($C$329=\"\",\"\",L329/$C$329)","v":""},null,{"$f":"IF($C$329=\"\",\"\",N329/$C$329)","v":""},null,{"$f":"IF($C$329=\"\",\"\",P329/$C$329)","v":""},null,{"$f":"IF($C$329=\"\",\"\",R329/$C$329)","v":""},null,{"$f":"IF($C$329=\"\",\"\",T329/$C$329)","v":""},null,{"$f":"IF($C$329=\"\",\"\",V329/$C$329)","v":""},null,{"$f":"IF($C$329=\"\",\"\",X329/$C$329)","v":""},null,{"$f":"IF($C$329=\"\",\"\",Z329/$C$329)","v":""},null,{"$f":"IF($C$329=\"\",\"\",AB329/$C$329)","v":""},null,{"$f":"IF($C$329=\"\",\"\",AD329/$C$329)","v":""},null,{"$f":"IF($C$329=\"\",\"\",AF329/$C$329)","v":""},null,{"$f":"IF($C$329=\"\",\"\",AH329/$C$329)","v":""},null,{"$f":"IF($C$329=\"\",\"\",AJ329/$C$329)","v":""},null,{"$f":"IF($C$329=\"\",\"\",AL329/$C$329)","v":""},null,{"$f":"IF($C$329=\"\",\"\",AN329/$C$329)","v":""},null,{"$f":"IF($C$329=\"\",\"\",AP329/$C$329)","v":""},null,{"$f":"IF($C$329=\"\",\"\",AR329/$C$329)","v":""},null,{"$f":"IF($C$329=\"\",\"\",AT329/$C$329)","v":""},null,{"$f":"IF($C$329=\"\",\"\",AV329/$C$329)","v":""},null,{"$f":"IF($C$329=\"\",\"\",AX329/$C$329)","v":""},null,{"$f":"IF($C$329=\"\",\"\",AZ329/$C$329)","v":""},null,{"$f":"IF($C$329=\"\",\"\",BB329/$C$329)","v":""},null,0]
["    12.1.13",null,null,null,{"$f":"IF($C$330=\"\",\"\",F330/$C$330)","v":""},null,{"$f":"IF($C$330=\"\",\"\",H330/$C$330)","v":""},null,{"$f":"IF($C$330=\"\",\"\",J330/$C$330)","v":""},null,{"$f":"IF($C$330=\"\",\"\",L330/$C$330)","v":""},null,{"$f":"IF($C$330=\"\",\"\",N330/$C$330)","v":""},null,{"$f":"IF($C$330=\"\",\"\",P330/$C$330)","v":""},null,{"$f":"IF($C$330=\"\",\"\",R330/$C$330)","v":""},null,{"$f":"IF($C$330=\"\",\"\",T330/$C$330)","v":""},null,{"$f":"IF($C$330=\"\",\"\",V330/$C$330)","v":""},null,{"$f":"IF($C$330=\"\",\"\",X330/$C$330)","v":""},null,{"$f":"IF($C$330=\"\",\"\",Z330/$C$330)","v":""},null,{"$f":"IF($C$330=\"\",\"\",AB330/$C$330)","v":""},null,{"$f":"IF($C$330=\"\",\"\",AD330/$C$330)","v":""},null,{"$f":"IF($C$330=\"\",\"\",AF330/$C$330)","v":""},null,{"$f":"IF($C$330=\"\",\"\",AH330/$C$330)","v":""},null,{"$f":"IF($C$330=\"\",\"\",AJ330/$C$330)","v":""},null,{"$f":"IF($C$330=\"\",\"\",AL330/$C$330)","v":""},null,{"$f":"IF($C$330=\"\",\"\",AN330/$C$330)","v":""},null,{"$f":"IF($C$330=\"\",\"\",AP330/$C$330)","v":""},null,{"$f":"IF($C$330=\"\",\"\",AR330/$C$330)","v":""},null,{"$f":"IF($C$330=\"\",\"\",AT330/$C$330)","v":""},null,{"$f":"IF($C$330=\"\",\"\",AV330/$C$330)","v":""},null,{"$f":"IF($C$330=\"\",\"\",AX330/$C$330)","v":""},null,{"$f":"IF($C$330=\"\",\"\",AZ330/$C$330)","v":""},null,{"$f":"IF($C$330=\"\",\"\",BB330/$C$330)","v":""},null,0]
["    12.1.14",null,null,null,{"$f":"IF($C$331=\"\",\"\",F331/$C$331)","v":""},null,{"$f":"IF($C$331=\"\",\"\",H331/$C$331)","v":""},null,{"$f":"IF($C$331=\"\",\"\",J331/$C$331)","v":""},null,{"$f":"IF($C$331=\"\",\"\",L331/$C$331)","v":""},null,{"$f":"IF($C$331=\"\",\"\",N331/$C$331)","v":""},null,{"$f":"IF($C$331=\"\",\"\",P331/$C$331)","v":""},null,{"$f":"IF($C$331=\"\",\"\",R331/$C$331)","v":""},null,{"$f":"IF($C$331=\"\",\"\",T331/$C$331)","v":""},null,{"$f":"IF($C$331=\"\",\"\",V331/$C$331)","v":""},null,{"$f":"IF($C$331=\"\",\"\",X331/$C$331)","v":""},null,{"$f":"IF($C$331=\"\",\"\",Z331/$C$331)","v":""},null,{"$f":"IF($C$331=\"\",\"\",AB331/$C$331)","v":""},null,{"$f":"IF($C$331=\"\",\"\",AD331/$C$331)","v":""},null,{"$f":"IF($C$331=\"\",\"\",AF331/$C$331)","v":""},null,{"$f":"IF($C$331=\"\",\"\",AH331/$C$331)","v":""},null,{"$f":"IF($C$331=\"\",\"\",AJ331/$C$331)","v":""},null,{"$f":"IF($C$331=\"\",\"\",AL331/$C$331)","v":""},null,{"$f":"IF($C$331=\"\",\"\",AN331/$C$331)","v":""},null,{"$f":"IF($C$331=\"\",\"\",AP331/$C$331)","v":""},null,{"$f":"IF($C$331=\"\",\"\",AR331/$C$331)","v":""},null,{"$f":"IF($C$331=\"\",\"\",AT331/$C$331)","v":""},null,{"$f":"IF($C$331=\"\",\"\",AV331/$C$331)","v":""},null,{"$f":"IF($C$331=\"\",\"\",AX331/$C$331)","v":""},null,{"$f":"IF($C$331=\"\",\"\",AZ331/$C$331)","v":""},null,{"$f":"IF($C$331=\"\",\"\",BB331/$C$331)","v":""},null,0]
["    12.1.15",null,null,null,{"$f":"IF($C$332=\"\",\"\",F332/$C$332)","v":""},null,{"$f":"IF($C$332=\"\",\"\",H332/$C$332)","v":""},null,{"$f":"IF($C$332=\"\",\"\",J332/$C$332)","v":""},null,{"$f":"IF($C$332=\"\",\"\",L332/$C$332)","v":""},null,{"$f":"IF($C$332=\"\",\"\",N332/$C$332)","v":""},null,{"$f":"IF($C$332=\"\",\"\",P332/$C$332)","v":""},null,{"$f":"IF($C$332=\"\",\"\",R332/$C$332)","v":""},null,{"$f":"IF($C$332=\"\",\"\",T332/$C$332)","v":""},null,{"$f":"IF($C$332=\"\",\"\",V332/$C$332)","v":""},null,{"$f":"IF($C$332=\"\",\"\",X332/$C$332)","v":""},null,{"$f":"IF($C$332=\"\",\"\",Z332/$C$332)","v":""},null,{"$f":"IF($C$332=\"\",\"\",AB332/$C$332)","v":""},null,{"$f":"IF($C$332=\"\",\"\",AD332/$C$332)","v":""},null,{"$f":"IF($C$332=\"\",\"\",AF332/$C$332)","v":""},null,{"$f":"IF($C$332=\"\",\"\",AH332/$C$332)","v":""},null,{"$f":"IF($C$332=\"\",\"\",AJ332/$C$332)","v":""},null,{"$f":"IF($C$332=\"\",\"\",AL332/$C$332)","v":""},null,{"$f":"IF($C$332=\"\",\"\",AN332/$C$332)","v":""},null,{"$f":"IF($C$332=\"\",\"\",AP332/$C$332)","v":""},null,{"$f":"IF($C$332=\"\",\"\",AR332/$C$332)","v":""},null,{"$f":"IF($C$332=\"\",\"\",AT332/$C$332)","v":""},null,{"$f":"IF($C$332=\"\",\"\",AV332/$C$332)","v":""},null,{"$f":"IF($C$332=\"\",\"\",AX332/$C$332)","v":""},null,{"$f":"IF($C$332=\"\",\"\",AZ332/$C$332)","v":""},null,{"$f":"IF($C$332=\"\",\"\",BB332/$C$332)","v":""},null,0]
[12.2,"Draft Final Project Special Provisions",null,null,{"$f":"IF($C$333=\"\",\"\",F333/$C$333)","v":""},null,{"$f":"IF($C$333=\"\",\"\",H333/$C$333)","v":""},null,{"$f":"IF($C$333=\"\",\"\",J333/$C$333)","v":""},null,{"$f":"IF($C$333=\"\",\"\",L333/$C$333)","v":""},null,{"$f":"IF($C$333=\"\",\"\",N333/$C$333)","v":""},null,{"$f":"IF($C$333=\"\",\"\",P333/$C$333)","v":""},null,{"$f":"IF($C$333=\"\",\"\",R333/$C$333)","v":""},null,{"$f":"IF($C$333=\"\",\"\",T333/$C$333)","v":""},null,{"$f":"IF($C$333=\"\",\"\",V333/$C$333)","v":""},null,{"$f":"IF($C$333=\"\",\"\",X333/$C$333)","v":""},null,{"$f":"IF($C$333=\"\",\"\",Z333/$C$333)","v":""},null,{"$f":"IF($C$333=\"\",\"\",AB333/$C$333)","v":""},null,{"$f":"IF($C$333=\"\",\"\",AD333/$C$333)","v":""},null,{"$f":"IF($C$333=\"\",\"\",AF333/$C$333)","v":""},null,{"$f":"IF($C$333=\"\",\"\",AH333/$C$333)","v":""},null,{"$f":"IF($C$333=\"\",\"\",AJ333/$C$333)","v":""},null,{"$f":"IF($C$333=\"\",\"\",AL333/$C$333)","v":""},null,{"$f":"IF($C$333=\"\",\"\",AN333/$C$333)","v":""},null,{"$f":"IF($C$333=\"\",\"\",AP333/$C$333)","v":""},null,{"$f":"IF($C$333=\"\",\"\",AR333/$C$333)","v":""},null,{"$f":"IF($C$333=\"\",\"\",AT333/$C$333)","v":""},null,{"$f":"IF($C$333=\"\",\"\",AV333/$C$333)","v":""},null,{"$f":"IF($C$333=\"\",\"\",AX333/$C$333)","v":""},null,{"$f":"IF($C$333=\"\",\"\",AZ333/$C$333)","v":""},null,{"$f":"IF($C$333=\"\",\"\",BB333/$C$333)","v":""},null,0]
[12.3,"Final Project Special Provisions",null,null,{"$f":"IF($C$334=\"\",\"\",F334/$C$334)","v":""},null,{"$f":"IF($C$334=\"\",\"\",H334/$C$334)","v":""},null,{"$f":"IF($C$334=\"\",\"\",J334/$C$334)","v":""},null,{"$f":"IF($C$334=\"\",\"\",L334/$C$334)","v":""},null,{"$f":"IF($C$334=\"\",\"\",N334/$C$334)","v":""},null,{"$f":"IF($C$334=\"\",\"\",P334/$C$334)","v":""},null,{"$f":"IF($C$334=\"\",\"\",R334/$C$334)","v":""},null,{"$f":"IF($C$334=\"\",\"\",T334/$C$334)","v":""},null,{"$f":"IF($C$334=\"\",\"\",V334/$C$334)","v":""},null,{"$f":"IF($C$334=\"\",\"\",X334/$C$334)","v":""},null,{"$f":"IF($C$334=\"\",\"\",Z334/$C$334)","v":""},null,{"$f":"IF($C$334=\"\",\"\",AB334/$C$334)","v":""},null,{"$f":"IF($C$334=\"\",\"\",AD334/$C$334)","v":""},null,{"$f":"IF($C$334=\"\",\"\",AF334/$C$334)","v":""},null,{"$f":"IF($C$334=\"\",\"\",AH334/$C$334)","v":""},null,{"$f":"IF($C$334=\"\",\"\",AJ334/$C$334)","v":""},null,{"$f":"IF($C$334=\"\",\"\",AL334/$C$334)","v":""},null,{"$f":"IF($C$334=\"\",\"\",AN334/$C$334)","v":""},null,{"$f":"IF($C$334=\"\",\"\",AP334/$C$334)","v":""},null,{"$f":"IF($C$334=\"\",\"\",AR334/$C$334)","v":""},null,{"$f":"IF($C$334=\"\",\"\",AT334/$C$334)","v":""},null,{"$f":"IF($C$334=\"\",\"\",AV334/$C$334)","v":""},null,{"$f":"IF($C$334=\"\",\"\",AX334/$C$334)","v":""},null,{"$f":"IF($C$334=\"\",\"\",AZ334/$C$334)","v":""},null,{"$f":"IF($C$334=\"\",\"\",BB334/$C$334)","v":""},null,0]
[12.4,"Quality Reviews ",null,null,{"$f":"IF($C$335=\"\",\"\",F335/$C$335)","v":""},null,{"$f":"IF($C$335=\"\",\"\",H335/$C$335)","v":""},null,{"$f":"IF($C$335=\"\",\"\",J335/$C$335)","v":""},null,{"$f":"IF($C$335=\"\",\"\",L335/$C$335)","v":""},null,{"$f":"IF($C$335=\"\",\"\",N335/$C$335)","v":""},null,{"$f":"IF($C$335=\"\",\"\",P335/$C$335)","v":""},null,{"$f":"IF($C$335=\"\",\"\",R335/$C$335)","v":""},null,{"$f":"IF($C$335=\"\",\"\",T335/$C$335)","v":""},null,{"$f":"IF($C$335=\"\",\"\",V335/$C$335)","v":""},null,{"$f":"IF($C$335=\"\",\"\",X335/$C$335)","v":""},null,{"$f":"IF($C$335=\"\",\"\",Z335/$C$335)","v":""},null,{"$f":"IF($C$335=\"\",\"\",AB335/$C$335)","v":""},null,{"$f":"IF($C$335=\"\",\"\",AD335/$C$335)","v":""},null,{"$f":"IF($C$335=\"\",\"\",AF335/$C$335)","v":""},null,{"$f":"IF($C$335=\"\",\"\",AH335/$C$335)","v":""},null,{"$f":"IF($C$335=\"\",\"\",AJ335/$C$335)","v":""},null,{"$f":"IF($C$335=\"\",\"\",AL335/$C$335)","v":""},null,{"$f":"IF($C$335=\"\",\"\",AN335/$C$335)","v":""},null,{"$f":"IF($C$335=\"\",\"\",AP335/$C$335)","v":""},null,{"$f":"IF($C$335=\"\",\"\",AR335/$C$335)","v":""},null,{"$f":"IF($C$335=\"\",\"\",AT335/$C$335)","v":""},null,{"$f":"IF($C$335=\"\",\"\",AV335/$C$335)","v":""},null,{"$f":"IF($C$335=\"\",\"\",AX335/$C$335)","v":""},null,{"$f":"IF($C$335=\"\",\"\",AZ335/$C$335)","v":""},null,{"$f":"IF($C$335=\"\",\"\",BB335/$C$335)","v":""},null,0]
[null,null,null,null,{"$f":"IF($C$336=\"\",\"\",F336/$C$336)","v":""},null,{"$f":"IF($C$336=\"\",\"\",H336/$C$336)","v":""},null,{"$f":"IF($C$336=\"\",\"\",J336/$C$336)","v":""},null,{"$f":"IF($C$336=\"\",\"\",L336/$C$336)","v":""},null,{"$f":"IF($C$336=\"\",\"\",N336/$C$336)","v":""},null,{"$f":"IF($C$336=\"\",\"\",P336/$C$336)","v":""},null,{"$f":"IF($C$336=\"\",\"\",R336/$C$336)","v":""},null,{"$f":"IF($C$336=\"\",\"\",T336/$C$336)","v":""},null,{"$f":"IF($C$336=\"\",\"\",V336/$C$336)","v":""},null,{"$f":"IF($C$336=\"\",\"\",X336/$C$336)","v":""},null,{"$f":"IF($C$336=\"\",\"\",Z336/$C$336)","v":""},null,{"$f":"IF($C$336=\"\",\"\",AB336/$C$336)","v":""},null,{"$f":"IF($C$336=\"\",\"\",AD336/$C$336)","v":""},null,{"$f":"IF($C$336=\"\",\"\",AF336/$C$336)","v":""},null,{"$f":"IF($C$336=\"\",\"\",AH336/$C$336)","v":""},null,{"$f":"IF($C$336=\"\",\"\",AJ336/$C$336)","v":""},null,{"$f":"IF($C$336=\"\",\"\",AL336/$C$336)","v":""},null,{"$f":"IF($C$336=\"\",\"\",AN336/$C$336)","v":""},null,{"$f":"IF($C$336=\"\",\"\",AP336/$C$336)","v":""},null,{"$f":"IF($C$336=\"\",\"\",AR336/$C$336)","v":""},null,{"$f":"IF($C$336=\"\",\"\",AT336/$C$336)","v":""},null,{"$f":"IF($C$336=\"\",\"\",AV336/$C$336)","v":""},null,{"$f":"IF($C$336=\"\",\"\",AX336/$C$336)","v":""},null,{"$f":"IF($C$336=\"\",\"\",AZ336/$C$336)","v":""},null,{"$f":"IF($C$336=\"\",\"\",BB336/$C$336)","v":""},null,0]
[null,null,null,null,{"$f":"IF($C$337=\"\",\"\",F337/$C$337)","v":""},null,{"$f":"IF($C$337=\"\",\"\",H337/$C$337)","v":""},null,{"$f":"IF($C$337=\"\",\"\",J337/$C$337)","v":""},null,{"$f":"IF($C$337=\"\",\"\",L337/$C$337)","v":""},null,{"$f":"IF($C$337=\"\",\"\",N337/$C$337)","v":""},null,{"$f":"IF($C$337=\"\",\"\",P337/$C$337)","v":""},null,{"$f":"IF($C$337=\"\",\"\",R337/$C$337)","v":""},null,{"$f":"IF($C$337=\"\",\"\",T337/$C$337)","v":""},null,{"$f":"IF($C$337=\"\",\"\",V337/$C$337)","v":""},null,{"$f":"IF($C$337=\"\",\"\",X337/$C$337)","v":""},null,{"$f":"IF($C$337=\"\",\"\",Z337/$C$337)","v":""},null,{"$f":"IF($C$337=\"\",\"\",AB337/$C$337)","v":""},null,{"$f":"IF($C$337=\"\",\"\",AD337/$C$337)","v":""},null,{"$f":"IF($C$337=\"\",\"\",AF337/$C$337)","v":""},null,{"$f":"IF($C$337=\"\",\"\",AH337/$C$337)","v":""},null,{"$f":"IF($C$337=\"\",\"\",AJ337/$C$337)","v":""},null,{"$f":"IF($C$337=\"\",\"\",AL337/$C$337)","v":""},null,{"$f":"IF($C$337=\"\",\"\",AN337/$C$337)","v":""},null,{"$f":"IF($C$337=\"\",\"\",AP337/$C$337)","v":""},null,{"$f":"IF($C$337=\"\",\"\",AR337/$C$337)","v":""},null,{"$f":"IF($C$337=\"\",\"\",AT337/$C$337)","v":""},null,{"$f":"IF($C$337=\"\",\"\",AV337/$C$337)","v":""},null,{"$f":"IF($C$337=\"\",\"\",AX337/$C$337)","v":""},null,{"$f":"IF($C$337=\"\",\"\",AZ337/$C$337)","v":""},null,{"$f":"IF($C$337=\"\",\"\",BB337/$C$337)","v":""},null,0]
[null,null,null,null,{"$f":"IF($C$338=\"\",\"\",F338/$C$338)","v":""},null,{"$f":"IF($C$338=\"\",\"\",H338/$C$338)","v":""},null,{"$f":"IF($C$338=\"\",\"\",J338/$C$338)","v":""},null,{"$f":"IF($C$338=\"\",\"\",L338/$C$338)","v":""},null,{"$f":"IF($C$338=\"\",\"\",N338/$C$338)","v":""},null,{"$f":"IF($C$338=\"\",\"\",P338/$C$338)","v":""},null,{"$f":"IF($C$338=\"\",\"\",R338/$C$338)","v":""},null,{"$f":"IF($C$338=\"\",\"\",T338/$C$338)","v":""},null,{"$f":"IF($C$338=\"\",\"\",V338/$C$338)","v":""},null,{"$f":"IF($C$338=\"\",\"\",X338/$C$338)","v":""},null,{"$f":"IF($C$338=\"\",\"\",Z338/$C$338)","v":""},null,{"$f":"IF($C$338=\"\",\"\",AB338/$C$338)","v":""},null,{"$f":"IF($C$338=\"\",\"\",AD338/$C$338)","v":""},null,{"$f":"IF($C$338=\"\",\"\",AF338/$C$338)","v":""},null,{"$f":"IF($C$338=\"\",\"\",AH338/$C$338)","v":""},null,{"$f":"IF($C$338=\"\",\"\",AJ338/$C$338)","v":""},null,{"$f":"IF($C$338=\"\",\"\",AL338/$C$338)","v":""},null,{"$f":"IF($C$338=\"\",\"\",AN338/$C$338)","v":""},null,{"$f":"IF($C$338=\"\",\"\",AP338/$C$338)","v":""},null,{"$f":"IF($C$338=\"\",\"\",AR338/$C$338)","v":""},null,{"$f":"IF($C$338=\"\",\"\",AT338/$C$338)","v":""},null,{"$f":"IF($C$338=\"\",\"\",AV338/$C$338)","v":""},null,{"$f":"IF($C$338=\"\",\"\",AX338/$C$338)","v":""},null,{"$f":"IF($C$338=\"\",\"\",AZ338/$C$338)","v":""},null,{"$f":"IF($C$338=\"\",\"\",BB338/$C$338)","v":""},null,0]
[null,null,null,null,{"$f":"IF($C$339=\"\",\"\",F339/$C$339)","v":""},null,{"$f":"IF($C$339=\"\",\"\",H339/$C$339)","v":""},null,{"$f":"IF($C$339=\"\",\"\",J339/$C$339)","v":""},null,{"$f":"IF($C$339=\"\",\"\",L339/$C$339)","v":""},null,{"$f":"IF($C$339=\"\",\"\",N339/$C$339)","v":""},null,{"$f":"IF($C$339=\"\",\"\",P339/$C$339)","v":""},null,{"$f":"IF($C$339=\"\",\"\",R339/$C$339)","v":""},null,{"$f":"IF($C$339=\"\",\"\",T339/$C$339)","v":""},null,{"$f":"IF($C$339=\"\",\"\",V339/$C$339)","v":""},null,{"$f":"IF($C$339=\"\",\"\",X339/$C$339)","v":""},null,{"$f":"IF($C$339=\"\",\"\",Z339/$C$339)","v":""},null,{"$f":"IF($C$339=\"\",\"\",AB339/$C$339)","v":""},null,{"$f":"IF($C$339=\"\",\"\",AD339/$C$339)","v":""},null,{"$f":"IF($C$339=\"\",\"\",AF339/$C$339)","v":""},null,{"$f":"IF($C$339=\"\",\"\",AH339/$C$339)","v":""},null,{"$f":"IF($C$339=\"\",\"\",AJ339/$C$339)","v":""},null,{"$f":"IF($C$339=\"\",\"\",AL339/$C$339)","v":""},null,{"$f":"IF($C$339=\"\",\"\",AN339/$C$339)","v":""},null,{"$f":"IF($C$339=\"\",\"\",AP339/$C$339)","v":""},null,{"$f":"IF($C$339=\"\",\"\",AR339/$C$339)","v":""},null,{"$f":"IF($C$339=\"\",\"\",AT339/$C$339)","v":""},null,{"$f":"IF($C$339=\"\",\"\",AV339/$C$339)","v":""},null,{"$f":"IF($C$339=\"\",\"\",AX339/$C$339)","v":""},null,{"$f":"IF($C$339=\"\",\"\",AZ339/$C$339)","v":""},null,{"$f":"IF($C$339=\"\",\"\",BB339/$C$339)","v":""},null,0]
[null,null,null,null,{"$f":"IF($C$340=\"\",\"\",F340/$C$340)","v":""},null,{"$f":"IF($C$340=\"\",\"\",H340/$C$340)","v":""},null,{"$f":"IF($C$340=\"\",\"\",J340/$C$340)","v":""},null,{"$f":"IF($C$340=\"\",\"\",L340/$C$340)","v":""},null,{"$f":"IF($C$340=\"\",\"\",N340/$C$340)","v":""},null,{"$f":"IF($C$340=\"\",\"\",P340/$C$340)","v":""},null,{"$f":"IF($C$340=\"\",\"\",R340/$C$340)","v":""},null,{"$f":"IF($C$340=\"\",\"\",T340/$C$340)","v":""},null,{"$f":"IF($C$340=\"\",\"\",V340/$C$340)","v":""},null,{"$f":"IF($C$340=\"\",\"\",X340/$C$340)","v":""},null,{"$f":"IF($C$340=\"\",\"\",Z340/$C$340)","v":""},null,{"$f":"IF($C$340=\"\",\"\",AB340/$C$340)","v":""},null,{"$f":"IF($C$340=\"\",\"\",AD340/$C$340)","v":""},null,{"$f":"IF($C$340=\"\",\"\",AF340/$C$340)","v":""},null,{"$f":"IF($C$340=\"\",\"\",AH340/$C$340)","v":""},null,{"$f":"IF($C$340=\"\",\"\",AJ340/$C$340)","v":""},null,{"$f":"IF($C$340=\"\",\"\",AL340/$C$340)","v":""},null,{"$f":"IF($C$340=\"\",\"\",AN340/$C$340)","v":""},null,{"$f":"IF($C$340=\"\",\"\",AP340/$C$340)","v":""},null,{"$f":"IF($C$340=\"\",\"\",AR340/$C$340)","v":""},null,{"$f":"IF($C$340=\"\",\"\",AT340/$C$340)","v":""},null,{"$f":"IF($C$340=\"\",\"\",AV340/$C$340)","v":""},null,{"$f":"IF($C$340=\"\",\"\",AX340/$C$340)","v":""},null,{"$f":"IF($C$340=\"\",\"\",AZ340/$C$340)","v":""},null,{"$f":"IF($C$340=\"\",\"\",BB340/$C$340)","v":""},null,0]
[null,null,null,null,{"$f":"IF($C$341=\"\",\"\",F341/$C$341)","v":""},null,{"$f":"IF($C$341=\"\",\"\",H341/$C$341)","v":""},null,{"$f":"IF($C$341=\"\",\"\",J341/$C$341)","v":""},null,{"$f":"IF($C$341=\"\",\"\",L341/$C$341)","v":""},null,{"$f":"IF($C$341=\"\",\"\",N341/$C$341)","v":""},null,{"$f":"IF($C$341=\"\",\"\",P341/$C$341)","v":""},null,{"$f":"IF($C$341=\"\",\"\",R341/$C$341)","v":""},null,{"$f":"IF($C$341=\"\",\"\",T341/$C$341)","v":""},null,{"$f":"IF($C$341=\"\",\"\",V341/$C$341)","v":""},null,{"$f":"IF($C$341=\"\",\"\",X341/$C$341)","v":""},null,{"$f":"IF($C$341=\"\",\"\",Z341/$C$341)","v":""},null,{"$f":"IF($C$341=\"\",\"\",AB341/$C$341)","v":""},null,{"$f":"IF($C$341=\"\",\"\",AD341/$C$341)","v":""},null,{"$f":"IF($C$341=\"\",\"\",AF341/$C$341)","v":""},null,{"$f":"IF($C$341=\"\",\"\",AH341/$C$341)","v":""},null,{"$f":"IF($C$341=\"\",\"\",AJ341/$C$341)","v":""},null,{"$f":"IF($C$341=\"\",\"\",AL341/$C$341)","v":""},null,{"$f":"IF($C$341=\"\",\"\",AN341/$C$341)","v":""},null,{"$f":"IF($C$341=\"\",\"\",AP341/$C$341)","v":""},null,{"$f":"IF($C$341=\"\",\"\",AR341/$C$341)","v":""},null,{"$f":"IF($C$341=\"\",\"\",AT341/$C$341)","v":""},null,{"$f":"IF($C$341=\"\",\"\",AV341/$C$341)","v":""},null,{"$f":"IF($C$341=\"\",\"\",AX341/$C$341)","v":""},null,{"$f":"IF($C$341=\"\",\"\",AZ341/$C$341)","v":""},null,{"$f":"IF($C$341=\"\",\"\",BB341/$C$341)","v":""},null,0]
[null,null,null,null,{"$f":"IF($C$342=\"\",\"\",F342/$C$342)","v":""},null,{"$f":"IF($C$342=\"\",\"\",H342/$C$342)","v":""},null,{"$f":"IF($C$342=\"\",\"\",J342/$C$342)","v":""},null,{"$f":"IF($C$342=\"\",\"\",L342/$C$342)","v":""},null,{"$f":"IF($C$342=\"\",\"\",N342/$C$342)","v":""},null,{"$f":"IF($C$342=\"\",\"\",P342/$C$342)","v":""},null,{"$f":"IF($C$342=\"\",\"\",R342/$C$342)","v":""},null,{"$f":"IF($C$342=\"\",\"\",T342/$C$342)","v":""},null,{"$f":"IF($C$342=\"\",\"\",V342/$C$342)","v":""},null,{"$f":"IF($C$342=\"\",\"\",X342/$C$342)","v":""},null,{"$f":"IF($C$342=\"\",\"\",Z342/$C$342)","v":""},null,{"$f":"IF($C$342=\"\",\"\",AB342/$C$342)","v":""},null,{"$f":"IF($C$342=\"\",\"\",AD342/$C$342)","v":""},null,{"$f":"IF($C$342=\"\",\"\",AF342/$C$342)","v":""},null,{"$f":"IF($C$342=\"\",\"\",AH342/$C$342)","v":""},null,{"$f":"IF($C$342=\"\",\"\",AJ342/$C$342)","v":""},null,{"$f":"IF($C$342=\"\",\"\",AL342/$C$342)","v":""},null,{"$f":"IF($C$342=\"\",\"\",AN342/$C$342)","v":""},null,{"$f":"IF($C$342=\"\",\"\",AP342/$C$342)","v":""},null,{"$f":"IF($C$342=\"\",\"\",AR342/$C$342)","v":""},null,{"$f":"IF($C$342=\"\",\"\",AT342/$C$342)","v":""},null,{"$f":"IF($C$342=\"\",\"\",AV342/$C$342)","v":""},null,{"$f":"IF($C$342=\"\",\"\",AX342/$C$342)","v":""},null,{"$f":"IF($C$342=\"\",\"\",AZ342/$C$342)","v":""},null,{"$f":"IF($C$342=\"\",\"\",BB342/$C$342)","v":""},null,{"$f":"SUM(BB342,AZ342,AX342,AV342,AT342,AR342,AP342,AN342,AL342,AJ342,AH342,AF342,AD342,AB342,Z342,X342,V342,T342,R342,P342,N342,L342,J342,H342,F342)","v":0}]
["TOTAL HOURS",null,null,null,null,{"$f":"SUM(F317:F342)","v":0},null,{"$f":"SUM(H317:H342)","v":0},null,{"$f":"SUM(J317:J342)","v":0},null,{"$f":"SUM(L317:L342)","v":0},null,{"$f":"SUM(N317:N342)","v":0},null,{"$f":"SUM(P317:P342)","v":0},null,{"$f":"SUM(R317:R342)","v":0},null,{"$f":"SUM(T317:T342)","v":0},null,{"$f":"SUM(V317:V342)","v":0},null,{"$f":"SUM(X317:X342)","v":0},null,{"$f":"SUM(Z317:Z342)","v":0},null,{"$f":"SUM(AB317:AB342)","v":0},null,{"$f":"SUM(AD317:AD342)","v":0},null,{"$f":"SUM(AF317:AF342)","v":0},null,{"$f":"SUM(AH317:AH342)","v":0},null,{"$f":"SUM(AJ317:AJ342)","v":0},null,{"$f":"SUM(AL317:AL342)","v":0},null,{"$f":"SUM(AN317:AN342)","v":0},null,{"$f":"SUM(AP317:AP342)","v":0},null,{"$f":"SUM(AR317:AR342)","v":0},null,{"$f":"SUM(AT317:AT342)","v":0},null,{"$f":"SUM(AV317:AV342)","v":0},null,{"$f":"SUM(AX317:AX342)","v":0},null,{"$f":"SUM(AZ317:AZ342)","v":0},null,{"$f":"SUM(BB317:BB342)","v":0},{"$f":"SUM(E343:BB343)","v":0}]
["TOTAL WORKDAYS",null,null,null,null,{"$f":"F343/8","v":0},null,{"$f":"H343/8","v":0},null,{"$f":"J343/8","v":0},null,{"$f":"L343/8","v":0},null,{"$f":"N343/8","v":0},null,{"$f":"P343/8","v":0},null,{"$f":"R343/8","v":0},null,{"$f":"T343/8","v":0},null,{"$f":"V343/8","v":0},null,{"$f":"X343/8","v":0},null,{"$f":"Z343/8","v":0},null,{"$f":"AB343/8","v":0},null,{"$f":"AD343/8","v":0},null,0,null,{"$f":"AH343/8","v":0},null,0,null,{"$f":"AL343/8","v":0},null,0,null,{"$f":"AP343/8","v":0},null,0,null,{"$f":"AT343/8","v":0},null,{"$f":"AV343/8","v":0},null,{"$f":"AX343/8","v":0},null,{"$f":"AZ343/8","v":0},null,{"$f":"BB343/8","v":0},{"$f":"SUM(E344:BB344)","v":0}]
["TOTAL RAW LABOR",null,null,null,null,{"$f":"$E$13*F343","v":0},null,{"$f":"$G$13*H343","v":0},null,{"$f":"$I$13*J343","v":0},null,{"$f":"$K$13*L343","v":0},null,{"$f":"$M$13*N343","v":0},null,{"$f":"$O$13*P343","v":0},null,{"$f":"$Q$13*R343","v":0},null,{"$f":"$S$13*T343","v":0},null,{"$f":"$U$13*V343","v":0},null,{"$f":"$W$13*X343","v":0},null,{"$f":"$Y$13*Z343","v":0},null,{"$f":"$AA$13*AB343","v":0},null,{"$f":"$AC$13*AD343","v":0},null,{"$f":"$AC$13*AF343","v":0},null,{"$f":"$AC$13*AH343","v":0},null,{"$f":"$AC$13*AJ343","v":0},null,{"$f":"$AC$13*AL343","v":0},null,{"$f":"$AC$13*AN343","v":0},null,{"$f":"$AC$13*AP343","v":0},null,{"$f":"$AC$13*AR343","v":0},null,{"$f":"$AC$13*AT343","v":0},null,{"$f":"$AC$13*AV343","v":0},null,{"$f":"$AC$13*AX343","v":0},null,{"$f":"$AC$13*AZ343","v":0},null,{"$f":"$AC$13*BB343","v":0},{"$f":"SUM(E345:BB345)","v":0}]
["Task 13.0     ","ENGINEER'S OPINION OF PROBABLE COST"]
[13.1,"Preliminary Engineer's Opinion of Probable Construction Cost",null,null,{"$f":"IF($C$347=\"\",\"\",F347/$C$347)","v":""},null,{"$f":"IF($C$347=\"\",\"\",H347/$C$347)","v":""},null,{"$f":"IF($C$347=\"\",\"\",J347/$C$347)","v":""},null,{"$f":"IF($C$347=\"\",\"\",L347/$C$347)","v":""},null,{"$f":"IF($C$347=\"\",\"\",N347/$C$347)","v":""},null,{"$f":"IF($C$347=\"\",\"\",P347/$C$347)","v":""},null,{"$f":"IF($C$347=\"\",\"\",R347/$C$347)","v":""},null,{"$f":"IF($C$347=\"\",\"\",T347/$C$347)","v":""},null,{"$f":"IF($C$347=\"\",\"\",V347/$C$347)","v":""},null,{"$f":"IF($C$347=\"\",\"\",X347/$C$347)","v":""},null,{"$f":"IF($C$347=\"\",\"\",Z347/$C$347)","v":""},null,{"$f":"IF($C$347=\"\",\"\",AB347/$C$347)","v":""},null,{"$f":"IF($C$347=\"\",\"\",AD347/$C$347)","v":""},null,{"$f":"IF($C$347=\"\",\"\",AF347/$C$347)","v":""},null,{"$f":"IF($C$347=\"\",\"\",AH347/$C$347)","v":""},null,{"$f":"IF($C$347=\"\",\"\",AJ347/$C$347)","v":""},null,{"$f":"IF($C$347=\"\",\"\",AL347/$C$347)","v":""},null,{"$f":"IF($C$347=\"\",\"\",AN347/$C$347)","v":""},null,{"$f":"IF($C$347=\"\",\"\",AP347/$C$347)","v":""},null,{"$f":"IF($C$347=\"\",\"\",AR347/$C$347)","v":""},null,{"$f":"IF($C$347=\"\",\"\",AT347/$C$347)","v":""},null,{"$f":"IF($C$347=\"\",\"\",AV347/$C$347)","v":""},null,{"$f":"IF($C$347=\"\",\"\",AX347/$C$347)","v":""},null,{"$f":"IF($C$347=\"\",\"\",AZ347/$C$347)","v":""},null,{"$f":"IF($C$347=\"\",\"\",BB347/$C$347)","v":""},null,{"$f":"SUM(BB347,AZ347,AX347,AV347,AT347,AR347,AP347,AN347,AL347,AJ347,AH347,AF347,AD347,AB347,Z347,X347,V347,T347,R347,P347,N347,L347,J347,H347,F347)","v":0}]
[13.2,"Draft Final Engineer's Opinion of Probable Construction Cost",null,null,{"$f":"IF($C$348=\"\",\"\",F348/$C$348)","v":""},null,{"$f":"IF($C$348=\"\",\"\",H348/$C$348)","v":""},null,{"$f":"IF($C$348=\"\",\"\",J348/$C$348)","v":""},null,{"$f":"IF($C$348=\"\",\"\",L348/$C$348)","v":""},null,{"$f":"IF($C$348=\"\",\"\",N348/$C$348)","v":""},null,{"$f":"IF($C$348=\"\",\"\",P348/$C$348)","v":""},null,{"$f":"IF($C$348=\"\",\"\",R348/$C$348)","v":""},null,{"$f":"IF($C$348=\"\",\"\",T348/$C$348)","v":""},null,{"$f":"IF($C$348=\"\",\"\",V348/$C$348)","v":""},null,{"$f":"IF($C$348=\"\",\"\",X348/$C$348)","v":""},null,{"$f":"IF($C$348=\"\",\"\",Z348/$C$348)","v":""},null,{"$f":"IF($C$348=\"\",\"\",AB348/$C$348)","v":""},null,{"$f":"IF($C$348=\"\",\"\",AD348/$C$348)","v":""},null,{"$f":"IF($C$348=\"\",\"\",AF348/$C$348)","v":""},null,{"$f":"IF($C$348=\"\",\"\",AH348/$C$348)","v":""},null,{"$f":"IF($C$348=\"\",\"\",AJ348/$C$348)","v":""},null,{"$f":"IF($C$348=\"\",\"\",AL348/$C$348)","v":""},null,{"$f":"IF($C$348=\"\",\"\",AN348/$C$348)","v":""},null,{"$f":"IF($C$348=\"\",\"\",AP348/$C$348)","v":""},null,{"$f":"IF($C$348=\"\",\"\",AR348/$C$348)","v":""},null,{"$f":"IF($C$348=\"\",\"\",AT348/$C$348)","v":""},null,{"$f":"IF($C$348=\"\",\"\",AV348/$C$348)","v":""},null,{"$f":"IF($C$348=\"\",\"\",AX348/$C$348)","v":""},null,{"$f":"IF($C$348=\"\",\"\",AZ348/$C$348)","v":""},null,{"$f":"IF($C$348=\"\",\"\",BB348/$C$348)","v":""},null,0]
[13.3,"Final Engineer's Opinion of Probable Construction Cost",null,null,{"$f":"IF($C$349=\"\",\"\",F349/$C$349)","v":""},null,{"$f":"IF($C$349=\"\",\"\",H349/$C$349)","v":""},null,{"$f":"IF($C$349=\"\",\"\",J349/$C$349)","v":""},null,{"$f":"IF($C$349=\"\",\"\",L349/$C$349)","v":""},null,{"$f":"IF($C$349=\"\",\"\",N349/$C$349)","v":""},null,{"$f":"IF($C$349=\"\",\"\",P349/$C$349)","v":""},null,{"$f":"IF($C$349=\"\",\"\",R349/$C$349)","v":""},null,{"$f":"IF($C$349=\"\",\"\",T349/$C$349)","v":""},null,{"$f":"IF($C$349=\"\",\"\",V349/$C$349)","v":""},null,{"$f":"IF($C$349=\"\",\"\",X349/$C$349)","v":""},null,{"$f":"IF($C$349=\"\",\"\",Z349/$C$349)","v":""},null,{"$f":"IF($C$349=\"\",\"\",AB349/$C$349)","v":""},null,{"$f":"IF($C$349=\"\",\"\",AD349/$C$349)","v":""},null,{"$f":"IF($C$349=\"\",\"\",AF349/$C$349)","v":""},null,{"$f":"IF($C$349=\"\",\"\",AH349/$C$349)","v":""},null,{"$f":"IF($C$349=\"\",\"\",AJ349/$C$349)","v":""},null,{"$f":"IF($C$349=\"\",\"\",AL349/$C$349)","v":""},null,{"$f":"IF($C$349=\"\",\"\",AN349/$C$349)","v":""},null,{"$f":"IF($C$349=\"\",\"\",AP349/$C$349)","v":""},null,{"$f":"IF($C$349=\"\",\"\",AR349/$C$349)","v":""},null,{"$f":"IF($C$349=\"\",\"\",AT349/$C$349)","v":""},null,{"$f":"IF($C$349=\"\",\"\",AV349/$C$349)","v":""},null,{"$f":"IF($C$349=\"\",\"\",AX349/$C$349)","v":""},null,{"$f":"IF($C$349=\"\",\"\",AZ349/$C$349)","v":""},null,{"$f":"IF($C$349=\"\",\"\",BB349/$C$349)","v":""},null,0]
[null,null,null,null,{"$f":"IF($C$350=\"\",\"\",F350/$C$350)","v":""},null,{"$f":"IF($C$350=\"\",\"\",H350/$C$350)","v":""},null,{"$f":"IF($C$350=\"\",\"\",J350/$C$350)","v":""},null,{"$f":"IF($C$350=\"\",\"\",L350/$C$350)","v":""},null,{"$f":"IF($C$350=\"\",\"\",N350/$C$350)","v":""},null,{"$f":"IF($C$350=\"\",\"\",P350/$C$350)","v":""},null,{"$f":"IF($C$350=\"\",\"\",R350/$C$350)","v":""},null,{"$f":"IF($C$350=\"\",\"\",T350/$C$350)","v":""},null,{"$f":"IF($C$350=\"\",\"\",V350/$C$350)","v":""},null,{"$f":"IF($C$350=\"\",\"\",X350/$C$350)","v":""},null,{"$f":"IF($C$350=\"\",\"\",Z350/$C$350)","v":""},null,{"$f":"IF($C$350=\"\",\"\",AB350/$C$350)","v":""},null,{"$f":"IF($C$350=\"\",\"\",AD350/$C$350)","v":""},null,{"$f":"IF($C$350=\"\",\"\",AF350/$C$350)","v":""},null,{"$f":"IF($C$350=\"\",\"\",AH350/$C$350)","v":""},null,{"$f":"IF($C$350=\"\",\"\",AJ350/$C$350)","v":""},null,{"$f":"IF($C$350=\"\",\"\",AL350/$C$350)","v":""},null,{"$f":"IF($C$350=\"\",\"\",AN350/$C$350)","v":""},null,{"$f":"IF($C$350=\"\",\"\",AP350/$C$350)","v":""},null,{"$f":"IF($C$350=\"\",\"\",AR350/$C$350)","v":""},null,{"$f":"IF($C$350=\"\",\"\",AT350/$C$350)","v":""},null,{"$f":"IF($C$350=\"\",\"\",AV350/$C$350)","v":""},null,{"$f":"IF($C$350=\"\",\"\",AX350/$C$350)","v":""},null,{"$f":"IF($C$350=\"\",\"\",AZ350/$C$350)","v":""},null,{"$f":"IF($C$350=\"\",\"\",BB350/$C$350)","v":""},null,0]
[null,null,null,null,{"$f":"IF($C$351=\"\",\"\",F351/$C$351)","v":""},null,{"$f":"IF($C$351=\"\",\"\",H351/$C$351)","v":""},null,{"$f":"IF($C$351=\"\",\"\",J351/$C$351)","v":""},null,{"$f":"IF($C$351=\"\",\"\",L351/$C$351)","v":""},null,{"$f":"IF($C$351=\"\",\"\",N351/$C$351)","v":""},null,{"$f":"IF($C$351=\"\",\"\",P351/$C$351)","v":""},null,{"$f":"IF($C$351=\"\",\"\",R351/$C$351)","v":""},null,{"$f":"IF($C$351=\"\",\"\",T351/$C$351)","v":""},null,{"$f":"IF($C$351=\"\",\"\",V351/$C$351)","v":""},null,{"$f":"IF($C$351=\"\",\"\",X351/$C$351)","v":""},null,{"$f":"IF($C$351=\"\",\"\",Z351/$C$351)","v":""},null,{"$f":"IF($C$351=\"\",\"\",AB351/$C$351)","v":""},null,{"$f":"IF($C$351=\"\",\"\",AD351/$C$351)","v":""},null,{"$f":"IF($C$351=\"\",\"\",AF351/$C$351)","v":""},null,{"$f":"IF($C$351=\"\",\"\",AH351/$C$351)","v":""},null,{"$f":"IF($C$351=\"\",\"\",AJ351/$C$351)","v":""},null,{"$f":"IF($C$351=\"\",\"\",AL351/$C$351)","v":""},null,{"$f":"IF($C$351=\"\",\"\",AN351/$C$351)","v":""},null,{"$f":"IF($C$351=\"\",\"\",AP351/$C$351)","v":""},null,{"$f":"IF($C$351=\"\",\"\",AR351/$C$351)","v":""},null,{"$f":"IF($C$351=\"\",\"\",AT351/$C$351)","v":""},null,{"$f":"IF($C$351=\"\",\"\",AV351/$C$351)","v":""},null,{"$f":"IF($C$351=\"\",\"\",AX351/$C$351)","v":""},null,{"$f":"IF($C$351=\"\",\"\",AZ351/$C$351)","v":""},null,{"$f":"IF($C$351=\"\",\"\",BB351/$C$351)","v":""},null,0]
[null,null,null,null,{"$f":"IF($C$352=\"\",\"\",F352/$C$352)","v":""},null,{"$f":"IF($C$352=\"\",\"\",H352/$C$352)","v":""},null,{"$f":"IF($C$352=\"\",\"\",J352/$C$352)","v":""},null,{"$f":"IF($C$352=\"\",\"\",L352/$C$352)","v":""},null,{"$f":"IF($C$352=\"\",\"\",N352/$C$352)","v":""},null,{"$f":"IF($C$352=\"\",\"\",P352/$C$352)","v":""},null,{"$f":"IF($C$352=\"\",\"\",R352/$C$352)","v":""},null,{"$f":"IF($C$352=\"\",\"\",T352/$C$352)","v":""},null,{"$f":"IF($C$352=\"\",\"\",V352/$C$352)","v":""},null,{"$f":"IF($C$352=\"\",\"\",X352/$C$352)","v":""},null,{"$f":"IF($C$352=\"\",\"\",Z352/$C$352)","v":""},null,{"$f":"IF($C$352=\"\",\"\",AB352/$C$352)","v":""},null,{"$f":"IF($C$352=\"\",\"\",AD352/$C$352)","v":""},null,{"$f":"IF($C$352=\"\",\"\",AF352/$C$352)","v":""},null,{"$f":"IF($C$352=\"\",\"\",AH352/$C$352)","v":""},null,{"$f":"IF($C$352=\"\",\"\",AJ352/$C$352)","v":""},null,{"$f":"IF($C$352=\"\",\"\",AL352/$C$352)","v":""},null,{"$f":"IF($C$352=\"\",\"\",AN352/$C$352)","v":""},null,{"$f":"IF($C$352=\"\",\"\",AP352/$C$352)","v":""},null,{"$f":"IF($C$352=\"\",\"\",AR352/$C$352)","v":""},null,{"$f":"IF($C$352=\"\",\"\",AT352/$C$352)","v":""},null,{"$f":"IF($C$352=\"\",\"\",AV352/$C$352)","v":""},null,{"$f":"IF($C$352=\"\",\"\",AX352/$C$352)","v":""},null,{"$f":"IF($C$352=\"\",\"\",AZ352/$C$352)","v":""},null,{"$f":"IF($C$352=\"\",\"\",BB352/$C$352)","v":""},null,0]
[null,null,null,null,{"$f":"IF($C$353=\"\",\"\",F353/$C$353)","v":""},null,{"$f":"IF($C$353=\"\",\"\",H353/$C$353)","v":""},null,{"$f":"IF($C$353=\"\",\"\",J353/$C$353)","v":""},null,{"$f":"IF($C$353=\"\",\"\",L353/$C$353)","v":""},null,{"$f":"IF($C$353=\"\",\"\",N353/$C$353)","v":""},null,{"$f":"IF($C$353=\"\",\"\",P353/$C$353)","v":""},null,{"$f":"IF($C$353=\"\",\"\",R353/$C$353)","v":""},null,{"$f":"IF($C$353=\"\",\"\",T353/$C$353)","v":""},null,{"$f":"IF($C$353=\"\",\"\",V353/$C$353)","v":""},null,{"$f":"IF($C$353=\"\",\"\",X353/$C$353)","v":""},null,{"$f":"IF($C$353=\"\",\"\",Z353/$C$353)","v":""},null,{"$f":"IF($C$353=\"\",\"\",AB353/$C$353)","v":""},null,{"$f":"IF($C$353=\"\",\"\",AD353/$C$353)","v":""},null,{"$f":"IF($C$353=\"\",\"\",AF353/$C$353)","v":""},null,{"$f":"IF($C$353=\"\",\"\",AH353/$C$353)","v":""},null,{"$f":"IF($C$353=\"\",\"\",AJ353/$C$353)","v":""},null,{"$f":"IF($C$353=\"\",\"\",AL353/$C$353)","v":""},null,{"$f":"IF($C$353=\"\",\"\",AN353/$C$353)","v":""},null,{"$f":"IF($C$353=\"\",\"\",AP353/$C$353)","v":""},null,{"$f":"IF($C$353=\"\",\"\",AR353/$C$353)","v":""},null,{"$f":"IF($C$353=\"\",\"\",AT353/$C$353)","v":""},null,{"$f":"IF($C$353=\"\",\"\",AV353/$C$353)","v":""},null,{"$f":"IF($C$353=\"\",\"\",AX353/$C$353)","v":""},null,{"$f":"IF($C$353=\"\",\"\",AZ353/$C$353)","v":""},null,{"$f":"IF($C$353=\"\",\"\",BB353/$C$353)","v":""},null,0]
[null,null,null,null,{"$f":"IF($C$354=\"\",\"\",F354/$C$354)","v":""},null,{"$f":"IF($C$354=\"\",\"\",H354/$C$354)","v":""},null,{"$f":"IF($C$354=\"\",\"\",J354/$C$354)","v":""},null,{"$f":"IF($C$354=\"\",\"\",L354/$C$354)","v":""},null,{"$f":"IF($C$354=\"\",\"\",N354/$C$354)","v":""},null,{"$f":"IF($C$354=\"\",\"\",P354/$C$354)","v":""},null,{"$f":"IF($C$354=\"\",\"\",R354/$C$354)","v":""},null,{"$f":"IF($C$354=\"\",\"\",T354/$C$354)","v":""},null,{"$f":"IF($C$354=\"\",\"\",V354/$C$354)","v":""},null,{"$f":"IF($C$354=\"\",\"\",X354/$C$354)","v":""},null,{"$f":"IF($C$354=\"\",\"\",Z354/$C$354)","v":""},null,{"$f":"IF($C$354=\"\",\"\",AB354/$C$354)","v":""},null,{"$f":"IF($C$354=\"\",\"\",AD354/$C$354)","v":""},null,{"$f":"IF($C$354=\"\",\"\",AF354/$C$354)","v":""},null,{"$f":"IF($C$354=\"\",\"\",AH354/$C$354)","v":""},null,{"$f":"IF($C$354=\"\",\"\",AJ354/$C$354)","v":""},null,{"$f":"IF($C$354=\"\",\"\",AL354/$C$354)","v":""},null,{"$f":"IF($C$354=\"\",\"\",AN354/$C$354)","v":""},null,{"$f":"IF($C$354=\"\",\"\",AP354/$C$354)","v":""},null,{"$f":"IF($C$354=\"\",\"\",AR354/$C$354)","v":""},null,{"$f":"IF($C$354=\"\",\"\",AT354/$C$354)","v":""},null,{"$f":"IF($C$354=\"\",\"\",AV354/$C$354)","v":""},null,{"$f":"IF($C$354=\"\",\"\",AX354/$C$354)","v":""},null,{"$f":"IF($C$354=\"\",\"\",AZ354/$C$354)","v":""},null,{"$f":"IF($C$354=\"\",\"\",BB354/$C$354)","v":""},null,0]
[null,null,null,null,{"$f":"IF($C$355=\"\",\"\",F355/$C$355)","v":""},null,{"$f":"IF($C$355=\"\",\"\",H355/$C$355)","v":""},null,{"$f":"IF($C$355=\"\",\"\",J355/$C$355)","v":""},null,{"$f":"IF($C$355=\"\",\"\",L355/$C$355)","v":""},null,{"$f":"IF($C$355=\"\",\"\",N355/$C$355)","v":""},null,{"$f":"IF($C$355=\"\",\"\",P355/$C$355)","v":""},null,{"$f":"IF($C$355=\"\",\"\",R355/$C$355)","v":""},null,{"$f":"IF($C$355=\"\",\"\",T355/$C$355)","v":""},null,{"$f":"IF($C$355=\"\",\"\",V355/$C$355)","v":""},null,{"$f":"IF($C$355=\"\",\"\",X355/$C$355)","v":""},null,{"$f":"IF($C$355=\"\",\"\",Z355/$C$355)","v":""},null,{"$f":"IF($C$355=\"\",\"\",AB355/$C$355)","v":""},null,{"$f":"IF($C$355=\"\",\"\",AD355/$C$355)","v":""},null,{"$f":"IF($C$355=\"\",\"\",AF355/$C$355)","v":""},null,{"$f":"IF($C$355=\"\",\"\",AH355/$C$355)","v":""},null,{"$f":"IF($C$355=\"\",\"\",AJ355/$C$355)","v":""},null,{"$f":"IF($C$355=\"\",\"\",AL355/$C$355)","v":""},null,{"$f":"IF($C$355=\"\",\"\",AN355/$C$355)","v":""},null,{"$f":"IF($C$355=\"\",\"\",AP355/$C$355)","v":""},null,{"$f":"IF($C$355=\"\",\"\",AR355/$C$355)","v":""},null,{"$f":"IF($C$355=\"\",\"\",AT355/$C$355)","v":""},null,{"$f":"IF($C$355=\"\",\"\",AV355/$C$355)","v":""},null,{"$f":"IF($C$355=\"\",\"\",AX355/$C$355)","v":""},null,{"$f":"IF($C$355=\"\",\"\",AZ355/$C$355)","v":""},null,{"$f":"IF($C$355=\"\",\"\",BB355/$C$355)","v":""},null,0]
[null,null,null,null,{"$f":"IF($C$356=\"\",\"\",F356/$C$356)","v":""},null,{"$f":"IF($C$356=\"\",\"\",H356/$C$356)","v":""},null,{"$f":"IF($C$356=\"\",\"\",J356/$C$356)","v":""},null,{"$f":"IF($C$356=\"\",\"\",L356/$C$356)","v":""},null,{"$f":"IF($C$356=\"\",\"\",N356/$C$356)","v":""},null,{"$f":"IF($C$356=\"\",\"\",P356/$C$356)","v":""},null,{"$f":"IF($C$356=\"\",\"\",R356/$C$356)","v":""},null,{"$f":"IF($C$356=\"\",\"\",T356/$C$356)","v":""},null,{"$f":"IF($C$356=\"\",\"\",V356/$C$356)","v":""},null,{"$f":"IF($C$356=\"\",\"\",X356/$C$356)","v":""},null,{"$f":"IF($C$356=\"\",\"\",Z356/$C$356)","v":""},null,{"$f":"IF($C$356=\"\",\"\",AB356/$C$356)","v":""},null,{"$f":"IF($C$356=\"\",\"\",AD356/$C$356)","v":""},null,{"$f":"IF($C$356=\"\",\"\",AF356/$C$356)","v":""},null,{"$f":"IF($C$356=\"\",\"\",AH356/$C$356)","v":""},null,{"$f":"IF($C$356=\"\",\"\",AJ356/$C$356)","v":""},null,{"$f":"IF($C$356=\"\",\"\",AL356/$C$356)","v":""},null,{"$f":"IF($C$356=\"\",\"\",AN356/$C$356)","v":""},null,{"$f":"IF($C$356=\"\",\"\",AP356/$C$356)","v":""},null,{"$f":"IF($C$356=\"\",\"\",AR356/$C$356)","v":""},null,{"$f":"IF($C$356=\"\",\"\",AT356/$C$356)","v":""},null,{"$f":"IF($C$356=\"\",\"\",AV356/$C$356)","v":""},null,{"$f":"IF($C$356=\"\",\"\",AX356/$C$356)","v":""},null,{"$f":"IF($C$356=\"\",\"\",AZ356/$C$356)","v":""},null,{"$f":"IF($C$356=\"\",\"\",BB356/$C$356)","v":""},null,{"$f":"SUM(BB356,AZ356,AX356,AV356,AT356,AR356,AP356,AN356,AL356,AJ356,AH356,AF356,AD356,AB356,Z356,X356,V356,T356,R356,P356,N356,L356,J356,H356,F356)","v":0}]
["TOTAL HOURS",null,null,null,null,{"$f":"SUM(F347:F356)","v":0},null,{"$f":"SUM(H347:H356)","v":0},null,{"$f":"SUM(J347:J356)","v":0},null,{"$f":"SUM(L347:L356)","v":0},null,{"$f":"SUM(N347:N356)","v":0},null,{"$f":"SUM(P347:P356)","v":0},null,{"$f":"SUM(R347:R356)","v":0},null,{"$f":"SUM(T347:T356)","v":0},null,{"$f":"SUM(V347:V356)","v":0},null,{"$f":"SUM(X347:X356)","v":0},null,{"$f":"SUM(Z347:Z356)","v":0},null,{"$f":"SUM(AB347:AB356)","v":0},null,{"$f":"SUM(AD347:AD356)","v":0},null,{"$f":"SUM(AF347:AF356)","v":0},null,{"$f":"SUM(AH347:AH356)","v":0},null,{"$f":"SUM(AJ347:AJ356)","v":0},null,{"$f":"SUM(AL347:AL356)","v":0},null,{"$f":"SUM(AN347:AN356)","v":0},null,{"$f":"SUM(AP347:AP356)","v":0},null,{"$f":"SUM(AR347:AR356)","v":0},null,{"$f":"SUM(AT347:AT356)","v":0},null,{"$f":"SUM(AV347:AV356)","v":0},null,{"$f":"SUM(AX347:AX356)","v":0},null,{"$f":"SUM(AZ347:AZ356)","v":0},null,{"$f":"SUM(BB347:BB356)","v":0},{"$f":"SUM(E357:BB357)","v":0}]
["TOTAL WORKDAYS",null,null,null,null,{"$f":"F357/8","v":0},null,{"$f":"H357/8","v":0},null,{"$f":"J357/8","v":0},null,{"$f":"L357/8","v":0},null,{"$f":"N357/8","v":0},null,{"$f":"P357/8","v":0},null,{"$f":"R357/8","v":0},null,{"$f":"T357/8","v":0},null,{"$f":"V357/8","v":0},null,{"$f":"X357/8","v":0},null,{"$f":"Z357/8","v":0},null,{"$f":"AB357/8","v":0},null,{"$f":"AD357/8","v":0},null,0,null,{"$f":"AH357/8","v":0},null,0,null,{"$f":"AL357/8","v":0},null,0,null,{"$f":"AP357/8","v":0},null,0,null,{"$f":"AT357/8","v":0},null,{"$f":"AV357/8","v":0},null,{"$f":"AX357/8","v":0},null,{"$f":"AZ357/8","v":0},null,{"$f":"BB357/8","v":0},{"$f":"SUM(E358:BB358)","v":0}]
["TOTAL RAW LABOR",null,null,null,null,{"$f":"$E$13*F357","v":0},null,{"$f":"$G$13*H357","v":0},null,{"$f":"$I$13*J357","v":0},null,{"$f":"$K$13*L357","v":0},null,{"$f":"$M$13*N357","v":0},null,{"$f":"$O$13*P357","v":0},null,{"$f":"$Q$13*R357","v":0},null,{"$f":"$S$13*T357","v":0},null,{"$f":"$U$13*V357","v":0},null,{"$f":"$W$13*X357","v":0},null,{"$f":"$Y$13*Z357","v":0},null,{"$f":"$AA$13*AB357","v":0},null,{"$f":"$AC$13*AD357","v":0},null,{"$f":"$AC$13*AF357","v":0},null,{"$f":"$AC$13*AH357","v":0},null,{"$f":"$AC$13*AJ357","v":0},null,{"$f":"$AC$13*AL357","v":0},null,{"$f":"$AC$13*AN357","v":0},null,{"$f":"$AC$13*AP357","v":0},null,{"$f":"$AC$13*AR357","v":0},null,{"$f":"$AC$13*AT357","v":0},null,{"$f":"$AC$13*AV357","v":0},null,{"$f":"$AC$13*AX357","v":0},null,{"$f":"$AC$13*AZ357","v":0},null,{"$f":"$AC$13*BB357","v":0},{"$f":"SUM(E359:BB359)","v":0}]
["Task 14.0     ","PREPARE PS&E DELIVERABLES AND FINAL DOCUMENTATION"]
[14.1,"Prepare PS&E Submittal Deliverables",null,null,{"$f":"IF($C$361=\"\",\"\",F361/$C$361)","v":""},null,{"$f":"IF($C$361=\"\",\"\",H361/$C$361)","v":""},null,{"$f":"IF($C$361=\"\",\"\",J361/$C$361)","v":""},null,{"$f":"IF($C$361=\"\",\"\",L361/$C$361)","v":""},null,{"$f":"IF($C$361=\"\",\"\",N361/$C$361)","v":""},null,{"$f":"IF($C$361=\"\",\"\",P361/$C$361)","v":""},null,{"$f":"IF($C$361=\"\",\"\",R361/$C$361)","v":""},null,{"$f":"IF($C$361=\"\",\"\",T361/$C$361)","v":""},null,{"$f":"IF($C$361=\"\",\"\",V361/$C$361)","v":""},null,{"$f":"IF($C$361=\"\",\"\",X361/$C$361)","v":""},null,{"$f":"IF($C$361=\"\",\"\",Z361/$C$361)","v":""},null,{"$f":"IF($C$361=\"\",\"\",AB361/$C$361)","v":""},null,{"$f":"IF($C$361=\"\",\"\",AD361/$C$361)","v":""},null,{"$f":"IF($C$361=\"\",\"\",AF361/$C$361)","v":""},null,{"$f":"IF($C$361=\"\",\"\",AH361/$C$361)","v":""},null,{"$f":"IF($C$361=\"\",\"\",AJ361/$C$361)","v":""},null,{"$f":"IF($C$361=\"\",\"\",AL361/$C$361)","v":""},null,{"$f":"IF($C$361=\"\",\"\",AN361/$C$361)","v":""},null,{"$f":"IF($C$361=\"\",\"\",AP361/$C$361)","v":""},null,{"$f":"IF($C$361=\"\",\"\",AR361/$C$361)","v":""},null,{"$f":"IF($C$361=\"\",\"\",AT361/$C$361)","v":""},null,{"$f":"IF($C$361=\"\",\"\",AV361/$C$361)","v":""},null,{"$f":"IF($C$361=\"\",\"\",AX361/$C$361)","v":""},null,{"$f":"IF($C$361=\"\",\"\",AZ361/$C$361)","v":""},null,{"$f":"IF($C$361=\"\",\"\",BB361/$C$361)","v":""},null,{"$f":"SUM(BB361,AZ361,AX361,AV361,AT361,AR361,AP361,AN361,AL361,AJ361,AH361,AF361,AD361,AB361,Z361,X361,V361,T361,R361,P361,N361,L361,J361,H361,F361)","v":0}]
[14.2,"PS&E Submittal Review Meetings",null,null,{"$f":"IF($C$362=\"\",\"\",F362/$C$362)","v":""},null,{"$f":"IF($C$362=\"\",\"\",H362/$C$362)","v":""},null,{"$f":"IF($C$362=\"\",\"\",J362/$C$362)","v":""},null,{"$f":"IF($C$362=\"\",\"\",L362/$C$362)","v":""},null,{"$f":"IF($C$362=\"\",\"\",N362/$C$362)","v":""},null,{"$f":"IF($C$362=\"\",\"\",P362/$C$362)","v":""},null,{"$f":"IF($C$362=\"\",\"\",R362/$C$362)","v":""},null,{"$f":"IF($C$362=\"\",\"\",T362/$C$362)","v":""},null,{"$f":"IF($C$362=\"\",\"\",V362/$C$362)","v":""},null,{"$f":"IF($C$362=\"\",\"\",X362/$C$362)","v":""},null,{"$f":"IF($C$362=\"\",\"\",Z362/$C$362)","v":""},null,{"$f":"IF($C$362=\"\",\"\",AB362/$C$362)","v":""},null,{"$f":"IF($C$362=\"\",\"\",AD362/$C$362)","v":""},null,{"$f":"IF($C$362=\"\",\"\",AF362/$C$362)","v":""},null,{"$f":"IF($C$362=\"\",\"\",AH362/$C$362)","v":""},null,{"$f":"IF($C$362=\"\",\"\",AJ362/$C$362)","v":""},null,{"$f":"IF($C$362=\"\",\"\",AL362/$C$362)","v":""},null,{"$f":"IF($C$362=\"\",\"\",AN362/$C$362)","v":""},null,{"$f":"IF($C$362=\"\",\"\",AP362/$C$362)","v":""},null,{"$f":"IF($C$362=\"\",\"\",AR362/$C$362)","v":""},null,{"$f":"IF($C$362=\"\",\"\",AT362/$C$362)","v":""},null,{"$f":"IF($C$362=\"\",\"\",AV362/$C$362)","v":""},null,{"$f":"IF($C$362=\"\",\"\",AX362/$C$362)","v":""},null,{"$f":"IF($C$362=\"\",\"\",AZ362/$C$362)","v":""},null,{"$f":"IF($C$362=\"\",\"\",BB362/$C$362)","v":""},null,0]
[14.3,"Prepare CD/DVD/USB Jump Drive of PS&E Files",null,null,{"$f":"IF($C$363=\"\",\"\",F363/$C$363)","v":""},null,{"$f":"IF($C$363=\"\",\"\",H363/$C$363)","v":""},null,{"$f":"IF($C$363=\"\",\"\",J363/$C$363)","v":""},null,{"$f":"IF($C$363=\"\",\"\",L363/$C$363)","v":""},null,{"$f":"IF($C$363=\"\",\"\",N363/$C$363)","v":""},null,{"$f":"IF($C$363=\"\",\"\",P363/$C$363)","v":""},null,{"$f":"IF($C$363=\"\",\"\",R363/$C$363)","v":""},null,{"$f":"IF($C$363=\"\",\"\",T363/$C$363)","v":""},null,{"$f":"IF($C$363=\"\",\"\",V363/$C$363)","v":""},null,{"$f":"IF($C$363=\"\",\"\",X363/$C$363)","v":""},null,{"$f":"IF($C$363=\"\",\"\",Z363/$C$363)","v":""},null,{"$f":"IF($C$363=\"\",\"\",AB363/$C$363)","v":""},null,{"$f":"IF($C$363=\"\",\"\",AD363/$C$363)","v":""},null,{"$f":"IF($C$363=\"\",\"\",AF363/$C$363)","v":""},null,{"$f":"IF($C$363=\"\",\"\",AH363/$C$363)","v":""},null,{"$f":"IF($C$363=\"\",\"\",AJ363/$C$363)","v":""},null,{"$f":"IF($C$363=\"\",\"\",AL363/$C$363)","v":""},null,{"$f":"IF($C$363=\"\",\"\",AN363/$C$363)","v":""},null,{"$f":"IF($C$363=\"\",\"\",AP363/$C$363)","v":""},null,{"$f":"IF($C$363=\"\",\"\",AR363/$C$363)","v":""},null,{"$f":"IF($C$363=\"\",\"\",AT363/$C$363)","v":""},null,{"$f":"IF($C$363=\"\",\"\",AV363/$C$363)","v":""},null,{"$f":"IF($C$363=\"\",\"\",AX363/$C$363)","v":""},null,{"$f":"IF($C$363=\"\",\"\",AZ363/$C$363)","v":""},null,{"$f":"IF($C$363=\"\",\"\",BB363/$C$363)","v":""},null,0]
[14.4,"Electronic transfer of files to the Department",null,null,{"$f":"IF($C$364=\"\",\"\",F364/$C$364)","v":""},null,{"$f":"IF($C$364=\"\",\"\",H364/$C$364)","v":""},null,{"$f":"IF($C$364=\"\",\"\",J364/$C$364)","v":""},null,{"$f":"IF($C$364=\"\",\"\",L364/$C$364)","v":""},null,{"$f":"IF($C$364=\"\",\"\",N364/$C$364)","v":""},null,{"$f":"IF($C$364=\"\",\"\",P364/$C$364)","v":""},null,{"$f":"IF($C$364=\"\",\"\",R364/$C$364)","v":""},null,{"$f":"IF($C$364=\"\",\"\",T364/$C$364)","v":""},null,{"$f":"IF($C$364=\"\",\"\",V364/$C$364)","v":""},null,{"$f":"IF($C$364=\"\",\"\",X364/$C$364)","v":""},null,{"$f":"IF($C$364=\"\",\"\",Z364/$C$364)","v":""},null,{"$f":"IF($C$364=\"\",\"\",AB364/$C$364)","v":""},null,{"$f":"IF($C$364=\"\",\"\",AD364/$C$364)","v":""},null,{"$f":"IF($C$364=\"\",\"\",AF364/$C$364)","v":""},null,{"$f":"IF($C$364=\"\",\"\",AH364/$C$364)","v":""},null,{"$f":"IF($C$364=\"\",\"\",AJ364/$C$364)","v":""},null,{"$f":"IF($C$364=\"\",\"\",AL364/$C$364)","v":""},null,{"$f":"IF($C$364=\"\",\"\",AN364/$C$364)","v":""},null,{"$f":"IF($C$364=\"\",\"\",AP364/$C$364)","v":""},null,{"$f":"IF($C$364=\"\",\"\",AR364/$C$364)","v":""},null,{"$f":"IF($C$364=\"\",\"\",AT364/$C$364)","v":""},null,{"$f":"IF($C$364=\"\",\"\",AV364/$C$364)","v":""},null,{"$f":"IF($C$364=\"\",\"\",AX364/$C$364)","v":""},null,{"$f":"IF($C$364=\"\",\"\",AZ364/$C$364)","v":""},null,{"$f":"IF($C$364=\"\",\"\",BB364/$C$364)","v":""},null,0]
[null,null,null,null,{"$f":"IF($C$365=\"\",\"\",F365/$C$365)","v":""},null,{"$f":"IF($C$365=\"\",\"\",H365/$C$365)","v":""},null,{"$f":"IF($C$365=\"\",\"\",J365/$C$365)","v":""},null,{"$f":"IF($C$365=\"\",\"\",L365/$C$365)","v":""},null,{"$f":"IF($C$365=\"\",\"\",N365/$C$365)","v":""},null,{"$f":"IF($C$365=\"\",\"\",P365/$C$365)","v":""},null,{"$f":"IF($C$365=\"\",\"\",R365/$C$365)","v":""},null,{"$f":"IF($C$365=\"\",\"\",T365/$C$365)","v":""},null,{"$f":"IF($C$365=\"\",\"\",V365/$C$365)","v":""},null,{"$f":"IF($C$365=\"\",\"\",X365/$C$365)","v":""},null,{"$f":"IF($C$365=\"\",\"\",Z365/$C$365)","v":""},null,{"$f":"IF($C$365=\"\",\"\",AB365/$C$365)","v":""},null,{"$f":"IF($C$365=\"\",\"\",AD365/$C$365)","v":""},null,{"$f":"IF($C$365=\"\",\"\",AF365/$C$365)","v":""},null,{"$f":"IF($C$365=\"\",\"\",AH365/$C$365)","v":""},null,{"$f":"IF($C$365=\"\",\"\",AJ365/$C$365)","v":""},null,{"$f":"IF($C$365=\"\",\"\",AL365/$C$365)","v":""},null,{"$f":"IF($C$365=\"\",\"\",AN365/$C$365)","v":""},null,{"$f":"IF($C$365=\"\",\"\",AP365/$C$365)","v":""},null,{"$f":"IF($C$365=\"\",\"\",AR365/$C$365)","v":""},null,{"$f":"IF($C$365=\"\",\"\",AT365/$C$365)","v":""},null,{"$f":"IF($C$365=\"\",\"\",AV365/$C$365)","v":""},null,{"$f":"IF($C$365=\"\",\"\",AX365/$C$365)","v":""},null,{"$f":"IF($C$365=\"\",\"\",AZ365/$C$365)","v":""},null,{"$f":"IF($C$365=\"\",\"\",BB365/$C$365)","v":""},null,0]
[null,null,null,null,{"$f":"IF($C$366=\"\",\"\",F366/$C$366)","v":""},null,{"$f":"IF($C$366=\"\",\"\",H366/$C$366)","v":""},null,{"$f":"IF($C$366=\"\",\"\",J366/$C$366)","v":""},null,{"$f":"IF($C$366=\"\",\"\",L366/$C$366)","v":""},null,{"$f":"IF($C$366=\"\",\"\",N366/$C$366)","v":""},null,{"$f":"IF($C$366=\"\",\"\",P366/$C$366)","v":""},null,{"$f":"IF($C$366=\"\",\"\",R366/$C$366)","v":""},null,{"$f":"IF($C$366=\"\",\"\",T366/$C$366)","v":""},null,{"$f":"IF($C$366=\"\",\"\",V366/$C$366)","v":""},null,{"$f":"IF($C$366=\"\",\"\",X366/$C$366)","v":""},null,{"$f":"IF($C$366=\"\",\"\",Z366/$C$366)","v":""},null,{"$f":"IF($C$366=\"\",\"\",AB366/$C$366)","v":""},null,{"$f":"IF($C$366=\"\",\"\",AD366/$C$366)","v":""},null,{"$f":"IF($C$366=\"\",\"\",AF366/$C$366)","v":""},null,{"$f":"IF($C$366=\"\",\"\",AH366/$C$366)","v":""},null,{"$f":"IF($C$366=\"\",\"\",AJ366/$C$366)","v":""},null,{"$f":"IF($C$366=\"\",\"\",AL366/$C$366)","v":""},null,{"$f":"IF($C$366=\"\",\"\",AN366/$C$366)","v":""},null,{"$f":"IF($C$366=\"\",\"\",AP366/$C$366)","v":""},null,{"$f":"IF($C$366=\"\",\"\",AR366/$C$366)","v":""},null,{"$f":"IF($C$366=\"\",\"\",AT366/$C$366)","v":""},null,{"$f":"IF($C$366=\"\",\"\",AV366/$C$366)","v":""},null,{"$f":"IF($C$366=\"\",\"\",AX366/$C$366)","v":""},null,{"$f":"IF($C$366=\"\",\"\",AZ366/$C$366)","v":""},null,{"$f":"IF($C$366=\"\",\"\",BB366/$C$366)","v":""},null,0]
[null,null,null,null,{"$f":"IF($C$367=\"\",\"\",F367/$C$367)","v":""},null,{"$f":"IF($C$367=\"\",\"\",H367/$C$367)","v":""},null,{"$f":"IF($C$367=\"\",\"\",J367/$C$367)","v":""},null,{"$f":"IF($C$367=\"\",\"\",L367/$C$367)","v":""},null,{"$f":"IF($C$367=\"\",\"\",N367/$C$367)","v":""},null,{"$f":"IF($C$367=\"\",\"\",P367/$C$367)","v":""},null,{"$f":"IF($C$367=\"\",\"\",R367/$C$367)","v":""},null,{"$f":"IF($C$367=\"\",\"\",T367/$C$367)","v":""},null,{"$f":"IF($C$367=\"\",\"\",V367/$C$367)","v":""},null,{"$f":"IF($C$367=\"\",\"\",X367/$C$367)","v":""},null,{"$f":"IF($C$367=\"\",\"\",Z367/$C$367)","v":""},null,{"$f":"IF($C$367=\"\",\"\",AB367/$C$367)","v":""},null,{"$f":"IF($C$367=\"\",\"\",AD367/$C$367)","v":""},null,{"$f":"IF($C$367=\"\",\"\",AF367/$C$367)","v":""},null,{"$f":"IF($C$367=\"\",\"\",AH367/$C$367)","v":""},null,{"$f":"IF($C$367=\"\",\"\",AJ367/$C$367)","v":""},null,{"$f":"IF($C$367=\"\",\"\",AL367/$C$367)","v":""},null,{"$f":"IF($C$367=\"\",\"\",AN367/$C$367)","v":""},null,{"$f":"IF($C$367=\"\",\"\",AP367/$C$367)","v":""},null,{"$f":"IF($C$367=\"\",\"\",AR367/$C$367)","v":""},null,{"$f":"IF($C$367=\"\",\"\",AT367/$C$367)","v":""},null,{"$f":"IF($C$367=\"\",\"\",AV367/$C$367)","v":""},null,{"$f":"IF($C$367=\"\",\"\",AX367/$C$367)","v":""},null,{"$f":"IF($C$367=\"\",\"\",AZ367/$C$367)","v":""},null,{"$f":"IF($C$367=\"\",\"\",BB367/$C$367)","v":""},null,0]
[null,null,null,null,{"$f":"IF($C$368=\"\",\"\",F368/$C$368)","v":""},null,{"$f":"IF($C$368=\"\",\"\",H368/$C$368)","v":""},null,{"$f":"IF($C$368=\"\",\"\",J368/$C$368)","v":""},null,{"$f":"IF($C$368=\"\",\"\",L368/$C$368)","v":""},null,{"$f":"IF($C$368=\"\",\"\",N368/$C$368)","v":""},null,{"$f":"IF($C$368=\"\",\"\",P368/$C$368)","v":""},null,{"$f":"IF($C$368=\"\",\"\",R368/$C$368)","v":""},null,{"$f":"IF($C$368=\"\",\"\",T368/$C$368)","v":""},null,{"$f":"IF($C$368=\"\",\"\",V368/$C$368)","v":""},null,{"$f":"IF($C$368=\"\",\"\",X368/$C$368)","v":""},null,{"$f":"IF($C$368=\"\",\"\",Z368/$C$368)","v":""},null,{"$f":"IF($C$368=\"\",\"\",AB368/$C$368)","v":""},null,{"$f":"IF($C$368=\"\",\"\",AD368/$C$368)","v":""},null,{"$f":"IF($C$368=\"\",\"\",AF368/$C$368)","v":""},null,{"$f":"IF($C$368=\"\",\"\",AH368/$C$368)","v":""},null,{"$f":"IF($C$368=\"\",\"\",AJ368/$C$368)","v":""},null,{"$f":"IF($C$368=\"\",\"\",AL368/$C$368)","v":""},null,{"$f":"IF($C$368=\"\",\"\",AN368/$C$368)","v":""},null,{"$f":"IF($C$368=\"\",\"\",AP368/$C$368)","v":""},null,{"$f":"IF($C$368=\"\",\"\",AR368/$C$368)","v":""},null,{"$f":"IF($C$368=\"\",\"\",AT368/$C$368)","v":""},null,{"$f":"IF($C$368=\"\",\"\",AV368/$C$368)","v":""},null,{"$f":"IF($C$368=\"\",\"\",AX368/$C$368)","v":""},null,{"$f":"IF($C$368=\"\",\"\",AZ368/$C$368)","v":""},null,{"$f":"IF($C$368=\"\",\"\",BB368/$C$368)","v":""},null,0]
[null,null,null,null,{"$f":"IF($C$369=\"\",\"\",F369/$C$369)","v":""},null,{"$f":"IF($C$369=\"\",\"\",H369/$C$369)","v":""},null,{"$f":"IF($C$369=\"\",\"\",J369/$C$369)","v":""},null,{"$f":"IF($C$369=\"\",\"\",L369/$C$369)","v":""},null,{"$f":"IF($C$369=\"\",\"\",N369/$C$369)","v":""},null,{"$f":"IF($C$369=\"\",\"\",P369/$C$369)","v":""},null,{"$f":"IF($C$369=\"\",\"\",R369/$C$369)","v":""},null,{"$f":"IF($C$369=\"\",\"\",T369/$C$369)","v":""},null,{"$f":"IF($C$369=\"\",\"\",V369/$C$369)","v":""},null,{"$f":"IF($C$369=\"\",\"\",X369/$C$369)","v":""},null,{"$f":"IF($C$369=\"\",\"\",Z369/$C$369)","v":""},null,{"$f":"IF($C$369=\"\",\"\",AB369/$C$369)","v":""},null,{"$f":"IF($C$369=\"\",\"\",AD369/$C$369)","v":""},null,{"$f":"IF($C$369=\"\",\"\",AF369/$C$369)","v":""},null,{"$f":"IF($C$369=\"\",\"\",AH369/$C$369)","v":""},null,{"$f":"IF($C$369=\"\",\"\",AJ369/$C$369)","v":""},null,{"$f":"IF($C$369=\"\",\"\",AL369/$C$369)","v":""},null,{"$f":"IF($C$369=\"\",\"\",AN369/$C$369)","v":""},null,{"$f":"IF($C$369=\"\",\"\",AP369/$C$369)","v":""},null,{"$f":"IF($C$369=\"\",\"\",AR369/$C$369)","v":""},null,{"$f":"IF($C$369=\"\",\"\",AT369/$C$369)","v":""},null,{"$f":"IF($C$369=\"\",\"\",AV369/$C$369)","v":""},null,{"$f":"IF($C$369=\"\",\"\",AX369/$C$369)","v":""},null,{"$f":"IF($C$369=\"\",\"\",AZ369/$C$369)","v":""},null,{"$f":"IF($C$369=\"\",\"\",BB369/$C$369)","v":""},null,0]
[null,null,null,null,{"$f":"IF($C$370=\"\",\"\",F370/$C$370)","v":""},null,{"$f":"IF($C$370=\"\",\"\",H370/$C$370)","v":""},null,{"$f":"IF($C$370=\"\",\"\",J370/$C$370)","v":""},null,{"$f":"IF($C$370=\"\",\"\",L370/$C$370)","v":""},null,{"$f":"IF($C$370=\"\",\"\",N370/$C$370)","v":""},null,{"$f":"IF($C$370=\"\",\"\",P370/$C$370)","v":""},null,{"$f":"IF($C$370=\"\",\"\",R370/$C$370)","v":""},null,{"$f":"IF($C$370=\"\",\"\",T370/$C$370)","v":""},null,{"$f":"IF($C$370=\"\",\"\",V370/$C$370)","v":""},null,{"$f":"IF($C$370=\"\",\"\",X370/$C$370)","v":""},null,{"$f":"IF($C$370=\"\",\"\",Z370/$C$370)","v":""},null,{"$f":"IF($C$370=\"\",\"\",AB370/$C$370)","v":""},null,{"$f":"IF($C$370=\"\",\"\",AD370/$C$370)","v":""},null,{"$f":"IF($C$370=\"\",\"\",AF370/$C$370)","v":""},null,{"$f":"IF($C$370=\"\",\"\",AH370/$C$370)","v":""},null,{"$f":"IF($C$370=\"\",\"\",AJ370/$C$370)","v":""},null,{"$f":"IF($C$370=\"\",\"\",AL370/$C$370)","v":""},null,{"$f":"IF($C$370=\"\",\"\",AN370/$C$370)","v":""},null,{"$f":"IF($C$370=\"\",\"\",AP370/$C$370)","v":""},null,{"$f":"IF($C$370=\"\",\"\",AR370/$C$370)","v":""},null,{"$f":"IF($C$370=\"\",\"\",AT370/$C$370)","v":""},null,{"$f":"IF($C$370=\"\",\"\",AV370/$C$370)","v":""},null,{"$f":"IF($C$370=\"\",\"\",AX370/$C$370)","v":""},null,{"$f":"IF($C$370=\"\",\"\",AZ370/$C$370)","v":""},null,{"$f":"IF($C$370=\"\",\"\",BB370/$C$370)","v":""},null,0]
[null,null,null,null,{"$f":"IF($C$371=\"\",\"\",F371/$C$371)","v":""},null,{"$f":"IF($C$371=\"\",\"\",H371/$C$371)","v":""},null,{"$f":"IF($C$371=\"\",\"\",J371/$C$371)","v":""},null,{"$f":"IF($C$371=\"\",\"\",L371/$C$371)","v":""},null,{"$f":"IF($C$371=\"\",\"\",N371/$C$371)","v":""},null,{"$f":"IF($C$371=\"\",\"\",P371/$C$371)","v":""},null,{"$f":"IF($C$371=\"\",\"\",R371/$C$371)","v":""},null,{"$f":"IF($C$371=\"\",\"\",T371/$C$371)","v":""},null,{"$f":"IF($C$371=\"\",\"\",V371/$C$371)","v":""},null,{"$f":"IF($C$371=\"\",\"\",X371/$C$371)","v":""},null,{"$f":"IF($C$371=\"\",\"\",Z371/$C$371)","v":""},null,{"$f":"IF($C$371=\"\",\"\",AB371/$C$371)","v":""},null,{"$f":"IF($C$371=\"\",\"\",AD371/$C$371)","v":""},null,{"$f":"IF($C$371=\"\",\"\",AF371/$C$371)","v":""},null,{"$f":"IF($C$371=\"\",\"\",AH371/$C$371)","v":""},null,{"$f":"IF($C$371=\"\",\"\",AJ371/$C$371)","v":""},null,{"$f":"IF($C$371=\"\",\"\",AL371/$C$371)","v":""},null,{"$f":"IF($C$371=\"\",\"\",AN371/$C$371)","v":""},null,{"$f":"IF($C$371=\"\",\"\",AP371/$C$371)","v":""},null,{"$f":"IF($C$371=\"\",\"\",AR371/$C$371)","v":""},null,{"$f":"IF($C$371=\"\",\"\",AT371/$C$371)","v":""},null,{"$f":"IF($C$371=\"\",\"\",AV371/$C$371)","v":""},null,{"$f":"IF($C$371=\"\",\"\",AX371/$C$371)","v":""},null,{"$f":"IF($C$371=\"\",\"\",AZ371/$C$371)","v":""},null,{"$f":"IF($C$371=\"\",\"\",BB371/$C$371)","v":""},null,{"$f":"SUM(BB371,AZ371,AX371,AV371,AT371,AR371,AP371,AN371,AL371,AJ371,AH371,AF371,AD371,AB371,Z371,X371,V371,T371,R371,P371,N371,L371,J371,H371,F371)","v":0}]
["TOTAL HOURS",null,null,null,null,{"$f":"SUM(F361:F371)","v":0},null,{"$f":"SUM(H361:H371)","v":0},null,{"$f":"SUM(J361:J371)","v":0},null,{"$f":"SUM(L361:L371)","v":0},null,{"$f":"SUM(N361:N371)","v":0},null,{"$f":"SUM(P361:P371)","v":0},null,{"$f":"SUM(R361:R371)","v":0},null,{"$f":"SUM(T361:T371)","v":0},null,{"$f":"SUM(V361:V371)","v":0},null,{"$f":"SUM(X361:X371)","v":0},null,{"$f":"SUM(Z361:Z371)","v":0},null,{"$f":"SUM(AB361:AB371)","v":0},null,{"$f":"SUM(AD361:AD371)","v":0},null,{"$f":"SUM(AF361:AF371)","v":0},null,{"$f":"SUM(AH361:AH371)","v":0},null,{"$f":"SUM(AJ361:AJ371)","v":0},null,{"$f":"SUM(AL361:AL371)","v":0},null,{"$f":"SUM(AN361:AN371)","v":0},null,{"$f":"SUM(AP361:AP371)","v":0},null,{"$f":"SUM(AR361:AR371)","v":0},null,{"$f":"SUM(AT361:AT371)","v":0},null,{"$f":"SUM(AV361:AV371)","v":0},null,{"$f":"SUM(AX361:AX371)","v":0},null,{"$f":"SUM(AZ361:AZ371)","v":0},null,{"$f":"SUM(BB361:BB371)","v":0},{"$f":"SUM(E372:BB372)","v":0}]
["TOTAL WORKDAYS",null,null,null,null,{"$f":"F372/8","v":0},null,{"$f":"H372/8","v":0},null,{"$f":"J372/8","v":0},null,{"$f":"L372/8","v":0},null,{"$f":"N372/8","v":0},null,{"$f":"P372/8","v":0},null,{"$f":"R372/8","v":0},null,{"$f":"T372/8","v":0},null,{"$f":"V372/8","v":0},null,{"$f":"X372/8","v":0},null,{"$f":"Z372/8","v":0},null,{"$f":"AB372/8","v":0},null,{"$f":"AD372/8","v":0},null,0,null,{"$f":"AH372/8","v":0},null,0,null,{"$f":"AL372/8","v":0},null,0,null,{"$f":"AP372/8","v":0},null,0,null,{"$f":"AT372/8","v":0},null,{"$f":"AV372/8","v":0},null,{"$f":"AX372/8","v":0},null,{"$f":"AZ372/8","v":0},null,{"$f":"BB372/8","v":0},{"$f":"SUM(E373:BB373)","v":0}]
["TOTAL RAW LABOR",null,null,null,null,{"$f":"$E$13*F372","v":0},null,{"$f":"$G$13*H372","v":0},null,{"$f":"$I$13*J372","v":0},null,{"$f":"$K$13*L372","v":0},null,{"$f":"$M$13*N372","v":0},null,{"$f":"$O$13*P372","v":0},null,{"$f":"$Q$13*R372","v":0},null,{"$f":"$S$13*T372","v":0},null,{"$f":"$U$13*V372","v":0},null,{"$f":"$W$13*X372","v":0},null,{"$f":"$Y$13*Z372","v":0},null,{"$f":"$AA$13*AB372","v":0},null,{"$f":"$AC$13*AD372","v":0},null,{"$f":"$AC$13*AF372","v":0},null,{"$f":"$AC$13*AH372","v":0},null,{"$f":"$AC$13*AJ372","v":0},null,{"$f":"$AC$13*AL372","v":0},null,{"$f":"$AC$13*AN372","v":0},null,{"$f":"$AC$13*AP372","v":0},null,{"$f":"$AC$13*AR372","v":0},null,{"$f":"$AC$13*AT372","v":0},null,{"$f":"$AC$13*AV372","v":0},null,{"$f":"$AC$13*AX372","v":0},null,{"$f":"$AC$13*AZ372","v":0},null,{"$f":"$AC$13*BB372","v":0},{"$f":"SUM(E374:BB374)","v":0}]
["Task 15.0     ","REPLACE FIELD WITH CATEGORY NAME OF YOUR CHOOSING HERE",null,null,null,null,null,null,null,null,null,null,null,null,null,null,null,null,null,null,null,null,null,null,null,null,null,null,null,null,null,null,null,null,null,null,null,null,null,null,null,null,null,null,null,null,null,null,null,null,null,null,null,null,{"$f":"IF(B375=\"REPLACE FIELD WITH CATEGORY NAME OF YOUR CHOOSING HERE\",0,\"\")","v":0}]
[null,null,null,null,{"$f":"IF($C$376=\"\",\"\",F376/$C$376)","v":""},null,{"$f":"IF($C$376=\"\",\"\",H376/$C$376)","v":""},null,{"$f":"IF($C$376=\"\",\"\",J376/$C$376)","v":""},null,{"$f":"IF($C$376=\"\",\"\",L376/$C$376)","v":""},null,{"$f":"IF($C$376=\"\",\"\",N376/$C$376)","v":""},null,{"$f":"IF($C$376=\"\",\"\",P376/$C$376)","v":""},null,{"$f":"IF($C$376=\"\",\"\",R376/$C$376)","v":""},null,{"$f":"IF($C$376=\"\",\"\",T376/$C$376)","v":""},null,{"$f":"IF($C$376=\"\",\"\",V376/$C$376)","v":""},null,{"$f":"IF($C$376=\"\",\"\",X376/$C$376)","v":""},null,{"$f":"IF($C$376=\"\",\"\",Z376/$C$376)","v":""},null,{"$f":"IF($C$376=\"\",\"\",AB376/$C$376)","v":""},null,{"$f":"IF($C$376=\"\",\"\",AD376/$C$376)","v":""},null,{"$f":"IF($C$376=\"\",\"\",AF376/$C$376)","v":""},null,{"$f":"IF($C$376=\"\",\"\",AH376/$C$376)","v":""},null,{"$f":"IF($C$376=\"\",\"\",AJ376/$C$376)","v":""},null,{"$f":"IF($C$376=\"\",\"\",AL376/$C$376)","v":""},null,{"$f":"IF($C$376=\"\",\"\",AN376/$C$376)","v":""},null,{"$f":"IF($C$376=\"\",\"\",AP376/$C$376)","v":""},null,{"$f":"IF($C$376=\"\",\"\",AR376/$C$376)","v":""},null,{"$f":"IF($C$376=\"\",\"\",AT376/$C$376)","v":""},null,{"$f":"IF($C$376=\"\",\"\",AV376/$C$376)","v":""},null,{"$f":"IF($C$376=\"\",\"\",AX376/$C$376)","v":""},null,{"$f":"IF($C$376=\"\",\"\",AZ376/$C$376)","v":""},null,{"$f":"IF($C$376=\"\",\"\",BB376/$C$376)","v":""},null,{"$f":"SUM(BB376,AZ376,AX376,AV376,AT376,AR376,AP376,AN376,AL376,AJ376,AH376,AF376,AD376,AB376,Z376,X376,V376,T376,R376,P376,N376,L376,J376,H376,F376)","v":0}]
[null,null,null,null,{"$f":"IF($C$377=\"\",\"\",F377/$C$377)","v":""},null,{"$f":"IF($C$377=\"\",\"\",H377/$C$377)","v":""},null,{"$f":"IF($C$377=\"\",\"\",J377/$C$377)","v":""},null,{"$f":"IF($C$377=\"\",\"\",L377/$C$377)","v":""},null,{"$f":"IF($C$377=\"\",\"\",N377/$C$377)","v":""},null,{"$f":"IF($C$377=\"\",\"\",P377/$C$377)","v":""},null,{"$f":"IF($C$377=\"\",\"\",R377/$C$377)","v":""},null,{"$f":"IF($C$377=\"\",\"\",T377/$C$377)","v":""},null,{"$f":"IF($C$377=\"\",\"\",V377/$C$377)","v":""},null,{"$f":"IF($C$377=\"\",\"\",X377/$C$377)","v":""},null,{"$f":"IF($C$377=\"\",\"\",Z377/$C$377)","v":""},null,{"$f":"IF($C$377=\"\",\"\",AB377/$C$377)","v":""},null,{"$f":"IF($C$377=\"\",\"\",AD377/$C$377)","v":""},null,{"$f":"IF($C$377=\"\",\"\",AF377/$C$377)","v":""},null,{"$f":"IF($C$377=\"\",\"\",AH377/$C$377)","v":""},null,{"$f":"IF($C$377=\"\",\"\",AJ377/$C$377)","v":""},null,{"$f":"IF($C$377=\"\",\"\",AL377/$C$377)","v":""},null,{"$f":"IF($C$377=\"\",\"\",AN377/$C$377)","v":""},null,{"$f":"IF($C$377=\"\",\"\",AP377/$C$377)","v":""},null,{"$f":"IF($C$377=\"\",\"\",AR377/$C$377)","v":""},null,{"$f":"IF($C$377=\"\",\"\",AT377/$C$377)","v":""},null,{"$f":"IF($C$377=\"\",\"\",AV377/$C$377)","v":""},null,{"$f":"IF($C$377=\"\",\"\",AX377/$C$377)","v":""},null,{"$f":"IF($C$377=\"\",\"\",AZ377/$C$377)","v":""},null,{"$f":"IF($C$377=\"\",\"\",BB377/$C$377)","v":""},null,0]
[null,null,null,null,{"$f":"IF($C$378=\"\",\"\",F378/$C$378)","v":""},null,{"$f":"IF($C$378=\"\",\"\",H378/$C$378)","v":""},null,{"$f":"IF($C$378=\"\",\"\",J378/$C$378)","v":""},null,{"$f":"IF($C$378=\"\",\"\",L378/$C$378)","v":""},null,{"$f":"IF($C$378=\"\",\"\",N378/$C$378)","v":""},null,{"$f":"IF($C$378=\"\",\"\",P378/$C$378)","v":""},null,{"$f":"IF($C$378=\"\",\"\",R378/$C$378)","v":""},null,{"$f":"IF($C$378=\"\",\"\",T378/$C$378)","v":""},null,{"$f":"IF($C$378=\"\",\"\",V378/$C$378)","v":""},null,{"$f":"IF($C$378=\"\",\"\",X378/$C$378)","v":""},null,{"$f":"IF($C$378=\"\",\"\",Z378/$C$378)","v":""},null,{"$f":"IF($C$378=\"\",\"\",AB378/$C$378)","v":""},null,{"$f":"IF($C$378=\"\",\"\",AD378/$C$378)","v":""},null,{"$f":"IF($C$378=\"\",\"\",AF378/$C$378)","v":""},null,{"$f":"IF($C$378=\"\",\"\",AH378/$C$378)","v":""},null,{"$f":"IF($C$378=\"\",\"\",AJ378/$C$378)","v":""},null,{"$f":"IF($C$378=\"\",\"\",AL378/$C$378)","v":""},null,{"$f":"IF($C$378=\"\",\"\",AN378/$C$378)","v":""},null,{"$f":"IF($C$378=\"\",\"\",AP378/$C$378)","v":""},null,{"$f":"IF($C$378=\"\",\"\",AR378/$C$378)","v":""},null,{"$f":"IF($C$378=\"\",\"\",AT378/$C$378)","v":""},null,{"$f":"IF($C$378=\"\",\"\",AV378/$C$378)","v":""},null,{"$f":"IF($C$378=\"\",\"\",AX378/$C$378)","v":""},null,{"$f":"IF($C$378=\"\",\"\",AZ378/$C$378)","v":""},null,{"$f":"IF($C$378=\"\",\"\",BB378/$C$378)","v":""},null,0]
[null,null,null,null,{"$f":"IF($C$379=\"\",\"\",F379/$C$379)","v":""},null,{"$f":"IF($C$379=\"\",\"\",H379/$C$379)","v":""},null,{"$f":"IF($C$379=\"\",\"\",J379/$C$379)","v":""},null,{"$f":"IF($C$379=\"\",\"\",L379/$C$379)","v":""},null,{"$f":"IF($C$379=\"\",\"\",N379/$C$379)","v":""},null,{"$f":"IF($C$379=\"\",\"\",P379/$C$379)","v":""},null,{"$f":"IF($C$379=\"\",\"\",R379/$C$379)","v":""},null,{"$f":"IF($C$379=\"\",\"\",T379/$C$379)","v":""},null,{"$f":"IF($C$379=\"\",\"\",V379/$C$379)","v":""},null,{"$f":"IF($C$379=\"\",\"\",X379/$C$379)","v":""},null,{"$f":"IF($C$379=\"\",\"\",Z379/$C$379)","v":""},null,{"$f":"IF($C$379=\"\",\"\",AB379/$C$379)","v":""},null,{"$f":"IF($C$379=\"\",\"\",AD379/$C$379)","v":""},null,{"$f":"IF($C$379=\"\",\"\",AF379/$C$379)","v":""},null,{"$f":"IF($C$379=\"\",\"\",AH379/$C$379)","v":""},null,{"$f":"IF($C$379=\"\",\"\",AJ379/$C$379)","v":""},null,{"$f":"IF($C$379=\"\",\"\",AL379/$C$379)","v":""},null,{"$f":"IF($C$379=\"\",\"\",AN379/$C$379)","v":""},null,{"$f":"IF($C$379=\"\",\"\",AP379/$C$379)","v":""},null,{"$f":"IF($C$379=\"\",\"\",AR379/$C$379)","v":""},null,{"$f":"IF($C$379=\"\",\"\",AT379/$C$379)","v":""},null,{"$f":"IF($C$379=\"\",\"\",AV379/$C$379)","v":""},null,{"$f":"IF($C$379=\"\",\"\",AX379/$C$379)","v":""},null,{"$f":"IF($C$379=\"\",\"\",AZ379/$C$379)","v":""},null,{"$f":"IF($C$379=\"\",\"\",BB379/$C$379)","v":""},null,0]
[null,null,null,null,{"$f":"IF($C$380=\"\",\"\",F380/$C$380)","v":""},null,{"$f":"IF($C$380=\"\",\"\",H380/$C$380)","v":""},null,{"$f":"IF($C$380=\"\",\"\",J380/$C$380)","v":""},null,{"$f":"IF($C$380=\"\",\"\",L380/$C$380)","v":""},null,{"$f":"IF($C$380=\"\",\"\",N380/$C$380)","v":""},null,{"$f":"IF($C$380=\"\",\"\",P380/$C$380)","v":""},null,{"$f":"IF($C$380=\"\",\"\",R380/$C$380)","v":""},null,{"$f":"IF($C$380=\"\",\"\",T380/$C$380)","v":""},null,{"$f":"IF($C$380=\"\",\"\",V380/$C$380)","v":""},null,{"$f":"IF($C$380=\"\",\"\",X380/$C$380)","v":""},null,{"$f":"IF($C$380=\"\",\"\",Z380/$C$380)","v":""},null,{"$f":"IF($C$380=\"\",\"\",AB380/$C$380)","v":""},null,{"$f":"IF($C$380=\"\",\"\",AD380/$C$380)","v":""},null,{"$f":"IF($C$380=\"\",\"\",AF380/$C$380)","v":""},null,{"$f":"IF($C$380=\"\",\"\",AH380/$C$380)","v":""},null,{"$f":"IF($C$380=\"\",\"\",AJ380/$C$380)","v":""},null,{"$f":"IF($C$380=\"\",\"\",AL380/$C$380)","v":""},null,{"$f":"IF($C$380=\"\",\"\",AN380/$C$380)","v":""},null,{"$f":"IF($C$380=\"\",\"\",AP380/$C$380)","v":""},null,{"$f":"IF($C$380=\"\",\"\",AR380/$C$380)","v":""},null,{"$f":"IF($C$380=\"\",\"\",AT380/$C$380)","v":""},null,{"$f":"IF($C$380=\"\",\"\",AV380/$C$380)","v":""},null,{"$f":"IF($C$380=\"\",\"\",AX380/$C$380)","v":""},null,{"$f":"IF($C$380=\"\",\"\",AZ380/$C$380)","v":""},null,{"$f":"IF($C$380=\"\",\"\",BB380/$C$380)","v":""},null,0]
[null,null,null,null,{"$f":"IF($C$381=\"\",\"\",F381/$C$381)","v":""},null,{"$f":"IF($C$381=\"\",\"\",H381/$C$381)","v":""},null,{"$f":"IF($C$381=\"\",\"\",J381/$C$381)","v":""},null,{"$f":"IF($C$381=\"\",\"\",L381/$C$381)","v":""},null,{"$f":"IF($C$381=\"\",\"\",N381/$C$381)","v":""},null,{"$f":"IF($C$381=\"\",\"\",P381/$C$381)","v":""},null,{"$f":"IF($C$381=\"\",\"\",R381/$C$381)","v":""},null,{"$f":"IF($C$381=\"\",\"\",T381/$C$381)","v":""},null,{"$f":"IF($C$381=\"\",\"\",V381/$C$381)","v":""},null,{"$f":"IF($C$381=\"\",\"\",X381/$C$381)","v":""},null,{"$f":"IF($C$381=\"\",\"\",Z381/$C$381)","v":""},null,{"$f":"IF($C$381=\"\",\"\",AB381/$C$381)","v":""},null,{"$f":"IF($C$381=\"\",\"\",AD381/$C$381)","v":""},null,{"$f":"IF($C$381=\"\",\"\",AF381/$C$381)","v":""},null,{"$f":"IF($C$381=\"\",\"\",AH381/$C$381)","v":""},null,{"$f":"IF($C$381=\"\",\"\",AJ381/$C$381)","v":""},null,{"$f":"IF($C$381=\"\",\"\",AL381/$C$381)","v":""},null,{"$f":"IF($C$381=\"\",\"\",AN381/$C$381)","v":""},null,{"$f":"IF($C$381=\"\",\"\",AP381/$C$381)","v":""},null,{"$f":"IF($C$381=\"\",\"\",AR381/$C$381)","v":""},null,{"$f":"IF($C$381=\"\",\"\",AT381/$C$381)","v":""},null,{"$f":"IF($C$381=\"\",\"\",AV381/$C$381)","v":""},null,{"$f":"IF($C$381=\"\",\"\",AX381/$C$381)","v":""},null,{"$f":"IF($C$381=\"\",\"\",AZ381/$C$381)","v":""},null,{"$f":"IF($C$381=\"\",\"\",BB381/$C$381)","v":""},null,0]
[null,null,null,null,{"$f":"IF($C$382=\"\",\"\",F382/$C$382)","v":""},null,{"$f":"IF($C$382=\"\",\"\",H382/$C$382)","v":""},null,{"$f":"IF($C$382=\"\",\"\",J382/$C$382)","v":""},null,{"$f":"IF($C$382=\"\",\"\",L382/$C$382)","v":""},null,{"$f":"IF($C$382=\"\",\"\",N382/$C$382)","v":""},null,{"$f":"IF($C$382=\"\",\"\",P382/$C$382)","v":""},null,{"$f":"IF($C$382=\"\",\"\",R382/$C$382)","v":""},null,{"$f":"IF($C$382=\"\",\"\",T382/$C$382)","v":""},null,{"$f":"IF($C$382=\"\",\"\",V382/$C$382)","v":""},null,{"$f":"IF($C$382=\"\",\"\",X382/$C$382)","v":""},null,{"$f":"IF($C$382=\"\",\"\",Z382/$C$382)","v":""},null,{"$f":"IF($C$382=\"\",\"\",AB382/$C$382)","v":""},null,{"$f":"IF($C$382=\"\",\"\",AD382/$C$382)","v":""},null,{"$f":"IF($C$382=\"\",\"\",AF382/$C$382)","v":""},null,{"$f":"IF($C$382=\"\",\"\",AH382/$C$382)","v":""},null,{"$f":"IF($C$382=\"\",\"\",AJ382/$C$382)","v":""},null,{"$f":"IF($C$382=\"\",\"\",AL382/$C$382)","v":""},null,{"$f":"IF($C$382=\"\",\"\",AN382/$C$382)","v":""},null,{"$f":"IF($C$382=\"\",\"\",AP382/$C$382)","v":""},null,{"$f":"IF($C$382=\"\",\"\",AR382/$C$382)","v":""},null,{"$f":"IF($C$382=\"\",\"\",AT382/$C$382)","v":""},null,{"$f":"IF($C$382=\"\",\"\",AV382/$C$382)","v":""},null,{"$f":"IF($C$382=\"\",\"\",AX382/$C$382)","v":""},null,{"$f":"IF($C$382=\"\",\"\",AZ382/$C$382)","v":""},null,{"$f":"IF($C$382=\"\",\"\",BB382/$C$382)","v":""},null,0]
[null,null,null,null,{"$f":"IF($C$383=\"\",\"\",F383/$C$383)","v":""},null,{"$f":"IF($C$383=\"\",\"\",H383/$C$383)","v":""},null,{"$f":"IF($C$383=\"\",\"\",J383/$C$383)","v":""},null,{"$f":"IF($C$383=\"\",\"\",L383/$C$383)","v":""},null,{"$f":"IF($C$383=\"\",\"\",N383/$C$383)","v":""},null,{"$f":"IF($C$383=\"\",\"\",P383/$C$383)","v":""},null,{"$f":"IF($C$383=\"\",\"\",R383/$C$383)","v":""},null,{"$f":"IF($C$383=\"\",\"\",T383/$C$383)","v":""},null,{"$f":"IF($C$383=\"\",\"\",V383/$C$383)","v":""},null,{"$f":"IF($C$383=\"\",\"\",X383/$C$383)","v":""},null,{"$f":"IF($C$383=\"\",\"\",Z383/$C$383)","v":""},null,{"$f":"IF($C$383=\"\",\"\",AB383/$C$383)","v":""},null,{"$f":"IF($C$383=\"\",\"\",AD383/$C$383)","v":""},null,{"$f":"IF($C$383=\"\",\"\",AF383/$C$383)","v":""},null,{"$f":"IF($C$383=\"\",\"\",AH383/$C$383)","v":""},null,{"$f":"IF($C$383=\"\",\"\",AJ383/$C$383)","v":""},null,{"$f":"IF($C$383=\"\",\"\",AL383/$C$383)","v":""},null,{"$f":"IF($C$383=\"\",\"\",AN383/$C$383)","v":""},null,{"$f":"IF($C$383=\"\",\"\",AP383/$C$383)","v":""},null,{"$f":"IF($C$383=\"\",\"\",AR383/$C$383)","v":""},null,{"$f":"IF($C$383=\"\",\"\",AT383/$C$383)","v":""},null,{"$f":"IF($C$383=\"\",\"\",AV383/$C$383)","v":""},null,{"$f":"IF($C$383=\"\",\"\",AX383/$C$383)","v":""},null,{"$f":"IF($C$383=\"\",\"\",AZ383/$C$383)","v":""},null,{"$f":"IF($C$383=\"\",\"\",BB383/$C$383)","v":""},null,0]
[null,null,null,null,{"$f":"IF($C$384=\"\",\"\",F384/$C$384)","v":""},null,{"$f":"IF($C$384=\"\",\"\",H384/$C$384)","v":""},null,{"$f":"IF($C$384=\"\",\"\",J384/$C$384)","v":""},null,{"$f":"IF($C$384=\"\",\"\",L384/$C$384)","v":""},null,{"$f":"IF($C$384=\"\",\"\",N384/$C$384)","v":""},null,{"$f":"IF($C$384=\"\",\"\",P384/$C$384)","v":""},null,{"$f":"IF($C$384=\"\",\"\",R384/$C$384)","v":""},null,{"$f":"IF($C$384=\"\",\"\",T384/$C$384)","v":""},null,{"$f":"IF($C$384=\"\",\"\",V384/$C$384)","v":""},null,{"$f":"IF($C$384=\"\",\"\",X384/$C$384)","v":""},null,{"$f":"IF($C$384=\"\",\"\",Z384/$C$384)","v":""},null,{"$f":"IF($C$384=\"\",\"\",AB384/$C$384)","v":""},null,{"$f":"IF($C$384=\"\",\"\",AD384/$C$384)","v":""},null,{"$f":"IF($C$384=\"\",\"\",AF384/$C$384)","v":""},null,{"$f":"IF($C$384=\"\",\"\",AH384/$C$384)","v":""},null,{"$f":"IF($C$384=\"\",\"\",AJ384/$C$384)","v":""},null,{"$f":"IF($C$384=\"\",\"\",AL384/$C$384)","v":""},null,{"$f":"IF($C$384=\"\",\"\",AN384/$C$384)","v":""},null,{"$f":"IF($C$384=\"\",\"\",AP384/$C$384)","v":""},null,{"$f":"IF($C$384=\"\",\"\",AR384/$C$384)","v":""},null,{"$f":"IF($C$384=\"\",\"\",AT384/$C$384)","v":""},null,{"$f":"IF($C$384=\"\",\"\",AV384/$C$384)","v":""},null,{"$f":"IF($C$384=\"\",\"\",AX384/$C$384)","v":""},null,{"$f":"IF($C$384=\"\",\"\",AZ384/$C$384)","v":""},null,{"$f":"IF($C$384=\"\",\"\",BB384/$C$384)","v":""},null,0]
[null,null,null,null,{"$f":"IF($C$385=\"\",\"\",F385/$C$385)","v":""},null,{"$f":"IF($C$385=\"\",\"\",H385/$C$385)","v":""},null,{"$f":"IF($C$385=\"\",\"\",J385/$C$385)","v":""},null,{"$f":"IF($C$385=\"\",\"\",L385/$C$385)","v":""},null,{"$f":"IF($C$385=\"\",\"\",N385/$C$385)","v":""},null,{"$f":"IF($C$385=\"\",\"\",P385/$C$385)","v":""},null,{"$f":"IF($C$385=\"\",\"\",R385/$C$385)","v":""},null,{"$f":"IF($C$385=\"\",\"\",T385/$C$385)","v":""},null,{"$f":"IF($C$385=\"\",\"\",V385/$C$385)","v":""},null,{"$f":"IF($C$385=\"\",\"\",X385/$C$385)","v":""},null,{"$f":"IF($C$385=\"\",\"\",Z385/$C$385)","v":""},null,{"$f":"IF($C$385=\"\",\"\",AB385/$C$385)","v":""},null,{"$f":"IF($C$385=\"\",\"\",AD385/$C$385)","v":""},null,{"$f":"IF($C$385=\"\",\"\",AF385/$C$385)","v":""},null,{"$f":"IF($C$385=\"\",\"\",AH385/$C$385)","v":""},null,{"$f":"IF($C$385=\"\",\"\",AJ385/$C$385)","v":""},null,{"$f":"IF($C$385=\"\",\"\",AL385/$C$385)","v":""},null,{"$f":"IF($C$385=\"\",\"\",AN385/$C$385)","v":""},null,{"$f":"IF($C$385=\"\",\"\",AP385/$C$385)","v":""},null,{"$f":"IF($C$385=\"\",\"\",AR385/$C$385)","v":""},null,{"$f":"IF($C$385=\"\",\"\",AT385/$C$385)","v":""},null,{"$f":"IF($C$385=\"\",\"\",AV385/$C$385)","v":""},null,{"$f":"IF($C$385=\"\",\"\",AX385/$C$385)","v":""},null,{"$f":"IF($C$385=\"\",\"\",AZ385/$C$385)","v":""},null,{"$f":"IF($C$385=\"\",\"\",BB385/$C$385)","v":""},null,0]
[null,null,null,null,{"$f":"IF($C$386=\"\",\"\",F386/$C$386)","v":""},null,{"$f":"IF($C$386=\"\",\"\",H386/$C$386)","v":""},null,{"$f":"IF($C$386=\"\",\"\",J386/$C$386)","v":""},null,{"$f":"IF($C$386=\"\",\"\",L386/$C$386)","v":""},null,{"$f":"IF($C$386=\"\",\"\",N386/$C$386)","v":""},null,{"$f":"IF($C$386=\"\",\"\",P386/$C$386)","v":""},null,{"$f":"IF($C$386=\"\",\"\",R386/$C$386)","v":""},null,{"$f":"IF($C$386=\"\",\"\",T386/$C$386)","v":""},null,{"$f":"IF($C$386=\"\",\"\",V386/$C$386)","v":""},null,{"$f":"IF($C$386=\"\",\"\",X386/$C$386)","v":""},null,{"$f":"IF($C$386=\"\",\"\",Z386/$C$386)","v":""},null,{"$f":"IF($C$386=\"\",\"\",AB386/$C$386)","v":""},null,{"$f":"IF($C$386=\"\",\"\",AD386/$C$386)","v":""},null,{"$f":"IF($C$386=\"\",\"\",AF386/$C$386)","v":""},null,{"$f":"IF($C$386=\"\",\"\",AH386/$C$386)","v":""},null,{"$f":"IF($C$386=\"\",\"\",AJ386/$C$386)","v":""},null,{"$f":"IF($C$386=\"\",\"\",AL386/$C$386)","v":""},null,{"$f":"IF($C$386=\"\",\"\",AN386/$C$386)","v":""},null,{"$f":"IF($C$386=\"\",\"\",AP386/$C$386)","v":""},null,{"$f":"IF($C$386=\"\",\"\",AR386/$C$386)","v":""},null,{"$f":"IF($C$386=\"\",\"\",AT386/$C$386)","v":""},null,{"$f":"IF($C$386=\"\",\"\",AV386/$C$386)","v":""},null,{"$f":"IF($C$386=\"\",\"\",AX386/$C$386)","v":""},null,{"$f":"IF($C$386=\"\",\"\",AZ386/$C$386)","v":""},null,{"$f":"IF($C$386=\"\",\"\",BB386/$C$386)","v":""},null,0]
[null,null,null,null,{"$f":"IF($C$387=\"\",\"\",F387/$C$387)","v":""},null,{"$f":"IF($C$387=\"\",\"\",H387/$C$387)","v":""},null,{"$f":"IF($C$387=\"\",\"\",J387/$C$387)","v":""},null,{"$f":"IF($C$387=\"\",\"\",L387/$C$387)","v":""},null,{"$f":"IF($C$387=\"\",\"\",N387/$C$387)","v":""},null,{"$f":"IF($C$387=\"\",\"\",P387/$C$387)","v":""},null,{"$f":"IF($C$387=\"\",\"\",R387/$C$387)","v":""},null,{"$f":"IF($C$387=\"\",\"\",T387/$C$387)","v":""},null,{"$f":"IF($C$387=\"\",\"\",V387/$C$387)","v":""},null,{"$f":"IF($C$387=\"\",\"\",X387/$C$387)","v":""},null,{"$f":"IF($C$387=\"\",\"\",Z387/$C$387)","v":""},null,{"$f":"IF($C$387=\"\",\"\",AB387/$C$387)","v":""},null,{"$f":"IF($C$387=\"\",\"\",AD387/$C$387)","v":""},null,{"$f":"IF($C$387=\"\",\"\",AF387/$C$387)","v":""},null,{"$f":"IF($C$387=\"\",\"\",AH387/$C$387)","v":""},null,{"$f":"IF($C$387=\"\",\"\",AJ387/$C$387)","v":""},null,{"$f":"IF($C$387=\"\",\"\",AL387/$C$387)","v":""},null,{"$f":"IF($C$387=\"\",\"\",AN387/$C$387)","v":""},null,{"$f":"IF($C$387=\"\",\"\",AP387/$C$387)","v":""},null,{"$f":"IF($C$387=\"\",\"\",AR387/$C$387)","v":""},null,{"$f":"IF($C$387=\"\",\"\",AT387/$C$387)","v":""},null,{"$f":"IF($C$387=\"\",\"\",AV387/$C$387)","v":""},null,{"$f":"IF($C$387=\"\",\"\",AX387/$C$387)","v":""},null,{"$f":"IF($C$387=\"\",\"\",AZ387/$C$387)","v":""},null,{"$f":"IF($C$387=\"\",\"\",BB387/$C$387)","v":""},null,0]
[null,null,null,null,{"$f":"IF($C$388=\"\",\"\",F388/$C$388)","v":""},null,{"$f":"IF($C$388=\"\",\"\",H388/$C$388)","v":""},null,{"$f":"IF($C$388=\"\",\"\",J388/$C$388)","v":""},null,{"$f":"IF($C$388=\"\",\"\",L388/$C$388)","v":""},null,{"$f":"IF($C$388=\"\",\"\",N388/$C$388)","v":""},null,{"$f":"IF($C$388=\"\",\"\",P388/$C$388)","v":""},null,{"$f":"IF($C$388=\"\",\"\",R388/$C$388)","v":""},null,{"$f":"IF($C$388=\"\",\"\",T388/$C$388)","v":""},null,{"$f":"IF($C$388=\"\",\"\",V388/$C$388)","v":""},null,{"$f":"IF($C$388=\"\",\"\",X388/$C$388)","v":""},null,{"$f":"IF($C$388=\"\",\"\",Z388/$C$388)","v":""},null,{"$f":"IF($C$388=\"\",\"\",AB388/$C$388)","v":""},null,{"$f":"IF($C$388=\"\",\"\",AD388/$C$388)","v":""},null,{"$f":"IF($C$388=\"\",\"\",AF388/$C$388)","v":""},null,{"$f":"IF($C$388=\"\",\"\",AH388/$C$388)","v":""},null,{"$f":"IF($C$388=\"\",\"\",AJ388/$C$388)","v":""},null,{"$f":"IF($C$388=\"\",\"\",AL388/$C$388)","v":""},null,{"$f":"IF($C$388=\"\",\"\",AN388/$C$388)","v":""},null,{"$f":"IF($C$388=\"\",\"\",AP388/$C$388)","v":""},null,{"$f":"IF($C$388=\"\",\"\",AR388/$C$388)","v":""},null,{"$f":"IF($C$388=\"\",\"\",AT388/$C$388)","v":""},null,{"$f":"IF($C$388=\"\",\"\",AV388/$C$388)","v":""},null,{"$f":"IF($C$388=\"\",\"\",AX388/$C$388)","v":""},null,{"$f":"IF($C$388=\"\",\"\",AZ388/$C$388)","v":""},null,{"$f":"IF($C$388=\"\",\"\",BB388/$C$388)","v":""},null,0]
[null,null,null,null,{"$f":"IF($C$389=\"\",\"\",F389/$C$389)","v":""},null,{"$f":"IF($C$389=\"\",\"\",H389/$C$389)","v":""},null,{"$f":"IF($C$389=\"\",\"\",J389/$C$389)","v":""},null,{"$f":"IF($C$389=\"\",\"\",L389/$C$389)","v":""},null,{"$f":"IF($C$389=\"\",\"\",N389/$C$389)","v":""},null,{"$f":"IF($C$389=\"\",\"\",P389/$C$389)","v":""},null,{"$f":"IF($C$389=\"\",\"\",R389/$C$389)","v":""},null,{"$f":"IF($C$389=\"\",\"\",T389/$C$389)","v":""},null,{"$f":"IF($C$389=\"\",\"\",V389/$C$389)","v":""},null,{"$f":"IF($C$389=\"\",\"\",X389/$C$389)","v":""},null,{"$f":"IF($C$389=\"\",\"\",Z389/$C$389)","v":""},null,{"$f":"IF($C$389=\"\",\"\",AB389/$C$389)","v":""},null,{"$f":"IF($C$389=\"\",\"\",AD389/$C$389)","v":""},null,{"$f":"IF($C$389=\"\",\"\",AF389/$C$389)","v":""},null,{"$f":"IF($C$389=\"\",\"\",AH389/$C$389)","v":""},null,{"$f":"IF($C$389=\"\",\"\",AJ389/$C$389)","v":""},null,{"$f":"IF($C$389=\"\",\"\",AL389/$C$389)","v":""},null,{"$f":"IF($C$389=\"\",\"\",AN389/$C$389)","v":""},null,{"$f":"IF($C$389=\"\",\"\",AP389/$C$389)","v":""},null,{"$f":"IF($C$389=\"\",\"\",AR389/$C$389)","v":""},null,{"$f":"IF($C$389=\"\",\"\",AT389/$C$389)","v":""},null,{"$f":"IF($C$389=\"\",\"\",AV389/$C$389)","v":""},null,{"$f":"IF($C$389=\"\",\"\",AX389/$C$389)","v":""},null,{"$f":"IF($C$389=\"\",\"\",AZ389/$C$389)","v":""},null,{"$f":"IF($C$389=\"\",\"\",BB389/$C$389)","v":""},null,0]
[null,null,null,null,{"$f":"IF($C$390=\"\",\"\",F390/$C$390)","v":""},null,{"$f":"IF($C$390=\"\",\"\",H390/$C$390)","v":""},null,{"$f":"IF($C$390=\"\",\"\",J390/$C$390)","v":""},null,{"$f":"IF($C$390=\"\",\"\",L390/$C$390)","v":""},null,{"$f":"IF($C$390=\"\",\"\",N390/$C$390)","v":""},null,{"$f":"IF($C$390=\"\",\"\",P390/$C$390)","v":""},null,{"$f":"IF($C$390=\"\",\"\",R390/$C$390)","v":""},null,{"$f":"IF($C$390=\"\",\"\",T390/$C$390)","v":""},null,{"$f":"IF($C$390=\"\",\"\",V390/$C$390)","v":""},null,{"$f":"IF($C$390=\"\",\"\",X390/$C$390)","v":""},null,{"$f":"IF($C$390=\"\",\"\",Z390/$C$390)","v":""},null,{"$f":"IF($C$390=\"\",\"\",AB390/$C$390)","v":""},null,{"$f":"IF($C$390=\"\",\"\",AD390/$C$390)","v":""},null,{"$f":"IF($C$390=\"\",\"\",AF390/$C$390)","v":""},null,{"$f":"IF($C$390=\"\",\"\",AH390/$C$390)","v":""},null,{"$f":"IF($C$390=\"\",\"\",AJ390/$C$390)","v":""},null,{"$f":"IF($C$390=\"\",\"\",AL390/$C$390)","v":""},null,{"$f":"IF($C$390=\"\",\"\",AN390/$C$390)","v":""},null,{"$f":"IF($C$390=\"\",\"\",AP390/$C$390)","v":""},null,{"$f":"IF($C$390=\"\",\"\",AR390/$C$390)","v":""},null,{"$f":"IF($C$390=\"\",\"\",AT390/$C$390)","v":""},null,{"$f":"IF($C$390=\"\",\"\",AV390/$C$390)","v":""},null,{"$f":"IF($C$390=\"\",\"\",AX390/$C$390)","v":""},null,{"$f":"IF($C$390=\"\",\"\",AZ390/$C$390)","v":""},null,{"$f":"IF($C$390=\"\",\"\",BB390/$C$390)","v":""},null,0]
[null,null,null,null,{"$f":"IF($C$391=\"\",\"\",F391/$C$391)","v":""},null,{"$f":"IF($C$391=\"\",\"\",H391/$C$391)","v":""},null,{"$f":"IF($C$391=\"\",\"\",J391/$C$391)","v":""},null,{"$f":"IF($C$391=\"\",\"\",L391/$C$391)","v":""},null,{"$f":"IF($C$391=\"\",\"\",N391/$C$391)","v":""},null,{"$f":"IF($C$391=\"\",\"\",P391/$C$391)","v":""},null,{"$f":"IF($C$391=\"\",\"\",R391/$C$391)","v":""},null,{"$f":"IF($C$391=\"\",\"\",T391/$C$391)","v":""},null,{"$f":"IF($C$391=\"\",\"\",V391/$C$391)","v":""},null,{"$f":"IF($C$391=\"\",\"\",X391/$C$391)","v":""},null,{"$f":"IF($C$391=\"\",\"\",Z391/$C$391)","v":""},null,{"$f":"IF($C$391=\"\",\"\",AB391/$C$391)","v":""},null,{"$f":"IF($C$391=\"\",\"\",AD391/$C$391)","v":""},null,{"$f":"IF($C$391=\"\",\"\",AF391/$C$391)","v":""},null,{"$f":"IF($C$391=\"\",\"\",AH391/$C$391)","v":""},null,{"$f":"IF($C$391=\"\",\"\",AJ391/$C$391)","v":""},null,{"$f":"IF($C$391=\"\",\"\",AL391/$C$391)","v":""},null,{"$f":"IF($C$391=\"\",\"\",AN391/$C$391)","v":""},null,{"$f":"IF($C$391=\"\",\"\",AP391/$C$391)","v":""},null,{"$f":"IF($C$391=\"\",\"\",AR391/$C$391)","v":""},null,{"$f":"IF($C$391=\"\",\"\",AT391/$C$391)","v":""},null,{"$f":"IF($C$391=\"\",\"\",AV391/$C$391)","v":""},null,{"$f":"IF($C$391=\"\",\"\",AX391/$C$391)","v":""},null,{"$f":"IF($C$391=\"\",\"\",AZ391/$C$391)","v":""},null,{"$f":"IF($C$391=\"\",\"\",BB391/$C$391)","v":""},null,0]
[null,null,null,null,{"$f":"IF($C$392=\"\",\"\",F392/$C$392)","v":""},null,{"$f":"IF($C$392=\"\",\"\",H392/$C$392)","v":""},null,{"$f":"IF($C$392=\"\",\"\",J392/$C$392)","v":""},null,{"$f":"IF($C$392=\"\",\"\",L392/$C$392)","v":""},null,{"$f":"IF($C$392=\"\",\"\",N392/$C$392)","v":""},null,{"$f":"IF($C$392=\"\",\"\",P392/$C$392)","v":""},null,{"$f":"IF($C$392=\"\",\"\",R392/$C$392)","v":""},null,{"$f":"IF($C$392=\"\",\"\",T392/$C$392)","v":""},null,{"$f":"IF($C$392=\"\",\"\",V392/$C$392)","v":""},null,{"$f":"IF($C$392=\"\",\"\",X392/$C$392)","v":""},null,{"$f":"IF($C$392=\"\",\"\",Z392/$C$392)","v":""},null,{"$f":"IF($C$392=\"\",\"\",AB392/$C$392)","v":""},null,{"$f":"IF($C$392=\"\",\"\",AD392/$C$392)","v":""},null,{"$f":"IF($C$392=\"\",\"\",AF392/$C$392)","v":""},null,{"$f":"IF($C$392=\"\",\"\",AH392/$C$392)","v":""},null,{"$f":"IF($C$392=\"\",\"\",AJ392/$C$392)","v":""},null,{"$f":"IF($C$392=\"\",\"\",AL392/$C$392)","v":""},null,{"$f":"IF($C$392=\"\",\"\",AN392/$C$392)","v":""},null,{"$f":"IF($C$392=\"\",\"\",AP392/$C$392)","v":""},null,{"$f":"IF($C$392=\"\",\"\",AR392/$C$392)","v":""},null,{"$f":"IF($C$392=\"\",\"\",AT392/$C$392)","v":""},null,{"$f":"IF($C$392=\"\",\"\",AV392/$C$392)","v":""},null,{"$f":"IF($C$392=\"\",\"\",AX392/$C$392)","v":""},null,{"$f":"IF($C$392=\"\",\"\",AZ392/$C$392)","v":""},null,{"$f":"IF($C$392=\"\",\"\",BB392/$C$392)","v":""},null,0]
[null,null,null,null,{"$f":"IF($C$393=\"\",\"\",F393/$C$393)","v":""},null,{"$f":"IF($C$393=\"\",\"\",H393/$C$393)","v":""},null,{"$f":"IF($C$393=\"\",\"\",J393/$C$393)","v":""},null,{"$f":"IF($C$393=\"\",\"\",L393/$C$393)","v":""},null,{"$f":"IF($C$393=\"\",\"\",N393/$C$393)","v":""},null,{"$f":"IF($C$393=\"\",\"\",P393/$C$393)","v":""},null,{"$f":"IF($C$393=\"\",\"\",R393/$C$393)","v":""},null,{"$f":"IF($C$393=\"\",\"\",T393/$C$393)","v":""},null,{"$f":"IF($C$393=\"\",\"\",V393/$C$393)","v":""},null,{"$f":"IF($C$393=\"\",\"\",X393/$C$393)","v":""},null,{"$f":"IF($C$393=\"\",\"\",Z393/$C$393)","v":""},null,{"$f":"IF($C$393=\"\",\"\",AB393/$C$393)","v":""},null,{"$f":"IF($C$393=\"\",\"\",AD393/$C$393)","v":""},null,{"$f":"IF($C$393=\"\",\"\",AF393/$C$393)","v":""},null,{"$f":"IF($C$393=\"\",\"\",AH393/$C$393)","v":""},null,{"$f":"IF($C$393=\"\",\"\",AJ393/$C$393)","v":""},null,{"$f":"IF($C$393=\"\",\"\",AL393/$C$393)","v":""},null,{"$f":"IF($C$393=\"\",\"\",AN393/$C$393)","v":""},null,{"$f":"IF($C$393=\"\",\"\",AP393/$C$393)","v":""},null,{"$f":"IF($C$393=\"\",\"\",AR393/$C$393)","v":""},null,{"$f":"IF($C$393=\"\",\"\",AT393/$C$393)","v":""},null,{"$f":"IF($C$393=\"\",\"\",AV393/$C$393)","v":""},null,{"$f":"IF($C$393=\"\",\"\",AX393/$C$393)","v":""},null,{"$f":"IF($C$393=\"\",\"\",AZ393/$C$393)","v":""},null,{"$f":"IF($C$393=\"\",\"\",BB393/$C$393)","v":""},null,0]
[null,null,null,null,{"$f":"IF($C$394=\"\",\"\",F394/$C$394)","v":""},null,{"$f":"IF($C$394=\"\",\"\",H394/$C$394)","v":""},null,{"$f":"IF($C$394=\"\",\"\",J394/$C$394)","v":""},null,{"$f":"IF($C$394=\"\",\"\",L394/$C$394)","v":""},null,{"$f":"IF($C$394=\"\",\"\",N394/$C$394)","v":""},null,{"$f":"IF($C$394=\"\",\"\",P394/$C$394)","v":""},null,{"$f":"IF($C$394=\"\",\"\",R394/$C$394)","v":""},null,{"$f":"IF($C$394=\"\",\"\",T394/$C$394)","v":""},null,{"$f":"IF($C$394=\"\",\"\",V394/$C$394)","v":""},null,{"$f":"IF($C$394=\"\",\"\",X394/$C$394)","v":""},null,{"$f":"IF($C$394=\"\",\"\",Z394/$C$394)","v":""},null,{"$f":"IF($C$394=\"\",\"\",AB394/$C$394)","v":""},null,{"$f":"IF($C$394=\"\",\"\",AD394/$C$394)","v":""},null,{"$f":"IF($C$394=\"\",\"\",AF394/$C$394)","v":""},null,{"$f":"IF($C$394=\"\",\"\",AH394/$C$394)","v":""},null,{"$f":"IF($C$394=\"\",\"\",AJ394/$C$394)","v":""},null,{"$f":"IF($C$394=\"\",\"\",AL394/$C$394)","v":""},null,{"$f":"IF($C$394=\"\",\"\",AN394/$C$394)","v":""},null,{"$f":"IF($C$394=\"\",\"\",AP394/$C$394)","v":""},null,{"$f":"IF($C$394=\"\",\"\",AR394/$C$394)","v":""},null,{"$f":"IF($C$394=\"\",\"\",AT394/$C$394)","v":""},null,{"$f":"IF($C$394=\"\",\"\",AV394/$C$394)","v":""},null,{"$f":"IF($C$394=\"\",\"\",AX394/$C$394)","v":""},null,{"$f":"IF($C$394=\"\",\"\",AZ394/$C$394)","v":""},null,{"$f":"IF($C$394=\"\",\"\",BB394/$C$394)","v":""},null,0]
[null,null,null,null,{"$f":"IF($C$395=\"\",\"\",F395/$C$395)","v":""},null,{"$f":"IF($C$395=\"\",\"\",H395/$C$395)","v":""},null,{"$f":"IF($C$395=\"\",\"\",J395/$C$395)","v":""},null,{"$f":"IF($C$395=\"\",\"\",L395/$C$395)","v":""},null,{"$f":"IF($C$395=\"\",\"\",N395/$C$395)","v":""},null,{"$f":"IF($C$395=\"\",\"\",P395/$C$395)","v":""},null,{"$f":"IF($C$395=\"\",\"\",R395/$C$395)","v":""},null,{"$f":"IF($C$395=\"\",\"\",T395/$C$395)","v":""},null,{"$f":"IF($C$395=\"\",\"\",V395/$C$395)","v":""},null,{"$f":"IF($C$395=\"\",\"\",X395/$C$395)","v":""},null,{"$f":"IF($C$395=\"\",\"\",Z395/$C$395)","v":""},null,{"$f":"IF($C$395=\"\",\"\",AB395/$C$395)","v":""},null,{"$f":"IF($C$395=\"\",\"\",AD395/$C$395)","v":""},null,{"$f":"IF($C$395=\"\",\"\",AF395/$C$395)","v":""},null,{"$f":"IF($C$395=\"\",\"\",AH395/$C$395)","v":""},null,{"$f":"IF($C$395=\"\",\"\",AJ395/$C$395)","v":""},null,{"$f":"IF($C$395=\"\",\"\",AL395/$C$395)","v":""},null,{"$f":"IF($C$395=\"\",\"\",AN395/$C$395)","v":""},null,{"$f":"IF($C$395=\"\",\"\",AP395/$C$395)","v":""},null,{"$f":"IF($C$395=\"\",\"\",AR395/$C$395)","v":""},null,{"$f":"IF($C$395=\"\",\"\",AT395/$C$395)","v":""},null,{"$f":"IF($C$395=\"\",\"\",AV395/$C$395)","v":""},null,{"$f":"IF($C$395=\"\",\"\",AX395/$C$395)","v":""},null,{"$f":"IF($C$395=\"\",\"\",AZ395/$C$395)","v":""},null,{"$f":"IF($C$395=\"\",\"\",BB395/$C$395)","v":""},null,0]
[null,null,null,null,{"$f":"IF($C$396=\"\",\"\",F396/$C$396)","v":""},null,{"$f":"IF($C$396=\"\",\"\",H396/$C$396)","v":""},null,{"$f":"IF($C$396=\"\",\"\",J396/$C$396)","v":""},null,{"$f":"IF($C$396=\"\",\"\",L396/$C$396)","v":""},null,{"$f":"IF($C$396=\"\",\"\",N396/$C$396)","v":""},null,{"$f":"IF($C$396=\"\",\"\",P396/$C$396)","v":""},null,{"$f":"IF($C$396=\"\",\"\",R396/$C$396)","v":""},null,{"$f":"IF($C$396=\"\",\"\",T396/$C$396)","v":""},null,{"$f":"IF($C$396=\"\",\"\",V396/$C$396)","v":""},null,{"$f":"IF($C$396=\"\",\"\",X396/$C$396)","v":""},null,{"$f":"IF($C$396=\"\",\"\",Z396/$C$396)","v":""},null,{"$f":"IF($C$396=\"\",\"\",AB396/$C$396)","v":""},null,{"$f":"IF($C$396=\"\",\"\",AD396/$C$396)","v":""},null,{"$f":"IF($C$396=\"\",\"\",AF396/$C$396)","v":""},null,{"$f":"IF($C$396=\"\",\"\",AH396/$C$396)","v":""},null,{"$f":"IF($C$396=\"\",\"\",AJ396/$C$396)","v":""},null,{"$f":"IF($C$396=\"\",\"\",AL396/$C$396)","v":""},null,{"$f":"IF($C$396=\"\",\"\",AN396/$C$396)","v":""},null,{"$f":"IF($C$396=\"\",\"\",AP396/$C$396)","v":""},null,{"$f":"IF($C$396=\"\",\"\",AR396/$C$396)","v":""},null,{"$f":"IF($C$396=\"\",\"\",AT396/$C$396)","v":""},null,{"$f":"IF($C$396=\"\",\"\",AV396/$C$396)","v":""},null,{"$f":"IF($C$396=\"\",\"\",AX396/$C$396)","v":""},null,{"$f":"IF($C$396=\"\",\"\",AZ396/$C$396)","v":""},null,{"$f":"IF($C$396=\"\",\"\",BB396/$C$396)","v":""},null,0]
[null,null,null,null,{"$f":"IF($C$397=\"\",\"\",F397/$C$397)","v":""},null,{"$f":"IF($C$397=\"\",\"\",H397/$C$397)","v":""},null,{"$f":"IF($C$397=\"\",\"\",J397/$C$397)","v":""},null,{"$f":"IF($C$397=\"\",\"\",L397/$C$397)","v":""},null,{"$f":"IF($C$397=\"\",\"\",N397/$C$397)","v":""},null,{"$f":"IF($C$397=\"\",\"\",P397/$C$397)","v":""},null,{"$f":"IF($C$397=\"\",\"\",R397/$C$397)","v":""},null,{"$f":"IF($C$397=\"\",\"\",T397/$C$397)","v":""},null,{"$f":"IF($C$397=\"\",\"\",V397/$C$397)","v":""},null,{"$f":"IF($C$397=\"\",\"\",X397/$C$397)","v":""},null,{"$f":"IF($C$397=\"\",\"\",Z397/$C$397)","v":""},null,{"$f":"IF($C$397=\"\",\"\",AB397/$C$397)","v":""},null,{"$f":"IF($C$397=\"\",\"\",AD397/$C$397)","v":""},null,{"$f":"IF($C$397=\"\",\"\",AF397/$C$397)","v":""},null,{"$f":"IF($C$397=\"\",\"\",AH397/$C$397)","v":""},null,{"$f":"IF($C$397=\"\",\"\",AJ397/$C$397)","v":""},null,{"$f":"IF($C$397=\"\",\"\",AL397/$C$397)","v":""},null,{"$f":"IF($C$397=\"\",\"\",AN397/$C$397)","v":""},null,{"$f":"IF($C$397=\"\",\"\",AP397/$C$397)","v":""},null,{"$f":"IF($C$397=\"\",\"\",AR397/$C$397)","v":""},null,{"$f":"IF($C$397=\"\",\"\",AT397/$C$397)","v":""},null,{"$f":"IF($C$397=\"\",\"\",AV397/$C$397)","v":""},null,{"$f":"IF($C$397=\"\",\"\",AX397/$C$397)","v":""},null,{"$f":"IF($C$397=\"\",\"\",AZ397/$C$397)","v":""},null,{"$f":"IF($C$397=\"\",\"\",BB397/$C$397)","v":""},null,0]
[null,null,null,null,{"$f":"IF($C$398=\"\",\"\",F398/$C$398)","v":""},null,{"$f":"IF($C$398=\"\",\"\",H398/$C$398)","v":""},null,{"$f":"IF($C$398=\"\",\"\",J398/$C$398)","v":""},null,{"$f":"IF($C$398=\"\",\"\",L398/$C$398)","v":""},null,{"$f":"IF($C$398=\"\",\"\",N398/$C$398)","v":""},null,{"$f":"IF($C$398=\"\",\"\",P398/$C$398)","v":""},null,{"$f":"IF($C$398=\"\",\"\",R398/$C$398)","v":""},null,{"$f":"IF($C$398=\"\",\"\",T398/$C$398)","v":""},null,{"$f":"IF($C$398=\"\",\"\",V398/$C$398)","v":""},null,{"$f":"IF($C$398=\"\",\"\",X398/$C$398)","v":""},null,{"$f":"IF($C$398=\"\",\"\",Z398/$C$398)","v":""},null,{"$f":"IF($C$398=\"\",\"\",AB398/$C$398)","v":""},null,{"$f":"IF($C$398=\"\",\"\",AD398/$C$398)","v":""},null,{"$f":"IF($C$398=\"\",\"\",AF398/$C$398)","v":""},null,{"$f":"IF($C$398=\"\",\"\",AH398/$C$398)","v":""},null,{"$f":"IF($C$398=\"\",\"\",AJ398/$C$398)","v":""},null,{"$f":"IF($C$398=\"\",\"\",AL398/$C$398)","v":""},null,{"$f":"IF($C$398=\"\",\"\",AN398/$C$398)","v":""},null,{"$f":"IF($C$398=\"\",\"\",AP398/$C$398)","v":""},null,{"$f":"IF($C$398=\"\",\"\",AR398/$C$398)","v":""},null,{"$f":"IF($C$398=\"\",\"\",AT398/$C$398)","v":""},null,{"$f":"IF($C$398=\"\",\"\",AV398/$C$398)","v":""},null,{"$f":"IF($C$398=\"\",\"\",AX398/$C$398)","v":""},null,{"$f":"IF($C$398=\"\",\"\",AZ398/$C$398)","v":""},null,{"$f":"IF($C$398=\"\",\"\",BB398/$C$398)","v":""},null,0]
[null,null,null,null,{"$f":"IF($C$399=\"\",\"\",F399/$C$399)","v":""},null,{"$f":"IF($C$399=\"\",\"\",H399/$C$399)","v":""},null,{"$f":"IF($C$399=\"\",\"\",J399/$C$399)","v":""},null,{"$f":"IF($C$399=\"\",\"\",L399/$C$399)","v":""},null,{"$f":"IF($C$399=\"\",\"\",N399/$C$399)","v":""},null,{"$f":"IF($C$399=\"\",\"\",P399/$C$399)","v":""},null,{"$f":"IF($C$399=\"\",\"\",R399/$C$399)","v":""},null,{"$f":"IF($C$399=\"\",\"\",T399/$C$399)","v":""},null,{"$f":"IF($C$399=\"\",\"\",V399/$C$399)","v":""},null,{"$f":"IF($C$399=\"\",\"\",X399/$C$399)","v":""},null,{"$f":"IF($C$399=\"\",\"\",Z399/$C$399)","v":""},null,{"$f":"IF($C$399=\"\",\"\",AB399/$C$399)","v":""},null,{"$f":"IF($C$399=\"\",\"\",AD399/$C$399)","v":""},null,{"$f":"IF($C$399=\"\",\"\",AF399/$C$399)","v":""},null,{"$f":"IF($C$399=\"\",\"\",AH399/$C$399)","v":""},null,{"$f":"IF($C$399=\"\",\"\",AJ399/$C$399)","v":""},null,{"$f":"IF($C$399=\"\",\"\",AL399/$C$399)","v":""},null,{"$f":"IF($C$399=\"\",\"\",AN399/$C$399)","v":""},null,{"$f":"IF($C$399=\"\",\"\",AP399/$C$399)","v":""},null,{"$f":"IF($C$399=\"\",\"\",AR399/$C$399)","v":""},null,{"$f":"IF($C$399=\"\",\"\",AT399/$C$399)","v":""},null,{"$f":"IF($C$399=\"\",\"\",AV399/$C$399)","v":""},null,{"$f":"IF($C$399=\"\",\"\",AX399/$C$399)","v":""},null,{"$f":"IF($C$399=\"\",\"\",AZ399/$C$399)","v":""},null,{"$f":"IF($C$399=\"\",\"\",BB399/$C$399)","v":""},null,0]
[null,null,null,null,{"$f":"IF($C$400=\"\",\"\",F400/$C$400)","v":""},null,{"$f":"IF($C$400=\"\",\"\",H400/$C$400)","v":""},null,{"$f":"IF($C$400=\"\",\"\",J400/$C$400)","v":""},null,{"$f":"IF($C$400=\"\",\"\",L400/$C$400)","v":""},null,{"$f":"IF($C$400=\"\",\"\",N400/$C$400)","v":""},null,{"$f":"IF($C$400=\"\",\"\",P400/$C$400)","v":""},null,{"$f":"IF($C$400=\"\",\"\",R400/$C$400)","v":""},null,{"$f":"IF($C$400=\"\",\"\",T400/$C$400)","v":""},null,{"$f":"IF($C$400=\"\",\"\",V400/$C$400)","v":""},null,{"$f":"IF($C$400=\"\",\"\",X400/$C$400)","v":""},null,{"$f":"IF($C$400=\"\",\"\",Z400/$C$400)","v":""},null,{"$f":"IF($C$400=\"\",\"\",AB400/$C$400)","v":""},null,{"$f":"IF($C$400=\"\",\"\",AD400/$C$400)","v":""},null,{"$f":"IF($C$400=\"\",\"\",AF400/$C$400)","v":""},null,{"$f":"IF($C$400=\"\",\"\",AH400/$C$400)","v":""},null,{"$f":"IF($C$400=\"\",\"\",AJ400/$C$400)","v":""},null,{"$f":"IF($C$400=\"\",\"\",AL400/$C$400)","v":""},null,{"$f":"IF($C$400=\"\",\"\",AN400/$C$400)","v":""},null,{"$f":"IF($C$400=\"\",\"\",AP400/$C$400)","v":""},null,{"$f":"IF($C$400=\"\",\"\",AR400/$C$400)","v":""},null,{"$f":"IF($C$400=\"\",\"\",AT400/$C$400)","v":""},null,{"$f":"IF($C$400=\"\",\"\",AV400/$C$400)","v":""},null,{"$f":"IF($C$400=\"\",\"\",AX400/$C$400)","v":""},null,{"$f":"IF($C$400=\"\",\"\",AZ400/$C$400)","v":""},null,{"$f":"IF($C$400=\"\",\"\",BB400/$C$400)","v":""},null,0]
[null,null,null,null,{"$f":"IF($C$401=\"\",\"\",F401/$C$401)","v":""},null,{"$f":"IF($C$401=\"\",\"\",H401/$C$401)","v":""},null,{"$f":"IF($C$401=\"\",\"\",J401/$C$401)","v":""},null,{"$f":"IF($C$401=\"\",\"\",L401/$C$401)","v":""},null,{"$f":"IF($C$401=\"\",\"\",N401/$C$401)","v":""},null,{"$f":"IF($C$401=\"\",\"\",P401/$C$401)","v":""},null,{"$f":"IF($C$401=\"\",\"\",R401/$C$401)","v":""},null,{"$f":"IF($C$401=\"\",\"\",T401/$C$401)","v":""},null,{"$f":"IF($C$401=\"\",\"\",V401/$C$401)","v":""},null,{"$f":"IF($C$401=\"\",\"\",X401/$C$401)","v":""},null,{"$f":"IF($C$401=\"\",\"\",Z401/$C$401)","v":""},null,{"$f":"IF($C$401=\"\",\"\",AB401/$C$401)","v":""},null,{"$f":"IF($C$401=\"\",\"\",AD401/$C$401)","v":""},null,{"$f":"IF($C$401=\"\",\"\",AF401/$C$401)","v":""},null,{"$f":"IF($C$401=\"\",\"\",AH401/$C$401)","v":""},null,{"$f":"IF($C$401=\"\",\"\",AJ401/$C$401)","v":""},null,{"$f":"IF($C$401=\"\",\"\",AL401/$C$401)","v":""},null,{"$f":"IF($C$401=\"\",\"\",AN401/$C$401)","v":""},null,{"$f":"IF($C$401=\"\",\"\",AP401/$C$401)","v":""},null,{"$f":"IF($C$401=\"\",\"\",AR401/$C$401)","v":""},null,{"$f":"IF($C$401=\"\",\"\",AT401/$C$401)","v":""},null,{"$f":"IF($C$401=\"\",\"\",AV401/$C$401)","v":""},null,{"$f":"IF($C$401=\"\",\"\",AX401/$C$401)","v":""},null,{"$f":"IF($C$401=\"\",\"\",AZ401/$C$401)","v":""},null,{"$f":"IF($C$401=\"\",\"\",BB401/$C$401)","v":""},null,0]
[null,null,null,null,{"$f":"IF($C$402=\"\",\"\",F402/$C$402)","v":""},null,{"$f":"IF($C$402=\"\",\"\",H402/$C$402)","v":""},null,{"$f":"IF($C$402=\"\",\"\",J402/$C$402)","v":""},null,{"$f":"IF($C$402=\"\",\"\",L402/$C$402)","v":""},null,{"$f":"IF($C$402=\"\",\"\",N402/$C$402)","v":""},null,{"$f":"IF($C$402=\"\",\"\",P402/$C$402)","v":""},null,{"$f":"IF($C$402=\"\",\"\",R402/$C$402)","v":""},null,{"$f":"IF($C$402=\"\",\"\",T402/$C$402)","v":""},null,{"$f":"IF($C$402=\"\",\"\",V402/$C$402)","v":""},null,{"$f":"IF($C$402=\"\",\"\",X402/$C$402)","v":""},null,{"$f":"IF($C$402=\"\",\"\",Z402/$C$402)","v":""},null,{"$f":"IF($C$402=\"\",\"\",AB402/$C$402)","v":""},null,{"$f":"IF($C$402=\"\",\"\",AD402/$C$402)","v":""},null,{"$f":"IF($C$402=\"\",\"\",AF402/$C$402)","v":""},null,{"$f":"IF($C$402=\"\",\"\",AH402/$C$402)","v":""},null,{"$f":"IF($C$402=\"\",\"\",AJ402/$C$402)","v":""},null,{"$f":"IF($C$402=\"\",\"\",AL402/$C$402)","v":""},null,{"$f":"IF($C$402=\"\",\"\",AN402/$C$402)","v":""},null,{"$f":"IF($C$402=\"\",\"\",AP402/$C$402)","v":""},null,{"$f":"IF($C$402=\"\",\"\",AR402/$C$402)","v":""},null,{"$f":"IF($C$402=\"\",\"\",AT402/$C$402)","v":""},null,{"$f":"IF($C$402=\"\",\"\",AV402/$C$402)","v":""},null,{"$f":"IF($C$402=\"\",\"\",AX402/$C$402)","v":""},null,{"$f":"IF($C$402=\"\",\"\",AZ402/$C$402)","v":""},null,{"$f":"IF($C$402=\"\",\"\",BB402/$C$402)","v":""},null,0]
[null,null,null,null,{"$f":"IF($C$403=\"\",\"\",F403/$C$403)","v":""},null,{"$f":"IF($C$403=\"\",\"\",H403/$C$403)","v":""},null,{"$f":"IF($C$403=\"\",\"\",J403/$C$403)","v":""},null,{"$f":"IF($C$403=\"\",\"\",L403/$C$403)","v":""},null,{"$f":"IF($C$403=\"\",\"\",N403/$C$403)","v":""},null,{"$f":"IF($C$403=\"\",\"\",P403/$C$403)","v":""},null,{"$f":"IF($C$403=\"\",\"\",R403/$C$403)","v":""},null,{"$f":"IF($C$403=\"\",\"\",T403/$C$403)","v":""},null,{"$f":"IF($C$403=\"\",\"\",V403/$C$403)","v":""},null,{"$f":"IF($C$403=\"\",\"\",X403/$C$403)","v":""},null,{"$f":"IF($C$403=\"\",\"\",Z403/$C$403)","v":""},null,{"$f":"IF($C$403=\"\",\"\",AB403/$C$403)","v":""},null,{"$f":"IF($C$403=\"\",\"\",AD403/$C$403)","v":""},null,{"$f":"IF($C$403=\"\",\"\",AF403/$C$403)","v":""},null,{"$f":"IF($C$403=\"\",\"\",AH403/$C$403)","v":""},null,{"$f":"IF($C$403=\"\",\"\",AJ403/$C$403)","v":""},null,{"$f":"IF($C$403=\"\",\"\",AL403/$C$403)","v":""},null,{"$f":"IF($C$403=\"\",\"\",AN403/$C$403)","v":""},null,{"$f":"IF($C$403=\"\",\"\",AP403/$C$403)","v":""},null,{"$f":"IF($C$403=\"\",\"\",AR403/$C$403)","v":""},null,{"$f":"IF($C$403=\"\",\"\",AT403/$C$403)","v":""},null,{"$f":"IF($C$403=\"\",\"\",AV403/$C$403)","v":""},null,{"$f":"IF($C$403=\"\",\"\",AX403/$C$403)","v":""},null,{"$f":"IF($C$403=\"\",\"\",AZ403/$C$403)","v":""},null,{"$f":"IF($C$403=\"\",\"\",BB403/$C$403)","v":""},null,0]
[null,null,null,null,{"$f":"IF($C$404=\"\",\"\",F404/$C$404)","v":""},null,{"$f":"IF($C$404=\"\",\"\",H404/$C$404)","v":""},null,{"$f":"IF($C$404=\"\",\"\",J404/$C$404)","v":""},null,{"$f":"IF($C$404=\"\",\"\",L404/$C$404)","v":""},null,{"$f":"IF($C$404=\"\",\"\",N404/$C$404)","v":""},null,{"$f":"IF($C$404=\"\",\"\",P404/$C$404)","v":""},null,{"$f":"IF($C$404=\"\",\"\",R404/$C$404)","v":""},null,{"$f":"IF($C$404=\"\",\"\",T404/$C$404)","v":""},null,{"$f":"IF($C$404=\"\",\"\",V404/$C$404)","v":""},null,{"$f":"IF($C$404=\"\",\"\",X404/$C$404)","v":""},null,{"$f":"IF($C$404=\"\",\"\",Z404/$C$404)","v":""},null,{"$f":"IF($C$404=\"\",\"\",AB404/$C$404)","v":""},null,{"$f":"IF($C$404=\"\",\"\",AD404/$C$404)","v":""},null,{"$f":"IF($C$404=\"\",\"\",AF404/$C$404)","v":""},null,{"$f":"IF($C$404=\"\",\"\",AH404/$C$404)","v":""},null,{"$f":"IF($C$404=\"\",\"\",AJ404/$C$404)","v":""},null,{"$f":"IF($C$404=\"\",\"\",AL404/$C$404)","v":""},null,{"$f":"IF($C$404=\"\",\"\",AN404/$C$404)","v":""},null,{"$f":"IF($C$404=\"\",\"\",AP404/$C$404)","v":""},null,{"$f":"IF($C$404=\"\",\"\",AR404/$C$404)","v":""},null,{"$f":"IF($C$404=\"\",\"\",AT404/$C$404)","v":""},null,{"$f":"IF($C$404=\"\",\"\",AV404/$C$404)","v":""},null,{"$f":"IF($C$404=\"\",\"\",AX404/$C$404)","v":""},null,{"$f":"IF($C$404=\"\",\"\",AZ404/$C$404)","v":""},null,{"$f":"IF($C$404=\"\",\"\",BB404/$C$404)","v":""},null,0]
[null,null,null,null,{"$f":"IF($C$405=\"\",\"\",F405/$C$405)","v":""},null,{"$f":"IF($C$405=\"\",\"\",H405/$C$405)","v":""},null,{"$f":"IF($C$405=\"\",\"\",J405/$C$405)","v":""},null,{"$f":"IF($C$405=\"\",\"\",L405/$C$405)","v":""},null,{"$f":"IF($C$405=\"\",\"\",N405/$C$405)","v":""},null,{"$f":"IF($C$405=\"\",\"\",P405/$C$405)","v":""},null,{"$f":"IF($C$405=\"\",\"\",R405/$C$405)","v":""},null,{"$f":"IF($C$405=\"\",\"\",T405/$C$405)","v":""},null,{"$f":"IF($C$405=\"\",\"\",V405/$C$405)","v":""},null,{"$f":"IF($C$405=\"\",\"\",X405/$C$405)","v":""},null,{"$f":"IF($C$405=\"\",\"\",Z405/$C$405)","v":""},null,{"$f":"IF($C$405=\"\",\"\",AB405/$C$405)","v":""},null,{"$f":"IF($C$405=\"\",\"\",AD405/$C$405)","v":""},null,{"$f":"IF($C$405=\"\",\"\",AF405/$C$405)","v":""},null,{"$f":"IF($C$405=\"\",\"\",AH405/$C$405)","v":""},null,{"$f":"IF($C$405=\"\",\"\",AJ405/$C$405)","v":""},null,{"$f":"IF($C$405=\"\",\"\",AL405/$C$405)","v":""},null,{"$f":"IF($C$405=\"\",\"\",AN405/$C$405)","v":""},null,{"$f":"IF($C$405=\"\",\"\",AP405/$C$405)","v":""},null,{"$f":"IF($C$405=\"\",\"\",AR405/$C$405)","v":""},null,{"$f":"IF($C$405=\"\",\"\",AT405/$C$405)","v":""},null,{"$f":"IF($C$405=\"\",\"\",AV405/$C$405)","v":""},null,{"$f":"IF($C$405=\"\",\"\",AX405/$C$405)","v":""},null,{"$f":"IF($C$405=\"\",\"\",AZ405/$C$405)","v":""},null,{"$f":"IF($C$405=\"\",\"\",BB405/$C$405)","v":""},null,{"$f":"SUM(BB405,AZ405,AX405,AV405,AT405,AR405,AP405,AN405,AL405,AJ405,AH405,AF405,AD405,AB405,Z405,X405,V405,T405,R405,P405,N405,L405,J405,H405,F405)","v":0}]
["TOTAL HOURS",null,null,null,null,{"$f":"SUM(F376:F405)","v":0},null,{"$f":"SUM(H376:H405)","v":0},null,{"$f":"SUM(J376:J405)","v":0},null,{"$f":"SUM(L376:L405)","v":0},null,{"$f":"SUM(N376:N405)","v":0},null,{"$f":"SUM(P376:P405)","v":0},null,{"$f":"SUM(R376:R405)","v":0},null,{"$f":"SUM(T376:T405)","v":0},null,{"$f":"SUM(V376:V405)","v":0},null,{"$f":"SUM(X376:X405)","v":0},null,{"$f":"SUM(Z376:Z405)","v":0},null,{"$f":"SUM(AB376:AB405)","v":0},null,{"$f":"SUM(AD376:AD405)","v":0},null,{"$f":"SUM(AF376:AF405)","v":0},null,{"$f":"SUM(AH376:AH405)","v":0},null,{"$f":"SUM(AJ376:AJ405)","v":0},null,{"$f":"SUM(AL376:AL405)","v":0},null,{"$f":"SUM(AN376:AN405)","v":0},null,{"$f":"SUM(AP376:AP405)","v":0},null,{"$f":"SUM(AR376:AR405)","v":0},null,{"$f":"SUM(AT376:AT405)","v":0},null,{"$f":"SUM(AV376:AV405)","v":0},null,{"$f":"SUM(AX376:AX405)","v":0},null,{"$f":"SUM(AZ376:AZ405)","v":0},null,{"$f":"SUM(BB376:BB405)","v":0},{"$f":"SUM(E406:BB406)","v":0}]
["TOTAL WORKDAYS",null,null,null,null,{"$f":"F406/8","v":0},null,{"$f":"H406/8","v":0},null,{"$f":"J406/8","v":0},null,{"$f":"L406/8","v":0},null,{"$f":"N406/8","v":0},null,{"$f":"P406/8","v":0},null,{"$f":"R406/8","v":0},null,{"$f":"T406/8","v":0},null,{"$f":"V406/8","v":0},null,{"$f":"X406/8","v":0},null,{"$f":"Z406/8","v":0},null,{"$f":"AB406/8","v":0},null,{"$f":"AD406/8","v":0},null,0,null,{"$f":"AH406/8","v":0},null,0,null,{"$f":"AL406/8","v":0},null,0,null,{"$f":"AP406/8","v":0},null,0,null,{"$f":"AT406/8","v":0},null,{"$f":"AV406/8","v":0},null,{"$f":"AX406/8","v":0},null,{"$f":"AZ406/8","v":0},null,{"$f":"BB406/8","v":0},{"$f":"SUM(E407:BB407)","v":0}]
["TOTAL RAW LABOR",null,null,null,null,{"$f":"$E$13*F406","v":0},null,{"$f":"$G$13*H406","v":0},null,{"$f":"$I$13*J406","v":0},null,{"$f":"$K$13*L406","v":0},null,{"$f":"$M$13*N406","v":0},null,{"$f":"$O$13*P406","v":0},null,{"$f":"$Q$13*R406","v":0},null,{"$f":"$S$13*T406","v":0},null,{"$f":"$U$13*V406","v":0},null,{"$f":"$W$13*X406","v":0},null,{"$f":"$Y$13*Z406","v":0},null,{"$f":"$AA$13*AB406","v":0},null,{"$f":"$AC$13*AD406","v":0},null,{"$f":"$AC$13*AF406","v":0},null,{"$f":"$AC$13*AH406","v":0},null,{"$f":"$AC$13*AJ406","v":0},null,{"$f":"$AC$13*AL406","v":0},null,{"$f":"$AC$13*AN406","v":0},null,{"$f":"$AC$13*AP406","v":0},null,{"$f":"$AC$13*AR406","v":0},null,{"$f":"$AC$13*AT406","v":0},null,{"$f":"$AC$13*AV406","v":0},null,{"$f":"$AC$13*AX406","v":0},null,{"$f":"$AC$13*AZ406","v":0},null,{"$f":"$AC$13*BB406","v":0},{"$f":"SUM(E408:BB408)","v":0}]
["Task 16.0     ","REPLACE FIELD WITH CATEGORY NAME OF YOUR CHOOSING HERE",null,null,null,null,null,null,null,null,null,null,null,null,null,null,null,null,null,null,null,null,null,null,null,null,null,null,null,null,null,null,null,null,null,null,null,null,null,null,null,null,null,null,null,null,null,null,null,null,null,null,null,null,{"$f":"IF(B409=\"REPLACE FIELD WITH CATEGORY NAME OF YOUR CHOOSING HERE\",0,\"\")","v":0}]
[null,null,null,null,{"$f":"IF($C$410=\"\",\"\",F410/$C$410)","v":""},null,{"$f":"IF($C$410=\"\",\"\",H410/$C$410)","v":""},null,{"$f":"IF($C$410=\"\",\"\",J410/$C$410)","v":""},null,{"$f":"IF($C$410=\"\",\"\",L410/$C$410)","v":""},null,{"$f":"IF($C$410=\"\",\"\",N410/$C$410)","v":""},null,{"$f":"IF($C$410=\"\",\"\",P410/$C$410)","v":""},null,{"$f":"IF($C$410=\"\",\"\",R410/$C$410)","v":""},null,{"$f":"IF($C$410=\"\",\"\",T410/$C$410)","v":""},null,{"$f":"IF($C$410=\"\",\"\",V410/$C$410)","v":""},null,{"$f":"IF($C$410=\"\",\"\",X410/$C$410)","v":""},null,{"$f":"IF($C$410=\"\",\"\",Z410/$C$410)","v":""},null,{"$f":"IF($C$410=\"\",\"\",AB410/$C$410)","v":""},null,{"$f":"IF($C$410=\"\",\"\",AD410/$C$410)","v":""},null,{"$f":"IF($C$410=\"\",\"\",AF410/$C$410)","v":""},null,{"$f":"IF($C$410=\"\",\"\",AH410/$C$410)","v":""},null,{"$f":"IF($C$410=\"\",\"\",AJ410/$C$410)","v":""},null,{"$f":"IF($C$410=\"\",\"\",AL410/$C$410)","v":""},null,{"$f":"IF($C$410=\"\",\"\",AN410/$C$410)","v":""},null,{"$f":"IF($C$410=\"\",\"\",AP410/$C$410)","v":""},null,{"$f":"IF($C$410=\"\",\"\",AR410/$C$410)","v":""},null,{"$f":"IF($C$410=\"\",\"\",AT410/$C$410)","v":""},null,{"$f":"IF($C$410=\"\",\"\",AV410/$C$410)","v":""},null,{"$f":"IF($C$410=\"\",\"\",AX410/$C$410)","v":""},null,{"$f":"IF($C$410=\"\",\"\",AZ410/$C$410)","v":""},null,{"$f":"IF($C$410=\"\",\"\",BB410/$C$410)","v":""},null,{"$f":"SUM(BB410,AZ410,AX410,AV410,AT410,AR410,AP410,AN410,AL410,AJ410,AH410,AF410,AD410,AB410,Z410,X410,V410,T410,R410,P410,N410,L410,J410,H410,F410)","v":0}]
[null,null,null,null,{"$f":"IF($C$411=\"\",\"\",F411/$C$411)","v":""},null,{"$f":"IF($C$411=\"\",\"\",H411/$C$411)","v":""},null,{"$f":"IF($C$411=\"\",\"\",J411/$C$411)","v":""},null,{"$f":"IF($C$411=\"\",\"\",L411/$C$411)","v":""},null,{"$f":"IF($C$411=\"\",\"\",N411/$C$411)","v":""},null,{"$f":"IF($C$411=\"\",\"\",P411/$C$411)","v":""},null,{"$f":"IF($C$411=\"\",\"\",R411/$C$411)","v":""},null,{"$f":"IF($C$411=\"\",\"\",T411/$C$411)","v":""},null,{"$f":"IF($C$411=\"\",\"\",V411/$C$411)","v":""},null,{"$f":"IF($C$411=\"\",\"\",X411/$C$411)","v":""},null,{"$f":"IF($C$411=\"\",\"\",Z411/$C$411)","v":""},null,{"$f":"IF($C$411=\"\",\"\",AB411/$C$411)","v":""},null,{"$f":"IF($C$411=\"\",\"\",AD411/$C$411)","v":""},null,{"$f":"IF($C$411=\"\",\"\",AF411/$C$411)","v":""},null,{"$f":"IF($C$411=\"\",\"\",AH411/$C$411)","v":""},null,{"$f":"IF($C$411=\"\",\"\",AJ411/$C$411)","v":""},null,{"$f":"IF($C$411=\"\",\"\",AL411/$C$411)","v":""},null,{"$f":"IF($C$411=\"\",\"\",AN411/$C$411)","v":""},null,{"$f":"IF($C$411=\"\",\"\",AP411/$C$411)","v":""},null,{"$f":"IF($C$411=\"\",\"\",AR411/$C$411)","v":""},null,{"$f":"IF($C$411=\"\",\"\",AT411/$C$411)","v":""},null,{"$f":"IF($C$411=\"\",\"\",AV411/$C$411)","v":""},null,{"$f":"IF($C$411=\"\",\"\",AX411/$C$411)","v":""},null,{"$f":"IF($C$411=\"\",\"\",AZ411/$C$411)","v":""},null,{"$f":"IF($C$411=\"\",\"\",BB411/$C$411)","v":""},null,0]
[null,null,null,null,{"$f":"IF($C$412=\"\",\"\",F412/$C$412)","v":""},null,{"$f":"IF($C$412=\"\",\"\",H412/$C$412)","v":""},null,{"$f":"IF($C$412=\"\",\"\",J412/$C$412)","v":""},null,{"$f":"IF($C$412=\"\",\"\",L412/$C$412)","v":""},null,{"$f":"IF($C$412=\"\",\"\",N412/$C$412)","v":""},null,{"$f":"IF($C$412=\"\",\"\",P412/$C$412)","v":""},null,{"$f":"IF($C$412=\"\",\"\",R412/$C$412)","v":""},null,{"$f":"IF($C$412=\"\",\"\",T412/$C$412)","v":""},null,{"$f":"IF($C$412=\"\",\"\",V412/$C$412)","v":""},null,{"$f":"IF($C$412=\"\",\"\",X412/$C$412)","v":""},null,{"$f":"IF($C$412=\"\",\"\",Z412/$C$412)","v":""},null,{"$f":"IF($C$412=\"\",\"\",AB412/$C$412)","v":""},null,{"$f":"IF($C$412=\"\",\"\",AD412/$C$412)","v":""},null,{"$f":"IF($C$412=\"\",\"\",AF412/$C$412)","v":""},null,{"$f":"IF($C$412=\"\",\"\",AH412/$C$412)","v":""},null,{"$f":"IF($C$412=\"\",\"\",AJ412/$C$412)","v":""},null,{"$f":"IF($C$412=\"\",\"\",AL412/$C$412)","v":""},null,{"$f":"IF($C$412=\"\",\"\",AN412/$C$412)","v":""},null,{"$f":"IF($C$412=\"\",\"\",AP412/$C$412)","v":""},null,{"$f":"IF($C$412=\"\",\"\",AR412/$C$412)","v":""},null,{"$f":"IF($C$412=\"\",\"\",AT412/$C$412)","v":""},null,{"$f":"IF($C$412=\"\",\"\",AV412/$C$412)","v":""},null,{"$f":"IF($C$412=\"\",\"\",AX412/$C$412)","v":""},null,{"$f":"IF($C$412=\"\",\"\",AZ412/$C$412)","v":""},null,{"$f":"IF($C$412=\"\",\"\",BB412/$C$412)","v":""},null,0]
[null,null,null,null,{"$f":"IF($C$413=\"\",\"\",F413/$C$413)","v":""},null,{"$f":"IF($C$413=\"\",\"\",H413/$C$413)","v":""},null,{"$f":"IF($C$413=\"\",\"\",J413/$C$413)","v":""},null,{"$f":"IF($C$413=\"\",\"\",L413/$C$413)","v":""},null,{"$f":"IF($C$413=\"\",\"\",N413/$C$413)","v":""},null,{"$f":"IF($C$413=\"\",\"\",P413/$C$413)","v":""},null,{"$f":"IF($C$413=\"\",\"\",R413/$C$413)","v":""},null,{"$f":"IF($C$413=\"\",\"\",T413/$C$413)","v":""},null,{"$f":"IF($C$413=\"\",\"\",V413/$C$413)","v":""},null,{"$f":"IF($C$413=\"\",\"\",X413/$C$413)","v":""},null,{"$f":"IF($C$413=\"\",\"\",Z413/$C$413)","v":""},null,{"$f":"IF($C$413=\"\",\"\",AB413/$C$413)","v":""},null,{"$f":"IF($C$413=\"\",\"\",AD413/$C$413)","v":""},null,{"$f":"IF($C$413=\"\",\"\",AF413/$C$413)","v":""},null,{"$f":"IF($C$413=\"\",\"\",AH413/$C$413)","v":""},null,{"$f":"IF($C$413=\"\",\"\",AJ413/$C$413)","v":""},null,{"$f":"IF($C$413=\"\",\"\",AL413/$C$413)","v":""},null,{"$f":"IF($C$413=\"\",\"\",AN413/$C$413)","v":""},null,{"$f":"IF($C$413=\"\",\"\",AP413/$C$413)","v":""},null,{"$f":"IF($C$413=\"\",\"\",AR413/$C$413)","v":""},null,{"$f":"IF($C$413=\"\",\"\",AT413/$C$413)","v":""},null,{"$f":"IF($C$413=\"\",\"\",AV413/$C$413)","v":""},null,{"$f":"IF($C$413=\"\",\"\",AX413/$C$413)","v":""},null,{"$f":"IF($C$413=\"\",\"\",AZ413/$C$413)","v":""},null,{"$f":"IF($C$413=\"\",\"\",BB413/$C$413)","v":""},null,0]
[null,null,null,null,{"$f":"IF($C$414=\"\",\"\",F414/$C$414)","v":""},null,{"$f":"IF($C$414=\"\",\"\",H414/$C$414)","v":""},null,{"$f":"IF($C$414=\"\",\"\",J414/$C$414)","v":""},null,{"$f":"IF($C$414=\"\",\"\",L414/$C$414)","v":""},null,{"$f":"IF($C$414=\"\",\"\",N414/$C$414)","v":""},null,{"$f":"IF($C$414=\"\",\"\",P414/$C$414)","v":""},null,{"$f":"IF($C$414=\"\",\"\",R414/$C$414)","v":""},null,{"$f":"IF($C$414=\"\",\"\",T414/$C$414)","v":""},null,{"$f":"IF($C$414=\"\",\"\",V414/$C$414)","v":""},null,{"$f":"IF($C$414=\"\",\"\",X414/$C$414)","v":""},null,{"$f":"IF($C$414=\"\",\"\",Z414/$C$414)","v":""},null,{"$f":"IF($C$414=\"\",\"\",AB414/$C$414)","v":""},null,{"$f":"IF($C$414=\"\",\"\",AD414/$C$414)","v":""},null,{"$f":"IF($C$414=\"\",\"\",AF414/$C$414)","v":""},null,{"$f":"IF($C$414=\"\",\"\",AH414/$C$414)","v":""},null,{"$f":"IF($C$414=\"\",\"\",AJ414/$C$414)","v":""},null,{"$f":"IF($C$414=\"\",\"\",AL414/$C$414)","v":""},null,{"$f":"IF($C$414=\"\",\"\",AN414/$C$414)","v":""},null,{"$f":"IF($C$414=\"\",\"\",AP414/$C$414)","v":""},null,{"$f":"IF($C$414=\"\",\"\",AR414/$C$414)","v":""},null,{"$f":"IF($C$414=\"\",\"\",AT414/$C$414)","v":""},null,{"$f":"IF($C$414=\"\",\"\",AV414/$C$414)","v":""},null,{"$f":"IF($C$414=\"\",\"\",AX414/$C$414)","v":""},null,{"$f":"IF($C$414=\"\",\"\",AZ414/$C$414)","v":""},null,{"$f":"IF($C$414=\"\",\"\",BB414/$C$414)","v":""},null,0]
[null,null,null,null,{"$f":"IF($C$415=\"\",\"\",F415/$C$415)","v":""},null,{"$f":"IF($C$415=\"\",\"\",H415/$C$415)","v":""},null,{"$f":"IF($C$415=\"\",\"\",J415/$C$415)","v":""},null,{"$f":"IF($C$415=\"\",\"\",L415/$C$415)","v":""},null,{"$f":"IF($C$415=\"\",\"\",N415/$C$415)","v":""},null,{"$f":"IF($C$415=\"\",\"\",P415/$C$415)","v":""},null,{"$f":"IF($C$415=\"\",\"\",R415/$C$415)","v":""},null,{"$f":"IF($C$415=\"\",\"\",T415/$C$415)","v":""},null,{"$f":"IF($C$415=\"\",\"\",V415/$C$415)","v":""},null,{"$f":"IF($C$415=\"\",\"\",X415/$C$415)","v":""},null,{"$f":"IF($C$415=\"\",\"\",Z415/$C$415)","v":""},null,{"$f":"IF($C$415=\"\",\"\",AB415/$C$415)","v":""},null,{"$f":"IF($C$415=\"\",\"\",AD415/$C$415)","v":""},null,{"$f":"IF($C$415=\"\",\"\",AF415/$C$415)","v":""},null,{"$f":"IF($C$415=\"\",\"\",AH415/$C$415)","v":""},null,{"$f":"IF($C$415=\"\",\"\",AJ415/$C$415)","v":""},null,{"$f":"IF($C$415=\"\",\"\",AL415/$C$415)","v":""},null,{"$f":"IF($C$415=\"\",\"\",AN415/$C$415)","v":""},null,{"$f":"IF($C$415=\"\",\"\",AP415/$C$415)","v":""},null,{"$f":"IF($C$415=\"\",\"\",AR415/$C$415)","v":""},null,{"$f":"IF($C$415=\"\",\"\",AT415/$C$415)","v":""},null,{"$f":"IF($C$415=\"\",\"\",AV415/$C$415)","v":""},null,{"$f":"IF($C$415=\"\",\"\",AX415/$C$415)","v":""},null,{"$f":"IF($C$415=\"\",\"\",AZ415/$C$415)","v":""},null,{"$f":"IF($C$415=\"\",\"\",BB415/$C$415)","v":""},null,0]
[null,null,null,null,{"$f":"IF($C$416=\"\",\"\",F416/$C$416)","v":""},null,{"$f":"IF($C$416=\"\",\"\",H416/$C$416)","v":""},null,{"$f":"IF($C$416=\"\",\"\",J416/$C$416)","v":""},null,{"$f":"IF($C$416=\"\",\"\",L416/$C$416)","v":""},null,{"$f":"IF($C$416=\"\",\"\",N416/$C$416)","v":""},null,{"$f":"IF($C$416=\"\",\"\",P416/$C$416)","v":""},null,{"$f":"IF($C$416=\"\",\"\",R416/$C$416)","v":""},null,{"$f":"IF($C$416=\"\",\"\",T416/$C$416)","v":""},null,{"$f":"IF($C$416=\"\",\"\",V416/$C$416)","v":""},null,{"$f":"IF($C$416=\"\",\"\",X416/$C$416)","v":""},null,{"$f":"IF($C$416=\"\",\"\",Z416/$C$416)","v":""},null,{"$f":"IF($C$416=\"\",\"\",AB416/$C$416)","v":""},null,{"$f":"IF($C$416=\"\",\"\",AD416/$C$416)","v":""},null,{"$f":"IF($C$416=\"\",\"\",AF416/$C$416)","v":""},null,{"$f":"IF($C$416=\"\",\"\",AH416/$C$416)","v":""},null,{"$f":"IF($C$416=\"\",\"\",AJ416/$C$416)","v":""},null,{"$f":"IF($C$416=\"\",\"\",AL416/$C$416)","v":""},null,{"$f":"IF($C$416=\"\",\"\",AN416/$C$416)","v":""},null,{"$f":"IF($C$416=\"\",\"\",AP416/$C$416)","v":""},null,{"$f":"IF($C$416=\"\",\"\",AR416/$C$416)","v":""},null,{"$f":"IF($C$416=\"\",\"\",AT416/$C$416)","v":""},null,{"$f":"IF($C$416=\"\",\"\",AV416/$C$416)","v":""},null,{"$f":"IF($C$416=\"\",\"\",AX416/$C$416)","v":""},null,{"$f":"IF($C$416=\"\",\"\",AZ416/$C$416)","v":""},null,{"$f":"IF($C$416=\"\",\"\",BB416/$C$416)","v":""},null,0]
[null,null,null,null,{"$f":"IF($C$417=\"\",\"\",F417/$C$417)","v":""},null,{"$f":"IF($C$417=\"\",\"\",H417/$C$417)","v":""},null,{"$f":"IF($C$417=\"\",\"\",J417/$C$417)","v":""},null,{"$f":"IF($C$417=\"\",\"\",L417/$C$417)","v":""},null,{"$f":"IF($C$417=\"\",\"\",N417/$C$417)","v":""},null,{"$f":"IF($C$417=\"\",\"\",P417/$C$417)","v":""},null,{"$f":"IF($C$417=\"\",\"\",R417/$C$417)","v":""},null,{"$f":"IF($C$417=\"\",\"\",T417/$C$417)","v":""},null,{"$f":"IF($C$417=\"\",\"\",V417/$C$417)","v":""},null,{"$f":"IF($C$417=\"\",\"\",X417/$C$417)","v":""},null,{"$f":"IF($C$417=\"\",\"\",Z417/$C$417)","v":""},null,{"$f":"IF($C$417=\"\",\"\",AB417/$C$417)","v":""},null,{"$f":"IF($C$417=\"\",\"\",AD417/$C$417)","v":""},null,{"$f":"IF($C$417=\"\",\"\",AF417/$C$417)","v":""},null,{"$f":"IF($C$417=\"\",\"\",AH417/$C$417)","v":""},null,{"$f":"IF($C$417=\"\",\"\",AJ417/$C$417)","v":""},null,{"$f":"IF($C$417=\"\",\"\",AL417/$C$417)","v":""},null,{"$f":"IF($C$417=\"\",\"\",AN417/$C$417)","v":""},null,{"$f":"IF($C$417=\"\",\"\",AP417/$C$417)","v":""},null,{"$f":"IF($C$417=\"\",\"\",AR417/$C$417)","v":""},null,{"$f":"IF($C$417=\"\",\"\",AT417/$C$417)","v":""},null,{"$f":"IF($C$417=\"\",\"\",AV417/$C$417)","v":""},null,{"$f":"IF($C$417=\"\",\"\",AX417/$C$417)","v":""},null,{"$f":"IF($C$417=\"\",\"\",AZ417/$C$417)","v":""},null,{"$f":"IF($C$417=\"\",\"\",BB417/$C$417)","v":""},null,0]
[null,null,null,null,{"$f":"IF($C$418=\"\",\"\",F418/$C$418)","v":""},null,{"$f":"IF($C$418=\"\",\"\",H418/$C$418)","v":""},null,{"$f":"IF($C$418=\"\",\"\",J418/$C$418)","v":""},null,{"$f":"IF($C$418=\"\",\"\",L418/$C$418)","v":""},null,{"$f":"IF($C$418=\"\",\"\",N418/$C$418)","v":""},null,{"$f":"IF($C$418=\"\",\"\",P418/$C$418)","v":""},null,{"$f":"IF($C$418=\"\",\"\",R418/$C$418)","v":""},null,{"$f":"IF($C$418=\"\",\"\",T418/$C$418)","v":""},null,{"$f":"IF($C$418=\"\",\"\",V418/$C$418)","v":""},null,{"$f":"IF($C$418=\"\",\"\",X418/$C$418)","v":""},null,{"$f":"IF($C$418=\"\",\"\",Z418/$C$418)","v":""},null,{"$f":"IF($C$418=\"\",\"\",AB418/$C$418)","v":""},null,{"$f":"IF($C$418=\"\",\"\",AD418/$C$418)","v":""},null,{"$f":"IF($C$418=\"\",\"\",AF418/$C$418)","v":""},null,{"$f":"IF($C$418=\"\",\"\",AH418/$C$418)","v":""},null,{"$f":"IF($C$418=\"\",\"\",AJ418/$C$418)","v":""},null,{"$f":"IF($C$418=\"\",\"\",AL418/$C$418)","v":""},null,{"$f":"IF($C$418=\"\",\"\",AN418/$C$418)","v":""},null,{"$f":"IF($C$418=\"\",\"\",AP418/$C$418)","v":""},null,{"$f":"IF($C$418=\"\",\"\",AR418/$C$418)","v":""},null,{"$f":"IF($C$418=\"\",\"\",AT418/$C$418)","v":""},null,{"$f":"IF($C$418=\"\",\"\",AV418/$C$418)","v":""},null,{"$f":"IF($C$418=\"\",\"\",AX418/$C$418)","v":""},null,{"$f":"IF($C$418=\"\",\"\",AZ418/$C$418)","v":""},null,{"$f":"IF($C$418=\"\",\"\",BB418/$C$418)","v":""},null,0]
[null,null,null,null,{"$f":"IF($C$419=\"\",\"\",F419/$C$419)","v":""},null,{"$f":"IF($C$419=\"\",\"\",H419/$C$419)","v":""},null,{"$f":"IF($C$419=\"\",\"\",J419/$C$419)","v":""},null,{"$f":"IF($C$419=\"\",\"\",L419/$C$419)","v":""},null,{"$f":"IF($C$419=\"\",\"\",N419/$C$419)","v":""},null,{"$f":"IF($C$419=\"\",\"\",P419/$C$419)","v":""},null,{"$f":"IF($C$419=\"\",\"\",R419/$C$419)","v":""},null,{"$f":"IF($C$419=\"\",\"\",T419/$C$419)","v":""},null,{"$f":"IF($C$419=\"\",\"\",V419/$C$419)","v":""},null,{"$f":"IF($C$419=\"\",\"\",X419/$C$419)","v":""},null,{"$f":"IF($C$419=\"\",\"\",Z419/$C$419)","v":""},null,{"$f":"IF($C$419=\"\",\"\",AB419/$C$419)","v":""},null,{"$f":"IF($C$419=\"\",\"\",AD419/$C$419)","v":""},null,{"$f":"IF($C$419=\"\",\"\",AF419/$C$419)","v":""},null,{"$f":"IF($C$419=\"\",\"\",AH419/$C$419)","v":""},null,{"$f":"IF($C$419=\"\",\"\",AJ419/$C$419)","v":""},null,{"$f":"IF($C$419=\"\",\"\",AL419/$C$419)","v":""},null,{"$f":"IF($C$419=\"\",\"\",AN419/$C$419)","v":""},null,{"$f":"IF($C$419=\"\",\"\",AP419/$C$419)","v":""},null,{"$f":"IF($C$419=\"\",\"\",AR419/$C$419)","v":""},null,{"$f":"IF($C$419=\"\",\"\",AT419/$C$419)","v":""},null,{"$f":"IF($C$419=\"\",\"\",AV419/$C$419)","v":""},null,{"$f":"IF($C$419=\"\",\"\",AX419/$C$419)","v":""},null,{"$f":"IF($C$419=\"\",\"\",AZ419/$C$419)","v":""},null,{"$f":"IF($C$419=\"\",\"\",BB419/$C$419)","v":""},null,0]
[null,null,null,null,{"$f":"IF($C$420=\"\",\"\",F420/$C$420)","v":""},null,{"$f":"IF($C$420=\"\",\"\",H420/$C$420)","v":""},null,{"$f":"IF($C$420=\"\",\"\",J420/$C$420)","v":""},null,{"$f":"IF($C$420=\"\",\"\",L420/$C$420)","v":""},null,{"$f":"IF($C$420=\"\",\"\",N420/$C$420)","v":""},null,{"$f":"IF($C$420=\"\",\"\",P420/$C$420)","v":""},null,{"$f":"IF($C$420=\"\",\"\",R420/$C$420)","v":""},null,{"$f":"IF($C$420=\"\",\"\",T420/$C$420)","v":""},null,{"$f":"IF($C$420=\"\",\"\",V420/$C$420)","v":""},null,{"$f":"IF($C$420=\"\",\"\",X420/$C$420)","v":""},null,{"$f":"IF($C$420=\"\",\"\",Z420/$C$420)","v":""},null,{"$f":"IF($C$420=\"\",\"\",AB420/$C$420)","v":""},null,{"$f":"IF($C$420=\"\",\"\",AD420/$C$420)","v":""},null,{"$f":"IF($C$420=\"\",\"\",AF420/$C$420)","v":""},null,{"$f":"IF($C$420=\"\",\"\",AH420/$C$420)","v":""},null,{"$f":"IF($C$420=\"\",\"\",AJ420/$C$420)","v":""},null,{"$f":"IF($C$420=\"\",\"\",AL420/$C$420)","v":""},null,{"$f":"IF($C$420=\"\",\"\",AN420/$C$420)","v":""},null,{"$f":"IF($C$420=\"\",\"\",AP420/$C$420)","v":""},null,{"$f":"IF($C$420=\"\",\"\",AR420/$C$420)","v":""},null,{"$f":"IF($C$420=\"\",\"\",AT420/$C$420)","v":""},null,{"$f":"IF($C$420=\"\",\"\",AV420/$C$420)","v":""},null,{"$f":"IF($C$420=\"\",\"\",AX420/$C$420)","v":""},null,{"$f":"IF($C$420=\"\",\"\",AZ420/$C$420)","v":""},null,{"$f":"IF($C$420=\"\",\"\",BB420/$C$420)","v":""},null,0]
[null,null,null,null,{"$f":"IF($C$421=\"\",\"\",F421/$C$421)","v":""},null,{"$f":"IF($C$421=\"\",\"\",H421/$C$421)","v":""},null,{"$f":"IF($C$421=\"\",\"\",J421/$C$421)","v":""},null,{"$f":"IF($C$421=\"\",\"\",L421/$C$421)","v":""},null,{"$f":"IF($C$421=\"\",\"\",N421/$C$421)","v":""},null,{"$f":"IF($C$421=\"\",\"\",P421/$C$421)","v":""},null,{"$f":"IF($C$421=\"\",\"\",R421/$C$421)","v":""},null,{"$f":"IF($C$421=\"\",\"\",T421/$C$421)","v":""},null,{"$f":"IF($C$421=\"\",\"\",V421/$C$421)","v":""},null,{"$f":"IF($C$421=\"\",\"\",X421/$C$421)","v":""},null,{"$f":"IF($C$421=\"\",\"\",Z421/$C$421)","v":""},null,{"$f":"IF($C$421=\"\",\"\",AB421/$C$421)","v":""},null,{"$f":"IF($C$421=\"\",\"\",AD421/$C$421)","v":""},null,{"$f":"IF($C$421=\"\",\"\",AF421/$C$421)","v":""},null,{"$f":"IF($C$421=\"\",\"\",AH421/$C$421)","v":""},null,{"$f":"IF($C$421=\"\",\"\",AJ421/$C$421)","v":""},null,{"$f":"IF($C$421=\"\",\"\",AL421/$C$421)","v":""},null,{"$f":"IF($C$421=\"\",\"\",AN421/$C$421)","v":""},null,{"$f":"IF($C$421=\"\",\"\",AP421/$C$421)","v":""},null,{"$f":"IF($C$421=\"\",\"\",AR421/$C$421)","v":""},null,{"$f":"IF($C$421=\"\",\"\",AT421/$C$421)","v":""},null,{"$f":"IF($C$421=\"\",\"\",AV421/$C$421)","v":""},null,{"$f":"IF($C$421=\"\",\"\",AX421/$C$421)","v":""},null,{"$f":"IF($C$421=\"\",\"\",AZ421/$C$421)","v":""},null,{"$f":"IF($C$421=\"\",\"\",BB421/$C$421)","v":""},null,0]
[null,null,null,null,{"$f":"IF($C$422=\"\",\"\",F422/$C$422)","v":""},null,{"$f":"IF($C$422=\"\",\"\",H422/$C$422)","v":""},null,{"$f":"IF($C$422=\"\",\"\",J422/$C$422)","v":""},null,{"$f":"IF($C$422=\"\",\"\",L422/$C$422)","v":""},null,{"$f":"IF($C$422=\"\",\"\",N422/$C$422)","v":""},null,{"$f":"IF($C$422=\"\",\"\",P422/$C$422)","v":""},null,{"$f":"IF($C$422=\"\",\"\",R422/$C$422)","v":""},null,{"$f":"IF($C$422=\"\",\"\",T422/$C$422)","v":""},null,{"$f":"IF($C$422=\"\",\"\",V422/$C$422)","v":""},null,{"$f":"IF($C$422=\"\",\"\",X422/$C$422)","v":""},null,{"$f":"IF($C$422=\"\",\"\",Z422/$C$422)","v":""},null,{"$f":"IF($C$422=\"\",\"\",AB422/$C$422)","v":""},null,{"$f":"IF($C$422=\"\",\"\",AD422/$C$422)","v":""},null,{"$f":"IF($C$422=\"\",\"\",AF422/$C$422)","v":""},null,{"$f":"IF($C$422=\"\",\"\",AH422/$C$422)","v":""},null,{"$f":"IF($C$422=\"\",\"\",AJ422/$C$422)","v":""},null,{"$f":"IF($C$422=\"\",\"\",AL422/$C$422)","v":""},null,{"$f":"IF($C$422=\"\",\"\",AN422/$C$422)","v":""},null,{"$f":"IF($C$422=\"\",\"\",AP422/$C$422)","v":""},null,{"$f":"IF($C$422=\"\",\"\",AR422/$C$422)","v":""},null,{"$f":"IF($C$422=\"\",\"\",AT422/$C$422)","v":""},null,{"$f":"IF($C$422=\"\",\"\",AV422/$C$422)","v":""},null,{"$f":"IF($C$422=\"\",\"\",AX422/$C$422)","v":""},null,{"$f":"IF($C$422=\"\",\"\",AZ422/$C$422)","v":""},null,{"$f":"IF($C$422=\"\",\"\",BB422/$C$422)","v":""},null,0]
[null,null,null,null,{"$f":"IF($C$423=\"\",\"\",F423/$C$423)","v":""},null,{"$f":"IF($C$423=\"\",\"\",H423/$C$423)","v":""},null,{"$f":"IF($C$423=\"\",\"\",J423/$C$423)","v":""},null,{"$f":"IF($C$423=\"\",\"\",L423/$C$423)","v":""},null,{"$f":"IF($C$423=\"\",\"\",N423/$C$423)","v":""},null,{"$f":"IF($C$423=\"\",\"\",P423/$C$423)","v":""},null,{"$f":"IF($C$423=\"\",\"\",R423/$C$423)","v":""},null,{"$f":"IF($C$423=\"\",\"\",T423/$C$423)","v":""},null,{"$f":"IF($C$423=\"\",\"\",V423/$C$423)","v":""},null,{"$f":"IF($C$423=\"\",\"\",X423/$C$423)","v":""},null,{"$f":"IF($C$423=\"\",\"\",Z423/$C$423)","v":""},null,{"$f":"IF($C$423=\"\",\"\",AB423/$C$423)","v":""},null,{"$f":"IF($C$423=\"\",\"\",AD423/$C$423)","v":""},null,{"$f":"IF($C$423=\"\",\"\",AF423/$C$423)","v":""},null,{"$f":"IF($C$423=\"\",\"\",AH423/$C$423)","v":""},null,{"$f":"IF($C$423=\"\",\"\",AJ423/$C$423)","v":""},null,{"$f":"IF($C$423=\"\",\"\",AL423/$C$423)","v":""},null,{"$f":"IF($C$423=\"\",\"\",AN423/$C$423)","v":""},null,{"$f":"IF($C$423=\"\",\"\",AP423/$C$423)","v":""},null,{"$f":"IF($C$423=\"\",\"\",AR423/$C$423)","v":""},null,{"$f":"IF($C$423=\"\",\"\",AT423/$C$423)","v":""},null,{"$f":"IF($C$423=\"\",\"\",AV423/$C$423)","v":""},null,{"$f":"IF($C$423=\"\",\"\",AX423/$C$423)","v":""},null,{"$f":"IF($C$423=\"\",\"\",AZ423/$C$423)","v":""},null,{"$f":"IF($C$423=\"\",\"\",BB423/$C$423)","v":""},null,0]
[null,null,null,null,{"$f":"IF($C$424=\"\",\"\",F424/$C$424)","v":""},null,{"$f":"IF($C$424=\"\",\"\",H424/$C$424)","v":""},null,{"$f":"IF($C$424=\"\",\"\",J424/$C$424)","v":""},null,{"$f":"IF($C$424=\"\",\"\",L424/$C$424)","v":""},null,{"$f":"IF($C$424=\"\",\"\",N424/$C$424)","v":""},null,{"$f":"IF($C$424=\"\",\"\",P424/$C$424)","v":""},null,{"$f":"IF($C$424=\"\",\"\",R424/$C$424)","v":""},null,{"$f":"IF($C$424=\"\",\"\",T424/$C$424)","v":""},null,{"$f":"IF($C$424=\"\",\"\",V424/$C$424)","v":""},null,{"$f":"IF($C$424=\"\",\"\",X424/$C$424)","v":""},null,{"$f":"IF($C$424=\"\",\"\",Z424/$C$424)","v":""},null,{"$f":"IF($C$424=\"\",\"\",AB424/$C$424)","v":""},null,{"$f":"IF($C$424=\"\",\"\",AD424/$C$424)","v":""},null,{"$f":"IF($C$424=\"\",\"\",AF424/$C$424)","v":""},null,{"$f":"IF($C$424=\"\",\"\",AH424/$C$424)","v":""},null,{"$f":"IF($C$424=\"\",\"\",AJ424/$C$424)","v":""},null,{"$f":"IF($C$424=\"\",\"\",AL424/$C$424)","v":""},null,{"$f":"IF($C$424=\"\",\"\",AN424/$C$424)","v":""},null,{"$f":"IF($C$424=\"\",\"\",AP424/$C$424)","v":""},null,{"$f":"IF($C$424=\"\",\"\",AR424/$C$424)","v":""},null,{"$f":"IF($C$424=\"\",\"\",AT424/$C$424)","v":""},null,{"$f":"IF($C$424=\"\",\"\",AV424/$C$424)","v":""},null,{"$f":"IF($C$424=\"\",\"\",AX424/$C$424)","v":""},null,{"$f":"IF($C$424=\"\",\"\",AZ424/$C$424)","v":""},null,{"$f":"IF($C$424=\"\",\"\",BB424/$C$424)","v":""},null,0]
[null,null,null,null,{"$f":"IF($C$425=\"\",\"\",F425/$C$425)","v":""},null,{"$f":"IF($C$425=\"\",\"\",H425/$C$425)","v":""},null,{"$f":"IF($C$425=\"\",\"\",J425/$C$425)","v":""},null,{"$f":"IF($C$425=\"\",\"\",L425/$C$425)","v":""},null,{"$f":"IF($C$425=\"\",\"\",N425/$C$425)","v":""},null,{"$f":"IF($C$425=\"\",\"\",P425/$C$425)","v":""},null,{"$f":"IF($C$425=\"\",\"\",R425/$C$425)","v":""},null,{"$f":"IF($C$425=\"\",\"\",T425/$C$425)","v":""},null,{"$f":"IF($C$425=\"\",\"\",V425/$C$425)","v":""},null,{"$f":"IF($C$425=\"\",\"\",X425/$C$425)","v":""},null,{"$f":"IF($C$425=\"\",\"\",Z425/$C$425)","v":""},null,{"$f":"IF($C$425=\"\",\"\",AB425/$C$425)","v":""},null,{"$f":"IF($C$425=\"\",\"\",AD425/$C$425)","v":""},null,{"$f":"IF($C$425=\"\",\"\",AF425/$C$425)","v":""},null,{"$f":"IF($C$425=\"\",\"\",AH425/$C$425)","v":""},null,{"$f":"IF($C$425=\"\",\"\",AJ425/$C$425)","v":""},null,{"$f":"IF($C$425=\"\",\"\",AL425/$C$425)","v":""},null,{"$f":"IF($C$425=\"\",\"\",AN425/$C$425)","v":""},null,{"$f":"IF($C$425=\"\",\"\",AP425/$C$425)","v":""},null,{"$f":"IF($C$425=\"\",\"\",AR425/$C$425)","v":""},null,{"$f":"IF($C$425=\"\",\"\",AT425/$C$425)","v":""},null,{"$f":"IF($C$425=\"\",\"\",AV425/$C$425)","v":""},null,{"$f":"IF($C$425=\"\",\"\",AX425/$C$425)","v":""},null,{"$f":"IF($C$425=\"\",\"\",AZ425/$C$425)","v":""},null,{"$f":"IF($C$425=\"\",\"\",BB425/$C$425)","v":""},null,0]
[null,null,null,null,{"$f":"IF($C$426=\"\",\"\",F426/$C$426)","v":""},null,{"$f":"IF($C$426=\"\",\"\",H426/$C$426)","v":""},null,{"$f":"IF($C$426=\"\",\"\",J426/$C$426)","v":""},null,{"$f":"IF($C$426=\"\",\"\",L426/$C$426)","v":""},null,{"$f":"IF($C$426=\"\",\"\",N426/$C$426)","v":""},null,{"$f":"IF($C$426=\"\",\"\",P426/$C$426)","v":""},null,{"$f":"IF($C$426=\"\",\"\",R426/$C$426)","v":""},null,{"$f":"IF($C$426=\"\",\"\",T426/$C$426)","v":""},null,{"$f":"IF($C$426=\"\",\"\",V426/$C$426)","v":""},null,{"$f":"IF($C$426=\"\",\"\",X426/$C$426)","v":""},null,{"$f":"IF($C$426=\"\",\"\",Z426/$C$426)","v":""},null,{"$f":"IF($C$426=\"\",\"\",AB426/$C$426)","v":""},null,{"$f":"IF($C$426=\"\",\"\",AD426/$C$426)","v":""},null,{"$f":"IF($C$426=\"\",\"\",AF426/$C$426)","v":""},null,{"$f":"IF($C$426=\"\",\"\",AH426/$C$426)","v":""},null,{"$f":"IF($C$426=\"\",\"\",AJ426/$C$426)","v":""},null,{"$f":"IF($C$426=\"\",\"\",AL426/$C$426)","v":""},null,{"$f":"IF($C$426=\"\",\"\",AN426/$C$426)","v":""},null,{"$f":"IF($C$426=\"\",\"\",AP426/$C$426)","v":""},null,{"$f":"IF($C$426=\"\",\"\",AR426/$C$426)","v":""},null,{"$f":"IF($C$426=\"\",\"\",AT426/$C$426)","v":""},null,{"$f":"IF($C$426=\"\",\"\",AV426/$C$426)","v":""},null,{"$f":"IF($C$426=\"\",\"\",AX426/$C$426)","v":""},null,{"$f":"IF($C$426=\"\",\"\",AZ426/$C$426)","v":""},null,{"$f":"IF($C$426=\"\",\"\",BB426/$C$426)","v":""},null,0]
[null,null,null,null,{"$f":"IF($C$427=\"\",\"\",F427/$C$427)","v":""},null,{"$f":"IF($C$427=\"\",\"\",H427/$C$427)","v":""},null,{"$f":"IF($C$427=\"\",\"\",J427/$C$427)","v":""},null,{"$f":"IF($C$427=\"\",\"\",L427/$C$427)","v":""},null,{"$f":"IF($C$427=\"\",\"\",N427/$C$427)","v":""},null,{"$f":"IF($C$427=\"\",\"\",P427/$C$427)","v":""},null,{"$f":"IF($C$427=\"\",\"\",R427/$C$427)","v":""},null,{"$f":"IF($C$427=\"\",\"\",T427/$C$427)","v":""},null,{"$f":"IF($C$427=\"\",\"\",V427/$C$427)","v":""},null,{"$f":"IF($C$427=\"\",\"\",X427/$C$427)","v":""},null,{"$f":"IF($C$427=\"\",\"\",Z427/$C$427)","v":""},null,{"$f":"IF($C$427=\"\",\"\",AB427/$C$427)","v":""},null,{"$f":"IF($C$427=\"\",\"\",AD427/$C$427)","v":""},null,{"$f":"IF($C$427=\"\",\"\",AF427/$C$427)","v":""},null,{"$f":"IF($C$427=\"\",\"\",AH427/$C$427)","v":""},null,{"$f":"IF($C$427=\"\",\"\",AJ427/$C$427)","v":""},null,{"$f":"IF($C$427=\"\",\"\",AL427/$C$427)","v":""},null,{"$f":"IF($C$427=\"\",\"\",AN427/$C$427)","v":""},null,{"$f":"IF($C$427=\"\",\"\",AP427/$C$427)","v":""},null,{"$f":"IF($C$427=\"\",\"\",AR427/$C$427)","v":""},null,{"$f":"IF($C$427=\"\",\"\",AT427/$C$427)","v":""},null,{"$f":"IF($C$427=\"\",\"\",AV427/$C$427)","v":""},null,{"$f":"IF($C$427=\"\",\"\",AX427/$C$427)","v":""},null,{"$f":"IF($C$427=\"\",\"\",AZ427/$C$427)","v":""},null,{"$f":"IF($C$427=\"\",\"\",BB427/$C$427)","v":""},null,0]
[null,null,null,null,{"$f":"IF($C$428=\"\",\"\",F428/$C$428)","v":""},null,{"$f":"IF($C$428=\"\",\"\",H428/$C$428)","v":""},null,{"$f":"IF($C$428=\"\",\"\",J428/$C$428)","v":""},null,{"$f":"IF($C$428=\"\",\"\",L428/$C$428)","v":""},null,{"$f":"IF($C$428=\"\",\"\",N428/$C$428)","v":""},null,{"$f":"IF($C$428=\"\",\"\",P428/$C$428)","v":""},null,{"$f":"IF($C$428=\"\",\"\",R428/$C$428)","v":""},null,{"$f":"IF($C$428=\"\",\"\",T428/$C$428)","v":""},null,{"$f":"IF($C$428=\"\",\"\",V428/$C$428)","v":""},null,{"$f":"IF($C$428=\"\",\"\",X428/$C$428)","v":""},null,{"$f":"IF($C$428=\"\",\"\",Z428/$C$428)","v":""},null,{"$f":"IF($C$428=\"\",\"\",AB428/$C$428)","v":""},null,{"$f":"IF($C$428=\"\",\"\",AD428/$C$428)","v":""},null,{"$f":"IF($C$428=\"\",\"\",AF428/$C$428)","v":""},null,{"$f":"IF($C$428=\"\",\"\",AH428/$C$428)","v":""},null,{"$f":"IF($C$428=\"\",\"\",AJ428/$C$428)","v":""},null,{"$f":"IF($C$428=\"\",\"\",AL428/$C$428)","v":""},null,{"$f":"IF($C$428=\"\",\"\",AN428/$C$428)","v":""},null,{"$f":"IF($C$428=\"\",\"\",AP428/$C$428)","v":""},null,{"$f":"IF($C$428=\"\",\"\",AR428/$C$428)","v":""},null,{"$f":"IF($C$428=\"\",\"\",AT428/$C$428)","v":""},null,{"$f":"IF($C$428=\"\",\"\",AV428/$C$428)","v":""},null,{"$f":"IF($C$428=\"\",\"\",AX428/$C$428)","v":""},null,{"$f":"IF($C$428=\"\",\"\",AZ428/$C$428)","v":""},null,{"$f":"IF($C$428=\"\",\"\",BB428/$C$428)","v":""},null,0]
[null,null,null,null,{"$f":"IF($C$429=\"\",\"\",F429/$C$429)","v":""},null,{"$f":"IF($C$429=\"\",\"\",H429/$C$429)","v":""},null,{"$f":"IF($C$429=\"\",\"\",J429/$C$429)","v":""},null,{"$f":"IF($C$429=\"\",\"\",L429/$C$429)","v":""},null,{"$f":"IF($C$429=\"\",\"\",N429/$C$429)","v":""},null,{"$f":"IF($C$429=\"\",\"\",P429/$C$429)","v":""},null,{"$f":"IF($C$429=\"\",\"\",R429/$C$429)","v":""},null,{"$f":"IF($C$429=\"\",\"\",T429/$C$429)","v":""},null,{"$f":"IF($C$429=\"\",\"\",V429/$C$429)","v":""},null,{"$f":"IF($C$429=\"\",\"\",X429/$C$429)","v":""},null,{"$f":"IF($C$429=\"\",\"\",Z429/$C$429)","v":""},null,{"$f":"IF($C$429=\"\",\"\",AB429/$C$429)","v":""},null,{"$f":"IF($C$429=\"\",\"\",AD429/$C$429)","v":""},null,{"$f":"IF($C$429=\"\",\"\",AF429/$C$429)","v":""},null,{"$f":"IF($C$429=\"\",\"\",AH429/$C$429)","v":""},null,{"$f":"IF($C$429=\"\",\"\",AJ429/$C$429)","v":""},null,{"$f":"IF($C$429=\"\",\"\",AL429/$C$429)","v":""},null,{"$f":"IF($C$429=\"\",\"\",AN429/$C$429)","v":""},null,{"$f":"IF($C$429=\"\",\"\",AP429/$C$429)","v":""},null,{"$f":"IF($C$429=\"\",\"\",AR429/$C$429)","v":""},null,{"$f":"IF($C$429=\"\",\"\",AT429/$C$429)","v":""},null,{"$f":"IF($C$429=\"\",\"\",AV429/$C$429)","v":""},null,{"$f":"IF($C$429=\"\",\"\",AX429/$C$429)","v":""},null,{"$f":"IF($C$429=\"\",\"\",AZ429/$C$429)","v":""},null,{"$f":"IF($C$429=\"\",\"\",BB429/$C$429)","v":""},null,0]
[null,null,null,null,{"$f":"IF($C$430=\"\",\"\",F430/$C$430)","v":""},null,{"$f":"IF($C$430=\"\",\"\",H430/$C$430)","v":""},null,{"$f":"IF($C$430=\"\",\"\",J430/$C$430)","v":""},null,{"$f":"IF($C$430=\"\",\"\",L430/$C$430)","v":""},null,{"$f":"IF($C$430=\"\",\"\",N430/$C$430)","v":""},null,{"$f":"IF($C$430=\"\",\"\",P430/$C$430)","v":""},null,{"$f":"IF($C$430=\"\",\"\",R430/$C$430)","v":""},null,{"$f":"IF($C$430=\"\",\"\",T430/$C$430)","v":""},null,{"$f":"IF($C$430=\"\",\"\",V430/$C$430)","v":""},null,{"$f":"IF($C$430=\"\",\"\",X430/$C$430)","v":""},null,{"$f":"IF($C$430=\"\",\"\",Z430/$C$430)","v":""},null,{"$f":"IF($C$430=\"\",\"\",AB430/$C$430)","v":""},null,{"$f":"IF($C$430=\"\",\"\",AD430/$C$430)","v":""},null,{"$f":"IF($C$430=\"\",\"\",AF430/$C$430)","v":""},null,{"$f":"IF($C$430=\"\",\"\",AH430/$C$430)","v":""},null,{"$f":"IF($C$430=\"\",\"\",AJ430/$C$430)","v":""},null,{"$f":"IF($C$430=\"\",\"\",AL430/$C$430)","v":""},null,{"$f":"IF($C$430=\"\",\"\",AN430/$C$430)","v":""},null,{"$f":"IF($C$430=\"\",\"\",AP430/$C$430)","v":""},null,{"$f":"IF($C$430=\"\",\"\",AR430/$C$430)","v":""},null,{"$f":"IF($C$430=\"\",\"\",AT430/$C$430)","v":""},null,{"$f":"IF($C$430=\"\",\"\",AV430/$C$430)","v":""},null,{"$f":"IF($C$430=\"\",\"\",AX430/$C$430)","v":""},null,{"$f":"IF($C$430=\"\",\"\",AZ430/$C$430)","v":""},null,{"$f":"IF($C$430=\"\",\"\",BB430/$C$430)","v":""},null,0]
[null,null,null,null,{"$f":"IF($C$431=\"\",\"\",F431/$C$431)","v":""},null,{"$f":"IF($C$431=\"\",\"\",H431/$C$431)","v":""},null,{"$f":"IF($C$431=\"\",\"\",J431/$C$431)","v":""},null,{"$f":"IF($C$431=\"\",\"\",L431/$C$431)","v":""},null,{"$f":"IF($C$431=\"\",\"\",N431/$C$431)","v":""},null,{"$f":"IF($C$431=\"\",\"\",P431/$C$431)","v":""},null,{"$f":"IF($C$431=\"\",\"\",R431/$C$431)","v":""},null,{"$f":"IF($C$431=\"\",\"\",T431/$C$431)","v":""},null,{"$f":"IF($C$431=\"\",\"\",V431/$C$431)","v":""},null,{"$f":"IF($C$431=\"\",\"\",X431/$C$431)","v":""},null,{"$f":"IF($C$431=\"\",\"\",Z431/$C$431)","v":""},null,{"$f":"IF($C$431=\"\",\"\",AB431/$C$431)","v":""},null,{"$f":"IF($C$431=\"\",\"\",AD431/$C$431)","v":""},null,{"$f":"IF($C$431=\"\",\"\",AF431/$C$431)","v":""},null,{"$f":"IF($C$431=\"\",\"\",AH431/$C$431)","v":""},null,{"$f":"IF($C$431=\"\",\"\",AJ431/$C$431)","v":""},null,{"$f":"IF($C$431=\"\",\"\",AL431/$C$431)","v":""},null,{"$f":"IF($C$431=\"\",\"\",AN431/$C$431)","v":""},null,{"$f":"IF($C$431=\"\",\"\",AP431/$C$431)","v":""},null,{"$f":"IF($C$431=\"\",\"\",AR431/$C$431)","v":""},null,{"$f":"IF($C$431=\"\",\"\",AT431/$C$431)","v":""},null,{"$f":"IF($C$431=\"\",\"\",AV431/$C$431)","v":""},null,{"$f":"IF($C$431=\"\",\"\",AX431/$C$431)","v":""},null,{"$f":"IF($C$431=\"\",\"\",AZ431/$C$431)","v":""},null,{"$f":"IF($C$431=\"\",\"\",BB431/$C$431)","v":""},null,0]
[null,null,null,null,{"$f":"IF($C$432=\"\",\"\",F432/$C$432)","v":""},null,{"$f":"IF($C$432=\"\",\"\",H432/$C$432)","v":""},null,{"$f":"IF($C$432=\"\",\"\",J432/$C$432)","v":""},null,{"$f":"IF($C$432=\"\",\"\",L432/$C$432)","v":""},null,{"$f":"IF($C$432=\"\",\"\",N432/$C$432)","v":""},null,{"$f":"IF($C$432=\"\",\"\",P432/$C$432)","v":""},null,{"$f":"IF($C$432=\"\",\"\",R432/$C$432)","v":""},null,{"$f":"IF($C$432=\"\",\"\",T432/$C$432)","v":""},null,{"$f":"IF($C$432=\"\",\"\",V432/$C$432)","v":""},null,{"$f":"IF($C$432=\"\",\"\",X432/$C$432)","v":""},null,{"$f":"IF($C$432=\"\",\"\",Z432/$C$432)","v":""},null,{"$f":"IF($C$432=\"\",\"\",AB432/$C$432)","v":""},null,{"$f":"IF($C$432=\"\",\"\",AD432/$C$432)","v":""},null,{"$f":"IF($C$432=\"\",\"\",AF432/$C$432)","v":""},null,{"$f":"IF($C$432=\"\",\"\",AH432/$C$432)","v":""},null,{"$f":"IF($C$432=\"\",\"\",AJ432/$C$432)","v":""},null,{"$f":"IF($C$432=\"\",\"\",AL432/$C$432)","v":""},null,{"$f":"IF($C$432=\"\",\"\",AN432/$C$432)","v":""},null,{"$f":"IF($C$432=\"\",\"\",AP432/$C$432)","v":""},null,{"$f":"IF($C$432=\"\",\"\",AR432/$C$432)","v":""},null,{"$f":"IF($C$432=\"\",\"\",AT432/$C$432)","v":""},null,{"$f":"IF($C$432=\"\",\"\",AV432/$C$432)","v":""},null,{"$f":"IF($C$432=\"\",\"\",AX432/$C$432)","v":""},null,{"$f":"IF($C$432=\"\",\"\",AZ432/$C$432)","v":""},null,{"$f":"IF($C$432=\"\",\"\",BB432/$C$432)","v":""},null,0]
[null,null,null,null,{"$f":"IF($C$433=\"\",\"\",F433/$C$433)","v":""},null,{"$f":"IF($C$433=\"\",\"\",H433/$C$433)","v":""},null,{"$f":"IF($C$433=\"\",\"\",J433/$C$433)","v":""},null,{"$f":"IF($C$433=\"\",\"\",L433/$C$433)","v":""},null,{"$f":"IF($C$433=\"\",\"\",N433/$C$433)","v":""},null,{"$f":"IF($C$433=\"\",\"\",P433/$C$433)","v":""},null,{"$f":"IF($C$433=\"\",\"\",R433/$C$433)","v":""},null,{"$f":"IF($C$433=\"\",\"\",T433/$C$433)","v":""},null,{"$f":"IF($C$433=\"\",\"\",V433/$C$433)","v":""},null,{"$f":"IF($C$433=\"\",\"\",X433/$C$433)","v":""},null,{"$f":"IF($C$433=\"\",\"\",Z433/$C$433)","v":""},null,{"$f":"IF($C$433=\"\",\"\",AB433/$C$433)","v":""},null,{"$f":"IF($C$433=\"\",\"\",AD433/$C$433)","v":""},null,{"$f":"IF($C$433=\"\",\"\",AF433/$C$433)","v":""},null,{"$f":"IF($C$433=\"\",\"\",AH433/$C$433)","v":""},null,{"$f":"IF($C$433=\"\",\"\",AJ433/$C$433)","v":""},null,{"$f":"IF($C$433=\"\",\"\",AL433/$C$433)","v":""},null,{"$f":"IF($C$433=\"\",\"\",AN433/$C$433)","v":""},null,{"$f":"IF($C$433=\"\",\"\",AP433/$C$433)","v":""},null,{"$f":"IF($C$433=\"\",\"\",AR433/$C$433)","v":""},null,{"$f":"IF($C$433=\"\",\"\",AT433/$C$433)","v":""},null,{"$f":"IF($C$433=\"\",\"\",AV433/$C$433)","v":""},null,{"$f":"IF($C$433=\"\",\"\",AX433/$C$433)","v":""},null,{"$f":"IF($C$433=\"\",\"\",AZ433/$C$433)","v":""},null,{"$f":"IF($C$433=\"\",\"\",BB433/$C$433)","v":""},null,0]
[null,null,null,null,{"$f":"IF($C$434=\"\",\"\",F434/$C$434)","v":""},null,{"$f":"IF($C$434=\"\",\"\",H434/$C$434)","v":""},null,{"$f":"IF($C$434=\"\",\"\",J434/$C$434)","v":""},null,{"$f":"IF($C$434=\"\",\"\",L434/$C$434)","v":""},null,{"$f":"IF($C$434=\"\",\"\",N434/$C$434)","v":""},null,{"$f":"IF($C$434=\"\",\"\",P434/$C$434)","v":""},null,{"$f":"IF($C$434=\"\",\"\",R434/$C$434)","v":""},null,{"$f":"IF($C$434=\"\",\"\",T434/$C$434)","v":""},null,{"$f":"IF($C$434=\"\",\"\",V434/$C$434)","v":""},null,{"$f":"IF($C$434=\"\",\"\",X434/$C$434)","v":""},null,{"$f":"IF($C$434=\"\",\"\",Z434/$C$434)","v":""},null,{"$f":"IF($C$434=\"\",\"\",AB434/$C$434)","v":""},null,{"$f":"IF($C$434=\"\",\"\",AD434/$C$434)","v":""},null,{"$f":"IF($C$434=\"\",\"\",AF434/$C$434)","v":""},null,{"$f":"IF($C$434=\"\",\"\",AH434/$C$434)","v":""},null,{"$f":"IF($C$434=\"\",\"\",AJ434/$C$434)","v":""},null,{"$f":"IF($C$434=\"\",\"\",AL434/$C$434)","v":""},null,{"$f":"IF($C$434=\"\",\"\",AN434/$C$434)","v":""},null,{"$f":"IF($C$434=\"\",\"\",AP434/$C$434)","v":""},null,{"$f":"IF($C$434=\"\",\"\",AR434/$C$434)","v":""},null,{"$f":"IF($C$434=\"\",\"\",AT434/$C$434)","v":""},null,{"$f":"IF($C$434=\"\",\"\",AV434/$C$434)","v":""},null,{"$f":"IF($C$434=\"\",\"\",AX434/$C$434)","v":""},null,{"$f":"IF($C$434=\"\",\"\",AZ434/$C$434)","v":""},null,{"$f":"IF($C$434=\"\",\"\",BB434/$C$434)","v":""},null,0]
[null,null,null,null,{"$f":"IF($C$435=\"\",\"\",F435/$C$435)","v":""},null,{"$f":"IF($C$435=\"\",\"\",H435/$C$435)","v":""},null,{"$f":"IF($C$435=\"\",\"\",J435/$C$435)","v":""},null,{"$f":"IF($C$435=\"\",\"\",L435/$C$435)","v":""},null,{"$f":"IF($C$435=\"\",\"\",N435/$C$435)","v":""},null,{"$f":"IF($C$435=\"\",\"\",P435/$C$435)","v":""},null,{"$f":"IF($C$435=\"\",\"\",R435/$C$435)","v":""},null,{"$f":"IF($C$435=\"\",\"\",T435/$C$435)","v":""},null,{"$f":"IF($C$435=\"\",\"\",V435/$C$435)","v":""},null,{"$f":"IF($C$435=\"\",\"\",X435/$C$435)","v":""},null,{"$f":"IF($C$435=\"\",\"\",Z435/$C$435)","v":""},null,{"$f":"IF($C$435=\"\",\"\",AB435/$C$435)","v":""},null,{"$f":"IF($C$435=\"\",\"\",AD435/$C$435)","v":""},null,{"$f":"IF($C$435=\"\",\"\",AF435/$C$435)","v":""},null,{"$f":"IF($C$435=\"\",\"\",AH435/$C$435)","v":""},null,{"$f":"IF($C$435=\"\",\"\",AJ435/$C$435)","v":""},null,{"$f":"IF($C$435=\"\",\"\",AL435/$C$435)","v":""},null,{"$f":"IF($C$435=\"\",\"\",AN435/$C$435)","v":""},null,{"$f":"IF($C$435=\"\",\"\",AP435/$C$435)","v":""},null,{"$f":"IF($C$435=\"\",\"\",AR435/$C$435)","v":""},null,{"$f":"IF($C$435=\"\",\"\",AT435/$C$435)","v":""},null,{"$f":"IF($C$435=\"\",\"\",AV435/$C$435)","v":""},null,{"$f":"IF($C$435=\"\",\"\",AX435/$C$435)","v":""},null,{"$f":"IF($C$435=\"\",\"\",AZ435/$C$435)","v":""},null,{"$f":"IF($C$435=\"\",\"\",BB435/$C$435)","v":""},null,0]
[null,null,null,null,{"$f":"IF($C$436=\"\",\"\",F436/$C$436)","v":""},null,{"$f":"IF($C$436=\"\",\"\",H436/$C$436)","v":""},null,{"$f":"IF($C$436=\"\",\"\",J436/$C$436)","v":""},null,{"$f":"IF($C$436=\"\",\"\",L436/$C$436)","v":""},null,{"$f":"IF($C$436=\"\",\"\",N436/$C$436)","v":""},null,{"$f":"IF($C$436=\"\",\"\",P436/$C$436)","v":""},null,{"$f":"IF($C$436=\"\",\"\",R436/$C$436)","v":""},null,{"$f":"IF($C$436=\"\",\"\",T436/$C$436)","v":""},null,{"$f":"IF($C$436=\"\",\"\",V436/$C$436)","v":""},null,{"$f":"IF($C$436=\"\",\"\",X436/$C$436)","v":""},null,{"$f":"IF($C$436=\"\",\"\",Z436/$C$436)","v":""},null,{"$f":"IF($C$436=\"\",\"\",AB436/$C$436)","v":""},null,{"$f":"IF($C$436=\"\",\"\",AD436/$C$436)","v":""},null,{"$f":"IF($C$436=\"\",\"\",AF436/$C$436)","v":""},null,{"$f":"IF($C$436=\"\",\"\",AH436/$C$436)","v":""},null,{"$f":"IF($C$436=\"\",\"\",AJ436/$C$436)","v":""},null,{"$f":"IF($C$436=\"\",\"\",AL436/$C$436)","v":""},null,{"$f":"IF($C$436=\"\",\"\",AN436/$C$436)","v":""},null,{"$f":"IF($C$436=\"\",\"\",AP436/$C$436)","v":""},null,{"$f":"IF($C$436=\"\",\"\",AR436/$C$436)","v":""},null,{"$f":"IF($C$436=\"\",\"\",AT436/$C$436)","v":""},null,{"$f":"IF($C$436=\"\",\"\",AV436/$C$436)","v":""},null,{"$f":"IF($C$436=\"\",\"\",AX436/$C$436)","v":""},null,{"$f":"IF($C$436=\"\",\"\",AZ436/$C$436)","v":""},null,{"$f":"IF($C$436=\"\",\"\",BB436/$C$436)","v":""},null,0]
[null,null,null,null,{"$f":"IF($C$437=\"\",\"\",F437/$C$437)","v":""},null,{"$f":"IF($C$437=\"\",\"\",H437/$C$437)","v":""},null,{"$f":"IF($C$437=\"\",\"\",J437/$C$437)","v":""},null,{"$f":"IF($C$437=\"\",\"\",L437/$C$437)","v":""},null,{"$f":"IF($C$437=\"\",\"\",N437/$C$437)","v":""},null,{"$f":"IF($C$437=\"\",\"\",P437/$C$437)","v":""},null,{"$f":"IF($C$437=\"\",\"\",R437/$C$437)","v":""},null,{"$f":"IF($C$437=\"\",\"\",T437/$C$437)","v":""},null,{"$f":"IF($C$437=\"\",\"\",V437/$C$437)","v":""},null,{"$f":"IF($C$437=\"\",\"\",X437/$C$437)","v":""},null,{"$f":"IF($C$437=\"\",\"\",Z437/$C$437)","v":""},null,{"$f":"IF($C$437=\"\",\"\",AB437/$C$437)","v":""},null,{"$f":"IF($C$437=\"\",\"\",AD437/$C$437)","v":""},null,{"$f":"IF($C$437=\"\",\"\",AF437/$C$437)","v":""},null,{"$f":"IF($C$437=\"\",\"\",AH437/$C$437)","v":""},null,{"$f":"IF($C$437=\"\",\"\",AJ437/$C$437)","v":""},null,{"$f":"IF($C$437=\"\",\"\",AL437/$C$437)","v":""},null,{"$f":"IF($C$437=\"\",\"\",AN437/$C$437)","v":""},null,{"$f":"IF($C$437=\"\",\"\",AP437/$C$437)","v":""},null,{"$f":"IF($C$437=\"\",\"\",AR437/$C$437)","v":""},null,{"$f":"IF($C$437=\"\",\"\",AT437/$C$437)","v":""},null,{"$f":"IF($C$437=\"\",\"\",AV437/$C$437)","v":""},null,{"$f":"IF($C$437=\"\",\"\",AX437/$C$437)","v":""},null,{"$f":"IF($C$437=\"\",\"\",AZ437/$C$437)","v":""},null,{"$f":"IF($C$437=\"\",\"\",BB437/$C$437)","v":""},null,0]
[null,null,null,null,{"$f":"IF($C$438=\"\",\"\",F438/$C$438)","v":""},null,{"$f":"IF($C$438=\"\",\"\",H438/$C$438)","v":""},null,{"$f":"IF($C$438=\"\",\"\",J438/$C$438)","v":""},null,{"$f":"IF($C$438=\"\",\"\",L438/$C$438)","v":""},null,{"$f":"IF($C$438=\"\",\"\",N438/$C$438)","v":""},null,{"$f":"IF($C$438=\"\",\"\",P438/$C$438)","v":""},null,{"$f":"IF($C$438=\"\",\"\",R438/$C$438)","v":""},null,{"$f":"IF($C$438=\"\",\"\",T438/$C$438)","v":""},null,{"$f":"IF($C$438=\"\",\"\",V438/$C$438)","v":""},null,{"$f":"IF($C$438=\"\",\"\",X438/$C$438)","v":""},null,{"$f":"IF($C$438=\"\",\"\",Z438/$C$438)","v":""},null,{"$f":"IF($C$438=\"\",\"\",AB438/$C$438)","v":""},null,{"$f":"IF($C$438=\"\",\"\",AD438/$C$438)","v":""},null,{"$f":"IF($C$438=\"\",\"\",AF438/$C$438)","v":""},null,{"$f":"IF($C$438=\"\",\"\",AH438/$C$438)","v":""},null,{"$f":"IF($C$438=\"\",\"\",AJ438/$C$438)","v":""},null,{"$f":"IF($C$438=\"\",\"\",AL438/$C$438)","v":""},null,{"$f":"IF($C$438=\"\",\"\",AN438/$C$438)","v":""},null,{"$f":"IF($C$438=\"\",\"\",AP438/$C$438)","v":""},null,{"$f":"IF($C$438=\"\",\"\",AR438/$C$438)","v":""},null,{"$f":"IF($C$438=\"\",\"\",AT438/$C$438)","v":""},null,{"$f":"IF($C$438=\"\",\"\",AV438/$C$438)","v":""},null,{"$f":"IF($C$438=\"\",\"\",AX438/$C$438)","v":""},null,{"$f":"IF($C$438=\"\",\"\",AZ438/$C$438)","v":""},null,{"$f":"IF($C$438=\"\",\"\",BB438/$C$438)","v":""},null,0]
[null,null,null,null,{"$f":"IF($C$439=\"\",\"\",F439/$C$439)","v":""},null,{"$f":"IF($C$439=\"\",\"\",H439/$C$439)","v":""},null,{"$f":"IF($C$439=\"\",\"\",J439/$C$439)","v":""},null,{"$f":"IF($C$439=\"\",\"\",L439/$C$439)","v":""},null,{"$f":"IF($C$439=\"\",\"\",N439/$C$439)","v":""},null,{"$f":"IF($C$439=\"\",\"\",P439/$C$439)","v":""},null,{"$f":"IF($C$439=\"\",\"\",R439/$C$439)","v":""},null,{"$f":"IF($C$439=\"\",\"\",T439/$C$439)","v":""},null,{"$f":"IF($C$439=\"\",\"\",V439/$C$439)","v":""},null,{"$f":"IF($C$439=\"\",\"\",X439/$C$439)","v":""},null,{"$f":"IF($C$439=\"\",\"\",Z439/$C$439)","v":""},null,{"$f":"IF($C$439=\"\",\"\",AB439/$C$439)","v":""},null,{"$f":"IF($C$439=\"\",\"\",AD439/$C$439)","v":""},null,{"$f":"IF($C$439=\"\",\"\",AF439/$C$439)","v":""},null,{"$f":"IF($C$439=\"\",\"\",AH439/$C$439)","v":""},null,{"$f":"IF($C$439=\"\",\"\",AJ439/$C$439)","v":""},null,{"$f":"IF($C$439=\"\",\"\",AL439/$C$439)","v":""},null,{"$f":"IF($C$439=\"\",\"\",AN439/$C$439)","v":""},null,{"$f":"IF($C$439=\"\",\"\",AP439/$C$439)","v":""},null,{"$f":"IF($C$439=\"\",\"\",AR439/$C$439)","v":""},null,{"$f":"IF($C$439=\"\",\"\",AT439/$C$439)","v":""},null,{"$f":"IF($C$439=\"\",\"\",AV439/$C$439)","v":""},null,{"$f":"IF($C$439=\"\",\"\",AX439/$C$439)","v":""},null,{"$f":"IF($C$439=\"\",\"\",AZ439/$C$439)","v":""},null,{"$f":"IF($C$439=\"\",\"\",BB439/$C$439)","v":""},null,{"$f":"SUM(BB439,AZ439,AX439,AV439,AT439,AR439,AP439,AN439,AL439,AJ439,AH439,AF439,AD439,AB439,Z439,X439,V439,T439,R439,P439,N439,L439,J439,H439,F439)","v":0}]
["TOTAL HOURS",null,null,null,null,{"$f":"SUM(F410:F439)","v":0},null,{"$f":"SUM(H410:H439)","v":0},null,{"$f":"SUM(J410:J439)","v":0},null,{"$f":"SUM(L410:L439)","v":0},null,{"$f":"SUM(N410:N439)","v":0},null,{"$f":"SUM(P410:P439)","v":0},null,{"$f":"SUM(R410:R439)","v":0},null,{"$f":"SUM(T410:T439)","v":0},null,{"$f":"SUM(V410:V439)","v":0},null,{"$f":"SUM(X410:X439)","v":0},null,{"$f":"SUM(Z410:Z439)","v":0},null,{"$f":"SUM(AB410:AB439)","v":0},null,{"$f":"SUM(AD410:AD439)","v":0},null,{"$f":"SUM(AF410:AF439)","v":0},null,{"$f":"SUM(AH410:AH439)","v":0},null,{"$f":"SUM(AJ410:AJ439)","v":0},null,{"$f":"SUM(AL410:AL439)","v":0},null,{"$f":"SUM(AN410:AN439)","v":0},null,{"$f":"SUM(AP410:AP439)","v":0},null,{"$f":"SUM(AR410:AR439)","v":0},null,{"$f":"SUM(AT410:AT439)","v":0},null,{"$f":"SUM(AV410:AV439)","v":0},null,{"$f":"SUM(AX410:AX439)","v":0},null,{"$f":"SUM(AZ410:AZ439)","v":0},null,{"$f":"SUM(BB410:BB439)","v":0},{"$f":"SUM(E440:BB440)","v":0}]
["TOTAL WORKDAYS",null,null,null,null,{"$f":"F440/8","v":0},null,{"$f":"H440/8","v":0},null,{"$f":"J440/8","v":0},null,{"$f":"L440/8","v":0},null,{"$f":"N440/8","v":0},null,{"$f":"P440/8","v":0},null,{"$f":"R440/8","v":0},null,{"$f":"T440/8","v":0},null,{"$f":"V440/8","v":0},null,{"$f":"X440/8","v":0},null,{"$f":"Z440/8","v":0},null,{"$f":"AB440/8","v":0},null,{"$f":"AD440/8","v":0},null,0,null,{"$f":"AH440/8","v":0},null,0,null,{"$f":"AL440/8","v":0},null,0,null,{"$f":"AP440/8","v":0},null,0,null,{"$f":"AT440/8","v":0},null,{"$f":"AV440/8","v":0},null,{"$f":"AX440/8","v":0},null,{"$f":"AZ440/8","v":0},null,{"$f":"BB440/8","v":0},{"$f":"SUM(E441:BB441)","v":0}]
["TOTAL RAW LABOR",null,null,null,null,{"$f":"$E$13*F440","v":0},null,{"$f":"$G$13*H440","v":0},null,{"$f":"$I$13*J440","v":0},null,{"$f":"$K$13*L440","v":0},null,{"$f":"$M$13*N440","v":0},null,{"$f":"$O$13*P440","v":0},null,{"$f":"$Q$13*R440","v":0},null,{"$f":"$S$13*T440","v":0},null,{"$f":"$U$13*V440","v":0},null,{"$f":"$W$13*X440","v":0},null,{"$f":"$Y$13*Z440","v":0},null,{"$f":"$AA$13*AB440","v":0},null,{"$f":"$AC$13*AD440","v":0},null,{"$f":"$AC$13*AF440","v":0},null,{"$f":"$AC$13*AH440","v":0},null,{"$f":"$AC$13*AJ440","v":0},null,{"$f":"$AC$13*AL440","v":0},null,{"$f":"$AC$13*AN440","v":0},null,{"$f":"$AC$13*AP440","v":0},null,{"$f":"$AC$13*AR440","v":0},null,{"$f":"$AC$13*AT440","v":0},null,{"$f":"$AC$13*AV440","v":0},null,{"$f":"$AC$13*AX440","v":0},null,{"$f":"$AC$13*AZ440","v":0},null,{"$f":"$AC$13*BB440","v":0},{"$f":"SUM(E442:BB442)","v":0}]
["Task 17.0     ","REPLACE FIELD WITH CATEGORY NAME OF YOUR CHOOSING HERE",null,null,null,null,null,null,null,null,null,null,null,null,null,null,null,null,null,null,null,null,null,null,null,null,null,null,null,null,null,null,null,null,null,null,null,null,null,null,null,null,null,null,null,null,null,null,null,null,null,null,null,null,{"$f":"IF(B443=\"REPLACE FIELD WITH CATEGORY NAME OF YOUR CHOOSING HERE\",0,\"\")","v":0}]
[null,null,null,null,{"$f":"IF($C$444=\"\",\"\",F444/$C$444)","v":""},null,{"$f":"IF($C$444=\"\",\"\",H444/$C$444)","v":""},null,{"$f":"IF($C$444=\"\",\"\",J444/$C$444)","v":""},null,{"$f":"IF($C$444=\"\",\"\",L444/$C$444)","v":""},null,{"$f":"IF($C$444=\"\",\"\",N444/$C$444)","v":""},null,{"$f":"IF($C$444=\"\",\"\",P444/$C$444)","v":""},null,{"$f":"IF($C$444=\"\",\"\",R444/$C$444)","v":""},null,{"$f":"IF($C$444=\"\",\"\",T444/$C$444)","v":""},null,{"$f":"IF($C$444=\"\",\"\",V444/$C$444)","v":""},null,{"$f":"IF($C$444=\"\",\"\",X444/$C$444)","v":""},null,{"$f":"IF($C$444=\"\",\"\",Z444/$C$444)","v":""},null,{"$f":"IF($C$444=\"\",\"\",AB444/$C$444)","v":""},null,{"$f":"IF($C$444=\"\",\"\",AD444/$C$444)","v":""},null,{"$f":"IF($C$444=\"\",\"\",AF444/$C$444)","v":""},null,{"$f":"IF($C$444=\"\",\"\",AH444/$C$444)","v":""},null,{"$f":"IF($C$444=\"\",\"\",AJ444/$C$444)","v":""},null,{"$f":"IF($C$444=\"\",\"\",AL444/$C$444)","v":""},null,{"$f":"IF($C$444=\"\",\"\",AN444/$C$444)","v":""},null,{"$f":"IF($C$444=\"\",\"\",AP444/$C$444)","v":""},null,{"$f":"IF($C$444=\"\",\"\",AR444/$C$444)","v":""},null,{"$f":"IF($C$444=\"\",\"\",AT444/$C$444)","v":""},null,{"$f":"IF($C$444=\"\",\"\",AV444/$C$444)","v":""},null,{"$f":"IF($C$444=\"\",\"\",AX444/$C$444)","v":""},null,{"$f":"IF($C$444=\"\",\"\",AZ444/$C$444)","v":""},null,{"$f":"IF($C$444=\"\",\"\",BB444/$C$444)","v":""},null,{"$f":"SUM(BB444,AZ444,AX444,AV444,AT444,AR444,AP444,AN444,AL444,AJ444,AH444,AF444,AD444,AB444,Z444,X444,V444,T444,R444,P444,N444,L444,J444,H444,F444)","v":0}]
[null,null,null,null,{"$f":"IF($C$445=\"\",\"\",F445/$C$445)","v":""},null,{"$f":"IF($C$445=\"\",\"\",H445/$C$445)","v":""},null,{"$f":"IF($C$445=\"\",\"\",J445/$C$445)","v":""},null,{"$f":"IF($C$445=\"\",\"\",L445/$C$445)","v":""},null,{"$f":"IF($C$445=\"\",\"\",N445/$C$445)","v":""},null,{"$f":"IF($C$445=\"\",\"\",P445/$C$445)","v":""},null,{"$f":"IF($C$445=\"\",\"\",R445/$C$445)","v":""},null,{"$f":"IF($C$445=\"\",\"\",T445/$C$445)","v":""},null,{"$f":"IF($C$445=\"\",\"\",V445/$C$445)","v":""},null,{"$f":"IF($C$445=\"\",\"\",X445/$C$445)","v":""},null,{"$f":"IF($C$445=\"\",\"\",Z445/$C$445)","v":""},null,{"$f":"IF($C$445=\"\",\"\",AB445/$C$445)","v":""},null,{"$f":"IF($C$445=\"\",\"\",AD445/$C$445)","v":""},null,{"$f":"IF($C$445=\"\",\"\",AF445/$C$445)","v":""},null,{"$f":"IF($C$445=\"\",\"\",AH445/$C$445)","v":""},null,{"$f":"IF($C$445=\"\",\"\",AJ445/$C$445)","v":""},null,{"$f":"IF($C$445=\"\",\"\",AL445/$C$445)","v":""},null,{"$f":"IF($C$445=\"\",\"\",AN445/$C$445)","v":""},null,{"$f":"IF($C$445=\"\",\"\",AP445/$C$445)","v":""},null,{"$f":"IF($C$445=\"\",\"\",AR445/$C$445)","v":""},null,{"$f":"IF($C$445=\"\",\"\",AT445/$C$445)","v":""},null,{"$f":"IF($C$445=\"\",\"\",AV445/$C$445)","v":""},null,{"$f":"IF($C$445=\"\",\"\",AX445/$C$445)","v":""},null,{"$f":"IF($C$445=\"\",\"\",AZ445/$C$445)","v":""},null,{"$f":"IF($C$445=\"\",\"\",BB445/$C$445)","v":""},null,0]
[null,null,null,null,{"$f":"IF($C$446=\"\",\"\",F446/$C$446)","v":""},null,{"$f":"IF($C$446=\"\",\"\",H446/$C$446)","v":""},null,{"$f":"IF($C$446=\"\",\"\",J446/$C$446)","v":""},null,{"$f":"IF($C$446=\"\",\"\",L446/$C$446)","v":""},null,{"$f":"IF($C$446=\"\",\"\",N446/$C$446)","v":""},null,{"$f":"IF($C$446=\"\",\"\",P446/$C$446)","v":""},null,{"$f":"IF($C$446=\"\",\"\",R446/$C$446)","v":""},null,{"$f":"IF($C$446=\"\",\"\",T446/$C$446)","v":""},null,{"$f":"IF($C$446=\"\",\"\",V446/$C$446)","v":""},null,{"$f":"IF($C$446=\"\",\"\",X446/$C$446)","v":""},null,{"$f":"IF($C$446=\"\",\"\",Z446/$C$446)","v":""},null,{"$f":"IF($C$446=\"\",\"\",AB446/$C$446)","v":""},null,{"$f":"IF($C$446=\"\",\"\",AD446/$C$446)","v":""},null,{"$f":"IF($C$446=\"\",\"\",AF446/$C$446)","v":""},null,{"$f":"IF($C$446=\"\",\"\",AH446/$C$446)","v":""},null,{"$f":"IF($C$446=\"\",\"\",AJ446/$C$446)","v":""},null,{"$f":"IF($C$446=\"\",\"\",AL446/$C$446)","v":""},null,{"$f":"IF($C$446=\"\",\"\",AN446/$C$446)","v":""},null,{"$f":"IF($C$446=\"\",\"\",AP446/$C$446)","v":""},null,{"$f":"IF($C$446=\"\",\"\",AR446/$C$446)","v":""},null,{"$f":"IF($C$446=\"\",\"\",AT446/$C$446)","v":""},null,{"$f":"IF($C$446=\"\",\"\",AV446/$C$446)","v":""},null,{"$f":"IF($C$446=\"\",\"\",AX446/$C$446)","v":""},null,{"$f":"IF($C$446=\"\",\"\",AZ446/$C$446)","v":""},null,{"$f":"IF($C$446=\"\",\"\",BB446/$C$446)","v":""},null,0]
[null,null,null,null,{"$f":"IF($C$447=\"\",\"\",F447/$C$447)","v":""},null,{"$f":"IF($C$447=\"\",\"\",H447/$C$447)","v":""},null,{"$f":"IF($C$447=\"\",\"\",J447/$C$447)","v":""},null,{"$f":"IF($C$447=\"\",\"\",L447/$C$447)","v":""},null,{"$f":"IF($C$447=\"\",\"\",N447/$C$447)","v":""},null,{"$f":"IF($C$447=\"\",\"\",P447/$C$447)","v":""},null,{"$f":"IF($C$447=\"\",\"\",R447/$C$447)","v":""},null,{"$f":"IF($C$447=\"\",\"\",T447/$C$447)","v":""},null,{"$f":"IF($C$447=\"\",\"\",V447/$C$447)","v":""},null,{"$f":"IF($C$447=\"\",\"\",X447/$C$447)","v":""},null,{"$f":"IF($C$447=\"\",\"\",Z447/$C$447)","v":""},null,{"$f":"IF($C$447=\"\",\"\",AB447/$C$447)","v":""},null,{"$f":"IF($C$447=\"\",\"\",AD447/$C$447)","v":""},null,{"$f":"IF($C$447=\"\",\"\",AF447/$C$447)","v":""},null,{"$f":"IF($C$447=\"\",\"\",AH447/$C$447)","v":""},null,{"$f":"IF($C$447=\"\",\"\",AJ447/$C$447)","v":""},null,{"$f":"IF($C$447=\"\",\"\",AL447/$C$447)","v":""},null,{"$f":"IF($C$447=\"\",\"\",AN447/$C$447)","v":""},null,{"$f":"IF($C$447=\"\",\"\",AP447/$C$447)","v":""},null,{"$f":"IF($C$447=\"\",\"\",AR447/$C$447)","v":""},null,{"$f":"IF($C$447=\"\",\"\",AT447/$C$447)","v":""},null,{"$f":"IF($C$447=\"\",\"\",AV447/$C$447)","v":""},null,{"$f":"IF($C$447=\"\",\"\",AX447/$C$447)","v":""},null,{"$f":"IF($C$447=\"\",\"\",AZ447/$C$447)","v":""},null,{"$f":"IF($C$447=\"\",\"\",BB447/$C$447)","v":""},null,0]
[null,null,null,null,{"$f":"IF($C$448=\"\",\"\",F448/$C$448)","v":""},null,{"$f":"IF($C$448=\"\",\"\",H448/$C$448)","v":""},null,{"$f":"IF($C$448=\"\",\"\",J448/$C$448)","v":""},null,{"$f":"IF($C$448=\"\",\"\",L448/$C$448)","v":""},null,{"$f":"IF($C$448=\"\",\"\",N448/$C$448)","v":""},null,{"$f":"IF($C$448=\"\",\"\",P448/$C$448)","v":""},null,{"$f":"IF($C$448=\"\",\"\",R448/$C$448)","v":""},null,{"$f":"IF($C$448=\"\",\"\",T448/$C$448)","v":""},null,{"$f":"IF($C$448=\"\",\"\",V448/$C$448)","v":""},null,{"$f":"IF($C$448=\"\",\"\",X448/$C$448)","v":""},null,{"$f":"IF($C$448=\"\",\"\",Z448/$C$448)","v":""},null,{"$f":"IF($C$448=\"\",\"\",AB448/$C$448)","v":""},null,{"$f":"IF($C$448=\"\",\"\",AD448/$C$448)","v":""},null,{"$f":"IF($C$448=\"\",\"\",AF448/$C$448)","v":""},null,{"$f":"IF($C$448=\"\",\"\",AH448/$C$448)","v":""},null,{"$f":"IF($C$448=\"\",\"\",AJ448/$C$448)","v":""},null,{"$f":"IF($C$448=\"\",\"\",AL448/$C$448)","v":""},null,{"$f":"IF($C$448=\"\",\"\",AN448/$C$448)","v":""},null,{"$f":"IF($C$448=\"\",\"\",AP448/$C$448)","v":""},null,{"$f":"IF($C$448=\"\",\"\",AR448/$C$448)","v":""},null,{"$f":"IF($C$448=\"\",\"\",AT448/$C$448)","v":""},null,{"$f":"IF($C$448=\"\",\"\",AV448/$C$448)","v":""},null,{"$f":"IF($C$448=\"\",\"\",AX448/$C$448)","v":""},null,{"$f":"IF($C$448=\"\",\"\",AZ448/$C$448)","v":""},null,{"$f":"IF($C$448=\"\",\"\",BB448/$C$448)","v":""},null,0]
[null,null,null,null,{"$f":"IF($C$449=\"\",\"\",F449/$C$449)","v":""},null,{"$f":"IF($C$449=\"\",\"\",H449/$C$449)","v":""},null,{"$f":"IF($C$449=\"\",\"\",J449/$C$449)","v":""},null,{"$f":"IF($C$449=\"\",\"\",L449/$C$449)","v":""},null,{"$f":"IF($C$449=\"\",\"\",N449/$C$449)","v":""},null,{"$f":"IF($C$449=\"\",\"\",P449/$C$449)","v":""},null,{"$f":"IF($C$449=\"\",\"\",R449/$C$449)","v":""},null,{"$f":"IF($C$449=\"\",\"\",T449/$C$449)","v":""},null,{"$f":"IF($C$449=\"\",\"\",V449/$C$449)","v":""},null,{"$f":"IF($C$449=\"\",\"\",X449/$C$449)","v":""},null,{"$f":"IF($C$449=\"\",\"\",Z449/$C$449)","v":""},null,{"$f":"IF($C$449=\"\",\"\",AB449/$C$449)","v":""},null,{"$f":"IF($C$449=\"\",\"\",AD449/$C$449)","v":""},null,{"$f":"IF($C$449=\"\",\"\",AF449/$C$449)","v":""},null,{"$f":"IF($C$449=\"\",\"\",AH449/$C$449)","v":""},null,{"$f":"IF($C$449=\"\",\"\",AJ449/$C$449)","v":""},null,{"$f":"IF($C$449=\"\",\"\",AL449/$C$449)","v":""},null,{"$f":"IF($C$449=\"\",\"\",AN449/$C$449)","v":""},null,{"$f":"IF($C$449=\"\",\"\",AP449/$C$449)","v":""},null,{"$f":"IF($C$449=\"\",\"\",AR449/$C$449)","v":""},null,{"$f":"IF($C$449=\"\",\"\",AT449/$C$449)","v":""},null,{"$f":"IF($C$449=\"\",\"\",AV449/$C$449)","v":""},null,{"$f":"IF($C$449=\"\",\"\",AX449/$C$449)","v":""},null,{"$f":"IF($C$449=\"\",\"\",AZ449/$C$449)","v":""},null,{"$f":"IF($C$449=\"\",\"\",BB449/$C$449)","v":""},null,0]
[null,null,null,null,{"$f":"IF($C$450=\"\",\"\",F450/$C$450)","v":""},null,{"$f":"IF($C$450=\"\",\"\",H450/$C$450)","v":""},null,{"$f":"IF($C$450=\"\",\"\",J450/$C$450)","v":""},null,{"$f":"IF($C$450=\"\",\"\",L450/$C$450)","v":""},null,{"$f":"IF($C$450=\"\",\"\",N450/$C$450)","v":""},null,{"$f":"IF($C$450=\"\",\"\",P450/$C$450)","v":""},null,{"$f":"IF($C$450=\"\",\"\",R450/$C$450)","v":""},null,{"$f":"IF($C$450=\"\",\"\",T450/$C$450)","v":""},null,{"$f":"IF($C$450=\"\",\"\",V450/$C$450)","v":""},null,{"$f":"IF($C$450=\"\",\"\",X450/$C$450)","v":""},null,{"$f":"IF($C$450=\"\",\"\",Z450/$C$450)","v":""},null,{"$f":"IF($C$450=\"\",\"\",AB450/$C$450)","v":""},null,{"$f":"IF($C$450=\"\",\"\",AD450/$C$450)","v":""},null,{"$f":"IF($C$450=\"\",\"\",AF450/$C$450)","v":""},null,{"$f":"IF($C$450=\"\",\"\",AH450/$C$450)","v":""},null,{"$f":"IF($C$450=\"\",\"\",AJ450/$C$450)","v":""},null,{"$f":"IF($C$450=\"\",\"\",AL450/$C$450)","v":""},null,{"$f":"IF($C$450=\"\",\"\",AN450/$C$450)","v":""},null,{"$f":"IF($C$450=\"\",\"\",AP450/$C$450)","v":""},null,{"$f":"IF($C$450=\"\",\"\",AR450/$C$450)","v":""},null,{"$f":"IF($C$450=\"\",\"\",AT450/$C$450)","v":""},null,{"$f":"IF($C$450=\"\",\"\",AV450/$C$450)","v":""},null,{"$f":"IF($C$450=\"\",\"\",AX450/$C$450)","v":""},null,{"$f":"IF($C$450=\"\",\"\",AZ450/$C$450)","v":""},null,{"$f":"IF($C$450=\"\",\"\",BB450/$C$450)","v":""},null,0]
[null,null,null,null,{"$f":"IF($C$451=\"\",\"\",F451/$C$451)","v":""},null,{"$f":"IF($C$451=\"\",\"\",H451/$C$451)","v":""},null,{"$f":"IF($C$451=\"\",\"\",J451/$C$451)","v":""},null,{"$f":"IF($C$451=\"\",\"\",L451/$C$451)","v":""},null,{"$f":"IF($C$451=\"\",\"\",N451/$C$451)","v":""},null,{"$f":"IF($C$451=\"\",\"\",P451/$C$451)","v":""},null,{"$f":"IF($C$451=\"\",\"\",R451/$C$451)","v":""},null,{"$f":"IF($C$451=\"\",\"\",T451/$C$451)","v":""},null,{"$f":"IF($C$451=\"\",\"\",V451/$C$451)","v":""},null,{"$f":"IF($C$451=\"\",\"\",X451/$C$451)","v":""},null,{"$f":"IF($C$451=\"\",\"\",Z451/$C$451)","v":""},null,{"$f":"IF($C$451=\"\",\"\",AB451/$C$451)","v":""},null,{"$f":"IF($C$451=\"\",\"\",AD451/$C$451)","v":""},null,{"$f":"IF($C$451=\"\",\"\",AF451/$C$451)","v":""},null,{"$f":"IF($C$451=\"\",\"\",AH451/$C$451)","v":""},null,{"$f":"IF($C$451=\"\",\"\",AJ451/$C$451)","v":""},null,{"$f":"IF($C$451=\"\",\"\",AL451/$C$451)","v":""},null,{"$f":"IF($C$451=\"\",\"\",AN451/$C$451)","v":""},null,{"$f":"IF($C$451=\"\",\"\",AP451/$C$451)","v":""},null,{"$f":"IF($C$451=\"\",\"\",AR451/$C$451)","v":""},null,{"$f":"IF($C$451=\"\",\"\",AT451/$C$451)","v":""},null,{"$f":"IF($C$451=\"\",\"\",AV451/$C$451)","v":""},null,{"$f":"IF($C$451=\"\",\"\",AX451/$C$451)","v":""},null,{"$f":"IF($C$451=\"\",\"\",AZ451/$C$451)","v":""},null,{"$f":"IF($C$451=\"\",\"\",BB451/$C$451)","v":""},null,0]
[null,null,null,null,{"$f":"IF($C$452=\"\",\"\",F452/$C$452)","v":""},null,{"$f":"IF($C$452=\"\",\"\",H452/$C$452)","v":""},null,{"$f":"IF($C$452=\"\",\"\",J452/$C$452)","v":""},null,{"$f":"IF($C$452=\"\",\"\",L452/$C$452)","v":""},null,{"$f":"IF($C$452=\"\",\"\",N452/$C$452)","v":""},null,{"$f":"IF($C$452=\"\",\"\",P452/$C$452)","v":""},null,{"$f":"IF($C$452=\"\",\"\",R452/$C$452)","v":""},null,{"$f":"IF($C$452=\"\",\"\",T452/$C$452)","v":""},null,{"$f":"IF($C$452=\"\",\"\",V452/$C$452)","v":""},null,{"$f":"IF($C$452=\"\",\"\",X452/$C$452)","v":""},null,{"$f":"IF($C$452=\"\",\"\",Z452/$C$452)","v":""},null,{"$f":"IF($C$452=\"\",\"\",AB452/$C$452)","v":""},null,{"$f":"IF($C$452=\"\",\"\",AD452/$C$452)","v":""},null,{"$f":"IF($C$452=\"\",\"\",AF452/$C$452)","v":""},null,{"$f":"IF($C$452=\"\",\"\",AH452/$C$452)","v":""},null,{"$f":"IF($C$452=\"\",\"\",AJ452/$C$452)","v":""},null,{"$f":"IF($C$452=\"\",\"\",AL452/$C$452)","v":""},null,{"$f":"IF($C$452=\"\",\"\",AN452/$C$452)","v":""},null,{"$f":"IF($C$452=\"\",\"\",AP452/$C$452)","v":""},null,{"$f":"IF($C$452=\"\",\"\",AR452/$C$452)","v":""},null,{"$f":"IF($C$452=\"\",\"\",AT452/$C$452)","v":""},null,{"$f":"IF($C$452=\"\",\"\",AV452/$C$452)","v":""},null,{"$f":"IF($C$452=\"\",\"\",AX452/$C$452)","v":""},null,{"$f":"IF($C$452=\"\",\"\",AZ452/$C$452)","v":""},null,{"$f":"IF($C$452=\"\",\"\",BB452/$C$452)","v":""},null,0]
[null,null,null,null,{"$f":"IF($C$453=\"\",\"\",F453/$C$453)","v":""},null,{"$f":"IF($C$453=\"\",\"\",H453/$C$453)","v":""},null,{"$f":"IF($C$453=\"\",\"\",J453/$C$453)","v":""},null,{"$f":"IF($C$453=\"\",\"\",L453/$C$453)","v":""},null,{"$f":"IF($C$453=\"\",\"\",N453/$C$453)","v":""},null,{"$f":"IF($C$453=\"\",\"\",P453/$C$453)","v":""},null,{"$f":"IF($C$453=\"\",\"\",R453/$C$453)","v":""},null,{"$f":"IF($C$453=\"\",\"\",T453/$C$453)","v":""},null,{"$f":"IF($C$453=\"\",\"\",V453/$C$453)","v":""},null,{"$f":"IF($C$453=\"\",\"\",X453/$C$453)","v":""},null,{"$f":"IF($C$453=\"\",\"\",Z453/$C$453)","v":""},null,{"$f":"IF($C$453=\"\",\"\",AB453/$C$453)","v":""},null,{"$f":"IF($C$453=\"\",\"\",AD453/$C$453)","v":""},null,{"$f":"IF($C$453=\"\",\"\",AF453/$C$453)","v":""},null,{"$f":"IF($C$453=\"\",\"\",AH453/$C$453)","v":""},null,{"$f":"IF($C$453=\"\",\"\",AJ453/$C$453)","v":""},null,{"$f":"IF($C$453=\"\",\"\",AL453/$C$453)","v":""},null,{"$f":"IF($C$453=\"\",\"\",AN453/$C$453)","v":""},null,{"$f":"IF($C$453=\"\",\"\",AP453/$C$453)","v":""},null,{"$f":"IF($C$453=\"\",\"\",AR453/$C$453)","v":""},null,{"$f":"IF($C$453=\"\",\"\",AT453/$C$453)","v":""},null,{"$f":"IF($C$453=\"\",\"\",AV453/$C$453)","v":""},null,{"$f":"IF($C$453=\"\",\"\",AX453/$C$453)","v":""},null,{"$f":"IF($C$453=\"\",\"\",AZ453/$C$453)","v":""},null,{"$f":"IF($C$453=\"\",\"\",BB453/$C$453)","v":""},null,0]
[null,null,null,null,{"$f":"IF($C$454=\"\",\"\",F454/$C$454)","v":""},null,{"$f":"IF($C$454=\"\",\"\",H454/$C$454)","v":""},null,{"$f":"IF($C$454=\"\",\"\",J454/$C$454)","v":""},null,{"$f":"IF($C$454=\"\",\"\",L454/$C$454)","v":""},null,{"$f":"IF($C$454=\"\",\"\",N454/$C$454)","v":""},null,{"$f":"IF($C$454=\"\",\"\",P454/$C$454)","v":""},null,{"$f":"IF($C$454=\"\",\"\",R454/$C$454)","v":""},null,{"$f":"IF($C$454=\"\",\"\",T454/$C$454)","v":""},null,{"$f":"IF($C$454=\"\",\"\",V454/$C$454)","v":""},null,{"$f":"IF($C$454=\"\",\"\",X454/$C$454)","v":""},null,{"$f":"IF($C$454=\"\",\"\",Z454/$C$454)","v":""},null,{"$f":"IF($C$454=\"\",\"\",AB454/$C$454)","v":""},null,{"$f":"IF($C$454=\"\",\"\",AD454/$C$454)","v":""},null,{"$f":"IF($C$454=\"\",\"\",AF454/$C$454)","v":""},null,{"$f":"IF($C$454=\"\",\"\",AH454/$C$454)","v":""},null,{"$f":"IF($C$454=\"\",\"\",AJ454/$C$454)","v":""},null,{"$f":"IF($C$454=\"\",\"\",AL454/$C$454)","v":""},null,{"$f":"IF($C$454=\"\",\"\",AN454/$C$454)","v":""},null,{"$f":"IF($C$454=\"\",\"\",AP454/$C$454)","v":""},null,{"$f":"IF($C$454=\"\",\"\",AR454/$C$454)","v":""},null,{"$f":"IF($C$454=\"\",\"\",AT454/$C$454)","v":""},null,{"$f":"IF($C$454=\"\",\"\",AV454/$C$454)","v":""},null,{"$f":"IF($C$454=\"\",\"\",AX454/$C$454)","v":""},null,{"$f":"IF($C$454=\"\",\"\",AZ454/$C$454)","v":""},null,{"$f":"IF($C$454=\"\",\"\",BB454/$C$454)","v":""},null,0]
[null,null,null,null,{"$f":"IF($C$455=\"\",\"\",F455/$C$455)","v":""},null,{"$f":"IF($C$455=\"\",\"\",H455/$C$455)","v":""},null,{"$f":"IF($C$455=\"\",\"\",J455/$C$455)","v":""},null,{"$f":"IF($C$455=\"\",\"\",L455/$C$455)","v":""},null,{"$f":"IF($C$455=\"\",\"\",N455/$C$455)","v":""},null,{"$f":"IF($C$455=\"\",\"\",P455/$C$455)","v":""},null,{"$f":"IF($C$455=\"\",\"\",R455/$C$455)","v":""},null,{"$f":"IF($C$455=\"\",\"\",T455/$C$455)","v":""},null,{"$f":"IF($C$455=\"\",\"\",V455/$C$455)","v":""},null,{"$f":"IF($C$455=\"\",\"\",X455/$C$455)","v":""},null,{"$f":"IF($C$455=\"\",\"\",Z455/$C$455)","v":""},null,{"$f":"IF($C$455=\"\",\"\",AB455/$C$455)","v":""},null,{"$f":"IF($C$455=\"\",\"\",AD455/$C$455)","v":""},null,{"$f":"IF($C$455=\"\",\"\",AF455/$C$455)","v":""},null,{"$f":"IF($C$455=\"\",\"\",AH455/$C$455)","v":""},null,{"$f":"IF($C$455=\"\",\"\",AJ455/$C$455)","v":""},null,{"$f":"IF($C$455=\"\",\"\",AL455/$C$455)","v":""},null,{"$f":"IF($C$455=\"\",\"\",AN455/$C$455)","v":""},null,{"$f":"IF($C$455=\"\",\"\",AP455/$C$455)","v":""},null,{"$f":"IF($C$455=\"\",\"\",AR455/$C$455)","v":""},null,{"$f":"IF($C$455=\"\",\"\",AT455/$C$455)","v":""},null,{"$f":"IF($C$455=\"\",\"\",AV455/$C$455)","v":""},null,{"$f":"IF($C$455=\"\",\"\",AX455/$C$455)","v":""},null,{"$f":"IF($C$455=\"\",\"\",AZ455/$C$455)","v":""},null,{"$f":"IF($C$455=\"\",\"\",BB455/$C$455)","v":""},null,0]
[null,null,null,null,{"$f":"IF($C$456=\"\",\"\",F456/$C$456)","v":""},null,{"$f":"IF($C$456=\"\",\"\",H456/$C$456)","v":""},null,{"$f":"IF($C$456=\"\",\"\",J456/$C$456)","v":""},null,{"$f":"IF($C$456=\"\",\"\",L456/$C$456)","v":""},null,{"$f":"IF($C$456=\"\",\"\",N456/$C$456)","v":""},null,{"$f":"IF($C$456=\"\",\"\",P456/$C$456)","v":""},null,{"$f":"IF($C$456=\"\",\"\",R456/$C$456)","v":""},null,{"$f":"IF($C$456=\"\",\"\",T456/$C$456)","v":""},null,{"$f":"IF($C$456=\"\",\"\",V456/$C$456)","v":""},null,{"$f":"IF($C$456=\"\",\"\",X456/$C$456)","v":""},null,{"$f":"IF($C$456=\"\",\"\",Z456/$C$456)","v":""},null,{"$f":"IF($C$456=\"\",\"\",AB456/$C$456)","v":""},null,{"$f":"IF($C$456=\"\",\"\",AD456/$C$456)","v":""},null,{"$f":"IF($C$456=\"\",\"\",AF456/$C$456)","v":""},null,{"$f":"IF($C$456=\"\",\"\",AH456/$C$456)","v":""},null,{"$f":"IF($C$456=\"\",\"\",AJ456/$C$456)","v":""},null,{"$f":"IF($C$456=\"\",\"\",AL456/$C$456)","v":""},null,{"$f":"IF($C$456=\"\",\"\",AN456/$C$456)","v":""},null,{"$f":"IF($C$456=\"\",\"\",AP456/$C$456)","v":""},null,{"$f":"IF($C$456=\"\",\"\",AR456/$C$456)","v":""},null,{"$f":"IF($C$456=\"\",\"\",AT456/$C$456)","v":""},null,{"$f":"IF($C$456=\"\",\"\",AV456/$C$456)","v":""},null,{"$f":"IF($C$456=\"\",\"\",AX456/$C$456)","v":""},null,{"$f":"IF($C$456=\"\",\"\",AZ456/$C$456)","v":""},null,{"$f":"IF($C$456=\"\",\"\",BB456/$C$456)","v":""},null,0]
[null,null,null,null,{"$f":"IF($C$457=\"\",\"\",F457/$C$457)","v":""},null,{"$f":"IF($C$457=\"\",\"\",H457/$C$457)","v":""},null,{"$f":"IF($C$457=\"\",\"\",J457/$C$457)","v":""},null,{"$f":"IF($C$457=\"\",\"\",L457/$C$457)","v":""},null,{"$f":"IF($C$457=\"\",\"\",N457/$C$457)","v":""},null,{"$f":"IF($C$457=\"\",\"\",P457/$C$457)","v":""},null,{"$f":"IF($C$457=\"\",\"\",R457/$C$457)","v":""},null,{"$f":"IF($C$457=\"\",\"\",T457/$C$457)","v":""},null,{"$f":"IF($C$457=\"\",\"\",V457/$C$457)","v":""},null,{"$f":"IF($C$457=\"\",\"\",X457/$C$457)","v":""},null,{"$f":"IF($C$457=\"\",\"\",Z457/$C$457)","v":""},null,{"$f":"IF($C$457=\"\",\"\",AB457/$C$457)","v":""},null,{"$f":"IF($C$457=\"\",\"\",AD457/$C$457)","v":""},null,{"$f":"IF($C$457=\"\",\"\",AF457/$C$457)","v":""},null,{"$f":"IF($C$457=\"\",\"\",AH457/$C$457)","v":""},null,{"$f":"IF($C$457=\"\",\"\",AJ457/$C$457)","v":""},null,{"$f":"IF($C$457=\"\",\"\",AL457/$C$457)","v":""},null,{"$f":"IF($C$457=\"\",\"\",AN457/$C$457)","v":""},null,{"$f":"IF($C$457=\"\",\"\",AP457/$C$457)","v":""},null,{"$f":"IF($C$457=\"\",\"\",AR457/$C$457)","v":""},null,{"$f":"IF($C$457=\"\",\"\",AT457/$C$457)","v":""},null,{"$f":"IF($C$457=\"\",\"\",AV457/$C$457)","v":""},null,{"$f":"IF($C$457=\"\",\"\",AX457/$C$457)","v":""},null,{"$f":"IF($C$457=\"\",\"\",AZ457/$C$457)","v":""},null,{"$f":"IF($C$457=\"\",\"\",BB457/$C$457)","v":""},null,0]
[null,null,null,null,{"$f":"IF($C$458=\"\",\"\",F458/$C$458)","v":""},null,{"$f":"IF($C$458=\"\",\"\",H458/$C$458)","v":""},null,{"$f":"IF($C$458=\"\",\"\",J458/$C$458)","v":""},null,{"$f":"IF($C$458=\"\",\"\",L458/$C$458)","v":""},null,{"$f":"IF($C$458=\"\",\"\",N458/$C$458)","v":""},null,{"$f":"IF($C$458=\"\",\"\",P458/$C$458)","v":""},null,{"$f":"IF($C$458=\"\",\"\",R458/$C$458)","v":""},null,{"$f":"IF($C$458=\"\",\"\",T458/$C$458)","v":""},null,{"$f":"IF($C$458=\"\",\"\",V458/$C$458)","v":""},null,{"$f":"IF($C$458=\"\",\"\",X458/$C$458)","v":""},null,{"$f":"IF($C$458=\"\",\"\",Z458/$C$458)","v":""},null,{"$f":"IF($C$458=\"\",\"\",AB458/$C$458)","v":""},null,{"$f":"IF($C$458=\"\",\"\",AD458/$C$458)","v":""},null,{"$f":"IF($C$458=\"\",\"\",AF458/$C$458)","v":""},null,{"$f":"IF($C$458=\"\",\"\",AH458/$C$458)","v":""},null,{"$f":"IF($C$458=\"\",\"\",AJ458/$C$458)","v":""},null,{"$f":"IF($C$458=\"\",\"\",AL458/$C$458)","v":""},null,{"$f":"IF($C$458=\"\",\"\",AN458/$C$458)","v":""},null,{"$f":"IF($C$458=\"\",\"\",AP458/$C$458)","v":""},null,{"$f":"IF($C$458=\"\",\"\",AR458/$C$458)","v":""},null,{"$f":"IF($C$458=\"\",\"\",AT458/$C$458)","v":""},null,{"$f":"IF($C$458=\"\",\"\",AV458/$C$458)","v":""},null,{"$f":"IF($C$458=\"\",\"\",AX458/$C$458)","v":""},null,{"$f":"IF($C$458=\"\",\"\",AZ458/$C$458)","v":""},null,{"$f":"IF($C$458=\"\",\"\",BB458/$C$458)","v":""},null,0]
[null,null,null,null,{"$f":"IF($C$459=\"\",\"\",F459/$C$459)","v":""},null,{"$f":"IF($C$459=\"\",\"\",H459/$C$459)","v":""},null,{"$f":"IF($C$459=\"\",\"\",J459/$C$459)","v":""},null,{"$f":"IF($C$459=\"\",\"\",L459/$C$459)","v":""},null,{"$f":"IF($C$459=\"\",\"\",N459/$C$459)","v":""},null,{"$f":"IF($C$459=\"\",\"\",P459/$C$459)","v":""},null,{"$f":"IF($C$459=\"\",\"\",R459/$C$459)","v":""},null,{"$f":"IF($C$459=\"\",\"\",T459/$C$459)","v":""},null,{"$f":"IF($C$459=\"\",\"\",V459/$C$459)","v":""},null,{"$f":"IF($C$459=\"\",\"\",X459/$C$459)","v":""},null,{"$f":"IF($C$459=\"\",\"\",Z459/$C$459)","v":""},null,{"$f":"IF($C$459=\"\",\"\",AB459/$C$459)","v":""},null,{"$f":"IF($C$459=\"\",\"\",AD459/$C$459)","v":""},null,{"$f":"IF($C$459=\"\",\"\",AF459/$C$459)","v":""},null,{"$f":"IF($C$459=\"\",\"\",AH459/$C$459)","v":""},null,{"$f":"IF($C$459=\"\",\"\",AJ459/$C$459)","v":""},null,{"$f":"IF($C$459=\"\",\"\",AL459/$C$459)","v":""},null,{"$f":"IF($C$459=\"\",\"\",AN459/$C$459)","v":""},null,{"$f":"IF($C$459=\"\",\"\",AP459/$C$459)","v":""},null,{"$f":"IF($C$459=\"\",\"\",AR459/$C$459)","v":""},null,{"$f":"IF($C$459=\"\",\"\",AT459/$C$459)","v":""},null,{"$f":"IF($C$459=\"\",\"\",AV459/$C$459)","v":""},null,{"$f":"IF($C$459=\"\",\"\",AX459/$C$459)","v":""},null,{"$f":"IF($C$459=\"\",\"\",AZ459/$C$459)","v":""},null,{"$f":"IF($C$459=\"\",\"\",BB459/$C$459)","v":""},null,0]
[null,null,null,null,{"$f":"IF($C$460=\"\",\"\",F460/$C$460)","v":""},null,{"$f":"IF($C$460=\"\",\"\",H460/$C$460)","v":""},null,{"$f":"IF($C$460=\"\",\"\",J460/$C$460)","v":""},null,{"$f":"IF($C$460=\"\",\"\",L460/$C$460)","v":""},null,{"$f":"IF($C$460=\"\",\"\",N460/$C$460)","v":""},null,{"$f":"IF($C$460=\"\",\"\",P460/$C$460)","v":""},null,{"$f":"IF($C$460=\"\",\"\",R460/$C$460)","v":""},null,{"$f":"IF($C$460=\"\",\"\",T460/$C$460)","v":""},null,{"$f":"IF($C$460=\"\",\"\",V460/$C$460)","v":""},null,{"$f":"IF($C$460=\"\",\"\",X460/$C$460)","v":""},null,{"$f":"IF($C$460=\"\",\"\",Z460/$C$460)","v":""},null,{"$f":"IF($C$460=\"\",\"\",AB460/$C$460)","v":""},null,{"$f":"IF($C$460=\"\",\"\",AD460/$C$460)","v":""},null,{"$f":"IF($C$460=\"\",\"\",AF460/$C$460)","v":""},null,{"$f":"IF($C$460=\"\",\"\",AH460/$C$460)","v":""},null,{"$f":"IF($C$460=\"\",\"\",AJ460/$C$460)","v":""},null,{"$f":"IF($C$460=\"\",\"\",AL460/$C$460)","v":""},null,{"$f":"IF($C$460=\"\",\"\",AN460/$C$460)","v":""},null,{"$f":"IF($C$460=\"\",\"\",AP460/$C$460)","v":""},null,{"$f":"IF($C$460=\"\",\"\",AR460/$C$460)","v":""},null,{"$f":"IF($C$460=\"\",\"\",AT460/$C$460)","v":""},null,{"$f":"IF($C$460=\"\",\"\",AV460/$C$460)","v":""},null,{"$f":"IF($C$460=\"\",\"\",AX460/$C$460)","v":""},null,{"$f":"IF($C$460=\"\",\"\",AZ460/$C$460)","v":""},null,{"$f":"IF($C$460=\"\",\"\",BB460/$C$460)","v":""},null,0]
[null,null,null,null,{"$f":"IF($C$461=\"\",\"\",F461/$C$461)","v":""},null,{"$f":"IF($C$461=\"\",\"\",H461/$C$461)","v":""},null,{"$f":"IF($C$461=\"\",\"\",J461/$C$461)","v":""},null,{"$f":"IF($C$461=\"\",\"\",L461/$C$461)","v":""},null,{"$f":"IF($C$461=\"\",\"\",N461/$C$461)","v":""},null,{"$f":"IF($C$461=\"\",\"\",P461/$C$461)","v":""},null,{"$f":"IF($C$461=\"\",\"\",R461/$C$461)","v":""},null,{"$f":"IF($C$461=\"\",\"\",T461/$C$461)","v":""},null,{"$f":"IF($C$461=\"\",\"\",V461/$C$461)","v":""},null,{"$f":"IF($C$461=\"\",\"\",X461/$C$461)","v":""},null,{"$f":"IF($C$461=\"\",\"\",Z461/$C$461)","v":""},null,{"$f":"IF($C$461=\"\",\"\",AB461/$C$461)","v":""},null,{"$f":"IF($C$461=\"\",\"\",AD461/$C$461)","v":""},null,{"$f":"IF($C$461=\"\",\"\",AF461/$C$461)","v":""},null,{"$f":"IF($C$461=\"\",\"\",AH461/$C$461)","v":""},null,{"$f":"IF($C$461=\"\",\"\",AJ461/$C$461)","v":""},null,{"$f":"IF($C$461=\"\",\"\",AL461/$C$461)","v":""},null,{"$f":"IF($C$461=\"\",\"\",AN461/$C$461)","v":""},null,{"$f":"IF($C$461=\"\",\"\",AP461/$C$461)","v":""},null,{"$f":"IF($C$461=\"\",\"\",AR461/$C$461)","v":""},null,{"$f":"IF($C$461=\"\",\"\",AT461/$C$461)","v":""},null,{"$f":"IF($C$461=\"\",\"\",AV461/$C$461)","v":""},null,{"$f":"IF($C$461=\"\",\"\",AX461/$C$461)","v":""},null,{"$f":"IF($C$461=\"\",\"\",AZ461/$C$461)","v":""},null,{"$f":"IF($C$461=\"\",\"\",BB461/$C$461)","v":""},null,0]
[null,null,null,null,{"$f":"IF($C$462=\"\",\"\",F462/$C$462)","v":""},null,{"$f":"IF($C$462=\"\",\"\",H462/$C$462)","v":""},null,{"$f":"IF($C$462=\"\",\"\",J462/$C$462)","v":""},null,{"$f":"IF($C$462=\"\",\"\",L462/$C$462)","v":""},null,{"$f":"IF($C$462=\"\",\"\",N462/$C$462)","v":""},null,{"$f":"IF($C$462=\"\",\"\",P462/$C$462)","v":""},null,{"$f":"IF($C$462=\"\",\"\",R462/$C$462)","v":""},null,{"$f":"IF($C$462=\"\",\"\",T462/$C$462)","v":""},null,{"$f":"IF($C$462=\"\",\"\",V462/$C$462)","v":""},null,{"$f":"IF($C$462=\"\",\"\",X462/$C$462)","v":""},null,{"$f":"IF($C$462=\"\",\"\",Z462/$C$462)","v":""},null,{"$f":"IF($C$462=\"\",\"\",AB462/$C$462)","v":""},null,{"$f":"IF($C$462=\"\",\"\",AD462/$C$462)","v":""},null,{"$f":"IF($C$462=\"\",\"\",AF462/$C$462)","v":""},null,{"$f":"IF($C$462=\"\",\"\",AH462/$C$462)","v":""},null,{"$f":"IF($C$462=\"\",\"\",AJ462/$C$462)","v":""},null,{"$f":"IF($C$462=\"\",\"\",AL462/$C$462)","v":""},null,{"$f":"IF($C$462=\"\",\"\",AN462/$C$462)","v":""},null,{"$f":"IF($C$462=\"\",\"\",AP462/$C$462)","v":""},null,{"$f":"IF($C$462=\"\",\"\",AR462/$C$462)","v":""},null,{"$f":"IF($C$462=\"\",\"\",AT462/$C$462)","v":""},null,{"$f":"IF($C$462=\"\",\"\",AV462/$C$462)","v":""},null,{"$f":"IF($C$462=\"\",\"\",AX462/$C$462)","v":""},null,{"$f":"IF($C$462=\"\",\"\",AZ462/$C$462)","v":""},null,{"$f":"IF($C$462=\"\",\"\",BB462/$C$462)","v":""},null,0]
[null,null,null,null,{"$f":"IF($C$463=\"\",\"\",F463/$C$463)","v":""},null,{"$f":"IF($C$463=\"\",\"\",H463/$C$463)","v":""},null,{"$f":"IF($C$463=\"\",\"\",J463/$C$463)","v":""},null,{"$f":"IF($C$463=\"\",\"\",L463/$C$463)","v":""},null,{"$f":"IF($C$463=\"\",\"\",N463/$C$463)","v":""},null,{"$f":"IF($C$463=\"\",\"\",P463/$C$463)","v":""},null,{"$f":"IF($C$463=\"\",\"\",R463/$C$463)","v":""},null,{"$f":"IF($C$463=\"\",\"\",T463/$C$463)","v":""},null,{"$f":"IF($C$463=\"\",\"\",V463/$C$463)","v":""},null,{"$f":"IF($C$463=\"\",\"\",X463/$C$463)","v":""},null,{"$f":"IF($C$463=\"\",\"\",Z463/$C$463)","v":""},null,{"$f":"IF($C$463=\"\",\"\",AB463/$C$463)","v":""},null,{"$f":"IF($C$463=\"\",\"\",AD463/$C$463)","v":""},null,{"$f":"IF($C$463=\"\",\"\",AF463/$C$463)","v":""},null,{"$f":"IF($C$463=\"\",\"\",AH463/$C$463)","v":""},null,{"$f":"IF($C$463=\"\",\"\",AJ463/$C$463)","v":""},null,{"$f":"IF($C$463=\"\",\"\",AL463/$C$463)","v":""},null,{"$f":"IF($C$463=\"\",\"\",AN463/$C$463)","v":""},null,{"$f":"IF($C$463=\"\",\"\",AP463/$C$463)","v":""},null,{"$f":"IF($C$463=\"\",\"\",AR463/$C$463)","v":""},null,{"$f":"IF($C$463=\"\",\"\",AT463/$C$463)","v":""},null,{"$f":"IF($C$463=\"\",\"\",AV463/$C$463)","v":""},null,{"$f":"IF($C$463=\"\",\"\",AX463/$C$463)","v":""},null,{"$f":"IF($C$463=\"\",\"\",AZ463/$C$463)","v":""},null,{"$f":"IF($C$463=\"\",\"\",BB463/$C$463)","v":""},null,0]
[null,null,null,null,{"$f":"IF($C$464=\"\",\"\",F464/$C$464)","v":""},null,{"$f":"IF($C$464=\"\",\"\",H464/$C$464)","v":""},null,{"$f":"IF($C$464=\"\",\"\",J464/$C$464)","v":""},null,{"$f":"IF($C$464=\"\",\"\",L464/$C$464)","v":""},null,{"$f":"IF($C$464=\"\",\"\",N464/$C$464)","v":""},null,{"$f":"IF($C$464=\"\",\"\",P464/$C$464)","v":""},null,{"$f":"IF($C$464=\"\",\"\",R464/$C$464)","v":""},null,{"$f":"IF($C$464=\"\",\"\",T464/$C$464)","v":""},null,{"$f":"IF($C$464=\"\",\"\",V464/$C$464)","v":""},null,{"$f":"IF($C$464=\"\",\"\",X464/$C$464)","v":""},null,{"$f":"IF($C$464=\"\",\"\",Z464/$C$464)","v":""},null,{"$f":"IF($C$464=\"\",\"\",AB464/$C$464)","v":""},null,{"$f":"IF($C$464=\"\",\"\",AD464/$C$464)","v":""},null,{"$f":"IF($C$464=\"\",\"\",AF464/$C$464)","v":""},null,{"$f":"IF($C$464=\"\",\"\",AH464/$C$464)","v":""},null,{"$f":"IF($C$464=\"\",\"\",AJ464/$C$464)","v":""},null,{"$f":"IF($C$464=\"\",\"\",AL464/$C$464)","v":""},null,{"$f":"IF($C$464=\"\",\"\",AN464/$C$464)","v":""},null,{"$f":"IF($C$464=\"\",\"\",AP464/$C$464)","v":""},null,{"$f":"IF($C$464=\"\",\"\",AR464/$C$464)","v":""},null,{"$f":"IF($C$464=\"\",\"\",AT464/$C$464)","v":""},null,{"$f":"IF($C$464=\"\",\"\",AV464/$C$464)","v":""},null,{"$f":"IF($C$464=\"\",\"\",AX464/$C$464)","v":""},null,{"$f":"IF($C$464=\"\",\"\",AZ464/$C$464)","v":""},null,{"$f":"IF($C$464=\"\",\"\",BB464/$C$464)","v":""},null,0]
[null,null,null,null,{"$f":"IF($C$465=\"\",\"\",F465/$C$465)","v":""},null,{"$f":"IF($C$465=\"\",\"\",H465/$C$465)","v":""},null,{"$f":"IF($C$465=\"\",\"\",J465/$C$465)","v":""},null,{"$f":"IF($C$465=\"\",\"\",L465/$C$465)","v":""},null,{"$f":"IF($C$465=\"\",\"\",N465/$C$465)","v":""},null,{"$f":"IF($C$465=\"\",\"\",P465/$C$465)","v":""},null,{"$f":"IF($C$465=\"\",\"\",R465/$C$465)","v":""},null,{"$f":"IF($C$465=\"\",\"\",T465/$C$465)","v":""},null,{"$f":"IF($C$465=\"\",\"\",V465/$C$465)","v":""},null,{"$f":"IF($C$465=\"\",\"\",X465/$C$465)","v":""},null,{"$f":"IF($C$465=\"\",\"\",Z465/$C$465)","v":""},null,{"$f":"IF($C$465=\"\",\"\",AB465/$C$465)","v":""},null,{"$f":"IF($C$465=\"\",\"\",AD465/$C$465)","v":""},null,{"$f":"IF($C$465=\"\",\"\",AF465/$C$465)","v":""},null,{"$f":"IF($C$465=\"\",\"\",AH465/$C$465)","v":""},null,{"$f":"IF($C$465=\"\",\"\",AJ465/$C$465)","v":""},null,{"$f":"IF($C$465=\"\",\"\",AL465/$C$465)","v":""},null,{"$f":"IF($C$465=\"\",\"\",AN465/$C$465)","v":""},null,{"$f":"IF($C$465=\"\",\"\",AP465/$C$465)","v":""},null,{"$f":"IF($C$465=\"\",\"\",AR465/$C$465)","v":""},null,{"$f":"IF($C$465=\"\",\"\",AT465/$C$465)","v":""},null,{"$f":"IF($C$465=\"\",\"\",AV465/$C$465)","v":""},null,{"$f":"IF($C$465=\"\",\"\",AX465/$C$465)","v":""},null,{"$f":"IF($C$465=\"\",\"\",AZ465/$C$465)","v":""},null,{"$f":"IF($C$465=\"\",\"\",BB465/$C$465)","v":""},null,0]
[null,null,null,null,{"$f":"IF($C$466=\"\",\"\",F466/$C$466)","v":""},null,{"$f":"IF($C$466=\"\",\"\",H466/$C$466)","v":""},null,{"$f":"IF($C$466=\"\",\"\",J466/$C$466)","v":""},null,{"$f":"IF($C$466=\"\",\"\",L466/$C$466)","v":""},null,{"$f":"IF($C$466=\"\",\"\",N466/$C$466)","v":""},null,{"$f":"IF($C$466=\"\",\"\",P466/$C$466)","v":""},null,{"$f":"IF($C$466=\"\",\"\",R466/$C$466)","v":""},null,{"$f":"IF($C$466=\"\",\"\",T466/$C$466)","v":""},null,{"$f":"IF($C$466=\"\",\"\",V466/$C$466)","v":""},null,{"$f":"IF($C$466=\"\",\"\",X466/$C$466)","v":""},null,{"$f":"IF($C$466=\"\",\"\",Z466/$C$466)","v":""},null,{"$f":"IF($C$466=\"\",\"\",AB466/$C$466)","v":""},null,{"$f":"IF($C$466=\"\",\"\",AD466/$C$466)","v":""},null,{"$f":"IF($C$466=\"\",\"\",AF466/$C$466)","v":""},null,{"$f":"IF($C$466=\"\",\"\",AH466/$C$466)","v":""},null,{"$f":"IF($C$466=\"\",\"\",AJ466/$C$466)","v":""},null,{"$f":"IF($C$466=\"\",\"\",AL466/$C$466)","v":""},null,{"$f":"IF($C$466=\"\",\"\",AN466/$C$466)","v":""},null,{"$f":"IF($C$466=\"\",\"\",AP466/$C$466)","v":""},null,{"$f":"IF($C$466=\"\",\"\",AR466/$C$466)","v":""},null,{"$f":"IF($C$466=\"\",\"\",AT466/$C$466)","v":""},null,{"$f":"IF($C$466=\"\",\"\",AV466/$C$466)","v":""},null,{"$f":"IF($C$466=\"\",\"\",AX466/$C$466)","v":""},null,{"$f":"IF($C$466=\"\",\"\",AZ466/$C$466)","v":""},null,{"$f":"IF($C$466=\"\",\"\",BB466/$C$466)","v":""},null,0]
[null,null,null,null,{"$f":"IF($C$467=\"\",\"\",F467/$C$467)","v":""},null,{"$f":"IF($C$467=\"\",\"\",H467/$C$467)","v":""},null,{"$f":"IF($C$467=\"\",\"\",J467/$C$467)","v":""},null,{"$f":"IF($C$467=\"\",\"\",L467/$C$467)","v":""},null,{"$f":"IF($C$467=\"\",\"\",N467/$C$467)","v":""},null,{"$f":"IF($C$467=\"\",\"\",P467/$C$467)","v":""},null,{"$f":"IF($C$467=\"\",\"\",R467/$C$467)","v":""},null,{"$f":"IF($C$467=\"\",\"\",T467/$C$467)","v":""},null,{"$f":"IF($C$467=\"\",\"\",V467/$C$467)","v":""},null,{"$f":"IF($C$467=\"\",\"\",X467/$C$467)","v":""},null,{"$f":"IF($C$467=\"\",\"\",Z467/$C$467)","v":""},null,{"$f":"IF($C$467=\"\",\"\",AB467/$C$467)","v":""},null,{"$f":"IF($C$467=\"\",\"\",AD467/$C$467)","v":""},null,{"$f":"IF($C$467=\"\",\"\",AF467/$C$467)","v":""},null,{"$f":"IF($C$467=\"\",\"\",AH467/$C$467)","v":""},null,{"$f":"IF($C$467=\"\",\"\",AJ467/$C$467)","v":""},null,{"$f":"IF($C$467=\"\",\"\",AL467/$C$467)","v":""},null,{"$f":"IF($C$467=\"\",\"\",AN467/$C$467)","v":""},null,{"$f":"IF($C$467=\"\",\"\",AP467/$C$467)","v":""},null,{"$f":"IF($C$467=\"\",\"\",AR467/$C$467)","v":""},null,{"$f":"IF($C$467=\"\",\"\",AT467/$C$467)","v":""},null,{"$f":"IF($C$467=\"\",\"\",AV467/$C$467)","v":""},null,{"$f":"IF($C$467=\"\",\"\",AX467/$C$467)","v":""},null,{"$f":"IF($C$467=\"\",\"\",AZ467/$C$467)","v":""},null,{"$f":"IF($C$467=\"\",\"\",BB467/$C$467)","v":""},null,0]
[null,null,null,null,{"$f":"IF($C$468=\"\",\"\",F468/$C$468)","v":""},null,{"$f":"IF($C$468=\"\",\"\",H468/$C$468)","v":""},null,{"$f":"IF($C$468=\"\",\"\",J468/$C$468)","v":""},null,{"$f":"IF($C$468=\"\",\"\",L468/$C$468)","v":""},null,{"$f":"IF($C$468=\"\",\"\",N468/$C$468)","v":""},null,{"$f":"IF($C$468=\"\",\"\",P468/$C$468)","v":""},null,{"$f":"IF($C$468=\"\",\"\",R468/$C$468)","v":""},null,{"$f":"IF($C$468=\"\",\"\",T468/$C$468)","v":""},null,{"$f":"IF($C$468=\"\",\"\",V468/$C$468)","v":""},null,{"$f":"IF($C$468=\"\",\"\",X468/$C$468)","v":""},null,{"$f":"IF($C$468=\"\",\"\",Z468/$C$468)","v":""},null,{"$f":"IF($C$468=\"\",\"\",AB468/$C$468)","v":""},null,{"$f":"IF($C$468=\"\",\"\",AD468/$C$468)","v":""},null,{"$f":"IF($C$468=\"\",\"\",AF468/$C$468)","v":""},null,{"$f":"IF($C$468=\"\",\"\",AH468/$C$468)","v":""},null,{"$f":"IF($C$468=\"\",\"\",AJ468/$C$468)","v":""},null,{"$f":"IF($C$468=\"\",\"\",AL468/$C$468)","v":""},null,{"$f":"IF($C$468=\"\",\"\",AN468/$C$468)","v":""},null,{"$f":"IF($C$468=\"\",\"\",AP468/$C$468)","v":""},null,{"$f":"IF($C$468=\"\",\"\",AR468/$C$468)","v":""},null,{"$f":"IF($C$468=\"\",\"\",AT468/$C$468)","v":""},null,{"$f":"IF($C$468=\"\",\"\",AV468/$C$468)","v":""},null,{"$f":"IF($C$468=\"\",\"\",AX468/$C$468)","v":""},null,{"$f":"IF($C$468=\"\",\"\",AZ468/$C$468)","v":""},null,{"$f":"IF($C$468=\"\",\"\",BB468/$C$468)","v":""},null,0]
[null,null,null,null,{"$f":"IF($C$469=\"\",\"\",F469/$C$469)","v":""},null,{"$f":"IF($C$469=\"\",\"\",H469/$C$469)","v":""},null,{"$f":"IF($C$469=\"\",\"\",J469/$C$469)","v":""},null,{"$f":"IF($C$469=\"\",\"\",L469/$C$469)","v":""},null,{"$f":"IF($C$469=\"\",\"\",N469/$C$469)","v":""},null,{"$f":"IF($C$469=\"\",\"\",P469/$C$469)","v":""},null,{"$f":"IF($C$469=\"\",\"\",R469/$C$469)","v":""},null,{"$f":"IF($C$469=\"\",\"\",T469/$C$469)","v":""},null,{"$f":"IF($C$469=\"\",\"\",V469/$C$469)","v":""},null,{"$f":"IF($C$469=\"\",\"\",X469/$C$469)","v":""},null,{"$f":"IF($C$469=\"\",\"\",Z469/$C$469)","v":""},null,{"$f":"IF($C$469=\"\",\"\",AB469/$C$469)","v":""},null,{"$f":"IF($C$469=\"\",\"\",AD469/$C$469)","v":""},null,{"$f":"IF($C$469=\"\",\"\",AF469/$C$469)","v":""},null,{"$f":"IF($C$469=\"\",\"\",AH469/$C$469)","v":""},null,{"$f":"IF($C$469=\"\",\"\",AJ469/$C$469)","v":""},null,{"$f":"IF($C$469=\"\",\"\",AL469/$C$469)","v":""},null,{"$f":"IF($C$469=\"\",\"\",AN469/$C$469)","v":""},null,{"$f":"IF($C$469=\"\",\"\",AP469/$C$469)","v":""},null,{"$f":"IF($C$469=\"\",\"\",AR469/$C$469)","v":""},null,{"$f":"IF($C$469=\"\",\"\",AT469/$C$469)","v":""},null,{"$f":"IF($C$469=\"\",\"\",AV469/$C$469)","v":""},null,{"$f":"IF($C$469=\"\",\"\",AX469/$C$469)","v":""},null,{"$f":"IF($C$469=\"\",\"\",AZ469/$C$469)","v":""},null,{"$f":"IF($C$469=\"\",\"\",BB469/$C$469)","v":""},null,0]
[null,null,null,null,{"$f":"IF($C$470=\"\",\"\",F470/$C$470)","v":""},null,{"$f":"IF($C$470=\"\",\"\",H470/$C$470)","v":""},null,{"$f":"IF($C$470=\"\",\"\",J470/$C$470)","v":""},null,{"$f":"IF($C$470=\"\",\"\",L470/$C$470)","v":""},null,{"$f":"IF($C$470=\"\",\"\",N470/$C$470)","v":""},null,{"$f":"IF($C$470=\"\",\"\",P470/$C$470)","v":""},null,{"$f":"IF($C$470=\"\",\"\",R470/$C$470)","v":""},null,{"$f":"IF($C$470=\"\",\"\",T470/$C$470)","v":""},null,{"$f":"IF($C$470=\"\",\"\",V470/$C$470)","v":""},null,{"$f":"IF($C$470=\"\",\"\",X470/$C$470)","v":""},null,{"$f":"IF($C$470=\"\",\"\",Z470/$C$470)","v":""},null,{"$f":"IF($C$470=\"\",\"\",AB470/$C$470)","v":""},null,{"$f":"IF($C$470=\"\",\"\",AD470/$C$470)","v":""},null,{"$f":"IF($C$470=\"\",\"\",AF470/$C$470)","v":""},null,{"$f":"IF($C$470=\"\",\"\",AH470/$C$470)","v":""},null,{"$f":"IF($C$470=\"\",\"\",AJ470/$C$470)","v":""},null,{"$f":"IF($C$470=\"\",\"\",AL470/$C$470)","v":""},null,{"$f":"IF($C$470=\"\",\"\",AN470/$C$470)","v":""},null,{"$f":"IF($C$470=\"\",\"\",AP470/$C$470)","v":""},null,{"$f":"IF($C$470=\"\",\"\",AR470/$C$470)","v":""},null,{"$f":"IF($C$470=\"\",\"\",AT470/$C$470)","v":""},null,{"$f":"IF($C$470=\"\",\"\",AV470/$C$470)","v":""},null,{"$f":"IF($C$470=\"\",\"\",AX470/$C$470)","v":""},null,{"$f":"IF($C$470=\"\",\"\",AZ470/$C$470)","v":""},null,{"$f":"IF($C$470=\"\",\"\",BB470/$C$470)","v":""},null,0]
[null,null,null,null,{"$f":"IF($C$471=\"\",\"\",F471/$C$471)","v":""},null,{"$f":"IF($C$471=\"\",\"\",H471/$C$471)","v":""},null,{"$f":"IF($C$471=\"\",\"\",J471/$C$471)","v":""},null,{"$f":"IF($C$471=\"\",\"\",L471/$C$471)","v":""},null,{"$f":"IF($C$471=\"\",\"\",N471/$C$471)","v":""},null,{"$f":"IF($C$471=\"\",\"\",P471/$C$471)","v":""},null,{"$f":"IF($C$471=\"\",\"\",R471/$C$471)","v":""},null,{"$f":"IF($C$471=\"\",\"\",T471/$C$471)","v":""},null,{"$f":"IF($C$471=\"\",\"\",V471/$C$471)","v":""},null,{"$f":"IF($C$471=\"\",\"\",X471/$C$471)","v":""},null,{"$f":"IF($C$471=\"\",\"\",Z471/$C$471)","v":""},null,{"$f":"IF($C$471=\"\",\"\",AB471/$C$471)","v":""},null,{"$f":"IF($C$471=\"\",\"\",AD471/$C$471)","v":""},null,{"$f":"IF($C$471=\"\",\"\",AF471/$C$471)","v":""},null,{"$f":"IF($C$471=\"\",\"\",AH471/$C$471)","v":""},null,{"$f":"IF($C$471=\"\",\"\",AJ471/$C$471)","v":""},null,{"$f":"IF($C$471=\"\",\"\",AL471/$C$471)","v":""},null,{"$f":"IF($C$471=\"\",\"\",AN471/$C$471)","v":""},null,{"$f":"IF($C$471=\"\",\"\",AP471/$C$471)","v":""},null,{"$f":"IF($C$471=\"\",\"\",AR471/$C$471)","v":""},null,{"$f":"IF($C$471=\"\",\"\",AT471/$C$471)","v":""},null,{"$f":"IF($C$471=\"\",\"\",AV471/$C$471)","v":""},null,{"$f":"IF($C$471=\"\",\"\",AX471/$C$471)","v":""},null,{"$f":"IF($C$471=\"\",\"\",AZ471/$C$471)","v":""},null,{"$f":"IF($C$471=\"\",\"\",BB471/$C$471)","v":""},null,0]
[null,null,null,null,{"$f":"IF($C$472=\"\",\"\",F472/$C$472)","v":""},null,{"$f":"IF($C$472=\"\",\"\",H472/$C$472)","v":""},null,{"$f":"IF($C$472=\"\",\"\",J472/$C$472)","v":""},null,{"$f":"IF($C$472=\"\",\"\",L472/$C$472)","v":""},null,{"$f":"IF($C$472=\"\",\"\",N472/$C$472)","v":""},null,{"$f":"IF($C$472=\"\",\"\",P472/$C$472)","v":""},null,{"$f":"IF($C$472=\"\",\"\",R472/$C$472)","v":""},null,{"$f":"IF($C$472=\"\",\"\",T472/$C$472)","v":""},null,{"$f":"IF($C$472=\"\",\"\",V472/$C$472)","v":""},null,{"$f":"IF($C$472=\"\",\"\",X472/$C$472)","v":""},null,{"$f":"IF($C$472=\"\",\"\",Z472/$C$472)","v":""},null,{"$f":"IF($C$472=\"\",\"\",AB472/$C$472)","v":""},null,{"$f":"IF($C$472=\"\",\"\",AD472/$C$472)","v":""},null,{"$f":"IF($C$472=\"\",\"\",AF472/$C$472)","v":""},null,{"$f":"IF($C$472=\"\",\"\",AH472/$C$472)","v":""},null,{"$f":"IF($C$472=\"\",\"\",AJ472/$C$472)","v":""},null,{"$f":"IF($C$472=\"\",\"\",AL472/$C$472)","v":""},null,{"$f":"IF($C$472=\"\",\"\",AN472/$C$472)","v":""},null,{"$f":"IF($C$472=\"\",\"\",AP472/$C$472)","v":""},null,{"$f":"IF($C$472=\"\",\"\",AR472/$C$472)","v":""},null,{"$f":"IF($C$472=\"\",\"\",AT472/$C$472)","v":""},null,{"$f":"IF($C$472=\"\",\"\",AV472/$C$472)","v":""},null,{"$f":"IF($C$472=\"\",\"\",AX472/$C$472)","v":""},null,{"$f":"IF($C$472=\"\",\"\",AZ472/$C$472)","v":""},null,{"$f":"IF($C$472=\"\",\"\",BB472/$C$472)","v":""},null,0]
[null,null,null,null,{"$f":"IF($C$473=\"\",\"\",F473/$C$473)","v":""},null,{"$f":"IF($C$473=\"\",\"\",H473/$C$473)","v":""},null,{"$f":"IF($C$473=\"\",\"\",J473/$C$473)","v":""},null,{"$f":"IF($C$473=\"\",\"\",L473/$C$473)","v":""},null,{"$f":"IF($C$473=\"\",\"\",N473/$C$473)","v":""},null,{"$f":"IF($C$473=\"\",\"\",P473/$C$473)","v":""},null,{"$f":"IF($C$473=\"\",\"\",R473/$C$473)","v":""},null,{"$f":"IF($C$473=\"\",\"\",T473/$C$473)","v":""},null,{"$f":"IF($C$473=\"\",\"\",V473/$C$473)","v":""},null,{"$f":"IF($C$473=\"\",\"\",X473/$C$473)","v":""},null,{"$f":"IF($C$473=\"\",\"\",Z473/$C$473)","v":""},null,{"$f":"IF($C$473=\"\",\"\",AB473/$C$473)","v":""},null,{"$f":"IF($C$473=\"\",\"\",AD473/$C$473)","v":""},null,{"$f":"IF($C$473=\"\",\"\",AF473/$C$473)","v":""},null,{"$f":"IF($C$473=\"\",\"\",AH473/$C$473)","v":""},null,{"$f":"IF($C$473=\"\",\"\",AJ473/$C$473)","v":""},null,{"$f":"IF($C$473=\"\",\"\",AL473/$C$473)","v":""},null,{"$f":"IF($C$473=\"\",\"\",AN473/$C$473)","v":""},null,{"$f":"IF($C$473=\"\",\"\",AP473/$C$473)","v":""},null,{"$f":"IF($C$473=\"\",\"\",AR473/$C$473)","v":""},null,{"$f":"IF($C$473=\"\",\"\",AT473/$C$473)","v":""},null,{"$f":"IF($C$473=\"\",\"\",AV473/$C$473)","v":""},null,{"$f":"IF($C$473=\"\",\"\",AX473/$C$473)","v":""},null,{"$f":"IF($C$473=\"\",\"\",AZ473/$C$473)","v":""},null,{"$f":"IF($C$473=\"\",\"\",BB473/$C$473)","v":""},null,{"$f":"SUM(BB473,AZ473,AX473,AV473,AT473,AR473,AP473,AN473,AL473,AJ473,AH473,AF473,AD473,AB473,Z473,X473,V473,T473,R473,P473,N473,L473,J473,H473,F473)","v":0}]
["TOTAL HOURS",null,null,null,null,{"$f":"SUM(F444:F473)","v":0},null,{"$f":"SUM(H444:H473)","v":0},null,{"$f":"SUM(J444:J473)","v":0},null,{"$f":"SUM(L444:L473)","v":0},null,{"$f":"SUM(N444:N473)","v":0},null,{"$f":"SUM(P444:P473)","v":0},null,{"$f":"SUM(R444:R473)","v":0},null,{"$f":"SUM(T444:T473)","v":0},null,{"$f":"SUM(V444:V473)","v":0},null,{"$f":"SUM(X444:X473)","v":0},null,{"$f":"SUM(Z444:Z473)","v":0},null,{"$f":"SUM(AB444:AB473)","v":0},null,{"$f":"SUM(AD444:AD473)","v":0},null,{"$f":"SUM(AF444:AF473)","v":0},null,{"$f":"SUM(AH444:AH473)","v":0},null,{"$f":"SUM(AJ444:AJ473)","v":0},null,{"$f":"SUM(AL444:AL473)","v":0},null,{"$f":"SUM(AN444:AN473)","v":0},null,{"$f":"SUM(AP444:AP473)","v":0},null,{"$f":"SUM(AR444:AR473)","v":0},null,{"$f":"SUM(AT444:AT473)","v":0},null,{"$f":"SUM(AV444:AV473)","v":0},null,{"$f":"SUM(AX444:AX473)","v":0},null,{"$f":"SUM(AZ444:AZ473)","v":0},null,{"$f":"SUM(BB444:BB473)","v":0},{"$f":"SUM(E474:BB474)","v":0}]
["TOTAL WORKDAYS",null,null,null,null,{"$f":"F474/8","v":0},null,{"$f":"H474/8","v":0},null,{"$f":"J474/8","v":0},null,{"$f":"L474/8","v":0},null,{"$f":"N474/8","v":0},null,{"$f":"P474/8","v":0},null,{"$f":"R474/8","v":0},null,{"$f":"T474/8","v":0},null,{"$f":"V474/8","v":0},null,{"$f":"X474/8","v":0},null,{"$f":"Z474/8","v":0},null,{"$f":"AB474/8","v":0},null,{"$f":"AD474/8","v":0},null,0,null,{"$f":"AH474/8","v":0},null,0,null,{"$f":"AL474/8","v":0},null,0,null,{"$f":"AP474/8","v":0},null,0,null,{"$f":"AT474/8","v":0},null,{"$f":"AV474/8","v":0},null,{"$f":"AX474/8","v":0},null,{"$f":"AZ474/8","v":0},null,{"$f":"BB474/8","v":0},{"$f":"SUM(E475:BB475)","v":0}]
["TOTAL RAW LABOR",null,null,null,null,{"$f":"$E$13*F474","v":0},null,{"$f":"$G$13*H474","v":0},null,{"$f":"$I$13*J474","v":0},null,{"$f":"$K$13*L474","v":0},null,{"$f":"$M$13*N474","v":0},null,{"$f":"$O$13*P474","v":0},null,{"$f":"$Q$13*R474","v":0},null,{"$f":"$S$13*T474","v":0},null,{"$f":"$U$13*V474","v":0},null,{"$f":"$W$13*X474","v":0},null,{"$f":"$Y$13*Z474","v":0},null,{"$f":"$AA$13*AB474","v":0},null,{"$f":"$AC$13*AD474","v":0},null,{"$f":"$AC$13*AF474","v":0},null,{"$f":"$AC$13*AH474","v":0},null,{"$f":"$AC$13*AJ474","v":0},null,{"$f":"$AC$13*AL474","v":0},null,{"$f":"$AC$13*AN474","v":0},null,{"$f":"$AC$13*AP474","v":0},null,{"$f":"$AC$13*AR474","v":0},null,{"$f":"$AC$13*AT474","v":0},null,{"$f":"$AC$13*AV474","v":0},null,{"$f":"$AC$13*AX474","v":0},null,{"$f":"$AC$13*AZ474","v":0},null,{"$f":"$AC$13*BB474","v":0},{"$f":"SUM(E476:BB476)","v":0}]
["Task 18.0     ","REPLACE FIELD WITH CATEGORY NAME OF YOUR CHOOSING HERE",null,null,null,null,null,null,null,null,null,null,null,null,null,null,null,null,null,null,null,null,null,null,null,null,null,null,null,null,null,null,null,null,null,null,null,null,null,null,null,null,null,null,null,null,null,null,null,null,null,null,null,null,{"$f":"IF(B477=\"REPLACE FIELD WITH CATEGORY NAME OF YOUR CHOOSING HERE\",0,\"\")","v":0}]
[null,null,null,null,{"$f":"IF($C$478=\"\",\"\",F478/$C$478)","v":""},null,{"$f":"IF($C$478=\"\",\"\",H478/$C$478)","v":""},null,{"$f":"IF($C$478=\"\",\"\",J478/$C$478)","v":""},null,{"$f":"IF($C$478=\"\",\"\",L478/$C$478)","v":""},null,{"$f":"IF($C$478=\"\",\"\",N478/$C$478)","v":""},null,{"$f":"IF($C$478=\"\",\"\",P478/$C$478)","v":""},null,{"$f":"IF($C$478=\"\",\"\",R478/$C$478)","v":""},null,{"$f":"IF($C$478=\"\",\"\",T478/$C$478)","v":""},null,{"$f":"IF($C$478=\"\",\"\",V478/$C$478)","v":""},null,{"$f":"IF($C$478=\"\",\"\",X478/$C$478)","v":""},null,{"$f":"IF($C$478=\"\",\"\",Z478/$C$478)","v":""},null,{"$f":"IF($C$478=\"\",\"\",AB478/$C$478)","v":""},null,{"$f":"IF($C$478=\"\",\"\",AD478/$C$478)","v":""},null,{"$f":"IF($C$478=\"\",\"\",AF478/$C$478)","v":""},null,{"$f":"IF($C$478=\"\",\"\",AH478/$C$478)","v":""},null,{"$f":"IF($C$478=\"\",\"\",AJ478/$C$478)","v":""},null,{"$f":"IF($C$478=\"\",\"\",AL478/$C$478)","v":""},null,{"$f":"IF($C$478=\"\",\"\",AN478/$C$478)","v":""},null,{"$f":"IF($C$478=\"\",\"\",AP478/$C$478)","v":""},null,{"$f":"IF($C$478=\"\",\"\",AR478/$C$478)","v":""},null,{"$f":"IF($C$478=\"\",\"\",AT478/$C$478)","v":""},null,{"$f":"IF($C$478=\"\",\"\",AV478/$C$478)","v":""},null,{"$f":"IF($C$478=\"\",\"\",AX478/$C$478)","v":""},null,{"$f":"IF($C$478=\"\",\"\",AZ478/$C$478)","v":""},null,{"$f":"IF($C$478=\"\",\"\",BB478/$C$478)","v":""},null,{"$f":"SUM(BB478,AZ478,AX478,AV478,AT478,AR478,AP478,AN478,AL478,AJ478,AH478,AF478,AD478,AB478,Z478,X478,V478,T478,R478,P478,N478,L478,J478,H478,F478)","v":0}]
[null,null,null,null,{"$f":"IF($C$479=\"\",\"\",F479/$C$479)","v":""},null,{"$f":"IF($C$479=\"\",\"\",H479/$C$479)","v":""},null,{"$f":"IF($C$479=\"\",\"\",J479/$C$479)","v":""},null,{"$f":"IF($C$479=\"\",\"\",L479/$C$479)","v":""},null,{"$f":"IF($C$479=\"\",\"\",N479/$C$479)","v":""},null,{"$f":"IF($C$479=\"\",\"\",P479/$C$479)","v":""},null,{"$f":"IF($C$479=\"\",\"\",R479/$C$479)","v":""},null,{"$f":"IF($C$479=\"\",\"\",T479/$C$479)","v":""},null,{"$f":"IF($C$479=\"\",\"\",V479/$C$479)","v":""},null,{"$f":"IF($C$479=\"\",\"\",X479/$C$479)","v":""},null,{"$f":"IF($C$479=\"\",\"\",Z479/$C$479)","v":""},null,{"$f":"IF($C$479=\"\",\"\",AB479/$C$479)","v":""},null,{"$f":"IF($C$479=\"\",\"\",AD479/$C$479)","v":""},null,{"$f":"IF($C$479=\"\",\"\",AF479/$C$479)","v":""},null,{"$f":"IF($C$479=\"\",\"\",AH479/$C$479)","v":""},null,{"$f":"IF($C$479=\"\",\"\",AJ479/$C$479)","v":""},null,{"$f":"IF($C$479=\"\",\"\",AL479/$C$479)","v":""},null,{"$f":"IF($C$479=\"\",\"\",AN479/$C$479)","v":""},null,{"$f":"IF($C$479=\"\",\"\",AP479/$C$479)","v":""},null,{"$f":"IF($C$479=\"\",\"\",AR479/$C$479)","v":""},null,{"$f":"IF($C$479=\"\",\"\",AT479/$C$479)","v":""},null,{"$f":"IF($C$479=\"\",\"\",AV479/$C$479)","v":""},null,{"$f":"IF($C$479=\"\",\"\",AX479/$C$479)","v":""},null,{"$f":"IF($C$479=\"\",\"\",AZ479/$C$479)","v":""},null,{"$f":"IF($C$479=\"\",\"\",BB479/$C$479)","v":""},null,0]
[null,null,null,null,{"$f":"IF($C$480=\"\",\"\",F480/$C$480)","v":""},null,{"$f":"IF($C$480=\"\",\"\",H480/$C$480)","v":""},null,{"$f":"IF($C$480=\"\",\"\",J480/$C$480)","v":""},null,{"$f":"IF($C$480=\"\",\"\",L480/$C$480)","v":""},null,{"$f":"IF($C$480=\"\",\"\",N480/$C$480)","v":""},null,{"$f":"IF($C$480=\"\",\"\",P480/$C$480)","v":""},null,{"$f":"IF($C$480=\"\",\"\",R480/$C$480)","v":""},null,{"$f":"IF($C$480=\"\",\"\",T480/$C$480)","v":""},null,{"$f":"IF($C$480=\"\",\"\",V480/$C$480)","v":""},null,{"$f":"IF($C$480=\"\",\"\",X480/$C$480)","v":""},null,{"$f":"IF($C$480=\"\",\"\",Z480/$C$480)","v":""},null,{"$f":"IF($C$480=\"\",\"\",AB480/$C$480)","v":""},null,{"$f":"IF($C$480=\"\",\"\",AD480/$C$480)","v":""},null,{"$f":"IF($C$480=\"\",\"\",AF480/$C$480)","v":""},null,{"$f":"IF($C$480=\"\",\"\",AH480/$C$480)","v":""},null,{"$f":"IF($C$480=\"\",\"\",AJ480/$C$480)","v":""},null,{"$f":"IF($C$480=\"\",\"\",AL480/$C$480)","v":""},null,{"$f":"IF($C$480=\"\",\"\",AN480/$C$480)","v":""},null,{"$f":"IF($C$480=\"\",\"\",AP480/$C$480)","v":""},null,{"$f":"IF($C$480=\"\",\"\",AR480/$C$480)","v":""},null,{"$f":"IF($C$480=\"\",\"\",AT480/$C$480)","v":""},null,{"$f":"IF($C$480=\"\",\"\",AV480/$C$480)","v":""},null,{"$f":"IF($C$480=\"\",\"\",AX480/$C$480)","v":""},null,{"$f":"IF($C$480=\"\",\"\",AZ480/$C$480)","v":""},null,{"$f":"IF($C$480=\"\",\"\",BB480/$C$480)","v":""},null,0]
[null,null,null,null,{"$f":"IF($C$481=\"\",\"\",F481/$C$481)","v":""},null,{"$f":"IF($C$481=\"\",\"\",H481/$C$481)","v":""},null,{"$f":"IF($C$481=\"\",\"\",J481/$C$481)","v":""},null,{"$f":"IF($C$481=\"\",\"\",L481/$C$481)","v":""},null,{"$f":"IF($C$481=\"\",\"\",N481/$C$481)","v":""},null,{"$f":"IF($C$481=\"\",\"\",P481/$C$481)","v":""},null,{"$f":"IF($C$481=\"\",\"\",R481/$C$481)","v":""},null,{"$f":"IF($C$481=\"\",\"\",T481/$C$481)","v":""},null,{"$f":"IF($C$481=\"\",\"\",V481/$C$481)","v":""},null,{"$f":"IF($C$481=\"\",\"\",X481/$C$481)","v":""},null,{"$f":"IF($C$481=\"\",\"\",Z481/$C$481)","v":""},null,{"$f":"IF($C$481=\"\",\"\",AB481/$C$481)","v":""},null,{"$f":"IF($C$481=\"\",\"\",AD481/$C$481)","v":""},null,{"$f":"IF($C$481=\"\",\"\",AF481/$C$481)","v":""},null,{"$f":"IF($C$481=\"\",\"\",AH481/$C$481)","v":""},null,{"$f":"IF($C$481=\"\",\"\",AJ481/$C$481)","v":""},null,{"$f":"IF($C$481=\"\",\"\",AL481/$C$481)","v":""},null,{"$f":"IF($C$481=\"\",\"\",AN481/$C$481)","v":""},null,{"$f":"IF($C$481=\"\",\"\",AP481/$C$481)","v":""},null,{"$f":"IF($C$481=\"\",\"\",AR481/$C$481)","v":""},null,{"$f":"IF($C$481=\"\",\"\",AT481/$C$481)","v":""},null,{"$f":"IF($C$481=\"\",\"\",AV481/$C$481)","v":""},null,{"$f":"IF($C$481=\"\",\"\",AX481/$C$481)","v":""},null,{"$f":"IF($C$481=\"\",\"\",AZ481/$C$481)","v":""},null,{"$f":"IF($C$481=\"\",\"\",BB481/$C$481)","v":""},null,0]
[null,null,null,null,{"$f":"IF($C$482=\"\",\"\",F482/$C$482)","v":""},null,{"$f":"IF($C$482=\"\",\"\",H482/$C$482)","v":""},null,{"$f":"IF($C$482=\"\",\"\",J482/$C$482)","v":""},null,{"$f":"IF($C$482=\"\",\"\",L482/$C$482)","v":""},null,{"$f":"IF($C$482=\"\",\"\",N482/$C$482)","v":""},null,{"$f":"IF($C$482=\"\",\"\",P482/$C$482)","v":""},null,{"$f":"IF($C$482=\"\",\"\",R482/$C$482)","v":""},null,{"$f":"IF($C$482=\"\",\"\",T482/$C$482)","v":""},null,{"$f":"IF($C$482=\"\",\"\",V482/$C$482)","v":""},null,{"$f":"IF($C$482=\"\",\"\",X482/$C$482)","v":""},null,{"$f":"IF($C$482=\"\",\"\",Z482/$C$482)","v":""},null,{"$f":"IF($C$482=\"\",\"\",AB482/$C$482)","v":""},null,{"$f":"IF($C$482=\"\",\"\",AD482/$C$482)","v":""},null,{"$f":"IF($C$482=\"\",\"\",AF482/$C$482)","v":""},null,{"$f":"IF($C$482=\"\",\"\",AH482/$C$482)","v":""},null,{"$f":"IF($C$482=\"\",\"\",AJ482/$C$482)","v":""},null,{"$f":"IF($C$482=\"\",\"\",AL482/$C$482)","v":""},null,{"$f":"IF($C$482=\"\",\"\",AN482/$C$482)","v":""},null,{"$f":"IF($C$482=\"\",\"\",AP482/$C$482)","v":""},null,{"$f":"IF($C$482=\"\",\"\",AR482/$C$482)","v":""},null,{"$f":"IF($C$482=\"\",\"\",AT482/$C$482)","v":""},null,{"$f":"IF($C$482=\"\",\"\",AV482/$C$482)","v":""},null,{"$f":"IF($C$482=\"\",\"\",AX482/$C$482)","v":""},null,{"$f":"IF($C$482=\"\",\"\",AZ482/$C$482)","v":""},null,{"$f":"IF($C$482=\"\",\"\",BB482/$C$482)","v":""},null,0]
[null,null,null,null,{"$f":"IF($C$483=\"\",\"\",F483/$C$483)","v":""},null,{"$f":"IF($C$483=\"\",\"\",H483/$C$483)","v":""},null,{"$f":"IF($C$483=\"\",\"\",J483/$C$483)","v":""},null,{"$f":"IF($C$483=\"\",\"\",L483/$C$483)","v":""},null,{"$f":"IF($C$483=\"\",\"\",N483/$C$483)","v":""},null,{"$f":"IF($C$483=\"\",\"\",P483/$C$483)","v":""},null,{"$f":"IF($C$483=\"\",\"\",R483/$C$483)","v":""},null,{"$f":"IF($C$483=\"\",\"\",T483/$C$483)","v":""},null,{"$f":"IF($C$483=\"\",\"\",V483/$C$483)","v":""},null,{"$f":"IF($C$483=\"\",\"\",X483/$C$483)","v":""},null,{"$f":"IF($C$483=\"\",\"\",Z483/$C$483)","v":""},null,{"$f":"IF($C$483=\"\",\"\",AB483/$C$483)","v":""},null,{"$f":"IF($C$483=\"\",\"\",AD483/$C$483)","v":""},null,{"$f":"IF($C$483=\"\",\"\",AF483/$C$483)","v":""},null,{"$f":"IF($C$483=\"\",\"\",AH483/$C$483)","v":""},null,{"$f":"IF($C$483=\"\",\"\",AJ483/$C$483)","v":""},null,{"$f":"IF($C$483=\"\",\"\",AL483/$C$483)","v":""},null,{"$f":"IF($C$483=\"\",\"\",AN483/$C$483)","v":""},null,{"$f":"IF($C$483=\"\",\"\",AP483/$C$483)","v":""},null,{"$f":"IF($C$483=\"\",\"\",AR483/$C$483)","v":""},null,{"$f":"IF($C$483=\"\",\"\",AT483/$C$483)","v":""},null,{"$f":"IF($C$483=\"\",\"\",AV483/$C$483)","v":""},null,{"$f":"IF($C$483=\"\",\"\",AX483/$C$483)","v":""},null,{"$f":"IF($C$483=\"\",\"\",AZ483/$C$483)","v":""},null,{"$f":"IF($C$483=\"\",\"\",BB483/$C$483)","v":""},null,0]
[null,null,null,null,{"$f":"IF($C$484=\"\",\"\",F484/$C$484)","v":""},null,{"$f":"IF($C$484=\"\",\"\",H484/$C$484)","v":""},null,{"$f":"IF($C$484=\"\",\"\",J484/$C$484)","v":""},null,{"$f":"IF($C$484=\"\",\"\",L484/$C$484)","v":""},null,{"$f":"IF($C$484=\"\",\"\",N484/$C$484)","v":""},null,{"$f":"IF($C$484=\"\",\"\",P484/$C$484)","v":""},null,{"$f":"IF($C$484=\"\",\"\",R484/$C$484)","v":""},null,{"$f":"IF($C$484=\"\",\"\",T484/$C$484)","v":""},null,{"$f":"IF($C$484=\"\",\"\",V484/$C$484)","v":""},null,{"$f":"IF($C$484=\"\",\"\",X484/$C$484)","v":""},null,{"$f":"IF($C$484=\"\",\"\",Z484/$C$484)","v":""},null,{"$f":"IF($C$484=\"\",\"\",AB484/$C$484)","v":""},null,{"$f":"IF($C$484=\"\",\"\",AD484/$C$484)","v":""},null,{"$f":"IF($C$484=\"\",\"\",AF484/$C$484)","v":""},null,{"$f":"IF($C$484=\"\",\"\",AH484/$C$484)","v":""},null,{"$f":"IF($C$484=\"\",\"\",AJ484/$C$484)","v":""},null,{"$f":"IF($C$484=\"\",\"\",AL484/$C$484)","v":""},null,{"$f":"IF($C$484=\"\",\"\",AN484/$C$484)","v":""},null,{"$f":"IF($C$484=\"\",\"\",AP484/$C$484)","v":""},null,{"$f":"IF($C$484=\"\",\"\",AR484/$C$484)","v":""},null,{"$f":"IF($C$484=\"\",\"\",AT484/$C$484)","v":""},null,{"$f":"IF($C$484=\"\",\"\",AV484/$C$484)","v":""},null,{"$f":"IF($C$484=\"\",\"\",AX484/$C$484)","v":""},null,{"$f":"IF($C$484=\"\",\"\",AZ484/$C$484)","v":""},null,{"$f":"IF($C$484=\"\",\"\",BB484/$C$484)","v":""},null,0]
[null,null,null,null,{"$f":"IF($C$485=\"\",\"\",F485/$C$485)","v":""},null,{"$f":"IF($C$485=\"\",\"\",H485/$C$485)","v":""},null,{"$f":"IF($C$485=\"\",\"\",J485/$C$485)","v":""},null,{"$f":"IF($C$485=\"\",\"\",L485/$C$485)","v":""},null,{"$f":"IF($C$485=\"\",\"\",N485/$C$485)","v":""},null,{"$f":"IF($C$485=\"\",\"\",P485/$C$485)","v":""},null,{"$f":"IF($C$485=\"\",\"\",R485/$C$485)","v":""},null,{"$f":"IF($C$485=\"\",\"\",T485/$C$485)","v":""},null,{"$f":"IF($C$485=\"\",\"\",V485/$C$485)","v":""},null,{"$f":"IF($C$485=\"\",\"\",X485/$C$485)","v":""},null,{"$f":"IF($C$485=\"\",\"\",Z485/$C$485)","v":""},null,{"$f":"IF($C$485=\"\",\"\",AB485/$C$485)","v":""},null,{"$f":"IF($C$485=\"\",\"\",AD485/$C$485)","v":""},null,{"$f":"IF($C$485=\"\",\"\",AF485/$C$485)","v":""},null,{"$f":"IF($C$485=\"\",\"\",AH485/$C$485)","v":""},null,{"$f":"IF($C$485=\"\",\"\",AJ485/$C$485)","v":""},null,{"$f":"IF($C$485=\"\",\"\",AL485/$C$485)","v":""},null,{"$f":"IF($C$485=\"\",\"\",AN485/$C$485)","v":""},null,{"$f":"IF($C$485=\"\",\"\",AP485/$C$485)","v":""},null,{"$f":"IF($C$485=\"\",\"\",AR485/$C$485)","v":""},null,{"$f":"IF($C$485=\"\",\"\",AT485/$C$485)","v":""},null,{"$f":"IF($C$485=\"\",\"\",AV485/$C$485)","v":""},null,{"$f":"IF($C$485=\"\",\"\",AX485/$C$485)","v":""},null,{"$f":"IF($C$485=\"\",\"\",AZ485/$C$485)","v":""},null,{"$f":"IF($C$485=\"\",\"\",BB485/$C$485)","v":""},null,0]
[null,null,null,null,{"$f":"IF($C$486=\"\",\"\",F486/$C$486)","v":""},null,{"$f":"IF($C$486=\"\",\"\",H486/$C$486)","v":""},null,{"$f":"IF($C$486=\"\",\"\",J486/$C$486)","v":""},null,{"$f":"IF($C$486=\"\",\"\",L486/$C$486)","v":""},null,{"$f":"IF($C$486=\"\",\"\",N486/$C$486)","v":""},null,{"$f":"IF($C$486=\"\",\"\",P486/$C$486)","v":""},null,{"$f":"IF($C$486=\"\",\"\",R486/$C$486)","v":""},null,{"$f":"IF($C$486=\"\",\"\",T486/$C$486)","v":""},null,{"$f":"IF($C$486=\"\",\"\",V486/$C$486)","v":""},null,{"$f":"IF($C$486=\"\",\"\",X486/$C$486)","v":""},null,{"$f":"IF($C$486=\"\",\"\",Z486/$C$486)","v":""},null,{"$f":"IF($C$486=\"\",\"\",AB486/$C$486)","v":""},null,{"$f":"IF($C$486=\"\",\"\",AD486/$C$486)","v":""},null,{"$f":"IF($C$486=\"\",\"\",AF486/$C$486)","v":""},null,{"$f":"IF($C$486=\"\",\"\",AH486/$C$486)","v":""},null,{"$f":"IF($C$486=\"\",\"\",AJ486/$C$486)","v":""},null,{"$f":"IF($C$486=\"\",\"\",AL486/$C$486)","v":""},null,{"$f":"IF($C$486=\"\",\"\",AN486/$C$486)","v":""},null,{"$f":"IF($C$486=\"\",\"\",AP486/$C$486)","v":""},null,{"$f":"IF($C$486=\"\",\"\",AR486/$C$486)","v":""},null,{"$f":"IF($C$486=\"\",\"\",AT486/$C$486)","v":""},null,{"$f":"IF($C$486=\"\",\"\",AV486/$C$486)","v":""},null,{"$f":"IF($C$486=\"\",\"\",AX486/$C$486)","v":""},null,{"$f":"IF($C$486=\"\",\"\",AZ486/$C$486)","v":""},null,{"$f":"IF($C$486=\"\",\"\",BB486/$C$486)","v":""},null,0]
[null,null,null,null,{"$f":"IF($C$487=\"\",\"\",F487/$C$487)","v":""},null,{"$f":"IF($C$487=\"\",\"\",H487/$C$487)","v":""},null,{"$f":"IF($C$487=\"\",\"\",J487/$C$487)","v":""},null,{"$f":"IF($C$487=\"\",\"\",L487/$C$487)","v":""},null,{"$f":"IF($C$487=\"\",\"\",N487/$C$487)","v":""},null,{"$f":"IF($C$487=\"\",\"\",P487/$C$487)","v":""},null,{"$f":"IF($C$487=\"\",\"\",R487/$C$487)","v":""},null,{"$f":"IF($C$487=\"\",\"\",T487/$C$487)","v":""},null,{"$f":"IF($C$487=\"\",\"\",V487/$C$487)","v":""},null,{"$f":"IF($C$487=\"\",\"\",X487/$C$487)","v":""},null,{"$f":"IF($C$487=\"\",\"\",Z487/$C$487)","v":""},null,{"$f":"IF($C$487=\"\",\"\",AB487/$C$487)","v":""},null,{"$f":"IF($C$487=\"\",\"\",AD487/$C$487)","v":""},null,{"$f":"IF($C$487=\"\",\"\",AF487/$C$487)","v":""},null,{"$f":"IF($C$487=\"\",\"\",AH487/$C$487)","v":""},null,{"$f":"IF($C$487=\"\",\"\",AJ487/$C$487)","v":""},null,{"$f":"IF($C$487=\"\",\"\",AL487/$C$487)","v":""},null,{"$f":"IF($C$487=\"\",\"\",AN487/$C$487)","v":""},null,{"$f":"IF($C$487=\"\",\"\",AP487/$C$487)","v":""},null,{"$f":"IF($C$487=\"\",\"\",AR487/$C$487)","v":""},null,{"$f":"IF($C$487=\"\",\"\",AT487/$C$487)","v":""},null,{"$f":"IF($C$487=\"\",\"\",AV487/$C$487)","v":""},null,{"$f":"IF($C$487=\"\",\"\",AX487/$C$487)","v":""},null,{"$f":"IF($C$487=\"\",\"\",AZ487/$C$487)","v":""},null,{"$f":"IF($C$487=\"\",\"\",BB487/$C$487)","v":""},null,0]
[null,null,null,null,{"$f":"IF($C$488=\"\",\"\",F488/$C$488)","v":""},null,{"$f":"IF($C$488=\"\",\"\",H488/$C$488)","v":""},null,{"$f":"IF($C$488=\"\",\"\",J488/$C$488)","v":""},null,{"$f":"IF($C$488=\"\",\"\",L488/$C$488)","v":""},null,{"$f":"IF($C$488=\"\",\"\",N488/$C$488)","v":""},null,{"$f":"IF($C$488=\"\",\"\",P488/$C$488)","v":""},null,{"$f":"IF($C$488=\"\",\"\",R488/$C$488)","v":""},null,{"$f":"IF($C$488=\"\",\"\",T488/$C$488)","v":""},null,{"$f":"IF($C$488=\"\",\"\",V488/$C$488)","v":""},null,{"$f":"IF($C$488=\"\",\"\",X488/$C$488)","v":""},null,{"$f":"IF($C$488=\"\",\"\",Z488/$C$488)","v":""},null,{"$f":"IF($C$488=\"\",\"\",AB488/$C$488)","v":""},null,{"$f":"IF($C$488=\"\",\"\",AD488/$C$488)","v":""},null,{"$f":"IF($C$488=\"\",\"\",AF488/$C$488)","v":""},null,{"$f":"IF($C$488=\"\",\"\",AH488/$C$488)","v":""},null,{"$f":"IF($C$488=\"\",\"\",AJ488/$C$488)","v":""},null,{"$f":"IF($C$488=\"\",\"\",AL488/$C$488)","v":""},null,{"$f":"IF($C$488=\"\",\"\",AN488/$C$488)","v":""},null,{"$f":"IF($C$488=\"\",\"\",AP488/$C$488)","v":""},null,{"$f":"IF($C$488=\"\",\"\",AR488/$C$488)","v":""},null,{"$f":"IF($C$488=\"\",\"\",AT488/$C$488)","v":""},null,{"$f":"IF($C$488=\"\",\"\",AV488/$C$488)","v":""},null,{"$f":"IF($C$488=\"\",\"\",AX488/$C$488)","v":""},null,{"$f":"IF($C$488=\"\",\"\",AZ488/$C$488)","v":""},null,{"$f":"IF($C$488=\"\",\"\",BB488/$C$488)","v":""},null,0]
[null,null,null,null,{"$f":"IF($C$489=\"\",\"\",F489/$C$489)","v":""},null,{"$f":"IF($C$489=\"\",\"\",H489/$C$489)","v":""},null,{"$f":"IF($C$489=\"\",\"\",J489/$C$489)","v":""},null,{"$f":"IF($C$489=\"\",\"\",L489/$C$489)","v":""},null,{"$f":"IF($C$489=\"\",\"\",N489/$C$489)","v":""},null,{"$f":"IF($C$489=\"\",\"\",P489/$C$489)","v":""},null,{"$f":"IF($C$489=\"\",\"\",R489/$C$489)","v":""},null,{"$f":"IF($C$489=\"\",\"\",T489/$C$489)","v":""},null,{"$f":"IF($C$489=\"\",\"\",V489/$C$489)","v":""},null,{"$f":"IF($C$489=\"\",\"\",X489/$C$489)","v":""},null,{"$f":"IF($C$489=\"\",\"\",Z489/$C$489)","v":""},null,{"$f":"IF($C$489=\"\",\"\",AB489/$C$489)","v":""},null,{"$f":"IF($C$489=\"\",\"\",AD489/$C$489)","v":""},null,{"$f":"IF($C$489=\"\",\"\",AF489/$C$489)","v":""},null,{"$f":"IF($C$489=\"\",\"\",AH489/$C$489)","v":""},null,{"$f":"IF($C$489=\"\",\"\",AJ489/$C$489)","v":""},null,{"$f":"IF($C$489=\"\",\"\",AL489/$C$489)","v":""},null,{"$f":"IF($C$489=\"\",\"\",AN489/$C$489)","v":""},null,{"$f":"IF($C$489=\"\",\"\",AP489/$C$489)","v":""},null,{"$f":"IF($C$489=\"\",\"\",AR489/$C$489)","v":""},null,{"$f":"IF($C$489=\"\",\"\",AT489/$C$489)","v":""},null,{"$f":"IF($C$489=\"\",\"\",AV489/$C$489)","v":""},null,{"$f":"IF($C$489=\"\",\"\",AX489/$C$489)","v":""},null,{"$f":"IF($C$489=\"\",\"\",AZ489/$C$489)","v":""},null,{"$f":"IF($C$489=\"\",\"\",BB489/$C$489)","v":""},null,0]
[null,null,null,null,{"$f":"IF($C$490=\"\",\"\",F490/$C$490)","v":""},null,{"$f":"IF($C$490=\"\",\"\",H490/$C$490)","v":""},null,{"$f":"IF($C$490=\"\",\"\",J490/$C$490)","v":""},null,{"$f":"IF($C$490=\"\",\"\",L490/$C$490)","v":""},null,{"$f":"IF($C$490=\"\",\"\",N490/$C$490)","v":""},null,{"$f":"IF($C$490=\"\",\"\",P490/$C$490)","v":""},null,{"$f":"IF($C$490=\"\",\"\",R490/$C$490)","v":""},null,{"$f":"IF($C$490=\"\",\"\",T490/$C$490)","v":""},null,{"$f":"IF($C$490=\"\",\"\",V490/$C$490)","v":""},null,{"$f":"IF($C$490=\"\",\"\",X490/$C$490)","v":""},null,{"$f":"IF($C$490=\"\",\"\",Z490/$C$490)","v":""},null,{"$f":"IF($C$490=\"\",\"\",AB490/$C$490)","v":""},null,{"$f":"IF($C$490=\"\",\"\",AD490/$C$490)","v":""},null,{"$f":"IF($C$490=\"\",\"\",AF490/$C$490)","v":""},null,{"$f":"IF($C$490=\"\",\"\",AH490/$C$490)","v":""},null,{"$f":"IF($C$490=\"\",\"\",AJ490/$C$490)","v":""},null,{"$f":"IF($C$490=\"\",\"\",AL490/$C$490)","v":""},null,{"$f":"IF($C$490=\"\",\"\",AN490/$C$490)","v":""},null,{"$f":"IF($C$490=\"\",\"\",AP490/$C$490)","v":""},null,{"$f":"IF($C$490=\"\",\"\",AR490/$C$490)","v":""},null,{"$f":"IF($C$490=\"\",\"\",AT490/$C$490)","v":""},null,{"$f":"IF($C$490=\"\",\"\",AV490/$C$490)","v":""},null,{"$f":"IF($C$490=\"\",\"\",AX490/$C$490)","v":""},null,{"$f":"IF($C$490=\"\",\"\",AZ490/$C$490)","v":""},null,{"$f":"IF($C$490=\"\",\"\",BB490/$C$490)","v":""},null,0]
[null,null,null,null,{"$f":"IF($C$491=\"\",\"\",F491/$C$491)","v":""},null,{"$f":"IF($C$491=\"\",\"\",H491/$C$491)","v":""},null,{"$f":"IF($C$491=\"\",\"\",J491/$C$491)","v":""},null,{"$f":"IF($C$491=\"\",\"\",L491/$C$491)","v":""},null,{"$f":"IF($C$491=\"\",\"\",N491/$C$491)","v":""},null,{"$f":"IF($C$491=\"\",\"\",P491/$C$491)","v":""},null,{"$f":"IF($C$491=\"\",\"\",R491/$C$491)","v":""},null,{"$f":"IF($C$491=\"\",\"\",T491/$C$491)","v":""},null,{"$f":"IF($C$491=\"\",\"\",V491/$C$491)","v":""},null,{"$f":"IF($C$491=\"\",\"\",X491/$C$491)","v":""},null,{"$f":"IF($C$491=\"\",\"\",Z491/$C$491)","v":""},null,{"$f":"IF($C$491=\"\",\"\",AB491/$C$491)","v":""},null,{"$f":"IF($C$491=\"\",\"\",AD491/$C$491)","v":""},null,{"$f":"IF($C$491=\"\",\"\",AF491/$C$491)","v":""},null,{"$f":"IF($C$491=\"\",\"\",AH491/$C$491)","v":""},null,{"$f":"IF($C$491=\"\",\"\",AJ491/$C$491)","v":""},null,{"$f":"IF($C$491=\"\",\"\",AL491/$C$491)","v":""},null,{"$f":"IF($C$491=\"\",\"\",AN491/$C$491)","v":""},null,{"$f":"IF($C$491=\"\",\"\",AP491/$C$491)","v":""},null,{"$f":"IF($C$491=\"\",\"\",AR491/$C$491)","v":""},null,{"$f":"IF($C$491=\"\",\"\",AT491/$C$491)","v":""},null,{"$f":"IF($C$491=\"\",\"\",AV491/$C$491)","v":""},null,{"$f":"IF($C$491=\"\",\"\",AX491/$C$491)","v":""},null,{"$f":"IF($C$491=\"\",\"\",AZ491/$C$491)","v":""},null,{"$f":"IF($C$491=\"\",\"\",BB491/$C$491)","v":""},null,0]
[null,null,null,null,{"$f":"IF($C$492=\"\",\"\",F492/$C$492)","v":""},null,{"$f":"IF($C$492=\"\",\"\",H492/$C$492)","v":""},null,{"$f":"IF($C$492=\"\",\"\",J492/$C$492)","v":""},null,{"$f":"IF($C$492=\"\",\"\",L492/$C$492)","v":""},null,{"$f":"IF($C$492=\"\",\"\",N492/$C$492)","v":""},null,{"$f":"IF($C$492=\"\",\"\",P492/$C$492)","v":""},null,{"$f":"IF($C$492=\"\",\"\",R492/$C$492)","v":""},null,{"$f":"IF($C$492=\"\",\"\",T492/$C$492)","v":""},null,{"$f":"IF($C$492=\"\",\"\",V492/$C$492)","v":""},null,{"$f":"IF($C$492=\"\",\"\",X492/$C$492)","v":""},null,{"$f":"IF($C$492=\"\",\"\",Z492/$C$492)","v":""},null,{"$f":"IF($C$492=\"\",\"\",AB492/$C$492)","v":""},null,{"$f":"IF($C$492=\"\",\"\",AD492/$C$492)","v":""},null,{"$f":"IF($C$492=\"\",\"\",AF492/$C$492)","v":""},null,{"$f":"IF($C$492=\"\",\"\",AH492/$C$492)","v":""},null,{"$f":"IF($C$492=\"\",\"\",AJ492/$C$492)","v":""},null,{"$f":"IF($C$492=\"\",\"\",AL492/$C$492)","v":""},null,{"$f":"IF($C$492=\"\",\"\",AN492/$C$492)","v":""},null,{"$f":"IF($C$492=\"\",\"\",AP492/$C$492)","v":""},null,{"$f":"IF($C$492=\"\",\"\",AR492/$C$492)","v":""},null,{"$f":"IF($C$492=\"\",\"\",AT492/$C$492)","v":""},null,{"$f":"IF($C$492=\"\",\"\",AV492/$C$492)","v":""},null,{"$f":"IF($C$492=\"\",\"\",AX492/$C$492)","v":""},null,{"$f":"IF($C$492=\"\",\"\",AZ492/$C$492)","v":""},null,{"$f":"IF($C$492=\"\",\"\",BB492/$C$492)","v":""},null,0]
[null,null,null,null,{"$f":"IF($C$493=\"\",\"\",F493/$C$493)","v":""},null,{"$f":"IF($C$493=\"\",\"\",H493/$C$493)","v":""},null,{"$f":"IF($C$493=\"\",\"\",J493/$C$493)","v":""},null,{"$f":"IF($C$493=\"\",\"\",L493/$C$493)","v":""},null,{"$f":"IF($C$493=\"\",\"\",N493/$C$493)","v":""},null,{"$f":"IF($C$493=\"\",\"\",P493/$C$493)","v":""},null,{"$f":"IF($C$493=\"\",\"\",R493/$C$493)","v":""},null,{"$f":"IF($C$493=\"\",\"\",T493/$C$493)","v":""},null,{"$f":"IF($C$493=\"\",\"\",V493/$C$493)","v":""},null,{"$f":"IF($C$493=\"\",\"\",X493/$C$493)","v":""},null,{"$f":"IF($C$493=\"\",\"\",Z493/$C$493)","v":""},null,{"$f":"IF($C$493=\"\",\"\",AB493/$C$493)","v":""},null,{"$f":"IF($C$493=\"\",\"\",AD493/$C$493)","v":""},null,{"$f":"IF($C$493=\"\",\"\",AF493/$C$493)","v":""},null,{"$f":"IF($C$493=\"\",\"\",AH493/$C$493)","v":""},null,{"$f":"IF($C$493=\"\",\"\",AJ493/$C$493)","v":""},null,{"$f":"IF($C$493=\"\",\"\",AL493/$C$493)","v":""},null,{"$f":"IF($C$493=\"\",\"\",AN493/$C$493)","v":""},null,{"$f":"IF($C$493=\"\",\"\",AP493/$C$493)","v":""},null,{"$f":"IF($C$493=\"\",\"\",AR493/$C$493)","v":""},null,{"$f":"IF($C$493=\"\",\"\",AT493/$C$493)","v":""},null,{"$f":"IF($C$493=\"\",\"\",AV493/$C$493)","v":""},null,{"$f":"IF($C$493=\"\",\"\",AX493/$C$493)","v":""},null,{"$f":"IF($C$493=\"\",\"\",AZ493/$C$493)","v":""},null,{"$f":"IF($C$493=\"\",\"\",BB493/$C$493)","v":""},null,0]
[null,null,null,null,{"$f":"IF($C$494=\"\",\"\",F494/$C$494)","v":""},null,{"$f":"IF($C$494=\"\",\"\",H494/$C$494)","v":""},null,{"$f":"IF($C$494=\"\",\"\",J494/$C$494)","v":""},null,{"$f":"IF($C$494=\"\",\"\",L494/$C$494)","v":""},null,{"$f":"IF($C$494=\"\",\"\",N494/$C$494)","v":""},null,{"$f":"IF($C$494=\"\",\"\",P494/$C$494)","v":""},null,{"$f":"IF($C$494=\"\",\"\",R494/$C$494)","v":""},null,{"$f":"IF($C$494=\"\",\"\",T494/$C$494)","v":""},null,{"$f":"IF($C$494=\"\",\"\",V494/$C$494)","v":""},null,{"$f":"IF($C$494=\"\",\"\",X494/$C$494)","v":""},null,{"$f":"IF($C$494=\"\",\"\",Z494/$C$494)","v":""},null,{"$f":"IF($C$494=\"\",\"\",AB494/$C$494)","v":""},null,{"$f":"IF($C$494=\"\",\"\",AD494/$C$494)","v":""},null,{"$f":"IF($C$494=\"\",\"\",AF494/$C$494)","v":""},null,{"$f":"IF($C$494=\"\",\"\",AH494/$C$494)","v":""},null,{"$f":"IF($C$494=\"\",\"\",AJ494/$C$494)","v":""},null,{"$f":"IF($C$494=\"\",\"\",AL494/$C$494)","v":""},null,{"$f":"IF($C$494=\"\",\"\",AN494/$C$494)","v":""},null,{"$f":"IF($C$494=\"\",\"\",AP494/$C$494)","v":""},null,{"$f":"IF($C$494=\"\",\"\",AR494/$C$494)","v":""},null,{"$f":"IF($C$494=\"\",\"\",AT494/$C$494)","v":""},null,{"$f":"IF($C$494=\"\",\"\",AV494/$C$494)","v":""},null,{"$f":"IF($C$494=\"\",\"\",AX494/$C$494)","v":""},null,{"$f":"IF($C$494=\"\",\"\",AZ494/$C$494)","v":""},null,{"$f":"IF($C$494=\"\",\"\",BB494/$C$494)","v":""},null,0]
[null,null,null,null,{"$f":"IF($C$495=\"\",\"\",F495/$C$495)","v":""},null,{"$f":"IF($C$495=\"\",\"\",H495/$C$495)","v":""},null,{"$f":"IF($C$495=\"\",\"\",J495/$C$495)","v":""},null,{"$f":"IF($C$495=\"\",\"\",L495/$C$495)","v":""},null,{"$f":"IF($C$495=\"\",\"\",N495/$C$495)","v":""},null,{"$f":"IF($C$495=\"\",\"\",P495/$C$495)","v":""},null,{"$f":"IF($C$495=\"\",\"\",R495/$C$495)","v":""},null,{"$f":"IF($C$495=\"\",\"\",T495/$C$495)","v":""},null,{"$f":"IF($C$495=\"\",\"\",V495/$C$495)","v":""},null,{"$f":"IF($C$495=\"\",\"\",X495/$C$495)","v":""},null,{"$f":"IF($C$495=\"\",\"\",Z495/$C$495)","v":""},null,{"$f":"IF($C$495=\"\",\"\",AB495/$C$495)","v":""},null,{"$f":"IF($C$495=\"\",\"\",AD495/$C$495)","v":""},null,{"$f":"IF($C$495=\"\",\"\",AF495/$C$495)","v":""},null,{"$f":"IF($C$495=\"\",\"\",AH495/$C$495)","v":""},null,{"$f":"IF($C$495=\"\",\"\",AJ495/$C$495)","v":""},null,{"$f":"IF($C$495=\"\",\"\",AL495/$C$495)","v":""},null,{"$f":"IF($C$495=\"\",\"\",AN495/$C$495)","v":""},null,{"$f":"IF($C$495=\"\",\"\",AP495/$C$495)","v":""},null,{"$f":"IF($C$495=\"\",\"\",AR495/$C$495)","v":""},null,{"$f":"IF($C$495=\"\",\"\",AT495/$C$495)","v":""},null,{"$f":"IF($C$495=\"\",\"\",AV495/$C$495)","v":""},null,{"$f":"IF($C$495=\"\",\"\",AX495/$C$495)","v":""},null,{"$f":"IF($C$495=\"\",\"\",AZ495/$C$495)","v":""},null,{"$f":"IF($C$495=\"\",\"\",BB495/$C$495)","v":""},null,0]
[null,null,null,null,{"$f":"IF($C$496=\"\",\"\",F496/$C$496)","v":""},null,{"$f":"IF($C$496=\"\",\"\",H496/$C$496)","v":""},null,{"$f":"IF($C$496=\"\",\"\",J496/$C$496)","v":""},null,{"$f":"IF($C$496=\"\",\"\",L496/$C$496)","v":""},null,{"$f":"IF($C$496=\"\",\"\",N496/$C$496)","v":""},null,{"$f":"IF($C$496=\"\",\"\",P496/$C$496)","v":""},null,{"$f":"IF($C$496=\"\",\"\",R496/$C$496)","v":""},null,{"$f":"IF($C$496=\"\",\"\",T496/$C$496)","v":""},null,{"$f":"IF($C$496=\"\",\"\",V496/$C$496)","v":""},null,{"$f":"IF($C$496=\"\",\"\",X496/$C$496)","v":""},null,{"$f":"IF($C$496=\"\",\"\",Z496/$C$496)","v":""},null,{"$f":"IF($C$496=\"\",\"\",AB496/$C$496)","v":""},null,{"$f":"IF($C$496=\"\",\"\",AD496/$C$496)","v":""},null,{"$f":"IF($C$496=\"\",\"\",AF496/$C$496)","v":""},null,{"$f":"IF($C$496=\"\",\"\",AH496/$C$496)","v":""},null,{"$f":"IF($C$496=\"\",\"\",AJ496/$C$496)","v":""},null,{"$f":"IF($C$496=\"\",\"\",AL496/$C$496)","v":""},null,{"$f":"IF($C$496=\"\",\"\",AN496/$C$496)","v":""},null,{"$f":"IF($C$496=\"\",\"\",AP496/$C$496)","v":""},null,{"$f":"IF($C$496=\"\",\"\",AR496/$C$496)","v":""},null,{"$f":"IF($C$496=\"\",\"\",AT496/$C$496)","v":""},null,{"$f":"IF($C$496=\"\",\"\",AV496/$C$496)","v":""},null,{"$f":"IF($C$496=\"\",\"\",AX496/$C$496)","v":""},null,{"$f":"IF($C$496=\"\",\"\",AZ496/$C$496)","v":""},null,{"$f":"IF($C$496=\"\",\"\",BB496/$C$496)","v":""},null,0]
[null,null,null,null,{"$f":"IF($C$497=\"\",\"\",F497/$C$497)","v":""},null,{"$f":"IF($C$497=\"\",\"\",H497/$C$497)","v":""},null,{"$f":"IF($C$497=\"\",\"\",J497/$C$497)","v":""},null,{"$f":"IF($C$497=\"\",\"\",L497/$C$497)","v":""},null,{"$f":"IF($C$497=\"\",\"\",N497/$C$497)","v":""},null,{"$f":"IF($C$497=\"\",\"\",P497/$C$497)","v":""},null,{"$f":"IF($C$497=\"\",\"\",R497/$C$497)","v":""},null,{"$f":"IF($C$497=\"\",\"\",T497/$C$497)","v":""},null,{"$f":"IF($C$497=\"\",\"\",V497/$C$497)","v":""},null,{"$f":"IF($C$497=\"\",\"\",X497/$C$497)","v":""},null,{"$f":"IF($C$497=\"\",\"\",Z497/$C$497)","v":""},null,{"$f":"IF($C$497=\"\",\"\",AB497/$C$497)","v":""},null,{"$f":"IF($C$497=\"\",\"\",AD497/$C$497)","v":""},null,{"$f":"IF($C$497=\"\",\"\",AF497/$C$497)","v":""},null,{"$f":"IF($C$497=\"\",\"\",AH497/$C$497)","v":""},null,{"$f":"IF($C$497=\"\",\"\",AJ497/$C$497)","v":""},null,{"$f":"IF($C$497=\"\",\"\",AL497/$C$497)","v":""},null,{"$f":"IF($C$497=\"\",\"\",AN497/$C$497)","v":""},null,{"$f":"IF($C$497=\"\",\"\",AP497/$C$497)","v":""},null,{"$f":"IF($C$497=\"\",\"\",AR497/$C$497)","v":""},null,{"$f":"IF($C$497=\"\",\"\",AT497/$C$497)","v":""},null,{"$f":"IF($C$497=\"\",\"\",AV497/$C$497)","v":""},null,{"$f":"IF($C$497=\"\",\"\",AX497/$C$497)","v":""},null,{"$f":"IF($C$497=\"\",\"\",AZ497/$C$497)","v":""},null,{"$f":"IF($C$497=\"\",\"\",BB497/$C$497)","v":""},null,0]
[null,null,null,null,{"$f":"IF($C$498=\"\",\"\",F498/$C$498)","v":""},null,{"$f":"IF($C$498=\"\",\"\",H498/$C$498)","v":""},null,{"$f":"IF($C$498=\"\",\"\",J498/$C$498)","v":""},null,{"$f":"IF($C$498=\"\",\"\",L498/$C$498)","v":""},null,{"$f":"IF($C$498=\"\",\"\",N498/$C$498)","v":""},null,{"$f":"IF($C$498=\"\",\"\",P498/$C$498)","v":""},null,{"$f":"IF($C$498=\"\",\"\",R498/$C$498)","v":""},null,{"$f":"IF($C$498=\"\",\"\",T498/$C$498)","v":""},null,{"$f":"IF($C$498=\"\",\"\",V498/$C$498)","v":""},null,{"$f":"IF($C$498=\"\",\"\",X498/$C$498)","v":""},null,{"$f":"IF($C$498=\"\",\"\",Z498/$C$498)","v":""},null,{"$f":"IF($C$498=\"\",\"\",AB498/$C$498)","v":""},null,{"$f":"IF($C$498=\"\",\"\",AD498/$C$498)","v":""},null,{"$f":"IF($C$498=\"\",\"\",AF498/$C$498)","v":""},null,{"$f":"IF($C$498=\"\",\"\",AH498/$C$498)","v":""},null,{"$f":"IF($C$498=\"\",\"\",AJ498/$C$498)","v":""},null,{"$f":"IF($C$498=\"\",\"\",AL498/$C$498)","v":""},null,{"$f":"IF($C$498=\"\",\"\",AN498/$C$498)","v":""},null,{"$f":"IF($C$498=\"\",\"\",AP498/$C$498)","v":""},null,{"$f":"IF($C$498=\"\",\"\",AR498/$C$498)","v":""},null,{"$f":"IF($C$498=\"\",\"\",AT498/$C$498)","v":""},null,{"$f":"IF($C$498=\"\",\"\",AV498/$C$498)","v":""},null,{"$f":"IF($C$498=\"\",\"\",AX498/$C$498)","v":""},null,{"$f":"IF($C$498=\"\",\"\",AZ498/$C$498)","v":""},null,{"$f":"IF($C$498=\"\",\"\",BB498/$C$498)","v":""},null,0]
[null,null,null,null,{"$f":"IF($C$499=\"\",\"\",F499/$C$499)","v":""},null,{"$f":"IF($C$499=\"\",\"\",H499/$C$499)","v":""},null,{"$f":"IF($C$499=\"\",\"\",J499/$C$499)","v":""},null,{"$f":"IF($C$499=\"\",\"\",L499/$C$499)","v":""},null,{"$f":"IF($C$499=\"\",\"\",N499/$C$499)","v":""},null,{"$f":"IF($C$499=\"\",\"\",P499/$C$499)","v":""},null,{"$f":"IF($C$499=\"\",\"\",R499/$C$499)","v":""},null,{"$f":"IF($C$499=\"\",\"\",T499/$C$499)","v":""},null,{"$f":"IF($C$499=\"\",\"\",V499/$C$499)","v":""},null,{"$f":"IF($C$499=\"\",\"\",X499/$C$499)","v":""},null,{"$f":"IF($C$499=\"\",\"\",Z499/$C$499)","v":""},null,{"$f":"IF($C$499=\"\",\"\",AB499/$C$499)","v":""},null,{"$f":"IF($C$499=\"\",\"\",AD499/$C$499)","v":""},null,{"$f":"IF($C$499=\"\",\"\",AF499/$C$499)","v":""},null,{"$f":"IF($C$499=\"\",\"\",AH499/$C$499)","v":""},null,{"$f":"IF($C$499=\"\",\"\",AJ499/$C$499)","v":""},null,{"$f":"IF($C$499=\"\",\"\",AL499/$C$499)","v":""},null,{"$f":"IF($C$499=\"\",\"\",AN499/$C$499)","v":""},null,{"$f":"IF($C$499=\"\",\"\",AP499/$C$499)","v":""},null,{"$f":"IF($C$499=\"\",\"\",AR499/$C$499)","v":""},null,{"$f":"IF($C$499=\"\",\"\",AT499/$C$499)","v":""},null,{"$f":"IF($C$499=\"\",\"\",AV499/$C$499)","v":""},null,{"$f":"IF($C$499=\"\",\"\",AX499/$C$499)","v":""},null,{"$f":"IF($C$499=\"\",\"\",AZ499/$C$499)","v":""},null,{"$f":"IF($C$499=\"\",\"\",BB499/$C$499)","v":""},null,0]
[null,null,null,null,{"$f":"IF($C$500=\"\",\"\",F500/$C$500)","v":""},null,{"$f":"IF($C$500=\"\",\"\",H500/$C$500)","v":""},null,{"$f":"IF($C$500=\"\",\"\",J500/$C$500)","v":""},null,{"$f":"IF($C$500=\"\",\"\",L500/$C$500)","v":""},null,{"$f":"IF($C$500=\"\",\"\",N500/$C$500)","v":""},null,{"$f":"IF($C$500=\"\",\"\",P500/$C$500)","v":""},null,{"$f":"IF($C$500=\"\",\"\",R500/$C$500)","v":""},null,{"$f":"IF($C$500=\"\",\"\",T500/$C$500)","v":""},null,{"$f":"IF($C$500=\"\",\"\",V500/$C$500)","v":""},null,{"$f":"IF($C$500=\"\",\"\",X500/$C$500)","v":""},null,{"$f":"IF($C$500=\"\",\"\",Z500/$C$500)","v":""},null,{"$f":"IF($C$500=\"\",\"\",AB500/$C$500)","v":""},null,{"$f":"IF($C$500=\"\",\"\",AD500/$C$500)","v":""},null,{"$f":"IF($C$500=\"\",\"\",AF500/$C$500)","v":""},null,{"$f":"IF($C$500=\"\",\"\",AH500/$C$500)","v":""},null,{"$f":"IF($C$500=\"\",\"\",AJ500/$C$500)","v":""},null,{"$f":"IF($C$500=\"\",\"\",AL500/$C$500)","v":""},null,{"$f":"IF($C$500=\"\",\"\",AN500/$C$500)","v":""},null,{"$f":"IF($C$500=\"\",\"\",AP500/$C$500)","v":""},null,{"$f":"IF($C$500=\"\",\"\",AR500/$C$500)","v":""},null,{"$f":"IF($C$500=\"\",\"\",AT500/$C$500)","v":""},null,{"$f":"IF($C$500=\"\",\"\",AV500/$C$500)","v":""},null,{"$f":"IF($C$500=\"\",\"\",AX500/$C$500)","v":""},null,{"$f":"IF($C$500=\"\",\"\",AZ500/$C$500)","v":""},null,{"$f":"IF($C$500=\"\",\"\",BB500/$C$500)","v":""},null,0]
[null,null,null,null,{"$f":"IF($C$501=\"\",\"\",F501/$C$501)","v":""},null,{"$f":"IF($C$501=\"\",\"\",H501/$C$501)","v":""},null,{"$f":"IF($C$501=\"\",\"\",J501/$C$501)","v":""},null,{"$f":"IF($C$501=\"\",\"\",L501/$C$501)","v":""},null,{"$f":"IF($C$501=\"\",\"\",N501/$C$501)","v":""},null,{"$f":"IF($C$501=\"\",\"\",P501/$C$501)","v":""},null,{"$f":"IF($C$501=\"\",\"\",R501/$C$501)","v":""},null,{"$f":"IF($C$501=\"\",\"\",T501/$C$501)","v":""},null,{"$f":"IF($C$501=\"\",\"\",V501/$C$501)","v":""},null,{"$f":"IF($C$501=\"\",\"\",X501/$C$501)","v":""},null,{"$f":"IF($C$501=\"\",\"\",Z501/$C$501)","v":""},null,{"$f":"IF($C$501=\"\",\"\",AB501/$C$501)","v":""},null,{"$f":"IF($C$501=\"\",\"\",AD501/$C$501)","v":""},null,{"$f":"IF($C$501=\"\",\"\",AF501/$C$501)","v":""},null,{"$f":"IF($C$501=\"\",\"\",AH501/$C$501)","v":""},null,{"$f":"IF($C$501=\"\",\"\",AJ501/$C$501)","v":""},null,{"$f":"IF($C$501=\"\",\"\",AL501/$C$501)","v":""},null,{"$f":"IF($C$501=\"\",\"\",AN501/$C$501)","v":""},null,{"$f":"IF($C$501=\"\",\"\",AP501/$C$501)","v":""},null,{"$f":"IF($C$501=\"\",\"\",AR501/$C$501)","v":""},null,{"$f":"IF($C$501=\"\",\"\",AT501/$C$501)","v":""},null,{"$f":"IF($C$501=\"\",\"\",AV501/$C$501)","v":""},null,{"$f":"IF($C$501=\"\",\"\",AX501/$C$501)","v":""},null,{"$f":"IF($C$501=\"\",\"\",AZ501/$C$501)","v":""},null,{"$f":"IF($C$501=\"\",\"\",BB501/$C$501)","v":""},null,0]
[null,null,null,null,{"$f":"IF($C$502=\"\",\"\",F502/$C$502)","v":""},null,{"$f":"IF($C$502=\"\",\"\",H502/$C$502)","v":""},null,{"$f":"IF($C$502=\"\",\"\",J502/$C$502)","v":""},null,{"$f":"IF($C$502=\"\",\"\",L502/$C$502)","v":""},null,{"$f":"IF($C$502=\"\",\"\",N502/$C$502)","v":""},null,{"$f":"IF($C$502=\"\",\"\",P502/$C$502)","v":""},null,{"$f":"IF($C$502=\"\",\"\",R502/$C$502)","v":""},null,{"$f":"IF($C$502=\"\",\"\",T502/$C$502)","v":""},null,{"$f":"IF($C$502=\"\",\"\",V502/$C$502)","v":""},null,{"$f":"IF($C$502=\"\",\"\",X502/$C$502)","v":""},null,{"$f":"IF($C$502=\"\",\"\",Z502/$C$502)","v":""},null,{"$f":"IF($C$502=\"\",\"\",AB502/$C$502)","v":""},null,{"$f":"IF($C$502=\"\",\"\",AD502/$C$502)","v":""},null,{"$f":"IF($C$502=\"\",\"\",AF502/$C$502)","v":""},null,{"$f":"IF($C$502=\"\",\"\",AH502/$C$502)","v":""},null,{"$f":"IF($C$502=\"\",\"\",AJ502/$C$502)","v":""},null,{"$f":"IF($C$502=\"\",\"\",AL502/$C$502)","v":""},null,{"$f":"IF($C$502=\"\",\"\",AN502/$C$502)","v":""},null,{"$f":"IF($C$502=\"\",\"\",AP502/$C$502)","v":""},null,{"$f":"IF($C$502=\"\",\"\",AR502/$C$502)","v":""},null,{"$f":"IF($C$502=\"\",\"\",AT502/$C$502)","v":""},null,{"$f":"IF($C$502=\"\",\"\",AV502/$C$502)","v":""},null,{"$f":"IF($C$502=\"\",\"\",AX502/$C$502)","v":""},null,{"$f":"IF($C$502=\"\",\"\",AZ502/$C$502)","v":""},null,{"$f":"IF($C$502=\"\",\"\",BB502/$C$502)","v":""},null,0]
[null,null,null,null,{"$f":"IF($C$503=\"\",\"\",F503/$C$503)","v":""},null,{"$f":"IF($C$503=\"\",\"\",H503/$C$503)","v":""},null,{"$f":"IF($C$503=\"\",\"\",J503/$C$503)","v":""},null,{"$f":"IF($C$503=\"\",\"\",L503/$C$503)","v":""},null,{"$f":"IF($C$503=\"\",\"\",N503/$C$503)","v":""},null,{"$f":"IF($C$503=\"\",\"\",P503/$C$503)","v":""},null,{"$f":"IF($C$503=\"\",\"\",R503/$C$503)","v":""},null,{"$f":"IF($C$503=\"\",\"\",T503/$C$503)","v":""},null,{"$f":"IF($C$503=\"\",\"\",V503/$C$503)","v":""},null,{"$f":"IF($C$503=\"\",\"\",X503/$C$503)","v":""},null,{"$f":"IF($C$503=\"\",\"\",Z503/$C$503)","v":""},null,{"$f":"IF($C$503=\"\",\"\",AB503/$C$503)","v":""},null,{"$f":"IF($C$503=\"\",\"\",AD503/$C$503)","v":""},null,{"$f":"IF($C$503=\"\",\"\",AF503/$C$503)","v":""},null,{"$f":"IF($C$503=\"\",\"\",AH503/$C$503)","v":""},null,{"$f":"IF($C$503=\"\",\"\",AJ503/$C$503)","v":""},null,{"$f":"IF($C$503=\"\",\"\",AL503/$C$503)","v":""},null,{"$f":"IF($C$503=\"\",\"\",AN503/$C$503)","v":""},null,{"$f":"IF($C$503=\"\",\"\",AP503/$C$503)","v":""},null,{"$f":"IF($C$503=\"\",\"\",AR503/$C$503)","v":""},null,{"$f":"IF($C$503=\"\",\"\",AT503/$C$503)","v":""},null,{"$f":"IF($C$503=\"\",\"\",AV503/$C$503)","v":""},null,{"$f":"IF($C$503=\"\",\"\",AX503/$C$503)","v":""},null,{"$f":"IF($C$503=\"\",\"\",AZ503/$C$503)","v":""},null,{"$f":"IF($C$503=\"\",\"\",BB503/$C$503)","v":""},null,0]
[null,null,null,null,{"$f":"IF($C$504=\"\",\"\",F504/$C$504)","v":""},null,{"$f":"IF($C$504=\"\",\"\",H504/$C$504)","v":""},null,{"$f":"IF($C$504=\"\",\"\",J504/$C$504)","v":""},null,{"$f":"IF($C$504=\"\",\"\",L504/$C$504)","v":""},null,{"$f":"IF($C$504=\"\",\"\",N504/$C$504)","v":""},null,{"$f":"IF($C$504=\"\",\"\",P504/$C$504)","v":""},null,{"$f":"IF($C$504=\"\",\"\",R504/$C$504)","v":""},null,{"$f":"IF($C$504=\"\",\"\",T504/$C$504)","v":""},null,{"$f":"IF($C$504=\"\",\"\",V504/$C$504)","v":""},null,{"$f":"IF($C$504=\"\",\"\",X504/$C$504)","v":""},null,{"$f":"IF($C$504=\"\",\"\",Z504/$C$504)","v":""},null,{"$f":"IF($C$504=\"\",\"\",AB504/$C$504)","v":""},null,{"$f":"IF($C$504=\"\",\"\",AD504/$C$504)","v":""},null,{"$f":"IF($C$504=\"\",\"\",AF504/$C$504)","v":""},null,{"$f":"IF($C$504=\"\",\"\",AH504/$C$504)","v":""},null,{"$f":"IF($C$504=\"\",\"\",AJ504/$C$504)","v":""},null,{"$f":"IF($C$504=\"\",\"\",AL504/$C$504)","v":""},null,{"$f":"IF($C$504=\"\",\"\",AN504/$C$504)","v":""},null,{"$f":"IF($C$504=\"\",\"\",AP504/$C$504)","v":""},null,{"$f":"IF($C$504=\"\",\"\",AR504/$C$504)","v":""},null,{"$f":"IF($C$504=\"\",\"\",AT504/$C$504)","v":""},null,{"$f":"IF($C$504=\"\",\"\",AV504/$C$504)","v":""},null,{"$f":"IF($C$504=\"\",\"\",AX504/$C$504)","v":""},null,{"$f":"IF($C$504=\"\",\"\",AZ504/$C$504)","v":""},null,{"$f":"IF($C$504=\"\",\"\",BB504/$C$504)","v":""},null,0]
[null,null,null,null,{"$f":"IF($C$505=\"\",\"\",F505/$C$505)","v":""},null,{"$f":"IF($C$505=\"\",\"\",H505/$C$505)","v":""},null,{"$f":"IF($C$505=\"\",\"\",J505/$C$505)","v":""},null,{"$f":"IF($C$505=\"\",\"\",L505/$C$505)","v":""},null,{"$f":"IF($C$505=\"\",\"\",N505/$C$505)","v":""},null,{"$f":"IF($C$505=\"\",\"\",P505/$C$505)","v":""},null,{"$f":"IF($C$505=\"\",\"\",R505/$C$505)","v":""},null,{"$f":"IF($C$505=\"\",\"\",T505/$C$505)","v":""},null,{"$f":"IF($C$505=\"\",\"\",V505/$C$505)","v":""},null,{"$f":"IF($C$505=\"\",\"\",X505/$C$505)","v":""},null,{"$f":"IF($C$505=\"\",\"\",Z505/$C$505)","v":""},null,{"$f":"IF($C$505=\"\",\"\",AB505/$C$505)","v":""},null,{"$f":"IF($C$505=\"\",\"\",AD505/$C$505)","v":""},null,{"$f":"IF($C$505=\"\",\"\",AF505/$C$505)","v":""},null,{"$f":"IF($C$505=\"\",\"\",AH505/$C$505)","v":""},null,{"$f":"IF($C$505=\"\",\"\",AJ505/$C$505)","v":""},null,{"$f":"IF($C$505=\"\",\"\",AL505/$C$505)","v":""},null,{"$f":"IF($C$505=\"\",\"\",AN505/$C$505)","v":""},null,{"$f":"IF($C$505=\"\",\"\",AP505/$C$505)","v":""},null,{"$f":"IF($C$505=\"\",\"\",AR505/$C$505)","v":""},null,{"$f":"IF($C$505=\"\",\"\",AT505/$C$505)","v":""},null,{"$f":"IF($C$505=\"\",\"\",AV505/$C$505)","v":""},null,{"$f":"IF($C$505=\"\",\"\",AX505/$C$505)","v":""},null,{"$f":"IF($C$505=\"\",\"\",AZ505/$C$505)","v":""},null,{"$f":"IF($C$505=\"\",\"\",BB505/$C$505)","v":""},null,0]
[null,null,null,null,{"$f":"IF($C$506=\"\",\"\",F506/$C$506)","v":""},null,{"$f":"IF($C$506=\"\",\"\",H506/$C$506)","v":""},null,{"$f":"IF($C$506=\"\",\"\",J506/$C$506)","v":""},null,{"$f":"IF($C$506=\"\",\"\",L506/$C$506)","v":""},null,{"$f":"IF($C$506=\"\",\"\",N506/$C$506)","v":""},null,{"$f":"IF($C$506=\"\",\"\",P506/$C$506)","v":""},null,{"$f":"IF($C$506=\"\",\"\",R506/$C$506)","v":""},null,{"$f":"IF($C$506=\"\",\"\",T506/$C$506)","v":""},null,{"$f":"IF($C$506=\"\",\"\",V506/$C$506)","v":""},null,{"$f":"IF($C$506=\"\",\"\",X506/$C$506)","v":""},null,{"$f":"IF($C$506=\"\",\"\",Z506/$C$506)","v":""},null,{"$f":"IF($C$506=\"\",\"\",AB506/$C$506)","v":""},null,{"$f":"IF($C$506=\"\",\"\",AD506/$C$506)","v":""},null,{"$f":"IF($C$506=\"\",\"\",AF506/$C$506)","v":""},null,{"$f":"IF($C$506=\"\",\"\",AH506/$C$506)","v":""},null,{"$f":"IF($C$506=\"\",\"\",AJ506/$C$506)","v":""},null,{"$f":"IF($C$506=\"\",\"\",AL506/$C$506)","v":""},null,{"$f":"IF($C$506=\"\",\"\",AN506/$C$506)","v":""},null,{"$f":"IF($C$506=\"\",\"\",AP506/$C$506)","v":""},null,{"$f":"IF($C$506=\"\",\"\",AR506/$C$506)","v":""},null,{"$f":"IF($C$506=\"\",\"\",AT506/$C$506)","v":""},null,{"$f":"IF($C$506=\"\",\"\",AV506/$C$506)","v":""},null,{"$f":"IF($C$506=\"\",\"\",AX506/$C$506)","v":""},null,{"$f":"IF($C$506=\"\",\"\",AZ506/$C$506)","v":""},null,{"$f":"IF($C$506=\"\",\"\",BB506/$C$506)","v":""},null,0]
[null,null,null,null,{"$f":"IF($C$507=\"\",\"\",F507/$C$507)","v":""},null,{"$f":"IF($C$507=\"\",\"\",H507/$C$507)","v":""},null,{"$f":"IF($C$507=\"\",\"\",J507/$C$507)","v":""},null,{"$f":"IF($C$507=\"\",\"\",L507/$C$507)","v":""},null,{"$f":"IF($C$507=\"\",\"\",N507/$C$507)","v":""},null,{"$f":"IF($C$507=\"\",\"\",P507/$C$507)","v":""},null,{"$f":"IF($C$507=\"\",\"\",R507/$C$507)","v":""},null,{"$f":"IF($C$507=\"\",\"\",T507/$C$507)","v":""},null,{"$f":"IF($C$507=\"\",\"\",V507/$C$507)","v":""},null,{"$f":"IF($C$507=\"\",\"\",X507/$C$507)","v":""},null,{"$f":"IF($C$507=\"\",\"\",Z507/$C$507)","v":""},null,{"$f":"IF($C$507=\"\",\"\",AB507/$C$507)","v":""},null,{"$f":"IF($C$507=\"\",\"\",AD507/$C$507)","v":""},null,{"$f":"IF($C$507=\"\",\"\",AF507/$C$507)","v":""},null,{"$f":"IF($C$507=\"\",\"\",AH507/$C$507)","v":""},null,{"$f":"IF($C$507=\"\",\"\",AJ507/$C$507)","v":""},null,{"$f":"IF($C$507=\"\",\"\",AL507/$C$507)","v":""},null,{"$f":"IF($C$507=\"\",\"\",AN507/$C$507)","v":""},null,{"$f":"IF($C$507=\"\",\"\",AP507/$C$507)","v":""},null,{"$f":"IF($C$507=\"\",\"\",AR507/$C$507)","v":""},null,{"$f":"IF($C$507=\"\",\"\",AT507/$C$507)","v":""},null,{"$f":"IF($C$507=\"\",\"\",AV507/$C$507)","v":""},null,{"$f":"IF($C$507=\"\",\"\",AX507/$C$507)","v":""},null,{"$f":"IF($C$507=\"\",\"\",AZ507/$C$507)","v":""},null,{"$f":"IF($C$507=\"\",\"\",BB507/$C$507)","v":""},null,{"$f":"SUM(BB507,AZ507,AX507,AV507,AT507,AR507,AP507,AN507,AL507,AJ507,AH507,AF507,AD507,AB507,Z507,X507,V507,T507,R507,P507,N507,L507,J507,H507,F507)","v":0}]
["TOTAL HOURS",null,null,null,null,{"$f":"SUM(F478:F507)","v":0},null,{"$f":"SUM(H478:H507)","v":0},null,{"$f":"SUM(J478:J507)","v":0},null,{"$f":"SUM(L478:L507)","v":0},null,{"$f":"SUM(N478:N507)","v":0},null,{"$f":"SUM(P478:P507)","v":0},null,{"$f":"SUM(R478:R507)","v":0},null,{"$f":"SUM(T478:T507)","v":0},null,{"$f":"SUM(V478:V507)","v":0},null,{"$f":"SUM(X478:X507)","v":0},null,{"$f":"SUM(Z478:Z507)","v":0},null,{"$f":"SUM(AB478:AB507)","v":0},null,{"$f":"SUM(AD478:AD507)","v":0},null,{"$f":"SUM(AF478:AF507)","v":0},null,{"$f":"SUM(AH478:AH507)","v":0},null,{"$f":"SUM(AJ478:AJ507)","v":0},null,{"$f":"SUM(AL478:AL507)","v":0},null,{"$f":"SUM(AN478:AN507)","v":0},null,{"$f":"SUM(AP478:AP507)","v":0},null,{"$f":"SUM(AR478:AR507)","v":0},null,{"$f":"SUM(AT478:AT507)","v":0},null,{"$f":"SUM(AV478:AV507)","v":0},null,{"$f":"SUM(AX478:AX507)","v":0},null,{"$f":"SUM(AZ478:AZ507)","v":0},null,{"$f":"SUM(BB478:BB507)","v":0},{"$f":"SUM(E508:BB508)","v":0}]
["TOTAL WORKDAYS",null,null,null,null,{"$f":"F508/8","v":0},null,{"$f":"H508/8","v":0},null,{"$f":"J508/8","v":0},null,{"$f":"L508/8","v":0},null,{"$f":"N508/8","v":0},null,{"$f":"P508/8","v":0},null,{"$f":"R508/8","v":0},null,{"$f":"T508/8","v":0},null,{"$f":"V508/8","v":0},null,{"$f":"X508/8","v":0},null,{"$f":"Z508/8","v":0},null,{"$f":"AB508/8","v":0},null,{"$f":"AD508/8","v":0},null,0,null,{"$f":"AH508/8","v":0},null,0,null,{"$f":"AL508/8","v":0},null,0,null,{"$f":"AP508/8","v":0},null,0,null,{"$f":"AT508/8","v":0},null,{"$f":"AV508/8","v":0},null,{"$f":"AX508/8","v":0},null,{"$f":"AZ508/8","v":0},null,{"$f":"BB508/8","v":0},{"$f":"SUM(E509:BB509)","v":0}]
["TOTAL RAW LABOR",null,null,null,null,{"$f":"$E$13*F508","v":0},null,{"$f":"$G$13*H508","v":0},null,{"$f":"$I$13*J508","v":0},null,{"$f":"$K$13*L508","v":0},null,{"$f":"$M$13*N508","v":0},null,{"$f":"$O$13*P508","v":0},null,{"$f":"$Q$13*R508","v":0},null,{"$f":"$S$13*T508","v":0},null,{"$f":"$U$13*V508","v":0},null,{"$f":"$W$13*X508","v":0},null,{"$f":"$Y$13*Z508","v":0},null,{"$f":"$AA$13*AB508","v":0},null,{"$f":"$AC$13*AD508","v":0},null,{"$f":"$AC$13*AF508","v":0},null,{"$f":"$AC$13*AH508","v":0},null,{"$f":"$AC$13*AJ508","v":0},null,{"$f":"$AC$13*AL508","v":0},null,{"$f":"$AC$13*AN508","v":0},null,{"$f":"$AC$13*AP508","v":0},null,{"$f":"$AC$13*AR508","v":0},null,{"$f":"$AC$13*AT508","v":0},null,{"$f":"$AC$13*AV508","v":0},null,{"$f":"$AC$13*AX508","v":0},null,{"$f":"$AC$13*AZ508","v":0},null,{"$f":"$AC$13*BB508","v":0},{"$f":"SUM(E510:BB510)","v":0}]
["Task 19.0     ","REPLACE FIELD WITH CATEGORY NAME OF YOUR CHOOSING HERE",null,null,null,null,null,null,null,null,null,null,null,null,null,null,null,null,null,null,null,null,null,null,null,null,null,null,null,null,null,null,null,null,null,null,null,null,null,null,null,null,null,null,null,null,null,null,null,null,null,null,null,null,{"$f":"IF(B511=\"REPLACE FIELD WITH CATEGORY NAME OF YOUR CHOOSING HERE\",0,\"\")","v":0}]
[null,null,null,null,{"$f":"IF($C$512=\"\",\"\",F512/$C$512)","v":""},null,{"$f":"IF($C$512=\"\",\"\",H512/$C$512)","v":""},null,{"$f":"IF($C$512=\"\",\"\",J512/$C$512)","v":""},null,{"$f":"IF($C$512=\"\",\"\",L512/$C$512)","v":""},null,{"$f":"IF($C$512=\"\",\"\",N512/$C$512)","v":""},null,{"$f":"IF($C$512=\"\",\"\",P512/$C$512)","v":""},null,{"$f":"IF($C$512=\"\",\"\",R512/$C$512)","v":""},null,{"$f":"IF($C$512=\"\",\"\",T512/$C$512)","v":""},null,{"$f":"IF($C$512=\"\",\"\",V512/$C$512)","v":""},null,{"$f":"IF($C$512=\"\",\"\",X512/$C$512)","v":""},null,{"$f":"IF($C$512=\"\",\"\",Z512/$C$512)","v":""},null,{"$f":"IF($C$512=\"\",\"\",AB512/$C$512)","v":""},null,{"$f":"IF($C$512=\"\",\"\",AD512/$C$512)","v":""},null,{"$f":"IF($C$512=\"\",\"\",AF512/$C$512)","v":""},null,{"$f":"IF($C$512=\"\",\"\",AH512/$C$512)","v":""},null,{"$f":"IF($C$512=\"\",\"\",AJ512/$C$512)","v":""},null,{"$f":"IF($C$512=\"\",\"\",AL512/$C$512)","v":""},null,{"$f":"IF($C$512=\"\",\"\",AN512/$C$512)","v":""},null,{"$f":"IF($C$512=\"\",\"\",AP512/$C$512)","v":""},null,{"$f":"IF($C$512=\"\",\"\",AR512/$C$512)","v":""},null,{"$f":"IF($C$512=\"\",\"\",AT512/$C$512)","v":""},null,{"$f":"IF($C$512=\"\",\"\",AV512/$C$512)","v":""},null,{"$f":"IF($C$512=\"\",\"\",AX512/$C$512)","v":""},null,{"$f":"IF($C$512=\"\",\"\",AZ512/$C$512)","v":""},null,{"$f":"IF($C$512=\"\",\"\",BB512/$C$512)","v":""},null,{"$f":"SUM(BB512,AZ512,AX512,AV512,AT512,AR512,AP512,AN512,AL512,AJ512,AH512,AF512,AD512,AB512,Z512,X512,V512,T512,R512,P512,N512,L512,J512,H512,F512)","v":0}]
[null,null,null,null,{"$f":"IF($C$513=\"\",\"\",F513/$C$513)","v":""},null,{"$f":"IF($C$513=\"\",\"\",H513/$C$513)","v":""},null,{"$f":"IF($C$513=\"\",\"\",J513/$C$513)","v":""},null,{"$f":"IF($C$513=\"\",\"\",L513/$C$513)","v":""},null,{"$f":"IF($C$513=\"\",\"\",N513/$C$513)","v":""},null,{"$f":"IF($C$513=\"\",\"\",P513/$C$513)","v":""},null,{"$f":"IF($C$513=\"\",\"\",R513/$C$513)","v":""},null,{"$f":"IF($C$513=\"\",\"\",T513/$C$513)","v":""},null,{"$f":"IF($C$513=\"\",\"\",V513/$C$513)","v":""},null,{"$f":"IF($C$513=\"\",\"\",X513/$C$513)","v":""},null,{"$f":"IF($C$513=\"\",\"\",Z513/$C$513)","v":""},null,{"$f":"IF($C$513=\"\",\"\",AB513/$C$513)","v":""},null,{"$f":"IF($C$513=\"\",\"\",AD513/$C$513)","v":""},null,{"$f":"IF($C$513=\"\",\"\",AF513/$C$513)","v":""},null,{"$f":"IF($C$513=\"\",\"\",AH513/$C$513)","v":""},null,{"$f":"IF($C$513=\"\",\"\",AJ513/$C$513)","v":""},null,{"$f":"IF($C$513=\"\",\"\",AL513/$C$513)","v":""},null,{"$f":"IF($C$513=\"\",\"\",AN513/$C$513)","v":""},null,{"$f":"IF($C$513=\"\",\"\",AP513/$C$513)","v":""},null,{"$f":"IF($C$513=\"\",\"\",AR513/$C$513)","v":""},null,{"$f":"IF($C$513=\"\",\"\",AT513/$C$513)","v":""},null,{"$f":"IF($C$513=\"\",\"\",AV513/$C$513)","v":""},null,{"$f":"IF($C$513=\"\",\"\",AX513/$C$513)","v":""},null,{"$f":"IF($C$513=\"\",\"\",AZ513/$C$513)","v":""},null,{"$f":"IF($C$513=\"\",\"\",BB513/$C$513)","v":""},null,0]
[null,null,null,null,{"$f":"IF($C$514=\"\",\"\",F514/$C$514)","v":""},null,{"$f":"IF($C$514=\"\",\"\",H514/$C$514)","v":""},null,{"$f":"IF($C$514=\"\",\"\",J514/$C$514)","v":""},null,{"$f":"IF($C$514=\"\",\"\",L514/$C$514)","v":""},null,{"$f":"IF($C$514=\"\",\"\",N514/$C$514)","v":""},null,{"$f":"IF($C$514=\"\",\"\",P514/$C$514)","v":""},null,{"$f":"IF($C$514=\"\",\"\",R514/$C$514)","v":""},null,{"$f":"IF($C$514=\"\",\"\",T514/$C$514)","v":""},null,{"$f":"IF($C$514=\"\",\"\",V514/$C$514)","v":""},null,{"$f":"IF($C$514=\"\",\"\",X514/$C$514)","v":""},null,{"$f":"IF($C$514=\"\",\"\",Z514/$C$514)","v":""},null,{"$f":"IF($C$514=\"\",\"\",AB514/$C$514)","v":""},null,{"$f":"IF($C$514=\"\",\"\",AD514/$C$514)","v":""},null,{"$f":"IF($C$514=\"\",\"\",AF514/$C$514)","v":""},null,{"$f":"IF($C$514=\"\",\"\",AH514/$C$514)","v":""},null,{"$f":"IF($C$514=\"\",\"\",AJ514/$C$514)","v":""},null,{"$f":"IF($C$514=\"\",\"\",AL514/$C$514)","v":""},null,{"$f":"IF($C$514=\"\",\"\",AN514/$C$514)","v":""},null,{"$f":"IF($C$514=\"\",\"\",AP514/$C$514)","v":""},null,{"$f":"IF($C$514=\"\",\"\",AR514/$C$514)","v":""},null,{"$f":"IF($C$514=\"\",\"\",AT514/$C$514)","v":""},null,{"$f":"IF($C$514=\"\",\"\",AV514/$C$514)","v":""},null,{"$f":"IF($C$514=\"\",\"\",AX514/$C$514)","v":""},null,{"$f":"IF($C$514=\"\",\"\",AZ514/$C$514)","v":""},null,{"$f":"IF($C$514=\"\",\"\",BB514/$C$514)","v":""},null,0]
[null,null,null,null,{"$f":"IF($C$515=\"\",\"\",F515/$C$515)","v":""},null,{"$f":"IF($C$515=\"\",\"\",H515/$C$515)","v":""},null,{"$f":"IF($C$515=\"\",\"\",J515/$C$515)","v":""},null,{"$f":"IF($C$515=\"\",\"\",L515/$C$515)","v":""},null,{"$f":"IF($C$515=\"\",\"\",N515/$C$515)","v":""},null,{"$f":"IF($C$515=\"\",\"\",P515/$C$515)","v":""},null,{"$f":"IF($C$515=\"\",\"\",R515/$C$515)","v":""},null,{"$f":"IF($C$515=\"\",\"\",T515/$C$515)","v":""},null,{"$f":"IF($C$515=\"\",\"\",V515/$C$515)","v":""},null,{"$f":"IF($C$515=\"\",\"\",X515/$C$515)","v":""},null,{"$f":"IF($C$515=\"\",\"\",Z515/$C$515)","v":""},null,{"$f":"IF($C$515=\"\",\"\",AB515/$C$515)","v":""},null,{"$f":"IF($C$515=\"\",\"\",AD515/$C$515)","v":""},null,{"$f":"IF($C$515=\"\",\"\",AF515/$C$515)","v":""},null,{"$f":"IF($C$515=\"\",\"\",AH515/$C$515)","v":""},null,{"$f":"IF($C$515=\"\",\"\",AJ515/$C$515)","v":""},null,{"$f":"IF($C$515=\"\",\"\",AL515/$C$515)","v":""},null,{"$f":"IF($C$515=\"\",\"\",AN515/$C$515)","v":""},null,{"$f":"IF($C$515=\"\",\"\",AP515/$C$515)","v":""},null,{"$f":"IF($C$515=\"\",\"\",AR515/$C$515)","v":""},null,{"$f":"IF($C$515=\"\",\"\",AT515/$C$515)","v":""},null,{"$f":"IF($C$515=\"\",\"\",AV515/$C$515)","v":""},null,{"$f":"IF($C$515=\"\",\"\",AX515/$C$515)","v":""},null,{"$f":"IF($C$515=\"\",\"\",AZ515/$C$515)","v":""},null,{"$f":"IF($C$515=\"\",\"\",BB515/$C$515)","v":""},null,0]
[null,null,null,null,{"$f":"IF($C$516=\"\",\"\",F516/$C$516)","v":""},null,{"$f":"IF($C$516=\"\",\"\",H516/$C$516)","v":""},null,{"$f":"IF($C$516=\"\",\"\",J516/$C$516)","v":""},null,{"$f":"IF($C$516=\"\",\"\",L516/$C$516)","v":""},null,{"$f":"IF($C$516=\"\",\"\",N516/$C$516)","v":""},null,{"$f":"IF($C$516=\"\",\"\",P516/$C$516)","v":""},null,{"$f":"IF($C$516=\"\",\"\",R516/$C$516)","v":""},null,{"$f":"IF($C$516=\"\",\"\",T516/$C$516)","v":""},null,{"$f":"IF($C$516=\"\",\"\",V516/$C$516)","v":""},null,{"$f":"IF($C$516=\"\",\"\",X516/$C$516)","v":""},null,{"$f":"IF($C$516=\"\",\"\",Z516/$C$516)","v":""},null,{"$f":"IF($C$516=\"\",\"\",AB516/$C$516)","v":""},null,{"$f":"IF($C$516=\"\",\"\",AD516/$C$516)","v":""},null,{"$f":"IF($C$516=\"\",\"\",AF516/$C$516)","v":""},null,{"$f":"IF($C$516=\"\",\"\",AH516/$C$516)","v":""},null,{"$f":"IF($C$516=\"\",\"\",AJ516/$C$516)","v":""},null,{"$f":"IF($C$516=\"\",\"\",AL516/$C$516)","v":""},null,{"$f":"IF($C$516=\"\",\"\",AN516/$C$516)","v":""},null,{"$f":"IF($C$516=\"\",\"\",AP516/$C$516)","v":""},null,{"$f":"IF($C$516=\"\",\"\",AR516/$C$516)","v":""},null,{"$f":"IF($C$516=\"\",\"\",AT516/$C$516)","v":""},null,{"$f":"IF($C$516=\"\",\"\",AV516/$C$516)","v":""},null,{"$f":"IF($C$516=\"\",\"\",AX516/$C$516)","v":""},null,{"$f":"IF($C$516=\"\",\"\",AZ516/$C$516)","v":""},null,{"$f":"IF($C$516=\"\",\"\",BB516/$C$516)","v":""},null,0]
[null,null,null,null,{"$f":"IF($C$517=\"\",\"\",F517/$C$517)","v":""},null,{"$f":"IF($C$517=\"\",\"\",H517/$C$517)","v":""},null,{"$f":"IF($C$517=\"\",\"\",J517/$C$517)","v":""},null,{"$f":"IF($C$517=\"\",\"\",L517/$C$517)","v":""},null,{"$f":"IF($C$517=\"\",\"\",N517/$C$517)","v":""},null,{"$f":"IF($C$517=\"\",\"\",P517/$C$517)","v":""},null,{"$f":"IF($C$517=\"\",\"\",R517/$C$517)","v":""},null,{"$f":"IF($C$517=\"\",\"\",T517/$C$517)","v":""},null,{"$f":"IF($C$517=\"\",\"\",V517/$C$517)","v":""},null,{"$f":"IF($C$517=\"\",\"\",X517/$C$517)","v":""},null,{"$f":"IF($C$517=\"\",\"\",Z517/$C$517)","v":""},null,{"$f":"IF($C$517=\"\",\"\",AB517/$C$517)","v":""},null,{"$f":"IF($C$517=\"\",\"\",AD517/$C$517)","v":""},null,{"$f":"IF($C$517=\"\",\"\",AF517/$C$517)","v":""},null,{"$f":"IF($C$517=\"\",\"\",AH517/$C$517)","v":""},null,{"$f":"IF($C$517=\"\",\"\",AJ517/$C$517)","v":""},null,{"$f":"IF($C$517=\"\",\"\",AL517/$C$517)","v":""},null,{"$f":"IF($C$517=\"\",\"\",AN517/$C$517)","v":""},null,{"$f":"IF($C$517=\"\",\"\",AP517/$C$517)","v":""},null,{"$f":"IF($C$517=\"\",\"\",AR517/$C$517)","v":""},null,{"$f":"IF($C$517=\"\",\"\",AT517/$C$517)","v":""},null,{"$f":"IF($C$517=\"\",\"\",AV517/$C$517)","v":""},null,{"$f":"IF($C$517=\"\",\"\",AX517/$C$517)","v":""},null,{"$f":"IF($C$517=\"\",\"\",AZ517/$C$517)","v":""},null,{"$f":"IF($C$517=\"\",\"\",BB517/$C$517)","v":""},null,0]
[null,null,null,null,{"$f":"IF($C$518=\"\",\"\",F518/$C$518)","v":""},null,{"$f":"IF($C$518=\"\",\"\",H518/$C$518)","v":""},null,{"$f":"IF($C$518=\"\",\"\",J518/$C$518)","v":""},null,{"$f":"IF($C$518=\"\",\"\",L518/$C$518)","v":""},null,{"$f":"IF($C$518=\"\",\"\",N518/$C$518)","v":""},null,{"$f":"IF($C$518=\"\",\"\",P518/$C$518)","v":""},null,{"$f":"IF($C$518=\"\",\"\",R518/$C$518)","v":""},null,{"$f":"IF($C$518=\"\",\"\",T518/$C$518)","v":""},null,{"$f":"IF($C$518=\"\",\"\",V518/$C$518)","v":""},null,{"$f":"IF($C$518=\"\",\"\",X518/$C$518)","v":""},null,{"$f":"IF($C$518=\"\",\"\",Z518/$C$518)","v":""},null,{"$f":"IF($C$518=\"\",\"\",AB518/$C$518)","v":""},null,{"$f":"IF($C$518=\"\",\"\",AD518/$C$518)","v":""},null,{"$f":"IF($C$518=\"\",\"\",AF518/$C$518)","v":""},null,{"$f":"IF($C$518=\"\",\"\",AH518/$C$518)","v":""},null,{"$f":"IF($C$518=\"\",\"\",AJ518/$C$518)","v":""},null,{"$f":"IF($C$518=\"\",\"\",AL518/$C$518)","v":""},null,{"$f":"IF($C$518=\"\",\"\",AN518/$C$518)","v":""},null,{"$f":"IF($C$518=\"\",\"\",AP518/$C$518)","v":""},null,{"$f":"IF($C$518=\"\",\"\",AR518/$C$518)","v":""},null,{"$f":"IF($C$518=\"\",\"\",AT518/$C$518)","v":""},null,{"$f":"IF($C$518=\"\",\"\",AV518/$C$518)","v":""},null,{"$f":"IF($C$518=\"\",\"\",AX518/$C$518)","v":""},null,{"$f":"IF($C$518=\"\",\"\",AZ518/$C$518)","v":""},null,{"$f":"IF($C$518=\"\",\"\",BB518/$C$518)","v":""},null,0]
[null,null,null,null,{"$f":"IF($C$519=\"\",\"\",F519/$C$519)","v":""},null,{"$f":"IF($C$519=\"\",\"\",H519/$C$519)","v":""},null,{"$f":"IF($C$519=\"\",\"\",J519/$C$519)","v":""},null,{"$f":"IF($C$519=\"\",\"\",L519/$C$519)","v":""},null,{"$f":"IF($C$519=\"\",\"\",N519/$C$519)","v":""},null,{"$f":"IF($C$519=\"\",\"\",P519/$C$519)","v":""},null,{"$f":"IF($C$519=\"\",\"\",R519/$C$519)","v":""},null,{"$f":"IF($C$519=\"\",\"\",T519/$C$519)","v":""},null,{"$f":"IF($C$519=\"\",\"\",V519/$C$519)","v":""},null,{"$f":"IF($C$519=\"\",\"\",X519/$C$519)","v":""},null,{"$f":"IF($C$519=\"\",\"\",Z519/$C$519)","v":""},null,{"$f":"IF($C$519=\"\",\"\",AB519/$C$519)","v":""},null,{"$f":"IF($C$519=\"\",\"\",AD519/$C$519)","v":""},null,{"$f":"IF($C$519=\"\",\"\",AF519/$C$519)","v":""},null,{"$f":"IF($C$519=\"\",\"\",AH519/$C$519)","v":""},null,{"$f":"IF($C$519=\"\",\"\",AJ519/$C$519)","v":""},null,{"$f":"IF($C$519=\"\",\"\",AL519/$C$519)","v":""},null,{"$f":"IF($C$519=\"\",\"\",AN519/$C$519)","v":""},null,{"$f":"IF($C$519=\"\",\"\",AP519/$C$519)","v":""},null,{"$f":"IF($C$519=\"\",\"\",AR519/$C$519)","v":""},null,{"$f":"IF($C$519=\"\",\"\",AT519/$C$519)","v":""},null,{"$f":"IF($C$519=\"\",\"\",AV519/$C$519)","v":""},null,{"$f":"IF($C$519=\"\",\"\",AX519/$C$519)","v":""},null,{"$f":"IF($C$519=\"\",\"\",AZ519/$C$519)","v":""},null,{"$f":"IF($C$519=\"\",\"\",BB519/$C$519)","v":""},null,0]
[null,null,null,null,{"$f":"IF($C$520=\"\",\"\",F520/$C$520)","v":""},null,{"$f":"IF($C$520=\"\",\"\",H520/$C$520)","v":""},null,{"$f":"IF($C$520=\"\",\"\",J520/$C$520)","v":""},null,{"$f":"IF($C$520=\"\",\"\",L520/$C$520)","v":""},null,{"$f":"IF($C$520=\"\",\"\",N520/$C$520)","v":""},null,{"$f":"IF($C$520=\"\",\"\",P520/$C$520)","v":""},null,{"$f":"IF($C$520=\"\",\"\",R520/$C$520)","v":""},null,{"$f":"IF($C$520=\"\",\"\",T520/$C$520)","v":""},null,{"$f":"IF($C$520=\"\",\"\",V520/$C$520)","v":""},null,{"$f":"IF($C$520=\"\",\"\",X520/$C$520)","v":""},null,{"$f":"IF($C$520=\"\",\"\",Z520/$C$520)","v":""},null,{"$f":"IF($C$520=\"\",\"\",AB520/$C$520)","v":""},null,{"$f":"IF($C$520=\"\",\"\",AD520/$C$520)","v":""},null,{"$f":"IF($C$520=\"\",\"\",AF520/$C$520)","v":""},null,{"$f":"IF($C$520=\"\",\"\",AH520/$C$520)","v":""},null,{"$f":"IF($C$520=\"\",\"\",AJ520/$C$520)","v":""},null,{"$f":"IF($C$520=\"\",\"\",AL520/$C$520)","v":""},null,{"$f":"IF($C$520=\"\",\"\",AN520/$C$520)","v":""},null,{"$f":"IF($C$520=\"\",\"\",AP520/$C$520)","v":""},null,{"$f":"IF($C$520=\"\",\"\",AR520/$C$520)","v":""},null,{"$f":"IF($C$520=\"\",\"\",AT520/$C$520)","v":""},null,{"$f":"IF($C$520=\"\",\"\",AV520/$C$520)","v":""},null,{"$f":"IF($C$520=\"\",\"\",AX520/$C$520)","v":""},null,{"$f":"IF($C$520=\"\",\"\",AZ520/$C$520)","v":""},null,{"$f":"IF($C$520=\"\",\"\",BB520/$C$520)","v":""},null,0]
[null,null,null,null,{"$f":"IF($C$521=\"\",\"\",F521/$C$521)","v":""},null,{"$f":"IF($C$521=\"\",\"\",H521/$C$521)","v":""},null,{"$f":"IF($C$521=\"\",\"\",J521/$C$521)","v":""},null,{"$f":"IF($C$521=\"\",\"\",L521/$C$521)","v":""},null,{"$f":"IF($C$521=\"\",\"\",N521/$C$521)","v":""},null,{"$f":"IF($C$521=\"\",\"\",P521/$C$521)","v":""},null,{"$f":"IF($C$521=\"\",\"\",R521/$C$521)","v":""},null,{"$f":"IF($C$521=\"\",\"\",T521/$C$521)","v":""},null,{"$f":"IF($C$521=\"\",\"\",V521/$C$521)","v":""},null,{"$f":"IF($C$521=\"\",\"\",X521/$C$521)","v":""},null,{"$f":"IF($C$521=\"\",\"\",Z521/$C$521)","v":""},null,{"$f":"IF($C$521=\"\",\"\",AB521/$C$521)","v":""},null,{"$f":"IF($C$521=\"\",\"\",AD521/$C$521)","v":""},null,{"$f":"IF($C$521=\"\",\"\",AF521/$C$521)","v":""},null,{"$f":"IF($C$521=\"\",\"\",AH521/$C$521)","v":""},null,{"$f":"IF($C$521=\"\",\"\",AJ521/$C$521)","v":""},null,{"$f":"IF($C$521=\"\",\"\",AL521/$C$521)","v":""},null,{"$f":"IF($C$521=\"\",\"\",AN521/$C$521)","v":""},null,{"$f":"IF($C$521=\"\",\"\",AP521/$C$521)","v":""},null,{"$f":"IF($C$521=\"\",\"\",AR521/$C$521)","v":""},null,{"$f":"IF($C$521=\"\",\"\",AT521/$C$521)","v":""},null,{"$f":"IF($C$521=\"\",\"\",AV521/$C$521)","v":""},null,{"$f":"IF($C$521=\"\",\"\",AX521/$C$521)","v":""},null,{"$f":"IF($C$521=\"\",\"\",AZ521/$C$521)","v":""},null,{"$f":"IF($C$521=\"\",\"\",BB521/$C$521)","v":""},null,0]
[null,null,null,null,{"$f":"IF($C$522=\"\",\"\",F522/$C$522)","v":""},null,{"$f":"IF($C$522=\"\",\"\",H522/$C$522)","v":""},null,{"$f":"IF($C$522=\"\",\"\",J522/$C$522)","v":""},null,{"$f":"IF($C$522=\"\",\"\",L522/$C$522)","v":""},null,{"$f":"IF($C$522=\"\",\"\",N522/$C$522)","v":""},null,{"$f":"IF($C$522=\"\",\"\",P522/$C$522)","v":""},null,{"$f":"IF($C$522=\"\",\"\",R522/$C$522)","v":""},null,{"$f":"IF($C$522=\"\",\"\",T522/$C$522)","v":""},null,{"$f":"IF($C$522=\"\",\"\",V522/$C$522)","v":""},null,{"$f":"IF($C$522=\"\",\"\",X522/$C$522)","v":""},null,{"$f":"IF($C$522=\"\",\"\",Z522/$C$522)","v":""},null,{"$f":"IF($C$522=\"\",\"\",AB522/$C$522)","v":""},null,{"$f":"IF($C$522=\"\",\"\",AD522/$C$522)","v":""},null,{"$f":"IF($C$522=\"\",\"\",AF522/$C$522)","v":""},null,{"$f":"IF($C$522=\"\",\"\",AH522/$C$522)","v":""},null,{"$f":"IF($C$522=\"\",\"\",AJ522/$C$522)","v":""},null,{"$f":"IF($C$522=\"\",\"\",AL522/$C$522)","v":""},null,{"$f":"IF($C$522=\"\",\"\",AN522/$C$522)","v":""},null,{"$f":"IF($C$522=\"\",\"\",AP522/$C$522)","v":""},null,{"$f":"IF($C$522=\"\",\"\",AR522/$C$522)","v":""},null,{"$f":"IF($C$522=\"\",\"\",AT522/$C$522)","v":""},null,{"$f":"IF($C$522=\"\",\"\",AV522/$C$522)","v":""},null,{"$f":"IF($C$522=\"\",\"\",AX522/$C$522)","v":""},null,{"$f":"IF($C$522=\"\",\"\",AZ522/$C$522)","v":""},null,{"$f":"IF($C$522=\"\",\"\",BB522/$C$522)","v":""},null,0]
[null,null,null,null,{"$f":"IF($C$523=\"\",\"\",F523/$C$523)","v":""},null,{"$f":"IF($C$523=\"\",\"\",H523/$C$523)","v":""},null,{"$f":"IF($C$523=\"\",\"\",J523/$C$523)","v":""},null,{"$f":"IF($C$523=\"\",\"\",L523/$C$523)","v":""},null,{"$f":"IF($C$523=\"\",\"\",N523/$C$523)","v":""},null,{"$f":"IF($C$523=\"\",\"\",P523/$C$523)","v":""},null,{"$f":"IF($C$523=\"\",\"\",R523/$C$523)","v":""},null,{"$f":"IF($C$523=\"\",\"\",T523/$C$523)","v":""},null,{"$f":"IF($C$523=\"\",\"\",V523/$C$523)","v":""},null,{"$f":"IF($C$523=\"\",\"\",X523/$C$523)","v":""},null,{"$f":"IF($C$523=\"\",\"\",Z523/$C$523)","v":""},null,{"$f":"IF($C$523=\"\",\"\",AB523/$C$523)","v":""},null,{"$f":"IF($C$523=\"\",\"\",AD523/$C$523)","v":""},null,{"$f":"IF($C$523=\"\",\"\",AF523/$C$523)","v":""},null,{"$f":"IF($C$523=\"\",\"\",AH523/$C$523)","v":""},null,{"$f":"IF($C$523=\"\",\"\",AJ523/$C$523)","v":""},null,{"$f":"IF($C$523=\"\",\"\",AL523/$C$523)","v":""},null,{"$f":"IF($C$523=\"\",\"\",AN523/$C$523)","v":""},null,{"$f":"IF($C$523=\"\",\"\",AP523/$C$523)","v":""},null,{"$f":"IF($C$523=\"\",\"\",AR523/$C$523)","v":""},null,{"$f":"IF($C$523=\"\",\"\",AT523/$C$523)","v":""},null,{"$f":"IF($C$523=\"\",\"\",AV523/$C$523)","v":""},null,{"$f":"IF($C$523=\"\",\"\",AX523/$C$523)","v":""},null,{"$f":"IF($C$523=\"\",\"\",AZ523/$C$523)","v":""},null,{"$f":"IF($C$523=\"\",\"\",BB523/$C$523)","v":""},null,0]
[null,null,null,null,{"$f":"IF($C$524=\"\",\"\",F524/$C$524)","v":""},null,{"$f":"IF($C$524=\"\",\"\",H524/$C$524)","v":""},null,{"$f":"IF($C$524=\"\",\"\",J524/$C$524)","v":""},null,{"$f":"IF($C$524=\"\",\"\",L524/$C$524)","v":""},null,{"$f":"IF($C$524=\"\",\"\",N524/$C$524)","v":""},null,{"$f":"IF($C$524=\"\",\"\",P524/$C$524)","v":""},null,{"$f":"IF($C$524=\"\",\"\",R524/$C$524)","v":""},null,{"$f":"IF($C$524=\"\",\"\",T524/$C$524)","v":""},null,{"$f":"IF($C$524=\"\",\"\",V524/$C$524)","v":""},null,{"$f":"IF($C$524=\"\",\"\",X524/$C$524)","v":""},null,{"$f":"IF($C$524=\"\",\"\",Z524/$C$524)","v":""},null,{"$f":"IF($C$524=\"\",\"\",AB524/$C$524)","v":""},null,{"$f":"IF($C$524=\"\",\"\",AD524/$C$524)","v":""},null,{"$f":"IF($C$524=\"\",\"\",AF524/$C$524)","v":""},null,{"$f":"IF($C$524=\"\",\"\",AH524/$C$524)","v":""},null,{"$f":"IF($C$524=\"\",\"\",AJ524/$C$524)","v":""},null,{"$f":"IF($C$524=\"\",\"\",AL524/$C$524)","v":""},null,{"$f":"IF($C$524=\"\",\"\",AN524/$C$524)","v":""},null,{"$f":"IF($C$524=\"\",\"\",AP524/$C$524)","v":""},null,{"$f":"IF($C$524=\"\",\"\",AR524/$C$524)","v":""},null,{"$f":"IF($C$524=\"\",\"\",AT524/$C$524)","v":""},null,{"$f":"IF($C$524=\"\",\"\",AV524/$C$524)","v":""},null,{"$f":"IF($C$524=\"\",\"\",AX524/$C$524)","v":""},null,{"$f":"IF($C$524=\"\",\"\",AZ524/$C$524)","v":""},null,{"$f":"IF($C$524=\"\",\"\",BB524/$C$524)","v":""},null,0]
[null,null,null,null,{"$f":"IF($C$525=\"\",\"\",F525/$C$525)","v":""},null,{"$f":"IF($C$525=\"\",\"\",H525/$C$525)","v":""},null,{"$f":"IF($C$525=\"\",\"\",J525/$C$525)","v":""},null,{"$f":"IF($C$525=\"\",\"\",L525/$C$525)","v":""},null,{"$f":"IF($C$525=\"\",\"\",N525/$C$525)","v":""},null,{"$f":"IF($C$525=\"\",\"\",P525/$C$525)","v":""},null,{"$f":"IF($C$525=\"\",\"\",R525/$C$525)","v":""},null,{"$f":"IF($C$525=\"\",\"\",T525/$C$525)","v":""},null,{"$f":"IF($C$525=\"\",\"\",V525/$C$525)","v":""},null,{"$f":"IF($C$525=\"\",\"\",X525/$C$525)","v":""},null,{"$f":"IF($C$525=\"\",\"\",Z525/$C$525)","v":""},null,{"$f":"IF($C$525=\"\",\"\",AB525/$C$525)","v":""},null,{"$f":"IF($C$525=\"\",\"\",AD525/$C$525)","v":""},null,{"$f":"IF($C$525=\"\",\"\",AF525/$C$525)","v":""},null,{"$f":"IF($C$525=\"\",\"\",AH525/$C$525)","v":""},null,{"$f":"IF($C$525=\"\",\"\",AJ525/$C$525)","v":""},null,{"$f":"IF($C$525=\"\",\"\",AL525/$C$525)","v":""},null,{"$f":"IF($C$525=\"\",\"\",AN525/$C$525)","v":""},null,{"$f":"IF($C$525=\"\",\"\",AP525/$C$525)","v":""},null,{"$f":"IF($C$525=\"\",\"\",AR525/$C$525)","v":""},null,{"$f":"IF($C$525=\"\",\"\",AT525/$C$525)","v":""},null,{"$f":"IF($C$525=\"\",\"\",AV525/$C$525)","v":""},null,{"$f":"IF($C$525=\"\",\"\",AX525/$C$525)","v":""},null,{"$f":"IF($C$525=\"\",\"\",AZ525/$C$525)","v":""},null,{"$f":"IF($C$525=\"\",\"\",BB525/$C$525)","v":""},null,0]
[null,null,null,null,{"$f":"IF($C$526=\"\",\"\",F526/$C$526)","v":""},null,{"$f":"IF($C$526=\"\",\"\",H526/$C$526)","v":""},null,{"$f":"IF($C$526=\"\",\"\",J526/$C$526)","v":""},null,{"$f":"IF($C$526=\"\",\"\",L526/$C$526)","v":""},null,{"$f":"IF($C$526=\"\",\"\",N526/$C$526)","v":""},null,{"$f":"IF($C$526=\"\",\"\",P526/$C$526)","v":""},null,{"$f":"IF($C$526=\"\",\"\",R526/$C$526)","v":""},null,{"$f":"IF($C$526=\"\",\"\",T526/$C$526)","v":""},null,{"$f":"IF($C$526=\"\",\"\",V526/$C$526)","v":""},null,{"$f":"IF($C$526=\"\",\"\",X526/$C$526)","v":""},null,{"$f":"IF($C$526=\"\",\"\",Z526/$C$526)","v":""},null,{"$f":"IF($C$526=\"\",\"\",AB526/$C$526)","v":""},null,{"$f":"IF($C$526=\"\",\"\",AD526/$C$526)","v":""},null,{"$f":"IF($C$526=\"\",\"\",AF526/$C$526)","v":""},null,{"$f":"IF($C$526=\"\",\"\",AH526/$C$526)","v":""},null,{"$f":"IF($C$526=\"\",\"\",AJ526/$C$526)","v":""},null,{"$f":"IF($C$526=\"\",\"\",AL526/$C$526)","v":""},null,{"$f":"IF($C$526=\"\",\"\",AN526/$C$526)","v":""},null,{"$f":"IF($C$526=\"\",\"\",AP526/$C$526)","v":""},null,{"$f":"IF($C$526=\"\",\"\",AR526/$C$526)","v":""},null,{"$f":"IF($C$526=\"\",\"\",AT526/$C$526)","v":""},null,{"$f":"IF($C$526=\"\",\"\",AV526/$C$526)","v":""},null,{"$f":"IF($C$526=\"\",\"\",AX526/$C$526)","v":""},null,{"$f":"IF($C$526=\"\",\"\",AZ526/$C$526)","v":""},null,{"$f":"IF($C$526=\"\",\"\",BB526/$C$526)","v":""},null,0]
[null,null,null,null,{"$f":"IF($C$527=\"\",\"\",F527/$C$527)","v":""},null,{"$f":"IF($C$527=\"\",\"\",H527/$C$527)","v":""},null,{"$f":"IF($C$527=\"\",\"\",J527/$C$527)","v":""},null,{"$f":"IF($C$527=\"\",\"\",L527/$C$527)","v":""},null,{"$f":"IF($C$527=\"\",\"\",N527/$C$527)","v":""},null,{"$f":"IF($C$527=\"\",\"\",P527/$C$527)","v":""},null,{"$f":"IF($C$527=\"\",\"\",R527/$C$527)","v":""},null,{"$f":"IF($C$527=\"\",\"\",T527/$C$527)","v":""},null,{"$f":"IF($C$527=\"\",\"\",V527/$C$527)","v":""},null,{"$f":"IF($C$527=\"\",\"\",X527/$C$527)","v":""},null,{"$f":"IF($C$527=\"\",\"\",Z527/$C$527)","v":""},null,{"$f":"IF($C$527=\"\",\"\",AB527/$C$527)","v":""},null,{"$f":"IF($C$527=\"\",\"\",AD527/$C$527)","v":""},null,{"$f":"IF($C$527=\"\",\"\",AF527/$C$527)","v":""},null,{"$f":"IF($C$527=\"\",\"\",AH527/$C$527)","v":""},null,{"$f":"IF($C$527=\"\",\"\",AJ527/$C$527)","v":""},null,{"$f":"IF($C$527=\"\",\"\",AL527/$C$527)","v":""},null,{"$f":"IF($C$527=\"\",\"\",AN527/$C$527)","v":""},null,{"$f":"IF($C$527=\"\",\"\",AP527/$C$527)","v":""},null,{"$f":"IF($C$527=\"\",\"\",AR527/$C$527)","v":""},null,{"$f":"IF($C$527=\"\",\"\",AT527/$C$527)","v":""},null,{"$f":"IF($C$527=\"\",\"\",AV527/$C$527)","v":""},null,{"$f":"IF($C$527=\"\",\"\",AX527/$C$527)","v":""},null,{"$f":"IF($C$527=\"\",\"\",AZ527/$C$527)","v":""},null,{"$f":"IF($C$527=\"\",\"\",BB527/$C$527)","v":""},null,0]
[null,null,null,null,{"$f":"IF($C$528=\"\",\"\",F528/$C$528)","v":""},null,{"$f":"IF($C$528=\"\",\"\",H528/$C$528)","v":""},null,{"$f":"IF($C$528=\"\",\"\",J528/$C$528)","v":""},null,{"$f":"IF($C$528=\"\",\"\",L528/$C$528)","v":""},null,{"$f":"IF($C$528=\"\",\"\",N528/$C$528)","v":""},null,{"$f":"IF($C$528=\"\",\"\",P528/$C$528)","v":""},null,{"$f":"IF($C$528=\"\",\"\",R528/$C$528)","v":""},null,{"$f":"IF($C$528=\"\",\"\",T528/$C$528)","v":""},null,{"$f":"IF($C$528=\"\",\"\",V528/$C$528)","v":""},null,{"$f":"IF($C$528=\"\",\"\",X528/$C$528)","v":""},null,{"$f":"IF($C$528=\"\",\"\",Z528/$C$528)","v":""},null,{"$f":"IF($C$528=\"\",\"\",AB528/$C$528)","v":""},null,{"$f":"IF($C$528=\"\",\"\",AD528/$C$528)","v":""},null,{"$f":"IF($C$528=\"\",\"\",AF528/$C$528)","v":""},null,{"$f":"IF($C$528=\"\",\"\",AH528/$C$528)","v":""},null,{"$f":"IF($C$528=\"\",\"\",AJ528/$C$528)","v":""},null,{"$f":"IF($C$528=\"\",\"\",AL528/$C$528)","v":""},null,{"$f":"IF($C$528=\"\",\"\",AN528/$C$528)","v":""},null,{"$f":"IF($C$528=\"\",\"\",AP528/$C$528)","v":""},null,{"$f":"IF($C$528=\"\",\"\",AR528/$C$528)","v":""},null,{"$f":"IF($C$528=\"\",\"\",AT528/$C$528)","v":""},null,{"$f":"IF($C$528=\"\",\"\",AV528/$C$528)","v":""},null,{"$f":"IF($C$528=\"\",\"\",AX528/$C$528)","v":""},null,{"$f":"IF($C$528=\"\",\"\",AZ528/$C$528)","v":""},null,{"$f":"IF($C$528=\"\",\"\",BB528/$C$528)","v":""},null,0]
[null,null,null,null,{"$f":"IF($C$529=\"\",\"\",F529/$C$529)","v":""},null,{"$f":"IF($C$529=\"\",\"\",H529/$C$529)","v":""},null,{"$f":"IF($C$529=\"\",\"\",J529/$C$529)","v":""},null,{"$f":"IF($C$529=\"\",\"\",L529/$C$529)","v":""},null,{"$f":"IF($C$529=\"\",\"\",N529/$C$529)","v":""},null,{"$f":"IF($C$529=\"\",\"\",P529/$C$529)","v":""},null,{"$f":"IF($C$529=\"\",\"\",R529/$C$529)","v":""},null,{"$f":"IF($C$529=\"\",\"\",T529/$C$529)","v":""},null,{"$f":"IF($C$529=\"\",\"\",V529/$C$529)","v":""},null,{"$f":"IF($C$529=\"\",\"\",X529/$C$529)","v":""},null,{"$f":"IF($C$529=\"\",\"\",Z529/$C$529)","v":""},null,{"$f":"IF($C$529=\"\",\"\",AB529/$C$529)","v":""},null,{"$f":"IF($C$529=\"\",\"\",AD529/$C$529)","v":""},null,{"$f":"IF($C$529=\"\",\"\",AF529/$C$529)","v":""},null,{"$f":"IF($C$529=\"\",\"\",AH529/$C$529)","v":""},null,{"$f":"IF($C$529=\"\",\"\",AJ529/$C$529)","v":""},null,{"$f":"IF($C$529=\"\",\"\",AL529/$C$529)","v":""},null,{"$f":"IF($C$529=\"\",\"\",AN529/$C$529)","v":""},null,{"$f":"IF($C$529=\"\",\"\",AP529/$C$529)","v":""},null,{"$f":"IF($C$529=\"\",\"\",AR529/$C$529)","v":""},null,{"$f":"IF($C$529=\"\",\"\",AT529/$C$529)","v":""},null,{"$f":"IF($C$529=\"\",\"\",AV529/$C$529)","v":""},null,{"$f":"IF($C$529=\"\",\"\",AX529/$C$529)","v":""},null,{"$f":"IF($C$529=\"\",\"\",AZ529/$C$529)","v":""},null,{"$f":"IF($C$529=\"\",\"\",BB529/$C$529)","v":""},null,0]
[null,null,null,null,{"$f":"IF($C$530=\"\",\"\",F530/$C$530)","v":""},null,{"$f":"IF($C$530=\"\",\"\",H530/$C$530)","v":""},null,{"$f":"IF($C$530=\"\",\"\",J530/$C$530)","v":""},null,{"$f":"IF($C$530=\"\",\"\",L530/$C$530)","v":""},null,{"$f":"IF($C$530=\"\",\"\",N530/$C$530)","v":""},null,{"$f":"IF($C$530=\"\",\"\",P530/$C$530)","v":""},null,{"$f":"IF($C$530=\"\",\"\",R530/$C$530)","v":""},null,{"$f":"IF($C$530=\"\",\"\",T530/$C$530)","v":""},null,{"$f":"IF($C$530=\"\",\"\",V530/$C$530)","v":""},null,{"$f":"IF($C$530=\"\",\"\",X530/$C$530)","v":""},null,{"$f":"IF($C$530=\"\",\"\",Z530/$C$530)","v":""},null,{"$f":"IF($C$530=\"\",\"\",AB530/$C$530)","v":""},null,{"$f":"IF($C$530=\"\",\"\",AD530/$C$530)","v":""},null,{"$f":"IF($C$530=\"\",\"\",AF530/$C$530)","v":""},null,{"$f":"IF($C$530=\"\",\"\",AH530/$C$530)","v":""},null,{"$f":"IF($C$530=\"\",\"\",AJ530/$C$530)","v":""},null,{"$f":"IF($C$530=\"\",\"\",AL530/$C$530)","v":""},null,{"$f":"IF($C$530=\"\",\"\",AN530/$C$530)","v":""},null,{"$f":"IF($C$530=\"\",\"\",AP530/$C$530)","v":""},null,{"$f":"IF($C$530=\"\",\"\",AR530/$C$530)","v":""},null,{"$f":"IF($C$530=\"\",\"\",AT530/$C$530)","v":""},null,{"$f":"IF($C$530=\"\",\"\",AV530/$C$530)","v":""},null,{"$f":"IF($C$530=\"\",\"\",AX530/$C$530)","v":""},null,{"$f":"IF($C$530=\"\",\"\",AZ530/$C$530)","v":""},null,{"$f":"IF($C$530=\"\",\"\",BB530/$C$530)","v":""},null,0]
[null,null,null,null,{"$f":"IF($C$531=\"\",\"\",F531/$C$531)","v":""},null,{"$f":"IF($C$531=\"\",\"\",H531/$C$531)","v":""},null,{"$f":"IF($C$531=\"\",\"\",J531/$C$531)","v":""},null,{"$f":"IF($C$531=\"\",\"\",L531/$C$531)","v":""},null,{"$f":"IF($C$531=\"\",\"\",N531/$C$531)","v":""},null,{"$f":"IF($C$531=\"\",\"\",P531/$C$531)","v":""},null,{"$f":"IF($C$531=\"\",\"\",R531/$C$531)","v":""},null,{"$f":"IF($C$531=\"\",\"\",T531/$C$531)","v":""},null,{"$f":"IF($C$531=\"\",\"\",V531/$C$531)","v":""},null,{"$f":"IF($C$531=\"\",\"\",X531/$C$531)","v":""},null,{"$f":"IF($C$531=\"\",\"\",Z531/$C$531)","v":""},null,{"$f":"IF($C$531=\"\",\"\",AB531/$C$531)","v":""},null,{"$f":"IF($C$531=\"\",\"\",AD531/$C$531)","v":""},null,{"$f":"IF($C$531=\"\",\"\",AF531/$C$531)","v":""},null,{"$f":"IF($C$531=\"\",\"\",AH531/$C$531)","v":""},null,{"$f":"IF($C$531=\"\",\"\",AJ531/$C$531)","v":""},null,{"$f":"IF($C$531=\"\",\"\",AL531/$C$531)","v":""},null,{"$f":"IF($C$531=\"\",\"\",AN531/$C$531)","v":""},null,{"$f":"IF($C$531=\"\",\"\",AP531/$C$531)","v":""},null,{"$f":"IF($C$531=\"\",\"\",AR531/$C$531)","v":""},null,{"$f":"IF($C$531=\"\",\"\",AT531/$C$531)","v":""},null,{"$f":"IF($C$531=\"\",\"\",AV531/$C$531)","v":""},null,{"$f":"IF($C$531=\"\",\"\",AX531/$C$531)","v":""},null,{"$f":"IF($C$531=\"\",\"\",AZ531/$C$531)","v":""},null,{"$f":"IF($C$531=\"\",\"\",BB531/$C$531)","v":""},null,0]
[null,null,null,null,{"$f":"IF($C$532=\"\",\"\",F532/$C$532)","v":""},null,{"$f":"IF($C$532=\"\",\"\",H532/$C$532)","v":""},null,{"$f":"IF($C$532=\"\",\"\",J532/$C$532)","v":""},null,{"$f":"IF($C$532=\"\",\"\",L532/$C$532)","v":""},null,{"$f":"IF($C$532=\"\",\"\",N532/$C$532)","v":""},null,{"$f":"IF($C$532=\"\",\"\",P532/$C$532)","v":""},null,{"$f":"IF($C$532=\"\",\"\",R532/$C$532)","v":""},null,{"$f":"IF($C$532=\"\",\"\",T532/$C$532)","v":""},null,{"$f":"IF($C$532=\"\",\"\",V532/$C$532)","v":""},null,{"$f":"IF($C$532=\"\",\"\",X532/$C$532)","v":""},null,{"$f":"IF($C$532=\"\",\"\",Z532/$C$532)","v":""},null,{"$f":"IF($C$532=\"\",\"\",AB532/$C$532)","v":""},null,{"$f":"IF($C$532=\"\",\"\",AD532/$C$532)","v":""},null,{"$f":"IF($C$532=\"\",\"\",AF532/$C$532)","v":""},null,{"$f":"IF($C$532=\"\",\"\",AH532/$C$532)","v":""},null,{"$f":"IF($C$532=\"\",\"\",AJ532/$C$532)","v":""},null,{"$f":"IF($C$532=\"\",\"\",AL532/$C$532)","v":""},null,{"$f":"IF($C$532=\"\",\"\",AN532/$C$532)","v":""},null,{"$f":"IF($C$532=\"\",\"\",AP532/$C$532)","v":""},null,{"$f":"IF($C$532=\"\",\"\",AR532/$C$532)","v":""},null,{"$f":"IF($C$532=\"\",\"\",AT532/$C$532)","v":""},null,{"$f":"IF($C$532=\"\",\"\",AV532/$C$532)","v":""},null,{"$f":"IF($C$532=\"\",\"\",AX532/$C$532)","v":""},null,{"$f":"IF($C$532=\"\",\"\",AZ532/$C$532)","v":""},null,{"$f":"IF($C$532=\"\",\"\",BB532/$C$532)","v":""},null,0]
[null,null,null,null,{"$f":"IF($C$533=\"\",\"\",F533/$C$533)","v":""},null,{"$f":"IF($C$533=\"\",\"\",H533/$C$533)","v":""},null,{"$f":"IF($C$533=\"\",\"\",J533/$C$533)","v":""},null,{"$f":"IF($C$533=\"\",\"\",L533/$C$533)","v":""},null,{"$f":"IF($C$533=\"\",\"\",N533/$C$533)","v":""},null,{"$f":"IF($C$533=\"\",\"\",P533/$C$533)","v":""},null,{"$f":"IF($C$533=\"\",\"\",R533/$C$533)","v":""},null,{"$f":"IF($C$533=\"\",\"\",T533/$C$533)","v":""},null,{"$f":"IF($C$533=\"\",\"\",V533/$C$533)","v":""},null,{"$f":"IF($C$533=\"\",\"\",X533/$C$533)","v":""},null,{"$f":"IF($C$533=\"\",\"\",Z533/$C$533)","v":""},null,{"$f":"IF($C$533=\"\",\"\",AB533/$C$533)","v":""},null,{"$f":"IF($C$533=\"\",\"\",AD533/$C$533)","v":""},null,{"$f":"IF($C$533=\"\",\"\",AF533/$C$533)","v":""},null,{"$f":"IF($C$533=\"\",\"\",AH533/$C$533)","v":""},null,{"$f":"IF($C$533=\"\",\"\",AJ533/$C$533)","v":""},null,{"$f":"IF($C$533=\"\",\"\",AL533/$C$533)","v":""},null,{"$f":"IF($C$533=\"\",\"\",AN533/$C$533)","v":""},null,{"$f":"IF($C$533=\"\",\"\",AP533/$C$533)","v":""},null,{"$f":"IF($C$533=\"\",\"\",AR533/$C$533)","v":""},null,{"$f":"IF($C$533=\"\",\"\",AT533/$C$533)","v":""},null,{"$f":"IF($C$533=\"\",\"\",AV533/$C$533)","v":""},null,{"$f":"IF($C$533=\"\",\"\",AX533/$C$533)","v":""},null,{"$f":"IF($C$533=\"\",\"\",AZ533/$C$533)","v":""},null,{"$f":"IF($C$533=\"\",\"\",BB533/$C$533)","v":""},null,0]
[null,null,null,null,{"$f":"IF($C$534=\"\",\"\",F534/$C$534)","v":""},null,{"$f":"IF($C$534=\"\",\"\",H534/$C$534)","v":""},null,{"$f":"IF($C$534=\"\",\"\",J534/$C$534)","v":""},null,{"$f":"IF($C$534=\"\",\"\",L534/$C$534)","v":""},null,{"$f":"IF($C$534=\"\",\"\",N534/$C$534)","v":""},null,{"$f":"IF($C$534=\"\",\"\",P534/$C$534)","v":""},null,{"$f":"IF($C$534=\"\",\"\",R534/$C$534)","v":""},null,{"$f":"IF($C$534=\"\",\"\",T534/$C$534)","v":""},null,{"$f":"IF($C$534=\"\",\"\",V534/$C$534)","v":""},null,{"$f":"IF($C$534=\"\",\"\",X534/$C$534)","v":""},null,{"$f":"IF($C$534=\"\",\"\",Z534/$C$534)","v":""},null,{"$f":"IF($C$534=\"\",\"\",AB534/$C$534)","v":""},null,{"$f":"IF($C$534=\"\",\"\",AD534/$C$534)","v":""},null,{"$f":"IF($C$534=\"\",\"\",AF534/$C$534)","v":""},null,{"$f":"IF($C$534=\"\",\"\",AH534/$C$534)","v":""},null,{"$f":"IF($C$534=\"\",\"\",AJ534/$C$534)","v":""},null,{"$f":"IF($C$534=\"\",\"\",AL534/$C$534)","v":""},null,{"$f":"IF($C$534=\"\",\"\",AN534/$C$534)","v":""},null,{"$f":"IF($C$534=\"\",\"\",AP534/$C$534)","v":""},null,{"$f":"IF($C$534=\"\",\"\",AR534/$C$534)","v":""},null,{"$f":"IF($C$534=\"\",\"\",AT534/$C$534)","v":""},null,{"$f":"IF($C$534=\"\",\"\",AV534/$C$534)","v":""},null,{"$f":"IF($C$534=\"\",\"\",AX534/$C$534)","v":""},null,{"$f":"IF($C$534=\"\",\"\",AZ534/$C$534)","v":""},null,{"$f":"IF($C$534=\"\",\"\",BB534/$C$534)","v":""},null,0]
[null,null,null,null,{"$f":"IF($C$535=\"\",\"\",F535/$C$535)","v":""},null,{"$f":"IF($C$535=\"\",\"\",H535/$C$535)","v":""},null,{"$f":"IF($C$535=\"\",\"\",J535/$C$535)","v":""},null,{"$f":"IF($C$535=\"\",\"\",L535/$C$535)","v":""},null,{"$f":"IF($C$535=\"\",\"\",N535/$C$535)","v":""},null,{"$f":"IF($C$535=\"\",\"\",P535/$C$535)","v":""},null,{"$f":"IF($C$535=\"\",\"\",R535/$C$535)","v":""},null,{"$f":"IF($C$535=\"\",\"\",T535/$C$535)","v":""},null,{"$f":"IF($C$535=\"\",\"\",V535/$C$535)","v":""},null,{"$f":"IF($C$535=\"\",\"\",X535/$C$535)","v":""},null,{"$f":"IF($C$535=\"\",\"\",Z535/$C$535)","v":""},null,{"$f":"IF($C$535=\"\",\"\",AB535/$C$535)","v":""},null,{"$f":"IF($C$535=\"\",\"\",AD535/$C$535)","v":""},null,{"$f":"IF($C$535=\"\",\"\",AF535/$C$535)","v":""},null,{"$f":"IF($C$535=\"\",\"\",AH535/$C$535)","v":""},null,{"$f":"IF($C$535=\"\",\"\",AJ535/$C$535)","v":""},null,{"$f":"IF($C$535=\"\",\"\",AL535/$C$535)","v":""},null,{"$f":"IF($C$535=\"\",\"\",AN535/$C$535)","v":""},null,{"$f":"IF($C$535=\"\",\"\",AP535/$C$535)","v":""},null,{"$f":"IF($C$535=\"\",\"\",AR535/$C$535)","v":""},null,{"$f":"IF($C$535=\"\",\"\",AT535/$C$535)","v":""},null,{"$f":"IF($C$535=\"\",\"\",AV535/$C$535)","v":""},null,{"$f":"IF($C$535=\"\",\"\",AX535/$C$535)","v":""},null,{"$f":"IF($C$535=\"\",\"\",AZ535/$C$535)","v":""},null,{"$f":"IF($C$535=\"\",\"\",BB535/$C$535)","v":""},null,0]
[null,null,null,null,{"$f":"IF($C$536=\"\",\"\",F536/$C$536)","v":""},null,{"$f":"IF($C$536=\"\",\"\",H536/$C$536)","v":""},null,{"$f":"IF($C$536=\"\",\"\",J536/$C$536)","v":""},null,{"$f":"IF($C$536=\"\",\"\",L536/$C$536)","v":""},null,{"$f":"IF($C$536=\"\",\"\",N536/$C$536)","v":""},null,{"$f":"IF($C$536=\"\",\"\",P536/$C$536)","v":""},null,{"$f":"IF($C$536=\"\",\"\",R536/$C$536)","v":""},null,{"$f":"IF($C$536=\"\",\"\",T536/$C$536)","v":""},null,{"$f":"IF($C$536=\"\",\"\",V536/$C$536)","v":""},null,{"$f":"IF($C$536=\"\",\"\",X536/$C$536)","v":""},null,{"$f":"IF($C$536=\"\",\"\",Z536/$C$536)","v":""},null,{"$f":"IF($C$536=\"\",\"\",AB536/$C$536)","v":""},null,{"$f":"IF($C$536=\"\",\"\",AD536/$C$536)","v":""},null,{"$f":"IF($C$536=\"\",\"\",AF536/$C$536)","v":""},null,{"$f":"IF($C$536=\"\",\"\",AH536/$C$536)","v":""},null,{"$f":"IF($C$536=\"\",\"\",AJ536/$C$536)","v":""},null,{"$f":"IF($C$536=\"\",\"\",AL536/$C$536)","v":""},null,{"$f":"IF($C$536=\"\",\"\",AN536/$C$536)","v":""},null,{"$f":"IF($C$536=\"\",\"\",AP536/$C$536)","v":""},null,{"$f":"IF($C$536=\"\",\"\",AR536/$C$536)","v":""},null,{"$f":"IF($C$536=\"\",\"\",AT536/$C$536)","v":""},null,{"$f":"IF($C$536=\"\",\"\",AV536/$C$536)","v":""},null,{"$f":"IF($C$536=\"\",\"\",AX536/$C$536)","v":""},null,{"$f":"IF($C$536=\"\",\"\",AZ536/$C$536)","v":""},null,{"$f":"IF($C$536=\"\",\"\",BB536/$C$536)","v":""},null,0]
[null,null,null,null,{"$f":"IF($C$537=\"\",\"\",F537/$C$537)","v":""},null,{"$f":"IF($C$537=\"\",\"\",H537/$C$537)","v":""},null,{"$f":"IF($C$537=\"\",\"\",J537/$C$537)","v":""},null,{"$f":"IF($C$537=\"\",\"\",L537/$C$537)","v":""},null,{"$f":"IF($C$537=\"\",\"\",N537/$C$537)","v":""},null,{"$f":"IF($C$537=\"\",\"\",P537/$C$537)","v":""},null,{"$f":"IF($C$537=\"\",\"\",R537/$C$537)","v":""},null,{"$f":"IF($C$537=\"\",\"\",T537/$C$537)","v":""},null,{"$f":"IF($C$537=\"\",\"\",V537/$C$537)","v":""},null,{"$f":"IF($C$537=\"\",\"\",X537/$C$537)","v":""},null,{"$f":"IF($C$537=\"\",\"\",Z537/$C$537)","v":""},null,{"$f":"IF($C$537=\"\",\"\",AB537/$C$537)","v":""},null,{"$f":"IF($C$537=\"\",\"\",AD537/$C$537)","v":""},null,{"$f":"IF($C$537=\"\",\"\",AF537/$C$537)","v":""},null,{"$f":"IF($C$537=\"\",\"\",AH537/$C$537)","v":""},null,{"$f":"IF($C$537=\"\",\"\",AJ537/$C$537)","v":""},null,{"$f":"IF($C$537=\"\",\"\",AL537/$C$537)","v":""},null,{"$f":"IF($C$537=\"\",\"\",AN537/$C$537)","v":""},null,{"$f":"IF($C$537=\"\",\"\",AP537/$C$537)","v":""},null,{"$f":"IF($C$537=\"\",\"\",AR537/$C$537)","v":""},null,{"$f":"IF($C$537=\"\",\"\",AT537/$C$537)","v":""},null,{"$f":"IF($C$537=\"\",\"\",AV537/$C$537)","v":""},null,{"$f":"IF($C$537=\"\",\"\",AX537/$C$537)","v":""},null,{"$f":"IF($C$537=\"\",\"\",AZ537/$C$537)","v":""},null,{"$f":"IF($C$537=\"\",\"\",BB537/$C$537)","v":""},null,0]
[null,null,null,null,{"$f":"IF($C$538=\"\",\"\",F538/$C$538)","v":""},null,{"$f":"IF($C$538=\"\",\"\",H538/$C$538)","v":""},null,{"$f":"IF($C$538=\"\",\"\",J538/$C$538)","v":""},null,{"$f":"IF($C$538=\"\",\"\",L538/$C$538)","v":""},null,{"$f":"IF($C$538=\"\",\"\",N538/$C$538)","v":""},null,{"$f":"IF($C$538=\"\",\"\",P538/$C$538)","v":""},null,{"$f":"IF($C$538=\"\",\"\",R538/$C$538)","v":""},null,{"$f":"IF($C$538=\"\",\"\",T538/$C$538)","v":""},null,{"$f":"IF($C$538=\"\",\"\",V538/$C$538)","v":""},null,{"$f":"IF($C$538=\"\",\"\",X538/$C$538)","v":""},null,{"$f":"IF($C$538=\"\",\"\",Z538/$C$538)","v":""},null,{"$f":"IF($C$538=\"\",\"\",AB538/$C$538)","v":""},null,{"$f":"IF($C$538=\"\",\"\",AD538/$C$538)","v":""},null,{"$f":"IF($C$538=\"\",\"\",AF538/$C$538)","v":""},null,{"$f":"IF($C$538=\"\",\"\",AH538/$C$538)","v":""},null,{"$f":"IF($C$538=\"\",\"\",AJ538/$C$538)","v":""},null,{"$f":"IF($C$538=\"\",\"\",AL538/$C$538)","v":""},null,{"$f":"IF($C$538=\"\",\"\",AN538/$C$538)","v":""},null,{"$f":"IF($C$538=\"\",\"\",AP538/$C$538)","v":""},null,{"$f":"IF($C$538=\"\",\"\",AR538/$C$538)","v":""},null,{"$f":"IF($C$538=\"\",\"\",AT538/$C$538)","v":""},null,{"$f":"IF($C$538=\"\",\"\",AV538/$C$538)","v":""},null,{"$f":"IF($C$538=\"\",\"\",AX538/$C$538)","v":""},null,{"$f":"IF($C$538=\"\",\"\",AZ538/$C$538)","v":""},null,{"$f":"IF($C$538=\"\",\"\",BB538/$C$538)","v":""},null,0]
[null,null,null,null,{"$f":"IF($C$539=\"\",\"\",F539/$C$539)","v":""},null,{"$f":"IF($C$539=\"\",\"\",H539/$C$539)","v":""},null,{"$f":"IF($C$539=\"\",\"\",J539/$C$539)","v":""},null,{"$f":"IF($C$539=\"\",\"\",L539/$C$539)","v":""},null,{"$f":"IF($C$539=\"\",\"\",N539/$C$539)","v":""},null,{"$f":"IF($C$539=\"\",\"\",P539/$C$539)","v":""},null,{"$f":"IF($C$539=\"\",\"\",R539/$C$539)","v":""},null,{"$f":"IF($C$539=\"\",\"\",T539/$C$539)","v":""},null,{"$f":"IF($C$539=\"\",\"\",V539/$C$539)","v":""},null,{"$f":"IF($C$539=\"\",\"\",X539/$C$539)","v":""},null,{"$f":"IF($C$539=\"\",\"\",Z539/$C$539)","v":""},null,{"$f":"IF($C$539=\"\",\"\",AB539/$C$539)","v":""},null,{"$f":"IF($C$539=\"\",\"\",AD539/$C$539)","v":""},null,{"$f":"IF($C$539=\"\",\"\",AF539/$C$539)","v":""},null,{"$f":"IF($C$539=\"\",\"\",AH539/$C$539)","v":""},null,{"$f":"IF($C$539=\"\",\"\",AJ539/$C$539)","v":""},null,{"$f":"IF($C$539=\"\",\"\",AL539/$C$539)","v":""},null,{"$f":"IF($C$539=\"\",\"\",AN539/$C$539)","v":""},null,{"$f":"IF($C$539=\"\",\"\",AP539/$C$539)","v":""},null,{"$f":"IF($C$539=\"\",\"\",AR539/$C$539)","v":""},null,{"$f":"IF($C$539=\"\",\"\",AT539/$C$539)","v":""},null,{"$f":"IF($C$539=\"\",\"\",AV539/$C$539)","v":""},null,{"$f":"IF($C$539=\"\",\"\",AX539/$C$539)","v":""},null,{"$f":"IF($C$539=\"\",\"\",AZ539/$C$539)","v":""},null,{"$f":"IF($C$539=\"\",\"\",BB539/$C$539)","v":""},null,0]
[null,null,null,null,{"$f":"IF($C$540=\"\",\"\",F540/$C$540)","v":""},null,{"$f":"IF($C$540=\"\",\"\",H540/$C$540)","v":""},null,{"$f":"IF($C$540=\"\",\"\",J540/$C$540)","v":""},null,{"$f":"IF($C$540=\"\",\"\",L540/$C$540)","v":""},null,{"$f":"IF($C$540=\"\",\"\",N540/$C$540)","v":""},null,{"$f":"IF($C$540=\"\",\"\",P540/$C$540)","v":""},null,{"$f":"IF($C$540=\"\",\"\",R540/$C$540)","v":""},null,{"$f":"IF($C$540=\"\",\"\",T540/$C$540)","v":""},null,{"$f":"IF($C$540=\"\",\"\",V540/$C$540)","v":""},null,{"$f":"IF($C$540=\"\",\"\",X540/$C$540)","v":""},null,{"$f":"IF($C$540=\"\",\"\",Z540/$C$540)","v":""},null,{"$f":"IF($C$540=\"\",\"\",AB540/$C$540)","v":""},null,{"$f":"IF($C$540=\"\",\"\",AD540/$C$540)","v":""},null,{"$f":"IF($C$540=\"\",\"\",AF540/$C$540)","v":""},null,{"$f":"IF($C$540=\"\",\"\",AH540/$C$540)","v":""},null,{"$f":"IF($C$540=\"\",\"\",AJ540/$C$540)","v":""},null,{"$f":"IF($C$540=\"\",\"\",AL540/$C$540)","v":""},null,{"$f":"IF($C$540=\"\",\"\",AN540/$C$540)","v":""},null,{"$f":"IF($C$540=\"\",\"\",AP540/$C$540)","v":""},null,{"$f":"IF($C$540=\"\",\"\",AR540/$C$540)","v":""},null,{"$f":"IF($C$540=\"\",\"\",AT540/$C$540)","v":""},null,{"$f":"IF($C$540=\"\",\"\",AV540/$C$540)","v":""},null,{"$f":"IF($C$540=\"\",\"\",AX540/$C$540)","v":""},null,{"$f":"IF($C$540=\"\",\"\",AZ540/$C$540)","v":""},null,{"$f":"IF($C$540=\"\",\"\",BB540/$C$540)","v":""},null,0]
[null,null,null,null,{"$f":"IF($C$541=\"\",\"\",F541/$C$541)","v":""},null,{"$f":"IF($C$541=\"\",\"\",H541/$C$541)","v":""},null,{"$f":"IF($C$541=\"\",\"\",J541/$C$541)","v":""},null,{"$f":"IF($C$541=\"\",\"\",L541/$C$541)","v":""},null,{"$f":"IF($C$541=\"\",\"\",N541/$C$541)","v":""},null,{"$f":"IF($C$541=\"\",\"\",P541/$C$541)","v":""},null,{"$f":"IF($C$541=\"\",\"\",R541/$C$541)","v":""},null,{"$f":"IF($C$541=\"\",\"\",T541/$C$541)","v":""},null,{"$f":"IF($C$541=\"\",\"\",V541/$C$541)","v":""},null,{"$f":"IF($C$541=\"\",\"\",X541/$C$541)","v":""},null,{"$f":"IF($C$541=\"\",\"\",Z541/$C$541)","v":""},null,{"$f":"IF($C$541=\"\",\"\",AB541/$C$541)","v":""},null,{"$f":"IF($C$541=\"\",\"\",AD541/$C$541)","v":""},null,{"$f":"IF($C$541=\"\",\"\",AF541/$C$541)","v":""},null,{"$f":"IF($C$541=\"\",\"\",AH541/$C$541)","v":""},null,{"$f":"IF($C$541=\"\",\"\",AJ541/$C$541)","v":""},null,{"$f":"IF($C$541=\"\",\"\",AL541/$C$541)","v":""},null,{"$f":"IF($C$541=\"\",\"\",AN541/$C$541)","v":""},null,{"$f":"IF($C$541=\"\",\"\",AP541/$C$541)","v":""},null,{"$f":"IF($C$541=\"\",\"\",AR541/$C$541)","v":""},null,{"$f":"IF($C$541=\"\",\"\",AT541/$C$541)","v":""},null,{"$f":"IF($C$541=\"\",\"\",AV541/$C$541)","v":""},null,{"$f":"IF($C$541=\"\",\"\",AX541/$C$541)","v":""},null,{"$f":"IF($C$541=\"\",\"\",AZ541/$C$541)","v":""},null,{"$f":"IF($C$541=\"\",\"\",BB541/$C$541)","v":""},null,{"$f":"SUM(BB541,AZ541,AX541,AV541,AT541,AR541,AP541,AN541,AL541,AJ541,AH541,AF541,AD541,AB541,Z541,X541,V541,T541,R541,P541,N541,L541,J541,H541,F541)","v":0}]
["TOTAL HOURS",null,null,null,null,{"$f":"SUM(F512:F541)","v":0},null,{"$f":"SUM(H512:H541)","v":0},null,{"$f":"SUM(J512:J541)","v":0},null,{"$f":"SUM(L512:L541)","v":0},null,{"$f":"SUM(N512:N541)","v":0},null,{"$f":"SUM(P512:P541)","v":0},null,{"$f":"SUM(R512:R541)","v":0},null,{"$f":"SUM(T512:T541)","v":0},null,{"$f":"SUM(V512:V541)","v":0},null,{"$f":"SUM(X512:X541)","v":0},null,{"$f":"SUM(Z512:Z541)","v":0},null,{"$f":"SUM(AB512:AB541)","v":0},null,{"$f":"SUM(AD512:AD541)","v":0},null,{"$f":"SUM(AF512:AF541)","v":0},null,{"$f":"SUM(AH512:AH541)","v":0},null,{"$f":"SUM(AJ512:AJ541)","v":0},null,{"$f":"SUM(AL512:AL541)","v":0},null,{"$f":"SUM(AN512:AN541)","v":0},null,{"$f":"SUM(AP512:AP541)","v":0},null,{"$f":"SUM(AR512:AR541)","v":0},null,{"$f":"SUM(AT512:AT541)","v":0},null,{"$f":"SUM(AV512:AV541)","v":0},null,{"$f":"SUM(AX512:AX541)","v":0},null,{"$f":"SUM(AZ512:AZ541)","v":0},null,{"$f":"SUM(BB512:BB541)","v":0},{"$f":"SUM(E542:BB542)","v":0}]
["TOTAL WORKDAYS",null,null,null,null,{"$f":"F542/8","v":0},null,{"$f":"H542/8","v":0},null,{"$f":"J542/8","v":0},null,{"$f":"L542/8","v":0},null,{"$f":"N542/8","v":0},null,{"$f":"P542/8","v":0},null,{"$f":"R542/8","v":0},null,{"$f":"T542/8","v":0},null,{"$f":"V542/8","v":0},null,{"$f":"X542/8","v":0},null,{"$f":"Z542/8","v":0},null,{"$f":"AB542/8","v":0},null,{"$f":"AD542/8","v":0},null,0,null,{"$f":"AH542/8","v":0},null,0,null,{"$f":"AL542/8","v":0},null,0,null,{"$f":"AP542/8","v":0},null,0,null,{"$f":"AT542/8","v":0},null,{"$f":"AV542/8","v":0},null,{"$f":"AX542/8","v":0},null,{"$f":"AZ542/8","v":0},null,{"$f":"BB542/8","v":0},{"$f":"SUM(E543:BB543)","v":0}]
["TOTAL RAW LABOR",null,null,null,null,{"$f":"$E$13*F542","v":0},null,{"$f":"$G$13*H542","v":0},null,{"$f":"$I$13*J542","v":0},null,{"$f":"$K$13*L542","v":0},null,{"$f":"$M$13*N542","v":0},null,{"$f":"$O$13*P542","v":0},null,{"$f":"$Q$13*R542","v":0},null,{"$f":"$S$13*T542","v":0},null,{"$f":"$U$13*V542","v":0},null,{"$f":"$W$13*X542","v":0},null,{"$f":"$Y$13*Z542","v":0},null,{"$f":"$AA$13*AB542","v":0},null,{"$f":"$AC$13*AD542","v":0},null,{"$f":"$AC$13*AF542","v":0},null,{"$f":"$AC$13*AH542","v":0},null,{"$f":"$AC$13*AJ542","v":0},null,{"$f":"$AC$13*AL542","v":0},null,{"$f":"$AC$13*AN542","v":0},null,{"$f":"$AC$13*AP542","v":0},null,{"$f":"$AC$13*AR542","v":0},null,{"$f":"$AC$13*AT542","v":0},null,{"$f":"$AC$13*AV542","v":0},null,{"$f":"$AC$13*AX542","v":0},null,{"$f":"$AC$13*AZ542","v":0},null,{"$f":"$AC$13*BB542","v":0},{"$f":"SUM(E544:BB544)","v":0}]
["Task 20.0     ","REPLACE FIELD WITH CATEGORY NAME OF YOUR CHOOSING HERE",null,null,null,null,null,null,null,null,null,null,null,null,null,null,null,null,null,null,null,null,null,null,null,null,null,null,null,null,null,null,null,null,null,null,null,null,null,null,null,null,null,null,null,null,null,null,null,null,null,null,null,null,{"$f":"IF(B545=\"REPLACE FIELD WITH CATEGORY NAME OF YOUR CHOOSING HERE\",0,\"\")","v":0}]
[null,null,null,null,{"$f":"IF($C$546=\"\",\"\",F546/$C$546)","v":""},null,{"$f":"IF($C$546=\"\",\"\",H546/$C$546)","v":""},null,{"$f":"IF($C$546=\"\",\"\",J546/$C$546)","v":""},null,{"$f":"IF($C$546=\"\",\"\",L546/$C$546)","v":""},null,{"$f":"IF($C$546=\"\",\"\",N546/$C$546)","v":""},null,{"$f":"IF($C$546=\"\",\"\",P546/$C$546)","v":""},null,{"$f":"IF($C$546=\"\",\"\",R546/$C$546)","v":""},null,{"$f":"IF($C$546=\"\",\"\",T546/$C$546)","v":""},null,{"$f":"IF($C$546=\"\",\"\",V546/$C$546)","v":""},null,{"$f":"IF($C$546=\"\",\"\",X546/$C$546)","v":""},null,{"$f":"IF($C$546=\"\",\"\",Z546/$C$546)","v":""},null,{"$f":"IF($C$546=\"\",\"\",AB546/$C$546)","v":""},null,{"$f":"IF($C$546=\"\",\"\",AD546/$C$546)","v":""},null,{"$f":"IF($C$546=\"\",\"\",AF546/$C$546)","v":""},null,{"$f":"IF($C$546=\"\",\"\",AH546/$C$546)","v":""},null,{"$f":"IF($C$546=\"\",\"\",AJ546/$C$546)","v":""},null,{"$f":"IF($C$546=\"\",\"\",AL546/$C$546)","v":""},null,{"$f":"IF($C$546=\"\",\"\",AN546/$C$546)","v":""},null,{"$f":"IF($C$546=\"\",\"\",AP546/$C$546)","v":""},null,{"$f":"IF($C$546=\"\",\"\",AR546/$C$546)","v":""},null,{"$f":"IF($C$546=\"\",\"\",AT546/$C$546)","v":""},null,{"$f":"IF($C$546=\"\",\"\",AV546/$C$546)","v":""},null,{"$f":"IF($C$546=\"\",\"\",AX546/$C$546)","v":""},null,{"$f":"IF($C$546=\"\",\"\",AZ546/$C$546)","v":""},null,{"$f":"IF($C$546=\"\",\"\",BB546/$C$546)","v":""},null,{"$f":"SUM(BB546,AZ546,AX546,AV546,AT546,AR546,AP546,AN546,AL546,AJ546,AH546,AF546,AD546,AB546,Z546,X546,V546,T546,R546,P546,N546,L546,J546,H546,F546)","v":0}]
[null,null,null,null,{"$f":"IF($C$547=\"\",\"\",F547/$C$547)","v":""},null,{"$f":"IF($C$547=\"\",\"\",H547/$C$547)","v":""},null,{"$f":"IF($C$547=\"\",\"\",J547/$C$547)","v":""},null,{"$f":"IF($C$547=\"\",\"\",L547/$C$547)","v":""},null,{"$f":"IF($C$547=\"\",\"\",N547/$C$547)","v":""},null,{"$f":"IF($C$547=\"\",\"\",P547/$C$547)","v":""},null,{"$f":"IF($C$547=\"\",\"\",R547/$C$547)","v":""},null,{"$f":"IF($C$547=\"\",\"\",T547/$C$547)","v":""},null,{"$f":"IF($C$547=\"\",\"\",V547/$C$547)","v":""},null,{"$f":"IF($C$547=\"\",\"\",X547/$C$547)","v":""},null,{"$f":"IF($C$547=\"\",\"\",Z547/$C$547)","v":""},null,{"$f":"IF($C$547=\"\",\"\",AB547/$C$547)","v":""},null,{"$f":"IF($C$547=\"\",\"\",AD547/$C$547)","v":""},null,{"$f":"IF($C$547=\"\",\"\",AF547/$C$547)","v":""},null,{"$f":"IF($C$547=\"\",\"\",AH547/$C$547)","v":""},null,{"$f":"IF($C$547=\"\",\"\",AJ547/$C$547)","v":""},null,{"$f":"IF($C$547=\"\",\"\",AL547/$C$547)","v":""},null,{"$f":"IF($C$547=\"\",\"\",AN547/$C$547)","v":""},null,{"$f":"IF($C$547=\"\",\"\",AP547/$C$547)","v":""},null,{"$f":"IF($C$547=\"\",\"\",AR547/$C$547)","v":""},null,{"$f":"IF($C$547=\"\",\"\",AT547/$C$547)","v":""},null,{"$f":"IF($C$547=\"\",\"\",AV547/$C$547)","v":""},null,{"$f":"IF($C$547=\"\",\"\",AX547/$C$547)","v":""},null,{"$f":"IF($C$547=\"\",\"\",AZ547/$C$547)","v":""},null,{"$f":"IF($C$547=\"\",\"\",BB547/$C$547)","v":""},null,0]
[null,null,null,null,{"$f":"IF($C$548=\"\",\"\",F548/$C$548)","v":""},null,{"$f":"IF($C$548=\"\",\"\",H548/$C$548)","v":""},null,{"$f":"IF($C$548=\"\",\"\",J548/$C$548)","v":""},null,{"$f":"IF($C$548=\"\",\"\",L548/$C$548)","v":""},null,{"$f":"IF($C$548=\"\",\"\",N548/$C$548)","v":""},null,{"$f":"IF($C$548=\"\",\"\",P548/$C$548)","v":""},null,{"$f":"IF($C$548=\"\",\"\",R548/$C$548)","v":""},null,{"$f":"IF($C$548=\"\",\"\",T548/$C$548)","v":""},null,{"$f":"IF($C$548=\"\",\"\",V548/$C$548)","v":""},null,{"$f":"IF($C$548=\"\",\"\",X548/$C$548)","v":""},null,{"$f":"IF($C$548=\"\",\"\",Z548/$C$548)","v":""},null,{"$f":"IF($C$548=\"\",\"\",AB548/$C$548)","v":""},null,{"$f":"IF($C$548=\"\",\"\",AD548/$C$548)","v":""},null,{"$f":"IF($C$548=\"\",\"\",AF548/$C$548)","v":""},null,{"$f":"IF($C$548=\"\",\"\",AH548/$C$548)","v":""},null,{"$f":"IF($C$548=\"\",\"\",AJ548/$C$548)","v":""},null,{"$f":"IF($C$548=\"\",\"\",AL548/$C$548)","v":""},null,{"$f":"IF($C$548=\"\",\"\",AN548/$C$548)","v":""},null,{"$f":"IF($C$548=\"\",\"\",AP548/$C$548)","v":""},null,{"$f":"IF($C$548=\"\",\"\",AR548/$C$548)","v":""},null,{"$f":"IF($C$548=\"\",\"\",AT548/$C$548)","v":""},null,{"$f":"IF($C$548=\"\",\"\",AV548/$C$548)","v":""},null,{"$f":"IF($C$548=\"\",\"\",AX548/$C$548)","v":""},null,{"$f":"IF($C$548=\"\",\"\",AZ548/$C$548)","v":""},null,{"$f":"IF($C$548=\"\",\"\",BB548/$C$548)","v":""},null,0]
[null,null,null,null,{"$f":"IF($C$549=\"\",\"\",F549/$C$549)","v":""},null,{"$f":"IF($C$549=\"\",\"\",H549/$C$549)","v":""},null,{"$f":"IF($C$549=\"\",\"\",J549/$C$549)","v":""},null,{"$f":"IF($C$549=\"\",\"\",L549/$C$549)","v":""},null,{"$f":"IF($C$549=\"\",\"\",N549/$C$549)","v":""},null,{"$f":"IF($C$549=\"\",\"\",P549/$C$549)","v":""},null,{"$f":"IF($C$549=\"\",\"\",R549/$C$549)","v":""},null,{"$f":"IF($C$549=\"\",\"\",T549/$C$549)","v":""},null,{"$f":"IF($C$549=\"\",\"\",V549/$C$549)","v":""},null,{"$f":"IF($C$549=\"\",\"\",X549/$C$549)","v":""},null,{"$f":"IF($C$549=\"\",\"\",Z549/$C$549)","v":""},null,{"$f":"IF($C$549=\"\",\"\",AB549/$C$549)","v":""},null,{"$f":"IF($C$549=\"\",\"\",AD549/$C$549)","v":""},null,{"$f":"IF($C$549=\"\",\"\",AF549/$C$549)","v":""},null,{"$f":"IF($C$549=\"\",\"\",AH549/$C$549)","v":""},null,{"$f":"IF($C$549=\"\",\"\",AJ549/$C$549)","v":""},null,{"$f":"IF($C$549=\"\",\"\",AL549/$C$549)","v":""},null,{"$f":"IF($C$549=\"\",\"\",AN549/$C$549)","v":""},null,{"$f":"IF($C$549=\"\",\"\",AP549/$C$549)","v":""},null,{"$f":"IF($C$549=\"\",\"\",AR549/$C$549)","v":""},null,{"$f":"IF($C$549=\"\",\"\",AT549/$C$549)","v":""},null,{"$f":"IF($C$549=\"\",\"\",AV549/$C$549)","v":""},null,{"$f":"IF($C$549=\"\",\"\",AX549/$C$549)","v":""},null,{"$f":"IF($C$549=\"\",\"\",AZ549/$C$549)","v":""},null,{"$f":"IF($C$549=\"\",\"\",BB549/$C$549)","v":""},null,0]
[null,null,null,null,{"$f":"IF($C$550=\"\",\"\",F550/$C$550)","v":""},null,{"$f":"IF($C$550=\"\",\"\",H550/$C$550)","v":""},null,{"$f":"IF($C$550=\"\",\"\",J550/$C$550)","v":""},null,{"$f":"IF($C$550=\"\",\"\",L550/$C$550)","v":""},null,{"$f":"IF($C$550=\"\",\"\",N550/$C$550)","v":""},null,{"$f":"IF($C$550=\"\",\"\",P550/$C$550)","v":""},null,{"$f":"IF($C$550=\"\",\"\",R550/$C$550)","v":""},null,{"$f":"IF($C$550=\"\",\"\",T550/$C$550)","v":""},null,{"$f":"IF($C$550=\"\",\"\",V550/$C$550)","v":""},null,{"$f":"IF($C$550=\"\",\"\",X550/$C$550)","v":""},null,{"$f":"IF($C$550=\"\",\"\",Z550/$C$550)","v":""},null,{"$f":"IF($C$550=\"\",\"\",AB550/$C$550)","v":""},null,{"$f":"IF($C$550=\"\",\"\",AD550/$C$550)","v":""},null,{"$f":"IF($C$550=\"\",\"\",AF550/$C$550)","v":""},null,{"$f":"IF($C$550=\"\",\"\",AH550/$C$550)","v":""},null,{"$f":"IF($C$550=\"\",\"\",AJ550/$C$550)","v":""},null,{"$f":"IF($C$550=\"\",\"\",AL550/$C$550)","v":""},null,{"$f":"IF($C$550=\"\",\"\",AN550/$C$550)","v":""},null,{"$f":"IF($C$550=\"\",\"\",AP550/$C$550)","v":""},null,{"$f":"IF($C$550=\"\",\"\",AR550/$C$550)","v":""},null,{"$f":"IF($C$550=\"\",\"\",AT550/$C$550)","v":""},null,{"$f":"IF($C$550=\"\",\"\",AV550/$C$550)","v":""},null,{"$f":"IF($C$550=\"\",\"\",AX550/$C$550)","v":""},null,{"$f":"IF($C$550=\"\",\"\",AZ550/$C$550)","v":""},null,{"$f":"IF($C$550=\"\",\"\",BB550/$C$550)","v":""},null,0]
[null,null,null,null,{"$f":"IF($C$551=\"\",\"\",F551/$C$551)","v":""},null,{"$f":"IF($C$551=\"\",\"\",H551/$C$551)","v":""},null,{"$f":"IF($C$551=\"\",\"\",J551/$C$551)","v":""},null,{"$f":"IF($C$551=\"\",\"\",L551/$C$551)","v":""},null,{"$f":"IF($C$551=\"\",\"\",N551/$C$551)","v":""},null,{"$f":"IF($C$551=\"\",\"\",P551/$C$551)","v":""},null,{"$f":"IF($C$551=\"\",\"\",R551/$C$551)","v":""},null,{"$f":"IF($C$551=\"\",\"\",T551/$C$551)","v":""},null,{"$f":"IF($C$551=\"\",\"\",V551/$C$551)","v":""},null,{"$f":"IF($C$551=\"\",\"\",X551/$C$551)","v":""},null,{"$f":"IF($C$551=\"\",\"\",Z551/$C$551)","v":""},null,{"$f":"IF($C$551=\"\",\"\",AB551/$C$551)","v":""},null,{"$f":"IF($C$551=\"\",\"\",AD551/$C$551)","v":""},null,{"$f":"IF($C$551=\"\",\"\",AF551/$C$551)","v":""},null,{"$f":"IF($C$551=\"\",\"\",AH551/$C$551)","v":""},null,{"$f":"IF($C$551=\"\",\"\",AJ551/$C$551)","v":""},null,{"$f":"IF($C$551=\"\",\"\",AL551/$C$551)","v":""},null,{"$f":"IF($C$551=\"\",\"\",AN551/$C$551)","v":""},null,{"$f":"IF($C$551=\"\",\"\",AP551/$C$551)","v":""},null,{"$f":"IF($C$551=\"\",\"\",AR551/$C$551)","v":""},null,{"$f":"IF($C$551=\"\",\"\",AT551/$C$551)","v":""},null,{"$f":"IF($C$551=\"\",\"\",AV551/$C$551)","v":""},null,{"$f":"IF($C$551=\"\",\"\",AX551/$C$551)","v":""},null,{"$f":"IF($C$551=\"\",\"\",AZ551/$C$551)","v":""},null,{"$f":"IF($C$551=\"\",\"\",BB551/$C$551)","v":""},null,0]
[null,null,null,null,{"$f":"IF($C$552=\"\",\"\",F552/$C$552)","v":""},null,{"$f":"IF($C$552=\"\",\"\",H552/$C$552)","v":""},null,{"$f":"IF($C$552=\"\",\"\",J552/$C$552)","v":""},null,{"$f":"IF($C$552=\"\",\"\",L552/$C$552)","v":""},null,{"$f":"IF($C$552=\"\",\"\",N552/$C$552)","v":""},null,{"$f":"IF($C$552=\"\",\"\",P552/$C$552)","v":""},null,{"$f":"IF($C$552=\"\",\"\",R552/$C$552)","v":""},null,{"$f":"IF($C$552=\"\",\"\",T552/$C$552)","v":""},null,{"$f":"IF($C$552=\"\",\"\",V552/$C$552)","v":""},null,{"$f":"IF($C$552=\"\",\"\",X552/$C$552)","v":""},null,{"$f":"IF($C$552=\"\",\"\",Z552/$C$552)","v":""},null,{"$f":"IF($C$552=\"\",\"\",AB552/$C$552)","v":""},null,{"$f":"IF($C$552=\"\",\"\",AD552/$C$552)","v":""},null,{"$f":"IF($C$552=\"\",\"\",AF552/$C$552)","v":""},null,{"$f":"IF($C$552=\"\",\"\",AH552/$C$552)","v":""},null,{"$f":"IF($C$552=\"\",\"\",AJ552/$C$552)","v":""},null,{"$f":"IF($C$552=\"\",\"\",AL552/$C$552)","v":""},null,{"$f":"IF($C$552=\"\",\"\",AN552/$C$552)","v":""},null,{"$f":"IF($C$552=\"\",\"\",AP552/$C$552)","v":""},null,{"$f":"IF($C$552=\"\",\"\",AR552/$C$552)","v":""},null,{"$f":"IF($C$552=\"\",\"\",AT552/$C$552)","v":""},null,{"$f":"IF($C$552=\"\",\"\",AV552/$C$552)","v":""},null,{"$f":"IF($C$552=\"\",\"\",AX552/$C$552)","v":""},null,{"$f":"IF($C$552=\"\",\"\",AZ552/$C$552)","v":""},null,{"$f":"IF($C$552=\"\",\"\",BB552/$C$552)","v":""},null,0]
[null,null,null,null,{"$f":"IF($C$553=\"\",\"\",F553/$C$553)","v":""},null,{"$f":"IF($C$553=\"\",\"\",H553/$C$553)","v":""},null,{"$f":"IF($C$553=\"\",\"\",J553/$C$553)","v":""},null,{"$f":"IF($C$553=\"\",\"\",L553/$C$553)","v":""},null,{"$f":"IF($C$553=\"\",\"\",N553/$C$553)","v":""},null,{"$f":"IF($C$553=\"\",\"\",P553/$C$553)","v":""},null,{"$f":"IF($C$553=\"\",\"\",R553/$C$553)","v":""},null,{"$f":"IF($C$553=\"\",\"\",T553/$C$553)","v":""},null,{"$f":"IF($C$553=\"\",\"\",V553/$C$553)","v":""},null,{"$f":"IF($C$553=\"\",\"\",X553/$C$553)","v":""},null,{"$f":"IF($C$553=\"\",\"\",Z553/$C$553)","v":""},null,{"$f":"IF($C$553=\"\",\"\",AB553/$C$553)","v":""},null,{"$f":"IF($C$553=\"\",\"\",AD553/$C$553)","v":""},null,{"$f":"IF($C$553=\"\",\"\",AF553/$C$553)","v":""},null,{"$f":"IF($C$553=\"\",\"\",AH553/$C$553)","v":""},null,{"$f":"IF($C$553=\"\",\"\",AJ553/$C$553)","v":""},null,{"$f":"IF($C$553=\"\",\"\",AL553/$C$553)","v":""},null,{"$f":"IF($C$553=\"\",\"\",AN553/$C$553)","v":""},null,{"$f":"IF($C$553=\"\",\"\",AP553/$C$553)","v":""},null,{"$f":"IF($C$553=\"\",\"\",AR553/$C$553)","v":""},null,{"$f":"IF($C$553=\"\",\"\",AT553/$C$553)","v":""},null,{"$f":"IF($C$553=\"\",\"\",AV553/$C$553)","v":""},null,{"$f":"IF($C$553=\"\",\"\",AX553/$C$553)","v":""},null,{"$f":"IF($C$553=\"\",\"\",AZ553/$C$553)","v":""},null,{"$f":"IF($C$553=\"\",\"\",BB553/$C$553)","v":""},null,0]
[null,null,null,null,{"$f":"IF($C$554=\"\",\"\",F554/$C$554)","v":""},null,{"$f":"IF($C$554=\"\",\"\",H554/$C$554)","v":""},null,{"$f":"IF($C$554=\"\",\"\",J554/$C$554)","v":""},null,{"$f":"IF($C$554=\"\",\"\",L554/$C$554)","v":""},null,{"$f":"IF($C$554=\"\",\"\",N554/$C$554)","v":""},null,{"$f":"IF($C$554=\"\",\"\",P554/$C$554)","v":""},null,{"$f":"IF($C$554=\"\",\"\",R554/$C$554)","v":""},null,{"$f":"IF($C$554=\"\",\"\",T554/$C$554)","v":""},null,{"$f":"IF($C$554=\"\",\"\",V554/$C$554)","v":""},null,{"$f":"IF($C$554=\"\",\"\",X554/$C$554)","v":""},null,{"$f":"IF($C$554=\"\",\"\",Z554/$C$554)","v":""},null,{"$f":"IF($C$554=\"\",\"\",AB554/$C$554)","v":""},null,{"$f":"IF($C$554=\"\",\"\",AD554/$C$554)","v":""},null,{"$f":"IF($C$554=\"\",\"\",AF554/$C$554)","v":""},null,{"$f":"IF($C$554=\"\",\"\",AH554/$C$554)","v":""},null,{"$f":"IF($C$554=\"\",\"\",AJ554/$C$554)","v":""},null,{"$f":"IF($C$554=\"\",\"\",AL554/$C$554)","v":""},null,{"$f":"IF($C$554=\"\",\"\",AN554/$C$554)","v":""},null,{"$f":"IF($C$554=\"\",\"\",AP554/$C$554)","v":""},null,{"$f":"IF($C$554=\"\",\"\",AR554/$C$554)","v":""},null,{"$f":"IF($C$554=\"\",\"\",AT554/$C$554)","v":""},null,{"$f":"IF($C$554=\"\",\"\",AV554/$C$554)","v":""},null,{"$f":"IF($C$554=\"\",\"\",AX554/$C$554)","v":""},null,{"$f":"IF($C$554=\"\",\"\",AZ554/$C$554)","v":""},null,{"$f":"IF($C$554=\"\",\"\",BB554/$C$554)","v":""},null,0]
[null,null,null,null,{"$f":"IF($C$555=\"\",\"\",F555/$C$555)","v":""},null,{"$f":"IF($C$555=\"\",\"\",H555/$C$555)","v":""},null,{"$f":"IF($C$555=\"\",\"\",J555/$C$555)","v":""},null,{"$f":"IF($C$555=\"\",\"\",L555/$C$555)","v":""},null,{"$f":"IF($C$555=\"\",\"\",N555/$C$555)","v":""},null,{"$f":"IF($C$555=\"\",\"\",P555/$C$555)","v":""},null,{"$f":"IF($C$555=\"\",\"\",R555/$C$555)","v":""},null,{"$f":"IF($C$555=\"\",\"\",T555/$C$555)","v":""},null,{"$f":"IF($C$555=\"\",\"\",V555/$C$555)","v":""},null,{"$f":"IF($C$555=\"\",\"\",X555/$C$555)","v":""},null,{"$f":"IF($C$555=\"\",\"\",Z555/$C$555)","v":""},null,{"$f":"IF($C$555=\"\",\"\",AB555/$C$555)","v":""},null,{"$f":"IF($C$555=\"\",\"\",AD555/$C$555)","v":""},null,{"$f":"IF($C$555=\"\",\"\",AF555/$C$555)","v":""},null,{"$f":"IF($C$555=\"\",\"\",AH555/$C$555)","v":""},null,{"$f":"IF($C$555=\"\",\"\",AJ555/$C$555)","v":""},null,{"$f":"IF($C$555=\"\",\"\",AL555/$C$555)","v":""},null,{"$f":"IF($C$555=\"\",\"\",AN555/$C$555)","v":""},null,{"$f":"IF($C$555=\"\",\"\",AP555/$C$555)","v":""},null,{"$f":"IF($C$555=\"\",\"\",AR555/$C$555)","v":""},null,{"$f":"IF($C$555=\"\",\"\",AT555/$C$555)","v":""},null,{"$f":"IF($C$555=\"\",\"\",AV555/$C$555)","v":""},null,{"$f":"IF($C$555=\"\",\"\",AX555/$C$555)","v":""},null,{"$f":"IF($C$555=\"\",\"\",AZ555/$C$555)","v":""},null,{"$f":"IF($C$555=\"\",\"\",BB555/$C$555)","v":""},null,0]
[null,null,null,null,{"$f":"IF($C$556=\"\",\"\",F556/$C$556)","v":""},null,{"$f":"IF($C$556=\"\",\"\",H556/$C$556)","v":""},null,{"$f":"IF($C$556=\"\",\"\",J556/$C$556)","v":""},null,{"$f":"IF($C$556=\"\",\"\",L556/$C$556)","v":""},null,{"$f":"IF($C$556=\"\",\"\",N556/$C$556)","v":""},null,{"$f":"IF($C$556=\"\",\"\",P556/$C$556)","v":""},null,{"$f":"IF($C$556=\"\",\"\",R556/$C$556)","v":""},null,{"$f":"IF($C$556=\"\",\"\",T556/$C$556)","v":""},null,{"$f":"IF($C$556=\"\",\"\",V556/$C$556)","v":""},null,{"$f":"IF($C$556=\"\",\"\",X556/$C$556)","v":""},null,{"$f":"IF($C$556=\"\",\"\",Z556/$C$556)","v":""},null,{"$f":"IF($C$556=\"\",\"\",AB556/$C$556)","v":""},null,{"$f":"IF($C$556=\"\",\"\",AD556/$C$556)","v":""},null,{"$f":"IF($C$556=\"\",\"\",AF556/$C$556)","v":""},null,{"$f":"IF($C$556=\"\",\"\",AH556/$C$556)","v":""},null,{"$f":"IF($C$556=\"\",\"\",AJ556/$C$556)","v":""},null,{"$f":"IF($C$556=\"\",\"\",AL556/$C$556)","v":""},null,{"$f":"IF($C$556=\"\",\"\",AN556/$C$556)","v":""},null,{"$f":"IF($C$556=\"\",\"\",AP556/$C$556)","v":""},null,{"$f":"IF($C$556=\"\",\"\",AR556/$C$556)","v":""},null,{"$f":"IF($C$556=\"\",\"\",AT556/$C$556)","v":""},null,{"$f":"IF($C$556=\"\",\"\",AV556/$C$556)","v":""},null,{"$f":"IF($C$556=\"\",\"\",AX556/$C$556)","v":""},null,{"$f":"IF($C$556=\"\",\"\",AZ556/$C$556)","v":""},null,{"$f":"IF($C$556=\"\",\"\",BB556/$C$556)","v":""},null,0]
[null,null,null,null,{"$f":"IF($C$557=\"\",\"\",F557/$C$557)","v":""},null,{"$f":"IF($C$557=\"\",\"\",H557/$C$557)","v":""},null,{"$f":"IF($C$557=\"\",\"\",J557/$C$557)","v":""},null,{"$f":"IF($C$557=\"\",\"\",L557/$C$557)","v":""},null,{"$f":"IF($C$557=\"\",\"\",N557/$C$557)","v":""},null,{"$f":"IF($C$557=\"\",\"\",P557/$C$557)","v":""},null,{"$f":"IF($C$557=\"\",\"\",R557/$C$557)","v":""},null,{"$f":"IF($C$557=\"\",\"\",T557/$C$557)","v":""},null,{"$f":"IF($C$557=\"\",\"\",V557/$C$557)","v":""},null,{"$f":"IF($C$557=\"\",\"\",X557/$C$557)","v":""},null,{"$f":"IF($C$557=\"\",\"\",Z557/$C$557)","v":""},null,{"$f":"IF($C$557=\"\",\"\",AB557/$C$557)","v":""},null,{"$f":"IF($C$557=\"\",\"\",AD557/$C$557)","v":""},null,{"$f":"IF($C$557=\"\",\"\",AF557/$C$557)","v":""},null,{"$f":"IF($C$557=\"\",\"\",AH557/$C$557)","v":""},null,{"$f":"IF($C$557=\"\",\"\",AJ557/$C$557)","v":""},null,{"$f":"IF($C$557=\"\",\"\",AL557/$C$557)","v":""},null,{"$f":"IF($C$557=\"\",\"\",AN557/$C$557)","v":""},null,{"$f":"IF($C$557=\"\",\"\",AP557/$C$557)","v":""},null,{"$f":"IF($C$557=\"\",\"\",AR557/$C$557)","v":""},null,{"$f":"IF($C$557=\"\",\"\",AT557/$C$557)","v":""},null,{"$f":"IF($C$557=\"\",\"\",AV557/$C$557)","v":""},null,{"$f":"IF($C$557=\"\",\"\",AX557/$C$557)","v":""},null,{"$f":"IF($C$557=\"\",\"\",AZ557/$C$557)","v":""},null,{"$f":"IF($C$557=\"\",\"\",BB557/$C$557)","v":""},null,0]
[null,null,null,null,{"$f":"IF($C$558=\"\",\"\",F558/$C$558)","v":""},null,{"$f":"IF($C$558=\"\",\"\",H558/$C$558)","v":""},null,{"$f":"IF($C$558=\"\",\"\",J558/$C$558)","v":""},null,{"$f":"IF($C$558=\"\",\"\",L558/$C$558)","v":""},null,{"$f":"IF($C$558=\"\",\"\",N558/$C$558)","v":""},null,{"$f":"IF($C$558=\"\",\"\",P558/$C$558)","v":""},null,{"$f":"IF($C$558=\"\",\"\",R558/$C$558)","v":""},null,{"$f":"IF($C$558=\"\",\"\",T558/$C$558)","v":""},null,{"$f":"IF($C$558=\"\",\"\",V558/$C$558)","v":""},null,{"$f":"IF($C$558=\"\",\"\",X558/$C$558)","v":""},null,{"$f":"IF($C$558=\"\",\"\",Z558/$C$558)","v":""},null,{"$f":"IF($C$558=\"\",\"\",AB558/$C$558)","v":""},null,{"$f":"IF($C$558=\"\",\"\",AD558/$C$558)","v":""},null,{"$f":"IF($C$558=\"\",\"\",AF558/$C$558)","v":""},null,{"$f":"IF($C$558=\"\",\"\",AH558/$C$558)","v":""},null,{"$f":"IF($C$558=\"\",\"\",AJ558/$C$558)","v":""},null,{"$f":"IF($C$558=\"\",\"\",AL558/$C$558)","v":""},null,{"$f":"IF($C$558=\"\",\"\",AN558/$C$558)","v":""},null,{"$f":"IF($C$558=\"\",\"\",AP558/$C$558)","v":""},null,{"$f":"IF($C$558=\"\",\"\",AR558/$C$558)","v":""},null,{"$f":"IF($C$558=\"\",\"\",AT558/$C$558)","v":""},null,{"$f":"IF($C$558=\"\",\"\",AV558/$C$558)","v":""},null,{"$f":"IF($C$558=\"\",\"\",AX558/$C$558)","v":""},null,{"$f":"IF($C$558=\"\",\"\",AZ558/$C$558)","v":""},null,{"$f":"IF($C$558=\"\",\"\",BB558/$C$558)","v":""},null,0]
[null,null,null,null,{"$f":"IF($C$559=\"\",\"\",F559/$C$559)","v":""},null,{"$f":"IF($C$559=\"\",\"\",H559/$C$559)","v":""},null,{"$f":"IF($C$559=\"\",\"\",J559/$C$559)","v":""},null,{"$f":"IF($C$559=\"\",\"\",L559/$C$559)","v":""},null,{"$f":"IF($C$559=\"\",\"\",N559/$C$559)","v":""},null,{"$f":"IF($C$559=\"\",\"\",P559/$C$559)","v":""},null,{"$f":"IF($C$559=\"\",\"\",R559/$C$559)","v":""},null,{"$f":"IF($C$559=\"\",\"\",T559/$C$559)","v":""},null,{"$f":"IF($C$559=\"\",\"\",V559/$C$559)","v":""},null,{"$f":"IF($C$559=\"\",\"\",X559/$C$559)","v":""},null,{"$f":"IF($C$559=\"\",\"\",Z559/$C$559)","v":""},null,{"$f":"IF($C$559=\"\",\"\",AB559/$C$559)","v":""},null,{"$f":"IF($C$559=\"\",\"\",AD559/$C$559)","v":""},null,{"$f":"IF($C$559=\"\",\"\",AF559/$C$559)","v":""},null,{"$f":"IF($C$559=\"\",\"\",AH559/$C$559)","v":""},null,{"$f":"IF($C$559=\"\",\"\",AJ559/$C$559)","v":""},null,{"$f":"IF($C$559=\"\",\"\",AL559/$C$559)","v":""},null,{"$f":"IF($C$559=\"\",\"\",AN559/$C$559)","v":""},null,{"$f":"IF($C$559=\"\",\"\",AP559/$C$559)","v":""},null,{"$f":"IF($C$559=\"\",\"\",AR559/$C$559)","v":""},null,{"$f":"IF($C$559=\"\",\"\",AT559/$C$559)","v":""},null,{"$f":"IF($C$559=\"\",\"\",AV559/$C$559)","v":""},null,{"$f":"IF($C$559=\"\",\"\",AX559/$C$559)","v":""},null,{"$f":"IF($C$559=\"\",\"\",AZ559/$C$559)","v":""},null,{"$f":"IF($C$559=\"\",\"\",BB559/$C$559)","v":""},null,0]
[null,null,null,null,{"$f":"IF($C$560=\"\",\"\",F560/$C$560)","v":""},null,{"$f":"IF($C$560=\"\",\"\",H560/$C$560)","v":""},null,{"$f":"IF($C$560=\"\",\"\",J560/$C$560)","v":""},null,{"$f":"IF($C$560=\"\",\"\",L560/$C$560)","v":""},null,{"$f":"IF($C$560=\"\",\"\",N560/$C$560)","v":""},null,{"$f":"IF($C$560=\"\",\"\",P560/$C$560)","v":""},null,{"$f":"IF($C$560=\"\",\"\",R560/$C$560)","v":""},null,{"$f":"IF($C$560=\"\",\"\",T560/$C$560)","v":""},null,{"$f":"IF($C$560=\"\",\"\",V560/$C$560)","v":""},null,{"$f":"IF($C$560=\"\",\"\",X560/$C$560)","v":""},null,{"$f":"IF($C$560=\"\",\"\",Z560/$C$560)","v":""},null,{"$f":"IF($C$560=\"\",\"\",AB560/$C$560)","v":""},null,{"$f":"IF($C$560=\"\",\"\",AD560/$C$560)","v":""},null,{"$f":"IF($C$560=\"\",\"\",AF560/$C$560)","v":""},null,{"$f":"IF($C$560=\"\",\"\",AH560/$C$560)","v":""},null,{"$f":"IF($C$560=\"\",\"\",AJ560/$C$560)","v":""},null,{"$f":"IF($C$560=\"\",\"\",AL560/$C$560)","v":""},null,{"$f":"IF($C$560=\"\",\"\",AN560/$C$560)","v":""},null,{"$f":"IF($C$560=\"\",\"\",AP560/$C$560)","v":""},null,{"$f":"IF($C$560=\"\",\"\",AR560/$C$560)","v":""},null,{"$f":"IF($C$560=\"\",\"\",AT560/$C$560)","v":""},null,{"$f":"IF($C$560=\"\",\"\",AV560/$C$560)","v":""},null,{"$f":"IF($C$560=\"\",\"\",AX560/$C$560)","v":""},null,{"$f":"IF($C$560=\"\",\"\",AZ560/$C$560)","v":""},null,{"$f":"IF($C$560=\"\",\"\",BB560/$C$560)","v":""},null,0]
[null,null,null,null,{"$f":"IF($C$561=\"\",\"\",F561/$C$561)","v":""},null,{"$f":"IF($C$561=\"\",\"\",H561/$C$561)","v":""},null,{"$f":"IF($C$561=\"\",\"\",J561/$C$561)","v":""},null,{"$f":"IF($C$561=\"\",\"\",L561/$C$561)","v":""},null,{"$f":"IF($C$561=\"\",\"\",N561/$C$561)","v":""},null,{"$f":"IF($C$561=\"\",\"\",P561/$C$561)","v":""},null,{"$f":"IF($C$561=\"\",\"\",R561/$C$561)","v":""},null,{"$f":"IF($C$561=\"\",\"\",T561/$C$561)","v":""},null,{"$f":"IF($C$561=\"\",\"\",V561/$C$561)","v":""},null,{"$f":"IF($C$561=\"\",\"\",X561/$C$561)","v":""},null,{"$f":"IF($C$561=\"\",\"\",Z561/$C$561)","v":""},null,{"$f":"IF($C$561=\"\",\"\",AB561/$C$561)","v":""},null,{"$f":"IF($C$561=\"\",\"\",AD561/$C$561)","v":""},null,{"$f":"IF($C$561=\"\",\"\",AF561/$C$561)","v":""},null,{"$f":"IF($C$561=\"\",\"\",AH561/$C$561)","v":""},null,{"$f":"IF($C$561=\"\",\"\",AJ561/$C$561)","v":""},null,{"$f":"IF($C$561=\"\",\"\",AL561/$C$561)","v":""},null,{"$f":"IF($C$561=\"\",\"\",AN561/$C$561)","v":""},null,{"$f":"IF($C$561=\"\",\"\",AP561/$C$561)","v":""},null,{"$f":"IF($C$561=\"\",\"\",AR561/$C$561)","v":""},null,{"$f":"IF($C$561=\"\",\"\",AT561/$C$561)","v":""},null,{"$f":"IF($C$561=\"\",\"\",AV561/$C$561)","v":""},null,{"$f":"IF($C$561=\"\",\"\",AX561/$C$561)","v":""},null,{"$f":"IF($C$561=\"\",\"\",AZ561/$C$561)","v":""},null,{"$f":"IF($C$561=\"\",\"\",BB561/$C$561)","v":""},null,0]
[null,null,null,null,{"$f":"IF($C$562=\"\",\"\",F562/$C$562)","v":""},null,{"$f":"IF($C$562=\"\",\"\",H562/$C$562)","v":""},null,{"$f":"IF($C$562=\"\",\"\",J562/$C$562)","v":""},null,{"$f":"IF($C$562=\"\",\"\",L562/$C$562)","v":""},null,{"$f":"IF($C$562=\"\",\"\",N562/$C$562)","v":""},null,{"$f":"IF($C$562=\"\",\"\",P562/$C$562)","v":""},null,{"$f":"IF($C$562=\"\",\"\",R562/$C$562)","v":""},null,{"$f":"IF($C$562=\"\",\"\",T562/$C$562)","v":""},null,{"$f":"IF($C$562=\"\",\"\",V562/$C$562)","v":""},null,{"$f":"IF($C$562=\"\",\"\",X562/$C$562)","v":""},null,{"$f":"IF($C$562=\"\",\"\",Z562/$C$562)","v":""},null,{"$f":"IF($C$562=\"\",\"\",AB562/$C$562)","v":""},null,{"$f":"IF($C$562=\"\",\"\",AD562/$C$562)","v":""},null,{"$f":"IF($C$562=\"\",\"\",AF562/$C$562)","v":""},null,{"$f":"IF($C$562=\"\",\"\",AH562/$C$562)","v":""},null,{"$f":"IF($C$562=\"\",\"\",AJ562/$C$562)","v":""},null,{"$f":"IF($C$562=\"\",\"\",AL562/$C$562)","v":""},null,{"$f":"IF($C$562=\"\",\"\",AN562/$C$562)","v":""},null,{"$f":"IF($C$562=\"\",\"\",AP562/$C$562)","v":""},null,{"$f":"IF($C$562=\"\",\"\",AR562/$C$562)","v":""},null,{"$f":"IF($C$562=\"\",\"\",AT562/$C$562)","v":""},null,{"$f":"IF($C$562=\"\",\"\",AV562/$C$562)","v":""},null,{"$f":"IF($C$562=\"\",\"\",AX562/$C$562)","v":""},null,{"$f":"IF($C$562=\"\",\"\",AZ562/$C$562)","v":""},null,{"$f":"IF($C$562=\"\",\"\",BB562/$C$562)","v":""},null,0]
[null,null,null,null,{"$f":"IF($C$563=\"\",\"\",F563/$C$563)","v":""},null,{"$f":"IF($C$563=\"\",\"\",H563/$C$563)","v":""},null,{"$f":"IF($C$563=\"\",\"\",J563/$C$563)","v":""},null,{"$f":"IF($C$563=\"\",\"\",L563/$C$563)","v":""},null,{"$f":"IF($C$563=\"\",\"\",N563/$C$563)","v":""},null,{"$f":"IF($C$563=\"\",\"\",P563/$C$563)","v":""},null,{"$f":"IF($C$563=\"\",\"\",R563/$C$563)","v":""},null,{"$f":"IF($C$563=\"\",\"\",T563/$C$563)","v":""},null,{"$f":"IF($C$563=\"\",\"\",V563/$C$563)","v":""},null,{"$f":"IF($C$563=\"\",\"\",X563/$C$563)","v":""},null,{"$f":"IF($C$563=\"\",\"\",Z563/$C$563)","v":""},null,{"$f":"IF($C$563=\"\",\"\",AB563/$C$563)","v":""},null,{"$f":"IF($C$563=\"\",\"\",AD563/$C$563)","v":""},null,{"$f":"IF($C$563=\"\",\"\",AF563/$C$563)","v":""},null,{"$f":"IF($C$563=\"\",\"\",AH563/$C$563)","v":""},null,{"$f":"IF($C$563=\"\",\"\",AJ563/$C$563)","v":""},null,{"$f":"IF($C$563=\"\",\"\",AL563/$C$563)","v":""},null,{"$f":"IF($C$563=\"\",\"\",AN563/$C$563)","v":""},null,{"$f":"IF($C$563=\"\",\"\",AP563/$C$563)","v":""},null,{"$f":"IF($C$563=\"\",\"\",AR563/$C$563)","v":""},null,{"$f":"IF($C$563=\"\",\"\",AT563/$C$563)","v":""},null,{"$f":"IF($C$563=\"\",\"\",AV563/$C$563)","v":""},null,{"$f":"IF($C$563=\"\",\"\",AX563/$C$563)","v":""},null,{"$f":"IF($C$563=\"\",\"\",AZ563/$C$563)","v":""},null,{"$f":"IF($C$563=\"\",\"\",BB563/$C$563)","v":""},null,0]
[null,null,null,null,{"$f":"IF($C$564=\"\",\"\",F564/$C$564)","v":""},null,{"$f":"IF($C$564=\"\",\"\",H564/$C$564)","v":""},null,{"$f":"IF($C$564=\"\",\"\",J564/$C$564)","v":""},null,{"$f":"IF($C$564=\"\",\"\",L564/$C$564)","v":""},null,{"$f":"IF($C$564=\"\",\"\",N564/$C$564)","v":""},null,{"$f":"IF($C$564=\"\",\"\",P564/$C$564)","v":""},null,{"$f":"IF($C$564=\"\",\"\",R564/$C$564)","v":""},null,{"$f":"IF($C$564=\"\",\"\",T564/$C$564)","v":""},null,{"$f":"IF($C$564=\"\",\"\",V564/$C$564)","v":""},null,{"$f":"IF($C$564=\"\",\"\",X564/$C$564)","v":""},null,{"$f":"IF($C$564=\"\",\"\",Z564/$C$564)","v":""},null,{"$f":"IF($C$564=\"\",\"\",AB564/$C$564)","v":""},null,{"$f":"IF($C$564=\"\",\"\",AD564/$C$564)","v":""},null,{"$f":"IF($C$564=\"\",\"\",AF564/$C$564)","v":""},null,{"$f":"IF($C$564=\"\",\"\",AH564/$C$564)","v":""},null,{"$f":"IF($C$564=\"\",\"\",AJ564/$C$564)","v":""},null,{"$f":"IF($C$564=\"\",\"\",AL564/$C$564)","v":""},null,{"$f":"IF($C$564=\"\",\"\",AN564/$C$564)","v":""},null,{"$f":"IF($C$564=\"\",\"\",AP564/$C$564)","v":""},null,{"$f":"IF($C$564=\"\",\"\",AR564/$C$564)","v":""},null,{"$f":"IF($C$564=\"\",\"\",AT564/$C$564)","v":""},null,{"$f":"IF($C$564=\"\",\"\",AV564/$C$564)","v":""},null,{"$f":"IF($C$564=\"\",\"\",AX564/$C$564)","v":""},null,{"$f":"IF($C$564=\"\",\"\",AZ564/$C$564)","v":""},null,{"$f":"IF($C$564=\"\",\"\",BB564/$C$564)","v":""},null,0]
[null,null,null,null,{"$f":"IF($C$565=\"\",\"\",F565/$C$565)","v":""},null,{"$f":"IF($C$565=\"\",\"\",H565/$C$565)","v":""},null,{"$f":"IF($C$565=\"\",\"\",J565/$C$565)","v":""},null,{"$f":"IF($C$565=\"\",\"\",L565/$C$565)","v":""},null,{"$f":"IF($C$565=\"\",\"\",N565/$C$565)","v":""},null,{"$f":"IF($C$565=\"\",\"\",P565/$C$565)","v":""},null,{"$f":"IF($C$565=\"\",\"\",R565/$C$565)","v":""},null,{"$f":"IF($C$565=\"\",\"\",T565/$C$565)","v":""},null,{"$f":"IF($C$565=\"\",\"\",V565/$C$565)","v":""},null,{"$f":"IF($C$565=\"\",\"\",X565/$C$565)","v":""},null,{"$f":"IF($C$565=\"\",\"\",Z565/$C$565)","v":""},null,{"$f":"IF($C$565=\"\",\"\",AB565/$C$565)","v":""},null,{"$f":"IF($C$565=\"\",\"\",AD565/$C$565)","v":""},null,{"$f":"IF($C$565=\"\",\"\",AF565/$C$565)","v":""},null,{"$f":"IF($C$565=\"\",\"\",AH565/$C$565)","v":""},null,{"$f":"IF($C$565=\"\",\"\",AJ565/$C$565)","v":""},null,{"$f":"IF($C$565=\"\",\"\",AL565/$C$565)","v":""},null,{"$f":"IF($C$565=\"\",\"\",AN565/$C$565)","v":""},null,{"$f":"IF($C$565=\"\",\"\",AP565/$C$565)","v":""},null,{"$f":"IF($C$565=\"\",\"\",AR565/$C$565)","v":""},null,{"$f":"IF($C$565=\"\",\"\",AT565/$C$565)","v":""},null,{"$f":"IF($C$565=\"\",\"\",AV565/$C$565)","v":""},null,{"$f":"IF($C$565=\"\",\"\",AX565/$C$565)","v":""},null,{"$f":"IF($C$565=\"\",\"\",AZ565/$C$565)","v":""},null,{"$f":"IF($C$565=\"\",\"\",BB565/$C$565)","v":""},null,0]
[null,null,null,null,{"$f":"IF($C$566=\"\",\"\",F566/$C$566)","v":""},null,{"$f":"IF($C$566=\"\",\"\",H566/$C$566)","v":""},null,{"$f":"IF($C$566=\"\",\"\",J566/$C$566)","v":""},null,{"$f":"IF($C$566=\"\",\"\",L566/$C$566)","v":""},null,{"$f":"IF($C$566=\"\",\"\",N566/$C$566)","v":""},null,{"$f":"IF($C$566=\"\",\"\",P566/$C$566)","v":""},null,{"$f":"IF($C$566=\"\",\"\",R566/$C$566)","v":""},null,{"$f":"IF($C$566=\"\",\"\",T566/$C$566)","v":""},null,{"$f":"IF($C$566=\"\",\"\",V566/$C$566)","v":""},null,{"$f":"IF($C$566=\"\",\"\",X566/$C$566)","v":""},null,{"$f":"IF($C$566=\"\",\"\",Z566/$C$566)","v":""},null,{"$f":"IF($C$566=\"\",\"\",AB566/$C$566)","v":""},null,{"$f":"IF($C$566=\"\",\"\",AD566/$C$566)","v":""},null,{"$f":"IF($C$566=\"\",\"\",AF566/$C$566)","v":""},null,{"$f":"IF($C$566=\"\",\"\",AH566/$C$566)","v":""},null,{"$f":"IF($C$566=\"\",\"\",AJ566/$C$566)","v":""},null,{"$f":"IF($C$566=\"\",\"\",AL566/$C$566)","v":""},null,{"$f":"IF($C$566=\"\",\"\",AN566/$C$566)","v":""},null,{"$f":"IF($C$566=\"\",\"\",AP566/$C$566)","v":""},null,{"$f":"IF($C$566=\"\",\"\",AR566/$C$566)","v":""},null,{"$f":"IF($C$566=\"\",\"\",AT566/$C$566)","v":""},null,{"$f":"IF($C$566=\"\",\"\",AV566/$C$566)","v":""},null,{"$f":"IF($C$566=\"\",\"\",AX566/$C$566)","v":""},null,{"$f":"IF($C$566=\"\",\"\",AZ566/$C$566)","v":""},null,{"$f":"IF($C$566=\"\",\"\",BB566/$C$566)","v":""},null,0]
[null,null,null,null,{"$f":"IF($C$567=\"\",\"\",F567/$C$567)","v":""},null,{"$f":"IF($C$567=\"\",\"\",H567/$C$567)","v":""},null,{"$f":"IF($C$567=\"\",\"\",J567/$C$567)","v":""},null,{"$f":"IF($C$567=\"\",\"\",L567/$C$567)","v":""},null,{"$f":"IF($C$567=\"\",\"\",N567/$C$567)","v":""},null,{"$f":"IF($C$567=\"\",\"\",P567/$C$567)","v":""},null,{"$f":"IF($C$567=\"\",\"\",R567/$C$567)","v":""},null,{"$f":"IF($C$567=\"\",\"\",T567/$C$567)","v":""},null,{"$f":"IF($C$567=\"\",\"\",V567/$C$567)","v":""},null,{"$f":"IF($C$567=\"\",\"\",X567/$C$567)","v":""},null,{"$f":"IF($C$567=\"\",\"\",Z567/$C$567)","v":""},null,{"$f":"IF($C$567=\"\",\"\",AB567/$C$567)","v":""},null,{"$f":"IF($C$567=\"\",\"\",AD567/$C$567)","v":""},null,{"$f":"IF($C$567=\"\",\"\",AF567/$C$567)","v":""},null,{"$f":"IF($C$567=\"\",\"\",AH567/$C$567)","v":""},null,{"$f":"IF($C$567=\"\",\"\",AJ567/$C$567)","v":""},null,{"$f":"IF($C$567=\"\",\"\",AL567/$C$567)","v":""},null,{"$f":"IF($C$567=\"\",\"\",AN567/$C$567)","v":""},null,{"$f":"IF($C$567=\"\",\"\",AP567/$C$567)","v":""},null,{"$f":"IF($C$567=\"\",\"\",AR567/$C$567)","v":""},null,{"$f":"IF($C$567=\"\",\"\",AT567/$C$567)","v":""},null,{"$f":"IF($C$567=\"\",\"\",AV567/$C$567)","v":""},null,{"$f":"IF($C$567=\"\",\"\",AX567/$C$567)","v":""},null,{"$f":"IF($C$567=\"\",\"\",AZ567/$C$567)","v":""},null,{"$f":"IF($C$567=\"\",\"\",BB567/$C$567)","v":""},null,0]
[null,null,null,null,{"$f":"IF($C$568=\"\",\"\",F568/$C$568)","v":""},null,{"$f":"IF($C$568=\"\",\"\",H568/$C$568)","v":""},null,{"$f":"IF($C$568=\"\",\"\",J568/$C$568)","v":""},null,{"$f":"IF($C$568=\"\",\"\",L568/$C$568)","v":""},null,{"$f":"IF($C$568=\"\",\"\",N568/$C$568)","v":""},null,{"$f":"IF($C$568=\"\",\"\",P568/$C$568)","v":""},null,{"$f":"IF($C$568=\"\",\"\",R568/$C$568)","v":""},null,{"$f":"IF($C$568=\"\",\"\",T568/$C$568)","v":""},null,{"$f":"IF($C$568=\"\",\"\",V568/$C$568)","v":""},null,{"$f":"IF($C$568=\"\",\"\",X568/$C$568)","v":""},null,{"$f":"IF($C$568=\"\",\"\",Z568/$C$568)","v":""},null,{"$f":"IF($C$568=\"\",\"\",AB568/$C$568)","v":""},null,{"$f":"IF($C$568=\"\",\"\",AD568/$C$568)","v":""},null,{"$f":"IF($C$568=\"\",\"\",AF568/$C$568)","v":""},null,{"$f":"IF($C$568=\"\",\"\",AH568/$C$568)","v":""},null,{"$f":"IF($C$568=\"\",\"\",AJ568/$C$568)","v":""},null,{"$f":"IF($C$568=\"\",\"\",AL568/$C$568)","v":""},null,{"$f":"IF($C$568=\"\",\"\",AN568/$C$568)","v":""},null,{"$f":"IF($C$568=\"\",\"\",AP568/$C$568)","v":""},null,{"$f":"IF($C$568=\"\",\"\",AR568/$C$568)","v":""},null,{"$f":"IF($C$568=\"\",\"\",AT568/$C$568)","v":""},null,{"$f":"IF($C$568=\"\",\"\",AV568/$C$568)","v":""},null,{"$f":"IF($C$568=\"\",\"\",AX568/$C$568)","v":""},null,{"$f":"IF($C$568=\"\",\"\",AZ568/$C$568)","v":""},null,{"$f":"IF($C$568=\"\",\"\",BB568/$C$568)","v":""},null,0]
[null,null,null,null,{"$f":"IF($C$569=\"\",\"\",F569/$C$569)","v":""},null,{"$f":"IF($C$569=\"\",\"\",H569/$C$569)","v":""},null,{"$f":"IF($C$569=\"\",\"\",J569/$C$569)","v":""},null,{"$f":"IF($C$569=\"\",\"\",L569/$C$569)","v":""},null,{"$f":"IF($C$569=\"\",\"\",N569/$C$569)","v":""},null,{"$f":"IF($C$569=\"\",\"\",P569/$C$569)","v":""},null,{"$f":"IF($C$569=\"\",\"\",R569/$C$569)","v":""},null,{"$f":"IF($C$569=\"\",\"\",T569/$C$569)","v":""},null,{"$f":"IF($C$569=\"\",\"\",V569/$C$569)","v":""},null,{"$f":"IF($C$569=\"\",\"\",X569/$C$569)","v":""},null,{"$f":"IF($C$569=\"\",\"\",Z569/$C$569)","v":""},null,{"$f":"IF($C$569=\"\",\"\",AB569/$C$569)","v":""},null,{"$f":"IF($C$569=\"\",\"\",AD569/$C$569)","v":""},null,{"$f":"IF($C$569=\"\",\"\",AF569/$C$569)","v":""},null,{"$f":"IF($C$569=\"\",\"\",AH569/$C$569)","v":""},null,{"$f":"IF($C$569=\"\",\"\",AJ569/$C$569)","v":""},null,{"$f":"IF($C$569=\"\",\"\",AL569/$C$569)","v":""},null,{"$f":"IF($C$569=\"\",\"\",AN569/$C$569)","v":""},null,{"$f":"IF($C$569=\"\",\"\",AP569/$C$569)","v":""},null,{"$f":"IF($C$569=\"\",\"\",AR569/$C$569)","v":""},null,{"$f":"IF($C$569=\"\",\"\",AT569/$C$569)","v":""},null,{"$f":"IF($C$569=\"\",\"\",AV569/$C$569)","v":""},null,{"$f":"IF($C$569=\"\",\"\",AX569/$C$569)","v":""},null,{"$f":"IF($C$569=\"\",\"\",AZ569/$C$569)","v":""},null,{"$f":"IF($C$569=\"\",\"\",BB569/$C$569)","v":""},null,0]
[null,null,null,null,{"$f":"IF($C$570=\"\",\"\",F570/$C$570)","v":""},null,{"$f":"IF($C$570=\"\",\"\",H570/$C$570)","v":""},null,{"$f":"IF($C$570=\"\",\"\",J570/$C$570)","v":""},null,{"$f":"IF($C$570=\"\",\"\",L570/$C$570)","v":""},null,{"$f":"IF($C$570=\"\",\"\",N570/$C$570)","v":""},null,{"$f":"IF($C$570=\"\",\"\",P570/$C$570)","v":""},null,{"$f":"IF($C$570=\"\",\"\",R570/$C$570)","v":""},null,{"$f":"IF($C$570=\"\",\"\",T570/$C$570)","v":""},null,{"$f":"IF($C$570=\"\",\"\",V570/$C$570)","v":""},null,{"$f":"IF($C$570=\"\",\"\",X570/$C$570)","v":""},null,{"$f":"IF($C$570=\"\",\"\",Z570/$C$570)","v":""},null,{"$f":"IF($C$570=\"\",\"\",AB570/$C$570)","v":""},null,{"$f":"IF($C$570=\"\",\"\",AD570/$C$570)","v":""},null,{"$f":"IF($C$570=\"\",\"\",AF570/$C$570)","v":""},null,{"$f":"IF($C$570=\"\",\"\",AH570/$C$570)","v":""},null,{"$f":"IF($C$570=\"\",\"\",AJ570/$C$570)","v":""},null,{"$f":"IF($C$570=\"\",\"\",AL570/$C$570)","v":""},null,{"$f":"IF($C$570=\"\",\"\",AN570/$C$570)","v":""},null,{"$f":"IF($C$570=\"\",\"\",AP570/$C$570)","v":""},null,{"$f":"IF($C$570=\"\",\"\",AR570/$C$570)","v":""},null,{"$f":"IF($C$570=\"\",\"\",AT570/$C$570)","v":""},null,{"$f":"IF($C$570=\"\",\"\",AV570/$C$570)","v":""},null,{"$f":"IF($C$570=\"\",\"\",AX570/$C$570)","v":""},null,{"$f":"IF($C$570=\"\",\"\",AZ570/$C$570)","v":""},null,{"$f":"IF($C$570=\"\",\"\",BB570/$C$570)","v":""},null,0]
[null,null,null,null,{"$f":"IF($C$571=\"\",\"\",F571/$C$571)","v":""},null,{"$f":"IF($C$571=\"\",\"\",H571/$C$571)","v":""},null,{"$f":"IF($C$571=\"\",\"\",J571/$C$571)","v":""},null,{"$f":"IF($C$571=\"\",\"\",L571/$C$571)","v":""},null,{"$f":"IF($C$571=\"\",\"\",N571/$C$571)","v":""},null,{"$f":"IF($C$571=\"\",\"\",P571/$C$571)","v":""},null,{"$f":"IF($C$571=\"\",\"\",R571/$C$571)","v":""},null,{"$f":"IF($C$571=\"\",\"\",T571/$C$571)","v":""},null,{"$f":"IF($C$571=\"\",\"\",V571/$C$571)","v":""},null,{"$f":"IF($C$571=\"\",\"\",X571/$C$571)","v":""},null,{"$f":"IF($C$571=\"\",\"\",Z571/$C$571)","v":""},null,{"$f":"IF($C$571=\"\",\"\",AB571/$C$571)","v":""},null,{"$f":"IF($C$571=\"\",\"\",AD571/$C$571)","v":""},null,{"$f":"IF($C$571=\"\",\"\",AF571/$C$571)","v":""},null,{"$f":"IF($C$571=\"\",\"\",AH571/$C$571)","v":""},null,{"$f":"IF($C$571=\"\",\"\",AJ571/$C$571)","v":""},null,{"$f":"IF($C$571=\"\",\"\",AL571/$C$571)","v":""},null,{"$f":"IF($C$571=\"\",\"\",AN571/$C$571)","v":""},null,{"$f":"IF($C$571=\"\",\"\",AP571/$C$571)","v":""},null,{"$f":"IF($C$571=\"\",\"\",AR571/$C$571)","v":""},null,{"$f":"IF($C$571=\"\",\"\",AT571/$C$571)","v":""},null,{"$f":"IF($C$571=\"\",\"\",AV571/$C$571)","v":""},null,{"$f":"IF($C$571=\"\",\"\",AX571/$C$571)","v":""},null,{"$f":"IF($C$571=\"\",\"\",AZ571/$C$571)","v":""},null,{"$f":"IF($C$571=\"\",\"\",BB571/$C$571)","v":""},null,0]
[null,null,null,null,{"$f":"IF($C$572=\"\",\"\",F572/$C$572)","v":""},null,{"$f":"IF($C$572=\"\",\"\",H572/$C$572)","v":""},null,{"$f":"IF($C$572=\"\",\"\",J572/$C$572)","v":""},null,{"$f":"IF($C$572=\"\",\"\",L572/$C$572)","v":""},null,{"$f":"IF($C$572=\"\",\"\",N572/$C$572)","v":""},null,{"$f":"IF($C$572=\"\",\"\",P572/$C$572)","v":""},null,{"$f":"IF($C$572=\"\",\"\",R572/$C$572)","v":""},null,{"$f":"IF($C$572=\"\",\"\",T572/$C$572)","v":""},null,{"$f":"IF($C$572=\"\",\"\",V572/$C$572)","v":""},null,{"$f":"IF($C$572=\"\",\"\",X572/$C$572)","v":""},null,{"$f":"IF($C$572=\"\",\"\",Z572/$C$572)","v":""},null,{"$f":"IF($C$572=\"\",\"\",AB572/$C$572)","v":""},null,{"$f":"IF($C$572=\"\",\"\",AD572/$C$572)","v":""},null,{"$f":"IF($C$572=\"\",\"\",AF572/$C$572)","v":""},null,{"$f":"IF($C$572=\"\",\"\",AH572/$C$572)","v":""},null,{"$f":"IF($C$572=\"\",\"\",AJ572/$C$572)","v":""},null,{"$f":"IF($C$572=\"\",\"\",AL572/$C$572)","v":""},null,{"$f":"IF($C$572=\"\",\"\",AN572/$C$572)","v":""},null,{"$f":"IF($C$572=\"\",\"\",AP572/$C$572)","v":""},null,{"$f":"IF($C$572=\"\",\"\",AR572/$C$572)","v":""},null,{"$f":"IF($C$572=\"\",\"\",AT572/$C$572)","v":""},null,{"$f":"IF($C$572=\"\",\"\",AV572/$C$572)","v":""},null,{"$f":"IF($C$572=\"\",\"\",AX572/$C$572)","v":""},null,{"$f":"IF($C$572=\"\",\"\",AZ572/$C$572)","v":""},null,{"$f":"IF($C$572=\"\",\"\",BB572/$C$572)","v":""},null,0]
[null,null,null,null,{"$f":"IF($C$573=\"\",\"\",F573/$C$573)","v":""},null,{"$f":"IF($C$573=\"\",\"\",H573/$C$573)","v":""},null,{"$f":"IF($C$573=\"\",\"\",J573/$C$573)","v":""},null,{"$f":"IF($C$573=\"\",\"\",L573/$C$573)","v":""},null,{"$f":"IF($C$573=\"\",\"\",N573/$C$573)","v":""},null,{"$f":"IF($C$573=\"\",\"\",P573/$C$573)","v":""},null,{"$f":"IF($C$573=\"\",\"\",R573/$C$573)","v":""},null,{"$f":"IF($C$573=\"\",\"\",T573/$C$573)","v":""},null,{"$f":"IF($C$573=\"\",\"\",V573/$C$573)","v":""},null,{"$f":"IF($C$573=\"\",\"\",X573/$C$573)","v":""},null,{"$f":"IF($C$573=\"\",\"\",Z573/$C$573)","v":""},null,{"$f":"IF($C$573=\"\",\"\",AB573/$C$573)","v":""},null,{"$f":"IF($C$573=\"\",\"\",AD573/$C$573)","v":""},null,{"$f":"IF($C$573=\"\",\"\",AF573/$C$573)","v":""},null,{"$f":"IF($C$573=\"\",\"\",AH573/$C$573)","v":""},null,{"$f":"IF($C$573=\"\",\"\",AJ573/$C$573)","v":""},null,{"$f":"IF($C$573=\"\",\"\",AL573/$C$573)","v":""},null,{"$f":"IF($C$573=\"\",\"\",AN573/$C$573)","v":""},null,{"$f":"IF($C$573=\"\",\"\",AP573/$C$573)","v":""},null,{"$f":"IF($C$573=\"\",\"\",AR573/$C$573)","v":""},null,{"$f":"IF($C$573=\"\",\"\",AT573/$C$573)","v":""},null,{"$f":"IF($C$573=\"\",\"\",AV573/$C$573)","v":""},null,{"$f":"IF($C$573=\"\",\"\",AX573/$C$573)","v":""},null,{"$f":"IF($C$573=\"\",\"\",AZ573/$C$573)","v":""},null,{"$f":"IF($C$573=\"\",\"\",BB573/$C$573)","v":""},null,0]
[null,null,null,null,{"$f":"IF($C$574=\"\",\"\",F574/$C$574)","v":""},null,{"$f":"IF($C$574=\"\",\"\",H574/$C$574)","v":""},null,{"$f":"IF($C$574=\"\",\"\",J574/$C$574)","v":""},null,{"$f":"IF($C$574=\"\",\"\",L574/$C$574)","v":""},null,{"$f":"IF($C$574=\"\",\"\",N574/$C$574)","v":""},null,{"$f":"IF($C$574=\"\",\"\",P574/$C$574)","v":""},null,{"$f":"IF($C$574=\"\",\"\",R574/$C$574)","v":""},null,{"$f":"IF($C$574=\"\",\"\",T574/$C$574)","v":""},null,{"$f":"IF($C$574=\"\",\"\",V574/$C$574)","v":""},null,{"$f":"IF($C$574=\"\",\"\",X574/$C$574)","v":""},null,{"$f":"IF($C$574=\"\",\"\",Z574/$C$574)","v":""},null,{"$f":"IF($C$574=\"\",\"\",AB574/$C$574)","v":""},null,{"$f":"IF($C$574=\"\",\"\",AD574/$C$574)","v":""},null,{"$f":"IF($C$574=\"\",\"\",AF574/$C$574)","v":""},null,{"$f":"IF($C$574=\"\",\"\",AH574/$C$574)","v":""},null,{"$f":"IF($C$574=\"\",\"\",AJ574/$C$574)","v":""},null,{"$f":"IF($C$574=\"\",\"\",AL574/$C$574)","v":""},null,{"$f":"IF($C$574=\"\",\"\",AN574/$C$574)","v":""},null,{"$f":"IF($C$574=\"\",\"\",AP574/$C$574)","v":""},null,{"$f":"IF($C$574=\"\",\"\",AR574/$C$574)","v":""},null,{"$f":"IF($C$574=\"\",\"\",AT574/$C$574)","v":""},null,{"$f":"IF($C$574=\"\",\"\",AV574/$C$574)","v":""},null,{"$f":"IF($C$574=\"\",\"\",AX574/$C$574)","v":""},null,{"$f":"IF($C$574=\"\",\"\",AZ574/$C$574)","v":""},null,{"$f":"IF($C$574=\"\",\"\",BB574/$C$574)","v":""},null,0]
[null,null,null,null,{"$f":"IF($C$575=\"\",\"\",F575/$C$575)","v":""},null,{"$f":"IF($C$575=\"\",\"\",H575/$C$575)","v":""},null,{"$f":"IF($C$575=\"\",\"\",J575/$C$575)","v":""},null,{"$f":"IF($C$575=\"\",\"\",L575/$C$575)","v":""},null,{"$f":"IF($C$575=\"\",\"\",N575/$C$575)","v":""},null,{"$f":"IF($C$575=\"\",\"\",P575/$C$575)","v":""},null,{"$f":"IF($C$575=\"\",\"\",R575/$C$575)","v":""},null,{"$f":"IF($C$575=\"\",\"\",T575/$C$575)","v":""},null,{"$f":"IF($C$575=\"\",\"\",V575/$C$575)","v":""},null,{"$f":"IF($C$575=\"\",\"\",X575/$C$575)","v":""},null,{"$f":"IF($C$575=\"\",\"\",Z575/$C$575)","v":""},null,{"$f":"IF($C$575=\"\",\"\",AB575/$C$575)","v":""},null,{"$f":"IF($C$575=\"\",\"\",AD575/$C$575)","v":""},null,{"$f":"IF($C$575=\"\",\"\",AF575/$C$575)","v":""},null,{"$f":"IF($C$575=\"\",\"\",AH575/$C$575)","v":""},null,{"$f":"IF($C$575=\"\",\"\",AJ575/$C$575)","v":""},null,{"$f":"IF($C$575=\"\",\"\",AL575/$C$575)","v":""},null,{"$f":"IF($C$575=\"\",\"\",AN575/$C$575)","v":""},null,{"$f":"IF($C$575=\"\",\"\",AP575/$C$575)","v":""},null,{"$f":"IF($C$575=\"\",\"\",AR575/$C$575)","v":""},null,{"$f":"IF($C$575=\"\",\"\",AT575/$C$575)","v":""},null,{"$f":"IF($C$575=\"\",\"\",AV575/$C$575)","v":""},null,{"$f":"IF($C$575=\"\",\"\",AX575/$C$575)","v":""},null,{"$f":"IF($C$575=\"\",\"\",AZ575/$C$575)","v":""},null,{"$f":"IF($C$575=\"\",\"\",BB575/$C$575)","v":""},null,{"$f":"SUM(BB575,AZ575,AX575,AV575,AT575,AR575,AP575,AN575,AL575,AJ575,AH575,AF575,AD575,AB575,Z575,X575,V575,T575,R575,P575,N575,L575,J575,H575,F575)","v":0}]
["TOTAL HOURS",null,null,null,null,{"$f":"SUM(F546:F575)","v":0},null,{"$f":"SUM(H546:H575)","v":0},null,{"$f":"SUM(J546:J575)","v":0},null,{"$f":"SUM(L546:L575)","v":0},null,{"$f":"SUM(N546:N575)","v":0},null,{"$f":"SUM(P546:P575)","v":0},null,{"$f":"SUM(R546:R575)","v":0},null,{"$f":"SUM(T546:T575)","v":0},null,{"$f":"SUM(V546:V575)","v":0},null,{"$f":"SUM(X546:X575)","v":0},null,{"$f":"SUM(Z546:Z575)","v":0},null,{"$f":"SUM(AB546:AB575)","v":0},null,{"$f":"SUM(AD546:AD575)","v":0},null,{"$f":"SUM(AF546:AF575)","v":0},null,{"$f":"SUM(AH546:AH575)","v":0},null,{"$f":"SUM(AJ546:AJ575)","v":0},null,{"$f":"SUM(AL546:AL575)","v":0},null,{"$f":"SUM(AN546:AN575)","v":0},null,{"$f":"SUM(AP546:AP575)","v":0},null,{"$f":"SUM(AR546:AR575)","v":0},null,{"$f":"SUM(AT546:AT575)","v":0},null,{"$f":"SUM(AV546:AV575)","v":0},null,{"$f":"SUM(AX546:AX575)","v":0},null,{"$f":"SUM(AZ546:AZ575)","v":0},null,{"$f":"SUM(BB546:BB575)","v":0},{"$f":"SUM(E576:BB576)","v":0}]
["TOTAL WORKDAYS",null,null,null,null,{"$f":"F576/8","v":0},null,{"$f":"H576/8","v":0},null,{"$f":"J576/8","v":0},null,{"$f":"L576/8","v":0},null,{"$f":"N576/8","v":0},null,{"$f":"P576/8","v":0},null,{"$f":"R576/8","v":0},null,{"$f":"T576/8","v":0},null,{"$f":"V576/8","v":0},null,{"$f":"X576/8","v":0},null,{"$f":"Z576/8","v":0},null,{"$f":"AB576/8","v":0},null,{"$f":"AD576/8","v":0},null,0,null,{"$f":"AH576/8","v":0},null,0,null,{"$f":"AL576/8","v":0},null,0,null,{"$f":"AP576/8","v":0},null,0,null,{"$f":"AT576/8","v":0},null,{"$f":"AV576/8","v":0},null,{"$f":"AX576/8","v":0},null,{"$f":"AZ576/8","v":0},null,{"$f":"BB576/8","v":0},{"$f":"SUM(E577:BB577)","v":0}]
["TOTAL RAW LABOR",null,null,null,null,{"$f":"$E$13*F576","v":0},null,{"$f":"$G$13*H576","v":0},null,{"$f":"$I$13*J576","v":0},null,{"$f":"$K$13*L576","v":0},null,{"$f":"$M$13*N576","v":0},null,{"$f":"$O$13*P576","v":0},null,{"$f":"$Q$13*R576","v":0},null,{"$f":"$S$13*T576","v":0},null,{"$f":"$U$13*V576","v":0},null,{"$f":"$W$13*X576","v":0},null,{"$f":"$Y$13*Z576","v":0},null,{"$f":"$AA$13*AB576","v":0},null,{"$f":"$AC$13*AD576","v":0},null,{"$f":"$AC$13*AF576","v":0},null,{"$f":"$AC$13*AH576","v":0},null,{"$f":"$AC$13*AJ576","v":0},null,{"$f":"$AC$13*AL576","v":0},null,{"$f":"$AC$13*AN576","v":0},null,{"$f":"$AC$13*AP576","v":0},null,{"$f":"$AC$13*AR576","v":0},null,{"$f":"$AC$13*AT576","v":0},null,{"$f":"$AC$13*AV576","v":0},null,{"$f":"$AC$13*AX576","v":0},null,{"$f":"$AC$13*AZ576","v":0},null,{"$f":"$AC$13*BB576","v":0},{"$f":"SUM(E578:BB578)","v":0}]
[]
["TOTAL HOURS",null,null,null,null,{"$f":"SUM(F576,F542,F508,F474,F440,F406,F372,F357,F343,F313,F250,F220,F203,F188,F175,F159,F138,F115,F53,F28)","v":0},null,{"$f":"SUM(H576,H542,H508,H474,H440,H406,H372,H357,H343,H313,H250,H220,H203,H188,H175,H159,H138,H115,H53,H28)","v":0},null,{"$f":"SUM(J576,J542,J508,J474,J440,J406,J372,J357,J343,J313,J250,J220,J203,J188,J175,J159,J138,J115,J53,J28)","v":0},null,{"$f":"SUM(L576,L542,L508,L474,L440,L406,L372,L357,L343,L313,L250,L220,L203,L188,L175,L159,L138,L115,L53,L28)","v":0},null,{"$f":"SUM(N576,N542,N508,N474,N440,N406,N372,N357,N343,N313,N250,N220,N203,N188,N175,N159,N138,N115,N53,N28)","v":0},null,{"$f":"SUM(P576,P542,P508,P474,P440,P406,P372,P357,P343,P313,P250,P220,P203,P188,P175,P159,P138,P115,P53,P28)","v":0},null,{"$f":"SUM(R576,R542,R508,R474,R440,R406,R372,R357,R343,R313,R250,R220,R203,R188,R175,R159,R138,R115,R53,R28)","v":0},null,{"$f":"SUM(T576,T542,T508,T474,T440,T406,T372,T357,T343,T313,T250,T220,T203,T188,T175,T159,T138,T115,T53,T28)","v":0},null,{"$f":"SUM(V576,V542,V508,V474,V440,V406,V372,V357,V343,V313,V250,V220,V203,V188,V175,V159,V138,V115,V53,V28)","v":0},null,{"$f":"SUM(X576,X542,X508,X474,X440,X406,X372,X357,X343,X313,X250,X220,X203,X188,X175,X159,X138,X115,X53,X28)","v":0},null,{"$f":"SUM(Z576,Z542,Z508,Z474,Z440,Z406,Z372,Z357,Z343,Z313,Z250,Z220,Z203,Z188,Z175,Z159,Z138,Z115,Z53,Z28)","v":0},null,{"$f":"SUM(AB576,AB542,AB508,AB474,AB440,AB406,AB372,AB357,AB343,AB313,AB250,AB220,AB203,AB188,AB175,AB159,AB138,AB115,AB53,AB28)","v":0},null,{"$f":"SUM(AD576,AD542,AD508,AD474,AD440,AD406,AD372,AD357,AD343,AD313,AD250,AD220,AD203,AD188,AD175,AD159,AD138,AD115,AD53,AD28)","v":0},null,{"$f":"SUM(AF576,AF542,AF508,AF474,AF440,AF406,AF372,AF357,AF343,AF313,AF250,AF220,AF203,AF188,AF175,AF159,AF138,AF115,AF53,AF28)","v":0},null,{"$f":"SUM(AH576,AH542,AH508,AH474,AH440,AH406,AH372,AH357,AH343,AH313,AH250,AH220,AH203,AH188,AH175,AH159,AH138,AH115,AH53,AH28)","v":0},null,{"$f":"SUM(AJ576,AJ542,AJ508,AJ474,AJ440,AJ406,AJ372,AJ357,AJ343,AJ313,AJ250,AJ220,AJ203,AJ188,AJ175,AJ159,AJ138,AJ115,AJ53,AJ28)","v":0},null,{"$f":"SUM(AL576,AL542,AL508,AL474,AL440,AL406,AL372,AL357,AL343,AL313,AL250,AL220,AL203,AL188,AL175,AL159,AL138,AL115,AL53,AL28)","v":0},null,{"$f":"SUM(AN576,AN542,AN508,AN474,AN440,AN406,AN372,AN357,AN343,AN313,AN250,AN220,AN203,AN188,AN175,AN159,AN138,AN115,AN53,AN28)","v":0},null,{"$f":"SUM(AP576,AP542,AP508,AP474,AP440,AP406,AP372,AP357,AP343,AP313,AP250,AP220,AP203,AP188,AP175,AP159,AP138,AP115,AP53,AP28)","v":0},null,{"$f":"SUM(AR576,AR542,AR508,AR474,AR440,AR406,AR372,AR357,AR343,AR313,AR250,AR220,AR203,AR188,AR175,AR159,AR138,AR115,AR53,AR28)","v":0},null,{"$f":"SUM(AT576,AT542,AT508,AT474,AT440,AT406,AT372,AT357,AT343,AT313,AT250,AT220,AT203,AT188,AT175,AT159,AT138,AT115,AT53,AT28)","v":0},null,{"$f":"SUM(AV576,AV542,AV508,AV474,AV440,AV406,AV372,AV357,AV343,AV313,AV250,AV220,AV203,AV188,AV175,AV159,AV138,AV115,AV53,AV28)","v":0},null,{"$f":"SUM(AX576,AX542,AX508,AX474,AX440,AX406,AX372,AX357,AX343,AX313,AX250,AX220,AX203,AX188,AX175,AX159,AX138,AX115,AX53,AX28)","v":0},null,{"$f":"SUM(AZ576,AZ542,AZ508,AZ474,AZ440,AZ406,AZ372,AZ357,AZ343,AZ313,AZ250,AZ220,AZ203,AZ188,AZ175,AZ159,AZ138,AZ115,AZ53,AZ28)","v":0},null,{"$f":"SUM(BB576,BB542,BB508,BB474,BB440,BB406,BB372,BB357,BB343,BB313,BB250,BB220,BB203,BB188,BB175,BB159,BB138,BB115,BB53,BB28)","v":0},{"$f":"SUM(E580:BB580)","v":0}]
["TOTAL WORKDAYS",null,null,null,null,{"$f":"F580/8","v":0},null,{"$f":"H580/8","v":0},null,{"$f":"J580/8","v":0},null,{"$f":"L580/8","v":0},null,{"$f":"N580/8","v":0},null,{"$f":"P580/8","v":0},null,{"$f":"R580/8","v":0},null,{"$f":"T580/8","v":0},null,{"$f":"V580/8","v":0},null,{"$f":"X580/8","v":0},null,{"$f":"Z580/8","v":0},null,{"$f":"AB580/8","v":0},null,{"$f":"AD580/8","v":0},null,0,null,{"$f":"AH580/8","v":0},null,0,null,{"$f":"AL580/8","v":0},null,0,null,{"$f":"AP580/8","v":0},null,0,null,{"$f":"AT580/8","v":0},null,{"$f":"AV580/8","v":0},null,{"$f":"AX580/8","v":0},null,{"$f":"AZ580/8","v":0},null,{"$f":"BB580/8","v":0},{"$f":"SUM(E581:BB581)","v":0}]
["TOTAL RAW LABOR",null,null,null,null,{"$f":"$E$13*F580","v":0},null,{"$f":"$G$13*H580","v":0},null,{"$f":"$I$13*J580","v":0},null,{"$f":"$K$13*L580","v":0},null,{"$f":"$M$13*N580","v":0},null,{"$f":"$O$13*P580","v":0},null,{"$f":"$Q$13*R580","v":0},null,{"$f":"$S$13*T580","v":0},null,{"$f":"$U$13*V580","v":0},null,{"$f":"$W$13*X580","v":0},null,{"$f":"$Y$13*Z580","v":0},null,{"$f":"$AA$13*AB580","v":0},null,{"$f":"$AC$13*AD580","v":0},null,{"$f":"$AC$13*AF580","v":0},null,{"$f":"$AC$13*AH580","v":0},null,{"$f":"$AC$13*AJ580","v":0},null,{"$f":"$AC$13*AL580","v":0},null,{"$f":"$AC$13*AN580","v":0},null,{"$f":"$AC$13*AP580","v":0},null,{"$f":"$AC$13*AR580","v":0},null,{"$f":"$AC$13*AT580","v":0},null,{"$f":"$AC$13*AV580","v":0},null,{"$f":"$AC$13*AX580","v":0},null,{"$f":"$AC$13*AZ580","v":0},null,{"$f":"$AC$13*BB580","v":0},{"$f":"SUM(E582:BB582)","v":0}]
[]
["Contract Overhead Rate",null,null,{"$f":"MUNICIPAL_SIGNAL_SYSTEM_SUB3_CONSULTANT_OVERHEAD","v":0}]
["Overhead Cost",null,null,null,{"$f":"BC582*D584","v":0}]
["Fee",null,null,{"$f":"MUNICIPAL_SIGNAL_SYSTEM_SUB3_CONSULTANT_FEE","v":0.09},{"$f":"(BC582+E585)*0.09","v":0}]
["FCCM",null,null,{"$f":"MUNICIPAL_SIGNAL_SYSTEM_SUB3_CONSULTANT_COSTofCAPITAL","v":0},{"$f":"BC582*D587","v":0}]
["TOTAL RAW LABOR",null,null,null,{"$f":"BC582+E585+E586+E587","v":0}]
["DIRECT EXPENSES",null,null,null,{"$f":"MUNICIPAL.SIGNAL.SYSTEM_SUB3_DIRECT_NONSALARY_TOTAL","v":0}]
["MUNICIPAL SIGNAL SYSTEM ESTIMATE",null,null,null,{"$f":"SUM(E588:E589)","v":0}]
[]
[]
[]
[]
[]
[{"$f":"CONCATENATE(\"NON-SALARY DIRECT COSTS -   NCDOT (\",A8,\")\")","v":"NON-SALARY DIRECT COSTS -   NCDOT (CONSULTANT NAME)"}]
[]
["Task 1.0","Project Management and Control",null,null,null,null,null,null,null,null,null,null,null,null,null,"Comments "]
["REPRODUCTION"]
[null,"Xerox Copies (8.5\" x 11\" B&W)"]
[null,"Miscellaneous (Project notes, instructions, recordation, documentation,correspondence, misc. meeting minutes, etc.)",null,null,null,null,null,null,null,"Sheets","X",{"$f":"LETTERCOPIES","v":0.14000000000000001},"per Sheet","=",{"$f":"+I601*L601","v":0}]
[1.1000000000000001,"Project Work Plan",null,null,null,null,"copies","X",null,"Sheets","X",{"$f":"LETTERCOPIES","v":0.14000000000000001},"per Sheet","=",{"$f":"+F602*I602*L602","v":0}]
[1.2,"Progress/Status Meeting Minutes",null,"meetings","X",null,"reports","X",null,"Sheets","X",{"$f":"LETTERCOPIES","v":0.14000000000000001},"per Sheet","=",{"$f":"+C603*F603*I603*L603","v":0}]
[1.3,"Project Status Reports  & Invoices",null,"months","X",null,"reports","X",null,"Sheets","X",{"$f":"LETTERCOPIES","v":0.14000000000000001},"per Sheet","=",{"$f":"+C604*F604*I604*L604","v":0}]
[]
[null,"Xerox Copies (11\" x 17\" B&W)"]
[null,"Miscellaneous ",null,null,null,null,null,null,null,"Sheets","X",{"$f":"LEDGERCOPIES","v":0.34},"per Sheet","=",{"$f":"+I607*L607","v":0}]
[1.1000000000000001,"Project Work Plan/Schedule",null,"Months","X",null,"copies","X",null,"Sheets","X",{"$f":"LEDGERCOPIES","v":0.34},"per Sheet","=",{"$f":"+C608*F608*I608*L608","v":0}]
[1.2,"Progress/Status Meeting Minutes",null,null,null,null,"reports","X",null,"Sheets","X",{"$f":"LEDGERCOPIES","v":0.34},"per Sheet","=",{"$f":"+F609*I609*L609","v":0}]
[1.5,"Subconsultant Management and Coordination",null,null,null,null,null,null,null,"Sheets","X",{"$f":"LEDGERCOPIES","v":0.34},"per Sheet","=",{"$f":"+I610*L610","v":0}]
[]
["CAR RENTAL"]
[null," Trips"]
[null,"Kickoff meeting (from )",null,null,null,null,"trips","X",null,"day/Trip","X",{"$f":"CARRENTAL","v":50},"per day","=",{"$f":"+F614*I614*L614","v":0}]
[null,null,null,null,null,null,"trips","X",null,"Miles/Trip","X",{"$f":"GASforRENTAL","v":0.2},"per Mile","=",{"$f":"+F615*I615*L615","v":0}]
[null,"Kickoff meeting (from )",null,null,null,null,"Trips","X",null,"day/Trip","X",{"$f":"CARRENTAL","v":50},"per day","=",0]
[null,null,null,null,null,null,"trips","X",null,"Miles/Trip","X",{"$f":"GASforRENTAL","v":0.2},"per Mile","=",0]
[null,"Project Meetings (from )",null,null,null,null,"Trips","X",null,"day/Trip","X",{"$f":"CARRENTAL","v":50},"per day","=",0]
[null,null,null,null,null,null,"trips","X",null,"Miles/Trip","X",{"$f":"GASforRENTAL","v":0.2},"per Mile","=",0]
[null,"Project Meetings (from )",null,null,null,null,"trips","X",null,"day/Trip","X",{"$f":"CARRENTAL","v":50},"per day","=",0]
[null,null,null,null,null,null,"trips","X",null,"Miles/Trip","X",{"$f":"GASforRENTAL","v":0.2},"per Mile","=",0]
[]
["OVERNIGHT TRAVEL"]
[null,"Hotel - Project Meetings",null,"persons","X",null,"trips","X",null,"nights/trip","X",{"$f":"LODGING_LUMP.SUM","v":95},"per night","=",{"$f":"+C624*F624*I624*L624","v":0}]
[null,"Per Diem - Project Meetings - Breakfast, Lunch, and Dinner",null,"persons","X",null,"trips","X",null,"days/trip","X",{"$f":"BREAKFAST+LUNCH+DINNER","v":46.5},"per day","=",{"$f":"+C625*F625*I625*L625","v":0}]
[null,"Per Diem - Project Meetings - Breakfast",null,"persons","X",null,"trips","X",null,"days/trip","X",{"$f":"BREAKFAST","v":10.1},"per day","=",{"$f":"+C626*F626*I626*L626","v":0}]
[null,"Per Diem - Project Meetings - Lunch",null,"persons","X",null,"trips","X",null,"days/trip","X",{"$f":"LUNCH","v":13.3},"per day","=",0]
[null,"Per Diem - Project Meetings - Dinner",null,"persons","X",null,"trips","X",null,"days/trip","X",{"$f":"DINNER","v":23.1},"per day","=",0]
[]
["OTHER"]
[null,null,null,"UOM","X",null,"UOM","X",null,"UOM","X",null,"UOM","=",{"$f":"+C631*F631*I631*L631","v":0}]
[null,null,null,"UOM","X",null,"UOM","X",null,"UOM","X",null,"UOM","=",0]
[null,null,null,"UOM","X",null,"UOM","X",null,"UOM","X",null,"UOM","=",0]
[null,null,null,"UOM","X",null,"UOM","X",null,"UOM","X",null,"UOM","=",0]
[null,null,null,"UOM","X",null,"UOM","X",null,"UOM","X",null,"UOM","=",0]
[null,{"$f":"CONCATENATE(\"Project Website (\",A8,\" SharePoint)\")","v":"Project Website (CONSULTANT NAME SharePoint)"}]
[null,"Initial Set-up Charge (incl. 1 GB file storage)",null,null,null,null,null,null,null,"Each","X",500,null,"=",{"$f":"+I637*L637","v":0}]
[null,"Monthly Hosting Fee (up to 20 external users)",null,null,null,null,null,null,null,"Months","X",105,"per month","=",{"$f":"+I638*L638","v":0}]
[null,"Additional Gigabit of File Storage",null,null,null,null,null,null,null,"Each","X",15,null,"=",0]
[]
[null,null,null,null,null,null,null,null,null,null,null,null,"Subtotal",null,{"$f":"SUM(O601:O639)","v":0}]
[]
["Task 2.0","Functional Design"]
["REPRODUCTION"]
[null,"Xerox Copies (8.5\" x 11\" B&W)"]
["2.1.1","Exist. Sys Operations & Functionality"]
[null,"Preliminary Tech Memo",null,null,null,null,"Sets","X",null,"Sheets/Set","X",{"$f":"LETTERCOPIES","v":0.14000000000000001},"per Sheet","=",{"$f":"+F647*I647*L647","v":0}]
[null,"Final Tech Memo",null,null,null,null,"Sets","X",null,"Sheets/Set","X",{"$f":"LETTERCOPIES","v":0.14000000000000001},"per Sheet","=",{"$f":"+F648*I648*L648","v":0}]
["2.1.2","Functional Needs & Boundaries"]
[null,"Preliminary Tech Memo",null,null,null,null,"Sets","X",null,"Sheets/Set","X",{"$f":"LETTERCOPIES","v":0.14000000000000001},"per Sheet","=",0]
[null,"Final Tech Memo",null,null,null,null,"Sets","X",null,"Sheets/Set","X",{"$f":"LETTERCOPIES","v":0.14000000000000001},"per Sheet","=",0]
["2.1.3","Concept of Operations"]
[null,"Preliminary Tech Memo",null,null,null,null,"Sets","X",null,"Sheets/Set","X",{"$f":"LETTERCOPIES","v":0.14000000000000001},"per Sheet","=",0]
[null,"Final Tech Memo",null,null,null,null,"Sets","X",null,"Sheets/Set","X",{"$f":"LETTERCOPIES","v":0.14000000000000001},"per Sheet","=",0]
["2.1.4","Regional Architecture Compliance"]
[null,"Preliminary Tech Memo",null,null,null,null,"Sets","X",null,"Sheets/Set","X",{"$f":"LETTERCOPIES","v":0.14000000000000001},"per Sheet","=",0]
[null,"Final Tech Memo",null,null,null,null,"Sets","X",null,"Sheets/Set","X",{"$f":"LETTERCOPIES","v":0.14000000000000001},"per Sheet","=",0]
["2.1.5","Draft Final Systems Engineering Document",null,null,null,null,"Sets","X",null,"Sheets/Set","X",{"$f":"LETTERCOPIES","v":0.14000000000000001},"per Sheet","=",0]
[null,"Binding",null,null,null,null,null,null,null,"sets","X",{"$f":"COVERS+BINDERS","v":1},"per set","=",{"$f":"+I659*L659","v":0}]
["2.1.6","Final Systems Engineering Document",null,null,null,null,"Sets","X",null,"Sheets/Set","X",{"$f":"LETTERCOPIES","v":0.14000000000000001},"per Sheet","=",{"$f":"+F660*I660*L660","v":0}]
[null,"Binding",null,null,null,null,null,null,null,"sets","X",{"$f":"COVERS+BINDERS","v":1},"per set","=",{"$f":"+I661*L661","v":0}]
[null,"Miscellaneous (Corres., etc.)",null,null,null,null,null,null,null,"Sheets","X",{"$f":"LETTERCOPIES","v":0.14000000000000001},"per Sheet","=",{"$f":"+I662*L662","v":0}]
[2.2000000000000002,"System Maintenance & Staffing Plan"]
[null,"Preliminary Tech Memo",null,null,null,null,"Sets","X",null,"Sheets/Set","X",{"$f":"LETTERCOPIES","v":0.14000000000000001},"per Sheet","=",{"$f":"+F664*I664*L664","v":0}]
[null,"Final Tech Memo",null,null,null,null,"Sets","X",null,"Sheets/Set","X",{"$f":"LETTERCOPIES","v":0.14000000000000001},"per Sheet","=",{"$f":"+F665*I665*L665","v":0}]
[2.2999999999999998,"Municipal Building Modifications"]
[null,"Preliminary Tech Memo",null,null,null,null,"Sets","X",null,"Sheets/Set","X",{"$f":"LETTERCOPIES","v":0.14000000000000001},"per Sheet","=",{"$f":"+F667*I667*L667","v":0}]
[null,"Final Tech Memo",null,null,null,null,"Sets","X",null,"Sheets/Set","X",{"$f":"LETTERCOPIES","v":0.14000000000000001},"per Sheet","=",0]
[2.4,"TMC Modifications"]
[null,"Preliminary Tech Memo",null,null,null,null,"Sets","X",null,"Sheets/Set","X",{"$f":"LETTERCOPIES","v":0.14000000000000001},"per Sheet","=",0]
[null,"Final Tech Memo",null,null,null,null,"Sets","X",null,"Sheets/Set","X",{"$f":"LETTERCOPIES","v":0.14000000000000001},"per Sheet","=",0]
[]
[null,"Xerox Copies (11\" x 17\" B&W)"]
[2.1,"Plans and Exhibits - Black/White",null,null,null,null,"Sets","X",null,"Sheets/Set","X",{"$f":"LEDGERCOPIES","v":0.34},"per Sheet","=",0]
[null,"Miscellaneous Check Plots",null,null,null,null,null,null,null,"Sheets","X",{"$f":"LEDGERCOPIES","v":0.34},"per Sheet","=",{"$f":"+I675*L675","v":0}]
[]
[null,"Xerox Copies (8.5\" x 11\" Color)"]
[null,"Plans and Exhibits - Color"]
["2.1.1","Exist. Sys Operations & Functionality"]
[null,"Preliminary Tech Memo",null,null,null,null,"Sets","X",null,"Sheets/Set","X",{"$f":"LETTERCOLOR","v":0.83},"per Sheet","=",{"$f":"+F680*I680*L680","v":0}]
[null,"Final Tech Memo",null,null,null,null,"Sets","X",null,"Sheets/Set","X",{"$f":"LETTERCOLOR","v":0.83},"per Sheet","=",{"$f":"+F681*I681*L681","v":0}]
["2.1.2","Functional Needs & Boundaries"]
[null,"Preliminary Tech Memo",null,null,null,null,"Sets","X",null,"Sheets/Set","X",{"$f":"LETTERCOLOR","v":0.83},"per Sheet","=",0]
[null,"Final Tech Memo",null,null,null,null,"Sets","X",null,"Sheets/Set","X",{"$f":"LETTERCOLOR","v":0.83},"per Sheet","=",0]
["2.1.3","Concept of Operations"]
[null,"Preliminary Tech Memo",null,null,null,null,"Sets","X",null,"Sheets/Set","X",{"$f":"LETTERCOLOR","v":0.83},"per Sheet","=",0]
[null,"Final Tech Memo",null,null,null,null,"Sets","X",null,"Sheets/Set","X",{"$f":"LETTERCOLOR","v":0.83},"per Sheet","=",0]
["2.1.4","Regional Architecture Compliance"]
[null,"Preliminary Tech Memo",null,null,null,null,"Sets","X",null,"Sheets/Set","X",{"$f":"LETTERCOLOR","v":0.83},"per Sheet","=",0]
[null,"Final Tech Memo",null,null,null,null,"Sets","X",null,"Sheets/Set","X",{"$f":"LETTERCOLOR","v":0.83},"per Sheet","=",0]
["2.1.5","Draft Final Systems Engineering Document",null,null,null,null,"Sets","X",null,"Sheets/Set","X",{"$f":"LETTERCOLOR","v":0.83},"per Sheet","=",0]
["2.1.6","Final Systems Engineering Document",null,null,null,null,"Sets","X",null,"Sheets/Set","X",{"$f":"LETTERCOLOR","v":0.83},"per Sheet","=",0]
[2.2000000000000002,"System Maintenance & Staffing Plan"]
[null,"Preliminary Tech Memo",null,null,null,null,"Sets","X",null,"Sheets/Set","X",{"$f":"LETTERCOLOR","v":0.83},"per Sheet","=",0]
[null,"Final Tech Memo",null,null,null,null,"Sets","X",null,"Sheets/Set","X",{"$f":"LETTERCOLOR","v":0.83},"per Sheet","=",0]
[2.2999999999999998,"Municipal Building Modifications"]
[null,"Preliminary Tech Memo",null,null,null,null,"Sets","X",null,"Sheets/Set","X",{"$f":"LETTERCOLOR","v":0.83},"per Sheet","=",0]
[null,"Final Tech Memo",null,null,null,null,"Sets","X",null,"Sheets/Set","X",{"$f":"LETTERCOLOR","v":0.83},"per Sheet","=",0]
[2.4,"TMC Modifications"]
[null,"Preliminary Tech Memo",null,null,null,null,"Sets","X",null,"Sheets/Set","X",{"$f":"LETTERCOLOR","v":0.83},"per Sheet","=",0]
[null,"Final Tech Memo",null,null,null,null,"Sets","X",null,"Sheets/Set","X",{"$f":"LETTERCOLOR","v":0.83},"per Sheet","=",0]
[]
[null,"Miscellaneous Check Plots",null,null,null,null,null,null,null,"Sheets","X",{"$f":"LETTERCOLOR","v":0.83},"per Sheet","=",{"$f":"+I703*L703","v":0}]
[]
[null,"Xerox Copies (11\" x 17\" Color)",null,null,null,null,null,null," "]
[null,"Plans and Exhibits - Color"]
["2.1.1","Exist. Sys Operations & Functionality"]
[null,"Preliminary Tech Memo",null,null,null,null,"Sets","X",null,"Sheets/Set","X",{"$f":"ROLLPLOTSlong","v":1.5},"per Sheet","=",{"$f":"+F708*I708*L708","v":0}]
[null,"Final Tech Memo",null,null,null,null,"Sets","X",null,"Sheets/Set","X",{"$f":"ROLLPLOTSlong","v":1.5},"per Sheet","=",{"$f":"+F709*I709*L709","v":0}]
["2.1.2","Functional Needs & Boundaries"]
[null,"Preliminary Tech Memo",null,null,null,null,"Sets","X",null,"Sheets/Set","X",{"$f":"ROLLPLOTSlong","v":1.5},"per Sheet","=",0]
[null,"Final Tech Memo",null,null,null,null,"Sets","X",null,"Sheets/Set","X",{"$f":"ROLLPLOTSlong","v":1.5},"per Sheet","=",0]
["2.1.3","Concept of Operations"]
[null,"Preliminary Tech Memo",null,null,null,null,"Sets","X",null,"Sheets/Set","X",{"$f":"ROLLPLOTSlong","v":1.5},"per Sheet","=",0]
[null,"Final Tech Memo",null,null,null,null,"Sets","X",null,"Sheets/Set","X",{"$f":"ROLLPLOTSlong","v":1.5},"per Sheet","=",0]
["2.1.4","Regional Architecture Compliance"]
[null,"Preliminary Tech Memo",null,null,null,null,"Sets","X",null,"Sheets/Set","X",{"$f":"ROLLPLOTSlong","v":1.5},"per Sheet","=",0]
[null,"Final Tech Memo",null,null,null,null,"Sets","X",null,"Sheets/Set","X",{"$f":"ROLLPLOTSlong","v":1.5},"per Sheet","=",0]
["2.1.5","Draft Final Systems Engineering Document",null,null,null,null,"Sets","X",null,"Sheets/Set","X",{"$f":"ROLLPLOTSlong","v":1.5},"per Sheet","=",0]
["2.1.6","Final Systems Engineering Document",null,null,null,null,"Sets","X",null,"Sheets/Set","X",{"$f":"ROLLPLOTSlong","v":1.5},"per Sheet","=",0]
[2.2000000000000002,"System Maintenance & Staffing Plan"]
[null,"Preliminary Tech Memo",null,null,null,null,"Sets","X",null,"Sheets/Set","X",{"$f":"ROLLPLOTSlong","v":1.5},"per Sheet","=",0]
[null,"Final Tech Memo",null,null,null,null,"Sets","X",null,"Sheets/Set","X",{"$f":"ROLLPLOTSlong","v":1.5},"per Sheet","=",0]
[2.2999999999999998,"Municipal Building Modifications"]
[null,"Preliminary Tech Memo",null,null,null,null,"Sets","X",null,"Sheets/Set","X",{"$f":"ROLLPLOTSlong","v":1.5},"per Sheet","=",0]
[null,"Final Tech Memo",null,null,null,null,"Sets","X",null,"Sheets/Set","X",{"$f":"ROLLPLOTSlong","v":1.5},"per Sheet","=",0]
[2.4,"TMC Modifications"]
[null,"Preliminary Tech Memo",null,null,null,null,"Sets","X",null,"Sheets/Set","X",{"$f":"ROLLPLOTSlong","v":1.5},"per Sheet","=",0]
[null,"Final Tech Memo",null,null,null,null,"Sets","X",null,"Sheets/Set","X",{"$f":"ROLLPLOTSlong","v":1.5},"per Sheet","=",0]
[]
[null,"Miscellaneous Check Plots",null,null,null,null,null,null,null,"Sheets","X",{"$f":"ROLLPLOTSlong","v":1.5},"per Sheet","=",{"$f":"+I731*L731","v":0}]
[]
["MILEAGE"]
[null," Trips"]
["2.3 & 2.4","Field investigate Muncipal Bldg and TMC",null,null,null,null,"Trips","X",null,"day/Trip","X",{"$f":"CARRENTAL","v":50},"per day","=",{"$f":"+F735*I735*L735","v":0}]
[null,null,null,null,null,null,"Trips","X",null,"Miles/Trip","X",{"$f":"GASforRENTAL","v":0.2},"per Mile","=",{"$f":"+F736*I736*L736","v":0}]
[null," Trips ",null,null,null,null,"Trips","X",null,"Miles/Trip","X",{"$f":"SEDAN","v":0.7},"per Mile","=",0]
[]
["OTHER"]
[null,"Postage & Courier",null,null,null,null,"Pack.","X",25,"Ea",null,null,null,"=",{"$f":"+F740*I740","v":0}]
[null,null,null,"UOM","X",null,"UOM","X",null,"UOM","X",null,"UOM","=",{"$f":"+C741*F741*I741*L741","v":0}]
[null,null,null,"UOM","X",null,"UOM","X",null,"UOM","X",null,"UOM","=",0]
[null,null,null,"UOM","X",null,"UOM","X",null,"UOM","X",null,"UOM","=",0]
[null,null,null,"UOM","X",null,"UOM","X",null,"UOM","X",null,"UOM","=",0]
[null,null,null,"UOM","X",null,"UOM","X",null,"UOM","X",null,"UOM","=",0]
[]
[null,null,null,null,null,null,null,null,null,null,null,null,"Subtotal",null,{"$f":"SUM(O646:O746)","v":0}]
["Task 3.0","Programmatic Categorical Exclusion & Supporting Tasks"]
["REPRODUCTION"]
[null,"Xerox Copies (8.5\" x 11\" B&W)"]
[null,"PCE Document",null,"submittals","X",null,"Sets","X",null,"Sheets","X",{"$f":"LETTERCOPIES","v":0.14000000000000001},"per Sheet","=",{"$f":"+C751*F751*I751*L751","v":0}]
[null,"Miscellaneous",null,null,null,null,null,null,null,"Sheets","X",{"$f":"LETTERCOPIES","v":0.14000000000000001},"per Sheet","=",{"$f":"+I752*L752","v":0}]
[]
[null,"Xerox Copies (8.5\" x 11\" Color)"]
[null,"Overview Map & Inset Maps",null,"submittals","X",null,"sets","X",null,"Sheets","X",{"$f":"LETTERCOLOR","v":0.83},"per Sheet","=",{"$f":"+C755*F755*I755*L755","v":0}]
[null,"Miscellaneous ",null,null,null,null,null,null,null,"Sheets","X",{"$f":"LETTERCOLOR","v":0.83},"per Sheet","=",{"$f":"+I756*L756","v":0}]
[]
[null,"Xerox Copies (11\" x 17\" B&W)"]
[null,"Tabular Summaries of Work",null,"submittals","X",null,"Sets","X",null,"Sheets/Set","X",{"$f":"LEDGERCOPIES","v":0.34},"per Sheet","=",{"$f":"+C759*F759*I759*L759","v":0}]
[null,"Miscellaneous Check Plots",null,null,null,null,null,null,null,"Sheets","X",{"$f":"LEDGERCOPIES","v":0.34},"per Sheet","=",{"$f":"+I760*L760","v":0}]
[]
[null,"Xerox Copies (11\" x 17\" Color)"]
[null,"Inset Maps",null,"submittals","X",null,"Sets","X",null,"Sheets/Set","X",{"$f":"ROLLPLOTSlong","v":1.5},"per Sheet","=",{"$f":"+C763*F763*I763*L763","v":0}]
[null,"Miscellaneous Check Plots",null,null,null,null,null,null,null,"Sheets","X",{"$f":"ROLLPLOTSlong","v":1.5},"per Sheet","=",{"$f":"+I764*L764","v":0}]
[]
[null,"Bond Prints - Color (34\" x 68\")"]
[null,"Overview Map",null,"submittals","X",null,"Sets","X",null,"Sheets/Set","X",{"$f":"BOND.LARGE","v":3.5},"per Sheet","=",{"$f":"+C767*F767*I767*L767","v":0}]
[]
["MILEAGE"]
[null," Trips  ( From )",null,null,null,null,"Trips","X",null,"Miles/Trip","X",{"$f":"SEDAN","v":0.7},"per Mile","=",{"$f":"+F770*I770*L770","v":0}]
[null," Trips"]
[null,"( From )",null,null,null,null,"Trips","X",null,"Miles/Trip","X",{"$f":"SEDAN","v":0.7},"per Mile","=",{"$f":"+F772*I772*L772","v":0}]
[null,"( From )",null,null,null,null,"Trips","X",null,"Miles/Trip","X",{"$f":"SEDAN","v":0.7},"per Mile","=",0]
[]
["OVERNIGHT TRAVEL"]
[null,"Hotel - from ",null,"persons","X",null,"trips","X",null,"nights/trip","X",{"$f":"LODGING_LUMP.SUM","v":95},"per night","=",{"$f":"+C776*F776*I776*L776","v":0}]
[null,"Per Diem -  staff - Breakfast, Lunch, & Dinner",null,"persons","X",null,"trips","X",null,"days/trip","X",{"$f":"BREAKFAST+LUNCH+DINNER","v":46.5},"per day","=",0]
[null,"Per Diem -  staff - Breakfast ",null,"persons","X",null,"trips","X",null,"days/trip","X",{"$f":"BREAKFAST","v":10.1},"per day","=",0]
[null,"Per Diem -  staff - Lunch",null,"persons","X",null,"trips","X",null,"days/trip","X",{"$f":"LUNCH","v":13.3},"per day","=",0]
[null,"Per Diem -  staff -  Dinner",null,"persons","X",null,"trips","X",null,"days/trip","X",{"$f":"DINNER","v":23.1},"per day","=",0]
[]
["OTHER"]
[null,null,null,"UOM","X",null,"UOM","X",null,"UOM","X",null,"UOM","=",{"$f":"+C783*F783*I783*L783","v":0}]
[null,null,null,"UOM","X",null,"UOM","X",null,"UOM","X",null,"UOM","=",0]
[null,null,null,"UOM","X",null,"UOM","X",null,"UOM","X",null,"UOM","=",0]
[null,null,null,"UOM","X",null,"UOM","X",null,"UOM","X",null,"UOM","=",0]
[null,null,null,"UOM","X",null,"UOM","X",null,"UOM","X",null,"UOM","=",0]
[]
[null,null,null,null,null,null,null,null,null,null,null,null,"Subtotal",null,{"$f":"SUM(O751:O780)","v":0}]
["Task 4.0","Communications System"]
["REPRODUCTION"]
[null,"Xerox Copies (8.5\" x 11\" B&W)"]
[null,"Communications Technical Memo",null,"submittals","X",null,"Sets","X",null,"Sheets","X",{"$f":"LETTERCOPIES","v":0.14000000000000001},"per Sheet","=",{"$f":"+C793*F793*I793*L793","v":0}]
[null,"Miscellaneous",null,null,null,null,null,null,null,"Sheets","X",{"$f":"LETTERCOPIES","v":0.14000000000000001},"per Sheet","=",{"$f":"+I794*L794","v":0}]
[]
[null,"Xerox Copies (11\" x 17\" B&W)"]
[null,"Block Diagrams",null,"submittals","X",null,"Sets","X",null,"Sheets/Set","X",{"$f":"LEDGERCOPIES","v":0.34},"per Sheet","=",{"$f":"+C797*F797*I797*L797","v":0}]
[null,"Miscellaneous",null,null,null,null,null,null,null,"Sheets/Set","X",{"$f":"LEDGERCOPIES","v":0.34},"per Sheet","=",{"$f":"+I798*L798","v":0}]
[]
[null,"Xerox Copies (8.5\" x 11\" Color)"]
[null,"Communications Technical Memo",null,"submittals","X",null,"Sets","X",null,"Sheets","X",{"$f":"LETTERCOLOR","v":0.83},"per Sheet","=",{"$f":"+C801*F801*I801*L801","v":0}]
[null,"Miscellaneous",null,null,null,null,null,null,null,"Sheets","X",{"$f":"LETTERCOLOR","v":0.83},"per Sheet","=",{"$f":"+I802*L802","v":0}]
[]
[null,"Xerox Copies (11\" x 17\" Color)"]
[null,"tech memo  - Color",null,null,null,null,"Sets","X",null,"Sheets/Set","X",{"$f":"ROLLPLOTSlong","v":1.5},"per Sheet","=",{"$f":"+F805*I805*L805","v":0}]
[]
[null,"Bond Prints (34\" x 68\")"]
[null,"Preliminary Comm Route Plan - Color",null,"submittals","X",null,"Sets","X",null,"Sheets/Set","X",{"$f":"BOND.LARGE","v":3.5},"per Sheet","=",{"$f":"+C808*F808*I808*L808","v":0}]
["CAR RENTAL"]
[null," Trips"]
[null,"Wireless Testing",null,null,null,null,"Trips","X",null,"day/Trip","X",{"$f":"CARRENTAL","v":50},"per day","=",{"$f":"+F811*I811*L811","v":0}]
[null,null,null,null,null,null,"trips","X",null,"Miles/Trip","X",{"$f":"GASforRENTAL","v":0.2},"per Mile","=",0]
["OVERNIGHT TRAVEL"]
[null,"Hotel - wireless testing",null,"persons","X",null,"trips","X",null,"nights/trip","X",{"$f":"LODGING_LUMP.SUM","v":95},"per night","=",{"$f":"+C814*F814*I814*L814","v":0}]
[null,"Per Diem - wireless testing - Breakfast, Lunch, and Dinner",null,"persons","X",null,"trips","X",null,"days/trip","X",{"$f":"BREAKFAST+LUNCH+DINNER","v":46.5},"per day","=",0]
[null,"Per Diem - wireless testing - Breakfast",null,"persons","X",null,"trips","X",null,"days/trip","X",{"$f":"BREAKFAST","v":10.1},"per day","=",0]
[null,"Per Diem - wireless testing - Lunch",null,"persons","X",null,"trips","X",null,"days/trip","X",{"$f":"LUNCH","v":13.3},"per day","=",0]
[null,"Per Diem - wireless testing - Dinner",null,"persons","X",null,"trips","X",null,"days/trip","X",{"$f":"DINNER","v":23.1},"per day","=",0]
[]
["OTHER"]
[null,"Postage & Courier",null,null,null,null,"Pack.","X",25,"Ea",null,null,null,"=",{"$f":"+F821*I821","v":0}]
[null,null,null,"UOM","X",null,"UOM","X",null,"UOM","X",null,"UOM","=",{"$f":"+C822*F822*I822*L822","v":0}]
[null,null,null,"UOM","X",null,"UOM","X",null,"UOM","X",null,"UOM","=",0]
[null,null,null,"UOM","X",null,"UOM","X",null,"UOM","X",null,"UOM","=",0]
[null,null,null,"UOM","X",null,"UOM","X",null,"UOM","X",null,"UOM","=",0]
[null,null,null,"UOM","X",null,"UOM","X",null,"UOM","X",null,"UOM","=",0]
[]
[null,null,null,null,null,null,null,null,null,null,null,null,"Subtotal",null,{"$f":"SUM(O793:O826)","v":0}]
["Task 5.0","Field Equipment Inventories"]
["REPRODUCTION"]
[null,"Xerox Copies (8.5\" x 11\" B&W)"]
["5.2.1","State Inventory Sheets",null,null,null,null,"sheets","X",null,"intersection","X",{"$f":"LETTERCOPIES","v":0.14000000000000001},"per Sheet","=",{"$f":"+F832*I832*L832","v":0}]
["5.2.2","City Inventory Sheets",null,null,null,null,"sheet","X",null,"intersection","X",{"$f":"LETTERCOPIES","v":0.14000000000000001},"per Sheet","=",{"$f":"+F833*I833*L833","v":0}]
[5.4,"Inventory CCTV Cabinets",null,null,null,null,"sheets","X",null,"cameras","X",{"$f":"LETTERCOPIES","v":0.14000000000000001},"per Sheet","=",0]
[null,"Miscellaneous",null,null,null,null,null,null,null,"Sheets","X",{"$f":"LETTERCOPIES","v":0.14000000000000001},"per Sheet","=",{"$f":"+I835*L835","v":0}]
[null,"Xerox Copies (11\" x 17\" B&W)"]
[5.2,"Signal Plans (NCDOT)",null,null,null,null,"Sets","X",null,"Sheets/Set","X",{"$f":"LEDGERCOPIES","v":0.34},"per Sheet","=",{"$f":"+F837*I837*L837","v":0}]
[5.2,"Signal Plans (CITY)",null,null,null,null,"Sets","X",null,"Sheets/Set","X",{"$f":"LEDGERCOPIES","v":0.34},"per Sheet","=",0]
[null,"Miscellaneous",null,null,null,null,null,null,null,"Sheets/Set","X",{"$f":"LEDGERCOPIES","v":0.34},"per Sheet","=",{"$f":"+I839*L839","v":0}]
[]
["CAR RENTAL"]
[null," Trips"]
[null,"Signals Data Collection Field Trips",null,null,null,null,"Trips","X",null,"day/Trip","X",{"$f":"CARRENTAL","v":50},"per day","=",{"$f":"+F843*I843*L843","v":0}]
[null,null,null,null,null,null,"trips","X",null,"Miles/Trip","X",{"$f":"GASforRENTAL","v":0.2},"per Mile","=",0]
[null,"CCTV Cabinet Inventory Field Trips",null,null,null,null,"Trips","X",null,"day/Trip","X",{"$f":"CARRENTAL","v":50},"per day","=",0]
[null,null,null,null,null,null,"trips","X",null,"Miles/Trip","X",{"$f":"GASforRENTAL","v":0.2},"per Mile","=",0]
[]
["OVERNIGHT TRAVEL"]
[null,"Hotel - signal inventories",null,"persons","X",null,"trips","X",null,"nights/trip","X",{"$f":"LODGING_LUMP.SUM","v":95},"per night","=",{"$f":"+C849*F849*I849*L849","v":0}]
[null,"Hotel - CCTV inventories",null,"person","X",null,"trips","X",null,"nights/trip","X",{"$f":"LODGING_LUMP.SUM","v":95},"per night","=",0]
[null,"Per Diem - Signal inventories - Breakfast, Lunch, & Dinner",null,"persons","X",null,"trips","X",null,"days/trip","X",{"$f":"BREAKFAST+LUNCH+DINNER","v":46.5},"per day","=",0]
[null,"Per Diem - Signal inventories - Breakfast ",null,"persons","X",null,"trips","X",null,"days/trip","X",{"$f":"BREAKFAST","v":10.1},"per day","=",0]
[null,"Per Diem - Signal inventories - Lunch",null,"persons","X",null,"trips","X",null,"days/trip","X",{"$f":"LUNCH","v":13.3},"per day","=",0]
[null,"Per Diem - Signal inventories - Dinner",null,"persons","X",null,"trips","X",null,"days/trip","X",{"$f":"DINNER","v":23.1},"per day","=",0]
[null,"Per Diem - CCTV inventories - Breakfast, Lunch, & Dinner",null,"person","X",null,"trips","X",null,"days/trip","X",{"$f":"BREAKFAST+LUNCH+DINNER","v":46.5},"per day","=",0]
[null,"Per Diem - CCTV inventories - Breakfast",null,"person","X",null,"trips","X",null,"days/trip","X",{"$f":"BREAKFAST","v":10.1},"per day","=",0]
[null,"Per Diem - CCTV inventories - Lunch",null,"person","X",null,"trips","X",null,"days/trip","X",{"$f":"LUNCH","v":13.3},"per day","=",0]
[null,"Per Diem - CCTV inventories - Dinner",null,"person","X",null,"trips","X",null,"days/trip","X",{"$f":"DINNER","v":23.1},"per day","=",0]
[]
["OTHER"]
[null,null,null,"UOM","X",null,"UOM","X",null,"UOM","X",null,"UOM","=",{"$f":"+C861*F861*I861*L861","v":0}]
[null,null,null,"UOM","X",null,"UOM","X",null,"UOM","X",null,"UOM","=",0]
[null,null,null,"UOM","X",null,"UOM","X",null,"UOM","X",null,"UOM","=",0]
[null,null,null,"UOM","X",null,"UOM","X",null,"UOM","X",null,"UOM","=",0]
[null,null,null,"UOM","X",null,"UOM","X",null,"UOM","X",null,"UOM","=",0]
[]
[]
[null,null,null,null,null,null,null,null,null,null,null,null,"Subtotal",null,{"$f":"SUM(O832:O865)","v":0}]
["Task 6.0","CCTV Monitoring System"]
["REPRODUCTION"]
[null,"Xerox Copies (8.5\" x 11\") - B&W"]
[6.1,"Recommended Bucket Truck Survey Locations",null,"submittals","X",null,"Sets","X",null,"Sheets/Set","X",{"$f":"LETTERCOPIES","v":0.14000000000000001},"per Sheet","=",{"$f":"+C872*F872*I872*L872","v":0}]
[6.3,"Site Survey Compilation & Analysis Tech Memo",null,"submittals","X",null,"Sets","X",null,"Sheets/Set","X",{"$f":"LETTERCOPIES","v":0.14000000000000001},"per Sheet","=",0]
[6.4,"CCTV Site Study Technical Memo",null,"submittals","X",null,"Sets","X",null,"Sheets/Set","X",{"$f":"LETTERCOPIES","v":0.14000000000000001},"per Sheet","=",0]
[null,"Miscellaneous ",null,null,null,null,null,null,null,"Sheets","X",{"$f":"LETTERCOPIES","v":0.14000000000000001},"per Sheet","=",{"$f":"+I875*L875","v":0}]
[]
[null,"Xerox Copies (8.5\" x 11\") - Color"]
[6.1,"Recommended Bucket Truck Survey Locations",null,"submittals","X",null,"Sets","X",null,"Sheets/Set","X",{"$f":"LETTERCOLOR","v":0.83},"per Sheet","=",{"$f":"+C878*F878*I878*L878","v":0}]
[6.3,"Site Survey Compilation & Analysis Tech Memo",null,"submittals","X",null,"Sets","X",null,"Sheets/Set","X",{"$f":"LETTERCOLOR","v":0.83},"per Sheet","=",0]
[6.4,"CCTV Site Study Technical Memo",null,"submittals","X",null,"Sets","X",null,"Sheets/Set","X",{"$f":"LETTERCOLOR","v":0.83},"per Sheet","=",0]
[null,"Miscellaneous ",null,null,null,null,null,null,null,"Sheets","X",{"$f":"LETTERCOLOR","v":0.83},"per Sheet","=",{"$f":"+I881*L881","v":0}]
[]
[null,"Bond Prints (22\" x 34\")"]
[null,"Miscellaneous",null,null,null,null,null,null,null,"Sheets/Set","X",{"$f":"BOND.REGULAR","v":0.42},"per Sheet","=",{"$f":"+I884*L884","v":0}]
[]
["CAR RENTAL"]
[null," Trips"]
[null,"initial scouting + bucket truck surveys",null,null,null,null,"trips","X",null,"day/Trip","X",{"$f":"CARRENTAL","v":50},"per day","=",{"$f":"+F888*I888*L888","v":0}]
[]
[null,"Roundtrip  to",null,null,null,null,"trips","X",null,"Miles/Trip","X",{"$f":"GASforRENTAL","v":0.2},"per Mile","=",{"$f":"+F890*I890*L890","v":0}]
[null,"Roundtrip  to",null,null,null,null,"trips","X",null,"Miles/Trip","X",{"$f":"GASforRENTAL","v":0.2},"per Mile","=",0]
[null,"Local Travel in ",null,null,null,null,"days","X",null,"Miles/Day","X",{"$f":"GASforRENTAL","v":0.2},"per Mile","=",0]
["OVERNIGHT TRAVEL"]
[null,"Hotel",null,"person","X",null,"trips","X",null,"nights/trip","X",{"$f":"LODGING_LUMP.SUM","v":95},"per night","=",{"$f":"+C894*F894*I894*L894","v":0}]
[null,"Per Diem - Breakfast, Lunch, & Dinner",null,"person","X",null,"trips","X",null,"days/trip","X",{"$f":"BREAKFAST+LUNCH+DINNER","v":46.5},"per day","=",0]
[null,"Per Diem - Breakfast",null,"person","X",null,"trips","X",null,"days/trip","X",{"$f":"BREAKFAST","v":10.1},"per day","=",0]
[null,"Per Diem - Lunch",null,"person","X",null,"trips","X",null,"days/trip","X",{"$f":"LUNCH","v":13.3},"per day","=",0]
[null,"Per Diem - Dinner",null,"person","X",null,"trips","X",null,"days/trip","X",{"$f":"DINNER","v":23.1},"per day","=",0]
[]
[]
["OTHER"]
[null,"Postage & Courier",null,null,null,null,"Pack.","X",25,"Ea",null,null,null,"=",{"$f":"+F902*I902","v":0}]
[null,null,null,"UOM","X",null,"UOM","X",null,"UOM","X",null,"UOM","=",{"$f":"+C903*F903*I903*L903","v":0}]
[null,null,null,"UOM","X",null,"UOM","X",null,"UOM","X",null,"UOM","=",0]
[null,null,null,"UOM","X",null,"UOM","X",null,"UOM","X",null,"UOM","=",0]
[null,null,null,"UOM","X",null,"UOM","X",null,"UOM","X",null,"UOM","=",0]
[null,null,null,"UOM","X",null,"UOM","X",null,"UOM","X",null,"UOM","=",0]
[]
[null,null,null,null,null,null,null,null,null,null,null,null,"Subtotal",null,{"$f":"SUM(O872:O907)","v":0}]
[]
["Task 8.0","Railroad Encroachment Permit Coordination"]
["REPRODUCTION"]
[null,"Xerox Copies (8.5\" x 11\")"]
[null,"Permit Applications",null,null,null,null,"Sets","X",null,"Sheets/Set","X",{"$f":"LETTERCOPIES","v":0.14000000000000001},"per Sheet","=",{"$f":"+F914*I914*L914","v":0}]
[null,"Technical Reports, Special Provisions, documentation, etc",null,null,null,null,"Sets","X",null,"Sheets/Set","X",{"$f":"LETTERCOPIES","v":0.14000000000000001},"per Sheet","=",{"$f":"+F915*I915*L915","v":0}]
[]
[null,"Xerox Copies (11\" x 17\")"]
[null,"plan sheets",null,null,null,null,"Sets","X",null,"Sheets/Set","X",{"$f":"LEDGERCOPIES","v":0.34},"per Sheet","=",0]
[null,"miscellaneous ",null,null,null,null,null,null,null,"Sheets/Set","X",{"$f":"LEDGERCOPIES","v":0.34},"per Sheet","=",{"$f":"+I919*L919","v":0}]
["MILEAGE"]
[null," Trips",null,null,null,null,"Trips","X",null,"Miles/Trip","X",{"$f":"SEDAN","v":0.7},"per Mile","=",0]
[]
["CAR RENTAL"]
[null," Trips"]
[null,"Roundtrip -  to ",null,null,null,null,"trips","X",null,"day/Trip","X",{"$f":"CARRENTAL","v":50},"per day","=",0]
[null,null,null,null,null,null,"trips","X",null,"Miles/Trip","X",{"$f":"GASforRENTAL","v":0.2},"per Mile","=",0]
[null,"Local Mileage in ",null,null,null,null,"trips","X",null,"Miles/Trip","X",{"$f":"GASforRENTAL","v":0.2},"per Mile","=",0]
["OVERNIGHT TRAVEL"]
[null,"Hotel",null,"persons","X",null,"trips","X",null,"nights/trip","X",{"$f":"LODGING_LUMP.SUM","v":95},"per night","=",{"$f":"+C929*F929*I929*L929","v":0}]
[null,"Per Diem - Breakfast, Lunch, and Dinner",null,"persons","X",null,"trips","X",null,"days/trip","X",{"$f":"BREAKFAST+LUNCH+DINNER","v":46.5},"per day","=",0]
[null,"Per Diem - Breakfast ",null,"persons","X",null,"trips","X",null,"days/trip","X",{"$f":"BREAKFAST","v":10.1},"per day","=",0]
[null,"Per Diem - Lunch",null,"persons","X",null,"trips","X",null,"days/trip","X",{"$f":"LUNCH","v":13.3},"per day","=",0]
[null,"Per Diem - Dinner",null,"persons","X",null,"trips","X",null,"days/trip","X",{"$f":"DINNER","v":23.1},"per day","=",0]
[]
["OTHER"]
[null,"Postage & Courier",null,null,null,null,"Pack.","X",25,"Ea",null,null,null,"=",{"$f":"+F936*I936","v":0}]
[null,null,null,"UOM","X",null,"UOM","X",null,"UOM","X",null,"UOM","=",{"$f":"+C937*F937*I937*L937","v":0}]
[null,null,null,"UOM","X",null,"UOM","X",null,"UOM","X",null,"UOM","=",0]
[null,null,null,"UOM","X",null,"UOM","X",null,"UOM","X",null,"UOM","=",0]
[null,null,null,"UOM","X",null,"UOM","X",null,"UOM","X",null,"UOM","=",0]
[null,null,null,"UOM","X",null,"UOM","X",null,"UOM","X",null,"UOM","=",0]
[]
[]
[null,null,null,null,null,null,null,null,null,null,null,null,"Subtotal",null,{"$f":"SUM(O914:O941)","v":0}]
["Task 9.0","Basis of Design Document (BODD)"]
["REPRODUCTION"]
[null,"Xerox Copies (8.5\" x 11\")",null,"version","X",null,"Sets","X",null,"Sheets/Set","X",{"$f":"LETTERCOPIES","v":0.14000000000000001},"per Sheet","=",{"$f":"+C947*F947*I947*L947","v":0}]
[null,"BODD notebook",null,"updates","X",null,"Sets","X",null,"Sheets/Set","X",{"$f":"LETTERCOPIES","v":0.14000000000000001},"per Sheet","=",{"$f":"+C948*F948*I948*L948","v":0}]
[null,"Miscellaneous "]
[]
[null,"Xerox Copies (11\" x 17\")"]
[null,"BODD Graphics - Color",null,"versions","X",null,"Sets","X",null,"Sheets/Set","X",{"$f":"ROLLPLOTSlong","v":1.5},"per Sheet","=",{"$f":"+C952*F952*I952*L952","v":0}]
[null,"BODD Exhibits - Black/White",null,"versions","X",null,"Sets","X",null,"Sheets/Set","X",{"$f":"LEDGERCOPIES","v":0.34},"per Sheet","=",0]
[null,"Miscellaneous - Color",null,null,null,null,"Sets","X",null,"Sheets/Set","X",{"$f":"ROLLPLOTSlong","v":1.5},"per Sheet","=",{"$f":"+F954*I954*L954","v":0}]
[null,"Miscellaneous - Black/White",null,null,null,null,"Sets","X",null,"Sheets/Set","X",{"$f":"LEDGERCOPIES","v":0.34},"per Sheet","=",{"$f":"+F955*I955*L955","v":0}]
[]
[null,"BODD Notebooks"]
[null,"3\" Heavy-Duty D-ring Presentation Binder",null,null,null,null,"volumes","X",null,"Binders","X",14.29,"per binder","=",{"$f":"+F958*I958*L958","v":0}]
[null,"Sheet Lifters",null,null,null,null,"Binders","X",null,"pair/binder","X",1.99,"per pair","=",0]
[null,"Media Storage Pages (CD pockets)",null,null,null,null,null,null,null,"5-packs","X",7.99,"per pack","=",{"$f":"+I960*L960","v":0}]
[null,"Untabbed Business Card Pages",null,null,null,null,null,null,null,"10-packs","X",3.99,"per pack","=",{"$f":"+I961*L961","v":0}]
[null,"Self-Adhesive Business Card Holders",null,null,null,null,null,null,null,"10-packs","X",3.99,"per pack","=",0]
[null,"Direct Print Dividers, 5-Tab (4/pack) (10 tabs/binder for 4 binders)",null,null,null,null,null,null,null,"4-packs","X",23.99,"per pack","=",0]
[null,"Direct Print Dividers, 5-Tab (24/pack) (10 tabs/binder for 12 binders)",null,null,null,null,null,null,null,"24-packs","X",142.99,"per pack","=",0]
[]
["OTHER"]
[null,"Miscellaneous",null,null,null,null,"Sets","X",null,"Sheets/Set","X",{"$f":"LETTERCOPIES","v":0.14000000000000001},"per Sheet","=",{"$f":"+F967*I967*L967","v":0}]
[null,null,null,null,null,null,null,null,null,"Sheets","X",{"$f":"LETTERCOPIES","v":0.14000000000000001},"per Sheet","=",{"$f":"+I968*L968","v":0}]
[null,null,null,"UOM","X",null,"UOM","X",null,"UOM","X",null,"UOM","=",{"$f":"+C969*F969*I969*L969","v":0}]
[null,null,null,"UOM","X",null,"UOM","X",null,"UOM","X",null,"UOM","=",0]
[null,null,null,"UOM","X",null,"UOM","X",null,"UOM","X",null,"UOM","=",0]
[null,null,null,"UOM","X",null,"UOM","X",null,"UOM","X",null,"UOM","=",0]
[null,null,null,"UOM","X",null,"UOM","X",null,"UOM","X",null,"UOM","=",0]
[]
[null,null,null,null,null,null,null,null,null,null,null,null,"Subtotal",null,{"$f":"SUM(O947:O973)","v":0}]
["Task 10.0","Utility Make-Ready Plans"]
["REPRODUCTION"]
[null,"Xerox Copies (8.5\" x 11\")"]
[null,"Utility Partnering Meeting Handouts",null,null,null,null,"Sets","X",null,"Sheets/Set","X",{"$f":"LETTERCOPIES","v":0.14000000000000001},"per Sheet","=",{"$f":"+F979*I979*L979","v":0}]
[null,"Miscellaneous ",null,null,null,null,null,null,null,"Sheets","X",{"$f":"LETTERCOPIES","v":0.14000000000000001},"per Sheet","=",{"$f":"+I980*L980","v":0}]
[]
[null,"Xerox Copies (11\" x 17\")"]
[null,"Utility Partnering Meeting Examples",null,null,null,null,"Sets","X",null,"Sheets/Set","X",{"$f":"LEDGERCOPIES","v":0.34},"per Sheet","=",{"$f":"+F983*I983*L983","v":0}]
[null,"Preliminary UMR Plans",null,null,null,null,"Sets","X",null,"Sheets/Set","X",{"$f":"LEDGERCOPIES","v":0.34},"per Sheet","=",0]
[null,"QC Set",null,null,null,null,"Sets","X",null,"Sheets/Set","X",{"$f":"LEDGERCOPIES","v":0.34},"per Sheet","=",0]
[null,"Record Set - Consultant ",null,null,null,null,"Sets","X",null,"Sheets/Set","X",{"$f":"LEDGERCOPIES","v":0.34},"per Sheet","=",0]
[null,"Covers & Binding",null,null,null,null,null,null,null,"sets","X",{"$f":"COVERS+BINDERS","v":1},"per set","=",{"$f":"+I987*L987","v":0}]
[null,"Draft Final UMR Plans",null,null,null,null,"Sets","X",null,"Sheets/Set","X",{"$f":"LEDGERCOPIES","v":0.34},"per Sheet","=",0]
[null,"QC Set",null,null,null,null,"Sets","X",null,"Sheets/Set","X",{"$f":"LEDGERCOPIES","v":0.34},"per Sheet","=",0]
[null,"Record Set - Consultant ",null,null,null,null,"Sets","X",null,"Sheets/Set","X",{"$f":"LEDGERCOPIES","v":0.34},"per Sheet","=",0]
[null,"Covers & Binding",null,null,null,null,null,null,null,"sets","X",{"$f":"COVERS+BINDERS","v":1},"per set","=",{"$f":"+I991*L991","v":0}]
[null,"Final UMR Plans",null,null,null,null,"Sets","X",null,"Sheets/Set","X",{"$f":"LEDGERCOPIES","v":0.34},"per Sheet","=",0]
[null,"QC Set",null,null,null,null,"Sets","X",null,"Sheets/Set","X",{"$f":"LEDGERCOPIES","v":0.34},"per Sheet","=",0]
[null,"Record Set - Consultant ",null,null,null,null,"Sets","X",null,"Sheets/Set","X",{"$f":"LEDGERCOPIES","v":0.34},"per Sheet","=",0]
[null,"Covers & Binding",null,null,null,null,null,null,null,"sets","X",{"$f":"COVERS+BINDERS","v":1},"per set","=",{"$f":"+I995*L995","v":0}]
[]
[null,"Bond Prints (22\" x 34\")"]
[null,"Final UMR plans - Deliverables",null,null,null,null,"Sets","X",null,"Sheets/Set","X",{"$f":"BOND.REGULAR","v":0.42},"per Sheet","=",{"$f":"+F998*I998*L998","v":0}]
[null,"QC Set",null,null,null,null,"Sets","X",null,"Sheets/Set","X",{"$f":"BOND.REGULAR","v":0.42},"per Sheet","=",{"$f":"+F999*I999*L999","v":0}]
[null,{"$f":"CONCATENATE(\"Record Set - Consultant\",\" \",A8)","v":"Record Set - Consultant CONSULTANT NAME"},null,null,null,null,"Sets","X",null,"Sheets/Set","X",{"$f":"BOND.REGULAR","v":0.42},"per Sheet","=",{"$f":"+F1000*I1000*L1000","v":0}]
[null,"Covers & Binding",null,null,null,null,null,null,null,"sets","X",{"$f":"COVERS+BINDERS","v":1},"per set","=",{"$f":"+I1001*L1001","v":0}]
[]
["MILEAGE"]
[null," Trips",null,null,null,null,"Trips","X",null,"Miles/Trip","X",{"$f":"SEDAN","v":0.7},"per Mile","=",{"$f":"+F1004*I1004*L1004","v":0}]
[]
["CAR RENTAL"]
[null," Trips"]
[10.1,"Utility Partnering Meeting",null,null,null,null,"Trips","X",null,"day/Trip","X",{"$f":"CARRENTAL","v":50},"per day","=",{"$f":"+F1008*I1008*L1008","v":0}]
[null,null,null,null,null,null,"trips","X",null,"Miles/Trip","X",{"$f":"GASforRENTAL","v":0.2},"per Mile","=",0]
[10.3,"Preliminary Cable Route Survey",null,null,null,null,"trips","X",null,"day/Trip","X",{"$f":"CARRENTAL","v":50},"per day","=",0]
[null,"Roundtrip -  to ",null,null,null,null,"trips","X",null,"Miles/Trip","X",{"$f":"GASforRENTAL","v":0.2},"per Mile","=",0]
[null,"Local Mileage in ",null,null,null,null,"trips","X",null,"Miles/Trip","X",{"$f":"GASforRENTAL","v":0.2},"per Mile","=",0]
[10.8,"Field Survey Aerial Routes",null,null,null,null,"Trips","X",null,"day/Trip","X",{"$f":"CARRENTAL","v":50},"per day","=",0]
[null,"Roundtrip -  to ",null,null,null,null,"trips","X",null,"Miles/Trip","X",{"$f":"GASforRENTAL","v":0.2},"per Mile","=",0]
[null,"Local Mileage in ",null,null,null,null,"trips","X",null,"Miles/Trip","X",{"$f":"GASforRENTAL","v":0.2},"per Mile","=",0]
[10.1,"UMR Walk-throughs",null,null,null,null,"Trips","X",null,"day/Trip","X",{"$f":"CARRENTAL","v":50},"per day","=",0]
[null,"Roundtrip -  to ",null,null,null,null,"trips","X",null,"Miles/Trip","X",{"$f":"GASforRENTAL","v":0.2},"per Mile","=",0]
[null,"Local Mileage in ",null,null,null,null,"trips","X",null,"Miles/Trip","X",{"$f":"GASforRENTAL","v":0.2},"per Mile","=",0]
[]
["OVERNIGHT TRAVEL"]
[10.1,"Hotel",null,"persons","X",null,"trips","X",null,"nights/trip","X",{"$f":"LODGING_LUMP.SUM","v":95},"per night","=",{"$f":"+C1021*F1021*I1021*L1021","v":0}]
[null,"Per Diem - Breakfast, Lunch, & Dinner",null,"persons","X",null,"trips","X",null,"days/trip","X",{"$f":"BREAKFAST+LUNCH+DINNER","v":46.5},"per day","=",{"$f":"+C1022*F1022*I1022*L1022","v":0}]
[null,"Per Diem - Breakfast  ",null,"persons","X",null,"trips","X",null,"days/trip","X",{"$f":"BREAKFAST","v":10.1},"per day","=",0]
[null,"Per Diem - Lunch",null,"persons","X",null,"trips","X",null,"days/trip","X",{"$f":"LUNCH","v":13.3},"per day","=",0]
[null,"Per Diem - Dinner",null,"persons","X",null,"trips","X",null,"days/trip","X",{"$f":"DINNER","v":23.1},"per day","=",0]
[10.3,"Hotel",null,"persons","X",null,"trips","X",null,"nights/trip","X",{"$f":"LODGING_LUMP.SUM","v":95},"per night","=",0]
[null,"Per Diem - Breakfast, Lunch, & Dinner",null,"persons","X",null,"trips","X",null,"days/trip","X",{"$f":"BREAKFAST+LUNCH+DINNER","v":46.5},"per day","=",0]
[null,"Per Diem - Breakfast  ",null,"persons","X",null,"trips","X",null,"days/trip","X",{"$f":"BREAKFAST","v":10.1},"per day","=",0]
[null,"Per Diem - Lunch",null,"persons","X",null,"trips","X",null,"days/trip","X",{"$f":"LUNCH","v":13.3},"per day","=",0]
[null,"Per Diem - Dinner",null,"persons","X",null,"trips","X",null,"days/trip","X",{"$f":"DINNER","v":23.1},"per day","=",0]
[10.8,"Hotel",null,"persons","X",null,"trips","X",null,"nights/trip","X",{"$f":"LODGING_LUMP.SUM","v":95},"per night","=",0]
[null,"Per Diem - Breakfast, Lunch, & Dinner",null,"persons","X",null,"trips","X",null,"days/trip","X",{"$f":"BREAKFAST+LUNCH+DINNER","v":46.5},"per day","=",0]
[null,"Per Diem - Breakfast  ",null,"persons","X",null,"trips","X",null,"days/trip","X",{"$f":"BREAKFAST","v":10.1},"per day","=",0]
[null,"Per Diem - Lunch",null,"persons","X",null,"trips","X",null,"days/trip","X",{"$f":"LUNCH","v":13.3},"per day","=",0]
[null,"Per Diem - Dinner",null,"persons","X",null,"trips","X",null,"days/trip","X",{"$f":"DINNER","v":23.1},"per day","=",0]
[10.1,"Hotel",null,"persons","X",null,"trips","X",null,"nights/trip","X",{"$f":"LODGING_LUMP.SUM","v":95},"per night","=",0]
[null,"Per Diem - Breakfast, Lunch, & Dinner",null,"persons","X",null,"trips","X",null,"days/trip","X",{"$f":"BREAKFAST+LUNCH+DINNER","v":46.5},"per day","=",0]
[null,"Per Diem - Breakfast  ",null,"persons","X",null,"trips","X",null,"days/trip","X",{"$f":"BREAKFAST","v":10.1},"per day","=",0]
[null,"Per Diem - Lunch",null,"persons","X",null,"trips","X",null,"days/trip","X",{"$f":"LUNCH","v":13.3},"per day","=",0]
[null,"Per Diem - Dinner",null,"persons","X",null,"trips","X",null,"days/trip","X",{"$f":"DINNER","v":23.1},"per day","=",0]
[]
[]
["OTHER"]
[null,"Postage & Courier"]
[null,"FedEx (2-day Economy) UMR Plans to Utilities & City",null,"Submittals","X",null,"Pack.","X",10,"Ea",null,null,null,"=",{"$f":"+C1045*F1045*I1045","v":0}]
[null,"Miscellaneous",null,null,null,null,"Pack.","X",25,"Ea",null,null,null,"=",{"$f":"+F1046*I1046","v":0}]
[null,null,null,"UOM","X",null,"UOM","X",null,"UOM","X",null,"UOM","=",{"$f":"+C1047*F1047*I1047*L1047","v":0}]
[null,null,null,"UOM","X",null,"UOM","X",null,"UOM","X",null,"UOM","=",0]
[null,null,null,"UOM","X",null,"UOM","X",null,"UOM","X",null,"UOM","=",0]
[null,null,null,"UOM","X",null,"UOM","X",null,"UOM","X",null,"UOM","=",0]
[null,null,null,"UOM","X",null,"UOM","X",null,"UOM","X",null,"UOM","=",0]
[]
[]
[null,null,null,null,null,null,null,null,null,null,null,null,"Subtotal",null,{"$f":"SUM(O979:O1052)","v":0}]
["Task 11.0","Construction Plans (See Deliverables also)"]
[]
["CAR RENTAL"]
[null," Trips"]
[]
["11.1.14","CL Sheet Field Investigation",null,null,null,null,"trips","X",null,"day/Trip","X",{"$f":"CARRENTAL","v":50},"per day","=",{"$f":"+F1060*I1060*L1060","v":0}]
[null,null,null,null,null,null,"trips","X",null,"Miles/Trip","X",{"$f":"GASforRENTAL","v":0.2},"per Mile","=",{"$f":"+F1061*I1061*L1061","v":0}]
[]
["11.1.19 thru 20","Field Investigate Bldg. Mods.",null,null,null,null,"trips","X",null,"day/Trip","X",{"$f":"CARRENTAL","v":50},"per day","=",0]
[null,null,null,null,null,null,"trips","X",null,"Miles/Trip","X",{"$f":"GASforRENTAL","v":0.2},"per Mile","=",0]
[11.4,"Field Check Final Plans",null,null,null,null,"trips","X",null,"day/Trip","X",{"$f":"CARRENTAL","v":50},"per day","=",0]
[null,null,null,null,null,null,"trips","X",null,"Miles/Trip","X",{"$f":"GASforRENTAL","v":0.2},"per Mile","=",0]
[]
["OVERNIGHT TRAVEL"]
[null,"Hotel"]
["11.1.26","Prelim PS&E On-site work sessions - back to back with steering committeee meetings",null,"persons","X",null,"trips","X",null,"nights/trip","X",{"$f":"LODGING_LUMP.SUM","v":95},"per night","=",{"$f":"+C1070*F1070*I1070*L1070","v":0}]
["11.1.19 thru 20","Field Investigate Bldg. Mods.",null,"persons","X",null,"trips","X",null,"nights/trip","X",{"$f":"LODGING_LUMP.SUM","v":95},"per night","=",{"$f":"+C1071*F1071*I1071*L1071","v":0}]
[null,"Per Diem (Breakfast, Lunch, & Dinner)"]
["11.1.19 thru 20","Field Investigate Bldg. Mods.",null,"persons","X",null,"trips","X",null,"days/trip","X",{"$f":"BREAKFAST+LUNCH+DINNER","v":46.5},"per day","=",{"$f":"+C1073*F1073*I1073*L1073","v":0}]
["11.1.26","Prelim PS&E On-site work sessions - back to back with steering committeee meetings",null,"persons","X",null,"trips","X",null,"days/trip","X",{"$f":"BREAKFAST+LUNCH+DINNER","v":46.5},"per day","=",0]
[null,"Per Diem (Breakfast)"]
["11.1.19 thru 20","Field Investigate Bldg. Mods.",null,"persons","X",null,"trips","X",null,"days/trip","X",{"$f":"BREAKFAST","v":10.1},"per day","=",{"$f":"+C1076*F1076*I1076*L1076","v":0}]
["11.1.26","Prelim PS&E On-site work sessions - back to back with steering committeee meetings",null,"persons","X",null,"trips","X",null,"days/trip","X",{"$f":"BREAKFAST","v":10.1},"per day","=",0]
[null,"Per Diem (Lunch)"]
["11.1.19 thru 20","Field Investigate Bldg. Mods.",null,"persons","X",null,"trips","X",null,"days/trip","X",{"$f":"LUNCH","v":13.3},"per day","=",{"$f":"+C1079*F1079*I1079*L1079","v":0}]
["11.1.26","Prelim PS&E On-site work sessions - back to back with steering committeee meetings",null,"persons","X",null,"trips","X",null,"days/trip","X",{"$f":"LUNCH","v":13.3},"per day","=",0]
[null,"Per Diem (Dinner)"]
["11.1.19 thru 20","Field Investigate Bldg. Mods.",null,"persons","X",null,"trips","X",null,"days/trip","X",{"$f":"DINNER","v":23.1},"per day","=",0]
["11.1.26","Prelim PS&E On-site work sessions - back to back with steering committeee meetings",null,"persons","X",null,"trips","X",null,"days/trip","X",{"$f":"DINNER","v":23.1},"per day","=",0]
[]
["OTHER"]
[null,"Miscellaneous",null,null,null,null,"Sets","X",null,"Sheets/Set","X",{"$f":"LETTERCOPIES","v":0.14000000000000001},"per Sheet","=",{"$f":"+F1086*I1086*L1086","v":0}]
[null,null,null,null,null,null,null,null,null,"Sheets","X",{"$f":"LETTERCOPIES","v":0.14000000000000001},"per Sheet","=",{"$f":"+I1087*L1087","v":0}]
[null,null,null,"UOM","X",null,"UOM","X",null,"UOM","X",null,"UOM","=",{"$f":"+C1088*F1088*I1088*L1088","v":0}]
[null,null,null,"UOM","X",null,"UOM","X",null,"UOM","X",null,"UOM","=",0]
[null,null,null,"UOM","X",null,"UOM","X",null,"UOM","X",null,"UOM","=",0]
[null,null,null,"UOM","X",null,"UOM","X",null,"UOM","X",null,"UOM","=",0]
[null,null,null,"UOM","X",null,"UOM","X",null,"UOM","X",null,"UOM","=",0]
[]
[null,null,null,null,null,null,null,null,null,null,null,null,"Subtotal",null,{"$f":"SUM(O1060:O1092)","v":0}]
["Task 12.0","Project Special Provisions (See Deliverables also)"]
["REPRODUCTION/PRINTING/DOCUMENTATION"]
[null,"Xerox Copies (8.5\" x 11\")"]
[null,"Miscellaneous (Corres., etc.)"]
[null,null,null,null,null,null,null,null,null,"Sheets","X",{"$f":"LETTERCOPIES","v":0.14000000000000001},"per Sheet","=",{"$f":"+I1099*L1099","v":0}]
[null,null,null,"UOM","X",null,"UOM","X",null,"UOM","X",null,"UOM","=",{"$f":"+C1100*F1100*I1100*L1100","v":0}]
[null,null,null,"UOM","X",null,"UOM","X",null,"UOM","X",null,"UOM","=",0]
[null,null,null,"UOM","X",null,"UOM","X",null,"UOM","X",null,"UOM","=",0]
[null,null,null,"UOM","X",null,"UOM","X",null,"UOM","X",null,"UOM","=",0]
[null,null,null,"UOM","X",null,"UOM","X",null,"UOM","X",null,"UOM","=",0]
[]
[null,null,null,null,null,null,null,null,null,null,null,null,"Subtotal",null,{"$f":"SUM(O1097:O1104)","v":0}]
["Task 13.0","Engineer's Opinion of Probable Cost"]
["REPRODUCTION"]
[null,"Xerox Copies (8.5\" x 11\")"]
[null,"Preliminary Opinion of Cost"]
[null,"Final Opinion of Cost",null,null,null,null,"Sets","X",null,"Sheets/Set","X",{"$f":"LETTERCOPIES","v":0.14000000000000001},"per Sheet","=",{"$f":"+F1111*I1111*L1111","v":0}]
[null,"Miscellaneous",null,null,null,null,"Sets","X",null,"Sheets/Set","X",{"$f":"LETTERCOPIES","v":0.14000000000000001},"per Sheet","=",{"$f":"+F1112*I1112*L1112","v":0}]
[null,null,null,null,null,null,null,null,null,"Sheets","X",{"$f":"LETTERCOPIES","v":0.14000000000000001},"per Sheet","=",{"$f":"+I1113*L1113","v":0}]
[]
["OTHER"]
[null,null,null,"UOM","X",null,"UOM","X",null,"UOM","X",null,"UOM","=",{"$f":"+C1116*F1116*I1116*L1116","v":0}]
[null,null,null,"UOM","X",null,"UOM","X",null,"UOM","X",null,"UOM","=",0]
[null,null,null,"UOM","X",null,"UOM","X",null,"UOM","X",null,"UOM","=",0]
[null,null,null,"UOM","X",null,"UOM","X",null,"UOM","X",null,"UOM","=",0]
[null,null,null,"UOM","X",null,"UOM","X",null,"UOM","X",null,"UOM","=",0]
[]
[null,null,null,null,null,null,null,null,null,null,null,null,"Subtotal",null,{"$f":"SUM(O1110:O1120)","v":0}]
["Task 14.0","Prepare PS&E Deliverables and Final Documentation"]
["REPRODUCTION"]
[null,"Xerox Copies (8.5\" x 11\")"]
[null,"Preliminary Special Provisions",null,null,null,null,"Sets","X",null,"Sheets/Set","X",{"$f":"LETTERCOPIES","v":0.14000000000000001},"per Sheet","=",{"$f":"+F1126*I1126*L1126","v":0}]
[null,"Covers & Binding",null,null,null,null,null,null,null,"sets","X",{"$f":"COVERS+BINDERS","v":1},"per set","=",{"$f":"+I1127*L1127","v":0}]
[null,"QC Set",null,null,null,null,"Sets","X",null,"Sheets/Set","X",{"$f":"LETTERCOPIES","v":0.14000000000000001},"per Sheet","=",{"$f":"+F1128*I1128*L1128","v":0}]
[null,"Record Set - Consultant",null,null,null,null,"Sets","X",null,"Sheets/Set","X",{"$f":"LETTERCOPIES","v":0.14000000000000001},"per Sheet","=",0]
[null,"Draft Final Special Provisions",null,null,null,null,"Sets","X",null,"Sheets/Set","X",{"$f":"LETTERCOPIES","v":0.14000000000000001},"per Sheet","=",0]
[null,"Covers & Binding",null,null,null,null,null,null,null,"sets","X",{"$f":"COVERS+BINDERS","v":1},"per set","=",{"$f":"+I1131*L1131","v":0}]
[null,"QC Set",null,null,null,null,"Sets","X",null,"Sheets/Set","X",{"$f":"LETTERCOPIES","v":0.14000000000000001},"per Sheet","=",{"$f":"+F1132*I1132*L1132","v":0}]
[null,"Record Set - Consultant",null,null,null,null,"Sets","X",null,"Sheets/Set","X",{"$f":"LETTERCOPIES","v":0.14000000000000001},"per Sheet","=",0]
[null,"Final Special Provisions",null,null,null,null,"Sets","X",null,"Sheets/Set","X",{"$f":"LETTERCOPIES","v":0.14000000000000001},"per Sheet","=",0]
[null,"Covers & Binding",null,null,null,null,null,null,null,"sets","X",{"$f":"COVERS+BINDERS","v":1},"per set","=",{"$f":"+I1135*L1135","v":0}]
[null,"QC Set",null,null,null,null,"Sets","X",null,"Sheets/Set","X",{"$f":"LETTERCOPIES","v":0.14000000000000001},"per Sheet","=",{"$f":"+F1136*I1136*L1136","v":0}]
[null,"Record Set - Consultant",null,null,null,null,"Sets","X",null,"Sheets/Set","X",{"$f":"LETTERCOPIES","v":0.14000000000000001},"per Sheet","=",0]
[null,"Misc. (Corres., Signal Calcs, etc.)",null,null,null,null,null,null,null,"Sheets","X",{"$f":"LETTERCOPIES","v":0.14000000000000001},"per Sheet","=",{"$f":"+I1138*L1138","v":0}]
[]
[]
[null,"Xerox Copies (11\" x 17\")"]
[null,"Preliminary Construction Plans (no NCDOT Signals)",null,null,null,null,"Sets","X",null,"Sheets/Set","X",{"$f":"LEDGERCOPIES","v":0.34},"per Sheet","=",{"$f":"+F1142*I1142*L1142","v":0}]
[null,"QC Set",null,null,null,null,"Sets","X",null,"Sheets/Set","X",{"$f":"LEDGERCOPIES","v":0.34},"per Sheet","=",0]
[null,"Record Set - Consultant",null,null,null,null,"Sets","X",null,"Sheets/Set","X",{"$f":"LEDGERCOPIES","v":0.34},"per Sheet","=",0]
[null,"Covers & Binding",null,null,null,null,"Sets","X",null,"Volumes/Set","X",{"$f":"COVERS+BINDERS","v":1},"per set","=",0]
[null,"Draft Final Construction Plans (incl. NCDOT Signals)",null,null,null,null,"Sets","X",null,"Sheets/Set","X",{"$f":"LEDGERCOPIES","v":0.34},"per Sheet","=",0]
[null,"QC Set",null,null,null,null,"Sets","X",null,"Sheets/Set","X",{"$f":"LEDGERCOPIES","v":0.34},"per Sheet","=",0]
[null,"Record Set - Consultant",null,null,null,null,"Sets","X",null,"Sheets/Set","X",{"$f":"LEDGERCOPIES","v":0.34},"per Sheet","=",0]
[null,"Covers & Binding",null,null,null,null,"Sets","X",null,"Volumes/Set","X",{"$f":"COVERS+BINDERS","v":1},"per set","=",0]
[null,"Final Construction Plans (incl. NCDOT Signals)",null,null,null,null,"Sets","X",null,"Sheets/Set","X",{"$f":"LEDGERCOPIES","v":0.34},"per Sheet","=",0]
[null,"QC Set",null,null,null,null,"Sets","X",null,"Sheets/Set","X",{"$f":"LEDGERCOPIES","v":0.34},"per Sheet","=",0]
[null,"Record Set - Consultant",null,null,null,null,"Sets","X",null,"Sheets/Set","X",{"$f":"LEDGERCOPIES","v":0.34},"per Sheet","=",0]
[null,"Covers & Binding",null,null,null,null,"Sets","X",null,"Volumes/Set","X",{"$f":"COVERS+BINDERS","v":1},"per set","=",0]
[]
[null,"Bond Prints (22\" x 34\")"]
[null,"Final Construction Plans",null,null,null,null,"Sets","X",null,"Sheets/Set","X",{"$f":"BOND.REGULAR","v":0.42},"per Sheet","=",{"$f":"+F1156*I1156*L1156","v":0}]
[null,"QC Set",null,null,null,null,"Sets","X",null,"Sheets/Set","X",{"$f":"BOND.REGULAR","v":0.42},"per Sheet","=",0]
[null,"Record Set - Consultant",null,null,null,null,"Sets","X",null,"Sheets/Set","X",{"$f":"BOND.REGULAR","v":0.42},"per Sheet","=",0]
[null,"Covers & Binding",null,null,null,null,"Sets","X",null,"Volumes/Set","X",{"$f":"COVERS+BINDERS","v":1},"per set","=",0]
[]
["MILEAGE"]
[null,"NCDOT Delivery/Pick-up",null,null,null,null,"Trips","X",null,"Miles/Trip","X",{"$f":"SEDAN","v":0.7},"per Mile","=",{"$f":"+F1162*I1162*L1162","v":0}]
[]
["OTHER"]
[null,"USB Jump Drive (16 GB)",null,null,null,null,"Each","X",19.989999999999998,"Ea",null,null,null,"=",{"$f":"+F1165*I1165","v":0}]
[null,null,null,"UOM","X",null,"UOM","X",null,"UOM","X",null,"UOM","=",{"$f":"+C1166*F1166*I1166*L1166","v":0}]
[null,null,null,"UOM","X",null,"UOM","X",null,"UOM","X",null,"UOM","=",0]
[null,null,null,"UOM","X",null,"UOM","X",null,"UOM","X",null,"UOM","=",0]
[null,null,null,"UOM","X",null,"UOM","X",null,"UOM","X",null,"UOM","=",0]
[null,null,null,"UOM","X",null,"UOM","X",null,"UOM","X",null,"UOM","=",0]
[]
[null,null,null,null,null,null,null,null,null,null,null,null,"Subtotal",null,{"$f":"SUM(O1126:O1170)","v":0}]
[]
["Task 15.0",{"$f":"IF(B375=\"REPLACE FIELD WITH CATEGORY NAME OF YOUR CHOOSING HERE\",\"Category Not Defined Above, Please do not key values in this section\",B375)","v":"Category Not Defined Above, Please do not key values in this section"},null,null,null,null,null,null,null,null,null,null,null,null,{"$f":"IF(B1174=\"Category Not Defined Above, Please do not key values in this section\",0,\"\")","v":0}]
["OTHER","UOM = Unit of Measure",null,null,null,null,null,null,null,null,null,null,null,null,{"$f":"IF(B1174=\"Category Not Defined Above, Please do not key values in this section\",0,\"\")","v":0}]
[null,null,null,"UOM","X",null,"UOM","X",null,"UOM","X",null,"UOM","=",{"$f":"+C1176*F1176*I1176*L1176","v":0}]
[null,null,null,"UOM","X",null,"UOM","X",null,"UOM","X",null,"UOM","=",0]
[null,null,null,"UOM","X",null,"UOM","X",null,"UOM","X",null,"UOM","=",0]
[null,null,null,"UOM","X",null,"UOM","X",null,"UOM","X",null,"UOM","=",0]
[null,null,null,"UOM","X",null,"UOM","X",null,"UOM","X",null,"UOM","=",0]
[null,null,null,"UOM","X",null,"UOM","X",null,"UOM","X",null,"UOM","=",0]
[null,null,null,"UOM","X",null,"UOM","X",null,"UOM","X",null,"UOM","=",0]
[null,null,null,"UOM","X",null,"UOM","X",null,"UOM","X",null,"UOM","=",0]
[null,null,null,"UOM","X",null,"UOM","X",null,"UOM","X",null,"UOM","=",0]
[null,null,null,"UOM","X",null,"UOM","X",null,"UOM","X",null,"UOM","=",0]
[null,null,null,"UOM","X",null,"UOM","X",null,"UOM","X",null,"UOM","=",0]
[null,null,null,"UOM","X",null,"UOM","X",null,"UOM","X",null,"UOM","=",0]
[null,null,null,"UOM","X",null,"UOM","X",null,"UOM","X",null,"UOM","=",0]
[null,null,null,"UOM","X",null,"UOM","X",null,"UOM","X",null,"UOM","=",0]
[null,null,null,"UOM","X",null,"UOM","X",null,"UOM","X",null,"UOM","=",0]
[]
[null,null,null,null,null,null,null,null,null,null,null,null,"Subtotal",null,{"$f":"SUM(O1176:O1190)","v":0}]
[]
[]
["Task 16.0",{"$f":"IF(B409=\"REPLACE FIELD WITH CATEGORY NAME OF YOUR CHOOSING HERE\",\"Category Not Defined Above, Please do not key values in this section\",B409)","v":"Category Not Defined Above, Please do not key values in this section"},null,null,null,null,null,null,null,null,null,null,null,null,{"$f":"IF(B1195=\"Category Not Defined Above, Please do not key values in this section\",0,\"\")","v":0}]
["OTHER","UOM = Unit of Measure",null,null,null,null,null,null,null,null,null,null,null,null,{"$f":"IF(B1195=\"Category Not Defined Above, Please do not key values in this section\",0,\"\")","v":0}]
[null,null,null,"UOM","X",null,"UOM","X",null,"UOM","X",null,"UOM","=",{"$f":"+C1197*F1197*I1197*L1197","v":0}]
[null,null,null,"UOM","X",null,"UOM","X",null,"UOM","X",null,"UOM","=",0]
[null,null,null,"UOM","X",null,"UOM","X",null,"UOM","X",null,"UOM","=",0]
[null,null,null,"UOM","X",null,"UOM","X",null,"UOM","X",null,"UOM","=",0]
[null,null,null,"UOM","X",null,"UOM","X",null,"UOM","X",null,"UOM","=",0]
[null,null,null,"UOM","X",null,"UOM","X",null,"UOM","X",null,"UOM","=",0]
[null,null,null,"UOM","X",null,"UOM","X",null,"UOM","X",null,"UOM","=",0]
[null,null,null,"UOM","X",null,"UOM","X",null,"UOM","X",null,"UOM","=",0]
[null,null,null,"UOM","X",null,"UOM","X",null,"UOM","X",null,"UOM","=",0]
[null,null,null,"UOM","X",null,"UOM","X",null,"UOM","X",null,"UOM","=",0]
[null,null,null,"UOM","X",null,"UOM","X",null,"UOM","X",null,"UOM","=",0]
[null,null,null,"UOM","X",null,"UOM","X",null,"UOM","X",null,"UOM","=",0]
[null,null,null,"UOM","X",null,"UOM","X",null,"UOM","X",null,"UOM","=",0]
[null,null,null,"UOM","X",null,"UOM","X",null,"UOM","X",null,"UOM","=",0]
[null,null,null,"UOM","X",null,"UOM","X",null,"UOM","X",null,"UOM","=",0]
[]
[null,null,null,null,null,null,null,null,null,null,null,null,"Subtotal",null,{"$f":"SUM(O1197:O1211)","v":0}]
[]
[]
["Task 17.0",{"$f":"IF(B443=\"REPLACE FIELD WITH CATEGORY NAME OF YOUR CHOOSING HERE\",\"Category Not Defined Above, Please do not key values in this section\",B443)","v":"Category Not Defined Above, Please do not key values in this section"},null,null,null,null,null,null,null,null,null,null,null,null,{"$f":"IF(B1216=\"Category Not Defined Above, Please do not key values in this section\",0,\"\")","v":0}]
["OTHER","UOM = Unit of Measure",null,null,null,null,null,null,null,null,null,null,null,null,{"$f":"IF(B1216=\"Category Not Defined Above, Please do not key values in this section\",0,\"\")","v":0}]
[null,null,null,"UOM","X",null,"UOM","X",null,"UOM","X",null,"UOM","=",{"$f":"+C1218*F1218*I1218*L1218","v":0}]
[null,null,null,"UOM","X",null,"UOM","X",null,"UOM","X",null,"UOM","=",0]
[null,null,null,"UOM","X",null,"UOM","X",null,"UOM","X",null,"UOM","=",0]
[null,null,null,"UOM","X",null,"UOM","X",null,"UOM","X",null,"UOM","=",0]
[null,null,null,"UOM","X",null,"UOM","X",null,"UOM","X",null,"UOM","=",0]
[null,null,null,"UOM","X",null,"UOM","X",null,"UOM","X",null,"UOM","=",0]
[null,null,null,"UOM","X",null,"UOM","X",null,"UOM","X",null,"UOM","=",0]
[null,null,null,"UOM","X",null,"UOM","X",null,"UOM","X",null,"UOM","=",0]
[null,null,null,"UOM","X",null,"UOM","X",null,"UOM","X",null,"UOM","=",0]
[null,null,null,"UOM","X",null,"UOM","X",null,"UOM","X",null,"UOM","=",0]
[null,null,null,"UOM","X",null,"UOM","X",null,"UOM","X",null,"UOM","=",0]
[null,null,null,"UOM","X",null,"UOM","X",null,"UOM","X",null,"UOM","=",0]
[null,null,null,"UOM","X",null,"UOM","X",null,"UOM","X",null,"UOM","=",0]
[null,null,null,"UOM","X",null,"UOM","X",null,"UOM","X",null,"UOM","=",0]
[null,null,null,"UOM","X",null,"UOM","X",null,"UOM","X",null,"UOM","=",0]
[]
[null,null,null,null,null,null,null,null,null,null,null,null,"Subtotal",null,{"$f":"SUM(O1218:O1232)","v":0}]
[]
[]
["Task 18.0",{"$f":"IF(B477=\"REPLACE FIELD WITH CATEGORY NAME OF YOUR CHOOSING HERE\",\"Category Not Defined Above, Please do not key values in this section\",B477)","v":"Category Not Defined Above, Please do not key values in this section"},null,null,null,null,null,null,null,null,null,null,null,null,{"$f":"IF(B1237=\"Category Not Defined Above, Please do not key values in this section\",0,\"\")","v":0}]
["OTHER","UOM = Unit of Measure",null,null,null,null,null,null,null,null,null,null,null,null,{"$f":"IF(B1237=\"Category Not Defined Above, Please do not key values in this section\",0,\"\")","v":0}]
[null,null,null,"UOM","X",null,"UOM","X",null,"UOM","X",null,"UOM","=",{"$f":"+C1239*F1239*I1239*L1239","v":0}]
[null,null,null,"UOM","X",null,"UOM","X",null,"UOM","X",null,"UOM","=",0]
[null,null,null,"UOM","X",null,"UOM","X",null,"UOM","X",null,"UOM","=",0]
[null,null,null,"UOM","X",null,"UOM","X",null,"UOM","X",null,"UOM","=",0]
[null,null,null,"UOM","X",null,"UOM","X",null,"UOM","X",null,"UOM","=",0]
[null,null,null,"UOM","X",null,"UOM","X",null,"UOM","X",null,"UOM","=",0]
[null,null,null,"UOM","X",null,"UOM","X",null,"UOM","X",null,"UOM","=",0]
[null,null,null,"UOM","X",null,"UOM","X",null,"UOM","X",null,"UOM","=",0]
[null,null,null,"UOM","X",null,"UOM","X",null,"UOM","X",null,"UOM","=",0]
[null,null,null,"UOM","X",null,"UOM","X",null,"UOM","X",null,"UOM","=",0]
[null,null,null,"UOM","X",null,"UOM","X",null,"UOM","X",null,"UOM","=",0]
[null,null,null,"UOM","X",null,"UOM","X",null,"UOM","X",null,"UOM","=",0]
[null,null,null,"UOM","X",null,"UOM","X",null,"UOM","X",null,"UOM","=",0]
[null,null,null,"UOM","X",null,"UOM","X",null,"UOM","X",null,"UOM","=",0]
[null,null,null,"UOM","X",null,"UOM","X",null,"UOM","X",null,"UOM","=",0]
[]
[null,null,null,null,null,null,null,null,null,null,null,null,"Subtotal",null,{"$f":"SUM(O1239:O1253)","v":0}]
[]
[]
["Task 19.0",{"$f":"IF(B511=\"REPLACE FIELD WITH CATEGORY NAME OF YOUR CHOOSING HERE\",\"Category Not Defined Above, Please do not key values in this section\",B511)","v":"Category Not Defined Above, Please do not key values in this section"},null,null,null,null,null,null,null,null,null,null,null,null,{"$f":"IF(B1258=\"Category Not Defined Above, Please do not key values in this section\",0,\"\")","v":0}]
["OTHER","UOM = Unit of Measure",null,null,null,null,null,null,null,null,null,null,null,null,{"$f":"IF(B1258=\"Category Not Defined Above, Please do not key values in this section\",0,\"\")","v":0}]
[null,null,null,"UOM","X",null,"UOM","X",null,"UOM","X",null,"UOM","=",{"$f":"+C1260*F1260*I1260*L1260","v":0}]
[null,null,null,"UOM","X",null,"UOM","X",null,"UOM","X",null,"UOM","=",0]
[null,null,null,"UOM","X",null,"UOM","X",null,"UOM","X",null,"UOM","=",0]
[null,null,null,"UOM","X",null,"UOM","X",null,"UOM","X",null,"UOM","=",0]
[null,null,null,"UOM","X",null,"UOM","X",null,"UOM","X",null,"UOM","=",0]
[null,null,null,"UOM","X",null,"UOM","X",null,"UOM","X",null,"UOM","=",0]
[null,null,null,"UOM","X",null,"UOM","X",null,"UOM","X",null,"UOM","=",0]
[null,null,null,"UOM","X",null,"UOM","X",null,"UOM","X",null,"UOM","=",0]
[null,null,null,"UOM","X",null,"UOM","X",null,"UOM","X",null,"UOM","=",0]
[null,null,null,"UOM","X",null,"UOM","X",null,"UOM","X",null,"UOM","=",0]
[null,null,null,"UOM","X",null,"UOM","X",null,"UOM","X",null,"UOM","=",0]
[null,null,null,"UOM","X",null,"UOM","X",null,"UOM","X",null,"UOM","=",0]
[null,null,null,"UOM","X",null,"UOM","X",null,"UOM","X",null,"UOM","=",0]
[null,null,null,"UOM","X",null,"UOM","X",null,"UOM","X",null,"UOM","=",0]
[null,null,null,"UOM","X",null,"UOM","X",null,"UOM","X",null,"UOM","=",0]
[]
[null,null,null,null,null,null,null,null,null,null,null,null,"Subtotal",null,{"$f":"SUM(O1260:O1274)","v":0}]
[]
[]
["Task 20.0",{"$f":"IF(B545=\"REPLACE FIELD WITH CATEGORY NAME OF YOUR CHOOSING HERE\",\"Category Not Defined Above, Please do not key values in this section\",B545)","v":"Category Not Defined Above, Please do not key values in this section"},null,null,null,null,null,null,null,null,null,null,null,null,{"$f":"IF(B1279=\"Category Not Defined Above, Please do not key values in this section\",0,\"\")","v":0}]
["OTHER","UOM = Unit of Measure",null,null,null,null,null,null,null,null,null,null,null,null,{"$f":"IF(B1279=\"Category Not Defined Above, Please do not key values in this section\",0,\"\")","v":0}]
[null,null,null,"UOM","X",null,"UOM","X",null,"UOM","X",null,"UOM","=",{"$f":"+C1281*F1281*I1281*L1281","v":0}]
[null,null,null,"UOM","X",null,"UOM","X",null,"UOM","X",null,"UOM","=",0]
[null,null,null,"UOM","X",null,"UOM","X",null,"UOM","X",null,"UOM","=",0]
[null,null,null,"UOM","X",null,"UOM","X",null,"UOM","X",null,"UOM","=",0]
[null,null,null,"UOM","X",null,"UOM","X",null,"UOM","X",null,"UOM","=",0]
[null,null,null,"UOM","X",null,"UOM","X",null,"UOM","X",null,"UOM","=",0]
[null,null,null,"UOM","X",null,"UOM","X",null,"UOM","X",null,"UOM","=",0]
[null,null,null,"UOM","X",null,"UOM","X",null,"UOM","X",null,"UOM","=",0]
[null,null,null,"UOM","X",null,"UOM","X",null,"UOM","X",null,"UOM","=",0]
[null,null,null,"UOM","X",null,"UOM","X",null,"UOM","X",null,"UOM","=",0]
[null,null,null,"UOM","X",null,"UOM","X",null,"UOM","X",null,"UOM","=",0]
[null,null,null,"UOM","X",null,"UOM","X",null,"UOM","X",null,"UOM","=",0]
[null,null,null,"UOM","X",null,"UOM","X",null,"UOM","X",null,"UOM","=",0]
[null,null,null,"UOM","X",null,"UOM","X",null,"UOM","X",null,"UOM","=",0]
[null,null,null,"UOM","X",null,"UOM","X",null,"UOM","X",null,"UOM","=",0]
[]
[null,null,null,null,null,null,null,null,null,null,null,null,"Subtotal",null,{"$f":"SUM(O1281:O1295)","v":0}]
[]
[]
[null,null,null,null,null,null,null,null,"Non-Salary Expense Total",null,null,null,null,null,{"$f":"O1297+O1276+O1255+O1234+O1213+O1192+O1172+O1122+O1106+O1094+O1054+O975+O944+O909+O868+O828+O789+O747+O641","v":0}]

{"sheet":"MunicipalSignalSystem-Sub4","index":167,"n_rows":1300,"n_cols":57,"rows_kept":1300,"cut":false,"hidden":true,"merged":[[10,4,10,5],[0,0,0,31],[1,0,1,31],[4,0,4,9],[4,10,4,31],[5,0,5,31],[6,0,6,31],[7,0,7,31],[8,1,8,3],[9,1,9,3],[9,4,9,69],[11,4,11,5],[11,6,11,7],[11,52,11,53],[10,38,10,39],[10,16,10,17],[10,50,10,51],[10,6,10,7],[10,8,10,9],[10,10,10,11],[10,12,10,13],[10,14,10,15],[10,32,10,33],[10,18,10,19],[10,20,10,21],[10,22,10,23],[10,24,10,25],[10,26,10,27],[11,8,11,9],[11,10,11,11],[11,12,11,13],[11,14,11,15],[10,34,10,35],[10,36,10,37],[10,52,10,53],[11,54,12,54],[11,55,12,55],[11,34,11,35],[11,36,11,37],[11,38,11,39],[11,40,11,41],[11,42,11,43],[11,44,11,45],[12,50,12,51],[12,52,12,53],[11,46,11,47],[11,48,11,49],[11,50,11,51],[12,30,12,31],[11,16,11,17],[11,18,11,19],[11,20,11,21],[10,40,10,41],[10,42,10,43],[10,44,10,45],[10,46,10,47],[10,48,10,49],[10,28,10,29],[11,22,11,23],[11,24,11,25],[11,26,11,27],[11,28,11,29],[10,30,10,31],[11,30,11,31],[11,32,11,33],[12,8,12,9],[12,10,12,11],[12,12,12,13],[12,14,12,15],[12,16,12,17],[12,18,12,19],[12,0,13,0],[12,1,13,1],[12,2,13,2],[28,0,28,3],[29,0,29,3],[52,0,52,3],[53,0,53,3],[54,0,54,3],[114,0,114,3],[12,44,12,45],[12,46,12,47],[12,48,12,49],[12,3,13,3],[12,4,12,5],[12,6,12,7],[27,0,27,3],[12,32,12,33],[12,34,12,35],[12,36,12,37],[12,38,12,39],[12,40,12,41],[12,42,12,43],[12,20,12,21],[12,22,12,23],[12,24,12,25],[12,26,12,27],[12,28,12,29],[159,0,159,3],[160,0,160,3],[174,0,174,3],[175,0,175,3],[176,0,176,3],[187,0,187,3],[115,0,115,3],[116,0,116,3],[137,0,137,3],[138,0,138,3],[139,0,139,3],[158,0,158,3],[220,0,220,3],[221,0,221,3],[249,0,249,3],[250,0,250,3],[251,0,251,3],[312,0,312,3],[188,0,188,3],[189,0,189,3],[202,0,202,3],[203,0,203,3],[204,0,204,3],[219,0,219,3],[357,0,357,3],[358,0,358,3],[371,0,371,3],[372,0,372,3],[373,0,373,3],[405,0,405,3],[313,0,313,3],[314,0,314,3],[342,0,342,3],[343,0,343,3],[344,0,344,3],[356,0,356,3],[474,0,474,3],[475,0,475,3],[507,0,507,3],[508,0,508,3],[509,0,509,3],[541,0,541,3],[406,0,406,3],[407,0,407,3],[439,0,439,3],[440,0,440,3],[441,0,441,3],[473,0,473,3],[580,0,580,3],[581,0,581,3],[583,0,583,2],[584,0,584,2],[584,4,584,5],[585,0,585,2],[585,4,585,5],[542,0,542,3],[543,0,543,3],[575,0,575,3],[576,0,576,3],[577,0,577,3],[579,0,579,3],[589,0,589,2],[589,4,589,5],[596,0,596,15],[586,0,586,2],[586,4,586,5],[587,0,587,2],[587,4,587,5],[588,0,588,2],[588,4,588,5]]}
["MUNICIPAL SIGNAL SYSTEM Design - SUBCONSULTANT 4"]
["MUNICIPAL SIGNAL SYSTEM "]
["SCOPING ESTIMATE PREPARED for"]
[]
[{"$f":"CONCATENATE(IF(TIP.NUMBER=\"\",\"TIP\",CONCATENATE(\"TIP:  \",TIP.NUMBER)),IF(TIP.NUMBER=\"\",\"\",\"   \"))","v":"TIP"},null,null,null,null,null,null,null,null,null,{"$f":"CONCATENATE(IF(WBS.NUMBER=\"\",\"\",\"   \"),IF(WBS.NUMBER=\"\",\"WBS\",CONCATENATE(\"WBS:  \",WBS.NUMBER)))","v":"WBS"}]
[{"$f":"IF(COUNTY=\"\",\"COUNTY\",CONCATENATE(\"COUNTY:  \",COUNTY))","v":"COUNTY"}]
[{"$f":"IF(PROJECT.DESCRIPTION=\"\",\"PROJECT DESCRIPTION\",CONCATENATE(\"Project Description:  \",PROJECT.DESCRIPTION))","v":"PROJECT DESCRIPTION"}]
[{"$f":"IF(MUNICIPAL_SIGNAL_SYSTEM_SUB4_CONSULTANT_NAME=\"CONSULTANT NAME\",\"CONSULTANT NAME\", CONCATENATE(\"FIRM:  \",MUNICIPAL_SIGNAL_SYSTEM_SUB4_CONSULTANT_NAME))","v":"CONSULTANT NAME"}]
["Prepared By:",{"$f":"IF(SCOPE.MANDAY.ESTIMATE.PREPARED.BY=\"\",\"\",SCOPE.MANDAY.ESTIMATE.PREPARED.BY)","v":""},null,null,null,null,null,null,null,null,null,null,null,null,null,null,null,null,null,null,null,null,null,null,null,null,null,null,null,null,null,null," "," ",null,null,null,null," "]
["Date:",{"$f":"IF(SCOPE.MANDAY.ESTIMATE.PREPARED.BY.DATE=\"\",\"\",SCOPE.MANDAY.ESTIMATE.PREPARED.BY.DATE)","v":""},null,null,"ESTIMATED WORK HOURS"]
[null,null,null,"POSITION",{"$f":"IF('PEF CLASSIFICATION SHEET'!C1474=\"\",\"\",'PEF CLASSIFICATION SHEET'!C1474)","v":""},null,{"$f":"IF('PEF CLASSIFICATION SHEET'!C1475=\"\",\"\",'PEF CLASSIFICATION SHEET'!C1475)","v":""},null,{"$f":"IF('PEF CLASSIFICATION SHEET'!C1476=\"\",\"\",'PEF CLASSIFICATION SHEET'!C1476)","v":""},null,{"$f":"IF('PEF CLASSIFICATION SHEET'!C1477=\"\",\"\",'PEF CLASSIFICATION SHEET'!C1477)","v":""},null,{"$f":"IF('PEF CLASSIFICATION SHEET'!C1478=\"\",\"\",'PEF CLASSIFICATION SHEET'!C1478)","v":""},null,{"$f":"IF('PEF CLASSIFICATION SHEET'!C1479=\"\",\"\",'PEF CLASSIFICATION SHEET'!C1479)","v":""},null,{"$f":"IF('PEF CLASSIFICATION SHEET'!C1480=\"\",\"\",'PEF CLASSIFICATION SHEET'!C1480)","v":""},null,{"$f":"IF('PEF CLASSIFICATION SHEET'!C1481=\"\",\"\",'PEF CLASSIFICATION SHEET'!C1481)","v":""},null,{"$f":"IF('PEF CLASSIFICATION SHEET'!C1482=\"\",\"\",'PEF CLASSIFICATION SHEET'!C1482)","v":""},null,{"$f":"IF('PEF CLASSIFICATION SHEET'!C1483=\"\",\"\",'PEF CLASSIFICATION SHEET'!C1483)","v":""},null,{"$f":"IF('PEF CLASSIFICATION SHEET'!C1484=\"\",\"\",'PEF CLASSIFICATION SHEET'!C1484)","v":""},null,{"$f":"IF('PEF CLASSIFICATION SHEET'!C1485=\"\",\"\",'PEF CLASSIFICATION SHEET'!C1485)","v":""},null,{"$f":"IF('PEF CLASSIFICATION SHEET'!$C1486=\"\",\"\",'PEF CLASSIFICATION SHEET'!$C1486)","v":""},null,{"$f":"IF('PEF CLASSIFICATION SHEET'!$C1487=\"\",\"\",'PEF CLASSIFICATION SHEET'!$C1487)","v":""},null,{"$f":"IF('PEF CLASSIFICATION SHEET'!$C1488=\"\",\"\",'PEF CLASSIFICATION SHEET'!$C1488)","v":""},null,{"$f":"IF('PEF CLASSIFICATION SHEET'!$C1489=\"\",\"\",'PEF CLASSIFICATION SHEET'!$C1489)","v":""},null,{"$f":"IF('PEF CLASSIFICATION SHEET'!$C1490=\"\",\"\",'PEF CLASSIFICATION SHEET'!$C1490)","v":""},null,{"$f":"IF('PEF CLASSIFICATION SHEET'!$C1491=\"\",\"\",'PEF CLASSIFICATION SHEET'!$C1491)","v":""},null,{"$f":"IF('PEF CLASSIFICATION SHEET'!$C1492=\"\",\"\",'PEF CLASSIFICATION SHEET'!$C1492)","v":""},null,{"$f":"IF('PEF CLASSIFICATION SHEET'!$C1493=\"\",\"\",'PEF CLASSIFICATION SHEET'!$C1493)","v":""},null,{"$f":"IF('PEF CLASSIFICATION SHEET'!$C1494=\"\",\"\",'PEF CLASSIFICATION SHEET'!$C1494)","v":""},null,{"$f":"IF('PEF CLASSIFICATION SHEET'!$C1495=\"\",\"\",'PEF CLASSIFICATION SHEET'!$C1495)","v":""},null,{"$f":"IF('PEF CLASSIFICATION SHEET'!$C1496=\"\",\"\",'PEF CLASSIFICATION SHEET'!$C1496)","v":""},null,{"$f":"IF('PEF CLASSIFICATION SHEET'!$C1497=\"\",\"\",'PEF CLASSIFICATION SHEET'!$C1497)","v":""},null,{"$f":"IF('PEF CLASSIFICATION SHEET'!$C1498=\"\",\"\",'PEF CLASSIFICATION SHEET'!$C1498)","v":""}]
[null,null,null,"EMPLOYEE NAME & RATE",{"$f":"LEFT('PEF CLASSIFICATION SHEET'!D1474,4)","v":""},null,{"$f":"LEFT('PEF CLASSIFICATION SHEET'!D1475,4)","v":""},null,{"$f":"LEFT('PEF CLASSIFICATION SHEET'!D1476,4)","v":""},null,{"$f":"LEFT('PEF CLASSIFICATION SHEET'!D1477,4)","v":""},null,{"$f":"LEFT('PEF CLASSIFICATION SHEET'!D1478,4)","v":""},null,{"$f":"LEFT('PEF CLASSIFICATION SHEET'!D1479,4)","v":""},null,{"$f":"LEFT('PEF CLASSIFICATION SHEET'!D1480,4)","v":""},null,{"$f":"LEFT('PEF CLASSIFICATION SHEET'!D1481,4)","v":""},null,{"$f":"LEFT('PEF CLASSIFICATION SHEET'!D1482,4)","v":""},null,{"$f":"LEFT('PEF CLASSIFICATION SHEET'!D1483,4)","v":""},null,{"$f":"LEFT('PEF CLASSIFICATION SHEET'!D1484,4)","v":""},null,{"$f":"LEFT('PEF CLASSIFICATION SHEET'!D1485,4)","v":""},null,{"$f":"LEFT('PEF CLASSIFICATION SHEET'!$D1486,4)","v":""},null,{"$f":"LEFT('PEF CLASSIFICATION SHEET'!$D1487,4)","v":""},null,{"$f":"LEFT('PEF CLASSIFICATION SHEET'!$D1488,4)","v":""},null,{"$f":"LEFT('PEF CLASSIFICATION SHEET'!$D1489,4)","v":""},null,{"$f":"LEFT('PEF CLASSIFICATION SHEET'!$D1490,4)","v":""},null,{"$f":"LEFT('PEF CLASSIFICATION SHEET'!$D1491,4)","v":""},null,{"$f":"LEFT('PEF CLASSIFICATION SHEET'!$D1492,4)","v":""},null,{"$f":"LEFT('PEF CLASSIFICATION SHEET'!$D1493,4)","v":""},null,{"$f":"LEFT('PEF CLASSIFICATION SHEET'!$D1494,4)","v":""},null,{"$f":"LEFT('PEF CLASSIFICATION SHEET'!$D1495,4)","v":""},null,{"$f":"LEFT('PEF CLASSIFICATION SHEET'!$D1496,4)","v":""},null,{"$f":"LEFT('PEF CLASSIFICATION SHEET'!$D1497,4)","v":""},null,{"$f":"LEFT('PEF CLASSIFICATION SHEET'!$D1498,4)","v":""},null,"SUBTOTAL OF HOURS BY TASK","NOTES"]
["TASK NUMBER","PROJECT TASK","QTY","UNIT",{"$f":"'PEF CLASSIFICATION SHEET'!E1474","v":0},null,{"$f":"'PEF CLASSIFICATION SHEET'!E1475","v":0},null,{"$f":"'PEF CLASSIFICATION SHEET'!E1476","v":0},null,{"$f":"'PEF CLASSIFICATION SHEET'!E1477","v":0},null,{"$f":"'PEF CLASSIFICATION SHEET'!E1478","v":0},null,{"$f":"'PEF CLASSIFICATION SHEET'!E1479","v":0},null,{"$f":"'PEF CLASSIFICATION SHEET'!E1480","v":0},null,{"$f":"'PEF CLASSIFICATION SHEET'!E1481","v":0},null,{"$f":"'PEF CLASSIFICATION SHEET'!E1482","v":0},null,{"$f":"'PEF CLASSIFICATION SHEET'!E1483","v":0},null,{"$f":"'PEF CLASSIFICATION SHEET'!E1484","v":0},null,{"$f":"'PEF CLASSIFICATION SHEET'!E1485","v":0},null,{"$f":"'PEF CLASSIFICATION SHEET'!$E1486","v":0},null,{"$f":"'PEF CLASSIFICATION SHEET'!$E1487","v":0},null,{"$f":"'PEF CLASSIFICATION SHEET'!$E1488","v":0},null,{"$f":"'PEF CLASSIFICATION SHEET'!$E1489","v":0},null,{"$f":"'PEF CLASSIFICATION SHEET'!$E1490","v":0},null,{"$f":"'PEF CLASSIFICATION SHEET'!$E1491","v":0},null,{"$f":"'PEF CLASSIFICATION SHEET'!$E1492","v":0},null,{"$f":"'PEF CLASSIFICATION SHEET'!$E1493","v":0},null,{"$f":"'PEF CLASSIFICATION SHEET'!$E1494","v":0},null,{"$f":"'PEF CLASSIFICATION SHEET'!$E1495","v":0},null,{"$f":"'PEF CLASSIFICATION SHEET'!$E1496","v":0},null,{"$f":"'PEF CLASSIFICATION SHEET'!$E1497","v":0},null,{"$f":"'PEF CLASSIFICATION SHEET'!$E1498","v":0}]
[null,null,null,null,"Hrs Per Unit","Total Hrs","Hrs Per Unit","Total Hrs","Hrs Per Unit","Total Hrs","Hrs Per Unit","Total Hrs","Hrs Per Unit","Total Hrs","Hrs Per Unit","Total Hrs","Hrs Per Unit","Total Hrs","Hrs Per Unit","Total Hrs","Hrs Per Unit","Total Hrs","Hrs Per Unit","Total Hrs","Hrs Per Unit","Total Hrs","Hrs Per Unit","Total Hrs","Hrs Per Unit","Total Hrs","Hrs Per Unit","Total Hrs","Hrs Per Unit","Total Hrs","Hrs Per Unit","Total Hrs","Hrs Per Unit","Total Hrs","Hrs Per Unit","Total Hrs","Hrs Per Unit","Total Hrs","Hrs Per Unit","Total Hrs","Hrs Per Unit","Total Hrs","Hrs Per Unit","Total Hrs","Hrs Per Unit","Total Hrs","Hrs Per Unit","Total Hrs","Hrs Per Unit","Total Hrs"]
["Task 1.0","PROJECT MANAGEMENT",null,null," ",null," ",null,null,null,null,null,null,null,null,null,null,null,null,null,null,null,null,null,null,null,null,null,null,null,null,null,null,null,null,null,null,null,null,null,null,null,null,null,null,null,null,null,null,null,null,null,null,null,null,null," "]
[1.1000000000000001,"Project Work Plan",null,null,{"$f":"IF($C$16=\"\",\"\",F16/$C$16)","v":""},null,{"$f":"IF($C$16=\"\",\"\",H16/$C$16)","v":""},null,{"$f":"IF($C$16=\"\",\"\",J16/$C$16)","v":""},null,{"$f":"IF($C$16=\"\",\"\",L16/$C$16)","v":""},null,{"$f":"IF($C$16=\"\",\"\",N16/$C$16)","v":""},null,{"$f":"IF($C$16=\"\",\"\",P16/$C$16)","v":""},null,{"$f":"IF($C$16=\"\",\"\",R16/$C$16)","v":""},null,{"$f":"IF($C$16=\"\",\"\",T16/$C$16)","v":""},null,{"$f":"IF($C$16=\"\",\"\",V16/$C$16)","v":""},null,{"$f":"IF($C$16=\"\",\"\",X16/$C$16)","v":""},null,{"$f":"IF($C$16=\"\",\"\",Z16/$C$16)","v":""},null,{"$f":"IF($C$16=\"\",\"\",AB16/$C$16)","v":""},null,{"$f":"IF($C$16=\"\",\"\",AD16/$C$16)","v":""},null,{"$f":"IF($C$16=\"\",\"\",AF16/$C$16)","v":""},null,{"$f":"IF($C$16=\"\",\"\",AH16/$C$16)","v":""},null,{"$f":"IF($C$16=\"\",\"\",AJ16/$C$16)","v":""},null,{"$f":"IF($C$16=\"\",\"\",AL16/$C$16)","v":""},null,{"$f":"IF($C$16=\"\",\"\",AN16/$C$16)","v":""},null,{"$f":"IF($C$16=\"\",\"\",AP16/$C$16)","v":""},null,{"$f":"IF($C$16=\"\",\"\",AR16/$C$16)","v":""},null,{"$f":"IF($C$16=\"\",\"\",AT16/$C$16)","v":""},null,{"$f":"IF($C$16=\"\",\"\",AV16/$C$16)","v":""},null,{"$f":"IF($C$16=\"\",\"\",AX16/$C$16)","v":""},null,{"$f":"IF($C$16=\"\",\"\",AZ16/$C$16)","v":""},null,{"$f":"IF($C$16=\"\",\"\",BB16/$C$16)","v":""},null,{"$f":"SUM(BB16,AZ16,AX16,AV16,AT16,AR16,AP16,AN16,AL16,AJ16,AH16,AF16,AD16,AB16,Z16,X16,V16,T16,R16,P16,N16,L16,J16,H16,F16)","v":0}]
[1.2,"Project Meetings",null,null,{"$f":"IF($C$17=\"\",\"\",F17/$C$17)","v":""},null,{"$f":"IF($C$17=\"\",\"\",H17/$C$17)","v":""},null,{"$f":"IF($C$17=\"\",\"\",J17/$C$17)","v":""},null,{"$f":"IF($C$17=\"\",\"\",L17/$C$17)","v":""},null,{"$f":"IF($C$17=\"\",\"\",N17/$C$17)","v":""},null,{"$f":"IF($C$17=\"\",\"\",P17/$C$17)","v":""},null,{"$f":"IF($C$17=\"\",\"\",R17/$C$17)","v":""},null,{"$f":"IF($C$17=\"\",\"\",T17/$C$17)","v":""},null,{"$f":"IF($C$17=\"\",\"\",V17/$C$17)","v":""},null,{"$f":"IF($C$17=\"\",\"\",X17/$C$17)","v":""},null,{"$f":"IF($C$17=\"\",\"\",Z17/$C$17)","v":""},null,{"$f":"IF($C$17=\"\",\"\",AB17/$C$17)","v":""},null,{"$f":"IF($C$17=\"\",\"\",AD17/$C$17)","v":""},null,{"$f":"IF($C$17=\"\",\"\",AF17/$C$17)","v":""},null,{"$f":"IF($C$17=\"\",\"\",AH17/$C$17)","v":""},null,{"$f":"IF($C$17=\"\",\"\",AJ17/$C$17)","v":""},null,{"$f":"IF($C$17=\"\",\"\",AL17/$C$17)","v":""},null,{"$f":"IF($C$17=\"\",\"\",AN17/$C$17)","v":""},null,{"$f":"IF($C$17=\"\",\"\",AP17/$C$17)","v":""},null,{"$f":"IF($C$17=\"\",\"\",AR17/$C$17)","v":""},null,{"$f":"IF($C$17=\"\",\"\",AT17/$C$17)","v":""},null,{"$f":"IF($C$17=\"\",\"\",AV17/$C$17)","v":""},null,{"$f":"IF($C$17=\"\",\"\",AX17/$C$17)","v":""},null,{"$f":"IF($C$17=\"\",\"\",AZ17/$C$17)","v":""},null,{"$f":"IF($C$17=\"\",\"\",BB17/$C$17)","v":""},null,{"$f":"SUM(BB17,AZ17,AX17,AV17,AT17,AR17,AP17,AN17,AL17,AJ17,AH17,AF17,AD17,AB17,Z17,X17,V17,T17,R17,P17,N17,L17,J17,H17,F17)","v":0}]
[1.3,"Project Status Reports & Invoices",null,null,{"$f":"IF($C$18=\"\",\"\",F18/$C$18)","v":""},null,{"$f":"IF($C$18=\"\",\"\",H18/$C$18)","v":""},null,{"$f":"IF($C$18=\"\",\"\",J18/$C$18)","v":""},null,{"$f":"IF($C$18=\"\",\"\",L18/$C$18)","v":""},null,{"$f":"IF($C$18=\"\",\"\",N18/$C$18)","v":""},null,{"$f":"IF($C$18=\"\",\"\",P18/$C$18)","v":""},null,{"$f":"IF($C$18=\"\",\"\",R18/$C$18)","v":""},null,{"$f":"IF($C$18=\"\",\"\",T18/$C$18)","v":""},null,{"$f":"IF($C$18=\"\",\"\",V18/$C$18)","v":""},null,{"$f":"IF($C$18=\"\",\"\",X18/$C$18)","v":""},null,{"$f":"IF($C$18=\"\",\"\",Z18/$C$18)","v":""},null,{"$f":"IF($C$18=\"\",\"\",AB18/$C$18)","v":""},null,{"$f":"IF($C$18=\"\",\"\",AD18/$C$18)","v":""},null,{"$f":"IF($C$18=\"\",\"\",AF18/$C$18)","v":""},null,{"$f":"IF($C$18=\"\",\"\",AH18/$C$18)","v":""},null,{"$f":"IF($C$18=\"\",\"\",AJ18/$C$18)","v":""},null,{"$f":"IF($C$18=\"\",\"\",AL18/$C$18)","v":""},null,{"$f":"IF($C$18=\"\",\"\",AN18/$C$18)","v":""},null,{"$f":"IF($C$18=\"\",\"\",AP18/$C$18)","v":""},null,{"$f":"IF($C$18=\"\",\"\",AR18/$C$18)","v":""},null,{"$f":"IF($C$18=\"\",\"\",AT18/$C$18)","v":""},null,{"$f":"IF($C$18=\"\",\"\",AV18/$C$18)","v":""},null,{"$f":"IF($C$18=\"\",\"\",AX18/$C$18)","v":""},null,{"$f":"IF($C$18=\"\",\"\",AZ18/$C$18)","v":""},null,{"$f":"IF($C$18=\"\",\"\",BB18/$C$18)","v":""},null,0]
[1.4,"Project Records and Files/Project Web Site",null,null,{"$f":"IF($C$19=\"\",\"\",F19/$C$19)","v":""},null,{"$f":"IF($C$19=\"\",\"\",H19/$C$19)","v":""},null,{"$f":"IF($C$19=\"\",\"\",J19/$C$19)","v":""},null,{"$f":"IF($C$19=\"\",\"\",L19/$C$19)","v":""},null,{"$f":"IF($C$19=\"\",\"\",N19/$C$19)","v":""},null,{"$f":"IF($C$19=\"\",\"\",P19/$C$19)","v":""},null,{"$f":"IF($C$19=\"\",\"\",R19/$C$19)","v":""},null,{"$f":"IF($C$19=\"\",\"\",T19/$C$19)","v":""},null,{"$f":"IF($C$19=\"\",\"\",V19/$C$19)","v":""},null,{"$f":"IF($C$19=\"\",\"\",X19/$C$19)","v":""},null,{"$f":"IF($C$19=\"\",\"\",Z19/$C$19)","v":""},null,{"$f":"IF($C$19=\"\",\"\",AB19/$C$19)","v":""},null,{"$f":"IF($C$19=\"\",\"\",AD19/$C$19)","v":""},null,{"$f":"IF($C$19=\"\",\"\",AF19/$C$19)","v":""},null,{"$f":"IF($C$19=\"\",\"\",AH19/$C$19)","v":""},null,{"$f":"IF($C$19=\"\",\"\",AJ19/$C$19)","v":""},null,{"$f":"IF($C$19=\"\",\"\",AL19/$C$19)","v":""},null,{"$f":"IF($C$19=\"\",\"\",AN19/$C$19)","v":""},null,{"$f":"IF($C$19=\"\",\"\",AP19/$C$19)","v":""},null,{"$f":"IF($C$19=\"\",\"\",AR19/$C$19)","v":""},null,{"$f":"IF($C$19=\"\",\"\",AT19/$C$19)","v":""},null,{"$f":"IF($C$19=\"\",\"\",AV19/$C$19)","v":""},null,{"$f":"IF($C$19=\"\",\"\",AX19/$C$19)","v":""},null,{"$f":"IF($C$19=\"\",\"\",AZ19/$C$19)","v":""},null,{"$f":"IF($C$19=\"\",\"\",BB19/$C$19)","v":""},null,0]
[1.5,"Subconsultant Management and Coordination",null,null,{"$f":"IF($C$20=\"\",\"\",F20/$C$20)","v":""},null,{"$f":"IF($C$20=\"\",\"\",H20/$C$20)","v":""},null,{"$f":"IF($C$20=\"\",\"\",J20/$C$20)","v":""},null,{"$f":"IF($C$20=\"\",\"\",L20/$C$20)","v":""},null,{"$f":"IF($C$20=\"\",\"\",N20/$C$20)","v":""},null,{"$f":"IF($C$20=\"\",\"\",P20/$C$20)","v":""},null,{"$f":"IF($C$20=\"\",\"\",R20/$C$20)","v":""},null,{"$f":"IF($C$20=\"\",\"\",T20/$C$20)","v":""},null,{"$f":"IF($C$20=\"\",\"\",V20/$C$20)","v":""},null,{"$f":"IF($C$20=\"\",\"\",X20/$C$20)","v":""},null,{"$f":"IF($C$20=\"\",\"\",Z20/$C$20)","v":""},null,{"$f":"IF($C$20=\"\",\"\",AB20/$C$20)","v":""},null,{"$f":"IF($C$20=\"\",\"\",AD20/$C$20)","v":""},null,{"$f":"IF($C$20=\"\",\"\",AF20/$C$20)","v":""},null,{"$f":"IF($C$20=\"\",\"\",AH20/$C$20)","v":""},null,{"$f":"IF($C$20=\"\",\"\",AJ20/$C$20)","v":""},null,{"$f":"IF($C$20=\"\",\"\",AL20/$C$20)","v":""},null,{"$f":"IF($C$20=\"\",\"\",AN20/$C$20)","v":""},null,{"$f":"IF($C$20=\"\",\"\",AP20/$C$20)","v":""},null,{"$f":"IF($C$20=\"\",\"\",AR20/$C$20)","v":""},null,{"$f":"IF($C$20=\"\",\"\",AT20/$C$20)","v":""},null,{"$f":"IF($C$20=\"\",\"\",AV20/$C$20)","v":""},null,{"$f":"IF($C$20=\"\",\"\",AX20/$C$20)","v":""},null,{"$f":"IF($C$20=\"\",\"\",AZ20/$C$20)","v":""},null,{"$f":"IF($C$20=\"\",\"\",BB20/$C$20)","v":""},null,0]
[null,null,null,null,{"$f":"IF($C$21=\"\",\"\",F21/$C$21)","v":""},null,{"$f":"IF($C$21=\"\",\"\",H21/$C$21)","v":""},null,{"$f":"IF($C$21=\"\",\"\",J21/$C$21)","v":""},null,{"$f":"IF($C$21=\"\",\"\",L21/$C$21)","v":""},null,{"$f":"IF($C$21=\"\",\"\",N21/$C$21)","v":""},null,{"$f":"IF($C$21=\"\",\"\",P21/$C$21)","v":""},null,{"$f":"IF($C$21=\"\",\"\",R21/$C$21)","v":""},null,{"$f":"IF($C$21=\"\",\"\",T21/$C$21)","v":""},null,{"$f":"IF($C$21=\"\",\"\",V21/$C$21)","v":""},null,{"$f":"IF($C$21=\"\",\"\",X21/$C$21)","v":""},null,{"$f":"IF($C$21=\"\",\"\",Z21/$C$21)","v":""},null,{"$f":"IF($C$21=\"\",\"\",AB21/$C$21)","v":""},null,{"$f":"IF($C$21=\"\",\"\",AD21/$C$21)","v":""},null,{"$f":"IF($C$21=\"\",\"\",AF21/$C$21)","v":""},null,{"$f":"IF($C$21=\"\",\"\",AH21/$C$21)","v":""},null,{"$f":"IF($C$21=\"\",\"\",AJ21/$C$21)","v":""},null,{"$f":"IF($C$21=\"\",\"\",AL21/$C$21)","v":""},null,{"$f":"IF($C$21=\"\",\"\",AN21/$C$21)","v":""},null,{"$f":"IF($C$21=\"\",\"\",AP21/$C$21)","v":""},null,{"$f":"IF($C$21=\"\",\"\",AR21/$C$21)","v":""},null,{"$f":"IF($C$21=\"\",\"\",AT21/$C$21)","v":""},null,{"$f":"IF($C$21=\"\",\"\",AV21/$C$21)","v":""},null,{"$f":"IF($C$21=\"\",\"\",AX21/$C$21)","v":""},null,{"$f":"IF($C$21=\"\",\"\",AZ21/$C$21)","v":""},null,{"$f":"IF($C$21=\"\",\"\",BB21/$C$21)","v":""},null,0]
[null,null,null,null,{"$f":"IF($C$22=\"\",\"\",F22/$C$22)","v":""},null,{"$f":"IF($C$22=\"\",\"\",H22/$C$22)","v":""},null,{"$f":"IF($C$22=\"\",\"\",J22/$C$22)","v":""},null,{"$f":"IF($C$22=\"\",\"\",L22/$C$22)","v":""},null,{"$f":"IF($C$22=\"\",\"\",N22/$C$22)","v":""},null,{"$f":"IF($C$22=\"\",\"\",P22/$C$22)","v":""},null,{"$f":"IF($C$22=\"\",\"\",R22/$C$22)","v":""},null,{"$f":"IF($C$22=\"\",\"\",T22/$C$22)","v":""},null,{"$f":"IF($C$22=\"\",\"\",V22/$C$22)","v":""},null,{"$f":"IF($C$22=\"\",\"\",X22/$C$22)","v":""},null,{"$f":"IF($C$22=\"\",\"\",Z22/$C$22)","v":""},null,{"$f":"IF($C$22=\"\",\"\",AB22/$C$22)","v":""},null,{"$f":"IF($C$22=\"\",\"\",AD22/$C$22)","v":""},null,{"$f":"IF($C$22=\"\",\"\",AF22/$C$22)","v":""},null,{"$f":"IF($C$22=\"\",\"\",AH22/$C$22)","v":""},null,{"$f":"IF($C$22=\"\",\"\",AJ22/$C$22)","v":""},null,{"$f":"IF($C$22=\"\",\"\",AL22/$C$22)","v":""},null,{"$f":"IF($C$22=\"\",\"\",AN22/$C$22)","v":""},null,{"$f":"IF($C$22=\"\",\"\",AP22/$C$22)","v":""},null,{"$f":"IF($C$22=\"\",\"\",AR22/$C$22)","v":""},null,{"$f":"IF($C$22=\"\",\"\",AT22/$C$22)","v":""},null,{"$f":"IF($C$22=\"\",\"\",AV22/$C$22)","v":""},null,{"$f":"IF($C$22=\"\",\"\",AX22/$C$22)","v":""},null,{"$f":"IF($C$22=\"\",\"\",AZ22/$C$22)","v":""},null,{"$f":"IF($C$22=\"\",\"\",BB22/$C$22)","v":""},null,0]
[null,null,null,null,{"$f":"IF($C$23=\"\",\"\",F23/$C$23)","v":""},null,{"$f":"IF($C$23=\"\",\"\",H23/$C$23)","v":""},null,{"$f":"IF($C$23=\"\",\"\",J23/$C$23)","v":""},null,{"$f":"IF($C$23=\"\",\"\",L23/$C$23)","v":""},null,{"$f":"IF($C$23=\"\",\"\",N23/$C$23)","v":""},null,{"$f":"IF($C$23=\"\",\"\",P23/$C$23)","v":""},null,{"$f":"IF($C$23=\"\",\"\",R23/$C$23)","v":""},null,{"$f":"IF($C$23=\"\",\"\",T23/$C$23)","v":""},null,{"$f":"IF($C$23=\"\",\"\",V23/$C$23)","v":""},null,{"$f":"IF($C$23=\"\",\"\",X23/$C$23)","v":""},null,{"$f":"IF($C$23=\"\",\"\",Z23/$C$23)","v":""},null,{"$f":"IF($C$23=\"\",\"\",AB23/$C$23)","v":""},null,{"$f":"IF($C$23=\"\",\"\",AD23/$C$23)","v":""},null,{"$f":"IF($C$23=\"\",\"\",AF23/$C$23)","v":""},null,{"$f":"IF($C$23=\"\",\"\",AH23/$C$23)","v":""},null,{"$f":"IF($C$23=\"\",\"\",AJ23/$C$23)","v":""},null,{"$f":"IF($C$23=\"\",\"\",AL23/$C$23)","v":""},null,{"$f":"IF($C$23=\"\",\"\",AN23/$C$23)","v":""},null,{"$f":"IF($C$23=\"\",\"\",AP23/$C$23)","v":""},null,{"$f":"IF($C$23=\"\",\"\",AR23/$C$23)","v":""},null,{"$f":"IF($C$23=\"\",\"\",AT23/$C$23)","v":""},null,{"$f":"IF($C$23=\"\",\"\",AV23/$C$23)","v":""},null,{"$f":"IF($C$23=\"\",\"\",AX23/$C$23)","v":""},null,{"$f":"IF($C$23=\"\",\"\",AZ23/$C$23)","v":""},null,{"$f":"IF($C$23=\"\",\"\",BB23/$C$23)","v":""},null,0]
[null,null,null,null,{"$f":"IF($C$24=\"\",\"\",F24/$C$24)","v":""},null,{"$f":"IF($C$24=\"\",\"\",H24/$C$24)","v":""},null,{"$f":"IF($C$24=\"\",\"\",J24/$C$24)","v":""},null,{"$f":"IF($C$24=\"\",\"\",L24/$C$24)","v":""},null,{"$f":"IF($C$24=\"\",\"\",N24/$C$24)","v":""},null,{"$f":"IF($C$24=\"\",\"\",P24/$C$24)","v":""},null,{"$f":"IF($C$24=\"\",\"\",R24/$C$24)","v":""},null,{"$f":"IF($C$24=\"\",\"\",T24/$C$24)","v":""},null,{"$f":"IF($C$24=\"\",\"\",V24/$C$24)","v":""},null,{"$f":"IF($C$24=\"\",\"\",X24/$C$24)","v":""},null,{"$f":"IF($C$24=\"\",\"\",Z24/$C$24)","v":""},null,{"$f":"IF($C$24=\"\",\"\",AB24/$C$24)","v":""},null,{"$f":"IF($C$24=\"\",\"\",AD24/$C$24)","v":""},null,{"$f":"IF($C$24=\"\",\"\",AF24/$C$24)","v":""},null,{"$f":"IF($C$24=\"\",\"\",AH24/$C$24)","v":""},null,{"$f":"IF($C$24=\"\",\"\",AJ24/$C$24)","v":""},null,{"$f":"IF($C$24=\"\",\"\",AL24/$C$24)","v":""},null,{"$f":"IF($C$24=\"\",\"\",AN24/$C$24)","v":""},null,{"$f":"IF($C$24=\"\",\"\",AP24/$C$24)","v":""},null,{"$f":"IF($C$24=\"\",\"\",AR24/$C$24)","v":""},null,{"$f":"IF($C$24=\"\",\"\",AT24/$C$24)","v":""},null,{"$f":"IF($C$24=\"\",\"\",AV24/$C$24)","v":""},null,{"$f":"IF($C$24=\"\",\"\",AX24/$C$24)","v":""},null,{"$f":"IF($C$24=\"\",\"\",AZ24/$C$24)","v":""},null,{"$f":"IF($C$24=\"\",\"\",BB24/$C$24)","v":""},null,0]
[null,null,null,null,{"$f":"IF($C$25=\"\",\"\",F25/$C$25)","v":""},null,{"$f":"IF($C$25=\"\",\"\",H25/$C$25)","v":""},null,{"$f":"IF($C$25=\"\",\"\",J25/$C$25)","v":""},null,{"$f":"IF($C$25=\"\",\"\",L25/$C$25)","v":""},null,{"$f":"IF($C$25=\"\",\"\",N25/$C$25)","v":""},null,{"$f":"IF($C$25=\"\",\"\",P25/$C$25)","v":""},null,{"$f":"IF($C$25=\"\",\"\",R25/$C$25)","v":""},null,{"$f":"IF($C$25=\"\",\"\",T25/$C$25)","v":""},null,{"$f":"IF($C$25=\"\",\"\",V25/$C$25)","v":""},null,{"$f":"IF($C$25=\"\",\"\",X25/$C$25)","v":""},null,{"$f":"IF($C$25=\"\",\"\",Z25/$C$25)","v":""},null,{"$f":"IF($C$25=\"\",\"\",AB25/$C$25)","v":""},null,{"$f":"IF($C$25=\"\",\"\",AD25/$C$25)","v":""},null,{"$f":"IF($C$25=\"\",\"\",AF25/$C$25)","v":""},null,{"$f":"IF($C$25=\"\",\"\",AH25/$C$25)","v":""},null,{"$f":"IF($C$25=\"\",\"\",AJ25/$C$25)","v":""},null,{"$f":"IF($C$25=\"\",\"\",AL25/$C$25)","v":""},null,{"$f":"IF($C$25=\"\",\"\",AN25/$C$25)","v":""},null,{"$f":"IF($C$25=\"\",\"\",AP25/$C$25)","v":""},null,{"$f":"IF($C$25=\"\",\"\",AR25/$C$25)","v":""},null,{"$f":"IF($C$25=\"\",\"\",AT25/$C$25)","v":""},null,{"$f":"IF($C$25=\"\",\"\",AV25/$C$25)","v":""},null,{"$f":"IF($C$25=\"\",\"\",AX25/$C$25)","v":""},null,{"$f":"IF($C$25=\"\",\"\",AZ25/$C$25)","v":""},null,{"$f":"IF($C$25=\"\",\"\",BB25/$C$25)","v":""},null,0]
[null,null,null,null,{"$f":"IF($C$26=\"\",\"\",F26/$C$26)","v":""},null,{"$f":"IF($C$26=\"\",\"\",H26/$C$26)","v":""},null,{"$f":"IF($C$26=\"\",\"\",J26/$C$26)","v":""},null,{"$f":"IF($C$26=\"\",\"\",L26/$C$26)","v":""},null,{"$f":"IF($C$26=\"\",\"\",N26/$C$26)","v":""},null,{"$f":"IF($C$26=\"\",\"\",P26/$C$26)","v":""},null,{"$f":"IF($C$26=\"\",\"\",R26/$C$26)","v":""},null,{"$f":"IF($C$26=\"\",\"\",T26/$C$26)","v":""},null,{"$f":"IF($C$26=\"\",\"\",V26/$C$26)","v":""},null,{"$f":"IF($C$26=\"\",\"\",X26/$C$26)","v":""},null,{"$f":"IF($C$26=\"\",\"\",Z26/$C$26)","v":""},null,{"$f":"IF($C$26=\"\",\"\",AB26/$C$26)","v":""},null,{"$f":"IF($C$26=\"\",\"\",AD26/$C$26)","v":""},null,{"$f":"IF($C$26=\"\",\"\",AF26/$C$26)","v":""},null,{"$f":"IF($C$26=\"\",\"\",AH26/$C$26)","v":""},null,{"$f":"IF($C$26=\"\",\"\",AJ26/$C$26)","v":""},null,{"$f":"IF($C$26=\"\",\"\",AL26/$C$26)","v":""},null,{"$f":"IF($C$26=\"\",\"\",AN26/$C$26)","v":""},null,{"$f":"IF($C$26=\"\",\"\",AP26/$C$26)","v":""},null,{"$f":"IF($C$26=\"\",\"\",AR26/$C$26)","v":""},null,{"$f":"IF($C$26=\"\",\"\",AT26/$C$26)","v":""},null,{"$f":"IF($C$26=\"\",\"\",AV26/$C$26)","v":""},null,{"$f":"IF($C$26=\"\",\"\",AX26/$C$26)","v":""},null,{"$f":"IF($C$26=\"\",\"\",AZ26/$C$26)","v":""},null,{"$f":"IF($C$26=\"\",\"\",BB26/$C$26)","v":""},null,{"$f":"SUM(BB26,AZ26,AX26,AV26,AT26,AR26,AP26,AN26,AL26,AJ26,AH26,AF26,AD26,AB26,Z26,X26,V26,T26,R26,P26,N26,L26,J26,H26,F26)","v":0}]
[null,null,null,null,{"$f":"IF($C$27=\"\",\"\",F27/$C$27)","v":""},null,{"$f":"IF($C$27=\"\",\"\",H27/$C$27)","v":""},null,{"$f":"IF($C$27=\"\",\"\",J27/$C$27)","v":""},null,{"$f":"IF($C$27=\"\",\"\",L27/$C$27)","v":""},null,{"$f":"IF($C$27=\"\",\"\",N27/$C$27)","v":""},null,{"$f":"IF($C$27=\"\",\"\",P27/$C$27)","v":""},null,{"$f":"IF($C$27=\"\",\"\",R27/$C$27)","v":""},null,{"$f":"IF($C$27=\"\",\"\",T27/$C$27)","v":""},null,{"$f":"IF($C$27=\"\",\"\",V27/$C$27)","v":""},null,{"$f":"IF($C$27=\"\",\"\",X27/$C$27)","v":""},null,{"$f":"IF($C$27=\"\",\"\",Z27/$C$27)","v":""},null,{"$f":"IF($C$27=\"\",\"\",AB27/$C$27)","v":""},null,{"$f":"IF($C$27=\"\",\"\",AD27/$C$27)","v":""},null,{"$f":"IF($C$27=\"\",\"\",AF27/$C$27)","v":""},null,{"$f":"IF($C$27=\"\",\"\",AH27/$C$27)","v":""},null,{"$f":"IF($C$27=\"\",\"\",AJ27/$C$27)","v":""},null,{"$f":"IF($C$27=\"\",\"\",AL27/$C$27)","v":""},null,{"$f":"IF($C$27=\"\",\"\",AN27/$C$27)","v":""},null,{"$f":"IF($C$27=\"\",\"\",AP27/$C$27)","v":""},null,{"$f":"IF($C$27=\"\",\"\",AR27/$C$27)","v":""},null,{"$f":"IF($C$27=\"\",\"\",AT27/$C$27)","v":""},null,{"$f":"IF($C$27=\"\",\"\",AV27/$C$27)","v":""},null,{"$f":"IF($C$27=\"\",\"\",AX27/$C$27)","v":""},null,{"$f":"IF($C$27=\"\",\"\",AZ27/$C$27)","v":""},null,{"$f":"IF($C$27=\"\",\"\",BB27/$C$27)","v":""},null,{"$f":"SUM(BB27,AZ27,AX27,AV27,AT27,AR27,AP27,AN27,AL27,AJ27,AH27,AF27,AD27,AB27,Z27,X27,V27,T27,R27,P27,N27,L27,J27,H27,F27)","v":0}]
["TOTAL HOURS",null,null,null,null,{"$f":"SUM(F16:F27)","v":0},null,{"$f":"SUM(H16:H27)","v":0},null,{"$f":"SUM(J16:J27)","v":0},null,{"$f":"SUM(L16:L27)","v":0},null,{"$f":"SUM(N16:N27)","v":0},null,{"$f":"SUM(P16:P27)","v":0},null,{"$f":"SUM(R16:R27)","v":0},null,{"$f":"SUM(T16:T27)","v":0},null,{"$f":"SUM(V16:V27)","v":0},null,{"$f":"SUM(X16:X27)","v":0},null,{"$f":"SUM(Z16:Z27)","v":0},null,{"$f":"SUM(AB16:AB27)","v":0},null,{"$f":"SUM(AD16:AD27)","v":0},null,{"$f":"SUM(AF16:AF27)","v":0},null,{"$f":"SUM(AH16:AH27)","v":0},null,{"$f":"SUM(AJ16:AJ27)","v":0},null,{"$f":"SUM(AL16:AL27)","v":0},null,{"$f":"SUM(AN16:AN27)","v":0},null,{"$f":"SUM(AP16:AP27)","v":0},null,{"$f":"SUM(AR16:AR27)","v":0},null,{"$f":"SUM(AT16:AT27)","v":0},null,{"$f":"SUM(AV16:AV27)","v":0},null,{"$f":"SUM(AX16:AX27)","v":0},null,{"$f":"SUM(AZ16:AZ27)","v":0},null,{"$f":"SUM(BB16:BB27)","v":0},{"$f":"SUM(E28:BB28)","v":0}]
["TOTAL WORKDAYS",null,null,null,null,{"$f":"F28/8","v":0},null,{"$f":"H28/8","v":0},null,{"$f":"J28/8","v":0},null,{"$f":"L28/8","v":0},null,{"$f":"N28/8","v":0},null,{"$f":"P28/8","v":0},null,{"$f":"R28/8","v":0},null,{"$f":"T28/8","v":0},null,{"$f":"V28/8","v":0},null,{"$f":"X28/8","v":0},null,{"$f":"Z28/8","v":0},null,{"$f":"AB28/8","v":0},null,{"$f":"AD28/8","v":0},null,0,null,{"$f":"AH28/8","v":0},null,0,null,{"$f":"AL28/8","v":0},null,0,null,{"$f":"AP28/8","v":0},null,0,null,{"$f":"AT28/8","v":0},null,{"$f":"AV28/8","v":0},null,{"$f":"AX28/8","v":0},null,{"$f":"AZ28/8","v":0},null,{"$f":"BB28/8","v":0},{"$f":"SUM(E29:BB29)","v":0}]
["TOTAL RAW LABOR",null,null,null,null,{"$f":"$E$13*F28","v":0},null,{"$f":"$G$13*H28","v":0},null,{"$f":"$I$13*J28","v":0},null,{"$f":"$K$13*L28","v":0},null,{"$f":"$M$13*N28","v":0},null,{"$f":"$O$13*P28","v":0},null,{"$f":"$Q$13*R28","v":0},null,{"$f":"$S$13*T28","v":0},null,{"$f":"$U$13*V28","v":0},null,{"$f":"$W$13*X28","v":0},null,{"$f":"$Y$13*Z28","v":0},null,{"$f":"$AA$13*AB28","v":0},null,{"$f":"$AC$13*AD28","v":0},null,{"$f":"$AC$13*AF28","v":0},null,{"$f":"$AC$13*AH28","v":0},null,{"$f":"$AC$13*AJ28","v":0},null,{"$f":"$AC$13*AL28","v":0},null,{"$f":"$AC$13*AN28","v":0},null,{"$f":"$AC$13*AP28","v":0},null,{"$f":"$AC$13*AR28","v":0},null,{"$f":"$AC$13*AT28","v":0},null,{"$f":"$AC$13*AV28","v":0},null,{"$f":"$AC$13*AX28","v":0},null,{"$f":"$AC$13*AZ28","v":0},null,{"$f":"$AC$13*BB28","v":0},{"$f":"SUM(E30:BB30)","v":0}]
["Task 2.0     ","FUNCTIONAL DESIGN",null,null," ",null," ",null," ",null," ",null," ",null," ",null," ",null," ",null," ",null," ",null," ",null," ",null," ",null," ",null," ",null," ",null," ",null," ",null," ",null," ",null," ",null," ",null," ",null," ",null," "]
[2.1,"Systems Engineering Document/Project Architecture"]
["    2.1.1","    Summarize Existing System Operations and   \n    Functionality",null,null,{"$f":"IF($C$33=\"\",\"\",F33/$C$33)","v":""},null,{"$f":"IF($C$33=\"\",\"\",H33/$C$33)","v":""},null,{"$f":"IF($C$33=\"\",\"\",J33/$C$33)","v":""},null,{"$f":"IF($C$33=\"\",\"\",L33/$C$33)","v":""},null,{"$f":"IF($C$33=\"\",\"\",N33/$C$33)","v":""},null,{"$f":"IF($C$33=\"\",\"\",P33/$C$33)","v":""},null,{"$f":"IF($C$33=\"\",\"\",R33/$C$33)","v":""},null,{"$f":"IF($C$33=\"\",\"\",T33/$C$33)","v":""},null,{"$f":"IF($C$33=\"\",\"\",V33/$C$33)","v":""},null,{"$f":"IF($C$33=\"\",\"\",X33/$C$33)","v":""},null,{"$f":"IF($C$33=\"\",\"\",Z33/$C$33)","v":""},null,{"$f":"IF($C$33=\"\",\"\",AB33/$C$33)","v":""},null,{"$f":"IF($C$33=\"\",\"\",AD33/$C$33)","v":""},null,{"$f":"IF($C$33=\"\",\"\",AF33/$C$33)","v":""},null,{"$f":"IF($C$33=\"\",\"\",AH33/$C$33)","v":""},null,{"$f":"IF($C$33=\"\",\"\",AJ33/$C$33)","v":""},null,{"$f":"IF($C$33=\"\",\"\",AL33/$C$33)","v":""},null,{"$f":"IF($C$33=\"\",\"\",AN33/$C$33)","v":""},null,{"$f":"IF($C$33=\"\",\"\",AP33/$C$33)","v":""},null,{"$f":"IF($C$33=\"\",\"\",AR33/$C$33)","v":""},null,{"$f":"IF($C$33=\"\",\"\",AT33/$C$33)","v":""},null,{"$f":"IF($C$33=\"\",\"\",AV33/$C$33)","v":""},null,{"$f":"IF($C$33=\"\",\"\",AX33/$C$33)","v":""},null,{"$f":"IF($C$33=\"\",\"\",AZ33/$C$33)","v":""},null,{"$f":"IF($C$33=\"\",\"\",BB33/$C$33)","v":""},null,{"$f":"SUM(BB33,AZ33,AX33,AV33,AT33,AR33,AP33,AN33,AL33,AJ33,AH33,AF33,AD33,AB33,Z33,X33,V33,T33,R33,P33,N33,L33,J33,H33,F33)","v":0}]
["    2.1.2    ","    Summarize Proposed System Functional Needs \n    and Boundaries",null,null,{"$f":"IF($C$34=\"\",\"\",F34/$C$34)","v":""},null,{"$f":"IF($C$34=\"\",\"\",H34/$C$34)","v":""},null,{"$f":"IF($C$34=\"\",\"\",J34/$C$34)","v":""},null,{"$f":"IF($C$34=\"\",\"\",L34/$C$34)","v":""},null,{"$f":"IF($C$34=\"\",\"\",N34/$C$34)","v":""},null,{"$f":"IF($C$34=\"\",\"\",P34/$C$34)","v":""},null,{"$f":"IF($C$34=\"\",\"\",R34/$C$34)","v":""},null,{"$f":"IF($C$34=\"\",\"\",T34/$C$34)","v":""},null,{"$f":"IF($C$34=\"\",\"\",V34/$C$34)","v":""},null,{"$f":"IF($C$34=\"\",\"\",X34/$C$34)","v":""},null,{"$f":"IF($C$34=\"\",\"\",Z34/$C$34)","v":""},null,{"$f":"IF($C$34=\"\",\"\",AB34/$C$34)","v":""},null,{"$f":"IF($C$34=\"\",\"\",AD34/$C$34)","v":""},null,{"$f":"IF($C$34=\"\",\"\",AF34/$C$34)","v":""},null,{"$f":"IF($C$34=\"\",\"\",AH34/$C$34)","v":""},null,{"$f":"IF($C$34=\"\",\"\",AJ34/$C$34)","v":""},null,{"$f":"IF($C$34=\"\",\"\",AL34/$C$34)","v":""},null,{"$f":"IF($C$34=\"\",\"\",AN34/$C$34)","v":""},null,{"$f":"IF($C$34=\"\",\"\",AP34/$C$34)","v":""},null,{"$f":"IF($C$34=\"\",\"\",AR34/$C$34)","v":""},null,{"$f":"IF($C$34=\"\",\"\",AT34/$C$34)","v":""},null,{"$f":"IF($C$34=\"\",\"\",AV34/$C$34)","v":""},null,{"$f":"IF($C$34=\"\",\"\",AX34/$C$34)","v":""},null,{"$f":"IF($C$34=\"\",\"\",AZ34/$C$34)","v":""},null,{"$f":"IF($C$34=\"\",\"\",BB34/$C$34)","v":""},null,0]
["    2.1.3","    Summarize Proposed System Concept of \n    Operations",null,null,{"$f":"IF($C$35=\"\",\"\",F35/$C$35)","v":""},null,{"$f":"IF($C$35=\"\",\"\",H35/$C$35)","v":""},null,{"$f":"IF($C$35=\"\",\"\",J35/$C$35)","v":""},null,{"$f":"IF($C$35=\"\",\"\",L35/$C$35)","v":""},null,{"$f":"IF($C$35=\"\",\"\",N35/$C$35)","v":""},null,{"$f":"IF($C$35=\"\",\"\",P35/$C$35)","v":""},null,{"$f":"IF($C$35=\"\",\"\",R35/$C$35)","v":""},null,{"$f":"IF($C$35=\"\",\"\",T35/$C$35)","v":""},null,{"$f":"IF($C$35=\"\",\"\",V35/$C$35)","v":""},null,{"$f":"IF($C$35=\"\",\"\",X35/$C$35)","v":""},null,{"$f":"IF($C$35=\"\",\"\",Z35/$C$35)","v":""},null,{"$f":"IF($C$35=\"\",\"\",AB35/$C$35)","v":""},null,{"$f":"IF($C$35=\"\",\"\",AD35/$C$35)","v":""},null,{"$f":"IF($C$35=\"\",\"\",AF35/$C$35)","v":""},null,{"$f":"IF($C$35=\"\",\"\",AH35/$C$35)","v":""},null,{"$f":"IF($C$35=\"\",\"\",AJ35/$C$35)","v":""},null,{"$f":"IF($C$35=\"\",\"\",AL35/$C$35)","v":""},null,{"$f":"IF($C$35=\"\",\"\",AN35/$C$35)","v":""},null,{"$f":"IF($C$35=\"\",\"\",AP35/$C$35)","v":""},null,{"$f":"IF($C$35=\"\",\"\",AR35/$C$35)","v":""},null,{"$f":"IF($C$35=\"\",\"\",AT35/$C$35)","v":""},null,{"$f":"IF($C$35=\"\",\"\",AV35/$C$35)","v":""},null,{"$f":"IF($C$35=\"\",\"\",AX35/$C$35)","v":""},null,{"$f":"IF($C$35=\"\",\"\",AZ35/$C$35)","v":""},null,{"$f":"IF($C$35=\"\",\"\",BB35/$C$35)","v":""},null,0]
["    2.1.4","    Reference Project Architecture & Ensure \n    Regional Architecture Compliance",null,null,{"$f":"IF($C$36=\"\",\"\",F36/$C$36)","v":""},null,{"$f":"IF($C$36=\"\",\"\",H36/$C$36)","v":""},null,{"$f":"IF($C$36=\"\",\"\",J36/$C$36)","v":""},null,{"$f":"IF($C$36=\"\",\"\",L36/$C$36)","v":""},null,{"$f":"IF($C$36=\"\",\"\",N36/$C$36)","v":""},null,{"$f":"IF($C$36=\"\",\"\",P36/$C$36)","v":""},null,{"$f":"IF($C$36=\"\",\"\",R36/$C$36)","v":""},null,{"$f":"IF($C$36=\"\",\"\",T36/$C$36)","v":""},null,{"$f":"IF($C$36=\"\",\"\",V36/$C$36)","v":""},null,{"$f":"IF($C$36=\"\",\"\",X36/$C$36)","v":""},null,{"$f":"IF($C$36=\"\",\"\",Z36/$C$36)","v":""},null,{"$f":"IF($C$36=\"\",\"\",AB36/$C$36)","v":""},null,{"$f":"IF($C$36=\"\",\"\",AD36/$C$36)","v":""},null,{"$f":"IF($C$36=\"\",\"\",AF36/$C$36)","v":""},null,{"$f":"IF($C$36=\"\",\"\",AH36/$C$36)","v":""},null,{"$f":"IF($C$36=\"\",\"\",AJ36/$C$36)","v":""},null,{"$f":"IF($C$36=\"\",\"\",AL36/$C$36)","v":""},null,{"$f":"IF($C$36=\"\",\"\",AN36/$C$36)","v":""},null,{"$f":"IF($C$36=\"\",\"\",AP36/$C$36)","v":""},null,{"$f":"IF($C$36=\"\",\"\",AR36/$C$36)","v":""},null,{"$f":"IF($C$36=\"\",\"\",AT36/$C$36)","v":""},null,{"$f":"IF($C$36=\"\",\"\",AV36/$C$36)","v":""},null,{"$f":"IF($C$36=\"\",\"\",AX36/$C$36)","v":""},null,{"$f":"IF($C$36=\"\",\"\",AZ36/$C$36)","v":""},null,{"$f":"IF($C$36=\"\",\"\",BB36/$C$36)","v":""},null,0]
["    2.1.5","    Develop Draft Systems Engineering Document",null,null,{"$f":"IF($C$37=\"\",\"\",F37/$C$37)","v":""},null,{"$f":"IF($C$37=\"\",\"\",H37/$C$37)","v":""},null,{"$f":"IF($C$37=\"\",\"\",J37/$C$37)","v":""},null,{"$f":"IF($C$37=\"\",\"\",L37/$C$37)","v":""},null,{"$f":"IF($C$37=\"\",\"\",N37/$C$37)","v":""},null,{"$f":"IF($C$37=\"\",\"\",P37/$C$37)","v":""},null,{"$f":"IF($C$37=\"\",\"\",R37/$C$37)","v":""},null,{"$f":"IF($C$37=\"\",\"\",T37/$C$37)","v":""},null,{"$f":"IF($C$37=\"\",\"\",V37/$C$37)","v":""},null,{"$f":"IF($C$37=\"\",\"\",X37/$C$37)","v":""},null,{"$f":"IF($C$37=\"\",\"\",Z37/$C$37)","v":""},null,{"$f":"IF($C$37=\"\",\"\",AB37/$C$37)","v":""},null,{"$f":"IF($C$37=\"\",\"\",AD37/$C$37)","v":""},null,{"$f":"IF($C$37=\"\",\"\",AF37/$C$37)","v":""},null,{"$f":"IF($C$37=\"\",\"\",AH37/$C$37)","v":""},null,{"$f":"IF($C$37=\"\",\"\",AJ37/$C$37)","v":""},null,{"$f":"IF($C$37=\"\",\"\",AL37/$C$37)","v":""},null,{"$f":"IF($C$37=\"\",\"\",AN37/$C$37)","v":""},null,{"$f":"IF($C$37=\"\",\"\",AP37/$C$37)","v":""},null,{"$f":"IF($C$37=\"\",\"\",AR37/$C$37)","v":""},null,{"$f":"IF($C$37=\"\",\"\",AT37/$C$37)","v":""},null,{"$f":"IF($C$37=\"\",\"\",AV37/$C$37)","v":""},null,{"$f":"IF($C$37=\"\",\"\",AX37/$C$37)","v":""},null,{"$f":"IF($C$37=\"\",\"\",AZ37/$C$37)","v":""},null,{"$f":"IF($C$37=\"\",\"\",BB37/$C$37)","v":""},null,0]
["    2.1.6","    Finalize Systems Engineering Document",null,null,{"$f":"IF($C$38=\"\",\"\",F38/$C$38)","v":""},null,{"$f":"IF($C$38=\"\",\"\",H38/$C$38)","v":""},null,{"$f":"IF($C$38=\"\",\"\",J38/$C$38)","v":""},null,{"$f":"IF($C$38=\"\",\"\",L38/$C$38)","v":""},null,{"$f":"IF($C$38=\"\",\"\",N38/$C$38)","v":""},null,{"$f":"IF($C$38=\"\",\"\",P38/$C$38)","v":""},null,{"$f":"IF($C$38=\"\",\"\",R38/$C$38)","v":""},null,{"$f":"IF($C$38=\"\",\"\",T38/$C$38)","v":""},null,{"$f":"IF($C$38=\"\",\"\",V38/$C$38)","v":""},null,{"$f":"IF($C$38=\"\",\"\",X38/$C$38)","v":""},null,{"$f":"IF($C$38=\"\",\"\",Z38/$C$38)","v":""},null,{"$f":"IF($C$38=\"\",\"\",AB38/$C$38)","v":""},null,{"$f":"IF($C$38=\"\",\"\",AD38/$C$38)","v":""},null,{"$f":"IF($C$38=\"\",\"\",AF38/$C$38)","v":""},null,{"$f":"IF($C$38=\"\",\"\",AH38/$C$38)","v":""},null,{"$f":"IF($C$38=\"\",\"\",AJ38/$C$38)","v":""},null,{"$f":"IF($C$38=\"\",\"\",AL38/$C$38)","v":""},null,{"$f":"IF($C$38=\"\",\"\",AN38/$C$38)","v":""},null,{"$f":"IF($C$38=\"\",\"\",AP38/$C$38)","v":""},null,{"$f":"IF($C$38=\"\",\"\",AR38/$C$38)","v":""},null,{"$f":"IF($C$38=\"\",\"\",AT38/$C$38)","v":""},null,{"$f":"IF($C$38=\"\",\"\",AV38/$C$38)","v":""},null,{"$f":"IF($C$38=\"\",\"\",AX38/$C$38)","v":""},null,{"$f":"IF($C$38=\"\",\"\",AZ38/$C$38)","v":""},null,{"$f":"IF($C$38=\"\",\"\",BB38/$C$38)","v":""},null,0]
["    2.1.7",null,null,null,{"$f":"IF($C$39=\"\",\"\",F39/$C$39)","v":""},null,{"$f":"IF($C$39=\"\",\"\",H39/$C$39)","v":""},null,{"$f":"IF($C$39=\"\",\"\",J39/$C$39)","v":""},null,{"$f":"IF($C$39=\"\",\"\",L39/$C$39)","v":""},null,{"$f":"IF($C$39=\"\",\"\",N39/$C$39)","v":""},null,{"$f":"IF($C$39=\"\",\"\",P39/$C$39)","v":""},null,{"$f":"IF($C$39=\"\",\"\",R39/$C$39)","v":""},null,{"$f":"IF($C$39=\"\",\"\",T39/$C$39)","v":""},null,{"$f":"IF($C$39=\"\",\"\",V39/$C$39)","v":""},null,{"$f":"IF($C$39=\"\",\"\",X39/$C$39)","v":""},null,{"$f":"IF($C$39=\"\",\"\",Z39/$C$39)","v":""},null,{"$f":"IF($C$39=\"\",\"\",AB39/$C$39)","v":""},null,{"$f":"IF($C$39=\"\",\"\",AD39/$C$39)","v":""},null,{"$f":"IF($C$39=\"\",\"\",AF39/$C$39)","v":""},null,{"$f":"IF($C$39=\"\",\"\",AH39/$C$39)","v":""},null,{"$f":"IF($C$39=\"\",\"\",AJ39/$C$39)","v":""},null,{"$f":"IF($C$39=\"\",\"\",AL39/$C$39)","v":""},null,{"$f":"IF($C$39=\"\",\"\",AN39/$C$39)","v":""},null,{"$f":"IF($C$39=\"\",\"\",AP39/$C$39)","v":""},null,{"$f":"IF($C$39=\"\",\"\",AR39/$C$39)","v":""},null,{"$f":"IF($C$39=\"\",\"\",AT39/$C$39)","v":""},null,{"$f":"IF($C$39=\"\",\"\",AV39/$C$39)","v":""},null,{"$f":"IF($C$39=\"\",\"\",AX39/$C$39)","v":""},null,{"$f":"IF($C$39=\"\",\"\",AZ39/$C$39)","v":""},null,{"$f":"IF($C$39=\"\",\"\",BB39/$C$39)","v":""},null,0]
["    2.1.8",null,null,null,{"$f":"IF($C$40=\"\",\"\",F40/$C$40)","v":""},null,{"$f":"IF($C$40=\"\",\"\",H40/$C$40)","v":""},null,{"$f":"IF($C$40=\"\",\"\",J40/$C$40)","v":""},null,{"$f":"IF($C$40=\"\",\"\",L40/$C$40)","v":""},null,{"$f":"IF($C$40=\"\",\"\",N40/$C$40)","v":""},null,{"$f":"IF($C$40=\"\",\"\",P40/$C$40)","v":""},null,{"$f":"IF($C$40=\"\",\"\",R40/$C$40)","v":""},null,{"$f":"IF($C$40=\"\",\"\",T40/$C$40)","v":""},null,{"$f":"IF($C$40=\"\",\"\",V40/$C$40)","v":""},null,{"$f":"IF($C$40=\"\",\"\",X40/$C$40)","v":""},null,{"$f":"IF($C$40=\"\",\"\",Z40/$C$40)","v":""},null,{"$f":"IF($C$40=\"\",\"\",AB40/$C$40)","v":""},null,{"$f":"IF($C$40=\"\",\"\",AD40/$C$40)","v":""},null,{"$f":"IF($C$40=\"\",\"\",AF40/$C$40)","v":""},null,{"$f":"IF($C$40=\"\",\"\",AH40/$C$40)","v":""},null,{"$f":"IF($C$40=\"\",\"\",AJ40/$C$40)","v":""},null,{"$f":"IF($C$40=\"\",\"\",AL40/$C$40)","v":""},null,{"$f":"IF($C$40=\"\",\"\",AN40/$C$40)","v":""},null,{"$f":"IF($C$40=\"\",\"\",AP40/$C$40)","v":""},null,{"$f":"IF($C$40=\"\",\"\",AR40/$C$40)","v":""},null,{"$f":"IF($C$40=\"\",\"\",AT40/$C$40)","v":""},null,{"$f":"IF($C$40=\"\",\"\",AV40/$C$40)","v":""},null,{"$f":"IF($C$40=\"\",\"\",AX40/$C$40)","v":""},null,{"$f":"IF($C$40=\"\",\"\",AZ40/$C$40)","v":""},null,{"$f":"IF($C$40=\"\",\"\",BB40/$C$40)","v":""},null,0]
["    2.1.9",null,null,null,{"$f":"IF($C$41=\"\",\"\",F41/$C$41)","v":""},null,{"$f":"IF($C$41=\"\",\"\",H41/$C$41)","v":""},null,{"$f":"IF($C$41=\"\",\"\",J41/$C$41)","v":""},null,{"$f":"IF($C$41=\"\",\"\",L41/$C$41)","v":""},null,{"$f":"IF($C$41=\"\",\"\",N41/$C$41)","v":""},null,{"$f":"IF($C$41=\"\",\"\",P41/$C$41)","v":""},null,{"$f":"IF($C$41=\"\",\"\",R41/$C$41)","v":""},null,{"$f":"IF($C$41=\"\",\"\",T41/$C$41)","v":""},null,{"$f":"IF($C$41=\"\",\"\",V41/$C$41)","v":""},null,{"$f":"IF($C$41=\"\",\"\",X41/$C$41)","v":""},null,{"$f":"IF($C$41=\"\",\"\",Z41/$C$41)","v":""},null,{"$f":"IF($C$41=\"\",\"\",AB41/$C$41)","v":""},null,{"$f":"IF($C$41=\"\",\"\",AD41/$C$41)","v":""},null,{"$f":"IF($C$41=\"\",\"\",AF41/$C$41)","v":""},null,{"$f":"IF($C$41=\"\",\"\",AH41/$C$41)","v":""},null,{"$f":"IF($C$41=\"\",\"\",AJ41/$C$41)","v":""},null,{"$f":"IF($C$41=\"\",\"\",AL41/$C$41)","v":""},null,{"$f":"IF($C$41=\"\",\"\",AN41/$C$41)","v":""},null,{"$f":"IF($C$41=\"\",\"\",AP41/$C$41)","v":""},null,{"$f":"IF($C$41=\"\",\"\",AR41/$C$41)","v":""},null,{"$f":"IF($C$41=\"\",\"\",AT41/$C$41)","v":""},null,{"$f":"IF($C$41=\"\",\"\",AV41/$C$41)","v":""},null,{"$f":"IF($C$41=\"\",\"\",AX41/$C$41)","v":""},null,{"$f":"IF($C$41=\"\",\"\",AZ41/$C$41)","v":""},null,{"$f":"IF($C$41=\"\",\"\",BB41/$C$41)","v":""},null,0]
[2.2000000000000002,"System Maintenance and Staffing Plan",null,null,{"$f":"IF($C$42=\"\",\"\",F42/$C$42)","v":""},null,{"$f":"IF($C$42=\"\",\"\",H42/$C$42)","v":""},null,{"$f":"IF($C$42=\"\",\"\",J42/$C$42)","v":""},null,{"$f":"IF($C$42=\"\",\"\",L42/$C$42)","v":""},null,{"$f":"IF($C$42=\"\",\"\",N42/$C$42)","v":""},null,{"$f":"IF($C$42=\"\",\"\",P42/$C$42)","v":""},null,{"$f":"IF($C$42=\"\",\"\",R42/$C$42)","v":""},null,{"$f":"IF($C$42=\"\",\"\",T42/$C$42)","v":""},null,{"$f":"IF($C$42=\"\",\"\",V42/$C$42)","v":""},null,{"$f":"IF($C$42=\"\",\"\",X42/$C$42)","v":""},null,{"$f":"IF($C$42=\"\",\"\",Z42/$C$42)","v":""},null,{"$f":"IF($C$42=\"\",\"\",AB42/$C$42)","v":""},null,{"$f":"IF($C$42=\"\",\"\",AD42/$C$42)","v":""},null,{"$f":"IF($C$42=\"\",\"\",AF42/$C$42)","v":""},null,{"$f":"IF($C$42=\"\",\"\",AH42/$C$42)","v":""},null,{"$f":"IF($C$42=\"\",\"\",AJ42/$C$42)","v":""},null,{"$f":"IF($C$42=\"\",\"\",AL42/$C$42)","v":""},null,{"$f":"IF($C$42=\"\",\"\",AN42/$C$42)","v":""},null,{"$f":"IF($C$42=\"\",\"\",AP42/$C$42)","v":""},null,{"$f":"IF($C$42=\"\",\"\",AR42/$C$42)","v":""},null,{"$f":"IF($C$42=\"\",\"\",AT42/$C$42)","v":""},null,{"$f":"IF($C$42=\"\",\"\",AV42/$C$42)","v":""},null,{"$f":"IF($C$42=\"\",\"\",AX42/$C$42)","v":""},null,{"$f":"IF($C$42=\"\",\"\",AZ42/$C$42)","v":""},null,{"$f":"IF($C$42=\"\",\"\",BB42/$C$42)","v":""},null,0]
[2.2999999999999998,"Municipal Remote Monitoring  Center Requirements",null,null,{"$f":"IF($C$43=\"\",\"\",F43/$C$43)","v":""},null,{"$f":"IF($C$43=\"\",\"\",H43/$C$43)","v":""},null,{"$f":"IF($C$43=\"\",\"\",J43/$C$43)","v":""},null,{"$f":"IF($C$43=\"\",\"\",L43/$C$43)","v":""},null,{"$f":"IF($C$43=\"\",\"\",N43/$C$43)","v":""},null,{"$f":"IF($C$43=\"\",\"\",P43/$C$43)","v":""},null,{"$f":"IF($C$43=\"\",\"\",R43/$C$43)","v":""},null,{"$f":"IF($C$43=\"\",\"\",T43/$C$43)","v":""},null,{"$f":"IF($C$43=\"\",\"\",V43/$C$43)","v":""},null,{"$f":"IF($C$43=\"\",\"\",X43/$C$43)","v":""},null,{"$f":"IF($C$43=\"\",\"\",Z43/$C$43)","v":""},null,{"$f":"IF($C$43=\"\",\"\",AB43/$C$43)","v":""},null,{"$f":"IF($C$43=\"\",\"\",AD43/$C$43)","v":""},null,{"$f":"IF($C$43=\"\",\"\",AF43/$C$43)","v":""},null,{"$f":"IF($C$43=\"\",\"\",AH43/$C$43)","v":""},null,{"$f":"IF($C$43=\"\",\"\",AJ43/$C$43)","v":""},null,{"$f":"IF($C$43=\"\",\"\",AL43/$C$43)","v":""},null,{"$f":"IF($C$43=\"\",\"\",AN43/$C$43)","v":""},null,{"$f":"IF($C$43=\"\",\"\",AP43/$C$43)","v":""},null,{"$f":"IF($C$43=\"\",\"\",AR43/$C$43)","v":""},null,{"$f":"IF($C$43=\"\",\"\",AT43/$C$43)","v":""},null,{"$f":"IF($C$43=\"\",\"\",AV43/$C$43)","v":""},null,{"$f":"IF($C$43=\"\",\"\",AX43/$C$43)","v":""},null,{"$f":"IF($C$43=\"\",\"\",AZ43/$C$43)","v":""},null,{"$f":"IF($C$43=\"\",\"\",BB43/$C$43)","v":""},null,0]
[2.4,"Traffic Management Center Modifications",null,null,{"$f":"IF($C$44=\"\",\"\",F44/$C$44)","v":""},null,{"$f":"IF($C$44=\"\",\"\",H44/$C$44)","v":""},null,{"$f":"IF($C$44=\"\",\"\",J44/$C$44)","v":""},null,{"$f":"IF($C$44=\"\",\"\",L44/$C$44)","v":""},null,{"$f":"IF($C$44=\"\",\"\",N44/$C$44)","v":""},null,{"$f":"IF($C$44=\"\",\"\",P44/$C$44)","v":""},null,{"$f":"IF($C$44=\"\",\"\",R44/$C$44)","v":""},null,{"$f":"IF($C$44=\"\",\"\",T44/$C$44)","v":""},null,{"$f":"IF($C$44=\"\",\"\",V44/$C$44)","v":""},null,{"$f":"IF($C$44=\"\",\"\",X44/$C$44)","v":""},null,{"$f":"IF($C$44=\"\",\"\",Z44/$C$44)","v":""},null,{"$f":"IF($C$44=\"\",\"\",AB44/$C$44)","v":""},null,{"$f":"IF($C$44=\"\",\"\",AD44/$C$44)","v":""},null,{"$f":"IF($C$44=\"\",\"\",AF44/$C$44)","v":""},null,{"$f":"IF($C$44=\"\",\"\",AH44/$C$44)","v":""},null,{"$f":"IF($C$44=\"\",\"\",AJ44/$C$44)","v":""},null,{"$f":"IF($C$44=\"\",\"\",AL44/$C$44)","v":""},null,{"$f":"IF($C$44=\"\",\"\",AN44/$C$44)","v":""},null,{"$f":"IF($C$44=\"\",\"\",AP44/$C$44)","v":""},null,{"$f":"IF($C$44=\"\",\"\",AR44/$C$44)","v":""},null,{"$f":"IF($C$44=\"\",\"\",AT44/$C$44)","v":""},null,{"$f":"IF($C$44=\"\",\"\",AV44/$C$44)","v":""},null,{"$f":"IF($C$44=\"\",\"\",AX44/$C$44)","v":""},null,{"$f":"IF($C$44=\"\",\"\",AZ44/$C$44)","v":""},null,{"$f":"IF($C$44=\"\",\"\",BB44/$C$44)","v":""},null,0]
[2.5,"Emergency Vehicle Preemption/ Transit Priority Requirements",null,null,{"$f":"IF($C$45=\"\",\"\",F45/$C$45)","v":""},null,{"$f":"IF($C$45=\"\",\"\",H45/$C$45)","v":""},null,{"$f":"IF($C$45=\"\",\"\",J45/$C$45)","v":""},null,{"$f":"IF($C$45=\"\",\"\",L45/$C$45)","v":""},null,{"$f":"IF($C$45=\"\",\"\",N45/$C$45)","v":""},null,{"$f":"IF($C$45=\"\",\"\",P45/$C$45)","v":""},null,{"$f":"IF($C$45=\"\",\"\",R45/$C$45)","v":""},null,{"$f":"IF($C$45=\"\",\"\",T45/$C$45)","v":""},null,{"$f":"IF($C$45=\"\",\"\",V45/$C$45)","v":""},null,{"$f":"IF($C$45=\"\",\"\",X45/$C$45)","v":""},null,{"$f":"IF($C$45=\"\",\"\",Z45/$C$45)","v":""},null,{"$f":"IF($C$45=\"\",\"\",AB45/$C$45)","v":""},null,{"$f":"IF($C$45=\"\",\"\",AD45/$C$45)","v":""},null,{"$f":"IF($C$45=\"\",\"\",AF45/$C$45)","v":""},null,{"$f":"IF($C$45=\"\",\"\",AH45/$C$45)","v":""},null,{"$f":"IF($C$45=\"\",\"\",AJ45/$C$45)","v":""},null,{"$f":"IF($C$45=\"\",\"\",AL45/$C$45)","v":""},null,{"$f":"IF($C$45=\"\",\"\",AN45/$C$45)","v":""},null,{"$f":"IF($C$45=\"\",\"\",AP45/$C$45)","v":""},null,{"$f":"IF($C$45=\"\",\"\",AR45/$C$45)","v":""},null,{"$f":"IF($C$45=\"\",\"\",AT45/$C$45)","v":""},null,{"$f":"IF($C$45=\"\",\"\",AV45/$C$45)","v":""},null,{"$f":"IF($C$45=\"\",\"\",AX45/$C$45)","v":""},null,{"$f":"IF($C$45=\"\",\"\",AZ45/$C$45)","v":""},null,{"$f":"IF($C$45=\"\",\"\",BB45/$C$45)","v":""},null,0]
[null,null,null,null,{"$f":"IF($C$46=\"\",\"\",F46/$C$46)","v":""},null,{"$f":"IF($C$46=\"\",\"\",H46/$C$46)","v":""},null,{"$f":"IF($C$46=\"\",\"\",J46/$C$46)","v":""},null,{"$f":"IF($C$46=\"\",\"\",L46/$C$46)","v":""},null,{"$f":"IF($C$46=\"\",\"\",N46/$C$46)","v":""},null,{"$f":"IF($C$46=\"\",\"\",P46/$C$46)","v":""},null,{"$f":"IF($C$46=\"\",\"\",R46/$C$46)","v":""},null,{"$f":"IF($C$46=\"\",\"\",T46/$C$46)","v":""},null,{"$f":"IF($C$46=\"\",\"\",V46/$C$46)","v":""},null,{"$f":"IF($C$46=\"\",\"\",X46/$C$46)","v":""},null,{"$f":"IF($C$46=\"\",\"\",Z46/$C$46)","v":""},null,{"$f":"IF($C$46=\"\",\"\",AB46/$C$46)","v":""},null,{"$f":"IF($C$46=\"\",\"\",AD46/$C$46)","v":""},null,{"$f":"IF($C$46=\"\",\"\",AF46/$C$46)","v":""},null,{"$f":"IF($C$46=\"\",\"\",AH46/$C$46)","v":""},null,{"$f":"IF($C$46=\"\",\"\",AJ46/$C$46)","v":""},null,{"$f":"IF($C$46=\"\",\"\",AL46/$C$46)","v":""},null,{"$f":"IF($C$46=\"\",\"\",AN46/$C$46)","v":""},null,{"$f":"IF($C$46=\"\",\"\",AP46/$C$46)","v":""},null,{"$f":"IF($C$46=\"\",\"\",AR46/$C$46)","v":""},null,{"$f":"IF($C$46=\"\",\"\",AT46/$C$46)","v":""},null,{"$f":"IF($C$46=\"\",\"\",AV46/$C$46)","v":""},null,{"$f":"IF($C$46=\"\",\"\",AX46/$C$46)","v":""},null,{"$f":"IF($C$46=\"\",\"\",AZ46/$C$46)","v":""},null,{"$f":"IF($C$46=\"\",\"\",BB46/$C$46)","v":""},null,0]
[null,null,null,null,{"$f":"IF($C$47=\"\",\"\",F47/$C$47)","v":""},null,{"$f":"IF($C$47=\"\",\"\",H47/$C$47)","v":""},null,{"$f":"IF($C$47=\"\",\"\",J47/$C$47)","v":""},null,{"$f":"IF($C$47=\"\",\"\",L47/$C$47)","v":""},null,{"$f":"IF($C$47=\"\",\"\",N47/$C$47)","v":""},null,{"$f":"IF($C$47=\"\",\"\",P47/$C$47)","v":""},null,{"$f":"IF($C$47=\"\",\"\",R47/$C$47)","v":""},null,{"$f":"IF($C$47=\"\",\"\",T47/$C$47)","v":""},null,{"$f":"IF($C$47=\"\",\"\",V47/$C$47)","v":""},null,{"$f":"IF($C$47=\"\",\"\",X47/$C$47)","v":""},null,{"$f":"IF($C$47=\"\",\"\",Z47/$C$47)","v":""},null,{"$f":"IF($C$47=\"\",\"\",AB47/$C$47)","v":""},null,{"$f":"IF($C$47=\"\",\"\",AD47/$C$47)","v":""},null,{"$f":"IF($C$47=\"\",\"\",AF47/$C$47)","v":""},null,{"$f":"IF($C$47=\"\",\"\",AH47/$C$47)","v":""},null,{"$f":"IF($C$47=\"\",\"\",AJ47/$C$47)","v":""},null,{"$f":"IF($C$47=\"\",\"\",AL47/$C$47)","v":""},null,{"$f":"IF($C$47=\"\",\"\",AN47/$C$47)","v":""},null,{"$f":"IF($C$47=\"\",\"\",AP47/$C$47)","v":""},null,{"$f":"IF($C$47=\"\",\"\",AR47/$C$47)","v":""},null,{"$f":"IF($C$47=\"\",\"\",AT47/$C$47)","v":""},null,{"$f":"IF($C$47=\"\",\"\",AV47/$C$47)","v":""},null,{"$f":"IF($C$47=\"\",\"\",AX47/$C$47)","v":""},null,{"$f":"IF($C$47=\"\",\"\",AZ47/$C$47)","v":""},null,{"$f":"IF($C$47=\"\",\"\",BB47/$C$47)","v":""},null,0]
[null,null,null,null,{"$f":"IF($C$48=\"\",\"\",F48/$C$48)","v":""},null,{"$f":"IF($C$48=\"\",\"\",H48/$C$48)","v":""},null,{"$f":"IF($C$48=\"\",\"\",J48/$C$48)","v":""},null,{"$f":"IF($C$48=\"\",\"\",L48/$C$48)","v":""},null,{"$f":"IF($C$48=\"\",\"\",N48/$C$48)","v":""},null,{"$f":"IF($C$48=\"\",\"\",P48/$C$48)","v":""},null,{"$f":"IF($C$48=\"\",\"\",R48/$C$48)","v":""},null,{"$f":"IF($C$48=\"\",\"\",T48/$C$48)","v":""},null,{"$f":"IF($C$48=\"\",\"\",V48/$C$48)","v":""},null,{"$f":"IF($C$48=\"\",\"\",X48/$C$48)","v":""},null,{"$f":"IF($C$48=\"\",\"\",Z48/$C$48)","v":""},null,{"$f":"IF($C$48=\"\",\"\",AB48/$C$48)","v":""},null,{"$f":"IF($C$48=\"\",\"\",AD48/$C$48)","v":""},null,{"$f":"IF($C$48=\"\",\"\",AF48/$C$48)","v":""},null,{"$f":"IF($C$48=\"\",\"\",AH48/$C$48)","v":""},null,{"$f":"IF($C$48=\"\",\"\",AJ48/$C$48)","v":""},null,{"$f":"IF($C$48=\"\",\"\",AL48/$C$48)","v":""},null,{"$f":"IF($C$48=\"\",\"\",AN48/$C$48)","v":""},null,{"$f":"IF($C$48=\"\",\"\",AP48/$C$48)","v":""},null,{"$f":"IF($C$48=\"\",\"\",AR48/$C$48)","v":""},null,{"$f":"IF($C$48=\"\",\"\",AT48/$C$48)","v":""},null,{"$f":"IF($C$48=\"\",\"\",AV48/$C$48)","v":""},null,{"$f":"IF($C$48=\"\",\"\",AX48/$C$48)","v":""},null,{"$f":"IF($C$48=\"\",\"\",AZ48/$C$48)","v":""},null,{"$f":"IF($C$48=\"\",\"\",BB48/$C$48)","v":""},null,0]
[null,null,null,null,{"$f":"IF($C$49=\"\",\"\",F49/$C$49)","v":""},null,{"$f":"IF($C$49=\"\",\"\",H49/$C$49)","v":""},null,{"$f":"IF($C$49=\"\",\"\",J49/$C$49)","v":""},null,{"$f":"IF($C$49=\"\",\"\",L49/$C$49)","v":""},null,{"$f":"IF($C$49=\"\",\"\",N49/$C$49)","v":""},null,{"$f":"IF($C$49=\"\",\"\",P49/$C$49)","v":""},null,{"$f":"IF($C$49=\"\",\"\",R49/$C$49)","v":""},null,{"$f":"IF($C$49=\"\",\"\",T49/$C$49)","v":""},null,{"$f":"IF($C$49=\"\",\"\",V49/$C$49)","v":""},null,{"$f":"IF($C$49=\"\",\"\",X49/$C$49)","v":""},null,{"$f":"IF($C$49=\"\",\"\",Z49/$C$49)","v":""},null,{"$f":"IF($C$49=\"\",\"\",AB49/$C$49)","v":""},null,{"$f":"IF($C$49=\"\",\"\",AD49/$C$49)","v":""},null,{"$f":"IF($C$49=\"\",\"\",AF49/$C$49)","v":""},null,{"$f":"IF($C$49=\"\",\"\",AH49/$C$49)","v":""},null,{"$f":"IF($C$49=\"\",\"\",AJ49/$C$49)","v":""},null,{"$f":"IF($C$49=\"\",\"\",AL49/$C$49)","v":""},null,{"$f":"IF($C$49=\"\",\"\",AN49/$C$49)","v":""},null,{"$f":"IF($C$49=\"\",\"\",AP49/$C$49)","v":""},null,{"$f":"IF($C$49=\"\",\"\",AR49/$C$49)","v":""},null,{"$f":"IF($C$49=\"\",\"\",AT49/$C$49)","v":""},null,{"$f":"IF($C$49=\"\",\"\",AV49/$C$49)","v":""},null,{"$f":"IF($C$49=\"\",\"\",AX49/$C$49)","v":""},null,{"$f":"IF($C$49=\"\",\"\",AZ49/$C$49)","v":""},null,{"$f":"IF($C$49=\"\",\"\",BB49/$C$49)","v":""},null,0]
[null,null,null,null,{"$f":"IF($C$50=\"\",\"\",F50/$C$50)","v":""},null,{"$f":"IF($C$50=\"\",\"\",H50/$C$50)","v":""},null,{"$f":"IF($C$50=\"\",\"\",J50/$C$50)","v":""},null,{"$f":"IF($C$50=\"\",\"\",L50/$C$50)","v":""},null,{"$f":"IF($C$50=\"\",\"\",N50/$C$50)","v":""},null,{"$f":"IF($C$50=\"\",\"\",P50/$C$50)","v":""},null,{"$f":"IF($C$50=\"\",\"\",R50/$C$50)","v":""},null,{"$f":"IF($C$50=\"\",\"\",T50/$C$50)","v":""},null,{"$f":"IF($C$50=\"\",\"\",V50/$C$50)","v":""},null,{"$f":"IF($C$50=\"\",\"\",X50/$C$50)","v":""},null,{"$f":"IF($C$50=\"\",\"\",Z50/$C$50)","v":""},null,{"$f":"IF($C$50=\"\",\"\",AB50/$C$50)","v":""},null,{"$f":"IF($C$50=\"\",\"\",AD50/$C$50)","v":""},null,{"$f":"IF($C$50=\"\",\"\",AF50/$C$50)","v":""},null,{"$f":"IF($C$50=\"\",\"\",AH50/$C$50)","v":""},null,{"$f":"IF($C$50=\"\",\"\",AJ50/$C$50)","v":""},null,{"$f":"IF($C$50=\"\",\"\",AL50/$C$50)","v":""},null,{"$f":"IF($C$50=\"\",\"\",AN50/$C$50)","v":""},null,{"$f":"IF($C$50=\"\",\"\",AP50/$C$50)","v":""},null,{"$f":"IF($C$50=\"\",\"\",AR50/$C$50)","v":""},null,{"$f":"IF($C$50=\"\",\"\",AT50/$C$50)","v":""},null,{"$f":"IF($C$50=\"\",\"\",AV50/$C$50)","v":""},null,{"$f":"IF($C$50=\"\",\"\",AX50/$C$50)","v":""},null,{"$f":"IF($C$50=\"\",\"\",AZ50/$C$50)","v":""},null,{"$f":"IF($C$50=\"\",\"\",BB50/$C$50)","v":""},null,0]
[null,null,null,null,{"$f":"IF($C$51=\"\",\"\",F51/$C$51)","v":""},null,{"$f":"IF($C$51=\"\",\"\",H51/$C$51)","v":""},null,{"$f":"IF($C$51=\"\",\"\",J51/$C$51)","v":""},null,{"$f":"IF($C$51=\"\",\"\",L51/$C$51)","v":""},null,{"$f":"IF($C$51=\"\",\"\",N51/$C$51)","v":""},null,{"$f":"IF($C$51=\"\",\"\",P51/$C$51)","v":""},null,{"$f":"IF($C$51=\"\",\"\",R51/$C$51)","v":""},null,{"$f":"IF($C$51=\"\",\"\",T51/$C$51)","v":""},null,{"$f":"IF($C$51=\"\",\"\",V51/$C$51)","v":""},null,{"$f":"IF($C$51=\"\",\"\",X51/$C$51)","v":""},null,{"$f":"IF($C$51=\"\",\"\",Z51/$C$51)","v":""},null,{"$f":"IF($C$51=\"\",\"\",AB51/$C$51)","v":""},null,{"$f":"IF($C$51=\"\",\"\",AD51/$C$51)","v":""},null,{"$f":"IF($C$51=\"\",\"\",AF51/$C$51)","v":""},null,{"$f":"IF($C$51=\"\",\"\",AH51/$C$51)","v":""},null,{"$f":"IF($C$51=\"\",\"\",AJ51/$C$51)","v":""},null,{"$f":"IF($C$51=\"\",\"\",AL51/$C$51)","v":""},null,{"$f":"IF($C$51=\"\",\"\",AN51/$C$51)","v":""},null,{"$f":"IF($C$51=\"\",\"\",AP51/$C$51)","v":""},null,{"$f":"IF($C$51=\"\",\"\",AR51/$C$51)","v":""},null,{"$f":"IF($C$51=\"\",\"\",AT51/$C$51)","v":""},null,{"$f":"IF($C$51=\"\",\"\",AV51/$C$51)","v":""},null,{"$f":"IF($C$51=\"\",\"\",AX51/$C$51)","v":""},null,{"$f":"IF($C$51=\"\",\"\",AZ51/$C$51)","v":""},null,{"$f":"IF($C$51=\"\",\"\",BB51/$C$51)","v":""},null,0]
[null,null,null,null,{"$f":"IF($C$52=\"\",\"\",F52/$C$52)","v":""},null,{"$f":"IF($C$52=\"\",\"\",H52/$C$52)","v":""},null,{"$f":"IF($C$52=\"\",\"\",J52/$C$52)","v":""},null,{"$f":"IF($C$52=\"\",\"\",L52/$C$52)","v":""},null,{"$f":"IF($C$52=\"\",\"\",N52/$C$52)","v":""},null,{"$f":"IF($C$52=\"\",\"\",P52/$C$52)","v":""},null,{"$f":"IF($C$52=\"\",\"\",R52/$C$52)","v":""},null,{"$f":"IF($C$52=\"\",\"\",T52/$C$52)","v":""},null,{"$f":"IF($C$52=\"\",\"\",V52/$C$52)","v":""},null,{"$f":"IF($C$52=\"\",\"\",X52/$C$52)","v":""},null,{"$f":"IF($C$52=\"\",\"\",Z52/$C$52)","v":""},null,{"$f":"IF($C$52=\"\",\"\",AB52/$C$52)","v":""},null,{"$f":"IF($C$52=\"\",\"\",AD52/$C$52)","v":""},null,{"$f":"IF($C$52=\"\",\"\",AF52/$C$52)","v":""},null,{"$f":"IF($C$52=\"\",\"\",AH52/$C$52)","v":""},null,{"$f":"IF($C$52=\"\",\"\",AJ52/$C$52)","v":""},null,{"$f":"IF($C$52=\"\",\"\",AL52/$C$52)","v":""},null,{"$f":"IF($C$52=\"\",\"\",AN52/$C$52)","v":""},null,{"$f":"IF($C$52=\"\",\"\",AP52/$C$52)","v":""},null,{"$f":"IF($C$52=\"\",\"\",AR52/$C$52)","v":""},null,{"$f":"IF($C$52=\"\",\"\",AT52/$C$52)","v":""},null,{"$f":"IF($C$52=\"\",\"\",AV52/$C$52)","v":""},null,{"$f":"IF($C$52=\"\",\"\",AX52/$C$52)","v":""},null,{"$f":"IF($C$52=\"\",\"\",AZ52/$C$52)","v":""},null,{"$f":"IF($C$52=\"\",\"\",BB52/$C$52)","v":""},null,{"$f":"SUM(BB52,AZ52,AX52,AV52,AT52,AR52,AP52,AN52,AL52,AJ52,AH52,AF52,AD52,AB52,Z52,X52,V52,T52,R52,P52,N52,L52,J52,H52,F52)","v":0}]
["TOTAL HOURS",null,null,null,null,{"$f":"SUM(F32:F52)","v":0},null,{"$f":"SUM(H32:H52)","v":0},null,{"$f":"SUM(J32:J52)","v":0},null,{"$f":"SUM(L32:L52)","v":0},null,{"$f":"SUM(N32:N52)","v":0},null,{"$f":"SUM(P32:P52)","v":0},null,{"$f":"SUM(R32:R52)","v":0},null,{"$f":"SUM(T32:T52)","v":0},null,{"$f":"SUM(V32:V52)","v":0},null,{"$f":"SUM(X32:X52)","v":0},null,{"$f":"SUM(Z32:Z52)","v":0},null,{"$f":"SUM(AB32:AB52)","v":0},null,{"$f":"SUM(AD32:AD52)","v":0},null,{"$f":"SUM(AF32:AF52)","v":0},null,{"$f":"SUM(AH32:AH52)","v":0},null,{"$f":"SUM(AJ32:AJ52)","v":0},null,{"$f":"SUM(AL32:AL52)","v":0},null,{"$f":"SUM(AN32:AN52)","v":0},null,{"$f":"SUM(AP32:AP52)","v":0},null,{"$f":"SUM(AR32:AR52)","v":0},null,{"$f":"SUM(AT32:AT52)","v":0},null,{"$f":"SUM(AV32:AV52)","v":0},null,{"$f":"SUM(AX32:AX52)","v":0},null,{"$f":"SUM(AZ32:AZ52)","v":0},null,{"$f":"SUM(BB32:BB52)","v":0},{"$f":"SUM(E53:BB53)","v":0}]
["TOTAL WORKDAYS",null,null,null,null,{"$f":"F53/8","v":0},null,{"$f":"H53/8","v":0},null,{"$f":"J53/8","v":0},null,{"$f":"L53/8","v":0},null,{"$f":"N53/8","v":0},null,{"$f":"P53/8","v":0},null,{"$f":"R53/8","v":0},null,{"$f":"T53/8","v":0},null,{"$f":"V53/8","v":0},null,{"$f":"X53/8","v":0},null,{"$f":"Z53/8","v":0},null,{"$f":"AB53/8","v":0},null,{"$f":"AD53/8","v":0},null,0,null,{"$f":"AH53/8","v":0},null,0,null,{"$f":"AL53/8","v":0},null,0,null,{"$f":"AP53/8","v":0},null,0,null,{"$f":"AT53/8","v":0},null,{"$f":"AV53/8","v":0},null,{"$f":"AX53/8","v":0},null,{"$f":"AZ53/8","v":0},null,{"$f":"BB53/8","v":0},{"$f":"SUM(E54:BB54)","v":0}]
["TOTAL RAW LABOR",null,null,null,null,{"$f":"$E$13*F53","v":0},null,{"$f":"$G$13*H53","v":0},null,{"$f":"$I$13*J53","v":0},null,{"$f":"$K$13*L53","v":0},null,{"$f":"$M$13*N53","v":0},null,{"$f":"$O$13*P53","v":0},null,{"$f":"$Q$13*R53","v":0},null,{"$f":"$S$13*T53","v":0},null,{"$f":"$U$13*V53","v":0},null,{"$f":"$W$13*X53","v":0},null,{"$f":"$Y$13*Z53","v":0},null,{"$f":"$AA$13*AB53","v":0},null,{"$f":"$AC$13*AD53","v":0},null,{"$f":"$AC$13*AF53","v":0},null,{"$f":"$AC$13*AH53","v":0},null,{"$f":"$AC$13*AJ53","v":0},null,{"$f":"$AC$13*AL53","v":0},null,{"$f":"$AC$13*AN53","v":0},null,{"$f":"$AC$13*AP53","v":0},null,{"$f":"$AC$13*AR53","v":0},null,{"$f":"$AC$13*AT53","v":0},null,{"$f":"$AC$13*AV53","v":0},null,{"$f":"$AC$13*AX53","v":0},null,{"$f":"$AC$13*AZ53","v":0},null,{"$f":"$AC$13*BB53","v":0},{"$f":"SUM(E55:BB55)","v":0}]
["Task 3.0     ","PROGRAMMATIC CATEGORICAL EXCLUSION & SUPPORTING TASKS"]
[3.1,"Misc. Coordination/Administration",null,null,{"$f":"IF($C$57=\"\",\"\",F57/$C$57)","v":""},null,{"$f":"IF($C$57=\"\",\"\",H57/$C$57)","v":""},null,{"$f":"IF($C$57=\"\",\"\",J57/$C$57)","v":""},null,{"$f":"IF($C$57=\"\",\"\",L57/$C$57)","v":""},null,{"$f":"IF($C$57=\"\",\"\",N57/$C$57)","v":""},null,{"$f":"IF($C$57=\"\",\"\",P57/$C$57)","v":""},null,{"$f":"IF($C$57=\"\",\"\",R57/$C$57)","v":""},null,{"$f":"IF($C$57=\"\",\"\",T57/$C$57)","v":""},null,{"$f":"IF($C$57=\"\",\"\",V57/$C$57)","v":""},null,{"$f":"IF($C$57=\"\",\"\",X57/$C$57)","v":""},null,{"$f":"IF($C$57=\"\",\"\",Z57/$C$57)","v":""},null,{"$f":"IF($C$57=\"\",\"\",AB57/$C$57)","v":""},null,{"$f":"IF($C$57=\"\",\"\",AD57/$C$57)","v":""},null,{"$f":"IF($C$57=\"\",\"\",AF57/$C$57)","v":""},null,{"$f":"IF($C$57=\"\",\"\",AH57/$C$57)","v":""},null,{"$f":"IF($C$57=\"\",\"\",AJ57/$C$57)","v":""},null,{"$f":"IF($C$57=\"\",\"\",AL57/$C$57)","v":""},null,{"$f":"IF($C$57=\"\",\"\",AN57/$C$57)","v":""},null,{"$f":"IF($C$57=\"\",\"\",AP57/$C$57)","v":""},null,{"$f":"IF($C$57=\"\",\"\",AR57/$C$57)","v":""},null,{"$f":"IF($C$57=\"\",\"\",AT57/$C$57)","v":""},null,{"$f":"IF($C$57=\"\",\"\",AV57/$C$57)","v":""},null,{"$f":"IF($C$57=\"\",\"\",AX57/$C$57)","v":""},null,{"$f":"IF($C$57=\"\",\"\",AZ57/$C$57)","v":""},null,{"$f":"IF($C$57=\"\",\"\",BB57/$C$57)","v":""},null,{"$f":"SUM(BB57,AZ57,AX57,AV57,AT57,AR57,AP57,AN57,AL57,AJ57,AH57,AF57,AD57,AB57,Z57,X57,V57,T57,R57,P57,N57,L57,J57,H57,F57)","v":0}]
[3.2,"Vicintiy Map/Base Mapping / Other Graphics"]
["    3.2.1","    Create Vicinity Map",null,null,{"$f":"IF($C$59=\"\",\"\",F59/$C$59)","v":""},null,{"$f":"IF($C$59=\"\",\"\",H59/$C$59)","v":""},null,{"$f":"IF($C$59=\"\",\"\",J59/$C$59)","v":""},null,{"$f":"IF($C$59=\"\",\"\",L59/$C$59)","v":""},null,{"$f":"IF($C$59=\"\",\"\",N59/$C$59)","v":""},null,{"$f":"IF($C$59=\"\",\"\",P59/$C$59)","v":""},null,{"$f":"IF($C$59=\"\",\"\",R59/$C$59)","v":""},null,{"$f":"IF($C$59=\"\",\"\",T59/$C$59)","v":""},null,{"$f":"IF($C$59=\"\",\"\",V59/$C$59)","v":""},null,{"$f":"IF($C$59=\"\",\"\",X59/$C$59)","v":""},null,{"$f":"IF($C$59=\"\",\"\",Z59/$C$59)","v":""},null,{"$f":"IF($C$59=\"\",\"\",AB59/$C$59)","v":""},null,{"$f":"IF($C$59=\"\",\"\",AD59/$C$59)","v":""},null,{"$f":"IF($C$59=\"\",\"\",AF59/$C$59)","v":""},null,{"$f":"IF($C$59=\"\",\"\",AH59/$C$59)","v":""},null,{"$f":"IF($C$59=\"\",\"\",AJ59/$C$59)","v":""},null,{"$f":"IF($C$59=\"\",\"\",AL59/$C$59)","v":""},null,{"$f":"IF($C$59=\"\",\"\",AN59/$C$59)","v":""},null,{"$f":"IF($C$59=\"\",\"\",AP59/$C$59)","v":""},null,{"$f":"IF($C$59=\"\",\"\",AR59/$C$59)","v":""},null,{"$f":"IF($C$59=\"\",\"\",AT59/$C$59)","v":""},null,{"$f":"IF($C$59=\"\",\"\",AV59/$C$59)","v":""},null,{"$f":"IF($C$59=\"\",\"\",AX59/$C$59)","v":""},null,{"$f":"IF($C$59=\"\",\"\",AZ59/$C$59)","v":""},null,{"$f":"IF($C$59=\"\",\"\",BB59/$C$59)","v":""},null,{"$f":"SUM(BB59,AZ59,AX59,AV59,AT59,AR59,AP59,AN59,AL59,AJ59,AH59,AF59,AD59,AB59,Z59,X59,V59,T59,R59,P59,N59,L59,J59,H59,F59)","v":0}]
["    3.2.2","    Digitize Feasibility Study Map (cable routing,\n    signals, camera locations)",null,null,{"$f":"IF($C$60=\"\",\"\",F60/$C$60)","v":""},null,{"$f":"IF($C$60=\"\",\"\",H60/$C$60)","v":""},null,{"$f":"IF($C$60=\"\",\"\",J60/$C$60)","v":""},null,{"$f":"IF($C$60=\"\",\"\",L60/$C$60)","v":""},null,{"$f":"IF($C$60=\"\",\"\",N60/$C$60)","v":""},null,{"$f":"IF($C$60=\"\",\"\",P60/$C$60)","v":""},null,{"$f":"IF($C$60=\"\",\"\",R60/$C$60)","v":""},null,{"$f":"IF($C$60=\"\",\"\",T60/$C$60)","v":""},null,{"$f":"IF($C$60=\"\",\"\",V60/$C$60)","v":""},null,{"$f":"IF($C$60=\"\",\"\",X60/$C$60)","v":""},null,{"$f":"IF($C$60=\"\",\"\",Z60/$C$60)","v":""},null,{"$f":"IF($C$60=\"\",\"\",AB60/$C$60)","v":""},null,{"$f":"IF($C$60=\"\",\"\",AD60/$C$60)","v":""},null,{"$f":"IF($C$60=\"\",\"\",AF60/$C$60)","v":""},null,{"$f":"IF($C$60=\"\",\"\",AH60/$C$60)","v":""},null,{"$f":"IF($C$60=\"\",\"\",AJ60/$C$60)","v":""},null,{"$f":"IF($C$60=\"\",\"\",AL60/$C$60)","v":""},null,{"$f":"IF($C$60=\"\",\"\",AN60/$C$60)","v":""},null,{"$f":"IF($C$60=\"\",\"\",AP60/$C$60)","v":""},null,{"$f":"IF($C$60=\"\",\"\",AR60/$C$60)","v":""},null,{"$f":"IF($C$60=\"\",\"\",AT60/$C$60)","v":""},null,{"$f":"IF($C$60=\"\",\"\",AV60/$C$60)","v":""},null,{"$f":"IF($C$60=\"\",\"\",AX60/$C$60)","v":""},null,{"$f":"IF($C$60=\"\",\"\",AZ60/$C$60)","v":""},null,{"$f":"IF($C$60=\"\",\"\",BB60/$C$60)","v":""},null,0]
["    3.2.3","    Add Planimetrics to Base Map",null,null,{"$f":"IF($C$61=\"\",\"\",F61/$C$61)","v":""},null,{"$f":"IF($C$61=\"\",\"\",H61/$C$61)","v":""},null,{"$f":"IF($C$61=\"\",\"\",J61/$C$61)","v":""},null,{"$f":"IF($C$61=\"\",\"\",L61/$C$61)","v":""},null,{"$f":"IF($C$61=\"\",\"\",N61/$C$61)","v":""},null,{"$f":"IF($C$61=\"\",\"\",P61/$C$61)","v":""},null,{"$f":"IF($C$61=\"\",\"\",R61/$C$61)","v":""},null,{"$f":"IF($C$61=\"\",\"\",T61/$C$61)","v":""},null,{"$f":"IF($C$61=\"\",\"\",V61/$C$61)","v":""},null,{"$f":"IF($C$61=\"\",\"\",X61/$C$61)","v":""},null,{"$f":"IF($C$61=\"\",\"\",Z61/$C$61)","v":""},null,{"$f":"IF($C$61=\"\",\"\",AB61/$C$61)","v":""},null,{"$f":"IF($C$61=\"\",\"\",AD61/$C$61)","v":""},null,{"$f":"IF($C$61=\"\",\"\",AF61/$C$61)","v":""},null,{"$f":"IF($C$61=\"\",\"\",AH61/$C$61)","v":""},null,{"$f":"IF($C$61=\"\",\"\",AJ61/$C$61)","v":""},null,{"$f":"IF($C$61=\"\",\"\",AL61/$C$61)","v":""},null,{"$f":"IF($C$61=\"\",\"\",AN61/$C$61)","v":""},null,{"$f":"IF($C$61=\"\",\"\",AP61/$C$61)","v":""},null,{"$f":"IF($C$61=\"\",\"\",AR61/$C$61)","v":""},null,{"$f":"IF($C$61=\"\",\"\",AT61/$C$61)","v":""},null,{"$f":"IF($C$61=\"\",\"\",AV61/$C$61)","v":""},null,{"$f":"IF($C$61=\"\",\"\",AX61/$C$61)","v":""},null,{"$f":"IF($C$61=\"\",\"\",AZ61/$C$61)","v":""},null,{"$f":"IF($C$61=\"\",\"\",BB61/$C$61)","v":""},null,0]
["    3.2.4","    Env. Features Layers (index, historic \n    districts/boundaries/structures, verify \n    community resources/correct autolabeling)",null,null,{"$f":"IF($C$62=\"\",\"\",F62/$C$62)","v":""},null,{"$f":"IF($C$62=\"\",\"\",H62/$C$62)","v":""},null,{"$f":"IF($C$62=\"\",\"\",J62/$C$62)","v":""},null,{"$f":"IF($C$62=\"\",\"\",L62/$C$62)","v":""},null,{"$f":"IF($C$62=\"\",\"\",N62/$C$62)","v":""},null,{"$f":"IF($C$62=\"\",\"\",P62/$C$62)","v":""},null,{"$f":"IF($C$62=\"\",\"\",R62/$C$62)","v":""},null,{"$f":"IF($C$62=\"\",\"\",T62/$C$62)","v":""},null,{"$f":"IF($C$62=\"\",\"\",V62/$C$62)","v":""},null,{"$f":"IF($C$62=\"\",\"\",X62/$C$62)","v":""},null,{"$f":"IF($C$62=\"\",\"\",Z62/$C$62)","v":""},null,{"$f":"IF($C$62=\"\",\"\",AB62/$C$62)","v":""},null,{"$f":"IF($C$62=\"\",\"\",AD62/$C$62)","v":""},null,{"$f":"IF($C$62=\"\",\"\",AF62/$C$62)","v":""},null,{"$f":"IF($C$62=\"\",\"\",AH62/$C$62)","v":""},null,{"$f":"IF($C$62=\"\",\"\",AJ62/$C$62)","v":""},null,{"$f":"IF($C$62=\"\",\"\",AL62/$C$62)","v":""},null,{"$f":"IF($C$62=\"\",\"\",AN62/$C$62)","v":""},null,{"$f":"IF($C$62=\"\",\"\",AP62/$C$62)","v":""},null,{"$f":"IF($C$62=\"\",\"\",AR62/$C$62)","v":""},null,{"$f":"IF($C$62=\"\",\"\",AT62/$C$62)","v":""},null,{"$f":"IF($C$62=\"\",\"\",AV62/$C$62)","v":""},null,{"$f":"IF($C$62=\"\",\"\",AX62/$C$62)","v":""},null,{"$f":"IF($C$62=\"\",\"\",AZ62/$C$62)","v":""},null,{"$f":"IF($C$62=\"\",\"\",BB62/$C$62)","v":""},null,0]
["    3.2.5","    Modifications Following Field Work",null,null,{"$f":"IF($C$63=\"\",\"\",F63/$C$63)","v":""},null,{"$f":"IF($C$63=\"\",\"\",H63/$C$63)","v":""},null,{"$f":"IF($C$63=\"\",\"\",J63/$C$63)","v":""},null,{"$f":"IF($C$63=\"\",\"\",L63/$C$63)","v":""},null,{"$f":"IF($C$63=\"\",\"\",N63/$C$63)","v":""},null,{"$f":"IF($C$63=\"\",\"\",P63/$C$63)","v":""},null,{"$f":"IF($C$63=\"\",\"\",R63/$C$63)","v":""},null,{"$f":"IF($C$63=\"\",\"\",T63/$C$63)","v":""},null,{"$f":"IF($C$63=\"\",\"\",V63/$C$63)","v":""},null,{"$f":"IF($C$63=\"\",\"\",X63/$C$63)","v":""},null,{"$f":"IF($C$63=\"\",\"\",Z63/$C$63)","v":""},null,{"$f":"IF($C$63=\"\",\"\",AB63/$C$63)","v":""},null,{"$f":"IF($C$63=\"\",\"\",AD63/$C$63)","v":""},null,{"$f":"IF($C$63=\"\",\"\",AF63/$C$63)","v":""},null,{"$f":"IF($C$63=\"\",\"\",AH63/$C$63)","v":""},null,{"$f":"IF($C$63=\"\",\"\",AJ63/$C$63)","v":""},null,{"$f":"IF($C$63=\"\",\"\",AL63/$C$63)","v":""},null,{"$f":"IF($C$63=\"\",\"\",AN63/$C$63)","v":""},null,{"$f":"IF($C$63=\"\",\"\",AP63/$C$63)","v":""},null,{"$f":"IF($C$63=\"\",\"\",AR63/$C$63)","v":""},null,{"$f":"IF($C$63=\"\",\"\",AT63/$C$63)","v":""},null,{"$f":"IF($C$63=\"\",\"\",AV63/$C$63)","v":""},null,{"$f":"IF($C$63=\"\",\"\",AX63/$C$63)","v":""},null,{"$f":"IF($C$63=\"\",\"\",AZ63/$C$63)","v":""},null,{"$f":"IF($C$63=\"\",\"\",BB63/$C$63)","v":""},null,0]
["    3.2.6","    Quad Map (needed for Archaeological and \n    Historic Architecture packets)",null,null,{"$f":"IF($C$64=\"\",\"\",F64/$C$64)","v":""},null,{"$f":"IF($C$64=\"\",\"\",H64/$C$64)","v":""},null,{"$f":"IF($C$64=\"\",\"\",J64/$C$64)","v":""},null,{"$f":"IF($C$64=\"\",\"\",L64/$C$64)","v":""},null,{"$f":"IF($C$64=\"\",\"\",N64/$C$64)","v":""},null,{"$f":"IF($C$64=\"\",\"\",P64/$C$64)","v":""},null,{"$f":"IF($C$64=\"\",\"\",R64/$C$64)","v":""},null,{"$f":"IF($C$64=\"\",\"\",T64/$C$64)","v":""},null,{"$f":"IF($C$64=\"\",\"\",V64/$C$64)","v":""},null,{"$f":"IF($C$64=\"\",\"\",X64/$C$64)","v":""},null,{"$f":"IF($C$64=\"\",\"\",Z64/$C$64)","v":""},null,{"$f":"IF($C$64=\"\",\"\",AB64/$C$64)","v":""},null,{"$f":"IF($C$64=\"\",\"\",AD64/$C$64)","v":""},null,{"$f":"IF($C$64=\"\",\"\",AF64/$C$64)","v":""},null,{"$f":"IF($C$64=\"\",\"\",AH64/$C$64)","v":""},null,{"$f":"IF($C$64=\"\",\"\",AJ64/$C$64)","v":""},null,{"$f":"IF($C$64=\"\",\"\",AL64/$C$64)","v":""},null,{"$f":"IF($C$64=\"\",\"\",AN64/$C$64)","v":""},null,{"$f":"IF($C$64=\"\",\"\",AP64/$C$64)","v":""},null,{"$f":"IF($C$64=\"\",\"\",AR64/$C$64)","v":""},null,{"$f":"IF($C$64=\"\",\"\",AT64/$C$64)","v":""},null,{"$f":"IF($C$64=\"\",\"\",AV64/$C$64)","v":""},null,{"$f":"IF($C$64=\"\",\"\",AX64/$C$64)","v":""},null,{"$f":"IF($C$64=\"\",\"\",AZ64/$C$64)","v":""},null,{"$f":"IF($C$64=\"\",\"\",BB64/$C$64)","v":""},null,0]
["    3.2.7",null,null,null,{"$f":"IF($C$65=\"\",\"\",F65/$C$65)","v":""},null,{"$f":"IF($C$65=\"\",\"\",H65/$C$65)","v":""},null,{"$f":"IF($C$65=\"\",\"\",J65/$C$65)","v":""},null,{"$f":"IF($C$65=\"\",\"\",L65/$C$65)","v":""},null,{"$f":"IF($C$65=\"\",\"\",N65/$C$65)","v":""},null,{"$f":"IF($C$65=\"\",\"\",P65/$C$65)","v":""},null,{"$f":"IF($C$65=\"\",\"\",R65/$C$65)","v":""},null,{"$f":"IF($C$65=\"\",\"\",T65/$C$65)","v":""},null,{"$f":"IF($C$65=\"\",\"\",V65/$C$65)","v":""},null,{"$f":"IF($C$65=\"\",\"\",X65/$C$65)","v":""},null,{"$f":"IF($C$65=\"\",\"\",Z65/$C$65)","v":""},null,{"$f":"IF($C$65=\"\",\"\",AB65/$C$65)","v":""},null,{"$f":"IF($C$65=\"\",\"\",AD65/$C$65)","v":""},null,{"$f":"IF($C$65=\"\",\"\",AF65/$C$65)","v":""},null,{"$f":"IF($C$65=\"\",\"\",AH65/$C$65)","v":""},null,{"$f":"IF($C$65=\"\",\"\",AJ65/$C$65)","v":""},null,{"$f":"IF($C$65=\"\",\"\",AL65/$C$65)","v":""},null,{"$f":"IF($C$65=\"\",\"\",AN65/$C$65)","v":""},null,{"$f":"IF($C$65=\"\",\"\",AP65/$C$65)","v":""},null,{"$f":"IF($C$65=\"\",\"\",AR65/$C$65)","v":""},null,{"$f":"IF($C$65=\"\",\"\",AT65/$C$65)","v":""},null,{"$f":"IF($C$65=\"\",\"\",AV65/$C$65)","v":""},null,{"$f":"IF($C$65=\"\",\"\",AX65/$C$65)","v":""},null,{"$f":"IF($C$65=\"\",\"\",AZ65/$C$65)","v":""},null,{"$f":"IF($C$65=\"\",\"\",BB65/$C$65)","v":""},null,0]
["    3.2.8",null,null,null,{"$f":"IF($C$66=\"\",\"\",F66/$C$66)","v":""},null,{"$f":"IF($C$66=\"\",\"\",H66/$C$66)","v":""},null,{"$f":"IF($C$66=\"\",\"\",J66/$C$66)","v":""},null,{"$f":"IF($C$66=\"\",\"\",L66/$C$66)","v":""},null,{"$f":"IF($C$66=\"\",\"\",N66/$C$66)","v":""},null,{"$f":"IF($C$66=\"\",\"\",P66/$C$66)","v":""},null,{"$f":"IF($C$66=\"\",\"\",R66/$C$66)","v":""},null,{"$f":"IF($C$66=\"\",\"\",T66/$C$66)","v":""},null,{"$f":"IF($C$66=\"\",\"\",V66/$C$66)","v":""},null,{"$f":"IF($C$66=\"\",\"\",X66/$C$66)","v":""},null,{"$f":"IF($C$66=\"\",\"\",Z66/$C$66)","v":""},null,{"$f":"IF($C$66=\"\",\"\",AB66/$C$66)","v":""},null,{"$f":"IF($C$66=\"\",\"\",AD66/$C$66)","v":""},null,{"$f":"IF($C$66=\"\",\"\",AF66/$C$66)","v":""},null,{"$f":"IF($C$66=\"\",\"\",AH66/$C$66)","v":""},null,{"$f":"IF($C$66=\"\",\"\",AJ66/$C$66)","v":""},null,{"$f":"IF($C$66=\"\",\"\",AL66/$C$66)","v":""},null,{"$f":"IF($C$66=\"\",\"\",AN66/$C$66)","v":""},null,{"$f":"IF($C$66=\"\",\"\",AP66/$C$66)","v":""},null,{"$f":"IF($C$66=\"\",\"\",AR66/$C$66)","v":""},null,{"$f":"IF($C$66=\"\",\"\",AT66/$C$66)","v":""},null,{"$f":"IF($C$66=\"\",\"\",AV66/$C$66)","v":""},null,{"$f":"IF($C$66=\"\",\"\",AX66/$C$66)","v":""},null,{"$f":"IF($C$66=\"\",\"\",AZ66/$C$66)","v":""},null,{"$f":"IF($C$66=\"\",\"\",BB66/$C$66)","v":""},null,0]
["    3.2.9",null,null,null,{"$f":"IF($C$67=\"\",\"\",F67/$C$67)","v":""},null,{"$f":"IF($C$67=\"\",\"\",H67/$C$67)","v":""},null,{"$f":"IF($C$67=\"\",\"\",J67/$C$67)","v":""},null,{"$f":"IF($C$67=\"\",\"\",L67/$C$67)","v":""},null,{"$f":"IF($C$67=\"\",\"\",N67/$C$67)","v":""},null,{"$f":"IF($C$67=\"\",\"\",P67/$C$67)","v":""},null,{"$f":"IF($C$67=\"\",\"\",R67/$C$67)","v":""},null,{"$f":"IF($C$67=\"\",\"\",T67/$C$67)","v":""},null,{"$f":"IF($C$67=\"\",\"\",V67/$C$67)","v":""},null,{"$f":"IF($C$67=\"\",\"\",X67/$C$67)","v":""},null,{"$f":"IF($C$67=\"\",\"\",Z67/$C$67)","v":""},null,{"$f":"IF($C$67=\"\",\"\",AB67/$C$67)","v":""},null,{"$f":"IF($C$67=\"\",\"\",AD67/$C$67)","v":""},null,{"$f":"IF($C$67=\"\",\"\",AF67/$C$67)","v":""},null,{"$f":"IF($C$67=\"\",\"\",AH67/$C$67)","v":""},null,{"$f":"IF($C$67=\"\",\"\",AJ67/$C$67)","v":""},null,{"$f":"IF($C$67=\"\",\"\",AL67/$C$67)","v":""},null,{"$f":"IF($C$67=\"\",\"\",AN67/$C$67)","v":""},null,{"$f":"IF($C$67=\"\",\"\",AP67/$C$67)","v":""},null,{"$f":"IF($C$67=\"\",\"\",AR67/$C$67)","v":""},null,{"$f":"IF($C$67=\"\",\"\",AT67/$C$67)","v":""},null,{"$f":"IF($C$67=\"\",\"\",AV67/$C$67)","v":""},null,{"$f":"IF($C$67=\"\",\"\",AX67/$C$67)","v":""},null,{"$f":"IF($C$67=\"\",\"\",AZ67/$C$67)","v":""},null,{"$f":"IF($C$67=\"\",\"\",BB67/$C$67)","v":""},null,0]
[3.3,"Historic Architecture"]
["    3.3.1","    Attend meetings with Local \n    Commission/NCDOT Historian/SHPO and \n    summarize (assume up to 3 meetings)",null,null,{"$f":"IF($C$69=\"\",\"\",F69/$C$69)","v":""},null,{"$f":"IF($C$69=\"\",\"\",H69/$C$69)","v":""},null,{"$f":"IF($C$69=\"\",\"\",J69/$C$69)","v":""},null,{"$f":"IF($C$69=\"\",\"\",L69/$C$69)","v":""},null,{"$f":"IF($C$69=\"\",\"\",N69/$C$69)","v":""},null,{"$f":"IF($C$69=\"\",\"\",P69/$C$69)","v":""},null,{"$f":"IF($C$69=\"\",\"\",R69/$C$69)","v":""},null,{"$f":"IF($C$69=\"\",\"\",T69/$C$69)","v":""},null,{"$f":"IF($C$69=\"\",\"\",V69/$C$69)","v":""},null,{"$f":"IF($C$69=\"\",\"\",X69/$C$69)","v":""},null,{"$f":"IF($C$69=\"\",\"\",Z69/$C$69)","v":""},null,{"$f":"IF($C$69=\"\",\"\",AB69/$C$69)","v":""},null,{"$f":"IF($C$69=\"\",\"\",AD69/$C$69)","v":""},null,{"$f":"IF($C$69=\"\",\"\",AF69/$C$69)","v":""},null,{"$f":"IF($C$69=\"\",\"\",AH69/$C$69)","v":""},null,{"$f":"IF($C$69=\"\",\"\",AJ69/$C$69)","v":""},null,{"$f":"IF($C$69=\"\",\"\",AL69/$C$69)","v":""},null,{"$f":"IF($C$69=\"\",\"\",AN69/$C$69)","v":""},null,{"$f":"IF($C$69=\"\",\"\",AP69/$C$69)","v":""},null,{"$f":"IF($C$69=\"\",\"\",AR69/$C$69)","v":""},null,{"$f":"IF($C$69=\"\",\"\",AT69/$C$69)","v":""},null,{"$f":"IF($C$69=\"\",\"\",AV69/$C$69)","v":""},null,{"$f":"IF($C$69=\"\",\"\",AX69/$C$69)","v":""},null,{"$f":"IF($C$69=\"\",\"\",AZ69/$C$69)","v":""},null,{"$f":"IF($C$69=\"\",\"\",BB69/$C$69)","v":""},null,{"$f":"SUM(BB69,AZ69,AX69,AV69,AT69,AR69,AP69,AN69,AL69,AJ69,AH69,AF69,AD69,AB69,Z69,X69,V69,T69,R69,P69,N69,L69,J69,H69,F69)","v":0}]
["    3.3.2","     PA Request Packet (Vicinity Map, PSA Map, \n    Quad Sheet, PA Cultural Resources Screening \n    Checklist)",null,null,{"$f":"IF($C$70=\"\",\"\",F70/$C$70)","v":""},null,{"$f":"IF($C$70=\"\",\"\",H70/$C$70)","v":""},null,{"$f":"IF($C$70=\"\",\"\",J70/$C$70)","v":""},null,{"$f":"IF($C$70=\"\",\"\",L70/$C$70)","v":""},null,{"$f":"IF($C$70=\"\",\"\",N70/$C$70)","v":""},null,{"$f":"IF($C$70=\"\",\"\",P70/$C$70)","v":""},null,{"$f":"IF($C$70=\"\",\"\",R70/$C$70)","v":""},null,{"$f":"IF($C$70=\"\",\"\",T70/$C$70)","v":""},null,{"$f":"IF($C$70=\"\",\"\",V70/$C$70)","v":""},null,{"$f":"IF($C$70=\"\",\"\",X70/$C$70)","v":""},null,{"$f":"IF($C$70=\"\",\"\",Z70/$C$70)","v":""},null,{"$f":"IF($C$70=\"\",\"\",AB70/$C$70)","v":""},null,{"$f":"IF($C$70=\"\",\"\",AD70/$C$70)","v":""},null,{"$f":"IF($C$70=\"\",\"\",AF70/$C$70)","v":""},null,{"$f":"IF($C$70=\"\",\"\",AH70/$C$70)","v":""},null,{"$f":"IF($C$70=\"\",\"\",AJ70/$C$70)","v":""},null,{"$f":"IF($C$70=\"\",\"\",AL70/$C$70)","v":""},null,{"$f":"IF($C$70=\"\",\"\",AN70/$C$70)","v":""},null,{"$f":"IF($C$70=\"\",\"\",AP70/$C$70)","v":""},null,{"$f":"IF($C$70=\"\",\"\",AR70/$C$70)","v":""},null,{"$f":"IF($C$70=\"\",\"\",AT70/$C$70)","v":""},null,{"$f":"IF($C$70=\"\",\"\",AV70/$C$70)","v":""},null,{"$f":"IF($C$70=\"\",\"\",AX70/$C$70)","v":""},null,{"$f":"IF($C$70=\"\",\"\",AZ70/$C$70)","v":""},null,{"$f":"IF($C$70=\"\",\"\",BB70/$C$70)","v":""},null,0]
["    3.3.3","    NCDOT Review of PA Request Packet/Address \n    comments/Submit to \"PA Tracker\"",null,null,{"$f":"IF($C$71=\"\",\"\",F71/$C$71)","v":""},null,{"$f":"IF($C$71=\"\",\"\",H71/$C$71)","v":""},null,{"$f":"IF($C$71=\"\",\"\",J71/$C$71)","v":""},null,{"$f":"IF($C$71=\"\",\"\",L71/$C$71)","v":""},null,{"$f":"IF($C$71=\"\",\"\",N71/$C$71)","v":""},null,{"$f":"IF($C$71=\"\",\"\",P71/$C$71)","v":""},null,{"$f":"IF($C$71=\"\",\"\",R71/$C$71)","v":""},null,{"$f":"IF($C$71=\"\",\"\",T71/$C$71)","v":""},null,{"$f":"IF($C$71=\"\",\"\",V71/$C$71)","v":""},null,{"$f":"IF($C$71=\"\",\"\",X71/$C$71)","v":""},null,{"$f":"IF($C$71=\"\",\"\",Z71/$C$71)","v":""},null,{"$f":"IF($C$71=\"\",\"\",AB71/$C$71)","v":""},null,{"$f":"IF($C$71=\"\",\"\",AD71/$C$71)","v":""},null,{"$f":"IF($C$71=\"\",\"\",AF71/$C$71)","v":""},null,{"$f":"IF($C$71=\"\",\"\",AH71/$C$71)","v":""},null,{"$f":"IF($C$71=\"\",\"\",AJ71/$C$71)","v":""},null,{"$f":"IF($C$71=\"\",\"\",AL71/$C$71)","v":""},null,{"$f":"IF($C$71=\"\",\"\",AN71/$C$71)","v":""},null,{"$f":"IF($C$71=\"\",\"\",AP71/$C$71)","v":""},null,{"$f":"IF($C$71=\"\",\"\",AR71/$C$71)","v":""},null,{"$f":"IF($C$71=\"\",\"\",AT71/$C$71)","v":""},null,{"$f":"IF($C$71=\"\",\"\",AV71/$C$71)","v":""},null,{"$f":"IF($C$71=\"\",\"\",AX71/$C$71)","v":""},null,{"$f":"IF($C$71=\"\",\"\",AZ71/$C$71)","v":""},null,{"$f":"IF($C$71=\"\",\"\",BB71/$C$71)","v":""},null,0]
["    3.3.4","    Coordination/Tabular Summaries of Signal \n    System Work Task",null,null,{"$f":"IF($C$72=\"\",\"\",F72/$C$72)","v":""},null,{"$f":"IF($C$72=\"\",\"\",H72/$C$72)","v":""},null,{"$f":"IF($C$72=\"\",\"\",J72/$C$72)","v":""},null,{"$f":"IF($C$72=\"\",\"\",L72/$C$72)","v":""},null,{"$f":"IF($C$72=\"\",\"\",N72/$C$72)","v":""},null,{"$f":"IF($C$72=\"\",\"\",P72/$C$72)","v":""},null,{"$f":"IF($C$72=\"\",\"\",R72/$C$72)","v":""},null,{"$f":"IF($C$72=\"\",\"\",T72/$C$72)","v":""},null,{"$f":"IF($C$72=\"\",\"\",V72/$C$72)","v":""},null,{"$f":"IF($C$72=\"\",\"\",X72/$C$72)","v":""},null,{"$f":"IF($C$72=\"\",\"\",Z72/$C$72)","v":""},null,{"$f":"IF($C$72=\"\",\"\",AB72/$C$72)","v":""},null,{"$f":"IF($C$72=\"\",\"\",AD72/$C$72)","v":""},null,{"$f":"IF($C$72=\"\",\"\",AF72/$C$72)","v":""},null,{"$f":"IF($C$72=\"\",\"\",AH72/$C$72)","v":""},null,{"$f":"IF($C$72=\"\",\"\",AJ72/$C$72)","v":""},null,{"$f":"IF($C$72=\"\",\"\",AL72/$C$72)","v":""},null,{"$f":"IF($C$72=\"\",\"\",AN72/$C$72)","v":""},null,{"$f":"IF($C$72=\"\",\"\",AP72/$C$72)","v":""},null,{"$f":"IF($C$72=\"\",\"\",AR72/$C$72)","v":""},null,{"$f":"IF($C$72=\"\",\"\",AT72/$C$72)","v":""},null,{"$f":"IF($C$72=\"\",\"\",AV72/$C$72)","v":""},null,{"$f":"IF($C$72=\"\",\"\",AX72/$C$72)","v":""},null,{"$f":"IF($C$72=\"\",\"\",AZ72/$C$72)","v":""},null,{"$f":"IF($C$72=\"\",\"\",BB72/$C$72)","v":""},null,0]
["    3.3.5",null,null,null,{"$f":"IF($C$73=\"\",\"\",F73/$C$73)","v":""},null,{"$f":"IF($C$73=\"\",\"\",H73/$C$73)","v":""},null,{"$f":"IF($C$73=\"\",\"\",J73/$C$73)","v":""},null,{"$f":"IF($C$73=\"\",\"\",L73/$C$73)","v":""},null,{"$f":"IF($C$73=\"\",\"\",N73/$C$73)","v":""},null,{"$f":"IF($C$73=\"\",\"\",P73/$C$73)","v":""},null,{"$f":"IF($C$73=\"\",\"\",R73/$C$73)","v":""},null,{"$f":"IF($C$73=\"\",\"\",T73/$C$73)","v":""},null,{"$f":"IF($C$73=\"\",\"\",V73/$C$73)","v":""},null,{"$f":"IF($C$73=\"\",\"\",X73/$C$73)","v":""},null,{"$f":"IF($C$73=\"\",\"\",Z73/$C$73)","v":""},null,{"$f":"IF($C$73=\"\",\"\",AB73/$C$73)","v":""},null,{"$f":"IF($C$73=\"\",\"\",AD73/$C$73)","v":""},null,{"$f":"IF($C$73=\"\",\"\",AF73/$C$73)","v":""},null,{"$f":"IF($C$73=\"\",\"\",AH73/$C$73)","v":""},null,{"$f":"IF($C$73=\"\",\"\",AJ73/$C$73)","v":""},null,{"$f":"IF($C$73=\"\",\"\",AL73/$C$73)","v":""},null,{"$f":"IF($C$73=\"\",\"\",AN73/$C$73)","v":""},null,{"$f":"IF($C$73=\"\",\"\",AP73/$C$73)","v":""},null,{"$f":"IF($C$73=\"\",\"\",AR73/$C$73)","v":""},null,{"$f":"IF($C$73=\"\",\"\",AT73/$C$73)","v":""},null,{"$f":"IF($C$73=\"\",\"\",AV73/$C$73)","v":""},null,{"$f":"IF($C$73=\"\",\"\",AX73/$C$73)","v":""},null,{"$f":"IF($C$73=\"\",\"\",AZ73/$C$73)","v":""},null,{"$f":"IF($C$73=\"\",\"\",BB73/$C$73)","v":""},null,0]
["    3.3.6",null,null,null,{"$f":"IF($C$74=\"\",\"\",F74/$C$74)","v":""},null,{"$f":"IF($C$74=\"\",\"\",H74/$C$74)","v":""},null,{"$f":"IF($C$74=\"\",\"\",J74/$C$74)","v":""},null,{"$f":"IF($C$74=\"\",\"\",L74/$C$74)","v":""},null,{"$f":"IF($C$74=\"\",\"\",N74/$C$74)","v":""},null,{"$f":"IF($C$74=\"\",\"\",P74/$C$74)","v":""},null,{"$f":"IF($C$74=\"\",\"\",R74/$C$74)","v":""},null,{"$f":"IF($C$74=\"\",\"\",T74/$C$74)","v":""},null,{"$f":"IF($C$74=\"\",\"\",V74/$C$74)","v":""},null,{"$f":"IF($C$74=\"\",\"\",X74/$C$74)","v":""},null,{"$f":"IF($C$74=\"\",\"\",Z74/$C$74)","v":""},null,{"$f":"IF($C$74=\"\",\"\",AB74/$C$74)","v":""},null,{"$f":"IF($C$74=\"\",\"\",AD74/$C$74)","v":""},null,{"$f":"IF($C$74=\"\",\"\",AF74/$C$74)","v":""},null,{"$f":"IF($C$74=\"\",\"\",AH74/$C$74)","v":""},null,{"$f":"IF($C$74=\"\",\"\",AJ74/$C$74)","v":""},null,{"$f":"IF($C$74=\"\",\"\",AL74/$C$74)","v":""},null,{"$f":"IF($C$74=\"\",\"\",AN74/$C$74)","v":""},null,{"$f":"IF($C$74=\"\",\"\",AP74/$C$74)","v":""},null,{"$f":"IF($C$74=\"\",\"\",AR74/$C$74)","v":""},null,{"$f":"IF($C$74=\"\",\"\",AT74/$C$74)","v":""},null,{"$f":"IF($C$74=\"\",\"\",AV74/$C$74)","v":""},null,{"$f":"IF($C$74=\"\",\"\",AX74/$C$74)","v":""},null,{"$f":"IF($C$74=\"\",\"\",AZ74/$C$74)","v":""},null,{"$f":"IF($C$74=\"\",\"\",BB74/$C$74)","v":""},null,0]
["    3.3.7",null,null,null,{"$f":"IF($C$75=\"\",\"\",F75/$C$75)","v":""},null,{"$f":"IF($C$75=\"\",\"\",H75/$C$75)","v":""},null,{"$f":"IF($C$75=\"\",\"\",J75/$C$75)","v":""},null,{"$f":"IF($C$75=\"\",\"\",L75/$C$75)","v":""},null,{"$f":"IF($C$75=\"\",\"\",N75/$C$75)","v":""},null,{"$f":"IF($C$75=\"\",\"\",P75/$C$75)","v":""},null,{"$f":"IF($C$75=\"\",\"\",R75/$C$75)","v":""},null,{"$f":"IF($C$75=\"\",\"\",T75/$C$75)","v":""},null,{"$f":"IF($C$75=\"\",\"\",V75/$C$75)","v":""},null,{"$f":"IF($C$75=\"\",\"\",X75/$C$75)","v":""},null,{"$f":"IF($C$75=\"\",\"\",Z75/$C$75)","v":""},null,{"$f":"IF($C$75=\"\",\"\",AB75/$C$75)","v":""},null,{"$f":"IF($C$75=\"\",\"\",AD75/$C$75)","v":""},null,{"$f":"IF($C$75=\"\",\"\",AF75/$C$75)","v":""},null,{"$f":"IF($C$75=\"\",\"\",AH75/$C$75)","v":""},null,{"$f":"IF($C$75=\"\",\"\",AJ75/$C$75)","v":""},null,{"$f":"IF($C$75=\"\",\"\",AL75/$C$75)","v":""},null,{"$f":"IF($C$75=\"\",\"\",AN75/$C$75)","v":""},null,{"$f":"IF($C$75=\"\",\"\",AP75/$C$75)","v":""},null,{"$f":"IF($C$75=\"\",\"\",AR75/$C$75)","v":""},null,{"$f":"IF($C$75=\"\",\"\",AT75/$C$75)","v":""},null,{"$f":"IF($C$75=\"\",\"\",AV75/$C$75)","v":""},null,{"$f":"IF($C$75=\"\",\"\",AX75/$C$75)","v":""},null,{"$f":"IF($C$75=\"\",\"\",AZ75/$C$75)","v":""},null,{"$f":"IF($C$75=\"\",\"\",BB75/$C$75)","v":""},null,0]
[3.4,"Noise Impacts / Air Quality",null,null,{"$f":"IF($C$76=\"\",\"\",F76/$C$76)","v":""},null,{"$f":"IF($C$76=\"\",\"\",H76/$C$76)","v":""},null,{"$f":"IF($C$76=\"\",\"\",J76/$C$76)","v":""},null,{"$f":"IF($C$76=\"\",\"\",L76/$C$76)","v":""},null,{"$f":"IF($C$76=\"\",\"\",N76/$C$76)","v":""},null,{"$f":"IF($C$76=\"\",\"\",P76/$C$76)","v":""},null,{"$f":"IF($C$76=\"\",\"\",R76/$C$76)","v":""},null,{"$f":"IF($C$76=\"\",\"\",T76/$C$76)","v":""},null,{"$f":"IF($C$76=\"\",\"\",V76/$C$76)","v":""},null,{"$f":"IF($C$76=\"\",\"\",X76/$C$76)","v":""},null,{"$f":"IF($C$76=\"\",\"\",Z76/$C$76)","v":""},null,{"$f":"IF($C$76=\"\",\"\",AB76/$C$76)","v":""},null,{"$f":"IF($C$76=\"\",\"\",AD76/$C$76)","v":""},null,{"$f":"IF($C$76=\"\",\"\",AF76/$C$76)","v":""},null,{"$f":"IF($C$76=\"\",\"\",AH76/$C$76)","v":""},null,{"$f":"IF($C$76=\"\",\"\",AJ76/$C$76)","v":""},null,{"$f":"IF($C$76=\"\",\"\",AL76/$C$76)","v":""},null,{"$f":"IF($C$76=\"\",\"\",AN76/$C$76)","v":""},null,{"$f":"IF($C$76=\"\",\"\",AP76/$C$76)","v":""},null,{"$f":"IF($C$76=\"\",\"\",AR76/$C$76)","v":""},null,{"$f":"IF($C$76=\"\",\"\",AT76/$C$76)","v":""},null,{"$f":"IF($C$76=\"\",\"\",AV76/$C$76)","v":""},null,{"$f":"IF($C$76=\"\",\"\",AX76/$C$76)","v":""},null,{"$f":"IF($C$76=\"\",\"\",AZ76/$C$76)","v":""},null,{"$f":"IF($C$76=\"\",\"\",BB76/$C$76)","v":""},null,0]
[3.5,"Community Studies"]
["    3.5.1","    Obtain GIS Data Sets (minority, low income, \n    LEP)/create census demographic tables",null,null,{"$f":"IF($C$78=\"\",\"\",F78/$C$78)","v":""},null,{"$f":"IF($C$78=\"\",\"\",H78/$C$78)","v":""},null,{"$f":"IF($C$78=\"\",\"\",J78/$C$78)","v":""},null,{"$f":"IF($C$78=\"\",\"\",L78/$C$78)","v":""},null,{"$f":"IF($C$78=\"\",\"\",N78/$C$78)","v":""},null,{"$f":"IF($C$78=\"\",\"\",P78/$C$78)","v":""},null,{"$f":"IF($C$78=\"\",\"\",R78/$C$78)","v":""},null,{"$f":"IF($C$78=\"\",\"\",T78/$C$78)","v":""},null,{"$f":"IF($C$78=\"\",\"\",V78/$C$78)","v":""},null,{"$f":"IF($C$78=\"\",\"\",X78/$C$78)","v":""},null,{"$f":"IF($C$78=\"\",\"\",Z78/$C$78)","v":""},null,{"$f":"IF($C$78=\"\",\"\",AB78/$C$78)","v":""},null,{"$f":"IF($C$78=\"\",\"\",AD78/$C$78)","v":""},null,{"$f":"IF($C$78=\"\",\"\",AF78/$C$78)","v":""},null,{"$f":"IF($C$78=\"\",\"\",AH78/$C$78)","v":""},null,{"$f":"IF($C$78=\"\",\"\",AJ78/$C$78)","v":""},null,{"$f":"IF($C$78=\"\",\"\",AL78/$C$78)","v":""},null,{"$f":"IF($C$78=\"\",\"\",AN78/$C$78)","v":""},null,{"$f":"IF($C$78=\"\",\"\",AP78/$C$78)","v":""},null,{"$f":"IF($C$78=\"\",\"\",AR78/$C$78)","v":""},null,{"$f":"IF($C$78=\"\",\"\",AT78/$C$78)","v":""},null,{"$f":"IF($C$78=\"\",\"\",AV78/$C$78)","v":""},null,{"$f":"IF($C$78=\"\",\"\",AX78/$C$78)","v":""},null,{"$f":"IF($C$78=\"\",\"\",AZ78/$C$78)","v":""},null,{"$f":"IF($C$78=\"\",\"\",BB78/$C$78)","v":""},null,{"$f":"SUM(BB78,AZ78,AX78,AV78,AT78,AR78,AP78,AN78,AL78,AJ78,AH78,AF78,AD78,AB78,Z78,X78,V78,T78,R78,P78,N78,L78,J78,H78,F78)","v":0}]
["    3.5.2","    Q/C tables",null,null,{"$f":"IF($C$79=\"\",\"\",F79/$C$79)","v":""},null,{"$f":"IF($C$79=\"\",\"\",H79/$C$79)","v":""},null,{"$f":"IF($C$79=\"\",\"\",J79/$C$79)","v":""},null,{"$f":"IF($C$79=\"\",\"\",L79/$C$79)","v":""},null,{"$f":"IF($C$79=\"\",\"\",N79/$C$79)","v":""},null,{"$f":"IF($C$79=\"\",\"\",P79/$C$79)","v":""},null,{"$f":"IF($C$79=\"\",\"\",R79/$C$79)","v":""},null,{"$f":"IF($C$79=\"\",\"\",T79/$C$79)","v":""},null,{"$f":"IF($C$79=\"\",\"\",V79/$C$79)","v":""},null,{"$f":"IF($C$79=\"\",\"\",X79/$C$79)","v":""},null,{"$f":"IF($C$79=\"\",\"\",Z79/$C$79)","v":""},null,{"$f":"IF($C$79=\"\",\"\",AB79/$C$79)","v":""},null,{"$f":"IF($C$79=\"\",\"\",AD79/$C$79)","v":""},null,{"$f":"IF($C$79=\"\",\"\",AF79/$C$79)","v":""},null,{"$f":"IF($C$79=\"\",\"\",AH79/$C$79)","v":""},null,{"$f":"IF($C$79=\"\",\"\",AJ79/$C$79)","v":""},null,{"$f":"IF($C$79=\"\",\"\",AL79/$C$79)","v":""},null,{"$f":"IF($C$79=\"\",\"\",AN79/$C$79)","v":""},null,{"$f":"IF($C$79=\"\",\"\",AP79/$C$79)","v":""},null,{"$f":"IF($C$79=\"\",\"\",AR79/$C$79)","v":""},null,{"$f":"IF($C$79=\"\",\"\",AT79/$C$79)","v":""},null,{"$f":"IF($C$79=\"\",\"\",AV79/$C$79)","v":""},null,{"$f":"IF($C$79=\"\",\"\",AX79/$C$79)","v":""},null,{"$f":"IF($C$79=\"\",\"\",AZ79/$C$79)","v":""},null,{"$f":"IF($C$79=\"\",\"\",BB79/$C$79)","v":""},null,0]
["    3.5.3","    Develop mapping of DSA",null,null,{"$f":"IF($C$80=\"\",\"\",F80/$C$80)","v":""},null,{"$f":"IF($C$80=\"\",\"\",H80/$C$80)","v":""},null,{"$f":"IF($C$80=\"\",\"\",J80/$C$80)","v":""},null,{"$f":"IF($C$80=\"\",\"\",L80/$C$80)","v":""},null,{"$f":"IF($C$80=\"\",\"\",N80/$C$80)","v":""},null,{"$f":"IF($C$80=\"\",\"\",P80/$C$80)","v":""},null,{"$f":"IF($C$80=\"\",\"\",R80/$C$80)","v":""},null,{"$f":"IF($C$80=\"\",\"\",T80/$C$80)","v":""},null,{"$f":"IF($C$80=\"\",\"\",V80/$C$80)","v":""},null,{"$f":"IF($C$80=\"\",\"\",X80/$C$80)","v":""},null,{"$f":"IF($C$80=\"\",\"\",Z80/$C$80)","v":""},null,{"$f":"IF($C$80=\"\",\"\",AB80/$C$80)","v":""},null,{"$f":"IF($C$80=\"\",\"\",AD80/$C$80)","v":""},null,{"$f":"IF($C$80=\"\",\"\",AF80/$C$80)","v":""},null,{"$f":"IF($C$80=\"\",\"\",AH80/$C$80)","v":""},null,{"$f":"IF($C$80=\"\",\"\",AJ80/$C$80)","v":""},null,{"$f":"IF($C$80=\"\",\"\",AL80/$C$80)","v":""},null,{"$f":"IF($C$80=\"\",\"\",AN80/$C$80)","v":""},null,{"$f":"IF($C$80=\"\",\"\",AP80/$C$80)","v":""},null,{"$f":"IF($C$80=\"\",\"\",AR80/$C$80)","v":""},null,{"$f":"IF($C$80=\"\",\"\",AT80/$C$80)","v":""},null,{"$f":"IF($C$80=\"\",\"\",AV80/$C$80)","v":""},null,{"$f":"IF($C$80=\"\",\"\",AX80/$C$80)","v":""},null,{"$f":"IF($C$80=\"\",\"\",AZ80/$C$80)","v":""},null,{"$f":"IF($C$80=\"\",\"\",BB80/$C$80)","v":""},null,0]
["    3.5.4","    Assess potential for community impacts",null,null,{"$f":"IF($C$81=\"\",\"\",F81/$C$81)","v":""},null,{"$f":"IF($C$81=\"\",\"\",H81/$C$81)","v":""},null,{"$f":"IF($C$81=\"\",\"\",J81/$C$81)","v":""},null,{"$f":"IF($C$81=\"\",\"\",L81/$C$81)","v":""},null,{"$f":"IF($C$81=\"\",\"\",N81/$C$81)","v":""},null,{"$f":"IF($C$81=\"\",\"\",P81/$C$81)","v":""},null,{"$f":"IF($C$81=\"\",\"\",R81/$C$81)","v":""},null,{"$f":"IF($C$81=\"\",\"\",T81/$C$81)","v":""},null,{"$f":"IF($C$81=\"\",\"\",V81/$C$81)","v":""},null,{"$f":"IF($C$81=\"\",\"\",X81/$C$81)","v":""},null,{"$f":"IF($C$81=\"\",\"\",Z81/$C$81)","v":""},null,{"$f":"IF($C$81=\"\",\"\",AB81/$C$81)","v":""},null,{"$f":"IF($C$81=\"\",\"\",AD81/$C$81)","v":""},null,{"$f":"IF($C$81=\"\",\"\",AF81/$C$81)","v":""},null,{"$f":"IF($C$81=\"\",\"\",AH81/$C$81)","v":""},null,{"$f":"IF($C$81=\"\",\"\",AJ81/$C$81)","v":""},null,{"$f":"IF($C$81=\"\",\"\",AL81/$C$81)","v":""},null,{"$f":"IF($C$81=\"\",\"\",AN81/$C$81)","v":""},null,{"$f":"IF($C$81=\"\",\"\",AP81/$C$81)","v":""},null,{"$f":"IF($C$81=\"\",\"\",AR81/$C$81)","v":""},null,{"$f":"IF($C$81=\"\",\"\",AT81/$C$81)","v":""},null,{"$f":"IF($C$81=\"\",\"\",AV81/$C$81)","v":""},null,{"$f":"IF($C$81=\"\",\"\",AX81/$C$81)","v":""},null,{"$f":"IF($C$81=\"\",\"\",AZ81/$C$81)","v":""},null,{"$f":"IF($C$81=\"\",\"\",BB81/$C$81)","v":""},null,0]
["    3.5.5","    Document findings in memo/Submit to     \n    NCDOT/Address Comments/Finalize",null,null,{"$f":"IF($C$82=\"\",\"\",F82/$C$82)","v":""},null,{"$f":"IF($C$82=\"\",\"\",H82/$C$82)","v":""},null,{"$f":"IF($C$82=\"\",\"\",J82/$C$82)","v":""},null,{"$f":"IF($C$82=\"\",\"\",L82/$C$82)","v":""},null,{"$f":"IF($C$82=\"\",\"\",N82/$C$82)","v":""},null,{"$f":"IF($C$82=\"\",\"\",P82/$C$82)","v":""},null,{"$f":"IF($C$82=\"\",\"\",R82/$C$82)","v":""},null,{"$f":"IF($C$82=\"\",\"\",T82/$C$82)","v":""},null,{"$f":"IF($C$82=\"\",\"\",V82/$C$82)","v":""},null,{"$f":"IF($C$82=\"\",\"\",X82/$C$82)","v":""},null,{"$f":"IF($C$82=\"\",\"\",Z82/$C$82)","v":""},null,{"$f":"IF($C$82=\"\",\"\",AB82/$C$82)","v":""},null,{"$f":"IF($C$82=\"\",\"\",AD82/$C$82)","v":""},null,{"$f":"IF($C$82=\"\",\"\",AF82/$C$82)","v":""},null,{"$f":"IF($C$82=\"\",\"\",AH82/$C$82)","v":""},null,{"$f":"IF($C$82=\"\",\"\",AJ82/$C$82)","v":""},null,{"$f":"IF($C$82=\"\",\"\",AL82/$C$82)","v":""},null,{"$f":"IF($C$82=\"\",\"\",AN82/$C$82)","v":""},null,{"$f":"IF($C$82=\"\",\"\",AP82/$C$82)","v":""},null,{"$f":"IF($C$82=\"\",\"\",AR82/$C$82)","v":""},null,{"$f":"IF($C$82=\"\",\"\",AT82/$C$82)","v":""},null,{"$f":"IF($C$82=\"\",\"\",AV82/$C$82)","v":""},null,{"$f":"IF($C$82=\"\",\"\",AX82/$C$82)","v":""},null,{"$f":"IF($C$82=\"\",\"\",AZ82/$C$82)","v":""},null,{"$f":"IF($C$82=\"\",\"\",BB82/$C$82)","v":""},null,0]
["    3.5.6","    Review project/environmental mapping for \n    Section 4(f)/6(f) properties",null,null,{"$f":"IF($C$83=\"\",\"\",F83/$C$83)","v":""},null,{"$f":"IF($C$83=\"\",\"\",H83/$C$83)","v":""},null,{"$f":"IF($C$83=\"\",\"\",J83/$C$83)","v":""},null,{"$f":"IF($C$83=\"\",\"\",L83/$C$83)","v":""},null,{"$f":"IF($C$83=\"\",\"\",N83/$C$83)","v":""},null,{"$f":"IF($C$83=\"\",\"\",P83/$C$83)","v":""},null,{"$f":"IF($C$83=\"\",\"\",R83/$C$83)","v":""},null,{"$f":"IF($C$83=\"\",\"\",T83/$C$83)","v":""},null,{"$f":"IF($C$83=\"\",\"\",V83/$C$83)","v":""},null,{"$f":"IF($C$83=\"\",\"\",X83/$C$83)","v":""},null,{"$f":"IF($C$83=\"\",\"\",Z83/$C$83)","v":""},null,{"$f":"IF($C$83=\"\",\"\",AB83/$C$83)","v":""},null,{"$f":"IF($C$83=\"\",\"\",AD83/$C$83)","v":""},null,{"$f":"IF($C$83=\"\",\"\",AF83/$C$83)","v":""},null,{"$f":"IF($C$83=\"\",\"\",AH83/$C$83)","v":""},null,{"$f":"IF($C$83=\"\",\"\",AJ83/$C$83)","v":""},null,{"$f":"IF($C$83=\"\",\"\",AL83/$C$83)","v":""},null,{"$f":"IF($C$83=\"\",\"\",AN83/$C$83)","v":""},null,{"$f":"IF($C$83=\"\",\"\",AP83/$C$83)","v":""},null,{"$f":"IF($C$83=\"\",\"\",AR83/$C$83)","v":""},null,{"$f":"IF($C$83=\"\",\"\",AT83/$C$83)","v":""},null,{"$f":"IF($C$83=\"\",\"\",AV83/$C$83)","v":""},null,{"$f":"IF($C$83=\"\",\"\",AX83/$C$83)","v":""},null,{"$f":"IF($C$83=\"\",\"\",AZ83/$C$83)","v":""},null,{"$f":"IF($C$83=\"\",\"\",BB83/$C$83)","v":""},null,0]
["    3.5.7","    Hold meetings with County Parks and \n    Recreation and summarize ",null,null,{"$f":"IF($C$84=\"\",\"\",F84/$C$84)","v":""},null,{"$f":"IF($C$84=\"\",\"\",H84/$C$84)","v":""},null,{"$f":"IF($C$84=\"\",\"\",J84/$C$84)","v":""},null,{"$f":"IF($C$84=\"\",\"\",L84/$C$84)","v":""},null,{"$f":"IF($C$84=\"\",\"\",N84/$C$84)","v":""},null,{"$f":"IF($C$84=\"\",\"\",P84/$C$84)","v":""},null,{"$f":"IF($C$84=\"\",\"\",R84/$C$84)","v":""},null,{"$f":"IF($C$84=\"\",\"\",T84/$C$84)","v":""},null,{"$f":"IF($C$84=\"\",\"\",V84/$C$84)","v":""},null,{"$f":"IF($C$84=\"\",\"\",X84/$C$84)","v":""},null,{"$f":"IF($C$84=\"\",\"\",Z84/$C$84)","v":""},null,{"$f":"IF($C$84=\"\",\"\",AB84/$C$84)","v":""},null,{"$f":"IF($C$84=\"\",\"\",AD84/$C$84)","v":""},null,{"$f":"IF($C$84=\"\",\"\",AF84/$C$84)","v":""},null,{"$f":"IF($C$84=\"\",\"\",AH84/$C$84)","v":""},null,{"$f":"IF($C$84=\"\",\"\",AJ84/$C$84)","v":""},null,{"$f":"IF($C$84=\"\",\"\",AL84/$C$84)","v":""},null,{"$f":"IF($C$84=\"\",\"\",AN84/$C$84)","v":""},null,{"$f":"IF($C$84=\"\",\"\",AP84/$C$84)","v":""},null,{"$f":"IF($C$84=\"\",\"\",AR84/$C$84)","v":""},null,{"$f":"IF($C$84=\"\",\"\",AT84/$C$84)","v":""},null,{"$f":"IF($C$84=\"\",\"\",AV84/$C$84)","v":""},null,{"$f":"IF($C$84=\"\",\"\",AX84/$C$84)","v":""},null,{"$f":"IF($C$84=\"\",\"\",AZ84/$C$84)","v":""},null,{"$f":"IF($C$84=\"\",\"\",BB84/$C$84)","v":""},null,0]
["    3.5.8",null,null,null,{"$f":"IF($C$85=\"\",\"\",F85/$C$85)","v":""},null,{"$f":"IF($C$85=\"\",\"\",H85/$C$85)","v":""},null,{"$f":"IF($C$85=\"\",\"\",J85/$C$85)","v":""},null,{"$f":"IF($C$85=\"\",\"\",L85/$C$85)","v":""},null,{"$f":"IF($C$85=\"\",\"\",N85/$C$85)","v":""},null,{"$f":"IF($C$85=\"\",\"\",P85/$C$85)","v":""},null,{"$f":"IF($C$85=\"\",\"\",R85/$C$85)","v":""},null,{"$f":"IF($C$85=\"\",\"\",T85/$C$85)","v":""},null,{"$f":"IF($C$85=\"\",\"\",V85/$C$85)","v":""},null,{"$f":"IF($C$85=\"\",\"\",X85/$C$85)","v":""},null,{"$f":"IF($C$85=\"\",\"\",Z85/$C$85)","v":""},null,{"$f":"IF($C$85=\"\",\"\",AB85/$C$85)","v":""},null,{"$f":"IF($C$85=\"\",\"\",AD85/$C$85)","v":""},null,{"$f":"IF($C$85=\"\",\"\",AF85/$C$85)","v":""},null,{"$f":"IF($C$85=\"\",\"\",AH85/$C$85)","v":""},null,{"$f":"IF($C$85=\"\",\"\",AJ85/$C$85)","v":""},null,{"$f":"IF($C$85=\"\",\"\",AL85/$C$85)","v":""},null,{"$f":"IF($C$85=\"\",\"\",AN85/$C$85)","v":""},null,{"$f":"IF($C$85=\"\",\"\",AP85/$C$85)","v":""},null,{"$f":"IF($C$85=\"\",\"\",AR85/$C$85)","v":""},null,{"$f":"IF($C$85=\"\",\"\",AT85/$C$85)","v":""},null,{"$f":"IF($C$85=\"\",\"\",AV85/$C$85)","v":""},null,{"$f":"IF($C$85=\"\",\"\",AX85/$C$85)","v":""},null,{"$f":"IF($C$85=\"\",\"\",AZ85/$C$85)","v":""},null,{"$f":"IF($C$85=\"\",\"\",BB85/$C$85)","v":""},null,0]
["    3.5.9",null,null,null,{"$f":"IF($C$86=\"\",\"\",F86/$C$86)","v":""},null,{"$f":"IF($C$86=\"\",\"\",H86/$C$86)","v":""},null,{"$f":"IF($C$86=\"\",\"\",J86/$C$86)","v":""},null,{"$f":"IF($C$86=\"\",\"\",L86/$C$86)","v":""},null,{"$f":"IF($C$86=\"\",\"\",N86/$C$86)","v":""},null,{"$f":"IF($C$86=\"\",\"\",P86/$C$86)","v":""},null,{"$f":"IF($C$86=\"\",\"\",R86/$C$86)","v":""},null,{"$f":"IF($C$86=\"\",\"\",T86/$C$86)","v":""},null,{"$f":"IF($C$86=\"\",\"\",V86/$C$86)","v":""},null,{"$f":"IF($C$86=\"\",\"\",X86/$C$86)","v":""},null,{"$f":"IF($C$86=\"\",\"\",Z86/$C$86)","v":""},null,{"$f":"IF($C$86=\"\",\"\",AB86/$C$86)","v":""},null,{"$f":"IF($C$86=\"\",\"\",AD86/$C$86)","v":""},null,{"$f":"IF($C$86=\"\",\"\",AF86/$C$86)","v":""},null,{"$f":"IF($C$86=\"\",\"\",AH86/$C$86)","v":""},null,{"$f":"IF($C$86=\"\",\"\",AJ86/$C$86)","v":""},null,{"$f":"IF($C$86=\"\",\"\",AL86/$C$86)","v":""},null,{"$f":"IF($C$86=\"\",\"\",AN86/$C$86)","v":""},null,{"$f":"IF($C$86=\"\",\"\",AP86/$C$86)","v":""},null,{"$f":"IF($C$86=\"\",\"\",AR86/$C$86)","v":""},null,{"$f":"IF($C$86=\"\",\"\",AT86/$C$86)","v":""},null,{"$f":"IF($C$86=\"\",\"\",AV86/$C$86)","v":""},null,{"$f":"IF($C$86=\"\",\"\",AX86/$C$86)","v":""},null,{"$f":"IF($C$86=\"\",\"\",AZ86/$C$86)","v":""},null,{"$f":"IF($C$86=\"\",\"\",BB86/$C$86)","v":""},null,0]
["    3.5.10",null,null,null,{"$f":"IF($C$87=\"\",\"\",F87/$C$87)","v":""},null,{"$f":"IF($C$87=\"\",\"\",H87/$C$87)","v":""},null,{"$f":"IF($C$87=\"\",\"\",J87/$C$87)","v":""},null,{"$f":"IF($C$87=\"\",\"\",L87/$C$87)","v":""},null,{"$f":"IF($C$87=\"\",\"\",N87/$C$87)","v":""},null,{"$f":"IF($C$87=\"\",\"\",P87/$C$87)","v":""},null,{"$f":"IF($C$87=\"\",\"\",R87/$C$87)","v":""},null,{"$f":"IF($C$87=\"\",\"\",T87/$C$87)","v":""},null,{"$f":"IF($C$87=\"\",\"\",V87/$C$87)","v":""},null,{"$f":"IF($C$87=\"\",\"\",X87/$C$87)","v":""},null,{"$f":"IF($C$87=\"\",\"\",Z87/$C$87)","v":""},null,{"$f":"IF($C$87=\"\",\"\",AB87/$C$87)","v":""},null,{"$f":"IF($C$87=\"\",\"\",AD87/$C$87)","v":""},null,{"$f":"IF($C$87=\"\",\"\",AF87/$C$87)","v":""},null,{"$f":"IF($C$87=\"\",\"\",AH87/$C$87)","v":""},null,{"$f":"IF($C$87=\"\",\"\",AJ87/$C$87)","v":""},null,{"$f":"IF($C$87=\"\",\"\",AL87/$C$87)","v":""},null,{"$f":"IF($C$87=\"\",\"\",AN87/$C$87)","v":""},null,{"$f":"IF($C$87=\"\",\"\",AP87/$C$87)","v":""},null,{"$f":"IF($C$87=\"\",\"\",AR87/$C$87)","v":""},null,{"$f":"IF($C$87=\"\",\"\",AT87/$C$87)","v":""},null,{"$f":"IF($C$87=\"\",\"\",AV87/$C$87)","v":""},null,{"$f":"IF($C$87=\"\",\"\",AX87/$C$87)","v":""},null,{"$f":"IF($C$87=\"\",\"\",AZ87/$C$87)","v":""},null,{"$f":"IF($C$87=\"\",\"\",BB87/$C$87)","v":""},null,0]
[3.6,"Hazardous Materials"]
["    3.6.1","    Coordinate with GeoEnvironmental Unit for \n    requirements/Prepare Memo ",null,null,{"$f":"IF($C$89=\"\",\"\",F89/$C$89)","v":""},null,{"$f":"IF($C$89=\"\",\"\",H89/$C$89)","v":""},null,{"$f":"IF($C$89=\"\",\"\",J89/$C$89)","v":""},null,{"$f":"IF($C$89=\"\",\"\",L89/$C$89)","v":""},null,{"$f":"IF($C$89=\"\",\"\",N89/$C$89)","v":""},null,{"$f":"IF($C$89=\"\",\"\",P89/$C$89)","v":""},null,{"$f":"IF($C$89=\"\",\"\",R89/$C$89)","v":""},null,{"$f":"IF($C$89=\"\",\"\",T89/$C$89)","v":""},null,{"$f":"IF($C$89=\"\",\"\",V89/$C$89)","v":""},null,{"$f":"IF($C$89=\"\",\"\",X89/$C$89)","v":""},null,{"$f":"IF($C$89=\"\",\"\",Z89/$C$89)","v":""},null,{"$f":"IF($C$89=\"\",\"\",AB89/$C$89)","v":""},null,{"$f":"IF($C$89=\"\",\"\",AD89/$C$89)","v":""},null,{"$f":"IF($C$89=\"\",\"\",AF89/$C$89)","v":""},null,{"$f":"IF($C$89=\"\",\"\",AH89/$C$89)","v":""},null,{"$f":"IF($C$89=\"\",\"\",AJ89/$C$89)","v":""},null,{"$f":"IF($C$89=\"\",\"\",AL89/$C$89)","v":""},null,{"$f":"IF($C$89=\"\",\"\",AN89/$C$89)","v":""},null,{"$f":"IF($C$89=\"\",\"\",AP89/$C$89)","v":""},null,{"$f":"IF($C$89=\"\",\"\",AR89/$C$89)","v":""},null,{"$f":"IF($C$89=\"\",\"\",AT89/$C$89)","v":""},null,{"$f":"IF($C$89=\"\",\"\",AV89/$C$89)","v":""},null,{"$f":"IF($C$89=\"\",\"\",AX89/$C$89)","v":""},null,{"$f":"IF($C$89=\"\",\"\",AZ89/$C$89)","v":""},null,{"$f":"IF($C$89=\"\",\"\",BB89/$C$89)","v":""},null,{"$f":"SUM(BB89,AZ89,AX89,AV89,AT89,AR89,AP89,AN89,AL89,AJ89,AH89,AF89,AD89,AB89,Z89,X89,V89,T89,R89,P89,N89,L89,J89,H89,F89)","v":0}]
["    3.6.2",null,null,null,{"$f":"IF($C$90=\"\",\"\",F90/$C$90)","v":""},null,{"$f":"IF($C$90=\"\",\"\",H90/$C$90)","v":""},null,{"$f":"IF($C$90=\"\",\"\",J90/$C$90)","v":""},null,{"$f":"IF($C$90=\"\",\"\",L90/$C$90)","v":""},null,{"$f":"IF($C$90=\"\",\"\",N90/$C$90)","v":""},null,{"$f":"IF($C$90=\"\",\"\",P90/$C$90)","v":""},null,{"$f":"IF($C$90=\"\",\"\",R90/$C$90)","v":""},null,{"$f":"IF($C$90=\"\",\"\",T90/$C$90)","v":""},null,{"$f":"IF($C$90=\"\",\"\",V90/$C$90)","v":""},null,{"$f":"IF($C$90=\"\",\"\",X90/$C$90)","v":""},null,{"$f":"IF($C$90=\"\",\"\",Z90/$C$90)","v":""},null,{"$f":"IF($C$90=\"\",\"\",AB90/$C$90)","v":""},null,{"$f":"IF($C$90=\"\",\"\",AD90/$C$90)","v":""},null,{"$f":"IF($C$90=\"\",\"\",AF90/$C$90)","v":""},null,{"$f":"IF($C$90=\"\",\"\",AH90/$C$90)","v":""},null,{"$f":"IF($C$90=\"\",\"\",AJ90/$C$90)","v":""},null,{"$f":"IF($C$90=\"\",\"\",AL90/$C$90)","v":""},null,{"$f":"IF($C$90=\"\",\"\",AN90/$C$90)","v":""},null,{"$f":"IF($C$90=\"\",\"\",AP90/$C$90)","v":""},null,{"$f":"IF($C$90=\"\",\"\",AR90/$C$90)","v":""},null,{"$f":"IF($C$90=\"\",\"\",AT90/$C$90)","v":""},null,{"$f":"IF($C$90=\"\",\"\",AV90/$C$90)","v":""},null,{"$f":"IF($C$90=\"\",\"\",AX90/$C$90)","v":""},null,{"$f":"IF($C$90=\"\",\"\",AZ90/$C$90)","v":""},null,{"$f":"IF($C$90=\"\",\"\",BB90/$C$90)","v":""},null,0]
["    3.6.3",null,null,null,{"$f":"IF($C$91=\"\",\"\",F91/$C$91)","v":""},null,{"$f":"IF($C$91=\"\",\"\",H91/$C$91)","v":""},null,{"$f":"IF($C$91=\"\",\"\",J91/$C$91)","v":""},null,{"$f":"IF($C$91=\"\",\"\",L91/$C$91)","v":""},null,{"$f":"IF($C$91=\"\",\"\",N91/$C$91)","v":""},null,{"$f":"IF($C$91=\"\",\"\",P91/$C$91)","v":""},null,{"$f":"IF($C$91=\"\",\"\",R91/$C$91)","v":""},null,{"$f":"IF($C$91=\"\",\"\",T91/$C$91)","v":""},null,{"$f":"IF($C$91=\"\",\"\",V91/$C$91)","v":""},null,{"$f":"IF($C$91=\"\",\"\",X91/$C$91)","v":""},null,{"$f":"IF($C$91=\"\",\"\",Z91/$C$91)","v":""},null,{"$f":"IF($C$91=\"\",\"\",AB91/$C$91)","v":""},null,{"$f":"IF($C$91=\"\",\"\",AD91/$C$91)","v":""},null,{"$f":"IF($C$91=\"\",\"\",AF91/$C$91)","v":""},null,{"$f":"IF($C$91=\"\",\"\",AH91/$C$91)","v":""},null,{"$f":"IF($C$91=\"\",\"\",AJ91/$C$91)","v":""},null,{"$f":"IF($C$91=\"\",\"\",AL91/$C$91)","v":""},null,{"$f":"IF($C$91=\"\",\"\",AN91/$C$91)","v":""},null,{"$f":"IF($C$91=\"\",\"\",AP91/$C$91)","v":""},null,{"$f":"IF($C$91=\"\",\"\",AR91/$C$91)","v":""},null,{"$f":"IF($C$91=\"\",\"\",AT91/$C$91)","v":""},null,{"$f":"IF($C$91=\"\",\"\",AV91/$C$91)","v":""},null,{"$f":"IF($C$91=\"\",\"\",AX91/$C$91)","v":""},null,{"$f":"IF($C$91=\"\",\"\",AZ91/$C$91)","v":""},null,{"$f":"IF($C$91=\"\",\"\",BB91/$C$91)","v":""},null,0]
["    3.6.4",null,null,null,{"$f":"IF($C$92=\"\",\"\",F92/$C$92)","v":""},null,{"$f":"IF($C$92=\"\",\"\",H92/$C$92)","v":""},null,{"$f":"IF($C$92=\"\",\"\",J92/$C$92)","v":""},null,{"$f":"IF($C$92=\"\",\"\",L92/$C$92)","v":""},null,{"$f":"IF($C$92=\"\",\"\",N92/$C$92)","v":""},null,{"$f":"IF($C$92=\"\",\"\",P92/$C$92)","v":""},null,{"$f":"IF($C$92=\"\",\"\",R92/$C$92)","v":""},null,{"$f":"IF($C$92=\"\",\"\",T92/$C$92)","v":""},null,{"$f":"IF($C$92=\"\",\"\",V92/$C$92)","v":""},null,{"$f":"IF($C$92=\"\",\"\",X92/$C$92)","v":""},null,{"$f":"IF($C$92=\"\",\"\",Z92/$C$92)","v":""},null,{"$f":"IF($C$92=\"\",\"\",AB92/$C$92)","v":""},null,{"$f":"IF($C$92=\"\",\"\",AD92/$C$92)","v":""},null,{"$f":"IF($C$92=\"\",\"\",AF92/$C$92)","v":""},null,{"$f":"IF($C$92=\"\",\"\",AH92/$C$92)","v":""},null,{"$f":"IF($C$92=\"\",\"\",AJ92/$C$92)","v":""},null,{"$f":"IF($C$92=\"\",\"\",AL92/$C$92)","v":""},null,{"$f":"IF($C$92=\"\",\"\",AN92/$C$92)","v":""},null,{"$f":"IF($C$92=\"\",\"\",AP92/$C$92)","v":""},null,{"$f":"IF($C$92=\"\",\"\",AR92/$C$92)","v":""},null,{"$f":"IF($C$92=\"\",\"\",AT92/$C$92)","v":""},null,{"$f":"IF($C$92=\"\",\"\",AV92/$C$92)","v":""},null,{"$f":"IF($C$92=\"\",\"\",AX92/$C$92)","v":""},null,{"$f":"IF($C$92=\"\",\"\",AZ92/$C$92)","v":""},null,{"$f":"IF($C$92=\"\",\"\",BB92/$C$92)","v":""},null,0]
[3.7,"Natural Systems Studies"]
["    3.7.1","    Background data collection",null,null,{"$f":"IF($C$94=\"\",\"\",F94/$C$94)","v":""},null,{"$f":"IF($C$94=\"\",\"\",H94/$C$94)","v":""},null,{"$f":"IF($C$94=\"\",\"\",J94/$C$94)","v":""},null,{"$f":"IF($C$94=\"\",\"\",L94/$C$94)","v":""},null,{"$f":"IF($C$94=\"\",\"\",N94/$C$94)","v":""},null,{"$f":"IF($C$94=\"\",\"\",P94/$C$94)","v":""},null,{"$f":"IF($C$94=\"\",\"\",R94/$C$94)","v":""},null,{"$f":"IF($C$94=\"\",\"\",T94/$C$94)","v":""},null,{"$f":"IF($C$94=\"\",\"\",V94/$C$94)","v":""},null,{"$f":"IF($C$94=\"\",\"\",X94/$C$94)","v":""},null,{"$f":"IF($C$94=\"\",\"\",Z94/$C$94)","v":""},null,{"$f":"IF($C$94=\"\",\"\",AB94/$C$94)","v":""},null,{"$f":"IF($C$94=\"\",\"\",AD94/$C$94)","v":""},null,{"$f":"IF($C$94=\"\",\"\",AF94/$C$94)","v":""},null,{"$f":"IF($C$94=\"\",\"\",AH94/$C$94)","v":""},null,{"$f":"IF($C$94=\"\",\"\",AJ94/$C$94)","v":""},null,{"$f":"IF($C$94=\"\",\"\",AL94/$C$94)","v":""},null,{"$f":"IF($C$94=\"\",\"\",AN94/$C$94)","v":""},null,{"$f":"IF($C$94=\"\",\"\",AP94/$C$94)","v":""},null,{"$f":"IF($C$94=\"\",\"\",AR94/$C$94)","v":""},null,{"$f":"IF($C$94=\"\",\"\",AT94/$C$94)","v":""},null,{"$f":"IF($C$94=\"\",\"\",AV94/$C$94)","v":""},null,{"$f":"IF($C$94=\"\",\"\",AX94/$C$94)","v":""},null,{"$f":"IF($C$94=\"\",\"\",AZ94/$C$94)","v":""},null,{"$f":"IF($C$94=\"\",\"\",BB94/$C$94)","v":""},null,{"$f":"SUM(BB94,AZ94,AX94,AV94,AT94,AR94,AP94,AN94,AL94,AJ94,AH94,AF94,AD94,AB94,Z94,X94,V94,T94,R94,P94,N94,L94,J94,H94,F94)","v":0}]
["    3.7.2","    Desktop resource prediction (WOUS, Federally \n    Protected Species)",null,null,{"$f":"IF($C$95=\"\",\"\",F95/$C$95)","v":""},null,{"$f":"IF($C$95=\"\",\"\",H95/$C$95)","v":""},null,{"$f":"IF($C$95=\"\",\"\",J95/$C$95)","v":""},null,{"$f":"IF($C$95=\"\",\"\",L95/$C$95)","v":""},null,{"$f":"IF($C$95=\"\",\"\",N95/$C$95)","v":""},null,{"$f":"IF($C$95=\"\",\"\",P95/$C$95)","v":""},null,{"$f":"IF($C$95=\"\",\"\",R95/$C$95)","v":""},null,{"$f":"IF($C$95=\"\",\"\",T95/$C$95)","v":""},null,{"$f":"IF($C$95=\"\",\"\",V95/$C$95)","v":""},null,{"$f":"IF($C$95=\"\",\"\",X95/$C$95)","v":""},null,{"$f":"IF($C$95=\"\",\"\",Z95/$C$95)","v":""},null,{"$f":"IF($C$95=\"\",\"\",AB95/$C$95)","v":""},null,{"$f":"IF($C$95=\"\",\"\",AD95/$C$95)","v":""},null,{"$f":"IF($C$95=\"\",\"\",AF95/$C$95)","v":""},null,{"$f":"IF($C$95=\"\",\"\",AH95/$C$95)","v":""},null,{"$f":"IF($C$95=\"\",\"\",AJ95/$C$95)","v":""},null,{"$f":"IF($C$95=\"\",\"\",AL95/$C$95)","v":""},null,{"$f":"IF($C$95=\"\",\"\",AN95/$C$95)","v":""},null,{"$f":"IF($C$95=\"\",\"\",AP95/$C$95)","v":""},null,{"$f":"IF($C$95=\"\",\"\",AR95/$C$95)","v":""},null,{"$f":"IF($C$95=\"\",\"\",AT95/$C$95)","v":""},null,{"$f":"IF($C$95=\"\",\"\",AV95/$C$95)","v":""},null,{"$f":"IF($C$95=\"\",\"\",AX95/$C$95)","v":""},null,{"$f":"IF($C$95=\"\",\"\",AZ95/$C$95)","v":""},null,{"$f":"IF($C$95=\"\",\"\",BB95/$C$95)","v":""},null,0]
["    3.7.3","    Memo Development",null,null,{"$f":"IF($C$96=\"\",\"\",F96/$C$96)","v":""},null,{"$f":"IF($C$96=\"\",\"\",H96/$C$96)","v":""},null,{"$f":"IF($C$96=\"\",\"\",J96/$C$96)","v":""},null,{"$f":"IF($C$96=\"\",\"\",L96/$C$96)","v":""},null,{"$f":"IF($C$96=\"\",\"\",N96/$C$96)","v":""},null,{"$f":"IF($C$96=\"\",\"\",P96/$C$96)","v":""},null,{"$f":"IF($C$96=\"\",\"\",R96/$C$96)","v":""},null,{"$f":"IF($C$96=\"\",\"\",T96/$C$96)","v":""},null,{"$f":"IF($C$96=\"\",\"\",V96/$C$96)","v":""},null,{"$f":"IF($C$96=\"\",\"\",X96/$C$96)","v":""},null,{"$f":"IF($C$96=\"\",\"\",Z96/$C$96)","v":""},null,{"$f":"IF($C$96=\"\",\"\",AB96/$C$96)","v":""},null,{"$f":"IF($C$96=\"\",\"\",AD96/$C$96)","v":""},null,{"$f":"IF($C$96=\"\",\"\",AF96/$C$96)","v":""},null,{"$f":"IF($C$96=\"\",\"\",AH96/$C$96)","v":""},null,{"$f":"IF($C$96=\"\",\"\",AJ96/$C$96)","v":""},null,{"$f":"IF($C$96=\"\",\"\",AL96/$C$96)","v":""},null,{"$f":"IF($C$96=\"\",\"\",AN96/$C$96)","v":""},null,{"$f":"IF($C$96=\"\",\"\",AP96/$C$96)","v":""},null,{"$f":"IF($C$96=\"\",\"\",AR96/$C$96)","v":""},null,{"$f":"IF($C$96=\"\",\"\",AT96/$C$96)","v":""},null,{"$f":"IF($C$96=\"\",\"\",AV96/$C$96)","v":""},null,{"$f":"IF($C$96=\"\",\"\",AX96/$C$96)","v":""},null,{"$f":"IF($C$96=\"\",\"\",AZ96/$C$96)","v":""},null,{"$f":"IF($C$96=\"\",\"\",BB96/$C$96)","v":""},null,0]
["    3.7.4","    Field Visit (10 cabinet intersections)",null,null,{"$f":"IF($C$97=\"\",\"\",F97/$C$97)","v":""},null,{"$f":"IF($C$97=\"\",\"\",H97/$C$97)","v":""},null,{"$f":"IF($C$97=\"\",\"\",J97/$C$97)","v":""},null,{"$f":"IF($C$97=\"\",\"\",L97/$C$97)","v":""},null,{"$f":"IF($C$97=\"\",\"\",N97/$C$97)","v":""},null,{"$f":"IF($C$97=\"\",\"\",P97/$C$97)","v":""},null,{"$f":"IF($C$97=\"\",\"\",R97/$C$97)","v":""},null,{"$f":"IF($C$97=\"\",\"\",T97/$C$97)","v":""},null,{"$f":"IF($C$97=\"\",\"\",V97/$C$97)","v":""},null,{"$f":"IF($C$97=\"\",\"\",X97/$C$97)","v":""},null,{"$f":"IF($C$97=\"\",\"\",Z97/$C$97)","v":""},null,{"$f":"IF($C$97=\"\",\"\",AB97/$C$97)","v":""},null,{"$f":"IF($C$97=\"\",\"\",AD97/$C$97)","v":""},null,{"$f":"IF($C$97=\"\",\"\",AF97/$C$97)","v":""},null,{"$f":"IF($C$97=\"\",\"\",AH97/$C$97)","v":""},null,{"$f":"IF($C$97=\"\",\"\",AJ97/$C$97)","v":""},null,{"$f":"IF($C$97=\"\",\"\",AL97/$C$97)","v":""},null,{"$f":"IF($C$97=\"\",\"\",AN97/$C$97)","v":""},null,{"$f":"IF($C$97=\"\",\"\",AP97/$C$97)","v":""},null,{"$f":"IF($C$97=\"\",\"\",AR97/$C$97)","v":""},null,{"$f":"IF($C$97=\"\",\"\",AT97/$C$97)","v":""},null,{"$f":"IF($C$97=\"\",\"\",AV97/$C$97)","v":""},null,{"$f":"IF($C$97=\"\",\"\",AX97/$C$97)","v":""},null,{"$f":"IF($C$97=\"\",\"\",AZ97/$C$97)","v":""},null,{"$f":"IF($C$97=\"\",\"\",BB97/$C$97)","v":""},null,0]
["    3.7.5",null,null,null,{"$f":"IF($C$98=\"\",\"\",F98/$C$98)","v":""},null,{"$f":"IF($C$98=\"\",\"\",H98/$C$98)","v":""},null,{"$f":"IF($C$98=\"\",\"\",J98/$C$98)","v":""},null,{"$f":"IF($C$98=\"\",\"\",L98/$C$98)","v":""},null,{"$f":"IF($C$98=\"\",\"\",N98/$C$98)","v":""},null,{"$f":"IF($C$98=\"\",\"\",P98/$C$98)","v":""},null,{"$f":"IF($C$98=\"\",\"\",R98/$C$98)","v":""},null,{"$f":"IF($C$98=\"\",\"\",T98/$C$98)","v":""},null,{"$f":"IF($C$98=\"\",\"\",V98/$C$98)","v":""},null,{"$f":"IF($C$98=\"\",\"\",X98/$C$98)","v":""},null,{"$f":"IF($C$98=\"\",\"\",Z98/$C$98)","v":""},null,{"$f":"IF($C$98=\"\",\"\",AB98/$C$98)","v":""},null,{"$f":"IF($C$98=\"\",\"\",AD98/$C$98)","v":""},null,{"$f":"IF($C$98=\"\",\"\",AF98/$C$98)","v":""},null,{"$f":"IF($C$98=\"\",\"\",AH98/$C$98)","v":""},null,{"$f":"IF($C$98=\"\",\"\",AJ98/$C$98)","v":""},null,{"$f":"IF($C$98=\"\",\"\",AL98/$C$98)","v":""},null,{"$f":"IF($C$98=\"\",\"\",AN98/$C$98)","v":""},null,{"$f":"IF($C$98=\"\",\"\",AP98/$C$98)","v":""},null,{"$f":"IF($C$98=\"\",\"\",AR98/$C$98)","v":""},null,{"$f":"IF($C$98=\"\",\"\",AT98/$C$98)","v":""},null,{"$f":"IF($C$98=\"\",\"\",AV98/$C$98)","v":""},null,{"$f":"IF($C$98=\"\",\"\",AX98/$C$98)","v":""},null,{"$f":"IF($C$98=\"\",\"\",AZ98/$C$98)","v":""},null,{"$f":"IF($C$98=\"\",\"\",BB98/$C$98)","v":""},null,0]
["    3.7.6",null,null,null,{"$f":"IF($C$99=\"\",\"\",F99/$C$99)","v":""},null,{"$f":"IF($C$99=\"\",\"\",H99/$C$99)","v":""},null,{"$f":"IF($C$99=\"\",\"\",J99/$C$99)","v":""},null,{"$f":"IF($C$99=\"\",\"\",L99/$C$99)","v":""},null,{"$f":"IF($C$99=\"\",\"\",N99/$C$99)","v":""},null,{"$f":"IF($C$99=\"\",\"\",P99/$C$99)","v":""},null,{"$f":"IF($C$99=\"\",\"\",R99/$C$99)","v":""},null,{"$f":"IF($C$99=\"\",\"\",T99/$C$99)","v":""},null,{"$f":"IF($C$99=\"\",\"\",V99/$C$99)","v":""},null,{"$f":"IF($C$99=\"\",\"\",X99/$C$99)","v":""},null,{"$f":"IF($C$99=\"\",\"\",Z99/$C$99)","v":""},null,{"$f":"IF($C$99=\"\",\"\",AB99/$C$99)","v":""},null,{"$f":"IF($C$99=\"\",\"\",AD99/$C$99)","v":""},null,{"$f":"IF($C$99=\"\",\"\",AF99/$C$99)","v":""},null,{"$f":"IF($C$99=\"\",\"\",AH99/$C$99)","v":""},null,{"$f":"IF($C$99=\"\",\"\",AJ99/$C$99)","v":""},null,{"$f":"IF($C$99=\"\",\"\",AL99/$C$99)","v":""},null,{"$f":"IF($C$99=\"\",\"\",AN99/$C$99)","v":""},null,{"$f":"IF($C$99=\"\",\"\",AP99/$C$99)","v":""},null,{"$f":"IF($C$99=\"\",\"\",AR99/$C$99)","v":""},null,{"$f":"IF($C$99=\"\",\"\",AT99/$C$99)","v":""},null,{"$f":"IF($C$99=\"\",\"\",AV99/$C$99)","v":""},null,{"$f":"IF($C$99=\"\",\"\",AX99/$C$99)","v":""},null,{"$f":"IF($C$99=\"\",\"\",AZ99/$C$99)","v":""},null,{"$f":"IF($C$99=\"\",\"\",BB99/$C$99)","v":""},null,0]
["    3.7.7",null,null,null,{"$f":"IF($C$100=\"\",\"\",F100/$C$100)","v":""},null,{"$f":"IF($C$100=\"\",\"\",H100/$C$100)","v":""},null,{"$f":"IF($C$100=\"\",\"\",J100/$C$100)","v":""},null,{"$f":"IF($C$100=\"\",\"\",L100/$C$100)","v":""},null,{"$f":"IF($C$100=\"\",\"\",N100/$C$100)","v":""},null,{"$f":"IF($C$100=\"\",\"\",P100/$C$100)","v":""},null,{"$f":"IF($C$100=\"\",\"\",R100/$C$100)","v":""},null,{"$f":"IF($C$100=\"\",\"\",T100/$C$100)","v":""},null,{"$f":"IF($C$100=\"\",\"\",V100/$C$100)","v":""},null,{"$f":"IF($C$100=\"\",\"\",X100/$C$100)","v":""},null,{"$f":"IF($C$100=\"\",\"\",Z100/$C$100)","v":""},null,{"$f":"IF($C$100=\"\",\"\",AB100/$C$100)","v":""},null,{"$f":"IF($C$100=\"\",\"\",AD100/$C$100)","v":""},null,{"$f":"IF($C$100=\"\",\"\",AF100/$C$100)","v":""},null,{"$f":"IF($C$100=\"\",\"\",AH100/$C$100)","v":""},null,{"$f":"IF($C$100=\"\",\"\",AJ100/$C$100)","v":""},null,{"$f":"IF($C$100=\"\",\"\",AL100/$C$100)","v":""},null,{"$f":"IF($C$100=\"\",\"\",AN100/$C$100)","v":""},null,{"$f":"IF($C$100=\"\",\"\",AP100/$C$100)","v":""},null,{"$f":"IF($C$100=\"\",\"\",AR100/$C$100)","v":""},null,{"$f":"IF($C$100=\"\",\"\",AT100/$C$100)","v":""},null,{"$f":"IF($C$100=\"\",\"\",AV100/$C$100)","v":""},null,{"$f":"IF($C$100=\"\",\"\",AX100/$C$100)","v":""},null,{"$f":"IF($C$100=\"\",\"\",AZ100/$C$100)","v":""},null,{"$f":"IF($C$100=\"\",\"\",BB100/$C$100)","v":""},null,0]
[3.8,"PCE Documentation"]
["    3.8.1","    Draft v1 to NCDOT/Address Comments",null,null,{"$f":"IF($C$102=\"\",\"\",F102/$C$102)","v":""},null,{"$f":"IF($C$102=\"\",\"\",H102/$C$102)","v":""},null,{"$f":"IF($C$102=\"\",\"\",J102/$C$102)","v":""},null,{"$f":"IF($C$102=\"\",\"\",L102/$C$102)","v":""},null,{"$f":"IF($C$102=\"\",\"\",N102/$C$102)","v":""},null,{"$f":"IF($C$102=\"\",\"\",P102/$C$102)","v":""},null,{"$f":"IF($C$102=\"\",\"\",R102/$C$102)","v":""},null,{"$f":"IF($C$102=\"\",\"\",T102/$C$102)","v":""},null,{"$f":"IF($C$102=\"\",\"\",V102/$C$102)","v":""},null,{"$f":"IF($C$102=\"\",\"\",X102/$C$102)","v":""},null,{"$f":"IF($C$102=\"\",\"\",Z102/$C$102)","v":""},null,{"$f":"IF($C$102=\"\",\"\",AB102/$C$102)","v":""},null,{"$f":"IF($C$102=\"\",\"\",AD102/$C$102)","v":""},null,{"$f":"IF($C$102=\"\",\"\",AF102/$C$102)","v":""},null,{"$f":"IF($C$102=\"\",\"\",AH102/$C$102)","v":""},null,{"$f":"IF($C$102=\"\",\"\",AJ102/$C$102)","v":""},null,{"$f":"IF($C$102=\"\",\"\",AL102/$C$102)","v":""},null,{"$f":"IF($C$102=\"\",\"\",AN102/$C$102)","v":""},null,{"$f":"IF($C$102=\"\",\"\",AP102/$C$102)","v":""},null,{"$f":"IF($C$102=\"\",\"\",AR102/$C$102)","v":""},null,{"$f":"IF($C$102=\"\",\"\",AT102/$C$102)","v":""},null,{"$f":"IF($C$102=\"\",\"\",AV102/$C$102)","v":""},null,{"$f":"IF($C$102=\"\",\"\",AX102/$C$102)","v":""},null,{"$f":"IF($C$102=\"\",\"\",AZ102/$C$102)","v":""},null,{"$f":"IF($C$102=\"\",\"\",BB102/$C$102)","v":""},null,{"$f":"SUM(BB102,AZ102,AX102,AV102,AT102,AR102,AP102,AN102,AL102,AJ102,AH102,AF102,AD102,AB102,Z102,X102,V102,T102,R102,P102,N102,L102,J102,H102,F102)","v":0}]
["    3.8.2","    Draft v2 to FHWA/Address Comments",null,null,{"$f":"IF($C$103=\"\",\"\",F103/$C$103)","v":""},null,{"$f":"IF($C$103=\"\",\"\",H103/$C$103)","v":""},null,{"$f":"IF($C$103=\"\",\"\",J103/$C$103)","v":""},null,{"$f":"IF($C$103=\"\",\"\",L103/$C$103)","v":""},null,{"$f":"IF($C$103=\"\",\"\",N103/$C$103)","v":""},null,{"$f":"IF($C$103=\"\",\"\",P103/$C$103)","v":""},null,{"$f":"IF($C$103=\"\",\"\",R103/$C$103)","v":""},null,{"$f":"IF($C$103=\"\",\"\",T103/$C$103)","v":""},null,{"$f":"IF($C$103=\"\",\"\",V103/$C$103)","v":""},null,{"$f":"IF($C$103=\"\",\"\",X103/$C$103)","v":""},null,{"$f":"IF($C$103=\"\",\"\",Z103/$C$103)","v":""},null,{"$f":"IF($C$103=\"\",\"\",AB103/$C$103)","v":""},null,{"$f":"IF($C$103=\"\",\"\",AD103/$C$103)","v":""},null,{"$f":"IF($C$103=\"\",\"\",AF103/$C$103)","v":""},null,{"$f":"IF($C$103=\"\",\"\",AH103/$C$103)","v":""},null,{"$f":"IF($C$103=\"\",\"\",AJ103/$C$103)","v":""},null,{"$f":"IF($C$103=\"\",\"\",AL103/$C$103)","v":""},null,{"$f":"IF($C$103=\"\",\"\",AN103/$C$103)","v":""},null,{"$f":"IF($C$103=\"\",\"\",AP103/$C$103)","v":""},null,{"$f":"IF($C$103=\"\",\"\",AR103/$C$103)","v":""},null,{"$f":"IF($C$103=\"\",\"\",AT103/$C$103)","v":""},null,{"$f":"IF($C$103=\"\",\"\",AV103/$C$103)","v":""},null,{"$f":"IF($C$103=\"\",\"\",AX103/$C$103)","v":""},null,{"$f":"IF($C$103=\"\",\"\",AZ103/$C$103)","v":""},null,{"$f":"IF($C$103=\"\",\"\",BB103/$C$103)","v":""},null,0]
["    3.8.3","    Finalize and distribute copies of PCE Document",null,null,{"$f":"IF($C$104=\"\",\"\",F104/$C$104)","v":""},null,{"$f":"IF($C$104=\"\",\"\",H104/$C$104)","v":""},null,{"$f":"IF($C$104=\"\",\"\",J104/$C$104)","v":""},null,{"$f":"IF($C$104=\"\",\"\",L104/$C$104)","v":""},null,{"$f":"IF($C$104=\"\",\"\",N104/$C$104)","v":""},null,{"$f":"IF($C$104=\"\",\"\",P104/$C$104)","v":""},null,{"$f":"IF($C$104=\"\",\"\",R104/$C$104)","v":""},null,{"$f":"IF($C$104=\"\",\"\",T104/$C$104)","v":""},null,{"$f":"IF($C$104=\"\",\"\",V104/$C$104)","v":""},null,{"$f":"IF($C$104=\"\",\"\",X104/$C$104)","v":""},null,{"$f":"IF($C$104=\"\",\"\",Z104/$C$104)","v":""},null,{"$f":"IF($C$104=\"\",\"\",AB104/$C$104)","v":""},null,{"$f":"IF($C$104=\"\",\"\",AD104/$C$104)","v":""},null,{"$f":"IF($C$104=\"\",\"\",AF104/$C$104)","v":""},null,{"$f":"IF($C$104=\"\",\"\",AH104/$C$104)","v":""},null,{"$f":"IF($C$104=\"\",\"\",AJ104/$C$104)","v":""},null,{"$f":"IF($C$104=\"\",\"\",AL104/$C$104)","v":""},null,{"$f":"IF($C$104=\"\",\"\",AN104/$C$104)","v":""},null,{"$f":"IF($C$104=\"\",\"\",AP104/$C$104)","v":""},null,{"$f":"IF($C$104=\"\",\"\",AR104/$C$104)","v":""},null,{"$f":"IF($C$104=\"\",\"\",AT104/$C$104)","v":""},null,{"$f":"IF($C$104=\"\",\"\",AV104/$C$104)","v":""},null,{"$f":"IF($C$104=\"\",\"\",AX104/$C$104)","v":""},null,{"$f":"IF($C$104=\"\",\"\",AZ104/$C$104)","v":""},null,{"$f":"IF($C$104=\"\",\"\",BB104/$C$104)","v":""},null,0]
["    3.8.4",null,null,null,{"$f":"IF($C$105=\"\",\"\",F105/$C$105)","v":""},null,{"$f":"IF($C$105=\"\",\"\",H105/$C$105)","v":""},null,{"$f":"IF($C$105=\"\",\"\",J105/$C$105)","v":""},null,{"$f":"IF($C$105=\"\",\"\",L105/$C$105)","v":""},null,{"$f":"IF($C$105=\"\",\"\",N105/$C$105)","v":""},null,{"$f":"IF($C$105=\"\",\"\",P105/$C$105)","v":""},null,{"$f":"IF($C$105=\"\",\"\",R105/$C$105)","v":""},null,{"$f":"IF($C$105=\"\",\"\",T105/$C$105)","v":""},null,{"$f":"IF($C$105=\"\",\"\",V105/$C$105)","v":""},null,{"$f":"IF($C$105=\"\",\"\",X105/$C$105)","v":""},null,{"$f":"IF($C$105=\"\",\"\",Z105/$C$105)","v":""},null,{"$f":"IF($C$105=\"\",\"\",AB105/$C$105)","v":""},null,{"$f":"IF($C$105=\"\",\"\",AD105/$C$105)","v":""},null,{"$f":"IF($C$105=\"\",\"\",AF105/$C$105)","v":""},null,{"$f":"IF($C$105=\"\",\"\",AH105/$C$105)","v":""},null,{"$f":"IF($C$105=\"\",\"\",AJ105/$C$105)","v":""},null,{"$f":"IF($C$105=\"\",\"\",AL105/$C$105)","v":""},null,{"$f":"IF($C$105=\"\",\"\",AN105/$C$105)","v":""},null,{"$f":"IF($C$105=\"\",\"\",AP105/$C$105)","v":""},null,{"$f":"IF($C$105=\"\",\"\",AR105/$C$105)","v":""},null,{"$f":"IF($C$105=\"\",\"\",AT105/$C$105)","v":""},null,{"$f":"IF($C$105=\"\",\"\",AV105/$C$105)","v":""},null,{"$f":"IF($C$105=\"\",\"\",AX105/$C$105)","v":""},null,{"$f":"IF($C$105=\"\",\"\",AZ105/$C$105)","v":""},null,{"$f":"IF($C$105=\"\",\"\",BB105/$C$105)","v":""},null,0]
["    3.8.5",null,null,null,{"$f":"IF($C$106=\"\",\"\",F106/$C$106)","v":""},null,{"$f":"IF($C$106=\"\",\"\",H106/$C$106)","v":""},null,{"$f":"IF($C$106=\"\",\"\",J106/$C$106)","v":""},null,{"$f":"IF($C$106=\"\",\"\",L106/$C$106)","v":""},null,{"$f":"IF($C$106=\"\",\"\",N106/$C$106)","v":""},null,{"$f":"IF($C$106=\"\",\"\",P106/$C$106)","v":""},null,{"$f":"IF($C$106=\"\",\"\",R106/$C$106)","v":""},null,{"$f":"IF($C$106=\"\",\"\",T106/$C$106)","v":""},null,{"$f":"IF($C$106=\"\",\"\",V106/$C$106)","v":""},null,{"$f":"IF($C$106=\"\",\"\",X106/$C$106)","v":""},null,{"$f":"IF($C$106=\"\",\"\",Z106/$C$106)","v":""},null,{"$f":"IF($C$106=\"\",\"\",AB106/$C$106)","v":""},null,{"$f":"IF($C$106=\"\",\"\",AD106/$C$106)","v":""},null,{"$f":"IF($C$106=\"\",\"\",AF106/$C$106)","v":""},null,{"$f":"IF($C$106=\"\",\"\",AH106/$C$106)","v":""},null,{"$f":"IF($C$106=\"\",\"\",AJ106/$C$106)","v":""},null,{"$f":"IF($C$106=\"\",\"\",AL106/$C$106)","v":""},null,{"$f":"IF($C$106=\"\",\"\",AN106/$C$106)","v":""},null,{"$f":"IF($C$106=\"\",\"\",AP106/$C$106)","v":""},null,{"$f":"IF($C$106=\"\",\"\",AR106/$C$106)","v":""},null,{"$f":"IF($C$106=\"\",\"\",AT106/$C$106)","v":""},null,{"$f":"IF($C$106=\"\",\"\",AV106/$C$106)","v":""},null,{"$f":"IF($C$106=\"\",\"\",AX106/$C$106)","v":""},null,{"$f":"IF($C$106=\"\",\"\",AZ106/$C$106)","v":""},null,{"$f":"IF($C$106=\"\",\"\",BB106/$C$106)","v":""},null,0]
["    3.8.6",null,null,null,{"$f":"IF($C$107=\"\",\"\",F107/$C$107)","v":""},null,{"$f":"IF($C$107=\"\",\"\",H107/$C$107)","v":""},null,{"$f":"IF($C$107=\"\",\"\",J107/$C$107)","v":""},null,{"$f":"IF($C$107=\"\",\"\",L107/$C$107)","v":""},null,{"$f":"IF($C$107=\"\",\"\",N107/$C$107)","v":""},null,{"$f":"IF($C$107=\"\",\"\",P107/$C$107)","v":""},null,{"$f":"IF($C$107=\"\",\"\",R107/$C$107)","v":""},null,{"$f":"IF($C$107=\"\",\"\",T107/$C$107)","v":""},null,{"$f":"IF($C$107=\"\",\"\",V107/$C$107)","v":""},null,{"$f":"IF($C$107=\"\",\"\",X107/$C$107)","v":""},null,{"$f":"IF($C$107=\"\",\"\",Z107/$C$107)","v":""},null,{"$f":"IF($C$107=\"\",\"\",AB107/$C$107)","v":""},null,{"$f":"IF($C$107=\"\",\"\",AD107/$C$107)","v":""},null,{"$f":"IF($C$107=\"\",\"\",AF107/$C$107)","v":""},null,{"$f":"IF($C$107=\"\",\"\",AH107/$C$107)","v":""},null,{"$f":"IF($C$107=\"\",\"\",AJ107/$C$107)","v":""},null,{"$f":"IF($C$107=\"\",\"\",AL107/$C$107)","v":""},null,{"$f":"IF($C$107=\"\",\"\",AN107/$C$107)","v":""},null,{"$f":"IF($C$107=\"\",\"\",AP107/$C$107)","v":""},null,{"$f":"IF($C$107=\"\",\"\",AR107/$C$107)","v":""},null,{"$f":"IF($C$107=\"\",\"\",AT107/$C$107)","v":""},null,{"$f":"IF($C$107=\"\",\"\",AV107/$C$107)","v":""},null,{"$f":"IF($C$107=\"\",\"\",AX107/$C$107)","v":""},null,{"$f":"IF($C$107=\"\",\"\",AZ107/$C$107)","v":""},null,{"$f":"IF($C$107=\"\",\"\",BB107/$C$107)","v":""},null,0]
[null,null,null,null,{"$f":"IF($C$108=\"\",\"\",F108/$C$108)","v":""},null,{"$f":"IF($C$108=\"\",\"\",H108/$C$108)","v":""},null,{"$f":"IF($C$108=\"\",\"\",J108/$C$108)","v":""},null,{"$f":"IF($C$108=\"\",\"\",L108/$C$108)","v":""},null,{"$f":"IF($C$108=\"\",\"\",N108/$C$108)","v":""},null,{"$f":"IF($C$108=\"\",\"\",P108/$C$108)","v":""},null,{"$f":"IF($C$108=\"\",\"\",R108/$C$108)","v":""},null,{"$f":"IF($C$108=\"\",\"\",T108/$C$108)","v":""},null,{"$f":"IF($C$108=\"\",\"\",V108/$C$108)","v":""},null,{"$f":"IF($C$108=\"\",\"\",X108/$C$108)","v":""},null,{"$f":"IF($C$108=\"\",\"\",Z108/$C$108)","v":""},null,{"$f":"IF($C$108=\"\",\"\",AB108/$C$108)","v":""},null,{"$f":"IF($C$108=\"\",\"\",AD108/$C$108)","v":""},null,{"$f":"IF($C$108=\"\",\"\",AF108/$C$108)","v":""},null,{"$f":"IF($C$108=\"\",\"\",AH108/$C$108)","v":""},null,{"$f":"IF($C$108=\"\",\"\",AJ108/$C$108)","v":""},null,{"$f":"IF($C$108=\"\",\"\",AL108/$C$108)","v":""},null,{"$f":"IF($C$108=\"\",\"\",AN108/$C$108)","v":""},null,{"$f":"IF($C$108=\"\",\"\",AP108/$C$108)","v":""},null,{"$f":"IF($C$108=\"\",\"\",AR108/$C$108)","v":""},null,{"$f":"IF($C$108=\"\",\"\",AT108/$C$108)","v":""},null,{"$f":"IF($C$108=\"\",\"\",AV108/$C$108)","v":""},null,{"$f":"IF($C$108=\"\",\"\",AX108/$C$108)","v":""},null,{"$f":"IF($C$108=\"\",\"\",AZ108/$C$108)","v":""},null,{"$f":"IF($C$108=\"\",\"\",BB108/$C$108)","v":""},null,0]
[null,null,null,null,{"$f":"IF($C$109=\"\",\"\",F109/$C$109)","v":""},null,{"$f":"IF($C$109=\"\",\"\",H109/$C$109)","v":""},null,{"$f":"IF($C$109=\"\",\"\",J109/$C$109)","v":""},null,{"$f":"IF($C$109=\"\",\"\",L109/$C$109)","v":""},null,{"$f":"IF($C$109=\"\",\"\",N109/$C$109)","v":""},null,{"$f":"IF($C$109=\"\",\"\",P109/$C$109)","v":""},null,{"$f":"IF($C$109=\"\",\"\",R109/$C$109)","v":""},null,{"$f":"IF($C$109=\"\",\"\",T109/$C$109)","v":""},null,{"$f":"IF($C$109=\"\",\"\",V109/$C$109)","v":""},null,{"$f":"IF($C$109=\"\",\"\",X109/$C$109)","v":""},null,{"$f":"IF($C$109=\"\",\"\",Z109/$C$109)","v":""},null,{"$f":"IF($C$109=\"\",\"\",AB109/$C$109)","v":""},null,{"$f":"IF($C$109=\"\",\"\",AD109/$C$109)","v":""},null,{"$f":"IF($C$109=\"\",\"\",AF109/$C$109)","v":""},null,{"$f":"IF($C$109=\"\",\"\",AH109/$C$109)","v":""},null,{"$f":"IF($C$109=\"\",\"\",AJ109/$C$109)","v":""},null,{"$f":"IF($C$109=\"\",\"\",AL109/$C$109)","v":""},null,{"$f":"IF($C$109=\"\",\"\",AN109/$C$109)","v":""},null,{"$f":"IF($C$109=\"\",\"\",AP109/$C$109)","v":""},null,{"$f":"IF($C$109=\"\",\"\",AR109/$C$109)","v":""},null,{"$f":"IF($C$109=\"\",\"\",AT109/$C$109)","v":""},null,{"$f":"IF($C$109=\"\",\"\",AV109/$C$109)","v":""},null,{"$f":"IF($C$109=\"\",\"\",AX109/$C$109)","v":""},null,{"$f":"IF($C$109=\"\",\"\",AZ109/$C$109)","v":""},null,{"$f":"IF($C$109=\"\",\"\",BB109/$C$109)","v":""},null,0]
[null,null,null,null,{"$f":"IF($C$110=\"\",\"\",F110/$C$110)","v":""},null,{"$f":"IF($C$110=\"\",\"\",H110/$C$110)","v":""},null,{"$f":"IF($C$110=\"\",\"\",J110/$C$110)","v":""},null,{"$f":"IF($C$110=\"\",\"\",L110/$C$110)","v":""},null,{"$f":"IF($C$110=\"\",\"\",N110/$C$110)","v":""},null,{"$f":"IF($C$110=\"\",\"\",P110/$C$110)","v":""},null,{"$f":"IF($C$110=\"\",\"\",R110/$C$110)","v":""},null,{"$f":"IF($C$110=\"\",\"\",T110/$C$110)","v":""},null,{"$f":"IF($C$110=\"\",\"\",V110/$C$110)","v":""},null,{"$f":"IF($C$110=\"\",\"\",X110/$C$110)","v":""},null,{"$f":"IF($C$110=\"\",\"\",Z110/$C$110)","v":""},null,{"$f":"IF($C$110=\"\",\"\",AB110/$C$110)","v":""},null,{"$f":"IF($C$110=\"\",\"\",AD110/$C$110)","v":""},null,{"$f":"IF($C$110=\"\",\"\",AF110/$C$110)","v":""},null,{"$f":"IF($C$110=\"\",\"\",AH110/$C$110)","v":""},null,{"$f":"IF($C$110=\"\",\"\",AJ110/$C$110)","v":""},null,{"$f":"IF($C$110=\"\",\"\",AL110/$C$110)","v":""},null,{"$f":"IF($C$110=\"\",\"\",AN110/$C$110)","v":""},null,{"$f":"IF($C$110=\"\",\"\",AP110/$C$110)","v":""},null,{"$f":"IF($C$110=\"\",\"\",AR110/$C$110)","v":""},null,{"$f":"IF($C$110=\"\",\"\",AT110/$C$110)","v":""},null,{"$f":"IF($C$110=\"\",\"\",AV110/$C$110)","v":""},null,{"$f":"IF($C$110=\"\",\"\",AX110/$C$110)","v":""},null,{"$f":"IF($C$110=\"\",\"\",AZ110/$C$110)","v":""},null,{"$f":"IF($C$110=\"\",\"\",BB110/$C$110)","v":""},null,0]
[null,null,null,null,{"$f":"IF($C$111=\"\",\"\",F111/$C$111)","v":""},null,{"$f":"IF($C$111=\"\",\"\",H111/$C$111)","v":""},null,{"$f":"IF($C$111=\"\",\"\",J111/$C$111)","v":""},null,{"$f":"IF($C$111=\"\",\"\",L111/$C$111)","v":""},null,{"$f":"IF($C$111=\"\",\"\",N111/$C$111)","v":""},null,{"$f":"IF($C$111=\"\",\"\",P111/$C$111)","v":""},null,{"$f":"IF($C$111=\"\",\"\",R111/$C$111)","v":""},null,{"$f":"IF($C$111=\"\",\"\",T111/$C$111)","v":""},null,{"$f":"IF($C$111=\"\",\"\",V111/$C$111)","v":""},null,{"$f":"IF($C$111=\"\",\"\",X111/$C$111)","v":""},null,{"$f":"IF($C$111=\"\",\"\",Z111/$C$111)","v":""},null,{"$f":"IF($C$111=\"\",\"\",AB111/$C$111)","v":""},null,{"$f":"IF($C$111=\"\",\"\",AD111/$C$111)","v":""},null,{"$f":"IF($C$111=\"\",\"\",AF111/$C$111)","v":""},null,{"$f":"IF($C$111=\"\",\"\",AH111/$C$111)","v":""},null,{"$f":"IF($C$111=\"\",\"\",AJ111/$C$111)","v":""},null,{"$f":"IF($C$111=\"\",\"\",AL111/$C$111)","v":""},null,{"$f":"IF($C$111=\"\",\"\",AN111/$C$111)","v":""},null,{"$f":"IF($C$111=\"\",\"\",AP111/$C$111)","v":""},null,{"$f":"IF($C$111=\"\",\"\",AR111/$C$111)","v":""},null,{"$f":"IF($C$111=\"\",\"\",AT111/$C$111)","v":""},null,{"$f":"IF($C$111=\"\",\"\",AV111/$C$111)","v":""},null,{"$f":"IF($C$111=\"\",\"\",AX111/$C$111)","v":""},null,{"$f":"IF($C$111=\"\",\"\",AZ111/$C$111)","v":""},null,{"$f":"IF($C$111=\"\",\"\",BB111/$C$111)","v":""},null,0]
[null,null,null,null,{"$f":"IF($C$112=\"\",\"\",F112/$C$112)","v":""},null,{"$f":"IF($C$112=\"\",\"\",H112/$C$112)","v":""},null,{"$f":"IF($C$112=\"\",\"\",J112/$C$112)","v":""},null,{"$f":"IF($C$112=\"\",\"\",L112/$C$112)","v":""},null,{"$f":"IF($C$112=\"\",\"\",N112/$C$112)","v":""},null,{"$f":"IF($C$112=\"\",\"\",P112/$C$112)","v":""},null,{"$f":"IF($C$112=\"\",\"\",R112/$C$112)","v":""},null,{"$f":"IF($C$112=\"\",\"\",T112/$C$112)","v":""},null,{"$f":"IF($C$112=\"\",\"\",V112/$C$112)","v":""},null,{"$f":"IF($C$112=\"\",\"\",X112/$C$112)","v":""},null,{"$f":"IF($C$112=\"\",\"\",Z112/$C$112)","v":""},null,{"$f":"IF($C$112=\"\",\"\",AB112/$C$112)","v":""},null,{"$f":"IF($C$112=\"\",\"\",AD112/$C$112)","v":""},null,{"$f":"IF($C$112=\"\",\"\",AF112/$C$112)","v":""},null,{"$f":"IF($C$112=\"\",\"\",AH112/$C$112)","v":""},null,{"$f":"IF($C$112=\"\",\"\",AJ112/$C$112)","v":""},null,{"$f":"IF($C$112=\"\",\"\",AL112/$C$112)","v":""},null,{"$f":"IF($C$112=\"\",\"\",AN112/$C$112)","v":""},null,{"$f":"IF($C$112=\"\",\"\",AP112/$C$112)","v":""},null,{"$f":"IF($C$112=\"\",\"\",AR112/$C$112)","v":""},null,{"$f":"IF($C$112=\"\",\"\",AT112/$C$112)","v":""},null,{"$f":"IF($C$112=\"\",\"\",AV112/$C$112)","v":""},null,{"$f":"IF($C$112=\"\",\"\",AX112/$C$112)","v":""},null,{"$f":"IF($C$112=\"\",\"\",AZ112/$C$112)","v":""},null,{"$f":"IF($C$112=\"\",\"\",BB112/$C$112)","v":""},null,0]
[null,null,null,null,{"$f":"IF($C$113=\"\",\"\",F113/$C$113)","v":""},null,{"$f":"IF($C$113=\"\",\"\",H113/$C$113)","v":""},null,{"$f":"IF($C$113=\"\",\"\",J113/$C$113)","v":""},null,{"$f":"IF($C$113=\"\",\"\",L113/$C$113)","v":""},null,{"$f":"IF($C$113=\"\",\"\",N113/$C$113)","v":""},null,{"$f":"IF($C$113=\"\",\"\",P113/$C$113)","v":""},null,{"$f":"IF($C$113=\"\",\"\",R113/$C$113)","v":""},null,{"$f":"IF($C$113=\"\",\"\",T113/$C$113)","v":""},null,{"$f":"IF($C$113=\"\",\"\",V113/$C$113)","v":""},null,{"$f":"IF($C$113=\"\",\"\",X113/$C$113)","v":""},null,{"$f":"IF($C$113=\"\",\"\",Z113/$C$113)","v":""},null,{"$f":"IF($C$113=\"\",\"\",AB113/$C$113)","v":""},null,{"$f":"IF($C$113=\"\",\"\",AD113/$C$113)","v":""},null,{"$f":"IF($C$113=\"\",\"\",AF113/$C$113)","v":""},null,{"$f":"IF($C$113=\"\",\"\",AH113/$C$113)","v":""},null,{"$f":"IF($C$113=\"\",\"\",AJ113/$C$113)","v":""},null,{"$f":"IF($C$113=\"\",\"\",AL113/$C$113)","v":""},null,{"$f":"IF($C$113=\"\",\"\",AN113/$C$113)","v":""},null,{"$f":"IF($C$113=\"\",\"\",AP113/$C$113)","v":""},null,{"$f":"IF($C$113=\"\",\"\",AR113/$C$113)","v":""},null,{"$f":"IF($C$113=\"\",\"\",AT113/$C$113)","v":""},null,{"$f":"IF($C$113=\"\",\"\",AV113/$C$113)","v":""},null,{"$f":"IF($C$113=\"\",\"\",AX113/$C$113)","v":""},null,{"$f":"IF($C$113=\"\",\"\",AZ113/$C$113)","v":""},null,{"$f":"IF($C$113=\"\",\"\",BB113/$C$113)","v":""},null,0]
[null,null,null,null,{"$f":"IF($C$114=\"\",\"\",F114/$C$114)","v":""},null,{"$f":"IF($C$114=\"\",\"\",H114/$C$114)","v":""},null,{"$f":"IF($C$114=\"\",\"\",J114/$C$114)","v":""},null,{"$f":"IF($C$114=\"\",\"\",L114/$C$114)","v":""},null,{"$f":"IF($C$114=\"\",\"\",N114/$C$114)","v":""},null,{"$f":"IF($C$114=\"\",\"\",P114/$C$114)","v":""},null,{"$f":"IF($C$114=\"\",\"\",R114/$C$114)","v":""},null,{"$f":"IF($C$114=\"\",\"\",T114/$C$114)","v":""},null,{"$f":"IF($C$114=\"\",\"\",V114/$C$114)","v":""},null,{"$f":"IF($C$114=\"\",\"\",X114/$C$114)","v":""},null,{"$f":"IF($C$114=\"\",\"\",Z114/$C$114)","v":""},null,{"$f":"IF($C$114=\"\",\"\",AB114/$C$114)","v":""},null,{"$f":"IF($C$114=\"\",\"\",AD114/$C$114)","v":""},null,{"$f":"IF($C$114=\"\",\"\",AF114/$C$114)","v":""},null,{"$f":"IF($C$114=\"\",\"\",AH114/$C$114)","v":""},null,{"$f":"IF($C$114=\"\",\"\",AJ114/$C$114)","v":""},null,{"$f":"IF($C$114=\"\",\"\",AL114/$C$114)","v":""},null,{"$f":"IF($C$114=\"\",\"\",AN114/$C$114)","v":""},null,{"$f":"IF($C$114=\"\",\"\",AP114/$C$114)","v":""},null,{"$f":"IF($C$114=\"\",\"\",AR114/$C$114)","v":""},null,{"$f":"IF($C$114=\"\",\"\",AT114/$C$114)","v":""},null,{"$f":"IF($C$114=\"\",\"\",AV114/$C$114)","v":""},null,{"$f":"IF($C$114=\"\",\"\",AX114/$C$114)","v":""},null,{"$f":"IF($C$114=\"\",\"\",AZ114/$C$114)","v":""},null,{"$f":"IF($C$114=\"\",\"\",BB114/$C$114)","v":""},null,{"$f":"SUM(BB114,AZ114,AX114,AV114,AT114,AR114,AP114,AN114,AL114,AJ114,AH114,AF114,AD114,AB114,Z114,X114,V114,T114,R114,P114,N114,L114,J114,H114,F114)","v":0}]
["TOTAL HOURS",null,null,null,null,{"$f":"SUM(F57:F114)","v":0},null,{"$f":"SUM(H57:H114)","v":0},null,{"$f":"SUM(J57:J114)","v":0},null,{"$f":"SUM(L57:L114)","v":0},null,{"$f":"SUM(N57:N114)","v":0},null,{"$f":"SUM(P57:P114)","v":0},null,{"$f":"SUM(R57:R114)","v":0},null,{"$f":"SUM(T57:T114)","v":0},null,{"$f":"SUM(V57:V114)","v":0},null,{"$f":"SUM(X57:X114)","v":0},null,{"$f":"SUM(Z57:Z114)","v":0},null,{"$f":"SUM(AB57:AB114)","v":0},null,{"$f":"SUM(AD57:AD114)","v":0},null,{"$f":"SUM(AF57:AF114)","v":0},null,{"$f":"SUM(AH57:AH114)","v":0},null,{"$f":"SUM(AJ57:AJ114)","v":0},null,{"$f":"SUM(AL57:AL114)","v":0},null,{"$f":"SUM(AN57:AN114)","v":0},null,{"$f":"SUM(AP57:AP114)","v":0},null,{"$f":"SUM(AR57:AR114)","v":0},null,{"$f":"SUM(AT57:AT114)","v":0},null,{"$f":"SUM(AV57:AV114)","v":0},null,{"$f":"SUM(AX57:AX114)","v":0},null,{"$f":"SUM(AZ57:AZ114)","v":0},null,{"$f":"SUM(BB57:BB114)","v":0},{"$f":"SUM(E115:BB115)","v":0}]
["TOTAL WORKDAYS",null,null,null,null,{"$f":"F115/8","v":0},null,{"$f":"H115/8","v":0},null,{"$f":"J115/8","v":0},null,{"$f":"L115/8","v":0},null,{"$f":"N115/8","v":0},null,{"$f":"P115/8","v":0},null,{"$f":"R115/8","v":0},null,{"$f":"T115/8","v":0},null,{"$f":"V115/8","v":0},null,{"$f":"X115/8","v":0},null,{"$f":"Z115/8","v":0},null,{"$f":"AB115/8","v":0},null,{"$f":"AD115/8","v":0},null,0,null,{"$f":"AH115/8","v":0},null,0,null,{"$f":"AL115/8","v":0},null,0,null,{"$f":"AP115/8","v":0},null,0,null,{"$f":"AT115/8","v":0},null,{"$f":"AV115/8","v":0},null,{"$f":"AX115/8","v":0},null,{"$f":"AZ115/8","v":0},null,{"$f":"BB115/8","v":0},{"$f":"SUM(E116:BB116)","v":0}]
["TOTAL RAW LABOR",null,null,null,null,{"$f":"$E$13*F115","v":0},null,{"$f":"$G$13*H115","v":0},null,{"$f":"$I$13*J115","v":0},null,{"$f":"$K$13*L115","v":0},null,{"$f":"$M$13*N115","v":0},null,{"$f":"$O$13*P115","v":0},null,{"$f":"$Q$13*R115","v":0},null,{"$f":"$S$13*T115","v":0},null,{"$f":"$U$13*V115","v":0},null,{"$f":"$W$13*X115","v":0},null,{"$f":"$Y$13*Z115","v":0},null,{"$f":"$AA$13*AB115","v":0},null,{"$f":"$AC$13*AD115","v":0},null,{"$f":"$AC$13*AF115","v":0},null,{"$f":"$AC$13*AH115","v":0},null,{"$f":"$AC$13*AJ115","v":0},null,{"$f":"$AC$13*AL115","v":0},null,{"$f":"$AC$13*AN115","v":0},null,{"$f":"$AC$13*AP115","v":0},null,{"$f":"$AC$13*AR115","v":0},null,{"$f":"$AC$13*AT115","v":0},null,{"$f":"$AC$13*AV115","v":0},null,{"$f":"$AC$13*AX115","v":0},null,{"$f":"$AC$13*AZ115","v":0},null,{"$f":"$AC$13*BB115","v":0},{"$f":"SUM(E117:BB117)","v":0}]
["Task 4.0     ","COMMUNICATIONS SYSTEM",null,null,null,null,null,null,null,null,null,null,null,null,null,null,null,null,null,null,null,null,null,null,null,null,null,null,null,null,null,null,null,null,null,null,null,null,null,null,null,null,null,null,null,null,null,null,null,null,null,null,null,null," "]
[4.0999999999999996,"Legacy Systems Review",null,null,{"$f":"IF($C$119=\"\",\"\",F119/$C$119)","v":""},null,{"$f":"IF($C$119=\"\",\"\",H119/$C$119)","v":""},null,{"$f":"IF($C$119=\"\",\"\",J119/$C$119)","v":""},null,{"$f":"IF($C$119=\"\",\"\",L119/$C$119)","v":""},null,{"$f":"IF($C$119=\"\",\"\",N119/$C$119)","v":""},null,{"$f":"IF($C$119=\"\",\"\",P119/$C$119)","v":""},null,{"$f":"IF($C$119=\"\",\"\",R119/$C$119)","v":""},null,{"$f":"IF($C$119=\"\",\"\",T119/$C$119)","v":""},null,{"$f":"IF($C$119=\"\",\"\",V119/$C$119)","v":""},null,{"$f":"IF($C$119=\"\",\"\",X119/$C$119)","v":""},null,{"$f":"IF($C$119=\"\",\"\",Z119/$C$119)","v":""},null,{"$f":"IF($C$119=\"\",\"\",AB119/$C$119)","v":""},null,{"$f":"IF($C$119=\"\",\"\",AD119/$C$119)","v":""},null,{"$f":"IF($C$119=\"\",\"\",AF119/$C$119)","v":""},null,{"$f":"IF($C$119=\"\",\"\",AH119/$C$119)","v":""},null,{"$f":"IF($C$119=\"\",\"\",AJ119/$C$119)","v":""},null,{"$f":"IF($C$119=\"\",\"\",AL119/$C$119)","v":""},null,{"$f":"IF($C$119=\"\",\"\",AN119/$C$119)","v":""},null,{"$f":"IF($C$119=\"\",\"\",AP119/$C$119)","v":""},null,{"$f":"IF($C$119=\"\",\"\",AR119/$C$119)","v":""},null,{"$f":"IF($C$119=\"\",\"\",AT119/$C$119)","v":""},null,{"$f":"IF($C$119=\"\",\"\",AV119/$C$119)","v":""},null,{"$f":"IF($C$119=\"\",\"\",AX119/$C$119)","v":""},null,{"$f":"IF($C$119=\"\",\"\",AZ119/$C$119)","v":""},null,{"$f":"IF($C$119=\"\",\"\",BB119/$C$119)","v":""},null,{"$f":"SUM(BB119,AZ119,AX119,AV119,AT119,AR119,AP119,AN119,AL119,AJ119,AH119,AF119,AD119,AB119,Z119,X119,V119,T119,R119,P119,N119,L119,J119,H119,F119)","v":0}]
[4.2,"Technology Review"]
["    4.2.1","    Wireless Site Surveys (Wireless Tests)",null,null,{"$f":"IF($C$121=\"\",\"\",F121/$C$121)","v":""},null,{"$f":"IF($C$121=\"\",\"\",H121/$C$121)","v":""},null,{"$f":"IF($C$121=\"\",\"\",J121/$C$121)","v":""},null,{"$f":"IF($C$121=\"\",\"\",L121/$C$121)","v":""},null,{"$f":"IF($C$121=\"\",\"\",N121/$C$121)","v":""},null,{"$f":"IF($C$121=\"\",\"\",P121/$C$121)","v":""},null,{"$f":"IF($C$121=\"\",\"\",R121/$C$121)","v":""},null,{"$f":"IF($C$121=\"\",\"\",T121/$C$121)","v":""},null,{"$f":"IF($C$121=\"\",\"\",V121/$C$121)","v":""},null,{"$f":"IF($C$121=\"\",\"\",X121/$C$121)","v":""},null,{"$f":"IF($C$121=\"\",\"\",Z121/$C$121)","v":""},null,{"$f":"IF($C$121=\"\",\"\",AB121/$C$121)","v":""},null,{"$f":"IF($C$121=\"\",\"\",AD121/$C$121)","v":""},null,{"$f":"IF($C$121=\"\",\"\",AF121/$C$121)","v":""},null,{"$f":"IF($C$121=\"\",\"\",AH121/$C$121)","v":""},null,{"$f":"IF($C$121=\"\",\"\",AJ121/$C$121)","v":""},null,{"$f":"IF($C$121=\"\",\"\",AL121/$C$121)","v":""},null,{"$f":"IF($C$121=\"\",\"\",AN121/$C$121)","v":""},null,{"$f":"IF($C$121=\"\",\"\",AP121/$C$121)","v":""},null,{"$f":"IF($C$121=\"\",\"\",AR121/$C$121)","v":""},null,{"$f":"IF($C$121=\"\",\"\",AT121/$C$121)","v":""},null,{"$f":"IF($C$121=\"\",\"\",AV121/$C$121)","v":""},null,{"$f":"IF($C$121=\"\",\"\",AX121/$C$121)","v":""},null,{"$f":"IF($C$121=\"\",\"\",AZ121/$C$121)","v":""},null,{"$f":"IF($C$121=\"\",\"\",BB121/$C$121)","v":""},null,{"$f":"SUM(BB121,AZ121,AX121,AV121,AT121,AR121,AP121,AN121,AL121,AJ121,AH121,AF121,AD121,AB121,Z121,X121,V121,T121,R121,P121,N121,L121,J121,H121,F121)","v":0}]
["    4.2.2","    Alternatives Evaluation",null,null,{"$f":"IF($C$122=\"\",\"\",F122/$C$122)","v":""},null,{"$f":"IF($C$122=\"\",\"\",H122/$C$122)","v":""},null,{"$f":"IF($C$122=\"\",\"\",J122/$C$122)","v":""},null,{"$f":"IF($C$122=\"\",\"\",L122/$C$122)","v":""},null,{"$f":"IF($C$122=\"\",\"\",N122/$C$122)","v":""},null,{"$f":"IF($C$122=\"\",\"\",P122/$C$122)","v":""},null,{"$f":"IF($C$122=\"\",\"\",R122/$C$122)","v":""},null,{"$f":"IF($C$122=\"\",\"\",T122/$C$122)","v":""},null,{"$f":"IF($C$122=\"\",\"\",V122/$C$122)","v":""},null,{"$f":"IF($C$122=\"\",\"\",X122/$C$122)","v":""},null,{"$f":"IF($C$122=\"\",\"\",Z122/$C$122)","v":""},null,{"$f":"IF($C$122=\"\",\"\",AB122/$C$122)","v":""},null,{"$f":"IF($C$122=\"\",\"\",AD122/$C$122)","v":""},null,{"$f":"IF($C$122=\"\",\"\",AF122/$C$122)","v":""},null,{"$f":"IF($C$122=\"\",\"\",AH122/$C$122)","v":""},null,{"$f":"IF($C$122=\"\",\"\",AJ122/$C$122)","v":""},null,{"$f":"IF($C$122=\"\",\"\",AL122/$C$122)","v":""},null,{"$f":"IF($C$122=\"\",\"\",AN122/$C$122)","v":""},null,{"$f":"IF($C$122=\"\",\"\",AP122/$C$122)","v":""},null,{"$f":"IF($C$122=\"\",\"\",AR122/$C$122)","v":""},null,{"$f":"IF($C$122=\"\",\"\",AT122/$C$122)","v":""},null,{"$f":"IF($C$122=\"\",\"\",AV122/$C$122)","v":""},null,{"$f":"IF($C$122=\"\",\"\",AX122/$C$122)","v":""},null,{"$f":"IF($C$122=\"\",\"\",AZ122/$C$122)","v":""},null,{"$f":"IF($C$122=\"\",\"\",BB122/$C$122)","v":""},null,0]
["    4.2.3",null,null,null,{"$f":"IF($C$123=\"\",\"\",F123/$C$123)","v":""},null,{"$f":"IF($C$123=\"\",\"\",H123/$C$123)","v":""},null,{"$f":"IF($C$123=\"\",\"\",J123/$C$123)","v":""},null,{"$f":"IF($C$123=\"\",\"\",L123/$C$123)","v":""},null,{"$f":"IF($C$123=\"\",\"\",N123/$C$123)","v":""},null,{"$f":"IF($C$123=\"\",\"\",P123/$C$123)","v":""},null,{"$f":"IF($C$123=\"\",\"\",R123/$C$123)","v":""},null,{"$f":"IF($C$123=\"\",\"\",T123/$C$123)","v":""},null,{"$f":"IF($C$123=\"\",\"\",V123/$C$123)","v":""},null,{"$f":"IF($C$123=\"\",\"\",X123/$C$123)","v":""},null,{"$f":"IF($C$123=\"\",\"\",Z123/$C$123)","v":""},null,{"$f":"IF($C$123=\"\",\"\",AB123/$C$123)","v":""},null,{"$f":"IF($C$123=\"\",\"\",AD123/$C$123)","v":""},null,{"$f":"IF($C$123=\"\",\"\",AF123/$C$123)","v":""},null,{"$f":"IF($C$123=\"\",\"\",AH123/$C$123)","v":""},null,{"$f":"IF($C$123=\"\",\"\",AJ123/$C$123)","v":""},null,{"$f":"IF($C$123=\"\",\"\",AL123/$C$123)","v":""},null,{"$f":"IF($C$123=\"\",\"\",AN123/$C$123)","v":""},null,{"$f":"IF($C$123=\"\",\"\",AP123/$C$123)","v":""},null,{"$f":"IF($C$123=\"\",\"\",AR123/$C$123)","v":""},null,{"$f":"IF($C$123=\"\",\"\",AT123/$C$123)","v":""},null,{"$f":"IF($C$123=\"\",\"\",AV123/$C$123)","v":""},null,{"$f":"IF($C$123=\"\",\"\",AX123/$C$123)","v":""},null,{"$f":"IF($C$123=\"\",\"\",AZ123/$C$123)","v":""},null,{"$f":"IF($C$123=\"\",\"\",BB123/$C$123)","v":""},null,0]
["    4.2.4",null,null,null,{"$f":"IF($C$124=\"\",\"\",F124/$C$124)","v":""},null,{"$f":"IF($C$124=\"\",\"\",H124/$C$124)","v":""},null,{"$f":"IF($C$124=\"\",\"\",J124/$C$124)","v":""},null,{"$f":"IF($C$124=\"\",\"\",L124/$C$124)","v":""},null,{"$f":"IF($C$124=\"\",\"\",N124/$C$124)","v":""},null,{"$f":"IF($C$124=\"\",\"\",P124/$C$124)","v":""},null,{"$f":"IF($C$124=\"\",\"\",R124/$C$124)","v":""},null,{"$f":"IF($C$124=\"\",\"\",T124/$C$124)","v":""},null,{"$f":"IF($C$124=\"\",\"\",V124/$C$124)","v":""},null,{"$f":"IF($C$124=\"\",\"\",X124/$C$124)","v":""},null,{"$f":"IF($C$124=\"\",\"\",Z124/$C$124)","v":""},null,{"$f":"IF($C$124=\"\",\"\",AB124/$C$124)","v":""},null,{"$f":"IF($C$124=\"\",\"\",AD124/$C$124)","v":""},null,{"$f":"IF($C$124=\"\",\"\",AF124/$C$124)","v":""},null,{"$f":"IF($C$124=\"\",\"\",AH124/$C$124)","v":""},null,{"$f":"IF($C$124=\"\",\"\",AJ124/$C$124)","v":""},null,{"$f":"IF($C$124=\"\",\"\",AL124/$C$124)","v":""},null,{"$f":"IF($C$124=\"\",\"\",AN124/$C$124)","v":""},null,{"$f":"IF($C$124=\"\",\"\",AP124/$C$124)","v":""},null,{"$f":"IF($C$124=\"\",\"\",AR124/$C$124)","v":""},null,{"$f":"IF($C$124=\"\",\"\",AT124/$C$124)","v":""},null,{"$f":"IF($C$124=\"\",\"\",AV124/$C$124)","v":""},null,{"$f":"IF($C$124=\"\",\"\",AX124/$C$124)","v":""},null,{"$f":"IF($C$124=\"\",\"\",AZ124/$C$124)","v":""},null,{"$f":"IF($C$124=\"\",\"\",BB124/$C$124)","v":""},null,0]
["    4.2.5",null,null,null,{"$f":"IF($C$125=\"\",\"\",F125/$C$125)","v":""},null,{"$f":"IF($C$125=\"\",\"\",H125/$C$125)","v":""},null,{"$f":"IF($C$125=\"\",\"\",J125/$C$125)","v":""},null,{"$f":"IF($C$125=\"\",\"\",L125/$C$125)","v":""},null,{"$f":"IF($C$125=\"\",\"\",N125/$C$125)","v":""},null,{"$f":"IF($C$125=\"\",\"\",P125/$C$125)","v":""},null,{"$f":"IF($C$125=\"\",\"\",R125/$C$125)","v":""},null,{"$f":"IF($C$125=\"\",\"\",T125/$C$125)","v":""},null,{"$f":"IF($C$125=\"\",\"\",V125/$C$125)","v":""},null,{"$f":"IF($C$125=\"\",\"\",X125/$C$125)","v":""},null,{"$f":"IF($C$125=\"\",\"\",Z125/$C$125)","v":""},null,{"$f":"IF($C$125=\"\",\"\",AB125/$C$125)","v":""},null,{"$f":"IF($C$125=\"\",\"\",AD125/$C$125)","v":""},null,{"$f":"IF($C$125=\"\",\"\",AF125/$C$125)","v":""},null,{"$f":"IF($C$125=\"\",\"\",AH125/$C$125)","v":""},null,{"$f":"IF($C$125=\"\",\"\",AJ125/$C$125)","v":""},null,{"$f":"IF($C$125=\"\",\"\",AL125/$C$125)","v":""},null,{"$f":"IF($C$125=\"\",\"\",AN125/$C$125)","v":""},null,{"$f":"IF($C$125=\"\",\"\",AP125/$C$125)","v":""},null,{"$f":"IF($C$125=\"\",\"\",AR125/$C$125)","v":""},null,{"$f":"IF($C$125=\"\",\"\",AT125/$C$125)","v":""},null,{"$f":"IF($C$125=\"\",\"\",AV125/$C$125)","v":""},null,{"$f":"IF($C$125=\"\",\"\",AX125/$C$125)","v":""},null,{"$f":"IF($C$125=\"\",\"\",AZ125/$C$125)","v":""},null,{"$f":"IF($C$125=\"\",\"\",BB125/$C$125)","v":""},null,0]
[4.3,"Migration Plan",null,null,{"$f":"IF($C$126=\"\",\"\",F126/$C$126)","v":""},null,{"$f":"IF($C$126=\"\",\"\",H126/$C$126)","v":""},null,{"$f":"IF($C$126=\"\",\"\",J126/$C$126)","v":""},null,{"$f":"IF($C$126=\"\",\"\",L126/$C$126)","v":""},null,{"$f":"IF($C$126=\"\",\"\",N126/$C$126)","v":""},null,{"$f":"IF($C$126=\"\",\"\",P126/$C$126)","v":""},null,{"$f":"IF($C$126=\"\",\"\",R126/$C$126)","v":""},null,{"$f":"IF($C$126=\"\",\"\",T126/$C$126)","v":""},null,{"$f":"IF($C$126=\"\",\"\",V126/$C$126)","v":""},null,{"$f":"IF($C$126=\"\",\"\",X126/$C$126)","v":""},null,{"$f":"IF($C$126=\"\",\"\",Z126/$C$126)","v":""},null,{"$f":"IF($C$126=\"\",\"\",AB126/$C$126)","v":""},null,{"$f":"IF($C$126=\"\",\"\",AD126/$C$126)","v":""},null,{"$f":"IF($C$126=\"\",\"\",AF126/$C$126)","v":""},null,{"$f":"IF($C$126=\"\",\"\",AH126/$C$126)","v":""},null,{"$f":"IF($C$126=\"\",\"\",AJ126/$C$126)","v":""},null,{"$f":"IF($C$126=\"\",\"\",AL126/$C$126)","v":""},null,{"$f":"IF($C$126=\"\",\"\",AN126/$C$126)","v":""},null,{"$f":"IF($C$126=\"\",\"\",AP126/$C$126)","v":""},null,{"$f":"IF($C$126=\"\",\"\",AR126/$C$126)","v":""},null,{"$f":"IF($C$126=\"\",\"\",AT126/$C$126)","v":""},null,{"$f":"IF($C$126=\"\",\"\",AV126/$C$126)","v":""},null,{"$f":"IF($C$126=\"\",\"\",AX126/$C$126)","v":""},null,{"$f":"IF($C$126=\"\",\"\",AZ126/$C$126)","v":""},null,{"$f":"IF($C$126=\"\",\"\",BB126/$C$126)","v":""},null,0]
[4.4000000000000004,"Bandwidth Analysis",null,null,{"$f":"IF($C$127=\"\",\"\",F127/$C$127)","v":""},null,{"$f":"IF($C$127=\"\",\"\",H127/$C$127)","v":""},null,{"$f":"IF($C$127=\"\",\"\",J127/$C$127)","v":""},null,{"$f":"IF($C$127=\"\",\"\",L127/$C$127)","v":""},null,{"$f":"IF($C$127=\"\",\"\",N127/$C$127)","v":""},null,{"$f":"IF($C$127=\"\",\"\",P127/$C$127)","v":""},null,{"$f":"IF($C$127=\"\",\"\",R127/$C$127)","v":""},null,{"$f":"IF($C$127=\"\",\"\",T127/$C$127)","v":""},null,{"$f":"IF($C$127=\"\",\"\",V127/$C$127)","v":""},null,{"$f":"IF($C$127=\"\",\"\",X127/$C$127)","v":""},null,{"$f":"IF($C$127=\"\",\"\",Z127/$C$127)","v":""},null,{"$f":"IF($C$127=\"\",\"\",AB127/$C$127)","v":""},null,{"$f":"IF($C$127=\"\",\"\",AD127/$C$127)","v":""},null,{"$f":"IF($C$127=\"\",\"\",AF127/$C$127)","v":""},null,{"$f":"IF($C$127=\"\",\"\",AH127/$C$127)","v":""},null,{"$f":"IF($C$127=\"\",\"\",AJ127/$C$127)","v":""},null,{"$f":"IF($C$127=\"\",\"\",AL127/$C$127)","v":""},null,{"$f":"IF($C$127=\"\",\"\",AN127/$C$127)","v":""},null,{"$f":"IF($C$127=\"\",\"\",AP127/$C$127)","v":""},null,{"$f":"IF($C$127=\"\",\"\",AR127/$C$127)","v":""},null,{"$f":"IF($C$127=\"\",\"\",AT127/$C$127)","v":""},null,{"$f":"IF($C$127=\"\",\"\",AV127/$C$127)","v":""},null,{"$f":"IF($C$127=\"\",\"\",AX127/$C$127)","v":""},null,{"$f":"IF($C$127=\"\",\"\",AZ127/$C$127)","v":""},null,{"$f":"IF($C$127=\"\",\"\",BB127/$C$127)","v":""},null,0]
[4.5,"Block Diagrams",null,null,{"$f":"IF($C$128=\"\",\"\",F128/$C$128)","v":""},null,{"$f":"IF($C$128=\"\",\"\",H128/$C$128)","v":""},null,{"$f":"IF($C$128=\"\",\"\",J128/$C$128)","v":""},null,{"$f":"IF($C$128=\"\",\"\",L128/$C$128)","v":""},null,{"$f":"IF($C$128=\"\",\"\",N128/$C$128)","v":""},null,{"$f":"IF($C$128=\"\",\"\",P128/$C$128)","v":""},null,{"$f":"IF($C$128=\"\",\"\",R128/$C$128)","v":""},null,{"$f":"IF($C$128=\"\",\"\",T128/$C$128)","v":""},null,{"$f":"IF($C$128=\"\",\"\",V128/$C$128)","v":""},null,{"$f":"IF($C$128=\"\",\"\",X128/$C$128)","v":""},null,{"$f":"IF($C$128=\"\",\"\",Z128/$C$128)","v":""},null,{"$f":"IF($C$128=\"\",\"\",AB128/$C$128)","v":""},null,{"$f":"IF($C$128=\"\",\"\",AD128/$C$128)","v":""},null,{"$f":"IF($C$128=\"\",\"\",AF128/$C$128)","v":""},null,{"$f":"IF($C$128=\"\",\"\",AH128/$C$128)","v":""},null,{"$f":"IF($C$128=\"\",\"\",AJ128/$C$128)","v":""},null,{"$f":"IF($C$128=\"\",\"\",AL128/$C$128)","v":""},null,{"$f":"IF($C$128=\"\",\"\",AN128/$C$128)","v":""},null,{"$f":"IF($C$128=\"\",\"\",AP128/$C$128)","v":""},null,{"$f":"IF($C$128=\"\",\"\",AR128/$C$128)","v":""},null,{"$f":"IF($C$128=\"\",\"\",AT128/$C$128)","v":""},null,{"$f":"IF($C$128=\"\",\"\",AV128/$C$128)","v":""},null,{"$f":"IF($C$128=\"\",\"\",AX128/$C$128)","v":""},null,{"$f":"IF($C$128=\"\",\"\",AZ128/$C$128)","v":""},null,{"$f":"IF($C$128=\"\",\"\",BB128/$C$128)","v":""},null,0]
[4.5999999999999996,"Prepare Communications Technical Memorandum",null,null,{"$f":"IF($C$129=\"\",\"\",F129/$C$129)","v":""},null,{"$f":"IF($C$129=\"\",\"\",H129/$C$129)","v":""},null,{"$f":"IF($C$129=\"\",\"\",J129/$C$129)","v":""},null,{"$f":"IF($C$129=\"\",\"\",L129/$C$129)","v":""},null,{"$f":"IF($C$129=\"\",\"\",N129/$C$129)","v":""},null,{"$f":"IF($C$129=\"\",\"\",P129/$C$129)","v":""},null,{"$f":"IF($C$129=\"\",\"\",R129/$C$129)","v":""},null,{"$f":"IF($C$129=\"\",\"\",T129/$C$129)","v":""},null,{"$f":"IF($C$129=\"\",\"\",V129/$C$129)","v":""},null,{"$f":"IF($C$129=\"\",\"\",X129/$C$129)","v":""},null,{"$f":"IF($C$129=\"\",\"\",Z129/$C$129)","v":""},null,{"$f":"IF($C$129=\"\",\"\",AB129/$C$129)","v":""},null,{"$f":"IF($C$129=\"\",\"\",AD129/$C$129)","v":""},null,{"$f":"IF($C$129=\"\",\"\",AF129/$C$129)","v":""},null,{"$f":"IF($C$129=\"\",\"\",AH129/$C$129)","v":""},null,{"$f":"IF($C$129=\"\",\"\",AJ129/$C$129)","v":""},null,{"$f":"IF($C$129=\"\",\"\",AL129/$C$129)","v":""},null,{"$f":"IF($C$129=\"\",\"\",AN129/$C$129)","v":""},null,{"$f":"IF($C$129=\"\",\"\",AP129/$C$129)","v":""},null,{"$f":"IF($C$129=\"\",\"\",AR129/$C$129)","v":""},null,{"$f":"IF($C$129=\"\",\"\",AT129/$C$129)","v":""},null,{"$f":"IF($C$129=\"\",\"\",AV129/$C$129)","v":""},null,{"$f":"IF($C$129=\"\",\"\",AX129/$C$129)","v":""},null,{"$f":"IF($C$129=\"\",\"\",AZ129/$C$129)","v":""},null,{"$f":"IF($C$129=\"\",\"\",BB129/$C$129)","v":""},null,0]
[4.7,"Quality Reviews",null,null,{"$f":"IF($C$130=\"\",\"\",F130/$C$130)","v":""},null,{"$f":"IF($C$130=\"\",\"\",H130/$C$130)","v":""},null,{"$f":"IF($C$130=\"\",\"\",J130/$C$130)","v":""},null,{"$f":"IF($C$130=\"\",\"\",L130/$C$130)","v":""},null,{"$f":"IF($C$130=\"\",\"\",N130/$C$130)","v":""},null,{"$f":"IF($C$130=\"\",\"\",P130/$C$130)","v":""},null,{"$f":"IF($C$130=\"\",\"\",R130/$C$130)","v":""},null,{"$f":"IF($C$130=\"\",\"\",T130/$C$130)","v":""},null,{"$f":"IF($C$130=\"\",\"\",V130/$C$130)","v":""},null,{"$f":"IF($C$130=\"\",\"\",X130/$C$130)","v":""},null,{"$f":"IF($C$130=\"\",\"\",Z130/$C$130)","v":""},null,{"$f":"IF($C$130=\"\",\"\",AB130/$C$130)","v":""},null,{"$f":"IF($C$130=\"\",\"\",AD130/$C$130)","v":""},null,{"$f":"IF($C$130=\"\",\"\",AF130/$C$130)","v":""},null,{"$f":"IF($C$130=\"\",\"\",AH130/$C$130)","v":""},null,{"$f":"IF($C$130=\"\",\"\",AJ130/$C$130)","v":""},null,{"$f":"IF($C$130=\"\",\"\",AL130/$C$130)","v":""},null,{"$f":"IF($C$130=\"\",\"\",AN130/$C$130)","v":""},null,{"$f":"IF($C$130=\"\",\"\",AP130/$C$130)","v":""},null,{"$f":"IF($C$130=\"\",\"\",AR130/$C$130)","v":""},null,{"$f":"IF($C$130=\"\",\"\",AT130/$C$130)","v":""},null,{"$f":"IF($C$130=\"\",\"\",AV130/$C$130)","v":""},null,{"$f":"IF($C$130=\"\",\"\",AX130/$C$130)","v":""},null,{"$f":"IF($C$130=\"\",\"\",AZ130/$C$130)","v":""},null,{"$f":"IF($C$130=\"\",\"\",BB130/$C$130)","v":""},null,0]
[null,null,null,null,{"$f":"IF($C$131=\"\",\"\",F131/$C$131)","v":""},null,{"$f":"IF($C$131=\"\",\"\",H131/$C$131)","v":""},null,{"$f":"IF($C$131=\"\",\"\",J131/$C$131)","v":""},null,{"$f":"IF($C$131=\"\",\"\",L131/$C$131)","v":""},null,{"$f":"IF($C$131=\"\",\"\",N131/$C$131)","v":""},null,{"$f":"IF($C$131=\"\",\"\",P131/$C$131)","v":""},null,{"$f":"IF($C$131=\"\",\"\",R131/$C$131)","v":""},null,{"$f":"IF($C$131=\"\",\"\",T131/$C$131)","v":""},null,{"$f":"IF($C$131=\"\",\"\",V131/$C$131)","v":""},null,{"$f":"IF($C$131=\"\",\"\",X131/$C$131)","v":""},null,{"$f":"IF($C$131=\"\",\"\",Z131/$C$131)","v":""},null,{"$f":"IF($C$131=\"\",\"\",AB131/$C$131)","v":""},null,{"$f":"IF($C$131=\"\",\"\",AD131/$C$131)","v":""},null,{"$f":"IF($C$131=\"\",\"\",AF131/$C$131)","v":""},null,{"$f":"IF($C$131=\"\",\"\",AH131/$C$131)","v":""},null,{"$f":"IF($C$131=\"\",\"\",AJ131/$C$131)","v":""},null,{"$f":"IF($C$131=\"\",\"\",AL131/$C$131)","v":""},null,{"$f":"IF($C$131=\"\",\"\",AN131/$C$131)","v":""},null,{"$f":"IF($C$131=\"\",\"\",AP131/$C$131)","v":""},null,{"$f":"IF($C$131=\"\",\"\",AR131/$C$131)","v":""},null,{"$f":"IF($C$131=\"\",\"\",AT131/$C$131)","v":""},null,{"$f":"IF($C$131=\"\",\"\",AV131/$C$131)","v":""},null,{"$f":"IF($C$131=\"\",\"\",AX131/$C$131)","v":""},null,{"$f":"IF($C$131=\"\",\"\",AZ131/$C$131)","v":""},null,{"$f":"IF($C$131=\"\",\"\",BB131/$C$131)","v":""},null,0]
[null,null,null,null,{"$f":"IF($C$132=\"\",\"\",F132/$C$132)","v":""},null,{"$f":"IF($C$132=\"\",\"\",H132/$C$132)","v":""},null,{"$f":"IF($C$132=\"\",\"\",J132/$C$132)","v":""},null,{"$f":"IF($C$132=\"\",\"\",L132/$C$132)","v":""},null,{"$f":"IF($C$132=\"\",\"\",N132/$C$132)","v":""},null,{"$f":"IF($C$132=\"\",\"\",P132/$C$132)","v":""},null,{"$f":"IF($C$132=\"\",\"\",R132/$C$132)","v":""},null,{"$f":"IF($C$132=\"\",\"\",T132/$C$132)","v":""},null,{"$f":"IF($C$132=\"\",\"\",V132/$C$132)","v":""},null,{"$f":"IF($C$132=\"\",\"\",X132/$C$132)","v":""},null,{"$f":"IF($C$132=\"\",\"\",Z132/$C$132)","v":""},null,{"$f":"IF($C$132=\"\",\"\",AB132/$C$132)","v":""},null,{"$f":"IF($C$132=\"\",\"\",AD132/$C$132)","v":""},null,{"$f":"IF($C$132=\"\",\"\",AF132/$C$132)","v":""},null,{"$f":"IF($C$132=\"\",\"\",AH132/$C$132)","v":""},null,{"$f":"IF($C$132=\"\",\"\",AJ132/$C$132)","v":""},null,{"$f":"IF($C$132=\"\",\"\",AL132/$C$132)","v":""},null,{"$f":"IF($C$132=\"\",\"\",AN132/$C$132)","v":""},null,{"$f":"IF($C$132=\"\",\"\",AP132/$C$132)","v":""},null,{"$f":"IF($C$132=\"\",\"\",AR132/$C$132)","v":""},null,{"$f":"IF($C$132=\"\",\"\",AT132/$C$132)","v":""},null,{"$f":"IF($C$132=\"\",\"\",AV132/$C$132)","v":""},null,{"$f":"IF($C$132=\"\",\"\",AX132/$C$132)","v":""},null,{"$f":"IF($C$132=\"\",\"\",AZ132/$C$132)","v":""},null,{"$f":"IF($C$132=\"\",\"\",BB132/$C$132)","v":""},null,0]
[null,null,null,null,{"$f":"IF($C$133=\"\",\"\",F133/$C$133)","v":""},null,{"$f":"IF($C$133=\"\",\"\",H133/$C$133)","v":""},null,{"$f":"IF($C$133=\"\",\"\",J133/$C$133)","v":""},null,{"$f":"IF($C$133=\"\",\"\",L133/$C$133)","v":""},null,{"$f":"IF($C$133=\"\",\"\",N133/$C$133)","v":""},null,{"$f":"IF($C$133=\"\",\"\",P133/$C$133)","v":""},null,{"$f":"IF($C$133=\"\",\"\",R133/$C$133)","v":""},null,{"$f":"IF($C$133=\"\",\"\",T133/$C$133)","v":""},null,{"$f":"IF($C$133=\"\",\"\",V133/$C$133)","v":""},null,{"$f":"IF($C$133=\"\",\"\",X133/$C$133)","v":""},null,{"$f":"IF($C$133=\"\",\"\",Z133/$C$133)","v":""},null,{"$f":"IF($C$133=\"\",\"\",AB133/$C$133)","v":""},null,{"$f":"IF($C$133=\"\",\"\",AD133/$C$133)","v":""},null,{"$f":"IF($C$133=\"\",\"\",AF133/$C$133)","v":""},null,{"$f":"IF($C$133=\"\",\"\",AH133/$C$133)","v":""},null,{"$f":"IF($C$133=\"\",\"\",AJ133/$C$133)","v":""},null,{"$f":"IF($C$133=\"\",\"\",AL133/$C$133)","v":""},null,{"$f":"IF($C$133=\"\",\"\",AN133/$C$133)","v":""},null,{"$f":"IF($C$133=\"\",\"\",AP133/$C$133)","v":""},null,{"$f":"IF($C$133=\"\",\"\",AR133/$C$133)","v":""},null,{"$f":"IF($C$133=\"\",\"\",AT133/$C$133)","v":""},null,{"$f":"IF($C$133=\"\",\"\",AV133/$C$133)","v":""},null,{"$f":"IF($C$133=\"\",\"\",AX133/$C$133)","v":""},null,{"$f":"IF($C$133=\"\",\"\",AZ133/$C$133)","v":""},null,{"$f":"IF($C$133=\"\",\"\",BB133/$C$133)","v":""},null,0]
[null,null,null,null,{"$f":"IF($C$134=\"\",\"\",F134/$C$134)","v":""},null,{"$f":"IF($C$134=\"\",\"\",H134/$C$134)","v":""},null,{"$f":"IF($C$134=\"\",\"\",J134/$C$134)","v":""},null,{"$f":"IF($C$134=\"\",\"\",L134/$C$134)","v":""},null,{"$f":"IF($C$134=\"\",\"\",N134/$C$134)","v":""},null,{"$f":"IF($C$134=\"\",\"\",P134/$C$134)","v":""},null,{"$f":"IF($C$134=\"\",\"\",R134/$C$134)","v":""},null,{"$f":"IF($C$134=\"\",\"\",T134/$C$134)","v":""},null,{"$f":"IF($C$134=\"\",\"\",V134/$C$134)","v":""},null,{"$f":"IF($C$134=\"\",\"\",X134/$C$134)","v":""},null,{"$f":"IF($C$134=\"\",\"\",Z134/$C$134)","v":""},null,{"$f":"IF($C$134=\"\",\"\",AB134/$C$134)","v":""},null,{"$f":"IF($C$134=\"\",\"\",AD134/$C$134)","v":""},null,{"$f":"IF($C$134=\"\",\"\",AF134/$C$134)","v":""},null,{"$f":"IF($C$134=\"\",\"\",AH134/$C$134)","v":""},null,{"$f":"IF($C$134=\"\",\"\",AJ134/$C$134)","v":""},null,{"$f":"IF($C$134=\"\",\"\",AL134/$C$134)","v":""},null,{"$f":"IF($C$134=\"\",\"\",AN134/$C$134)","v":""},null,{"$f":"IF($C$134=\"\",\"\",AP134/$C$134)","v":""},null,{"$f":"IF($C$134=\"\",\"\",AR134/$C$134)","v":""},null,{"$f":"IF($C$134=\"\",\"\",AT134/$C$134)","v":""},null,{"$f":"IF($C$134=\"\",\"\",AV134/$C$134)","v":""},null,{"$f":"IF($C$134=\"\",\"\",AX134/$C$134)","v":""},null,{"$f":"IF($C$134=\"\",\"\",AZ134/$C$134)","v":""},null,{"$f":"IF($C$134=\"\",\"\",BB134/$C$134)","v":""},null,0]
[null,null,null,null,{"$f":"IF($C$135=\"\",\"\",F135/$C$135)","v":""},null,{"$f":"IF($C$135=\"\",\"\",H135/$C$135)","v":""},null,{"$f":"IF($C$135=\"\",\"\",J135/$C$135)","v":""},null,{"$f":"IF($C$135=\"\",\"\",L135/$C$135)","v":""},null,{"$f":"IF($C$135=\"\",\"\",N135/$C$135)","v":""},null,{"$f":"IF($C$135=\"\",\"\",P135/$C$135)","v":""},null,{"$f":"IF($C$135=\"\",\"\",R135/$C$135)","v":""},null,{"$f":"IF($C$135=\"\",\"\",T135/$C$135)","v":""},null,{"$f":"IF($C$135=\"\",\"\",V135/$C$135)","v":""},null,{"$f":"IF($C$135=\"\",\"\",X135/$C$135)","v":""},null,{"$f":"IF($C$135=\"\",\"\",Z135/$C$135)","v":""},null,{"$f":"IF($C$135=\"\",\"\",AB135/$C$135)","v":""},null,{"$f":"IF($C$135=\"\",\"\",AD135/$C$135)","v":""},null,{"$f":"IF($C$135=\"\",\"\",AF135/$C$135)","v":""},null,{"$f":"IF($C$135=\"\",\"\",AH135/$C$135)","v":""},null,{"$f":"IF($C$135=\"\",\"\",AJ135/$C$135)","v":""},null,{"$f":"IF($C$135=\"\",\"\",AL135/$C$135)","v":""},null,{"$f":"IF($C$135=\"\",\"\",AN135/$C$135)","v":""},null,{"$f":"IF($C$135=\"\",\"\",AP135/$C$135)","v":""},null,{"$f":"IF($C$135=\"\",\"\",AR135/$C$135)","v":""},null,{"$f":"IF($C$135=\"\",\"\",AT135/$C$135)","v":""},null,{"$f":"IF($C$135=\"\",\"\",AV135/$C$135)","v":""},null,{"$f":"IF($C$135=\"\",\"\",AX135/$C$135)","v":""},null,{"$f":"IF($C$135=\"\",\"\",AZ135/$C$135)","v":""},null,{"$f":"IF($C$135=\"\",\"\",BB135/$C$135)","v":""},null,0]
[null,null,null,null,{"$f":"IF($C$136=\"\",\"\",F136/$C$136)","v":""},null,{"$f":"IF($C$136=\"\",\"\",H136/$C$136)","v":""},null,{"$f":"IF($C$136=\"\",\"\",J136/$C$136)","v":""},null,{"$f":"IF($C$136=\"\",\"\",L136/$C$136)","v":""},null,{"$f":"IF($C$136=\"\",\"\",N136/$C$136)","v":""},null,{"$f":"IF($C$136=\"\",\"\",P136/$C$136)","v":""},null,{"$f":"IF($C$136=\"\",\"\",R136/$C$136)","v":""},null,{"$f":"IF($C$136=\"\",\"\",T136/$C$136)","v":""},null,{"$f":"IF($C$136=\"\",\"\",V136/$C$136)","v":""},null,{"$f":"IF($C$136=\"\",\"\",X136/$C$136)","v":""},null,{"$f":"IF($C$136=\"\",\"\",Z136/$C$136)","v":""},null,{"$f":"IF($C$136=\"\",\"\",AB136/$C$136)","v":""},null,{"$f":"IF($C$136=\"\",\"\",AD136/$C$136)","v":""},null,{"$f":"IF($C$136=\"\",\"\",AF136/$C$136)","v":""},null,{"$f":"IF($C$136=\"\",\"\",AH136/$C$136)","v":""},null,{"$f":"IF($C$136=\"\",\"\",AJ136/$C$136)","v":""},null,{"$f":"IF($C$136=\"\",\"\",AL136/$C$136)","v":""},null,{"$f":"IF($C$136=\"\",\"\",AN136/$C$136)","v":""},null,{"$f":"IF($C$136=\"\",\"\",AP136/$C$136)","v":""},null,{"$f":"IF($C$136=\"\",\"\",AR136/$C$136)","v":""},null,{"$f":"IF($C$136=\"\",\"\",AT136/$C$136)","v":""},null,{"$f":"IF($C$136=\"\",\"\",AV136/$C$136)","v":""},null,{"$f":"IF($C$136=\"\",\"\",AX136/$C$136)","v":""},null,{"$f":"IF($C$136=\"\",\"\",AZ136/$C$136)","v":""},null,{"$f":"IF($C$136=\"\",\"\",BB136/$C$136)","v":""},null,0]
[null,null,null,null,{"$f":"IF($C$137=\"\",\"\",F137/$C$137)","v":""},null,{"$f":"IF($C$137=\"\",\"\",H137/$C$137)","v":""},null,{"$f":"IF($C$137=\"\",\"\",J137/$C$137)","v":""},null,{"$f":"IF($C$137=\"\",\"\",L137/$C$137)","v":""},null,{"$f":"IF($C$137=\"\",\"\",N137/$C$137)","v":""},null,{"$f":"IF($C$137=\"\",\"\",P137/$C$137)","v":""},null,{"$f":"IF($C$137=\"\",\"\",R137/$C$137)","v":""},null,{"$f":"IF($C$137=\"\",\"\",T137/$C$137)","v":""},null,{"$f":"IF($C$137=\"\",\"\",V137/$C$137)","v":""},null,{"$f":"IF($C$137=\"\",\"\",X137/$C$137)","v":""},null,{"$f":"IF($C$137=\"\",\"\",Z137/$C$137)","v":""},null,{"$f":"IF($C$137=\"\",\"\",AB137/$C$137)","v":""},null,{"$f":"IF($C$137=\"\",\"\",AD137/$C$137)","v":""},null,{"$f":"IF($C$137=\"\",\"\",AF137/$C$137)","v":""},null,{"$f":"IF($C$137=\"\",\"\",AH137/$C$137)","v":""},null,{"$f":"IF($C$137=\"\",\"\",AJ137/$C$137)","v":""},null,{"$f":"IF($C$137=\"\",\"\",AL137/$C$137)","v":""},null,{"$f":"IF($C$137=\"\",\"\",AN137/$C$137)","v":""},null,{"$f":"IF($C$137=\"\",\"\",AP137/$C$137)","v":""},null,{"$f":"IF($C$137=\"\",\"\",AR137/$C$137)","v":""},null,{"$f":"IF($C$137=\"\",\"\",AT137/$C$137)","v":""},null,{"$f":"IF($C$137=\"\",\"\",AV137/$C$137)","v":""},null,{"$f":"IF($C$137=\"\",\"\",AX137/$C$137)","v":""},null,{"$f":"IF($C$137=\"\",\"\",AZ137/$C$137)","v":""},null,{"$f":"IF($C$137=\"\",\"\",BB137/$C$137)","v":""},null,{"$f":"SUM(BB137,AZ137,AX137,AV137,AT137,AR137,AP137,AN137,AL137,AJ137,AH137,AF137,AD137,AB137,Z137,X137,V137,T137,R137,P137,N137,L137,J137,H137,F137)","v":0}]
["TOTAL HOURS",null,null,null,null,{"$f":"SUM(F119:F137)","v":0},null,{"$f":"SUM(H119:H137)","v":0},null,{"$f":"SUM(J119:J137)","v":0},null,{"$f":"SUM(L119:L137)","v":0},null,{"$f":"SUM(N119:N137)","v":0},null,{"$f":"SUM(P119:P137)","v":0},null,{"$f":"SUM(R119:R137)","v":0},null,{"$f":"SUM(T119:T137)","v":0},null,{"$f":"SUM(V119:V137)","v":0},null,{"$f":"SUM(X119:X137)","v":0},null,{"$f":"SUM(Z119:Z137)","v":0},null,{"$f":"SUM(AB119:AB137)","v":0},null,{"$f":"SUM(AD119:AD137)","v":0},null,{"$f":"SUM(AF119:AF137)","v":0},null,{"$f":"SUM(AH119:AH137)","v":0},null,{"$f":"SUM(AJ119:AJ137)","v":0},null,{"$f":"SUM(AL119:AL137)","v":0},null,{"$f":"SUM(AN119:AN137)","v":0},null,{"$f":"SUM(AP119:AP137)","v":0},null,{"$f":"SUM(AR119:AR137)","v":0},null,{"$f":"SUM(AT119:AT137)","v":0},null,{"$f":"SUM(AV119:AV137)","v":0},null,{"$f":"SUM(AX119:AX137)","v":0},null,{"$f":"SUM(AZ119:AZ137)","v":0},null,{"$f":"SUM(BB119:BB137)","v":0},{"$f":"SUM(E138:BB138)","v":0}]
["TOTAL WORKDAYS",null,null,null,null,{"$f":"F138/8","v":0},null,{"$f":"H138/8","v":0},null,{"$f":"J138/8","v":0},null,{"$f":"L138/8","v":0},null,{"$f":"N138/8","v":0},null,{"$f":"P138/8","v":0},null,{"$f":"R138/8","v":0},null,{"$f":"T138/8","v":0},null,{"$f":"V138/8","v":0},null,{"$f":"X138/8","v":0},null,{"$f":"Z138/8","v":0},null,{"$f":"AB138/8","v":0},null,{"$f":"AD138/8","v":0},null,0,null,{"$f":"AH138/8","v":0},null,0,null,{"$f":"AL138/8","v":0},null,0,null,{"$f":"AP138/8","v":0},null,0,null,{"$f":"AT138/8","v":0},null,{"$f":"AV138/8","v":0},null,{"$f":"AX138/8","v":0},null,{"$f":"AZ138/8","v":0},null,{"$f":"BB138/8","v":0},{"$f":"SUM(E139:BB139)","v":0}]
["TOTAL RAW LABOR",null,null,null,null,{"$f":"$E$13*F138","v":0},null,{"$f":"$G$13*H138","v":0},null,{"$f":"$I$13*J138","v":0},null,{"$f":"$K$13*L138","v":0},null,{"$f":"$M$13*N138","v":0},null,{"$f":"$O$13*P138","v":0},null,{"$f":"$Q$13*R138","v":0},null,{"$f":"$S$13*T138","v":0},null,{"$f":"$U$13*V138","v":0},null,{"$f":"$W$13*X138","v":0},null,{"$f":"$Y$13*Z138","v":0},null,{"$f":"$AA$13*AB138","v":0},null,{"$f":"$AC$13*AD138","v":0},null,{"$f":"$AC$13*AF138","v":0},null,{"$f":"$AC$13*AH138","v":0},null,{"$f":"$AC$13*AJ138","v":0},null,{"$f":"$AC$13*AL138","v":0},null,{"$f":"$AC$13*AN138","v":0},null,{"$f":"$AC$13*AP138","v":0},null,{"$f":"$AC$13*AR138","v":0},null,{"$f":"$AC$13*AT138","v":0},null,{"$f":"$AC$13*AV138","v":0},null,{"$f":"$AC$13*AX138","v":0},null,{"$f":"$AC$13*AZ138","v":0},null,{"$f":"$AC$13*BB138","v":0},{"$f":"SUM(E140:BB140)","v":0}]
["Task 5.0     ","FIELD EQUIPMENT INVENTORIES"]
[5.0999999999999996,"Existing Data Collection",null,null,{"$f":"IF($C$142=\"\",\"\",F142/$C$142)","v":""},null,{"$f":"IF($C$142=\"\",\"\",H142/$C$142)","v":""},null,{"$f":"IF($C$142=\"\",\"\",J142/$C$142)","v":""},null,{"$f":"IF($C$142=\"\",\"\",L142/$C$142)","v":""},null,{"$f":"IF($C$142=\"\",\"\",N142/$C$142)","v":""},null,{"$f":"IF($C$142=\"\",\"\",P142/$C$142)","v":""},null,{"$f":"IF($C$142=\"\",\"\",R142/$C$142)","v":""},null,{"$f":"IF($C$142=\"\",\"\",T142/$C$142)","v":""},null,{"$f":"IF($C$142=\"\",\"\",V142/$C$142)","v":""},null,{"$f":"IF($C$142=\"\",\"\",X142/$C$142)","v":""},null,{"$f":"IF($C$142=\"\",\"\",Z142/$C$142)","v":""},null,{"$f":"IF($C$142=\"\",\"\",AB142/$C$142)","v":""},null,{"$f":"IF($C$142=\"\",\"\",AD142/$C$142)","v":""},null,{"$f":"IF($C$142=\"\",\"\",AF142/$C$142)","v":""},null,{"$f":"IF($C$142=\"\",\"\",AH142/$C$142)","v":""},null,{"$f":"IF($C$142=\"\",\"\",AJ142/$C$142)","v":""},null,{"$f":"IF($C$142=\"\",\"\",AL142/$C$142)","v":""},null,{"$f":"IF($C$142=\"\",\"\",AN142/$C$142)","v":""},null,{"$f":"IF($C$142=\"\",\"\",AP142/$C$142)","v":""},null,{"$f":"IF($C$142=\"\",\"\",AR142/$C$142)","v":""},null,{"$f":"IF($C$142=\"\",\"\",AT142/$C$142)","v":""},null,{"$f":"IF($C$142=\"\",\"\",AV142/$C$142)","v":""},null,{"$f":"IF($C$142=\"\",\"\",AX142/$C$142)","v":""},null,{"$f":"IF($C$142=\"\",\"\",AZ142/$C$142)","v":""},null,{"$f":"IF($C$142=\"\",\"\",BB142/$C$142)","v":""},null,{"$f":"SUM(BB142,AZ142,AX142,AV142,AT142,AR142,AP142,AN142,AL142,AJ142,AH142,AF142,AD142,AB142,Z142,X142,V142,T142,R142,P142,N142,L142,J142,H142,F142)","v":0}]
[5.2,"Signal Inventories"]
["    5.2.1","    Inventory Existing NCDOT Signals",null,null,{"$f":"IF($C$144=\"\",\"\",F144/$C$144)","v":""},null,{"$f":"IF($C$144=\"\",\"\",H144/$C$144)","v":""},null,{"$f":"IF($C$144=\"\",\"\",J144/$C$144)","v":""},null,{"$f":"IF($C$144=\"\",\"\",L144/$C$144)","v":""},null,{"$f":"IF($C$144=\"\",\"\",N144/$C$144)","v":""},null,{"$f":"IF($C$144=\"\",\"\",P144/$C$144)","v":""},null,{"$f":"IF($C$144=\"\",\"\",R144/$C$144)","v":""},null,{"$f":"IF($C$144=\"\",\"\",T144/$C$144)","v":""},null,{"$f":"IF($C$144=\"\",\"\",V144/$C$144)","v":""},null,{"$f":"IF($C$144=\"\",\"\",X144/$C$144)","v":""},null,{"$f":"IF($C$144=\"\",\"\",Z144/$C$144)","v":""},null,{"$f":"IF($C$144=\"\",\"\",AB144/$C$144)","v":""},null,{"$f":"IF($C$144=\"\",\"\",AD144/$C$144)","v":""},null,{"$f":"IF($C$144=\"\",\"\",AF144/$C$144)","v":""},null,{"$f":"IF($C$144=\"\",\"\",AH144/$C$144)","v":""},null,{"$f":"IF($C$144=\"\",\"\",AJ144/$C$144)","v":""},null,{"$f":"IF($C$144=\"\",\"\",AL144/$C$144)","v":""},null,{"$f":"IF($C$144=\"\",\"\",AN144/$C$144)","v":""},null,{"$f":"IF($C$144=\"\",\"\",AP144/$C$144)","v":""},null,{"$f":"IF($C$144=\"\",\"\",AR144/$C$144)","v":""},null,{"$f":"IF($C$144=\"\",\"\",AT144/$C$144)","v":""},null,{"$f":"IF($C$144=\"\",\"\",AV144/$C$144)","v":""},null,{"$f":"IF($C$144=\"\",\"\",AX144/$C$144)","v":""},null,{"$f":"IF($C$144=\"\",\"\",AZ144/$C$144)","v":""},null,{"$f":"IF($C$144=\"\",\"\",BB144/$C$144)","v":""},null,{"$f":"SUM(BB144,AZ144,AX144,AV144,AT144,AR144,AP144,AN144,AL144,AJ144,AH144,AF144,AD144,AB144,Z144,X144,V144,T144,R144,P144,N144,L144,J144,H144,F144)","v":0}]
["    5.2.2","    Inventory Existing City Signals",null,null,{"$f":"IF($C$145=\"\",\"\",F145/$C$145)","v":""},null,{"$f":"IF($C$145=\"\",\"\",H145/$C$145)","v":""},null,{"$f":"IF($C$145=\"\",\"\",J145/$C$145)","v":""},null,{"$f":"IF($C$145=\"\",\"\",L145/$C$145)","v":""},null,{"$f":"IF($C$145=\"\",\"\",N145/$C$145)","v":""},null,{"$f":"IF($C$145=\"\",\"\",P145/$C$145)","v":""},null,{"$f":"IF($C$145=\"\",\"\",R145/$C$145)","v":""},null,{"$f":"IF($C$145=\"\",\"\",T145/$C$145)","v":""},null,{"$f":"IF($C$145=\"\",\"\",V145/$C$145)","v":""},null,{"$f":"IF($C$145=\"\",\"\",X145/$C$145)","v":""},null,{"$f":"IF($C$145=\"\",\"\",Z145/$C$145)","v":""},null,{"$f":"IF($C$145=\"\",\"\",AB145/$C$145)","v":""},null,{"$f":"IF($C$145=\"\",\"\",AD145/$C$145)","v":""},null,{"$f":"IF($C$145=\"\",\"\",AF145/$C$145)","v":""},null,{"$f":"IF($C$145=\"\",\"\",AH145/$C$145)","v":""},null,{"$f":"IF($C$145=\"\",\"\",AJ145/$C$145)","v":""},null,{"$f":"IF($C$145=\"\",\"\",AL145/$C$145)","v":""},null,{"$f":"IF($C$145=\"\",\"\",AN145/$C$145)","v":""},null,{"$f":"IF($C$145=\"\",\"\",AP145/$C$145)","v":""},null,{"$f":"IF($C$145=\"\",\"\",AR145/$C$145)","v":""},null,{"$f":"IF($C$145=\"\",\"\",AT145/$C$145)","v":""},null,{"$f":"IF($C$145=\"\",\"\",AV145/$C$145)","v":""},null,{"$f":"IF($C$145=\"\",\"\",AX145/$C$145)","v":""},null,{"$f":"IF($C$145=\"\",\"\",AZ145/$C$145)","v":""},null,{"$f":"IF($C$145=\"\",\"\",BB145/$C$145)","v":""},null,0]
["    5.2.3",null,null,null,{"$f":"IF($C$146=\"\",\"\",F146/$C$146)","v":""},null,{"$f":"IF($C$146=\"\",\"\",H146/$C$146)","v":""},null,{"$f":"IF($C$146=\"\",\"\",J146/$C$146)","v":""},null,{"$f":"IF($C$146=\"\",\"\",L146/$C$146)","v":""},null,{"$f":"IF($C$146=\"\",\"\",N146/$C$146)","v":""},null,{"$f":"IF($C$146=\"\",\"\",P146/$C$146)","v":""},null,{"$f":"IF($C$146=\"\",\"\",R146/$C$146)","v":""},null,{"$f":"IF($C$146=\"\",\"\",T146/$C$146)","v":""},null,{"$f":"IF($C$146=\"\",\"\",V146/$C$146)","v":""},null,{"$f":"IF($C$146=\"\",\"\",X146/$C$146)","v":""},null,{"$f":"IF($C$146=\"\",\"\",Z146/$C$146)","v":""},null,{"$f":"IF($C$146=\"\",\"\",AB146/$C$146)","v":""},null,{"$f":"IF($C$146=\"\",\"\",AD146/$C$146)","v":""},null,{"$f":"IF($C$146=\"\",\"\",AF146/$C$146)","v":""},null,{"$f":"IF($C$146=\"\",\"\",AH146/$C$146)","v":""},null,{"$f":"IF($C$146=\"\",\"\",AJ146/$C$146)","v":""},null,{"$f":"IF($C$146=\"\",\"\",AL146/$C$146)","v":""},null,{"$f":"IF($C$146=\"\",\"\",AN146/$C$146)","v":""},null,{"$f":"IF($C$146=\"\",\"\",AP146/$C$146)","v":""},null,{"$f":"IF($C$146=\"\",\"\",AR146/$C$146)","v":""},null,{"$f":"IF($C$146=\"\",\"\",AT146/$C$146)","v":""},null,{"$f":"IF($C$146=\"\",\"\",AV146/$C$146)","v":""},null,{"$f":"IF($C$146=\"\",\"\",AX146/$C$146)","v":""},null,{"$f":"IF($C$146=\"\",\"\",AZ146/$C$146)","v":""},null,{"$f":"IF($C$146=\"\",\"\",BB146/$C$146)","v":""},null,0]
["    5.2.4",null,null,null,{"$f":"IF($C$147=\"\",\"\",F147/$C$147)","v":""},null,{"$f":"IF($C$147=\"\",\"\",H147/$C$147)","v":""},null,{"$f":"IF($C$147=\"\",\"\",J147/$C$147)","v":""},null,{"$f":"IF($C$147=\"\",\"\",L147/$C$147)","v":""},null,{"$f":"IF($C$147=\"\",\"\",N147/$C$147)","v":""},null,{"$f":"IF($C$147=\"\",\"\",P147/$C$147)","v":""},null,{"$f":"IF($C$147=\"\",\"\",R147/$C$147)","v":""},null,{"$f":"IF($C$147=\"\",\"\",T147/$C$147)","v":""},null,{"$f":"IF($C$147=\"\",\"\",V147/$C$147)","v":""},null,{"$f":"IF($C$147=\"\",\"\",X147/$C$147)","v":""},null,{"$f":"IF($C$147=\"\",\"\",Z147/$C$147)","v":""},null,{"$f":"IF($C$147=\"\",\"\",AB147/$C$147)","v":""},null,{"$f":"IF($C$147=\"\",\"\",AD147/$C$147)","v":""},null,{"$f":"IF($C$147=\"\",\"\",AF147/$C$147)","v":""},null,{"$f":"IF($C$147=\"\",\"\",AH147/$C$147)","v":""},null,{"$f":"IF($C$147=\"\",\"\",AJ147/$C$147)","v":""},null,{"$f":"IF($C$147=\"\",\"\",AL147/$C$147)","v":""},null,{"$f":"IF($C$147=\"\",\"\",AN147/$C$147)","v":""},null,{"$f":"IF($C$147=\"\",\"\",AP147/$C$147)","v":""},null,{"$f":"IF($C$147=\"\",\"\",AR147/$C$147)","v":""},null,{"$f":"IF($C$147=\"\",\"\",AT147/$C$147)","v":""},null,{"$f":"IF($C$147=\"\",\"\",AV147/$C$147)","v":""},null,{"$f":"IF($C$147=\"\",\"\",AX147/$C$147)","v":""},null,{"$f":"IF($C$147=\"\",\"\",AZ147/$C$147)","v":""},null,{"$f":"IF($C$147=\"\",\"\",BB147/$C$147)","v":""},null,0]
["    5.2.5",null,null,null,{"$f":"IF($C$148=\"\",\"\",F148/$C$148)","v":""},null,{"$f":"IF($C$148=\"\",\"\",H148/$C$148)","v":""},null,{"$f":"IF($C$148=\"\",\"\",J148/$C$148)","v":""},null,{"$f":"IF($C$148=\"\",\"\",L148/$C$148)","v":""},null,{"$f":"IF($C$148=\"\",\"\",N148/$C$148)","v":""},null,{"$f":"IF($C$148=\"\",\"\",P148/$C$148)","v":""},null,{"$f":"IF($C$148=\"\",\"\",R148/$C$148)","v":""},null,{"$f":"IF($C$148=\"\",\"\",T148/$C$148)","v":""},null,{"$f":"IF($C$148=\"\",\"\",V148/$C$148)","v":""},null,{"$f":"IF($C$148=\"\",\"\",X148/$C$148)","v":""},null,{"$f":"IF($C$148=\"\",\"\",Z148/$C$148)","v":""},null,{"$f":"IF($C$148=\"\",\"\",AB148/$C$148)","v":""},null,{"$f":"IF($C$148=\"\",\"\",AD148/$C$148)","v":""},null,{"$f":"IF($C$148=\"\",\"\",AF148/$C$148)","v":""},null,{"$f":"IF($C$148=\"\",\"\",AH148/$C$148)","v":""},null,{"$f":"IF($C$148=\"\",\"\",AJ148/$C$148)","v":""},null,{"$f":"IF($C$148=\"\",\"\",AL148/$C$148)","v":""},null,{"$f":"IF($C$148=\"\",\"\",AN148/$C$148)","v":""},null,{"$f":"IF($C$148=\"\",\"\",AP148/$C$148)","v":""},null,{"$f":"IF($C$148=\"\",\"\",AR148/$C$148)","v":""},null,{"$f":"IF($C$148=\"\",\"\",AT148/$C$148)","v":""},null,{"$f":"IF($C$148=\"\",\"\",AV148/$C$148)","v":""},null,{"$f":"IF($C$148=\"\",\"\",AX148/$C$148)","v":""},null,{"$f":"IF($C$148=\"\",\"\",AZ148/$C$148)","v":""},null,{"$f":"IF($C$148=\"\",\"\",BB148/$C$148)","v":""},null,0]
[5.3,"Cabinet Replacement and Foundation Requirements",null,null,{"$f":"IF($C$149=\"\",\"\",F149/$C$149)","v":""},null,{"$f":"IF($C$149=\"\",\"\",H149/$C$149)","v":""},null,{"$f":"IF($C$149=\"\",\"\",J149/$C$149)","v":""},null,{"$f":"IF($C$149=\"\",\"\",L149/$C$149)","v":""},null,{"$f":"IF($C$149=\"\",\"\",N149/$C$149)","v":""},null,{"$f":"IF($C$149=\"\",\"\",P149/$C$149)","v":""},null,{"$f":"IF($C$149=\"\",\"\",R149/$C$149)","v":""},null,{"$f":"IF($C$149=\"\",\"\",T149/$C$149)","v":""},null,{"$f":"IF($C$149=\"\",\"\",V149/$C$149)","v":""},null,{"$f":"IF($C$149=\"\",\"\",X149/$C$149)","v":""},null,{"$f":"IF($C$149=\"\",\"\",Z149/$C$149)","v":""},null,{"$f":"IF($C$149=\"\",\"\",AB149/$C$149)","v":""},null,{"$f":"IF($C$149=\"\",\"\",AD149/$C$149)","v":""},null,{"$f":"IF($C$149=\"\",\"\",AF149/$C$149)","v":""},null,{"$f":"IF($C$149=\"\",\"\",AH149/$C$149)","v":""},null,{"$f":"IF($C$149=\"\",\"\",AJ149/$C$149)","v":""},null,{"$f":"IF($C$149=\"\",\"\",AL149/$C$149)","v":""},null,{"$f":"IF($C$149=\"\",\"\",AN149/$C$149)","v":""},null,{"$f":"IF($C$149=\"\",\"\",AP149/$C$149)","v":""},null,{"$f":"IF($C$149=\"\",\"\",AR149/$C$149)","v":""},null,{"$f":"IF($C$149=\"\",\"\",AT149/$C$149)","v":""},null,{"$f":"IF($C$149=\"\",\"\",AV149/$C$149)","v":""},null,{"$f":"IF($C$149=\"\",\"\",AX149/$C$149)","v":""},null,{"$f":"IF($C$149=\"\",\"\",AZ149/$C$149)","v":""},null,{"$f":"IF($C$149=\"\",\"\",BB149/$C$149)","v":""},null,0]
[5.4,"Inventory CCTV Camera Assemblies",null,null,{"$f":"IF($C$150=\"\",\"\",F150/$C$150)","v":""},null,{"$f":"IF($C$150=\"\",\"\",H150/$C$150)","v":""},null,{"$f":"IF($C$150=\"\",\"\",J150/$C$150)","v":""},null,{"$f":"IF($C$150=\"\",\"\",L150/$C$150)","v":""},null,{"$f":"IF($C$150=\"\",\"\",N150/$C$150)","v":""},null,{"$f":"IF($C$150=\"\",\"\",P150/$C$150)","v":""},null,{"$f":"IF($C$150=\"\",\"\",R150/$C$150)","v":""},null,{"$f":"IF($C$150=\"\",\"\",T150/$C$150)","v":""},null,{"$f":"IF($C$150=\"\",\"\",V150/$C$150)","v":""},null,{"$f":"IF($C$150=\"\",\"\",X150/$C$150)","v":""},null,{"$f":"IF($C$150=\"\",\"\",Z150/$C$150)","v":""},null,{"$f":"IF($C$150=\"\",\"\",AB150/$C$150)","v":""},null,{"$f":"IF($C$150=\"\",\"\",AD150/$C$150)","v":""},null,{"$f":"IF($C$150=\"\",\"\",AF150/$C$150)","v":""},null,{"$f":"IF($C$150=\"\",\"\",AH150/$C$150)","v":""},null,{"$f":"IF($C$150=\"\",\"\",AJ150/$C$150)","v":""},null,{"$f":"IF($C$150=\"\",\"\",AL150/$C$150)","v":""},null,{"$f":"IF($C$150=\"\",\"\",AN150/$C$150)","v":""},null,{"$f":"IF($C$150=\"\",\"\",AP150/$C$150)","v":""},null,{"$f":"IF($C$150=\"\",\"\",AR150/$C$150)","v":""},null,{"$f":"IF($C$150=\"\",\"\",AT150/$C$150)","v":""},null,{"$f":"IF($C$150=\"\",\"\",AV150/$C$150)","v":""},null,{"$f":"IF($C$150=\"\",\"\",AX150/$C$150)","v":""},null,{"$f":"IF($C$150=\"\",\"\",AZ150/$C$150)","v":""},null,{"$f":"IF($C$150=\"\",\"\",BB150/$C$150)","v":""},null,0]
[5.5,"Compile and Summarize Inventory Data",null,null,{"$f":"IF($C$151=\"\",\"\",F151/$C$151)","v":""},null,{"$f":"IF($C$151=\"\",\"\",H151/$C$151)","v":""},null,{"$f":"IF($C$151=\"\",\"\",J151/$C$151)","v":""},null,{"$f":"IF($C$151=\"\",\"\",L151/$C$151)","v":""},null,{"$f":"IF($C$151=\"\",\"\",N151/$C$151)","v":""},null,{"$f":"IF($C$151=\"\",\"\",P151/$C$151)","v":""},null,{"$f":"IF($C$151=\"\",\"\",R151/$C$151)","v":""},null,{"$f":"IF($C$151=\"\",\"\",T151/$C$151)","v":""},null,{"$f":"IF($C$151=\"\",\"\",V151/$C$151)","v":""},null,{"$f":"IF($C$151=\"\",\"\",X151/$C$151)","v":""},null,{"$f":"IF($C$151=\"\",\"\",Z151/$C$151)","v":""},null,{"$f":"IF($C$151=\"\",\"\",AB151/$C$151)","v":""},null,{"$f":"IF($C$151=\"\",\"\",AD151/$C$151)","v":""},null,{"$f":"IF($C$151=\"\",\"\",AF151/$C$151)","v":""},null,{"$f":"IF($C$151=\"\",\"\",AH151/$C$151)","v":""},null,{"$f":"IF($C$151=\"\",\"\",AJ151/$C$151)","v":""},null,{"$f":"IF($C$151=\"\",\"\",AL151/$C$151)","v":""},null,{"$f":"IF($C$151=\"\",\"\",AN151/$C$151)","v":""},null,{"$f":"IF($C$151=\"\",\"\",AP151/$C$151)","v":""},null,{"$f":"IF($C$151=\"\",\"\",AR151/$C$151)","v":""},null,{"$f":"IF($C$151=\"\",\"\",AT151/$C$151)","v":""},null,{"$f":"IF($C$151=\"\",\"\",AV151/$C$151)","v":""},null,{"$f":"IF($C$151=\"\",\"\",AX151/$C$151)","v":""},null,{"$f":"IF($C$151=\"\",\"\",AZ151/$C$151)","v":""},null,{"$f":"IF($C$151=\"\",\"\",BB151/$C$151)","v":""},null,0]
[null,null,null,null,{"$f":"IF($C$152=\"\",\"\",F152/$C$152)","v":""},null,{"$f":"IF($C$152=\"\",\"\",H152/$C$152)","v":""},null,{"$f":"IF($C$152=\"\",\"\",J152/$C$152)","v":""},null,{"$f":"IF($C$152=\"\",\"\",L152/$C$152)","v":""},null,{"$f":"IF($C$152=\"\",\"\",N152/$C$152)","v":""},null,{"$f":"IF($C$152=\"\",\"\",P152/$C$152)","v":""},null,{"$f":"IF($C$152=\"\",\"\",R152/$C$152)","v":""},null,{"$f":"IF($C$152=\"\",\"\",T152/$C$152)","v":""},null,{"$f":"IF($C$152=\"\",\"\",V152/$C$152)","v":""},null,{"$f":"IF($C$152=\"\",\"\",X152/$C$152)","v":""},null,{"$f":"IF($C$152=\"\",\"\",Z152/$C$152)","v":""},null,{"$f":"IF($C$152=\"\",\"\",AB152/$C$152)","v":""},null,{"$f":"IF($C$152=\"\",\"\",AD152/$C$152)","v":""},null,{"$f":"IF($C$152=\"\",\"\",AF152/$C$152)","v":""},null,{"$f":"IF($C$152=\"\",\"\",AH152/$C$152)","v":""},null,{"$f":"IF($C$152=\"\",\"\",AJ152/$C$152)","v":""},null,{"$f":"IF($C$152=\"\",\"\",AL152/$C$152)","v":""},null,{"$f":"IF($C$152=\"\",\"\",AN152/$C$152)","v":""},null,{"$f":"IF($C$152=\"\",\"\",AP152/$C$152)","v":""},null,{"$f":"IF($C$152=\"\",\"\",AR152/$C$152)","v":""},null,{"$f":"IF($C$152=\"\",\"\",AT152/$C$152)","v":""},null,{"$f":"IF($C$152=\"\",\"\",AV152/$C$152)","v":""},null,{"$f":"IF($C$152=\"\",\"\",AX152/$C$152)","v":""},null,{"$f":"IF($C$152=\"\",\"\",AZ152/$C$152)","v":""},null,{"$f":"IF($C$152=\"\",\"\",BB152/$C$152)","v":""},null,0]
[null,null,null,null,{"$f":"IF($C$153=\"\",\"\",F153/$C$153)","v":""},null,{"$f":"IF($C$153=\"\",\"\",H153/$C$153)","v":""},null,{"$f":"IF($C$153=\"\",\"\",J153/$C$153)","v":""},null,{"$f":"IF($C$153=\"\",\"\",L153/$C$153)","v":""},null,{"$f":"IF($C$153=\"\",\"\",N153/$C$153)","v":""},null,{"$f":"IF($C$153=\"\",\"\",P153/$C$153)","v":""},null,{"$f":"IF($C$153=\"\",\"\",R153/$C$153)","v":""},null,{"$f":"IF($C$153=\"\",\"\",T153/$C$153)","v":""},null,{"$f":"IF($C$153=\"\",\"\",V153/$C$153)","v":""},null,{"$f":"IF($C$153=\"\",\"\",X153/$C$153)","v":""},null,{"$f":"IF($C$153=\"\",\"\",Z153/$C$153)","v":""},null,{"$f":"IF($C$153=\"\",\"\",AB153/$C$153)","v":""},null,{"$f":"IF($C$153=\"\",\"\",AD153/$C$153)","v":""},null,{"$f":"IF($C$153=\"\",\"\",AF153/$C$153)","v":""},null,{"$f":"IF($C$153=\"\",\"\",AH153/$C$153)","v":""},null,{"$f":"IF($C$153=\"\",\"\",AJ153/$C$153)","v":""},null,{"$f":"IF($C$153=\"\",\"\",AL153/$C$153)","v":""},null,{"$f":"IF($C$153=\"\",\"\",AN153/$C$153)","v":""},null,{"$f":"IF($C$153=\"\",\"\",AP153/$C$153)","v":""},null,{"$f":"IF($C$153=\"\",\"\",AR153/$C$153)","v":""},null,{"$f":"IF($C$153=\"\",\"\",AT153/$C$153)","v":""},null,{"$f":"IF($C$153=\"\",\"\",AV153/$C$153)","v":""},null,{"$f":"IF($C$153=\"\",\"\",AX153/$C$153)","v":""},null,{"$f":"IF($C$153=\"\",\"\",AZ153/$C$153)","v":""},null,{"$f":"IF($C$153=\"\",\"\",BB153/$C$153)","v":""},null,0]
[null,null,null,null,{"$f":"IF($C$154=\"\",\"\",F154/$C$154)","v":""},null,{"$f":"IF($C$154=\"\",\"\",H154/$C$154)","v":""},null,{"$f":"IF($C$154=\"\",\"\",J154/$C$154)","v":""},null,{"$f":"IF($C$154=\"\",\"\",L154/$C$154)","v":""},null,{"$f":"IF($C$154=\"\",\"\",N154/$C$154)","v":""},null,{"$f":"IF($C$154=\"\",\"\",P154/$C$154)","v":""},null,{"$f":"IF($C$154=\"\",\"\",R154/$C$154)","v":""},null,{"$f":"IF($C$154=\"\",\"\",T154/$C$154)","v":""},null,{"$f":"IF($C$154=\"\",\"\",V154/$C$154)","v":""},null,{"$f":"IF($C$154=\"\",\"\",X154/$C$154)","v":""},null,{"$f":"IF($C$154=\"\",\"\",Z154/$C$154)","v":""},null,{"$f":"IF($C$154=\"\",\"\",AB154/$C$154)","v":""},null,{"$f":"IF($C$154=\"\",\"\",AD154/$C$154)","v":""},null,{"$f":"IF($C$154=\"\",\"\",AF154/$C$154)","v":""},null,{"$f":"IF($C$154=\"\",\"\",AH154/$C$154)","v":""},null,{"$f":"IF($C$154=\"\",\"\",AJ154/$C$154)","v":""},null,{"$f":"IF($C$154=\"\",\"\",AL154/$C$154)","v":""},null,{"$f":"IF($C$154=\"\",\"\",AN154/$C$154)","v":""},null,{"$f":"IF($C$154=\"\",\"\",AP154/$C$154)","v":""},null,{"$f":"IF($C$154=\"\",\"\",AR154/$C$154)","v":""},null,{"$f":"IF($C$154=\"\",\"\",AT154/$C$154)","v":""},null,{"$f":"IF($C$154=\"\",\"\",AV154/$C$154)","v":""},null,{"$f":"IF($C$154=\"\",\"\",AX154/$C$154)","v":""},null,{"$f":"IF($C$154=\"\",\"\",AZ154/$C$154)","v":""},null,{"$f":"IF($C$154=\"\",\"\",BB154/$C$154)","v":""},null,0]
[null,null,null,null,{"$f":"IF($C$155=\"\",\"\",F155/$C$155)","v":""},null,{"$f":"IF($C$155=\"\",\"\",H155/$C$155)","v":""},null,{"$f":"IF($C$155=\"\",\"\",J155/$C$155)","v":""},null,{"$f":"IF($C$155=\"\",\"\",L155/$C$155)","v":""},null,{"$f":"IF($C$155=\"\",\"\",N155/$C$155)","v":""},null,{"$f":"IF($C$155=\"\",\"\",P155/$C$155)","v":""},null,{"$f":"IF($C$155=\"\",\"\",R155/$C$155)","v":""},null,{"$f":"IF($C$155=\"\",\"\",T155/$C$155)","v":""},null,{"$f":"IF($C$155=\"\",\"\",V155/$C$155)","v":""},null,{"$f":"IF($C$155=\"\",\"\",X155/$C$155)","v":""},null,{"$f":"IF($C$155=\"\",\"\",Z155/$C$155)","v":""},null,{"$f":"IF($C$155=\"\",\"\",AB155/$C$155)","v":""},null,{"$f":"IF($C$155=\"\",\"\",AD155/$C$155)","v":""},null,{"$f":"IF($C$155=\"\",\"\",AF155/$C$155)","v":""},null,{"$f":"IF($C$155=\"\",\"\",AH155/$C$155)","v":""},null,{"$f":"IF($C$155=\"\",\"\",AJ155/$C$155)","v":""},null,{"$f":"IF($C$155=\"\",\"\",AL155/$C$155)","v":""},null,{"$f":"IF($C$155=\"\",\"\",AN155/$C$155)","v":""},null,{"$f":"IF($C$155=\"\",\"\",AP155/$C$155)","v":""},null,{"$f":"IF($C$155=\"\",\"\",AR155/$C$155)","v":""},null,{"$f":"IF($C$155=\"\",\"\",AT155/$C$155)","v":""},null,{"$f":"IF($C$155=\"\",\"\",AV155/$C$155)","v":""},null,{"$f":"IF($C$155=\"\",\"\",AX155/$C$155)","v":""},null,{"$f":"IF($C$155=\"\",\"\",AZ155/$C$155)","v":""},null,{"$f":"IF($C$155=\"\",\"\",BB155/$C$155)","v":""},null,0]
[null,null,null,null,{"$f":"IF($C$156=\"\",\"\",F156/$C$156)","v":""},null,{"$f":"IF($C$156=\"\",\"\",H156/$C$156)","v":""},null,{"$f":"IF($C$156=\"\",\"\",J156/$C$156)","v":""},null,{"$f":"IF($C$156=\"\",\"\",L156/$C$156)","v":""},null,{"$f":"IF($C$156=\"\",\"\",N156/$C$156)","v":""},null,{"$f":"IF($C$156=\"\",\"\",P156/$C$156)","v":""},null,{"$f":"IF($C$156=\"\",\"\",R156/$C$156)","v":""},null,{"$f":"IF($C$156=\"\",\"\",T156/$C$156)","v":""},null,{"$f":"IF($C$156=\"\",\"\",V156/$C$156)","v":""},null,{"$f":"IF($C$156=\"\",\"\",X156/$C$156)","v":""},null,{"$f":"IF($C$156=\"\",\"\",Z156/$C$156)","v":""},null,{"$f":"IF($C$156=\"\",\"\",AB156/$C$156)","v":""},null,{"$f":"IF($C$156=\"\",\"\",AD156/$C$156)","v":""},null,{"$f":"IF($C$156=\"\",\"\",AF156/$C$156)","v":""},null,{"$f":"IF($C$156=\"\",\"\",AH156/$C$156)","v":""},null,{"$f":"IF($C$156=\"\",\"\",AJ156/$C$156)","v":""},null,{"$f":"IF($C$156=\"\",\"\",AL156/$C$156)","v":""},null,{"$f":"IF($C$156=\"\",\"\",AN156/$C$156)","v":""},null,{"$f":"IF($C$156=\"\",\"\",AP156/$C$156)","v":""},null,{"$f":"IF($C$156=\"\",\"\",AR156/$C$156)","v":""},null,{"$f":"IF($C$156=\"\",\"\",AT156/$C$156)","v":""},null,{"$f":"IF($C$156=\"\",\"\",AV156/$C$156)","v":""},null,{"$f":"IF($C$156=\"\",\"\",AX156/$C$156)","v":""},null,{"$f":"IF($C$156=\"\",\"\",AZ156/$C$156)","v":""},null,{"$f":"IF($C$156=\"\",\"\",BB156/$C$156)","v":""},null,0]
[null,null,null,null,{"$f":"IF($C$157=\"\",\"\",F157/$C$157)","v":""},null,{"$f":"IF($C$157=\"\",\"\",H157/$C$157)","v":""},null,{"$f":"IF($C$157=\"\",\"\",J157/$C$157)","v":""},null,{"$f":"IF($C$157=\"\",\"\",L157/$C$157)","v":""},null,{"$f":"IF($C$157=\"\",\"\",N157/$C$157)","v":""},null,{"$f":"IF($C$157=\"\",\"\",P157/$C$157)","v":""},null,{"$f":"IF($C$157=\"\",\"\",R157/$C$157)","v":""},null,{"$f":"IF($C$157=\"\",\"\",T157/$C$157)","v":""},null,{"$f":"IF($C$157=\"\",\"\",V157/$C$157)","v":""},null,{"$f":"IF($C$157=\"\",\"\",X157/$C$157)","v":""},null,{"$f":"IF($C$157=\"\",\"\",Z157/$C$157)","v":""},null,{"$f":"IF($C$157=\"\",\"\",AB157/$C$157)","v":""},null,{"$f":"IF($C$157=\"\",\"\",AD157/$C$157)","v":""},null,{"$f":"IF($C$157=\"\",\"\",AF157/$C$157)","v":""},null,{"$f":"IF($C$157=\"\",\"\",AH157/$C$157)","v":""},null,{"$f":"IF($C$157=\"\",\"\",AJ157/$C$157)","v":""},null,{"$f":"IF($C$157=\"\",\"\",AL157/$C$157)","v":""},null,{"$f":"IF($C$157=\"\",\"\",AN157/$C$157)","v":""},null,{"$f":"IF($C$157=\"\",\"\",AP157/$C$157)","v":""},null,{"$f":"IF($C$157=\"\",\"\",AR157/$C$157)","v":""},null,{"$f":"IF($C$157=\"\",\"\",AT157/$C$157)","v":""},null,{"$f":"IF($C$157=\"\",\"\",AV157/$C$157)","v":""},null,{"$f":"IF($C$157=\"\",\"\",AX157/$C$157)","v":""},null,{"$f":"IF($C$157=\"\",\"\",AZ157/$C$157)","v":""},null,{"$f":"IF($C$157=\"\",\"\",BB157/$C$157)","v":""},null,0]
[null,null,null,null,{"$f":"IF($C$158=\"\",\"\",F158/$C$158)","v":""},null,{"$f":"IF($C$158=\"\",\"\",H158/$C$158)","v":""},null,{"$f":"IF($C$158=\"\",\"\",J158/$C$158)","v":""},null,{"$f":"IF($C$158=\"\",\"\",L158/$C$158)","v":""},null,{"$f":"IF($C$158=\"\",\"\",N158/$C$158)","v":""},null,{"$f":"IF($C$158=\"\",\"\",P158/$C$158)","v":""},null,{"$f":"IF($C$158=\"\",\"\",R158/$C$158)","v":""},null,{"$f":"IF($C$158=\"\",\"\",T158/$C$158)","v":""},null,{"$f":"IF($C$158=\"\",\"\",V158/$C$158)","v":""},null,{"$f":"IF($C$158=\"\",\"\",X158/$C$158)","v":""},null,{"$f":"IF($C$158=\"\",\"\",Z158/$C$158)","v":""},null,{"$f":"IF($C$158=\"\",\"\",AB158/$C$158)","v":""},null,{"$f":"IF($C$158=\"\",\"\",AD158/$C$158)","v":""},null,{"$f":"IF($C$158=\"\",\"\",AF158/$C$158)","v":""},null,{"$f":"IF($C$158=\"\",\"\",AH158/$C$158)","v":""},null,{"$f":"IF($C$158=\"\",\"\",AJ158/$C$158)","v":""},null,{"$f":"IF($C$158=\"\",\"\",AL158/$C$158)","v":""},null,{"$f":"IF($C$158=\"\",\"\",AN158/$C$158)","v":""},null,{"$f":"IF($C$158=\"\",\"\",AP158/$C$158)","v":""},null,{"$f":"IF($C$158=\"\",\"\",AR158/$C$158)","v":""},null,{"$f":"IF($C$158=\"\",\"\",AT158/$C$158)","v":""},null,{"$f":"IF($C$158=\"\",\"\",AV158/$C$158)","v":""},null,{"$f":"IF($C$158=\"\",\"\",AX158/$C$158)","v":""},null,{"$f":"IF($C$158=\"\",\"\",AZ158/$C$158)","v":""},null,{"$f":"IF($C$158=\"\",\"\",BB158/$C$158)","v":""},null,{"$f":"SUM(BB158,AZ158,AX158,AV158,AT158,AR158,AP158,AN158,AL158,AJ158,AH158,AF158,AD158,AB158,Z158,X158,V158,T158,R158,P158,N158,L158,J158,H158,F158)","v":0}]
["TOTAL HOURS",null,null,null,null,{"$f":"SUM(F142:F158)","v":0},null,{"$f":"SUM(H142:H158)","v":0},null,{"$f":"SUM(J142:J158)","v":0},null,{"$f":"SUM(L142:L158)","v":0},null,{"$f":"SUM(N142:N158)","v":0},null,{"$f":"SUM(P142:P158)","v":0},null,{"$f":"SUM(R142:R158)","v":0},null,{"$f":"SUM(T142:T158)","v":0},null,{"$f":"SUM(V142:V158)","v":0},null,{"$f":"SUM(X142:X158)","v":0},null,{"$f":"SUM(Z142:Z158)","v":0},null,{"$f":"SUM(AB142:AB158)","v":0},null,{"$f":"SUM(AD142:AD158)","v":0},null,{"$f":"SUM(AF142:AF158)","v":0},null,{"$f":"SUM(AH142:AH158)","v":0},null,{"$f":"SUM(AJ142:AJ158)","v":0},null,{"$f":"SUM(AL142:AL158)","v":0},null,{"$f":"SUM(AN142:AN158)","v":0},null,{"$f":"SUM(AP142:AP158)","v":0},null,{"$f":"SUM(AR142:AR158)","v":0},null,{"$f":"SUM(AT142:AT158)","v":0},null,{"$f":"SUM(AV142:AV158)","v":0},null,{"$f":"SUM(AX142:AX158)","v":0},null,{"$f":"SUM(AZ142:AZ158)","v":0},null,{"$f":"SUM(BB142:BB158)","v":0},{"$f":"SUM(E159:BB159)","v":0}]
["TOTAL WORKDAYS",null,null,null,null,{"$f":"F159/8","v":0},null,{"$f":"H159/8","v":0},null,{"$f":"J159/8","v":0},null,{"$f":"L159/8","v":0},null,{"$f":"N159/8","v":0},null,{"$f":"P159/8","v":0},null,{"$f":"R159/8","v":0},null,{"$f":"T159/8","v":0},null,{"$f":"V159/8","v":0},null,{"$f":"X159/8","v":0},null,{"$f":"Z159/8","v":0},null,{"$f":"AB159/8","v":0},null,{"$f":"AD159/8","v":0},null,0,null,{"$f":"AH159/8","v":0},null,0,null,{"$f":"AL159/8","v":0},null,0,null,{"$f":"AP159/8","v":0},null,0,null,{"$f":"AT159/8","v":0},null,{"$f":"AV159/8","v":0},null,{"$f":"AX159/8","v":0},null,{"$f":"AZ159/8","v":0},null,{"$f":"BB159/8","v":0},{"$f":"SUM(E160:BB160)","v":0}]
["TOTAL RAW LABOR",null,null,null,null,{"$f":"$E$13*F159","v":0},null,{"$f":"$G$13*H159","v":0},null,{"$f":"$I$13*J159","v":0},null,{"$f":"$K$13*L159","v":0},null,{"$f":"$M$13*N159","v":0},null,{"$f":"$O$13*P159","v":0},null,{"$f":"$Q$13*R159","v":0},null,{"$f":"$S$13*T159","v":0},null,{"$f":"$U$13*V159","v":0},null,{"$f":"$W$13*X159","v":0},null,{"$f":"$Y$13*Z159","v":0},null,{"$f":"$AA$13*AB159","v":0},null,{"$f":"$AC$13*AD159","v":0},null,{"$f":"$AC$13*AF159","v":0},null,{"$f":"$AC$13*AH159","v":0},null,{"$f":"$AC$13*AJ159","v":0},null,{"$f":"$AC$13*AL159","v":0},null,{"$f":"$AC$13*AN159","v":0},null,{"$f":"$AC$13*AP159","v":0},null,{"$f":"$AC$13*AR159","v":0},null,{"$f":"$AC$13*AT159","v":0},null,{"$f":"$AC$13*AV159","v":0},null,{"$f":"$AC$13*AX159","v":0},null,{"$f":"$AC$13*AZ159","v":0},null,{"$f":"$AC$13*BB159","v":0},{"$f":"SUM(E161:BB161)","v":0}]
["Task 6.0     ","CCTV MONITORING SYSTEM"]
[6.1,"Identification of Preliminary CCTV Locations",null,null,{"$f":"IF($C$163=\"\",\"\",F163/$C$163)","v":""},null,{"$f":"IF($C$163=\"\",\"\",H163/$C$163)","v":""},null,{"$f":"IF($C$163=\"\",\"\",J163/$C$163)","v":""},null,{"$f":"IF($C$163=\"\",\"\",L163/$C$163)","v":""},null,{"$f":"IF($C$163=\"\",\"\",N163/$C$163)","v":""},null,{"$f":"IF($C$163=\"\",\"\",P163/$C$163)","v":""},null,{"$f":"IF($C$163=\"\",\"\",R163/$C$163)","v":""},null,{"$f":"IF($C$163=\"\",\"\",T163/$C$163)","v":""},null,{"$f":"IF($C$163=\"\",\"\",V163/$C$163)","v":""},null,{"$f":"IF($C$163=\"\",\"\",X163/$C$163)","v":""},null,{"$f":"IF($C$163=\"\",\"\",Z163/$C$163)","v":""},null,{"$f":"IF($C$163=\"\",\"\",AB163/$C$163)","v":""},null,{"$f":"IF($C$163=\"\",\"\",AD163/$C$163)","v":""},null,{"$f":"IF($C$163=\"\",\"\",AF163/$C$163)","v":""},null,{"$f":"IF($C$163=\"\",\"\",AH163/$C$163)","v":""},null,{"$f":"IF($C$163=\"\",\"\",AJ163/$C$163)","v":""},null,{"$f":"IF($C$163=\"\",\"\",AL163/$C$163)","v":""},null,{"$f":"IF($C$163=\"\",\"\",AN163/$C$163)","v":""},null,{"$f":"IF($C$163=\"\",\"\",AP163/$C$163)","v":""},null,{"$f":"IF($C$163=\"\",\"\",AR163/$C$163)","v":""},null,{"$f":"IF($C$163=\"\",\"\",AT163/$C$163)","v":""},null,{"$f":"IF($C$163=\"\",\"\",AV163/$C$163)","v":""},null,{"$f":"IF($C$163=\"\",\"\",AX163/$C$163)","v":""},null,{"$f":"IF($C$163=\"\",\"\",AZ163/$C$163)","v":""},null,{"$f":"IF($C$163=\"\",\"\",BB163/$C$163)","v":""},null,{"$f":"SUM(BB163,AZ163,AX163,AV163,AT163,AR163,AP163,AN163,AL163,AJ163,AH163,AF163,AD163,AB163,Z163,X163,V163,T163,R163,P163,N163,L163,J163,H163,F163)","v":0}]
[6.2,"Bucket Truck Surveys of Candidate Sites",null,null,{"$f":"IF($C$164=\"\",\"\",F164/$C$164)","v":""},null,{"$f":"IF($C$164=\"\",\"\",H164/$C$164)","v":""},null,{"$f":"IF($C$164=\"\",\"\",J164/$C$164)","v":""},null,{"$f":"IF($C$164=\"\",\"\",L164/$C$164)","v":""},null,{"$f":"IF($C$164=\"\",\"\",N164/$C$164)","v":""},null,{"$f":"IF($C$164=\"\",\"\",P164/$C$164)","v":""},null,{"$f":"IF($C$164=\"\",\"\",R164/$C$164)","v":""},null,{"$f":"IF($C$164=\"\",\"\",T164/$C$164)","v":""},null,{"$f":"IF($C$164=\"\",\"\",V164/$C$164)","v":""},null,{"$f":"IF($C$164=\"\",\"\",X164/$C$164)","v":""},null,{"$f":"IF($C$164=\"\",\"\",Z164/$C$164)","v":""},null,{"$f":"IF($C$164=\"\",\"\",AB164/$C$164)","v":""},null,{"$f":"IF($C$164=\"\",\"\",AD164/$C$164)","v":""},null,{"$f":"IF($C$164=\"\",\"\",AF164/$C$164)","v":""},null,{"$f":"IF($C$164=\"\",\"\",AH164/$C$164)","v":""},null,{"$f":"IF($C$164=\"\",\"\",AJ164/$C$164)","v":""},null,{"$f":"IF($C$164=\"\",\"\",AL164/$C$164)","v":""},null,{"$f":"IF($C$164=\"\",\"\",AN164/$C$164)","v":""},null,{"$f":"IF($C$164=\"\",\"\",AP164/$C$164)","v":""},null,{"$f":"IF($C$164=\"\",\"\",AR164/$C$164)","v":""},null,{"$f":"IF($C$164=\"\",\"\",AT164/$C$164)","v":""},null,{"$f":"IF($C$164=\"\",\"\",AV164/$C$164)","v":""},null,{"$f":"IF($C$164=\"\",\"\",AX164/$C$164)","v":""},null,{"$f":"IF($C$164=\"\",\"\",AZ164/$C$164)","v":""},null,{"$f":"IF($C$164=\"\",\"\",BB164/$C$164)","v":""},null,0]
[6.3,"Compile and Analyze Site Survey Data",null,null,{"$f":"IF($C$165=\"\",\"\",F165/$C$165)","v":""},null,{"$f":"IF($C$165=\"\",\"\",H165/$C$165)","v":""},null,{"$f":"IF($C$165=\"\",\"\",J165/$C$165)","v":""},null,{"$f":"IF($C$165=\"\",\"\",L165/$C$165)","v":""},null,{"$f":"IF($C$165=\"\",\"\",N165/$C$165)","v":""},null,{"$f":"IF($C$165=\"\",\"\",P165/$C$165)","v":""},null,{"$f":"IF($C$165=\"\",\"\",R165/$C$165)","v":""},null,{"$f":"IF($C$165=\"\",\"\",T165/$C$165)","v":""},null,{"$f":"IF($C$165=\"\",\"\",V165/$C$165)","v":""},null,{"$f":"IF($C$165=\"\",\"\",X165/$C$165)","v":""},null,{"$f":"IF($C$165=\"\",\"\",Z165/$C$165)","v":""},null,{"$f":"IF($C$165=\"\",\"\",AB165/$C$165)","v":""},null,{"$f":"IF($C$165=\"\",\"\",AD165/$C$165)","v":""},null,{"$f":"IF($C$165=\"\",\"\",AF165/$C$165)","v":""},null,{"$f":"IF($C$165=\"\",\"\",AH165/$C$165)","v":""},null,{"$f":"IF($C$165=\"\",\"\",AJ165/$C$165)","v":""},null,{"$f":"IF($C$165=\"\",\"\",AL165/$C$165)","v":""},null,{"$f":"IF($C$165=\"\",\"\",AN165/$C$165)","v":""},null,{"$f":"IF($C$165=\"\",\"\",AP165/$C$165)","v":""},null,{"$f":"IF($C$165=\"\",\"\",AR165/$C$165)","v":""},null,{"$f":"IF($C$165=\"\",\"\",AT165/$C$165)","v":""},null,{"$f":"IF($C$165=\"\",\"\",AV165/$C$165)","v":""},null,{"$f":"IF($C$165=\"\",\"\",AX165/$C$165)","v":""},null,{"$f":"IF($C$165=\"\",\"\",AZ165/$C$165)","v":""},null,{"$f":"IF($C$165=\"\",\"\",BB165/$C$165)","v":""},null,0]
[6.4,"Prepare CCTV Site Study Technical Memorandum",null,null,{"$f":"IF($C$166=\"\",\"\",F166/$C$166)","v":""},null,{"$f":"IF($C$166=\"\",\"\",H166/$C$166)","v":""},null,{"$f":"IF($C$166=\"\",\"\",J166/$C$166)","v":""},null,{"$f":"IF($C$166=\"\",\"\",L166/$C$166)","v":""},null,{"$f":"IF($C$166=\"\",\"\",N166/$C$166)","v":""},null,{"$f":"IF($C$166=\"\",\"\",P166/$C$166)","v":""},null,{"$f":"IF($C$166=\"\",\"\",R166/$C$166)","v":""},null,{"$f":"IF($C$166=\"\",\"\",T166/$C$166)","v":""},null,{"$f":"IF($C$166=\"\",\"\",V166/$C$166)","v":""},null,{"$f":"IF($C$166=\"\",\"\",X166/$C$166)","v":""},null,{"$f":"IF($C$166=\"\",\"\",Z166/$C$166)","v":""},null,{"$f":"IF($C$166=\"\",\"\",AB166/$C$166)","v":""},null,{"$f":"IF($C$166=\"\",\"\",AD166/$C$166)","v":""},null,{"$f":"IF($C$166=\"\",\"\",AF166/$C$166)","v":""},null,{"$f":"IF($C$166=\"\",\"\",AH166/$C$166)","v":""},null,{"$f":"IF($C$166=\"\",\"\",AJ166/$C$166)","v":""},null,{"$f":"IF($C$166=\"\",\"\",AL166/$C$166)","v":""},null,{"$f":"IF($C$166=\"\",\"\",AN166/$C$166)","v":""},null,{"$f":"IF($C$166=\"\",\"\",AP166/$C$166)","v":""},null,{"$f":"IF($C$166=\"\",\"\",AR166/$C$166)","v":""},null,{"$f":"IF($C$166=\"\",\"\",AT166/$C$166)","v":""},null,{"$f":"IF($C$166=\"\",\"\",AV166/$C$166)","v":""},null,{"$f":"IF($C$166=\"\",\"\",AX166/$C$166)","v":""},null,{"$f":"IF($C$166=\"\",\"\",AZ166/$C$166)","v":""},null,{"$f":"IF($C$166=\"\",\"\",BB166/$C$166)","v":""},null,0]
[6.5,"Requirements for System Expansion/Field Investigation",null,null,{"$f":"IF($C$167=\"\",\"\",F167/$C$167)","v":""},null,{"$f":"IF($C$167=\"\",\"\",H167/$C$167)","v":""},null,{"$f":"IF($C$167=\"\",\"\",J167/$C$167)","v":""},null,{"$f":"IF($C$167=\"\",\"\",L167/$C$167)","v":""},null,{"$f":"IF($C$167=\"\",\"\",N167/$C$167)","v":""},null,{"$f":"IF($C$167=\"\",\"\",P167/$C$167)","v":""},null,{"$f":"IF($C$167=\"\",\"\",R167/$C$167)","v":""},null,{"$f":"IF($C$167=\"\",\"\",T167/$C$167)","v":""},null,{"$f":"IF($C$167=\"\",\"\",V167/$C$167)","v":""},null,{"$f":"IF($C$167=\"\",\"\",X167/$C$167)","v":""},null,{"$f":"IF($C$167=\"\",\"\",Z167/$C$167)","v":""},null,{"$f":"IF($C$167=\"\",\"\",AB167/$C$167)","v":""},null,{"$f":"IF($C$167=\"\",\"\",AD167/$C$167)","v":""},null,{"$f":"IF($C$167=\"\",\"\",AF167/$C$167)","v":""},null,{"$f":"IF($C$167=\"\",\"\",AH167/$C$167)","v":""},null,{"$f":"IF($C$167=\"\",\"\",AJ167/$C$167)","v":""},null,{"$f":"IF($C$167=\"\",\"\",AL167/$C$167)","v":""},null,{"$f":"IF($C$167=\"\",\"\",AN167/$C$167)","v":""},null,{"$f":"IF($C$167=\"\",\"\",AP167/$C$167)","v":""},null,{"$f":"IF($C$167=\"\",\"\",AR167/$C$167)","v":""},null,{"$f":"IF($C$167=\"\",\"\",AT167/$C$167)","v":""},null,{"$f":"IF($C$167=\"\",\"\",AV167/$C$167)","v":""},null,{"$f":"IF($C$167=\"\",\"\",AX167/$C$167)","v":""},null,{"$f":"IF($C$167=\"\",\"\",AZ167/$C$167)","v":""},null,{"$f":"IF($C$167=\"\",\"\",BB167/$C$167)","v":""},null,0]
[null,null,null,null,{"$f":"IF($C$168=\"\",\"\",F168/$C$168)","v":""},null,{"$f":"IF($C$168=\"\",\"\",H168/$C$168)","v":""},null,{"$f":"IF($C$168=\"\",\"\",J168/$C$168)","v":""},null,{"$f":"IF($C$168=\"\",\"\",L168/$C$168)","v":""},null,{"$f":"IF($C$168=\"\",\"\",N168/$C$168)","v":""},null,{"$f":"IF($C$168=\"\",\"\",P168/$C$168)","v":""},null,{"$f":"IF($C$168=\"\",\"\",R168/$C$168)","v":""},null,{"$f":"IF($C$168=\"\",\"\",T168/$C$168)","v":""},null,{"$f":"IF($C$168=\"\",\"\",V168/$C$168)","v":""},null,{"$f":"IF($C$168=\"\",\"\",X168/$C$168)","v":""},null,{"$f":"IF($C$168=\"\",\"\",Z168/$C$168)","v":""},null,{"$f":"IF($C$168=\"\",\"\",AB168/$C$168)","v":""},null,{"$f":"IF($C$168=\"\",\"\",AD168/$C$168)","v":""},null,{"$f":"IF($C$168=\"\",\"\",AF168/$C$168)","v":""},null,{"$f":"IF($C$168=\"\",\"\",AH168/$C$168)","v":""},null,{"$f":"IF($C$168=\"\",\"\",AJ168/$C$168)","v":""},null,{"$f":"IF($C$168=\"\",\"\",AL168/$C$168)","v":""},null,{"$f":"IF($C$168=\"\",\"\",AN168/$C$168)","v":""},null,{"$f":"IF($C$168=\"\",\"\",AP168/$C$168)","v":""},null,{"$f":"IF($C$168=\"\",\"\",AR168/$C$168)","v":""},null,{"$f":"IF($C$168=\"\",\"\",AT168/$C$168)","v":""},null,{"$f":"IF($C$168=\"\",\"\",AV168/$C$168)","v":""},null,{"$f":"IF($C$168=\"\",\"\",AX168/$C$168)","v":""},null,{"$f":"IF($C$168=\"\",\"\",AZ168/$C$168)","v":""},null,{"$f":"IF($C$168=\"\",\"\",BB168/$C$168)","v":""},null,0]
[null,null,null,null,{"$f":"IF($C$169=\"\",\"\",F169/$C$169)","v":""},null,{"$f":"IF($C$169=\"\",\"\",H169/$C$169)","v":""},null,{"$f":"IF($C$169=\"\",\"\",J169/$C$169)","v":""},null,{"$f":"IF($C$169=\"\",\"\",L169/$C$169)","v":""},null,{"$f":"IF($C$169=\"\",\"\",N169/$C$169)","v":""},null,{"$f":"IF($C$169=\"\",\"\",P169/$C$169)","v":""},null,{"$f":"IF($C$169=\"\",\"\",R169/$C$169)","v":""},null,{"$f":"IF($C$169=\"\",\"\",T169/$C$169)","v":""},null,{"$f":"IF($C$169=\"\",\"\",V169/$C$169)","v":""},null,{"$f":"IF($C$169=\"\",\"\",X169/$C$169)","v":""},null,{"$f":"IF($C$169=\"\",\"\",Z169/$C$169)","v":""},null,{"$f":"IF($C$169=\"\",\"\",AB169/$C$169)","v":""},null,{"$f":"IF($C$169=\"\",\"\",AD169/$C$169)","v":""},null,{"$f":"IF($C$169=\"\",\"\",AF169/$C$169)","v":""},null,{"$f":"IF($C$169=\"\",\"\",AH169/$C$169)","v":""},null,{"$f":"IF($C$169=\"\",\"\",AJ169/$C$169)","v":""},null,{"$f":"IF($C$169=\"\",\"\",AL169/$C$169)","v":""},null,{"$f":"IF($C$169=\"\",\"\",AN169/$C$169)","v":""},null,{"$f":"IF($C$169=\"\",\"\",AP169/$C$169)","v":""},null,{"$f":"IF($C$169=\"\",\"\",AR169/$C$169)","v":""},null,{"$f":"IF($C$169=\"\",\"\",AT169/$C$169)","v":""},null,{"$f":"IF($C$169=\"\",\"\",AV169/$C$169)","v":""},null,{"$f":"IF($C$169=\"\",\"\",AX169/$C$169)","v":""},null,{"$f":"IF($C$169=\"\",\"\",AZ169/$C$169)","v":""},null,{"$f":"IF($C$169=\"\",\"\",BB169/$C$169)","v":""},null,0]
[null,null,null,null,{"$f":"IF($C$170=\"\",\"\",F170/$C$170)","v":""},null,{"$f":"IF($C$170=\"\",\"\",H170/$C$170)","v":""},null,{"$f":"IF($C$170=\"\",\"\",J170/$C$170)","v":""},null,{"$f":"IF($C$170=\"\",\"\",L170/$C$170)","v":""},null,{"$f":"IF($C$170=\"\",\"\",N170/$C$170)","v":""},null,{"$f":"IF($C$170=\"\",\"\",P170/$C$170)","v":""},null,{"$f":"IF($C$170=\"\",\"\",R170/$C$170)","v":""},null,{"$f":"IF($C$170=\"\",\"\",T170/$C$170)","v":""},null,{"$f":"IF($C$170=\"\",\"\",V170/$C$170)","v":""},null,{"$f":"IF($C$170=\"\",\"\",X170/$C$170)","v":""},null,{"$f":"IF($C$170=\"\",\"\",Z170/$C$170)","v":""},null,{"$f":"IF($C$170=\"\",\"\",AB170/$C$170)","v":""},null,{"$f":"IF($C$170=\"\",\"\",AD170/$C$170)","v":""},null,{"$f":"IF($C$170=\"\",\"\",AF170/$C$170)","v":""},null,{"$f":"IF($C$170=\"\",\"\",AH170/$C$170)","v":""},null,{"$f":"IF($C$170=\"\",\"\",AJ170/$C$170)","v":""},null,{"$f":"IF($C$170=\"\",\"\",AL170/$C$170)","v":""},null,{"$f":"IF($C$170=\"\",\"\",AN170/$C$170)","v":""},null,{"$f":"IF($C$170=\"\",\"\",AP170/$C$170)","v":""},null,{"$f":"IF($C$170=\"\",\"\",AR170/$C$170)","v":""},null,{"$f":"IF($C$170=\"\",\"\",AT170/$C$170)","v":""},null,{"$f":"IF($C$170=\"\",\"\",AV170/$C$170)","v":""},null,{"$f":"IF($C$170=\"\",\"\",AX170/$C$170)","v":""},null,{"$f":"IF($C$170=\"\",\"\",AZ170/$C$170)","v":""},null,{"$f":"IF($C$170=\"\",\"\",BB170/$C$170)","v":""},null,0]
[null,null,null,null,{"$f":"IF($C$171=\"\",\"\",F171/$C$171)","v":""},null,{"$f":"IF($C$171=\"\",\"\",H171/$C$171)","v":""},null,{"$f":"IF($C$171=\"\",\"\",J171/$C$171)","v":""},null,{"$f":"IF($C$171=\"\",\"\",L171/$C$171)","v":""},null,{"$f":"IF($C$171=\"\",\"\",N171/$C$171)","v":""},null,{"$f":"IF($C$171=\"\",\"\",P171/$C$171)","v":""},null,{"$f":"IF($C$171=\"\",\"\",R171/$C$171)","v":""},null,{"$f":"IF($C$171=\"\",\"\",T171/$C$171)","v":""},null,{"$f":"IF($C$171=\"\",\"\",V171/$C$171)","v":""},null,{"$f":"IF($C$171=\"\",\"\",X171/$C$171)","v":""},null,{"$f":"IF($C$171=\"\",\"\",Z171/$C$171)","v":""},null,{"$f":"IF($C$171=\"\",\"\",AB171/$C$171)","v":""},null,{"$f":"IF($C$171=\"\",\"\",AD171/$C$171)","v":""},null,{"$f":"IF($C$171=\"\",\"\",AF171/$C$171)","v":""},null,{"$f":"IF($C$171=\"\",\"\",AH171/$C$171)","v":""},null,{"$f":"IF($C$171=\"\",\"\",AJ171/$C$171)","v":""},null,{"$f":"IF($C$171=\"\",\"\",AL171/$C$171)","v":""},null,{"$f":"IF($C$171=\"\",\"\",AN171/$C$171)","v":""},null,{"$f":"IF($C$171=\"\",\"\",AP171/$C$171)","v":""},null,{"$f":"IF($C$171=\"\",\"\",AR171/$C$171)","v":""},null,{"$f":"IF($C$171=\"\",\"\",AT171/$C$171)","v":""},null,{"$f":"IF($C$171=\"\",\"\",AV171/$C$171)","v":""},null,{"$f":"IF($C$171=\"\",\"\",AX171/$C$171)","v":""},null,{"$f":"IF($C$171=\"\",\"\",AZ171/$C$171)","v":""},null,{"$f":"IF($C$171=\"\",\"\",BB171/$C$171)","v":""},null,0]
[null,null,null,null,{"$f":"IF($C$172=\"\",\"\",F172/$C$172)","v":""},null,{"$f":"IF($C$172=\"\",\"\",H172/$C$172)","v":""},null,{"$f":"IF($C$172=\"\",\"\",J172/$C$172)","v":""},null,{"$f":"IF($C$172=\"\",\"\",L172/$C$172)","v":""},null,{"$f":"IF($C$172=\"\",\"\",N172/$C$172)","v":""},null,{"$f":"IF($C$172=\"\",\"\",P172/$C$172)","v":""},null,{"$f":"IF($C$172=\"\",\"\",R172/$C$172)","v":""},null,{"$f":"IF($C$172=\"\",\"\",T172/$C$172)","v":""},null,{"$f":"IF($C$172=\"\",\"\",V172/$C$172)","v":""},null,{"$f":"IF($C$172=\"\",\"\",X172/$C$172)","v":""},null,{"$f":"IF($C$172=\"\",\"\",Z172/$C$172)","v":""},null,{"$f":"IF($C$172=\"\",\"\",AB172/$C$172)","v":""},null,{"$f":"IF($C$172=\"\",\"\",AD172/$C$172)","v":""},null,{"$f":"IF($C$172=\"\",\"\",AF172/$C$172)","v":""},null,{"$f":"IF($C$172=\"\",\"\",AH172/$C$172)","v":""},null,{"$f":"IF($C$172=\"\",\"\",AJ172/$C$172)","v":""},null,{"$f":"IF($C$172=\"\",\"\",AL172/$C$172)","v":""},null,{"$f":"IF($C$172=\"\",\"\",AN172/$C$172)","v":""},null,{"$f":"IF($C$172=\"\",\"\",AP172/$C$172)","v":""},null,{"$f":"IF($C$172=\"\",\"\",AR172/$C$172)","v":""},null,{"$f":"IF($C$172=\"\",\"\",AT172/$C$172)","v":""},null,{"$f":"IF($C$172=\"\",\"\",AV172/$C$172)","v":""},null,{"$f":"IF($C$172=\"\",\"\",AX172/$C$172)","v":""},null,{"$f":"IF($C$172=\"\",\"\",AZ172/$C$172)","v":""},null,{"$f":"IF($C$172=\"\",\"\",BB172/$C$172)","v":""},null,0]
[null,null,null,null,{"$f":"IF($C$173=\"\",\"\",F173/$C$173)","v":""},null,{"$f":"IF($C$173=\"\",\"\",H173/$C$173)","v":""},null,{"$f":"IF($C$173=\"\",\"\",J173/$C$173)","v":""},null,{"$f":"IF($C$173=\"\",\"\",L173/$C$173)","v":""},null,{"$f":"IF($C$173=\"\",\"\",N173/$C$173)","v":""},null,{"$f":"IF($C$173=\"\",\"\",P173/$C$173)","v":""},null,{"$f":"IF($C$173=\"\",\"\",R173/$C$173)","v":""},null,{"$f":"IF($C$173=\"\",\"\",T173/$C$173)","v":""},null,{"$f":"IF($C$173=\"\",\"\",V173/$C$173)","v":""},null,{"$f":"IF($C$173=\"\",\"\",X173/$C$173)","v":""},null,{"$f":"IF($C$173=\"\",\"\",Z173/$C$173)","v":""},null,{"$f":"IF($C$173=\"\",\"\",AB173/$C$173)","v":""},null,{"$f":"IF($C$173=\"\",\"\",AD173/$C$173)","v":""},null,{"$f":"IF($C$173=\"\",\"\",AF173/$C$173)","v":""},null,{"$f":"IF($C$173=\"\",\"\",AH173/$C$173)","v":""},null,{"$f":"IF($C$173=\"\",\"\",AJ173/$C$173)","v":""},null,{"$f":"IF($C$173=\"\",\"\",AL173/$C$173)","v":""},null,{"$f":"IF($C$173=\"\",\"\",AN173/$C$173)","v":""},null,{"$f":"IF($C$173=\"\",\"\",AP173/$C$173)","v":""},null,{"$f":"IF($C$173=\"\",\"\",AR173/$C$173)","v":""},null,{"$f":"IF($C$173=\"\",\"\",AT173/$C$173)","v":""},null,{"$f":"IF($C$173=\"\",\"\",AV173/$C$173)","v":""},null,{"$f":"IF($C$173=\"\",\"\",AX173/$C$173)","v":""},null,{"$f":"IF($C$173=\"\",\"\",AZ173/$C$173)","v":""},null,{"$f":"IF($C$173=\"\",\"\",BB173/$C$173)","v":""},null,0]
[null,null,null,null,{"$f":"IF($C$174=\"\",\"\",F174/$C$174)","v":""},null,{"$f":"IF($C$174=\"\",\"\",H174/$C$174)","v":""},null,{"$f":"IF($C$174=\"\",\"\",J174/$C$174)","v":""},null,{"$f":"IF($C$174=\"\",\"\",L174/$C$174)","v":""},null,{"$f":"IF($C$174=\"\",\"\",N174/$C$174)","v":""},null,{"$f":"IF($C$174=\"\",\"\",P174/$C$174)","v":""},null,{"$f":"IF($C$174=\"\",\"\",R174/$C$174)","v":""},null,{"$f":"IF($C$174=\"\",\"\",T174/$C$174)","v":""},null,{"$f":"IF($C$174=\"\",\"\",V174/$C$174)","v":""},null,{"$f":"IF($C$174=\"\",\"\",X174/$C$174)","v":""},null,{"$f":"IF($C$174=\"\",\"\",Z174/$C$174)","v":""},null,{"$f":"IF($C$174=\"\",\"\",AB174/$C$174)","v":""},null,{"$f":"IF($C$174=\"\",\"\",AD174/$C$174)","v":""},null,{"$f":"IF($C$174=\"\",\"\",AF174/$C$174)","v":""},null,{"$f":"IF($C$174=\"\",\"\",AH174/$C$174)","v":""},null,{"$f":"IF($C$174=\"\",\"\",AJ174/$C$174)","v":""},null,{"$f":"IF($C$174=\"\",\"\",AL174/$C$174)","v":""},null,{"$f":"IF($C$174=\"\",\"\",AN174/$C$174)","v":""},null,{"$f":"IF($C$174=\"\",\"\",AP174/$C$174)","v":""},null,{"$f":"IF($C$174=\"\",\"\",AR174/$C$174)","v":""},null,{"$f":"IF($C$174=\"\",\"\",AT174/$C$174)","v":""},null,{"$f":"IF($C$174=\"\",\"\",AV174/$C$174)","v":""},null,{"$f":"IF($C$174=\"\",\"\",AX174/$C$174)","v":""},null,{"$f":"IF($C$174=\"\",\"\",AZ174/$C$174)","v":""},null,{"$f":"IF($C$174=\"\",\"\",BB174/$C$174)","v":""},null,{"$f":"SUM(BB174,AZ174,AX174,AV174,AT174,AR174,AP174,AN174,AL174,AJ174,AH174,AF174,AD174,AB174,Z174,X174,V174,T174,R174,P174,N174,L174,J174,H174,F174)","v":0}]
["TOTAL HOURS",null,null,null,null,{"$f":"SUM(F163:F174)","v":0},null,{"$f":"SUM(H163:H174)","v":0},null,{"$f":"SUM(J163:J174)","v":0},null,{"$f":"SUM(L163:L174)","v":0},null,{"$f":"SUM(N163:N174)","v":0},null,{"$f":"SUM(P163:P174)","v":0},null,{"$f":"SUM(R163:R174)","v":0},null,{"$f":"SUM(T163:T174)","v":0},null,{"$f":"SUM(V163:V174)","v":0},null,{"$f":"SUM(X163:X174)","v":0},null,{"$f":"SUM(Z163:Z174)","v":0},null,{"$f":"SUM(AB163:AB174)","v":0},null,{"$f":"SUM(AD163:AD174)","v":0},null,{"$f":"SUM(AF163:AF174)","v":0},null,{"$f":"SUM(AH163:AH174)","v":0},null,{"$f":"SUM(AJ163:AJ174)","v":0},null,{"$f":"SUM(AL163:AL174)","v":0},null,{"$f":"SUM(AN163:AN174)","v":0},null,{"$f":"SUM(AP163:AP174)","v":0},null,{"$f":"SUM(AR163:AR174)","v":0},null,{"$f":"SUM(AT163:AT174)","v":0},null,{"$f":"SUM(AV163:AV174)","v":0},null,{"$f":"SUM(AX163:AX174)","v":0},null,{"$f":"SUM(AZ163:AZ174)","v":0},null,{"$f":"SUM(BB163:BB174)","v":0},{"$f":"SUM(E175:BB175)","v":0}]
["TOTAL WORKDAYS",null,null,null,null,{"$f":"F175/8","v":0},null,{"$f":"H175/8","v":0},null,{"$f":"J175/8","v":0},null,{"$f":"L175/8","v":0},null,{"$f":"N175/8","v":0},null,{"$f":"P175/8","v":0},null,{"$f":"R175/8","v":0},null,{"$f":"T175/8","v":0},null,{"$f":"V175/8","v":0},null,{"$f":"X175/8","v":0},null,{"$f":"Z175/8","v":0},null,{"$f":"AB175/8","v":0},null,{"$f":"AD175/8","v":0},null,0,null,{"$f":"AH175/8","v":0},null,0,null,{"$f":"AL175/8","v":0},null,0,null,{"$f":"AP175/8","v":0},null,0,null,{"$f":"AT175/8","v":0},null,{"$f":"AV175/8","v":0},null,{"$f":"AX175/8","v":0},null,{"$f":"AZ175/8","v":0},null,{"$f":"BB175/8","v":0},{"$f":"SUM(E176:BB176)","v":0}]
["TOTAL RAW LABOR",null,null,null,null,{"$f":"$E$13*F175","v":0},null,{"$f":"$G$13*H175","v":0},null,{"$f":"$I$13*J175","v":0},null,{"$f":"$K$13*L175","v":0},null,{"$f":"$M$13*N175","v":0},null,{"$f":"$O$13*P175","v":0},null,{"$f":"$Q$13*R175","v":0},null,{"$f":"$S$13*T175","v":0},null,{"$f":"$U$13*V175","v":0},null,{"$f":"$W$13*X175","v":0},null,{"$f":"$Y$13*Z175","v":0},null,{"$f":"$AA$13*AB175","v":0},null,{"$f":"$AC$13*AD175","v":0},null,{"$f":"$AC$13*AF175","v":0},null,{"$f":"$AC$13*AH175","v":0},null,{"$f":"$AC$13*AJ175","v":0},null,{"$f":"$AC$13*AL175","v":0},null,{"$f":"$AC$13*AN175","v":0},null,{"$f":"$AC$13*AP175","v":0},null,{"$f":"$AC$13*AR175","v":0},null,{"$f":"$AC$13*AT175","v":0},null,{"$f":"$AC$13*AV175","v":0},null,{"$f":"$AC$13*AX175","v":0},null,{"$f":"$AC$13*AZ175","v":0},null,{"$f":"$AC$13*BB175","v":0},{"$f":"SUM(E177:BB177)","v":0}]
["Task 7.0     ","SYSTEM BOUNDARIES AND SYSTEM DETECTOR LAYOUT"]
[7.1,"Identify System Boundary and Control Sections",null,null,{"$f":"IF($C$179=\"\",\"\",F179/$C$179)","v":""},null,{"$f":"IF($C$179=\"\",\"\",H179/$C$179)","v":""},null,{"$f":"IF($C$179=\"\",\"\",J179/$C$179)","v":""},null,{"$f":"IF($C$179=\"\",\"\",L179/$C$179)","v":""},null,{"$f":"IF($C$179=\"\",\"\",N179/$C$179)","v":""},null,{"$f":"IF($C$179=\"\",\"\",P179/$C$179)","v":""},null,{"$f":"IF($C$179=\"\",\"\",R179/$C$179)","v":""},null,{"$f":"IF($C$179=\"\",\"\",T179/$C$179)","v":""},null,{"$f":"IF($C$179=\"\",\"\",V179/$C$179)","v":""},null,{"$f":"IF($C$179=\"\",\"\",X179/$C$179)","v":""},null,{"$f":"IF($C$179=\"\",\"\",Z179/$C$179)","v":""},null,{"$f":"IF($C$179=\"\",\"\",AB179/$C$179)","v":""},null,{"$f":"IF($C$179=\"\",\"\",AD179/$C$179)","v":""},null,{"$f":"IF($C$179=\"\",\"\",AF179/$C$179)","v":""},null,{"$f":"IF($C$179=\"\",\"\",AH179/$C$179)","v":""},null,{"$f":"IF($C$179=\"\",\"\",AJ179/$C$179)","v":""},null,{"$f":"IF($C$179=\"\",\"\",AL179/$C$179)","v":""},null,{"$f":"IF($C$179=\"\",\"\",AN179/$C$179)","v":""},null,{"$f":"IF($C$179=\"\",\"\",AP179/$C$179)","v":""},null,{"$f":"IF($C$179=\"\",\"\",AR179/$C$179)","v":""},null,{"$f":"IF($C$179=\"\",\"\",AT179/$C$179)","v":""},null,{"$f":"IF($C$179=\"\",\"\",AV179/$C$179)","v":""},null,{"$f":"IF($C$179=\"\",\"\",AX179/$C$179)","v":""},null,{"$f":"IF($C$179=\"\",\"\",AZ179/$C$179)","v":""},null,{"$f":"IF($C$179=\"\",\"\",BB179/$C$179)","v":""},null,{"$f":"SUM(BB179,AZ179,AX179,AV179,AT179,AR179,AP179,AN179,AL179,AJ179,AH179,AF179,AD179,AB179,Z179,X179,V179,T179,R179,P179,N179,L179,J179,H179,F179)","v":0}]
[7.2,"Develop System-Wide System Detector Schematic",null,null,{"$f":"IF($C$180=\"\",\"\",F180/$C$180)","v":""},null,{"$f":"IF($C$180=\"\",\"\",H180/$C$180)","v":""},null,{"$f":"IF($C$180=\"\",\"\",J180/$C$180)","v":""},null,{"$f":"IF($C$180=\"\",\"\",L180/$C$180)","v":""},null,{"$f":"IF($C$180=\"\",\"\",N180/$C$180)","v":""},null,{"$f":"IF($C$180=\"\",\"\",P180/$C$180)","v":""},null,{"$f":"IF($C$180=\"\",\"\",R180/$C$180)","v":""},null,{"$f":"IF($C$180=\"\",\"\",T180/$C$180)","v":""},null,{"$f":"IF($C$180=\"\",\"\",V180/$C$180)","v":""},null,{"$f":"IF($C$180=\"\",\"\",X180/$C$180)","v":""},null,{"$f":"IF($C$180=\"\",\"\",Z180/$C$180)","v":""},null,{"$f":"IF($C$180=\"\",\"\",AB180/$C$180)","v":""},null,{"$f":"IF($C$180=\"\",\"\",AD180/$C$180)","v":""},null,{"$f":"IF($C$180=\"\",\"\",AF180/$C$180)","v":""},null,{"$f":"IF($C$180=\"\",\"\",AH180/$C$180)","v":""},null,{"$f":"IF($C$180=\"\",\"\",AJ180/$C$180)","v":""},null,{"$f":"IF($C$180=\"\",\"\",AL180/$C$180)","v":""},null,{"$f":"IF($C$180=\"\",\"\",AN180/$C$180)","v":""},null,{"$f":"IF($C$180=\"\",\"\",AP180/$C$180)","v":""},null,{"$f":"IF($C$180=\"\",\"\",AR180/$C$180)","v":""},null,{"$f":"IF($C$180=\"\",\"\",AT180/$C$180)","v":""},null,{"$f":"IF($C$180=\"\",\"\",AV180/$C$180)","v":""},null,{"$f":"IF($C$180=\"\",\"\",AX180/$C$180)","v":""},null,{"$f":"IF($C$180=\"\",\"\",AZ180/$C$180)","v":""},null,{"$f":"IF($C$180=\"\",\"\",BB180/$C$180)","v":""},null,0]
[null,null,null,null,{"$f":"IF($C$181=\"\",\"\",F181/$C$181)","v":""},null,{"$f":"IF($C$181=\"\",\"\",H181/$C$181)","v":""},null,{"$f":"IF($C$181=\"\",\"\",J181/$C$181)","v":""},null,{"$f":"IF($C$181=\"\",\"\",L181/$C$181)","v":""},null,{"$f":"IF($C$181=\"\",\"\",N181/$C$181)","v":""},null,{"$f":"IF($C$181=\"\",\"\",P181/$C$181)","v":""},null,{"$f":"IF($C$181=\"\",\"\",R181/$C$181)","v":""},null,{"$f":"IF($C$181=\"\",\"\",T181/$C$181)","v":""},null,{"$f":"IF($C$181=\"\",\"\",V181/$C$181)","v":""},null,{"$f":"IF($C$181=\"\",\"\",X181/$C$181)","v":""},null,{"$f":"IF($C$181=\"\",\"\",Z181/$C$181)","v":""},null,{"$f":"IF($C$181=\"\",\"\",AB181/$C$181)","v":""},null,{"$f":"IF($C$181=\"\",\"\",AD181/$C$181)","v":""},null,{"$f":"IF($C$181=\"\",\"\",AF181/$C$181)","v":""},null,{"$f":"IF($C$181=\"\",\"\",AH181/$C$181)","v":""},null,{"$f":"IF($C$181=\"\",\"\",AJ181/$C$181)","v":""},null,{"$f":"IF($C$181=\"\",\"\",AL181/$C$181)","v":""},null,{"$f":"IF($C$181=\"\",\"\",AN181/$C$181)","v":""},null,{"$f":"IF($C$181=\"\",\"\",AP181/$C$181)","v":""},null,{"$f":"IF($C$181=\"\",\"\",AR181/$C$181)","v":""},null,{"$f":"IF($C$181=\"\",\"\",AT181/$C$181)","v":""},null,{"$f":"IF($C$181=\"\",\"\",AV181/$C$181)","v":""},null,{"$f":"IF($C$181=\"\",\"\",AX181/$C$181)","v":""},null,{"$f":"IF($C$181=\"\",\"\",AZ181/$C$181)","v":""},null,{"$f":"IF($C$181=\"\",\"\",BB181/$C$181)","v":""},null,0]
[null,null,null,null,{"$f":"IF($C$182=\"\",\"\",F182/$C$182)","v":""},null,{"$f":"IF($C$182=\"\",\"\",H182/$C$182)","v":""},null,{"$f":"IF($C$182=\"\",\"\",J182/$C$182)","v":""},null,{"$f":"IF($C$182=\"\",\"\",L182/$C$182)","v":""},null,{"$f":"IF($C$182=\"\",\"\",N182/$C$182)","v":""},null,{"$f":"IF($C$182=\"\",\"\",P182/$C$182)","v":""},null,{"$f":"IF($C$182=\"\",\"\",R182/$C$182)","v":""},null,{"$f":"IF($C$182=\"\",\"\",T182/$C$182)","v":""},null,{"$f":"IF($C$182=\"\",\"\",V182/$C$182)","v":""},null,{"$f":"IF($C$182=\"\",\"\",X182/$C$182)","v":""},null,{"$f":"IF($C$182=\"\",\"\",Z182/$C$182)","v":""},null,{"$f":"IF($C$182=\"\",\"\",AB182/$C$182)","v":""},null,{"$f":"IF($C$182=\"\",\"\",AD182/$C$182)","v":""},null,{"$f":"IF($C$182=\"\",\"\",AF182/$C$182)","v":""},null,{"$f":"IF($C$182=\"\",\"\",AH182/$C$182)","v":""},null,{"$f":"IF($C$182=\"\",\"\",AJ182/$C$182)","v":""},null,{"$f":"IF($C$182=\"\",\"\",AL182/$C$182)","v":""},null,{"$f":"IF($C$182=\"\",\"\",AN182/$C$182)","v":""},null,{"$f":"IF($C$182=\"\",\"\",AP182/$C$182)","v":""},null,{"$f":"IF($C$182=\"\",\"\",AR182/$C$182)","v":""},null,{"$f":"IF($C$182=\"\",\"\",AT182/$C$182)","v":""},null,{"$f":"IF($C$182=\"\",\"\",AV182/$C$182)","v":""},null,{"$f":"IF($C$182=\"\",\"\",AX182/$C$182)","v":""},null,{"$f":"IF($C$182=\"\",\"\",AZ182/$C$182)","v":""},null,{"$f":"IF($C$182=\"\",\"\",BB182/$C$182)","v":""},null,0]
[null,null,null,null,{"$f":"IF($C$183=\"\",\"\",F183/$C$183)","v":""},null,{"$f":"IF($C$183=\"\",\"\",H183/$C$183)","v":""},null,{"$f":"IF($C$183=\"\",\"\",J183/$C$183)","v":""},null,{"$f":"IF($C$183=\"\",\"\",L183/$C$183)","v":""},null,{"$f":"IF($C$183=\"\",\"\",N183/$C$183)","v":""},null,{"$f":"IF($C$183=\"\",\"\",P183/$C$183)","v":""},null,{"$f":"IF($C$183=\"\",\"\",R183/$C$183)","v":""},null,{"$f":"IF($C$183=\"\",\"\",T183/$C$183)","v":""},null,{"$f":"IF($C$183=\"\",\"\",V183/$C$183)","v":""},null,{"$f":"IF($C$183=\"\",\"\",X183/$C$183)","v":""},null,{"$f":"IF($C$183=\"\",\"\",Z183/$C$183)","v":""},null,{"$f":"IF($C$183=\"\",\"\",AB183/$C$183)","v":""},null,{"$f":"IF($C$183=\"\",\"\",AD183/$C$183)","v":""},null,{"$f":"IF($C$183=\"\",\"\",AF183/$C$183)","v":""},null,{"$f":"IF($C$183=\"\",\"\",AH183/$C$183)","v":""},null,{"$f":"IF($C$183=\"\",\"\",AJ183/$C$183)","v":""},null,{"$f":"IF($C$183=\"\",\"\",AL183/$C$183)","v":""},null,{"$f":"IF($C$183=\"\",\"\",AN183/$C$183)","v":""},null,{"$f":"IF($C$183=\"\",\"\",AP183/$C$183)","v":""},null,{"$f":"IF($C$183=\"\",\"\",AR183/$C$183)","v":""},null,{"$f":"IF($C$183=\"\",\"\",AT183/$C$183)","v":""},null,{"$f":"IF($C$183=\"\",\"\",AV183/$C$183)","v":""},null,{"$f":"IF($C$183=\"\",\"\",AX183/$C$183)","v":""},null,{"$f":"IF($C$183=\"\",\"\",AZ183/$C$183)","v":""},null,{"$f":"IF($C$183=\"\",\"\",BB183/$C$183)","v":""},null,0]
[null,null,null,null,{"$f":"IF($C$184=\"\",\"\",F184/$C$184)","v":""},null,{"$f":"IF($C$184=\"\",\"\",H184/$C$184)","v":""},null,{"$f":"IF($C$184=\"\",\"\",J184/$C$184)","v":""},null,{"$f":"IF($C$184=\"\",\"\",L184/$C$184)","v":""},null,{"$f":"IF($C$184=\"\",\"\",N184/$C$184)","v":""},null,{"$f":"IF($C$184=\"\",\"\",P184/$C$184)","v":""},null,{"$f":"IF($C$184=\"\",\"\",R184/$C$184)","v":""},null,{"$f":"IF($C$184=\"\",\"\",T184/$C$184)","v":""},null,{"$f":"IF($C$184=\"\",\"\",V184/$C$184)","v":""},null,{"$f":"IF($C$184=\"\",\"\",X184/$C$184)","v":""},null,{"$f":"IF($C$184=\"\",\"\",Z184/$C$184)","v":""},null,{"$f":"IF($C$184=\"\",\"\",AB184/$C$184)","v":""},null,{"$f":"IF($C$184=\"\",\"\",AD184/$C$184)","v":""},null,{"$f":"IF($C$184=\"\",\"\",AF184/$C$184)","v":""},null,{"$f":"IF($C$184=\"\",\"\",AH184/$C$184)","v":""},null,{"$f":"IF($C$184=\"\",\"\",AJ184/$C$184)","v":""},null,{"$f":"IF($C$184=\"\",\"\",AL184/$C$184)","v":""},null,{"$f":"IF($C$184=\"\",\"\",AN184/$C$184)","v":""},null,{"$f":"IF($C$184=\"\",\"\",AP184/$C$184)","v":""},null,{"$f":"IF($C$184=\"\",\"\",AR184/$C$184)","v":""},null,{"$f":"IF($C$184=\"\",\"\",AT184/$C$184)","v":""},null,{"$f":"IF($C$184=\"\",\"\",AV184/$C$184)","v":""},null,{"$f":"IF($C$184=\"\",\"\",AX184/$C$184)","v":""},null,{"$f":"IF($C$184=\"\",\"\",AZ184/$C$184)","v":""},null,{"$f":"IF($C$184=\"\",\"\",BB184/$C$184)","v":""},null,0]
[null,null,null,null,{"$f":"IF($C$185=\"\",\"\",F185/$C$185)","v":""},null,{"$f":"IF($C$185=\"\",\"\",H185/$C$185)","v":""},null,{"$f":"IF($C$185=\"\",\"\",J185/$C$185)","v":""},null,{"$f":"IF($C$185=\"\",\"\",L185/$C$185)","v":""},null,{"$f":"IF($C$185=\"\",\"\",N185/$C$185)","v":""},null,{"$f":"IF($C$185=\"\",\"\",P185/$C$185)","v":""},null,{"$f":"IF($C$185=\"\",\"\",R185/$C$185)","v":""},null,{"$f":"IF($C$185=\"\",\"\",T185/$C$185)","v":""},null,{"$f":"IF($C$185=\"\",\"\",V185/$C$185)","v":""},null,{"$f":"IF($C$185=\"\",\"\",X185/$C$185)","v":""},null,{"$f":"IF($C$185=\"\",\"\",Z185/$C$185)","v":""},null,{"$f":"IF($C$185=\"\",\"\",AB185/$C$185)","v":""},null,{"$f":"IF($C$185=\"\",\"\",AD185/$C$185)","v":""},null,{"$f":"IF($C$185=\"\",\"\",AF185/$C$185)","v":""},null,{"$f":"IF($C$185=\"\",\"\",AH185/$C$185)","v":""},null,{"$f":"IF($C$185=\"\",\"\",AJ185/$C$185)","v":""},null,{"$f":"IF($C$185=\"\",\"\",AL185/$C$185)","v":""},null,{"$f":"IF($C$185=\"\",\"\",AN185/$C$185)","v":""},null,{"$f":"IF($C$185=\"\",\"\",AP185/$C$185)","v":""},null,{"$f":"IF($C$185=\"\",\"\",AR185/$C$185)","v":""},null,{"$f":"IF($C$185=\"\",\"\",AT185/$C$185)","v":""},null,{"$f":"IF($C$185=\"\",\"\",AV185/$C$185)","v":""},null,{"$f":"IF($C$185=\"\",\"\",AX185/$C$185)","v":""},null,{"$f":"IF($C$185=\"\",\"\",AZ185/$C$185)","v":""},null,{"$f":"IF($C$185=\"\",\"\",BB185/$C$185)","v":""},null,0]
[null,null,null,null,{"$f":"IF($C$186=\"\",\"\",F186/$C$186)","v":""},null,{"$f":"IF($C$186=\"\",\"\",H186/$C$186)","v":""},null,{"$f":"IF($C$186=\"\",\"\",J186/$C$186)","v":""},null,{"$f":"IF($C$186=\"\",\"\",L186/$C$186)","v":""},null,{"$f":"IF($C$186=\"\",\"\",N186/$C$186)","v":""},null,{"$f":"IF($C$186=\"\",\"\",P186/$C$186)","v":""},null,{"$f":"IF($C$186=\"\",\"\",R186/$C$186)","v":""},null,{"$f":"IF($C$186=\"\",\"\",T186/$C$186)","v":""},null,{"$f":"IF($C$186=\"\",\"\",V186/$C$186)","v":""},null,{"$f":"IF($C$186=\"\",\"\",X186/$C$186)","v":""},null,{"$f":"IF($C$186=\"\",\"\",Z186/$C$186)","v":""},null,{"$f":"IF($C$186=\"\",\"\",AB186/$C$186)","v":""},null,{"$f":"IF($C$186=\"\",\"\",AD186/$C$186)","v":""},null,{"$f":"IF($C$186=\"\",\"\",AF186/$C$186)","v":""},null,{"$f":"IF($C$186=\"\",\"\",AH186/$C$186)","v":""},null,{"$f":"IF($C$186=\"\",\"\",AJ186/$C$186)","v":""},null,{"$f":"IF($C$186=\"\",\"\",AL186/$C$186)","v":""},null,{"$f":"IF($C$186=\"\",\"\",AN186/$C$186)","v":""},null,{"$f":"IF($C$186=\"\",\"\",AP186/$C$186)","v":""},null,{"$f":"IF($C$186=\"\",\"\",AR186/$C$186)","v":""},null,{"$f":"IF($C$186=\"\",\"\",AT186/$C$186)","v":""},null,{"$f":"IF($C$186=\"\",\"\",AV186/$C$186)","v":""},null,{"$f":"IF($C$186=\"\",\"\",AX186/$C$186)","v":""},null,{"$f":"IF($C$186=\"\",\"\",AZ186/$C$186)","v":""},null,{"$f":"IF($C$186=\"\",\"\",BB186/$C$186)","v":""},null,0]
[null,null,null,null,{"$f":"IF($C$187=\"\",\"\",F187/$C$187)","v":""},null,{"$f":"IF($C$187=\"\",\"\",H187/$C$187)","v":""},null,{"$f":"IF($C$187=\"\",\"\",J187/$C$187)","v":""},null,{"$f":"IF($C$187=\"\",\"\",L187/$C$187)","v":""},null,{"$f":"IF($C$187=\"\",\"\",N187/$C$187)","v":""},null,{"$f":"IF($C$187=\"\",\"\",P187/$C$187)","v":""},null,{"$f":"IF($C$187=\"\",\"\",R187/$C$187)","v":""},null,{"$f":"IF($C$187=\"\",\"\",T187/$C$187)","v":""},null,{"$f":"IF($C$187=\"\",\"\",V187/$C$187)","v":""},null,{"$f":"IF($C$187=\"\",\"\",X187/$C$187)","v":""},null,{"$f":"IF($C$187=\"\",\"\",Z187/$C$187)","v":""},null,{"$f":"IF($C$187=\"\",\"\",AB187/$C$187)","v":""},null,{"$f":"IF($C$187=\"\",\"\",AD187/$C$187)","v":""},null,{"$f":"IF($C$187=\"\",\"\",AF187/$C$187)","v":""},null,{"$f":"IF($C$187=\"\",\"\",AH187/$C$187)","v":""},null,{"$f":"IF($C$187=\"\",\"\",AJ187/$C$187)","v":""},null,{"$f":"IF($C$187=\"\",\"\",AL187/$C$187)","v":""},null,{"$f":"IF($C$187=\"\",\"\",AN187/$C$187)","v":""},null,{"$f":"IF($C$187=\"\",\"\",AP187/$C$187)","v":""},null,{"$f":"IF($C$187=\"\",\"\",AR187/$C$187)","v":""},null,{"$f":"IF($C$187=\"\",\"\",AT187/$C$187)","v":""},null,{"$f":"IF($C$187=\"\",\"\",AV187/$C$187)","v":""},null,{"$f":"IF($C$187=\"\",\"\",AX187/$C$187)","v":""},null,{"$f":"IF($C$187=\"\",\"\",AZ187/$C$187)","v":""},null,{"$f":"IF($C$187=\"\",\"\",BB187/$C$187)","v":""},null,{"$f":"SUM(BB187,AZ187,AX187,AV187,AT187,AR187,AP187,AN187,AL187,AJ187,AH187,AF187,AD187,AB187,Z187,X187,V187,T187,R187,P187,N187,L187,J187,H187,F187)","v":0}]
["TOTAL HOURS",null,null,null,null,{"$f":"SUM(F179:F187)","v":0},null,{"$f":"SUM(H179:H187)","v":0},null,{"$f":"SUM(J179:J187)","v":0},null,{"$f":"SUM(L179:L187)","v":0},null,{"$f":"SUM(N179:N187)","v":0},null,{"$f":"SUM(P179:P187)","v":0},null,{"$f":"SUM(R179:R187)","v":0},null,{"$f":"SUM(T179:T187)","v":0},null,{"$f":"SUM(V179:V187)","v":0},null,{"$f":"SUM(X179:X187)","v":0},null,{"$f":"SUM(Z179:Z187)","v":0},null,{"$f":"SUM(AB179:AB187)","v":0},null,{"$f":"SUM(AD179:AD187)","v":0},null,{"$f":"SUM(AF179:AF187)","v":0},null,{"$f":"SUM(AH179:AH187)","v":0},null,{"$f":"SUM(AJ179:AJ187)","v":0},null,{"$f":"SUM(AL179:AL187)","v":0},null,{"$f":"SUM(AN179:AN187)","v":0},null,{"$f":"SUM(AP179:AP187)","v":0},null,{"$f":"SUM(AR179:AR187)","v":0},null,{"$f":"SUM(AT179:AT187)","v":0},null,{"$f":"SUM(AV179:AV187)","v":0},null,{"$f":"SUM(AX179:AX187)","v":0},null,{"$f":"SUM(AZ179:AZ187)","v":0},null,{"$f":"SUM(BB179:BB187)","v":0},{"$f":"SUM(E188:BB188)","v":0}]
["TOTAL WORKDAYS",null,null,null,null,{"$f":"F188/8","v":0},null,{"$f":"H188/8","v":0},null,{"$f":"J188/8","v":0},null,{"$f":"L188/8","v":0},null,{"$f":"N188/8","v":0},null,{"$f":"P188/8","v":0},null,{"$f":"R188/8","v":0},null,{"$f":"T188/8","v":0},null,{"$f":"V188/8","v":0},null,{"$f":"X188/8","v":0},null,{"$f":"Z188/8","v":0},null,{"$f":"AB188/8","v":0},null,{"$f":"AD188/8","v":0},null,0,null,{"$f":"AH188/8","v":0},null,0,null,{"$f":"AL188/8","v":0},null,0,null,{"$f":"AP188/8","v":0},null,0,null,{"$f":"AT188/8","v":0},null,{"$f":"AV188/8","v":0},null,{"$f":"AX188/8","v":0},null,{"$f":"AZ188/8","v":0},null,{"$f":"BB188/8","v":0},{"$f":"SUM(E189:BB189)","v":0}]
["TOTAL RAW LABOR",null,null,null,null,{"$f":"$E$13*F188","v":0},null,{"$f":"$G$13*H188","v":0},null,{"$f":"$I$13*J188","v":0},null,{"$f":"$K$13*L188","v":0},null,{"$f":"$M$13*N188","v":0},null,{"$f":"$O$13*P188","v":0},null,{"$f":"$Q$13*R188","v":0},null,{"$f":"$S$13*T188","v":0},null,{"$f":"$U$13*V188","v":0},null,{"$f":"$W$13*X188","v":0},null,{"$f":"$Y$13*Z188","v":0},null,{"$f":"$AA$13*AB188","v":0},null,{"$f":"$AC$13*AD188","v":0},null,{"$f":"$AC$13*AF188","v":0},null,{"$f":"$AC$13*AH188","v":0},null,{"$f":"$AC$13*AJ188","v":0},null,{"$f":"$AC$13*AL188","v":0},null,{"$f":"$AC$13*AN188","v":0},null,{"$f":"$AC$13*AP188","v":0},null,{"$f":"$AC$13*AR188","v":0},null,{"$f":"$AC$13*AT188","v":0},null,{"$f":"$AC$13*AV188","v":0},null,{"$f":"$AC$13*AX188","v":0},null,{"$f":"$AC$13*AZ188","v":0},null,{"$f":"$AC$13*BB188","v":0},{"$f":"SUM(E190:BB190)","v":0}]
["Task 8.0     ","RAILROAD ENCROACHMENT PERMIT COORDINATION"]
[8.1,"Identify Railroad Crossings",null,null,{"$f":"IF($C$192=\"\",\"\",F192/$C$192)","v":""},null,{"$f":"IF($C$192=\"\",\"\",H192/$C$192)","v":""},null,{"$f":"IF($C$192=\"\",\"\",J192/$C$192)","v":""},null,{"$f":"IF($C$192=\"\",\"\",L192/$C$192)","v":""},null,{"$f":"IF($C$192=\"\",\"\",N192/$C$192)","v":""},null,{"$f":"IF($C$192=\"\",\"\",P192/$C$192)","v":""},null,{"$f":"IF($C$192=\"\",\"\",R192/$C$192)","v":""},null,{"$f":"IF($C$192=\"\",\"\",T192/$C$192)","v":""},null,{"$f":"IF($C$192=\"\",\"\",V192/$C$192)","v":""},null,{"$f":"IF($C$192=\"\",\"\",X192/$C$192)","v":""},null,{"$f":"IF($C$192=\"\",\"\",Z192/$C$192)","v":""},null,{"$f":"IF($C$192=\"\",\"\",AB192/$C$192)","v":""},null,{"$f":"IF($C$192=\"\",\"\",AD192/$C$192)","v":""},null,{"$f":"IF($C$192=\"\",\"\",AF192/$C$192)","v":""},null,{"$f":"IF($C$192=\"\",\"\",AH192/$C$192)","v":""},null,{"$f":"IF($C$192=\"\",\"\",AJ192/$C$192)","v":""},null,{"$f":"IF($C$192=\"\",\"\",AL192/$C$192)","v":""},null,{"$f":"IF($C$192=\"\",\"\",AN192/$C$192)","v":""},null,{"$f":"IF($C$192=\"\",\"\",AP192/$C$192)","v":""},null,{"$f":"IF($C$192=\"\",\"\",AR192/$C$192)","v":""},null,{"$f":"IF($C$192=\"\",\"\",AT192/$C$192)","v":""},null,{"$f":"IF($C$192=\"\",\"\",AV192/$C$192)","v":""},null,{"$f":"IF($C$192=\"\",\"\",AX192/$C$192)","v":""},null,{"$f":"IF($C$192=\"\",\"\",AZ192/$C$192)","v":""},null,{"$f":"IF($C$192=\"\",\"\",BB192/$C$192)","v":""},null,{"$f":"SUM(BB192,AZ192,AX192,AV192,AT192,AR192,AP192,AN192,AL192,AJ192,AH192,AF192,AD192,AB192,Z192,X192,V192,T192,R192,P192,N192,L192,J192,H192,F192)","v":0}]
[8.1999999999999993,"Collect Railroad Encroachment Data",null,null,{"$f":"IF($C$193=\"\",\"\",F193/$C$193)","v":""},null,{"$f":"IF($C$193=\"\",\"\",H193/$C$193)","v":""},null,{"$f":"IF($C$193=\"\",\"\",J193/$C$193)","v":""},null,{"$f":"IF($C$193=\"\",\"\",L193/$C$193)","v":""},null,{"$f":"IF($C$193=\"\",\"\",N193/$C$193)","v":""},null,{"$f":"IF($C$193=\"\",\"\",P193/$C$193)","v":""},null,{"$f":"IF($C$193=\"\",\"\",R193/$C$193)","v":""},null,{"$f":"IF($C$193=\"\",\"\",T193/$C$193)","v":""},null,{"$f":"IF($C$193=\"\",\"\",V193/$C$193)","v":""},null,{"$f":"IF($C$193=\"\",\"\",X193/$C$193)","v":""},null,{"$f":"IF($C$193=\"\",\"\",Z193/$C$193)","v":""},null,{"$f":"IF($C$193=\"\",\"\",AB193/$C$193)","v":""},null,{"$f":"IF($C$193=\"\",\"\",AD193/$C$193)","v":""},null,{"$f":"IF($C$193=\"\",\"\",AF193/$C$193)","v":""},null,{"$f":"IF($C$193=\"\",\"\",AH193/$C$193)","v":""},null,{"$f":"IF($C$193=\"\",\"\",AJ193/$C$193)","v":""},null,{"$f":"IF($C$193=\"\",\"\",AL193/$C$193)","v":""},null,{"$f":"IF($C$193=\"\",\"\",AN193/$C$193)","v":""},null,{"$f":"IF($C$193=\"\",\"\",AP193/$C$193)","v":""},null,{"$f":"IF($C$193=\"\",\"\",AR193/$C$193)","v":""},null,{"$f":"IF($C$193=\"\",\"\",AT193/$C$193)","v":""},null,{"$f":"IF($C$193=\"\",\"\",AV193/$C$193)","v":""},null,{"$f":"IF($C$193=\"\",\"\",AX193/$C$193)","v":""},null,{"$f":"IF($C$193=\"\",\"\",AZ193/$C$193)","v":""},null,{"$f":"IF($C$193=\"\",\"\",BB193/$C$193)","v":""},null,0]
[8.3000000000000007,"Prepare Figures & Exhibits for Permits",null,null,{"$f":"IF($C$194=\"\",\"\",F194/$C$194)","v":""},null,{"$f":"IF($C$194=\"\",\"\",H194/$C$194)","v":""},null,{"$f":"IF($C$194=\"\",\"\",J194/$C$194)","v":""},null,{"$f":"IF($C$194=\"\",\"\",L194/$C$194)","v":""},null,{"$f":"IF($C$194=\"\",\"\",N194/$C$194)","v":""},null,{"$f":"IF($C$194=\"\",\"\",P194/$C$194)","v":""},null,{"$f":"IF($C$194=\"\",\"\",R194/$C$194)","v":""},null,{"$f":"IF($C$194=\"\",\"\",T194/$C$194)","v":""},null,{"$f":"IF($C$194=\"\",\"\",V194/$C$194)","v":""},null,{"$f":"IF($C$194=\"\",\"\",X194/$C$194)","v":""},null,{"$f":"IF($C$194=\"\",\"\",Z194/$C$194)","v":""},null,{"$f":"IF($C$194=\"\",\"\",AB194/$C$194)","v":""},null,{"$f":"IF($C$194=\"\",\"\",AD194/$C$194)","v":""},null,{"$f":"IF($C$194=\"\",\"\",AF194/$C$194)","v":""},null,{"$f":"IF($C$194=\"\",\"\",AH194/$C$194)","v":""},null,{"$f":"IF($C$194=\"\",\"\",AJ194/$C$194)","v":""},null,{"$f":"IF($C$194=\"\",\"\",AL194/$C$194)","v":""},null,{"$f":"IF($C$194=\"\",\"\",AN194/$C$194)","v":""},null,{"$f":"IF($C$194=\"\",\"\",AP194/$C$194)","v":""},null,{"$f":"IF($C$194=\"\",\"\",AR194/$C$194)","v":""},null,{"$f":"IF($C$194=\"\",\"\",AT194/$C$194)","v":""},null,{"$f":"IF($C$194=\"\",\"\",AV194/$C$194)","v":""},null,{"$f":"IF($C$194=\"\",\"\",AX194/$C$194)","v":""},null,{"$f":"IF($C$194=\"\",\"\",AZ194/$C$194)","v":""},null,{"$f":"IF($C$194=\"\",\"\",BB194/$C$194)","v":""},null,0]
[8.4,"Complete the Permit Forms",null,null,{"$f":"IF($C$195=\"\",\"\",F195/$C$195)","v":""},null,{"$f":"IF($C$195=\"\",\"\",H195/$C$195)","v":""},null,{"$f":"IF($C$195=\"\",\"\",J195/$C$195)","v":""},null,{"$f":"IF($C$195=\"\",\"\",L195/$C$195)","v":""},null,{"$f":"IF($C$195=\"\",\"\",N195/$C$195)","v":""},null,{"$f":"IF($C$195=\"\",\"\",P195/$C$195)","v":""},null,{"$f":"IF($C$195=\"\",\"\",R195/$C$195)","v":""},null,{"$f":"IF($C$195=\"\",\"\",T195/$C$195)","v":""},null,{"$f":"IF($C$195=\"\",\"\",V195/$C$195)","v":""},null,{"$f":"IF($C$195=\"\",\"\",X195/$C$195)","v":""},null,{"$f":"IF($C$195=\"\",\"\",Z195/$C$195)","v":""},null,{"$f":"IF($C$195=\"\",\"\",AB195/$C$195)","v":""},null,{"$f":"IF($C$195=\"\",\"\",AD195/$C$195)","v":""},null,{"$f":"IF($C$195=\"\",\"\",AF195/$C$195)","v":""},null,{"$f":"IF($C$195=\"\",\"\",AH195/$C$195)","v":""},null,{"$f":"IF($C$195=\"\",\"\",AJ195/$C$195)","v":""},null,{"$f":"IF($C$195=\"\",\"\",AL195/$C$195)","v":""},null,{"$f":"IF($C$195=\"\",\"\",AN195/$C$195)","v":""},null,{"$f":"IF($C$195=\"\",\"\",AP195/$C$195)","v":""},null,{"$f":"IF($C$195=\"\",\"\",AR195/$C$195)","v":""},null,{"$f":"IF($C$195=\"\",\"\",AT195/$C$195)","v":""},null,{"$f":"IF($C$195=\"\",\"\",AV195/$C$195)","v":""},null,{"$f":"IF($C$195=\"\",\"\",AX195/$C$195)","v":""},null,{"$f":"IF($C$195=\"\",\"\",AZ195/$C$195)","v":""},null,{"$f":"IF($C$195=\"\",\"\",BB195/$C$195)","v":""},null,0]
[null,null,null,null,{"$f":"IF($C$196=\"\",\"\",F196/$C$196)","v":""},null,{"$f":"IF($C$196=\"\",\"\",H196/$C$196)","v":""},null,{"$f":"IF($C$196=\"\",\"\",J196/$C$196)","v":""},null,{"$f":"IF($C$196=\"\",\"\",L196/$C$196)","v":""},null,{"$f":"IF($C$196=\"\",\"\",N196/$C$196)","v":""},null,{"$f":"IF($C$196=\"\",\"\",P196/$C$196)","v":""},null,{"$f":"IF($C$196=\"\",\"\",R196/$C$196)","v":""},null,{"$f":"IF($C$196=\"\",\"\",T196/$C$196)","v":""},null,{"$f":"IF($C$196=\"\",\"\",V196/$C$196)","v":""},null,{"$f":"IF($C$196=\"\",\"\",X196/$C$196)","v":""},null,{"$f":"IF($C$196=\"\",\"\",Z196/$C$196)","v":""},null,{"$f":"IF($C$196=\"\",\"\",AB196/$C$196)","v":""},null,{"$f":"IF($C$196=\"\",\"\",AD196/$C$196)","v":""},null,{"$f":"IF($C$196=\"\",\"\",AF196/$C$196)","v":""},null,{"$f":"IF($C$196=\"\",\"\",AH196/$C$196)","v":""},null,{"$f":"IF($C$196=\"\",\"\",AJ196/$C$196)","v":""},null,{"$f":"IF($C$196=\"\",\"\",AL196/$C$196)","v":""},null,{"$f":"IF($C$196=\"\",\"\",AN196/$C$196)","v":""},null,{"$f":"IF($C$196=\"\",\"\",AP196/$C$196)","v":""},null,{"$f":"IF($C$196=\"\",\"\",AR196/$C$196)","v":""},null,{"$f":"IF($C$196=\"\",\"\",AT196/$C$196)","v":""},null,{"$f":"IF($C$196=\"\",\"\",AV196/$C$196)","v":""},null,{"$f":"IF($C$196=\"\",\"\",AX196/$C$196)","v":""},null,{"$f":"IF($C$196=\"\",\"\",AZ196/$C$196)","v":""},null,{"$f":"IF($C$196=\"\",\"\",BB196/$C$196)","v":""},null,0]
[null,null,null,null,{"$f":"IF($C$197=\"\",\"\",F197/$C$197)","v":""},null,{"$f":"IF($C$197=\"\",\"\",H197/$C$197)","v":""},null,{"$f":"IF($C$197=\"\",\"\",J197/$C$197)","v":""},null,{"$f":"IF($C$197=\"\",\"\",L197/$C$197)","v":""},null,{"$f":"IF($C$197=\"\",\"\",N197/$C$197)","v":""},null,{"$f":"IF($C$197=\"\",\"\",P197/$C$197)","v":""},null,{"$f":"IF($C$197=\"\",\"\",R197/$C$197)","v":""},null,{"$f":"IF($C$197=\"\",\"\",T197/$C$197)","v":""},null,{"$f":"IF($C$197=\"\",\"\",V197/$C$197)","v":""},null,{"$f":"IF($C$197=\"\",\"\",X197/$C$197)","v":""},null,{"$f":"IF($C$197=\"\",\"\",Z197/$C$197)","v":""},null,{"$f":"IF($C$197=\"\",\"\",AB197/$C$197)","v":""},null,{"$f":"IF($C$197=\"\",\"\",AD197/$C$197)","v":""},null,{"$f":"IF($C$197=\"\",\"\",AF197/$C$197)","v":""},null,{"$f":"IF($C$197=\"\",\"\",AH197/$C$197)","v":""},null,{"$f":"IF($C$197=\"\",\"\",AJ197/$C$197)","v":""},null,{"$f":"IF($C$197=\"\",\"\",AL197/$C$197)","v":""},null,{"$f":"IF($C$197=\"\",\"\",AN197/$C$197)","v":""},null,{"$f":"IF($C$197=\"\",\"\",AP197/$C$197)","v":""},null,{"$f":"IF($C$197=\"\",\"\",AR197/$C$197)","v":""},null,{"$f":"IF($C$197=\"\",\"\",AT197/$C$197)","v":""},null,{"$f":"IF($C$197=\"\",\"\",AV197/$C$197)","v":""},null,{"$f":"IF($C$197=\"\",\"\",AX197/$C$197)","v":""},null,{"$f":"IF($C$197=\"\",\"\",AZ197/$C$197)","v":""},null,{"$f":"IF($C$197=\"\",\"\",BB197/$C$197)","v":""},null,0]
[null,null,null,null,{"$f":"IF($C$198=\"\",\"\",F198/$C$198)","v":""},null,{"$f":"IF($C$198=\"\",\"\",H198/$C$198)","v":""},null,{"$f":"IF($C$198=\"\",\"\",J198/$C$198)","v":""},null,{"$f":"IF($C$198=\"\",\"\",L198/$C$198)","v":""},null,{"$f":"IF($C$198=\"\",\"\",N198/$C$198)","v":""},null,{"$f":"IF($C$198=\"\",\"\",P198/$C$198)","v":""},null,{"$f":"IF($C$198=\"\",\"\",R198/$C$198)","v":""},null,{"$f":"IF($C$198=\"\",\"\",T198/$C$198)","v":""},null,{"$f":"IF($C$198=\"\",\"\",V198/$C$198)","v":""},null,{"$f":"IF($C$198=\"\",\"\",X198/$C$198)","v":""},null,{"$f":"IF($C$198=\"\",\"\",Z198/$C$198)","v":""},null,{"$f":"IF($C$198=\"\",\"\",AB198/$C$198)","v":""},null,{"$f":"IF($C$198=\"\",\"\",AD198/$C$198)","v":""},null,{"$f":"IF($C$198=\"\",\"\",AF198/$C$198)","v":""},null,{"$f":"IF($C$198=\"\",\"\",AH198/$C$198)","v":""},null,{"$f":"IF($C$198=\"\",\"\",AJ198/$C$198)","v":""},null,{"$f":"IF($C$198=\"\",\"\",AL198/$C$198)","v":""},null,{"$f":"IF($C$198=\"\",\"\",AN198/$C$198)","v":""},null,{"$f":"IF($C$198=\"\",\"\",AP198/$C$198)","v":""},null,{"$f":"IF($C$198=\"\",\"\",AR198/$C$198)","v":""},null,{"$f":"IF($C$198=\"\",\"\",AT198/$C$198)","v":""},null,{"$f":"IF($C$198=\"\",\"\",AV198/$C$198)","v":""},null,{"$f":"IF($C$198=\"\",\"\",AX198/$C$198)","v":""},null,{"$f":"IF($C$198=\"\",\"\",AZ198/$C$198)","v":""},null,{"$f":"IF($C$198=\"\",\"\",BB198/$C$198)","v":""},null,0]
[null,null,null,null,{"$f":"IF($C$199=\"\",\"\",F199/$C$199)","v":""},null,{"$f":"IF($C$199=\"\",\"\",H199/$C$199)","v":""},null,{"$f":"IF($C$199=\"\",\"\",J199/$C$199)","v":""},null,{"$f":"IF($C$199=\"\",\"\",L199/$C$199)","v":""},null,{"$f":"IF($C$199=\"\",\"\",N199/$C$199)","v":""},null,{"$f":"IF($C$199=\"\",\"\",P199/$C$199)","v":""},null,{"$f":"IF($C$199=\"\",\"\",R199/$C$199)","v":""},null,{"$f":"IF($C$199=\"\",\"\",T199/$C$199)","v":""},null,{"$f":"IF($C$199=\"\",\"\",V199/$C$199)","v":""},null,{"$f":"IF($C$199=\"\",\"\",X199/$C$199)","v":""},null,{"$f":"IF($C$199=\"\",\"\",Z199/$C$199)","v":""},null,{"$f":"IF($C$199=\"\",\"\",AB199/$C$199)","v":""},null,{"$f":"IF($C$199=\"\",\"\",AD199/$C$199)","v":""},null,{"$f":"IF($C$199=\"\",\"\",AF199/$C$199)","v":""},null,{"$f":"IF($C$199=\"\",\"\",AH199/$C$199)","v":""},null,{"$f":"IF($C$199=\"\",\"\",AJ199/$C$199)","v":""},null,{"$f":"IF($C$199=\"\",\"\",AL199/$C$199)","v":""},null,{"$f":"IF($C$199=\"\",\"\",AN199/$C$199)","v":""},null,{"$f":"IF($C$199=\"\",\"\",AP199/$C$199)","v":""},null,{"$f":"IF($C$199=\"\",\"\",AR199/$C$199)","v":""},null,{"$f":"IF($C$199=\"\",\"\",AT199/$C$199)","v":""},null,{"$f":"IF($C$199=\"\",\"\",AV199/$C$199)","v":""},null,{"$f":"IF($C$199=\"\",\"\",AX199/$C$199)","v":""},null,{"$f":"IF($C$199=\"\",\"\",AZ199/$C$199)","v":""},null,{"$f":"IF($C$199=\"\",\"\",BB199/$C$199)","v":""},null,0]
[null,null,null,null,{"$f":"IF($C$200=\"\",\"\",F200/$C$200)","v":""},null,{"$f":"IF($C$200=\"\",\"\",H200/$C$200)","v":""},null,{"$f":"IF($C$200=\"\",\"\",J200/$C$200)","v":""},null,{"$f":"IF($C$200=\"\",\"\",L200/$C$200)","v":""},null,{"$f":"IF($C$200=\"\",\"\",N200/$C$200)","v":""},null,{"$f":"IF($C$200=\"\",\"\",P200/$C$200)","v":""},null,{"$f":"IF($C$200=\"\",\"\",R200/$C$200)","v":""},null,{"$f":"IF($C$200=\"\",\"\",T200/$C$200)","v":""},null,{"$f":"IF($C$200=\"\",\"\",V200/$C$200)","v":""},null,{"$f":"IF($C$200=\"\",\"\",X200/$C$200)","v":""},null,{"$f":"IF($C$200=\"\",\"\",Z200/$C$200)","v":""},null,{"$f":"IF($C$200=\"\",\"\",AB200/$C$200)","v":""},null,{"$f":"IF($C$200=\"\",\"\",AD200/$C$200)","v":""},null,{"$f":"IF($C$200=\"\",\"\",AF200/$C$200)","v":""},null,{"$f":"IF($C$200=\"\",\"\",AH200/$C$200)","v":""},null,{"$f":"IF($C$200=\"\",\"\",AJ200/$C$200)","v":""},null,{"$f":"IF($C$200=\"\",\"\",AL200/$C$200)","v":""},null,{"$f":"IF($C$200=\"\",\"\",AN200/$C$200)","v":""},null,{"$f":"IF($C$200=\"\",\"\",AP200/$C$200)","v":""},null,{"$f":"IF($C$200=\"\",\"\",AR200/$C$200)","v":""},null,{"$f":"IF($C$200=\"\",\"\",AT200/$C$200)","v":""},null,{"$f":"IF($C$200=\"\",\"\",AV200/$C$200)","v":""},null,{"$f":"IF($C$200=\"\",\"\",AX200/$C$200)","v":""},null,{"$f":"IF($C$200=\"\",\"\",AZ200/$C$200)","v":""},null,{"$f":"IF($C$200=\"\",\"\",BB200/$C$200)","v":""},null,0]
[null,null,null,null,{"$f":"IF($C$201=\"\",\"\",F201/$C$201)","v":""},null,{"$f":"IF($C$201=\"\",\"\",H201/$C$201)","v":""},null,{"$f":"IF($C$201=\"\",\"\",J201/$C$201)","v":""},null,{"$f":"IF($C$201=\"\",\"\",L201/$C$201)","v":""},null,{"$f":"IF($C$201=\"\",\"\",N201/$C$201)","v":""},null,{"$f":"IF($C$201=\"\",\"\",P201/$C$201)","v":""},null,{"$f":"IF($C$201=\"\",\"\",R201/$C$201)","v":""},null,{"$f":"IF($C$201=\"\",\"\",T201/$C$201)","v":""},null,{"$f":"IF($C$201=\"\",\"\",V201/$C$201)","v":""},null,{"$f":"IF($C$201=\"\",\"\",X201/$C$201)","v":""},null,{"$f":"IF($C$201=\"\",\"\",Z201/$C$201)","v":""},null,{"$f":"IF($C$201=\"\",\"\",AB201/$C$201)","v":""},null,{"$f":"IF($C$201=\"\",\"\",AD201/$C$201)","v":""},null,{"$f":"IF($C$201=\"\",\"\",AF201/$C$201)","v":""},null,{"$f":"IF($C$201=\"\",\"\",AH201/$C$201)","v":""},null,{"$f":"IF($C$201=\"\",\"\",AJ201/$C$201)","v":""},null,{"$f":"IF($C$201=\"\",\"\",AL201/$C$201)","v":""},null,{"$f":"IF($C$201=\"\",\"\",AN201/$C$201)","v":""},null,{"$f":"IF($C$201=\"\",\"\",AP201/$C$201)","v":""},null,{"$f":"IF($C$201=\"\",\"\",AR201/$C$201)","v":""},null,{"$f":"IF($C$201=\"\",\"\",AT201/$C$201)","v":""},null,{"$f":"IF($C$201=\"\",\"\",AV201/$C$201)","v":""},null,{"$f":"IF($C$201=\"\",\"\",AX201/$C$201)","v":""},null,{"$f":"IF($C$201=\"\",\"\",AZ201/$C$201)","v":""},null,{"$f":"IF($C$201=\"\",\"\",BB201/$C$201)","v":""},null,0]
[null,null,null,null,{"$f":"IF($C$202=\"\",\"\",F202/$C$202)","v":""},null,{"$f":"IF($C$202=\"\",\"\",H202/$C$202)","v":""},null,{"$f":"IF($C$202=\"\",\"\",J202/$C$202)","v":""},null,{"$f":"IF($C$202=\"\",\"\",L202/$C$202)","v":""},null,{"$f":"IF($C$202=\"\",\"\",N202/$C$202)","v":""},null,{"$f":"IF($C$202=\"\",\"\",P202/$C$202)","v":""},null,{"$f":"IF($C$202=\"\",\"\",R202/$C$202)","v":""},null,{"$f":"IF($C$202=\"\",\"\",T202/$C$202)","v":""},null,{"$f":"IF($C$202=\"\",\"\",V202/$C$202)","v":""},null,{"$f":"IF($C$202=\"\",\"\",X202/$C$202)","v":""},null,{"$f":"IF($C$202=\"\",\"\",Z202/$C$202)","v":""},null,{"$f":"IF($C$202=\"\",\"\",AB202/$C$202)","v":""},null,{"$f":"IF($C$202=\"\",\"\",AD202/$C$202)","v":""},null,{"$f":"IF($C$202=\"\",\"\",AF202/$C$202)","v":""},null,{"$f":"IF($C$202=\"\",\"\",AH202/$C$202)","v":""},null,{"$f":"IF($C$202=\"\",\"\",AJ202/$C$202)","v":""},null,{"$f":"IF($C$202=\"\",\"\",AL202/$C$202)","v":""},null,{"$f":"IF($C$202=\"\",\"\",AN202/$C$202)","v":""},null,{"$f":"IF($C$202=\"\",\"\",AP202/$C$202)","v":""},null,{"$f":"IF($C$202=\"\",\"\",AR202/$C$202)","v":""},null,{"$f":"IF($C$202=\"\",\"\",AT202/$C$202)","v":""},null,{"$f":"IF($C$202=\"\",\"\",AV202/$C$202)","v":""},null,{"$f":"IF($C$202=\"\",\"\",AX202/$C$202)","v":""},null,{"$f":"IF($C$202=\"\",\"\",AZ202/$C$202)","v":""},null,{"$f":"IF($C$202=\"\",\"\",BB202/$C$202)","v":""},null,{"$f":"SUM(BB202,AZ202,AX202,AV202,AT202,AR202,AP202,AN202,AL202,AJ202,AH202,AF202,AD202,AB202,Z202,X202,V202,T202,R202,P202,N202,L202,J202,H202,F202)","v":0}]
["TOTAL HOURS",null,null,null,null,{"$f":"SUM(F192:F202)","v":0},null,{"$f":"SUM(H192:H202)","v":0},null,{"$f":"SUM(J192:J202)","v":0},null,{"$f":"SUM(L192:L202)","v":0},null,{"$f":"SUM(N192:N202)","v":0},null,{"$f":"SUM(P192:P202)","v":0},null,{"$f":"SUM(R192:R202)","v":0},null,{"$f":"SUM(T192:T202)","v":0},null,{"$f":"SUM(V192:V202)","v":0},null,{"$f":"SUM(X192:X202)","v":0},null,{"$f":"SUM(Z192:Z202)","v":0},null,{"$f":"SUM(AB192:AB202)","v":0},null,{"$f":"SUM(AD192:AD202)","v":0},null,{"$f":"SUM(AF192:AF202)","v":0},null,{"$f":"SUM(AH192:AH202)","v":0},null,{"$f":"SUM(AJ192:AJ202)","v":0},null,{"$f":"SUM(AL192:AL202)","v":0},null,{"$f":"SUM(AN192:AN202)","v":0},null,{"$f":"SUM(AP192:AP202)","v":0},null,{"$f":"SUM(AR192:AR202)","v":0},null,{"$f":"SUM(AT192:AT202)","v":0},null,{"$f":"SUM(AV192:AV202)","v":0},null,{"$f":"SUM(AX192:AX202)","v":0},null,{"$f":"SUM(AZ192:AZ202)","v":0},null,{"$f":"SUM(BB192:BB202)","v":0},{"$f":"SUM(E203:BB203)","v":0}]
["TOTAL WORKDAYS",null,null,null,null,{"$f":"F203/8","v":0},null,{"$f":"H203/8","v":0},null,{"$f":"J203/8","v":0},null,{"$f":"L203/8","v":0},null,{"$f":"N203/8","v":0},null,{"$f":"P203/8","v":0},null,{"$f":"R203/8","v":0},null,{"$f":"T203/8","v":0},null,{"$f":"V203/8","v":0},null,{"$f":"X203/8","v":0},null,{"$f":"Z203/8","v":0},null,{"$f":"AB203/8","v":0},null,{"$f":"AD203/8","v":0},null,0,null,{"$f":"AH203/8","v":0},null,0,null,{"$f":"AL203/8","v":0},null,0,null,{"$f":"AP203/8","v":0},null,0,null,{"$f":"AT203/8","v":0},null,{"$f":"AV203/8","v":0},null,{"$f":"AX203/8","v":0},null,{"$f":"AZ203/8","v":0},null,{"$f":"BB203/8","v":0},{"$f":"SUM(E204:BB204)","v":0}]
["TOTAL RAW LABOR",null,null,null,null,{"$f":"$E$13*F203","v":0},null,{"$f":"$G$13*H203","v":0},null,{"$f":"$I$13*J203","v":0},null,{"$f":"$K$13*L203","v":0},null,{"$f":"$M$13*N203","v":0},null,{"$f":"$O$13*P203","v":0},null,{"$f":"$Q$13*R203","v":0},null,{"$f":"$S$13*T203","v":0},null,{"$f":"$U$13*V203","v":0},null,{"$f":"$W$13*X203","v":0},null,{"$f":"$Y$13*Z203","v":0},null,{"$f":"$AA$13*AB203","v":0},null,{"$f":"$AC$13*AD203","v":0},null,{"$f":"$AC$13*AF203","v":0},null,{"$f":"$AC$13*AH203","v":0},null,{"$f":"$AC$13*AJ203","v":0},null,{"$f":"$AC$13*AL203","v":0},null,{"$f":"$AC$13*AN203","v":0},null,{"$f":"$AC$13*AP203","v":0},null,{"$f":"$AC$13*AR203","v":0},null,{"$f":"$AC$13*AT203","v":0},null,{"$f":"$AC$13*AV203","v":0},null,{"$f":"$AC$13*AX203","v":0},null,{"$f":"$AC$13*AZ203","v":0},null,{"$f":"$AC$13*BB203","v":0},{"$f":"SUM(E205:BB205)","v":0}]
["Task 9.0     ","BASIS OF DESIGN DOCUMENT (BODD)"]
[9.1,"Basis of Design Document (BODD)"]
["    9.1.1","    Prepare and Maintain BODD Notebook",null,null,{"$f":"IF($C$208=\"\",\"\",F208/$C$208)","v":""},null,{"$f":"IF($C$208=\"\",\"\",H208/$C$208)","v":""},null,{"$f":"IF($C$208=\"\",\"\",J208/$C$208)","v":""},null,{"$f":"IF($C$208=\"\",\"\",L208/$C$208)","v":""},null,{"$f":"IF($C$208=\"\",\"\",N208/$C$208)","v":""},null,{"$f":"IF($C$208=\"\",\"\",P208/$C$208)","v":""},null,{"$f":"IF($C$208=\"\",\"\",R208/$C$208)","v":""},null,{"$f":"IF($C$208=\"\",\"\",T208/$C$208)","v":""},null,{"$f":"IF($C$208=\"\",\"\",V208/$C$208)","v":""},null,{"$f":"IF($C$208=\"\",\"\",X208/$C$208)","v":""},null,{"$f":"IF($C$208=\"\",\"\",Z208/$C$208)","v":""},null,{"$f":"IF($C$208=\"\",\"\",AB208/$C$208)","v":""},null,{"$f":"IF($C$208=\"\",\"\",AD208/$C$208)","v":""},null,{"$f":"IF($C$208=\"\",\"\",AF208/$C$208)","v":""},null,{"$f":"IF($C$208=\"\",\"\",AH208/$C$208)","v":""},null,{"$f":"IF($C$208=\"\",\"\",AJ208/$C$208)","v":""},null,{"$f":"IF($C$208=\"\",\"\",AL208/$C$208)","v":""},null,{"$f":"IF($C$208=\"\",\"\",AN208/$C$208)","v":""},null,{"$f":"IF($C$208=\"\",\"\",AP208/$C$208)","v":""},null,{"$f":"IF($C$208=\"\",\"\",AR208/$C$208)","v":""},null,{"$f":"IF($C$208=\"\",\"\",AT208/$C$208)","v":""},null,{"$f":"IF($C$208=\"\",\"\",AV208/$C$208)","v":""},null,{"$f":"IF($C$208=\"\",\"\",AX208/$C$208)","v":""},null,{"$f":"IF($C$208=\"\",\"\",AZ208/$C$208)","v":""},null,{"$f":"IF($C$208=\"\",\"\",BB208/$C$208)","v":""},null,{"$f":"SUM(BB208,AZ208,AX208,AV208,AT208,AR208,AP208,AN208,AL208,AJ208,AH208,AF208,AD208,AB208,Z208,X208,V208,T208,R208,P208,N208,L208,J208,H208,F208)","v":0}]
["    9.1.2","    Prepare and Distribute Project Meeting Minutes",null,null,{"$f":"IF($C$209=\"\",\"\",F209/$C$209)","v":""},null,{"$f":"IF($C$209=\"\",\"\",H209/$C$209)","v":""},null,{"$f":"IF($C$209=\"\",\"\",J209/$C$209)","v":""},null,{"$f":"IF($C$209=\"\",\"\",L209/$C$209)","v":""},null,{"$f":"IF($C$209=\"\",\"\",N209/$C$209)","v":""},null,{"$f":"IF($C$209=\"\",\"\",P209/$C$209)","v":""},null,{"$f":"IF($C$209=\"\",\"\",R209/$C$209)","v":""},null,{"$f":"IF($C$209=\"\",\"\",T209/$C$209)","v":""},null,{"$f":"IF($C$209=\"\",\"\",V209/$C$209)","v":""},null,{"$f":"IF($C$209=\"\",\"\",X209/$C$209)","v":""},null,{"$f":"IF($C$209=\"\",\"\",Z209/$C$209)","v":""},null,{"$f":"IF($C$209=\"\",\"\",AB209/$C$209)","v":""},null,{"$f":"IF($C$209=\"\",\"\",AD209/$C$209)","v":""},null,{"$f":"IF($C$209=\"\",\"\",AF209/$C$209)","v":""},null,{"$f":"IF($C$209=\"\",\"\",AH209/$C$209)","v":""},null,{"$f":"IF($C$209=\"\",\"\",AJ209/$C$209)","v":""},null,{"$f":"IF($C$209=\"\",\"\",AL209/$C$209)","v":""},null,{"$f":"IF($C$209=\"\",\"\",AN209/$C$209)","v":""},null,{"$f":"IF($C$209=\"\",\"\",AP209/$C$209)","v":""},null,{"$f":"IF($C$209=\"\",\"\",AR209/$C$209)","v":""},null,{"$f":"IF($C$209=\"\",\"\",AT209/$C$209)","v":""},null,{"$f":"IF($C$209=\"\",\"\",AV209/$C$209)","v":""},null,{"$f":"IF($C$209=\"\",\"\",AX209/$C$209)","v":""},null,{"$f":"IF($C$209=\"\",\"\",AZ209/$C$209)","v":""},null,{"$f":"IF($C$209=\"\",\"\",BB209/$C$209)","v":""},null,0]
["    9.1.3",null,null,null,{"$f":"IF($C$210=\"\",\"\",F210/$C$210)","v":""},null,{"$f":"IF($C$210=\"\",\"\",H210/$C$210)","v":""},null,{"$f":"IF($C$210=\"\",\"\",J210/$C$210)","v":""},null,{"$f":"IF($C$210=\"\",\"\",L210/$C$210)","v":""},null,{"$f":"IF($C$210=\"\",\"\",N210/$C$210)","v":""},null,{"$f":"IF($C$210=\"\",\"\",P210/$C$210)","v":""},null,{"$f":"IF($C$210=\"\",\"\",R210/$C$210)","v":""},null,{"$f":"IF($C$210=\"\",\"\",T210/$C$210)","v":""},null,{"$f":"IF($C$210=\"\",\"\",V210/$C$210)","v":""},null,{"$f":"IF($C$210=\"\",\"\",X210/$C$210)","v":""},null,{"$f":"IF($C$210=\"\",\"\",Z210/$C$210)","v":""},null,{"$f":"IF($C$210=\"\",\"\",AB210/$C$210)","v":""},null,{"$f":"IF($C$210=\"\",\"\",AD210/$C$210)","v":""},null,{"$f":"IF($C$210=\"\",\"\",AF210/$C$210)","v":""},null,{"$f":"IF($C$210=\"\",\"\",AH210/$C$210)","v":""},null,{"$f":"IF($C$210=\"\",\"\",AJ210/$C$210)","v":""},null,{"$f":"IF($C$210=\"\",\"\",AL210/$C$210)","v":""},null,{"$f":"IF($C$210=\"\",\"\",AN210/$C$210)","v":""},null,{"$f":"IF($C$210=\"\",\"\",AP210/$C$210)","v":""},null,{"$f":"IF($C$210=\"\",\"\",AR210/$C$210)","v":""},null,{"$f":"IF($C$210=\"\",\"\",AT210/$C$210)","v":""},null,{"$f":"IF($C$210=\"\",\"\",AV210/$C$210)","v":""},null,{"$f":"IF($C$210=\"\",\"\",AX210/$C$210)","v":""},null,{"$f":"IF($C$210=\"\",\"\",AZ210/$C$210)","v":""},null,{"$f":"IF($C$210=\"\",\"\",BB210/$C$210)","v":""},null,0]
["    9.1.4",null,null,null,{"$f":"IF($C$211=\"\",\"\",F211/$C$211)","v":""},null,{"$f":"IF($C$211=\"\",\"\",H211/$C$211)","v":""},null,{"$f":"IF($C$211=\"\",\"\",J211/$C$211)","v":""},null,{"$f":"IF($C$211=\"\",\"\",L211/$C$211)","v":""},null,{"$f":"IF($C$211=\"\",\"\",N211/$C$211)","v":""},null,{"$f":"IF($C$211=\"\",\"\",P211/$C$211)","v":""},null,{"$f":"IF($C$211=\"\",\"\",R211/$C$211)","v":""},null,{"$f":"IF($C$211=\"\",\"\",T211/$C$211)","v":""},null,{"$f":"IF($C$211=\"\",\"\",V211/$C$211)","v":""},null,{"$f":"IF($C$211=\"\",\"\",X211/$C$211)","v":""},null,{"$f":"IF($C$211=\"\",\"\",Z211/$C$211)","v":""},null,{"$f":"IF($C$211=\"\",\"\",AB211/$C$211)","v":""},null,{"$f":"IF($C$211=\"\",\"\",AD211/$C$211)","v":""},null,{"$f":"IF($C$211=\"\",\"\",AF211/$C$211)","v":""},null,{"$f":"IF($C$211=\"\",\"\",AH211/$C$211)","v":""},null,{"$f":"IF($C$211=\"\",\"\",AJ211/$C$211)","v":""},null,{"$f":"IF($C$211=\"\",\"\",AL211/$C$211)","v":""},null,{"$f":"IF($C$211=\"\",\"\",AN211/$C$211)","v":""},null,{"$f":"IF($C$211=\"\",\"\",AP211/$C$211)","v":""},null,{"$f":"IF($C$211=\"\",\"\",AR211/$C$211)","v":""},null,{"$f":"IF($C$211=\"\",\"\",AT211/$C$211)","v":""},null,{"$f":"IF($C$211=\"\",\"\",AV211/$C$211)","v":""},null,{"$f":"IF($C$211=\"\",\"\",AX211/$C$211)","v":""},null,{"$f":"IF($C$211=\"\",\"\",AZ211/$C$211)","v":""},null,{"$f":"IF($C$211=\"\",\"\",BB211/$C$211)","v":""},null,0]
["    9.1.5",null,null,null,{"$f":"IF($C$212=\"\",\"\",F212/$C$212)","v":""},null,{"$f":"IF($C$212=\"\",\"\",H212/$C$212)","v":""},null,{"$f":"IF($C$212=\"\",\"\",J212/$C$212)","v":""},null,{"$f":"IF($C$212=\"\",\"\",L212/$C$212)","v":""},null,{"$f":"IF($C$212=\"\",\"\",N212/$C$212)","v":""},null,{"$f":"IF($C$212=\"\",\"\",P212/$C$212)","v":""},null,{"$f":"IF($C$212=\"\",\"\",R212/$C$212)","v":""},null,{"$f":"IF($C$212=\"\",\"\",T212/$C$212)","v":""},null,{"$f":"IF($C$212=\"\",\"\",V212/$C$212)","v":""},null,{"$f":"IF($C$212=\"\",\"\",X212/$C$212)","v":""},null,{"$f":"IF($C$212=\"\",\"\",Z212/$C$212)","v":""},null,{"$f":"IF($C$212=\"\",\"\",AB212/$C$212)","v":""},null,{"$f":"IF($C$212=\"\",\"\",AD212/$C$212)","v":""},null,{"$f":"IF($C$212=\"\",\"\",AF212/$C$212)","v":""},null,{"$f":"IF($C$212=\"\",\"\",AH212/$C$212)","v":""},null,{"$f":"IF($C$212=\"\",\"\",AJ212/$C$212)","v":""},null,{"$f":"IF($C$212=\"\",\"\",AL212/$C$212)","v":""},null,{"$f":"IF($C$212=\"\",\"\",AN212/$C$212)","v":""},null,{"$f":"IF($C$212=\"\",\"\",AP212/$C$212)","v":""},null,{"$f":"IF($C$212=\"\",\"\",AR212/$C$212)","v":""},null,{"$f":"IF($C$212=\"\",\"\",AT212/$C$212)","v":""},null,{"$f":"IF($C$212=\"\",\"\",AV212/$C$212)","v":""},null,{"$f":"IF($C$212=\"\",\"\",AX212/$C$212)","v":""},null,{"$f":"IF($C$212=\"\",\"\",AZ212/$C$212)","v":""},null,{"$f":"IF($C$212=\"\",\"\",BB212/$C$212)","v":""},null,0]
[null,null,null,null,{"$f":"IF($C$213=\"\",\"\",F213/$C$213)","v":""},null,{"$f":"IF($C$213=\"\",\"\",H213/$C$213)","v":""},null,{"$f":"IF($C$213=\"\",\"\",J213/$C$213)","v":""},null,{"$f":"IF($C$213=\"\",\"\",L213/$C$213)","v":""},null,{"$f":"IF($C$213=\"\",\"\",N213/$C$213)","v":""},null,{"$f":"IF($C$213=\"\",\"\",P213/$C$213)","v":""},null,{"$f":"IF($C$213=\"\",\"\",R213/$C$213)","v":""},null,{"$f":"IF($C$213=\"\",\"\",T213/$C$213)","v":""},null,{"$f":"IF($C$213=\"\",\"\",V213/$C$213)","v":""},null,{"$f":"IF($C$213=\"\",\"\",X213/$C$213)","v":""},null,{"$f":"IF($C$213=\"\",\"\",Z213/$C$213)","v":""},null,{"$f":"IF($C$213=\"\",\"\",AB213/$C$213)","v":""},null,{"$f":"IF($C$213=\"\",\"\",AD213/$C$213)","v":""},null,{"$f":"IF($C$213=\"\",\"\",AF213/$C$213)","v":""},null,{"$f":"IF($C$213=\"\",\"\",AH213/$C$213)","v":""},null,{"$f":"IF($C$213=\"\",\"\",AJ213/$C$213)","v":""},null,{"$f":"IF($C$213=\"\",\"\",AL213/$C$213)","v":""},null,{"$f":"IF($C$213=\"\",\"\",AN213/$C$213)","v":""},null,{"$f":"IF($C$213=\"\",\"\",AP213/$C$213)","v":""},null,{"$f":"IF($C$213=\"\",\"\",AR213/$C$213)","v":""},null,{"$f":"IF($C$213=\"\",\"\",AT213/$C$213)","v":""},null,{"$f":"IF($C$213=\"\",\"\",AV213/$C$213)","v":""},null,{"$f":"IF($C$213=\"\",\"\",AX213/$C$213)","v":""},null,{"$f":"IF($C$213=\"\",\"\",AZ213/$C$213)","v":""},null,{"$f":"IF($C$213=\"\",\"\",BB213/$C$213)","v":""},null,0]
[null,null,null,null,{"$f":"IF($C$214=\"\",\"\",F214/$C$214)","v":""},null,{"$f":"IF($C$214=\"\",\"\",H214/$C$214)","v":""},null,{"$f":"IF($C$214=\"\",\"\",J214/$C$214)","v":""},null,{"$f":"IF($C$214=\"\",\"\",L214/$C$214)","v":""},null,{"$f":"IF($C$214=\"\",\"\",N214/$C$214)","v":""},null,{"$f":"IF($C$214=\"\",\"\",P214/$C$214)","v":""},null,{"$f":"IF($C$214=\"\",\"\",R214/$C$214)","v":""},null,{"$f":"IF($C$214=\"\",\"\",T214/$C$214)","v":""},null,{"$f":"IF($C$214=\"\",\"\",V214/$C$214)","v":""},null,{"$f":"IF($C$214=\"\",\"\",X214/$C$214)","v":""},null,{"$f":"IF($C$214=\"\",\"\",Z214/$C$214)","v":""},null,{"$f":"IF($C$214=\"\",\"\",AB214/$C$214)","v":""},null,{"$f":"IF($C$214=\"\",\"\",AD214/$C$214)","v":""},null,{"$f":"IF($C$214=\"\",\"\",AF214/$C$214)","v":""},null,{"$f":"IF($C$214=\"\",\"\",AH214/$C$214)","v":""},null,{"$f":"IF($C$214=\"\",\"\",AJ214/$C$214)","v":""},null,{"$f":"IF($C$214=\"\",\"\",AL214/$C$214)","v":""},null,{"$f":"IF($C$214=\"\",\"\",AN214/$C$214)","v":""},null,{"$f":"IF($C$214=\"\",\"\",AP214/$C$214)","v":""},null,{"$f":"IF($C$214=\"\",\"\",AR214/$C$214)","v":""},null,{"$f":"IF($C$214=\"\",\"\",AT214/$C$214)","v":""},null,{"$f":"IF($C$214=\"\",\"\",AV214/$C$214)","v":""},null,{"$f":"IF($C$214=\"\",\"\",AX214/$C$214)","v":""},null,{"$f":"IF($C$214=\"\",\"\",AZ214/$C$214)","v":""},null,{"$f":"IF($C$214=\"\",\"\",BB214/$C$214)","v":""},null,0]
[null,null,null,null,{"$f":"IF($C$215=\"\",\"\",F215/$C$215)","v":""},null,{"$f":"IF($C$215=\"\",\"\",H215/$C$215)","v":""},null,{"$f":"IF($C$215=\"\",\"\",J215/$C$215)","v":""},null,{"$f":"IF($C$215=\"\",\"\",L215/$C$215)","v":""},null,{"$f":"IF($C$215=\"\",\"\",N215/$C$215)","v":""},null,{"$f":"IF($C$215=\"\",\"\",P215/$C$215)","v":""},null,{"$f":"IF($C$215=\"\",\"\",R215/$C$215)","v":""},null,{"$f":"IF($C$215=\"\",\"\",T215/$C$215)","v":""},null,{"$f":"IF($C$215=\"\",\"\",V215/$C$215)","v":""},null,{"$f":"IF($C$215=\"\",\"\",X215/$C$215)","v":""},null,{"$f":"IF($C$215=\"\",\"\",Z215/$C$215)","v":""},null,{"$f":"IF($C$215=\"\",\"\",AB215/$C$215)","v":""},null,{"$f":"IF($C$215=\"\",\"\",AD215/$C$215)","v":""},null,{"$f":"IF($C$215=\"\",\"\",AF215/$C$215)","v":""},null,{"$f":"IF($C$215=\"\",\"\",AH215/$C$215)","v":""},null,{"$f":"IF($C$215=\"\",\"\",AJ215/$C$215)","v":""},null,{"$f":"IF($C$215=\"\",\"\",AL215/$C$215)","v":""},null,{"$f":"IF($C$215=\"\",\"\",AN215/$C$215)","v":""},null,{"$f":"IF($C$215=\"\",\"\",AP215/$C$215)","v":""},null,{"$f":"IF($C$215=\"\",\"\",AR215/$C$215)","v":""},null,{"$f":"IF($C$215=\"\",\"\",AT215/$C$215)","v":""},null,{"$f":"IF($C$215=\"\",\"\",AV215/$C$215)","v":""},null,{"$f":"IF($C$215=\"\",\"\",AX215/$C$215)","v":""},null,{"$f":"IF($C$215=\"\",\"\",AZ215/$C$215)","v":""},null,{"$f":"IF($C$215=\"\",\"\",BB215/$C$215)","v":""},null,0]
[null,null,null,null,{"$f":"IF($C$216=\"\",\"\",F216/$C$216)","v":""},null,{"$f":"IF($C$216=\"\",\"\",H216/$C$216)","v":""},null,{"$f":"IF($C$216=\"\",\"\",J216/$C$216)","v":""},null,{"$f":"IF($C$216=\"\",\"\",L216/$C$216)","v":""},null,{"$f":"IF($C$216=\"\",\"\",N216/$C$216)","v":""},null,{"$f":"IF($C$216=\"\",\"\",P216/$C$216)","v":""},null,{"$f":"IF($C$216=\"\",\"\",R216/$C$216)","v":""},null,{"$f":"IF($C$216=\"\",\"\",T216/$C$216)","v":""},null,{"$f":"IF($C$216=\"\",\"\",V216/$C$216)","v":""},null,{"$f":"IF($C$216=\"\",\"\",X216/$C$216)","v":""},null,{"$f":"IF($C$216=\"\",\"\",Z216/$C$216)","v":""},null,{"$f":"IF($C$216=\"\",\"\",AB216/$C$216)","v":""},null,{"$f":"IF($C$216=\"\",\"\",AD216/$C$216)","v":""},null,{"$f":"IF($C$216=\"\",\"\",AF216/$C$216)","v":""},null,{"$f":"IF($C$216=\"\",\"\",AH216/$C$216)","v":""},null,{"$f":"IF($C$216=\"\",\"\",AJ216/$C$216)","v":""},null,{"$f":"IF($C$216=\"\",\"\",AL216/$C$216)","v":""},null,{"$f":"IF($C$216=\"\",\"\",AN216/$C$216)","v":""},null,{"$f":"IF($C$216=\"\",\"\",AP216/$C$216)","v":""},null,{"$f":"IF($C$216=\"\",\"\",AR216/$C$216)","v":""},null,{"$f":"IF($C$216=\"\",\"\",AT216/$C$216)","v":""},null,{"$f":"IF($C$216=\"\",\"\",AV216/$C$216)","v":""},null,{"$f":"IF($C$216=\"\",\"\",AX216/$C$216)","v":""},null,{"$f":"IF($C$216=\"\",\"\",AZ216/$C$216)","v":""},null,{"$f":"IF($C$216=\"\",\"\",BB216/$C$216)","v":""},null,0]
[null,null,null,null,{"$f":"IF($C$217=\"\",\"\",F217/$C$217)","v":""},null,{"$f":"IF($C$217=\"\",\"\",H217/$C$217)","v":""},null,{"$f":"IF($C$217=\"\",\"\",J217/$C$217)","v":""},null,{"$f":"IF($C$217=\"\",\"\",L217/$C$217)","v":""},null,{"$f":"IF($C$217=\"\",\"\",N217/$C$217)","v":""},null,{"$f":"IF($C$217=\"\",\"\",P217/$C$217)","v":""},null,{"$f":"IF($C$217=\"\",\"\",R217/$C$217)","v":""},null,{"$f":"IF($C$217=\"\",\"\",T217/$C$217)","v":""},null,{"$f":"IF($C$217=\"\",\"\",V217/$C$217)","v":""},null,{"$f":"IF($C$217=\"\",\"\",X217/$C$217)","v":""},null,{"$f":"IF($C$217=\"\",\"\",Z217/$C$217)","v":""},null,{"$f":"IF($C$217=\"\",\"\",AB217/$C$217)","v":""},null,{"$f":"IF($C$217=\"\",\"\",AD217/$C$217)","v":""},null,{"$f":"IF($C$217=\"\",\"\",AF217/$C$217)","v":""},null,{"$f":"IF($C$217=\"\",\"\",AH217/$C$217)","v":""},null,{"$f":"IF($C$217=\"\",\"\",AJ217/$C$217)","v":""},null,{"$f":"IF($C$217=\"\",\"\",AL217/$C$217)","v":""},null,{"$f":"IF($C$217=\"\",\"\",AN217/$C$217)","v":""},null,{"$f":"IF($C$217=\"\",\"\",AP217/$C$217)","v":""},null,{"$f":"IF($C$217=\"\",\"\",AR217/$C$217)","v":""},null,{"$f":"IF($C$217=\"\",\"\",AT217/$C$217)","v":""},null,{"$f":"IF($C$217=\"\",\"\",AV217/$C$217)","v":""},null,{"$f":"IF($C$217=\"\",\"\",AX217/$C$217)","v":""},null,{"$f":"IF($C$217=\"\",\"\",AZ217/$C$217)","v":""},null,{"$f":"IF($C$217=\"\",\"\",BB217/$C$217)","v":""},null,0]
[null,null,null,null,{"$f":"IF($C$218=\"\",\"\",F218/$C$218)","v":""},null,{"$f":"IF($C$218=\"\",\"\",H218/$C$218)","v":""},null,{"$f":"IF($C$218=\"\",\"\",J218/$C$218)","v":""},null,{"$f":"IF($C$218=\"\",\"\",L218/$C$218)","v":""},null,{"$f":"IF($C$218=\"\",\"\",N218/$C$218)","v":""},null,{"$f":"IF($C$218=\"\",\"\",P218/$C$218)","v":""},null,{"$f":"IF($C$218=\"\",\"\",R218/$C$218)","v":""},null,{"$f":"IF($C$218=\"\",\"\",T218/$C$218)","v":""},null,{"$f":"IF($C$218=\"\",\"\",V218/$C$218)","v":""},null,{"$f":"IF($C$218=\"\",\"\",X218/$C$218)","v":""},null,{"$f":"IF($C$218=\"\",\"\",Z218/$C$218)","v":""},null,{"$f":"IF($C$218=\"\",\"\",AB218/$C$218)","v":""},null,{"$f":"IF($C$218=\"\",\"\",AD218/$C$218)","v":""},null,{"$f":"IF($C$218=\"\",\"\",AF218/$C$218)","v":""},null,{"$f":"IF($C$218=\"\",\"\",AH218/$C$218)","v":""},null,{"$f":"IF($C$218=\"\",\"\",AJ218/$C$218)","v":""},null,{"$f":"IF($C$218=\"\",\"\",AL218/$C$218)","v":""},null,{"$f":"IF($C$218=\"\",\"\",AN218/$C$218)","v":""},null,{"$f":"IF($C$218=\"\",\"\",AP218/$C$218)","v":""},null,{"$f":"IF($C$218=\"\",\"\",AR218/$C$218)","v":""},null,{"$f":"IF($C$218=\"\",\"\",AT218/$C$218)","v":""},null,{"$f":"IF($C$218=\"\",\"\",AV218/$C$218)","v":""},null,{"$f":"IF($C$218=\"\",\"\",AX218/$C$218)","v":""},null,{"$f":"IF($C$218=\"\",\"\",AZ218/$C$218)","v":""},null,{"$f":"IF($C$218=\"\",\"\",BB218/$C$218)","v":""},null,0]
[null,null,null,null,{"$f":"IF($C$219=\"\",\"\",F219/$C$219)","v":""},null,{"$f":"IF($C$219=\"\",\"\",H219/$C$219)","v":""},null,{"$f":"IF($C$219=\"\",\"\",J219/$C$219)","v":""},null,{"$f":"IF($C$219=\"\",\"\",L219/$C$219)","v":""},null,{"$f":"IF($C$219=\"\",\"\",N219/$C$219)","v":""},null,{"$f":"IF($C$219=\"\",\"\",P219/$C$219)","v":""},null,{"$f":"IF($C$219=\"\",\"\",R219/$C$219)","v":""},null,{"$f":"IF($C$219=\"\",\"\",T219/$C$219)","v":""},null,{"$f":"IF($C$219=\"\",\"\",V219/$C$219)","v":""},null,{"$f":"IF($C$219=\"\",\"\",X219/$C$219)","v":""},null,{"$f":"IF($C$219=\"\",\"\",Z219/$C$219)","v":""},null,{"$f":"IF($C$219=\"\",\"\",AB219/$C$219)","v":""},null,{"$f":"IF($C$219=\"\",\"\",AD219/$C$219)","v":""},null,{"$f":"IF($C$219=\"\",\"\",AF219/$C$219)","v":""},null,{"$f":"IF($C$219=\"\",\"\",AH219/$C$219)","v":""},null,{"$f":"IF($C$219=\"\",\"\",AJ219/$C$219)","v":""},null,{"$f":"IF($C$219=\"\",\"\",AL219/$C$219)","v":""},null,{"$f":"IF($C$219=\"\",\"\",AN219/$C$219)","v":""},null,{"$f":"IF($C$219=\"\",\"\",AP219/$C$219)","v":""},null,{"$f":"IF($C$219=\"\",\"\",AR219/$C$219)","v":""},null,{"$f":"IF($C$219=\"\",\"\",AT219/$C$219)","v":""},null,{"$f":"IF($C$219=\"\",\"\",AV219/$C$219)","v":""},null,{"$f":"IF($C$219=\"\",\"\",AX219/$C$219)","v":""},null,{"$f":"IF($C$219=\"\",\"\",AZ219/$C$219)","v":""},null,{"$f":"IF($C$219=\"\",\"\",BB219/$C$219)","v":""},null,{"$f":"SUM(BB219,AZ219,AX219,AV219,AT219,AR219,AP219,AN219,AL219,AJ219,AH219,AF219,AD219,AB219,Z219,X219,V219,T219,R219,P219,N219,L219,J219,H219,F219)","v":0}]
["TOTAL HOURS",null,null,null,null,{"$f":"SUM(F207:F219)","v":0},null,{"$f":"SUM(H207:H219)","v":0},null,{"$f":"SUM(J207:J219)","v":0},null,{"$f":"SUM(L207:L219)","v":0},null,{"$f":"SUM(N207:N219)","v":0},null,{"$f":"SUM(P207:P219)","v":0},null,{"$f":"SUM(R207:R219)","v":0},null,{"$f":"SUM(T207:T219)","v":0},null,{"$f":"SUM(V207:V219)","v":0},null,{"$f":"SUM(X207:X219)","v":0},null,{"$f":"SUM(Z207:Z219)","v":0},null,{"$f":"SUM(AB207:AB219)","v":0},null,{"$f":"SUM(AD207:AD219)","v":0},null,{"$f":"SUM(AF207:AF219)","v":0},null,{"$f":"SUM(AH207:AH219)","v":0},null,{"$f":"SUM(AJ207:AJ219)","v":0},null,{"$f":"SUM(AL207:AL219)","v":0},null,{"$f":"SUM(AN207:AN219)","v":0},null,{"$f":"SUM(AP207:AP219)","v":0},null,{"$f":"SUM(AR207:AR219)","v":0},null,{"$f":"SUM(AT207:AT219)","v":0},null,{"$f":"SUM(AV207:AV219)","v":0},null,{"$f":"SUM(AX207:AX219)","v":0},null,{"$f":"SUM(AZ207:AZ219)","v":0},null,{"$f":"SUM(BB207:BB219)","v":0},{"$f":"SUM(E220:BB220)","v":0}]
["TOTAL WORKDAYS",null,null,null,null,{"$f":"F220/8","v":0},null,{"$f":"H220/8","v":0},null,{"$f":"J220/8","v":0},null,{"$f":"L220/8","v":0},null,{"$f":"N220/8","v":0},null,{"$f":"P220/8","v":0},null,{"$f":"R220/8","v":0},null,{"$f":"T220/8","v":0},null,{"$f":"V220/8","v":0},null,{"$f":"X220/8","v":0},null,{"$f":"Z220/8","v":0},null,{"$f":"AB220/8","v":0},null,{"$f":"AD220/8","v":0},null,0,null,{"$f":"AH220/8","v":0},null,0,null,{"$f":"AL220/8","v":0},null,0,null,{"$f":"AP220/8","v":0},null,0,null,{"$f":"AT220/8","v":0},null,{"$f":"AV220/8","v":0},null,{"$f":"AX220/8","v":0},null,{"$f":"AZ220/8","v":0},null,{"$f":"BB220/8","v":0},{"$f":"SUM(E221:BB221)","v":0}]
["TOTAL RAW LABOR",null,null,null,null,{"$f":"$E$13*F220","v":0},null,{"$f":"$G$13*H220","v":0},null,{"$f":"$I$13*J220","v":0},null,{"$f":"$K$13*L220","v":0},null,{"$f":"$M$13*N220","v":0},null,{"$f":"$O$13*P220","v":0},null,{"$f":"$Q$13*R220","v":0},null,{"$f":"$S$13*T220","v":0},null,{"$f":"$U$13*V220","v":0},null,{"$f":"$W$13*X220","v":0},null,{"$f":"$Y$13*Z220","v":0},null,{"$f":"$AA$13*AB220","v":0},null,{"$f":"$AC$13*AD220","v":0},null,{"$f":"$AC$13*AF220","v":0},null,{"$f":"$AC$13*AH220","v":0},null,{"$f":"$AC$13*AJ220","v":0},null,{"$f":"$AC$13*AL220","v":0},null,{"$f":"$AC$13*AN220","v":0},null,{"$f":"$AC$13*AP220","v":0},null,{"$f":"$AC$13*AR220","v":0},null,{"$f":"$AC$13*AT220","v":0},null,{"$f":"$AC$13*AV220","v":0},null,{"$f":"$AC$13*AX220","v":0},null,{"$f":"$AC$13*AZ220","v":0},null,{"$f":"$AC$13*BB220","v":0},{"$f":"SUM(E222:BB222)","v":0}]
["Task 10.0     ","UTILITY MAKE-READY PLANS"]
[10.1,"Utility Partnering Meeting",null,null,{"$f":"IF($C$224=\"\",\"\",F224/$C$224)","v":""},null,{"$f":"IF($C$224=\"\",\"\",H224/$C$224)","v":""},null,{"$f":"IF($C$224=\"\",\"\",J224/$C$224)","v":""},null,{"$f":"IF($C$224=\"\",\"\",L224/$C$224)","v":""},null,{"$f":"IF($C$224=\"\",\"\",N224/$C$224)","v":""},null,{"$f":"IF($C$224=\"\",\"\",P224/$C$224)","v":""},null,{"$f":"IF($C$224=\"\",\"\",R224/$C$224)","v":""},null,{"$f":"IF($C$224=\"\",\"\",T224/$C$224)","v":""},null,{"$f":"IF($C$224=\"\",\"\",V224/$C$224)","v":""},null,{"$f":"IF($C$224=\"\",\"\",X224/$C$224)","v":""},null,{"$f":"IF($C$224=\"\",\"\",Z224/$C$224)","v":""},null,{"$f":"IF($C$224=\"\",\"\",AB224/$C$224)","v":""},null,{"$f":"IF($C$224=\"\",\"\",AD224/$C$224)","v":""},null,{"$f":"IF($C$224=\"\",\"\",AF224/$C$224)","v":""},null,{"$f":"IF($C$224=\"\",\"\",AH224/$C$224)","v":""},null,{"$f":"IF($C$224=\"\",\"\",AJ224/$C$224)","v":""},null,{"$f":"IF($C$224=\"\",\"\",AL224/$C$224)","v":""},null,{"$f":"IF($C$224=\"\",\"\",AN224/$C$224)","v":""},null,{"$f":"IF($C$224=\"\",\"\",AP224/$C$224)","v":""},null,{"$f":"IF($C$224=\"\",\"\",AR224/$C$224)","v":""},null,{"$f":"IF($C$224=\"\",\"\",AT224/$C$224)","v":""},null,{"$f":"IF($C$224=\"\",\"\",AV224/$C$224)","v":""},null,{"$f":"IF($C$224=\"\",\"\",AX224/$C$224)","v":""},null,{"$f":"IF($C$224=\"\",\"\",AZ224/$C$224)","v":""},null,{"$f":"IF($C$224=\"\",\"\",BB224/$C$224)","v":""},null,{"$f":"SUM(BB224,AZ224,AX224,AV224,AT224,AR224,AP224,AN224,AL224,AJ224,AH224,AF224,AD224,AB224,Z224,X224,V224,T224,R224,P224,N224,L224,J224,H224,F224)","v":0}]
[10.199999999999999,"Acquire & Format Area-Wide Base-Mapping",null,null,{"$f":"IF($C$225=\"\",\"\",F225/$C$225)","v":""},null,{"$f":"IF($C$225=\"\",\"\",H225/$C$225)","v":""},null,{"$f":"IF($C$225=\"\",\"\",J225/$C$225)","v":""},null,{"$f":"IF($C$225=\"\",\"\",L225/$C$225)","v":""},null,{"$f":"IF($C$225=\"\",\"\",N225/$C$225)","v":""},null,{"$f":"IF($C$225=\"\",\"\",P225/$C$225)","v":""},null,{"$f":"IF($C$225=\"\",\"\",R225/$C$225)","v":""},null,{"$f":"IF($C$225=\"\",\"\",T225/$C$225)","v":""},null,{"$f":"IF($C$225=\"\",\"\",V225/$C$225)","v":""},null,{"$f":"IF($C$225=\"\",\"\",X225/$C$225)","v":""},null,{"$f":"IF($C$225=\"\",\"\",Z225/$C$225)","v":""},null,{"$f":"IF($C$225=\"\",\"\",AB225/$C$225)","v":""},null,{"$f":"IF($C$225=\"\",\"\",AD225/$C$225)","v":""},null,{"$f":"IF($C$225=\"\",\"\",AF225/$C$225)","v":""},null,{"$f":"IF($C$225=\"\",\"\",AH225/$C$225)","v":""},null,{"$f":"IF($C$225=\"\",\"\",AJ225/$C$225)","v":""},null,{"$f":"IF($C$225=\"\",\"\",AL225/$C$225)","v":""},null,{"$f":"IF($C$225=\"\",\"\",AN225/$C$225)","v":""},null,{"$f":"IF($C$225=\"\",\"\",AP225/$C$225)","v":""},null,{"$f":"IF($C$225=\"\",\"\",AR225/$C$225)","v":""},null,{"$f":"IF($C$225=\"\",\"\",AT225/$C$225)","v":""},null,{"$f":"IF($C$225=\"\",\"\",AV225/$C$225)","v":""},null,{"$f":"IF($C$225=\"\",\"\",AX225/$C$225)","v":""},null,{"$f":"IF($C$225=\"\",\"\",AZ225/$C$225)","v":""},null,{"$f":"IF($C$225=\"\",\"\",BB225/$C$225)","v":""},null,0]
[10.3,"Preliminary Survey of Candidate Cable Routes ",null,null,{"$f":"IF($C$226=\"\",\"\",F226/$C$226)","v":""},null,{"$f":"IF($C$226=\"\",\"\",H226/$C$226)","v":""},null,{"$f":"IF($C$226=\"\",\"\",J226/$C$226)","v":""},null,{"$f":"IF($C$226=\"\",\"\",L226/$C$226)","v":""},null,{"$f":"IF($C$226=\"\",\"\",N226/$C$226)","v":""},null,{"$f":"IF($C$226=\"\",\"\",P226/$C$226)","v":""},null,{"$f":"IF($C$226=\"\",\"\",R226/$C$226)","v":""},null,{"$f":"IF($C$226=\"\",\"\",T226/$C$226)","v":""},null,{"$f":"IF($C$226=\"\",\"\",V226/$C$226)","v":""},null,{"$f":"IF($C$226=\"\",\"\",X226/$C$226)","v":""},null,{"$f":"IF($C$226=\"\",\"\",Z226/$C$226)","v":""},null,{"$f":"IF($C$226=\"\",\"\",AB226/$C$226)","v":""},null,{"$f":"IF($C$226=\"\",\"\",AD226/$C$226)","v":""},null,{"$f":"IF($C$226=\"\",\"\",AF226/$C$226)","v":""},null,{"$f":"IF($C$226=\"\",\"\",AH226/$C$226)","v":""},null,{"$f":"IF($C$226=\"\",\"\",AJ226/$C$226)","v":""},null,{"$f":"IF($C$226=\"\",\"\",AL226/$C$226)","v":""},null,{"$f":"IF($C$226=\"\",\"\",AN226/$C$226)","v":""},null,{"$f":"IF($C$226=\"\",\"\",AP226/$C$226)","v":""},null,{"$f":"IF($C$226=\"\",\"\",AR226/$C$226)","v":""},null,{"$f":"IF($C$226=\"\",\"\",AT226/$C$226)","v":""},null,{"$f":"IF($C$226=\"\",\"\",AV226/$C$226)","v":""},null,{"$f":"IF($C$226=\"\",\"\",AX226/$C$226)","v":""},null,{"$f":"IF($C$226=\"\",\"\",AZ226/$C$226)","v":""},null,{"$f":"IF($C$226=\"\",\"\",BB226/$C$226)","v":""},null,0]
[10.4,"Develop Preliminary Communications Routing Plan",null,null,{"$f":"IF($C$227=\"\",\"\",F227/$C$227)","v":""},null,{"$f":"IF($C$227=\"\",\"\",H227/$C$227)","v":""},null,{"$f":"IF($C$227=\"\",\"\",J227/$C$227)","v":""},null,{"$f":"IF($C$227=\"\",\"\",L227/$C$227)","v":""},null,{"$f":"IF($C$227=\"\",\"\",N227/$C$227)","v":""},null,{"$f":"IF($C$227=\"\",\"\",P227/$C$227)","v":""},null,{"$f":"IF($C$227=\"\",\"\",R227/$C$227)","v":""},null,{"$f":"IF($C$227=\"\",\"\",T227/$C$227)","v":""},null,{"$f":"IF($C$227=\"\",\"\",V227/$C$227)","v":""},null,{"$f":"IF($C$227=\"\",\"\",X227/$C$227)","v":""},null,{"$f":"IF($C$227=\"\",\"\",Z227/$C$227)","v":""},null,{"$f":"IF($C$227=\"\",\"\",AB227/$C$227)","v":""},null,{"$f":"IF($C$227=\"\",\"\",AD227/$C$227)","v":""},null,{"$f":"IF($C$227=\"\",\"\",AF227/$C$227)","v":""},null,{"$f":"IF($C$227=\"\",\"\",AH227/$C$227)","v":""},null,{"$f":"IF($C$227=\"\",\"\",AJ227/$C$227)","v":""},null,{"$f":"IF($C$227=\"\",\"\",AL227/$C$227)","v":""},null,{"$f":"IF($C$227=\"\",\"\",AN227/$C$227)","v":""},null,{"$f":"IF($C$227=\"\",\"\",AP227/$C$227)","v":""},null,{"$f":"IF($C$227=\"\",\"\",AR227/$C$227)","v":""},null,{"$f":"IF($C$227=\"\",\"\",AT227/$C$227)","v":""},null,{"$f":"IF($C$227=\"\",\"\",AV227/$C$227)","v":""},null,{"$f":"IF($C$227=\"\",\"\",AX227/$C$227)","v":""},null,{"$f":"IF($C$227=\"\",\"\",AZ227/$C$227)","v":""},null,{"$f":"IF($C$227=\"\",\"\",BB227/$C$227)","v":""},null,0]
[10.5,"Inventory of Existing Underground Conduits",null,null,{"$f":"IF($C$228=\"\",\"\",F228/$C$228)","v":""},null,{"$f":"IF($C$228=\"\",\"\",H228/$C$228)","v":""},null,{"$f":"IF($C$228=\"\",\"\",J228/$C$228)","v":""},null,{"$f":"IF($C$228=\"\",\"\",L228/$C$228)","v":""},null,{"$f":"IF($C$228=\"\",\"\",N228/$C$228)","v":""},null,{"$f":"IF($C$228=\"\",\"\",P228/$C$228)","v":""},null,{"$f":"IF($C$228=\"\",\"\",R228/$C$228)","v":""},null,{"$f":"IF($C$228=\"\",\"\",T228/$C$228)","v":""},null,{"$f":"IF($C$228=\"\",\"\",V228/$C$228)","v":""},null,{"$f":"IF($C$228=\"\",\"\",X228/$C$228)","v":""},null,{"$f":"IF($C$228=\"\",\"\",Z228/$C$228)","v":""},null,{"$f":"IF($C$228=\"\",\"\",AB228/$C$228)","v":""},null,{"$f":"IF($C$228=\"\",\"\",AD228/$C$228)","v":""},null,{"$f":"IF($C$228=\"\",\"\",AF228/$C$228)","v":""},null,{"$f":"IF($C$228=\"\",\"\",AH228/$C$228)","v":""},null,{"$f":"IF($C$228=\"\",\"\",AJ228/$C$228)","v":""},null,{"$f":"IF($C$228=\"\",\"\",AL228/$C$228)","v":""},null,{"$f":"IF($C$228=\"\",\"\",AN228/$C$228)","v":""},null,{"$f":"IF($C$228=\"\",\"\",AP228/$C$228)","v":""},null,{"$f":"IF($C$228=\"\",\"\",AR228/$C$228)","v":""},null,{"$f":"IF($C$228=\"\",\"\",AT228/$C$228)","v":""},null,{"$f":"IF($C$228=\"\",\"\",AV228/$C$228)","v":""},null,{"$f":"IF($C$228=\"\",\"\",AX228/$C$228)","v":""},null,{"$f":"IF($C$228=\"\",\"\",AZ228/$C$228)","v":""},null,{"$f":"IF($C$228=\"\",\"\",BB228/$C$228)","v":""},null,0]
[10.6,"Create Cable Routing Base Sheets",null,null,{"$f":"IF($C$229=\"\",\"\",F229/$C$229)","v":""},null,{"$f":"IF($C$229=\"\",\"\",H229/$C$229)","v":""},null,{"$f":"IF($C$229=\"\",\"\",J229/$C$229)","v":""},null,{"$f":"IF($C$229=\"\",\"\",L229/$C$229)","v":""},null,{"$f":"IF($C$229=\"\",\"\",N229/$C$229)","v":""},null,{"$f":"IF($C$229=\"\",\"\",P229/$C$229)","v":""},null,{"$f":"IF($C$229=\"\",\"\",R229/$C$229)","v":""},null,{"$f":"IF($C$229=\"\",\"\",T229/$C$229)","v":""},null,{"$f":"IF($C$229=\"\",\"\",V229/$C$229)","v":""},null,{"$f":"IF($C$229=\"\",\"\",X229/$C$229)","v":""},null,{"$f":"IF($C$229=\"\",\"\",Z229/$C$229)","v":""},null,{"$f":"IF($C$229=\"\",\"\",AB229/$C$229)","v":""},null,{"$f":"IF($C$229=\"\",\"\",AD229/$C$229)","v":""},null,{"$f":"IF($C$229=\"\",\"\",AF229/$C$229)","v":""},null,{"$f":"IF($C$229=\"\",\"\",AH229/$C$229)","v":""},null,{"$f":"IF($C$229=\"\",\"\",AJ229/$C$229)","v":""},null,{"$f":"IF($C$229=\"\",\"\",AL229/$C$229)","v":""},null,{"$f":"IF($C$229=\"\",\"\",AN229/$C$229)","v":""},null,{"$f":"IF($C$229=\"\",\"\",AP229/$C$229)","v":""},null,{"$f":"IF($C$229=\"\",\"\",AR229/$C$229)","v":""},null,{"$f":"IF($C$229=\"\",\"\",AT229/$C$229)","v":""},null,{"$f":"IF($C$229=\"\",\"\",AV229/$C$229)","v":""},null,{"$f":"IF($C$229=\"\",\"\",AX229/$C$229)","v":""},null,{"$f":"IF($C$229=\"\",\"\",AZ229/$C$229)","v":""},null,{"$f":"IF($C$229=\"\",\"\",BB229/$C$229)","v":""},null,0]
[10.7,"Create Master Cable Routing Sheet Key",null,null,{"$f":"IF($C$230=\"\",\"\",F230/$C$230)","v":""},null,{"$f":"IF($C$230=\"\",\"\",H230/$C$230)","v":""},null,{"$f":"IF($C$230=\"\",\"\",J230/$C$230)","v":""},null,{"$f":"IF($C$230=\"\",\"\",L230/$C$230)","v":""},null,{"$f":"IF($C$230=\"\",\"\",N230/$C$230)","v":""},null,{"$f":"IF($C$230=\"\",\"\",P230/$C$230)","v":""},null,{"$f":"IF($C$230=\"\",\"\",R230/$C$230)","v":""},null,{"$f":"IF($C$230=\"\",\"\",T230/$C$230)","v":""},null,{"$f":"IF($C$230=\"\",\"\",V230/$C$230)","v":""},null,{"$f":"IF($C$230=\"\",\"\",X230/$C$230)","v":""},null,{"$f":"IF($C$230=\"\",\"\",Z230/$C$230)","v":""},null,{"$f":"IF($C$230=\"\",\"\",AB230/$C$230)","v":""},null,{"$f":"IF($C$230=\"\",\"\",AD230/$C$230)","v":""},null,{"$f":"IF($C$230=\"\",\"\",AF230/$C$230)","v":""},null,{"$f":"IF($C$230=\"\",\"\",AH230/$C$230)","v":""},null,{"$f":"IF($C$230=\"\",\"\",AJ230/$C$230)","v":""},null,{"$f":"IF($C$230=\"\",\"\",AL230/$C$230)","v":""},null,{"$f":"IF($C$230=\"\",\"\",AN230/$C$230)","v":""},null,{"$f":"IF($C$230=\"\",\"\",AP230/$C$230)","v":""},null,{"$f":"IF($C$230=\"\",\"\",AR230/$C$230)","v":""},null,{"$f":"IF($C$230=\"\",\"\",AT230/$C$230)","v":""},null,{"$f":"IF($C$230=\"\",\"\",AV230/$C$230)","v":""},null,{"$f":"IF($C$230=\"\",\"\",AX230/$C$230)","v":""},null,{"$f":"IF($C$230=\"\",\"\",AZ230/$C$230)","v":""},null,{"$f":"IF($C$230=\"\",\"\",BB230/$C$230)","v":""},null,0]
[10.8,"Field Survey Aerial Routes",null,null,{"$f":"IF($C$231=\"\",\"\",F231/$C$231)","v":""},null,{"$f":"IF($C$231=\"\",\"\",H231/$C$231)","v":""},null,{"$f":"IF($C$231=\"\",\"\",J231/$C$231)","v":""},null,{"$f":"IF($C$231=\"\",\"\",L231/$C$231)","v":""},null,{"$f":"IF($C$231=\"\",\"\",N231/$C$231)","v":""},null,{"$f":"IF($C$231=\"\",\"\",P231/$C$231)","v":""},null,{"$f":"IF($C$231=\"\",\"\",R231/$C$231)","v":""},null,{"$f":"IF($C$231=\"\",\"\",T231/$C$231)","v":""},null,{"$f":"IF($C$231=\"\",\"\",V231/$C$231)","v":""},null,{"$f":"IF($C$231=\"\",\"\",X231/$C$231)","v":""},null,{"$f":"IF($C$231=\"\",\"\",Z231/$C$231)","v":""},null,{"$f":"IF($C$231=\"\",\"\",AB231/$C$231)","v":""},null,{"$f":"IF($C$231=\"\",\"\",AD231/$C$231)","v":""},null,{"$f":"IF($C$231=\"\",\"\",AF231/$C$231)","v":""},null,{"$f":"IF($C$231=\"\",\"\",AH231/$C$231)","v":""},null,{"$f":"IF($C$231=\"\",\"\",AJ231/$C$231)","v":""},null,{"$f":"IF($C$231=\"\",\"\",AL231/$C$231)","v":""},null,{"$f":"IF($C$231=\"\",\"\",AN231/$C$231)","v":""},null,{"$f":"IF($C$231=\"\",\"\",AP231/$C$231)","v":""},null,{"$f":"IF($C$231=\"\",\"\",AR231/$C$231)","v":""},null,{"$f":"IF($C$231=\"\",\"\",AT231/$C$231)","v":""},null,{"$f":"IF($C$231=\"\",\"\",AV231/$C$231)","v":""},null,{"$f":"IF($C$231=\"\",\"\",AX231/$C$231)","v":""},null,{"$f":"IF($C$231=\"\",\"\",AZ231/$C$231)","v":""},null,{"$f":"IF($C$231=\"\",\"\",BB231/$C$231)","v":""},null,0]
[10.9,"Preliminary Utility Make-Ready Plans",null,null,{"$f":"IF($C$232=\"\",\"\",F232/$C$232)","v":""},null,{"$f":"IF($C$232=\"\",\"\",H232/$C$232)","v":""},null,{"$f":"IF($C$232=\"\",\"\",J232/$C$232)","v":""},null,{"$f":"IF($C$232=\"\",\"\",L232/$C$232)","v":""},null,{"$f":"IF($C$232=\"\",\"\",N232/$C$232)","v":""},null,{"$f":"IF($C$232=\"\",\"\",P232/$C$232)","v":""},null,{"$f":"IF($C$232=\"\",\"\",R232/$C$232)","v":""},null,{"$f":"IF($C$232=\"\",\"\",T232/$C$232)","v":""},null,{"$f":"IF($C$232=\"\",\"\",V232/$C$232)","v":""},null,{"$f":"IF($C$232=\"\",\"\",X232/$C$232)","v":""},null,{"$f":"IF($C$232=\"\",\"\",Z232/$C$232)","v":""},null,{"$f":"IF($C$232=\"\",\"\",AB232/$C$232)","v":""},null,{"$f":"IF($C$232=\"\",\"\",AD232/$C$232)","v":""},null,{"$f":"IF($C$232=\"\",\"\",AF232/$C$232)","v":""},null,{"$f":"IF($C$232=\"\",\"\",AH232/$C$232)","v":""},null,{"$f":"IF($C$232=\"\",\"\",AJ232/$C$232)","v":""},null,{"$f":"IF($C$232=\"\",\"\",AL232/$C$232)","v":""},null,{"$f":"IF($C$232=\"\",\"\",AN232/$C$232)","v":""},null,{"$f":"IF($C$232=\"\",\"\",AP232/$C$232)","v":""},null,{"$f":"IF($C$232=\"\",\"\",AR232/$C$232)","v":""},null,{"$f":"IF($C$232=\"\",\"\",AT232/$C$232)","v":""},null,{"$f":"IF($C$232=\"\",\"\",AV232/$C$232)","v":""},null,{"$f":"IF($C$232=\"\",\"\",AX232/$C$232)","v":""},null,{"$f":"IF($C$232=\"\",\"\",AZ232/$C$232)","v":""},null,{"$f":"IF($C$232=\"\",\"\",BB232/$C$232)","v":""},null,0]
["10.10","Make-Ready Walk-Throughs"]
["    10.10.1","    Coordinate and Schedule Utility Make-Ready \n    Walk-Throughs",null,null,{"$f":"IF($C$234=\"\",\"\",F234/$C$234)","v":""},null,{"$f":"IF($C$234=\"\",\"\",H234/$C$234)","v":""},null,{"$f":"IF($C$234=\"\",\"\",J234/$C$234)","v":""},null,{"$f":"IF($C$234=\"\",\"\",L234/$C$234)","v":""},null,{"$f":"IF($C$234=\"\",\"\",N234/$C$234)","v":""},null,{"$f":"IF($C$234=\"\",\"\",P234/$C$234)","v":""},null,{"$f":"IF($C$234=\"\",\"\",R234/$C$234)","v":""},null,{"$f":"IF($C$234=\"\",\"\",T234/$C$234)","v":""},null,{"$f":"IF($C$234=\"\",\"\",V234/$C$234)","v":""},null,{"$f":"IF($C$234=\"\",\"\",X234/$C$234)","v":""},null,{"$f":"IF($C$234=\"\",\"\",Z234/$C$234)","v":""},null,{"$f":"IF($C$234=\"\",\"\",AB234/$C$234)","v":""},null,{"$f":"IF($C$234=\"\",\"\",AD234/$C$234)","v":""},null,{"$f":"IF($C$234=\"\",\"\",AF234/$C$234)","v":""},null,{"$f":"IF($C$234=\"\",\"\",AH234/$C$234)","v":""},null,{"$f":"IF($C$234=\"\",\"\",AJ234/$C$234)","v":""},null,{"$f":"IF($C$234=\"\",\"\",AL234/$C$234)","v":""},null,{"$f":"IF($C$234=\"\",\"\",AN234/$C$234)","v":""},null,{"$f":"IF($C$234=\"\",\"\",AP234/$C$234)","v":""},null,{"$f":"IF($C$234=\"\",\"\",AR234/$C$234)","v":""},null,{"$f":"IF($C$234=\"\",\"\",AT234/$C$234)","v":""},null,{"$f":"IF($C$234=\"\",\"\",AV234/$C$234)","v":""},null,{"$f":"IF($C$234=\"\",\"\",AX234/$C$234)","v":""},null,{"$f":"IF($C$234=\"\",\"\",AZ234/$C$234)","v":""},null,{"$f":"IF($C$234=\"\",\"\",BB234/$C$234)","v":""},null,{"$f":"SUM(BB234,AZ234,AX234,AV234,AT234,AR234,AP234,AN234,AL234,AJ234,AH234,AF234,AD234,AB234,Z234,X234,V234,T234,R234,P234,N234,L234,J234,H234,F234)","v":0}]
["    10.10.2","    Conduct Utility Make-Ready Walk-Throughs",null,null,{"$f":"IF($C$235=\"\",\"\",F235/$C$235)","v":""},null,{"$f":"IF($C$235=\"\",\"\",H235/$C$235)","v":""},null,{"$f":"IF($C$235=\"\",\"\",J235/$C$235)","v":""},null,{"$f":"IF($C$235=\"\",\"\",L235/$C$235)","v":""},null,{"$f":"IF($C$235=\"\",\"\",N235/$C$235)","v":""},null,{"$f":"IF($C$235=\"\",\"\",P235/$C$235)","v":""},null,{"$f":"IF($C$235=\"\",\"\",R235/$C$235)","v":""},null,{"$f":"IF($C$235=\"\",\"\",T235/$C$235)","v":""},null,{"$f":"IF($C$235=\"\",\"\",V235/$C$235)","v":""},null,{"$f":"IF($C$235=\"\",\"\",X235/$C$235)","v":""},null,{"$f":"IF($C$235=\"\",\"\",Z235/$C$235)","v":""},null,{"$f":"IF($C$235=\"\",\"\",AB235/$C$235)","v":""},null,{"$f":"IF($C$235=\"\",\"\",AD235/$C$235)","v":""},null,{"$f":"IF($C$235=\"\",\"\",AF235/$C$235)","v":""},null,{"$f":"IF($C$235=\"\",\"\",AH235/$C$235)","v":""},null,{"$f":"IF($C$235=\"\",\"\",AJ235/$C$235)","v":""},null,{"$f":"IF($C$235=\"\",\"\",AL235/$C$235)","v":""},null,{"$f":"IF($C$235=\"\",\"\",AN235/$C$235)","v":""},null,{"$f":"IF($C$235=\"\",\"\",AP235/$C$235)","v":""},null,{"$f":"IF($C$235=\"\",\"\",AR235/$C$235)","v":""},null,{"$f":"IF($C$235=\"\",\"\",AT235/$C$235)","v":""},null,{"$f":"IF($C$235=\"\",\"\",AV235/$C$235)","v":""},null,{"$f":"IF($C$235=\"\",\"\",AX235/$C$235)","v":""},null,{"$f":"IF($C$235=\"\",\"\",AZ235/$C$235)","v":""},null,{"$f":"IF($C$235=\"\",\"\",BB235/$C$235)","v":""},null,0]
["    10.10.3",null,null,null,{"$f":"IF($C$236=\"\",\"\",F236/$C$236)","v":""},null,{"$f":"IF($C$236=\"\",\"\",H236/$C$236)","v":""},null,{"$f":"IF($C$236=\"\",\"\",J236/$C$236)","v":""},null,{"$f":"IF($C$236=\"\",\"\",L236/$C$236)","v":""},null,{"$f":"IF($C$236=\"\",\"\",N236/$C$236)","v":""},null,{"$f":"IF($C$236=\"\",\"\",P236/$C$236)","v":""},null,{"$f":"IF($C$236=\"\",\"\",R236/$C$236)","v":""},null,{"$f":"IF($C$236=\"\",\"\",T236/$C$236)","v":""},null,{"$f":"IF($C$236=\"\",\"\",V236/$C$236)","v":""},null,{"$f":"IF($C$236=\"\",\"\",X236/$C$236)","v":""},null,{"$f":"IF($C$236=\"\",\"\",Z236/$C$236)","v":""},null,{"$f":"IF($C$236=\"\",\"\",AB236/$C$236)","v":""},null,{"$f":"IF($C$236=\"\",\"\",AD236/$C$236)","v":""},null,{"$f":"IF($C$236=\"\",\"\",AF236/$C$236)","v":""},null,{"$f":"IF($C$236=\"\",\"\",AH236/$C$236)","v":""},null,{"$f":"IF($C$236=\"\",\"\",AJ236/$C$236)","v":""},null,{"$f":"IF($C$236=\"\",\"\",AL236/$C$236)","v":""},null,{"$f":"IF($C$236=\"\",\"\",AN236/$C$236)","v":""},null,{"$f":"IF($C$236=\"\",\"\",AP236/$C$236)","v":""},null,{"$f":"IF($C$236=\"\",\"\",AR236/$C$236)","v":""},null,{"$f":"IF($C$236=\"\",\"\",AT236/$C$236)","v":""},null,{"$f":"IF($C$236=\"\",\"\",AV236/$C$236)","v":""},null,{"$f":"IF($C$236=\"\",\"\",AX236/$C$236)","v":""},null,{"$f":"IF($C$236=\"\",\"\",AZ236/$C$236)","v":""},null,{"$f":"IF($C$236=\"\",\"\",BB236/$C$236)","v":""},null,0]
["    10.10.4",null,null,null,{"$f":"IF($C$237=\"\",\"\",F237/$C$237)","v":""},null,{"$f":"IF($C$237=\"\",\"\",H237/$C$237)","v":""},null,{"$f":"IF($C$237=\"\",\"\",J237/$C$237)","v":""},null,{"$f":"IF($C$237=\"\",\"\",L237/$C$237)","v":""},null,{"$f":"IF($C$237=\"\",\"\",N237/$C$237)","v":""},null,{"$f":"IF($C$237=\"\",\"\",P237/$C$237)","v":""},null,{"$f":"IF($C$237=\"\",\"\",R237/$C$237)","v":""},null,{"$f":"IF($C$237=\"\",\"\",T237/$C$237)","v":""},null,{"$f":"IF($C$237=\"\",\"\",V237/$C$237)","v":""},null,{"$f":"IF($C$237=\"\",\"\",X237/$C$237)","v":""},null,{"$f":"IF($C$237=\"\",\"\",Z237/$C$237)","v":""},null,{"$f":"IF($C$237=\"\",\"\",AB237/$C$237)","v":""},null,{"$f":"IF($C$237=\"\",\"\",AD237/$C$237)","v":""},null,{"$f":"IF($C$237=\"\",\"\",AF237/$C$237)","v":""},null,{"$f":"IF($C$237=\"\",\"\",AH237/$C$237)","v":""},null,{"$f":"IF($C$237=\"\",\"\",AJ237/$C$237)","v":""},null,{"$f":"IF($C$237=\"\",\"\",AL237/$C$237)","v":""},null,{"$f":"IF($C$237=\"\",\"\",AN237/$C$237)","v":""},null,{"$f":"IF($C$237=\"\",\"\",AP237/$C$237)","v":""},null,{"$f":"IF($C$237=\"\",\"\",AR237/$C$237)","v":""},null,{"$f":"IF($C$237=\"\",\"\",AT237/$C$237)","v":""},null,{"$f":"IF($C$237=\"\",\"\",AV237/$C$237)","v":""},null,{"$f":"IF($C$237=\"\",\"\",AX237/$C$237)","v":""},null,{"$f":"IF($C$237=\"\",\"\",AZ237/$C$237)","v":""},null,{"$f":"IF($C$237=\"\",\"\",BB237/$C$237)","v":""},null,0]
["    10.10.5",null,null,null,{"$f":"IF($C$238=\"\",\"\",F238/$C$238)","v":""},null,{"$f":"IF($C$238=\"\",\"\",H238/$C$238)","v":""},null,{"$f":"IF($C$238=\"\",\"\",J238/$C$238)","v":""},null,{"$f":"IF($C$238=\"\",\"\",L238/$C$238)","v":""},null,{"$f":"IF($C$238=\"\",\"\",N238/$C$238)","v":""},null,{"$f":"IF($C$238=\"\",\"\",P238/$C$238)","v":""},null,{"$f":"IF($C$238=\"\",\"\",R238/$C$238)","v":""},null,{"$f":"IF($C$238=\"\",\"\",T238/$C$238)","v":""},null,{"$f":"IF($C$238=\"\",\"\",V238/$C$238)","v":""},null,{"$f":"IF($C$238=\"\",\"\",X238/$C$238)","v":""},null,{"$f":"IF($C$238=\"\",\"\",Z238/$C$238)","v":""},null,{"$f":"IF($C$238=\"\",\"\",AB238/$C$238)","v":""},null,{"$f":"IF($C$238=\"\",\"\",AD238/$C$238)","v":""},null,{"$f":"IF($C$238=\"\",\"\",AF238/$C$238)","v":""},null,{"$f":"IF($C$238=\"\",\"\",AH238/$C$238)","v":""},null,{"$f":"IF($C$238=\"\",\"\",AJ238/$C$238)","v":""},null,{"$f":"IF($C$238=\"\",\"\",AL238/$C$238)","v":""},null,{"$f":"IF($C$238=\"\",\"\",AN238/$C$238)","v":""},null,{"$f":"IF($C$238=\"\",\"\",AP238/$C$238)","v":""},null,{"$f":"IF($C$238=\"\",\"\",AR238/$C$238)","v":""},null,{"$f":"IF($C$238=\"\",\"\",AT238/$C$238)","v":""},null,{"$f":"IF($C$238=\"\",\"\",AV238/$C$238)","v":""},null,{"$f":"IF($C$238=\"\",\"\",AX238/$C$238)","v":""},null,{"$f":"IF($C$238=\"\",\"\",AZ238/$C$238)","v":""},null,{"$f":"IF($C$238=\"\",\"\",BB238/$C$238)","v":""},null,0]
[10.11,"Draft Final Utility Make-Ready Plans",null,null,{"$f":"IF($C$239=\"\",\"\",F239/$C$239)","v":""},null,{"$f":"IF($C$239=\"\",\"\",H239/$C$239)","v":""},null,{"$f":"IF($C$239=\"\",\"\",J239/$C$239)","v":""},null,{"$f":"IF($C$239=\"\",\"\",L239/$C$239)","v":""},null,{"$f":"IF($C$239=\"\",\"\",N239/$C$239)","v":""},null,{"$f":"IF($C$239=\"\",\"\",P239/$C$239)","v":""},null,{"$f":"IF($C$239=\"\",\"\",R239/$C$239)","v":""},null,{"$f":"IF($C$239=\"\",\"\",T239/$C$239)","v":""},null,{"$f":"IF($C$239=\"\",\"\",V239/$C$239)","v":""},null,{"$f":"IF($C$239=\"\",\"\",X239/$C$239)","v":""},null,{"$f":"IF($C$239=\"\",\"\",Z239/$C$239)","v":""},null,{"$f":"IF($C$239=\"\",\"\",AB239/$C$239)","v":""},null,{"$f":"IF($C$239=\"\",\"\",AD239/$C$239)","v":""},null,{"$f":"IF($C$239=\"\",\"\",AF239/$C$239)","v":""},null,{"$f":"IF($C$239=\"\",\"\",AH239/$C$239)","v":""},null,{"$f":"IF($C$239=\"\",\"\",AJ239/$C$239)","v":""},null,{"$f":"IF($C$239=\"\",\"\",AL239/$C$239)","v":""},null,{"$f":"IF($C$239=\"\",\"\",AN239/$C$239)","v":""},null,{"$f":"IF($C$239=\"\",\"\",AP239/$C$239)","v":""},null,{"$f":"IF($C$239=\"\",\"\",AR239/$C$239)","v":""},null,{"$f":"IF($C$239=\"\",\"\",AT239/$C$239)","v":""},null,{"$f":"IF($C$239=\"\",\"\",AV239/$C$239)","v":""},null,{"$f":"IF($C$239=\"\",\"\",AX239/$C$239)","v":""},null,{"$f":"IF($C$239=\"\",\"\",AZ239/$C$239)","v":""},null,{"$f":"IF($C$239=\"\",\"\",BB239/$C$239)","v":""},null,0]
[10.119999999999999,"Final Utility Make-Ready Plans",null,null,{"$f":"IF($C$240=\"\",\"\",F240/$C$240)","v":""},null,{"$f":"IF($C$240=\"\",\"\",H240/$C$240)","v":""},null,{"$f":"IF($C$240=\"\",\"\",J240/$C$240)","v":""},null,{"$f":"IF($C$240=\"\",\"\",L240/$C$240)","v":""},null,{"$f":"IF($C$240=\"\",\"\",N240/$C$240)","v":""},null,{"$f":"IF($C$240=\"\",\"\",P240/$C$240)","v":""},null,{"$f":"IF($C$240=\"\",\"\",R240/$C$240)","v":""},null,{"$f":"IF($C$240=\"\",\"\",T240/$C$240)","v":""},null,{"$f":"IF($C$240=\"\",\"\",V240/$C$240)","v":""},null,{"$f":"IF($C$240=\"\",\"\",X240/$C$240)","v":""},null,{"$f":"IF($C$240=\"\",\"\",Z240/$C$240)","v":""},null,{"$f":"IF($C$240=\"\",\"\",AB240/$C$240)","v":""},null,{"$f":"IF($C$240=\"\",\"\",AD240/$C$240)","v":""},null,{"$f":"IF($C$240=\"\",\"\",AF240/$C$240)","v":""},null,{"$f":"IF($C$240=\"\",\"\",AH240/$C$240)","v":""},null,{"$f":"IF($C$240=\"\",\"\",AJ240/$C$240)","v":""},null,{"$f":"IF($C$240=\"\",\"\",AL240/$C$240)","v":""},null,{"$f":"IF($C$240=\"\",\"\",AN240/$C$240)","v":""},null,{"$f":"IF($C$240=\"\",\"\",AP240/$C$240)","v":""},null,{"$f":"IF($C$240=\"\",\"\",AR240/$C$240)","v":""},null,{"$f":"IF($C$240=\"\",\"\",AT240/$C$240)","v":""},null,{"$f":"IF($C$240=\"\",\"\",AV240/$C$240)","v":""},null,{"$f":"IF($C$240=\"\",\"\",AX240/$C$240)","v":""},null,{"$f":"IF($C$240=\"\",\"\",AZ240/$C$240)","v":""},null,{"$f":"IF($C$240=\"\",\"\",BB240/$C$240)","v":""},null,0]
[10.130000000000001,"Review and Compile UMR Cost Estimates",null,null,{"$f":"IF($C$241=\"\",\"\",F241/$C$241)","v":""},null,{"$f":"IF($C$241=\"\",\"\",H241/$C$241)","v":""},null,{"$f":"IF($C$241=\"\",\"\",J241/$C$241)","v":""},null,{"$f":"IF($C$241=\"\",\"\",L241/$C$241)","v":""},null,{"$f":"IF($C$241=\"\",\"\",N241/$C$241)","v":""},null,{"$f":"IF($C$241=\"\",\"\",P241/$C$241)","v":""},null,{"$f":"IF($C$241=\"\",\"\",R241/$C$241)","v":""},null,{"$f":"IF($C$241=\"\",\"\",T241/$C$241)","v":""},null,{"$f":"IF($C$241=\"\",\"\",V241/$C$241)","v":""},null,{"$f":"IF($C$241=\"\",\"\",X241/$C$241)","v":""},null,{"$f":"IF($C$241=\"\",\"\",Z241/$C$241)","v":""},null,{"$f":"IF($C$241=\"\",\"\",AB241/$C$241)","v":""},null,{"$f":"IF($C$241=\"\",\"\",AD241/$C$241)","v":""},null,{"$f":"IF($C$241=\"\",\"\",AF241/$C$241)","v":""},null,{"$f":"IF($C$241=\"\",\"\",AH241/$C$241)","v":""},null,{"$f":"IF($C$241=\"\",\"\",AJ241/$C$241)","v":""},null,{"$f":"IF($C$241=\"\",\"\",AL241/$C$241)","v":""},null,{"$f":"IF($C$241=\"\",\"\",AN241/$C$241)","v":""},null,{"$f":"IF($C$241=\"\",\"\",AP241/$C$241)","v":""},null,{"$f":"IF($C$241=\"\",\"\",AR241/$C$241)","v":""},null,{"$f":"IF($C$241=\"\",\"\",AT241/$C$241)","v":""},null,{"$f":"IF($C$241=\"\",\"\",AV241/$C$241)","v":""},null,{"$f":"IF($C$241=\"\",\"\",AX241/$C$241)","v":""},null,{"$f":"IF($C$241=\"\",\"\",AZ241/$C$241)","v":""},null,{"$f":"IF($C$241=\"\",\"\",BB241/$C$241)","v":""},null,0]
[10.14,"Deliverables (3 submittals)",null,null,{"$f":"IF($C$242=\"\",\"\",F242/$C$242)","v":""},null,{"$f":"IF($C$242=\"\",\"\",H242/$C$242)","v":""},null,{"$f":"IF($C$242=\"\",\"\",J242/$C$242)","v":""},null,{"$f":"IF($C$242=\"\",\"\",L242/$C$242)","v":""},null,{"$f":"IF($C$242=\"\",\"\",N242/$C$242)","v":""},null,{"$f":"IF($C$242=\"\",\"\",P242/$C$242)","v":""},null,{"$f":"IF($C$242=\"\",\"\",R242/$C$242)","v":""},null,{"$f":"IF($C$242=\"\",\"\",T242/$C$242)","v":""},null,{"$f":"IF($C$242=\"\",\"\",V242/$C$242)","v":""},null,{"$f":"IF($C$242=\"\",\"\",X242/$C$242)","v":""},null,{"$f":"IF($C$242=\"\",\"\",Z242/$C$242)","v":""},null,{"$f":"IF($C$242=\"\",\"\",AB242/$C$242)","v":""},null,{"$f":"IF($C$242=\"\",\"\",AD242/$C$242)","v":""},null,{"$f":"IF($C$242=\"\",\"\",AF242/$C$242)","v":""},null,{"$f":"IF($C$242=\"\",\"\",AH242/$C$242)","v":""},null,{"$f":"IF($C$242=\"\",\"\",AJ242/$C$242)","v":""},null,{"$f":"IF($C$242=\"\",\"\",AL242/$C$242)","v":""},null,{"$f":"IF($C$242=\"\",\"\",AN242/$C$242)","v":""},null,{"$f":"IF($C$242=\"\",\"\",AP242/$C$242)","v":""},null,{"$f":"IF($C$242=\"\",\"\",AR242/$C$242)","v":""},null,{"$f":"IF($C$242=\"\",\"\",AT242/$C$242)","v":""},null,{"$f":"IF($C$242=\"\",\"\",AV242/$C$242)","v":""},null,{"$f":"IF($C$242=\"\",\"\",AX242/$C$242)","v":""},null,{"$f":"IF($C$242=\"\",\"\",AZ242/$C$242)","v":""},null,{"$f":"IF($C$242=\"\",\"\",BB242/$C$242)","v":""},null,0]
[null,null,null,null,{"$f":"IF($C$243=\"\",\"\",F243/$C$243)","v":""},null,{"$f":"IF($C$243=\"\",\"\",H243/$C$243)","v":""},null,{"$f":"IF($C$243=\"\",\"\",J243/$C$243)","v":""},null,{"$f":"IF($C$243=\"\",\"\",L243/$C$243)","v":""},null,{"$f":"IF($C$243=\"\",\"\",N243/$C$243)","v":""},null,{"$f":"IF($C$243=\"\",\"\",P243/$C$243)","v":""},null,{"$f":"IF($C$243=\"\",\"\",R243/$C$243)","v":""},null,{"$f":"IF($C$243=\"\",\"\",T243/$C$243)","v":""},null,{"$f":"IF($C$243=\"\",\"\",V243/$C$243)","v":""},null,{"$f":"IF($C$243=\"\",\"\",X243/$C$243)","v":""},null,{"$f":"IF($C$243=\"\",\"\",Z243/$C$243)","v":""},null,{"$f":"IF($C$243=\"\",\"\",AB243/$C$243)","v":""},null,{"$f":"IF($C$243=\"\",\"\",AD243/$C$243)","v":""},null,{"$f":"IF($C$243=\"\",\"\",AF243/$C$243)","v":""},null,{"$f":"IF($C$243=\"\",\"\",AH243/$C$243)","v":""},null,{"$f":"IF($C$243=\"\",\"\",AJ243/$C$243)","v":""},null,{"$f":"IF($C$243=\"\",\"\",AL243/$C$243)","v":""},null,{"$f":"IF($C$243=\"\",\"\",AN243/$C$243)","v":""},null,{"$f":"IF($C$243=\"\",\"\",AP243/$C$243)","v":""},null,{"$f":"IF($C$243=\"\",\"\",AR243/$C$243)","v":""},null,{"$f":"IF($C$243=\"\",\"\",AT243/$C$243)","v":""},null,{"$f":"IF($C$243=\"\",\"\",AV243/$C$243)","v":""},null,{"$f":"IF($C$243=\"\",\"\",AX243/$C$243)","v":""},null,{"$f":"IF($C$243=\"\",\"\",AZ243/$C$243)","v":""},null,{"$f":"IF($C$243=\"\",\"\",BB243/$C$243)","v":""},null,0]
[null,null,null,null,{"$f":"IF($C$244=\"\",\"\",F244/$C$244)","v":""},null,{"$f":"IF($C$244=\"\",\"\",H244/$C$244)","v":""},null,{"$f":"IF($C$244=\"\",\"\",J244/$C$244)","v":""},null,{"$f":"IF($C$244=\"\",\"\",L244/$C$244)","v":""},null,{"$f":"IF($C$244=\"\",\"\",N244/$C$244)","v":""},null,{"$f":"IF($C$244=\"\",\"\",P244/$C$244)","v":""},null,{"$f":"IF($C$244=\"\",\"\",R244/$C$244)","v":""},null,{"$f":"IF($C$244=\"\",\"\",T244/$C$244)","v":""},null,{"$f":"IF($C$244=\"\",\"\",V244/$C$244)","v":""},null,{"$f":"IF($C$244=\"\",\"\",X244/$C$244)","v":""},null,{"$f":"IF($C$244=\"\",\"\",Z244/$C$244)","v":""},null,{"$f":"IF($C$244=\"\",\"\",AB244/$C$244)","v":""},null,{"$f":"IF($C$244=\"\",\"\",AD244/$C$244)","v":""},null,{"$f":"IF($C$244=\"\",\"\",AF244/$C$244)","v":""},null,{"$f":"IF($C$244=\"\",\"\",AH244/$C$244)","v":""},null,{"$f":"IF($C$244=\"\",\"\",AJ244/$C$244)","v":""},null,{"$f":"IF($C$244=\"\",\"\",AL244/$C$244)","v":""},null,{"$f":"IF($C$244=\"\",\"\",AN244/$C$244)","v":""},null,{"$f":"IF($C$244=\"\",\"\",AP244/$C$244)","v":""},null,{"$f":"IF($C$244=\"\",\"\",AR244/$C$244)","v":""},null,{"$f":"IF($C$244=\"\",\"\",AT244/$C$244)","v":""},null,{"$f":"IF($C$244=\"\",\"\",AV244/$C$244)","v":""},null,{"$f":"IF($C$244=\"\",\"\",AX244/$C$244)","v":""},null,{"$f":"IF($C$244=\"\",\"\",AZ244/$C$244)","v":""},null,{"$f":"IF($C$244=\"\",\"\",BB244/$C$244)","v":""},null,0]
[null,null,null,null,{"$f":"IF($C$245=\"\",\"\",F245/$C$245)","v":""},null,{"$f":"IF($C$245=\"\",\"\",H245/$C$245)","v":""},null,{"$f":"IF($C$245=\"\",\"\",J245/$C$245)","v":""},null,{"$f":"IF($C$245=\"\",\"\",L245/$C$245)","v":""},null,{"$f":"IF($C$245=\"\",\"\",N245/$C$245)","v":""},null,{"$f":"IF($C$245=\"\",\"\",P245/$C$245)","v":""},null,{"$f":"IF($C$245=\"\",\"\",R245/$C$245)","v":""},null,{"$f":"IF($C$245=\"\",\"\",T245/$C$245)","v":""},null,{"$f":"IF($C$245=\"\",\"\",V245/$C$245)","v":""},null,{"$f":"IF($C$245=\"\",\"\",X245/$C$245)","v":""},null,{"$f":"IF($C$245=\"\",\"\",Z245/$C$245)","v":""},null,{"$f":"IF($C$245=\"\",\"\",AB245/$C$245)","v":""},null,{"$f":"IF($C$245=\"\",\"\",AD245/$C$245)","v":""},null,{"$f":"IF($C$245=\"\",\"\",AF245/$C$245)","v":""},null,{"$f":"IF($C$245=\"\",\"\",AH245/$C$245)","v":""},null,{"$f":"IF($C$245=\"\",\"\",AJ245/$C$245)","v":""},null,{"$f":"IF($C$245=\"\",\"\",AL245/$C$245)","v":""},null,{"$f":"IF($C$245=\"\",\"\",AN245/$C$245)","v":""},null,{"$f":"IF($C$245=\"\",\"\",AP245/$C$245)","v":""},null,{"$f":"IF($C$245=\"\",\"\",AR245/$C$245)","v":""},null,{"$f":"IF($C$245=\"\",\"\",AT245/$C$245)","v":""},null,{"$f":"IF($C$245=\"\",\"\",AV245/$C$245)","v":""},null,{"$f":"IF($C$245=\"\",\"\",AX245/$C$245)","v":""},null,{"$f":"IF($C$245=\"\",\"\",AZ245/$C$245)","v":""},null,{"$f":"IF($C$245=\"\",\"\",BB245/$C$245)","v":""},null,0]
[null,null,null,null,{"$f":"IF($C$246=\"\",\"\",F246/$C$246)","v":""},null,{"$f":"IF($C$246=\"\",\"\",H246/$C$246)","v":""},null,{"$f":"IF($C$246=\"\",\"\",J246/$C$246)","v":""},null,{"$f":"IF($C$246=\"\",\"\",L246/$C$246)","v":""},null,{"$f":"IF($C$246=\"\",\"\",N246/$C$246)","v":""},null,{"$f":"IF($C$246=\"\",\"\",P246/$C$246)","v":""},null,{"$f":"IF($C$246=\"\",\"\",R246/$C$246)","v":""},null,{"$f":"IF($C$246=\"\",\"\",T246/$C$246)","v":""},null,{"$f":"IF($C$246=\"\",\"\",V246/$C$246)","v":""},null,{"$f":"IF($C$246=\"\",\"\",X246/$C$246)","v":""},null,{"$f":"IF($C$246=\"\",\"\",Z246/$C$246)","v":""},null,{"$f":"IF($C$246=\"\",\"\",AB246/$C$246)","v":""},null,{"$f":"IF($C$246=\"\",\"\",AD246/$C$246)","v":""},null,{"$f":"IF($C$246=\"\",\"\",AF246/$C$246)","v":""},null,{"$f":"IF($C$246=\"\",\"\",AH246/$C$246)","v":""},null,{"$f":"IF($C$246=\"\",\"\",AJ246/$C$246)","v":""},null,{"$f":"IF($C$246=\"\",\"\",AL246/$C$246)","v":""},null,{"$f":"IF($C$246=\"\",\"\",AN246/$C$246)","v":""},null,{"$f":"IF($C$246=\"\",\"\",AP246/$C$246)","v":""},null,{"$f":"IF($C$246=\"\",\"\",AR246/$C$246)","v":""},null,{"$f":"IF($C$246=\"\",\"\",AT246/$C$246)","v":""},null,{"$f":"IF($C$246=\"\",\"\",AV246/$C$246)","v":""},null,{"$f":"IF($C$246=\"\",\"\",AX246/$C$246)","v":""},null,{"$f":"IF($C$246=\"\",\"\",AZ246/$C$246)","v":""},null,{"$f":"IF($C$246=\"\",\"\",BB246/$C$246)","v":""},null,0]
[null,null,null,null,{"$f":"IF($C$247=\"\",\"\",F247/$C$247)","v":""},null,{"$f":"IF($C$247=\"\",\"\",H247/$C$247)","v":""},null,{"$f":"IF($C$247=\"\",\"\",J247/$C$247)","v":""},null,{"$f":"IF($C$247=\"\",\"\",L247/$C$247)","v":""},null,{"$f":"IF($C$247=\"\",\"\",N247/$C$247)","v":""},null,{"$f":"IF($C$247=\"\",\"\",P247/$C$247)","v":""},null,{"$f":"IF($C$247=\"\",\"\",R247/$C$247)","v":""},null,{"$f":"IF($C$247=\"\",\"\",T247/$C$247)","v":""},null,{"$f":"IF($C$247=\"\",\"\",V247/$C$247)","v":""},null,{"$f":"IF($C$247=\"\",\"\",X247/$C$247)","v":""},null,{"$f":"IF($C$247=\"\",\"\",Z247/$C$247)","v":""},null,{"$f":"IF($C$247=\"\",\"\",AB247/$C$247)","v":""},null,{"$f":"IF($C$247=\"\",\"\",AD247/$C$247)","v":""},null,{"$f":"IF($C$247=\"\",\"\",AF247/$C$247)","v":""},null,{"$f":"IF($C$247=\"\",\"\",AH247/$C$247)","v":""},null,{"$f":"IF($C$247=\"\",\"\",AJ247/$C$247)","v":""},null,{"$f":"IF($C$247=\"\",\"\",AL247/$C$247)","v":""},null,{"$f":"IF($C$247=\"\",\"\",AN247/$C$247)","v":""},null,{"$f":"IF($C$247=\"\",\"\",AP247/$C$247)","v":""},null,{"$f":"IF($C$247=\"\",\"\",AR247/$C$247)","v":""},null,{"$f":"IF($C$247=\"\",\"\",AT247/$C$247)","v":""},null,{"$f":"IF($C$247=\"\",\"\",AV247/$C$247)","v":""},null,{"$f":"IF($C$247=\"\",\"\",AX247/$C$247)","v":""},null,{"$f":"IF($C$247=\"\",\"\",AZ247/$C$247)","v":""},null,{"$f":"IF($C$247=\"\",\"\",BB247/$C$247)","v":""},null,0]
[null,null,null,null,{"$f":"IF($C$248=\"\",\"\",F248/$C$248)","v":""},null,{"$f":"IF($C$248=\"\",\"\",H248/$C$248)","v":""},null,{"$f":"IF($C$248=\"\",\"\",J248/$C$248)","v":""},null,{"$f":"IF($C$248=\"\",\"\",L248/$C$248)","v":""},null,{"$f":"IF($C$248=\"\",\"\",N248/$C$248)","v":""},null,{"$f":"IF($C$248=\"\",\"\",P248/$C$248)","v":""},null,{"$f":"IF($C$248=\"\",\"\",R248/$C$248)","v":""},null,{"$f":"IF($C$248=\"\",\"\",T248/$C$248)","v":""},null,{"$f":"IF($C$248=\"\",\"\",V248/$C$248)","v":""},null,{"$f":"IF($C$248=\"\",\"\",X248/$C$248)","v":""},null,{"$f":"IF($C$248=\"\",\"\",Z248/$C$248)","v":""},null,{"$f":"IF($C$248=\"\",\"\",AB248/$C$248)","v":""},null,{"$f":"IF($C$248=\"\",\"\",AD248/$C$248)","v":""},null,{"$f":"IF($C$248=\"\",\"\",AF248/$C$248)","v":""},null,{"$f":"IF($C$248=\"\",\"\",AH248/$C$248)","v":""},null,{"$f":"IF($C$248=\"\",\"\",AJ248/$C$248)","v":""},null,{"$f":"IF($C$248=\"\",\"\",AL248/$C$248)","v":""},null,{"$f":"IF($C$248=\"\",\"\",AN248/$C$248)","v":""},null,{"$f":"IF($C$248=\"\",\"\",AP248/$C$248)","v":""},null,{"$f":"IF($C$248=\"\",\"\",AR248/$C$248)","v":""},null,{"$f":"IF($C$248=\"\",\"\",AT248/$C$248)","v":""},null,{"$f":"IF($C$248=\"\",\"\",AV248/$C$248)","v":""},null,{"$f":"IF($C$248=\"\",\"\",AX248/$C$248)","v":""},null,{"$f":"IF($C$248=\"\",\"\",AZ248/$C$248)","v":""},null,{"$f":"IF($C$248=\"\",\"\",BB248/$C$248)","v":""},null,0]
[null,null,null,null,{"$f":"IF($C$249=\"\",\"\",F249/$C$249)","v":""},null,{"$f":"IF($C$249=\"\",\"\",H249/$C$249)","v":""},null,{"$f":"IF($C$249=\"\",\"\",J249/$C$249)","v":""},null,{"$f":"IF($C$249=\"\",\"\",L249/$C$249)","v":""},null,{"$f":"IF($C$249=\"\",\"\",N249/$C$249)","v":""},null,{"$f":"IF($C$249=\"\",\"\",P249/$C$249)","v":""},null,{"$f":"IF($C$249=\"\",\"\",R249/$C$249)","v":""},null,{"$f":"IF($C$249=\"\",\"\",T249/$C$249)","v":""},null,{"$f":"IF($C$249=\"\",\"\",V249/$C$249)","v":""},null,{"$f":"IF($C$249=\"\",\"\",X249/$C$249)","v":""},null,{"$f":"IF($C$249=\"\",\"\",Z249/$C$249)","v":""},null,{"$f":"IF($C$249=\"\",\"\",AB249/$C$249)","v":""},null,{"$f":"IF($C$249=\"\",\"\",AD249/$C$249)","v":""},null,{"$f":"IF($C$249=\"\",\"\",AF249/$C$249)","v":""},null,{"$f":"IF($C$249=\"\",\"\",AH249/$C$249)","v":""},null,{"$f":"IF($C$249=\"\",\"\",AJ249/$C$249)","v":""},null,{"$f":"IF($C$249=\"\",\"\",AL249/$C$249)","v":""},null,{"$f":"IF($C$249=\"\",\"\",AN249/$C$249)","v":""},null,{"$f":"IF($C$249=\"\",\"\",AP249/$C$249)","v":""},null,{"$f":"IF($C$249=\"\",\"\",AR249/$C$249)","v":""},null,{"$f":"IF($C$249=\"\",\"\",AT249/$C$249)","v":""},null,{"$f":"IF($C$249=\"\",\"\",AV249/$C$249)","v":""},null,{"$f":"IF($C$249=\"\",\"\",AX249/$C$249)","v":""},null,{"$f":"IF($C$249=\"\",\"\",AZ249/$C$249)","v":""},null,{"$f":"IF($C$249=\"\",\"\",BB249/$C$249)","v":""},null,{"$f":"SUM(BB249,AZ249,AX249,AV249,AT249,AR249,AP249,AN249,AL249,AJ249,AH249,AF249,AD249,AB249,Z249,X249,V249,T249,R249,P249,N249,L249,J249,H249,F249)","v":0}]
["TOTAL HOURS",null,null,null,null,{"$f":"SUM(F224:F249)","v":0},null,{"$f":"SUM(H224:H249)","v":0},null,{"$f":"SUM(J224:J249)","v":0},null,{"$f":"SUM(L224:L249)","v":0},null,{"$f":"SUM(N224:N249)","v":0},null,{"$f":"SUM(P224:P249)","v":0},null,{"$f":"SUM(R224:R249)","v":0},null,{"$f":"SUM(T224:T249)","v":0},null,{"$f":"SUM(V224:V249)","v":0},null,{"$f":"SUM(X224:X249)","v":0},null,{"$f":"SUM(Z224:Z249)","v":0},null,{"$f":"SUM(AB224:AB249)","v":0},null,{"$f":"SUM(AD224:AD249)","v":0},null,{"$f":"SUM(AF224:AF249)","v":0},null,{"$f":"SUM(AH224:AH249)","v":0},null,{"$f":"SUM(AJ224:AJ249)","v":0},null,{"$f":"SUM(AL224:AL249)","v":0},null,{"$f":"SUM(AN224:AN249)","v":0},null,{"$f":"SUM(AP224:AP249)","v":0},null,{"$f":"SUM(AR224:AR249)","v":0},null,{"$f":"SUM(AT224:AT249)","v":0},null,{"$f":"SUM(AV224:AV249)","v":0},null,{"$f":"SUM(AX224:AX249)","v":0},null,{"$f":"SUM(AZ224:AZ249)","v":0},null,{"$f":"SUM(BB224:BB249)","v":0},{"$f":"SUM(E250:BB250)","v":0}]
["TOTAL WORKDAYS",null,null,null,null,{"$f":"F250/8","v":0},null,{"$f":"H250/8","v":0},null,{"$f":"J250/8","v":0},null,{"$f":"L250/8","v":0},null,{"$f":"N250/8","v":0},null,{"$f":"P250/8","v":0},null,{"$f":"R250/8","v":0},null,{"$f":"T250/8","v":0},null,{"$f":"V250/8","v":0},null,{"$f":"X250/8","v":0},null,{"$f":"Z250/8","v":0},null,{"$f":"AB250/8","v":0},null,{"$f":"AD250/8","v":0},null,0,null,{"$f":"AH250/8","v":0},null,0,null,{"$f":"AL250/8","v":0},null,0,null,{"$f":"AP250/8","v":0},null,0,null,{"$f":"AT250/8","v":0},null,{"$f":"AV250/8","v":0},null,{"$f":"AX250/8","v":0},null,{"$f":"AZ250/8","v":0},null,{"$f":"BB250/8","v":0},{"$f":"SUM(E251:BB251)","v":0}]
["TOTAL RAW LABOR",null,null,null,null,{"$f":"$E$13*F250","v":0},null,{"$f":"$G$13*H250","v":0},null,{"$f":"$I$13*J250","v":0},null,{"$f":"$K$13*L250","v":0},null,{"$f":"$M$13*N250","v":0},null,{"$f":"$O$13*P250","v":0},null,{"$f":"$Q$13*R250","v":0},null,{"$f":"$S$13*T250","v":0},null,{"$f":"$U$13*V250","v":0},null,{"$f":"$W$13*X250","v":0},null,{"$f":"$Y$13*Z250","v":0},null,{"$f":"$AA$13*AB250","v":0},null,{"$f":"$AC$13*AD250","v":0},null,{"$f":"$AC$13*AF250","v":0},null,{"$f":"$AC$13*AH250","v":0},null,{"$f":"$AC$13*AJ250","v":0},null,{"$f":"$AC$13*AL250","v":0},null,{"$f":"$AC$13*AN250","v":0},null,{"$f":"$AC$13*AP250","v":0},null,{"$f":"$AC$13*AR250","v":0},null,{"$f":"$AC$13*AT250","v":0},null,{"$f":"$AC$13*AV250","v":0},null,{"$f":"$AC$13*AX250","v":0},null,{"$f":"$AC$13*AZ250","v":0},null,{"$f":"$AC$13*BB250","v":0},{"$f":"SUM(E252:BB252)","v":0}]
["Task 11.0     ","SIGNAL SYSTEM CONSTRUCTION PLANS"]
[11.1,"Preliminary Plans"]
["    11.1.1","    Title Sheet",null,null,{"$f":"IF($C$255=\"\",\"\",F255/$C$255)","v":""},null,{"$f":"IF($C$255=\"\",\"\",H255/$C$255)","v":""},null,{"$f":"IF($C$255=\"\",\"\",J255/$C$255)","v":""},null,{"$f":"IF($C$255=\"\",\"\",L255/$C$255)","v":""},null,{"$f":"IF($C$255=\"\",\"\",N255/$C$255)","v":""},null,{"$f":"IF($C$255=\"\",\"\",P255/$C$255)","v":""},null,{"$f":"IF($C$255=\"\",\"\",R255/$C$255)","v":""},null,{"$f":"IF($C$255=\"\",\"\",T255/$C$255)","v":""},null,{"$f":"IF($C$255=\"\",\"\",V255/$C$255)","v":""},null,{"$f":"IF($C$255=\"\",\"\",X255/$C$255)","v":""},null,{"$f":"IF($C$255=\"\",\"\",Z255/$C$255)","v":""},null,{"$f":"IF($C$255=\"\",\"\",AB255/$C$255)","v":""},null,{"$f":"IF($C$255=\"\",\"\",AD255/$C$255)","v":""},null,{"$f":"IF($C$255=\"\",\"\",AF255/$C$255)","v":""},null,{"$f":"IF($C$255=\"\",\"\",AH255/$C$255)","v":""},null,{"$f":"IF($C$255=\"\",\"\",AJ255/$C$255)","v":""},null,{"$f":"IF($C$255=\"\",\"\",AL255/$C$255)","v":""},null,{"$f":"IF($C$255=\"\",\"\",AN255/$C$255)","v":""},null,{"$f":"IF($C$255=\"\",\"\",AP255/$C$255)","v":""},null,{"$f":"IF($C$255=\"\",\"\",AR255/$C$255)","v":""},null,{"$f":"IF($C$255=\"\",\"\",AT255/$C$255)","v":""},null,{"$f":"IF($C$255=\"\",\"\",AV255/$C$255)","v":""},null,{"$f":"IF($C$255=\"\",\"\",AX255/$C$255)","v":""},null,{"$f":"IF($C$255=\"\",\"\",AZ255/$C$255)","v":""},null,{"$f":"IF($C$255=\"\",\"\",BB255/$C$255)","v":""},null,{"$f":"SUM(BB255,AZ255,AX255,AV255,AT255,AR255,AP255,AN255,AL255,AJ255,AH255,AF255,AD255,AB255,Z255,X255,V255,T255,R255,P255,N255,L255,J255,H255,F255)","v":0}]
["    11.1.2","    Legend and General Notes",null,null,{"$f":"IF($C$256=\"\",\"\",F256/$C$256)","v":""},null,{"$f":"IF($C$256=\"\",\"\",H256/$C$256)","v":""},null,{"$f":"IF($C$256=\"\",\"\",J256/$C$256)","v":""},null,{"$f":"IF($C$256=\"\",\"\",L256/$C$256)","v":""},null,{"$f":"IF($C$256=\"\",\"\",N256/$C$256)","v":""},null,{"$f":"IF($C$256=\"\",\"\",P256/$C$256)","v":""},null,{"$f":"IF($C$256=\"\",\"\",R256/$C$256)","v":""},null,{"$f":"IF($C$256=\"\",\"\",T256/$C$256)","v":""},null,{"$f":"IF($C$256=\"\",\"\",V256/$C$256)","v":""},null,{"$f":"IF($C$256=\"\",\"\",X256/$C$256)","v":""},null,{"$f":"IF($C$256=\"\",\"\",Z256/$C$256)","v":""},null,{"$f":"IF($C$256=\"\",\"\",AB256/$C$256)","v":""},null,{"$f":"IF($C$256=\"\",\"\",AD256/$C$256)","v":""},null,{"$f":"IF($C$256=\"\",\"\",AF256/$C$256)","v":""},null,{"$f":"IF($C$256=\"\",\"\",AH256/$C$256)","v":""},null,{"$f":"IF($C$256=\"\",\"\",AJ256/$C$256)","v":""},null,{"$f":"IF($C$256=\"\",\"\",AL256/$C$256)","v":""},null,{"$f":"IF($C$256=\"\",\"\",AN256/$C$256)","v":""},null,{"$f":"IF($C$256=\"\",\"\",AP256/$C$256)","v":""},null,{"$f":"IF($C$256=\"\",\"\",AR256/$C$256)","v":""},null,{"$f":"IF($C$256=\"\",\"\",AT256/$C$256)","v":""},null,{"$f":"IF($C$256=\"\",\"\",AV256/$C$256)","v":""},null,{"$f":"IF($C$256=\"\",\"\",AX256/$C$256)","v":""},null,{"$f":"IF($C$256=\"\",\"\",AZ256/$C$256)","v":""},null,{"$f":"IF($C$256=\"\",\"\",BB256/$C$256)","v":""},null,0]
["    11.1.3","    Temporary Traffic Control Plans",null,null,{"$f":"IF($C$257=\"\",\"\",F257/$C$257)","v":""},null,{"$f":"IF($C$257=\"\",\"\",H257/$C$257)","v":""},null,{"$f":"IF($C$257=\"\",\"\",J257/$C$257)","v":""},null,{"$f":"IF($C$257=\"\",\"\",L257/$C$257)","v":""},null,{"$f":"IF($C$257=\"\",\"\",N257/$C$257)","v":""},null,{"$f":"IF($C$257=\"\",\"\",P257/$C$257)","v":""},null,{"$f":"IF($C$257=\"\",\"\",R257/$C$257)","v":""},null,{"$f":"IF($C$257=\"\",\"\",T257/$C$257)","v":""},null,{"$f":"IF($C$257=\"\",\"\",V257/$C$257)","v":""},null,{"$f":"IF($C$257=\"\",\"\",X257/$C$257)","v":""},null,{"$f":"IF($C$257=\"\",\"\",Z257/$C$257)","v":""},null,{"$f":"IF($C$257=\"\",\"\",AB257/$C$257)","v":""},null,{"$f":"IF($C$257=\"\",\"\",AD257/$C$257)","v":""},null,{"$f":"IF($C$257=\"\",\"\",AF257/$C$257)","v":""},null,{"$f":"IF($C$257=\"\",\"\",AH257/$C$257)","v":""},null,{"$f":"IF($C$257=\"\",\"\",AJ257/$C$257)","v":""},null,{"$f":"IF($C$257=\"\",\"\",AL257/$C$257)","v":""},null,{"$f":"IF($C$257=\"\",\"\",AN257/$C$257)","v":""},null,{"$f":"IF($C$257=\"\",\"\",AP257/$C$257)","v":""},null,{"$f":"IF($C$257=\"\",\"\",AR257/$C$257)","v":""},null,{"$f":"IF($C$257=\"\",\"\",AT257/$C$257)","v":""},null,{"$f":"IF($C$257=\"\",\"\",AV257/$C$257)","v":""},null,{"$f":"IF($C$257=\"\",\"\",AX257/$C$257)","v":""},null,{"$f":"IF($C$257=\"\",\"\",AZ257/$C$257)","v":""},null,{"$f":"IF($C$257=\"\",\"\",BB257/$C$257)","v":""},null,0]
["    11.1.4","    Summary of Quantities",null,null,{"$f":"IF($C$258=\"\",\"\",F258/$C$258)","v":""},null,{"$f":"IF($C$258=\"\",\"\",H258/$C$258)","v":""},null,{"$f":"IF($C$258=\"\",\"\",J258/$C$258)","v":""},null,{"$f":"IF($C$258=\"\",\"\",L258/$C$258)","v":""},null,{"$f":"IF($C$258=\"\",\"\",N258/$C$258)","v":""},null,{"$f":"IF($C$258=\"\",\"\",P258/$C$258)","v":""},null,{"$f":"IF($C$258=\"\",\"\",R258/$C$258)","v":""},null,{"$f":"IF($C$258=\"\",\"\",T258/$C$258)","v":""},null,{"$f":"IF($C$258=\"\",\"\",V258/$C$258)","v":""},null,{"$f":"IF($C$258=\"\",\"\",X258/$C$258)","v":""},null,{"$f":"IF($C$258=\"\",\"\",Z258/$C$258)","v":""},null,{"$f":"IF($C$258=\"\",\"\",AB258/$C$258)","v":""},null,{"$f":"IF($C$258=\"\",\"\",AD258/$C$258)","v":""},null,{"$f":"IF($C$258=\"\",\"\",AF258/$C$258)","v":""},null,{"$f":"IF($C$258=\"\",\"\",AH258/$C$258)","v":""},null,{"$f":"IF($C$258=\"\",\"\",AJ258/$C$258)","v":""},null,{"$f":"IF($C$258=\"\",\"\",AL258/$C$258)","v":""},null,{"$f":"IF($C$258=\"\",\"\",AN258/$C$258)","v":""},null,{"$f":"IF($C$258=\"\",\"\",AP258/$C$258)","v":""},null,{"$f":"IF($C$258=\"\",\"\",AR258/$C$258)","v":""},null,{"$f":"IF($C$258=\"\",\"\",AT258/$C$258)","v":""},null,{"$f":"IF($C$258=\"\",\"\",AV258/$C$258)","v":""},null,{"$f":"IF($C$258=\"\",\"\",AX258/$C$258)","v":""},null,{"$f":"IF($C$258=\"\",\"\",AZ258/$C$258)","v":""},null,{"$f":"IF($C$258=\"\",\"\",BB258/$C$258)","v":""},null,0]
["    11.1.5","    Summary of Work by CableRouting Sheet",null,null,{"$f":"IF($C$259=\"\",\"\",F259/$C$259)","v":""},null,{"$f":"IF($C$259=\"\",\"\",H259/$C$259)","v":""},null,{"$f":"IF($C$259=\"\",\"\",J259/$C$259)","v":""},null,{"$f":"IF($C$259=\"\",\"\",L259/$C$259)","v":""},null,{"$f":"IF($C$259=\"\",\"\",N259/$C$259)","v":""},null,{"$f":"IF($C$259=\"\",\"\",P259/$C$259)","v":""},null,{"$f":"IF($C$259=\"\",\"\",R259/$C$259)","v":""},null,{"$f":"IF($C$259=\"\",\"\",T259/$C$259)","v":""},null,{"$f":"IF($C$259=\"\",\"\",V259/$C$259)","v":""},null,{"$f":"IF($C$259=\"\",\"\",X259/$C$259)","v":""},null,{"$f":"IF($C$259=\"\",\"\",Z259/$C$259)","v":""},null,{"$f":"IF($C$259=\"\",\"\",AB259/$C$259)","v":""},null,{"$f":"IF($C$259=\"\",\"\",AD259/$C$259)","v":""},null,{"$f":"IF($C$259=\"\",\"\",AF259/$C$259)","v":""},null,{"$f":"IF($C$259=\"\",\"\",AH259/$C$259)","v":""},null,{"$f":"IF($C$259=\"\",\"\",AJ259/$C$259)","v":""},null,{"$f":"IF($C$259=\"\",\"\",AL259/$C$259)","v":""},null,{"$f":"IF($C$259=\"\",\"\",AN259/$C$259)","v":""},null,{"$f":"IF($C$259=\"\",\"\",AP259/$C$259)","v":""},null,{"$f":"IF($C$259=\"\",\"\",AR259/$C$259)","v":""},null,{"$f":"IF($C$259=\"\",\"\",AT259/$C$259)","v":""},null,{"$f":"IF($C$259=\"\",\"\",AV259/$C$259)","v":""},null,{"$f":"IF($C$259=\"\",\"\",AX259/$C$259)","v":""},null,{"$f":"IF($C$259=\"\",\"\",AZ259/$C$259)","v":""},null,{"$f":"IF($C$259=\"\",\"\",BB259/$C$259)","v":""},null,0]
["    11.1.6","    Communications Cable Schematic",null,null,{"$f":"IF($C$260=\"\",\"\",F260/$C$260)","v":""},null,{"$f":"IF($C$260=\"\",\"\",H260/$C$260)","v":""},null,{"$f":"IF($C$260=\"\",\"\",J260/$C$260)","v":""},null,{"$f":"IF($C$260=\"\",\"\",L260/$C$260)","v":""},null,{"$f":"IF($C$260=\"\",\"\",N260/$C$260)","v":""},null,{"$f":"IF($C$260=\"\",\"\",P260/$C$260)","v":""},null,{"$f":"IF($C$260=\"\",\"\",R260/$C$260)","v":""},null,{"$f":"IF($C$260=\"\",\"\",T260/$C$260)","v":""},null,{"$f":"IF($C$260=\"\",\"\",V260/$C$260)","v":""},null,{"$f":"IF($C$260=\"\",\"\",X260/$C$260)","v":""},null,{"$f":"IF($C$260=\"\",\"\",Z260/$C$260)","v":""},null,{"$f":"IF($C$260=\"\",\"\",AB260/$C$260)","v":""},null,{"$f":"IF($C$260=\"\",\"\",AD260/$C$260)","v":""},null,{"$f":"IF($C$260=\"\",\"\",AF260/$C$260)","v":""},null,{"$f":"IF($C$260=\"\",\"\",AH260/$C$260)","v":""},null,{"$f":"IF($C$260=\"\",\"\",AJ260/$C$260)","v":""},null,{"$f":"IF($C$260=\"\",\"\",AL260/$C$260)","v":""},null,{"$f":"IF($C$260=\"\",\"\",AN260/$C$260)","v":""},null,{"$f":"IF($C$260=\"\",\"\",AP260/$C$260)","v":""},null,{"$f":"IF($C$260=\"\",\"\",AR260/$C$260)","v":""},null,{"$f":"IF($C$260=\"\",\"\",AT260/$C$260)","v":""},null,{"$f":"IF($C$260=\"\",\"\",AV260/$C$260)","v":""},null,{"$f":"IF($C$260=\"\",\"\",AX260/$C$260)","v":""},null,{"$f":"IF($C$260=\"\",\"\",AZ260/$C$260)","v":""},null,{"$f":"IF($C$260=\"\",\"\",BB260/$C$260)","v":""},null,0]
["    11.1.7","    Communications Ring Schematics",null,null,{"$f":"IF($C$261=\"\",\"\",F261/$C$261)","v":""},null,{"$f":"IF($C$261=\"\",\"\",H261/$C$261)","v":""},null,{"$f":"IF($C$261=\"\",\"\",J261/$C$261)","v":""},null,{"$f":"IF($C$261=\"\",\"\",L261/$C$261)","v":""},null,{"$f":"IF($C$261=\"\",\"\",N261/$C$261)","v":""},null,{"$f":"IF($C$261=\"\",\"\",P261/$C$261)","v":""},null,{"$f":"IF($C$261=\"\",\"\",R261/$C$261)","v":""},null,{"$f":"IF($C$261=\"\",\"\",T261/$C$261)","v":""},null,{"$f":"IF($C$261=\"\",\"\",V261/$C$261)","v":""},null,{"$f":"IF($C$261=\"\",\"\",X261/$C$261)","v":""},null,{"$f":"IF($C$261=\"\",\"\",Z261/$C$261)","v":""},null,{"$f":"IF($C$261=\"\",\"\",AB261/$C$261)","v":""},null,{"$f":"IF($C$261=\"\",\"\",AD261/$C$261)","v":""},null,{"$f":"IF($C$261=\"\",\"\",AF261/$C$261)","v":""},null,{"$f":"IF($C$261=\"\",\"\",AH261/$C$261)","v":""},null,{"$f":"IF($C$261=\"\",\"\",AJ261/$C$261)","v":""},null,{"$f":"IF($C$261=\"\",\"\",AL261/$C$261)","v":""},null,{"$f":"IF($C$261=\"\",\"\",AN261/$C$261)","v":""},null,{"$f":"IF($C$261=\"\",\"\",AP261/$C$261)","v":""},null,{"$f":"IF($C$261=\"\",\"\",AR261/$C$261)","v":""},null,{"$f":"IF($C$261=\"\",\"\",AT261/$C$261)","v":""},null,{"$f":"IF($C$261=\"\",\"\",AV261/$C$261)","v":""},null,{"$f":"IF($C$261=\"\",\"\",AX261/$C$261)","v":""},null,{"$f":"IF($C$261=\"\",\"\",AZ261/$C$261)","v":""},null,{"$f":"IF($C$261=\"\",\"\",BB261/$C$261)","v":""},null,0]
["    11.1.8","    Summary of Fiber Optic Cables",null,null,{"$f":"IF($C$262=\"\",\"\",F262/$C$262)","v":""},null,{"$f":"IF($C$262=\"\",\"\",H262/$C$262)","v":""},null,{"$f":"IF($C$262=\"\",\"\",J262/$C$262)","v":""},null,{"$f":"IF($C$262=\"\",\"\",L262/$C$262)","v":""},null,{"$f":"IF($C$262=\"\",\"\",N262/$C$262)","v":""},null,{"$f":"IF($C$262=\"\",\"\",P262/$C$262)","v":""},null,{"$f":"IF($C$262=\"\",\"\",R262/$C$262)","v":""},null,{"$f":"IF($C$262=\"\",\"\",T262/$C$262)","v":""},null,{"$f":"IF($C$262=\"\",\"\",V262/$C$262)","v":""},null,{"$f":"IF($C$262=\"\",\"\",X262/$C$262)","v":""},null,{"$f":"IF($C$262=\"\",\"\",Z262/$C$262)","v":""},null,{"$f":"IF($C$262=\"\",\"\",AB262/$C$262)","v":""},null,{"$f":"IF($C$262=\"\",\"\",AD262/$C$262)","v":""},null,{"$f":"IF($C$262=\"\",\"\",AF262/$C$262)","v":""},null,{"$f":"IF($C$262=\"\",\"\",AH262/$C$262)","v":""},null,{"$f":"IF($C$262=\"\",\"\",AJ262/$C$262)","v":""},null,{"$f":"IF($C$262=\"\",\"\",AL262/$C$262)","v":""},null,{"$f":"IF($C$262=\"\",\"\",AN262/$C$262)","v":""},null,{"$f":"IF($C$262=\"\",\"\",AP262/$C$262)","v":""},null,{"$f":"IF($C$262=\"\",\"\",AR262/$C$262)","v":""},null,{"$f":"IF($C$262=\"\",\"\",AT262/$C$262)","v":""},null,{"$f":"IF($C$262=\"\",\"\",AV262/$C$262)","v":""},null,{"$f":"IF($C$262=\"\",\"\",AX262/$C$262)","v":""},null,{"$f":"IF($C$262=\"\",\"\",AZ262/$C$262)","v":""},null,{"$f":"IF($C$262=\"\",\"\",BB262/$C$262)","v":""},null,0]
["    11.1.9","    System Detector Schematic",null,null,{"$f":"IF($C$263=\"\",\"\",F263/$C$263)","v":""},null,{"$f":"IF($C$263=\"\",\"\",H263/$C$263)","v":""},null,{"$f":"IF($C$263=\"\",\"\",J263/$C$263)","v":""},null,{"$f":"IF($C$263=\"\",\"\",L263/$C$263)","v":""},null,{"$f":"IF($C$263=\"\",\"\",N263/$C$263)","v":""},null,{"$f":"IF($C$263=\"\",\"\",P263/$C$263)","v":""},null,{"$f":"IF($C$263=\"\",\"\",R263/$C$263)","v":""},null,{"$f":"IF($C$263=\"\",\"\",T263/$C$263)","v":""},null,{"$f":"IF($C$263=\"\",\"\",V263/$C$263)","v":""},null,{"$f":"IF($C$263=\"\",\"\",X263/$C$263)","v":""},null,{"$f":"IF($C$263=\"\",\"\",Z263/$C$263)","v":""},null,{"$f":"IF($C$263=\"\",\"\",AB263/$C$263)","v":""},null,{"$f":"IF($C$263=\"\",\"\",AD263/$C$263)","v":""},null,{"$f":"IF($C$263=\"\",\"\",AF263/$C$263)","v":""},null,{"$f":"IF($C$263=\"\",\"\",AH263/$C$263)","v":""},null,{"$f":"IF($C$263=\"\",\"\",AJ263/$C$263)","v":""},null,{"$f":"IF($C$263=\"\",\"\",AL263/$C$263)","v":""},null,{"$f":"IF($C$263=\"\",\"\",AN263/$C$263)","v":""},null,{"$f":"IF($C$263=\"\",\"\",AP263/$C$263)","v":""},null,{"$f":"IF($C$263=\"\",\"\",AR263/$C$263)","v":""},null,{"$f":"IF($C$263=\"\",\"\",AT263/$C$263)","v":""},null,{"$f":"IF($C$263=\"\",\"\",AV263/$C$263)","v":""},null,{"$f":"IF($C$263=\"\",\"\",AX263/$C$263)","v":""},null,{"$f":"IF($C$263=\"\",\"\",AZ263/$C$263)","v":""},null,{"$f":"IF($C$263=\"\",\"\",BB263/$C$263)","v":""},null,0]
["    11.1.10","    TMC Block Diagram",null,null,{"$f":"IF($C$264=\"\",\"\",F264/$C$264)","v":""},null,{"$f":"IF($C$264=\"\",\"\",H264/$C$264)","v":""},null,{"$f":"IF($C$264=\"\",\"\",J264/$C$264)","v":""},null,{"$f":"IF($C$264=\"\",\"\",L264/$C$264)","v":""},null,{"$f":"IF($C$264=\"\",\"\",N264/$C$264)","v":""},null,{"$f":"IF($C$264=\"\",\"\",P264/$C$264)","v":""},null,{"$f":"IF($C$264=\"\",\"\",R264/$C$264)","v":""},null,{"$f":"IF($C$264=\"\",\"\",T264/$C$264)","v":""},null,{"$f":"IF($C$264=\"\",\"\",V264/$C$264)","v":""},null,{"$f":"IF($C$264=\"\",\"\",X264/$C$264)","v":""},null,{"$f":"IF($C$264=\"\",\"\",Z264/$C$264)","v":""},null,{"$f":"IF($C$264=\"\",\"\",AB264/$C$264)","v":""},null,{"$f":"IF($C$264=\"\",\"\",AD264/$C$264)","v":""},null,{"$f":"IF($C$264=\"\",\"\",AF264/$C$264)","v":""},null,{"$f":"IF($C$264=\"\",\"\",AH264/$C$264)","v":""},null,{"$f":"IF($C$264=\"\",\"\",AJ264/$C$264)","v":""},null,{"$f":"IF($C$264=\"\",\"\",AL264/$C$264)","v":""},null,{"$f":"IF($C$264=\"\",\"\",AN264/$C$264)","v":""},null,{"$f":"IF($C$264=\"\",\"\",AP264/$C$264)","v":""},null,{"$f":"IF($C$264=\"\",\"\",AR264/$C$264)","v":""},null,{"$f":"IF($C$264=\"\",\"\",AT264/$C$264)","v":""},null,{"$f":"IF($C$264=\"\",\"\",AV264/$C$264)","v":""},null,{"$f":"IF($C$264=\"\",\"\",AX264/$C$264)","v":""},null,{"$f":"IF($C$264=\"\",\"\",AZ264/$C$264)","v":""},null,{"$f":"IF($C$264=\"\",\"\",BB264/$C$264)","v":""},null,0]
["    11.1.11","    System-Wide Block Diagrams",null,null,{"$f":"IF($C$265=\"\",\"\",F265/$C$265)","v":""},null,{"$f":"IF($C$265=\"\",\"\",H265/$C$265)","v":""},null,{"$f":"IF($C$265=\"\",\"\",J265/$C$265)","v":""},null,{"$f":"IF($C$265=\"\",\"\",L265/$C$265)","v":""},null,{"$f":"IF($C$265=\"\",\"\",N265/$C$265)","v":""},null,{"$f":"IF($C$265=\"\",\"\",P265/$C$265)","v":""},null,{"$f":"IF($C$265=\"\",\"\",R265/$C$265)","v":""},null,{"$f":"IF($C$265=\"\",\"\",T265/$C$265)","v":""},null,{"$f":"IF($C$265=\"\",\"\",V265/$C$265)","v":""},null,{"$f":"IF($C$265=\"\",\"\",X265/$C$265)","v":""},null,{"$f":"IF($C$265=\"\",\"\",Z265/$C$265)","v":""},null,{"$f":"IF($C$265=\"\",\"\",AB265/$C$265)","v":""},null,{"$f":"IF($C$265=\"\",\"\",AD265/$C$265)","v":""},null,{"$f":"IF($C$265=\"\",\"\",AF265/$C$265)","v":""},null,{"$f":"IF($C$265=\"\",\"\",AH265/$C$265)","v":""},null,{"$f":"IF($C$265=\"\",\"\",AJ265/$C$265)","v":""},null,{"$f":"IF($C$265=\"\",\"\",AL265/$C$265)","v":""},null,{"$f":"IF($C$265=\"\",\"\",AN265/$C$265)","v":""},null,{"$f":"IF($C$265=\"\",\"\",AP265/$C$265)","v":""},null,{"$f":"IF($C$265=\"\",\"\",AR265/$C$265)","v":""},null,{"$f":"IF($C$265=\"\",\"\",AT265/$C$265)","v":""},null,{"$f":"IF($C$265=\"\",\"\",AV265/$C$265)","v":""},null,{"$f":"IF($C$265=\"\",\"\",AX265/$C$265)","v":""},null,{"$f":"IF($C$265=\"\",\"\",AZ265/$C$265)","v":""},null,{"$f":"IF($C$265=\"\",\"\",BB265/$C$265)","v":""},null,0]
["    11.1.12","    Sheet Layout Key for UMR/Cable Routing \n    Sheets",null,null,{"$f":"IF($C$266=\"\",\"\",F266/$C$266)","v":""},null,{"$f":"IF($C$266=\"\",\"\",H266/$C$266)","v":""},null,{"$f":"IF($C$266=\"\",\"\",J266/$C$266)","v":""},null,{"$f":"IF($C$266=\"\",\"\",L266/$C$266)","v":""},null,{"$f":"IF($C$266=\"\",\"\",N266/$C$266)","v":""},null,{"$f":"IF($C$266=\"\",\"\",P266/$C$266)","v":""},null,{"$f":"IF($C$266=\"\",\"\",R266/$C$266)","v":""},null,{"$f":"IF($C$266=\"\",\"\",T266/$C$266)","v":""},null,{"$f":"IF($C$266=\"\",\"\",V266/$C$266)","v":""},null,{"$f":"IF($C$266=\"\",\"\",X266/$C$266)","v":""},null,{"$f":"IF($C$266=\"\",\"\",Z266/$C$266)","v":""},null,{"$f":"IF($C$266=\"\",\"\",AB266/$C$266)","v":""},null,{"$f":"IF($C$266=\"\",\"\",AD266/$C$266)","v":""},null,{"$f":"IF($C$266=\"\",\"\",AF266/$C$266)","v":""},null,{"$f":"IF($C$266=\"\",\"\",AH266/$C$266)","v":""},null,{"$f":"IF($C$266=\"\",\"\",AJ266/$C$266)","v":""},null,{"$f":"IF($C$266=\"\",\"\",AL266/$C$266)","v":""},null,{"$f":"IF($C$266=\"\",\"\",AN266/$C$266)","v":""},null,{"$f":"IF($C$266=\"\",\"\",AP266/$C$266)","v":""},null,{"$f":"IF($C$266=\"\",\"\",AR266/$C$266)","v":""},null,{"$f":"IF($C$266=\"\",\"\",AT266/$C$266)","v":""},null,{"$f":"IF($C$266=\"\",\"\",AV266/$C$266)","v":""},null,{"$f":"IF($C$266=\"\",\"\",AX266/$C$266)","v":""},null,{"$f":"IF($C$266=\"\",\"\",AZ266/$C$266)","v":""},null,{"$f":"IF($C$266=\"\",\"\",BB266/$C$266)","v":""},null,0]
["    11.1.13","    Construction Notes",null,null,{"$f":"IF($C$267=\"\",\"\",F267/$C$267)","v":""},null,{"$f":"IF($C$267=\"\",\"\",H267/$C$267)","v":""},null,{"$f":"IF($C$267=\"\",\"\",J267/$C$267)","v":""},null,{"$f":"IF($C$267=\"\",\"\",L267/$C$267)","v":""},null,{"$f":"IF($C$267=\"\",\"\",N267/$C$267)","v":""},null,{"$f":"IF($C$267=\"\",\"\",P267/$C$267)","v":""},null,{"$f":"IF($C$267=\"\",\"\",R267/$C$267)","v":""},null,{"$f":"IF($C$267=\"\",\"\",T267/$C$267)","v":""},null,{"$f":"IF($C$267=\"\",\"\",V267/$C$267)","v":""},null,{"$f":"IF($C$267=\"\",\"\",X267/$C$267)","v":""},null,{"$f":"IF($C$267=\"\",\"\",Z267/$C$267)","v":""},null,{"$f":"IF($C$267=\"\",\"\",AB267/$C$267)","v":""},null,{"$f":"IF($C$267=\"\",\"\",AD267/$C$267)","v":""},null,{"$f":"IF($C$267=\"\",\"\",AF267/$C$267)","v":""},null,{"$f":"IF($C$267=\"\",\"\",AH267/$C$267)","v":""},null,{"$f":"IF($C$267=\"\",\"\",AJ267/$C$267)","v":""},null,{"$f":"IF($C$267=\"\",\"\",AL267/$C$267)","v":""},null,{"$f":"IF($C$267=\"\",\"\",AN267/$C$267)","v":""},null,{"$f":"IF($C$267=\"\",\"\",AP267/$C$267)","v":""},null,{"$f":"IF($C$267=\"\",\"\",AR267/$C$267)","v":""},null,{"$f":"IF($C$267=\"\",\"\",AT267/$C$267)","v":""},null,{"$f":"IF($C$267=\"\",\"\",AV267/$C$267)","v":""},null,{"$f":"IF($C$267=\"\",\"\",AX267/$C$267)","v":""},null,{"$f":"IF($C$267=\"\",\"\",AZ267/$C$267)","v":""},null,{"$f":"IF($C$267=\"\",\"\",BB267/$C$267)","v":""},null,0]
["    11.1.14","    Communications Cable Routing Sheets",null,null,{"$f":"IF($C$268=\"\",\"\",F268/$C$268)","v":""},null,{"$f":"IF($C$268=\"\",\"\",H268/$C$268)","v":""},null,{"$f":"IF($C$268=\"\",\"\",J268/$C$268)","v":""},null,{"$f":"IF($C$268=\"\",\"\",L268/$C$268)","v":""},null,{"$f":"IF($C$268=\"\",\"\",N268/$C$268)","v":""},null,{"$f":"IF($C$268=\"\",\"\",P268/$C$268)","v":""},null,{"$f":"IF($C$268=\"\",\"\",R268/$C$268)","v":""},null,{"$f":"IF($C$268=\"\",\"\",T268/$C$268)","v":""},null,{"$f":"IF($C$268=\"\",\"\",V268/$C$268)","v":""},null,{"$f":"IF($C$268=\"\",\"\",X268/$C$268)","v":""},null,{"$f":"IF($C$268=\"\",\"\",Z268/$C$268)","v":""},null,{"$f":"IF($C$268=\"\",\"\",AB268/$C$268)","v":""},null,{"$f":"IF($C$268=\"\",\"\",AD268/$C$268)","v":""},null,{"$f":"IF($C$268=\"\",\"\",AF268/$C$268)","v":""},null,{"$f":"IF($C$268=\"\",\"\",AH268/$C$268)","v":""},null,{"$f":"IF($C$268=\"\",\"\",AJ268/$C$268)","v":""},null,{"$f":"IF($C$268=\"\",\"\",AL268/$C$268)","v":""},null,{"$f":"IF($C$268=\"\",\"\",AN268/$C$268)","v":""},null,{"$f":"IF($C$268=\"\",\"\",AP268/$C$268)","v":""},null,{"$f":"IF($C$268=\"\",\"\",AR268/$C$268)","v":""},null,{"$f":"IF($C$268=\"\",\"\",AT268/$C$268)","v":""},null,{"$f":"IF($C$268=\"\",\"\",AV268/$C$268)","v":""},null,{"$f":"IF($C$268=\"\",\"\",AX268/$C$268)","v":""},null,{"$f":"IF($C$268=\"\",\"\",AZ268/$C$268)","v":""},null,{"$f":"IF($C$268=\"\",\"\",BB268/$C$268)","v":""},null,0]
["    11.1.15","    Typical Details",null,null,{"$f":"IF($C$269=\"\",\"\",F269/$C$269)","v":""},null,{"$f":"IF($C$269=\"\",\"\",H269/$C$269)","v":""},null,{"$f":"IF($C$269=\"\",\"\",J269/$C$269)","v":""},null,{"$f":"IF($C$269=\"\",\"\",L269/$C$269)","v":""},null,{"$f":"IF($C$269=\"\",\"\",N269/$C$269)","v":""},null,{"$f":"IF($C$269=\"\",\"\",P269/$C$269)","v":""},null,{"$f":"IF($C$269=\"\",\"\",R269/$C$269)","v":""},null,{"$f":"IF($C$269=\"\",\"\",T269/$C$269)","v":""},null,{"$f":"IF($C$269=\"\",\"\",V269/$C$269)","v":""},null,{"$f":"IF($C$269=\"\",\"\",X269/$C$269)","v":""},null,{"$f":"IF($C$269=\"\",\"\",Z269/$C$269)","v":""},null,{"$f":"IF($C$269=\"\",\"\",AB269/$C$269)","v":""},null,{"$f":"IF($C$269=\"\",\"\",AD269/$C$269)","v":""},null,{"$f":"IF($C$269=\"\",\"\",AF269/$C$269)","v":""},null,{"$f":"IF($C$269=\"\",\"\",AH269/$C$269)","v":""},null,{"$f":"IF($C$269=\"\",\"\",AJ269/$C$269)","v":""},null,{"$f":"IF($C$269=\"\",\"\",AL269/$C$269)","v":""},null,{"$f":"IF($C$269=\"\",\"\",AN269/$C$269)","v":""},null,{"$f":"IF($C$269=\"\",\"\",AP269/$C$269)","v":""},null,{"$f":"IF($C$269=\"\",\"\",AR269/$C$269)","v":""},null,{"$f":"IF($C$269=\"\",\"\",AT269/$C$269)","v":""},null,{"$f":"IF($C$269=\"\",\"\",AV269/$C$269)","v":""},null,{"$f":"IF($C$269=\"\",\"\",AX269/$C$269)","v":""},null,{"$f":"IF($C$269=\"\",\"\",AZ269/$C$269)","v":""},null,{"$f":"IF($C$269=\"\",\"\",BB269/$C$269)","v":""},null,0]
["    11.1.16","    Summary of Work by CCTV Location",null,null,{"$f":"IF($C$270=\"\",\"\",F270/$C$270)","v":""},null,{"$f":"IF($C$270=\"\",\"\",H270/$C$270)","v":""},null,{"$f":"IF($C$270=\"\",\"\",J270/$C$270)","v":""},null,{"$f":"IF($C$270=\"\",\"\",L270/$C$270)","v":""},null,{"$f":"IF($C$270=\"\",\"\",N270/$C$270)","v":""},null,{"$f":"IF($C$270=\"\",\"\",P270/$C$270)","v":""},null,{"$f":"IF($C$270=\"\",\"\",R270/$C$270)","v":""},null,{"$f":"IF($C$270=\"\",\"\",T270/$C$270)","v":""},null,{"$f":"IF($C$270=\"\",\"\",V270/$C$270)","v":""},null,{"$f":"IF($C$270=\"\",\"\",X270/$C$270)","v":""},null,{"$f":"IF($C$270=\"\",\"\",Z270/$C$270)","v":""},null,{"$f":"IF($C$270=\"\",\"\",AB270/$C$270)","v":""},null,{"$f":"IF($C$270=\"\",\"\",AD270/$C$270)","v":""},null,{"$f":"IF($C$270=\"\",\"\",AF270/$C$270)","v":""},null,{"$f":"IF($C$270=\"\",\"\",AH270/$C$270)","v":""},null,{"$f":"IF($C$270=\"\",\"\",AJ270/$C$270)","v":""},null,{"$f":"IF($C$270=\"\",\"\",AL270/$C$270)","v":""},null,{"$f":"IF($C$270=\"\",\"\",AN270/$C$270)","v":""},null,{"$f":"IF($C$270=\"\",\"\",AP270/$C$270)","v":""},null,{"$f":"IF($C$270=\"\",\"\",AR270/$C$270)","v":""},null,{"$f":"IF($C$270=\"\",\"\",AT270/$C$270)","v":""},null,{"$f":"IF($C$270=\"\",\"\",AV270/$C$270)","v":""},null,{"$f":"IF($C$270=\"\",\"\",AX270/$C$270)","v":""},null,{"$f":"IF($C$270=\"\",\"\",AZ270/$C$270)","v":""},null,{"$f":"IF($C$270=\"\",\"\",BB270/$C$270)","v":""},null,0]
["    11.1.17","    CCTV Site Plans",null,null,{"$f":"IF($C$271=\"\",\"\",F271/$C$271)","v":""},null,{"$f":"IF($C$271=\"\",\"\",H271/$C$271)","v":""},null,{"$f":"IF($C$271=\"\",\"\",J271/$C$271)","v":""},null,{"$f":"IF($C$271=\"\",\"\",L271/$C$271)","v":""},null,{"$f":"IF($C$271=\"\",\"\",N271/$C$271)","v":""},null,{"$f":"IF($C$271=\"\",\"\",P271/$C$271)","v":""},null,{"$f":"IF($C$271=\"\",\"\",R271/$C$271)","v":""},null,{"$f":"IF($C$271=\"\",\"\",T271/$C$271)","v":""},null,{"$f":"IF($C$271=\"\",\"\",V271/$C$271)","v":""},null,{"$f":"IF($C$271=\"\",\"\",X271/$C$271)","v":""},null,{"$f":"IF($C$271=\"\",\"\",Z271/$C$271)","v":""},null,{"$f":"IF($C$271=\"\",\"\",AB271/$C$271)","v":""},null,{"$f":"IF($C$271=\"\",\"\",AD271/$C$271)","v":""},null,{"$f":"IF($C$271=\"\",\"\",AF271/$C$271)","v":""},null,{"$f":"IF($C$271=\"\",\"\",AH271/$C$271)","v":""},null,{"$f":"IF($C$271=\"\",\"\",AJ271/$C$271)","v":""},null,{"$f":"IF($C$271=\"\",\"\",AL271/$C$271)","v":""},null,{"$f":"IF($C$271=\"\",\"\",AN271/$C$271)","v":""},null,{"$f":"IF($C$271=\"\",\"\",AP271/$C$271)","v":""},null,{"$f":"IF($C$271=\"\",\"\",AR271/$C$271)","v":""},null,{"$f":"IF($C$271=\"\",\"\",AT271/$C$271)","v":""},null,{"$f":"IF($C$271=\"\",\"\",AV271/$C$271)","v":""},null,{"$f":"IF($C$271=\"\",\"\",AX271/$C$271)","v":""},null,{"$f":"IF($C$271=\"\",\"\",AZ271/$C$271)","v":""},null,{"$f":"IF($C$271=\"\",\"\",BB271/$C$271)","v":""},null,0]
["    11.1.18","    Wireless Design",null,null,{"$f":"IF($C$272=\"\",\"\",F272/$C$272)","v":""},null,{"$f":"IF($C$272=\"\",\"\",H272/$C$272)","v":""},null,{"$f":"IF($C$272=\"\",\"\",J272/$C$272)","v":""},null,{"$f":"IF($C$272=\"\",\"\",L272/$C$272)","v":""},null,{"$f":"IF($C$272=\"\",\"\",N272/$C$272)","v":""},null,{"$f":"IF($C$272=\"\",\"\",P272/$C$272)","v":""},null,{"$f":"IF($C$272=\"\",\"\",R272/$C$272)","v":""},null,{"$f":"IF($C$272=\"\",\"\",T272/$C$272)","v":""},null,{"$f":"IF($C$272=\"\",\"\",V272/$C$272)","v":""},null,{"$f":"IF($C$272=\"\",\"\",X272/$C$272)","v":""},null,{"$f":"IF($C$272=\"\",\"\",Z272/$C$272)","v":""},null,{"$f":"IF($C$272=\"\",\"\",AB272/$C$272)","v":""},null,{"$f":"IF($C$272=\"\",\"\",AD272/$C$272)","v":""},null,{"$f":"IF($C$272=\"\",\"\",AF272/$C$272)","v":""},null,{"$f":"IF($C$272=\"\",\"\",AH272/$C$272)","v":""},null,{"$f":"IF($C$272=\"\",\"\",AJ272/$C$272)","v":""},null,{"$f":"IF($C$272=\"\",\"\",AL272/$C$272)","v":""},null,{"$f":"IF($C$272=\"\",\"\",AN272/$C$272)","v":""},null,{"$f":"IF($C$272=\"\",\"\",AP272/$C$272)","v":""},null,{"$f":"IF($C$272=\"\",\"\",AR272/$C$272)","v":""},null,{"$f":"IF($C$272=\"\",\"\",AT272/$C$272)","v":""},null,{"$f":"IF($C$272=\"\",\"\",AV272/$C$272)","v":""},null,{"$f":"IF($C$272=\"\",\"\",AX272/$C$272)","v":""},null,{"$f":"IF($C$272=\"\",\"\",AZ272/$C$272)","v":""},null,{"$f":"IF($C$272=\"\",\"\",BB272/$C$272)","v":""},null,0]
["    11.1.19","    Municipal Remote Monitoring Station Details",null,null,{"$f":"IF($C$273=\"\",\"\",F273/$C$273)","v":""},null,{"$f":"IF($C$273=\"\",\"\",H273/$C$273)","v":""},null,{"$f":"IF($C$273=\"\",\"\",J273/$C$273)","v":""},null,{"$f":"IF($C$273=\"\",\"\",L273/$C$273)","v":""},null,{"$f":"IF($C$273=\"\",\"\",N273/$C$273)","v":""},null,{"$f":"IF($C$273=\"\",\"\",P273/$C$273)","v":""},null,{"$f":"IF($C$273=\"\",\"\",R273/$C$273)","v":""},null,{"$f":"IF($C$273=\"\",\"\",T273/$C$273)","v":""},null,{"$f":"IF($C$273=\"\",\"\",V273/$C$273)","v":""},null,{"$f":"IF($C$273=\"\",\"\",X273/$C$273)","v":""},null,{"$f":"IF($C$273=\"\",\"\",Z273/$C$273)","v":""},null,{"$f":"IF($C$273=\"\",\"\",AB273/$C$273)","v":""},null,{"$f":"IF($C$273=\"\",\"\",AD273/$C$273)","v":""},null,{"$f":"IF($C$273=\"\",\"\",AF273/$C$273)","v":""},null,{"$f":"IF($C$273=\"\",\"\",AH273/$C$273)","v":""},null,{"$f":"IF($C$273=\"\",\"\",AJ273/$C$273)","v":""},null,{"$f":"IF($C$273=\"\",\"\",AL273/$C$273)","v":""},null,{"$f":"IF($C$273=\"\",\"\",AN273/$C$273)","v":""},null,{"$f":"IF($C$273=\"\",\"\",AP273/$C$273)","v":""},null,{"$f":"IF($C$273=\"\",\"\",AR273/$C$273)","v":""},null,{"$f":"IF($C$273=\"\",\"\",AT273/$C$273)","v":""},null,{"$f":"IF($C$273=\"\",\"\",AV273/$C$273)","v":""},null,{"$f":"IF($C$273=\"\",\"\",AX273/$C$273)","v":""},null,{"$f":"IF($C$273=\"\",\"\",AZ273/$C$273)","v":""},null,{"$f":"IF($C$273=\"\",\"\",BB273/$C$273)","v":""},null,0]
["    11.1.20","    TMC Modifications",null,null,{"$f":"IF($C$274=\"\",\"\",F274/$C$274)","v":""},null,{"$f":"IF($C$274=\"\",\"\",H274/$C$274)","v":""},null,{"$f":"IF($C$274=\"\",\"\",J274/$C$274)","v":""},null,{"$f":"IF($C$274=\"\",\"\",L274/$C$274)","v":""},null,{"$f":"IF($C$274=\"\",\"\",N274/$C$274)","v":""},null,{"$f":"IF($C$274=\"\",\"\",P274/$C$274)","v":""},null,{"$f":"IF($C$274=\"\",\"\",R274/$C$274)","v":""},null,{"$f":"IF($C$274=\"\",\"\",T274/$C$274)","v":""},null,{"$f":"IF($C$274=\"\",\"\",V274/$C$274)","v":""},null,{"$f":"IF($C$274=\"\",\"\",X274/$C$274)","v":""},null,{"$f":"IF($C$274=\"\",\"\",Z274/$C$274)","v":""},null,{"$f":"IF($C$274=\"\",\"\",AB274/$C$274)","v":""},null,{"$f":"IF($C$274=\"\",\"\",AD274/$C$274)","v":""},null,{"$f":"IF($C$274=\"\",\"\",AF274/$C$274)","v":""},null,{"$f":"IF($C$274=\"\",\"\",AH274/$C$274)","v":""},null,{"$f":"IF($C$274=\"\",\"\",AJ274/$C$274)","v":""},null,{"$f":"IF($C$274=\"\",\"\",AL274/$C$274)","v":""},null,{"$f":"IF($C$274=\"\",\"\",AN274/$C$274)","v":""},null,{"$f":"IF($C$274=\"\",\"\",AP274/$C$274)","v":""},null,{"$f":"IF($C$274=\"\",\"\",AR274/$C$274)","v":""},null,{"$f":"IF($C$274=\"\",\"\",AT274/$C$274)","v":""},null,{"$f":"IF($C$274=\"\",\"\",AV274/$C$274)","v":""},null,{"$f":"IF($C$274=\"\",\"\",AX274/$C$274)","v":""},null,{"$f":"IF($C$274=\"\",\"\",AZ274/$C$274)","v":""},null,{"$f":"IF($C$274=\"\",\"\",BB274/$C$274)","v":""},null,0]
["    11.1.21","    Special Details",null,null,{"$f":"IF($C$275=\"\",\"\",F275/$C$275)","v":""},null,{"$f":"IF($C$275=\"\",\"\",H275/$C$275)","v":""},null,{"$f":"IF($C$275=\"\",\"\",J275/$C$275)","v":""},null,{"$f":"IF($C$275=\"\",\"\",L275/$C$275)","v":""},null,{"$f":"IF($C$275=\"\",\"\",N275/$C$275)","v":""},null,{"$f":"IF($C$275=\"\",\"\",P275/$C$275)","v":""},null,{"$f":"IF($C$275=\"\",\"\",R275/$C$275)","v":""},null,{"$f":"IF($C$275=\"\",\"\",T275/$C$275)","v":""},null,{"$f":"IF($C$275=\"\",\"\",V275/$C$275)","v":""},null,{"$f":"IF($C$275=\"\",\"\",X275/$C$275)","v":""},null,{"$f":"IF($C$275=\"\",\"\",Z275/$C$275)","v":""},null,{"$f":"IF($C$275=\"\",\"\",AB275/$C$275)","v":""},null,{"$f":"IF($C$275=\"\",\"\",AD275/$C$275)","v":""},null,{"$f":"IF($C$275=\"\",\"\",AF275/$C$275)","v":""},null,{"$f":"IF($C$275=\"\",\"\",AH275/$C$275)","v":""},null,{"$f":"IF($C$275=\"\",\"\",AJ275/$C$275)","v":""},null,{"$f":"IF($C$275=\"\",\"\",AL275/$C$275)","v":""},null,{"$f":"IF($C$275=\"\",\"\",AN275/$C$275)","v":""},null,{"$f":"IF($C$275=\"\",\"\",AP275/$C$275)","v":""},null,{"$f":"IF($C$275=\"\",\"\",AR275/$C$275)","v":""},null,{"$f":"IF($C$275=\"\",\"\",AT275/$C$275)","v":""},null,{"$f":"IF($C$275=\"\",\"\",AV275/$C$275)","v":""},null,{"$f":"IF($C$275=\"\",\"\",AX275/$C$275)","v":""},null,{"$f":"IF($C$275=\"\",\"\",AZ275/$C$275)","v":""},null,{"$f":"IF($C$275=\"\",\"\",BB275/$C$275)","v":""},null,0]
["    11.1.22","    Splice Diagrams",null,null,{"$f":"IF($C$276=\"\",\"\",F276/$C$276)","v":""},null,{"$f":"IF($C$276=\"\",\"\",H276/$C$276)","v":""},null,{"$f":"IF($C$276=\"\",\"\",J276/$C$276)","v":""},null,{"$f":"IF($C$276=\"\",\"\",L276/$C$276)","v":""},null,{"$f":"IF($C$276=\"\",\"\",N276/$C$276)","v":""},null,{"$f":"IF($C$276=\"\",\"\",P276/$C$276)","v":""},null,{"$f":"IF($C$276=\"\",\"\",R276/$C$276)","v":""},null,{"$f":"IF($C$276=\"\",\"\",T276/$C$276)","v":""},null,{"$f":"IF($C$276=\"\",\"\",V276/$C$276)","v":""},null,{"$f":"IF($C$276=\"\",\"\",X276/$C$276)","v":""},null,{"$f":"IF($C$276=\"\",\"\",Z276/$C$276)","v":""},null,{"$f":"IF($C$276=\"\",\"\",AB276/$C$276)","v":""},null,{"$f":"IF($C$276=\"\",\"\",AD276/$C$276)","v":""},null,{"$f":"IF($C$276=\"\",\"\",AF276/$C$276)","v":""},null,{"$f":"IF($C$276=\"\",\"\",AH276/$C$276)","v":""},null,{"$f":"IF($C$276=\"\",\"\",AJ276/$C$276)","v":""},null,{"$f":"IF($C$276=\"\",\"\",AL276/$C$276)","v":""},null,{"$f":"IF($C$276=\"\",\"\",AN276/$C$276)","v":""},null,{"$f":"IF($C$276=\"\",\"\",AP276/$C$276)","v":""},null,{"$f":"IF($C$276=\"\",\"\",AR276/$C$276)","v":""},null,{"$f":"IF($C$276=\"\",\"\",AT276/$C$276)","v":""},null,{"$f":"IF($C$276=\"\",\"\",AV276/$C$276)","v":""},null,{"$f":"IF($C$276=\"\",\"\",AX276/$C$276)","v":""},null,{"$f":"IF($C$276=\"\",\"\",AZ276/$C$276)","v":""},null,{"$f":"IF($C$276=\"\",\"\",BB276/$C$276)","v":""},null,0]
["    11.1.23","    Summary of Work by Intersection",null,null,{"$f":"IF($C$277=\"\",\"\",F277/$C$277)","v":""},null,{"$f":"IF($C$277=\"\",\"\",H277/$C$277)","v":""},null,{"$f":"IF($C$277=\"\",\"\",J277/$C$277)","v":""},null,{"$f":"IF($C$277=\"\",\"\",L277/$C$277)","v":""},null,{"$f":"IF($C$277=\"\",\"\",N277/$C$277)","v":""},null,{"$f":"IF($C$277=\"\",\"\",P277/$C$277)","v":""},null,{"$f":"IF($C$277=\"\",\"\",R277/$C$277)","v":""},null,{"$f":"IF($C$277=\"\",\"\",T277/$C$277)","v":""},null,{"$f":"IF($C$277=\"\",\"\",V277/$C$277)","v":""},null,{"$f":"IF($C$277=\"\",\"\",X277/$C$277)","v":""},null,{"$f":"IF($C$277=\"\",\"\",Z277/$C$277)","v":""},null,{"$f":"IF($C$277=\"\",\"\",AB277/$C$277)","v":""},null,{"$f":"IF($C$277=\"\",\"\",AD277/$C$277)","v":""},null,{"$f":"IF($C$277=\"\",\"\",AF277/$C$277)","v":""},null,{"$f":"IF($C$277=\"\",\"\",AH277/$C$277)","v":""},null,{"$f":"IF($C$277=\"\",\"\",AJ277/$C$277)","v":""},null,{"$f":"IF($C$277=\"\",\"\",AL277/$C$277)","v":""},null,{"$f":"IF($C$277=\"\",\"\",AN277/$C$277)","v":""},null,{"$f":"IF($C$277=\"\",\"\",AP277/$C$277)","v":""},null,{"$f":"IF($C$277=\"\",\"\",AR277/$C$277)","v":""},null,{"$f":"IF($C$277=\"\",\"\",AT277/$C$277)","v":""},null,{"$f":"IF($C$277=\"\",\"\",AV277/$C$277)","v":""},null,{"$f":"IF($C$277=\"\",\"\",AX277/$C$277)","v":""},null,{"$f":"IF($C$277=\"\",\"\",AZ277/$C$277)","v":""},null,{"$f":"IF($C$277=\"\",\"\",BB277/$C$277)","v":""},null,0]
["    11.1.24","    Incorporate NCDOT Traffic Signal Design Plans",null,null,{"$f":"IF($C$278=\"\",\"\",F278/$C$278)","v":""},null,{"$f":"IF($C$278=\"\",\"\",H278/$C$278)","v":""},null,{"$f":"IF($C$278=\"\",\"\",J278/$C$278)","v":""},null,{"$f":"IF($C$278=\"\",\"\",L278/$C$278)","v":""},null,{"$f":"IF($C$278=\"\",\"\",N278/$C$278)","v":""},null,{"$f":"IF($C$278=\"\",\"\",P278/$C$278)","v":""},null,{"$f":"IF($C$278=\"\",\"\",R278/$C$278)","v":""},null,{"$f":"IF($C$278=\"\",\"\",T278/$C$278)","v":""},null,{"$f":"IF($C$278=\"\",\"\",V278/$C$278)","v":""},null,{"$f":"IF($C$278=\"\",\"\",X278/$C$278)","v":""},null,{"$f":"IF($C$278=\"\",\"\",Z278/$C$278)","v":""},null,{"$f":"IF($C$278=\"\",\"\",AB278/$C$278)","v":""},null,{"$f":"IF($C$278=\"\",\"\",AD278/$C$278)","v":""},null,{"$f":"IF($C$278=\"\",\"\",AF278/$C$278)","v":""},null,{"$f":"IF($C$278=\"\",\"\",AH278/$C$278)","v":""},null,{"$f":"IF($C$278=\"\",\"\",AJ278/$C$278)","v":""},null,{"$f":"IF($C$278=\"\",\"\",AL278/$C$278)","v":""},null,{"$f":"IF($C$278=\"\",\"\",AN278/$C$278)","v":""},null,{"$f":"IF($C$278=\"\",\"\",AP278/$C$278)","v":""},null,{"$f":"IF($C$278=\"\",\"\",AR278/$C$278)","v":""},null,{"$f":"IF($C$278=\"\",\"\",AT278/$C$278)","v":""},null,{"$f":"IF($C$278=\"\",\"\",AV278/$C$278)","v":""},null,{"$f":"IF($C$278=\"\",\"\",AX278/$C$278)","v":""},null,{"$f":"IF($C$278=\"\",\"\",AZ278/$C$278)","v":""},null,{"$f":"IF($C$278=\"\",\"\",BB278/$C$278)","v":""},null,0]
["    11.1.25","    City Traffic Signal Plans"]
["        11.1.25.1","        Intersection Base Mapping",null,null,{"$f":"IF($C$280=\"\",\"\",F280/$C$280)","v":""},null,{"$f":"IF($C$280=\"\",\"\",H280/$C$280)","v":""},null,{"$f":"IF($C$280=\"\",\"\",J280/$C$280)","v":""},null,{"$f":"IF($C$280=\"\",\"\",L280/$C$280)","v":""},null,{"$f":"IF($C$280=\"\",\"\",N280/$C$280)","v":""},null,{"$f":"IF($C$280=\"\",\"\",P280/$C$280)","v":""},null,{"$f":"IF($C$280=\"\",\"\",R280/$C$280)","v":""},null,{"$f":"IF($C$280=\"\",\"\",T280/$C$280)","v":""},null,{"$f":"IF($C$280=\"\",\"\",V280/$C$280)","v":""},null,{"$f":"IF($C$280=\"\",\"\",X280/$C$280)","v":""},null,{"$f":"IF($C$280=\"\",\"\",Z280/$C$280)","v":""},null,{"$f":"IF($C$280=\"\",\"\",AB280/$C$280)","v":""},null,{"$f":"IF($C$280=\"\",\"\",AD280/$C$280)","v":""},null,{"$f":"IF($C$280=\"\",\"\",AF280/$C$280)","v":""},null,{"$f":"IF($C$280=\"\",\"\",AH280/$C$280)","v":""},null,{"$f":"IF($C$280=\"\",\"\",AJ280/$C$280)","v":""},null,{"$f":"IF($C$280=\"\",\"\",AL280/$C$280)","v":""},null,{"$f":"IF($C$280=\"\",\"\",AN280/$C$280)","v":""},null,{"$f":"IF($C$280=\"\",\"\",AP280/$C$280)","v":""},null,{"$f":"IF($C$280=\"\",\"\",AR280/$C$280)","v":""},null,{"$f":"IF($C$280=\"\",\"\",AT280/$C$280)","v":""},null,{"$f":"IF($C$280=\"\",\"\",AV280/$C$280)","v":""},null,{"$f":"IF($C$280=\"\",\"\",AX280/$C$280)","v":""},null,{"$f":"IF($C$280=\"\",\"\",AZ280/$C$280)","v":""},null,{"$f":"IF($C$280=\"\",\"\",BB280/$C$280)","v":""},null,{"$f":"SUM(BB280,AZ280,AX280,AV280,AT280,AR280,AP280,AN280,AL280,AJ280,AH280,AF280,AD280,AB280,Z280,X280,V280,T280,R280,P280,N280,L280,J280,H280,F280)","v":0}]
["        11.1.25.2","        Plans",null,null,{"$f":"IF($C$281=\"\",\"\",F281/$C$281)","v":""},null,{"$f":"IF($C$281=\"\",\"\",H281/$C$281)","v":""},null,{"$f":"IF($C$281=\"\",\"\",J281/$C$281)","v":""},null,{"$f":"IF($C$281=\"\",\"\",L281/$C$281)","v":""},null,{"$f":"IF($C$281=\"\",\"\",N281/$C$281)","v":""},null,{"$f":"IF($C$281=\"\",\"\",P281/$C$281)","v":""},null,{"$f":"IF($C$281=\"\",\"\",R281/$C$281)","v":""},null,{"$f":"IF($C$281=\"\",\"\",T281/$C$281)","v":""},null,{"$f":"IF($C$281=\"\",\"\",V281/$C$281)","v":""},null,{"$f":"IF($C$281=\"\",\"\",X281/$C$281)","v":""},null,{"$f":"IF($C$281=\"\",\"\",Z281/$C$281)","v":""},null,{"$f":"IF($C$281=\"\",\"\",AB281/$C$281)","v":""},null,{"$f":"IF($C$281=\"\",\"\",AD281/$C$281)","v":""},null,{"$f":"IF($C$281=\"\",\"\",AF281/$C$281)","v":""},null,{"$f":"IF($C$281=\"\",\"\",AH281/$C$281)","v":""},null,{"$f":"IF($C$281=\"\",\"\",AJ281/$C$281)","v":""},null,{"$f":"IF($C$281=\"\",\"\",AL281/$C$281)","v":""},null,{"$f":"IF($C$281=\"\",\"\",AN281/$C$281)","v":""},null,{"$f":"IF($C$281=\"\",\"\",AP281/$C$281)","v":""},null,{"$f":"IF($C$281=\"\",\"\",AR281/$C$281)","v":""},null,{"$f":"IF($C$281=\"\",\"\",AT281/$C$281)","v":""},null,{"$f":"IF($C$281=\"\",\"\",AV281/$C$281)","v":""},null,{"$f":"IF($C$281=\"\",\"\",AX281/$C$281)","v":""},null,{"$f":"IF($C$281=\"\",\"\",AZ281/$C$281)","v":""},null,{"$f":"IF($C$281=\"\",\"\",BB281/$C$281)","v":""},null,0]
["        11.1.25.3","        Local Controller Timings",null,null,{"$f":"IF($C$282=\"\",\"\",F282/$C$282)","v":""},null,{"$f":"IF($C$282=\"\",\"\",H282/$C$282)","v":""},null,{"$f":"IF($C$282=\"\",\"\",J282/$C$282)","v":""},null,{"$f":"IF($C$282=\"\",\"\",L282/$C$282)","v":""},null,{"$f":"IF($C$282=\"\",\"\",N282/$C$282)","v":""},null,{"$f":"IF($C$282=\"\",\"\",P282/$C$282)","v":""},null,{"$f":"IF($C$282=\"\",\"\",R282/$C$282)","v":""},null,{"$f":"IF($C$282=\"\",\"\",T282/$C$282)","v":""},null,{"$f":"IF($C$282=\"\",\"\",V282/$C$282)","v":""},null,{"$f":"IF($C$282=\"\",\"\",X282/$C$282)","v":""},null,{"$f":"IF($C$282=\"\",\"\",Z282/$C$282)","v":""},null,{"$f":"IF($C$282=\"\",\"\",AB282/$C$282)","v":""},null,{"$f":"IF($C$282=\"\",\"\",AD282/$C$282)","v":""},null,{"$f":"IF($C$282=\"\",\"\",AF282/$C$282)","v":""},null,{"$f":"IF($C$282=\"\",\"\",AH282/$C$282)","v":""},null,{"$f":"IF($C$282=\"\",\"\",AJ282/$C$282)","v":""},null,{"$f":"IF($C$282=\"\",\"\",AL282/$C$282)","v":""},null,{"$f":"IF($C$282=\"\",\"\",AN282/$C$282)","v":""},null,{"$f":"IF($C$282=\"\",\"\",AP282/$C$282)","v":""},null,{"$f":"IF($C$282=\"\",\"\",AR282/$C$282)","v":""},null,{"$f":"IF($C$282=\"\",\"\",AT282/$C$282)","v":""},null,{"$f":"IF($C$282=\"\",\"\",AV282/$C$282)","v":""},null,{"$f":"IF($C$282=\"\",\"\",AX282/$C$282)","v":""},null,{"$f":"IF($C$282=\"\",\"\",AZ282/$C$282)","v":""},null,{"$f":"IF($C$282=\"\",\"\",BB282/$C$282)","v":""},null,0]
["        11.1.25.4","        Preemption (Fire Station)",null,null,{"$f":"IF($C$283=\"\",\"\",F283/$C$283)","v":""},null,{"$f":"IF($C$283=\"\",\"\",H283/$C$283)","v":""},null,{"$f":"IF($C$283=\"\",\"\",J283/$C$283)","v":""},null,{"$f":"IF($C$283=\"\",\"\",L283/$C$283)","v":""},null,{"$f":"IF($C$283=\"\",\"\",N283/$C$283)","v":""},null,{"$f":"IF($C$283=\"\",\"\",P283/$C$283)","v":""},null,{"$f":"IF($C$283=\"\",\"\",R283/$C$283)","v":""},null,{"$f":"IF($C$283=\"\",\"\",T283/$C$283)","v":""},null,{"$f":"IF($C$283=\"\",\"\",V283/$C$283)","v":""},null,{"$f":"IF($C$283=\"\",\"\",X283/$C$283)","v":""},null,{"$f":"IF($C$283=\"\",\"\",Z283/$C$283)","v":""},null,{"$f":"IF($C$283=\"\",\"\",AB283/$C$283)","v":""},null,{"$f":"IF($C$283=\"\",\"\",AD283/$C$283)","v":""},null,{"$f":"IF($C$283=\"\",\"\",AF283/$C$283)","v":""},null,{"$f":"IF($C$283=\"\",\"\",AH283/$C$283)","v":""},null,{"$f":"IF($C$283=\"\",\"\",AJ283/$C$283)","v":""},null,{"$f":"IF($C$283=\"\",\"\",AL283/$C$283)","v":""},null,{"$f":"IF($C$283=\"\",\"\",AN283/$C$283)","v":""},null,{"$f":"IF($C$283=\"\",\"\",AP283/$C$283)","v":""},null,{"$f":"IF($C$283=\"\",\"\",AR283/$C$283)","v":""},null,{"$f":"IF($C$283=\"\",\"\",AT283/$C$283)","v":""},null,{"$f":"IF($C$283=\"\",\"\",AV283/$C$283)","v":""},null,{"$f":"IF($C$283=\"\",\"\",AX283/$C$283)","v":""},null,{"$f":"IF($C$283=\"\",\"\",AZ283/$C$283)","v":""},null,{"$f":"IF($C$283=\"\",\"\",BB283/$C$283)","v":""},null,0]
["        11.1.25.5","        Signal Quantity Estimates",null,null,{"$f":"IF($C$284=\"\",\"\",F284/$C$284)","v":""},null,{"$f":"IF($C$284=\"\",\"\",H284/$C$284)","v":""},null,{"$f":"IF($C$284=\"\",\"\",J284/$C$284)","v":""},null,{"$f":"IF($C$284=\"\",\"\",L284/$C$284)","v":""},null,{"$f":"IF($C$284=\"\",\"\",N284/$C$284)","v":""},null,{"$f":"IF($C$284=\"\",\"\",P284/$C$284)","v":""},null,{"$f":"IF($C$284=\"\",\"\",R284/$C$284)","v":""},null,{"$f":"IF($C$284=\"\",\"\",T284/$C$284)","v":""},null,{"$f":"IF($C$284=\"\",\"\",V284/$C$284)","v":""},null,{"$f":"IF($C$284=\"\",\"\",X284/$C$284)","v":""},null,{"$f":"IF($C$284=\"\",\"\",Z284/$C$284)","v":""},null,{"$f":"IF($C$284=\"\",\"\",AB284/$C$284)","v":""},null,{"$f":"IF($C$284=\"\",\"\",AD284/$C$284)","v":""},null,{"$f":"IF($C$284=\"\",\"\",AF284/$C$284)","v":""},null,{"$f":"IF($C$284=\"\",\"\",AH284/$C$284)","v":""},null,{"$f":"IF($C$284=\"\",\"\",AJ284/$C$284)","v":""},null,{"$f":"IF($C$284=\"\",\"\",AL284/$C$284)","v":""},null,{"$f":"IF($C$284=\"\",\"\",AN284/$C$284)","v":""},null,{"$f":"IF($C$284=\"\",\"\",AP284/$C$284)","v":""},null,{"$f":"IF($C$284=\"\",\"\",AR284/$C$284)","v":""},null,{"$f":"IF($C$284=\"\",\"\",AT284/$C$284)","v":""},null,{"$f":"IF($C$284=\"\",\"\",AV284/$C$284)","v":""},null,{"$f":"IF($C$284=\"\",\"\",AX284/$C$284)","v":""},null,{"$f":"IF($C$284=\"\",\"\",AZ284/$C$284)","v":""},null,{"$f":"IF($C$284=\"\",\"\",BB284/$C$284)","v":""},null,0]
["        11.1.25.6","        Electrical & Programming Details - No \n        Preemption",null,null,{"$f":"IF($C$285=\"\",\"\",F285/$C$285)","v":""},null,{"$f":"IF($C$285=\"\",\"\",H285/$C$285)","v":""},null,{"$f":"IF($C$285=\"\",\"\",J285/$C$285)","v":""},null,{"$f":"IF($C$285=\"\",\"\",L285/$C$285)","v":""},null,{"$f":"IF($C$285=\"\",\"\",N285/$C$285)","v":""},null,{"$f":"IF($C$285=\"\",\"\",P285/$C$285)","v":""},null,{"$f":"IF($C$285=\"\",\"\",R285/$C$285)","v":""},null,{"$f":"IF($C$285=\"\",\"\",T285/$C$285)","v":""},null,{"$f":"IF($C$285=\"\",\"\",V285/$C$285)","v":""},null,{"$f":"IF($C$285=\"\",\"\",X285/$C$285)","v":""},null,{"$f":"IF($C$285=\"\",\"\",Z285/$C$285)","v":""},null,{"$f":"IF($C$285=\"\",\"\",AB285/$C$285)","v":""},null,{"$f":"IF($C$285=\"\",\"\",AD285/$C$285)","v":""},null,{"$f":"IF($C$285=\"\",\"\",AF285/$C$285)","v":""},null,{"$f":"IF($C$285=\"\",\"\",AH285/$C$285)","v":""},null,{"$f":"IF($C$285=\"\",\"\",AJ285/$C$285)","v":""},null,{"$f":"IF($C$285=\"\",\"\",AL285/$C$285)","v":""},null,{"$f":"IF($C$285=\"\",\"\",AN285/$C$285)","v":""},null,{"$f":"IF($C$285=\"\",\"\",AP285/$C$285)","v":""},null,{"$f":"IF($C$285=\"\",\"\",AR285/$C$285)","v":""},null,{"$f":"IF($C$285=\"\",\"\",AT285/$C$285)","v":""},null,{"$f":"IF($C$285=\"\",\"\",AV285/$C$285)","v":""},null,{"$f":"IF($C$285=\"\",\"\",AX285/$C$285)","v":""},null,{"$f":"IF($C$285=\"\",\"\",AZ285/$C$285)","v":""},null,{"$f":"IF($C$285=\"\",\"\",BB285/$C$285)","v":""},null,0]
["        11.1.25.7","        Electrical & Programming Details - With \n        Preemption",null,null,{"$f":"IF($C$286=\"\",\"\",F286/$C$286)","v":""},null,{"$f":"IF($C$286=\"\",\"\",H286/$C$286)","v":""},null,{"$f":"IF($C$286=\"\",\"\",J286/$C$286)","v":""},null,{"$f":"IF($C$286=\"\",\"\",L286/$C$286)","v":""},null,{"$f":"IF($C$286=\"\",\"\",N286/$C$286)","v":""},null,{"$f":"IF($C$286=\"\",\"\",P286/$C$286)","v":""},null,{"$f":"IF($C$286=\"\",\"\",R286/$C$286)","v":""},null,{"$f":"IF($C$286=\"\",\"\",T286/$C$286)","v":""},null,{"$f":"IF($C$286=\"\",\"\",V286/$C$286)","v":""},null,{"$f":"IF($C$286=\"\",\"\",X286/$C$286)","v":""},null,{"$f":"IF($C$286=\"\",\"\",Z286/$C$286)","v":""},null,{"$f":"IF($C$286=\"\",\"\",AB286/$C$286)","v":""},null,{"$f":"IF($C$286=\"\",\"\",AD286/$C$286)","v":""},null,{"$f":"IF($C$286=\"\",\"\",AF286/$C$286)","v":""},null,{"$f":"IF($C$286=\"\",\"\",AH286/$C$286)","v":""},null,{"$f":"IF($C$286=\"\",\"\",AJ286/$C$286)","v":""},null,{"$f":"IF($C$286=\"\",\"\",AL286/$C$286)","v":""},null,{"$f":"IF($C$286=\"\",\"\",AN286/$C$286)","v":""},null,{"$f":"IF($C$286=\"\",\"\",AP286/$C$286)","v":""},null,{"$f":"IF($C$286=\"\",\"\",AR286/$C$286)","v":""},null,{"$f":"IF($C$286=\"\",\"\",AT286/$C$286)","v":""},null,{"$f":"IF($C$286=\"\",\"\",AV286/$C$286)","v":""},null,{"$f":"IF($C$286=\"\",\"\",AX286/$C$286)","v":""},null,{"$f":"IF($C$286=\"\",\"\",AZ286/$C$286)","v":""},null,{"$f":"IF($C$286=\"\",\"\",BB286/$C$286)","v":""},null,0]
["        11.1.25.8",null,null,null,{"$f":"IF($C$287=\"\",\"\",F287/$C$287)","v":""},null,{"$f":"IF($C$287=\"\",\"\",H287/$C$287)","v":""},null,{"$f":"IF($C$287=\"\",\"\",J287/$C$287)","v":""},null,{"$f":"IF($C$287=\"\",\"\",L287/$C$287)","v":""},null,{"$f":"IF($C$287=\"\",\"\",N287/$C$287)","v":""},null,{"$f":"IF($C$287=\"\",\"\",P287/$C$287)","v":""},null,{"$f":"IF($C$287=\"\",\"\",R287/$C$287)","v":""},null,{"$f":"IF($C$287=\"\",\"\",T287/$C$287)","v":""},null,{"$f":"IF($C$287=\"\",\"\",V287/$C$287)","v":""},null,{"$f":"IF($C$287=\"\",\"\",X287/$C$287)","v":""},null,{"$f":"IF($C$287=\"\",\"\",Z287/$C$287)","v":""},null,{"$f":"IF($C$287=\"\",\"\",AB287/$C$287)","v":""},null,{"$f":"IF($C$287=\"\",\"\",AD287/$C$287)","v":""},null,{"$f":"IF($C$287=\"\",\"\",AF287/$C$287)","v":""},null,{"$f":"IF($C$287=\"\",\"\",AH287/$C$287)","v":""},null,{"$f":"IF($C$287=\"\",\"\",AJ287/$C$287)","v":""},null,{"$f":"IF($C$287=\"\",\"\",AL287/$C$287)","v":""},null,{"$f":"IF($C$287=\"\",\"\",AN287/$C$287)","v":""},null,{"$f":"IF($C$287=\"\",\"\",AP287/$C$287)","v":""},null,{"$f":"IF($C$287=\"\",\"\",AR287/$C$287)","v":""},null,{"$f":"IF($C$287=\"\",\"\",AT287/$C$287)","v":""},null,{"$f":"IF($C$287=\"\",\"\",AV287/$C$287)","v":""},null,{"$f":"IF($C$287=\"\",\"\",AX287/$C$287)","v":""},null,{"$f":"IF($C$287=\"\",\"\",AZ287/$C$287)","v":""},null,{"$f":"IF($C$287=\"\",\"\",BB287/$C$287)","v":""},null,0]
["        11.1.25.9",null,null,null,{"$f":"IF($C$288=\"\",\"\",F288/$C$288)","v":""},null,{"$f":"IF($C$288=\"\",\"\",H288/$C$288)","v":""},null,{"$f":"IF($C$288=\"\",\"\",J288/$C$288)","v":""},null,{"$f":"IF($C$288=\"\",\"\",L288/$C$288)","v":""},null,{"$f":"IF($C$288=\"\",\"\",N288/$C$288)","v":""},null,{"$f":"IF($C$288=\"\",\"\",P288/$C$288)","v":""},null,{"$f":"IF($C$288=\"\",\"\",R288/$C$288)","v":""},null,{"$f":"IF($C$288=\"\",\"\",T288/$C$288)","v":""},null,{"$f":"IF($C$288=\"\",\"\",V288/$C$288)","v":""},null,{"$f":"IF($C$288=\"\",\"\",X288/$C$288)","v":""},null,{"$f":"IF($C$288=\"\",\"\",Z288/$C$288)","v":""},null,{"$f":"IF($C$288=\"\",\"\",AB288/$C$288)","v":""},null,{"$f":"IF($C$288=\"\",\"\",AD288/$C$288)","v":""},null,{"$f":"IF($C$288=\"\",\"\",AF288/$C$288)","v":""},null,{"$f":"IF($C$288=\"\",\"\",AH288/$C$288)","v":""},null,{"$f":"IF($C$288=\"\",\"\",AJ288/$C$288)","v":""},null,{"$f":"IF($C$288=\"\",\"\",AL288/$C$288)","v":""},null,{"$f":"IF($C$288=\"\",\"\",AN288/$C$288)","v":""},null,{"$f":"IF($C$288=\"\",\"\",AP288/$C$288)","v":""},null,{"$f":"IF($C$288=\"\",\"\",AR288/$C$288)","v":""},null,{"$f":"IF($C$288=\"\",\"\",AT288/$C$288)","v":""},null,{"$f":"IF($C$288=\"\",\"\",AV288/$C$288)","v":""},null,{"$f":"IF($C$288=\"\",\"\",AX288/$C$288)","v":""},null,{"$f":"IF($C$288=\"\",\"\",AZ288/$C$288)","v":""},null,{"$f":"IF($C$288=\"\",\"\",BB288/$C$288)","v":""},null,0]
["        11.1.25.10",null,null,null,{"$f":"IF($C$289=\"\",\"\",F289/$C$289)","v":""},null,{"$f":"IF($C$289=\"\",\"\",H289/$C$289)","v":""},null,{"$f":"IF($C$289=\"\",\"\",J289/$C$289)","v":""},null,{"$f":"IF($C$289=\"\",\"\",L289/$C$289)","v":""},null,{"$f":"IF($C$289=\"\",\"\",N289/$C$289)","v":""},null,{"$f":"IF($C$289=\"\",\"\",P289/$C$289)","v":""},null,{"$f":"IF($C$289=\"\",\"\",R289/$C$289)","v":""},null,{"$f":"IF($C$289=\"\",\"\",T289/$C$289)","v":""},null,{"$f":"IF($C$289=\"\",\"\",V289/$C$289)","v":""},null,{"$f":"IF($C$289=\"\",\"\",X289/$C$289)","v":""},null,{"$f":"IF($C$289=\"\",\"\",Z289/$C$289)","v":""},null,{"$f":"IF($C$289=\"\",\"\",AB289/$C$289)","v":""},null,{"$f":"IF($C$289=\"\",\"\",AD289/$C$289)","v":""},null,{"$f":"IF($C$289=\"\",\"\",AF289/$C$289)","v":""},null,{"$f":"IF($C$289=\"\",\"\",AH289/$C$289)","v":""},null,{"$f":"IF($C$289=\"\",\"\",AJ289/$C$289)","v":""},null,{"$f":"IF($C$289=\"\",\"\",AL289/$C$289)","v":""},null,{"$f":"IF($C$289=\"\",\"\",AN289/$C$289)","v":""},null,{"$f":"IF($C$289=\"\",\"\",AP289/$C$289)","v":""},null,{"$f":"IF($C$289=\"\",\"\",AR289/$C$289)","v":""},null,{"$f":"IF($C$289=\"\",\"\",AT289/$C$289)","v":""},null,{"$f":"IF($C$289=\"\",\"\",AV289/$C$289)","v":""},null,{"$f":"IF($C$289=\"\",\"\",AX289/$C$289)","v":""},null,{"$f":"IF($C$289=\"\",\"\",AZ289/$C$289)","v":""},null,{"$f":"IF($C$289=\"\",\"\",BB289/$C$289)","v":""},null,0]
["    11.1.26","    Preliminary PS&E On-Site Work Sessions",null,null,{"$f":"IF($C$290=\"\",\"\",F290/$C$290)","v":""},null,{"$f":"IF($C$290=\"\",\"\",H290/$C$290)","v":""},null,{"$f":"IF($C$290=\"\",\"\",J290/$C$290)","v":""},null,{"$f":"IF($C$290=\"\",\"\",L290/$C$290)","v":""},null,{"$f":"IF($C$290=\"\",\"\",N290/$C$290)","v":""},null,{"$f":"IF($C$290=\"\",\"\",P290/$C$290)","v":""},null,{"$f":"IF($C$290=\"\",\"\",R290/$C$290)","v":""},null,{"$f":"IF($C$290=\"\",\"\",T290/$C$290)","v":""},null,{"$f":"IF($C$290=\"\",\"\",V290/$C$290)","v":""},null,{"$f":"IF($C$290=\"\",\"\",X290/$C$290)","v":""},null,{"$f":"IF($C$290=\"\",\"\",Z290/$C$290)","v":""},null,{"$f":"IF($C$290=\"\",\"\",AB290/$C$290)","v":""},null,{"$f":"IF($C$290=\"\",\"\",AD290/$C$290)","v":""},null,{"$f":"IF($C$290=\"\",\"\",AF290/$C$290)","v":""},null,{"$f":"IF($C$290=\"\",\"\",AH290/$C$290)","v":""},null,{"$f":"IF($C$290=\"\",\"\",AJ290/$C$290)","v":""},null,{"$f":"IF($C$290=\"\",\"\",AL290/$C$290)","v":""},null,{"$f":"IF($C$290=\"\",\"\",AN290/$C$290)","v":""},null,{"$f":"IF($C$290=\"\",\"\",AP290/$C$290)","v":""},null,{"$f":"IF($C$290=\"\",\"\",AR290/$C$290)","v":""},null,{"$f":"IF($C$290=\"\",\"\",AT290/$C$290)","v":""},null,{"$f":"IF($C$290=\"\",\"\",AV290/$C$290)","v":""},null,{"$f":"IF($C$290=\"\",\"\",AX290/$C$290)","v":""},null,{"$f":"IF($C$290=\"\",\"\",AZ290/$C$290)","v":""},null,{"$f":"IF($C$290=\"\",\"\",BB290/$C$290)","v":""},null,0]
["    11.1.27",null,null,null,{"$f":"IF($C$291=\"\",\"\",F291/$C$291)","v":""},null,{"$f":"IF($C$291=\"\",\"\",H291/$C$291)","v":""},null,{"$f":"IF($C$291=\"\",\"\",J291/$C$291)","v":""},null,{"$f":"IF($C$291=\"\",\"\",L291/$C$291)","v":""},null,{"$f":"IF($C$291=\"\",\"\",N291/$C$291)","v":""},null,{"$f":"IF($C$291=\"\",\"\",P291/$C$291)","v":""},null,{"$f":"IF($C$291=\"\",\"\",R291/$C$291)","v":""},null,{"$f":"IF($C$291=\"\",\"\",T291/$C$291)","v":""},null,{"$f":"IF($C$291=\"\",\"\",V291/$C$291)","v":""},null,{"$f":"IF($C$291=\"\",\"\",X291/$C$291)","v":""},null,{"$f":"IF($C$291=\"\",\"\",Z291/$C$291)","v":""},null,{"$f":"IF($C$291=\"\",\"\",AB291/$C$291)","v":""},null,{"$f":"IF($C$291=\"\",\"\",AD291/$C$291)","v":""},null,{"$f":"IF($C$291=\"\",\"\",AF291/$C$291)","v":""},null,{"$f":"IF($C$291=\"\",\"\",AH291/$C$291)","v":""},null,{"$f":"IF($C$291=\"\",\"\",AJ291/$C$291)","v":""},null,{"$f":"IF($C$291=\"\",\"\",AL291/$C$291)","v":""},null,{"$f":"IF($C$291=\"\",\"\",AN291/$C$291)","v":""},null,{"$f":"IF($C$291=\"\",\"\",AP291/$C$291)","v":""},null,{"$f":"IF($C$291=\"\",\"\",AR291/$C$291)","v":""},null,{"$f":"IF($C$291=\"\",\"\",AT291/$C$291)","v":""},null,{"$f":"IF($C$291=\"\",\"\",AV291/$C$291)","v":""},null,{"$f":"IF($C$291=\"\",\"\",AX291/$C$291)","v":""},null,{"$f":"IF($C$291=\"\",\"\",AZ291/$C$291)","v":""},null,{"$f":"IF($C$291=\"\",\"\",BB291/$C$291)","v":""},null,0]
["    11.1.28",null,null,null,{"$f":"IF($C$292=\"\",\"\",F292/$C$292)","v":""},null,{"$f":"IF($C$292=\"\",\"\",H292/$C$292)","v":""},null,{"$f":"IF($C$292=\"\",\"\",J292/$C$292)","v":""},null,{"$f":"IF($C$292=\"\",\"\",L292/$C$292)","v":""},null,{"$f":"IF($C$292=\"\",\"\",N292/$C$292)","v":""},null,{"$f":"IF($C$292=\"\",\"\",P292/$C$292)","v":""},null,{"$f":"IF($C$292=\"\",\"\",R292/$C$292)","v":""},null,{"$f":"IF($C$292=\"\",\"\",T292/$C$292)","v":""},null,{"$f":"IF($C$292=\"\",\"\",V292/$C$292)","v":""},null,{"$f":"IF($C$292=\"\",\"\",X292/$C$292)","v":""},null,{"$f":"IF($C$292=\"\",\"\",Z292/$C$292)","v":""},null,{"$f":"IF($C$292=\"\",\"\",AB292/$C$292)","v":""},null,{"$f":"IF($C$292=\"\",\"\",AD292/$C$292)","v":""},null,{"$f":"IF($C$292=\"\",\"\",AF292/$C$292)","v":""},null,{"$f":"IF($C$292=\"\",\"\",AH292/$C$292)","v":""},null,{"$f":"IF($C$292=\"\",\"\",AJ292/$C$292)","v":""},null,{"$f":"IF($C$292=\"\",\"\",AL292/$C$292)","v":""},null,{"$f":"IF($C$292=\"\",\"\",AN292/$C$292)","v":""},null,{"$f":"IF($C$292=\"\",\"\",AP292/$C$292)","v":""},null,{"$f":"IF($C$292=\"\",\"\",AR292/$C$292)","v":""},null,{"$f":"IF($C$292=\"\",\"\",AT292/$C$292)","v":""},null,{"$f":"IF($C$292=\"\",\"\",AV292/$C$292)","v":""},null,{"$f":"IF($C$292=\"\",\"\",AX292/$C$292)","v":""},null,{"$f":"IF($C$292=\"\",\"\",AZ292/$C$292)","v":""},null,{"$f":"IF($C$292=\"\",\"\",BB292/$C$292)","v":""},null,0]
["    11.1.29",null,null,null,{"$f":"IF($C$293=\"\",\"\",F293/$C$293)","v":""},null,{"$f":"IF($C$293=\"\",\"\",H293/$C$293)","v":""},null,{"$f":"IF($C$293=\"\",\"\",J293/$C$293)","v":""},null,{"$f":"IF($C$293=\"\",\"\",L293/$C$293)","v":""},null,{"$f":"IF($C$293=\"\",\"\",N293/$C$293)","v":""},null,{"$f":"IF($C$293=\"\",\"\",P293/$C$293)","v":""},null,{"$f":"IF($C$293=\"\",\"\",R293/$C$293)","v":""},null,{"$f":"IF($C$293=\"\",\"\",T293/$C$293)","v":""},null,{"$f":"IF($C$293=\"\",\"\",V293/$C$293)","v":""},null,{"$f":"IF($C$293=\"\",\"\",X293/$C$293)","v":""},null,{"$f":"IF($C$293=\"\",\"\",Z293/$C$293)","v":""},null,{"$f":"IF($C$293=\"\",\"\",AB293/$C$293)","v":""},null,{"$f":"IF($C$293=\"\",\"\",AD293/$C$293)","v":""},null,{"$f":"IF($C$293=\"\",\"\",AF293/$C$293)","v":""},null,{"$f":"IF($C$293=\"\",\"\",AH293/$C$293)","v":""},null,{"$f":"IF($C$293=\"\",\"\",AJ293/$C$293)","v":""},null,{"$f":"IF($C$293=\"\",\"\",AL293/$C$293)","v":""},null,{"$f":"IF($C$293=\"\",\"\",AN293/$C$293)","v":""},null,{"$f":"IF($C$293=\"\",\"\",AP293/$C$293)","v":""},null,{"$f":"IF($C$293=\"\",\"\",AR293/$C$293)","v":""},null,{"$f":"IF($C$293=\"\",\"\",AT293/$C$293)","v":""},null,{"$f":"IF($C$293=\"\",\"\",AV293/$C$293)","v":""},null,{"$f":"IF($C$293=\"\",\"\",AX293/$C$293)","v":""},null,{"$f":"IF($C$293=\"\",\"\",AZ293/$C$293)","v":""},null,{"$f":"IF($C$293=\"\",\"\",BB293/$C$293)","v":""},null,0]
[11.2,"Draft Final Plans"]
["    11.2.1","    Revise and Submit Draft Final Plans",null,null,{"$f":"IF($C$295=\"\",\"\",F295/$C$295)","v":""},null,{"$f":"IF($C$295=\"\",\"\",H295/$C$295)","v":""},null,{"$f":"IF($C$295=\"\",\"\",J295/$C$295)","v":""},null,{"$f":"IF($C$295=\"\",\"\",L295/$C$295)","v":""},null,{"$f":"IF($C$295=\"\",\"\",N295/$C$295)","v":""},null,{"$f":"IF($C$295=\"\",\"\",P295/$C$295)","v":""},null,{"$f":"IF($C$295=\"\",\"\",R295/$C$295)","v":""},null,{"$f":"IF($C$295=\"\",\"\",T295/$C$295)","v":""},null,{"$f":"IF($C$295=\"\",\"\",V295/$C$295)","v":""},null,{"$f":"IF($C$295=\"\",\"\",X295/$C$295)","v":""},null,{"$f":"IF($C$295=\"\",\"\",Z295/$C$295)","v":""},null,{"$f":"IF($C$295=\"\",\"\",AB295/$C$295)","v":""},null,{"$f":"IF($C$295=\"\",\"\",AD295/$C$295)","v":""},null,{"$f":"IF($C$295=\"\",\"\",AF295/$C$295)","v":""},null,{"$f":"IF($C$295=\"\",\"\",AH295/$C$295)","v":""},null,{"$f":"IF($C$295=\"\",\"\",AJ295/$C$295)","v":""},null,{"$f":"IF($C$295=\"\",\"\",AL295/$C$295)","v":""},null,{"$f":"IF($C$295=\"\",\"\",AN295/$C$295)","v":""},null,{"$f":"IF($C$295=\"\",\"\",AP295/$C$295)","v":""},null,{"$f":"IF($C$295=\"\",\"\",AR295/$C$295)","v":""},null,{"$f":"IF($C$295=\"\",\"\",AT295/$C$295)","v":""},null,{"$f":"IF($C$295=\"\",\"\",AV295/$C$295)","v":""},null,{"$f":"IF($C$295=\"\",\"\",AX295/$C$295)","v":""},null,{"$f":"IF($C$295=\"\",\"\",AZ295/$C$295)","v":""},null,{"$f":"IF($C$295=\"\",\"\",BB295/$C$295)","v":""},null,{"$f":"SUM(BB295,AZ295,AX295,AV295,AT295,AR295,AP295,AN295,AL295,AJ295,AH295,AF295,AD295,AB295,Z295,X295,V295,T295,R295,P295,N295,L295,J295,H295,F295)","v":0}]
["    11.2.2",null,null,null,{"$f":"IF($C$296=\"\",\"\",F296/$C$296)","v":""},null,{"$f":"IF($C$296=\"\",\"\",H296/$C$296)","v":""},null,{"$f":"IF($C$296=\"\",\"\",J296/$C$296)","v":""},null,{"$f":"IF($C$296=\"\",\"\",L296/$C$296)","v":""},null,{"$f":"IF($C$296=\"\",\"\",N296/$C$296)","v":""},null,{"$f":"IF($C$296=\"\",\"\",P296/$C$296)","v":""},null,{"$f":"IF($C$296=\"\",\"\",R296/$C$296)","v":""},null,{"$f":"IF($C$296=\"\",\"\",T296/$C$296)","v":""},null,{"$f":"IF($C$296=\"\",\"\",V296/$C$296)","v":""},null,{"$f":"IF($C$296=\"\",\"\",X296/$C$296)","v":""},null,{"$f":"IF($C$296=\"\",\"\",Z296/$C$296)","v":""},null,{"$f":"IF($C$296=\"\",\"\",AB296/$C$296)","v":""},null,{"$f":"IF($C$296=\"\",\"\",AD296/$C$296)","v":""},null,{"$f":"IF($C$296=\"\",\"\",AF296/$C$296)","v":""},null,{"$f":"IF($C$296=\"\",\"\",AH296/$C$296)","v":""},null,{"$f":"IF($C$296=\"\",\"\",AJ296/$C$296)","v":""},null,{"$f":"IF($C$296=\"\",\"\",AL296/$C$296)","v":""},null,{"$f":"IF($C$296=\"\",\"\",AN296/$C$296)","v":""},null,{"$f":"IF($C$296=\"\",\"\",AP296/$C$296)","v":""},null,{"$f":"IF($C$296=\"\",\"\",AR296/$C$296)","v":""},null,{"$f":"IF($C$296=\"\",\"\",AT296/$C$296)","v":""},null,{"$f":"IF($C$296=\"\",\"\",AV296/$C$296)","v":""},null,{"$f":"IF($C$296=\"\",\"\",AX296/$C$296)","v":""},null,{"$f":"IF($C$296=\"\",\"\",AZ296/$C$296)","v":""},null,{"$f":"IF($C$296=\"\",\"\",BB296/$C$296)","v":""},null,0]
["    11.2.3",null,null,null,{"$f":"IF($C$297=\"\",\"\",F297/$C$297)","v":""},null,{"$f":"IF($C$297=\"\",\"\",H297/$C$297)","v":""},null,{"$f":"IF($C$297=\"\",\"\",J297/$C$297)","v":""},null,{"$f":"IF($C$297=\"\",\"\",L297/$C$297)","v":""},null,{"$f":"IF($C$297=\"\",\"\",N297/$C$297)","v":""},null,{"$f":"IF($C$297=\"\",\"\",P297/$C$297)","v":""},null,{"$f":"IF($C$297=\"\",\"\",R297/$C$297)","v":""},null,{"$f":"IF($C$297=\"\",\"\",T297/$C$297)","v":""},null,{"$f":"IF($C$297=\"\",\"\",V297/$C$297)","v":""},null,{"$f":"IF($C$297=\"\",\"\",X297/$C$297)","v":""},null,{"$f":"IF($C$297=\"\",\"\",Z297/$C$297)","v":""},null,{"$f":"IF($C$297=\"\",\"\",AB297/$C$297)","v":""},null,{"$f":"IF($C$297=\"\",\"\",AD297/$C$297)","v":""},null,{"$f":"IF($C$297=\"\",\"\",AF297/$C$297)","v":""},null,{"$f":"IF($C$297=\"\",\"\",AH297/$C$297)","v":""},null,{"$f":"IF($C$297=\"\",\"\",AJ297/$C$297)","v":""},null,{"$f":"IF($C$297=\"\",\"\",AL297/$C$297)","v":""},null,{"$f":"IF($C$297=\"\",\"\",AN297/$C$297)","v":""},null,{"$f":"IF($C$297=\"\",\"\",AP297/$C$297)","v":""},null,{"$f":"IF($C$297=\"\",\"\",AR297/$C$297)","v":""},null,{"$f":"IF($C$297=\"\",\"\",AT297/$C$297)","v":""},null,{"$f":"IF($C$297=\"\",\"\",AV297/$C$297)","v":""},null,{"$f":"IF($C$297=\"\",\"\",AX297/$C$297)","v":""},null,{"$f":"IF($C$297=\"\",\"\",AZ297/$C$297)","v":""},null,{"$f":"IF($C$297=\"\",\"\",BB297/$C$297)","v":""},null,0]
["    11.2.4",null,null,null,{"$f":"IF($C$298=\"\",\"\",F298/$C$298)","v":""},null,{"$f":"IF($C$298=\"\",\"\",H298/$C$298)","v":""},null,{"$f":"IF($C$298=\"\",\"\",J298/$C$298)","v":""},null,{"$f":"IF($C$298=\"\",\"\",L298/$C$298)","v":""},null,{"$f":"IF($C$298=\"\",\"\",N298/$C$298)","v":""},null,{"$f":"IF($C$298=\"\",\"\",P298/$C$298)","v":""},null,{"$f":"IF($C$298=\"\",\"\",R298/$C$298)","v":""},null,{"$f":"IF($C$298=\"\",\"\",T298/$C$298)","v":""},null,{"$f":"IF($C$298=\"\",\"\",V298/$C$298)","v":""},null,{"$f":"IF($C$298=\"\",\"\",X298/$C$298)","v":""},null,{"$f":"IF($C$298=\"\",\"\",Z298/$C$298)","v":""},null,{"$f":"IF($C$298=\"\",\"\",AB298/$C$298)","v":""},null,{"$f":"IF($C$298=\"\",\"\",AD298/$C$298)","v":""},null,{"$f":"IF($C$298=\"\",\"\",AF298/$C$298)","v":""},null,{"$f":"IF($C$298=\"\",\"\",AH298/$C$298)","v":""},null,{"$f":"IF($C$298=\"\",\"\",AJ298/$C$298)","v":""},null,{"$f":"IF($C$298=\"\",\"\",AL298/$C$298)","v":""},null,{"$f":"IF($C$298=\"\",\"\",AN298/$C$298)","v":""},null,{"$f":"IF($C$298=\"\",\"\",AP298/$C$298)","v":""},null,{"$f":"IF($C$298=\"\",\"\",AR298/$C$298)","v":""},null,{"$f":"IF($C$298=\"\",\"\",AT298/$C$298)","v":""},null,{"$f":"IF($C$298=\"\",\"\",AV298/$C$298)","v":""},null,{"$f":"IF($C$298=\"\",\"\",AX298/$C$298)","v":""},null,{"$f":"IF($C$298=\"\",\"\",AZ298/$C$298)","v":""},null,{"$f":"IF($C$298=\"\",\"\",BB298/$C$298)","v":""},null,0]
[11.3,"Final Plans"]
["    11.3.1","    Field Check Final Plans",null,null,{"$f":"IF($C$300=\"\",\"\",F300/$C$300)","v":""},null,{"$f":"IF($C$300=\"\",\"\",H300/$C$300)","v":""},null,{"$f":"IF($C$300=\"\",\"\",J300/$C$300)","v":""},null,{"$f":"IF($C$300=\"\",\"\",L300/$C$300)","v":""},null,{"$f":"IF($C$300=\"\",\"\",N300/$C$300)","v":""},null,{"$f":"IF($C$300=\"\",\"\",P300/$C$300)","v":""},null,{"$f":"IF($C$300=\"\",\"\",R300/$C$300)","v":""},null,{"$f":"IF($C$300=\"\",\"\",T300/$C$300)","v":""},null,{"$f":"IF($C$300=\"\",\"\",V300/$C$300)","v":""},null,{"$f":"IF($C$300=\"\",\"\",X300/$C$300)","v":""},null,{"$f":"IF($C$300=\"\",\"\",Z300/$C$300)","v":""},null,{"$f":"IF($C$300=\"\",\"\",AB300/$C$300)","v":""},null,{"$f":"IF($C$300=\"\",\"\",AD300/$C$300)","v":""},null,{"$f":"IF($C$300=\"\",\"\",AF300/$C$300)","v":""},null,{"$f":"IF($C$300=\"\",\"\",AH300/$C$300)","v":""},null,{"$f":"IF($C$300=\"\",\"\",AJ300/$C$300)","v":""},null,{"$f":"IF($C$300=\"\",\"\",AL300/$C$300)","v":""},null,{"$f":"IF($C$300=\"\",\"\",AN300/$C$300)","v":""},null,{"$f":"IF($C$300=\"\",\"\",AP300/$C$300)","v":""},null,{"$f":"IF($C$300=\"\",\"\",AR300/$C$300)","v":""},null,{"$f":"IF($C$300=\"\",\"\",AT300/$C$300)","v":""},null,{"$f":"IF($C$300=\"\",\"\",AV300/$C$300)","v":""},null,{"$f":"IF($C$300=\"\",\"\",AX300/$C$300)","v":""},null,{"$f":"IF($C$300=\"\",\"\",AZ300/$C$300)","v":""},null,{"$f":"IF($C$300=\"\",\"\",BB300/$C$300)","v":""},null,{"$f":"SUM(BB300,AZ300,AX300,AV300,AT300,AR300,AP300,AN300,AL300,AJ300,AH300,AF300,AD300,AB300,Z300,X300,V300,T300,R300,P300,N300,L300,J300,H300,F300)","v":0}]
["    11.3.2","    Perform Final Revisions and Submit Final Plans",null,null,{"$f":"IF($C$301=\"\",\"\",F301/$C$301)","v":""},null,{"$f":"IF($C$301=\"\",\"\",H301/$C$301)","v":""},null,{"$f":"IF($C$301=\"\",\"\",J301/$C$301)","v":""},null,{"$f":"IF($C$301=\"\",\"\",L301/$C$301)","v":""},null,{"$f":"IF($C$301=\"\",\"\",N301/$C$301)","v":""},null,{"$f":"IF($C$301=\"\",\"\",P301/$C$301)","v":""},null,{"$f":"IF($C$301=\"\",\"\",R301/$C$301)","v":""},null,{"$f":"IF($C$301=\"\",\"\",T301/$C$301)","v":""},null,{"$f":"IF($C$301=\"\",\"\",V301/$C$301)","v":""},null,{"$f":"IF($C$301=\"\",\"\",X301/$C$301)","v":""},null,{"$f":"IF($C$301=\"\",\"\",Z301/$C$301)","v":""},null,{"$f":"IF($C$301=\"\",\"\",AB301/$C$301)","v":""},null,{"$f":"IF($C$301=\"\",\"\",AD301/$C$301)","v":""},null,{"$f":"IF($C$301=\"\",\"\",AF301/$C$301)","v":""},null,{"$f":"IF($C$301=\"\",\"\",AH301/$C$301)","v":""},null,{"$f":"IF($C$301=\"\",\"\",AJ301/$C$301)","v":""},null,{"$f":"IF($C$301=\"\",\"\",AL301/$C$301)","v":""},null,{"$f":"IF($C$301=\"\",\"\",AN301/$C$301)","v":""},null,{"$f":"IF($C$301=\"\",\"\",AP301/$C$301)","v":""},null,{"$f":"IF($C$301=\"\",\"\",AR301/$C$301)","v":""},null,{"$f":"IF($C$301=\"\",\"\",AT301/$C$301)","v":""},null,{"$f":"IF($C$301=\"\",\"\",AV301/$C$301)","v":""},null,{"$f":"IF($C$301=\"\",\"\",AX301/$C$301)","v":""},null,{"$f":"IF($C$301=\"\",\"\",AZ301/$C$301)","v":""},null,{"$f":"IF($C$301=\"\",\"\",BB301/$C$301)","v":""},null,0]
["    11.3.3",null,null,null,{"$f":"IF($C$302=\"\",\"\",F302/$C$302)","v":""},null,{"$f":"IF($C$302=\"\",\"\",H302/$C$302)","v":""},null,{"$f":"IF($C$302=\"\",\"\",J302/$C$302)","v":""},null,{"$f":"IF($C$302=\"\",\"\",L302/$C$302)","v":""},null,{"$f":"IF($C$302=\"\",\"\",N302/$C$302)","v":""},null,{"$f":"IF($C$302=\"\",\"\",P302/$C$302)","v":""},null,{"$f":"IF($C$302=\"\",\"\",R302/$C$302)","v":""},null,{"$f":"IF($C$302=\"\",\"\",T302/$C$302)","v":""},null,{"$f":"IF($C$302=\"\",\"\",V302/$C$302)","v":""},null,{"$f":"IF($C$302=\"\",\"\",X302/$C$302)","v":""},null,{"$f":"IF($C$302=\"\",\"\",Z302/$C$302)","v":""},null,{"$f":"IF($C$302=\"\",\"\",AB302/$C$302)","v":""},null,{"$f":"IF($C$302=\"\",\"\",AD302/$C$302)","v":""},null,{"$f":"IF($C$302=\"\",\"\",AF302/$C$302)","v":""},null,{"$f":"IF($C$302=\"\",\"\",AH302/$C$302)","v":""},null,{"$f":"IF($C$302=\"\",\"\",AJ302/$C$302)","v":""},null,{"$f":"IF($C$302=\"\",\"\",AL302/$C$302)","v":""},null,{"$f":"IF($C$302=\"\",\"\",AN302/$C$302)","v":""},null,{"$f":"IF($C$302=\"\",\"\",AP302/$C$302)","v":""},null,{"$f":"IF($C$302=\"\",\"\",AR302/$C$302)","v":""},null,{"$f":"IF($C$302=\"\",\"\",AT302/$C$302)","v":""},null,{"$f":"IF($C$302=\"\",\"\",AV302/$C$302)","v":""},null,{"$f":"IF($C$302=\"\",\"\",AX302/$C$302)","v":""},null,{"$f":"IF($C$302=\"\",\"\",AZ302/$C$302)","v":""},null,{"$f":"IF($C$302=\"\",\"\",BB302/$C$302)","v":""},null,0]
["    11.3.4",null,null,null,{"$f":"IF($C$303=\"\",\"\",F303/$C$303)","v":""},null,{"$f":"IF($C$303=\"\",\"\",H303/$C$303)","v":""},null,{"$f":"IF($C$303=\"\",\"\",J303/$C$303)","v":""},null,{"$f":"IF($C$303=\"\",\"\",L303/$C$303)","v":""},null,{"$f":"IF($C$303=\"\",\"\",N303/$C$303)","v":""},null,{"$f":"IF($C$303=\"\",\"\",P303/$C$303)","v":""},null,{"$f":"IF($C$303=\"\",\"\",R303/$C$303)","v":""},null,{"$f":"IF($C$303=\"\",\"\",T303/$C$303)","v":""},null,{"$f":"IF($C$303=\"\",\"\",V303/$C$303)","v":""},null,{"$f":"IF($C$303=\"\",\"\",X303/$C$303)","v":""},null,{"$f":"IF($C$303=\"\",\"\",Z303/$C$303)","v":""},null,{"$f":"IF($C$303=\"\",\"\",AB303/$C$303)","v":""},null,{"$f":"IF($C$303=\"\",\"\",AD303/$C$303)","v":""},null,{"$f":"IF($C$303=\"\",\"\",AF303/$C$303)","v":""},null,{"$f":"IF($C$303=\"\",\"\",AH303/$C$303)","v":""},null,{"$f":"IF($C$303=\"\",\"\",AJ303/$C$303)","v":""},null,{"$f":"IF($C$303=\"\",\"\",AL303/$C$303)","v":""},null,{"$f":"IF($C$303=\"\",\"\",AN303/$C$303)","v":""},null,{"$f":"IF($C$303=\"\",\"\",AP303/$C$303)","v":""},null,{"$f":"IF($C$303=\"\",\"\",AR303/$C$303)","v":""},null,{"$f":"IF($C$303=\"\",\"\",AT303/$C$303)","v":""},null,{"$f":"IF($C$303=\"\",\"\",AV303/$C$303)","v":""},null,{"$f":"IF($C$303=\"\",\"\",AX303/$C$303)","v":""},null,{"$f":"IF($C$303=\"\",\"\",AZ303/$C$303)","v":""},null,{"$f":"IF($C$303=\"\",\"\",BB303/$C$303)","v":""},null,0]
["    11.3.5",null,null,null,{"$f":"IF($C$304=\"\",\"\",F304/$C$304)","v":""},null,{"$f":"IF($C$304=\"\",\"\",H304/$C$304)","v":""},null,{"$f":"IF($C$304=\"\",\"\",J304/$C$304)","v":""},null,{"$f":"IF($C$304=\"\",\"\",L304/$C$304)","v":""},null,{"$f":"IF($C$304=\"\",\"\",N304/$C$304)","v":""},null,{"$f":"IF($C$304=\"\",\"\",P304/$C$304)","v":""},null,{"$f":"IF($C$304=\"\",\"\",R304/$C$304)","v":""},null,{"$f":"IF($C$304=\"\",\"\",T304/$C$304)","v":""},null,{"$f":"IF($C$304=\"\",\"\",V304/$C$304)","v":""},null,{"$f":"IF($C$304=\"\",\"\",X304/$C$304)","v":""},null,{"$f":"IF($C$304=\"\",\"\",Z304/$C$304)","v":""},null,{"$f":"IF($C$304=\"\",\"\",AB304/$C$304)","v":""},null,{"$f":"IF($C$304=\"\",\"\",AD304/$C$304)","v":""},null,{"$f":"IF($C$304=\"\",\"\",AF304/$C$304)","v":""},null,{"$f":"IF($C$304=\"\",\"\",AH304/$C$304)","v":""},null,{"$f":"IF($C$304=\"\",\"\",AJ304/$C$304)","v":""},null,{"$f":"IF($C$304=\"\",\"\",AL304/$C$304)","v":""},null,{"$f":"IF($C$304=\"\",\"\",AN304/$C$304)","v":""},null,{"$f":"IF($C$304=\"\",\"\",AP304/$C$304)","v":""},null,{"$f":"IF($C$304=\"\",\"\",AR304/$C$304)","v":""},null,{"$f":"IF($C$304=\"\",\"\",AT304/$C$304)","v":""},null,{"$f":"IF($C$304=\"\",\"\",AV304/$C$304)","v":""},null,{"$f":"IF($C$304=\"\",\"\",AX304/$C$304)","v":""},null,{"$f":"IF($C$304=\"\",\"\",AZ304/$C$304)","v":""},null,{"$f":"IF($C$304=\"\",\"\",BB304/$C$304)","v":""},null,0]
[11.4,"Quality Reviews",null,null,{"$f":"IF($C$305=\"\",\"\",F305/$C$305)","v":""},null,{"$f":"IF($C$305=\"\",\"\",H305/$C$305)","v":""},null,{"$f":"IF($C$305=\"\",\"\",J305/$C$305)","v":""},null,{"$f":"IF($C$305=\"\",\"\",L305/$C$305)","v":""},null,{"$f":"IF($C$305=\"\",\"\",N305/$C$305)","v":""},null,{"$f":"IF($C$305=\"\",\"\",P305/$C$305)","v":""},null,{"$f":"IF($C$305=\"\",\"\",R305/$C$305)","v":""},null,{"$f":"IF($C$305=\"\",\"\",T305/$C$305)","v":""},null,{"$f":"IF($C$305=\"\",\"\",V305/$C$305)","v":""},null,{"$f":"IF($C$305=\"\",\"\",X305/$C$305)","v":""},null,{"$f":"IF($C$305=\"\",\"\",Z305/$C$305)","v":""},null,{"$f":"IF($C$305=\"\",\"\",AB305/$C$305)","v":""},null,{"$f":"IF($C$305=\"\",\"\",AD305/$C$305)","v":""},null,{"$f":"IF($C$305=\"\",\"\",AF305/$C$305)","v":""},null,{"$f":"IF($C$305=\"\",\"\",AH305/$C$305)","v":""},null,{"$f":"IF($C$305=\"\",\"\",AJ305/$C$305)","v":""},null,{"$f":"IF($C$305=\"\",\"\",AL305/$C$305)","v":""},null,{"$f":"IF($C$305=\"\",\"\",AN305/$C$305)","v":""},null,{"$f":"IF($C$305=\"\",\"\",AP305/$C$305)","v":""},null,{"$f":"IF($C$305=\"\",\"\",AR305/$C$305)","v":""},null,{"$f":"IF($C$305=\"\",\"\",AT305/$C$305)","v":""},null,{"$f":"IF($C$305=\"\",\"\",AV305/$C$305)","v":""},null,{"$f":"IF($C$305=\"\",\"\",AX305/$C$305)","v":""},null,{"$f":"IF($C$305=\"\",\"\",AZ305/$C$305)","v":""},null,{"$f":"IF($C$305=\"\",\"\",BB305/$C$305)","v":""},null,0]
[null,null,null,null,{"$f":"IF($C$306=\"\",\"\",F306/$C$306)","v":""},null,{"$f":"IF($C$306=\"\",\"\",H306/$C$306)","v":""},null,{"$f":"IF($C$306=\"\",\"\",J306/$C$306)","v":""},null,{"$f":"IF($C$306=\"\",\"\",L306/$C$306)","v":""},null,{"$f":"IF($C$306=\"\",\"\",N306/$C$306)","v":""},null,{"$f":"IF($C$306=\"\",\"\",P306/$C$306)","v":""},null,{"$f":"IF($C$306=\"\",\"\",R306/$C$306)","v":""},null,{"$f":"IF($C$306=\"\",\"\",T306/$C$306)","v":""},null,{"$f":"IF($C$306=\"\",\"\",V306/$C$306)","v":""},null,{"$f":"IF($C$306=\"\",\"\",X306/$C$306)","v":""},null,{"$f":"IF($C$306=\"\",\"\",Z306/$C$306)","v":""},null,{"$f":"IF($C$306=\"\",\"\",AB306/$C$306)","v":""},null,{"$f":"IF($C$306=\"\",\"\",AD306/$C$306)","v":""},null,{"$f":"IF($C$306=\"\",\"\",AF306/$C$306)","v":""},null,{"$f":"IF($C$306=\"\",\"\",AH306/$C$306)","v":""},null,{"$f":"IF($C$306=\"\",\"\",AJ306/$C$306)","v":""},null,{"$f":"IF($C$306=\"\",\"\",AL306/$C$306)","v":""},null,{"$f":"IF($C$306=\"\",\"\",AN306/$C$306)","v":""},null,{"$f":"IF($C$306=\"\",\"\",AP306/$C$306)","v":""},null,{"$f":"IF($C$306=\"\",\"\",AR306/$C$306)","v":""},null,{"$f":"IF($C$306=\"\",\"\",AT306/$C$306)","v":""},null,{"$f":"IF($C$306=\"\",\"\",AV306/$C$306)","v":""},null,{"$f":"IF($C$306=\"\",\"\",AX306/$C$306)","v":""},null,{"$f":"IF($C$306=\"\",\"\",AZ306/$C$306)","v":""},null,{"$f":"IF($C$306=\"\",\"\",BB306/$C$306)","v":""},null,0]
[null,null,null,null,{"$f":"IF($C$307=\"\",\"\",F307/$C$307)","v":""},null,{"$f":"IF($C$307=\"\",\"\",H307/$C$307)","v":""},null,{"$f":"IF($C$307=\"\",\"\",J307/$C$307)","v":""},null,{"$f":"IF($C$307=\"\",\"\",L307/$C$307)","v":""},null,{"$f":"IF($C$307=\"\",\"\",N307/$C$307)","v":""},null,{"$f":"IF($C$307=\"\",\"\",P307/$C$307)","v":""},null,{"$f":"IF($C$307=\"\",\"\",R307/$C$307)","v":""},null,{"$f":"IF($C$307=\"\",\"\",T307/$C$307)","v":""},null,{"$f":"IF($C$307=\"\",\"\",V307/$C$307)","v":""},null,{"$f":"IF($C$307=\"\",\"\",X307/$C$307)","v":""},null,{"$f":"IF($C$307=\"\",\"\",Z307/$C$307)","v":""},null,{"$f":"IF($C$307=\"\",\"\",AB307/$C$307)","v":""},null,{"$f":"IF($C$307=\"\",\"\",AD307/$C$307)","v":""},null,{"$f":"IF($C$307=\"\",\"\",AF307/$C$307)","v":""},null,{"$f":"IF($C$307=\"\",\"\",AH307/$C$307)","v":""},null,{"$f":"IF($C$307=\"\",\"\",AJ307/$C$307)","v":""},null,{"$f":"IF($C$307=\"\",\"\",AL307/$C$307)","v":""},null,{"$f":"IF($C$307=\"\",\"\",AN307/$C$307)","v":""},null,{"$f":"IF($C$307=\"\",\"\",AP307/$C$307)","v":""},null,{"$f":"IF($C$307=\"\",\"\",AR307/$C$307)","v":""},null,{"$f":"IF($C$307=\"\",\"\",AT307/$C$307)","v":""},null,{"$f":"IF($C$307=\"\",\"\",AV307/$C$307)","v":""},null,{"$f":"IF($C$307=\"\",\"\",AX307/$C$307)","v":""},null,{"$f":"IF($C$307=\"\",\"\",AZ307/$C$307)","v":""},null,{"$f":"IF($C$307=\"\",\"\",BB307/$C$307)","v":""},null,0]
[null,null,null,null,{"$f":"IF($C$308=\"\",\"\",F308/$C$308)","v":""},null,{"$f":"IF($C$308=\"\",\"\",H308/$C$308)","v":""},null,{"$f":"IF($C$308=\"\",\"\",J308/$C$308)","v":""},null,{"$f":"IF($C$308=\"\",\"\",L308/$C$308)","v":""},null,{"$f":"IF($C$308=\"\",\"\",N308/$C$308)","v":""},null,{"$f":"IF($C$308=\"\",\"\",P308/$C$308)","v":""},null,{"$f":"IF($C$308=\"\",\"\",R308/$C$308)","v":""},null,{"$f":"IF($C$308=\"\",\"\",T308/$C$308)","v":""},null,{"$f":"IF($C$308=\"\",\"\",V308/$C$308)","v":""},null,{"$f":"IF($C$308=\"\",\"\",X308/$C$308)","v":""},null,{"$f":"IF($C$308=\"\",\"\",Z308/$C$308)","v":""},null,{"$f":"IF($C$308=\"\",\"\",AB308/$C$308)","v":""},null,{"$f":"IF($C$308=\"\",\"\",AD308/$C$308)","v":""},null,{"$f":"IF($C$308=\"\",\"\",AF308/$C$308)","v":""},null,{"$f":"IF($C$308=\"\",\"\",AH308/$C$308)","v":""},null,{"$f":"IF($C$308=\"\",\"\",AJ308/$C$308)","v":""},null,{"$f":"IF($C$308=\"\",\"\",AL308/$C$308)","v":""},null,{"$f":"IF($C$308=\"\",\"\",AN308/$C$308)","v":""},null,{"$f":"IF($C$308=\"\",\"\",AP308/$C$308)","v":""},null,{"$f":"IF($C$308=\"\",\"\",AR308/$C$308)","v":""},null,{"$f":"IF($C$308=\"\",\"\",AT308/$C$308)","v":""},null,{"$f":"IF($C$308=\"\",\"\",AV308/$C$308)","v":""},null,{"$f":"IF($C$308=\"\",\"\",AX308/$C$308)","v":""},null,{"$f":"IF($C$308=\"\",\"\",AZ308/$C$308)","v":""},null,{"$f":"IF($C$308=\"\",\"\",BB308/$C$308)","v":""},null,0]
[null,null,null,null,{"$f":"IF($C$309=\"\",\"\",F309/$C$309)","v":""},null,{"$f":"IF($C$309=\"\",\"\",H309/$C$309)","v":""},null,{"$f":"IF($C$309=\"\",\"\",J309/$C$309)","v":""},null,{"$f":"IF($C$309=\"\",\"\",L309/$C$309)","v":""},null,{"$f":"IF($C$309=\"\",\"\",N309/$C$309)","v":""},null,{"$f":"IF($C$309=\"\",\"\",P309/$C$309)","v":""},null,{"$f":"IF($C$309=\"\",\"\",R309/$C$309)","v":""},null,{"$f":"IF($C$309=\"\",\"\",T309/$C$309)","v":""},null,{"$f":"IF($C$309=\"\",\"\",V309/$C$309)","v":""},null,{"$f":"IF($C$309=\"\",\"\",X309/$C$309)","v":""},null,{"$f":"IF($C$309=\"\",\"\",Z309/$C$309)","v":""},null,{"$f":"IF($C$309=\"\",\"\",AB309/$C$309)","v":""},null,{"$f":"IF($C$309=\"\",\"\",AD309/$C$309)","v":""},null,{"$f":"IF($C$309=\"\",\"\",AF309/$C$309)","v":""},null,{"$f":"IF($C$309=\"\",\"\",AH309/$C$309)","v":""},null,{"$f":"IF($C$309=\"\",\"\",AJ309/$C$309)","v":""},null,{"$f":"IF($C$309=\"\",\"\",AL309/$C$309)","v":""},null,{"$f":"IF($C$309=\"\",\"\",AN309/$C$309)","v":""},null,{"$f":"IF($C$309=\"\",\"\",AP309/$C$309)","v":""},null,{"$f":"IF($C$309=\"\",\"\",AR309/$C$309)","v":""},null,{"$f":"IF($C$309=\"\",\"\",AT309/$C$309)","v":""},null,{"$f":"IF($C$309=\"\",\"\",AV309/$C$309)","v":""},null,{"$f":"IF($C$309=\"\",\"\",AX309/$C$309)","v":""},null,{"$f":"IF($C$309=\"\",\"\",AZ309/$C$309)","v":""},null,{"$f":"IF($C$309=\"\",\"\",BB309/$C$309)","v":""},null,0]
[null,null,null,null,{"$f":"IF($C$310=\"\",\"\",F310/$C$310)","v":""},null,{"$f":"IF($C$310=\"\",\"\",H310/$C$310)","v":""},null,{"$f":"IF($C$310=\"\",\"\",J310/$C$310)","v":""},null,{"$f":"IF($C$310=\"\",\"\",L310/$C$310)","v":""},null,{"$f":"IF($C$310=\"\",\"\",N310/$C$310)","v":""},null,{"$f":"IF($C$310=\"\",\"\",P310/$C$310)","v":""},null,{"$f":"IF($C$310=\"\",\"\",R310/$C$310)","v":""},null,{"$f":"IF($C$310=\"\",\"\",T310/$C$310)","v":""},null,{"$f":"IF($C$310=\"\",\"\",V310/$C$310)","v":""},null,{"$f":"IF($C$310=\"\",\"\",X310/$C$310)","v":""},null,{"$f":"IF($C$310=\"\",\"\",Z310/$C$310)","v":""},null,{"$f":"IF($C$310=\"\",\"\",AB310/$C$310)","v":""},null,{"$f":"IF($C$310=\"\",\"\",AD310/$C$310)","v":""},null,{"$f":"IF($C$310=\"\",\"\",AF310/$C$310)","v":""},null,{"$f":"IF($C$310=\"\",\"\",AH310/$C$310)","v":""},null,{"$f":"IF($C$310=\"\",\"\",AJ310/$C$310)","v":""},null,{"$f":"IF($C$310=\"\",\"\",AL310/$C$310)","v":""},null,{"$f":"IF($C$310=\"\",\"\",AN310/$C$310)","v":""},null,{"$f":"IF($C$310=\"\",\"\",AP310/$C$310)","v":""},null,{"$f":"IF($C$310=\"\",\"\",AR310/$C$310)","v":""},null,{"$f":"IF($C$310=\"\",\"\",AT310/$C$310)","v":""},null,{"$f":"IF($C$310=\"\",\"\",AV310/$C$310)","v":""},null,{"$f":"IF($C$310=\"\",\"\",AX310/$C$310)","v":""},null,{"$f":"IF($C$310=\"\",\"\",AZ310/$C$310)","v":""},null,{"$f":"IF($C$310=\"\",\"\",BB310/$C$310)","v":""},null,0]
[null,null,null,null,{"$f":"IF($C$311=\"\",\"\",F311/$C$311)","v":""},null,{"$f":"IF($C$311=\"\",\"\",H311/$C$311)","v":""},null,{"$f":"IF($C$311=\"\",\"\",J311/$C$311)","v":""},null,{"$f":"IF($C$311=\"\",\"\",L311/$C$311)","v":""},null,{"$f":"IF($C$311=\"\",\"\",N311/$C$311)","v":""},null,{"$f":"IF($C$311=\"\",\"\",P311/$C$311)","v":""},null,{"$f":"IF($C$311=\"\",\"\",R311/$C$311)","v":""},null,{"$f":"IF($C$311=\"\",\"\",T311/$C$311)","v":""},null,{"$f":"IF($C$311=\"\",\"\",V311/$C$311)","v":""},null,{"$f":"IF($C$311=\"\",\"\",X311/$C$311)","v":""},null,{"$f":"IF($C$311=\"\",\"\",Z311/$C$311)","v":""},null,{"$f":"IF($C$311=\"\",\"\",AB311/$C$311)","v":""},null,{"$f":"IF($C$311=\"\",\"\",AD311/$C$311)","v":""},null,{"$f":"IF($C$311=\"\",\"\",AF311/$C$311)","v":""},null,{"$f":"IF($C$311=\"\",\"\",AH311/$C$311)","v":""},null,{"$f":"IF($C$311=\"\",\"\",AJ311/$C$311)","v":""},null,{"$f":"IF($C$311=\"\",\"\",AL311/$C$311)","v":""},null,{"$f":"IF($C$311=\"\",\"\",AN311/$C$311)","v":""},null,{"$f":"IF($C$311=\"\",\"\",AP311/$C$311)","v":""},null,{"$f":"IF($C$311=\"\",\"\",AR311/$C$311)","v":""},null,{"$f":"IF($C$311=\"\",\"\",AT311/$C$311)","v":""},null,{"$f":"IF($C$311=\"\",\"\",AV311/$C$311)","v":""},null,{"$f":"IF($C$311=\"\",\"\",AX311/$C$311)","v":""},null,{"$f":"IF($C$311=\"\",\"\",AZ311/$C$311)","v":""},null,{"$f":"IF($C$311=\"\",\"\",BB311/$C$311)","v":""},null,0]
[null,null,null,null,{"$f":"IF($C$312=\"\",\"\",F312/$C$312)","v":""},null,{"$f":"IF($C$312=\"\",\"\",H312/$C$312)","v":""},null,{"$f":"IF($C$312=\"\",\"\",J312/$C$312)","v":""},null,{"$f":"IF($C$312=\"\",\"\",L312/$C$312)","v":""},null,{"$f":"IF($C$312=\"\",\"\",N312/$C$312)","v":""},null,{"$f":"IF($C$312=\"\",\"\",P312/$C$312)","v":""},null,{"$f":"IF($C$312=\"\",\"\",R312/$C$312)","v":""},null,{"$f":"IF($C$312=\"\",\"\",T312/$C$312)","v":""},null,{"$f":"IF($C$312=\"\",\"\",V312/$C$312)","v":""},null,{"$f":"IF($C$312=\"\",\"\",X312/$C$312)","v":""},null,{"$f":"IF($C$312=\"\",\"\",Z312/$C$312)","v":""},null,{"$f":"IF($C$312=\"\",\"\",AB312/$C$312)","v":""},null,{"$f":"IF($C$312=\"\",\"\",AD312/$C$312)","v":""},null,{"$f":"IF($C$312=\"\",\"\",AF312/$C$312)","v":""},null,{"$f":"IF($C$312=\"\",\"\",AH312/$C$312)","v":""},null,{"$f":"IF($C$312=\"\",\"\",AJ312/$C$312)","v":""},null,{"$f":"IF($C$312=\"\",\"\",AL312/$C$312)","v":""},null,{"$f":"IF($C$312=\"\",\"\",AN312/$C$312)","v":""},null,{"$f":"IF($C$312=\"\",\"\",AP312/$C$312)","v":""},null,{"$f":"IF($C$312=\"\",\"\",AR312/$C$312)","v":""},null,{"$f":"IF($C$312=\"\",\"\",AT312/$C$312)","v":""},null,{"$f":"IF($C$312=\"\",\"\",AV312/$C$312)","v":""},null,{"$f":"IF($C$312=\"\",\"\",AX312/$C$312)","v":""},null,{"$f":"IF($C$312=\"\",\"\",AZ312/$C$312)","v":""},null,{"$f":"IF($C$312=\"\",\"\",BB312/$C$312)","v":""},null,{"$f":"SUM(BB312,AZ312,AX312,AV312,AT312,AR312,AP312,AN312,AL312,AJ312,AH312,AF312,AD312,AB312,Z312,X312,V312,T312,R312,P312,N312,L312,J312,H312,F312)","v":0}]
["TOTAL HOURS",null,null,null,null,{"$f":"SUM(F254:F312)","v":0},null,{"$f":"SUM(H254:H312)","v":0},null,{"$f":"SUM(J254:J312)","v":0},null,{"$f":"SUM(L254:L312)","v":0},null,{"$f":"SUM(N254:N312)","v":0},null,{"$f":"SUM(P254:P312)","v":0},null,{"$f":"SUM(R254:R312)","v":0},null,{"$f":"SUM(T254:T312)","v":0},null,{"$f":"SUM(V254:V312)","v":0},null,{"$f":"SUM(X254:X312)","v":0},null,{"$f":"SUM(Z254:Z312)","v":0},null,{"$f":"SUM(AB254:AB312)","v":0},null,{"$f":"SUM(AD254:AD312)","v":0},null,{"$f":"SUM(AF254:AF312)","v":0},null,{"$f":"SUM(AH254:AH312)","v":0},null,{"$f":"SUM(AJ254:AJ312)","v":0},null,{"$f":"SUM(AL254:AL312)","v":0},null,{"$f":"SUM(AN254:AN312)","v":0},null,{"$f":"SUM(AP254:AP312)","v":0},null,{"$f":"SUM(AR254:AR312)","v":0},null,{"$f":"SUM(AT254:AT312)","v":0},null,{"$f":"SUM(AV254:AV312)","v":0},null,{"$f":"SUM(AX254:AX312)","v":0},null,{"$f":"SUM(AZ254:AZ312)","v":0},null,{"$f":"SUM(BB254:BB312)","v":0},{"$f":"SUM(E313:BB313)","v":0}]
["TOTAL WORKDAYS",null,null,null,null,{"$f":"F313/8","v":0},null,{"$f":"H313/8","v":0},null,{"$f":"J313/8","v":0},null,{"$f":"L313/8","v":0},null,{"$f":"N313/8","v":0},null,{"$f":"P313/8","v":0},null,{"$f":"R313/8","v":0},null,{"$f":"T313/8","v":0},null,{"$f":"V313/8","v":0},null,{"$f":"X313/8","v":0},null,{"$f":"Z313/8","v":0},null,{"$f":"AB313/8","v":0},null,{"$f":"AD313/8","v":0},null,0,null,{"$f":"AH313/8","v":0},null,0,null,{"$f":"AL313/8","v":0},null,0,null,{"$f":"AP313/8","v":0},null,0,null,{"$f":"AT313/8","v":0},null,{"$f":"AV313/8","v":0},null,{"$f":"AX313/8","v":0},null,{"$f":"AZ313/8","v":0},null,{"$f":"BB313/8","v":0},{"$f":"SUM(E314:BB314)","v":0}]
["TOTAL RAW LABOR",null,null,null,null,{"$f":"$E$13*F313","v":0},null,{"$f":"$G$13*H313","v":0},null,{"$f":"$I$13*J313","v":0},null,{"$f":"$K$13*L313","v":0},null,{"$f":"$M$13*N313","v":0},null,{"$f":"$O$13*P313","v":0},null,{"$f":"$Q$13*R313","v":0},null,{"$f":"$S$13*T313","v":0},null,{"$f":"$U$13*V313","v":0},null,{"$f":"$W$13*X313","v":0},null,{"$f":"$Y$13*Z313","v":0},null,{"$f":"$AA$13*AB313","v":0},null,{"$f":"$AC$13*AD313","v":0},null,{"$f":"$AC$13*AF313","v":0},null,{"$f":"$AC$13*AH313","v":0},null,{"$f":"$AC$13*AJ313","v":0},null,{"$f":"$AC$13*AL313","v":0},null,{"$f":"$AC$13*AN313","v":0},null,{"$f":"$AC$13*AP313","v":0},null,{"$f":"$AC$13*AR313","v":0},null,{"$f":"$AC$13*AT313","v":0},null,{"$f":"$AC$13*AV313","v":0},null,{"$f":"$AC$13*AX313","v":0},null,{"$f":"$AC$13*AZ313","v":0},null,{"$f":"$AC$13*BB313","v":0},{"$f":"SUM(E315:BB315)","v":0}]
["Task 12.0     ","PROJECT SPECIAL PROVISIONS"]
[12.1,"Preliminary Project Special Provisions"]
["    12.1.1","    General Requirements:\n          -  Summary of Work\n          -  Construction Staging/Migration\n          -  Work within Historic Districts\n          -  Railroad Requirements\n          -  Documentation",null,null,{"$f":"IF($C$318=\"\",\"\",F318/$C$318)","v":""},null,{"$f":"IF($C$318=\"\",\"\",H318/$C$318)","v":""},null,{"$f":"IF($C$318=\"\",\"\",J318/$C$318)","v":""},null,{"$f":"IF($C$318=\"\",\"\",L318/$C$318)","v":""},null,{"$f":"IF($C$318=\"\",\"\",N318/$C$318)","v":""},null,{"$f":"IF($C$318=\"\",\"\",P318/$C$318)","v":""},null,{"$f":"IF($C$318=\"\",\"\",R318/$C$318)","v":""},null,{"$f":"IF($C$318=\"\",\"\",T318/$C$318)","v":""},null,{"$f":"IF($C$318=\"\",\"\",V318/$C$318)","v":""},null,{"$f":"IF($C$318=\"\",\"\",X318/$C$318)","v":""},null,{"$f":"IF($C$318=\"\",\"\",Z318/$C$318)","v":""},null,{"$f":"IF($C$318=\"\",\"\",AB318/$C$318)","v":""},null,{"$f":"IF($C$318=\"\",\"\",AD318/$C$318)","v":""},null,{"$f":"IF($C$318=\"\",\"\",AF318/$C$318)","v":""},null,{"$f":"IF($C$318=\"\",\"\",AH318/$C$318)","v":""},null,{"$f":"IF($C$318=\"\",\"\",AJ318/$C$318)","v":""},null,{"$f":"IF($C$318=\"\",\"\",AL318/$C$318)","v":""},null,{"$f":"IF($C$318=\"\",\"\",AN318/$C$318)","v":""},null,{"$f":"IF($C$318=\"\",\"\",AP318/$C$318)","v":""},null,{"$f":"IF($C$318=\"\",\"\",AR318/$C$318)","v":""},null,{"$f":"IF($C$318=\"\",\"\",AT318/$C$318)","v":""},null,{"$f":"IF($C$318=\"\",\"\",AV318/$C$318)","v":""},null,{"$f":"IF($C$318=\"\",\"\",AX318/$C$318)","v":""},null,{"$f":"IF($C$318=\"\",\"\",AZ318/$C$318)","v":""},null,{"$f":"IF($C$318=\"\",\"\",BB318/$C$318)","v":""},null,{"$f":"SUM(BB318,AZ318,AX318,AV318,AT318,AR318,AP318,AN318,AL318,AJ318,AH318,AF318,AD318,AB318,Z318,X318,V318,T318,R318,P318,N318,L318,J318,H318,F318)","v":0}]
["    12.1.2","    Temporary Traffic Control (Maintenance of \n    Traffic)",null,null,{"$f":"IF($C$319=\"\",\"\",F319/$C$319)","v":""},null,{"$f":"IF($C$319=\"\",\"\",H319/$C$319)","v":""},null,{"$f":"IF($C$319=\"\",\"\",J319/$C$319)","v":""},null,{"$f":"IF($C$319=\"\",\"\",L319/$C$319)","v":""},null,{"$f":"IF($C$319=\"\",\"\",N319/$C$319)","v":""},null,{"$f":"IF($C$319=\"\",\"\",P319/$C$319)","v":""},null,{"$f":"IF($C$319=\"\",\"\",R319/$C$319)","v":""},null,{"$f":"IF($C$319=\"\",\"\",T319/$C$319)","v":""},null,{"$f":"IF($C$319=\"\",\"\",V319/$C$319)","v":""},null,{"$f":"IF($C$319=\"\",\"\",X319/$C$319)","v":""},null,{"$f":"IF($C$319=\"\",\"\",Z319/$C$319)","v":""},null,{"$f":"IF($C$319=\"\",\"\",AB319/$C$319)","v":""},null,{"$f":"IF($C$319=\"\",\"\",AD319/$C$319)","v":""},null,{"$f":"IF($C$319=\"\",\"\",AF319/$C$319)","v":""},null,{"$f":"IF($C$319=\"\",\"\",AH319/$C$319)","v":""},null,{"$f":"IF($C$319=\"\",\"\",AJ319/$C$319)","v":""},null,{"$f":"IF($C$319=\"\",\"\",AL319/$C$319)","v":""},null,{"$f":"IF($C$319=\"\",\"\",AN319/$C$319)","v":""},null,{"$f":"IF($C$319=\"\",\"\",AP319/$C$319)","v":""},null,{"$f":"IF($C$319=\"\",\"\",AR319/$C$319)","v":""},null,{"$f":"IF($C$319=\"\",\"\",AT319/$C$319)","v":""},null,{"$f":"IF($C$319=\"\",\"\",AV319/$C$319)","v":""},null,{"$f":"IF($C$319=\"\",\"\",AX319/$C$319)","v":""},null,{"$f":"IF($C$319=\"\",\"\",AZ319/$C$319)","v":""},null,{"$f":"IF($C$319=\"\",\"\",BB319/$C$319)","v":""},null,0]
["    12.1.3","    Central Software",null,null,{"$f":"IF($C$320=\"\",\"\",F320/$C$320)","v":""},null,{"$f":"IF($C$320=\"\",\"\",H320/$C$320)","v":""},null,{"$f":"IF($C$320=\"\",\"\",J320/$C$320)","v":""},null,{"$f":"IF($C$320=\"\",\"\",L320/$C$320)","v":""},null,{"$f":"IF($C$320=\"\",\"\",N320/$C$320)","v":""},null,{"$f":"IF($C$320=\"\",\"\",P320/$C$320)","v":""},null,{"$f":"IF($C$320=\"\",\"\",R320/$C$320)","v":""},null,{"$f":"IF($C$320=\"\",\"\",T320/$C$320)","v":""},null,{"$f":"IF($C$320=\"\",\"\",V320/$C$320)","v":""},null,{"$f":"IF($C$320=\"\",\"\",X320/$C$320)","v":""},null,{"$f":"IF($C$320=\"\",\"\",Z320/$C$320)","v":""},null,{"$f":"IF($C$320=\"\",\"\",AB320/$C$320)","v":""},null,{"$f":"IF($C$320=\"\",\"\",AD320/$C$320)","v":""},null,{"$f":"IF($C$320=\"\",\"\",AF320/$C$320)","v":""},null,{"$f":"IF($C$320=\"\",\"\",AH320/$C$320)","v":""},null,{"$f":"IF($C$320=\"\",\"\",AJ320/$C$320)","v":""},null,{"$f":"IF($C$320=\"\",\"\",AL320/$C$320)","v":""},null,{"$f":"IF($C$320=\"\",\"\",AN320/$C$320)","v":""},null,{"$f":"IF($C$320=\"\",\"\",AP320/$C$320)","v":""},null,{"$f":"IF($C$320=\"\",\"\",AR320/$C$320)","v":""},null,{"$f":"IF($C$320=\"\",\"\",AT320/$C$320)","v":""},null,{"$f":"IF($C$320=\"\",\"\",AV320/$C$320)","v":""},null,{"$f":"IF($C$320=\"\",\"\",AX320/$C$320)","v":""},null,{"$f":"IF($C$320=\"\",\"\",AZ320/$C$320)","v":""},null,{"$f":"IF($C$320=\"\",\"\",BB320/$C$320)","v":""},null,0]
["    12.1.4","    Central Site Equipment & Building Modifications",null,null,{"$f":"IF($C$321=\"\",\"\",F321/$C$321)","v":""},null,{"$f":"IF($C$321=\"\",\"\",H321/$C$321)","v":""},null,{"$f":"IF($C$321=\"\",\"\",J321/$C$321)","v":""},null,{"$f":"IF($C$321=\"\",\"\",L321/$C$321)","v":""},null,{"$f":"IF($C$321=\"\",\"\",N321/$C$321)","v":""},null,{"$f":"IF($C$321=\"\",\"\",P321/$C$321)","v":""},null,{"$f":"IF($C$321=\"\",\"\",R321/$C$321)","v":""},null,{"$f":"IF($C$321=\"\",\"\",T321/$C$321)","v":""},null,{"$f":"IF($C$321=\"\",\"\",V321/$C$321)","v":""},null,{"$f":"IF($C$321=\"\",\"\",X321/$C$321)","v":""},null,{"$f":"IF($C$321=\"\",\"\",Z321/$C$321)","v":""},null,{"$f":"IF($C$321=\"\",\"\",AB321/$C$321)","v":""},null,{"$f":"IF($C$321=\"\",\"\",AD321/$C$321)","v":""},null,{"$f":"IF($C$321=\"\",\"\",AF321/$C$321)","v":""},null,{"$f":"IF($C$321=\"\",\"\",AH321/$C$321)","v":""},null,{"$f":"IF($C$321=\"\",\"\",AJ321/$C$321)","v":""},null,{"$f":"IF($C$321=\"\",\"\",AL321/$C$321)","v":""},null,{"$f":"IF($C$321=\"\",\"\",AN321/$C$321)","v":""},null,{"$f":"IF($C$321=\"\",\"\",AP321/$C$321)","v":""},null,{"$f":"IF($C$321=\"\",\"\",AR321/$C$321)","v":""},null,{"$f":"IF($C$321=\"\",\"\",AT321/$C$321)","v":""},null,{"$f":"IF($C$321=\"\",\"\",AV321/$C$321)","v":""},null,{"$f":"IF($C$321=\"\",\"\",AX321/$C$321)","v":""},null,{"$f":"IF($C$321=\"\",\"\",AZ321/$C$321)","v":""},null,{"$f":"IF($C$321=\"\",\"\",BB321/$C$321)","v":""},null,0]
["    12.1.5","    CCTV Monitoring System\n          -  Central Equipment\n          -  Field Equipment\n          -  Integration and Software Modification",null,null,{"$f":"IF($C$322=\"\",\"\",F322/$C$322)","v":""},null,{"$f":"IF($C$322=\"\",\"\",H322/$C$322)","v":""},null,{"$f":"IF($C$322=\"\",\"\",J322/$C$322)","v":""},null,{"$f":"IF($C$322=\"\",\"\",L322/$C$322)","v":""},null,{"$f":"IF($C$322=\"\",\"\",N322/$C$322)","v":""},null,{"$f":"IF($C$322=\"\",\"\",P322/$C$322)","v":""},null,{"$f":"IF($C$322=\"\",\"\",R322/$C$322)","v":""},null,{"$f":"IF($C$322=\"\",\"\",T322/$C$322)","v":""},null,{"$f":"IF($C$322=\"\",\"\",V322/$C$322)","v":""},null,{"$f":"IF($C$322=\"\",\"\",X322/$C$322)","v":""},null,{"$f":"IF($C$322=\"\",\"\",Z322/$C$322)","v":""},null,{"$f":"IF($C$322=\"\",\"\",AB322/$C$322)","v":""},null,{"$f":"IF($C$322=\"\",\"\",AD322/$C$322)","v":""},null,{"$f":"IF($C$322=\"\",\"\",AF322/$C$322)","v":""},null,{"$f":"IF($C$322=\"\",\"\",AH322/$C$322)","v":""},null,{"$f":"IF($C$322=\"\",\"\",AJ322/$C$322)","v":""},null,{"$f":"IF($C$322=\"\",\"\",AL322/$C$322)","v":""},null,{"$f":"IF($C$322=\"\",\"\",AN322/$C$322)","v":""},null,{"$f":"IF($C$322=\"\",\"\",AP322/$C$322)","v":""},null,{"$f":"IF($C$322=\"\",\"\",AR322/$C$322)","v":""},null,{"$f":"IF($C$322=\"\",\"\",AT322/$C$322)","v":""},null,{"$f":"IF($C$322=\"\",\"\",AV322/$C$322)","v":""},null,{"$f":"IF($C$322=\"\",\"\",AX322/$C$322)","v":""},null,{"$f":"IF($C$322=\"\",\"\",AZ322/$C$322)","v":""},null,{"$f":"IF($C$322=\"\",\"\",BB322/$C$322)","v":""},null,0]
["    12.1.6","    Ethernet Fiber-Optic Communications Network\n          -  Electronics\n          -  Drop Cables and Splice Centers\n          -  Communications Hubs ",null,null,{"$f":"IF($C$323=\"\",\"\",F323/$C$323)","v":""},null,{"$f":"IF($C$323=\"\",\"\",H323/$C$323)","v":""},null,{"$f":"IF($C$323=\"\",\"\",J323/$C$323)","v":""},null,{"$f":"IF($C$323=\"\",\"\",L323/$C$323)","v":""},null,{"$f":"IF($C$323=\"\",\"\",N323/$C$323)","v":""},null,{"$f":"IF($C$323=\"\",\"\",P323/$C$323)","v":""},null,{"$f":"IF($C$323=\"\",\"\",R323/$C$323)","v":""},null,{"$f":"IF($C$323=\"\",\"\",T323/$C$323)","v":""},null,{"$f":"IF($C$323=\"\",\"\",V323/$C$323)","v":""},null,{"$f":"IF($C$323=\"\",\"\",X323/$C$323)","v":""},null,{"$f":"IF($C$323=\"\",\"\",Z323/$C$323)","v":""},null,{"$f":"IF($C$323=\"\",\"\",AB323/$C$323)","v":""},null,{"$f":"IF($C$323=\"\",\"\",AD323/$C$323)","v":""},null,{"$f":"IF($C$323=\"\",\"\",AF323/$C$323)","v":""},null,{"$f":"IF($C$323=\"\",\"\",AH323/$C$323)","v":""},null,{"$f":"IF($C$323=\"\",\"\",AJ323/$C$323)","v":""},null,{"$f":"IF($C$323=\"\",\"\",AL323/$C$323)","v":""},null,{"$f":"IF($C$323=\"\",\"\",AN323/$C$323)","v":""},null,{"$f":"IF($C$323=\"\",\"\",AP323/$C$323)","v":""},null,{"$f":"IF($C$323=\"\",\"\",AR323/$C$323)","v":""},null,{"$f":"IF($C$323=\"\",\"\",AT323/$C$323)","v":""},null,{"$f":"IF($C$323=\"\",\"\",AV323/$C$323)","v":""},null,{"$f":"IF($C$323=\"\",\"\",AX323/$C$323)","v":""},null,{"$f":"IF($C$323=\"\",\"\",AZ323/$C$323)","v":""},null,{"$f":"IF($C$323=\"\",\"\",BB323/$C$323)","v":""},null,0]
["    12.1.7","    Wireless Communications Network\n      -  Electronics\n      -  Hardware\n      -  Software ",null,null,{"$f":"IF($C$324=\"\",\"\",F324/$C$324)","v":""},null,{"$f":"IF($C$324=\"\",\"\",H324/$C$324)","v":""},null,{"$f":"IF($C$324=\"\",\"\",J324/$C$324)","v":""},null,{"$f":"IF($C$324=\"\",\"\",L324/$C$324)","v":""},null,{"$f":"IF($C$324=\"\",\"\",N324/$C$324)","v":""},null,{"$f":"IF($C$324=\"\",\"\",P324/$C$324)","v":""},null,{"$f":"IF($C$324=\"\",\"\",R324/$C$324)","v":""},null,{"$f":"IF($C$324=\"\",\"\",T324/$C$324)","v":""},null,{"$f":"IF($C$324=\"\",\"\",V324/$C$324)","v":""},null,{"$f":"IF($C$324=\"\",\"\",X324/$C$324)","v":""},null,{"$f":"IF($C$324=\"\",\"\",Z324/$C$324)","v":""},null,{"$f":"IF($C$324=\"\",\"\",AB324/$C$324)","v":""},null,{"$f":"IF($C$324=\"\",\"\",AD324/$C$324)","v":""},null,{"$f":"IF($C$324=\"\",\"\",AF324/$C$324)","v":""},null,{"$f":"IF($C$324=\"\",\"\",AH324/$C$324)","v":""},null,{"$f":"IF($C$324=\"\",\"\",AJ324/$C$324)","v":""},null,{"$f":"IF($C$324=\"\",\"\",AL324/$C$324)","v":""},null,{"$f":"IF($C$324=\"\",\"\",AN324/$C$324)","v":""},null,{"$f":"IF($C$324=\"\",\"\",AP324/$C$324)","v":""},null,{"$f":"IF($C$324=\"\",\"\",AR324/$C$324)","v":""},null,{"$f":"IF($C$324=\"\",\"\",AT324/$C$324)","v":""},null,{"$f":"IF($C$324=\"\",\"\",AV324/$C$324)","v":""},null,{"$f":"IF($C$324=\"\",\"\",AX324/$C$324)","v":""},null,{"$f":"IF($C$324=\"\",\"\",AZ324/$C$324)","v":""},null,{"$f":"IF($C$324=\"\",\"\",BB324/$C$324)","v":""},null,0]
["    12.1.8","    Training",null,null,{"$f":"IF($C$325=\"\",\"\",F325/$C$325)","v":""},null,{"$f":"IF($C$325=\"\",\"\",H325/$C$325)","v":""},null,{"$f":"IF($C$325=\"\",\"\",J325/$C$325)","v":""},null,{"$f":"IF($C$325=\"\",\"\",L325/$C$325)","v":""},null,{"$f":"IF($C$325=\"\",\"\",N325/$C$325)","v":""},null,{"$f":"IF($C$325=\"\",\"\",P325/$C$325)","v":""},null,{"$f":"IF($C$325=\"\",\"\",R325/$C$325)","v":""},null,{"$f":"IF($C$325=\"\",\"\",T325/$C$325)","v":""},null,{"$f":"IF($C$325=\"\",\"\",V325/$C$325)","v":""},null,{"$f":"IF($C$325=\"\",\"\",X325/$C$325)","v":""},null,{"$f":"IF($C$325=\"\",\"\",Z325/$C$325)","v":""},null,{"$f":"IF($C$325=\"\",\"\",AB325/$C$325)","v":""},null,{"$f":"IF($C$325=\"\",\"\",AD325/$C$325)","v":""},null,{"$f":"IF($C$325=\"\",\"\",AF325/$C$325)","v":""},null,{"$f":"IF($C$325=\"\",\"\",AH325/$C$325)","v":""},null,{"$f":"IF($C$325=\"\",\"\",AJ325/$C$325)","v":""},null,{"$f":"IF($C$325=\"\",\"\",AL325/$C$325)","v":""},null,{"$f":"IF($C$325=\"\",\"\",AN325/$C$325)","v":""},null,{"$f":"IF($C$325=\"\",\"\",AP325/$C$325)","v":""},null,{"$f":"IF($C$325=\"\",\"\",AR325/$C$325)","v":""},null,{"$f":"IF($C$325=\"\",\"\",AT325/$C$325)","v":""},null,{"$f":"IF($C$325=\"\",\"\",AV325/$C$325)","v":""},null,{"$f":"IF($C$325=\"\",\"\",AX325/$C$325)","v":""},null,{"$f":"IF($C$325=\"\",\"\",AZ325/$C$325)","v":""},null,{"$f":"IF($C$325=\"\",\"\",BB325/$C$325)","v":""},null,0]
["    12.1.9","    Testing & Acceptance",null,null,{"$f":"IF($C$326=\"\",\"\",F326/$C$326)","v":""},null,{"$f":"IF($C$326=\"\",\"\",H326/$C$326)","v":""},null,{"$f":"IF($C$326=\"\",\"\",J326/$C$326)","v":""},null,{"$f":"IF($C$326=\"\",\"\",L326/$C$326)","v":""},null,{"$f":"IF($C$326=\"\",\"\",N326/$C$326)","v":""},null,{"$f":"IF($C$326=\"\",\"\",P326/$C$326)","v":""},null,{"$f":"IF($C$326=\"\",\"\",R326/$C$326)","v":""},null,{"$f":"IF($C$326=\"\",\"\",T326/$C$326)","v":""},null,{"$f":"IF($C$326=\"\",\"\",V326/$C$326)","v":""},null,{"$f":"IF($C$326=\"\",\"\",X326/$C$326)","v":""},null,{"$f":"IF($C$326=\"\",\"\",Z326/$C$326)","v":""},null,{"$f":"IF($C$326=\"\",\"\",AB326/$C$326)","v":""},null,{"$f":"IF($C$326=\"\",\"\",AD326/$C$326)","v":""},null,{"$f":"IF($C$326=\"\",\"\",AF326/$C$326)","v":""},null,{"$f":"IF($C$326=\"\",\"\",AH326/$C$326)","v":""},null,{"$f":"IF($C$326=\"\",\"\",AJ326/$C$326)","v":""},null,{"$f":"IF($C$326=\"\",\"\",AL326/$C$326)","v":""},null,{"$f":"IF($C$326=\"\",\"\",AN326/$C$326)","v":""},null,{"$f":"IF($C$326=\"\",\"\",AP326/$C$326)","v":""},null,{"$f":"IF($C$326=\"\",\"\",AR326/$C$326)","v":""},null,{"$f":"IF($C$326=\"\",\"\",AT326/$C$326)","v":""},null,{"$f":"IF($C$326=\"\",\"\",AV326/$C$326)","v":""},null,{"$f":"IF($C$326=\"\",\"\",AX326/$C$326)","v":""},null,{"$f":"IF($C$326=\"\",\"\",AZ326/$C$326)","v":""},null,{"$f":"IF($C$326=\"\",\"\",BB326/$C$326)","v":""},null,0]
["    12.1.10","    Incorporate & Edit Prior Project Special \n    Provisions",null,null,{"$f":"IF($C$327=\"\",\"\",F327/$C$327)","v":""},null,{"$f":"IF($C$327=\"\",\"\",H327/$C$327)","v":""},null,{"$f":"IF($C$327=\"\",\"\",J327/$C$327)","v":""},null,{"$f":"IF($C$327=\"\",\"\",L327/$C$327)","v":""},null,{"$f":"IF($C$327=\"\",\"\",N327/$C$327)","v":""},null,{"$f":"IF($C$327=\"\",\"\",P327/$C$327)","v":""},null,{"$f":"IF($C$327=\"\",\"\",R327/$C$327)","v":""},null,{"$f":"IF($C$327=\"\",\"\",T327/$C$327)","v":""},null,{"$f":"IF($C$327=\"\",\"\",V327/$C$327)","v":""},null,{"$f":"IF($C$327=\"\",\"\",X327/$C$327)","v":""},null,{"$f":"IF($C$327=\"\",\"\",Z327/$C$327)","v":""},null,{"$f":"IF($C$327=\"\",\"\",AB327/$C$327)","v":""},null,{"$f":"IF($C$327=\"\",\"\",AD327/$C$327)","v":""},null,{"$f":"IF($C$327=\"\",\"\",AF327/$C$327)","v":""},null,{"$f":"IF($C$327=\"\",\"\",AH327/$C$327)","v":""},null,{"$f":"IF($C$327=\"\",\"\",AJ327/$C$327)","v":""},null,{"$f":"IF($C$327=\"\",\"\",AL327/$C$327)","v":""},null,{"$f":"IF($C$327=\"\",\"\",AN327/$C$327)","v":""},null,{"$f":"IF($C$327=\"\",\"\",AP327/$C$327)","v":""},null,{"$f":"IF($C$327=\"\",\"\",AR327/$C$327)","v":""},null,{"$f":"IF($C$327=\"\",\"\",AT327/$C$327)","v":""},null,{"$f":"IF($C$327=\"\",\"\",AV327/$C$327)","v":""},null,{"$f":"IF($C$327=\"\",\"\",AX327/$C$327)","v":""},null,{"$f":"IF($C$327=\"\",\"\",AZ327/$C$327)","v":""},null,{"$f":"IF($C$327=\"\",\"\",BB327/$C$327)","v":""},null,0]
["    12.1.11","    Incorporate  ITSS Unit PSPs Version Updates",null,null,{"$f":"IF($C$328=\"\",\"\",F328/$C$328)","v":""},null,{"$f":"IF($C$328=\"\",\"\",H328/$C$328)","v":""},null,{"$f":"IF($C$328=\"\",\"\",J328/$C$328)","v":""},null,{"$f":"IF($C$328=\"\",\"\",L328/$C$328)","v":""},null,{"$f":"IF($C$328=\"\",\"\",N328/$C$328)","v":""},null,{"$f":"IF($C$328=\"\",\"\",P328/$C$328)","v":""},null,{"$f":"IF($C$328=\"\",\"\",R328/$C$328)","v":""},null,{"$f":"IF($C$328=\"\",\"\",T328/$C$328)","v":""},null,{"$f":"IF($C$328=\"\",\"\",V328/$C$328)","v":""},null,{"$f":"IF($C$328=\"\",\"\",X328/$C$328)","v":""},null,{"$f":"IF($C$328=\"\",\"\",Z328/$C$328)","v":""},null,{"$f":"IF($C$328=\"\",\"\",AB328/$C$328)","v":""},null,{"$f":"IF($C$328=\"\",\"\",AD328/$C$328)","v":""},null,{"$f":"IF($C$328=\"\",\"\",AF328/$C$328)","v":""},null,{"$f":"IF($C$328=\"\",\"\",AH328/$C$328)","v":""},null,{"$f":"IF($C$328=\"\",\"\",AJ328/$C$328)","v":""},null,{"$f":"IF($C$328=\"\",\"\",AL328/$C$328)","v":""},null,{"$f":"IF($C$328=\"\",\"\",AN328/$C$328)","v":""},null,{"$f":"IF($C$328=\"\",\"\",AP328/$C$328)","v":""},null,{"$f":"IF($C$328=\"\",\"\",AR328/$C$328)","v":""},null,{"$f":"IF($C$328=\"\",\"\",AT328/$C$328)","v":""},null,{"$f":"IF($C$328=\"\",\"\",AV328/$C$328)","v":""},null,{"$f":"IF($C$328=\"\",\"\",AX328/$C$328)","v":""},null,{"$f":"IF($C$328=\"\",\"\",AZ328/$C$328)","v":""},null,{"$f":"IF($C$328=\"\",\"\",BB328/$C$328)","v":""},null,0]
["    12.1.12","    Miscellaneous Project Special Provisions",null,null,{"$f":"IF($C$329=\"\",\"\",F329/$C$329)","v":""},null,{"$f":"IF($C$329=\"\",\"\",H329/$C$329)","v":""},null,{"$f":"IF($C$329=\"\",\"\",J329/$C$329)","v":""},null,{"$f":"IF($C$329=\"\",\"\",L329/$C$329)","v":""},null,{"$f":"IF($C$329=\"\",\"\",N329/$C$329)","v":""},null,{"$f":"IF($C$329=\"\",\"\",P329/$C$329)","v":""},null,{"$f":"IF($C$329=\"\",\"\",R329/$C$329)","v":""},null,{"$f":"IF($C$329=\"\",\"\",T329/$C$329)","v":""},null,{"$f":"IF($C$329=\"\",\"\",V329/$C$329)","v":""},null,{"$f":"IF($C$329=\"\",\"\",X329/$C$329)","v":""},null,{"$f":"IF($C$329=\"\",\"\",Z329/$C$329)","v":""},null,{"$f":"IF($C$329=\"\",\"\",AB329/$C$329)","v":""},null,{"$f":"IF($C$329=\"\",\"\",AD329/$C$329)","v":""},null,{"$f":"IF($C$329=\"\",\"\",AF329/$C$329)","v":""},null,{"$f":"IF($C$329=\"\",\"\",AH329/$C$329)","v":""},null,{"$f":"IF($C$329=\"\",\"\",AJ329/$C$329)","v":""},null,{"$f":"IF($C$329=\"\",\"\",AL329/$C$329)","v":""},null,{"$f":"IF($C$329=\"\",\"\",AN329/$C$329)","v":""},null,{"$f":"IF($C$329=\"\",\"\",AP329/$C$329)","v":""},null,{"$f":"IF($C$329=\"\",\"\",AR329/$C$329)","v":""},null,{"$f":"IF($C$329=\"\",\"\",AT329/$C$329)","v":""},null,{"$f":"IF($C$329=\"\",\"\",AV329/$C$329)","v":""},null,{"$f":"IF($C$329=\"\",\"\",AX329/$C$329)","v":""},null,{"$f":"IF($C$329=\"\",\"\",AZ329/$C$329)","v":""},null,{"$f":"IF($C$329=\"\",\"\",BB329/$C$329)","v":""},null,0]
["    12.1.13",null,null,null,{"$f":"IF($C$330=\"\",\"\",F330/$C$330)","v":""},null,{"$f":"IF($C$330=\"\",\"\",H330/$C$330)","v":""},null,{"$f":"IF($C$330=\"\",\"\",J330/$C$330)","v":""},null,{"$f":"IF($C$330=\"\",\"\",L330/$C$330)","v":""},null,{"$f":"IF($C$330=\"\",\"\",N330/$C$330)","v":""},null,{"$f":"IF($C$330=\"\",\"\",P330/$C$330)","v":""},null,{"$f":"IF($C$330=\"\",\"\",R330/$C$330)","v":""},null,{"$f":"IF($C$330=\"\",\"\",T330/$C$330)","v":""},null,{"$f":"IF($C$330=\"\",\"\",V330/$C$330)","v":""},null,{"$f":"IF($C$330=\"\",\"\",X330/$C$330)","v":""},null,{"$f":"IF($C$330=\"\",\"\",Z330/$C$330)","v":""},null,{"$f":"IF($C$330=\"\",\"\",AB330/$C$330)","v":""},null,{"$f":"IF($C$330=\"\",\"\",AD330/$C$330)","v":""},null,{"$f":"IF($C$330=\"\",\"\",AF330/$C$330)","v":""},null,{"$f":"IF($C$330=\"\",\"\",AH330/$C$330)","v":""},null,{"$f":"IF($C$330=\"\",\"\",AJ330/$C$330)","v":""},null,{"$f":"IF($C$330=\"\",\"\",AL330/$C$330)","v":""},null,{"$f":"IF($C$330=\"\",\"\",AN330/$C$330)","v":""},null,{"$f":"IF($C$330=\"\",\"\",AP330/$C$330)","v":""},null,{"$f":"IF($C$330=\"\",\"\",AR330/$C$330)","v":""},null,{"$f":"IF($C$330=\"\",\"\",AT330/$C$330)","v":""},null,{"$f":"IF($C$330=\"\",\"\",AV330/$C$330)","v":""},null,{"$f":"IF($C$330=\"\",\"\",AX330/$C$330)","v":""},null,{"$f":"IF($C$330=\"\",\"\",AZ330/$C$330)","v":""},null,{"$f":"IF($C$330=\"\",\"\",BB330/$C$330)","v":""},null,0]
["    12.1.14",null,null,null,{"$f":"IF($C$331=\"\",\"\",F331/$C$331)","v":""},null,{"$f":"IF($C$331=\"\",\"\",H331/$C$331)","v":""},null,{"$f":"IF($C$331=\"\",\"\",J331/$C$331)","v":""},null,{"$f":"IF($C$331=\"\",\"\",L331/$C$331)","v":""},null,{"$f":"IF($C$331=\"\",\"\",N331/$C$331)","v":""},null,{"$f":"IF($C$331=\"\",\"\",P331/$C$331)","v":""},null,{"$f":"IF($C$331=\"\",\"\",R331/$C$331)","v":""},null,{"$f":"IF($C$331=\"\",\"\",T331/$C$331)","v":""},null,{"$f":"IF($C$331=\"\",\"\",V331/$C$331)","v":""},null,{"$f":"IF($C$331=\"\",\"\",X331/$C$331)","v":""},null,{"$f":"IF($C$331=\"\",\"\",Z331/$C$331)","v":""},null,{"$f":"IF($C$331=\"\",\"\",AB331/$C$331)","v":""},null,{"$f":"IF($C$331=\"\",\"\",AD331/$C$331)","v":""},null,{"$f":"IF($C$331=\"\",\"\",AF331/$C$331)","v":""},null,{"$f":"IF($C$331=\"\",\"\",AH331/$C$331)","v":""},null,{"$f":"IF($C$331=\"\",\"\",AJ331/$C$331)","v":""},null,{"$f":"IF($C$331=\"\",\"\",AL331/$C$331)","v":""},null,{"$f":"IF($C$331=\"\",\"\",AN331/$C$331)","v":""},null,{"$f":"IF($C$331=\"\",\"\",AP331/$C$331)","v":""},null,{"$f":"IF($C$331=\"\",\"\",AR331/$C$331)","v":""},null,{"$f":"IF($C$331=\"\",\"\",AT331/$C$331)","v":""},null,{"$f":"IF($C$331=\"\",\"\",AV331/$C$331)","v":""},null,{"$f":"IF($C$331=\"\",\"\",AX331/$C$331)","v":""},null,{"$f":"IF($C$331=\"\",\"\",AZ331/$C$331)","v":""},null,{"$f":"IF($C$331=\"\",\"\",BB331/$C$331)","v":""},null,0]
["    12.1.15",null,null,null,{"$f":"IF($C$332=\"\",\"\",F332/$C$332)","v":""},null,{"$f":"IF($C$332=\"\",\"\",H332/$C$332)","v":""},null,{"$f":"IF($C$332=\"\",\"\",J332/$C$332)","v":""},null,{"$f":"IF($C$332=\"\",\"\",L332/$C$332)","v":""},null,{"$f":"IF($C$332=\"\",\"\",N332/$C$332)","v":""},null,{"$f":"IF($C$332=\"\",\"\",P332/$C$332)","v":""},null,{"$f":"IF($C$332=\"\",\"\",R332/$C$332)","v":""},null,{"$f":"IF($C$332=\"\",\"\",T332/$C$332)","v":""},null,{"$f":"IF($C$332=\"\",\"\",V332/$C$332)","v":""},null,{"$f":"IF($C$332=\"\",\"\",X332/$C$332)","v":""},null,{"$f":"IF($C$332=\"\",\"\",Z332/$C$332)","v":""},null,{"$f":"IF($C$332=\"\",\"\",AB332/$C$332)","v":""},null,{"$f":"IF($C$332=\"\",\"\",AD332/$C$332)","v":""},null,{"$f":"IF($C$332=\"\",\"\",AF332/$C$332)","v":""},null,{"$f":"IF($C$332=\"\",\"\",AH332/$C$332)","v":""},null,{"$f":"IF($C$332=\"\",\"\",AJ332/$C$332)","v":""},null,{"$f":"IF($C$332=\"\",\"\",AL332/$C$332)","v":""},null,{"$f":"IF($C$332=\"\",\"\",AN332/$C$332)","v":""},null,{"$f":"IF($C$332=\"\",\"\",AP332/$C$332)","v":""},null,{"$f":"IF($C$332=\"\",\"\",AR332/$C$332)","v":""},null,{"$f":"IF($C$332=\"\",\"\",AT332/$C$332)","v":""},null,{"$f":"IF($C$332=\"\",\"\",AV332/$C$332)","v":""},null,{"$f":"IF($C$332=\"\",\"\",AX332/$C$332)","v":""},null,{"$f":"IF($C$332=\"\",\"\",AZ332/$C$332)","v":""},null,{"$f":"IF($C$332=\"\",\"\",BB332/$C$332)","v":""},null,0]
[12.2,"Draft Final Project Special Provisions",null,null,{"$f":"IF($C$333=\"\",\"\",F333/$C$333)","v":""},null,{"$f":"IF($C$333=\"\",\"\",H333/$C$333)","v":""},null,{"$f":"IF($C$333=\"\",\"\",J333/$C$333)","v":""},null,{"$f":"IF($C$333=\"\",\"\",L333/$C$333)","v":""},null,{"$f":"IF($C$333=\"\",\"\",N333/$C$333)","v":""},null,{"$f":"IF($C$333=\"\",\"\",P333/$C$333)","v":""},null,{"$f":"IF($C$333=\"\",\"\",R333/$C$333)","v":""},null,{"$f":"IF($C$333=\"\",\"\",T333/$C$333)","v":""},null,{"$f":"IF($C$333=\"\",\"\",V333/$C$333)","v":""},null,{"$f":"IF($C$333=\"\",\"\",X333/$C$333)","v":""},null,{"$f":"IF($C$333=\"\",\"\",Z333/$C$333)","v":""},null,{"$f":"IF($C$333=\"\",\"\",AB333/$C$333)","v":""},null,{"$f":"IF($C$333=\"\",\"\",AD333/$C$333)","v":""},null,{"$f":"IF($C$333=\"\",\"\",AF333/$C$333)","v":""},null,{"$f":"IF($C$333=\"\",\"\",AH333/$C$333)","v":""},null,{"$f":"IF($C$333=\"\",\"\",AJ333/$C$333)","v":""},null,{"$f":"IF($C$333=\"\",\"\",AL333/$C$333)","v":""},null,{"$f":"IF($C$333=\"\",\"\",AN333/$C$333)","v":""},null,{"$f":"IF($C$333=\"\",\"\",AP333/$C$333)","v":""},null,{"$f":"IF($C$333=\"\",\"\",AR333/$C$333)","v":""},null,{"$f":"IF($C$333=\"\",\"\",AT333/$C$333)","v":""},null,{"$f":"IF($C$333=\"\",\"\",AV333/$C$333)","v":""},null,{"$f":"IF($C$333=\"\",\"\",AX333/$C$333)","v":""},null,{"$f":"IF($C$333=\"\",\"\",AZ333/$C$333)","v":""},null,{"$f":"IF($C$333=\"\",\"\",BB333/$C$333)","v":""},null,0]
[12.3,"Final Project Special Provisions",null,null,{"$f":"IF($C$334=\"\",\"\",F334/$C$334)","v":""},null,{"$f":"IF($C$334=\"\",\"\",H334/$C$334)","v":""},null,{"$f":"IF($C$334=\"\",\"\",J334/$C$334)","v":""},null,{"$f":"IF($C$334=\"\",\"\",L334/$C$334)","v":""},null,{"$f":"IF($C$334=\"\",\"\",N334/$C$334)","v":""},null,{"$f":"IF($C$334=\"\",\"\",P334/$C$334)","v":""},null,{"$f":"IF($C$334=\"\",\"\",R334/$C$334)","v":""},null,{"$f":"IF($C$334=\"\",\"\",T334/$C$334)","v":""},null,{"$f":"IF($C$334=\"\",\"\",V334/$C$334)","v":""},null,{"$f":"IF($C$334=\"\",\"\",X334/$C$334)","v":""},null,{"$f":"IF($C$334=\"\",\"\",Z334/$C$334)","v":""},null,{"$f":"IF($C$334=\"\",\"\",AB334/$C$334)","v":""},null,{"$f":"IF($C$334=\"\",\"\",AD334/$C$334)","v":""},null,{"$f":"IF($C$334=\"\",\"\",AF334/$C$334)","v":""},null,{"$f":"IF($C$334=\"\",\"\",AH334/$C$334)","v":""},null,{"$f":"IF($C$334=\"\",\"\",AJ334/$C$334)","v":""},null,{"$f":"IF($C$334=\"\",\"\",AL334/$C$334)","v":""},null,{"$f":"IF($C$334=\"\",\"\",AN334/$C$334)","v":""},null,{"$f":"IF($C$334=\"\",\"\",AP334/$C$334)","v":""},null,{"$f":"IF($C$334=\"\",\"\",AR334/$C$334)","v":""},null,{"$f":"IF($C$334=\"\",\"\",AT334/$C$334)","v":""},null,{"$f":"IF($C$334=\"\",\"\",AV334/$C$334)","v":""},null,{"$f":"IF($C$334=\"\",\"\",AX334/$C$334)","v":""},null,{"$f":"IF($C$334=\"\",\"\",AZ334/$C$334)","v":""},null,{"$f":"IF($C$334=\"\",\"\",BB334/$C$334)","v":""},null,0]
[12.4,"Quality Reviews ",null,null,{"$f":"IF($C$335=\"\",\"\",F335/$C$335)","v":""},null,{"$f":"IF($C$335=\"\",\"\",H335/$C$335)","v":""},null,{"$f":"IF($C$335=\"\",\"\",J335/$C$335)","v":""},null,{"$f":"IF($C$335=\"\",\"\",L335/$C$335)","v":""},null,{"$f":"IF($C$335=\"\",\"\",N335/$C$335)","v":""},null,{"$f":"IF($C$335=\"\",\"\",P335/$C$335)","v":""},null,{"$f":"IF($C$335=\"\",\"\",R335/$C$335)","v":""},null,{"$f":"IF($C$335=\"\",\"\",T335/$C$335)","v":""},null,{"$f":"IF($C$335=\"\",\"\",V335/$C$335)","v":""},null,{"$f":"IF($C$335=\"\",\"\",X335/$C$335)","v":""},null,{"$f":"IF($C$335=\"\",\"\",Z335/$C$335)","v":""},null,{"$f":"IF($C$335=\"\",\"\",AB335/$C$335)","v":""},null,{"$f":"IF($C$335=\"\",\"\",AD335/$C$335)","v":""},null,{"$f":"IF($C$335=\"\",\"\",AF335/$C$335)","v":""},null,{"$f":"IF($C$335=\"\",\"\",AH335/$C$335)","v":""},null,{"$f":"IF($C$335=\"\",\"\",AJ335/$C$335)","v":""},null,{"$f":"IF($C$335=\"\",\"\",AL335/$C$335)","v":""},null,{"$f":"IF($C$335=\"\",\"\",AN335/$C$335)","v":""},null,{"$f":"IF($C$335=\"\",\"\",AP335/$C$335)","v":""},null,{"$f":"IF($C$335=\"\",\"\",AR335/$C$335)","v":""},null,{"$f":"IF($C$335=\"\",\"\",AT335/$C$335)","v":""},null,{"$f":"IF($C$335=\"\",\"\",AV335/$C$335)","v":""},null,{"$f":"IF($C$335=\"\",\"\",AX335/$C$335)","v":""},null,{"$f":"IF($C$335=\"\",\"\",AZ335/$C$335)","v":""},null,{"$f":"IF($C$335=\"\",\"\",BB335/$C$335)","v":""},null,0]
[null,null,null,null,{"$f":"IF($C$336=\"\",\"\",F336/$C$336)","v":""},null,{"$f":"IF($C$336=\"\",\"\",H336/$C$336)","v":""},null,{"$f":"IF($C$336=\"\",\"\",J336/$C$336)","v":""},null,{"$f":"IF($C$336=\"\",\"\",L336/$C$336)","v":""},null,{"$f":"IF($C$336=\"\",\"\",N336/$C$336)","v":""},null,{"$f":"IF($C$336=\"\",\"\",P336/$C$336)","v":""},null,{"$f":"IF($C$336=\"\",\"\",R336/$C$336)","v":""},null,{"$f":"IF($C$336=\"\",\"\",T336/$C$336)","v":""},null,{"$f":"IF($C$336=\"\",\"\",V336/$C$336)","v":""},null,{"$f":"IF($C$336=\"\",\"\",X336/$C$336)","v":""},null,{"$f":"IF($C$336=\"\",\"\",Z336/$C$336)","v":""},null,{"$f":"IF($C$336=\"\",\"\",AB336/$C$336)","v":""},null,{"$f":"IF($C$336=\"\",\"\",AD336/$C$336)","v":""},null,{"$f":"IF($C$336=\"\",\"\",AF336/$C$336)","v":""},null,{"$f":"IF($C$336=\"\",\"\",AH336/$C$336)","v":""},null,{"$f":"IF($C$336=\"\",\"\",AJ336/$C$336)","v":""},null,{"$f":"IF($C$336=\"\",\"\",AL336/$C$336)","v":""},null,{"$f":"IF($C$336=\"\",\"\",AN336/$C$336)","v":""},null,{"$f":"IF($C$336=\"\",\"\",AP336/$C$336)","v":""},null,{"$f":"IF($C$336=\"\",\"\",AR336/$C$336)","v":""},null,{"$f":"IF($C$336=\"\",\"\",AT336/$C$336)","v":""},null,{"$f":"IF($C$336=\"\",\"\",AV336/$C$336)","v":""},null,{"$f":"IF($C$336=\"\",\"\",AX336/$C$336)","v":""},null,{"$f":"IF($C$336=\"\",\"\",AZ336/$C$336)","v":""},null,{"$f":"IF($C$336=\"\",\"\",BB336/$C$336)","v":""},null,0]
[null,null,null,null,{"$f":"IF($C$337=\"\",\"\",F337/$C$337)","v":""},null,{"$f":"IF($C$337=\"\",\"\",H337/$C$337)","v":""},null,{"$f":"IF($C$337=\"\",\"\",J337/$C$337)","v":""},null,{"$f":"IF($C$337=\"\",\"\",L337/$C$337)","v":""},null,{"$f":"IF($C$337=\"\",\"\",N337/$C$337)","v":""},null,{"$f":"IF($C$337=\"\",\"\",P337/$C$337)","v":""},null,{"$f":"IF($C$337=\"\",\"\",R337/$C$337)","v":""},null,{"$f":"IF($C$337=\"\",\"\",T337/$C$337)","v":""},null,{"$f":"IF($C$337=\"\",\"\",V337/$C$337)","v":""},null,{"$f":"IF($C$337=\"\",\"\",X337/$C$337)","v":""},null,{"$f":"IF($C$337=\"\",\"\",Z337/$C$337)","v":""},null,{"$f":"IF($C$337=\"\",\"\",AB337/$C$337)","v":""},null,{"$f":"IF($C$337=\"\",\"\",AD337/$C$337)","v":""},null,{"$f":"IF($C$337=\"\",\"\",AF337/$C$337)","v":""},null,{"$f":"IF($C$337=\"\",\"\",AH337/$C$337)","v":""},null,{"$f":"IF($C$337=\"\",\"\",AJ337/$C$337)","v":""},null,{"$f":"IF($C$337=\"\",\"\",AL337/$C$337)","v":""},null,{"$f":"IF($C$337=\"\",\"\",AN337/$C$337)","v":""},null,{"$f":"IF($C$337=\"\",\"\",AP337/$C$337)","v":""},null,{"$f":"IF($C$337=\"\",\"\",AR337/$C$337)","v":""},null,{"$f":"IF($C$337=\"\",\"\",AT337/$C$337)","v":""},null,{"$f":"IF($C$337=\"\",\"\",AV337/$C$337)","v":""},null,{"$f":"IF($C$337=\"\",\"\",AX337/$C$337)","v":""},null,{"$f":"IF($C$337=\"\",\"\",AZ337/$C$337)","v":""},null,{"$f":"IF($C$337=\"\",\"\",BB337/$C$337)","v":""},null,0]
[null,null,null,null,{"$f":"IF($C$338=\"\",\"\",F338/$C$338)","v":""},null,{"$f":"IF($C$338=\"\",\"\",H338/$C$338)","v":""},null,{"$f":"IF($C$338=\"\",\"\",J338/$C$338)","v":""},null,{"$f":"IF($C$338=\"\",\"\",L338/$C$338)","v":""},null,{"$f":"IF($C$338=\"\",\"\",N338/$C$338)","v":""},null,{"$f":"IF($C$338=\"\",\"\",P338/$C$338)","v":""},null,{"$f":"IF($C$338=\"\",\"\",R338/$C$338)","v":""},null,{"$f":"IF($C$338=\"\",\"\",T338/$C$338)","v":""},null,{"$f":"IF($C$338=\"\",\"\",V338/$C$338)","v":""},null,{"$f":"IF($C$338=\"\",\"\",X338/$C$338)","v":""},null,{"$f":"IF($C$338=\"\",\"\",Z338/$C$338)","v":""},null,{"$f":"IF($C$338=\"\",\"\",AB338/$C$338)","v":""},null,{"$f":"IF($C$338=\"\",\"\",AD338/$C$338)","v":""},null,{"$f":"IF($C$338=\"\",\"\",AF338/$C$338)","v":""},null,{"$f":"IF($C$338=\"\",\"\",AH338/$C$338)","v":""},null,{"$f":"IF($C$338=\"\",\"\",AJ338/$C$338)","v":""},null,{"$f":"IF($C$338=\"\",\"\",AL338/$C$338)","v":""},null,{"$f":"IF($C$338=\"\",\"\",AN338/$C$338)","v":""},null,{"$f":"IF($C$338=\"\",\"\",AP338/$C$338)","v":""},null,{"$f":"IF($C$338=\"\",\"\",AR338/$C$338)","v":""},null,{"$f":"IF($C$338=\"\",\"\",AT338/$C$338)","v":""},null,{"$f":"IF($C$338=\"\",\"\",AV338/$C$338)","v":""},null,{"$f":"IF($C$338=\"\",\"\",AX338/$C$338)","v":""},null,{"$f":"IF($C$338=\"\",\"\",AZ338/$C$338)","v":""},null,{"$f":"IF($C$338=\"\",\"\",BB338/$C$338)","v":""},null,0]
[null,null,null,null,{"$f":"IF($C$339=\"\",\"\",F339/$C$339)","v":""},null,{"$f":"IF($C$339=\"\",\"\",H339/$C$339)","v":""},null,{"$f":"IF($C$339=\"\",\"\",J339/$C$339)","v":""},null,{"$f":"IF($C$339=\"\",\"\",L339/$C$339)","v":""},null,{"$f":"IF($C$339=\"\",\"\",N339/$C$339)","v":""},null,{"$f":"IF($C$339=\"\",\"\",P339/$C$339)","v":""},null,{"$f":"IF($C$339=\"\",\"\",R339/$C$339)","v":""},null,{"$f":"IF($C$339=\"\",\"\",T339/$C$339)","v":""},null,{"$f":"IF($C$339=\"\",\"\",V339/$C$339)","v":""},null,{"$f":"IF($C$339=\"\",\"\",X339/$C$339)","v":""},null,{"$f":"IF($C$339=\"\",\"\",Z339/$C$339)","v":""},null,{"$f":"IF($C$339=\"\",\"\",AB339/$C$339)","v":""},null,{"$f":"IF($C$339=\"\",\"\",AD339/$C$339)","v":""},null,{"$f":"IF($C$339=\"\",\"\",AF339/$C$339)","v":""},null,{"$f":"IF($C$339=\"\",\"\",AH339/$C$339)","v":""},null,{"$f":"IF($C$339=\"\",\"\",AJ339/$C$339)","v":""},null,{"$f":"IF($C$339=\"\",\"\",AL339/$C$339)","v":""},null,{"$f":"IF($C$339=\"\",\"\",AN339/$C$339)","v":""},null,{"$f":"IF($C$339=\"\",\"\",AP339/$C$339)","v":""},null,{"$f":"IF($C$339=\"\",\"\",AR339/$C$339)","v":""},null,{"$f":"IF($C$339=\"\",\"\",AT339/$C$339)","v":""},null,{"$f":"IF($C$339=\"\",\"\",AV339/$C$339)","v":""},null,{"$f":"IF($C$339=\"\",\"\",AX339/$C$339)","v":""},null,{"$f":"IF($C$339=\"\",\"\",AZ339/$C$339)","v":""},null,{"$f":"IF($C$339=\"\",\"\",BB339/$C$339)","v":""},null,0]
[null,null,null,null,{"$f":"IF($C$340=\"\",\"\",F340/$C$340)","v":""},null,{"$f":"IF($C$340=\"\",\"\",H340/$C$340)","v":""},null,{"$f":"IF($C$340=\"\",\"\",J340/$C$340)","v":""},null,{"$f":"IF($C$340=\"\",\"\",L340/$C$340)","v":""},null,{"$f":"IF($C$340=\"\",\"\",N340/$C$340)","v":""},null,{"$f":"IF($C$340=\"\",\"\",P340/$C$340)","v":""},null,{"$f":"IF($C$340=\"\",\"\",R340/$C$340)","v":""},null,{"$f":"IF($C$340=\"\",\"\",T340/$C$340)","v":""},null,{"$f":"IF($C$340=\"\",\"\",V340/$C$340)","v":""},null,{"$f":"IF($C$340=\"\",\"\",X340/$C$340)","v":""},null,{"$f":"IF($C$340=\"\",\"\",Z340/$C$340)","v":""},null,{"$f":"IF($C$340=\"\",\"\",AB340/$C$340)","v":""},null,{"$f":"IF($C$340=\"\",\"\",AD340/$C$340)","v":""},null,{"$f":"IF($C$340=\"\",\"\",AF340/$C$340)","v":""},null,{"$f":"IF($C$340=\"\",\"\",AH340/$C$340)","v":""},null,{"$f":"IF($C$340=\"\",\"\",AJ340/$C$340)","v":""},null,{"$f":"IF($C$340=\"\",\"\",AL340/$C$340)","v":""},null,{"$f":"IF($C$340=\"\",\"\",AN340/$C$340)","v":""},null,{"$f":"IF($C$340=\"\",\"\",AP340/$C$340)","v":""},null,{"$f":"IF($C$340=\"\",\"\",AR340/$C$340)","v":""},null,{"$f":"IF($C$340=\"\",\"\",AT340/$C$340)","v":""},null,{"$f":"IF($C$340=\"\",\"\",AV340/$C$340)","v":""},null,{"$f":"IF($C$340=\"\",\"\",AX340/$C$340)","v":""},null,{"$f":"IF($C$340=\"\",\"\",AZ340/$C$340)","v":""},null,{"$f":"IF($C$340=\"\",\"\",BB340/$C$340)","v":""},null,0]
[null,null,null,null,{"$f":"IF($C$341=\"\",\"\",F341/$C$341)","v":""},null,{"$f":"IF($C$341=\"\",\"\",H341/$C$341)","v":""},null,{"$f":"IF($C$341=\"\",\"\",J341/$C$341)","v":""},null,{"$f":"IF($C$341=\"\",\"\",L341/$C$341)","v":""},null,{"$f":"IF($C$341=\"\",\"\",N341/$C$341)","v":""},null,{"$f":"IF($C$341=\"\",\"\",P341/$C$341)","v":""},null,{"$f":"IF($C$341=\"\",\"\",R341/$C$341)","v":""},null,{"$f":"IF($C$341=\"\",\"\",T341/$C$341)","v":""},null,{"$f":"IF($C$341=\"\",\"\",V341/$C$341)","v":""},null,{"$f":"IF($C$341=\"\",\"\",X341/$C$341)","v":""},null,{"$f":"IF($C$341=\"\",\"\",Z341/$C$341)","v":""},null,{"$f":"IF($C$341=\"\",\"\",AB341/$C$341)","v":""},null,{"$f":"IF($C$341=\"\",\"\",AD341/$C$341)","v":""},null,{"$f":"IF($C$341=\"\",\"\",AF341/$C$341)","v":""},null,{"$f":"IF($C$341=\"\",\"\",AH341/$C$341)","v":""},null,{"$f":"IF($C$341=\"\",\"\",AJ341/$C$341)","v":""},null,{"$f":"IF($C$341=\"\",\"\",AL341/$C$341)","v":""},null,{"$f":"IF($C$341=\"\",\"\",AN341/$C$341)","v":""},null,{"$f":"IF($C$341=\"\",\"\",AP341/$C$341)","v":""},null,{"$f":"IF($C$341=\"\",\"\",AR341/$C$341)","v":""},null,{"$f":"IF($C$341=\"\",\"\",AT341/$C$341)","v":""},null,{"$f":"IF($C$341=\"\",\"\",AV341/$C$341)","v":""},null,{"$f":"IF($C$341=\"\",\"\",AX341/$C$341)","v":""},null,{"$f":"IF($C$341=\"\",\"\",AZ341/$C$341)","v":""},null,{"$f":"IF($C$341=\"\",\"\",BB341/$C$341)","v":""},null,0]
[null,null,null,null,{"$f":"IF($C$342=\"\",\"\",F342/$C$342)","v":""},null,{"$f":"IF($C$342=\"\",\"\",H342/$C$342)","v":""},null,{"$f":"IF($C$342=\"\",\"\",J342/$C$342)","v":""},null,{"$f":"IF($C$342=\"\",\"\",L342/$C$342)","v":""},null,{"$f":"IF($C$342=\"\",\"\",N342/$C$342)","v":""},null,{"$f":"IF($C$342=\"\",\"\",P342/$C$342)","v":""},null,{"$f":"IF($C$342=\"\",\"\",R342/$C$342)","v":""},null,{"$f":"IF($C$342=\"\",\"\",T342/$C$342)","v":""},null,{"$f":"IF($C$342=\"\",\"\",V342/$C$342)","v":""},null,{"$f":"IF($C$342=\"\",\"\",X342/$C$342)","v":""},null,{"$f":"IF($C$342=\"\",\"\",Z342/$C$342)","v":""},null,{"$f":"IF($C$342=\"\",\"\",AB342/$C$342)","v":""},null,{"$f":"IF($C$342=\"\",\"\",AD342/$C$342)","v":""},null,{"$f":"IF($C$342=\"\",\"\",AF342/$C$342)","v":""},null,{"$f":"IF($C$342=\"\",\"\",AH342/$C$342)","v":""},null,{"$f":"IF($C$342=\"\",\"\",AJ342/$C$342)","v":""},null,{"$f":"IF($C$342=\"\",\"\",AL342/$C$342)","v":""},null,{"$f":"IF($C$342=\"\",\"\",AN342/$C$342)","v":""},null,{"$f":"IF($C$342=\"\",\"\",AP342/$C$342)","v":""},null,{"$f":"IF($C$342=\"\",\"\",AR342/$C$342)","v":""},null,{"$f":"IF($C$342=\"\",\"\",AT342/$C$342)","v":""},null,{"$f":"IF($C$342=\"\",\"\",AV342/$C$342)","v":""},null,{"$f":"IF($C$342=\"\",\"\",AX342/$C$342)","v":""},null,{"$f":"IF($C$342=\"\",\"\",AZ342/$C$342)","v":""},null,{"$f":"IF($C$342=\"\",\"\",BB342/$C$342)","v":""},null,{"$f":"SUM(BB342,AZ342,AX342,AV342,AT342,AR342,AP342,AN342,AL342,AJ342,AH342,AF342,AD342,AB342,Z342,X342,V342,T342,R342,P342,N342,L342,J342,H342,F342)","v":0}]
["TOTAL HOURS",null,null,null,null,{"$f":"SUM(F317:F342)","v":0},null,{"$f":"SUM(H317:H342)","v":0},null,{"$f":"SUM(J317:J342)","v":0},null,{"$f":"SUM(L317:L342)","v":0},null,{"$f":"SUM(N317:N342)","v":0},null,{"$f":"SUM(P317:P342)","v":0},null,{"$f":"SUM(R317:R342)","v":0},null,{"$f":"SUM(T317:T342)","v":0},null,{"$f":"SUM(V317:V342)","v":0},null,{"$f":"SUM(X317:X342)","v":0},null,{"$f":"SUM(Z317:Z342)","v":0},null,{"$f":"SUM(AB317:AB342)","v":0},null,{"$f":"SUM(AD317:AD342)","v":0},null,{"$f":"SUM(AF317:AF342)","v":0},null,{"$f":"SUM(AH317:AH342)","v":0},null,{"$f":"SUM(AJ317:AJ342)","v":0},null,{"$f":"SUM(AL317:AL342)","v":0},null,{"$f":"SUM(AN317:AN342)","v":0},null,{"$f":"SUM(AP317:AP342)","v":0},null,{"$f":"SUM(AR317:AR342)","v":0},null,{"$f":"SUM(AT317:AT342)","v":0},null,{"$f":"SUM(AV317:AV342)","v":0},null,{"$f":"SUM(AX317:AX342)","v":0},null,{"$f":"SUM(AZ317:AZ342)","v":0},null,{"$f":"SUM(BB317:BB342)","v":0},{"$f":"SUM(E343:BB343)","v":0}]
["TOTAL WORKDAYS",null,null,null,null,{"$f":"F343/8","v":0},null,{"$f":"H343/8","v":0},null,{"$f":"J343/8","v":0},null,{"$f":"L343/8","v":0},null,{"$f":"N343/8","v":0},null,{"$f":"P343/8","v":0},null,{"$f":"R343/8","v":0},null,{"$f":"T343/8","v":0},null,{"$f":"V343/8","v":0},null,{"$f":"X343/8","v":0},null,{"$f":"Z343/8","v":0},null,{"$f":"AB343/8","v":0},null,{"$f":"AD343/8","v":0},null,0,null,{"$f":"AH343/8","v":0},null,0,null,{"$f":"AL343/8","v":0},null,0,null,{"$f":"AP343/8","v":0},null,0,null,{"$f":"AT343/8","v":0},null,{"$f":"AV343/8","v":0},null,{"$f":"AX343/8","v":0},null,{"$f":"AZ343/8","v":0},null,{"$f":"BB343/8","v":0},{"$f":"SUM(E344:BB344)","v":0}]
["TOTAL RAW LABOR",null,null,null,null,{"$f":"$E$13*F343","v":0},null,{"$f":"$G$13*H343","v":0},null,{"$f":"$I$13*J343","v":0},null,{"$f":"$K$13*L343","v":0},null,{"$f":"$M$13*N343","v":0},null,{"$f":"$O$13*P343","v":0},null,{"$f":"$Q$13*R343","v":0},null,{"$f":"$S$13*T343","v":0},null,{"$f":"$U$13*V343","v":0},null,{"$f":"$W$13*X343","v":0},null,{"$f":"$Y$13*Z343","v":0},null,{"$f":"$AA$13*AB343","v":0},null,{"$f":"$AC$13*AD343","v":0},null,{"$f":"$AC$13*AF343","v":0},null,{"$f":"$AC$13*AH343","v":0},null,{"$f":"$AC$13*AJ343","v":0},null,{"$f":"$AC$13*AL343","v":0},null,{"$f":"$AC$13*AN343","v":0},null,{"$f":"$AC$13*AP343","v":0},null,{"$f":"$AC$13*AR343","v":0},null,{"$f":"$AC$13*AT343","v":0},null,{"$f":"$AC$13*AV343","v":0},null,{"$f":"$AC$13*AX343","v":0},null,{"$f":"$AC$13*AZ343","v":0},null,{"$f":"$AC$13*BB343","v":0},{"$f":"SUM(E345:BB345)","v":0}]
["Task 13.0     ","ENGINEER'S OPINION OF PROBABLE COST"]
[13.1,"Preliminary Engineer's Opinion of Probable Construction Cost",null,null,{"$f":"IF($C$347=\"\",\"\",F347/$C$347)","v":""},null,{"$f":"IF($C$347=\"\",\"\",H347/$C$347)","v":""},null,{"$f":"IF($C$347=\"\",\"\",J347/$C$347)","v":""},null,{"$f":"IF($C$347=\"\",\"\",L347/$C$347)","v":""},null,{"$f":"IF($C$347=\"\",\"\",N347/$C$347)","v":""},null,{"$f":"IF($C$347=\"\",\"\",P347/$C$347)","v":""},null,{"$f":"IF($C$347=\"\",\"\",R347/$C$347)","v":""},null,{"$f":"IF($C$347=\"\",\"\",T347/$C$347)","v":""},null,{"$f":"IF($C$347=\"\",\"\",V347/$C$347)","v":""},null,{"$f":"IF($C$347=\"\",\"\",X347/$C$347)","v":""},null,{"$f":"IF($C$347=\"\",\"\",Z347/$C$347)","v":""},null,{"$f":"IF($C$347=\"\",\"\",AB347/$C$347)","v":""},null,{"$f":"IF($C$347=\"\",\"\",AD347/$C$347)","v":""},null,{"$f":"IF($C$347=\"\",\"\",AF347/$C$347)","v":""},null,{"$f":"IF($C$347=\"\",\"\",AH347/$C$347)","v":""},null,{"$f":"IF($C$347=\"\",\"\",AJ347/$C$347)","v":""},null,{"$f":"IF($C$347=\"\",\"\",AL347/$C$347)","v":""},null,{"$f":"IF($C$347=\"\",\"\",AN347/$C$347)","v":""},null,{"$f":"IF($C$347=\"\",\"\",AP347/$C$347)","v":""},null,{"$f":"IF($C$347=\"\",\"\",AR347/$C$347)","v":""},null,{"$f":"IF($C$347=\"\",\"\",AT347/$C$347)","v":""},null,{"$f":"IF($C$347=\"\",\"\",AV347/$C$347)","v":""},null,{"$f":"IF($C$347=\"\",\"\",AX347/$C$347)","v":""},null,{"$f":"IF($C$347=\"\",\"\",AZ347/$C$347)","v":""},null,{"$f":"IF($C$347=\"\",\"\",BB347/$C$347)","v":""},null,{"$f":"SUM(BB347,AZ347,AX347,AV347,AT347,AR347,AP347,AN347,AL347,AJ347,AH347,AF347,AD347,AB347,Z347,X347,V347,T347,R347,P347,N347,L347,J347,H347,F347)","v":0}]
[13.2,"Draft Final Engineer's Opinion of Probable Construction Cost",null,null,{"$f":"IF($C$348=\"\",\"\",F348/$C$348)","v":""},null,{"$f":"IF($C$348=\"\",\"\",H348/$C$348)","v":""},null,{"$f":"IF($C$348=\"\",\"\",J348/$C$348)","v":""},null,{"$f":"IF($C$348=\"\",\"\",L348/$C$348)","v":""},null,{"$f":"IF($C$348=\"\",\"\",N348/$C$348)","v":""},null,{"$f":"IF($C$348=\"\",\"\",P348/$C$348)","v":""},null,{"$f":"IF($C$348=\"\",\"\",R348/$C$348)","v":""},null,{"$f":"IF($C$348=\"\",\"\",T348/$C$348)","v":""},null,{"$f":"IF($C$348=\"\",\"\",V348/$C$348)","v":""},null,{"$f":"IF($C$348=\"\",\"\",X348/$C$348)","v":""},null,{"$f":"IF($C$348=\"\",\"\",Z348/$C$348)","v":""},null,{"$f":"IF($C$348=\"\",\"\",AB348/$C$348)","v":""},null,{"$f":"IF($C$348=\"\",\"\",AD348/$C$348)","v":""},null,{"$f":"IF($C$348=\"\",\"\",AF348/$C$348)","v":""},null,{"$f":"IF($C$348=\"\",\"\",AH348/$C$348)","v":""},null,{"$f":"IF($C$348=\"\",\"\",AJ348/$C$348)","v":""},null,{"$f":"IF($C$348=\"\",\"\",AL348/$C$348)","v":""},null,{"$f":"IF($C$348=\"\",\"\",AN348/$C$348)","v":""},null,{"$f":"IF($C$348=\"\",\"\",AP348/$C$348)","v":""},null,{"$f":"IF($C$348=\"\",\"\",AR348/$C$348)","v":""},null,{"$f":"IF($C$348=\"\",\"\",AT348/$C$348)","v":""},null,{"$f":"IF($C$348=\"\",\"\",AV348/$C$348)","v":""},null,{"$f":"IF($C$348=\"\",\"\",AX348/$C$348)","v":""},null,{"$f":"IF($C$348=\"\",\"\",AZ348/$C$348)","v":""},null,{"$f":"IF($C$348=\"\",\"\",BB348/$C$348)","v":""},null,0]
[13.3,"Final Engineer's Opinion of Probable Construction Cost",null,null,{"$f":"IF($C$349=\"\",\"\",F349/$C$349)","v":""},null,{"$f":"IF($C$349=\"\",\"\",H349/$C$349)","v":""},null,{"$f":"IF($C$349=\"\",\"\",J349/$C$349)","v":""},null,{"$f":"IF($C$349=\"\",\"\",L349/$C$349)","v":""},null,{"$f":"IF($C$349=\"\",\"\",N349/$C$349)","v":""},null,{"$f":"IF($C$349=\"\",\"\",P349/$C$349)","v":""},null,{"$f":"IF($C$349=\"\",\"\",R349/$C$349)","v":""},null,{"$f":"IF($C$349=\"\",\"\",T349/$C$349)","v":""},null,{"$f":"IF($C$349=\"\",\"\",V349/$C$349)","v":""},null,{"$f":"IF($C$349=\"\",\"\",X349/$C$349)","v":""},null,{"$f":"IF($C$349=\"\",\"\",Z349/$C$349)","v":""},null,{"$f":"IF($C$349=\"\",\"\",AB349/$C$349)","v":""},null,{"$f":"IF($C$349=\"\",\"\",AD349/$C$349)","v":""},null,{"$f":"IF($C$349=\"\",\"\",AF349/$C$349)","v":""},null,{"$f":"IF($C$349=\"\",\"\",AH349/$C$349)","v":""},null,{"$f":"IF($C$349=\"\",\"\",AJ349/$C$349)","v":""},null,{"$f":"IF($C$349=\"\",\"\",AL349/$C$349)","v":""},null,{"$f":"IF($C$349=\"\",\"\",AN349/$C$349)","v":""},null,{"$f":"IF($C$349=\"\",\"\",AP349/$C$349)","v":""},null,{"$f":"IF($C$349=\"\",\"\",AR349/$C$349)","v":""},null,{"$f":"IF($C$349=\"\",\"\",AT349/$C$349)","v":""},null,{"$f":"IF($C$349=\"\",\"\",AV349/$C$349)","v":""},null,{"$f":"IF($C$349=\"\",\"\",AX349/$C$349)","v":""},null,{"$f":"IF($C$349=\"\",\"\",AZ349/$C$349)","v":""},null,{"$f":"IF($C$349=\"\",\"\",BB349/$C$349)","v":""},null,0]
[null,null,null,null,{"$f":"IF($C$350=\"\",\"\",F350/$C$350)","v":""},null,{"$f":"IF($C$350=\"\",\"\",H350/$C$350)","v":""},null,{"$f":"IF($C$350=\"\",\"\",J350/$C$350)","v":""},null,{"$f":"IF($C$350=\"\",\"\",L350/$C$350)","v":""},null,{"$f":"IF($C$350=\"\",\"\",N350/$C$350)","v":""},null,{"$f":"IF($C$350=\"\",\"\",P350/$C$350)","v":""},null,{"$f":"IF($C$350=\"\",\"\",R350/$C$350)","v":""},null,{"$f":"IF($C$350=\"\",\"\",T350/$C$350)","v":""},null,{"$f":"IF($C$350=\"\",\"\",V350/$C$350)","v":""},null,{"$f":"IF($C$350=\"\",\"\",X350/$C$350)","v":""},null,{"$f":"IF($C$350=\"\",\"\",Z350/$C$350)","v":""},null,{"$f":"IF($C$350=\"\",\"\",AB350/$C$350)","v":""},null,{"$f":"IF($C$350=\"\",\"\",AD350/$C$350)","v":""},null,{"$f":"IF($C$350=\"\",\"\",AF350/$C$350)","v":""},null,{"$f":"IF($C$350=\"\",\"\",AH350/$C$350)","v":""},null,{"$f":"IF($C$350=\"\",\"\",AJ350/$C$350)","v":""},null,{"$f":"IF($C$350=\"\",\"\",AL350/$C$350)","v":""},null,{"$f":"IF($C$350=\"\",\"\",AN350/$C$350)","v":""},null,{"$f":"IF($C$350=\"\",\"\",AP350/$C$350)","v":""},null,{"$f":"IF($C$350=\"\",\"\",AR350/$C$350)","v":""},null,{"$f":"IF($C$350=\"\",\"\",AT350/$C$350)","v":""},null,{"$f":"IF($C$350=\"\",\"\",AV350/$C$350)","v":""},null,{"$f":"IF($C$350=\"\",\"\",AX350/$C$350)","v":""},null,{"$f":"IF($C$350=\"\",\"\",AZ350/$C$350)","v":""},null,{"$f":"IF($C$350=\"\",\"\",BB350/$C$350)","v":""},null,0]
[null,null,null,null,{"$f":"IF($C$351=\"\",\"\",F351/$C$351)","v":""},null,{"$f":"IF($C$351=\"\",\"\",H351/$C$351)","v":""},null,{"$f":"IF($C$351=\"\",\"\",J351/$C$351)","v":""},null,{"$f":"IF($C$351=\"\",\"\",L351/$C$351)","v":""},null,{"$f":"IF($C$351=\"\",\"\",N351/$C$351)","v":""},null,{"$f":"IF($C$351=\"\",\"\",P351/$C$351)","v":""},null,{"$f":"IF($C$351=\"\",\"\",R351/$C$351)","v":""},null,{"$f":"IF($C$351=\"\",\"\",T351/$C$351)","v":""},null,{"$f":"IF($C$351=\"\",\"\",V351/$C$351)","v":""},null,{"$f":"IF($C$351=\"\",\"\",X351/$C$351)","v":""},null,{"$f":"IF($C$351=\"\",\"\",Z351/$C$351)","v":""},null,{"$f":"IF($C$351=\"\",\"\",AB351/$C$351)","v":""},null,{"$f":"IF($C$351=\"\",\"\",AD351/$C$351)","v":""},null,{"$f":"IF($C$351=\"\",\"\",AF351/$C$351)","v":""},null,{"$f":"IF($C$351=\"\",\"\",AH351/$C$351)","v":""},null,{"$f":"IF($C$351=\"\",\"\",AJ351/$C$351)","v":""},null,{"$f":"IF($C$351=\"\",\"\",AL351/$C$351)","v":""},null,{"$f":"IF($C$351=\"\",\"\",AN351/$C$351)","v":""},null,{"$f":"IF($C$351=\"\",\"\",AP351/$C$351)","v":""},null,{"$f":"IF($C$351=\"\",\"\",AR351/$C$351)","v":""},null,{"$f":"IF($C$351=\"\",\"\",AT351/$C$351)","v":""},null,{"$f":"IF($C$351=\"\",\"\",AV351/$C$351)","v":""},null,{"$f":"IF($C$351=\"\",\"\",AX351/$C$351)","v":""},null,{"$f":"IF($C$351=\"\",\"\",AZ351/$C$351)","v":""},null,{"$f":"IF($C$351=\"\",\"\",BB351/$C$351)","v":""},null,0]
[null,null,null,null,{"$f":"IF($C$352=\"\",\"\",F352/$C$352)","v":""},null,{"$f":"IF($C$352=\"\",\"\",H352/$C$352)","v":""},null,{"$f":"IF($C$352=\"\",\"\",J352/$C$352)","v":""},null,{"$f":"IF($C$352=\"\",\"\",L352/$C$352)","v":""},null,{"$f":"IF($C$352=\"\",\"\",N352/$C$352)","v":""},null,{"$f":"IF($C$352=\"\",\"\",P352/$C$352)","v":""},null,{"$f":"IF($C$352=\"\",\"\",R352/$C$352)","v":""},null,{"$f":"IF($C$352=\"\",\"\",T352/$C$352)","v":""},null,{"$f":"IF($C$352=\"\",\"\",V352/$C$352)","v":""},null,{"$f":"IF($C$352=\"\",\"\",X352/$C$352)","v":""},null,{"$f":"IF($C$352=\"\",\"\",Z352/$C$352)","v":""},null,{"$f":"IF($C$352=\"\",\"\",AB352/$C$352)","v":""},null,{"$f":"IF($C$352=\"\",\"\",AD352/$C$352)","v":""},null,{"$f":"IF($C$352=\"\",\"\",AF352/$C$352)","v":""},null,{"$f":"IF($C$352=\"\",\"\",AH352/$C$352)","v":""},null,{"$f":"IF($C$352=\"\",\"\",AJ352/$C$352)","v":""},null,{"$f":"IF($C$352=\"\",\"\",AL352/$C$352)","v":""},null,{"$f":"IF($C$352=\"\",\"\",AN352/$C$352)","v":""},null,{"$f":"IF($C$352=\"\",\"\",AP352/$C$352)","v":""},null,{"$f":"IF($C$352=\"\",\"\",AR352/$C$352)","v":""},null,{"$f":"IF($C$352=\"\",\"\",AT352/$C$352)","v":""},null,{"$f":"IF($C$352=\"\",\"\",AV352/$C$352)","v":""},null,{"$f":"IF($C$352=\"\",\"\",AX352/$C$352)","v":""},null,{"$f":"IF($C$352=\"\",\"\",AZ352/$C$352)","v":""},null,{"$f":"IF($C$352=\"\",\"\",BB352/$C$352)","v":""},null,0]
[null,null,null,null,{"$f":"IF($C$353=\"\",\"\",F353/$C$353)","v":""},null,{"$f":"IF($C$353=\"\",\"\",H353/$C$353)","v":""},null,{"$f":"IF($C$353=\"\",\"\",J353/$C$353)","v":""},null,{"$f":"IF($C$353=\"\",\"\",L353/$C$353)","v":""},null,{"$f":"IF($C$353=\"\",\"\",N353/$C$353)","v":""},null,{"$f":"IF($C$353=\"\",\"\",P353/$C$353)","v":""},null,{"$f":"IF($C$353=\"\",\"\",R353/$C$353)","v":""},null,{"$f":"IF($C$353=\"\",\"\",T353/$C$353)","v":""},null,{"$f":"IF($C$353=\"\",\"\",V353/$C$353)","v":""},null,{"$f":"IF($C$353=\"\",\"\",X353/$C$353)","v":""},null,{"$f":"IF($C$353=\"\",\"\",Z353/$C$353)","v":""},null,{"$f":"IF($C$353=\"\",\"\",AB353/$C$353)","v":""},null,{"$f":"IF($C$353=\"\",\"\",AD353/$C$353)","v":""},null,{"$f":"IF($C$353=\"\",\"\",AF353/$C$353)","v":""},null,{"$f":"IF($C$353=\"\",\"\",AH353/$C$353)","v":""},null,{"$f":"IF($C$353=\"\",\"\",AJ353/$C$353)","v":""},null,{"$f":"IF($C$353=\"\",\"\",AL353/$C$353)","v":""},null,{"$f":"IF($C$353=\"\",\"\",AN353/$C$353)","v":""},null,{"$f":"IF($C$353=\"\",\"\",AP353/$C$353)","v":""},null,{"$f":"IF($C$353=\"\",\"\",AR353/$C$353)","v":""},null,{"$f":"IF($C$353=\"\",\"\",AT353/$C$353)","v":""},null,{"$f":"IF($C$353=\"\",\"\",AV353/$C$353)","v":""},null,{"$f":"IF($C$353=\"\",\"\",AX353/$C$353)","v":""},null,{"$f":"IF($C$353=\"\",\"\",AZ353/$C$353)","v":""},null,{"$f":"IF($C$353=\"\",\"\",BB353/$C$353)","v":""},null,0]
[null,null,null,null,{"$f":"IF($C$354=\"\",\"\",F354/$C$354)","v":""},null,{"$f":"IF($C$354=\"\",\"\",H354/$C$354)","v":""},null,{"$f":"IF($C$354=\"\",\"\",J354/$C$354)","v":""},null,{"$f":"IF($C$354=\"\",\"\",L354/$C$354)","v":""},null,{"$f":"IF($C$354=\"\",\"\",N354/$C$354)","v":""},null,{"$f":"IF($C$354=\"\",\"\",P354/$C$354)","v":""},null,{"$f":"IF($C$354=\"\",\"\",R354/$C$354)","v":""},null,{"$f":"IF($C$354=\"\",\"\",T354/$C$354)","v":""},null,{"$f":"IF($C$354=\"\",\"\",V354/$C$354)","v":""},null,{"$f":"IF($C$354=\"\",\"\",X354/$C$354)","v":""},null,{"$f":"IF($C$354=\"\",\"\",Z354/$C$354)","v":""},null,{"$f":"IF($C$354=\"\",\"\",AB354/$C$354)","v":""},null,{"$f":"IF($C$354=\"\",\"\",AD354/$C$354)","v":""},null,{"$f":"IF($C$354=\"\",\"\",AF354/$C$354)","v":""},null,{"$f":"IF($C$354=\"\",\"\",AH354/$C$354)","v":""},null,{"$f":"IF($C$354=\"\",\"\",AJ354/$C$354)","v":""},null,{"$f":"IF($C$354=\"\",\"\",AL354/$C$354)","v":""},null,{"$f":"IF($C$354=\"\",\"\",AN354/$C$354)","v":""},null,{"$f":"IF($C$354=\"\",\"\",AP354/$C$354)","v":""},null,{"$f":"IF($C$354=\"\",\"\",AR354/$C$354)","v":""},null,{"$f":"IF($C$354=\"\",\"\",AT354/$C$354)","v":""},null,{"$f":"IF($C$354=\"\",\"\",AV354/$C$354)","v":""},null,{"$f":"IF($C$354=\"\",\"\",AX354/$C$354)","v":""},null,{"$f":"IF($C$354=\"\",\"\",AZ354/$C$354)","v":""},null,{"$f":"IF($C$354=\"\",\"\",BB354/$C$354)","v":""},null,0]
[null,null,null,null,{"$f":"IF($C$355=\"\",\"\",F355/$C$355)","v":""},null,{"$f":"IF($C$355=\"\",\"\",H355/$C$355)","v":""},null,{"$f":"IF($C$355=\"\",\"\",J355/$C$355)","v":""},null,{"$f":"IF($C$355=\"\",\"\",L355/$C$355)","v":""},null,{"$f":"IF($C$355=\"\",\"\",N355/$C$355)","v":""},null,{"$f":"IF($C$355=\"\",\"\",P355/$C$355)","v":""},null,{"$f":"IF($C$355=\"\",\"\",R355/$C$355)","v":""},null,{"$f":"IF($C$355=\"\",\"\",T355/$C$355)","v":""},null,{"$f":"IF($C$355=\"\",\"\",V355/$C$355)","v":""},null,{"$f":"IF($C$355=\"\",\"\",X355/$C$355)","v":""},null,{"$f":"IF($C$355=\"\",\"\",Z355/$C$355)","v":""},null,{"$f":"IF($C$355=\"\",\"\",AB355/$C$355)","v":""},null,{"$f":"IF($C$355=\"\",\"\",AD355/$C$355)","v":""},null,{"$f":"IF($C$355=\"\",\"\",AF355/$C$355)","v":""},null,{"$f":"IF($C$355=\"\",\"\",AH355/$C$355)","v":""},null,{"$f":"IF($C$355=\"\",\"\",AJ355/$C$355)","v":""},null,{"$f":"IF($C$355=\"\",\"\",AL355/$C$355)","v":""},null,{"$f":"IF($C$355=\"\",\"\",AN355/$C$355)","v":""},null,{"$f":"IF($C$355=\"\",\"\",AP355/$C$355)","v":""},null,{"$f":"IF($C$355=\"\",\"\",AR355/$C$355)","v":""},null,{"$f":"IF($C$355=\"\",\"\",AT355/$C$355)","v":""},null,{"$f":"IF($C$355=\"\",\"\",AV355/$C$355)","v":""},null,{"$f":"IF($C$355=\"\",\"\",AX355/$C$355)","v":""},null,{"$f":"IF($C$355=\"\",\"\",AZ355/$C$355)","v":""},null,{"$f":"IF($C$355=\"\",\"\",BB355/$C$355)","v":""},null,0]
[null,null,null,null,{"$f":"IF($C$356=\"\",\"\",F356/$C$356)","v":""},null,{"$f":"IF($C$356=\"\",\"\",H356/$C$356)","v":""},null,{"$f":"IF($C$356=\"\",\"\",J356/$C$356)","v":""},null,{"$f":"IF($C$356=\"\",\"\",L356/$C$356)","v":""},null,{"$f":"IF($C$356=\"\",\"\",N356/$C$356)","v":""},null,{"$f":"IF($C$356=\"\",\"\",P356/$C$356)","v":""},null,{"$f":"IF($C$356=\"\",\"\",R356/$C$356)","v":""},null,{"$f":"IF($C$356=\"\",\"\",T356/$C$356)","v":""},null,{"$f":"IF($C$356=\"\",\"\",V356/$C$356)","v":""},null,{"$f":"IF($C$356=\"\",\"\",X356/$C$356)","v":""},null,{"$f":"IF($C$356=\"\",\"\",Z356/$C$356)","v":""},null,{"$f":"IF($C$356=\"\",\"\",AB356/$C$356)","v":""},null,{"$f":"IF($C$356=\"\",\"\",AD356/$C$356)","v":""},null,{"$f":"IF($C$356=\"\",\"\",AF356/$C$356)","v":""},null,{"$f":"IF($C$356=\"\",\"\",AH356/$C$356)","v":""},null,{"$f":"IF($C$356=\"\",\"\",AJ356/$C$356)","v":""},null,{"$f":"IF($C$356=\"\",\"\",AL356/$C$356)","v":""},null,{"$f":"IF($C$356=\"\",\"\",AN356/$C$356)","v":""},null,{"$f":"IF($C$356=\"\",\"\",AP356/$C$356)","v":""},null,{"$f":"IF($C$356=\"\",\"\",AR356/$C$356)","v":""},null,{"$f":"IF($C$356=\"\",\"\",AT356/$C$356)","v":""},null,{"$f":"IF($C$356=\"\",\"\",AV356/$C$356)","v":""},null,{"$f":"IF($C$356=\"\",\"\",AX356/$C$356)","v":""},null,{"$f":"IF($C$356=\"\",\"\",AZ356/$C$356)","v":""},null,{"$f":"IF($C$356=\"\",\"\",BB356/$C$356)","v":""},null,{"$f":"SUM(BB356,AZ356,AX356,AV356,AT356,AR356,AP356,AN356,AL356,AJ356,AH356,AF356,AD356,AB356,Z356,X356,V356,T356,R356,P356,N356,L356,J356,H356,F356)","v":0}]
["TOTAL HOURS",null,null,null,null,{"$f":"SUM(F347:F356)","v":0},null,{"$f":"SUM(H347:H356)","v":0},null,{"$f":"SUM(J347:J356)","v":0},null,{"$f":"SUM(L347:L356)","v":0},null,{"$f":"SUM(N347:N356)","v":0},null,{"$f":"SUM(P347:P356)","v":0},null,{"$f":"SUM(R347:R356)","v":0},null,{"$f":"SUM(T347:T356)","v":0},null,{"$f":"SUM(V347:V356)","v":0},null,{"$f":"SUM(X347:X356)","v":0},null,{"$f":"SUM(Z347:Z356)","v":0},null,{"$f":"SUM(AB347:AB356)","v":0},null,{"$f":"SUM(AD347:AD356)","v":0},null,{"$f":"SUM(AF347:AF356)","v":0},null,{"$f":"SUM(AH347:AH356)","v":0},null,{"$f":"SUM(AJ347:AJ356)","v":0},null,{"$f":"SUM(AL347:AL356)","v":0},null,{"$f":"SUM(AN347:AN356)","v":0},null,{"$f":"SUM(AP347:AP356)","v":0},null,{"$f":"SUM(AR347:AR356)","v":0},null,{"$f":"SUM(AT347:AT356)","v":0},null,{"$f":"SUM(AV347:AV356)","v":0},null,{"$f":"SUM(AX347:AX356)","v":0},null,{"$f":"SUM(AZ347:AZ356)","v":0},null,{"$f":"SUM(BB347:BB356)","v":0},{"$f":"SUM(E357:BB357)","v":0}]
["TOTAL WORKDAYS",null,null,null,null,{"$f":"F357/8","v":0},null,{"$f":"H357/8","v":0},null,{"$f":"J357/8","v":0},null,{"$f":"L357/8","v":0},null,{"$f":"N357/8","v":0},null,{"$f":"P357/8","v":0},null,{"$f":"R357/8","v":0},null,{"$f":"T357/8","v":0},null,{"$f":"V357/8","v":0},null,{"$f":"X357/8","v":0},null,{"$f":"Z357/8","v":0},null,{"$f":"AB357/8","v":0},null,{"$f":"AD357/8","v":0},null,0,null,{"$f":"AH357/8","v":0},null,0,null,{"$f":"AL357/8","v":0},null,0,null,{"$f":"AP357/8","v":0},null,0,null,{"$f":"AT357/8","v":0},null,{"$f":"AV357/8","v":0},null,{"$f":"AX357/8","v":0},null,{"$f":"AZ357/8","v":0},null,{"$f":"BB357/8","v":0},{"$f":"SUM(E358:BB358)","v":0}]
["TOTAL RAW LABOR",null,null,null,null,{"$f":"$E$13*F357","v":0},null,{"$f":"$G$13*H357","v":0},null,{"$f":"$I$13*J357","v":0},null,{"$f":"$K$13*L357","v":0},null,{"$f":"$M$13*N357","v":0},null,{"$f":"$O$13*P357","v":0},null,{"$f":"$Q$13*R357","v":0},null,{"$f":"$S$13*T357","v":0},null,{"$f":"$U$13*V357","v":0},null,{"$f":"$W$13*X357","v":0},null,{"$f":"$Y$13*Z357","v":0},null,{"$f":"$AA$13*AB357","v":0},null,{"$f":"$AC$13*AD357","v":0},null,{"$f":"$AC$13*AF357","v":0},null,{"$f":"$AC$13*AH357","v":0},null,{"$f":"$AC$13*AJ357","v":0},null,{"$f":"$AC$13*AL357","v":0},null,{"$f":"$AC$13*AN357","v":0},null,{"$f":"$AC$13*AP357","v":0},null,{"$f":"$AC$13*AR357","v":0},null,{"$f":"$AC$13*AT357","v":0},null,{"$f":"$AC$13*AV357","v":0},null,{"$f":"$AC$13*AX357","v":0},null,{"$f":"$AC$13*AZ357","v":0},null,{"$f":"$AC$13*BB357","v":0},{"$f":"SUM(E359:BB359)","v":0}]
["Task 14.0     ","PREPARE PS&E DELIVERABLES AND FINAL DOCUMENTATION"]
[14.1,"Prepare PS&E Submittal Deliverables",null,null,{"$f":"IF($C$361=\"\",\"\",F361/$C$361)","v":""},null,{"$f":"IF($C$361=\"\",\"\",H361/$C$361)","v":""},null,{"$f":"IF($C$361=\"\",\"\",J361/$C$361)","v":""},null,{"$f":"IF($C$361=\"\",\"\",L361/$C$361)","v":""},null,{"$f":"IF($C$361=\"\",\"\",N361/$C$361)","v":""},null,{"$f":"IF($C$361=\"\",\"\",P361/$C$361)","v":""},null,{"$f":"IF($C$361=\"\",\"\",R361/$C$361)","v":""},null,{"$f":"IF($C$361=\"\",\"\",T361/$C$361)","v":""},null,{"$f":"IF($C$361=\"\",\"\",V361/$C$361)","v":""},null,{"$f":"IF($C$361=\"\",\"\",X361/$C$361)","v":""},null,{"$f":"IF($C$361=\"\",\"\",Z361/$C$361)","v":""},null,{"$f":"IF($C$361=\"\",\"\",AB361/$C$361)","v":""},null,{"$f":"IF($C$361=\"\",\"\",AD361/$C$361)","v":""},null,{"$f":"IF($C$361=\"\",\"\",AF361/$C$361)","v":""},null,{"$f":"IF($C$361=\"\",\"\",AH361/$C$361)","v":""},null,{"$f":"IF($C$361=\"\",\"\",AJ361/$C$361)","v":""},null,{"$f":"IF($C$361=\"\",\"\",AL361/$C$361)","v":""},null,{"$f":"IF($C$361=\"\",\"\",AN361/$C$361)","v":""},null,{"$f":"IF($C$361=\"\",\"\",AP361/$C$361)","v":""},null,{"$f":"IF($C$361=\"\",\"\",AR361/$C$361)","v":""},null,{"$f":"IF($C$361=\"\",\"\",AT361/$C$361)","v":""},null,{"$f":"IF($C$361=\"\",\"\",AV361/$C$361)","v":""},null,{"$f":"IF($C$361=\"\",\"\",AX361/$C$361)","v":""},null,{"$f":"IF($C$361=\"\",\"\",AZ361/$C$361)","v":""},null,{"$f":"IF($C$361=\"\",\"\",BB361/$C$361)","v":""},null,{"$f":"SUM(BB361,AZ361,AX361,AV361,AT361,AR361,AP361,AN361,AL361,AJ361,AH361,AF361,AD361,AB361,Z361,X361,V361,T361,R361,P361,N361,L361,J361,H361,F361)","v":0}]
[14.2,"PS&E Submittal Review Meetings",null,null,{"$f":"IF($C$362=\"\",\"\",F362/$C$362)","v":""},null,{"$f":"IF($C$362=\"\",\"\",H362/$C$362)","v":""},null,{"$f":"IF($C$362=\"\",\"\",J362/$C$362)","v":""},null,{"$f":"IF($C$362=\"\",\"\",L362/$C$362)","v":""},null,{"$f":"IF($C$362=\"\",\"\",N362/$C$362)","v":""},null,{"$f":"IF($C$362=\"\",\"\",P362/$C$362)","v":""},null,{"$f":"IF($C$362=\"\",\"\",R362/$C$362)","v":""},null,{"$f":"IF($C$362=\"\",\"\",T362/$C$362)","v":""},null,{"$f":"IF($C$362=\"\",\"\",V362/$C$362)","v":""},null,{"$f":"IF($C$362=\"\",\"\",X362/$C$362)","v":""},null,{"$f":"IF($C$362=\"\",\"\",Z362/$C$362)","v":""},null,{"$f":"IF($C$362=\"\",\"\",AB362/$C$362)","v":""},null,{"$f":"IF($C$362=\"\",\"\",AD362/$C$362)","v":""},null,{"$f":"IF($C$362=\"\",\"\",AF362/$C$362)","v":""},null,{"$f":"IF($C$362=\"\",\"\",AH362/$C$362)","v":""},null,{"$f":"IF($C$362=\"\",\"\",AJ362/$C$362)","v":""},null,{"$f":"IF($C$362=\"\",\"\",AL362/$C$362)","v":""},null,{"$f":"IF($C$362=\"\",\"\",AN362/$C$362)","v":""},null,{"$f":"IF($C$362=\"\",\"\",AP362/$C$362)","v":""},null,{"$f":"IF($C$362=\"\",\"\",AR362/$C$362)","v":""},null,{"$f":"IF($C$362=\"\",\"\",AT362/$C$362)","v":""},null,{"$f":"IF($C$362=\"\",\"\",AV362/$C$362)","v":""},null,{"$f":"IF($C$362=\"\",\"\",AX362/$C$362)","v":""},null,{"$f":"IF($C$362=\"\",\"\",AZ362/$C$362)","v":""},null,{"$f":"IF($C$362=\"\",\"\",BB362/$C$362)","v":""},null,0]
[14.3,"Prepare CD/DVD/USB Jump Drive of PS&E Files",null,null,{"$f":"IF($C$363=\"\",\"\",F363/$C$363)","v":""},null,{"$f":"IF($C$363=\"\",\"\",H363/$C$363)","v":""},null,{"$f":"IF($C$363=\"\",\"\",J363/$C$363)","v":""},null,{"$f":"IF($C$363=\"\",\"\",L363/$C$363)","v":""},null,{"$f":"IF($C$363=\"\",\"\",N363/$C$363)","v":""},null,{"$f":"IF($C$363=\"\",\"\",P363/$C$363)","v":""},null,{"$f":"IF($C$363=\"\",\"\",R363/$C$363)","v":""},null,{"$f":"IF($C$363=\"\",\"\",T363/$C$363)","v":""},null,{"$f":"IF($C$363=\"\",\"\",V363/$C$363)","v":""},null,{"$f":"IF($C$363=\"\",\"\",X363/$C$363)","v":""},null,{"$f":"IF($C$363=\"\",\"\",Z363/$C$363)","v":""},null,{"$f":"IF($C$363=\"\",\"\",AB363/$C$363)","v":""},null,{"$f":"IF($C$363=\"\",\"\",AD363/$C$363)","v":""},null,{"$f":"IF($C$363=\"\",\"\",AF363/$C$363)","v":""},null,{"$f":"IF($C$363=\"\",\"\",AH363/$C$363)","v":""},null,{"$f":"IF($C$363=\"\",\"\",AJ363/$C$363)","v":""},null,{"$f":"IF($C$363=\"\",\"\",AL363/$C$363)","v":""},null,{"$f":"IF($C$363=\"\",\"\",AN363/$C$363)","v":""},null,{"$f":"IF($C$363=\"\",\"\",AP363/$C$363)","v":""},null,{"$f":"IF($C$363=\"\",\"\",AR363/$C$363)","v":""},null,{"$f":"IF($C$363=\"\",\"\",AT363/$C$363)","v":""},null,{"$f":"IF($C$363=\"\",\"\",AV363/$C$363)","v":""},null,{"$f":"IF($C$363=\"\",\"\",AX363/$C$363)","v":""},null,{"$f":"IF($C$363=\"\",\"\",AZ363/$C$363)","v":""},null,{"$f":"IF($C$363=\"\",\"\",BB363/$C$363)","v":""},null,0]
[14.4,"Electronic transfer of files to the Department",null,null,{"$f":"IF($C$364=\"\",\"\",F364/$C$364)","v":""},null,{"$f":"IF($C$364=\"\",\"\",H364/$C$364)","v":""},null,{"$f":"IF($C$364=\"\",\"\",J364/$C$364)","v":""},null,{"$f":"IF($C$364=\"\",\"\",L364/$C$364)","v":""},null,{"$f":"IF($C$364=\"\",\"\",N364/$C$364)","v":""},null,{"$f":"IF($C$364=\"\",\"\",P364/$C$364)","v":""},null,{"$f":"IF($C$364=\"\",\"\",R364/$C$364)","v":""},null,{"$f":"IF($C$364=\"\",\"\",T364/$C$364)","v":""},null,{"$f":"IF($C$364=\"\",\"\",V364/$C$364)","v":""},null,{"$f":"IF($C$364=\"\",\"\",X364/$C$364)","v":""},null,{"$f":"IF($C$364=\"\",\"\",Z364/$C$364)","v":""},null,{"$f":"IF($C$364=\"\",\"\",AB364/$C$364)","v":""},null,{"$f":"IF($C$364=\"\",\"\",AD364/$C$364)","v":""},null,{"$f":"IF($C$364=\"\",\"\",AF364/$C$364)","v":""},null,{"$f":"IF($C$364=\"\",\"\",AH364/$C$364)","v":""},null,{"$f":"IF($C$364=\"\",\"\",AJ364/$C$364)","v":""},null,{"$f":"IF($C$364=\"\",\"\",AL364/$C$364)","v":""},null,{"$f":"IF($C$364=\"\",\"\",AN364/$C$364)","v":""},null,{"$f":"IF($C$364=\"\",\"\",AP364/$C$364)","v":""},null,{"$f":"IF($C$364=\"\",\"\",AR364/$C$364)","v":""},null,{"$f":"IF($C$364=\"\",\"\",AT364/$C$364)","v":""},null,{"$f":"IF($C$364=\"\",\"\",AV364/$C$364)","v":""},null,{"$f":"IF($C$364=\"\",\"\",AX364/$C$364)","v":""},null,{"$f":"IF($C$364=\"\",\"\",AZ364/$C$364)","v":""},null,{"$f":"IF($C$364=\"\",\"\",BB364/$C$364)","v":""},null,0]
[null,null,null,null,{"$f":"IF($C$365=\"\",\"\",F365/$C$365)","v":""},null,{"$f":"IF($C$365=\"\",\"\",H365/$C$365)","v":""},null,{"$f":"IF($C$365=\"\",\"\",J365/$C$365)","v":""},null,{"$f":"IF($C$365=\"\",\"\",L365/$C$365)","v":""},null,{"$f":"IF($C$365=\"\",\"\",N365/$C$365)","v":""},null,{"$f":"IF($C$365=\"\",\"\",P365/$C$365)","v":""},null,{"$f":"IF($C$365=\"\",\"\",R365/$C$365)","v":""},null,{"$f":"IF($C$365=\"\",\"\",T365/$C$365)","v":""},null,{"$f":"IF($C$365=\"\",\"\",V365/$C$365)","v":""},null,{"$f":"IF($C$365=\"\",\"\",X365/$C$365)","v":""},null,{"$f":"IF($C$365=\"\",\"\",Z365/$C$365)","v":""},null,{"$f":"IF($C$365=\"\",\"\",AB365/$C$365)","v":""},null,{"$f":"IF($C$365=\"\",\"\",AD365/$C$365)","v":""},null,{"$f":"IF($C$365=\"\",\"\",AF365/$C$365)","v":""},null,{"$f":"IF($C$365=\"\",\"\",AH365/$C$365)","v":""},null,{"$f":"IF($C$365=\"\",\"\",AJ365/$C$365)","v":""},null,{"$f":"IF($C$365=\"\",\"\",AL365/$C$365)","v":""},null,{"$f":"IF($C$365=\"\",\"\",AN365/$C$365)","v":""},null,{"$f":"IF($C$365=\"\",\"\",AP365/$C$365)","v":""},null,{"$f":"IF($C$365=\"\",\"\",AR365/$C$365)","v":""},null,{"$f":"IF($C$365=\"\",\"\",AT365/$C$365)","v":""},null,{"$f":"IF($C$365=\"\",\"\",AV365/$C$365)","v":""},null,{"$f":"IF($C$365=\"\",\"\",AX365/$C$365)","v":""},null,{"$f":"IF($C$365=\"\",\"\",AZ365/$C$365)","v":""},null,{"$f":"IF($C$365=\"\",\"\",BB365/$C$365)","v":""},null,0]
[null,null,null,null,{"$f":"IF($C$366=\"\",\"\",F366/$C$366)","v":""},null,{"$f":"IF($C$366=\"\",\"\",H366/$C$366)","v":""},null,{"$f":"IF($C$366=\"\",\"\",J366/$C$366)","v":""},null,{"$f":"IF($C$366=\"\",\"\",L366/$C$366)","v":""},null,{"$f":"IF($C$366=\"\",\"\",N366/$C$366)","v":""},null,{"$f":"IF($C$366=\"\",\"\",P366/$C$366)","v":""},null,{"$f":"IF($C$366=\"\",\"\",R366/$C$366)","v":""},null,{"$f":"IF($C$366=\"\",\"\",T366/$C$366)","v":""},null,{"$f":"IF($C$366=\"\",\"\",V366/$C$366)","v":""},null,{"$f":"IF($C$366=\"\",\"\",X366/$C$366)","v":""},null,{"$f":"IF($C$366=\"\",\"\",Z366/$C$366)","v":""},null,{"$f":"IF($C$366=\"\",\"\",AB366/$C$366)","v":""},null,{"$f":"IF($C$366=\"\",\"\",AD366/$C$366)","v":""},null,{"$f":"IF($C$366=\"\",\"\",AF366/$C$366)","v":""},null,{"$f":"IF($C$366=\"\",\"\",AH366/$C$366)","v":""},null,{"$f":"IF($C$366=\"\",\"\",AJ366/$C$366)","v":""},null,{"$f":"IF($C$366=\"\",\"\",AL366/$C$366)","v":""},null,{"$f":"IF($C$366=\"\",\"\",AN366/$C$366)","v":""},null,{"$f":"IF($C$366=\"\",\"\",AP366/$C$366)","v":""},null,{"$f":"IF($C$366=\"\",\"\",AR366/$C$366)","v":""},null,{"$f":"IF($C$366=\"\",\"\",AT366/$C$366)","v":""},null,{"$f":"IF($C$366=\"\",\"\",AV366/$C$366)","v":""},null,{"$f":"IF($C$366=\"\",\"\",AX366/$C$366)","v":""},null,{"$f":"IF($C$366=\"\",\"\",AZ366/$C$366)","v":""},null,{"$f":"IF($C$366=\"\",\"\",BB366/$C$366)","v":""},null,0]
[null,null,null,null,{"$f":"IF($C$367=\"\",\"\",F367/$C$367)","v":""},null,{"$f":"IF($C$367=\"\",\"\",H367/$C$367)","v":""},null,{"$f":"IF($C$367=\"\",\"\",J367/$C$367)","v":""},null,{"$f":"IF($C$367=\"\",\"\",L367/$C$367)","v":""},null,{"$f":"IF($C$367=\"\",\"\",N367/$C$367)","v":""},null,{"$f":"IF($C$367=\"\",\"\",P367/$C$367)","v":""},null,{"$f":"IF($C$367=\"\",\"\",R367/$C$367)","v":""},null,{"$f":"IF($C$367=\"\",\"\",T367/$C$367)","v":""},null,{"$f":"IF($C$367=\"\",\"\",V367/$C$367)","v":""},null,{"$f":"IF($C$367=\"\",\"\",X367/$C$367)","v":""},null,{"$f":"IF($C$367=\"\",\"\",Z367/$C$367)","v":""},null,{"$f":"IF($C$367=\"\",\"\",AB367/$C$367)","v":""},null,{"$f":"IF($C$367=\"\",\"\",AD367/$C$367)","v":""},null,{"$f":"IF($C$367=\"\",\"\",AF367/$C$367)","v":""},null,{"$f":"IF($C$367=\"\",\"\",AH367/$C$367)","v":""},null,{"$f":"IF($C$367=\"\",\"\",AJ367/$C$367)","v":""},null,{"$f":"IF($C$367=\"\",\"\",AL367/$C$367)","v":""},null,{"$f":"IF($C$367=\"\",\"\",AN367/$C$367)","v":""},null,{"$f":"IF($C$367=\"\",\"\",AP367/$C$367)","v":""},null,{"$f":"IF($C$367=\"\",\"\",AR367/$C$367)","v":""},null,{"$f":"IF($C$367=\"\",\"\",AT367/$C$367)","v":""},null,{"$f":"IF($C$367=\"\",\"\",AV367/$C$367)","v":""},null,{"$f":"IF($C$367=\"\",\"\",AX367/$C$367)","v":""},null,{"$f":"IF($C$367=\"\",\"\",AZ367/$C$367)","v":""},null,{"$f":"IF($C$367=\"\",\"\",BB367/$C$367)","v":""},null,0]
[null,null,null,null,{"$f":"IF($C$368=\"\",\"\",F368/$C$368)","v":""},null,{"$f":"IF($C$368=\"\",\"\",H368/$C$368)","v":""},null,{"$f":"IF($C$368=\"\",\"\",J368/$C$368)","v":""},null,{"$f":"IF($C$368=\"\",\"\",L368/$C$368)","v":""},null,{"$f":"IF($C$368=\"\",\"\",N368/$C$368)","v":""},null,{"$f":"IF($C$368=\"\",\"\",P368/$C$368)","v":""},null,{"$f":"IF($C$368=\"\",\"\",R368/$C$368)","v":""},null,{"$f":"IF($C$368=\"\",\"\",T368/$C$368)","v":""},null,{"$f":"IF($C$368=\"\",\"\",V368/$C$368)","v":""},null,{"$f":"IF($C$368=\"\",\"\",X368/$C$368)","v":""},null,{"$f":"IF($C$368=\"\",\"\",Z368/$C$368)","v":""},null,{"$f":"IF($C$368=\"\",\"\",AB368/$C$368)","v":""},null,{"$f":"IF($C$368=\"\",\"\",AD368/$C$368)","v":""},null,{"$f":"IF($C$368=\"\",\"\",AF368/$C$368)","v":""},null,{"$f":"IF($C$368=\"\",\"\",AH368/$C$368)","v":""},null,{"$f":"IF($C$368=\"\",\"\",AJ368/$C$368)","v":""},null,{"$f":"IF($C$368=\"\",\"\",AL368/$C$368)","v":""},null,{"$f":"IF($C$368=\"\",\"\",AN368/$C$368)","v":""},null,{"$f":"IF($C$368=\"\",\"\",AP368/$C$368)","v":""},null,{"$f":"IF($C$368=\"\",\"\",AR368/$C$368)","v":""},null,{"$f":"IF($C$368=\"\",\"\",AT368/$C$368)","v":""},null,{"$f":"IF($C$368=\"\",\"\",AV368/$C$368)","v":""},null,{"$f":"IF($C$368=\"\",\"\",AX368/$C$368)","v":""},null,{"$f":"IF($C$368=\"\",\"\",AZ368/$C$368)","v":""},null,{"$f":"IF($C$368=\"\",\"\",BB368/$C$368)","v":""},null,0]
[null,null,null,null,{"$f":"IF($C$369=\"\",\"\",F369/$C$369)","v":""},null,{"$f":"IF($C$369=\"\",\"\",H369/$C$369)","v":""},null,{"$f":"IF($C$369=\"\",\"\",J369/$C$369)","v":""},null,{"$f":"IF($C$369=\"\",\"\",L369/$C$369)","v":""},null,{"$f":"IF($C$369=\"\",\"\",N369/$C$369)","v":""},null,{"$f":"IF($C$369=\"\",\"\",P369/$C$369)","v":""},null,{"$f":"IF($C$369=\"\",\"\",R369/$C$369)","v":""},null,{"$f":"IF($C$369=\"\",\"\",T369/$C$369)","v":""},null,{"$f":"IF($C$369=\"\",\"\",V369/$C$369)","v":""},null,{"$f":"IF($C$369=\"\",\"\",X369/$C$369)","v":""},null,{"$f":"IF($C$369=\"\",\"\",Z369/$C$369)","v":""},null,{"$f":"IF($C$369=\"\",\"\",AB369/$C$369)","v":""},null,{"$f":"IF($C$369=\"\",\"\",AD369/$C$369)","v":""},null,{"$f":"IF($C$369=\"\",\"\",AF369/$C$369)","v":""},null,{"$f":"IF($C$369=\"\",\"\",AH369/$C$369)","v":""},null,{"$f":"IF($C$369=\"\",\"\",AJ369/$C$369)","v":""},null,{"$f":"IF($C$369=\"\",\"\",AL369/$C$369)","v":""},null,{"$f":"IF($C$369=\"\",\"\",AN369/$C$369)","v":""},null,{"$f":"IF($C$369=\"\",\"\",AP369/$C$369)","v":""},null,{"$f":"IF($C$369=\"\",\"\",AR369/$C$369)","v":""},null,{"$f":"IF($C$369=\"\",\"\",AT369/$C$369)","v":""},null,{"$f":"IF($C$369=\"\",\"\",AV369/$C$369)","v":""},null,{"$f":"IF($C$369=\"\",\"\",AX369/$C$369)","v":""},null,{"$f":"IF($C$369=\"\",\"\",AZ369/$C$369)","v":""},null,{"$f":"IF($C$369=\"\",\"\",BB369/$C$369)","v":""},null,0]
[null,null,null,null,{"$f":"IF($C$370=\"\",\"\",F370/$C$370)","v":""},null,{"$f":"IF($C$370=\"\",\"\",H370/$C$370)","v":""},null,{"$f":"IF($C$370=\"\",\"\",J370/$C$370)","v":""},null,{"$f":"IF($C$370=\"\",\"\",L370/$C$370)","v":""},null,{"$f":"IF($C$370=\"\",\"\",N370/$C$370)","v":""},null,{"$f":"IF($C$370=\"\",\"\",P370/$C$370)","v":""},null,{"$f":"IF($C$370=\"\",\"\",R370/$C$370)","v":""},null,{"$f":"IF($C$370=\"\",\"\",T370/$C$370)","v":""},null,{"$f":"IF($C$370=\"\",\"\",V370/$C$370)","v":""},null,{"$f":"IF($C$370=\"\",\"\",X370/$C$370)","v":""},null,{"$f":"IF($C$370=\"\",\"\",Z370/$C$370)","v":""},null,{"$f":"IF($C$370=\"\",\"\",AB370/$C$370)","v":""},null,{"$f":"IF($C$370=\"\",\"\",AD370/$C$370)","v":""},null,{"$f":"IF($C$370=\"\",\"\",AF370/$C$370)","v":""},null,{"$f":"IF($C$370=\"\",\"\",AH370/$C$370)","v":""},null,{"$f":"IF($C$370=\"\",\"\",AJ370/$C$370)","v":""},null,{"$f":"IF($C$370=\"\",\"\",AL370/$C$370)","v":""},null,{"$f":"IF($C$370=\"\",\"\",AN370/$C$370)","v":""},null,{"$f":"IF($C$370=\"\",\"\",AP370/$C$370)","v":""},null,{"$f":"IF($C$370=\"\",\"\",AR370/$C$370)","v":""},null,{"$f":"IF($C$370=\"\",\"\",AT370/$C$370)","v":""},null,{"$f":"IF($C$370=\"\",\"\",AV370/$C$370)","v":""},null,{"$f":"IF($C$370=\"\",\"\",AX370/$C$370)","v":""},null,{"$f":"IF($C$370=\"\",\"\",AZ370/$C$370)","v":""},null,{"$f":"IF($C$370=\"\",\"\",BB370/$C$370)","v":""},null,0]
[null,null,null,null,{"$f":"IF($C$371=\"\",\"\",F371/$C$371)","v":""},null,{"$f":"IF($C$371=\"\",\"\",H371/$C$371)","v":""},null,{"$f":"IF($C$371=\"\",\"\",J371/$C$371)","v":""},null,{"$f":"IF($C$371=\"\",\"\",L371/$C$371)","v":""},null,{"$f":"IF($C$371=\"\",\"\",N371/$C$371)","v":""},null,{"$f":"IF($C$371=\"\",\"\",P371/$C$371)","v":""},null,{"$f":"IF($C$371=\"\",\"\",R371/$C$371)","v":""},null,{"$f":"IF($C$371=\"\",\"\",T371/$C$371)","v":""},null,{"$f":"IF($C$371=\"\",\"\",V371/$C$371)","v":""},null,{"$f":"IF($C$371=\"\",\"\",X371/$C$371)","v":""},null,{"$f":"IF($C$371=\"\",\"\",Z371/$C$371)","v":""},null,{"$f":"IF($C$371=\"\",\"\",AB371/$C$371)","v":""},null,{"$f":"IF($C$371=\"\",\"\",AD371/$C$371)","v":""},null,{"$f":"IF($C$371=\"\",\"\",AF371/$C$371)","v":""},null,{"$f":"IF($C$371=\"\",\"\",AH371/$C$371)","v":""},null,{"$f":"IF($C$371=\"\",\"\",AJ371/$C$371)","v":""},null,{"$f":"IF($C$371=\"\",\"\",AL371/$C$371)","v":""},null,{"$f":"IF($C$371=\"\",\"\",AN371/$C$371)","v":""},null,{"$f":"IF($C$371=\"\",\"\",AP371/$C$371)","v":""},null,{"$f":"IF($C$371=\"\",\"\",AR371/$C$371)","v":""},null,{"$f":"IF($C$371=\"\",\"\",AT371/$C$371)","v":""},null,{"$f":"IF($C$371=\"\",\"\",AV371/$C$371)","v":""},null,{"$f":"IF($C$371=\"\",\"\",AX371/$C$371)","v":""},null,{"$f":"IF($C$371=\"\",\"\",AZ371/$C$371)","v":""},null,{"$f":"IF($C$371=\"\",\"\",BB371/$C$371)","v":""},null,{"$f":"SUM(BB371,AZ371,AX371,AV371,AT371,AR371,AP371,AN371,AL371,AJ371,AH371,AF371,AD371,AB371,Z371,X371,V371,T371,R371,P371,N371,L371,J371,H371,F371)","v":0}]
["TOTAL HOURS",null,null,null,null,{"$f":"SUM(F361:F371)","v":0},null,{"$f":"SUM(H361:H371)","v":0},null,{"$f":"SUM(J361:J371)","v":0},null,{"$f":"SUM(L361:L371)","v":0},null,{"$f":"SUM(N361:N371)","v":0},null,{"$f":"SUM(P361:P371)","v":0},null,{"$f":"SUM(R361:R371)","v":0},null,{"$f":"SUM(T361:T371)","v":0},null,{"$f":"SUM(V361:V371)","v":0},null,{"$f":"SUM(X361:X371)","v":0},null,{"$f":"SUM(Z361:Z371)","v":0},null,{"$f":"SUM(AB361:AB371)","v":0},null,{"$f":"SUM(AD361:AD371)","v":0},null,{"$f":"SUM(AF361:AF371)","v":0},null,{"$f":"SUM(AH361:AH371)","v":0},null,{"$f":"SUM(AJ361:AJ371)","v":0},null,{"$f":"SUM(AL361:AL371)","v":0},null,{"$f":"SUM(AN361:AN371)","v":0},null,{"$f":"SUM(AP361:AP371)","v":0},null,{"$f":"SUM(AR361:AR371)","v":0},null,{"$f":"SUM(AT361:AT371)","v":0},null,{"$f":"SUM(AV361:AV371)","v":0},null,{"$f":"SUM(AX361:AX371)","v":0},null,{"$f":"SUM(AZ361:AZ371)","v":0},null,{"$f":"SUM(BB361:BB371)","v":0},{"$f":"SUM(E372:BB372)","v":0}]
["TOTAL WORKDAYS",null,null,null,null,{"$f":"F372/8","v":0},null,{"$f":"H372/8","v":0},null,{"$f":"J372/8","v":0},null,{"$f":"L372/8","v":0},null,{"$f":"N372/8","v":0},null,{"$f":"P372/8","v":0},null,{"$f":"R372/8","v":0},null,{"$f":"T372/8","v":0},null,{"$f":"V372/8","v":0},null,{"$f":"X372/8","v":0},null,{"$f":"Z372/8","v":0},null,{"$f":"AB372/8","v":0},null,{"$f":"AD372/8","v":0},null,0,null,{"$f":"AH372/8","v":0},null,0,null,{"$f":"AL372/8","v":0},null,0,null,{"$f":"AP372/8","v":0},null,0,null,{"$f":"AT372/8","v":0},null,{"$f":"AV372/8","v":0},null,{"$f":"AX372/8","v":0},null,{"$f":"AZ372/8","v":0},null,{"$f":"BB372/8","v":0},{"$f":"SUM(E373:BB373)","v":0}]
["TOTAL RAW LABOR",null,null,null,null,{"$f":"$E$13*F372","v":0},null,{"$f":"$G$13*H372","v":0},null,{"$f":"$I$13*J372","v":0},null,{"$f":"$K$13*L372","v":0},null,{"$f":"$M$13*N372","v":0},null,{"$f":"$O$13*P372","v":0},null,{"$f":"$Q$13*R372","v":0},null,{"$f":"$S$13*T372","v":0},null,{"$f":"$U$13*V372","v":0},null,{"$f":"$W$13*X372","v":0},null,{"$f":"$Y$13*Z372","v":0},null,{"$f":"$AA$13*AB372","v":0},null,{"$f":"$AC$13*AD372","v":0},null,{"$f":"$AC$13*AF372","v":0},null,{"$f":"$AC$13*AH372","v":0},null,{"$f":"$AC$13*AJ372","v":0},null,{"$f":"$AC$13*AL372","v":0},null,{"$f":"$AC$13*AN372","v":0},null,{"$f":"$AC$13*AP372","v":0},null,{"$f":"$AC$13*AR372","v":0},null,{"$f":"$AC$13*AT372","v":0},null,{"$f":"$AC$13*AV372","v":0},null,{"$f":"$AC$13*AX372","v":0},null,{"$f":"$AC$13*AZ372","v":0},null,{"$f":"$AC$13*BB372","v":0},{"$f":"SUM(E374:BB374)","v":0}]
["Task 15.0     ","REPLACE FIELD WITH CATEGORY NAME OF YOUR CHOOSING HERE",null,null,null,null,null,null,null,null,null,null,null,null,null,null,null,null,null,null,null,null,null,null,null,null,null,null,null,null,null,null,null,null,null,null,null,null,null,null,null,null,null,null,null,null,null,null,null,null,null,null,null,null,{"$f":"IF(B375=\"REPLACE FIELD WITH CATEGORY NAME OF YOUR CHOOSING HERE\",0,\"\")","v":0}]
[null,null,null,null,{"$f":"IF($C$376=\"\",\"\",F376/$C$376)","v":""},null,{"$f":"IF($C$376=\"\",\"\",H376/$C$376)","v":""},null,{"$f":"IF($C$376=\"\",\"\",J376/$C$376)","v":""},null,{"$f":"IF($C$376=\"\",\"\",L376/$C$376)","v":""},null,{"$f":"IF($C$376=\"\",\"\",N376/$C$376)","v":""},null,{"$f":"IF($C$376=\"\",\"\",P376/$C$376)","v":""},null,{"$f":"IF($C$376=\"\",\"\",R376/$C$376)","v":""},null,{"$f":"IF($C$376=\"\",\"\",T376/$C$376)","v":""},null,{"$f":"IF($C$376=\"\",\"\",V376/$C$376)","v":""},null,{"$f":"IF($C$376=\"\",\"\",X376/$C$376)","v":""},null,{"$f":"IF($C$376=\"\",\"\",Z376/$C$376)","v":""},null,{"$f":"IF($C$376=\"\",\"\",AB376/$C$376)","v":""},null,{"$f":"IF($C$376=\"\",\"\",AD376/$C$376)","v":""},null,{"$f":"IF($C$376=\"\",\"\",AF376/$C$376)","v":""},null,{"$f":"IF($C$376=\"\",\"\",AH376/$C$376)","v":""},null,{"$f":"IF($C$376=\"\",\"\",AJ376/$C$376)","v":""},null,{"$f":"IF($C$376=\"\",\"\",AL376/$C$376)","v":""},null,{"$f":"IF($C$376=\"\",\"\",AN376/$C$376)","v":""},null,{"$f":"IF($C$376=\"\",\"\",AP376/$C$376)","v":""},null,{"$f":"IF($C$376=\"\",\"\",AR376/$C$376)","v":""},null,{"$f":"IF($C$376=\"\",\"\",AT376/$C$376)","v":""},null,{"$f":"IF($C$376=\"\",\"\",AV376/$C$376)","v":""},null,{"$f":"IF($C$376=\"\",\"\",AX376/$C$376)","v":""},null,{"$f":"IF($C$376=\"\",\"\",AZ376/$C$376)","v":""},null,{"$f":"IF($C$376=\"\",\"\",BB376/$C$376)","v":""},null,{"$f":"SUM(BB376,AZ376,AX376,AV376,AT376,AR376,AP376,AN376,AL376,AJ376,AH376,AF376,AD376,AB376,Z376,X376,V376,T376,R376,P376,N376,L376,J376,H376,F376)","v":0}]
[null,null,null,null,{"$f":"IF($C$377=\"\",\"\",F377/$C$377)","v":""},null,{"$f":"IF($C$377=\"\",\"\",H377/$C$377)","v":""},null,{"$f":"IF($C$377=\"\",\"\",J377/$C$377)","v":""},null,{"$f":"IF($C$377=\"\",\"\",L377/$C$377)","v":""},null,{"$f":"IF($C$377=\"\",\"\",N377/$C$377)","v":""},null,{"$f":"IF($C$377=\"\",\"\",P377/$C$377)","v":""},null,{"$f":"IF($C$377=\"\",\"\",R377/$C$377)","v":""},null,{"$f":"IF($C$377=\"\",\"\",T377/$C$377)","v":""},null,{"$f":"IF($C$377=\"\",\"\",V377/$C$377)","v":""},null,{"$f":"IF($C$377=\"\",\"\",X377/$C$377)","v":""},null,{"$f":"IF($C$377=\"\",\"\",Z377/$C$377)","v":""},null,{"$f":"IF($C$377=\"\",\"\",AB377/$C$377)","v":""},null,{"$f":"IF($C$377=\"\",\"\",AD377/$C$377)","v":""},null,{"$f":"IF($C$377=\"\",\"\",AF377/$C$377)","v":""},null,{"$f":"IF($C$377=\"\",\"\",AH377/$C$377)","v":""},null,{"$f":"IF($C$377=\"\",\"\",AJ377/$C$377)","v":""},null,{"$f":"IF($C$377=\"\",\"\",AL377/$C$377)","v":""},null,{"$f":"IF($C$377=\"\",\"\",AN377/$C$377)","v":""},null,{"$f":"IF($C$377=\"\",\"\",AP377/$C$377)","v":""},null,{"$f":"IF($C$377=\"\",\"\",AR377/$C$377)","v":""},null,{"$f":"IF($C$377=\"\",\"\",AT377/$C$377)","v":""},null,{"$f":"IF($C$377=\"\",\"\",AV377/$C$377)","v":""},null,{"$f":"IF($C$377=\"\",\"\",AX377/$C$377)","v":""},null,{"$f":"IF($C$377=\"\",\"\",AZ377/$C$377)","v":""},null,{"$f":"IF($C$377=\"\",\"\",BB377/$C$377)","v":""},null,0]
[null,null,null,null,{"$f":"IF($C$378=\"\",\"\",F378/$C$378)","v":""},null,{"$f":"IF($C$378=\"\",\"\",H378/$C$378)","v":""},null,{"$f":"IF($C$378=\"\",\"\",J378/$C$378)","v":""},null,{"$f":"IF($C$378=\"\",\"\",L378/$C$378)","v":""},null,{"$f":"IF($C$378=\"\",\"\",N378/$C$378)","v":""},null,{"$f":"IF($C$378=\"\",\"\",P378/$C$378)","v":""},null,{"$f":"IF($C$378=\"\",\"\",R378/$C$378)","v":""},null,{"$f":"IF($C$378=\"\",\"\",T378/$C$378)","v":""},null,{"$f":"IF($C$378=\"\",\"\",V378/$C$378)","v":""},null,{"$f":"IF($C$378=\"\",\"\",X378/$C$378)","v":""},null,{"$f":"IF($C$378=\"\",\"\",Z378/$C$378)","v":""},null,{"$f":"IF($C$378=\"\",\"\",AB378/$C$378)","v":""},null,{"$f":"IF($C$378=\"\",\"\",AD378/$C$378)","v":""},null,{"$f":"IF($C$378=\"\",\"\",AF378/$C$378)","v":""},null,{"$f":"IF($C$378=\"\",\"\",AH378/$C$378)","v":""},null,{"$f":"IF($C$378=\"\",\"\",AJ378/$C$378)","v":""},null,{"$f":"IF($C$378=\"\",\"\",AL378/$C$378)","v":""},null,{"$f":"IF($C$378=\"\",\"\",AN378/$C$378)","v":""},null,{"$f":"IF($C$378=\"\",\"\",AP378/$C$378)","v":""},null,{"$f":"IF($C$378=\"\",\"\",AR378/$C$378)","v":""},null,{"$f":"IF($C$378=\"\",\"\",AT378/$C$378)","v":""},null,{"$f":"IF($C$378=\"\",\"\",AV378/$C$378)","v":""},null,{"$f":"IF($C$378=\"\",\"\",AX378/$C$378)","v":""},null,{"$f":"IF($C$378=\"\",\"\",AZ378/$C$378)","v":""},null,{"$f":"IF($C$378=\"\",\"\",BB378/$C$378)","v":""},null,0]
[null,null,null,null,{"$f":"IF($C$379=\"\",\"\",F379/$C$379)","v":""},null,{"$f":"IF($C$379=\"\",\"\",H379/$C$379)","v":""},null,{"$f":"IF($C$379=\"\",\"\",J379/$C$379)","v":""},null,{"$f":"IF($C$379=\"\",\"\",L379/$C$379)","v":""},null,{"$f":"IF($C$379=\"\",\"\",N379/$C$379)","v":""},null,{"$f":"IF($C$379=\"\",\"\",P379/$C$379)","v":""},null,{"$f":"IF($C$379=\"\",\"\",R379/$C$379)","v":""},null,{"$f":"IF($C$379=\"\",\"\",T379/$C$379)","v":""},null,{"$f":"IF($C$379=\"\",\"\",V379/$C$379)","v":""},null,{"$f":"IF($C$379=\"\",\"\",X379/$C$379)","v":""},null,{"$f":"IF($C$379=\"\",\"\",Z379/$C$379)","v":""},null,{"$f":"IF($C$379=\"\",\"\",AB379/$C$379)","v":""},null,{"$f":"IF($C$379=\"\",\"\",AD379/$C$379)","v":""},null,{"$f":"IF($C$379=\"\",\"\",AF379/$C$379)","v":""},null,{"$f":"IF($C$379=\"\",\"\",AH379/$C$379)","v":""},null,{"$f":"IF($C$379=\"\",\"\",AJ379/$C$379)","v":""},null,{"$f":"IF($C$379=\"\",\"\",AL379/$C$379)","v":""},null,{"$f":"IF($C$379=\"\",\"\",AN379/$C$379)","v":""},null,{"$f":"IF($C$379=\"\",\"\",AP379/$C$379)","v":""},null,{"$f":"IF($C$379=\"\",\"\",AR379/$C$379)","v":""},null,{"$f":"IF($C$379=\"\",\"\",AT379/$C$379)","v":""},null,{"$f":"IF($C$379=\"\",\"\",AV379/$C$379)","v":""},null,{"$f":"IF($C$379=\"\",\"\",AX379/$C$379)","v":""},null,{"$f":"IF($C$379=\"\",\"\",AZ379/$C$379)","v":""},null,{"$f":"IF($C$379=\"\",\"\",BB379/$C$379)","v":""},null,0]
[null,null,null,null,{"$f":"IF($C$380=\"\",\"\",F380/$C$380)","v":""},null,{"$f":"IF($C$380=\"\",\"\",H380/$C$380)","v":""},null,{"$f":"IF($C$380=\"\",\"\",J380/$C$380)","v":""},null,{"$f":"IF($C$380=\"\",\"\",L380/$C$380)","v":""},null,{"$f":"IF($C$380=\"\",\"\",N380/$C$380)","v":""},null,{"$f":"IF($C$380=\"\",\"\",P380/$C$380)","v":""},null,{"$f":"IF($C$380=\"\",\"\",R380/$C$380)","v":""},null,{"$f":"IF($C$380=\"\",\"\",T380/$C$380)","v":""},null,{"$f":"IF($C$380=\"\",\"\",V380/$C$380)","v":""},null,{"$f":"IF($C$380=\"\",\"\",X380/$C$380)","v":""},null,{"$f":"IF($C$380=\"\",\"\",Z380/$C$380)","v":""},null,{"$f":"IF($C$380=\"\",\"\",AB380/$C$380)","v":""},null,{"$f":"IF($C$380=\"\",\"\",AD380/$C$380)","v":""},null,{"$f":"IF($C$380=\"\",\"\",AF380/$C$380)","v":""},null,{"$f":"IF($C$380=\"\",\"\",AH380/$C$380)","v":""},null,{"$f":"IF($C$380=\"\",\"\",AJ380/$C$380)","v":""},null,{"$f":"IF($C$380=\"\",\"\",AL380/$C$380)","v":""},null,{"$f":"IF($C$380=\"\",\"\",AN380/$C$380)","v":""},null,{"$f":"IF($C$380=\"\",\"\",AP380/$C$380)","v":""},null,{"$f":"IF($C$380=\"\",\"\",AR380/$C$380)","v":""},null,{"$f":"IF($C$380=\"\",\"\",AT380/$C$380)","v":""},null,{"$f":"IF($C$380=\"\",\"\",AV380/$C$380)","v":""},null,{"$f":"IF($C$380=\"\",\"\",AX380/$C$380)","v":""},null,{"$f":"IF($C$380=\"\",\"\",AZ380/$C$380)","v":""},null,{"$f":"IF($C$380=\"\",\"\",BB380/$C$380)","v":""},null,0]
[null,null,null,null,{"$f":"IF($C$381=\"\",\"\",F381/$C$381)","v":""},null,{"$f":"IF($C$381=\"\",\"\",H381/$C$381)","v":""},null,{"$f":"IF($C$381=\"\",\"\",J381/$C$381)","v":""},null,{"$f":"IF($C$381=\"\",\"\",L381/$C$381)","v":""},null,{"$f":"IF($C$381=\"\",\"\",N381/$C$381)","v":""},null,{"$f":"IF($C$381=\"\",\"\",P381/$C$381)","v":""},null,{"$f":"IF($C$381=\"\",\"\",R381/$C$381)","v":""},null,{"$f":"IF($C$381=\"\",\"\",T381/$C$381)","v":""},null,{"$f":"IF($C$381=\"\",\"\",V381/$C$381)","v":""},null,{"$f":"IF($C$381=\"\",\"\",X381/$C$381)","v":""},null,{"$f":"IF($C$381=\"\",\"\",Z381/$C$381)","v":""},null,{"$f":"IF($C$381=\"\",\"\",AB381/$C$381)","v":""},null,{"$f":"IF($C$381=\"\",\"\",AD381/$C$381)","v":""},null,{"$f":"IF($C$381=\"\",\"\",AF381/$C$381)","v":""},null,{"$f":"IF($C$381=\"\",\"\",AH381/$C$381)","v":""},null,{"$f":"IF($C$381=\"\",\"\",AJ381/$C$381)","v":""},null,{"$f":"IF($C$381=\"\",\"\",AL381/$C$381)","v":""},null,{"$f":"IF($C$381=\"\",\"\",AN381/$C$381)","v":""},null,{"$f":"IF($C$381=\"\",\"\",AP381/$C$381)","v":""},null,{"$f":"IF($C$381=\"\",\"\",AR381/$C$381)","v":""},null,{"$f":"IF($C$381=\"\",\"\",AT381/$C$381)","v":""},null,{"$f":"IF($C$381=\"\",\"\",AV381/$C$381)","v":""},null,{"$f":"IF($C$381=\"\",\"\",AX381/$C$381)","v":""},null,{"$f":"IF($C$381=\"\",\"\",AZ381/$C$381)","v":""},null,{"$f":"IF($C$381=\"\",\"\",BB381/$C$381)","v":""},null,0]
[null,null,null,null,{"$f":"IF($C$382=\"\",\"\",F382/$C$382)","v":""},null,{"$f":"IF($C$382=\"\",\"\",H382/$C$382)","v":""},null,{"$f":"IF($C$382=\"\",\"\",J382/$C$382)","v":""},null,{"$f":"IF($C$382=\"\",\"\",L382/$C$382)","v":""},null,{"$f":"IF($C$382=\"\",\"\",N382/$C$382)","v":""},null,{"$f":"IF($C$382=\"\",\"\",P382/$C$382)","v":""},null,{"$f":"IF($C$382=\"\",\"\",R382/$C$382)","v":""},null,{"$f":"IF($C$382=\"\",\"\",T382/$C$382)","v":""},null,{"$f":"IF($C$382=\"\",\"\",V382/$C$382)","v":""},null,{"$f":"IF($C$382=\"\",\"\",X382/$C$382)","v":""},null,{"$f":"IF($C$382=\"\",\"\",Z382/$C$382)","v":""},null,{"$f":"IF($C$382=\"\",\"\",AB382/$C$382)","v":""},null,{"$f":"IF($C$382=\"\",\"\",AD382/$C$382)","v":""},null,{"$f":"IF($C$382=\"\",\"\",AF382/$C$382)","v":""},null,{"$f":"IF($C$382=\"\",\"\",AH382/$C$382)","v":""},null,{"$f":"IF($C$382=\"\",\"\",AJ382/$C$382)","v":""},null,{"$f":"IF($C$382=\"\",\"\",AL382/$C$382)","v":""},null,{"$f":"IF($C$382=\"\",\"\",AN382/$C$382)","v":""},null,{"$f":"IF($C$382=\"\",\"\",AP382/$C$382)","v":""},null,{"$f":"IF($C$382=\"\",\"\",AR382/$C$382)","v":""},null,{"$f":"IF($C$382=\"\",\"\",AT382/$C$382)","v":""},null,{"$f":"IF($C$382=\"\",\"\",AV382/$C$382)","v":""},null,{"$f":"IF($C$382=\"\",\"\",AX382/$C$382)","v":""},null,{"$f":"IF($C$382=\"\",\"\",AZ382/$C$382)","v":""},null,{"$f":"IF($C$382=\"\",\"\",BB382/$C$382)","v":""},null,0]
[null,null,null,null,{"$f":"IF($C$383=\"\",\"\",F383/$C$383)","v":""},null,{"$f":"IF($C$383=\"\",\"\",H383/$C$383)","v":""},null,{"$f":"IF($C$383=\"\",\"\",J383/$C$383)","v":""},null,{"$f":"IF($C$383=\"\",\"\",L383/$C$383)","v":""},null,{"$f":"IF($C$383=\"\",\"\",N383/$C$383)","v":""},null,{"$f":"IF($C$383=\"\",\"\",P383/$C$383)","v":""},null,{"$f":"IF($C$383=\"\",\"\",R383/$C$383)","v":""},null,{"$f":"IF($C$383=\"\",\"\",T383/$C$383)","v":""},null,{"$f":"IF($C$383=\"\",\"\",V383/$C$383)","v":""},null,{"$f":"IF($C$383=\"\",\"\",X383/$C$383)","v":""},null,{"$f":"IF($C$383=\"\",\"\",Z383/$C$383)","v":""},null,{"$f":"IF($C$383=\"\",\"\",AB383/$C$383)","v":""},null,{"$f":"IF($C$383=\"\",\"\",AD383/$C$383)","v":""},null,{"$f":"IF($C$383=\"\",\"\",AF383/$C$383)","v":""},null,{"$f":"IF($C$383=\"\",\"\",AH383/$C$383)","v":""},null,{"$f":"IF($C$383=\"\",\"\",AJ383/$C$383)","v":""},null,{"$f":"IF($C$383=\"\",\"\",AL383/$C$383)","v":""},null,{"$f":"IF($C$383=\"\",\"\",AN383/$C$383)","v":""},null,{"$f":"IF($C$383=\"\",\"\",AP383/$C$383)","v":""},null,{"$f":"IF($C$383=\"\",\"\",AR383/$C$383)","v":""},null,{"$f":"IF($C$383=\"\",\"\",AT383/$C$383)","v":""},null,{"$f":"IF($C$383=\"\",\"\",AV383/$C$383)","v":""},null,{"$f":"IF($C$383=\"\",\"\",AX383/$C$383)","v":""},null,{"$f":"IF($C$383=\"\",\"\",AZ383/$C$383)","v":""},null,{"$f":"IF($C$383=\"\",\"\",BB383/$C$383)","v":""},null,0]
[null,null,null,null,{"$f":"IF($C$384=\"\",\"\",F384/$C$384)","v":""},null,{"$f":"IF($C$384=\"\",\"\",H384/$C$384)","v":""},null,{"$f":"IF($C$384=\"\",\"\",J384/$C$384)","v":""},null,{"$f":"IF($C$384=\"\",\"\",L384/$C$384)","v":""},null,{"$f":"IF($C$384=\"\",\"\",N384/$C$384)","v":""},null,{"$f":"IF($C$384=\"\",\"\",P384/$C$384)","v":""},null,{"$f":"IF($C$384=\"\",\"\",R384/$C$384)","v":""},null,{"$f":"IF($C$384=\"\",\"\",T384/$C$384)","v":""},null,{"$f":"IF($C$384=\"\",\"\",V384/$C$384)","v":""},null,{"$f":"IF($C$384=\"\",\"\",X384/$C$384)","v":""},null,{"$f":"IF($C$384=\"\",\"\",Z384/$C$384)","v":""},null,{"$f":"IF($C$384=\"\",\"\",AB384/$C$384)","v":""},null,{"$f":"IF($C$384=\"\",\"\",AD384/$C$384)","v":""},null,{"$f":"IF($C$384=\"\",\"\",AF384/$C$384)","v":""},null,{"$f":"IF($C$384=\"\",\"\",AH384/$C$384)","v":""},null,{"$f":"IF($C$384=\"\",\"\",AJ384/$C$384)","v":""},null,{"$f":"IF($C$384=\"\",\"\",AL384/$C$384)","v":""},null,{"$f":"IF($C$384=\"\",\"\",AN384/$C$384)","v":""},null,{"$f":"IF($C$384=\"\",\"\",AP384/$C$384)","v":""},null,{"$f":"IF($C$384=\"\",\"\",AR384/$C$384)","v":""},null,{"$f":"IF($C$384=\"\",\"\",AT384/$C$384)","v":""},null,{"$f":"IF($C$384=\"\",\"\",AV384/$C$384)","v":""},null,{"$f":"IF($C$384=\"\",\"\",AX384/$C$384)","v":""},null,{"$f":"IF($C$384=\"\",\"\",AZ384/$C$384)","v":""},null,{"$f":"IF($C$384=\"\",\"\",BB384/$C$384)","v":""},null,0]
[null,null,null,null,{"$f":"IF($C$385=\"\",\"\",F385/$C$385)","v":""},null,{"$f":"IF($C$385=\"\",\"\",H385/$C$385)","v":""},null,{"$f":"IF($C$385=\"\",\"\",J385/$C$385)","v":""},null,{"$f":"IF($C$385=\"\",\"\",L385/$C$385)","v":""},null,{"$f":"IF($C$385=\"\",\"\",N385/$C$385)","v":""},null,{"$f":"IF($C$385=\"\",\"\",P385/$C$385)","v":""},null,{"$f":"IF($C$385=\"\",\"\",R385/$C$385)","v":""},null,{"$f":"IF($C$385=\"\",\"\",T385/$C$385)","v":""},null,{"$f":"IF($C$385=\"\",\"\",V385/$C$385)","v":""},null,{"$f":"IF($C$385=\"\",\"\",X385/$C$385)","v":""},null,{"$f":"IF($C$385=\"\",\"\",Z385/$C$385)","v":""},null,{"$f":"IF($C$385=\"\",\"\",AB385/$C$385)","v":""},null,{"$f":"IF($C$385=\"\",\"\",AD385/$C$385)","v":""},null,{"$f":"IF($C$385=\"\",\"\",AF385/$C$385)","v":""},null,{"$f":"IF($C$385=\"\",\"\",AH385/$C$385)","v":""},null,{"$f":"IF($C$385=\"\",\"\",AJ385/$C$385)","v":""},null,{"$f":"IF($C$385=\"\",\"\",AL385/$C$385)","v":""},null,{"$f":"IF($C$385=\"\",\"\",AN385/$C$385)","v":""},null,{"$f":"IF($C$385=\"\",\"\",AP385/$C$385)","v":""},null,{"$f":"IF($C$385=\"\",\"\",AR385/$C$385)","v":""},null,{"$f":"IF($C$385=\"\",\"\",AT385/$C$385)","v":""},null,{"$f":"IF($C$385=\"\",\"\",AV385/$C$385)","v":""},null,{"$f":"IF($C$385=\"\",\"\",AX385/$C$385)","v":""},null,{"$f":"IF($C$385=\"\",\"\",AZ385/$C$385)","v":""},null,{"$f":"IF($C$385=\"\",\"\",BB385/$C$385)","v":""},null,0]
[null,null,null,null,{"$f":"IF($C$386=\"\",\"\",F386/$C$386)","v":""},null,{"$f":"IF($C$386=\"\",\"\",H386/$C$386)","v":""},null,{"$f":"IF($C$386=\"\",\"\",J386/$C$386)","v":""},null,{"$f":"IF($C$386=\"\",\"\",L386/$C$386)","v":""},null,{"$f":"IF($C$386=\"\",\"\",N386/$C$386)","v":""},null,{"$f":"IF($C$386=\"\",\"\",P386/$C$386)","v":""},null,{"$f":"IF($C$386=\"\",\"\",R386/$C$386)","v":""},null,{"$f":"IF($C$386=\"\",\"\",T386/$C$386)","v":""},null,{"$f":"IF($C$386=\"\",\"\",V386/$C$386)","v":""},null,{"$f":"IF($C$386=\"\",\"\",X386/$C$386)","v":""},null,{"$f":"IF($C$386=\"\",\"\",Z386/$C$386)","v":""},null,{"$f":"IF($C$386=\"\",\"\",AB386/$C$386)","v":""},null,{"$f":"IF($C$386=\"\",\"\",AD386/$C$386)","v":""},null,{"$f":"IF($C$386=\"\",\"\",AF386/$C$386)","v":""},null,{"$f":"IF($C$386=\"\",\"\",AH386/$C$386)","v":""},null,{"$f":"IF($C$386=\"\",\"\",AJ386/$C$386)","v":""},null,{"$f":"IF($C$386=\"\",\"\",AL386/$C$386)","v":""},null,{"$f":"IF($C$386=\"\",\"\",AN386/$C$386)","v":""},null,{"$f":"IF($C$386=\"\",\"\",AP386/$C$386)","v":""},null,{"$f":"IF($C$386=\"\",\"\",AR386/$C$386)","v":""},null,{"$f":"IF($C$386=\"\",\"\",AT386/$C$386)","v":""},null,{"$f":"IF($C$386=\"\",\"\",AV386/$C$386)","v":""},null,{"$f":"IF($C$386=\"\",\"\",AX386/$C$386)","v":""},null,{"$f":"IF($C$386=\"\",\"\",AZ386/$C$386)","v":""},null,{"$f":"IF($C$386=\"\",\"\",BB386/$C$386)","v":""},null,0]
[null,null,null,null,{"$f":"IF($C$387=\"\",\"\",F387/$C$387)","v":""},null,{"$f":"IF($C$387=\"\",\"\",H387/$C$387)","v":""},null,{"$f":"IF($C$387=\"\",\"\",J387/$C$387)","v":""},null,{"$f":"IF($C$387=\"\",\"\",L387/$C$387)","v":""},null,{"$f":"IF($C$387=\"\",\"\",N387/$C$387)","v":""},null,{"$f":"IF($C$387=\"\",\"\",P387/$C$387)","v":""},null,{"$f":"IF($C$387=\"\",\"\",R387/$C$387)","v":""},null,{"$f":"IF($C$387=\"\",\"\",T387/$C$387)","v":""},null,{"$f":"IF($C$387=\"\",\"\",V387/$C$387)","v":""},null,{"$f":"IF($C$387=\"\",\"\",X387/$C$387)","v":""},null,{"$f":"IF($C$387=\"\",\"\",Z387/$C$387)","v":""},null,{"$f":"IF($C$387=\"\",\"\",AB387/$C$387)","v":""},null,{"$f":"IF($C$387=\"\",\"\",AD387/$C$387)","v":""},null,{"$f":"IF($C$387=\"\",\"\",AF387/$C$387)","v":""},null,{"$f":"IF($C$387=\"\",\"\",AH387/$C$387)","v":""},null,{"$f":"IF($C$387=\"\",\"\",AJ387/$C$387)","v":""},null,{"$f":"IF($C$387=\"\",\"\",AL387/$C$387)","v":""},null,{"$f":"IF($C$387=\"\",\"\",AN387/$C$387)","v":""},null,{"$f":"IF($C$387=\"\",\"\",AP387/$C$387)","v":""},null,{"$f":"IF($C$387=\"\",\"\",AR387/$C$387)","v":""},null,{"$f":"IF($C$387=\"\",\"\",AT387/$C$387)","v":""},null,{"$f":"IF($C$387=\"\",\"\",AV387/$C$387)","v":""},null,{"$f":"IF($C$387=\"\",\"\",AX387/$C$387)","v":""},null,{"$f":"IF($C$387=\"\",\"\",AZ387/$C$387)","v":""},null,{"$f":"IF($C$387=\"\",\"\",BB387/$C$387)","v":""},null,0]
[null,null,null,null,{"$f":"IF($C$388=\"\",\"\",F388/$C$388)","v":""},null,{"$f":"IF($C$388=\"\",\"\",H388/$C$388)","v":""},null,{"$f":"IF($C$388=\"\",\"\",J388/$C$388)","v":""},null,{"$f":"IF($C$388=\"\",\"\",L388/$C$388)","v":""},null,{"$f":"IF($C$388=\"\",\"\",N388/$C$388)","v":""},null,{"$f":"IF($C$388=\"\",\"\",P388/$C$388)","v":""},null,{"$f":"IF($C$388=\"\",\"\",R388/$C$388)","v":""},null,{"$f":"IF($C$388=\"\",\"\",T388/$C$388)","v":""},null,{"$f":"IF($C$388=\"\",\"\",V388/$C$388)","v":""},null,{"$f":"IF($C$388=\"\",\"\",X388/$C$388)","v":""},null,{"$f":"IF($C$388=\"\",\"\",Z388/$C$388)","v":""},null,{"$f":"IF($C$388=\"\",\"\",AB388/$C$388)","v":""},null,{"$f":"IF($C$388=\"\",\"\",AD388/$C$388)","v":""},null,{"$f":"IF($C$388=\"\",\"\",AF388/$C$388)","v":""},null,{"$f":"IF($C$388=\"\",\"\",AH388/$C$388)","v":""},null,{"$f":"IF($C$388=\"\",\"\",AJ388/$C$388)","v":""},null,{"$f":"IF($C$388=\"\",\"\",AL388/$C$388)","v":""},null,{"$f":"IF($C$388=\"\",\"\",AN388/$C$388)","v":""},null,{"$f":"IF($C$388=\"\",\"\",AP388/$C$388)","v":""},null,{"$f":"IF($C$388=\"\",\"\",AR388/$C$388)","v":""},null,{"$f":"IF($C$388=\"\",\"\",AT388/$C$388)","v":""},null,{"$f":"IF($C$388=\"\",\"\",AV388/$C$388)","v":""},null,{"$f":"IF($C$388=\"\",\"\",AX388/$C$388)","v":""},null,{"$f":"IF($C$388=\"\",\"\",AZ388/$C$388)","v":""},null,{"$f":"IF($C$388=\"\",\"\",BB388/$C$388)","v":""},null,0]
[null,null,null,null,{"$f":"IF($C$389=\"\",\"\",F389/$C$389)","v":""},null,{"$f":"IF($C$389=\"\",\"\",H389/$C$389)","v":""},null,{"$f":"IF($C$389=\"\",\"\",J389/$C$389)","v":""},null,{"$f":"IF($C$389=\"\",\"\",L389/$C$389)","v":""},null,{"$f":"IF($C$389=\"\",\"\",N389/$C$389)","v":""},null,{"$f":"IF($C$389=\"\",\"\",P389/$C$389)","v":""},null,{"$f":"IF($C$389=\"\",\"\",R389/$C$389)","v":""},null,{"$f":"IF($C$389=\"\",\"\",T389/$C$389)","v":""},null,{"$f":"IF($C$389=\"\",\"\",V389/$C$389)","v":""},null,{"$f":"IF($C$389=\"\",\"\",X389/$C$389)","v":""},null,{"$f":"IF($C$389=\"\",\"\",Z389/$C$389)","v":""},null,{"$f":"IF($C$389=\"\",\"\",AB389/$C$389)","v":""},null,{"$f":"IF($C$389=\"\",\"\",AD389/$C$389)","v":""},null,{"$f":"IF($C$389=\"\",\"\",AF389/$C$389)","v":""},null,{"$f":"IF($C$389=\"\",\"\",AH389/$C$389)","v":""},null,{"$f":"IF($C$389=\"\",\"\",AJ389/$C$389)","v":""},null,{"$f":"IF($C$389=\"\",\"\",AL389/$C$389)","v":""},null,{"$f":"IF($C$389=\"\",\"\",AN389/$C$389)","v":""},null,{"$f":"IF($C$389=\"\",\"\",AP389/$C$389)","v":""},null,{"$f":"IF($C$389=\"\",\"\",AR389/$C$389)","v":""},null,{"$f":"IF($C$389=\"\",\"\",AT389/$C$389)","v":""},null,{"$f":"IF($C$389=\"\",\"\",AV389/$C$389)","v":""},null,{"$f":"IF($C$389=\"\",\"\",AX389/$C$389)","v":""},null,{"$f":"IF($C$389=\"\",\"\",AZ389/$C$389)","v":""},null,{"$f":"IF($C$389=\"\",\"\",BB389/$C$389)","v":""},null,0]
[null,null,null,null,{"$f":"IF($C$390=\"\",\"\",F390/$C$390)","v":""},null,{"$f":"IF($C$390=\"\",\"\",H390/$C$390)","v":""},null,{"$f":"IF($C$390=\"\",\"\",J390/$C$390)","v":""},null,{"$f":"IF($C$390=\"\",\"\",L390/$C$390)","v":""},null,{"$f":"IF($C$390=\"\",\"\",N390/$C$390)","v":""},null,{"$f":"IF($C$390=\"\",\"\",P390/$C$390)","v":""},null,{"$f":"IF($C$390=\"\",\"\",R390/$C$390)","v":""},null,{"$f":"IF($C$390=\"\",\"\",T390/$C$390)","v":""},null,{"$f":"IF($C$390=\"\",\"\",V390/$C$390)","v":""},null,{"$f":"IF($C$390=\"\",\"\",X390/$C$390)","v":""},null,{"$f":"IF($C$390=\"\",\"\",Z390/$C$390)","v":""},null,{"$f":"IF($C$390=\"\",\"\",AB390/$C$390)","v":""},null,{"$f":"IF($C$390=\"\",\"\",AD390/$C$390)","v":""},null,{"$f":"IF($C$390=\"\",\"\",AF390/$C$390)","v":""},null,{"$f":"IF($C$390=\"\",\"\",AH390/$C$390)","v":""},null,{"$f":"IF($C$390=\"\",\"\",AJ390/$C$390)","v":""},null,{"$f":"IF($C$390=\"\",\"\",AL390/$C$390)","v":""},null,{"$f":"IF($C$390=\"\",\"\",AN390/$C$390)","v":""},null,{"$f":"IF($C$390=\"\",\"\",AP390/$C$390)","v":""},null,{"$f":"IF($C$390=\"\",\"\",AR390/$C$390)","v":""},null,{"$f":"IF($C$390=\"\",\"\",AT390/$C$390)","v":""},null,{"$f":"IF($C$390=\"\",\"\",AV390/$C$390)","v":""},null,{"$f":"IF($C$390=\"\",\"\",AX390/$C$390)","v":""},null,{"$f":"IF($C$390=\"\",\"\",AZ390/$C$390)","v":""},null,{"$f":"IF($C$390=\"\",\"\",BB390/$C$390)","v":""},null,0]
[null,null,null,null,{"$f":"IF($C$391=\"\",\"\",F391/$C$391)","v":""},null,{"$f":"IF($C$391=\"\",\"\",H391/$C$391)","v":""},null,{"$f":"IF($C$391=\"\",\"\",J391/$C$391)","v":""},null,{"$f":"IF($C$391=\"\",\"\",L391/$C$391)","v":""},null,{"$f":"IF($C$391=\"\",\"\",N391/$C$391)","v":""},null,{"$f":"IF($C$391=\"\",\"\",P391/$C$391)","v":""},null,{"$f":"IF($C$391=\"\",\"\",R391/$C$391)","v":""},null,{"$f":"IF($C$391=\"\",\"\",T391/$C$391)","v":""},null,{"$f":"IF($C$391=\"\",\"\",V391/$C$391)","v":""},null,{"$f":"IF($C$391=\"\",\"\",X391/$C$391)","v":""},null,{"$f":"IF($C$391=\"\",\"\",Z391/$C$391)","v":""},null,{"$f":"IF($C$391=\"\",\"\",AB391/$C$391)","v":""},null,{"$f":"IF($C$391=\"\",\"\",AD391/$C$391)","v":""},null,{"$f":"IF($C$391=\"\",\"\",AF391/$C$391)","v":""},null,{"$f":"IF($C$391=\"\",\"\",AH391/$C$391)","v":""},null,{"$f":"IF($C$391=\"\",\"\",AJ391/$C$391)","v":""},null,{"$f":"IF($C$391=\"\",\"\",AL391/$C$391)","v":""},null,{"$f":"IF($C$391=\"\",\"\",AN391/$C$391)","v":""},null,{"$f":"IF($C$391=\"\",\"\",AP391/$C$391)","v":""},null,{"$f":"IF($C$391=\"\",\"\",AR391/$C$391)","v":""},null,{"$f":"IF($C$391=\"\",\"\",AT391/$C$391)","v":""},null,{"$f":"IF($C$391=\"\",\"\",AV391/$C$391)","v":""},null,{"$f":"IF($C$391=\"\",\"\",AX391/$C$391)","v":""},null,{"$f":"IF($C$391=\"\",\"\",AZ391/$C$391)","v":""},null,{"$f":"IF($C$391=\"\",\"\",BB391/$C$391)","v":""},null,0]
[null,null,null,null,{"$f":"IF($C$392=\"\",\"\",F392/$C$392)","v":""},null,{"$f":"IF($C$392=\"\",\"\",H392/$C$392)","v":""},null,{"$f":"IF($C$392=\"\",\"\",J392/$C$392)","v":""},null,{"$f":"IF($C$392=\"\",\"\",L392/$C$392)","v":""},null,{"$f":"IF($C$392=\"\",\"\",N392/$C$392)","v":""},null,{"$f":"IF($C$392=\"\",\"\",P392/$C$392)","v":""},null,{"$f":"IF($C$392=\"\",\"\",R392/$C$392)","v":""},null,{"$f":"IF($C$392=\"\",\"\",T392/$C$392)","v":""},null,{"$f":"IF($C$392=\"\",\"\",V392/$C$392)","v":""},null,{"$f":"IF($C$392=\"\",\"\",X392/$C$392)","v":""},null,{"$f":"IF($C$392=\"\",\"\",Z392/$C$392)","v":""},null,{"$f":"IF($C$392=\"\",\"\",AB392/$C$392)","v":""},null,{"$f":"IF($C$392=\"\",\"\",AD392/$C$392)","v":""},null,{"$f":"IF($C$392=\"\",\"\",AF392/$C$392)","v":""},null,{"$f":"IF($C$392=\"\",\"\",AH392/$C$392)","v":""},null,{"$f":"IF($C$392=\"\",\"\",AJ392/$C$392)","v":""},null,{"$f":"IF($C$392=\"\",\"\",AL392/$C$392)","v":""},null,{"$f":"IF($C$392=\"\",\"\",AN392/$C$392)","v":""},null,{"$f":"IF($C$392=\"\",\"\",AP392/$C$392)","v":""},null,{"$f":"IF($C$392=\"\",\"\",AR392/$C$392)","v":""},null,{"$f":"IF($C$392=\"\",\"\",AT392/$C$392)","v":""},null,{"$f":"IF($C$392=\"\",\"\",AV392/$C$392)","v":""},null,{"$f":"IF($C$392=\"\",\"\",AX392/$C$392)","v":""},null,{"$f":"IF($C$392=\"\",\"\",AZ392/$C$392)","v":""},null,{"$f":"IF($C$392=\"\",\"\",BB392/$C$392)","v":""},null,0]
[null,null,null,null,{"$f":"IF($C$393=\"\",\"\",F393/$C$393)","v":""},null,{"$f":"IF($C$393=\"\",\"\",H393/$C$393)","v":""},null,{"$f":"IF($C$393=\"\",\"\",J393/$C$393)","v":""},null,{"$f":"IF($C$393=\"\",\"\",L393/$C$393)","v":""},null,{"$f":"IF($C$393=\"\",\"\",N393/$C$393)","v":""},null,{"$f":"IF($C$393=\"\",\"\",P393/$C$393)","v":""},null,{"$f":"IF($C$393=\"\",\"\",R393/$C$393)","v":""},null,{"$f":"IF($C$393=\"\",\"\",T393/$C$393)","v":""},null,{"$f":"IF($C$393=\"\",\"\",V393/$C$393)","v":""},null,{"$f":"IF($C$393=\"\",\"\",X393/$C$393)","v":""},null,{"$f":"IF($C$393=\"\",\"\",Z393/$C$393)","v":""},null,{"$f":"IF($C$393=\"\",\"\",AB393/$C$393)","v":""},null,{"$f":"IF($C$393=\"\",\"\",AD393/$C$393)","v":""},null,{"$f":"IF($C$393=\"\",\"\",AF393/$C$393)","v":""},null,{"$f":"IF($C$393=\"\",\"\",AH393/$C$393)","v":""},null,{"$f":"IF($C$393=\"\",\"\",AJ393/$C$393)","v":""},null,{"$f":"IF($C$393=\"\",\"\",AL393/$C$393)","v":""},null,{"$f":"IF($C$393=\"\",\"\",AN393/$C$393)","v":""},null,{"$f":"IF($C$393=\"\",\"\",AP393/$C$393)","v":""},null,{"$f":"IF($C$393=\"\",\"\",AR393/$C$393)","v":""},null,{"$f":"IF($C$393=\"\",\"\",AT393/$C$393)","v":""},null,{"$f":"IF($C$393=\"\",\"\",AV393/$C$393)","v":""},null,{"$f":"IF($C$393=\"\",\"\",AX393/$C$393)","v":""},null,{"$f":"IF($C$393=\"\",\"\",AZ393/$C$393)","v":""},null,{"$f":"IF($C$393=\"\",\"\",BB393/$C$393)","v":""},null,0]
[null,null,null,null,{"$f":"IF($C$394=\"\",\"\",F394/$C$394)","v":""},null,{"$f":"IF($C$394=\"\",\"\",H394/$C$394)","v":""},null,{"$f":"IF($C$394=\"\",\"\",J394/$C$394)","v":""},null,{"$f":"IF($C$394=\"\",\"\",L394/$C$394)","v":""},null,{"$f":"IF($C$394=\"\",\"\",N394/$C$394)","v":""},null,{"$f":"IF($C$394=\"\",\"\",P394/$C$394)","v":""},null,{"$f":"IF($C$394=\"\",\"\",R394/$C$394)","v":""},null,{"$f":"IF($C$394=\"\",\"\",T394/$C$394)","v":""},null,{"$f":"IF($C$394=\"\",\"\",V394/$C$394)","v":""},null,{"$f":"IF($C$394=\"\",\"\",X394/$C$394)","v":""},null,{"$f":"IF($C$394=\"\",\"\",Z394/$C$394)","v":""},null,{"$f":"IF($C$394=\"\",\"\",AB394/$C$394)","v":""},null,{"$f":"IF($C$394=\"\",\"\",AD394/$C$394)","v":""},null,{"$f":"IF($C$394=\"\",\"\",AF394/$C$394)","v":""},null,{"$f":"IF($C$394=\"\",\"\",AH394/$C$394)","v":""},null,{"$f":"IF($C$394=\"\",\"\",AJ394/$C$394)","v":""},null,{"$f":"IF($C$394=\"\",\"\",AL394/$C$394)","v":""},null,{"$f":"IF($C$394=\"\",\"\",AN394/$C$394)","v":""},null,{"$f":"IF($C$394=\"\",\"\",AP394/$C$394)","v":""},null,{"$f":"IF($C$394=\"\",\"\",AR394/$C$394)","v":""},null,{"$f":"IF($C$394=\"\",\"\",AT394/$C$394)","v":""},null,{"$f":"IF($C$394=\"\",\"\",AV394/$C$394)","v":""},null,{"$f":"IF($C$394=\"\",\"\",AX394/$C$394)","v":""},null,{"$f":"IF($C$394=\"\",\"\",AZ394/$C$394)","v":""},null,{"$f":"IF($C$394=\"\",\"\",BB394/$C$394)","v":""},null,0]
[null,null,null,null,{"$f":"IF($C$395=\"\",\"\",F395/$C$395)","v":""},null,{"$f":"IF($C$395=\"\",\"\",H395/$C$395)","v":""},null,{"$f":"IF($C$395=\"\",\"\",J395/$C$395)","v":""},null,{"$f":"IF($C$395=\"\",\"\",L395/$C$395)","v":""},null,{"$f":"IF($C$395=\"\",\"\",N395/$C$395)","v":""},null,{"$f":"IF($C$395=\"\",\"\",P395/$C$395)","v":""},null,{"$f":"IF($C$395=\"\",\"\",R395/$C$395)","v":""},null,{"$f":"IF($C$395=\"\",\"\",T395/$C$395)","v":""},null,{"$f":"IF($C$395=\"\",\"\",V395/$C$395)","v":""},null,{"$f":"IF($C$395=\"\",\"\",X395/$C$395)","v":""},null,{"$f":"IF($C$395=\"\",\"\",Z395/$C$395)","v":""},null,{"$f":"IF($C$395=\"\",\"\",AB395/$C$395)","v":""},null,{"$f":"IF($C$395=\"\",\"\",AD395/$C$395)","v":""},null,{"$f":"IF($C$395=\"\",\"\",AF395/$C$395)","v":""},null,{"$f":"IF($C$395=\"\",\"\",AH395/$C$395)","v":""},null,{"$f":"IF($C$395=\"\",\"\",AJ395/$C$395)","v":""},null,{"$f":"IF($C$395=\"\",\"\",AL395/$C$395)","v":""},null,{"$f":"IF($C$395=\"\",\"\",AN395/$C$395)","v":""},null,{"$f":"IF($C$395=\"\",\"\",AP395/$C$395)","v":""},null,{"$f":"IF($C$395=\"\",\"\",AR395/$C$395)","v":""},null,{"$f":"IF($C$395=\"\",\"\",AT395/$C$395)","v":""},null,{"$f":"IF($C$395=\"\",\"\",AV395/$C$395)","v":""},null,{"$f":"IF($C$395=\"\",\"\",AX395/$C$395)","v":""},null,{"$f":"IF($C$395=\"\",\"\",AZ395/$C$395)","v":""},null,{"$f":"IF($C$395=\"\",\"\",BB395/$C$395)","v":""},null,0]
[null,null,null,null,{"$f":"IF($C$396=\"\",\"\",F396/$C$396)","v":""},null,{"$f":"IF($C$396=\"\",\"\",H396/$C$396)","v":""},null,{"$f":"IF($C$396=\"\",\"\",J396/$C$396)","v":""},null,{"$f":"IF($C$396=\"\",\"\",L396/$C$396)","v":""},null,{"$f":"IF($C$396=\"\",\"\",N396/$C$396)","v":""},null,{"$f":"IF($C$396=\"\",\"\",P396/$C$396)","v":""},null,{"$f":"IF($C$396=\"\",\"\",R396/$C$396)","v":""},null,{"$f":"IF($C$396=\"\",\"\",T396/$C$396)","v":""},null,{"$f":"IF($C$396=\"\",\"\",V396/$C$396)","v":""},null,{"$f":"IF($C$396=\"\",\"\",X396/$C$396)","v":""},null,{"$f":"IF($C$396=\"\",\"\",Z396/$C$396)","v":""},null,{"$f":"IF($C$396=\"\",\"\",AB396/$C$396)","v":""},null,{"$f":"IF($C$396=\"\",\"\",AD396/$C$396)","v":""},null,{"$f":"IF($C$396=\"\",\"\",AF396/$C$396)","v":""},null,{"$f":"IF($C$396=\"\",\"\",AH396/$C$396)","v":""},null,{"$f":"IF($C$396=\"\",\"\",AJ396/$C$396)","v":""},null,{"$f":"IF($C$396=\"\",\"\",AL396/$C$396)","v":""},null,{"$f":"IF($C$396=\"\",\"\",AN396/$C$396)","v":""},null,{"$f":"IF($C$396=\"\",\"\",AP396/$C$396)","v":""},null,{"$f":"IF($C$396=\"\",\"\",AR396/$C$396)","v":""},null,{"$f":"IF($C$396=\"\",\"\",AT396/$C$396)","v":""},null,{"$f":"IF($C$396=\"\",\"\",AV396/$C$396)","v":""},null,{"$f":"IF($C$396=\"\",\"\",AX396/$C$396)","v":""},null,{"$f":"IF($C$396=\"\",\"\",AZ396/$C$396)","v":""},null,{"$f":"IF($C$396=\"\",\"\",BB396/$C$396)","v":""},null,0]
[null,null,null,null,{"$f":"IF($C$397=\"\",\"\",F397/$C$397)","v":""},null,{"$f":"IF($C$397=\"\",\"\",H397/$C$397)","v":""},null,{"$f":"IF($C$397=\"\",\"\",J397/$C$397)","v":""},null,{"$f":"IF($C$397=\"\",\"\",L397/$C$397)","v":""},null,{"$f":"IF($C$397=\"\",\"\",N397/$C$397)","v":""},null,{"$f":"IF($C$397=\"\",\"\",P397/$C$397)","v":""},null,{"$f":"IF($C$397=\"\",\"\",R397/$C$397)","v":""},null,{"$f":"IF($C$397=\"\",\"\",T397/$C$397)","v":""},null,{"$f":"IF($C$397=\"\",\"\",V397/$C$397)","v":""},null,{"$f":"IF($C$397=\"\",\"\",X397/$C$397)","v":""},null,{"$f":"IF($C$397=\"\",\"\",Z397/$C$397)","v":""},null,{"$f":"IF($C$397=\"\",\"\",AB397/$C$397)","v":""},null,{"$f":"IF($C$397=\"\",\"\",AD397/$C$397)","v":""},null,{"$f":"IF($C$397=\"\",\"\",AF397/$C$397)","v":""},null,{"$f":"IF($C$397=\"\",\"\",AH397/$C$397)","v":""},null,{"$f":"IF($C$397=\"\",\"\",AJ397/$C$397)","v":""},null,{"$f":"IF($C$397=\"\",\"\",AL397/$C$397)","v":""},null,{"$f":"IF($C$397=\"\",\"\",AN397/$C$397)","v":""},null,{"$f":"IF($C$397=\"\",\"\",AP397/$C$397)","v":""},null,{"$f":"IF($C$397=\"\",\"\",AR397/$C$397)","v":""},null,{"$f":"IF($C$397=\"\",\"\",AT397/$C$397)","v":""},null,{"$f":"IF($C$397=\"\",\"\",AV397/$C$397)","v":""},null,{"$f":"IF($C$397=\"\",\"\",AX397/$C$397)","v":""},null,{"$f":"IF($C$397=\"\",\"\",AZ397/$C$397)","v":""},null,{"$f":"IF($C$397=\"\",\"\",BB397/$C$397)","v":""},null,0]
[null,null,null,null,{"$f":"IF($C$398=\"\",\"\",F398/$C$398)","v":""},null,{"$f":"IF($C$398=\"\",\"\",H398/$C$398)","v":""},null,{"$f":"IF($C$398=\"\",\"\",J398/$C$398)","v":""},null,{"$f":"IF($C$398=\"\",\"\",L398/$C$398)","v":""},null,{"$f":"IF($C$398=\"\",\"\",N398/$C$398)","v":""},null,{"$f":"IF($C$398=\"\",\"\",P398/$C$398)","v":""},null,{"$f":"IF($C$398=\"\",\"\",R398/$C$398)","v":""},null,{"$f":"IF($C$398=\"\",\"\",T398/$C$398)","v":""},null,{"$f":"IF($C$398=\"\",\"\",V398/$C$398)","v":""},null,{"$f":"IF($C$398=\"\",\"\",X398/$C$398)","v":""},null,{"$f":"IF($C$398=\"\",\"\",Z398/$C$398)","v":""},null,{"$f":"IF($C$398=\"\",\"\",AB398/$C$398)","v":""},null,{"$f":"IF($C$398=\"\",\"\",AD398/$C$398)","v":""},null,{"$f":"IF($C$398=\"\",\"\",AF398/$C$398)","v":""},null,{"$f":"IF($C$398=\"\",\"\",AH398/$C$398)","v":""},null,{"$f":"IF($C$398=\"\",\"\",AJ398/$C$398)","v":""},null,{"$f":"IF($C$398=\"\",\"\",AL398/$C$398)","v":""},null,{"$f":"IF($C$398=\"\",\"\",AN398/$C$398)","v":""},null,{"$f":"IF($C$398=\"\",\"\",AP398/$C$398)","v":""},null,{"$f":"IF($C$398=\"\",\"\",AR398/$C$398)","v":""},null,{"$f":"IF($C$398=\"\",\"\",AT398/$C$398)","v":""},null,{"$f":"IF($C$398=\"\",\"\",AV398/$C$398)","v":""},null,{"$f":"IF($C$398=\"\",\"\",AX398/$C$398)","v":""},null,{"$f":"IF($C$398=\"\",\"\",AZ398/$C$398)","v":""},null,{"$f":"IF($C$398=\"\",\"\",BB398/$C$398)","v":""},null,0]
[null,null,null,null,{"$f":"IF($C$399=\"\",\"\",F399/$C$399)","v":""},null,{"$f":"IF($C$399=\"\",\"\",H399/$C$399)","v":""},null,{"$f":"IF($C$399=\"\",\"\",J399/$C$399)","v":""},null,{"$f":"IF($C$399=\"\",\"\",L399/$C$399)","v":""},null,{"$f":"IF($C$399=\"\",\"\",N399/$C$399)","v":""},null,{"$f":"IF($C$399=\"\",\"\",P399/$C$399)","v":""},null,{"$f":"IF($C$399=\"\",\"\",R399/$C$399)","v":""},null,{"$f":"IF($C$399=\"\",\"\",T399/$C$399)","v":""},null,{"$f":"IF($C$399=\"\",\"\",V399/$C$399)","v":""},null,{"$f":"IF($C$399=\"\",\"\",X399/$C$399)","v":""},null,{"$f":"IF($C$399=\"\",\"\",Z399/$C$399)","v":""},null,{"$f":"IF($C$399=\"\",\"\",AB399/$C$399)","v":""},null,{"$f":"IF($C$399=\"\",\"\",AD399/$C$399)","v":""},null,{"$f":"IF($C$399=\"\",\"\",AF399/$C$399)","v":""},null,{"$f":"IF($C$399=\"\",\"\",AH399/$C$399)","v":""},null,{"$f":"IF($C$399=\"\",\"\",AJ399/$C$399)","v":""},null,{"$f":"IF($C$399=\"\",\"\",AL399/$C$399)","v":""},null,{"$f":"IF($C$399=\"\",\"\",AN399/$C$399)","v":""},null,{"$f":"IF($C$399=\"\",\"\",AP399/$C$399)","v":""},null,{"$f":"IF($C$399=\"\",\"\",AR399/$C$399)","v":""},null,{"$f":"IF($C$399=\"\",\"\",AT399/$C$399)","v":""},null,{"$f":"IF($C$399=\"\",\"\",AV399/$C$399)","v":""},null,{"$f":"IF($C$399=\"\",\"\",AX399/$C$399)","v":""},null,{"$f":"IF($C$399=\"\",\"\",AZ399/$C$399)","v":""},null,{"$f":"IF($C$399=\"\",\"\",BB399/$C$399)","v":""},null,0]
[null,null,null,null,{"$f":"IF($C$400=\"\",\"\",F400/$C$400)","v":""},null,{"$f":"IF($C$400=\"\",\"\",H400/$C$400)","v":""},null,{"$f":"IF($C$400=\"\",\"\",J400/$C$400)","v":""},null,{"$f":"IF($C$400=\"\",\"\",L400/$C$400)","v":""},null,{"$f":"IF($C$400=\"\",\"\",N400/$C$400)","v":""},null,{"$f":"IF($C$400=\"\",\"\",P400/$C$400)","v":""},null,{"$f":"IF($C$400=\"\",\"\",R400/$C$400)","v":""},null,{"$f":"IF($C$400=\"\",\"\",T400/$C$400)","v":""},null,{"$f":"IF($C$400=\"\",\"\",V400/$C$400)","v":""},null,{"$f":"IF($C$400=\"\",\"\",X400/$C$400)","v":""},null,{"$f":"IF($C$400=\"\",\"\",Z400/$C$400)","v":""},null,{"$f":"IF($C$400=\"\",\"\",AB400/$C$400)","v":""},null,{"$f":"IF($C$400=\"\",\"\",AD400/$C$400)","v":""},null,{"$f":"IF($C$400=\"\",\"\",AF400/$C$400)","v":""},null,{"$f":"IF($C$400=\"\",\"\",AH400/$C$400)","v":""},null,{"$f":"IF($C$400=\"\",\"\",AJ400/$C$400)","v":""},null,{"$f":"IF($C$400=\"\",\"\",AL400/$C$400)","v":""},null,{"$f":"IF($C$400=\"\",\"\",AN400/$C$400)","v":""},null,{"$f":"IF($C$400=\"\",\"\",AP400/$C$400)","v":""},null,{"$f":"IF($C$400=\"\",\"\",AR400/$C$400)","v":""},null,{"$f":"IF($C$400=\"\",\"\",AT400/$C$400)","v":""},null,{"$f":"IF($C$400=\"\",\"\",AV400/$C$400)","v":""},null,{"$f":"IF($C$400=\"\",\"\",AX400/$C$400)","v":""},null,{"$f":"IF($C$400=\"\",\"\",AZ400/$C$400)","v":""},null,{"$f":"IF($C$400=\"\",\"\",BB400/$C$400)","v":""},null,0]
[null,null,null,null,{"$f":"IF($C$401=\"\",\"\",F401/$C$401)","v":""},null,{"$f":"IF($C$401=\"\",\"\",H401/$C$401)","v":""},null,{"$f":"IF($C$401=\"\",\"\",J401/$C$401)","v":""},null,{"$f":"IF($C$401=\"\",\"\",L401/$C$401)","v":""},null,{"$f":"IF($C$401=\"\",\"\",N401/$C$401)","v":""},null,{"$f":"IF($C$401=\"\",\"\",P401/$C$401)","v":""},null,{"$f":"IF($C$401=\"\",\"\",R401/$C$401)","v":""},null,{"$f":"IF($C$401=\"\",\"\",T401/$C$401)","v":""},null,{"$f":"IF($C$401=\"\",\"\",V401/$C$401)","v":""},null,{"$f":"IF($C$401=\"\",\"\",X401/$C$401)","v":""},null,{"$f":"IF($C$401=\"\",\"\",Z401/$C$401)","v":""},null,{"$f":"IF($C$401=\"\",\"\",AB401/$C$401)","v":""},null,{"$f":"IF($C$401=\"\",\"\",AD401/$C$401)","v":""},null,{"$f":"IF($C$401=\"\",\"\",AF401/$C$401)","v":""},null,{"$f":"IF($C$401=\"\",\"\",AH401/$C$401)","v":""},null,{"$f":"IF($C$401=\"\",\"\",AJ401/$C$401)","v":""},null,{"$f":"IF($C$401=\"\",\"\",AL401/$C$401)","v":""},null,{"$f":"IF($C$401=\"\",\"\",AN401/$C$401)","v":""},null,{"$f":"IF($C$401=\"\",\"\",AP401/$C$401)","v":""},null,{"$f":"IF($C$401=\"\",\"\",AR401/$C$401)","v":""},null,{"$f":"IF($C$401=\"\",\"\",AT401/$C$401)","v":""},null,{"$f":"IF($C$401=\"\",\"\",AV401/$C$401)","v":""},null,{"$f":"IF($C$401=\"\",\"\",AX401/$C$401)","v":""},null,{"$f":"IF($C$401=\"\",\"\",AZ401/$C$401)","v":""},null,{"$f":"IF($C$401=\"\",\"\",BB401/$C$401)","v":""},null,0]
[null,null,null,null,{"$f":"IF($C$402=\"\",\"\",F402/$C$402)","v":""},null,{"$f":"IF($C$402=\"\",\"\",H402/$C$402)","v":""},null,{"$f":"IF($C$402=\"\",\"\",J402/$C$402)","v":""},null,{"$f":"IF($C$402=\"\",\"\",L402/$C$402)","v":""},null,{"$f":"IF($C$402=\"\",\"\",N402/$C$402)","v":""},null,{"$f":"IF($C$402=\"\",\"\",P402/$C$402)","v":""},null,{"$f":"IF($C$402=\"\",\"\",R402/$C$402)","v":""},null,{"$f":"IF($C$402=\"\",\"\",T402/$C$402)","v":""},null,{"$f":"IF($C$402=\"\",\"\",V402/$C$402)","v":""},null,{"$f":"IF($C$402=\"\",\"\",X402/$C$402)","v":""},null,{"$f":"IF($C$402=\"\",\"\",Z402/$C$402)","v":""},null,{"$f":"IF($C$402=\"\",\"\",AB402/$C$402)","v":""},null,{"$f":"IF($C$402=\"\",\"\",AD402/$C$402)","v":""},null,{"$f":"IF($C$402=\"\",\"\",AF402/$C$402)","v":""},null,{"$f":"IF($C$402=\"\",\"\",AH402/$C$402)","v":""},null,{"$f":"IF($C$402=\"\",\"\",AJ402/$C$402)","v":""},null,{"$f":"IF($C$402=\"\",\"\",AL402/$C$402)","v":""},null,{"$f":"IF($C$402=\"\",\"\",AN402/$C$402)","v":""},null,{"$f":"IF($C$402=\"\",\"\",AP402/$C$402)","v":""},null,{"$f":"IF($C$402=\"\",\"\",AR402/$C$402)","v":""},null,{"$f":"IF($C$402=\"\",\"\",AT402/$C$402)","v":""},null,{"$f":"IF($C$402=\"\",\"\",AV402/$C$402)","v":""},null,{"$f":"IF($C$402=\"\",\"\",AX402/$C$402)","v":""},null,{"$f":"IF($C$402=\"\",\"\",AZ402/$C$402)","v":""},null,{"$f":"IF($C$402=\"\",\"\",BB402/$C$402)","v":""},null,0]
[null,null,null,null,{"$f":"IF($C$403=\"\",\"\",F403/$C$403)","v":""},null,{"$f":"IF($C$403=\"\",\"\",H403/$C$403)","v":""},null,{"$f":"IF($C$403=\"\",\"\",J403/$C$403)","v":""},null,{"$f":"IF($C$403=\"\",\"\",L403/$C$403)","v":""},null,{"$f":"IF($C$403=\"\",\"\",N403/$C$403)","v":""},null,{"$f":"IF($C$403=\"\",\"\",P403/$C$403)","v":""},null,{"$f":"IF($C$403=\"\",\"\",R403/$C$403)","v":""},null,{"$f":"IF($C$403=\"\",\"\",T403/$C$403)","v":""},null,{"$f":"IF($C$403=\"\",\"\",V403/$C$403)","v":""},null,{"$f":"IF($C$403=\"\",\"\",X403/$C$403)","v":""},null,{"$f":"IF($C$403=\"\",\"\",Z403/$C$403)","v":""},null,{"$f":"IF($C$403=\"\",\"\",AB403/$C$403)","v":""},null,{"$f":"IF($C$403=\"\",\"\",AD403/$C$403)","v":""},null,{"$f":"IF($C$403=\"\",\"\",AF403/$C$403)","v":""},null,{"$f":"IF($C$403=\"\",\"\",AH403/$C$403)","v":""},null,{"$f":"IF($C$403=\"\",\"\",AJ403/$C$403)","v":""},null,{"$f":"IF($C$403=\"\",\"\",AL403/$C$403)","v":""},null,{"$f":"IF($C$403=\"\",\"\",AN403/$C$403)","v":""},null,{"$f":"IF($C$403=\"\",\"\",AP403/$C$403)","v":""},null,{"$f":"IF($C$403=\"\",\"\",AR403/$C$403)","v":""},null,{"$f":"IF($C$403=\"\",\"\",AT403/$C$403)","v":""},null,{"$f":"IF($C$403=\"\",\"\",AV403/$C$403)","v":""},null,{"$f":"IF($C$403=\"\",\"\",AX403/$C$403)","v":""},null,{"$f":"IF($C$403=\"\",\"\",AZ403/$C$403)","v":""},null,{"$f":"IF($C$403=\"\",\"\",BB403/$C$403)","v":""},null,0]
[null,null,null,null,{"$f":"IF($C$404=\"\",\"\",F404/$C$404)","v":""},null,{"$f":"IF($C$404=\"\",\"\",H404/$C$404)","v":""},null,{"$f":"IF($C$404=\"\",\"\",J404/$C$404)","v":""},null,{"$f":"IF($C$404=\"\",\"\",L404/$C$404)","v":""},null,{"$f":"IF($C$404=\"\",\"\",N404/$C$404)","v":""},null,{"$f":"IF($C$404=\"\",\"\",P404/$C$404)","v":""},null,{"$f":"IF($C$404=\"\",\"\",R404/$C$404)","v":""},null,{"$f":"IF($C$404=\"\",\"\",T404/$C$404)","v":""},null,{"$f":"IF($C$404=\"\",\"\",V404/$C$404)","v":""},null,{"$f":"IF($C$404=\"\",\"\",X404/$C$404)","v":""},null,{"$f":"IF($C$404=\"\",\"\",Z404/$C$404)","v":""},null,{"$f":"IF($C$404=\"\",\"\",AB404/$C$404)","v":""},null,{"$f":"IF($C$404=\"\",\"\",AD404/$C$404)","v":""},null,{"$f":"IF($C$404=\"\",\"\",AF404/$C$404)","v":""},null,{"$f":"IF($C$404=\"\",\"\",AH404/$C$404)","v":""},null,{"$f":"IF($C$404=\"\",\"\",AJ404/$C$404)","v":""},null,{"$f":"IF($C$404=\"\",\"\",AL404/$C$404)","v":""},null,{"$f":"IF($C$404=\"\",\"\",AN404/$C$404)","v":""},null,{"$f":"IF($C$404=\"\",\"\",AP404/$C$404)","v":""},null,{"$f":"IF($C$404=\"\",\"\",AR404/$C$404)","v":""},null,{"$f":"IF($C$404=\"\",\"\",AT404/$C$404)","v":""},null,{"$f":"IF($C$404=\"\",\"\",AV404/$C$404)","v":""},null,{"$f":"IF($C$404=\"\",\"\",AX404/$C$404)","v":""},null,{"$f":"IF($C$404=\"\",\"\",AZ404/$C$404)","v":""},null,{"$f":"IF($C$404=\"\",\"\",BB404/$C$404)","v":""},null,0]
[null,null,null,null,{"$f":"IF($C$405=\"\",\"\",F405/$C$405)","v":""},null,{"$f":"IF($C$405=\"\",\"\",H405/$C$405)","v":""},null,{"$f":"IF($C$405=\"\",\"\",J405/$C$405)","v":""},null,{"$f":"IF($C$405=\"\",\"\",L405/$C$405)","v":""},null,{"$f":"IF($C$405=\"\",\"\",N405/$C$405)","v":""},null,{"$f":"IF($C$405=\"\",\"\",P405/$C$405)","v":""},null,{"$f":"IF($C$405=\"\",\"\",R405/$C$405)","v":""},null,{"$f":"IF($C$405=\"\",\"\",T405/$C$405)","v":""},null,{"$f":"IF($C$405=\"\",\"\",V405/$C$405)","v":""},null,{"$f":"IF($C$405=\"\",\"\",X405/$C$405)","v":""},null,{"$f":"IF($C$405=\"\",\"\",Z405/$C$405)","v":""},null,{"$f":"IF($C$405=\"\",\"\",AB405/$C$405)","v":""},null,{"$f":"IF($C$405=\"\",\"\",AD405/$C$405)","v":""},null,{"$f":"IF($C$405=\"\",\"\",AF405/$C$405)","v":""},null,{"$f":"IF($C$405=\"\",\"\",AH405/$C$405)","v":""},null,{"$f":"IF($C$405=\"\",\"\",AJ405/$C$405)","v":""},null,{"$f":"IF($C$405=\"\",\"\",AL405/$C$405)","v":""},null,{"$f":"IF($C$405=\"\",\"\",AN405/$C$405)","v":""},null,{"$f":"IF($C$405=\"\",\"\",AP405/$C$405)","v":""},null,{"$f":"IF($C$405=\"\",\"\",AR405/$C$405)","v":""},null,{"$f":"IF($C$405=\"\",\"\",AT405/$C$405)","v":""},null,{"$f":"IF($C$405=\"\",\"\",AV405/$C$405)","v":""},null,{"$f":"IF($C$405=\"\",\"\",AX405/$C$405)","v":""},null,{"$f":"IF($C$405=\"\",\"\",AZ405/$C$405)","v":""},null,{"$f":"IF($C$405=\"\",\"\",BB405/$C$405)","v":""},null,{"$f":"SUM(BB405,AZ405,AX405,AV405,AT405,AR405,AP405,AN405,AL405,AJ405,AH405,AF405,AD405,AB405,Z405,X405,V405,T405,R405,P405,N405,L405,J405,H405,F405)","v":0}]
["TOTAL HOURS",null,null,null,null,{"$f":"SUM(F376:F405)","v":0},null,{"$f":"SUM(H376:H405)","v":0},null,{"$f":"SUM(J376:J405)","v":0},null,{"$f":"SUM(L376:L405)","v":0},null,{"$f":"SUM(N376:N405)","v":0},null,{"$f":"SUM(P376:P405)","v":0},null,{"$f":"SUM(R376:R405)","v":0},null,{"$f":"SUM(T376:T405)","v":0},null,{"$f":"SUM(V376:V405)","v":0},null,{"$f":"SUM(X376:X405)","v":0},null,{"$f":"SUM(Z376:Z405)","v":0},null,{"$f":"SUM(AB376:AB405)","v":0},null,{"$f":"SUM(AD376:AD405)","v":0},null,{"$f":"SUM(AF376:AF405)","v":0},null,{"$f":"SUM(AH376:AH405)","v":0},null,{"$f":"SUM(AJ376:AJ405)","v":0},null,{"$f":"SUM(AL376:AL405)","v":0},null,{"$f":"SUM(AN376:AN405)","v":0},null,{"$f":"SUM(AP376:AP405)","v":0},null,{"$f":"SUM(AR376:AR405)","v":0},null,{"$f":"SUM(AT376:AT405)","v":0},null,{"$f":"SUM(AV376:AV405)","v":0},null,{"$f":"SUM(AX376:AX405)","v":0},null,{"$f":"SUM(AZ376:AZ405)","v":0},null,{"$f":"SUM(BB376:BB405)","v":0},{"$f":"SUM(E406:BB406)","v":0}]
["TOTAL WORKDAYS",null,null,null,null,{"$f":"F406/8","v":0},null,{"$f":"H406/8","v":0},null,{"$f":"J406/8","v":0},null,{"$f":"L406/8","v":0},null,{"$f":"N406/8","v":0},null,{"$f":"P406/8","v":0},null,{"$f":"R406/8","v":0},null,{"$f":"T406/8","v":0},null,{"$f":"V406/8","v":0},null,{"$f":"X406/8","v":0},null,{"$f":"Z406/8","v":0},null,{"$f":"AB406/8","v":0},null,{"$f":"AD406/8","v":0},null,0,null,{"$f":"AH406/8","v":0},null,0,null,{"$f":"AL406/8","v":0},null,0,null,{"$f":"AP406/8","v":0},null,0,null,{"$f":"AT406/8","v":0},null,{"$f":"AV406/8","v":0},null,{"$f":"AX406/8","v":0},null,{"$f":"AZ406/8","v":0},null,{"$f":"BB406/8","v":0},{"$f":"SUM(E407:BB407)","v":0}]
["TOTAL RAW LABOR",null,null,null,null,{"$f":"$E$13*F406","v":0},null,{"$f":"$G$13*H406","v":0},null,{"$f":"$I$13*J406","v":0},null,{"$f":"$K$13*L406","v":0},null,{"$f":"$M$13*N406","v":0},null,{"$f":"$O$13*P406","v":0},null,{"$f":"$Q$13*R406","v":0},null,{"$f":"$S$13*T406","v":0},null,{"$f":"$U$13*V406","v":0},null,{"$f":"$W$13*X406","v":0},null,{"$f":"$Y$13*Z406","v":0},null,{"$f":"$AA$13*AB406","v":0},null,{"$f":"$AC$13*AD406","v":0},null,{"$f":"$AC$13*AF406","v":0},null,{"$f":"$AC$13*AH406","v":0},null,{"$f":"$AC$13*AJ406","v":0},null,{"$f":"$AC$13*AL406","v":0},null,{"$f":"$AC$13*AN406","v":0},null,{"$f":"$AC$13*AP406","v":0},null,{"$f":"$AC$13*AR406","v":0},null,{"$f":"$AC$13*AT406","v":0},null,{"$f":"$AC$13*AV406","v":0},null,{"$f":"$AC$13*AX406","v":0},null,{"$f":"$AC$13*AZ406","v":0},null,{"$f":"$AC$13*BB406","v":0},{"$f":"SUM(E408:BB408)","v":0}]
["Task 16.0     ","REPLACE FIELD WITH CATEGORY NAME OF YOUR CHOOSING HERE",null,null,null,null,null,null,null,null,null,null,null,null,null,null,null,null,null,null,null,null,null,null,null,null,null,null,null,null,null,null,null,null,null,null,null,null,null,null,null,null,null,null,null,null,null,null,null,null,null,null,null,null,{"$f":"IF(B409=\"REPLACE FIELD WITH CATEGORY NAME OF YOUR CHOOSING HERE\",0,\"\")","v":0}]
[null,null,null,null,{"$f":"IF($C$410=\"\",\"\",F410/$C$410)","v":""},null,{"$f":"IF($C$410=\"\",\"\",H410/$C$410)","v":""},null,{"$f":"IF($C$410=\"\",\"\",J410/$C$410)","v":""},null,{"$f":"IF($C$410=\"\",\"\",L410/$C$410)","v":""},null,{"$f":"IF($C$410=\"\",\"\",N410/$C$410)","v":""},null,{"$f":"IF($C$410=\"\",\"\",P410/$C$410)","v":""},null,{"$f":"IF($C$410=\"\",\"\",R410/$C$410)","v":""},null,{"$f":"IF($C$410=\"\",\"\",T410/$C$410)","v":""},null,{"$f":"IF($C$410=\"\",\"\",V410/$C$410)","v":""},null,{"$f":"IF($C$410=\"\",\"\",X410/$C$410)","v":""},null,{"$f":"IF($C$410=\"\",\"\",Z410/$C$410)","v":""},null,{"$f":"IF($C$410=\"\",\"\",AB410/$C$410)","v":""},null,{"$f":"IF($C$410=\"\",\"\",AD410/$C$410)","v":""},null,{"$f":"IF($C$410=\"\",\"\",AF410/$C$410)","v":""},null,{"$f":"IF($C$410=\"\",\"\",AH410/$C$410)","v":""},null,{"$f":"IF($C$410=\"\",\"\",AJ410/$C$410)","v":""},null,{"$f":"IF($C$410=\"\",\"\",AL410/$C$410)","v":""},null,{"$f":"IF($C$410=\"\",\"\",AN410/$C$410)","v":""},null,{"$f":"IF($C$410=\"\",\"\",AP410/$C$410)","v":""},null,{"$f":"IF($C$410=\"\",\"\",AR410/$C$410)","v":""},null,{"$f":"IF($C$410=\"\",\"\",AT410/$C$410)","v":""},null,{"$f":"IF($C$410=\"\",\"\",AV410/$C$410)","v":""},null,{"$f":"IF($C$410=\"\",\"\",AX410/$C$410)","v":""},null,{"$f":"IF($C$410=\"\",\"\",AZ410/$C$410)","v":""},null,{"$f":"IF($C$410=\"\",\"\",BB410/$C$410)","v":""},null,{"$f":"SUM(BB410,AZ410,AX410,AV410,AT410,AR410,AP410,AN410,AL410,AJ410,AH410,AF410,AD410,AB410,Z410,X410,V410,T410,R410,P410,N410,L410,J410,H410,F410)","v":0}]
[null,null,null,null,{"$f":"IF($C$411=\"\",\"\",F411/$C$411)","v":""},null,{"$f":"IF($C$411=\"\",\"\",H411/$C$411)","v":""},null,{"$f":"IF($C$411=\"\",\"\",J411/$C$411)","v":""},null,{"$f":"IF($C$411=\"\",\"\",L411/$C$411)","v":""},null,{"$f":"IF($C$411=\"\",\"\",N411/$C$411)","v":""},null,{"$f":"IF($C$411=\"\",\"\",P411/$C$411)","v":""},null,{"$f":"IF($C$411=\"\",\"\",R411/$C$411)","v":""},null,{"$f":"IF($C$411=\"\",\"\",T411/$C$411)","v":""},null,{"$f":"IF($C$411=\"\",\"\",V411/$C$411)","v":""},null,{"$f":"IF($C$411=\"\",\"\",X411/$C$411)","v":""},null,{"$f":"IF($C$411=\"\",\"\",Z411/$C$411)","v":""},null,{"$f":"IF($C$411=\"\",\"\",AB411/$C$411)","v":""},null,{"$f":"IF($C$411=\"\",\"\",AD411/$C$411)","v":""},null,{"$f":"IF($C$411=\"\",\"\",AF411/$C$411)","v":""},null,{"$f":"IF($C$411=\"\",\"\",AH411/$C$411)","v":""},null,{"$f":"IF($C$411=\"\",\"\",AJ411/$C$411)","v":""},null,{"$f":"IF($C$411=\"\",\"\",AL411/$C$411)","v":""},null,{"$f":"IF($C$411=\"\",\"\",AN411/$C$411)","v":""},null,{"$f":"IF($C$411=\"\",\"\",AP411/$C$411)","v":""},null,{"$f":"IF($C$411=\"\",\"\",AR411/$C$411)","v":""},null,{"$f":"IF($C$411=\"\",\"\",AT411/$C$411)","v":""},null,{"$f":"IF($C$411=\"\",\"\",AV411/$C$411)","v":""},null,{"$f":"IF($C$411=\"\",\"\",AX411/$C$411)","v":""},null,{"$f":"IF($C$411=\"\",\"\",AZ411/$C$411)","v":""},null,{"$f":"IF($C$411=\"\",\"\",BB411/$C$411)","v":""},null,0]
[null,null,null,null,{"$f":"IF($C$412=\"\",\"\",F412/$C$412)","v":""},null,{"$f":"IF($C$412=\"\",\"\",H412/$C$412)","v":""},null,{"$f":"IF($C$412=\"\",\"\",J412/$C$412)","v":""},null,{"$f":"IF($C$412=\"\",\"\",L412/$C$412)","v":""},null,{"$f":"IF($C$412=\"\",\"\",N412/$C$412)","v":""},null,{"$f":"IF($C$412=\"\",\"\",P412/$C$412)","v":""},null,{"$f":"IF($C$412=\"\",\"\",R412/$C$412)","v":""},null,{"$f":"IF($C$412=\"\",\"\",T412/$C$412)","v":""},null,{"$f":"IF($C$412=\"\",\"\",V412/$C$412)","v":""},null,{"$f":"IF($C$412=\"\",\"\",X412/$C$412)","v":""},null,{"$f":"IF($C$412=\"\",\"\",Z412/$C$412)","v":""},null,{"$f":"IF($C$412=\"\",\"\",AB412/$C$412)","v":""},null,{"$f":"IF($C$412=\"\",\"\",AD412/$C$412)","v":""},null,{"$f":"IF($C$412=\"\",\"\",AF412/$C$412)","v":""},null,{"$f":"IF($C$412=\"\",\"\",AH412/$C$412)","v":""},null,{"$f":"IF($C$412=\"\",\"\",AJ412/$C$412)","v":""},null,{"$f":"IF($C$412=\"\",\"\",AL412/$C$412)","v":""},null,{"$f":"IF($C$412=\"\",\"\",AN412/$C$412)","v":""},null,{"$f":"IF($C$412=\"\",\"\",AP412/$C$412)","v":""},null,{"$f":"IF($C$412=\"\",\"\",AR412/$C$412)","v":""},null,{"$f":"IF($C$412=\"\",\"\",AT412/$C$412)","v":""},null,{"$f":"IF($C$412=\"\",\"\",AV412/$C$412)","v":""},null,{"$f":"IF($C$412=\"\",\"\",AX412/$C$412)","v":""},null,{"$f":"IF($C$412=\"\",\"\",AZ412/$C$412)","v":""},null,{"$f":"IF($C$412=\"\",\"\",BB412/$C$412)","v":""},null,0]
[null,null,null,null,{"$f":"IF($C$413=\"\",\"\",F413/$C$413)","v":""},null,{"$f":"IF($C$413=\"\",\"\",H413/$C$413)","v":""},null,{"$f":"IF($C$413=\"\",\"\",J413/$C$413)","v":""},null,{"$f":"IF($C$413=\"\",\"\",L413/$C$413)","v":""},null,{"$f":"IF($C$413=\"\",\"\",N413/$C$413)","v":""},null,{"$f":"IF($C$413=\"\",\"\",P413/$C$413)","v":""},null,{"$f":"IF($C$413=\"\",\"\",R413/$C$413)","v":""},null,{"$f":"IF($C$413=\"\",\"\",T413/$C$413)","v":""},null,{"$f":"IF($C$413=\"\",\"\",V413/$C$413)","v":""},null,{"$f":"IF($C$413=\"\",\"\",X413/$C$413)","v":""},null,{"$f":"IF($C$413=\"\",\"\",Z413/$C$413)","v":""},null,{"$f":"IF($C$413=\"\",\"\",AB413/$C$413)","v":""},null,{"$f":"IF($C$413=\"\",\"\",AD413/$C$413)","v":""},null,{"$f":"IF($C$413=\"\",\"\",AF413/$C$413)","v":""},null,{"$f":"IF($C$413=\"\",\"\",AH413/$C$413)","v":""},null,{"$f":"IF($C$413=\"\",\"\",AJ413/$C$413)","v":""},null,{"$f":"IF($C$413=\"\",\"\",AL413/$C$413)","v":""},null,{"$f":"IF($C$413=\"\",\"\",AN413/$C$413)","v":""},null,{"$f":"IF($C$413=\"\",\"\",AP413/$C$413)","v":""},null,{"$f":"IF($C$413=\"\",\"\",AR413/$C$413)","v":""},null,{"$f":"IF($C$413=\"\",\"\",AT413/$C$413)","v":""},null,{"$f":"IF($C$413=\"\",\"\",AV413/$C$413)","v":""},null,{"$f":"IF($C$413=\"\",\"\",AX413/$C$413)","v":""},null,{"$f":"IF($C$413=\"\",\"\",AZ413/$C$413)","v":""},null,{"$f":"IF($C$413=\"\",\"\",BB413/$C$413)","v":""},null,0]
[null,null,null,null,{"$f":"IF($C$414=\"\",\"\",F414/$C$414)","v":""},null,{"$f":"IF($C$414=\"\",\"\",H414/$C$414)","v":""},null,{"$f":"IF($C$414=\"\",\"\",J414/$C$414)","v":""},null,{"$f":"IF($C$414=\"\",\"\",L414/$C$414)","v":""},null,{"$f":"IF($C$414=\"\",\"\",N414/$C$414)","v":""},null,{"$f":"IF($C$414=\"\",\"\",P414/$C$414)","v":""},null,{"$f":"IF($C$414=\"\",\"\",R414/$C$414)","v":""},null,{"$f":"IF($C$414=\"\",\"\",T414/$C$414)","v":""},null,{"$f":"IF($C$414=\"\",\"\",V414/$C$414)","v":""},null,{"$f":"IF($C$414=\"\",\"\",X414/$C$414)","v":""},null,{"$f":"IF($C$414=\"\",\"\",Z414/$C$414)","v":""},null,{"$f":"IF($C$414=\"\",\"\",AB414/$C$414)","v":""},null,{"$f":"IF($C$414=\"\",\"\",AD414/$C$414)","v":""},null,{"$f":"IF($C$414=\"\",\"\",AF414/$C$414)","v":""},null,{"$f":"IF($C$414=\"\",\"\",AH414/$C$414)","v":""},null,{"$f":"IF($C$414=\"\",\"\",AJ414/$C$414)","v":""},null,{"$f":"IF($C$414=\"\",\"\",AL414/$C$414)","v":""},null,{"$f":"IF($C$414=\"\",\"\",AN414/$C$414)","v":""},null,{"$f":"IF($C$414=\"\",\"\",AP414/$C$414)","v":""},null,{"$f":"IF($C$414=\"\",\"\",AR414/$C$414)","v":""},null,{"$f":"IF($C$414=\"\",\"\",AT414/$C$414)","v":""},null,{"$f":"IF($C$414=\"\",\"\",AV414/$C$414)","v":""},null,{"$f":"IF($C$414=\"\",\"\",AX414/$C$414)","v":""},null,{"$f":"IF($C$414=\"\",\"\",AZ414/$C$414)","v":""},null,{"$f":"IF($C$414=\"\",\"\",BB414/$C$414)","v":""},null,0]
[null,null,null,null,{"$f":"IF($C$415=\"\",\"\",F415/$C$415)","v":""},null,{"$f":"IF($C$415=\"\",\"\",H415/$C$415)","v":""},null,{"$f":"IF($C$415=\"\",\"\",J415/$C$415)","v":""},null,{"$f":"IF($C$415=\"\",\"\",L415/$C$415)","v":""},null,{"$f":"IF($C$415=\"\",\"\",N415/$C$415)","v":""},null,{"$f":"IF($C$415=\"\",\"\",P415/$C$415)","v":""},null,{"$f":"IF($C$415=\"\",\"\",R415/$C$415)","v":""},null,{"$f":"IF($C$415=\"\",\"\",T415/$C$415)","v":""},null,{"$f":"IF($C$415=\"\",\"\",V415/$C$415)","v":""},null,{"$f":"IF($C$415=\"\",\"\",X415/$C$415)","v":""},null,{"$f":"IF($C$415=\"\",\"\",Z415/$C$415)","v":""},null,{"$f":"IF($C$415=\"\",\"\",AB415/$C$415)","v":""},null,{"$f":"IF($C$415=\"\",\"\",AD415/$C$415)","v":""},null,{"$f":"IF($C$415=\"\",\"\",AF415/$C$415)","v":""},null,{"$f":"IF($C$415=\"\",\"\",AH415/$C$415)","v":""},null,{"$f":"IF($C$415=\"\",\"\",AJ415/$C$415)","v":""},null,{"$f":"IF($C$415=\"\",\"\",AL415/$C$415)","v":""},null,{"$f":"IF($C$415=\"\",\"\",AN415/$C$415)","v":""},null,{"$f":"IF($C$415=\"\",\"\",AP415/$C$415)","v":""},null,{"$f":"IF($C$415=\"\",\"\",AR415/$C$415)","v":""},null,{"$f":"IF($C$415=\"\",\"\",AT415/$C$415)","v":""},null,{"$f":"IF($C$415=\"\",\"\",AV415/$C$415)","v":""},null,{"$f":"IF($C$415=\"\",\"\",AX415/$C$415)","v":""},null,{"$f":"IF($C$415=\"\",\"\",AZ415/$C$415)","v":""},null,{"$f":"IF($C$415=\"\",\"\",BB415/$C$415)","v":""},null,0]
[null,null,null,null,{"$f":"IF($C$416=\"\",\"\",F416/$C$416)","v":""},null,{"$f":"IF($C$416=\"\",\"\",H416/$C$416)","v":""},null,{"$f":"IF($C$416=\"\",\"\",J416/$C$416)","v":""},null,{"$f":"IF($C$416=\"\",\"\",L416/$C$416)","v":""},null,{"$f":"IF($C$416=\"\",\"\",N416/$C$416)","v":""},null,{"$f":"IF($C$416=\"\",\"\",P416/$C$416)","v":""},null,{"$f":"IF($C$416=\"\",\"\",R416/$C$416)","v":""},null,{"$f":"IF($C$416=\"\",\"\",T416/$C$416)","v":""},null,{"$f":"IF($C$416=\"\",\"\",V416/$C$416)","v":""},null,{"$f":"IF($C$416=\"\",\"\",X416/$C$416)","v":""},null,{"$f":"IF($C$416=\"\",\"\",Z416/$C$416)","v":""},null,{"$f":"IF($C$416=\"\",\"\",AB416/$C$416)","v":""},null,{"$f":"IF($C$416=\"\",\"\",AD416/$C$416)","v":""},null,{"$f":"IF($C$416=\"\",\"\",AF416/$C$416)","v":""},null,{"$f":"IF($C$416=\"\",\"\",AH416/$C$416)","v":""},null,{"$f":"IF($C$416=\"\",\"\",AJ416/$C$416)","v":""},null,{"$f":"IF($C$416=\"\",\"\",AL416/$C$416)","v":""},null,{"$f":"IF($C$416=\"\",\"\",AN416/$C$416)","v":""},null,{"$f":"IF($C$416=\"\",\"\",AP416/$C$416)","v":""},null,{"$f":"IF($C$416=\"\",\"\",AR416/$C$416)","v":""},null,{"$f":"IF($C$416=\"\",\"\",AT416/$C$416)","v":""},null,{"$f":"IF($C$416=\"\",\"\",AV416/$C$416)","v":""},null,{"$f":"IF($C$416=\"\",\"\",AX416/$C$416)","v":""},null,{"$f":"IF($C$416=\"\",\"\",AZ416/$C$416)","v":""},null,{"$f":"IF($C$416=\"\",\"\",BB416/$C$416)","v":""},null,0]
[null,null,null,null,{"$f":"IF($C$417=\"\",\"\",F417/$C$417)","v":""},null,{"$f":"IF($C$417=\"\",\"\",H417/$C$417)","v":""},null,{"$f":"IF($C$417=\"\",\"\",J417/$C$417)","v":""},null,{"$f":"IF($C$417=\"\",\"\",L417/$C$417)","v":""},null,{"$f":"IF($C$417=\"\",\"\",N417/$C$417)","v":""},null,{"$f":"IF($C$417=\"\",\"\",P417/$C$417)","v":""},null,{"$f":"IF($C$417=\"\",\"\",R417/$C$417)","v":""},null,{"$f":"IF($C$417=\"\",\"\",T417/$C$417)","v":""},null,{"$f":"IF($C$417=\"\",\"\",V417/$C$417)","v":""},null,{"$f":"IF($C$417=\"\",\"\",X417/$C$417)","v":""},null,{"$f":"IF($C$417=\"\",\"\",Z417/$C$417)","v":""},null,{"$f":"IF($C$417=\"\",\"\",AB417/$C$417)","v":""},null,{"$f":"IF($C$417=\"\",\"\",AD417/$C$417)","v":""},null,{"$f":"IF($C$417=\"\",\"\",AF417/$C$417)","v":""},null,{"$f":"IF($C$417=\"\",\"\",AH417/$C$417)","v":""},null,{"$f":"IF($C$417=\"\",\"\",AJ417/$C$417)","v":""},null,{"$f":"IF($C$417=\"\",\"\",AL417/$C$417)","v":""},null,{"$f":"IF($C$417=\"\",\"\",AN417/$C$417)","v":""},null,{"$f":"IF($C$417=\"\",\"\",AP417/$C$417)","v":""},null,{"$f":"IF($C$417=\"\",\"\",AR417/$C$417)","v":""},null,{"$f":"IF($C$417=\"\",\"\",AT417/$C$417)","v":""},null,{"$f":"IF($C$417=\"\",\"\",AV417/$C$417)","v":""},null,{"$f":"IF($C$417=\"\",\"\",AX417/$C$417)","v":""},null,{"$f":"IF($C$417=\"\",\"\",AZ417/$C$417)","v":""},null,{"$f":"IF($C$417=\"\",\"\",BB417/$C$417)","v":""},null,0]
[null,null,null,null,{"$f":"IF($C$418=\"\",\"\",F418/$C$418)","v":""},null,{"$f":"IF($C$418=\"\",\"\",H418/$C$418)","v":""},null,{"$f":"IF($C$418=\"\",\"\",J418/$C$418)","v":""},null,{"$f":"IF($C$418=\"\",\"\",L418/$C$418)","v":""},null,{"$f":"IF($C$418=\"\",\"\",N418/$C$418)","v":""},null,{"$f":"IF($C$418=\"\",\"\",P418/$C$418)","v":""},null,{"$f":"IF($C$418=\"\",\"\",R418/$C$418)","v":""},null,{"$f":"IF($C$418=\"\",\"\",T418/$C$418)","v":""},null,{"$f":"IF($C$418=\"\",\"\",V418/$C$418)","v":""},null,{"$f":"IF($C$418=\"\",\"\",X418/$C$418)","v":""},null,{"$f":"IF($C$418=\"\",\"\",Z418/$C$418)","v":""},null,{"$f":"IF($C$418=\"\",\"\",AB418/$C$418)","v":""},null,{"$f":"IF($C$418=\"\",\"\",AD418/$C$418)","v":""},null,{"$f":"IF($C$418=\"\",\"\",AF418/$C$418)","v":""},null,{"$f":"IF($C$418=\"\",\"\",AH418/$C$418)","v":""},null,{"$f":"IF($C$418=\"\",\"\",AJ418/$C$418)","v":""},null,{"$f":"IF($C$418=\"\",\"\",AL418/$C$418)","v":""},null,{"$f":"IF($C$418=\"\",\"\",AN418/$C$418)","v":""},null,{"$f":"IF($C$418=\"\",\"\",AP418/$C$418)","v":""},null,{"$f":"IF($C$418=\"\",\"\",AR418/$C$418)","v":""},null,{"$f":"IF($C$418=\"\",\"\",AT418/$C$418)","v":""},null,{"$f":"IF($C$418=\"\",\"\",AV418/$C$418)","v":""},null,{"$f":"IF($C$418=\"\",\"\",AX418/$C$418)","v":""},null,{"$f":"IF($C$418=\"\",\"\",AZ418/$C$418)","v":""},null,{"$f":"IF($C$418=\"\",\"\",BB418/$C$418)","v":""},null,0]
[null,null,null,null,{"$f":"IF($C$419=\"\",\"\",F419/$C$419)","v":""},null,{"$f":"IF($C$419=\"\",\"\",H419/$C$419)","v":""},null,{"$f":"IF($C$419=\"\",\"\",J419/$C$419)","v":""},null,{"$f":"IF($C$419=\"\",\"\",L419/$C$419)","v":""},null,{"$f":"IF($C$419=\"\",\"\",N419/$C$419)","v":""},null,{"$f":"IF($C$419=\"\",\"\",P419/$C$419)","v":""},null,{"$f":"IF($C$419=\"\",\"\",R419/$C$419)","v":""},null,{"$f":"IF($C$419=\"\",\"\",T419/$C$419)","v":""},null,{"$f":"IF($C$419=\"\",\"\",V419/$C$419)","v":""},null,{"$f":"IF($C$419=\"\",\"\",X419/$C$419)","v":""},null,{"$f":"IF($C$419=\"\",\"\",Z419/$C$419)","v":""},null,{"$f":"IF($C$419=\"\",\"\",AB419/$C$419)","v":""},null,{"$f":"IF($C$419=\"\",\"\",AD419/$C$419)","v":""},null,{"$f":"IF($C$419=\"\",\"\",AF419/$C$419)","v":""},null,{"$f":"IF($C$419=\"\",\"\",AH419/$C$419)","v":""},null,{"$f":"IF($C$419=\"\",\"\",AJ419/$C$419)","v":""},null,{"$f":"IF($C$419=\"\",\"\",AL419/$C$419)","v":""},null,{"$f":"IF($C$419=\"\",\"\",AN419/$C$419)","v":""},null,{"$f":"IF($C$419=\"\",\"\",AP419/$C$419)","v":""},null,{"$f":"IF($C$419=\"\",\"\",AR419/$C$419)","v":""},null,{"$f":"IF($C$419=\"\",\"\",AT419/$C$419)","v":""},null,{"$f":"IF($C$419=\"\",\"\",AV419/$C$419)","v":""},null,{"$f":"IF($C$419=\"\",\"\",AX419/$C$419)","v":""},null,{"$f":"IF($C$419=\"\",\"\",AZ419/$C$419)","v":""},null,{"$f":"IF($C$419=\"\",\"\",BB419/$C$419)","v":""},null,0]
[null,null,null,null,{"$f":"IF($C$420=\"\",\"\",F420/$C$420)","v":""},null,{"$f":"IF($C$420=\"\",\"\",H420/$C$420)","v":""},null,{"$f":"IF($C$420=\"\",\"\",J420/$C$420)","v":""},null,{"$f":"IF($C$420=\"\",\"\",L420/$C$420)","v":""},null,{"$f":"IF($C$420=\"\",\"\",N420/$C$420)","v":""},null,{"$f":"IF($C$420=\"\",\"\",P420/$C$420)","v":""},null,{"$f":"IF($C$420=\"\",\"\",R420/$C$420)","v":""},null,{"$f":"IF($C$420=\"\",\"\",T420/$C$420)","v":""},null,{"$f":"IF($C$420=\"\",\"\",V420/$C$420)","v":""},null,{"$f":"IF($C$420=\"\",\"\",X420/$C$420)","v":""},null,{"$f":"IF($C$420=\"\",\"\",Z420/$C$420)","v":""},null,{"$f":"IF($C$420=\"\",\"\",AB420/$C$420)","v":""},null,{"$f":"IF($C$420=\"\",\"\",AD420/$C$420)","v":""},null,{"$f":"IF($C$420=\"\",\"\",AF420/$C$420)","v":""},null,{"$f":"IF($C$420=\"\",\"\",AH420/$C$420)","v":""},null,{"$f":"IF($C$420=\"\",\"\",AJ420/$C$420)","v":""},null,{"$f":"IF($C$420=\"\",\"\",AL420/$C$420)","v":""},null,{"$f":"IF($C$420=\"\",\"\",AN420/$C$420)","v":""},null,{"$f":"IF($C$420=\"\",\"\",AP420/$C$420)","v":""},null,{"$f":"IF($C$420=\"\",\"\",AR420/$C$420)","v":""},null,{"$f":"IF($C$420=\"\",\"\",AT420/$C$420)","v":""},null,{"$f":"IF($C$420=\"\",\"\",AV420/$C$420)","v":""},null,{"$f":"IF($C$420=\"\",\"\",AX420/$C$420)","v":""},null,{"$f":"IF($C$420=\"\",\"\",AZ420/$C$420)","v":""},null,{"$f":"IF($C$420=\"\",\"\",BB420/$C$420)","v":""},null,0]
[null,null,null,null,{"$f":"IF($C$421=\"\",\"\",F421/$C$421)","v":""},null,{"$f":"IF($C$421=\"\",\"\",H421/$C$421)","v":""},null,{"$f":"IF($C$421=\"\",\"\",J421/$C$421)","v":""},null,{"$f":"IF($C$421=\"\",\"\",L421/$C$421)","v":""},null,{"$f":"IF($C$421=\"\",\"\",N421/$C$421)","v":""},null,{"$f":"IF($C$421=\"\",\"\",P421/$C$421)","v":""},null,{"$f":"IF($C$421=\"\",\"\",R421/$C$421)","v":""},null,{"$f":"IF($C$421=\"\",\"\",T421/$C$421)","v":""},null,{"$f":"IF($C$421=\"\",\"\",V421/$C$421)","v":""},null,{"$f":"IF($C$421=\"\",\"\",X421/$C$421)","v":""},null,{"$f":"IF($C$421=\"\",\"\",Z421/$C$421)","v":""},null,{"$f":"IF($C$421=\"\",\"\",AB421/$C$421)","v":""},null,{"$f":"IF($C$421=\"\",\"\",AD421/$C$421)","v":""},null,{"$f":"IF($C$421=\"\",\"\",AF421/$C$421)","v":""},null,{"$f":"IF($C$421=\"\",\"\",AH421/$C$421)","v":""},null,{"$f":"IF($C$421=\"\",\"\",AJ421/$C$421)","v":""},null,{"$f":"IF($C$421=\"\",\"\",AL421/$C$421)","v":""},null,{"$f":"IF($C$421=\"\",\"\",AN421/$C$421)","v":""},null,{"$f":"IF($C$421=\"\",\"\",AP421/$C$421)","v":""},null,{"$f":"IF($C$421=\"\",\"\",AR421/$C$421)","v":""},null,{"$f":"IF($C$421=\"\",\"\",AT421/$C$421)","v":""},null,{"$f":"IF($C$421=\"\",\"\",AV421/$C$421)","v":""},null,{"$f":"IF($C$421=\"\",\"\",AX421/$C$421)","v":""},null,{"$f":"IF($C$421=\"\",\"\",AZ421/$C$421)","v":""},null,{"$f":"IF($C$421=\"\",\"\",BB421/$C$421)","v":""},null,0]
[null,null,null,null,{"$f":"IF($C$422=\"\",\"\",F422/$C$422)","v":""},null,{"$f":"IF($C$422=\"\",\"\",H422/$C$422)","v":""},null,{"$f":"IF($C$422=\"\",\"\",J422/$C$422)","v":""},null,{"$f":"IF($C$422=\"\",\"\",L422/$C$422)","v":""},null,{"$f":"IF($C$422=\"\",\"\",N422/$C$422)","v":""},null,{"$f":"IF($C$422=\"\",\"\",P422/$C$422)","v":""},null,{"$f":"IF($C$422=\"\",\"\",R422/$C$422)","v":""},null,{"$f":"IF($C$422=\"\",\"\",T422/$C$422)","v":""},null,{"$f":"IF($C$422=\"\",\"\",V422/$C$422)","v":""},null,{"$f":"IF($C$422=\"\",\"\",X422/$C$422)","v":""},null,{"$f":"IF($C$422=\"\",\"\",Z422/$C$422)","v":""},null,{"$f":"IF($C$422=\"\",\"\",AB422/$C$422)","v":""},null,{"$f":"IF($C$422=\"\",\"\",AD422/$C$422)","v":""},null,{"$f":"IF($C$422=\"\",\"\",AF422/$C$422)","v":""},null,{"$f":"IF($C$422=\"\",\"\",AH422/$C$422)","v":""},null,{"$f":"IF($C$422=\"\",\"\",AJ422/$C$422)","v":""},null,{"$f":"IF($C$422=\"\",\"\",AL422/$C$422)","v":""},null,{"$f":"IF($C$422=\"\",\"\",AN422/$C$422)","v":""},null,{"$f":"IF($C$422=\"\",\"\",AP422/$C$422)","v":""},null,{"$f":"IF($C$422=\"\",\"\",AR422/$C$422)","v":""},null,{"$f":"IF($C$422=\"\",\"\",AT422/$C$422)","v":""},null,{"$f":"IF($C$422=\"\",\"\",AV422/$C$422)","v":""},null,{"$f":"IF($C$422=\"\",\"\",AX422/$C$422)","v":""},null,{"$f":"IF($C$422=\"\",\"\",AZ422/$C$422)","v":""},null,{"$f":"IF($C$422=\"\",\"\",BB422/$C$422)","v":""},null,0]
[null,null,null,null,{"$f":"IF($C$423=\"\",\"\",F423/$C$423)","v":""},null,{"$f":"IF($C$423=\"\",\"\",H423/$C$423)","v":""},null,{"$f":"IF($C$423=\"\",\"\",J423/$C$423)","v":""},null,{"$f":"IF($C$423=\"\",\"\",L423/$C$423)","v":""},null,{"$f":"IF($C$423=\"\",\"\",N423/$C$423)","v":""},null,{"$f":"IF($C$423=\"\",\"\",P423/$C$423)","v":""},null,{"$f":"IF($C$423=\"\",\"\",R423/$C$423)","v":""},null,{"$f":"IF($C$423=\"\",\"\",T423/$C$423)","v":""},null,{"$f":"IF($C$423=\"\",\"\",V423/$C$423)","v":""},null,{"$f":"IF($C$423=\"\",\"\",X423/$C$423)","v":""},null,{"$f":"IF($C$423=\"\",\"\",Z423/$C$423)","v":""},null,{"$f":"IF($C$423=\"\",\"\",AB423/$C$423)","v":""},null,{"$f":"IF($C$423=\"\",\"\",AD423/$C$423)","v":""},null,{"$f":"IF($C$423=\"\",\"\",AF423/$C$423)","v":""},null,{"$f":"IF($C$423=\"\",\"\",AH423/$C$423)","v":""},null,{"$f":"IF($C$423=\"\",\"\",AJ423/$C$423)","v":""},null,{"$f":"IF($C$423=\"\",\"\",AL423/$C$423)","v":""},null,{"$f":"IF($C$423=\"\",\"\",AN423/$C$423)","v":""},null,{"$f":"IF($C$423=\"\",\"\",AP423/$C$423)","v":""},null,{"$f":"IF($C$423=\"\",\"\",AR423/$C$423)","v":""},null,{"$f":"IF($C$423=\"\",\"\",AT423/$C$423)","v":""},null,{"$f":"IF($C$423=\"\",\"\",AV423/$C$423)","v":""},null,{"$f":"IF($C$423=\"\",\"\",AX423/$C$423)","v":""},null,{"$f":"IF($C$423=\"\",\"\",AZ423/$C$423)","v":""},null,{"$f":"IF($C$423=\"\",\"\",BB423/$C$423)","v":""},null,0]
[null,null,null,null,{"$f":"IF($C$424=\"\",\"\",F424/$C$424)","v":""},null,{"$f":"IF($C$424=\"\",\"\",H424/$C$424)","v":""},null,{"$f":"IF($C$424=\"\",\"\",J424/$C$424)","v":""},null,{"$f":"IF($C$424=\"\",\"\",L424/$C$424)","v":""},null,{"$f":"IF($C$424=\"\",\"\",N424/$C$424)","v":""},null,{"$f":"IF($C$424=\"\",\"\",P424/$C$424)","v":""},null,{"$f":"IF($C$424=\"\",\"\",R424/$C$424)","v":""},null,{"$f":"IF($C$424=\"\",\"\",T424/$C$424)","v":""},null,{"$f":"IF($C$424=\"\",\"\",V424/$C$424)","v":""},null,{"$f":"IF($C$424=\"\",\"\",X424/$C$424)","v":""},null,{"$f":"IF($C$424=\"\",\"\",Z424/$C$424)","v":""},null,{"$f":"IF($C$424=\"\",\"\",AB424/$C$424)","v":""},null,{"$f":"IF($C$424=\"\",\"\",AD424/$C$424)","v":""},null,{"$f":"IF($C$424=\"\",\"\",AF424/$C$424)","v":""},null,{"$f":"IF($C$424=\"\",\"\",AH424/$C$424)","v":""},null,{"$f":"IF($C$424=\"\",\"\",AJ424/$C$424)","v":""},null,{"$f":"IF($C$424=\"\",\"\",AL424/$C$424)","v":""},null,{"$f":"IF($C$424=\"\",\"\",AN424/$C$424)","v":""},null,{"$f":"IF($C$424=\"\",\"\",AP424/$C$424)","v":""},null,{"$f":"IF($C$424=\"\",\"\",AR424/$C$424)","v":""},null,{"$f":"IF($C$424=\"\",\"\",AT424/$C$424)","v":""},null,{"$f":"IF($C$424=\"\",\"\",AV424/$C$424)","v":""},null,{"$f":"IF($C$424=\"\",\"\",AX424/$C$424)","v":""},null,{"$f":"IF($C$424=\"\",\"\",AZ424/$C$424)","v":""},null,{"$f":"IF($C$424=\"\",\"\",BB424/$C$424)","v":""},null,0]
[null,null,null,null,{"$f":"IF($C$425=\"\",\"\",F425/$C$425)","v":""},null,{"$f":"IF($C$425=\"\",\"\",H425/$C$425)","v":""},null,{"$f":"IF($C$425=\"\",\"\",J425/$C$425)","v":""},null,{"$f":"IF($C$425=\"\",\"\",L425/$C$425)","v":""},null,{"$f":"IF($C$425=\"\",\"\",N425/$C$425)","v":""},null,{"$f":"IF($C$425=\"\",\"\",P425/$C$425)","v":""},null,{"$f":"IF($C$425=\"\",\"\",R425/$C$425)","v":""},null,{"$f":"IF($C$425=\"\",\"\",T425/$C$425)","v":""},null,{"$f":"IF($C$425=\"\",\"\",V425/$C$425)","v":""},null,{"$f":"IF($C$425=\"\",\"\",X425/$C$425)","v":""},null,{"$f":"IF($C$425=\"\",\"\",Z425/$C$425)","v":""},null,{"$f":"IF($C$425=\"\",\"\",AB425/$C$425)","v":""},null,{"$f":"IF($C$425=\"\",\"\",AD425/$C$425)","v":""},null,{"$f":"IF($C$425=\"\",\"\",AF425/$C$425)","v":""},null,{"$f":"IF($C$425=\"\",\"\",AH425/$C$425)","v":""},null,{"$f":"IF($C$425=\"\",\"\",AJ425/$C$425)","v":""},null,{"$f":"IF($C$425=\"\",\"\",AL425/$C$425)","v":""},null,{"$f":"IF($C$425=\"\",\"\",AN425/$C$425)","v":""},null,{"$f":"IF($C$425=\"\",\"\",AP425/$C$425)","v":""},null,{"$f":"IF($C$425=\"\",\"\",AR425/$C$425)","v":""},null,{"$f":"IF($C$425=\"\",\"\",AT425/$C$425)","v":""},null,{"$f":"IF($C$425=\"\",\"\",AV425/$C$425)","v":""},null,{"$f":"IF($C$425=\"\",\"\",AX425/$C$425)","v":""},null,{"$f":"IF($C$425=\"\",\"\",AZ425/$C$425)","v":""},null,{"$f":"IF($C$425=\"\",\"\",BB425/$C$425)","v":""},null,0]
[null,null,null,null,{"$f":"IF($C$426=\"\",\"\",F426/$C$426)","v":""},null,{"$f":"IF($C$426=\"\",\"\",H426/$C$426)","v":""},null,{"$f":"IF($C$426=\"\",\"\",J426/$C$426)","v":""},null,{"$f":"IF($C$426=\"\",\"\",L426/$C$426)","v":""},null,{"$f":"IF($C$426=\"\",\"\",N426/$C$426)","v":""},null,{"$f":"IF($C$426=\"\",\"\",P426/$C$426)","v":""},null,{"$f":"IF($C$426=\"\",\"\",R426/$C$426)","v":""},null,{"$f":"IF($C$426=\"\",\"\",T426/$C$426)","v":""},null,{"$f":"IF($C$426=\"\",\"\",V426/$C$426)","v":""},null,{"$f":"IF($C$426=\"\",\"\",X426/$C$426)","v":""},null,{"$f":"IF($C$426=\"\",\"\",Z426/$C$426)","v":""},null,{"$f":"IF($C$426=\"\",\"\",AB426/$C$426)","v":""},null,{"$f":"IF($C$426=\"\",\"\",AD426/$C$426)","v":""},null,{"$f":"IF($C$426=\"\",\"\",AF426/$C$426)","v":""},null,{"$f":"IF($C$426=\"\",\"\",AH426/$C$426)","v":""},null,{"$f":"IF($C$426=\"\",\"\",AJ426/$C$426)","v":""},null,{"$f":"IF($C$426=\"\",\"\",AL426/$C$426)","v":""},null,{"$f":"IF($C$426=\"\",\"\",AN426/$C$426)","v":""},null,{"$f":"IF($C$426=\"\",\"\",AP426/$C$426)","v":""},null,{"$f":"IF($C$426=\"\",\"\",AR426/$C$426)","v":""},null,{"$f":"IF($C$426=\"\",\"\",AT426/$C$426)","v":""},null,{"$f":"IF($C$426=\"\",\"\",AV426/$C$426)","v":""},null,{"$f":"IF($C$426=\"\",\"\",AX426/$C$426)","v":""},null,{"$f":"IF($C$426=\"\",\"\",AZ426/$C$426)","v":""},null,{"$f":"IF($C$426=\"\",\"\",BB426/$C$426)","v":""},null,0]
[null,null,null,null,{"$f":"IF($C$427=\"\",\"\",F427/$C$427)","v":""},null,{"$f":"IF($C$427=\"\",\"\",H427/$C$427)","v":""},null,{"$f":"IF($C$427=\"\",\"\",J427/$C$427)","v":""},null,{"$f":"IF($C$427=\"\",\"\",L427/$C$427)","v":""},null,{"$f":"IF($C$427=\"\",\"\",N427/$C$427)","v":""},null,{"$f":"IF($C$427=\"\",\"\",P427/$C$427)","v":""},null,{"$f":"IF($C$427=\"\",\"\",R427/$C$427)","v":""},null,{"$f":"IF($C$427=\"\",\"\",T427/$C$427)","v":""},null,{"$f":"IF($C$427=\"\",\"\",V427/$C$427)","v":""},null,{"$f":"IF($C$427=\"\",\"\",X427/$C$427)","v":""},null,{"$f":"IF($C$427=\"\",\"\",Z427/$C$427)","v":""},null,{"$f":"IF($C$427=\"\",\"\",AB427/$C$427)","v":""},null,{"$f":"IF($C$427=\"\",\"\",AD427/$C$427)","v":""},null,{"$f":"IF($C$427=\"\",\"\",AF427/$C$427)","v":""},null,{"$f":"IF($C$427=\"\",\"\",AH427/$C$427)","v":""},null,{"$f":"IF($C$427=\"\",\"\",AJ427/$C$427)","v":""},null,{"$f":"IF($C$427=\"\",\"\",AL427/$C$427)","v":""},null,{"$f":"IF($C$427=\"\",\"\",AN427/$C$427)","v":""},null,{"$f":"IF($C$427=\"\",\"\",AP427/$C$427)","v":""},null,{"$f":"IF($C$427=\"\",\"\",AR427/$C$427)","v":""},null,{"$f":"IF($C$427=\"\",\"\",AT427/$C$427)","v":""},null,{"$f":"IF($C$427=\"\",\"\",AV427/$C$427)","v":""},null,{"$f":"IF($C$427=\"\",\"\",AX427/$C$427)","v":""},null,{"$f":"IF($C$427=\"\",\"\",AZ427/$C$427)","v":""},null,{"$f":"IF($C$427=\"\",\"\",BB427/$C$427)","v":""},null,0]
[null,null,null,null,{"$f":"IF($C$428=\"\",\"\",F428/$C$428)","v":""},null,{"$f":"IF($C$428=\"\",\"\",H428/$C$428)","v":""},null,{"$f":"IF($C$428=\"\",\"\",J428/$C$428)","v":""},null,{"$f":"IF($C$428=\"\",\"\",L428/$C$428)","v":""},null,{"$f":"IF($C$428=\"\",\"\",N428/$C$428)","v":""},null,{"$f":"IF($C$428=\"\",\"\",P428/$C$428)","v":""},null,{"$f":"IF($C$428=\"\",\"\",R428/$C$428)","v":""},null,{"$f":"IF($C$428=\"\",\"\",T428/$C$428)","v":""},null,{"$f":"IF($C$428=\"\",\"\",V428/$C$428)","v":""},null,{"$f":"IF($C$428=\"\",\"\",X428/$C$428)","v":""},null,{"$f":"IF($C$428=\"\",\"\",Z428/$C$428)","v":""},null,{"$f":"IF($C$428=\"\",\"\",AB428/$C$428)","v":""},null,{"$f":"IF($C$428=\"\",\"\",AD428/$C$428)","v":""},null,{"$f":"IF($C$428=\"\",\"\",AF428/$C$428)","v":""},null,{"$f":"IF($C$428=\"\",\"\",AH428/$C$428)","v":""},null,{"$f":"IF($C$428=\"\",\"\",AJ428/$C$428)","v":""},null,{"$f":"IF($C$428=\"\",\"\",AL428/$C$428)","v":""},null,{"$f":"IF($C$428=\"\",\"\",AN428/$C$428)","v":""},null,{"$f":"IF($C$428=\"\",\"\",AP428/$C$428)","v":""},null,{"$f":"IF($C$428=\"\",\"\",AR428/$C$428)","v":""},null,{"$f":"IF($C$428=\"\",\"\",AT428/$C$428)","v":""},null,{"$f":"IF($C$428=\"\",\"\",AV428/$C$428)","v":""},null,{"$f":"IF($C$428=\"\",\"\",AX428/$C$428)","v":""},null,{"$f":"IF($C$428=\"\",\"\",AZ428/$C$428)","v":""},null,{"$f":"IF($C$428=\"\",\"\",BB428/$C$428)","v":""},null,0]
[null,null,null,null,{"$f":"IF($C$429=\"\",\"\",F429/$C$429)","v":""},null,{"$f":"IF($C$429=\"\",\"\",H429/$C$429)","v":""},null,{"$f":"IF($C$429=\"\",\"\",J429/$C$429)","v":""},null,{"$f":"IF($C$429=\"\",\"\",L429/$C$429)","v":""},null,{"$f":"IF($C$429=\"\",\"\",N429/$C$429)","v":""},null,{"$f":"IF($C$429=\"\",\"\",P429/$C$429)","v":""},null,{"$f":"IF($C$429=\"\",\"\",R429/$C$429)","v":""},null,{"$f":"IF($C$429=\"\",\"\",T429/$C$429)","v":""},null,{"$f":"IF($C$429=\"\",\"\",V429/$C$429)","v":""},null,{"$f":"IF($C$429=\"\",\"\",X429/$C$429)","v":""},null,{"$f":"IF($C$429=\"\",\"\",Z429/$C$429)","v":""},null,{"$f":"IF($C$429=\"\",\"\",AB429/$C$429)","v":""},null,{"$f":"IF($C$429=\"\",\"\",AD429/$C$429)","v":""},null,{"$f":"IF($C$429=\"\",\"\",AF429/$C$429)","v":""},null,{"$f":"IF($C$429=\"\",\"\",AH429/$C$429)","v":""},null,{"$f":"IF($C$429=\"\",\"\",AJ429/$C$429)","v":""},null,{"$f":"IF($C$429=\"\",\"\",AL429/$C$429)","v":""},null,{"$f":"IF($C$429=\"\",\"\",AN429/$C$429)","v":""},null,{"$f":"IF($C$429=\"\",\"\",AP429/$C$429)","v":""},null,{"$f":"IF($C$429=\"\",\"\",AR429/$C$429)","v":""},null,{"$f":"IF($C$429=\"\",\"\",AT429/$C$429)","v":""},null,{"$f":"IF($C$429=\"\",\"\",AV429/$C$429)","v":""},null,{"$f":"IF($C$429=\"\",\"\",AX429/$C$429)","v":""},null,{"$f":"IF($C$429=\"\",\"\",AZ429/$C$429)","v":""},null,{"$f":"IF($C$429=\"\",\"\",BB429/$C$429)","v":""},null,0]
[null,null,null,null,{"$f":"IF($C$430=\"\",\"\",F430/$C$430)","v":""},null,{"$f":"IF($C$430=\"\",\"\",H430/$C$430)","v":""},null,{"$f":"IF($C$430=\"\",\"\",J430/$C$430)","v":""},null,{"$f":"IF($C$430=\"\",\"\",L430/$C$430)","v":""},null,{"$f":"IF($C$430=\"\",\"\",N430/$C$430)","v":""},null,{"$f":"IF($C$430=\"\",\"\",P430/$C$430)","v":""},null,{"$f":"IF($C$430=\"\",\"\",R430/$C$430)","v":""},null,{"$f":"IF($C$430=\"\",\"\",T430/$C$430)","v":""},null,{"$f":"IF($C$430=\"\",\"\",V430/$C$430)","v":""},null,{"$f":"IF($C$430=\"\",\"\",X430/$C$430)","v":""},null,{"$f":"IF($C$430=\"\",\"\",Z430/$C$430)","v":""},null,{"$f":"IF($C$430=\"\",\"\",AB430/$C$430)","v":""},null,{"$f":"IF($C$430=\"\",\"\",AD430/$C$430)","v":""},null,{"$f":"IF($C$430=\"\",\"\",AF430/$C$430)","v":""},null,{"$f":"IF($C$430=\"\",\"\",AH430/$C$430)","v":""},null,{"$f":"IF($C$430=\"\",\"\",AJ430/$C$430)","v":""},null,{"$f":"IF($C$430=\"\",\"\",AL430/$C$430)","v":""},null,{"$f":"IF($C$430=\"\",\"\",AN430/$C$430)","v":""},null,{"$f":"IF($C$430=\"\",\"\",AP430/$C$430)","v":""},null,{"$f":"IF($C$430=\"\",\"\",AR430/$C$430)","v":""},null,{"$f":"IF($C$430=\"\",\"\",AT430/$C$430)","v":""},null,{"$f":"IF($C$430=\"\",\"\",AV430/$C$430)","v":""},null,{"$f":"IF($C$430=\"\",\"\",AX430/$C$430)","v":""},null,{"$f":"IF($C$430=\"\",\"\",AZ430/$C$430)","v":""},null,{"$f":"IF($C$430=\"\",\"\",BB430/$C$430)","v":""},null,0]
[null,null,null,null,{"$f":"IF($C$431=\"\",\"\",F431/$C$431)","v":""},null,{"$f":"IF($C$431=\"\",\"\",H431/$C$431)","v":""},null,{"$f":"IF($C$431=\"\",\"\",J431/$C$431)","v":""},null,{"$f":"IF($C$431=\"\",\"\",L431/$C$431)","v":""},null,{"$f":"IF($C$431=\"\",\"\",N431/$C$431)","v":""},null,{"$f":"IF($C$431=\"\",\"\",P431/$C$431)","v":""},null,{"$f":"IF($C$431=\"\",\"\",R431/$C$431)","v":""},null,{"$f":"IF($C$431=\"\",\"\",T431/$C$431)","v":""},null,{"$f":"IF($C$431=\"\",\"\",V431/$C$431)","v":""},null,{"$f":"IF($C$431=\"\",\"\",X431/$C$431)","v":""},null,{"$f":"IF($C$431=\"\",\"\",Z431/$C$431)","v":""},null,{"$f":"IF($C$431=\"\",\"\",AB431/$C$431)","v":""},null,{"$f":"IF($C$431=\"\",\"\",AD431/$C$431)","v":""},null,{"$f":"IF($C$431=\"\",\"\",AF431/$C$431)","v":""},null,{"$f":"IF($C$431=\"\",\"\",AH431/$C$431)","v":""},null,{"$f":"IF($C$431=\"\",\"\",AJ431/$C$431)","v":""},null,{"$f":"IF($C$431=\"\",\"\",AL431/$C$431)","v":""},null,{"$f":"IF($C$431=\"\",\"\",AN431/$C$431)","v":""},null,{"$f":"IF($C$431=\"\",\"\",AP431/$C$431)","v":""},null,{"$f":"IF($C$431=\"\",\"\",AR431/$C$431)","v":""},null,{"$f":"IF($C$431=\"\",\"\",AT431/$C$431)","v":""},null,{"$f":"IF($C$431=\"\",\"\",AV431/$C$431)","v":""},null,{"$f":"IF($C$431=\"\",\"\",AX431/$C$431)","v":""},null,{"$f":"IF($C$431=\"\",\"\",AZ431/$C$431)","v":""},null,{"$f":"IF($C$431=\"\",\"\",BB431/$C$431)","v":""},null,0]
[null,null,null,null,{"$f":"IF($C$432=\"\",\"\",F432/$C$432)","v":""},null,{"$f":"IF($C$432=\"\",\"\",H432/$C$432)","v":""},null,{"$f":"IF($C$432=\"\",\"\",J432/$C$432)","v":""},null,{"$f":"IF($C$432=\"\",\"\",L432/$C$432)","v":""},null,{"$f":"IF($C$432=\"\",\"\",N432/$C$432)","v":""},null,{"$f":"IF($C$432=\"\",\"\",P432/$C$432)","v":""},null,{"$f":"IF($C$432=\"\",\"\",R432/$C$432)","v":""},null,{"$f":"IF($C$432=\"\",\"\",T432/$C$432)","v":""},null,{"$f":"IF($C$432=\"\",\"\",V432/$C$432)","v":""},null,{"$f":"IF($C$432=\"\",\"\",X432/$C$432)","v":""},null,{"$f":"IF($C$432=\"\",\"\",Z432/$C$432)","v":""},null,{"$f":"IF($C$432=\"\",\"\",AB432/$C$432)","v":""},null,{"$f":"IF($C$432=\"\",\"\",AD432/$C$432)","v":""},null,{"$f":"IF($C$432=\"\",\"\",AF432/$C$432)","v":""},null,{"$f":"IF($C$432=\"\",\"\",AH432/$C$432)","v":""},null,{"$f":"IF($C$432=\"\",\"\",AJ432/$C$432)","v":""},null,{"$f":"IF($C$432=\"\",\"\",AL432/$C$432)","v":""},null,{"$f":"IF($C$432=\"\",\"\",AN432/$C$432)","v":""},null,{"$f":"IF($C$432=\"\",\"\",AP432/$C$432)","v":""},null,{"$f":"IF($C$432=\"\",\"\",AR432/$C$432)","v":""},null,{"$f":"IF($C$432=\"\",\"\",AT432/$C$432)","v":""},null,{"$f":"IF($C$432=\"\",\"\",AV432/$C$432)","v":""},null,{"$f":"IF($C$432=\"\",\"\",AX432/$C$432)","v":""},null,{"$f":"IF($C$432=\"\",\"\",AZ432/$C$432)","v":""},null,{"$f":"IF($C$432=\"\",\"\",BB432/$C$432)","v":""},null,0]
[null,null,null,null,{"$f":"IF($C$433=\"\",\"\",F433/$C$433)","v":""},null,{"$f":"IF($C$433=\"\",\"\",H433/$C$433)","v":""},null,{"$f":"IF($C$433=\"\",\"\",J433/$C$433)","v":""},null,{"$f":"IF($C$433=\"\",\"\",L433/$C$433)","v":""},null,{"$f":"IF($C$433=\"\",\"\",N433/$C$433)","v":""},null,{"$f":"IF($C$433=\"\",\"\",P433/$C$433)","v":""},null,{"$f":"IF($C$433=\"\",\"\",R433/$C$433)","v":""},null,{"$f":"IF($C$433=\"\",\"\",T433/$C$433)","v":""},null,{"$f":"IF($C$433=\"\",\"\",V433/$C$433)","v":""},null,{"$f":"IF($C$433=\"\",\"\",X433/$C$433)","v":""},null,{"$f":"IF($C$433=\"\",\"\",Z433/$C$433)","v":""},null,{"$f":"IF($C$433=\"\",\"\",AB433/$C$433)","v":""},null,{"$f":"IF($C$433=\"\",\"\",AD433/$C$433)","v":""},null,{"$f":"IF($C$433=\"\",\"\",AF433/$C$433)","v":""},null,{"$f":"IF($C$433=\"\",\"\",AH433/$C$433)","v":""},null,{"$f":"IF($C$433=\"\",\"\",AJ433/$C$433)","v":""},null,{"$f":"IF($C$433=\"\",\"\",AL433/$C$433)","v":""},null,{"$f":"IF($C$433=\"\",\"\",AN433/$C$433)","v":""},null,{"$f":"IF($C$433=\"\",\"\",AP433/$C$433)","v":""},null,{"$f":"IF($C$433=\"\",\"\",AR433/$C$433)","v":""},null,{"$f":"IF($C$433=\"\",\"\",AT433/$C$433)","v":""},null,{"$f":"IF($C$433=\"\",\"\",AV433/$C$433)","v":""},null,{"$f":"IF($C$433=\"\",\"\",AX433/$C$433)","v":""},null,{"$f":"IF($C$433=\"\",\"\",AZ433/$C$433)","v":""},null,{"$f":"IF($C$433=\"\",\"\",BB433/$C$433)","v":""},null,0]
[null,null,null,null,{"$f":"IF($C$434=\"\",\"\",F434/$C$434)","v":""},null,{"$f":"IF($C$434=\"\",\"\",H434/$C$434)","v":""},null,{"$f":"IF($C$434=\"\",\"\",J434/$C$434)","v":""},null,{"$f":"IF($C$434=\"\",\"\",L434/$C$434)","v":""},null,{"$f":"IF($C$434=\"\",\"\",N434/$C$434)","v":""},null,{"$f":"IF($C$434=\"\",\"\",P434/$C$434)","v":""},null,{"$f":"IF($C$434=\"\",\"\",R434/$C$434)","v":""},null,{"$f":"IF($C$434=\"\",\"\",T434/$C$434)","v":""},null,{"$f":"IF($C$434=\"\",\"\",V434/$C$434)","v":""},null,{"$f":"IF($C$434=\"\",\"\",X434/$C$434)","v":""},null,{"$f":"IF($C$434=\"\",\"\",Z434/$C$434)","v":""},null,{"$f":"IF($C$434=\"\",\"\",AB434/$C$434)","v":""},null,{"$f":"IF($C$434=\"\",\"\",AD434/$C$434)","v":""},null,{"$f":"IF($C$434=\"\",\"\",AF434/$C$434)","v":""},null,{"$f":"IF($C$434=\"\",\"\",AH434/$C$434)","v":""},null,{"$f":"IF($C$434=\"\",\"\",AJ434/$C$434)","v":""},null,{"$f":"IF($C$434=\"\",\"\",AL434/$C$434)","v":""},null,{"$f":"IF($C$434=\"\",\"\",AN434/$C$434)","v":""},null,{"$f":"IF($C$434=\"\",\"\",AP434/$C$434)","v":""},null,{"$f":"IF($C$434=\"\",\"\",AR434/$C$434)","v":""},null,{"$f":"IF($C$434=\"\",\"\",AT434/$C$434)","v":""},null,{"$f":"IF($C$434=\"\",\"\",AV434/$C$434)","v":""},null,{"$f":"IF($C$434=\"\",\"\",AX434/$C$434)","v":""},null,{"$f":"IF($C$434=\"\",\"\",AZ434/$C$434)","v":""},null,{"$f":"IF($C$434=\"\",\"\",BB434/$C$434)","v":""},null,0]
[null,null,null,null,{"$f":"IF($C$435=\"\",\"\",F435/$C$435)","v":""},null,{"$f":"IF($C$435=\"\",\"\",H435/$C$435)","v":""},null,{"$f":"IF($C$435=\"\",\"\",J435/$C$435)","v":""},null,{"$f":"IF($C$435=\"\",\"\",L435/$C$435)","v":""},null,{"$f":"IF($C$435=\"\",\"\",N435/$C$435)","v":""},null,{"$f":"IF($C$435=\"\",\"\",P435/$C$435)","v":""},null,{"$f":"IF($C$435=\"\",\"\",R435/$C$435)","v":""},null,{"$f":"IF($C$435=\"\",\"\",T435/$C$435)","v":""},null,{"$f":"IF($C$435=\"\",\"\",V435/$C$435)","v":""},null,{"$f":"IF($C$435=\"\",\"\",X435/$C$435)","v":""},null,{"$f":"IF($C$435=\"\",\"\",Z435/$C$435)","v":""},null,{"$f":"IF($C$435=\"\",\"\",AB435/$C$435)","v":""},null,{"$f":"IF($C$435=\"\",\"\",AD435/$C$435)","v":""},null,{"$f":"IF($C$435=\"\",\"\",AF435/$C$435)","v":""},null,{"$f":"IF($C$435=\"\",\"\",AH435/$C$435)","v":""},null,{"$f":"IF($C$435=\"\",\"\",AJ435/$C$435)","v":""},null,{"$f":"IF($C$435=\"\",\"\",AL435/$C$435)","v":""},null,{"$f":"IF($C$435=\"\",\"\",AN435/$C$435)","v":""},null,{"$f":"IF($C$435=\"\",\"\",AP435/$C$435)","v":""},null,{"$f":"IF($C$435=\"\",\"\",AR435/$C$435)","v":""},null,{"$f":"IF($C$435=\"\",\"\",AT435/$C$435)","v":""},null,{"$f":"IF($C$435=\"\",\"\",AV435/$C$435)","v":""},null,{"$f":"IF($C$435=\"\",\"\",AX435/$C$435)","v":""},null,{"$f":"IF($C$435=\"\",\"\",AZ435/$C$435)","v":""},null,{"$f":"IF($C$435=\"\",\"\",BB435/$C$435)","v":""},null,0]
[null,null,null,null,{"$f":"IF($C$436=\"\",\"\",F436/$C$436)","v":""},null,{"$f":"IF($C$436=\"\",\"\",H436/$C$436)","v":""},null,{"$f":"IF($C$436=\"\",\"\",J436/$C$436)","v":""},null,{"$f":"IF($C$436=\"\",\"\",L436/$C$436)","v":""},null,{"$f":"IF($C$436=\"\",\"\",N436/$C$436)","v":""},null,{"$f":"IF($C$436=\"\",\"\",P436/$C$436)","v":""},null,{"$f":"IF($C$436=\"\",\"\",R436/$C$436)","v":""},null,{"$f":"IF($C$436=\"\",\"\",T436/$C$436)","v":""},null,{"$f":"IF($C$436=\"\",\"\",V436/$C$436)","v":""},null,{"$f":"IF($C$436=\"\",\"\",X436/$C$436)","v":""},null,{"$f":"IF($C$436=\"\",\"\",Z436/$C$436)","v":""},null,{"$f":"IF($C$436=\"\",\"\",AB436/$C$436)","v":""},null,{"$f":"IF($C$436=\"\",\"\",AD436/$C$436)","v":""},null,{"$f":"IF($C$436=\"\",\"\",AF436/$C$436)","v":""},null,{"$f":"IF($C$436=\"\",\"\",AH436/$C$436)","v":""},null,{"$f":"IF($C$436=\"\",\"\",AJ436/$C$436)","v":""},null,{"$f":"IF($C$436=\"\",\"\",AL436/$C$436)","v":""},null,{"$f":"IF($C$436=\"\",\"\",AN436/$C$436)","v":""},null,{"$f":"IF($C$436=\"\",\"\",AP436/$C$436)","v":""},null,{"$f":"IF($C$436=\"\",\"\",AR436/$C$436)","v":""},null,{"$f":"IF($C$436=\"\",\"\",AT436/$C$436)","v":""},null,{"$f":"IF($C$436=\"\",\"\",AV436/$C$436)","v":""},null,{"$f":"IF($C$436=\"\",\"\",AX436/$C$436)","v":""},null,{"$f":"IF($C$436=\"\",\"\",AZ436/$C$436)","v":""},null,{"$f":"IF($C$436=\"\",\"\",BB436/$C$436)","v":""},null,0]
[null,null,null,null,{"$f":"IF($C$437=\"\",\"\",F437/$C$437)","v":""},null,{"$f":"IF($C$437=\"\",\"\",H437/$C$437)","v":""},null,{"$f":"IF($C$437=\"\",\"\",J437/$C$437)","v":""},null,{"$f":"IF($C$437=\"\",\"\",L437/$C$437)","v":""},null,{"$f":"IF($C$437=\"\",\"\",N437/$C$437)","v":""},null,{"$f":"IF($C$437=\"\",\"\",P437/$C$437)","v":""},null,{"$f":"IF($C$437=\"\",\"\",R437/$C$437)","v":""},null,{"$f":"IF($C$437=\"\",\"\",T437/$C$437)","v":""},null,{"$f":"IF($C$437=\"\",\"\",V437/$C$437)","v":""},null,{"$f":"IF($C$437=\"\",\"\",X437/$C$437)","v":""},null,{"$f":"IF($C$437=\"\",\"\",Z437/$C$437)","v":""},null,{"$f":"IF($C$437=\"\",\"\",AB437/$C$437)","v":""},null,{"$f":"IF($C$437=\"\",\"\",AD437/$C$437)","v":""},null,{"$f":"IF($C$437=\"\",\"\",AF437/$C$437)","v":""},null,{"$f":"IF($C$437=\"\",\"\",AH437/$C$437)","v":""},null,{"$f":"IF($C$437=\"\",\"\",AJ437/$C$437)","v":""},null,{"$f":"IF($C$437=\"\",\"\",AL437/$C$437)","v":""},null,{"$f":"IF($C$437=\"\",\"\",AN437/$C$437)","v":""},null,{"$f":"IF($C$437=\"\",\"\",AP437/$C$437)","v":""},null,{"$f":"IF($C$437=\"\",\"\",AR437/$C$437)","v":""},null,{"$f":"IF($C$437=\"\",\"\",AT437/$C$437)","v":""},null,{"$f":"IF($C$437=\"\",\"\",AV437/$C$437)","v":""},null,{"$f":"IF($C$437=\"\",\"\",AX437/$C$437)","v":""},null,{"$f":"IF($C$437=\"\",\"\",AZ437/$C$437)","v":""},null,{"$f":"IF($C$437=\"\",\"\",BB437/$C$437)","v":""},null,0]
[null,null,null,null,{"$f":"IF($C$438=\"\",\"\",F438/$C$438)","v":""},null,{"$f":"IF($C$438=\"\",\"\",H438/$C$438)","v":""},null,{"$f":"IF($C$438=\"\",\"\",J438/$C$438)","v":""},null,{"$f":"IF($C$438=\"\",\"\",L438/$C$438)","v":""},null,{"$f":"IF($C$438=\"\",\"\",N438/$C$438)","v":""},null,{"$f":"IF($C$438=\"\",\"\",P438/$C$438)","v":""},null,{"$f":"IF($C$438=\"\",\"\",R438/$C$438)","v":""},null,{"$f":"IF($C$438=\"\",\"\",T438/$C$438)","v":""},null,{"$f":"IF($C$438=\"\",\"\",V438/$C$438)","v":""},null,{"$f":"IF($C$438=\"\",\"\",X438/$C$438)","v":""},null,{"$f":"IF($C$438=\"\",\"\",Z438/$C$438)","v":""},null,{"$f":"IF($C$438=\"\",\"\",AB438/$C$438)","v":""},null,{"$f":"IF($C$438=\"\",\"\",AD438/$C$438)","v":""},null,{"$f":"IF($C$438=\"\",\"\",AF438/$C$438)","v":""},null,{"$f":"IF($C$438=\"\",\"\",AH438/$C$438)","v":""},null,{"$f":"IF($C$438=\"\",\"\",AJ438/$C$438)","v":""},null,{"$f":"IF($C$438=\"\",\"\",AL438/$C$438)","v":""},null,{"$f":"IF($C$438=\"\",\"\",AN438/$C$438)","v":""},null,{"$f":"IF($C$438=\"\",\"\",AP438/$C$438)","v":""},null,{"$f":"IF($C$438=\"\",\"\",AR438/$C$438)","v":""},null,{"$f":"IF($C$438=\"\",\"\",AT438/$C$438)","v":""},null,{"$f":"IF($C$438=\"\",\"\",AV438/$C$438)","v":""},null,{"$f":"IF($C$438=\"\",\"\",AX438/$C$438)","v":""},null,{"$f":"IF($C$438=\"\",\"\",AZ438/$C$438)","v":""},null,{"$f":"IF($C$438=\"\",\"\",BB438/$C$438)","v":""},null,0]
[null,null,null,null,{"$f":"IF($C$439=\"\",\"\",F439/$C$439)","v":""},null,{"$f":"IF($C$439=\"\",\"\",H439/$C$439)","v":""},null,{"$f":"IF($C$439=\"\",\"\",J439/$C$439)","v":""},null,{"$f":"IF($C$439=\"\",\"\",L439/$C$439)","v":""},null,{"$f":"IF($C$439=\"\",\"\",N439/$C$439)","v":""},null,{"$f":"IF($C$439=\"\",\"\",P439/$C$439)","v":""},null,{"$f":"IF($C$439=\"\",\"\",R439/$C$439)","v":""},null,{"$f":"IF($C$439=\"\",\"\",T439/$C$439)","v":""},null,{"$f":"IF($C$439=\"\",\"\",V439/$C$439)","v":""},null,{"$f":"IF($C$439=\"\",\"\",X439/$C$439)","v":""},null,{"$f":"IF($C$439=\"\",\"\",Z439/$C$439)","v":""},null,{"$f":"IF($C$439=\"\",\"\",AB439/$C$439)","v":""},null,{"$f":"IF($C$439=\"\",\"\",AD439/$C$439)","v":""},null,{"$f":"IF($C$439=\"\",\"\",AF439/$C$439)","v":""},null,{"$f":"IF($C$439=\"\",\"\",AH439/$C$439)","v":""},null,{"$f":"IF($C$439=\"\",\"\",AJ439/$C$439)","v":""},null,{"$f":"IF($C$439=\"\",\"\",AL439/$C$439)","v":""},null,{"$f":"IF($C$439=\"\",\"\",AN439/$C$439)","v":""},null,{"$f":"IF($C$439=\"\",\"\",AP439/$C$439)","v":""},null,{"$f":"IF($C$439=\"\",\"\",AR439/$C$439)","v":""},null,{"$f":"IF($C$439=\"\",\"\",AT439/$C$439)","v":""},null,{"$f":"IF($C$439=\"\",\"\",AV439/$C$439)","v":""},null,{"$f":"IF($C$439=\"\",\"\",AX439/$C$439)","v":""},null,{"$f":"IF($C$439=\"\",\"\",AZ439/$C$439)","v":""},null,{"$f":"IF($C$439=\"\",\"\",BB439/$C$439)","v":""},null,{"$f":"SUM(BB439,AZ439,AX439,AV439,AT439,AR439,AP439,AN439,AL439,AJ439,AH439,AF439,AD439,AB439,Z439,X439,V439,T439,R439,P439,N439,L439,J439,H439,F439)","v":0}]
["TOTAL HOURS",null,null,null,null,{"$f":"SUM(F410:F439)","v":0},null,{"$f":"SUM(H410:H439)","v":0},null,{"$f":"SUM(J410:J439)","v":0},null,{"$f":"SUM(L410:L439)","v":0},null,{"$f":"SUM(N410:N439)","v":0},null,{"$f":"SUM(P410:P439)","v":0},null,{"$f":"SUM(R410:R439)","v":0},null,{"$f":"SUM(T410:T439)","v":0},null,{"$f":"SUM(V410:V439)","v":0},null,{"$f":"SUM(X410:X439)","v":0},null,{"$f":"SUM(Z410:Z439)","v":0},null,{"$f":"SUM(AB410:AB439)","v":0},null,{"$f":"SUM(AD410:AD439)","v":0},null,{"$f":"SUM(AF410:AF439)","v":0},null,{"$f":"SUM(AH410:AH439)","v":0},null,{"$f":"SUM(AJ410:AJ439)","v":0},null,{"$f":"SUM(AL410:AL439)","v":0},null,{"$f":"SUM(AN410:AN439)","v":0},null,{"$f":"SUM(AP410:AP439)","v":0},null,{"$f":"SUM(AR410:AR439)","v":0},null,{"$f":"SUM(AT410:AT439)","v":0},null,{"$f":"SUM(AV410:AV439)","v":0},null,{"$f":"SUM(AX410:AX439)","v":0},null,{"$f":"SUM(AZ410:AZ439)","v":0},null,{"$f":"SUM(BB410:BB439)","v":0},{"$f":"SUM(E440:BB440)","v":0}]
["TOTAL WORKDAYS",null,null,null,null,{"$f":"F440/8","v":0},null,{"$f":"H440/8","v":0},null,{"$f":"J440/8","v":0},null,{"$f":"L440/8","v":0},null,{"$f":"N440/8","v":0},null,{"$f":"P440/8","v":0},null,{"$f":"R440/8","v":0},null,{"$f":"T440/8","v":0},null,{"$f":"V440/8","v":0},null,{"$f":"X440/8","v":0},null,{"$f":"Z440/8","v":0},null,{"$f":"AB440/8","v":0},null,{"$f":"AD440/8","v":0},null,0,null,{"$f":"AH440/8","v":0},null,0,null,{"$f":"AL440/8","v":0},null,0,null,{"$f":"AP440/8","v":0},null,0,null,{"$f":"AT440/8","v":0},null,{"$f":"AV440/8","v":0},null,{"$f":"AX440/8","v":0},null,{"$f":"AZ440/8","v":0},null,{"$f":"BB440/8","v":0},{"$f":"SUM(E441:BB441)","v":0}]
["TOTAL RAW LABOR",null,null,null,null,{"$f":"$E$13*F440","v":0},null,{"$f":"$G$13*H440","v":0},null,{"$f":"$I$13*J440","v":0},null,{"$f":"$K$13*L440","v":0},null,{"$f":"$M$13*N440","v":0},null,{"$f":"$O$13*P440","v":0},null,{"$f":"$Q$13*R440","v":0},null,{"$f":"$S$13*T440","v":0},null,{"$f":"$U$13*V440","v":0},null,{"$f":"$W$13*X440","v":0},null,{"$f":"$Y$13*Z440","v":0},null,{"$f":"$AA$13*AB440","v":0},null,{"$f":"$AC$13*AD440","v":0},null,{"$f":"$AC$13*AF440","v":0},null,{"$f":"$AC$13*AH440","v":0},null,{"$f":"$AC$13*AJ440","v":0},null,{"$f":"$AC$13*AL440","v":0},null,{"$f":"$AC$13*AN440","v":0},null,{"$f":"$AC$13*AP440","v":0},null,{"$f":"$AC$13*AR440","v":0},null,{"$f":"$AC$13*AT440","v":0},null,{"$f":"$AC$13*AV440","v":0},null,{"$f":"$AC$13*AX440","v":0},null,{"$f":"$AC$13*AZ440","v":0},null,{"$f":"$AC$13*BB440","v":0},{"$f":"SUM(E442:BB442)","v":0}]
["Task 17.0     ","REPLACE FIELD WITH CATEGORY NAME OF YOUR CHOOSING HERE",null,null,null,null,null,null,null,null,null,null,null,null,null,null,null,null,null,null,null,null,null,null,null,null,null,null,null,null,null,null,null,null,null,null,null,null,null,null,null,null,null,null,null,null,null,null,null,null,null,null,null,null,{"$f":"IF(B443=\"REPLACE FIELD WITH CATEGORY NAME OF YOUR CHOOSING HERE\",0,\"\")","v":0}]
[null,null,null,null,{"$f":"IF($C$444=\"\",\"\",F444/$C$444)","v":""},null,{"$f":"IF($C$444=\"\",\"\",H444/$C$444)","v":""},null,{"$f":"IF($C$444=\"\",\"\",J444/$C$444)","v":""},null,{"$f":"IF($C$444=\"\",\"\",L444/$C$444)","v":""},null,{"$f":"IF($C$444=\"\",\"\",N444/$C$444)","v":""},null,{"$f":"IF($C$444=\"\",\"\",P444/$C$444)","v":""},null,{"$f":"IF($C$444=\"\",\"\",R444/$C$444)","v":""},null,{"$f":"IF($C$444=\"\",\"\",T444/$C$444)","v":""},null,{"$f":"IF($C$444=\"\",\"\",V444/$C$444)","v":""},null,{"$f":"IF($C$444=\"\",\"\",X444/$C$444)","v":""},null,{"$f":"IF($C$444=\"\",\"\",Z444/$C$444)","v":""},null,{"$f":"IF($C$444=\"\",\"\",AB444/$C$444)","v":""},null,{"$f":"IF($C$444=\"\",\"\",AD444/$C$444)","v":""},null,{"$f":"IF($C$444=\"\",\"\",AF444/$C$444)","v":""},null,{"$f":"IF($C$444=\"\",\"\",AH444/$C$444)","v":""},null,{"$f":"IF($C$444=\"\",\"\",AJ444/$C$444)","v":""},null,{"$f":"IF($C$444=\"\",\"\",AL444/$C$444)","v":""},null,{"$f":"IF($C$444=\"\",\"\",AN444/$C$444)","v":""},null,{"$f":"IF($C$444=\"\",\"\",AP444/$C$444)","v":""},null,{"$f":"IF($C$444=\"\",\"\",AR444/$C$444)","v":""},null,{"$f":"IF($C$444=\"\",\"\",AT444/$C$444)","v":""},null,{"$f":"IF($C$444=\"\",\"\",AV444/$C$444)","v":""},null,{"$f":"IF($C$444=\"\",\"\",AX444/$C$444)","v":""},null,{"$f":"IF($C$444=\"\",\"\",AZ444/$C$444)","v":""},null,{"$f":"IF($C$444=\"\",\"\",BB444/$C$444)","v":""},null,{"$f":"SUM(BB444,AZ444,AX444,AV444,AT444,AR444,AP444,AN444,AL444,AJ444,AH444,AF444,AD444,AB444,Z444,X444,V444,T444,R444,P444,N444,L444,J444,H444,F444)","v":0}]
[null,null,null,null,{"$f":"IF($C$445=\"\",\"\",F445/$C$445)","v":""},null,{"$f":"IF($C$445=\"\",\"\",H445/$C$445)","v":""},null,{"$f":"IF($C$445=\"\",\"\",J445/$C$445)","v":""},null,{"$f":"IF($C$445=\"\",\"\",L445/$C$445)","v":""},null,{"$f":"IF($C$445=\"\",\"\",N445/$C$445)","v":""},null,{"$f":"IF($C$445=\"\",\"\",P445/$C$445)","v":""},null,{"$f":"IF($C$445=\"\",\"\",R445/$C$445)","v":""},null,{"$f":"IF($C$445=\"\",\"\",T445/$C$445)","v":""},null,{"$f":"IF($C$445=\"\",\"\",V445/$C$445)","v":""},null,{"$f":"IF($C$445=\"\",\"\",X445/$C$445)","v":""},null,{"$f":"IF($C$445=\"\",\"\",Z445/$C$445)","v":""},null,{"$f":"IF($C$445=\"\",\"\",AB445/$C$445)","v":""},null,{"$f":"IF($C$445=\"\",\"\",AD445/$C$445)","v":""},null,{"$f":"IF($C$445=\"\",\"\",AF445/$C$445)","v":""},null,{"$f":"IF($C$445=\"\",\"\",AH445/$C$445)","v":""},null,{"$f":"IF($C$445=\"\",\"\",AJ445/$C$445)","v":""},null,{"$f":"IF($C$445=\"\",\"\",AL445/$C$445)","v":""},null,{"$f":"IF($C$445=\"\",\"\",AN445/$C$445)","v":""},null,{"$f":"IF($C$445=\"\",\"\",AP445/$C$445)","v":""},null,{"$f":"IF($C$445=\"\",\"\",AR445/$C$445)","v":""},null,{"$f":"IF($C$445=\"\",\"\",AT445/$C$445)","v":""},null,{"$f":"IF($C$445=\"\",\"\",AV445/$C$445)","v":""},null,{"$f":"IF($C$445=\"\",\"\",AX445/$C$445)","v":""},null,{"$f":"IF($C$445=\"\",\"\",AZ445/$C$445)","v":""},null,{"$f":"IF($C$445=\"\",\"\",BB445/$C$445)","v":""},null,0]
[null,null,null,null,{"$f":"IF($C$446=\"\",\"\",F446/$C$446)","v":""},null,{"$f":"IF($C$446=\"\",\"\",H446/$C$446)","v":""},null,{"$f":"IF($C$446=\"\",\"\",J446/$C$446)","v":""},null,{"$f":"IF($C$446=\"\",\"\",L446/$C$446)","v":""},null,{"$f":"IF($C$446=\"\",\"\",N446/$C$446)","v":""},null,{"$f":"IF($C$446=\"\",\"\",P446/$C$446)","v":""},null,{"$f":"IF($C$446=\"\",\"\",R446/$C$446)","v":""},null,{"$f":"IF($C$446=\"\",\"\",T446/$C$446)","v":""},null,{"$f":"IF($C$446=\"\",\"\",V446/$C$446)","v":""},null,{"$f":"IF($C$446=\"\",\"\",X446/$C$446)","v":""},null,{"$f":"IF($C$446=\"\",\"\",Z446/$C$446)","v":""},null,{"$f":"IF($C$446=\"\",\"\",AB446/$C$446)","v":""},null,{"$f":"IF($C$446=\"\",\"\",AD446/$C$446)","v":""},null,{"$f":"IF($C$446=\"\",\"\",AF446/$C$446)","v":""},null,{"$f":"IF($C$446=\"\",\"\",AH446/$C$446)","v":""},null,{"$f":"IF($C$446=\"\",\"\",AJ446/$C$446)","v":""},null,{"$f":"IF($C$446=\"\",\"\",AL446/$C$446)","v":""},null,{"$f":"IF($C$446=\"\",\"\",AN446/$C$446)","v":""},null,{"$f":"IF($C$446=\"\",\"\",AP446/$C$446)","v":""},null,{"$f":"IF($C$446=\"\",\"\",AR446/$C$446)","v":""},null,{"$f":"IF($C$446=\"\",\"\",AT446/$C$446)","v":""},null,{"$f":"IF($C$446=\"\",\"\",AV446/$C$446)","v":""},null,{"$f":"IF($C$446=\"\",\"\",AX446/$C$446)","v":""},null,{"$f":"IF($C$446=\"\",\"\",AZ446/$C$446)","v":""},null,{"$f":"IF($C$446=\"\",\"\",BB446/$C$446)","v":""},null,0]
[null,null,null,null,{"$f":"IF($C$447=\"\",\"\",F447/$C$447)","v":""},null,{"$f":"IF($C$447=\"\",\"\",H447/$C$447)","v":""},null,{"$f":"IF($C$447=\"\",\"\",J447/$C$447)","v":""},null,{"$f":"IF($C$447=\"\",\"\",L447/$C$447)","v":""},null,{"$f":"IF($C$447=\"\",\"\",N447/$C$447)","v":""},null,{"$f":"IF($C$447=\"\",\"\",P447/$C$447)","v":""},null,{"$f":"IF($C$447=\"\",\"\",R447/$C$447)","v":""},null,{"$f":"IF($C$447=\"\",\"\",T447/$C$447)","v":""},null,{"$f":"IF($C$447=\"\",\"\",V447/$C$447)","v":""},null,{"$f":"IF($C$447=\"\",\"\",X447/$C$447)","v":""},null,{"$f":"IF($C$447=\"\",\"\",Z447/$C$447)","v":""},null,{"$f":"IF($C$447=\"\",\"\",AB447/$C$447)","v":""},null,{"$f":"IF($C$447=\"\",\"\",AD447/$C$447)","v":""},null,{"$f":"IF($C$447=\"\",\"\",AF447/$C$447)","v":""},null,{"$f":"IF($C$447=\"\",\"\",AH447/$C$447)","v":""},null,{"$f":"IF($C$447=\"\",\"\",AJ447/$C$447)","v":""},null,{"$f":"IF($C$447=\"\",\"\",AL447/$C$447)","v":""},null,{"$f":"IF($C$447=\"\",\"\",AN447/$C$447)","v":""},null,{"$f":"IF($C$447=\"\",\"\",AP447/$C$447)","v":""},null,{"$f":"IF($C$447=\"\",\"\",AR447/$C$447)","v":""},null,{"$f":"IF($C$447=\"\",\"\",AT447/$C$447)","v":""},null,{"$f":"IF($C$447=\"\",\"\",AV447/$C$447)","v":""},null,{"$f":"IF($C$447=\"\",\"\",AX447/$C$447)","v":""},null,{"$f":"IF($C$447=\"\",\"\",AZ447/$C$447)","v":""},null,{"$f":"IF($C$447=\"\",\"\",BB447/$C$447)","v":""},null,0]
[null,null,null,null,{"$f":"IF($C$448=\"\",\"\",F448/$C$448)","v":""},null,{"$f":"IF($C$448=\"\",\"\",H448/$C$448)","v":""},null,{"$f":"IF($C$448=\"\",\"\",J448/$C$448)","v":""},null,{"$f":"IF($C$448=\"\",\"\",L448/$C$448)","v":""},null,{"$f":"IF($C$448=\"\",\"\",N448/$C$448)","v":""},null,{"$f":"IF($C$448=\"\",\"\",P448/$C$448)","v":""},null,{"$f":"IF($C$448=\"\",\"\",R448/$C$448)","v":""},null,{"$f":"IF($C$448=\"\",\"\",T448/$C$448)","v":""},null,{"$f":"IF($C$448=\"\",\"\",V448/$C$448)","v":""},null,{"$f":"IF($C$448=\"\",\"\",X448/$C$448)","v":""},null,{"$f":"IF($C$448=\"\",\"\",Z448/$C$448)","v":""},null,{"$f":"IF($C$448=\"\",\"\",AB448/$C$448)","v":""},null,{"$f":"IF($C$448=\"\",\"\",AD448/$C$448)","v":""},null,{"$f":"IF($C$448=\"\",\"\",AF448/$C$448)","v":""},null,{"$f":"IF($C$448=\"\",\"\",AH448/$C$448)","v":""},null,{"$f":"IF($C$448=\"\",\"\",AJ448/$C$448)","v":""},null,{"$f":"IF($C$448=\"\",\"\",AL448/$C$448)","v":""},null,{"$f":"IF($C$448=\"\",\"\",AN448/$C$448)","v":""},null,{"$f":"IF($C$448=\"\",\"\",AP448/$C$448)","v":""},null,{"$f":"IF($C$448=\"\",\"\",AR448/$C$448)","v":""},null,{"$f":"IF($C$448=\"\",\"\",AT448/$C$448)","v":""},null,{"$f":"IF($C$448=\"\",\"\",AV448/$C$448)","v":""},null,{"$f":"IF($C$448=\"\",\"\",AX448/$C$448)","v":""},null,{"$f":"IF($C$448=\"\",\"\",AZ448/$C$448)","v":""},null,{"$f":"IF($C$448=\"\",\"\",BB448/$C$448)","v":""},null,0]
[null,null,null,null,{"$f":"IF($C$449=\"\",\"\",F449/$C$449)","v":""},null,{"$f":"IF($C$449=\"\",\"\",H449/$C$449)","v":""},null,{"$f":"IF($C$449=\"\",\"\",J449/$C$449)","v":""},null,{"$f":"IF($C$449=\"\",\"\",L449/$C$449)","v":""},null,{"$f":"IF($C$449=\"\",\"\",N449/$C$449)","v":""},null,{"$f":"IF($C$449=\"\",\"\",P449/$C$449)","v":""},null,{"$f":"IF($C$449=\"\",\"\",R449/$C$449)","v":""},null,{"$f":"IF($C$449=\"\",\"\",T449/$C$449)","v":""},null,{"$f":"IF($C$449=\"\",\"\",V449/$C$449)","v":""},null,{"$f":"IF($C$449=\"\",\"\",X449/$C$449)","v":""},null,{"$f":"IF($C$449=\"\",\"\",Z449/$C$449)","v":""},null,{"$f":"IF($C$449=\"\",\"\",AB449/$C$449)","v":""},null,{"$f":"IF($C$449=\"\",\"\",AD449/$C$449)","v":""},null,{"$f":"IF($C$449=\"\",\"\",AF449/$C$449)","v":""},null,{"$f":"IF($C$449=\"\",\"\",AH449/$C$449)","v":""},null,{"$f":"IF($C$449=\"\",\"\",AJ449/$C$449)","v":""},null,{"$f":"IF($C$449=\"\",\"\",AL449/$C$449)","v":""},null,{"$f":"IF($C$449=\"\",\"\",AN449/$C$449)","v":""},null,{"$f":"IF($C$449=\"\",\"\",AP449/$C$449)","v":""},null,{"$f":"IF($C$449=\"\",\"\",AR449/$C$449)","v":""},null,{"$f":"IF($C$449=\"\",\"\",AT449/$C$449)","v":""},null,{"$f":"IF($C$449=\"\",\"\",AV449/$C$449)","v":""},null,{"$f":"IF($C$449=\"\",\"\",AX449/$C$449)","v":""},null,{"$f":"IF($C$449=\"\",\"\",AZ449/$C$449)","v":""},null,{"$f":"IF($C$449=\"\",\"\",BB449/$C$449)","v":""},null,0]
[null,null,null,null,{"$f":"IF($C$450=\"\",\"\",F450/$C$450)","v":""},null,{"$f":"IF($C$450=\"\",\"\",H450/$C$450)","v":""},null,{"$f":"IF($C$450=\"\",\"\",J450/$C$450)","v":""},null,{"$f":"IF($C$450=\"\",\"\",L450/$C$450)","v":""},null,{"$f":"IF($C$450=\"\",\"\",N450/$C$450)","v":""},null,{"$f":"IF($C$450=\"\",\"\",P450/$C$450)","v":""},null,{"$f":"IF($C$450=\"\",\"\",R450/$C$450)","v":""},null,{"$f":"IF($C$450=\"\",\"\",T450/$C$450)","v":""},null,{"$f":"IF($C$450=\"\",\"\",V450/$C$450)","v":""},null,{"$f":"IF($C$450=\"\",\"\",X450/$C$450)","v":""},null,{"$f":"IF($C$450=\"\",\"\",Z450/$C$450)","v":""},null,{"$f":"IF($C$450=\"\",\"\",AB450/$C$450)","v":""},null,{"$f":"IF($C$450=\"\",\"\",AD450/$C$450)","v":""},null,{"$f":"IF($C$450=\"\",\"\",AF450/$C$450)","v":""},null,{"$f":"IF($C$450=\"\",\"\",AH450/$C$450)","v":""},null,{"$f":"IF($C$450=\"\",\"\",AJ450/$C$450)","v":""},null,{"$f":"IF($C$450=\"\",\"\",AL450/$C$450)","v":""},null,{"$f":"IF($C$450=\"\",\"\",AN450/$C$450)","v":""},null,{"$f":"IF($C$450=\"\",\"\",AP450/$C$450)","v":""},null,{"$f":"IF($C$450=\"\",\"\",AR450/$C$450)","v":""},null,{"$f":"IF($C$450=\"\",\"\",AT450/$C$450)","v":""},null,{"$f":"IF($C$450=\"\",\"\",AV450/$C$450)","v":""},null,{"$f":"IF($C$450=\"\",\"\",AX450/$C$450)","v":""},null,{"$f":"IF($C$450=\"\",\"\",AZ450/$C$450)","v":""},null,{"$f":"IF($C$450=\"\",\"\",BB450/$C$450)","v":""},null,0]
[null,null,null,null,{"$f":"IF($C$451=\"\",\"\",F451/$C$451)","v":""},null,{"$f":"IF($C$451=\"\",\"\",H451/$C$451)","v":""},null,{"$f":"IF($C$451=\"\",\"\",J451/$C$451)","v":""},null,{"$f":"IF($C$451=\"\",\"\",L451/$C$451)","v":""},null,{"$f":"IF($C$451=\"\",\"\",N451/$C$451)","v":""},null,{"$f":"IF($C$451=\"\",\"\",P451/$C$451)","v":""},null,{"$f":"IF($C$451=\"\",\"\",R451/$C$451)","v":""},null,{"$f":"IF($C$451=\"\",\"\",T451/$C$451)","v":""},null,{"$f":"IF($C$451=\"\",\"\",V451/$C$451)","v":""},null,{"$f":"IF($C$451=\"\",\"\",X451/$C$451)","v":""},null,{"$f":"IF($C$451=\"\",\"\",Z451/$C$451)","v":""},null,{"$f":"IF($C$451=\"\",\"\",AB451/$C$451)","v":""},null,{"$f":"IF($C$451=\"\",\"\",AD451/$C$451)","v":""},null,{"$f":"IF($C$451=\"\",\"\",AF451/$C$451)","v":""},null,{"$f":"IF($C$451=\"\",\"\",AH451/$C$451)","v":""},null,{"$f":"IF($C$451=\"\",\"\",AJ451/$C$451)","v":""},null,{"$f":"IF($C$451=\"\",\"\",AL451/$C$451)","v":""},null,{"$f":"IF($C$451=\"\",\"\",AN451/$C$451)","v":""},null,{"$f":"IF($C$451=\"\",\"\",AP451/$C$451)","v":""},null,{"$f":"IF($C$451=\"\",\"\",AR451/$C$451)","v":""},null,{"$f":"IF($C$451=\"\",\"\",AT451/$C$451)","v":""},null,{"$f":"IF($C$451=\"\",\"\",AV451/$C$451)","v":""},null,{"$f":"IF($C$451=\"\",\"\",AX451/$C$451)","v":""},null,{"$f":"IF($C$451=\"\",\"\",AZ451/$C$451)","v":""},null,{"$f":"IF($C$451=\"\",\"\",BB451/$C$451)","v":""},null,0]
[null,null,null,null,{"$f":"IF($C$452=\"\",\"\",F452/$C$452)","v":""},null,{"$f":"IF($C$452=\"\",\"\",H452/$C$452)","v":""},null,{"$f":"IF($C$452=\"\",\"\",J452/$C$452)","v":""},null,{"$f":"IF($C$452=\"\",\"\",L452/$C$452)","v":""},null,{"$f":"IF($C$452=\"\",\"\",N452/$C$452)","v":""},null,{"$f":"IF($C$452=\"\",\"\",P452/$C$452)","v":""},null,{"$f":"IF($C$452=\"\",\"\",R452/$C$452)","v":""},null,{"$f":"IF($C$452=\"\",\"\",T452/$C$452)","v":""},null,{"$f":"IF($C$452=\"\",\"\",V452/$C$452)","v":""},null,{"$f":"IF($C$452=\"\",\"\",X452/$C$452)","v":""},null,{"$f":"IF($C$452=\"\",\"\",Z452/$C$452)","v":""},null,{"$f":"IF($C$452=\"\",\"\",AB452/$C$452)","v":""},null,{"$f":"IF($C$452=\"\",\"\",AD452/$C$452)","v":""},null,{"$f":"IF($C$452=\"\",\"\",AF452/$C$452)","v":""},null,{"$f":"IF($C$452=\"\",\"\",AH452/$C$452)","v":""},null,{"$f":"IF($C$452=\"\",\"\",AJ452/$C$452)","v":""},null,{"$f":"IF($C$452=\"\",\"\",AL452/$C$452)","v":""},null,{"$f":"IF($C$452=\"\",\"\",AN452/$C$452)","v":""},null,{"$f":"IF($C$452=\"\",\"\",AP452/$C$452)","v":""},null,{"$f":"IF($C$452=\"\",\"\",AR452/$C$452)","v":""},null,{"$f":"IF($C$452=\"\",\"\",AT452/$C$452)","v":""},null,{"$f":"IF($C$452=\"\",\"\",AV452/$C$452)","v":""},null,{"$f":"IF($C$452=\"\",\"\",AX452/$C$452)","v":""},null,{"$f":"IF($C$452=\"\",\"\",AZ452/$C$452)","v":""},null,{"$f":"IF($C$452=\"\",\"\",BB452/$C$452)","v":""},null,0]
[null,null,null,null,{"$f":"IF($C$453=\"\",\"\",F453/$C$453)","v":""},null,{"$f":"IF($C$453=\"\",\"\",H453/$C$453)","v":""},null,{"$f":"IF($C$453=\"\",\"\",J453/$C$453)","v":""},null,{"$f":"IF($C$453=\"\",\"\",L453/$C$453)","v":""},null,{"$f":"IF($C$453=\"\",\"\",N453/$C$453)","v":""},null,{"$f":"IF($C$453=\"\",\"\",P453/$C$453)","v":""},null,{"$f":"IF($C$453=\"\",\"\",R453/$C$453)","v":""},null,{"$f":"IF($C$453=\"\",\"\",T453/$C$453)","v":""},null,{"$f":"IF($C$453=\"\",\"\",V453/$C$453)","v":""},null,{"$f":"IF($C$453=\"\",\"\",X453/$C$453)","v":""},null,{"$f":"IF($C$453=\"\",\"\",Z453/$C$453)","v":""},null,{"$f":"IF($C$453=\"\",\"\",AB453/$C$453)","v":""},null,{"$f":"IF($C$453=\"\",\"\",AD453/$C$453)","v":""},null,{"$f":"IF($C$453=\"\",\"\",AF453/$C$453)","v":""},null,{"$f":"IF($C$453=\"\",\"\",AH453/$C$453)","v":""},null,{"$f":"IF($C$453=\"\",\"\",AJ453/$C$453)","v":""},null,{"$f":"IF($C$453=\"\",\"\",AL453/$C$453)","v":""},null,{"$f":"IF($C$453=\"\",\"\",AN453/$C$453)","v":""},null,{"$f":"IF($C$453=\"\",\"\",AP453/$C$453)","v":""},null,{"$f":"IF($C$453=\"\",\"\",AR453/$C$453)","v":""},null,{"$f":"IF($C$453=\"\",\"\",AT453/$C$453)","v":""},null,{"$f":"IF($C$453=\"\",\"\",AV453/$C$453)","v":""},null,{"$f":"IF($C$453=\"\",\"\",AX453/$C$453)","v":""},null,{"$f":"IF($C$453=\"\",\"\",AZ453/$C$453)","v":""},null,{"$f":"IF($C$453=\"\",\"\",BB453/$C$453)","v":""},null,0]
[null,null,null,null,{"$f":"IF($C$454=\"\",\"\",F454/$C$454)","v":""},null,{"$f":"IF($C$454=\"\",\"\",H454/$C$454)","v":""},null,{"$f":"IF($C$454=\"\",\"\",J454/$C$454)","v":""},null,{"$f":"IF($C$454=\"\",\"\",L454/$C$454)","v":""},null,{"$f":"IF($C$454=\"\",\"\",N454/$C$454)","v":""},null,{"$f":"IF($C$454=\"\",\"\",P454/$C$454)","v":""},null,{"$f":"IF($C$454=\"\",\"\",R454/$C$454)","v":""},null,{"$f":"IF($C$454=\"\",\"\",T454/$C$454)","v":""},null,{"$f":"IF($C$454=\"\",\"\",V454/$C$454)","v":""},null,{"$f":"IF($C$454=\"\",\"\",X454/$C$454)","v":""},null,{"$f":"IF($C$454=\"\",\"\",Z454/$C$454)","v":""},null,{"$f":"IF($C$454=\"\",\"\",AB454/$C$454)","v":""},null,{"$f":"IF($C$454=\"\",\"\",AD454/$C$454)","v":""},null,{"$f":"IF($C$454=\"\",\"\",AF454/$C$454)","v":""},null,{"$f":"IF($C$454=\"\",\"\",AH454/$C$454)","v":""},null,{"$f":"IF($C$454=\"\",\"\",AJ454/$C$454)","v":""},null,{"$f":"IF($C$454=\"\",\"\",AL454/$C$454)","v":""},null,{"$f":"IF($C$454=\"\",\"\",AN454/$C$454)","v":""},null,{"$f":"IF($C$454=\"\",\"\",AP454/$C$454)","v":""},null,{"$f":"IF($C$454=\"\",\"\",AR454/$C$454)","v":""},null,{"$f":"IF($C$454=\"\",\"\",AT454/$C$454)","v":""},null,{"$f":"IF($C$454=\"\",\"\",AV454/$C$454)","v":""},null,{"$f":"IF($C$454=\"\",\"\",AX454/$C$454)","v":""},null,{"$f":"IF($C$454=\"\",\"\",AZ454/$C$454)","v":""},null,{"$f":"IF($C$454=\"\",\"\",BB454/$C$454)","v":""},null,0]
[null,null,null,null,{"$f":"IF($C$455=\"\",\"\",F455/$C$455)","v":""},null,{"$f":"IF($C$455=\"\",\"\",H455/$C$455)","v":""},null,{"$f":"IF($C$455=\"\",\"\",J455/$C$455)","v":""},null,{"$f":"IF($C$455=\"\",\"\",L455/$C$455)","v":""},null,{"$f":"IF($C$455=\"\",\"\",N455/$C$455)","v":""},null,{"$f":"IF($C$455=\"\",\"\",P455/$C$455)","v":""},null,{"$f":"IF($C$455=\"\",\"\",R455/$C$455)","v":""},null,{"$f":"IF($C$455=\"\",\"\",T455/$C$455)","v":""},null,{"$f":"IF($C$455=\"\",\"\",V455/$C$455)","v":""},null,{"$f":"IF($C$455=\"\",\"\",X455/$C$455)","v":""},null,{"$f":"IF($C$455=\"\",\"\",Z455/$C$455)","v":""},null,{"$f":"IF($C$455=\"\",\"\",AB455/$C$455)","v":""},null,{"$f":"IF($C$455=\"\",\"\",AD455/$C$455)","v":""},null,{"$f":"IF($C$455=\"\",\"\",AF455/$C$455)","v":""},null,{"$f":"IF($C$455=\"\",\"\",AH455/$C$455)","v":""},null,{"$f":"IF($C$455=\"\",\"\",AJ455/$C$455)","v":""},null,{"$f":"IF($C$455=\"\",\"\",AL455/$C$455)","v":""},null,{"$f":"IF($C$455=\"\",\"\",AN455/$C$455)","v":""},null,{"$f":"IF($C$455=\"\",\"\",AP455/$C$455)","v":""},null,{"$f":"IF($C$455=\"\",\"\",AR455/$C$455)","v":""},null,{"$f":"IF($C$455=\"\",\"\",AT455/$C$455)","v":""},null,{"$f":"IF($C$455=\"\",\"\",AV455/$C$455)","v":""},null,{"$f":"IF($C$455=\"\",\"\",AX455/$C$455)","v":""},null,{"$f":"IF($C$455=\"\",\"\",AZ455/$C$455)","v":""},null,{"$f":"IF($C$455=\"\",\"\",BB455/$C$455)","v":""},null,0]
[null,null,null,null,{"$f":"IF($C$456=\"\",\"\",F456/$C$456)","v":""},null,{"$f":"IF($C$456=\"\",\"\",H456/$C$456)","v":""},null,{"$f":"IF($C$456=\"\",\"\",J456/$C$456)","v":""},null,{"$f":"IF($C$456=\"\",\"\",L456/$C$456)","v":""},null,{"$f":"IF($C$456=\"\",\"\",N456/$C$456)","v":""},null,{"$f":"IF($C$456=\"\",\"\",P456/$C$456)","v":""},null,{"$f":"IF($C$456=\"\",\"\",R456/$C$456)","v":""},null,{"$f":"IF($C$456=\"\",\"\",T456/$C$456)","v":""},null,{"$f":"IF($C$456=\"\",\"\",V456/$C$456)","v":""},null,{"$f":"IF($C$456=\"\",\"\",X456/$C$456)","v":""},null,{"$f":"IF($C$456=\"\",\"\",Z456/$C$456)","v":""},null,{"$f":"IF($C$456=\"\",\"\",AB456/$C$456)","v":""},null,{"$f":"IF($C$456=\"\",\"\",AD456/$C$456)","v":""},null,{"$f":"IF($C$456=\"\",\"\",AF456/$C$456)","v":""},null,{"$f":"IF($C$456=\"\",\"\",AH456/$C$456)","v":""},null,{"$f":"IF($C$456=\"\",\"\",AJ456/$C$456)","v":""},null,{"$f":"IF($C$456=\"\",\"\",AL456/$C$456)","v":""},null,{"$f":"IF($C$456=\"\",\"\",AN456/$C$456)","v":""},null,{"$f":"IF($C$456=\"\",\"\",AP456/$C$456)","v":""},null,{"$f":"IF($C$456=\"\",\"\",AR456/$C$456)","v":""},null,{"$f":"IF($C$456=\"\",\"\",AT456/$C$456)","v":""},null,{"$f":"IF($C$456=\"\",\"\",AV456/$C$456)","v":""},null,{"$f":"IF($C$456=\"\",\"\",AX456/$C$456)","v":""},null,{"$f":"IF($C$456=\"\",\"\",AZ456/$C$456)","v":""},null,{"$f":"IF($C$456=\"\",\"\",BB456/$C$456)","v":""},null,0]
[null,null,null,null,{"$f":"IF($C$457=\"\",\"\",F457/$C$457)","v":""},null,{"$f":"IF($C$457=\"\",\"\",H457/$C$457)","v":""},null,{"$f":"IF($C$457=\"\",\"\",J457/$C$457)","v":""},null,{"$f":"IF($C$457=\"\",\"\",L457/$C$457)","v":""},null,{"$f":"IF($C$457=\"\",\"\",N457/$C$457)","v":""},null,{"$f":"IF($C$457=\"\",\"\",P457/$C$457)","v":""},null,{"$f":"IF($C$457=\"\",\"\",R457/$C$457)","v":""},null,{"$f":"IF($C$457=\"\",\"\",T457/$C$457)","v":""},null,{"$f":"IF($C$457=\"\",\"\",V457/$C$457)","v":""},null,{"$f":"IF($C$457=\"\",\"\",X457/$C$457)","v":""},null,{"$f":"IF($C$457=\"\",\"\",Z457/$C$457)","v":""},null,{"$f":"IF($C$457=\"\",\"\",AB457/$C$457)","v":""},null,{"$f":"IF($C$457=\"\",\"\",AD457/$C$457)","v":""},null,{"$f":"IF($C$457=\"\",\"\",AF457/$C$457)","v":""},null,{"$f":"IF($C$457=\"\",\"\",AH457/$C$457)","v":""},null,{"$f":"IF($C$457=\"\",\"\",AJ457/$C$457)","v":""},null,{"$f":"IF($C$457=\"\",\"\",AL457/$C$457)","v":""},null,{"$f":"IF($C$457=\"\",\"\",AN457/$C$457)","v":""},null,{"$f":"IF($C$457=\"\",\"\",AP457/$C$457)","v":""},null,{"$f":"IF($C$457=\"\",\"\",AR457/$C$457)","v":""},null,{"$f":"IF($C$457=\"\",\"\",AT457/$C$457)","v":""},null,{"$f":"IF($C$457=\"\",\"\",AV457/$C$457)","v":""},null,{"$f":"IF($C$457=\"\",\"\",AX457/$C$457)","v":""},null,{"$f":"IF($C$457=\"\",\"\",AZ457/$C$457)","v":""},null,{"$f":"IF($C$457=\"\",\"\",BB457/$C$457)","v":""},null,0]
[null,null,null,null,{"$f":"IF($C$458=\"\",\"\",F458/$C$458)","v":""},null,{"$f":"IF($C$458=\"\",\"\",H458/$C$458)","v":""},null,{"$f":"IF($C$458=\"\",\"\",J458/$C$458)","v":""},null,{"$f":"IF($C$458=\"\",\"\",L458/$C$458)","v":""},null,{"$f":"IF($C$458=\"\",\"\",N458/$C$458)","v":""},null,{"$f":"IF($C$458=\"\",\"\",P458/$C$458)","v":""},null,{"$f":"IF($C$458=\"\",\"\",R458/$C$458)","v":""},null,{"$f":"IF($C$458=\"\",\"\",T458/$C$458)","v":""},null,{"$f":"IF($C$458=\"\",\"\",V458/$C$458)","v":""},null,{"$f":"IF($C$458=\"\",\"\",X458/$C$458)","v":""},null,{"$f":"IF($C$458=\"\",\"\",Z458/$C$458)","v":""},null,{"$f":"IF($C$458=\"\",\"\",AB458/$C$458)","v":""},null,{"$f":"IF($C$458=\"\",\"\",AD458/$C$458)","v":""},null,{"$f":"IF($C$458=\"\",\"\",AF458/$C$458)","v":""},null,{"$f":"IF($C$458=\"\",\"\",AH458/$C$458)","v":""},null,{"$f":"IF($C$458=\"\",\"\",AJ458/$C$458)","v":""},null,{"$f":"IF($C$458=\"\",\"\",AL458/$C$458)","v":""},null,{"$f":"IF($C$458=\"\",\"\",AN458/$C$458)","v":""},null,{"$f":"IF($C$458=\"\",\"\",AP458/$C$458)","v":""},null,{"$f":"IF($C$458=\"\",\"\",AR458/$C$458)","v":""},null,{"$f":"IF($C$458=\"\",\"\",AT458/$C$458)","v":""},null,{"$f":"IF($C$458=\"\",\"\",AV458/$C$458)","v":""},null,{"$f":"IF($C$458=\"\",\"\",AX458/$C$458)","v":""},null,{"$f":"IF($C$458=\"\",\"\",AZ458/$C$458)","v":""},null,{"$f":"IF($C$458=\"\",\"\",BB458/$C$458)","v":""},null,0]
[null,null,null,null,{"$f":"IF($C$459=\"\",\"\",F459/$C$459)","v":""},null,{"$f":"IF($C$459=\"\",\"\",H459/$C$459)","v":""},null,{"$f":"IF($C$459=\"\",\"\",J459/$C$459)","v":""},null,{"$f":"IF($C$459=\"\",\"\",L459/$C$459)","v":""},null,{"$f":"IF($C$459=\"\",\"\",N459/$C$459)","v":""},null,{"$f":"IF($C$459=\"\",\"\",P459/$C$459)","v":""},null,{"$f":"IF($C$459=\"\",\"\",R459/$C$459)","v":""},null,{"$f":"IF($C$459=\"\",\"\",T459/$C$459)","v":""},null,{"$f":"IF($C$459=\"\",\"\",V459/$C$459)","v":""},null,{"$f":"IF($C$459=\"\",\"\",X459/$C$459)","v":""},null,{"$f":"IF($C$459=\"\",\"\",Z459/$C$459)","v":""},null,{"$f":"IF($C$459=\"\",\"\",AB459/$C$459)","v":""},null,{"$f":"IF($C$459=\"\",\"\",AD459/$C$459)","v":""},null,{"$f":"IF($C$459=\"\",\"\",AF459/$C$459)","v":""},null,{"$f":"IF($C$459=\"\",\"\",AH459/$C$459)","v":""},null,{"$f":"IF($C$459=\"\",\"\",AJ459/$C$459)","v":""},null,{"$f":"IF($C$459=\"\",\"\",AL459/$C$459)","v":""},null,{"$f":"IF($C$459=\"\",\"\",AN459/$C$459)","v":""},null,{"$f":"IF($C$459=\"\",\"\",AP459/$C$459)","v":""},null,{"$f":"IF($C$459=\"\",\"\",AR459/$C$459)","v":""},null,{"$f":"IF($C$459=\"\",\"\",AT459/$C$459)","v":""},null,{"$f":"IF($C$459=\"\",\"\",AV459/$C$459)","v":""},null,{"$f":"IF($C$459=\"\",\"\",AX459/$C$459)","v":""},null,{"$f":"IF($C$459=\"\",\"\",AZ459/$C$459)","v":""},null,{"$f":"IF($C$459=\"\",\"\",BB459/$C$459)","v":""},null,0]
[null,null,null,null,{"$f":"IF($C$460=\"\",\"\",F460/$C$460)","v":""},null,{"$f":"IF($C$460=\"\",\"\",H460/$C$460)","v":""},null,{"$f":"IF($C$460=\"\",\"\",J460/$C$460)","v":""},null,{"$f":"IF($C$460=\"\",\"\",L460/$C$460)","v":""},null,{"$f":"IF($C$460=\"\",\"\",N460/$C$460)","v":""},null,{"$f":"IF($C$460=\"\",\"\",P460/$C$460)","v":""},null,{"$f":"IF($C$460=\"\",\"\",R460/$C$460)","v":""},null,{"$f":"IF($C$460=\"\",\"\",T460/$C$460)","v":""},null,{"$f":"IF($C$460=\"\",\"\",V460/$C$460)","v":""},null,{"$f":"IF($C$460=\"\",\"\",X460/$C$460)","v":""},null,{"$f":"IF($C$460=\"\",\"\",Z460/$C$460)","v":""},null,{"$f":"IF($C$460=\"\",\"\",AB460/$C$460)","v":""},null,{"$f":"IF($C$460=\"\",\"\",AD460/$C$460)","v":""},null,{"$f":"IF($C$460=\"\",\"\",AF460/$C$460)","v":""},null,{"$f":"IF($C$460=\"\",\"\",AH460/$C$460)","v":""},null,{"$f":"IF($C$460=\"\",\"\",AJ460/$C$460)","v":""},null,{"$f":"IF($C$460=\"\",\"\",AL460/$C$460)","v":""},null,{"$f":"IF($C$460=\"\",\"\",AN460/$C$460)","v":""},null,{"$f":"IF($C$460=\"\",\"\",AP460/$C$460)","v":""},null,{"$f":"IF($C$460=\"\",\"\",AR460/$C$460)","v":""},null,{"$f":"IF($C$460=\"\",\"\",AT460/$C$460)","v":""},null,{"$f":"IF($C$460=\"\",\"\",AV460/$C$460)","v":""},null,{"$f":"IF($C$460=\"\",\"\",AX460/$C$460)","v":""},null,{"$f":"IF($C$460=\"\",\"\",AZ460/$C$460)","v":""},null,{"$f":"IF($C$460=\"\",\"\",BB460/$C$460)","v":""},null,0]
[null,null,null,null,{"$f":"IF($C$461=\"\",\"\",F461/$C$461)","v":""},null,{"$f":"IF($C$461=\"\",\"\",H461/$C$461)","v":""},null,{"$f":"IF($C$461=\"\",\"\",J461/$C$461)","v":""},null,{"$f":"IF($C$461=\"\",\"\",L461/$C$461)","v":""},null,{"$f":"IF($C$461=\"\",\"\",N461/$C$461)","v":""},null,{"$f":"IF($C$461=\"\",\"\",P461/$C$461)","v":""},null,{"$f":"IF($C$461=\"\",\"\",R461/$C$461)","v":""},null,{"$f":"IF($C$461=\"\",\"\",T461/$C$461)","v":""},null,{"$f":"IF($C$461=\"\",\"\",V461/$C$461)","v":""},null,{"$f":"IF($C$461=\"\",\"\",X461/$C$461)","v":""},null,{"$f":"IF($C$461=\"\",\"\",Z461/$C$461)","v":""},null,{"$f":"IF($C$461=\"\",\"\",AB461/$C$461)","v":""},null,{"$f":"IF($C$461=\"\",\"\",AD461/$C$461)","v":""},null,{"$f":"IF($C$461=\"\",\"\",AF461/$C$461)","v":""},null,{"$f":"IF($C$461=\"\",\"\",AH461/$C$461)","v":""},null,{"$f":"IF($C$461=\"\",\"\",AJ461/$C$461)","v":""},null,{"$f":"IF($C$461=\"\",\"\",AL461/$C$461)","v":""},null,{"$f":"IF($C$461=\"\",\"\",AN461/$C$461)","v":""},null,{"$f":"IF($C$461=\"\",\"\",AP461/$C$461)","v":""},null,{"$f":"IF($C$461=\"\",\"\",AR461/$C$461)","v":""},null,{"$f":"IF($C$461=\"\",\"\",AT461/$C$461)","v":""},null,{"$f":"IF($C$461=\"\",\"\",AV461/$C$461)","v":""},null,{"$f":"IF($C$461=\"\",\"\",AX461/$C$461)","v":""},null,{"$f":"IF($C$461=\"\",\"\",AZ461/$C$461)","v":""},null,{"$f":"IF($C$461=\"\",\"\",BB461/$C$461)","v":""},null,0]
[null,null,null,null,{"$f":"IF($C$462=\"\",\"\",F462/$C$462)","v":""},null,{"$f":"IF($C$462=\"\",\"\",H462/$C$462)","v":""},null,{"$f":"IF($C$462=\"\",\"\",J462/$C$462)","v":""},null,{"$f":"IF($C$462=\"\",\"\",L462/$C$462)","v":""},null,{"$f":"IF($C$462=\"\",\"\",N462/$C$462)","v":""},null,{"$f":"IF($C$462=\"\",\"\",P462/$C$462)","v":""},null,{"$f":"IF($C$462=\"\",\"\",R462/$C$462)","v":""},null,{"$f":"IF($C$462=\"\",\"\",T462/$C$462)","v":""},null,{"$f":"IF($C$462=\"\",\"\",V462/$C$462)","v":""},null,{"$f":"IF($C$462=\"\",\"\",X462/$C$462)","v":""},null,{"$f":"IF($C$462=\"\",\"\",Z462/$C$462)","v":""},null,{"$f":"IF($C$462=\"\",\"\",AB462/$C$462)","v":""},null,{"$f":"IF($C$462=\"\",\"\",AD462/$C$462)","v":""},null,{"$f":"IF($C$462=\"\",\"\",AF462/$C$462)","v":""},null,{"$f":"IF($C$462=\"\",\"\",AH462/$C$462)","v":""},null,{"$f":"IF($C$462=\"\",\"\",AJ462/$C$462)","v":""},null,{"$f":"IF($C$462=\"\",\"\",AL462/$C$462)","v":""},null,{"$f":"IF($C$462=\"\",\"\",AN462/$C$462)","v":""},null,{"$f":"IF($C$462=\"\",\"\",AP462/$C$462)","v":""},null,{"$f":"IF($C$462=\"\",\"\",AR462/$C$462)","v":""},null,{"$f":"IF($C$462=\"\",\"\",AT462/$C$462)","v":""},null,{"$f":"IF($C$462=\"\",\"\",AV462/$C$462)","v":""},null,{"$f":"IF($C$462=\"\",\"\",AX462/$C$462)","v":""},null,{"$f":"IF($C$462=\"\",\"\",AZ462/$C$462)","v":""},null,{"$f":"IF($C$462=\"\",\"\",BB462/$C$462)","v":""},null,0]
[null,null,null,null,{"$f":"IF($C$463=\"\",\"\",F463/$C$463)","v":""},null,{"$f":"IF($C$463=\"\",\"\",H463/$C$463)","v":""},null,{"$f":"IF($C$463=\"\",\"\",J463/$C$463)","v":""},null,{"$f":"IF($C$463=\"\",\"\",L463/$C$463)","v":""},null,{"$f":"IF($C$463=\"\",\"\",N463/$C$463)","v":""},null,{"$f":"IF($C$463=\"\",\"\",P463/$C$463)","v":""},null,{"$f":"IF($C$463=\"\",\"\",R463/$C$463)","v":""},null,{"$f":"IF($C$463=\"\",\"\",T463/$C$463)","v":""},null,{"$f":"IF($C$463=\"\",\"\",V463/$C$463)","v":""},null,{"$f":"IF($C$463=\"\",\"\",X463/$C$463)","v":""},null,{"$f":"IF($C$463=\"\",\"\",Z463/$C$463)","v":""},null,{"$f":"IF($C$463=\"\",\"\",AB463/$C$463)","v":""},null,{"$f":"IF($C$463=\"\",\"\",AD463/$C$463)","v":""},null,{"$f":"IF($C$463=\"\",\"\",AF463/$C$463)","v":""},null,{"$f":"IF($C$463=\"\",\"\",AH463/$C$463)","v":""},null,{"$f":"IF($C$463=\"\",\"\",AJ463/$C$463)","v":""},null,{"$f":"IF($C$463=\"\",\"\",AL463/$C$463)","v":""},null,{"$f":"IF($C$463=\"\",\"\",AN463/$C$463)","v":""},null,{"$f":"IF($C$463=\"\",\"\",AP463/$C$463)","v":""},null,{"$f":"IF($C$463=\"\",\"\",AR463/$C$463)","v":""},null,{"$f":"IF($C$463=\"\",\"\",AT463/$C$463)","v":""},null,{"$f":"IF($C$463=\"\",\"\",AV463/$C$463)","v":""},null,{"$f":"IF($C$463=\"\",\"\",AX463/$C$463)","v":""},null,{"$f":"IF($C$463=\"\",\"\",AZ463/$C$463)","v":""},null,{"$f":"IF($C$463=\"\",\"\",BB463/$C$463)","v":""},null,0]
[null,null,null,null,{"$f":"IF($C$464=\"\",\"\",F464/$C$464)","v":""},null,{"$f":"IF($C$464=\"\",\"\",H464/$C$464)","v":""},null,{"$f":"IF($C$464=\"\",\"\",J464/$C$464)","v":""},null,{"$f":"IF($C$464=\"\",\"\",L464/$C$464)","v":""},null,{"$f":"IF($C$464=\"\",\"\",N464/$C$464)","v":""},null,{"$f":"IF($C$464=\"\",\"\",P464/$C$464)","v":""},null,{"$f":"IF($C$464=\"\",\"\",R464/$C$464)","v":""},null,{"$f":"IF($C$464=\"\",\"\",T464/$C$464)","v":""},null,{"$f":"IF($C$464=\"\",\"\",V464/$C$464)","v":""},null,{"$f":"IF($C$464=\"\",\"\",X464/$C$464)","v":""},null,{"$f":"IF($C$464=\"\",\"\",Z464/$C$464)","v":""},null,{"$f":"IF($C$464=\"\",\"\",AB464/$C$464)","v":""},null,{"$f":"IF($C$464=\"\",\"\",AD464/$C$464)","v":""},null,{"$f":"IF($C$464=\"\",\"\",AF464/$C$464)","v":""},null,{"$f":"IF($C$464=\"\",\"\",AH464/$C$464)","v":""},null,{"$f":"IF($C$464=\"\",\"\",AJ464/$C$464)","v":""},null,{"$f":"IF($C$464=\"\",\"\",AL464/$C$464)","v":""},null,{"$f":"IF($C$464=\"\",\"\",AN464/$C$464)","v":""},null,{"$f":"IF($C$464=\"\",\"\",AP464/$C$464)","v":""},null,{"$f":"IF($C$464=\"\",\"\",AR464/$C$464)","v":""},null,{"$f":"IF($C$464=\"\",\"\",AT464/$C$464)","v":""},null,{"$f":"IF($C$464=\"\",\"\",AV464/$C$464)","v":""},null,{"$f":"IF($C$464=\"\",\"\",AX464/$C$464)","v":""},null,{"$f":"IF($C$464=\"\",\"\",AZ464/$C$464)","v":""},null,{"$f":"IF($C$464=\"\",\"\",BB464/$C$464)","v":""},null,0]
[null,null,null,null,{"$f":"IF($C$465=\"\",\"\",F465/$C$465)","v":""},null,{"$f":"IF($C$465=\"\",\"\",H465/$C$465)","v":""},null,{"$f":"IF($C$465=\"\",\"\",J465/$C$465)","v":""},null,{"$f":"IF($C$465=\"\",\"\",L465/$C$465)","v":""},null,{"$f":"IF($C$465=\"\",\"\",N465/$C$465)","v":""},null,{"$f":"IF($C$465=\"\",\"\",P465/$C$465)","v":""},null,{"$f":"IF($C$465=\"\",\"\",R465/$C$465)","v":""},null,{"$f":"IF($C$465=\"\",\"\",T465/$C$465)","v":""},null,{"$f":"IF($C$465=\"\",\"\",V465/$C$465)","v":""},null,{"$f":"IF($C$465=\"\",\"\",X465/$C$465)","v":""},null,{"$f":"IF($C$465=\"\",\"\",Z465/$C$465)","v":""},null,{"$f":"IF($C$465=\"\",\"\",AB465/$C$465)","v":""},null,{"$f":"IF($C$465=\"\",\"\",AD465/$C$465)","v":""},null,{"$f":"IF($C$465=\"\",\"\",AF465/$C$465)","v":""},null,{"$f":"IF($C$465=\"\",\"\",AH465/$C$465)","v":""},null,{"$f":"IF($C$465=\"\",\"\",AJ465/$C$465)","v":""},null,{"$f":"IF($C$465=\"\",\"\",AL465/$C$465)","v":""},null,{"$f":"IF($C$465=\"\",\"\",AN465/$C$465)","v":""},null,{"$f":"IF($C$465=\"\",\"\",AP465/$C$465)","v":""},null,{"$f":"IF($C$465=\"\",\"\",AR465/$C$465)","v":""},null,{"$f":"IF($C$465=\"\",\"\",AT465/$C$465)","v":""},null,{"$f":"IF($C$465=\"\",\"\",AV465/$C$465)","v":""},null,{"$f":"IF($C$465=\"\",\"\",AX465/$C$465)","v":""},null,{"$f":"IF($C$465=\"\",\"\",AZ465/$C$465)","v":""},null,{"$f":"IF($C$465=\"\",\"\",BB465/$C$465)","v":""},null,0]
[null,null,null,null,{"$f":"IF($C$466=\"\",\"\",F466/$C$466)","v":""},null,{"$f":"IF($C$466=\"\",\"\",H466/$C$466)","v":""},null,{"$f":"IF($C$466=\"\",\"\",J466/$C$466)","v":""},null,{"$f":"IF($C$466=\"\",\"\",L466/$C$466)","v":""},null,{"$f":"IF($C$466=\"\",\"\",N466/$C$466)","v":""},null,{"$f":"IF($C$466=\"\",\"\",P466/$C$466)","v":""},null,{"$f":"IF($C$466=\"\",\"\",R466/$C$466)","v":""},null,{"$f":"IF($C$466=\"\",\"\",T466/$C$466)","v":""},null,{"$f":"IF($C$466=\"\",\"\",V466/$C$466)","v":""},null,{"$f":"IF($C$466=\"\",\"\",X466/$C$466)","v":""},null,{"$f":"IF($C$466=\"\",\"\",Z466/$C$466)","v":""},null,{"$f":"IF($C$466=\"\",\"\",AB466/$C$466)","v":""},null,{"$f":"IF($C$466=\"\",\"\",AD466/$C$466)","v":""},null,{"$f":"IF($C$466=\"\",\"\",AF466/$C$466)","v":""},null,{"$f":"IF($C$466=\"\",\"\",AH466/$C$466)","v":""},null,{"$f":"IF($C$466=\"\",\"\",AJ466/$C$466)","v":""},null,{"$f":"IF($C$466=\"\",\"\",AL466/$C$466)","v":""},null,{"$f":"IF($C$466=\"\",\"\",AN466/$C$466)","v":""},null,{"$f":"IF($C$466=\"\",\"\",AP466/$C$466)","v":""},null,{"$f":"IF($C$466=\"\",\"\",AR466/$C$466)","v":""},null,{"$f":"IF($C$466=\"\",\"\",AT466/$C$466)","v":""},null,{"$f":"IF($C$466=\"\",\"\",AV466/$C$466)","v":""},null,{"$f":"IF($C$466=\"\",\"\",AX466/$C$466)","v":""},null,{"$f":"IF($C$466=\"\",\"\",AZ466/$C$466)","v":""},null,{"$f":"IF($C$466=\"\",\"\",BB466/$C$466)","v":""},null,0]
[null,null,null,null,{"$f":"IF($C$467=\"\",\"\",F467/$C$467)","v":""},null,{"$f":"IF($C$467=\"\",\"\",H467/$C$467)","v":""},null,{"$f":"IF($C$467=\"\",\"\",J467/$C$467)","v":""},null,{"$f":"IF($C$467=\"\",\"\",L467/$C$467)","v":""},null,{"$f":"IF($C$467=\"\",\"\",N467/$C$467)","v":""},null,{"$f":"IF($C$467=\"\",\"\",P467/$C$467)","v":""},null,{"$f":"IF($C$467=\"\",\"\",R467/$C$467)","v":""},null,{"$f":"IF($C$467=\"\",\"\",T467/$C$467)","v":""},null,{"$f":"IF($C$467=\"\",\"\",V467/$C$467)","v":""},null,{"$f":"IF($C$467=\"\",\"\",X467/$C$467)","v":""},null,{"$f":"IF($C$467=\"\",\"\",Z467/$C$467)","v":""},null,{"$f":"IF($C$467=\"\",\"\",AB467/$C$467)","v":""},null,{"$f":"IF($C$467=\"\",\"\",AD467/$C$467)","v":""},null,{"$f":"IF($C$467=\"\",\"\",AF467/$C$467)","v":""},null,{"$f":"IF($C$467=\"\",\"\",AH467/$C$467)","v":""},null,{"$f":"IF($C$467=\"\",\"\",AJ467/$C$467)","v":""},null,{"$f":"IF($C$467=\"\",\"\",AL467/$C$467)","v":""},null,{"$f":"IF($C$467=\"\",\"\",AN467/$C$467)","v":""},null,{"$f":"IF($C$467=\"\",\"\",AP467/$C$467)","v":""},null,{"$f":"IF($C$467=\"\",\"\",AR467/$C$467)","v":""},null,{"$f":"IF($C$467=\"\",\"\",AT467/$C$467)","v":""},null,{"$f":"IF($C$467=\"\",\"\",AV467/$C$467)","v":""},null,{"$f":"IF($C$467=\"\",\"\",AX467/$C$467)","v":""},null,{"$f":"IF($C$467=\"\",\"\",AZ467/$C$467)","v":""},null,{"$f":"IF($C$467=\"\",\"\",BB467/$C$467)","v":""},null,0]
[null,null,null,null,{"$f":"IF($C$468=\"\",\"\",F468/$C$468)","v":""},null,{"$f":"IF($C$468=\"\",\"\",H468/$C$468)","v":""},null,{"$f":"IF($C$468=\"\",\"\",J468/$C$468)","v":""},null,{"$f":"IF($C$468=\"\",\"\",L468/$C$468)","v":""},null,{"$f":"IF($C$468=\"\",\"\",N468/$C$468)","v":""},null,{"$f":"IF($C$468=\"\",\"\",P468/$C$468)","v":""},null,{"$f":"IF($C$468=\"\",\"\",R468/$C$468)","v":""},null,{"$f":"IF($C$468=\"\",\"\",T468/$C$468)","v":""},null,{"$f":"IF($C$468=\"\",\"\",V468/$C$468)","v":""},null,{"$f":"IF($C$468=\"\",\"\",X468/$C$468)","v":""},null,{"$f":"IF($C$468=\"\",\"\",Z468/$C$468)","v":""},null,{"$f":"IF($C$468=\"\",\"\",AB468/$C$468)","v":""},null,{"$f":"IF($C$468=\"\",\"\",AD468/$C$468)","v":""},null,{"$f":"IF($C$468=\"\",\"\",AF468/$C$468)","v":""},null,{"$f":"IF($C$468=\"\",\"\",AH468/$C$468)","v":""},null,{"$f":"IF($C$468=\"\",\"\",AJ468/$C$468)","v":""},null,{"$f":"IF($C$468=\"\",\"\",AL468/$C$468)","v":""},null,{"$f":"IF($C$468=\"\",\"\",AN468/$C$468)","v":""},null,{"$f":"IF($C$468=\"\",\"\",AP468/$C$468)","v":""},null,{"$f":"IF($C$468=\"\",\"\",AR468/$C$468)","v":""},null,{"$f":"IF($C$468=\"\",\"\",AT468/$C$468)","v":""},null,{"$f":"IF($C$468=\"\",\"\",AV468/$C$468)","v":""},null,{"$f":"IF($C$468=\"\",\"\",AX468/$C$468)","v":""},null,{"$f":"IF($C$468=\"\",\"\",AZ468/$C$468)","v":""},null,{"$f":"IF($C$468=\"\",\"\",BB468/$C$468)","v":""},null,0]
[null,null,null,null,{"$f":"IF($C$469=\"\",\"\",F469/$C$469)","v":""},null,{"$f":"IF($C$469=\"\",\"\",H469/$C$469)","v":""},null,{"$f":"IF($C$469=\"\",\"\",J469/$C$469)","v":""},null,{"$f":"IF($C$469=\"\",\"\",L469/$C$469)","v":""},null,{"$f":"IF($C$469=\"\",\"\",N469/$C$469)","v":""},null,{"$f":"IF($C$469=\"\",\"\",P469/$C$469)","v":""},null,{"$f":"IF($C$469=\"\",\"\",R469/$C$469)","v":""},null,{"$f":"IF($C$469=\"\",\"\",T469/$C$469)","v":""},null,{"$f":"IF($C$469=\"\",\"\",V469/$C$469)","v":""},null,{"$f":"IF($C$469=\"\",\"\",X469/$C$469)","v":""},null,{"$f":"IF($C$469=\"\",\"\",Z469/$C$469)","v":""},null,{"$f":"IF($C$469=\"\",\"\",AB469/$C$469)","v":""},null,{"$f":"IF($C$469=\"\",\"\",AD469/$C$469)","v":""},null,{"$f":"IF($C$469=\"\",\"\",AF469/$C$469)","v":""},null,{"$f":"IF($C$469=\"\",\"\",AH469/$C$469)","v":""},null,{"$f":"IF($C$469=\"\",\"\",AJ469/$C$469)","v":""},null,{"$f":"IF($C$469=\"\",\"\",AL469/$C$469)","v":""},null,{"$f":"IF($C$469=\"\",\"\",AN469/$C$469)","v":""},null,{"$f":"IF($C$469=\"\",\"\",AP469/$C$469)","v":""},null,{"$f":"IF($C$469=\"\",\"\",AR469/$C$469)","v":""},null,{"$f":"IF($C$469=\"\",\"\",AT469/$C$469)","v":""},null,{"$f":"IF($C$469=\"\",\"\",AV469/$C$469)","v":""},null,{"$f":"IF($C$469=\"\",\"\",AX469/$C$469)","v":""},null,{"$f":"IF($C$469=\"\",\"\",AZ469/$C$469)","v":""},null,{"$f":"IF($C$469=\"\",\"\",BB469/$C$469)","v":""},null,0]
[null,null,null,null,{"$f":"IF($C$470=\"\",\"\",F470/$C$470)","v":""},null,{"$f":"IF($C$470=\"\",\"\",H470/$C$470)","v":""},null,{"$f":"IF($C$470=\"\",\"\",J470/$C$470)","v":""},null,{"$f":"IF($C$470=\"\",\"\",L470/$C$470)","v":""},null,{"$f":"IF($C$470=\"\",\"\",N470/$C$470)","v":""},null,{"$f":"IF($C$470=\"\",\"\",P470/$C$470)","v":""},null,{"$f":"IF($C$470=\"\",\"\",R470/$C$470)","v":""},null,{"$f":"IF($C$470=\"\",\"\",T470/$C$470)","v":""},null,{"$f":"IF($C$470=\"\",\"\",V470/$C$470)","v":""},null,{"$f":"IF($C$470=\"\",\"\",X470/$C$470)","v":""},null,{"$f":"IF($C$470=\"\",\"\",Z470/$C$470)","v":""},null,{"$f":"IF($C$470=\"\",\"\",AB470/$C$470)","v":""},null,{"$f":"IF($C$470=\"\",\"\",AD470/$C$470)","v":""},null,{"$f":"IF($C$470=\"\",\"\",AF470/$C$470)","v":""},null,{"$f":"IF($C$470=\"\",\"\",AH470/$C$470)","v":""},null,{"$f":"IF($C$470=\"\",\"\",AJ470/$C$470)","v":""},null,{"$f":"IF($C$470=\"\",\"\",AL470/$C$470)","v":""},null,{"$f":"IF($C$470=\"\",\"\",AN470/$C$470)","v":""},null,{"$f":"IF($C$470=\"\",\"\",AP470/$C$470)","v":""},null,{"$f":"IF($C$470=\"\",\"\",AR470/$C$470)","v":""},null,{"$f":"IF($C$470=\"\",\"\",AT470/$C$470)","v":""},null,{"$f":"IF($C$470=\"\",\"\",AV470/$C$470)","v":""},null,{"$f":"IF($C$470=\"\",\"\",AX470/$C$470)","v":""},null,{"$f":"IF($C$470=\"\",\"\",AZ470/$C$470)","v":""},null,{"$f":"IF($C$470=\"\",\"\",BB470/$C$470)","v":""},null,0]
[null,null,null,null,{"$f":"IF($C$471=\"\",\"\",F471/$C$471)","v":""},null,{"$f":"IF($C$471=\"\",\"\",H471/$C$471)","v":""},null,{"$f":"IF($C$471=\"\",\"\",J471/$C$471)","v":""},null,{"$f":"IF($C$471=\"\",\"\",L471/$C$471)","v":""},null,{"$f":"IF($C$471=\"\",\"\",N471/$C$471)","v":""},null,{"$f":"IF($C$471=\"\",\"\",P471/$C$471)","v":""},null,{"$f":"IF($C$471=\"\",\"\",R471/$C$471)","v":""},null,{"$f":"IF($C$471=\"\",\"\",T471/$C$471)","v":""},null,{"$f":"IF($C$471=\"\",\"\",V471/$C$471)","v":""},null,{"$f":"IF($C$471=\"\",\"\",X471/$C$471)","v":""},null,{"$f":"IF($C$471=\"\",\"\",Z471/$C$471)","v":""},null,{"$f":"IF($C$471=\"\",\"\",AB471/$C$471)","v":""},null,{"$f":"IF($C$471=\"\",\"\",AD471/$C$471)","v":""},null,{"$f":"IF($C$471=\"\",\"\",AF471/$C$471)","v":""},null,{"$f":"IF($C$471=\"\",\"\",AH471/$C$471)","v":""},null,{"$f":"IF($C$471=\"\",\"\",AJ471/$C$471)","v":""},null,{"$f":"IF($C$471=\"\",\"\",AL471/$C$471)","v":""},null,{"$f":"IF($C$471=\"\",\"\",AN471/$C$471)","v":""},null,{"$f":"IF($C$471=\"\",\"\",AP471/$C$471)","v":""},null,{"$f":"IF($C$471=\"\",\"\",AR471/$C$471)","v":""},null,{"$f":"IF($C$471=\"\",\"\",AT471/$C$471)","v":""},null,{"$f":"IF($C$471=\"\",\"\",AV471/$C$471)","v":""},null,{"$f":"IF($C$471=\"\",\"\",AX471/$C$471)","v":""},null,{"$f":"IF($C$471=\"\",\"\",AZ471/$C$471)","v":""},null,{"$f":"IF($C$471=\"\",\"\",BB471/$C$471)","v":""},null,0]
[null,null,null,null,{"$f":"IF($C$472=\"\",\"\",F472/$C$472)","v":""},null,{"$f":"IF($C$472=\"\",\"\",H472/$C$472)","v":""},null,{"$f":"IF($C$472=\"\",\"\",J472/$C$472)","v":""},null,{"$f":"IF($C$472=\"\",\"\",L472/$C$472)","v":""},null,{"$f":"IF($C$472=\"\",\"\",N472/$C$472)","v":""},null,{"$f":"IF($C$472=\"\",\"\",P472/$C$472)","v":""},null,{"$f":"IF($C$472=\"\",\"\",R472/$C$472)","v":""},null,{"$f":"IF($C$472=\"\",\"\",T472/$C$472)","v":""},null,{"$f":"IF($C$472=\"\",\"\",V472/$C$472)","v":""},null,{"$f":"IF($C$472=\"\",\"\",X472/$C$472)","v":""},null,{"$f":"IF($C$472=\"\",\"\",Z472/$C$472)","v":""},null,{"$f":"IF($C$472=\"\",\"\",AB472/$C$472)","v":""},null,{"$f":"IF($C$472=\"\",\"\",AD472/$C$472)","v":""},null,{"$f":"IF($C$472=\"\",\"\",AF472/$C$472)","v":""},null,{"$f":"IF($C$472=\"\",\"\",AH472/$C$472)","v":""},null,{"$f":"IF($C$472=\"\",\"\",AJ472/$C$472)","v":""},null,{"$f":"IF($C$472=\"\",\"\",AL472/$C$472)","v":""},null,{"$f":"IF($C$472=\"\",\"\",AN472/$C$472)","v":""},null,{"$f":"IF($C$472=\"\",\"\",AP472/$C$472)","v":""},null,{"$f":"IF($C$472=\"\",\"\",AR472/$C$472)","v":""},null,{"$f":"IF($C$472=\"\",\"\",AT472/$C$472)","v":""},null,{"$f":"IF($C$472=\"\",\"\",AV472/$C$472)","v":""},null,{"$f":"IF($C$472=\"\",\"\",AX472/$C$472)","v":""},null,{"$f":"IF($C$472=\"\",\"\",AZ472/$C$472)","v":""},null,{"$f":"IF($C$472=\"\",\"\",BB472/$C$472)","v":""},null,0]
[null,null,null,null,{"$f":"IF($C$473=\"\",\"\",F473/$C$473)","v":""},null,{"$f":"IF($C$473=\"\",\"\",H473/$C$473)","v":""},null,{"$f":"IF($C$473=\"\",\"\",J473/$C$473)","v":""},null,{"$f":"IF($C$473=\"\",\"\",L473/$C$473)","v":""},null,{"$f":"IF($C$473=\"\",\"\",N473/$C$473)","v":""},null,{"$f":"IF($C$473=\"\",\"\",P473/$C$473)","v":""},null,{"$f":"IF($C$473=\"\",\"\",R473/$C$473)","v":""},null,{"$f":"IF($C$473=\"\",\"\",T473/$C$473)","v":""},null,{"$f":"IF($C$473=\"\",\"\",V473/$C$473)","v":""},null,{"$f":"IF($C$473=\"\",\"\",X473/$C$473)","v":""},null,{"$f":"IF($C$473=\"\",\"\",Z473/$C$473)","v":""},null,{"$f":"IF($C$473=\"\",\"\",AB473/$C$473)","v":""},null,{"$f":"IF($C$473=\"\",\"\",AD473/$C$473)","v":""},null,{"$f":"IF($C$473=\"\",\"\",AF473/$C$473)","v":""},null,{"$f":"IF($C$473=\"\",\"\",AH473/$C$473)","v":""},null,{"$f":"IF($C$473=\"\",\"\",AJ473/$C$473)","v":""},null,{"$f":"IF($C$473=\"\",\"\",AL473/$C$473)","v":""},null,{"$f":"IF($C$473=\"\",\"\",AN473/$C$473)","v":""},null,{"$f":"IF($C$473=\"\",\"\",AP473/$C$473)","v":""},null,{"$f":"IF($C$473=\"\",\"\",AR473/$C$473)","v":""},null,{"$f":"IF($C$473=\"\",\"\",AT473/$C$473)","v":""},null,{"$f":"IF($C$473=\"\",\"\",AV473/$C$473)","v":""},null,{"$f":"IF($C$473=\"\",\"\",AX473/$C$473)","v":""},null,{"$f":"IF($C$473=\"\",\"\",AZ473/$C$473)","v":""},null,{"$f":"IF($C$473=\"\",\"\",BB473/$C$473)","v":""},null,{"$f":"SUM(BB473,AZ473,AX473,AV473,AT473,AR473,AP473,AN473,AL473,AJ473,AH473,AF473,AD473,AB473,Z473,X473,V473,T473,R473,P473,N473,L473,J473,H473,F473)","v":0}]
["TOTAL HOURS",null,null,null,null,{"$f":"SUM(F444:F473)","v":0},null,{"$f":"SUM(H444:H473)","v":0},null,{"$f":"SUM(J444:J473)","v":0},null,{"$f":"SUM(L444:L473)","v":0},null,{"$f":"SUM(N444:N473)","v":0},null,{"$f":"SUM(P444:P473)","v":0},null,{"$f":"SUM(R444:R473)","v":0},null,{"$f":"SUM(T444:T473)","v":0},null,{"$f":"SUM(V444:V473)","v":0},null,{"$f":"SUM(X444:X473)","v":0},null,{"$f":"SUM(Z444:Z473)","v":0},null,{"$f":"SUM(AB444:AB473)","v":0},null,{"$f":"SUM(AD444:AD473)","v":0},null,{"$f":"SUM(AF444:AF473)","v":0},null,{"$f":"SUM(AH444:AH473)","v":0},null,{"$f":"SUM(AJ444:AJ473)","v":0},null,{"$f":"SUM(AL444:AL473)","v":0},null,{"$f":"SUM(AN444:AN473)","v":0},null,{"$f":"SUM(AP444:AP473)","v":0},null,{"$f":"SUM(AR444:AR473)","v":0},null,{"$f":"SUM(AT444:AT473)","v":0},null,{"$f":"SUM(AV444:AV473)","v":0},null,{"$f":"SUM(AX444:AX473)","v":0},null,{"$f":"SUM(AZ444:AZ473)","v":0},null,{"$f":"SUM(BB444:BB473)","v":0},{"$f":"SUM(E474:BB474)","v":0}]
["TOTAL WORKDAYS",null,null,null,null,{"$f":"F474/8","v":0},null,{"$f":"H474/8","v":0},null,{"$f":"J474/8","v":0},null,{"$f":"L474/8","v":0},null,{"$f":"N474/8","v":0},null,{"$f":"P474/8","v":0},null,{"$f":"R474/8","v":0},null,{"$f":"T474/8","v":0},null,{"$f":"V474/8","v":0},null,{"$f":"X474/8","v":0},null,{"$f":"Z474/8","v":0},null,{"$f":"AB474/8","v":0},null,{"$f":"AD474/8","v":0},null,0,null,{"$f":"AH474/8","v":0},null,0,null,{"$f":"AL474/8","v":0},null,0,null,{"$f":"AP474/8","v":0},null,0,null,{"$f":"AT474/8","v":0},null,{"$f":"AV474/8","v":0},null,{"$f":"AX474/8","v":0},null,{"$f":"AZ474/8","v":0},null,{"$f":"BB474/8","v":0},{"$f":"SUM(E475:BB475)","v":0}]
["TOTAL RAW LABOR",null,null,null,null,{"$f":"$E$13*F474","v":0},null,{"$f":"$G$13*H474","v":0},null,{"$f":"$I$13*J474","v":0},null,{"$f":"$K$13*L474","v":0},null,{"$f":"$M$13*N474","v":0},null,{"$f":"$O$13*P474","v":0},null,{"$f":"$Q$13*R474","v":0},null,{"$f":"$S$13*T474","v":0},null,{"$f":"$U$13*V474","v":0},null,{"$f":"$W$13*X474","v":0},null,{"$f":"$Y$13*Z474","v":0},null,{"$f":"$AA$13*AB474","v":0},null,{"$f":"$AC$13*AD474","v":0},null,{"$f":"$AC$13*AF474","v":0},null,{"$f":"$AC$13*AH474","v":0},null,{"$f":"$AC$13*AJ474","v":0},null,{"$f":"$AC$13*AL474","v":0},null,{"$f":"$AC$13*AN474","v":0},null,{"$f":"$AC$13*AP474","v":0},null,{"$f":"$AC$13*AR474","v":0},null,{"$f":"$AC$13*AT474","v":0},null,{"$f":"$AC$13*AV474","v":0},null,{"$f":"$AC$13*AX474","v":0},null,{"$f":"$AC$13*AZ474","v":0},null,{"$f":"$AC$13*BB474","v":0},{"$f":"SUM(E476:BB476)","v":0}]
["Task 18.0     ","REPLACE FIELD WITH CATEGORY NAME OF YOUR CHOOSING HERE",null,null,null,null,null,null,null,null,null,null,null,null,null,null,null,null,null,null,null,null,null,null,null,null,null,null,null,null,null,null,null,null,null,null,null,null,null,null,null,null,null,null,null,null,null,null,null,null,null,null,null,null,{"$f":"IF(B477=\"REPLACE FIELD WITH CATEGORY NAME OF YOUR CHOOSING HERE\",0,\"\")","v":0}]
[null,null,null,null,{"$f":"IF($C$478=\"\",\"\",F478/$C$478)","v":""},null,{"$f":"IF($C$478=\"\",\"\",H478/$C$478)","v":""},null,{"$f":"IF($C$478=\"\",\"\",J478/$C$478)","v":""},null,{"$f":"IF($C$478=\"\",\"\",L478/$C$478)","v":""},null,{"$f":"IF($C$478=\"\",\"\",N478/$C$478)","v":""},null,{"$f":"IF($C$478=\"\",\"\",P478/$C$478)","v":""},null,{"$f":"IF($C$478=\"\",\"\",R478/$C$478)","v":""},null,{"$f":"IF($C$478=\"\",\"\",T478/$C$478)","v":""},null,{"$f":"IF($C$478=\"\",\"\",V478/$C$478)","v":""},null,{"$f":"IF($C$478=\"\",\"\",X478/$C$478)","v":""},null,{"$f":"IF($C$478=\"\",\"\",Z478/$C$478)","v":""},null,{"$f":"IF($C$478=\"\",\"\",AB478/$C$478)","v":""},null,{"$f":"IF($C$478=\"\",\"\",AD478/$C$478)","v":""},null,{"$f":"IF($C$478=\"\",\"\",AF478/$C$478)","v":""},null,{"$f":"IF($C$478=\"\",\"\",AH478/$C$478)","v":""},null,{"$f":"IF($C$478=\"\",\"\",AJ478/$C$478)","v":""},null,{"$f":"IF($C$478=\"\",\"\",AL478/$C$478)","v":""},null,{"$f":"IF($C$478=\"\",\"\",AN478/$C$478)","v":""},null,{"$f":"IF($C$478=\"\",\"\",AP478/$C$478)","v":""},null,{"$f":"IF($C$478=\"\",\"\",AR478/$C$478)","v":""},null,{"$f":"IF($C$478=\"\",\"\",AT478/$C$478)","v":""},null,{"$f":"IF($C$478=\"\",\"\",AV478/$C$478)","v":""},null,{"$f":"IF($C$478=\"\",\"\",AX478/$C$478)","v":""},null,{"$f":"IF($C$478=\"\",\"\",AZ478/$C$478)","v":""},null,{"$f":"IF($C$478=\"\",\"\",BB478/$C$478)","v":""},null,{"$f":"SUM(BB478,AZ478,AX478,AV478,AT478,AR478,AP478,AN478,AL478,AJ478,AH478,AF478,AD478,AB478,Z478,X478,V478,T478,R478,P478,N478,L478,J478,H478,F478)","v":0}]
[null,null,null,null,{"$f":"IF($C$479=\"\",\"\",F479/$C$479)","v":""},null,{"$f":"IF($C$479=\"\",\"\",H479/$C$479)","v":""},null,{"$f":"IF($C$479=\"\",\"\",J479/$C$479)","v":""},null,{"$f":"IF($C$479=\"\",\"\",L479/$C$479)","v":""},null,{"$f":"IF($C$479=\"\",\"\",N479/$C$479)","v":""},null,{"$f":"IF($C$479=\"\",\"\",P479/$C$479)","v":""},null,{"$f":"IF($C$479=\"\",\"\",R479/$C$479)","v":""},null,{"$f":"IF($C$479=\"\",\"\",T479/$C$479)","v":""},null,{"$f":"IF($C$479=\"\",\"\",V479/$C$479)","v":""},null,{"$f":"IF($C$479=\"\",\"\",X479/$C$479)","v":""},null,{"$f":"IF($C$479=\"\",\"\",Z479/$C$479)","v":""},null,{"$f":"IF($C$479=\"\",\"\",AB479/$C$479)","v":""},null,{"$f":"IF($C$479=\"\",\"\",AD479/$C$479)","v":""},null,{"$f":"IF($C$479=\"\",\"\",AF479/$C$479)","v":""},null,{"$f":"IF($C$479=\"\",\"\",AH479/$C$479)","v":""},null,{"$f":"IF($C$479=\"\",\"\",AJ479/$C$479)","v":""},null,{"$f":"IF($C$479=\"\",\"\",AL479/$C$479)","v":""},null,{"$f":"IF($C$479=\"\",\"\",AN479/$C$479)","v":""},null,{"$f":"IF($C$479=\"\",\"\",AP479/$C$479)","v":""},null,{"$f":"IF($C$479=\"\",\"\",AR479/$C$479)","v":""},null,{"$f":"IF($C$479=\"\",\"\",AT479/$C$479)","v":""},null,{"$f":"IF($C$479=\"\",\"\",AV479/$C$479)","v":""},null,{"$f":"IF($C$479=\"\",\"\",AX479/$C$479)","v":""},null,{"$f":"IF($C$479=\"\",\"\",AZ479/$C$479)","v":""},null,{"$f":"IF($C$479=\"\",\"\",BB479/$C$479)","v":""},null,0]
[null,null,null,null,{"$f":"IF($C$480=\"\",\"\",F480/$C$480)","v":""},null,{"$f":"IF($C$480=\"\",\"\",H480/$C$480)","v":""},null,{"$f":"IF($C$480=\"\",\"\",J480/$C$480)","v":""},null,{"$f":"IF($C$480=\"\",\"\",L480/$C$480)","v":""},null,{"$f":"IF($C$480=\"\",\"\",N480/$C$480)","v":""},null,{"$f":"IF($C$480=\"\",\"\",P480/$C$480)","v":""},null,{"$f":"IF($C$480=\"\",\"\",R480/$C$480)","v":""},null,{"$f":"IF($C$480=\"\",\"\",T480/$C$480)","v":""},null,{"$f":"IF($C$480=\"\",\"\",V480/$C$480)","v":""},null,{"$f":"IF($C$480=\"\",\"\",X480/$C$480)","v":""},null,{"$f":"IF($C$480=\"\",\"\",Z480/$C$480)","v":""},null,{"$f":"IF($C$480=\"\",\"\",AB480/$C$480)","v":""},null,{"$f":"IF($C$480=\"\",\"\",AD480/$C$480)","v":""},null,{"$f":"IF($C$480=\"\",\"\",AF480/$C$480)","v":""},null,{"$f":"IF($C$480=\"\",\"\",AH480/$C$480)","v":""},null,{"$f":"IF($C$480=\"\",\"\",AJ480/$C$480)","v":""},null,{"$f":"IF($C$480=\"\",\"\",AL480/$C$480)","v":""},null,{"$f":"IF($C$480=\"\",\"\",AN480/$C$480)","v":""},null,{"$f":"IF($C$480=\"\",\"\",AP480/$C$480)","v":""},null,{"$f":"IF($C$480=\"\",\"\",AR480/$C$480)","v":""},null,{"$f":"IF($C$480=\"\",\"\",AT480/$C$480)","v":""},null,{"$f":"IF($C$480=\"\",\"\",AV480/$C$480)","v":""},null,{"$f":"IF($C$480=\"\",\"\",AX480/$C$480)","v":""},null,{"$f":"IF($C$480=\"\",\"\",AZ480/$C$480)","v":""},null,{"$f":"IF($C$480=\"\",\"\",BB480/$C$480)","v":""},null,0]
[null,null,null,null,{"$f":"IF($C$481=\"\",\"\",F481/$C$481)","v":""},null,{"$f":"IF($C$481=\"\",\"\",H481/$C$481)","v":""},null,{"$f":"IF($C$481=\"\",\"\",J481/$C$481)","v":""},null,{"$f":"IF($C$481=\"\",\"\",L481/$C$481)","v":""},null,{"$f":"IF($C$481=\"\",\"\",N481/$C$481)","v":""},null,{"$f":"IF($C$481=\"\",\"\",P481/$C$481)","v":""},null,{"$f":"IF($C$481=\"\",\"\",R481/$C$481)","v":""},null,{"$f":"IF($C$481=\"\",\"\",T481/$C$481)","v":""},null,{"$f":"IF($C$481=\"\",\"\",V481/$C$481)","v":""},null,{"$f":"IF($C$481=\"\",\"\",X481/$C$481)","v":""},null,{"$f":"IF($C$481=\"\",\"\",Z481/$C$481)","v":""},null,{"$f":"IF($C$481=\"\",\"\",AB481/$C$481)","v":""},null,{"$f":"IF($C$481=\"\",\"\",AD481/$C$481)","v":""},null,{"$f":"IF($C$481=\"\",\"\",AF481/$C$481)","v":""},null,{"$f":"IF($C$481=\"\",\"\",AH481/$C$481)","v":""},null,{"$f":"IF($C$481=\"\",\"\",AJ481/$C$481)","v":""},null,{"$f":"IF($C$481=\"\",\"\",AL481/$C$481)","v":""},null,{"$f":"IF($C$481=\"\",\"\",AN481/$C$481)","v":""},null,{"$f":"IF($C$481=\"\",\"\",AP481/$C$481)","v":""},null,{"$f":"IF($C$481=\"\",\"\",AR481/$C$481)","v":""},null,{"$f":"IF($C$481=\"\",\"\",AT481/$C$481)","v":""},null,{"$f":"IF($C$481=\"\",\"\",AV481/$C$481)","v":""},null,{"$f":"IF($C$481=\"\",\"\",AX481/$C$481)","v":""},null,{"$f":"IF($C$481=\"\",\"\",AZ481/$C$481)","v":""},null,{"$f":"IF($C$481=\"\",\"\",BB481/$C$481)","v":""},null,0]
[null,null,null,null,{"$f":"IF($C$482=\"\",\"\",F482/$C$482)","v":""},null,{"$f":"IF($C$482=\"\",\"\",H482/$C$482)","v":""},null,{"$f":"IF($C$482=\"\",\"\",J482/$C$482)","v":""},null,{"$f":"IF($C$482=\"\",\"\",L482/$C$482)","v":""},null,{"$f":"IF($C$482=\"\",\"\",N482/$C$482)","v":""},null,{"$f":"IF($C$482=\"\",\"\",P482/$C$482)","v":""},null,{"$f":"IF($C$482=\"\",\"\",R482/$C$482)","v":""},null,{"$f":"IF($C$482=\"\",\"\",T482/$C$482)","v":""},null,{"$f":"IF($C$482=\"\",\"\",V482/$C$482)","v":""},null,{"$f":"IF($C$482=\"\",\"\",X482/$C$482)","v":""},null,{"$f":"IF($C$482=\"\",\"\",Z482/$C$482)","v":""},null,{"$f":"IF($C$482=\"\",\"\",AB482/$C$482)","v":""},null,{"$f":"IF($C$482=\"\",\"\",AD482/$C$482)","v":""},null,{"$f":"IF($C$482=\"\",\"\",AF482/$C$482)","v":""},null,{"$f":"IF($C$482=\"\",\"\",AH482/$C$482)","v":""},null,{"$f":"IF($C$482=\"\",\"\",AJ482/$C$482)","v":""},null,{"$f":"IF($C$482=\"\",\"\",AL482/$C$482)","v":""},null,{"$f":"IF($C$482=\"\",\"\",AN482/$C$482)","v":""},null,{"$f":"IF($C$482=\"\",\"\",AP482/$C$482)","v":""},null,{"$f":"IF($C$482=\"\",\"\",AR482/$C$482)","v":""},null,{"$f":"IF($C$482=\"\",\"\",AT482/$C$482)","v":""},null,{"$f":"IF($C$482=\"\",\"\",AV482/$C$482)","v":""},null,{"$f":"IF($C$482=\"\",\"\",AX482/$C$482)","v":""},null,{"$f":"IF($C$482=\"\",\"\",AZ482/$C$482)","v":""},null,{"$f":"IF($C$482=\"\",\"\",BB482/$C$482)","v":""},null,0]
[null,null,null,null,{"$f":"IF($C$483=\"\",\"\",F483/$C$483)","v":""},null,{"$f":"IF($C$483=\"\",\"\",H483/$C$483)","v":""},null,{"$f":"IF($C$483=\"\",\"\",J483/$C$483)","v":""},null,{"$f":"IF($C$483=\"\",\"\",L483/$C$483)","v":""},null,{"$f":"IF($C$483=\"\",\"\",N483/$C$483)","v":""},null,{"$f":"IF($C$483=\"\",\"\",P483/$C$483)","v":""},null,{"$f":"IF($C$483=\"\",\"\",R483/$C$483)","v":""},null,{"$f":"IF($C$483=\"\",\"\",T483/$C$483)","v":""},null,{"$f":"IF($C$483=\"\",\"\",V483/$C$483)","v":""},null,{"$f":"IF($C$483=\"\",\"\",X483/$C$483)","v":""},null,{"$f":"IF($C$483=\"\",\"\",Z483/$C$483)","v":""},null,{"$f":"IF($C$483=\"\",\"\",AB483/$C$483)","v":""},null,{"$f":"IF($C$483=\"\",\"\",AD483/$C$483)","v":""},null,{"$f":"IF($C$483=\"\",\"\",AF483/$C$483)","v":""},null,{"$f":"IF($C$483=\"\",\"\",AH483/$C$483)","v":""},null,{"$f":"IF($C$483=\"\",\"\",AJ483/$C$483)","v":""},null,{"$f":"IF($C$483=\"\",\"\",AL483/$C$483)","v":""},null,{"$f":"IF($C$483=\"\",\"\",AN483/$C$483)","v":""},null,{"$f":"IF($C$483=\"\",\"\",AP483/$C$483)","v":""},null,{"$f":"IF($C$483=\"\",\"\",AR483/$C$483)","v":""},null,{"$f":"IF($C$483=\"\",\"\",AT483/$C$483)","v":""},null,{"$f":"IF($C$483=\"\",\"\",AV483/$C$483)","v":""},null,{"$f":"IF($C$483=\"\",\"\",AX483/$C$483)","v":""},null,{"$f":"IF($C$483=\"\",\"\",AZ483/$C$483)","v":""},null,{"$f":"IF($C$483=\"\",\"\",BB483/$C$483)","v":""},null,0]
[null,null,null,null,{"$f":"IF($C$484=\"\",\"\",F484/$C$484)","v":""},null,{"$f":"IF($C$484=\"\",\"\",H484/$C$484)","v":""},null,{"$f":"IF($C$484=\"\",\"\",J484/$C$484)","v":""},null,{"$f":"IF($C$484=\"\",\"\",L484/$C$484)","v":""},null,{"$f":"IF($C$484=\"\",\"\",N484/$C$484)","v":""},null,{"$f":"IF($C$484=\"\",\"\",P484/$C$484)","v":""},null,{"$f":"IF($C$484=\"\",\"\",R484/$C$484)","v":""},null,{"$f":"IF($C$484=\"\",\"\",T484/$C$484)","v":""},null,{"$f":"IF($C$484=\"\",\"\",V484/$C$484)","v":""},null,{"$f":"IF($C$484=\"\",\"\",X484/$C$484)","v":""},null,{"$f":"IF($C$484=\"\",\"\",Z484/$C$484)","v":""},null,{"$f":"IF($C$484=\"\",\"\",AB484/$C$484)","v":""},null,{"$f":"IF($C$484=\"\",\"\",AD484/$C$484)","v":""},null,{"$f":"IF($C$484=\"\",\"\",AF484/$C$484)","v":""},null,{"$f":"IF($C$484=\"\",\"\",AH484/$C$484)","v":""},null,{"$f":"IF($C$484=\"\",\"\",AJ484/$C$484)","v":""},null,{"$f":"IF($C$484=\"\",\"\",AL484/$C$484)","v":""},null,{"$f":"IF($C$484=\"\",\"\",AN484/$C$484)","v":""},null,{"$f":"IF($C$484=\"\",\"\",AP484/$C$484)","v":""},null,{"$f":"IF($C$484=\"\",\"\",AR484/$C$484)","v":""},null,{"$f":"IF($C$484=\"\",\"\",AT484/$C$484)","v":""},null,{"$f":"IF($C$484=\"\",\"\",AV484/$C$484)","v":""},null,{"$f":"IF($C$484=\"\",\"\",AX484/$C$484)","v":""},null,{"$f":"IF($C$484=\"\",\"\",AZ484/$C$484)","v":""},null,{"$f":"IF($C$484=\"\",\"\",BB484/$C$484)","v":""},null,0]
[null,null,null,null,{"$f":"IF($C$485=\"\",\"\",F485/$C$485)","v":""},null,{"$f":"IF($C$485=\"\",\"\",H485/$C$485)","v":""},null,{"$f":"IF($C$485=\"\",\"\",J485/$C$485)","v":""},null,{"$f":"IF($C$485=\"\",\"\",L485/$C$485)","v":""},null,{"$f":"IF($C$485=\"\",\"\",N485/$C$485)","v":""},null,{"$f":"IF($C$485=\"\",\"\",P485/$C$485)","v":""},null,{"$f":"IF($C$485=\"\",\"\",R485/$C$485)","v":""},null,{"$f":"IF($C$485=\"\",\"\",T485/$C$485)","v":""},null,{"$f":"IF($C$485=\"\",\"\",V485/$C$485)","v":""},null,{"$f":"IF($C$485=\"\",\"\",X485/$C$485)","v":""},null,{"$f":"IF($C$485=\"\",\"\",Z485/$C$485)","v":""},null,{"$f":"IF($C$485=\"\",\"\",AB485/$C$485)","v":""},null,{"$f":"IF($C$485=\"\",\"\",AD485/$C$485)","v":""},null,{"$f":"IF($C$485=\"\",\"\",AF485/$C$485)","v":""},null,{"$f":"IF($C$485=\"\",\"\",AH485/$C$485)","v":""},null,{"$f":"IF($C$485=\"\",\"\",AJ485/$C$485)","v":""},null,{"$f":"IF($C$485=\"\",\"\",AL485/$C$485)","v":""},null,{"$f":"IF($C$485=\"\",\"\",AN485/$C$485)","v":""},null,{"$f":"IF($C$485=\"\",\"\",AP485/$C$485)","v":""},null,{"$f":"IF($C$485=\"\",\"\",AR485/$C$485)","v":""},null,{"$f":"IF($C$485=\"\",\"\",AT485/$C$485)","v":""},null,{"$f":"IF($C$485=\"\",\"\",AV485/$C$485)","v":""},null,{"$f":"IF($C$485=\"\",\"\",AX485/$C$485)","v":""},null,{"$f":"IF($C$485=\"\",\"\",AZ485/$C$485)","v":""},null,{"$f":"IF($C$485=\"\",\"\",BB485/$C$485)","v":""},null,0]
[null,null,null,null,{"$f":"IF($C$486=\"\",\"\",F486/$C$486)","v":""},null,{"$f":"IF($C$486=\"\",\"\",H486/$C$486)","v":""},null,{"$f":"IF($C$486=\"\",\"\",J486/$C$486)","v":""},null,{"$f":"IF($C$486=\"\",\"\",L486/$C$486)","v":""},null,{"$f":"IF($C$486=\"\",\"\",N486/$C$486)","v":""},null,{"$f":"IF($C$486=\"\",\"\",P486/$C$486)","v":""},null,{"$f":"IF($C$486=\"\",\"\",R486/$C$486)","v":""},null,{"$f":"IF($C$486=\"\",\"\",T486/$C$486)","v":""},null,{"$f":"IF($C$486=\"\",\"\",V486/$C$486)","v":""},null,{"$f":"IF($C$486=\"\",\"\",X486/$C$486)","v":""},null,{"$f":"IF($C$486=\"\",\"\",Z486/$C$486)","v":""},null,{"$f":"IF($C$486=\"\",\"\",AB486/$C$486)","v":""},null,{"$f":"IF($C$486=\"\",\"\",AD486/$C$486)","v":""},null,{"$f":"IF($C$486=\"\",\"\",AF486/$C$486)","v":""},null,{"$f":"IF($C$486=\"\",\"\",AH486/$C$486)","v":""},null,{"$f":"IF($C$486=\"\",\"\",AJ486/$C$486)","v":""},null,{"$f":"IF($C$486=\"\",\"\",AL486/$C$486)","v":""},null,{"$f":"IF($C$486=\"\",\"\",AN486/$C$486)","v":""},null,{"$f":"IF($C$486=\"\",\"\",AP486/$C$486)","v":""},null,{"$f":"IF($C$486=\"\",\"\",AR486/$C$486)","v":""},null,{"$f":"IF($C$486=\"\",\"\",AT486/$C$486)","v":""},null,{"$f":"IF($C$486=\"\",\"\",AV486/$C$486)","v":""},null,{"$f":"IF($C$486=\"\",\"\",AX486/$C$486)","v":""},null,{"$f":"IF($C$486=\"\",\"\",AZ486/$C$486)","v":""},null,{"$f":"IF($C$486=\"\",\"\",BB486/$C$486)","v":""},null,0]
[null,null,null,null,{"$f":"IF($C$487=\"\",\"\",F487/$C$487)","v":""},null,{"$f":"IF($C$487=\"\",\"\",H487/$C$487)","v":""},null,{"$f":"IF($C$487=\"\",\"\",J487/$C$487)","v":""},null,{"$f":"IF($C$487=\"\",\"\",L487/$C$487)","v":""},null,{"$f":"IF($C$487=\"\",\"\",N487/$C$487)","v":""},null,{"$f":"IF($C$487=\"\",\"\",P487/$C$487)","v":""},null,{"$f":"IF($C$487=\"\",\"\",R487/$C$487)","v":""},null,{"$f":"IF($C$487=\"\",\"\",T487/$C$487)","v":""},null,{"$f":"IF($C$487=\"\",\"\",V487/$C$487)","v":""},null,{"$f":"IF($C$487=\"\",\"\",X487/$C$487)","v":""},null,{"$f":"IF($C$487=\"\",\"\",Z487/$C$487)","v":""},null,{"$f":"IF($C$487=\"\",\"\",AB487/$C$487)","v":""},null,{"$f":"IF($C$487=\"\",\"\",AD487/$C$487)","v":""},null,{"$f":"IF($C$487=\"\",\"\",AF487/$C$487)","v":""},null,{"$f":"IF($C$487=\"\",\"\",AH487/$C$487)","v":""},null,{"$f":"IF($C$487=\"\",\"\",AJ487/$C$487)","v":""},null,{"$f":"IF($C$487=\"\",\"\",AL487/$C$487)","v":""},null,{"$f":"IF($C$487=\"\",\"\",AN487/$C$487)","v":""},null,{"$f":"IF($C$487=\"\",\"\",AP487/$C$487)","v":""},null,{"$f":"IF($C$487=\"\",\"\",AR487/$C$487)","v":""},null,{"$f":"IF($C$487=\"\",\"\",AT487/$C$487)","v":""},null,{"$f":"IF($C$487=\"\",\"\",AV487/$C$487)","v":""},null,{"$f":"IF($C$487=\"\",\"\",AX487/$C$487)","v":""},null,{"$f":"IF($C$487=\"\",\"\",AZ487/$C$487)","v":""},null,{"$f":"IF($C$487=\"\",\"\",BB487/$C$487)","v":""},null,0]
[null,null,null,null,{"$f":"IF($C$488=\"\",\"\",F488/$C$488)","v":""},null,{"$f":"IF($C$488=\"\",\"\",H488/$C$488)","v":""},null,{"$f":"IF($C$488=\"\",\"\",J488/$C$488)","v":""},null,{"$f":"IF($C$488=\"\",\"\",L488/$C$488)","v":""},null,{"$f":"IF($C$488=\"\",\"\",N488/$C$488)","v":""},null,{"$f":"IF($C$488=\"\",\"\",P488/$C$488)","v":""},null,{"$f":"IF($C$488=\"\",\"\",R488/$C$488)","v":""},null,{"$f":"IF($C$488=\"\",\"\",T488/$C$488)","v":""},null,{"$f":"IF($C$488=\"\",\"\",V488/$C$488)","v":""},null,{"$f":"IF($C$488=\"\",\"\",X488/$C$488)","v":""},null,{"$f":"IF($C$488=\"\",\"\",Z488/$C$488)","v":""},null,{"$f":"IF($C$488=\"\",\"\",AB488/$C$488)","v":""},null,{"$f":"IF($C$488=\"\",\"\",AD488/$C$488)","v":""},null,{"$f":"IF($C$488=\"\",\"\",AF488/$C$488)","v":""},null,{"$f":"IF($C$488=\"\",\"\",AH488/$C$488)","v":""},null,{"$f":"IF($C$488=\"\",\"\",AJ488/$C$488)","v":""},null,{"$f":"IF($C$488=\"\",\"\",AL488/$C$488)","v":""},null,{"$f":"IF($C$488=\"\",\"\",AN488/$C$488)","v":""},null,{"$f":"IF($C$488=\"\",\"\",AP488/$C$488)","v":""},null,{"$f":"IF($C$488=\"\",\"\",AR488/$C$488)","v":""},null,{"$f":"IF($C$488=\"\",\"\",AT488/$C$488)","v":""},null,{"$f":"IF($C$488=\"\",\"\",AV488/$C$488)","v":""},null,{"$f":"IF($C$488=\"\",\"\",AX488/$C$488)","v":""},null,{"$f":"IF($C$488=\"\",\"\",AZ488/$C$488)","v":""},null,{"$f":"IF($C$488=\"\",\"\",BB488/$C$488)","v":""},null,0]
[null,null,null,null,{"$f":"IF($C$489=\"\",\"\",F489/$C$489)","v":""},null,{"$f":"IF($C$489=\"\",\"\",H489/$C$489)","v":""},null,{"$f":"IF($C$489=\"\",\"\",J489/$C$489)","v":""},null,{"$f":"IF($C$489=\"\",\"\",L489/$C$489)","v":""},null,{"$f":"IF($C$489=\"\",\"\",N489/$C$489)","v":""},null,{"$f":"IF($C$489=\"\",\"\",P489/$C$489)","v":""},null,{"$f":"IF($C$489=\"\",\"\",R489/$C$489)","v":""},null,{"$f":"IF($C$489=\"\",\"\",T489/$C$489)","v":""},null,{"$f":"IF($C$489=\"\",\"\",V489/$C$489)","v":""},null,{"$f":"IF($C$489=\"\",\"\",X489/$C$489)","v":""},null,{"$f":"IF($C$489=\"\",\"\",Z489/$C$489)","v":""},null,{"$f":"IF($C$489=\"\",\"\",AB489/$C$489)","v":""},null,{"$f":"IF($C$489=\"\",\"\",AD489/$C$489)","v":""},null,{"$f":"IF($C$489=\"\",\"\",AF489/$C$489)","v":""},null,{"$f":"IF($C$489=\"\",\"\",AH489/$C$489)","v":""},null,{"$f":"IF($C$489=\"\",\"\",AJ489/$C$489)","v":""},null,{"$f":"IF($C$489=\"\",\"\",AL489/$C$489)","v":""},null,{"$f":"IF($C$489=\"\",\"\",AN489/$C$489)","v":""},null,{"$f":"IF($C$489=\"\",\"\",AP489/$C$489)","v":""},null,{"$f":"IF($C$489=\"\",\"\",AR489/$C$489)","v":""},null,{"$f":"IF($C$489=\"\",\"\",AT489/$C$489)","v":""},null,{"$f":"IF($C$489=\"\",\"\",AV489/$C$489)","v":""},null,{"$f":"IF($C$489=\"\",\"\",AX489/$C$489)","v":""},null,{"$f":"IF($C$489=\"\",\"\",AZ489/$C$489)","v":""},null,{"$f":"IF($C$489=\"\",\"\",BB489/$C$489)","v":""},null,0]
[null,null,null,null,{"$f":"IF($C$490=\"\",\"\",F490/$C$490)","v":""},null,{"$f":"IF($C$490=\"\",\"\",H490/$C$490)","v":""},null,{"$f":"IF($C$490=\"\",\"\",J490/$C$490)","v":""},null,{"$f":"IF($C$490=\"\",\"\",L490/$C$490)","v":""},null,{"$f":"IF($C$490=\"\",\"\",N490/$C$490)","v":""},null,{"$f":"IF($C$490=\"\",\"\",P490/$C$490)","v":""},null,{"$f":"IF($C$490=\"\",\"\",R490/$C$490)","v":""},null,{"$f":"IF($C$490=\"\",\"\",T490/$C$490)","v":""},null,{"$f":"IF($C$490=\"\",\"\",V490/$C$490)","v":""},null,{"$f":"IF($C$490=\"\",\"\",X490/$C$490)","v":""},null,{"$f":"IF($C$490=\"\",\"\",Z490/$C$490)","v":""},null,{"$f":"IF($C$490=\"\",\"\",AB490/$C$490)","v":""},null,{"$f":"IF($C$490=\"\",\"\",AD490/$C$490)","v":""},null,{"$f":"IF($C$490=\"\",\"\",AF490/$C$490)","v":""},null,{"$f":"IF($C$490=\"\",\"\",AH490/$C$490)","v":""},null,{"$f":"IF($C$490=\"\",\"\",AJ490/$C$490)","v":""},null,{"$f":"IF($C$490=\"\",\"\",AL490/$C$490)","v":""},null,{"$f":"IF($C$490=\"\",\"\",AN490/$C$490)","v":""},null,{"$f":"IF($C$490=\"\",\"\",AP490/$C$490)","v":""},null,{"$f":"IF($C$490=\"\",\"\",AR490/$C$490)","v":""},null,{"$f":"IF($C$490=\"\",\"\",AT490/$C$490)","v":""},null,{"$f":"IF($C$490=\"\",\"\",AV490/$C$490)","v":""},null,{"$f":"IF($C$490=\"\",\"\",AX490/$C$490)","v":""},null,{"$f":"IF($C$490=\"\",\"\",AZ490/$C$490)","v":""},null,{"$f":"IF($C$490=\"\",\"\",BB490/$C$490)","v":""},null,0]
[null,null,null,null,{"$f":"IF($C$491=\"\",\"\",F491/$C$491)","v":""},null,{"$f":"IF($C$491=\"\",\"\",H491/$C$491)","v":""},null,{"$f":"IF($C$491=\"\",\"\",J491/$C$491)","v":""},null,{"$f":"IF($C$491=\"\",\"\",L491/$C$491)","v":""},null,{"$f":"IF($C$491=\"\",\"\",N491/$C$491)","v":""},null,{"$f":"IF($C$491=\"\",\"\",P491/$C$491)","v":""},null,{"$f":"IF($C$491=\"\",\"\",R491/$C$491)","v":""},null,{"$f":"IF($C$491=\"\",\"\",T491/$C$491)","v":""},null,{"$f":"IF($C$491=\"\",\"\",V491/$C$491)","v":""},null,{"$f":"IF($C$491=\"\",\"\",X491/$C$491)","v":""},null,{"$f":"IF($C$491=\"\",\"\",Z491/$C$491)","v":""},null,{"$f":"IF($C$491=\"\",\"\",AB491/$C$491)","v":""},null,{"$f":"IF($C$491=\"\",\"\",AD491/$C$491)","v":""},null,{"$f":"IF($C$491=\"\",\"\",AF491/$C$491)","v":""},null,{"$f":"IF($C$491=\"\",\"\",AH491/$C$491)","v":""},null,{"$f":"IF($C$491=\"\",\"\",AJ491/$C$491)","v":""},null,{"$f":"IF($C$491=\"\",\"\",AL491/$C$491)","v":""},null,{"$f":"IF($C$491=\"\",\"\",AN491/$C$491)","v":""},null,{"$f":"IF($C$491=\"\",\"\",AP491/$C$491)","v":""},null,{"$f":"IF($C$491=\"\",\"\",AR491/$C$491)","v":""},null,{"$f":"IF($C$491=\"\",\"\",AT491/$C$491)","v":""},null,{"$f":"IF($C$491=\"\",\"\",AV491/$C$491)","v":""},null,{"$f":"IF($C$491=\"\",\"\",AX491/$C$491)","v":""},null,{"$f":"IF($C$491=\"\",\"\",AZ491/$C$491)","v":""},null,{"$f":"IF($C$491=\"\",\"\",BB491/$C$491)","v":""},null,0]
[null,null,null,null,{"$f":"IF($C$492=\"\",\"\",F492/$C$492)","v":""},null,{"$f":"IF($C$492=\"\",\"\",H492/$C$492)","v":""},null,{"$f":"IF($C$492=\"\",\"\",J492/$C$492)","v":""},null,{"$f":"IF($C$492=\"\",\"\",L492/$C$492)","v":""},null,{"$f":"IF($C$492=\"\",\"\",N492/$C$492)","v":""},null,{"$f":"IF($C$492=\"\",\"\",P492/$C$492)","v":""},null,{"$f":"IF($C$492=\"\",\"\",R492/$C$492)","v":""},null,{"$f":"IF($C$492=\"\",\"\",T492/$C$492)","v":""},null,{"$f":"IF($C$492=\"\",\"\",V492/$C$492)","v":""},null,{"$f":"IF($C$492=\"\",\"\",X492/$C$492)","v":""},null,{"$f":"IF($C$492=\"\",\"\",Z492/$C$492)","v":""},null,{"$f":"IF($C$492=\"\",\"\",AB492/$C$492)","v":""},null,{"$f":"IF($C$492=\"\",\"\",AD492/$C$492)","v":""},null,{"$f":"IF($C$492=\"\",\"\",AF492/$C$492)","v":""},null,{"$f":"IF($C$492=\"\",\"\",AH492/$C$492)","v":""},null,{"$f":"IF($C$492=\"\",\"\",AJ492/$C$492)","v":""},null,{"$f":"IF($C$492=\"\",\"\",AL492/$C$492)","v":""},null,{"$f":"IF($C$492=\"\",\"\",AN492/$C$492)","v":""},null,{"$f":"IF($C$492=\"\",\"\",AP492/$C$492)","v":""},null,{"$f":"IF($C$492=\"\",\"\",AR492/$C$492)","v":""},null,{"$f":"IF($C$492=\"\",\"\",AT492/$C$492)","v":""},null,{"$f":"IF($C$492=\"\",\"\",AV492/$C$492)","v":""},null,{"$f":"IF($C$492=\"\",\"\",AX492/$C$492)","v":""},null,{"$f":"IF($C$492=\"\",\"\",AZ492/$C$492)","v":""},null,{"$f":"IF($C$492=\"\",\"\",BB492/$C$492)","v":""},null,0]
[null,null,null,null,{"$f":"IF($C$493=\"\",\"\",F493/$C$493)","v":""},null,{"$f":"IF($C$493=\"\",\"\",H493/$C$493)","v":""},null,{"$f":"IF($C$493=\"\",\"\",J493/$C$493)","v":""},null,{"$f":"IF($C$493=\"\",\"\",L493/$C$493)","v":""},null,{"$f":"IF($C$493=\"\",\"\",N493/$C$493)","v":""},null,{"$f":"IF($C$493=\"\",\"\",P493/$C$493)","v":""},null,{"$f":"IF($C$493=\"\",\"\",R493/$C$493)","v":""},null,{"$f":"IF($C$493=\"\",\"\",T493/$C$493)","v":""},null,{"$f":"IF($C$493=\"\",\"\",V493/$C$493)","v":""},null,{"$f":"IF($C$493=\"\",\"\",X493/$C$493)","v":""},null,{"$f":"IF($C$493=\"\",\"\",Z493/$C$493)","v":""},null,{"$f":"IF($C$493=\"\",\"\",AB493/$C$493)","v":""},null,{"$f":"IF($C$493=\"\",\"\",AD493/$C$493)","v":""},null,{"$f":"IF($C$493=\"\",\"\",AF493/$C$493)","v":""},null,{"$f":"IF($C$493=\"\",\"\",AH493/$C$493)","v":""},null,{"$f":"IF($C$493=\"\",\"\",AJ493/$C$493)","v":""},null,{"$f":"IF($C$493=\"\",\"\",AL493/$C$493)","v":""},null,{"$f":"IF($C$493=\"\",\"\",AN493/$C$493)","v":""},null,{"$f":"IF($C$493=\"\",\"\",AP493/$C$493)","v":""},null,{"$f":"IF($C$493=\"\",\"\",AR493/$C$493)","v":""},null,{"$f":"IF($C$493=\"\",\"\",AT493/$C$493)","v":""},null,{"$f":"IF($C$493=\"\",\"\",AV493/$C$493)","v":""},null,{"$f":"IF($C$493=\"\",\"\",AX493/$C$493)","v":""},null,{"$f":"IF($C$493=\"\",\"\",AZ493/$C$493)","v":""},null,{"$f":"IF($C$493=\"\",\"\",BB493/$C$493)","v":""},null,0]
[null,null,null,null,{"$f":"IF($C$494=\"\",\"\",F494/$C$494)","v":""},null,{"$f":"IF($C$494=\"\",\"\",H494/$C$494)","v":""},null,{"$f":"IF($C$494=\"\",\"\",J494/$C$494)","v":""},null,{"$f":"IF($C$494=\"\",\"\",L494/$C$494)","v":""},null,{"$f":"IF($C$494=\"\",\"\",N494/$C$494)","v":""},null,{"$f":"IF($C$494=\"\",\"\",P494/$C$494)","v":""},null,{"$f":"IF($C$494=\"\",\"\",R494/$C$494)","v":""},null,{"$f":"IF($C$494=\"\",\"\",T494/$C$494)","v":""},null,{"$f":"IF($C$494=\"\",\"\",V494/$C$494)","v":""},null,{"$f":"IF($C$494=\"\",\"\",X494/$C$494)","v":""},null,{"$f":"IF($C$494=\"\",\"\",Z494/$C$494)","v":""},null,{"$f":"IF($C$494=\"\",\"\",AB494/$C$494)","v":""},null,{"$f":"IF($C$494=\"\",\"\",AD494/$C$494)","v":""},null,{"$f":"IF($C$494=\"\",\"\",AF494/$C$494)","v":""},null,{"$f":"IF($C$494=\"\",\"\",AH494/$C$494)","v":""},null,{"$f":"IF($C$494=\"\",\"\",AJ494/$C$494)","v":""},null,{"$f":"IF($C$494=\"\",\"\",AL494/$C$494)","v":""},null,{"$f":"IF($C$494=\"\",\"\",AN494/$C$494)","v":""},null,{"$f":"IF($C$494=\"\",\"\",AP494/$C$494)","v":""},null,{"$f":"IF($C$494=\"\",\"\",AR494/$C$494)","v":""},null,{"$f":"IF($C$494=\"\",\"\",AT494/$C$494)","v":""},null,{"$f":"IF($C$494=\"\",\"\",AV494/$C$494)","v":""},null,{"$f":"IF($C$494=\"\",\"\",AX494/$C$494)","v":""},null,{"$f":"IF($C$494=\"\",\"\",AZ494/$C$494)","v":""},null,{"$f":"IF($C$494=\"\",\"\",BB494/$C$494)","v":""},null,0]
[null,null,null,null,{"$f":"IF($C$495=\"\",\"\",F495/$C$495)","v":""},null,{"$f":"IF($C$495=\"\",\"\",H495/$C$495)","v":""},null,{"$f":"IF($C$495=\"\",\"\",J495/$C$495)","v":""},null,{"$f":"IF($C$495=\"\",\"\",L495/$C$495)","v":""},null,{"$f":"IF($C$495=\"\",\"\",N495/$C$495)","v":""},null,{"$f":"IF($C$495=\"\",\"\",P495/$C$495)","v":""},null,{"$f":"IF($C$495=\"\",\"\",R495/$C$495)","v":""},null,{"$f":"IF($C$495=\"\",\"\",T495/$C$495)","v":""},null,{"$f":"IF($C$495=\"\",\"\",V495/$C$495)","v":""},null,{"$f":"IF($C$495=\"\",\"\",X495/$C$495)","v":""},null,{"$f":"IF($C$495=\"\",\"\",Z495/$C$495)","v":""},null,{"$f":"IF($C$495=\"\",\"\",AB495/$C$495)","v":""},null,{"$f":"IF($C$495=\"\",\"\",AD495/$C$495)","v":""},null,{"$f":"IF($C$495=\"\",\"\",AF495/$C$495)","v":""},null,{"$f":"IF($C$495=\"\",\"\",AH495/$C$495)","v":""},null,{"$f":"IF($C$495=\"\",\"\",AJ495/$C$495)","v":""},null,{"$f":"IF($C$495=\"\",\"\",AL495/$C$495)","v":""},null,{"$f":"IF($C$495=\"\",\"\",AN495/$C$495)","v":""},null,{"$f":"IF($C$495=\"\",\"\",AP495/$C$495)","v":""},null,{"$f":"IF($C$495=\"\",\"\",AR495/$C$495)","v":""},null,{"$f":"IF($C$495=\"\",\"\",AT495/$C$495)","v":""},null,{"$f":"IF($C$495=\"\",\"\",AV495/$C$495)","v":""},null,{"$f":"IF($C$495=\"\",\"\",AX495/$C$495)","v":""},null,{"$f":"IF($C$495=\"\",\"\",AZ495/$C$495)","v":""},null,{"$f":"IF($C$495=\"\",\"\",BB495/$C$495)","v":""},null,0]
[null,null,null,null,{"$f":"IF($C$496=\"\",\"\",F496/$C$496)","v":""},null,{"$f":"IF($C$496=\"\",\"\",H496/$C$496)","v":""},null,{"$f":"IF($C$496=\"\",\"\",J496/$C$496)","v":""},null,{"$f":"IF($C$496=\"\",\"\",L496/$C$496)","v":""},null,{"$f":"IF($C$496=\"\",\"\",N496/$C$496)","v":""},null,{"$f":"IF($C$496=\"\",\"\",P496/$C$496)","v":""},null,{"$f":"IF($C$496=\"\",\"\",R496/$C$496)","v":""},null,{"$f":"IF($C$496=\"\",\"\",T496/$C$496)","v":""},null,{"$f":"IF($C$496=\"\",\"\",V496/$C$496)","v":""},null,{"$f":"IF($C$496=\"\",\"\",X496/$C$496)","v":""},null,{"$f":"IF($C$496=\"\",\"\",Z496/$C$496)","v":""},null,{"$f":"IF($C$496=\"\",\"\",AB496/$C$496)","v":""},null,{"$f":"IF($C$496=\"\",\"\",AD496/$C$496)","v":""},null,{"$f":"IF($C$496=\"\",\"\",AF496/$C$496)","v":""},null,{"$f":"IF($C$496=\"\",\"\",AH496/$C$496)","v":""},null,{"$f":"IF($C$496=\"\",\"\",AJ496/$C$496)","v":""},null,{"$f":"IF($C$496=\"\",\"\",AL496/$C$496)","v":""},null,{"$f":"IF($C$496=\"\",\"\",AN496/$C$496)","v":""},null,{"$f":"IF($C$496=\"\",\"\",AP496/$C$496)","v":""},null,{"$f":"IF($C$496=\"\",\"\",AR496/$C$496)","v":""},null,{"$f":"IF($C$496=\"\",\"\",AT496/$C$496)","v":""},null,{"$f":"IF($C$496=\"\",\"\",AV496/$C$496)","v":""},null,{"$f":"IF($C$496=\"\",\"\",AX496/$C$496)","v":""},null,{"$f":"IF($C$496=\"\",\"\",AZ496/$C$496)","v":""},null,{"$f":"IF($C$496=\"\",\"\",BB496/$C$496)","v":""},null,0]
[null,null,null,null,{"$f":"IF($C$497=\"\",\"\",F497/$C$497)","v":""},null,{"$f":"IF($C$497=\"\",\"\",H497/$C$497)","v":""},null,{"$f":"IF($C$497=\"\",\"\",J497/$C$497)","v":""},null,{"$f":"IF($C$497=\"\",\"\",L497/$C$497)","v":""},null,{"$f":"IF($C$497=\"\",\"\",N497/$C$497)","v":""},null,{"$f":"IF($C$497=\"\",\"\",P497/$C$497)","v":""},null,{"$f":"IF($C$497=\"\",\"\",R497/$C$497)","v":""},null,{"$f":"IF($C$497=\"\",\"\",T497/$C$497)","v":""},null,{"$f":"IF($C$497=\"\",\"\",V497/$C$497)","v":""},null,{"$f":"IF($C$497=\"\",\"\",X497/$C$497)","v":""},null,{"$f":"IF($C$497=\"\",\"\",Z497/$C$497)","v":""},null,{"$f":"IF($C$497=\"\",\"\",AB497/$C$497)","v":""},null,{"$f":"IF($C$497=\"\",\"\",AD497/$C$497)","v":""},null,{"$f":"IF($C$497=\"\",\"\",AF497/$C$497)","v":""},null,{"$f":"IF($C$497=\"\",\"\",AH497/$C$497)","v":""},null,{"$f":"IF($C$497=\"\",\"\",AJ497/$C$497)","v":""},null,{"$f":"IF($C$497=\"\",\"\",AL497/$C$497)","v":""},null,{"$f":"IF($C$497=\"\",\"\",AN497/$C$497)","v":""},null,{"$f":"IF($C$497=\"\",\"\",AP497/$C$497)","v":""},null,{"$f":"IF($C$497=\"\",\"\",AR497/$C$497)","v":""},null,{"$f":"IF($C$497=\"\",\"\",AT497/$C$497)","v":""},null,{"$f":"IF($C$497=\"\",\"\",AV497/$C$497)","v":""},null,{"$f":"IF($C$497=\"\",\"\",AX497/$C$497)","v":""},null,{"$f":"IF($C$497=\"\",\"\",AZ497/$C$497)","v":""},null,{"$f":"IF($C$497=\"\",\"\",BB497/$C$497)","v":""},null,0]
[null,null,null,null,{"$f":"IF($C$498=\"\",\"\",F498/$C$498)","v":""},null,{"$f":"IF($C$498=\"\",\"\",H498/$C$498)","v":""},null,{"$f":"IF($C$498=\"\",\"\",J498/$C$498)","v":""},null,{"$f":"IF($C$498=\"\",\"\",L498/$C$498)","v":""},null,{"$f":"IF($C$498=\"\",\"\",N498/$C$498)","v":""},null,{"$f":"IF($C$498=\"\",\"\",P498/$C$498)","v":""},null,{"$f":"IF($C$498=\"\",\"\",R498/$C$498)","v":""},null,{"$f":"IF($C$498=\"\",\"\",T498/$C$498)","v":""},null,{"$f":"IF($C$498=\"\",\"\",V498/$C$498)","v":""},null,{"$f":"IF($C$498=\"\",\"\",X498/$C$498)","v":""},null,{"$f":"IF($C$498=\"\",\"\",Z498/$C$498)","v":""},null,{"$f":"IF($C$498=\"\",\"\",AB498/$C$498)","v":""},null,{"$f":"IF($C$498=\"\",\"\",AD498/$C$498)","v":""},null,{"$f":"IF($C$498=\"\",\"\",AF498/$C$498)","v":""},null,{"$f":"IF($C$498=\"\",\"\",AH498/$C$498)","v":""},null,{"$f":"IF($C$498=\"\",\"\",AJ498/$C$498)","v":""},null,{"$f":"IF($C$498=\"\",\"\",AL498/$C$498)","v":""},null,{"$f":"IF($C$498=\"\",\"\",AN498/$C$498)","v":""},null,{"$f":"IF($C$498=\"\",\"\",AP498/$C$498)","v":""},null,{"$f":"IF($C$498=\"\",\"\",AR498/$C$498)","v":""},null,{"$f":"IF($C$498=\"\",\"\",AT498/$C$498)","v":""},null,{"$f":"IF($C$498=\"\",\"\",AV498/$C$498)","v":""},null,{"$f":"IF($C$498=\"\",\"\",AX498/$C$498)","v":""},null,{"$f":"IF($C$498=\"\",\"\",AZ498/$C$498)","v":""},null,{"$f":"IF($C$498=\"\",\"\",BB498/$C$498)","v":""},null,0]
[null,null,null,null,{"$f":"IF($C$499=\"\",\"\",F499/$C$499)","v":""},null,{"$f":"IF($C$499=\"\",\"\",H499/$C$499)","v":""},null,{"$f":"IF($C$499=\"\",\"\",J499/$C$499)","v":""},null,{"$f":"IF($C$499=\"\",\"\",L499/$C$499)","v":""},null,{"$f":"IF($C$499=\"\",\"\",N499/$C$499)","v":""},null,{"$f":"IF($C$499=\"\",\"\",P499/$C$499)","v":""},null,{"$f":"IF($C$499=\"\",\"\",R499/$C$499)","v":""},null,{"$f":"IF($C$499=\"\",\"\",T499/$C$499)","v":""},null,{"$f":"IF($C$499=\"\",\"\",V499/$C$499)","v":""},null,{"$f":"IF($C$499=\"\",\"\",X499/$C$499)","v":""},null,{"$f":"IF($C$499=\"\",\"\",Z499/$C$499)","v":""},null,{"$f":"IF($C$499=\"\",\"\",AB499/$C$499)","v":""},null,{"$f":"IF($C$499=\"\",\"\",AD499/$C$499)","v":""},null,{"$f":"IF($C$499=\"\",\"\",AF499/$C$499)","v":""},null,{"$f":"IF($C$499=\"\",\"\",AH499/$C$499)","v":""},null,{"$f":"IF($C$499=\"\",\"\",AJ499/$C$499)","v":""},null,{"$f":"IF($C$499=\"\",\"\",AL499/$C$499)","v":""},null,{"$f":"IF($C$499=\"\",\"\",AN499/$C$499)","v":""},null,{"$f":"IF($C$499=\"\",\"\",AP499/$C$499)","v":""},null,{"$f":"IF($C$499=\"\",\"\",AR499/$C$499)","v":""},null,{"$f":"IF($C$499=\"\",\"\",AT499/$C$499)","v":""},null,{"$f":"IF($C$499=\"\",\"\",AV499/$C$499)","v":""},null,{"$f":"IF($C$499=\"\",\"\",AX499/$C$499)","v":""},null,{"$f":"IF($C$499=\"\",\"\",AZ499/$C$499)","v":""},null,{"$f":"IF($C$499=\"\",\"\",BB499/$C$499)","v":""},null,0]
[null,null,null,null,{"$f":"IF($C$500=\"\",\"\",F500/$C$500)","v":""},null,{"$f":"IF($C$500=\"\",\"\",H500/$C$500)","v":""},null,{"$f":"IF($C$500=\"\",\"\",J500/$C$500)","v":""},null,{"$f":"IF($C$500=\"\",\"\",L500/$C$500)","v":""},null,{"$f":"IF($C$500=\"\",\"\",N500/$C$500)","v":""},null,{"$f":"IF($C$500=\"\",\"\",P500/$C$500)","v":""},null,{"$f":"IF($C$500=\"\",\"\",R500/$C$500)","v":""},null,{"$f":"IF($C$500=\"\",\"\",T500/$C$500)","v":""},null,{"$f":"IF($C$500=\"\",\"\",V500/$C$500)","v":""},null,{"$f":"IF($C$500=\"\",\"\",X500/$C$500)","v":""},null,{"$f":"IF($C$500=\"\",\"\",Z500/$C$500)","v":""},null,{"$f":"IF($C$500=\"\",\"\",AB500/$C$500)","v":""},null,{"$f":"IF($C$500=\"\",\"\",AD500/$C$500)","v":""},null,{"$f":"IF($C$500=\"\",\"\",AF500/$C$500)","v":""},null,{"$f":"IF($C$500=\"\",\"\",AH500/$C$500)","v":""},null,{"$f":"IF($C$500=\"\",\"\",AJ500/$C$500)","v":""},null,{"$f":"IF($C$500=\"\",\"\",AL500/$C$500)","v":""},null,{"$f":"IF($C$500=\"\",\"\",AN500/$C$500)","v":""},null,{"$f":"IF($C$500=\"\",\"\",AP500/$C$500)","v":""},null,{"$f":"IF($C$500=\"\",\"\",AR500/$C$500)","v":""},null,{"$f":"IF($C$500=\"\",\"\",AT500/$C$500)","v":""},null,{"$f":"IF($C$500=\"\",\"\",AV500/$C$500)","v":""},null,{"$f":"IF($C$500=\"\",\"\",AX500/$C$500)","v":""},null,{"$f":"IF($C$500=\"\",\"\",AZ500/$C$500)","v":""},null,{"$f":"IF($C$500=\"\",\"\",BB500/$C$500)","v":""},null,0]
[null,null,null,null,{"$f":"IF($C$501=\"\",\"\",F501/$C$501)","v":""},null,{"$f":"IF($C$501=\"\",\"\",H501/$C$501)","v":""},null,{"$f":"IF($C$501=\"\",\"\",J501/$C$501)","v":""},null,{"$f":"IF($C$501=\"\",\"\",L501/$C$501)","v":""},null,{"$f":"IF($C$501=\"\",\"\",N501/$C$501)","v":""},null,{"$f":"IF($C$501=\"\",\"\",P501/$C$501)","v":""},null,{"$f":"IF($C$501=\"\",\"\",R501/$C$501)","v":""},null,{"$f":"IF($C$501=\"\",\"\",T501/$C$501)","v":""},null,{"$f":"IF($C$501=\"\",\"\",V501/$C$501)","v":""},null,{"$f":"IF($C$501=\"\",\"\",X501/$C$501)","v":""},null,{"$f":"IF($C$501=\"\",\"\",Z501/$C$501)","v":""},null,{"$f":"IF($C$501=\"\",\"\",AB501/$C$501)","v":""},null,{"$f":"IF($C$501=\"\",\"\",AD501/$C$501)","v":""},null,{"$f":"IF($C$501=\"\",\"\",AF501/$C$501)","v":""},null,{"$f":"IF($C$501=\"\",\"\",AH501/$C$501)","v":""},null,{"$f":"IF($C$501=\"\",\"\",AJ501/$C$501)","v":""},null,{"$f":"IF($C$501=\"\",\"\",AL501/$C$501)","v":""},null,{"$f":"IF($C$501=\"\",\"\",AN501/$C$501)","v":""},null,{"$f":"IF($C$501=\"\",\"\",AP501/$C$501)","v":""},null,{"$f":"IF($C$501=\"\",\"\",AR501/$C$501)","v":""},null,{"$f":"IF($C$501=\"\",\"\",AT501/$C$501)","v":""},null,{"$f":"IF($C$501=\"\",\"\",AV501/$C$501)","v":""},null,{"$f":"IF($C$501=\"\",\"\",AX501/$C$501)","v":""},null,{"$f":"IF($C$501=\"\",\"\",AZ501/$C$501)","v":""},null,{"$f":"IF($C$501=\"\",\"\",BB501/$C$501)","v":""},null,0]
[null,null,null,null,{"$f":"IF($C$502=\"\",\"\",F502/$C$502)","v":""},null,{"$f":"IF($C$502=\"\",\"\",H502/$C$502)","v":""},null,{"$f":"IF($C$502=\"\",\"\",J502/$C$502)","v":""},null,{"$f":"IF($C$502=\"\",\"\",L502/$C$502)","v":""},null,{"$f":"IF($C$502=\"\",\"\",N502/$C$502)","v":""},null,{"$f":"IF($C$502=\"\",\"\",P502/$C$502)","v":""},null,{"$f":"IF($C$502=\"\",\"\",R502/$C$502)","v":""},null,{"$f":"IF($C$502=\"\",\"\",T502/$C$502)","v":""},null,{"$f":"IF($C$502=\"\",\"\",V502/$C$502)","v":""},null,{"$f":"IF($C$502=\"\",\"\",X502/$C$502)","v":""},null,{"$f":"IF($C$502=\"\",\"\",Z502/$C$502)","v":""},null,{"$f":"IF($C$502=\"\",\"\",AB502/$C$502)","v":""},null,{"$f":"IF($C$502=\"\",\"\",AD502/$C$502)","v":""},null,{"$f":"IF($C$502=\"\",\"\",AF502/$C$502)","v":""},null,{"$f":"IF($C$502=\"\",\"\",AH502/$C$502)","v":""},null,{"$f":"IF($C$502=\"\",\"\",AJ502/$C$502)","v":""},null,{"$f":"IF($C$502=\"\",\"\",AL502/$C$502)","v":""},null,{"$f":"IF($C$502=\"\",\"\",AN502/$C$502)","v":""},null,{"$f":"IF($C$502=\"\",\"\",AP502/$C$502)","v":""},null,{"$f":"IF($C$502=\"\",\"\",AR502/$C$502)","v":""},null,{"$f":"IF($C$502=\"\",\"\",AT502/$C$502)","v":""},null,{"$f":"IF($C$502=\"\",\"\",AV502/$C$502)","v":""},null,{"$f":"IF($C$502=\"\",\"\",AX502/$C$502)","v":""},null,{"$f":"IF($C$502=\"\",\"\",AZ502/$C$502)","v":""},null,{"$f":"IF($C$502=\"\",\"\",BB502/$C$502)","v":""},null,0]
[null,null,null,null,{"$f":"IF($C$503=\"\",\"\",F503/$C$503)","v":""},null,{"$f":"IF($C$503=\"\",\"\",H503/$C$503)","v":""},null,{"$f":"IF($C$503=\"\",\"\",J503/$C$503)","v":""},null,{"$f":"IF($C$503=\"\",\"\",L503/$C$503)","v":""},null,{"$f":"IF($C$503=\"\",\"\",N503/$C$503)","v":""},null,{"$f":"IF($C$503=\"\",\"\",P503/$C$503)","v":""},null,{"$f":"IF($C$503=\"\",\"\",R503/$C$503)","v":""},null,{"$f":"IF($C$503=\"\",\"\",T503/$C$503)","v":""},null,{"$f":"IF($C$503=\"\",\"\",V503/$C$503)","v":""},null,{"$f":"IF($C$503=\"\",\"\",X503/$C$503)","v":""},null,{"$f":"IF($C$503=\"\",\"\",Z503/$C$503)","v":""},null,{"$f":"IF($C$503=\"\",\"\",AB503/$C$503)","v":""},null,{"$f":"IF($C$503=\"\",\"\",AD503/$C$503)","v":""},null,{"$f":"IF($C$503=\"\",\"\",AF503/$C$503)","v":""},null,{"$f":"IF($C$503=\"\",\"\",AH503/$C$503)","v":""},null,{"$f":"IF($C$503=\"\",\"\",AJ503/$C$503)","v":""},null,{"$f":"IF($C$503=\"\",\"\",AL503/$C$503)","v":""},null,{"$f":"IF($C$503=\"\",\"\",AN503/$C$503)","v":""},null,{"$f":"IF($C$503=\"\",\"\",AP503/$C$503)","v":""},null,{"$f":"IF($C$503=\"\",\"\",AR503/$C$503)","v":""},null,{"$f":"IF($C$503=\"\",\"\",AT503/$C$503)","v":""},null,{"$f":"IF($C$503=\"\",\"\",AV503/$C$503)","v":""},null,{"$f":"IF($C$503=\"\",\"\",AX503/$C$503)","v":""},null,{"$f":"IF($C$503=\"\",\"\",AZ503/$C$503)","v":""},null,{"$f":"IF($C$503=\"\",\"\",BB503/$C$503)","v":""},null,0]
[null,null,null,null,{"$f":"IF($C$504=\"\",\"\",F504/$C$504)","v":""},null,{"$f":"IF($C$504=\"\",\"\",H504/$C$504)","v":""},null,{"$f":"IF($C$504=\"\",\"\",J504/$C$504)","v":""},null,{"$f":"IF($C$504=\"\",\"\",L504/$C$504)","v":""},null,{"$f":"IF($C$504=\"\",\"\",N504/$C$504)","v":""},null,{"$f":"IF($C$504=\"\",\"\",P504/$C$504)","v":""},null,{"$f":"IF($C$504=\"\",\"\",R504/$C$504)","v":""},null,{"$f":"IF($C$504=\"\",\"\",T504/$C$504)","v":""},null,{"$f":"IF($C$504=\"\",\"\",V504/$C$504)","v":""},null,{"$f":"IF($C$504=\"\",\"\",X504/$C$504)","v":""},null,{"$f":"IF($C$504=\"\",\"\",Z504/$C$504)","v":""},null,{"$f":"IF($C$504=\"\",\"\",AB504/$C$504)","v":""},null,{"$f":"IF($C$504=\"\",\"\",AD504/$C$504)","v":""},null,{"$f":"IF($C$504=\"\",\"\",AF504/$C$504)","v":""},null,{"$f":"IF($C$504=\"\",\"\",AH504/$C$504)","v":""},null,{"$f":"IF($C$504=\"\",\"\",AJ504/$C$504)","v":""},null,{"$f":"IF($C$504=\"\",\"\",AL504/$C$504)","v":""},null,{"$f":"IF($C$504=\"\",\"\",AN504/$C$504)","v":""},null,{"$f":"IF($C$504=\"\",\"\",AP504/$C$504)","v":""},null,{"$f":"IF($C$504=\"\",\"\",AR504/$C$504)","v":""},null,{"$f":"IF($C$504=\"\",\"\",AT504/$C$504)","v":""},null,{"$f":"IF($C$504=\"\",\"\",AV504/$C$504)","v":""},null,{"$f":"IF($C$504=\"\",\"\",AX504/$C$504)","v":""},null,{"$f":"IF($C$504=\"\",\"\",AZ504/$C$504)","v":""},null,{"$f":"IF($C$504=\"\",\"\",BB504/$C$504)","v":""},null,0]
[null,null,null,null,{"$f":"IF($C$505=\"\",\"\",F505/$C$505)","v":""},null,{"$f":"IF($C$505=\"\",\"\",H505/$C$505)","v":""},null,{"$f":"IF($C$505=\"\",\"\",J505/$C$505)","v":""},null,{"$f":"IF($C$505=\"\",\"\",L505/$C$505)","v":""},null,{"$f":"IF($C$505=\"\",\"\",N505/$C$505)","v":""},null,{"$f":"IF($C$505=\"\",\"\",P505/$C$505)","v":""},null,{"$f":"IF($C$505=\"\",\"\",R505/$C$505)","v":""},null,{"$f":"IF($C$505=\"\",\"\",T505/$C$505)","v":""},null,{"$f":"IF($C$505=\"\",\"\",V505/$C$505)","v":""},null,{"$f":"IF($C$505=\"\",\"\",X505/$C$505)","v":""},null,{"$f":"IF($C$505=\"\",\"\",Z505/$C$505)","v":""},null,{"$f":"IF($C$505=\"\",\"\",AB505/$C$505)","v":""},null,{"$f":"IF($C$505=\"\",\"\",AD505/$C$505)","v":""},null,{"$f":"IF($C$505=\"\",\"\",AF505/$C$505)","v":""},null,{"$f":"IF($C$505=\"\",\"\",AH505/$C$505)","v":""},null,{"$f":"IF($C$505=\"\",\"\",AJ505/$C$505)","v":""},null,{"$f":"IF($C$505=\"\",\"\",AL505/$C$505)","v":""},null,{"$f":"IF($C$505=\"\",\"\",AN505/$C$505)","v":""},null,{"$f":"IF($C$505=\"\",\"\",AP505/$C$505)","v":""},null,{"$f":"IF($C$505=\"\",\"\",AR505/$C$505)","v":""},null,{"$f":"IF($C$505=\"\",\"\",AT505/$C$505)","v":""},null,{"$f":"IF($C$505=\"\",\"\",AV505/$C$505)","v":""},null,{"$f":"IF($C$505=\"\",\"\",AX505/$C$505)","v":""},null,{"$f":"IF($C$505=\"\",\"\",AZ505/$C$505)","v":""},null,{"$f":"IF($C$505=\"\",\"\",BB505/$C$505)","v":""},null,0]
[null,null,null,null,{"$f":"IF($C$506=\"\",\"\",F506/$C$506)","v":""},null,{"$f":"IF($C$506=\"\",\"\",H506/$C$506)","v":""},null,{"$f":"IF($C$506=\"\",\"\",J506/$C$506)","v":""},null,{"$f":"IF($C$506=\"\",\"\",L506/$C$506)","v":""},null,{"$f":"IF($C$506=\"\",\"\",N506/$C$506)","v":""},null,{"$f":"IF($C$506=\"\",\"\",P506/$C$506)","v":""},null,{"$f":"IF($C$506=\"\",\"\",R506/$C$506)","v":""},null,{"$f":"IF($C$506=\"\",\"\",T506/$C$506)","v":""},null,{"$f":"IF($C$506=\"\",\"\",V506/$C$506)","v":""},null,{"$f":"IF($C$506=\"\",\"\",X506/$C$506)","v":""},null,{"$f":"IF($C$506=\"\",\"\",Z506/$C$506)","v":""},null,{"$f":"IF($C$506=\"\",\"\",AB506/$C$506)","v":""},null,{"$f":"IF($C$506=\"\",\"\",AD506/$C$506)","v":""},null,{"$f":"IF($C$506=\"\",\"\",AF506/$C$506)","v":""},null,{"$f":"IF($C$506=\"\",\"\",AH506/$C$506)","v":""},null,{"$f":"IF($C$506=\"\",\"\",AJ506/$C$506)","v":""},null,{"$f":"IF($C$506=\"\",\"\",AL506/$C$506)","v":""},null,{"$f":"IF($C$506=\"\",\"\",AN506/$C$506)","v":""},null,{"$f":"IF($C$506=\"\",\"\",AP506/$C$506)","v":""},null,{"$f":"IF($C$506=\"\",\"\",AR506/$C$506)","v":""},null,{"$f":"IF($C$506=\"\",\"\",AT506/$C$506)","v":""},null,{"$f":"IF($C$506=\"\",\"\",AV506/$C$506)","v":""},null,{"$f":"IF($C$506=\"\",\"\",AX506/$C$506)","v":""},null,{"$f":"IF($C$506=\"\",\"\",AZ506/$C$506)","v":""},null,{"$f":"IF($C$506=\"\",\"\",BB506/$C$506)","v":""},null,0]
[null,null,null,null,{"$f":"IF($C$507=\"\",\"\",F507/$C$507)","v":""},null,{"$f":"IF($C$507=\"\",\"\",H507/$C$507)","v":""},null,{"$f":"IF($C$507=\"\",\"\",J507/$C$507)","v":""},null,{"$f":"IF($C$507=\"\",\"\",L507/$C$507)","v":""},null,{"$f":"IF($C$507=\"\",\"\",N507/$C$507)","v":""},null,{"$f":"IF($C$507=\"\",\"\",P507/$C$507)","v":""},null,{"$f":"IF($C$507=\"\",\"\",R507/$C$507)","v":""},null,{"$f":"IF($C$507=\"\",\"\",T507/$C$507)","v":""},null,{"$f":"IF($C$507=\"\",\"\",V507/$C$507)","v":""},null,{"$f":"IF($C$507=\"\",\"\",X507/$C$507)","v":""},null,{"$f":"IF($C$507=\"\",\"\",Z507/$C$507)","v":""},null,{"$f":"IF($C$507=\"\",\"\",AB507/$C$507)","v":""},null,{"$f":"IF($C$507=\"\",\"\",AD507/$C$507)","v":""},null,{"$f":"IF($C$507=\"\",\"\",AF507/$C$507)","v":""},null,{"$f":"IF($C$507=\"\",\"\",AH507/$C$507)","v":""},null,{"$f":"IF($C$507=\"\",\"\",AJ507/$C$507)","v":""},null,{"$f":"IF($C$507=\"\",\"\",AL507/$C$507)","v":""},null,{"$f":"IF($C$507=\"\",\"\",AN507/$C$507)","v":""},null,{"$f":"IF($C$507=\"\",\"\",AP507/$C$507)","v":""},null,{"$f":"IF($C$507=\"\",\"\",AR507/$C$507)","v":""},null,{"$f":"IF($C$507=\"\",\"\",AT507/$C$507)","v":""},null,{"$f":"IF($C$507=\"\",\"\",AV507/$C$507)","v":""},null,{"$f":"IF($C$507=\"\",\"\",AX507/$C$507)","v":""},null,{"$f":"IF($C$507=\"\",\"\",AZ507/$C$507)","v":""},null,{"$f":"IF($C$507=\"\",\"\",BB507/$C$507)","v":""},null,{"$f":"SUM(BB507,AZ507,AX507,AV507,AT507,AR507,AP507,AN507,AL507,AJ507,AH507,AF507,AD507,AB507,Z507,X507,V507,T507,R507,P507,N507,L507,J507,H507,F507)","v":0}]
["TOTAL HOURS",null,null,null,null,{"$f":"SUM(F478:F507)","v":0},null,{"$f":"SUM(H478:H507)","v":0},null,{"$f":"SUM(J478:J507)","v":0},null,{"$f":"SUM(L478:L507)","v":0},null,{"$f":"SUM(N478:N507)","v":0},null,{"$f":"SUM(P478:P507)","v":0},null,{"$f":"SUM(R478:R507)","v":0},null,{"$f":"SUM(T478:T507)","v":0},null,{"$f":"SUM(V478:V507)","v":0},null,{"$f":"SUM(X478:X507)","v":0},null,{"$f":"SUM(Z478:Z507)","v":0},null,{"$f":"SUM(AB478:AB507)","v":0},null,{"$f":"SUM(AD478:AD507)","v":0},null,{"$f":"SUM(AF478:AF507)","v":0},null,{"$f":"SUM(AH478:AH507)","v":0},null,{"$f":"SUM(AJ478:AJ507)","v":0},null,{"$f":"SUM(AL478:AL507)","v":0},null,{"$f":"SUM(AN478:AN507)","v":0},null,{"$f":"SUM(AP478:AP507)","v":0},null,{"$f":"SUM(AR478:AR507)","v":0},null,{"$f":"SUM(AT478:AT507)","v":0},null,{"$f":"SUM(AV478:AV507)","v":0},null,{"$f":"SUM(AX478:AX507)","v":0},null,{"$f":"SUM(AZ478:AZ507)","v":0},null,{"$f":"SUM(BB478:BB507)","v":0},{"$f":"SUM(E508:BB508)","v":0}]
["TOTAL WORKDAYS",null,null,null,null,{"$f":"F508/8","v":0},null,{"$f":"H508/8","v":0},null,{"$f":"J508/8","v":0},null,{"$f":"L508/8","v":0},null,{"$f":"N508/8","v":0},null,{"$f":"P508/8","v":0},null,{"$f":"R508/8","v":0},null,{"$f":"T508/8","v":0},null,{"$f":"V508/8","v":0},null,{"$f":"X508/8","v":0},null,{"$f":"Z508/8","v":0},null,{"$f":"AB508/8","v":0},null,{"$f":"AD508/8","v":0},null,0,null,{"$f":"AH508/8","v":0},null,0,null,{"$f":"AL508/8","v":0},null,0,null,{"$f":"AP508/8","v":0},null,0,null,{"$f":"AT508/8","v":0},null,{"$f":"AV508/8","v":0},null,{"$f":"AX508/8","v":0},null,{"$f":"AZ508/8","v":0},null,{"$f":"BB508/8","v":0},{"$f":"SUM(E509:BB509)","v":0}]
["TOTAL RAW LABOR",null,null,null,null,{"$f":"$E$13*F508","v":0},null,{"$f":"$G$13*H508","v":0},null,{"$f":"$I$13*J508","v":0},null,{"$f":"$K$13*L508","v":0},null,{"$f":"$M$13*N508","v":0},null,{"$f":"$O$13*P508","v":0},null,{"$f":"$Q$13*R508","v":0},null,{"$f":"$S$13*T508","v":0},null,{"$f":"$U$13*V508","v":0},null,{"$f":"$W$13*X508","v":0},null,{"$f":"$Y$13*Z508","v":0},null,{"$f":"$AA$13*AB508","v":0},null,{"$f":"$AC$13*AD508","v":0},null,{"$f":"$AC$13*AF508","v":0},null,{"$f":"$AC$13*AH508","v":0},null,{"$f":"$AC$13*AJ508","v":0},null,{"$f":"$AC$13*AL508","v":0},null,{"$f":"$AC$13*AN508","v":0},null,{"$f":"$AC$13*AP508","v":0},null,{"$f":"$AC$13*AR508","v":0},null,{"$f":"$AC$13*AT508","v":0},null,{"$f":"$AC$13*AV508","v":0},null,{"$f":"$AC$13*AX508","v":0},null,{"$f":"$AC$13*AZ508","v":0},null,{"$f":"$AC$13*BB508","v":0},{"$f":"SUM(E510:BB510)","v":0}]
["Task 19.0     ","REPLACE FIELD WITH CATEGORY NAME OF YOUR CHOOSING HERE",null,null,null,null,null,null,null,null,null,null,null,null,null,null,null,null,null,null,null,null,null,null,null,null,null,null,null,null,null,null,null,null,null,null,null,null,null,null,null,null,null,null,null,null,null,null,null,null,null,null,null,null,{"$f":"IF(B511=\"REPLACE FIELD WITH CATEGORY NAME OF YOUR CHOOSING HERE\",0,\"\")","v":0}]
[null,null,null,null,{"$f":"IF($C$512=\"\",\"\",F512/$C$512)","v":""},null,{"$f":"IF($C$512=\"\",\"\",H512/$C$512)","v":""},null,{"$f":"IF($C$512=\"\",\"\",J512/$C$512)","v":""},null,{"$f":"IF($C$512=\"\",\"\",L512/$C$512)","v":""},null,{"$f":"IF($C$512=\"\",\"\",N512/$C$512)","v":""},null,{"$f":"IF($C$512=\"\",\"\",P512/$C$512)","v":""},null,{"$f":"IF($C$512=\"\",\"\",R512/$C$512)","v":""},null,{"$f":"IF($C$512=\"\",\"\",T512/$C$512)","v":""},null,{"$f":"IF($C$512=\"\",\"\",V512/$C$512)","v":""},null,{"$f":"IF($C$512=\"\",\"\",X512/$C$512)","v":""},null,{"$f":"IF($C$512=\"\",\"\",Z512/$C$512)","v":""},null,{"$f":"IF($C$512=\"\",\"\",AB512/$C$512)","v":""},null,{"$f":"IF($C$512=\"\",\"\",AD512/$C$512)","v":""},null,{"$f":"IF($C$512=\"\",\"\",AF512/$C$512)","v":""},null,{"$f":"IF($C$512=\"\",\"\",AH512/$C$512)","v":""},null,{"$f":"IF($C$512=\"\",\"\",AJ512/$C$512)","v":""},null,{"$f":"IF($C$512=\"\",\"\",AL512/$C$512)","v":""},null,{"$f":"IF($C$512=\"\",\"\",AN512/$C$512)","v":""},null,{"$f":"IF($C$512=\"\",\"\",AP512/$C$512)","v":""},null,{"$f":"IF($C$512=\"\",\"\",AR512/$C$512)","v":""},null,{"$f":"IF($C$512=\"\",\"\",AT512/$C$512)","v":""},null,{"$f":"IF($C$512=\"\",\"\",AV512/$C$512)","v":""},null,{"$f":"IF($C$512=\"\",\"\",AX512/$C$512)","v":""},null,{"$f":"IF($C$512=\"\",\"\",AZ512/$C$512)","v":""},null,{"$f":"IF($C$512=\"\",\"\",BB512/$C$512)","v":""},null,{"$f":"SUM(BB512,AZ512,AX512,AV512,AT512,AR512,AP512,AN512,AL512,AJ512,AH512,AF512,AD512,AB512,Z512,X512,V512,T512,R512,P512,N512,L512,J512,H512,F512)","v":0}]
[null,null,null,null,{"$f":"IF($C$513=\"\",\"\",F513/$C$513)","v":""},null,{"$f":"IF($C$513=\"\",\"\",H513/$C$513)","v":""},null,{"$f":"IF($C$513=\"\",\"\",J513/$C$513)","v":""},null,{"$f":"IF($C$513=\"\",\"\",L513/$C$513)","v":""},null,{"$f":"IF($C$513=\"\",\"\",N513/$C$513)","v":""},null,{"$f":"IF($C$513=\"\",\"\",P513/$C$513)","v":""},null,{"$f":"IF($C$513=\"\",\"\",R513/$C$513)","v":""},null,{"$f":"IF($C$513=\"\",\"\",T513/$C$513)","v":""},null,{"$f":"IF($C$513=\"\",\"\",V513/$C$513)","v":""},null,{"$f":"IF($C$513=\"\",\"\",X513/$C$513)","v":""},null,{"$f":"IF($C$513=\"\",\"\",Z513/$C$513)","v":""},null,{"$f":"IF($C$513=\"\",\"\",AB513/$C$513)","v":""},null,{"$f":"IF($C$513=\"\",\"\",AD513/$C$513)","v":""},null,{"$f":"IF($C$513=\"\",\"\",AF513/$C$513)","v":""},null,{"$f":"IF($C$513=\"\",\"\",AH513/$C$513)","v":""},null,{"$f":"IF($C$513=\"\",\"\",AJ513/$C$513)","v":""},null,{"$f":"IF($C$513=\"\",\"\",AL513/$C$513)","v":""},null,{"$f":"IF($C$513=\"\",\"\",AN513/$C$513)","v":""},null,{"$f":"IF($C$513=\"\",\"\",AP513/$C$513)","v":""},null,{"$f":"IF($C$513=\"\",\"\",AR513/$C$513)","v":""},null,{"$f":"IF($C$513=\"\",\"\",AT513/$C$513)","v":""},null,{"$f":"IF($C$513=\"\",\"\",AV513/$C$513)","v":""},null,{"$f":"IF($C$513=\"\",\"\",AX513/$C$513)","v":""},null,{"$f":"IF($C$513=\"\",\"\",AZ513/$C$513)","v":""},null,{"$f":"IF($C$513=\"\",\"\",BB513/$C$513)","v":""},null,0]
[null,null,null,null,{"$f":"IF($C$514=\"\",\"\",F514/$C$514)","v":""},null,{"$f":"IF($C$514=\"\",\"\",H514/$C$514)","v":""},null,{"$f":"IF($C$514=\"\",\"\",J514/$C$514)","v":""},null,{"$f":"IF($C$514=\"\",\"\",L514/$C$514)","v":""},null,{"$f":"IF($C$514=\"\",\"\",N514/$C$514)","v":""},null,{"$f":"IF($C$514=\"\",\"\",P514/$C$514)","v":""},null,{"$f":"IF($C$514=\"\",\"\",R514/$C$514)","v":""},null,{"$f":"IF($C$514=\"\",\"\",T514/$C$514)","v":""},null,{"$f":"IF($C$514=\"\",\"\",V514/$C$514)","v":""},null,{"$f":"IF($C$514=\"\",\"\",X514/$C$514)","v":""},null,{"$f":"IF($C$514=\"\",\"\",Z514/$C$514)","v":""},null,{"$f":"IF($C$514=\"\",\"\",AB514/$C$514)","v":""},null,{"$f":"IF($C$514=\"\",\"\",AD514/$C$514)","v":""},null,{"$f":"IF($C$514=\"\",\"\",AF514/$C$514)","v":""},null,{"$f":"IF($C$514=\"\",\"\",AH514/$C$514)","v":""},null,{"$f":"IF($C$514=\"\",\"\",AJ514/$C$514)","v":""},null,{"$f":"IF($C$514=\"\",\"\",AL514/$C$514)","v":""},null,{"$f":"IF($C$514=\"\",\"\",AN514/$C$514)","v":""},null,{"$f":"IF($C$514=\"\",\"\",AP514/$C$514)","v":""},null,{"$f":"IF($C$514=\"\",\"\",AR514/$C$514)","v":""},null,{"$f":"IF($C$514=\"\",\"\",AT514/$C$514)","v":""},null,{"$f":"IF($C$514=\"\",\"\",AV514/$C$514)","v":""},null,{"$f":"IF($C$514=\"\",\"\",AX514/$C$514)","v":""},null,{"$f":"IF($C$514=\"\",\"\",AZ514/$C$514)","v":""},null,{"$f":"IF($C$514=\"\",\"\",BB514/$C$514)","v":""},null,0]
[null,null,null,null,{"$f":"IF($C$515=\"\",\"\",F515/$C$515)","v":""},null,{"$f":"IF($C$515=\"\",\"\",H515/$C$515)","v":""},null,{"$f":"IF($C$515=\"\",\"\",J515/$C$515)","v":""},null,{"$f":"IF($C$515=\"\",\"\",L515/$C$515)","v":""},null,{"$f":"IF($C$515=\"\",\"\",N515/$C$515)","v":""},null,{"$f":"IF($C$515=\"\",\"\",P515/$C$515)","v":""},null,{"$f":"IF($C$515=\"\",\"\",R515/$C$515)","v":""},null,{"$f":"IF($C$515=\"\",\"\",T515/$C$515)","v":""},null,{"$f":"IF($C$515=\"\",\"\",V515/$C$515)","v":""},null,{"$f":"IF($C$515=\"\",\"\",X515/$C$515)","v":""},null,{"$f":"IF($C$515=\"\",\"\",Z515/$C$515)","v":""},null,{"$f":"IF($C$515=\"\",\"\",AB515/$C$515)","v":""},null,{"$f":"IF($C$515=\"\",\"\",AD515/$C$515)","v":""},null,{"$f":"IF($C$515=\"\",\"\",AF515/$C$515)","v":""},null,{"$f":"IF($C$515=\"\",\"\",AH515/$C$515)","v":""},null,{"$f":"IF($C$515=\"\",\"\",AJ515/$C$515)","v":""},null,{"$f":"IF($C$515=\"\",\"\",AL515/$C$515)","v":""},null,{"$f":"IF($C$515=\"\",\"\",AN515/$C$515)","v":""},null,{"$f":"IF($C$515=\"\",\"\",AP515/$C$515)","v":""},null,{"$f":"IF($C$515=\"\",\"\",AR515/$C$515)","v":""},null,{"$f":"IF($C$515=\"\",\"\",AT515/$C$515)","v":""},null,{"$f":"IF($C$515=\"\",\"\",AV515/$C$515)","v":""},null,{"$f":"IF($C$515=\"\",\"\",AX515/$C$515)","v":""},null,{"$f":"IF($C$515=\"\",\"\",AZ515/$C$515)","v":""},null,{"$f":"IF($C$515=\"\",\"\",BB515/$C$515)","v":""},null,0]
[null,null,null,null,{"$f":"IF($C$516=\"\",\"\",F516/$C$516)","v":""},null,{"$f":"IF($C$516=\"\",\"\",H516/$C$516)","v":""},null,{"$f":"IF($C$516=\"\",\"\",J516/$C$516)","v":""},null,{"$f":"IF($C$516=\"\",\"\",L516/$C$516)","v":""},null,{"$f":"IF($C$516=\"\",\"\",N516/$C$516)","v":""},null,{"$f":"IF($C$516=\"\",\"\",P516/$C$516)","v":""},null,{"$f":"IF($C$516=\"\",\"\",R516/$C$516)","v":""},null,{"$f":"IF($C$516=\"\",\"\",T516/$C$516)","v":""},null,{"$f":"IF($C$516=\"\",\"\",V516/$C$516)","v":""},null,{"$f":"IF($C$516=\"\",\"\",X516/$C$516)","v":""},null,{"$f":"IF($C$516=\"\",\"\",Z516/$C$516)","v":""},null,{"$f":"IF($C$516=\"\",\"\",AB516/$C$516)","v":""},null,{"$f":"IF($C$516=\"\",\"\",AD516/$C$516)","v":""},null,{"$f":"IF($C$516=\"\",\"\",AF516/$C$516)","v":""},null,{"$f":"IF($C$516=\"\",\"\",AH516/$C$516)","v":""},null,{"$f":"IF($C$516=\"\",\"\",AJ516/$C$516)","v":""},null,{"$f":"IF($C$516=\"\",\"\",AL516/$C$516)","v":""},null,{"$f":"IF($C$516=\"\",\"\",AN516/$C$516)","v":""},null,{"$f":"IF($C$516=\"\",\"\",AP516/$C$516)","v":""},null,{"$f":"IF($C$516=\"\",\"\",AR516/$C$516)","v":""},null,{"$f":"IF($C$516=\"\",\"\",AT516/$C$516)","v":""},null,{"$f":"IF($C$516=\"\",\"\",AV516/$C$516)","v":""},null,{"$f":"IF($C$516=\"\",\"\",AX516/$C$516)","v":""},null,{"$f":"IF($C$516=\"\",\"\",AZ516/$C$516)","v":""},null,{"$f":"IF($C$516=\"\",\"\",BB516/$C$516)","v":""},null,0]
[null,null,null,null,{"$f":"IF($C$517=\"\",\"\",F517/$C$517)","v":""},null,{"$f":"IF($C$517=\"\",\"\",H517/$C$517)","v":""},null,{"$f":"IF($C$517=\"\",\"\",J517/$C$517)","v":""},null,{"$f":"IF($C$517=\"\",\"\",L517/$C$517)","v":""},null,{"$f":"IF($C$517=\"\",\"\",N517/$C$517)","v":""},null,{"$f":"IF($C$517=\"\",\"\",P517/$C$517)","v":""},null,{"$f":"IF($C$517=\"\",\"\",R517/$C$517)","v":""},null,{"$f":"IF($C$517=\"\",\"\",T517/$C$517)","v":""},null,{"$f":"IF($C$517=\"\",\"\",V517/$C$517)","v":""},null,{"$f":"IF($C$517=\"\",\"\",X517/$C$517)","v":""},null,{"$f":"IF($C$517=\"\",\"\",Z517/$C$517)","v":""},null,{"$f":"IF($C$517=\"\",\"\",AB517/$C$517)","v":""},null,{"$f":"IF($C$517=\"\",\"\",AD517/$C$517)","v":""},null,{"$f":"IF($C$517=\"\",\"\",AF517/$C$517)","v":""},null,{"$f":"IF($C$517=\"\",\"\",AH517/$C$517)","v":""},null,{"$f":"IF($C$517=\"\",\"\",AJ517/$C$517)","v":""},null,{"$f":"IF($C$517=\"\",\"\",AL517/$C$517)","v":""},null,{"$f":"IF($C$517=\"\",\"\",AN517/$C$517)","v":""},null,{"$f":"IF($C$517=\"\",\"\",AP517/$C$517)","v":""},null,{"$f":"IF($C$517=\"\",\"\",AR517/$C$517)","v":""},null,{"$f":"IF($C$517=\"\",\"\",AT517/$C$517)","v":""},null,{"$f":"IF($C$517=\"\",\"\",AV517/$C$517)","v":""},null,{"$f":"IF($C$517=\"\",\"\",AX517/$C$517)","v":""},null,{"$f":"IF($C$517=\"\",\"\",AZ517/$C$517)","v":""},null,{"$f":"IF($C$517=\"\",\"\",BB517/$C$517)","v":""},null,0]
[null,null,null,null,{"$f":"IF($C$518=\"\",\"\",F518/$C$518)","v":""},null,{"$f":"IF($C$518=\"\",\"\",H518/$C$518)","v":""},null,{"$f":"IF($C$518=\"\",\"\",J518/$C$518)","v":""},null,{"$f":"IF($C$518=\"\",\"\",L518/$C$518)","v":""},null,{"$f":"IF($C$518=\"\",\"\",N518/$C$518)","v":""},null,{"$f":"IF($C$518=\"\",\"\",P518/$C$518)","v":""},null,{"$f":"IF($C$518=\"\",\"\",R518/$C$518)","v":""},null,{"$f":"IF($C$518=\"\",\"\",T518/$C$518)","v":""},null,{"$f":"IF($C$518=\"\",\"\",V518/$C$518)","v":""},null,{"$f":"IF($C$518=\"\",\"\",X518/$C$518)","v":""},null,{"$f":"IF($C$518=\"\",\"\",Z518/$C$518)","v":""},null,{"$f":"IF($C$518=\"\",\"\",AB518/$C$518)","v":""},null,{"$f":"IF($C$518=\"\",\"\",AD518/$C$518)","v":""},null,{"$f":"IF($C$518=\"\",\"\",AF518/$C$518)","v":""},null,{"$f":"IF($C$518=\"\",\"\",AH518/$C$518)","v":""},null,{"$f":"IF($C$518=\"\",\"\",AJ518/$C$518)","v":""},null,{"$f":"IF($C$518=\"\",\"\",AL518/$C$518)","v":""},null,{"$f":"IF($C$518=\"\",\"\",AN518/$C$518)","v":""},null,{"$f":"IF($C$518=\"\",\"\",AP518/$C$518)","v":""},null,{"$f":"IF($C$518=\"\",\"\",AR518/$C$518)","v":""},null,{"$f":"IF($C$518=\"\",\"\",AT518/$C$518)","v":""},null,{"$f":"IF($C$518=\"\",\"\",AV518/$C$518)","v":""},null,{"$f":"IF($C$518=\"\",\"\",AX518/$C$518)","v":""},null,{"$f":"IF($C$518=\"\",\"\",AZ518/$C$518)","v":""},null,{"$f":"IF($C$518=\"\",\"\",BB518/$C$518)","v":""},null,0]
[null,null,null,null,{"$f":"IF($C$519=\"\",\"\",F519/$C$519)","v":""},null,{"$f":"IF($C$519=\"\",\"\",H519/$C$519)","v":""},null,{"$f":"IF($C$519=\"\",\"\",J519/$C$519)","v":""},null,{"$f":"IF($C$519=\"\",\"\",L519/$C$519)","v":""},null,{"$f":"IF($C$519=\"\",\"\",N519/$C$519)","v":""},null,{"$f":"IF($C$519=\"\",\"\",P519/$C$519)","v":""},null,{"$f":"IF($C$519=\"\",\"\",R519/$C$519)","v":""},null,{"$f":"IF($C$519=\"\",\"\",T519/$C$519)","v":""},null,{"$f":"IF($C$519=\"\",\"\",V519/$C$519)","v":""},null,{"$f":"IF($C$519=\"\",\"\",X519/$C$519)","v":""},null,{"$f":"IF($C$519=\"\",\"\",Z519/$C$519)","v":""},null,{"$f":"IF($C$519=\"\",\"\",AB519/$C$519)","v":""},null,{"$f":"IF($C$519=\"\",\"\",AD519/$C$519)","v":""},null,{"$f":"IF($C$519=\"\",\"\",AF519/$C$519)","v":""},null,{"$f":"IF($C$519=\"\",\"\",AH519/$C$519)","v":""},null,{"$f":"IF($C$519=\"\",\"\",AJ519/$C$519)","v":""},null,{"$f":"IF($C$519=\"\",\"\",AL519/$C$519)","v":""},null,{"$f":"IF($C$519=\"\",\"\",AN519/$C$519)","v":""},null,{"$f":"IF($C$519=\"\",\"\",AP519/$C$519)","v":""},null,{"$f":"IF($C$519=\"\",\"\",AR519/$C$519)","v":""},null,{"$f":"IF($C$519=\"\",\"\",AT519/$C$519)","v":""},null,{"$f":"IF($C$519=\"\",\"\",AV519/$C$519)","v":""},null,{"$f":"IF($C$519=\"\",\"\",AX519/$C$519)","v":""},null,{"$f":"IF($C$519=\"\",\"\",AZ519/$C$519)","v":""},null,{"$f":"IF($C$519=\"\",\"\",BB519/$C$519)","v":""},null,0]
[null,null,null,null,{"$f":"IF($C$520=\"\",\"\",F520/$C$520)","v":""},null,{"$f":"IF($C$520=\"\",\"\",H520/$C$520)","v":""},null,{"$f":"IF($C$520=\"\",\"\",J520/$C$520)","v":""},null,{"$f":"IF($C$520=\"\",\"\",L520/$C$520)","v":""},null,{"$f":"IF($C$520=\"\",\"\",N520/$C$520)","v":""},null,{"$f":"IF($C$520=\"\",\"\",P520/$C$520)","v":""},null,{"$f":"IF($C$520=\"\",\"\",R520/$C$520)","v":""},null,{"$f":"IF($C$520=\"\",\"\",T520/$C$520)","v":""},null,{"$f":"IF($C$520=\"\",\"\",V520/$C$520)","v":""},null,{"$f":"IF($C$520=\"\",\"\",X520/$C$520)","v":""},null,{"$f":"IF($C$520=\"\",\"\",Z520/$C$520)","v":""},null,{"$f":"IF($C$520=\"\",\"\",AB520/$C$520)","v":""},null,{"$f":"IF($C$520=\"\",\"\",AD520/$C$520)","v":""},null,{"$f":"IF($C$520=\"\",\"\",AF520/$C$520)","v":""},null,{"$f":"IF($C$520=\"\",\"\",AH520/$C$520)","v":""},null,{"$f":"IF($C$520=\"\",\"\",AJ520/$C$520)","v":""},null,{"$f":"IF($C$520=\"\",\"\",AL520/$C$520)","v":""},null,{"$f":"IF($C$520=\"\",\"\",AN520/$C$520)","v":""},null,{"$f":"IF($C$520=\"\",\"\",AP520/$C$520)","v":""},null,{"$f":"IF($C$520=\"\",\"\",AR520/$C$520)","v":""},null,{"$f":"IF($C$520=\"\",\"\",AT520/$C$520)","v":""},null,{"$f":"IF($C$520=\"\",\"\",AV520/$C$520)","v":""},null,{"$f":"IF($C$520=\"\",\"\",AX520/$C$520)","v":""},null,{"$f":"IF($C$520=\"\",\"\",AZ520/$C$520)","v":""},null,{"$f":"IF($C$520=\"\",\"\",BB520/$C$520)","v":""},null,0]
[null,null,null,null,{"$f":"IF($C$521=\"\",\"\",F521/$C$521)","v":""},null,{"$f":"IF($C$521=\"\",\"\",H521/$C$521)","v":""},null,{"$f":"IF($C$521=\"\",\"\",J521/$C$521)","v":""},null,{"$f":"IF($C$521=\"\",\"\",L521/$C$521)","v":""},null,{"$f":"IF($C$521=\"\",\"\",N521/$C$521)","v":""},null,{"$f":"IF($C$521=\"\",\"\",P521/$C$521)","v":""},null,{"$f":"IF($C$521=\"\",\"\",R521/$C$521)","v":""},null,{"$f":"IF($C$521=\"\",\"\",T521/$C$521)","v":""},null,{"$f":"IF($C$521=\"\",\"\",V521/$C$521)","v":""},null,{"$f":"IF($C$521=\"\",\"\",X521/$C$521)","v":""},null,{"$f":"IF($C$521=\"\",\"\",Z521/$C$521)","v":""},null,{"$f":"IF($C$521=\"\",\"\",AB521/$C$521)","v":""},null,{"$f":"IF($C$521=\"\",\"\",AD521/$C$521)","v":""},null,{"$f":"IF($C$521=\"\",\"\",AF521/$C$521)","v":""},null,{"$f":"IF($C$521=\"\",\"\",AH521/$C$521)","v":""},null,{"$f":"IF($C$521=\"\",\"\",AJ521/$C$521)","v":""},null,{"$f":"IF($C$521=\"\",\"\",AL521/$C$521)","v":""},null,{"$f":"IF($C$521=\"\",\"\",AN521/$C$521)","v":""},null,{"$f":"IF($C$521=\"\",\"\",AP521/$C$521)","v":""},null,{"$f":"IF($C$521=\"\",\"\",AR521/$C$521)","v":""},null,{"$f":"IF($C$521=\"\",\"\",AT521/$C$521)","v":""},null,{"$f":"IF($C$521=\"\",\"\",AV521/$C$521)","v":""},null,{"$f":"IF($C$521=\"\",\"\",AX521/$C$521)","v":""},null,{"$f":"IF($C$521=\"\",\"\",AZ521/$C$521)","v":""},null,{"$f":"IF($C$521=\"\",\"\",BB521/$C$521)","v":""},null,0]
[null,null,null,null,{"$f":"IF($C$522=\"\",\"\",F522/$C$522)","v":""},null,{"$f":"IF($C$522=\"\",\"\",H522/$C$522)","v":""},null,{"$f":"IF($C$522=\"\",\"\",J522/$C$522)","v":""},null,{"$f":"IF($C$522=\"\",\"\",L522/$C$522)","v":""},null,{"$f":"IF($C$522=\"\",\"\",N522/$C$522)","v":""},null,{"$f":"IF($C$522=\"\",\"\",P522/$C$522)","v":""},null,{"$f":"IF($C$522=\"\",\"\",R522/$C$522)","v":""},null,{"$f":"IF($C$522=\"\",\"\",T522/$C$522)","v":""},null,{"$f":"IF($C$522=\"\",\"\",V522/$C$522)","v":""},null,{"$f":"IF($C$522=\"\",\"\",X522/$C$522)","v":""},null,{"$f":"IF($C$522=\"\",\"\",Z522/$C$522)","v":""},null,{"$f":"IF($C$522=\"\",\"\",AB522/$C$522)","v":""},null,{"$f":"IF($C$522=\"\",\"\",AD522/$C$522)","v":""},null,{"$f":"IF($C$522=\"\",\"\",AF522/$C$522)","v":""},null,{"$f":"IF($C$522=\"\",\"\",AH522/$C$522)","v":""},null,{"$f":"IF($C$522=\"\",\"\",AJ522/$C$522)","v":""},null,{"$f":"IF($C$522=\"\",\"\",AL522/$C$522)","v":""},null,{"$f":"IF($C$522=\"\",\"\",AN522/$C$522)","v":""},null,{"$f":"IF($C$522=\"\",\"\",AP522/$C$522)","v":""},null,{"$f":"IF($C$522=\"\",\"\",AR522/$C$522)","v":""},null,{"$f":"IF($C$522=\"\",\"\",AT522/$C$522)","v":""},null,{"$f":"IF($C$522=\"\",\"\",AV522/$C$522)","v":""},null,{"$f":"IF($C$522=\"\",\"\",AX522/$C$522)","v":""},null,{"$f":"IF($C$522=\"\",\"\",AZ522/$C$522)","v":""},null,{"$f":"IF($C$522=\"\",\"\",BB522/$C$522)","v":""},null,0]
[null,null,null,null,{"$f":"IF($C$523=\"\",\"\",F523/$C$523)","v":""},null,{"$f":"IF($C$523=\"\",\"\",H523/$C$523)","v":""},null,{"$f":"IF($C$523=\"\",\"\",J523/$C$523)","v":""},null,{"$f":"IF($C$523=\"\",\"\",L523/$C$523)","v":""},null,{"$f":"IF($C$523=\"\",\"\",N523/$C$523)","v":""},null,{"$f":"IF($C$523=\"\",\"\",P523/$C$523)","v":""},null,{"$f":"IF($C$523=\"\",\"\",R523/$C$523)","v":""},null,{"$f":"IF($C$523=\"\",\"\",T523/$C$523)","v":""},null,{"$f":"IF($C$523=\"\",\"\",V523/$C$523)","v":""},null,{"$f":"IF($C$523=\"\",\"\",X523/$C$523)","v":""},null,{"$f":"IF($C$523=\"\",\"\",Z523/$C$523)","v":""},null,{"$f":"IF($C$523=\"\",\"\",AB523/$C$523)","v":""},null,{"$f":"IF($C$523=\"\",\"\",AD523/$C$523)","v":""},null,{"$f":"IF($C$523=\"\",\"\",AF523/$C$523)","v":""},null,{"$f":"IF($C$523=\"\",\"\",AH523/$C$523)","v":""},null,{"$f":"IF($C$523=\"\",\"\",AJ523/$C$523)","v":""},null,{"$f":"IF($C$523=\"\",\"\",AL523/$C$523)","v":""},null,{"$f":"IF($C$523=\"\",\"\",AN523/$C$523)","v":""},null,{"$f":"IF($C$523=\"\",\"\",AP523/$C$523)","v":""},null,{"$f":"IF($C$523=\"\",\"\",AR523/$C$523)","v":""},null,{"$f":"IF($C$523=\"\",\"\",AT523/$C$523)","v":""},null,{"$f":"IF($C$523=\"\",\"\",AV523/$C$523)","v":""},null,{"$f":"IF($C$523=\"\",\"\",AX523/$C$523)","v":""},null,{"$f":"IF($C$523=\"\",\"\",AZ523/$C$523)","v":""},null,{"$f":"IF($C$523=\"\",\"\",BB523/$C$523)","v":""},null,0]
[null,null,null,null,{"$f":"IF($C$524=\"\",\"\",F524/$C$524)","v":""},null,{"$f":"IF($C$524=\"\",\"\",H524/$C$524)","v":""},null,{"$f":"IF($C$524=\"\",\"\",J524/$C$524)","v":""},null,{"$f":"IF($C$524=\"\",\"\",L524/$C$524)","v":""},null,{"$f":"IF($C$524=\"\",\"\",N524/$C$524)","v":""},null,{"$f":"IF($C$524=\"\",\"\",P524/$C$524)","v":""},null,{"$f":"IF($C$524=\"\",\"\",R524/$C$524)","v":""},null,{"$f":"IF($C$524=\"\",\"\",T524/$C$524)","v":""},null,{"$f":"IF($C$524=\"\",\"\",V524/$C$524)","v":""},null,{"$f":"IF($C$524=\"\",\"\",X524/$C$524)","v":""},null,{"$f":"IF($C$524=\"\",\"\",Z524/$C$524)","v":""},null,{"$f":"IF($C$524=\"\",\"\",AB524/$C$524)","v":""},null,{"$f":"IF($C$524=\"\",\"\",AD524/$C$524)","v":""},null,{"$f":"IF($C$524=\"\",\"\",AF524/$C$524)","v":""},null,{"$f":"IF($C$524=\"\",\"\",AH524/$C$524)","v":""},null,{"$f":"IF($C$524=\"\",\"\",AJ524/$C$524)","v":""},null,{"$f":"IF($C$524=\"\",\"\",AL524/$C$524)","v":""},null,{"$f":"IF($C$524=\"\",\"\",AN524/$C$524)","v":""},null,{"$f":"IF($C$524=\"\",\"\",AP524/$C$524)","v":""},null,{"$f":"IF($C$524=\"\",\"\",AR524/$C$524)","v":""},null,{"$f":"IF($C$524=\"\",\"\",AT524/$C$524)","v":""},null,{"$f":"IF($C$524=\"\",\"\",AV524/$C$524)","v":""},null,{"$f":"IF($C$524=\"\",\"\",AX524/$C$524)","v":""},null,{"$f":"IF($C$524=\"\",\"\",AZ524/$C$524)","v":""},null,{"$f":"IF($C$524=\"\",\"\",BB524/$C$524)","v":""},null,0]
[null,null,null,null,{"$f":"IF($C$525=\"\",\"\",F525/$C$525)","v":""},null,{"$f":"IF($C$525=\"\",\"\",H525/$C$525)","v":""},null,{"$f":"IF($C$525=\"\",\"\",J525/$C$525)","v":""},null,{"$f":"IF($C$525=\"\",\"\",L525/$C$525)","v":""},null,{"$f":"IF($C$525=\"\",\"\",N525/$C$525)","v":""},null,{"$f":"IF($C$525=\"\",\"\",P525/$C$525)","v":""},null,{"$f":"IF($C$525=\"\",\"\",R525/$C$525)","v":""},null,{"$f":"IF($C$525=\"\",\"\",T525/$C$525)","v":""},null,{"$f":"IF($C$525=\"\",\"\",V525/$C$525)","v":""},null,{"$f":"IF($C$525=\"\",\"\",X525/$C$525)","v":""},null,{"$f":"IF($C$525=\"\",\"\",Z525/$C$525)","v":""},null,{"$f":"IF($C$525=\"\",\"\",AB525/$C$525)","v":""},null,{"$f":"IF($C$525=\"\",\"\",AD525/$C$525)","v":""},null,{"$f":"IF($C$525=\"\",\"\",AF525/$C$525)","v":""},null,{"$f":"IF($C$525=\"\",\"\",AH525/$C$525)","v":""},null,{"$f":"IF($C$525=\"\",\"\",AJ525/$C$525)","v":""},null,{"$f":"IF($C$525=\"\",\"\",AL525/$C$525)","v":""},null,{"$f":"IF($C$525=\"\",\"\",AN525/$C$525)","v":""},null,{"$f":"IF($C$525=\"\",\"\",AP525/$C$525)","v":""},null,{"$f":"IF($C$525=\"\",\"\",AR525/$C$525)","v":""},null,{"$f":"IF($C$525=\"\",\"\",AT525/$C$525)","v":""},null,{"$f":"IF($C$525=\"\",\"\",AV525/$C$525)","v":""},null,{"$f":"IF($C$525=\"\",\"\",AX525/$C$525)","v":""},null,{"$f":"IF($C$525=\"\",\"\",AZ525/$C$525)","v":""},null,{"$f":"IF($C$525=\"\",\"\",BB525/$C$525)","v":""},null,0]
[null,null,null,null,{"$f":"IF($C$526=\"\",\"\",F526/$C$526)","v":""},null,{"$f":"IF($C$526=\"\",\"\",H526/$C$526)","v":""},null,{"$f":"IF($C$526=\"\",\"\",J526/$C$526)","v":""},null,{"$f":"IF($C$526=\"\",\"\",L526/$C$526)","v":""},null,{"$f":"IF($C$526=\"\",\"\",N526/$C$526)","v":""},null,{"$f":"IF($C$526=\"\",\"\",P526/$C$526)","v":""},null,{"$f":"IF($C$526=\"\",\"\",R526/$C$526)","v":""},null,{"$f":"IF($C$526=\"\",\"\",T526/$C$526)","v":""},null,{"$f":"IF($C$526=\"\",\"\",V526/$C$526)","v":""},null,{"$f":"IF($C$526=\"\",\"\",X526/$C$526)","v":""},null,{"$f":"IF($C$526=\"\",\"\",Z526/$C$526)","v":""},null,{"$f":"IF($C$526=\"\",\"\",AB526/$C$526)","v":""},null,{"$f":"IF($C$526=\"\",\"\",AD526/$C$526)","v":""},null,{"$f":"IF($C$526=\"\",\"\",AF526/$C$526)","v":""},null,{"$f":"IF($C$526=\"\",\"\",AH526/$C$526)","v":""},null,{"$f":"IF($C$526=\"\",\"\",AJ526/$C$526)","v":""},null,{"$f":"IF($C$526=\"\",\"\",AL526/$C$526)","v":""},null,{"$f":"IF($C$526=\"\",\"\",AN526/$C$526)","v":""},null,{"$f":"IF($C$526=\"\",\"\",AP526/$C$526)","v":""},null,{"$f":"IF($C$526=\"\",\"\",AR526/$C$526)","v":""},null,{"$f":"IF($C$526=\"\",\"\",AT526/$C$526)","v":""},null,{"$f":"IF($C$526=\"\",\"\",AV526/$C$526)","v":""},null,{"$f":"IF($C$526=\"\",\"\",AX526/$C$526)","v":""},null,{"$f":"IF($C$526=\"\",\"\",AZ526/$C$526)","v":""},null,{"$f":"IF($C$526=\"\",\"\",BB526/$C$526)","v":""},null,0]
[null,null,null,null,{"$f":"IF($C$527=\"\",\"\",F527/$C$527)","v":""},null,{"$f":"IF($C$527=\"\",\"\",H527/$C$527)","v":""},null,{"$f":"IF($C$527=\"\",\"\",J527/$C$527)","v":""},null,{"$f":"IF($C$527=\"\",\"\",L527/$C$527)","v":""},null,{"$f":"IF($C$527=\"\",\"\",N527/$C$527)","v":""},null,{"$f":"IF($C$527=\"\",\"\",P527/$C$527)","v":""},null,{"$f":"IF($C$527=\"\",\"\",R527/$C$527)","v":""},null,{"$f":"IF($C$527=\"\",\"\",T527/$C$527)","v":""},null,{"$f":"IF($C$527=\"\",\"\",V527/$C$527)","v":""},null,{"$f":"IF($C$527=\"\",\"\",X527/$C$527)","v":""},null,{"$f":"IF($C$527=\"\",\"\",Z527/$C$527)","v":""},null,{"$f":"IF($C$527=\"\",\"\",AB527/$C$527)","v":""},null,{"$f":"IF($C$527=\"\",\"\",AD527/$C$527)","v":""},null,{"$f":"IF($C$527=\"\",\"\",AF527/$C$527)","v":""},null,{"$f":"IF($C$527=\"\",\"\",AH527/$C$527)","v":""},null,{"$f":"IF($C$527=\"\",\"\",AJ527/$C$527)","v":""},null,{"$f":"IF($C$527=\"\",\"\",AL527/$C$527)","v":""},null,{"$f":"IF($C$527=\"\",\"\",AN527/$C$527)","v":""},null,{"$f":"IF($C$527=\"\",\"\",AP527/$C$527)","v":""},null,{"$f":"IF($C$527=\"\",\"\",AR527/$C$527)","v":""},null,{"$f":"IF($C$527=\"\",\"\",AT527/$C$527)","v":""},null,{"$f":"IF($C$527=\"\",\"\",AV527/$C$527)","v":""},null,{"$f":"IF($C$527=\"\",\"\",AX527/$C$527)","v":""},null,{"$f":"IF($C$527=\"\",\"\",AZ527/$C$527)","v":""},null,{"$f":"IF($C$527=\"\",\"\",BB527/$C$527)","v":""},null,0]
[null,null,null,null,{"$f":"IF($C$528=\"\",\"\",F528/$C$528)","v":""},null,{"$f":"IF($C$528=\"\",\"\",H528/$C$528)","v":""},null,{"$f":"IF($C$528=\"\",\"\",J528/$C$528)","v":""},null,{"$f":"IF($C$528=\"\",\"\",L528/$C$528)","v":""},null,{"$f":"IF($C$528=\"\",\"\",N528/$C$528)","v":""},null,{"$f":"IF($C$528=\"\",\"\",P528/$C$528)","v":""},null,{"$f":"IF($C$528=\"\",\"\",R528/$C$528)","v":""},null,{"$f":"IF($C$528=\"\",\"\",T528/$C$528)","v":""},null,{"$f":"IF($C$528=\"\",\"\",V528/$C$528)","v":""},null,{"$f":"IF($C$528=\"\",\"\",X528/$C$528)","v":""},null,{"$f":"IF($C$528=\"\",\"\",Z528/$C$528)","v":""},null,{"$f":"IF($C$528=\"\",\"\",AB528/$C$528)","v":""},null,{"$f":"IF($C$528=\"\",\"\",AD528/$C$528)","v":""},null,{"$f":"IF($C$528=\"\",\"\",AF528/$C$528)","v":""},null,{"$f":"IF($C$528=\"\",\"\",AH528/$C$528)","v":""},null,{"$f":"IF($C$528=\"\",\"\",AJ528/$C$528)","v":""},null,{"$f":"IF($C$528=\"\",\"\",AL528/$C$528)","v":""},null,{"$f":"IF($C$528=\"\",\"\",AN528/$C$528)","v":""},null,{"$f":"IF($C$528=\"\",\"\",AP528/$C$528)","v":""},null,{"$f":"IF($C$528=\"\",\"\",AR528/$C$528)","v":""},null,{"$f":"IF($C$528=\"\",\"\",AT528/$C$528)","v":""},null,{"$f":"IF($C$528=\"\",\"\",AV528/$C$528)","v":""},null,{"$f":"IF($C$528=\"\",\"\",AX528/$C$528)","v":""},null,{"$f":"IF($C$528=\"\",\"\",AZ528/$C$528)","v":""},null,{"$f":"IF($C$528=\"\",\"\",BB528/$C$528)","v":""},null,0]
[null,null,null,null,{"$f":"IF($C$529=\"\",\"\",F529/$C$529)","v":""},null,{"$f":"IF($C$529=\"\",\"\",H529/$C$529)","v":""},null,{"$f":"IF($C$529=\"\",\"\",J529/$C$529)","v":""},null,{"$f":"IF($C$529=\"\",\"\",L529/$C$529)","v":""},null,{"$f":"IF($C$529=\"\",\"\",N529/$C$529)","v":""},null,{"$f":"IF($C$529=\"\",\"\",P529/$C$529)","v":""},null,{"$f":"IF($C$529=\"\",\"\",R529/$C$529)","v":""},null,{"$f":"IF($C$529=\"\",\"\",T529/$C$529)","v":""},null,{"$f":"IF($C$529=\"\",\"\",V529/$C$529)","v":""},null,{"$f":"IF($C$529=\"\",\"\",X529/$C$529)","v":""},null,{"$f":"IF($C$529=\"\",\"\",Z529/$C$529)","v":""},null,{"$f":"IF($C$529=\"\",\"\",AB529/$C$529)","v":""},null,{"$f":"IF($C$529=\"\",\"\",AD529/$C$529)","v":""},null,{"$f":"IF($C$529=\"\",\"\",AF529/$C$529)","v":""},null,{"$f":"IF($C$529=\"\",\"\",AH529/$C$529)","v":""},null,{"$f":"IF($C$529=\"\",\"\",AJ529/$C$529)","v":""},null,{"$f":"IF($C$529=\"\",\"\",AL529/$C$529)","v":""},null,{"$f":"IF($C$529=\"\",\"\",AN529/$C$529)","v":""},null,{"$f":"IF($C$529=\"\",\"\",AP529/$C$529)","v":""},null,{"$f":"IF($C$529=\"\",\"\",AR529/$C$529)","v":""},null,{"$f":"IF($C$529=\"\",\"\",AT529/$C$529)","v":""},null,{"$f":"IF($C$529=\"\",\"\",AV529/$C$529)","v":""},null,{"$f":"IF($C$529=\"\",\"\",AX529/$C$529)","v":""},null,{"$f":"IF($C$529=\"\",\"\",AZ529/$C$529)","v":""},null,{"$f":"IF($C$529=\"\",\"\",BB529/$C$529)","v":""},null,0]
[null,null,null,null,{"$f":"IF($C$530=\"\",\"\",F530/$C$530)","v":""},null,{"$f":"IF($C$530=\"\",\"\",H530/$C$530)","v":""},null,{"$f":"IF($C$530=\"\",\"\",J530/$C$530)","v":""},null,{"$f":"IF($C$530=\"\",\"\",L530/$C$530)","v":""},null,{"$f":"IF($C$530=\"\",\"\",N530/$C$530)","v":""},null,{"$f":"IF($C$530=\"\",\"\",P530/$C$530)","v":""},null,{"$f":"IF($C$530=\"\",\"\",R530/$C$530)","v":""},null,{"$f":"IF($C$530=\"\",\"\",T530/$C$530)","v":""},null,{"$f":"IF($C$530=\"\",\"\",V530/$C$530)","v":""},null,{"$f":"IF($C$530=\"\",\"\",X530/$C$530)","v":""},null,{"$f":"IF($C$530=\"\",\"\",Z530/$C$530)","v":""},null,{"$f":"IF($C$530=\"\",\"\",AB530/$C$530)","v":""},null,{"$f":"IF($C$530=\"\",\"\",AD530/$C$530)","v":""},null,{"$f":"IF($C$530=\"\",\"\",AF530/$C$530)","v":""},null,{"$f":"IF($C$530=\"\",\"\",AH530/$C$530)","v":""},null,{"$f":"IF($C$530=\"\",\"\",AJ530/$C$530)","v":""},null,{"$f":"IF($C$530=\"\",\"\",AL530/$C$530)","v":""},null,{"$f":"IF($C$530=\"\",\"\",AN530/$C$530)","v":""},null,{"$f":"IF($C$530=\"\",\"\",AP530/$C$530)","v":""},null,{"$f":"IF($C$530=\"\",\"\",AR530/$C$530)","v":""},null,{"$f":"IF($C$530=\"\",\"\",AT530/$C$530)","v":""},null,{"$f":"IF($C$530=\"\",\"\",AV530/$C$530)","v":""},null,{"$f":"IF($C$530=\"\",\"\",AX530/$C$530)","v":""},null,{"$f":"IF($C$530=\"\",\"\",AZ530/$C$530)","v":""},null,{"$f":"IF($C$530=\"\",\"\",BB530/$C$530)","v":""},null,0]
[null,null,null,null,{"$f":"IF($C$531=\"\",\"\",F531/$C$531)","v":""},null,{"$f":"IF($C$531=\"\",\"\",H531/$C$531)","v":""},null,{"$f":"IF($C$531=\"\",\"\",J531/$C$531)","v":""},null,{"$f":"IF($C$531=\"\",\"\",L531/$C$531)","v":""},null,{"$f":"IF($C$531=\"\",\"\",N531/$C$531)","v":""},null,{"$f":"IF($C$531=\"\",\"\",P531/$C$531)","v":""},null,{"$f":"IF($C$531=\"\",\"\",R531/$C$531)","v":""},null,{"$f":"IF($C$531=\"\",\"\",T531/$C$531)","v":""},null,{"$f":"IF($C$531=\"\",\"\",V531/$C$531)","v":""},null,{"$f":"IF($C$531=\"\",\"\",X531/$C$531)","v":""},null,{"$f":"IF($C$531=\"\",\"\",Z531/$C$531)","v":""},null,{"$f":"IF($C$531=\"\",\"\",AB531/$C$531)","v":""},null,{"$f":"IF($C$531=\"\",\"\",AD531/$C$531)","v":""},null,{"$f":"IF($C$531=\"\",\"\",AF531/$C$531)","v":""},null,{"$f":"IF($C$531=\"\",\"\",AH531/$C$531)","v":""},null,{"$f":"IF($C$531=\"\",\"\",AJ531/$C$531)","v":""},null,{"$f":"IF($C$531=\"\",\"\",AL531/$C$531)","v":""},null,{"$f":"IF($C$531=\"\",\"\",AN531/$C$531)","v":""},null,{"$f":"IF($C$531=\"\",\"\",AP531/$C$531)","v":""},null,{"$f":"IF($C$531=\"\",\"\",AR531/$C$531)","v":""},null,{"$f":"IF($C$531=\"\",\"\",AT531/$C$531)","v":""},null,{"$f":"IF($C$531=\"\",\"\",AV531/$C$531)","v":""},null,{"$f":"IF($C$531=\"\",\"\",AX531/$C$531)","v":""},null,{"$f":"IF($C$531=\"\",\"\",AZ531/$C$531)","v":""},null,{"$f":"IF($C$531=\"\",\"\",BB531/$C$531)","v":""},null,0]
[null,null,null,null,{"$f":"IF($C$532=\"\",\"\",F532/$C$532)","v":""},null,{"$f":"IF($C$532=\"\",\"\",H532/$C$532)","v":""},null,{"$f":"IF($C$532=\"\",\"\",J532/$C$532)","v":""},null,{"$f":"IF($C$532=\"\",\"\",L532/$C$532)","v":""},null,{"$f":"IF($C$532=\"\",\"\",N532/$C$532)","v":""},null,{"$f":"IF($C$532=\"\",\"\",P532/$C$532)","v":""},null,{"$f":"IF($C$532=\"\",\"\",R532/$C$532)","v":""},null,{"$f":"IF($C$532=\"\",\"\",T532/$C$532)","v":""},null,{"$f":"IF($C$532=\"\",\"\",V532/$C$532)","v":""},null,{"$f":"IF($C$532=\"\",\"\",X532/$C$532)","v":""},null,{"$f":"IF($C$532=\"\",\"\",Z532/$C$532)","v":""},null,{"$f":"IF($C$532=\"\",\"\",AB532/$C$532)","v":""},null,{"$f":"IF($C$532=\"\",\"\",AD532/$C$532)","v":""},null,{"$f":"IF($C$532=\"\",\"\",AF532/$C$532)","v":""},null,{"$f":"IF($C$532=\"\",\"\",AH532/$C$532)","v":""},null,{"$f":"IF($C$532=\"\",\"\",AJ532/$C$532)","v":""},null,{"$f":"IF($C$532=\"\",\"\",AL532/$C$532)","v":""},null,{"$f":"IF($C$532=\"\",\"\",AN532/$C$532)","v":""},null,{"$f":"IF($C$532=\"\",\"\",AP532/$C$532)","v":""},null,{"$f":"IF($C$532=\"\",\"\",AR532/$C$532)","v":""},null,{"$f":"IF($C$532=\"\",\"\",AT532/$C$532)","v":""},null,{"$f":"IF($C$532=\"\",\"\",AV532/$C$532)","v":""},null,{"$f":"IF($C$532=\"\",\"\",AX532/$C$532)","v":""},null,{"$f":"IF($C$532=\"\",\"\",AZ532/$C$532)","v":""},null,{"$f":"IF($C$532=\"\",\"\",BB532/$C$532)","v":""},null,0]
[null,null,null,null,{"$f":"IF($C$533=\"\",\"\",F533/$C$533)","v":""},null,{"$f":"IF($C$533=\"\",\"\",H533/$C$533)","v":""},null,{"$f":"IF($C$533=\"\",\"\",J533/$C$533)","v":""},null,{"$f":"IF($C$533=\"\",\"\",L533/$C$533)","v":""},null,{"$f":"IF($C$533=\"\",\"\",N533/$C$533)","v":""},null,{"$f":"IF($C$533=\"\",\"\",P533/$C$533)","v":""},null,{"$f":"IF($C$533=\"\",\"\",R533/$C$533)","v":""},null,{"$f":"IF($C$533=\"\",\"\",T533/$C$533)","v":""},null,{"$f":"IF($C$533=\"\",\"\",V533/$C$533)","v":""},null,{"$f":"IF($C$533=\"\",\"\",X533/$C$533)","v":""},null,{"$f":"IF($C$533=\"\",\"\",Z533/$C$533)","v":""},null,{"$f":"IF($C$533=\"\",\"\",AB533/$C$533)","v":""},null,{"$f":"IF($C$533=\"\",\"\",AD533/$C$533)","v":""},null,{"$f":"IF($C$533=\"\",\"\",AF533/$C$533)","v":""},null,{"$f":"IF($C$533=\"\",\"\",AH533/$C$533)","v":""},null,{"$f":"IF($C$533=\"\",\"\",AJ533/$C$533)","v":""},null,{"$f":"IF($C$533=\"\",\"\",AL533/$C$533)","v":""},null,{"$f":"IF($C$533=\"\",\"\",AN533/$C$533)","v":""},null,{"$f":"IF($C$533=\"\",\"\",AP533/$C$533)","v":""},null,{"$f":"IF($C$533=\"\",\"\",AR533/$C$533)","v":""},null,{"$f":"IF($C$533=\"\",\"\",AT533/$C$533)","v":""},null,{"$f":"IF($C$533=\"\",\"\",AV533/$C$533)","v":""},null,{"$f":"IF($C$533=\"\",\"\",AX533/$C$533)","v":""},null,{"$f":"IF($C$533=\"\",\"\",AZ533/$C$533)","v":""},null,{"$f":"IF($C$533=\"\",\"\",BB533/$C$533)","v":""},null,0]
[null,null,null,null,{"$f":"IF($C$534=\"\",\"\",F534/$C$534)","v":""},null,{"$f":"IF($C$534=\"\",\"\",H534/$C$534)","v":""},null,{"$f":"IF($C$534=\"\",\"\",J534/$C$534)","v":""},null,{"$f":"IF($C$534=\"\",\"\",L534/$C$534)","v":""},null,{"$f":"IF($C$534=\"\",\"\",N534/$C$534)","v":""},null,{"$f":"IF($C$534=\"\",\"\",P534/$C$534)","v":""},null,{"$f":"IF($C$534=\"\",\"\",R534/$C$534)","v":""},null,{"$f":"IF($C$534=\"\",\"\",T534/$C$534)","v":""},null,{"$f":"IF($C$534=\"\",\"\",V534/$C$534)","v":""},null,{"$f":"IF($C$534=\"\",\"\",X534/$C$534)","v":""},null,{"$f":"IF($C$534=\"\",\"\",Z534/$C$534)","v":""},null,{"$f":"IF($C$534=\"\",\"\",AB534/$C$534)","v":""},null,{"$f":"IF($C$534=\"\",\"\",AD534/$C$534)","v":""},null,{"$f":"IF($C$534=\"\",\"\",AF534/$C$534)","v":""},null,{"$f":"IF($C$534=\"\",\"\",AH534/$C$534)","v":""},null,{"$f":"IF($C$534=\"\",\"\",AJ534/$C$534)","v":""},null,{"$f":"IF($C$534=\"\",\"\",AL534/$C$534)","v":""},null,{"$f":"IF($C$534=\"\",\"\",AN534/$C$534)","v":""},null,{"$f":"IF($C$534=\"\",\"\",AP534/$C$534)","v":""},null,{"$f":"IF($C$534=\"\",\"\",AR534/$C$534)","v":""},null,{"$f":"IF($C$534=\"\",\"\",AT534/$C$534)","v":""},null,{"$f":"IF($C$534=\"\",\"\",AV534/$C$534)","v":""},null,{"$f":"IF($C$534=\"\",\"\",AX534/$C$534)","v":""},null,{"$f":"IF($C$534=\"\",\"\",AZ534/$C$534)","v":""},null,{"$f":"IF($C$534=\"\",\"\",BB534/$C$534)","v":""},null,0]
[null,null,null,null,{"$f":"IF($C$535=\"\",\"\",F535/$C$535)","v":""},null,{"$f":"IF($C$535=\"\",\"\",H535/$C$535)","v":""},null,{"$f":"IF($C$535=\"\",\"\",J535/$C$535)","v":""},null,{"$f":"IF($C$535=\"\",\"\",L535/$C$535)","v":""},null,{"$f":"IF($C$535=\"\",\"\",N535/$C$535)","v":""},null,{"$f":"IF($C$535=\"\",\"\",P535/$C$535)","v":""},null,{"$f":"IF($C$535=\"\",\"\",R535/$C$535)","v":""},null,{"$f":"IF($C$535=\"\",\"\",T535/$C$535)","v":""},null,{"$f":"IF($C$535=\"\",\"\",V535/$C$535)","v":""},null,{"$f":"IF($C$535=\"\",\"\",X535/$C$535)","v":""},null,{"$f":"IF($C$535=\"\",\"\",Z535/$C$535)","v":""},null,{"$f":"IF($C$535=\"\",\"\",AB535/$C$535)","v":""},null,{"$f":"IF($C$535=\"\",\"\",AD535/$C$535)","v":""},null,{"$f":"IF($C$535=\"\",\"\",AF535/$C$535)","v":""},null,{"$f":"IF($C$535=\"\",\"\",AH535/$C$535)","v":""},null,{"$f":"IF($C$535=\"\",\"\",AJ535/$C$535)","v":""},null,{"$f":"IF($C$535=\"\",\"\",AL535/$C$535)","v":""},null,{"$f":"IF($C$535=\"\",\"\",AN535/$C$535)","v":""},null,{"$f":"IF($C$535=\"\",\"\",AP535/$C$535)","v":""},null,{"$f":"IF($C$535=\"\",\"\",AR535/$C$535)","v":""},null,{"$f":"IF($C$535=\"\",\"\",AT535/$C$535)","v":""},null,{"$f":"IF($C$535=\"\",\"\",AV535/$C$535)","v":""},null,{"$f":"IF($C$535=\"\",\"\",AX535/$C$535)","v":""},null,{"$f":"IF($C$535=\"\",\"\",AZ535/$C$535)","v":""},null,{"$f":"IF($C$535=\"\",\"\",BB535/$C$535)","v":""},null,0]
[null,null,null,null,{"$f":"IF($C$536=\"\",\"\",F536/$C$536)","v":""},null,{"$f":"IF($C$536=\"\",\"\",H536/$C$536)","v":""},null,{"$f":"IF($C$536=\"\",\"\",J536/$C$536)","v":""},null,{"$f":"IF($C$536=\"\",\"\",L536/$C$536)","v":""},null,{"$f":"IF($C$536=\"\",\"\",N536/$C$536)","v":""},null,{"$f":"IF($C$536=\"\",\"\",P536/$C$536)","v":""},null,{"$f":"IF($C$536=\"\",\"\",R536/$C$536)","v":""},null,{"$f":"IF($C$536=\"\",\"\",T536/$C$536)","v":""},null,{"$f":"IF($C$536=\"\",\"\",V536/$C$536)","v":""},null,{"$f":"IF($C$536=\"\",\"\",X536/$C$536)","v":""},null,{"$f":"IF($C$536=\"\",\"\",Z536/$C$536)","v":""},null,{"$f":"IF($C$536=\"\",\"\",AB536/$C$536)","v":""},null,{"$f":"IF($C$536=\"\",\"\",AD536/$C$536)","v":""},null,{"$f":"IF($C$536=\"\",\"\",AF536/$C$536)","v":""},null,{"$f":"IF($C$536=\"\",\"\",AH536/$C$536)","v":""},null,{"$f":"IF($C$536=\"\",\"\",AJ536/$C$536)","v":""},null,{"$f":"IF($C$536=\"\",\"\",AL536/$C$536)","v":""},null,{"$f":"IF($C$536=\"\",\"\",AN536/$C$536)","v":""},null,{"$f":"IF($C$536=\"\",\"\",AP536/$C$536)","v":""},null,{"$f":"IF($C$536=\"\",\"\",AR536/$C$536)","v":""},null,{"$f":"IF($C$536=\"\",\"\",AT536/$C$536)","v":""},null,{"$f":"IF($C$536=\"\",\"\",AV536/$C$536)","v":""},null,{"$f":"IF($C$536=\"\",\"\",AX536/$C$536)","v":""},null,{"$f":"IF($C$536=\"\",\"\",AZ536/$C$536)","v":""},null,{"$f":"IF($C$536=\"\",\"\",BB536/$C$536)","v":""},null,0]
[null,null,null,null,{"$f":"IF($C$537=\"\",\"\",F537/$C$537)","v":""},null,{"$f":"IF($C$537=\"\",\"\",H537/$C$537)","v":""},null,{"$f":"IF($C$537=\"\",\"\",J537/$C$537)","v":""},null,{"$f":"IF($C$537=\"\",\"\",L537/$C$537)","v":""},null,{"$f":"IF($C$537=\"\",\"\",N537/$C$537)","v":""},null,{"$f":"IF($C$537=\"\",\"\",P537/$C$537)","v":""},null,{"$f":"IF($C$537=\"\",\"\",R537/$C$537)","v":""},null,{"$f":"IF($C$537=\"\",\"\",T537/$C$537)","v":""},null,{"$f":"IF($C$537=\"\",\"\",V537/$C$537)","v":""},null,{"$f":"IF($C$537=\"\",\"\",X537/$C$537)","v":""},null,{"$f":"IF($C$537=\"\",\"\",Z537/$C$537)","v":""},null,{"$f":"IF($C$537=\"\",\"\",AB537/$C$537)","v":""},null,{"$f":"IF($C$537=\"\",\"\",AD537/$C$537)","v":""},null,{"$f":"IF($C$537=\"\",\"\",AF537/$C$537)","v":""},null,{"$f":"IF($C$537=\"\",\"\",AH537/$C$537)","v":""},null,{"$f":"IF($C$537=\"\",\"\",AJ537/$C$537)","v":""},null,{"$f":"IF($C$537=\"\",\"\",AL537/$C$537)","v":""},null,{"$f":"IF($C$537=\"\",\"\",AN537/$C$537)","v":""},null,{"$f":"IF($C$537=\"\",\"\",AP537/$C$537)","v":""},null,{"$f":"IF($C$537=\"\",\"\",AR537/$C$537)","v":""},null,{"$f":"IF($C$537=\"\",\"\",AT537/$C$537)","v":""},null,{"$f":"IF($C$537=\"\",\"\",AV537/$C$537)","v":""},null,{"$f":"IF($C$537=\"\",\"\",AX537/$C$537)","v":""},null,{"$f":"IF($C$537=\"\",\"\",AZ537/$C$537)","v":""},null,{"$f":"IF($C$537=\"\",\"\",BB537/$C$537)","v":""},null,0]
[null,null,null,null,{"$f":"IF($C$538=\"\",\"\",F538/$C$538)","v":""},null,{"$f":"IF($C$538=\"\",\"\",H538/$C$538)","v":""},null,{"$f":"IF($C$538=\"\",\"\",J538/$C$538)","v":""},null,{"$f":"IF($C$538=\"\",\"\",L538/$C$538)","v":""},null,{"$f":"IF($C$538=\"\",\"\",N538/$C$538)","v":""},null,{"$f":"IF($C$538=\"\",\"\",P538/$C$538)","v":""},null,{"$f":"IF($C$538=\"\",\"\",R538/$C$538)","v":""},null,{"$f":"IF($C$538=\"\",\"\",T538/$C$538)","v":""},null,{"$f":"IF($C$538=\"\",\"\",V538/$C$538)","v":""},null,{"$f":"IF($C$538=\"\",\"\",X538/$C$538)","v":""},null,{"$f":"IF($C$538=\"\",\"\",Z538/$C$538)","v":""},null,{"$f":"IF($C$538=\"\",\"\",AB538/$C$538)","v":""},null,{"$f":"IF($C$538=\"\",\"\",AD538/$C$538)","v":""},null,{"$f":"IF($C$538=\"\",\"\",AF538/$C$538)","v":""},null,{"$f":"IF($C$538=\"\",\"\",AH538/$C$538)","v":""},null,{"$f":"IF($C$538=\"\",\"\",AJ538/$C$538)","v":""},null,{"$f":"IF($C$538=\"\",\"\",AL538/$C$538)","v":""},null,{"$f":"IF($C$538=\"\",\"\",AN538/$C$538)","v":""},null,{"$f":"IF($C$538=\"\",\"\",AP538/$C$538)","v":""},null,{"$f":"IF($C$538=\"\",\"\",AR538/$C$538)","v":""},null,{"$f":"IF($C$538=\"\",\"\",AT538/$C$538)","v":""},null,{"$f":"IF($C$538=\"\",\"\",AV538/$C$538)","v":""},null,{"$f":"IF($C$538=\"\",\"\",AX538/$C$538)","v":""},null,{"$f":"IF($C$538=\"\",\"\",AZ538/$C$538)","v":""},null,{"$f":"IF($C$538=\"\",\"\",BB538/$C$538)","v":""},null,0]
[null,null,null,null,{"$f":"IF($C$539=\"\",\"\",F539/$C$539)","v":""},null,{"$f":"IF($C$539=\"\",\"\",H539/$C$539)","v":""},null,{"$f":"IF($C$539=\"\",\"\",J539/$C$539)","v":""},null,{"$f":"IF($C$539=\"\",\"\",L539/$C$539)","v":""},null,{"$f":"IF($C$539=\"\",\"\",N539/$C$539)","v":""},null,{"$f":"IF($C$539=\"\",\"\",P539/$C$539)","v":""},null,{"$f":"IF($C$539=\"\",\"\",R539/$C$539)","v":""},null,{"$f":"IF($C$539=\"\",\"\",T539/$C$539)","v":""},null,{"$f":"IF($C$539=\"\",\"\",V539/$C$539)","v":""},null,{"$f":"IF($C$539=\"\",\"\",X539/$C$539)","v":""},null,{"$f":"IF($C$539=\"\",\"\",Z539/$C$539)","v":""},null,{"$f":"IF($C$539=\"\",\"\",AB539/$C$539)","v":""},null,{"$f":"IF($C$539=\"\",\"\",AD539/$C$539)","v":""},null,{"$f":"IF($C$539=\"\",\"\",AF539/$C$539)","v":""},null,{"$f":"IF($C$539=\"\",\"\",AH539/$C$539)","v":""},null,{"$f":"IF($C$539=\"\",\"\",AJ539/$C$539)","v":""},null,{"$f":"IF($C$539=\"\",\"\",AL539/$C$539)","v":""},null,{"$f":"IF($C$539=\"\",\"\",AN539/$C$539)","v":""},null,{"$f":"IF($C$539=\"\",\"\",AP539/$C$539)","v":""},null,{"$f":"IF($C$539=\"\",\"\",AR539/$C$539)","v":""},null,{"$f":"IF($C$539=\"\",\"\",AT539/$C$539)","v":""},null,{"$f":"IF($C$539=\"\",\"\",AV539/$C$539)","v":""},null,{"$f":"IF($C$539=\"\",\"\",AX539/$C$539)","v":""},null,{"$f":"IF($C$539=\"\",\"\",AZ539/$C$539)","v":""},null,{"$f":"IF($C$539=\"\",\"\",BB539/$C$539)","v":""},null,0]
[null,null,null,null,{"$f":"IF($C$540=\"\",\"\",F540/$C$540)","v":""},null,{"$f":"IF($C$540=\"\",\"\",H540/$C$540)","v":""},null,{"$f":"IF($C$540=\"\",\"\",J540/$C$540)","v":""},null,{"$f":"IF($C$540=\"\",\"\",L540/$C$540)","v":""},null,{"$f":"IF($C$540=\"\",\"\",N540/$C$540)","v":""},null,{"$f":"IF($C$540=\"\",\"\",P540/$C$540)","v":""},null,{"$f":"IF($C$540=\"\",\"\",R540/$C$540)","v":""},null,{"$f":"IF($C$540=\"\",\"\",T540/$C$540)","v":""},null,{"$f":"IF($C$540=\"\",\"\",V540/$C$540)","v":""},null,{"$f":"IF($C$540=\"\",\"\",X540/$C$540)","v":""},null,{"$f":"IF($C$540=\"\",\"\",Z540/$C$540)","v":""},null,{"$f":"IF($C$540=\"\",\"\",AB540/$C$540)","v":""},null,{"$f":"IF($C$540=\"\",\"\",AD540/$C$540)","v":""},null,{"$f":"IF($C$540=\"\",\"\",AF540/$C$540)","v":""},null,{"$f":"IF($C$540=\"\",\"\",AH540/$C$540)","v":""},null,{"$f":"IF($C$540=\"\",\"\",AJ540/$C$540)","v":""},null,{"$f":"IF($C$540=\"\",\"\",AL540/$C$540)","v":""},null,{"$f":"IF($C$540=\"\",\"\",AN540/$C$540)","v":""},null,{"$f":"IF($C$540=\"\",\"\",AP540/$C$540)","v":""},null,{"$f":"IF($C$540=\"\",\"\",AR540/$C$540)","v":""},null,{"$f":"IF($C$540=\"\",\"\",AT540/$C$540)","v":""},null,{"$f":"IF($C$540=\"\",\"\",AV540/$C$540)","v":""},null,{"$f":"IF($C$540=\"\",\"\",AX540/$C$540)","v":""},null,{"$f":"IF($C$540=\"\",\"\",AZ540/$C$540)","v":""},null,{"$f":"IF($C$540=\"\",\"\",BB540/$C$540)","v":""},null,0]
[null,null,null,null,{"$f":"IF($C$541=\"\",\"\",F541/$C$541)","v":""},null,{"$f":"IF($C$541=\"\",\"\",H541/$C$541)","v":""},null,{"$f":"IF($C$541=\"\",\"\",J541/$C$541)","v":""},null,{"$f":"IF($C$541=\"\",\"\",L541/$C$541)","v":""},null,{"$f":"IF($C$541=\"\",\"\",N541/$C$541)","v":""},null,{"$f":"IF($C$541=\"\",\"\",P541/$C$541)","v":""},null,{"$f":"IF($C$541=\"\",\"\",R541/$C$541)","v":""},null,{"$f":"IF($C$541=\"\",\"\",T541/$C$541)","v":""},null,{"$f":"IF($C$541=\"\",\"\",V541/$C$541)","v":""},null,{"$f":"IF($C$541=\"\",\"\",X541/$C$541)","v":""},null,{"$f":"IF($C$541=\"\",\"\",Z541/$C$541)","v":""},null,{"$f":"IF($C$541=\"\",\"\",AB541/$C$541)","v":""},null,{"$f":"IF($C$541=\"\",\"\",AD541/$C$541)","v":""},null,{"$f":"IF($C$541=\"\",\"\",AF541/$C$541)","v":""},null,{"$f":"IF($C$541=\"\",\"\",AH541/$C$541)","v":""},null,{"$f":"IF($C$541=\"\",\"\",AJ541/$C$541)","v":""},null,{"$f":"IF($C$541=\"\",\"\",AL541/$C$541)","v":""},null,{"$f":"IF($C$541=\"\",\"\",AN541/$C$541)","v":""},null,{"$f":"IF($C$541=\"\",\"\",AP541/$C$541)","v":""},null,{"$f":"IF($C$541=\"\",\"\",AR541/$C$541)","v":""},null,{"$f":"IF($C$541=\"\",\"\",AT541/$C$541)","v":""},null,{"$f":"IF($C$541=\"\",\"\",AV541/$C$541)","v":""},null,{"$f":"IF($C$541=\"\",\"\",AX541/$C$541)","v":""},null,{"$f":"IF($C$541=\"\",\"\",AZ541/$C$541)","v":""},null,{"$f":"IF($C$541=\"\",\"\",BB541/$C$541)","v":""},null,{"$f":"SUM(BB541,AZ541,AX541,AV541,AT541,AR541,AP541,AN541,AL541,AJ541,AH541,AF541,AD541,AB541,Z541,X541,V541,T541,R541,P541,N541,L541,J541,H541,F541)","v":0}]
["TOTAL HOURS",null,null,null,null,{"$f":"SUM(F512:F541)","v":0},null,{"$f":"SUM(H512:H541)","v":0},null,{"$f":"SUM(J512:J541)","v":0},null,{"$f":"SUM(L512:L541)","v":0},null,{"$f":"SUM(N512:N541)","v":0},null,{"$f":"SUM(P512:P541)","v":0},null,{"$f":"SUM(R512:R541)","v":0},null,{"$f":"SUM(T512:T541)","v":0},null,{"$f":"SUM(V512:V541)","v":0},null,{"$f":"SUM(X512:X541)","v":0},null,{"$f":"SUM(Z512:Z541)","v":0},null,{"$f":"SUM(AB512:AB541)","v":0},null,{"$f":"SUM(AD512:AD541)","v":0},null,{"$f":"SUM(AF512:AF541)","v":0},null,{"$f":"SUM(AH512:AH541)","v":0},null,{"$f":"SUM(AJ512:AJ541)","v":0},null,{"$f":"SUM(AL512:AL541)","v":0},null,{"$f":"SUM(AN512:AN541)","v":0},null,{"$f":"SUM(AP512:AP541)","v":0},null,{"$f":"SUM(AR512:AR541)","v":0},null,{"$f":"SUM(AT512:AT541)","v":0},null,{"$f":"SUM(AV512:AV541)","v":0},null,{"$f":"SUM(AX512:AX541)","v":0},null,{"$f":"SUM(AZ512:AZ541)","v":0},null,{"$f":"SUM(BB512:BB541)","v":0},{"$f":"SUM(E542:BB542)","v":0}]
["TOTAL WORKDAYS",null,null,null,null,{"$f":"F542/8","v":0},null,{"$f":"H542/8","v":0},null,{"$f":"J542/8","v":0},null,{"$f":"L542/8","v":0},null,{"$f":"N542/8","v":0},null,{"$f":"P542/8","v":0},null,{"$f":"R542/8","v":0},null,{"$f":"T542/8","v":0},null,{"$f":"V542/8","v":0},null,{"$f":"X542/8","v":0},null,{"$f":"Z542/8","v":0},null,{"$f":"AB542/8","v":0},null,{"$f":"AD542/8","v":0},null,0,null,{"$f":"AH542/8","v":0},null,0,null,{"$f":"AL542/8","v":0},null,0,null,{"$f":"AP542/8","v":0},null,0,null,{"$f":"AT542/8","v":0},null,{"$f":"AV542/8","v":0},null,{"$f":"AX542/8","v":0},null,{"$f":"AZ542/8","v":0},null,{"$f":"BB542/8","v":0},{"$f":"SUM(E543:BB543)","v":0}]
["TOTAL RAW LABOR",null,null,null,null,{"$f":"$E$13*F542","v":0},null,{"$f":"$G$13*H542","v":0},null,{"$f":"$I$13*J542","v":0},null,{"$f":"$K$13*L542","v":0},null,{"$f":"$M$13*N542","v":0},null,{"$f":"$O$13*P542","v":0},null,{"$f":"$Q$13*R542","v":0},null,{"$f":"$S$13*T542","v":0},null,{"$f":"$U$13*V542","v":0},null,{"$f":"$W$13*X542","v":0},null,{"$f":"$Y$13*Z542","v":0},null,{"$f":"$AA$13*AB542","v":0},null,{"$f":"$AC$13*AD542","v":0},null,{"$f":"$AC$13*AF542","v":0},null,{"$f":"$AC$13*AH542","v":0},null,{"$f":"$AC$13*AJ542","v":0},null,{"$f":"$AC$13*AL542","v":0},null,{"$f":"$AC$13*AN542","v":0},null,{"$f":"$AC$13*AP542","v":0},null,{"$f":"$AC$13*AR542","v":0},null,{"$f":"$AC$13*AT542","v":0},null,{"$f":"$AC$13*AV542","v":0},null,{"$f":"$AC$13*AX542","v":0},null,{"$f":"$AC$13*AZ542","v":0},null,{"$f":"$AC$13*BB542","v":0},{"$f":"SUM(E544:BB544)","v":0}]
["Task 20.0     ","REPLACE FIELD WITH CATEGORY NAME OF YOUR CHOOSING HERE",null,null,null,null,null,null,null,null,null,null,null,null,null,null,null,null,null,null,null,null,null,null,null,null,null,null,null,null,null,null,null,null,null,null,null,null,null,null,null,null,null,null,null,null,null,null,null,null,null,null,null,null,{"$f":"IF(B545=\"REPLACE FIELD WITH CATEGORY NAME OF YOUR CHOOSING HERE\",0,\"\")","v":0}]
[null,null,null,null,{"$f":"IF($C$546=\"\",\"\",F546/$C$546)","v":""},null,{"$f":"IF($C$546=\"\",\"\",H546/$C$546)","v":""},null,{"$f":"IF($C$546=\"\",\"\",J546/$C$546)","v":""},null,{"$f":"IF($C$546=\"\",\"\",L546/$C$546)","v":""},null,{"$f":"IF($C$546=\"\",\"\",N546/$C$546)","v":""},null,{"$f":"IF($C$546=\"\",\"\",P546/$C$546)","v":""},null,{"$f":"IF($C$546=\"\",\"\",R546/$C$546)","v":""},null,{"$f":"IF($C$546=\"\",\"\",T546/$C$546)","v":""},null,{"$f":"IF($C$546=\"\",\"\",V546/$C$546)","v":""},null,{"$f":"IF($C$546=\"\",\"\",X546/$C$546)","v":""},null,{"$f":"IF($C$546=\"\",\"\",Z546/$C$546)","v":""},null,{"$f":"IF($C$546=\"\",\"\",AB546/$C$546)","v":""},null,{"$f":"IF($C$546=\"\",\"\",AD546/$C$546)","v":""},null,{"$f":"IF($C$546=\"\",\"\",AF546/$C$546)","v":""},null,{"$f":"IF($C$546=\"\",\"\",AH546/$C$546)","v":""},null,{"$f":"IF($C$546=\"\",\"\",AJ546/$C$546)","v":""},null,{"$f":"IF($C$546=\"\",\"\",AL546/$C$546)","v":""},null,{"$f":"IF($C$546=\"\",\"\",AN546/$C$546)","v":""},null,{"$f":"IF($C$546=\"\",\"\",AP546/$C$546)","v":""},null,{"$f":"IF($C$546=\"\",\"\",AR546/$C$546)","v":""},null,{"$f":"IF($C$546=\"\",\"\",AT546/$C$546)","v":""},null,{"$f":"IF($C$546=\"\",\"\",AV546/$C$546)","v":""},null,{"$f":"IF($C$546=\"\",\"\",AX546/$C$546)","v":""},null,{"$f":"IF($C$546=\"\",\"\",AZ546/$C$546)","v":""},null,{"$f":"IF($C$546=\"\",\"\",BB546/$C$546)","v":""},null,{"$f":"SUM(BB546,AZ546,AX546,AV546,AT546,AR546,AP546,AN546,AL546,AJ546,AH546,AF546,AD546,AB546,Z546,X546,V546,T546,R546,P546,N546,L546,J546,H546,F546)","v":0}]
[null,null,null,null,{"$f":"IF($C$547=\"\",\"\",F547/$C$547)","v":""},null,{"$f":"IF($C$547=\"\",\"\",H547/$C$547)","v":""},null,{"$f":"IF($C$547=\"\",\"\",J547/$C$547)","v":""},null,{"$f":"IF($C$547=\"\",\"\",L547/$C$547)","v":""},null,{"$f":"IF($C$547=\"\",\"\",N547/$C$547)","v":""},null,{"$f":"IF($C$547=\"\",\"\",P547/$C$547)","v":""},null,{"$f":"IF($C$547=\"\",\"\",R547/$C$547)","v":""},null,{"$f":"IF($C$547=\"\",\"\",T547/$C$547)","v":""},null,{"$f":"IF($C$547=\"\",\"\",V547/$C$547)","v":""},null,{"$f":"IF($C$547=\"\",\"\",X547/$C$547)","v":""},null,{"$f":"IF($C$547=\"\",\"\",Z547/$C$547)","v":""},null,{"$f":"IF($C$547=\"\",\"\",AB547/$C$547)","v":""},null,{"$f":"IF($C$547=\"\",\"\",AD547/$C$547)","v":""},null,{"$f":"IF($C$547=\"\",\"\",AF547/$C$547)","v":""},null,{"$f":"IF($C$547=\"\",\"\",AH547/$C$547)","v":""},null,{"$f":"IF($C$547=\"\",\"\",AJ547/$C$547)","v":""},null,{"$f":"IF($C$547=\"\",\"\",AL547/$C$547)","v":""},null,{"$f":"IF($C$547=\"\",\"\",AN547/$C$547)","v":""},null,{"$f":"IF($C$547=\"\",\"\",AP547/$C$547)","v":""},null,{"$f":"IF($C$547=\"\",\"\",AR547/$C$547)","v":""},null,{"$f":"IF($C$547=\"\",\"\",AT547/$C$547)","v":""},null,{"$f":"IF($C$547=\"\",\"\",AV547/$C$547)","v":""},null,{"$f":"IF($C$547=\"\",\"\",AX547/$C$547)","v":""},null,{"$f":"IF($C$547=\"\",\"\",AZ547/$C$547)","v":""},null,{"$f":"IF($C$547=\"\",\"\",BB547/$C$547)","v":""},null,0]
[null,null,null,null,{"$f":"IF($C$548=\"\",\"\",F548/$C$548)","v":""},null,{"$f":"IF($C$548=\"\",\"\",H548/$C$548)","v":""},null,{"$f":"IF($C$548=\"\",\"\",J548/$C$548)","v":""},null,{"$f":"IF($C$548=\"\",\"\",L548/$C$548)","v":""},null,{"$f":"IF($C$548=\"\",\"\",N548/$C$548)","v":""},null,{"$f":"IF($C$548=\"\",\"\",P548/$C$548)","v":""},null,{"$f":"IF($C$548=\"\",\"\",R548/$C$548)","v":""},null,{"$f":"IF($C$548=\"\",\"\",T548/$C$548)","v":""},null,{"$f":"IF($C$548=\"\",\"\",V548/$C$548)","v":""},null,{"$f":"IF($C$548=\"\",\"\",X548/$C$548)","v":""},null,{"$f":"IF($C$548=\"\",\"\",Z548/$C$548)","v":""},null,{"$f":"IF($C$548=\"\",\"\",AB548/$C$548)","v":""},null,{"$f":"IF($C$548=\"\",\"\",AD548/$C$548)","v":""},null,{"$f":"IF($C$548=\"\",\"\",AF548/$C$548)","v":""},null,{"$f":"IF($C$548=\"\",\"\",AH548/$C$548)","v":""},null,{"$f":"IF($C$548=\"\",\"\",AJ548/$C$548)","v":""},null,{"$f":"IF($C$548=\"\",\"\",AL548/$C$548)","v":""},null,{"$f":"IF($C$548=\"\",\"\",AN548/$C$548)","v":""},null,{"$f":"IF($C$548=\"\",\"\",AP548/$C$548)","v":""},null,{"$f":"IF($C$548=\"\",\"\",AR548/$C$548)","v":""},null,{"$f":"IF($C$548=\"\",\"\",AT548/$C$548)","v":""},null,{"$f":"IF($C$548=\"\",\"\",AV548/$C$548)","v":""},null,{"$f":"IF($C$548=\"\",\"\",AX548/$C$548)","v":""},null,{"$f":"IF($C$548=\"\",\"\",AZ548/$C$548)","v":""},null,{"$f":"IF($C$548=\"\",\"\",BB548/$C$548)","v":""},null,0]
[null,null,null,null,{"$f":"IF($C$549=\"\",\"\",F549/$C$549)","v":""},null,{"$f":"IF($C$549=\"\",\"\",H549/$C$549)","v":""},null,{"$f":"IF($C$549=\"\",\"\",J549/$C$549)","v":""},null,{"$f":"IF($C$549=\"\",\"\",L549/$C$549)","v":""},null,{"$f":"IF($C$549=\"\",\"\",N549/$C$549)","v":""},null,{"$f":"IF($C$549=\"\",\"\",P549/$C$549)","v":""},null,{"$f":"IF($C$549=\"\",\"\",R549/$C$549)","v":""},null,{"$f":"IF($C$549=\"\",\"\",T549/$C$549)","v":""},null,{"$f":"IF($C$549=\"\",\"\",V549/$C$549)","v":""},null,{"$f":"IF($C$549=\"\",\"\",X549/$C$549)","v":""},null,{"$f":"IF($C$549=\"\",\"\",Z549/$C$549)","v":""},null,{"$f":"IF($C$549=\"\",\"\",AB549/$C$549)","v":""},null,{"$f":"IF($C$549=\"\",\"\",AD549/$C$549)","v":""},null,{"$f":"IF($C$549=\"\",\"\",AF549/$C$549)","v":""},null,{"$f":"IF($C$549=\"\",\"\",AH549/$C$549)","v":""},null,{"$f":"IF($C$549=\"\",\"\",AJ549/$C$549)","v":""},null,{"$f":"IF($C$549=\"\",\"\",AL549/$C$549)","v":""},null,{"$f":"IF($C$549=\"\",\"\",AN549/$C$549)","v":""},null,{"$f":"IF($C$549=\"\",\"\",AP549/$C$549)","v":""},null,{"$f":"IF($C$549=\"\",\"\",AR549/$C$549)","v":""},null,{"$f":"IF($C$549=\"\",\"\",AT549/$C$549)","v":""},null,{"$f":"IF($C$549=\"\",\"\",AV549/$C$549)","v":""},null,{"$f":"IF($C$549=\"\",\"\",AX549/$C$549)","v":""},null,{"$f":"IF($C$549=\"\",\"\",AZ549/$C$549)","v":""},null,{"$f":"IF($C$549=\"\",\"\",BB549/$C$549)","v":""},null,0]
[null,null,null,null,{"$f":"IF($C$550=\"\",\"\",F550/$C$550)","v":""},null,{"$f":"IF($C$550=\"\",\"\",H550/$C$550)","v":""},null,{"$f":"IF($C$550=\"\",\"\",J550/$C$550)","v":""},null,{"$f":"IF($C$550=\"\",\"\",L550/$C$550)","v":""},null,{"$f":"IF($C$550=\"\",\"\",N550/$C$550)","v":""},null,{"$f":"IF($C$550=\"\",\"\",P550/$C$550)","v":""},null,{"$f":"IF($C$550=\"\",\"\",R550/$C$550)","v":""},null,{"$f":"IF($C$550=\"\",\"\",T550/$C$550)","v":""},null,{"$f":"IF($C$550=\"\",\"\",V550/$C$550)","v":""},null,{"$f":"IF($C$550=\"\",\"\",X550/$C$550)","v":""},null,{"$f":"IF($C$550=\"\",\"\",Z550/$C$550)","v":""},null,{"$f":"IF($C$550=\"\",\"\",AB550/$C$550)","v":""},null,{"$f":"IF($C$550=\"\",\"\",AD550/$C$550)","v":""},null,{"$f":"IF($C$550=\"\",\"\",AF550/$C$550)","v":""},null,{"$f":"IF($C$550=\"\",\"\",AH550/$C$550)","v":""},null,{"$f":"IF($C$550=\"\",\"\",AJ550/$C$550)","v":""},null,{"$f":"IF($C$550=\"\",\"\",AL550/$C$550)","v":""},null,{"$f":"IF($C$550=\"\",\"\",AN550/$C$550)","v":""},null,{"$f":"IF($C$550=\"\",\"\",AP550/$C$550)","v":""},null,{"$f":"IF($C$550=\"\",\"\",AR550/$C$550)","v":""},null,{"$f":"IF($C$550=\"\",\"\",AT550/$C$550)","v":""},null,{"$f":"IF($C$550=\"\",\"\",AV550/$C$550)","v":""},null,{"$f":"IF($C$550=\"\",\"\",AX550/$C$550)","v":""},null,{"$f":"IF($C$550=\"\",\"\",AZ550/$C$550)","v":""},null,{"$f":"IF($C$550=\"\",\"\",BB550/$C$550)","v":""},null,0]
[null,null,null,null,{"$f":"IF($C$551=\"\",\"\",F551/$C$551)","v":""},null,{"$f":"IF($C$551=\"\",\"\",H551/$C$551)","v":""},null,{"$f":"IF($C$551=\"\",\"\",J551/$C$551)","v":""},null,{"$f":"IF($C$551=\"\",\"\",L551/$C$551)","v":""},null,{"$f":"IF($C$551=\"\",\"\",N551/$C$551)","v":""},null,{"$f":"IF($C$551=\"\",\"\",P551/$C$551)","v":""},null,{"$f":"IF($C$551=\"\",\"\",R551/$C$551)","v":""},null,{"$f":"IF($C$551=\"\",\"\",T551/$C$551)","v":""},null,{"$f":"IF($C$551=\"\",\"\",V551/$C$551)","v":""},null,{"$f":"IF($C$551=\"\",\"\",X551/$C$551)","v":""},null,{"$f":"IF($C$551=\"\",\"\",Z551/$C$551)","v":""},null,{"$f":"IF($C$551=\"\",\"\",AB551/$C$551)","v":""},null,{"$f":"IF($C$551=\"\",\"\",AD551/$C$551)","v":""},null,{"$f":"IF($C$551=\"\",\"\",AF551/$C$551)","v":""},null,{"$f":"IF($C$551=\"\",\"\",AH551/$C$551)","v":""},null,{"$f":"IF($C$551=\"\",\"\",AJ551/$C$551)","v":""},null,{"$f":"IF($C$551=\"\",\"\",AL551/$C$551)","v":""},null,{"$f":"IF($C$551=\"\",\"\",AN551/$C$551)","v":""},null,{"$f":"IF($C$551=\"\",\"\",AP551/$C$551)","v":""},null,{"$f":"IF($C$551=\"\",\"\",AR551/$C$551)","v":""},null,{"$f":"IF($C$551=\"\",\"\",AT551/$C$551)","v":""},null,{"$f":"IF($C$551=\"\",\"\",AV551/$C$551)","v":""},null,{"$f":"IF($C$551=\"\",\"\",AX551/$C$551)","v":""},null,{"$f":"IF($C$551=\"\",\"\",AZ551/$C$551)","v":""},null,{"$f":"IF($C$551=\"\",\"\",BB551/$C$551)","v":""},null,0]
[null,null,null,null,{"$f":"IF($C$552=\"\",\"\",F552/$C$552)","v":""},null,{"$f":"IF($C$552=\"\",\"\",H552/$C$552)","v":""},null,{"$f":"IF($C$552=\"\",\"\",J552/$C$552)","v":""},null,{"$f":"IF($C$552=\"\",\"\",L552/$C$552)","v":""},null,{"$f":"IF($C$552=\"\",\"\",N552/$C$552)","v":""},null,{"$f":"IF($C$552=\"\",\"\",P552/$C$552)","v":""},null,{"$f":"IF($C$552=\"\",\"\",R552/$C$552)","v":""},null,{"$f":"IF($C$552=\"\",\"\",T552/$C$552)","v":""},null,{"$f":"IF($C$552=\"\",\"\",V552/$C$552)","v":""},null,{"$f":"IF($C$552=\"\",\"\",X552/$C$552)","v":""},null,{"$f":"IF($C$552=\"\",\"\",Z552/$C$552)","v":""},null,{"$f":"IF($C$552=\"\",\"\",AB552/$C$552)","v":""},null,{"$f":"IF($C$552=\"\",\"\",AD552/$C$552)","v":""},null,{"$f":"IF($C$552=\"\",\"\",AF552/$C$552)","v":""},null,{"$f":"IF($C$552=\"\",\"\",AH552/$C$552)","v":""},null,{"$f":"IF($C$552=\"\",\"\",AJ552/$C$552)","v":""},null,{"$f":"IF($C$552=\"\",\"\",AL552/$C$552)","v":""},null,{"$f":"IF($C$552=\"\",\"\",AN552/$C$552)","v":""},null,{"$f":"IF($C$552=\"\",\"\",AP552/$C$552)","v":""},null,{"$f":"IF($C$552=\"\",\"\",AR552/$C$552)","v":""},null,{"$f":"IF($C$552=\"\",\"\",AT552/$C$552)","v":""},null,{"$f":"IF($C$552=\"\",\"\",AV552/$C$552)","v":""},null,{"$f":"IF($C$552=\"\",\"\",AX552/$C$552)","v":""},null,{"$f":"IF($C$552=\"\",\"\",AZ552/$C$552)","v":""},null,{"$f":"IF($C$552=\"\",\"\",BB552/$C$552)","v":""},null,0]
[null,null,null,null,{"$f":"IF($C$553=\"\",\"\",F553/$C$553)","v":""},null,{"$f":"IF($C$553=\"\",\"\",H553/$C$553)","v":""},null,{"$f":"IF($C$553=\"\",\"\",J553/$C$553)","v":""},null,{"$f":"IF($C$553=\"\",\"\",L553/$C$553)","v":""},null,{"$f":"IF($C$553=\"\",\"\",N553/$C$553)","v":""},null,{"$f":"IF($C$553=\"\",\"\",P553/$C$553)","v":""},null,{"$f":"IF($C$553=\"\",\"\",R553/$C$553)","v":""},null,{"$f":"IF($C$553=\"\",\"\",T553/$C$553)","v":""},null,{"$f":"IF($C$553=\"\",\"\",V553/$C$553)","v":""},null,{"$f":"IF($C$553=\"\",\"\",X553/$C$553)","v":""},null,{"$f":"IF($C$553=\"\",\"\",Z553/$C$553)","v":""},null,{"$f":"IF($C$553=\"\",\"\",AB553/$C$553)","v":""},null,{"$f":"IF($C$553=\"\",\"\",AD553/$C$553)","v":""},null,{"$f":"IF($C$553=\"\",\"\",AF553/$C$553)","v":""},null,{"$f":"IF($C$553=\"\",\"\",AH553/$C$553)","v":""},null,{"$f":"IF($C$553=\"\",\"\",AJ553/$C$553)","v":""},null,{"$f":"IF($C$553=\"\",\"\",AL553/$C$553)","v":""},null,{"$f":"IF($C$553=\"\",\"\",AN553/$C$553)","v":""},null,{"$f":"IF($C$553=\"\",\"\",AP553/$C$553)","v":""},null,{"$f":"IF($C$553=\"\",\"\",AR553/$C$553)","v":""},null,{"$f":"IF($C$553=\"\",\"\",AT553/$C$553)","v":""},null,{"$f":"IF($C$553=\"\",\"\",AV553/$C$553)","v":""},null,{"$f":"IF($C$553=\"\",\"\",AX553/$C$553)","v":""},null,{"$f":"IF($C$553=\"\",\"\",AZ553/$C$553)","v":""},null,{"$f":"IF($C$553=\"\",\"\",BB553/$C$553)","v":""},null,0]
[null,null,null,null,{"$f":"IF($C$554=\"\",\"\",F554/$C$554)","v":""},null,{"$f":"IF($C$554=\"\",\"\",H554/$C$554)","v":""},null,{"$f":"IF($C$554=\"\",\"\",J554/$C$554)","v":""},null,{"$f":"IF($C$554=\"\",\"\",L554/$C$554)","v":""},null,{"$f":"IF($C$554=\"\",\"\",N554/$C$554)","v":""},null,{"$f":"IF($C$554=\"\",\"\",P554/$C$554)","v":""},null,{"$f":"IF($C$554=\"\",\"\",R554/$C$554)","v":""},null,{"$f":"IF($C$554=\"\",\"\",T554/$C$554)","v":""},null,{"$f":"IF($C$554=\"\",\"\",V554/$C$554)","v":""},null,{"$f":"IF($C$554=\"\",\"\",X554/$C$554)","v":""},null,{"$f":"IF($C$554=\"\",\"\",Z554/$C$554)","v":""},null,{"$f":"IF($C$554=\"\",\"\",AB554/$C$554)","v":""},null,{"$f":"IF($C$554=\"\",\"\",AD554/$C$554)","v":""},null,{"$f":"IF($C$554=\"\",\"\",AF554/$C$554)","v":""},null,{"$f":"IF($C$554=\"\",\"\",AH554/$C$554)","v":""},null,{"$f":"IF($C$554=\"\",\"\",AJ554/$C$554)","v":""},null,{"$f":"IF($C$554=\"\",\"\",AL554/$C$554)","v":""},null,{"$f":"IF($C$554=\"\",\"\",AN554/$C$554)","v":""},null,{"$f":"IF($C$554=\"\",\"\",AP554/$C$554)","v":""},null,{"$f":"IF($C$554=\"\",\"\",AR554/$C$554)","v":""},null,{"$f":"IF($C$554=\"\",\"\",AT554/$C$554)","v":""},null,{"$f":"IF($C$554=\"\",\"\",AV554/$C$554)","v":""},null,{"$f":"IF($C$554=\"\",\"\",AX554/$C$554)","v":""},null,{"$f":"IF($C$554=\"\",\"\",AZ554/$C$554)","v":""},null,{"$f":"IF($C$554=\"\",\"\",BB554/$C$554)","v":""},null,0]
[null,null,null,null,{"$f":"IF($C$555=\"\",\"\",F555/$C$555)","v":""},null,{"$f":"IF($C$555=\"\",\"\",H555/$C$555)","v":""},null,{"$f":"IF($C$555=\"\",\"\",J555/$C$555)","v":""},null,{"$f":"IF($C$555=\"\",\"\",L555/$C$555)","v":""},null,{"$f":"IF($C$555=\"\",\"\",N555/$C$555)","v":""},null,{"$f":"IF($C$555=\"\",\"\",P555/$C$555)","v":""},null,{"$f":"IF($C$555=\"\",\"\",R555/$C$555)","v":""},null,{"$f":"IF($C$555=\"\",\"\",T555/$C$555)","v":""},null,{"$f":"IF($C$555=\"\",\"\",V555/$C$555)","v":""},null,{"$f":"IF($C$555=\"\",\"\",X555/$C$555)","v":""},null,{"$f":"IF($C$555=\"\",\"\",Z555/$C$555)","v":""},null,{"$f":"IF($C$555=\"\",\"\",AB555/$C$555)","v":""},null,{"$f":"IF($C$555=\"\",\"\",AD555/$C$555)","v":""},null,{"$f":"IF($C$555=\"\",\"\",AF555/$C$555)","v":""},null,{"$f":"IF($C$555=\"\",\"\",AH555/$C$555)","v":""},null,{"$f":"IF($C$555=\"\",\"\",AJ555/$C$555)","v":""},null,{"$f":"IF($C$555=\"\",\"\",AL555/$C$555)","v":""},null,{"$f":"IF($C$555=\"\",\"\",AN555/$C$555)","v":""},null,{"$f":"IF($C$555=\"\",\"\",AP555/$C$555)","v":""},null,{"$f":"IF($C$555=\"\",\"\",AR555/$C$555)","v":""},null,{"$f":"IF($C$555=\"\",\"\",AT555/$C$555)","v":""},null,{"$f":"IF($C$555=\"\",\"\",AV555/$C$555)","v":""},null,{"$f":"IF($C$555=\"\",\"\",AX555/$C$555)","v":""},null,{"$f":"IF($C$555=\"\",\"\",AZ555/$C$555)","v":""},null,{"$f":"IF($C$555=\"\",\"\",BB555/$C$555)","v":""},null,0]
[null,null,null,null,{"$f":"IF($C$556=\"\",\"\",F556/$C$556)","v":""},null,{"$f":"IF($C$556=\"\",\"\",H556/$C$556)","v":""},null,{"$f":"IF($C$556=\"\",\"\",J556/$C$556)","v":""},null,{"$f":"IF($C$556=\"\",\"\",L556/$C$556)","v":""},null,{"$f":"IF($C$556=\"\",\"\",N556/$C$556)","v":""},null,{"$f":"IF($C$556=\"\",\"\",P556/$C$556)","v":""},null,{"$f":"IF($C$556=\"\",\"\",R556/$C$556)","v":""},null,{"$f":"IF($C$556=\"\",\"\",T556/$C$556)","v":""},null,{"$f":"IF($C$556=\"\",\"\",V556/$C$556)","v":""},null,{"$f":"IF($C$556=\"\",\"\",X556/$C$556)","v":""},null,{"$f":"IF($C$556=\"\",\"\",Z556/$C$556)","v":""},null,{"$f":"IF($C$556=\"\",\"\",AB556/$C$556)","v":""},null,{"$f":"IF($C$556=\"\",\"\",AD556/$C$556)","v":""},null,{"$f":"IF($C$556=\"\",\"\",AF556/$C$556)","v":""},null,{"$f":"IF($C$556=\"\",\"\",AH556/$C$556)","v":""},null,{"$f":"IF($C$556=\"\",\"\",AJ556/$C$556)","v":""},null,{"$f":"IF($C$556=\"\",\"\",AL556/$C$556)","v":""},null,{"$f":"IF($C$556=\"\",\"\",AN556/$C$556)","v":""},null,{"$f":"IF($C$556=\"\",\"\",AP556/$C$556)","v":""},null,{"$f":"IF($C$556=\"\",\"\",AR556/$C$556)","v":""},null,{"$f":"IF($C$556=\"\",\"\",AT556/$C$556)","v":""},null,{"$f":"IF($C$556=\"\",\"\",AV556/$C$556)","v":""},null,{"$f":"IF($C$556=\"\",\"\",AX556/$C$556)","v":""},null,{"$f":"IF($C$556=\"\",\"\",AZ556/$C$556)","v":""},null,{"$f":"IF($C$556=\"\",\"\",BB556/$C$556)","v":""},null,0]
[null,null,null,null,{"$f":"IF($C$557=\"\",\"\",F557/$C$557)","v":""},null,{"$f":"IF($C$557=\"\",\"\",H557/$C$557)","v":""},null,{"$f":"IF($C$557=\"\",\"\",J557/$C$557)","v":""},null,{"$f":"IF($C$557=\"\",\"\",L557/$C$557)","v":""},null,{"$f":"IF($C$557=\"\",\"\",N557/$C$557)","v":""},null,{"$f":"IF($C$557=\"\",\"\",P557/$C$557)","v":""},null,{"$f":"IF($C$557=\"\",\"\",R557/$C$557)","v":""},null,{"$f":"IF($C$557=\"\",\"\",T557/$C$557)","v":""},null,{"$f":"IF($C$557=\"\",\"\",V557/$C$557)","v":""},null,{"$f":"IF($C$557=\"\",\"\",X557/$C$557)","v":""},null,{"$f":"IF($C$557=\"\",\"\",Z557/$C$557)","v":""},null,{"$f":"IF($C$557=\"\",\"\",AB557/$C$557)","v":""},null,{"$f":"IF($C$557=\"\",\"\",AD557/$C$557)","v":""},null,{"$f":"IF($C$557=\"\",\"\",AF557/$C$557)","v":""},null,{"$f":"IF($C$557=\"\",\"\",AH557/$C$557)","v":""},null,{"$f":"IF($C$557=\"\",\"\",AJ557/$C$557)","v":""},null,{"$f":"IF($C$557=\"\",\"\",AL557/$C$557)","v":""},null,{"$f":"IF($C$557=\"\",\"\",AN557/$C$557)","v":""},null,{"$f":"IF($C$557=\"\",\"\",AP557/$C$557)","v":""},null,{"$f":"IF($C$557=\"\",\"\",AR557/$C$557)","v":""},null,{"$f":"IF($C$557=\"\",\"\",AT557/$C$557)","v":""},null,{"$f":"IF($C$557=\"\",\"\",AV557/$C$557)","v":""},null,{"$f":"IF($C$557=\"\",\"\",AX557/$C$557)","v":""},null,{"$f":"IF($C$557=\"\",\"\",AZ557/$C$557)","v":""},null,{"$f":"IF($C$557=\"\",\"\",BB557/$C$557)","v":""},null,0]
[null,null,null,null,{"$f":"IF($C$558=\"\",\"\",F558/$C$558)","v":""},null,{"$f":"IF($C$558=\"\",\"\",H558/$C$558)","v":""},null,{"$f":"IF($C$558=\"\",\"\",J558/$C$558)","v":""},null,{"$f":"IF($C$558=\"\",\"\",L558/$C$558)","v":""},null,{"$f":"IF($C$558=\"\",\"\",N558/$C$558)","v":""},null,{"$f":"IF($C$558=\"\",\"\",P558/$C$558)","v":""},null,{"$f":"IF($C$558=\"\",\"\",R558/$C$558)","v":""},null,{"$f":"IF($C$558=\"\",\"\",T558/$C$558)","v":""},null,{"$f":"IF($C$558=\"\",\"\",V558/$C$558)","v":""},null,{"$f":"IF($C$558=\"\",\"\",X558/$C$558)","v":""},null,{"$f":"IF($C$558=\"\",\"\",Z558/$C$558)","v":""},null,{"$f":"IF($C$558=\"\",\"\",AB558/$C$558)","v":""},null,{"$f":"IF($C$558=\"\",\"\",AD558/$C$558)","v":""},null,{"$f":"IF($C$558=\"\",\"\",AF558/$C$558)","v":""},null,{"$f":"IF($C$558=\"\",\"\",AH558/$C$558)","v":""},null,{"$f":"IF($C$558=\"\",\"\",AJ558/$C$558)","v":""},null,{"$f":"IF($C$558=\"\",\"\",AL558/$C$558)","v":""},null,{"$f":"IF($C$558=\"\",\"\",AN558/$C$558)","v":""},null,{"$f":"IF($C$558=\"\",\"\",AP558/$C$558)","v":""},null,{"$f":"IF($C$558=\"\",\"\",AR558/$C$558)","v":""},null,{"$f":"IF($C$558=\"\",\"\",AT558/$C$558)","v":""},null,{"$f":"IF($C$558=\"\",\"\",AV558/$C$558)","v":""},null,{"$f":"IF($C$558=\"\",\"\",AX558/$C$558)","v":""},null,{"$f":"IF($C$558=\"\",\"\",AZ558/$C$558)","v":""},null,{"$f":"IF($C$558=\"\",\"\",BB558/$C$558)","v":""},null,0]
[null,null,null,null,{"$f":"IF($C$559=\"\",\"\",F559/$C$559)","v":""},null,{"$f":"IF($C$559=\"\",\"\",H559/$C$559)","v":""},null,{"$f":"IF($C$559=\"\",\"\",J559/$C$559)","v":""},null,{"$f":"IF($C$559=\"\",\"\",L559/$C$559)","v":""},null,{"$f":"IF($C$559=\"\",\"\",N559/$C$559)","v":""},null,{"$f":"IF($C$559=\"\",\"\",P559/$C$559)","v":""},null,{"$f":"IF($C$559=\"\",\"\",R559/$C$559)","v":""},null,{"$f":"IF($C$559=\"\",\"\",T559/$C$559)","v":""},null,{"$f":"IF($C$559=\"\",\"\",V559/$C$559)","v":""},null,{"$f":"IF($C$559=\"\",\"\",X559/$C$559)","v":""},null,{"$f":"IF($C$559=\"\",\"\",Z559/$C$559)","v":""},null,{"$f":"IF($C$559=\"\",\"\",AB559/$C$559)","v":""},null,{"$f":"IF($C$559=\"\",\"\",AD559/$C$559)","v":""},null,{"$f":"IF($C$559=\"\",\"\",AF559/$C$559)","v":""},null,{"$f":"IF($C$559=\"\",\"\",AH559/$C$559)","v":""},null,{"$f":"IF($C$559=\"\",\"\",AJ559/$C$559)","v":""},null,{"$f":"IF($C$559=\"\",\"\",AL559/$C$559)","v":""},null,{"$f":"IF($C$559=\"\",\"\",AN559/$C$559)","v":""},null,{"$f":"IF($C$559=\"\",\"\",AP559/$C$559)","v":""},null,{"$f":"IF($C$559=\"\",\"\",AR559/$C$559)","v":""},null,{"$f":"IF($C$559=\"\",\"\",AT559/$C$559)","v":""},null,{"$f":"IF($C$559=\"\",\"\",AV559/$C$559)","v":""},null,{"$f":"IF($C$559=\"\",\"\",AX559/$C$559)","v":""},null,{"$f":"IF($C$559=\"\",\"\",AZ559/$C$559)","v":""},null,{"$f":"IF($C$559=\"\",\"\",BB559/$C$559)","v":""},null,0]
[null,null,null,null,{"$f":"IF($C$560=\"\",\"\",F560/$C$560)","v":""},null,{"$f":"IF($C$560=\"\",\"\",H560/$C$560)","v":""},null,{"$f":"IF($C$560=\"\",\"\",J560/$C$560)","v":""},null,{"$f":"IF($C$560=\"\",\"\",L560/$C$560)","v":""},null,{"$f":"IF($C$560=\"\",\"\",N560/$C$560)","v":""},null,{"$f":"IF($C$560=\"\",\"\",P560/$C$560)","v":""},null,{"$f":"IF($C$560=\"\",\"\",R560/$C$560)","v":""},null,{"$f":"IF($C$560=\"\",\"\",T560/$C$560)","v":""},null,{"$f":"IF($C$560=\"\",\"\",V560/$C$560)","v":""},null,{"$f":"IF($C$560=\"\",\"\",X560/$C$560)","v":""},null,{"$f":"IF($C$560=\"\",\"\",Z560/$C$560)","v":""},null,{"$f":"IF($C$560=\"\",\"\",AB560/$C$560)","v":""},null,{"$f":"IF($C$560=\"\",\"\",AD560/$C$560)","v":""},null,{"$f":"IF($C$560=\"\",\"\",AF560/$C$560)","v":""},null,{"$f":"IF($C$560=\"\",\"\",AH560/$C$560)","v":""},null,{"$f":"IF($C$560=\"\",\"\",AJ560/$C$560)","v":""},null,{"$f":"IF($C$560=\"\",\"\",AL560/$C$560)","v":""},null,{"$f":"IF($C$560=\"\",\"\",AN560/$C$560)","v":""},null,{"$f":"IF($C$560=\"\",\"\",AP560/$C$560)","v":""},null,{"$f":"IF($C$560=\"\",\"\",AR560/$C$560)","v":""},null,{"$f":"IF($C$560=\"\",\"\",AT560/$C$560)","v":""},null,{"$f":"IF($C$560=\"\",\"\",AV560/$C$560)","v":""},null,{"$f":"IF($C$560=\"\",\"\",AX560/$C$560)","v":""},null,{"$f":"IF($C$560=\"\",\"\",AZ560/$C$560)","v":""},null,{"$f":"IF($C$560=\"\",\"\",BB560/$C$560)","v":""},null,0]
[null,null,null,null,{"$f":"IF($C$561=\"\",\"\",F561/$C$561)","v":""},null,{"$f":"IF($C$561=\"\",\"\",H561/$C$561)","v":""},null,{"$f":"IF($C$561=\"\",\"\",J561/$C$561)","v":""},null,{"$f":"IF($C$561=\"\",\"\",L561/$C$561)","v":""},null,{"$f":"IF($C$561=\"\",\"\",N561/$C$561)","v":""},null,{"$f":"IF($C$561=\"\",\"\",P561/$C$561)","v":""},null,{"$f":"IF($C$561=\"\",\"\",R561/$C$561)","v":""},null,{"$f":"IF($C$561=\"\",\"\",T561/$C$561)","v":""},null,{"$f":"IF($C$561=\"\",\"\",V561/$C$561)","v":""},null,{"$f":"IF($C$561=\"\",\"\",X561/$C$561)","v":""},null,{"$f":"IF($C$561=\"\",\"\",Z561/$C$561)","v":""},null,{"$f":"IF($C$561=\"\",\"\",AB561/$C$561)","v":""},null,{"$f":"IF($C$561=\"\",\"\",AD561/$C$561)","v":""},null,{"$f":"IF($C$561=\"\",\"\",AF561/$C$561)","v":""},null,{"$f":"IF($C$561=\"\",\"\",AH561/$C$561)","v":""},null,{"$f":"IF($C$561=\"\",\"\",AJ561/$C$561)","v":""},null,{"$f":"IF($C$561=\"\",\"\",AL561/$C$561)","v":""},null,{"$f":"IF($C$561=\"\",\"\",AN561/$C$561)","v":""},null,{"$f":"IF($C$561=\"\",\"\",AP561/$C$561)","v":""},null,{"$f":"IF($C$561=\"\",\"\",AR561/$C$561)","v":""},null,{"$f":"IF($C$561=\"\",\"\",AT561/$C$561)","v":""},null,{"$f":"IF($C$561=\"\",\"\",AV561/$C$561)","v":""},null,{"$f":"IF($C$561=\"\",\"\",AX561/$C$561)","v":""},null,{"$f":"IF($C$561=\"\",\"\",AZ561/$C$561)","v":""},null,{"$f":"IF($C$561=\"\",\"\",BB561/$C$561)","v":""},null,0]
[null,null,null,null,{"$f":"IF($C$562=\"\",\"\",F562/$C$562)","v":""},null,{"$f":"IF($C$562=\"\",\"\",H562/$C$562)","v":""},null,{"$f":"IF($C$562=\"\",\"\",J562/$C$562)","v":""},null,{"$f":"IF($C$562=\"\",\"\",L562/$C$562)","v":""},null,{"$f":"IF($C$562=\"\",\"\",N562/$C$562)","v":""},null,{"$f":"IF($C$562=\"\",\"\",P562/$C$562)","v":""},null,{"$f":"IF($C$562=\"\",\"\",R562/$C$562)","v":""},null,{"$f":"IF($C$562=\"\",\"\",T562/$C$562)","v":""},null,{"$f":"IF($C$562=\"\",\"\",V562/$C$562)","v":""},null,{"$f":"IF($C$562=\"\",\"\",X562/$C$562)","v":""},null,{"$f":"IF($C$562=\"\",\"\",Z562/$C$562)","v":""},null,{"$f":"IF($C$562=\"\",\"\",AB562/$C$562)","v":""},null,{"$f":"IF($C$562=\"\",\"\",AD562/$C$562)","v":""},null,{"$f":"IF($C$562=\"\",\"\",AF562/$C$562)","v":""},null,{"$f":"IF($C$562=\"\",\"\",AH562/$C$562)","v":""},null,{"$f":"IF($C$562=\"\",\"\",AJ562/$C$562)","v":""},null,{"$f":"IF($C$562=\"\",\"\",AL562/$C$562)","v":""},null,{"$f":"IF($C$562=\"\",\"\",AN562/$C$562)","v":""},null,{"$f":"IF($C$562=\"\",\"\",AP562/$C$562)","v":""},null,{"$f":"IF($C$562=\"\",\"\",AR562/$C$562)","v":""},null,{"$f":"IF($C$562=\"\",\"\",AT562/$C$562)","v":""},null,{"$f":"IF($C$562=\"\",\"\",AV562/$C$562)","v":""},null,{"$f":"IF($C$562=\"\",\"\",AX562/$C$562)","v":""},null,{"$f":"IF($C$562=\"\",\"\",AZ562/$C$562)","v":""},null,{"$f":"IF($C$562=\"\",\"\",BB562/$C$562)","v":""},null,0]
[null,null,null,null,{"$f":"IF($C$563=\"\",\"\",F563/$C$563)","v":""},null,{"$f":"IF($C$563=\"\",\"\",H563/$C$563)","v":""},null,{"$f":"IF($C$563=\"\",\"\",J563/$C$563)","v":""},null,{"$f":"IF($C$563=\"\",\"\",L563/$C$563)","v":""},null,{"$f":"IF($C$563=\"\",\"\",N563/$C$563)","v":""},null,{"$f":"IF($C$563=\"\",\"\",P563/$C$563)","v":""},null,{"$f":"IF($C$563=\"\",\"\",R563/$C$563)","v":""},null,{"$f":"IF($C$563=\"\",\"\",T563/$C$563)","v":""},null,{"$f":"IF($C$563=\"\",\"\",V563/$C$563)","v":""},null,{"$f":"IF($C$563=\"\",\"\",X563/$C$563)","v":""},null,{"$f":"IF($C$563=\"\",\"\",Z563/$C$563)","v":""},null,{"$f":"IF($C$563=\"\",\"\",AB563/$C$563)","v":""},null,{"$f":"IF($C$563=\"\",\"\",AD563/$C$563)","v":""},null,{"$f":"IF($C$563=\"\",\"\",AF563/$C$563)","v":""},null,{"$f":"IF($C$563=\"\",\"\",AH563/$C$563)","v":""},null,{"$f":"IF($C$563=\"\",\"\",AJ563/$C$563)","v":""},null,{"$f":"IF($C$563=\"\",\"\",AL563/$C$563)","v":""},null,{"$f":"IF($C$563=\"\",\"\",AN563/$C$563)","v":""},null,{"$f":"IF($C$563=\"\",\"\",AP563/$C$563)","v":""},null,{"$f":"IF($C$563=\"\",\"\",AR563/$C$563)","v":""},null,{"$f":"IF($C$563=\"\",\"\",AT563/$C$563)","v":""},null,{"$f":"IF($C$563=\"\",\"\",AV563/$C$563)","v":""},null,{"$f":"IF($C$563=\"\",\"\",AX563/$C$563)","v":""},null,{"$f":"IF($C$563=\"\",\"\",AZ563/$C$563)","v":""},null,{"$f":"IF($C$563=\"\",\"\",BB563/$C$563)","v":""},null,0]
[null,null,null,null,{"$f":"IF($C$564=\"\",\"\",F564/$C$564)","v":""},null,{"$f":"IF($C$564=\"\",\"\",H564/$C$564)","v":""},null,{"$f":"IF($C$564=\"\",\"\",J564/$C$564)","v":""},null,{"$f":"IF($C$564=\"\",\"\",L564/$C$564)","v":""},null,{"$f":"IF($C$564=\"\",\"\",N564/$C$564)","v":""},null,{"$f":"IF($C$564=\"\",\"\",P564/$C$564)","v":""},null,{"$f":"IF($C$564=\"\",\"\",R564/$C$564)","v":""},null,{"$f":"IF($C$564=\"\",\"\",T564/$C$564)","v":""},null,{"$f":"IF($C$564=\"\",\"\",V564/$C$564)","v":""},null,{"$f":"IF($C$564=\"\",\"\",X564/$C$564)","v":""},null,{"$f":"IF($C$564=\"\",\"\",Z564/$C$564)","v":""},null,{"$f":"IF($C$564=\"\",\"\",AB564/$C$564)","v":""},null,{"$f":"IF($C$564=\"\",\"\",AD564/$C$564)","v":""},null,{"$f":"IF($C$564=\"\",\"\",AF564/$C$564)","v":""},null,{"$f":"IF($C$564=\"\",\"\",AH564/$C$564)","v":""},null,{"$f":"IF($C$564=\"\",\"\",AJ564/$C$564)","v":""},null,{"$f":"IF($C$564=\"\",\"\",AL564/$C$564)","v":""},null,{"$f":"IF($C$564=\"\",\"\",AN564/$C$564)","v":""},null,{"$f":"IF($C$564=\"\",\"\",AP564/$C$564)","v":""},null,{"$f":"IF($C$564=\"\",\"\",AR564/$C$564)","v":""},null,{"$f":"IF($C$564=\"\",\"\",AT564/$C$564)","v":""},null,{"$f":"IF($C$564=\"\",\"\",AV564/$C$564)","v":""},null,{"$f":"IF($C$564=\"\",\"\",AX564/$C$564)","v":""},null,{"$f":"IF($C$564=\"\",\"\",AZ564/$C$564)","v":""},null,{"$f":"IF($C$564=\"\",\"\",BB564/$C$564)","v":""},null,0]
[null,null,null,null,{"$f":"IF($C$565=\"\",\"\",F565/$C$565)","v":""},null,{"$f":"IF($C$565=\"\",\"\",H565/$C$565)","v":""},null,{"$f":"IF($C$565=\"\",\"\",J565/$C$565)","v":""},null,{"$f":"IF($C$565=\"\",\"\",L565/$C$565)","v":""},null,{"$f":"IF($C$565=\"\",\"\",N565/$C$565)","v":""},null,{"$f":"IF($C$565=\"\",\"\",P565/$C$565)","v":""},null,{"$f":"IF($C$565=\"\",\"\",R565/$C$565)","v":""},null,{"$f":"IF($C$565=\"\",\"\",T565/$C$565)","v":""},null,{"$f":"IF($C$565=\"\",\"\",V565/$C$565)","v":""},null,{"$f":"IF($C$565=\"\",\"\",X565/$C$565)","v":""},null,{"$f":"IF($C$565=\"\",\"\",Z565/$C$565)","v":""},null,{"$f":"IF($C$565=\"\",\"\",AB565/$C$565)","v":""},null,{"$f":"IF($C$565=\"\",\"\",AD565/$C$565)","v":""},null,{"$f":"IF($C$565=\"\",\"\",AF565/$C$565)","v":""},null,{"$f":"IF($C$565=\"\",\"\",AH565/$C$565)","v":""},null,{"$f":"IF($C$565=\"\",\"\",AJ565/$C$565)","v":""},null,{"$f":"IF($C$565=\"\",\"\",AL565/$C$565)","v":""},null,{"$f":"IF($C$565=\"\",\"\",AN565/$C$565)","v":""},null,{"$f":"IF($C$565=\"\",\"\",AP565/$C$565)","v":""},null,{"$f":"IF($C$565=\"\",\"\",AR565/$C$565)","v":""},null,{"$f":"IF($C$565=\"\",\"\",AT565/$C$565)","v":""},null,{"$f":"IF($C$565=\"\",\"\",AV565/$C$565)","v":""},null,{"$f":"IF($C$565=\"\",\"\",AX565/$C$565)","v":""},null,{"$f":"IF($C$565=\"\",\"\",AZ565/$C$565)","v":""},null,{"$f":"IF($C$565=\"\",\"\",BB565/$C$565)","v":""},null,0]
[null,null,null,null,{"$f":"IF($C$566=\"\",\"\",F566/$C$566)","v":""},null,{"$f":"IF($C$566=\"\",\"\",H566/$C$566)","v":""},null,{"$f":"IF($C$566=\"\",\"\",J566/$C$566)","v":""},null,{"$f":"IF($C$566=\"\",\"\",L566/$C$566)","v":""},null,{"$f":"IF($C$566=\"\",\"\",N566/$C$566)","v":""},null,{"$f":"IF($C$566=\"\",\"\",P566/$C$566)","v":""},null,{"$f":"IF($C$566=\"\",\"\",R566/$C$566)","v":""},null,{"$f":"IF($C$566=\"\",\"\",T566/$C$566)","v":""},null,{"$f":"IF($C$566=\"\",\"\",V566/$C$566)","v":""},null,{"$f":"IF($C$566=\"\",\"\",X566/$C$566)","v":""},null,{"$f":"IF($C$566=\"\",\"\",Z566/$C$566)","v":""},null,{"$f":"IF($C$566=\"\",\"\",AB566/$C$566)","v":""},null,{"$f":"IF($C$566=\"\",\"\",AD566/$C$566)","v":""},null,{"$f":"IF($C$566=\"\",\"\",AF566/$C$566)","v":""},null,{"$f":"IF($C$566=\"\",\"\",AH566/$C$566)","v":""},null,{"$f":"IF($C$566=\"\",\"\",AJ566/$C$566)","v":""},null,{"$f":"IF($C$566=\"\",\"\",AL566/$C$566)","v":""},null,{"$f":"IF($C$566=\"\",\"\",AN566/$C$566)","v":""},null,{"$f":"IF($C$566=\"\",\"\",AP566/$C$566)","v":""},null,{"$f":"IF($C$566=\"\",\"\",AR566/$C$566)","v":""},null,{"$f":"IF($C$566=\"\",\"\",AT566/$C$566)","v":""},null,{"$f":"IF($C$566=\"\",\"\",AV566/$C$566)","v":""},null,{"$f":"IF($C$566=\"\",\"\",AX566/$C$566)","v":""},null,{"$f":"IF($C$566=\"\",\"\",AZ566/$C$566)","v":""},null,{"$f":"IF($C$566=\"\",\"\",BB566/$C$566)","v":""},null,0]
[null,null,null,null,{"$f":"IF($C$567=\"\",\"\",F567/$C$567)","v":""},null,{"$f":"IF($C$567=\"\",\"\",H567/$C$567)","v":""},null,{"$f":"IF($C$567=\"\",\"\",J567/$C$567)","v":""},null,{"$f":"IF($C$567=\"\",\"\",L567/$C$567)","v":""},null,{"$f":"IF($C$567=\"\",\"\",N567/$C$567)","v":""},null,{"$f":"IF($C$567=\"\",\"\",P567/$C$567)","v":""},null,{"$f":"IF($C$567=\"\",\"\",R567/$C$567)","v":""},null,{"$f":"IF($C$567=\"\",\"\",T567/$C$567)","v":""},null,{"$f":"IF($C$567=\"\",\"\",V567/$C$567)","v":""},null,{"$f":"IF($C$567=\"\",\"\",X567/$C$567)","v":""},null,{"$f":"IF($C$567=\"\",\"\",Z567/$C$567)","v":""},null,{"$f":"IF($C$567=\"\",\"\",AB567/$C$567)","v":""},null,{"$f":"IF($C$567=\"\",\"\",AD567/$C$567)","v":""},null,{"$f":"IF($C$567=\"\",\"\",AF567/$C$567)","v":""},null,{"$f":"IF($C$567=\"\",\"\",AH567/$C$567)","v":""},null,{"$f":"IF($C$567=\"\",\"\",AJ567/$C$567)","v":""},null,{"$f":"IF($C$567=\"\",\"\",AL567/$C$567)","v":""},null,{"$f":"IF($C$567=\"\",\"\",AN567/$C$567)","v":""},null,{"$f":"IF($C$567=\"\",\"\",AP567/$C$567)","v":""},null,{"$f":"IF($C$567=\"\",\"\",AR567/$C$567)","v":""},null,{"$f":"IF($C$567=\"\",\"\",AT567/$C$567)","v":""},null,{"$f":"IF($C$567=\"\",\"\",AV567/$C$567)","v":""},null,{"$f":"IF($C$567=\"\",\"\",AX567/$C$567)","v":""},null,{"$f":"IF($C$567=\"\",\"\",AZ567/$C$567)","v":""},null,{"$f":"IF($C$567=\"\",\"\",BB567/$C$567)","v":""},null,0]
[null,null,null,null,{"$f":"IF($C$568=\"\",\"\",F568/$C$568)","v":""},null,{"$f":"IF($C$568=\"\",\"\",H568/$C$568)","v":""},null,{"$f":"IF($C$568=\"\",\"\",J568/$C$568)","v":""},null,{"$f":"IF($C$568=\"\",\"\",L568/$C$568)","v":""},null,{"$f":"IF($C$568=\"\",\"\",N568/$C$568)","v":""},null,{"$f":"IF($C$568=\"\",\"\",P568/$C$568)","v":""},null,{"$f":"IF($C$568=\"\",\"\",R568/$C$568)","v":""},null,{"$f":"IF($C$568=\"\",\"\",T568/$C$568)","v":""},null,{"$f":"IF($C$568=\"\",\"\",V568/$C$568)","v":""},null,{"$f":"IF($C$568=\"\",\"\",X568/$C$568)","v":""},null,{"$f":"IF($C$568=\"\",\"\",Z568/$C$568)","v":""},null,{"$f":"IF($C$568=\"\",\"\",AB568/$C$568)","v":""},null,{"$f":"IF($C$568=\"\",\"\",AD568/$C$568)","v":""},null,{"$f":"IF($C$568=\"\",\"\",AF568/$C$568)","v":""},null,{"$f":"IF($C$568=\"\",\"\",AH568/$C$568)","v":""},null,{"$f":"IF($C$568=\"\",\"\",AJ568/$C$568)","v":""},null,{"$f":"IF($C$568=\"\",\"\",AL568/$C$568)","v":""},null,{"$f":"IF($C$568=\"\",\"\",AN568/$C$568)","v":""},null,{"$f":"IF($C$568=\"\",\"\",AP568/$C$568)","v":""},null,{"$f":"IF($C$568=\"\",\"\",AR568/$C$568)","v":""},null,{"$f":"IF($C$568=\"\",\"\",AT568/$C$568)","v":""},null,{"$f":"IF($C$568=\"\",\"\",AV568/$C$568)","v":""},null,{"$f":"IF($C$568=\"\",\"\",AX568/$C$568)","v":""},null,{"$f":"IF($C$568=\"\",\"\",AZ568/$C$568)","v":""},null,{"$f":"IF($C$568=\"\",\"\",BB568/$C$568)","v":""},null,0]
[null,null,null,null,{"$f":"IF($C$569=\"\",\"\",F569/$C$569)","v":""},null,{"$f":"IF($C$569=\"\",\"\",H569/$C$569)","v":""},null,{"$f":"IF($C$569=\"\",\"\",J569/$C$569)","v":""},null,{"$f":"IF($C$569=\"\",\"\",L569/$C$569)","v":""},null,{"$f":"IF($C$569=\"\",\"\",N569/$C$569)","v":""},null,{"$f":"IF($C$569=\"\",\"\",P569/$C$569)","v":""},null,{"$f":"IF($C$569=\"\",\"\",R569/$C$569)","v":""},null,{"$f":"IF($C$569=\"\",\"\",T569/$C$569)","v":""},null,{"$f":"IF($C$569=\"\",\"\",V569/$C$569)","v":""},null,{"$f":"IF($C$569=\"\",\"\",X569/$C$569)","v":""},null,{"$f":"IF($C$569=\"\",\"\",Z569/$C$569)","v":""},null,{"$f":"IF($C$569=\"\",\"\",AB569/$C$569)","v":""},null,{"$f":"IF($C$569=\"\",\"\",AD569/$C$569)","v":""},null,{"$f":"IF($C$569=\"\",\"\",AF569/$C$569)","v":""},null,{"$f":"IF($C$569=\"\",\"\",AH569/$C$569)","v":""},null,{"$f":"IF($C$569=\"\",\"\",AJ569/$C$569)","v":""},null,{"$f":"IF($C$569=\"\",\"\",AL569/$C$569)","v":""},null,{"$f":"IF($C$569=\"\",\"\",AN569/$C$569)","v":""},null,{"$f":"IF($C$569=\"\",\"\",AP569/$C$569)","v":""},null,{"$f":"IF($C$569=\"\",\"\",AR569/$C$569)","v":""},null,{"$f":"IF($C$569=\"\",\"\",AT569/$C$569)","v":""},null,{"$f":"IF($C$569=\"\",\"\",AV569/$C$569)","v":""},null,{"$f":"IF($C$569=\"\",\"\",AX569/$C$569)","v":""},null,{"$f":"IF($C$569=\"\",\"\",AZ569/$C$569)","v":""},null,{"$f":"IF($C$569=\"\",\"\",BB569/$C$569)","v":""},null,0]
[null,null,null,null,{"$f":"IF($C$570=\"\",\"\",F570/$C$570)","v":""},null,{"$f":"IF($C$570=\"\",\"\",H570/$C$570)","v":""},null,{"$f":"IF($C$570=\"\",\"\",J570/$C$570)","v":""},null,{"$f":"IF($C$570=\"\",\"\",L570/$C$570)","v":""},null,{"$f":"IF($C$570=\"\",\"\",N570/$C$570)","v":""},null,{"$f":"IF($C$570=\"\",\"\",P570/$C$570)","v":""},null,{"$f":"IF($C$570=\"\",\"\",R570/$C$570)","v":""},null,{"$f":"IF($C$570=\"\",\"\",T570/$C$570)","v":""},null,{"$f":"IF($C$570=\"\",\"\",V570/$C$570)","v":""},null,{"$f":"IF($C$570=\"\",\"\",X570/$C$570)","v":""},null,{"$f":"IF($C$570=\"\",\"\",Z570/$C$570)","v":""},null,{"$f":"IF($C$570=\"\",\"\",AB570/$C$570)","v":""},null,{"$f":"IF($C$570=\"\",\"\",AD570/$C$570)","v":""},null,{"$f":"IF($C$570=\"\",\"\",AF570/$C$570)","v":""},null,{"$f":"IF($C$570=\"\",\"\",AH570/$C$570)","v":""},null,{"$f":"IF($C$570=\"\",\"\",AJ570/$C$570)","v":""},null,{"$f":"IF($C$570=\"\",\"\",AL570/$C$570)","v":""},null,{"$f":"IF($C$570=\"\",\"\",AN570/$C$570)","v":""},null,{"$f":"IF($C$570=\"\",\"\",AP570/$C$570)","v":""},null,{"$f":"IF($C$570=\"\",\"\",AR570/$C$570)","v":""},null,{"$f":"IF($C$570=\"\",\"\",AT570/$C$570)","v":""},null,{"$f":"IF($C$570=\"\",\"\",AV570/$C$570)","v":""},null,{"$f":"IF($C$570=\"\",\"\",AX570/$C$570)","v":""},null,{"$f":"IF($C$570=\"\",\"\",AZ570/$C$570)","v":""},null,{"$f":"IF($C$570=\"\",\"\",BB570/$C$570)","v":""},null,0]
[null,null,null,null,{"$f":"IF($C$571=\"\",\"\",F571/$C$571)","v":""},null,{"$f":"IF($C$571=\"\",\"\",H571/$C$571)","v":""},null,{"$f":"IF($C$571=\"\",\"\",J571/$C$571)","v":""},null,{"$f":"IF($C$571=\"\",\"\",L571/$C$571)","v":""},null,{"$f":"IF($C$571=\"\",\"\",N571/$C$571)","v":""},null,{"$f":"IF($C$571=\"\",\"\",P571/$C$571)","v":""},null,{"$f":"IF($C$571=\"\",\"\",R571/$C$571)","v":""},null,{"$f":"IF($C$571=\"\",\"\",T571/$C$571)","v":""},null,{"$f":"IF($C$571=\"\",\"\",V571/$C$571)","v":""},null,{"$f":"IF($C$571=\"\",\"\",X571/$C$571)","v":""},null,{"$f":"IF($C$571=\"\",\"\",Z571/$C$571)","v":""},null,{"$f":"IF($C$571=\"\",\"\",AB571/$C$571)","v":""},null,{"$f":"IF($C$571=\"\",\"\",AD571/$C$571)","v":""},null,{"$f":"IF($C$571=\"\",\"\",AF571/$C$571)","v":""},null,{"$f":"IF($C$571=\"\",\"\",AH571/$C$571)","v":""},null,{"$f":"IF($C$571=\"\",\"\",AJ571/$C$571)","v":""},null,{"$f":"IF($C$571=\"\",\"\",AL571/$C$571)","v":""},null,{"$f":"IF($C$571=\"\",\"\",AN571/$C$571)","v":""},null,{"$f":"IF($C$571=\"\",\"\",AP571/$C$571)","v":""},null,{"$f":"IF($C$571=\"\",\"\",AR571/$C$571)","v":""},null,{"$f":"IF($C$571=\"\",\"\",AT571/$C$571)","v":""},null,{"$f":"IF($C$571=\"\",\"\",AV571/$C$571)","v":""},null,{"$f":"IF($C$571=\"\",\"\",AX571/$C$571)","v":""},null,{"$f":"IF($C$571=\"\",\"\",AZ571/$C$571)","v":""},null,{"$f":"IF($C$571=\"\",\"\",BB571/$C$571)","v":""},null,0]
[null,null,null,null,{"$f":"IF($C$572=\"\",\"\",F572/$C$572)","v":""},null,{"$f":"IF($C$572=\"\",\"\",H572/$C$572)","v":""},null,{"$f":"IF($C$572=\"\",\"\",J572/$C$572)","v":""},null,{"$f":"IF($C$572=\"\",\"\",L572/$C$572)","v":""},null,{"$f":"IF($C$572=\"\",\"\",N572/$C$572)","v":""},null,{"$f":"IF($C$572=\"\",\"\",P572/$C$572)","v":""},null,{"$f":"IF($C$572=\"\",\"\",R572/$C$572)","v":""},null,{"$f":"IF($C$572=\"\",\"\",T572/$C$572)","v":""},null,{"$f":"IF($C$572=\"\",\"\",V572/$C$572)","v":""},null,{"$f":"IF($C$572=\"\",\"\",X572/$C$572)","v":""},null,{"$f":"IF($C$572=\"\",\"\",Z572/$C$572)","v":""},null,{"$f":"IF($C$572=\"\",\"\",AB572/$C$572)","v":""},null,{"$f":"IF($C$572=\"\",\"\",AD572/$C$572)","v":""},null,{"$f":"IF($C$572=\"\",\"\",AF572/$C$572)","v":""},null,{"$f":"IF($C$572=\"\",\"\",AH572/$C$572)","v":""},null,{"$f":"IF($C$572=\"\",\"\",AJ572/$C$572)","v":""},null,{"$f":"IF($C$572=\"\",\"\",AL572/$C$572)","v":""},null,{"$f":"IF($C$572=\"\",\"\",AN572/$C$572)","v":""},null,{"$f":"IF($C$572=\"\",\"\",AP572/$C$572)","v":""},null,{"$f":"IF($C$572=\"\",\"\",AR572/$C$572)","v":""},null,{"$f":"IF($C$572=\"\",\"\",AT572/$C$572)","v":""},null,{"$f":"IF($C$572=\"\",\"\",AV572/$C$572)","v":""},null,{"$f":"IF($C$572=\"\",\"\",AX572/$C$572)","v":""},null,{"$f":"IF($C$572=\"\",\"\",AZ572/$C$572)","v":""},null,{"$f":"IF($C$572=\"\",\"\",BB572/$C$572)","v":""},null,0]
[null,null,null,null,{"$f":"IF($C$573=\"\",\"\",F573/$C$573)","v":""},null,{"$f":"IF($C$573=\"\",\"\",H573/$C$573)","v":""},null,{"$f":"IF($C$573=\"\",\"\",J573/$C$573)","v":""},null,{"$f":"IF($C$573=\"\",\"\",L573/$C$573)","v":""},null,{"$f":"IF($C$573=\"\",\"\",N573/$C$573)","v":""},null,{"$f":"IF($C$573=\"\",\"\",P573/$C$573)","v":""},null,{"$f":"IF($C$573=\"\",\"\",R573/$C$573)","v":""},null,{"$f":"IF($C$573=\"\",\"\",T573/$C$573)","v":""},null,{"$f":"IF($C$573=\"\",\"\",V573/$C$573)","v":""},null,{"$f":"IF($C$573=\"\",\"\",X573/$C$573)","v":""},null,{"$f":"IF($C$573=\"\",\"\",Z573/$C$573)","v":""},null,{"$f":"IF($C$573=\"\",\"\",AB573/$C$573)","v":""},null,{"$f":"IF($C$573=\"\",\"\",AD573/$C$573)","v":""},null,{"$f":"IF($C$573=\"\",\"\",AF573/$C$573)","v":""},null,{"$f":"IF($C$573=\"\",\"\",AH573/$C$573)","v":""},null,{"$f":"IF($C$573=\"\",\"\",AJ573/$C$573)","v":""},null,{"$f":"IF($C$573=\"\",\"\",AL573/$C$573)","v":""},null,{"$f":"IF($C$573=\"\",\"\",AN573/$C$573)","v":""},null,{"$f":"IF($C$573=\"\",\"\",AP573/$C$573)","v":""},null,{"$f":"IF($C$573=\"\",\"\",AR573/$C$573)","v":""},null,{"$f":"IF($C$573=\"\",\"\",AT573/$C$573)","v":""},null,{"$f":"IF($C$573=\"\",\"\",AV573/$C$573)","v":""},null,{"$f":"IF($C$573=\"\",\"\",AX573/$C$573)","v":""},null,{"$f":"IF($C$573=\"\",\"\",AZ573/$C$573)","v":""},null,{"$f":"IF($C$573=\"\",\"\",BB573/$C$573)","v":""},null,0]
[null,null,null,null,{"$f":"IF($C$574=\"\",\"\",F574/$C$574)","v":""},null,{"$f":"IF($C$574=\"\",\"\",H574/$C$574)","v":""},null,{"$f":"IF($C$574=\"\",\"\",J574/$C$574)","v":""},null,{"$f":"IF($C$574=\"\",\"\",L574/$C$574)","v":""},null,{"$f":"IF($C$574=\"\",\"\",N574/$C$574)","v":""},null,{"$f":"IF($C$574=\"\",\"\",P574/$C$574)","v":""},null,{"$f":"IF($C$574=\"\",\"\",R574/$C$574)","v":""},null,{"$f":"IF($C$574=\"\",\"\",T574/$C$574)","v":""},null,{"$f":"IF($C$574=\"\",\"\",V574/$C$574)","v":""},null,{"$f":"IF($C$574=\"\",\"\",X574/$C$574)","v":""},null,{"$f":"IF($C$574=\"\",\"\",Z574/$C$574)","v":""},null,{"$f":"IF($C$574=\"\",\"\",AB574/$C$574)","v":""},null,{"$f":"IF($C$574=\"\",\"\",AD574/$C$574)","v":""},null,{"$f":"IF($C$574=\"\",\"\",AF574/$C$574)","v":""},null,{"$f":"IF($C$574=\"\",\"\",AH574/$C$574)","v":""},null,{"$f":"IF($C$574=\"\",\"\",AJ574/$C$574)","v":""},null,{"$f":"IF($C$574=\"\",\"\",AL574/$C$574)","v":""},null,{"$f":"IF($C$574=\"\",\"\",AN574/$C$574)","v":""},null,{"$f":"IF($C$574=\"\",\"\",AP574/$C$574)","v":""},null,{"$f":"IF($C$574=\"\",\"\",AR574/$C$574)","v":""},null,{"$f":"IF($C$574=\"\",\"\",AT574/$C$574)","v":""},null,{"$f":"IF($C$574=\"\",\"\",AV574/$C$574)","v":""},null,{"$f":"IF($C$574=\"\",\"\",AX574/$C$574)","v":""},null,{"$f":"IF($C$574=\"\",\"\",AZ574/$C$574)","v":""},null,{"$f":"IF($C$574=\"\",\"\",BB574/$C$574)","v":""},null,0]
[null,null,null,null,{"$f":"IF($C$575=\"\",\"\",F575/$C$575)","v":""},null,{"$f":"IF($C$575=\"\",\"\",H575/$C$575)","v":""},null,{"$f":"IF($C$575=\"\",\"\",J575/$C$575)","v":""},null,{"$f":"IF($C$575=\"\",\"\",L575/$C$575)","v":""},null,{"$f":"IF($C$575=\"\",\"\",N575/$C$575)","v":""},null,{"$f":"IF($C$575=\"\",\"\",P575/$C$575)","v":""},null,{"$f":"IF($C$575=\"\",\"\",R575/$C$575)","v":""},null,{"$f":"IF($C$575=\"\",\"\",T575/$C$575)","v":""},null,{"$f":"IF($C$575=\"\",\"\",V575/$C$575)","v":""},null,{"$f":"IF($C$575=\"\",\"\",X575/$C$575)","v":""},null,{"$f":"IF($C$575=\"\",\"\",Z575/$C$575)","v":""},null,{"$f":"IF($C$575=\"\",\"\",AB575/$C$575)","v":""},null,{"$f":"IF($C$575=\"\",\"\",AD575/$C$575)","v":""},null,{"$f":"IF($C$575=\"\",\"\",AF575/$C$575)","v":""},null,{"$f":"IF($C$575=\"\",\"\",AH575/$C$575)","v":""},null,{"$f":"IF($C$575=\"\",\"\",AJ575/$C$575)","v":""},null,{"$f":"IF($C$575=\"\",\"\",AL575/$C$575)","v":""},null,{"$f":"IF($C$575=\"\",\"\",AN575/$C$575)","v":""},null,{"$f":"IF($C$575=\"\",\"\",AP575/$C$575)","v":""},null,{"$f":"IF($C$575=\"\",\"\",AR575/$C$575)","v":""},null,{"$f":"IF($C$575=\"\",\"\",AT575/$C$575)","v":""},null,{"$f":"IF($C$575=\"\",\"\",AV575/$C$575)","v":""},null,{"$f":"IF($C$575=\"\",\"\",AX575/$C$575)","v":""},null,{"$f":"IF($C$575=\"\",\"\",AZ575/$C$575)","v":""},null,{"$f":"IF($C$575=\"\",\"\",BB575/$C$575)","v":""},null,{"$f":"SUM(BB575,AZ575,AX575,AV575,AT575,AR575,AP575,AN575,AL575,AJ575,AH575,AF575,AD575,AB575,Z575,X575,V575,T575,R575,P575,N575,L575,J575,H575,F575)","v":0}]
["TOTAL HOURS",null,null,null,null,{"$f":"SUM(F546:F575)","v":0},null,{"$f":"SUM(H546:H575)","v":0},null,{"$f":"SUM(J546:J575)","v":0},null,{"$f":"SUM(L546:L575)","v":0},null,{"$f":"SUM(N546:N575)","v":0},null,{"$f":"SUM(P546:P575)","v":0},null,{"$f":"SUM(R546:R575)","v":0},null,{"$f":"SUM(T546:T575)","v":0},null,{"$f":"SUM(V546:V575)","v":0},null,{"$f":"SUM(X546:X575)","v":0},null,{"$f":"SUM(Z546:Z575)","v":0},null,{"$f":"SUM(AB546:AB575)","v":0},null,{"$f":"SUM(AD546:AD575)","v":0},null,{"$f":"SUM(AF546:AF575)","v":0},null,{"$f":"SUM(AH546:AH575)","v":0},null,{"$f":"SUM(AJ546:AJ575)","v":0},null,{"$f":"SUM(AL546:AL575)","v":0},null,{"$f":"SUM(AN546:AN575)","v":0},null,{"$f":"SUM(AP546:AP575)","v":0},null,{"$f":"SUM(AR546:AR575)","v":0},null,{"$f":"SUM(AT546:AT575)","v":0},null,{"$f":"SUM(AV546:AV575)","v":0},null,{"$f":"SUM(AX546:AX575)","v":0},null,{"$f":"SUM(AZ546:AZ575)","v":0},null,{"$f":"SUM(BB546:BB575)","v":0},{"$f":"SUM(E576:BB576)","v":0}]
["TOTAL WORKDAYS",null,null,null,null,{"$f":"F576/8","v":0},null,{"$f":"H576/8","v":0},null,{"$f":"J576/8","v":0},null,{"$f":"L576/8","v":0},null,{"$f":"N576/8","v":0},null,{"$f":"P576/8","v":0},null,{"$f":"R576/8","v":0},null,{"$f":"T576/8","v":0},null,{"$f":"V576/8","v":0},null,{"$f":"X576/8","v":0},null,{"$f":"Z576/8","v":0},null,{"$f":"AB576/8","v":0},null,{"$f":"AD576/8","v":0},null,0,null,{"$f":"AH576/8","v":0},null,0,null,{"$f":"AL576/8","v":0},null,0,null,{"$f":"AP576/8","v":0},null,0,null,{"$f":"AT576/8","v":0},null,{"$f":"AV576/8","v":0},null,{"$f":"AX576/8","v":0},null,{"$f":"AZ576/8","v":0},null,{"$f":"BB576/8","v":0},{"$f":"SUM(E577:BB577)","v":0}]
["TOTAL RAW LABOR",null,null,null,null,{"$f":"$E$13*F576","v":0},null,{"$f":"$G$13*H576","v":0},null,{"$f":"$I$13*J576","v":0},null,{"$f":"$K$13*L576","v":0},null,{"$f":"$M$13*N576","v":0},null,{"$f":"$O$13*P576","v":0},null,{"$f":"$Q$13*R576","v":0},null,{"$f":"$S$13*T576","v":0},null,{"$f":"$U$13*V576","v":0},null,{"$f":"$W$13*X576","v":0},null,{"$f":"$Y$13*Z576","v":0},null,{"$f":"$AA$13*AB576","v":0},null,{"$f":"$AC$13*AD576","v":0},null,{"$f":"$AC$13*AF576","v":0},null,{"$f":"$AC$13*AH576","v":0},null,{"$f":"$AC$13*AJ576","v":0},null,{"$f":"$AC$13*AL576","v":0},null,{"$f":"$AC$13*AN576","v":0},null,{"$f":"$AC$13*AP576","v":0},null,{"$f":"$AC$13*AR576","v":0},null,{"$f":"$AC$13*AT576","v":0},null,{"$f":"$AC$13*AV576","v":0},null,{"$f":"$AC$13*AX576","v":0},null,{"$f":"$AC$13*AZ576","v":0},null,{"$f":"$AC$13*BB576","v":0},{"$f":"SUM(E578:BB578)","v":0}]
[]
["TOTAL HOURS",null,null,null,null,{"$f":"SUM(F576,F542,F508,F474,F440,F406,F372,F357,F343,F313,F250,F220,F203,F188,F175,F159,F138,F115,F53,F28)","v":0},null,{"$f":"SUM(H576,H542,H508,H474,H440,H406,H372,H357,H343,H313,H250,H220,H203,H188,H175,H159,H138,H115,H53,H28)","v":0},null,{"$f":"SUM(J576,J542,J508,J474,J440,J406,J372,J357,J343,J313,J250,J220,J203,J188,J175,J159,J138,J115,J53,J28)","v":0},null,{"$f":"SUM(L576,L542,L508,L474,L440,L406,L372,L357,L343,L313,L250,L220,L203,L188,L175,L159,L138,L115,L53,L28)","v":0},null,{"$f":"SUM(N576,N542,N508,N474,N440,N406,N372,N357,N343,N313,N250,N220,N203,N188,N175,N159,N138,N115,N53,N28)","v":0},null,{"$f":"SUM(P576,P542,P508,P474,P440,P406,P372,P357,P343,P313,P250,P220,P203,P188,P175,P159,P138,P115,P53,P28)","v":0},null,{"$f":"SUM(R576,R542,R508,R474,R440,R406,R372,R357,R343,R313,R250,R220,R203,R188,R175,R159,R138,R115,R53,R28)","v":0},null,{"$f":"SUM(T576,T542,T508,T474,T440,T406,T372,T357,T343,T313,T250,T220,T203,T188,T175,T159,T138,T115,T53,T28)","v":0},null,{"$f":"SUM(V576,V542,V508,V474,V440,V406,V372,V357,V343,V313,V250,V220,V203,V188,V175,V159,V138,V115,V53,V28)","v":0},null,{"$f":"SUM(X576,X542,X508,X474,X440,X406,X372,X357,X343,X313,X250,X220,X203,X188,X175,X159,X138,X115,X53,X28)","v":0},null,{"$f":"SUM(Z576,Z542,Z508,Z474,Z440,Z406,Z372,Z357,Z343,Z313,Z250,Z220,Z203,Z188,Z175,Z159,Z138,Z115,Z53,Z28)","v":0},null,{"$f":"SUM(AB576,AB542,AB508,AB474,AB440,AB406,AB372,AB357,AB343,AB313,AB250,AB220,AB203,AB188,AB175,AB159,AB138,AB115,AB53,AB28)","v":0},null,{"$f":"SUM(AD576,AD542,AD508,AD474,AD440,AD406,AD372,AD357,AD343,AD313,AD250,AD220,AD203,AD188,AD175,AD159,AD138,AD115,AD53,AD28)","v":0},null,{"$f":"SUM(AF576,AF542,AF508,AF474,AF440,AF406,AF372,AF357,AF343,AF313,AF250,AF220,AF203,AF188,AF175,AF159,AF138,AF115,AF53,AF28)","v":0},null,{"$f":"SUM(AH576,AH542,AH508,AH474,AH440,AH406,AH372,AH357,AH343,AH313,AH250,AH220,AH203,AH188,AH175,AH159,AH138,AH115,AH53,AH28)","v":0},null,{"$f":"SUM(AJ576,AJ542,AJ508,AJ474,AJ440,AJ406,AJ372,AJ357,AJ343,AJ313,AJ250,AJ220,AJ203,AJ188,AJ175,AJ159,AJ138,AJ115,AJ53,AJ28)","v":0},null,{"$f":"SUM(AL576,AL542,AL508,AL474,AL440,AL406,AL372,AL357,AL343,AL313,AL250,AL220,AL203,AL188,AL175,AL159,AL138,AL115,AL53,AL28)","v":0},null,{"$f":"SUM(AN576,AN542,AN508,AN474,AN440,AN406,AN372,AN357,AN343,AN313,AN250,AN220,AN203,AN188,AN175,AN159,AN138,AN115,AN53,AN28)","v":0},null,{"$f":"SUM(AP576,AP542,AP508,AP474,AP440,AP406,AP372,AP357,AP343,AP313,AP250,AP220,AP203,AP188,AP175,AP159,AP138,AP115,AP53,AP28)","v":0},null,{"$f":"SUM(AR576,AR542,AR508,AR474,AR440,AR406,AR372,AR357,AR343,AR313,AR250,AR220,AR203,AR188,AR175,AR159,AR138,AR115,AR53,AR28)","v":0},null,{"$f":"SUM(AT576,AT542,AT508,AT474,AT440,AT406,AT372,AT357,AT343,AT313,AT250,AT220,AT203,AT188,AT175,AT159,AT138,AT115,AT53,AT28)","v":0},null,{"$f":"SUM(AV576,AV542,AV508,AV474,AV440,AV406,AV372,AV357,AV343,AV313,AV250,AV220,AV203,AV188,AV175,AV159,AV138,AV115,AV53,AV28)","v":0},null,{"$f":"SUM(AX576,AX542,AX508,AX474,AX440,AX406,AX372,AX357,AX343,AX313,AX250,AX220,AX203,AX188,AX175,AX159,AX138,AX115,AX53,AX28)","v":0},null,{"$f":"SUM(AZ576,AZ542,AZ508,AZ474,AZ440,AZ406,AZ372,AZ357,AZ343,AZ313,AZ250,AZ220,AZ203,AZ188,AZ175,AZ159,AZ138,AZ115,AZ53,AZ28)","v":0},null,{"$f":"SUM(BB576,BB542,BB508,BB474,BB440,BB406,BB372,BB357,BB343,BB313,BB250,BB220,BB203,BB188,BB175,BB159,BB138,BB115,BB53,BB28)","v":0},{"$f":"SUM(E580:BB580)","v":0}]
["TOTAL WORKDAYS",null,null,null,null,{"$f":"F580/8","v":0},null,{"$f":"H580/8","v":0},null,{"$f":"J580/8","v":0},null,{"$f":"L580/8","v":0},null,{"$f":"N580/8","v":0},null,{"$f":"P580/8","v":0},null,{"$f":"R580/8","v":0},null,{"$f":"T580/8","v":0},null,{"$f":"V580/8","v":0},null,{"$f":"X580/8","v":0},null,{"$f":"Z580/8","v":0},null,{"$f":"AB580/8","v":0},null,{"$f":"AD580/8","v":0},null,0,null,{"$f":"AH580/8","v":0},null,0,null,{"$f":"AL580/8","v":0},null,0,null,{"$f":"AP580/8","v":0},null,0,null,{"$f":"AT580/8","v":0},null,{"$f":"AV580/8","v":0},null,{"$f":"AX580/8","v":0},null,{"$f":"AZ580/8","v":0},null,{"$f":"BB580/8","v":0},{"$f":"SUM(E581:BB581)","v":0}]
["TOTAL RAW LABOR",null,null,null,null,{"$f":"$E$13*F580","v":0},null,{"$f":"$G$13*H580","v":0},null,{"$f":"$I$13*J580","v":0},null,{"$f":"$K$13*L580","v":0},null,{"$f":"$M$13*N580","v":0},null,{"$f":"$O$13*P580","v":0},null,{"$f":"$Q$13*R580","v":0},null,{"$f":"$S$13*T580","v":0},null,{"$f":"$U$13*V580","v":0},null,{"$f":"$W$13*X580","v":0},null,{"$f":"$Y$13*Z580","v":0},null,{"$f":"$AA$13*AB580","v":0},null,{"$f":"$AC$13*AD580","v":0},null,{"$f":"$AC$13*AF580","v":0},null,{"$f":"$AC$13*AH580","v":0},null,{"$f":"$AC$13*AJ580","v":0},null,{"$f":"$AC$13*AL580","v":0},null,{"$f":"$AC$13*AN580","v":0},null,{"$f":"$AC$13*AP580","v":0},null,{"$f":"$AC$13*AR580","v":0},null,{"$f":"$AC$13*AT580","v":0},null,{"$f":"$AC$13*AV580","v":0},null,{"$f":"$AC$13*AX580","v":0},null,{"$f":"$AC$13*AZ580","v":0},null,{"$f":"$AC$13*BB580","v":0},{"$f":"SUM(E582:BB582)","v":0}]
[]
["Contract Overhead Rate",null,null,{"$f":"MUNICIPAL_SIGNAL_SYSTEM_SUB4_CONSULTANT_OVERHEAD","v":0}]
["Overhead Cost",null,null,null,{"$f":"BC582*D584","v":0}]
["Fee",null,null,{"$f":"MUNICIPAL_SIGNAL_SYSTEM_SUB4_CONSULTANT_FEE","v":0.09},{"$f":"(BC582+E585)*0.09","v":0}]
["FCCM",null,null,{"$f":"MUNICIPAL_SIGNAL_SYSTEM_SUB4_CONSULTANT_COSTofCAPITAL","v":0},{"$f":"BC582*D587","v":0}]
["TOTAL RAW LABOR",null,null,null,{"$f":"BC582+E585+E586+E587","v":0}]
["DIRECT EXPENSES",null,null,null,{"$f":"MUNICIPAL.SIGNAL.SYSTEM_SUB4_DIRECT_NONSALARY_TOTAL","v":0}]
["MUNICIPAL SIGNAL SYSTEM ESTIMATE",null,null,null,{"$f":"SUM(E588:E589)","v":0}]
[]
[]
[]
[]
[]
[{"$f":"CONCATENATE(\"NON-SALARY DIRECT COSTS -   NCDOT (\",A8,\")\")","v":"NON-SALARY DIRECT COSTS -   NCDOT (CONSULTANT NAME)"}]
[]
["Task 1.0","Project Management and Control",null,null,null,null,null,null,null,null,null,null,null,null,null,"Comments "]
["REPRODUCTION"]
[null,"Xerox Copies (8.5\" x 11\" B&W)"]
[null,"Miscellaneous (Project notes, instructions, recordation, documentation,correspondence, misc. meeting minutes, etc.)",null,null,null,null,null,null,null,"Sheets","X",{"$f":"LETTERCOPIES","v":0.14000000000000001},"per Sheet","=",{"$f":"+I601*L601","v":0}]
[1.1000000000000001,"Project Work Plan",null,null,null,null,"copies","X",null,"Sheets","X",{"$f":"LETTERCOPIES","v":0.14000000000000001},"per Sheet","=",{"$f":"+F602*I602*L602","v":0}]
[1.2,"Progress/Status Meeting Minutes",null,"meetings","X",null,"reports","X",null,"Sheets","X",{"$f":"LETTERCOPIES","v":0.14000000000000001},"per Sheet","=",{"$f":"+C603*F603*I603*L603","v":0}]
[1.3,"Project Status Reports  & Invoices",null,"months","X",null,"reports","X",null,"Sheets","X",{"$f":"LETTERCOPIES","v":0.14000000000000001},"per Sheet","=",{"$f":"+C604*F604*I604*L604","v":0}]
[]
[null,"Xerox Copies (11\" x 17\" B&W)"]
[null,"Miscellaneous ",null,null,null,null,null,null,null,"Sheets","X",{"$f":"LEDGERCOPIES","v":0.34},"per Sheet","=",{"$f":"+I607*L607","v":0}]
[1.1000000000000001,"Project Work Plan/Schedule",null,"Months","X",null,"copies","X",null,"Sheets","X",{"$f":"LEDGERCOPIES","v":0.34},"per Sheet","=",{"$f":"+C608*F608*I608*L608","v":0}]
[1.2,"Progress/Status Meeting Minutes",null,null,null,null,"reports","X",null,"Sheets","X",{"$f":"LEDGERCOPIES","v":0.34},"per Sheet","=",{"$f":"+F609*I609*L609","v":0}]
[1.5,"Subconsultant Management and Coordination",null,null,null,null,null,null,null,"Sheets","X",{"$f":"LEDGERCOPIES","v":0.34},"per Sheet","=",{"$f":"+I610*L610","v":0}]
[]
["CAR RENTAL"]
[null," Trips"]
[null,"Kickoff meeting (from )",null,null,null,null,"trips","X",null,"day/Trip","X",{"$f":"CARRENTAL","v":50},"per day","=",{"$f":"+F614*I614*L614","v":0}]
[null,null,null,null,null,null,"trips","X",null,"Miles/Trip","X",{"$f":"GASforRENTAL","v":0.2},"per Mile","=",{"$f":"+F615*I615*L615","v":0}]
[null,"Kickoff meeting (from )",null,null,null,null,"Trips","X",null,"day/Trip","X",{"$f":"CARRENTAL","v":50},"per day","=",0]
[null,null,null,null,null,null,"trips","X",null,"Miles/Trip","X",{"$f":"GASforRENTAL","v":0.2},"per Mile","=",0]
[null,"Project Meetings (from )",null,null,null,null,"Trips","X",null,"day/Trip","X",{"$f":"CARRENTAL","v":50},"per day","=",0]
[null,null,null,null,null,null,"trips","X",null,"Miles/Trip","X",{"$f":"GASforRENTAL","v":0.2},"per Mile","=",0]
[null,"Project Meetings (from )",null,null,null,null,"trips","X",null,"day/Trip","X",{"$f":"CARRENTAL","v":50},"per day","=",0]
[null,null,null,null,null,null,"trips","X",null,"Miles/Trip","X",{"$f":"GASforRENTAL","v":0.2},"per Mile","=",0]
[]
["OVERNIGHT TRAVEL"]
[null,"Hotel - Project Meetings",null,"persons","X",null,"trips","X",null,"nights/trip","X",{"$f":"LODGING_LUMP.SUM","v":95},"per night","=",{"$f":"+C624*F624*I624*L624","v":0}]
[null,"Per Diem - Project Meetings - Breakfast, Lunch, and Dinner",null,"persons","X",null,"trips","X",null,"days/trip","X",{"$f":"BREAKFAST+LUNCH+DINNER","v":46.5},"per day","=",{"$f":"+C625*F625*I625*L625","v":0}]
[null,"Per Diem - Project Meetings - Breakfast",null,"persons","X",null,"trips","X",null,"days/trip","X",{"$f":"BREAKFAST","v":10.1},"per day","=",{"$f":"+C626*F626*I626*L626","v":0}]
[null,"Per Diem - Project Meetings - Lunch",null,"persons","X",null,"trips","X",null,"days/trip","X",{"$f":"LUNCH","v":13.3},"per day","=",0]
[null,"Per Diem - Project Meetings - Dinner",null,"persons","X",null,"trips","X",null,"days/trip","X",{"$f":"DINNER","v":23.1},"per day","=",0]
[]
["OTHER"]
[null,null,null,"UOM","X",null,"UOM","X",null,"UOM","X",null,"UOM","=",{"$f":"+C631*F631*I631*L631","v":0}]
[null,null,null,"UOM","X",null,"UOM","X",null,"UOM","X",null,"UOM","=",0]
[null,null,null,"UOM","X",null,"UOM","X",null,"UOM","X",null,"UOM","=",0]
[null,null,null,"UOM","X",null,"UOM","X",null,"UOM","X",null,"UOM","=",0]
[null,null,null,"UOM","X",null,"UOM","X",null,"UOM","X",null,"UOM","=",0]
[null,{"$f":"CONCATENATE(\"Project Website (\",A8,\" SharePoint)\")","v":"Project Website (CONSULTANT NAME SharePoint)"}]
[null,"Initial Set-up Charge (incl. 1 GB file storage)",null,null,null,null,null,null,null,"Each","X",500,null,"=",{"$f":"+I637*L637","v":0}]
[null,"Monthly Hosting Fee (up to 20 external users)",null,null,null,null,null,null,null,"Months","X",105,"per month","=",{"$f":"+I638*L638","v":0}]
[null,"Additional Gigabit of File Storage",null,null,null,null,null,null,null,"Each","X",15,null,"=",0]
[]
[null,null,null,null,null,null,null,null,null,null,null,null,"Subtotal",null,{"$f":"SUM(O601:O639)","v":0}]
[]
["Task 2.0","Functional Design"]
["REPRODUCTION"]
[null,"Xerox Copies (8.5\" x 11\" B&W)"]
["2.1.1","Exist. Sys Operations & Functionality"]
[null,"Preliminary Tech Memo",null,null,null,null,"Sets","X",null,"Sheets/Set","X",{"$f":"LETTERCOPIES","v":0.14000000000000001},"per Sheet","=",{"$f":"+F647*I647*L647","v":0}]
[null,"Final Tech Memo",null,null,null,null,"Sets","X",null,"Sheets/Set","X",{"$f":"LETTERCOPIES","v":0.14000000000000001},"per Sheet","=",{"$f":"+F648*I648*L648","v":0}]
["2.1.2","Functional Needs & Boundaries"]
[null,"Preliminary Tech Memo",null,null,null,null,"Sets","X",null,"Sheets/Set","X",{"$f":"LETTERCOPIES","v":0.14000000000000001},"per Sheet","=",0]
[null,"Final Tech Memo",null,null,null,null,"Sets","X",null,"Sheets/Set","X",{"$f":"LETTERCOPIES","v":0.14000000000000001},"per Sheet","=",0]
["2.1.3","Concept of Operations"]
[null,"Preliminary Tech Memo",null,null,null,null,"Sets","X",null,"Sheets/Set","X",{"$f":"LETTERCOPIES","v":0.14000000000000001},"per Sheet","=",0]
[null,"Final Tech Memo",null,null,null,null,"Sets","X",null,"Sheets/Set","X",{"$f":"LETTERCOPIES","v":0.14000000000000001},"per Sheet","=",0]
["2.1.4","Regional Architecture Compliance"]
[null,"Preliminary Tech Memo",null,null,null,null,"Sets","X",null,"Sheets/Set","X",{"$f":"LETTERCOPIES","v":0.14000000000000001},"per Sheet","=",0]
[null,"Final Tech Memo",null,null,null,null,"Sets","X",null,"Sheets/Set","X",{"$f":"LETTERCOPIES","v":0.14000000000000001},"per Sheet","=",0]
["2.1.5","Draft Final Systems Engineering Document",null,null,null,null,"Sets","X",null,"Sheets/Set","X",{"$f":"LETTERCOPIES","v":0.14000000000000001},"per Sheet","=",0]
[null,"Binding",null,null,null,null,null,null,null,"sets","X",{"$f":"COVERS+BINDERS","v":1},"per set","=",{"$f":"+I659*L659","v":0}]
["2.1.6","Final Systems Engineering Document",null,null,null,null,"Sets","X",null,"Sheets/Set","X",{"$f":"LETTERCOPIES","v":0.14000000000000001},"per Sheet","=",{"$f":"+F660*I660*L660","v":0}]
[null,"Binding",null,null,null,null,null,null,null,"sets","X",{"$f":"COVERS+BINDERS","v":1},"per set","=",{"$f":"+I661*L661","v":0}]
[null,"Miscellaneous (Corres., etc.)",null,null,null,null,null,null,null,"Sheets","X",{"$f":"LETTERCOPIES","v":0.14000000000000001},"per Sheet","=",{"$f":"+I662*L662","v":0}]
[2.2000000000000002,"System Maintenance & Staffing Plan"]
[null,"Preliminary Tech Memo",null,null,null,null,"Sets","X",null,"Sheets/Set","X",{"$f":"LETTERCOPIES","v":0.14000000000000001},"per Sheet","=",{"$f":"+F664*I664*L664","v":0}]
[null,"Final Tech Memo",null,null,null,null,"Sets","X",null,"Sheets/Set","X",{"$f":"LETTERCOPIES","v":0.14000000000000001},"per Sheet","=",{"$f":"+F665*I665*L665","v":0}]
[2.2999999999999998,"Municipal Building Modifications"]
[null,"Preliminary Tech Memo",null,null,null,null,"Sets","X",null,"Sheets/Set","X",{"$f":"LETTERCOPIES","v":0.14000000000000001},"per Sheet","=",{"$f":"+F667*I667*L667","v":0}]
[null,"Final Tech Memo",null,null,null,null,"Sets","X",null,"Sheets/Set","X",{"$f":"LETTERCOPIES","v":0.14000000000000001},"per Sheet","=",0]
[2.4,"TMC Modifications"]
[null,"Preliminary Tech Memo",null,null,null,null,"Sets","X",null,"Sheets/Set","X",{"$f":"LETTERCOPIES","v":0.14000000000000001},"per Sheet","=",0]
[null,"Final Tech Memo",null,null,null,null,"Sets","X",null,"Sheets/Set","X",{"$f":"LETTERCOPIES","v":0.14000000000000001},"per Sheet","=",0]
[]
[null,"Xerox Copies (11\" x 17\" B&W)"]
[2.1,"Plans and Exhibits - Black/White",null,null,null,null,"Sets","X",null,"Sheets/Set","X",{"$f":"LEDGERCOPIES","v":0.34},"per Sheet","=",0]
[null,"Miscellaneous Check Plots",null,null,null,null,null,null,null,"Sheets","X",{"$f":"LEDGERCOPIES","v":0.34},"per Sheet","=",{"$f":"+I675*L675","v":0}]
[]
[null,"Xerox Copies (8.5\" x 11\" Color)"]
[null,"Plans and Exhibits - Color"]
["2.1.1","Exist. Sys Operations & Functionality"]
[null,"Preliminary Tech Memo",null,null,null,null,"Sets","X",null,"Sheets/Set","X",{"$f":"LETTERCOLOR","v":0.83},"per Sheet","=",{"$f":"+F680*I680*L680","v":0}]
[null,"Final Tech Memo",null,null,null,null,"Sets","X",null,"Sheets/Set","X",{"$f":"LETTERCOLOR","v":0.83},"per Sheet","=",{"$f":"+F681*I681*L681","v":0}]
["2.1.2","Functional Needs & Boundaries"]
[null,"Preliminary Tech Memo",null,null,null,null,"Sets","X",null,"Sheets/Set","X",{"$f":"LETTERCOLOR","v":0.83},"per Sheet","=",0]
[null,"Final Tech Memo",null,null,null,null,"Sets","X",null,"Sheets/Set","X",{"$f":"LETTERCOLOR","v":0.83},"per Sheet","=",0]
["2.1.3","Concept of Operations"]
[null,"Preliminary Tech Memo",null,null,null,null,"Sets","X",null,"Sheets/Set","X",{"$f":"LETTERCOLOR","v":0.83},"per Sheet","=",0]
[null,"Final Tech Memo",null,null,null,null,"Sets","X",null,"Sheets/Set","X",{"$f":"LETTERCOLOR","v":0.83},"per Sheet","=",0]
["2.1.4","Regional Architecture Compliance"]
[null,"Preliminary Tech Memo",null,null,null,null,"Sets","X",null,"Sheets/Set","X",{"$f":"LETTERCOLOR","v":0.83},"per Sheet","=",0]
[null,"Final Tech Memo",null,null,null,null,"Sets","X",null,"Sheets/Set","X",{"$f":"LETTERCOLOR","v":0.83},"per Sheet","=",0]
["2.1.5","Draft Final Systems Engineering Document",null,null,null,null,"Sets","X",null,"Sheets/Set","X",{"$f":"LETTERCOLOR","v":0.83},"per Sheet","=",0]
["2.1.6","Final Systems Engineering Document",null,null,null,null,"Sets","X",null,"Sheets/Set","X",{"$f":"LETTERCOLOR","v":0.83},"per Sheet","=",0]
[2.2000000000000002,"System Maintenance & Staffing Plan"]
[null,"Preliminary Tech Memo",null,null,null,null,"Sets","X",null,"Sheets/Set","X",{"$f":"LETTERCOLOR","v":0.83},"per Sheet","=",0]
[null,"Final Tech Memo",null,null,null,null,"Sets","X",null,"Sheets/Set","X",{"$f":"LETTERCOLOR","v":0.83},"per Sheet","=",0]
[2.2999999999999998,"Municipal Building Modifications"]
[null,"Preliminary Tech Memo",null,null,null,null,"Sets","X",null,"Sheets/Set","X",{"$f":"LETTERCOLOR","v":0.83},"per Sheet","=",0]
[null,"Final Tech Memo",null,null,null,null,"Sets","X",null,"Sheets/Set","X",{"$f":"LETTERCOLOR","v":0.83},"per Sheet","=",0]
[2.4,"TMC Modifications"]
[null,"Preliminary Tech Memo",null,null,null,null,"Sets","X",null,"Sheets/Set","X",{"$f":"LETTERCOLOR","v":0.83},"per Sheet","=",0]
[null,"Final Tech Memo",null,null,null,null,"Sets","X",null,"Sheets/Set","X",{"$f":"LETTERCOLOR","v":0.83},"per Sheet","=",0]
[]
[null,"Miscellaneous Check Plots",null,null,null,null,null,null,null,"Sheets","X",{"$f":"LETTERCOLOR","v":0.83},"per Sheet","=",{"$f":"+I703*L703","v":0}]
[]
[null,"Xerox Copies (11\" x 17\" Color)",null,null,null,null,null,null," "]
[null,"Plans and Exhibits - Color"]
["2.1.1","Exist. Sys Operations & Functionality"]
[null,"Preliminary Tech Memo",null,null,null,null,"Sets","X",null,"Sheets/Set","X",{"$f":"ROLLPLOTSlong","v":1.5},"per Sheet","=",{"$f":"+F708*I708*L708","v":0}]
[null,"Final Tech Memo",null,null,null,null,"Sets","X",null,"Sheets/Set","X",{"$f":"ROLLPLOTSlong","v":1.5},"per Sheet","=",{"$f":"+F709*I709*L709","v":0}]
["2.1.2","Functional Needs & Boundaries"]
[null,"Preliminary Tech Memo",null,null,null,null,"Sets","X",null,"Sheets/Set","X",{"$f":"ROLLPLOTSlong","v":1.5},"per Sheet","=",0]
[null,"Final Tech Memo",null,null,null,null,"Sets","X",null,"Sheets/Set","X",{"$f":"ROLLPLOTSlong","v":1.5},"per Sheet","=",0]
["2.1.3","Concept of Operations"]
[null,"Preliminary Tech Memo",null,null,null,null,"Sets","X",null,"Sheets/Set","X",{"$f":"ROLLPLOTSlong","v":1.5},"per Sheet","=",0]
[null,"Final Tech Memo",null,null,null,null,"Sets","X",null,"Sheets/Set","X",{"$f":"ROLLPLOTSlong","v":1.5},"per Sheet","=",0]
["2.1.4","Regional Architecture Compliance"]
[null,"Preliminary Tech Memo",null,null,null,null,"Sets","X",null,"Sheets/Set","X",{"$f":"ROLLPLOTSlong","v":1.5},"per Sheet","=",0]
[null,"Final Tech Memo",null,null,null,null,"Sets","X",null,"Sheets/Set","X",{"$f":"ROLLPLOTSlong","v":1.5},"per Sheet","=",0]
["2.1.5","Draft Final Systems Engineering Document",null,null,null,null,"Sets","X",null,"Sheets/Set","X",{"$f":"ROLLPLOTSlong","v":1.5},"per Sheet","=",0]
["2.1.6","Final Systems Engineering Document",null,null,null,null,"Sets","X",null,"Sheets/Set","X",{"$f":"ROLLPLOTSlong","v":1.5},"per Sheet","=",0]
[2.2000000000000002,"System Maintenance & Staffing Plan"]
[null,"Preliminary Tech Memo",null,null,null,null,"Sets","X",null,"Sheets/Set","X",{"$f":"ROLLPLOTSlong","v":1.5},"per Sheet","=",0]
[null,"Final Tech Memo",null,null,null,null,"Sets","X",null,"Sheets/Set","X",{"$f":"ROLLPLOTSlong","v":1.5},"per Sheet","=",0]
[2.2999999999999998,"Municipal Building Modifications"]
[null,"Preliminary Tech Memo",null,null,null,null,"Sets","X",null,"Sheets/Set","X",{"$f":"ROLLPLOTSlong","v":1.5},"per Sheet","=",0]
[null,"Final Tech Memo",null,null,null,null,"Sets","X",null,"Sheets/Set","X",{"$f":"ROLLPLOTSlong","v":1.5},"per Sheet","=",0]
[2.4,"TMC Modifications"]
[null,"Preliminary Tech Memo",null,null,null,null,"Sets","X",null,"Sheets/Set","X",{"$f":"ROLLPLOTSlong","v":1.5},"per Sheet","=",0]
[null,"Final Tech Memo",null,null,null,null,"Sets","X",null,"Sheets/Set","X",{"$f":"ROLLPLOTSlong","v":1.5},"per Sheet","=",0]
[]
[null,"Miscellaneous Check Plots",null,null,null,null,null,null,null,"Sheets","X",{"$f":"ROLLPLOTSlong","v":1.5},"per Sheet","=",{"$f":"+I731*L731","v":0}]
[]
["MILEAGE"]
[null," Trips"]
["2.3 & 2.4","Field investigate Muncipal Bldg and TMC",null,null,null,null,"Trips","X",null,"day/Trip","X",{"$f":"CARRENTAL","v":50},"per day","=",{"$f":"+F735*I735*L735","v":0}]
[null,null,null,null,null,null,"Trips","X",null,"Miles/Trip","X",{"$f":"GASforRENTAL","v":0.2},"per Mile","=",{"$f":"+F736*I736*L736","v":0}]
[null," Trips ",null,null,null,null,"Trips","X",null,"Miles/Trip","X",{"$f":"SEDAN","v":0.7},"per Mile","=",0]
[]
["OTHER"]
[null,"Postage & Courier",null,null,null,null,"Pack.","X",25,"Ea",null,null,null,"=",{"$f":"+F740*I740","v":0}]
[null,null,null,"UOM","X",null,"UOM","X",null,"UOM","X",null,"UOM","=",{"$f":"+C741*F741*I741*L741","v":0}]
[null,null,null,"UOM","X",null,"UOM","X",null,"UOM","X",null,"UOM","=",0]
[null,null,null,"UOM","X",null,"UOM","X",null,"UOM","X",null,"UOM","=",0]
[null,null,null,"UOM","X",null,"UOM","X",null,"UOM","X",null,"UOM","=",0]
[null,null,null,"UOM","X",null,"UOM","X",null,"UOM","X",null,"UOM","=",0]
[]
[null,null,null,null,null,null,null,null,null,null,null,null,"Subtotal",null,{"$f":"SUM(O646:O746)","v":0}]
["Task 3.0","Programmatic Categorical Exclusion & Supporting Tasks"]
["REPRODUCTION"]
[null,"Xerox Copies (8.5\" x 11\" B&W)"]
[null,"PCE Document",null,"submittals","X",null,"Sets","X",null,"Sheets","X",{"$f":"LETTERCOPIES","v":0.14000000000000001},"per Sheet","=",{"$f":"+C751*F751*I751*L751","v":0}]
[null,"Miscellaneous",null,null,null,null,null,null,null,"Sheets","X",{"$f":"LETTERCOPIES","v":0.14000000000000001},"per Sheet","=",{"$f":"+I752*L752","v":0}]
[]
[null,"Xerox Copies (8.5\" x 11\" Color)"]
[null,"Overview Map & Inset Maps",null,"submittals","X",null,"sets","X",null,"Sheets","X",{"$f":"LETTERCOLOR","v":0.83},"per Sheet","=",{"$f":"+C755*F755*I755*L755","v":0}]
[null,"Miscellaneous ",null,null,null,null,null,null,null,"Sheets","X",{"$f":"LETTERCOLOR","v":0.83},"per Sheet","=",{"$f":"+I756*L756","v":0}]
[]
[null,"Xerox Copies (11\" x 17\" B&W)"]
[null,"Tabular Summaries of Work",null,"submittals","X",null,"Sets","X",null,"Sheets/Set","X",{"$f":"LEDGERCOPIES","v":0.34},"per Sheet","=",{"$f":"+C759*F759*I759*L759","v":0}]
[null,"Miscellaneous Check Plots",null,null,null,null,null,null,null,"Sheets","X",{"$f":"LEDGERCOPIES","v":0.34},"per Sheet","=",{"$f":"+I760*L760","v":0}]
[]
[null,"Xerox Copies (11\" x 17\" Color)"]
[null,"Inset Maps",null,"submittals","X",null,"Sets","X",null,"Sheets/Set","X",{"$f":"ROLLPLOTSlong","v":1.5},"per Sheet","=",{"$f":"+C763*F763*I763*L763","v":0}]
[null,"Miscellaneous Check Plots",null,null,null,null,null,null,null,"Sheets","X",{"$f":"ROLLPLOTSlong","v":1.5},"per Sheet","=",{"$f":"+I764*L764","v":0}]
[]
[null,"Bond Prints - Color (34\" x 68\")"]
[null,"Overview Map",null,"submittals","X",null,"Sets","X",null,"Sheets/Set","X",{"$f":"BOND.LARGE","v":3.5},"per Sheet","=",{"$f":"+C767*F767*I767*L767","v":0}]
[]
["MILEAGE"]
[null," Trips  ( From )",null,null,null,null,"Trips","X",null,"Miles/Trip","X",{"$f":"SEDAN","v":0.7},"per Mile","=",{"$f":"+F770*I770*L770","v":0}]
[null," Trips"]
[null,"( From )",null,null,null,null,"Trips","X",null,"Miles/Trip","X",{"$f":"SEDAN","v":0.7},"per Mile","=",{"$f":"+F772*I772*L772","v":0}]
[null,"( From )",null,null,null,null,"Trips","X",null,"Miles/Trip","X",{"$f":"SEDAN","v":0.7},"per Mile","=",0]
[]
["OVERNIGHT TRAVEL"]
[null,"Hotel - from ",null,"persons","X",null,"trips","X",null,"nights/trip","X",{"$f":"LODGING_LUMP.SUM","v":95},"per night","=",{"$f":"+C776*F776*I776*L776","v":0}]
[null,"Per Diem -  staff - Breakfast, Lunch, & Dinner",null,"persons","X",null,"trips","X",null,"days/trip","X",{"$f":"BREAKFAST+LUNCH+DINNER","v":46.5},"per day","=",0]
[null,"Per Diem -  staff - Breakfast ",null,"persons","X",null,"trips","X",null,"days/trip","X",{"$f":"BREAKFAST","v":10.1},"per day","=",0]
[null,"Per Diem -  staff - Lunch",null,"persons","X",null,"trips","X",null,"days/trip","X",{"$f":"LUNCH","v":13.3},"per day","=",0]
[null,"Per Diem -  staff -  Dinner",null,"persons","X",null,"trips","X",null,"days/trip","X",{"$f":"DINNER","v":23.1},"per day","=",0]
[]
["OTHER"]
[null,null,null,"UOM","X",null,"UOM","X",null,"UOM","X",null,"UOM","=",{"$f":"+C783*F783*I783*L783","v":0}]
[null,null,null,"UOM","X",null,"UOM","X",null,"UOM","X",null,"UOM","=",0]
[null,null,null,"UOM","X",null,"UOM","X",null,"UOM","X",null,"UOM","=",0]
[null,null,null,"UOM","X",null,"UOM","X",null,"UOM","X",null,"UOM","=",0]
[null,null,null,"UOM","X",null,"UOM","X",null,"UOM","X",null,"UOM","=",0]
[]
[null,null,null,null,null,null,null,null,null,null,null,null,"Subtotal",null,{"$f":"SUM(O751:O780)","v":0}]
["Task 4.0","Communications System"]
["REPRODUCTION"]
[null,"Xerox Copies (8.5\" x 11\" B&W)"]
[null,"Communications Technical Memo",null,"submittals","X",null,"Sets","X",null,"Sheets","X",{"$f":"LETTERCOPIES","v":0.14000000000000001},"per Sheet","=",{"$f":"+C793*F793*I793*L793","v":0}]
[null,"Miscellaneous",null,null,null,null,null,null,null,"Sheets","X",{"$f":"LETTERCOPIES","v":0.14000000000000001},"per Sheet","=",{"$f":"+I794*L794","v":0}]
[]
[null,"Xerox Copies (11\" x 17\" B&W)"]
[null,"Block Diagrams",null,"submittals","X",null,"Sets","X",null,"Sheets/Set","X",{"$f":"LEDGERCOPIES","v":0.34},"per Sheet","=",{"$f":"+C797*F797*I797*L797","v":0}]
[null,"Miscellaneous",null,null,null,null,null,null,null,"Sheets/Set","X",{"$f":"LEDGERCOPIES","v":0.34},"per Sheet","=",{"$f":"+I798*L798","v":0}]
[]
[null,"Xerox Copies (8.5\" x 11\" Color)"]
[null,"Communications Technical Memo",null,"submittals","X",null,"Sets","X",null,"Sheets","X",{"$f":"LETTERCOLOR","v":0.83},"per Sheet","=",{"$f":"+C801*F801*I801*L801","v":0}]
[null,"Miscellaneous",null,null,null,null,null,null,null,"Sheets","X",{"$f":"LETTERCOLOR","v":0.83},"per Sheet","=",{"$f":"+I802*L802","v":0}]
[]
[null,"Xerox Copies (11\" x 17\" Color)"]
[null,"tech memo  - Color",null,null,null,null,"Sets","X",null,"Sheets/Set","X",{"$f":"ROLLPLOTSlong","v":1.5},"per Sheet","=",{"$f":"+F805*I805*L805","v":0}]
[]
[null,"Bond Prints (34\" x 68\")"]
[null,"Preliminary Comm Route Plan - Color",null,"submittals","X",null,"Sets","X",null,"Sheets/Set","X",{"$f":"BOND.LARGE","v":3.5},"per Sheet","=",{"$f":"+C808*F808*I808*L808","v":0}]
["CAR RENTAL"]
[null," Trips"]
[null,"Wireless Testing",null,null,null,null,"Trips","X",null,"day/Trip","X",{"$f":"CARRENTAL","v":50},"per day","=",{"$f":"+F811*I811*L811","v":0}]
[null,null,null,null,null,null,"trips","X",null,"Miles/Trip","X",{"$f":"GASforRENTAL","v":0.2},"per Mile","=",0]
["OVERNIGHT TRAVEL"]
[null,"Hotel - wireless testing",null,"persons","X",null,"trips","X",null,"nights/trip","X",{"$f":"LODGING_LUMP.SUM","v":95},"per night","=",{"$f":"+C814*F814*I814*L814","v":0}]
[null,"Per Diem - wireless testing - Breakfast, Lunch, and Dinner",null,"persons","X",null,"trips","X",null,"days/trip","X",{"$f":"BREAKFAST+LUNCH+DINNER","v":46.5},"per day","=",0]
[null,"Per Diem - wireless testing - Breakfast",null,"persons","X",null,"trips","X",null,"days/trip","X",{"$f":"BREAKFAST","v":10.1},"per day","=",0]
[null,"Per Diem - wireless testing - Lunch",null,"persons","X",null,"trips","X",null,"days/trip","X",{"$f":"LUNCH","v":13.3},"per day","=",0]
[null,"Per Diem - wireless testing - Dinner",null,"persons","X",null,"trips","X",null,"days/trip","X",{"$f":"DINNER","v":23.1},"per day","=",0]
[]
["OTHER"]
[null,"Postage & Courier",null,null,null,null,"Pack.","X",25,"Ea",null,null,null,"=",{"$f":"+F821*I821","v":0}]
[null,null,null,"UOM","X",null,"UOM","X",null,"UOM","X",null,"UOM","=",{"$f":"+C822*F822*I822*L822","v":0}]
[null,null,null,"UOM","X",null,"UOM","X",null,"UOM","X",null,"UOM","=",0]
[null,null,null,"UOM","X",null,"UOM","X",null,"UOM","X",null,"UOM","=",0]
[null,null,null,"UOM","X",null,"UOM","X",null,"UOM","X",null,"UOM","=",0]
[null,null,null,"UOM","X",null,"UOM","X",null,"UOM","X",null,"UOM","=",0]
[]
[null,null,null,null,null,null,null,null,null,null,null,null,"Subtotal",null,{"$f":"SUM(O793:O826)","v":0}]
["Task 5.0","Field Equipment Inventories"]
["REPRODUCTION"]
[null,"Xerox Copies (8.5\" x 11\" B&W)"]
["5.2.1","State Inventory Sheets",null,null,null,null,"sheets","X",null,"intersection","X",{"$f":"LETTERCOPIES","v":0.14000000000000001},"per Sheet","=",{"$f":"+F832*I832*L832","v":0}]
["5.2.2","City Inventory Sheets",null,null,null,null,"sheet","X",null,"intersection","X",{"$f":"LETTERCOPIES","v":0.14000000000000001},"per Sheet","=",{"$f":"+F833*I833*L833","v":0}]
[5.4,"Inventory CCTV Cabinets",null,null,null,null,"sheets","X",null,"cameras","X",{"$f":"LETTERCOPIES","v":0.14000000000000001},"per Sheet","=",0]
[null,"Miscellaneous",null,null,null,null,null,null,null,"Sheets","X",{"$f":"LETTERCOPIES","v":0.14000000000000001},"per Sheet","=",{"$f":"+I835*L835","v":0}]
[null,"Xerox Copies (11\" x 17\" B&W)"]
[5.2,"Signal Plans (NCDOT)",null,null,null,null,"Sets","X",null,"Sheets/Set","X",{"$f":"LEDGERCOPIES","v":0.34},"per Sheet","=",{"$f":"+F837*I837*L837","v":0}]
[5.2,"Signal Plans (CITY)",null,null,null,null,"Sets","X",null,"Sheets/Set","X",{"$f":"LEDGERCOPIES","v":0.34},"per Sheet","=",0]
[null,"Miscellaneous",null,null,null,null,null,null,null,"Sheets/Set","X",{"$f":"LEDGERCOPIES","v":0.34},"per Sheet","=",{"$f":"+I839*L839","v":0}]
[]
["CAR RENTAL"]
[null," Trips"]
[null,"Signals Data Collection Field Trips",null,null,null,null,"Trips","X",null,"day/Trip","X",{"$f":"CARRENTAL","v":50},"per day","=",{"$f":"+F843*I843*L843","v":0}]
[null,null,null,null,null,null,"trips","X",null,"Miles/Trip","X",{"$f":"GASforRENTAL","v":0.2},"per Mile","=",0]
[null,"CCTV Cabinet Inventory Field Trips",null,null,null,null,"Trips","X",null,"day/Trip","X",{"$f":"CARRENTAL","v":50},"per day","=",0]
[null,null,null,null,null,null,"trips","X",null,"Miles/Trip","X",{"$f":"GASforRENTAL","v":0.2},"per Mile","=",0]
[]
["OVERNIGHT TRAVEL"]
[null,"Hotel - signal inventories",null,"persons","X",null,"trips","X",null,"nights/trip","X",{"$f":"LODGING_LUMP.SUM","v":95},"per night","=",{"$f":"+C849*F849*I849*L849","v":0}]
[null,"Hotel - CCTV inventories",null,"person","X",null,"trips","X",null,"nights/trip","X",{"$f":"LODGING_LUMP.SUM","v":95},"per night","=",0]
[null,"Per Diem - Signal inventories - Breakfast, Lunch, & Dinner",null,"persons","X",null,"trips","X",null,"days/trip","X",{"$f":"BREAKFAST+LUNCH+DINNER","v":46.5},"per day","=",0]
[null,"Per Diem - Signal inventories - Breakfast ",null,"persons","X",null,"trips","X",null,"days/trip","X",{"$f":"BREAKFAST","v":10.1},"per day","=",0]
[null,"Per Diem - Signal inventories - Lunch",null,"persons","X",null,"trips","X",null,"days/trip","X",{"$f":"LUNCH","v":13.3},"per day","=",0]
[null,"Per Diem - Signal inventories - Dinner",null,"persons","X",null,"trips","X",null,"days/trip","X",{"$f":"DINNER","v":23.1},"per day","=",0]
[null,"Per Diem - CCTV inventories - Breakfast, Lunch, & Dinner",null,"person","X",null,"trips","X",null,"days/trip","X",{"$f":"BREAKFAST+LUNCH+DINNER","v":46.5},"per day","=",0]
[null,"Per Diem - CCTV inventories - Breakfast",null,"person","X",null,"trips","X",null,"days/trip","X",{"$f":"BREAKFAST","v":10.1},"per day","=",0]
[null,"Per Diem - CCTV inventories - Lunch",null,"person","X",null,"trips","X",null,"days/trip","X",{"$f":"LUNCH","v":13.3},"per day","=",0]
[null,"Per Diem - CCTV inventories - Dinner",null,"person","X",null,"trips","X",null,"days/trip","X",{"$f":"DINNER","v":23.1},"per day","=",0]
[]
["OTHER"]
[null,null,null,"UOM","X",null,"UOM","X",null,"UOM","X",null,"UOM","=",{"$f":"+C861*F861*I861*L861","v":0}]
[null,null,null,"UOM","X",null,"UOM","X",null,"UOM","X",null,"UOM","=",0]
[null,null,null,"UOM","X",null,"UOM","X",null,"UOM","X",null,"UOM","=",0]
[null,null,null,"UOM","X",null,"UOM","X",null,"UOM","X",null,"UOM","=",0]
[null,null,null,"UOM","X",null,"UOM","X",null,"UOM","X",null,"UOM","=",0]
[]
[]
[null,null,null,null,null,null,null,null,null,null,null,null,"Subtotal",null,{"$f":"SUM(O832:O865)","v":0}]
["Task 6.0","CCTV Monitoring System"]
["REPRODUCTION"]
[null,"Xerox Copies (8.5\" x 11\") - B&W"]
[6.1,"Recommended Bucket Truck Survey Locations",null,"submittals","X",null,"Sets","X",null,"Sheets/Set","X",{"$f":"LETTERCOPIES","v":0.14000000000000001},"per Sheet","=",{"$f":"+C872*F872*I872*L872","v":0}]
[6.3,"Site Survey Compilation & Analysis Tech Memo",null,"submittals","X",null,"Sets","X",null,"Sheets/Set","X",{"$f":"LETTERCOPIES","v":0.14000000000000001},"per Sheet","=",0]
[6.4,"CCTV Site Study Technical Memo",null,"submittals","X",null,"Sets","X",null,"Sheets/Set","X",{"$f":"LETTERCOPIES","v":0.14000000000000001},"per Sheet","=",0]
[null,"Miscellaneous ",null,null,null,null,null,null,null,"Sheets","X",{"$f":"LETTERCOPIES","v":0.14000000000000001},"per Sheet","=",{"$f":"+I875*L875","v":0}]
[]
[null,"Xerox Copies (8.5\" x 11\") - Color"]
[6.1,"Recommended Bucket Truck Survey Locations",null,"submittals","X",null,"Sets","X",null,"Sheets/Set","X",{"$f":"LETTERCOLOR","v":0.83},"per Sheet","=",{"$f":"+C878*F878*I878*L878","v":0}]
[6.3,"Site Survey Compilation & Analysis Tech Memo",null,"submittals","X",null,"Sets","X",null,"Sheets/Set","X",{"$f":"LETTERCOLOR","v":0.83},"per Sheet","=",0]
[6.4,"CCTV Site Study Technical Memo",null,"submittals","X",null,"Sets","X",null,"Sheets/Set","X",{"$f":"LETTERCOLOR","v":0.83},"per Sheet","=",0]
[null,"Miscellaneous ",null,null,null,null,null,null,null,"Sheets","X",{"$f":"LETTERCOLOR","v":0.83},"per Sheet","=",{"$f":"+I881*L881","v":0}]
[]
[null,"Bond Prints (22\" x 34\")"]
[null,"Miscellaneous",null,null,null,null,null,null,null,"Sheets/Set","X",{"$f":"BOND.REGULAR","v":0.42},"per Sheet","=",{"$f":"+I884*L884","v":0}]
[]
["CAR RENTAL"]
[null," Trips"]
[null,"initial scouting + bucket truck surveys",null,null,null,null,"trips","X",null,"day/Trip","X",{"$f":"CARRENTAL","v":50},"per day","=",{"$f":"+F888*I888*L888","v":0}]
[]
[null,"Roundtrip  to",null,null,null,null,"trips","X",null,"Miles/Trip","X",{"$f":"GASforRENTAL","v":0.2},"per Mile","=",{"$f":"+F890*I890*L890","v":0}]
[null,"Roundtrip  to",null,null,null,null,"trips","X",null,"Miles/Trip","X",{"$f":"GASforRENTAL","v":0.2},"per Mile","=",0]
[null,"Local Travel in ",null,null,null,null,"days","X",null,"Miles/Day","X",{"$f":"GASforRENTAL","v":0.2},"per Mile","=",0]
["OVERNIGHT TRAVEL"]
[null,"Hotel",null,"person","X",null,"trips","X",null,"nights/trip","X",{"$f":"LODGING_LUMP.SUM","v":95},"per night","=",{"$f":"+C894*F894*I894*L894","v":0}]
[null,"Per Diem - Breakfast, Lunch, & Dinner",null,"person","X",null,"trips","X",null,"days/trip","X",{"$f":"BREAKFAST+LUNCH+DINNER","v":46.5},"per day","=",0]
[null,"Per Diem - Breakfast",null,"person","X",null,"trips","X",null,"days/trip","X",{"$f":"BREAKFAST","v":10.1},"per day","=",0]
[null,"Per Diem - Lunch",null,"person","X",null,"trips","X",null,"days/trip","X",{"$f":"LUNCH","v":13.3},"per day","=",0]
[null,"Per Diem - Dinner",null,"person","X",null,"trips","X",null,"days/trip","X",{"$f":"DINNER","v":23.1},"per day","=",0]
[]
[]
["OTHER"]
[null,"Postage & Courier",null,null,null,null,"Pack.","X",25,"Ea",null,null,null,"=",{"$f":"+F902*I902","v":0}]
[null,null,null,"UOM","X",null,"UOM","X",null,"UOM","X",null,"UOM","=",{"$f":"+C903*F903*I903*L903","v":0}]
[null,null,null,"UOM","X",null,"UOM","X",null,"UOM","X",null,"UOM","=",0]
[null,null,null,"UOM","X",null,"UOM","X",null,"UOM","X",null,"UOM","=",0]
[null,null,null,"UOM","X",null,"UOM","X",null,"UOM","X",null,"UOM","=",0]
[null,null,null,"UOM","X",null,"UOM","X",null,"UOM","X",null,"UOM","=",0]
[]
[null,null,null,null,null,null,null,null,null,null,null,null,"Subtotal",null,{"$f":"SUM(O872:O907)","v":0}]
[]
["Task 8.0","Railroad Encroachment Permit Coordination"]
["REPRODUCTION"]
[null,"Xerox Copies (8.5\" x 11\")"]
[null,"Permit Applications",null,null,null,null,"Sets","X",null,"Sheets/Set","X",{"$f":"LETTERCOPIES","v":0.14000000000000001},"per Sheet","=",{"$f":"+F914*I914*L914","v":0}]
[null,"Technical Reports, Special Provisions, documentation, etc",null,null,null,null,"Sets","X",null,"Sheets/Set","X",{"$f":"LETTERCOPIES","v":0.14000000000000001},"per Sheet","=",{"$f":"+F915*I915*L915","v":0}]
[]
[null,"Xerox Copies (11\" x 17\")"]
[null,"plan sheets",null,null,null,null,"Sets","X",null,"Sheets/Set","X",{"$f":"LEDGERCOPIES","v":0.34},"per Sheet","=",0]
[null,"miscellaneous ",null,null,null,null,null,null,null,"Sheets/Set","X",{"$f":"LEDGERCOPIES","v":0.34},"per Sheet","=",{"$f":"+I919*L919","v":0}]
["MILEAGE"]
[null," Trips",null,null,null,null,"Trips","X",null,"Miles/Trip","X",{"$f":"SEDAN","v":0.7},"per Mile","=",0]
[]
["CAR RENTAL"]
[null," Trips"]
[null,"Roundtrip -  to ",null,null,null,null,"trips","X",null,"day/Trip","X",{"$f":"CARRENTAL","v":50},"per day","=",0]
[null,null,null,null,null,null,"trips","X",null,"Miles/Trip","X",{"$f":"GASforRENTAL","v":0.2},"per Mile","=",0]
[null,"Local Mileage in ",null,null,null,null,"trips","X",null,"Miles/Trip","X",{"$f":"GASforRENTAL","v":0.2},"per Mile","=",0]
["OVERNIGHT TRAVEL"]
[null,"Hotel",null,"persons","X",null,"trips","X",null,"nights/trip","X",{"$f":"LODGING_LUMP.SUM","v":95},"per night","=",{"$f":"+C929*F929*I929*L929","v":0}]
[null,"Per Diem - Breakfast, Lunch, and Dinner",null,"persons","X",null,"trips","X",null,"days/trip","X",{"$f":"BREAKFAST+LUNCH+DINNER","v":46.5},"per day","=",0]
[null,"Per Diem - Breakfast ",null,"persons","X",null,"trips","X",null,"days/trip","X",{"$f":"BREAKFAST","v":10.1},"per day","=",0]
[null,"Per Diem - Lunch",null,"persons","X",null,"trips","X",null,"days/trip","X",{"$f":"LUNCH","v":13.3},"per day","=",0]
[null,"Per Diem - Dinner",null,"persons","X",null,"trips","X",null,"days/trip","X",{"$f":"DINNER","v":23.1},"per day","=",0]
[]
["OTHER"]
[null,"Postage & Courier",null,null,null,null,"Pack.","X",25,"Ea",null,null,null,"=",{"$f":"+F936*I936","v":0}]
[null,null,null,"UOM","X",null,"UOM","X",null,"UOM","X",null,"UOM","=",{"$f":"+C937*F937*I937*L937","v":0}]
[null,null,null,"UOM","X",null,"UOM","X",null,"UOM","X",null,"UOM","=",0]
[null,null,null,"UOM","X",null,"UOM","X",null,"UOM","X",null,"UOM","=",0]
[null,null,null,"UOM","X",null,"UOM","X",null,"UOM","X",null,"UOM","=",0]
[null,null,null,"UOM","X",null,"UOM","X",null,"UOM","X",null,"UOM","=",0]
[]
[]
[null,null,null,null,null,null,null,null,null,null,null,null,"Subtotal",null,{"$f":"SUM(O914:O941)","v":0}]
["Task 9.0","Basis of Design Document (BODD)"]
["REPRODUCTION"]
[null,"Xerox Copies (8.5\" x 11\")",null,"version","X",null,"Sets","X",null,"Sheets/Set","X",{"$f":"LETTERCOPIES","v":0.14000000000000001},"per Sheet","=",{"$f":"+C947*F947*I947*L947","v":0}]
[null,"BODD notebook",null,"updates","X",null,"Sets","X",null,"Sheets/Set","X",{"$f":"LETTERCOPIES","v":0.14000000000000001},"per Sheet","=",{"$f":"+C948*F948*I948*L948","v":0}]
[null,"Miscellaneous "]
[]
[null,"Xerox Copies (11\" x 17\")"]
[null,"BODD Graphics - Color",null,"versions","X",null,"Sets","X",null,"Sheets/Set","X",{"$f":"ROLLPLOTSlong","v":1.5},"per Sheet","=",{"$f":"+C952*F952*I952*L952","v":0}]
[null,"BODD Exhibits - Black/White",null,"versions","X",null,"Sets","X",null,"Sheets/Set","X",{"$f":"LEDGERCOPIES","v":0.34},"per Sheet","=",0]
[null,"Miscellaneous - Color",null,null,null,null,"Sets","X",null,"Sheets/Set","X",{"$f":"ROLLPLOTSlong","v":1.5},"per Sheet","=",{"$f":"+F954*I954*L954","v":0}]
[null,"Miscellaneous - Black/White",null,null,null,null,"Sets","X",null,"Sheets/Set","X",{"$f":"LEDGERCOPIES","v":0.34},"per Sheet","=",{"$f":"+F955*I955*L955","v":0}]
[]
[null,"BODD Notebooks"]
[null,"3\" Heavy-Duty D-ring Presentation Binder",null,null,null,null,"volumes","X",null,"Binders","X",14.29,"per binder","=",{"$f":"+F958*I958*L958","v":0}]
[null,"Sheet Lifters",null,null,null,null,"Binders","X",null,"pair/binder","X",1.99,"per pair","=",0]
[null,"Media Storage Pages (CD pockets)",null,null,null,null,null,null,null,"5-packs","X",7.99,"per pack","=",{"$f":"+I960*L960","v":0}]
[null,"Untabbed Business Card Pages",null,null,null,null,null,null,null,"10-packs","X",3.99,"per pack","=",{"$f":"+I961*L961","v":0}]
[null,"Self-Adhesive Business Card Holders",null,null,null,null,null,null,null,"10-packs","X",3.99,"per pack","=",0]
[null,"Direct Print Dividers, 5-Tab (4/pack) (10 tabs/binder for 4 binders)",null,null,null,null,null,null,null,"4-packs","X",23.99,"per pack","=",0]
[null,"Direct Print Dividers, 5-Tab (24/pack) (10 tabs/binder for 12 binders)",null,null,null,null,null,null,null,"24-packs","X",142.99,"per pack","=",0]
[]
["OTHER"]
[null,"Miscellaneous",null,null,null,null,"Sets","X",null,"Sheets/Set","X",{"$f":"LETTERCOPIES","v":0.14000000000000001},"per Sheet","=",{"$f":"+F967*I967*L967","v":0}]
[null,null,null,null,null,null,null,null,null,"Sheets","X",{"$f":"LETTERCOPIES","v":0.14000000000000001},"per Sheet","=",{"$f":"+I968*L968","v":0}]
[null,null,null,"UOM","X",null,"UOM","X",null,"UOM","X",null,"UOM","=",{"$f":"+C969*F969*I969*L969","v":0}]
[null,null,null,"UOM","X",null,"UOM","X",null,"UOM","X",null,"UOM","=",0]
[null,null,null,"UOM","X",null,"UOM","X",null,"UOM","X",null,"UOM","=",0]
[null,null,null,"UOM","X",null,"UOM","X",null,"UOM","X",null,"UOM","=",0]
[null,null,null,"UOM","X",null,"UOM","X",null,"UOM","X",null,"UOM","=",0]
[]
[null,null,null,null,null,null,null,null,null,null,null,null,"Subtotal",null,{"$f":"SUM(O947:O973)","v":0}]
["Task 10.0","Utility Make-Ready Plans"]
["REPRODUCTION"]
[null,"Xerox Copies (8.5\" x 11\")"]
[null,"Utility Partnering Meeting Handouts",null,null,null,null,"Sets","X",null,"Sheets/Set","X",{"$f":"LETTERCOPIES","v":0.14000000000000001},"per Sheet","=",{"$f":"+F979*I979*L979","v":0}]
[null,"Miscellaneous ",null,null,null,null,null,null,null,"Sheets","X",{"$f":"LETTERCOPIES","v":0.14000000000000001},"per Sheet","=",{"$f":"+I980*L980","v":0}]
[]
[null,"Xerox Copies (11\" x 17\")"]
[null,"Utility Partnering Meeting Examples",null,null,null,null,"Sets","X",null,"Sheets/Set","X",{"$f":"LEDGERCOPIES","v":0.34},"per Sheet","=",{"$f":"+F983*I983*L983","v":0}]
[null,"Preliminary UMR Plans",null,null,null,null,"Sets","X",null,"Sheets/Set","X",{"$f":"LEDGERCOPIES","v":0.34},"per Sheet","=",0]
[null,"QC Set",null,null,null,null,"Sets","X",null,"Sheets/Set","X",{"$f":"LEDGERCOPIES","v":0.34},"per Sheet","=",0]
[null,"Record Set - Consultant ",null,null,null,null,"Sets","X",null,"Sheets/Set","X",{"$f":"LEDGERCOPIES","v":0.34},"per Sheet","=",0]
[null,"Covers & Binding",null,null,null,null,null,null,null,"sets","X",{"$f":"COVERS+BINDERS","v":1},"per set","=",{"$f":"+I987*L987","v":0}]
[null,"Draft Final UMR Plans",null,null,null,null,"Sets","X",null,"Sheets/Set","X",{"$f":"LEDGERCOPIES","v":0.34},"per Sheet","=",0]
[null,"QC Set",null,null,null,null,"Sets","X",null,"Sheets/Set","X",{"$f":"LEDGERCOPIES","v":0.34},"per Sheet","=",0]
[null,"Record Set - Consultant ",null,null,null,null,"Sets","X",null,"Sheets/Set","X",{"$f":"LEDGERCOPIES","v":0.34},"per Sheet","=",0]
[null,"Covers & Binding",null,null,null,null,null,null,null,"sets","X",{"$f":"COVERS+BINDERS","v":1},"per set","=",{"$f":"+I991*L991","v":0}]
[null,"Final UMR Plans",null,null,null,null,"Sets","X",null,"Sheets/Set","X",{"$f":"LEDGERCOPIES","v":0.34},"per Sheet","=",0]
[null,"QC Set",null,null,null,null,"Sets","X",null,"Sheets/Set","X",{"$f":"LEDGERCOPIES","v":0.34},"per Sheet","=",0]
[null,"Record Set - Consultant ",null,null,null,null,"Sets","X",null,"Sheets/Set","X",{"$f":"LEDGERCOPIES","v":0.34},"per Sheet","=",0]
[null,"Covers & Binding",null,null,null,null,null,null,null,"sets","X",{"$f":"COVERS+BINDERS","v":1},"per set","=",{"$f":"+I995*L995","v":0}]
[]
[null,"Bond Prints (22\" x 34\")"]
[null,"Final UMR plans - Deliverables",null,null,null,null,"Sets","X",null,"Sheets/Set","X",{"$f":"BOND.REGULAR","v":0.42},"per Sheet","=",{"$f":"+F998*I998*L998","v":0}]
[null,"QC Set",null,null,null,null,"Sets","X",null,"Sheets/Set","X",{"$f":"BOND.REGULAR","v":0.42},"per Sheet","=",{"$f":"+F999*I999*L999","v":0}]
[null,{"$f":"CONCATENATE(\"Record Set - Consultant\",\" \",A8)","v":"Record Set - Consultant CONSULTANT NAME"},null,null,null,null,"Sets","X",null,"Sheets/Set","X",{"$f":"BOND.REGULAR","v":0.42},"per Sheet","=",{"$f":"+F1000*I1000*L1000","v":0}]
[null,"Covers & Binding",null,null,null,null,null,null,null,"sets","X",{"$f":"COVERS+BINDERS","v":1},"per set","=",{"$f":"+I1001*L1001","v":0}]
[]
["MILEAGE"]
[null," Trips",null,null,null,null,"Trips","X",null,"Miles/Trip","X",{"$f":"SEDAN","v":0.7},"per Mile","=",{"$f":"+F1004*I1004*L1004","v":0}]
[]
["CAR RENTAL"]
[null," Trips"]
[10.1,"Utility Partnering Meeting",null,null,null,null,"Trips","X",null,"day/Trip","X",{"$f":"CARRENTAL","v":50},"per day","=",{"$f":"+F1008*I1008*L1008","v":0}]
[null,null,null,null,null,null,"trips","X",null,"Miles/Trip","X",{"$f":"GASforRENTAL","v":0.2},"per Mile","=",0]
[10.3,"Preliminary Cable Route Survey",null,null,null,null,"trips","X",null,"day/Trip","X",{"$f":"CARRENTAL","v":50},"per day","=",0]
[null,"Roundtrip -  to ",null,null,null,null,"trips","X",null,"Miles/Trip","X",{"$f":"GASforRENTAL","v":0.2},"per Mile","=",0]
[null,"Local Mileage in ",null,null,null,null,"trips","X",null,"Miles/Trip","X",{"$f":"GASforRENTAL","v":0.2},"per Mile","=",0]
[10.8,"Field Survey Aerial Routes",null,null,null,null,"Trips","X",null,"day/Trip","X",{"$f":"CARRENTAL","v":50},"per day","=",0]
[null,"Roundtrip -  to ",null,null,null,null,"trips","X",null,"Miles/Trip","X",{"$f":"GASforRENTAL","v":0.2},"per Mile","=",0]
[null,"Local Mileage in ",null,null,null,null,"trips","X",null,"Miles/Trip","X",{"$f":"GASforRENTAL","v":0.2},"per Mile","=",0]
[10.1,"UMR Walk-throughs",null,null,null,null,"Trips","X",null,"day/Trip","X",{"$f":"CARRENTAL","v":50},"per day","=",0]
[null,"Roundtrip -  to ",null,null,null,null,"trips","X",null,"Miles/Trip","X",{"$f":"GASforRENTAL","v":0.2},"per Mile","=",0]
[null,"Local Mileage in ",null,null,null,null,"trips","X",null,"Miles/Trip","X",{"$f":"GASforRENTAL","v":0.2},"per Mile","=",0]
[]
["OVERNIGHT TRAVEL"]
[10.1,"Hotel",null,"persons","X",null,"trips","X",null,"nights/trip","X",{"$f":"LODGING_LUMP.SUM","v":95},"per night","=",{"$f":"+C1021*F1021*I1021*L1021","v":0}]
[null,"Per Diem - Breakfast, Lunch, & Dinner",null,"persons","X",null,"trips","X",null,"days/trip","X",{"$f":"BREAKFAST+LUNCH+DINNER","v":46.5},"per day","=",{"$f":"+C1022*F1022*I1022*L1022","v":0}]
[null,"Per Diem - Breakfast  ",null,"persons","X",null,"trips","X",null,"days/trip","X",{"$f":"BREAKFAST","v":10.1},"per day","=",0]
[null,"Per Diem - Lunch",null,"persons","X",null,"trips","X",null,"days/trip","X",{"$f":"LUNCH","v":13.3},"per day","=",0]
[null,"Per Diem - Dinner",null,"persons","X",null,"trips","X",null,"days/trip","X",{"$f":"DINNER","v":23.1},"per day","=",0]
[10.3,"Hotel",null,"persons","X",null,"trips","X",null,"nights/trip","X",{"$f":"LODGING_LUMP.SUM","v":95},"per night","=",0]
[null,"Per Diem - Breakfast, Lunch, & Dinner",null,"persons","X",null,"trips","X",null,"days/trip","X",{"$f":"BREAKFAST+LUNCH+DINNER","v":46.5},"per day","=",0]
[null,"Per Diem - Breakfast  ",null,"persons","X",null,"trips","X",null,"days/trip","X",{"$f":"BREAKFAST","v":10.1},"per day","=",0]
[null,"Per Diem - Lunch",null,"persons","X",null,"trips","X",null,"days/trip","X",{"$f":"LUNCH","v":13.3},"per day","=",0]
[null,"Per Diem - Dinner",null,"persons","X",null,"trips","X",null,"days/trip","X",{"$f":"DINNER","v":23.1},"per day","=",0]
[10.8,"Hotel",null,"persons","X",null,"trips","X",null,"nights/trip","X",{"$f":"LODGING_LUMP.SUM","v":95},"per night","=",0]
[null,"Per Diem - Breakfast, Lunch, & Dinner",null,"persons","X",null,"trips","X",null,"days/trip","X",{"$f":"BREAKFAST+LUNCH+DINNER","v":46.5},"per day","=",0]
[null,"Per Diem - Breakfast  ",null,"persons","X",null,"trips","X",null,"days/trip","X",{"$f":"BREAKFAST","v":10.1},"per day","=",0]
[null,"Per Diem - Lunch",null,"persons","X",null,"trips","X",null,"days/trip","X",{"$f":"LUNCH","v":13.3},"per day","=",0]
[null,"Per Diem - Dinner",null,"persons","X",null,"trips","X",null,"days/trip","X",{"$f":"DINNER","v":23.1},"per day","=",0]
[10.1,"Hotel",null,"persons","X",null,"trips","X",null,"nights/trip","X",{"$f":"LODGING_LUMP.SUM","v":95},"per night","=",0]
[null,"Per Diem - Breakfast, Lunch, & Dinner",null,"persons","X",null,"trips","X",null,"days/trip","X",{"$f":"BREAKFAST+LUNCH+DINNER","v":46.5},"per day","=",0]
[null,"Per Diem - Breakfast  ",null,"persons","X",null,"trips","X",null,"days/trip","X",{"$f":"BREAKFAST","v":10.1},"per day","=",0]
[null,"Per Diem - Lunch",null,"persons","X",null,"trips","X",null,"days/trip","X",{"$f":"LUNCH","v":13.3},"per day","=",0]
[null,"Per Diem - Dinner",null,"persons","X",null,"trips","X",null,"days/trip","X",{"$f":"DINNER","v":23.1},"per day","=",0]
[]
[]
["OTHER"]
[null,"Postage & Courier"]
[null,"FedEx (2-day Economy) UMR Plans to Utilities & City",null,"Submittals","X",null,"Pack.","X",10,"Ea",null,null,null,"=",{"$f":"+C1045*F1045*I1045","v":0}]
[null,"Miscellaneous",null,null,null,null,"Pack.","X",25,"Ea",null,null,null,"=",{"$f":"+F1046*I1046","v":0}]
[null,null,null,"UOM","X",null,"UOM","X",null,"UOM","X",null,"UOM","=",{"$f":"+C1047*F1047*I1047*L1047","v":0}]
[null,null,null,"UOM","X",null,"UOM","X",null,"UOM","X",null,"UOM","=",0]
[null,null,null,"UOM","X",null,"UOM","X",null,"UOM","X",null,"UOM","=",0]
[null,null,null,"UOM","X",null,"UOM","X",null,"UOM","X",null,"UOM","=",0]
[null,null,null,"UOM","X",null,"UOM","X",null,"UOM","X",null,"UOM","=",0]
[]
[]
[null,null,null,null,null,null,null,null,null,null,null,null,"Subtotal",null,{"$f":"SUM(O979:O1052)","v":0}]
["Task 11.0","Construction Plans (See Deliverables also)"]
[]
["CAR RENTAL"]
[null," Trips"]
[]
["11.1.14","CL Sheet Field Investigation",null,null,null,null,"trips","X",null,"day/Trip","X",{"$f":"CARRENTAL","v":50},"per day","=",{"$f":"+F1060*I1060*L1060","v":0}]
[null,null,null,null,null,null,"trips","X",null,"Miles/Trip","X",{"$f":"GASforRENTAL","v":0.2},"per Mile","=",{"$f":"+F1061*I1061*L1061","v":0}]
[]
["11.1.19 thru 20","Field Investigate Bldg. Mods.",null,null,null,null,"trips","X",null,"day/Trip","X",{"$f":"CARRENTAL","v":50},"per day","=",0]
[null,null,null,null,null,null,"trips","X",null,"Miles/Trip","X",{"$f":"GASforRENTAL","v":0.2},"per Mile","=",0]
[11.4,"Field Check Final Plans",null,null,null,null,"trips","X",null,"day/Trip","X",{"$f":"CARRENTAL","v":50},"per day","=",0]
[null,null,null,null,null,null,"trips","X",null,"Miles/Trip","X",{"$f":"GASforRENTAL","v":0.2},"per Mile","=",0]
[]
["OVERNIGHT TRAVEL"]
[null,"Hotel"]
["11.1.26","Prelim PS&E On-site work sessions - back to back with steering committeee meetings",null,"persons","X",null,"trips","X",null,"nights/trip","X",{"$f":"LODGING_LUMP.SUM","v":95},"per night","=",{"$f":"+C1070*F1070*I1070*L1070","v":0}]
["11.1.19 thru 20","Field Investigate Bldg. Mods.",null,"persons","X",null,"trips","X",null,"nights/trip","X",{"$f":"LODGING_LUMP.SUM","v":95},"per night","=",{"$f":"+C1071*F1071*I1071*L1071","v":0}]
[null,"Per Diem (Breakfast, Lunch, & Dinner)"]
["11.1.19 thru 20","Field Investigate Bldg. Mods.",null,"persons","X",null,"trips","X",null,"days/trip","X",{"$f":"BREAKFAST+LUNCH+DINNER","v":46.5},"per day","=",{"$f":"+C1073*F1073*I1073*L1073","v":0}]
["11.1.26","Prelim PS&E On-site work sessions - back to back with steering committeee meetings",null,"persons","X",null,"trips","X",null,"days/trip","X",{"$f":"BREAKFAST+LUNCH+DINNER","v":46.5},"per day","=",0]
[null,"Per Diem (Breakfast)"]
["11.1.19 thru 20","Field Investigate Bldg. Mods.",null,"persons","X",null,"trips","X",null,"days/trip","X",{"$f":"BREAKFAST","v":10.1},"per day","=",{"$f":"+C1076*F1076*I1076*L1076","v":0}]
["11.1.26","Prelim PS&E On-site work sessions - back to back with steering committeee meetings",null,"persons","X",null,"trips","X",null,"days/trip","X",{"$f":"BREAKFAST","v":10.1},"per day","=",0]
[null,"Per Diem (Lunch)"]
["11.1.19 thru 20","Field Investigate Bldg. Mods.",null,"persons","X",null,"trips","X",null,"days/trip","X",{"$f":"LUNCH","v":13.3},"per day","=",{"$f":"+C1079*F1079*I1079*L1079","v":0}]
["11.1.26","Prelim PS&E On-site work sessions - back to back with steering committeee meetings",null,"persons","X",null,"trips","X",null,"days/trip","X",{"$f":"LUNCH","v":13.3},"per day","=",0]
[null,"Per Diem (Dinner)"]
["11.1.19 thru 20","Field Investigate Bldg. Mods.",null,"persons","X",null,"trips","X",null,"days/trip","X",{"$f":"DINNER","v":23.1},"per day","=",0]
["11.1.26","Prelim PS&E On-site work sessions - back to back with steering committeee meetings",null,"persons","X",null,"trips","X",null,"days/trip","X",{"$f":"DINNER","v":23.1},"per day","=",0]
[]
["OTHER"]
[null,"Miscellaneous",null,null,null,null,"Sets","X",null,"Sheets/Set","X",{"$f":"LETTERCOPIES","v":0.14000000000000001},"per Sheet","=",{"$f":"+F1086*I1086*L1086","v":0}]
[null,null,null,null,null,null,null,null,null,"Sheets","X",{"$f":"LETTERCOPIES","v":0.14000000000000001},"per Sheet","=",{"$f":"+I1087*L1087","v":0}]
[null,null,null,"UOM","X",null,"UOM","X",null,"UOM","X",null,"UOM","=",{"$f":"+C1088*F1088*I1088*L1088","v":0}]
[null,null,null,"UOM","X",null,"UOM","X",null,"UOM","X",null,"UOM","=",0]
[null,null,null,"UOM","X",null,"UOM","X",null,"UOM","X",null,"UOM","=",0]
[null,null,null,"UOM","X",null,"UOM","X",null,"UOM","X",null,"UOM","=",0]
[null,null,null,"UOM","X",null,"UOM","X",null,"UOM","X",null,"UOM","=",0]
[]
[null,null,null,null,null,null,null,null,null,null,null,null,"Subtotal",null,{"$f":"SUM(O1060:O1092)","v":0}]
["Task 12.0","Project Special Provisions (See Deliverables also)"]
["REPRODUCTION/PRINTING/DOCUMENTATION"]
[null,"Xerox Copies (8.5\" x 11\")"]
[null,"Miscellaneous (Corres., etc.)"]
[null,null,null,null,null,null,null,null,null,"Sheets","X",{"$f":"LETTERCOPIES","v":0.14000000000000001},"per Sheet","=",{"$f":"+I1099*L1099","v":0}]
[null,null,null,"UOM","X",null,"UOM","X",null,"UOM","X",null,"UOM","=",{"$f":"+C1100*F1100*I1100*L1100","v":0}]
[null,null,null,"UOM","X",null,"UOM","X",null,"UOM","X",null,"UOM","=",0]
[null,null,null,"UOM","X",null,"UOM","X",null,"UOM","X",null,"UOM","=",0]
[null,null,null,"UOM","X",null,"UOM","X",null,"UOM","X",null,"UOM","=",0]
[null,null,null,"UOM","X",null,"UOM","X",null,"UOM","X",null,"UOM","=",0]
[]
[null,null,null,null,null,null,null,null,null,null,null,null,"Subtotal",null,{"$f":"SUM(O1097:O1104)","v":0}]
["Task 13.0","Engineer's Opinion of Probable Cost"]
["REPRODUCTION"]
[null,"Xerox Copies (8.5\" x 11\")"]
[null,"Preliminary Opinion of Cost"]
[null,"Final Opinion of Cost",null,null,null,null,"Sets","X",null,"Sheets/Set","X",{"$f":"LETTERCOPIES","v":0.14000000000000001},"per Sheet","=",{"$f":"+F1111*I1111*L1111","v":0}]
[null,"Miscellaneous",null,null,null,null,"Sets","X",null,"Sheets/Set","X",{"$f":"LETTERCOPIES","v":0.14000000000000001},"per Sheet","=",{"$f":"+F1112*I1112*L1112","v":0}]
[null,null,null,null,null,null,null,null,null,"Sheets","X",{"$f":"LETTERCOPIES","v":0.14000000000000001},"per Sheet","=",{"$f":"+I1113*L1113","v":0}]
[]
["OTHER"]
[null,null,null,"UOM","X",null,"UOM","X",null,"UOM","X",null,"UOM","=",{"$f":"+C1116*F1116*I1116*L1116","v":0}]
[null,null,null,"UOM","X",null,"UOM","X",null,"UOM","X",null,"UOM","=",0]
[null,null,null,"UOM","X",null,"UOM","X",null,"UOM","X",null,"UOM","=",0]
[null,null,null,"UOM","X",null,"UOM","X",null,"UOM","X",null,"UOM","=",0]
[null,null,null,"UOM","X",null,"UOM","X",null,"UOM","X",null,"UOM","=",0]
[]
[null,null,null,null,null,null,null,null,null,null,null,null,"Subtotal",null,{"$f":"SUM(O1110:O1120)","v":0}]
["Task 14.0","Prepare PS&E Deliverables and Final Documentation"]
["REPRODUCTION"]
[null,"Xerox Copies (8.5\" x 11\")"]
[null,"Preliminary Special Provisions",null,null,null,null,"Sets","X",null,"Sheets/Set","X",{"$f":"LETTERCOPIES","v":0.14000000000000001},"per Sheet","=",{"$f":"+F1126*I1126*L1126","v":0}]
[null,"Covers & Binding",null,null,null,null,null,null,null,"sets","X",{"$f":"COVERS+BINDERS","v":1},"per set","=",{"$f":"+I1127*L1127","v":0}]
[null,"QC Set",null,null,null,null,"Sets","X",null,"Sheets/Set","X",{"$f":"LETTERCOPIES","v":0.14000000000000001},"per Sheet","=",{"$f":"+F1128*I1128*L1128","v":0}]
[null,"Record Set - Consultant",null,null,null,null,"Sets","X",null,"Sheets/Set","X",{"$f":"LETTERCOPIES","v":0.14000000000000001},"per Sheet","=",0]
[null,"Draft Final Special Provisions",null,null,null,null,"Sets","X",null,"Sheets/Set","X",{"$f":"LETTERCOPIES","v":0.14000000000000001},"per Sheet","=",0]
[null,"Covers & Binding",null,null,null,null,null,null,null,"sets","X",{"$f":"COVERS+BINDERS","v":1},"per set","=",{"$f":"+I1131*L1131","v":0}]
[null,"QC Set",null,null,null,null,"Sets","X",null,"Sheets/Set","X",{"$f":"LETTERCOPIES","v":0.14000000000000001},"per Sheet","=",{"$f":"+F1132*I1132*L1132","v":0}]
[null,"Record Set - Consultant",null,null,null,null,"Sets","X",null,"Sheets/Set","X",{"$f":"LETTERCOPIES","v":0.14000000000000001},"per Sheet","=",0]
[null,"Final Special Provisions",null,null,null,null,"Sets","X",null,"Sheets/Set","X",{"$f":"LETTERCOPIES","v":0.14000000000000001},"per Sheet","=",0]
[null,"Covers & Binding",null,null,null,null,null,null,null,"sets","X",{"$f":"COVERS+BINDERS","v":1},"per set","=",{"$f":"+I1135*L1135","v":0}]
[null,"QC Set",null,null,null,null,"Sets","X",null,"Sheets/Set","X",{"$f":"LETTERCOPIES","v":0.14000000000000001},"per Sheet","=",{"$f":"+F1136*I1136*L1136","v":0}]
[null,"Record Set - Consultant",null,null,null,null,"Sets","X",null,"Sheets/Set","X",{"$f":"LETTERCOPIES","v":0.14000000000000001},"per Sheet","=",0]
[null,"Misc. (Corres., Signal Calcs, etc.)",null,null,null,null,null,null,null,"Sheets","X",{"$f":"LETTERCOPIES","v":0.14000000000000001},"per Sheet","=",{"$f":"+I1138*L1138","v":0}]
[]
[]
[null,"Xerox Copies (11\" x 17\")"]
[null,"Preliminary Construction Plans (no NCDOT Signals)",null,null,null,null,"Sets","X",null,"Sheets/Set","X",{"$f":"LEDGERCOPIES","v":0.34},"per Sheet","=",{"$f":"+F1142*I1142*L1142","v":0}]
[null,"QC Set",null,null,null,null,"Sets","X",null,"Sheets/Set","X",{"$f":"LEDGERCOPIES","v":0.34},"per Sheet","=",0]
[null,"Record Set - Consultant",null,null,null,null,"Sets","X",null,"Sheets/Set","X",{"$f":"LEDGERCOPIES","v":0.34},"per Sheet","=",0]
[null,"Covers & Binding",null,null,null,null,"Sets","X",null,"Volumes/Set","X",{"$f":"COVERS+BINDERS","v":1},"per set","=",0]
[null,"Draft Final Construction Plans (incl. NCDOT Signals)",null,null,null,null,"Sets","X",null,"Sheets/Set","X",{"$f":"LEDGERCOPIES","v":0.34},"per Sheet","=",0]
[null,"QC Set",null,null,null,null,"Sets","X",null,"Sheets/Set","X",{"$f":"LEDGERCOPIES","v":0.34},"per Sheet","=",0]
[null,"Record Set - Consultant",null,null,null,null,"Sets","X",null,"Sheets/Set","X",{"$f":"LEDGERCOPIES","v":0.34},"per Sheet","=",0]
[null,"Covers & Binding",null,null,null,null,"Sets","X",null,"Volumes/Set","X",{"$f":"COVERS+BINDERS","v":1},"per set","=",0]
[null,"Final Construction Plans (incl. NCDOT Signals)",null,null,null,null,"Sets","X",null,"Sheets/Set","X",{"$f":"LEDGERCOPIES","v":0.34},"per Sheet","=",0]
[null,"QC Set",null,null,null,null,"Sets","X",null,"Sheets/Set","X",{"$f":"LEDGERCOPIES","v":0.34},"per Sheet","=",0]
[null,"Record Set - Consultant",null,null,null,null,"Sets","X",null,"Sheets/Set","X",{"$f":"LEDGERCOPIES","v":0.34},"per Sheet","=",0]
[null,"Covers & Binding",null,null,null,null,"Sets","X",null,"Volumes/Set","X",{"$f":"COVERS+BINDERS","v":1},"per set","=",0]
[]
[null,"Bond Prints (22\" x 34\")"]
[null,"Final Construction Plans",null,null,null,null,"Sets","X",null,"Sheets/Set","X",{"$f":"BOND.REGULAR","v":0.42},"per Sheet","=",{"$f":"+F1156*I1156*L1156","v":0}]
[null,"QC Set",null,null,null,null,"Sets","X",null,"Sheets/Set","X",{"$f":"BOND.REGULAR","v":0.42},"per Sheet","=",0]
[null,"Record Set - Consultant",null,null,null,null,"Sets","X",null,"Sheets/Set","X",{"$f":"BOND.REGULAR","v":0.42},"per Sheet","=",0]
[null,"Covers & Binding",null,null,null,null,"Sets","X",null,"Volumes/Set","X",{"$f":"COVERS+BINDERS","v":1},"per set","=",0]
[]
["MILEAGE"]
[null,"NCDOT Delivery/Pick-up",null,null,null,null,"Trips","X",null,"Miles/Trip","X",{"$f":"SEDAN","v":0.7},"per Mile","=",{"$f":"+F1162*I1162*L1162","v":0}]
[]
["OTHER"]
[null,"USB Jump Drive (16 GB)",null,null,null,null,"Each","X",19.989999999999998,"Ea",null,null,null,"=",{"$f":"+F1165*I1165","v":0}]
[null,null,null,"UOM","X",null,"UOM","X",null,"UOM","X",null,"UOM","=",{"$f":"+C1166*F1166*I1166*L1166","v":0}]
[null,null,null,"UOM","X",null,"UOM","X",null,"UOM","X",null,"UOM","=",0]
[null,null,null,"UOM","X",null,"UOM","X",null,"UOM","X",null,"UOM","=",0]
[null,null,null,"UOM","X",null,"UOM","X",null,"UOM","X",null,"UOM","=",0]
[null,null,null,"UOM","X",null,"UOM","X",null,"UOM","X",null,"UOM","=",0]
[]
[null,null,null,null,null,null,null,null,null,null,null,null,"Subtotal",null,{"$f":"SUM(O1126:O1170)","v":0}]
[]
["Task 15.0",{"$f":"IF(B375=\"REPLACE FIELD WITH CATEGORY NAME OF YOUR CHOOSING HERE\",\"Category Not Defined Above, Please do not key values in this section\",B375)","v":"Category Not Defined Above, Please do not key values in this section"},null,null,null,null,null,null,null,null,null,null,null,null,{"$f":"IF(B1174=\"Category Not Defined Above, Please do not key values in this section\",0,\"\")","v":0}]
["OTHER","UOM = Unit of Measure",null,null,null,null,null,null,null,null,null,null,null,null,{"$f":"IF(B1174=\"Category Not Defined Above, Please do not key values in this section\",0,\"\")","v":0}]
[null,null,null,"UOM","X",null,"UOM","X",null,"UOM","X",null,"UOM","=",{"$f":"+C1176*F1176*I1176*L1176","v":0}]
[null,null,null,"UOM","X",null,"UOM","X",null,"UOM","X",null,"UOM","=",0]
[null,null,null,"UOM","X",null,"UOM","X",null,"UOM","X",null,"UOM","=",0]
[null,null,null,"UOM","X",null,"UOM","X",null,"UOM","X",null,"UOM","=",0]
[null,null,null,"UOM","X",null,"UOM","X",null,"UOM","X",null,"UOM","=",0]
[null,null,null,"UOM","X",null,"UOM","X",null,"UOM","X",null,"UOM","=",0]
[null,null,null,"UOM","X",null,"UOM","X",null,"UOM","X",null,"UOM","=",0]
[null,null,null,"UOM","X",null,"UOM","X",null,"UOM","X",null,"UOM","=",0]
[null,null,null,"UOM","X",null,"UOM","X",null,"UOM","X",null,"UOM","=",0]
[null,null,null,"UOM","X",null,"UOM","X",null,"UOM","X",null,"UOM","=",0]
[null,null,null,"UOM","X",null,"UOM","X",null,"UOM","X",null,"UOM","=",0]
[null,null,null,"UOM","X",null,"UOM","X",null,"UOM","X",null,"UOM","=",0]
[null,null,null,"UOM","X",null,"UOM","X",null,"UOM","X",null,"UOM","=",0]
[null,null,null,"UOM","X",null,"UOM","X",null,"UOM","X",null,"UOM","=",0]
[null,null,null,"UOM","X",null,"UOM","X",null,"UOM","X",null,"UOM","=",0]
[]
[null,null,null,null,null,null,null,null,null,null,null,null,"Subtotal",null,{"$f":"SUM(O1176:O1190)","v":0}]
[]
[]
["Task 16.0",{"$f":"IF(B409=\"REPLACE FIELD WITH CATEGORY NAME OF YOUR CHOOSING HERE\",\"Category Not Defined Above, Please do not key values in this section\",B409)","v":"Category Not Defined Above, Please do not key values in this section"},null,null,null,null,null,null,null,null,null,null,null,null,{"$f":"IF(B1195=\"Category Not Defined Above, Please do not key values in this section\",0,\"\")","v":0}]
["OTHER","UOM = Unit of Measure",null,null,null,null,null,null,null,null,null,null,null,null,{"$f":"IF(B1195=\"Category Not Defined Above, Please do not key values in this section\",0,\"\")","v":0}]
[null,null,null,"UOM","X",null,"UOM","X",null,"UOM","X",null,"UOM","=",{"$f":"+C1197*F1197*I1197*L1197","v":0}]
[null,null,null,"UOM","X",null,"UOM","X",null,"UOM","X",null,"UOM","=",0]
[null,null,null,"UOM","X",null,"UOM","X",null,"UOM","X",null,"UOM","=",0]
[null,null,null,"UOM","X",null,"UOM","X",null,"UOM","X",null,"UOM","=",0]
[null,null,null,"UOM","X",null,"UOM","X",null,"UOM","X",null,"UOM","=",0]
[null,null,null,"UOM","X",null,"UOM","X",null,"UOM","X",null,"UOM","=",0]
[null,null,null,"UOM","X",null,"UOM","X",null,"UOM","X",null,"UOM","=",0]
[null,null,null,"UOM","X",null,"UOM","X",null,"UOM","X",null,"UOM","=",0]
[null,null,null,"UOM","X",null,"UOM","X",null,"UOM","X",null,"UOM","=",0]
[null,null,null,"UOM","X",null,"UOM","X",null,"UOM","X",null,"UOM","=",0]
[null,null,null,"UOM","X",null,"UOM","X",null,"UOM","X",null,"UOM","=",0]
[null,null,null,"UOM","X",null,"UOM","X",null,"UOM","X",null,"UOM","=",0]
[null,null,null,"UOM","X",null,"UOM","X",null,"UOM","X",null,"UOM","=",0]
[null,null,null,"UOM","X",null,"UOM","X",null,"UOM","X",null,"UOM","=",0]
[null,null,null,"UOM","X",null,"UOM","X",null,"UOM","X",null,"UOM","=",0]
[]
[null,null,null,null,null,null,null,null,null,null,null,null,"Subtotal",null,{"$f":"SUM(O1197:O1211)","v":0}]
[]
[]
["Task 17.0",{"$f":"IF(B443=\"REPLACE FIELD WITH CATEGORY NAME OF YOUR CHOOSING HERE\",\"Category Not Defined Above, Please do not key values in this section\",B443)","v":"Category Not Defined Above, Please do not key values in this section"},null,null,null,null,null,null,null,null,null,null,null,null,{"$f":"IF(B1216=\"Category Not Defined Above, Please do not key values in this section\",0,\"\")","v":0}]
["OTHER","UOM = Unit of Measure",null,null,null,null,null,null,null,null,null,null,null,null,{"$f":"IF(B1216=\"Category Not Defined Above, Please do not key values in this section\",0,\"\")","v":0}]
[null,null,null,"UOM","X",null,"UOM","X",null,"UOM","X",null,"UOM","=",{"$f":"+C1218*F1218*I1218*L1218","v":0}]
[null,null,null,"UOM","X",null,"UOM","X",null,"UOM","X",null,"UOM","=",0]
[null,null,null,"UOM","X",null,"UOM","X",null,"UOM","X",null,"UOM","=",0]
[null,null,null,"UOM","X",null,"UOM","X",null,"UOM","X",null,"UOM","=",0]
[null,null,null,"UOM","X",null,"UOM","X",null,"UOM","X",null,"UOM","=",0]
[null,null,null,"UOM","X",null,"UOM","X",null,"UOM","X",null,"UOM","=",0]
[null,null,null,"UOM","X",null,"UOM","X",null,"UOM","X",null,"UOM","=",0]
[null,null,null,"UOM","X",null,"UOM","X",null,"UOM","X",null,"UOM","=",0]
[null,null,null,"UOM","X",null,"UOM","X",null,"UOM","X",null,"UOM","=",0]
[null,null,null,"UOM","X",null,"UOM","X",null,"UOM","X",null,"UOM","=",0]
[null,null,null,"UOM","X",null,"UOM","X",null,"UOM","X",null,"UOM","=",0]
[null,null,null,"UOM","X",null,"UOM","X",null,"UOM","X",null,"UOM","=",0]
[null,null,null,"UOM","X",null,"UOM","X",null,"UOM","X",null,"UOM","=",0]
[null,null,null,"UOM","X",null,"UOM","X",null,"UOM","X",null,"UOM","=",0]
[null,null,null,"UOM","X",null,"UOM","X",null,"UOM","X",null,"UOM","=",0]
[]
[null,null,null,null,null,null,null,null,null,null,null,null,"Subtotal",null,{"$f":"SUM(O1218:O1232)","v":0}]
[]
[]
["Task 18.0",{"$f":"IF(B477=\"REPLACE FIELD WITH CATEGORY NAME OF YOUR CHOOSING HERE\",\"Category Not Defined Above, Please do not key values in this section\",B477)","v":"Category Not Defined Above, Please do not key values in this section"},null,null,null,null,null,null,null,null,null,null,null,null,{"$f":"IF(B1237=\"Category Not Defined Above, Please do not key values in this section\",0,\"\")","v":0}]
["OTHER","UOM = Unit of Measure",null,null,null,null,null,null,null,null,null,null,null,null,{"$f":"IF(B1237=\"Category Not Defined Above, Please do not key values in this section\",0,\"\")","v":0}]
[null,null,null,"UOM","X",null,"UOM","X",null,"UOM","X",null,"UOM","=",{"$f":"+C1239*F1239*I1239*L1239","v":0}]
[null,null,null,"UOM","X",null,"UOM","X",null,"UOM","X",null,"UOM","=",0]
[null,null,null,"UOM","X",null,"UOM","X",null,"UOM","X",null,"UOM","=",0]
[null,null,null,"UOM","X",null,"UOM","X",null,"UOM","X",null,"UOM","=",0]
[null,null,null,"UOM","X",null,"UOM","X",null,"UOM","X",null,"UOM","=",0]
[null,null,null,"UOM","X",null,"UOM","X",null,"UOM","X",null,"UOM","=",0]
[null,null,null,"UOM","X",null,"UOM","X",null,"UOM","X",null,"UOM","=",0]
[null,null,null,"UOM","X",null,"UOM","X",null,"UOM","X",null,"UOM","=",0]
[null,null,null,"UOM","X",null,"UOM","X",null,"UOM","X",null,"UOM","=",0]
[null,null,null,"UOM","X",null,"UOM","X",null,"UOM","X",null,"UOM","=",0]
[null,null,null,"UOM","X",null,"UOM","X",null,"UOM","X",null,"UOM","=",0]
[null,null,null,"UOM","X",null,"UOM","X",null,"UOM","X",null,"UOM","=",0]
[null,null,null,"UOM","X",null,"UOM","X",null,"UOM","X",null,"UOM","=",0]
[null,null,null,"UOM","X",null,"UOM","X",null,"UOM","X",null,"UOM","=",0]
[null,null,null,"UOM","X",null,"UOM","X",null,"UOM","X",null,"UOM","=",0]
[]
[null,null,null,null,null,null,null,null,null,null,null,null,"Subtotal",null,{"$f":"SUM(O1239:O1253)","v":0}]
[]
[]
["Task 19.0",{"$f":"IF(B511=\"REPLACE FIELD WITH CATEGORY NAME OF YOUR CHOOSING HERE\",\"Category Not Defined Above, Please do not key values in this section\",B511)","v":"Category Not Defined Above, Please do not key values in this section"},null,null,null,null,null,null,null,null,null,null,null,null,{"$f":"IF(B1258=\"Category Not Defined Above, Please do not key values in this section\",0,\"\")","v":0}]
["OTHER","UOM = Unit of Measure",null,null,null,null,null,null,null,null,null,null,null,null,{"$f":"IF(B1258=\"Category Not Defined Above, Please do not key values in this section\",0,\"\")","v":0}]
[null,null,null,"UOM","X",null,"UOM","X",null,"UOM","X",null,"UOM","=",{"$f":"+C1260*F1260*I1260*L1260","v":0}]
[null,null,null,"UOM","X",null,"UOM","X",null,"UOM","X",null,"UOM","=",0]
[null,null,null,"UOM","X",null,"UOM","X",null,"UOM","X",null,"UOM","=",0]
[null,null,null,"UOM","X",null,"UOM","X",null,"UOM","X",null,"UOM","=",0]
[null,null,null,"UOM","X",null,"UOM","X",null,"UOM","X",null,"UOM","=",0]
[null,null,null,"UOM","X",null,"UOM","X",null,"UOM","X",null,"UOM","=",0]
[null,null,null,"UOM","X",null,"UOM","X",null,"UOM","X",null,"UOM","=",0]
[null,null,null,"UOM","X",null,"UOM","X",null,"UOM","X",null,"UOM","=",0]
[null,null,null,"UOM","X",null,"UOM","X",null,"UOM","X",null,"UOM","=",0]
[null,null,null,"UOM","X",null,"UOM","X",null,"UOM","X",null,"UOM","=",0]
[null,null,null,"UOM","X",null,"UOM","X",null,"UOM","X",null,"UOM","=",0]
[null,null,null,"UOM","X",null,"UOM","X",null,"UOM","X",null,"UOM","=",0]
[null,null,null,"UOM","X",null,"UOM","X",null,"UOM","X",null,"UOM","=",0]
[null,null,null,"UOM","X",null,"UOM","X",null,"UOM","X",null,"UOM","=",0]
[null,null,null,"UOM","X",null,"UOM","X",null,"UOM","X",null,"UOM","=",0]
[]
[null,null,null,null,null,null,null,null,null,null,null,null,"Subtotal",null,{"$f":"SUM(O1260:O1274)","v":0}]
[]
[]
["Task 20.0",{"$f":"IF(B545=\"REPLACE FIELD WITH CATEGORY NAME OF YOUR CHOOSING HERE\",\"Category Not Defined Above, Please do not key values in this section\",B545)","v":"Category Not Defined Above, Please do not key values in this section"},null,null,null,null,null,null,null,null,null,null,null,null,{"$f":"IF(B1279=\"Category Not Defined Above, Please do not key values in this section\",0,\"\")","v":0}]
["OTHER","UOM = Unit of Measure",null,null,null,null,null,null,null,null,null,null,null,null,{"$f":"IF(B1279=\"Category Not Defined Above, Please do not key values in this section\",0,\"\")","v":0}]
[null,null,null,"UOM","X",null,"UOM","X",null,"UOM","X",null,"UOM","=",{"$f":"+C1281*F1281*I1281*L1281","v":0}]
[null,null,null,"UOM","X",null,"UOM","X",null,"UOM","X",null,"UOM","=",0]
[null,null,null,"UOM","X",null,"UOM","X",null,"UOM","X",null,"UOM","=",0]
[null,null,null,"UOM","X",null,"UOM","X",null,"UOM","X",null,"UOM","=",0]
[null,null,null,"UOM","X",null,"UOM","X",null,"UOM","X",null,"UOM","=",0]
[null,null,null,"UOM","X",null,"UOM","X",null,"UOM","X",null,"UOM","=",0]
[null,null,null,"UOM","X",null,"UOM","X",null,"UOM","X",null,"UOM","=",0]
[null,null,null,"UOM","X",null,"UOM","X",null,"UOM","X",null,"UOM","=",0]
[null,null,null,"UOM","X",null,"UOM","X",null,"UOM","X",null,"UOM","=",0]
[null,null,null,"UOM","X",null,"UOM","X",null,"UOM","X",null,"UOM","=",0]
[null,null,null,"UOM","X",null,"UOM","X",null,"UOM","X",null,"UOM","=",0]
[null,null,null,"UOM","X",null,"UOM","X",null,"UOM","X",null,"UOM","=",0]
[null,null,null,"UOM","X",null,"UOM","X",null,"UOM","X",null,"UOM","=",0]
[null,null,null,"UOM","X",null,"UOM","X",null,"UOM","X",null,"UOM","=",0]
[null,null,null,"UOM","X",null,"UOM","X",null,"UOM","X",null,"UOM","=",0]
[]
[null,null,null,null,null,null,null,null,null,null,null,null,"Subtotal",null,{"$f":"SUM(O1281:O1295)","v":0}]
[]
[]
[null,null,null,null,null,null,null,null,"Non-Salary Expense Total",null,null,null,null,null,{"$f":"O1297+O1276+O1255+O1234+O1213+O1192+O1172+O1122+O1106+O1094+O1054+O975+O944+O909+O868+O828+O789+O747+O641","v":0}]

{"sheet":"ST-Sub1","index":168,"n_rows":115,"n_cols":24,"rows_kept":115,"cut":false,"hidden":true,"merged":[[117,3,117,5],[118,3,118,5],[106,8,106,14],[107,8,107,14],[108,8,108,14],[109,8,109,14],[110,8,110,14],[111,8,111,14],[105,8,105,14],[88,8,88,14],[89,8,89,14],[90,8,90,14],[94,8,94,14],[95,8,95,14],[96,8,96,14],[97,8,97,14],[98,8,98,14],[99,8,99,14],[100,8,100,14],[101,8,101,14],[87,8,87,14],[68,0,68,1],[68,2,68,4],[68,6,68,7],[69,0,69,1],[69,2,69,4],[69,6,69,7],[70,0,70,1],[70,2,70,4],[70,6,70,7],[71,2,71,4],[71,5,71,7],[66,0,66,1],[66,2,66,4],[66,6,66,7],[67,0,67,1],[67,2,67,4],[67,6,67,7],[64,0,64,1],[64,2,64,4],[64,6,64,7],[65,0,65,1],[65,2,65,4],[65,6,65,7],[62,0,62,1],[62,2,62,4],[62,6,62,7],[63,0,63,1],[63,2,63,4],[63,6,63,7],[60,0,60,1],[60,2,60,4],[60,6,60,7],[61,0,61,1],[61,2,61,4],[61,6,61,7],[59,5,59,8],[45,0,45,2],[46,0,46,2],[47,0,47,2],[48,0,48,2],[49,0,49,2],[50,0,50,2],[51,0,51,2],[52,0,52,2],[53,0,53,2],[54,0,54,2],[55,0,55,2],[44,0,44,2],[33,0,33,2],[34,0,34,2],[35,0,35,2],[36,0,36,2],[37,0,37,2],[38,0,38,2],[39,0,39,2],[40,0,40,2],[41,0,41,2],[42,0,42,2],[43,0,43,2],[32,0,32,2],[1,1,1,3],[1,5,1,7],[1,10,1,16],[2,2,2,3],[2,5,2,7],[2,15,2,16],[3,0,3,3],[4,0,4,2],[29,0,29,2],[30,0,30,2],[31,0,31,2]]}
["ESTIMATED WORKHOURS FOR PREPARING BRIDGE PLANS - SUBCONSULTANT 1"]
["County:",{"$f":"COUNTY","v":0},null,null,"TIP#",{"$f":"TIP.NUMBER","v":0},null,null,"Firm:",null,{"$f":"STRUCTURES_SUB1_CONSULTANT_NAME","v":"CONSULTANT NAME"}]
["Prepared By:",null,{"$f":"IF(SCOPE.MANDAY.ESTIMATE.PREPARED.BY=\"\",\"\",SCOPE.MANDAY.ESTIMATE.PREPARED.BY)","v":""},null,"Date:",{"$f":"IF(SCOPE.MANDAY.ESTIMATE.PREPARED.BY.DATE=\"\",\"\",SCOPE.MANDAY.ESTIMATE.PREPARED.BY.DATE)","v":""},null,null,"Chk. By:",null,null,null,null,null,null,{"$f":"IF(SCOPE.MANDAY.ESTIMATE.APPROVED.BY=\"\",\"\",SCOPE.MANDAY.ESTIMATE.APPROVED.BY)","v":""}]
[]
["EMPLOYEE",null,null,{"$f":"IF('PEF CLASSIFICATION SHEET'!C1501=\"\",\"\",LEFT('PEF CLASSIFICATION SHEET'!D1501,4))","v":""},{"$f":"IF('PEF CLASSIFICATION SHEET'!C1502=\"\",\"\",LEFT('PEF CLASSIFICATION SHEET'!D1502,4))","v":""},{"$f":"IF('PEF CLASSIFICATION SHEET'!C1503=\"\",\"\",LEFT('PEF CLASSIFICATION SHEET'!D1503,4))","v":""},{"$f":"IF('PEF CLASSIFICATION SHEET'!C1504=\"\",\"\",LEFT('PEF CLASSIFICATION SHEET'!D1504,4))","v":""},{"$f":"IF('PEF CLASSIFICATION SHEET'!C1505=\"\",\"\",LEFT('PEF CLASSIFICATION SHEET'!D1505,4))","v":""},{"$f":"IF('PEF CLASSIFICATION SHEET'!C1506=\"\",\"\",LEFT('PEF CLASSIFICATION SHEET'!D1506,4))","v":""},{"$f":"IF('PEF CLASSIFICATION SHEET'!C1507=\"\",\"\",LEFT('PEF CLASSIFICATION SHEET'!D1507,4))","v":""},{"$f":"IF('PEF CLASSIFICATION SHEET'!C1508=\"\",\"\",LEFT('PEF CLASSIFICATION SHEET'!D1508,4))","v":""},{"$f":"IF('PEF CLASSIFICATION SHEET'!C1509=\"\",\"\",LEFT('PEF CLASSIFICATION SHEET'!D1509,4))","v":""},{"$f":"IF('PEF CLASSIFICATION SHEET'!C1510=\"\",\"\",LEFT('PEF CLASSIFICATION SHEET'!D1510,4))","v":""},{"$f":"IF('PEF CLASSIFICATION SHEET'!C1511=\"\",\"\",LEFT('PEF CLASSIFICATION SHEET'!D1511,4))","v":""}]
["Task                  CLASSIFICATION",null,null,{"$f":"IF('PEF CLASSIFICATION SHEET'!C1501=\"\",\"\",'PEF CLASSIFICATION SHEET'!C1501)","v":""},{"$f":"IF('PEF CLASSIFICATION SHEET'!C1502=\"\",\"\",'PEF CLASSIFICATION SHEET'!C1502)","v":""},{"$f":"IF('PEF CLASSIFICATION SHEET'!C1503=\"\",\"\",'PEF CLASSIFICATION SHEET'!C1503)","v":""},{"$f":"IF('PEF CLASSIFICATION SHEET'!C1504=\"\",\"\",'PEF CLASSIFICATION SHEET'!C1504)","v":""},{"$f":"IF('PEF CLASSIFICATION SHEET'!C1505=\"\",\"\",'PEF CLASSIFICATION SHEET'!C1505)","v":""},{"$f":"IF('PEF CLASSIFICATION SHEET'!C1506=\"\",\"\",'PEF CLASSIFICATION SHEET'!C1506)","v":""},{"$f":"IF('PEF CLASSIFICATION SHEET'!C1507=\"\",\"\",'PEF CLASSIFICATION SHEET'!C1507)","v":""},{"$f":"IF('PEF CLASSIFICATION SHEET'!C1508=\"\",\"\",'PEF CLASSIFICATION SHEET'!C1508)","v":""},{"$f":"IF('PEF CLASSIFICATION SHEET'!C1509=\"\",\"\",'PEF CLASSIFICATION SHEET'!C1509)","v":""},{"$f":"IF('PEF CLASSIFICATION SHEET'!C1510=\"\",\"\",'PEF CLASSIFICATION SHEET'!C1510)","v":""},{"$f":"IF('PEF CLASSIFICATION SHEET'!C1511=\"\",\"\",'PEF CLASSIFICATION SHEET'!C1511)","v":""},"Subtotal","Superstructure Drafting Details","Draft","NOTES"]
["Preliminary Engineering",null,null,null,null,null,null,null,null,null,null,null,null,null,{"$f":"SUM(D7:N7)","v":0},null,null,null,null,null,null,null,null,{"$f":"O7+Q7","v":0}]
["Preliminary General Drawing",null,null,null,null,null,null,null,null,null,null,null,null,null,{"$f":"SUM(D8:N8)","v":0},null,null,null,null,null,null,null,null,{"$f":"O8+Q8","v":0}]
["Check Pre. General Drawing",null,null,null,null,null,null,null,null,null,null,null,null,null,{"$f":"SUM(D9:N9)","v":0},"Typical Section",null,null,null,null,null,null,null,0]
["Design Superstructure",null,null,null,null,null,null,null,null,null,null,null,null,null,0,"Details",null,null,null,null,null,null,null,0]
["Check Superstructure Design",null,null,null,null,null,null,null,null,null,null,null,null,null,0,"Span \"A\"",null,null,null,null,null,null,null,0]
["Design End Bents #1 & #2",null,null,null,null,null,null,null,null,null,null,null,null,null,0,"Span \"B\"",null,null,null,null,null,null,null,0]
["Check End Bent Design",null,null,null,null,null,null,null,null,null,null,null,null,null,0,"Span \"C\"",null,null,null,null,null,null,null,0]
["Design Interior Bents",null,null,null,null,null,null,null,null,null,null,null,null,null,0,"Span \"D\"",null,null,null,null,null,null,null,0]
["Check Interior Bent Design",null,null,null,null,null,null,null,null,null,null,null,null,null,0,"Span \"E\"",null,null,null,null,null,null,null,0]
["Draw Superstructure",null,null,null,null,null,null,null,null,null,null,null,null,null,0,"Span \"F\"",null,null,null,null,null,null,null,0]
["Check Superstructure Plans",null,null,null,null,null,null,null,null,null,null,null,null,null,0,"Span \"G\"",null,null,null,null,null,null,null,0]
["Draw End Bent #1 & #2",null,null,null,null,null,null,null,null,null,null,null,null,null,0,"Additional Spans",null,null,null,null,null,null,null,0]
["Check End Bent #1 & #2 Plans",null,null,null,null,null,null,null,null,null,null,null,null,null,0,"Framing Plan",null,null,null,null,null,null,null,0]
["Draw Interior Bents",null,null,null,null,null,null,null,null,null,null,null,null,null,0,"Girders & Details",null,null,null,null,null,null,null,0]
["Check Interior Bent Plans",null,null,null,null,null,null,null,null,null,null,null,null,null,0,"Barrier Rail",null,null,null,null,null,null,null,0]
["Rip Rap/Slope Protection",null,null,null,null,null,null,null,null,null,null,null,null,null,0,"Deflections",null,null,null,null,null,null,null,0]
["Chk. Rip Rap/Slope Protection",null,null,null,null,null,null,null,null,null,null,null,null,null,0,"Splices",null,null,null,null,null,null,null,0]
["Approach Slabs",null,null,null,null,null,null,null,null,null,null,null,null,null,0,"Bearings",null,null,null,null,null,null,null,0]
["Chk. Approach Slabs",null,null,null,null,null,null,null,null,null,null,null,null,null,0,"Bill of Material",null,null,null,null,null,null,null,0]
["General Drawing",null,null,null,null,null,null,null,null,null,null,null,null,null,0,"Str. Steel Details",null,null,null,null,null,null,null,0]
["Check General Drawing",null,null,null,null,null,null,null,null,null,null,null,null,null,0,"Joints",null,null,null,null,null,null,null,0]
["Construction Elevations",null,null,null,null,null,null,null,null,null,null,null,null,null,0,"Miscellaneous",null,null,null,null,null,null,null,0]
["Check Construction Elevations",null,null,null,null,null,null,null,null,null,null,null,null,null,0,"Total ",{"$f":"SUM(Q9:Q28)","v":0},null,null,null,null,null,null,0]
[null,null,null,null,null,null,null,null,null,null,null,null,null,null,0,null,null,null,null,null,null,null,null,0]
[null,null,null,null,null,null,null,null,null,null,null,null,null,null,0,null,null,null,null,null,null,null,null,0]
[null,null,null,null,null,null,null,null,null,null,null,null,null,null,0,null,null,null,null,null,null,null,null,0]
[null,null,null,null,null,null,null,null,null,null,null,null,null,null,0,null,null,null,null,null,null,null,null,0]
[null,null,null,null,null,null,null,null,null,null,null,null,null,null,0,null,null,null,null,null,null,null,null,0]
[null,null,null,null,null,null,null,null,null,null,null,null,null,null,0,null,null,null,null,null,null,null,null,0]
[null,null,null,null,null,null,null,null,null,null,null,null,null,null,0,null,null,null,null,null,null,null,null,0]
[null,null,null,null,null,null,null,null,null,null,null,null,null,null,0,null,null,null,null,null,null,null,null,0]
[null,null,null,null,null,null,null,null,null,null,null,null,null,null,0,null,null,null,null,null,null,null,null,0]
[null,null,null,null,null,null,null,null,null,null,null,null,null,null,0,null,null,null,null,null,null,null,null,0]
[null,null,null,null,null,null,null,null,null,null,null,null,null,null,0,null,null,null,null,null,null,null,null,0]
[null,null,null,null,null,null,null,null,null,null,null,null,null,null,0,null,null,null,null,null,null,null,null,0]
[null,null,null,null,null,null,null,null,null,null,null,null,null,null,0,null,null,null,null,null,null,null,null,0]
[null,null,null,null,null,null,null,null,null,null,null,null,null,null,0,null,null,null,null,null,null,null,null,0]
[null,null,null,null,null,null,null,null,null,null,null,null,null,null,0,null,null,null,null,null,null,null,null,0]
[null,null,null,null,null,null,null,null,null,null,null,null,null,null,0,null,null,null,null,null,null,null,null,0]
[null,null,null,null,null,null,null,null,null,null,null,null,null,null,0,null,null,null,null,null,null,null,null,0]
[null,null,null,null,null,null,null,null,null,null,null,null,null,null,0,null,null,null,null,null,null,null,null,0]
[null,null,null,null,null,null,null,null,null,null,null,null,null,null,0,null,null,null,null,null,null,null,null,0]
[null,null,null,null,null,null,null,null,null,null,null,null,null,null,0,null,null,null,null,null,null,null,null,0]
[null,null,null,null,null,null,null,null,null,null,null,null,null,null,0,null,null,null,null,null,null,null,null,0]
[null,null,null,null,null,null,null,null,null,null,null,null,null,null,0,null,null,null,null,null,null,null,null,0]
[null,null,null,null,null,null,null,null,null,null,null,null,null,null,0,null,null,null,null,null,null,null,null,0]
[null,null,null,null,null,null,null,null,null,null,null,null,null,null,0,null,null,null,null,null,null,null,null,0]
[null,null,null,null,null,null,null,null,null,null,null,null,null,null,0,null,null,null,null,null,null,null,null,0]
[null,null,null,null,null,null,null,null,null,null,null,null,null,null,0,null,null,null,null,null,null,null,null,0]
[null,null,null,null,null,null,null,null,null,null,null,null,null,null,{"$f":"SUM(D56:N56)","v":0},null,null,null,null,null,null,null,null,0]
["Total Workhours =",null,{"$f":"SUM(D57:I57)","v":0},{"$f":"SUM(D7:D56)","v":0},0,0,0,0,0,0,0,0,0,0,0]
[]
["ESTIMATED COSTS FOR PREPARING BRIDGE PLANS"]
["Class",null,"Workhours",null,null,"Rate/Hour",null,null,null,null,null,null,null,null,"Total"]
[{"$f":"D6","v":""},null,{"$f":"D57","v":0},null,null,null,{"$f":"'PEF CLASSIFICATION SHEET'!E1501","v":0},null,null,null,null,null,null,null,null,{"$f":"C61*G61","v":0}]
[{"$f":"E6","v":""},null,{"$f":"E57","v":0},null,null,null,{"$f":"'PEF CLASSIFICATION SHEET'!E1502","v":0},null,null,null,null,null,null,null,null,0]
[{"$f":"F6","v":""},null,{"$f":"F57","v":0},null,null,null,{"$f":"'PEF CLASSIFICATION SHEET'!E1503","v":0},null,null,null,null,null,null,null,null,0]
[{"$f":"G6","v":""},null,{"$f":"G57","v":0},null,null,null,{"$f":"'PEF CLASSIFICATION SHEET'!E1504","v":0},null,null,null,null,null,null,null,null,0]
[{"$f":"H6","v":""},null,{"$f":"H57","v":0},null,null,null,{"$f":"'PEF CLASSIFICATION SHEET'!E1505","v":0},null,null,null,null,null,null,null,null,0]
[{"$f":"I6","v":""},null,{"$f":"I57","v":0},null,null,null,{"$f":"'PEF CLASSIFICATION SHEET'!E1506","v":0},null,null,null,null,null,null,null,null,0]
[{"$f":"J6","v":""},null,{"$f":"J57","v":0},null,null,null,{"$f":"'PEF CLASSIFICATION SHEET'!E1507","v":0},null,null,null,null,null,null,null,null,0]
[{"$f":"K6","v":""},null,{"$f":"K57","v":0},null,null,null,{"$f":"'PEF CLASSIFICATION SHEET'!E1508","v":0},null,null,null,null,null,null,null,null,0]
[{"$f":"L6","v":""},null,{"$f":"L57","v":0},null,null,null,{"$f":"'PEF CLASSIFICATION SHEET'!E1509","v":0},null,null,null,null,null,null,null,null,0]
[{"$f":"M6","v":""},null,{"$f":"M57","v":0},null,null,null,{"$f":"'PEF CLASSIFICATION SHEET'!E1510","v":0},null,null,null,null,null,null,null,null,0]
[{"$f":"N6","v":""},null,{"$f":"N57","v":0},null,null,null,{"$f":"'PEF CLASSIFICATION SHEET'!E1511","v":0},null,null,null,{"$f":"P58","v":0},null,null,{"$f":"S58","v":0},null,0]
["Total Workhours",null,{"$f":"SUM(C61:C71)","v":0},null,null,"TOTAL WORKDAYS",null,null,{"$f":"C72/8","v":0}]
[null,null,null,null,null,"Subtotal",null,null,"=",null,null,null,null,null,null,{"$f":"SUM(P61:P71)","v":0}]
[null,"% Overhead =",{"$f":"STRUCTURES_SUB1_CONSULTANT_OVERHEAD","v":0},null,null,"Additives & Overhead",null,null,"=",null,null,null,null,null,null,{"$f":"C74*P73","v":0}]
[null,null,null,null,null,"Subtotal",null,null,"=",null,null,null,null,null,null,{"$f":"P73+P74","v":0}]
[null,"% Fee =",{"$f":"STRUCTURES_SUB1_CONSULTANT_FEE","v":0.09},null,null,"Profit",null,null,"=",null,null,null,null,null,null,{"$f":"C76*P75","v":0}]
[null,"C. of C. =",{"$f":"STRUCTURES_SUB1_CONSULTANT_COSTofCAPITAL","v":0},null,null,"Cost of Capital",null,null,"=",null,null,null,null,null,null,{"$f":"C77*P73","v":0}]
[null,null,null,null,null,"Subtotal",null,null,"=",null,null,null,null,null,null,{"$f":"P75+P76+P77","v":0}]
[]
[null,"Non-Salary Cost:",null,null,null,"Non Salary Costs",null,null,"=",null,null,null,null,null,null,{"$f":"IF(C80=0,STRUCTURES_SUB1_DIRECT_NONSALARY_TOTAL,C80*P73)","v":0}]
[null,null,"FOR NCDOT USE ONLY."]
[null,null,null,null,null,"Total Cost",null,null,"=",null,null,null,null,null,null,{"$f":"P78+P80","v":0}]
[]
[]
[]
[null,null,"DIRECT COSTS"]
[null,null,null,null,"Paper copies"]
[null,null,null,null,null,null,"Number",null,"Cost"]
[null,null,null,null,null,"8-1/2\"x11\"",null,"x",{"$f":"LETTERCOPIES","v":0.14000000000000001},null,null,null,null,null,null,{"$f":"G89*I89","v":0}]
[null,null,null,null,null,"11\"x17\"",null,"x",{"$f":"LEDGERCOPIES","v":0.34},null,null,null,null,null,null,{"$f":"G90*I90","v":0}]
[null,null,null,null,null,"Bond (34\"x22\")",null,"x",{"$f":"BOND.REGULAR","v":0.42},null,null,null,null,null,null,{"$f":"G91*I91","v":0}]
[]
[]
[null,null,null,null,"Miscellaneous"]
[null,null,null,null,null,null,"Number",null,"Cost"]
[null,null,null,null,null,"Postage and Fax",null,"x",null,null,null,null,null,null,null,{"$f":"G96*O96","v":0}]
[null,null,null,null,null,"Film and Developing",null,"x",{"$f":"FILM","v":20},null,null,null,null,null,null,{"$f":"G97*I97","v":0}]
[null,null,null,null,null,null,null,"x",null,null,null,null,null,null,null,0]
[null,null,null,null,null,null,null,"x",null,null,null,null,null,null,null,0]
[null,null,null,null,null,null,null,"x",null,null,null,null,null,null,null,0]
[null,null,null,null,null,null,null,"x",null,null,null,null,null,null,null,0]
[null,null,null,null,null,null,null,"x",null,null,null,null,null,null,null,0]
[]
[]
[null,null,null,null,"Travel"]
[null,null,null,null,null,null,"Number",null,"Cost"]
[null,null,null,null,null,"Breakfast",null,"x",{"$f":"BREAKFAST","v":10.1},null,null,null,null,null,null,{"$f":"G107*I107","v":0}]
[null,null,null,null,null,"Lunch",null,"x",{"$f":"LUNCH","v":13.3},null,null,null,null,null,null,0]
[null,null,null,null,null,"Dinner",null,"x",{"$f":"DINNER","v":23.1},null,null,null,null,null,null,0]
[null,null,null,null,null,"Overnight per Diem",null,"x",{"$f":"LODGING_LUMP.SUM","v":95},null,null,null,null,null,null,0]
[null,null,null,null,null,"Mileage (Sedan)",null,"x",{"$f":"SEDAN","v":0.7},null,null,null,null,null,null,0]
[null,null,null,null,null,"Mileage (Carryall)",null,"x",{"$f":"CARRYALL","v":0.72},null,null,null,null,null,null,0]
[]
[]
[null,null,null,null,null,null,null,null,null,null,null,null,null,null,"TOTAL  =",{"$f":"SUM(P89:P112)","v":0}]

{"sheet":"WZTC-Sub1","index":169,"n_rows":82,"n_cols":22,"rows_kept":82,"cut":false,"hidden":true,"merged":[[47,2,47,4],[48,2,48,4],[49,2,49,4],[50,2,50,4],[51,2,51,4],[42,2,42,4],[43,2,43,4],[44,2,44,4],[45,2,45,4],[46,2,46,4],[81,1,81,2],[63,1,63,4],[68,3,68,5],[77,1,77,2],[78,1,78,2],[79,1,79,2],[80,1,80,2],[62,1,62,4],[59,1,59,4],[60,1,60,4],[61,1,61,4],[52,2,52,4],[53,2,53,4],[54,2,54,4],[55,2,55,4],[56,2,56,4],[57,2,57,4],[41,2,41,4],[28,2,28,4],[29,2,29,4],[30,2,30,4],[31,2,31,4],[32,2,32,4],[33,2,33,4],[36,2,36,4],[37,2,37,4],[12,5,12,17],[12,2,12,4],[38,2,38,4],[39,2,39,4],[40,2,40,4],[18,2,18,4],[19,2,19,4],[20,2,20,4],[21,2,21,4],[22,2,22,4],[23,2,23,4],[24,2,24,4],[25,2,25,4],[26,2,26,4],[27,2,27,4],[35,6,35,16],[6,4,6,6],[6,9,6,10],[8,5,8,17],[9,2,9,4],[10,1,10,4],[2,2,2,12],[4,4,4,6],[4,7,4,10],[5,4,5,6],[5,9,5,10],[13,2,13,4],[14,2,14,4],[15,2,15,4],[16,2,16,4],[17,2,17,4]]}
[]
[]
[null,null,"WZTC Cost Estimate - SUBCONSULTANT 1                  "]
[]
[null,null,"Type:",null,null,null,null,{"$f":"WZTCU_SUB1_CONSULTANT_NAME","v":"CONSULTANT NAME"},null,null,null,null,null,null,null,null,null,null,null,null,null,"LSA"]
[null,null,"TIP Project:",null,{"$f":"IF(TIP.NUMBER=\"\",\"\",TIP.NUMBER)","v":""},null,null,"Estimate Date:",null,{"$f":"IF(SCOPE.MANDAY.ESTIMATE.PREPARED.BY.DATE=\"\",\"\",SCOPE.MANDAY.ESTIMATE.PREPARED.BY.DATE)","v":""},null,null,null,null,null,null,null,null,null,null,null,"EC"]
[null,null,"WBS #:",null,{"$f":"IF(WBS.NUMBER=\"\",\"\",WBS.NUMBER)","v":""},null,null,"Estimator:",null,{"$f":"IF(SCOPE.MANDAY.ESTIMATE.PREPARED.BY=\"\",\"\",SCOPE.MANDAY.ESTIMATE.PREPARED.BY)","v":""},null,null,null,null,null,null,null,null,null,null,null,"D/B"]
[]
[null,null,null,null,null,"Workday Estimate"]
[null,"TASKS","CLASSIFICATIONS",null,null,{"$f":"IF('PEF CLASSIFICATION SHEET'!C1514=\"\",\"\",'PEF CLASSIFICATION SHEET'!C1514)","v":""},{"$f":"IF('PEF CLASSIFICATION SHEET'!C1515=\"\",\"\",'PEF CLASSIFICATION SHEET'!C1515)","v":""},{"$f":"IF('PEF CLASSIFICATION SHEET'!C1516=\"\",\"\",'PEF CLASSIFICATION SHEET'!C1516)","v":""},{"$f":"IF('PEF CLASSIFICATION SHEET'!C1517=\"\",\"\",'PEF CLASSIFICATION SHEET'!C1517)","v":""},{"$f":"IF('PEF CLASSIFICATION SHEET'!C1518=\"\",\"\",'PEF CLASSIFICATION SHEET'!C1518)","v":""},{"$f":"IF('PEF CLASSIFICATION SHEET'!C1519=\"\",\"\",'PEF CLASSIFICATION SHEET'!C1519)","v":""},{"$f":"IF('PEF CLASSIFICATION SHEET'!C1520=\"\",\"\",'PEF CLASSIFICATION SHEET'!C1520)","v":""},{"$f":"IF('PEF CLASSIFICATION SHEET'!C1521=\"\",\"\",'PEF CLASSIFICATION SHEET'!C1521)","v":""},{"$f":"IF('PEF CLASSIFICATION SHEET'!C1522=\"\",\"\",'PEF CLASSIFICATION SHEET'!C1522)","v":""},{"$f":"IF('PEF CLASSIFICATION SHEET'!C1523=\"\",\"\",'PEF CLASSIFICATION SHEET'!C1523)","v":""},{"$f":"IF('PEF CLASSIFICATION SHEET'!C1524=\"\",\"\",'PEF CLASSIFICATION SHEET'!C1524)","v":""},{"$f":"IF('PEF CLASSIFICATION SHEET'!C1525=\"\",\"\",'PEF CLASSIFICATION SHEET'!C1525)","v":""},{"$f":"IF('PEF CLASSIFICATION SHEET'!C1526=\"\",\"\",'PEF CLASSIFICATION SHEET'!C1526)","v":""},"  TOTAL","NOTES"]
[null,"EMPLOYEES' NAMES",null,null,null,{"$f":"LEFT('PEF CLASSIFICATION SHEET'!D1514,4)","v":""},{"$f":"LEFT('PEF CLASSIFICATION SHEET'!D1515,4)","v":""},{"$f":"LEFT('PEF CLASSIFICATION SHEET'!D1516,4)","v":""},{"$f":"LEFT('PEF CLASSIFICATION SHEET'!D1517,4)","v":""},{"$f":"LEFT('PEF CLASSIFICATION SHEET'!D1518,4)","v":""},{"$f":"LEFT('PEF CLASSIFICATION SHEET'!D1519,4)","v":""},{"$f":"LEFT('PEF CLASSIFICATION SHEET'!D1520,4)","v":""},{"$f":"LEFT('PEF CLASSIFICATION SHEET'!D1521,4)","v":""},{"$f":"LEFT('PEF CLASSIFICATION SHEET'!D1522,4)","v":""},{"$f":"LEFT('PEF CLASSIFICATION SHEET'!D1523,4)","v":""},{"$f":"LEFT('PEF CLASSIFICATION SHEET'!D1524,4)","v":""},{"$f":"LEFT('PEF CLASSIFICATION SHEET'!D1525,4)","v":""},{"$f":"LEFT('PEF CLASSIFICATION SHEET'!D1526,4)","v":""}]
[]
[null,"2TM2","Initiate Transportation Management Plan",null,null,"Workday Estimate"]
[null,1,"Complete Concept Temporary Traffic Control (TTC) Plans",null,null,null,null,null,null,null,null,null,null,null,null,null,null,null,{"$f":"SUM(F14:R14)","v":0}]
[null,null,"Analyze Design Recommendation Plan Set, including Roadway, Preliminary Bridge General Drawings, and Hydraulic Design",null,null,null,null,null,null,null,null,null,null,null,null,null,null,null,0]
[null,null,"Coordinate as necessary with other disciplines/units ",null,null,null,null,null,null,null,null,null,null,null,null,null,null,null,0]
[null,null,"Determine Work Zone Capacity, Lane and Road Closure Time Restrictions",null,null,null,null,null,null,null,null,null,null,null,null,null,null,null,0]
[null,null,"Determine Traffic management Strategy for vehicular traffic and pedestrians",null,null,null,null,null,null,null,null,null,null,null,null,null,null,null,0]
[null,null,"Concept Sketches, including overviews and cut sections",null,null,null,null,null,null,null,null,null,null,null,null,null,null,null,0]
[null,null,"Preliminary General notes that include proposed lane and road closure time restrictions and hauling restrictions",null,null,null,null,null,null,null,null,null,null,null,null,null,null,null,0]
[null,null,"Written Construction Staging",null,null,null,null,null,null,null,null,null,null,null,null,null,null,null,0]
[null,null,"Distribution of Concept TTC Plans",null,null,null,null,null,null,null,null,null,null,null,null,null,null,null,0]
[null,2,"Lead TTC Concept Review Meeting",null,null,null,null,null,null,null,null,null,null,null,null,null,null,null,0]
[null,null,"Set up and lead meeting in accordance with guidance in 2TM2",null,null,null,null,null,null,null,null,null,null,null,null,null,null,null,{"$f":"SUM(F24:R24)","v":0}]
[null,null,"Prepare and distribute agenda, meeting minutes, and action items to complete final TTC plans",null,null,null,null,null,null,null,null,null,null,null,null,null,null,null,0]
[null,3,"Task Management",null,null,null,null,null,null,null,null,null,null,null,null,null,null,null,0]
[null,4,"Complete QC Procedures ",null,null,null,null,null,null,null,null,null,null,null,null,null,null,null,0]
[null,null,null,null,null,null,null,null,null,null,null,null,null,null,null,null,null,null,0]
[null,null,"Other Tasks:",null,null,null,null,null,null,null,null,null,null,null,null,null,null,null,0]
[null,null,"Brainstorming Meeting with WZTC",null,null,null,null,null,null,null,null,null,null,null,null,null,null,null,0]
[null,null,"Perform field review/site investigation",null,null,null,null,null,null,null,null,null,null,null,null,null,null,null,{"$f":"SUM(F31:R31)","v":0}]
[null,null,"Attend CFI/FDFI",null,null,null,null,null,null,null,null,null,null,null,null,null,null,null,0]
[null,null,"Attend External Constructibility Review",null,null,null,null,null,null,null,null,null,null,null,null,null,null,null,0]
[null,null,"Other Meetings",null,null,null,null,null,null,null,null,null,null,null,null,null,null,null,0]
[]
[null,"3TM1","Complete Transportation Management Plan   ",null,null,null,"Workday Estimate"]
[null,1,"Complete Final Unsealed Transportation Management Plan ",null,null,null,null,null,null,null,null,null,null,null,null,null,null,null,{"$f":"SUM(F37:R37)","v":0}]
[null,null,"Coordinate as necessary with other disciplines/units ",null,null,null,null,null,null,null,null,null,null,null,null,null,null,null,0]
[null,null,"Final TMP Title sheet/Legend/List of Roadway Standard Drawings",null,null,null,null,null,null,null,null,null,null,null,null,null,null,null,0]
[null,null,"Final General Notes/Local Notes/Transportation Management Strategies",null,null,null,null,null,null,null,null,null,null,null,null,null,null,null,0]
[null,null,"Final Written Phasing",null,null,null,null,null,null,null,null,null,null,null,null,null,null,null,0]
[null,null,"Final Offsite Detour Details",null,null,null,null,null,null,null,null,null,null,null,null,null,null,null,0]
[null,null,"Final Special Details",null,null,null,null,null,null,null,null,null,null,null,null,null,null,null,0]
[null,null,"Final Traffic Control Details/Overviews/Cut Sections",null,null,null,null,null,null,null,null,null,null,null,null,null,null,null,0]
[null,null,"Draft Quantity Estimate",null,null,null,null,null,null,null,null,null,null,null,null,null,null,null,0]
[null,null,"Draft Intermediate Contract Times",null,null,null,null,null,null,null,null,null,null,null,null,null,null,null,0]
[null,null,"Draft Special Provisions",null,null,null,null,null,null,null,null,null,null,null,null,null,null,null,0]
[null,null,"Distribution of Unsealed Transportaion Management Plan, Draft Estimate, Provisions, and ICTs for Review",null,null,null,null,null,null,null,null,null,null,null,null,null,null,null,0]
[null,2,"Complete Sealed  Final TMP",null,null,null,null,null,null,null,null,null,null,null,null,null,null,null,0]
[null,null,"Sealed Transportion Managemt Plan",null,null,null,null,null,null,null,null,null,null,null,null,null,null,null,0]
[null,null,"Sealed Special Provisions",null,null,null,null,null,null,null,null,null,null,null,null,null,null,null,0]
[null,null,"Final Quantity Estimate",null,null,null,null,null,null,null,null,null,null,null,null,null,null,null,0]
[null,null,"Final Intermediate Contract Time Documents",null,null,null,null,null,null,null,null,null,null,null,null,null,null,null,0]
[null,3,"Task Management",null,null,null,null,null,null,null,null,null,null,null,null,null,null,null,0]
[null,4,"Complete QC Procedures ",null,null,null,null,null,null,null,null,null,null,null,null,null,null,null,0]
[null,null,"Other Tasks:",null,null,null,null,null,null,null,null,null,null,null,null,null,null,null,0]
[null,null,"Temporary Shoring Meeting ",null,null,null,null,null,null,null,null,null,null,null,null,null,null,null,0]
[null,null,"Other Meetings",null,null,null,null,null,null,null,null,null,null,null,null,null,null,null,0]
[]
[null,"ENGINEERING RATES",null,null,null,{"$f":"'PEF CLASSIFICATION SHEET'!E1514","v":0},{"$f":"'PEF CLASSIFICATION SHEET'!E1515","v":0},{"$f":"'PEF CLASSIFICATION SHEET'!E1516","v":0},{"$f":"'PEF CLASSIFICATION SHEET'!E1517","v":0},{"$f":"'PEF CLASSIFICATION SHEET'!E1518","v":0},{"$f":"'PEF CLASSIFICATION SHEET'!E1519","v":0},{"$f":"'PEF CLASSIFICATION SHEET'!E1520","v":0},{"$f":"'PEF CLASSIFICATION SHEET'!E1521","v":0},{"$f":"'PEF CLASSIFICATION SHEET'!E1522","v":0},{"$f":"'PEF CLASSIFICATION SHEET'!E1523","v":0},{"$f":"'PEF CLASSIFICATION SHEET'!E1524","v":0},{"$f":"'PEF CLASSIFICATION SHEET'!E1525","v":0},{"$f":"'PEF CLASSIFICATION SHEET'!E1526","v":0}]
[null,"             Total Workdays:",null,null,null,{"$f":"SUM(F14:F59)","v":0},0,0,0,0,0,0,0,0,0,0,0,0,{"$f":"SUM(F61:R61)","v":0}]
[null,"             Direct Salary (w/o Overhead):",null,null,null,{"$f":"F61*8*F60","v":0},{"$f":"G61*8*G60","v":0},0,0,0,0,0,0,0,0,0,0,0,{"$f":"SUM(F62:R62)","v":0}]
[null,"         Overhead                                  *",null,null,null,{"$f":"WZTCU_SUB1_CONSULTANT_OVERHEAD","v":0},null,null,null,null,null,null,null,null,null,null,null,null,{"$f":"((S62+H67)*F63)","v":0}]
[null,"TOTAL Direct Salary + Overhead",null,null,null,{"$f":"SUM(S62:S63)","v":0}]
[]
[null,"Cost of Capital:               ",null,null,null,{"$f":"WZTCU_SUB1_CONSULTANT_COSTofCAPITAL","v":0},"=",{"$f":"F66*S62","v":0}]
[null,"Escalation :",null,0,"Yrs",0,"=",{"$f":"(D67*F67)*S62","v":0}]
[null,"Fee:",null,null,null,{"$f":"WZTCU_SUB1_CONSULTANT_FEE","v":0.09},"=",{"$f":"F68*F64","v":0}]
[null,null,null,"TOTAL Indirect Costs",null,null,"=",{"$f":"SUM(H66:H68)","v":0}]
[]
[null,"TOTAL Direct Salary + Overhead + Indirect Costs",null,null,null,null,"=",{"$f":"SUM(H66:H68)+F64","v":0}]
[]
[null,"TOTAL Non-salary Direct Costs:",null,null,null,null,"=",{"$f":"WZTCU_SUB1_DIRECT_NONSALARY_TOTAL","v":0}]
[]
[null,"TOTAL COST ESTIMATE:",null,null,null,null,"=",{"$f":"H71+H73","v":0}]
[]
[null,null,null,"Workdays","Cost"]
[null,"NCDOT Estimate",null,{"$f":"+S61","v":0},{"$f":"H75","v":0}]
[]
[null,"PEF Estimate",null,{"$f":"+S61","v":0},{"$f":"H75","v":0}]
[]
[null,"% Difference",null,{"$f":"(D78-D80)/D80","v":{"$error":"#DIV/0!"}},{"$f":"(E78-E80)/E80","v":{"$error":"#DIV/0!"}}]

{"sheet":"WZTC-Exp-Sub1","index":170,"n_rows":111,"n_cols":18,"rows_kept":111,"cut":false,"hidden":true,"merged":[[0,0,0,11],[2,1,2,3],[2,4,2,7],[2,8,2,11]]}
["WORK ZONE TRAFFIC CONTROL (WZTC) DIRECT EXPENSES - SUBCONSULTANT 1"]
[]
["FIRM:",{"$f":"'WZTC-Sub1'!H5","v":"CONSULTANT NAME"},null,null,"TIP NUMBER:",null,null,null,{"$f":"TIP.NUMBER","v":0}]
["A.","* REPRODUCTION COSTS"]
[null,null,"SUBMITTALS:","SHEETS","x","SETS","=","Total","@","Each","=","Cost"]
[null,null,"    25% - Staging "]
[null,null,"Full-Size Bond",0,"x",0,"=",{"$f":"D7*F7","v":0},"@",{"$f":"BOND.REGULAR","v":0.42},"=",{"$f":"H7*J7","v":0}]
[null,null,"Half-Size 11x17",0,"x",0,"=",{"$f":"D8*F8","v":0},"@",{"$f":"LEDGERCOPIES","v":0.34},"=",{"$f":"H8*J8","v":0}]
[null,null,"Full-Size Bond (COLOR)",0,"x",0,"=",{"$f":"D9*F9","v":0},"@",{"$f":"FULLSIZE.BOND.COLOR","v":3},"=",{"$f":"H9*J9","v":0}]
[null,null,"Half-Size 11x17 (COLOR)",0,"x",0,"=",{"$f":"D10*F10","v":0},"@",{"$f":"LEDGERCOLOR","v":1.66},"=",{"$f":"H10*J10","v":0}]
[null,null,"    50% - Midpoint"]
[null,null,"Full-Size Bond",0,"x",0,"=",{"$f":"D12*F12","v":0},"@",{"$f":"BOND.REGULAR","v":0.42},"=",{"$f":"H12*J12","v":0}]
[null,null,"Half-Size 11x17",0,"x",0,"=",{"$f":"D13*F13","v":0},"@",{"$f":"LEDGERCOPIES","v":0.34},"=",{"$f":"H13*J13","v":0}]
[null,null,"Full-Size Bond (COLOR)",0,"x",0,"=",{"$f":"D14*F14","v":0},"@",{"$f":"FULLSIZE.BOND.COLOR","v":3},"=",{"$f":"H14*J14","v":0}]
[null,null,"Half-Size 11x17 (COLOR)",0,"x",0,"=",{"$f":"D15*F15","v":0},"@",{"$f":"LEDGERCOLOR","v":1.66},"=",{"$f":"H15*J15","v":0}]
[null,null,"    90% - Pre-Final"]
[null,null,"Full-Size Bond",0,"x",0,"=",{"$f":"D17*F17","v":0},"@",{"$f":"BOND.REGULAR","v":0.42},"=",{"$f":"H17*J17","v":0}]
[null,null,"Half-Size 11x17",0,"x",0,"=",{"$f":"D18*F18","v":0},"@",{"$f":"LEDGERCOPIES","v":0.34},"=",{"$f":"H18*J18","v":0}]
[null,null,"Full-Size Bond (COLOR)",0,"x",0,"=",{"$f":"D19*F19","v":0},"@",{"$f":"FULLSIZE.BOND.COLOR","v":3},"=",{"$f":"H19*J19","v":0}]
[null,null,"Half-Size 11x17 (COLOR)",0,"x",0,"=",{"$f":"D20*F20","v":0},"@",{"$f":"LEDGERCOLOR","v":1.66},"=",{"$f":"H20*J20","v":0}]
[null,null,"    100% - Final (Pre-Sealed)"]
[null,null,"Full-Size Bond",0,"x",0,"=",{"$f":"D22*F22","v":0},"@",{"$f":"BOND.REGULAR","v":0.42},"=",{"$f":"H22*J22","v":0}]
[null,null,"Half-Size 11x17",0,"x",0,"=",{"$f":"D23*F23","v":0},"@",{"$f":"LEDGERCOPIES","v":0.34},"=",{"$f":"H23*J23","v":0}]
[null,null,"Full-Size Bond (COLOR)",0,"x",0,"=",{"$f":"D24*F24","v":0},"@",{"$f":"FULLSIZE.BOND.COLOR","v":3},"=",{"$f":"H24*J24","v":0}]
[null,null,"Half-Size 11x17 (COLOR)",0,"x",0,"=",{"$f":"D25*F25","v":0},"@",{"$f":"LEDGERCOLOR","v":1.66},"=",{"$f":"H25*J25","v":0}]
[null,null,"    100% - Final (Sealed)"]
[null,null,"Full-Size Bond",0,"x",0,"=",{"$f":"D27*F27","v":0},"@",{"$f":"BOND.REGULAR","v":0.42},"=",{"$f":"H27*J27","v":0}]
[null,null,"Half-Size 11x17",0,"x",0,"=",{"$f":"D28*F28","v":0},"@",{"$f":"LEDGERCOPIES","v":0.34},"=",{"$f":"H28*J28","v":0}]
[null,null,"Full-Size Bond (COLOR)",0,"x",0,"=",{"$f":"D29*F29","v":0},"@",{"$f":"FULLSIZE.BOND.COLOR","v":3},"=",{"$f":"H29*J29","v":0}]
[null,null,"Half-Size 11x17 (COLOR)",0,"x",0,"=",{"$f":"D30*F30","v":0},"@",{"$f":"LEDGERCOLOR","v":1.66},"=",{"$f":"H30*J30","v":0}]
[null,null,"OTHER:","SHEETS","x","SETS","=","Total","@","Each","=","Cost"]
[null,null,"    Preliminary Design Field Inspection"]
[null,null,"Full-Size Bond",0,"x",0,"=",{"$f":"D33*F33","v":0},"@",{"$f":"BOND.REGULAR","v":0.42},"=",{"$f":"H33*J33","v":0}]
[null,null,"Half-Size 11x17",0,"x",0,"=",{"$f":"D34*F34","v":0},"@",{"$f":"LEDGERCOPIES","v":0.34},"=",{"$f":"H34*J34","v":0}]
[null,null,"Full-Size Bond (COLOR)",0,"x",0,"=",{"$f":"D35*F35","v":0},"@",{"$f":"FULLSIZE.BOND.COLOR","v":3},"=",{"$f":"H35*J35","v":0}]
[null,null,"Half-Size 11x17 (COLOR)",0,"x",0,"=",{"$f":"D36*F36","v":0},"@",{"$f":"LEDGERCOLOR","v":1.66},"=",{"$f":"H36*J36","v":0}]
[null,null,"    Final Design/Combined Field Inspection"]
[null,null,"Full-Size Bond",0,"x",0,"=",{"$f":"D38*F38","v":0},"@",{"$f":"BOND.REGULAR","v":0.42},"=",{"$f":"H38*J38","v":0}]
[null,null,"Half-Size 11x17",0,"x",0,"=",{"$f":"D39*F39","v":0},"@",{"$f":"LEDGERCOPIES","v":0.34},"=",{"$f":"H39*J39","v":0}]
[null,null,"Full-Size Bond (COLOR)",0,"x",0,"=",{"$f":"D40*F40","v":0},"@",{"$f":"FULLSIZE.BOND.COLOR","v":3},"=",{"$f":"H40*J40","v":0}]
[null,null,"Half-Size 11x17 (COLOR)",0,"x",0,"=",{"$f":"D41*F41","v":0},"@",{"$f":"LEDGERCOLOR","v":1.66},"=",{"$f":"H41*J41","v":0}]
[null,null,"    Internal Constructability Review"]
[null,null,"Full-Size Bond",0,"x",0,"=",{"$f":"D43*F43","v":0},"@",{"$f":"BOND.REGULAR","v":0.42},"=",{"$f":"H43*J43","v":0}]
[null,null,"Half-Size 11x17",0,"x",0,"=",{"$f":"D44*F44","v":0},"@",{"$f":"LEDGERCOPIES","v":0.34},"=",{"$f":"H44*J44","v":0}]
[null,null,"Full-Size Bond (COLOR)",0,"x",0,"=",{"$f":"D45*F45","v":0},"@",{"$f":"FULLSIZE.BOND.COLOR","v":3},"=",{"$f":"H45*J45","v":0}]
[null,null,"Half-Size 11x17 (COLOR)",0,"x",0,"=",{"$f":"D46*F46","v":0},"@",{"$f":"LEDGERCOLOR","v":1.66},"=",{"$f":"H46*J46","v":0}]
[null,null,"    External Constructability Review"]
[null,null,"Full-Size Bond",0,"x",0,"=",{"$f":"D48*F48","v":0},"@",{"$f":"BOND.REGULAR","v":0.42},"=",{"$f":"H48*J48","v":0}]
[null,null,"Half-Size 11x17",0,"x",0,"=",{"$f":"D49*F49","v":0},"@",{"$f":"LEDGERCOPIES","v":0.34},"=",{"$f":"H49*J49","v":0}]
[null,null,"Full-Size Bond (COLOR)",0,"x",0,"=",{"$f":"D50*F50","v":0},"@",{"$f":"FULLSIZE.BOND.COLOR","v":3},"=",{"$f":"H50*J50","v":0}]
[null,null,"Half-Size 11x17 (COLOR)",0,"x",0,"=",{"$f":"D51*F51","v":0},"@",{"$f":"LEDGERCOLOR","v":1.66},"=",{"$f":"H51*J51","v":0}]
[null,null,"    Const. Revisions"]
[null,null,"Full-Size Bond",0,"x",0,"=",{"$f":"D53*F53","v":0},"@",{"$f":"BOND.REGULAR","v":0.42},"=",{"$f":"H53*J53","v":0}]
[null,null,"Half-Size 11x17",0,"x",0,"=",{"$f":"D54*F54","v":0},"@",{"$f":"LEDGERCOPIES","v":0.34},"=",{"$f":"H54*J54","v":0}]
[null,null,"Full-Size Bond (COLOR)",0,"x",0,"=",{"$f":"D55*F55","v":0},"@",{"$f":"FULLSIZE.BOND.COLOR","v":3},"=",{"$f":"H55*J55","v":0}]
[null,null,"Half-Size 11x17 (COLOR)",0,"x",0,"=",{"$f":"D56*F56","v":0},"@",{"$f":"LEDGERCOLOR","v":1.66},"=",{"$f":"H56*J56","v":0}]
[null,null,"MISCELLANEOUS XEROX COPIES","SHEETS",null,null,null,null,"@","Each","=","Cost"]
[null,null,"TOTAL 81/2 x 11 XEROX COPIES (Say)",0,null,null,null,null,"@",{"$f":"LETTERCOPIES","v":0.14000000000000001},"=",{"$f":"D58*J58","v":0}]
[null,null,"TOTAL 11 x 17 XEROX COPIES    (Say)",0,null,null,null,null,"@",{"$f":"LEDGERCOPIES","v":0.34},"=",{"$f":"D59*J59","v":0}]
["A.",null," TOTAL REPRODUCTION  COSTS",null,null,null,null,null,null,null,"=",{"$f":"SUM(L7:L59)","v":0}]
[null,"*","Include Firm's Record Set, See Engineering Guidelines for current max.allowable non-salary direct costs"]
["B.",null,"** TRAVEL AND MISCELLANEOUS COSTS"]
[null,"1.","TRAVEL:"]
[null,null,"PURPOSE of TRIP","TRIPS","x","MILES","x","RATE",null,null,null,"COST"]
[null,null,"Field Reviews",0,"x",0,"x",{"$f":"SEDAN","v":0.7},null,null,"=",{"$f":"D65*F65*H65","v":0}]
[null,null,"Public Meeting/Hearing/Workshops",0,"x",0,"x",0.7,null,null,"=",0]
[null,null,"Field Inspections (Preliminary, Combined, Final)",0,"x",0,"x",0.7,null,null,"=",0]
[null,null,"Scheduled Reviews/Misc. Meetings with NCDOT",0,"x",0,"x",0.7,null,null,"=",0]
[null,null,"Miscellaneous Local Meetings",0,"x",0,"x",0.7,null,null,"=",0]
[null,null,null,0,"x",0,"x",0.7,null,null,"=",0]
[null,null,"PER DIEM","TRIPS",null,"# ATTEND",null,"AMOUNT"]
[null,null,"Breakfast",0,"x",0,"x",{"$f":"BREAKFAST","v":10.1},null,null,"=",{"$f":"D72*F72*H72","v":0}]
[null,null,"Lunch",0,"x",0,"x",{"$f":"LUNCH","v":13.3},null,null,"=",{"$f":"D73*F73*H73","v":0}]
[null,null,"Dinner",0,"x",0,"x",{"$f":"DINNER","v":23.1},null,null,"=",{"$f":"D74*F74*H74","v":0}]
[null,null,"Lodging",0,"x",0,"x",{"$f":"LODGING_LUMP.SUM","v":95},null,null,"=",{"$f":"D75*F75*H75","v":0}]
[null,"1."," SUBTOTAL TRAVEL COSTS ",null,null,null,null,null,null,null,"=",{"$f":"SUM(L65:L75)","v":0}]
[]
[null,"2.","MISCELLANEOUS:"]
[null,null,"  EQUIPMENT: LIST",null,null,null,null,"NUMBER",null,"RATE"]
[null,null,null,null,null,null,null,null,"x",null,"=",{"$f":"H80*J80","v":0}]
[null,null,null,null,null,null,null,null,"x",null,"=",{"$f":"H81*J81","v":0}]
[null,null,null,null,null,null,null,null,"x",null,"=",0]
[null,null,null,null,null,null,null,null,"x",null,"=",0]
[null,null,null,null,null,null,null,null,"x",null,"=",0]
[null,null,"  COMMUNICATIONS: LIST ",null,null,null,null,"NUMBER",null,"RATE"]
[null,null,null,null,null,null,null,null,"x",null,"=",{"$f":"H86*J86","v":0}]
[null,null,null,null,null,null,null,null,"x",null,"=",0]
[null,null,null,null,null,null,null,null,"x",null,"=",0,null,null,null,null,null,"`"]
[null,null,null,null,null,null,null,null,"x",null,"=",0]
[null,null,null,null,null,null,null,null,"x",null,"=",0]
[null,null,"  POSTAGE: LIST",null,null,null,null,"NUMBER",null,"RATE"]
[null,null,null,null,null,null,null,null,"x",null,"=",{"$f":"H92*J92","v":0}]
[null,null,null,null,null,null,null,null,"x",null,"=",0]
[null,null,null,null,null,null,null,null,"x",null,"=",0]
[null,null,null,null,null,null,null,null,"x",null,"=",0]
[null,null,null,null,null,null,null,null,"x",null,"=",0]
[null,null,"  OTHER: LIST",null,null,null,null,"NUMBER",null,"RATE"]
[null,null,null,null,null,null,null,null,"x",null,"=",{"$f":"H98*J98","v":0}]
[null,null,null,null,null,null,null,null,"x",null,"=",0]
[null,null,null,null,null,null,null,null,"x",null,"=",0]
[null,null,null,null,null,null,null,null,"x",null,"=",0]
[null,null,null,null,null,null,null,null,"x",null,"=",0]
[null,"2."," SUBTOTAL MISCELLANEOUS COSTS ",null,null,null,null,null,null,null,"=",{"$f":"SUM(L80:L102)","v":0}]
[]
["B.","TOTAL TRAVEL & MISCELLANEOUS COSTS",null,null,null,null,null,null,null,null,"=",{"$f":"L76+L103","v":0}]
[]
[]
["A+B.","TOTAL DIRECT NON-SALARY COSTS (sent to 'Salary & Total Cost' Sheet):",null,null,null,null,null,null,null,null,"=",{"$f":"L105+L60","v":0}]
[]
[null,"**","Use Only Items That Are Not Included In Overhead"]
[null,null,"See Engineering Guidelines for current max.allowable non-salary direct costs"]

{"sheet":"TransPlan-Sub1","index":171,"n_rows":135,"n_cols":23,"rows_kept":135,"cut":false,"hidden":true,"merged":[[143,8,143,13],[144,8,144,9],[144,10,144,11],[145,8,145,9],[145,10,145,11],[138,3,138,6],[138,8,138,13],[139,8,139,9],[139,10,139,11],[140,8,140,9],[140,10,140,11],[116,22,116,23],[117,22,117,23],[118,22,118,23],[119,22,119,23],[134,1,135,1],[134,3,135,4],[110,22,110,23],[111,22,111,23],[112,22,112,23],[113,22,113,23],[114,22,114,23],[115,22,115,23],[104,22,104,23],[105,22,105,23],[106,22,106,23],[107,22,107,23],[108,22,108,23],[109,22,109,23],[98,22,98,23],[99,22,99,23],[100,22,100,23],[101,22,101,23],[102,22,102,23],[103,22,103,23],[92,22,92,23],[93,22,93,23],[94,22,94,23],[95,22,95,23],[96,22,96,23],[97,22,97,23],[86,22,86,23],[87,22,87,23],[88,22,88,23],[89,22,89,23],[90,22,90,23],[91,22,91,23],[80,22,80,23],[81,22,81,23],[82,22,82,23],[83,22,83,23],[84,22,84,23],[85,22,85,23],[74,22,74,23],[75,22,75,23],[76,22,76,23],[77,22,77,23],[78,22,78,23],[79,22,79,23],[68,22,68,23],[69,22,69,23],[70,22,70,23],[71,22,71,23],[72,22,72,23],[73,22,73,23],[62,22,62,23],[63,22,63,23],[64,22,64,23],[65,22,65,23],[66,22,66,23],[67,22,67,23],[56,22,56,23],[57,22,57,23],[58,22,58,23],[59,22,59,23],[60,22,60,23],[61,22,61,23],[50,22,50,23],[51,22,51,23],[52,22,52,23],[53,22,53,23],[54,22,54,23],[55,22,55,23],[44,22,44,23],[45,22,45,23],[46,22,46,23],[47,22,47,23],[48,22,48,23],[49,22,49,23],[38,22,38,23],[39,22,39,23],[40,22,40,23],[41,22,41,23],[42,22,42,23],[43,22,43,23],[32,22,32,23],[33,22,33,23],[34,22,34,23],[35,22,35,23],[36,22,36,23],[37,22,37,23],[26,22,26,23],[27,22,27,23],[28,22,28,23],[29,22,29,23],[30,22,30,23],[31,22,31,23],[20,22,20,23],[21,22,21,23],[22,22,22,23],[23,22,23,23],[24,22,24,23],[25,22,25,23],[14,22,14,23],[15,22,15,23],[16,22,16,23],[17,22,17,23],[18,22,18,23],[19,22,19,23],[8,22,8,23],[10,22,10,23],[11,22,11,23],[12,22,12,23],[13,22,13,23],[6,12,9,12],[6,13,9,13],[6,14,9,14],[6,15,9,15],[6,16,9,16],[6,17,9,17],[4,3,4,18],[6,3,9,3],[6,4,9,4],[6,5,9,5],[6,6,9,6],[6,7,9,7],[6,8,9,8],[6,9,9,9],[6,10,9,10],[6,11,9,11],[6,18,9,18],[0,0,1,13],[2,1,2,4],[2,6,2,7],[2,10,2,11],[2,15,2,16],[3,1,3,4],[3,6,3,7],[3,10,3,11],[3,15,3,16]]}
["TRANSPORTATION PLANNING--BREAKDOWN WORKSHEET - SUBCONSULTANT 1 -- ENTER WORKHOURS"]
[]
["PROJECT DESCRIPTION: ",{"$f":"PROJECT.DESCRIPTION","v":0},null,null,null,"FIRM:  ",{"$f":"TRANSPORTATIONPLANNING.SUB1_CONSULTANT_NAME","v":"CONSULTANT NAME"},null,"TASK ORDER NUMBER:",null,{"$f":"TASK.ORDER.NUMBER","v":0},null,"DATE PREPARED:",{"$f":"IF(SCOPE.MANDAY.ESTIMATE.PREPARED.BY.DATE=\"\",\"\",SCOPE.MANDAY.ESTIMATE.PREPARED.BY.DATE)","v":""}]
["PREPARED BY:  ",{"$f":"IF(SCOPE.MANDAY.ESTIMATE.PREPARED.BY=\"\",\"\",SCOPE.MANDAY.ESTIMATE.PREPARED.BY)","v":""},null,null,null,"TIP NUMBER:",{"$f":"TIP.NUMBER","v":0},null,"WBS NUMBER:",null,{"$f":"WBS.NUMBER","v":""},null,"REVISION DATE:",{"$f":"IF(SCOPE.MANDAY.ESTIMATE.APPROVED.BY.DATE=\"\",\"\",SCOPE.MANDAY.ESTIMATE.APPROVED.BY.DATE)","v":""}]
[null,null,null,"ESTIMATED WORKHOURS"]
[null,null,"EMPLOYEE NAMES",{"$f":"IF('PEF CLASSIFICATION SHEET'!D1529=\"\",\"\",LEFT('PEF CLASSIFICATION SHEET'!D1529,4))","v":""},{"$f":"IF('PEF CLASSIFICATION SHEET'!D1530=\"\",\"\",LEFT('PEF CLASSIFICATION SHEET'!D1530,4))","v":""},{"$f":"IF('PEF CLASSIFICATION SHEET'!D1531=\"\",\"\",LEFT('PEF CLASSIFICATION SHEET'!D1531,4))","v":""},{"$f":"IF('PEF CLASSIFICATION SHEET'!D1532=\"\",\"\",LEFT('PEF CLASSIFICATION SHEET'!D1532,4))","v":""},{"$f":"IF('PEF CLASSIFICATION SHEET'!D1533=\"\",\"\",LEFT('PEF CLASSIFICATION SHEET'!D1533,4))","v":""},{"$f":"IF('PEF CLASSIFICATION SHEET'!D1534=\"\",\"\",LEFT('PEF CLASSIFICATION SHEET'!D1534,4))","v":""},{"$f":"IF('PEF CLASSIFICATION SHEET'!D1535=\"\",\"\",LEFT('PEF CLASSIFICATION SHEET'!D1535,4))","v":""},{"$f":"IF('PEF CLASSIFICATION SHEET'!D1536=\"\",\"\",LEFT('PEF CLASSIFICATION SHEET'!D1536,4))","v":""},{"$f":"IF('PEF CLASSIFICATION SHEET'!D1537=\"\",\"\",LEFT('PEF CLASSIFICATION SHEET'!D1537,4))","v":""},{"$f":"IF('PEF CLASSIFICATION SHEET'!D1538=\"\",\"\",LEFT('PEF CLASSIFICATION SHEET'!D1538,4))","v":""},{"$f":"IF('PEF CLASSIFICATION SHEET'!D1539=\"\",\"\",LEFT('PEF CLASSIFICATION SHEET'!D1539,4))","v":""},{"$f":"IF('PEF CLASSIFICATION SHEET'!D1540=\"\",\"\",LEFT('PEF CLASSIFICATION SHEET'!D1540,4))","v":""},{"$f":"IF('PEF CLASSIFICATION SHEET'!D1541=\"\",\"\",LEFT('PEF CLASSIFICATION SHEET'!D1541,4))","v":""},{"$f":"IF('PEF CLASSIFICATION SHEET'!D1542=\"\",\"\",LEFT('PEF CLASSIFICATION SHEET'!D1542,4))","v":""},{"$f":"IF('PEF CLASSIFICATION SHEET'!D1543=\"\",\"\",LEFT('PEF CLASSIFICATION SHEET'!D1543,4))","v":""},{"$f":"IF('PEF CLASSIFICATION SHEET'!D1544=\"\",\"\",LEFT('PEF CLASSIFICATION SHEET'!D1544,4))","v":""}]
[null,null,null,{"$f":"IF('PEF CLASSIFICATION SHEET'!C1529=\"\",\"\",'PEF CLASSIFICATION SHEET'!C1529)","v":""},{"$f":"IF('PEF CLASSIFICATION SHEET'!C1530=\"\",\"\",'PEF CLASSIFICATION SHEET'!C1530)","v":""},{"$f":"IF('PEF CLASSIFICATION SHEET'!C1531=\"\",\"\",'PEF CLASSIFICATION SHEET'!C1531)","v":""},{"$f":"IF('PEF CLASSIFICATION SHEET'!C1532=\"\",\"\",'PEF CLASSIFICATION SHEET'!C1532)","v":""},{"$f":"IF('PEF CLASSIFICATION SHEET'!C1533=\"\",\"\",'PEF CLASSIFICATION SHEET'!C1533)","v":""},{"$f":"IF('PEF CLASSIFICATION SHEET'!C1534=\"\",\"\",'PEF CLASSIFICATION SHEET'!C1534)","v":""},{"$f":"IF('PEF CLASSIFICATION SHEET'!C1535=\"\",\"\",'PEF CLASSIFICATION SHEET'!C1535)","v":""},{"$f":"IF('PEF CLASSIFICATION SHEET'!C1536=\"\",\"\",'PEF CLASSIFICATION SHEET'!C1536)","v":""},{"$f":"IF('PEF CLASSIFICATION SHEET'!C1537=\"\",\"\",'PEF CLASSIFICATION SHEET'!C1537)","v":""},{"$f":"IF('PEF CLASSIFICATION SHEET'!C1538=\"\",\"\",'PEF CLASSIFICATION SHEET'!C1538)","v":""},{"$f":"IF('PEF CLASSIFICATION SHEET'!C1539=\"\",\"\",'PEF CLASSIFICATION SHEET'!C1539)","v":""},{"$f":"IF('PEF CLASSIFICATION SHEET'!C1540=\"\",\"\",'PEF CLASSIFICATION SHEET'!C1540)","v":""},{"$f":"IF('PEF CLASSIFICATION SHEET'!C1541=\"\",\"\",'PEF CLASSIFICATION SHEET'!C1541)","v":""},{"$f":"IF('PEF CLASSIFICATION SHEET'!C1542=\"\",\"\",'PEF CLASSIFICATION SHEET'!C1542)","v":""},{"$f":"IF('PEF CLASSIFICATION SHEET'!C1543=\"\",\"\",'PEF CLASSIFICATION SHEET'!C1543)","v":""},{"$f":"IF('PEF CLASSIFICATION SHEET'!C1544=\"\",\"\",'PEF CLASSIFICATION SHEET'!C1544)","v":""},"SUB-","%","PEF"]
[null,null,null,null,null,null,null,null,null,null,null,null,null,null,null,null,null,null,null,"TOTAL","OF","ESTIMATE"]
["TASK","TASK DESCRIPTION","CLASSIFICATION",null,null,null,null,null,null,null,null,null,null,null,null,null,null,null,null,null,"PROJECT",null,"COMMENTS"]
["NO."]
["1TP2","Complete Traffic Forecast",null,null,null,null,null,null,null,null,null,null,null,null,null,null,null,null,null,{"$f":"IF(B11=\"\",0,IF((SUM(D11:S41)=0),SUM(D11:S11),\"\"))","v":0},{"$f":"IF(T11=\"\",\"\",SUM((T11/$T$121)))","v":{"$error":"#DIV/0!"}}]
[1,"Initiate a Traffic Forecast",null,null,null,null,null,null,null,null,null,null,null,null,null,null,null,null,null,{"$f":"IF(B12=\"\",0,IF((SUM(D12:S12)=0),0,SUM(D12:S12)))","v":0},{"$error":"#DIV/0!"}]
[2,"Determine Level of Traffic Forecast Needed",null,null,null,null,null,null,null,null,null,null,null,null,null,null,null,null,null,{"$f":"IF(B13=\"\",0,IF((SUM(D13:S13)=0),0,SUM(D13:S13)))","v":0},{"$error":"#DIV/0!"}]
[3,"Scope Traffic Forecast",null,null,null,null,null,null,null,null,null,null,null,null,null,null,null,null,null,0,{"$error":"#DIV/0!"}]
[4,"Produce Traffic Forecast",null,null,null,null,null,null,null,null,null,null,null,null,null,null,null,null,null,0,{"$error":"#DIV/0!"}]
[4.0999999999999996,"COLLECT AND REVIEW DATA",null,null,null,null,null,null,null,null,null,null,null,null,null,null,null,null,null,0,{"$error":"#DIV/0!"}]
["4.1.1","     Collect Existing Data",null,null,null,null,null,null,null,null,null,null,null,null,null,null,null,null,null,0,{"$error":"#DIV/0!"}]
["4.1.2","     Review and Analyze Existing Data; Calculate Growth Rates",null,null,null,null,null,null,null,null,null,null,null,null,null,null,null,null,null,0,{"$error":"#DIV/0!"}]
["4.1.3","     Collect Field Data",null,null,null,null,null,null,null,null,null,null,null,null,null,null,null,null,null,0,{"$error":"#DIV/0!"}]
["4.1.4","     Convert to AADT",null,null,null,null,null,null,null,null,null,null,null,null,null,null,null,null,null,0,{"$error":"#DIV/0!"}]
["4.1.5","     Project Kickoff Meeting",null,null,null,null,null,null,null,null,null,null,null,null,null,null,null,null,null,0,{"$error":"#DIV/0!"}]
[null,null,null,null,null,null,null,null,null,null,null,null,null,null,null,null,null,null,null,0,{"$error":"#DIV/0!"}]
[4.2,"PREPARE BASE YEAR NO BUILD (BY NB) ESTIMATE",null,null,null,null,null,null,null,null,null,null,null,null,null,null,null,null,null,0,{"$error":"#DIV/0!"}]
["4.2.1","     Develop and Balance BY NB Estimate",null,null,null,null,null,null,null,null,null,null,null,null,null,null,null,null,null,0,{"$error":"#DIV/0!"}]
["4. 2.2","     Develop BY NB Design Data",null,null,null,null,null,null,null,null,null,null,null,null,null,null,null,null,null,0,{"$error":"#DIV/0!"}]
["4.2.3","     Develop BY NB Traffic Forecast Diagrams",null,null,null,null,null,null,null,null,null,null,null,null,null,null,null,null,null,0,{"$error":"#DIV/0!"}]
[null,null,null,null,null,null,null,null,null,null,null,null,null,null,null,null,null,null,null,0,{"$error":"#DIV/0!"}]
[4.3,"MODEL REVIEW",null,null,null,null,null,null,null,null,null,null,null,null,null,null,null,null,null,0,{"$error":"#DIV/0!"}]
["4.3.1","     Review Model Validation",null,null,null,null,null,null,null,null,null,null,null,null,null,null,null,null,null,0,{"$error":"#DIV/0!"}]
["4.3.2","     Review Networks Project Corridor",null,null,null,null,null,null,null,null,null,null,null,null,null,null,null,null,null,0,{"$error":"#DIV/0!"}]
[null,null,null,null,null,null,null,null,null,null,null,null,null,null,null,null,null,null,null,0,{"$error":"#DIV/0!"}]
[4.4000000000000004,"DEVELOP BASE YEAR BUILD (BY B) FORECAST",null,null,null,null,null,null,null,null,null,null,null,null,null,null,null,null,null,0,{"$error":"#DIV/0!"}]
["4.4.1","     Modify Model",null,null,null,null,null,null,null,null,null,null,null,null,null,null,null,null,null,0,{"$error":"#DIV/0!"}]
["4.4.2","     Utilize Model",null,null,null,null,null,null,null,null,null,null,null,null,null,null,null,null,null,0,{"$error":"#DIV/0!"}]
["4.4.3","     Develop and Balance BY B Traffic Forecast",null,null,null,null,null,null,null,null,null,null,null,null,null,null,null,null,null,0,{"$error":"#DIV/0!"}]
["4.4.3.1","          Develop and Apply Model Diversion",null,null,null,null,null,null,null,null,null,null,null,null,null,null,null,null,null,0,{"$error":"#DIV/0!"}]
["4.4.3.2","          Review / Analyze",null,null,null,null,null,null,null,null,null,null,null,null,null,null,null,null,null,0,{"$error":"#DIV/0!"}]
["4.4.3.3","          Balance",null,null,null,null,null,null,null,null,null,null,null,null,null,null,null,null,null,0,{"$error":"#DIV/0!"}]
[null,null,null,null,null,null,null,null,null,null,null,null,null,null,null,null,null,null,null,0,{"$error":"#DIV/0!"}]
["4.4.4","     Develop BY B Design Data",null,null,null,null,null,null,null,null,null,null,null,null,null,null,null,null,null,0,{"$error":"#DIV/0!"}]
["4.4.5","     Develop BY B Traffic Forecast Diagram(s)",null,null,null,null,null,null,null,null,null,null,null,null,null,null,null,null,null,0,{"$error":"#DIV/0!"}]
[null,null,null,null,null,null,null,null,null,null,null,null,null,null,null,null,null,null,null,{"$f":"IF(B42=\"\",0,IF((SUM(D42:S52)=0),SUM(D42:S42),\"\"))","v":0},{"$error":"#DIV/0!"}]
[4.5,"DEVELOP INTERIM YEAR NO BUILD (IY NB) FORECAST",null,null,null,null,null,null,null,null,null,null,null,null,null,null,null,null,null,0,{"$error":"#DIV/0!"}]
["4.5.1","     Modify Model",null,null,null,null,null,null,null,null,null,null,null,null,null,null,null,null,null,0,{"$error":"#DIV/0!"}]
["4.5.2","     Utilize Model",null,null,null,null,null,null,null,null,null,null,null,null,null,null,null,null,null,0,{"$error":"#DIV/0!"}]
["4.5.3","     Develop and Balance IY NB Forecast",null,null,null,null,null,null,null,null,null,null,null,null,null,null,null,null,null,0,{"$error":"#DIV/0!"}]
["4.5.3.1","          Develop and Apply Model Growth",null,null,null,null,null,null,null,null,null,null,null,null,null,null,null,null,null,0,{"$error":"#DIV/0!"}]
["4.5.3.2","          Develop and Apply Historic Growth",null,null,null,null,null,null,null,null,null,null,null,null,null,null,null,null,null,0,{"$error":"#DIV/0!"}]
["4.5.3.3","          Review / Analyze",null,null,null,null,null,null,null,null,null,null,null,null,null,null,null,null,null,0,{"$error":"#DIV/0!"}]
["4.5.3.4","          Balance",null,null,null,null,null,null,null,null,null,null,null,null,null,null,null,null,null,0,{"$error":"#DIV/0!"}]
[null,null,null,null,null,null,null,null,null,null,null,null,null,null,null,null,null,null,null,0,{"$error":"#DIV/0!"}]
["4.5.4","     Develop IY NB Design Data",null,null,null,null,null,null,null,null,null,null,null,null,null,null,null,null,null,0,{"$error":"#DIV/0!"}]
["4.5.5","     Develop IY NB Traffic Forecast Diagram(s)",null,null,null,null,null,null,null,null,null,null,null,null,null,null,null,null,null,0,{"$error":"#DIV/0!"}]
[null,null,null,null,null,null,null,null,null,null,null,null,null,null,null,null,null,null,null,0,{"$error":"#DIV/0!"}]
[4.5999999999999996,"DEVELOP INTERIM YEAR (IY B) FORECAST",null,null,null,null,null,null,null,null,null,null,null,null,null,null,null,null,null,0,{"$error":"#DIV/0!"}]
["4.6.1","     Modify Model",null,null,null,null,null,null,null,null,null,null,null,null,null,null,null,null,null,0,{"$error":"#DIV/0!"}]
["4.6.2","     Utilize Model",null,null,null,null,null,null,null,null,null,null,null,null,null,null,null,null,null,0,{"$error":"#DIV/0!"}]
["4.6.3","     Develop and Balance IY B Forecast",null,null,null,null,null,null,null,null,null,null,null,null,null,null,null,null,null,0,{"$error":"#DIV/0!"}]
["4.6.3.1","          Develop and Apply Model Diversion",null,null,null,null,null,null,null,null,null,null,null,null,null,null,null,null,null,0,{"$error":"#DIV/0!"}]
["4.6.3.2","          Review / Analyze",null,null,null,null,null,null,null,null,null,null,null,null,null,null,null,null,null,0,{"$error":"#DIV/0!"}]
["4.6.3.3","          Balance",null,null,null,null,null,null,null,null,null,null,null,null,null,null,null,null,null,0,{"$error":"#DIV/0!"}]
[null,null,null,null,null,null,null,null,null,null,null,null,null,null,null,null,null,null,null,0,{"$error":"#DIV/0!"}]
["4.6.4","     Develop IY B Design Data",null,null,null,null,null,null,null,null,null,null,null,null,null,null,null,null,null,0,{"$error":"#DIV/0!"}]
["4.6.5","     Develop IY B Traffic Forecast Diagram(s)",null,null,null,null,null,null,null,null,null,null,null,null,null,null,null,null,null,0,{"$error":"#DIV/0!"}]
[null,null,null,null,null,null,null,null,null,null,null,null,null,null,null,null,null,null,null,0,{"$error":"#DIV/0!"}]
[4.7,"DEVELOP FUTURE YEAR NO BUILD (FY NB) FORECAST",null,null,null,null,null,null,null,null,null,null,null,null,null,null,null,null,null,0,{"$error":"#DIV/0!"}]
["4.7.1","     Modify Model",null,null,null,null,null,null,null,null,null,null,null,null,null,null,null,null,null,0,{"$error":"#DIV/0!"}]
["4.7.2","     Utilize Model",null,null,null,null,null,null,null,null,null,null,null,null,null,null,null,null,null,0,{"$error":"#DIV/0!"}]
["4.7.3","     Develop and Balance FY NB Forecast",null,null,null,null,null,null,null,null,null,null,null,null,null,null,null,null,null,0,{"$error":"#DIV/0!"}]
["4.7.3.1","          Develop and Apply Model Growth",null,null,null,null,null,null,null,null,null,null,null,null,null,null,null,null,null,0,{"$error":"#DIV/0!"}]
["4.7.3.2","          Develop and Apply Historic Growth",null,null,null,null,null,null,null,null,null,null,null,null,null,null,null,null,null,0,{"$error":"#DIV/0!"}]
["4.7.3.3","          Review / Analyze",null,null,null,null,null,null,null,null,null,null,null,null,null,null,null,null,null,0,{"$error":"#DIV/0!"}]
["4.7.3.4","          Balance",null,null,null,null,null,null,null,null,null,null,null,null,null,null,null,null,null,0,{"$error":"#DIV/0!"}]
[null,null,null,null,null,null,null,null,null,null,null,null,null,null,null,null,null,null,null,0,{"$error":"#DIV/0!"}]
["4.7.4","     Develop FY NB Design Data",null,null,null,null,null,null,null,null,null,null,null,null,null,null,null,null,null,0,{"$f":"IF(T75=\"\",\"\",SUM((T75/$T$121)))","v":{"$error":"#DIV/0!"}}]
["4.7.5","     Develop FY NB Traffic Forecast Diagrams",null,null,null,null,null,null,null,null,null,null,null,null,null,null,null,null,null,0,{"$error":"#DIV/0!"}]
[null,null,null,null,null,null,null,null,null,null,null,null,null,null,null,null,null,null,null,{"$f":"IF(B77=\"\",0,IF((SUM(D77:S77)=0),0,SUM(D77:S77)))","v":0},{"$error":"#DIV/0!"}]
[4.8,"DEVELOP FUTURE YEAR BUILD (FY B) FORECAST",null,null,null,null,null,null,null,null,null,null,null,null,null,null,null,null,null,0,{"$error":"#DIV/0!"}]
["4.8.1","     Modify Model",null,null,null,null,null,null,null,null,null,null,null,null,null,null,null,null,null,0,{"$error":"#DIV/0!"}]
["4.8.2","     Utilize Model",null,null,null,null,null,null,null,null,null,null,null,null,null,null,null,null,null,0,{"$error":"#DIV/0!"}]
["4.8.3","     Develop and Balance FY B Forecast",null,null,null,null,null,null,null,null,null,null,null,null,null,null,null,null,null,0,{"$error":"#DIV/0!"}]
["4.8.3.1","          Develop and Apply Model Diversion",null,null,null,null,null,null,null,null,null,null,null,null,null,null,null,null,null,0,{"$error":"#DIV/0!"}]
["4.8.3.2","          Review / Analyze",null,null,null,null,null,null,null,null,null,null,null,null,null,null,null,null,null,0,{"$error":"#DIV/0!"}]
["4.8.3.3","          Balance",null,null,null,null,null,null,null,null,null,null,null,null,null,null,null,null,null,0,{"$error":"#DIV/0!"}]
[null,null,null,null,null,null,null,null,null,null,null,null,null,null,null,null,null,null,null,0,{"$error":"#DIV/0!"}]
["4.8.4","     Develop FY B Design Data",null,null,null,null,null,null,null,null,null,null,null,null,null,null,null,null,null,0,{"$error":"#DIV/0!"}]
["4.8.5","     Develop FY B Traffic Forecast Diagrams",null,null,null,null,null,null,null,null,null,null,null,null,null,null,null,null,null,0,{"$error":"#DIV/0!"}]
[null,null,null,null,null,null,null,null,null,null,null,null,null,null,null,null,null,null,null,0,{"$error":"#DIV/0!"}]
[4.9000000000000004,"INTERIM REVIEW",null,null,null,null,null,null,null,null,null,null,null,null,null,null,null,null,null,0,{"$error":"#DIV/0!"}]
[null,null,null,null,null,null,null,null,null,null,null,null,null,null,null,null,null,null,null,0,{"$error":"#DIV/0!"}]
[4.0999999999999996,"DEVELOP DRAFT TRAFFIC FORECAST REPORT",null,null,null,null,null,null,null,null,null,null,null,null,null,null,null,null,null,0,{"$error":"#DIV/0!"}]
[null,null,null,null,null,null,null,null,null,null,null,null,null,null,null,null,null,null,null,0,{"$error":"#DIV/0!"}]
[4.1100000000000003,"REFINE TRAFFIC FORECAST AND REPORT",null,null,null,null,null,null,null,null,null,null,null,null,null,null,null,null,null,0,{"$error":"#DIV/0!"}]
[null,null,null,null,null,null,null,null,null,null,null,null,null,null,null,null,null,null,null,0,{"$error":"#DIV/0!"}]
[5,"Complete and Deliver Traffic Forecast",null,null,null,null,null,null,null,null,null,null,null,null,null,null,null,null,null,0,{"$error":"#DIV/0!"}]
[null,null,null,null,null,null,null,null,null,null,null,null,null,null,null,null,null,null,null,0,{"$error":"#DIV/0!"}]
[6,"Task Management",null,null,null,null,null,null,null,null,null,null,null,null,null,null,null,null,null,0,{"$error":"#DIV/0!"}]
[6.5,"PROJECT SCHEDULE",null,null,null,null,null,null,null,null,null,null,null,null,null,null,null,null,null,0,{"$error":"#DIV/0!"}]
[null,null,null,null,null,null,null,null,null,null,null,null,null,null,null,null,null,null,null,0,{"$f":"IF(T99=\"\",\"\",SUM((T99/$T$121)))","v":{"$error":"#DIV/0!"}}]
[6.6,"PROJECT COORDINATION",null,null,null,null,null,null,null,null,null,null,null,null,null,null,null,null,null,0,{"$f":"IF(T100=\"\",\"\",SUM((T100/$T$121)))","v":{"$error":"#DIV/0!"}}]
[null,null,null,null,null,null,null,null,null,null,null,null,null,null,null,null,null,null,null,0,{"$error":"#DIV/0!"}]
[6.7,"MEETINGS AND MEETING FOLLOW UP",null,null,null,null,null,null,null,null,null,null,null,null,null,null,null,null,null,0,{"$error":"#DIV/0!"}]
["6.7.1","    NCDOT Meetings and Site Visits",null,null,null,null,null,null,null,null,null,null,null,null,null,null,null,null,null,0,{"$error":"#DIV/0!"}]
["6.7.2","    Stakeholder Meetings",null,null,null,null,null,null,null,null,null,null,null,null,null,null,null,null,null,0,{"$error":"#DIV/0!"}]
["6.7.3","    Meeting Follow-up",null,null,null,null,null,null,null,null,null,null,null,null,null,null,null,null,null,0,{"$error":"#DIV/0!"}]
[null,null,null,null,null,null,null,null,null,null,null,null,null,null,null,null,null,null,null,0,{"$error":"#DIV/0!"}]
[7,"Complete QC/QA Procedures",null,null,null,null,null,null,null,null,null,null,null,null,null,null,null,null,null,0,{"$error":"#DIV/0!"}]
[null,"Other Tasks:",null,null,null,null,null,null,null,null,null,null,null,null,null,null,null,null,null,0,{"$error":"#DIV/0!"}]
[null,null,null,null,null,null,null,null,null,null,null,null,null,null,null,null,null,null,null,0,{"$error":"#DIV/0!"}]
[null,null,null,null,null,null,null,null,null,null,null,null,null,null,null,null,null,null,null,0,{"$error":"#DIV/0!"}]
[null,null,null,null,null,null,null,null,null,null,null,null,null,null,null,null,null,null,null,0,{"$error":"#DIV/0!"}]
[null,null,null,null,null,null,null,null,null,null,null,null,null,null,null,null,null,null,null,0,{"$error":"#DIV/0!"}]
[null,null,null,null,null,null,null,null,null,null,null,null,null,null,null,null,null,null,null,0,{"$error":"#DIV/0!"}]
[null,null,null,null,null,null,null,null,null,null,null,null,null,null,null,null,null,null,null,0,{"$error":"#DIV/0!"}]
[null,null,null,null,null,null,null,null,null,null,null,null,null,null,null,null,null,null,null,0,{"$error":"#DIV/0!"}]
[null,null,null,null,null,null,null,null,null,null,null,null,null,null,null,null,null,null,null,0,{"$error":"#DIV/0!"}]
[null,null,null,null,null,null,null,null,null,null,null,null,null,null,null,null,null,null,null,0,{"$error":"#DIV/0!"}]
[null,null,null,null,null,null,null,null,null,null,null,null,null,null,null,null,null,null,null,0,{"$error":"#DIV/0!"}]
[null,null,null,null,null,null,null,null,null,null,null,null,null,null,null,null,null,null,null,0,{"$error":"#DIV/0!"}]
[null,null,null,null,null,null,null,null,null,null,null,null,null,null,null,null,null,null,null,{"$f":"IF(B120=\"\",0,IF((SUM(D120:S120)=0),0,SUM(D120:S120)))","v":0},{"$error":"#DIV/0!"}]
[null,"TOTAL WORKHOURS/CATEGORY:",null,{"$f":"SUM(D11:D120)","v":0},0,0,0,0,0,0,0,0,0,0,0,0,0,0,0,{"$f":"SUM(T11:T120)","v":0},{"$f":"SUM(U11:U120)","v":{"$error":"#DIV/0!"}},{"$f":"SUM(V12:V120)","v":0}]
[null,"TOTAL WORKDAYS/CATEGORY:",null,{"$f":"D121/8","v":0},{"$f":"E121/8","v":0},0,0,0,0,0,0,0,0,0,0,0,0,0,0]
[null,"HOURLY SALARY RATE:",null,{"$f":"'PEF CLASSIFICATION SHEET'!E1529","v":0},{"$f":"'PEF CLASSIFICATION SHEET'!E1530","v":0},{"$f":"'PEF CLASSIFICATION SHEET'!E1531","v":0},{"$f":"'PEF CLASSIFICATION SHEET'!E1532","v":0},{"$f":"'PEF CLASSIFICATION SHEET'!E1533","v":0},{"$f":"'PEF CLASSIFICATION SHEET'!E1534","v":0},{"$f":"'PEF CLASSIFICATION SHEET'!E1535","v":0},{"$f":"'PEF CLASSIFICATION SHEET'!E1536","v":0},{"$f":"'PEF CLASSIFICATION SHEET'!E1537","v":0},{"$f":"'PEF CLASSIFICATION SHEET'!E1538","v":0},{"$f":"'PEF CLASSIFICATION SHEET'!E1539","v":0},{"$f":"'PEF CLASSIFICATION SHEET'!E1540","v":0},{"$f":"'PEF CLASSIFICATION SHEET'!E1541","v":0},{"$f":"'PEF CLASSIFICATION SHEET'!E1542","v":0},{"$f":"'PEF CLASSIFICATION SHEET'!E1543","v":0},{"$f":"'PEF CLASSIFICATION SHEET'!E1544","v":0}]
[null,"RATES PER DAY:",null,{"$f":"D123*8","v":0},0,0,0,0,0,0,0,0,0,0,0,0,0,0,0]
[null,"PAYROLL BURDEN:",null,{"$f":"SUM(D121*D123)","v":0},{"$f":"SUM(E121*E123)","v":0},0,0,0,0,0,0,0,0,0,0,0,0,0,0]
[null,"TOTAL WORKDAYS:",null,{"$f":"SUM(D122:S122)","v":0}]
[null,"TOTAL PAYROLL BURDEN:",null,{"$f":"SUM(D125:S125)","v":0}]
[null,"AVERAGE COST PER HOUR:",null,{"$f":"SUM(D127/(D126*8))","v":{"$error":"#DIV/0!"}}]
[null,"GENERAL OVERHEAD:",{"$f":"TRANSPORTATIONPLANNING.SUB1_CONSULTANT_OVERHEAD","v":0},{"$f":"SUM(D127*C129)","v":0}]
[null,"SUBTOTAL:",null,{"$f":"SUM(D127+D129)","v":0}]
[null,"COMPARATIVE FEE:",{"$f":"TRANSPORTATIONPLANNING.SUB1_CONSULTANT_FEE","v":0.09},{"$f":"SUM(D130*C131)","v":0}]
[null,"FACILITIES COST OF CAPITAL:",{"$f":"TRANSPORTATIONPLANNING.SUB1_CONSULTANT_COSTofCAPITAL","v":0},{"$f":"SUM(D127*C132)","v":0}]
[null,"TOTAL:",null,{"$f":"SUM(D130:D132)","v":0}]
[null,"DIRECT EXPENSES:",null,{"$f":"TRANSPORTATIONPLANNING.SUB1_DIRECT_NONSALARY_TOTAL","v":0}]
[null,"TRANSPORTATION PLANNING GRAND TOTAL:",null,{"$f":"SUM(D133:D134)","v":0}]

{"sheet":"TransPlan-Exp-Sub1","index":172,"n_rows":56,"n_cols":8,"rows_kept":56,"cut":false,"hidden":true,"merged":[[0,0,0,7],[1,3,1,7]]}
["TRANSPORTATION PLANNING--DIRECT EXPENSES - SUBCONSULTANT 1"]
["TIP NUMBER",{"$f":"TIP.NUMBER","v":0},"FIRM:",{"$f":"'TransPlan-Sub1'!G3","v":"CONSULTANT NAME"}]
[]
["GENERAL PROJECT WORK:","ITEM","QTY","DESCRIPTION",null,null,"UNIT COST "]
[null,"Travel:"]
[null,"Sedan",0,"Trip(s) @",0,"miles @",{"$f":"SEDAN","v":0.7},{"$f":"SUM(C6*E6*G6)","v":0}]
[null,"Carry All",0,"Trip(s) @",0,"miles @",{"$f":"CARRYALL","v":0.72},{"$f":"SUM(C7*E7*G7)","v":0}]
[null,"Car Rental",null,null,0,"days @ ",{"$f":"CARRENTAL","v":50},{"$f":"SUM(E8*G8)","v":0}]
[null,"Gas for Rental",null,null,0,"miles @",{"$f":"GASforRENTAL","v":0.2},{"$f":"SUM(E9*G9)","v":0}]
[null,"Parking:",0,"Trip(s) @",null,null,{"$f":"PARKING","v":3},{"$f":"SUM(C10*G10)","v":0}]
[null,"Per Diem:",0,"Breakfast",null,null,{"$f":"BREAKFAST","v":10.1},{"$f":"SUM(C11*G11)","v":0}]
[null,null,0,"Lunch",null,null,{"$f":"LUNCH","v":13.3},0]
[null,null,0,"Dinner",null,null,{"$f":"DINNER","v":23.1},0]
[null,null,0,"Lodging",null,null,{"$f":"LODGING_LUMP.SUM","v":95},0]
[null,"Reproduction:",0,"8 1/2 x 11 B & W Copies @",null,null,{"$f":"LETTERCOPIES","v":0.14000000000000001},0]
[null,null,0,"11 x 17 B & W Copies @",null,null,{"$f":"LEDGERCOPIES","v":0.34},0]
[null,null,0,"8 1/2 x 11 Color Copies @",null,null,{"$f":"LETTERCOLOR","v":0.83},0]
[null,null,0,"11 x 17 Color Copies @",null,null,{"$f":"LEDGERCOLOR","v":1.66},0]
[null,null,0,"SQ. FT. of Plots (B & W or Color)",null,"<65 SQ. FT.*",{"$f":"ROLLPLOTSshort","v":6.5},0]
[null,null,0,"SQ. FT. of Plots (B & W or Color)",null,">65 SQ. FT.*",{"$f":"ROLLPLOTSlong","v":1.5},0]
[null,null,0,"Cover(s) @",null,null,{"$f":"COVERS","v":0.5},0]
[null,null,0,"Binder(s) @",null,null,{"$f":"BINDERS","v":0.5},0]
[null,null,0,"Blueprints - 8 1/2 x 11 @",null,null,{"$f":"BLUEPRINTSLETTER","v":0.35},0]
[null,null,0,"Blueprints - 42 x 72 @",null,null,{"$f":"BLUEPRINTSLARGE","v":1.3},0]
[null,"Film and Developing:",0,"Roll(s) @",null,null,{"$f":"FILM","v":20},0]
[null,null,null,null,null,"Subtotal",null,{"$f":"SUM(H6:H25)","v":0}]
["MAPS AND DOCUMENTS:","ITEM","QTY","DESCRIPTION",null,null,"UNIT COST "]
[null,"County Tax Maps:",0,"Map(s) @",null,null,{"$f":"County_Tax_Maps","v":7},{"$f":"SUM(C28*G28)","v":0}]
[null,"USGS Maps:",0,"Map(s) @",null,null,{"$f":"USGSMAPS","v":7},{"$f":"SUM(C29*G29)","v":0}]
[null,null,null,null,null,"Subtotal",null,{"$f":"SUM(H28:H29)","v":0}]
["Miscellaneous Other","ITEM","QTY","DESCRIPTION",null,null,"UNIT COST "]
[null,null,null,null,null,null,null,{"$f":"SUM(C32*G32)","v":0}]
[null,null,null,null,null,null,null,{"$f":"SUM(C33*G33)","v":0}]
[null,null,null,null,null,null,null,0]
[null,null,null,null,null,null,null,0]
[null,null,null,null,null,null,null,0]
[null,null,null,null,null,null,null,0]
[null,null,null,null,null,null,null,0]
[null,null,null,null,null,null,null,0]
[null,null,null,null,null,null,null,0]
[null,null,null,null,null,null,null,{"$f":"SUM(C41*G41)","v":0}]
[null,null,null,null,null,null,null,{"$f":"SUM(C42*G42)","v":0}]
[null,null,null,null,null,null,null,{"$f":"SUM(C43*G43)","v":0}]
[null,null,null,null,null,null,null,0]
[null,null,null,null,null,null,null,0]
[null,null,null,null,null,null,null,0]
[null,null,null,null,null,null,null,0]
[null,null,null,null,null,null,null,0]
[null,null,null,null,null,null,null,{"$f":"SUM(C49*G49)","v":0}]
[null,null,null,null,null,null,null,{"$f":"SUM(C50*G50)","v":0}]
[null,null,null,null,null,null,null,{"$f":"SUM(C51*G51)","v":0}]
[null,null,null,null,null,"Subtotal",null,{"$f":"SUM(H32:H51)","v":0}]
[]
[null,null,null,null,null,"TOTAL",null,{"$f":"SUM(H26+H30+H52)","v":0}]
[]
[null,"* Sum of all plots "]

{"sheet":"TransPlan-Sub2","index":173,"n_rows":135,"n_cols":23,"rows_kept":135,"cut":false,"hidden":true,"merged":[[143,8,143,13],[144,8,144,9],[144,10,144,11],[145,8,145,9],[145,10,145,11],[138,3,138,6],[138,8,138,13],[139,8,139,9],[139,10,139,11],[140,8,140,9],[140,10,140,11],[116,22,116,23],[117,22,117,23],[118,22,118,23],[119,22,119,23],[134,1,135,1],[134,3,135,4],[110,22,110,23],[111,22,111,23],[112,22,112,23],[113,22,113,23],[114,22,114,23],[115,22,115,23],[104,22,104,23],[105,22,105,23],[106,22,106,23],[107,22,107,23],[108,22,108,23],[109,22,109,23],[98,22,98,23],[99,22,99,23],[100,22,100,23],[101,22,101,23],[102,22,102,23],[103,22,103,23],[92,22,92,23],[93,22,93,23],[94,22,94,23],[95,22,95,23],[96,22,96,23],[97,22,97,23],[86,22,86,23],[87,22,87,23],[88,22,88,23],[89,22,89,23],[90,22,90,23],[91,22,91,23],[80,22,80,23],[81,22,81,23],[82,22,82,23],[83,22,83,23],[84,22,84,23],[85,22,85,23],[74,22,74,23],[75,22,75,23],[76,22,76,23],[77,22,77,23],[78,22,78,23],[79,22,79,23],[68,22,68,23],[69,22,69,23],[70,22,70,23],[71,22,71,23],[72,22,72,23],[73,22,73,23],[62,22,62,23],[63,22,63,23],[64,22,64,23],[65,22,65,23],[66,22,66,23],[67,22,67,23],[56,22,56,23],[57,22,57,23],[58,22,58,23],[59,22,59,23],[60,22,60,23],[61,22,61,23],[50,22,50,23],[51,22,51,23],[52,22,52,23],[53,22,53,23],[54,22,54,23],[55,22,55,23],[44,22,44,23],[45,22,45,23],[46,22,46,23],[47,22,47,23],[48,22,48,23],[49,22,49,23],[38,22,38,23],[39,22,39,23],[40,22,40,23],[41,22,41,23],[42,22,42,23],[43,22,43,23],[32,22,32,23],[33,22,33,23],[34,22,34,23],[35,22,35,23],[36,22,36,23],[37,22,37,23],[26,22,26,23],[27,22,27,23],[28,22,28,23],[29,22,29,23],[30,22,30,23],[31,22,31,23],[20,22,20,23],[21,22,21,23],[22,22,22,23],[23,22,23,23],[24,22,24,23],[25,22,25,23],[14,22,14,23],[15,22,15,23],[16,22,16,23],[17,22,17,23],[18,22,18,23],[19,22,19,23],[8,22,8,23],[10,22,10,23],[11,22,11,23],[12,22,12,23],[13,22,13,23],[6,12,9,12],[6,13,9,13],[6,14,9,14],[6,15,9,15],[6,16,9,16],[6,17,9,17],[4,3,4,18],[6,3,9,3],[6,4,9,4],[6,5,9,5],[6,6,9,6],[6,7,9,7],[6,8,9,8],[6,9,9,9],[6,10,9,10],[6,11,9,11],[6,18,9,18],[0,0,1,13],[2,1,2,4],[2,6,2,7],[2,10,2,11],[2,15,2,16],[3,1,3,4],[3,6,3,7],[3,10,3,11],[3,15,3,16]]}
["TRANSPORTATION PLANNING--BREAKDOWN WORKSHEET - SUBCONSULTANT 2 -- ENTER WORKHOURS"]
[]
["PROJECT DESCRIPTION: ",{"$f":"PROJECT.DESCRIPTION","v":0},null,null,null,"FIRM:  ",{"$f":"TRANSPORTATIONPLANNING.SUB2_CONSULTANT_NAME","v":"CONSULTANT NAME"},null,"TASK ORDER NUMBER:",null,{"$f":"TASK.ORDER.NUMBER","v":0},null,"DATE PREPARED:",{"$f":"IF(SCOPE.MANDAY.ESTIMATE.PREPARED.BY.DATE=\"\",\"\",SCOPE.MANDAY.ESTIMATE.PREPARED.BY.DATE)","v":""}]
["PREPARED BY:  ",{"$f":"IF(SCOPE.MANDAY.ESTIMATE.PREPARED.BY=\"\",\"\",SCOPE.MANDAY.ESTIMATE.PREPARED.BY)","v":""},null,null,null,"TIP NUMBER:",{"$f":"TIP.NUMBER","v":0},null,"WBS NUMBER:",null,{"$f":"WBS.NUMBER","v":""},null,"REVISION DATE:",{"$f":"IF(SCOPE.MANDAY.ESTIMATE.APPROVED.BY.DATE=\"\",\"\",SCOPE.MANDAY.ESTIMATE.APPROVED.BY.DATE)","v":""}]
[null,null,null,"ESTIMATED WORKHOURS"]
[null,null,"EMPLOYEE NAMES",{"$f":"IF('PEF CLASSIFICATION SHEET'!D1547=\"\",\"\",LEFT('PEF CLASSIFICATION SHEET'!D1547,4))","v":""},{"$f":"IF('PEF CLASSIFICATION SHEET'!D1548=\"\",\"\",LEFT('PEF CLASSIFICATION SHEET'!D1548,4))","v":""},{"$f":"IF('PEF CLASSIFICATION SHEET'!D1549=\"\",\"\",LEFT('PEF CLASSIFICATION SHEET'!D1549,4))","v":""},{"$f":"IF('PEF CLASSIFICATION SHEET'!D1550=\"\",\"\",LEFT('PEF CLASSIFICATION SHEET'!D1550,4))","v":""},{"$f":"IF('PEF CLASSIFICATION SHEET'!D1551=\"\",\"\",LEFT('PEF CLASSIFICATION SHEET'!D1551,4))","v":""},{"$f":"IF('PEF CLASSIFICATION SHEET'!D1552=\"\",\"\",LEFT('PEF CLASSIFICATION SHEET'!D1552,4))","v":""},{"$f":"IF('PEF CLASSIFICATION SHEET'!D1553=\"\",\"\",LEFT('PEF CLASSIFICATION SHEET'!D1553,4))","v":""},{"$f":"IF('PEF CLASSIFICATION SHEET'!D1554=\"\",\"\",LEFT('PEF CLASSIFICATION SHEET'!D1554,4))","v":""},{"$f":"IF('PEF CLASSIFICATION SHEET'!D1555=\"\",\"\",LEFT('PEF CLASSIFICATION SHEET'!D1555,4))","v":""},{"$f":"IF('PEF CLASSIFICATION SHEET'!D1556=\"\",\"\",LEFT('PEF CLASSIFICATION SHEET'!D1556,4))","v":""},{"$f":"IF('PEF CLASSIFICATION SHEET'!D1557=\"\",\"\",LEFT('PEF CLASSIFICATION SHEET'!D1557,4))","v":""},{"$f":"IF('PEF CLASSIFICATION SHEET'!D1558=\"\",\"\",LEFT('PEF CLASSIFICATION SHEET'!D1558,4))","v":""},{"$f":"IF('PEF CLASSIFICATION SHEET'!D1559=\"\",\"\",LEFT('PEF CLASSIFICATION SHEET'!D1559,4))","v":""},{"$f":"IF('PEF CLASSIFICATION SHEET'!D1560=\"\",\"\",LEFT('PEF CLASSIFICATION SHEET'!D1560,4))","v":""},{"$f":"IF('PEF CLASSIFICATION SHEET'!D1561=\"\",\"\",LEFT('PEF CLASSIFICATION SHEET'!D1561,4))","v":""},{"$f":"IF('PEF CLASSIFICATION SHEET'!D1562=\"\",\"\",LEFT('PEF CLASSIFICATION SHEET'!D1562,4))","v":""}]
[null,null,null,{"$f":"IF('PEF CLASSIFICATION SHEET'!C1547=\"\",\"\",'PEF CLASSIFICATION SHEET'!C1547)","v":""},{"$f":"IF('PEF CLASSIFICATION SHEET'!C1548=\"\",\"\",'PEF CLASSIFICATION SHEET'!C1548)","v":""},{"$f":"IF('PEF CLASSIFICATION SHEET'!C1549=\"\",\"\",'PEF CLASSIFICATION SHEET'!C1549)","v":""},{"$f":"IF('PEF CLASSIFICATION SHEET'!C1550=\"\",\"\",'PEF CLASSIFICATION SHEET'!C1550)","v":""},{"$f":"IF('PEF CLASSIFICATION SHEET'!C1551=\"\",\"\",'PEF CLASSIFICATION SHEET'!C1551)","v":""},{"$f":"IF('PEF CLASSIFICATION SHEET'!C1552=\"\",\"\",'PEF CLASSIFICATION SHEET'!C1552)","v":""},{"$f":"IF('PEF CLASSIFICATION SHEET'!C1553=\"\",\"\",'PEF CLASSIFICATION SHEET'!C1553)","v":""},{"$f":"IF('PEF CLASSIFICATION SHEET'!C1554=\"\",\"\",'PEF CLASSIFICATION SHEET'!C1554)","v":""},{"$f":"IF('PEF CLASSIFICATION SHEET'!C1555=\"\",\"\",'PEF CLASSIFICATION SHEET'!C1555)","v":""},{"$f":"IF('PEF CLASSIFICATION SHEET'!C1556=\"\",\"\",'PEF CLASSIFICATION SHEET'!C1556)","v":""},{"$f":"IF('PEF CLASSIFICATION SHEET'!C1557=\"\",\"\",'PEF CLASSIFICATION SHEET'!C1557)","v":""},{"$f":"IF('PEF CLASSIFICATION SHEET'!C1558=\"\",\"\",'PEF CLASSIFICATION SHEET'!C1558)","v":""},{"$f":"IF('PEF CLASSIFICATION SHEET'!C1559=\"\",\"\",'PEF CLASSIFICATION SHEET'!C1559)","v":""},{"$f":"IF('PEF CLASSIFICATION SHEET'!C1560=\"\",\"\",'PEF CLASSIFICATION SHEET'!C1560)","v":""},{"$f":"IF('PEF CLASSIFICATION SHEET'!C1561=\"\",\"\",'PEF CLASSIFICATION SHEET'!C1561)","v":""},{"$f":"IF('PEF CLASSIFICATION SHEET'!C1562=\"\",\"\",'PEF CLASSIFICATION SHEET'!C1562)","v":""},"SUB-","%","PEF"]
[null,null,null,null,null,null,null,null,null,null,null,null,null,null,null,null,null,null,null,"TOTAL","OF","ESTIMATE"]
["TASK","TASK DESCRIPTION","CLASSIFICATION",null,null,null,null,null,null,null,null,null,null,null,null,null,null,null,null,null,"PROJECT",null,"COMMENTS"]
["NO."]
["1TP2","Complete Traffic Forecast",null,null,null,null,null,null,null,null,null,null,null,null,null,null,null,null,null,{"$f":"IF(B11=\"\",0,IF((SUM(D11:S41)=0),SUM(D11:S11),\"\"))","v":0},{"$f":"IF(T11=\"\",\"\",SUM((T11/$T$121)))","v":{"$error":"#DIV/0!"}}]
[1,"Initiate a Traffic Forecast",null,null,null,null,null,null,null,null,null,null,null,null,null,null,null,null,null,{"$f":"IF(B12=\"\",0,IF((SUM(D12:S12)=0),0,SUM(D12:S12)))","v":0},{"$error":"#DIV/0!"}]
[2,"Determine Level of Traffic Forecast Needed",null,null,null,null,null,null,null,null,null,null,null,null,null,null,null,null,null,{"$f":"IF(B13=\"\",0,IF((SUM(D13:S13)=0),0,SUM(D13:S13)))","v":0},{"$error":"#DIV/0!"}]
[3,"Scope Traffic Forecast",null,null,null,null,null,null,null,null,null,null,null,null,null,null,null,null,null,0,{"$error":"#DIV/0!"}]
[4,"Produce Traffic Forecast",null,null,null,null,null,null,null,null,null,null,null,null,null,null,null,null,null,0,{"$error":"#DIV/0!"}]
[4.0999999999999996,"COLLECT AND REVIEW DATA",null,null,null,null,null,null,null,null,null,null,null,null,null,null,null,null,null,0,{"$error":"#DIV/0!"}]
["4.1.1","     Collect Existing Data",null,null,null,null,null,null,null,null,null,null,null,null,null,null,null,null,null,0,{"$error":"#DIV/0!"}]
["4.1.2","     Review and Analyze Existing Data; Calculate Growth Rates",null,null,null,null,null,null,null,null,null,null,null,null,null,null,null,null,null,0,{"$error":"#DIV/0!"}]
["4.1.3","     Collect Field Data",null,null,null,null,null,null,null,null,null,null,null,null,null,null,null,null,null,0,{"$error":"#DIV/0!"}]
["4.1.4","     Convert to AADT",null,null,null,null,null,null,null,null,null,null,null,null,null,null,null,null,null,0,{"$error":"#DIV/0!"}]
["4.1.5","     Project Kickoff Meeting",null,null,null,null,null,null,null,null,null,null,null,null,null,null,null,null,null,0,{"$error":"#DIV/0!"}]
[null,null,null,null,null,null,null,null,null,null,null,null,null,null,null,null,null,null,null,0,{"$error":"#DIV/0!"}]
[4.2,"PREPARE BASE YEAR NO BUILD (BY NB) ESTIMATE",null,null,null,null,null,null,null,null,null,null,null,null,null,null,null,null,null,0,{"$error":"#DIV/0!"}]
["4.2.1","     Develop and Balance BY NB Estimate",null,null,null,null,null,null,null,null,null,null,null,null,null,null,null,null,null,0,{"$error":"#DIV/0!"}]
["4. 2.2","     Develop BY NB Design Data",null,null,null,null,null,null,null,null,null,null,null,null,null,null,null,null,null,0,{"$error":"#DIV/0!"}]
["4.2.3","     Develop BY NB Traffic Forecast Diagrams",null,null,null,null,null,null,null,null,null,null,null,null,null,null,null,null,null,0,{"$error":"#DIV/0!"}]
[null,null,null,null,null,null,null,null,null,null,null,null,null,null,null,null,null,null,null,0,{"$error":"#DIV/0!"}]
[4.3,"MODEL REVIEW",null,null,null,null,null,null,null,null,null,null,null,null,null,null,null,null,null,0,{"$error":"#DIV/0!"}]
["4.3.1","     Review Model Validation",null,null,null,null,null,null,null,null,null,null,null,null,null,null,null,null,null,0,{"$error":"#DIV/0!"}]
["4.3.2","     Review Networks Project Corridor",null,null,null,null,null,null,null,null,null,null,null,null,null,null,null,null,null,0,{"$error":"#DIV/0!"}]
[null,null,null,null,null,null,null,null,null,null,null,null,null,null,null,null,null,null,null,0,{"$error":"#DIV/0!"}]
[4.4000000000000004,"DEVELOP BASE YEAR BUILD (BY B) FORECAST",null,null,null,null,null,null,null,null,null,null,null,null,null,null,null,null,null,0,{"$error":"#DIV/0!"}]
["4.4.1","     Modify Model",null,null,null,null,null,null,null,null,null,null,null,null,null,null,null,null,null,0,{"$error":"#DIV/0!"}]
["4.4.2","     Utilize Model",null,null,null,null,null,null,null,null,null,null,null,null,null,null,null,null,null,0,{"$error":"#DIV/0!"}]
["4.4.3","     Develop and Balance BY B Traffic Forecast",null,null,null,null,null,null,null,null,null,null,null,null,null,null,null,null,null,0,{"$error":"#DIV/0!"}]
["4.4.3.1","          Develop and Apply Model Diversion",null,null,null,null,null,null,null,null,null,null,null,null,null,null,null,null,null,0,{"$error":"#DIV/0!"}]
["4.4.3.2","          Review / Analyze",null,null,null,null,null,null,null,null,null,null,null,null,null,null,null,null,null,0,{"$error":"#DIV/0!"}]
["4.4.3.3","          Balance",null,null,null,null,null,null,null,null,null,null,null,null,null,null,null,null,null,0,{"$error":"#DIV/0!"}]
[null,null,null,null,null,null,null,null,null,null,null,null,null,null,null,null,null,null,null,0,{"$error":"#DIV/0!"}]
["4.4.4","     Develop BY B Design Data",null,null,null,null,null,null,null,null,null,null,null,null,null,null,null,null,null,0,{"$error":"#DIV/0!"}]
["4.4.5","     Develop BY B Traffic Forecast Diagram(s)",null,null,null,null,null,null,null,null,null,null,null,null,null,null,null,null,null,0,{"$error":"#DIV/0!"}]
[null,null,null,null,null,null,null,null,null,null,null,null,null,null,null,null,null,null,null,{"$f":"IF(B42=\"\",0,IF((SUM(D42:S52)=0),SUM(D42:S42),\"\"))","v":0},{"$error":"#DIV/0!"}]
[4.5,"DEVELOP INTERIM YEAR NO BUILD (IY NB) FORECAST",null,null,null,null,null,null,null,null,null,null,null,null,null,null,null,null,null,0,{"$error":"#DIV/0!"}]
["4.5.1","     Modify Model",null,null,null,null,null,null,null,null,null,null,null,null,null,null,null,null,null,0,{"$error":"#DIV/0!"}]
["4.5.2","     Utilize Model",null,null,null,null,null,null,null,null,null,null,null,null,null,null,null,null,null,0,{"$error":"#DIV/0!"}]
["4.5.3","     Develop and Balance IY NB Forecast",null,null,null,null,null,null,null,null,null,null,null,null,null,null,null,null,null,0,{"$error":"#DIV/0!"}]
["4.5.3.1","          Develop and Apply Model Growth",null,null,null,null,null,null,null,null,null,null,null,null,null,null,null,null,null,0,{"$error":"#DIV/0!"}]
["4.5.3.2","          Develop and Apply Historic Growth",null,null,null,null,null,null,null,null,null,null,null,null,null,null,null,null,null,0,{"$error":"#DIV/0!"}]
["4.5.3.3","          Review / Analyze",null,null,null,null,null,null,null,null,null,null,null,null,null,null,null,null,null,0,{"$error":"#DIV/0!"}]
["4.5.3.4","          Balance",null,null,null,null,null,null,null,null,null,null,null,null,null,null,null,null,null,0,{"$error":"#DIV/0!"}]
[null,null,null,null,null,null,null,null,null,null,null,null,null,null,null,null,null,null,null,0,{"$error":"#DIV/0!"}]
["4.5.4","     Develop IY NB Design Data",null,null,null,null,null,null,null,null,null,null,null,null,null,null,null,null,null,0,{"$error":"#DIV/0!"}]
["4.5.5","     Develop IY NB Traffic Forecast Diagram(s)",null,null,null,null,null,null,null,null,null,null,null,null,null,null,null,null,null,0,{"$error":"#DIV/0!"}]
[null,null,null,null,null,null,null,null,null,null,null,null,null,null,null,null,null,null,null,0,{"$error":"#DIV/0!"}]
[4.5999999999999996,"DEVELOP INTERIM YEAR (IY B) FORECAST",null,null,null,null,null,null,null,null,null,null,null,null,null,null,null,null,null,0,{"$error":"#DIV/0!"}]
["4.6.1","     Modify Model",null,null,null,null,null,null,null,null,null,null,null,null,null,null,null,null,null,0,{"$error":"#DIV/0!"}]
["4.6.2","     Utilize Model",null,null,null,null,null,null,null,null,null,null,null,null,null,null,null,null,null,0,{"$error":"#DIV/0!"}]
["4.6.3","     Develop and Balance IY B Forecast",null,null,null,null,null,null,null,null,null,null,null,null,null,null,null,null,null,0,{"$error":"#DIV/0!"}]
["4.6.3.1","          Develop and Apply Model Diversion",null,null,null,null,null,null,null,null,null,null,null,null,null,null,null,null,null,0,{"$error":"#DIV/0!"}]
["4.6.3.2","          Review / Analyze",null,null,null,null,null,null,null,null,null,null,null,null,null,null,null,null,null,0,{"$error":"#DIV/0!"}]
["4.6.3.3","          Balance",null,null,null,null,null,null,null,null,null,null,null,null,null,null,null,null,null,0,{"$error":"#DIV/0!"}]
[null,null,null,null,null,null,null,null,null,null,null,null,null,null,null,null,null,null,null,0,{"$error":"#DIV/0!"}]
["4.6.4","     Develop IY B Design Data",null,null,null,null,null,null,null,null,null,null,null,null,null,null,null,null,null,0,{"$error":"#DIV/0!"}]
["4.6.5","     Develop IY B Traffic Forecast Diagram(s)",null,null,null,null,null,null,null,null,null,null,null,null,null,null,null,null,null,0,{"$error":"#DIV/0!"}]
[null,null,null,null,null,null,null,null,null,null,null,null,null,null,null,null,null,null,null,0,{"$error":"#DIV/0!"}]
[4.7,"DEVELOP FUTURE YEAR NO BUILD (FY NB) FORECAST",null,null,null,null,null,null,null,null,null,null,null,null,null,null,null,null,null,0,{"$error":"#DIV/0!"}]
["4.7.1","     Modify Model",null,null,null,null,null,null,null,null,null,null,null,null,null,null,null,null,null,0,{"$error":"#DIV/0!"}]
["4.7.2","     Utilize Model",null,null,null,null,null,null,null,null,null,null,null,null,null,null,null,null,null,0,{"$error":"#DIV/0!"}]
["4.7.3","     Develop and Balance FY NB Forecast",null,null,null,null,null,null,null,null,null,null,null,null,null,null,null,null,null,0,{"$error":"#DIV/0!"}]
["4.7.3.1","          Develop and Apply Model Growth",null,null,null,null,null,null,null,null,null,null,null,null,null,null,null,null,null,0,{"$error":"#DIV/0!"}]
["4.7.3.2","          Develop and Apply Historic Growth",null,null,null,null,null,null,null,null,null,null,null,null,null,null,null,null,null,0,{"$error":"#DIV/0!"}]
["4.7.3.3","          Review / Analyze",null,null,null,null,null,null,null,null,null,null,null,null,null,null,null,null,null,0,{"$error":"#DIV/0!"}]
["4.7.3.4","          Balance",null,null,null,null,null,null,null,null,null,null,null,null,null,null,null,null,null,0,{"$error":"#DIV/0!"}]
[null,null,null,null,null,null,null,null,null,null,null,null,null,null,null,null,null,null,null,0,{"$error":"#DIV/0!"}]
["4.7.4","     Develop FY NB Design Data",null,null,null,null,null,null,null,null,null,null,null,null,null,null,null,null,null,0,{"$f":"IF(T75=\"\",\"\",SUM((T75/$T$121)))","v":{"$error":"#DIV/0!"}}]
["4.7.5","     Develop FY NB Traffic Forecast Diagrams",null,null,null,null,null,null,null,null,null,null,null,null,null,null,null,null,null,0,{"$error":"#DIV/0!"}]
[null,null,null,null,null,null,null,null,null,null,null,null,null,null,null,null,null,null,null,{"$f":"IF(B77=\"\",0,IF((SUM(D77:S77)=0),0,SUM(D77:S77)))","v":0},{"$error":"#DIV/0!"}]
[4.8,"DEVELOP FUTURE YEAR BUILD (FY B) FORECAST",null,null,null,null,null,null,null,null,null,null,null,null,null,null,null,null,null,0,{"$error":"#DIV/0!"}]
["4.8.1","     Modify Model",null,null,null,null,null,null,null,null,null,null,null,null,null,null,null,null,null,0,{"$error":"#DIV/0!"}]
["4.8.2","     Utilize Model",null,null,null,null,null,null,null,null,null,null,null,null,null,null,null,null,null,0,{"$error":"#DIV/0!"}]
["4.8.3","     Develop and Balance FY B Forecast",null,null,null,null,null,null,null,null,null,null,null,null,null,null,null,null,null,0,{"$error":"#DIV/0!"}]
["4.8.3.1","          Develop and Apply Model Diversion",null,null,null,null,null,null,null,null,null,null,null,null,null,null,null,null,null,0,{"$error":"#DIV/0!"}]
["4.8.3.2","          Review / Analyze",null,null,null,null,null,null,null,null,null,null,null,null,null,null,null,null,null,0,{"$error":"#DIV/0!"}]
["4.8.3.3","          Balance",null,null,null,null,null,null,null,null,null,null,null,null,null,null,null,null,null,0,{"$error":"#DIV/0!"}]
[null,null,null,null,null,null,null,null,null,null,null,null,null,null,null,null,null,null,null,0,{"$error":"#DIV/0!"}]
["4.8.4","     Develop FY B Design Data",null,null,null,null,null,null,null,null,null,null,null,null,null,null,null,null,null,0,{"$error":"#DIV/0!"}]
["4.8.5","     Develop FY B Traffic Forecast Diagrams",null,null,null,null,null,null,null,null,null,null,null,null,null,null,null,null,null,0,{"$error":"#DIV/0!"}]
[null,null,null,null,null,null,null,null,null,null,null,null,null,null,null,null,null,null,null,0,{"$error":"#DIV/0!"}]
[4.9000000000000004,"INTERIM REVIEW",null,null,null,null,null,null,null,null,null,null,null,null,null,null,null,null,null,0,{"$error":"#DIV/0!"}]
[null,null,null,null,null,null,null,null,null,null,null,null,null,null,null,null,null,null,null,0,{"$error":"#DIV/0!"}]
[4.0999999999999996,"DEVELOP DRAFT TRAFFIC FORECAST REPORT",null,null,null,null,null,null,null,null,null,null,null,null,null,null,null,null,null,0,{"$error":"#DIV/0!"}]
[null,null,null,null,null,null,null,null,null,null,null,null,null,null,null,null,null,null,null,0,{"$error":"#DIV/0!"}]
[4.1100000000000003,"REFINE TRAFFIC FORECAST AND REPORT",null,null,null,null,null,null,null,null,null,null,null,null,null,null,null,null,null,0,{"$error":"#DIV/0!"}]
[null,null,null,null,null,null,null,null,null,null,null,null,null,null,null,null,null,null,null,0,{"$error":"#DIV/0!"}]
[5,"Complete and Deliver Traffic Forecast",null,null,null,null,null,null,null,null,null,null,null,null,null,null,null,null,null,0,{"$error":"#DIV/0!"}]
[null,null,null,null,null,null,null,null,null,null,null,null,null,null,null,null,null,null,null,0,{"$error":"#DIV/0!"}]
[6,"Task Management",null,null,null,null,null,null,null,null,null,null,null,null,null,null,null,null,null,0,{"$error":"#DIV/0!"}]
[6.5,"PROJECT SCHEDULE",null,null,null,null,null,null,null,null,null,null,null,null,null,null,null,null,null,0,{"$error":"#DIV/0!"}]
[null,null,null,null,null,null,null,null,null,null,null,null,null,null,null,null,null,null,null,0,{"$f":"IF(T99=\"\",\"\",SUM((T99/$T$121)))","v":{"$error":"#DIV/0!"}}]
[6.6,"PROJECT COORDINATION",null,null,null,null,null,null,null,null,null,null,null,null,null,null,null,null,null,0,{"$f":"IF(T100=\"\",\"\",SUM((T100/$T$121)))","v":{"$error":"#DIV/0!"}}]
[null,null,null,null,null,null,null,null,null,null,null,null,null,null,null,null,null,null,null,0,{"$error":"#DIV/0!"}]
[6.7,"MEETINGS AND MEETING FOLLOW UP",null,null,null,null,null,null,null,null,null,null,null,null,null,null,null,null,null,0,{"$error":"#DIV/0!"}]
["6.7.1","    NCDOT Meetings and Site Visits",null,null,null,null,null,null,null,null,null,null,null,null,null,null,null,null,null,0,{"$error":"#DIV/0!"}]
["6.7.2","    Stakeholder Meetings",null,null,null,null,null,null,null,null,null,null,null,null,null,null,null,null,null,0,{"$error":"#DIV/0!"}]
["6.7.3","    Meeting Follow-up",null,null,null,null,null,null,null,null,null,null,null,null,null,null,null,null,null,0,{"$error":"#DIV/0!"}]
[null,null,null,null,null,null,null,null,null,null,null,null,null,null,null,null,null,null,null,0,{"$error":"#DIV/0!"}]
[7,"Complete QC/QA Procedures",null,null,null,null,null,null,null,null,null,null,null,null,null,null,null,null,null,0,{"$error":"#DIV/0!"}]
[null,"Other Tasks:",null,null,null,null,null,null,null,null,null,null,null,null,null,null,null,null,null,0,{"$error":"#DIV/0!"}]
[null,null,null,null,null,null,null,null,null,null,null,null,null,null,null,null,null,null,null,0,{"$error":"#DIV/0!"}]
[null,null,null,null,null,null,null,null,null,null,null,null,null,null,null,null,null,null,null,0,{"$error":"#DIV/0!"}]
[null,null,null,null,null,null,null,null,null,null,null,null,null,null,null,null,null,null,null,0,{"$error":"#DIV/0!"}]
[null,null,null,null,null,null,null,null,null,null,null,null,null,null,null,null,null,null,null,0,{"$error":"#DIV/0!"}]
[null,null,null,null,null,null,null,null,null,null,null,null,null,null,null,null,null,null,null,0,{"$error":"#DIV/0!"}]
[null,null,null,null,null,null,null,null,null,null,null,null,null,null,null,null,null,null,null,0,{"$error":"#DIV/0!"}]
[null,null,null,null,null,null,null,null,null,null,null,null,null,null,null,null,null,null,null,0,{"$error":"#DIV/0!"}]
[null,null,null,null,null,null,null,null,null,null,null,null,null,null,null,null,null,null,null,0,{"$error":"#DIV/0!"}]
[null,null,null,null,null,null,null,null,null,null,null,null,null,null,null,null,null,null,null,0,{"$error":"#DIV/0!"}]
[null,null,null,null,null,null,null,null,null,null,null,null,null,null,null,null,null,null,null,0,{"$error":"#DIV/0!"}]
[null,null,null,null,null,null,null,null,null,null,null,null,null,null,null,null,null,null,null,0,{"$error":"#DIV/0!"}]
[null,null,null,null,null,null,null,null,null,null,null,null,null,null,null,null,null,null,null,{"$f":"IF(B120=\"\",0,IF((SUM(D120:S120)=0),0,SUM(D120:S120)))","v":0},{"$error":"#DIV/0!"}]
[null,"TOTAL WORKHOURS/CATEGORY:",null,{"$f":"SUM(D11:D120)","v":0},0,0,0,0,0,0,0,0,0,0,0,0,0,0,0,{"$f":"SUM(T11:T120)","v":0},{"$f":"SUM(U11:U120)","v":{"$error":"#DIV/0!"}},{"$f":"SUM(V12:V120)","v":0}]
[null,"TOTAL WORKDAYS/CATEGORY:",null,{"$f":"D121/8","v":0},{"$f":"E121/8","v":0},0,0,0,0,0,0,0,0,0,0,0,0,0,0]
[null,"HOURLY SALARY RATE:",null,{"$f":"'PEF CLASSIFICATION SHEET'!E1547","v":0},{"$f":"'PEF CLASSIFICATION SHEET'!E1548","v":0},{"$f":"'PEF CLASSIFICATION SHEET'!E1549","v":0},{"$f":"'PEF CLASSIFICATION SHEET'!E1550","v":0},{"$f":"'PEF CLASSIFICATION SHEET'!E1551","v":0},{"$f":"'PEF CLASSIFICATION SHEET'!E1552","v":0},{"$f":"'PEF CLASSIFICATION SHEET'!E1553","v":0},{"$f":"'PEF CLASSIFICATION SHEET'!E1554","v":0},{"$f":"'PEF CLASSIFICATION SHEET'!E1555","v":0},{"$f":"'PEF CLASSIFICATION SHEET'!E1556","v":0},{"$f":"'PEF CLASSIFICATION SHEET'!E1557","v":0},{"$f":"'PEF CLASSIFICATION SHEET'!E1558","v":0},{"$f":"'PEF CLASSIFICATION SHEET'!E1559","v":0},{"$f":"'PEF CLASSIFICATION SHEET'!E1560","v":0},{"$f":"'PEF CLASSIFICATION SHEET'!E1561","v":0},{"$f":"'PEF CLASSIFICATION SHEET'!E1562","v":0}]
[null,"RATES PER DAY:",null,{"$f":"D123*8","v":0},0,0,0,0,0,0,0,0,0,0,0,0,0,0,0]
[null,"PAYROLL BURDEN:",null,{"$f":"SUM(D121*D123)","v":0},{"$f":"SUM(E121*E123)","v":0},0,0,0,0,0,0,0,0,0,0,0,0,0,0]
[null,"TOTAL WORKDAYS:",null,{"$f":"SUM(D122:S122)","v":0}]
[null,"TOTAL PAYROLL BURDEN:",null,{"$f":"SUM(D125:S125)","v":0}]
[null,"AVERAGE COST PER HOUR:",null,{"$f":"SUM(D127/(D126*8))","v":{"$error":"#DIV/0!"}}]
[null,"GENERAL OVERHEAD:",{"$f":"TRANSPORTATIONPLANNING.SUB2_CONSULTANT_OVERHEAD","v":0},{"$f":"SUM(D127*C129)","v":0}]
[null,"SUBTOTAL:",null,{"$f":"SUM(D127+D129)","v":0}]
[null,"COMPARATIVE FEE:",{"$f":"TRANSPORTATIONPLANNING.SUB2_CONSULTANT_FEE","v":0.09},{"$f":"SUM(D130*C131)","v":0}]
[null,"FACILITIES COST OF CAPITAL:",{"$f":"TRANSPORTATIONPLANNING.SUB2_CONSULTANT_COSTofCAPITAL","v":0},{"$f":"SUM(D127*C132)","v":0}]
[null,"TOTAL:",null,{"$f":"SUM(D130:D132)","v":0}]
[null,"DIRECT EXPENSES:",null,{"$f":"TRANSPORTATIONPLANNING.SUB2_DIRECT_NONSALARY_TOTAL","v":0}]
[null,"TRANSPORTATION PLANNING GRAND TOTAL:",null,{"$f":"SUM(D133:D134)","v":0}]

{"sheet":"TransPlan-Exp-Sub2","index":174,"n_rows":56,"n_cols":8,"rows_kept":56,"cut":false,"hidden":true,"merged":[[0,0,0,7],[1,3,1,7]]}
["TRANSPORTATION PLANNING--DIRECT EXPENSES - SUBCONSULTANT 2"]
["TIP NUMBER",{"$f":"TIP.NUMBER","v":0},"FIRM:",{"$f":"'TransPlan-Sub2'!G3","v":"CONSULTANT NAME"}]
[]
["GENERAL PROJECT WORK:","ITEM","QTY","DESCRIPTION",null,null,"UNIT COST "]
[null,"Travel:"]
[null,"Sedan",0,"Trip(s) @",0,"miles @",{"$f":"SEDAN","v":0.7},{"$f":"SUM(C6*E6*G6)","v":0}]
[null,"Carry All",0,"Trip(s) @",0,"miles @",{"$f":"CARRYALL","v":0.72},{"$f":"SUM(C7*E7*G7)","v":0}]
[null,"Car Rental",null,null,0,"days @ ",{"$f":"CARRENTAL","v":50},{"$f":"SUM(E8*G8)","v":0}]
[null,"Gas for Rental",null,null,0,"miles @",{"$f":"GASforRENTAL","v":0.2},{"$f":"SUM(E9*G9)","v":0}]
[null,"Parking:",0,"Trip(s) @",null,null,{"$f":"PARKING","v":3},{"$f":"SUM(C10*G10)","v":0}]
[null,"Per Diem:",0,"Breakfast",null,null,{"$f":"BREAKFAST","v":10.1},{"$f":"SUM(C11*G11)","v":0}]
[null,null,0,"Lunch",null,null,{"$f":"LUNCH","v":13.3},0]
[null,null,0,"Dinner",null,null,{"$f":"DINNER","v":23.1},0]
[null,null,0,"Lodging",null,null,{"$f":"LODGING_LUMP.SUM","v":95},0]
[null,"Reproduction:",0,"8 1/2 x 11 B & W Copies @",null,null,{"$f":"LETTERCOPIES","v":0.14000000000000001},0]
[null,null,0,"11 x 17 B & W Copies @",null,null,{"$f":"LEDGERCOPIES","v":0.34},0]
[null,null,0,"8 1/2 x 11 Color Copies @",null,null,{"$f":"LETTERCOLOR","v":0.83},0]
[null,null,0,"11 x 17 Color Copies @",null,null,{"$f":"LEDGERCOLOR","v":1.66},0]
[null,null,0,"SQ. FT. of Plots (B & W or Color)",null,"<65 SQ. FT.*",{"$f":"ROLLPLOTSshort","v":6.5},0]
[null,null,0,"SQ. FT. of Plots (B & W or Color)",null,">65 SQ. FT.*",{"$f":"ROLLPLOTSlong","v":1.5},0]
[null,null,0,"Cover(s) @",null,null,{"$f":"COVERS","v":0.5},0]
[null,null,0,"Binder(s) @",null,null,{"$f":"BINDERS","v":0.5},0]
[null,null,0,"Blueprints - 8 1/2 x 11 @",null,null,{"$f":"BLUEPRINTSLETTER","v":0.35},0]
[null,null,0,"Blueprints - 42 x 72 @",null,null,{"$f":"BLUEPRINTSLARGE","v":1.3},0]
[null,"Film and Developing:",0,"Roll(s) @",null,null,{"$f":"FILM","v":20},0]
[null,null,null,null,null,"Subtotal",null,{"$f":"SUM(H6:H25)","v":0}]
["MAPS AND DOCUMENTS:","ITEM","QTY","DESCRIPTION",null,null,"UNIT COST "]
[null,"County Tax Maps:",0,"Map(s) @",null,null,{"$f":"County_Tax_Maps","v":7},{"$f":"SUM(C28*G28)","v":0}]
[null,"USGS Maps:",0,"Map(s) @",null,null,{"$f":"USGSMAPS","v":7},{"$f":"SUM(C29*G29)","v":0}]
[null,null,null,null,null,"Subtotal",null,{"$f":"SUM(H28:H29)","v":0}]
["Miscellaneous Other","ITEM","QTY","DESCRIPTION",null,null,"UNIT COST "]
[null,null,null,null,null,null,null,{"$f":"SUM(C32*G32)","v":0}]
[null,null,null,null,null,null,null,{"$f":"SUM(C33*G33)","v":0}]
[null,null,null,null,null,null,null,0]
[null,null,null,null,null,null,null,0]
[null,null,null,null,null,null,null,0]
[null,null,null,null,null,null,null,0]
[null,null,null,null,null,null,null,0]
[null,null,null,null,null,null,null,0]
[null,null,null,null,null,null,null,0]
[null,null,null,null,null,null,null,{"$f":"SUM(C41*G41)","v":0}]
[null,null,null,null,null,null,null,{"$f":"SUM(C42*G42)","v":0}]
[null,null,null,null,null,null,null,{"$f":"SUM(C43*G43)","v":0}]
[null,null,null,null,null,null,null,0]
[null,null,null,null,null,null,null,0]
[null,null,null,null,null,null,null,0]
[null,null,null,null,null,null,null,0]
[null,null,null,null,null,null,null,0]
[null,null,null,null,null,null,null,{"$f":"SUM(C49*G49)","v":0}]
[null,null,null,null,null,null,null,{"$f":"SUM(C50*G50)","v":0}]
[null,null,null,null,null,null,null,{"$f":"SUM(C51*G51)","v":0}]
[null,null,null,null,null,"Subtotal",null,{"$f":"SUM(H32:H51)","v":0}]
[]
[null,null,null,null,null,"TOTAL",null,{"$f":"SUM(H26+H30+H52)","v":0}]
[]
[null,"* Sum of all plots "]

{"sheet":"TransPlan-Sub3","index":175,"n_rows":135,"n_cols":23,"rows_kept":135,"cut":false,"hidden":true,"merged":[[143,8,143,13],[144,8,144,9],[144,10,144,11],[145,8,145,9],[145,10,145,11],[138,3,138,6],[138,8,138,13],[139,8,139,9],[139,10,139,11],[140,8,140,9],[140,10,140,11],[116,22,116,23],[117,22,117,23],[118,22,118,23],[119,22,119,23],[134,1,135,1],[134,3,135,4],[110,22,110,23],[111,22,111,23],[112,22,112,23],[113,22,113,23],[114,22,114,23],[115,22,115,23],[104,22,104,23],[105,22,105,23],[106,22,106,23],[107,22,107,23],[108,22,108,23],[109,22,109,23],[98,22,98,23],[99,22,99,23],[100,22,100,23],[101,22,101,23],[102,22,102,23],[103,22,103,23],[92,22,92,23],[93,22,93,23],[94,22,94,23],[95,22,95,23],[96,22,96,23],[97,22,97,23],[86,22,86,23],[87,22,87,23],[88,22,88,23],[89,22,89,23],[90,22,90,23],[91,22,91,23],[80,22,80,23],[81,22,81,23],[82,22,82,23],[83,22,83,23],[84,22,84,23],[85,22,85,23],[74,22,74,23],[75,22,75,23],[76,22,76,23],[77,22,77,23],[78,22,78,23],[79,22,79,23],[68,22,68,23],[69,22,69,23],[70,22,70,23],[71,22,71,23],[72,22,72,23],[73,22,73,23],[62,22,62,23],[63,22,63,23],[64,22,64,23],[65,22,65,23],[66,22,66,23],[67,22,67,23],[56,22,56,23],[57,22,57,23],[58,22,58,23],[59,22,59,23],[60,22,60,23],[61,22,61,23],[50,22,50,23],[51,22,51,23],[52,22,52,23],[53,22,53,23],[54,22,54,23],[55,22,55,23],[44,22,44,23],[45,22,45,23],[46,22,46,23],[47,22,47,23],[48,22,48,23],[49,22,49,23],[38,22,38,23],[39,22,39,23],[40,22,40,23],[41,22,41,23],[42,22,42,23],[43,22,43,23],[32,22,32,23],[33,22,33,23],[34,22,34,23],[35,22,35,23],[36,22,36,23],[37,22,37,23],[26,22,26,23],[27,22,27,23],[28,22,28,23],[29,22,29,23],[30,22,30,23],[31,22,31,23],[20,22,20,23],[21,22,21,23],[22,22,22,23],[23,22,23,23],[24,22,24,23],[25,22,25,23],[14,22,14,23],[15,22,15,23],[16,22,16,23],[17,22,17,23],[18,22,18,23],[19,22,19,23],[8,22,8,23],[10,22,10,23],[11,22,11,23],[12,22,12,23],[13,22,13,23],[6,12,9,12],[6,13,9,13],[6,14,9,14],[6,15,9,15],[6,16,9,16],[6,17,9,17],[4,3,4,18],[6,3,9,3],[6,4,9,4],[6,5,9,5],[6,6,9,6],[6,7,9,7],[6,8,9,8],[6,9,9,9],[6,10,9,10],[6,11,9,11],[6,18,9,18],[0,0,1,13],[2,1,2,4],[2,6,2,7],[2,10,2,11],[2,15,2,16],[3,1,3,4],[3,6,3,7],[3,10,3,11],[3,15,3,16]]}
["TRANSPORTATION PLANNING--BREAKDOWN WORKSHEET - SUBCONSULTANT 3 -- ENTER WORKHOURS"]
[]
["PROJECT DESCRIPTION: ",{"$f":"PROJECT.DESCRIPTION","v":0},null,null,null,"FIRM:  ",{"$f":"TRANSPORTATIONPLANNING.SUB3_CONSULTANT_NAME","v":"CONSULTANT NAME"},null,"TASK ORDER NUMBER:",null,{"$f":"TASK.ORDER.NUMBER","v":0},null,"DATE PREPARED:",{"$f":"IF(SCOPE.MANDAY.ESTIMATE.PREPARED.BY.DATE=\"\",\"\",SCOPE.MANDAY.ESTIMATE.PREPARED.BY.DATE)","v":""}]
["PREPARED BY:  ",{"$f":"IF(SCOPE.MANDAY.ESTIMATE.PREPARED.BY=\"\",\"\",SCOPE.MANDAY.ESTIMATE.PREPARED.BY)","v":""},null,null,null,"TIP NUMBER:",{"$f":"TIP.NUMBER","v":0},null,"WBS NUMBER:",null,{"$f":"WBS.NUMBER","v":""},null,"REVISION DATE:",{"$f":"IF(SCOPE.MANDAY.ESTIMATE.APPROVED.BY.DATE=\"\",\"\",SCOPE.MANDAY.ESTIMATE.APPROVED.BY.DATE)","v":""}]
[null,null,null,"ESTIMATED WORKHOURS"]
[null,null,"EMPLOYEE NAMES",{"$f":"IF('PEF CLASSIFICATION SHEET'!D1565=\"\",\"\",LEFT('PEF CLASSIFICATION SHEET'!D1565,4))","v":""},{"$f":"IF('PEF CLASSIFICATION SHEET'!D1566=\"\",\"\",LEFT('PEF CLASSIFICATION SHEET'!D1566,4))","v":""},{"$f":"IF('PEF CLASSIFICATION SHEET'!D1567=\"\",\"\",LEFT('PEF CLASSIFICATION SHEET'!D1567,4))","v":""},{"$f":"IF('PEF CLASSIFICATION SHEET'!D1568=\"\",\"\",LEFT('PEF CLASSIFICATION SHEET'!D1568,4))","v":""},{"$f":"IF('PEF CLASSIFICATION SHEET'!D1569=\"\",\"\",LEFT('PEF CLASSIFICATION SHEET'!D1569,4))","v":""},{"$f":"IF('PEF CLASSIFICATION SHEET'!D1570=\"\",\"\",LEFT('PEF CLASSIFICATION SHEET'!D1570,4))","v":""},{"$f":"IF('PEF CLASSIFICATION SHEET'!D1571=\"\",\"\",LEFT('PEF CLASSIFICATION SHEET'!D1571,4))","v":""},{"$f":"IF('PEF CLASSIFICATION SHEET'!D1572=\"\",\"\",LEFT('PEF CLASSIFICATION SHEET'!D1572,4))","v":""},{"$f":"IF('PEF CLASSIFICATION SHEET'!D1573=\"\",\"\",LEFT('PEF CLASSIFICATION SHEET'!D1573,4))","v":""},{"$f":"IF('PEF CLASSIFICATION SHEET'!D1574=\"\",\"\",LEFT('PEF CLASSIFICATION SHEET'!D1574,4))","v":""},{"$f":"IF('PEF CLASSIFICATION SHEET'!D1575=\"\",\"\",LEFT('PEF CLASSIFICATION SHEET'!D1575,4))","v":""},{"$f":"IF('PEF CLASSIFICATION SHEET'!D1576=\"\",\"\",LEFT('PEF CLASSIFICATION SHEET'!D1576,4))","v":""},{"$f":"IF('PEF CLASSIFICATION SHEET'!D1577=\"\",\"\",LEFT('PEF CLASSIFICATION SHEET'!D1577,4))","v":""},{"$f":"IF('PEF CLASSIFICATION SHEET'!D1578=\"\",\"\",LEFT('PEF CLASSIFICATION SHEET'!D1578,4))","v":""},{"$f":"IF('PEF CLASSIFICATION SHEET'!D1579=\"\",\"\",LEFT('PEF CLASSIFICATION SHEET'!D1579,4))","v":""},{"$f":"IF('PEF CLASSIFICATION SHEET'!D1580=\"\",\"\",LEFT('PEF CLASSIFICATION SHEET'!D1580,4))","v":""}]
[null,null,null,{"$f":"IF('PEF CLASSIFICATION SHEET'!C1565=\"\",\"\",'PEF CLASSIFICATION SHEET'!C1565)","v":""},{"$f":"IF('PEF CLASSIFICATION SHEET'!C1566=\"\",\"\",'PEF CLASSIFICATION SHEET'!C1566)","v":""},{"$f":"IF('PEF CLASSIFICATION SHEET'!C1567=\"\",\"\",'PEF CLASSIFICATION SHEET'!C1567)","v":""},{"$f":"IF('PEF CLASSIFICATION SHEET'!C1568=\"\",\"\",'PEF CLASSIFICATION SHEET'!C1568)","v":""},{"$f":"IF('PEF CLASSIFICATION SHEET'!C1569=\"\",\"\",'PEF CLASSIFICATION SHEET'!C1569)","v":""},{"$f":"IF('PEF CLASSIFICATION SHEET'!C1570=\"\",\"\",'PEF CLASSIFICATION SHEET'!C1570)","v":""},{"$f":"IF('PEF CLASSIFICATION SHEET'!C1571=\"\",\"\",'PEF CLASSIFICATION SHEET'!C1571)","v":""},{"$f":"IF('PEF CLASSIFICATION SHEET'!C1572=\"\",\"\",'PEF CLASSIFICATION SHEET'!C1572)","v":""},{"$f":"IF('PEF CLASSIFICATION SHEET'!C1573=\"\",\"\",'PEF CLASSIFICATION SHEET'!C1573)","v":""},{"$f":"IF('PEF CLASSIFICATION SHEET'!C1574=\"\",\"\",'PEF CLASSIFICATION SHEET'!C1574)","v":""},{"$f":"IF('PEF CLASSIFICATION SHEET'!C1575=\"\",\"\",'PEF CLASSIFICATION SHEET'!C1575)","v":""},{"$f":"IF('PEF CLASSIFICATION SHEET'!C1576=\"\",\"\",'PEF CLASSIFICATION SHEET'!C1576)","v":""},{"$f":"IF('PEF CLASSIFICATION SHEET'!C1577=\"\",\"\",'PEF CLASSIFICATION SHEET'!C1577)","v":""},{"$f":"IF('PEF CLASSIFICATION SHEET'!C1578=\"\",\"\",'PEF CLASSIFICATION SHEET'!C1578)","v":""},{"$f":"IF('PEF CLASSIFICATION SHEET'!C1579=\"\",\"\",'PEF CLASSIFICATION SHEET'!C1579)","v":""},{"$f":"IF('PEF CLASSIFICATION SHEET'!C1580=\"\",\"\",'PEF CLASSIFICATION SHEET'!C1580)","v":""},"SUB-","%","PEF"]
[null,null,null,null,null,null,null,null,null,null,null,null,null,null,null,null,null,null,null,"TOTAL","OF","ESTIMATE"]
["TASK","TASK DESCRIPTION","CLASSIFICATION",null,null,null,null,null,null,null,null,null,null,null,null,null,null,null,null,null,"PROJECT",null,"COMMENTS"]
["NO."]
["1TP2","Complete Traffic Forecast",null,null,null,null,null,null,null,null,null,null,null,null,null,null,null,null,null,{"$f":"IF(B11=\"\",0,IF((SUM(D11:S41)=0),SUM(D11:S11),\"\"))","v":0},{"$f":"IF(T11=\"\",\"\",SUM((T11/$T$121)))","v":{"$error":"#DIV/0!"}}]
[1,"Initiate a Traffic Forecast",null,null,null,null,null,null,null,null,null,null,null,null,null,null,null,null,null,{"$f":"IF(B12=\"\",0,IF((SUM(D12:S12)=0),0,SUM(D12:S12)))","v":0},{"$error":"#DIV/0!"}]
[2,"Determine Level of Traffic Forecast Needed",null,null,null,null,null,null,null,null,null,null,null,null,null,null,null,null,null,{"$f":"IF(B13=\"\",0,IF((SUM(D13:S13)=0),0,SUM(D13:S13)))","v":0},{"$error":"#DIV/0!"}]
[3,"Scope Traffic Forecast",null,null,null,null,null,null,null,null,null,null,null,null,null,null,null,null,null,0,{"$error":"#DIV/0!"}]
[4,"Produce Traffic Forecast",null,null,null,null,null,null,null,null,null,null,null,null,null,null,null,null,null,0,{"$error":"#DIV/0!"}]
[4.0999999999999996,"COLLECT AND REVIEW DATA",null,null,null,null,null,null,null,null,null,null,null,null,null,null,null,null,null,0,{"$error":"#DIV/0!"}]
["4.1.1","     Collect Existing Data",null,null,null,null,null,null,null,null,null,null,null,null,null,null,null,null,null,0,{"$error":"#DIV/0!"}]
["4.1.2","     Review and Analyze Existing Data; Calculate Growth Rates",null,null,null,null,null,null,null,null,null,null,null,null,null,null,null,null,null,0,{"$error":"#DIV/0!"}]
["4.1.3","     Collect Field Data",null,null,null,null,null,null,null,null,null,null,null,null,null,null,null,null,null,0,{"$error":"#DIV/0!"}]
["4.1.4","     Convert to AADT",null,null,null,null,null,null,null,null,null,null,null,null,null,null,null,null,null,0,{"$error":"#DIV/0!"}]
["4.1.5","     Project Kickoff Meeting",null,null,null,null,null,null,null,null,null,null,null,null,null,null,null,null,null,0,{"$error":"#DIV/0!"}]
[null,null,null,null,null,null,null,null,null,null,null,null,null,null,null,null,null,null,null,0,{"$error":"#DIV/0!"}]
[4.2,"PREPARE BASE YEAR NO BUILD (BY NB) ESTIMATE",null,null,null,null,null,null,null,null,null,null,null,null,null,null,null,null,null,0,{"$error":"#DIV/0!"}]
["4.2.1","     Develop and Balance BY NB Estimate",null,null,null,null,null,null,null,null,null,null,null,null,null,null,null,null,null,0,{"$error":"#DIV/0!"}]
["4. 2.2","     Develop BY NB Design Data",null,null,null,null,null,null,null,null,null,null,null,null,null,null,null,null,null,0,{"$error":"#DIV/0!"}]
["4.2.3","     Develop BY NB Traffic Forecast Diagrams",null,null,null,null,null,null,null,null,null,null,null,null,null,null,null,null,null,0,{"$error":"#DIV/0!"}]
[null,null,null,null,null,null,null,null,null,null,null,null,null,null,null,null,null,null,null,0,{"$error":"#DIV/0!"}]
[4.3,"MODEL REVIEW",null,null,null,null,null,null,null,null,null,null,null,null,null,null,null,null,null,0,{"$error":"#DIV/0!"}]
["4.3.1","     Review Model Validation",null,null,null,null,null,null,null,null,null,null,null,null,null,null,null,null,null,0,{"$error":"#DIV/0!"}]
["4.3.2","     Review Networks Project Corridor",null,null,null,null,null,null,null,null,null,null,null,null,null,null,null,null,null,0,{"$error":"#DIV/0!"}]
[null,null,null,null,null,null,null,null,null,null,null,null,null,null,null,null,null,null,null,0,{"$error":"#DIV/0!"}]
[4.4000000000000004,"DEVELOP BASE YEAR BUILD (BY B) FORECAST",null,null,null,null,null,null,null,null,null,null,null,null,null,null,null,null,null,0,{"$error":"#DIV/0!"}]
["4.4.1","     Modify Model",null,null,null,null,null,null,null,null,null,null,null,null,null,null,null,null,null,0,{"$error":"#DIV/0!"}]
["4.4.2","     Utilize Model",null,null,null,null,null,null,null,null,null,null,null,null,null,null,null,null,null,0,{"$error":"#DIV/0!"}]
["4.4.3","     Develop and Balance BY B Traffic Forecast",null,null,null,null,null,null,null,null,null,null,null,null,null,null,null,null,null,0,{"$error":"#DIV/0!"}]
["4.4.3.1","          Develop and Apply Model Diversion",null,null,null,null,null,null,null,null,null,null,null,null,null,null,null,null,null,0,{"$error":"#DIV/0!"}]
["4.4.3.2","          Review / Analyze",null,null,null,null,null,null,null,null,null,null,null,null,null,null,null,null,null,0,{"$error":"#DIV/0!"}]
["4.4.3.3","          Balance",null,null,null,null,null,null,null,null,null,null,null,null,null,null,null,null,null,0,{"$error":"#DIV/0!"}]
[null,null,null,null,null,null,null,null,null,null,null,null,null,null,null,null,null,null,null,0,{"$error":"#DIV/0!"}]
["4.4.4","     Develop BY B Design Data",null,null,null,null,null,null,null,null,null,null,null,null,null,null,null,null,null,0,{"$error":"#DIV/0!"}]
["4.4.5","     Develop BY B Traffic Forecast Diagram(s)",null,null,null,null,null,null,null,null,null,null,null,null,null,null,null,null,null,0,{"$error":"#DIV/0!"}]
[null,null,null,null,null,null,null,null,null,null,null,null,null,null,null,null,null,null,null,{"$f":"IF(B42=\"\",0,IF((SUM(D42:S52)=0),SUM(D42:S42),\"\"))","v":0},{"$error":"#DIV/0!"}]
[4.5,"DEVELOP INTERIM YEAR NO BUILD (IY NB) FORECAST",null,null,null,null,null,null,null,null,null,null,null,null,null,null,null,null,null,0,{"$error":"#DIV/0!"}]
["4.5.1","     Modify Model",null,null,null,null,null,null,null,null,null,null,null,null,null,null,null,null,null,0,{"$error":"#DIV/0!"}]
["4.5.2","     Utilize Model",null,null,null,null,null,null,null,null,null,null,null,null,null,null,null,null,null,0,{"$error":"#DIV/0!"}]
["4.5.3","     Develop and Balance IY NB Forecast",null,null,null,null,null,null,null,null,null,null,null,null,null,null,null,null,null,0,{"$error":"#DIV/0!"}]
["4.5.3.1","          Develop and Apply Model Growth",null,null,null,null,null,null,null,null,null,null,null,null,null,null,null,null,null,0,{"$error":"#DIV/0!"}]
["4.5.3.2","          Develop and Apply Historic Growth",null,null,null,null,null,null,null,null,null,null,null,null,null,null,null,null,null,0,{"$error":"#DIV/0!"}]
["4.5.3.3","          Review / Analyze",null,null,null,null,null,null,null,null,null,null,null,null,null,null,null,null,null,0,{"$error":"#DIV/0!"}]
["4.5.3.4","          Balance",null,null,null,null,null,null,null,null,null,null,null,null,null,null,null,null,null,0,{"$error":"#DIV/0!"}]
[null,null,null,null,null,null,null,null,null,null,null,null,null,null,null,null,null,null,null,0,{"$error":"#DIV/0!"}]
["4.5.4","     Develop IY NB Design Data",null,null,null,null,null,null,null,null,null,null,null,null,null,null,null,null,null,0,{"$error":"#DIV/0!"}]
["4.5.5","     Develop IY NB Traffic Forecast Diagram(s)",null,null,null,null,null,null,null,null,null,null,null,null,null,null,null,null,null,0,{"$error":"#DIV/0!"}]
[null,null,null,null,null,null,null,null,null,null,null,null,null,null,null,null,null,null,null,0,{"$error":"#DIV/0!"}]
[4.5999999999999996,"DEVELOP INTERIM YEAR (IY B) FORECAST",null,null,null,null,null,null,null,null,null,null,null,null,null,null,null,null,null,0,{"$error":"#DIV/0!"}]
["4.6.1","     Modify Model",null,null,null,null,null,null,null,null,null,null,null,null,null,null,null,null,null,0,{"$error":"#DIV/0!"}]
["4.6.2","     Utilize Model",null,null,null,null,null,null,null,null,null,null,null,null,null,null,null,null,null,0,{"$error":"#DIV/0!"}]
["4.6.3","     Develop and Balance IY B Forecast",null,null,null,null,null,null,null,null,null,null,null,null,null,null,null,null,null,0,{"$error":"#DIV/0!"}]
["4.6.3.1","          Develop and Apply Model Diversion",null,null,null,null,null,null,null,null,null,null,null,null,null,null,null,null,null,0,{"$error":"#DIV/0!"}]
["4.6.3.2","          Review / Analyze",null,null,null,null,null,null,null,null,null,null,null,null,null,null,null,null,null,0,{"$error":"#DIV/0!"}]
["4.6.3.3","          Balance",null,null,null,null,null,null,null,null,null,null,null,null,null,null,null,null,null,0,{"$error":"#DIV/0!"}]
[null,null,null,null,null,null,null,null,null,null,null,null,null,null,null,null,null,null,null,0,{"$error":"#DIV/0!"}]
["4.6.4","     Develop IY B Design Data",null,null,null,null,null,null,null,null,null,null,null,null,null,null,null,null,null,0,{"$error":"#DIV/0!"}]
["4.6.5","     Develop IY B Traffic Forecast Diagram(s)",null,null,null,null,null,null,null,null,null,null,null,null,null,null,null,null,null,0,{"$error":"#DIV/0!"}]
[null,null,null,null,null,null,null,null,null,null,null,null,null,null,null,null,null,null,null,0,{"$error":"#DIV/0!"}]
[4.7,"DEVELOP FUTURE YEAR NO BUILD (FY NB) FORECAST",null,null,null,null,null,null,null,null,null,null,null,null,null,null,null,null,null,0,{"$error":"#DIV/0!"}]
["4.7.1","     Modify Model",null,null,null,null,null,null,null,null,null,null,null,null,null,null,null,null,null,0,{"$error":"#DIV/0!"}]
["4.7.2","     Utilize Model",null,null,null,null,null,null,null,null,null,null,null,null,null,null,null,null,null,0,{"$error":"#DIV/0!"}]
["4.7.3","     Develop and Balance FY NB Forecast",null,null,null,null,null,null,null,null,null,null,null,null,null,null,null,null,null,0,{"$error":"#DIV/0!"}]
["4.7.3.1","          Develop and Apply Model Growth",null,null,null,null,null,null,null,null,null,null,null,null,null,null,null,null,null,0,{"$error":"#DIV/0!"}]
["4.7.3.2","          Develop and Apply Historic Growth",null,null,null,null,null,null,null,null,null,null,null,null,null,null,null,null,null,0,{"$error":"#DIV/0!"}]
["4.7.3.3","          Review / Analyze",null,null,null,null,null,null,null,null,null,null,null,null,null,null,null,null,null,0,{"$error":"#DIV/0!"}]
["4.7.3.4","          Balance",null,null,null,null,null,null,null,null,null,null,null,null,null,null,null,null,null,0,{"$error":"#DIV/0!"}]
[null,null,null,null,null,null,null,null,null,null,null,null,null,null,null,null,null,null,null,0,{"$error":"#DIV/0!"}]
["4.7.4","     Develop FY NB Design Data",null,null,null,null,null,null,null,null,null,null,null,null,null,null,null,null,null,0,{"$f":"IF(T75=\"\",\"\",SUM((T75/$T$121)))","v":{"$error":"#DIV/0!"}}]
["4.7.5","     Develop FY NB Traffic Forecast Diagrams",null,null,null,null,null,null,null,null,null,null,null,null,null,null,null,null,null,0,{"$error":"#DIV/0!"}]
[null,null,null,null,null,null,null,null,null,null,null,null,null,null,null,null,null,null,null,{"$f":"IF(B77=\"\",0,IF((SUM(D77:S77)=0),0,SUM(D77:S77)))","v":0},{"$error":"#DIV/0!"}]
[4.8,"DEVELOP FUTURE YEAR BUILD (FY B) FORECAST",null,null,null,null,null,null,null,null,null,null,null,null,null,null,null,null,null,0,{"$error":"#DIV/0!"}]
["4.8.1","     Modify Model",null,null,null,null,null,null,null,null,null,null,null,null,null,null,null,null,null,0,{"$error":"#DIV/0!"}]
["4.8.2","     Utilize Model",null,null,null,null,null,null,null,null,null,null,null,null,null,null,null,null,null,0,{"$error":"#DIV/0!"}]
["4.8.3","     Develop and Balance FY B Forecast",null,null,null,null,null,null,null,null,null,null,null,null,null,null,null,null,null,0,{"$error":"#DIV/0!"}]
["4.8.3.1","          Develop and Apply Model Diversion",null,null,null,null,null,null,null,null,null,null,null,null,null,null,null,null,null,0,{"$error":"#DIV/0!"}]
["4.8.3.2","          Review / Analyze",null,null,null,null,null,null,null,null,null,null,null,null,null,null,null,null,null,0,{"$error":"#DIV/0!"}]
["4.8.3.3","          Balance",null,null,null,null,null,null,null,null,null,null,null,null,null,null,null,null,null,0,{"$error":"#DIV/0!"}]
[null,null,null,null,null,null,null,null,null,null,null,null,null,null,null,null,null,null,null,0,{"$error":"#DIV/0!"}]
["4.8.4","     Develop FY B Design Data",null,null,null,null,null,null,null,null,null,null,null,null,null,null,null,null,null,0,{"$error":"#DIV/0!"}]
["4.8.5","     Develop FY B Traffic Forecast Diagrams",null,null,null,null,null,null,null,null,null,null,null,null,null,null,null,null,null,0,{"$error":"#DIV/0!"}]
[null,null,null,null,null,null,null,null,null,null,null,null,null,null,null,null,null,null,null,0,{"$error":"#DIV/0!"}]
[4.9000000000000004,"INTERIM REVIEW",null,null,null,null,null,null,null,null,null,null,null,null,null,null,null,null,null,0,{"$error":"#DIV/0!"}]
[null,null,null,null,null,null,null,null,null,null,null,null,null,null,null,null,null,null,null,0,{"$error":"#DIV/0!"}]
[4.0999999999999996,"DEVELOP DRAFT TRAFFIC FORECAST REPORT",null,null,null,null,null,null,null,null,null,null,null,null,null,null,null,null,null,0,{"$error":"#DIV/0!"}]
[null,null,null,null,null,null,null,null,null,null,null,null,null,null,null,null,null,null,null,0,{"$error":"#DIV/0!"}]
[4.1100000000000003,"REFINE TRAFFIC FORECAST AND REPORT",null,null,null,null,null,null,null,null,null,null,null,null,null,null,null,null,null,0,{"$error":"#DIV/0!"}]
[null,null,null,null,null,null,null,null,null,null,null,null,null,null,null,null,null,null,null,0,{"$error":"#DIV/0!"}]
[5,"Complete and Deliver Traffic Forecast",null,null,null,null,null,null,null,null,null,null,null,null,null,null,null,null,null,0,{"$error":"#DIV/0!"}]
[null,null,null,null,null,null,null,null,null,null,null,null,null,null,null,null,null,null,null,0,{"$error":"#DIV/0!"}]
[6,"Task Management",null,null,null,null,null,null,null,null,null,null,null,null,null,null,null,null,null,0,{"$error":"#DIV/0!"}]
[6.5,"PROJECT SCHEDULE",null,null,null,null,null,null,null,null,null,null,null,null,null,null,null,null,null,0,{"$error":"#DIV/0!"}]
[null,null,null,null,null,null,null,null,null,null,null,null,null,null,null,null,null,null,null,0,{"$f":"IF(T99=\"\",\"\",SUM((T99/$T$121)))","v":{"$error":"#DIV/0!"}}]
[6.6,"PROJECT COORDINATION",null,null,null,null,null,null,null,null,null,null,null,null,null,null,null,null,null,0,{"$f":"IF(T100=\"\",\"\",SUM((T100/$T$121)))","v":{"$error":"#DIV/0!"}}]
[null,null,null,null,null,null,null,null,null,null,null,null,null,null,null,null,null,null,null,0,{"$error":"#DIV/0!"}]
[6.7,"MEETINGS AND MEETING FOLLOW UP",null,null,null,null,null,null,null,null,null,null,null,null,null,null,null,null,null,0,{"$error":"#DIV/0!"}]
["6.7.1","    NCDOT Meetings and Site Visits",null,null,null,null,null,null,null,null,null,null,null,null,null,null,null,null,null,0,{"$error":"#DIV/0!"}]
["6.7.2","    Stakeholder Meetings",null,null,null,null,null,null,null,null,null,null,null,null,null,null,null,null,null,0,{"$error":"#DIV/0!"}]
["6.7.3","    Meeting Follow-up",null,null,null,null,null,null,null,null,null,null,null,null,null,null,null,null,null,0,{"$error":"#DIV/0!"}]
[null,null,null,null,null,null,null,null,null,null,null,null,null,null,null,null,null,null,null,0,{"$error":"#DIV/0!"}]
[7,"Complete QC/QA Procedures",null,null,null,null,null,null,null,null,null,null,null,null,null,null,null,null,null,0,{"$error":"#DIV/0!"}]
[null,"Other Tasks:",null,null,null,null,null,null,null,null,null,null,null,null,null,null,null,null,null,0,{"$error":"#DIV/0!"}]
[null,null,null,null,null,null,null,null,null,null,null,null,null,null,null,null,null,null,null,0,{"$error":"#DIV/0!"}]
[null,null,null,null,null,null,null,null,null,null,null,null,null,null,null,null,null,null,null,0,{"$error":"#DIV/0!"}]
[null,null,null,null,null,null,null,null,null,null,null,null,null,null,null,null,null,null,null,0,{"$error":"#DIV/0!"}]
[null,null,null,null,null,null,null,null,null,null,null,null,null,null,null,null,null,null,null,0,{"$error":"#DIV/0!"}]
[null,null,null,null,null,null,null,null,null,null,null,null,null,null,null,null,null,null,null,0,{"$error":"#DIV/0!"}]
[null,null,null,null,null,null,null,null,null,null,null,null,null,null,null,null,null,null,null,0,{"$error":"#DIV/0!"}]
[null,null,null,null,null,null,null,null,null,null,null,null,null,null,null,null,null,null,null,0,{"$error":"#DIV/0!"}]
[null,null,null,null,null,null,null,null,null,null,null,null,null,null,null,null,null,null,null,0,{"$error":"#DIV/0!"}]
[null,null,null,null,null,null,null,null,null,null,null,null,null,null,null,null,null,null,null,0,{"$error":"#DIV/0!"}]
[null,null,null,null,null,null,null,null,null,null,null,null,null,null,null,null,null,null,null,0,{"$error":"#DIV/0!"}]
[null,null,null,null,null,null,null,null,null,null,null,null,null,null,null,null,null,null,null,0,{"$error":"#DIV/0!"}]
[null,null,null,null,null,null,null,null,null,null,null,null,null,null,null,null,null,null,null,{"$f":"IF(B120=\"\",0,IF((SUM(D120:S120)=0),0,SUM(D120:S120)))","v":0},{"$error":"#DIV/0!"}]
[null,"TOTAL WORKHOURS/CATEGORY:",null,{"$f":"SUM(D11:D120)","v":0},0,0,0,0,0,0,0,0,0,0,0,0,0,0,0,{"$f":"SUM(T11:T120)","v":0},{"$f":"SUM(U11:U120)","v":{"$error":"#DIV/0!"}},{"$f":"SUM(V12:V120)","v":0}]
[null,"TOTAL WORKDAYS/CATEGORY:",null,{"$f":"D121/8","v":0},{"$f":"E121/8","v":0},0,0,0,0,0,0,0,0,0,0,0,0,0,0]
[null,"HOURLY SALARY RATE:",null,{"$f":"'PEF CLASSIFICATION SHEET'!E1565","v":0},{"$f":"'PEF CLASSIFICATION SHEET'!E1566","v":0},{"$f":"'PEF CLASSIFICATION SHEET'!E1567","v":0},{"$f":"'PEF CLASSIFICATION SHEET'!E1568","v":0},{"$f":"'PEF CLASSIFICATION SHEET'!E1569","v":0},{"$f":"'PEF CLASSIFICATION SHEET'!E1570","v":0},{"$f":"'PEF CLASSIFICATION SHEET'!E1571","v":0},{"$f":"'PEF CLASSIFICATION SHEET'!E1572","v":0},{"$f":"'PEF CLASSIFICATION SHEET'!E1573","v":0},{"$f":"'PEF CLASSIFICATION SHEET'!E1574","v":0},{"$f":"'PEF CLASSIFICATION SHEET'!E1575","v":0},{"$f":"'PEF CLASSIFICATION SHEET'!E1576","v":0},{"$f":"'PEF CLASSIFICATION SHEET'!E1577","v":0},{"$f":"'PEF CLASSIFICATION SHEET'!E1578","v":0},{"$f":"'PEF CLASSIFICATION SHEET'!E1579","v":0},{"$f":"'PEF CLASSIFICATION SHEET'!E1580","v":0}]
[null,"RATES PER DAY:",null,{"$f":"D123*8","v":0},0,0,0,0,0,0,0,0,0,0,0,0,0,0,0]
[null,"PAYROLL BURDEN:",null,{"$f":"SUM(D121*D123)","v":0},{"$f":"SUM(E121*E123)","v":0},0,0,0,0,0,0,0,0,0,0,0,0,0,0]
[null,"TOTAL WORKDAYS:",null,{"$f":"SUM(D122:S122)","v":0}]
[null,"TOTAL PAYROLL BURDEN:",null,{"$f":"SUM(D125:S125)","v":0}]
[null,"AVERAGE COST PER HOUR:",null,{"$f":"SUM(D127/(D126*8))","v":{"$error":"#DIV/0!"}}]
[null,"GENERAL OVERHEAD:",{"$f":"TRANSPORTATIONPLANNING.SUB3_CONSULTANT_OVERHEAD","v":0},{"$f":"SUM(D127*C129)","v":0}]
[null,"SUBTOTAL:",null,{"$f":"SUM(D127+D129)","v":0}]
[null,"COMPARATIVE FEE:",{"$f":"TRANSPORTATIONPLANNING.SUB3_CONSULTANT_FEE","v":0.09},{"$f":"SUM(D130*C131)","v":0}]
[null,"FACILITIES COST OF CAPITAL:",{"$f":"TRANSPORTATIONPLANNING.SUB3_CONSULTANT_COSTofCAPITAL","v":0},{"$f":"SUM(D127*C132)","v":0}]
[null,"TOTAL:",null,{"$f":"SUM(D130:D132)","v":0}]
[null,"DIRECT EXPENSES:",null,{"$f":"TRANSPORTATIONPLANNING.SUB3_DIRECT_NONSALARY_TOTAL","v":0}]
[null,"TRANSPORTATION PLANNING GRAND TOTAL:",null,{"$f":"SUM(D133:D134)","v":0}]

{"sheet":"TransPlan-Exp-Sub3","index":176,"n_rows":56,"n_cols":8,"rows_kept":56,"cut":false,"hidden":true,"merged":[[0,0,0,7],[1,3,1,7]]}
["TRANSPORTATION PLANNING--DIRECT EXPENSES - SUBCONSULTANT 3"]
["TIP NUMBER",{"$f":"TIP.NUMBER","v":0},"FIRM:",{"$f":"'TransPlan-Sub3'!G3","v":"CONSULTANT NAME"}]
[]
["GENERAL PROJECT WORK:","ITEM","QTY","DESCRIPTION",null,null,"UNIT COST "]
[null,"Travel:"]
[null,"Sedan",0,"Trip(s) @",0,"miles @",{"$f":"SEDAN","v":0.7},{"$f":"SUM(C6*E6*G6)","v":0}]
[null,"Carry All",0,"Trip(s) @",0,"miles @",{"$f":"CARRYALL","v":0.72},{"$f":"SUM(C7*E7*G7)","v":0}]
[null,"Car Rental",null,null,0,"days @ ",{"$f":"CARRENTAL","v":50},{"$f":"SUM(E8*G8)","v":0}]
[null,"Gas for Rental",null,null,0,"miles @",{"$f":"GASforRENTAL","v":0.2},{"$f":"SUM(E9*G9)","v":0}]
[null,"Parking:",0,"Trip(s) @",null,null,{"$f":"PARKING","v":3},{"$f":"SUM(C10*G10)","v":0}]
[null,"Per Diem:",0,"Breakfast",null,null,{"$f":"BREAKFAST","v":10.1},{"$f":"SUM(C11*G11)","v":0}]
[null,null,0,"Lunch",null,null,{"$f":"LUNCH","v":13.3},0]
[null,null,0,"Dinner",null,null,{"$f":"DINNER","v":23.1},0]
[null,null,0,"Lodging",null,null,{"$f":"LODGING_LUMP.SUM","v":95},0]
[null,"Reproduction:",0,"8 1/2 x 11 B & W Copies @",null,null,{"$f":"LETTERCOPIES","v":0.14000000000000001},0]
[null,null,0,"11 x 17 B & W Copies @",null,null,{"$f":"LEDGERCOPIES","v":0.34},0]
[null,null,0,"8 1/2 x 11 Color Copies @",null,null,{"$f":"LETTERCOLOR","v":0.83},0]
[null,null,0,"11 x 17 Color Copies @",null,null,{"$f":"LEDGERCOLOR","v":1.66},0]
[null,null,0,"SQ. FT. of Plots (B & W or Color)",null,"<65 SQ. FT.*",{"$f":"ROLLPLOTSshort","v":6.5},0]
[null,null,0,"SQ. FT. of Plots (B & W or Color)",null,">65 SQ. FT.*",{"$f":"ROLLPLOTSlong","v":1.5},0]
[null,null,0,"Cover(s) @",null,null,{"$f":"COVERS","v":0.5},0]
[null,null,0,"Binder(s) @",null,null,{"$f":"BINDERS","v":0.5},0]
[null,null,0,"Blueprints - 8 1/2 x 11 @",null,null,{"$f":"BLUEPRINTSLETTER","v":0.35},0]
[null,null,0,"Blueprints - 42 x 72 @",null,null,{"$f":"BLUEPRINTSLARGE","v":1.3},0]
[null,"Film and Developing:",0,"Roll(s) @",null,null,{"$f":"FILM","v":20},0]
[null,null,null,null,null,"Subtotal",null,{"$f":"SUM(H6:H25)","v":0}]
["MAPS AND DOCUMENTS:","ITEM","QTY","DESCRIPTION",null,null,"UNIT COST "]
[null,"County Tax Maps:",0,"Map(s) @",null,null,{"$f":"County_Tax_Maps","v":7},{"$f":"SUM(C28*G28)","v":0}]
[null,"USGS Maps:",0,"Map(s) @",null,null,{"$f":"USGSMAPS","v":7},{"$f":"SUM(C29*G29)","v":0}]
[null,null,null,null,null,"Subtotal",null,{"$f":"SUM(H28:H29)","v":0}]
["Miscellaneous Other","ITEM","QTY","DESCRIPTION",null,null,"UNIT COST "]
[null,null,null,null,null,null,null,{"$f":"SUM(C32*G32)","v":0}]
[null,null,null,null,null,null,null,{"$f":"SUM(C33*G33)","v":0}]
[null,null,null,null,null,null,null,0]
[null,null,null,null,null,null,null,0]
[null,null,null,null,null,null,null,0]
[null,null,null,null,null,null,null,0]
[null,null,null,null,null,null,null,0]
[null,null,null,null,null,null,null,0]
[null,null,null,null,null,null,null,0]
[null,null,null,null,null,null,null,{"$f":"SUM(C41*G41)","v":0}]
[null,null,null,null,null,null,null,{"$f":"SUM(C42*G42)","v":0}]
[null,null,null,null,null,null,null,{"$f":"SUM(C43*G43)","v":0}]
[null,null,null,null,null,null,null,0]
[null,null,null,null,null,null,null,0]
[null,null,null,null,null,null,null,0]
[null,null,null,null,null,null,null,0]
[null,null,null,null,null,null,null,0]
[null,null,null,null,null,null,null,{"$f":"SUM(C49*G49)","v":0}]
[null,null,null,null,null,null,null,{"$f":"SUM(C50*G50)","v":0}]
[null,null,null,null,null,null,null,{"$f":"SUM(C51*G51)","v":0}]
[null,null,null,null,null,"Subtotal",null,{"$f":"SUM(H32:H51)","v":0}]
[]
[null,null,null,null,null,"TOTAL",null,{"$f":"SUM(H26+H30+H52)","v":0}]
[]
[null,"* Sum of all plots "]

{"sheet":"Forecast-Sub1","index":177,"n_rows":155,"n_cols":24,"rows_kept":155,"cut":false,"hidden":true,"merged":[[0,0,1,13],[2,1,2,4],[2,6,2,7],[2,10,2,11],[2,15,2,16],[3,1,3,4],[3,6,3,7],[3,10,3,11],[3,15,3,16],[6,12,9,12],[6,13,9,13],[6,14,9,14],[6,15,9,15],[6,16,9,16],[6,17,9,17],[4,3,4,19],[6,3,9,3],[6,4,9,4],[6,5,9,5],[6,6,9,6],[6,7,9,7],[6,8,9,8],[6,9,9,9],[6,10,9,10],[6,11,9,11],[13,23,13,24],[14,23,14,24],[15,23,15,24],[16,23,16,24],[17,23,17,24],[18,23,18,24],[6,18,9,18],[6,19,9,19],[8,23,8,24],[10,23,10,24],[11,23,11,24],[12,23,12,24],[25,23,25,24],[26,23,26,24],[27,23,27,24],[28,23,28,24],[29,23,29,24],[30,23,30,24],[19,23,19,24],[20,23,20,24],[21,23,21,24],[22,23,22,24],[23,23,23,24],[24,23,24,24],[38,23,38,24],[39,23,39,24],[40,23,40,24],[41,23,41,24],[42,23,42,24],[43,23,43,24],[31,23,31,24],[33,23,33,24],[34,23,34,24],[35,23,35,24],[36,23,36,24],[37,23,37,24],[50,23,50,24],[51,23,51,24],[52,23,52,24],[53,23,53,24],[54,23,54,24],[55,23,55,24],[44,23,44,24],[45,23,45,24],[46,23,46,24],[47,23,47,24],[48,23,48,24],[49,23,49,24],[62,23,62,24],[63,23,63,24],[64,23,64,24],[65,23,65,24],[66,23,66,24],[67,23,67,24],[56,23,56,24],[57,23,57,24],[58,23,58,24],[59,23,59,24],[60,23,60,24],[61,23,61,24],[74,23,74,24],[75,23,75,24],[76,23,76,24],[77,23,77,24],[78,23,78,24],[79,23,79,24],[68,23,68,24],[69,23,69,24],[70,23,70,24],[71,23,71,24],[72,23,72,24],[73,23,73,24],[86,23,86,24],[87,23,87,24],[88,23,88,24],[89,23,89,24],[90,23,90,24],[91,23,91,24],[80,23,80,24],[81,23,81,24],[82,23,82,24],[83,23,83,24],[84,23,84,24],[85,23,85,24],[98,23,98,24],[99,23,99,24],[100,23,100,24],[101,23,101,24],[102,23,102,24],[103,23,103,24],[92,23,92,24],[93,23,93,24],[94,23,94,24],[95,23,95,24],[96,23,96,24],[97,23,97,24],[110,23,110,24],[111,23,111,24],[112,23,112,24],[113,23,113,24],[114,23,114,24],[115,23,115,24],[104,23,104,24],[105,23,105,24],[106,23,106,24],[107,23,107,24],[108,23,108,24],[109,23,109,24],[122,23,122,24],[123,23,123,24],[124,23,124,24],[125,23,125,24],[126,23,126,24],[127,23,127,24],[116,23,116,24],[117,23,117,24],[118,23,118,24],[119,23,119,24],[120,23,120,24],[121,23,121,24],[134,23,134,24],[135,23,135,24],[136,23,136,24],[137,23,137,24],[138,23,138,24],[139,23,139,24],[128,23,128,24],[129,23,129,24],[130,23,130,24],[131,23,131,24],[132,23,132,24],[133,23,133,24],[160,8,160,9],[160,10,160,11],[163,8,163,13],[164,8,164,9],[164,10,164,11],[165,8,165,9],[165,10,165,11],[154,1,155,1],[154,3,155,4],[158,3,158,6],[158,8,158,13],[159,8,159,9],[159,10,159,11]]}
["     TRAFFIC FORECAST--BREAKDOWN WORKSHEET - SUBCONSULTANT 1 -- ENTER WORKHOURS"]
[]
["PROJECT DESCRIPTION: ",{"$f":"PROJECT.DESCRIPTION","v":0},null,null,null,"FIRM:  ",{"$f":"TRAFFICFORECAST.SUB1_CONSULTANT_NAME","v":"CONSULTANT NAME"},null,"TASK ORDER NUMBER:",null,{"$f":"TASK.ORDER.NUMBER","v":0},null,"DATE PREPARED:",{"$f":"IF(SCOPE.MANDAY.ESTIMATE.PREPARED.BY.DATE=\"\",\"\",SCOPE.MANDAY.ESTIMATE.PREPARED.BY.DATE)","v":""}]
["PREPARED BY:  ",{"$f":"IF(SCOPE.MANDAY.ESTIMATE.PREPARED.BY=\"\",\"\",SCOPE.MANDAY.ESTIMATE.PREPARED.BY)","v":""},null,null,null,"TIP NUMBER:",{"$f":"TIP.NUMBER","v":0},null,"WBS NUMBER:",null,{"$f":"WBS.NUMBER","v":""},null,"REVISION DATE:",{"$f":"IF(SCOPE.MANDAY.ESTIMATE.APPROVED.BY.DATE=\"\",\"\",SCOPE.MANDAY.ESTIMATE.APPROVED.BY.DATE)","v":""}]
[null,null,null,"ESTIMATED WORKHOURS"]
[null,null,"EMPLOYEE NAMES",{"$f":"IF('PEF CLASSIFICATION SHEET'!D1583=\"\",\"\",LEFT('PEF CLASSIFICATION SHEET'!D1583,4))","v":""},{"$f":"IF('PEF CLASSIFICATION SHEET'!D1584=\"\",\"\",LEFT('PEF CLASSIFICATION SHEET'!D1584,4))","v":""},{"$f":"IF('PEF CLASSIFICATION SHEET'!D1585=\"\",\"\",LEFT('PEF CLASSIFICATION SHEET'!D1585,4))","v":""},{"$f":"IF('PEF CLASSIFICATION SHEET'!D1586=\"\",\"\",LEFT('PEF CLASSIFICATION SHEET'!D1586,4))","v":""},{"$f":"IF('PEF CLASSIFICATION SHEET'!D1587=\"\",\"\",LEFT('PEF CLASSIFICATION SHEET'!D1587,4))","v":""},{"$f":"IF('PEF CLASSIFICATION SHEET'!D1588=\"\",\"\",LEFT('PEF CLASSIFICATION SHEET'!D1588,4))","v":""},{"$f":"IF('PEF CLASSIFICATION SHEET'!D1589=\"\",\"\",LEFT('PEF CLASSIFICATION SHEET'!D1589,4))","v":""},{"$f":"IF('PEF CLASSIFICATION SHEET'!D1590=\"\",\"\",LEFT('PEF CLASSIFICATION SHEET'!D1590,4))","v":""},{"$f":"IF('PEF CLASSIFICATION SHEET'!D1591=\"\",\"\",LEFT('PEF CLASSIFICATION SHEET'!D1591,4))","v":""},{"$f":"IF('PEF CLASSIFICATION SHEET'!D1592=\"\",\"\",LEFT('PEF CLASSIFICATION SHEET'!D1592,4))","v":""},{"$f":"IF('PEF CLASSIFICATION SHEET'!D1593=\"\",\"\",LEFT('PEF CLASSIFICATION SHEET'!D1593,4))","v":""},{"$f":"IF('PEF CLASSIFICATION SHEET'!D1594=\"\",\"\",LEFT('PEF CLASSIFICATION SHEET'!D1594,4))","v":""},{"$f":"IF('PEF CLASSIFICATION SHEET'!D1595=\"\",\"\",LEFT('PEF CLASSIFICATION SHEET'!D1595,4))","v":""},{"$f":"IF('PEF CLASSIFICATION SHEET'!D1596=\"\",\"\",LEFT('PEF CLASSIFICATION SHEET'!D1596,4))","v":""},{"$f":"IF('PEF CLASSIFICATION SHEET'!D1597=\"\",\"\",LEFT('PEF CLASSIFICATION SHEET'!D1597,4))","v":""},{"$f":"IF('PEF CLASSIFICATION SHEET'!D1598=\"\",\"\",LEFT('PEF CLASSIFICATION SHEET'!D1598,4))","v":""},{"$f":"IF('PEF CLASSIFICATION SHEET'!D1599=\"\",\"\",LEFT('PEF CLASSIFICATION SHEET'!D1599,4))","v":""}]
[null,null,null,{"$f":"IF('PEF CLASSIFICATION SHEET'!C1583=\"\",\"\",'PEF CLASSIFICATION SHEET'!C1583)","v":""},{"$f":"IF('PEF CLASSIFICATION SHEET'!C1584=\"\",\"\",'PEF CLASSIFICATION SHEET'!C1584)","v":""},{"$f":"IF('PEF CLASSIFICATION SHEET'!C1585=\"\",\"\",'PEF CLASSIFICATION SHEET'!C1585)","v":""},{"$f":"IF('PEF CLASSIFICATION SHEET'!C1586=\"\",\"\",'PEF CLASSIFICATION SHEET'!C1586)","v":""},{"$f":"IF('PEF CLASSIFICATION SHEET'!C1587=\"\",\"\",'PEF CLASSIFICATION SHEET'!C1587)","v":""},{"$f":"IF('PEF CLASSIFICATION SHEET'!C1588=\"\",\"\",'PEF CLASSIFICATION SHEET'!C1588)","v":""},{"$f":"IF('PEF CLASSIFICATION SHEET'!C1589=\"\",\"\",'PEF CLASSIFICATION SHEET'!C1589)","v":""},{"$f":"IF('PEF CLASSIFICATION SHEET'!C1590=\"\",\"\",'PEF CLASSIFICATION SHEET'!C1590)","v":""},{"$f":"IF('PEF CLASSIFICATION SHEET'!C1591=\"\",\"\",'PEF CLASSIFICATION SHEET'!C1591)","v":""},{"$f":"IF('PEF CLASSIFICATION SHEET'!C1592=\"\",\"\",'PEF CLASSIFICATION SHEET'!C1592)","v":""},{"$f":"IF('PEF CLASSIFICATION SHEET'!C1593=\"\",\"\",'PEF CLASSIFICATION SHEET'!C1593)","v":""},{"$f":"IF('PEF CLASSIFICATION SHEET'!C1594=\"\",\"\",'PEF CLASSIFICATION SHEET'!C1594)","v":""},{"$f":"IF('PEF CLASSIFICATION SHEET'!C1595=\"\",\"\",'PEF CLASSIFICATION SHEET'!C1595)","v":""},{"$f":"IF('PEF CLASSIFICATION SHEET'!C1596=\"\",\"\",'PEF CLASSIFICATION SHEET'!C1596)","v":""},{"$f":"IF('PEF CLASSIFICATION SHEET'!C1597=\"\",\"\",'PEF CLASSIFICATION SHEET'!C1597)","v":""},{"$f":"IF('PEF CLASSIFICATION SHEET'!C1598=\"\",\"\",'PEF CLASSIFICATION SHEET'!C1598)","v":""},{"$f":"IF('PEF CLASSIFICATION SHEET'!C1599=\"\",\"\",'PEF CLASSIFICATION SHEET'!C1599)","v":""},"SUB-","%","PEF"]
[null,null,null,null,null,null,null,null,null,null,null,null,null,null,null,null,null,null,null,null,"TOTAL","OF","ESTIMATE"]
["TASK","TASK DESCRIPTION","CLASSIFICATION",null,null,null,null,null,null,null,null,null,null,null,null,null,null,null,null,null,null,"PROJECT",null,"COMMENTS"]
["NO."]
[1,"COLLECT AND REVIEW DATA"]
[1.1000000000000001,"     Collect Existing Data",null,null,null,null,null,null,null,null,null,null,null,null,null,null,null,null,null,null,{"$f":"SUM(D12:T12)","v":0},{"$f":"SUM((U12/$U$141))","v":{"$error":"#DIV/0!"}}]
[1.2,"     Review and Analyze Existing Data; Calculate Growth Rates",null,null,null,null,null,null,null,null,null,null,null,null,null,null,null,null,null,null,{"$f":"SUM(D13:T13)","v":0},{"$f":"SUM((U13/$U$141))","v":{"$error":"#DIV/0!"}}]
[1.3,"     Collect Field Data",null,null,null,null,null,null,null,null,null,null,null,null,null,null,null,null,null,null,0,{"$error":"#DIV/0!"}]
[1.4,"     Convert to AADT",null,null,null,null,null,null,null,null,null,null,null,null,null,null,null,null,null,null,0,{"$error":"#DIV/0!"}]
[1.5,"     Project Kickoff Meeting",null,null,null,null,null,null,null,null,null,null,null,null,null,null,null,null,null,null,0,{"$error":"#DIV/0!"}]
[null,null,null,null,null,null,null,null,null,null,null,null,null,null,null,null,null,null,null,null,0,{"$error":"#DIV/0!"}]
[2,"PREPARE BASE YEAR NO BUILD (BY NB) ESTIMATE"]
[2.1,"     Develop and Balance BY NB Estimate",null,null,null,null,null,null,null,null,null,null,null,null,null,null,null,null,null,null,0,{"$error":"#DIV/0!"}]
[2.2000000000000002,"     Develop BY NB Design Data",null,null,null,null,null,null,null,null,null,null,null,null,null,null,null,null,null,null,0,{"$error":"#DIV/0!"}]
[2.2999999999999998,"     Develop BY NB Traffic Forecast Diagrams",null,null,null,null,null,null,null,null,null,null,null,null,null,null,null,null,null,null,0,{"$error":"#DIV/0!"}]
[null,null,null,null,null,null,null,null,null,null,null,null,null,null,null,null,null,null,null,null,0,{"$error":"#DIV/0!"}]
[3,"MODEL REVIEW"]
[3.1,"     Review Model Validation",null,null,null,null,null,null,null,null,null,null,null,null,null,null,null,null,null,null,0,{"$error":"#DIV/0!"}]
[3.2,"     Review Networks Project Corridor",null,null,null,null,null,null,null,null,null,null,null,null,null,null,null,null,null,null,0,{"$error":"#DIV/0!"}]
[null,null,null,null,null,null,null,null,null,null,null,null,null,null,null,null,null,null,null,null,0,{"$error":"#DIV/0!"}]
[4,"DEVELOP BASE YEAR BUILD (BY B) FORECAST"]
[4.0999999999999996,"     Modify Model",null,null,null,null,null,null,null,null,null,null,null,null,null,null,null,null,null,null,0,{"$error":"#DIV/0!"}]
[4.2,"     Utilize Model",null,null,null,null,null,null,null,null,null,null,null,null,null,null,null,null,null,null,0,{"$error":"#DIV/0!"}]
[4.3,"     Develop and Balance BY B Traffic Forecast"]
["4.3.1","          Develop and Apply Model Diversion",null,null,null,null,null,null,null,null,null,null,null,null,null,null,null,null,null,null,0,{"$error":"#DIV/0!"}]
["4.3.2","          Review / Analyze",null,null,null,null,null,null,null,null,null,null,null,null,null,null,null,null,null,null,0,{"$error":"#DIV/0!"}]
["4.3.3","          Balance",null,null,null,null,null,null,null,null,null,null,null,null,null,null,null,null,null,null,0,{"$error":"#DIV/0!"}]
[null,null,null,null,null,null,null,null,null,null,null,null,null,null,null,null,null,null,null,null,0,{"$error":"#DIV/0!"}]
[4.4000000000000004,"     Develop BY B Design Data",null,null,null,null,null,null,null,null,null,null,null,null,null,null,null,null,null,null,0,{"$error":"#DIV/0!"}]
[4.5,"     Develop BY B Traffic Forecast Diagram(s)",null,null,null,null,null,null,null,null,null,null,null,null,null,null,null,null,null,null,0,{"$error":"#DIV/0!"}]
[null,null,null,null,null,null,null,null,null,null,null,null,null,null,null,null,null,null,null,null,0,{"$error":"#DIV/0!"}]
[5,"DEVELOP INTERIM YEAR NO BUILD (IY NB) FORECAST"]
[5.0999999999999996,"     Modify Model",null,null,null,null,null,null,null,null,null,null,null,null,null,null,null,null,null,null,0,{"$error":"#DIV/0!"}]
[5.2,"     Utilize Model",null,null,null,null,null,null,null,null,null,null,null,null,null,null,null,null,null,null,0,{"$error":"#DIV/0!"}]
[5.3,"     Develop and Balance IY NB Forecast"]
["5.3.1","          Develop and Apply Model Growth",null,null,null,null,null,null,null,null,null,null,null,null,null,null,null,null,null,null,0,{"$error":"#DIV/0!"}]
["5.3.2","          Develop and Apply Historic Growth",null,null,null,null,null,null,null,null,null,null,null,null,null,null,null,null,null,null,0,{"$error":"#DIV/0!"}]
["5.3.3","          Review / Analyze",null,null,null,null,null,null,null,null,null,null,null,null,null,null,null,null,null,null,0,{"$error":"#DIV/0!"}]
["5.3.4","          Balance",null,null,null,null,null,null,null,null,null,null,null,null,null,null,null,null,null,null,0,{"$error":"#DIV/0!"}]
[null,null,null,null,null,null,null,null,null,null,null,null,null,null,null,null,null,null,null,null,0,{"$error":"#DIV/0!"}]
[5.4,"     Develop IY NB Design Data",null,null,null,null,null,null,null,null,null,null,null,null,null,null,null,null,null,null,0,{"$error":"#DIV/0!"}]
[5.5,"     Develop IY NB Traffic Forecast Diagram(s)",null,null,null,null,null,null,null,null,null,null,null,null,null,null,null,null,null,null,0,{"$error":"#DIV/0!"}]
[null,null,null,null,null,null,null,null,null,null,null,null,null,null,null,null,null,null,null,null,0,{"$error":"#DIV/0!"}]
[6,"DEVELOP INTERIM YEAR (IY B) FORECAST"]
[6.1,"     Modify Model",null,null,null,null,null,null,null,null,null,null,null,null,null,null,null,null,null,null,0,{"$error":"#DIV/0!"}]
[6.2,"     Utilize Model",null,null,null,null,null,null,null,null,null,null,null,null,null,null,null,null,null,null,0,{"$error":"#DIV/0!"}]
[6.3,"     Develop and Balance IY B Forecast"]
["6.3.1","          Develop and Apply Model Diversion",null,null,null,null,null,null,null,null,null,null,null,null,null,null,null,null,null,null,0,{"$error":"#DIV/0!"}]
["6.3.2","          Review / Analyze",null,null,null,null,null,null,null,null,null,null,null,null,null,null,null,null,null,null,0,{"$error":"#DIV/0!"}]
["6.3.3","          Balance",null,null,null,null,null,null,null,null,null,null,null,null,null,null,null,null,null,null,0,{"$error":"#DIV/0!"}]
[null,null,null,null,null,null,null,null,null,null,null,null,null,null,null,null,null,null,null,null,0,{"$error":"#DIV/0!"}]
[6.4,"     Develop IY B Design Data",null,null,null,null,null,null,null,null,null,null,null,null,null,null,null,null,null,null,0,{"$error":"#DIV/0!"}]
[6.5,"     Develop IY B Traffic Forecast Diagram(s)",null,null,null,null,null,null,null,null,null,null,null,null,null,null,null,null,null,null,0,{"$error":"#DIV/0!"}]
[null,null,null,null,null,null,null,null,null,null,null,null,null,null,null,null,null,null,null,null,0,{"$error":"#DIV/0!"}]
[7,"DEVELOP FUTURE YEAR NO BUILD (FY NB) FORECAST"]
[7.1,"     Modify Model",null,null,null,null,null,null,null,null,null,null,null,null,null,null,null,null,null,null,0,{"$error":"#DIV/0!"}]
[7.2,"     Utilize Model",null,null,null,null,null,null,null,null,null,null,null,null,null,null,null,null,null,null,0,{"$error":"#DIV/0!"}]
[7.3,"     Develop and Balance FY NB Forecast"]
["7.3.1","          Develop and Apply Model Growth",null,null,null,null,null,null,null,null,null,null,null,null,null,null,null,null,null,null,0,{"$error":"#DIV/0!"}]
["7.3.2","          Develop and Apply Historic Growth",null,null,null,null,null,null,null,null,null,null,null,null,null,null,null,null,null,null,0,{"$error":"#DIV/0!"}]
["7.3.3","          Review / Analyze",null,null,null,null,null,null,null,null,null,null,null,null,null,null,null,null,null,null,0,{"$error":"#DIV/0!"}]
["7.3.4","          Balance",null,null,null,null,null,null,null,null,null,null,null,null,null,null,null,null,null,null,0,{"$error":"#DIV/0!"}]
[null,null,null,null,null,null,null,null,null,null,null,null,null,null,null,null,null,null,null,null,0,{"$error":"#DIV/0!"}]
[7.4,"     Develop FY NB Design Data",null,null,null,null,null,null,null,null,null,null,null,null,null,null,null,null,null,null,0,{"$error":"#DIV/0!"}]
[7.5,"     Develop FY NB Traffic Forecast Diagrams",null,null,null,null,null,null,null,null,null,null,null,null,null,null,null,null,null,null,0,{"$error":"#DIV/0!"}]
[null,null,null,null,null,null,null,null,null,null,null,null,null,null,null,null,null,null,null,null,0,{"$error":"#DIV/0!"}]
[8,"DEVELOP FUTURE YEAR BUILD (FY B) FORECAST"]
[8.1,"     Modify Model",null,null,null,null,null,null,null,null,null,null,null,null,null,null,null,null,null,null,0,{"$error":"#DIV/0!"}]
[8.1999999999999993,"     Utilize Model",null,null,null,null,null,null,null,null,null,null,null,null,null,null,null,null,null,null,0,{"$error":"#DIV/0!"}]
[8.3000000000000007,"     Develop and Balance FY B Forecast"]
["8.3.1","          Develop and Apply Model Diversion",null,null,null,null,null,null,null,null,null,null,null,null,null,null,null,null,null,null,{"$f":"SUM(D77:T77)","v":0},{"$f":"SUM((U77/$U$141))","v":{"$error":"#DIV/0!"}}]
["8.3.2","          Review / Analyze",null,null,null,null,null,null,null,null,null,null,null,null,null,null,null,null,null,null,0,{"$error":"#DIV/0!"}]
["8.3.3","          Balance",null,null,null,null,null,null,null,null,null,null,null,null,null,null,null,null,null,null,0,{"$error":"#DIV/0!"}]
[null,null,null,null,null,null,null,null,null,null,null,null,null,null,null,null,null,null,null,null,0,{"$error":"#DIV/0!"}]
[8.4,"     Develop FY B Design Data",null,null,null,null,null,null,null,null,null,null,null,null,null,null,null,null,null,null,0,{"$error":"#DIV/0!"}]
[8.5,"     Develop FY B Traffic Forecast Diagrams",null,null,null,null,null,null,null,null,null,null,null,null,null,null,null,null,null,null,0,{"$error":"#DIV/0!"}]
[null,null,null,null,null,null,null,null,null,null,null,null,null,null,null,null,null,null,null,null,0,{"$error":"#DIV/0!"}]
[9,"INTERIM REVIEW"]
[null,null,null,null,null,null,null,null,null,null,null,null,null,null,null,null,null,null,null,null,0,{"$error":"#DIV/0!"}]
[10,"DEVELOP DRAFT TRAFFIC FORECAST REPORT"]
[null,null,null,null,null,null,null,null,null,null,null,null,null,null,null,null,null,null,null,null,0,{"$error":"#DIV/0!"}]
[11,"REFINE TRAFFIC FORECAST AND REPORT"]
[null,null,null,null,null,null,null,null,null,null,null,null,null,null,null,null,null,null,null,null,0,{"$error":"#DIV/0!"}]
[12,"TRAFFIC FORECAST COMPLETION AND DELIVERY"]
[null,null,null,null,null,null,null,null,null,null,null,null,null,null,null,null,null,null,null,null,0,{"$error":"#DIV/0!"}]
[13,"PROJECT SCHEDULE"]
[null,null,null,null,null,null,null,null,null,null,null,null,null,null,null,null,null,null,null,null,0,{"$error":"#DIV/0!"}]
[14,"PROJECT COORDINATION"]
[null,null,null,null,null,null,null,null,null,null,null,null,null,null,null,null,null,null,null,null,0,{"$error":"#DIV/0!"}]
[15,"MEETINGS AND MEETING FOLLOW UP"]
[15.1,"    NCDOT Meetings and Site Visits",null,null,null,null,null,null,null,null,null,null,null,null,null,null,null,null,null,null,0,{"$error":"#DIV/0!"}]
[15.2,"    Stakeholder Meetings",null,null,null,null,null,null,null,null,null,null,null,null,null,null,null,null,null,null,0,{"$error":"#DIV/0!"}]
[15.3,"    Meeting Follow-up",null,null,null,null,null,null,null,null,null,null,null,null,null,null,null,null,null,null,0,{"$error":"#DIV/0!"}]
[null,null,null,null,null,null,null,null,null,null,null,null,null,null,null,null,null,null,null,null,0,{"$error":"#DIV/0!"}]
[null,null,null,null,null,null,null,null,null,null,null,null,null,null,null,null,null,null,null,null,0,{"$error":"#DIV/0!"}]
[null,null,null,null,null,null,null,null,null,null,null,null,null,null,null,null,null,null,null,null,0,{"$error":"#DIV/0!"}]
[null,null,null,null,null,null,null,null,null,null,null,null,null,null,null,null,null,null,null,null,0,{"$error":"#DIV/0!"}]
[null,null,null,null,null,null,null,null,null,null,null,null,null,null,null,null,null,null,null,null,0,{"$error":"#DIV/0!"}]
[null,null,null,null,null,null,null,null,null,null,null,null,null,null,null,null,null,null,null,null,0,{"$error":"#DIV/0!"}]
[null,null,null,null,null,null,null,null,null,null,null,null,null,null,null,null,null,null,null,null,0,{"$error":"#DIV/0!"}]
[null,null,null,null,null,null,null,null,null,null,null,null,null,null,null,null,null,null,null,null,0,{"$error":"#DIV/0!"}]
[null,null,null,null,null,null,null,null,null,null,null,null,null,null,null,null,null,null,null,null,0,{"$error":"#DIV/0!"}]
[null,null,null,null,null,null,null,null,null,null,null,null,null,null,null,null,null,null,null,null,0,{"$error":"#DIV/0!"}]
[null,null,null,null,null,null,null,null,null,null,null,null,null,null,null,null,null,null,null,null,0,{"$error":"#DIV/0!"}]
[null,null,null,null,null,null,null,null,null,null,null,null,null,null,null,null,null,null,null,null,0,{"$error":"#DIV/0!"}]
[null,null,null,null,null,null,null,null,null,null,null,null,null,null,null,null,null,null,null,null,0,{"$error":"#DIV/0!"}]
[null,null,null,null,null,null,null,null,null,null,null,null,null,null,null,null,null,null,null,null,0,{"$error":"#DIV/0!"}]
[null,null,null,null,null,null,null,null,null,null,null,null,null,null,null,null,null,null,null,null,0,{"$error":"#DIV/0!"}]
[null,null,null,null,null,null,null,null,null,null,null,null,null,null,null,null,null,null,null,null,0,{"$error":"#DIV/0!"}]
[null,null,null,null,null,null,null,null,null,null,null,null,null,null,null,null,null,null,null,null,0,{"$error":"#DIV/0!"}]
[null,null,null,null,null,null,null,null,null,null,null,null,null,null,null,null,null,null,null,null,0,{"$error":"#DIV/0!"}]
[null,null,null,null,null,null,null,null,null,null,null,null,null,null,null,null,null,null,null,null,0,{"$error":"#DIV/0!"}]
[null,null,null,null,null,null,null,null,null,null,null,null,null,null,null,null,null,null,null,null,0,{"$error":"#DIV/0!"}]
[null,null,null,null,null,null,null,null,null,null,null,null,null,null,null,null,null,null,null,null,0,{"$error":"#DIV/0!"}]
[null,null,null,null,null,null,null,null,null,null,null,null,null,null,null,null,null,null,null,null,0,{"$error":"#DIV/0!"}]
[null,null,null,null,null,null,null,null,null,null,null,null,null,null,null,null,null,null,null,null,0,{"$error":"#DIV/0!"}]
[null,null,null,null,null,null,null,null,null,null,null,null,null,null,null,null,null,null,null,null,0,{"$error":"#DIV/0!"}]
[null,null,null,null,null,null,null,null,null,null,null,null,null,null,null,null,null,null,null,null,0,{"$error":"#DIV/0!"}]
[null,null,null,null,null,null,null,null,null,null,null,null,null,null,null,null,null,null,null,null,0,{"$error":"#DIV/0!"}]
[null,null,null,null,null,null,null,null,null,null,null,null,null,null,null,null,null,null,null,null,0,{"$error":"#DIV/0!"}]
[null,null,null,null,null,null,null,null,null,null,null,null,null,null,null,null,null,null,null,null,0,{"$error":"#DIV/0!"}]
[null,null,null,null,null,null,null,null,null,null,null,null,null,null,null,null,null,null,null,null,0,{"$error":"#DIV/0!"}]
[null,null,null,null,null,null,null,null,null,null,null,null,null,null,null,null,null,null,null,null,0,{"$error":"#DIV/0!"}]
[null,null,null,null,null,null,null,null,null,null,null,null,null,null,null,null,null,null,null,null,0,{"$error":"#DIV/0!"}]
[null,null,null,null,null,null,null,null,null,null,null,null,null,null,null,null,null,null,null,null,0,{"$error":"#DIV/0!"}]
[null,null,null,null,null,null,null,null,null,null,null,null,null,null,null,null,null,null,null,null,0,{"$error":"#DIV/0!"}]
[null,null,null,null,null,null,null,null,null,null,null,null,null,null,null,null,null,null,null,null,0,{"$error":"#DIV/0!"}]
[null,null,null,null,null,null,null,null,null,null,null,null,null,null,null,null,null,null,null,null,0,{"$error":"#DIV/0!"}]
[null,null,null,null,null,null,null,null,null,null,null,null,null,null,null,null,null,null,null,null,0,{"$error":"#DIV/0!"}]
[null,null,null,null,null,null,null,null,null,null,null,null,null,null,null,null,null,null,null,null,0,{"$error":"#DIV/0!"}]
[null,null,null,null,null,null,null,null,null,null,null,null,null,null,null,null,null,null,null,null,0,{"$error":"#DIV/0!"}]
[null,null,null,null,null,null,null,null,null,null,null,null,null,null,null,null,null,null,null,null,0,{"$error":"#DIV/0!"}]
[null,null,null,null,null,null,null,null,null,null,null,null,null,null,null,null,null,null,null,null,0,{"$error":"#DIV/0!"}]
[null,null,null,null,null,null,null,null,null,null,null,null,null,null,null,null,null,null,null,null,0,{"$error":"#DIV/0!"}]
[null,"TOTAL WORKHOURS/CATEGORY:",null,{"$f":"SUM(D11:D140)","v":0},0,0,0,0,0,0,0,0,0,0,0,0,0,0,0,0,0,{"$error":"#DIV/0!"},{"$f":"SUM(W12:W140)","v":0}]
[null,"TOTAL WORKDAYS/CATEGORY:",null,{"$f":"D141/8","v":0},{"$f":"E141/8","v":0},0,0,0,0,0,0,0,0,0,0,0,0,0,0,0]
[null,"HOURLY SALARY RATE:",null,{"$f":"'PEF CLASSIFICATION SHEET'!E1583","v":0},{"$f":"'PEF CLASSIFICATION SHEET'!E1584","v":0},{"$f":"'PEF CLASSIFICATION SHEET'!E1585","v":0},{"$f":"'PEF CLASSIFICATION SHEET'!E1586","v":0},{"$f":"'PEF CLASSIFICATION SHEET'!E1587","v":0},{"$f":"'PEF CLASSIFICATION SHEET'!E1588","v":0},{"$f":"'PEF CLASSIFICATION SHEET'!E1589","v":0},{"$f":"'PEF CLASSIFICATION SHEET'!E1590","v":0},{"$f":"'PEF CLASSIFICATION SHEET'!E1591","v":0},{"$f":"'PEF CLASSIFICATION SHEET'!E1592","v":0},{"$f":"'PEF CLASSIFICATION SHEET'!E1593","v":0},{"$f":"'PEF CLASSIFICATION SHEET'!E1594","v":0},{"$f":"'PEF CLASSIFICATION SHEET'!E1595","v":0},{"$f":"'PEF CLASSIFICATION SHEET'!E1596","v":0},{"$f":"'PEF CLASSIFICATION SHEET'!E1597","v":0},{"$f":"'PEF CLASSIFICATION SHEET'!E1598","v":0},{"$f":"'PEF CLASSIFICATION SHEET'!E1599","v":0}]
[null,"RATES PER DAY:",null,{"$f":"D143*8","v":0},0,0,0,0,0,0,0,0,0,0,0,0,0,0,0,0]
[null,"PAYROLL BURDEN:",null,{"$f":"SUM(D141*D143)","v":0},{"$f":"SUM(E141*E143)","v":0},0,0,0,0,0,0,0,0,0,0,0,0,0,0,0]
[null,"TOTAL WORKDAYS:",null,{"$f":"SUM(D142:T142)","v":0}]
[null,"TOTAL PAYROLL BURDEN:",null,{"$f":"SUM(D145:T145)","v":0}]
[null,"AVERAGE COST PER HOUR:",null,{"$f":"SUM(D147/(D146*8))","v":{"$error":"#DIV/0!"}}]
[null,"GENERAL OVERHEAD:",{"$f":"TRAFFICFORECAST.SUB1_CONSULTANT_OVERHEAD","v":0},{"$f":"SUM(D147*C149)","v":0}]
[null,"SUBTOTAL:",null,{"$f":"SUM(D147+D149)","v":0}]
[null,"COMPARATIVE FEE:",{"$f":"TRAFFICFORECAST.SUB1_CONSULTANT_FEE","v":0.09},{"$f":"SUM(D150*C151)","v":0}]
[null,"FACILITIES COST OF CAPITAL:",{"$f":"TRAFFICFORECAST.SUB1_CONSULTANT_COSTofCAPITAL","v":0},{"$f":"SUM(D147*C152)","v":0}]
[null,"TOTAL:",null,{"$f":"SUM(D150:D152)","v":0}]
[null,"DIRECT EXPENSES:",null,{"$f":"TRAFFICFORECAST.SUB1_DIRECT_NONSALARY_TOTAL","v":0}]
[null,"TRAFFIC FORECAST GRAND TOTAL:",null,{"$f":"SUM(D153:D154)","v":0}]

{"sheet":"Forecast-Exp-Sub1","index":178,"n_rows":56,"n_cols":8,"rows_kept":56,"cut":false,"hidden":true,"merged":[[0,0,0,7],[1,3,1,7]]}
["TRAFFIC FORECAST--DIRECT EXPENSES - SUBCONSULTANT 1"]
["TIP NUMBER",{"$f":"TIP.NUMBER","v":0},"FIRM:",{"$f":"'Forecast-Sub1'!G3","v":"CONSULTANT NAME"}]
[]
["GENERAL PROJECT WORK:","ITEM","QTY","DESCRIPTION",null,null,"UNIT COST "]
[null,"Travel:"]
[null,"Sedan",0,"Trip(s) @",0,"miles @",{"$f":"SEDAN","v":0.7},{"$f":"SUM(C6*E6*G6)","v":0}]
[null,"Carry All",0,"Trip(s) @",0,"miles @",{"$f":"CARRYALL","v":0.72},{"$f":"SUM(C7*E7*G7)","v":0}]
[null,"Car Rental",null,null,0,"days @ ",{"$f":"CARRENTAL","v":50},{"$f":"SUM(E8*G8)","v":0}]
[null,"Gas for Rental",null,null,0,"miles @",{"$f":"GASforRENTAL","v":0.2},{"$f":"SUM(E9*G9)","v":0}]
[null,"Parking:",0,"Trip(s) @",null,null,{"$f":"PARKING","v":3},{"$f":"SUM(C10*G10)","v":0}]
[null,"Per Diem:",0,"Breakfast",null,null,{"$f":"BREAKFAST","v":10.1},{"$f":"SUM(C11*G11)","v":0}]
[null,null,0,"Lunch",null,null,{"$f":"LUNCH","v":13.3},0]
[null,null,0,"Dinner",null,null,{"$f":"DINNER","v":23.1},0]
[null,null,0,"Lodging",null,null,{"$f":"LODGING_LUMP.SUM","v":95},0]
[null,"Reproduction:",0,"8 1/2 x 11 B & W Copies @",null,null,{"$f":"LETTERCOPIES","v":0.14000000000000001},0]
[null,null,0,"11 x 17 B & W Copies @",null,null,{"$f":"LEDGERCOPIES","v":0.34},0]
[null,null,0,"8 1/2 x 11 Color Copies @",null,null,{"$f":"LETTERCOLOR","v":0.83},0]
[null,null,0,"11 x 17 Color Copies @",null,null,{"$f":"LEDGERCOLOR","v":1.66},0]
[null,null,0,"SQ. FT. of Plots (B & W or Color)",null,"<65 SQ. FT.*",{"$f":"ROLLPLOTSshort","v":6.5},0]
[null,null,0,"SQ. FT. of Plots (B & W or Color)",null,">65 SQ. FT.*",{"$f":"ROLLPLOTSlong","v":1.5},0]
[null,null,0,"Cover(s) @",null,null,{"$f":"COVERS","v":0.5},0]
[null,null,0,"Binder(s) @",null,null,{"$f":"BINDERS","v":0.5},0]
[null,null,0,"Blueprints - 8 1/2 x 11 @",null,null,{"$f":"BLUEPRINTSLETTER","v":0.35},0]
[null,null,0,"Blueprints - 42 x 72 @",null,null,{"$f":"BLUEPRINTSLARGE","v":1.3},0]
[null,"Film and Developing:",0,"Roll(s) @",null,null,{"$f":"FILM","v":20},0]
[null,null,null,null,null,"Subtotal",null,{"$f":"SUM(H6:H25)","v":0}]
["MAPS AND DOCUMENTS:","ITEM","QTY","DESCRIPTION",null,null,"UNIT COST "]
[null,"County Tax Maps:",0,"Map(s) @",null,null,{"$f":"County_Tax_Maps","v":7},{"$f":"SUM(C28*G28)","v":0}]
[null,"USGS Maps:",0,"Map(s) @",null,null,{"$f":"USGSMAPS","v":7},{"$f":"SUM(C29*G29)","v":0}]
[null,null,null,null,null,"Subtotal",null,{"$f":"SUM(H28:H29)","v":0}]
["Miscellaneous Other","ITEM","QTY","DESCRIPTION",null,null,"UNIT COST "]
[null,null,null,null,null,null,null,{"$f":"SUM(C32*G32)","v":0}]
[null,null,null,null,null,null,null,{"$f":"SUM(C33*G33)","v":0}]
[null,null,null,null,null,null,null,0]
[null,null,null,null,null,null,null,0]
[null,null,null,null,null,null,null,0]
[null,null,null,null,null,null,null,0]
[null,null,null,null,null,null,null,0]
[null,null,null,null,null,null,null,0]
[null,null,null,null,null,null,null,0]
[null,null,null,null,null,null,null,{"$f":"SUM(C41*G41)","v":0}]
[null,null,null,null,null,null,null,{"$f":"SUM(C42*G42)","v":0}]
[null,null,null,null,null,null,null,{"$f":"SUM(C43*G43)","v":0}]
[null,null,null,null,null,null,null,0]
[null,null,null,null,null,null,null,0]
[null,null,null,null,null,null,null,0]
[null,null,null,null,null,null,null,0]
[null,null,null,null,null,null,null,0]
[null,null,null,null,null,null,null,{"$f":"SUM(C49*G49)","v":0}]
[null,null,null,null,null,null,null,{"$f":"SUM(C50*G50)","v":0}]
[null,null,null,null,null,null,null,{"$f":"SUM(C51*G51)","v":0}]
[null,null,null,null,null,"Subtotal",null,{"$f":"SUM(H32:H51)","v":0}]
[]
[null,null,null,null,null,"TOTAL",null,{"$f":"SUM(H26+H30+H52)","v":0}]
[]
[null,"* Sum of all plots "]

{"sheet":"Forecast-Sub2","index":179,"n_rows":155,"n_cols":24,"rows_kept":155,"cut":false,"hidden":true,"merged":[[0,0,1,13],[2,1,2,4],[2,6,2,7],[2,10,2,11],[2,15,2,16],[3,1,3,4],[3,6,3,7],[3,10,3,11],[3,15,3,16],[6,12,9,12],[6,13,9,13],[6,14,9,14],[6,15,9,15],[6,16,9,16],[6,17,9,17],[4,3,4,19],[6,3,9,3],[6,4,9,4],[6,5,9,5],[6,6,9,6],[6,7,9,7],[6,8,9,8],[6,9,9,9],[6,10,9,10],[6,11,9,11],[13,23,13,24],[14,23,14,24],[15,23,15,24],[16,23,16,24],[17,23,17,24],[18,23,18,24],[6,18,9,18],[6,19,9,19],[8,23,8,24],[10,23,10,24],[11,23,11,24],[12,23,12,24],[25,23,25,24],[26,23,26,24],[27,23,27,24],[28,23,28,24],[29,23,29,24],[30,23,30,24],[19,23,19,24],[20,23,20,24],[21,23,21,24],[22,23,22,24],[23,23,23,24],[24,23,24,24],[38,23,38,24],[39,23,39,24],[40,23,40,24],[41,23,41,24],[42,23,42,24],[43,23,43,24],[31,23,31,24],[33,23,33,24],[34,23,34,24],[35,23,35,24],[36,23,36,24],[37,23,37,24],[50,23,50,24],[51,23,51,24],[52,23,52,24],[53,23,53,24],[54,23,54,24],[55,23,55,24],[44,23,44,24],[45,23,45,24],[46,23,46,24],[47,23,47,24],[48,23,48,24],[49,23,49,24],[62,23,62,24],[63,23,63,24],[64,23,64,24],[65,23,65,24],[66,23,66,24],[67,23,67,24],[56,23,56,24],[57,23,57,24],[58,23,58,24],[59,23,59,24],[60,23,60,24],[61,23,61,24],[74,23,74,24],[75,23,75,24],[76,23,76,24],[77,23,77,24],[78,23,78,24],[79,23,79,24],[68,23,68,24],[69,23,69,24],[70,23,70,24],[71,23,71,24],[72,23,72,24],[73,23,73,24],[86,23,86,24],[87,23,87,24],[88,23,88,24],[89,23,89,24],[90,23,90,24],[91,23,91,24],[80,23,80,24],[81,23,81,24],[82,23,82,24],[83,23,83,24],[84,23,84,24],[85,23,85,24],[98,23,98,24],[99,23,99,24],[100,23,100,24],[101,23,101,24],[102,23,102,24],[103,23,103,24],[92,23,92,24],[93,23,93,24],[94,23,94,24],[95,23,95,24],[96,23,96,24],[97,23,97,24],[110,23,110,24],[111,23,111,24],[112,23,112,24],[113,23,113,24],[114,23,114,24],[115,23,115,24],[104,23,104,24],[105,23,105,24],[106,23,106,24],[107,23,107,24],[108,23,108,24],[109,23,109,24],[122,23,122,24],[123,23,123,24],[124,23,124,24],[125,23,125,24],[126,23,126,24],[127,23,127,24],[116,23,116,24],[117,23,117,24],[118,23,118,24],[119,23,119,24],[120,23,120,24],[121,23,121,24],[134,23,134,24],[135,23,135,24],[136,23,136,24],[137,23,137,24],[138,23,138,24],[139,23,139,24],[128,23,128,24],[129,23,129,24],[130,23,130,24],[131,23,131,24],[132,23,132,24],[133,23,133,24],[160,8,160,9],[160,10,160,11],[163,8,163,13],[164,8,164,9],[164,10,164,11],[165,8,165,9],[165,10,165,11],[154,1,155,1],[154,3,155,4],[158,3,158,6],[158,8,158,13],[159,8,159,9],[159,10,159,11]]}
["     TRAFFIC FORECAST--BREAKDOWN WORKSHEET - SUBCONSULTANT 2 -- ENTER WORKHOURS"]
[]
["PROJECT DESCRIPTION: ",{"$f":"PROJECT.DESCRIPTION","v":0},null,null,null,"FIRM:  ",{"$f":"TRAFFICFORECAST.SUB2_CONSULTANT_NAME","v":"CONSULTANT NAME"},null,"TASK ORDER NUMBER:",null,{"$f":"TASK.ORDER.NUMBER","v":0},null,"DATE PREPARED:",{"$f":"IF(SCOPE.MANDAY.ESTIMATE.PREPARED.BY.DATE=\"\",\"\",SCOPE.MANDAY.ESTIMATE.PREPARED.BY.DATE)","v":""}]
["PREPARED BY:  ",{"$f":"IF(SCOPE.MANDAY.ESTIMATE.PREPARED.BY=\"\",\"\",SCOPE.MANDAY.ESTIMATE.PREPARED.BY)","v":""},null,null,null,"TIP NUMBER:",{"$f":"TIP.NUMBER","v":0},null,"WBS NUMBER:",null,{"$f":"WBS.NUMBER","v":""},null,"REVISION DATE:",{"$f":"IF(SCOPE.MANDAY.ESTIMATE.APPROVED.BY.DATE=\"\",\"\",SCOPE.MANDAY.ESTIMATE.APPROVED.BY.DATE)","v":""}]
[null,null,null,"ESTIMATED WORKHOURS"]
[null,null,"EMPLOYEE NAMES",{"$f":"IF('PEF CLASSIFICATION SHEET'!D1602=\"\",\"\",LEFT('PEF CLASSIFICATION SHEET'!D1602,4))","v":""},{"$f":"IF('PEF CLASSIFICATION SHEET'!D1603=\"\",\"\",LEFT('PEF CLASSIFICATION SHEET'!D1603,4))","v":""},{"$f":"IF('PEF CLASSIFICATION SHEET'!D1604=\"\",\"\",LEFT('PEF CLASSIFICATION SHEET'!D1604,4))","v":""},{"$f":"IF('PEF CLASSIFICATION SHEET'!D1605=\"\",\"\",LEFT('PEF CLASSIFICATION SHEET'!D1605,4))","v":""},{"$f":"IF('PEF CLASSIFICATION SHEET'!D1606=\"\",\"\",LEFT('PEF CLASSIFICATION SHEET'!D1606,4))","v":""},{"$f":"IF('PEF CLASSIFICATION SHEET'!D1607=\"\",\"\",LEFT('PEF CLASSIFICATION SHEET'!D1607,4))","v":""},{"$f":"IF('PEF CLASSIFICATION SHEET'!D1608=\"\",\"\",LEFT('PEF CLASSIFICATION SHEET'!D1608,4))","v":""},{"$f":"IF('PEF CLASSIFICATION SHEET'!D1609=\"\",\"\",LEFT('PEF CLASSIFICATION SHEET'!D1609,4))","v":""},{"$f":"IF('PEF CLASSIFICATION SHEET'!D1610=\"\",\"\",LEFT('PEF CLASSIFICATION SHEET'!D1610,4))","v":""},{"$f":"IF('PEF CLASSIFICATION SHEET'!D1611=\"\",\"\",LEFT('PEF CLASSIFICATION SHEET'!D1611,4))","v":""},{"$f":"IF('PEF CLASSIFICATION SHEET'!D1612=\"\",\"\",LEFT('PEF CLASSIFICATION SHEET'!D1612,4))","v":""},{"$f":"IF('PEF CLASSIFICATION SHEET'!D1613=\"\",\"\",LEFT('PEF CLASSIFICATION SHEET'!D1613,4))","v":""},{"$f":"IF('PEF CLASSIFICATION SHEET'!D1614=\"\",\"\",LEFT('PEF CLASSIFICATION SHEET'!D1614,4))","v":""},{"$f":"IF('PEF CLASSIFICATION SHEET'!D1615=\"\",\"\",LEFT('PEF CLASSIFICATION SHEET'!D1615,4))","v":""},{"$f":"IF('PEF CLASSIFICATION SHEET'!D1616=\"\",\"\",LEFT('PEF CLASSIFICATION SHEET'!D1616,4))","v":""},{"$f":"IF('PEF CLASSIFICATION SHEET'!D1617=\"\",\"\",LEFT('PEF CLASSIFICATION SHEET'!D1617,4))","v":""},{"$f":"IF('PEF CLASSIFICATION SHEET'!D1618=\"\",\"\",LEFT('PEF CLASSIFICATION SHEET'!D1618,4))","v":""}]
[null,null,null,{"$f":"IF('PEF CLASSIFICATION SHEET'!C1602=\"\",\"\",'PEF CLASSIFICATION SHEET'!C1602)","v":""},{"$f":"IF('PEF CLASSIFICATION SHEET'!C1603=\"\",\"\",'PEF CLASSIFICATION SHEET'!C1603)","v":""},{"$f":"IF('PEF CLASSIFICATION SHEET'!C1604=\"\",\"\",'PEF CLASSIFICATION SHEET'!C1604)","v":""},{"$f":"IF('PEF CLASSIFICATION SHEET'!C1605=\"\",\"\",'PEF CLASSIFICATION SHEET'!C1605)","v":""},{"$f":"IF('PEF CLASSIFICATION SHEET'!C1606=\"\",\"\",'PEF CLASSIFICATION SHEET'!C1606)","v":""},{"$f":"IF('PEF CLASSIFICATION SHEET'!C1607=\"\",\"\",'PEF CLASSIFICATION SHEET'!C1607)","v":""},{"$f":"IF('PEF CLASSIFICATION SHEET'!C1608=\"\",\"\",'PEF CLASSIFICATION SHEET'!C1608)","v":""},{"$f":"IF('PEF CLASSIFICATION SHEET'!C1609=\"\",\"\",'PEF CLASSIFICATION SHEET'!C1609)","v":""},{"$f":"IF('PEF CLASSIFICATION SHEET'!C1610=\"\",\"\",'PEF CLASSIFICATION SHEET'!C1610)","v":""},{"$f":"IF('PEF CLASSIFICATION SHEET'!C1611=\"\",\"\",'PEF CLASSIFICATION SHEET'!C1611)","v":""},{"$f":"IF('PEF CLASSIFICATION SHEET'!C1612=\"\",\"\",'PEF CLASSIFICATION SHEET'!C1612)","v":""},{"$f":"IF('PEF CLASSIFICATION SHEET'!C1613=\"\",\"\",'PEF CLASSIFICATION SHEET'!C1613)","v":""},{"$f":"IF('PEF CLASSIFICATION SHEET'!C1614=\"\",\"\",'PEF CLASSIFICATION SHEET'!C1614)","v":""},{"$f":"IF('PEF CLASSIFICATION SHEET'!C1615=\"\",\"\",'PEF CLASSIFICATION SHEET'!C1615)","v":""},{"$f":"IF('PEF CLASSIFICATION SHEET'!C1616=\"\",\"\",'PEF CLASSIFICATION SHEET'!C1616)","v":""},{"$f":"IF('PEF CLASSIFICATION SHEET'!C1617=\"\",\"\",'PEF CLASSIFICATION SHEET'!C1617)","v":""},{"$f":"IF('PEF CLASSIFICATION SHEET'!C1618=\"\",\"\",'PEF CLASSIFICATION SHEET'!C1618)","v":""},"SUB-","%","PEF"]
[null,null,null,null,null,null,null,null,null,null,null,null,null,null,null,null,null,null,null,null,"TOTAL","OF","ESTIMATE"]
["TASK","TASK DESCRIPTION","CLASSIFICATION",null,null,null,null,null,null,null,null,null,null,null,null,null,null,null,null,null,null,"PROJECT",null,"COMMENTS"]
["NO."]
[1,"COLLECT AND REVIEW DATA"]
[1.1000000000000001,"     Collect Existing Data",null,null,null,null,null,null,null,null,null,null,null,null,null,null,null,null,null,null,{"$f":"SUM(D12:T12)","v":0},{"$f":"SUM((U12/$U$141))","v":{"$error":"#DIV/0!"}}]
[1.2,"     Review and Analyze Existing Data; Calculate Growth Rates",null,null,null,null,null,null,null,null,null,null,null,null,null,null,null,null,null,null,{"$f":"SUM(D13:T13)","v":0},{"$f":"SUM((U13/$U$141))","v":{"$error":"#DIV/0!"}}]
[1.3,"     Collect Field Data",null,null,null,null,null,null,null,null,null,null,null,null,null,null,null,null,null,null,0,{"$error":"#DIV/0!"}]
[1.4,"     Convert to AADT",null,null,null,null,null,null,null,null,null,null,null,null,null,null,null,null,null,null,0,{"$error":"#DIV/0!"}]
[1.5,"     Project Kickoff Meeting",null,null,null,null,null,null,null,null,null,null,null,null,null,null,null,null,null,null,0,{"$error":"#DIV/0!"}]
[null,null,null,null,null,null,null,null,null,null,null,null,null,null,null,null,null,null,null,null,0,{"$error":"#DIV/0!"}]
[2,"PREPARE BASE YEAR NO BUILD (BY NB) ESTIMATE"]
[2.1,"     Develop and Balance BY NB Estimate",null,null,null,null,null,null,null,null,null,null,null,null,null,null,null,null,null,null,0,{"$error":"#DIV/0!"}]
[2.2000000000000002,"     Develop BY NB Design Data",null,null,null,null,null,null,null,null,null,null,null,null,null,null,null,null,null,null,0,{"$error":"#DIV/0!"}]
[2.2999999999999998,"     Develop BY NB Traffic Forecast Diagrams",null,null,null,null,null,null,null,null,null,null,null,null,null,null,null,null,null,null,0,{"$error":"#DIV/0!"}]
[null,null,null,null,null,null,null,null,null,null,null,null,null,null,null,null,null,null,null,null,0,{"$error":"#DIV/0!"}]
[3,"MODEL REVIEW"]
[3.1,"     Review Model Validation",null,null,null,null,null,null,null,null,null,null,null,null,null,null,null,null,null,null,0,{"$error":"#DIV/0!"}]
[3.2,"     Review Networks Project Corridor",null,null,null,null,null,null,null,null,null,null,null,null,null,null,null,null,null,null,0,{"$error":"#DIV/0!"}]
[null,null,null,null,null,null,null,null,null,null,null,null,null,null,null,null,null,null,null,null,0,{"$error":"#DIV/0!"}]
[4,"DEVELOP BASE YEAR BUILD (BY B) FORECAST"]
[4.0999999999999996,"     Modify Model",null,null,null,null,null,null,null,null,null,null,null,null,null,null,null,null,null,null,0,{"$error":"#DIV/0!"}]
[4.2,"     Utilize Model",null,null,null,null,null,null,null,null,null,null,null,null,null,null,null,null,null,null,0,{"$error":"#DIV/0!"}]
[4.3,"     Develop and Balance BY B Traffic Forecast"]
["4.3.1","          Develop and Apply Model Diversion",null,null,null,null,null,null,null,null,null,null,null,null,null,null,null,null,null,null,0,{"$error":"#DIV/0!"}]
["4.3.2","          Review / Analyze",null,null,null,null,null,null,null,null,null,null,null,null,null,null,null,null,null,null,0,{"$error":"#DIV/0!"}]
["4.3.3","          Balance",null,null,null,null,null,null,null,null,null,null,null,null,null,null,null,null,null,null,0,{"$error":"#DIV/0!"}]
[null,null,null,null,null,null,null,null,null,null,null,null,null,null,null,null,null,null,null,null,0,{"$error":"#DIV/0!"}]
[4.4000000000000004,"     Develop BY B Design Data",null,null,null,null,null,null,null,null,null,null,null,null,null,null,null,null,null,null,0,{"$error":"#DIV/0!"}]
[4.5,"     Develop BY B Traffic Forecast Diagram(s)",null,null,null,null,null,null,null,null,null,null,null,null,null,null,null,null,null,null,0,{"$error":"#DIV/0!"}]
[null,null,null,null,null,null,null,null,null,null,null,null,null,null,null,null,null,null,null,null,0,{"$error":"#DIV/0!"}]
[5,"DEVELOP INTERIM YEAR NO BUILD (IY NB) FORECAST"]
[5.0999999999999996,"     Modify Model",null,null,null,null,null,null,null,null,null,null,null,null,null,null,null,null,null,null,0,{"$error":"#DIV/0!"}]
[5.2,"     Utilize Model",null,null,null,null,null,null,null,null,null,null,null,null,null,null,null,null,null,null,0,{"$error":"#DIV/0!"}]
[5.3,"     Develop and Balance IY NB Forecast"]
["5.3.1","          Develop and Apply Model Growth",null,null,null,null,null,null,null,null,null,null,null,null,null,null,null,null,null,null,0,{"$error":"#DIV/0!"}]
["5.3.2","          Develop and Apply Historic Growth",null,null,null,null,null,null,null,null,null,null,null,null,null,null,null,null,null,null,0,{"$error":"#DIV/0!"}]
["5.3.3","          Review / Analyze",null,null,null,null,null,null,null,null,null,null,null,null,null,null,null,null,null,null,0,{"$error":"#DIV/0!"}]
["5.3.4","          Balance",null,null,null,null,null,null,null,null,null,null,null,null,null,null,null,null,null,null,0,{"$error":"#DIV/0!"}]
[null,null,null,null,null,null,null,null,null,null,null,null,null,null,null,null,null,null,null,null,0,{"$error":"#DIV/0!"}]
[5.4,"     Develop IY NB Design Data",null,null,null,null,null,null,null,null,null,null,null,null,null,null,null,null,null,null,0,{"$error":"#DIV/0!"}]
[5.5,"     Develop IY NB Traffic Forecast Diagram(s)",null,null,null,null,null,null,null,null,null,null,null,null,null,null,null,null,null,null,0,{"$error":"#DIV/0!"}]
[null,null,null,null,null,null,null,null,null,null,null,null,null,null,null,null,null,null,null,null,0,{"$error":"#DIV/0!"}]
[6,"DEVELOP INTERIM YEAR (IY B) FORECAST"]
[6.1,"     Modify Model",null,null,null,null,null,null,null,null,null,null,null,null,null,null,null,null,null,null,0,{"$error":"#DIV/0!"}]
[6.2,"     Utilize Model",null,null,null,null,null,null,null,null,null,null,null,null,null,null,null,null,null,null,0,{"$error":"#DIV/0!"}]
[6.3,"     Develop and Balance IY B Forecast"]
["6.3.1","          Develop and Apply Model Diversion",null,null,null,null,null,null,null,null,null,null,null,null,null,null,null,null,null,null,0,{"$error":"#DIV/0!"}]
["6.3.2","          Review / Analyze",null,null,null,null,null,null,null,null,null,null,null,null,null,null,null,null,null,null,0,{"$error":"#DIV/0!"}]
["6.3.3","          Balance",null,null,null,null,null,null,null,null,null,null,null,null,null,null,null,null,null,null,0,{"$error":"#DIV/0!"}]
[null,null,null,null,null,null,null,null,null,null,null,null,null,null,null,null,null,null,null,null,0,{"$error":"#DIV/0!"}]
[6.4,"     Develop IY B Design Data",null,null,null,null,null,null,null,null,null,null,null,null,null,null,null,null,null,null,0,{"$error":"#DIV/0!"}]
[6.5,"     Develop IY B Traffic Forecast Diagram(s)",null,null,null,null,null,null,null,null,null,null,null,null,null,null,null,null,null,null,0,{"$error":"#DIV/0!"}]
[null,null,null,null,null,null,null,null,null,null,null,null,null,null,null,null,null,null,null,null,0,{"$error":"#DIV/0!"}]
[7,"DEVELOP FUTURE YEAR NO BUILD (FY NB) FORECAST"]
[7.1,"     Modify Model",null,null,null,null,null,null,null,null,null,null,null,null,null,null,null,null,null,null,0,{"$error":"#DIV/0!"}]
[7.2,"     Utilize Model",null,null,null,null,null,null,null,null,null,null,null,null,null,null,null,null,null,null,0,{"$error":"#DIV/0!"}]
[7.3,"     Develop and Balance FY NB Forecast"]
["7.3.1","          Develop and Apply Model Growth",null,null,null,null,null,null,null,null,null,null,null,null,null,null,null,null,null,null,0,{"$error":"#DIV/0!"}]
["7.3.2","          Develop and Apply Historic Growth",null,null,null,null,null,null,null,null,null,null,null,null,null,null,null,null,null,null,0,{"$error":"#DIV/0!"}]
["7.3.3","          Review / Analyze",null,null,null,null,null,null,null,null,null,null,null,null,null,null,null,null,null,null,0,{"$error":"#DIV/0!"}]
["7.3.4","          Balance",null,null,null,null,null,null,null,null,null,null,null,null,null,null,null,null,null,null,0,{"$error":"#DIV/0!"}]
[null,null,null,null,null,null,null,null,null,null,null,null,null,null,null,null,null,null,null,null,0,{"$error":"#DIV/0!"}]
[7.4,"     Develop FY NB Design Data",null,null,null,null,null,null,null,null,null,null,null,null,null,null,null,null,null,null,0,{"$error":"#DIV/0!"}]
[7.5,"     Develop FY NB Traffic Forecast Diagrams",null,null,null,null,null,null,null,null,null,null,null,null,null,null,null,null,null,null,0,{"$error":"#DIV/0!"}]
[null,null,null,null,null,null,null,null,null,null,null,null,null,null,null,null,null,null,null,null,0,{"$error":"#DIV/0!"}]
[8,"DEVELOP FUTURE YEAR BUILD (FY B) FORECAST"]
[8.1,"     Modify Model",null,null,null,null,null,null,null,null,null,null,null,null,null,null,null,null,null,null,0,{"$error":"#DIV/0!"}]
[8.1999999999999993,"     Utilize Model",null,null,null,null,null,null,null,null,null,null,null,null,null,null,null,null,null,null,0,{"$error":"#DIV/0!"}]
[8.3000000000000007,"     Develop and Balance FY B Forecast"]
["8.3.1","          Develop and Apply Model Diversion",null,null,null,null,null,null,null,null,null,null,null,null,null,null,null,null,null,null,{"$f":"SUM(D77:T77)","v":0},{"$f":"SUM((U77/$U$141))","v":{"$error":"#DIV/0!"}}]
["8.3.2","          Review / Analyze",null,null,null,null,null,null,null,null,null,null,null,null,null,null,null,null,null,null,0,{"$error":"#DIV/0!"}]
["8.3.3","          Balance",null,null,null,null,null,null,null,null,null,null,null,null,null,null,null,null,null,null,0,{"$error":"#DIV/0!"}]
[null,null,null,null,null,null,null,null,null,null,null,null,null,null,null,null,null,null,null,null,0,{"$error":"#DIV/0!"}]
[8.4,"     Develop FY B Design Data",null,null,null,null,null,null,null,null,null,null,null,null,null,null,null,null,null,null,0,{"$error":"#DIV/0!"}]
[8.5,"     Develop FY B Traffic Forecast Diagrams",null,null,null,null,null,null,null,null,null,null,null,null,null,null,null,null,null,null,0,{"$error":"#DIV/0!"}]
[null,null,null,null,null,null,null,null,null,null,null,null,null,null,null,null,null,null,null,null,0,{"$error":"#DIV/0!"}]
[9,"INTERIM REVIEW"]
[null,null,null,null,null,null,null,null,null,null,null,null,null,null,null,null,null,null,null,null,0,{"$error":"#DIV/0!"}]
[10,"DEVELOP DRAFT TRAFFIC FORECAST REPORT"]
[null,null,null,null,null,null,null,null,null,null,null,null,null,null,null,null,null,null,null,null,0,{"$error":"#DIV/0!"}]
[11,"REFINE TRAFFIC FORECAST AND REPORT"]
[null,null,null,null,null,null,null,null,null,null,null,null,null,null,null,null,null,null,null,null,0,{"$error":"#DIV/0!"}]
[12,"TRAFFIC FORECAST COMPLETION AND DELIVERY"]
[null,null,null,null,null,null,null,null,null,null,null,null,null,null,null,null,null,null,null,null,0,{"$error":"#DIV/0!"}]
[13,"PROJECT SCHEDULE"]
[null,null,null,null,null,null,null,null,null,null,null,null,null,null,null,null,null,null,null,null,0,{"$error":"#DIV/0!"}]
[14,"PROJECT COORDINATION"]
[null,null,null,null,null,null,null,null,null,null,null,null,null,null,null,null,null,null,null,null,0,{"$error":"#DIV/0!"}]
[15,"MEETINGS AND MEETING FOLLOW UP"]
[15.1,"    NCDOT Meetings and Site Visits",null,null,null,null,null,null,null,null,null,null,null,null,null,null,null,null,null,null,0,{"$error":"#DIV/0!"}]
[15.2,"    Stakeholder Meetings",null,null,null,null,null,null,null,null,null,null,null,null,null,null,null,null,null,null,0,{"$error":"#DIV/0!"}]
[15.3,"    Meeting Follow-up",null,null,null,null,null,null,null,null,null,null,null,null,null,null,null,null,null,null,0,{"$error":"#DIV/0!"}]
[null,null,null,null,null,null,null,null,null,null,null,null,null,null,null,null,null,null,null,null,0,{"$error":"#DIV/0!"}]
[null,null,null,null,null,null,null,null,null,null,null,null,null,null,null,null,null,null,null,null,0,{"$error":"#DIV/0!"}]
[null,null,null,null,null,null,null,null,null,null,null,null,null,null,null,null,null,null,null,null,0,{"$error":"#DIV/0!"}]
[null,null,null,null,null,null,null,null,null,null,null,null,null,null,null,null,null,null,null,null,0,{"$error":"#DIV/0!"}]
[null,null,null,null,null,null,null,null,null,null,null,null,null,null,null,null,null,null,null,null,0,{"$error":"#DIV/0!"}]
[null,null,null,null,null,null,null,null,null,null,null,null,null,null,null,null,null,null,null,null,0,{"$error":"#DIV/0!"}]
[null,null,null,null,null,null,null,null,null,null,null,null,null,null,null,null,null,null,null,null,0,{"$error":"#DIV/0!"}]
[null,null,null,null,null,null,null,null,null,null,null,null,null,null,null,null,null,null,null,null,0,{"$error":"#DIV/0!"}]
[null,null,null,null,null,null,null,null,null,null,null,null,null,null,null,null,null,null,null,null,0,{"$error":"#DIV/0!"}]
[null,null,null,null,null,null,null,null,null,null,null,null,null,null,null,null,null,null,null,null,0,{"$error":"#DIV/0!"}]
[null,null,null,null,null,null,null,null,null,null,null,null,null,null,null,null,null,null,null,null,0,{"$error":"#DIV/0!"}]
[null,null,null,null,null,null,null,null,null,null,null,null,null,null,null,null,null,null,null,null,0,{"$error":"#DIV/0!"}]
[null,null,null,null,null,null,null,null,null,null,null,null,null,null,null,null,null,null,null,null,0,{"$error":"#DIV/0!"}]
[null,null,null,null,null,null,null,null,null,null,null,null,null,null,null,null,null,null,null,null,0,{"$error":"#DIV/0!"}]
[null,null,null,null,null,null,null,null,null,null,null,null,null,null,null,null,null,null,null,null,0,{"$error":"#DIV/0!"}]
[null,null,null,null,null,null,null,null,null,null,null,null,null,null,null,null,null,null,null,null,0,{"$error":"#DIV/0!"}]
[null,null,null,null,null,null,null,null,null,null,null,null,null,null,null,null,null,null,null,null,0,{"$error":"#DIV/0!"}]
[null,null,null,null,null,null,null,null,null,null,null,null,null,null,null,null,null,null,null,null,0,{"$error":"#DIV/0!"}]
[null,null,null,null,null,null,null,null,null,null,null,null,null,null,null,null,null,null,null,null,0,{"$error":"#DIV/0!"}]
[null,null,null,null,null,null,null,null,null,null,null,null,null,null,null,null,null,null,null,null,0,{"$error":"#DIV/0!"}]
[null,null,null,null,null,null,null,null,null,null,null,null,null,null,null,null,null,null,null,null,0,{"$error":"#DIV/0!"}]
[null,null,null,null,null,null,null,null,null,null,null,null,null,null,null,null,null,null,null,null,0,{"$error":"#DIV/0!"}]
[null,null,null,null,null,null,null,null,null,null,null,null,null,null,null,null,null,null,null,null,0,{"$error":"#DIV/0!"}]
[null,null,null,null,null,null,null,null,null,null,null,null,null,null,null,null,null,null,null,null,0,{"$error":"#DIV/0!"}]
[null,null,null,null,null,null,null,null,null,null,null,null,null,null,null,null,null,null,null,null,0,{"$error":"#DIV/0!"}]
[null,null,null,null,null,null,null,null,null,null,null,null,null,null,null,null,null,null,null,null,0,{"$error":"#DIV/0!"}]
[null,null,null,null,null,null,null,null,null,null,null,null,null,null,null,null,null,null,null,null,0,{"$error":"#DIV/0!"}]
[null,null,null,null,null,null,null,null,null,null,null,null,null,null,null,null,null,null,null,null,0,{"$error":"#DIV/0!"}]
[null,null,null,null,null,null,null,null,null,null,null,null,null,null,null,null,null,null,null,null,0,{"$error":"#DIV/0!"}]
[null,null,null,null,null,null,null,null,null,null,null,null,null,null,null,null,null,null,null,null,0,{"$error":"#DIV/0!"}]
[null,null,null,null,null,null,null,null,null,null,null,null,null,null,null,null,null,null,null,null,0,{"$error":"#DIV/0!"}]
[null,null,null,null,null,null,null,null,null,null,null,null,null,null,null,null,null,null,null,null,0,{"$error":"#DIV/0!"}]
[null,null,null,null,null,null,null,null,null,null,null,null,null,null,null,null,null,null,null,null,0,{"$error":"#DIV/0!"}]
[null,null,null,null,null,null,null,null,null,null,null,null,null,null,null,null,null,null,null,null,0,{"$error":"#DIV/0!"}]
[null,null,null,null,null,null,null,null,null,null,null,null,null,null,null,null,null,null,null,null,0,{"$error":"#DIV/0!"}]
[null,null,null,null,null,null,null,null,null,null,null,null,null,null,null,null,null,null,null,null,0,{"$error":"#DIV/0!"}]
[null,null,null,null,null,null,null,null,null,null,null,null,null,null,null,null,null,null,null,null,0,{"$error":"#DIV/0!"}]
[null,null,null,null,null,null,null,null,null,null,null,null,null,null,null,null,null,null,null,null,0,{"$error":"#DIV/0!"}]
[null,null,null,null,null,null,null,null,null,null,null,null,null,null,null,null,null,null,null,null,0,{"$error":"#DIV/0!"}]
[null,null,null,null,null,null,null,null,null,null,null,null,null,null,null,null,null,null,null,null,0,{"$error":"#DIV/0!"}]
[null,null,null,null,null,null,null,null,null,null,null,null,null,null,null,null,null,null,null,null,0,{"$error":"#DIV/0!"}]
[null,"TOTAL WORKHOURS/CATEGORY:",null,{"$f":"SUM(D11:D140)","v":0},0,0,0,0,0,0,0,0,0,0,0,0,0,0,0,0,0,{"$error":"#DIV/0!"},{"$f":"SUM(W12:W140)","v":0}]
[null,"TOTAL WORKDAYS/CATEGORY:",null,{"$f":"D141/8","v":0},{"$f":"E141/8","v":0},0,0,0,0,0,0,0,0,0,0,0,0,0,0,0]
[null,"HOURLY SALARY RATE:",null,{"$f":"'PEF CLASSIFICATION SHEET'!E1602","v":0},{"$f":"'PEF CLASSIFICATION SHEET'!E1603","v":0},{"$f":"'PEF CLASSIFICATION SHEET'!E1604","v":0},{"$f":"'PEF CLASSIFICATION SHEET'!E1605","v":0},{"$f":"'PEF CLASSIFICATION SHEET'!E1606","v":0},{"$f":"'PEF CLASSIFICATION SHEET'!E1607","v":0},{"$f":"'PEF CLASSIFICATION SHEET'!E1608","v":0},{"$f":"'PEF CLASSIFICATION SHEET'!E1609","v":0},{"$f":"'PEF CLASSIFICATION SHEET'!E1610","v":0},{"$f":"'PEF CLASSIFICATION SHEET'!E1611","v":0},{"$f":"'PEF CLASSIFICATION SHEET'!E1612","v":0},{"$f":"'PEF CLASSIFICATION SHEET'!E1613","v":0},{"$f":"'PEF CLASSIFICATION SHEET'!E1614","v":0},{"$f":"'PEF CLASSIFICATION SHEET'!E1615","v":0},{"$f":"'PEF CLASSIFICATION SHEET'!E1616","v":0},{"$f":"'PEF CLASSIFICATION SHEET'!E1617","v":0},{"$f":"'PEF CLASSIFICATION SHEET'!E1618","v":0}]
[null,"RATES PER DAY:",null,{"$f":"D143*8","v":0},0,0,0,0,0,0,0,0,0,0,0,0,0,0,0,0]
[null,"PAYROLL BURDEN:",null,{"$f":"SUM(D141*D143)","v":0},{"$f":"SUM(E141*E143)","v":0},0,0,0,0,0,0,0,0,0,0,0,0,0,0,0]
[null,"TOTAL WORKDAYS:",null,{"$f":"SUM(D142:T142)","v":0}]
[null,"TOTAL PAYROLL BURDEN:",null,{"$f":"SUM(D145:T145)","v":0}]
[null,"AVERAGE COST PER HOUR:",null,{"$f":"SUM(D147/(D146*8))","v":{"$error":"#DIV/0!"}}]
[null,"GENERAL OVERHEAD:",{"$f":"TRAFFICFORECAST.SUB2_CONSULTANT_OVERHEAD","v":0},{"$f":"SUM(D147*C149)","v":0}]
[null,"SUBTOTAL:",null,{"$f":"SUM(D147+D149)","v":0}]
[null,"COMPARATIVE FEE:",{"$f":"TRAFFICFORECAST.SUB2_CONSULTANT_FEE","v":0.09},{"$f":"SUM(D150*C151)","v":0}]
[null,"FACILITIES COST OF CAPITAL:",{"$f":"TRAFFICFORECAST.SUB2_CONSULTANT_COSTofCAPITAL","v":0},{"$f":"SUM(D147*C152)","v":0}]
[null,"TOTAL:",null,{"$f":"SUM(D150:D152)","v":0}]
[null,"DIRECT EXPENSES:",null,{"$f":"TRAFFICFORECAST.SUB2_DIRECT_NONSALARY_TOTAL","v":0}]
[null,"TRAFFIC FORECAST GRAND TOTAL:",null,{"$f":"SUM(D153:D154)","v":0}]

{"sheet":"Forecast-Exp-Sub2","index":180,"n_rows":56,"n_cols":8,"rows_kept":56,"cut":false,"hidden":true,"merged":[[0,0,0,7],[1,3,1,7]]}
["TRAFFIC FORECAST--DIRECT EXPENSES - SUBCONSULTANT 2"]
["TIP NUMBER",{"$f":"TIP.NUMBER","v":0},"FIRM:",{"$f":"'Forecast-Sub2'!G3","v":"CONSULTANT NAME"}]
[]
["GENERAL PROJECT WORK:","ITEM","QTY","DESCRIPTION",null,null,"UNIT COST "]
[null,"Travel:"]
[null,"Sedan",0,"Trip(s) @",0,"miles @",{"$f":"SEDAN","v":0.7},{"$f":"SUM(C6*E6*G6)","v":0}]
[null,"Carry All",0,"Trip(s) @",0,"miles @",{"$f":"CARRYALL","v":0.72},{"$f":"SUM(C7*E7*G7)","v":0}]
[null,"Car Rental",null,null,0,"days @ ",{"$f":"CARRENTAL","v":50},{"$f":"SUM(E8*G8)","v":0}]
[null,"Gas for Rental",null,null,0,"miles @",{"$f":"GASforRENTAL","v":0.2},{"$f":"SUM(E9*G9)","v":0}]
[null,"Parking:",0,"Trip(s) @",null,null,{"$f":"PARKING","v":3},{"$f":"SUM(C10*G10)","v":0}]
[null,"Per Diem:",0,"Breakfast",null,null,{"$f":"BREAKFAST","v":10.1},{"$f":"SUM(C11*G11)","v":0}]
[null,null,0,"Lunch",null,null,{"$f":"LUNCH","v":13.3},0]
[null,null,0,"Dinner",null,null,{"$f":"DINNER","v":23.1},0]
[null,null,0,"Lodging",null,null,{"$f":"LODGING_LUMP.SUM","v":95},0]
[null,"Reproduction:",0,"8 1/2 x 11 B & W Copies @",null,null,{"$f":"LETTERCOPIES","v":0.14000000000000001},0]
[null,null,0,"11 x 17 B & W Copies @",null,null,{"$f":"LEDGERCOPIES","v":0.34},0]
[null,null,0,"8 1/2 x 11 Color Copies @",null,null,{"$f":"LETTERCOLOR","v":0.83},0]
[null,null,0,"11 x 17 Color Copies @",null,null,{"$f":"LEDGERCOLOR","v":1.66},0]
[null,null,0,"SQ. FT. of Plots (B & W or Color)",null,"<65 SQ. FT.*",{"$f":"ROLLPLOTSshort","v":6.5},0]
[null,null,0,"SQ. FT. of Plots (B & W or Color)",null,">65 SQ. FT.*",{"$f":"ROLLPLOTSlong","v":1.5},0]
[null,null,0,"Cover(s) @",null,null,{"$f":"COVERS","v":0.5},0]
[null,null,0,"Binder(s) @",null,null,{"$f":"BINDERS","v":0.5},0]
[null,null,0,"Blueprints - 8 1/2 x 11 @",null,null,{"$f":"BLUEPRINTSLETTER","v":0.35},0]
[null,null,0,"Blueprints - 42 x 72 @",null,null,{"$f":"BLUEPRINTSLARGE","v":1.3},0]
[null,"Film and Developing:",0,"Roll(s) @",null,null,{"$f":"FILM","v":20},0]
[null,null,null,null,null,"Subtotal",null,{"$f":"SUM(H6:H25)","v":0}]
["MAPS AND DOCUMENTS:","ITEM","QTY","DESCRIPTION",null,null,"UNIT COST "]
[null,"County Tax Maps:",0,"Map(s) @",null,null,{"$f":"County_Tax_Maps","v":7},{"$f":"SUM(C28*G28)","v":0}]
[null,"USGS Maps:",0,"Map(s) @",null,null,{"$f":"USGSMAPS","v":7},{"$f":"SUM(C29*G29)","v":0}]
[null,null,null,null,null,"Subtotal",null,{"$f":"SUM(H28:H29)","v":0}]
["Miscellaneous Other","ITEM","QTY","DESCRIPTION",null,null,"UNIT COST "]
[null,null,null,null,null,null,null,{"$f":"SUM(C32*G32)","v":0}]
[null,null,null,null,null,null,null,{"$f":"SUM(C33*G33)","v":0}]
[null,null,null,null,null,null,null,0]
[null,null,null,null,null,null,null,0]
[null,null,null,null,null,null,null,0]
[null,null,null,null,null,null,null,0]
[null,null,null,null,null,null,null,0]
[null,null,null,null,null,null,null,0]
[null,null,null,null,null,null,null,0]
[null,null,null,null,null,null,null,{"$f":"SUM(C41*G41)","v":0}]
[null,null,null,null,null,null,null,{"$f":"SUM(C42*G42)","v":0}]
[null,null,null,null,null,null,null,{"$f":"SUM(C43*G43)","v":0}]
[null,null,null,null,null,null,null,0]
[null,null,null,null,null,null,null,0]
[null,null,null,null,null,null,null,0]
[null,null,null,null,null,null,null,0]
[null,null,null,null,null,null,null,0]
[null,null,null,null,null,null,null,{"$f":"SUM(C49*G49)","v":0}]
[null,null,null,null,null,null,null,{"$f":"SUM(C50*G50)","v":0}]
[null,null,null,null,null,null,null,{"$f":"SUM(C51*G51)","v":0}]
[null,null,null,null,null,"Subtotal",null,{"$f":"SUM(H32:H51)","v":0}]
[]
[null,null,null,null,null,"TOTAL",null,{"$f":"SUM(H26+H30+H52)","v":0}]
[]
[null,"* Sum of all plots "]

{"sheet":"Forecast-Sub3","index":181,"n_rows":155,"n_cols":24,"rows_kept":155,"cut":false,"hidden":true,"merged":[[0,0,1,13],[2,1,2,4],[2,6,2,7],[2,10,2,11],[2,15,2,16],[3,1,3,4],[3,6,3,7],[3,10,3,11],[3,15,3,16],[6,12,9,12],[6,13,9,13],[6,14,9,14],[6,15,9,15],[6,16,9,16],[6,17,9,17],[4,3,4,19],[6,3,9,3],[6,4,9,4],[6,5,9,5],[6,6,9,6],[6,7,9,7],[6,8,9,8],[6,9,9,9],[6,10,9,10],[6,11,9,11],[13,23,13,24],[14,23,14,24],[15,23,15,24],[16,23,16,24],[17,23,17,24],[18,23,18,24],[6,18,9,18],[6,19,9,19],[8,23,8,24],[10,23,10,24],[11,23,11,24],[12,23,12,24],[25,23,25,24],[26,23,26,24],[27,23,27,24],[28,23,28,24],[29,23,29,24],[30,23,30,24],[19,23,19,24],[20,23,20,24],[21,23,21,24],[22,23,22,24],[23,23,23,24],[24,23,24,24],[38,23,38,24],[39,23,39,24],[40,23,40,24],[41,23,41,24],[42,23,42,24],[43,23,43,24],[31,23,31,24],[33,23,33,24],[34,23,34,24],[35,23,35,24],[36,23,36,24],[37,23,37,24],[50,23,50,24],[51,23,51,24],[52,23,52,24],[53,23,53,24],[54,23,54,24],[55,23,55,24],[44,23,44,24],[45,23,45,24],[46,23,46,24],[47,23,47,24],[48,23,48,24],[49,23,49,24],[62,23,62,24],[63,23,63,24],[64,23,64,24],[65,23,65,24],[66,23,66,24],[67,23,67,24],[56,23,56,24],[57,23,57,24],[58,23,58,24],[59,23,59,24],[60,23,60,24],[61,23,61,24],[74,23,74,24],[75,23,75,24],[76,23,76,24],[77,23,77,24],[78,23,78,24],[79,23,79,24],[68,23,68,24],[69,23,69,24],[70,23,70,24],[71,23,71,24],[72,23,72,24],[73,23,73,24],[86,23,86,24],[87,23,87,24],[88,23,88,24],[89,23,89,24],[90,23,90,24],[91,23,91,24],[80,23,80,24],[81,23,81,24],[82,23,82,24],[83,23,83,24],[84,23,84,24],[85,23,85,24],[98,23,98,24],[99,23,99,24],[100,23,100,24],[101,23,101,24],[102,23,102,24],[103,23,103,24],[92,23,92,24],[93,23,93,24],[94,23,94,24],[95,23,95,24],[96,23,96,24],[97,23,97,24],[110,23,110,24],[111,23,111,24],[112,23,112,24],[113,23,113,24],[114,23,114,24],[115,23,115,24],[104,23,104,24],[105,23,105,24],[106,23,106,24],[107,23,107,24],[108,23,108,24],[109,23,109,24],[122,23,122,24],[123,23,123,24],[124,23,124,24],[125,23,125,24],[126,23,126,24],[127,23,127,24],[116,23,116,24],[117,23,117,24],[118,23,118,24],[119,23,119,24],[120,23,120,24],[121,23,121,24],[134,23,134,24],[135,23,135,24],[136,23,136,24],[137,23,137,24],[138,23,138,24],[139,23,139,24],[128,23,128,24],[129,23,129,24],[130,23,130,24],[131,23,131,24],[132,23,132,24],[133,23,133,24],[160,8,160,9],[160,10,160,11],[163,8,163,13],[164,8,164,9],[164,10,164,11],[165,8,165,9],[165,10,165,11],[154,1,155,1],[154,3,155,4],[158,3,158,6],[158,8,158,13],[159,8,159,9],[159,10,159,11]]}
["     TRAFFIC FORECAST--BREAKDOWN WORKSHEET - SUBCONSULTANT 3 -- ENTER WORKHOURS"]
[]
["PROJECT DESCRIPTION: ",{"$f":"PROJECT.DESCRIPTION","v":0},null,null,null,"FIRM:  ",{"$f":"TRAFFICFORECAST.SUB3_CONSULTANT_NAME","v":"CONSULTANT NAME"},null,"TASK ORDER NUMBER:",null,{"$f":"TASK.ORDER.NUMBER","v":0},null,"DATE PREPARED:",{"$f":"IF(SCOPE.MANDAY.ESTIMATE.PREPARED.BY.DATE=\"\",\"\",SCOPE.MANDAY.ESTIMATE.PREPARED.BY.DATE)","v":""}]
["PREPARED BY:  ",{"$f":"IF(SCOPE.MANDAY.ESTIMATE.PREPARED.BY=\"\",\"\",SCOPE.MANDAY.ESTIMATE.PREPARED.BY)","v":""},null,null,null,"TIP NUMBER:",{"$f":"TIP.NUMBER","v":0},null,"WBS NUMBER:",null,{"$f":"WBS.NUMBER","v":""},null,"REVISION DATE:",{"$f":"IF(SCOPE.MANDAY.ESTIMATE.APPROVED.BY.DATE=\"\",\"\",SCOPE.MANDAY.ESTIMATE.APPROVED.BY.DATE)","v":""}]
[null,null,null,"ESTIMATED WORKHOURS"]
[null,null,"EMPLOYEE NAMES",{"$f":"IF('PEF CLASSIFICATION SHEET'!D1621=\"\",\"\",LEFT('PEF CLASSIFICATION SHEET'!D1621,4))","v":""},{"$f":"IF('PEF CLASSIFICATION SHEET'!D1622=\"\",\"\",LEFT('PEF CLASSIFICATION SHEET'!D1622,4))","v":""},{"$f":"IF('PEF CLASSIFICATION SHEET'!D1623=\"\",\"\",LEFT('PEF CLASSIFICATION SHEET'!D1623,4))","v":""},{"$f":"IF('PEF CLASSIFICATION SHEET'!D1624=\"\",\"\",LEFT('PEF CLASSIFICATION SHEET'!D1624,4))","v":""},{"$f":"IF('PEF CLASSIFICATION SHEET'!D1625=\"\",\"\",LEFT('PEF CLASSIFICATION SHEET'!D1625,4))","v":""},{"$f":"IF('PEF CLASSIFICATION SHEET'!D1626=\"\",\"\",LEFT('PEF CLASSIFICATION SHEET'!D1626,4))","v":""},{"$f":"IF('PEF CLASSIFICATION SHEET'!D1627=\"\",\"\",LEFT('PEF CLASSIFICATION SHEET'!D1627,4))","v":""},{"$f":"IF('PEF CLASSIFICATION SHEET'!D1628=\"\",\"\",LEFT('PEF CLASSIFICATION SHEET'!D1628,4))","v":""},{"$f":"IF('PEF CLASSIFICATION SHEET'!D1629=\"\",\"\",LEFT('PEF CLASSIFICATION SHEET'!D1629,4))","v":""},{"$f":"IF('PEF CLASSIFICATION SHEET'!D1630=\"\",\"\",LEFT('PEF CLASSIFICATION SHEET'!D1630,4))","v":""},{"$f":"IF('PEF CLASSIFICATION SHEET'!D1631=\"\",\"\",LEFT('PEF CLASSIFICATION SHEET'!D1631,4))","v":""},{"$f":"IF('PEF CLASSIFICATION SHEET'!D1632=\"\",\"\",LEFT('PEF CLASSIFICATION SHEET'!D1632,4))","v":""},{"$f":"IF('PEF CLASSIFICATION SHEET'!D1633=\"\",\"\",LEFT('PEF CLASSIFICATION SHEET'!D1633,4))","v":""},{"$f":"IF('PEF CLASSIFICATION SHEET'!D1634=\"\",\"\",LEFT('PEF CLASSIFICATION SHEET'!D1634,4))","v":""},{"$f":"IF('PEF CLASSIFICATION SHEET'!D1635=\"\",\"\",LEFT('PEF CLASSIFICATION SHEET'!D1635,4))","v":""},{"$f":"IF('PEF CLASSIFICATION SHEET'!D1636=\"\",\"\",LEFT('PEF CLASSIFICATION SHEET'!D1636,4))","v":""},{"$f":"IF('PEF CLASSIFICATION SHEET'!D1637=\"\",\"\",LEFT('PEF CLASSIFICATION SHEET'!D1637,4))","v":""}]
[null,null,null,{"$f":"IF('PEF CLASSIFICATION SHEET'!C1621=\"\",\"\",'PEF CLASSIFICATION SHEET'!C1621)","v":""},{"$f":"IF('PEF CLASSIFICATION SHEET'!C1622=\"\",\"\",'PEF CLASSIFICATION SHEET'!C1622)","v":""},{"$f":"IF('PEF CLASSIFICATION SHEET'!C1623=\"\",\"\",'PEF CLASSIFICATION SHEET'!C1623)","v":""},{"$f":"IF('PEF CLASSIFICATION SHEET'!C1624=\"\",\"\",'PEF CLASSIFICATION SHEET'!C1624)","v":""},{"$f":"IF('PEF CLASSIFICATION SHEET'!C1625=\"\",\"\",'PEF CLASSIFICATION SHEET'!C1625)","v":""},{"$f":"IF('PEF CLASSIFICATION SHEET'!C1626=\"\",\"\",'PEF CLASSIFICATION SHEET'!C1626)","v":""},{"$f":"IF('PEF CLASSIFICATION SHEET'!C1627=\"\",\"\",'PEF CLASSIFICATION SHEET'!C1627)","v":""},{"$f":"IF('PEF CLASSIFICATION SHEET'!C1628=\"\",\"\",'PEF CLASSIFICATION SHEET'!C1628)","v":""},{"$f":"IF('PEF CLASSIFICATION SHEET'!C1629=\"\",\"\",'PEF CLASSIFICATION SHEET'!C1629)","v":""},{"$f":"IF('PEF CLASSIFICATION SHEET'!C1630=\"\",\"\",'PEF CLASSIFICATION SHEET'!C1630)","v":""},{"$f":"IF('PEF CLASSIFICATION SHEET'!C1631=\"\",\"\",'PEF CLASSIFICATION SHEET'!C1631)","v":""},{"$f":"IF('PEF CLASSIFICATION SHEET'!C1632=\"\",\"\",'PEF CLASSIFICATION SHEET'!C1632)","v":""},{"$f":"IF('PEF CLASSIFICATION SHEET'!C1633=\"\",\"\",'PEF CLASSIFICATION SHEET'!C1633)","v":""},{"$f":"IF('PEF CLASSIFICATION SHEET'!C1634=\"\",\"\",'PEF CLASSIFICATION SHEET'!C1634)","v":""},{"$f":"IF('PEF CLASSIFICATION SHEET'!C1635=\"\",\"\",'PEF CLASSIFICATION SHEET'!C1635)","v":""},{"$f":"IF('PEF CLASSIFICATION SHEET'!C1636=\"\",\"\",'PEF CLASSIFICATION SHEET'!C1636)","v":""},{"$f":"IF('PEF CLASSIFICATION SHEET'!C1637=\"\",\"\",'PEF CLASSIFICATION SHEET'!C1637)","v":""},"SUB-","%","PEF"]
[null,null,null,null,null,null,null,null,null,null,null,null,null,null,null,null,null,null,null,null,"TOTAL","OF","ESTIMATE"]
["TASK","TASK DESCRIPTION","CLASSIFICATION",null,null,null,null,null,null,null,null,null,null,null,null,null,null,null,null,null,null,"PROJECT",null,"COMMENTS"]
["NO."]
[1,"COLLECT AND REVIEW DATA"]
[1.1000000000000001,"     Collect Existing Data",null,null,null,null,null,null,null,null,null,null,null,null,null,null,null,null,null,null,{"$f":"SUM(D12:T12)","v":0},{"$f":"SUM((U12/$U$141))","v":{"$error":"#DIV/0!"}}]
[1.2,"     Review and Analyze Existing Data; Calculate Growth Rates",null,null,null,null,null,null,null,null,null,null,null,null,null,null,null,null,null,null,{"$f":"SUM(D13:T13)","v":0},{"$f":"SUM((U13/$U$141))","v":{"$error":"#DIV/0!"}}]
[1.3,"     Collect Field Data",null,null,null,null,null,null,null,null,null,null,null,null,null,null,null,null,null,null,0,{"$error":"#DIV/0!"}]
[1.4,"     Convert to AADT",null,null,null,null,null,null,null,null,null,null,null,null,null,null,null,null,null,null,0,{"$error":"#DIV/0!"}]
[1.5,"     Project Kickoff Meeting",null,null,null,null,null,null,null,null,null,null,null,null,null,null,null,null,null,null,0,{"$error":"#DIV/0!"}]
[null,null,null,null,null,null,null,null,null,null,null,null,null,null,null,null,null,null,null,null,0,{"$error":"#DIV/0!"}]
[2,"PREPARE BASE YEAR NO BUILD (BY NB) ESTIMATE"]
[2.1,"     Develop and Balance BY NB Estimate",null,null,null,null,null,null,null,null,null,null,null,null,null,null,null,null,null,null,0,{"$error":"#DIV/0!"}]
[2.2000000000000002,"     Develop BY NB Design Data",null,null,null,null,null,null,null,null,null,null,null,null,null,null,null,null,null,null,0,{"$error":"#DIV/0!"}]
[2.2999999999999998,"     Develop BY NB Traffic Forecast Diagrams",null,null,null,null,null,null,null,null,null,null,null,null,null,null,null,null,null,null,0,{"$error":"#DIV/0!"}]
[null,null,null,null,null,null,null,null,null,null,null,null,null,null,null,null,null,null,null,null,0,{"$error":"#DIV/0!"}]
[3,"MODEL REVIEW"]
[3.1,"     Review Model Validation",null,null,null,null,null,null,null,null,null,null,null,null,null,null,null,null,null,null,0,{"$error":"#DIV/0!"}]
[3.2,"     Review Networks Project Corridor",null,null,null,null,null,null,null,null,null,null,null,null,null,null,null,null,null,null,0,{"$error":"#DIV/0!"}]
[null,null,null,null,null,null,null,null,null,null,null,null,null,null,null,null,null,null,null,null,0,{"$error":"#DIV/0!"}]
[4,"DEVELOP BASE YEAR BUILD (BY B) FORECAST"]
[4.0999999999999996,"     Modify Model",null,null,null,null,null,null,null,null,null,null,null,null,null,null,null,null,null,null,0,{"$error":"#DIV/0!"}]
[4.2,"     Utilize Model",null,null,null,null,null,null,null,null,null,null,null,null,null,null,null,null,null,null,0,{"$error":"#DIV/0!"}]
[4.3,"     Develop and Balance BY B Traffic Forecast"]
["4.3.1","          Develop and Apply Model Diversion",null,null,null,null,null,null,null,null,null,null,null,null,null,null,null,null,null,null,0,{"$error":"#DIV/0!"}]
["4.3.2","          Review / Analyze",null,null,null,null,null,null,null,null,null,null,null,null,null,null,null,null,null,null,0,{"$error":"#DIV/0!"}]
["4.3.3","          Balance",null,null,null,null,null,null,null,null,null,null,null,null,null,null,null,null,null,null,0,{"$error":"#DIV/0!"}]
[null,null,null,null,null,null,null,null,null,null,null,null,null,null,null,null,null,null,null,null,0,{"$error":"#DIV/0!"}]
[4.4000000000000004,"     Develop BY B Design Data",null,null,null,null,null,null,null,null,null,null,null,null,null,null,null,null,null,null,0,{"$error":"#DIV/0!"}]
[4.5,"     Develop BY B Traffic Forecast Diagram(s)",null,null,null,null,null,null,null,null,null,null,null,null,null,null,null,null,null,null,0,{"$error":"#DIV/0!"}]
[null,null,null,null,null,null,null,null,null,null,null,null,null,null,null,null,null,null,null,null,0,{"$error":"#DIV/0!"}]
[5,"DEVELOP INTERIM YEAR NO BUILD (IY NB) FORECAST"]
[5.0999999999999996,"     Modify Model",null,null,null,null,null,null,null,null,null,null,null,null,null,null,null,null,null,null,0,{"$error":"#DIV/0!"}]
[5.2,"     Utilize Model",null,null,null,null,null,null,null,null,null,null,null,null,null,null,null,null,null,null,0,{"$error":"#DIV/0!"}]
[5.3,"     Develop and Balance IY NB Forecast"]
["5.3.1","          Develop and Apply Model Growth",null,null,null,null,null,null,null,null,null,null,null,null,null,null,null,null,null,null,0,{"$error":"#DIV/0!"}]
["5.3.2","          Develop and Apply Historic Growth",null,null,null,null,null,null,null,null,null,null,null,null,null,null,null,null,null,null,0,{"$error":"#DIV/0!"}]
["5.3.3","          Review / Analyze",null,null,null,null,null,null,null,null,null,null,null,null,null,null,null,null,null,null,0,{"$error":"#DIV/0!"}]
["5.3.4","          Balance",null,null,null,null,null,null,null,null,null,null,null,null,null,null,null,null,null,null,0,{"$error":"#DIV/0!"}]
[null,null,null,null,null,null,null,null,null,null,null,null,null,null,null,null,null,null,null,null,0,{"$error":"#DIV/0!"}]
[5.4,"     Develop IY NB Design Data",null,null,null,null,null,null,null,null,null,null,null,null,null,null,null,null,null,null,0,{"$error":"#DIV/0!"}]
[5.5,"     Develop IY NB Traffic Forecast Diagram(s)",null,null,null,null,null,null,null,null,null,null,null,null,null,null,null,null,null,null,0,{"$error":"#DIV/0!"}]
[null,null,null,null,null,null,null,null,null,null,null,null,null,null,null,null,null,null,null,null,0,{"$error":"#DIV/0!"}]
[6,"DEVELOP INTERIM YEAR (IY B) FORECAST"]
[6.1,"     Modify Model",null,null,null,null,null,null,null,null,null,null,null,null,null,null,null,null,null,null,0,{"$error":"#DIV/0!"}]
[6.2,"     Utilize Model",null,null,null,null,null,null,null,null,null,null,null,null,null,null,null,null,null,null,0,{"$error":"#DIV/0!"}]
[6.3,"     Develop and Balance IY B Forecast"]
["6.3.1","          Develop and Apply Model Diversion",null,null,null,null,null,null,null,null,null,null,null,null,null,null,null,null,null,null,0,{"$error":"#DIV/0!"}]
["6.3.2","          Review / Analyze",null,null,null,null,null,null,null,null,null,null,null,null,null,null,null,null,null,null,0,{"$error":"#DIV/0!"}]
["6.3.3","          Balance",null,null,null,null,null,null,null,null,null,null,null,null,null,null,null,null,null,null,0,{"$error":"#DIV/0!"}]
[null,null,null,null,null,null,null,null,null,null,null,null,null,null,null,null,null,null,null,null,0,{"$error":"#DIV/0!"}]
[6.4,"     Develop IY B Design Data",null,null,null,null,null,null,null,null,null,null,null,null,null,null,null,null,null,null,0,{"$error":"#DIV/0!"}]
[6.5,"     Develop IY B Traffic Forecast Diagram(s)",null,null,null,null,null,null,null,null,null,null,null,null,null,null,null,null,null,null,0,{"$error":"#DIV/0!"}]
[null,null,null,null,null,null,null,null,null,null,null,null,null,null,null,null,null,null,null,null,0,{"$error":"#DIV/0!"}]
[7,"DEVELOP FUTURE YEAR NO BUILD (FY NB) FORECAST"]
[7.1,"     Modify Model",null,null,null,null,null,null,null,null,null,null,null,null,null,null,null,null,null,null,0,{"$error":"#DIV/0!"}]
[7.2,"     Utilize Model",null,null,null,null,null,null,null,null,null,null,null,null,null,null,null,null,null,null,0,{"$error":"#DIV/0!"}]
[7.3,"     Develop and Balance FY NB Forecast"]
["7.3.1","          Develop and Apply Model Growth",null,null,null,null,null,null,null,null,null,null,null,null,null,null,null,null,null,null,0,{"$error":"#DIV/0!"}]
["7.3.2","          Develop and Apply Historic Growth",null,null,null,null,null,null,null,null,null,null,null,null,null,null,null,null,null,null,0,{"$error":"#DIV/0!"}]
["7.3.3","          Review / Analyze",null,null,null,null,null,null,null,null,null,null,null,null,null,null,null,null,null,null,0,{"$error":"#DIV/0!"}]
["7.3.4","          Balance",null,null,null,null,null,null,null,null,null,null,null,null,null,null,null,null,null,null,0,{"$error":"#DIV/0!"}]
[null,null,null,null,null,null,null,null,null,null,null,null,null,null,null,null,null,null,null,null,0,{"$error":"#DIV/0!"}]
[7.4,"     Develop FY NB Design Data",null,null,null,null,null,null,null,null,null,null,null,null,null,null,null,null,null,null,0,{"$error":"#DIV/0!"}]
[7.5,"     Develop FY NB Traffic Forecast Diagrams",null,null,null,null,null,null,null,null,null,null,null,null,null,null,null,null,null,null,0,{"$error":"#DIV/0!"}]
[null,null,null,null,null,null,null,null,null,null,null,null,null,null,null,null,null,null,null,null,0,{"$error":"#DIV/0!"}]
[8,"DEVELOP FUTURE YEAR BUILD (FY B) FORECAST"]
[8.1,"     Modify Model",null,null,null,null,null,null,null,null,null,null,null,null,null,null,null,null,null,null,0,{"$error":"#DIV/0!"}]
[8.1999999999999993,"     Utilize Model",null,null,null,null,null,null,null,null,null,null,null,null,null,null,null,null,null,null,0,{"$error":"#DIV/0!"}]
[8.3000000000000007,"     Develop and Balance FY B Forecast"]
["8.3.1","          Develop and Apply Model Diversion",null,null,null,null,null,null,null,null,null,null,null,null,null,null,null,null,null,null,{"$f":"SUM(D77:T77)","v":0},{"$f":"SUM((U77/$U$141))","v":{"$error":"#DIV/0!"}}]
["8.3.2","          Review / Analyze",null,null,null,null,null,null,null,null,null,null,null,null,null,null,null,null,null,null,0,{"$error":"#DIV/0!"}]
["8.3.3","          Balance",null,null,null,null,null,null,null,null,null,null,null,null,null,null,null,null,null,null,0,{"$error":"#DIV/0!"}]
[null,null,null,null,null,null,null,null,null,null,null,null,null,null,null,null,null,null,null,null,0,{"$error":"#DIV/0!"}]
[8.4,"     Develop FY B Design Data",null,null,null,null,null,null,null,null,null,null,null,null,null,null,null,null,null,null,0,{"$error":"#DIV/0!"}]
[8.5,"     Develop FY B Traffic Forecast Diagrams",null,null,null,null,null,null,null,null,null,null,null,null,null,null,null,null,null,null,0,{"$error":"#DIV/0!"}]
[null,null,null,null,null,null,null,null,null,null,null,null,null,null,null,null,null,null,null,null,0,{"$error":"#DIV/0!"}]
[9,"INTERIM REVIEW"]
[null,null,null,null,null,null,null,null,null,null,null,null,null,null,null,null,null,null,null,null,0,{"$error":"#DIV/0!"}]
[10,"DEVELOP DRAFT TRAFFIC FORECAST REPORT"]
[null,null,null,null,null,null,null,null,null,null,null,null,null,null,null,null,null,null,null,null,0,{"$error":"#DIV/0!"}]
[11,"REFINE TRAFFIC FORECAST AND REPORT"]
[null,null,null,null,null,null,null,null,null,null,null,null,null,null,null,null,null,null,null,null,0,{"$error":"#DIV/0!"}]
[12,"TRAFFIC FORECAST COMPLETION AND DELIVERY"]
[null,null,null,null,null,null,null,null,null,null,null,null,null,null,null,null,null,null,null,null,0,{"$error":"#DIV/0!"}]
[13,"PROJECT SCHEDULE"]
[null,null,null,null,null,null,null,null,null,null,null,null,null,null,null,null,null,null,null,null,0,{"$error":"#DIV/0!"}]
[14,"PROJECT COORDINATION"]
[null,null,null,null,null,null,null,null,null,null,null,null,null,null,null,null,null,null,null,null,0,{"$error":"#DIV/0!"}]
[15,"MEETINGS AND MEETING FOLLOW UP"]
[15.1,"    NCDOT Meetings and Site Visits",null,null,null,null,null,null,null,null,null,null,null,null,null,null,null,null,null,null,0,{"$error":"#DIV/0!"}]
[15.2,"    Stakeholder Meetings",null,null,null,null,null,null,null,null,null,null,null,null,null,null,null,null,null,null,0,{"$error":"#DIV/0!"}]
[15.3,"    Meeting Follow-up",null,null,null,null,null,null,null,null,null,null,null,null,null,null,null,null,null,null,0,{"$error":"#DIV/0!"}]
[null,null,null,null,null,null,null,null,null,null,null,null,null,null,null,null,null,null,null,null,0,{"$error":"#DIV/0!"}]
[null,null,null,null,null,null,null,null,null,null,null,null,null,null,null,null,null,null,null,null,0,{"$error":"#DIV/0!"}]
[null,null,null,null,null,null,null,null,null,null,null,null,null,null,null,null,null,null,null,null,0,{"$error":"#DIV/0!"}]
[null,null,null,null,null,null,null,null,null,null,null,null,null,null,null,null,null,null,null,null,0,{"$error":"#DIV/0!"}]
[null,null,null,null,null,null,null,null,null,null,null,null,null,null,null,null,null,null,null,null,0,{"$error":"#DIV/0!"}]
[null,null,null,null,null,null,null,null,null,null,null,null,null,null,null,null,null,null,null,null,0,{"$error":"#DIV/0!"}]
[null,null,null,null,null,null,null,null,null,null,null,null,null,null,null,null,null,null,null,null,0,{"$error":"#DIV/0!"}]
[null,null,null,null,null,null,null,null,null,null,null,null,null,null,null,null,null,null,null,null,0,{"$error":"#DIV/0!"}]
[null,null,null,null,null,null,null,null,null,null,null,null,null,null,null,null,null,null,null,null,0,{"$error":"#DIV/0!"}]
[null,null,null,null,null,null,null,null,null,null,null,null,null,null,null,null,null,null,null,null,0,{"$error":"#DIV/0!"}]
[null,null,null,null,null,null,null,null,null,null,null,null,null,null,null,null,null,null,null,null,0,{"$error":"#DIV/0!"}]
[null,null,null,null,null,null,null,null,null,null,null,null,null,null,null,null,null,null,null,null,0,{"$error":"#DIV/0!"}]
[null,null,null,null,null,null,null,null,null,null,null,null,null,null,null,null,null,null,null,null,0,{"$error":"#DIV/0!"}]
[null,null,null,null,null,null,null,null,null,null,null,null,null,null,null,null,null,null,null,null,0,{"$error":"#DIV/0!"}]
[null,null,null,null,null,null,null,null,null,null,null,null,null,null,null,null,null,null,null,null,0,{"$error":"#DIV/0!"}]
[null,null,null,null,null,null,null,null,null,null,null,null,null,null,null,null,null,null,null,null,0,{"$error":"#DIV/0!"}]
[null,null,null,null,null,null,null,null,null,null,null,null,null,null,null,null,null,null,null,null,0,{"$error":"#DIV/0!"}]
[null,null,null,null,null,null,null,null,null,null,null,null,null,null,null,null,null,null,null,null,0,{"$error":"#DIV/0!"}]
[null,null,null,null,null,null,null,null,null,null,null,null,null,null,null,null,null,null,null,null,0,{"$error":"#DIV/0!"}]
[null,null,null,null,null,null,null,null,null,null,null,null,null,null,null,null,null,null,null,null,0,{"$error":"#DIV/0!"}]
[null,null,null,null,null,null,null,null,null,null,null,null,null,null,null,null,null,null,null,null,0,{"$error":"#DIV/0!"}]
[null,null,null,null,null,null,null,null,null,null,null,null,null,null,null,null,null,null,null,null,0,{"$error":"#DIV/0!"}]
[null,null,null,null,null,null,null,null,null,null,null,null,null,null,null,null,null,null,null,null,0,{"$error":"#DIV/0!"}]
[null,null,null,null,null,null,null,null,null,null,null,null,null,null,null,null,null,null,null,null,0,{"$error":"#DIV/0!"}]
[null,null,null,null,null,null,null,null,null,null,null,null,null,null,null,null,null,null,null,null,0,{"$error":"#DIV/0!"}]
[null,null,null,null,null,null,null,null,null,null,null,null,null,null,null,null,null,null,null,null,0,{"$error":"#DIV/0!"}]
[null,null,null,null,null,null,null,null,null,null,null,null,null,null,null,null,null,null,null,null,0,{"$error":"#DIV/0!"}]
[null,null,null,null,null,null,null,null,null,null,null,null,null,null,null,null,null,null,null,null,0,{"$error":"#DIV/0!"}]
[null,null,null,null,null,null,null,null,null,null,null,null,null,null,null,null,null,null,null,null,0,{"$error":"#DIV/0!"}]
[null,null,null,null,null,null,null,null,null,null,null,null,null,null,null,null,null,null,null,null,0,{"$error":"#DIV/0!"}]
[null,null,null,null,null,null,null,null,null,null,null,null,null,null,null,null,null,null,null,null,0,{"$error":"#DIV/0!"}]
[null,null,null,null,null,null,null,null,null,null,null,null,null,null,null,null,null,null,null,null,0,{"$error":"#DIV/0!"}]
[null,null,null,null,null,null,null,null,null,null,null,null,null,null,null,null,null,null,null,null,0,{"$error":"#DIV/0!"}]
[null,null,null,null,null,null,null,null,null,null,null,null,null,null,null,null,null,null,null,null,0,{"$error":"#DIV/0!"}]
[null,null,null,null,null,null,null,null,null,null,null,null,null,null,null,null,null,null,null,null,0,{"$error":"#DIV/0!"}]
[null,null,null,null,null,null,null,null,null,null,null,null,null,null,null,null,null,null,null,null,0,{"$error":"#DIV/0!"}]
[null,null,null,null,null,null,null,null,null,null,null,null,null,null,null,null,null,null,null,null,0,{"$error":"#DIV/0!"}]
[null,null,null,null,null,null,null,null,null,null,null,null,null,null,null,null,null,null,null,null,0,{"$error":"#DIV/0!"}]
[null,null,null,null,null,null,null,null,null,null,null,null,null,null,null,null,null,null,null,null,0,{"$error":"#DIV/0!"}]
[null,null,null,null,null,null,null,null,null,null,null,null,null,null,null,null,null,null,null,null,0,{"$error":"#DIV/0!"}]
[null,null,null,null,null,null,null,null,null,null,null,null,null,null,null,null,null,null,null,null,0,{"$error":"#DIV/0!"}]
[null,"TOTAL WORKHOURS/CATEGORY:",null,{"$f":"SUM(D11:D140)","v":0},0,0,0,0,0,0,0,0,0,0,0,0,0,0,0,0,0,{"$error":"#DIV/0!"},{"$f":"SUM(W12:W140)","v":0}]
[null,"TOTAL WORKDAYS/CATEGORY:",null,{"$f":"D141/8","v":0},{"$f":"E141/8","v":0},0,0,0,0,0,0,0,0,0,0,0,0,0,0,0]
[null,"HOURLY SALARY RATE:",null,{"$f":"'PEF CLASSIFICATION SHEET'!E1621","v":0},{"$f":"'PEF CLASSIFICATION SHEET'!E1622","v":0},{"$f":"'PEF CLASSIFICATION SHEET'!E1623","v":0},{"$f":"'PEF CLASSIFICATION SHEET'!E1624","v":0},{"$f":"'PEF CLASSIFICATION SHEET'!E1625","v":0},{"$f":"'PEF CLASSIFICATION SHEET'!E1626","v":0},{"$f":"'PEF CLASSIFICATION SHEET'!E1627","v":0},{"$f":"'PEF CLASSIFICATION SHEET'!E1628","v":0},{"$f":"'PEF CLASSIFICATION SHEET'!E1629","v":0},{"$f":"'PEF CLASSIFICATION SHEET'!E1630","v":0},{"$f":"'PEF CLASSIFICATION SHEET'!E1631","v":0},{"$f":"'PEF CLASSIFICATION SHEET'!E1632","v":0},{"$f":"'PEF CLASSIFICATION SHEET'!E1633","v":0},{"$f":"'PEF CLASSIFICATION SHEET'!E1634","v":0},{"$f":"'PEF CLASSIFICATION SHEET'!E1635","v":0},{"$f":"'PEF CLASSIFICATION SHEET'!E1636","v":0},{"$f":"'PEF CLASSIFICATION SHEET'!E1637","v":0}]
[null,"RATES PER DAY:",null,{"$f":"D143*8","v":0},0,0,0,0,0,0,0,0,0,0,0,0,0,0,0,0]
[null,"PAYROLL BURDEN:",null,{"$f":"SUM(D141*D143)","v":0},{"$f":"SUM(E141*E143)","v":0},0,0,0,0,0,0,0,0,0,0,0,0,0,0,0]
[null,"TOTAL WORKDAYS:",null,{"$f":"SUM(D142:T142)","v":0}]
[null,"TOTAL PAYROLL BURDEN:",null,{"$f":"SUM(D145:T145)","v":0}]
[null,"AVERAGE COST PER HOUR:",null,{"$f":"SUM(D147/(D146*8))","v":{"$error":"#DIV/0!"}}]
[null,"GENERAL OVERHEAD:",{"$f":"TRAFFICFORECAST.SUB3_CONSULTANT_OVERHEAD","v":0},{"$f":"SUM(D147*C149)","v":0}]
[null,"SUBTOTAL:",null,{"$f":"SUM(D147+D149)","v":0}]
[null,"COMPARATIVE FEE:",{"$f":"TRAFFICFORECAST.SUB3_CONSULTANT_FEE","v":0.09},{"$f":"SUM(D150*C151)","v":0}]
[null,"FACILITIES COST OF CAPITAL:",{"$f":"TRAFFICFORECAST.SUB3_CONSULTANT_COSTofCAPITAL","v":0},{"$f":"SUM(D147*C152)","v":0}]
[null,"TOTAL:",null,{"$f":"SUM(D150:D152)","v":0}]
[null,"DIRECT EXPENSES:",null,{"$f":"TRAFFICFORECAST.SUB3_DIRECT_NONSALARY_TOTAL","v":0}]
[null,"TRAFFIC FORECAST GRAND TOTAL:",null,{"$f":"SUM(D153:D154)","v":0}]

{"sheet":"Forecast-Exp-Sub3","index":182,"n_rows":56,"n_cols":8,"rows_kept":56,"cut":false,"hidden":true,"merged":[[0,0,0,7],[1,3,1,7]]}
["TRAFFIC FORECAST--DIRECT EXPENSES - SUBCONSULTANT 3"]
["TIP NUMBER",{"$f":"TIP.NUMBER","v":0},"FIRM:",{"$f":"'Forecast-Sub3'!G3","v":"CONSULTANT NAME"}]
[]
["GENERAL PROJECT WORK:","ITEM","QTY","DESCRIPTION",null,null,"UNIT COST "]
[null,"Travel:"]
[null,"Sedan",0,"Trip(s) @",0,"miles @",{"$f":"SEDAN","v":0.7},{"$f":"SUM(C6*E6*G6)","v":0}]
[null,"Carry All",0,"Trip(s) @",0,"miles @",{"$f":"CARRYALL","v":0.72},{"$f":"SUM(C7*E7*G7)","v":0}]
[null,"Car Rental",null,null,0,"days @ ",{"$f":"CARRENTAL","v":50},{"$f":"SUM(E8*G8)","v":0}]
[null,"Gas for Rental",null,null,0,"miles @",{"$f":"GASforRENTAL","v":0.2},{"$f":"SUM(E9*G9)","v":0}]
[null,"Parking:",0,"Trip(s) @",null,null,{"$f":"PARKING","v":3},{"$f":"SUM(C10*G10)","v":0}]
[null,"Per Diem:",0,"Breakfast",null,null,{"$f":"BREAKFAST","v":10.1},{"$f":"SUM(C11*G11)","v":0}]
[null,null,0,"Lunch",null,null,{"$f":"LUNCH","v":13.3},0]
[null,null,0,"Dinner",null,null,{"$f":"DINNER","v":23.1},0]
[null,null,0,"Lodging",null,null,{"$f":"LODGING_LUMP.SUM","v":95},0]
[null,"Reproduction:",0,"8 1/2 x 11 B & W Copies @",null,null,{"$f":"LETTERCOPIES","v":0.14000000000000001},0]
[null,null,0,"11 x 17 B & W Copies @",null,null,{"$f":"LEDGERCOPIES","v":0.34},0]
[null,null,0,"8 1/2 x 11 Color Copies @",null,null,{"$f":"LETTERCOLOR","v":0.83},0]
[null,null,0,"11 x 17 Color Copies @",null,null,{"$f":"LEDGERCOLOR","v":1.66},0]
[null,null,0,"SQ. FT. of Plots (B & W or Color)",null,"<65 SQ. FT.*",{"$f":"ROLLPLOTSshort","v":6.5},0]
[null,null,0,"SQ. FT. of Plots (B & W or Color)",null,">65 SQ. FT.*",{"$f":"ROLLPLOTSlong","v":1.5},0]
[null,null,0,"Cover(s) @",null,null,{"$f":"COVERS","v":0.5},0]
[null,null,0,"Binder(s) @",null,null,{"$f":"BINDERS","v":0.5},0]
[null,null,0,"Blueprints - 8 1/2 x 11 @",null,null,{"$f":"BLUEPRINTSLETTER","v":0.35},0]
[null,null,0,"Blueprints - 42 x 72 @",null,null,{"$f":"BLUEPRINTSLARGE","v":1.3},0]
[null,"Film and Developing:",0,"Roll(s) @",null,null,{"$f":"FILM","v":20},0]
[null,null,null,null,null,"Subtotal",null,{"$f":"SUM(H6:H25)","v":0}]
["MAPS AND DOCUMENTS:","ITEM","QTY","DESCRIPTION",null,null,"UNIT COST "]
[null,"County Tax Maps:",0,"Map(s) @",null,null,{"$f":"County_Tax_Maps","v":7},{"$f":"SUM(C28*G28)","v":0}]
[null,"USGS Maps:",0,"Map(s) @",null,null,{"$f":"USGSMAPS","v":7},{"$f":"SUM(C29*G29)","v":0}]
[null,null,null,null,null,"Subtotal",null,{"$f":"SUM(H28:H29)","v":0}]
["Miscellaneous Other","ITEM","QTY","DESCRIPTION",null,null,"UNIT COST "]
[null,null,null,null,null,null,null,{"$f":"SUM(C32*G32)","v":0}]
[null,null,null,null,null,null,null,{"$f":"SUM(C33*G33)","v":0}]
[null,null,null,null,null,null,null,0]
[null,null,null,null,null,null,null,0]
[null,null,null,null,null,null,null,0]
[null,null,null,null,null,null,null,0]
[null,null,null,null,null,null,null,0]
[null,null,null,null,null,null,null,0]
[null,null,null,null,null,null,null,0]
[null,null,null,null,null,null,null,{"$f":"SUM(C41*G41)","v":0}]
[null,null,null,null,null,null,null,{"$f":"SUM(C42*G42)","v":0}]
[null,null,null,null,null,null,null,{"$f":"SUM(C43*G43)","v":0}]
[null,null,null,null,null,null,null,0]
[null,null,null,null,null,null,null,0]
[null,null,null,null,null,null,null,0]
[null,null,null,null,null,null,null,0]
[null,null,null,null,null,null,null,0]
[null,null,null,null,null,null,null,{"$f":"SUM(C49*G49)","v":0}]
[null,null,null,null,null,null,null,{"$f":"SUM(C50*G50)","v":0}]
[null,null,null,null,null,null,null,{"$f":"SUM(C51*G51)","v":0}]
[null,null,null,null,null,"Subtotal",null,{"$f":"SUM(H32:H51)","v":0}]
[]
[null,null,null,null,null,"TOTAL",null,{"$f":"SUM(H26+H30+H52)","v":0}]
[]
[null,"* Sum of all plots "]

{"sheet":"UT-Coord-Sub1","index":183,"n_rows":50,"n_cols":19,"rows_kept":50,"cut":false,"hidden":true,"merged":[[49,1,49,2],[49,4,49,5],[45,0,45,7],[46,1,46,2],[46,4,46,5],[47,1,47,2],[47,4,47,5],[48,1,48,2],[48,4,48,5],[24,0,24,1],[24,11,24,12],[24,13,24,14],[25,0,25,1],[25,11,29,12],[25,13,29,14],[26,0,26,1],[27,0,27,1],[28,0,28,1],[21,0,21,1],[21,13,21,14],[22,0,22,1],[22,13,22,14],[23,0,23,1],[23,11,23,12],[23,13,23,14],[16,13,16,14],[17,13,17,14],[18,13,18,14],[19,13,19,14],[20,0,20,1],[20,11,20,12],[20,13,20,14],[13,13,13,14],[13,15,13,18],[14,13,14,14],[14,15,14,18],[15,13,15,14],[15,15,15,18],[10,13,10,14],[10,15,10,18],[11,13,11,14],[11,15,11,18],[12,13,12,14],[12,15,12,18],[9,13,9,14],[9,15,9,18],[0,8,0,9],[2,0,2,1],[2,2,2,4],[3,0,3,1],[3,2,3,4],[5,8,5,9],[6,13,6,14],[7,13,7,14],[7,15,7,18],[8,13,8,14],[8,15,8,18]]}
["Project ","TIP",{"$f":"IF(TIP.NUMBER=\"\",\"\",TIP.NUMBER)","v":""},"WBS PE",null,"WBS UT",null,"County",{"$f":"IF(COUNTY=\"\",\"\",COUNTY)","v":""}]
[]
["Professional Services Firm Name",null,{"$f":"UTILITIES.COORDINATION_SUB1_CONSULTANT_NAME","v":"CONSULTANT NAME"}]
["Contract official",null,{"$f":"IF(SCOPE.MANDAY.ESTIMATE.PREPARED.BY=\"\",\"\",SCOPE.MANDAY.ESTIMATE.PREPARED.BY)","v":""}]
[]
["Task Order I  - UTILITY COORDINATION - SUB1",null,null,null,null,null,null,"Use WBS PE ",{"$f":"$E$1","v":0},null,null,null,null,null,null,{"$f":"P41","v":0},{"$f":"Q41","v":0},{"$f":"R41","v":0}]
["Classification/Name",{"$f":"IF('PEF CLASSIFICATION SHEET'!$C$1640=\"\",\"\",'PEF CLASSIFICATION SHEET'!$C$1640)","v":"Utility Coordination Supervisor"},{"$f":"IF('PEF CLASSIFICATION SHEET'!$C$1641=\"\",\"\",'PEF CLASSIFICATION SHEET'!$C$1641)","v":"Senior Utility Coordinator"},{"$f":"IF('PEF CLASSIFICATION SHEET'!$C$1642=\"\",\"\",'PEF CLASSIFICATION SHEET'!$C$1642)","v":"Utility Coordinator"},{"$f":"IF('PEF CLASSIFICATION SHEET'!$C$1643=\"\",\"\",'PEF CLASSIFICATION SHEET'!$C$1643)","v":"Junior Technician"},{"$f":"IF('PEF CLASSIFICATION SHEET'!$C$1644=\"\",\"\",'PEF CLASSIFICATION SHEET'!$C$1644)","v":"MISCELLANEOUS1"},{"$f":"IF('PEF CLASSIFICATION SHEET'!$C$1645=\"\",\"\",'PEF CLASSIFICATION SHEET'!$C$1645)","v":"MISCELLANEOUS2"},{"$f":"IF('PEF CLASSIFICATION SHEET'!$C$1646=\"\",\"\",'PEF CLASSIFICATION SHEET'!$C$1646)","v":"MISCELLANEOUS3"},{"$f":"IF('PEF CLASSIFICATION SHEET'!$C$1647=\"\",\"\",'PEF CLASSIFICATION SHEET'!$C$1647)","v":""},{"$f":"IF('PEF CLASSIFICATION SHEET'!$C$1648=\"\",\"\",'PEF CLASSIFICATION SHEET'!$C$1648)","v":""},{"$f":"IF('PEF CLASSIFICATION SHEET'!$C$1649=\"\",\"\",'PEF CLASSIFICATION SHEET'!$C$1649)","v":""},{"$f":"IF('PEF CLASSIFICATION SHEET'!$C$1650=\"\",\"\",'PEF CLASSIFICATION SHEET'!$C$1650)","v":""},{"$f":"IF('PEF CLASSIFICATION SHEET'!$C$1651=\"\",\"\",'PEF CLASSIFICATION SHEET'!$C$1651)","v":""},"SubTotal"]
["Project Estimate",{"$f":"IF('PEF CLASSIFICATION SHEET'!$D$1640=\"\",\"\",'PEF CLASSIFICATION SHEET'!$D$1640)","v":""},{"$f":"IF('PEF CLASSIFICATION SHEET'!$D$1641=\"\",\"\",'PEF CLASSIFICATION SHEET'!$D$1641)","v":""},{"$f":"IF('PEF CLASSIFICATION SHEET'!$D$1642=\"\",\"\",'PEF CLASSIFICATION SHEET'!$D$1642)","v":""},{"$f":"IF('PEF CLASSIFICATION SHEET'!$D$1643=\"\",\"\",'PEF CLASSIFICATION SHEET'!$D$1643)","v":""},{"$f":"IF('PEF CLASSIFICATION SHEET'!$D$1644=\"\",\"\",'PEF CLASSIFICATION SHEET'!$D$1644)","v":""},{"$f":"IF('PEF CLASSIFICATION SHEET'!$D$1645=\"\",\"\",'PEF CLASSIFICATION SHEET'!$D$1645)","v":""},{"$f":"IF('PEF CLASSIFICATION SHEET'!$D$1646=\"\",\"\",'PEF CLASSIFICATION SHEET'!$D$1646)","v":""},{"$f":"IF('PEF CLASSIFICATION SHEET'!$D$1647=\"\",\"\",'PEF CLASSIFICATION SHEET'!$D$1647)","v":""},{"$f":"IF('PEF CLASSIFICATION SHEET'!$D$1648=\"\",\"\",'PEF CLASSIFICATION SHEET'!$D$1648)","v":""},{"$f":"IF('PEF CLASSIFICATION SHEET'!$D$1649=\"\",\"\",'PEF CLASSIFICATION SHEET'!$D$1649)","v":""},{"$f":"IF('PEF CLASSIFICATION SHEET'!$D$1650=\"\",\"\",'PEF CLASSIFICATION SHEET'!$D$1650)","v":""},{"$f":"IF('PEF CLASSIFICATION SHEET'!$D$1651=\"\",\"\",'PEF CLASSIFICATION SHEET'!$D$1651)","v":""},"SubTotal",null,"Notes"]
["1UT2",null,null,null,null,null,null,null,null,null,null,null,null,{"$f":"SUM(B9:M9)","v":0}]
["2UT1",null,null,null,null,null,null,null,null,null,null,null,null,0]
["2UT2",null,null,null,null,null,null,null,null,null,null,null,null,0]
["3UT1",null,null,null,null,null,null,null,null,null,null,null,null,0]
["3UT2",null,null,null,null,null,null,null,null,null,null,null,null,0]
["4UT1",null,null,null,null,null,null,null,null,null,null,null,null,{"$f":"SUM(B14:M14)","v":0}]
["4UT2",null,null,null,null,null,null,null,null,null,null,null,null,{"$f":"SUM(B15:M15)","v":0}]
["Other Tasks",null,null,null,null,null,null,null,null,null,null,null,null,{"$f":"SUM(B16:M16)","v":0}]
["Workhours",{"$f":"SUM(B9:B16)","v":0},0,0,0,0,0,0,0,0,0,0,0,0]
["Hourly Rate",{"$f":"'PEF CLASSIFICATION SHEET'!$E$1640","v":0},{"$f":"'PEF CLASSIFICATION SHEET'!$E$1641","v":0},{"$f":"'PEF CLASSIFICATION SHEET'!$E$1642","v":0},{"$f":"'PEF CLASSIFICATION SHEET'!$E$1643","v":0},{"$f":"'PEF CLASSIFICATION SHEET'!$E$1644","v":0},{"$f":"'PEF CLASSIFICATION SHEET'!$E$1645","v":0},{"$f":"'PEF CLASSIFICATION SHEET'!$E$1646","v":0},{"$f":"'PEF CLASSIFICATION SHEET'!$E$1647","v":0},{"$f":"'PEF CLASSIFICATION SHEET'!$E$1648","v":0},{"$f":"'PEF CLASSIFICATION SHEET'!$E$1649","v":0},{"$f":"'PEF CLASSIFICATION SHEET'!$E$1650","v":0},{"$f":"'PEF CLASSIFICATION SHEET'!$E$1651","v":0}]
["SubTotal",{"$f":"B17*B18","v":0},0,0,0,0,0,0,0,0,0,0,0,{"$f":"SUM(B19:M19)","v":0}]
[null,null,null,null,null,null,null,null,null,null,null,"Overhead",{"$f":"UTILITIES.COORDINATION_SUB1_CONSULTANT_OVERHEAD","v":0},{"$f":"N19*M20","v":0}]
["Invoicing Percentages",null,"Workhours","Workdays","% Work","$",null,null,null,null,null,"Subtotal",null,{"$f":"N19+N20","v":0}]
[{"$f":"A9","v":"1UT2"},null,{"$f":"N9","v":0},{"$f":"N9/8","v":0},{"$f":"IF(C30=0,0,C22/C30)","v":0},{"$f":"E22*$N$26","v":0},null,null,null,null,null,"Fee",{"$f":"UTILITIES.COORDINATION_SUB1_CONSULTANT_FEE","v":0.09},{"$f":"N21*M22","v":0}]
["2UT1",null,0,0,{"$f":"IF(C30=0,0,C23/C30)","v":0},{"$f":"E23*$N$26","v":0},null,null,null,null,null,"CoC",{"$f":"UTILITIES.COORDINATION_SUB1_CONSULTANT_COSTofCAPITAL","v":0},{"$f":"N19*M23","v":0}]
["2UT2",null,0,0,{"$f":"IF(C30=0,0,C24/C30)","v":0},0,null,null,null,null,null,"Subtotal",null,{"$f":"N21+N22+N23","v":0}]
["3UT1",null,0,0,{"$f":"IF(C30=0,0,C25/C30)","v":0},0,null,null,null,null,null,"Direct Costs",null,{"$f":"S43","v":0}]
["3UT2",null,0,0,{"$f":"IF(C30=0,0,C26/C30)","v":0},0,null,null,null,null,null,"Total Cost",null,{"$f":"N24+N25","v":0}]
["4UT1",null,0,0,{"$f":"IF(C30=0,0,C27/C30)","v":0},0]
["4UT2",null,0,0,{"$f":"IF(C30=0,0,C28/C30)","v":0},0]
["Other Tasks",null,0,0,{"$f":"IF(C30=0,0,C29/C30)","v":0},0]
[null,"Total",{"$f":"SUM(C22:C29)","v":0},{"$f":"SUM(D22:D29)","v":0},{"$f":"SUM(E22:E29)","v":0},{"$f":"SUM(F22:F29)","v":0}]
[]
["Direct Costs","8-1/2\"x11\" B&W","11\"x17\" B&W","11\"x17\" Color","Bond (34\"x22\")","Bond Color (34\"x22\")","Permit Fees","Overnight Per Diem (Lodging, Breakfast, Lunch, Dinner)","Breakfast Only","Lunch Only","Dinner Only","Lodging Only","Mileage",null,null,null,null,null,"Subtotals"]
[{"$f":"A9","v":"1UT2"},null,null,null,null,null,null,null,null,null,null,null,null,null,null,null,null,null,{"$f":"IF($N9=0,0,B33*B$42+C33*C$42+D33*D$42+E33*E$42+F33*F$42+G33+H33*H$42+I33*I$42+J33*J$42+K33*K$42+L33*L$42+M33*M$42+N33*N$42+O33*O$42+P33*P$42+Q33*Q$42+R33*R$42)","v":0}]
["2UT1",null,null,null,null,null,null,null,null,null,null,null,null,null,null,null,null,null,0]
["2UT2",null,null,null,null,null,null,null,null,null,null,null,null,null,null,null,null,null,0]
["3UT1",null,null,null,null,null,null,null,null,null,null,null,null,null,null,null,null,null,0]
["3UT2",null,null,null,null,null,null,null,null,null,null,null,null,null,null,null,null,null,0]
["4UT1",null,null,null,null,null,null,null,null,null,null,null,null,null,null,null,null,null,0]
["4UT2",null,null,null,null,null,null,null,null,null,null,null,null,null,null,null,null,null,0]
["Other Tasks",null,null,null,null,null,null,null,null,null,null,null,null,null,null,null,null,null,0]
["Totals",{"$f":"IF(N9=0,0,B33)+IF(N10=0,0,B34)+IF(N11=0,0,B35)+IF(N12=0,0,B36)+IF(N13=0,0,B37)+IF(N14=0,0,B38)+IF(N15=0,0,B39)+IF(N16=0,0,B40)","v":0},{"$f":"IF($N9=0,0,C33)+IF($N10=0,0,C34)+IF($N11=0,0,C35)+IF($N12=0,0,C36)+IF($N13=0,0,C37)+IF($N14=0,0,C38)+IF($N15=0,0,C39)+IF($N16=0,0,C40)","v":0},{"$f":"IF($N9=0,0,D33)+IF($N10=0,0,D34)+IF($N11=0,0,D35)+IF($N12=0,0,D36)+IF($N13=0,0,D37)+IF($N14=0,0,D38)+IF($N15=0,0,D39)+IF($N16=0,0,D40)","v":0},{"$f":"IF($N9=0,0,E33)+IF($N10=0,0,E34)+IF($N11=0,0,E35)+IF($N12=0,0,E36)+IF($N13=0,0,E37)+IF($N14=0,0,E38)+IF($N15=0,0,E39)+IF($N16=0,0,E40)","v":0},{"$f":"IF($N9=0,0,F33)+IF($N10=0,0,F34)+IF($N11=0,0,F35)+IF($N12=0,0,F36)+IF($N13=0,0,F37)+IF($N14=0,0,F38)+IF($N15=0,0,F39)+IF($N16=0,0,F40)","v":0},null,{"$f":"IF($N9=0,0,H33)+IF($N10=0,0,H34)+IF($N11=0,0,H35)+IF($N12=0,0,H36)+IF($N13=0,0,H37)+IF($N14=0,0,H38)+IF($N15=0,0,H39)+IF($N16=0,0,H40)","v":0},0,0,0,0,0,0,0,0,0,0,{"$f":"SUM(S33:S40)","v":0}]
["Rate",{"$f":"LETTERCOPIES","v":0.14000000000000001},{"$f":"LEDGERCOPIES","v":0.34},{"$f":"LEDGERCOLOR","v":1.66},{"$f":"BOND.REGULAR","v":0.42},{"$f":"FULLSIZE.BOND.COLOR","v":3},null,{"$f":"IF('OVERALL SUMMARY'!I232=\"COST PLUS\", LODGING_COST.PLUS, LODGING_LUMP.SUM)+BREAKFAST+LUNCH+DINNER","v":141.5},{"$f":"BREAKFAST","v":10.1},{"$f":"LUNCH","v":13.3},{"$f":"DINNER","v":23.1},{"$f":"LODGING_LUMP.SUM","v":95},{"$f":"SEDAN","v":0.7},null,null,null,null,null,"Total"]
["Costs",{"$f":"B41*B42","v":0},{"$f":"C41*C42","v":0},0,0,0,{"$f":"IF($N$9=0,0,G33)+IF($N$10=0,0,G34)+IF($N$11=0,0,G35)+IF($N$12=0,0,G36)+IF($N$13=0,0,G37)+IF($N$16=0,0,G40)","v":0},{"$f":"H41*H42","v":0},{"$f":"I41*I42","v":0},{"$f":"J41*J42","v":0},{"$f":"K41*K42","v":0},{"$f":"L41*L42","v":0},{"$f":"M41*M42","v":0},{"$f":"N41*N42","v":0},{"$f":"O41*O42","v":0},{"$f":"P41*P42","v":0},0,{"$f":"R41*R42","v":0},{"$f":"SUM(B43:R43)","v":0}]
[]
[]
["Total Project Estimates"]
[null,"TO I",null,"$/Workday","Total Project Subtotal",null,"$/Workday","TOTAL WORKDAYS"]
["Labor & OH & CoC",{"$f":"N24","v":0},null,{"$f":"IF(D30=0,0,N24/D30)","v":0},{"$f":"B48","v":0},null,{"$f":"IF(SUM(D30)=0,0,((SUM(N24))/(SUM(D30))))","v":0},{"$f":"(SUM(N17))/8","v":0}]
["Direct Costs",{"$f":"S43","v":0},null,null,{"$f":"B49","v":0}]
["Totals",{"$f":"N26","v":0},null,null,{"$f":"B50","v":0}]

{"sheet":"UT-Design-Sub1","index":184,"n_rows":39,"n_cols":19,"rows_kept":39,"cut":false,"hidden":true,"merged":[[22,0,22,1],[22,11,24,12],[22,13,24,14],[23,0,23,1],[38,0,40,8],[20,0,20,1],[20,11,20,12],[20,13,20,14],[21,0,21,1],[21,11,21,12],[21,13,21,14],[19,0,19,1],[19,13,19,14],[12,13,12,14],[12,15,12,18],[13,13,13,14],[14,13,14,14],[15,13,15,14],[16,13,16,14],[17,0,17,1],[17,11,17,12],[17,13,17,14],[18,0,18,1],[18,13,18,14],[9,13,9,14],[9,15,9,18],[10,13,10,14],[10,15,10,18],[11,13,11,14],[11,15,11,18],[8,15,8,18],[0,8,0,9],[2,2,2,4],[2,6,2,7],[2,8,2,9],[5,13,5,14],[6,13,6,14],[6,15,6,18],[7,13,7,14],[7,15,7,18],[3,0,3,1],[3,2,3,4],[3,6,3,7],[3,8,3,9],[8,13,8,14]]}
["Project ","TIP",{"$f":"IF(TIP.NUMBER=\"\",\"\",TIP.NUMBER)","v":""},"WBS PE",null,"WBS RW",null,"County",{"$f":"IF(COUNTY=\"\",\"\",COUNTY)","v":""}]
[]
["PEF Utilities Design","Name",{"$f":"UTILITIES.DESIGN_SUB1_CONSULTANT_NAME","v":"CONSULTANT NAME"},null,null,null,"Firm's LSA Contract ID"]
["Project Contact",null,{"$f":"IF(SCOPE.MANDAY.ESTIMATE.PREPARED.BY=\"\",\"\",SCOPE.MANDAY.ESTIMATE.PREPARED.BY)","v":""},null,null,null,"Contract official",null,{"$f":"IF(SCOPE.MANDAY.ESTIMATE.APPROVED.BY=\"\",\"\",SCOPE.MANDAY.ESTIMATE.APPROVED.BY)","v":""}]
["Task Order II - UTILITY DESIGN - SUB1"]
["Classification/Name",{"$f":"IF('PEF CLASSIFICATION SHEET'!C1654=\"\",\"\",'PEF CLASSIFICATION SHEET'!C1654)","v":"Utility Design Supervisor"},{"$f":"IF('PEF CLASSIFICATION SHEET'!C1655=\"\",\"\",'PEF CLASSIFICATION SHEET'!C1655)","v":"Senior Utility Engineer"},{"$f":"IF('PEF CLASSIFICATION SHEET'!C1656=\"\",\"\",'PEF CLASSIFICATION SHEET'!C1656)","v":"Utility Engineer"},{"$f":"IF('PEF CLASSIFICATION SHEET'!C1657=\"\",\"\",'PEF CLASSIFICATION SHEET'!C1657)","v":"Junior Technician"},{"$f":"IF('PEF CLASSIFICATION SHEET'!C1658=\"\",\"\",'PEF CLASSIFICATION SHEET'!C1658)","v":"MISCELLANEOUS1"},{"$f":"IF('PEF CLASSIFICATION SHEET'!C1659=\"\",\"\",'PEF CLASSIFICATION SHEET'!C1659)","v":"MISCELLANEOUS2"},{"$f":"IF('PEF CLASSIFICATION SHEET'!C1660=\"\",\"\",'PEF CLASSIFICATION SHEET'!C1660)","v":"MISCELLANEOUS3"},{"$f":"IF('PEF CLASSIFICATION SHEET'!C1661=\"\",\"\",'PEF CLASSIFICATION SHEET'!C1661)","v":""},{"$f":"IF('PEF CLASSIFICATION SHEET'!C1662=\"\",\"\",'PEF CLASSIFICATION SHEET'!C1662)","v":""},{"$f":"IF('PEF CLASSIFICATION SHEET'!C1663=\"\",\"\",'PEF CLASSIFICATION SHEET'!C1663)","v":""},{"$f":"IF('PEF CLASSIFICATION SHEET'!C1664=\"\",\"\",'PEF CLASSIFICATION SHEET'!C1664)","v":""},{"$f":"IF('PEF CLASSIFICATION SHEET'!C1665=\"\",\"\",'PEF CLASSIFICATION SHEET'!C1665)","v":""},"SubTotal",null,{"$f":"P36","v":0},{"$f":"Q36","v":0},{"$f":"R36","v":0}]
["Project Estimate",{"$f":"IF('PEF CLASSIFICATION SHEET'!D1654=\"\",\"\",'PEF CLASSIFICATION SHEET'!D1654)","v":""},{"$f":"IF('PEF CLASSIFICATION SHEET'!D1655=\"\",\"\",'PEF CLASSIFICATION SHEET'!D1655)","v":""},{"$f":"IF('PEF CLASSIFICATION SHEET'!D1656=\"\",\"\",'PEF CLASSIFICATION SHEET'!D1656)","v":""},{"$f":"IF('PEF CLASSIFICATION SHEET'!D1657=\"\",\"\",'PEF CLASSIFICATION SHEET'!D1657)","v":""},{"$f":"IF('PEF CLASSIFICATION SHEET'!D1658=\"\",\"\",'PEF CLASSIFICATION SHEET'!D1658)","v":""},{"$f":"IF('PEF CLASSIFICATION SHEET'!D1659=\"\",\"\",'PEF CLASSIFICATION SHEET'!D1659)","v":""},{"$f":"IF('PEF CLASSIFICATION SHEET'!D1660=\"\",\"\",'PEF CLASSIFICATION SHEET'!D1660)","v":""},{"$f":"IF('PEF CLASSIFICATION SHEET'!D1661=\"\",\"\",'PEF CLASSIFICATION SHEET'!D1661)","v":""},{"$f":"IF('PEF CLASSIFICATION SHEET'!D1662=\"\",\"\",'PEF CLASSIFICATION SHEET'!D1662)","v":""},{"$f":"IF('PEF CLASSIFICATION SHEET'!D1663=\"\",\"\",'PEF CLASSIFICATION SHEET'!D1663)","v":""},{"$f":"IF('PEF CLASSIFICATION SHEET'!D1664=\"\",\"\",'PEF CLASSIFICATION SHEET'!D1664)","v":""},{"$f":"IF('PEF CLASSIFICATION SHEET'!D1665=\"\",\"\",'PEF CLASSIFICATION SHEET'!D1665)","v":""},"SubTotal",null,"Notes"]
["2UT1",null,null,null,null,null,null,null,null,null,null,null,null,{"$f":"SUM(B8:M8)","v":0}]
["2UT2",null,null,null,null,null,null,null,null,null,null,null,null,0]
["3UT1",null,null,null,null,null,null,null,null,null,null,null,null,0]
["3UT2",null,null,null,null,null,null,null,null,null,null,null,null,0]
["4UT1",null,null,null,null,null,null,null,null,null,null,null,null,0]
["5UT1",null,null,null,null,null,null,null,null,null,null,null,null,{"$f":"SUM(B13:M13)","v":0}]
["Workhours",{"$f":"SUM(B8:B13)","v":0},{"$f":"SUM(C8:C13)","v":0},0,0,0,0,0,0,0,0,0,0,{"$f":"SUM(N8:N13)","v":0}]
["Hourly Rate",{"$f":"'PEF CLASSIFICATION SHEET'!E1654","v":0},{"$f":"'PEF CLASSIFICATION SHEET'!E1655","v":0},{"$f":"'PEF CLASSIFICATION SHEET'!E1656","v":0},{"$f":"'PEF CLASSIFICATION SHEET'!E1657","v":0},{"$f":"'PEF CLASSIFICATION SHEET'!E1658","v":0},{"$f":"'PEF CLASSIFICATION SHEET'!E1659","v":0},{"$f":"'PEF CLASSIFICATION SHEET'!E1660","v":0},{"$f":"'PEF CLASSIFICATION SHEET'!E1661","v":0},{"$f":"'PEF CLASSIFICATION SHEET'!E1662","v":0},{"$f":"'PEF CLASSIFICATION SHEET'!E1663","v":0},{"$f":"'PEF CLASSIFICATION SHEET'!E1664","v":0},{"$f":"'PEF CLASSIFICATION SHEET'!E1665","v":0}]
["SubTotal",{"$f":"B14*B15","v":0},0,0,0,0,0,0,0,0,0,0,0,{"$f":"SUM(B16:M16)","v":0}]
[null,null,null,null,null,null,null,null,null,null,null,"Overhead",{"$f":"UTILITIES.DESIGN_SUB1_CONSULTANT_OVERHEAD","v":0},{"$f":"N16*M17","v":0}]
["Invoicing Percentages",null,"Workhours","% Work",null,null,null,null,null,null,null,"Subtotal",null,{"$f":"N16+N17","v":0}]
[{"$f":"A8","v":"2UT1"},null,{"$f":"N8","v":0},{"$f":"IF(C$25=0,0,C19/C$25)","v":0},null,null,null,null,"WORKDAYS",null,null,"Fee",{"$f":"UTILITIES.DESIGN_SUB1_CONSULTANT_FEE","v":0.09},{"$f":"N18*M19","v":0}]
["2UT2",null,0,0,null,null,null,null,{"$f":"N14/8","v":0},null,null,"CoC",{"$f":"UTILITIES.DESIGN_SUB1_CONSULTANT_COSTofCAPITAL","v":0},{"$f":"N16*M20","v":0}]
["3UT1",null,0,0,null,null,null,null,null,null,null,"Subtotal",null,{"$f":"N18+N19+N20","v":0}]
["3UT2",null,0,0,null,null,null,null,null,null,null,"Direct Costs",null,{"$f":"S36","v":0}]
["4UT1",null,0,0,null,null,null,null,null,null,null,"Total Cost",null,{"$f":"N21+N22","v":0}]
["5UT1",null,0,0]
[null,"Total",{"$f":"SUM(C19:C24)","v":0},{"$f":"SUM(D19:D24)","v":0}]
[]
["Direct Costs","8-1/2\"x11\" B&W","11\"x17\" B&W","11\"x17\" Color","Bond (34\"x22\")","Bond Color (34\"x22\")","Permit Fees","Overnight Per Diem (Lodging, Breakfast, Lunch, Dinner)","Breakfast Only","Lunch Only","Dinner Only","Lodging Only","Mileage",null,null,null,null,null,"Subtotals"]
[{"$f":"A8","v":"2UT1"},null,null,null,null,null,null,null,null,null,null,null,null,null,null,null,null,null,{"$f":"IF($N8=0,0,B28*B$35+C28*C$35+D28*D$35+E28*E$35+F28*F$35+G28+H28*H$35+I28*I$35+J28*J$35+K28*K$35+L28*L$35+M28*M$35+N28*N$35+O28*O$35+P28*P$35+Q28*Q$35+R28*R$35)","v":0}]
["2UT2",null,null,null,null,null,null,null,null,null,null,null,null,null,null,null,null,null,{"$f":"IF($N9=0,0,B29*B$35+C29*C$35+D29*D$35+E29*E$35+F29*F$35+G29+H29*H$35+I29*I$35+J29*J$35+K29*K$35+L29*L$35+M29*M$35+N29*N$35+O29*O$35+P29*P$35+Q29*Q$35+R29*R$35)","v":0}]
["3UT1",null,null,null,null,null,null,null,null,null,null,null,null,null,null,null,null,null,0]
["3UT2",null,null,null,null,null,null,null,null,null,null,null,null,null,null,null,null,null,0]
["4UT1",null,null,null,null,null,null,null,null,null,null,null,null,null,null,null,null,null,0]
["5UT1",null,null,null,null,null,null,null,null,null,null,null,null,null,null,null,null,null,0]
["Totals",{"$f":"IF($N$8=0,0,B28)+IF($N$9=0,0,B29)+IF($N$10=0,0,B30)+IF($N$11=0,0,B31)+IF($N$12=0,0,B32)+IF($N$13=0,0,B33)","v":0},{"$f":"IF($N$8=0,0,C28)+IF($N$9=0,0,C29)+IF($N$10=0,0,C30)+IF($N$11=0,0,C31)+IF($N$12=0,0,C32)+IF($N$13=0,0,C33)","v":0},0,0,0,null,{"$f":"IF($N$8=0,0,H28)+IF($N$9=0,0,H29)+IF($N$10=0,0,H30)+IF($N$11=0,0,H31)+IF($N$12=0,0,H32)+IF($N$13=0,0,H33)","v":0},0,0,0,0,{"$f":"IF($N$8=0,0,M28)+IF($N$9=0,0,M29)+IF($N$10=0,0,M30)+IF($N$11=0,0,M31)+IF($N$12=0,0,M32)+IF($N$13=0,0,M33)","v":0},0,0,0,0,{"$f":"IF($N$8=0,0,R28)+IF($N$9=0,0,R29)+IF($N$10=0,0,R30)+IF($N$11=0,0,R31)+IF($N$12=0,0,R32)+IF($N$13=0,0,R33)","v":0},{"$f":"SUM(S28:S33)","v":0}]
["Rate",{"$f":"LETTERCOPIES","v":0.14000000000000001},{"$f":"LEDGERCOPIES","v":0.34},{"$f":"LEDGERCOLOR","v":1.66},{"$f":"BOND.REGULAR","v":0.42},{"$f":"FULLSIZE.BOND.COLOR","v":3},null,{"$f":"IF('OVERALL SUMMARY'!I232=\"COST PLUS\", LODGING_COST.PLUS, LODGING_LUMP.SUM)+BREAKFAST+LUNCH+DINNER","v":141.5},{"$f":"BREAKFAST","v":10.1},{"$f":"LUNCH","v":13.3},{"$f":"DINNER","v":23.1},{"$f":"LODGING_LUMP.SUM","v":95},{"$f":"SEDAN","v":0.7},null,null,null,null,null,"Total"]
["Costs",{"$f":"B34*B35","v":0},{"$f":"C34*C35","v":0},0,0,0,{"$f":"IF($N$8=0,0,G28)+IF($N$9=0,0,G29)+IF($N$10=0,0,G30)+IF($N$11=0,0,G31)+IF($N$12=0,0,G32)+IF($N$13=0,0,G33)","v":0},{"$f":"H34*H35","v":0},{"$f":"I34*I35","v":0},{"$f":"J34*J35","v":0},{"$f":"K34*K35","v":0},{"$f":"L34*L35","v":0},{"$f":"M34*M35","v":0},{"$f":"N34*N35","v":0},{"$f":"O34*O35","v":0},{"$f":"P34*P35","v":0},0,{"$f":"R34*R35","v":0},{"$f":"SUM(B36:R36)","v":0}]
[]
[]
["PEF--UTILITY DESIGN"]

{"sheet":"Ferry-Sub1","index":185,"n_rows":288,"n_cols":31,"rows_kept":288,"cut":false,"hidden":true,"merged":[[0,2,0,13],[2,1,2,4],[2,6,2,7],[2,10,2,11],[2,15,2,16],[3,1,3,4],[3,6,3,7],[3,10,3,11],[3,15,3,16],[6,12,9,12],[6,13,9,13],[6,14,9,14],[6,15,9,15],[6,16,9,16],[6,17,9,17],[4,3,4,22],[6,3,9,3],[6,4,9,4],[6,5,9,5],[6,6,9,6],[6,7,9,7],[6,8,9,8],[6,9,9,9],[6,10,9,10],[6,11,9,11],[10,26,10,27],[11,26,11,27],[12,26,12,27],[13,26,13,27],[14,26,14,27],[15,26,15,27],[6,18,9,18],[6,19,9,19],[6,20,9,20],[6,21,9,21],[6,22,9,22],[8,26,8,27],[22,26,22,27],[23,26,23,27],[24,26,24,27],[25,26,25,27],[26,26,26,27],[27,26,27,27],[16,26,16,27],[17,26,17,27],[18,26,18,27],[19,26,19,27],[20,26,20,27],[21,26,21,27],[34,26,34,27],[35,26,35,27],[36,26,36,27],[37,26,37,27],[38,26,38,27],[39,26,39,27],[28,26,28,27],[29,26,29,27],[30,26,30,27],[31,26,31,27],[32,26,32,27],[33,26,33,27],[46,26,46,27],[47,26,47,27],[48,26,48,27],[49,26,49,27],[50,26,50,27],[51,26,51,27],[40,26,40,27],[41,26,41,27],[42,26,42,27],[43,26,43,27],[44,26,44,27],[45,26,45,27],[58,26,58,27],[59,26,59,27],[60,26,60,27],[61,26,61,27],[62,26,62,27],[63,26,63,27],[52,26,52,27],[53,26,53,27],[54,26,54,27],[55,26,55,27],[56,26,56,27],[57,26,57,27],[70,26,70,27],[71,26,71,27],[72,26,72,27],[73,26,73,27],[74,26,74,27],[75,26,75,27],[64,26,64,27],[65,26,65,27],[66,26,66,27],[67,26,67,27],[68,26,68,27],[69,26,69,27],[82,26,82,27],[83,26,83,27],[84,26,84,27],[85,26,85,27],[86,26,86,27],[87,26,87,27],[76,26,76,27],[77,26,77,27],[78,26,78,27],[79,26,79,27],[80,26,80,27],[81,26,81,27],[94,26,94,27],[95,26,95,27],[96,26,96,27],[97,26,97,27],[98,26,98,27],[99,26,99,27],[88,26,88,27],[89,26,89,27],[90,26,90,27],[91,26,91,27],[92,26,92,27],[93,26,93,27],[106,26,106,27],[107,26,107,27],[108,26,108,27],[109,26,109,27],[110,26,110,27],[111,26,111,27],[100,26,100,27],[101,26,101,27],[102,26,102,27],[103,26,103,27],[104,26,104,27],[105,26,105,27],[118,26,118,27],[272,26,272,27],[287,1,288,1],[287,3,288,4],[291,3,291,6],[291,8,291,13],[112,26,112,27],[113,26,113,27],[114,26,114,27],[115,26,115,27],[116,26,116,27],[117,26,117,27],[233,26,233,27],[234,26,234,27],[235,26,235,27],[236,26,236,27],[237,26,237,27],[238,26,238,27],[239,26,239,27],[240,26,240,27],[241,26,241,27],[242,26,242,27],[243,26,243,27],[244,26,244,27],[298,8,298,9],[298,10,298,11],[292,8,292,9],[292,10,292,11],[293,8,293,9],[293,10,293,11],[296,8,296,13],[297,8,297,9],[297,10,297,11],[245,26,245,27],[246,26,246,27],[247,26,247,27],[248,26,248,27],[249,26,249,27],[250,26,250,27],[251,26,251,27],[252,26,252,27],[253,26,253,27],[254,26,254,27],[255,26,255,27],[256,26,256,27],[257,26,257,27],[258,26,258,27],[259,26,259,27],[260,26,260,27],[261,26,261,27],[262,26,262,27],[269,26,269,27],[270,26,270,27],[271,26,271,27],[263,26,263,27],[264,26,264,27],[265,26,265,27],[266,26,266,27],[267,26,267,27],[268,26,268,27],[176,26,176,27],[177,26,177,27],[178,26,178,27],[179,26,179,27],[180,26,180,27],[181,26,181,27],[182,26,182,27],[183,26,183,27],[184,26,184,27],[185,26,185,27],[186,26,186,27],[187,26,187,27],[188,26,188,27],[189,26,189,27],[190,26,190,27],[191,26,191,27],[192,26,192,27],[193,26,193,27],[194,26,194,27],[195,26,195,27],[196,26,196,27],[197,26,197,27],[198,26,198,27],[199,26,199,27],[200,26,200,27],[201,26,201,27],[202,26,202,27],[203,26,203,27],[204,26,204,27],[205,26,205,27],[206,26,206,27],[207,26,207,27],[208,26,208,27],[209,26,209,27],[210,26,210,27],[211,26,211,27],[212,26,212,27],[213,26,213,27],[214,26,214,27],[215,26,215,27],[216,26,216,27],[217,26,217,27],[218,26,218,27],[219,26,219,27],[220,26,220,27],[221,26,221,27],[222,26,222,27],[223,26,223,27],[224,26,224,27],[225,26,225,27],[226,26,226,27],[227,26,227,27],[228,26,228,27],[229,26,229,27],[230,26,230,27],[231,26,231,27],[232,26,232,27],[119,26,119,27],[120,26,120,27],[121,26,121,27],[122,26,122,27],[123,26,123,27],[124,26,124,27],[125,26,125,27],[126,26,126,27],[127,26,127,27],[128,26,128,27],[129,26,129,27],[130,26,130,27],[131,26,131,27],[132,26,132,27],[133,26,133,27],[134,26,134,27],[135,26,135,27],[136,26,136,27],[137,26,137,27],[138,26,138,27],[139,26,139,27],[140,26,140,27],[141,26,141,27],[142,26,142,27],[143,26,143,27],[144,26,144,27],[145,26,145,27],[146,26,146,27],[147,26,147,27],[148,26,148,27],[149,26,149,27],[150,26,150,27],[151,26,151,27],[152,26,152,27],[153,26,153,27],[154,26,154,27],[155,26,155,27],[156,26,156,27],[157,26,157,27],[158,26,158,27],[159,26,159,27],[160,26,160,27],[161,26,161,27],[162,26,162,27],[163,26,163,27],[164,26,164,27],[165,26,165,27],[166,26,166,27],[167,26,167,27],[168,26,168,27],[169,26,169,27],[170,26,170,27],[171,26,171,27],[172,26,172,27],[173,26,173,27],[174,26,174,27],[175,26,175,27]]}
[null,{"$f":"Ferry!B1","v":"Ferry (Select One Below)"},{"$f":"CONCATENATE(\" \",\"--BREAKDOWN WORKSHEET - SUBCONSULTANT 1 -- ENTER WORKHOURS\")","v":" --BREAKDOWN WORKSHEET - SUBCONSULTANT 1 -- ENTER WORKHOURS"},null,null,null,null,null,null,null,null,null,null,null,null,null,null,null,null,null,null,null,null,null,null,null,null,null,null,null,"Ferry (Select One Below)"]
[null,null,null,null,null,null,null,null,null,null,null,null,null,null,null,null,null,null,null,null,null,null,null,null,null,null,null,null,null,null,"Marine Construction"]
["PROJECT DESCRIPTION: ",{"$f":"PROJECT.DESCRIPTION","v":0},null,null,null,"FIRM:  ",{"$f":"FERRY.SUB1_CONSULTANT_NAME","v":"CONSULTANT NAME"},null,"TASK ORDER NUMBER:",null,{"$f":"TASK.ORDER.NUMBER","v":0},null,"DATE PREPARED:",{"$f":"IF(SCOPE.MANDAY.ESTIMATE.PREPARED.BY.DATE=\"\",\"\",SCOPE.MANDAY.ESTIMATE.PREPARED.BY.DATE)","v":""},null,null,null,null,null,null,null,null,null,null,null,null,null,null,null,null,"Vessel Design"]
["PREPARED BY:  ",{"$f":"IF(SCOPE.MANDAY.ESTIMATE.PREPARED.BY=\"\",\"\",SCOPE.MANDAY.ESTIMATE.PREPARED.BY)","v":""},null,null,null,"TIP NUMBER:",{"$f":"TIP.NUMBER","v":0},null,"WBS NUMBER:",null,{"$f":"WBS.NUMBER","v":""},null,"REVISION DATE:",{"$f":"IF(SCOPE.MANDAY.ESTIMATE.APPROVED.BY.DATE=\"\",\"\",SCOPE.MANDAY.ESTIMATE.APPROVED.BY.DATE)","v":""}]
[null,null,null,"ESTIMATED WORKHOURS"]
[null,null,"EMPLOYEE NAMES",{"$f":"IF('PEF CLASSIFICATION SHEET'!D1668=\"\",\"\",LEFT('PEF CLASSIFICATION SHEET'!D1668,4))","v":""},{"$f":"IF('PEF CLASSIFICATION SHEET'!D1669=\"\",\"\",LEFT('PEF CLASSIFICATION SHEET'!D1669,4))","v":""},{"$f":"IF('PEF CLASSIFICATION SHEET'!D1670=\"\",\"\",LEFT('PEF CLASSIFICATION SHEET'!D1670,4))","v":""},{"$f":"IF('PEF CLASSIFICATION SHEET'!D1671=\"\",\"\",LEFT('PEF CLASSIFICATION SHEET'!D1671,4))","v":""},{"$f":"IF('PEF CLASSIFICATION SHEET'!D1672=\"\",\"\",LEFT('PEF CLASSIFICATION SHEET'!D1672,4))","v":""},{"$f":"IF('PEF CLASSIFICATION SHEET'!D1673=\"\",\"\",LEFT('PEF CLASSIFICATION SHEET'!D1673,4))","v":""},{"$f":"IF('PEF CLASSIFICATION SHEET'!D1674=\"\",\"\",LEFT('PEF CLASSIFICATION SHEET'!D1674,4))","v":""},{"$f":"IF('PEF CLASSIFICATION SHEET'!D1675=\"\",\"\",LEFT('PEF CLASSIFICATION SHEET'!D1675,4))","v":""},{"$f":"IF('PEF CLASSIFICATION SHEET'!D1676=\"\",\"\",LEFT('PEF CLASSIFICATION SHEET'!D1676,4))","v":""},{"$f":"IF('PEF CLASSIFICATION SHEET'!D1677=\"\",\"\",LEFT('PEF CLASSIFICATION SHEET'!D1677,4))","v":""},{"$f":"IF('PEF CLASSIFICATION SHEET'!D1678=\"\",\"\",LEFT('PEF CLASSIFICATION SHEET'!D1678,4))","v":""},{"$f":"IF('PEF CLASSIFICATION SHEET'!D1679=\"\",\"\",LEFT('PEF CLASSIFICATION SHEET'!D1679,4))","v":""},{"$f":"IF('PEF CLASSIFICATION SHEET'!D1680=\"\",\"\",LEFT('PEF CLASSIFICATION SHEET'!D1680,4))","v":""},{"$f":"IF('PEF CLASSIFICATION SHEET'!D1681=\"\",\"\",LEFT('PEF CLASSIFICATION SHEET'!D1681,4))","v":""},{"$f":"IF('PEF CLASSIFICATION SHEET'!D1682=\"\",\"\",LEFT('PEF CLASSIFICATION SHEET'!D1682,4))","v":""},{"$f":"IF('PEF CLASSIFICATION SHEET'!D1683=\"\",\"\",LEFT('PEF CLASSIFICATION SHEET'!D1683,4))","v":""},{"$f":"IF('PEF CLASSIFICATION SHEET'!D1684=\"\",\"\",LEFT('PEF CLASSIFICATION SHEET'!D1684,4))","v":""},{"$f":"IF('PEF CLASSIFICATION SHEET'!D1685=\"\",\"\",LEFT('PEF CLASSIFICATION SHEET'!D1685,4))","v":""},{"$f":"IF('PEF CLASSIFICATION SHEET'!D1686=\"\",\"\",LEFT('PEF CLASSIFICATION SHEET'!D1686,4))","v":""},{"$f":"IF('PEF CLASSIFICATION SHEET'!D1687=\"\",\"\",LEFT('PEF CLASSIFICATION SHEET'!D1687,4))","v":""}]
[null,null,null,{"$f":"IF('PEF CLASSIFICATION SHEET'!C1668=\"\",\"\",'PEF CLASSIFICATION SHEET'!C1668)","v":""},{"$f":"IF('PEF CLASSIFICATION SHEET'!C1669=\"\",\"\",'PEF CLASSIFICATION SHEET'!C1669)","v":""},{"$f":"IF('PEF CLASSIFICATION SHEET'!C1670=\"\",\"\",'PEF CLASSIFICATION SHEET'!C1670)","v":""},{"$f":"IF('PEF CLASSIFICATION SHEET'!C1671=\"\",\"\",'PEF CLASSIFICATION SHEET'!C1671)","v":""},{"$f":"IF('PEF CLASSIFICATION SHEET'!C1672=\"\",\"\",'PEF CLASSIFICATION SHEET'!C1672)","v":""},{"$f":"IF('PEF CLASSIFICATION SHEET'!C1673=\"\",\"\",'PEF CLASSIFICATION SHEET'!C1673)","v":""},{"$f":"IF('PEF CLASSIFICATION SHEET'!C1674=\"\",\"\",'PEF CLASSIFICATION SHEET'!C1674)","v":""},{"$f":"IF('PEF CLASSIFICATION SHEET'!C1675=\"\",\"\",'PEF CLASSIFICATION SHEET'!C1675)","v":""},{"$f":"IF('PEF CLASSIFICATION SHEET'!C1676=\"\",\"\",'PEF CLASSIFICATION SHEET'!C1676)","v":""},{"$f":"IF('PEF CLASSIFICATION SHEET'!C1677=\"\",\"\",'PEF CLASSIFICATION SHEET'!C1677)","v":""},{"$f":"IF('PEF CLASSIFICATION SHEET'!C1678=\"\",\"\",'PEF CLASSIFICATION SHEET'!C1678)","v":""},{"$f":"IF('PEF CLASSIFICATION SHEET'!C1679=\"\",\"\",'PEF CLASSIFICATION SHEET'!C1679)","v":""},{"$f":"IF('PEF CLASSIFICATION SHEET'!C1680=\"\",\"\",'PEF CLASSIFICATION SHEET'!C1680)","v":""},{"$f":"IF('PEF CLASSIFICATION SHEET'!C1681=\"\",\"\",'PEF CLASSIFICATION SHEET'!C1681)","v":""},{"$f":"IF('PEF CLASSIFICATION SHEET'!C1682=\"\",\"\",'PEF CLASSIFICATION SHEET'!C1682)","v":""},{"$f":"IF('PEF CLASSIFICATION SHEET'!C1683=\"\",\"\",'PEF CLASSIFICATION SHEET'!C1683)","v":""},{"$f":"IF('PEF CLASSIFICATION SHEET'!C1684=\"\",\"\",'PEF CLASSIFICATION SHEET'!C1684)","v":""},{"$f":"IF('PEF CLASSIFICATION SHEET'!C1685=\"\",\"\",'PEF CLASSIFICATION SHEET'!C1685)","v":""},{"$f":"IF('PEF CLASSIFICATION SHEET'!C1686=\"\",\"\",'PEF CLASSIFICATION SHEET'!C1686)","v":""},{"$f":"IF('PEF CLASSIFICATION SHEET'!C1687=\"\",\"\",'PEF CLASSIFICATION SHEET'!C1687)","v":""},"SUB-","%","PEF"]
[null,null,null,null,null,null,null,null,null,null,null,null,null,null,null,null,null,null,null,null,null,null,null,"TOTAL","OF","ESTIMATE"]
["TASK","TASK DESCRIPTION","CLASSIFICATION",null,null,null,null,null,null,null,null,null,null,null,null,null,null,null,null,null,null,null,null,null,"PROJECT",null,"COMMENTS"]
["NO."]
[1,"Marine Vessel Design",null,null,null,null,null,null,null,null,null,null,null,null,null,null,null,null,null,null,null,null,null,{"$f":"IF(B11=\"\",0,IF((SUM(D12:W54)=0),SUM(D11:W11),\"\"))","v":0},{"$f":"IF(X11=\"\",\"\",SUM((X11/$X$274)))","v":{"$error":"#DIV/0!"}}]
[null,null,null,null,null,null,null,null,null,null,null,null,null,null,null,null,null,null,null,null,null,null,null,{"$f":"IF(B12=\"\",0,IF((SUM(D12:W12)=0),0,SUM(D12:W12)))","v":0},{"$error":"#DIV/0!"}]
[null,null,null,null,null,null,null,null,null,null,null,null,null,null,null,null,null,null,null,null,null,null,null,0,{"$error":"#DIV/0!"}]
[null,null,null,null,null,null,null,null,null,null,null,null,null,null,null,null,null,null,null,null,null,null,null,0,{"$error":"#DIV/0!"}]
[null,null,null,null,null,null,null,null,null,null,null,null,null,null,null,null,null,null,null,null,null,null,null,0,{"$error":"#DIV/0!"}]
[null,null,null,null,null,null,null,null,null,null,null,null,null,null,null,null,null,null,null,null,null,null,null,0,{"$error":"#DIV/0!"}]
[null,null,null,null,null,null,null,null,null,null,null,null,null,null,null,null,null,null,null,null,null,null,null,0,{"$error":"#DIV/0!"}]
[null,null,null,null,null,null,null,null,null,null,null,null,null,null,null,null,null,null,null,null,null,null,null,0,{"$error":"#DIV/0!"}]
[null,null,null,null,null,null,null,null,null,null,null,null,null,null,null,null,null,null,null,null,null,null,null,0,{"$error":"#DIV/0!"}]
[null,null,null,null,null,null,null,null,null,null,null,null,null,null,null,null,null,null,null,null,null,null,null,{"$f":"IF(B20=\"\",0,IF((SUM(D20:W20)=0),0,SUM(D20:W20)))","v":0},{"$error":"#DIV/0!"}]
[null,null,null,null,null,null,null,null,null,null,null,null,null,null,null,null,null,null,null,null,null,null,null,{"$f":"IF(B21=\"\",0,IF((SUM(D21:W21)=0),0,SUM(D21:W21)))","v":0},{"$error":"#DIV/0!"}]
[null,"Planning and Coordination Meetings",null,null,null,null,null,null,null,null,null,null,null,null,null,null,null,null,null,null,null,null,null,{"$f":"IF(B22=\"\",0,IF((SUM(D23:W32)=0),SUM(D22:W22),\"\"))","v":0},{"$error":"#DIV/0!"}]
[null,null,null,null,null,null,null,null,null,null,null,null,null,null,null,null,null,null,null,null,null,null,null,{"$f":"IF(B23=\"\",0,IF((SUM(D23:W23)=0),0,SUM(D23:W23)))","v":0},{"$error":"#DIV/0!"}]
[null,null,null,null,null,null,null,null,null,null,null,null,null,null,null,null,null,null,null,null,null,null,null,0,{"$error":"#DIV/0!"}]
[null,null,null,null,null,null,null,null,null,null,null,null,null,null,null,null,null,null,null,null,null,null,null,0,{"$error":"#DIV/0!"}]
[null,null,null,null,null,null,null,null,null,null,null,null,null,null,null,null,null,null,null,null,null,null,null,0,{"$error":"#DIV/0!"}]
[null,null,null,null,null,null,null,null,null,null,null,null,null,null,null,null,null,null,null,null,null,null,null,0,{"$error":"#DIV/0!"}]
[null,null,null,null,null,null,null,null,null,null,null,null,null,null,null,null,null,null,null,null,null,null,null,0,{"$error":"#DIV/0!"}]
[null,null,null,null,null,null,null,null,null,null,null,null,null,null,null,null,null,null,null,null,null,null,null,0,{"$error":"#DIV/0!"}]
[null,null,null,null,null,null,null,null,null,null,null,null,null,null,null,null,null,null,null,null,null,null,null,0,{"$error":"#DIV/0!"}]
[null,null,null,null,null,null,null,null,null,null,null,null,null,null,null,null,null,null,null,null,null,null,null,{"$f":"IF(B31=\"\",0,IF((SUM(D31:W31)=0),0,SUM(D31:W31)))","v":0},{"$error":"#DIV/0!"}]
[null,null,null,null,null,null,null,null,null,null,null,null,null,null,null,null,null,null,null,null,null,null,null,{"$f":"IF(B32=\"\",0,IF((SUM(D32:W32)=0),0,SUM(D32:W32)))","v":0},{"$error":"#DIV/0!"}]
[null,"Review and Interviews\n**Review can apply to requirements (USC CFR, State policy) generally study related\n**Review can also apply to schematics / blue prints generally design related",null,null,null,null,null,null,null,null,null,null,null,null,null,null,null,null,null,null,null,null,null,{"$f":"IF(B33=\"\",0,IF((SUM(D34:W43)=0),SUM(D33:W33),\"\"))","v":0},{"$error":"#DIV/0!"}]
[null,null,null,null,null,null,null,null,null,null,null,null,null,null,null,null,null,null,null,null,null,null,null,0,{"$error":"#DIV/0!"}]
[null,null,null,null,null,null,null,null,null,null,null,null,null,null,null,null,null,null,null,null,null,null,null,0,{"$error":"#DIV/0!"}]
[null,null,null,null,null,null,null,null,null,null,null,null,null,null,null,null,null,null,null,null,null,null,null,{"$f":"IF(B36=\"\",0,IF((SUM(D36:W36)=0),0,SUM(D36:W36)))","v":0},{"$error":"#DIV/0!"}]
[null,null,null,null,null,null,null,null,null,null,null,null,null,null,null,null,null,null,null,null,null,null,null,0,{"$error":"#DIV/0!"}]
[null,null,null,null,null,null,null,null,null,null,null,null,null,null,null,null,null,null,null,null,null,null,null,0,{"$error":"#DIV/0!"}]
[null,null,null,null,null,null,null,null,null,null,null,null,null,null,null,null,null,null,null,null,null,null,null,0,{"$error":"#DIV/0!"}]
[null,null,null,null,null,null,null,null,null,null,null,null,null,null,null,null,null,null,null,null,null,null,null,0,{"$error":"#DIV/0!"}]
[null,null,null,null,null,null,null,null,null,null,null,null,null,null,null,null,null,null,null,null,null,null,null,0,{"$error":"#DIV/0!"}]
[null,null,null,null,null,null,null,null,null,null,null,null,null,null,null,null,null,null,null,null,null,null,null,0,{"$error":"#DIV/0!"}]
[null,null,null,null,null,null,null,null,null,null,null,null,null,null,null,null,null,null,null,null,null,null,null,0,{"$error":"#DIV/0!"}]
[null,"Reporting and Presentation",null,null,null,null,null,null,null,null,null,null,null,null,null,null,null,null,null,null,null,null,null,{"$f":"IF(B44=\"\",0,IF((SUM(D45:W54)=0),SUM(D44:W44),\"\"))","v":0},{"$error":"#DIV/0!"}]
[null,null,null,null,null,null,null,null,null,null,null,null,null,null,null,null,null,null,null,null,null,null,null,0,{"$error":"#DIV/0!"}]
[null,null,null,null,null,null,null,null,null,null,null,null,null,null,null,null,null,null,null,null,null,null,null,0,{"$error":"#DIV/0!"}]
[null,null,null,null,null,null,null,null,null,null,null,null,null,null,null,null,null,null,null,null,null,null,null,0,{"$error":"#DIV/0!"}]
[null,null,null,null,null,null,null,null,null,null,null,null,null,null,null,null,null,null,null,null,null,null,null,0,{"$error":"#DIV/0!"}]
[null,null,null,null,null,null,null,null,null,null,null,null,null,null,null,null,null,null,null,null,null,null,null,0,{"$error":"#DIV/0!"}]
[null,null,null,null,null,null,null,null,null,null,null,null,null,null,null,null,null,null,null,null,null,null,null,0,{"$error":"#DIV/0!"}]
[null,null,null,null,null,null,null,null,null,null,null,null,null,null,null,null,null,null,null,null,null,null,null,0,{"$error":"#DIV/0!"}]
[null,null,null,null,null,null,null,null,null,null,null,null,null,null,null,null,null,null,null,null,null,null,null,0,{"$error":"#DIV/0!"}]
[null,null,null,null,null,null,null,null,null,null,null,null,null,null,null,null,null,null,null,null,null,null,null,0,{"$error":"#DIV/0!"}]
[null,null,null,null,null,null,null,null,null,null,null,null,null,null,null,null,null,null,null,null,null,null,null,0,{"$error":"#DIV/0!"}]
[2,"Marine Vessel Maintenance Design",null,null,null,null,null,null,null,null,null,null,null,null,null,null,null,null,null,null,null,null,null,{"$f":"IF(B55=\"\",0,IF((SUM(D56:W97)=0),SUM(D55:W55),\"\"))","v":0},{"$error":"#DIV/0!"}]
[null,null,null,null,null,null,null,null,null,null,null,null,null,null,null,null,null,null,null,null,null,null,null,{"$f":"IF(B56=\"\",0,IF((SUM(D56:W56)=0),0,SUM(D56:W56)))","v":0},{"$error":"#DIV/0!"}]
[null,null,null,null,null,null,null,null,null,null,null,null,null,null,null,null,null,null,null,null,null,null,null,0,{"$error":"#DIV/0!"}]
[null,null,null,null,null,null,null,null,null,null,null,null,null,null,null,null,null,null,null,null,null,null,null,0,{"$error":"#DIV/0!"}]
[null,null,null,null,null,null,null,null,null,null,null,null,null,null,null,null,null,null,null,null,null,null,null,0,{"$error":"#DIV/0!"}]
[null,null,null,null,null,null,null,null,null,null,null,null,null,null,null,null,null,null,null,null,null,null,null,0,{"$error":"#DIV/0!"}]
[null,null,null,null,null,null,null,null,null,null,null,null,null,null,null,null,null,null,null,null,null,null,null,0,{"$error":"#DIV/0!"}]
[null,null,null,null,null,null,null,null,null,null,null,null,null,null,null,null,null,null,null,null,null,null,null,0,{"$error":"#DIV/0!"}]
[null,null,null,null,null,null,null,null,null,null,null,null,null,null,null,null,null,null,null,null,null,null,null,0,{"$error":"#DIV/0!"}]
[null,null,null,null,null,null,null,null,null,null,null,null,null,null,null,null,null,null,null,null,null,null,null,{"$f":"IF(B64=\"\",0,IF((SUM(D64:W64)=0),0,SUM(D64:W64)))","v":0},{"$error":"#DIV/0!"}]
[null,null,null,null,null,null,null,null,null,null,null,null,null,null,null,null,null,null,null,null,null,null,null,{"$f":"IF(B65=\"\",0,IF((SUM(D65:W65)=0),0,SUM(D65:W65)))","v":0},{"$error":"#DIV/0!"}]
[null,"Planning and Coordination Meetings",null,null,null,null,null,null,null,null,null,null,null,null,null,null,null,null,null,null,null,null,null,{"$f":"IF(B66=\"\",0,IF((SUM(D67:W76)=0),SUM(D66:W66),\"\"))","v":0},{"$error":"#DIV/0!"}]
[null,null,null,null,null,null,null,null,null,null,null,null,null,null,null,null,null,null,null,null,null,null,null,{"$f":"IF(B67=\"\",0,IF((SUM(D67:W67)=0),0,SUM(D67:W67)))","v":0},{"$error":"#DIV/0!"}]
[null,null,null,null,null,null,null,null,null,null,null,null,null,null,null,null,null,null,null,null,null,null,null,0,{"$error":"#DIV/0!"}]
[null,null,null,null,null,null,null,null,null,null,null,null,null,null,null,null,null,null,null,null,null,null,null,0,{"$error":"#DIV/0!"}]
[null,null,null,null,null,null,null,null,null,null,null,null,null,null,null,null,null,null,null,null,null,null,null,0,{"$error":"#DIV/0!"}]
[null,null,null,null,null,null,null,null,null,null,null,null,null,null,null,null,null,null,null,null,null,null,null,0,{"$error":"#DIV/0!"}]
[null,null,null,null,null,null,null,null,null,null,null,null,null,null,null,null,null,null,null,null,null,null,null,0,{"$error":"#DIV/0!"}]
[null,null,null,null,null,null,null,null,null,null,null,null,null,null,null,null,null,null,null,null,null,null,null,0,{"$error":"#DIV/0!"}]
[null,null,null,null,null,null,null,null,null,null,null,null,null,null,null,null,null,null,null,null,null,null,null,0,{"$error":"#DIV/0!"}]
[null,null,null,null,null,null,null,null,null,null,null,null,null,null,null,null,null,null,null,null,null,null,null,{"$f":"IF(B75=\"\",0,IF((SUM(D75:W75)=0),0,SUM(D75:W75)))","v":0},{"$f":"IF(X75=\"\",\"\",SUM((X75/$X$274)))","v":{"$error":"#DIV/0!"}}]
[null,null,null,null,null,null,null,null,null,null,null,null,null,null,null,null,null,null,null,null,null,null,null,{"$f":"IF(B76=\"\",0,IF((SUM(D76:W76)=0),0,SUM(D76:W76)))","v":0},{"$error":"#DIV/0!"}]
[null,"Review and Interviews\n**Review can apply to requirements (USC CFR, State policy) generally study related\n**Review can also apply to schematics / blue prints generally design related",null,null,null,null,null,null,null,null,null,null,null,null,null,null,null,null,null,null,null,null,null,{"$f":"IF(B77=\"\",0,IF((SUM(D78:W87)=0),SUM(D77:W77),\"\"))","v":0},{"$error":"#DIV/0!"}]
[null,null,null,null,null,null,null,null,null,null,null,null,null,null,null,null,null,null,null,null,null,null,null,{"$f":"IF(B78=\"\",0,IF((SUM(D78:W78)=0),0,SUM(D78:W78)))","v":0},{"$error":"#DIV/0!"}]
[null,null,null,null,null,null,null,null,null,null,null,null,null,null,null,null,null,null,null,null,null,null,null,0,{"$error":"#DIV/0!"}]
[null,null,null,null,null,null,null,null,null,null,null,null,null,null,null,null,null,null,null,null,null,null,null,0,{"$error":"#DIV/0!"}]
[null,null,null,null,null,null,null,null,null,null,null,null,null,null,null,null,null,null,null,null,null,null,null,0,{"$error":"#DIV/0!"}]
[null,null,null,null,null,null,null,null,null,null,null,null,null,null,null,null,null,null,null,null,null,null,null,0,{"$error":"#DIV/0!"}]
[null,null,null,null,null,null,null,null,null,null,null,null,null,null,null,null,null,null,null,null,null,null,null,0,{"$error":"#DIV/0!"}]
[null,null,null,null,null,null,null,null,null,null,null,null,null,null,null,null,null,null,null,null,null,null,null,0,{"$error":"#DIV/0!"}]
[null,null,null,null,null,null,null,null,null,null,null,null,null,null,null,null,null,null,null,null,null,null,null,0,{"$error":"#DIV/0!"}]
[null,null,null,null,null,null,null,null,null,null,null,null,null,null,null,null,null,null,null,null,null,null,null,0,{"$error":"#DIV/0!"}]
[null,null,null,null,null,null,null,null,null,null,null,null,null,null,null,null,null,null,null,null,null,null,null,0,{"$error":"#DIV/0!"}]
[null,"Reporting and Presentation",null,null,null,null,null,null,null,null,null,null,null,null,null,null,null,null,null,null,null,null,null,{"$f":"IF(B88=\"\",0,IF((SUM(D89:W98)=0),SUM(D88:W88),\"\"))","v":0},{"$error":"#DIV/0!"}]
[null,null,null,null,null,null,null,null,null,null,null,null,null,null,null,null,null,null,null,null,null,null,null,{"$f":"IF(B89=\"\",0,IF((SUM(D89:W89)=0),0,SUM(D89:W89)))","v":0},{"$error":"#DIV/0!"}]
[null,null,null,null,null,null,null,null,null,null,null,null,null,null,null,null,null,null,null,null,null,null,null,0,{"$error":"#DIV/0!"}]
[null,null,null,null,null,null,null,null,null,null,null,null,null,null,null,null,null,null,null,null,null,null,null,0,{"$error":"#DIV/0!"}]
[null,null,null,null,null,null,null,null,null,null,null,null,null,null,null,null,null,null,null,null,null,null,null,0,{"$error":"#DIV/0!"}]
[null,null,null,null,null,null,null,null,null,null,null,null,null,null,null,null,null,null,null,null,null,null,null,0,{"$error":"#DIV/0!"}]
[null,null,null,null,null,null,null,null,null,null,null,null,null,null,null,null,null,null,null,null,null,null,null,0,{"$error":"#DIV/0!"}]
[null,null,null,null,null,null,null,null,null,null,null,null,null,null,null,null,null,null,null,null,null,null,null,0,{"$error":"#DIV/0!"}]
[null,null,null,null,null,null,null,null,null,null,null,null,null,null,null,null,null,null,null,null,null,null,null,0,{"$error":"#DIV/0!"}]
[null,null,null,null,null,null,null,null,null,null,null,null,null,null,null,null,null,null,null,null,null,null,null,0,{"$error":"#DIV/0!"}]
[3,"Terminal Assets Design",null,null,null,null,null,null,null,null,null,null,null,null,null,null,null,null,null,null,null,null,null,{"$f":"IF(B98=\"\",0,IF((SUM(D99:W141)=0),SUM(D98:W98),\"\"))","v":0},{"$error":"#DIV/0!"}]
[null,null,null,null,null,null,null,null,null,null,null,null,null,null,null,null,null,null,null,null,null,null,null,{"$f":"IF(B99=\"\",0,IF((SUM(D99:W99)=0),0,SUM(D99:W99)))","v":0},{"$error":"#DIV/0!"}]
[null,null,null,null,null,null,null,null,null,null,null,null,null,null,null,null,null,null,null,null,null,null,null,0,{"$error":"#DIV/0!"}]
[null,null,null,null,null,null,null,null,null,null,null,null,null,null,null,null,null,null,null,null,null,null,null,0,{"$error":"#DIV/0!"}]
[null,null,null,null,null,null,null,null,null,null,null,null,null,null,null,null,null,null,null,null,null,null,null,0,{"$error":"#DIV/0!"}]
[null,null,null,null,null,null,null,null,null,null,null,null,null,null,null,null,null,null,null,null,null,null,null,0,{"$error":"#DIV/0!"}]
[null,null,null,null,null,null,null,null,null,null,null,null,null,null,null,null,null,null,null,null,null,null,null,0,{"$error":"#DIV/0!"}]
[null,null,null,null,null,null,null,null,null,null,null,null,null,null,null,null,null,null,null,null,null,null,null,0,{"$error":"#DIV/0!"}]
[null,null,null,null,null,null,null,null,null,null,null,null,null,null,null,null,null,null,null,null,null,null,null,0,{"$error":"#DIV/0!"}]
[null,null,null,null,null,null,null,null,null,null,null,null,null,null,null,null,null,null,null,null,null,null,null,{"$f":"IF(B107=\"\",0,IF((SUM(D107:W107)=0),0,SUM(D107:W107)))","v":0},{"$error":"#DIV/0!"}]
[null,null,null,null,null,null,null,null,null,null,null,null,null,null,null,null,null,null,null,null,null,null,null,{"$f":"IF(B108=\"\",0,IF((SUM(D108:W108)=0),0,SUM(D108:W108)))","v":0},{"$error":"#DIV/0!"}]
[null,"Planning and Coordination Meetings",null,null,null,null,null,null,null,null,null,null,null,null,null,null,null,null,null,null,null,null,null,{"$f":"IF(B109=\"\",0,IF((SUM(D110:W119)=0),SUM(D109:W109),\"\"))","v":0},{"$error":"#DIV/0!"}]
[null,null,null,null,null,null,null,null,null,null,null,null,null,null,null,null,null,null,null,null,null,null,null,{"$f":"IF(B110=\"\",0,IF((SUM(D110:W110)=0),0,SUM(D110:W110)))","v":0},{"$error":"#DIV/0!"}]
[null,null,null,null,null,null,null,null,null,null,null,null,null,null,null,null,null,null,null,null,null,null,null,0,{"$error":"#DIV/0!"}]
[null,null,null,null,null,null,null,null,null,null,null,null,null,null,null,null,null,null,null,null,null,null,null,0,{"$error":"#DIV/0!"}]
[null,null,null,null,null,null,null,null,null,null,null,null,null,null,null,null,null,null,null,null,null,null,null,0,{"$error":"#DIV/0!"}]
[null,null,null,null,null,null,null,null,null,null,null,null,null,null,null,null,null,null,null,null,null,null,null,0,{"$error":"#DIV/0!"}]
[null,null,null,null,null,null,null,null,null,null,null,null,null,null,null,null,null,null,null,null,null,null,null,0,{"$error":"#DIV/0!"}]
[null,null,null,null,null,null,null,null,null,null,null,null,null,null,null,null,null,null,null,null,null,null,null,0,{"$error":"#DIV/0!"}]
[null,null,null,null,null,null,null,null,null,null,null,null,null,null,null,null,null,null,null,null,null,null,null,0,{"$error":"#DIV/0!"}]
[null,null,null,null,null,null,null,null,null,null,null,null,null,null,null,null,null,null,null,null,null,null,null,{"$f":"IF(B118=\"\",0,IF((SUM(D118:W118)=0),0,SUM(D118:W118)))","v":0},{"$error":"#DIV/0!"}]
[null,null,null,null,null,null,null,null,null,null,null,null,null,null,null,null,null,null,null,null,null,null,null,{"$f":"IF(B119=\"\",0,IF((SUM(D119:W119)=0),0,SUM(D119:W119)))","v":0},{"$error":"#DIV/0!"}]
[null,"Review and Interviews\n**Review can apply to requirements (USC CFR, State policy) generally study related\n**Review can also apply to schematics / blue prints generally design related",null,null,null,null,null,null,null,null,null,null,null,null,null,null,null,null,null,null,null,null,null,{"$f":"IF(B120=\"\",0,IF((SUM(D121:W130)=0),SUM(D120:W120),\"\"))","v":0},{"$error":"#DIV/0!"}]
[null,null,null,null,null,null,null,null,null,null,null,null,null,null,null,null,null,null,null,null,null,null,null,{"$f":"IF(B121=\"\",0,IF((SUM(D121:W121)=0),0,SUM(D121:W121)))","v":0},{"$error":"#DIV/0!"}]
[null,null,null,null,null,null,null,null,null,null,null,null,null,null,null,null,null,null,null,null,null,null,null,0,{"$error":"#DIV/0!"}]
[null,null,null,null,null,null,null,null,null,null,null,null,null,null,null,null,null,null,null,null,null,null,null,0,{"$error":"#DIV/0!"}]
[null,null,null,null,null,null,null,null,null,null,null,null,null,null,null,null,null,null,null,null,null,null,null,0,{"$error":"#DIV/0!"}]
[null,null,null,null,null,null,null,null,null,null,null,null,null,null,null,null,null,null,null,null,null,null,null,0,{"$error":"#DIV/0!"}]
[null,null,null,null,null,null,null,null,null,null,null,null,null,null,null,null,null,null,null,null,null,null,null,0,{"$error":"#DIV/0!"}]
[null,null,null,null,null,null,null,null,null,null,null,null,null,null,null,null,null,null,null,null,null,null,null,0,{"$error":"#DIV/0!"}]
[null,null,null,null,null,null,null,null,null,null,null,null,null,null,null,null,null,null,null,null,null,null,null,0,{"$error":"#DIV/0!"}]
[null,null,null,null,null,null,null,null,null,null,null,null,null,null,null,null,null,null,null,null,null,null,null,0,{"$error":"#DIV/0!"}]
[null,null,null,null,null,null,null,null,null,null,null,null,null,null,null,null,null,null,null,null,null,null,null,0,{"$error":"#DIV/0!"}]
[null,"Reporting and Presentation",null,null,null,null,null,null,null,null,null,null,null,null,null,null,null,null,null,null,null,null,null,{"$f":"IF(B131=\"\",0,IF((SUM(D132:W141)=0),SUM(D131:W131),\"\"))","v":0},{"$error":"#DIV/0!"}]
[null,null,null,null,null,null,null,null,null,null,null,null,null,null,null,null,null,null,null,null,null,null,null,{"$f":"IF(B132=\"\",0,IF((SUM(D132:W132)=0),0,SUM(D132:W132)))","v":0},{"$error":"#DIV/0!"}]
[null,null,null,null,null,null,null,null,null,null,null,null,null,null,null,null,null,null,null,null,null,null,null,0,{"$error":"#DIV/0!"}]
[null,null,null,null,null,null,null,null,null,null,null,null,null,null,null,null,null,null,null,null,null,null,null,0,{"$error":"#DIV/0!"}]
[null,null,null,null,null,null,null,null,null,null,null,null,null,null,null,null,null,null,null,null,null,null,null,0,{"$error":"#DIV/0!"}]
[null,null,null,null,null,null,null,null,null,null,null,null,null,null,null,null,null,null,null,null,null,null,null,0,{"$error":"#DIV/0!"}]
[null,null,null,null,null,null,null,null,null,null,null,null,null,null,null,null,null,null,null,null,null,null,null,0,{"$error":"#DIV/0!"}]
[null,null,null,null,null,null,null,null,null,null,null,null,null,null,null,null,null,null,null,null,null,null,null,0,{"$error":"#DIV/0!"}]
[null,null,null,null,null,null,null,null,null,null,null,null,null,null,null,null,null,null,null,null,null,null,null,0,{"$f":"IF(X139=\"\",\"\",SUM((X139/$X$274)))","v":{"$error":"#DIV/0!"}}]
[null,null,null,null,null,null,null,null,null,null,null,null,null,null,null,null,null,null,null,null,null,null,null,0,{"$error":"#DIV/0!"}]
[null,null,null,null,null,null,null,null,null,null,null,null,null,null,null,null,null,null,null,null,null,null,null,{"$f":"IF(B141=\"\",0,IF((SUM(D141:W141)=0),0,SUM(D141:W141)))","v":0},{"$error":"#DIV/0!"}]
[4,"Dredging, Planning and Permits",null,null,null,null,null,null,null,null,null,null,null,null,null,null,null,null,null,null,null,null,null,{"$f":"IF(B142=\"\",0,IF((SUM(D143:W185)=0),SUM(D142:W142),\"\"))","v":0},{"$error":"#DIV/0!"}]
[null,null,null,null,null,null,null,null,null,null,null,null,null,null,null,null,null,null,null,null,null,null,null,{"$f":"IF(B143=\"\",0,IF((SUM(D143:W143)=0),0,SUM(D143:W143)))","v":0},{"$error":"#DIV/0!"}]
[null,null,null,null,null,null,null,null,null,null,null,null,null,null,null,null,null,null,null,null,null,null,null,0,{"$error":"#DIV/0!"}]
[null,null,null,null,null,null,null,null,null,null,null,null,null,null,null,null,null,null,null,null,null,null,null,0,{"$error":"#DIV/0!"}]
[null,null,null,null,null,null,null,null,null,null,null,null,null,null,null,null,null,null,null,null,null,null,null,0,{"$error":"#DIV/0!"}]
[null,null,null,null,null,null,null,null,null,null,null,null,null,null,null,null,null,null,null,null,null,null,null,0,{"$error":"#DIV/0!"}]
[null,null,null,null,null,null,null,null,null,null,null,null,null,null,null,null,null,null,null,null,null,null,null,0,{"$error":"#DIV/0!"}]
[null,null,null,null,null,null,null,null,null,null,null,null,null,null,null,null,null,null,null,null,null,null,null,0,{"$error":"#DIV/0!"}]
[null,null,null,null,null,null,null,null,null,null,null,null,null,null,null,null,null,null,null,null,null,null,null,0,{"$error":"#DIV/0!"}]
[null,null,null,null,null,null,null,null,null,null,null,null,null,null,null,null,null,null,null,null,null,null,null,{"$f":"IF(B151=\"\",0,IF((SUM(D151:W151)=0),0,SUM(D151:W151)))","v":0},{"$error":"#DIV/0!"}]
[null,null,null,null,null,null,null,null,null,null,null,null,null,null,null,null,null,null,null,null,null,null,null,{"$f":"IF(B152=\"\",0,IF((SUM(D152:W152)=0),0,SUM(D152:W152)))","v":0},{"$error":"#DIV/0!"}]
[null,"Planning and Coordination Meetings",null,null,null,null,null,null,null,null,null,null,null,null,null,null,null,null,null,null,null,null,null,{"$f":"IF(B153=\"\",0,IF((SUM(D154:W163)=0),SUM(D153:W153),\"\"))","v":0},{"$error":"#DIV/0!"}]
[null,null,null,null,null,null,null,null,null,null,null,null,null,null,null,null,null,null,null,null,null,null,null,{"$f":"IF(B154=\"\",0,IF((SUM(D154:W154)=0),0,SUM(D154:W154)))","v":0},{"$error":"#DIV/0!"}]
[null,null,null,null,null,null,null,null,null,null,null,null,null,null,null,null,null,null,null,null,null,null,null,0,{"$error":"#DIV/0!"}]
[null,null,null,null,null,null,null,null,null,null,null,null,null,null,null,null,null,null,null,null,null,null,null,0,{"$error":"#DIV/0!"}]
[null,null,null,null,null,null,null,null,null,null,null,null,null,null,null,null,null,null,null,null,null,null,null,0,{"$error":"#DIV/0!"}]
[null,null,null,null,null,null,null,null,null,null,null,null,null,null,null,null,null,null,null,null,null,null,null,0,{"$error":"#DIV/0!"}]
[null,null,null,null,null,null,null,null,null,null,null,null,null,null,null,null,null,null,null,null,null,null,null,0,{"$error":"#DIV/0!"}]
[null,null,null,null,null,null,null,null,null,null,null,null,null,null,null,null,null,null,null,null,null,null,null,0,{"$error":"#DIV/0!"}]
[null,null,null,null,null,null,null,null,null,null,null,null,null,null,null,null,null,null,null,null,null,null,null,0,{"$error":"#DIV/0!"}]
[null,null,null,null,null,null,null,null,null,null,null,null,null,null,null,null,null,null,null,null,null,null,null,{"$f":"IF(B162=\"\",0,IF((SUM(D162:W162)=0),0,SUM(D162:W162)))","v":0},{"$error":"#DIV/0!"}]
[null,null,null,null,null,null,null,null,null,null,null,null,null,null,null,null,null,null,null,null,null,null,null,{"$f":"IF(B163=\"\",0,IF((SUM(D163:W163)=0),0,SUM(D163:W163)))","v":0},{"$error":"#DIV/0!"}]
[null,"Review and Interviews\n**Review can apply to requirements (USC CFR, State policy) generally study related\n**Review can also apply to schematics / blue prints generally design related",null,null,null,null,null,null,null,null,null,null,null,null,null,null,null,null,null,null,null,null,null,{"$f":"IF(B164=\"\",0,IF((SUM(D165:W174)=0),SUM(D164:W164),\"\"))","v":0},{"$error":"#DIV/0!"}]
[null,null,null,null,null,null,null,null,null,null,null,null,null,null,null,null,null,null,null,null,null,null,null,{"$f":"IF(B165=\"\",0,IF((SUM(D165:W165)=0),0,SUM(D165:W165)))","v":0},{"$error":"#DIV/0!"}]
[null,null,null,null,null,null,null,null,null,null,null,null,null,null,null,null,null,null,null,null,null,null,null,0,{"$error":"#DIV/0!"}]
[null,null,null,null,null,null,null,null,null,null,null,null,null,null,null,null,null,null,null,null,null,null,null,0,{"$error":"#DIV/0!"}]
[null,null,null,null,null,null,null,null,null,null,null,null,null,null,null,null,null,null,null,null,null,null,null,0,{"$error":"#DIV/0!"}]
[null,null,null,null,null,null,null,null,null,null,null,null,null,null,null,null,null,null,null,null,null,null,null,0,{"$error":"#DIV/0!"}]
[null,null,null,null,null,null,null,null,null,null,null,null,null,null,null,null,null,null,null,null,null,null,null,0,{"$error":"#DIV/0!"}]
[null,null,null,null,null,null,null,null,null,null,null,null,null,null,null,null,null,null,null,null,null,null,null,0,{"$error":"#DIV/0!"}]
[null,null,null,null,null,null,null,null,null,null,null,null,null,null,null,null,null,null,null,null,null,null,null,0,{"$error":"#DIV/0!"}]
[null,null,null,null,null,null,null,null,null,null,null,null,null,null,null,null,null,null,null,null,null,null,null,0,{"$error":"#DIV/0!"}]
[null,null,null,null,null,null,null,null,null,null,null,null,null,null,null,null,null,null,null,null,null,null,null,0,{"$error":"#DIV/0!"}]
[null,"Reporting and Presentation",null,null,null,null,null,null,null,null,null,null,null,null,null,null,null,null,null,null,null,null,null,{"$f":"IF(B175=\"\",0,IF((SUM(D176:W185)=0),SUM(D175:W175),\"\"))","v":0},{"$error":"#DIV/0!"}]
[null,null,null,null,null,null,null,null,null,null,null,null,null,null,null,null,null,null,null,null,null,null,null,{"$f":"IF(B176=\"\",0,IF((SUM(D176:W176)=0),0,SUM(D176:W176)))","v":0},{"$error":"#DIV/0!"}]
[null,null,null,null,null,null,null,null,null,null,null,null,null,null,null,null,null,null,null,null,null,null,null,0,{"$error":"#DIV/0!"}]
[null,null,null,null,null,null,null,null,null,null,null,null,null,null,null,null,null,null,null,null,null,null,null,0,{"$error":"#DIV/0!"}]
[null,null,null,null,null,null,null,null,null,null,null,null,null,null,null,null,null,null,null,null,null,null,null,0,{"$error":"#DIV/0!"}]
[null,null,null,null,null,null,null,null,null,null,null,null,null,null,null,null,null,null,null,null,null,null,null,0,{"$error":"#DIV/0!"}]
[null,null,null,null,null,null,null,null,null,null,null,null,null,null,null,null,null,null,null,null,null,null,null,0,{"$error":"#DIV/0!"}]
[null,null,null,null,null,null,null,null,null,null,null,null,null,null,null,null,null,null,null,null,null,null,null,0,{"$error":"#DIV/0!"}]
[null,null,null,null,null,null,null,null,null,null,null,null,null,null,null,null,null,null,null,null,null,null,null,0,{"$error":"#DIV/0!"}]
[null,null,null,null,null,null,null,null,null,null,null,null,null,null,null,null,null,null,null,null,null,null,null,0,{"$error":"#DIV/0!"}]
[null,null,null,null,null,null,null,null,null,null,null,null,null,null,null,null,null,null,null,null,null,null,null,0,{"$error":"#DIV/0!"}]
[5,"Vessel Asset Management",null,null,null,null,null,null,null,null,null,null,null,null,null,null,null,null,null,null,null,null,null,{"$f":"IF(B186=\"\",0,IF((SUM(D187:W229)=0),SUM(D186:W186),\"\"))","v":0},{"$error":"#DIV/0!"}]
[null,null,null,null,null,null,null,null,null,null,null,null,null,null,null,null,null,null,null,null,null,null,null,{"$f":"IF(B187=\"\",0,IF((SUM(D187:W187)=0),0,SUM(D187:W187)))","v":0},{"$error":"#DIV/0!"}]
[null,null,null,null,null,null,null,null,null,null,null,null,null,null,null,null,null,null,null,null,null,null,null,0,{"$error":"#DIV/0!"}]
[null,null,null,null,null,null,null,null,null,null,null,null,null,null,null,null,null,null,null,null,null,null,null,0,{"$error":"#DIV/0!"}]
[null,null,null,null,null,null,null,null,null,null,null,null,null,null,null,null,null,null,null,null,null,null,null,0,{"$error":"#DIV/0!"}]
[null,null,null,null,null,null,null,null,null,null,null,null,null,null,null,null,null,null,null,null,null,null,null,0,{"$error":"#DIV/0!"}]
[null,null,null,null,null,null,null,null,null,null,null,null,null,null,null,null,null,null,null,null,null,null,null,0,{"$error":"#DIV/0!"}]
[null,null,null,null,null,null,null,null,null,null,null,null,null,null,null,null,null,null,null,null,null,null,null,0,{"$error":"#DIV/0!"}]
[null,null,null,null,null,null,null,null,null,null,null,null,null,null,null,null,null,null,null,null,null,null,null,0,{"$error":"#DIV/0!"}]
[null,null,null,null,null,null,null,null,null,null,null,null,null,null,null,null,null,null,null,null,null,null,null,{"$f":"IF(B195=\"\",0,IF((SUM(D195:W195)=0),0,SUM(D195:W195)))","v":0},{"$error":"#DIV/0!"}]
[null,null,null,null,null,null,null,null,null,null,null,null,null,null,null,null,null,null,null,null,null,null,null,{"$f":"IF(B196=\"\",0,IF((SUM(D196:W196)=0),0,SUM(D196:W196)))","v":0},{"$error":"#DIV/0!"}]
[null,"Planning and Coordination Meetings",null,null,null,null,null,null,null,null,null,null,null,null,null,null,null,null,null,null,null,null,null,{"$f":"IF(B197=\"\",0,IF((SUM(D198:W207)=0),SUM(D197:W197),\"\"))","v":0},{"$error":"#DIV/0!"}]
[null,null,null,null,null,null,null,null,null,null,null,null,null,null,null,null,null,null,null,null,null,null,null,{"$f":"IF(B198=\"\",0,IF((SUM(D198:W198)=0),0,SUM(D198:W198)))","v":0},{"$error":"#DIV/0!"}]
[null,null,null,null,null,null,null,null,null,null,null,null,null,null,null,null,null,null,null,null,null,null,null,0,{"$error":"#DIV/0!"}]
[null,null,null,null,null,null,null,null,null,null,null,null,null,null,null,null,null,null,null,null,null,null,null,0,{"$error":"#DIV/0!"}]
[null,null,null,null,null,null,null,null,null,null,null,null,null,null,null,null,null,null,null,null,null,null,null,0,{"$error":"#DIV/0!"}]
[null,null,null,null,null,null,null,null,null,null,null,null,null,null,null,null,null,null,null,null,null,null,null,0,{"$error":"#DIV/0!"}]
[null,null,null,null,null,null,null,null,null,null,null,null,null,null,null,null,null,null,null,null,null,null,null,0,{"$f":"IF(X203=\"\",\"\",SUM((X203/$X$274)))","v":{"$error":"#DIV/0!"}}]
[null,null,null,null,null,null,null,null,null,null,null,null,null,null,null,null,null,null,null,null,null,null,null,0,{"$error":"#DIV/0!"}]
[null,null,null,null,null,null,null,null,null,null,null,null,null,null,null,null,null,null,null,null,null,null,null,0,{"$error":"#DIV/0!"}]
[null,null,null,null,null,null,null,null,null,null,null,null,null,null,null,null,null,null,null,null,null,null,null,{"$f":"IF(B206=\"\",0,IF((SUM(D206:W206)=0),0,SUM(D206:W206)))","v":0},{"$error":"#DIV/0!"}]
[null,null,null,null,null,null,null,null,null,null,null,null,null,null,null,null,null,null,null,null,null,null,null,{"$f":"IF(B207=\"\",0,IF((SUM(D207:W207)=0),0,SUM(D207:W207)))","v":0},{"$error":"#DIV/0!"}]
[null,"Review and Interviews\n**Review can apply to requirements (USC CFR, State policy) generally study related\n**Review can also apply to schematics / blue prints generally design related",null,null,null,null,null,null,null,null,null,null,null,null,null,null,null,null,null,null,null,null,null,{"$f":"IF(B208=\"\",0,IF((SUM(D209:W218)=0),SUM(D208:W208),\"\"))","v":0},{"$error":"#DIV/0!"}]
[null,null,null,null,null,null,null,null,null,null,null,null,null,null,null,null,null,null,null,null,null,null,null,{"$f":"IF(B209=\"\",0,IF((SUM(D209:W209)=0),0,SUM(D209:W209)))","v":0},{"$error":"#DIV/0!"}]
[null,null,null,null,null,null,null,null,null,null,null,null,null,null,null,null,null,null,null,null,null,null,null,0,{"$error":"#DIV/0!"}]
[null,null,null,null,null,null,null,null,null,null,null,null,null,null,null,null,null,null,null,null,null,null,null,0,{"$error":"#DIV/0!"}]
[null,null,null,null,null,null,null,null,null,null,null,null,null,null,null,null,null,null,null,null,null,null,null,0,{"$error":"#DIV/0!"}]
[null,null,null,null,null,null,null,null,null,null,null,null,null,null,null,null,null,null,null,null,null,null,null,0,{"$error":"#DIV/0!"}]
[null,null,null,null,null,null,null,null,null,null,null,null,null,null,null,null,null,null,null,null,null,null,null,0,{"$error":"#DIV/0!"}]
[null,null,null,null,null,null,null,null,null,null,null,null,null,null,null,null,null,null,null,null,null,null,null,0,{"$error":"#DIV/0!"}]
[null,null,null,null,null,null,null,null,null,null,null,null,null,null,null,null,null,null,null,null,null,null,null,0,{"$error":"#DIV/0!"}]
[null,null,null,null,null,null,null,null,null,null,null,null,null,null,null,null,null,null,null,null,null,null,null,0,{"$error":"#DIV/0!"}]
[null,null,null,null,null,null,null,null,null,null,null,null,null,null,null,null,null,null,null,null,null,null,null,0,{"$error":"#DIV/0!"}]
[null,"Reporting and Presentation",null,null,null,null,null,null,null,null,null,null,null,null,null,null,null,null,null,null,null,null,null,{"$f":"IF(B219=\"\",0,IF((SUM(D220:W229)=0),SUM(D219:W219),\"\"))","v":0},{"$error":"#DIV/0!"}]
[null,null,null,null,null,null,null,null,null,null,null,null,null,null,null,null,null,null,null,null,null,null,null,{"$f":"IF(B220=\"\",0,IF((SUM(D220:W220)=0),0,SUM(D220:W220)))","v":0},{"$error":"#DIV/0!"}]
[null,null,null,null,null,null,null,null,null,null,null,null,null,null,null,null,null,null,null,null,null,null,null,0,{"$error":"#DIV/0!"}]
[null,null,null,null,null,null,null,null,null,null,null,null,null,null,null,null,null,null,null,null,null,null,null,0,{"$error":"#DIV/0!"}]
[null,null,null,null,null,null,null,null,null,null,null,null,null,null,null,null,null,null,null,null,null,null,null,0,{"$error":"#DIV/0!"}]
[null,null,null,null,null,null,null,null,null,null,null,null,null,null,null,null,null,null,null,null,null,null,null,0,{"$error":"#DIV/0!"}]
[null,null,null,null,null,null,null,null,null,null,null,null,null,null,null,null,null,null,null,null,null,null,null,0,{"$error":"#DIV/0!"}]
[null,null,null,null,null,null,null,null,null,null,null,null,null,null,null,null,null,null,null,null,null,null,null,0,{"$error":"#DIV/0!"}]
[null,null,null,null,null,null,null,null,null,null,null,null,null,null,null,null,null,null,null,null,null,null,null,0,{"$error":"#DIV/0!"}]
[null,null,null,null,null,null,null,null,null,null,null,null,null,null,null,null,null,null,null,null,null,null,null,0,{"$error":"#DIV/0!"}]
[null,null,null,null,null,null,null,null,null,null,null,null,null,null,null,null,null,null,null,null,null,null,null,0,{"$error":"#DIV/0!"}]
[6,"OTHER TYPE (PLEASE KEY TYPE)",null,null,null,null,null,null,null,null,null,null,null,null,null,null,null,null,null,null,null,null,null,{"$f":"IF(B230=\"\",0,IF((SUM(D231:W273)=0),SUM(D230:W230),\"\"))","v":0},{"$error":"#DIV/0!"}]
[null,null,null,null,null,null,null,null,null,null,null,null,null,null,null,null,null,null,null,null,null,null,null,{"$f":"IF(B231=\"\",0,IF((SUM(D231:W231)=0),0,SUM(D231:W231)))","v":0},{"$error":"#DIV/0!"}]
[null,null,null,null,null,null,null,null,null,null,null,null,null,null,null,null,null,null,null,null,null,null,null,0,{"$error":"#DIV/0!"}]
[null,null,null,null,null,null,null,null,null,null,null,null,null,null,null,null,null,null,null,null,null,null,null,0,{"$error":"#DIV/0!"}]
[null,null,null,null,null,null,null,null,null,null,null,null,null,null,null,null,null,null,null,null,null,null,null,0,{"$error":"#DIV/0!"}]
[null,null,null,null,null,null,null,null,null,null,null,null,null,null,null,null,null,null,null,null,null,null,null,0,{"$error":"#DIV/0!"}]
[null,null,null,null,null,null,null,null,null,null,null,null,null,null,null,null,null,null,null,null,null,null,null,0,{"$error":"#DIV/0!"}]
[null,null,null,null,null,null,null,null,null,null,null,null,null,null,null,null,null,null,null,null,null,null,null,0,{"$error":"#DIV/0!"}]
[null,null,null,null,null,null,null,null,null,null,null,null,null,null,null,null,null,null,null,null,null,null,null,0,{"$error":"#DIV/0!"}]
[null,null,null,null,null,null,null,null,null,null,null,null,null,null,null,null,null,null,null,null,null,null,null,{"$f":"IF(B239=\"\",0,IF((SUM(D239:W239)=0),0,SUM(D239:W239)))","v":0},{"$error":"#DIV/0!"}]
[null,null,null,null,null,null,null,null,null,null,null,null,null,null,null,null,null,null,null,null,null,null,null,{"$f":"IF(B240=\"\",0,IF((SUM(D240:W240)=0),0,SUM(D240:W240)))","v":0},{"$error":"#DIV/0!"}]
[null,"Planning and Coordination Meetings",null,null,null,null,null,null,null,null,null,null,null,null,null,null,null,null,null,null,null,null,null,{"$f":"IF(B241=\"\",0,IF((SUM(D242:W251)=0),SUM(D241:W241),\"\"))","v":0},{"$error":"#DIV/0!"}]
[null,null,null,null,null,null,null,null,null,null,null,null,null,null,null,null,null,null,null,null,null,null,null,{"$f":"IF(B242=\"\",0,IF((SUM(D242:W242)=0),0,SUM(D242:W242)))","v":0},{"$error":"#DIV/0!"}]
[null,null,null,null,null,null,null,null,null,null,null,null,null,null,null,null,null,null,null,null,null,null,null,0,{"$error":"#DIV/0!"}]
[null,null,null,null,null,null,null,null,null,null,null,null,null,null,null,null,null,null,null,null,null,null,null,0,{"$error":"#DIV/0!"}]
[null,null,null,null,null,null,null,null,null,null,null,null,null,null,null,null,null,null,null,null,null,null,null,0,{"$error":"#DIV/0!"}]
[null,null,null,null,null,null,null,null,null,null,null,null,null,null,null,null,null,null,null,null,null,null,null,0,{"$error":"#DIV/0!"}]
[null,null,null,null,null,null,null,null,null,null,null,null,null,null,null,null,null,null,null,null,null,null,null,0,{"$error":"#DIV/0!"}]
[null,null,null,null,null,null,null,null,null,null,null,null,null,null,null,null,null,null,null,null,null,null,null,0,{"$error":"#DIV/0!"}]
[null,null,null,null,null,null,null,null,null,null,null,null,null,null,null,null,null,null,null,null,null,null,null,0,{"$error":"#DIV/0!"}]
[null,null,null,null,null,null,null,null,null,null,null,null,null,null,null,null,null,null,null,null,null,null,null,{"$f":"IF(B250=\"\",0,IF((SUM(D250:W250)=0),0,SUM(D250:W250)))","v":0},{"$error":"#DIV/0!"}]
[null,null,null,null,null,null,null,null,null,null,null,null,null,null,null,null,null,null,null,null,null,null,null,{"$f":"IF(B251=\"\",0,IF((SUM(D251:W251)=0),0,SUM(D251:W251)))","v":0},{"$error":"#DIV/0!"}]
[null,"Review and Interviews\n**Review can apply to requirements (USC CFR, State policy) generally study related\n**Review can also apply to schematics / blue prints generally design related",null,null,null,null,null,null,null,null,null,null,null,null,null,null,null,null,null,null,null,null,null,{"$f":"IF(B252=\"\",0,IF((SUM(D253:W262)=0),SUM(D252:W252),\"\"))","v":0},{"$error":"#DIV/0!"}]
[null,null,null,null,null,null,null,null,null,null,null,null,null,null,null,null,null,null,null,null,null,null,null,{"$f":"IF(B253=\"\",0,IF((SUM(D253:W253)=0),0,SUM(D253:W253)))","v":0},{"$error":"#DIV/0!"}]
[null,null,null,null,null,null,null,null,null,null,null,null,null,null,null,null,null,null,null,null,null,null,null,0,{"$error":"#DIV/0!"}]
[null,null,null,null,null,null,null,null,null,null,null,null,null,null,null,null,null,null,null,null,null,null,null,0,{"$error":"#DIV/0!"}]
[null,null,null,null,null,null,null,null,null,null,null,null,null,null,null,null,null,null,null,null,null,null,null,0,{"$error":"#DIV/0!"}]
[null,null,null,null,null,null,null,null,null,null,null,null,null,null,null,null,null,null,null,null,null,null,null,0,{"$error":"#DIV/0!"}]
[null,null,null,null,null,null,null,null,null,null,null,null,null,null,null,null,null,null,null,null,null,null,null,0,{"$error":"#DIV/0!"}]
[null,null,null,null,null,null,null,null,null,null,null,null,null,null,null,null,null,null,null,null,null,null,null,0,{"$error":"#DIV/0!"}]
[null,null,null,null,null,null,null,null,null,null,null,null,null,null,null,null,null,null,null,null,null,null,null,0,{"$error":"#DIV/0!"}]
[null,null,null,null,null,null,null,null,null,null,null,null,null,null,null,null,null,null,null,null,null,null,null,0,{"$error":"#DIV/0!"}]
[null,null,null,null,null,null,null,null,null,null,null,null,null,null,null,null,null,null,null,null,null,null,null,0,{"$error":"#DIV/0!"}]
[null,"Reporting and Presentation",null,null,null,null,null,null,null,null,null,null,null,null,null,null,null,null,null,null,null,null,null,{"$f":"IF(B263=\"\",0,IF((SUM(D264:W273)=0),SUM(D263:W263),\"\"))","v":0},{"$error":"#DIV/0!"}]
[null,null,null,null,null,null,null,null,null,null,null,null,null,null,null,null,null,null,null,null,null,null,null,{"$f":"IF(B264=\"\",0,IF((SUM(D264:W264)=0),0,SUM(D264:W264)))","v":0},{"$error":"#DIV/0!"}]
[null,null,null,null,null,null,null,null,null,null,null,null,null,null,null,null,null,null,null,null,null,null,null,0,{"$error":"#DIV/0!"}]
[null,null,null,null,null,null,null,null,null,null,null,null,null,null,null,null,null,null,null,null,null,null,null,0,{"$error":"#DIV/0!"}]
[null,null,null,null,null,null,null,null,null,null,null,null,null,null,null,null,null,null,null,null,null,null,null,0,{"$f":"IF(X267=\"\",\"\",SUM((X267/$X$274)))","v":{"$error":"#DIV/0!"}}]
[null,null,null,null,null,null,null,null,null,null,null,null,null,null,null,null,null,null,null,null,null,null,null,0,{"$error":"#DIV/0!"}]
[null,null,null,null,null,null,null,null,null,null,null,null,null,null,null,null,null,null,null,null,null,null,null,0,{"$error":"#DIV/0!"}]
[null,null,null,null,null,null,null,null,null,null,null,null,null,null,null,null,null,null,null,null,null,null,null,0,{"$error":"#DIV/0!"}]
[null,null,null,null,null,null,null,null,null,null,null,null,null,null,null,null,null,null,null,null,null,null,null,0,{"$error":"#DIV/0!"}]
[null,null,null,null,null,null,null,null,null,null,null,null,null,null,null,null,null,null,null,null,null,null,null,0,{"$error":"#DIV/0!"}]
[null,null,null,null,null,null,null,null,null,null,null,null,null,null,null,null,null,null,null,null,null,null,null,{"$f":"IF(B273=\"\",0,IF((SUM(D273:W273)=0),0,SUM(D273:W273)))","v":0},{"$error":"#DIV/0!"}]
[null,"TOTAL WORKHOURS/CATEGORY:",null,{"$f":"SUM(D11:D273)","v":0},0,0,0,0,0,0,0,0,0,0,0,0,0,0,0,0,0,0,0,0,{"$error":"#DIV/0!"},{"$f":"SUM(Z12:Z273)","v":0}]
[null,"TOTAL WORKDAYS/CATEGORY:",null,{"$f":"D274/8","v":0},{"$f":"E274/8","v":0},0,0,0,0,0,0,0,0,0,0,0,0,0,0,0,0,0,0]
[null,"HOURLY SALARY RATE:",null,{"$f":"'PEF CLASSIFICATION SHEET'!E1668","v":0},{"$f":"'PEF CLASSIFICATION SHEET'!E1669","v":0},{"$f":"'PEF CLASSIFICATION SHEET'!E1670","v":0},{"$f":"'PEF CLASSIFICATION SHEET'!E1671","v":0},{"$f":"'PEF CLASSIFICATION SHEET'!E1672","v":0},{"$f":"'PEF CLASSIFICATION SHEET'!E1673","v":0},{"$f":"'PEF CLASSIFICATION SHEET'!E1674","v":0},{"$f":"'PEF CLASSIFICATION SHEET'!E1675","v":0},{"$f":"'PEF CLASSIFICATION SHEET'!E1676","v":0},{"$f":"'PEF CLASSIFICATION SHEET'!E1677","v":0},{"$f":"'PEF CLASSIFICATION SHEET'!E1678","v":0},{"$f":"'PEF CLASSIFICATION SHEET'!E1679","v":0},{"$f":"'PEF CLASSIFICATION SHEET'!E1680","v":0},{"$f":"'PEF CLASSIFICATION SHEET'!E1681","v":0},{"$f":"'PEF CLASSIFICATION SHEET'!E1682","v":0},{"$f":"'PEF CLASSIFICATION SHEET'!E1683","v":0},{"$f":"'PEF CLASSIFICATION SHEET'!E1684","v":0},{"$f":"'PEF CLASSIFICATION SHEET'!E1685","v":0},{"$f":"'PEF CLASSIFICATION SHEET'!E1686","v":0},{"$f":"'PEF CLASSIFICATION SHEET'!E1687","v":0}]
[null,"RATES PER DAY:",null,{"$f":"D276*8","v":0},0,0,0,0,0,0,0,0,0,0,0,0,0,0,0,0,0,0,0]
[null,"PAYROLL BURDEN:",null,{"$f":"SUM(D274*D276)","v":0},{"$f":"SUM(E274*E276)","v":0},0,0,0,0,0,0,0,0,0,0,0,0,0,0,0,0,0,0]
[null,"TOTAL WORKDAYS:",null,{"$f":"SUM(D275:W275)","v":0}]
[null,"TOTAL PAYROLL BURDEN:",null,{"$f":"SUM(D278:W278)","v":0}]
[null,"AVERAGE COST PER HOUR:",null,{"$f":"SUM(D280/(D279*8))","v":{"$error":"#DIV/0!"}}]
[null,"GENERAL OVERHEAD:",{"$f":"FERRY.SUB1_CONSULTANT_OVERHEAD","v":0},{"$f":"SUM(D280*C282)","v":0}]
[null,"SUBTOTAL:",null,{"$f":"SUM(D280+D282)","v":0}]
[null,"COMPARATIVE FEE:",{"$f":"FERRY.SUB1_CONSULTANT_FEE","v":0},{"$f":"SUM(D283*C284)","v":0}]
[null,"FACILITIES COST OF CAPITAL:",{"$f":"FERRY.SUB1_CONSULTANT_COSTofCAPITAL","v":0},{"$f":"SUM(D280*C285)","v":0}]
[null,"TOTAL:",null,{"$f":"SUM(D283:D285)","v":0}]
[null,"DIRECT EXPENSES:",null,{"$f":"FERRY.SUB1_DIRECT_NONSALARY_TOTAL","v":0}]
[null,"FERRY GRAND TOTAL:",null,{"$f":"SUM(D286:D287)","v":0}]

{"sheet":"Ferry-Exp-Sub1","index":186,"n_rows":46,"n_cols":8,"rows_kept":46,"cut":false,"hidden":true,"merged":[[0,0,0,7],[1,3,1,7]]}
[{"$f":"CONCATENATE('Ferry-Sub1'!B1,\" \",\"--DIRECT EXPENSES - SUBCONSULTANT 1\")","v":"Ferry (Select One Below) --DIRECT EXPENSES - SUBCONSULTANT 1"}]
["TIP NUMBER",{"$f":"TIP.NUMBER","v":0},"FIRM:",{"$f":"'Ferry-Sub1'!G3","v":"CONSULTANT NAME"}]
[]
["GENERAL PROJECT WORK:","ITEM","QTY","DESCRIPTION",null,null,"UNIT COST "]
[null,"Travel:"]
[null,"Sedan",0,"Trip(s) @",0,"miles @",{"$f":"SEDAN","v":0.7},{"$f":"SUM(C6*E6*G6)","v":0}]
[null,"Carry All",0,"Trip(s) @",0,"miles @",{"$f":"CARRYALL","v":0.72},{"$f":"SUM(C7*E7*G7)","v":0}]
[null,"Car Rental",null,null,0,"days @ ",{"$f":"CARRENTAL","v":50},{"$f":"SUM(E8*G8)","v":0}]
[null,"Gas for Rental",null,null,0,"miles @",{"$f":"GASforRENTAL","v":0.2},{"$f":"SUM(E9*G9)","v":0}]
[null,"Parking:",0,"Trip(s) @",null,null,{"$f":"PARKING","v":3},{"$f":"SUM(C10*G10)","v":0}]
[null,"Per Diem:",0,"Breakfast",null,null,{"$f":"BREAKFAST","v":10.1},{"$f":"SUM(C11*G11)","v":0}]
[null,null,0,"Lunch",null,null,{"$f":"LUNCH","v":13.3},0]
[null,null,0,"Dinner",null,null,{"$f":"DINNER","v":23.1},0]
[null,null,0,"Lodging",null,null,{"$f":"LODGING_LUMP.SUM","v":95},0]
[null,"Reproduction:",0,"8 1/2 x 11 B & W Copies @",null,null,{"$f":"LETTERCOPIES","v":0.14000000000000001},0]
[null,null,0,"11 x 17 B & W Copies @",null,null,{"$f":"LEDGERCOPIES","v":0.34},0]
[null,null,0,"8 1/2 x 11 Color Copies @",null,null,{"$f":"LETTERCOLOR","v":0.83},0]
[null,null,0,"11 x 17 Color Copies @",null,null,{"$f":"LEDGERCOLOR","v":1.66},0]
[null,null,0,"SQ. FT. of Plots (B & W or Color)",null,"<65 SQ. FT.*",{"$f":"ROLLPLOTSshort","v":6.5},0]
[null,null,0,"SQ. FT. of Plots (B & W or Color)",null,">65 SQ. FT.*",{"$f":"ROLLPLOTSlong","v":1.5},0]
[null,null,0,"Cover(s) @",null,null,{"$f":"COVERS","v":0.5},0]
[null,null,0,"Binder(s) @",null,null,{"$f":"BINDERS","v":0.5},0]
[null,null,0,"Blueprints - 8 1/2 x 11 @",null,null,{"$f":"BLUEPRINTSLETTER","v":0.35},0]
[null,null,0,"Blueprints - 42 x 72 @",null,null,{"$f":"BLUEPRINTSLARGE","v":1.3},0]
[null,"Film and Developing:",0,"Roll(s) @",null,null,{"$f":"FILM","v":20},0]
[null,null,null,null,null,"Subtotal",null,{"$f":"SUM(H6:H25)","v":0}]
["MAPS AND DOCUMENTS:","ITEM","QTY","DESCRIPTION",null,null,"UNIT COST "]
[null,"County Tax Maps:",0,"Map(s) @",null,null,{"$f":"County_Tax_Maps","v":7},{"$f":"SUM(C28*G28)","v":0}]
[null,"USGS Maps:",0,"Map(s) @",null,null,{"$f":"USGSMAPS","v":7},{"$f":"SUM(C29*G29)","v":0}]
[null,null,null,null,null,"Subtotal",null,{"$f":"SUM(H28:H29)","v":0}]
["Miscellaneous Other","ITEM","QTY","DESCRIPTION",null,null,"UNIT COST "]
[null,null,null,null,null,null,null,{"$f":"SUM(C32*G32)","v":0}]
[null,null,null,null,null,null,null,{"$f":"SUM(C33*G33)","v":0}]
[null,null,null,null,null,null,null,0]
[null,null,null,null,null,null,null,0]
[null,null,null,null,null,null,null,0]
[null,null,null,null,null,null,null,0]
[null,null,null,null,null,null,null,0]
[null,null,null,null,null,null,null,{"$f":"SUM(C39*G39)","v":0}]
[null,null,null,null,null,null,null,{"$f":"SUM(C40*G40)","v":0}]
[null,null,null,null,null,null,null,{"$f":"SUM(C41*G41)","v":0}]
[null,null,null,null,null,"Subtotal",null,{"$f":"SUM(H32:H41)","v":0}]
[]
[null,null,null,null,null,"TOTAL",null,{"$f":"SUM(H26+H30+H42)","v":0}]
[]
[null,"* Sum of all plots "]

{"sheet":"Ferry-Sub2","index":187,"n_rows":288,"n_cols":31,"rows_kept":288,"cut":false,"hidden":true,"merged":[[0,2,0,13],[2,1,2,4],[2,6,2,7],[2,10,2,11],[2,15,2,16],[3,1,3,4],[3,6,3,7],[3,10,3,11],[3,15,3,16],[6,12,9,12],[6,13,9,13],[6,14,9,14],[6,15,9,15],[6,16,9,16],[6,17,9,17],[4,3,4,22],[6,3,9,3],[6,4,9,4],[6,5,9,5],[6,6,9,6],[6,7,9,7],[6,8,9,8],[6,9,9,9],[6,10,9,10],[6,11,9,11],[10,26,10,27],[11,26,11,27],[12,26,12,27],[13,26,13,27],[14,26,14,27],[15,26,15,27],[6,18,9,18],[6,19,9,19],[6,20,9,20],[6,21,9,21],[6,22,9,22],[8,26,8,27],[22,26,22,27],[23,26,23,27],[24,26,24,27],[25,26,25,27],[26,26,26,27],[27,26,27,27],[16,26,16,27],[17,26,17,27],[18,26,18,27],[19,26,19,27],[20,26,20,27],[21,26,21,27],[34,26,34,27],[35,26,35,27],[36,26,36,27],[37,26,37,27],[38,26,38,27],[39,26,39,27],[28,26,28,27],[29,26,29,27],[30,26,30,27],[31,26,31,27],[32,26,32,27],[33,26,33,27],[46,26,46,27],[47,26,47,27],[48,26,48,27],[49,26,49,27],[50,26,50,27],[51,26,51,27],[40,26,40,27],[41,26,41,27],[42,26,42,27],[43,26,43,27],[44,26,44,27],[45,26,45,27],[58,26,58,27],[59,26,59,27],[60,26,60,27],[61,26,61,27],[62,26,62,27],[231,26,231,27],[52,26,52,27],[53,26,53,27],[54,26,54,27],[55,26,55,27],[56,26,56,27],[57,26,57,27],[175,26,175,27],[176,26,176,27],[177,26,177,27],[178,26,178,27],[179,26,179,27],[180,26,180,27],[181,26,181,27],[182,26,182,27],[183,26,183,27],[184,26,184,27],[185,26,185,27],[186,26,186,27],[238,26,238,27],[239,26,239,27],[240,26,240,27],[241,26,241,27],[242,26,242,27],[243,26,243,27],[232,26,232,27],[233,26,233,27],[234,26,234,27],[235,26,235,27],[236,26,236,27],[237,26,237,27],[250,26,250,27],[251,26,251,27],[252,26,252,27],[253,26,253,27],[254,26,254,27],[255,26,255,27],[244,26,244,27],[245,26,245,27],[246,26,246,27],[247,26,247,27],[248,26,248,27],[249,26,249,27],[262,26,262,27],[263,26,263,27],[264,26,264,27],[265,26,265,27],[266,26,266,27],[267,26,267,27],[256,26,256,27],[257,26,257,27],[258,26,258,27],[259,26,259,27],[260,26,260,27],[261,26,261,27],[271,26,271,27],[272,26,272,27],[287,1,288,1],[287,3,288,4],[291,3,291,6],[291,8,291,13],[270,26,270,27],[268,26,268,27],[269,26,269,27],[298,8,298,9],[298,10,298,11],[292,8,292,9],[292,10,292,11],[293,8,293,9],[293,10,293,11],[296,8,296,13],[297,8,297,9],[297,10,297,11],[187,26,187,27],[188,26,188,27],[189,26,189,27],[190,26,190,27],[191,26,191,27],[192,26,192,27],[193,26,193,27],[194,26,194,27],[195,26,195,27],[196,26,196,27],[197,26,197,27],[198,26,198,27],[199,26,199,27],[200,26,200,27],[201,26,201,27],[202,26,202,27],[203,26,203,27],[204,26,204,27],[205,26,205,27],[206,26,206,27],[207,26,207,27],[208,26,208,27],[209,26,209,27],[210,26,210,27],[211,26,211,27],[212,26,212,27],[213,26,213,27],[214,26,214,27],[215,26,215,27],[216,26,216,27],[217,26,217,27],[218,26,218,27],[219,26,219,27],[220,26,220,27],[221,26,221,27],[222,26,222,27],[223,26,223,27],[224,26,224,27],[225,26,225,27],[226,26,226,27],[227,26,227,27],[228,26,228,27],[229,26,229,27],[230,26,230,27],[119,26,119,27],[120,26,120,27],[121,26,121,27],[122,26,122,27],[123,26,123,27],[124,26,124,27],[125,26,125,27],[126,26,126,27],[127,26,127,27],[128,26,128,27],[129,26,129,27],[130,26,130,27],[131,26,131,27],[132,26,132,27],[133,26,133,27],[134,26,134,27],[135,26,135,27],[136,26,136,27],[137,26,137,27],[138,26,138,27],[139,26,139,27],[140,26,140,27],[141,26,141,27],[142,26,142,27],[143,26,143,27],[144,26,144,27],[145,26,145,27],[146,26,146,27],[147,26,147,27],[148,26,148,27],[149,26,149,27],[150,26,150,27],[151,26,151,27],[152,26,152,27],[153,26,153,27],[154,26,154,27],[155,26,155,27],[156,26,156,27],[157,26,157,27],[158,26,158,27],[159,26,159,27],[160,26,160,27],[161,26,161,27],[162,26,162,27],[163,26,163,27],[164,26,164,27],[165,26,165,27],[166,26,166,27],[167,26,167,27],[168,26,168,27],[169,26,169,27],[170,26,170,27],[171,26,171,27],[172,26,172,27],[173,26,173,27],[174,26,174,27],[63,26,63,27],[64,26,64,27],[65,26,65,27],[66,26,66,27],[67,26,67,27],[68,26,68,27],[69,26,69,27],[70,26,70,27],[71,26,71,27],[72,26,72,27],[73,26,73,27],[74,26,74,27],[75,26,75,27],[76,26,76,27],[77,26,77,27],[78,26,78,27],[79,26,79,27],[80,26,80,27],[81,26,81,27],[82,26,82,27],[83,26,83,27],[84,26,84,27],[85,26,85,27],[86,26,86,27],[87,26,87,27],[88,26,88,27],[89,26,89,27],[90,26,90,27],[91,26,91,27],[92,26,92,27],[93,26,93,27],[94,26,94,27],[95,26,95,27],[96,26,96,27],[97,26,97,27],[98,26,98,27],[99,26,99,27],[100,26,100,27],[101,26,101,27],[102,26,102,27],[103,26,103,27],[104,26,104,27],[105,26,105,27],[106,26,106,27],[107,26,107,27],[108,26,108,27],[109,26,109,27],[110,26,110,27],[111,26,111,27],[112,26,112,27],[113,26,113,27],[114,26,114,27],[115,26,115,27],[116,26,116,27],[117,26,117,27],[118,26,118,27]]}
[null,{"$f":"Ferry!B1","v":"Ferry (Select One Below)"},{"$f":"CONCATENATE(\" \",\"--BREAKDOWN WORKSHEET - SUBCONSULTANT 2 -- ENTER WORKHOURS\")","v":" --BREAKDOWN WORKSHEET - SUBCONSULTANT 2 -- ENTER WORKHOURS"},null,null,null,null,null,null,null,null,null,null,null,null,null,null,null,null,null,null,null,null,null,null,null,null,null,null,null,"Ferry (Select One Below)"]
[null,null,null,null,null,null,null,null,null,null,null,null,null,null,null,null,null,null,null,null,null,null,null,null,null,null,null,null,null,null,"Marine Construction"]
["PROJECT DESCRIPTION: ",{"$f":"PROJECT.DESCRIPTION","v":0},null,null,null,"FIRM:  ",{"$f":"FERRY.SUB2_CONSULTANT_NAME","v":"CONSULTANT NAME"},null,"TASK ORDER NUMBER:",null,{"$f":"TASK.ORDER.NUMBER","v":0},null,"DATE PREPARED:",{"$f":"IF(SCOPE.MANDAY.ESTIMATE.PREPARED.BY.DATE=\"\",\"\",SCOPE.MANDAY.ESTIMATE.PREPARED.BY.DATE)","v":""},null,null,null,null,null,null,null,null,null,null,null,null,null,null,null,null,"Vessel Design"]
["PREPARED BY:  ",{"$f":"IF(SCOPE.MANDAY.ESTIMATE.PREPARED.BY=\"\",\"\",SCOPE.MANDAY.ESTIMATE.PREPARED.BY)","v":""},null,null,null,"TIP NUMBER:",{"$f":"TIP.NUMBER","v":0},null,"WBS NUMBER:",null,{"$f":"WBS.NUMBER","v":""},null,"REVISION DATE:",{"$f":"IF(SCOPE.MANDAY.ESTIMATE.APPROVED.BY.DATE=\"\",\"\",SCOPE.MANDAY.ESTIMATE.APPROVED.BY.DATE)","v":""}]
[null,null,null,"ESTIMATED WORKHOURS"]
[null,null,"EMPLOYEE NAMES",{"$f":"IF('PEF CLASSIFICATION SHEET'!D1690=\"\",\"\",LEFT('PEF CLASSIFICATION SHEET'!D1690,4))","v":""},{"$f":"IF('PEF CLASSIFICATION SHEET'!D1691=\"\",\"\",LEFT('PEF CLASSIFICATION SHEET'!D1691,4))","v":""},{"$f":"IF('PEF CLASSIFICATION SHEET'!D1692=\"\",\"\",LEFT('PEF CLASSIFICATION SHEET'!D1692,4))","v":""},{"$f":"IF('PEF CLASSIFICATION SHEET'!D1693=\"\",\"\",LEFT('PEF CLASSIFICATION SHEET'!D1693,4))","v":""},{"$f":"IF('PEF CLASSIFICATION SHEET'!D1694=\"\",\"\",LEFT('PEF CLASSIFICATION SHEET'!D1694,4))","v":""},{"$f":"IF('PEF CLASSIFICATION SHEET'!D1695=\"\",\"\",LEFT('PEF CLASSIFICATION SHEET'!D1695,4))","v":""},{"$f":"IF('PEF CLASSIFICATION SHEET'!D1696=\"\",\"\",LEFT('PEF CLASSIFICATION SHEET'!D1696,4))","v":""},{"$f":"IF('PEF CLASSIFICATION SHEET'!D1697=\"\",\"\",LEFT('PEF CLASSIFICATION SHEET'!D1697,4))","v":""},{"$f":"IF('PEF CLASSIFICATION SHEET'!D1698=\"\",\"\",LEFT('PEF CLASSIFICATION SHEET'!D1698,4))","v":""},{"$f":"IF('PEF CLASSIFICATION SHEET'!D1699=\"\",\"\",LEFT('PEF CLASSIFICATION SHEET'!D1699,4))","v":""},{"$f":"IF('PEF CLASSIFICATION SHEET'!D1700=\"\",\"\",LEFT('PEF CLASSIFICATION SHEET'!D1700,4))","v":""},{"$f":"IF('PEF CLASSIFICATION SHEET'!D1701=\"\",\"\",LEFT('PEF CLASSIFICATION SHEET'!D1701,4))","v":""},{"$f":"IF('PEF CLASSIFICATION SHEET'!D1702=\"\",\"\",LEFT('PEF CLASSIFICATION SHEET'!D1702,4))","v":""},{"$f":"IF('PEF CLASSIFICATION SHEET'!D1703=\"\",\"\",LEFT('PEF CLASSIFICATION SHEET'!D1703,4))","v":""},{"$f":"IF('PEF CLASSIFICATION SHEET'!D1704=\"\",\"\",LEFT('PEF CLASSIFICATION SHEET'!D1704,4))","v":""},{"$f":"IF('PEF CLASSIFICATION SHEET'!D1705=\"\",\"\",LEFT('PEF CLASSIFICATION SHEET'!D1705,4))","v":""},{"$f":"IF('PEF CLASSIFICATION SHEET'!D1706=\"\",\"\",LEFT('PEF CLASSIFICATION SHEET'!D1706,4))","v":""},{"$f":"IF('PEF CLASSIFICATION SHEET'!D1707=\"\",\"\",LEFT('PEF CLASSIFICATION SHEET'!D1707,4))","v":""},{"$f":"IF('PEF CLASSIFICATION SHEET'!D1708=\"\",\"\",LEFT('PEF CLASSIFICATION SHEET'!D1708,4))","v":""},{"$f":"IF('PEF CLASSIFICATION SHEET'!D1709=\"\",\"\",LEFT('PEF CLASSIFICATION SHEET'!D1709,4))","v":""}]
[null,null,null,{"$f":"IF('PEF CLASSIFICATION SHEET'!C1690=\"\",\"\",'PEF CLASSIFICATION SHEET'!C1690)","v":""},{"$f":"IF('PEF CLASSIFICATION SHEET'!C1691=\"\",\"\",'PEF CLASSIFICATION SHEET'!C1691)","v":""},{"$f":"IF('PEF CLASSIFICATION SHEET'!C1692=\"\",\"\",'PEF CLASSIFICATION SHEET'!C1692)","v":""},{"$f":"IF('PEF CLASSIFICATION SHEET'!C1693=\"\",\"\",'PEF CLASSIFICATION SHEET'!C1693)","v":""},{"$f":"IF('PEF CLASSIFICATION SHEET'!C1694=\"\",\"\",'PEF CLASSIFICATION SHEET'!C1694)","v":""},{"$f":"IF('PEF CLASSIFICATION SHEET'!C1695=\"\",\"\",'PEF CLASSIFICATION SHEET'!C1695)","v":""},{"$f":"IF('PEF CLASSIFICATION SHEET'!C1696=\"\",\"\",'PEF CLASSIFICATION SHEET'!C1696)","v":""},{"$f":"IF('PEF CLASSIFICATION SHEET'!C1697=\"\",\"\",'PEF CLASSIFICATION SHEET'!C1697)","v":""},{"$f":"IF('PEF CLASSIFICATION SHEET'!C1698=\"\",\"\",'PEF CLASSIFICATION SHEET'!C1698)","v":""},{"$f":"IF('PEF CLASSIFICATION SHEET'!C1699=\"\",\"\",'PEF CLASSIFICATION SHEET'!C1699)","v":""},{"$f":"IF('PEF CLASSIFICATION SHEET'!C1700=\"\",\"\",'PEF CLASSIFICATION SHEET'!C1700)","v":""},{"$f":"IF('PEF CLASSIFICATION SHEET'!C1701=\"\",\"\",'PEF CLASSIFICATION SHEET'!C1701)","v":""},{"$f":"IF('PEF CLASSIFICATION SHEET'!C1702=\"\",\"\",'PEF CLASSIFICATION SHEET'!C1702)","v":""},{"$f":"IF('PEF CLASSIFICATION SHEET'!C1703=\"\",\"\",'PEF CLASSIFICATION SHEET'!C1703)","v":""},{"$f":"IF('PEF CLASSIFICATION SHEET'!C1704=\"\",\"\",'PEF CLASSIFICATION SHEET'!C1704)","v":""},{"$f":"IF('PEF CLASSIFICATION SHEET'!C1705=\"\",\"\",'PEF CLASSIFICATION SHEET'!C1705)","v":""},{"$f":"IF('PEF CLASSIFICATION SHEET'!C1706=\"\",\"\",'PEF CLASSIFICATION SHEET'!C1706)","v":""},{"$f":"IF('PEF CLASSIFICATION SHEET'!C1707=\"\",\"\",'PEF CLASSIFICATION SHEET'!C1707)","v":""},{"$f":"IF('PEF CLASSIFICATION SHEET'!C1708=\"\",\"\",'PEF CLASSIFICATION SHEET'!C1708)","v":""},{"$f":"IF('PEF CLASSIFICATION SHEET'!C1709=\"\",\"\",'PEF CLASSIFICATION SHEET'!C1709)","v":""},"SUB-","%","PEF"]
[null,null,null,null,null,null,null,null,null,null,null,null,null,null,null,null,null,null,null,null,null,null,null,"TOTAL","OF","ESTIMATE"]
["TASK","TASK DESCRIPTION","CLASSIFICATION",null,null,null,null,null,null,null,null,null,null,null,null,null,null,null,null,null,null,null,null,null,"PROJECT",null,"COMMENTS"]
["NO."]
[1,"Marine Vessel Design",null,null,null,null,null,null,null,null,null,null,null,null,null,null,null,null,null,null,null,null,null,{"$f":"IF(B11=\"\",0,IF((SUM(D12:W54)=0),SUM(D11:W11),\"\"))","v":0},{"$f":"IF(X11=\"\",\"\",SUM((X11/$X$274)))","v":{"$error":"#DIV/0!"}}]
[null,null,null,null,null,null,null,null,null,null,null,null,null,null,null,null,null,null,null,null,null,null,null,{"$f":"IF(B12=\"\",0,IF((SUM(D12:W12)=0),0,SUM(D12:W12)))","v":0},{"$error":"#DIV/0!"}]
[null,null,null,null,null,null,null,null,null,null,null,null,null,null,null,null,null,null,null,null,null,null,null,0,{"$error":"#DIV/0!"}]
[null,null,null,null,null,null,null,null,null,null,null,null,null,null,null,null,null,null,null,null,null,null,null,0,{"$error":"#DIV/0!"}]
[null,null,null,null,null,null,null,null,null,null,null,null,null,null,null,null,null,null,null,null,null,null,null,0,{"$error":"#DIV/0!"}]
[null,null,null,null,null,null,null,null,null,null,null,null,null,null,null,null,null,null,null,null,null,null,null,0,{"$error":"#DIV/0!"}]
[null,null,null,null,null,null,null,null,null,null,null,null,null,null,null,null,null,null,null,null,null,null,null,0,{"$error":"#DIV/0!"}]
[null,null,null,null,null,null,null,null,null,null,null,null,null,null,null,null,null,null,null,null,null,null,null,0,{"$error":"#DIV/0!"}]
[null,null,null,null,null,null,null,null,null,null,null,null,null,null,null,null,null,null,null,null,null,null,null,0,{"$error":"#DIV/0!"}]
[null,null,null,null,null,null,null,null,null,null,null,null,null,null,null,null,null,null,null,null,null,null,null,{"$f":"IF(B20=\"\",0,IF((SUM(D20:W20)=0),0,SUM(D20:W20)))","v":0},{"$error":"#DIV/0!"}]
[null,null,null,null,null,null,null,null,null,null,null,null,null,null,null,null,null,null,null,null,null,null,null,{"$f":"IF(B21=\"\",0,IF((SUM(D21:W21)=0),0,SUM(D21:W21)))","v":0},{"$error":"#DIV/0!"}]
[null,"Planning and Coordination Meetings",null,null,null,null,null,null,null,null,null,null,null,null,null,null,null,null,null,null,null,null,null,{"$f":"IF(B22=\"\",0,IF((SUM(D23:W32)=0),SUM(D22:W22),\"\"))","v":0},{"$error":"#DIV/0!"}]
[null,null,null,null,null,null,null,null,null,null,null,null,null,null,null,null,null,null,null,null,null,null,null,{"$f":"IF(B23=\"\",0,IF((SUM(D23:W23)=0),0,SUM(D23:W23)))","v":0},{"$error":"#DIV/0!"}]
[null,null,null,null,null,null,null,null,null,null,null,null,null,null,null,null,null,null,null,null,null,null,null,0,{"$error":"#DIV/0!"}]
[null,null,null,null,null,null,null,null,null,null,null,null,null,null,null,null,null,null,null,null,null,null,null,0,{"$error":"#DIV/0!"}]
[null,null,null,null,null,null,null,null,null,null,null,null,null,null,null,null,null,null,null,null,null,null,null,0,{"$error":"#DIV/0!"}]
[null,null,null,null,null,null,null,null,null,null,null,null,null,null,null,null,null,null,null,null,null,null,null,0,{"$error":"#DIV/0!"}]
[null,null,null,null,null,null,null,null,null,null,null,null,null,null,null,null,null,null,null,null,null,null,null,0,{"$error":"#DIV/0!"}]
[null,null,null,null,null,null,null,null,null,null,null,null,null,null,null,null,null,null,null,null,null,null,null,0,{"$error":"#DIV/0!"}]
[null,null,null,null,null,null,null,null,null,null,null,null,null,null,null,null,null,null,null,null,null,null,null,0,{"$error":"#DIV/0!"}]
[null,null,null,null,null,null,null,null,null,null,null,null,null,null,null,null,null,null,null,null,null,null,null,{"$f":"IF(B31=\"\",0,IF((SUM(D31:W31)=0),0,SUM(D31:W31)))","v":0},{"$error":"#DIV/0!"}]
[null,null,null,null,null,null,null,null,null,null,null,null,null,null,null,null,null,null,null,null,null,null,null,{"$f":"IF(B32=\"\",0,IF((SUM(D32:W32)=0),0,SUM(D32:W32)))","v":0},{"$error":"#DIV/0!"}]
[null,"Review and Interviews\n**Review can apply to requirements (USC CFR, State policy) generally study related\n**Review can also apply to schematics / blue prints generally design related",null,null,null,null,null,null,null,null,null,null,null,null,null,null,null,null,null,null,null,null,null,{"$f":"IF(B33=\"\",0,IF((SUM(D34:W43)=0),SUM(D33:W33),\"\"))","v":0},{"$error":"#DIV/0!"}]
[null,null,null,null,null,null,null,null,null,null,null,null,null,null,null,null,null,null,null,null,null,null,null,0,{"$error":"#DIV/0!"}]
[null,null,null,null,null,null,null,null,null,null,null,null,null,null,null,null,null,null,null,null,null,null,null,0,{"$error":"#DIV/0!"}]
[null,null,null,null,null,null,null,null,null,null,null,null,null,null,null,null,null,null,null,null,null,null,null,{"$f":"IF(B36=\"\",0,IF((SUM(D36:W36)=0),0,SUM(D36:W36)))","v":0},{"$error":"#DIV/0!"}]
[null,null,null,null,null,null,null,null,null,null,null,null,null,null,null,null,null,null,null,null,null,null,null,0,{"$error":"#DIV/0!"}]
[null,null,null,null,null,null,null,null,null,null,null,null,null,null,null,null,null,null,null,null,null,null,null,0,{"$error":"#DIV/0!"}]
[null,null,null,null,null,null,null,null,null,null,null,null,null,null,null,null,null,null,null,null,null,null,null,0,{"$error":"#DIV/0!"}]
[null,null,null,null,null,null,null,null,null,null,null,null,null,null,null,null,null,null,null,null,null,null,null,0,{"$error":"#DIV/0!"}]
[null,null,null,null,null,null,null,null,null,null,null,null,null,null,null,null,null,null,null,null,null,null,null,0,{"$error":"#DIV/0!"}]
[null,null,null,null,null,null,null,null,null,null,null,null,null,null,null,null,null,null,null,null,null,null,null,0,{"$error":"#DIV/0!"}]
[null,null,null,null,null,null,null,null,null,null,null,null,null,null,null,null,null,null,null,null,null,null,null,0,{"$error":"#DIV/0!"}]
[null,"Reporting and Presentation",null,null,null,null,null,null,null,null,null,null,null,null,null,null,null,null,null,null,null,null,null,{"$f":"IF(B44=\"\",0,IF((SUM(D45:W54)=0),SUM(D44:W44),\"\"))","v":0},{"$error":"#DIV/0!"}]
[null,null,null,null,null,null,null,null,null,null,null,null,null,null,null,null,null,null,null,null,null,null,null,0,{"$error":"#DIV/0!"}]
[null,null,null,null,null,null,null,null,null,null,null,null,null,null,null,null,null,null,null,null,null,null,null,0,{"$error":"#DIV/0!"}]
[null,null,null,null,null,null,null,null,null,null,null,null,null,null,null,null,null,null,null,null,null,null,null,0,{"$error":"#DIV/0!"}]
[null,null,null,null,null,null,null,null,null,null,null,null,null,null,null,null,null,null,null,null,null,null,null,0,{"$error":"#DIV/0!"}]
[null,null,null,null,null,null,null,null,null,null,null,null,null,null,null,null,null,null,null,null,null,null,null,0,{"$error":"#DIV/0!"}]
[null,null,null,null,null,null,null,null,null,null,null,null,null,null,null,null,null,null,null,null,null,null,null,0,{"$error":"#DIV/0!"}]
[null,null,null,null,null,null,null,null,null,null,null,null,null,null,null,null,null,null,null,null,null,null,null,0,{"$error":"#DIV/0!"}]
[null,null,null,null,null,null,null,null,null,null,null,null,null,null,null,null,null,null,null,null,null,null,null,0,{"$error":"#DIV/0!"}]
[null,null,null,null,null,null,null,null,null,null,null,null,null,null,null,null,null,null,null,null,null,null,null,0,{"$error":"#DIV/0!"}]
[null,null,null,null,null,null,null,null,null,null,null,null,null,null,null,null,null,null,null,null,null,null,null,0,{"$error":"#DIV/0!"}]
[2,"Marine Vessel Maintenance Design",null,null,null,null,null,null,null,null,null,null,null,null,null,null,null,null,null,null,null,null,null,{"$f":"IF(B55=\"\",0,IF((SUM(D56:W97)=0),SUM(D55:W55),\"\"))","v":0},{"$error":"#DIV/0!"}]
[null,null,null,null,null,null,null,null,null,null,null,null,null,null,null,null,null,null,null,null,null,null,null,{"$f":"IF(B56=\"\",0,IF((SUM(D56:W56)=0),0,SUM(D56:W56)))","v":0},{"$error":"#DIV/0!"}]
[null,null,null,null,null,null,null,null,null,null,null,null,null,null,null,null,null,null,null,null,null,null,null,0,{"$error":"#DIV/0!"}]
[null,null,null,null,null,null,null,null,null,null,null,null,null,null,null,null,null,null,null,null,null,null,null,0,{"$error":"#DIV/0!"}]
[null,null,null,null,null,null,null,null,null,null,null,null,null,null,null,null,null,null,null,null,null,null,null,0,{"$error":"#DIV/0!"}]
[null,null,null,null,null,null,null,null,null,null,null,null,null,null,null,null,null,null,null,null,null,null,null,0,{"$error":"#DIV/0!"}]
[null,null,null,null,null,null,null,null,null,null,null,null,null,null,null,null,null,null,null,null,null,null,null,0,{"$error":"#DIV/0!"}]
[null,null,null,null,null,null,null,null,null,null,null,null,null,null,null,null,null,null,null,null,null,null,null,0,{"$error":"#DIV/0!"}]
[null,null,null,null,null,null,null,null,null,null,null,null,null,null,null,null,null,null,null,null,null,null,null,0,{"$error":"#DIV/0!"}]
[null,null,null,null,null,null,null,null,null,null,null,null,null,null,null,null,null,null,null,null,null,null,null,{"$f":"IF(B64=\"\",0,IF((SUM(D64:W64)=0),0,SUM(D64:W64)))","v":0},{"$error":"#DIV/0!"}]
[null,null,null,null,null,null,null,null,null,null,null,null,null,null,null,null,null,null,null,null,null,null,null,{"$f":"IF(B65=\"\",0,IF((SUM(D65:W65)=0),0,SUM(D65:W65)))","v":0},{"$error":"#DIV/0!"}]
[null,"Planning and Coordination Meetings",null,null,null,null,null,null,null,null,null,null,null,null,null,null,null,null,null,null,null,null,null,{"$f":"IF(B66=\"\",0,IF((SUM(D67:W76)=0),SUM(D66:W66),\"\"))","v":0},{"$error":"#DIV/0!"}]
[null,null,null,null,null,null,null,null,null,null,null,null,null,null,null,null,null,null,null,null,null,null,null,{"$f":"IF(B67=\"\",0,IF((SUM(D67:W67)=0),0,SUM(D67:W67)))","v":0},{"$error":"#DIV/0!"}]
[null,null,null,null,null,null,null,null,null,null,null,null,null,null,null,null,null,null,null,null,null,null,null,0,{"$error":"#DIV/0!"}]
[null,null,null,null,null,null,null,null,null,null,null,null,null,null,null,null,null,null,null,null,null,null,null,0,{"$error":"#DIV/0!"}]
[null,null,null,null,null,null,null,null,null,null,null,null,null,null,null,null,null,null,null,null,null,null,null,0,{"$error":"#DIV/0!"}]
[null,null,null,null,null,null,null,null,null,null,null,null,null,null,null,null,null,null,null,null,null,null,null,0,{"$error":"#DIV/0!"}]
[null,null,null,null,null,null,null,null,null,null,null,null,null,null,null,null,null,null,null,null,null,null,null,0,{"$error":"#DIV/0!"}]
[null,null,null,null,null,null,null,null,null,null,null,null,null,null,null,null,null,null,null,null,null,null,null,0,{"$error":"#DIV/0!"}]
[null,null,null,null,null,null,null,null,null,null,null,null,null,null,null,null,null,null,null,null,null,null,null,0,{"$error":"#DIV/0!"}]
[null,null,null,null,null,null,null,null,null,null,null,null,null,null,null,null,null,null,null,null,null,null,null,{"$f":"IF(B75=\"\",0,IF((SUM(D75:W75)=0),0,SUM(D75:W75)))","v":0},{"$f":"IF(X75=\"\",\"\",SUM((X75/$X$274)))","v":{"$error":"#DIV/0!"}}]
[null,null,null,null,null,null,null,null,null,null,null,null,null,null,null,null,null,null,null,null,null,null,null,{"$f":"IF(B76=\"\",0,IF((SUM(D76:W76)=0),0,SUM(D76:W76)))","v":0},{"$error":"#DIV/0!"}]
[null,"Review and Interviews\n**Review can apply to requirements (USC CFR, State policy) generally study related\n**Review can also apply to schematics / blue prints generally design related",null,null,null,null,null,null,null,null,null,null,null,null,null,null,null,null,null,null,null,null,null,{"$f":"IF(B77=\"\",0,IF((SUM(D78:W87)=0),SUM(D77:W77),\"\"))","v":0},{"$error":"#DIV/0!"}]
[null,null,null,null,null,null,null,null,null,null,null,null,null,null,null,null,null,null,null,null,null,null,null,{"$f":"IF(B78=\"\",0,IF((SUM(D78:W78)=0),0,SUM(D78:W78)))","v":0},{"$error":"#DIV/0!"}]
[null,null,null,null,null,null,null,null,null,null,null,null,null,null,null,null,null,null,null,null,null,null,null,0,{"$error":"#DIV/0!"}]
[null,null,null,null,null,null,null,null,null,null,null,null,null,null,null,null,null,null,null,null,null,null,null,0,{"$error":"#DIV/0!"}]
[null,null,null,null,null,null,null,null,null,null,null,null,null,null,null,null,null,null,null,null,null,null,null,0,{"$error":"#DIV/0!"}]
[null,null,null,null,null,null,null,null,null,null,null,null,null,null,null,null,null,null,null,null,null,null,null,0,{"$error":"#DIV/0!"}]
[null,null,null,null,null,null,null,null,null,null,null,null,null,null,null,null,null,null,null,null,null,null,null,0,{"$error":"#DIV/0!"}]
[null,null,null,null,null,null,null,null,null,null,null,null,null,null,null,null,null,null,null,null,null,null,null,0,{"$error":"#DIV/0!"}]
[null,null,null,null,null,null,null,null,null,null,null,null,null,null,null,null,null,null,null,null,null,null,null,0,{"$error":"#DIV/0!"}]
[null,null,null,null,null,null,null,null,null,null,null,null,null,null,null,null,null,null,null,null,null,null,null,0,{"$error":"#DIV/0!"}]
[null,null,null,null,null,null,null,null,null,null,null,null,null,null,null,null,null,null,null,null,null,null,null,0,{"$error":"#DIV/0!"}]
[null,"Reporting and Presentation",null,null,null,null,null,null,null,null,null,null,null,null,null,null,null,null,null,null,null,null,null,{"$f":"IF(B88=\"\",0,IF((SUM(D89:W98)=0),SUM(D88:W88),\"\"))","v":0},{"$error":"#DIV/0!"}]
[null,null,null,null,null,null,null,null,null,null,null,null,null,null,null,null,null,null,null,null,null,null,null,{"$f":"IF(B89=\"\",0,IF((SUM(D89:W89)=0),0,SUM(D89:W89)))","v":0},{"$error":"#DIV/0!"}]
[null,null,null,null,null,null,null,null,null,null,null,null,null,null,null,null,null,null,null,null,null,null,null,0,{"$error":"#DIV/0!"}]
[null,null,null,null,null,null,null,null,null,null,null,null,null,null,null,null,null,null,null,null,null,null,null,0,{"$error":"#DIV/0!"}]
[null,null,null,null,null,null,null,null,null,null,null,null,null,null,null,null,null,null,null,null,null,null,null,0,{"$error":"#DIV/0!"}]
[null,null,null,null,null,null,null,null,null,null,null,null,null,null,null,null,null,null,null,null,null,null,null,0,{"$error":"#DIV/0!"}]
[null,null,null,null,null,null,null,null,null,null,null,null,null,null,null,null,null,null,null,null,null,null,null,0,{"$error":"#DIV/0!"}]
[null,null,null,null,null,null,null,null,null,null,null,null,null,null,null,null,null,null,null,null,null,null,null,0,{"$error":"#DIV/0!"}]
[null,null,null,null,null,null,null,null,null,null,null,null,null,null,null,null,null,null,null,null,null,null,null,0,{"$error":"#DIV/0!"}]
[null,null,null,null,null,null,null,null,null,null,null,null,null,null,null,null,null,null,null,null,null,null,null,0,{"$error":"#DIV/0!"}]
[3,"Terminal Assets Design",null,null,null,null,null,null,null,null,null,null,null,null,null,null,null,null,null,null,null,null,null,{"$f":"IF(B98=\"\",0,IF((SUM(D99:W141)=0),SUM(D98:W98),\"\"))","v":0},{"$error":"#DIV/0!"}]
[null,null,null,null,null,null,null,null,null,null,null,null,null,null,null,null,null,null,null,null,null,null,null,{"$f":"IF(B99=\"\",0,IF((SUM(D99:W99)=0),0,SUM(D99:W99)))","v":0},{"$error":"#DIV/0!"}]
[null,null,null,null,null,null,null,null,null,null,null,null,null,null,null,null,null,null,null,null,null,null,null,0,{"$error":"#DIV/0!"}]
[null,null,null,null,null,null,null,null,null,null,null,null,null,null,null,null,null,null,null,null,null,null,null,0,{"$error":"#DIV/0!"}]
[null,null,null,null,null,null,null,null,null,null,null,null,null,null,null,null,null,null,null,null,null,null,null,0,{"$error":"#DIV/0!"}]
[null,null,null,null,null,null,null,null,null,null,null,null,null,null,null,null,null,null,null,null,null,null,null,0,{"$error":"#DIV/0!"}]
[null,null,null,null,null,null,null,null,null,null,null,null,null,null,null,null,null,null,null,null,null,null,null,0,{"$error":"#DIV/0!"}]
[null,null,null,null,null,null,null,null,null,null,null,null,null,null,null,null,null,null,null,null,null,null,null,0,{"$error":"#DIV/0!"}]
[null,null,null,null,null,null,null,null,null,null,null,null,null,null,null,null,null,null,null,null,null,null,null,0,{"$error":"#DIV/0!"}]
[null,null,null,null,null,null,null,null,null,null,null,null,null,null,null,null,null,null,null,null,null,null,null,{"$f":"IF(B107=\"\",0,IF((SUM(D107:W107)=0),0,SUM(D107:W107)))","v":0},{"$error":"#DIV/0!"}]
[null,null,null,null,null,null,null,null,null,null,null,null,null,null,null,null,null,null,null,null,null,null,null,{"$f":"IF(B108=\"\",0,IF((SUM(D108:W108)=0),0,SUM(D108:W108)))","v":0},{"$error":"#DIV/0!"}]
[null,"Planning and Coordination Meetings",null,null,null,null,null,null,null,null,null,null,null,null,null,null,null,null,null,null,null,null,null,{"$f":"IF(B109=\"\",0,IF((SUM(D110:W119)=0),SUM(D109:W109),\"\"))","v":0},{"$error":"#DIV/0!"}]
[null,null,null,null,null,null,null,null,null,null,null,null,null,null,null,null,null,null,null,null,null,null,null,{"$f":"IF(B110=\"\",0,IF((SUM(D110:W110)=0),0,SUM(D110:W110)))","v":0},{"$error":"#DIV/0!"}]
[null,null,null,null,null,null,null,null,null,null,null,null,null,null,null,null,null,null,null,null,null,null,null,0,{"$error":"#DIV/0!"}]
[null,null,null,null,null,null,null,null,null,null,null,null,null,null,null,null,null,null,null,null,null,null,null,0,{"$error":"#DIV/0!"}]
[null,null,null,null,null,null,null,null,null,null,null,null,null,null,null,null,null,null,null,null,null,null,null,0,{"$error":"#DIV/0!"}]
[null,null,null,null,null,null,null,null,null,null,null,null,null,null,null,null,null,null,null,null,null,null,null,0,{"$error":"#DIV/0!"}]
[null,null,null,null,null,null,null,null,null,null,null,null,null,null,null,null,null,null,null,null,null,null,null,0,{"$error":"#DIV/0!"}]
[null,null,null,null,null,null,null,null,null,null,null,null,null,null,null,null,null,null,null,null,null,null,null,0,{"$error":"#DIV/0!"}]
[null,null,null,null,null,null,null,null,null,null,null,null,null,null,null,null,null,null,null,null,null,null,null,0,{"$error":"#DIV/0!"}]
[null,null,null,null,null,null,null,null,null,null,null,null,null,null,null,null,null,null,null,null,null,null,null,{"$f":"IF(B118=\"\",0,IF((SUM(D118:W118)=0),0,SUM(D118:W118)))","v":0},{"$error":"#DIV/0!"}]
[null,null,null,null,null,null,null,null,null,null,null,null,null,null,null,null,null,null,null,null,null,null,null,{"$f":"IF(B119=\"\",0,IF((SUM(D119:W119)=0),0,SUM(D119:W119)))","v":0},{"$error":"#DIV/0!"}]
[null,"Review and Interviews\n**Review can apply to requirements (USC CFR, State policy) generally study related\n**Review can also apply to schematics / blue prints generally design related",null,null,null,null,null,null,null,null,null,null,null,null,null,null,null,null,null,null,null,null,null,{"$f":"IF(B120=\"\",0,IF((SUM(D121:W130)=0),SUM(D120:W120),\"\"))","v":0},{"$error":"#DIV/0!"}]
[null,null,null,null,null,null,null,null,null,null,null,null,null,null,null,null,null,null,null,null,null,null,null,{"$f":"IF(B121=\"\",0,IF((SUM(D121:W121)=0),0,SUM(D121:W121)))","v":0},{"$error":"#DIV/0!"}]
[null,null,null,null,null,null,null,null,null,null,null,null,null,null,null,null,null,null,null,null,null,null,null,0,{"$error":"#DIV/0!"}]
[null,null,null,null,null,null,null,null,null,null,null,null,null,null,null,null,null,null,null,null,null,null,null,0,{"$error":"#DIV/0!"}]
[null,null,null,null,null,null,null,null,null,null,null,null,null,null,null,null,null,null,null,null,null,null,null,0,{"$error":"#DIV/0!"}]
[null,null,null,null,null,null,null,null,null,null,null,null,null,null,null,null,null,null,null,null,null,null,null,0,{"$error":"#DIV/0!"}]
[null,null,null,null,null,null,null,null,null,null,null,null,null,null,null,null,null,null,null,null,null,null,null,0,{"$error":"#DIV/0!"}]
[null,null,null,null,null,null,null,null,null,null,null,null,null,null,null,null,null,null,null,null,null,null,null,0,{"$error":"#DIV/0!"}]
[null,null,null,null,null,null,null,null,null,null,null,null,null,null,null,null,null,null,null,null,null,null,null,0,{"$error":"#DIV/0!"}]
[null,null,null,null,null,null,null,null,null,null,null,null,null,null,null,null,null,null,null,null,null,null,null,0,{"$error":"#DIV/0!"}]
[null,null,null,null,null,null,null,null,null,null,null,null,null,null,null,null,null,null,null,null,null,null,null,0,{"$error":"#DIV/0!"}]
[null,"Reporting and Presentation",null,null,null,null,null,null,null,null,null,null,null,null,null,null,null,null,null,null,null,null,null,{"$f":"IF(B131=\"\",0,IF((SUM(D132:W141)=0),SUM(D131:W131),\"\"))","v":0},{"$error":"#DIV/0!"}]
[null,null,null,null,null,null,null,null,null,null,null,null,null,null,null,null,null,null,null,null,null,null,null,{"$f":"IF(B132=\"\",0,IF((SUM(D132:W132)=0),0,SUM(D132:W132)))","v":0},{"$error":"#DIV/0!"}]
[null,null,null,null,null,null,null,null,null,null,null,null,null,null,null,null,null,null,null,null,null,null,null,0,{"$error":"#DIV/0!"}]
[null,null,null,null,null,null,null,null,null,null,null,null,null,null,null,null,null,null,null,null,null,null,null,0,{"$error":"#DIV/0!"}]
[null,null,null,null,null,null,null,null,null,null,null,null,null,null,null,null,null,null,null,null,null,null,null,0,{"$error":"#DIV/0!"}]
[null,null,null,null,null,null,null,null,null,null,null,null,null,null,null,null,null,null,null,null,null,null,null,0,{"$error":"#DIV/0!"}]
[null,null,null,null,null,null,null,null,null,null,null,null,null,null,null,null,null,null,null,null,null,null,null,0,{"$error":"#DIV/0!"}]
[null,null,null,null,null,null,null,null,null,null,null,null,null,null,null,null,null,null,null,null,null,null,null,0,{"$error":"#DIV/0!"}]
[null,null,null,null,null,null,null,null,null,null,null,null,null,null,null,null,null,null,null,null,null,null,null,0,{"$f":"IF(X139=\"\",\"\",SUM((X139/$X$274)))","v":{"$error":"#DIV/0!"}}]
[null,null,null,null,null,null,null,null,null,null,null,null,null,null,null,null,null,null,null,null,null,null,null,0,{"$error":"#DIV/0!"}]
[null,null,null,null,null,null,null,null,null,null,null,null,null,null,null,null,null,null,null,null,null,null,null,{"$f":"IF(B141=\"\",0,IF((SUM(D141:W141)=0),0,SUM(D141:W141)))","v":0},{"$error":"#DIV/0!"}]
[4,"Dredging, Planning and Permits",null,null,null,null,null,null,null,null,null,null,null,null,null,null,null,null,null,null,null,null,null,{"$f":"IF(B142=\"\",0,IF((SUM(D143:W185)=0),SUM(D142:W142),\"\"))","v":0},{"$error":"#DIV/0!"}]
[null,null,null,null,null,null,null,null,null,null,null,null,null,null,null,null,null,null,null,null,null,null,null,{"$f":"IF(B143=\"\",0,IF((SUM(D143:W143)=0),0,SUM(D143:W143)))","v":0},{"$error":"#DIV/0!"}]
[null,null,null,null,null,null,null,null,null,null,null,null,null,null,null,null,null,null,null,null,null,null,null,0,{"$error":"#DIV/0!"}]
[null,null,null,null,null,null,null,null,null,null,null,null,null,null,null,null,null,null,null,null,null,null,null,0,{"$error":"#DIV/0!"}]
[null,null,null,null,null,null,null,null,null,null,null,null,null,null,null,null,null,null,null,null,null,null,null,0,{"$error":"#DIV/0!"}]
[null,null,null,null,null,null,null,null,null,null,null,null,null,null,null,null,null,null,null,null,null,null,null,0,{"$error":"#DIV/0!"}]
[null,null,null,null,null,null,null,null,null,null,null,null,null,null,null,null,null,null,null,null,null,null,null,0,{"$error":"#DIV/0!"}]
[null,null,null,null,null,null,null,null,null,null,null,null,null,null,null,null,null,null,null,null,null,null,null,0,{"$error":"#DIV/0!"}]
[null,null,null,null,null,null,null,null,null,null,null,null,null,null,null,null,null,null,null,null,null,null,null,0,{"$error":"#DIV/0!"}]
[null,null,null,null,null,null,null,null,null,null,null,null,null,null,null,null,null,null,null,null,null,null,null,{"$f":"IF(B151=\"\",0,IF((SUM(D151:W151)=0),0,SUM(D151:W151)))","v":0},{"$error":"#DIV/0!"}]
[null,null,null,null,null,null,null,null,null,null,null,null,null,null,null,null,null,null,null,null,null,null,null,{"$f":"IF(B152=\"\",0,IF((SUM(D152:W152)=0),0,SUM(D152:W152)))","v":0},{"$error":"#DIV/0!"}]
[null,"Planning and Coordination Meetings",null,null,null,null,null,null,null,null,null,null,null,null,null,null,null,null,null,null,null,null,null,{"$f":"IF(B153=\"\",0,IF((SUM(D154:W163)=0),SUM(D153:W153),\"\"))","v":0},{"$error":"#DIV/0!"}]
[null,null,null,null,null,null,null,null,null,null,null,null,null,null,null,null,null,null,null,null,null,null,null,{"$f":"IF(B154=\"\",0,IF((SUM(D154:W154)=0),0,SUM(D154:W154)))","v":0},{"$error":"#DIV/0!"}]
[null,null,null,null,null,null,null,null,null,null,null,null,null,null,null,null,null,null,null,null,null,null,null,0,{"$error":"#DIV/0!"}]
[null,null,null,null,null,null,null,null,null,null,null,null,null,null,null,null,null,null,null,null,null,null,null,0,{"$error":"#DIV/0!"}]
[null,null,null,null,null,null,null,null,null,null,null,null,null,null,null,null,null,null,null,null,null,null,null,0,{"$error":"#DIV/0!"}]
[null,null,null,null,null,null,null,null,null,null,null,null,null,null,null,null,null,null,null,null,null,null,null,0,{"$error":"#DIV/0!"}]
[null,null,null,null,null,null,null,null,null,null,null,null,null,null,null,null,null,null,null,null,null,null,null,0,{"$error":"#DIV/0!"}]
[null,null,null,null,null,null,null,null,null,null,null,null,null,null,null,null,null,null,null,null,null,null,null,0,{"$error":"#DIV/0!"}]
[null,null,null,null,null,null,null,null,null,null,null,null,null,null,null,null,null,null,null,null,null,null,null,0,{"$error":"#DIV/0!"}]
[null,null,null,null,null,null,null,null,null,null,null,null,null,null,null,null,null,null,null,null,null,null,null,{"$f":"IF(B162=\"\",0,IF((SUM(D162:W162)=0),0,SUM(D162:W162)))","v":0},{"$error":"#DIV/0!"}]
[null,null,null,null,null,null,null,null,null,null,null,null,null,null,null,null,null,null,null,null,null,null,null,{"$f":"IF(B163=\"\",0,IF((SUM(D163:W163)=0),0,SUM(D163:W163)))","v":0},{"$error":"#DIV/0!"}]
[null,"Review and Interviews\n**Review can apply to requirements (USC CFR, State policy) generally study related\n**Review can also apply to schematics / blue prints generally design related",null,null,null,null,null,null,null,null,null,null,null,null,null,null,null,null,null,null,null,null,null,{"$f":"IF(B164=\"\",0,IF((SUM(D165:W174)=0),SUM(D164:W164),\"\"))","v":0},{"$error":"#DIV/0!"}]
[null,null,null,null,null,null,null,null,null,null,null,null,null,null,null,null,null,null,null,null,null,null,null,{"$f":"IF(B165=\"\",0,IF((SUM(D165:W165)=0),0,SUM(D165:W165)))","v":0},{"$error":"#DIV/0!"}]
[null,null,null,null,null,null,null,null,null,null,null,null,null,null,null,null,null,null,null,null,null,null,null,0,{"$error":"#DIV/0!"}]
[null,null,null,null,null,null,null,null,null,null,null,null,null,null,null,null,null,null,null,null,null,null,null,0,{"$error":"#DIV/0!"}]
[null,null,null,null,null,null,null,null,null,null,null,null,null,null,null,null,null,null,null,null,null,null,null,0,{"$error":"#DIV/0!"}]
[null,null,null,null,null,null,null,null,null,null,null,null,null,null,null,null,null,null,null,null,null,null,null,0,{"$error":"#DIV/0!"}]
[null,null,null,null,null,null,null,null,null,null,null,null,null,null,null,null,null,null,null,null,null,null,null,0,{"$error":"#DIV/0!"}]
[null,null,null,null,null,null,null,null,null,null,null,null,null,null,null,null,null,null,null,null,null,null,null,0,{"$error":"#DIV/0!"}]
[null,null,null,null,null,null,null,null,null,null,null,null,null,null,null,null,null,null,null,null,null,null,null,0,{"$error":"#DIV/0!"}]
[null,null,null,null,null,null,null,null,null,null,null,null,null,null,null,null,null,null,null,null,null,null,null,0,{"$error":"#DIV/0!"}]
[null,null,null,null,null,null,null,null,null,null,null,null,null,null,null,null,null,null,null,null,null,null,null,0,{"$error":"#DIV/0!"}]
[null,"Reporting and Presentation",null,null,null,null,null,null,null,null,null,null,null,null,null,null,null,null,null,null,null,null,null,{"$f":"IF(B175=\"\",0,IF((SUM(D176:W185)=0),SUM(D175:W175),\"\"))","v":0},{"$error":"#DIV/0!"}]
[null,null,null,null,null,null,null,null,null,null,null,null,null,null,null,null,null,null,null,null,null,null,null,{"$f":"IF(B176=\"\",0,IF((SUM(D176:W176)=0),0,SUM(D176:W176)))","v":0},{"$error":"#DIV/0!"}]
[null,null,null,null,null,null,null,null,null,null,null,null,null,null,null,null,null,null,null,null,null,null,null,0,{"$error":"#DIV/0!"}]
[null,null,null,null,null,null,null,null,null,null,null,null,null,null,null,null,null,null,null,null,null,null,null,0,{"$error":"#DIV/0!"}]
[null,null,null,null,null,null,null,null,null,null,null,null,null,null,null,null,null,null,null,null,null,null,null,0,{"$error":"#DIV/0!"}]
[null,null,null,null,null,null,null,null,null,null,null,null,null,null,null,null,null,null,null,null,null,null,null,0,{"$error":"#DIV/0!"}]
[null,null,null,null,null,null,null,null,null,null,null,null,null,null,null,null,null,null,null,null,null,null,null,0,{"$error":"#DIV/0!"}]
[null,null,null,null,null,null,null,null,null,null,null,null,null,null,null,null,null,null,null,null,null,null,null,0,{"$error":"#DIV/0!"}]
[null,null,null,null,null,null,null,null,null,null,null,null,null,null,null,null,null,null,null,null,null,null,null,0,{"$error":"#DIV/0!"}]
[null,null,null,null,null,null,null,null,null,null,null,null,null,null,null,null,null,null,null,null,null,null,null,0,{"$error":"#DIV/0!"}]
[null,null,null,null,null,null,null,null,null,null,null,null,null,null,null,null,null,null,null,null,null,null,null,0,{"$error":"#DIV/0!"}]
[5,"Vessel Asset Management",null,null,null,null,null,null,null,null,null,null,null,null,null,null,null,null,null,null,null,null,null,{"$f":"IF(B186=\"\",0,IF((SUM(D187:W229)=0),SUM(D186:W186),\"\"))","v":0},{"$error":"#DIV/0!"}]
[null,null,null,null,null,null,null,null,null,null,null,null,null,null,null,null,null,null,null,null,null,null,null,{"$f":"IF(B187=\"\",0,IF((SUM(D187:W187)=0),0,SUM(D187:W187)))","v":0},{"$error":"#DIV/0!"}]
[null,null,null,null,null,null,null,null,null,null,null,null,null,null,null,null,null,null,null,null,null,null,null,0,{"$error":"#DIV/0!"}]
[null,null,null,null,null,null,null,null,null,null,null,null,null,null,null,null,null,null,null,null,null,null,null,0,{"$error":"#DIV/0!"}]
[null,null,null,null,null,null,null,null,null,null,null,null,null,null,null,null,null,null,null,null,null,null,null,0,{"$error":"#DIV/0!"}]
[null,null,null,null,null,null,null,null,null,null,null,null,null,null,null,null,null,null,null,null,null,null,null,0,{"$error":"#DIV/0!"}]
[null,null,null,null,null,null,null,null,null,null,null,null,null,null,null,null,null,null,null,null,null,null,null,0,{"$error":"#DIV/0!"}]
[null,null,null,null,null,null,null,null,null,null,null,null,null,null,null,null,null,null,null,null,null,null,null,0,{"$error":"#DIV/0!"}]
[null,null,null,null,null,null,null,null,null,null,null,null,null,null,null,null,null,null,null,null,null,null,null,0,{"$error":"#DIV/0!"}]
[null,null,null,null,null,null,null,null,null,null,null,null,null,null,null,null,null,null,null,null,null,null,null,{"$f":"IF(B195=\"\",0,IF((SUM(D195:W195)=0),0,SUM(D195:W195)))","v":0},{"$error":"#DIV/0!"}]
[null,null,null,null,null,null,null,null,null,null,null,null,null,null,null,null,null,null,null,null,null,null,null,{"$f":"IF(B196=\"\",0,IF((SUM(D196:W196)=0),0,SUM(D196:W196)))","v":0},{"$error":"#DIV/0!"}]
[null,"Planning and Coordination Meetings",null,null,null,null,null,null,null,null,null,null,null,null,null,null,null,null,null,null,null,null,null,{"$f":"IF(B197=\"\",0,IF((SUM(D198:W207)=0),SUM(D197:W197),\"\"))","v":0},{"$error":"#DIV/0!"}]
[null,null,null,null,null,null,null,null,null,null,null,null,null,null,null,null,null,null,null,null,null,null,null,{"$f":"IF(B198=\"\",0,IF((SUM(D198:W198)=0),0,SUM(D198:W198)))","v":0},{"$error":"#DIV/0!"}]
[null,null,null,null,null,null,null,null,null,null,null,null,null,null,null,null,null,null,null,null,null,null,null,0,{"$error":"#DIV/0!"}]
[null,null,null,null,null,null,null,null,null,null,null,null,null,null,null,null,null,null,null,null,null,null,null,0,{"$error":"#DIV/0!"}]
[null,null,null,null,null,null,null,null,null,null,null,null,null,null,null,null,null,null,null,null,null,null,null,0,{"$error":"#DIV/0!"}]
[null,null,null,null,null,null,null,null,null,null,null,null,null,null,null,null,null,null,null,null,null,null,null,0,{"$error":"#DIV/0!"}]
[null,null,null,null,null,null,null,null,null,null,null,null,null,null,null,null,null,null,null,null,null,null,null,0,{"$f":"IF(X203=\"\",\"\",SUM((X203/$X$274)))","v":{"$error":"#DIV/0!"}}]
[null,null,null,null,null,null,null,null,null,null,null,null,null,null,null,null,null,null,null,null,null,null,null,0,{"$error":"#DIV/0!"}]
[null,null,null,null,null,null,null,null,null,null,null,null,null,null,null,null,null,null,null,null,null,null,null,0,{"$error":"#DIV/0!"}]
[null,null,null,null,null,null,null,null,null,null,null,null,null,null,null,null,null,null,null,null,null,null,null,{"$f":"IF(B206=\"\",0,IF((SUM(D206:W206)=0),0,SUM(D206:W206)))","v":0},{"$error":"#DIV/0!"}]
[null,null,null,null,null,null,null,null,null,null,null,null,null,null,null,null,null,null,null,null,null,null,null,{"$f":"IF(B207=\"\",0,IF((SUM(D207:W207)=0),0,SUM(D207:W207)))","v":0},{"$error":"#DIV/0!"}]
[null,"Review and Interviews\n**Review can apply to requirements (USC CFR, State policy) generally study related\n**Review can also apply to schematics / blue prints generally design related",null,null,null,null,null,null,null,null,null,null,null,null,null,null,null,null,null,null,null,null,null,{"$f":"IF(B208=\"\",0,IF((SUM(D209:W218)=0),SUM(D208:W208),\"\"))","v":0},{"$error":"#DIV/0!"}]
[null,null,null,null,null,null,null,null,null,null,null,null,null,null,null,null,null,null,null,null,null,null,null,{"$f":"IF(B209=\"\",0,IF((SUM(D209:W209)=0),0,SUM(D209:W209)))","v":0},{"$error":"#DIV/0!"}]
[null,null,null,null,null,null,null,null,null,null,null,null,null,null,null,null,null,null,null,null,null,null,null,0,{"$error":"#DIV/0!"}]
[null,null,null,null,null,null,null,null,null,null,null,null,null,null,null,null,null,null,null,null,null,null,null,0,{"$error":"#DIV/0!"}]
[null,null,null,null,null,null,null,null,null,null,null,null,null,null,null,null,null,null,null,null,null,null,null,0,{"$error":"#DIV/0!"}]
[null,null,null,null,null,null,null,null,null,null,null,null,null,null,null,null,null,null,null,null,null,null,null,0,{"$error":"#DIV/0!"}]
[null,null,null,null,null,null,null,null,null,null,null,null,null,null,null,null,null,null,null,null,null,null,null,0,{"$error":"#DIV/0!"}]
[null,null,null,null,null,null,null,null,null,null,null,null,null,null,null,null,null,null,null,null,null,null,null,0,{"$error":"#DIV/0!"}]
[null,null,null,null,null,null,null,null,null,null,null,null,null,null,null,null,null,null,null,null,null,null,null,0,{"$error":"#DIV/0!"}]
[null,null,null,null,null,null,null,null,null,null,null,null,null,null,null,null,null,null,null,null,null,null,null,0,{"$error":"#DIV/0!"}]
[null,null,null,null,null,null,null,null,null,null,null,null,null,null,null,null,null,null,null,null,null,null,null,0,{"$error":"#DIV/0!"}]
[null,"Reporting and Presentation",null,null,null,null,null,null,null,null,null,null,null,null,null,null,null,null,null,null,null,null,null,{"$f":"IF(B219=\"\",0,IF((SUM(D220:W229)=0),SUM(D219:W219),\"\"))","v":0},{"$error":"#DIV/0!"}]
[null,null,null,null,null,null,null,null,null,null,null,null,null,null,null,null,null,null,null,null,null,null,null,{"$f":"IF(B220=\"\",0,IF((SUM(D220:W220)=0),0,SUM(D220:W220)))","v":0},{"$error":"#DIV/0!"}]
[null,null,null,null,null,null,null,null,null,null,null,null,null,null,null,null,null,null,null,null,null,null,null,0,{"$error":"#DIV/0!"}]
[null,null,null,null,null,null,null,null,null,null,null,null,null,null,null,null,null,null,null,null,null,null,null,0,{"$error":"#DIV/0!"}]
[null,null,null,null,null,null,null,null,null,null,null,null,null,null,null,null,null,null,null,null,null,null,null,0,{"$error":"#DIV/0!"}]
[null,null,null,null,null,null,null,null,null,null,null,null,null,null,null,null,null,null,null,null,null,null,null,0,{"$error":"#DIV/0!"}]
[null,null,null,null,null,null,null,null,null,null,null,null,null,null,null,null,null,null,null,null,null,null,null,0,{"$error":"#DIV/0!"}]
[null,null,null,null,null,null,null,null,null,null,null,null,null,null,null,null,null,null,null,null,null,null,null,0,{"$error":"#DIV/0!"}]
[null,null,null,null,null,null,null,null,null,null,null,null,null,null,null,null,null,null,null,null,null,null,null,0,{"$error":"#DIV/0!"}]
[null,null,null,null,null,null,null,null,null,null,null,null,null,null,null,null,null,null,null,null,null,null,null,0,{"$error":"#DIV/0!"}]
[null,null,null,null,null,null,null,null,null,null,null,null,null,null,null,null,null,null,null,null,null,null,null,0,{"$error":"#DIV/0!"}]
[6,"OTHER TYPE (PLEASE KEY TYPE)",null,null,null,null,null,null,null,null,null,null,null,null,null,null,null,null,null,null,null,null,null,{"$f":"IF(B230=\"\",0,IF((SUM(D231:W273)=0),SUM(D230:W230),\"\"))","v":0},{"$error":"#DIV/0!"}]
[null,null,null,null,null,null,null,null,null,null,null,null,null,null,null,null,null,null,null,null,null,null,null,{"$f":"IF(B231=\"\",0,IF((SUM(D231:W231)=0),0,SUM(D231:W231)))","v":0},{"$error":"#DIV/0!"}]
[null,null,null,null,null,null,null,null,null,null,null,null,null,null,null,null,null,null,null,null,null,null,null,0,{"$error":"#DIV/0!"}]
[null,null,null,null,null,null,null,null,null,null,null,null,null,null,null,null,null,null,null,null,null,null,null,0,{"$error":"#DIV/0!"}]
[null,null,null,null,null,null,null,null,null,null,null,null,null,null,null,null,null,null,null,null,null,null,null,0,{"$error":"#DIV/0!"}]
[null,null,null,null,null,null,null,null,null,null,null,null,null,null,null,null,null,null,null,null,null,null,null,0,{"$error":"#DIV/0!"}]
[null,null,null,null,null,null,null,null,null,null,null,null,null,null,null,null,null,null,null,null,null,null,null,0,{"$error":"#DIV/0!"}]
[null,null,null,null,null,null,null,null,null,null,null,null,null,null,null,null,null,null,null,null,null,null,null,0,{"$error":"#DIV/0!"}]
[null,null,null,null,null,null,null,null,null,null,null,null,null,null,null,null,null,null,null,null,null,null,null,0,{"$error":"#DIV/0!"}]
[null,null,null,null,null,null,null,null,null,null,null,null,null,null,null,null,null,null,null,null,null,null,null,{"$f":"IF(B239=\"\",0,IF((SUM(D239:W239)=0),0,SUM(D239:W239)))","v":0},{"$error":"#DIV/0!"}]
[null,null,null,null,null,null,null,null,null,null,null,null,null,null,null,null,null,null,null,null,null,null,null,{"$f":"IF(B240=\"\",0,IF((SUM(D240:W240)=0),0,SUM(D240:W240)))","v":0},{"$error":"#DIV/0!"}]
[null,"Planning and Coordination Meetings",null,null,null,null,null,null,null,null,null,null,null,null,null,null,null,null,null,null,null,null,null,{"$f":"IF(B241=\"\",0,IF((SUM(D242:W251)=0),SUM(D241:W241),\"\"))","v":0},{"$error":"#DIV/0!"}]
[null,null,null,null,null,null,null,null,null,null,null,null,null,null,null,null,null,null,null,null,null,null,null,{"$f":"IF(B242=\"\",0,IF((SUM(D242:W242)=0),0,SUM(D242:W242)))","v":0},{"$error":"#DIV/0!"}]
[null,null,null,null,null,null,null,null,null,null,null,null,null,null,null,null,null,null,null,null,null,null,null,0,{"$error":"#DIV/0!"}]
[null,null,null,null,null,null,null,null,null,null,null,null,null,null,null,null,null,null,null,null,null,null,null,0,{"$error":"#DIV/0!"}]
[null,null,null,null,null,null,null,null,null,null,null,null,null,null,null,null,null,null,null,null,null,null,null,0,{"$error":"#DIV/0!"}]
[null,null,null,null,null,null,null,null,null,null,null,null,null,null,null,null,null,null,null,null,null,null,null,0,{"$error":"#DIV/0!"}]
[null,null,null,null,null,null,null,null,null,null,null,null,null,null,null,null,null,null,null,null,null,null,null,0,{"$error":"#DIV/0!"}]
[null,null,null,null,null,null,null,null,null,null,null,null,null,null,null,null,null,null,null,null,null,null,null,0,{"$error":"#DIV/0!"}]
[null,null,null,null,null,null,null,null,null,null,null,null,null,null,null,null,null,null,null,null,null,null,null,0,{"$error":"#DIV/0!"}]
[null,null,null,null,null,null,null,null,null,null,null,null,null,null,null,null,null,null,null,null,null,null,null,{"$f":"IF(B250=\"\",0,IF((SUM(D250:W250)=0),0,SUM(D250:W250)))","v":0},{"$error":"#DIV/0!"}]
[null,null,null,null,null,null,null,null,null,null,null,null,null,null,null,null,null,null,null,null,null,null,null,{"$f":"IF(B251=\"\",0,IF((SUM(D251:W251)=0),0,SUM(D251:W251)))","v":0},{"$error":"#DIV/0!"}]
[null,"Review and Interviews\n**Review can apply to requirements (USC CFR, State policy) generally study related\n**Review can also apply to schematics / blue prints generally design related",null,null,null,null,null,null,null,null,null,null,null,null,null,null,null,null,null,null,null,null,null,{"$f":"IF(B252=\"\",0,IF((SUM(D253:W262)=0),SUM(D252:W252),\"\"))","v":0},{"$error":"#DIV/0!"}]
[null,null,null,null,null,null,null,null,null,null,null,null,null,null,null,null,null,null,null,null,null,null,null,{"$f":"IF(B253=\"\",0,IF((SUM(D253:W253)=0),0,SUM(D253:W253)))","v":0},{"$error":"#DIV/0!"}]
[null,null,null,null,null,null,null,null,null,null,null,null,null,null,null,null,null,null,null,null,null,null,null,0,{"$error":"#DIV/0!"}]
[null,null,null,null,null,null,null,null,null,null,null,null,null,null,null,null,null,null,null,null,null,null,null,0,{"$error":"#DIV/0!"}]
[null,null,null,null,null,null,null,null,null,null,null,null,null,null,null,null,null,null,null,null,null,null,null,0,{"$error":"#DIV/0!"}]
[null,null,null,null,null,null,null,null,null,null,null,null,null,null,null,null,null,null,null,null,null,null,null,0,{"$error":"#DIV/0!"}]
[null,null,null,null,null,null,null,null,null,null,null,null,null,null,null,null,null,null,null,null,null,null,null,0,{"$error":"#DIV/0!"}]
[null,null,null,null,null,null,null,null,null,null,null,null,null,null,null,null,null,null,null,null,null,null,null,0,{"$error":"#DIV/0!"}]
[null,null,null,null,null,null,null,null,null,null,null,null,null,null,null,null,null,null,null,null,null,null,null,0,{"$error":"#DIV/0!"}]
[null,null,null,null,null,null,null,null,null,null,null,null,null,null,null,null,null,null,null,null,null,null,null,0,{"$error":"#DIV/0!"}]
[null,null,null,null,null,null,null,null,null,null,null,null,null,null,null,null,null,null,null,null,null,null,null,0,{"$error":"#DIV/0!"}]
[null,"Reporting and Presentation",null,null,null,null,null,null,null,null,null,null,null,null,null,null,null,null,null,null,null,null,null,{"$f":"IF(B263=\"\",0,IF((SUM(D264:W273)=0),SUM(D263:W263),\"\"))","v":0},{"$error":"#DIV/0!"}]
[null,null,null,null,null,null,null,null,null,null,null,null,null,null,null,null,null,null,null,null,null,null,null,{"$f":"IF(B264=\"\",0,IF((SUM(D264:W264)=0),0,SUM(D264:W264)))","v":0},{"$error":"#DIV/0!"}]
[null,null,null,null,null,null,null,null,null,null,null,null,null,null,null,null,null,null,null,null,null,null,null,0,{"$error":"#DIV/0!"}]
[null,null,null,null,null,null,null,null,null,null,null,null,null,null,null,null,null,null,null,null,null,null,null,0,{"$error":"#DIV/0!"}]
[null,null,null,null,null,null,null,null,null,null,null,null,null,null,null,null,null,null,null,null,null,null,null,0,{"$f":"IF(X267=\"\",\"\",SUM((X267/$X$274)))","v":{"$error":"#DIV/0!"}}]
[null,null,null,null,null,null,null,null,null,null,null,null,null,null,null,null,null,null,null,null,null,null,null,0,{"$error":"#DIV/0!"}]
[null,null,null,null,null,null,null,null,null,null,null,null,null,null,null,null,null,null,null,null,null,null,null,0,{"$error":"#DIV/0!"}]
[null,null,null,null,null,null,null,null,null,null,null,null,null,null,null,null,null,null,null,null,null,null,null,0,{"$error":"#DIV/0!"}]
[null,null,null,null,null,null,null,null,null,null,null,null,null,null,null,null,null,null,null,null,null,null,null,0,{"$error":"#DIV/0!"}]
[null,null,null,null,null,null,null,null,null,null,null,null,null,null,null,null,null,null,null,null,null,null,null,0,{"$error":"#DIV/0!"}]
[null,null,null,null,null,null,null,null,null,null,null,null,null,null,null,null,null,null,null,null,null,null,null,{"$f":"IF(B273=\"\",0,IF((SUM(D273:W273)=0),0,SUM(D273:W273)))","v":0},{"$error":"#DIV/0!"}]
[null,"TOTAL WORKHOURS/CATEGORY:",null,{"$f":"SUM(D11:D273)","v":0},0,0,0,0,0,0,0,0,0,0,0,0,0,0,0,0,0,0,0,0,{"$error":"#DIV/0!"},{"$f":"SUM(Z12:Z273)","v":0}]
[null,"TOTAL WORKDAYS/CATEGORY:",null,{"$f":"D274/8","v":0},{"$f":"E274/8","v":0},0,0,0,0,0,0,0,0,0,0,0,0,0,0,0,0,0,0]
[null,"HOURLY SALARY RATE:",null,{"$f":"'PEF CLASSIFICATION SHEET'!E1690","v":0},{"$f":"'PEF CLASSIFICATION SHEET'!E1691","v":0},{"$f":"'PEF CLASSIFICATION SHEET'!E1692","v":0},{"$f":"'PEF CLASSIFICATION SHEET'!E1693","v":0},{"$f":"'PEF CLASSIFICATION SHEET'!E1694","v":0},{"$f":"'PEF CLASSIFICATION SHEET'!E1695","v":0},{"$f":"'PEF CLASSIFICATION SHEET'!E1696","v":0},{"$f":"'PEF CLASSIFICATION SHEET'!E1697","v":0},{"$f":"'PEF CLASSIFICATION SHEET'!E1698","v":0},{"$f":"'PEF CLASSIFICATION SHEET'!E1699","v":0},{"$f":"'PEF CLASSIFICATION SHEET'!E1700","v":0},{"$f":"'PEF CLASSIFICATION SHEET'!E1701","v":0},{"$f":"'PEF CLASSIFICATION SHEET'!E1702","v":0},{"$f":"'PEF CLASSIFICATION SHEET'!E1703","v":0},{"$f":"'PEF CLASSIFICATION SHEET'!E1704","v":0},{"$f":"'PEF CLASSIFICATION SHEET'!E1705","v":0},{"$f":"'PEF CLASSIFICATION SHEET'!E1706","v":0},{"$f":"'PEF CLASSIFICATION SHEET'!E1707","v":0},{"$f":"'PEF CLASSIFICATION SHEET'!E1708","v":0},{"$f":"'PEF CLASSIFICATION SHEET'!E1709","v":0}]
[null,"RATES PER DAY:",null,{"$f":"D276*8","v":0},0,0,0,0,0,0,0,0,0,0,0,0,0,0,0,0,0,0,0]
[null,"PAYROLL BURDEN:",null,{"$f":"SUM(D274*D276)","v":0},{"$f":"SUM(E274*E276)","v":0},0,0,0,0,0,0,0,0,0,0,0,0,0,0,0,0,0,0]
[null,"TOTAL WORKDAYS:",null,{"$f":"SUM(D275:W275)","v":0}]
[null,"TOTAL PAYROLL BURDEN:",null,{"$f":"SUM(D278:W278)","v":0}]
[null,"AVERAGE COST PER HOUR:",null,{"$f":"SUM(D280/(D279*8))","v":{"$error":"#DIV/0!"}}]
[null,"GENERAL OVERHEAD:",{"$f":"FERRY.SUB2_CONSULTANT_OVERHEAD","v":0},{"$f":"SUM(D280*C282)","v":0}]
[null,"SUBTOTAL:",null,{"$f":"SUM(D280+D282)","v":0}]
[null,"COMPARATIVE FEE:",{"$f":"FERRY.SUB2_CONSULTANT_FEE","v":0},{"$f":"SUM(D283*C284)","v":0}]
[null,"FACILITIES COST OF CAPITAL:",{"$f":"FERRY.SUB2_CONSULTANT_COSTofCAPITAL","v":0},{"$f":"SUM(D280*C285)","v":0}]
[null,"TOTAL:",null,{"$f":"SUM(D283:D285)","v":0}]
[null,"DIRECT EXPENSES:",null,{"$f":"FERRY.SUB2_DIRECT_NONSALARY_TOTAL","v":0}]
[null,"FERRY GRAND TOTAL:",null,{"$f":"SUM(D286:D287)","v":0}]

{"sheet":"Ferry-Exp-Sub2","index":188,"n_rows":46,"n_cols":8,"rows_kept":46,"cut":false,"hidden":true,"merged":[[0,0,0,7],[1,3,1,7]]}
[{"$f":"CONCATENATE('Ferry-Sub2'!B1,\" \",\"--DIRECT EXPENSES - SUBCONSULTANT 2\")","v":"Ferry (Select One Below) --DIRECT EXPENSES - SUBCONSULTANT 2"}]
["TIP NUMBER",{"$f":"TIP.NUMBER","v":0},"FIRM:",{"$f":"'Ferry-Sub2'!G3","v":"CONSULTANT NAME"}]
[]
["GENERAL PROJECT WORK:","ITEM","QTY","DESCRIPTION",null,null,"UNIT COST "]
[null,"Travel:"]
[null,"Sedan",0,"Trip(s) @",0,"miles @",{"$f":"SEDAN","v":0.7},{"$f":"SUM(C6*E6*G6)","v":0}]
[null,"Carry All",0,"Trip(s) @",0,"miles @",{"$f":"CARRYALL","v":0.72},{"$f":"SUM(C7*E7*G7)","v":0}]
[null,"Car Rental",null,null,0,"days @ ",{"$f":"CARRENTAL","v":50},{"$f":"SUM(E8*G8)","v":0}]
[null,"Gas for Rental",null,null,0,"miles @",{"$f":"GASforRENTAL","v":0.2},{"$f":"SUM(E9*G9)","v":0}]
[null,"Parking:",0,"Trip(s) @",null,null,{"$f":"PARKING","v":3},{"$f":"SUM(C10*G10)","v":0}]
[null,"Per Diem:",0,"Breakfast",null,null,{"$f":"BREAKFAST","v":10.1},{"$f":"SUM(C11*G11)","v":0}]
[null,null,0,"Lunch",null,null,{"$f":"LUNCH","v":13.3},0]
[null,null,0,"Dinner",null,null,{"$f":"DINNER","v":23.1},0]
[null,null,0,"Lodging",null,null,{"$f":"LODGING_LUMP.SUM","v":95},0]
[null,"Reproduction:",0,"8 1/2 x 11 B & W Copies @",null,null,{"$f":"LETTERCOPIES","v":0.14000000000000001},0]
[null,null,0,"11 x 17 B & W Copies @",null,null,{"$f":"LEDGERCOPIES","v":0.34},0]
[null,null,0,"8 1/2 x 11 Color Copies @",null,null,{"$f":"LETTERCOLOR","v":0.83},0]
[null,null,0,"11 x 17 Color Copies @",null,null,{"$f":"LEDGERCOLOR","v":1.66},0]
[null,null,0,"SQ. FT. of Plots (B & W or Color)",null,"<65 SQ. FT.*",{"$f":"ROLLPLOTSshort","v":6.5},0]
[null,null,0,"SQ. FT. of Plots (B & W or Color)",null,">65 SQ. FT.*",{"$f":"ROLLPLOTSlong","v":1.5},0]
[null,null,0,"Cover(s) @",null,null,{"$f":"COVERS","v":0.5},0]
[null,null,0,"Binder(s) @",null,null,{"$f":"BINDERS","v":0.5},0]
[null,null,0,"Blueprints - 8 1/2 x 11 @",null,null,{"$f":"BLUEPRINTSLETTER","v":0.35},0]
[null,null,0,"Blueprints - 42 x 72 @",null,null,{"$f":"BLUEPRINTSLARGE","v":1.3},0]
[null,"Film and Developing:",0,"Roll(s) @",null,null,{"$f":"FILM","v":20},0]
[null,null,null,null,null,"Subtotal",null,{"$f":"SUM(H6:H25)","v":0}]
["MAPS AND DOCUMENTS:","ITEM","QTY","DESCRIPTION",null,null,"UNIT COST "]
[null,"County Tax Maps:",0,"Map(s) @",null,null,{"$f":"County_Tax_Maps","v":7},{"$f":"SUM(C28*G28)","v":0}]
[null,"USGS Maps:",0,"Map(s) @",null,null,{"$f":"USGSMAPS","v":7},{"$f":"SUM(C29*G29)","v":0}]
[null,null,null,null,null,"Subtotal",null,{"$f":"SUM(H28:H29)","v":0}]
["Miscellaneous Other","ITEM","QTY","DESCRIPTION",null,null,"UNIT COST "]
[null,null,null,null,null,null,null,{"$f":"SUM(C32*G32)","v":0}]
[null,null,null,null,null,null,null,{"$f":"SUM(C33*G33)","v":0}]
[null,null,null,null,null,null,null,0]
[null,null,null,null,null,null,null,0]
[null,null,null,null,null,null,null,0]
[null,null,null,null,null,null,null,0]
[null,null,null,null,null,null,null,0]
[null,null,null,null,null,null,null,{"$f":"SUM(C39*G39)","v":0}]
[null,null,null,null,null,null,null,{"$f":"SUM(C40*G40)","v":0}]
[null,null,null,null,null,null,null,{"$f":"SUM(C41*G41)","v":0}]
[null,null,null,null,null,"Subtotal",null,{"$f":"SUM(H32:H41)","v":0}]
[]
[null,null,null,null,null,"TOTAL",null,{"$f":"SUM(H26+H30+H42)","v":0}]
[]
[null,"* Sum of all plots "]

{"sheet":"Ferry-Sub3","index":189,"n_rows":288,"n_cols":31,"rows_kept":288,"cut":false,"hidden":true,"merged":[[0,2,0,13],[2,1,2,4],[2,6,2,7],[2,10,2,11],[2,15,2,16],[3,1,3,4],[3,6,3,7],[3,10,3,11],[3,15,3,16],[6,12,9,12],[6,13,9,13],[6,14,9,14],[6,15,9,15],[6,16,9,16],[6,17,9,17],[4,3,4,22],[6,3,9,3],[6,4,9,4],[6,5,9,5],[6,6,9,6],[6,7,9,7],[6,8,9,8],[6,9,9,9],[6,10,9,10],[6,11,9,11],[10,26,10,27],[11,26,11,27],[12,26,12,27],[13,26,13,27],[14,26,14,27],[15,26,15,27],[6,18,9,18],[6,19,9,19],[6,20,9,20],[6,21,9,21],[6,22,9,22],[8,26,8,27],[22,26,22,27],[23,26,23,27],[24,26,24,27],[25,26,25,27],[26,26,26,27],[27,26,27,27],[16,26,16,27],[17,26,17,27],[18,26,18,27],[19,26,19,27],[20,26,20,27],[21,26,21,27],[34,26,34,27],[35,26,35,27],[36,26,36,27],[37,26,37,27],[38,26,38,27],[39,26,39,27],[28,26,28,27],[29,26,29,27],[30,26,30,27],[31,26,31,27],[32,26,32,27],[33,26,33,27],[46,26,46,27],[47,26,47,27],[48,26,48,27],[49,26,49,27],[50,26,50,27],[51,26,51,27],[40,26,40,27],[41,26,41,27],[42,26,42,27],[43,26,43,27],[44,26,44,27],[45,26,45,27],[58,26,58,27],[59,26,59,27],[60,26,60,27],[61,26,61,27],[62,26,62,27],[63,26,63,27],[52,26,52,27],[53,26,53,27],[54,26,54,27],[55,26,55,27],[56,26,56,27],[57,26,57,27],[70,26,70,27],[71,26,71,27],[72,26,72,27],[73,26,73,27],[74,26,74,27],[75,26,75,27],[64,26,64,27],[65,26,65,27],[66,26,66,27],[67,26,67,27],[68,26,68,27],[69,26,69,27],[82,26,82,27],[83,26,83,27],[84,26,84,27],[85,26,85,27],[86,26,86,27],[87,26,87,27],[76,26,76,27],[77,26,77,27],[78,26,78,27],[79,26,79,27],[80,26,80,27],[81,26,81,27],[94,26,94,27],[95,26,95,27],[96,26,96,27],[97,26,97,27],[98,26,98,27],[99,26,99,27],[88,26,88,27],[89,26,89,27],[90,26,90,27],[91,26,91,27],[92,26,92,27],[93,26,93,27],[106,26,106,27],[107,26,107,27],[108,26,108,27],[109,26,109,27],[110,26,110,27],[111,26,111,27],[100,26,100,27],[101,26,101,27],[102,26,102,27],[103,26,103,27],[104,26,104,27],[105,26,105,27],[118,26,118,27],[272,26,272,27],[287,1,288,1],[287,3,288,4],[291,3,291,6],[291,8,291,13],[112,26,112,27],[113,26,113,27],[114,26,114,27],[115,26,115,27],[116,26,116,27],[117,26,117,27],[227,26,227,27],[228,26,228,27],[229,26,229,27],[230,26,230,27],[231,26,231,27],[232,26,232,27],[233,26,233,27],[234,26,234,27],[235,26,235,27],[236,26,236,27],[237,26,237,27],[238,26,238,27],[298,8,298,9],[298,10,298,11],[292,8,292,9],[292,10,292,11],[293,8,293,9],[293,10,293,11],[296,8,296,13],[297,8,297,9],[297,10,297,11],[239,26,239,27],[240,26,240,27],[241,26,241,27],[242,26,242,27],[243,26,243,27],[244,26,244,27],[245,26,245,27],[246,26,246,27],[247,26,247,27],[248,26,248,27],[249,26,249,27],[250,26,250,27],[251,26,251,27],[252,26,252,27],[253,26,253,27],[254,26,254,27],[255,26,255,27],[256,26,256,27],[257,26,257,27],[258,26,258,27],[259,26,259,27],[260,26,260,27],[261,26,261,27],[262,26,262,27],[263,26,263,27],[264,26,264,27],[265,26,265,27],[266,26,266,27],[267,26,267,27],[268,26,268,27],[269,26,269,27],[270,26,270,27],[271,26,271,27],[173,26,173,27],[174,26,174,27],[175,26,175,27],[176,26,176,27],[177,26,177,27],[178,26,178,27],[179,26,179,27],[180,26,180,27],[181,26,181,27],[182,26,182,27],[183,26,183,27],[184,26,184,27],[185,26,185,27],[186,26,186,27],[187,26,187,27],[188,26,188,27],[189,26,189,27],[190,26,190,27],[191,26,191,27],[192,26,192,27],[193,26,193,27],[194,26,194,27],[195,26,195,27],[196,26,196,27],[197,26,197,27],[198,26,198,27],[199,26,199,27],[200,26,200,27],[201,26,201,27],[202,26,202,27],[203,26,203,27],[204,26,204,27],[205,26,205,27],[206,26,206,27],[207,26,207,27],[208,26,208,27],[209,26,209,27],[210,26,210,27],[211,26,211,27],[212,26,212,27],[213,26,213,27],[214,26,214,27],[215,26,215,27],[216,26,216,27],[217,26,217,27],[218,26,218,27],[219,26,219,27],[220,26,220,27],[221,26,221,27],[222,26,222,27],[223,26,223,27],[224,26,224,27],[225,26,225,27],[226,26,226,27],[119,26,119,27],[120,26,120,27],[121,26,121,27],[122,26,122,27],[123,26,123,27],[124,26,124,27],[125,26,125,27],[126,26,126,27],[127,26,127,27],[128,26,128,27],[129,26,129,27],[130,26,130,27],[131,26,131,27],[132,26,132,27],[133,26,133,27],[134,26,134,27],[135,26,135,27],[136,26,136,27],[137,26,137,27],[138,26,138,27],[139,26,139,27],[140,26,140,27],[141,26,141,27],[142,26,142,27],[143,26,143,27],[144,26,144,27],[145,26,145,27],[146,26,146,27],[147,26,147,27],[148,26,148,27],[149,26,149,27],[150,26,150,27],[151,26,151,27],[152,26,152,27],[153,26,153,27],[154,26,154,27],[155,26,155,27],[156,26,156,27],[157,26,157,27],[158,26,158,27],[159,26,159,27],[160,26,160,27],[161,26,161,27],[162,26,162,27],[163,26,163,27],[164,26,164,27],[165,26,165,27],[166,26,166,27],[167,26,167,27],[168,26,168,27],[169,26,169,27],[170,26,170,27],[171,26,171,27],[172,26,172,27]]}
[null,{"$f":"Ferry!B1","v":"Ferry (Select One Below)"},{"$f":"CONCATENATE(\" \",\"--BREAKDOWN WORKSHEET - SUBCONSULTANT 3 -- ENTER WORKHOURS\")","v":" --BREAKDOWN WORKSHEET - SUBCONSULTANT 3 -- ENTER WORKHOURS"},null,null,null,null,null,null,null,null,null,null,null,null,null,null,null,null,null,null,null,null,null,null,null,null,null,null,null,"Ferry (Select One Below)"]
[null,null,null,null,null,null,null,null,null,null,null,null,null,null,null,null,null,null,null,null,null,null,null,null,null,null,null,null,null,null,"Marine Construction"]
["PROJECT DESCRIPTION: ",{"$f":"PROJECT.DESCRIPTION","v":0},null,null,null,"FIRM:  ",{"$f":"FERRY.SUB3_CONSULTANT_NAME","v":"CONSULTANT NAME"},null,"TASK ORDER NUMBER:",null,{"$f":"TASK.ORDER.NUMBER","v":0},null,"DATE PREPARED:",{"$f":"IF(SCOPE.MANDAY.ESTIMATE.PREPARED.BY.DATE=\"\",\"\",SCOPE.MANDAY.ESTIMATE.PREPARED.BY.DATE)","v":""},null,null,null,null,null,null,null,null,null,null,null,null,null,null,null,null,"Vessel Design"]
["PREPARED BY:  ",{"$f":"IF(SCOPE.MANDAY.ESTIMATE.PREPARED.BY=\"\",\"\",SCOPE.MANDAY.ESTIMATE.PREPARED.BY)","v":""},null,null,null,"TIP NUMBER:",{"$f":"TIP.NUMBER","v":0},null,"WBS NUMBER:",null,{"$f":"WBS.NUMBER","v":""},null,"REVISION DATE:",{"$f":"IF(SCOPE.MANDAY.ESTIMATE.APPROVED.BY.DATE=\"\",\"\",SCOPE.MANDAY.ESTIMATE.APPROVED.BY.DATE)","v":""}]
[null,null,null,"ESTIMATED WORKHOURS"]
[null,null,"EMPLOYEE NAMES",{"$f":"IF('PEF CLASSIFICATION SHEET'!D1712=\"\",\"\",LEFT('PEF CLASSIFICATION SHEET'!D1712,4))","v":""},{"$f":"IF('PEF CLASSIFICATION SHEET'!D1713=\"\",\"\",LEFT('PEF CLASSIFICATION SHEET'!D1713,4))","v":""},{"$f":"IF('PEF CLASSIFICATION SHEET'!D1714=\"\",\"\",LEFT('PEF CLASSIFICATION SHEET'!D1714,4))","v":""},{"$f":"IF('PEF CLASSIFICATION SHEET'!D1715=\"\",\"\",LEFT('PEF CLASSIFICATION SHEET'!D1715,4))","v":""},{"$f":"IF('PEF CLASSIFICATION SHEET'!D1716=\"\",\"\",LEFT('PEF CLASSIFICATION SHEET'!D1716,4))","v":""},{"$f":"IF('PEF CLASSIFICATION SHEET'!D1717=\"\",\"\",LEFT('PEF CLASSIFICATION SHEET'!D1717,4))","v":""},{"$f":"IF('PEF CLASSIFICATION SHEET'!D1718=\"\",\"\",LEFT('PEF CLASSIFICATION SHEET'!D1718,4))","v":""},{"$f":"IF('PEF CLASSIFICATION SHEET'!D1719=\"\",\"\",LEFT('PEF CLASSIFICATION SHEET'!D1719,4))","v":""},{"$f":"IF('PEF CLASSIFICATION SHEET'!D1720=\"\",\"\",LEFT('PEF CLASSIFICATION SHEET'!D1720,4))","v":""},{"$f":"IF('PEF CLASSIFICATION SHEET'!D1721=\"\",\"\",LEFT('PEF CLASSIFICATION SHEET'!D1721,4))","v":""},{"$f":"IF('PEF CLASSIFICATION SHEET'!D1722=\"\",\"\",LEFT('PEF CLASSIFICATION SHEET'!D1722,4))","v":""},{"$f":"IF('PEF CLASSIFICATION SHEET'!D1723=\"\",\"\",LEFT('PEF CLASSIFICATION SHEET'!D1723,4))","v":""},{"$f":"IF('PEF CLASSIFICATION SHEET'!D1724=\"\",\"\",LEFT('PEF CLASSIFICATION SHEET'!D1724,4))","v":""},{"$f":"IF('PEF CLASSIFICATION SHEET'!D1725=\"\",\"\",LEFT('PEF CLASSIFICATION SHEET'!D1725,4))","v":""},{"$f":"IF('PEF CLASSIFICATION SHEET'!D1726=\"\",\"\",LEFT('PEF CLASSIFICATION SHEET'!D1726,4))","v":""},{"$f":"IF('PEF CLASSIFICATION SHEET'!D1727=\"\",\"\",LEFT('PEF CLASSIFICATION SHEET'!D1727,4))","v":""},{"$f":"IF('PEF CLASSIFICATION SHEET'!D1728=\"\",\"\",LEFT('PEF CLASSIFICATION SHEET'!D1728,4))","v":""},{"$f":"IF('PEF CLASSIFICATION SHEET'!D1729=\"\",\"\",LEFT('PEF CLASSIFICATION SHEET'!D1729,4))","v":""},{"$f":"IF('PEF CLASSIFICATION SHEET'!D1730=\"\",\"\",LEFT('PEF CLASSIFICATION SHEET'!D1730,4))","v":""},{"$f":"IF('PEF CLASSIFICATION SHEET'!D1731=\"\",\"\",LEFT('PEF CLASSIFICATION SHEET'!D1731,4))","v":""}]
[null,null,null,{"$f":"IF('PEF CLASSIFICATION SHEET'!C1712=\"\",\"\",'PEF CLASSIFICATION SHEET'!C1712)","v":""},{"$f":"IF('PEF CLASSIFICATION SHEET'!C1713=\"\",\"\",'PEF CLASSIFICATION SHEET'!C1713)","v":""},{"$f":"IF('PEF CLASSIFICATION SHEET'!C1714=\"\",\"\",'PEF CLASSIFICATION SHEET'!C1714)","v":""},{"$f":"IF('PEF CLASSIFICATION SHEET'!C1715=\"\",\"\",'PEF CLASSIFICATION SHEET'!C1715)","v":""},{"$f":"IF('PEF CLASSIFICATION SHEET'!C1716=\"\",\"\",'PEF CLASSIFICATION SHEET'!C1716)","v":""},{"$f":"IF('PEF CLASSIFICATION SHEET'!C1717=\"\",\"\",'PEF CLASSIFICATION SHEET'!C1717)","v":""},{"$f":"IF('PEF CLASSIFICATION SHEET'!C1718=\"\",\"\",'PEF CLASSIFICATION SHEET'!C1718)","v":""},{"$f":"IF('PEF CLASSIFICATION SHEET'!C1719=\"\",\"\",'PEF CLASSIFICATION SHEET'!C1719)","v":""},{"$f":"IF('PEF CLASSIFICATION SHEET'!C1720=\"\",\"\",'PEF CLASSIFICATION SHEET'!C1720)","v":""},{"$f":"IF('PEF CLASSIFICATION SHEET'!C1721=\"\",\"\",'PEF CLASSIFICATION SHEET'!C1721)","v":""},{"$f":"IF('PEF CLASSIFICATION SHEET'!C1722=\"\",\"\",'PEF CLASSIFICATION SHEET'!C1722)","v":""},{"$f":"IF('PEF CLASSIFICATION SHEET'!C1723=\"\",\"\",'PEF CLASSIFICATION SHEET'!C1723)","v":""},{"$f":"IF('PEF CLASSIFICATION SHEET'!C1724=\"\",\"\",'PEF CLASSIFICATION SHEET'!C1724)","v":""},{"$f":"IF('PEF CLASSIFICATION SHEET'!C1725=\"\",\"\",'PEF CLASSIFICATION SHEET'!C1725)","v":""},{"$f":"IF('PEF CLASSIFICATION SHEET'!C1726=\"\",\"\",'PEF CLASSIFICATION SHEET'!C1726)","v":""},{"$f":"IF('PEF CLASSIFICATION SHEET'!C1727=\"\",\"\",'PEF CLASSIFICATION SHEET'!C1727)","v":""},{"$f":"IF('PEF CLASSIFICATION SHEET'!C1728=\"\",\"\",'PEF CLASSIFICATION SHEET'!C1728)","v":""},{"$f":"IF('PEF CLASSIFICATION SHEET'!C1729=\"\",\"\",'PEF CLASSIFICATION SHEET'!C1729)","v":""},{"$f":"IF('PEF CLASSIFICATION SHEET'!C1730=\"\",\"\",'PEF CLASSIFICATION SHEET'!C1730)","v":""},{"$f":"IF('PEF CLASSIFICATION SHEET'!C1731=\"\",\"\",'PEF CLASSIFICATION SHEET'!C1731)","v":""},"SUB-","%","PEF"]
[null,null,null,null,null,null,null,null,null,null,null,null,null,null,null,null,null,null,null,null,null,null,null,"TOTAL","OF","ESTIMATE"]
["TASK","TASK DESCRIPTION","CLASSIFICATION",null,null,null,null,null,null,null,null,null,null,null,null,null,null,null,null,null,null,null,null,null,"PROJECT",null,"COMMENTS"]
["NO."]
[1,"Marine Vessel Design",null,null,null,null,null,null,null,null,null,null,null,null,null,null,null,null,null,null,null,null,null,{"$f":"IF(B11=\"\",0,IF((SUM(D12:W54)=0),SUM(D11:W11),\"\"))","v":0},{"$f":"IF(X11=\"\",\"\",SUM((X11/$X$274)))","v":{"$error":"#DIV/0!"}}]
[null,null,null,null,null,null,null,null,null,null,null,null,null,null,null,null,null,null,null,null,null,null,null,{"$f":"IF(B12=\"\",0,IF((SUM(D12:W12)=0),0,SUM(D12:W12)))","v":0},{"$error":"#DIV/0!"}]
[null,null,null,null,null,null,null,null,null,null,null,null,null,null,null,null,null,null,null,null,null,null,null,0,{"$error":"#DIV/0!"}]
[null,null,null,null,null,null,null,null,null,null,null,null,null,null,null,null,null,null,null,null,null,null,null,0,{"$error":"#DIV/0!"}]
[null,null,null,null,null,null,null,null,null,null,null,null,null,null,null,null,null,null,null,null,null,null,null,0,{"$error":"#DIV/0!"}]
[null,null,null,null,null,null,null,null,null,null,null,null,null,null,null,null,null,null,null,null,null,null,null,0,{"$error":"#DIV/0!"}]
[null,null,null,null,null,null,null,null,null,null,null,null,null,null,null,null,null,null,null,null,null,null,null,0,{"$error":"#DIV/0!"}]
[null,null,null,null,null,null,null,null,null,null,null,null,null,null,null,null,null,null,null,null,null,null,null,0,{"$error":"#DIV/0!"}]
[null,null,null,null,null,null,null,null,null,null,null,null,null,null,null,null,null,null,null,null,null,null,null,0,{"$error":"#DIV/0!"}]
[null,null,null,null,null,null,null,null,null,null,null,null,null,null,null,null,null,null,null,null,null,null,null,{"$f":"IF(B20=\"\",0,IF((SUM(D20:W20)=0),0,SUM(D20:W20)))","v":0},{"$error":"#DIV/0!"}]
[null,null,null,null,null,null,null,null,null,null,null,null,null,null,null,null,null,null,null,null,null,null,null,{"$f":"IF(B21=\"\",0,IF((SUM(D21:W21)=0),0,SUM(D21:W21)))","v":0},{"$error":"#DIV/0!"}]
[null,"Planning and Coordination Meetings",null,null,null,null,null,null,null,null,null,null,null,null,null,null,null,null,null,null,null,null,null,{"$f":"IF(B22=\"\",0,IF((SUM(D23:W32)=0),SUM(D22:W22),\"\"))","v":0},{"$error":"#DIV/0!"}]
[null,null,null,null,null,null,null,null,null,null,null,null,null,null,null,null,null,null,null,null,null,null,null,{"$f":"IF(B23=\"\",0,IF((SUM(D23:W23)=0),0,SUM(D23:W23)))","v":0},{"$error":"#DIV/0!"}]
[null,null,null,null,null,null,null,null,null,null,null,null,null,null,null,null,null,null,null,null,null,null,null,0,{"$error":"#DIV/0!"}]
[null,null,null,null,null,null,null,null,null,null,null,null,null,null,null,null,null,null,null,null,null,null,null,0,{"$error":"#DIV/0!"}]
[null,null,null,null,null,null,null,null,null,null,null,null,null,null,null,null,null,null,null,null,null,null,null,0,{"$error":"#DIV/0!"}]
[null,null,null,null,null,null,null,null,null,null,null,null,null,null,null,null,null,null,null,null,null,null,null,0,{"$error":"#DIV/0!"}]
[null,null,null,null,null,null,null,null,null,null,null,null,null,null,null,null,null,null,null,null,null,null,null,0,{"$error":"#DIV/0!"}]
[null,null,null,null,null,null,null,null,null,null,null,null,null,null,null,null,null,null,null,null,null,null,null,0,{"$error":"#DIV/0!"}]
[null,null,null,null,null,null,null,null,null,null,null,null,null,null,null,null,null,null,null,null,null,null,null,0,{"$error":"#DIV/0!"}]
[null,null,null,null,null,null,null,null,null,null,null,null,null,null,null,null,null,null,null,null,null,null,null,{"$f":"IF(B31=\"\",0,IF((SUM(D31:W31)=0),0,SUM(D31:W31)))","v":0},{"$error":"#DIV/0!"}]
[null,null,null,null,null,null,null,null,null,null,null,null,null,null,null,null,null,null,null,null,null,null,null,{"$f":"IF(B32=\"\",0,IF((SUM(D32:W32)=0),0,SUM(D32:W32)))","v":0},{"$error":"#DIV/0!"}]
[null,"Review and Interviews\n**Review can apply to requirements (USC CFR, State policy) generally study related\n**Review can also apply to schematics / blue prints generally design related",null,null,null,null,null,null,null,null,null,null,null,null,null,null,null,null,null,null,null,null,null,{"$f":"IF(B33=\"\",0,IF((SUM(D34:W43)=0),SUM(D33:W33),\"\"))","v":0},{"$error":"#DIV/0!"}]
[null,null,null,null,null,null,null,null,null,null,null,null,null,null,null,null,null,null,null,null,null,null,null,0,{"$error":"#DIV/0!"}]
[null,null,null,null,null,null,null,null,null,null,null,null,null,null,null,null,null,null,null,null,null,null,null,0,{"$error":"#DIV/0!"}]
[null,null,null,null,null,null,null,null,null,null,null,null,null,null,null,null,null,null,null,null,null,null,null,{"$f":"IF(B36=\"\",0,IF((SUM(D36:W36)=0),0,SUM(D36:W36)))","v":0},{"$error":"#DIV/0!"}]
[null,null,null,null,null,null,null,null,null,null,null,null,null,null,null,null,null,null,null,null,null,null,null,0,{"$error":"#DIV/0!"}]
[null,null,null,null,null,null,null,null,null,null,null,null,null,null,null,null,null,null,null,null,null,null,null,0,{"$error":"#DIV/0!"}]
[null,null,null,null,null,null,null,null,null,null,null,null,null,null,null,null,null,null,null,null,null,null,null,0,{"$error":"#DIV/0!"}]
[null,null,null,null,null,null,null,null,null,null,null,null,null,null,null,null,null,null,null,null,null,null,null,0,{"$error":"#DIV/0!"}]
[null,null,null,null,null,null,null,null,null,null,null,null,null,null,null,null,null,null,null,null,null,null,null,0,{"$error":"#DIV/0!"}]
[null,null,null,null,null,null,null,null,null,null,null,null,null,null,null,null,null,null,null,null,null,null,null,0,{"$error":"#DIV/0!"}]
[null,null,null,null,null,null,null,null,null,null,null,null,null,null,null,null,null,null,null,null,null,null,null,0,{"$error":"#DIV/0!"}]
[null,"Reporting and Presentation",null,null,null,null,null,null,null,null,null,null,null,null,null,null,null,null,null,null,null,null,null,{"$f":"IF(B44=\"\",0,IF((SUM(D45:W54)=0),SUM(D44:W44),\"\"))","v":0},{"$error":"#DIV/0!"}]
[null,null,null,null,null,null,null,null,null,null,null,null,null,null,null,null,null,null,null,null,null,null,null,0,{"$error":"#DIV/0!"}]
[null,null,null,null,null,null,null,null,null,null,null,null,null,null,null,null,null,null,null,null,null,null,null,0,{"$error":"#DIV/0!"}]
[null,null,null,null,null,null,null,null,null,null,null,null,null,null,null,null,null,null,null,null,null,null,null,0,{"$error":"#DIV/0!"}]
[null,null,null,null,null,null,null,null,null,null,null,null,null,null,null,null,null,null,null,null,null,null,null,0,{"$error":"#DIV/0!"}]
[null,null,null,null,null,null,null,null,null,null,null,null,null,null,null,null,null,null,null,null,null,null,null,0,{"$error":"#DIV/0!"}]
[null,null,null,null,null,null,null,null,null,null,null,null,null,null,null,null,null,null,null,null,null,null,null,0,{"$error":"#DIV/0!"}]
[null,null,null,null,null,null,null,null,null,null,null,null,null,null,null,null,null,null,null,null,null,null,null,0,{"$error":"#DIV/0!"}]
[null,null,null,null,null,null,null,null,null,null,null,null,null,null,null,null,null,null,null,null,null,null,null,0,{"$error":"#DIV/0!"}]
[null,null,null,null,null,null,null,null,null,null,null,null,null,null,null,null,null,null,null,null,null,null,null,0,{"$error":"#DIV/0!"}]
[null,null,null,null,null,null,null,null,null,null,null,null,null,null,null,null,null,null,null,null,null,null,null,0,{"$error":"#DIV/0!"}]
[2,"Marine Vessel Maintenance Design",null,null,null,null,null,null,null,null,null,null,null,null,null,null,null,null,null,null,null,null,null,{"$f":"IF(B55=\"\",0,IF((SUM(D56:W97)=0),SUM(D55:W55),\"\"))","v":0},{"$error":"#DIV/0!"}]
[null,null,null,null,null,null,null,null,null,null,null,null,null,null,null,null,null,null,null,null,null,null,null,{"$f":"IF(B56=\"\",0,IF((SUM(D56:W56)=0),0,SUM(D56:W56)))","v":0},{"$error":"#DIV/0!"}]
[null,null,null,null,null,null,null,null,null,null,null,null,null,null,null,null,null,null,null,null,null,null,null,0,{"$error":"#DIV/0!"}]
[null,null,null,null,null,null,null,null,null,null,null,null,null,null,null,null,null,null,null,null,null,null,null,0,{"$error":"#DIV/0!"}]
[null,null,null,null,null,null,null,null,null,null,null,null,null,null,null,null,null,null,null,null,null,null,null,0,{"$error":"#DIV/0!"}]
[null,null,null,null,null,null,null,null,null,null,null,null,null,null,null,null,null,null,null,null,null,null,null,0,{"$error":"#DIV/0!"}]
[null,null,null,null,null,null,null,null,null,null,null,null,null,null,null,null,null,null,null,null,null,null,null,0,{"$error":"#DIV/0!"}]
[null,null,null,null,null,null,null,null,null,null,null,null,null,null,null,null,null,null,null,null,null,null,null,0,{"$error":"#DIV/0!"}]
[null,null,null,null,null,null,null,null,null,null,null,null,null,null,null,null,null,null,null,null,null,null,null,0,{"$error":"#DIV/0!"}]
[null,null,null,null,null,null,null,null,null,null,null,null,null,null,null,null,null,null,null,null,null,null,null,{"$f":"IF(B64=\"\",0,IF((SUM(D64:W64)=0),0,SUM(D64:W64)))","v":0},{"$error":"#DIV/0!"}]
[null,null,null,null,null,null,null,null,null,null,null,null,null,null,null,null,null,null,null,null,null,null,null,{"$f":"IF(B65=\"\",0,IF((SUM(D65:W65)=0),0,SUM(D65:W65)))","v":0},{"$error":"#DIV/0!"}]
[null,"Planning and Coordination Meetings",null,null,null,null,null,null,null,null,null,null,null,null,null,null,null,null,null,null,null,null,null,{"$f":"IF(B66=\"\",0,IF((SUM(D67:W76)=0),SUM(D66:W66),\"\"))","v":0},{"$error":"#DIV/0!"}]
[null,null,null,null,null,null,null,null,null,null,null,null,null,null,null,null,null,null,null,null,null,null,null,{"$f":"IF(B67=\"\",0,IF((SUM(D67:W67)=0),0,SUM(D67:W67)))","v":0},{"$error":"#DIV/0!"}]
[null,null,null,null,null,null,null,null,null,null,null,null,null,null,null,null,null,null,null,null,null,null,null,0,{"$error":"#DIV/0!"}]
[null,null,null,null,null,null,null,null,null,null,null,null,null,null,null,null,null,null,null,null,null,null,null,0,{"$error":"#DIV/0!"}]
[null,null,null,null,null,null,null,null,null,null,null,null,null,null,null,null,null,null,null,null,null,null,null,0,{"$error":"#DIV/0!"}]
[null,null,null,null,null,null,null,null,null,null,null,null,null,null,null,null,null,null,null,null,null,null,null,0,{"$error":"#DIV/0!"}]
[null,null,null,null,null,null,null,null,null,null,null,null,null,null,null,null,null,null,null,null,null,null,null,0,{"$error":"#DIV/0!"}]
[null,null,null,null,null,null,null,null,null,null,null,null,null,null,null,null,null,null,null,null,null,null,null,0,{"$error":"#DIV/0!"}]
[null,null,null,null,null,null,null,null,null,null,null,null,null,null,null,null,null,null,null,null,null,null,null,0,{"$error":"#DIV/0!"}]
[null,null,null,null,null,null,null,null,null,null,null,null,null,null,null,null,null,null,null,null,null,null,null,{"$f":"IF(B75=\"\",0,IF((SUM(D75:W75)=0),0,SUM(D75:W75)))","v":0},{"$f":"IF(X75=\"\",\"\",SUM((X75/$X$274)))","v":{"$error":"#DIV/0!"}}]
[null,null,null,null,null,null,null,null,null,null,null,null,null,null,null,null,null,null,null,null,null,null,null,{"$f":"IF(B76=\"\",0,IF((SUM(D76:W76)=0),0,SUM(D76:W76)))","v":0},{"$error":"#DIV/0!"}]
[null,"Review and Interviews\n**Review can apply to requirements (USC CFR, State policy) generally study related\n**Review can also apply to schematics / blue prints generally design related",null,null,null,null,null,null,null,null,null,null,null,null,null,null,null,null,null,null,null,null,null,{"$f":"IF(B77=\"\",0,IF((SUM(D78:W87)=0),SUM(D77:W77),\"\"))","v":0},{"$error":"#DIV/0!"}]
[null,null,null,null,null,null,null,null,null,null,null,null,null,null,null,null,null,null,null,null,null,null,null,{"$f":"IF(B78=\"\",0,IF((SUM(D78:W78)=0),0,SUM(D78:W78)))","v":0},{"$error":"#DIV/0!"}]
[null,null,null,null,null,null,null,null,null,null,null,null,null,null,null,null,null,null,null,null,null,null,null,0,{"$error":"#DIV/0!"}]
[null,null,null,null,null,null,null,null,null,null,null,null,null,null,null,null,null,null,null,null,null,null,null,0,{"$error":"#DIV/0!"}]
[null,null,null,null,null,null,null,null,null,null,null,null,null,null,null,null,null,null,null,null,null,null,null,0,{"$error":"#DIV/0!"}]
[null,null,null,null,null,null,null,null,null,null,null,null,null,null,null,null,null,null,null,null,null,null,null,0,{"$error":"#DIV/0!"}]
[null,null,null,null,null,null,null,null,null,null,null,null,null,null,null,null,null,null,null,null,null,null,null,0,{"$error":"#DIV/0!"}]
[null,null,null,null,null,null,null,null,null,null,null,null,null,null,null,null,null,null,null,null,null,null,null,0,{"$error":"#DIV/0!"}]
[null,null,null,null,null,null,null,null,null,null,null,null,null,null,null,null,null,null,null,null,null,null,null,0,{"$error":"#DIV/0!"}]
[null,null,null,null,null,null,null,null,null,null,null,null,null,null,null,null,null,null,null,null,null,null,null,0,{"$error":"#DIV/0!"}]
[null,null,null,null,null,null,null,null,null,null,null,null,null,null,null,null,null,null,null,null,null,null,null,0,{"$error":"#DIV/0!"}]
[null,"Reporting and Presentation",null,null,null,null,null,null,null,null,null,null,null,null,null,null,null,null,null,null,null,null,null,{"$f":"IF(B88=\"\",0,IF((SUM(D89:W98)=0),SUM(D88:W88),\"\"))","v":0},{"$error":"#DIV/0!"}]
[null,null,null,null,null,null,null,null,null,null,null,null,null,null,null,null,null,null,null,null,null,null,null,{"$f":"IF(B89=\"\",0,IF((SUM(D89:W89)=0),0,SUM(D89:W89)))","v":0},{"$error":"#DIV/0!"}]
[null,null,null,null,null,null,null,null,null,null,null,null,null,null,null,null,null,null,null,null,null,null,null,0,{"$error":"#DIV/0!"}]
[null,null,null,null,null,null,null,null,null,null,null,null,null,null,null,null,null,null,null,null,null,null,null,0,{"$error":"#DIV/0!"}]
[null,null,null,null,null,null,null,null,null,null,null,null,null,null,null,null,null,null,null,null,null,null,null,0,{"$error":"#DIV/0!"}]
[null,null,null,null,null,null,null,null,null,null,null,null,null,null,null,null,null,null,null,null,null,null,null,0,{"$error":"#DIV/0!"}]
[null,null,null,null,null,null,null,null,null,null,null,null,null,null,null,null,null,null,null,null,null,null,null,0,{"$error":"#DIV/0!"}]
[null,null,null,null,null,null,null,null,null,null,null,null,null,null,null,null,null,null,null,null,null,null,null,0,{"$error":"#DIV/0!"}]
[null,null,null,null,null,null,null,null,null,null,null,null,null,null,null,null,null,null,null,null,null,null,null,0,{"$error":"#DIV/0!"}]
[null,null,null,null,null,null,null,null,null,null,null,null,null,null,null,null,null,null,null,null,null,null,null,0,{"$error":"#DIV/0!"}]
[3,"Terminal Assets Design",null,null,null,null,null,null,null,null,null,null,null,null,null,null,null,null,null,null,null,null,null,{"$f":"IF(B98=\"\",0,IF((SUM(D99:W141)=0),SUM(D98:W98),\"\"))","v":0},{"$error":"#DIV/0!"}]
[null,null,null,null,null,null,null,null,null,null,null,null,null,null,null,null,null,null,null,null,null,null,null,{"$f":"IF(B99=\"\",0,IF((SUM(D99:W99)=0),0,SUM(D99:W99)))","v":0},{"$error":"#DIV/0!"}]
[null,null,null,null,null,null,null,null,null,null,null,null,null,null,null,null,null,null,null,null,null,null,null,0,{"$error":"#DIV/0!"}]
[null,null,null,null,null,null,null,null,null,null,null,null,null,null,null,null,null,null,null,null,null,null,null,0,{"$error":"#DIV/0!"}]
[null,null,null,null,null,null,null,null,null,null,null,null,null,null,null,null,null,null,null,null,null,null,null,0,{"$error":"#DIV/0!"}]
[null,null,null,null,null,null,null,null,null,null,null,null,null,null,null,null,null,null,null,null,null,null,null,0,{"$error":"#DIV/0!"}]
[null,null,null,null,null,null,null,null,null,null,null,null,null,null,null,null,null,null,null,null,null,null,null,0,{"$error":"#DIV/0!"}]
[null,null,null,null,null,null,null,null,null,null,null,null,null,null,null,null,null,null,null,null,null,null,null,0,{"$error":"#DIV/0!"}]
[null,null,null,null,null,null,null,null,null,null,null,null,null,null,null,null,null,null,null,null,null,null,null,0,{"$error":"#DIV/0!"}]
[null,null,null,null,null,null,null,null,null,null,null,null,null,null,null,null,null,null,null,null,null,null,null,{"$f":"IF(B107=\"\",0,IF((SUM(D107:W107)=0),0,SUM(D107:W107)))","v":0},{"$error":"#DIV/0!"}]
[null,null,null,null,null,null,null,null,null,null,null,null,null,null,null,null,null,null,null,null,null,null,null,{"$f":"IF(B108=\"\",0,IF((SUM(D108:W108)=0),0,SUM(D108:W108)))","v":0},{"$error":"#DIV/0!"}]
[null,"Planning and Coordination Meetings",null,null,null,null,null,null,null,null,null,null,null,null,null,null,null,null,null,null,null,null,null,{"$f":"IF(B109=\"\",0,IF((SUM(D110:W119)=0),SUM(D109:W109),\"\"))","v":0},{"$error":"#DIV/0!"}]
[null,null,null,null,null,null,null,null,null,null,null,null,null,null,null,null,null,null,null,null,null,null,null,{"$f":"IF(B110=\"\",0,IF((SUM(D110:W110)=0),0,SUM(D110:W110)))","v":0},{"$error":"#DIV/0!"}]
[null,null,null,null,null,null,null,null,null,null,null,null,null,null,null,null,null,null,null,null,null,null,null,0,{"$error":"#DIV/0!"}]
[null,null,null,null,null,null,null,null,null,null,null,null,null,null,null,null,null,null,null,null,null,null,null,0,{"$error":"#DIV/0!"}]
[null,null,null,null,null,null,null,null,null,null,null,null,null,null,null,null,null,null,null,null,null,null,null,0,{"$error":"#DIV/0!"}]
[null,null,null,null,null,null,null,null,null,null,null,null,null,null,null,null,null,null,null,null,null,null,null,0,{"$error":"#DIV/0!"}]
[null,null,null,null,null,null,null,null,null,null,null,null,null,null,null,null,null,null,null,null,null,null,null,0,{"$error":"#DIV/0!"}]
[null,null,null,null,null,null,null,null,null,null,null,null,null,null,null,null,null,null,null,null,null,null,null,0,{"$error":"#DIV/0!"}]
[null,null,null,null,null,null,null,null,null,null,null,null,null,null,null,null,null,null,null,null,null,null,null,0,{"$error":"#DIV/0!"}]
[null,null,null,null,null,null,null,null,null,null,null,null,null,null,null,null,null,null,null,null,null,null,null,{"$f":"IF(B118=\"\",0,IF((SUM(D118:W118)=0),0,SUM(D118:W118)))","v":0},{"$error":"#DIV/0!"}]
[null,null,null,null,null,null,null,null,null,null,null,null,null,null,null,null,null,null,null,null,null,null,null,{"$f":"IF(B119=\"\",0,IF((SUM(D119:W119)=0),0,SUM(D119:W119)))","v":0},{"$error":"#DIV/0!"}]
[null,"Review and Interviews\n**Review can apply to requirements (USC CFR, State policy) generally study related\n**Review can also apply to schematics / blue prints generally design related",null,null,null,null,null,null,null,null,null,null,null,null,null,null,null,null,null,null,null,null,null,{"$f":"IF(B120=\"\",0,IF((SUM(D121:W130)=0),SUM(D120:W120),\"\"))","v":0},{"$error":"#DIV/0!"}]
[null,null,null,null,null,null,null,null,null,null,null,null,null,null,null,null,null,null,null,null,null,null,null,{"$f":"IF(B121=\"\",0,IF((SUM(D121:W121)=0),0,SUM(D121:W121)))","v":0},{"$error":"#DIV/0!"}]
[null,null,null,null,null,null,null,null,null,null,null,null,null,null,null,null,null,null,null,null,null,null,null,0,{"$error":"#DIV/0!"}]
[null,null,null,null,null,null,null,null,null,null,null,null,null,null,null,null,null,null,null,null,null,null,null,0,{"$error":"#DIV/0!"}]
[null,null,null,null,null,null,null,null,null,null,null,null,null,null,null,null,null,null,null,null,null,null,null,0,{"$error":"#DIV/0!"}]
[null,null,null,null,null,null,null,null,null,null,null,null,null,null,null,null,null,null,null,null,null,null,null,0,{"$error":"#DIV/0!"}]
[null,null,null,null,null,null,null,null,null,null,null,null,null,null,null,null,null,null,null,null,null,null,null,0,{"$error":"#DIV/0!"}]
[null,null,null,null,null,null,null,null,null,null,null,null,null,null,null,null,null,null,null,null,null,null,null,0,{"$error":"#DIV/0!"}]
[null,null,null,null,null,null,null,null,null,null,null,null,null,null,null,null,null,null,null,null,null,null,null,0,{"$error":"#DIV/0!"}]
[null,null,null,null,null,null,null,null,null,null,null,null,null,null,null,null,null,null,null,null,null,null,null,0,{"$error":"#DIV/0!"}]
[null,null,null,null,null,null,null,null,null,null,null,null,null,null,null,null,null,null,null,null,null,null,null,0,{"$error":"#DIV/0!"}]
[null,"Reporting and Presentation",null,null,null,null,null,null,null,null,null,null,null,null,null,null,null,null,null,null,null,null,null,{"$f":"IF(B131=\"\",0,IF((SUM(D132:W141)=0),SUM(D131:W131),\"\"))","v":0},{"$error":"#DIV/0!"}]
[null,null,null,null,null,null,null,null,null,null,null,null,null,null,null,null,null,null,null,null,null,null,null,{"$f":"IF(B132=\"\",0,IF((SUM(D132:W132)=0),0,SUM(D132:W132)))","v":0},{"$error":"#DIV/0!"}]
[null,null,null,null,null,null,null,null,null,null,null,null,null,null,null,null,null,null,null,null,null,null,null,0,{"$error":"#DIV/0!"}]
[null,null,null,null,null,null,null,null,null,null,null,null,null,null,null,null,null,null,null,null,null,null,null,0,{"$error":"#DIV/0!"}]
[null,null,null,null,null,null,null,null,null,null,null,null,null,null,null,null,null,null,null,null,null,null,null,0,{"$error":"#DIV/0!"}]
[null,null,null,null,null,null,null,null,null,null,null,null,null,null,null,null,null,null,null,null,null,null,null,0,{"$error":"#DIV/0!"}]
[null,null,null,null,null,null,null,null,null,null,null,null,null,null,null,null,null,null,null,null,null,null,null,0,{"$error":"#DIV/0!"}]
[null,null,null,null,null,null,null,null,null,null,null,null,null,null,null,null,null,null,null,null,null,null,null,0,{"$error":"#DIV/0!"}]
[null,null,null,null,null,null,null,null,null,null,null,null,null,null,null,null,null,null,null,null,null,null,null,0,{"$f":"IF(X139=\"\",\"\",SUM((X139/$X$274)))","v":{"$error":"#DIV/0!"}}]
[null,null,null,null,null,null,null,null,null,null,null,null,null,null,null,null,null,null,null,null,null,null,null,0,{"$error":"#DIV/0!"}]
[null,null,null,null,null,null,null,null,null,null,null,null,null,null,null,null,null,null,null,null,null,null,null,{"$f":"IF(B141=\"\",0,IF((SUM(D141:W141)=0),0,SUM(D141:W141)))","v":0},{"$error":"#DIV/0!"}]
[4,"Dredging, Planning and Permits",null,null,null,null,null,null,null,null,null,null,null,null,null,null,null,null,null,null,null,null,null,{"$f":"IF(B142=\"\",0,IF((SUM(D143:W185)=0),SUM(D142:W142),\"\"))","v":0},{"$error":"#DIV/0!"}]
[null,null,null,null,null,null,null,null,null,null,null,null,null,null,null,null,null,null,null,null,null,null,null,{"$f":"IF(B143=\"\",0,IF((SUM(D143:W143)=0),0,SUM(D143:W143)))","v":0},{"$error":"#DIV/0!"}]
[null,null,null,null,null,null,null,null,null,null,null,null,null,null,null,null,null,null,null,null,null,null,null,0,{"$error":"#DIV/0!"}]
[null,null,null,null,null,null,null,null,null,null,null,null,null,null,null,null,null,null,null,null,null,null,null,0,{"$error":"#DIV/0!"}]
[null,null,null,null,null,null,null,null,null,null,null,null,null,null,null,null,null,null,null,null,null,null,null,0,{"$error":"#DIV/0!"}]
[null,null,null,null,null,null,null,null,null,null,null,null,null,null,null,null,null,null,null,null,null,null,null,0,{"$error":"#DIV/0!"}]
[null,null,null,null,null,null,null,null,null,null,null,null,null,null,null,null,null,null,null,null,null,null,null,0,{"$error":"#DIV/0!"}]
[null,null,null,null,null,null,null,null,null,null,null,null,null,null,null,null,null,null,null,null,null,null,null,0,{"$error":"#DIV/0!"}]
[null,null,null,null,null,null,null,null,null,null,null,null,null,null,null,null,null,null,null,null,null,null,null,0,{"$error":"#DIV/0!"}]
[null,null,null,null,null,null,null,null,null,null,null,null,null,null,null,null,null,null,null,null,null,null,null,{"$f":"IF(B151=\"\",0,IF((SUM(D151:W151)=0),0,SUM(D151:W151)))","v":0},{"$error":"#DIV/0!"}]
[null,null,null,null,null,null,null,null,null,null,null,null,null,null,null,null,null,null,null,null,null,null,null,{"$f":"IF(B152=\"\",0,IF((SUM(D152:W152)=0),0,SUM(D152:W152)))","v":0},{"$error":"#DIV/0!"}]
[null,"Planning and Coordination Meetings",null,null,null,null,null,null,null,null,null,null,null,null,null,null,null,null,null,null,null,null,null,{"$f":"IF(B153=\"\",0,IF((SUM(D154:W163)=0),SUM(D153:W153),\"\"))","v":0},{"$error":"#DIV/0!"}]
[null,null,null,null,null,null,null,null,null,null,null,null,null,null,null,null,null,null,null,null,null,null,null,{"$f":"IF(B154=\"\",0,IF((SUM(D154:W154)=0),0,SUM(D154:W154)))","v":0},{"$error":"#DIV/0!"}]
[null,null,null,null,null,null,null,null,null,null,null,null,null,null,null,null,null,null,null,null,null,null,null,0,{"$error":"#DIV/0!"}]
[null,null,null,null,null,null,null,null,null,null,null,null,null,null,null,null,null,null,null,null,null,null,null,0,{"$error":"#DIV/0!"}]
[null,null,null,null,null,null,null,null,null,null,null,null,null,null,null,null,null,null,null,null,null,null,null,0,{"$error":"#DIV/0!"}]
[null,null,null,null,null,null,null,null,null,null,null,null,null,null,null,null,null,null,null,null,null,null,null,0,{"$error":"#DIV/0!"}]
[null,null,null,null,null,null,null,null,null,null,null,null,null,null,null,null,null,null,null,null,null,null,null,0,{"$error":"#DIV/0!"}]
[null,null,null,null,null,null,null,null,null,null,null,null,null,null,null,null,null,null,null,null,null,null,null,0,{"$error":"#DIV/0!"}]
[null,null,null,null,null,null,null,null,null,null,null,null,null,null,null,null,null,null,null,null,null,null,null,0,{"$error":"#DIV/0!"}]
[null,null,null,null,null,null,null,null,null,null,null,null,null,null,null,null,null,null,null,null,null,null,null,{"$f":"IF(B162=\"\",0,IF((SUM(D162:W162)=0),0,SUM(D162:W162)))","v":0},{"$error":"#DIV/0!"}]
[null,null,null,null,null,null,null,null,null,null,null,null,null,null,null,null,null,null,null,null,null,null,null,{"$f":"IF(B163=\"\",0,IF((SUM(D163:W163)=0),0,SUM(D163:W163)))","v":0},{"$error":"#DIV/0!"}]
[null,"Review and Interviews\n**Review can apply to requirements (USC CFR, State policy) generally study related\n**Review can also apply to schematics / blue prints generally design related",null,null,null,null,null,null,null,null,null,null,null,null,null,null,null,null,null,null,null,null,null,{"$f":"IF(B164=\"\",0,IF((SUM(D165:W174)=0),SUM(D164:W164),\"\"))","v":0},{"$error":"#DIV/0!"}]
[null,null,null,null,null,null,null,null,null,null,null,null,null,null,null,null,null,null,null,null,null,null,null,{"$f":"IF(B165=\"\",0,IF((SUM(D165:W165)=0),0,SUM(D165:W165)))","v":0},{"$error":"#DIV/0!"}]
[null,null,null,null,null,null,null,null,null,null,null,null,null,null,null,null,null,null,null,null,null,null,null,0,{"$error":"#DIV/0!"}]
[null,null,null,null,null,null,null,null,null,null,null,null,null,null,null,null,null,null,null,null,null,null,null,0,{"$error":"#DIV/0!"}]
[null,null,null,null,null,null,null,null,null,null,null,null,null,null,null,null,null,null,null,null,null,null,null,0,{"$error":"#DIV/0!"}]
[null,null,null,null,null,null,null,null,null,null,null,null,null,null,null,null,null,null,null,null,null,null,null,0,{"$error":"#DIV/0!"}]
[null,null,null,null,null,null,null,null,null,null,null,null,null,null,null,null,null,null,null,null,null,null,null,0,{"$error":"#DIV/0!"}]
[null,null,null,null,null,null,null,null,null,null,null,null,null,null,null,null,null,null,null,null,null,null,null,0,{"$error":"#DIV/0!"}]
[null,null,null,null,null,null,null,null,null,null,null,null,null,null,null,null,null,null,null,null,null,null,null,0,{"$error":"#DIV/0!"}]
[null,null,null,null,null,null,null,null,null,null,null,null,null,null,null,null,null,null,null,null,null,null,null,0,{"$error":"#DIV/0!"}]
[null,null,null,null,null,null,null,null,null,null,null,null,null,null,null,null,null,null,null,null,null,null,null,0,{"$error":"#DIV/0!"}]
[null,"Reporting and Presentation",null,null,null,null,null,null,null,null,null,null,null,null,null,null,null,null,null,null,null,null,null,{"$f":"IF(B175=\"\",0,IF((SUM(D176:W185)=0),SUM(D175:W175),\"\"))","v":0},{"$error":"#DIV/0!"}]
[null,null,null,null,null,null,null,null,null,null,null,null,null,null,null,null,null,null,null,null,null,null,null,{"$f":"IF(B176=\"\",0,IF((SUM(D176:W176)=0),0,SUM(D176:W176)))","v":0},{"$error":"#DIV/0!"}]
[null,null,null,null,null,null,null,null,null,null,null,null,null,null,null,null,null,null,null,null,null,null,null,0,{"$error":"#DIV/0!"}]
[null,null,null,null,null,null,null,null,null,null,null,null,null,null,null,null,null,null,null,null,null,null,null,0,{"$error":"#DIV/0!"}]
[null,null,null,null,null,null,null,null,null,null,null,null,null,null,null,null,null,null,null,null,null,null,null,0,{"$error":"#DIV/0!"}]
[null,null,null,null,null,null,null,null,null,null,null,null,null,null,null,null,null,null,null,null,null,null,null,0,{"$error":"#DIV/0!"}]
[null,null,null,null,null,null,null,null,null,null,null,null,null,null,null,null,null,null,null,null,null,null,null,0,{"$error":"#DIV/0!"}]
[null,null,null,null,null,null,null,null,null,null,null,null,null,null,null,null,null,null,null,null,null,null,null,0,{"$error":"#DIV/0!"}]
[null,null,null,null,null,null,null,null,null,null,null,null,null,null,null,null,null,null,null,null,null,null,null,0,{"$error":"#DIV/0!"}]
[null,null,null,null,null,null,null,null,null,null,null,null,null,null,null,null,null,null,null,null,null,null,null,0,{"$error":"#DIV/0!"}]
[null,null,null,null,null,null,null,null,null,null,null,null,null,null,null,null,null,null,null,null,null,null,null,0,{"$error":"#DIV/0!"}]
[5,"Vessel Asset Management",null,null,null,null,null,null,null,null,null,null,null,null,null,null,null,null,null,null,null,null,null,{"$f":"IF(B186=\"\",0,IF((SUM(D187:W229)=0),SUM(D186:W186),\"\"))","v":0},{"$error":"#DIV/0!"}]
[null,null,null,null,null,null,null,null,null,null,null,null,null,null,null,null,null,null,null,null,null,null,null,{"$f":"IF(B187=\"\",0,IF((SUM(D187:W187)=0),0,SUM(D187:W187)))","v":0},{"$error":"#DIV/0!"}]
[null,null,null,null,null,null,null,null,null,null,null,null,null,null,null,null,null,null,null,null,null,null,null,0,{"$error":"#DIV/0!"}]
[null,null,null,null,null,null,null,null,null,null,null,null,null,null,null,null,null,null,null,null,null,null,null,0,{"$error":"#DIV/0!"}]
[null,null,null,null,null,null,null,null,null,null,null,null,null,null,null,null,null,null,null,null,null,null,null,0,{"$error":"#DIV/0!"}]
[null,null,null,null,null,null,null,null,null,null,null,null,null,null,null,null,null,null,null,null,null,null,null,0,{"$error":"#DIV/0!"}]
[null,null,null,null,null,null,null,null,null,null,null,null,null,null,null,null,null,null,null,null,null,null,null,0,{"$error":"#DIV/0!"}]
[null,null,null,null,null,null,null,null,null,null,null,null,null,null,null,null,null,null,null,null,null,null,null,0,{"$error":"#DIV/0!"}]
[null,null,null,null,null,null,null,null,null,null,null,null,null,null,null,null,null,null,null,null,null,null,null,0,{"$error":"#DIV/0!"}]
[null,null,null,null,null,null,null,null,null,null,null,null,null,null,null,null,null,null,null,null,null,null,null,{"$f":"IF(B195=\"\",0,IF((SUM(D195:W195)=0),0,SUM(D195:W195)))","v":0},{"$error":"#DIV/0!"}]
[null,null,null,null,null,null,null,null,null,null,null,null,null,null,null,null,null,null,null,null,null,null,null,{"$f":"IF(B196=\"\",0,IF((SUM(D196:W196)=0),0,SUM(D196:W196)))","v":0},{"$error":"#DIV/0!"}]
[null,"Planning and Coordination Meetings",null,null,null,null,null,null,null,null,null,null,null,null,null,null,null,null,null,null,null,null,null,{"$f":"IF(B197=\"\",0,IF((SUM(D198:W207)=0),SUM(D197:W197),\"\"))","v":0},{"$error":"#DIV/0!"}]
[null,null,null,null,null,null,null,null,null,null,null,null,null,null,null,null,null,null,null,null,null,null,null,{"$f":"IF(B198=\"\",0,IF((SUM(D198:W198)=0),0,SUM(D198:W198)))","v":0},{"$error":"#DIV/0!"}]
[null,null,null,null,null,null,null,null,null,null,null,null,null,null,null,null,null,null,null,null,null,null,null,0,{"$error":"#DIV/0!"}]
[null,null,null,null,null,null,null,null,null,null,null,null,null,null,null,null,null,null,null,null,null,null,null,0,{"$error":"#DIV/0!"}]
[null,null,null,null,null,null,null,null,null,null,null,null,null,null,null,null,null,null,null,null,null,null,null,0,{"$error":"#DIV/0!"}]
[null,null,null,null,null,null,null,null,null,null,null,null,null,null,null,null,null,null,null,null,null,null,null,0,{"$error":"#DIV/0!"}]
[null,null,null,null,null,null,null,null,null,null,null,null,null,null,null,null,null,null,null,null,null,null,null,0,{"$f":"IF(X203=\"\",\"\",SUM((X203/$X$274)))","v":{"$error":"#DIV/0!"}}]
[null,null,null,null,null,null,null,null,null,null,null,null,null,null,null,null,null,null,null,null,null,null,null,0,{"$error":"#DIV/0!"}]
[null,null,null,null,null,null,null,null,null,null,null,null,null,null,null,null,null,null,null,null,null,null,null,0,{"$error":"#DIV/0!"}]
[null,null,null,null,null,null,null,null,null,null,null,null,null,null,null,null,null,null,null,null,null,null,null,{"$f":"IF(B206=\"\",0,IF((SUM(D206:W206)=0),0,SUM(D206:W206)))","v":0},{"$error":"#DIV/0!"}]
[null,null,null,null,null,null,null,null,null,null,null,null,null,null,null,null,null,null,null,null,null,null,null,{"$f":"IF(B207=\"\",0,IF((SUM(D207:W207)=0),0,SUM(D207:W207)))","v":0},{"$error":"#DIV/0!"}]
[null,"Review and Interviews\n**Review can apply to requirements (USC CFR, State policy) generally study related\n**Review can also apply to schematics / blue prints generally design related",null,null,null,null,null,null,null,null,null,null,null,null,null,null,null,null,null,null,null,null,null,{"$f":"IF(B208=\"\",0,IF((SUM(D209:W218)=0),SUM(D208:W208),\"\"))","v":0},{"$error":"#DIV/0!"}]
[null,null,null,null,null,null,null,null,null,null,null,null,null,null,null,null,null,null,null,null,null,null,null,{"$f":"IF(B209=\"\",0,IF((SUM(D209:W209)=0),0,SUM(D209:W209)))","v":0},{"$error":"#DIV/0!"}]
[null,null,null,null,null,null,null,null,null,null,null,null,null,null,null,null,null,null,null,null,null,null,null,0,{"$error":"#DIV/0!"}]
[null,null,null,null,null,null,null,null,null,null,null,null,null,null,null,null,null,null,null,null,null,null,null,0,{"$error":"#DIV/0!"}]
[null,null,null,null,null,null,null,null,null,null,null,null,null,null,null,null,null,null,null,null,null,null,null,0,{"$error":"#DIV/0!"}]
[null,null,null,null,null,null,null,null,null,null,null,null,null,null,null,null,null,null,null,null,null,null,null,0,{"$error":"#DIV/0!"}]
[null,null,null,null,null,null,null,null,null,null,null,null,null,null,null,null,null,null,null,null,null,null,null,0,{"$error":"#DIV/0!"}]
[null,null,null,null,null,null,null,null,null,null,null,null,null,null,null,null,null,null,null,null,null,null,null,0,{"$error":"#DIV/0!"}]
[null,null,null,null,null,null,null,null,null,null,null,null,null,null,null,null,null,null,null,null,null,null,null,0,{"$error":"#DIV/0!"}]
[null,null,null,null,null,null,null,null,null,null,null,null,null,null,null,null,null,null,null,null,null,null,null,0,{"$error":"#DIV/0!"}]
[null,null,null,null,null,null,null,null,null,null,null,null,null,null,null,null,null,null,null,null,null,null,null,0,{"$error":"#DIV/0!"}]
[null,"Reporting and Presentation",null,null,null,null,null,null,null,null,null,null,null,null,null,null,null,null,null,null,null,null,null,{"$f":"IF(B219=\"\",0,IF((SUM(D220:W229)=0),SUM(D219:W219),\"\"))","v":0},{"$error":"#DIV/0!"}]
[null,null,null,null,null,null,null,null,null,null,null,null,null,null,null,null,null,null,null,null,null,null,null,{"$f":"IF(B220=\"\",0,IF((SUM(D220:W220)=0),0,SUM(D220:W220)))","v":0},{"$error":"#DIV/0!"}]
[null,null,null,null,null,null,null,null,null,null,null,null,null,null,null,null,null,null,null,null,null,null,null,0,{"$error":"#DIV/0!"}]
[null,null,null,null,null,null,null,null,null,null,null,null,null,null,null,null,null,null,null,null,null,null,null,0,{"$error":"#DIV/0!"}]
[null,null,null,null,null,null,null,null,null,null,null,null,null,null,null,null,null,null,null,null,null,null,null,0,{"$error":"#DIV/0!"}]
[null,null,null,null,null,null,null,null,null,null,null,null,null,null,null,null,null,null,null,null,null,null,null,0,{"$error":"#DIV/0!"}]
[null,null,null,null,null,null,null,null,null,null,null,null,null,null,null,null,null,null,null,null,null,null,null,0,{"$error":"#DIV/0!"}]
[null,null,null,null,null,null,null,null,null,null,null,null,null,null,null,null,null,null,null,null,null,null,null,0,{"$error":"#DIV/0!"}]
[null,null,null,null,null,null,null,null,null,null,null,null,null,null,null,null,null,null,null,null,null,null,null,0,{"$error":"#DIV/0!"}]
[null,null,null,null,null,null,null,null,null,null,null,null,null,null,null,null,null,null,null,null,null,null,null,0,{"$error":"#DIV/0!"}]
[null,null,null,null,null,null,null,null,null,null,null,null,null,null,null,null,null,null,null,null,null,null,null,0,{"$error":"#DIV/0!"}]
[6,"OTHER TYPE (PLEASE KEY TYPE)",null,null,null,null,null,null,null,null,null,null,null,null,null,null,null,null,null,null,null,null,null,{"$f":"IF(B230=\"\",0,IF((SUM(D231:W273)=0),SUM(D230:W230),\"\"))","v":0},{"$error":"#DIV/0!"}]
[null,null,null,null,null,null,null,null,null,null,null,null,null,null,null,null,null,null,null,null,null,null,null,{"$f":"IF(B231=\"\",0,IF((SUM(D231:W231)=0),0,SUM(D231:W231)))","v":0},{"$error":"#DIV/0!"}]
[null,null,null,null,null,null,null,null,null,null,null,null,null,null,null,null,null,null,null,null,null,null,null,0,{"$error":"#DIV/0!"}]
[null,null,null,null,null,null,null,null,null,null,null,null,null,null,null,null,null,null,null,null,null,null,null,0,{"$error":"#DIV/0!"}]
[null,null,null,null,null,null,null,null,null,null,null,null,null,null,null,null,null,null,null,null,null,null,null,0,{"$error":"#DIV/0!"}]
[null,null,null,null,null,null,null,null,null,null,null,null,null,null,null,null,null,null,null,null,null,null,null,0,{"$error":"#DIV/0!"}]
[null,null,null,null,null,null,null,null,null,null,null,null,null,null,null,null,null,null,null,null,null,null,null,0,{"$error":"#DIV/0!"}]
[null,null,null,null,null,null,null,null,null,null,null,null,null,null,null,null,null,null,null,null,null,null,null,0,{"$error":"#DIV/0!"}]
[null,null,null,null,null,null,null,null,null,null,null,null,null,null,null,null,null,null,null,null,null,null,null,0,{"$error":"#DIV/0!"}]
[null,null,null,null,null,null,null,null,null,null,null,null,null,null,null,null,null,null,null,null,null,null,null,{"$f":"IF(B239=\"\",0,IF((SUM(D239:W239)=0),0,SUM(D239:W239)))","v":0},{"$error":"#DIV/0!"}]
[null,null,null,null,null,null,null,null,null,null,null,null,null,null,null,null,null,null,null,null,null,null,null,{"$f":"IF(B240=\"\",0,IF((SUM(D240:W240)=0),0,SUM(D240:W240)))","v":0},{"$error":"#DIV/0!"}]
[null,"Planning and Coordination Meetings",null,null,null,null,null,null,null,null,null,null,null,null,null,null,null,null,null,null,null,null,null,{"$f":"IF(B241=\"\",0,IF((SUM(D242:W251)=0),SUM(D241:W241),\"\"))","v":0},{"$error":"#DIV/0!"}]
[null,null,null,null,null,null,null,null,null,null,null,null,null,null,null,null,null,null,null,null,null,null,null,{"$f":"IF(B242=\"\",0,IF((SUM(D242:W242)=0),0,SUM(D242:W242)))","v":0},{"$error":"#DIV/0!"}]
[null,null,null,null,null,null,null,null,null,null,null,null,null,null,null,null,null,null,null,null,null,null,null,0,{"$error":"#DIV/0!"}]
[null,null,null,null,null,null,null,null,null,null,null,null,null,null,null,null,null,null,null,null,null,null,null,0,{"$error":"#DIV/0!"}]
[null,null,null,null,null,null,null,null,null,null,null,null,null,null,null,null,null,null,null,null,null,null,null,0,{"$error":"#DIV/0!"}]
[null,null,null,null,null,null,null,null,null,null,null,null,null,null,null,null,null,null,null,null,null,null,null,0,{"$error":"#DIV/0!"}]
[null,null,null,null,null,null,null,null,null,null,null,null,null,null,null,null,null,null,null,null,null,null,null,0,{"$error":"#DIV/0!"}]
[null,null,null,null,null,null,null,null,null,null,null,null,null,null,null,null,null,null,null,null,null,null,null,0,{"$error":"#DIV/0!"}]
[null,null,null,null,null,null,null,null,null,null,null,null,null,null,null,null,null,null,null,null,null,null,null,0,{"$error":"#DIV/0!"}]
[null,null,null,null,null,null,null,null,null,null,null,null,null,null,null,null,null,null,null,null,null,null,null,{"$f":"IF(B250=\"\",0,IF((SUM(D250:W250)=0),0,SUM(D250:W250)))","v":0},{"$error":"#DIV/0!"}]
[null,null,null,null,null,null,null,null,null,null,null,null,null,null,null,null,null,null,null,null,null,null,null,{"$f":"IF(B251=\"\",0,IF((SUM(D251:W251)=0),0,SUM(D251:W251)))","v":0},{"$error":"#DIV/0!"}]
[null,"Review and Interviews\n**Review can apply to requirements (USC CFR, State policy) generally study related\n**Review can also apply to schematics / blue prints generally design related",null,null,null,null,null,null,null,null,null,null,null,null,null,null,null,null,null,null,null,null,null,{"$f":"IF(B252=\"\",0,IF((SUM(D253:W262)=0),SUM(D252:W252),\"\"))","v":0},{"$error":"#DIV/0!"}]
[null,null,null,null,null,null,null,null,null,null,null,null,null,null,null,null,null,null,null,null,null,null,null,{"$f":"IF(B253=\"\",0,IF((SUM(D253:W253)=0),0,SUM(D253:W253)))","v":0},{"$error":"#DIV/0!"}]
[null,null,null,null,null,null,null,null,null,null,null,null,null,null,null,null,null,null,null,null,null,null,null,0,{"$error":"#DIV/0!"}]
[null,null,null,null,null,null,null,null,null,null,null,null,null,null,null,null,null,null,null,null,null,null,null,0,{"$error":"#DIV/0!"}]
[null,null,null,null,null,null,null,null,null,null,null,null,null,null,null,null,null,null,null,null,null,null,null,0,{"$error":"#DIV/0!"}]
[null,null,null,null,null,null,null,null,null,null,null,null,null,null,null,null,null,null,null,null,null,null,null,0,{"$error":"#DIV/0!"}]
[null,null,null,null,null,null,null,null,null,null,null,null,null,null,null,null,null,null,null,null,null,null,null,0,{"$error":"#DIV/0!"}]
[null,null,null,null,null,null,null,null,null,null,null,null,null,null,null,null,null,null,null,null,null,null,null,0,{"$error":"#DIV/0!"}]
[null,null,null,null,null,null,null,null,null,null,null,null,null,null,null,null,null,null,null,null,null,null,null,0,{"$error":"#DIV/0!"}]
[null,null,null,null,null,null,null,null,null,null,null,null,null,null,null,null,null,null,null,null,null,null,null,0,{"$error":"#DIV/0!"}]
[null,null,null,null,null,null,null,null,null,null,null,null,null,null,null,null,null,null,null,null,null,null,null,0,{"$error":"#DIV/0!"}]
[null,"Reporting and Presentation",null,null,null,null,null,null,null,null,null,null,null,null,null,null,null,null,null,null,null,null,null,{"$f":"IF(B263=\"\",0,IF((SUM(D264:W273)=0),SUM(D263:W263),\"\"))","v":0},{"$error":"#DIV/0!"}]
[null,null,null,null,null,null,null,null,null,null,null,null,null,null,null,null,null,null,null,null,null,null,null,{"$f":"IF(B264=\"\",0,IF((SUM(D264:W264)=0),0,SUM(D264:W264)))","v":0},{"$error":"#DIV/0!"}]
[null,null,null,null,null,null,null,null,null,null,null,null,null,null,null,null,null,null,null,null,null,null,null,0,{"$error":"#DIV/0!"}]
[null,null,null,null,null,null,null,null,null,null,null,null,null,null,null,null,null,null,null,null,null,null,null,0,{"$error":"#DIV/0!"}]
[null,null,null,null,null,null,null,null,null,null,null,null,null,null,null,null,null,null,null,null,null,null,null,0,{"$f":"IF(X267=\"\",\"\",SUM((X267/$X$274)))","v":{"$error":"#DIV/0!"}}]
[null,null,null,null,null,null,null,null,null,null,null,null,null,null,null,null,null,null,null,null,null,null,null,0,{"$error":"#DIV/0!"}]
[null,null,null,null,null,null,null,null,null,null,null,null,null,null,null,null,null,null,null,null,null,null,null,0,{"$error":"#DIV/0!"}]
[null,null,null,null,null,null,null,null,null,null,null,null,null,null,null,null,null,null,null,null,null,null,null,0,{"$error":"#DIV/0!"}]
[null,null,null,null,null,null,null,null,null,null,null,null,null,null,null,null,null,null,null,null,null,null,null,0,{"$error":"#DIV/0!"}]
[null,null,null,null,null,null,null,null,null,null,null,null,null,null,null,null,null,null,null,null,null,null,null,0,{"$error":"#DIV/0!"}]
[null,null,null,null,null,null,null,null,null,null,null,null,null,null,null,null,null,null,null,null,null,null,null,{"$f":"IF(B273=\"\",0,IF((SUM(D273:W273)=0),0,SUM(D273:W273)))","v":0},{"$error":"#DIV/0!"}]
[null,"TOTAL WORKHOURS/CATEGORY:",null,{"$f":"SUM(D11:D273)","v":0},0,0,0,0,0,0,0,0,0,0,0,0,0,0,0,0,0,0,0,0,{"$error":"#DIV/0!"},{"$f":"SUM(Z12:Z273)","v":0}]
[null,"TOTAL WORKDAYS/CATEGORY:",null,{"$f":"D274/8","v":0},{"$f":"E274/8","v":0},0,0,0,0,0,0,0,0,0,0,0,0,0,0,0,0,0,0]
[null,"HOURLY SALARY RATE:",null,{"$f":"'PEF CLASSIFICATION SHEET'!E1712","v":0},{"$f":"'PEF CLASSIFICATION SHEET'!E1713","v":0},{"$f":"'PEF CLASSIFICATION SHEET'!E1714","v":0},{"$f":"'PEF CLASSIFICATION SHEET'!E1715","v":0},{"$f":"'PEF CLASSIFICATION SHEET'!E1716","v":0},{"$f":"'PEF CLASSIFICATION SHEET'!E1717","v":0},{"$f":"'PEF CLASSIFICATION SHEET'!E1718","v":0},{"$f":"'PEF CLASSIFICATION SHEET'!E1719","v":0},{"$f":"'PEF CLASSIFICATION SHEET'!E1720","v":0},{"$f":"'PEF CLASSIFICATION SHEET'!E1721","v":0},{"$f":"'PEF CLASSIFICATION SHEET'!E1722","v":0},{"$f":"'PEF CLASSIFICATION SHEET'!E1723","v":0},{"$f":"'PEF CLASSIFICATION SHEET'!E1724","v":0},{"$f":"'PEF CLASSIFICATION SHEET'!E1725","v":0},{"$f":"'PEF CLASSIFICATION SHEET'!E1726","v":0},{"$f":"'PEF CLASSIFICATION SHEET'!E1727","v":0},{"$f":"'PEF CLASSIFICATION SHEET'!E1728","v":0},{"$f":"'PEF CLASSIFICATION SHEET'!E1729","v":0},{"$f":"'PEF CLASSIFICATION SHEET'!E1730","v":0},{"$f":"'PEF CLASSIFICATION SHEET'!E1731","v":0}]
[null,"RATES PER DAY:",null,{"$f":"D276*8","v":0},0,0,0,0,0,0,0,0,0,0,0,0,0,0,0,0,0,0,0]
[null,"PAYROLL BURDEN:",null,{"$f":"SUM(D274*D276)","v":0},{"$f":"SUM(E274*E276)","v":0},0,0,0,0,0,0,0,0,0,0,0,0,0,0,0,0,0,0]
[null,"TOTAL WORKDAYS:",null,{"$f":"SUM(D275:W275)","v":0}]
[null,"TOTAL PAYROLL BURDEN:",null,{"$f":"SUM(D278:W278)","v":0}]
[null,"AVERAGE COST PER HOUR:",null,{"$f":"SUM(D280/(D279*8))","v":{"$error":"#DIV/0!"}}]
[null,"GENERAL OVERHEAD:",{"$f":"FERRY.SUB3_CONSULTANT_OVERHEAD","v":0},{"$f":"SUM(D280*C282)","v":0}]
[null,"SUBTOTAL:",null,{"$f":"SUM(D280+D282)","v":0}]
[null,"COMPARATIVE FEE:",{"$f":"FERRY.SUB3_CONSULTANT_FEE","v":0},{"$f":"SUM(D283*C284)","v":0}]
[null,"FACILITIES COST OF CAPITAL:",{"$f":"FERRY.SUB3_CONSULTANT_COSTofCAPITAL","v":0},{"$f":"SUM(D280*C285)","v":0}]
[null,"TOTAL:",null,{"$f":"SUM(D283:D285)","v":0}]
[null,"DIRECT EXPENSES:",null,{"$f":"FERRY.SUB3_DIRECT_NONSALARY_TOTAL","v":0}]
[null,"FERRY GRAND TOTAL:",null,{"$f":"SUM(D286:D287)","v":0}]

{"sheet":"Ferry-Exp-Sub3","index":190,"n_rows":46,"n_cols":8,"rows_kept":46,"cut":false,"hidden":true,"merged":[[0,0,0,7],[1,3,1,7]]}
[{"$f":"CONCATENATE('Ferry-Sub3'!B1,\" \",\"--DIRECT EXPENSES - SUBCONSULTANT 3\")","v":"Ferry (Select One Below) --DIRECT EXPENSES - SUBCONSULTANT 3"}]
["TIP NUMBER",{"$f":"TIP.NUMBER","v":0},"FIRM:",{"$f":"'Ferry-Sub3'!G3","v":"CONSULTANT NAME"}]
[]
["GENERAL PROJECT WORK:","ITEM","QTY","DESCRIPTION",null,null,"UNIT COST "]
[null,"Travel:"]
[null,"Sedan",0,"Trip(s) @",0,"miles @",{"$f":"SEDAN","v":0.7},{"$f":"SUM(C6*E6*G6)","v":0}]
[null,"Carry All",0,"Trip(s) @",0,"miles @",{"$f":"CARRYALL","v":0.72},{"$f":"SUM(C7*E7*G7)","v":0}]
[null,"Car Rental",null,null,0,"days @ ",{"$f":"CARRENTAL","v":50},{"$f":"SUM(E8*G8)","v":0}]
[null,"Gas for Rental",null,null,0,"miles @",{"$f":"GASforRENTAL","v":0.2},{"$f":"SUM(E9*G9)","v":0}]
[null,"Parking:",0,"Trip(s) @",null,null,{"$f":"PARKING","v":3},{"$f":"SUM(C10*G10)","v":0}]
[null,"Per Diem:",0,"Breakfast",null,null,{"$f":"BREAKFAST","v":10.1},{"$f":"SUM(C11*G11)","v":0}]
[null,null,0,"Lunch",null,null,{"$f":"LUNCH","v":13.3},0]
[null,null,0,"Dinner",null,null,{"$f":"DINNER","v":23.1},0]
[null,null,0,"Lodging",null,null,{"$f":"LODGING_LUMP.SUM","v":95},0]
[null,"Reproduction:",0,"8 1/2 x 11 B & W Copies @",null,null,{"$f":"LETTERCOPIES","v":0.14000000000000001},0]
[null,null,0,"11 x 17 B & W Copies @",null,null,{"$f":"LEDGERCOPIES","v":0.34},0]
[null,null,0,"8 1/2 x 11 Color Copies @",null,null,{"$f":"LETTERCOLOR","v":0.83},0]
[null,null,0,"11 x 17 Color Copies @",null,null,{"$f":"LEDGERCOLOR","v":1.66},0]
[null,null,0,"SQ. FT. of Plots (B & W or Color)",null,"<65 SQ. FT.*",{"$f":"ROLLPLOTSshort","v":6.5},0]
[null,null,0,"SQ. FT. of Plots (B & W or Color)",null,">65 SQ. FT.*",{"$f":"ROLLPLOTSlong","v":1.5},0]
[null,null,0,"Cover(s) @",null,null,{"$f":"COVERS","v":0.5},0]
[null,null,0,"Binder(s) @",null,null,{"$f":"BINDERS","v":0.5},0]
[null,null,0,"Blueprints - 8 1/2 x 11 @",null,null,{"$f":"BLUEPRINTSLETTER","v":0.35},0]
[null,null,0,"Blueprints - 42 x 72 @",null,null,{"$f":"BLUEPRINTSLARGE","v":1.3},0]
[null,"Film and Developing:",0,"Roll(s) @",null,null,{"$f":"FILM","v":20},0]
[null,null,null,null,null,"Subtotal",null,{"$f":"SUM(H6:H25)","v":0}]
["MAPS AND DOCUMENTS:","ITEM","QTY","DESCRIPTION",null,null,"UNIT COST "]
[null,"County Tax Maps:",0,"Map(s) @",null,null,{"$f":"County_Tax_Maps","v":7},{"$f":"SUM(C28*G28)","v":0}]
[null,"USGS Maps:",0,"Map(s) @",null,null,{"$f":"USGSMAPS","v":7},{"$f":"SUM(C29*G29)","v":0}]
[null,null,null,null,null,"Subtotal",null,{"$f":"SUM(H28:H29)","v":0}]
["Miscellaneous Other","ITEM","QTY","DESCRIPTION",null,null,"UNIT COST "]
[null,null,null,null,null,null,null,{"$f":"SUM(C32*G32)","v":0}]
[null,null,null,null,null,null,null,{"$f":"SUM(C33*G33)","v":0}]
[null,null,null,null,null,null,null,0]
[null,null,null,null,null,null,null,0]
[null,null,null,null,null,null,null,0]
[null,null,null,null,null,null,null,0]
[null,null,null,null,null,null,null,0]
[null,null,null,null,null,null,null,{"$f":"SUM(C39*G39)","v":0}]
[null,null,null,null,null,null,null,{"$f":"SUM(C40*G40)","v":0}]
[null,null,null,null,null,null,null,{"$f":"SUM(C41*G41)","v":0}]
[null,null,null,null,null,"Subtotal",null,{"$f":"SUM(H32:H41)","v":0}]
[]
[null,null,null,null,null,"TOTAL",null,{"$f":"SUM(H26+H30+H42)","v":0}]
[]
[null,"* Sum of all plots "]

{"sheet":"Ferry-Sub4","index":191,"n_rows":288,"n_cols":31,"rows_kept":288,"cut":false,"hidden":true,"merged":[[0,2,0,13],[2,1,2,4],[2,6,2,7],[2,10,2,11],[2,15,2,16],[3,1,3,4],[3,6,3,7],[3,10,3,11],[3,15,3,16],[6,12,9,12],[6,13,9,13],[6,14,9,14],[6,15,9,15],[6,16,9,16],[6,17,9,17],[4,3,4,22],[6,3,9,3],[6,4,9,4],[6,5,9,5],[6,6,9,6],[6,7,9,7],[6,8,9,8],[6,9,9,9],[6,10,9,10],[6,11,9,11],[10,26,10,27],[11,26,11,27],[12,26,12,27],[13,26,13,27],[14,26,14,27],[15,26,15,27],[6,18,9,18],[6,19,9,19],[6,20,9,20],[6,21,9,21],[6,22,9,22],[8,26,8,27],[22,26,22,27],[23,26,23,27],[24,26,24,27],[25,26,25,27],[26,26,26,27],[27,26,27,27],[16,26,16,27],[17,26,17,27],[18,26,18,27],[19,26,19,27],[20,26,20,27],[21,26,21,27],[34,26,34,27],[35,26,35,27],[36,26,36,27],[37,26,37,27],[38,26,38,27],[39,26,39,27],[28,26,28,27],[29,26,29,27],[30,26,30,27],[31,26,31,27],[32,26,32,27],[33,26,33,27],[46,26,46,27],[47,26,47,27],[48,26,48,27],[49,26,49,27],[50,26,50,27],[51,26,51,27],[40,26,40,27],[41,26,41,27],[42,26,42,27],[43,26,43,27],[44,26,44,27],[45,26,45,27],[58,26,58,27],[59,26,59,27],[60,26,60,27],[61,26,61,27],[62,26,62,27],[63,26,63,27],[52,26,52,27],[53,26,53,27],[54,26,54,27],[55,26,55,27],[56,26,56,27],[57,26,57,27],[70,26,70,27],[71,26,71,27],[72,26,72,27],[73,26,73,27],[74,26,74,27],[75,26,75,27],[64,26,64,27],[65,26,65,27],[66,26,66,27],[67,26,67,27],[68,26,68,27],[69,26,69,27],[82,26,82,27],[83,26,83,27],[84,26,84,27],[85,26,85,27],[86,26,86,27],[87,26,87,27],[76,26,76,27],[77,26,77,27],[78,26,78,27],[79,26,79,27],[80,26,80,27],[81,26,81,27],[94,26,94,27],[95,26,95,27],[96,26,96,27],[97,26,97,27],[98,26,98,27],[99,26,99,27],[88,26,88,27],[89,26,89,27],[90,26,90,27],[91,26,91,27],[92,26,92,27],[93,26,93,27],[106,26,106,27],[107,26,107,27],[108,26,108,27],[109,26,109,27],[110,26,110,27],[111,26,111,27],[100,26,100,27],[101,26,101,27],[102,26,102,27],[103,26,103,27],[104,26,104,27],[105,26,105,27],[118,26,118,27],[272,26,272,27],[287,1,288,1],[287,3,288,4],[291,3,291,6],[291,8,291,13],[112,26,112,27],[113,26,113,27],[114,26,114,27],[115,26,115,27],[116,26,116,27],[117,26,117,27],[225,26,225,27],[226,26,226,27],[227,26,227,27],[228,26,228,27],[229,26,229,27],[230,26,230,27],[231,26,231,27],[232,26,232,27],[233,26,233,27],[234,26,234,27],[235,26,235,27],[236,26,236,27],[298,8,298,9],[298,10,298,11],[292,8,292,9],[292,10,292,11],[293,8,293,9],[293,10,293,11],[296,8,296,13],[297,8,297,9],[297,10,297,11],[237,26,237,27],[238,26,238,27],[239,26,239,27],[240,26,240,27],[241,26,241,27],[242,26,242,27],[243,26,243,27],[244,26,244,27],[245,26,245,27],[246,26,246,27],[247,26,247,27],[248,26,248,27],[249,26,249,27],[250,26,250,27],[251,26,251,27],[252,26,252,27],[253,26,253,27],[254,26,254,27],[266,26,266,27],[267,26,267,27],[268,26,268,27],[255,26,255,27],[256,26,256,27],[257,26,257,27],[258,26,258,27],[259,26,259,27],[260,26,260,27],[261,26,261,27],[262,26,262,27],[263,26,263,27],[269,26,269,27],[270,26,270,27],[271,26,271,27],[172,26,172,27],[173,26,173,27],[174,26,174,27],[175,26,175,27],[176,26,176,27],[177,26,177,27],[178,26,178,27],[179,26,179,27],[180,26,180,27],[181,26,181,27],[182,26,182,27],[183,26,183,27],[184,26,184,27],[185,26,185,27],[186,26,186,27],[187,26,187,27],[188,26,188,27],[189,26,189,27],[190,26,190,27],[264,26,264,27],[265,26,265,27],[191,26,191,27],[192,26,192,27],[193,26,193,27],[194,26,194,27],[195,26,195,27],[196,26,196,27],[197,26,197,27],[198,26,198,27],[199,26,199,27],[200,26,200,27],[201,26,201,27],[202,26,202,27],[203,26,203,27],[204,26,204,27],[205,26,205,27],[206,26,206,27],[207,26,207,27],[208,26,208,27],[209,26,209,27],[210,26,210,27],[211,26,211,27],[212,26,212,27],[213,26,213,27],[214,26,214,27],[215,26,215,27],[216,26,216,27],[217,26,217,27],[218,26,218,27],[219,26,219,27],[220,26,220,27],[221,26,221,27],[222,26,222,27],[223,26,223,27],[224,26,224,27],[119,26,119,27],[120,26,120,27],[121,26,121,27],[122,26,122,27],[123,26,123,27],[124,26,124,27],[125,26,125,27],[126,26,126,27],[127,26,127,27],[128,26,128,27],[129,26,129,27],[130,26,130,27],[131,26,131,27],[132,26,132,27],[133,26,133,27],[134,26,134,27],[135,26,135,27],[136,26,136,27],[137,26,137,27],[138,26,138,27],[139,26,139,27],[140,26,140,27],[141,26,141,27],[142,26,142,27],[143,26,143,27],[144,26,144,27],[145,26,145,27],[146,26,146,27],[147,26,147,27],[148,26,148,27],[149,26,149,27],[150,26,150,27],[151,26,151,27],[152,26,152,27],[153,26,153,27],[154,26,154,27],[155,26,155,27],[156,26,156,27],[157,26,157,27],[158,26,158,27],[159,26,159,27],[160,26,160,27],[161,26,161,27],[162,26,162,27],[163,26,163,27],[164,26,164,27],[165,26,165,27],[166,26,166,27],[167,26,167,27],[168,26,168,27],[169,26,169,27],[170,26,170,27],[171,26,171,27]]}
[null,{"$f":"Ferry!B1","v":"Ferry (Select One Below)"},{"$f":"CONCATENATE(\" \",\"--BREAKDOWN WORKSHEET - SUBCONSULTANT 4 -- ENTER WORKHOURS\")","v":" --BREAKDOWN WORKSHEET - SUBCONSULTANT 4 -- ENTER WORKHOURS"},null,null,null,null,null,null,null,null,null,null,null,null,null,null,null,null,null,null,null,null,null,null,null,null,null,null,null,"Ferry (Select One Below)"]
[null,null,null,null,null,null,null,null,null,null,null,null,null,null,null,null,null,null,null,null,null,null,null,null,null,null,null,null,null,null,"Marine Construction"]
["PROJECT DESCRIPTION: ",{"$f":"PROJECT.DESCRIPTION","v":0},null,null,null,"FIRM:  ",{"$f":"FERRY.SUB4_CONSULTANT_NAME","v":"CONSULTANT NAME"},null,"TASK ORDER NUMBER:",null,{"$f":"TASK.ORDER.NUMBER","v":0},null,"DATE PREPARED:",{"$f":"IF(SCOPE.MANDAY.ESTIMATE.PREPARED.BY.DATE=\"\",\"\",SCOPE.MANDAY.ESTIMATE.PREPARED.BY.DATE)","v":""},null,null,null,null,null,null,null,null,null,null,null,null,null,null,null,null,"Vessel Design"]
["PREPARED BY:  ",{"$f":"IF(SCOPE.MANDAY.ESTIMATE.PREPARED.BY=\"\",\"\",SCOPE.MANDAY.ESTIMATE.PREPARED.BY)","v":""},null,null,null,"TIP NUMBER:",{"$f":"TIP.NUMBER","v":0},null,"WBS NUMBER:",null,{"$f":"WBS.NUMBER","v":""},null,"REVISION DATE:",{"$f":"IF(SCOPE.MANDAY.ESTIMATE.APPROVED.BY.DATE=\"\",\"\",SCOPE.MANDAY.ESTIMATE.APPROVED.BY.DATE)","v":""}]
[null,null,null,"ESTIMATED WORKHOURS"]
[null,null,"EMPLOYEE NAMES",{"$f":"IF('PEF CLASSIFICATION SHEET'!D1734=\"\",\"\",LEFT('PEF CLASSIFICATION SHEET'!D1734,4))","v":""},{"$f":"IF('PEF CLASSIFICATION SHEET'!D1735=\"\",\"\",LEFT('PEF CLASSIFICATION SHEET'!D1735,4))","v":""},{"$f":"IF('PEF CLASSIFICATION SHEET'!D1736=\"\",\"\",LEFT('PEF CLASSIFICATION SHEET'!D1736,4))","v":""},{"$f":"IF('PEF CLASSIFICATION SHEET'!D1737=\"\",\"\",LEFT('PEF CLASSIFICATION SHEET'!D1737,4))","v":""},{"$f":"IF('PEF CLASSIFICATION SHEET'!D1738=\"\",\"\",LEFT('PEF CLASSIFICATION SHEET'!D1738,4))","v":""},{"$f":"IF('PEF CLASSIFICATION SHEET'!D1739=\"\",\"\",LEFT('PEF CLASSIFICATION SHEET'!D1739,4))","v":""},{"$f":"IF('PEF CLASSIFICATION SHEET'!D1740=\"\",\"\",LEFT('PEF CLASSIFICATION SHEET'!D1740,4))","v":""},{"$f":"IF('PEF CLASSIFICATION SHEET'!D1741=\"\",\"\",LEFT('PEF CLASSIFICATION SHEET'!D1741,4))","v":""},{"$f":"IF('PEF CLASSIFICATION SHEET'!D1742=\"\",\"\",LEFT('PEF CLASSIFICATION SHEET'!D1742,4))","v":""},{"$f":"IF('PEF CLASSIFICATION SHEET'!D1743=\"\",\"\",LEFT('PEF CLASSIFICATION SHEET'!D1743,4))","v":""},{"$f":"IF('PEF CLASSIFICATION SHEET'!D1744=\"\",\"\",LEFT('PEF CLASSIFICATION SHEET'!D1744,4))","v":""},{"$f":"IF('PEF CLASSIFICATION SHEET'!D1745=\"\",\"\",LEFT('PEF CLASSIFICATION SHEET'!D1745,4))","v":""},{"$f":"IF('PEF CLASSIFICATION SHEET'!D1746=\"\",\"\",LEFT('PEF CLASSIFICATION SHEET'!D1746,4))","v":""},{"$f":"IF('PEF CLASSIFICATION SHEET'!D1747=\"\",\"\",LEFT('PEF CLASSIFICATION SHEET'!D1747,4))","v":""},{"$f":"IF('PEF CLASSIFICATION SHEET'!D1748=\"\",\"\",LEFT('PEF CLASSIFICATION SHEET'!D1748,4))","v":""},{"$f":"IF('PEF CLASSIFICATION SHEET'!D1749=\"\",\"\",LEFT('PEF CLASSIFICATION SHEET'!D1749,4))","v":""},{"$f":"IF('PEF CLASSIFICATION SHEET'!D1750=\"\",\"\",LEFT('PEF CLASSIFICATION SHEET'!D1750,4))","v":""},{"$f":"IF('PEF CLASSIFICATION SHEET'!D1751=\"\",\"\",LEFT('PEF CLASSIFICATION SHEET'!D1751,4))","v":""},{"$f":"IF('PEF CLASSIFICATION SHEET'!D1752=\"\",\"\",LEFT('PEF CLASSIFICATION SHEET'!D1752,4))","v":""},{"$f":"IF('PEF CLASSIFICATION SHEET'!D1753=\"\",\"\",LEFT('PEF CLASSIFICATION SHEET'!D1753,4))","v":""}]
[null,null,null,{"$f":"IF('PEF CLASSIFICATION SHEET'!C1734=\"\",\"\",'PEF CLASSIFICATION SHEET'!C1734)","v":""},{"$f":"IF('PEF CLASSIFICATION SHEET'!C1735=\"\",\"\",'PEF CLASSIFICATION SHEET'!C1735)","v":""},{"$f":"IF('PEF CLASSIFICATION SHEET'!C1736=\"\",\"\",'PEF CLASSIFICATION SHEET'!C1736)","v":""},{"$f":"IF('PEF CLASSIFICATION SHEET'!C1737=\"\",\"\",'PEF CLASSIFICATION SHEET'!C1737)","v":""},{"$f":"IF('PEF CLASSIFICATION SHEET'!C1738=\"\",\"\",'PEF CLASSIFICATION SHEET'!C1738)","v":""},{"$f":"IF('PEF CLASSIFICATION SHEET'!C1739=\"\",\"\",'PEF CLASSIFICATION SHEET'!C1739)","v":""},{"$f":"IF('PEF CLASSIFICATION SHEET'!C1740=\"\",\"\",'PEF CLASSIFICATION SHEET'!C1740)","v":""},{"$f":"IF('PEF CLASSIFICATION SHEET'!C1741=\"\",\"\",'PEF CLASSIFICATION SHEET'!C1741)","v":""},{"$f":"IF('PEF CLASSIFICATION SHEET'!C1742=\"\",\"\",'PEF CLASSIFICATION SHEET'!C1742)","v":""},{"$f":"IF('PEF CLASSIFICATION SHEET'!C1743=\"\",\"\",'PEF CLASSIFICATION SHEET'!C1743)","v":""},{"$f":"IF('PEF CLASSIFICATION SHEET'!C1744=\"\",\"\",'PEF CLASSIFICATION SHEET'!C1744)","v":""},{"$f":"IF('PEF CLASSIFICATION SHEET'!C1745=\"\",\"\",'PEF CLASSIFICATION SHEET'!C1745)","v":""},{"$f":"IF('PEF CLASSIFICATION SHEET'!C1746=\"\",\"\",'PEF CLASSIFICATION SHEET'!C1746)","v":""},{"$f":"IF('PEF CLASSIFICATION SHEET'!C1747=\"\",\"\",'PEF CLASSIFICATION SHEET'!C1747)","v":""},{"$f":"IF('PEF CLASSIFICATION SHEET'!C1748=\"\",\"\",'PEF CLASSIFICATION SHEET'!C1748)","v":""},{"$f":"IF('PEF CLASSIFICATION SHEET'!C1749=\"\",\"\",'PEF CLASSIFICATION SHEET'!C1749)","v":""},{"$f":"IF('PEF CLASSIFICATION SHEET'!C1750=\"\",\"\",'PEF CLASSIFICATION SHEET'!C1750)","v":""},{"$f":"IF('PEF CLASSIFICATION SHEET'!C1751=\"\",\"\",'PEF CLASSIFICATION SHEET'!C1751)","v":""},{"$f":"IF('PEF CLASSIFICATION SHEET'!C1752=\"\",\"\",'PEF CLASSIFICATION SHEET'!C1752)","v":""},{"$f":"IF('PEF CLASSIFICATION SHEET'!C1753=\"\",\"\",'PEF CLASSIFICATION SHEET'!C1753)","v":""},"SUB-","%","PEF"]
[null,null,null,null,null,null,null,null,null,null,null,null,null,null,null,null,null,null,null,null,null,null,null,"TOTAL","OF","ESTIMATE"]
["TASK","TASK DESCRIPTION","CLASSIFICATION",null,null,null,null,null,null,null,null,null,null,null,null,null,null,null,null,null,null,null,null,null,"PROJECT",null,"COMMENTS"]
["NO."]
[1,"Marine Vessel Design",null,null,null,null,null,null,null,null,null,null,null,null,null,null,null,null,null,null,null,null,null,{"$f":"IF(B11=\"\",0,IF((SUM(D12:W54)=0),SUM(D11:W11),\"\"))","v":0},{"$f":"IF(X11=\"\",\"\",SUM((X11/$X$274)))","v":{"$error":"#DIV/0!"}}]
[null,null,null,null,null,null,null,null,null,null,null,null,null,null,null,null,null,null,null,null,null,null,null,{"$f":"IF(B12=\"\",0,IF((SUM(D12:W12)=0),0,SUM(D12:W12)))","v":0},{"$error":"#DIV/0!"}]
[null,null,null,null,null,null,null,null,null,null,null,null,null,null,null,null,null,null,null,null,null,null,null,0,{"$error":"#DIV/0!"}]
[null,null,null,null,null,null,null,null,null,null,null,null,null,null,null,null,null,null,null,null,null,null,null,0,{"$error":"#DIV/0!"}]
[null,null,null,null,null,null,null,null,null,null,null,null,null,null,null,null,null,null,null,null,null,null,null,0,{"$error":"#DIV/0!"}]
[null,null,null,null,null,null,null,null,null,null,null,null,null,null,null,null,null,null,null,null,null,null,null,0,{"$error":"#DIV/0!"}]
[null,null,null,null,null,null,null,null,null,null,null,null,null,null,null,null,null,null,null,null,null,null,null,0,{"$error":"#DIV/0!"}]
[null,null,null,null,null,null,null,null,null,null,null,null,null,null,null,null,null,null,null,null,null,null,null,0,{"$error":"#DIV/0!"}]
[null,null,null,null,null,null,null,null,null,null,null,null,null,null,null,null,null,null,null,null,null,null,null,0,{"$error":"#DIV/0!"}]
[null,null,null,null,null,null,null,null,null,null,null,null,null,null,null,null,null,null,null,null,null,null,null,{"$f":"IF(B20=\"\",0,IF((SUM(D20:W20)=0),0,SUM(D20:W20)))","v":0},{"$error":"#DIV/0!"}]
[null,null,null,null,null,null,null,null,null,null,null,null,null,null,null,null,null,null,null,null,null,null,null,{"$f":"IF(B21=\"\",0,IF((SUM(D21:W21)=0),0,SUM(D21:W21)))","v":0},{"$error":"#DIV/0!"}]
[null,"Planning and Coordination Meetings",null,null,null,null,null,null,null,null,null,null,null,null,null,null,null,null,null,null,null,null,null,{"$f":"IF(B22=\"\",0,IF((SUM(D23:W32)=0),SUM(D22:W22),\"\"))","v":0},{"$error":"#DIV/0!"}]
[null,null,null,null,null,null,null,null,null,null,null,null,null,null,null,null,null,null,null,null,null,null,null,{"$f":"IF(B23=\"\",0,IF((SUM(D23:W23)=0),0,SUM(D23:W23)))","v":0},{"$error":"#DIV/0!"}]
[null,null,null,null,null,null,null,null,null,null,null,null,null,null,null,null,null,null,null,null,null,null,null,0,{"$error":"#DIV/0!"}]
[null,null,null,null,null,null,null,null,null,null,null,null,null,null,null,null,null,null,null,null,null,null,null,0,{"$error":"#DIV/0!"}]
[null,null,null,null,null,null,null,null,null,null,null,null,null,null,null,null,null,null,null,null,null,null,null,0,{"$error":"#DIV/0!"}]
[null,null,null,null,null,null,null,null,null,null,null,null,null,null,null,null,null,null,null,null,null,null,null,0,{"$error":"#DIV/0!"}]
[null,null,null,null,null,null,null,null,null,null,null,null,null,null,null,null,null,null,null,null,null,null,null,0,{"$error":"#DIV/0!"}]
[null,null,null,null,null,null,null,null,null,null,null,null,null,null,null,null,null,null,null,null,null,null,null,0,{"$error":"#DIV/0!"}]
[null,null,null,null,null,null,null,null,null,null,null,null,null,null,null,null,null,null,null,null,null,null,null,0,{"$error":"#DIV/0!"}]
[null,null,null,null,null,null,null,null,null,null,null,null,null,null,null,null,null,null,null,null,null,null,null,{"$f":"IF(B31=\"\",0,IF((SUM(D31:W31)=0),0,SUM(D31:W31)))","v":0},{"$error":"#DIV/0!"}]
[null,null,null,null,null,null,null,null,null,null,null,null,null,null,null,null,null,null,null,null,null,null,null,{"$f":"IF(B32=\"\",0,IF((SUM(D32:W32)=0),0,SUM(D32:W32)))","v":0},{"$error":"#DIV/0!"}]
[null,"Review and Interviews\n**Review can apply to requirements (USC CFR, State policy) generally study related\n**Review can also apply to schematics / blue prints generally design related",null,null,null,null,null,null,null,null,null,null,null,null,null,null,null,null,null,null,null,null,null,{"$f":"IF(B33=\"\",0,IF((SUM(D34:W43)=0),SUM(D33:W33),\"\"))","v":0},{"$error":"#DIV/0!"}]
[null,null,null,null,null,null,null,null,null,null,null,null,null,null,null,null,null,null,null,null,null,null,null,0,{"$error":"#DIV/0!"}]
[null,null,null,null,null,null,null,null,null,null,null,null,null,null,null,null,null,null,null,null,null,null,null,0,{"$error":"#DIV/0!"}]
[null,null,null,null,null,null,null,null,null,null,null,null,null,null,null,null,null,null,null,null,null,null,null,{"$f":"IF(B36=\"\",0,IF((SUM(D36:W36)=0),0,SUM(D36:W36)))","v":0},{"$error":"#DIV/0!"}]
[null,null,null,null,null,null,null,null,null,null,null,null,null,null,null,null,null,null,null,null,null,null,null,0,{"$error":"#DIV/0!"}]
[null,null,null,null,null,null,null,null,null,null,null,null,null,null,null,null,null,null,null,null,null,null,null,0,{"$error":"#DIV/0!"}]
[null,null,null,null,null,null,null,null,null,null,null,null,null,null,null,null,null,null,null,null,null,null,null,0,{"$error":"#DIV/0!"}]
[null,null,null,null,null,null,null,null,null,null,null,null,null,null,null,null,null,null,null,null,null,null,null,0,{"$error":"#DIV/0!"}]
[null,null,null,null,null,null,null,null,null,null,null,null,null,null,null,null,null,null,null,null,null,null,null,0,{"$error":"#DIV/0!"}]
[null,null,null,null,null,null,null,null,null,null,null,null,null,null,null,null,null,null,null,null,null,null,null,0,{"$error":"#DIV/0!"}]
[null,null,null,null,null,null,null,null,null,null,null,null,null,null,null,null,null,null,null,null,null,null,null,0,{"$error":"#DIV/0!"}]
[null,"Reporting and Presentation",null,null,null,null,null,null,null,null,null,null,null,null,null,null,null,null,null,null,null,null,null,{"$f":"IF(B44=\"\",0,IF((SUM(D45:W54)=0),SUM(D44:W44),\"\"))","v":0},{"$error":"#DIV/0!"}]
[null,null,null,null,null,null,null,null,null,null,null,null,null,null,null,null,null,null,null,null,null,null,null,0,{"$error":"#DIV/0!"}]
[null,null,null,null,null,null,null,null,null,null,null,null,null,null,null,null,null,null,null,null,null,null,null,0,{"$error":"#DIV/0!"}]
[null,null,null,null,null,null,null,null,null,null,null,null,null,null,null,null,null,null,null,null,null,null,null,0,{"$error":"#DIV/0!"}]
[null,null,null,null,null,null,null,null,null,null,null,null,null,null,null,null,null,null,null,null,null,null,null,0,{"$error":"#DIV/0!"}]
[null,null,null,null,null,null,null,null,null,null,null,null,null,null,null,null,null,null,null,null,null,null,null,0,{"$error":"#DIV/0!"}]
[null,null,null,null,null,null,null,null,null,null,null,null,null,null,null,null,null,null,null,null,null,null,null,0,{"$error":"#DIV/0!"}]
[null,null,null,null,null,null,null,null,null,null,null,null,null,null,null,null,null,null,null,null,null,null,null,0,{"$error":"#DIV/0!"}]
[null,null,null,null,null,null,null,null,null,null,null,null,null,null,null,null,null,null,null,null,null,null,null,0,{"$error":"#DIV/0!"}]
[null,null,null,null,null,null,null,null,null,null,null,null,null,null,null,null,null,null,null,null,null,null,null,0,{"$error":"#DIV/0!"}]
[null,null,null,null,null,null,null,null,null,null,null,null,null,null,null,null,null,null,null,null,null,null,null,0,{"$error":"#DIV/0!"}]
[2,"Marine Vessel Maintenance Design",null,null,null,null,null,null,null,null,null,null,null,null,null,null,null,null,null,null,null,null,null,{"$f":"IF(B55=\"\",0,IF((SUM(D56:W97)=0),SUM(D55:W55),\"\"))","v":0},{"$error":"#DIV/0!"}]
[null,null,null,null,null,null,null,null,null,null,null,null,null,null,null,null,null,null,null,null,null,null,null,{"$f":"IF(B56=\"\",0,IF((SUM(D56:W56)=0),0,SUM(D56:W56)))","v":0},{"$error":"#DIV/0!"}]
[null,null,null,null,null,null,null,null,null,null,null,null,null,null,null,null,null,null,null,null,null,null,null,0,{"$error":"#DIV/0!"}]
[null,null,null,null,null,null,null,null,null,null,null,null,null,null,null,null,null,null,null,null,null,null,null,0,{"$error":"#DIV/0!"}]
[null,null,null,null,null,null,null,null,null,null,null,null,null,null,null,null,null,null,null,null,null,null,null,0,{"$error":"#DIV/0!"}]
[null,null,null,null,null,null,null,null,null,null,null,null,null,null,null,null,null,null,null,null,null,null,null,0,{"$error":"#DIV/0!"}]
[null,null,null,null,null,null,null,null,null,null,null,null,null,null,null,null,null,null,null,null,null,null,null,0,{"$error":"#DIV/0!"}]
[null,null,null,null,null,null,null,null,null,null,null,null,null,null,null,null,null,null,null,null,null,null,null,0,{"$error":"#DIV/0!"}]
[null,null,null,null,null,null,null,null,null,null,null,null,null,null,null,null,null,null,null,null,null,null,null,0,{"$error":"#DIV/0!"}]
[null,null,null,null,null,null,null,null,null,null,null,null,null,null,null,null,null,null,null,null,null,null,null,{"$f":"IF(B64=\"\",0,IF((SUM(D64:W64)=0),0,SUM(D64:W64)))","v":0},{"$error":"#DIV/0!"}]
[null,null,null,null,null,null,null,null,null,null,null,null,null,null,null,null,null,null,null,null,null,null,null,{"$f":"IF(B65=\"\",0,IF((SUM(D65:W65)=0),0,SUM(D65:W65)))","v":0},{"$error":"#DIV/0!"}]
[null,"Planning and Coordination Meetings",null,null,null,null,null,null,null,null,null,null,null,null,null,null,null,null,null,null,null,null,null,{"$f":"IF(B66=\"\",0,IF((SUM(D67:W76)=0),SUM(D66:W66),\"\"))","v":0},{"$error":"#DIV/0!"}]
[null,null,null,null,null,null,null,null,null,null,null,null,null,null,null,null,null,null,null,null,null,null,null,{"$f":"IF(B67=\"\",0,IF((SUM(D67:W67)=0),0,SUM(D67:W67)))","v":0},{"$error":"#DIV/0!"}]
[null,null,null,null,null,null,null,null,null,null,null,null,null,null,null,null,null,null,null,null,null,null,null,0,{"$error":"#DIV/0!"}]
[null,null,null,null,null,null,null,null,null,null,null,null,null,null,null,null,null,null,null,null,null,null,null,0,{"$error":"#DIV/0!"}]
[null,null,null,null,null,null,null,null,null,null,null,null,null,null,null,null,null,null,null,null,null,null,null,0,{"$error":"#DIV/0!"}]
[null,null,null,null,null,null,null,null,null,null,null,null,null,null,null,null,null,null,null,null,null,null,null,0,{"$error":"#DIV/0!"}]
[null,null,null,null,null,null,null,null,null,null,null,null,null,null,null,null,null,null,null,null,null,null,null,0,{"$error":"#DIV/0!"}]
[null,null,null,null,null,null,null,null,null,null,null,null,null,null,null,null,null,null,null,null,null,null,null,0,{"$error":"#DIV/0!"}]
[null,null,null,null,null,null,null,null,null,null,null,null,null,null,null,null,null,null,null,null,null,null,null,0,{"$error":"#DIV/0!"}]
[null,null,null,null,null,null,null,null,null,null,null,null,null,null,null,null,null,null,null,null,null,null,null,{"$f":"IF(B75=\"\",0,IF((SUM(D75:W75)=0),0,SUM(D75:W75)))","v":0},{"$f":"IF(X75=\"\",\"\",SUM((X75/$X$274)))","v":{"$error":"#DIV/0!"}}]
[null,null,null,null,null,null,null,null,null,null,null,null,null,null,null,null,null,null,null,null,null,null,null,{"$f":"IF(B76=\"\",0,IF((SUM(D76:W76)=0),0,SUM(D76:W76)))","v":0},{"$error":"#DIV/0!"}]
[null,"Review and Interviews\n**Review can apply to requirements (USC CFR, State policy) generally study related\n**Review can also apply to schematics / blue prints generally design related",null,null,null,null,null,null,null,null,null,null,null,null,null,null,null,null,null,null,null,null,null,{"$f":"IF(B77=\"\",0,IF((SUM(D78:W87)=0),SUM(D77:W77),\"\"))","v":0},{"$error":"#DIV/0!"}]
[null,null,null,null,null,null,null,null,null,null,null,null,null,null,null,null,null,null,null,null,null,null,null,{"$f":"IF(B78=\"\",0,IF((SUM(D78:W78)=0),0,SUM(D78:W78)))","v":0},{"$error":"#DIV/0!"}]
[null,null,null,null,null,null,null,null,null,null,null,null,null,null,null,null,null,null,null,null,null,null,null,0,{"$error":"#DIV/0!"}]
[null,null,null,null,null,null,null,null,null,null,null,null,null,null,null,null,null,null,null,null,null,null,null,0,{"$error":"#DIV/0!"}]
[null,null,null,null,null,null,null,null,null,null,null,null,null,null,null,null,null,null,null,null,null,null,null,0,{"$error":"#DIV/0!"}]
[null,null,null,null,null,null,null,null,null,null,null,null,null,null,null,null,null,null,null,null,null,null,null,0,{"$error":"#DIV/0!"}]
[null,null,null,null,null,null,null,null,null,null,null,null,null,null,null,null,null,null,null,null,null,null,null,0,{"$error":"#DIV/0!"}]
[null,null,null,null,null,null,null,null,null,null,null,null,null,null,null,null,null,null,null,null,null,null,null,0,{"$error":"#DIV/0!"}]
[null,null,null,null,null,null,null,null,null,null,null,null,null,null,null,null,null,null,null,null,null,null,null,0,{"$error":"#DIV/0!"}]
[null,null,null,null,null,null,null,null,null,null,null,null,null,null,null,null,null,null,null,null,null,null,null,0,{"$error":"#DIV/0!"}]
[null,null,null,null,null,null,null,null,null,null,null,null,null,null,null,null,null,null,null,null,null,null,null,0,{"$error":"#DIV/0!"}]
[null,"Reporting and Presentation",null,null,null,null,null,null,null,null,null,null,null,null,null,null,null,null,null,null,null,null,null,{"$f":"IF(B88=\"\",0,IF((SUM(D89:W98)=0),SUM(D88:W88),\"\"))","v":0},{"$error":"#DIV/0!"}]
[null,null,null,null,null,null,null,null,null,null,null,null,null,null,null,null,null,null,null,null,null,null,null,{"$f":"IF(B89=\"\",0,IF((SUM(D89:W89)=0),0,SUM(D89:W89)))","v":0},{"$error":"#DIV/0!"}]
[null,null,null,null,null,null,null,null,null,null,null,null,null,null,null,null,null,null,null,null,null,null,null,0,{"$error":"#DIV/0!"}]
[null,null,null,null,null,null,null,null,null,null,null,null,null,null,null,null,null,null,null,null,null,null,null,0,{"$error":"#DIV/0!"}]
[null,null,null,null,null,null,null,null,null,null,null,null,null,null,null,null,null,null,null,null,null,null,null,0,{"$error":"#DIV/0!"}]
[null,null,null,null,null,null,null,null,null,null,null,null,null,null,null,null,null,null,null,null,null,null,null,0,{"$error":"#DIV/0!"}]
[null,null,null,null,null,null,null,null,null,null,null,null,null,null,null,null,null,null,null,null,null,null,null,0,{"$error":"#DIV/0!"}]
[null,null,null,null,null,null,null,null,null,null,null,null,null,null,null,null,null,null,null,null,null,null,null,0,{"$error":"#DIV/0!"}]
[null,null,null,null,null,null,null,null,null,null,null,null,null,null,null,null,null,null,null,null,null,null,null,0,{"$error":"#DIV/0!"}]
[null,null,null,null,null,null,null,null,null,null,null,null,null,null,null,null,null,null,null,null,null,null,null,0,{"$error":"#DIV/0!"}]
[3,"Terminal Assets Design",null,null,null,null,null,null,null,null,null,null,null,null,null,null,null,null,null,null,null,null,null,{"$f":"IF(B98=\"\",0,IF((SUM(D99:W141)=0),SUM(D98:W98),\"\"))","v":0},{"$error":"#DIV/0!"}]
[null,null,null,null,null,null,null,null,null,null,null,null,null,null,null,null,null,null,null,null,null,null,null,{"$f":"IF(B99=\"\",0,IF((SUM(D99:W99)=0),0,SUM(D99:W99)))","v":0},{"$error":"#DIV/0!"}]
[null,null,null,null,null,null,null,null,null,null,null,null,null,null,null,null,null,null,null,null,null,null,null,0,{"$error":"#DIV/0!"}]
[null,null,null,null,null,null,null,null,null,null,null,null,null,null,null,null,null,null,null,null,null,null,null,0,{"$error":"#DIV/0!"}]
[null,null,null,null,null,null,null,null,null,null,null,null,null,null,null,null,null,null,null,null,null,null,null,0,{"$error":"#DIV/0!"}]
[null,null,null,null,null,null,null,null,null,null,null,null,null,null,null,null,null,null,null,null,null,null,null,0,{"$error":"#DIV/0!"}]
[null,null,null,null,null,null,null,null,null,null,null,null,null,null,null,null,null,null,null,null,null,null,null,0,{"$error":"#DIV/0!"}]
[null,null,null,null,null,null,null,null,null,null,null,null,null,null,null,null,null,null,null,null,null,null,null,0,{"$error":"#DIV/0!"}]
[null,null,null,null,null,null,null,null,null,null,null,null,null,null,null,null,null,null,null,null,null,null,null,0,{"$error":"#DIV/0!"}]
[null,null,null,null,null,null,null,null,null,null,null,null,null,null,null,null,null,null,null,null,null,null,null,{"$f":"IF(B107=\"\",0,IF((SUM(D107:W107)=0),0,SUM(D107:W107)))","v":0},{"$error":"#DIV/0!"}]
[null,null,null,null,null,null,null,null,null,null,null,null,null,null,null,null,null,null,null,null,null,null,null,{"$f":"IF(B108=\"\",0,IF((SUM(D108:W108)=0),0,SUM(D108:W108)))","v":0},{"$error":"#DIV/0!"}]
[null,"Planning and Coordination Meetings",null,null,null,null,null,null,null,null,null,null,null,null,null,null,null,null,null,null,null,null,null,{"$f":"IF(B109=\"\",0,IF((SUM(D110:W119)=0),SUM(D109:W109),\"\"))","v":0},{"$error":"#DIV/0!"}]
[null,null,null,null,null,null,null,null,null,null,null,null,null,null,null,null,null,null,null,null,null,null,null,{"$f":"IF(B110=\"\",0,IF((SUM(D110:W110)=0),0,SUM(D110:W110)))","v":0},{"$error":"#DIV/0!"}]
[null,null,null,null,null,null,null,null,null,null,null,null,null,null,null,null,null,null,null,null,null,null,null,0,{"$error":"#DIV/0!"}]
[null,null,null,null,null,null,null,null,null,null,null,null,null,null,null,null,null,null,null,null,null,null,null,0,{"$error":"#DIV/0!"}]
[null,null,null,null,null,null,null,null,null,null,null,null,null,null,null,null,null,null,null,null,null,null,null,0,{"$error":"#DIV/0!"}]
[null,null,null,null,null,null,null,null,null,null,null,null,null,null,null,null,null,null,null,null,null,null,null,0,{"$error":"#DIV/0!"}]
[null,null,null,null,null,null,null,null,null,null,null,null,null,null,null,null,null,null,null,null,null,null,null,0,{"$error":"#DIV/0!"}]
[null,null,null,null,null,null,null,null,null,null,null,null,null,null,null,null,null,null,null,null,null,null,null,0,{"$error":"#DIV/0!"}]
[null,null,null,null,null,null,null,null,null,null,null,null,null,null,null,null,null,null,null,null,null,null,null,0,{"$error":"#DIV/0!"}]
[null,null,null,null,null,null,null,null,null,null,null,null,null,null,null,null,null,null,null,null,null,null,null,{"$f":"IF(B118=\"\",0,IF((SUM(D118:W118)=0),0,SUM(D118:W118)))","v":0},{"$error":"#DIV/0!"}]
[null,null,null,null,null,null,null,null,null,null,null,null,null,null,null,null,null,null,null,null,null,null,null,{"$f":"IF(B119=\"\",0,IF((SUM(D119:W119)=0),0,SUM(D119:W119)))","v":0},{"$error":"#DIV/0!"}]
[null,"Review and Interviews\n**Review can apply to requirements (USC CFR, State policy) generally study related\n**Review can also apply to schematics / blue prints generally design related",null,null,null,null,null,null,null,null,null,null,null,null,null,null,null,null,null,null,null,null,null,{"$f":"IF(B120=\"\",0,IF((SUM(D121:W130)=0),SUM(D120:W120),\"\"))","v":0},{"$error":"#DIV/0!"}]
[null,null,null,null,null,null,null,null,null,null,null,null,null,null,null,null,null,null,null,null,null,null,null,{"$f":"IF(B121=\"\",0,IF((SUM(D121:W121)=0),0,SUM(D121:W121)))","v":0},{"$error":"#DIV/0!"}]
[null,null,null,null,null,null,null,null,null,null,null,null,null,null,null,null,null,null,null,null,null,null,null,0,{"$error":"#DIV/0!"}]
[null,null,null,null,null,null,null,null,null,null,null,null,null,null,null,null,null,null,null,null,null,null,null,0,{"$error":"#DIV/0!"}]
[null,null,null,null,null,null,null,null,null,null,null,null,null,null,null,null,null,null,null,null,null,null,null,0,{"$error":"#DIV/0!"}]
[null,null,null,null,null,null,null,null,null,null,null,null,null,null,null,null,null,null,null,null,null,null,null,0,{"$error":"#DIV/0!"}]
[null,null,null,null,null,null,null,null,null,null,null,null,null,null,null,null,null,null,null,null,null,null,null,0,{"$error":"#DIV/0!"}]
[null,null,null,null,null,null,null,null,null,null,null,null,null,null,null,null,null,null,null,null,null,null,null,0,{"$error":"#DIV/0!"}]
[null,null,null,null,null,null,null,null,null,null,null,null,null,null,null,null,null,null,null,null,null,null,null,0,{"$error":"#DIV/0!"}]
[null,null,null,null,null,null,null,null,null,null,null,null,null,null,null,null,null,null,null,null,null,null,null,0,{"$error":"#DIV/0!"}]
[null,null,null,null,null,null,null,null,null,null,null,null,null,null,null,null,null,null,null,null,null,null,null,0,{"$error":"#DIV/0!"}]
[null,"Reporting and Presentation",null,null,null,null,null,null,null,null,null,null,null,null,null,null,null,null,null,null,null,null,null,{"$f":"IF(B131=\"\",0,IF((SUM(D132:W141)=0),SUM(D131:W131),\"\"))","v":0},{"$error":"#DIV/0!"}]
[null,null,null,null,null,null,null,null,null,null,null,null,null,null,null,null,null,null,null,null,null,null,null,{"$f":"IF(B132=\"\",0,IF((SUM(D132:W132)=0),0,SUM(D132:W132)))","v":0},{"$error":"#DIV/0!"}]
[null,null,null,null,null,null,null,null,null,null,null,null,null,null,null,null,null,null,null,null,null,null,null,0,{"$error":"#DIV/0!"}]
[null,null,null,null,null,null,null,null,null,null,null,null,null,null,null,null,null,null,null,null,null,null,null,0,{"$error":"#DIV/0!"}]
[null,null,null,null,null,null,null,null,null,null,null,null,null,null,null,null,null,null,null,null,null,null,null,0,{"$error":"#DIV/0!"}]
[null,null,null,null,null,null,null,null,null,null,null,null,null,null,null,null,null,null,null,null,null,null,null,0,{"$error":"#DIV/0!"}]
[null,null,null,null,null,null,null,null,null,null,null,null,null,null,null,null,null,null,null,null,null,null,null,0,{"$error":"#DIV/0!"}]
[null,null,null,null,null,null,null,null,null,null,null,null,null,null,null,null,null,null,null,null,null,null,null,0,{"$error":"#DIV/0!"}]
[null,null,null,null,null,null,null,null,null,null,null,null,null,null,null,null,null,null,null,null,null,null,null,0,{"$f":"IF(X139=\"\",\"\",SUM((X139/$X$274)))","v":{"$error":"#DIV/0!"}}]
[null,null,null,null,null,null,null,null,null,null,null,null,null,null,null,null,null,null,null,null,null,null,null,0,{"$error":"#DIV/0!"}]
[null,null,null,null,null,null,null,null,null,null,null,null,null,null,null,null,null,null,null,null,null,null,null,{"$f":"IF(B141=\"\",0,IF((SUM(D141:W141)=0),0,SUM(D141:W141)))","v":0},{"$error":"#DIV/0!"}]
[4,"Dredging, Planning and Permits",null,null,null,null,null,null,null,null,null,null,null,null,null,null,null,null,null,null,null,null,null,{"$f":"IF(B142=\"\",0,IF((SUM(D143:W185)=0),SUM(D142:W142),\"\"))","v":0},{"$error":"#DIV/0!"}]
[null,null,null,null,null,null,null,null,null,null,null,null,null,null,null,null,null,null,null,null,null,null,null,{"$f":"IF(B143=\"\",0,IF((SUM(D143:W143)=0),0,SUM(D143:W143)))","v":0},{"$error":"#DIV/0!"}]
[null,null,null,null,null,null,null,null,null,null,null,null,null,null,null,null,null,null,null,null,null,null,null,0,{"$error":"#DIV/0!"}]
[null,null,null,null,null,null,null,null,null,null,null,null,null,null,null,null,null,null,null,null,null,null,null,0,{"$error":"#DIV/0!"}]
[null,null,null,null,null,null,null,null,null,null,null,null,null,null,null,null,null,null,null,null,null,null,null,0,{"$error":"#DIV/0!"}]
[null,null,null,null,null,null,null,null,null,null,null,null,null,null,null,null,null,null,null,null,null,null,null,0,{"$error":"#DIV/0!"}]
[null,null,null,null,null,null,null,null,null,null,null,null,null,null,null,null,null,null,null,null,null,null,null,0,{"$error":"#DIV/0!"}]
[null,null,null,null,null,null,null,null,null,null,null,null,null,null,null,null,null,null,null,null,null,null,null,0,{"$error":"#DIV/0!"}]
[null,null,null,null,null,null,null,null,null,null,null,null,null,null,null,null,null,null,null,null,null,null,null,0,{"$error":"#DIV/0!"}]
[null,null,null,null,null,null,null,null,null,null,null,null,null,null,null,null,null,null,null,null,null,null,null,{"$f":"IF(B151=\"\",0,IF((SUM(D151:W151)=0),0,SUM(D151:W151)))","v":0},{"$error":"#DIV/0!"}]
[null,null,null,null,null,null,null,null,null,null,null,null,null,null,null,null,null,null,null,null,null,null,null,{"$f":"IF(B152=\"\",0,IF((SUM(D152:W152)=0),0,SUM(D152:W152)))","v":0},{"$error":"#DIV/0!"}]
[null,"Planning and Coordination Meetings",null,null,null,null,null,null,null,null,null,null,null,null,null,null,null,null,null,null,null,null,null,{"$f":"IF(B153=\"\",0,IF((SUM(D154:W163)=0),SUM(D153:W153),\"\"))","v":0},{"$error":"#DIV/0!"}]
[null,null,null,null,null,null,null,null,null,null,null,null,null,null,null,null,null,null,null,null,null,null,null,{"$f":"IF(B154=\"\",0,IF((SUM(D154:W154)=0),0,SUM(D154:W154)))","v":0},{"$error":"#DIV/0!"}]
[null,null,null,null,null,null,null,null,null,null,null,null,null,null,null,null,null,null,null,null,null,null,null,0,{"$error":"#DIV/0!"}]
[null,null,null,null,null,null,null,null,null,null,null,null,null,null,null,null,null,null,null,null,null,null,null,0,{"$error":"#DIV/0!"}]
[null,null,null,null,null,null,null,null,null,null,null,null,null,null,null,null,null,null,null,null,null,null,null,0,{"$error":"#DIV/0!"}]
[null,null,null,null,null,null,null,null,null,null,null,null,null,null,null,null,null,null,null,null,null,null,null,0,{"$error":"#DIV/0!"}]
[null,null,null,null,null,null,null,null,null,null,null,null,null,null,null,null,null,null,null,null,null,null,null,0,{"$error":"#DIV/0!"}]
[null,null,null,null,null,null,null,null,null,null,null,null,null,null,null,null,null,null,null,null,null,null,null,0,{"$error":"#DIV/0!"}]
[null,null,null,null,null,null,null,null,null,null,null,null,null,null,null,null,null,null,null,null,null,null,null,0,{"$error":"#DIV/0!"}]
[null,null,null,null,null,null,null,null,null,null,null,null,null,null,null,null,null,null,null,null,null,null,null,{"$f":"IF(B162=\"\",0,IF((SUM(D162:W162)=0),0,SUM(D162:W162)))","v":0},{"$error":"#DIV/0!"}]
[null,null,null,null,null,null,null,null,null,null,null,null,null,null,null,null,null,null,null,null,null,null,null,{"$f":"IF(B163=\"\",0,IF((SUM(D163:W163)=0),0,SUM(D163:W163)))","v":0},{"$error":"#DIV/0!"}]
[null,"Review and Interviews\n**Review can apply to requirements (USC CFR, State policy) generally study related\n**Review can also apply to schematics / blue prints generally design related",null,null,null,null,null,null,null,null,null,null,null,null,null,null,null,null,null,null,null,null,null,{"$f":"IF(B164=\"\",0,IF((SUM(D165:W174)=0),SUM(D164:W164),\"\"))","v":0},{"$error":"#DIV/0!"}]
[null,null,null,null,null,null,null,null,null,null,null,null,null,null,null,null,null,null,null,null,null,null,null,{"$f":"IF(B165=\"\",0,IF((SUM(D165:W165)=0),0,SUM(D165:W165)))","v":0},{"$error":"#DIV/0!"}]
[null,null,null,null,null,null,null,null,null,null,null,null,null,null,null,null,null,null,null,null,null,null,null,0,{"$error":"#DIV/0!"}]
[null,null,null,null,null,null,null,null,null,null,null,null,null,null,null,null,null,null,null,null,null,null,null,0,{"$error":"#DIV/0!"}]
[null,null,null,null,null,null,null,null,null,null,null,null,null,null,null,null,null,null,null,null,null,null,null,0,{"$error":"#DIV/0!"}]
[null,null,null,null,null,null,null,null,null,null,null,null,null,null,null,null,null,null,null,null,null,null,null,0,{"$error":"#DIV/0!"}]
[null,null,null,null,null,null,null,null,null,null,null,null,null,null,null,null,null,null,null,null,null,null,null,0,{"$error":"#DIV/0!"}]
[null,null,null,null,null,null,null,null,null,null,null,null,null,null,null,null,null,null,null,null,null,null,null,0,{"$error":"#DIV/0!"}]
[null,null,null,null,null,null,null,null,null,null,null,null,null,null,null,null,null,null,null,null,null,null,null,0,{"$error":"#DIV/0!"}]
[null,null,null,null,null,null,null,null,null,null,null,null,null,null,null,null,null,null,null,null,null,null,null,0,{"$error":"#DIV/0!"}]
[null,null,null,null,null,null,null,null,null,null,null,null,null,null,null,null,null,null,null,null,null,null,null,0,{"$error":"#DIV/0!"}]
[null,"Reporting and Presentation",null,null,null,null,null,null,null,null,null,null,null,null,null,null,null,null,null,null,null,null,null,{"$f":"IF(B175=\"\",0,IF((SUM(D176:W185)=0),SUM(D175:W175),\"\"))","v":0},{"$error":"#DIV/0!"}]
[null,null,null,null,null,null,null,null,null,null,null,null,null,null,null,null,null,null,null,null,null,null,null,{"$f":"IF(B176=\"\",0,IF((SUM(D176:W176)=0),0,SUM(D176:W176)))","v":0},{"$error":"#DIV/0!"}]
[null,null,null,null,null,null,null,null,null,null,null,null,null,null,null,null,null,null,null,null,null,null,null,0,{"$error":"#DIV/0!"}]
[null,null,null,null,null,null,null,null,null,null,null,null,null,null,null,null,null,null,null,null,null,null,null,0,{"$error":"#DIV/0!"}]
[null,null,null,null,null,null,null,null,null,null,null,null,null,null,null,null,null,null,null,null,null,null,null,0,{"$error":"#DIV/0!"}]
[null,null,null,null,null,null,null,null,null,null,null,null,null,null,null,null,null,null,null,null,null,null,null,0,{"$error":"#DIV/0!"}]
[null,null,null,null,null,null,null,null,null,null,null,null,null,null,null,null,null,null,null,null,null,null,null,0,{"$error":"#DIV/0!"}]
[null,null,null,null,null,null,null,null,null,null,null,null,null,null,null,null,null,null,null,null,null,null,null,0,{"$error":"#DIV/0!"}]
[null,null,null,null,null,null,null,null,null,null,null,null,null,null,null,null,null,null,null,null,null,null,null,0,{"$error":"#DIV/0!"}]
[null,null,null,null,null,null,null,null,null,null,null,null,null,null,null,null,null,null,null,null,null,null,null,0,{"$error":"#DIV/0!"}]
[null,null,null,null,null,null,null,null,null,null,null,null,null,null,null,null,null,null,null,null,null,null,null,0,{"$error":"#DIV/0!"}]
[5,"Vessel Asset Management",null,null,null,null,null,null,null,null,null,null,null,null,null,null,null,null,null,null,null,null,null,{"$f":"IF(B186=\"\",0,IF((SUM(D187:W229)=0),SUM(D186:W186),\"\"))","v":0},{"$error":"#DIV/0!"}]
[null,null,null,null,null,null,null,null,null,null,null,null,null,null,null,null,null,null,null,null,null,null,null,{"$f":"IF(B187=\"\",0,IF((SUM(D187:W187)=0),0,SUM(D187:W187)))","v":0},{"$error":"#DIV/0!"}]
[null,null,null,null,null,null,null,null,null,null,null,null,null,null,null,null,null,null,null,null,null,null,null,0,{"$error":"#DIV/0!"}]
[null,null,null,null,null,null,null,null,null,null,null,null,null,null,null,null,null,null,null,null,null,null,null,0,{"$error":"#DIV/0!"}]
[null,null,null,null,null,null,null,null,null,null,null,null,null,null,null,null,null,null,null,null,null,null,null,0,{"$error":"#DIV/0!"}]
[null,null,null,null,null,null,null,null,null,null,null,null,null,null,null,null,null,null,null,null,null,null,null,0,{"$error":"#DIV/0!"}]
[null,null,null,null,null,null,null,null,null,null,null,null,null,null,null,null,null,null,null,null,null,null,null,0,{"$error":"#DIV/0!"}]
[null,null,null,null,null,null,null,null,null,null,null,null,null,null,null,null,null,null,null,null,null,null,null,0,{"$error":"#DIV/0!"}]
[null,null,null,null,null,null,null,null,null,null,null,null,null,null,null,null,null,null,null,null,null,null,null,0,{"$error":"#DIV/0!"}]
[null,null,null,null,null,null,null,null,null,null,null,null,null,null,null,null,null,null,null,null,null,null,null,{"$f":"IF(B195=\"\",0,IF((SUM(D195:W195)=0),0,SUM(D195:W195)))","v":0},{"$error":"#DIV/0!"}]
[null,null,null,null,null,null,null,null,null,null,null,null,null,null,null,null,null,null,null,null,null,null,null,{"$f":"IF(B196=\"\",0,IF((SUM(D196:W196)=0),0,SUM(D196:W196)))","v":0},{"$error":"#DIV/0!"}]
[null,"Planning and Coordination Meetings",null,null,null,null,null,null,null,null,null,null,null,null,null,null,null,null,null,null,null,null,null,{"$f":"IF(B197=\"\",0,IF((SUM(D198:W207)=0),SUM(D197:W197),\"\"))","v":0},{"$error":"#DIV/0!"}]
[null,null,null,null,null,null,null,null,null,null,null,null,null,null,null,null,null,null,null,null,null,null,null,{"$f":"IF(B198=\"\",0,IF((SUM(D198:W198)=0),0,SUM(D198:W198)))","v":0},{"$error":"#DIV/0!"}]
[null,null,null,null,null,null,null,null,null,null,null,null,null,null,null,null,null,null,null,null,null,null,null,0,{"$error":"#DIV/0!"}]
[null,null,null,null,null,null,null,null,null,null,null,null,null,null,null,null,null,null,null,null,null,null,null,0,{"$error":"#DIV/0!"}]
[null,null,null,null,null,null,null,null,null,null,null,null,null,null,null,null,null,null,null,null,null,null,null,0,{"$error":"#DIV/0!"}]
[null,null,null,null,null,null,null,null,null,null,null,null,null,null,null,null,null,null,null,null,null,null,null,0,{"$error":"#DIV/0!"}]
[null,null,null,null,null,null,null,null,null,null,null,null,null,null,null,null,null,null,null,null,null,null,null,0,{"$f":"IF(X203=\"\",\"\",SUM((X203/$X$274)))","v":{"$error":"#DIV/0!"}}]
[null,null,null,null,null,null,null,null,null,null,null,null,null,null,null,null,null,null,null,null,null,null,null,0,{"$error":"#DIV/0!"}]
[null,null,null,null,null,null,null,null,null,null,null,null,null,null,null,null,null,null,null,null,null,null,null,0,{"$error":"#DIV/0!"}]
[null,null,null,null,null,null,null,null,null,null,null,null,null,null,null,null,null,null,null,null,null,null,null,{"$f":"IF(B206=\"\",0,IF((SUM(D206:W206)=0),0,SUM(D206:W206)))","v":0},{"$error":"#DIV/0!"}]
[null,null,null,null,null,null,null,null,null,null,null,null,null,null,null,null,null,null,null,null,null,null,null,{"$f":"IF(B207=\"\",0,IF((SUM(D207:W207)=0),0,SUM(D207:W207)))","v":0},{"$error":"#DIV/0!"}]
[null,"Review and Interviews\n**Review can apply to requirements (USC CFR, State policy) generally study related\n**Review can also apply to schematics / blue prints generally design related",null,null,null,null,null,null,null,null,null,null,null,null,null,null,null,null,null,null,null,null,null,{"$f":"IF(B208=\"\",0,IF((SUM(D209:W218)=0),SUM(D208:W208),\"\"))","v":0},{"$error":"#DIV/0!"}]
[null,null,null,null,null,null,null,null,null,null,null,null,null,null,null,null,null,null,null,null,null,null,null,{"$f":"IF(B209=\"\",0,IF((SUM(D209:W209)=0),0,SUM(D209:W209)))","v":0},{"$error":"#DIV/0!"}]
[null,null,null,null,null,null,null,null,null,null,null,null,null,null,null,null,null,null,null,null,null,null,null,0,{"$error":"#DIV/0!"}]
[null,null,null,null,null,null,null,null,null,null,null,null,null,null,null,null,null,null,null,null,null,null,null,0,{"$error":"#DIV/0!"}]
[null,null,null,null,null,null,null,null,null,null,null,null,null,null,null,null,null,null,null,null,null,null,null,0,{"$error":"#DIV/0!"}]
[null,null,null,null,null,null,null,null,null,null,null,null,null,null,null,null,null,null,null,null,null,null,null,0,{"$error":"#DIV/0!"}]
[null,null,null,null,null,null,null,null,null,null,null,null,null,null,null,null,null,null,null,null,null,null,null,0,{"$error":"#DIV/0!"}]
[null,null,null,null,null,null,null,null,null,null,null,null,null,null,null,null,null,null,null,null,null,null,null,0,{"$error":"#DIV/0!"}]
[null,null,null,null,null,null,null,null,null,null,null,null,null,null,null,null,null,null,null,null,null,null,null,0,{"$error":"#DIV/0!"}]
[null,null,null,null,null,null,null,null,null,null,null,null,null,null,null,null,null,null,null,null,null,null,null,0,{"$error":"#DIV/0!"}]
[null,null,null,null,null,null,null,null,null,null,null,null,null,null,null,null,null,null,null,null,null,null,null,0,{"$error":"#DIV/0!"}]
[null,"Reporting and Presentation",null,null,null,null,null,null,null,null,null,null,null,null,null,null,null,null,null,null,null,null,null,{"$f":"IF(B219=\"\",0,IF((SUM(D220:W229)=0),SUM(D219:W219),\"\"))","v":0},{"$error":"#DIV/0!"}]
[null,null,null,null,null,null,null,null,null,null,null,null,null,null,null,null,null,null,null,null,null,null,null,{"$f":"IF(B220=\"\",0,IF((SUM(D220:W220)=0),0,SUM(D220:W220)))","v":0},{"$error":"#DIV/0!"}]
[null,null,null,null,null,null,null,null,null,null,null,null,null,null,null,null,null,null,null,null,null,null,null,0,{"$error":"#DIV/0!"}]
[null,null,null,null,null,null,null,null,null,null,null,null,null,null,null,null,null,null,null,null,null,null,null,0,{"$error":"#DIV/0!"}]
[null,null,null,null,null,null,null,null,null,null,null,null,null,null,null,null,null,null,null,null,null,null,null,0,{"$error":"#DIV/0!"}]
[null,null,null,null,null,null,null,null,null,null,null,null,null,null,null,null,null,null,null,null,null,null,null,0,{"$error":"#DIV/0!"}]
[null,null,null,null,null,null,null,null,null,null,null,null,null,null,null,null,null,null,null,null,null,null,null,0,{"$error":"#DIV/0!"}]
[null,null,null,null,null,null,null,null,null,null,null,null,null,null,null,null,null,null,null,null,null,null,null,0,{"$error":"#DIV/0!"}]
[null,null,null,null,null,null,null,null,null,null,null,null,null,null,null,null,null,null,null,null,null,null,null,0,{"$error":"#DIV/0!"}]
[null,null,null,null,null,null,null,null,null,null,null,null,null,null,null,null,null,null,null,null,null,null,null,0,{"$error":"#DIV/0!"}]
[null,null,null,null,null,null,null,null,null,null,null,null,null,null,null,null,null,null,null,null,null,null,null,0,{"$error":"#DIV/0!"}]
[6,"OTHER TYPE (PLEASE KEY TYPE)",null,null,null,null,null,null,null,null,null,null,null,null,null,null,null,null,null,null,null,null,null,{"$f":"IF(B230=\"\",0,IF((SUM(D231:W273)=0),SUM(D230:W230),\"\"))","v":0},{"$error":"#DIV/0!"}]
[null,null,null,null,null,null,null,null,null,null,null,null,null,null,null,null,null,null,null,null,null,null,null,{"$f":"IF(B231=\"\",0,IF((SUM(D231:W231)=0),0,SUM(D231:W231)))","v":0},{"$error":"#DIV/0!"}]
[null,null,null,null,null,null,null,null,null,null,null,null,null,null,null,null,null,null,null,null,null,null,null,0,{"$error":"#DIV/0!"}]
[null,null,null,null,null,null,null,null,null,null,null,null,null,null,null,null,null,null,null,null,null,null,null,0,{"$error":"#DIV/0!"}]
[null,null,null,null,null,null,null,null,null,null,null,null,null,null,null,null,null,null,null,null,null,null,null,0,{"$error":"#DIV/0!"}]
[null,null,null,null,null,null,null,null,null,null,null,null,null,null,null,null,null,null,null,null,null,null,null,0,{"$error":"#DIV/0!"}]
[null,null,null,null,null,null,null,null,null,null,null,null,null,null,null,null,null,null,null,null,null,null,null,0,{"$error":"#DIV/0!"}]
[null,null,null,null,null,null,null,null,null,null,null,null,null,null,null,null,null,null,null,null,null,null,null,0,{"$error":"#DIV/0!"}]
[null,null,null,null,null,null,null,null,null,null,null,null,null,null,null,null,null,null,null,null,null,null,null,0,{"$error":"#DIV/0!"}]
[null,null,null,null,null,null,null,null,null,null,null,null,null,null,null,null,null,null,null,null,null,null,null,{"$f":"IF(B239=\"\",0,IF((SUM(D239:W239)=0),0,SUM(D239:W239)))","v":0},{"$error":"#DIV/0!"}]
[null,null,null,null,null,null,null,null,null,null,null,null,null,null,null,null,null,null,null,null,null,null,null,{"$f":"IF(B240=\"\",0,IF((SUM(D240:W240)=0),0,SUM(D240:W240)))","v":0},{"$error":"#DIV/0!"}]
[null,"Planning and Coordination Meetings",null,null,null,null,null,null,null,null,null,null,null,null,null,null,null,null,null,null,null,null,null,{"$f":"IF(B241=\"\",0,IF((SUM(D242:W251)=0),SUM(D241:W241),\"\"))","v":0},{"$error":"#DIV/0!"}]
[null,null,null,null,null,null,null,null,null,null,null,null,null,null,null,null,null,null,null,null,null,null,null,{"$f":"IF(B242=\"\",0,IF((SUM(D242:W242)=0),0,SUM(D242:W242)))","v":0},{"$error":"#DIV/0!"}]
[null,null,null,null,null,null,null,null,null,null,null,null,null,null,null,null,null,null,null,null,null,null,null,0,{"$error":"#DIV/0!"}]
[null,null,null,null,null,null,null,null,null,null,null,null,null,null,null,null,null,null,null,null,null,null,null,0,{"$error":"#DIV/0!"}]
[null,null,null,null,null,null,null,null,null,null,null,null,null,null,null,null,null,null,null,null,null,null,null,0,{"$error":"#DIV/0!"}]
[null,null,null,null,null,null,null,null,null,null,null,null,null,null,null,null,null,null,null,null,null,null,null,0,{"$error":"#DIV/0!"}]
[null,null,null,null,null,null,null,null,null,null,null,null,null,null,null,null,null,null,null,null,null,null,null,0,{"$error":"#DIV/0!"}]
[null,null,null,null,null,null,null,null,null,null,null,null,null,null,null,null,null,null,null,null,null,null,null,0,{"$error":"#DIV/0!"}]
[null,null,null,null,null,null,null,null,null,null,null,null,null,null,null,null,null,null,null,null,null,null,null,0,{"$error":"#DIV/0!"}]
[null,null,null,null,null,null,null,null,null,null,null,null,null,null,null,null,null,null,null,null,null,null,null,{"$f":"IF(B250=\"\",0,IF((SUM(D250:W250)=0),0,SUM(D250:W250)))","v":0},{"$error":"#DIV/0!"}]
[null,null,null,null,null,null,null,null,null,null,null,null,null,null,null,null,null,null,null,null,null,null,null,{"$f":"IF(B251=\"\",0,IF((SUM(D251:W251)=0),0,SUM(D251:W251)))","v":0},{"$error":"#DIV/0!"}]
[null,"Review and Interviews\n**Review can apply to requirements (USC CFR, State policy) generally study related\n**Review can also apply to schematics / blue prints generally design related",null,null,null,null,null,null,null,null,null,null,null,null,null,null,null,null,null,null,null,null,null,{"$f":"IF(B252=\"\",0,IF((SUM(D253:W262)=0),SUM(D252:W252),\"\"))","v":0},{"$error":"#DIV/0!"}]
[null,null,null,null,null,null,null,null,null,null,null,null,null,null,null,null,null,null,null,null,null,null,null,{"$f":"IF(B253=\"\",0,IF((SUM(D253:W253)=0),0,SUM(D253:W253)))","v":0},{"$error":"#DIV/0!"}]
[null,null,null,null,null,null,null,null,null,null,null,null,null,null,null,null,null,null,null,null,null,null,null,0,{"$error":"#DIV/0!"}]
[null,null,null,null,null,null,null,null,null,null,null,null,null,null,null,null,null,null,null,null,null,null,null,0,{"$error":"#DIV/0!"}]
[null,null,null,null,null,null,null,null,null,null,null,null,null,null,null,null,null,null,null,null,null,null,null,0,{"$error":"#DIV/0!"}]
[null,null,null,null,null,null,null,null,null,null,null,null,null,null,null,null,null,null,null,null,null,null,null,0,{"$error":"#DIV/0!"}]
[null,null,null,null,null,null,null,null,null,null,null,null,null,null,null,null,null,null,null,null,null,null,null,0,{"$error":"#DIV/0!"}]
[null,null,null,null,null,null,null,null,null,null,null,null,null,null,null,null,null,null,null,null,null,null,null,0,{"$error":"#DIV/0!"}]
[null,null,null,null,null,null,null,null,null,null,null,null,null,null,null,null,null,null,null,null,null,null,null,0,{"$error":"#DIV/0!"}]
[null,null,null,null,null,null,null,null,null,null,null,null,null,null,null,null,null,null,null,null,null,null,null,0,{"$error":"#DIV/0!"}]
[null,null,null,null,null,null,null,null,null,null,null,null,null,null,null,null,null,null,null,null,null,null,null,0,{"$error":"#DIV/0!"}]
[null,"Reporting and Presentation",null,null,null,null,null,null,null,null,null,null,null,null,null,null,null,null,null,null,null,null,null,{"$f":"IF(B263=\"\",0,IF((SUM(D264:W273)=0),SUM(D263:W263),\"\"))","v":0},{"$error":"#DIV/0!"}]
[null,null,null,null,null,null,null,null,null,null,null,null,null,null,null,null,null,null,null,null,null,null,null,{"$f":"IF(B264=\"\",0,IF((SUM(D264:W264)=0),0,SUM(D264:W264)))","v":0},{"$error":"#DIV/0!"}]
[null,null,null,null,null,null,null,null,null,null,null,null,null,null,null,null,null,null,null,null,null,null,null,0,{"$error":"#DIV/0!"}]
[null,null,null,null,null,null,null,null,null,null,null,null,null,null,null,null,null,null,null,null,null,null,null,0,{"$error":"#DIV/0!"}]
[null,null,null,null,null,null,null,null,null,null,null,null,null,null,null,null,null,null,null,null,null,null,null,0,{"$f":"IF(X267=\"\",\"\",SUM((X267/$X$274)))","v":{"$error":"#DIV/0!"}}]
[null,null,null,null,null,null,null,null,null,null,null,null,null,null,null,null,null,null,null,null,null,null,null,0,{"$error":"#DIV/0!"}]
[null,null,null,null,null,null,null,null,null,null,null,null,null,null,null,null,null,null,null,null,null,null,null,0,{"$error":"#DIV/0!"}]
[null,null,null,null,null,null,null,null,null,null,null,null,null,null,null,null,null,null,null,null,null,null,null,0,{"$error":"#DIV/0!"}]
[null,null,null,null,null,null,null,null,null,null,null,null,null,null,null,null,null,null,null,null,null,null,null,0,{"$error":"#DIV/0!"}]
[null,null,null,null,null,null,null,null,null,null,null,null,null,null,null,null,null,null,null,null,null,null,null,0,{"$error":"#DIV/0!"}]
[null,null,null,null,null,null,null,null,null,null,null,null,null,null,null,null,null,null,null,null,null,null,null,{"$f":"IF(B273=\"\",0,IF((SUM(D273:W273)=0),0,SUM(D273:W273)))","v":0},{"$error":"#DIV/0!"}]
[null,"TOTAL WORKHOURS/CATEGORY:",null,{"$f":"SUM(D11:D273)","v":0},0,0,0,0,0,0,0,0,0,0,0,0,0,0,0,0,0,0,0,0,{"$error":"#DIV/0!"},{"$f":"SUM(Z12:Z273)","v":0}]
[null,"TOTAL WORKDAYS/CATEGORY:",null,{"$f":"D274/8","v":0},{"$f":"E274/8","v":0},0,0,0,0,0,0,0,0,0,0,0,0,0,0,0,0,0,0]
[null,"HOURLY SALARY RATE:",null,{"$f":"'PEF CLASSIFICATION SHEET'!E1734","v":0},{"$f":"'PEF CLASSIFICATION SHEET'!E1735","v":0},{"$f":"'PEF CLASSIFICATION SHEET'!E1736","v":0},{"$f":"'PEF CLASSIFICATION SHEET'!E1737","v":0},{"$f":"'PEF CLASSIFICATION SHEET'!E1738","v":0},{"$f":"'PEF CLASSIFICATION SHEET'!E1739","v":0},{"$f":"'PEF CLASSIFICATION SHEET'!E1740","v":0},{"$f":"'PEF CLASSIFICATION SHEET'!E1741","v":0},{"$f":"'PEF CLASSIFICATION SHEET'!E1742","v":0},{"$f":"'PEF CLASSIFICATION SHEET'!E1743","v":0},{"$f":"'PEF CLASSIFICATION SHEET'!E1744","v":0},{"$f":"'PEF CLASSIFICATION SHEET'!E1745","v":0},{"$f":"'PEF CLASSIFICATION SHEET'!E1746","v":0},{"$f":"'PEF CLASSIFICATION SHEET'!E1747","v":0},{"$f":"'PEF CLASSIFICATION SHEET'!E1748","v":0},{"$f":"'PEF CLASSIFICATION SHEET'!E1749","v":0},{"$f":"'PEF CLASSIFICATION SHEET'!E1750","v":0},{"$f":"'PEF CLASSIFICATION SHEET'!E1751","v":0},{"$f":"'PEF CLASSIFICATION SHEET'!E1752","v":0},{"$f":"'PEF CLASSIFICATION SHEET'!E1753","v":0}]
[null,"RATES PER DAY:",null,{"$f":"D276*8","v":0},0,0,0,0,0,0,0,0,0,0,0,0,0,0,0,0,0,0,0]
[null,"PAYROLL BURDEN:",null,{"$f":"SUM(D274*D276)","v":0},{"$f":"SUM(E274*E276)","v":0},0,0,0,0,0,0,0,0,0,0,0,0,0,0,0,0,0,0]
[null,"TOTAL WORKDAYS:",null,{"$f":"SUM(D275:W275)","v":0}]
[null,"TOTAL PAYROLL BURDEN:",null,{"$f":"SUM(D278:W278)","v":0}]
[null,"AVERAGE COST PER HOUR:",null,{"$f":"SUM(D280/(D279*8))","v":{"$error":"#DIV/0!"}}]
[null,"GENERAL OVERHEAD:",{"$f":"FERRY.SUB4_CONSULTANT_OVERHEAD","v":0},{"$f":"SUM(D280*C282)","v":0}]
[null,"SUBTOTAL:",null,{"$f":"SUM(D280+D282)","v":0}]
[null,"COMPARATIVE FEE:",{"$f":"FERRY.SUB4_CONSULTANT_FEE","v":0},{"$f":"SUM(D283*C284)","v":0}]
[null,"FACILITIES COST OF CAPITAL:",{"$f":"FERRY.SUB4_CONSULTANT_COSTofCAPITAL","v":0},{"$f":"SUM(D280*C285)","v":0}]
[null,"TOTAL:",null,{"$f":"SUM(D283:D285)","v":0}]
[null,"DIRECT EXPENSES:",null,{"$f":"FERRY.SUB4_DIRECT_NONSALARY_TOTAL","v":0}]
[null,"FERRY GRAND TOTAL:",null,{"$f":"SUM(D286:D287)","v":0}]

{"sheet":"Ferry-Exp-Sub4","index":192,"n_rows":46,"n_cols":8,"rows_kept":46,"cut":false,"hidden":true,"merged":[[0,0,0,7],[1,3,1,7]]}
[{"$f":"CONCATENATE('Ferry-Sub4'!B1,\" \",\"--DIRECT EXPENSES - SUBCONSULTANT 4\")","v":"Ferry (Select One Below) --DIRECT EXPENSES - SUBCONSULTANT 4"}]
["TIP NUMBER",{"$f":"TIP.NUMBER","v":0},"FIRM:",{"$f":"'Ferry-Sub4'!G3","v":"CONSULTANT NAME"}]
[]
["GENERAL PROJECT WORK:","ITEM","QTY","DESCRIPTION",null,null,"UNIT COST "]
[null,"Travel:"]
[null,"Sedan",0,"Trip(s) @",0,"miles @",{"$f":"SEDAN","v":0.7},{"$f":"SUM(C6*E6*G6)","v":0}]
[null,"Carry All",0,"Trip(s) @",0,"miles @",{"$f":"CARRYALL","v":0.72},{"$f":"SUM(C7*E7*G7)","v":0}]
[null,"Car Rental",null,null,0,"days @ ",{"$f":"CARRENTAL","v":50},{"$f":"SUM(E8*G8)","v":0}]
[null,"Gas for Rental",null,null,0,"miles @",{"$f":"GASforRENTAL","v":0.2},{"$f":"SUM(E9*G9)","v":0}]
[null,"Parking:",0,"Trip(s) @",null,null,{"$f":"PARKING","v":3},{"$f":"SUM(C10*G10)","v":0}]
[null,"Per Diem:",0,"Breakfast",null,null,{"$f":"BREAKFAST","v":10.1},{"$f":"SUM(C11*G11)","v":0}]
[null,null,0,"Lunch",null,null,{"$f":"LUNCH","v":13.3},0]
[null,null,0,"Dinner",null,null,{"$f":"DINNER","v":23.1},0]
[null,null,0,"Lodging",null,null,{"$f":"LODGING_LUMP.SUM","v":95},0]
[null,"Reproduction:",0,"8 1/2 x 11 B & W Copies @",null,null,{"$f":"LETTERCOPIES","v":0.14000000000000001},0]
[null,null,0,"11 x 17 B & W Copies @",null,null,{"$f":"LEDGERCOPIES","v":0.34},0]
[null,null,0,"8 1/2 x 11 Color Copies @",null,null,{"$f":"LETTERCOLOR","v":0.83},0]
[null,null,0,"11 x 17 Color Copies @",null,null,{"$f":"LEDGERCOLOR","v":1.66},0]
[null,null,0,"SQ. FT. of Plots (B & W or Color)",null,"<65 SQ. FT.*",{"$f":"ROLLPLOTSshort","v":6.5},0]
[null,null,0,"SQ. FT. of Plots (B & W or Color)",null,">65 SQ. FT.*",{"$f":"ROLLPLOTSlong","v":1.5},0]
[null,null,0,"Cover(s) @",null,null,{"$f":"COVERS","v":0.5},0]
[null,null,0,"Binder(s) @",null,null,{"$f":"BINDERS","v":0.5},0]
[null,null,0,"Blueprints - 8 1/2 x 11 @",null,null,{"$f":"BLUEPRINTSLETTER","v":0.35},0]
[null,null,0,"Blueprints - 42 x 72 @",null,null,{"$f":"BLUEPRINTSLARGE","v":1.3},0]
[null,"Film and Developing:",0,"Roll(s) @",null,null,{"$f":"FILM","v":20},0]
[null,null,null,null,null,"Subtotal",null,{"$f":"SUM(H6:H25)","v":0}]
["MAPS AND DOCUMENTS:","ITEM","QTY","DESCRIPTION",null,null,"UNIT COST "]
[null,"County Tax Maps:",0,"Map(s) @",null,null,{"$f":"County_Tax_Maps","v":7},{"$f":"SUM(C28*G28)","v":0}]
[null,"USGS Maps:",0,"Map(s) @",null,null,{"$f":"USGSMAPS","v":7},{"$f":"SUM(C29*G29)","v":0}]
[null,null,null,null,null,"Subtotal",null,{"$f":"SUM(H28:H29)","v":0}]
["Miscellaneous Other","ITEM","QTY","DESCRIPTION",null,null,"UNIT COST "]
[null,null,null,null,null,null,null,{"$f":"SUM(C32*G32)","v":0}]
[null,null,null,null,null,null,null,{"$f":"SUM(C33*G33)","v":0}]
[null,null,null,null,null,null,null,0]
[null,null,null,null,null,null,null,0]
[null,null,null,null,null,null,null,0]
[null,null,null,null,null,null,null,0]
[null,null,null,null,null,null,null,0]
[null,null,null,null,null,null,null,{"$f":"SUM(C39*G39)","v":0}]
[null,null,null,null,null,null,null,{"$f":"SUM(C40*G40)","v":0}]
[null,null,null,null,null,null,null,{"$f":"SUM(C41*G41)","v":0}]
[null,null,null,null,null,"Subtotal",null,{"$f":"SUM(H32:H41)","v":0}]
[]
[null,null,null,null,null,"TOTAL",null,{"$f":"SUM(H26+H30+H42)","v":0}]
[]
[null,"* Sum of all plots "]

{"sheet":"Ferry-Sub5","index":193,"n_rows":288,"n_cols":31,"rows_kept":288,"cut":false,"hidden":true,"merged":[[0,2,0,13],[2,1,2,4],[2,6,2,7],[2,10,2,11],[2,15,2,16],[3,1,3,4],[3,6,3,7],[3,10,3,11],[3,15,3,16],[6,12,9,12],[6,13,9,13],[6,14,9,14],[6,15,9,15],[6,16,9,16],[6,17,9,17],[4,3,4,22],[6,3,9,3],[6,4,9,4],[6,5,9,5],[6,6,9,6],[6,7,9,7],[6,8,9,8],[6,9,9,9],[6,10,9,10],[6,11,9,11],[10,26,10,27],[11,26,11,27],[12,26,12,27],[13,26,13,27],[14,26,14,27],[15,26,15,27],[6,18,9,18],[6,19,9,19],[6,20,9,20],[6,21,9,21],[6,22,9,22],[8,26,8,27],[22,26,22,27],[23,26,23,27],[24,26,24,27],[25,26,25,27],[26,26,26,27],[27,26,27,27],[16,26,16,27],[17,26,17,27],[18,26,18,27],[19,26,19,27],[20,26,20,27],[21,26,21,27],[34,26,34,27],[35,26,35,27],[36,26,36,27],[37,26,37,27],[38,26,38,27],[39,26,39,27],[28,26,28,27],[29,26,29,27],[30,26,30,27],[31,26,31,27],[32,26,32,27],[33,26,33,27],[46,26,46,27],[47,26,47,27],[48,26,48,27],[49,26,49,27],[50,26,50,27],[51,26,51,27],[40,26,40,27],[41,26,41,27],[42,26,42,27],[43,26,43,27],[44,26,44,27],[45,26,45,27],[58,26,58,27],[59,26,59,27],[60,26,60,27],[61,26,61,27],[62,26,62,27],[63,26,63,27],[52,26,52,27],[53,26,53,27],[54,26,54,27],[55,26,55,27],[56,26,56,27],[57,26,57,27],[70,26,70,27],[71,26,71,27],[72,26,72,27],[73,26,73,27],[74,26,74,27],[75,26,75,27],[64,26,64,27],[65,26,65,27],[66,26,66,27],[67,26,67,27],[68,26,68,27],[69,26,69,27],[82,26,82,27],[83,26,83,27],[84,26,84,27],[85,26,85,27],[86,26,86,27],[87,26,87,27],[76,26,76,27],[77,26,77,27],[78,26,78,27],[79,26,79,27],[80,26,80,27],[81,26,81,27],[94,26,94,27],[95,26,95,27],[96,26,96,27],[97,26,97,27],[98,26,98,27],[99,26,99,27],[88,26,88,27],[89,26,89,27],[90,26,90,27],[91,26,91,27],[92,26,92,27],[93,26,93,27],[106,26,106,27],[107,26,107,27],[108,26,108,27],[109,26,109,27],[110,26,110,27],[111,26,111,27],[100,26,100,27],[101,26,101,27],[102,26,102,27],[103,26,103,27],[104,26,104,27],[105,26,105,27],[118,26,118,27],[272,26,272,27],[287,1,288,1],[287,3,288,4],[291,3,291,6],[291,8,291,13],[112,26,112,27],[113,26,113,27],[114,26,114,27],[115,26,115,27],[116,26,116,27],[117,26,117,27],[223,26,223,27],[224,26,224,27],[225,26,225,27],[226,26,226,27],[227,26,227,27],[228,26,228,27],[229,26,229,27],[230,26,230,27],[231,26,231,27],[232,26,232,27],[233,26,233,27],[234,26,234,27],[298,8,298,9],[298,10,298,11],[292,8,292,9],[292,10,292,11],[293,8,293,9],[293,10,293,11],[296,8,296,13],[297,8,297,9],[297,10,297,11],[235,26,235,27],[236,26,236,27],[237,26,237,27],[238,26,238,27],[239,26,239,27],[240,26,240,27],[241,26,241,27],[242,26,242,27],[243,26,243,27],[244,26,244,27],[245,26,245,27],[246,26,246,27],[247,26,247,27],[248,26,248,27],[249,26,249,27],[250,26,250,27],[251,26,251,27],[252,26,252,27],[262,26,262,27],[263,26,263,27],[264,26,264,27],[265,26,265,27],[266,26,266,27],[267,26,267,27],[253,26,253,27],[254,26,254,27],[255,26,255,27],[256,26,256,27],[257,26,257,27],[258,26,258,27],[259,26,259,27],[260,26,260,27],[261,26,261,27],[268,26,268,27],[269,26,269,27],[270,26,270,27],[271,26,271,27],[171,26,171,27],[172,26,172,27],[173,26,173,27],[174,26,174,27],[175,26,175,27],[176,26,176,27],[177,26,177,27],[178,26,178,27],[179,26,179,27],[180,26,180,27],[181,26,181,27],[182,26,182,27],[183,26,183,27],[184,26,184,27],[185,26,185,27],[186,26,186,27],[187,26,187,27],[188,26,188,27],[189,26,189,27],[190,26,190,27],[191,26,191,27],[192,26,192,27],[193,26,193,27],[194,26,194,27],[195,26,195,27],[196,26,196,27],[197,26,197,27],[198,26,198,27],[199,26,199,27],[200,26,200,27],[201,26,201,27],[202,26,202,27],[203,26,203,27],[204,26,204,27],[205,26,205,27],[206,26,206,27],[207,26,207,27],[208,26,208,27],[209,26,209,27],[210,26,210,27],[211,26,211,27],[212,26,212,27],[213,26,213,27],[214,26,214,27],[215,26,215,27],[216,26,216,27],[217,26,217,27],[218,26,218,27],[219,26,219,27],[220,26,220,27],[221,26,221,27],[222,26,222,27],[119,26,119,27],[120,26,120,27],[121,26,121,27],[122,26,122,27],[123,26,123,27],[124,26,124,27],[125,26,125,27],[126,26,126,27],[127,26,127,27],[128,26,128,27],[129,26,129,27],[130,26,130,27],[131,26,131,27],[132,26,132,27],[133,26,133,27],[134,26,134,27],[135,26,135,27],[136,26,136,27],[137,26,137,27],[138,26,138,27],[139,26,139,27],[140,26,140,27],[141,26,141,27],[142,26,142,27],[143,26,143,27],[144,26,144,27],[145,26,145,27],[146,26,146,27],[147,26,147,27],[148,26,148,27],[149,26,149,27],[150,26,150,27],[151,26,151,27],[152,26,152,27],[153,26,153,27],[154,26,154,27],[155,26,155,27],[165,26,165,27],[166,26,166,27],[167,26,167,27],[168,26,168,27],[169,26,169,27],[170,26,170,27],[156,26,156,27],[157,26,157,27],[158,26,158,27],[159,26,159,27],[160,26,160,27],[161,26,161,27],[162,26,162,27],[163,26,163,27],[164,26,164,27]]}
[null,{"$f":"Ferry!B1","v":"Ferry (Select One Below)"},{"$f":"CONCATENATE(\" \",\"--BREAKDOWN WORKSHEET - SUBCONSULTANT 5 -- ENTER WORKHOURS\")","v":" --BREAKDOWN WORKSHEET - SUBCONSULTANT 5 -- ENTER WORKHOURS"},null,null,null,null,null,null,null,null,null,null,null,null,null,null,null,null,null,null,null,null,null,null,null,null,null,null,null,"Ferry (Select One Below)"]
[null,null,null,null,null,null,null,null,null,null,null,null,null,null,null,null,null,null,null,null,null,null,null,null,null,null,null,null,null,null,"Marine Construction"]
["PROJECT DESCRIPTION: ",{"$f":"PROJECT.DESCRIPTION","v":0},null,null,null,"FIRM:  ",{"$f":"FERRY.SUB5_CONSULTANT_NAME","v":"CONSULTANT NAME"},null,"TASK ORDER NUMBER:",null,{"$f":"TASK.ORDER.NUMBER","v":0},null,"DATE PREPARED:",{"$f":"IF(SCOPE.MANDAY.ESTIMATE.PREPARED.BY.DATE=\"\",\"\",SCOPE.MANDAY.ESTIMATE.PREPARED.BY.DATE)","v":""},null,null,null,null,null,null,null,null,null,null,null,null,null,null,null,null,"Vessel Design"]
["PREPARED BY:  ",{"$f":"IF(SCOPE.MANDAY.ESTIMATE.PREPARED.BY=\"\",\"\",SCOPE.MANDAY.ESTIMATE.PREPARED.BY)","v":""},null,null,null,"TIP NUMBER:",{"$f":"TIP.NUMBER","v":0},null,"WBS NUMBER:",null,{"$f":"WBS.NUMBER","v":""},null,"REVISION DATE:",{"$f":"IF(SCOPE.MANDAY.ESTIMATE.APPROVED.BY.DATE=\"\",\"\",SCOPE.MANDAY.ESTIMATE.APPROVED.BY.DATE)","v":""}]
[null,null,null,"ESTIMATED WORKHOURS"]
[null,null,"EMPLOYEE NAMES",{"$f":"IF('PEF CLASSIFICATION SHEET'!D1756=\"\",\"\",LEFT('PEF CLASSIFICATION SHEET'!D1756,4))","v":""},{"$f":"IF('PEF CLASSIFICATION SHEET'!D1757=\"\",\"\",LEFT('PEF CLASSIFICATION SHEET'!D1757,4))","v":""},{"$f":"IF('PEF CLASSIFICATION SHEET'!D1758=\"\",\"\",LEFT('PEF CLASSIFICATION SHEET'!D1758,4))","v":""},{"$f":"IF('PEF CLASSIFICATION SHEET'!D1759=\"\",\"\",LEFT('PEF CLASSIFICATION SHEET'!D1759,4))","v":""},{"$f":"IF('PEF CLASSIFICATION SHEET'!D1760=\"\",\"\",LEFT('PEF CLASSIFICATION SHEET'!D1760,4))","v":""},{"$f":"IF('PEF CLASSIFICATION SHEET'!D1761=\"\",\"\",LEFT('PEF CLASSIFICATION SHEET'!D1761,4))","v":""},{"$f":"IF('PEF CLASSIFICATION SHEET'!D1762=\"\",\"\",LEFT('PEF CLASSIFICATION SHEET'!D1762,4))","v":""},{"$f":"IF('PEF CLASSIFICATION SHEET'!D1763=\"\",\"\",LEFT('PEF CLASSIFICATION SHEET'!D1763,4))","v":""},{"$f":"IF('PEF CLASSIFICATION SHEET'!D1764=\"\",\"\",LEFT('PEF CLASSIFICATION SHEET'!D1764,4))","v":""},{"$f":"IF('PEF CLASSIFICATION SHEET'!D1765=\"\",\"\",LEFT('PEF CLASSIFICATION SHEET'!D1765,4))","v":""},{"$f":"IF('PEF CLASSIFICATION SHEET'!D1766=\"\",\"\",LEFT('PEF CLASSIFICATION SHEET'!D1766,4))","v":""},{"$f":"IF('PEF CLASSIFICATION SHEET'!D1767=\"\",\"\",LEFT('PEF CLASSIFICATION SHEET'!D1767,4))","v":""},{"$f":"IF('PEF CLASSIFICATION SHEET'!D1768=\"\",\"\",LEFT('PEF CLASSIFICATION SHEET'!D1768,4))","v":""},{"$f":"IF('PEF CLASSIFICATION SHEET'!D1769=\"\",\"\",LEFT('PEF CLASSIFICATION SHEET'!D1769,4))","v":""},{"$f":"IF('PEF CLASSIFICATION SHEET'!D1770=\"\",\"\",LEFT('PEF CLASSIFICATION SHEET'!D1770,4))","v":""},{"$f":"IF('PEF CLASSIFICATION SHEET'!D1771=\"\",\"\",LEFT('PEF CLASSIFICATION SHEET'!D1771,4))","v":""},{"$f":"IF('PEF CLASSIFICATION SHEET'!D1772=\"\",\"\",LEFT('PEF CLASSIFICATION SHEET'!D1772,4))","v":""},{"$f":"IF('PEF CLASSIFICATION SHEET'!D1773=\"\",\"\",LEFT('PEF CLASSIFICATION SHEET'!D1773,4))","v":""},{"$f":"IF('PEF CLASSIFICATION SHEET'!D1774=\"\",\"\",LEFT('PEF CLASSIFICATION SHEET'!D1774,4))","v":""},{"$f":"IF('PEF CLASSIFICATION SHEET'!D1775=\"\",\"\",LEFT('PEF CLASSIFICATION SHEET'!D1775,4))","v":""}]
[null,null,null,{"$f":"IF('PEF CLASSIFICATION SHEET'!C1756=\"\",\"\",'PEF CLASSIFICATION SHEET'!C1756)","v":""},{"$f":"IF('PEF CLASSIFICATION SHEET'!C1757=\"\",\"\",'PEF CLASSIFICATION SHEET'!C1757)","v":""},{"$f":"IF('PEF CLASSIFICATION SHEET'!C1758=\"\",\"\",'PEF CLASSIFICATION SHEET'!C1758)","v":""},{"$f":"IF('PEF CLASSIFICATION SHEET'!C1759=\"\",\"\",'PEF CLASSIFICATION SHEET'!C1759)","v":""},{"$f":"IF('PEF CLASSIFICATION SHEET'!C1760=\"\",\"\",'PEF CLASSIFICATION SHEET'!C1760)","v":""},{"$f":"IF('PEF CLASSIFICATION SHEET'!C1761=\"\",\"\",'PEF CLASSIFICATION SHEET'!C1761)","v":""},{"$f":"IF('PEF CLASSIFICATION SHEET'!C1762=\"\",\"\",'PEF CLASSIFICATION SHEET'!C1762)","v":""},{"$f":"IF('PEF CLASSIFICATION SHEET'!C1763=\"\",\"\",'PEF CLASSIFICATION SHEET'!C1763)","v":""},{"$f":"IF('PEF CLASSIFICATION SHEET'!C1764=\"\",\"\",'PEF CLASSIFICATION SHEET'!C1764)","v":""},{"$f":"IF('PEF CLASSIFICATION SHEET'!C1765=\"\",\"\",'PEF CLASSIFICATION SHEET'!C1765)","v":""},{"$f":"IF('PEF CLASSIFICATION SHEET'!C1766=\"\",\"\",'PEF CLASSIFICATION SHEET'!C1766)","v":""},{"$f":"IF('PEF CLASSIFICATION SHEET'!C1767=\"\",\"\",'PEF CLASSIFICATION SHEET'!C1767)","v":""},{"$f":"IF('PEF CLASSIFICATION SHEET'!C1768=\"\",\"\",'PEF CLASSIFICATION SHEET'!C1768)","v":""},{"$f":"IF('PEF CLASSIFICATION SHEET'!C1769=\"\",\"\",'PEF CLASSIFICATION SHEET'!C1769)","v":""},{"$f":"IF('PEF CLASSIFICATION SHEET'!C1770=\"\",\"\",'PEF CLASSIFICATION SHEET'!C1770)","v":""},{"$f":"IF('PEF CLASSIFICATION SHEET'!C1771=\"\",\"\",'PEF CLASSIFICATION SHEET'!C1771)","v":""},{"$f":"IF('PEF CLASSIFICATION SHEET'!C1772=\"\",\"\",'PEF CLASSIFICATION SHEET'!C1772)","v":""},{"$f":"IF('PEF CLASSIFICATION SHEET'!C1773=\"\",\"\",'PEF CLASSIFICATION SHEET'!C1773)","v":""},{"$f":"IF('PEF CLASSIFICATION SHEET'!C1774=\"\",\"\",'PEF CLASSIFICATION SHEET'!C1774)","v":""},{"$f":"IF('PEF CLASSIFICATION SHEET'!C1775=\"\",\"\",'PEF CLASSIFICATION SHEET'!C1775)","v":""},"SUB-","%","PEF"]
[null,null,null,null,null,null,null,null,null,null,null,null,null,null,null,null,null,null,null,null,null,null,null,"TOTAL","OF","ESTIMATE"]
["TASK","TASK DESCRIPTION","CLASSIFICATION",null,null,null,null,null,null,null,null,null,null,null,null,null,null,null,null,null,null,null,null,null,"PROJECT",null,"COMMENTS"]
["NO."]
[1,"Marine Vessel Design",null,null,null,null,null,null,null,null,null,null,null,null,null,null,null,null,null,null,null,null,null,{"$f":"IF(B11=\"\",0,IF((SUM(D12:W54)=0),SUM(D11:W11),\"\"))","v":0},{"$f":"IF(X11=\"\",\"\",SUM((X11/$X$274)))","v":{"$error":"#DIV/0!"}}]
[null,null,null,null,null,null,null,null,null,null,null,null,null,null,null,null,null,null,null,null,null,null,null,{"$f":"IF(B12=\"\",0,IF((SUM(D12:W12)=0),0,SUM(D12:W12)))","v":0},{"$error":"#DIV/0!"}]
[null,null,null,null,null,null,null,null,null,null,null,null,null,null,null,null,null,null,null,null,null,null,null,0,{"$error":"#DIV/0!"}]
[null,null,null,null,null,null,null,null,null,null,null,null,null,null,null,null,null,null,null,null,null,null,null,0,{"$error":"#DIV/0!"}]
[null,null,null,null,null,null,null,null,null,null,null,null,null,null,null,null,null,null,null,null,null,null,null,0,{"$error":"#DIV/0!"}]
[null,null,null,null,null,null,null,null,null,null,null,null,null,null,null,null,null,null,null,null,null,null,null,0,{"$error":"#DIV/0!"}]
[null,null,null,null,null,null,null,null,null,null,null,null,null,null,null,null,null,null,null,null,null,null,null,0,{"$error":"#DIV/0!"}]
[null,null,null,null,null,null,null,null,null,null,null,null,null,null,null,null,null,null,null,null,null,null,null,0,{"$error":"#DIV/0!"}]
[null,null,null,null,null,null,null,null,null,null,null,null,null,null,null,null,null,null,null,null,null,null,null,0,{"$error":"#DIV/0!"}]
[null,null,null,null,null,null,null,null,null,null,null,null,null,null,null,null,null,null,null,null,null,null,null,{"$f":"IF(B20=\"\",0,IF((SUM(D20:W20)=0),0,SUM(D20:W20)))","v":0},{"$error":"#DIV/0!"}]
[null,null,null,null,null,null,null,null,null,null,null,null,null,null,null,null,null,null,null,null,null,null,null,{"$f":"IF(B21=\"\",0,IF((SUM(D21:W21)=0),0,SUM(D21:W21)))","v":0},{"$error":"#DIV/0!"}]
[null,"Planning and Coordination Meetings",null,null,null,null,null,null,null,null,null,null,null,null,null,null,null,null,null,null,null,null,null,{"$f":"IF(B22=\"\",0,IF((SUM(D23:W32)=0),SUM(D22:W22),\"\"))","v":0},{"$error":"#DIV/0!"}]
[null,null,null,null,null,null,null,null,null,null,null,null,null,null,null,null,null,null,null,null,null,null,null,{"$f":"IF(B23=\"\",0,IF((SUM(D23:W23)=0),0,SUM(D23:W23)))","v":0},{"$error":"#DIV/0!"}]
[null,null,null,null,null,null,null,null,null,null,null,null,null,null,null,null,null,null,null,null,null,null,null,0,{"$error":"#DIV/0!"}]
[null,null,null,null,null,null,null,null,null,null,null,null,null,null,null,null,null,null,null,null,null,null,null,0,{"$error":"#DIV/0!"}]
[null,null,null,null,null,null,null,null,null,null,null,null,null,null,null,null,null,null,null,null,null,null,null,0,{"$error":"#DIV/0!"}]
[null,null,null,null,null,null,null,null,null,null,null,null,null,null,null,null,null,null,null,null,null,null,null,0,{"$error":"#DIV/0!"}]
[null,null,null,null,null,null,null,null,null,null,null,null,null,null,null,null,null,null,null,null,null,null,null,0,{"$error":"#DIV/0!"}]
[null,null,null,null,null,null,null,null,null,null,null,null,null,null,null,null,null,null,null,null,null,null,null,0,{"$error":"#DIV/0!"}]
[null,null,null,null,null,null,null,null,null,null,null,null,null,null,null,null,null,null,null,null,null,null,null,0,{"$error":"#DIV/0!"}]
[null,null,null,null,null,null,null,null,null,null,null,null,null,null,null,null,null,null,null,null,null,null,null,{"$f":"IF(B31=\"\",0,IF((SUM(D31:W31)=0),0,SUM(D31:W31)))","v":0},{"$error":"#DIV/0!"}]
[null,null,null,null,null,null,null,null,null,null,null,null,null,null,null,null,null,null,null,null,null,null,null,{"$f":"IF(B32=\"\",0,IF((SUM(D32:W32)=0),0,SUM(D32:W32)))","v":0},{"$error":"#DIV/0!"}]
[null,"Review and Interviews\n**Review can apply to requirements (USC CFR, State policy) generally study related\n**Review can also apply to schematics / blue prints generally design related",null,null,null,null,null,null,null,null,null,null,null,null,null,null,null,null,null,null,null,null,null,{"$f":"IF(B33=\"\",0,IF((SUM(D34:W43)=0),SUM(D33:W33),\"\"))","v":0},{"$error":"#DIV/0!"}]
[null,null,null,null,null,null,null,null,null,null,null,null,null,null,null,null,null,null,null,null,null,null,null,0,{"$error":"#DIV/0!"}]
[null,null,null,null,null,null,null,null,null,null,null,null,null,null,null,null,null,null,null,null,null,null,null,0,{"$error":"#DIV/0!"}]
[null,null,null,null,null,null,null,null,null,null,null,null,null,null,null,null,null,null,null,null,null,null,null,{"$f":"IF(B36=\"\",0,IF((SUM(D36:W36)=0),0,SUM(D36:W36)))","v":0},{"$error":"#DIV/0!"}]
[null,null,null,null,null,null,null,null,null,null,null,null,null,null,null,null,null,null,null,null,null,null,null,0,{"$error":"#DIV/0!"}]
[null,null,null,null,null,null,null,null,null,null,null,null,null,null,null,null,null,null,null,null,null,null,null,0,{"$error":"#DIV/0!"}]
[null,null,null,null,null,null,null,null,null,null,null,null,null,null,null,null,null,null,null,null,null,null,null,0,{"$error":"#DIV/0!"}]
[null,null,null,null,null,null,null,null,null,null,null,null,null,null,null,null,null,null,null,null,null,null,null,0,{"$error":"#DIV/0!"}]
[null,null,null,null,null,null,null,null,null,null,null,null,null,null,null,null,null,null,null,null,null,null,null,0,{"$error":"#DIV/0!"}]
[null,null,null,null,null,null,null,null,null,null,null,null,null,null,null,null,null,null,null,null,null,null,null,0,{"$error":"#DIV/0!"}]
[null,null,null,null,null,null,null,null,null,null,null,null,null,null,null,null,null,null,null,null,null,null,null,0,{"$error":"#DIV/0!"}]
[null,"Reporting and Presentation",null,null,null,null,null,null,null,null,null,null,null,null,null,null,null,null,null,null,null,null,null,{"$f":"IF(B44=\"\",0,IF((SUM(D45:W54)=0),SUM(D44:W44),\"\"))","v":0},{"$error":"#DIV/0!"}]
[null,null,null,null,null,null,null,null,null,null,null,null,null,null,null,null,null,null,null,null,null,null,null,0,{"$error":"#DIV/0!"}]
[null,null,null,null,null,null,null,null,null,null,null,null,null,null,null,null,null,null,null,null,null,null,null,0,{"$error":"#DIV/0!"}]
[null,null,null,null,null,null,null,null,null,null,null,null,null,null,null,null,null,null,null,null,null,null,null,0,{"$error":"#DIV/0!"}]
[null,null,null,null,null,null,null,null,null,null,null,null,null,null,null,null,null,null,null,null,null,null,null,0,{"$error":"#DIV/0!"}]
[null,null,null,null,null,null,null,null,null,null,null,null,null,null,null,null,null,null,null,null,null,null,null,0,{"$error":"#DIV/0!"}]
[null,null,null,null,null,null,null,null,null,null,null,null,null,null,null,null,null,null,null,null,null,null,null,0,{"$error":"#DIV/0!"}]
[null,null,null,null,null,null,null,null,null,null,null,null,null,null,null,null,null,null,null,null,null,null,null,0,{"$error":"#DIV/0!"}]
[null,null,null,null,null,null,null,null,null,null,null,null,null,null,null,null,null,null,null,null,null,null,null,0,{"$error":"#DIV/0!"}]
[null,null,null,null,null,null,null,null,null,null,null,null,null,null,null,null,null,null,null,null,null,null,null,0,{"$error":"#DIV/0!"}]
[null,null,null,null,null,null,null,null,null,null,null,null,null,null,null,null,null,null,null,null,null,null,null,0,{"$error":"#DIV/0!"}]
[2,"Marine Vessel Maintenance Design",null,null,null,null,null,null,null,null,null,null,null,null,null,null,null,null,null,null,null,null,null,{"$f":"IF(B55=\"\",0,IF((SUM(D56:W97)=0),SUM(D55:W55),\"\"))","v":0},{"$error":"#DIV/0!"}]
[null,null,null,null,null,null,null,null,null,null,null,null,null,null,null,null,null,null,null,null,null,null,null,{"$f":"IF(B56=\"\",0,IF((SUM(D56:W56)=0),0,SUM(D56:W56)))","v":0},{"$error":"#DIV/0!"}]
[null,null,null,null,null,null,null,null,null,null,null,null,null,null,null,null,null,null,null,null,null,null,null,0,{"$error":"#DIV/0!"}]
[null,null,null,null,null,null,null,null,null,null,null,null,null,null,null,null,null,null,null,null,null,null,null,0,{"$error":"#DIV/0!"}]
[null,null,null,null,null,null,null,null,null,null,null,null,null,null,null,null,null,null,null,null,null,null,null,0,{"$error":"#DIV/0!"}]
[null,null,null,null,null,null,null,null,null,null,null,null,null,null,null,null,null,null,null,null,null,null,null,0,{"$error":"#DIV/0!"}]
[null,null,null,null,null,null,null,null,null,null,null,null,null,null,null,null,null,null,null,null,null,null,null,0,{"$error":"#DIV/0!"}]
[null,null,null,null,null,null,null,null,null,null,null,null,null,null,null,null,null,null,null,null,null,null,null,0,{"$error":"#DIV/0!"}]
[null,null,null,null,null,null,null,null,null,null,null,null,null,null,null,null,null,null,null,null,null,null,null,0,{"$error":"#DIV/0!"}]
[null,null,null,null,null,null,null,null,null,null,null,null,null,null,null,null,null,null,null,null,null,null,null,{"$f":"IF(B64=\"\",0,IF((SUM(D64:W64)=0),0,SUM(D64:W64)))","v":0},{"$error":"#DIV/0!"}]
[null,null,null,null,null,null,null,null,null,null,null,null,null,null,null,null,null,null,null,null,null,null,null,{"$f":"IF(B65=\"\",0,IF((SUM(D65:W65)=0),0,SUM(D65:W65)))","v":0},{"$error":"#DIV/0!"}]
[null,"Planning and Coordination Meetings",null,null,null,null,null,null,null,null,null,null,null,null,null,null,null,null,null,null,null,null,null,{"$f":"IF(B66=\"\",0,IF((SUM(D67:W76)=0),SUM(D66:W66),\"\"))","v":0},{"$error":"#DIV/0!"}]
[null,null,null,null,null,null,null,null,null,null,null,null,null,null,null,null,null,null,null,null,null,null,null,{"$f":"IF(B67=\"\",0,IF((SUM(D67:W67)=0),0,SUM(D67:W67)))","v":0},{"$error":"#DIV/0!"}]
[null,null,null,null,null,null,null,null,null,null,null,null,null,null,null,null,null,null,null,null,null,null,null,0,{"$error":"#DIV/0!"}]
[null,null,null,null,null,null,null,null,null,null,null,null,null,null,null,null,null,null,null,null,null,null,null,0,{"$error":"#DIV/0!"}]
[null,null,null,null,null,null,null,null,null,null,null,null,null,null,null,null,null,null,null,null,null,null,null,0,{"$error":"#DIV/0!"}]
[null,null,null,null,null,null,null,null,null,null,null,null,null,null,null,null,null,null,null,null,null,null,null,0,{"$error":"#DIV/0!"}]
[null,null,null,null,null,null,null,null,null,null,null,null,null,null,null,null,null,null,null,null,null,null,null,0,{"$error":"#DIV/0!"}]
[null,null,null,null,null,null,null,null,null,null,null,null,null,null,null,null,null,null,null,null,null,null,null,0,{"$error":"#DIV/0!"}]
[null,null,null,null,null,null,null,null,null,null,null,null,null,null,null,null,null,null,null,null,null,null,null,0,{"$error":"#DIV/0!"}]
[null,null,null,null,null,null,null,null,null,null,null,null,null,null,null,null,null,null,null,null,null,null,null,{"$f":"IF(B75=\"\",0,IF((SUM(D75:W75)=0),0,SUM(D75:W75)))","v":0},{"$f":"IF(X75=\"\",\"\",SUM((X75/$X$274)))","v":{"$error":"#DIV/0!"}}]
[null,null,null,null,null,null,null,null,null,null,null,null,null,null,null,null,null,null,null,null,null,null,null,{"$f":"IF(B76=\"\",0,IF((SUM(D76:W76)=0),0,SUM(D76:W76)))","v":0},{"$error":"#DIV/0!"}]
[null,"Review and Interviews\n**Review can apply to requirements (USC CFR, State policy) generally study related\n**Review can also apply to schematics / blue prints generally design related",null,null,null,null,null,null,null,null,null,null,null,null,null,null,null,null,null,null,null,null,null,{"$f":"IF(B77=\"\",0,IF((SUM(D78:W87)=0),SUM(D77:W77),\"\"))","v":0},{"$error":"#DIV/0!"}]
[null,null,null,null,null,null,null,null,null,null,null,null,null,null,null,null,null,null,null,null,null,null,null,{"$f":"IF(B78=\"\",0,IF((SUM(D78:W78)=0),0,SUM(D78:W78)))","v":0},{"$error":"#DIV/0!"}]
[null,null,null,null,null,null,null,null,null,null,null,null,null,null,null,null,null,null,null,null,null,null,null,0,{"$error":"#DIV/0!"}]
[null,null,null,null,null,null,null,null,null,null,null,null,null,null,null,null,null,null,null,null,null,null,null,0,{"$error":"#DIV/0!"}]
[null,null,null,null,null,null,null,null,null,null,null,null,null,null,null,null,null,null,null,null,null,null,null,0,{"$error":"#DIV/0!"}]
[null,null,null,null,null,null,null,null,null,null,null,null,null,null,null,null,null,null,null,null,null,null,null,0,{"$error":"#DIV/0!"}]
[null,null,null,null,null,null,null,null,null,null,null,null,null,null,null,null,null,null,null,null,null,null,null,0,{"$error":"#DIV/0!"}]
[null,null,null,null,null,null,null,null,null,null,null,null,null,null,null,null,null,null,null,null,null,null,null,0,{"$error":"#DIV/0!"}]
[null,null,null,null,null,null,null,null,null,null,null,null,null,null,null,null,null,null,null,null,null,null,null,0,{"$error":"#DIV/0!"}]
[null,null,null,null,null,null,null,null,null,null,null,null,null,null,null,null,null,null,null,null,null,null,null,0,{"$error":"#DIV/0!"}]
[null,null,null,null,null,null,null,null,null,null,null,null,null,null,null,null,null,null,null,null,null,null,null,0,{"$error":"#DIV/0!"}]
[null,"Reporting and Presentation",null,null,null,null,null,null,null,null,null,null,null,null,null,null,null,null,null,null,null,null,null,{"$f":"IF(B88=\"\",0,IF((SUM(D89:W98)=0),SUM(D88:W88),\"\"))","v":0},{"$error":"#DIV/0!"}]
[null,null,null,null,null,null,null,null,null,null,null,null,null,null,null,null,null,null,null,null,null,null,null,{"$f":"IF(B89=\"\",0,IF((SUM(D89:W89)=0),0,SUM(D89:W89)))","v":0},{"$error":"#DIV/0!"}]
[null,null,null,null,null,null,null,null,null,null,null,null,null,null,null,null,null,null,null,null,null,null,null,0,{"$error":"#DIV/0!"}]
[null,null,null,null,null,null,null,null,null,null,null,null,null,null,null,null,null,null,null,null,null,null,null,0,{"$error":"#DIV/0!"}]
[null,null,null,null,null,null,null,null,null,null,null,null,null,null,null,null,null,null,null,null,null,null,null,0,{"$error":"#DIV/0!"}]
[null,null,null,null,null,null,null,null,null,null,null,null,null,null,null,null,null,null,null,null,null,null,null,0,{"$error":"#DIV/0!"}]
[null,null,null,null,null,null,null,null,null,null,null,null,null,null,null,null,null,null,null,null,null,null,null,0,{"$error":"#DIV/0!"}]
[null,null,null,null,null,null,null,null,null,null,null,null,null,null,null,null,null,null,null,null,null,null,null,0,{"$error":"#DIV/0!"}]
[null,null,null,null,null,null,null,null,null,null,null,null,null,null,null,null,null,null,null,null,null,null,null,0,{"$error":"#DIV/0!"}]
[null,null,null,null,null,null,null,null,null,null,null,null,null,null,null,null,null,null,null,null,null,null,null,0,{"$error":"#DIV/0!"}]
[3,"Terminal Assets Design",null,null,null,null,null,null,null,null,null,null,null,null,null,null,null,null,null,null,null,null,null,{"$f":"IF(B98=\"\",0,IF((SUM(D99:W141)=0),SUM(D98:W98),\"\"))","v":0},{"$error":"#DIV/0!"}]
[null,null,null,null,null,null,null,null,null,null,null,null,null,null,null,null,null,null,null,null,null,null,null,{"$f":"IF(B99=\"\",0,IF((SUM(D99:W99)=0),0,SUM(D99:W99)))","v":0},{"$error":"#DIV/0!"}]
[null,null,null,null,null,null,null,null,null,null,null,null,null,null,null,null,null,null,null,null,null,null,null,0,{"$error":"#DIV/0!"}]
[null,null,null,null,null,null,null,null,null,null,null,null,null,null,null,null,null,null,null,null,null,null,null,0,{"$error":"#DIV/0!"}]
[null,null,null,null,null,null,null,null,null,null,null,null,null,null,null,null,null,null,null,null,null,null,null,0,{"$error":"#DIV/0!"}]
[null,null,null,null,null,null,null,null,null,null,null,null,null,null,null,null,null,null,null,null,null,null,null,0,{"$error":"#DIV/0!"}]
[null,null,null,null,null,null,null,null,null,null,null,null,null,null,null,null,null,null,null,null,null,null,null,0,{"$error":"#DIV/0!"}]
[null,null,null,null,null,null,null,null,null,null,null,null,null,null,null,null,null,null,null,null,null,null,null,0,{"$error":"#DIV/0!"}]
[null,null,null,null,null,null,null,null,null,null,null,null,null,null,null,null,null,null,null,null,null,null,null,0,{"$error":"#DIV/0!"}]
[null,null,null,null,null,null,null,null,null,null,null,null,null,null,null,null,null,null,null,null,null,null,null,{"$f":"IF(B107=\"\",0,IF((SUM(D107:W107)=0),0,SUM(D107:W107)))","v":0},{"$error":"#DIV/0!"}]
[null,null,null,null,null,null,null,null,null,null,null,null,null,null,null,null,null,null,null,null,null,null,null,{"$f":"IF(B108=\"\",0,IF((SUM(D108:W108)=0),0,SUM(D108:W108)))","v":0},{"$error":"#DIV/0!"}]
[null,"Planning and Coordination Meetings",null,null,null,null,null,null,null,null,null,null,null,null,null,null,null,null,null,null,null,null,null,{"$f":"IF(B109=\"\",0,IF((SUM(D110:W119)=0),SUM(D109:W109),\"\"))","v":0},{"$error":"#DIV/0!"}]
[null,null,null,null,null,null,null,null,null,null,null,null,null,null,null,null,null,null,null,null,null,null,null,{"$f":"IF(B110=\"\",0,IF((SUM(D110:W110)=0),0,SUM(D110:W110)))","v":0},{"$error":"#DIV/0!"}]
[null,null,null,null,null,null,null,null,null,null,null,null,null,null,null,null,null,null,null,null,null,null,null,0,{"$error":"#DIV/0!"}]
[null,null,null,null,null,null,null,null,null,null,null,null,null,null,null,null,null,null,null,null,null,null,null,0,{"$error":"#DIV/0!"}]
[null,null,null,null,null,null,null,null,null,null,null,null,null,null,null,null,null,null,null,null,null,null,null,0,{"$error":"#DIV/0!"}]
[null,null,null,null,null,null,null,null,null,null,null,null,null,null,null,null,null,null,null,null,null,null,null,0,{"$error":"#DIV/0!"}]
[null,null,null,null,null,null,null,null,null,null,null,null,null,null,null,null,null,null,null,null,null,null,null,0,{"$error":"#DIV/0!"}]
[null,null,null,null,null,null,null,null,null,null,null,null,null,null,null,null,null,null,null,null,null,null,null,0,{"$error":"#DIV/0!"}]
[null,null,null,null,null,null,null,null,null,null,null,null,null,null,null,null,null,null,null,null,null,null,null,0,{"$error":"#DIV/0!"}]
[null,null,null,null,null,null,null,null,null,null,null,null,null,null,null,null,null,null,null,null,null,null,null,{"$f":"IF(B118=\"\",0,IF((SUM(D118:W118)=0),0,SUM(D118:W118)))","v":0},{"$error":"#DIV/0!"}]
[null,null,null,null,null,null,null,null,null,null,null,null,null,null,null,null,null,null,null,null,null,null,null,{"$f":"IF(B119=\"\",0,IF((SUM(D119:W119)=0),0,SUM(D119:W119)))","v":0},{"$error":"#DIV/0!"}]
[null,"Review and Interviews\n**Review can apply to requirements (USC CFR, State policy) generally study related\n**Review can also apply to schematics / blue prints generally design related",null,null,null,null,null,null,null,null,null,null,null,null,null,null,null,null,null,null,null,null,null,{"$f":"IF(B120=\"\",0,IF((SUM(D121:W130)=0),SUM(D120:W120),\"\"))","v":0},{"$error":"#DIV/0!"}]
[null,null,null,null,null,null,null,null,null,null,null,null,null,null,null,null,null,null,null,null,null,null,null,{"$f":"IF(B121=\"\",0,IF((SUM(D121:W121)=0),0,SUM(D121:W121)))","v":0},{"$error":"#DIV/0!"}]
[null,null,null,null,null,null,null,null,null,null,null,null,null,null,null,null,null,null,null,null,null,null,null,0,{"$error":"#DIV/0!"}]
[null,null,null,null,null,null,null,null,null,null,null,null,null,null,null,null,null,null,null,null,null,null,null,0,{"$error":"#DIV/0!"}]
[null,null,null,null,null,null,null,null,null,null,null,null,null,null,null,null,null,null,null,null,null,null,null,0,{"$error":"#DIV/0!"}]
[null,null,null,null,null,null,null,null,null,null,null,null,null,null,null,null,null,null,null,null,null,null,null,0,{"$error":"#DIV/0!"}]
[null,null,null,null,null,null,null,null,null,null,null,null,null,null,null,null,null,null,null,null,null,null,null,0,{"$error":"#DIV/0!"}]
[null,null,null,null,null,null,null,null,null,null,null,null,null,null,null,null,null,null,null,null,null,null,null,0,{"$error":"#DIV/0!"}]
[null,null,null,null,null,null,null,null,null,null,null,null,null,null,null,null,null,null,null,null,null,null,null,0,{"$error":"#DIV/0!"}]
[null,null,null,null,null,null,null,null,null,null,null,null,null,null,null,null,null,null,null,null,null,null,null,0,{"$error":"#DIV/0!"}]
[null,null,null,null,null,null,null,null,null,null,null,null,null,null,null,null,null,null,null,null,null,null,null,0,{"$error":"#DIV/0!"}]
[null,"Reporting and Presentation",null,null,null,null,null,null,null,null,null,null,null,null,null,null,null,null,null,null,null,null,null,{"$f":"IF(B131=\"\",0,IF((SUM(D132:W141)=0),SUM(D131:W131),\"\"))","v":0},{"$error":"#DIV/0!"}]
[null,null,null,null,null,null,null,null,null,null,null,null,null,null,null,null,null,null,null,null,null,null,null,{"$f":"IF(B132=\"\",0,IF((SUM(D132:W132)=0),0,SUM(D132:W132)))","v":0},{"$error":"#DIV/0!"}]
[null,null,null,null,null,null,null,null,null,null,null,null,null,null,null,null,null,null,null,null,null,null,null,0,{"$error":"#DIV/0!"}]
[null,null,null,null,null,null,null,null,null,null,null,null,null,null,null,null,null,null,null,null,null,null,null,0,{"$error":"#DIV/0!"}]
[null,null,null,null,null,null,null,null,null,null,null,null,null,null,null,null,null,null,null,null,null,null,null,0,{"$error":"#DIV/0!"}]
[null,null,null,null,null,null,null,null,null,null,null,null,null,null,null,null,null,null,null,null,null,null,null,0,{"$error":"#DIV/0!"}]
[null,null,null,null,null,null,null,null,null,null,null,null,null,null,null,null,null,null,null,null,null,null,null,0,{"$error":"#DIV/0!"}]
[null,null,null,null,null,null,null,null,null,null,null,null,null,null,null,null,null,null,null,null,null,null,null,0,{"$error":"#DIV/0!"}]
[null,null,null,null,null,null,null,null,null,null,null,null,null,null,null,null,null,null,null,null,null,null,null,0,{"$f":"IF(X139=\"\",\"\",SUM((X139/$X$274)))","v":{"$error":"#DIV/0!"}}]
[null,null,null,null,null,null,null,null,null,null,null,null,null,null,null,null,null,null,null,null,null,null,null,0,{"$error":"#DIV/0!"}]
[null,null,null,null,null,null,null,null,null,null,null,null,null,null,null,null,null,null,null,null,null,null,null,{"$f":"IF(B141=\"\",0,IF((SUM(D141:W141)=0),0,SUM(D141:W141)))","v":0},{"$error":"#DIV/0!"}]
[4,"Dredging, Planning and Permits",null,null,null,null,null,null,null,null,null,null,null,null,null,null,null,null,null,null,null,null,null,{"$f":"IF(B142=\"\",0,IF((SUM(D143:W185)=0),SUM(D142:W142),\"\"))","v":0},{"$error":"#DIV/0!"}]
[null,null,null,null,null,null,null,null,null,null,null,null,null,null,null,null,null,null,null,null,null,null,null,{"$f":"IF(B143=\"\",0,IF((SUM(D143:W143)=0),0,SUM(D143:W143)))","v":0},{"$error":"#DIV/0!"}]
[null,null,null,null,null,null,null,null,null,null,null,null,null,null,null,null,null,null,null,null,null,null,null,0,{"$error":"#DIV/0!"}]
[null,null,null,null,null,null,null,null,null,null,null,null,null,null,null,null,null,null,null,null,null,null,null,0,{"$error":"#DIV/0!"}]
[null,null,null,null,null,null,null,null,null,null,null,null,null,null,null,null,null,null,null,null,null,null,null,0,{"$error":"#DIV/0!"}]
[null,null,null,null,null,null,null,null,null,null,null,null,null,null,null,null,null,null,null,null,null,null,null,0,{"$error":"#DIV/0!"}]
[null,null,null,null,null,null,null,null,null,null,null,null,null,null,null,null,null,null,null,null,null,null,null,0,{"$error":"#DIV/0!"}]
[null,null,null,null,null,null,null,null,null,null,null,null,null,null,null,null,null,null,null,null,null,null,null,0,{"$error":"#DIV/0!"}]
[null,null,null,null,null,null,null,null,null,null,null,null,null,null,null,null,null,null,null,null,null,null,null,0,{"$error":"#DIV/0!"}]
[null,null,null,null,null,null,null,null,null,null,null,null,null,null,null,null,null,null,null,null,null,null,null,{"$f":"IF(B151=\"\",0,IF((SUM(D151:W151)=0),0,SUM(D151:W151)))","v":0},{"$error":"#DIV/0!"}]
[null,null,null,null,null,null,null,null,null,null,null,null,null,null,null,null,null,null,null,null,null,null,null,{"$f":"IF(B152=\"\",0,IF((SUM(D152:W152)=0),0,SUM(D152:W152)))","v":0},{"$error":"#DIV/0!"}]
[null,"Planning and Coordination Meetings",null,null,null,null,null,null,null,null,null,null,null,null,null,null,null,null,null,null,null,null,null,{"$f":"IF(B153=\"\",0,IF((SUM(D154:W163)=0),SUM(D153:W153),\"\"))","v":0},{"$error":"#DIV/0!"}]
[null,null,null,null,null,null,null,null,null,null,null,null,null,null,null,null,null,null,null,null,null,null,null,{"$f":"IF(B154=\"\",0,IF((SUM(D154:W154)=0),0,SUM(D154:W154)))","v":0},{"$error":"#DIV/0!"}]
[null,null,null,null,null,null,null,null,null,null,null,null,null,null,null,null,null,null,null,null,null,null,null,0,{"$error":"#DIV/0!"}]
[null,null,null,null,null,null,null,null,null,null,null,null,null,null,null,null,null,null,null,null,null,null,null,0,{"$error":"#DIV/0!"}]
[null,null,null,null,null,null,null,null,null,null,null,null,null,null,null,null,null,null,null,null,null,null,null,0,{"$error":"#DIV/0!"}]
[null,null,null,null,null,null,null,null,null,null,null,null,null,null,null,null,null,null,null,null,null,null,null,0,{"$error":"#DIV/0!"}]
[null,null,null,null,null,null,null,null,null,null,null,null,null,null,null,null,null,null,null,null,null,null,null,0,{"$error":"#DIV/0!"}]
[null,null,null,null,null,null,null,null,null,null,null,null,null,null,null,null,null,null,null,null,null,null,null,0,{"$error":"#DIV/0!"}]
[null,null,null,null,null,null,null,null,null,null,null,null,null,null,null,null,null,null,null,null,null,null,null,0,{"$error":"#DIV/0!"}]
[null,null,null,null,null,null,null,null,null,null,null,null,null,null,null,null,null,null,null,null,null,null,null,{"$f":"IF(B162=\"\",0,IF((SUM(D162:W162)=0),0,SUM(D162:W162)))","v":0},{"$error":"#DIV/0!"}]
[null,null,null,null,null,null,null,null,null,null,null,null,null,null,null,null,null,null,null,null,null,null,null,{"$f":"IF(B163=\"\",0,IF((SUM(D163:W163)=0),0,SUM(D163:W163)))","v":0},{"$error":"#DIV/0!"}]
[null,"Review and Interviews\n**Review can apply to requirements (USC CFR, State policy) generally study related\n**Review can also apply to schematics / blue prints generally design related",null,null,null,null,null,null,null,null,null,null,null,null,null,null,null,null,null,null,null,null,null,{"$f":"IF(B164=\"\",0,IF((SUM(D165:W174)=0),SUM(D164:W164),\"\"))","v":0},{"$error":"#DIV/0!"}]
[null,null,null,null,null,null,null,null,null,null,null,null,null,null,null,null,null,null,null,null,null,null,null,{"$f":"IF(B165=\"\",0,IF((SUM(D165:W165)=0),0,SUM(D165:W165)))","v":0},{"$error":"#DIV/0!"}]
[null,null,null,null,null,null,null,null,null,null,null,null,null,null,null,null,null,null,null,null,null,null,null,0,{"$error":"#DIV/0!"}]
[null,null,null,null,null,null,null,null,null,null,null,null,null,null,null,null,null,null,null,null,null,null,null,0,{"$error":"#DIV/0!"}]
[null,null,null,null,null,null,null,null,null,null,null,null,null,null,null,null,null,null,null,null,null,null,null,0,{"$error":"#DIV/0!"}]
[null,null,null,null,null,null,null,null,null,null,null,null,null,null,null,null,null,null,null,null,null,null,null,0,{"$error":"#DIV/0!"}]
[null,null,null,null,null,null,null,null,null,null,null,null,null,null,null,null,null,null,null,null,null,null,null,0,{"$error":"#DIV/0!"}]
[null,null,null,null,null,null,null,null,null,null,null,null,null,null,null,null,null,null,null,null,null,null,null,0,{"$error":"#DIV/0!"}]
[null,null,null,null,null,null,null,null,null,null,null,null,null,null,null,null,null,null,null,null,null,null,null,0,{"$error":"#DIV/0!"}]
[null,null,null,null,null,null,null,null,null,null,null,null,null,null,null,null,null,null,null,null,null,null,null,0,{"$error":"#DIV/0!"}]
[null,null,null,null,null,null,null,null,null,null,null,null,null,null,null,null,null,null,null,null,null,null,null,0,{"$error":"#DIV/0!"}]
[null,"Reporting and Presentation",null,null,null,null,null,null,null,null,null,null,null,null,null,null,null,null,null,null,null,null,null,{"$f":"IF(B175=\"\",0,IF((SUM(D176:W185)=0),SUM(D175:W175),\"\"))","v":0},{"$error":"#DIV/0!"}]
[null,null,null,null,null,null,null,null,null,null,null,null,null,null,null,null,null,null,null,null,null,null,null,{"$f":"IF(B176=\"\",0,IF((SUM(D176:W176)=0),0,SUM(D176:W176)))","v":0},{"$error":"#DIV/0!"}]
[null,null,null,null,null,null,null,null,null,null,null,null,null,null,null,null,null,null,null,null,null,null,null,0,{"$error":"#DIV/0!"}]
[null,null,null,null,null,null,null,null,null,null,null,null,null,null,null,null,null,null,null,null,null,null,null,0,{"$error":"#DIV/0!"}]
[null,null,null,null,null,null,null,null,null,null,null,null,null,null,null,null,null,null,null,null,null,null,null,0,{"$error":"#DIV/0!"}]
[null,null,null,null,null,null,null,null,null,null,null,null,null,null,null,null,null,null,null,null,null,null,null,0,{"$error":"#DIV/0!"}]
[null,null,null,null,null,null,null,null,null,null,null,null,null,null,null,null,null,null,null,null,null,null,null,0,{"$error":"#DIV/0!"}]
[null,null,null,null,null,null,null,null,null,null,null,null,null,null,null,null,null,null,null,null,null,null,null,0,{"$error":"#DIV/0!"}]
[null,null,null,null,null,null,null,null,null,null,null,null,null,null,null,null,null,null,null,null,null,null,null,0,{"$error":"#DIV/0!"}]
[null,null,null,null,null,null,null,null,null,null,null,null,null,null,null,null,null,null,null,null,null,null,null,0,{"$error":"#DIV/0!"}]
[null,null,null,null,null,null,null,null,null,null,null,null,null,null,null,null,null,null,null,null,null,null,null,0,{"$error":"#DIV/0!"}]
[5,"Vessel Asset Management",null,null,null,null,null,null,null,null,null,null,null,null,null,null,null,null,null,null,null,null,null,{"$f":"IF(B186=\"\",0,IF((SUM(D187:W229)=0),SUM(D186:W186),\"\"))","v":0},{"$error":"#DIV/0!"}]
[null,null,null,null,null,null,null,null,null,null,null,null,null,null,null,null,null,null,null,null,null,null,null,{"$f":"IF(B187=\"\",0,IF((SUM(D187:W187)=0),0,SUM(D187:W187)))","v":0},{"$error":"#DIV/0!"}]
[null,null,null,null,null,null,null,null,null,null,null,null,null,null,null,null,null,null,null,null,null,null,null,0,{"$error":"#DIV/0!"}]
[null,null,null,null,null,null,null,null,null,null,null,null,null,null,null,null,null,null,null,null,null,null,null,0,{"$error":"#DIV/0!"}]
[null,null,null,null,null,null,null,null,null,null,null,null,null,null,null,null,null,null,null,null,null,null,null,0,{"$error":"#DIV/0!"}]
[null,null,null,null,null,null,null,null,null,null,null,null,null,null,null,null,null,null,null,null,null,null,null,0,{"$error":"#DIV/0!"}]
[null,null,null,null,null,null,null,null,null,null,null,null,null,null,null,null,null,null,null,null,null,null,null,0,{"$error":"#DIV/0!"}]
[null,null,null,null,null,null,null,null,null,null,null,null,null,null,null,null,null,null,null,null,null,null,null,0,{"$error":"#DIV/0!"}]
[null,null,null,null,null,null,null,null,null,null,null,null,null,null,null,null,null,null,null,null,null,null,null,0,{"$error":"#DIV/0!"}]
[null,null,null,null,null,null,null,null,null,null,null,null,null,null,null,null,null,null,null,null,null,null,null,{"$f":"IF(B195=\"\",0,IF((SUM(D195:W195)=0),0,SUM(D195:W195)))","v":0},{"$error":"#DIV/0!"}]
[null,null,null,null,null,null,null,null,null,null,null,null,null,null,null,null,null,null,null,null,null,null,null,{"$f":"IF(B196=\"\",0,IF((SUM(D196:W196)=0),0,SUM(D196:W196)))","v":0},{"$error":"#DIV/0!"}]
[null,"Planning and Coordination Meetings",null,null,null,null,null,null,null,null,null,null,null,null,null,null,null,null,null,null,null,null,null,{"$f":"IF(B197=\"\",0,IF((SUM(D198:W207)=0),SUM(D197:W197),\"\"))","v":0},{"$error":"#DIV/0!"}]
[null,null,null,null,null,null,null,null,null,null,null,null,null,null,null,null,null,null,null,null,null,null,null,{"$f":"IF(B198=\"\",0,IF((SUM(D198:W198)=0),0,SUM(D198:W198)))","v":0},{"$error":"#DIV/0!"}]
[null,null,null,null,null,null,null,null,null,null,null,null,null,null,null,null,null,null,null,null,null,null,null,0,{"$error":"#DIV/0!"}]
[null,null,null,null,null,null,null,null,null,null,null,null,null,null,null,null,null,null,null,null,null,null,null,0,{"$error":"#DIV/0!"}]
[null,null,null,null,null,null,null,null,null,null,null,null,null,null,null,null,null,null,null,null,null,null,null,0,{"$error":"#DIV/0!"}]
[null,null,null,null,null,null,null,null,null,null,null,null,null,null,null,null,null,null,null,null,null,null,null,0,{"$error":"#DIV/0!"}]
[null,null,null,null,null,null,null,null,null,null,null,null,null,null,null,null,null,null,null,null,null,null,null,0,{"$f":"IF(X203=\"\",\"\",SUM((X203/$X$274)))","v":{"$error":"#DIV/0!"}}]
[null,null,null,null,null,null,null,null,null,null,null,null,null,null,null,null,null,null,null,null,null,null,null,0,{"$error":"#DIV/0!"}]
[null,null,null,null,null,null,null,null,null,null,null,null,null,null,null,null,null,null,null,null,null,null,null,0,{"$error":"#DIV/0!"}]
[null,null,null,null,null,null,null,null,null,null,null,null,null,null,null,null,null,null,null,null,null,null,null,{"$f":"IF(B206=\"\",0,IF((SUM(D206:W206)=0),0,SUM(D206:W206)))","v":0},{"$error":"#DIV/0!"}]
[null,null,null,null,null,null,null,null,null,null,null,null,null,null,null,null,null,null,null,null,null,null,null,{"$f":"IF(B207=\"\",0,IF((SUM(D207:W207)=0),0,SUM(D207:W207)))","v":0},{"$error":"#DIV/0!"}]
[null,"Review and Interviews\n**Review can apply to requirements (USC CFR, State policy) generally study related\n**Review can also apply to schematics / blue prints generally design related",null,null,null,null,null,null,null,null,null,null,null,null,null,null,null,null,null,null,null,null,null,{"$f":"IF(B208=\"\",0,IF((SUM(D209:W218)=0),SUM(D208:W208),\"\"))","v":0},{"$error":"#DIV/0!"}]
[null,null,null,null,null,null,null,null,null,null,null,null,null,null,null,null,null,null,null,null,null,null,null,{"$f":"IF(B209=\"\",0,IF((SUM(D209:W209)=0),0,SUM(D209:W209)))","v":0},{"$error":"#DIV/0!"}]
[null,null,null,null,null,null,null,null,null,null,null,null,null,null,null,null,null,null,null,null,null,null,null,0,{"$error":"#DIV/0!"}]
[null,null,null,null,null,null,null,null,null,null,null,null,null,null,null,null,null,null,null,null,null,null,null,0,{"$error":"#DIV/0!"}]
[null,null,null,null,null,null,null,null,null,null,null,null,null,null,null,null,null,null,null,null,null,null,null,0,{"$error":"#DIV/0!"}]
[null,null,null,null,null,null,null,null,null,null,null,null,null,null,null,null,null,null,null,null,null,null,null,0,{"$error":"#DIV/0!"}]
[null,null,null,null,null,null,null,null,null,null,null,null,null,null,null,null,null,null,null,null,null,null,null,0,{"$error":"#DIV/0!"}]
[null,null,null,null,null,null,null,null,null,null,null,null,null,null,null,null,null,null,null,null,null,null,null,0,{"$error":"#DIV/0!"}]
[null,null,null,null,null,null,null,null,null,null,null,null,null,null,null,null,null,null,null,null,null,null,null,0,{"$error":"#DIV/0!"}]
[null,null,null,null,null,null,null,null,null,null,null,null,null,null,null,null,null,null,null,null,null,null,null,0,{"$error":"#DIV/0!"}]
[null,null,null,null,null,null,null,null,null,null,null,null,null,null,null,null,null,null,null,null,null,null,null,0,{"$error":"#DIV/0!"}]
[null,"Reporting and Presentation",null,null,null,null,null,null,null,null,null,null,null,null,null,null,null,null,null,null,null,null,null,{"$f":"IF(B219=\"\",0,IF((SUM(D220:W229)=0),SUM(D219:W219),\"\"))","v":0},{"$error":"#DIV/0!"}]
[null,null,null,null,null,null,null,null,null,null,null,null,null,null,null,null,null,null,null,null,null,null,null,{"$f":"IF(B220=\"\",0,IF((SUM(D220:W220)=0),0,SUM(D220:W220)))","v":0},{"$error":"#DIV/0!"}]
[null,null,null,null,null,null,null,null,null,null,null,null,null,null,null,null,null,null,null,null,null,null,null,0,{"$error":"#DIV/0!"}]
[null,null,null,null,null,null,null,null,null,null,null,null,null,null,null,null,null,null,null,null,null,null,null,0,{"$error":"#DIV/0!"}]
[null,null,null,null,null,null,null,null,null,null,null,null,null,null,null,null,null,null,null,null,null,null,null,0,{"$error":"#DIV/0!"}]
[null,null,null,null,null,null,null,null,null,null,null,null,null,null,null,null,null,null,null,null,null,null,null,0,{"$error":"#DIV/0!"}]
[null,null,null,null,null,null,null,null,null,null,null,null,null,null,null,null,null,null,null,null,null,null,null,0,{"$error":"#DIV/0!"}]
[null,null,null,null,null,null,null,null,null,null,null,null,null,null,null,null,null,null,null,null,null,null,null,0,{"$error":"#DIV/0!"}]
[null,null,null,null,null,null,null,null,null,null,null,null,null,null,null,null,null,null,null,null,null,null,null,0,{"$error":"#DIV/0!"}]
[null,null,null,null,null,null,null,null,null,null,null,null,null,null,null,null,null,null,null,null,null,null,null,0,{"$error":"#DIV/0!"}]
[null,null,null,null,null,null,null,null,null,null,null,null,null,null,null,null,null,null,null,null,null,null,null,0,{"$error":"#DIV/0!"}]
[6,"OTHER TYPE (PLEASE KEY TYPE)",null,null,null,null,null,null,null,null,null,null,null,null,null,null,null,null,null,null,null,null,null,{"$f":"IF(B230=\"\",0,IF((SUM(D231:W273)=0),SUM(D230:W230),\"\"))","v":0},{"$error":"#DIV/0!"}]
[null,null,null,null,null,null,null,null,null,null,null,null,null,null,null,null,null,null,null,null,null,null,null,{"$f":"IF(B231=\"\",0,IF((SUM(D231:W231)=0),0,SUM(D231:W231)))","v":0},{"$error":"#DIV/0!"}]
[null,null,null,null,null,null,null,null,null,null,null,null,null,null,null,null,null,null,null,null,null,null,null,0,{"$error":"#DIV/0!"}]
[null,null,null,null,null,null,null,null,null,null,null,null,null,null,null,null,null,null,null,null,null,null,null,0,{"$error":"#DIV/0!"}]
[null,null,null,null,null,null,null,null,null,null,null,null,null,null,null,null,null,null,null,null,null,null,null,0,{"$error":"#DIV/0!"}]
[null,null,null,null,null,null,null,null,null,null,null,null,null,null,null,null,null,null,null,null,null,null,null,0,{"$error":"#DIV/0!"}]
[null,null,null,null,null,null,null,null,null,null,null,null,null,null,null,null,null,null,null,null,null,null,null,0,{"$error":"#DIV/0!"}]
[null,null,null,null,null,null,null,null,null,null,null,null,null,null,null,null,null,null,null,null,null,null,null,0,{"$error":"#DIV/0!"}]
[null,null,null,null,null,null,null,null,null,null,null,null,null,null,null,null,null,null,null,null,null,null,null,0,{"$error":"#DIV/0!"}]
[null,null,null,null,null,null,null,null,null,null,null,null,null,null,null,null,null,null,null,null,null,null,null,{"$f":"IF(B239=\"\",0,IF((SUM(D239:W239)=0),0,SUM(D239:W239)))","v":0},{"$error":"#DIV/0!"}]
[null,null,null,null,null,null,null,null,null,null,null,null,null,null,null,null,null,null,null,null,null,null,null,{"$f":"IF(B240=\"\",0,IF((SUM(D240:W240)=0),0,SUM(D240:W240)))","v":0},{"$error":"#DIV/0!"}]
[null,"Planning and Coordination Meetings",null,null,null,null,null,null,null,null,null,null,null,null,null,null,null,null,null,null,null,null,null,{"$f":"IF(B241=\"\",0,IF((SUM(D242:W251)=0),SUM(D241:W241),\"\"))","v":0},{"$error":"#DIV/0!"}]
[null,null,null,null,null,null,null,null,null,null,null,null,null,null,null,null,null,null,null,null,null,null,null,{"$f":"IF(B242=\"\",0,IF((SUM(D242:W242)=0),0,SUM(D242:W242)))","v":0},{"$error":"#DIV/0!"}]
[null,null,null,null,null,null,null,null,null,null,null,null,null,null,null,null,null,null,null,null,null,null,null,0,{"$error":"#DIV/0!"}]
[null,null,null,null,null,null,null,null,null,null,null,null,null,null,null,null,null,null,null,null,null,null,null,0,{"$error":"#DIV/0!"}]
[null,null,null,null,null,null,null,null,null,null,null,null,null,null,null,null,null,null,null,null,null,null,null,0,{"$error":"#DIV/0!"}]
[null,null,null,null,null,null,null,null,null,null,null,null,null,null,null,null,null,null,null,null,null,null,null,0,{"$error":"#DIV/0!"}]
[null,null,null,null,null,null,null,null,null,null,null,null,null,null,null,null,null,null,null,null,null,null,null,0,{"$error":"#DIV/0!"}]
[null,null,null,null,null,null,null,null,null,null,null,null,null,null,null,null,null,null,null,null,null,null,null,0,{"$error":"#DIV/0!"}]
[null,null,null,null,null,null,null,null,null,null,null,null,null,null,null,null,null,null,null,null,null,null,null,0,{"$error":"#DIV/0!"}]
[null,null,null,null,null,null,null,null,null,null,null,null,null,null,null,null,null,null,null,null,null,null,null,{"$f":"IF(B250=\"\",0,IF((SUM(D250:W250)=0),0,SUM(D250:W250)))","v":0},{"$error":"#DIV/0!"}]
[null,null,null,null,null,null,null,null,null,null,null,null,null,null,null,null,null,null,null,null,null,null,null,{"$f":"IF(B251=\"\",0,IF((SUM(D251:W251)=0),0,SUM(D251:W251)))","v":0},{"$error":"#DIV/0!"}]
[null,"Review and Interviews\n**Review can apply to requirements (USC CFR, State policy) generally study related\n**Review can also apply to schematics / blue prints generally design related",null,null,null,null,null,null,null,null,null,null,null,null,null,null,null,null,null,null,null,null,null,{"$f":"IF(B252=\"\",0,IF((SUM(D253:W262)=0),SUM(D252:W252),\"\"))","v":0},{"$error":"#DIV/0!"}]
[null,null,null,null,null,null,null,null,null,null,null,null,null,null,null,null,null,null,null,null,null,null,null,{"$f":"IF(B253=\"\",0,IF((SUM(D253:W253)=0),0,SUM(D253:W253)))","v":0},{"$error":"#DIV/0!"}]
[null,null,null,null,null,null,null,null,null,null,null,null,null,null,null,null,null,null,null,null,null,null,null,0,{"$error":"#DIV/0!"}]
[null,null,null,null,null,null,null,null,null,null,null,null,null,null,null,null,null,null,null,null,null,null,null,0,{"$error":"#DIV/0!"}]
[null,null,null,null,null,null,null,null,null,null,null,null,null,null,null,null,null,null,null,null,null,null,null,0,{"$error":"#DIV/0!"}]
[null,null,null,null,null,null,null,null,null,null,null,null,null,null,null,null,null,null,null,null,null,null,null,0,{"$error":"#DIV/0!"}]
[null,null,null,null,null,null,null,null,null,null,null,null,null,null,null,null,null,null,null,null,null,null,null,0,{"$error":"#DIV/0!"}]
[null,null,null,null,null,null,null,null,null,null,null,null,null,null,null,null,null,null,null,null,null,null,null,0,{"$error":"#DIV/0!"}]
[null,null,null,null,null,null,null,null,null,null,null,null,null,null,null,null,null,null,null,null,null,null,null,0,{"$error":"#DIV/0!"}]
[null,null,null,null,null,null,null,null,null,null,null,null,null,null,null,null,null,null,null,null,null,null,null,0,{"$error":"#DIV/0!"}]
[null,null,null,null,null,null,null,null,null,null,null,null,null,null,null,null,null,null,null,null,null,null,null,0,{"$error":"#DIV/0!"}]
[null,"Reporting and Presentation",null,null,null,null,null,null,null,null,null,null,null,null,null,null,null,null,null,null,null,null,null,{"$f":"IF(B263=\"\",0,IF((SUM(D264:W273)=0),SUM(D263:W263),\"\"))","v":0},{"$error":"#DIV/0!"}]
[null,null,null,null,null,null,null,null,null,null,null,null,null,null,null,null,null,null,null,null,null,null,null,{"$f":"IF(B264=\"\",0,IF((SUM(D264:W264)=0),0,SUM(D264:W264)))","v":0},{"$error":"#DIV/0!"}]
[null,null,null,null,null,null,null,null,null,null,null,null,null,null,null,null,null,null,null,null,null,null,null,0,{"$error":"#DIV/0!"}]
[null,null,null,null,null,null,null,null,null,null,null,null,null,null,null,null,null,null,null,null,null,null,null,0,{"$error":"#DIV/0!"}]
[null,null,null,null,null,null,null,null,null,null,null,null,null,null,null,null,null,null,null,null,null,null,null,0,{"$f":"IF(X267=\"\",\"\",SUM((X267/$X$274)))","v":{"$error":"#DIV/0!"}}]
[null,null,null,null,null,null,null,null,null,null,null,null,null,null,null,null,null,null,null,null,null,null,null,0,{"$error":"#DIV/0!"}]
[null,null,null,null,null,null,null,null,null,null,null,null,null,null,null,null,null,null,null,null,null,null,null,0,{"$error":"#DIV/0!"}]
[null,null,null,null,null,null,null,null,null,null,null,null,null,null,null,null,null,null,null,null,null,null,null,0,{"$error":"#DIV/0!"}]
[null,null,null,null,null,null,null,null,null,null,null,null,null,null,null,null,null,null,null,null,null,null,null,0,{"$error":"#DIV/0!"}]
[null,null,null,null,null,null,null,null,null,null,null,null,null,null,null,null,null,null,null,null,null,null,null,0,{"$error":"#DIV/0!"}]
[null,null,null,null,null,null,null,null,null,null,null,null,null,null,null,null,null,null,null,null,null,null,null,{"$f":"IF(B273=\"\",0,IF((SUM(D273:W273)=0),0,SUM(D273:W273)))","v":0},{"$error":"#DIV/0!"}]
[null,"TOTAL WORKHOURS/CATEGORY:",null,{"$f":"SUM(D11:D273)","v":0},0,0,0,0,0,0,0,0,0,0,0,0,0,0,0,0,0,0,0,0,{"$error":"#DIV/0!"},{"$f":"SUM(Z12:Z273)","v":0}]
[null,"TOTAL WORKDAYS/CATEGORY:",null,{"$f":"D274/8","v":0},{"$f":"E274/8","v":0},0,0,0,0,0,0,0,0,0,0,0,0,0,0,0,0,0,0]
[null,"HOURLY SALARY RATE:",null,{"$f":"'PEF CLASSIFICATION SHEET'!E1756","v":0},{"$f":"'PEF CLASSIFICATION SHEET'!E1757","v":0},{"$f":"'PEF CLASSIFICATION SHEET'!E1758","v":0},{"$f":"'PEF CLASSIFICATION SHEET'!E1759","v":0},{"$f":"'PEF CLASSIFICATION SHEET'!E1760","v":0},{"$f":"'PEF CLASSIFICATION SHEET'!E1761","v":0},{"$f":"'PEF CLASSIFICATION SHEET'!E1762","v":0},{"$f":"'PEF CLASSIFICATION SHEET'!E1763","v":0},{"$f":"'PEF CLASSIFICATION SHEET'!E1764","v":0},{"$f":"'PEF CLASSIFICATION SHEET'!E1765","v":0},{"$f":"'PEF CLASSIFICATION SHEET'!E1766","v":0},{"$f":"'PEF CLASSIFICATION SHEET'!E1767","v":0},{"$f":"'PEF CLASSIFICATION SHEET'!E1768","v":0},{"$f":"'PEF CLASSIFICATION SHEET'!E1769","v":0},{"$f":"'PEF CLASSIFICATION SHEET'!E1770","v":0},{"$f":"'PEF CLASSIFICATION SHEET'!E1771","v":0},{"$f":"'PEF CLASSIFICATION SHEET'!E1772","v":0},{"$f":"'PEF CLASSIFICATION SHEET'!E1773","v":0},{"$f":"'PEF CLASSIFICATION SHEET'!E1774","v":0},{"$f":"'PEF CLASSIFICATION SHEET'!E1775","v":0}]
[null,"RATES PER DAY:",null,{"$f":"D276*8","v":0},0,0,0,0,0,0,0,0,0,0,0,0,0,0,0,0,0,0,0]
[null,"PAYROLL BURDEN:",null,{"$f":"SUM(D274*D276)","v":0},{"$f":"SUM(E274*E276)","v":0},0,0,0,0,0,0,0,0,0,0,0,0,0,0,0,0,0,0]
[null,"TOTAL WORKDAYS:",null,{"$f":"SUM(D275:W275)","v":0}]
[null,"TOTAL PAYROLL BURDEN:",null,{"$f":"SUM(D278:W278)","v":0}]
[null,"AVERAGE COST PER HOUR:",null,{"$f":"SUM(D280/(D279*8))","v":{"$error":"#DIV/0!"}}]
[null,"GENERAL OVERHEAD:",{"$f":"FERRY.SUB5_CONSULTANT_OVERHEAD","v":0},{"$f":"SUM(D280*C282)","v":0}]
[null,"SUBTOTAL:",null,{"$f":"SUM(D280+D282)","v":0}]
[null,"COMPARATIVE FEE:",{"$f":"FERRY.SUB5_CONSULTANT_FEE","v":0},{"$f":"SUM(D283*C284)","v":0}]
[null,"FACILITIES COST OF CAPITAL:",{"$f":"FERRY.SUB5_CONSULTANT_COSTofCAPITAL","v":0},{"$f":"SUM(D280*C285)","v":0}]
[null,"TOTAL:",null,{"$f":"SUM(D283:D285)","v":0}]
[null,"DIRECT EXPENSES:",null,{"$f":"FERRY.SUB5_DIRECT_NONSALARY_TOTAL","v":0}]
[null,"FERRY GRAND TOTAL:",null,{"$f":"SUM(D286:D287)","v":0}]

{"sheet":"Ferry-Exp-Sub5","index":194,"n_rows":46,"n_cols":8,"rows_kept":46,"cut":false,"hidden":true,"merged":[[0,0,0,7],[1,3,1,7]]}
[{"$f":"CONCATENATE('Ferry-Sub5'!B1,\" \",\"--DIRECT EXPENSES - SUBCONSULTANT 5\")","v":"Ferry (Select One Below) --DIRECT EXPENSES - SUBCONSULTANT 5"}]
["TIP NUMBER",{"$f":"TIP.NUMBER","v":0},"FIRM:",{"$f":"'Ferry-Sub5'!G3","v":"CONSULTANT NAME"}]
[]
["GENERAL PROJECT WORK:","ITEM","QTY","DESCRIPTION",null,null,"UNIT COST "]
[null,"Travel:"]
[null,"Sedan",0,"Trip(s) @",0,"miles @",{"$f":"SEDAN","v":0.7},{"$f":"SUM(C6*E6*G6)","v":0}]
[null,"Carry All",0,"Trip(s) @",0,"miles @",{"$f":"CARRYALL","v":0.72},{"$f":"SUM(C7*E7*G7)","v":0}]
[null,"Car Rental",null,null,0,"days @ ",{"$f":"CARRENTAL","v":50},{"$f":"SUM(E8*G8)","v":0}]
[null,"Gas for Rental",null,null,0,"miles @",{"$f":"GASforRENTAL","v":0.2},{"$f":"SUM(E9*G9)","v":0}]
[null,"Parking:",0,"Trip(s) @",null,null,{"$f":"PARKING","v":3},{"$f":"SUM(C10*G10)","v":0}]
[null,"Per Diem:",0,"Breakfast",null,null,{"$f":"BREAKFAST","v":10.1},{"$f":"SUM(C11*G11)","v":0}]
[null,null,0,"Lunch",null,null,{"$f":"LUNCH","v":13.3},0]
[null,null,0,"Dinner",null,null,{"$f":"DINNER","v":23.1},0]
[null,null,0,"Lodging ",null,null,{"$f":"LODGING_LUMP.SUM","v":95},0]
[null,"Reproduction:",0,"8 1/2 x 11 B & W Copies @",null,null,{"$f":"LETTERCOPIES","v":0.14000000000000001},0]
[null,null,0,"11 x 17 B & W Copies @",null,null,{"$f":"LEDGERCOPIES","v":0.34},0]
[null,null,0,"8 1/2 x 11 Color Copies @",null,null,{"$f":"LETTERCOLOR","v":0.83},0]
[null,null,0,"11 x 17 Color Copies @",null,null,{"$f":"LEDGERCOLOR","v":1.66},0]
[null,null,0,"SQ. FT. of Plots (B & W or Color)",null,"<65 SQ. FT.*",{"$f":"ROLLPLOTSshort","v":6.5},0]
[null,null,0,"SQ. FT. of Plots (B & W or Color)",null,">65 SQ. FT.*",{"$f":"ROLLPLOTSlong","v":1.5},0]
[null,null,0,"Cover(s) @",null,null,{"$f":"COVERS","v":0.5},0]
[null,null,0,"Binder(s) @",null,null,{"$f":"BINDERS","v":0.5},0]
[null,null,0,"Blueprints - 8 1/2 x 11 @",null,null,{"$f":"BLUEPRINTSLETTER","v":0.35},0]
[null,null,0,"Blueprints - 42 x 72 @",null,null,{"$f":"BLUEPRINTSLARGE","v":1.3},0]
[null,"Film and Developing:",0,"Roll(s) @",null,null,{"$f":"FILM","v":20},0]
[null,null,null,null,null,"Subtotal",null,{"$f":"SUM(H6:H25)","v":0}]
["MAPS AND DOCUMENTS:","ITEM","QTY","DESCRIPTION",null,null,"UNIT COST "]
[null,"County Tax Maps:",0,"Map(s) @",null,null,{"$f":"County_Tax_Maps","v":7},{"$f":"SUM(C28*G28)","v":0}]
[null,"USGS Maps:",0,"Map(s) @",null,null,{"$f":"USGSMAPS","v":7},{"$f":"SUM(C29*G29)","v":0}]
[null,null,null,null,null,"Subtotal",null,{"$f":"SUM(H28:H29)","v":0}]
["Miscellaneous Other","ITEM","QTY","DESCRIPTION",null,null,"UNIT COST "]
[null,null,null,null,null,null,null,{"$f":"SUM(C32*G32)","v":0}]
[null,null,null,null,null,null,null,{"$f":"SUM(C33*G33)","v":0}]
[null,null,null,null,null,null,null,0]
[null,null,null,null,null,null,null,0]
[null,null,null,null,null,null,null,0]
[null,null,null,null,null,null,null,0]
[null,null,null,null,null,null,null,0]
[null,null,null,null,null,null,null,{"$f":"SUM(C39*G39)","v":0}]
[null,null,null,null,null,null,null,{"$f":"SUM(C40*G40)","v":0}]
[null,null,null,null,null,null,null,{"$f":"SUM(C41*G41)","v":0}]
[null,null,null,null,null,"Subtotal",null,{"$f":"SUM(H32:H41)","v":0}]
[]
[null,null,null,null,null,"TOTAL",null,{"$f":"SUM(H26+H30+H42)","v":0}]
[]
[null,"* Sum of all plots "]

{"sheet":"Aviation-Sub1","index":195,"n_rows":275,"n_cols":27,"rows_kept":275,"cut":false,"hidden":true,"merged":[[250,26,250,27],[251,26,251,27],[252,26,252,27],[253,26,253,27],[254,26,254,27],[255,26,255,27],[256,26,256,27],[257,26,257,27],[234,26,234,27],[235,26,235,27],[236,26,236,27],[237,26,237,27],[238,26,238,27],[239,26,239,27],[240,26,240,27],[241,26,241,27],[242,26,242,27],[243,26,243,27],[244,26,244,27],[245,26,245,27],[229,26,229,27],[230,26,230,27],[231,26,231,27],[232,26,232,27],[233,26,233,27],[246,26,246,27],[247,26,247,27],[248,26,248,27],[249,26,249,27],[220,26,220,27],[221,26,221,27],[222,26,222,27],[223,26,223,27],[224,26,224,27],[225,26,225,27],[226,26,226,27],[227,26,227,27],[228,26,228,27],[211,26,211,27],[212,26,212,27],[213,26,213,27],[214,26,214,27],[215,26,215,27],[216,26,216,27],[217,26,217,27],[218,26,218,27],[219,26,219,27],[202,26,202,27],[203,26,203,27],[204,26,204,27],[205,26,205,27],[206,26,206,27],[207,26,207,27],[208,26,208,27],[209,26,209,27],[210,26,210,27],[193,26,193,27],[194,26,194,27],[195,26,195,27],[196,26,196,27],[197,26,197,27],[198,26,198,27],[199,26,199,27],[200,26,200,27],[201,26,201,27],[184,26,184,27],[185,26,185,27],[186,26,186,27],[187,26,187,27],[188,26,188,27],[189,26,189,27],[190,26,190,27],[191,26,191,27],[192,26,192,27],[175,26,175,27],[176,26,176,27],[177,26,177,27],[178,26,178,27],[179,26,179,27],[180,26,180,27],[181,26,181,27],[182,26,182,27],[183,26,183,27],[166,26,166,27],[167,26,167,27],[168,26,168,27],[169,26,169,27],[170,26,170,27],[171,26,171,27],[172,26,172,27],[173,26,173,27],[174,26,174,27],[157,26,157,27],[158,26,158,27],[159,26,159,27],[160,26,160,27],[161,26,161,27],[162,26,162,27],[163,26,163,27],[164,26,164,27],[165,26,165,27],[148,26,148,27],[149,26,149,27],[150,26,150,27],[151,26,151,27],[152,26,152,27],[153,26,153,27],[154,26,154,27],[155,26,155,27],[156,26,156,27],[139,26,139,27],[140,26,140,27],[141,26,141,27],[142,26,142,27],[143,26,143,27],[144,26,144,27],[145,26,145,27],[146,26,146,27],[147,26,147,27],[130,26,130,27],[131,26,131,27],[132,26,132,27],[133,26,133,27],[134,26,134,27],[135,26,135,27],[136,26,136,27],[137,26,137,27],[138,26,138,27],[0,0,1,13],[2,1,2,4],[2,6,2,7],[2,10,2,11],[2,15,2,16],[3,1,3,4],[3,6,3,7],[3,10,3,11],[3,15,3,16],[6,12,9,12],[6,13,9,13],[6,14,9,14],[6,15,9,15],[6,16,9,16],[6,17,9,17],[4,3,4,22],[6,3,9,3],[6,4,9,4],[6,5,9,5],[6,6,9,6],[6,7,9,7],[6,8,9,8],[6,9,9,9],[6,10,9,10],[6,11,9,11],[10,26,10,27],[11,26,11,27],[12,26,12,27],[13,26,13,27],[14,26,14,27],[15,26,15,27],[6,18,9,18],[6,19,9,19],[6,20,9,20],[6,21,9,21],[6,22,9,22],[8,26,8,27],[22,26,22,27],[23,26,23,27],[24,26,24,27],[25,26,25,27],[26,26,26,27],[27,26,27,27],[16,26,16,27],[17,26,17,27],[18,26,18,27],[19,26,19,27],[20,26,20,27],[21,26,21,27],[34,26,34,27],[35,26,35,27],[36,26,36,27],[37,26,37,27],[38,26,38,27],[39,26,39,27],[28,26,28,27],[29,26,29,27],[30,26,30,27],[31,26,31,27],[32,26,32,27],[33,26,33,27],[46,26,46,27],[47,26,47,27],[48,26,48,27],[49,26,49,27],[50,26,50,27],[51,26,51,27],[40,26,40,27],[41,26,41,27],[42,26,42,27],[43,26,43,27],[44,26,44,27],[45,26,45,27],[58,26,58,27],[59,26,59,27],[60,26,60,27],[61,26,61,27],[62,26,62,27],[63,26,63,27],[52,26,52,27],[53,26,53,27],[54,26,54,27],[55,26,55,27],[56,26,56,27],[57,26,57,27],[70,26,70,27],[71,26,71,27],[72,26,72,27],[73,26,73,27],[74,26,74,27],[75,26,75,27],[64,26,64,27],[65,26,65,27],[66,26,66,27],[67,26,67,27],[68,26,68,27],[69,26,69,27],[82,26,82,27],[83,26,83,27],[84,26,84,27],[85,26,85,27],[86,26,86,27],[87,26,87,27],[76,26,76,27],[77,26,77,27],[78,26,78,27],[79,26,79,27],[80,26,80,27],[81,26,81,27],[94,26,94,27],[95,26,95,27],[96,26,96,27],[97,26,97,27],[98,26,98,27],[99,26,99,27],[88,26,88,27],[89,26,89,27],[90,26,90,27],[91,26,91,27],[92,26,92,27],[93,26,93,27],[106,26,106,27],[107,26,107,27],[108,26,108,27],[109,26,109,27],[110,26,110,27],[111,26,111,27],[100,26,100,27],[101,26,101,27],[102,26,102,27],[103,26,103,27],[104,26,104,27],[105,26,105,27],[258,26,258,27],[259,26,259,27],[274,1,275,1],[274,3,275,4],[278,3,278,6],[278,8,278,13],[112,26,112,27],[113,26,113,27],[114,26,114,27],[115,26,115,27],[116,26,116,27],[117,26,117,27],[118,26,118,27],[119,26,119,27],[120,26,120,27],[121,26,121,27],[122,26,122,27],[123,26,123,27],[124,26,124,27],[125,26,125,27],[126,26,126,27],[127,26,127,27],[128,26,128,27],[129,26,129,27],[285,8,285,9],[285,10,285,11],[279,8,279,9],[279,10,279,11],[280,8,280,9],[280,10,280,11],[283,8,283,13],[284,8,284,9],[284,10,284,11]]}
["AVIATION--BREAKDOWN WORKSHEET - SUBCONSULTANT 1 -- ENTER WORKHOURS"]
[]
["PROJECT DESCRIPTION: ",{"$f":"PROJECT.DESCRIPTION","v":0},null,null,null,"FIRM:  ",{"$f":"AVIATION.SUB1_CONSULTANT_NAME","v":"CONSULTANT NAME"},null,"TASK ORDER NUMBER:",null,{"$f":"TASK.ORDER.NUMBER","v":0},null,"DATE PREPARED:",{"$f":"IF(SCOPE.MANDAY.ESTIMATE.PREPARED.BY.DATE=\"\",\"\",SCOPE.MANDAY.ESTIMATE.PREPARED.BY.DATE)","v":""}]
["PREPARED BY:  ",{"$f":"IF(SCOPE.MANDAY.ESTIMATE.PREPARED.BY=\"\",\"\",SCOPE.MANDAY.ESTIMATE.PREPARED.BY)","v":""},null,null,null,"TIP NUMBER:",{"$f":"TIP.NUMBER","v":0},null,"WBS NUMBER:",null,{"$f":"WBS.NUMBER","v":""},null,"REVISION DATE:",{"$f":"IF(SCOPE.MANDAY.ESTIMATE.APPROVED.BY.DATE=\"\",\"\",SCOPE.MANDAY.ESTIMATE.APPROVED.BY.DATE)","v":""}]
[null,null,null,"ESTIMATED WORKHOURS"]
[null,null,"EMPLOYEE NAMES",{"$f":"IF('PEF CLASSIFICATION SHEET'!D1778=\"\",\"\",LEFT('PEF CLASSIFICATION SHEET'!D1778,4))","v":""},{"$f":"IF('PEF CLASSIFICATION SHEET'!D1779=\"\",\"\",LEFT('PEF CLASSIFICATION SHEET'!D1779,4))","v":""},{"$f":"IF('PEF CLASSIFICATION SHEET'!D1780=\"\",\"\",LEFT('PEF CLASSIFICATION SHEET'!D1780,4))","v":""},{"$f":"IF('PEF CLASSIFICATION SHEET'!D1781=\"\",\"\",LEFT('PEF CLASSIFICATION SHEET'!D1781,4))","v":""},{"$f":"IF('PEF CLASSIFICATION SHEET'!D1782=\"\",\"\",LEFT('PEF CLASSIFICATION SHEET'!D1782,4))","v":""},{"$f":"IF('PEF CLASSIFICATION SHEET'!D1783=\"\",\"\",LEFT('PEF CLASSIFICATION SHEET'!D1783,4))","v":""},{"$f":"IF('PEF CLASSIFICATION SHEET'!D1784=\"\",\"\",LEFT('PEF CLASSIFICATION SHEET'!D1784,4))","v":""},{"$f":"IF('PEF CLASSIFICATION SHEET'!D1785=\"\",\"\",LEFT('PEF CLASSIFICATION SHEET'!D1785,4))","v":""},{"$f":"IF('PEF CLASSIFICATION SHEET'!D1786=\"\",\"\",LEFT('PEF CLASSIFICATION SHEET'!D1786,4))","v":""},{"$f":"IF('PEF CLASSIFICATION SHEET'!D1787=\"\",\"\",LEFT('PEF CLASSIFICATION SHEET'!D1787,4))","v":""},{"$f":"IF('PEF CLASSIFICATION SHEET'!D1788=\"\",\"\",LEFT('PEF CLASSIFICATION SHEET'!D1788,4))","v":""},{"$f":"IF('PEF CLASSIFICATION SHEET'!D1789=\"\",\"\",LEFT('PEF CLASSIFICATION SHEET'!D1789,4))","v":""},{"$f":"IF('PEF CLASSIFICATION SHEET'!D1790=\"\",\"\",LEFT('PEF CLASSIFICATION SHEET'!D1790,4))","v":""},{"$f":"IF('PEF CLASSIFICATION SHEET'!D1791=\"\",\"\",LEFT('PEF CLASSIFICATION SHEET'!D1791,4))","v":""},{"$f":"IF('PEF CLASSIFICATION SHEET'!D1792=\"\",\"\",LEFT('PEF CLASSIFICATION SHEET'!D1792,4))","v":""},{"$f":"IF('PEF CLASSIFICATION SHEET'!D1793=\"\",\"\",LEFT('PEF CLASSIFICATION SHEET'!D1793,4))","v":""},{"$f":"IF('PEF CLASSIFICATION SHEET'!D1794=\"\",\"\",LEFT('PEF CLASSIFICATION SHEET'!D1794,4))","v":""},{"$f":"IF('PEF CLASSIFICATION SHEET'!D1795=\"\",\"\",LEFT('PEF CLASSIFICATION SHEET'!D1795,4))","v":""},{"$f":"IF('PEF CLASSIFICATION SHEET'!D1796=\"\",\"\",LEFT('PEF CLASSIFICATION SHEET'!D1796,4))","v":""},{"$f":"IF('PEF CLASSIFICATION SHEET'!D1797=\"\",\"\",LEFT('PEF CLASSIFICATION SHEET'!D1797,4))","v":""}]
[null,null,null,{"$f":"IF('PEF CLASSIFICATION SHEET'!C1778=\"\",\"\",'PEF CLASSIFICATION SHEET'!C1778)","v":""},{"$f":"IF('PEF CLASSIFICATION SHEET'!C1779=\"\",\"\",'PEF CLASSIFICATION SHEET'!C1779)","v":""},{"$f":"IF('PEF CLASSIFICATION SHEET'!C1780=\"\",\"\",'PEF CLASSIFICATION SHEET'!C1780)","v":""},{"$f":"IF('PEF CLASSIFICATION SHEET'!C1781=\"\",\"\",'PEF CLASSIFICATION SHEET'!C1781)","v":""},{"$f":"IF('PEF CLASSIFICATION SHEET'!C1782=\"\",\"\",'PEF CLASSIFICATION SHEET'!C1782)","v":""},{"$f":"IF('PEF CLASSIFICATION SHEET'!C1783=\"\",\"\",'PEF CLASSIFICATION SHEET'!C1783)","v":""},{"$f":"IF('PEF CLASSIFICATION SHEET'!C1784=\"\",\"\",'PEF CLASSIFICATION SHEET'!C1784)","v":""},{"$f":"IF('PEF CLASSIFICATION SHEET'!C1785=\"\",\"\",'PEF CLASSIFICATION SHEET'!C1785)","v":""},{"$f":"IF('PEF CLASSIFICATION SHEET'!C1786=\"\",\"\",'PEF CLASSIFICATION SHEET'!C1786)","v":""},{"$f":"IF('PEF CLASSIFICATION SHEET'!C1787=\"\",\"\",'PEF CLASSIFICATION SHEET'!C1787)","v":""},{"$f":"IF('PEF CLASSIFICATION SHEET'!C1788=\"\",\"\",'PEF CLASSIFICATION SHEET'!C1788)","v":""},{"$f":"IF('PEF CLASSIFICATION SHEET'!C1789=\"\",\"\",'PEF CLASSIFICATION SHEET'!C1789)","v":""},{"$f":"IF('PEF CLASSIFICATION SHEET'!C1790=\"\",\"\",'PEF CLASSIFICATION SHEET'!C1790)","v":""},{"$f":"IF('PEF CLASSIFICATION SHEET'!C1791=\"\",\"\",'PEF CLASSIFICATION SHEET'!C1791)","v":""},{"$f":"IF('PEF CLASSIFICATION SHEET'!C1792=\"\",\"\",'PEF CLASSIFICATION SHEET'!C1792)","v":""},{"$f":"IF('PEF CLASSIFICATION SHEET'!C1793=\"\",\"\",'PEF CLASSIFICATION SHEET'!C1793)","v":""},{"$f":"IF('PEF CLASSIFICATION SHEET'!C1794=\"\",\"\",'PEF CLASSIFICATION SHEET'!C1794)","v":""},{"$f":"IF('PEF CLASSIFICATION SHEET'!C1795=\"\",\"\",'PEF CLASSIFICATION SHEET'!C1795)","v":""},{"$f":"IF('PEF CLASSIFICATION SHEET'!C1796=\"\",\"\",'PEF CLASSIFICATION SHEET'!C1796)","v":""},{"$f":"IF('PEF CLASSIFICATION SHEET'!C1797=\"\",\"\",'PEF CLASSIFICATION SHEET'!C1797)","v":""},"SUB-","%","PEF"]
[null,null,null,null,null,null,null,null,null,null,null,null,null,null,null,null,null,null,null,null,null,null,null,"TOTAL","OF","ESTIMATE"]
["TASK","TASK DESCRIPTION","CLASSIFICATION",null,null,null,null,null,null,null,null,null,null,null,null,null,null,null,null,null,null,null,null,null,"PROJECT",null,"COMMENTS"]
["NO."]
[null,"PLANNING",null,null,null,null,null,null,null,null,null,null,null,null,null,null,null,null,null,null,null,null,null,{"$f":"IF(B11=\"\",0,IF((SUM(D12:W104)=0),SUM(D11:W11),\"\"))","v":0},{"$f":"IF(X11=\"\",\"\",SUM((X11/$X$261)))","v":{"$error":"#DIV/0!"}}]
[null,"Study design ",null,null,null,null,null,null,null,null,null,null,null,null,null,null,null,null,null,null,null,null,null,{"$f":"IF(B12=\"\",0,IF((SUM(D17:W34)=0),SUM(D12:W12),\"\"))","v":0},{"$error":"#DIV/0!"}]
[null,"Project definition",null,null,null,null,null,null,null,null,null,null,null,null,null,null,null,null,null,null,null,null,null,{"$f":"IF(B13=\"\",0,IF((SUM(D13:W13)=0),0,SUM(D13:W13)))","v":0},{"$error":"#DIV/0!"}]
[null,"Kick-off meetings",null,null,null,null,null,null,null,null,null,null,null,null,null,null,null,null,null,null,null,null,null,{"$f":"IF(B14=\"\",0,IF((SUM(D14:W14)=0),0,SUM(D14:W14)))","v":0},{"$error":"#DIV/0!"}]
[null,"Goals/Objectives/Schedule/Deliverable/Public Involvement Plan/Budget",null,null,null,null,null,null,null,null,null,null,null,null,null,null,null,null,null,null,null,null,null,0,{"$error":"#DIV/0!"}]
[null,null,null,null,null,null,null,null,null,null,null,null,null,null,null,null,null,null,null,null,null,null,null,0,{"$error":"#DIV/0!"}]
[null,null,null,null,null,null,null,null,null,null,null,null,null,null,null,null,null,null,null,null,null,null,null,0,{"$error":"#DIV/0!"}]
[null,"Sub-consultant coordination",null,null,null,null,null,null,null,null,null,null,null,null,null,null,null,null,null,null,null,null,null,0,{"$error":"#DIV/0!"}]
[null,"IFE coordination",null,null,null,null,null,null,null,null,null,null,null,null,null,null,null,null,null,null,null,null,null,0,{"$error":"#DIV/0!"}]
[null,"Airport board/steering committee input and update meetings",null,null,null,null,null,null,null,null,null,null,null,null,null,null,null,null,null,null,null,null,null,0,{"$error":"#DIV/0!"}]
[null,"Grant application",null,null,null,null,null,null,null,null,null,null,null,null,null,null,null,null,null,null,null,null,null,0,{"$error":"#DIV/0!"}]
[null,"Invoicing/Grant Admin",null,null,null,null,null,null,null,null,null,null,null,null,null,null,null,null,null,null,null,null,null,0,{"$error":"#DIV/0!"}]
[null,"Grant close-out",null,null,null,null,null,null,null,null,null,null,null,null,null,null,null,null,null,null,null,null,null,0,{"$error":"#DIV/0!"}]
[null,"Existing conditions",null,null,null,null,null,null,null,null,null,null,null,null,null,null,null,null,null,null,null,null,null,{"$f":"IF(B24=\"\",0,IF((SUM(D25:W29)=0),SUM(D24:W24),\"\"))","v":0},{"$error":"#DIV/0!"}]
[null,"Review of planning documents and studies",null,null,null,null,null,null,null,null,null,null,null,null,null,null,null,null,null,null,null,null,null,{"$f":"IF(B25=\"\",0,IF((SUM(D25:W25)=0),0,SUM(D25:W25)))","v":0},{"$error":"#DIV/0!"}]
[null,"Airport history",null,null,null,null,null,null,null,null,null,null,null,null,null,null,null,null,null,null,null,null,null,0,{"$error":"#DIV/0!"}]
[null,"Data collection from available resources",null,null,null,null,null,null,null,null,null,null,null,null,null,null,null,null,null,null,null,null,null,0,{"$error":"#DIV/0!"}]
[null,null,null,null,null,null,null,null,null,null,null,null,null,null,null,null,null,null,null,null,null,null,null,0,{"$error":"#DIV/0!"}]
[null,null,null,null,null,null,null,null,null,null,null,null,null,null,null,null,null,null,null,null,null,null,null,0,{"$error":"#DIV/0!"}]
[null,"Inventory",null,null,null,null,null,null,null,null,null,null,null,null,null,null,null,null,null,null,null,null,null,{"$f":"IF(B30=\"\",0,IF((SUM(D31:W45)=0),SUM(D30:W30),\"\"))","v":0},{"$error":"#DIV/0!"}]
[null,"Airside facilities",null,null,null,null,null,null,null,null,null,null,null,null,null,null,null,null,null,null,null,null,null,{"$f":"IF(B31=\"\",0,IF((SUM(D31:W31)=0),0,SUM(D31:W31)))","v":0},{"$error":"#DIV/0!"}]
[null,"Landside facilities",null,null,null,null,null,null,null,null,null,null,null,null,null,null,null,null,null,null,null,null,null,0,{"$error":"#DIV/0!"}]
[null,"Facility access",null,null,null,null,null,null,null,null,null,null,null,null,null,null,null,null,null,null,null,null,null,0,{"$error":"#DIV/0!"}]
[null,"Utilities",null,null,null,null,null,null,null,null,null,null,null,null,null,null,null,null,null,null,null,null,null,0,{"$error":"#DIV/0!"}]
[null,"Regional setting and land use",null,null,null,null,null,null,null,null,null,null,null,null,null,null,null,null,null,null,null,null,null,0,{"$error":"#DIV/0!"}]
[null,"Environmental overview",null,null,null,null,null,null,null,null,null,null,null,null,null,null,null,null,null,null,null,null,null,0,{"$error":"#DIV/0!"}]
[null,"Operations data",null,null,null,null,null,null,null,null,null,null,null,null,null,null,null,null,null,null,null,null,null,0,{"$error":"#DIV/0!"}]
[null,"Financial data",null,null,null,null,null,null,null,null,null,null,null,null,null,null,null,null,null,null,null,null,null,0,{"$error":"#DIV/0!"}]
[null,"Obstruction survey with mapping",null,null,null,null,null,null,null,null,null,null,null,null,null,null,null,null,null,null,null,null,null,0,{"$error":"#DIV/0!"}]
[null,"On-airport land use",null,null,null,null,null,null,null,null,null,null,null,null,null,null,null,null,null,null,null,null,null,0,{"$error":"#DIV/0!"}]
[null,"Meteorology and magnetic declination data",null,null,null,null,null,null,null,null,null,null,null,null,null,null,null,null,null,null,null,null,null,0,{"$error":"#DIV/0!"}]
[null,null,null,null,null,null,null,null,null,null,null,null,null,null,null,null,null,null,null,null,null,null,null,0,{"$error":"#DIV/0!"}]
[null,null,null,null,null,null,null,null,null,null,null,null,null,null,null,null,null,null,null,null,null,null,null,0,{"$error":"#DIV/0!"}]
[null,null,null,null,null,null,null,null,null,null,null,null,null,null,null,null,null,null,null,null,null,null,null,0,{"$error":"#DIV/0!"}]
[null,null,null,null,null,null,null,null,null,null,null,null,null,null,null,null,null,null,null,null,null,null,null,0,{"$error":"#DIV/0!"}]
[null,"Aviation Forecasts ",null,null,null,null,null,null,null,null,null,null,null,null,null,null,null,null,null,null,null,null,null,{"$f":"IF(B46=\"\",0,IF((SUM(D47:W56)=0),SUM(D46:W46),\"\"))","v":0},{"$error":"#DIV/0!"}]
[null,"Review current and previous forecasts and data",null,null,null,null,null,null,null,null,null,null,null,null,null,null,null,null,null,null,null,null,null,{"$f":"IF(B47=\"\",0,IF((SUM(D47:W47)=0),0,SUM(D47:W47)))","v":0},{"$error":"#DIV/0!"}]
[null,"Select methodologies",null,null,null,null,null,null,null,null,null,null,null,null,null,null,null,null,null,null,null,null,null,0,{"$error":"#DIV/0!"}]
[null,"Review of NCASP data",null,null,null,null,null,null,null,null,null,null,null,null,null,null,null,null,null,null,null,null,null,0,{"$error":"#DIV/0!"}]
[null,"Review of TAF",null,null,null,null,null,null,null,null,null,null,null,null,null,null,null,null,null,null,null,null,null,0,{"$error":"#DIV/0!"}]
[null,"Comparison matrix and recommendation",null,null,null,null,null,null,null,null,null,null,null,null,null,null,null,null,null,null,null,null,null,0,{"$error":"#DIV/0!"}]
[null,"Critical aircraft existing and future",null,null,null,null,null,null,null,null,null,null,null,null,null,null,null,null,null,null,null,null,null,0,{"$error":"#DIV/0!"}]
[null,"Facilitate DoA review of forecast",null,null,null,null,null,null,null,null,null,null,null,null,null,null,null,null,null,null,null,null,null,0,{"$error":"#DIV/0!"}]
[null,null,null,null,null,null,null,null,null,null,null,null,null,null,null,null,null,null,null,null,null,null,null,0,{"$error":"#DIV/0!"}]
[null,null,null,null,null,null,null,null,null,null,null,null,null,null,null,null,null,null,null,null,null,null,null,0,{"$error":"#DIV/0!"}]
[null,null,null,null,null,null,null,null,null,null,null,null,null,null,null,null,null,null,null,null,null,null,null,0,{"$error":"#DIV/0!"}]
[null,"Facility requirements ",null,null,null,null,null,null,null,null,null,null,null,null,null,null,null,null,null,null,null,null,null,{"$f":"IF(B57=\"\",0,IF((SUM(D58:W67)=0),SUM(D57:W57),\"\"))","v":0},{"$error":"#DIV/0!"}]
[null,"Capacity/delay",null,null,null,null,null,null,null,null,null,null,null,null,null,null,null,null,null,null,null,null,null,{"$f":"IF(B58=\"\",0,IF((SUM(D58:W58)=0),0,SUM(D58:W58)))","v":0},{"$error":"#DIV/0!"}]
[null,"Runway and taxiway requirements",null,null,null,null,null,null,null,null,null,null,null,null,null,null,null,null,null,null,null,null,null,0,{"$error":"#DIV/0!"}]
[null,"Navaid requirements",null,null,null,null,null,null,null,null,null,null,null,null,null,null,null,null,null,null,null,null,null,0,{"$error":"#DIV/0!"}]
[null,"Ground access",null,null,null,null,null,null,null,null,null,null,null,null,null,null,null,null,null,null,null,null,null,0,{"$error":"#DIV/0!"}]
[null,"Utilities",null,null,null,null,null,null,null,null,null,null,null,null,null,null,null,null,null,null,null,null,null,0,{"$error":"#DIV/0!"}]
[null,"GA facilities",null,null,null,null,null,null,null,null,null,null,null,null,null,null,null,null,null,null,null,null,null,0,{"$error":"#DIV/0!"}]
[null,"Fuel",null,null,null,null,null,null,null,null,null,null,null,null,null,null,null,null,null,null,null,null,null,0,{"$error":"#DIV/0!"}]
[null,"Aircraft maintenance",null,null,null,null,null,null,null,null,null,null,null,null,null,null,null,null,null,null,null,null,null,0,{"$error":"#DIV/0!"}]
[null,null,null,null,null,null,null,null,null,null,null,null,null,null,null,null,null,null,null,null,null,null,null,0,{"$error":"#DIV/0!"}]
[null,null,null,null,null,null,null,null,null,null,null,null,null,null,null,null,null,null,null,null,null,null,null,0,{"$error":"#DIV/0!"}]
[null,"Alternatives",null,null,null,null,null,null,null,null,null,null,null,null,null,null,null,null,null,null,null,null,null,{"$f":"IF(B68=\"\",0,IF((SUM(D69:W75)=0),SUM(D68:W68),\"\"))","v":0},{"$error":"#DIV/0!"}]
[null,"Airfield",null,null,null,null,null,null,null,null,null,null,null,null,null,null,null,null,null,null,null,null,null,{"$f":"IF(B69=\"\",0,IF((SUM(D69:W69)=0),0,SUM(D69:W69)))","v":0},{"$error":"#DIV/0!"}]
[null,"GA terminal development",null,null,null,null,null,null,null,null,null,null,null,null,null,null,null,null,null,null,null,null,null,0,{"$error":"#DIV/0!"}]
[null,"MRO",null,null,null,null,null,null,null,null,null,null,null,null,null,null,null,null,null,null,null,null,null,0,{"$error":"#DIV/0!"}]
[null,"Other support facilities",null,null,null,null,null,null,null,null,null,null,null,null,null,null,null,null,null,null,null,null,null,0,{"$error":"#DIV/0!"}]
[null,"Evaluation of alts",null,null,null,null,null,null,null,null,null,null,null,null,null,null,null,null,null,null,null,null,null,0,{"$error":"#DIV/0!"}]
[null,null,null,null,null,null,null,null,null,null,null,null,null,null,null,null,null,null,null,null,null,null,null,0,{"$error":"#DIV/0!"}]
[null,null,null,null,null,null,null,null,null,null,null,null,null,null,null,null,null,null,null,null,null,null,null,0,{"$f":"IF(X75=\"\",\"\",SUM((X75/$X$261)))","v":{"$error":"#DIV/0!"}}]
[null,"Public involvement and stakeholder meetings as per plan",null,null,null,null,null,null,null,null,null,null,null,null,null,null,null,null,null,null,null,null,null,0,{"$error":"#DIV/0!"}]
[null,"Schedules of development",null,null,null,null,null,null,null,null,null,null,null,null,null,null,null,null,null,null,null,null,null,0,{"$error":"#DIV/0!"}]
[null,"Estimates of development costs",null,null,null,null,null,null,null,null,null,null,null,null,null,null,null,null,null,null,null,null,null,0,{"$error":"#DIV/0!"}]
[null,"ALP plan set",null,null,null,null,null,null,null,null,null,null,null,null,null,null,null,null,null,null,null,null,null,{"$f":"IF(B79=\"\",0,IF((SUM(D80:W92)=0),SUM(D79:W79),\"\"))","v":0},{"$error":"#DIV/0!"}]
[null,"Title sheet",null,null,null,null,null,null,null,null,null,null,null,null,null,null,null,null,null,null,null,null,null,{"$f":"IF(B80=\"\",0,IF((SUM(D80:W80)=0),0,SUM(D80:W80)))","v":0},{"$error":"#DIV/0!"}]
[null,"Ground control survey",null,null,null,null,null,null,null,null,null,null,null,null,null,null,null,null,null,null,null,null,null,0,{"$error":"#DIV/0!"}]
[null,"Existing facilities drawing",null,null,null,null,null,null,null,null,null,null,null,null,null,null,null,null,null,null,null,null,null,0,{"$error":"#DIV/0!"}]
[null,"Property map or exhibit A",null,null,null,null,null,null,null,null,null,null,null,null,null,null,null,null,null,null,null,null,null,0,{"$error":"#DIV/0!"}]
[null,"Airspace drawing",null,null,null,null,null,null,null,null,null,null,null,null,null,null,null,null,null,null,null,null,null,0,{"$error":"#DIV/0!"}]
[null,"Inner portion of the approach surface drawing",null,null,null,null,null,null,null,null,null,null,null,null,null,null,null,null,null,null,null,null,null,0,{"$error":"#DIV/0!"}]
[null,"Obstruction analysis",null,null,null,null,null,null,null,null,null,null,null,null,null,null,null,null,null,null,null,null,null,0,{"$error":"#DIV/0!"}]
[null,"Runway departure surface sheet",null,null,null,null,null,null,null,null,null,null,null,null,null,null,null,null,null,null,null,null,null,0,{"$error":"#DIV/0!"}]
[null,"Terminal area plan sheet",null,null,null,null,null,null,null,null,null,null,null,null,null,null,null,null,null,null,null,null,null,0,{"$error":"#DIV/0!"}]
[null,"Land use plan sheet",null,null,null,null,null,null,null,null,null,null,null,null,null,null,null,null,null,null,null,null,null,0,{"$error":"#DIV/0!"}]
[null,null,null,null,null,null,null,null,null,null,null,null,null,null,null,null,null,null,null,null,null,null,null,0,{"$error":"#DIV/0!"}]
[null,null,null,null,null,null,null,null,null,null,null,null,null,null,null,null,null,null,null,null,null,null,null,0,{"$error":"#DIV/0!"}]
[null,null,null,null,null,null,null,null,null,null,null,null,null,null,null,null,null,null,null,null,null,null,null,0,{"$error":"#DIV/0!"}]
[null,"ALP checklist completion",null,null,null,null,null,null,null,null,null,null,null,null,null,null,null,null,null,null,null,null,null,0,{"$error":"#DIV/0!"}]
[null,"Status reports, draft submittals",null,null,null,null,null,null,null,null,null,null,null,null,null,null,null,null,null,null,null,null,null,0,{"$error":"#DIV/0!"}]
[null,null,null,null,null,null,null,null,null,null,null,null,null,null,null,null,null,null,null,null,null,null,null,0,{"$error":"#DIV/0!"}]
[null,null,null,null,null,null,null,null,null,null,null,null,null,null,null,null,null,null,null,null,null,null,null,0,{"$error":"#DIV/0!"}]
[null,null,null,null,null,null,null,null,null,null,null,null,null,null,null,null,null,null,null,null,null,null,null,0,{"$error":"#DIV/0!"}]
[null,null,null,null,null,null,null,null,null,null,null,null,null,null,null,null,null,null,null,null,null,null,null,0,{"$error":"#DIV/0!"}]
[null,null,null,null,null,null,null,null,null,null,null,null,null,null,null,null,null,null,null,null,null,null,null,0,{"$error":"#DIV/0!"}]
[null,null,null,null,null,null,null,null,null,null,null,null,null,null,null,null,null,null,null,null,null,null,null,0,{"$error":"#DIV/0!"}]
[null,null,null,null,null,null,null,null,null,null,null,null,null,null,null,null,null,null,null,null,null,null,null,0,{"$error":"#DIV/0!"}]
[null,null,null,null,null,null,null,null,null,null,null,null,null,null,null,null,null,null,null,null,null,null,null,0,{"$error":"#DIV/0!"}]
[null,null,null,null,null,null,null,null,null,null,null,null,null,null,null,null,null,null,null,null,null,null,null,0,{"$error":"#DIV/0!"}]
[null,null,null,null,null,null,null,null,null,null,null,null,null,null,null,null,null,null,null,null,null,null,null,0,{"$error":"#DIV/0!"}]
[null,"DESIGN",null,null,null,null,null,null,null,null,null,null,null,null,null,null,null,null,null,null,null,null,null,{"$f":"IF(B105=\"\",0,IF((SUM(D106:W179)=0),SUM(D105:W105),\"\"))","v":0},{"$error":"#DIV/0!"}]
[null,"Project formulation",null,null,null,null,null,null,null,null,null,null,null,null,null,null,null,null,null,null,null,null,null,{"$f":"IF(B106=\"\",0,IF((SUM(D106:W106)=0),0,SUM(D106:W106)))","v":0},{"$error":"#DIV/0!"}]
[null,"Study design ",null,null,null,null,null,null,null,null,null,null,null,null,null,null,null,null,null,null,null,null,null,{"$f":"IF(B107=\"\",0,IF((SUM(D108:W112)=0),SUM(D107:W107),\"\"))","v":0},{"$error":"#DIV/0!"}]
[null,"Project definition",null,null,null,null,null,null,null,null,null,null,null,null,null,null,null,null,null,null,null,null,null,{"$f":"IF(B108=\"\",0,IF((SUM(D108:W108)=0),0,SUM(D108:W108)))","v":0},{"$error":"#DIV/0!"}]
[null,"Kick-off meetings",null,null,null,null,null,null,null,null,null,null,null,null,null,null,null,null,null,null,null,null,null,0,{"$error":"#DIV/0!"}]
[null,"Schedule/deliverables/plan/budget",null,null,null,null,null,null,null,null,null,null,null,null,null,null,null,null,null,null,null,null,null,0,{"$error":"#DIV/0!"}]
[null,null,null,null,null,null,null,null,null,null,null,null,null,null,null,null,null,null,null,null,null,null,null,0,{"$error":"#DIV/0!"}]
[null,null,null,null,null,null,null,null,null,null,null,null,null,null,null,null,null,null,null,null,null,null,null,0,{"$error":"#DIV/0!"}]
[null,"Sub consultant coordination",null,null,null,null,null,null,null,null,null,null,null,null,null,null,null,null,null,null,null,null,null,0,{"$error":"#DIV/0!"}]
[null,"IFE coordination",null,null,null,null,null,null,null,null,null,null,null,null,null,null,null,null,null,null,null,null,null,0,{"$error":"#DIV/0!"}]
[null,"Airport board/steering committee input and update meetings",null,null,null,null,null,null,null,null,null,null,null,null,null,null,null,null,null,null,null,null,null,0,{"$error":"#DIV/0!"}]
[null,"Grant application",null,null,null,null,null,null,null,null,null,null,null,null,null,null,null,null,null,null,null,null,null,0,{"$error":"#DIV/0!"}]
[null,"Invoicing/grant admin",null,null,null,null,null,null,null,null,null,null,null,null,null,null,null,null,null,null,null,null,null,0,{"$error":"#DIV/0!"}]
[null,"CatEx NEPA document ",null,null,null,null,null,null,null,null,null,null,null,null,null,null,null,null,null,null,null,null,null,{"$f":"IF(B118=\"\",0,IF((SUM(D119:W128)=0),SUM(D118:W118),\"\"))","v":0},{"$error":"#DIV/0!"}]
[null,"Study area and vicinity map",null,null,null,null,null,null,null,null,null,null,null,null,null,null,null,null,null,null,null,null,null,{"$f":"IF(B119=\"\",0,IF((SUM(D119:W119)=0),0,SUM(D119:W119)))","v":0},{"$error":"#DIV/0!"}]
[null,"Environmental features map",null,null,null,null,null,null,null,null,null,null,null,null,null,null,null,null,null,null,null,null,null,0,{"$error":"#DIV/0!"}]
[null,"Start of study or scoping letter for environmental clearinghouse",null,null,null,null,null,null,null,null,null,null,null,null,null,null,null,null,null,null,null,null,null,0,{"$error":"#DIV/0!"}]
[null,"Other agency coordination and stakeholder involvement",null,null,null,null,null,null,null,null,null,null,null,null,null,null,null,null,null,null,null,null,null,0,{"$error":"#DIV/0!"}]
[null,"Landowner notification",null,null,null,null,null,null,null,null,null,null,null,null,null,null,null,null,null,null,null,null,null,0,{"$error":"#DIV/0!"}]
[null,"Address impact categories with obtained data",null,null,null,null,null,null,null,null,null,null,null,null,null,null,null,null,null,null,null,null,null,0,{"$error":"#DIV/0!"}]
[null,"Submit draft document for review",null,null,null,null,null,null,null,null,null,null,null,null,null,null,null,null,null,null,null,null,null,0,{"$error":"#DIV/0!"}]
[null,null,null,null,null,null,null,null,null,null,null,null,null,null,null,null,null,null,null,null,null,null,null,0,{"$error":"#DIV/0!"}]
[null,null,null,null,null,null,null,null,null,null,null,null,null,null,null,null,null,null,null,null,null,null,null,0,{"$error":"#DIV/0!"}]
[null,null,null,null,null,null,null,null,null,null,null,null,null,null,null,null,null,null,null,null,null,null,null,0,{"$error":"#DIV/0!"}]
[null,"Permit application & agency meeting regarding permitting",null,null,null,null,null,null,null,null,null,null,null,null,null,null,null,null,null,null,null,null,null,{"$f":"IF(B129=\"\",0,IF((SUM(D129:W129)=0),0,SUM(D129:W129)))","v":0},{"$error":"#DIV/0!"}]
[null,"Survey of existing conditions ",null,null,null,null,null,null,null,null,null,null,null,null,null,null,null,null,null,null,null,null,null,{"$f":"IF(B130=\"\",0,IF((SUM(D131:W136)=0),SUM(D130:W130),\"\"))","v":0},{"$error":"#DIV/0!"}]
[null,"Collect existing survey data",null,null,null,null,null,null,null,null,null,null,null,null,null,null,null,null,null,null,null,null,null,{"$f":"IF(B131=\"\",0,IF((SUM(D131:W131)=0),0,SUM(D131:W131)))","v":0},{"$error":"#DIV/0!"}]
[null,"Obtain new data as needed",null,null,null,null,null,null,null,null,null,null,null,null,null,null,null,null,null,null,null,null,null,0,{"$error":"#DIV/0!"}]
[null,"Incorporate into base plans",null,null,null,null,null,null,null,null,null,null,null,null,null,null,null,null,null,null,null,null,null,0,{"$error":"#DIV/0!"}]
[null,"CADD mapping",null,null,null,null,null,null,null,null,null,null,null,null,null,null,null,null,null,null,null,null,null,0,{"$error":"#DIV/0!"}]
[null,null,null,null,null,null,null,null,null,null,null,null,null,null,null,null,null,null,null,null,null,null,null,0,{"$error":"#DIV/0!"}]
[null,null,null,null,null,null,null,null,null,null,null,null,null,null,null,null,null,null,null,null,null,null,null,0,{"$error":"#DIV/0!"}]
[null,"Geotechnical investigations",null,null,null,null,null,null,null,null,null,null,null,null,null,null,null,null,null,null,null,null,null,0,{"$error":"#DIV/0!"}]
[null,"Construction plans production ",null,null,null,null,null,null,null,null,null,null,null,null,null,null,null,null,null,null,null,null,null,{"$f":"IF(B138=\"\",0,IF((SUM(D139:W160)=0),SUM(D138:W138),\"\"))","v":0},{"$error":"#DIV/0!"}]
[null,"Title sheet",null,null,null,null,null,null,null,null,null,null,null,null,null,null,null,null,null,null,null,null,null,{"$f":"IF(B139=\"\",0,IF((SUM(D139:W139)=0),0,SUM(D139:W139)))","v":0},{"$f":"IF(X139=\"\",\"\",SUM((X139/$X$261)))","v":{"$error":"#DIV/0!"}}]
[null,"Index of drawings",null,null,null,null,null,null,null,null,null,null,null,null,null,null,null,null,null,null,null,null,null,0,{"$error":"#DIV/0!"}]
[null,"Summary of quantities",null,null,null,null,null,null,null,null,null,null,null,null,null,null,null,null,null,null,null,null,null,0,{"$error":"#DIV/0!"}]
[null,"Pipe schedule",null,null,null,null,null,null,null,null,null,null,null,null,null,null,null,null,null,null,null,null,null,0,{"$error":"#DIV/0!"}]
[null,"General notes",null,null,null,null,null,null,null,null,null,null,null,null,null,null,null,null,null,null,null,null,null,0,{"$error":"#DIV/0!"}]
[null,"Legend",null,null,null,null,null,null,null,null,null,null,null,null,null,null,null,null,null,null,null,null,null,0,{"$error":"#DIV/0!"}]
[null,"Project layout",null,null,null,null,null,null,null,null,null,null,null,null,null,null,null,null,null,null,null,null,null,0,{"$error":"#DIV/0!"}]
[null,"Haul roads/staging areas",null,null,null,null,null,null,null,null,null,null,null,null,null,null,null,null,null,null,null,null,null,0,{"$error":"#DIV/0!"}]
[null,"Soil boring plans and logs",null,null,null,null,null,null,null,null,null,null,null,null,null,null,null,null,null,null,null,null,null,0,{"$error":"#DIV/0!"}]
[null,"Safety and security notes and details",null,null,null,null,null,null,null,null,null,null,null,null,null,null,null,null,null,null,null,null,null,0,{"$error":"#DIV/0!"}]
[null,"Plan/profile proposed",null,null,null,null,null,null,null,null,null,null,null,null,null,null,null,null,null,null,null,null,null,0,{"$error":"#DIV/0!"}]
[null,"Typical sections",null,null,null,null,null,null,null,null,null,null,null,null,null,null,null,null,null,null,null,null,null,0,{"$error":"#DIV/0!"}]
[null,"Grading/drainage plans",null,null,null,null,null,null,null,null,null,null,null,null,null,null,null,null,null,null,null,null,null,0,{"$error":"#DIV/0!"}]
[null,"Construction safety and phasing plan",null,null,null,null,null,null,null,null,null,null,null,null,null,null,null,null,null,null,null,null,null,0,{"$error":"#DIV/0!"}]
[null,"Paving plan",null,null,null,null,null,null,null,null,null,null,null,null,null,null,null,null,null,null,null,null,null,0,{"$error":"#DIV/0!"}]
[null,"Erosion and sediment control plans",null,null,null,null,null,null,null,null,null,null,null,null,null,null,null,null,null,null,null,null,null,0,{"$error":"#DIV/0!"}]
[null,"Pavement marking details",null,null,null,null,null,null,null,null,null,null,null,null,null,null,null,null,null,null,null,null,null,0,{"$error":"#DIV/0!"}]
[null,"Miscellaneous details",null,null,null,null,null,null,null,null,null,null,null,null,null,null,null,null,null,null,null,null,null,0,{"$error":"#DIV/0!"}]
[null,"Cross sections",null,null,null,null,null,null,null,null,null,null,null,null,null,null,null,null,null,null,null,null,null,0,{"$error":"#DIV/0!"}]
[null,null,null,null,null,null,null,null,null,null,null,null,null,null,null,null,null,null,null,null,null,null,null,0,{"$error":"#DIV/0!"}]
[null,null,null,null,null,null,null,null,null,null,null,null,null,null,null,null,null,null,null,null,null,null,null,0,{"$error":"#DIV/0!"}]
[null,null,null,null,null,null,null,null,null,null,null,null,null,null,null,null,null,null,null,null,null,null,null,0,{"$error":"#DIV/0!"}]
[null,"Incorporate safety plan comments",null,null,null,null,null,null,null,null,null,null,null,null,null,null,null,null,null,null,null,null,null,0,{"$error":"#DIV/0!"}]
[null,"Incorporate 30% review comments",null,null,null,null,null,null,null,null,null,null,null,null,null,null,null,null,null,null,null,null,null,0,{"$error":"#DIV/0!"}]
[null,"Incorporate 60% review comments",null,null,null,null,null,null,null,null,null,null,null,null,null,null,null,null,null,null,null,null,null,0,{"$error":"#DIV/0!"}]
[null,"Prepare bid documents",null,null,null,null,null,null,null,null,null,null,null,null,null,null,null,null,null,null,null,null,null,0,{"$error":"#DIV/0!"}]
[null,"Advertise and distribute bid documents",null,null,null,null,null,null,null,null,null,null,null,null,null,null,null,null,null,null,null,null,null,0,{"$error":"#DIV/0!"}]
[null,"Attend and conduct pre-bid meeting",null,null,null,null,null,null,null,null,null,null,null,null,null,null,null,null,null,null,null,null,null,0,{"$error":"#DIV/0!"}]
[null,"Issue addenda and address questions by prospective bidders ",null,null,null,null,null,null,null,null,null,null,null,null,null,null,null,null,null,null,null,null,null,0,{"$error":"#DIV/0!"}]
[null,"Attend and conduct bid opening, prepare bid tab and recommend award",null,null,null,null,null,null,null,null,null,null,null,null,null,null,null,null,null,null,null,null,null,0,{"$error":"#DIV/0!"}]
[null,"Grant close-out",null,null,null,null,null,null,null,null,null,null,null,null,null,null,null,null,null,null,null,null,null,0,{"$error":"#DIV/0!"}]
[null,null,null,null,null,null,null,null,null,null,null,null,null,null,null,null,null,null,null,null,null,null,null,0,{"$error":"#DIV/0!"}]
[null,null,null,null,null,null,null,null,null,null,null,null,null,null,null,null,null,null,null,null,null,null,null,0,{"$error":"#DIV/0!"}]
[null,null,null,null,null,null,null,null,null,null,null,null,null,null,null,null,null,null,null,null,null,null,null,0,{"$error":"#DIV/0!"}]
[null,null,null,null,null,null,null,null,null,null,null,null,null,null,null,null,null,null,null,null,null,null,null,0,{"$error":"#DIV/0!"}]
[null,null,null,null,null,null,null,null,null,null,null,null,null,null,null,null,null,null,null,null,null,null,null,0,{"$error":"#DIV/0!"}]
[null,null,null,null,null,null,null,null,null,null,null,null,null,null,null,null,null,null,null,null,null,null,null,0,{"$error":"#DIV/0!"}]
[null,null,null,null,null,null,null,null,null,null,null,null,null,null,null,null,null,null,null,null,null,null,null,0,{"$error":"#DIV/0!"}]
[null,null,null,null,null,null,null,null,null,null,null,null,null,null,null,null,null,null,null,null,null,null,null,0,{"$error":"#DIV/0!"}]
[null,null,null,null,null,null,null,null,null,null,null,null,null,null,null,null,null,null,null,null,null,null,null,0,{"$error":"#DIV/0!"}]
[null,null,null,null,null,null,null,null,null,null,null,null,null,null,null,null,null,null,null,null,null,null,null,0,{"$error":"#DIV/0!"}]
[null,"CONSTRUCTION",null,null,null,null,null,null,null,null,null,null,null,null,null,null,null,null,null,null,null,null,null,{"$f":"IF(B180=\"\",0,IF((SUM(D181:W205)=0),SUM(D180:W180),\"\"))","v":0},{"$error":"#DIV/0!"}]
[null,"Project formulation",null,null,null,null,null,null,null,null,null,null,null,null,null,null,null,null,null,null,null,null,null,{"$f":"IF(B181=\"\",0,IF((SUM(D181:W181)=0),0,SUM(D181:W181)))","v":0},{"$error":"#DIV/0!"}]
[null,"Kick off and close-out meetings",null,null,null,null,null,null,null,null,null,null,null,null,null,null,null,null,null,null,null,null,null,0,{"$error":"#DIV/0!"}]
[null,"Budget/schedule",null,null,null,null,null,null,null,null,null,null,null,null,null,null,null,null,null,null,null,null,null,0,{"$error":"#DIV/0!"}]
[null,"Invoicing",null,null,null,null,null,null,null,null,null,null,null,null,null,null,null,null,null,null,null,null,null,0,{"$error":"#DIV/0!"}]
[null,"Internal progress meetings",null,null,null,null,null,null,null,null,null,null,null,null,null,null,null,null,null,null,null,null,null,0,{"$error":"#DIV/0!"}]
[null,"Sub consultant coordination and management",null,null,null,null,null,null,null,null,null,null,null,null,null,null,null,null,null,null,null,null,null,0,{"$error":"#DIV/0!"}]
[null,"Project work plan and field safety instructions",null,null,null,null,null,null,null,null,null,null,null,null,null,null,null,null,null,null,null,null,null,0,{"$error":"#DIV/0!"}]
[null,"Program management support services",null,null,null,null,null,null,null,null,null,null,null,null,null,null,null,null,null,null,null,null,null,0,{"$error":"#DIV/0!"}]
[null,"RPR, inspection, material testing, and reporting",null,null,null,null,null,null,null,null,null,null,null,null,null,null,null,null,null,null,null,null,null,0,{"$error":"#DIV/0!"}]
[null,"Project Site/field review/visit",null,null,null,null,null,null,null,null,null,null,null,null,null,null,null,null,null,null,null,null,null,0,{"$error":"#DIV/0!"}]
[null,"Geotechnical investigations and testing",null,null,null,null,null,null,null,null,null,null,null,null,null,null,null,null,null,null,null,null,null,0,{"$error":"#DIV/0!"}]
[null,"General coordination and grant admin (X months)",null,null,null,null,null,null,null,null,null,null,null,null,null,null,null,null,null,null,null,null,null,0,{"$error":"#DIV/0!"}]
[null,"Coordination meetings",null,null,null,null,null,null,null,null,null,null,null,null,null,null,null,null,null,null,null,null,null,0,{"$error":"#DIV/0!"}]
[null,"Progress reports and invoices",null,null,null,null,null,null,null,null,null,null,null,null,null,null,null,null,null,null,null,null,null,0,{"$error":"#DIV/0!"}]
[null,"Project schedule",null,null,null,null,null,null,null,null,null,null,null,null,null,null,null,null,null,null,null,null,null,0,{"$error":"#DIV/0!"}]
[null,null,null,null,null,null,null,null,null,null,null,null,null,null,null,null,null,null,null,null,null,null,null,0,{"$error":"#DIV/0!"}]
[null,null,null,null,null,null,null,null,null,null,null,null,null,null,null,null,null,null,null,null,null,null,null,0,{"$error":"#DIV/0!"}]
[null,null,null,null,null,null,null,null,null,null,null,null,null,null,null,null,null,null,null,null,null,null,null,0,{"$error":"#DIV/0!"}]
[null,null,null,null,null,null,null,null,null,null,null,null,null,null,null,null,null,null,null,null,null,null,null,0,{"$error":"#DIV/0!"}]
[null,null,null,null,null,null,null,null,null,null,null,null,null,null,null,null,null,null,null,null,null,null,null,0,{"$error":"#DIV/0!"}]
[null,null,null,null,null,null,null,null,null,null,null,null,null,null,null,null,null,null,null,null,null,null,null,0,{"$error":"#DIV/0!"}]
[null,null,null,null,null,null,null,null,null,null,null,null,null,null,null,null,null,null,null,null,null,null,null,0,{"$error":"#DIV/0!"}]
[null,null,null,null,null,null,null,null,null,null,null,null,null,null,null,null,null,null,null,null,null,null,null,0,{"$f":"IF(X203=\"\",\"\",SUM((X203/$X$261)))","v":{"$error":"#DIV/0!"}}]
[null,null,null,null,null,null,null,null,null,null,null,null,null,null,null,null,null,null,null,null,null,null,null,0,{"$error":"#DIV/0!"}]
[null,null,null,null,null,null,null,null,null,null,null,null,null,null,null,null,null,null,null,null,null,null,null,0,{"$error":"#DIV/0!"}]
[null,"OTHER",null,null,null,null,null,null,null,null,null,null,null,null,null,null,null,null,null,null,null,null,null,{"$f":"IF(B206=\"\",0,IF((SUM(D207:W260)=0),SUM(D206:W206),\"\"))","v":0},{"$error":"#DIV/0!"}]
[null,null,null,null,null,null,null,null,null,null,null,null,null,null,null,null,null,null,null,null,null,null,null,{"$f":"IF(B207=\"\",0,IF((SUM(D207:W207)=0),0,SUM(D207:W207)))","v":0},{"$error":"#DIV/0!"}]
[null,null,null,null,null,null,null,null,null,null,null,null,null,null,null,null,null,null,null,null,null,null,null,0,{"$error":"#DIV/0!"}]
[null,null,null,null,null,null,null,null,null,null,null,null,null,null,null,null,null,null,null,null,null,null,null,0,{"$error":"#DIV/0!"}]
[null,null,null,null,null,null,null,null,null,null,null,null,null,null,null,null,null,null,null,null,null,null,null,0,{"$error":"#DIV/0!"}]
[null,null,null,null,null,null,null,null,null,null,null,null,null,null,null,null,null,null,null,null,null,null,null,0,{"$error":"#DIV/0!"}]
[null,null,null,null,null,null,null,null,null,null,null,null,null,null,null,null,null,null,null,null,null,null,null,0,{"$error":"#DIV/0!"}]
[null,null,null,null,null,null,null,null,null,null,null,null,null,null,null,null,null,null,null,null,null,null,null,0,{"$error":"#DIV/0!"}]
[null,null,null,null,null,null,null,null,null,null,null,null,null,null,null,null,null,null,null,null,null,null,null,0,{"$error":"#DIV/0!"}]
[null,null,null,null,null,null,null,null,null,null,null,null,null,null,null,null,null,null,null,null,null,null,null,0,{"$error":"#DIV/0!"}]
[null,null,null,null,null,null,null,null,null,null,null,null,null,null,null,null,null,null,null,null,null,null,null,0,{"$error":"#DIV/0!"}]
[null,null,null,null,null,null,null,null,null,null,null,null,null,null,null,null,null,null,null,null,null,null,null,0,{"$error":"#DIV/0!"}]
[null,null,null,null,null,null,null,null,null,null,null,null,null,null,null,null,null,null,null,null,null,null,null,0,{"$error":"#DIV/0!"}]
[null,null,null,null,null,null,null,null,null,null,null,null,null,null,null,null,null,null,null,null,null,null,null,0,{"$error":"#DIV/0!"}]
[null,null,null,null,null,null,null,null,null,null,null,null,null,null,null,null,null,null,null,null,null,null,null,0,{"$error":"#DIV/0!"}]
[null,null,null,null,null,null,null,null,null,null,null,null,null,null,null,null,null,null,null,null,null,null,null,0,{"$error":"#DIV/0!"}]
[null,null,null,null,null,null,null,null,null,null,null,null,null,null,null,null,null,null,null,null,null,null,null,0,{"$error":"#DIV/0!"}]
[null,null,null,null,null,null,null,null,null,null,null,null,null,null,null,null,null,null,null,null,null,null,null,0,{"$error":"#DIV/0!"}]
[null,null,null,null,null,null,null,null,null,null,null,null,null,null,null,null,null,null,null,null,null,null,null,0,{"$error":"#DIV/0!"}]
[null,null,null,null,null,null,null,null,null,null,null,null,null,null,null,null,null,null,null,null,null,null,null,0,{"$error":"#DIV/0!"}]
[null,null,null,null,null,null,null,null,null,null,null,null,null,null,null,null,null,null,null,null,null,null,null,0,{"$error":"#DIV/0!"}]
[null,null,null,null,null,null,null,null,null,null,null,null,null,null,null,null,null,null,null,null,null,null,null,0,{"$error":"#DIV/0!"}]
[null,null,null,null,null,null,null,null,null,null,null,null,null,null,null,null,null,null,null,null,null,null,null,0,{"$error":"#DIV/0!"}]
[null,null,null,null,null,null,null,null,null,null,null,null,null,null,null,null,null,null,null,null,null,null,null,0,{"$error":"#DIV/0!"}]
[null,null,null,null,null,null,null,null,null,null,null,null,null,null,null,null,null,null,null,null,null,null,null,0,{"$error":"#DIV/0!"}]
[null,null,null,null,null,null,null,null,null,null,null,null,null,null,null,null,null,null,null,null,null,null,null,0,{"$error":"#DIV/0!"}]
[null,null,null,null,null,null,null,null,null,null,null,null,null,null,null,null,null,null,null,null,null,null,null,0,{"$error":"#DIV/0!"}]
[null,null,null,null,null,null,null,null,null,null,null,null,null,null,null,null,null,null,null,null,null,null,null,0,{"$error":"#DIV/0!"}]
[null,null,null,null,null,null,null,null,null,null,null,null,null,null,null,null,null,null,null,null,null,null,null,0,{"$error":"#DIV/0!"}]
[null,null,null,null,null,null,null,null,null,null,null,null,null,null,null,null,null,null,null,null,null,null,null,0,{"$error":"#DIV/0!"}]
[null,null,null,null,null,null,null,null,null,null,null,null,null,null,null,null,null,null,null,null,null,null,null,0,{"$error":"#DIV/0!"}]
[null,null,null,null,null,null,null,null,null,null,null,null,null,null,null,null,null,null,null,null,null,null,null,0,{"$error":"#DIV/0!"}]
[null,null,null,null,null,null,null,null,null,null,null,null,null,null,null,null,null,null,null,null,null,null,null,0,{"$error":"#DIV/0!"}]
[null,null,null,null,null,null,null,null,null,null,null,null,null,null,null,null,null,null,null,null,null,null,null,0,{"$error":"#DIV/0!"}]
[null,null,null,null,null,null,null,null,null,null,null,null,null,null,null,null,null,null,null,null,null,null,null,0,{"$error":"#DIV/0!"}]
[null,null,null,null,null,null,null,null,null,null,null,null,null,null,null,null,null,null,null,null,null,null,null,0,{"$error":"#DIV/0!"}]
[null,null,null,null,null,null,null,null,null,null,null,null,null,null,null,null,null,null,null,null,null,null,null,0,{"$error":"#DIV/0!"}]
[null,null,null,null,null,null,null,null,null,null,null,null,null,null,null,null,null,null,null,null,null,null,null,0,{"$error":"#DIV/0!"}]
[null,null,null,null,null,null,null,null,null,null,null,null,null,null,null,null,null,null,null,null,null,null,null,0,{"$error":"#DIV/0!"}]
[null,null,null,null,null,null,null,null,null,null,null,null,null,null,null,null,null,null,null,null,null,null,null,0,{"$error":"#DIV/0!"}]
[null,null,null,null,null,null,null,null,null,null,null,null,null,null,null,null,null,null,null,null,null,null,null,0,{"$error":"#DIV/0!"}]
[null,null,null,null,null,null,null,null,null,null,null,null,null,null,null,null,null,null,null,null,null,null,null,0,{"$error":"#DIV/0!"}]
[null,null,null,null,null,null,null,null,null,null,null,null,null,null,null,null,null,null,null,null,null,null,null,0,{"$error":"#DIV/0!"}]
[null,null,null,null,null,null,null,null,null,null,null,null,null,null,null,null,null,null,null,null,null,null,null,0,{"$error":"#DIV/0!"}]
[null,null,null,null,null,null,null,null,null,null,null,null,null,null,null,null,null,null,null,null,null,null,null,0,{"$error":"#DIV/0!"}]
[null,null,null,null,null,null,null,null,null,null,null,null,null,null,null,null,null,null,null,null,null,null,null,0,{"$error":"#DIV/0!"}]
[null,null,null,null,null,null,null,null,null,null,null,null,null,null,null,null,null,null,null,null,null,null,null,0,{"$error":"#DIV/0!"}]
[null,null,null,null,null,null,null,null,null,null,null,null,null,null,null,null,null,null,null,null,null,null,null,0,{"$error":"#DIV/0!"}]
[null,null,null,null,null,null,null,null,null,null,null,null,null,null,null,null,null,null,null,null,null,null,null,0,{"$error":"#DIV/0!"}]
[null,null,null,null,null,null,null,null,null,null,null,null,null,null,null,null,null,null,null,null,null,null,null,0,{"$error":"#DIV/0!"}]
[null,null,null,null,null,null,null,null,null,null,null,null,null,null,null,null,null,null,null,null,null,null,null,0,{"$error":"#DIV/0!"}]
[null,null,null,null,null,null,null,null,null,null,null,null,null,null,null,null,null,null,null,null,null,null,null,0,{"$error":"#DIV/0!"}]
[null,null,null,null,null,null,null,null,null,null,null,null,null,null,null,null,null,null,null,null,null,null,null,0,{"$error":"#DIV/0!"}]
[null,null,null,null,null,null,null,null,null,null,null,null,null,null,null,null,null,null,null,null,null,null,null,{"$f":"IF(B259=\"\",0,IF((SUM(D259:W259)=0),0,SUM(D259:W259)))","v":0},{"$error":"#DIV/0!"}]
[null,null,null,null,null,null,null,null,null,null,null,null,null,null,null,null,null,null,null,null,null,null,null,{"$f":"IF(B260=\"\",0,IF((SUM(D260:W260)=0),0,SUM(D260:W260)))","v":0},{"$error":"#DIV/0!"}]
[null,"TOTAL WORKHOURS/CATEGORY:",null,{"$f":"SUM(D11:D260)","v":0},0,0,0,0,0,0,0,0,0,0,0,0,0,0,0,0,0,0,0,{"$f":"SUM(X11:X260)","v":0},{"$f":"SUM(Y11:Y260)","v":{"$error":"#DIV/0!"}},{"$f":"SUM(Z12:Z260)","v":0}]
[null,"TOTAL WORKDAYS/CATEGORY:",null,{"$f":"D261/8","v":0},{"$f":"E261/8","v":0},0,0,0,0,0,0,0,0,0,0,0,0,0,0,0,0,0,0]
[null,"HOURLY SALARY RATE:",null,{"$f":"'PEF CLASSIFICATION SHEET'!E1778","v":0},{"$f":"'PEF CLASSIFICATION SHEET'!E1779","v":0},{"$f":"'PEF CLASSIFICATION SHEET'!E1780","v":0},{"$f":"'PEF CLASSIFICATION SHEET'!E1781","v":0},{"$f":"'PEF CLASSIFICATION SHEET'!E1782","v":0},{"$f":"'PEF CLASSIFICATION SHEET'!E1783","v":0},{"$f":"'PEF CLASSIFICATION SHEET'!E1784","v":0},{"$f":"'PEF CLASSIFICATION SHEET'!E1785","v":0},{"$f":"'PEF CLASSIFICATION SHEET'!E1786","v":0},{"$f":"'PEF CLASSIFICATION SHEET'!E1787","v":0},{"$f":"'PEF CLASSIFICATION SHEET'!E1788","v":0},{"$f":"'PEF CLASSIFICATION SHEET'!E1789","v":0},{"$f":"'PEF CLASSIFICATION SHEET'!E1790","v":0},{"$f":"'PEF CLASSIFICATION SHEET'!E1791","v":0},{"$f":"'PEF CLASSIFICATION SHEET'!E1792","v":0},{"$f":"'PEF CLASSIFICATION SHEET'!E1793","v":0},{"$f":"'PEF CLASSIFICATION SHEET'!E1794","v":0},{"$f":"'PEF CLASSIFICATION SHEET'!E1795","v":0},{"$f":"'PEF CLASSIFICATION SHEET'!E1796","v":0},{"$f":"'PEF CLASSIFICATION SHEET'!E1797","v":0}]
[null,"RATES PER DAY:",null,{"$f":"D263*8","v":0},0,0,0,0,0,0,0,0,0,0,0,0,0,0,0,0,0,0,0]
[null,"PAYROLL BURDEN:",null,{"$f":"SUM(D261*D263)","v":0},{"$f":"SUM(E261*E263)","v":0},0,0,0,0,0,0,0,0,0,0,0,0,0,0,0,0,0,0]
[null,"TOTAL WORKDAYS:",null,{"$f":"SUM(D262:W262)","v":0}]
[null,"TOTAL PAYROLL BURDEN:",null,{"$f":"SUM(D265:W265)","v":0}]
[null,"AVERAGE COST PER HOUR:",null,{"$f":"SUM(D267/(D266*8))","v":{"$error":"#DIV/0!"}}]
[null,"GENERAL OVERHEAD:",{"$f":"AVIATION.SUB1_CONSULTANT_OVERHEAD","v":0},{"$f":"SUM(D267*C269)","v":0}]
[null,"SUBTOTAL:",null,{"$f":"SUM(D267+D269)","v":0}]
[null,"COMPARATIVE FEE:",{"$f":"AVIATION.SUB1_CONSULTANT_FEE","v":0},{"$f":"SUM(D270*C271)","v":0}]
[null,"FACILITIES COST OF CAPITAL:",{"$f":"AVIATION.SUB1_CONSULTANT_COSTofCAPITAL","v":0},{"$f":"SUM(D267*C272)","v":0}]
[null,"TOTAL:",null,{"$f":"SUM(D270:D272)","v":0}]
[null,"DIRECT EXPENSES:",null,{"$f":"AVIATION.SUB1_DIRECT_NONSALARY_TOTAL","v":0}]
[null,"AVIATION GRAND TOTAL:",null,{"$f":"SUM(D273:D274)","v":0}]

{"sheet":"Aviation-Exp-Sub1","index":196,"n_rows":46,"n_cols":8,"rows_kept":46,"cut":false,"hidden":true,"merged":[[0,0,0,7],[1,3,1,7]]}
["AVIATION--DIRECT EXPENSES - SUBCONSULTANT 1"]
["TIP NUMBER",{"$f":"TIP.NUMBER","v":0},"FIRM:",{"$f":"'Aviation-Sub1'!G3","v":"CONSULTANT NAME"}]
[]
["GENERAL PROJECT WORK:","ITEM","QTY","DESCRIPTION",null,null,"UNIT COST "]
[null,"Travel:"]
[null,"Sedan",0,"Trip(s) @",0,"miles @",{"$f":"SEDAN","v":0.7},{"$f":"SUM(C6*E6*G6)","v":0}]
[null,"Carry All",0,"Trip(s) @",0,"miles @",{"$f":"CARRYALL","v":0.72},{"$f":"SUM(C7*E7*G7)","v":0}]
[null,"Car Rental",null,null,0,"days @ ",{"$f":"CARRENTAL","v":50},{"$f":"SUM(E8*G8)","v":0}]
[null,"Gas for Rental",null,null,0,"miles @",{"$f":"GASforRENTAL","v":0.2},{"$f":"SUM(E9*G9)","v":0}]
[null,"Parking:",0,"Trip(s) @",null,null,{"$f":"PARKING","v":3},{"$f":"SUM(C10*G10)","v":0}]
[null,"Per Diem:",0,"Breakfast",null,null,{"$f":"BREAKFAST","v":10.1},{"$f":"SUM(C11*G11)","v":0}]
[null,null,0,"Lunch",null,null,{"$f":"LUNCH","v":13.3},0]
[null,null,0,"Dinner",null,null,{"$f":"DINNER","v":23.1},0]
[null,null,0,"Lodging",null,null,{"$f":"LODGING_LUMP.SUM","v":95},0]
[null,"Reproduction:",0,"8 1/2 x 11 B & W Copies @",null,null,{"$f":"LETTERCOPIES","v":0.14000000000000001},0]
[null,null,0,"11 x 17 B & W Copies @",null,null,{"$f":"LEDGERCOPIES","v":0.34},0]
[null,null,0,"8 1/2 x 11 Color Copies @",null,null,{"$f":"LETTERCOLOR","v":0.83},0]
[null,null,0,"11 x 17 Color Copies @",null,null,{"$f":"LEDGERCOLOR","v":1.66},0]
[null,null,0,"SQ. FT. of Plots (B & W or Color)",null,"<65 SQ. FT.*",{"$f":"ROLLPLOTSshort","v":6.5},0]
[null,null,0,"SQ. FT. of Plots (B & W or Color)",null,">65 SQ. FT.*",{"$f":"ROLLPLOTSlong","v":1.5},0]
[null,null,0,"Cover(s) @",null,null,{"$f":"COVERS","v":0.5},0]
[null,null,0,"Binder(s) @",null,null,{"$f":"BINDERS","v":0.5},0]
[null,null,0,"Blueprints - 8 1/2 x 11 @",null,null,{"$f":"BLUEPRINTSLETTER","v":0.35},0]
[null,null,0,"Blueprints - 42 x 72 @",null,null,{"$f":"BLUEPRINTSLARGE","v":1.3},0]
[null,"Film and Developing:",0,"Roll(s) @",null,null,{"$f":"FILM","v":20},0]
[null,null,null,null,null,"Subtotal",null,{"$f":"SUM(H6:H25)","v":0}]
["MAPS AND DOCUMENTS:","ITEM","QTY","DESCRIPTION",null,null,"UNIT COST "]
[null,"County Tax Maps:",0,"Map(s) @",null,null,{"$f":"County_Tax_Maps","v":7},{"$f":"SUM(C28*G28)","v":0}]
[null,"USGS Maps:",0,"Map(s) @",null,null,{"$f":"USGSMAPS","v":7},{"$f":"SUM(C29*G29)","v":0}]
[null,null,null,null,null,"Subtotal",null,{"$f":"SUM(H28:H29)","v":0}]
["Miscellaneous Other","ITEM","QTY","DESCRIPTION",null,null,"UNIT COST "]
[null,null,null,null,null,null,null,{"$f":"SUM(C32*G32)","v":0}]
[null,null,null,null,null,null,null,{"$f":"SUM(C33*G33)","v":0}]
[null,null,null,null,null,null,null,0]
[null,null,null,null,null,null,null,0]
[null,null,null,null,null,null,null,0]
[null,null,null,null,null,null,null,0]
[null,null,null,null,null,null,null,0]
[null,null,null,null,null,null,null,{"$f":"SUM(C39*G39)","v":0}]
[null,null,null,null,null,null,null,{"$f":"SUM(C40*G40)","v":0}]
[null,null,null,null,null,null,null,{"$f":"SUM(C41*G41)","v":0}]
[null,null,null,null,null,"Subtotal",null,{"$f":"SUM(H32:H41)","v":0}]
[]
[null,null,null,null,null,"TOTAL",null,{"$f":"SUM(H26+H30+H42)","v":0}]
[]
[null,"* Sum of all plots "]

{"sheet":"Aviation-Sub2","index":197,"n_rows":275,"n_cols":27,"rows_kept":275,"cut":false,"hidden":true,"merged":[[254,26,254,27],[255,26,255,27],[256,26,256,27],[257,26,257,27],[258,26,258,27],[220,26,220,27],[221,26,221,27],[222,26,222,27],[223,26,223,27],[224,26,224,27],[225,26,225,27],[226,26,226,27],[227,26,227,27],[228,26,228,27],[229,26,229,27],[230,26,230,27],[231,26,231,27],[232,26,232,27],[233,26,233,27],[234,26,234,27],[235,26,235,27],[236,26,236,27],[237,26,237,27],[238,26,238,27],[212,26,212,27],[213,26,213,27],[214,26,214,27],[215,26,215,27],[216,26,216,27],[217,26,217,27],[218,26,218,27],[219,26,219,27],[253,26,253,27],[239,26,239,27],[240,26,240,27],[241,26,241,27],[242,26,242,27],[243,26,243,27],[244,26,244,27],[245,26,245,27],[246,26,246,27],[247,26,247,27],[248,26,248,27],[250,26,250,27],[251,26,251,27],[252,26,252,27],[249,26,249,27],[203,26,203,27],[204,26,204,27],[205,26,205,27],[206,26,206,27],[207,26,207,27],[208,26,208,27],[209,26,209,27],[210,26,210,27],[211,26,211,27],[194,26,194,27],[195,26,195,27],[196,26,196,27],[197,26,197,27],[198,26,198,27],[199,26,199,27],[200,26,200,27],[201,26,201,27],[202,26,202,27],[185,26,185,27],[186,26,186,27],[187,26,187,27],[188,26,188,27],[189,26,189,27],[190,26,190,27],[191,26,191,27],[192,26,192,27],[193,26,193,27],[176,26,176,27],[177,26,177,27],[178,26,178,27],[179,26,179,27],[180,26,180,27],[181,26,181,27],[182,26,182,27],[183,26,183,27],[184,26,184,27],[167,26,167,27],[168,26,168,27],[169,26,169,27],[170,26,170,27],[171,26,171,27],[172,26,172,27],[173,26,173,27],[174,26,174,27],[175,26,175,27],[158,26,158,27],[159,26,159,27],[160,26,160,27],[161,26,161,27],[162,26,162,27],[163,26,163,27],[164,26,164,27],[165,26,165,27],[166,26,166,27],[149,26,149,27],[150,26,150,27],[151,26,151,27],[152,26,152,27],[153,26,153,27],[154,26,154,27],[155,26,155,27],[156,26,156,27],[157,26,157,27],[140,26,140,27],[141,26,141,27],[142,26,142,27],[143,26,143,27],[144,26,144,27],[145,26,145,27],[146,26,146,27],[147,26,147,27],[148,26,148,27],[131,26,131,27],[132,26,132,27],[133,26,133,27],[134,26,134,27],[135,26,135,27],[136,26,136,27],[137,26,137,27],[138,26,138,27],[139,26,139,27],[0,0,1,13],[2,1,2,4],[2,6,2,7],[2,10,2,11],[2,15,2,16],[3,1,3,4],[3,6,3,7],[3,10,3,11],[3,15,3,16],[6,12,9,12],[6,13,9,13],[6,14,9,14],[6,15,9,15],[6,16,9,16],[6,17,9,17],[4,3,4,22],[6,3,9,3],[6,4,9,4],[6,5,9,5],[6,6,9,6],[6,7,9,7],[6,8,9,8],[6,9,9,9],[6,10,9,10],[6,11,9,11],[10,26,10,27],[11,26,11,27],[12,26,12,27],[13,26,13,27],[14,26,14,27],[15,26,15,27],[6,18,9,18],[6,19,9,19],[6,20,9,20],[6,21,9,21],[6,22,9,22],[8,26,8,27],[22,26,22,27],[23,26,23,27],[24,26,24,27],[25,26,25,27],[26,26,26,27],[27,26,27,27],[16,26,16,27],[17,26,17,27],[18,26,18,27],[19,26,19,27],[20,26,20,27],[21,26,21,27],[34,26,34,27],[35,26,35,27],[36,26,36,27],[37,26,37,27],[38,26,38,27],[39,26,39,27],[28,26,28,27],[29,26,29,27],[30,26,30,27],[31,26,31,27],[32,26,32,27],[33,26,33,27],[46,26,46,27],[47,26,47,27],[48,26,48,27],[49,26,49,27],[50,26,50,27],[51,26,51,27],[40,26,40,27],[41,26,41,27],[42,26,42,27],[43,26,43,27],[44,26,44,27],[45,26,45,27],[58,26,58,27],[59,26,59,27],[60,26,60,27],[61,26,61,27],[62,26,62,27],[63,26,63,27],[52,26,52,27],[53,26,53,27],[54,26,54,27],[55,26,55,27],[56,26,56,27],[57,26,57,27],[70,26,70,27],[71,26,71,27],[72,26,72,27],[73,26,73,27],[74,26,74,27],[75,26,75,27],[64,26,64,27],[65,26,65,27],[66,26,66,27],[67,26,67,27],[68,26,68,27],[69,26,69,27],[82,26,82,27],[83,26,83,27],[84,26,84,27],[85,26,85,27],[86,26,86,27],[87,26,87,27],[76,26,76,27],[77,26,77,27],[78,26,78,27],[79,26,79,27],[80,26,80,27],[81,26,81,27],[94,26,94,27],[95,26,95,27],[96,26,96,27],[97,26,97,27],[98,26,98,27],[99,26,99,27],[88,26,88,27],[89,26,89,27],[90,26,90,27],[91,26,91,27],[92,26,92,27],[93,26,93,27],[106,26,106,27],[107,26,107,27],[108,26,108,27],[109,26,109,27],[110,26,110,27],[111,26,111,27],[100,26,100,27],[101,26,101,27],[102,26,102,27],[103,26,103,27],[104,26,104,27],[105,26,105,27],[118,26,118,27],[259,26,259,27],[274,1,275,1],[274,3,275,4],[278,3,278,6],[278,8,278,13],[112,26,112,27],[113,26,113,27],[114,26,114,27],[115,26,115,27],[116,26,116,27],[117,26,117,27],[119,26,119,27],[120,26,120,27],[121,26,121,27],[122,26,122,27],[123,26,123,27],[124,26,124,27],[125,26,125,27],[126,26,126,27],[127,26,127,27],[128,26,128,27],[129,26,129,27],[130,26,130,27],[285,8,285,9],[285,10,285,11],[279,8,279,9],[279,10,279,11],[280,8,280,9],[280,10,280,11],[283,8,283,13],[284,8,284,9],[284,10,284,11]]}
["AVIATION--BREAKDOWN WORKSHEET - SUBCONSULTANT 2 -- ENTER WORKHOURS"]
[]
["PROJECT DESCRIPTION: ",{"$f":"PROJECT.DESCRIPTION","v":0},null,null,null,"FIRM:  ",{"$f":"AVIATION.SUB2_CONSULTANT_NAME","v":"CONSULTANT NAME"},null,"TASK ORDER NUMBER:",null,{"$f":"TASK.ORDER.NUMBER","v":0},null,"DATE PREPARED:",{"$f":"IF(SCOPE.MANDAY.ESTIMATE.PREPARED.BY.DATE=\"\",\"\",SCOPE.MANDAY.ESTIMATE.PREPARED.BY.DATE)","v":""}]
["PREPARED BY:  ",{"$f":"IF(SCOPE.MANDAY.ESTIMATE.PREPARED.BY=\"\",\"\",SCOPE.MANDAY.ESTIMATE.PREPARED.BY)","v":""},null,null,null,"TIP NUMBER:",{"$f":"TIP.NUMBER","v":0},null,"WBS NUMBER:",null,{"$f":"WBS.NUMBER","v":""},null,"REVISION DATE:",{"$f":"IF(SCOPE.MANDAY.ESTIMATE.APPROVED.BY.DATE=\"\",\"\",SCOPE.MANDAY.ESTIMATE.APPROVED.BY.DATE)","v":""}]
[null,null,null,"ESTIMATED WORKHOURS"]
[null,null,"EMPLOYEE NAMES",{"$f":"IF('PEF CLASSIFICATION SHEET'!D1800=\"\",\"\",LEFT('PEF CLASSIFICATION SHEET'!D1800,4))","v":""},{"$f":"IF('PEF CLASSIFICATION SHEET'!D1801=\"\",\"\",LEFT('PEF CLASSIFICATION SHEET'!D1801,4))","v":""},{"$f":"IF('PEF CLASSIFICATION SHEET'!D1802=\"\",\"\",LEFT('PEF CLASSIFICATION SHEET'!D1802,4))","v":""},{"$f":"IF('PEF CLASSIFICATION SHEET'!D1803=\"\",\"\",LEFT('PEF CLASSIFICATION SHEET'!D1803,4))","v":""},{"$f":"IF('PEF CLASSIFICATION SHEET'!D1804=\"\",\"\",LEFT('PEF CLASSIFICATION SHEET'!D1804,4))","v":""},{"$f":"IF('PEF CLASSIFICATION SHEET'!D1805=\"\",\"\",LEFT('PEF CLASSIFICATION SHEET'!D1805,4))","v":""},{"$f":"IF('PEF CLASSIFICATION SHEET'!D1806=\"\",\"\",LEFT('PEF CLASSIFICATION SHEET'!D1806,4))","v":""},{"$f":"IF('PEF CLASSIFICATION SHEET'!D1807=\"\",\"\",LEFT('PEF CLASSIFICATION SHEET'!D1807,4))","v":""},{"$f":"IF('PEF CLASSIFICATION SHEET'!D1808=\"\",\"\",LEFT('PEF CLASSIFICATION SHEET'!D1808,4))","v":""},{"$f":"IF('PEF CLASSIFICATION SHEET'!D1809=\"\",\"\",LEFT('PEF CLASSIFICATION SHEET'!D1809,4))","v":""},{"$f":"IF('PEF CLASSIFICATION SHEET'!D1810=\"\",\"\",LEFT('PEF CLASSIFICATION SHEET'!D1810,4))","v":""},{"$f":"IF('PEF CLASSIFICATION SHEET'!D1811=\"\",\"\",LEFT('PEF CLASSIFICATION SHEET'!D1811,4))","v":""},{"$f":"IF('PEF CLASSIFICATION SHEET'!D1812=\"\",\"\",LEFT('PEF CLASSIFICATION SHEET'!D1812,4))","v":""},{"$f":"IF('PEF CLASSIFICATION SHEET'!D1813=\"\",\"\",LEFT('PEF CLASSIFICATION SHEET'!D1813,4))","v":""},{"$f":"IF('PEF CLASSIFICATION SHEET'!D1814=\"\",\"\",LEFT('PEF CLASSIFICATION SHEET'!D1814,4))","v":""},{"$f":"IF('PEF CLASSIFICATION SHEET'!D1815=\"\",\"\",LEFT('PEF CLASSIFICATION SHEET'!D1815,4))","v":""},{"$f":"IF('PEF CLASSIFICATION SHEET'!D1816=\"\",\"\",LEFT('PEF CLASSIFICATION SHEET'!D1816,4))","v":""},{"$f":"IF('PEF CLASSIFICATION SHEET'!D1817=\"\",\"\",LEFT('PEF CLASSIFICATION SHEET'!D1817,4))","v":""},{"$f":"IF('PEF CLASSIFICATION SHEET'!D1818=\"\",\"\",LEFT('PEF CLASSIFICATION SHEET'!D1818,4))","v":""},{"$f":"IF('PEF CLASSIFICATION SHEET'!D1819=\"\",\"\",LEFT('PEF CLASSIFICATION SHEET'!D1819,4))","v":""}]
[null,null,null,{"$f":"IF('PEF CLASSIFICATION SHEET'!C1800=\"\",\"\",'PEF CLASSIFICATION SHEET'!C1800)","v":""},{"$f":"IF('PEF CLASSIFICATION SHEET'!C1801=\"\",\"\",'PEF CLASSIFICATION SHEET'!C1801)","v":""},{"$f":"IF('PEF CLASSIFICATION SHEET'!C1802=\"\",\"\",'PEF CLASSIFICATION SHEET'!C1802)","v":""},{"$f":"IF('PEF CLASSIFICATION SHEET'!C1803=\"\",\"\",'PEF CLASSIFICATION SHEET'!C1803)","v":""},{"$f":"IF('PEF CLASSIFICATION SHEET'!C1804=\"\",\"\",'PEF CLASSIFICATION SHEET'!C1804)","v":""},{"$f":"IF('PEF CLASSIFICATION SHEET'!C1805=\"\",\"\",'PEF CLASSIFICATION SHEET'!C1805)","v":""},{"$f":"IF('PEF CLASSIFICATION SHEET'!C1806=\"\",\"\",'PEF CLASSIFICATION SHEET'!C1806)","v":""},{"$f":"IF('PEF CLASSIFICATION SHEET'!C1807=\"\",\"\",'PEF CLASSIFICATION SHEET'!C1807)","v":""},{"$f":"IF('PEF CLASSIFICATION SHEET'!C1808=\"\",\"\",'PEF CLASSIFICATION SHEET'!C1808)","v":""},{"$f":"IF('PEF CLASSIFICATION SHEET'!C1809=\"\",\"\",'PEF CLASSIFICATION SHEET'!C1809)","v":""},{"$f":"IF('PEF CLASSIFICATION SHEET'!C1810=\"\",\"\",'PEF CLASSIFICATION SHEET'!C1810)","v":""},{"$f":"IF('PEF CLASSIFICATION SHEET'!C1811=\"\",\"\",'PEF CLASSIFICATION SHEET'!C1811)","v":""},{"$f":"IF('PEF CLASSIFICATION SHEET'!C1812=\"\",\"\",'PEF CLASSIFICATION SHEET'!C1812)","v":""},{"$f":"IF('PEF CLASSIFICATION SHEET'!C1813=\"\",\"\",'PEF CLASSIFICATION SHEET'!C1813)","v":""},{"$f":"IF('PEF CLASSIFICATION SHEET'!C1814=\"\",\"\",'PEF CLASSIFICATION SHEET'!C1814)","v":""},{"$f":"IF('PEF CLASSIFICATION SHEET'!C1815=\"\",\"\",'PEF CLASSIFICATION SHEET'!C1815)","v":""},{"$f":"IF('PEF CLASSIFICATION SHEET'!C1816=\"\",\"\",'PEF CLASSIFICATION SHEET'!C1816)","v":""},{"$f":"IF('PEF CLASSIFICATION SHEET'!C1817=\"\",\"\",'PEF CLASSIFICATION SHEET'!C1817)","v":""},{"$f":"IF('PEF CLASSIFICATION SHEET'!C1818=\"\",\"\",'PEF CLASSIFICATION SHEET'!C1818)","v":""},{"$f":"IF('PEF CLASSIFICATION SHEET'!C1819=\"\",\"\",'PEF CLASSIFICATION SHEET'!C1819)","v":""},"SUB-","%","PEF"]
[null,null,null,null,null,null,null,null,null,null,null,null,null,null,null,null,null,null,null,null,null,null,null,"TOTAL","OF","ESTIMATE"]
["TASK","TASK DESCRIPTION","CLASSIFICATION",null,null,null,null,null,null,null,null,null,null,null,null,null,null,null,null,null,null,null,null,null,"PROJECT",null,"COMMENTS"]
["NO."]
[null,"PLANNING",null,null,null,null,null,null,null,null,null,null,null,null,null,null,null,null,null,null,null,null,null,{"$f":"IF(B11=\"\",0,IF((SUM(D12:W104)=0),SUM(D11:W11),\"\"))","v":0},{"$f":"IF(X11=\"\",\"\",SUM((X11/$X$261)))","v":{"$error":"#DIV/0!"}}]
[null,"Study design ",null,null,null,null,null,null,null,null,null,null,null,null,null,null,null,null,null,null,null,null,null,{"$f":"IF(B12=\"\",0,IF((SUM(D17:W34)=0),SUM(D12:W12),\"\"))","v":0},{"$error":"#DIV/0!"}]
[null,"Project definition",null,null,null,null,null,null,null,null,null,null,null,null,null,null,null,null,null,null,null,null,null,{"$f":"IF(B13=\"\",0,IF((SUM(D13:W13)=0),0,SUM(D13:W13)))","v":0},{"$error":"#DIV/0!"}]
[null,"Kick-off meetings",null,null,null,null,null,null,null,null,null,null,null,null,null,null,null,null,null,null,null,null,null,{"$f":"IF(B14=\"\",0,IF((SUM(D14:W14)=0),0,SUM(D14:W14)))","v":0},{"$error":"#DIV/0!"}]
[null,"Goals/Objectives/Schedule/Deliverable/Public Involvement Plan/Budget",null,null,null,null,null,null,null,null,null,null,null,null,null,null,null,null,null,null,null,null,null,0,{"$error":"#DIV/0!"}]
[null,null,null,null,null,null,null,null,null,null,null,null,null,null,null,null,null,null,null,null,null,null,null,0,{"$error":"#DIV/0!"}]
[null,null,null,null,null,null,null,null,null,null,null,null,null,null,null,null,null,null,null,null,null,null,null,0,{"$error":"#DIV/0!"}]
[null,"Sub-consultant coordination",null,null,null,null,null,null,null,null,null,null,null,null,null,null,null,null,null,null,null,null,null,0,{"$error":"#DIV/0!"}]
[null,"IFE coordination",null,null,null,null,null,null,null,null,null,null,null,null,null,null,null,null,null,null,null,null,null,0,{"$error":"#DIV/0!"}]
[null,"Airport board/steering committee input and update meetings",null,null,null,null,null,null,null,null,null,null,null,null,null,null,null,null,null,null,null,null,null,0,{"$error":"#DIV/0!"}]
[null,"Grant application",null,null,null,null,null,null,null,null,null,null,null,null,null,null,null,null,null,null,null,null,null,0,{"$error":"#DIV/0!"}]
[null,"Invoicing/Grant Admin",null,null,null,null,null,null,null,null,null,null,null,null,null,null,null,null,null,null,null,null,null,0,{"$error":"#DIV/0!"}]
[null,"Grant close-out",null,null,null,null,null,null,null,null,null,null,null,null,null,null,null,null,null,null,null,null,null,0,{"$error":"#DIV/0!"}]
[null,"Existing conditions",null,null,null,null,null,null,null,null,null,null,null,null,null,null,null,null,null,null,null,null,null,{"$f":"IF(B24=\"\",0,IF((SUM(D25:W29)=0),SUM(D24:W24),\"\"))","v":0},{"$error":"#DIV/0!"}]
[null,"Review of planning documents and studies",null,null,null,null,null,null,null,null,null,null,null,null,null,null,null,null,null,null,null,null,null,{"$f":"IF(B25=\"\",0,IF((SUM(D25:W25)=0),0,SUM(D25:W25)))","v":0},{"$error":"#DIV/0!"}]
[null,"Airport history",null,null,null,null,null,null,null,null,null,null,null,null,null,null,null,null,null,null,null,null,null,0,{"$error":"#DIV/0!"}]
[null,"Data collection from available resources",null,null,null,null,null,null,null,null,null,null,null,null,null,null,null,null,null,null,null,null,null,0,{"$error":"#DIV/0!"}]
[null,null,null,null,null,null,null,null,null,null,null,null,null,null,null,null,null,null,null,null,null,null,null,0,{"$error":"#DIV/0!"}]
[null,null,null,null,null,null,null,null,null,null,null,null,null,null,null,null,null,null,null,null,null,null,null,0,{"$error":"#DIV/0!"}]
[null,"Inventory",null,null,null,null,null,null,null,null,null,null,null,null,null,null,null,null,null,null,null,null,null,{"$f":"IF(B30=\"\",0,IF((SUM(D31:W45)=0),SUM(D30:W30),\"\"))","v":0},{"$error":"#DIV/0!"}]
[null,"Airside facilities",null,null,null,null,null,null,null,null,null,null,null,null,null,null,null,null,null,null,null,null,null,{"$f":"IF(B31=\"\",0,IF((SUM(D31:W31)=0),0,SUM(D31:W31)))","v":0},{"$error":"#DIV/0!"}]
[null,"Landside facilities",null,null,null,null,null,null,null,null,null,null,null,null,null,null,null,null,null,null,null,null,null,0,{"$error":"#DIV/0!"}]
[null,"Facility access",null,null,null,null,null,null,null,null,null,null,null,null,null,null,null,null,null,null,null,null,null,0,{"$error":"#DIV/0!"}]
[null,"Utilities",null,null,null,null,null,null,null,null,null,null,null,null,null,null,null,null,null,null,null,null,null,0,{"$error":"#DIV/0!"}]
[null,"Regional setting and land use",null,null,null,null,null,null,null,null,null,null,null,null,null,null,null,null,null,null,null,null,null,0,{"$error":"#DIV/0!"}]
[null,"Environmental overview",null,null,null,null,null,null,null,null,null,null,null,null,null,null,null,null,null,null,null,null,null,0,{"$error":"#DIV/0!"}]
[null,"Operations data",null,null,null,null,null,null,null,null,null,null,null,null,null,null,null,null,null,null,null,null,null,0,{"$error":"#DIV/0!"}]
[null,"Financial data",null,null,null,null,null,null,null,null,null,null,null,null,null,null,null,null,null,null,null,null,null,0,{"$error":"#DIV/0!"}]
[null,"Obstruction survey with mapping",null,null,null,null,null,null,null,null,null,null,null,null,null,null,null,null,null,null,null,null,null,0,{"$error":"#DIV/0!"}]
[null,"On-airport land use",null,null,null,null,null,null,null,null,null,null,null,null,null,null,null,null,null,null,null,null,null,0,{"$error":"#DIV/0!"}]
[null,"Meteorology and magnetic declination data",null,null,null,null,null,null,null,null,null,null,null,null,null,null,null,null,null,null,null,null,null,0,{"$error":"#DIV/0!"}]
[null,null,null,null,null,null,null,null,null,null,null,null,null,null,null,null,null,null,null,null,null,null,null,0,{"$error":"#DIV/0!"}]
[null,null,null,null,null,null,null,null,null,null,null,null,null,null,null,null,null,null,null,null,null,null,null,0,{"$error":"#DIV/0!"}]
[null,null,null,null,null,null,null,null,null,null,null,null,null,null,null,null,null,null,null,null,null,null,null,0,{"$error":"#DIV/0!"}]
[null,null,null,null,null,null,null,null,null,null,null,null,null,null,null,null,null,null,null,null,null,null,null,0,{"$error":"#DIV/0!"}]
[null,"Aviation Forecasts ",null,null,null,null,null,null,null,null,null,null,null,null,null,null,null,null,null,null,null,null,null,{"$f":"IF(B46=\"\",0,IF((SUM(D47:W56)=0),SUM(D46:W46),\"\"))","v":0},{"$error":"#DIV/0!"}]
[null,"Review current and previous forecasts and data",null,null,null,null,null,null,null,null,null,null,null,null,null,null,null,null,null,null,null,null,null,{"$f":"IF(B47=\"\",0,IF((SUM(D47:W47)=0),0,SUM(D47:W47)))","v":0},{"$error":"#DIV/0!"}]
[null,"Select methodologies",null,null,null,null,null,null,null,null,null,null,null,null,null,null,null,null,null,null,null,null,null,0,{"$error":"#DIV/0!"}]
[null,"Review of NCASP data",null,null,null,null,null,null,null,null,null,null,null,null,null,null,null,null,null,null,null,null,null,0,{"$error":"#DIV/0!"}]
[null,"Review of TAF",null,null,null,null,null,null,null,null,null,null,null,null,null,null,null,null,null,null,null,null,null,0,{"$error":"#DIV/0!"}]
[null,"Comparison matrix and recommendation",null,null,null,null,null,null,null,null,null,null,null,null,null,null,null,null,null,null,null,null,null,0,{"$error":"#DIV/0!"}]
[null,"Critical aircraft existing and future",null,null,null,null,null,null,null,null,null,null,null,null,null,null,null,null,null,null,null,null,null,0,{"$error":"#DIV/0!"}]
[null,"Facilitate DoA review of forecast",null,null,null,null,null,null,null,null,null,null,null,null,null,null,null,null,null,null,null,null,null,0,{"$error":"#DIV/0!"}]
[null,null,null,null,null,null,null,null,null,null,null,null,null,null,null,null,null,null,null,null,null,null,null,0,{"$error":"#DIV/0!"}]
[null,null,null,null,null,null,null,null,null,null,null,null,null,null,null,null,null,null,null,null,null,null,null,0,{"$error":"#DIV/0!"}]
[null,null,null,null,null,null,null,null,null,null,null,null,null,null,null,null,null,null,null,null,null,null,null,0,{"$error":"#DIV/0!"}]
[null,"Facility requirements ",null,null,null,null,null,null,null,null,null,null,null,null,null,null,null,null,null,null,null,null,null,{"$f":"IF(B57=\"\",0,IF((SUM(D58:W67)=0),SUM(D57:W57),\"\"))","v":0},{"$error":"#DIV/0!"}]
[null,"Capacity/delay",null,null,null,null,null,null,null,null,null,null,null,null,null,null,null,null,null,null,null,null,null,{"$f":"IF(B58=\"\",0,IF((SUM(D58:W58)=0),0,SUM(D58:W58)))","v":0},{"$error":"#DIV/0!"}]
[null,"Runway and taxiway requirements",null,null,null,null,null,null,null,null,null,null,null,null,null,null,null,null,null,null,null,null,null,0,{"$error":"#DIV/0!"}]
[null,"Navaid requirements",null,null,null,null,null,null,null,null,null,null,null,null,null,null,null,null,null,null,null,null,null,0,{"$error":"#DIV/0!"}]
[null,"Ground access",null,null,null,null,null,null,null,null,null,null,null,null,null,null,null,null,null,null,null,null,null,0,{"$error":"#DIV/0!"}]
[null,"Utilities",null,null,null,null,null,null,null,null,null,null,null,null,null,null,null,null,null,null,null,null,null,0,{"$error":"#DIV/0!"}]
[null,"GA facilities",null,null,null,null,null,null,null,null,null,null,null,null,null,null,null,null,null,null,null,null,null,0,{"$error":"#DIV/0!"}]
[null,"Fuel",null,null,null,null,null,null,null,null,null,null,null,null,null,null,null,null,null,null,null,null,null,0,{"$error":"#DIV/0!"}]
[null,"Aircraft maintenance",null,null,null,null,null,null,null,null,null,null,null,null,null,null,null,null,null,null,null,null,null,0,{"$error":"#DIV/0!"}]
[null,null,null,null,null,null,null,null,null,null,null,null,null,null,null,null,null,null,null,null,null,null,null,0,{"$error":"#DIV/0!"}]
[null,null,null,null,null,null,null,null,null,null,null,null,null,null,null,null,null,null,null,null,null,null,null,0,{"$error":"#DIV/0!"}]
[null,"Alternatives",null,null,null,null,null,null,null,null,null,null,null,null,null,null,null,null,null,null,null,null,null,{"$f":"IF(B68=\"\",0,IF((SUM(D69:W75)=0),SUM(D68:W68),\"\"))","v":0},{"$error":"#DIV/0!"}]
[null,"Airfield",null,null,null,null,null,null,null,null,null,null,null,null,null,null,null,null,null,null,null,null,null,{"$f":"IF(B69=\"\",0,IF((SUM(D69:W69)=0),0,SUM(D69:W69)))","v":0},{"$error":"#DIV/0!"}]
[null,"GA terminal development",null,null,null,null,null,null,null,null,null,null,null,null,null,null,null,null,null,null,null,null,null,0,{"$error":"#DIV/0!"}]
[null,"MRO",null,null,null,null,null,null,null,null,null,null,null,null,null,null,null,null,null,null,null,null,null,0,{"$error":"#DIV/0!"}]
[null,"Other support facilities",null,null,null,null,null,null,null,null,null,null,null,null,null,null,null,null,null,null,null,null,null,0,{"$error":"#DIV/0!"}]
[null,"Evaluation of alts",null,null,null,null,null,null,null,null,null,null,null,null,null,null,null,null,null,null,null,null,null,0,{"$error":"#DIV/0!"}]
[null,null,null,null,null,null,null,null,null,null,null,null,null,null,null,null,null,null,null,null,null,null,null,0,{"$error":"#DIV/0!"}]
[null,null,null,null,null,null,null,null,null,null,null,null,null,null,null,null,null,null,null,null,null,null,null,0,{"$f":"IF(X75=\"\",\"\",SUM((X75/$X$261)))","v":{"$error":"#DIV/0!"}}]
[null,"Public involvement and stakeholder meetings as per plan",null,null,null,null,null,null,null,null,null,null,null,null,null,null,null,null,null,null,null,null,null,0,{"$error":"#DIV/0!"}]
[null,"Schedules of development",null,null,null,null,null,null,null,null,null,null,null,null,null,null,null,null,null,null,null,null,null,0,{"$error":"#DIV/0!"}]
[null,"Estimates of development costs",null,null,null,null,null,null,null,null,null,null,null,null,null,null,null,null,null,null,null,null,null,0,{"$error":"#DIV/0!"}]
[null,"ALP plan set",null,null,null,null,null,null,null,null,null,null,null,null,null,null,null,null,null,null,null,null,null,{"$f":"IF(B79=\"\",0,IF((SUM(D80:W92)=0),SUM(D79:W79),\"\"))","v":0},{"$error":"#DIV/0!"}]
[null,"Title sheet",null,null,null,null,null,null,null,null,null,null,null,null,null,null,null,null,null,null,null,null,null,{"$f":"IF(B80=\"\",0,IF((SUM(D80:W80)=0),0,SUM(D80:W80)))","v":0},{"$error":"#DIV/0!"}]
[null,"Ground control survey",null,null,null,null,null,null,null,null,null,null,null,null,null,null,null,null,null,null,null,null,null,0,{"$error":"#DIV/0!"}]
[null,"Existing facilities drawing",null,null,null,null,null,null,null,null,null,null,null,null,null,null,null,null,null,null,null,null,null,0,{"$error":"#DIV/0!"}]
[null,"Property map or exhibit A",null,null,null,null,null,null,null,null,null,null,null,null,null,null,null,null,null,null,null,null,null,0,{"$error":"#DIV/0!"}]
[null,"Airspace drawing",null,null,null,null,null,null,null,null,null,null,null,null,null,null,null,null,null,null,null,null,null,0,{"$error":"#DIV/0!"}]
[null,"Inner portion of the approach surface drawing",null,null,null,null,null,null,null,null,null,null,null,null,null,null,null,null,null,null,null,null,null,0,{"$error":"#DIV/0!"}]
[null,"Obstruction analysis",null,null,null,null,null,null,null,null,null,null,null,null,null,null,null,null,null,null,null,null,null,0,{"$error":"#DIV/0!"}]
[null,"Runway departure surface sheet",null,null,null,null,null,null,null,null,null,null,null,null,null,null,null,null,null,null,null,null,null,0,{"$error":"#DIV/0!"}]
[null,"Terminal area plan sheet",null,null,null,null,null,null,null,null,null,null,null,null,null,null,null,null,null,null,null,null,null,0,{"$error":"#DIV/0!"}]
[null,"Land use plan sheet",null,null,null,null,null,null,null,null,null,null,null,null,null,null,null,null,null,null,null,null,null,0,{"$error":"#DIV/0!"}]
[null,null,null,null,null,null,null,null,null,null,null,null,null,null,null,null,null,null,null,null,null,null,null,0,{"$error":"#DIV/0!"}]
[null,null,null,null,null,null,null,null,null,null,null,null,null,null,null,null,null,null,null,null,null,null,null,0,{"$error":"#DIV/0!"}]
[null,null,null,null,null,null,null,null,null,null,null,null,null,null,null,null,null,null,null,null,null,null,null,0,{"$error":"#DIV/0!"}]
[null,"ALP checklist completion",null,null,null,null,null,null,null,null,null,null,null,null,null,null,null,null,null,null,null,null,null,0,{"$error":"#DIV/0!"}]
[null,"Status reports, draft submittals",null,null,null,null,null,null,null,null,null,null,null,null,null,null,null,null,null,null,null,null,null,0,{"$error":"#DIV/0!"}]
[null,null,null,null,null,null,null,null,null,null,null,null,null,null,null,null,null,null,null,null,null,null,null,0,{"$error":"#DIV/0!"}]
[null,null,null,null,null,null,null,null,null,null,null,null,null,null,null,null,null,null,null,null,null,null,null,0,{"$error":"#DIV/0!"}]
[null,null,null,null,null,null,null,null,null,null,null,null,null,null,null,null,null,null,null,null,null,null,null,0,{"$error":"#DIV/0!"}]
[null,null,null,null,null,null,null,null,null,null,null,null,null,null,null,null,null,null,null,null,null,null,null,0,{"$error":"#DIV/0!"}]
[null,null,null,null,null,null,null,null,null,null,null,null,null,null,null,null,null,null,null,null,null,null,null,0,{"$error":"#DIV/0!"}]
[null,null,null,null,null,null,null,null,null,null,null,null,null,null,null,null,null,null,null,null,null,null,null,0,{"$error":"#DIV/0!"}]
[null,null,null,null,null,null,null,null,null,null,null,null,null,null,null,null,null,null,null,null,null,null,null,0,{"$error":"#DIV/0!"}]
[null,null,null,null,null,null,null,null,null,null,null,null,null,null,null,null,null,null,null,null,null,null,null,0,{"$error":"#DIV/0!"}]
[null,null,null,null,null,null,null,null,null,null,null,null,null,null,null,null,null,null,null,null,null,null,null,0,{"$error":"#DIV/0!"}]
[null,null,null,null,null,null,null,null,null,null,null,null,null,null,null,null,null,null,null,null,null,null,null,0,{"$error":"#DIV/0!"}]
[null,"DESIGN",null,null,null,null,null,null,null,null,null,null,null,null,null,null,null,null,null,null,null,null,null,{"$f":"IF(B105=\"\",0,IF((SUM(D106:W179)=0),SUM(D105:W105),\"\"))","v":0},{"$error":"#DIV/0!"}]
[null,"Project formulation",null,null,null,null,null,null,null,null,null,null,null,null,null,null,null,null,null,null,null,null,null,{"$f":"IF(B106=\"\",0,IF((SUM(D106:W106)=0),0,SUM(D106:W106)))","v":0},{"$error":"#DIV/0!"}]
[null,"Study design ",null,null,null,null,null,null,null,null,null,null,null,null,null,null,null,null,null,null,null,null,null,{"$f":"IF(B107=\"\",0,IF((SUM(D108:W112)=0),SUM(D107:W107),\"\"))","v":0},{"$error":"#DIV/0!"}]
[null,"Project definition",null,null,null,null,null,null,null,null,null,null,null,null,null,null,null,null,null,null,null,null,null,{"$f":"IF(B108=\"\",0,IF((SUM(D108:W108)=0),0,SUM(D108:W108)))","v":0},{"$error":"#DIV/0!"}]
[null,"Kick-off meetings",null,null,null,null,null,null,null,null,null,null,null,null,null,null,null,null,null,null,null,null,null,0,{"$error":"#DIV/0!"}]
[null,"Schedule/deliverables/plan/budget",null,null,null,null,null,null,null,null,null,null,null,null,null,null,null,null,null,null,null,null,null,0,{"$error":"#DIV/0!"}]
[null,null,null,null,null,null,null,null,null,null,null,null,null,null,null,null,null,null,null,null,null,null,null,0,{"$error":"#DIV/0!"}]
[null,null,null,null,null,null,null,null,null,null,null,null,null,null,null,null,null,null,null,null,null,null,null,0,{"$error":"#DIV/0!"}]
[null,"Sub consultant coordination",null,null,null,null,null,null,null,null,null,null,null,null,null,null,null,null,null,null,null,null,null,0,{"$error":"#DIV/0!"}]
[null,"IFE coordination",null,null,null,null,null,null,null,null,null,null,null,null,null,null,null,null,null,null,null,null,null,0,{"$error":"#DIV/0!"}]
[null,"Airport board/steering committee input and update meetings",null,null,null,null,null,null,null,null,null,null,null,null,null,null,null,null,null,null,null,null,null,0,{"$error":"#DIV/0!"}]
[null,"Grant application",null,null,null,null,null,null,null,null,null,null,null,null,null,null,null,null,null,null,null,null,null,0,{"$error":"#DIV/0!"}]
[null,"Invoicing/grant admin",null,null,null,null,null,null,null,null,null,null,null,null,null,null,null,null,null,null,null,null,null,0,{"$error":"#DIV/0!"}]
[null,"CatEx NEPA document ",null,null,null,null,null,null,null,null,null,null,null,null,null,null,null,null,null,null,null,null,null,{"$f":"IF(B118=\"\",0,IF((SUM(D119:W128)=0),SUM(D118:W118),\"\"))","v":0},{"$error":"#DIV/0!"}]
[null,"Study area and vicinity map",null,null,null,null,null,null,null,null,null,null,null,null,null,null,null,null,null,null,null,null,null,{"$f":"IF(B119=\"\",0,IF((SUM(D119:W119)=0),0,SUM(D119:W119)))","v":0},{"$error":"#DIV/0!"}]
[null,"Environmental features map",null,null,null,null,null,null,null,null,null,null,null,null,null,null,null,null,null,null,null,null,null,0,{"$error":"#DIV/0!"}]
[null,"Start of study or scoping letter for environmental clearinghouse",null,null,null,null,null,null,null,null,null,null,null,null,null,null,null,null,null,null,null,null,null,0,{"$error":"#DIV/0!"}]
[null,"Other agency coordination and stakeholder involvement",null,null,null,null,null,null,null,null,null,null,null,null,null,null,null,null,null,null,null,null,null,0,{"$error":"#DIV/0!"}]
[null,"Landowner notification",null,null,null,null,null,null,null,null,null,null,null,null,null,null,null,null,null,null,null,null,null,0,{"$error":"#DIV/0!"}]
[null,"Address impact categories with obtained data",null,null,null,null,null,null,null,null,null,null,null,null,null,null,null,null,null,null,null,null,null,0,{"$error":"#DIV/0!"}]
[null,"Submit draft document for review",null,null,null,null,null,null,null,null,null,null,null,null,null,null,null,null,null,null,null,null,null,0,{"$error":"#DIV/0!"}]
[null,null,null,null,null,null,null,null,null,null,null,null,null,null,null,null,null,null,null,null,null,null,null,0,{"$error":"#DIV/0!"}]
[null,null,null,null,null,null,null,null,null,null,null,null,null,null,null,null,null,null,null,null,null,null,null,0,{"$error":"#DIV/0!"}]
[null,null,null,null,null,null,null,null,null,null,null,null,null,null,null,null,null,null,null,null,null,null,null,0,{"$error":"#DIV/0!"}]
[null,"Permit application & agency meeting regarding permitting",null,null,null,null,null,null,null,null,null,null,null,null,null,null,null,null,null,null,null,null,null,{"$f":"IF(B129=\"\",0,IF((SUM(D129:W129)=0),0,SUM(D129:W129)))","v":0},{"$error":"#DIV/0!"}]
[null,"Survey of existing conditions ",null,null,null,null,null,null,null,null,null,null,null,null,null,null,null,null,null,null,null,null,null,{"$f":"IF(B130=\"\",0,IF((SUM(D131:W136)=0),SUM(D130:W130),\"\"))","v":0},{"$error":"#DIV/0!"}]
[null,"Collect existing survey data",null,null,null,null,null,null,null,null,null,null,null,null,null,null,null,null,null,null,null,null,null,{"$f":"IF(B131=\"\",0,IF((SUM(D131:W131)=0),0,SUM(D131:W131)))","v":0},{"$error":"#DIV/0!"}]
[null,"Obtain new data as needed",null,null,null,null,null,null,null,null,null,null,null,null,null,null,null,null,null,null,null,null,null,0,{"$error":"#DIV/0!"}]
[null,"Incorporate into base plans",null,null,null,null,null,null,null,null,null,null,null,null,null,null,null,null,null,null,null,null,null,0,{"$error":"#DIV/0!"}]
[null,"CADD mapping",null,null,null,null,null,null,null,null,null,null,null,null,null,null,null,null,null,null,null,null,null,0,{"$error":"#DIV/0!"}]
[null,null,null,null,null,null,null,null,null,null,null,null,null,null,null,null,null,null,null,null,null,null,null,0,{"$error":"#DIV/0!"}]
[null,null,null,null,null,null,null,null,null,null,null,null,null,null,null,null,null,null,null,null,null,null,null,0,{"$error":"#DIV/0!"}]
[null,"Geotechnical investigations",null,null,null,null,null,null,null,null,null,null,null,null,null,null,null,null,null,null,null,null,null,0,{"$error":"#DIV/0!"}]
[null,"Construction plans production ",null,null,null,null,null,null,null,null,null,null,null,null,null,null,null,null,null,null,null,null,null,{"$f":"IF(B138=\"\",0,IF((SUM(D139:W160)=0),SUM(D138:W138),\"\"))","v":0},{"$error":"#DIV/0!"}]
[null,"Title sheet",null,null,null,null,null,null,null,null,null,null,null,null,null,null,null,null,null,null,null,null,null,{"$f":"IF(B139=\"\",0,IF((SUM(D139:W139)=0),0,SUM(D139:W139)))","v":0},{"$f":"IF(X139=\"\",\"\",SUM((X139/$X$261)))","v":{"$error":"#DIV/0!"}}]
[null,"Index of drawings",null,null,null,null,null,null,null,null,null,null,null,null,null,null,null,null,null,null,null,null,null,0,{"$error":"#DIV/0!"}]
[null,"Summary of quantities",null,null,null,null,null,null,null,null,null,null,null,null,null,null,null,null,null,null,null,null,null,0,{"$error":"#DIV/0!"}]
[null,"Pipe schedule",null,null,null,null,null,null,null,null,null,null,null,null,null,null,null,null,null,null,null,null,null,0,{"$error":"#DIV/0!"}]
[null,"General notes",null,null,null,null,null,null,null,null,null,null,null,null,null,null,null,null,null,null,null,null,null,0,{"$error":"#DIV/0!"}]
[null,"Legend",null,null,null,null,null,null,null,null,null,null,null,null,null,null,null,null,null,null,null,null,null,0,{"$error":"#DIV/0!"}]
[null,"Project layout",null,null,null,null,null,null,null,null,null,null,null,null,null,null,null,null,null,null,null,null,null,0,{"$error":"#DIV/0!"}]
[null,"Haul roads/staging areas",null,null,null,null,null,null,null,null,null,null,null,null,null,null,null,null,null,null,null,null,null,0,{"$error":"#DIV/0!"}]
[null,"Soil boring plans and logs",null,null,null,null,null,null,null,null,null,null,null,null,null,null,null,null,null,null,null,null,null,0,{"$error":"#DIV/0!"}]
[null,"Safety and security notes and details",null,null,null,null,null,null,null,null,null,null,null,null,null,null,null,null,null,null,null,null,null,0,{"$error":"#DIV/0!"}]
[null,"Plan/profile proposed",null,null,null,null,null,null,null,null,null,null,null,null,null,null,null,null,null,null,null,null,null,0,{"$error":"#DIV/0!"}]
[null,"Typical sections",null,null,null,null,null,null,null,null,null,null,null,null,null,null,null,null,null,null,null,null,null,0,{"$error":"#DIV/0!"}]
[null,"Grading/drainage plans",null,null,null,null,null,null,null,null,null,null,null,null,null,null,null,null,null,null,null,null,null,0,{"$error":"#DIV/0!"}]
[null,"Construction safety and phasing plan",null,null,null,null,null,null,null,null,null,null,null,null,null,null,null,null,null,null,null,null,null,0,{"$error":"#DIV/0!"}]
[null,"Paving plan",null,null,null,null,null,null,null,null,null,null,null,null,null,null,null,null,null,null,null,null,null,0,{"$error":"#DIV/0!"}]
[null,"Erosion and sediment control plans",null,null,null,null,null,null,null,null,null,null,null,null,null,null,null,null,null,null,null,null,null,0,{"$error":"#DIV/0!"}]
[null,"Pavement marking details",null,null,null,null,null,null,null,null,null,null,null,null,null,null,null,null,null,null,null,null,null,0,{"$error":"#DIV/0!"}]
[null,"Miscellaneous details",null,null,null,null,null,null,null,null,null,null,null,null,null,null,null,null,null,null,null,null,null,0,{"$error":"#DIV/0!"}]
[null,"Cross sections",null,null,null,null,null,null,null,null,null,null,null,null,null,null,null,null,null,null,null,null,null,0,{"$error":"#DIV/0!"}]
[null,null,null,null,null,null,null,null,null,null,null,null,null,null,null,null,null,null,null,null,null,null,null,0,{"$error":"#DIV/0!"}]
[null,null,null,null,null,null,null,null,null,null,null,null,null,null,null,null,null,null,null,null,null,null,null,0,{"$error":"#DIV/0!"}]
[null,null,null,null,null,null,null,null,null,null,null,null,null,null,null,null,null,null,null,null,null,null,null,0,{"$error":"#DIV/0!"}]
[null,"Incorporate safety plan comments",null,null,null,null,null,null,null,null,null,null,null,null,null,null,null,null,null,null,null,null,null,0,{"$error":"#DIV/0!"}]
[null,"Incorporate 30% review comments",null,null,null,null,null,null,null,null,null,null,null,null,null,null,null,null,null,null,null,null,null,0,{"$error":"#DIV/0!"}]
[null,"Incorporate 60% review comments",null,null,null,null,null,null,null,null,null,null,null,null,null,null,null,null,null,null,null,null,null,0,{"$error":"#DIV/0!"}]
[null,"Prepare bid documents",null,null,null,null,null,null,null,null,null,null,null,null,null,null,null,null,null,null,null,null,null,0,{"$error":"#DIV/0!"}]
[null,"Advertise and distribute bid documents",null,null,null,null,null,null,null,null,null,null,null,null,null,null,null,null,null,null,null,null,null,0,{"$error":"#DIV/0!"}]
[null,"Attend and conduct pre-bid meeting",null,null,null,null,null,null,null,null,null,null,null,null,null,null,null,null,null,null,null,null,null,0,{"$error":"#DIV/0!"}]
[null,"Issue addenda and address questions by prospective bidders ",null,null,null,null,null,null,null,null,null,null,null,null,null,null,null,null,null,null,null,null,null,0,{"$error":"#DIV/0!"}]
[null,"Attend and conduct bid opening, prepare bid tab and recommend award",null,null,null,null,null,null,null,null,null,null,null,null,null,null,null,null,null,null,null,null,null,0,{"$error":"#DIV/0!"}]
[null,"Grant close-out",null,null,null,null,null,null,null,null,null,null,null,null,null,null,null,null,null,null,null,null,null,0,{"$error":"#DIV/0!"}]
[null,null,null,null,null,null,null,null,null,null,null,null,null,null,null,null,null,null,null,null,null,null,null,0,{"$error":"#DIV/0!"}]
[null,null,null,null,null,null,null,null,null,null,null,null,null,null,null,null,null,null,null,null,null,null,null,0,{"$error":"#DIV/0!"}]
[null,null,null,null,null,null,null,null,null,null,null,null,null,null,null,null,null,null,null,null,null,null,null,0,{"$error":"#DIV/0!"}]
[null,null,null,null,null,null,null,null,null,null,null,null,null,null,null,null,null,null,null,null,null,null,null,0,{"$error":"#DIV/0!"}]
[null,null,null,null,null,null,null,null,null,null,null,null,null,null,null,null,null,null,null,null,null,null,null,0,{"$error":"#DIV/0!"}]
[null,null,null,null,null,null,null,null,null,null,null,null,null,null,null,null,null,null,null,null,null,null,null,0,{"$error":"#DIV/0!"}]
[null,null,null,null,null,null,null,null,null,null,null,null,null,null,null,null,null,null,null,null,null,null,null,0,{"$error":"#DIV/0!"}]
[null,null,null,null,null,null,null,null,null,null,null,null,null,null,null,null,null,null,null,null,null,null,null,0,{"$error":"#DIV/0!"}]
[null,null,null,null,null,null,null,null,null,null,null,null,null,null,null,null,null,null,null,null,null,null,null,0,{"$error":"#DIV/0!"}]
[null,null,null,null,null,null,null,null,null,null,null,null,null,null,null,null,null,null,null,null,null,null,null,0,{"$error":"#DIV/0!"}]
[null,"CONSTRUCTION",null,null,null,null,null,null,null,null,null,null,null,null,null,null,null,null,null,null,null,null,null,{"$f":"IF(B180=\"\",0,IF((SUM(D181:W205)=0),SUM(D180:W180),\"\"))","v":0},{"$error":"#DIV/0!"}]
[null,"Project formulation",null,null,null,null,null,null,null,null,null,null,null,null,null,null,null,null,null,null,null,null,null,{"$f":"IF(B181=\"\",0,IF((SUM(D181:W181)=0),0,SUM(D181:W181)))","v":0},{"$error":"#DIV/0!"}]
[null,"Kick off and close-out meetings",null,null,null,null,null,null,null,null,null,null,null,null,null,null,null,null,null,null,null,null,null,0,{"$error":"#DIV/0!"}]
[null,"Budget/schedule",null,null,null,null,null,null,null,null,null,null,null,null,null,null,null,null,null,null,null,null,null,0,{"$error":"#DIV/0!"}]
[null,"Invoicing",null,null,null,null,null,null,null,null,null,null,null,null,null,null,null,null,null,null,null,null,null,0,{"$error":"#DIV/0!"}]
[null,"Internal progress meetings",null,null,null,null,null,null,null,null,null,null,null,null,null,null,null,null,null,null,null,null,null,0,{"$error":"#DIV/0!"}]
[null,"Sub consultant coordination and management",null,null,null,null,null,null,null,null,null,null,null,null,null,null,null,null,null,null,null,null,null,0,{"$error":"#DIV/0!"}]
[null,"Project work plan and field safety instructions",null,null,null,null,null,null,null,null,null,null,null,null,null,null,null,null,null,null,null,null,null,0,{"$error":"#DIV/0!"}]
[null,"Program management support services",null,null,null,null,null,null,null,null,null,null,null,null,null,null,null,null,null,null,null,null,null,0,{"$error":"#DIV/0!"}]
[null,"RPR, inspection, material testing, and reporting",null,null,null,null,null,null,null,null,null,null,null,null,null,null,null,null,null,null,null,null,null,0,{"$error":"#DIV/0!"}]
[null,"Project Site/field review/visit",null,null,null,null,null,null,null,null,null,null,null,null,null,null,null,null,null,null,null,null,null,0,{"$error":"#DIV/0!"}]
[null,"Geotechnical investigations and testing",null,null,null,null,null,null,null,null,null,null,null,null,null,null,null,null,null,null,null,null,null,0,{"$error":"#DIV/0!"}]
[null,"General coordination and grant admin (X months)",null,null,null,null,null,null,null,null,null,null,null,null,null,null,null,null,null,null,null,null,null,0,{"$error":"#DIV/0!"}]
[null,"Coordination meetings",null,null,null,null,null,null,null,null,null,null,null,null,null,null,null,null,null,null,null,null,null,0,{"$error":"#DIV/0!"}]
[null,"Progress reports and invoices",null,null,null,null,null,null,null,null,null,null,null,null,null,null,null,null,null,null,null,null,null,0,{"$error":"#DIV/0!"}]
[null,"Project schedule",null,null,null,null,null,null,null,null,null,null,null,null,null,null,null,null,null,null,null,null,null,0,{"$error":"#DIV/0!"}]
[null,null,null,null,null,null,null,null,null,null,null,null,null,null,null,null,null,null,null,null,null,null,null,0,{"$error":"#DIV/0!"}]
[null,null,null,null,null,null,null,null,null,null,null,null,null,null,null,null,null,null,null,null,null,null,null,0,{"$error":"#DIV/0!"}]
[null,null,null,null,null,null,null,null,null,null,null,null,null,null,null,null,null,null,null,null,null,null,null,0,{"$error":"#DIV/0!"}]
[null,null,null,null,null,null,null,null,null,null,null,null,null,null,null,null,null,null,null,null,null,null,null,0,{"$error":"#DIV/0!"}]
[null,null,null,null,null,null,null,null,null,null,null,null,null,null,null,null,null,null,null,null,null,null,null,0,{"$error":"#DIV/0!"}]
[null,null,null,null,null,null,null,null,null,null,null,null,null,null,null,null,null,null,null,null,null,null,null,0,{"$error":"#DIV/0!"}]
[null,null,null,null,null,null,null,null,null,null,null,null,null,null,null,null,null,null,null,null,null,null,null,0,{"$error":"#DIV/0!"}]
[null,null,null,null,null,null,null,null,null,null,null,null,null,null,null,null,null,null,null,null,null,null,null,0,{"$f":"IF(X203=\"\",\"\",SUM((X203/$X$261)))","v":{"$error":"#DIV/0!"}}]
[null,null,null,null,null,null,null,null,null,null,null,null,null,null,null,null,null,null,null,null,null,null,null,0,{"$error":"#DIV/0!"}]
[null,null,null,null,null,null,null,null,null,null,null,null,null,null,null,null,null,null,null,null,null,null,null,0,{"$error":"#DIV/0!"}]
[null,"OTHER",null,null,null,null,null,null,null,null,null,null,null,null,null,null,null,null,null,null,null,null,null,{"$f":"IF(B206=\"\",0,IF((SUM(D207:W260)=0),SUM(D206:W206),\"\"))","v":0},{"$error":"#DIV/0!"}]
[null,null,null,null,null,null,null,null,null,null,null,null,null,null,null,null,null,null,null,null,null,null,null,{"$f":"IF(B207=\"\",0,IF((SUM(D207:W207)=0),0,SUM(D207:W207)))","v":0},{"$error":"#DIV/0!"}]
[null,null,null,null,null,null,null,null,null,null,null,null,null,null,null,null,null,null,null,null,null,null,null,0,{"$error":"#DIV/0!"}]
[null,null,null,null,null,null,null,null,null,null,null,null,null,null,null,null,null,null,null,null,null,null,null,0,{"$error":"#DIV/0!"}]
[null,null,null,null,null,null,null,null,null,null,null,null,null,null,null,null,null,null,null,null,null,null,null,0,{"$error":"#DIV/0!"}]
[null,null,null,null,null,null,null,null,null,null,null,null,null,null,null,null,null,null,null,null,null,null,null,0,{"$error":"#DIV/0!"}]
[null,null,null,null,null,null,null,null,null,null,null,null,null,null,null,null,null,null,null,null,null,null,null,0,{"$error":"#DIV/0!"}]
[null,null,null,null,null,null,null,null,null,null,null,null,null,null,null,null,null,null,null,null,null,null,null,0,{"$error":"#DIV/0!"}]
[null,null,null,null,null,null,null,null,null,null,null,null,null,null,null,null,null,null,null,null,null,null,null,0,{"$error":"#DIV/0!"}]
[null,null,null,null,null,null,null,null,null,null,null,null,null,null,null,null,null,null,null,null,null,null,null,0,{"$error":"#DIV/0!"}]
[null,null,null,null,null,null,null,null,null,null,null,null,null,null,null,null,null,null,null,null,null,null,null,0,{"$error":"#DIV/0!"}]
[null,null,null,null,null,null,null,null,null,null,null,null,null,null,null,null,null,null,null,null,null,null,null,0,{"$error":"#DIV/0!"}]
[null,null,null,null,null,null,null,null,null,null,null,null,null,null,null,null,null,null,null,null,null,null,null,0,{"$error":"#DIV/0!"}]
[null,null,null,null,null,null,null,null,null,null,null,null,null,null,null,null,null,null,null,null,null,null,null,0,{"$error":"#DIV/0!"}]
[null,null,null,null,null,null,null,null,null,null,null,null,null,null,null,null,null,null,null,null,null,null,null,0,{"$error":"#DIV/0!"}]
[null,null,null,null,null,null,null,null,null,null,null,null,null,null,null,null,null,null,null,null,null,null,null,0,{"$error":"#DIV/0!"}]
[null,null,null,null,null,null,null,null,null,null,null,null,null,null,null,null,null,null,null,null,null,null,null,0,{"$error":"#DIV/0!"}]
[null,null,null,null,null,null,null,null,null,null,null,null,null,null,null,null,null,null,null,null,null,null,null,0,{"$error":"#DIV/0!"}]
[null,null,null,null,null,null,null,null,null,null,null,null,null,null,null,null,null,null,null,null,null,null,null,0,{"$error":"#DIV/0!"}]
[null,null,null,null,null,null,null,null,null,null,null,null,null,null,null,null,null,null,null,null,null,null,null,0,{"$error":"#DIV/0!"}]
[null,null,null,null,null,null,null,null,null,null,null,null,null,null,null,null,null,null,null,null,null,null,null,0,{"$error":"#DIV/0!"}]
[null,null,null,null,null,null,null,null,null,null,null,null,null,null,null,null,null,null,null,null,null,null,null,0,{"$error":"#DIV/0!"}]
[null,null,null,null,null,null,null,null,null,null,null,null,null,null,null,null,null,null,null,null,null,null,null,0,{"$error":"#DIV/0!"}]
[null,null,null,null,null,null,null,null,null,null,null,null,null,null,null,null,null,null,null,null,null,null,null,0,{"$error":"#DIV/0!"}]
[null,null,null,null,null,null,null,null,null,null,null,null,null,null,null,null,null,null,null,null,null,null,null,0,{"$error":"#DIV/0!"}]
[null,null,null,null,null,null,null,null,null,null,null,null,null,null,null,null,null,null,null,null,null,null,null,0,{"$error":"#DIV/0!"}]
[null,null,null,null,null,null,null,null,null,null,null,null,null,null,null,null,null,null,null,null,null,null,null,0,{"$error":"#DIV/0!"}]
[null,null,null,null,null,null,null,null,null,null,null,null,null,null,null,null,null,null,null,null,null,null,null,0,{"$error":"#DIV/0!"}]
[null,null,null,null,null,null,null,null,null,null,null,null,null,null,null,null,null,null,null,null,null,null,null,0,{"$error":"#DIV/0!"}]
[null,null,null,null,null,null,null,null,null,null,null,null,null,null,null,null,null,null,null,null,null,null,null,0,{"$error":"#DIV/0!"}]
[null,null,null,null,null,null,null,null,null,null,null,null,null,null,null,null,null,null,null,null,null,null,null,0,{"$error":"#DIV/0!"}]
[null,null,null,null,null,null,null,null,null,null,null,null,null,null,null,null,null,null,null,null,null,null,null,0,{"$error":"#DIV/0!"}]
[null,null,null,null,null,null,null,null,null,null,null,null,null,null,null,null,null,null,null,null,null,null,null,0,{"$error":"#DIV/0!"}]
[null,null,null,null,null,null,null,null,null,null,null,null,null,null,null,null,null,null,null,null,null,null,null,0,{"$error":"#DIV/0!"}]
[null,null,null,null,null,null,null,null,null,null,null,null,null,null,null,null,null,null,null,null,null,null,null,0,{"$error":"#DIV/0!"}]
[null,null,null,null,null,null,null,null,null,null,null,null,null,null,null,null,null,null,null,null,null,null,null,0,{"$error":"#DIV/0!"}]
[null,null,null,null,null,null,null,null,null,null,null,null,null,null,null,null,null,null,null,null,null,null,null,0,{"$error":"#DIV/0!"}]
[null,null,null,null,null,null,null,null,null,null,null,null,null,null,null,null,null,null,null,null,null,null,null,0,{"$error":"#DIV/0!"}]
[null,null,null,null,null,null,null,null,null,null,null,null,null,null,null,null,null,null,null,null,null,null,null,0,{"$error":"#DIV/0!"}]
[null,null,null,null,null,null,null,null,null,null,null,null,null,null,null,null,null,null,null,null,null,null,null,0,{"$error":"#DIV/0!"}]
[null,null,null,null,null,null,null,null,null,null,null,null,null,null,null,null,null,null,null,null,null,null,null,0,{"$error":"#DIV/0!"}]
[null,null,null,null,null,null,null,null,null,null,null,null,null,null,null,null,null,null,null,null,null,null,null,0,{"$error":"#DIV/0!"}]
[null,null,null,null,null,null,null,null,null,null,null,null,null,null,null,null,null,null,null,null,null,null,null,0,{"$error":"#DIV/0!"}]
[null,null,null,null,null,null,null,null,null,null,null,null,null,null,null,null,null,null,null,null,null,null,null,0,{"$error":"#DIV/0!"}]
[null,null,null,null,null,null,null,null,null,null,null,null,null,null,null,null,null,null,null,null,null,null,null,0,{"$error":"#DIV/0!"}]
[null,null,null,null,null,null,null,null,null,null,null,null,null,null,null,null,null,null,null,null,null,null,null,0,{"$error":"#DIV/0!"}]
[null,null,null,null,null,null,null,null,null,null,null,null,null,null,null,null,null,null,null,null,null,null,null,0,{"$error":"#DIV/0!"}]
[null,null,null,null,null,null,null,null,null,null,null,null,null,null,null,null,null,null,null,null,null,null,null,0,{"$error":"#DIV/0!"}]
[null,null,null,null,null,null,null,null,null,null,null,null,null,null,null,null,null,null,null,null,null,null,null,0,{"$error":"#DIV/0!"}]
[null,null,null,null,null,null,null,null,null,null,null,null,null,null,null,null,null,null,null,null,null,null,null,0,{"$error":"#DIV/0!"}]
[null,null,null,null,null,null,null,null,null,null,null,null,null,null,null,null,null,null,null,null,null,null,null,0,{"$error":"#DIV/0!"}]
[null,null,null,null,null,null,null,null,null,null,null,null,null,null,null,null,null,null,null,null,null,null,null,0,{"$error":"#DIV/0!"}]
[null,null,null,null,null,null,null,null,null,null,null,null,null,null,null,null,null,null,null,null,null,null,null,0,{"$error":"#DIV/0!"}]
[null,null,null,null,null,null,null,null,null,null,null,null,null,null,null,null,null,null,null,null,null,null,null,{"$f":"IF(B259=\"\",0,IF((SUM(D259:W259)=0),0,SUM(D259:W259)))","v":0},{"$error":"#DIV/0!"}]
[null,null,null,null,null,null,null,null,null,null,null,null,null,null,null,null,null,null,null,null,null,null,null,{"$f":"IF(B260=\"\",0,IF((SUM(D260:W260)=0),0,SUM(D260:W260)))","v":0},{"$error":"#DIV/0!"}]
[null,"TOTAL WORKHOURS/CATEGORY:",null,{"$f":"SUM(D11:D260)","v":0},0,0,0,0,0,0,0,0,0,0,0,0,0,0,0,0,0,0,0,{"$f":"SUM(X11:X260)","v":0},{"$f":"SUM(Y11:Y260)","v":{"$error":"#DIV/0!"}},{"$f":"SUM(Z12:Z260)","v":0}]
[null,"TOTAL WORKDAYS/CATEGORY:",null,{"$f":"D261/8","v":0},{"$f":"E261/8","v":0},0,0,0,0,0,0,0,0,0,0,0,0,0,0,0,0,0,0]
[null,"HOURLY SALARY RATE:",null,{"$f":"'PEF CLASSIFICATION SHEET'!E1800","v":0},{"$f":"'PEF CLASSIFICATION SHEET'!E1801","v":0},{"$f":"'PEF CLASSIFICATION SHEET'!E1802","v":0},{"$f":"'PEF CLASSIFICATION SHEET'!E1803","v":0},{"$f":"'PEF CLASSIFICATION SHEET'!E1804","v":0},{"$f":"'PEF CLASSIFICATION SHEET'!E1805","v":0},{"$f":"'PEF CLASSIFICATION SHEET'!E1806","v":0},{"$f":"'PEF CLASSIFICATION SHEET'!E1807","v":0},{"$f":"'PEF CLASSIFICATION SHEET'!E1808","v":0},{"$f":"'PEF CLASSIFICATION SHEET'!E1809","v":0},{"$f":"'PEF CLASSIFICATION SHEET'!E1810","v":0},{"$f":"'PEF CLASSIFICATION SHEET'!E1811","v":0},{"$f":"'PEF CLASSIFICATION SHEET'!E1812","v":0},{"$f":"'PEF CLASSIFICATION SHEET'!E1813","v":0},{"$f":"'PEF CLASSIFICATION SHEET'!E1814","v":0},{"$f":"'PEF CLASSIFICATION SHEET'!E1815","v":0},{"$f":"'PEF CLASSIFICATION SHEET'!E1816","v":0},{"$f":"'PEF CLASSIFICATION SHEET'!E1817","v":0},{"$f":"'PEF CLASSIFICATION SHEET'!E1818","v":0},{"$f":"'PEF CLASSIFICATION SHEET'!E1819","v":0}]
[null,"RATES PER DAY:",null,{"$f":"D263*8","v":0},0,0,0,0,0,0,0,0,0,0,0,0,0,0,0,0,0,0,0]
[null,"PAYROLL BURDEN:",null,{"$f":"SUM(D261*D263)","v":0},{"$f":"SUM(E261*E263)","v":0},0,0,0,0,0,0,0,0,0,0,0,0,0,0,0,0,0,0]
[null,"TOTAL WORKDAYS:",null,{"$f":"SUM(D262:W262)","v":0}]
[null,"TOTAL PAYROLL BURDEN:",null,{"$f":"SUM(D265:W265)","v":0}]
[null,"AVERAGE COST PER HOUR:",null,{"$f":"SUM(D267/(D266*8))","v":{"$error":"#DIV/0!"}}]
[null,"GENERAL OVERHEAD:",{"$f":"AVIATION.SUB2_CONSULTANT_OVERHEAD","v":0},{"$f":"SUM(D267*C269)","v":0}]
[null,"SUBTOTAL:",null,{"$f":"SUM(D267+D269)","v":0}]
[null,"COMPARATIVE FEE:",{"$f":"AVIATION.SUB2_CONSULTANT_FEE","v":0},{"$f":"SUM(D270*C271)","v":0}]
[null,"FACILITIES COST OF CAPITAL:",{"$f":"AVIATION.SUB2_CONSULTANT_COSTofCAPITAL","v":0},{"$f":"SUM(D267*C272)","v":0}]
[null,"TOTAL:",null,{"$f":"SUM(D270:D272)","v":0}]
[null,"DIRECT EXPENSES:",null,{"$f":"AVIATION.SUB2_DIRECT_NONSALARY_TOTAL","v":0}]
[null,"AVIATION GRAND TOTAL:",null,{"$f":"SUM(D273:D274)","v":0}]

{"sheet":"Aviation-Exp-Sub2","index":198,"n_rows":46,"n_cols":8,"rows_kept":46,"cut":false,"hidden":true,"merged":[[0,0,0,7],[1,3,1,7]]}
["AVIATION--DIRECT EXPENSES - SUBCONSULTANT 2"]
["TIP NUMBER",{"$f":"TIP.NUMBER","v":0},"FIRM:",{"$f":"'Aviation-Sub2'!G3","v":"CONSULTANT NAME"}]
[]
["GENERAL PROJECT WORK:","ITEM","QTY","DESCRIPTION",null,null,"UNIT COST "]
[null,"Travel:"]
[null,"Sedan",0,"Trip(s) @",0,"miles @",{"$f":"SEDAN","v":0.7},{"$f":"SUM(C6*E6*G6)","v":0}]
[null,"Carry All",0,"Trip(s) @",0,"miles @",{"$f":"CARRYALL","v":0.72},{"$f":"SUM(C7*E7*G7)","v":0}]
[null,"Car Rental",null,null,0,"days @ ",{"$f":"CARRENTAL","v":50},{"$f":"SUM(E8*G8)","v":0}]
[null,"Gas for Rental",null,null,0,"miles @",{"$f":"GASforRENTAL","v":0.2},{"$f":"SUM(E9*G9)","v":0}]
[null,"Parking:",0,"Trip(s) @",null,null,{"$f":"PARKING","v":3},{"$f":"SUM(C10*G10)","v":0}]
[null,"Per Diem:",0,"Breakfast",null,null,{"$f":"BREAKFAST","v":10.1},{"$f":"SUM(C11*G11)","v":0}]
[null,null,0,"Lunch",null,null,{"$f":"LUNCH","v":13.3},0]
[null,null,0,"Dinner",null,null,{"$f":"DINNER","v":23.1},0]
[null,null,0,"Lodging",null,null,{"$f":"LODGING_LUMP.SUM","v":95},0]
[null,"Reproduction:",0,"8 1/2 x 11 B & W Copies @",null,null,{"$f":"LETTERCOPIES","v":0.14000000000000001},0]
[null,null,0,"11 x 17 B & W Copies @",null,null,{"$f":"LEDGERCOPIES","v":0.34},0]
[null,null,0,"8 1/2 x 11 Color Copies @",null,null,{"$f":"LETTERCOLOR","v":0.83},0]
[null,null,0,"11 x 17 Color Copies @",null,null,{"$f":"LEDGERCOLOR","v":1.66},0]
[null,null,0,"SQ. FT. of Plots (B & W or Color)",null,"<65 SQ. FT.*",{"$f":"ROLLPLOTSshort","v":6.5},0]
[null,null,0,"SQ. FT. of Plots (B & W or Color)",null,">65 SQ. FT.*",{"$f":"ROLLPLOTSlong","v":1.5},0]
[null,null,0,"Cover(s) @",null,null,{"$f":"COVERS","v":0.5},0]
[null,null,0,"Binder(s) @",null,null,{"$f":"BINDERS","v":0.5},0]
[null,null,0,"Blueprints - 8 1/2 x 11 @",null,null,{"$f":"BLUEPRINTSLETTER","v":0.35},0]
[null,null,0,"Blueprints - 42 x 72 @",null,null,{"$f":"BLUEPRINTSLARGE","v":1.3},0]
[null,"Film and Developing:",0,"Roll(s) @",null,null,{"$f":"FILM","v":20},0]
[null,null,null,null,null,"Subtotal",null,{"$f":"SUM(H6:H25)","v":0}]
["MAPS AND DOCUMENTS:","ITEM","QTY","DESCRIPTION",null,null,"UNIT COST "]
[null,"County Tax Maps:",0,"Map(s) @",null,null,{"$f":"County_Tax_Maps","v":7},{"$f":"SUM(C28*G28)","v":0}]
[null,"USGS Maps:",0,"Map(s) @",null,null,{"$f":"USGSMAPS","v":7},{"$f":"SUM(C29*G29)","v":0}]
[null,null,null,null,null,"Subtotal",null,{"$f":"SUM(H28:H29)","v":0}]
["Miscellaneous Other","ITEM","QTY","DESCRIPTION",null,null,"UNIT COST "]
[null,null,null,null,null,null,null,{"$f":"SUM(C32*G32)","v":0}]
[null,null,null,null,null,null,null,{"$f":"SUM(C33*G33)","v":0}]
[null,null,null,null,null,null,null,0]
[null,null,null,null,null,null,null,0]
[null,null,null,null,null,null,null,0]
[null,null,null,null,null,null,null,0]
[null,null,null,null,null,null,null,0]
[null,null,null,null,null,null,null,{"$f":"SUM(C39*G39)","v":0}]
[null,null,null,null,null,null,null,{"$f":"SUM(C40*G40)","v":0}]
[null,null,null,null,null,null,null,{"$f":"SUM(C41*G41)","v":0}]
[null,null,null,null,null,"Subtotal",null,{"$f":"SUM(H32:H41)","v":0}]
[]
[null,null,null,null,null,"TOTAL",null,{"$f":"SUM(H26+H30+H42)","v":0}]
[]
[null,"* Sum of all plots "]

{"sheet":"Aviation-Sub3","index":199,"n_rows":275,"n_cols":27,"rows_kept":275,"cut":false,"hidden":true,"merged":[[246,26,246,27],[247,26,247,27],[248,26,248,27],[249,26,249,27],[250,26,250,27],[251,26,251,27],[252,26,252,27],[114,26,114,27],[115,26,115,27],[116,26,116,27],[117,26,117,27],[118,26,118,27],[238,26,238,27],[239,26,239,27],[240,26,240,27],[241,26,241,27],[223,26,223,27],[224,26,224,27],[225,26,225,27],[226,26,226,27],[227,26,227,27],[228,26,228,27],[229,26,229,27],[230,26,230,27],[236,26,236,27],[237,26,237,27],[105,26,105,27],[106,26,106,27],[107,26,107,27],[108,26,108,27],[109,26,109,27],[110,26,110,27],[111,26,111,27],[112,26,112,27],[113,26,113,27],[129,26,129,27],[130,26,130,27],[131,26,131,27],[132,26,132,27],[133,26,133,27],[134,26,134,27],[123,26,123,27],[124,26,124,27],[125,26,125,27],[126,26,126,27],[127,26,127,27],[128,26,128,27],[141,26,141,27],[96,26,96,27],[97,26,97,27],[98,26,98,27],[99,26,99,27],[100,26,100,27],[101,26,101,27],[102,26,102,27],[103,26,103,27],[104,26,104,27],[87,26,87,27],[88,26,88,27],[89,26,89,27],[90,26,90,27],[91,26,91,27],[92,26,92,27],[93,26,93,27],[94,26,94,27],[95,26,95,27],[78,26,78,27],[79,26,79,27],[80,26,80,27],[81,26,81,27],[82,26,82,27],[83,26,83,27],[84,26,84,27],[85,26,85,27],[86,26,86,27],[69,26,69,27],[70,26,70,27],[71,26,71,27],[72,26,72,27],[73,26,73,27],[74,26,74,27],[75,26,75,27],[76,26,76,27],[77,26,77,27],[60,26,60,27],[61,26,61,27],[62,26,62,27],[63,26,63,27],[64,26,64,27],[65,26,65,27],[66,26,66,27],[67,26,67,27],[68,26,68,27],[51,26,51,27],[52,26,52,27],[53,26,53,27],[54,26,54,27],[55,26,55,27],[56,26,56,27],[57,26,57,27],[58,26,58,27],[59,26,59,27],[42,26,42,27],[43,26,43,27],[44,26,44,27],[45,26,45,27],[46,26,46,27],[47,26,47,27],[48,26,48,27],[49,26,49,27],[50,26,50,27],[33,26,33,27],[34,26,34,27],[35,26,35,27],[36,26,36,27],[37,26,37,27],[38,26,38,27],[39,26,39,27],[40,26,40,27],[41,26,41,27],[24,26,24,27],[25,26,25,27],[26,26,26,27],[27,26,27,27],[28,26,28,27],[29,26,29,27],[30,26,30,27],[31,26,31,27],[32,26,32,27],[0,0,1,13],[2,1,2,4],[2,6,2,7],[2,10,2,11],[2,15,2,16],[3,1,3,4],[3,6,3,7],[3,10,3,11],[3,15,3,16],[6,12,9,12],[6,13,9,13],[6,14,9,14],[6,15,9,15],[6,16,9,16],[6,17,9,17],[4,3,4,22],[6,3,9,3],[6,4,9,4],[6,5,9,5],[6,6,9,6],[6,7,9,7],[6,8,9,8],[6,9,9,9],[6,10,9,10],[6,11,9,11],[10,26,10,27],[11,26,11,27],[119,26,119,27],[120,26,120,27],[121,26,121,27],[122,26,122,27],[6,18,9,18],[6,19,9,19],[6,20,9,20],[6,21,9,21],[6,22,9,22],[8,26,8,27],[12,26,12,27],[13,26,13,27],[14,26,14,27],[15,26,15,27],[16,26,16,27],[17,26,17,27],[18,26,18,27],[19,26,19,27],[20,26,20,27],[21,26,21,27],[22,26,22,27],[23,26,23,27],[142,26,142,27],[143,26,143,27],[144,26,144,27],[145,26,145,27],[146,26,146,27],[135,26,135,27],[136,26,136,27],[137,26,137,27],[138,26,138,27],[139,26,139,27],[140,26,140,27],[153,26,153,27],[154,26,154,27],[155,26,155,27],[156,26,156,27],[157,26,157,27],[158,26,158,27],[147,26,147,27],[148,26,148,27],[149,26,149,27],[150,26,150,27],[151,26,151,27],[152,26,152,27],[165,26,165,27],[166,26,166,27],[167,26,167,27],[168,26,168,27],[169,26,169,27],[170,26,170,27],[159,26,159,27],[160,26,160,27],[161,26,161,27],[162,26,162,27],[163,26,163,27],[164,26,164,27],[177,26,177,27],[178,26,178,27],[179,26,179,27],[180,26,180,27],[181,26,181,27],[182,26,182,27],[171,26,171,27],[172,26,172,27],[173,26,173,27],[174,26,174,27],[175,26,175,27],[176,26,176,27],[189,26,189,27],[190,26,190,27],[191,26,191,27],[192,26,192,27],[193,26,193,27],[194,26,194,27],[183,26,183,27],[184,26,184,27],[185,26,185,27],[186,26,186,27],[187,26,187,27],[188,26,188,27],[201,26,201,27],[202,26,202,27],[203,26,203,27],[204,26,204,27],[205,26,205,27],[206,26,206,27],[195,26,195,27],[196,26,196,27],[197,26,197,27],[198,26,198,27],[199,26,199,27],[200,26,200,27],[213,26,213,27],[214,26,214,27],[215,26,215,27],[216,26,216,27],[217,26,217,27],[218,26,218,27],[207,26,207,27],[208,26,208,27],[209,26,209,27],[210,26,210,27],[211,26,211,27],[212,26,212,27],[258,26,258,27],[259,26,259,27],[274,1,275,1],[274,3,275,4],[278,3,278,6],[278,8,278,13],[219,26,219,27],[220,26,220,27],[221,26,221,27],[222,26,222,27],[256,26,256,27],[257,26,257,27],[242,26,242,27],[243,26,243,27],[244,26,244,27],[253,26,253,27],[254,26,254,27],[255,26,255,27],[245,26,245,27],[231,26,231,27],[232,26,232,27],[233,26,233,27],[234,26,234,27],[235,26,235,27],[285,8,285,9],[285,10,285,11],[279,8,279,9],[279,10,279,11],[280,8,280,9],[280,10,280,11],[283,8,283,13],[284,8,284,9],[284,10,284,11]]}
["AVIATION--BREAKDOWN WORKSHEET - SUBCONSULTANT 3 -- ENTER WORKHOURS"]
[]
["PROJECT DESCRIPTION: ",{"$f":"PROJECT.DESCRIPTION","v":0},null,null,null,"FIRM:  ",{"$f":"AVIATION.SUB3_CONSULTANT_NAME","v":"CONSULTANT NAME"},null,"TASK ORDER NUMBER:",null,{"$f":"TASK.ORDER.NUMBER","v":0},null,"DATE PREPARED:",{"$f":"IF(SCOPE.MANDAY.ESTIMATE.PREPARED.BY.DATE=\"\",\"\",SCOPE.MANDAY.ESTIMATE.PREPARED.BY.DATE)","v":""}]
["PREPARED BY:  ",{"$f":"IF(SCOPE.MANDAY.ESTIMATE.PREPARED.BY=\"\",\"\",SCOPE.MANDAY.ESTIMATE.PREPARED.BY)","v":""},null,null,null,"TIP NUMBER:",{"$f":"TIP.NUMBER","v":0},null,"WBS NUMBER:",null,{"$f":"WBS.NUMBER","v":""},null,"REVISION DATE:",{"$f":"IF(SCOPE.MANDAY.ESTIMATE.APPROVED.BY.DATE=\"\",\"\",SCOPE.MANDAY.ESTIMATE.APPROVED.BY.DATE)","v":""}]
[null,null,null,"ESTIMATED WORKHOURS"]
[null,null,"EMPLOYEE NAMES",{"$f":"IF('PEF CLASSIFICATION SHEET'!D1822=\"\",\"\",LEFT('PEF CLASSIFICATION SHEET'!D1822,4))","v":""},{"$f":"IF('PEF CLASSIFICATION SHEET'!D1823=\"\",\"\",LEFT('PEF CLASSIFICATION SHEET'!D1823,4))","v":""},{"$f":"IF('PEF CLASSIFICATION SHEET'!D1824=\"\",\"\",LEFT('PEF CLASSIFICATION SHEET'!D1824,4))","v":""},{"$f":"IF('PEF CLASSIFICATION SHEET'!D1825=\"\",\"\",LEFT('PEF CLASSIFICATION SHEET'!D1825,4))","v":""},{"$f":"IF('PEF CLASSIFICATION SHEET'!D1826=\"\",\"\",LEFT('PEF CLASSIFICATION SHEET'!D1826,4))","v":""},{"$f":"IF('PEF CLASSIFICATION SHEET'!D1827=\"\",\"\",LEFT('PEF CLASSIFICATION SHEET'!D1827,4))","v":""},{"$f":"IF('PEF CLASSIFICATION SHEET'!D1828=\"\",\"\",LEFT('PEF CLASSIFICATION SHEET'!D1828,4))","v":""},{"$f":"IF('PEF CLASSIFICATION SHEET'!D1829=\"\",\"\",LEFT('PEF CLASSIFICATION SHEET'!D1829,4))","v":""},{"$f":"IF('PEF CLASSIFICATION SHEET'!D1830=\"\",\"\",LEFT('PEF CLASSIFICATION SHEET'!D1830,4))","v":""},{"$f":"IF('PEF CLASSIFICATION SHEET'!D1831=\"\",\"\",LEFT('PEF CLASSIFICATION SHEET'!D1831,4))","v":""},{"$f":"IF('PEF CLASSIFICATION SHEET'!D1832=\"\",\"\",LEFT('PEF CLASSIFICATION SHEET'!D1832,4))","v":""},{"$f":"IF('PEF CLASSIFICATION SHEET'!D1833=\"\",\"\",LEFT('PEF CLASSIFICATION SHEET'!D1833,4))","v":""},{"$f":"IF('PEF CLASSIFICATION SHEET'!D1834=\"\",\"\",LEFT('PEF CLASSIFICATION SHEET'!D1834,4))","v":""},{"$f":"IF('PEF CLASSIFICATION SHEET'!D1835=\"\",\"\",LEFT('PEF CLASSIFICATION SHEET'!D1835,4))","v":""},{"$f":"IF('PEF CLASSIFICATION SHEET'!D1836=\"\",\"\",LEFT('PEF CLASSIFICATION SHEET'!D1836,4))","v":""},{"$f":"IF('PEF CLASSIFICATION SHEET'!D1837=\"\",\"\",LEFT('PEF CLASSIFICATION SHEET'!D1837,4))","v":""},{"$f":"IF('PEF CLASSIFICATION SHEET'!D1838=\"\",\"\",LEFT('PEF CLASSIFICATION SHEET'!D1838,4))","v":""},{"$f":"IF('PEF CLASSIFICATION SHEET'!D1839=\"\",\"\",LEFT('PEF CLASSIFICATION SHEET'!D1839,4))","v":""},{"$f":"IF('PEF CLASSIFICATION SHEET'!D1840=\"\",\"\",LEFT('PEF CLASSIFICATION SHEET'!D1840,4))","v":""},{"$f":"IF('PEF CLASSIFICATION SHEET'!D1841=\"\",\"\",LEFT('PEF CLASSIFICATION SHEET'!D1841,4))","v":""}]
[null,null,null,{"$f":"IF('PEF CLASSIFICATION SHEET'!C1822=\"\",\"\",'PEF CLASSIFICATION SHEET'!C1822)","v":""},{"$f":"IF('PEF CLASSIFICATION SHEET'!C1823=\"\",\"\",'PEF CLASSIFICATION SHEET'!C1823)","v":""},{"$f":"IF('PEF CLASSIFICATION SHEET'!C1824=\"\",\"\",'PEF CLASSIFICATION SHEET'!C1824)","v":""},{"$f":"IF('PEF CLASSIFICATION SHEET'!C1825=\"\",\"\",'PEF CLASSIFICATION SHEET'!C1825)","v":""},{"$f":"IF('PEF CLASSIFICATION SHEET'!C1826=\"\",\"\",'PEF CLASSIFICATION SHEET'!C1826)","v":""},{"$f":"IF('PEF CLASSIFICATION SHEET'!C1827=\"\",\"\",'PEF CLASSIFICATION SHEET'!C1827)","v":""},{"$f":"IF('PEF CLASSIFICATION SHEET'!C1828=\"\",\"\",'PEF CLASSIFICATION SHEET'!C1828)","v":""},{"$f":"IF('PEF CLASSIFICATION SHEET'!C1829=\"\",\"\",'PEF CLASSIFICATION SHEET'!C1829)","v":""},{"$f":"IF('PEF CLASSIFICATION SHEET'!C1830=\"\",\"\",'PEF CLASSIFICATION SHEET'!C1830)","v":""},{"$f":"IF('PEF CLASSIFICATION SHEET'!C1831=\"\",\"\",'PEF CLASSIFICATION SHEET'!C1831)","v":""},{"$f":"IF('PEF CLASSIFICATION SHEET'!C1832=\"\",\"\",'PEF CLASSIFICATION SHEET'!C1832)","v":""},{"$f":"IF('PEF CLASSIFICATION SHEET'!C1833=\"\",\"\",'PEF CLASSIFICATION SHEET'!C1833)","v":""},{"$f":"IF('PEF CLASSIFICATION SHEET'!C1834=\"\",\"\",'PEF CLASSIFICATION SHEET'!C1834)","v":""},{"$f":"IF('PEF CLASSIFICATION SHEET'!C1835=\"\",\"\",'PEF CLASSIFICATION SHEET'!C1835)","v":""},{"$f":"IF('PEF CLASSIFICATION SHEET'!C1836=\"\",\"\",'PEF CLASSIFICATION SHEET'!C1836)","v":""},{"$f":"IF('PEF CLASSIFICATION SHEET'!C1837=\"\",\"\",'PEF CLASSIFICATION SHEET'!C1837)","v":""},{"$f":"IF('PEF CLASSIFICATION SHEET'!C1838=\"\",\"\",'PEF CLASSIFICATION SHEET'!C1838)","v":""},{"$f":"IF('PEF CLASSIFICATION SHEET'!C1839=\"\",\"\",'PEF CLASSIFICATION SHEET'!C1839)","v":""},{"$f":"IF('PEF CLASSIFICATION SHEET'!C1840=\"\",\"\",'PEF CLASSIFICATION SHEET'!C1840)","v":""},{"$f":"IF('PEF CLASSIFICATION SHEET'!C1841=\"\",\"\",'PEF CLASSIFICATION SHEET'!C1841)","v":""},"SUB-","%","PEF"]
[null,null,null,null,null,null,null,null,null,null,null,null,null,null,null,null,null,null,null,null,null,null,null,"TOTAL","OF","ESTIMATE"]
["TASK","TASK DESCRIPTION","CLASSIFICATION",null,null,null,null,null,null,null,null,null,null,null,null,null,null,null,null,null,null,null,null,null,"PROJECT",null,"COMMENTS"]
["NO."]
[null,"PLANNING",null,null,null,null,null,null,null,null,null,null,null,null,null,null,null,null,null,null,null,null,null,{"$f":"IF(B11=\"\",0,IF((SUM(D12:W104)=0),SUM(D11:W11),\"\"))","v":0},{"$f":"IF(X11=\"\",\"\",SUM((X11/$X$261)))","v":{"$error":"#DIV/0!"}}]
[null,"Study design ",null,null,null,null,null,null,null,null,null,null,null,null,null,null,null,null,null,null,null,null,null,{"$f":"IF(B12=\"\",0,IF((SUM(D17:W34)=0),SUM(D12:W12),\"\"))","v":0},{"$error":"#DIV/0!"}]
[null,"Project definition",null,null,null,null,null,null,null,null,null,null,null,null,null,null,null,null,null,null,null,null,null,{"$f":"IF(B13=\"\",0,IF((SUM(D13:W13)=0),0,SUM(D13:W13)))","v":0},{"$error":"#DIV/0!"}]
[null,"Kick-off meetings",null,null,null,null,null,null,null,null,null,null,null,null,null,null,null,null,null,null,null,null,null,{"$f":"IF(B14=\"\",0,IF((SUM(D14:W14)=0),0,SUM(D14:W14)))","v":0},{"$error":"#DIV/0!"}]
[null,"Goals/Objectives/Schedule/Deliverable/Public Involvement Plan/Budget",null,null,null,null,null,null,null,null,null,null,null,null,null,null,null,null,null,null,null,null,null,0,{"$error":"#DIV/0!"}]
[null,null,null,null,null,null,null,null,null,null,null,null,null,null,null,null,null,null,null,null,null,null,null,0,{"$error":"#DIV/0!"}]
[null,null,null,null,null,null,null,null,null,null,null,null,null,null,null,null,null,null,null,null,null,null,null,0,{"$error":"#DIV/0!"}]
[null,"Sub-consultant coordination",null,null,null,null,null,null,null,null,null,null,null,null,null,null,null,null,null,null,null,null,null,0,{"$error":"#DIV/0!"}]
[null,"IFE coordination",null,null,null,null,null,null,null,null,null,null,null,null,null,null,null,null,null,null,null,null,null,0,{"$error":"#DIV/0!"}]
[null,"Airport board/steering committee input and update meetings",null,null,null,null,null,null,null,null,null,null,null,null,null,null,null,null,null,null,null,null,null,0,{"$error":"#DIV/0!"}]
[null,"Grant application",null,null,null,null,null,null,null,null,null,null,null,null,null,null,null,null,null,null,null,null,null,0,{"$error":"#DIV/0!"}]
[null,"Invoicing/Grant Admin",null,null,null,null,null,null,null,null,null,null,null,null,null,null,null,null,null,null,null,null,null,0,{"$error":"#DIV/0!"}]
[null,"Grant close-out",null,null,null,null,null,null,null,null,null,null,null,null,null,null,null,null,null,null,null,null,null,0,{"$error":"#DIV/0!"}]
[null,"Existing conditions",null,null,null,null,null,null,null,null,null,null,null,null,null,null,null,null,null,null,null,null,null,{"$f":"IF(B24=\"\",0,IF((SUM(D25:W29)=0),SUM(D24:W24),\"\"))","v":0},{"$error":"#DIV/0!"}]
[null,"Review of planning documents and studies",null,null,null,null,null,null,null,null,null,null,null,null,null,null,null,null,null,null,null,null,null,{"$f":"IF(B25=\"\",0,IF((SUM(D25:W25)=0),0,SUM(D25:W25)))","v":0},{"$error":"#DIV/0!"}]
[null,"Airport history",null,null,null,null,null,null,null,null,null,null,null,null,null,null,null,null,null,null,null,null,null,0,{"$error":"#DIV/0!"}]
[null,"Data collection from available resources",null,null,null,null,null,null,null,null,null,null,null,null,null,null,null,null,null,null,null,null,null,0,{"$error":"#DIV/0!"}]
[null,null,null,null,null,null,null,null,null,null,null,null,null,null,null,null,null,null,null,null,null,null,null,0,{"$error":"#DIV/0!"}]
[null,null,null,null,null,null,null,null,null,null,null,null,null,null,null,null,null,null,null,null,null,null,null,0,{"$error":"#DIV/0!"}]
[null,"Inventory",null,null,null,null,null,null,null,null,null,null,null,null,null,null,null,null,null,null,null,null,null,{"$f":"IF(B30=\"\",0,IF((SUM(D31:W45)=0),SUM(D30:W30),\"\"))","v":0},{"$error":"#DIV/0!"}]
[null,"Airside facilities",null,null,null,null,null,null,null,null,null,null,null,null,null,null,null,null,null,null,null,null,null,{"$f":"IF(B31=\"\",0,IF((SUM(D31:W31)=0),0,SUM(D31:W31)))","v":0},{"$error":"#DIV/0!"}]
[null,"Landside facilities",null,null,null,null,null,null,null,null,null,null,null,null,null,null,null,null,null,null,null,null,null,0,{"$error":"#DIV/0!"}]
[null,"Facility access",null,null,null,null,null,null,null,null,null,null,null,null,null,null,null,null,null,null,null,null,null,0,{"$error":"#DIV/0!"}]
[null,"Utilities",null,null,null,null,null,null,null,null,null,null,null,null,null,null,null,null,null,null,null,null,null,0,{"$error":"#DIV/0!"}]
[null,"Regional setting and land use",null,null,null,null,null,null,null,null,null,null,null,null,null,null,null,null,null,null,null,null,null,0,{"$error":"#DIV/0!"}]
[null,"Environmental overview",null,null,null,null,null,null,null,null,null,null,null,null,null,null,null,null,null,null,null,null,null,0,{"$error":"#DIV/0!"}]
[null,"Operations data",null,null,null,null,null,null,null,null,null,null,null,null,null,null,null,null,null,null,null,null,null,0,{"$error":"#DIV/0!"}]
[null,"Financial data",null,null,null,null,null,null,null,null,null,null,null,null,null,null,null,null,null,null,null,null,null,0,{"$error":"#DIV/0!"}]
[null,"Obstruction survey with mapping",null,null,null,null,null,null,null,null,null,null,null,null,null,null,null,null,null,null,null,null,null,0,{"$error":"#DIV/0!"}]
[null,"On-airport land use",null,null,null,null,null,null,null,null,null,null,null,null,null,null,null,null,null,null,null,null,null,0,{"$error":"#DIV/0!"}]
[null,"Meteorology and magnetic declination data",null,null,null,null,null,null,null,null,null,null,null,null,null,null,null,null,null,null,null,null,null,0,{"$error":"#DIV/0!"}]
[null,null,null,null,null,null,null,null,null,null,null,null,null,null,null,null,null,null,null,null,null,null,null,0,{"$error":"#DIV/0!"}]
[null,null,null,null,null,null,null,null,null,null,null,null,null,null,null,null,null,null,null,null,null,null,null,0,{"$error":"#DIV/0!"}]
[null,null,null,null,null,null,null,null,null,null,null,null,null,null,null,null,null,null,null,null,null,null,null,0,{"$error":"#DIV/0!"}]
[null,null,null,null,null,null,null,null,null,null,null,null,null,null,null,null,null,null,null,null,null,null,null,0,{"$error":"#DIV/0!"}]
[null,"Aviation Forecasts ",null,null,null,null,null,null,null,null,null,null,null,null,null,null,null,null,null,null,null,null,null,{"$f":"IF(B46=\"\",0,IF((SUM(D47:W56)=0),SUM(D46:W46),\"\"))","v":0},{"$error":"#DIV/0!"}]
[null,"Review current and previous forecasts and data",null,null,null,null,null,null,null,null,null,null,null,null,null,null,null,null,null,null,null,null,null,{"$f":"IF(B47=\"\",0,IF((SUM(D47:W47)=0),0,SUM(D47:W47)))","v":0},{"$error":"#DIV/0!"}]
[null,"Select methodologies",null,null,null,null,null,null,null,null,null,null,null,null,null,null,null,null,null,null,null,null,null,0,{"$error":"#DIV/0!"}]
[null,"Review of NCASP data",null,null,null,null,null,null,null,null,null,null,null,null,null,null,null,null,null,null,null,null,null,0,{"$error":"#DIV/0!"}]
[null,"Review of TAF",null,null,null,null,null,null,null,null,null,null,null,null,null,null,null,null,null,null,null,null,null,0,{"$error":"#DIV/0!"}]
[null,"Comparison matrix and recommendation",null,null,null,null,null,null,null,null,null,null,null,null,null,null,null,null,null,null,null,null,null,0,{"$error":"#DIV/0!"}]
[null,"Critical aircraft existing and future",null,null,null,null,null,null,null,null,null,null,null,null,null,null,null,null,null,null,null,null,null,0,{"$error":"#DIV/0!"}]
[null,"Facilitate DoA review of forecast",null,null,null,null,null,null,null,null,null,null,null,null,null,null,null,null,null,null,null,null,null,0,{"$error":"#DIV/0!"}]
[null,null,null,null,null,null,null,null,null,null,null,null,null,null,null,null,null,null,null,null,null,null,null,0,{"$error":"#DIV/0!"}]
[null,null,null,null,null,null,null,null,null,null,null,null,null,null,null,null,null,null,null,null,null,null,null,0,{"$error":"#DIV/0!"}]
[null,null,null,null,null,null,null,null,null,null,null,null,null,null,null,null,null,null,null,null,null,null,null,0,{"$error":"#DIV/0!"}]
[null,"Facility requirements ",null,null,null,null,null,null,null,null,null,null,null,null,null,null,null,null,null,null,null,null,null,{"$f":"IF(B57=\"\",0,IF((SUM(D58:W67)=0),SUM(D57:W57),\"\"))","v":0},{"$error":"#DIV/0!"}]
[null,"Capacity/delay",null,null,null,null,null,null,null,null,null,null,null,null,null,null,null,null,null,null,null,null,null,{"$f":"IF(B58=\"\",0,IF((SUM(D58:W58)=0),0,SUM(D58:W58)))","v":0},{"$error":"#DIV/0!"}]
[null,"Runway and taxiway requirements",null,null,null,null,null,null,null,null,null,null,null,null,null,null,null,null,null,null,null,null,null,0,{"$error":"#DIV/0!"}]
[null,"Navaid requirements",null,null,null,null,null,null,null,null,null,null,null,null,null,null,null,null,null,null,null,null,null,0,{"$error":"#DIV/0!"}]
[null,"Ground access",null,null,null,null,null,null,null,null,null,null,null,null,null,null,null,null,null,null,null,null,null,0,{"$error":"#DIV/0!"}]
[null,"Utilities",null,null,null,null,null,null,null,null,null,null,null,null,null,null,null,null,null,null,null,null,null,0,{"$error":"#DIV/0!"}]
[null,"GA facilities",null,null,null,null,null,null,null,null,null,null,null,null,null,null,null,null,null,null,null,null,null,0,{"$error":"#DIV/0!"}]
[null,"Fuel",null,null,null,null,null,null,null,null,null,null,null,null,null,null,null,null,null,null,null,null,null,0,{"$error":"#DIV/0!"}]
[null,"Aircraft maintenance",null,null,null,null,null,null,null,null,null,null,null,null,null,null,null,null,null,null,null,null,null,0,{"$error":"#DIV/0!"}]
[null,null,null,null,null,null,null,null,null,null,null,null,null,null,null,null,null,null,null,null,null,null,null,0,{"$error":"#DIV/0!"}]
[null,null,null,null,null,null,null,null,null,null,null,null,null,null,null,null,null,null,null,null,null,null,null,0,{"$error":"#DIV/0!"}]
[null,"Alternatives",null,null,null,null,null,null,null,null,null,null,null,null,null,null,null,null,null,null,null,null,null,{"$f":"IF(B68=\"\",0,IF((SUM(D69:W75)=0),SUM(D68:W68),\"\"))","v":0},{"$error":"#DIV/0!"}]
[null,"Airfield",null,null,null,null,null,null,null,null,null,null,null,null,null,null,null,null,null,null,null,null,null,{"$f":"IF(B69=\"\",0,IF((SUM(D69:W69)=0),0,SUM(D69:W69)))","v":0},{"$error":"#DIV/0!"}]
[null,"GA terminal development",null,null,null,null,null,null,null,null,null,null,null,null,null,null,null,null,null,null,null,null,null,0,{"$error":"#DIV/0!"}]
[null,"MRO",null,null,null,null,null,null,null,null,null,null,null,null,null,null,null,null,null,null,null,null,null,0,{"$error":"#DIV/0!"}]
[null,"Other support facilities",null,null,null,null,null,null,null,null,null,null,null,null,null,null,null,null,null,null,null,null,null,0,{"$error":"#DIV/0!"}]
[null,"Evaluation of alts",null,null,null,null,null,null,null,null,null,null,null,null,null,null,null,null,null,null,null,null,null,0,{"$error":"#DIV/0!"}]
[null,null,null,null,null,null,null,null,null,null,null,null,null,null,null,null,null,null,null,null,null,null,null,0,{"$error":"#DIV/0!"}]
[null,null,null,null,null,null,null,null,null,null,null,null,null,null,null,null,null,null,null,null,null,null,null,0,{"$f":"IF(X75=\"\",\"\",SUM((X75/$X$261)))","v":{"$error":"#DIV/0!"}}]
[null,"Public involvement and stakeholder meetings as per plan",null,null,null,null,null,null,null,null,null,null,null,null,null,null,null,null,null,null,null,null,null,0,{"$error":"#DIV/0!"}]
[null,"Schedules of development",null,null,null,null,null,null,null,null,null,null,null,null,null,null,null,null,null,null,null,null,null,0,{"$error":"#DIV/0!"}]
[null,"Estimates of development costs",null,null,null,null,null,null,null,null,null,null,null,null,null,null,null,null,null,null,null,null,null,0,{"$error":"#DIV/0!"}]
[null,"ALP plan set",null,null,null,null,null,null,null,null,null,null,null,null,null,null,null,null,null,null,null,null,null,{"$f":"IF(B79=\"\",0,IF((SUM(D80:W92)=0),SUM(D79:W79),\"\"))","v":0},{"$error":"#DIV/0!"}]
[null,"Title sheet",null,null,null,null,null,null,null,null,null,null,null,null,null,null,null,null,null,null,null,null,null,{"$f":"IF(B80=\"\",0,IF((SUM(D80:W80)=0),0,SUM(D80:W80)))","v":0},{"$error":"#DIV/0!"}]
[null,"Ground control survey",null,null,null,null,null,null,null,null,null,null,null,null,null,null,null,null,null,null,null,null,null,0,{"$error":"#DIV/0!"}]
[null,"Existing facilities drawing",null,null,null,null,null,null,null,null,null,null,null,null,null,null,null,null,null,null,null,null,null,0,{"$error":"#DIV/0!"}]
[null,"Property map or exhibit A",null,null,null,null,null,null,null,null,null,null,null,null,null,null,null,null,null,null,null,null,null,0,{"$error":"#DIV/0!"}]
[null,"Airspace drawing",null,null,null,null,null,null,null,null,null,null,null,null,null,null,null,null,null,null,null,null,null,0,{"$error":"#DIV/0!"}]
[null,"Inner portion of the approach surface drawing",null,null,null,null,null,null,null,null,null,null,null,null,null,null,null,null,null,null,null,null,null,0,{"$error":"#DIV/0!"}]
[null,"Obstruction analysis",null,null,null,null,null,null,null,null,null,null,null,null,null,null,null,null,null,null,null,null,null,0,{"$error":"#DIV/0!"}]
[null,"Runway departure surface sheet",null,null,null,null,null,null,null,null,null,null,null,null,null,null,null,null,null,null,null,null,null,0,{"$error":"#DIV/0!"}]
[null,"Terminal area plan sheet",null,null,null,null,null,null,null,null,null,null,null,null,null,null,null,null,null,null,null,null,null,0,{"$error":"#DIV/0!"}]
[null,"Land use plan sheet",null,null,null,null,null,null,null,null,null,null,null,null,null,null,null,null,null,null,null,null,null,0,{"$error":"#DIV/0!"}]
[null,null,null,null,null,null,null,null,null,null,null,null,null,null,null,null,null,null,null,null,null,null,null,0,{"$error":"#DIV/0!"}]
[null,null,null,null,null,null,null,null,null,null,null,null,null,null,null,null,null,null,null,null,null,null,null,0,{"$error":"#DIV/0!"}]
[null,null,null,null,null,null,null,null,null,null,null,null,null,null,null,null,null,null,null,null,null,null,null,0,{"$error":"#DIV/0!"}]
[null,"ALP checklist completion",null,null,null,null,null,null,null,null,null,null,null,null,null,null,null,null,null,null,null,null,null,0,{"$error":"#DIV/0!"}]
[null,"Status reports, draft submittals",null,null,null,null,null,null,null,null,null,null,null,null,null,null,null,null,null,null,null,null,null,0,{"$error":"#DIV/0!"}]
[null,null,null,null,null,null,null,null,null,null,null,null,null,null,null,null,null,null,null,null,null,null,null,0,{"$error":"#DIV/0!"}]
[null,null,null,null,null,null,null,null,null,null,null,null,null,null,null,null,null,null,null,null,null,null,null,0,{"$error":"#DIV/0!"}]
[null,null,null,null,null,null,null,null,null,null,null,null,null,null,null,null,null,null,null,null,null,null,null,0,{"$error":"#DIV/0!"}]
[null,null,null,null,null,null,null,null,null,null,null,null,null,null,null,null,null,null,null,null,null,null,null,0,{"$error":"#DIV/0!"}]
[null,null,null,null,null,null,null,null,null,null,null,null,null,null,null,null,null,null,null,null,null,null,null,0,{"$error":"#DIV/0!"}]
[null,null,null,null,null,null,null,null,null,null,null,null,null,null,null,null,null,null,null,null,null,null,null,0,{"$error":"#DIV/0!"}]
[null,null,null,null,null,null,null,null,null,null,null,null,null,null,null,null,null,null,null,null,null,null,null,0,{"$error":"#DIV/0!"}]
[null,null,null,null,null,null,null,null,null,null,null,null,null,null,null,null,null,null,null,null,null,null,null,0,{"$error":"#DIV/0!"}]
[null,null,null,null,null,null,null,null,null,null,null,null,null,null,null,null,null,null,null,null,null,null,null,0,{"$error":"#DIV/0!"}]
[null,null,null,null,null,null,null,null,null,null,null,null,null,null,null,null,null,null,null,null,null,null,null,0,{"$error":"#DIV/0!"}]
[null,"DESIGN",null,null,null,null,null,null,null,null,null,null,null,null,null,null,null,null,null,null,null,null,null,{"$f":"IF(B105=\"\",0,IF((SUM(D106:W179)=0),SUM(D105:W105),\"\"))","v":0},{"$error":"#DIV/0!"}]
[null,"Project formulation",null,null,null,null,null,null,null,null,null,null,null,null,null,null,null,null,null,null,null,null,null,{"$f":"IF(B106=\"\",0,IF((SUM(D106:W106)=0),0,SUM(D106:W106)))","v":0},{"$error":"#DIV/0!"}]
[null,"Study design ",null,null,null,null,null,null,null,null,null,null,null,null,null,null,null,null,null,null,null,null,null,{"$f":"IF(B107=\"\",0,IF((SUM(D108:W112)=0),SUM(D107:W107),\"\"))","v":0},{"$error":"#DIV/0!"}]
[null,"Project definition",null,null,null,null,null,null,null,null,null,null,null,null,null,null,null,null,null,null,null,null,null,{"$f":"IF(B108=\"\",0,IF((SUM(D108:W108)=0),0,SUM(D108:W108)))","v":0},{"$error":"#DIV/0!"}]
[null,"Kick-off meetings",null,null,null,null,null,null,null,null,null,null,null,null,null,null,null,null,null,null,null,null,null,0,{"$error":"#DIV/0!"}]
[null,"Schedule/deliverables/plan/budget",null,null,null,null,null,null,null,null,null,null,null,null,null,null,null,null,null,null,null,null,null,0,{"$error":"#DIV/0!"}]
[null,null,null,null,null,null,null,null,null,null,null,null,null,null,null,null,null,null,null,null,null,null,null,0,{"$error":"#DIV/0!"}]
[null,null,null,null,null,null,null,null,null,null,null,null,null,null,null,null,null,null,null,null,null,null,null,0,{"$error":"#DIV/0!"}]
[null,"Sub consultant coordination",null,null,null,null,null,null,null,null,null,null,null,null,null,null,null,null,null,null,null,null,null,0,{"$error":"#DIV/0!"}]
[null,"IFE coordination",null,null,null,null,null,null,null,null,null,null,null,null,null,null,null,null,null,null,null,null,null,0,{"$error":"#DIV/0!"}]
[null,"Airport board/steering committee input and update meetings",null,null,null,null,null,null,null,null,null,null,null,null,null,null,null,null,null,null,null,null,null,0,{"$error":"#DIV/0!"}]
[null,"Grant application",null,null,null,null,null,null,null,null,null,null,null,null,null,null,null,null,null,null,null,null,null,0,{"$error":"#DIV/0!"}]
[null,"Invoicing/grant admin",null,null,null,null,null,null,null,null,null,null,null,null,null,null,null,null,null,null,null,null,null,0,{"$error":"#DIV/0!"}]
[null,"CatEx NEPA document ",null,null,null,null,null,null,null,null,null,null,null,null,null,null,null,null,null,null,null,null,null,{"$f":"IF(B118=\"\",0,IF((SUM(D119:W128)=0),SUM(D118:W118),\"\"))","v":0},{"$error":"#DIV/0!"}]
[null,"Study area and vicinity map",null,null,null,null,null,null,null,null,null,null,null,null,null,null,null,null,null,null,null,null,null,{"$f":"IF(B119=\"\",0,IF((SUM(D119:W119)=0),0,SUM(D119:W119)))","v":0},{"$error":"#DIV/0!"}]
[null,"Environmental features map",null,null,null,null,null,null,null,null,null,null,null,null,null,null,null,null,null,null,null,null,null,0,{"$error":"#DIV/0!"}]
[null,"Start of study or scoping letter for environmental clearinghouse",null,null,null,null,null,null,null,null,null,null,null,null,null,null,null,null,null,null,null,null,null,0,{"$error":"#DIV/0!"}]
[null,"Other agency coordination and stakeholder involvement",null,null,null,null,null,null,null,null,null,null,null,null,null,null,null,null,null,null,null,null,null,0,{"$error":"#DIV/0!"}]
[null,"Landowner notification",null,null,null,null,null,null,null,null,null,null,null,null,null,null,null,null,null,null,null,null,null,0,{"$error":"#DIV/0!"}]
[null,"Address impact categories with obtained data",null,null,null,null,null,null,null,null,null,null,null,null,null,null,null,null,null,null,null,null,null,0,{"$error":"#DIV/0!"}]
[null,"Submit draft document for review",null,null,null,null,null,null,null,null,null,null,null,null,null,null,null,null,null,null,null,null,null,0,{"$error":"#DIV/0!"}]
[null,null,null,null,null,null,null,null,null,null,null,null,null,null,null,null,null,null,null,null,null,null,null,0,{"$error":"#DIV/0!"}]
[null,null,null,null,null,null,null,null,null,null,null,null,null,null,null,null,null,null,null,null,null,null,null,0,{"$error":"#DIV/0!"}]
[null,null,null,null,null,null,null,null,null,null,null,null,null,null,null,null,null,null,null,null,null,null,null,0,{"$error":"#DIV/0!"}]
[null,"Permit application & agency meeting regarding permitting",null,null,null,null,null,null,null,null,null,null,null,null,null,null,null,null,null,null,null,null,null,{"$f":"IF(B129=\"\",0,IF((SUM(D129:W129)=0),0,SUM(D129:W129)))","v":0},{"$error":"#DIV/0!"}]
[null,"Survey of existing conditions ",null,null,null,null,null,null,null,null,null,null,null,null,null,null,null,null,null,null,null,null,null,{"$f":"IF(B130=\"\",0,IF((SUM(D131:W136)=0),SUM(D130:W130),\"\"))","v":0},{"$error":"#DIV/0!"}]
[null,"Collect existing survey data",null,null,null,null,null,null,null,null,null,null,null,null,null,null,null,null,null,null,null,null,null,{"$f":"IF(B131=\"\",0,IF((SUM(D131:W131)=0),0,SUM(D131:W131)))","v":0},{"$error":"#DIV/0!"}]
[null,"Obtain new data as needed",null,null,null,null,null,null,null,null,null,null,null,null,null,null,null,null,null,null,null,null,null,0,{"$error":"#DIV/0!"}]
[null,"Incorporate into base plans",null,null,null,null,null,null,null,null,null,null,null,null,null,null,null,null,null,null,null,null,null,0,{"$error":"#DIV/0!"}]
[null,"CADD mapping",null,null,null,null,null,null,null,null,null,null,null,null,null,null,null,null,null,null,null,null,null,0,{"$error":"#DIV/0!"}]
[null,null,null,null,null,null,null,null,null,null,null,null,null,null,null,null,null,null,null,null,null,null,null,0,{"$error":"#DIV/0!"}]
[null,null,null,null,null,null,null,null,null,null,null,null,null,null,null,null,null,null,null,null,null,null,null,0,{"$error":"#DIV/0!"}]
[null,"Geotechnical investigations",null,null,null,null,null,null,null,null,null,null,null,null,null,null,null,null,null,null,null,null,null,0,{"$error":"#DIV/0!"}]
[null,"Construction plans production ",null,null,null,null,null,null,null,null,null,null,null,null,null,null,null,null,null,null,null,null,null,{"$f":"IF(B138=\"\",0,IF((SUM(D139:W160)=0),SUM(D138:W138),\"\"))","v":0},{"$error":"#DIV/0!"}]
[null,"Title sheet",null,null,null,null,null,null,null,null,null,null,null,null,null,null,null,null,null,null,null,null,null,{"$f":"IF(B139=\"\",0,IF((SUM(D139:W139)=0),0,SUM(D139:W139)))","v":0},{"$f":"IF(X139=\"\",\"\",SUM((X139/$X$261)))","v":{"$error":"#DIV/0!"}}]
[null,"Index of drawings",null,null,null,null,null,null,null,null,null,null,null,null,null,null,null,null,null,null,null,null,null,0,{"$error":"#DIV/0!"}]
[null,"Summary of quantities",null,null,null,null,null,null,null,null,null,null,null,null,null,null,null,null,null,null,null,null,null,0,{"$error":"#DIV/0!"}]
[null,"Pipe schedule",null,null,null,null,null,null,null,null,null,null,null,null,null,null,null,null,null,null,null,null,null,0,{"$error":"#DIV/0!"}]
[null,"General notes",null,null,null,null,null,null,null,null,null,null,null,null,null,null,null,null,null,null,null,null,null,0,{"$error":"#DIV/0!"}]
[null,"Legend",null,null,null,null,null,null,null,null,null,null,null,null,null,null,null,null,null,null,null,null,null,0,{"$error":"#DIV/0!"}]
[null,"Project layout",null,null,null,null,null,null,null,null,null,null,null,null,null,null,null,null,null,null,null,null,null,0,{"$error":"#DIV/0!"}]
[null,"Haul roads/staging areas",null,null,null,null,null,null,null,null,null,null,null,null,null,null,null,null,null,null,null,null,null,0,{"$error":"#DIV/0!"}]
[null,"Soil boring plans and logs",null,null,null,null,null,null,null,null,null,null,null,null,null,null,null,null,null,null,null,null,null,0,{"$error":"#DIV/0!"}]
[null,"Safety and security notes and details",null,null,null,null,null,null,null,null,null,null,null,null,null,null,null,null,null,null,null,null,null,0,{"$error":"#DIV/0!"}]
[null,"Plan/profile proposed",null,null,null,null,null,null,null,null,null,null,null,null,null,null,null,null,null,null,null,null,null,0,{"$error":"#DIV/0!"}]
[null,"Typical sections",null,null,null,null,null,null,null,null,null,null,null,null,null,null,null,null,null,null,null,null,null,0,{"$error":"#DIV/0!"}]
[null,"Grading/drainage plans",null,null,null,null,null,null,null,null,null,null,null,null,null,null,null,null,null,null,null,null,null,0,{"$error":"#DIV/0!"}]
[null,"Construction safety and phasing plan",null,null,null,null,null,null,null,null,null,null,null,null,null,null,null,null,null,null,null,null,null,0,{"$error":"#DIV/0!"}]
[null,"Paving plan",null,null,null,null,null,null,null,null,null,null,null,null,null,null,null,null,null,null,null,null,null,0,{"$error":"#DIV/0!"}]
[null,"Erosion and sediment control plans",null,null,null,null,null,null,null,null,null,null,null,null,null,null,null,null,null,null,null,null,null,0,{"$error":"#DIV/0!"}]
[null,"Pavement marking details",null,null,null,null,null,null,null,null,null,null,null,null,null,null,null,null,null,null,null,null,null,0,{"$error":"#DIV/0!"}]
[null,"Miscellaneous details",null,null,null,null,null,null,null,null,null,null,null,null,null,null,null,null,null,null,null,null,null,0,{"$error":"#DIV/0!"}]
[null,"Cross sections",null,null,null,null,null,null,null,null,null,null,null,null,null,null,null,null,null,null,null,null,null,0,{"$error":"#DIV/0!"}]
[null,null,null,null,null,null,null,null,null,null,null,null,null,null,null,null,null,null,null,null,null,null,null,0,{"$error":"#DIV/0!"}]
[null,null,null,null,null,null,null,null,null,null,null,null,null,null,null,null,null,null,null,null,null,null,null,0,{"$error":"#DIV/0!"}]
[null,null,null,null,null,null,null,null,null,null,null,null,null,null,null,null,null,null,null,null,null,null,null,0,{"$error":"#DIV/0!"}]
[null,"Incorporate safety plan comments",null,null,null,null,null,null,null,null,null,null,null,null,null,null,null,null,null,null,null,null,null,0,{"$error":"#DIV/0!"}]
[null,"Incorporate 30% review comments",null,null,null,null,null,null,null,null,null,null,null,null,null,null,null,null,null,null,null,null,null,0,{"$error":"#DIV/0!"}]
[null,"Incorporate 60% review comments",null,null,null,null,null,null,null,null,null,null,null,null,null,null,null,null,null,null,null,null,null,0,{"$error":"#DIV/0!"}]
[null,"Prepare bid documents",null,null,null,null,null,null,null,null,null,null,null,null,null,null,null,null,null,null,null,null,null,0,{"$error":"#DIV/0!"}]
[null,"Advertise and distribute bid documents",null,null,null,null,null,null,null,null,null,null,null,null,null,null,null,null,null,null,null,null,null,0,{"$error":"#DIV/0!"}]
[null,"Attend and conduct pre-bid meeting",null,null,null,null,null,null,null,null,null,null,null,null,null,null,null,null,null,null,null,null,null,0,{"$error":"#DIV/0!"}]
[null,"Issue addenda and address questions by prospective bidders ",null,null,null,null,null,null,null,null,null,null,null,null,null,null,null,null,null,null,null,null,null,0,{"$error":"#DIV/0!"}]
[null,"Attend and conduct bid opening, prepare bid tab and recommend award",null,null,null,null,null,null,null,null,null,null,null,null,null,null,null,null,null,null,null,null,null,0,{"$error":"#DIV/0!"}]
[null,"Grant close-out",null,null,null,null,null,null,null,null,null,null,null,null,null,null,null,null,null,null,null,null,null,0,{"$error":"#DIV/0!"}]
[null,null,null,null,null,null,null,null,null,null,null,null,null,null,null,null,null,null,null,null,null,null,null,0,{"$error":"#DIV/0!"}]
[null,null,null,null,null,null,null,null,null,null,null,null,null,null,null,null,null,null,null,null,null,null,null,0,{"$error":"#DIV/0!"}]
[null,null,null,null,null,null,null,null,null,null,null,null,null,null,null,null,null,null,null,null,null,null,null,0,{"$error":"#DIV/0!"}]
[null,null,null,null,null,null,null,null,null,null,null,null,null,null,null,null,null,null,null,null,null,null,null,0,{"$error":"#DIV/0!"}]
[null,null,null,null,null,null,null,null,null,null,null,null,null,null,null,null,null,null,null,null,null,null,null,0,{"$error":"#DIV/0!"}]
[null,null,null,null,null,null,null,null,null,null,null,null,null,null,null,null,null,null,null,null,null,null,null,0,{"$error":"#DIV/0!"}]
[null,null,null,null,null,null,null,null,null,null,null,null,null,null,null,null,null,null,null,null,null,null,null,0,{"$error":"#DIV/0!"}]
[null,null,null,null,null,null,null,null,null,null,null,null,null,null,null,null,null,null,null,null,null,null,null,0,{"$error":"#DIV/0!"}]
[null,null,null,null,null,null,null,null,null,null,null,null,null,null,null,null,null,null,null,null,null,null,null,0,{"$error":"#DIV/0!"}]
[null,null,null,null,null,null,null,null,null,null,null,null,null,null,null,null,null,null,null,null,null,null,null,0,{"$error":"#DIV/0!"}]
[null,"CONSTRUCTION",null,null,null,null,null,null,null,null,null,null,null,null,null,null,null,null,null,null,null,null,null,{"$f":"IF(B180=\"\",0,IF((SUM(D181:W205)=0),SUM(D180:W180),\"\"))","v":0},{"$error":"#DIV/0!"}]
[null,"Project formulation",null,null,null,null,null,null,null,null,null,null,null,null,null,null,null,null,null,null,null,null,null,{"$f":"IF(B181=\"\",0,IF((SUM(D181:W181)=0),0,SUM(D181:W181)))","v":0},{"$error":"#DIV/0!"}]
[null,"Kick off and close-out meetings",null,null,null,null,null,null,null,null,null,null,null,null,null,null,null,null,null,null,null,null,null,0,{"$error":"#DIV/0!"}]
[null,"Budget/schedule",null,null,null,null,null,null,null,null,null,null,null,null,null,null,null,null,null,null,null,null,null,0,{"$error":"#DIV/0!"}]
[null,"Invoicing",null,null,null,null,null,null,null,null,null,null,null,null,null,null,null,null,null,null,null,null,null,0,{"$error":"#DIV/0!"}]
[null,"Internal progress meetings",null,null,null,null,null,null,null,null,null,null,null,null,null,null,null,null,null,null,null,null,null,0,{"$error":"#DIV/0!"}]
[null,"Sub consultant coordination and management",null,null,null,null,null,null,null,null,null,null,null,null,null,null,null,null,null,null,null,null,null,0,{"$error":"#DIV/0!"}]
[null,"Project work plan and field safety instructions",null,null,null,null,null,null,null,null,null,null,null,null,null,null,null,null,null,null,null,null,null,0,{"$error":"#DIV/0!"}]
[null,"Program management support services",null,null,null,null,null,null,null,null,null,null,null,null,null,null,null,null,null,null,null,null,null,0,{"$error":"#DIV/0!"}]
[null,"RPR, inspection, material testing, and reporting",null,null,null,null,null,null,null,null,null,null,null,null,null,null,null,null,null,null,null,null,null,0,{"$error":"#DIV/0!"}]
[null,"Project Site/field review/visit",null,null,null,null,null,null,null,null,null,null,null,null,null,null,null,null,null,null,null,null,null,0,{"$error":"#DIV/0!"}]
[null,"Geotechnical investigations and testing",null,null,null,null,null,null,null,null,null,null,null,null,null,null,null,null,null,null,null,null,null,0,{"$error":"#DIV/0!"}]
[null,"General coordination and grant admin (X months)",null,null,null,null,null,null,null,null,null,null,null,null,null,null,null,null,null,null,null,null,null,0,{"$error":"#DIV/0!"}]
[null,"Coordination meetings",null,null,null,null,null,null,null,null,null,null,null,null,null,null,null,null,null,null,null,null,null,0,{"$error":"#DIV/0!"}]
[null,"Progress reports and invoices",null,null,null,null,null,null,null,null,null,null,null,null,null,null,null,null,null,null,null,null,null,0,{"$error":"#DIV/0!"}]
[null,"Project schedule",null,null,null,null,null,null,null,null,null,null,null,null,null,null,null,null,null,null,null,null,null,0,{"$error":"#DIV/0!"}]
[null,null,null,null,null,null,null,null,null,null,null,null,null,null,null,null,null,null,null,null,null,null,null,0,{"$error":"#DIV/0!"}]
[null,null,null,null,null,null,null,null,null,null,null,null,null,null,null,null,null,null,null,null,null,null,null,0,{"$error":"#DIV/0!"}]
[null,null,null,null,null,null,null,null,null,null,null,null,null,null,null,null,null,null,null,null,null,null,null,0,{"$error":"#DIV/0!"}]
[null,null,null,null,null,null,null,null,null,null,null,null,null,null,null,null,null,null,null,null,null,null,null,0,{"$error":"#DIV/0!"}]
[null,null,null,null,null,null,null,null,null,null,null,null,null,null,null,null,null,null,null,null,null,null,null,0,{"$error":"#DIV/0!"}]
[null,null,null,null,null,null,null,null,null,null,null,null,null,null,null,null,null,null,null,null,null,null,null,0,{"$error":"#DIV/0!"}]
[null,null,null,null,null,null,null,null,null,null,null,null,null,null,null,null,null,null,null,null,null,null,null,0,{"$error":"#DIV/0!"}]
[null,null,null,null,null,null,null,null,null,null,null,null,null,null,null,null,null,null,null,null,null,null,null,0,{"$f":"IF(X203=\"\",\"\",SUM((X203/$X$261)))","v":{"$error":"#DIV/0!"}}]
[null,null,null,null,null,null,null,null,null,null,null,null,null,null,null,null,null,null,null,null,null,null,null,0,{"$error":"#DIV/0!"}]
[null,null,null,null,null,null,null,null,null,null,null,null,null,null,null,null,null,null,null,null,null,null,null,0,{"$error":"#DIV/0!"}]
[null,"OTHER",null,null,null,null,null,null,null,null,null,null,null,null,null,null,null,null,null,null,null,null,null,{"$f":"IF(B206=\"\",0,IF((SUM(D207:W260)=0),SUM(D206:W206),\"\"))","v":0},{"$error":"#DIV/0!"}]
[null,null,null,null,null,null,null,null,null,null,null,null,null,null,null,null,null,null,null,null,null,null,null,{"$f":"IF(B207=\"\",0,IF((SUM(D207:W207)=0),0,SUM(D207:W207)))","v":0},{"$error":"#DIV/0!"}]
[null,null,null,null,null,null,null,null,null,null,null,null,null,null,null,null,null,null,null,null,null,null,null,0,{"$error":"#DIV/0!"}]
[null,null,null,null,null,null,null,null,null,null,null,null,null,null,null,null,null,null,null,null,null,null,null,0,{"$error":"#DIV/0!"}]
[null,null,null,null,null,null,null,null,null,null,null,null,null,null,null,null,null,null,null,null,null,null,null,0,{"$error":"#DIV/0!"}]
[null,null,null,null,null,null,null,null,null,null,null,null,null,null,null,null,null,null,null,null,null,null,null,0,{"$error":"#DIV/0!"}]
[null,null,null,null,null,null,null,null,null,null,null,null,null,null,null,null,null,null,null,null,null,null,null,0,{"$error":"#DIV/0!"}]
[null,null,null,null,null,null,null,null,null,null,null,null,null,null,null,null,null,null,null,null,null,null,null,0,{"$error":"#DIV/0!"}]
[null,null,null,null,null,null,null,null,null,null,null,null,null,null,null,null,null,null,null,null,null,null,null,0,{"$error":"#DIV/0!"}]
[null,null,null,null,null,null,null,null,null,null,null,null,null,null,null,null,null,null,null,null,null,null,null,0,{"$error":"#DIV/0!"}]
[null,null,null,null,null,null,null,null,null,null,null,null,null,null,null,null,null,null,null,null,null,null,null,0,{"$error":"#DIV/0!"}]
[null,null,null,null,null,null,null,null,null,null,null,null,null,null,null,null,null,null,null,null,null,null,null,0,{"$error":"#DIV/0!"}]
[null,null,null,null,null,null,null,null,null,null,null,null,null,null,null,null,null,null,null,null,null,null,null,0,{"$error":"#DIV/0!"}]
[null,null,null,null,null,null,null,null,null,null,null,null,null,null,null,null,null,null,null,null,null,null,null,0,{"$error":"#DIV/0!"}]
[null,null,null,null,null,null,null,null,null,null,null,null,null,null,null,null,null,null,null,null,null,null,null,0,{"$error":"#DIV/0!"}]
[null,null,null,null,null,null,null,null,null,null,null,null,null,null,null,null,null,null,null,null,null,null,null,0,{"$error":"#DIV/0!"}]
[null,null,null,null,null,null,null,null,null,null,null,null,null,null,null,null,null,null,null,null,null,null,null,0,{"$error":"#DIV/0!"}]
[null,null,null,null,null,null,null,null,null,null,null,null,null,null,null,null,null,null,null,null,null,null,null,0,{"$error":"#DIV/0!"}]
[null,null,null,null,null,null,null,null,null,null,null,null,null,null,null,null,null,null,null,null,null,null,null,0,{"$error":"#DIV/0!"}]
[null,null,null,null,null,null,null,null,null,null,null,null,null,null,null,null,null,null,null,null,null,null,null,0,{"$error":"#DIV/0!"}]
[null,null,null,null,null,null,null,null,null,null,null,null,null,null,null,null,null,null,null,null,null,null,null,0,{"$error":"#DIV/0!"}]
[null,null,null,null,null,null,null,null,null,null,null,null,null,null,null,null,null,null,null,null,null,null,null,0,{"$error":"#DIV/0!"}]
[null,null,null,null,null,null,null,null,null,null,null,null,null,null,null,null,null,null,null,null,null,null,null,0,{"$error":"#DIV/0!"}]
[null,null,null,null,null,null,null,null,null,null,null,null,null,null,null,null,null,null,null,null,null,null,null,0,{"$error":"#DIV/0!"}]
[null,null,null,null,null,null,null,null,null,null,null,null,null,null,null,null,null,null,null,null,null,null,null,0,{"$error":"#DIV/0!"}]
[null,null,null,null,null,null,null,null,null,null,null,null,null,null,null,null,null,null,null,null,null,null,null,0,{"$error":"#DIV/0!"}]
[null,null,null,null,null,null,null,null,null,null,null,null,null,null,null,null,null,null,null,null,null,null,null,0,{"$error":"#DIV/0!"}]
[null,null,null,null,null,null,null,null,null,null,null,null,null,null,null,null,null,null,null,null,null,null,null,0,{"$error":"#DIV/0!"}]
[null,null,null,null,null,null,null,null,null,null,null,null,null,null,null,null,null,null,null,null,null,null,null,0,{"$error":"#DIV/0!"}]
[null,null,null,null,null,null,null,null,null,null,null,null,null,null,null,null,null,null,null,null,null,null,null,0,{"$error":"#DIV/0!"}]
[null,null,null,null,null,null,null,null,null,null,null,null,null,null,null,null,null,null,null,null,null,null,null,0,{"$error":"#DIV/0!"}]
[null,null,null,null,null,null,null,null,null,null,null,null,null,null,null,null,null,null,null,null,null,null,null,0,{"$error":"#DIV/0!"}]
[null,null,null,null,null,null,null,null,null,null,null,null,null,null,null,null,null,null,null,null,null,null,null,0,{"$error":"#DIV/0!"}]
[null,null,null,null,null,null,null,null,null,null,null,null,null,null,null,null,null,null,null,null,null,null,null,0,{"$error":"#DIV/0!"}]
[null,null,null,null,null,null,null,null,null,null,null,null,null,null,null,null,null,null,null,null,null,null,null,0,{"$error":"#DIV/0!"}]
[null,null,null,null,null,null,null,null,null,null,null,null,null,null,null,null,null,null,null,null,null,null,null,0,{"$error":"#DIV/0!"}]
[null,null,null,null,null,null,null,null,null,null,null,null,null,null,null,null,null,null,null,null,null,null,null,0,{"$error":"#DIV/0!"}]
[null,null,null,null,null,null,null,null,null,null,null,null,null,null,null,null,null,null,null,null,null,null,null,0,{"$error":"#DIV/0!"}]
[null,null,null,null,null,null,null,null,null,null,null,null,null,null,null,null,null,null,null,null,null,null,null,0,{"$error":"#DIV/0!"}]
[null,null,null,null,null,null,null,null,null,null,null,null,null,null,null,null,null,null,null,null,null,null,null,0,{"$error":"#DIV/0!"}]
[null,null,null,null,null,null,null,null,null,null,null,null,null,null,null,null,null,null,null,null,null,null,null,0,{"$error":"#DIV/0!"}]
[null,null,null,null,null,null,null,null,null,null,null,null,null,null,null,null,null,null,null,null,null,null,null,0,{"$error":"#DIV/0!"}]
[null,null,null,null,null,null,null,null,null,null,null,null,null,null,null,null,null,null,null,null,null,null,null,0,{"$error":"#DIV/0!"}]
[null,null,null,null,null,null,null,null,null,null,null,null,null,null,null,null,null,null,null,null,null,null,null,0,{"$error":"#DIV/0!"}]
[null,null,null,null,null,null,null,null,null,null,null,null,null,null,null,null,null,null,null,null,null,null,null,0,{"$error":"#DIV/0!"}]
[null,null,null,null,null,null,null,null,null,null,null,null,null,null,null,null,null,null,null,null,null,null,null,0,{"$error":"#DIV/0!"}]
[null,null,null,null,null,null,null,null,null,null,null,null,null,null,null,null,null,null,null,null,null,null,null,0,{"$error":"#DIV/0!"}]
[null,null,null,null,null,null,null,null,null,null,null,null,null,null,null,null,null,null,null,null,null,null,null,0,{"$error":"#DIV/0!"}]
[null,null,null,null,null,null,null,null,null,null,null,null,null,null,null,null,null,null,null,null,null,null,null,0,{"$error":"#DIV/0!"}]
[null,null,null,null,null,null,null,null,null,null,null,null,null,null,null,null,null,null,null,null,null,null,null,0,{"$error":"#DIV/0!"}]
[null,null,null,null,null,null,null,null,null,null,null,null,null,null,null,null,null,null,null,null,null,null,null,0,{"$error":"#DIV/0!"}]
[null,null,null,null,null,null,null,null,null,null,null,null,null,null,null,null,null,null,null,null,null,null,null,0,{"$error":"#DIV/0!"}]
[null,null,null,null,null,null,null,null,null,null,null,null,null,null,null,null,null,null,null,null,null,null,null,0,{"$error":"#DIV/0!"}]
[null,null,null,null,null,null,null,null,null,null,null,null,null,null,null,null,null,null,null,null,null,null,null,{"$f":"IF(B259=\"\",0,IF((SUM(D259:W259)=0),0,SUM(D259:W259)))","v":0},{"$error":"#DIV/0!"}]
[null,null,null,null,null,null,null,null,null,null,null,null,null,null,null,null,null,null,null,null,null,null,null,{"$f":"IF(B260=\"\",0,IF((SUM(D260:W260)=0),0,SUM(D260:W260)))","v":0},{"$error":"#DIV/0!"}]
[null,"TOTAL WORKHOURS/CATEGORY:",null,{"$f":"SUM(D11:D260)","v":0},0,0,0,0,0,0,0,0,0,0,0,0,0,0,0,0,0,0,0,0,{"$error":"#DIV/0!"},{"$f":"SUM(Z12:Z260)","v":0}]
[null,"TOTAL WORKDAYS/CATEGORY:",null,{"$f":"D261/8","v":0},{"$f":"E261/8","v":0},0,0,0,0,0,0,0,0,0,0,0,0,0,0,0,0,0,0]
[null,"HOURLY SALARY RATE:",null,{"$f":"'PEF CLASSIFICATION SHEET'!E1822","v":0},{"$f":"'PEF CLASSIFICATION SHEET'!E1823","v":0},{"$f":"'PEF CLASSIFICATION SHEET'!E1824","v":0},{"$f":"'PEF CLASSIFICATION SHEET'!E1825","v":0},{"$f":"'PEF CLASSIFICATION SHEET'!E1826","v":0},{"$f":"'PEF CLASSIFICATION SHEET'!E1827","v":0},{"$f":"'PEF CLASSIFICATION SHEET'!E1828","v":0},{"$f":"'PEF CLASSIFICATION SHEET'!E1829","v":0},{"$f":"'PEF CLASSIFICATION SHEET'!E1830","v":0},{"$f":"'PEF CLASSIFICATION SHEET'!E1831","v":0},{"$f":"'PEF CLASSIFICATION SHEET'!E1832","v":0},{"$f":"'PEF CLASSIFICATION SHEET'!E1833","v":0},{"$f":"'PEF CLASSIFICATION SHEET'!E1834","v":0},{"$f":"'PEF CLASSIFICATION SHEET'!E1835","v":0},{"$f":"'PEF CLASSIFICATION SHEET'!E1836","v":0},{"$f":"'PEF CLASSIFICATION SHEET'!E1837","v":0},{"$f":"'PEF CLASSIFICATION SHEET'!E1838","v":0},{"$f":"'PEF CLASSIFICATION SHEET'!E1839","v":0},{"$f":"'PEF CLASSIFICATION SHEET'!E1840","v":0},{"$f":"'PEF CLASSIFICATION SHEET'!E1841","v":0}]
[null,"RATES PER DAY:",null,{"$f":"D263*8","v":0},0,0,0,0,0,0,0,0,0,0,0,0,0,0,0,0,0,0,0]
[null,"PAYROLL BURDEN:",null,{"$f":"SUM(D261*D263)","v":0},{"$f":"SUM(E261*E263)","v":0},0,0,0,0,0,0,0,0,0,0,0,0,0,0,0,0,0,0]
[null,"TOTAL WORKDAYS:",null,{"$f":"SUM(D262:W262)","v":0}]
[null,"TOTAL PAYROLL BURDEN:",null,{"$f":"SUM(D265:W265)","v":0}]
[null,"AVERAGE COST PER HOUR:",null,{"$f":"SUM(D267/(D266*8))","v":{"$error":"#DIV/0!"}}]
[null,"GENERAL OVERHEAD:",{"$f":"AVIATION.SUB3_CONSULTANT_OVERHEAD","v":0},{"$f":"SUM(D267*C269)","v":0}]
[null,"SUBTOTAL:",null,{"$f":"SUM(D267+D269)","v":0}]
[null,"COMPARATIVE FEE:",{"$f":"AVIATION.SUB3_CONSULTANT_FEE","v":0},{"$f":"SUM(D270*C271)","v":0}]
[null,"FACILITIES COST OF CAPITAL:",{"$f":"AVIATION.SUB3_CONSULTANT_COSTofCAPITAL","v":0},{"$f":"SUM(D267*C272)","v":0}]
[null,"TOTAL:",null,{"$f":"SUM(D270:D272)","v":0}]
[null,"DIRECT EXPENSES:",null,{"$f":"AVIATION.SUB3_DIRECT_NONSALARY_TOTAL","v":0}]
[null,"AVIATION GRAND TOTAL:",null,{"$f":"SUM(D273:D274)","v":0}]

{"sheet":"Aviation-Exp-Sub3","index":200,"n_rows":46,"n_cols":8,"rows_kept":46,"cut":false,"hidden":true,"merged":[[0,0,0,7],[1,3,1,7]]}
["AVIATION--DIRECT EXPENSES - SUBCONSULTANT 3"]
["TIP NUMBER",{"$f":"TIP.NUMBER","v":0},"FIRM:",{"$f":"'Aviation-Sub3'!G3","v":"CONSULTANT NAME"}]
[]
["GENERAL PROJECT WORK:","ITEM","QTY","DESCRIPTION",null,null,"UNIT COST "]
[null,"Travel:"]
[null,"Sedan",0,"Trip(s) @",0,"miles @",{"$f":"SEDAN","v":0.7},{"$f":"SUM(C6*E6*G6)","v":0}]
[null,"Carry All",0,"Trip(s) @",0,"miles @",{"$f":"CARRYALL","v":0.72},{"$f":"SUM(C7*E7*G7)","v":0}]
[null,"Car Rental",null,null,0,"days @ ",{"$f":"CARRENTAL","v":50},{"$f":"SUM(E8*G8)","v":0}]
[null,"Gas for Rental",null,null,0,"miles @",{"$f":"GASforRENTAL","v":0.2},{"$f":"SUM(E9*G9)","v":0}]
[null,"Parking:",0,"Trip(s) @",null,null,{"$f":"PARKING","v":3},{"$f":"SUM(C10*G10)","v":0}]
[null,"Per Diem:",0,"Breakfast",null,null,{"$f":"BREAKFAST","v":10.1},{"$f":"SUM(C11*G11)","v":0}]
[null,null,0,"Lunch",null,null,{"$f":"LUNCH","v":13.3},0]
[null,null,0,"Dinner",null,null,{"$f":"DINNER","v":23.1},0]
[null,null,0,"Lodging",null,null,{"$f":"LODGING_LUMP.SUM","v":95},0]
[null,"Reproduction:",0,"8 1/2 x 11 B & W Copies @",null,null,{"$f":"LETTERCOPIES","v":0.14000000000000001},0]
[null,null,0,"11 x 17 B & W Copies @",null,null,{"$f":"LEDGERCOPIES","v":0.34},0]
[null,null,0,"8 1/2 x 11 Color Copies @",null,null,{"$f":"LETTERCOLOR","v":0.83},0]
[null,null,0,"11 x 17 Color Copies @",null,null,{"$f":"LEDGERCOLOR","v":1.66},0]
[null,null,0,"SQ. FT. of Plots (B & W or Color)",null,"<65 SQ. FT.*",{"$f":"ROLLPLOTSshort","v":6.5},0]
[null,null,0,"SQ. FT. of Plots (B & W or Color)",null,">65 SQ. FT.*",{"$f":"ROLLPLOTSlong","v":1.5},0]
[null,null,0,"Cover(s) @",null,null,{"$f":"COVERS","v":0.5},0]
[null,null,0,"Binder(s) @",null,null,{"$f":"BINDERS","v":0.5},0]
[null,null,0,"Blueprints - 8 1/2 x 11 @",null,null,{"$f":"BLUEPRINTSLETTER","v":0.35},0]
[null,null,0,"Blueprints - 42 x 72 @",null,null,{"$f":"BLUEPRINTSLARGE","v":1.3},0]
[null,"Film and Developing:",0,"Roll(s) @",null,null,{"$f":"FILM","v":20},0]
[null,null,null,null,null,"Subtotal",null,{"$f":"SUM(H6:H25)","v":0}]
["MAPS AND DOCUMENTS:","ITEM","QTY","DESCRIPTION",null,null,"UNIT COST "]
[null,"County Tax Maps:",0,"Map(s) @",null,null,{"$f":"County_Tax_Maps","v":7},{"$f":"SUM(C28*G28)","v":0}]
[null,"USGS Maps:",0,"Map(s) @",null,null,{"$f":"USGSMAPS","v":7},{"$f":"SUM(C29*G29)","v":0}]
[null,null,null,null,null,"Subtotal",null,{"$f":"SUM(H28:H29)","v":0}]
["Miscellaneous Other","ITEM","QTY","DESCRIPTION",null,null,"UNIT COST "]
[null,null,null,null,null,null,null,{"$f":"SUM(C32*G32)","v":0}]
[null,null,null,null,null,null,null,{"$f":"SUM(C33*G33)","v":0}]
[null,null,null,null,null,null,null,0]
[null,null,null,null,null,null,null,0]
[null,null,null,null,null,null,null,0]
[null,null,null,null,null,null,null,0]
[null,null,null,null,null,null,null,0]
[null,null,null,null,null,null,null,{"$f":"SUM(C39*G39)","v":0}]
[null,null,null,null,null,null,null,{"$f":"SUM(C40*G40)","v":0}]
[null,null,null,null,null,null,null,{"$f":"SUM(C41*G41)","v":0}]
[null,null,null,null,null,"Subtotal",null,{"$f":"SUM(H32:H41)","v":0}]
[]
[null,null,null,null,null,"TOTAL",null,{"$f":"SUM(H26+H30+H42)","v":0}]
[]
[null,"* Sum of all plots "]

{"sheet":"Aviation-Sub4","index":201,"n_rows":275,"n_cols":27,"rows_kept":275,"cut":false,"hidden":true,"merged":[[196,26,196,27],[197,26,197,27],[198,26,198,27],[199,26,199,27],[200,26,200,27],[201,26,201,27],[202,26,202,27],[203,26,203,27],[204,26,204,27],[187,26,187,27],[188,26,188,27],[189,26,189,27],[190,26,190,27],[191,26,191,27],[192,26,192,27],[193,26,193,27],[194,26,194,27],[195,26,195,27],[178,26,178,27],[179,26,179,27],[180,26,180,27],[181,26,181,27],[182,26,182,27],[183,26,183,27],[184,26,184,27],[185,26,185,27],[186,26,186,27],[169,26,169,27],[170,26,170,27],[171,26,171,27],[172,26,172,27],[173,26,173,27],[174,26,174,27],[175,26,175,27],[176,26,176,27],[177,26,177,27],[160,26,160,27],[161,26,161,27],[162,26,162,27],[163,26,163,27],[164,26,164,27],[165,26,165,27],[166,26,166,27],[167,26,167,27],[168,26,168,27],[151,26,151,27],[152,26,152,27],[153,26,153,27],[154,26,154,27],[155,26,155,27],[156,26,156,27],[157,26,157,27],[158,26,158,27],[159,26,159,27],[142,26,142,27],[143,26,143,27],[144,26,144,27],[145,26,145,27],[146,26,146,27],[147,26,147,27],[148,26,148,27],[149,26,149,27],[150,26,150,27],[133,26,133,27],[134,26,134,27],[135,26,135,27],[136,26,136,27],[137,26,137,27],[138,26,138,27],[139,26,139,27],[140,26,140,27],[141,26,141,27],[124,26,124,27],[125,26,125,27],[126,26,126,27],[127,26,127,27],[128,26,128,27],[129,26,129,27],[130,26,130,27],[131,26,131,27],[132,26,132,27],[115,26,115,27],[116,26,116,27],[117,26,117,27],[118,26,118,27],[119,26,119,27],[120,26,120,27],[121,26,121,27],[122,26,122,27],[123,26,123,27],[106,26,106,27],[107,26,107,27],[108,26,108,27],[109,26,109,27],[110,26,110,27],[111,26,111,27],[112,26,112,27],[113,26,113,27],[114,26,114,27],[227,26,227,27],[228,26,228,27],[229,26,229,27],[230,26,230,27],[205,26,205,27],[206,26,206,27],[207,26,207,27],[208,26,208,27],[209,26,209,27],[210,26,210,27],[211,26,211,27],[212,26,212,27],[213,26,213,27],[214,26,214,27],[215,26,215,27],[216,26,216,27],[217,26,217,27],[218,26,218,27],[219,26,219,27],[220,26,220,27],[221,26,221,27],[222,26,222,27],[223,26,223,27],[224,26,224,27],[225,26,225,27],[226,26,226,27],[248,26,248,27],[231,26,231,27],[232,26,232,27],[233,26,233,27],[234,26,234,27],[235,26,235,27],[0,0,1,13],[2,1,2,4],[2,6,2,7],[2,10,2,11],[2,15,2,16],[3,1,3,4],[3,6,3,7],[3,10,3,11],[3,15,3,16],[6,12,9,12],[6,13,9,13],[6,14,9,14],[6,15,9,15],[6,16,9,16],[6,17,9,17],[4,3,4,22],[6,3,9,3],[6,4,9,4],[6,5,9,5],[6,6,9,6],[6,7,9,7],[6,8,9,8],[6,9,9,9],[6,10,9,10],[6,11,9,11],[10,26,10,27],[11,26,11,27],[12,26,12,27],[13,26,13,27],[14,26,14,27],[15,26,15,27],[6,18,9,18],[6,19,9,19],[6,20,9,20],[6,21,9,21],[6,22,9,22],[8,26,8,27],[22,26,22,27],[23,26,23,27],[24,26,24,27],[25,26,25,27],[26,26,26,27],[27,26,27,27],[16,26,16,27],[17,26,17,27],[18,26,18,27],[19,26,19,27],[20,26,20,27],[21,26,21,27],[34,26,34,27],[35,26,35,27],[36,26,36,27],[37,26,37,27],[38,26,38,27],[39,26,39,27],[28,26,28,27],[29,26,29,27],[30,26,30,27],[31,26,31,27],[32,26,32,27],[33,26,33,27],[46,26,46,27],[47,26,47,27],[48,26,48,27],[49,26,49,27],[50,26,50,27],[51,26,51,27],[40,26,40,27],[41,26,41,27],[42,26,42,27],[43,26,43,27],[44,26,44,27],[45,26,45,27],[58,26,58,27],[59,26,59,27],[60,26,60,27],[61,26,61,27],[62,26,62,27],[63,26,63,27],[52,26,52,27],[53,26,53,27],[54,26,54,27],[55,26,55,27],[56,26,56,27],[57,26,57,27],[70,26,70,27],[71,26,71,27],[72,26,72,27],[73,26,73,27],[74,26,74,27],[75,26,75,27],[64,26,64,27],[65,26,65,27],[66,26,66,27],[67,26,67,27],[68,26,68,27],[69,26,69,27],[82,26,82,27],[83,26,83,27],[84,26,84,27],[85,26,85,27],[86,26,86,27],[87,26,87,27],[76,26,76,27],[77,26,77,27],[78,26,78,27],[79,26,79,27],[80,26,80,27],[81,26,81,27],[94,26,94,27],[95,26,95,27],[96,26,96,27],[97,26,97,27],[98,26,98,27],[99,26,99,27],[88,26,88,27],[89,26,89,27],[90,26,90,27],[91,26,91,27],[92,26,92,27],[93,26,93,27],[249,26,249,27],[250,26,250,27],[251,26,251,27],[252,26,252,27],[253,26,253,27],[254,26,254,27],[100,26,100,27],[101,26,101,27],[102,26,102,27],[103,26,103,27],[104,26,104,27],[105,26,105,27],[236,26,236,27],[237,26,237,27],[238,26,238,27],[239,26,239,27],[240,26,240,27],[241,26,241,27],[242,26,242,27],[243,26,243,27],[244,26,244,27],[245,26,245,27],[246,26,246,27],[247,26,247,27],[258,26,258,27],[259,26,259,27],[274,1,275,1],[274,3,275,4],[278,3,278,6],[278,8,278,13],[255,26,255,27],[256,26,256,27],[257,26,257,27],[285,8,285,9],[285,10,285,11],[279,8,279,9],[279,10,279,11],[280,8,280,9],[280,10,280,11],[283,8,283,13],[284,8,284,9],[284,10,284,11]]}
["AVIATION--BREAKDOWN WORKSHEET - SUBCONSULTANT 4 -- ENTER WORKHOURS"]
[]
["PROJECT DESCRIPTION: ",{"$f":"PROJECT.DESCRIPTION","v":0},null,null,null,"FIRM:  ",{"$f":"AVIATION.SUB4_CONSULTANT_NAME","v":"CONSULTANT NAME"},null,"TASK ORDER NUMBER:",null,{"$f":"TASK.ORDER.NUMBER","v":0},null,"DATE PREPARED:",{"$f":"IF(SCOPE.MANDAY.ESTIMATE.PREPARED.BY.DATE=\"\",\"\",SCOPE.MANDAY.ESTIMATE.PREPARED.BY.DATE)","v":""}]
["PREPARED BY:  ",{"$f":"IF(SCOPE.MANDAY.ESTIMATE.PREPARED.BY=\"\",\"\",SCOPE.MANDAY.ESTIMATE.PREPARED.BY)","v":""},null,null,null,"TIP NUMBER:",{"$f":"TIP.NUMBER","v":0},null,"WBS NUMBER:",null,{"$f":"WBS.NUMBER","v":""},null,"REVISION DATE:",{"$f":"IF(SCOPE.MANDAY.ESTIMATE.APPROVED.BY.DATE=\"\",\"\",SCOPE.MANDAY.ESTIMATE.APPROVED.BY.DATE)","v":""}]
[null,null,null,"ESTIMATED WORKHOURS"]
[null,null,"EMPLOYEE NAMES",{"$f":"IF('PEF CLASSIFICATION SHEET'!D1844=\"\",\"\",LEFT('PEF CLASSIFICATION SHEET'!D1844,4))","v":""},{"$f":"IF('PEF CLASSIFICATION SHEET'!D1845=\"\",\"\",LEFT('PEF CLASSIFICATION SHEET'!D1845,4))","v":""},{"$f":"IF('PEF CLASSIFICATION SHEET'!D1846=\"\",\"\",LEFT('PEF CLASSIFICATION SHEET'!D1846,4))","v":""},{"$f":"IF('PEF CLASSIFICATION SHEET'!D1847=\"\",\"\",LEFT('PEF CLASSIFICATION SHEET'!D1847,4))","v":""},{"$f":"IF('PEF CLASSIFICATION SHEET'!D1848=\"\",\"\",LEFT('PEF CLASSIFICATION SHEET'!D1848,4))","v":""},{"$f":"IF('PEF CLASSIFICATION SHEET'!D1849=\"\",\"\",LEFT('PEF CLASSIFICATION SHEET'!D1849,4))","v":""},{"$f":"IF('PEF CLASSIFICATION SHEET'!D1850=\"\",\"\",LEFT('PEF CLASSIFICATION SHEET'!D1850,4))","v":""},{"$f":"IF('PEF CLASSIFICATION SHEET'!D1851=\"\",\"\",LEFT('PEF CLASSIFICATION SHEET'!D1851,4))","v":""},{"$f":"IF('PEF CLASSIFICATION SHEET'!D1852=\"\",\"\",LEFT('PEF CLASSIFICATION SHEET'!D1852,4))","v":""},{"$f":"IF('PEF CLASSIFICATION SHEET'!D1853=\"\",\"\",LEFT('PEF CLASSIFICATION SHEET'!D1853,4))","v":""},{"$f":"IF('PEF CLASSIFICATION SHEET'!D1854=\"\",\"\",LEFT('PEF CLASSIFICATION SHEET'!D1854,4))","v":""},{"$f":"IF('PEF CLASSIFICATION SHEET'!D1855=\"\",\"\",LEFT('PEF CLASSIFICATION SHEET'!D1855,4))","v":""},{"$f":"IF('PEF CLASSIFICATION SHEET'!D1856=\"\",\"\",LEFT('PEF CLASSIFICATION SHEET'!D1856,4))","v":""},{"$f":"IF('PEF CLASSIFICATION SHEET'!D1857=\"\",\"\",LEFT('PEF CLASSIFICATION SHEET'!D1857,4))","v":""},{"$f":"IF('PEF CLASSIFICATION SHEET'!D1858=\"\",\"\",LEFT('PEF CLASSIFICATION SHEET'!D1858,4))","v":""},{"$f":"IF('PEF CLASSIFICATION SHEET'!D1859=\"\",\"\",LEFT('PEF CLASSIFICATION SHEET'!D1859,4))","v":""},{"$f":"IF('PEF CLASSIFICATION SHEET'!D1860=\"\",\"\",LEFT('PEF CLASSIFICATION SHEET'!D1860,4))","v":""},{"$f":"IF('PEF CLASSIFICATION SHEET'!D1861=\"\",\"\",LEFT('PEF CLASSIFICATION SHEET'!D1861,4))","v":""},{"$f":"IF('PEF CLASSIFICATION SHEET'!D1862=\"\",\"\",LEFT('PEF CLASSIFICATION SHEET'!D1862,4))","v":""},{"$f":"IF('PEF CLASSIFICATION SHEET'!D1863=\"\",\"\",LEFT('PEF CLASSIFICATION SHEET'!D1863,4))","v":""}]
[null,null,null,{"$f":"IF('PEF CLASSIFICATION SHEET'!C1844=\"\",\"\",'PEF CLASSIFICATION SHEET'!C1844)","v":""},{"$f":"IF('PEF CLASSIFICATION SHEET'!C1845=\"\",\"\",'PEF CLASSIFICATION SHEET'!C1845)","v":""},{"$f":"IF('PEF CLASSIFICATION SHEET'!C1846=\"\",\"\",'PEF CLASSIFICATION SHEET'!C1846)","v":""},{"$f":"IF('PEF CLASSIFICATION SHEET'!C1847=\"\",\"\",'PEF CLASSIFICATION SHEET'!C1847)","v":""},{"$f":"IF('PEF CLASSIFICATION SHEET'!C1848=\"\",\"\",'PEF CLASSIFICATION SHEET'!C1848)","v":""},{"$f":"IF('PEF CLASSIFICATION SHEET'!C1849=\"\",\"\",'PEF CLASSIFICATION SHEET'!C1849)","v":""},{"$f":"IF('PEF CLASSIFICATION SHEET'!C1850=\"\",\"\",'PEF CLASSIFICATION SHEET'!C1850)","v":""},{"$f":"IF('PEF CLASSIFICATION SHEET'!C1851=\"\",\"\",'PEF CLASSIFICATION SHEET'!C1851)","v":""},{"$f":"IF('PEF CLASSIFICATION SHEET'!C1852=\"\",\"\",'PEF CLASSIFICATION SHEET'!C1852)","v":""},{"$f":"IF('PEF CLASSIFICATION SHEET'!C1853=\"\",\"\",'PEF CLASSIFICATION SHEET'!C1853)","v":""},{"$f":"IF('PEF CLASSIFICATION SHEET'!C1854=\"\",\"\",'PEF CLASSIFICATION SHEET'!C1854)","v":""},{"$f":"IF('PEF CLASSIFICATION SHEET'!C1855=\"\",\"\",'PEF CLASSIFICATION SHEET'!C1855)","v":""},{"$f":"IF('PEF CLASSIFICATION SHEET'!C1856=\"\",\"\",'PEF CLASSIFICATION SHEET'!C1856)","v":""},{"$f":"IF('PEF CLASSIFICATION SHEET'!C1857=\"\",\"\",'PEF CLASSIFICATION SHEET'!C1857)","v":""},{"$f":"IF('PEF CLASSIFICATION SHEET'!C1858=\"\",\"\",'PEF CLASSIFICATION SHEET'!C1858)","v":""},{"$f":"IF('PEF CLASSIFICATION SHEET'!C1859=\"\",\"\",'PEF CLASSIFICATION SHEET'!C1859)","v":""},{"$f":"IF('PEF CLASSIFICATION SHEET'!C1860=\"\",\"\",'PEF CLASSIFICATION SHEET'!C1860)","v":""},{"$f":"IF('PEF CLASSIFICATION SHEET'!C1861=\"\",\"\",'PEF CLASSIFICATION SHEET'!C1861)","v":""},{"$f":"IF('PEF CLASSIFICATION SHEET'!C1862=\"\",\"\",'PEF CLASSIFICATION SHEET'!C1862)","v":""},{"$f":"IF('PEF CLASSIFICATION SHEET'!C1863=\"\",\"\",'PEF CLASSIFICATION SHEET'!C1863)","v":""},"SUB-","%","PEF"]
[null,null,null,null,null,null,null,null,null,null,null,null,null,null,null,null,null,null,null,null,null,null,null,"TOTAL","OF","ESTIMATE"]
["TASK","TASK DESCRIPTION","CLASSIFICATION",null,null,null,null,null,null,null,null,null,null,null,null,null,null,null,null,null,null,null,null,null,"PROJECT",null,"COMMENTS"]
["NO."]
[null,"PLANNING",null,null,null,null,null,null,null,null,null,null,null,null,null,null,null,null,null,null,null,null,null,{"$f":"IF(B11=\"\",0,IF((SUM(D12:W104)=0),SUM(D11:W11),\"\"))","v":0},{"$f":"IF(X11=\"\",\"\",SUM((X11/$X$261)))","v":{"$error":"#DIV/0!"}}]
[null,"Study design ",null,null,null,null,null,null,null,null,null,null,null,null,null,null,null,null,null,null,null,null,null,{"$f":"IF(B12=\"\",0,IF((SUM(D17:W34)=0),SUM(D12:W12),\"\"))","v":0},{"$error":"#DIV/0!"}]
[null,"Project definition",null,null,null,null,null,null,null,null,null,null,null,null,null,null,null,null,null,null,null,null,null,{"$f":"IF(B13=\"\",0,IF((SUM(D13:W13)=0),0,SUM(D13:W13)))","v":0},{"$error":"#DIV/0!"}]
[null,"Kick-off meetings",null,null,null,null,null,null,null,null,null,null,null,null,null,null,null,null,null,null,null,null,null,{"$f":"IF(B14=\"\",0,IF((SUM(D14:W14)=0),0,SUM(D14:W14)))","v":0},{"$error":"#DIV/0!"}]
[null,"Goals/Objectives/Schedule/Deliverable/Public Involvement Plan/Budget",null,null,null,null,null,null,null,null,null,null,null,null,null,null,null,null,null,null,null,null,null,0,{"$error":"#DIV/0!"}]
[null,null,null,null,null,null,null,null,null,null,null,null,null,null,null,null,null,null,null,null,null,null,null,0,{"$error":"#DIV/0!"}]
[null,null,null,null,null,null,null,null,null,null,null,null,null,null,null,null,null,null,null,null,null,null,null,0,{"$error":"#DIV/0!"}]
[null,"Sub-consultant coordination",null,null,null,null,null,null,null,null,null,null,null,null,null,null,null,null,null,null,null,null,null,0,{"$error":"#DIV/0!"}]
[null,"IFE coordination",null,null,null,null,null,null,null,null,null,null,null,null,null,null,null,null,null,null,null,null,null,0,{"$error":"#DIV/0!"}]
[null,"Airport board/steering committee input and update meetings",null,null,null,null,null,null,null,null,null,null,null,null,null,null,null,null,null,null,null,null,null,0,{"$error":"#DIV/0!"}]
[null,"Grant application",null,null,null,null,null,null,null,null,null,null,null,null,null,null,null,null,null,null,null,null,null,0,{"$error":"#DIV/0!"}]
[null,"Invoicing/Grant Admin",null,null,null,null,null,null,null,null,null,null,null,null,null,null,null,null,null,null,null,null,null,0,{"$error":"#DIV/0!"}]
[null,"Grant close-out",null,null,null,null,null,null,null,null,null,null,null,null,null,null,null,null,null,null,null,null,null,0,{"$error":"#DIV/0!"}]
[null,"Existing conditions",null,null,null,null,null,null,null,null,null,null,null,null,null,null,null,null,null,null,null,null,null,{"$f":"IF(B24=\"\",0,IF((SUM(D25:W29)=0),SUM(D24:W24),\"\"))","v":0},{"$error":"#DIV/0!"}]
[null,"Review of planning documents and studies",null,null,null,null,null,null,null,null,null,null,null,null,null,null,null,null,null,null,null,null,null,{"$f":"IF(B25=\"\",0,IF((SUM(D25:W25)=0),0,SUM(D25:W25)))","v":0},{"$error":"#DIV/0!"}]
[null,"Airport history",null,null,null,null,null,null,null,null,null,null,null,null,null,null,null,null,null,null,null,null,null,0,{"$error":"#DIV/0!"}]
[null,"Data collection from available resources",null,null,null,null,null,null,null,null,null,null,null,null,null,null,null,null,null,null,null,null,null,0,{"$error":"#DIV/0!"}]
[null,null,null,null,null,null,null,null,null,null,null,null,null,null,null,null,null,null,null,null,null,null,null,0,{"$error":"#DIV/0!"}]
[null,null,null,null,null,null,null,null,null,null,null,null,null,null,null,null,null,null,null,null,null,null,null,0,{"$error":"#DIV/0!"}]
[null,"Inventory",null,null,null,null,null,null,null,null,null,null,null,null,null,null,null,null,null,null,null,null,null,{"$f":"IF(B30=\"\",0,IF((SUM(D31:W45)=0),SUM(D30:W30),\"\"))","v":0},{"$error":"#DIV/0!"}]
[null,"Airside facilities",null,null,null,null,null,null,null,null,null,null,null,null,null,null,null,null,null,null,null,null,null,{"$f":"IF(B31=\"\",0,IF((SUM(D31:W31)=0),0,SUM(D31:W31)))","v":0},{"$error":"#DIV/0!"}]
[null,"Landside facilities",null,null,null,null,null,null,null,null,null,null,null,null,null,null,null,null,null,null,null,null,null,0,{"$error":"#DIV/0!"}]
[null,"Facility access",null,null,null,null,null,null,null,null,null,null,null,null,null,null,null,null,null,null,null,null,null,0,{"$error":"#DIV/0!"}]
[null,"Utilities",null,null,null,null,null,null,null,null,null,null,null,null,null,null,null,null,null,null,null,null,null,0,{"$error":"#DIV/0!"}]
[null,"Regional setting and land use",null,null,null,null,null,null,null,null,null,null,null,null,null,null,null,null,null,null,null,null,null,0,{"$error":"#DIV/0!"}]
[null,"Environmental overview",null,null,null,null,null,null,null,null,null,null,null,null,null,null,null,null,null,null,null,null,null,0,{"$error":"#DIV/0!"}]
[null,"Operations data",null,null,null,null,null,null,null,null,null,null,null,null,null,null,null,null,null,null,null,null,null,0,{"$error":"#DIV/0!"}]
[null,"Financial data",null,null,null,null,null,null,null,null,null,null,null,null,null,null,null,null,null,null,null,null,null,0,{"$error":"#DIV/0!"}]
[null,"Obstruction survey with mapping",null,null,null,null,null,null,null,null,null,null,null,null,null,null,null,null,null,null,null,null,null,0,{"$error":"#DIV/0!"}]
[null,"On-airport land use",null,null,null,null,null,null,null,null,null,null,null,null,null,null,null,null,null,null,null,null,null,0,{"$error":"#DIV/0!"}]
[null,"Meteorology and magnetic declination data",null,null,null,null,null,null,null,null,null,null,null,null,null,null,null,null,null,null,null,null,null,0,{"$error":"#DIV/0!"}]
[null,null,null,null,null,null,null,null,null,null,null,null,null,null,null,null,null,null,null,null,null,null,null,0,{"$error":"#DIV/0!"}]
[null,null,null,null,null,null,null,null,null,null,null,null,null,null,null,null,null,null,null,null,null,null,null,0,{"$error":"#DIV/0!"}]
[null,null,null,null,null,null,null,null,null,null,null,null,null,null,null,null,null,null,null,null,null,null,null,0,{"$error":"#DIV/0!"}]
[null,null,null,null,null,null,null,null,null,null,null,null,null,null,null,null,null,null,null,null,null,null,null,0,{"$error":"#DIV/0!"}]
[null,"Aviation Forecasts ",null,null,null,null,null,null,null,null,null,null,null,null,null,null,null,null,null,null,null,null,null,{"$f":"IF(B46=\"\",0,IF((SUM(D47:W56)=0),SUM(D46:W46),\"\"))","v":0},{"$error":"#DIV/0!"}]
[null,"Review current and previous forecasts and data",null,null,null,null,null,null,null,null,null,null,null,null,null,null,null,null,null,null,null,null,null,{"$f":"IF(B47=\"\",0,IF((SUM(D47:W47)=0),0,SUM(D47:W47)))","v":0},{"$error":"#DIV/0!"}]
[null,"Select methodologies",null,null,null,null,null,null,null,null,null,null,null,null,null,null,null,null,null,null,null,null,null,0,{"$error":"#DIV/0!"}]
[null,"Review of NCASP data",null,null,null,null,null,null,null,null,null,null,null,null,null,null,null,null,null,null,null,null,null,0,{"$error":"#DIV/0!"}]
[null,"Review of TAF",null,null,null,null,null,null,null,null,null,null,null,null,null,null,null,null,null,null,null,null,null,0,{"$error":"#DIV/0!"}]
[null,"Comparison matrix and recommendation",null,null,null,null,null,null,null,null,null,null,null,null,null,null,null,null,null,null,null,null,null,0,{"$error":"#DIV/0!"}]
[null,"Critical aircraft existing and future",null,null,null,null,null,null,null,null,null,null,null,null,null,null,null,null,null,null,null,null,null,0,{"$error":"#DIV/0!"}]
[null,"Facilitate DoA review of forecast",null,null,null,null,null,null,null,null,null,null,null,null,null,null,null,null,null,null,null,null,null,0,{"$error":"#DIV/0!"}]
[null,null,null,null,null,null,null,null,null,null,null,null,null,null,null,null,null,null,null,null,null,null,null,0,{"$error":"#DIV/0!"}]
[null,null,null,null,null,null,null,null,null,null,null,null,null,null,null,null,null,null,null,null,null,null,null,0,{"$error":"#DIV/0!"}]
[null,null,null,null,null,null,null,null,null,null,null,null,null,null,null,null,null,null,null,null,null,null,null,0,{"$error":"#DIV/0!"}]
[null,"Facility requirements ",null,null,null,null,null,null,null,null,null,null,null,null,null,null,null,null,null,null,null,null,null,{"$f":"IF(B57=\"\",0,IF((SUM(D58:W67)=0),SUM(D57:W57),\"\"))","v":0},{"$error":"#DIV/0!"}]
[null,"Capacity/delay",null,null,null,null,null,null,null,null,null,null,null,null,null,null,null,null,null,null,null,null,null,{"$f":"IF(B58=\"\",0,IF((SUM(D58:W58)=0),0,SUM(D58:W58)))","v":0},{"$error":"#DIV/0!"}]
[null,"Runway and taxiway requirements",null,null,null,null,null,null,null,null,null,null,null,null,null,null,null,null,null,null,null,null,null,0,{"$error":"#DIV/0!"}]
[null,"Navaid requirements",null,null,null,null,null,null,null,null,null,null,null,null,null,null,null,null,null,null,null,null,null,0,{"$error":"#DIV/0!"}]
[null,"Ground access",null,null,null,null,null,null,null,null,null,null,null,null,null,null,null,null,null,null,null,null,null,0,{"$error":"#DIV/0!"}]
[null,"Utilities",null,null,null,null,null,null,null,null,null,null,null,null,null,null,null,null,null,null,null,null,null,0,{"$error":"#DIV/0!"}]
[null,"GA facilities",null,null,null,null,null,null,null,null,null,null,null,null,null,null,null,null,null,null,null,null,null,0,{"$error":"#DIV/0!"}]
[null,"Fuel",null,null,null,null,null,null,null,null,null,null,null,null,null,null,null,null,null,null,null,null,null,0,{"$error":"#DIV/0!"}]
[null,"Aircraft maintenance",null,null,null,null,null,null,null,null,null,null,null,null,null,null,null,null,null,null,null,null,null,0,{"$error":"#DIV/0!"}]
[null,null,null,null,null,null,null,null,null,null,null,null,null,null,null,null,null,null,null,null,null,null,null,0,{"$error":"#DIV/0!"}]
[null,null,null,null,null,null,null,null,null,null,null,null,null,null,null,null,null,null,null,null,null,null,null,0,{"$error":"#DIV/0!"}]
[null,"Alternatives",null,null,null,null,null,null,null,null,null,null,null,null,null,null,null,null,null,null,null,null,null,{"$f":"IF(B68=\"\",0,IF((SUM(D69:W75)=0),SUM(D68:W68),\"\"))","v":0},{"$error":"#DIV/0!"}]
[null,"Airfield",null,null,null,null,null,null,null,null,null,null,null,null,null,null,null,null,null,null,null,null,null,{"$f":"IF(B69=\"\",0,IF((SUM(D69:W69)=0),0,SUM(D69:W69)))","v":0},{"$error":"#DIV/0!"}]
[null,"GA terminal development",null,null,null,null,null,null,null,null,null,null,null,null,null,null,null,null,null,null,null,null,null,0,{"$error":"#DIV/0!"}]
[null,"MRO",null,null,null,null,null,null,null,null,null,null,null,null,null,null,null,null,null,null,null,null,null,0,{"$error":"#DIV/0!"}]
[null,"Other support facilities",null,null,null,null,null,null,null,null,null,null,null,null,null,null,null,null,null,null,null,null,null,0,{"$error":"#DIV/0!"}]
[null,"Evaluation of alts",null,null,null,null,null,null,null,null,null,null,null,null,null,null,null,null,null,null,null,null,null,0,{"$error":"#DIV/0!"}]
[null,null,null,null,null,null,null,null,null,null,null,null,null,null,null,null,null,null,null,null,null,null,null,0,{"$error":"#DIV/0!"}]
[null,null,null,null,null,null,null,null,null,null,null,null,null,null,null,null,null,null,null,null,null,null,null,0,{"$f":"IF(X75=\"\",\"\",SUM((X75/$X$261)))","v":{"$error":"#DIV/0!"}}]
[null,"Public involvement and stakeholder meetings as per plan",null,null,null,null,null,null,null,null,null,null,null,null,null,null,null,null,null,null,null,null,null,0,{"$error":"#DIV/0!"}]
[null,"Schedules of development",null,null,null,null,null,null,null,null,null,null,null,null,null,null,null,null,null,null,null,null,null,0,{"$error":"#DIV/0!"}]
[null,"Estimates of development costs",null,null,null,null,null,null,null,null,null,null,null,null,null,null,null,null,null,null,null,null,null,0,{"$error":"#DIV/0!"}]
[null,"ALP plan set",null,null,null,null,null,null,null,null,null,null,null,null,null,null,null,null,null,null,null,null,null,{"$f":"IF(B79=\"\",0,IF((SUM(D80:W92)=0),SUM(D79:W79),\"\"))","v":0},{"$error":"#DIV/0!"}]
[null,"Title sheet",null,null,null,null,null,null,null,null,null,null,null,null,null,null,null,null,null,null,null,null,null,{"$f":"IF(B80=\"\",0,IF((SUM(D80:W80)=0),0,SUM(D80:W80)))","v":0},{"$error":"#DIV/0!"}]
[null,"Ground control survey",null,null,null,null,null,null,null,null,null,null,null,null,null,null,null,null,null,null,null,null,null,0,{"$error":"#DIV/0!"}]
[null,"Existing facilities drawing",null,null,null,null,null,null,null,null,null,null,null,null,null,null,null,null,null,null,null,null,null,0,{"$error":"#DIV/0!"}]
[null,"Property map or exhibit A",null,null,null,null,null,null,null,null,null,null,null,null,null,null,null,null,null,null,null,null,null,0,{"$error":"#DIV/0!"}]
[null,"Airspace drawing",null,null,null,null,null,null,null,null,null,null,null,null,null,null,null,null,null,null,null,null,null,0,{"$error":"#DIV/0!"}]
[null,"Inner portion of the approach surface drawing",null,null,null,null,null,null,null,null,null,null,null,null,null,null,null,null,null,null,null,null,null,0,{"$error":"#DIV/0!"}]
[null,"Obstruction analysis",null,null,null,null,null,null,null,null,null,null,null,null,null,null,null,null,null,null,null,null,null,0,{"$error":"#DIV/0!"}]
[null,"Runway departure surface sheet",null,null,null,null,null,null,null,null,null,null,null,null,null,null,null,null,null,null,null,null,null,0,{"$error":"#DIV/0!"}]
[null,"Terminal area plan sheet",null,null,null,null,null,null,null,null,null,null,null,null,null,null,null,null,null,null,null,null,null,0,{"$error":"#DIV/0!"}]
[null,"Land use plan sheet",null,null,null,null,null,null,null,null,null,null,null,null,null,null,null,null,null,null,null,null,null,0,{"$error":"#DIV/0!"}]
[null,null,null,null,null,null,null,null,null,null,null,null,null,null,null,null,null,null,null,null,null,null,null,0,{"$error":"#DIV/0!"}]
[null,null,null,null,null,null,null,null,null,null,null,null,null,null,null,null,null,null,null,null,null,null,null,0,{"$error":"#DIV/0!"}]
[null,null,null,null,null,null,null,null,null,null,null,null,null,null,null,null,null,null,null,null,null,null,null,0,{"$error":"#DIV/0!"}]
[null,"ALP checklist completion",null,null,null,null,null,null,null,null,null,null,null,null,null,null,null,null,null,null,null,null,null,0,{"$error":"#DIV/0!"}]
[null,"Status reports, draft submittals",null,null,null,null,null,null,null,null,null,null,null,null,null,null,null,null,null,null,null,null,null,0,{"$error":"#DIV/0!"}]
[null,null,null,null,null,null,null,null,null,null,null,null,null,null,null,null,null,null,null,null,null,null,null,0,{"$error":"#DIV/0!"}]
[null,null,null,null,null,null,null,null,null,null,null,null,null,null,null,null,null,null,null,null,null,null,null,0,{"$error":"#DIV/0!"}]
[null,null,null,null,null,null,null,null,null,null,null,null,null,null,null,null,null,null,null,null,null,null,null,0,{"$error":"#DIV/0!"}]
[null,null,null,null,null,null,null,null,null,null,null,null,null,null,null,null,null,null,null,null,null,null,null,0,{"$error":"#DIV/0!"}]
[null,null,null,null,null,null,null,null,null,null,null,null,null,null,null,null,null,null,null,null,null,null,null,0,{"$error":"#DIV/0!"}]
[null,null,null,null,null,null,null,null,null,null,null,null,null,null,null,null,null,null,null,null,null,null,null,0,{"$error":"#DIV/0!"}]
[null,null,null,null,null,null,null,null,null,null,null,null,null,null,null,null,null,null,null,null,null,null,null,0,{"$error":"#DIV/0!"}]
[null,null,null,null,null,null,null,null,null,null,null,null,null,null,null,null,null,null,null,null,null,null,null,0,{"$error":"#DIV/0!"}]
[null,null,null,null,null,null,null,null,null,null,null,null,null,null,null,null,null,null,null,null,null,null,null,0,{"$error":"#DIV/0!"}]
[null,null,null,null,null,null,null,null,null,null,null,null,null,null,null,null,null,null,null,null,null,null,null,0,{"$error":"#DIV/0!"}]
[null,"DESIGN",null,null,null,null,null,null,null,null,null,null,null,null,null,null,null,null,null,null,null,null,null,{"$f":"IF(B105=\"\",0,IF((SUM(D106:W179)=0),SUM(D105:W105),\"\"))","v":0},{"$error":"#DIV/0!"}]
[null,"Project formulation",null,null,null,null,null,null,null,null,null,null,null,null,null,null,null,null,null,null,null,null,null,{"$f":"IF(B106=\"\",0,IF((SUM(D106:W106)=0),0,SUM(D106:W106)))","v":0},{"$error":"#DIV/0!"}]
[null,"Study design ",null,null,null,null,null,null,null,null,null,null,null,null,null,null,null,null,null,null,null,null,null,{"$f":"IF(B107=\"\",0,IF((SUM(D108:W112)=0),SUM(D107:W107),\"\"))","v":0},{"$error":"#DIV/0!"}]
[null,"Project definition",null,null,null,null,null,null,null,null,null,null,null,null,null,null,null,null,null,null,null,null,null,{"$f":"IF(B108=\"\",0,IF((SUM(D108:W108)=0),0,SUM(D108:W108)))","v":0},{"$error":"#DIV/0!"}]
[null,"Kick-off meetings",null,null,null,null,null,null,null,null,null,null,null,null,null,null,null,null,null,null,null,null,null,0,{"$error":"#DIV/0!"}]
[null,"Schedule/deliverables/plan/budget",null,null,null,null,null,null,null,null,null,null,null,null,null,null,null,null,null,null,null,null,null,0,{"$error":"#DIV/0!"}]
[null,null,null,null,null,null,null,null,null,null,null,null,null,null,null,null,null,null,null,null,null,null,null,0,{"$error":"#DIV/0!"}]
[null,null,null,null,null,null,null,null,null,null,null,null,null,null,null,null,null,null,null,null,null,null,null,0,{"$error":"#DIV/0!"}]
[null,"Sub consultant coordination",null,null,null,null,null,null,null,null,null,null,null,null,null,null,null,null,null,null,null,null,null,0,{"$error":"#DIV/0!"}]
[null,"IFE coordination",null,null,null,null,null,null,null,null,null,null,null,null,null,null,null,null,null,null,null,null,null,0,{"$error":"#DIV/0!"}]
[null,"Airport board/steering committee input and update meetings",null,null,null,null,null,null,null,null,null,null,null,null,null,null,null,null,null,null,null,null,null,0,{"$error":"#DIV/0!"}]
[null,"Grant application",null,null,null,null,null,null,null,null,null,null,null,null,null,null,null,null,null,null,null,null,null,0,{"$error":"#DIV/0!"}]
[null,"Invoicing/grant admin",null,null,null,null,null,null,null,null,null,null,null,null,null,null,null,null,null,null,null,null,null,0,{"$error":"#DIV/0!"}]
[null,"CatEx NEPA document ",null,null,null,null,null,null,null,null,null,null,null,null,null,null,null,null,null,null,null,null,null,{"$f":"IF(B118=\"\",0,IF((SUM(D119:W128)=0),SUM(D118:W118),\"\"))","v":0},{"$error":"#DIV/0!"}]
[null,"Study area and vicinity map",null,null,null,null,null,null,null,null,null,null,null,null,null,null,null,null,null,null,null,null,null,{"$f":"IF(B119=\"\",0,IF((SUM(D119:W119)=0),0,SUM(D119:W119)))","v":0},{"$error":"#DIV/0!"}]
[null,"Environmental features map",null,null,null,null,null,null,null,null,null,null,null,null,null,null,null,null,null,null,null,null,null,0,{"$error":"#DIV/0!"}]
[null,"Start of study or scoping letter for environmental clearinghouse",null,null,null,null,null,null,null,null,null,null,null,null,null,null,null,null,null,null,null,null,null,0,{"$error":"#DIV/0!"}]
[null,"Other agency coordination and stakeholder involvement",null,null,null,null,null,null,null,null,null,null,null,null,null,null,null,null,null,null,null,null,null,0,{"$error":"#DIV/0!"}]
[null,"Landowner notification",null,null,null,null,null,null,null,null,null,null,null,null,null,null,null,null,null,null,null,null,null,0,{"$error":"#DIV/0!"}]
[null,"Address impact categories with obtained data",null,null,null,null,null,null,null,null,null,null,null,null,null,null,null,null,null,null,null,null,null,0,{"$error":"#DIV/0!"}]
[null,"Submit draft document for review",null,null,null,null,null,null,null,null,null,null,null,null,null,null,null,null,null,null,null,null,null,0,{"$error":"#DIV/0!"}]
[null,null,null,null,null,null,null,null,null,null,null,null,null,null,null,null,null,null,null,null,null,null,null,0,{"$error":"#DIV/0!"}]
[null,null,null,null,null,null,null,null,null,null,null,null,null,null,null,null,null,null,null,null,null,null,null,0,{"$error":"#DIV/0!"}]
[null,null,null,null,null,null,null,null,null,null,null,null,null,null,null,null,null,null,null,null,null,null,null,0,{"$error":"#DIV/0!"}]
[null,"Permit application & agency meeting regarding permitting",null,null,null,null,null,null,null,null,null,null,null,null,null,null,null,null,null,null,null,null,null,{"$f":"IF(B129=\"\",0,IF((SUM(D129:W129)=0),0,SUM(D129:W129)))","v":0},{"$error":"#DIV/0!"}]
[null,"Survey of existing conditions ",null,null,null,null,null,null,null,null,null,null,null,null,null,null,null,null,null,null,null,null,null,{"$f":"IF(B130=\"\",0,IF((SUM(D131:W136)=0),SUM(D130:W130),\"\"))","v":0},{"$error":"#DIV/0!"}]
[null,"Collect existing survey data",null,null,null,null,null,null,null,null,null,null,null,null,null,null,null,null,null,null,null,null,null,{"$f":"IF(B131=\"\",0,IF((SUM(D131:W131)=0),0,SUM(D131:W131)))","v":0},{"$error":"#DIV/0!"}]
[null,"Obtain new data as needed",null,null,null,null,null,null,null,null,null,null,null,null,null,null,null,null,null,null,null,null,null,0,{"$error":"#DIV/0!"}]
[null,"Incorporate into base plans",null,null,null,null,null,null,null,null,null,null,null,null,null,null,null,null,null,null,null,null,null,0,{"$error":"#DIV/0!"}]
[null,"CADD mapping",null,null,null,null,null,null,null,null,null,null,null,null,null,null,null,null,null,null,null,null,null,0,{"$error":"#DIV/0!"}]
[null,null,null,null,null,null,null,null,null,null,null,null,null,null,null,null,null,null,null,null,null,null,null,0,{"$error":"#DIV/0!"}]
[null,null,null,null,null,null,null,null,null,null,null,null,null,null,null,null,null,null,null,null,null,null,null,0,{"$error":"#DIV/0!"}]
[null,"Geotechnical investigations",null,null,null,null,null,null,null,null,null,null,null,null,null,null,null,null,null,null,null,null,null,0,{"$error":"#DIV/0!"}]
[null,"Construction plans production ",null,null,null,null,null,null,null,null,null,null,null,null,null,null,null,null,null,null,null,null,null,{"$f":"IF(B138=\"\",0,IF((SUM(D139:W160)=0),SUM(D138:W138),\"\"))","v":0},{"$error":"#DIV/0!"}]
[null,"Title sheet",null,null,null,null,null,null,null,null,null,null,null,null,null,null,null,null,null,null,null,null,null,{"$f":"IF(B139=\"\",0,IF((SUM(D139:W139)=0),0,SUM(D139:W139)))","v":0},{"$f":"IF(X139=\"\",\"\",SUM((X139/$X$261)))","v":{"$error":"#DIV/0!"}}]
[null,"Index of drawings",null,null,null,null,null,null,null,null,null,null,null,null,null,null,null,null,null,null,null,null,null,0,{"$error":"#DIV/0!"}]
[null,"Summary of quantities",null,null,null,null,null,null,null,null,null,null,null,null,null,null,null,null,null,null,null,null,null,0,{"$error":"#DIV/0!"}]
[null,"Pipe schedule",null,null,null,null,null,null,null,null,null,null,null,null,null,null,null,null,null,null,null,null,null,0,{"$error":"#DIV/0!"}]
[null,"General notes",null,null,null,null,null,null,null,null,null,null,null,null,null,null,null,null,null,null,null,null,null,0,{"$error":"#DIV/0!"}]
[null,"Legend",null,null,null,null,null,null,null,null,null,null,null,null,null,null,null,null,null,null,null,null,null,0,{"$error":"#DIV/0!"}]
[null,"Project layout",null,null,null,null,null,null,null,null,null,null,null,null,null,null,null,null,null,null,null,null,null,0,{"$error":"#DIV/0!"}]
[null,"Haul roads/staging areas",null,null,null,null,null,null,null,null,null,null,null,null,null,null,null,null,null,null,null,null,null,0,{"$error":"#DIV/0!"}]
[null,"Soil boring plans and logs",null,null,null,null,null,null,null,null,null,null,null,null,null,null,null,null,null,null,null,null,null,0,{"$error":"#DIV/0!"}]
[null,"Safety and security notes and details",null,null,null,null,null,null,null,null,null,null,null,null,null,null,null,null,null,null,null,null,null,0,{"$error":"#DIV/0!"}]
[null,"Plan/profile proposed",null,null,null,null,null,null,null,null,null,null,null,null,null,null,null,null,null,null,null,null,null,0,{"$error":"#DIV/0!"}]
[null,"Typical sections",null,null,null,null,null,null,null,null,null,null,null,null,null,null,null,null,null,null,null,null,null,0,{"$error":"#DIV/0!"}]
[null,"Grading/drainage plans",null,null,null,null,null,null,null,null,null,null,null,null,null,null,null,null,null,null,null,null,null,0,{"$error":"#DIV/0!"}]
[null,"Construction safety and phasing plan",null,null,null,null,null,null,null,null,null,null,null,null,null,null,null,null,null,null,null,null,null,0,{"$error":"#DIV/0!"}]
[null,"Paving plan",null,null,null,null,null,null,null,null,null,null,null,null,null,null,null,null,null,null,null,null,null,0,{"$error":"#DIV/0!"}]
[null,"Erosion and sediment control plans",null,null,null,null,null,null,null,null,null,null,null,null,null,null,null,null,null,null,null,null,null,0,{"$error":"#DIV/0!"}]
[null,"Pavement marking details",null,null,null,null,null,null,null,null,null,null,null,null,null,null,null,null,null,null,null,null,null,0,{"$error":"#DIV/0!"}]
[null,"Miscellaneous details",null,null,null,null,null,null,null,null,null,null,null,null,null,null,null,null,null,null,null,null,null,0,{"$error":"#DIV/0!"}]
[null,"Cross sections",null,null,null,null,null,null,null,null,null,null,null,null,null,null,null,null,null,null,null,null,null,0,{"$error":"#DIV/0!"}]
[null,null,null,null,null,null,null,null,null,null,null,null,null,null,null,null,null,null,null,null,null,null,null,0,{"$error":"#DIV/0!"}]
[null,null,null,null,null,null,null,null,null,null,null,null,null,null,null,null,null,null,null,null,null,null,null,0,{"$error":"#DIV/0!"}]
[null,null,null,null,null,null,null,null,null,null,null,null,null,null,null,null,null,null,null,null,null,null,null,0,{"$error":"#DIV/0!"}]
[null,"Incorporate safety plan comments",null,null,null,null,null,null,null,null,null,null,null,null,null,null,null,null,null,null,null,null,null,0,{"$error":"#DIV/0!"}]
[null,"Incorporate 30% review comments",null,null,null,null,null,null,null,null,null,null,null,null,null,null,null,null,null,null,null,null,null,0,{"$error":"#DIV/0!"}]
[null,"Incorporate 60% review comments",null,null,null,null,null,null,null,null,null,null,null,null,null,null,null,null,null,null,null,null,null,0,{"$error":"#DIV/0!"}]
[null,"Prepare bid documents",null,null,null,null,null,null,null,null,null,null,null,null,null,null,null,null,null,null,null,null,null,0,{"$error":"#DIV/0!"}]
[null,"Advertise and distribute bid documents",null,null,null,null,null,null,null,null,null,null,null,null,null,null,null,null,null,null,null,null,null,0,{"$error":"#DIV/0!"}]
[null,"Attend and conduct pre-bid meeting",null,null,null,null,null,null,null,null,null,null,null,null,null,null,null,null,null,null,null,null,null,0,{"$error":"#DIV/0!"}]
[null,"Issue addenda and address questions by prospective bidders ",null,null,null,null,null,null,null,null,null,null,null,null,null,null,null,null,null,null,null,null,null,0,{"$error":"#DIV/0!"}]
[null,"Attend and conduct bid opening, prepare bid tab and recommend award",null,null,null,null,null,null,null,null,null,null,null,null,null,null,null,null,null,null,null,null,null,0,{"$error":"#DIV/0!"}]
[null,"Grant close-out",null,null,null,null,null,null,null,null,null,null,null,null,null,null,null,null,null,null,null,null,null,0,{"$error":"#DIV/0!"}]
[null,null,null,null,null,null,null,null,null,null,null,null,null,null,null,null,null,null,null,null,null,null,null,0,{"$error":"#DIV/0!"}]
[null,null,null,null,null,null,null,null,null,null,null,null,null,null,null,null,null,null,null,null,null,null,null,0,{"$error":"#DIV/0!"}]
[null,null,null,null,null,null,null,null,null,null,null,null,null,null,null,null,null,null,null,null,null,null,null,0,{"$error":"#DIV/0!"}]
[null,null,null,null,null,null,null,null,null,null,null,null,null,null,null,null,null,null,null,null,null,null,null,0,{"$error":"#DIV/0!"}]
[null,null,null,null,null,null,null,null,null,null,null,null,null,null,null,null,null,null,null,null,null,null,null,0,{"$error":"#DIV/0!"}]
[null,null,null,null,null,null,null,null,null,null,null,null,null,null,null,null,null,null,null,null,null,null,null,0,{"$error":"#DIV/0!"}]
[null,null,null,null,null,null,null,null,null,null,null,null,null,null,null,null,null,null,null,null,null,null,null,0,{"$error":"#DIV/0!"}]
[null,null,null,null,null,null,null,null,null,null,null,null,null,null,null,null,null,null,null,null,null,null,null,0,{"$error":"#DIV/0!"}]
[null,null,null,null,null,null,null,null,null,null,null,null,null,null,null,null,null,null,null,null,null,null,null,0,{"$error":"#DIV/0!"}]
[null,null,null,null,null,null,null,null,null,null,null,null,null,null,null,null,null,null,null,null,null,null,null,0,{"$error":"#DIV/0!"}]
[null,"CONSTRUCTION",null,null,null,null,null,null,null,null,null,null,null,null,null,null,null,null,null,null,null,null,null,{"$f":"IF(B180=\"\",0,IF((SUM(D181:W205)=0),SUM(D180:W180),\"\"))","v":0},{"$error":"#DIV/0!"}]
[null,"Project formulation",null,null,null,null,null,null,null,null,null,null,null,null,null,null,null,null,null,null,null,null,null,{"$f":"IF(B181=\"\",0,IF((SUM(D181:W181)=0),0,SUM(D181:W181)))","v":0},{"$error":"#DIV/0!"}]
[null,"Kick off and close-out meetings",null,null,null,null,null,null,null,null,null,null,null,null,null,null,null,null,null,null,null,null,null,0,{"$error":"#DIV/0!"}]
[null,"Budget/schedule",null,null,null,null,null,null,null,null,null,null,null,null,null,null,null,null,null,null,null,null,null,0,{"$error":"#DIV/0!"}]
[null,"Invoicing",null,null,null,null,null,null,null,null,null,null,null,null,null,null,null,null,null,null,null,null,null,0,{"$error":"#DIV/0!"}]
[null,"Internal progress meetings",null,null,null,null,null,null,null,null,null,null,null,null,null,null,null,null,null,null,null,null,null,0,{"$error":"#DIV/0!"}]
[null,"Sub consultant coordination and management",null,null,null,null,null,null,null,null,null,null,null,null,null,null,null,null,null,null,null,null,null,0,{"$error":"#DIV/0!"}]
[null,"Project work plan and field safety instructions",null,null,null,null,null,null,null,null,null,null,null,null,null,null,null,null,null,null,null,null,null,0,{"$error":"#DIV/0!"}]
[null,"Program management support services",null,null,null,null,null,null,null,null,null,null,null,null,null,null,null,null,null,null,null,null,null,0,{"$error":"#DIV/0!"}]
[null,"RPR, inspection, material testing, and reporting",null,null,null,null,null,null,null,null,null,null,null,null,null,null,null,null,null,null,null,null,null,0,{"$error":"#DIV/0!"}]
[null,"Project Site/field review/visit",null,null,null,null,null,null,null,null,null,null,null,null,null,null,null,null,null,null,null,null,null,0,{"$error":"#DIV/0!"}]
[null,"Geotechnical investigations and testing",null,null,null,null,null,null,null,null,null,null,null,null,null,null,null,null,null,null,null,null,null,0,{"$error":"#DIV/0!"}]
[null,"General coordination and grant admin (X months)",null,null,null,null,null,null,null,null,null,null,null,null,null,null,null,null,null,null,null,null,null,0,{"$error":"#DIV/0!"}]
[null,"Coordination meetings",null,null,null,null,null,null,null,null,null,null,null,null,null,null,null,null,null,null,null,null,null,0,{"$error":"#DIV/0!"}]
[null,"Progress reports and invoices",null,null,null,null,null,null,null,null,null,null,null,null,null,null,null,null,null,null,null,null,null,0,{"$error":"#DIV/0!"}]
[null,"Project schedule",null,null,null,null,null,null,null,null,null,null,null,null,null,null,null,null,null,null,null,null,null,0,{"$error":"#DIV/0!"}]
[null,null,null,null,null,null,null,null,null,null,null,null,null,null,null,null,null,null,null,null,null,null,null,0,{"$error":"#DIV/0!"}]
[null,null,null,null,null,null,null,null,null,null,null,null,null,null,null,null,null,null,null,null,null,null,null,0,{"$error":"#DIV/0!"}]
[null,null,null,null,null,null,null,null,null,null,null,null,null,null,null,null,null,null,null,null,null,null,null,0,{"$error":"#DIV/0!"}]
[null,null,null,null,null,null,null,null,null,null,null,null,null,null,null,null,null,null,null,null,null,null,null,0,{"$error":"#DIV/0!"}]
[null,null,null,null,null,null,null,null,null,null,null,null,null,null,null,null,null,null,null,null,null,null,null,0,{"$error":"#DIV/0!"}]
[null,null,null,null,null,null,null,null,null,null,null,null,null,null,null,null,null,null,null,null,null,null,null,0,{"$error":"#DIV/0!"}]
[null,null,null,null,null,null,null,null,null,null,null,null,null,null,null,null,null,null,null,null,null,null,null,0,{"$error":"#DIV/0!"}]
[null,null,null,null,null,null,null,null,null,null,null,null,null,null,null,null,null,null,null,null,null,null,null,0,{"$f":"IF(X203=\"\",\"\",SUM((X203/$X$261)))","v":{"$error":"#DIV/0!"}}]
[null,null,null,null,null,null,null,null,null,null,null,null,null,null,null,null,null,null,null,null,null,null,null,0,{"$error":"#DIV/0!"}]
[null,null,null,null,null,null,null,null,null,null,null,null,null,null,null,null,null,null,null,null,null,null,null,0,{"$error":"#DIV/0!"}]
[null,"OTHER",null,null,null,null,null,null,null,null,null,null,null,null,null,null,null,null,null,null,null,null,null,{"$f":"IF(B206=\"\",0,IF((SUM(D207:W260)=0),SUM(D206:W206),\"\"))","v":0},{"$error":"#DIV/0!"}]
[null,null,null,null,null,null,null,null,null,null,null,null,null,null,null,null,null,null,null,null,null,null,null,{"$f":"IF(B207=\"\",0,IF((SUM(D207:W207)=0),0,SUM(D207:W207)))","v":0},{"$error":"#DIV/0!"}]
[null,null,null,null,null,null,null,null,null,null,null,null,null,null,null,null,null,null,null,null,null,null,null,0,{"$error":"#DIV/0!"}]
[null,null,null,null,null,null,null,null,null,null,null,null,null,null,null,null,null,null,null,null,null,null,null,0,{"$error":"#DIV/0!"}]
[null,null,null,null,null,null,null,null,null,null,null,null,null,null,null,null,null,null,null,null,null,null,null,0,{"$error":"#DIV/0!"}]
[null,null,null,null,null,null,null,null,null,null,null,null,null,null,null,null,null,null,null,null,null,null,null,0,{"$error":"#DIV/0!"}]
[null,null,null,null,null,null,null,null,null,null,null,null,null,null,null,null,null,null,null,null,null,null,null,0,{"$error":"#DIV/0!"}]
[null,null,null,null,null,null,null,null,null,null,null,null,null,null,null,null,null,null,null,null,null,null,null,0,{"$error":"#DIV/0!"}]
[null,null,null,null,null,null,null,null,null,null,null,null,null,null,null,null,null,null,null,null,null,null,null,0,{"$error":"#DIV/0!"}]
[null,null,null,null,null,null,null,null,null,null,null,null,null,null,null,null,null,null,null,null,null,null,null,0,{"$error":"#DIV/0!"}]
[null,null,null,null,null,null,null,null,null,null,null,null,null,null,null,null,null,null,null,null,null,null,null,0,{"$error":"#DIV/0!"}]
[null,null,null,null,null,null,null,null,null,null,null,null,null,null,null,null,null,null,null,null,null,null,null,0,{"$error":"#DIV/0!"}]
[null,null,null,null,null,null,null,null,null,null,null,null,null,null,null,null,null,null,null,null,null,null,null,0,{"$error":"#DIV/0!"}]
[null,null,null,null,null,null,null,null,null,null,null,null,null,null,null,null,null,null,null,null,null,null,null,0,{"$error":"#DIV/0!"}]
[null,null,null,null,null,null,null,null,null,null,null,null,null,null,null,null,null,null,null,null,null,null,null,0,{"$error":"#DIV/0!"}]
[null,null,null,null,null,null,null,null,null,null,null,null,null,null,null,null,null,null,null,null,null,null,null,0,{"$error":"#DIV/0!"}]
[null,null,null,null,null,null,null,null,null,null,null,null,null,null,null,null,null,null,null,null,null,null,null,0,{"$error":"#DIV/0!"}]
[null,null,null,null,null,null,null,null,null,null,null,null,null,null,null,null,null,null,null,null,null,null,null,0,{"$error":"#DIV/0!"}]
[null,null,null,null,null,null,null,null,null,null,null,null,null,null,null,null,null,null,null,null,null,null,null,0,{"$error":"#DIV/0!"}]
[null,null,null,null,null,null,null,null,null,null,null,null,null,null,null,null,null,null,null,null,null,null,null,0,{"$error":"#DIV/0!"}]
[null,null,null,null,null,null,null,null,null,null,null,null,null,null,null,null,null,null,null,null,null,null,null,0,{"$error":"#DIV/0!"}]
[null,null,null,null,null,null,null,null,null,null,null,null,null,null,null,null,null,null,null,null,null,null,null,0,{"$error":"#DIV/0!"}]
[null,null,null,null,null,null,null,null,null,null,null,null,null,null,null,null,null,null,null,null,null,null,null,0,{"$error":"#DIV/0!"}]
[null,null,null,null,null,null,null,null,null,null,null,null,null,null,null,null,null,null,null,null,null,null,null,0,{"$error":"#DIV/0!"}]
[null,null,null,null,null,null,null,null,null,null,null,null,null,null,null,null,null,null,null,null,null,null,null,0,{"$error":"#DIV/0!"}]
[null,null,null,null,null,null,null,null,null,null,null,null,null,null,null,null,null,null,null,null,null,null,null,0,{"$error":"#DIV/0!"}]
[null,null,null,null,null,null,null,null,null,null,null,null,null,null,null,null,null,null,null,null,null,null,null,0,{"$error":"#DIV/0!"}]
[null,null,null,null,null,null,null,null,null,null,null,null,null,null,null,null,null,null,null,null,null,null,null,0,{"$error":"#DIV/0!"}]
[null,null,null,null,null,null,null,null,null,null,null,null,null,null,null,null,null,null,null,null,null,null,null,0,{"$error":"#DIV/0!"}]
[null,null,null,null,null,null,null,null,null,null,null,null,null,null,null,null,null,null,null,null,null,null,null,0,{"$error":"#DIV/0!"}]
[null,null,null,null,null,null,null,null,null,null,null,null,null,null,null,null,null,null,null,null,null,null,null,0,{"$error":"#DIV/0!"}]
[null,null,null,null,null,null,null,null,null,null,null,null,null,null,null,null,null,null,null,null,null,null,null,0,{"$error":"#DIV/0!"}]
[null,null,null,null,null,null,null,null,null,null,null,null,null,null,null,null,null,null,null,null,null,null,null,0,{"$error":"#DIV/0!"}]
[null,null,null,null,null,null,null,null,null,null,null,null,null,null,null,null,null,null,null,null,null,null,null,0,{"$error":"#DIV/0!"}]
[null,null,null,null,null,null,null,null,null,null,null,null,null,null,null,null,null,null,null,null,null,null,null,0,{"$error":"#DIV/0!"}]
[null,null,null,null,null,null,null,null,null,null,null,null,null,null,null,null,null,null,null,null,null,null,null,0,{"$error":"#DIV/0!"}]
[null,null,null,null,null,null,null,null,null,null,null,null,null,null,null,null,null,null,null,null,null,null,null,0,{"$error":"#DIV/0!"}]
[null,null,null,null,null,null,null,null,null,null,null,null,null,null,null,null,null,null,null,null,null,null,null,0,{"$error":"#DIV/0!"}]
[null,null,null,null,null,null,null,null,null,null,null,null,null,null,null,null,null,null,null,null,null,null,null,0,{"$error":"#DIV/0!"}]
[null,null,null,null,null,null,null,null,null,null,null,null,null,null,null,null,null,null,null,null,null,null,null,0,{"$error":"#DIV/0!"}]
[null,null,null,null,null,null,null,null,null,null,null,null,null,null,null,null,null,null,null,null,null,null,null,0,{"$error":"#DIV/0!"}]
[null,null,null,null,null,null,null,null,null,null,null,null,null,null,null,null,null,null,null,null,null,null,null,0,{"$error":"#DIV/0!"}]
[null,null,null,null,null,null,null,null,null,null,null,null,null,null,null,null,null,null,null,null,null,null,null,0,{"$error":"#DIV/0!"}]
[null,null,null,null,null,null,null,null,null,null,null,null,null,null,null,null,null,null,null,null,null,null,null,0,{"$error":"#DIV/0!"}]
[null,null,null,null,null,null,null,null,null,null,null,null,null,null,null,null,null,null,null,null,null,null,null,0,{"$error":"#DIV/0!"}]
[null,null,null,null,null,null,null,null,null,null,null,null,null,null,null,null,null,null,null,null,null,null,null,0,{"$error":"#DIV/0!"}]
[null,null,null,null,null,null,null,null,null,null,null,null,null,null,null,null,null,null,null,null,null,null,null,0,{"$error":"#DIV/0!"}]
[null,null,null,null,null,null,null,null,null,null,null,null,null,null,null,null,null,null,null,null,null,null,null,0,{"$error":"#DIV/0!"}]
[null,null,null,null,null,null,null,null,null,null,null,null,null,null,null,null,null,null,null,null,null,null,null,0,{"$error":"#DIV/0!"}]
[null,null,null,null,null,null,null,null,null,null,null,null,null,null,null,null,null,null,null,null,null,null,null,0,{"$error":"#DIV/0!"}]
[null,null,null,null,null,null,null,null,null,null,null,null,null,null,null,null,null,null,null,null,null,null,null,0,{"$error":"#DIV/0!"}]
[null,null,null,null,null,null,null,null,null,null,null,null,null,null,null,null,null,null,null,null,null,null,null,0,{"$error":"#DIV/0!"}]
[null,null,null,null,null,null,null,null,null,null,null,null,null,null,null,null,null,null,null,null,null,null,null,0,{"$error":"#DIV/0!"}]
[null,null,null,null,null,null,null,null,null,null,null,null,null,null,null,null,null,null,null,null,null,null,null,{"$f":"IF(B259=\"\",0,IF((SUM(D259:W259)=0),0,SUM(D259:W259)))","v":0},{"$error":"#DIV/0!"}]
[null,null,null,null,null,null,null,null,null,null,null,null,null,null,null,null,null,null,null,null,null,null,null,{"$f":"IF(B260=\"\",0,IF((SUM(D260:W260)=0),0,SUM(D260:W260)))","v":0},{"$error":"#DIV/0!"}]
[null,"TOTAL WORKHOURS/CATEGORY:",null,{"$f":"SUM(D11:D260)","v":0},0,0,0,0,0,0,0,0,0,0,0,0,0,0,0,0,0,0,0,0,{"$error":"#DIV/0!"},{"$f":"SUM(Z12:Z260)","v":0}]
[null,"TOTAL WORKDAYS/CATEGORY:",null,{"$f":"D261/8","v":0},{"$f":"E261/8","v":0},0,0,0,0,0,0,0,0,0,0,0,0,0,0,0,0,0,0]
[null,"HOURLY SALARY RATE:",null,{"$f":"'PEF CLASSIFICATION SHEET'!E1844","v":0},{"$f":"'PEF CLASSIFICATION SHEET'!E1845","v":0},{"$f":"'PEF CLASSIFICATION SHEET'!E1846","v":0},{"$f":"'PEF CLASSIFICATION SHEET'!E1847","v":0},{"$f":"'PEF CLASSIFICATION SHEET'!E1848","v":0},{"$f":"'PEF CLASSIFICATION SHEET'!E1849","v":0},{"$f":"'PEF CLASSIFICATION SHEET'!E1850","v":0},{"$f":"'PEF CLASSIFICATION SHEET'!E1851","v":0},{"$f":"'PEF CLASSIFICATION SHEET'!E1852","v":0},{"$f":"'PEF CLASSIFICATION SHEET'!E1853","v":0},{"$f":"'PEF CLASSIFICATION SHEET'!E1854","v":0},{"$f":"'PEF CLASSIFICATION SHEET'!E1855","v":0},{"$f":"'PEF CLASSIFICATION SHEET'!E1856","v":0},{"$f":"'PEF CLASSIFICATION SHEET'!E1857","v":0},{"$f":"'PEF CLASSIFICATION SHEET'!E1858","v":0},{"$f":"'PEF CLASSIFICATION SHEET'!E1859","v":0},{"$f":"'PEF CLASSIFICATION SHEET'!E1860","v":0},{"$f":"'PEF CLASSIFICATION SHEET'!E1861","v":0},{"$f":"'PEF CLASSIFICATION SHEET'!E1862","v":0},{"$f":"'PEF CLASSIFICATION SHEET'!E1863","v":0}]
[null,"RATES PER DAY:",null,{"$f":"D263*8","v":0},0,0,0,0,0,0,0,0,0,0,0,0,0,0,0,0,0,0,0]
[null,"PAYROLL BURDEN:",null,{"$f":"SUM(D261*D263)","v":0},{"$f":"SUM(E261*E263)","v":0},0,0,0,0,0,0,0,0,0,0,0,0,0,0,0,0,0,0]
[null,"TOTAL WORKDAYS:",null,{"$f":"SUM(D262:W262)","v":0}]
[null,"TOTAL PAYROLL BURDEN:",null,{"$f":"SUM(D265:W265)","v":0}]
[null,"AVERAGE COST PER HOUR:",null,{"$f":"SUM(D267/(D266*8))","v":{"$error":"#DIV/0!"}}]
[null,"GENERAL OVERHEAD:",{"$f":"AVIATION.SUB4_CONSULTANT_OVERHEAD","v":0},{"$f":"SUM(D267*C269)","v":0}]
[null,"SUBTOTAL:",null,{"$f":"SUM(D267+D269)","v":0}]
[null,"COMPARATIVE FEE:",{"$f":"AVIATION.SUB4_CONSULTANT_FEE","v":0},{"$f":"SUM(D270*C271)","v":0}]
[null,"FACILITIES COST OF CAPITAL:",{"$f":"AVIATION.SUB4_CONSULTANT_COSTofCAPITAL","v":0},{"$f":"SUM(D267*C272)","v":0}]
[null,"TOTAL:",null,{"$f":"SUM(D270:D272)","v":0}]
[null,"DIRECT EXPENSES:",null,{"$f":"AVIATION.SUB4_DIRECT_NONSALARY_TOTAL","v":0}]
[null,"AVIATION GRAND TOTAL:",null,{"$f":"SUM(D273:D274)","v":0}]

{"sheet":"Aviation-Exp-Sub4","index":202,"n_rows":46,"n_cols":8,"rows_kept":46,"cut":false,"hidden":true,"merged":[[0,0,0,7],[1,3,1,7]]}
["AVIATION--DIRECT EXPENSES - SUBCONSULTANT 4"]
["TIP NUMBER",{"$f":"TIP.NUMBER","v":0},"FIRM:",{"$f":"'Aviation-Sub4'!G3","v":"CONSULTANT NAME"}]
[]
["GENERAL PROJECT WORK:","ITEM","QTY","DESCRIPTION",null,null,"UNIT COST "]
[null,"Travel:"]
[null,"Sedan",0,"Trip(s) @",0,"miles @",{"$f":"SEDAN","v":0.7},{"$f":"SUM(C6*E6*G6)","v":0}]
[null,"Carry All",0,"Trip(s) @",0,"miles @",{"$f":"CARRYALL","v":0.72},{"$f":"SUM(C7*E7*G7)","v":0}]
[null,"Car Rental",null,null,0,"days @ ",{"$f":"CARRENTAL","v":50},{"$f":"SUM(E8*G8)","v":0}]
[null,"Gas for Rental",null,null,0,"miles @",{"$f":"GASforRENTAL","v":0.2},{"$f":"SUM(E9*G9)","v":0}]
[null,"Parking:",0,"Trip(s) @",null,null,{"$f":"PARKING","v":3},{"$f":"SUM(C10*G10)","v":0}]
[null,"Per Diem:",0,"Breakfast",null,null,{"$f":"BREAKFAST","v":10.1},{"$f":"SUM(C11*G11)","v":0}]
[null,null,0,"Lunch",null,null,{"$f":"LUNCH","v":13.3},0]
[null,null,0,"Dinner",null,null,{"$f":"DINNER","v":23.1},0]
[null,null,0,"Lodging",null,null,{"$f":"LODGING_LUMP.SUM","v":95},0]
[null,"Reproduction:",0,"8 1/2 x 11 B & W Copies @",null,null,{"$f":"LETTERCOPIES","v":0.14000000000000001},0]
[null,null,0,"11 x 17 B & W Copies @",null,null,{"$f":"LEDGERCOPIES","v":0.34},0]
[null,null,0,"8 1/2 x 11 Color Copies @",null,null,{"$f":"LETTERCOLOR","v":0.83},0]
[null,null,0,"11 x 17 Color Copies @",null,null,{"$f":"LEDGERCOLOR","v":1.66},0]
[null,null,0,"SQ. FT. of Plots (B & W or Color)",null,"<65 SQ. FT.*",{"$f":"ROLLPLOTSshort","v":6.5},0]
[null,null,0,"SQ. FT. of Plots (B & W or Color)",null,">65 SQ. FT.*",{"$f":"ROLLPLOTSlong","v":1.5},0]
[null,null,0,"Cover(s) @",null,null,{"$f":"COVERS","v":0.5},0]
[null,null,0,"Binder(s) @",null,null,{"$f":"BINDERS","v":0.5},0]
[null,null,0,"Blueprints - 8 1/2 x 11 @",null,null,{"$f":"BLUEPRINTSLETTER","v":0.35},0]
[null,null,0,"Blueprints - 42 x 72 @",null,null,{"$f":"BLUEPRINTSLARGE","v":1.3},0]
[null,"Film and Developing:",0,"Roll(s) @",null,null,{"$f":"FILM","v":20},0]
[null,null,null,null,null,"Subtotal",null,{"$f":"SUM(H6:H25)","v":0}]
["MAPS AND DOCUMENTS:","ITEM","QTY","DESCRIPTION",null,null,"UNIT COST "]
[null,"County Tax Maps:",0,"Map(s) @",null,null,{"$f":"County_Tax_Maps","v":7},{"$f":"SUM(C28*G28)","v":0}]
[null,"USGS Maps:",0,"Map(s) @",null,null,{"$f":"USGSMAPS","v":7},{"$f":"SUM(C29*G29)","v":0}]
[null,null,null,null,null,"Subtotal",null,{"$f":"SUM(H28:H29)","v":0}]
["Miscellaneous Other","ITEM","QTY","DESCRIPTION",null,null,"UNIT COST "]
[null,null,null,null,null,null,null,{"$f":"SUM(C32*G32)","v":0}]
[null,null,null,null,null,null,null,{"$f":"SUM(C33*G33)","v":0}]
[null,null,null,null,null,null,null,0]
[null,null,null,null,null,null,null,0]
[null,null,null,null,null,null,null,0]
[null,null,null,null,null,null,null,0]
[null,null,null,null,null,null,null,0]
[null,null,null,null,null,null,null,{"$f":"SUM(C39*G39)","v":0}]
[null,null,null,null,null,null,null,{"$f":"SUM(C40*G40)","v":0}]
[null,null,null,null,null,null,null,{"$f":"SUM(C41*G41)","v":0}]
[null,null,null,null,null,"Subtotal",null,{"$f":"SUM(H32:H41)","v":0}]
[]
[null,null,null,null,null,"TOTAL",null,{"$f":"SUM(H26+H30+H42)","v":0}]
[]
[null,"* Sum of all plots "]

{"sheet":"Right of Way","index":203,"n_rows":1212,"n_cols":18,"rows_kept":1212,"cut":false,"hidden":true,"merged":[[1160,9,1160,10],[1161,9,1161,10],[1162,9,1162,10],[1163,9,1163,10],[2,5,2,7],[3,5,3,7],[2,9,2,10],[3,9,3,10],[254,9,254,10],[1209,9,1209,10],[236,9,236,10],[237,9,237,10],[238,9,238,10],[239,9,239,10],[240,9,240,10],[241,9,241,10],[230,9,230,10],[231,9,231,10],[232,9,232,10],[233,9,233,10],[234,9,234,10],[235,9,235,10],[224,9,224,10],[225,9,225,10],[226,9,226,10],[217,9,217,10],[206,9,206,10],[207,9,207,10],[227,9,227,10],[228,9,228,10],[229,9,229,10],[218,9,218,10],[219,9,219,10],[220,9,220,10],[221,9,221,10],[222,9,222,10],[223,9,223,10],[1210,9,1210,10],[248,9,248,10],[249,9,249,10],[250,9,250,10],[251,9,251,10],[252,9,252,10],[253,9,253,10],[242,9,242,10],[243,9,243,10],[244,9,244,10],[245,9,245,10],[246,9,246,10],[247,9,247,10],[1153,9,1153,10],[1154,9,1154,10],[1155,9,1155,10],[1164,9,1164,10],[1165,9,1165,10],[1166,9,1166,10],[1156,9,1156,10],[1157,9,1157,10],[1158,9,1158,10],[1159,9,1159,10],[1167,9,1167,10],[1168,9,1168,10],[1169,9,1169,10],[1170,9,1170,10],[200,9,200,10],[201,9,201,10],[202,9,202,10],[203,9,203,10],[204,9,204,10],[205,9,205,10],[194,9,194,10],[195,9,195,10],[196,9,196,10],[197,9,197,10],[198,9,198,10],[199,9,199,10],[212,9,212,10],[213,9,213,10],[214,9,214,10],[215,9,215,10],[216,9,216,10],[208,9,208,10],[209,9,209,10],[210,9,210,10],[211,9,211,10],[181,9,181,10],[170,9,170,10],[171,9,171,10],[172,9,172,10],[173,9,173,10],[174,9,174,10],[175,9,175,10],[188,9,188,10],[189,9,189,10],[190,9,190,10],[191,9,191,10],[192,9,192,10],[193,9,193,10],[182,9,182,10],[183,9,183,10],[184,9,184,10],[185,9,185,10],[186,9,186,10],[187,9,187,10],[164,9,164,10],[165,9,165,10],[166,9,166,10],[167,9,167,10],[168,9,168,10],[169,9,169,10],[158,9,158,10],[159,9,159,10],[160,9,160,10],[161,9,161,10],[162,9,162,10],[163,9,163,10],[176,9,176,10],[177,9,177,10],[178,9,178,10],[179,9,179,10],[180,9,180,10],[145,9,145,10],[134,9,134,10],[135,9,135,10],[136,9,136,10],[137,9,137,10],[138,9,138,10],[139,9,139,10],[152,9,152,10],[153,9,153,10],[154,9,154,10],[155,9,155,10],[156,9,156,10],[157,9,157,10],[146,9,146,10],[147,9,147,10],[148,9,148,10],[149,9,149,10],[150,9,150,10],[151,9,151,10],[128,9,128,10],[129,9,129,10],[130,9,130,10],[131,9,131,10],[132,9,132,10],[133,9,133,10],[122,9,122,10],[123,9,123,10],[124,9,124,10],[125,9,125,10],[126,9,126,10],[127,9,127,10],[140,9,140,10],[141,9,141,10],[142,9,142,10],[143,9,143,10],[144,9,144,10],[109,9,109,10],[98,9,98,10],[99,9,99,10],[100,9,100,10],[101,9,101,10],[102,9,102,10],[103,9,103,10],[116,9,116,10],[117,9,117,10],[118,9,118,10],[119,9,119,10],[120,9,120,10],[121,9,121,10],[110,9,110,10],[111,9,111,10],[112,9,112,10],[113,9,113,10],[114,9,114,10],[115,9,115,10],[92,9,92,10],[93,9,93,10],[94,9,94,10],[95,9,95,10],[96,9,96,10],[97,9,97,10],[86,9,86,10],[87,9,87,10],[88,9,88,10],[89,9,89,10],[90,9,90,10],[91,9,91,10],[104,9,104,10],[105,9,105,10],[106,9,106,10],[107,9,107,10],[108,9,108,10],[73,9,73,10],[62,9,62,10],[63,9,63,10],[64,9,64,10],[65,9,65,10],[66,9,66,10],[67,9,67,10],[80,9,80,10],[81,9,81,10],[82,9,82,10],[83,9,83,10],[84,9,84,10],[85,9,85,10],[74,9,74,10],[75,9,75,10],[76,9,76,10],[77,9,77,10],[78,9,78,10],[79,9,79,10],[56,9,56,10],[57,9,57,10],[58,9,58,10],[59,9,59,10],[60,9,60,10],[61,9,61,10],[50,9,50,10],[51,9,51,10],[52,9,52,10],[53,9,53,10],[54,9,54,10],[55,9,55,10],[68,9,68,10],[69,9,69,10],[70,9,70,10],[71,9,71,10],[72,9,72,10],[37,9,37,10],[26,9,26,10],[27,9,27,10],[28,9,28,10],[29,9,29,10],[30,9,30,10],[31,9,31,10],[44,9,44,10],[45,9,45,10],[46,9,46,10],[47,9,47,10],[48,9,48,10],[49,9,49,10],[38,9,38,10],[39,9,39,10],[40,9,40,10],[41,9,41,10],[42,9,42,10],[43,9,43,10],[20,9,20,10],[21,9,21,10],[22,9,22,10],[23,9,23,10],[24,9,24,10],[25,9,25,10],[14,9,14,10],[15,9,15,10],[16,9,16,10],[17,9,17,10],[18,9,18,10],[19,9,19,10],[32,9,32,10],[33,9,33,10],[34,9,34,10],[35,9,35,10],[36,9,36,10],[1171,9,1171,10],[1172,9,1172,10],[8,9,8,10],[10,9,10,10],[11,9,11,10],[12,9,12,10],[13,9,13,10],[0,0,1,4],[1150,9,1150,10],[1151,9,1151,10],[1152,9,1152,10],[1090,9,1090,10],[1091,9,1091,10],[1092,9,1092,10],[1093,9,1093,10],[1094,9,1094,10],[1095,9,1095,10],[1096,9,1096,10],[1097,9,1097,10],[1098,9,1098,10],[1099,9,1099,10],[1100,9,1100,10],[1101,9,1101,10],[1102,9,1102,10],[1103,9,1103,10],[1111,9,1111,10],[1112,9,1112,10],[1113,9,1113,10],[1074,9,1074,10],[1075,9,1075,10],[1076,9,1076,10],[1077,9,1077,10],[1182,9,1182,10],[1183,9,1183,10],[1184,9,1184,10],[1185,9,1185,10],[1186,9,1186,10],[1187,9,1187,10],[1188,9,1188,10],[1189,9,1189,10],[1190,9,1190,10],[1173,9,1173,10],[1174,9,1174,10],[1175,9,1175,10],[1176,9,1176,10],[1177,9,1177,10],[1178,9,1178,10],[1179,9,1179,10],[1180,9,1180,10],[1181,9,1181,10],[1200,9,1200,10],[1201,9,1201,10],[1202,9,1202,10],[1203,9,1203,10],[1204,9,1204,10],[1205,9,1205,10],[1206,9,1206,10],[1207,9,1207,10],[1208,9,1208,10],[1191,9,1191,10],[1192,9,1192,10],[1193,9,1193,10],[1194,9,1194,10],[1195,9,1195,10],[1196,9,1196,10],[1197,9,1197,10],[1198,9,1198,10],[1199,9,1199,10],[1078,9,1078,10],[1079,9,1079,10],[1080,9,1080,10],[1081,9,1081,10],[1082,9,1082,10],[1083,9,1083,10],[1084,9,1084,10],[1085,9,1085,10],[1086,9,1086,10],[1087,9,1087,10],[1088,9,1088,10],[1089,9,1089,10],[1104,9,1104,10],[1149,9,1149,10],[1132,9,1132,10],[1133,9,1133,10],[1134,9,1134,10],[1135,9,1135,10],[1136,9,1136,10],[1137,9,1137,10],[1138,9,1138,10],[1139,9,1139,10],[1140,9,1140,10],[1123,9,1123,10],[1124,9,1124,10],[1125,9,1125,10],[1126,9,1126,10],[1127,9,1127,10],[1128,9,1128,10],[1129,9,1129,10],[1130,9,1130,10],[1131,9,1131,10],[407,9,407,10],[408,9,408,10],[409,9,409,10],[410,9,410,10],[411,9,411,10],[412,9,412,10],[413,9,413,10],[414,9,414,10],[415,9,415,10],[1141,9,1141,10],[1142,9,1142,10],[1143,9,1143,10],[1144,9,1144,10],[1145,9,1145,10],[1146,9,1146,10],[1147,9,1147,10],[1148,9,1148,10],[1114,9,1114,10],[1115,9,1115,10],[1116,9,1116,10],[1117,9,1117,10],[1118,9,1118,10],[1119,9,1119,10],[1120,9,1120,10],[1121,9,1121,10],[1122,9,1122,10],[1105,9,1105,10],[1106,9,1106,10],[1107,9,1107,10],[1108,9,1108,10],[1109,9,1109,10],[1110,9,1110,10],[425,9,425,10],[426,9,426,10],[427,9,427,10],[428,9,428,10],[429,9,429,10],[430,9,430,10],[431,9,431,10],[432,9,432,10],[433,9,433,10],[416,9,416,10],[417,9,417,10],[418,9,418,10],[419,9,419,10],[420,9,420,10],[421,9,421,10],[422,9,422,10],[423,9,423,10],[424,9,424,10],[1038,9,1038,10],[1039,9,1039,10],[1040,9,1040,10],[1041,9,1041,10],[1042,9,1042,10],[434,9,434,10],[435,9,435,10],[1027,9,1027,10],[1028,9,1028,10],[1029,9,1029,10],[1030,9,1030,10],[1031,9,1031,10],[1032,9,1032,10],[1033,9,1033,10],[830,9,830,10],[831,9,831,10],[832,9,832,10],[833,9,833,10],[834,9,834,10],[835,9,835,10],[836,9,836,10],[837,9,837,10],[838,9,838,10],[839,9,839,10],[840,9,840,10],[841,9,841,10],[842,9,842,10],[843,9,843,10],[844,9,844,10],[854,9,854,10],[855,9,855,10],[856,9,856,10],[350,9,350,10],[1061,9,1061,10],[1062,9,1062,10],[1063,9,1063,10],[1064,9,1064,10],[1065,9,1065,10],[1066,9,1066,10],[1067,9,1067,10],[1068,9,1068,10],[1069,9,1069,10],[1052,9,1052,10],[1053,9,1053,10],[1054,9,1054,10],[1055,9,1055,10],[1056,9,1056,10],[1057,9,1057,10],[1058,9,1058,10],[1059,9,1059,10],[1060,9,1060,10],[1043,9,1043,10],[1044,9,1044,10],[1045,9,1045,10],[1046,9,1046,10],[1047,9,1047,10],[1048,9,1048,10],[1049,9,1049,10],[1050,9,1050,10],[1051,9,1051,10],[1034,9,1034,10],[1035,9,1035,10],[1036,9,1036,10],[1037,9,1037,10],[351,9,351,10],[352,9,352,10],[353,9,353,10],[354,9,354,10],[355,9,355,10],[356,9,356,10],[357,9,357,10],[358,9,358,10],[359,9,359,10],[1070,9,1070,10],[1071,9,1071,10],[1072,9,1072,10],[1073,9,1073,10],[331,9,331,10],[332,9,332,10],[333,9,333,10],[334,9,334,10],[335,9,335,10],[336,9,336,10],[337,9,337,10],[338,9,338,10],[339,9,339,10],[340,9,340,10],[341,9,341,10],[342,9,342,10],[343,9,343,10],[344,9,344,10],[345,9,345,10],[346,9,346,10],[347,9,347,10],[348,9,348,10],[349,9,349,10],[369,9,369,10],[370,9,370,10],[371,9,371,10],[372,9,372,10],[373,9,373,10],[374,9,374,10],[375,9,375,10],[376,9,376,10],[377,9,377,10],[360,9,360,10],[361,9,361,10],[362,9,362,10],[363,9,363,10],[364,9,364,10],[365,9,365,10],[366,9,366,10],[367,9,367,10],[368,9,368,10],[404,9,404,10],[387,9,387,10],[388,9,388,10],[389,9,389,10],[390,9,390,10],[391,9,391,10],[392,9,392,10],[393,9,393,10],[394,9,394,10],[395,9,395,10],[378,9,378,10],[379,9,379,10],[380,9,380,10],[381,9,381,10],[382,9,382,10],[383,9,383,10],[384,9,384,10],[385,9,385,10],[386,9,386,10],[405,9,405,10],[406,9,406,10],[255,9,255,10],[256,9,256,10],[257,9,257,10],[258,9,258,10],[259,9,259,10],[260,9,260,10],[261,9,261,10],[262,9,262,10],[263,9,263,10],[264,9,264,10],[265,9,265,10],[266,9,266,10],[267,9,267,10],[268,9,268,10],[269,9,269,10],[270,9,270,10],[271,9,271,10],[272,9,272,10],[273,9,273,10],[274,9,274,10],[275,9,275,10],[276,9,276,10],[396,9,396,10],[397,9,397,10],[398,9,398,10],[399,9,399,10],[400,9,400,10],[401,9,401,10],[402,9,402,10],[403,9,403,10],[286,9,286,10],[287,9,287,10],[288,9,288,10],[289,9,289,10],[290,9,290,10],[291,9,291,10],[292,9,292,10],[293,9,293,10],[294,9,294,10],[277,9,277,10],[278,9,278,10],[279,9,279,10],[280,9,280,10],[281,9,281,10],[282,9,282,10],[283,9,283,10],[284,9,284,10],[285,9,285,10],[304,9,304,10],[305,9,305,10],[306,9,306,10],[307,9,307,10],[308,9,308,10],[309,9,309,10],[310,9,310,10],[311,9,311,10],[312,9,312,10],[295,9,295,10],[296,9,296,10],[297,9,297,10],[298,9,298,10],[299,9,299,10],[300,9,300,10],[301,9,301,10],[302,9,302,10],[303,9,303,10],[322,9,322,10],[323,9,323,10],[324,9,324,10],[325,9,325,10],[326,9,326,10],[327,9,327,10],[328,9,328,10],[329,9,329,10],[330,9,330,10],[313,9,313,10],[314,9,314,10],[315,9,315,10],[316,9,316,10],[317,9,317,10],[318,9,318,10],[319,9,319,10],[320,9,320,10],[321,9,321,10],[857,9,857,10],[858,9,858,10],[859,9,859,10],[860,9,860,10],[861,9,861,10],[862,9,862,10],[845,9,845,10],[846,9,846,10],[847,9,847,10],[848,9,848,10],[849,9,849,10],[850,9,850,10],[851,9,851,10],[852,9,852,10],[853,9,853,10],[872,9,872,10],[873,9,873,10],[874,9,874,10],[875,9,875,10],[876,9,876,10],[877,9,877,10],[878,9,878,10],[879,9,879,10],[880,9,880,10],[863,9,863,10],[864,9,864,10],[865,9,865,10],[866,9,866,10],[867,9,867,10],[868,9,868,10],[869,9,869,10],[870,9,870,10],[871,9,871,10],[890,9,890,10],[891,9,891,10],[892,9,892,10],[893,9,893,10],[894,9,894,10],[895,9,895,10],[896,9,896,10],[897,9,897,10],[898,9,898,10],[881,9,881,10],[882,9,882,10],[883,9,883,10],[884,9,884,10],[885,9,885,10],[886,9,886,10],[887,9,887,10],[888,9,888,10],[889,9,889,10],[908,9,908,10],[909,9,909,10],[910,9,910,10],[911,9,911,10],[912,9,912,10],[913,9,913,10],[914,9,914,10],[915,9,915,10],[916,9,916,10],[899,9,899,10],[900,9,900,10],[901,9,901,10],[902,9,902,10],[903,9,903,10],[904,9,904,10],[905,9,905,10],[906,9,906,10],[907,9,907,10],[926,9,926,10],[927,9,927,10],[928,9,928,10],[929,9,929,10],[930,9,930,10],[931,9,931,10],[932,9,932,10],[933,9,933,10],[934,9,934,10],[917,9,917,10],[918,9,918,10],[919,9,919,10],[920,9,920,10],[921,9,921,10],[922,9,922,10],[923,9,923,10],[924,9,924,10],[925,9,925,10],[944,9,944,10],[945,9,945,10],[946,9,946,10],[947,9,947,10],[948,9,948,10],[949,9,949,10],[950,9,950,10],[951,9,951,10],[952,9,952,10],[935,9,935,10],[936,9,936,10],[937,9,937,10],[938,9,938,10],[939,9,939,10],[940,9,940,10],[941,9,941,10],[942,9,942,10],[943,9,943,10],[962,9,962,10],[963,9,963,10],[964,9,964,10],[965,9,965,10],[966,9,966,10],[967,9,967,10],[968,9,968,10],[969,9,969,10],[970,9,970,10],[953,9,953,10],[954,9,954,10],[955,9,955,10],[956,9,956,10],[957,9,957,10],[958,9,958,10],[959,9,959,10],[960,9,960,10],[961,9,961,10],[993,9,993,10],[994,9,994,10],[995,9,995,10],[996,9,996,10],[997,9,997,10],[980,9,980,10],[981,9,981,10],[982,9,982,10],[983,9,983,10],[984,9,984,10],[985,9,985,10],[986,9,986,10],[987,9,987,10],[988,9,988,10],[971,9,971,10],[972,9,972,10],[973,9,973,10],[974,9,974,10],[975,9,975,10],[976,9,976,10],[977,9,977,10],[978,9,978,10],[979,9,979,10],[654,9,654,10],[1016,9,1016,10],[1017,9,1017,10],[1018,9,1018,10],[1019,9,1019,10],[1020,9,1020,10],[1021,9,1021,10],[1022,9,1022,10],[1023,9,1023,10],[1024,9,1024,10],[1007,9,1007,10],[1008,9,1008,10],[1009,9,1009,10],[1010,9,1010,10],[1011,9,1011,10],[1012,9,1012,10],[1013,9,1013,10],[1014,9,1014,10],[1015,9,1015,10],[998,9,998,10],[999,9,999,10],[1000,9,1000,10],[1001,9,1001,10],[1002,9,1002,10],[1003,9,1003,10],[1004,9,1004,10],[1005,9,1005,10],[1006,9,1006,10],[989,9,989,10],[990,9,990,10],[991,9,991,10],[992,9,992,10],[655,9,655,10],[656,9,656,10],[657,9,657,10],[658,9,658,10],[659,9,659,10],[660,9,660,10],[661,9,661,10],[662,9,662,10],[663,9,663,10],[1025,9,1025,10],[1026,9,1026,10],[633,9,633,10],[634,9,634,10],[635,9,635,10],[636,9,636,10],[637,9,637,10],[638,9,638,10],[639,9,639,10],[640,9,640,10],[641,9,641,10],[642,9,642,10],[643,9,643,10],[644,9,644,10],[645,9,645,10],[646,9,646,10],[647,9,647,10],[648,9,648,10],[649,9,649,10],[650,9,650,10],[651,9,651,10],[652,9,652,10],[653,9,653,10],[673,9,673,10],[674,9,674,10],[675,9,675,10],[676,9,676,10],[677,9,677,10],[678,9,678,10],[679,9,679,10],[680,9,680,10],[681,9,681,10],[664,9,664,10],[665,9,665,10],[666,9,666,10],[667,9,667,10],[668,9,668,10],[669,9,669,10],[670,9,670,10],[671,9,671,10],[672,9,672,10],[691,9,691,10],[692,9,692,10],[693,9,693,10],[694,9,694,10],[695,9,695,10],[696,9,696,10],[697,9,697,10],[698,9,698,10],[699,9,699,10],[682,9,682,10],[683,9,683,10],[684,9,684,10],[685,9,685,10],[686,9,686,10],[687,9,687,10],[688,9,688,10],[689,9,689,10],[690,9,690,10],[709,9,709,10],[710,9,710,10],[711,9,711,10],[712,9,712,10],[713,9,713,10],[714,9,714,10],[715,9,715,10],[716,9,716,10],[717,9,717,10],[700,9,700,10],[701,9,701,10],[702,9,702,10],[703,9,703,10],[704,9,704,10],[705,9,705,10],[706,9,706,10],[707,9,707,10],[708,9,708,10],[727,9,727,10],[728,9,728,10],[729,9,729,10],[730,9,730,10],[731,9,731,10],[732,9,732,10],[733,9,733,10],[734,9,734,10],[735,9,735,10],[718,9,718,10],[719,9,719,10],[720,9,720,10],[721,9,721,10],[722,9,722,10],[723,9,723,10],[724,9,724,10],[725,9,725,10],[726,9,726,10],[745,9,745,10],[746,9,746,10],[747,9,747,10],[748,9,748,10],[749,9,749,10],[750,9,750,10],[751,9,751,10],[752,9,752,10],[753,9,753,10],[736,9,736,10],[737,9,737,10],[738,9,738,10],[739,9,739,10],[740,9,740,10],[741,9,741,10],[742,9,742,10],[743,9,743,10],[744,9,744,10],[763,9,763,10],[764,9,764,10],[765,9,765,10],[766,9,766,10],[767,9,767,10],[768,9,768,10],[769,9,769,10],[770,9,770,10],[771,9,771,10],[754,9,754,10],[755,9,755,10],[756,9,756,10],[757,9,757,10],[758,9,758,10],[759,9,759,10],[760,9,760,10],[761,9,761,10],[762,9,762,10],[794,9,794,10],[795,9,795,10],[796,9,796,10],[797,9,797,10],[798,9,798,10],[781,9,781,10],[782,9,782,10],[783,9,783,10],[784,9,784,10],[785,9,785,10],[786,9,786,10],[787,9,787,10],[788,9,788,10],[789,9,789,10],[772,9,772,10],[773,9,773,10],[774,9,774,10],[775,9,775,10],[776,9,776,10],[777,9,777,10],[778,9,778,10],[779,9,779,10],[780,9,780,10],[455,9,455,10],[817,9,817,10],[818,9,818,10],[819,9,819,10],[820,9,820,10],[821,9,821,10],[822,9,822,10],[823,9,823,10],[824,9,824,10],[825,9,825,10],[808,9,808,10],[809,9,809,10],[810,9,810,10],[811,9,811,10],[812,9,812,10],[813,9,813,10],[814,9,814,10],[815,9,815,10],[816,9,816,10],[799,9,799,10],[800,9,800,10],[801,9,801,10],[802,9,802,10],[803,9,803,10],[804,9,804,10]],"merged_total":1207,"flags":["merged_cut"]}
["                                                                                           RIGHT OF WAY BREAKDOWN WORKSHEET -- ENTER COST PER PARCEL"]
[]
["PROJECT DESCRIPTION: ",{"$f":"PROJECT.DESCRIPTION","v":0},"PRIME FIRM (MANAGING ROW) (IF APPLICABLE):  ",null,"TASK ORDER NUMBER:",{"$f":"TASK.ORDER.NUMBER","v":0},null,null,"DATE PREPARED:",{"$f":"IF(SCOPE.MANDAY.ESTIMATE.PREPARED.BY.DATE=\"\",\"\",SCOPE.MANDAY.ESTIMATE.PREPARED.BY.DATE)","v":""}]
["PREPARED BY:  ",{"$f":"IF(SCOPE.MANDAY.ESTIMATE.PREPARED.BY=\"\",\"\",SCOPE.MANDAY.ESTIMATE.PREPARED.BY)","v":""},"TIP NUMBER:",{"$f":"TIP.NUMBER","v":0},"WBS NUMBER:",{"$f":"WBS.NUMBER","v":""},null,null,"REVISION DATE:",{"$f":"IF(SCOPE.MANDAY.ESTIMATE.APPROVED.BY.DATE=\"\",\"\",SCOPE.MANDAY.ESTIMATE.APPROVED.BY.DATE)","v":""}]
[null,null,null,null,null,null,"This column should"]
[null,null,null,null,null,null,"only be populated when"]
[null,null,null,null,null,null,"\"ROW Administrative","SUB-","%"]
[null,null,null,null,null,null,"Services per hour.\"","TOTAL","OF"]
[null,null,null,null,null,null,"is the Task",null,"PROJECT","COMMENTS"]
["PARCEL NO.(S)\n(EX.  2-10,15,18  (10 PARCELS))","TASK DESCRIPTION \n(SELECT THE TASK FROM THE DROP DOWN LIST)","FIRM PERFORMING WORK","FIRM EMPLOYEE(s) PERFORMING WORK (Optional Field)","APPRAISAL FIRM PERFORMING WORK (IF APPRAISAL IS INDICATED IN TASK DESCRIPTION)","COST FOR SERVICE\n(Key cost for parcel multipled by the number of parcels at that cost below)\n\n(EX.  =250*8+500*2)\n8 parcels at $250 cost each plus 2 parcels at $500 cost each","NUMBER OF HOURS OF ROW ADMINISTRATIVE SERVICE",null,null,null,null,null,null,null,null,null,null,"TASK TYPE"]
[null,null,null,null,null,null,null,{"$f":"IF(B11=\"\",0,IF(B11=\"ROW Administrative Services per hour.\",F11*G11,F11))","v":0},{"$f":"IF(B11=0,\"\",F11/$F$1212)","v":""},null,null,null,null,null,null,null,null,"Parcel cost to include R/W Claim Report."]
[null,null,null,null,null,null,null,{"$f":"IF(B12=\"\",0,IF(B12=\"ROW Administrative Services per hour.\",F12*G12,F12))","v":0},"",null,null,null,null,null,null,null,null,"Parcel cost using RWTS appraisal."]
[null,null,null,null,null,null,null,{"$f":"IF(B13=\"\",0,IF(B13=\"ROW Administrative Services per hour.\",F13*G13,F13))","v":0},"",null,null,null,null,null,null,null,null,"Parcel cost using Narrative appraisal."]
[null,null,null,null,null,null,null,0,"",null,null,null,null,null,null,null,null,"Title opinion cost (if needed)."]
[null,null,null,null,null,null,null,0,"",null,null,null,null,null,null,null,null,"Personal Property or Sign Relocation."]
[null,null,null,null,null,null,null,0,"",null,null,null,null,null,null,null,null,"Residential Relocation."]
[null,null,null,null,null,null,null,0,"",null,null,null,null,null,null,null,null,"Business/Commercial Relocation."]
[null,null,null,null,null,null,null,0,"",null,null,null,null,null,null,null,null,"ROW Cost Estimate"]
[null,null,null,null,null,null,null,0,"",null,null,null,null,null,null,null,null,"EIS Study"]
[null,null,null,null,null,null,null,0,"",null,null,null,null,null,null,null,null,"ROW Administrative Services per hour."]
[null,null,null,null,null,null,null,0,""]
[null,null,null,null,null,null,null,0,""]
[null,null,null,null,null,null,null,0,""]
[null,null,null,null,null,null,null,0,""]
[null,null,null,null,null,null,null,0,""]
[null,null,null,null,null,null,null,0,""]
[null,null,null,null,null,null,null,0,""]
[null,null,null,null,null,null,null,0,""]
[null,null,null,null,null,null,null,0,""]
[null,null,null,null,null,null,null,0,""]
[null,null,null,null,null,null,null,0,""]
[null,null,null,null,null,null,null,0,""]
[null,null,null,null,null,null,null,0,""]
[null,null,null,null,null,null,null,0,""]
[null,null,null,null,null,null,null,0,""]
[null,null,null,null,null,null,null,0,""]
[null,null,null,null,null,null,null,0,""]
[null,null,null,null,null,null,null,0,""]
[null,null,null,null,null,null,null,0,""]
[null,null,null,null,null,null,null,0,""]
[null,null,null,null,null,null,null,0,""]
[null,null,null,null,null,null,null,0,""]
[null,null,null,null,null,null,null,0,""]
[null,null,null,null,null,null,null,0,""]
[null,null,null,null,null,null,null,0,""]
[null,null,null,null,null,null,null,0,""]
[null,null,null,null,null,null,null,0,""]
[null,null,null,null,null,null,null,0,""]
[null,null,null,null,null,null,null,0,""]
[null,null,null,null,null,null,null,0,""]
[null,null,null,null,null,null,null,0,""]
[null,null,null,null,null,null,null,0,""]
[null,null,null,null,null,null,null,0,""]
[null,null,null,null,null,null,null,0,""]
[null,null,null,null,null,null,null,0,""]
[null,null,null,null,null,null,null,0,""]
[null,null,null,null,null,null,null,0,""]
[null,null,null,null,null,null,null,0,""]
[null,null,null,null,null,null,null,0,""]
[null,null,null,null,null,null,null,0,""]
[null,null,null,null,null,null,null,0,""]
[null,null,null,null,null,null,null,0,""]
[null,null,null,null,null,null,null,0,""]
[null,null,null,null,null,null,null,0,""]
[null,null,null,null,null,null,null,0,""]
[null,null,null,null,null,null,null,0,""]
[null,null,null,null,null,null,null,0,""]
[null,null,null,null,null,null,null,0,""]
[null,null,null,null,null,null,null,0,""]
[null,null,null,null,null,null,null,0,""]
[null,null,null,null,null,null,null,0,""]
[null,null,null,null,null,null,null,0,""]
[null,null,null,null,null,null,null,0,""]
[null,null,null,null,null,null,null,0,""]
[null,null,null,null,null,null,null,0,{"$f":"IF(B75=0,\"\",F75/$F$1212)","v":""}]
[null,null,null,null,null,null,null,0,""]
[null,null,null,null,null,null,null,{"$f":"IF(B77=\"\",0,IF(B77=\"ROW Administrative Services per hour.\",F77*G77,F77))","v":0},""]
[null,null,null,null,null,null,null,0,""]
[null,null,null,null,null,null,null,0,""]
[null,null,null,null,null,null,null,0,""]
[null,null,null,null,null,null,null,0,""]
[null,null,null,null,null,null,null,0,""]
[null,null,null,null,null,null,null,0,""]
[null,null,null,null,null,null,null,0,""]
[null,null,null,null,null,null,null,0,""]
[null,null,null,null,null,null,null,0,""]
[null,null,null,null,null,null,null,0,""]
[null,null,null,null,null,null,null,0,""]
[null,null,null,null,null,null,null,0,""]
[null,null,null,null,null,null,null,0,""]
[null,null,null,null,null,null,null,0,""]
[null,null,null,null,null,null,null,0,""]
[null,null,null,null,null,null,null,0,""]
[null,null,null,null,null,null,null,0,""]
[null,null,null,null,null,null,null,0,""]
[null,null,null,null,null,null,null,0,""]
[null,null,null,null,null,null,null,0,""]
[null,null,null,null,null,null,null,0,""]
[null,null,null,null,null,null,null,0,""]
[null,null,null,null,null,null,null,0,""]
[null,null,null,null,null,null,null,0,""]
[null,null,null,null,null,null,null,0,""]
[null,null,null,null,null,null,null,0,""]
[null,null,null,null,null,null,null,0,""]
[null,null,null,null,null,null,null,0,""]
[null,null,null,null,null,null,null,0,""]
[null,null,null,null,null,null,null,0,""]
[null,null,null,null,null,null,null,0,""]
[null,null,null,null,null,null,null,0,""]
[null,null,null,null,null,null,null,0,""]
[null,null,null,null,null,null,null,0,""]
[null,null,null,null,null,null,null,0,""]
[null,null,null,null,null,null,null,0,""]
[null,null,null,null,null,null,null,0,""]
[null,null,null,null,null,null,null,0,""]
[null,null,null,null,null,null,null,0,""]
[null,null,null,null,null,null,null,0,""]
[null,null,null,null,null,null,null,0,""]
[null,null,null,null,null,null,null,0,""]
[null,null,null,null,null,null,null,0,""]
[null,null,null,null,null,null,null,0,""]
[null,null,null,null,null,null,null,0,""]
[null,null,null,null,null,null,null,0,""]
[null,null,null,null,null,null,null,0,""]
[null,null,null,null,null,null,null,0,""]
[null,null,null,null,null,null,null,0,""]
[null,null,null,null,null,null,null,0,""]
[null,null,null,null,null,null,null,0,""]
[null,null,null,null,null,null,null,0,""]
[null,null,null,null,null,null,null,0,""]
[null,null,null,null,null,null,null,0,""]
[null,null,null,null,null,null,null,0,""]
[null,null,null,null,null,null,null,0,""]
[null,null,null,null,null,null,null,0,""]
[null,null,null,null,null,null,null,0,""]
[null,null,null,null,null,null,null,0,""]
[null,null,null,null,null,null,null,0,""]
[null,null,null,null,null,null,null,0,""]
[null,null,null,null,null,null,null,0,{"$f":"IF(B139=0,\"\",F139/$F$1212)","v":""}]
[null,null,null,null,null,null,null,0,""]
[null,null,null,null,null,null,null,{"$f":"IF(B141=\"\",0,IF(B141=\"ROW Administrative Services per hour.\",F141*G141,F141))","v":0},""]
[null,null,null,null,null,null,null,0,""]
[null,null,null,null,null,null,null,0,""]
[null,null,null,null,null,null,null,0,""]
[null,null,null,null,null,null,null,0,""]
[null,null,null,null,null,null,null,0,""]
[null,null,null,null,null,null,null,0,""]
[null,null,null,null,null,null,null,0,""]
[null,null,null,null,null,null,null,0,""]
[null,null,null,null,null,null,null,0,""]
[null,null,null,null,null,null,null,0,""]
[null,null,null,null,null,null,null,0,""]
[null,null,null,null,null,null,null,0,""]
[null,null,null,null,null,null,null,0,""]
[null,null,null,null,null,null,null,0,""]
[null,null,null,null,null,null,null,0,""]
[null,null,null,null,null,null,null,0,""]
[null,null,null,null,null,null,null,0,""]
[null,null,null,null,null,null,null,0,""]
[null,null,null,null,null,null,null,0,""]
[null,null,null,null,null,null,null,0,""]
[null,null,null,null,null,null,null,0,""]
[null,null,null,null,null,null,null,0,""]
[null,null,null,null,null,null,null,0,""]
[null,null,null,null,null,null,null,0,""]
[null,null,null,null,null,null,null,0,""]
[null,null,null,null,null,null,null,0,""]
[null,null,null,null,null,null,null,0,""]
[null,null,null,null,null,null,null,0,""]
[null,null,null,null,null,null,null,0,""]
[null,null,null,null,null,null,null,0,""]
[null,null,null,null,null,null,null,0,""]
[null,null,null,null,null,null,null,0,""]
[null,null,null,null,null,null,null,0,""]
[null,null,null,null,null,null,null,0,""]
[null,null,null,null,null,null,null,0,""]
[null,null,null,null,null,null,null,0,""]
[null,null,null,null,null,null,null,0,""]
[null,null,null,null,null,null,null,0,""]
[null,null,null,null,null,null,null,0,""]
[null,null,null,null,null,null,null,0,""]
[null,null,null,null,null,null,null,0,""]
[null,null,null,null,null,null,null,0,""]
[null,null,null,null,null,null,null,0,""]
[null,null,null,null,null,null,null,0,""]
[null,null,null,null,null,null,null,0,""]
[null,null,null,null,null,null,null,0,""]
[null,null,null,null,null,null,null,0,""]
[null,null,null,null,null,null,null,0,""]
[null,null,null,null,null,null,null,0,""]
[null,null,null,null,null,null,null,0,""]
[null,null,null,null,null,null,null,0,""]
[null,null,null,null,null,null,null,0,""]
[null,null,null,null,null,null,null,0,""]
[null,null,null,null,null,null,null,0,""]
[null,null,null,null,null,null,null,0,""]
[null,null,null,null,null,null,null,0,""]
[null,null,null,null,null,null,null,0,""]
[null,null,null,null,null,null,null,0,""]
[null,null,null,null,null,null,null,0,""]
[null,null,null,null,null,null,null,0,""]
[null,null,null,null,null,null,null,0,""]
[null,null,null,null,null,null,null,0,{"$f":"IF(B203=0,\"\",F203/$F$1212)","v":""}]
[null,null,null,null,null,null,null,0,""]
[null,null,null,null,null,null,null,{"$f":"IF(B205=\"\",0,IF(B205=\"ROW Administrative Services per hour.\",F205*G205,F205))","v":0},""]
[null,null,null,null,null,null,null,0,""]
[null,null,null,null,null,null,null,0,""]
[null,null,null,null,null,null,null,0,""]
[null,null,null,null,null,null,null,0,""]
[null,null,null,null,null,null,null,0,""]
[null,null,null,null,null,null,null,0,""]
[null,null,null,null,null,null,null,0,""]
[null,null,null,null,null,null,null,0,""]
[null,null,null,null,null,null,null,0,""]
[null,null,null,null,null,null,null,0,""]
[null,null,null,null,null,null,null,0,""]
[null,null,null,null,null,null,null,0,""]
[null,null,null,null,null,null,null,0,""]
[null,null,null,null,null,null,null,0,""]
[null,null,null,null,null,null,null,0,""]
[null,null,null,null,null,null,null,0,""]
[null,null,null,null,null,null,null,0,""]
[null,null,null,null,null,null,null,0,""]
[null,null,null,null,null,null,null,0,""]
[null,null,null,null,null,null,null,0,""]
[null,null,null,null,null,null,null,0,""]
[null,null,null,null,null,null,null,0,""]
[null,null,null,null,null,null,null,0,""]
[null,null,null,null,null,null,null,0,""]
[null,null,null,null,null,null,null,0,""]
[null,null,null,null,null,null,null,0,""]
[null,null,null,null,null,null,null,0,""]
[null,null,null,null,null,null,null,0,""]
[null,null,null,null,null,null,null,0,""]
[null,null,null,null,null,null,null,0,""]
[null,null,null,null,null,null,null,0,""]
[null,null,null,null,null,null,null,0,""]
[null,null,null,null,null,null,null,0,""]
[null,null,null,null,null,null,null,0,""]
[null,null,null,null,null,null,null,0,""]
[null,null,null,null,null,null,null,0,""]
[null,null,null,null,null,null,null,0,""]
[null,null,null,null,null,null,null,0,""]
[null,null,null,null,null,null,null,0,""]
[null,null,null,null,null,null,null,0,""]
[null,null,null,null,null,null,null,0,""]
[null,null,null,null,null,null,null,0,""]
[null,null,null,null,null,null,null,0,""]
[null,null,null,null,null,null,null,0,""]
[null,null,null,null,null,null,null,0,""]
[null,null,null,null,null,null,null,0,""]
[null,null,null,null,null,null,null,0,""]
[null,null,null,null,null,null,null,0,""]
[null,null,null,null,null,null,null,0,""]
[null,null,null,null,null,null,null,0,""]
[null,null,null,null,null,null,null,0,""]
[null,null,null,null,null,null,null,0,""]
[null,null,null,null,null,null,null,0,""]
[null,null,null,null,null,null,null,0,""]
[null,null,null,null,null,null,null,0,""]
[null,null,null,null,null,null,null,0,""]
[null,null,null,null,null,null,null,0,""]
[null,null,null,null,null,null,null,0,""]
[null,null,null,null,null,null,null,0,""]
[null,null,null,null,null,null,null,0,""]
[null,null,null,null,null,null,null,0,""]
[null,null,null,null,null,null,null,0,{"$f":"IF(B267=0,\"\",F267/$F$1212)","v":""}]
[null,null,null,null,null,null,null,0,""]
[null,null,null,null,null,null,null,{"$f":"IF(B269=\"\",0,IF(B269=\"ROW Administrative Services per hour.\",F269*G269,F269))","v":0},""]
[null,null,null,null,null,null,null,0,""]
[null,null,null,null,null,null,null,0,""]
[null,null,null,null,null,null,null,0,""]
[null,null,null,null,null,null,null,0,""]
[null,null,null,null,null,null,null,0,""]
[null,null,null,null,null,null,null,0,""]
[null,null,null,null,null,null,null,0,""]
[null,null,null,null,null,null,null,0,""]
[null,null,null,null,null,null,null,0,""]
[null,null,null,null,null,null,null,0,""]
[null,null,null,null,null,null,null,0,""]
[null,null,null,null,null,null,null,0,""]
[null,null,null,null,null,null,null,0,""]
[null,null,null,null,null,null,null,0,""]
[null,null,null,null,null,null,null,0,""]
[null,null,null,null,null,null,null,0,""]
[null,null,null,null,null,null,null,0,""]
[null,null,null,null,null,null,null,0,""]
[null,null,null,null,null,null,null,0,""]
[null,null,null,null,null,null,null,0,""]
[null,null,null,null,null,null,null,0,""]
[null,null,null,null,null,null,null,0,""]
[null,null,null,null,null,null,null,0,""]
[null,null,null,null,null,null,null,0,""]
[null,null,null,null,null,null,null,0,""]
[null,null,null,null,null,null,null,0,""]
[null,null,null,null,null,null,null,0,""]
[null,null,null,null,null,null,null,0,""]
[null,null,null,null,null,null,null,0,""]
[null,null,null,null,null,null,null,0,""]
[null,null,null,null,null,null,null,0,""]
[null,null,null,null,null,null,null,0,""]
[null,null,null,null,null,null,null,0,""]
[null,null,null,null,null,null,null,0,""]
[null,null,null,null,null,null,null,0,""]
[null,null,null,null,null,null,null,0,""]
[null,null,null,null,null,null,null,0,""]
[null,null,null,null,null,null,null,0,""]
[null,null,null,null,null,null,null,0,""]
[null,null,null,null,null,null,null,0,""]
[null,null,null,null,null,null,null,0,""]
[null,null,null,null,null,null,null,0,""]
[null,null,null,null,null,null,null,0,""]
[null,null,null,null,null,null,null,0,""]
[null,null,null,null,null,null,null,0,""]
[null,null,null,null,null,null,null,0,""]
[null,null,null,null,null,null,null,0,""]
[null,null,null,null,null,null,null,0,""]
[null,null,null,null,null,null,null,0,""]
[null,null,null,null,null,null,null,0,""]
[null,null,null,null,null,null,null,0,""]
[null,null,null,null,null,null,null,0,""]
[null,null,null,null,null,null,null,0,""]
[null,null,null,null,null,null,null,0,""]
[null,null,null,null,null,null,null,0,""]
[null,null,null,null,null,null,null,0,""]
[null,null,null,null,null,null,null,0,""]
[null,null,null,null,null,null,null,0,""]
[null,null,null,null,null,null,null,0,""]
[null,null,null,null,null,null,null,0,""]
[null,null,null,null,null,null,null,0,""]
[null,null,null,null,null,null,null,0,{"$f":"IF(B331=0,\"\",F331/$F$1212)","v":""}]
[null,null,null,null,null,null,null,0,""]
[null,null,null,null,null,null,null,{"$f":"IF(B333=\"\",0,IF(B333=\"ROW Administrative Services per hour.\",F333*G333,F333))","v":0},""]
[null,null,null,null,null,null,null,0,""]
[null,null,null,null,null,null,null,0,""]
[null,null,null,null,null,null,null,0,""]
[null,null,null,null,null,null,null,0,""]
[null,null,null,null,null,null,null,0,""]
[null,null,null,null,null,null,null,0,""]
[null,null,null,null,null,null,null,0,""]
[null,null,null,null,null,null,null,0,""]
[null,null,null,null,null,null,null,0,""]
[null,null,null,null,null,null,null,0,""]
[null,null,null,null,null,null,null,0,""]
[null,null,null,null,null,null,null,0,""]
[null,null,null,null,null,null,null,0,""]
[null,null,null,null,null,null,null,0,""]
[null,null,null,null,null,null,null,0,""]
[null,null,null,null,null,null,null,0,""]
[null,null,null,null,null,null,null,0,""]
[null,null,null,null,null,null,null,0,""]
[null,null,null,null,null,null,null,0,""]
[null,null,null,null,null,null,null,0,""]
[null,null,null,null,null,null,null,0,""]
[null,null,null,null,null,null,null,0,""]
[null,null,null,null,null,null,null,0,""]
[null,null,null,null,null,null,null,0,""]
[null,null,null,null,null,null,null,0,""]
[null,null,null,null,null,null,null,0,""]
[null,null,null,null,null,null,null,0,""]
[null,null,null,null,null,null,null,0,""]
[null,null,null,null,null,null,null,0,""]
[null,null,null,null,null,null,null,0,""]
[null,null,null,null,null,null,null,0,""]
[null,null,null,null,null,null,null,0,""]
[null,null,null,null,null,null,null,0,""]
[null,null,null,null,null,null,null,0,""]
[null,null,null,null,null,null,null,0,""]
[null,null,null,null,null,null,null,0,""]
[null,null,null,null,null,null,null,0,""]
[null,null,null,null,null,null,null,0,""]
[null,null,null,null,null,null,null,0,""]
[null,null,null,null,null,null,null,0,""]
[null,null,null,null,null,null,null,0,""]
[null,null,null,null,null,null,null,0,""]
[null,null,null,null,null,null,null,0,""]
[null,null,null,null,null,null,null,0,""]
[null,null,null,null,null,null,null,0,""]
[null,null,null,null,null,null,null,0,""]
[null,null,null,null,null,null,null,0,""]
[null,null,null,null,null,null,null,0,""]
[null,null,null,null,null,null,null,0,""]
[null,null,null,null,null,null,null,0,""]
[null,null,null,null,null,null,null,0,""]
[null,null,null,null,null,null,null,0,""]
[null,null,null,null,null,null,null,0,""]
[null,null,null,null,null,null,null,0,""]
[null,null,null,null,null,null,null,0,""]
[null,null,null,null,null,null,null,0,""]
[null,null,null,null,null,null,null,0,""]
[null,null,null,null,null,null,null,0,""]
[null,null,null,null,null,null,null,0,""]
[null,null,null,null,null,null,null,0,""]
[null,null,null,null,null,null,null,0,""]
[null,null,null,null,null,null,null,0,{"$f":"IF(B395=0,\"\",F395/$F$1212)","v":""}]
[null,null,null,null,null,null,null,0,""]
[null,null,null,null,null,null,null,{"$f":"IF(B397=\"\",0,IF(B397=\"ROW Administrative Services per hour.\",F397*G397,F397))","v":0},""]
[null,null,null,null,null,null,null,0,""]
[null,null,null,null,null,null,null,0,""]
[null,null,null,null,null,null,null,0,""]
[null,null,null,null,null,null,null,0,""]
[null,null,null,null,null,null,null,0,""]
[null,null,null,null,null,null,null,0,""]
[null,null,null,null,null,null,null,0,""]
[null,null,null,null,null,null,null,0,""]
[null,null,null,null,null,null,null,0,""]
[null,null,null,null,null,null,null,0,""]
[null,null,null,null,null,null,null,0,""]
[null,null,null,null,null,null,null,0,""]
[null,null,null,null,null,null,null,0,""]
[null,null,null,null,null,null,null,0,""]
[null,null,null,null,null,null,null,0,""]
[null,null,null,null,null,null,null,0,""]
[null,null,null,null,null,null,null,0,""]
[null,null,null,null,null,null,null,0,""]
[null,null,null,null,null,null,null,0,""]
[null,null,null,null,null,null,null,0,""]
[null,null,null,null,null,null,null,0,""]
[null,null,null,null,null,null,null,0,""]
[null,null,null,null,null,null,null,0,""]
[null,null,null,null,null,null,null,0,""]
[null,null,null,null,null,null,null,0,""]
[null,null,null,null,null,null,null,0,""]
[null,null,null,null,null,null,null,0,""]
[null,null,null,null,null,null,null,0,""]
[null,null,null,null,null,null,null,0,""]
[null,null,null,null,null,null,null,0,""]
[null,null,null,null,null,null,null,0,""]
[null,null,null,null,null,null,null,0,""]
[null,null,null,null,null,null,null,0,""]
[null,null,null,null,null,null,null,0,""]
[null,null,null,null,null,null,null,0,""]
[null,null,null,null,null,null,null,0,""]
[null,null,null,null,null,null,null,0,""]
[null,null,null,null,null,null,null,0,""]
[null,null,null,null,null,null,null,0,""]
[null,null,null,null,null,null,null,0,""]
[null,null,null,null,null,null,null,0,""]
[null,null,null,null,null,null,null,0,""]
[null,null,null,null,null,null,null,0,""]
[null,null,null,null,null,null,null,0,""]
[null,null,null,null,null,null,null,0,""]
[null,null,null,null,null,null,null,0,""]
[null,null,null,null,null,null,null,0,""]
[null,null,null,null,null,null,null,0,""]
[null,null,null,null,null,null,null,0,""]
[null,null,null,null,null,null,null,0,""]
[null,null,null,null,null,null,null,0,""]
[null,null,null,null,null,null,null,0,""]
[null,null,null,null,null,null,null,0,""]
[null,null,null,null,null,null,null,0,""]
[null,null,null,null,null,null,null,0,""]
[null,null,null,null,null,null,null,0,""]
[null,null,null,null,null,null,null,0,""]
[null,null,null,null,null,null,null,0,""]
[null,null,null,null,null,null,null,0,""]
[null,null,null,null,null,null,null,0,""]
[null,null,null,null,null,null,null,0,""]
[null,null,null,null,null,null,null,0,{"$f":"IF(B459=0,\"\",F459/$F$1212)","v":""}]
[null,null,null,null,null,null,null,0,""]
[null,null,null,null,null,null,null,{"$f":"IF(B461=\"\",0,IF(B461=\"ROW Administrative Services per hour.\",F461*G461,F461))","v":0},""]
[null,null,null,null,null,null,null,0,""]
[null,null,null,null,null,null,null,0,""]
[null,null,null,null,null,null,null,0,""]
[null,null,null,null,null,null,null,0,""]
[null,null,null,null,null,null,null,0,""]
[null,null,null,null,null,null,null,0,""]
[null,null,null,null,null,null,null,0,""]
[null,null,null,null,null,null,null,0,""]
[null,null,null,null,null,null,null,0,""]
[null,null,null,null,null,null,null,0,""]
[null,null,null,null,null,null,null,0,""]
[null,null,null,null,null,null,null,0,""]
[null,null,null,null,null,null,null,0,""]
[null,null,null,null,null,null,null,0,""]
[null,null,null,null,null,null,null,0,""]
[null,null,null,null,null,null,null,0,""]
[null,null,null,null,null,null,null,0,""]
[null,null,null,null,null,null,null,0,""]
[null,null,null,null,null,null,null,0,""]
[null,null,null,null,null,null,null,0,""]
[null,null,null,null,null,null,null,0,""]
[null,null,null,null,null,null,null,0,""]
[null,null,null,null,null,null,null,0,""]
[null,null,null,null,null,null,null,0,""]
[null,null,null,null,null,null,null,0,""]
[null,null,null,null,null,null,null,0,""]
[null,null,null,null,null,null,null,0,""]
[null,null,null,null,null,null,null,0,""]
[null,null,null,null,null,null,null,0,""]
[null,null,null,null,null,null,null,0,""]
[null,null,null,null,null,null,null,0,""]
[null,null,null,null,null,null,null,0,""]
[null,null,null,null,null,null,null,0,""]
[null,null,null,null,null,null,null,0,""]
[null,null,null,null,null,null,null,0,""]
[null,null,null,null,null,null,null,0,""]
[null,null,null,null,null,null,null,0,""]
[null,null,null,null,null,null,null,0,""]
[null,null,null,null,null,null,null,0,""]
[null,null,null,null,null,null,null,0,""]
[null,null,null,null,null,null,null,0,""]
[null,null,null,null,null,null,null,0,""]
[null,null,null,null,null,null,null,0,""]
[null,null,null,null,null,null,null,0,""]
[null,null,null,null,null,null,null,0,""]
[null,null,null,null,null,null,null,0,""]
[null,null,null,null,null,null,null,0,""]
[null,null,null,null,null,null,null,0,""]
[null,null,null,null,null,null,null,0,""]
[null,null,null,null,null,null,null,0,""]
[null,null,null,null,null,null,null,0,""]
[null,null,null,null,null,null,null,0,""]
[null,null,null,null,null,null,null,0,""]
[null,null,null,null,null,null,null,0,""]
[null,null,null,null,null,null,null,0,""]
[null,null,null,null,null,null,null,0,""]
[null,null,null,null,null,null,null,0,""]
[null,null,null,null,null,null,null,0,""]
[null,null,null,null,null,null,null,0,""]
[null,null,null,null,null,null,null,0,""]
[null,null,null,null,null,null,null,0,""]
[null,null,null,null,null,null,null,0,{"$f":"IF(B523=0,\"\",F523/$F$1212)","v":""}]
[null,null,null,null,null,null,null,0,""]
[null,null,null,null,null,null,null,{"$f":"IF(B525=\"\",0,IF(B525=\"ROW Administrative Services per hour.\",F525*G525,F525))","v":0},""]
[null,null,null,null,null,null,null,0,""]
[null,null,null,null,null,null,null,0,""]
[null,null,null,null,null,null,null,0,""]
[null,null,null,null,null,null,null,0,""]
[null,null,null,null,null,null,null,0,""]
[null,null,null,null,null,null,null,0,""]
[null,null,null,null,null,null,null,0,""]
[null,null,null,null,null,null,null,0,""]
[null,null,null,null,null,null,null,0,""]
[null,null,null,null,null,null,null,0,""]
[null,null,null,null,null,null,null,0,""]
[null,null,null,null,null,null,null,0,""]
[null,null,null,null,null,null,null,0,""]
[null,null,null,null,null,null,null,0,""]
[null,null,null,null,null,null,null,0,""]
[null,null,null,null,null,null,null,0,""]
[null,null,null,null,null,null,null,0,""]
[null,null,null,null,null,null,null,0,""]
[null,null,null,null,null,null,null,0,""]
[null,null,null,null,null,null,null,0,""]
[null,null,null,null,null,null,null,0,""]
[null,null,null,null,null,null,null,0,""]
[null,null,null,null,null,null,null,0,""]
[null,null,null,null,null,null,null,0,""]
[null,null,null,null,null,null,null,0,""]
[null,null,null,null,null,null,null,0,""]
[null,null,null,null,null,null,null,0,""]
[null,null,null,null,null,null,null,0,""]
[null,null,null,null,null,null,null,0,""]
[null,null,null,null,null,null,null,0,""]
[null,null,null,null,null,null,null,0,""]
[null,null,null,null,null,null,null,0,""]
[null,null,null,null,null,null,null,0,""]
[null,null,null,null,null,null,null,0,""]
[null,null,null,null,null,null,null,0,""]
[null,null,null,null,null,null,null,0,""]
[null,null,null,null,null,null,null,0,""]
[null,null,null,null,null,null,null,0,""]
[null,null,null,null,null,null,null,0,""]
[null,null,null,null,null,null,null,0,""]
[null,null,null,null,null,null,null,0,""]
[null,null,null,null,null,null,null,0,""]
[null,null,null,null,null,null,null,0,""]
[null,null,null,null,null,null,null,0,""]
[null,null,null,null,null,null,null,0,""]
[null,null,null,null,null,null,null,0,""]
[null,null,null,null,null,null,null,0,""]
[null,null,null,null,null,null,null,0,""]
[null,null,null,null,null,null,null,0,""]
[null,null,null,null,null,null,null,0,""]
[null,null,null,null,null,null,null,0,""]
[null,null,null,null,null,null,null,0,""]
[null,null,null,null,null,null,null,0,""]
[null,null,null,null,null,null,null,0,""]
[null,null,null,null,null,null,null,0,""]
[null,null,null,null,null,null,null,0,""]
[null,null,null,null,null,null,null,0,""]
[null,null,null,null,null,null,null,0,""]
[null,null,null,null,null,null,null,0,""]
[null,null,null,null,null,null,null,0,""]
[null,null,null,null,null,null,null,0,""]
[null,null,null,null,null,null,null,0,{"$f":"IF(B587=0,\"\",F587/$F$1212)","v":""}]
[null,null,null,null,null,null,null,0,""]
[null,null,null,null,null,null,null,{"$f":"IF(B589=\"\",0,IF(B589=\"ROW Administrative Services per hour.\",F589*G589,F589))","v":0},""]
[null,null,null,null,null,null,null,0,""]
[null,null,null,null,null,null,null,0,""]
[null,null,null,null,null,null,null,0,""]
[null,null,null,null,null,null,null,0,""]
[null,null,null,null,null,null,null,0,""]
[null,null,null,null,null,null,null,0,""]
[null,null,null,null,null,null,null,0,""]
[null,null,null,null,null,null,null,0,""]
[null,null,null,null,null,null,null,0,""]
[null,null,null,null,null,null,null,0,""]
[null,null,null,null,null,null,null,0,""]
[null,null,null,null,null,null,null,0,""]
[null,null,null,null,null,null,null,0,""]
[null,null,null,null,null,null,null,0,""]
[null,null,null,null,null,null,null,0,""]
[null,null,null,null,null,null,null,0,""]
[null,null,null,null,null,null,null,0,""]
[null,null,null,null,null,null,null,0,""]
[null,null,null,null,null,null,null,0,""]
[null,null,null,null,null,null,null,0,""]
[null,null,null,null,null,null,null,0,""]
[null,null,null,null,null,null,null,0,""]
[null,null,null,null,null,null,null,0,""]
[null,null,null,null,null,null,null,0,""]
[null,null,null,null,null,null,null,0,""]
[null,null,null,null,null,null,null,0,""]
[null,null,null,null,null,null,null,0,""]
[null,null,null,null,null,null,null,0,""]
[null,null,null,null,null,null,null,0,""]
[null,null,null,null,null,null,null,0,""]
[null,null,null,null,null,null,null,0,""]
[null,null,null,null,null,null,null,0,""]
[null,null,null,null,null,null,null,0,""]
[null,null,null,null,null,null,null,0,""]
[null,null,null,null,null,null,null,0,""]
[null,null,null,null,null,null,null,0,""]
[null,null,null,null,null,null,null,0,""]
[null,null,null,null,null,null,null,0,""]
[null,null,null,null,null,null,null,0,""]
[null,null,null,null,null,null,null,0,""]
[null,null,null,null,null,null,null,0,""]
[null,null,null,null,null,null,null,0,""]
[null,null,null,null,null,null,null,0,""]
[null,null,null,null,null,null,null,0,""]
[null,null,null,null,null,null,null,0,""]
[null,null,null,null,null,null,null,0,""]
[null,null,null,null,null,null,null,0,""]
[null,null,null,null,null,null,null,0,""]
[null,null,null,null,null,null,null,0,""]
[null,null,null,null,null,null,null,0,""]
[null,null,null,null,null,null,null,0,""]
[null,null,null,null,null,null,null,0,""]
[null,null,null,null,null,null,null,0,""]
[null,null,null,null,null,null,null,0,""]
[null,null,null,null,null,null,null,0,""]
[null,null,null,null,null,null,null,0,""]
[null,null,null,null,null,null,null,0,""]
[null,null,null,null,null,null,null,0,""]
[null,null,null,null,null,null,null,0,""]
[null,null,null,null,null,null,null,0,""]
[null,null,null,null,null,null,null,0,""]
[null,null,null,null,null,null,null,0,{"$f":"IF(B651=0,\"\",F651/$F$1212)","v":""}]
[null,null,null,null,null,null,null,0,""]
[null,null,null,null,null,null,null,{"$f":"IF(B653=\"\",0,IF(B653=\"ROW Administrative Services per hour.\",F653*G653,F653))","v":0},""]
[null,null,null,null,null,null,null,0,""]
[null,null,null,null,null,null,null,0,""]
[null,null,null,null,null,null,null,0,""]
[null,null,null,null,null,null,null,0,""]
[null,null,null,null,null,null,null,0,""]
[null,null,null,null,null,null,null,0,""]
[null,null,null,null,null,null,null,0,""]
[null,null,null,null,null,null,null,0,""]
[null,null,null,null,null,null,null,0,""]
[null,null,null,null,null,null,null,0,""]
[null,null,null,null,null,null,null,0,""]
[null,null,null,null,null,null,null,0,""]
[null,null,null,null,null,null,null,0,""]
[null,null,null,null,null,null,null,0,""]
[null,null,null,null,null,null,null,0,""]
[null,null,null,null,null,null,null,0,""]
[null,null,null,null,null,null,null,0,""]
[null,null,null,null,null,null,null,0,""]
[null,null,null,null,null,null,null,0,""]
[null,null,null,null,null,null,null,0,""]
[null,null,null,null,null,null,null,0,""]
[null,null,null,null,null,null,null,0,""]
[null,null,null,null,null,null,null,0,""]
[null,null,null,null,null,null,null,0,""]
[null,null,null,null,null,null,null,0,""]
[null,null,null,null,null,null,null,0,""]
[null,null,null,null,null,null,null,0,""]
[null,null,null,null,null,null,null,0,""]
[null,null,null,null,null,null,null,0,""]
[null,null,null,null,null,null,null,0,""]
[null,null,null,null,null,null,null,0,""]
[null,null,null,null,null,null,null,0,""]
[null,null,null,null,null,null,null,0,""]
[null,null,null,null,null,null,null,0,""]
[null,null,null,null,null,null,null,0,""]
[null,null,null,null,null,null,null,0,""]
[null,null,null,null,null,null,null,0,""]
[null,null,null,null,null,null,null,0,""]
[null,null,null,null,null,null,null,0,""]
[null,null,null,null,null,null,null,0,""]
[null,null,null,null,null,null,null,0,""]
[null,null,null,null,null,null,null,0,""]
[null,null,null,null,null,null,null,0,""]
[null,null,null,null,null,null,null,0,""]
[null,null,null,null,null,null,null,0,""]
[null,null,null,null,null,null,null,0,""]
[null,null,null,null,null,null,null,0,""]
[null,null,null,null,null,null,null,0,""]
[null,null,null,null,null,null,null,0,""]
[null,null,null,null,null,null,null,0,""]
[null,null,null,null,null,null,null,0,""]
[null,null,null,null,null,null,null,0,""]
[null,null,null,null,null,null,null,0,""]
[null,null,null,null,null,null,null,0,""]
[null,null,null,null,null,null,null,0,""]
[null,null,null,null,null,null,null,0,""]
[null,null,null,null,null,null,null,0,""]
[null,null,null,null,null,null,null,0,""]
[null,null,null,null,null,null,null,0,""]
[null,null,null,null,null,null,null,0,""]
[null,null,null,null,null,null,null,0,""]
[null,null,null,null,null,null,null,0,{"$f":"IF(B715=0,\"\",F715/$F$1212)","v":""}]
[null,null,null,null,null,null,null,0,""]
[null,null,null,null,null,null,null,{"$f":"IF(B717=\"\",0,IF(B717=\"ROW Administrative Services per hour.\",F717*G717,F717))","v":0},""]
[null,null,null,null,null,null,null,0,""]
[null,null,null,null,null,null,null,0,""]
[null,null,null,null,null,null,null,0,""]
[null,null,null,null,null,null,null,0,""]
[null,null,null,null,null,null,null,0,""]
[null,null,null,null,null,null,null,0,""]
[null,null,null,null,null,null,null,0,""]
[null,null,null,null,null,null,null,0,""]
[null,null,null,null,null,null,null,0,""]
[null,null,null,null,null,null,null,0,""]
[null,null,null,null,null,null,null,0,""]
[null,null,null,null,null,null,null,0,""]
[null,null,null,null,null,null,null,0,""]
[null,null,null,null,null,null,null,0,""]
[null,null,null,null,null,null,null,0,""]
[null,null,null,null,null,null,null,0,""]
[null,null,null,null,null,null,null,0,""]
[null,null,null,null,null,null,null,0,""]
[null,null,null,null,null,null,null,0,""]
[null,null,null,null,null,null,null,0,""]
[null,null,null,null,null,null,null,0,""]
[null,null,null,null,null,null,null,0,""]
[null,null,null,null,null,null,null,0,""]
[null,null,null,null,null,null,null,0,""]
[null,null,null,null,null,null,null,0,""]
[null,null,null,null,null,null,null,0,""]
[null,null,null,null,null,null,null,0,""]
[null,null,null,null,null,null,null,0,""]
[null,null,null,null,null,null,null,0,""]
[null,null,null,null,null,null,null,0,""]
[null,null,null,null,null,null,null,0,""]
[null,null,null,null,null,null,null,0,""]
[null,null,null,null,null,null,null,0,""]
[null,null,null,null,null,null,null,0,""]
[null,null,null,null,null,null,null,0,""]
[null,null,null,null,null,null,null,0,""]
[null,null,null,null,null,null,null,0,""]
[null,null,null,null,null,null,null,0,""]
[null,null,null,null,null,null,null,0,""]
[null,null,null,null,null,null,null,0,""]
[null,null,null,null,null,null,null,0,""]
[null,null,null,null,null,null,null,0,""]
[null,null,null,null,null,null,null,0,""]
[null,null,null,null,null,null,null,0,""]
[null,null,null,null,null,null,null,0,""]
[null,null,null,null,null,null,null,0,""]
[null,null,null,null,null,null,null,0,""]
[null,null,null,null,null,null,null,0,""]
[null,null,null,null,null,null,null,0,""]
[null,null,null,null,null,null,null,0,""]
[null,null,null,null,null,null,null,0,""]
[null,null,null,null,null,null,null,0,""]
[null,null,null,null,null,null,null,0,""]
[null,null,null,null,null,null,null,0,""]
[null,null,null,null,null,null,null,0,""]
[null,null,null,null,null,null,null,0,""]
[null,null,null,null,null,null,null,0,""]
[null,null,null,null,null,null,null,0,""]
[null,null,null,null,null,null,null,0,""]
[null,null,null,null,null,null,null,0,""]
[null,null,null,null,null,null,null,0,""]
[null,null,null,null,null,null,null,0,{"$f":"IF(B779=0,\"\",F779/$F$1212)","v":""}]
[null,null,null,null,null,null,null,0,""]
[null,null,null,null,null,null,null,{"$f":"IF(B781=\"\",0,IF(B781=\"ROW Administrative Services per hour.\",F781*G781,F781))","v":0},""]
[null,null,null,null,null,null,null,0,""]
[null,null,null,null,null,null,null,0,""]
[null,null,null,null,null,null,null,0,""]
[null,null,null,null,null,null,null,0,""]
[null,null,null,null,null,null,null,0,""]
[null,null,null,null,null,null,null,0,""]
[null,null,null,null,null,null,null,0,""]
[null,null,null,null,null,null,null,0,""]
[null,null,null,null,null,null,null,0,""]
[null,null,null,null,null,null,null,0,""]
[null,null,null,null,null,null,null,0,""]
[null,null,null,null,null,null,null,0,""]
[null,null,null,null,null,null,null,0,""]
[null,null,null,null,null,null,null,0,""]
[null,null,null,null,null,null,null,0,""]
[null,null,null,null,null,null,null,0,""]
[null,null,null,null,null,null,null,0,""]
[null,null,null,null,null,null,null,0,""]
[null,null,null,null,null,null,null,0,""]
[null,null,null,null,null,null,null,0,""]
[null,null,null,null,null,null,null,0,""]
[null,null,null,null,null,null,null,0,""]
[null,null,null,null,null,null,null,0,""]
[null,null,null,null,null,null,null,0,""]
[null,null,null,null,null,null,null,0,""]
[null,null,null,null,null,null,null,0,""]
[null,null,null,null,null,null,null,0,""]
[null,null,null,null,null,null,null,0,""]
[null,null,null,null,null,null,null,0,""]
[null,null,null,null,null,null,null,0,""]
[null,null,null,null,null,null,null,0,""]
[null,null,null,null,null,null,null,0,""]
[null,null,null,null,null,null,null,0,""]
[null,null,null,null,null,null,null,0,""]
[null,null,null,null,null,null,null,0,""]
[null,null,null,null,null,null,null,0,""]
[null,null,null,null,null,null,null,0,""]
[null,null,null,null,null,null,null,0,""]
[null,null,null,null,null,null,null,0,""]
[null,null,null,null,null,null,null,0,""]
[null,null,null,null,null,null,null,0,""]
[null,null,null,null,null,null,null,0,""]
[null,null,null,null,null,null,null,0,""]
[null,null,null,null,null,null,null,0,""]
[null,null,null,null,null,null,null,0,""]
[null,null,null,null,null,null,null,0,""]
[null,null,null,null,null,null,null,0,""]
[null,null,null,null,null,null,null,0,""]
[null,null,null,null,null,null,null,0,""]
[null,null,null,null,null,null,null,0,""]
[null,null,null,null,null,null,null,0,""]
[null,null,null,null,null,null,null,0,""]
[null,null,null,null,null,null,null,0,""]
[null,null,null,null,null,null,null,0,""]
[null,null,null,null,null,null,null,0,""]
[null,null,null,null,null,null,null,0,""]
[null,null,null,null,null,null,null,0,""]
[null,null,null,null,null,null,null,0,""]
[null,null,null,null,null,null,null,0,""]
[null,null,null,null,null,null,null,0,""]
[null,null,null,null,null,null,null,0,""]
[null,null,null,null,null,null,null,0,{"$f":"IF(B843=0,\"\",F843/$F$1212)","v":""}]
[null,null,null,null,null,null,null,0,""]
[null,null,null,null,null,null,null,{"$f":"IF(B845=\"\",0,IF(B845=\"ROW Administrative Services per hour.\",F845*G845,F845))","v":0},""]
[null,null,null,null,null,null,null,0,""]
[null,null,null,null,null,null,null,0,""]
[null,null,null,null,null,null,null,0,""]
[null,null,null,null,null,null,null,0,""]
[null,null,null,null,null,null,null,0,""]
[null,null,null,null,null,null,null,0,""]
[null,null,null,null,null,null,null,0,""]
[null,null,null,null,null,null,null,0,""]
[null,null,null,null,null,null,null,0,""]
[null,null,null,null,null,null,null,0,""]
[null,null,null,null,null,null,null,0,""]
[null,null,null,null,null,null,null,0,""]
[null,null,null,null,null,null,null,0,""]
[null,null,null,null,null,null,null,0,""]
[null,null,null,null,null,null,null,0,""]
[null,null,null,null,null,null,null,0,""]
[null,null,null,null,null,null,null,0,""]
[null,null,null,null,null,null,null,0,""]
[null,null,null,null,null,null,null,0,""]
[null,null,null,null,null,null,null,0,""]
[null,null,null,null,null,null,null,0,""]
[null,null,null,null,null,null,null,0,""]
[null,null,null,null,null,null,null,0,""]
[null,null,null,null,null,null,null,0,""]
[null,null,null,null,null,null,null,0,""]
[null,null,null,null,null,null,null,0,""]
[null,null,null,null,null,null,null,0,""]
[null,null,null,null,null,null,null,0,""]
[null,null,null,null,null,null,null,0,""]
[null,null,null,null,null,null,null,0,""]
[null,null,null,null,null,null,null,0,""]
[null,null,null,null,null,null,null,0,""]
[null,null,null,null,null,null,null,0,""]
[null,null,null,null,null,null,null,0,""]
[null,null,null,null,null,null,null,0,""]
[null,null,null,null,null,null,null,0,""]
[null,null,null,null,null,null,null,0,""]
[null,null,null,null,null,null,null,0,""]
[null,null,null,null,null,null,null,0,""]
[null,null,null,null,null,null,null,0,""]
[null,null,null,null,null,null,null,0,""]
[null,null,null,null,null,null,null,0,""]
[null,null,null,null,null,null,null,0,""]
[null,null,null,null,null,null,null,0,""]
[null,null,null,null,null,null,null,0,""]
[null,null,null,null,null,null,null,0,""]
[null,null,null,null,null,null,null,0,""]
[null,null,null,null,null,null,null,0,""]
[null,null,null,null,null,null,null,0,""]
[null,null,null,null,null,null,null,0,""]
[null,null,null,null,null,null,null,0,""]
[null,null,null,null,null,null,null,0,""]
[null,null,null,null,null,null,null,0,""]
[null,null,null,null,null,null,null,0,""]
[null,null,null,null,null,null,null,0,""]
[null,null,null,null,null,null,null,0,""]
[null,null,null,null,null,null,null,0,""]
[null,null,null,null,null,null,null,0,""]
[null,null,null,null,null,null,null,0,""]
[null,null,null,null,null,null,null,0,""]
[null,null,null,null,null,null,null,0,""]
[null,null,null,null,null,null,null,0,{"$f":"IF(B907=0,\"\",F907/$F$1212)","v":""}]
[null,null,null,null,null,null,null,0,""]
[null,null,null,null,null,null,null,{"$f":"IF(B909=\"\",0,IF(B909=\"ROW Administrative Services per hour.\",F909*G909,F909))","v":0},""]
[null,null,null,null,null,null,null,0,""]
[null,null,null,null,null,null,null,0,""]
[null,null,null,null,null,null,null,0,""]
[null,null,null,null,null,null,null,0,""]
[null,null,null,null,null,null,null,0,""]
[null,null,null,null,null,null,null,0,""]
[null,null,null,null,null,null,null,0,""]
[null,null,null,null,null,null,null,0,""]
[null,null,null,null,null,null,null,0,""]
[null,null,null,null,null,null,null,0,""]
[null,null,null,null,null,null,null,0,""]
[null,null,null,null,null,null,null,0,""]
[null,null,null,null,null,null,null,0,""]
[null,null,null,null,null,null,null,0,""]
[null,null,null,null,null,null,null,0,""]
[null,null,null,null,null,null,null,0,""]
[null,null,null,null,null,null,null,0,""]
[null,null,null,null,null,null,null,0,""]
[null,null,null,null,null,null,null,0,""]
[null,null,null,null,null,null,null,0,""]
[null,null,null,null,null,null,null,0,""]
[null,null,null,null,null,null,null,0,""]
[null,null,null,null,null,null,null,0,""]
[null,null,null,null,null,null,null,0,""]
[null,null,null,null,null,null,null,0,""]
[null,null,null,null,null,null,null,0,""]
[null,null,null,null,null,null,null,0,""]
[null,null,null,null,null,null,null,0,""]
[null,null,null,null,null,null,null,0,""]
[null,null,null,null,null,null,null,0,""]
[null,null,null,null,null,null,null,0,""]
[null,null,null,null,null,null,null,0,""]
[null,null,null,null,null,null,null,0,""]
[null,null,null,null,null,null,null,0,""]
[null,null,null,null,null,null,null,0,""]
[null,null,null,null,null,null,null,0,""]
[null,null,null,null,null,null,null,0,""]
[null,null,null,null,null,null,null,0,""]
[null,null,null,null,null,null,null,0,""]
[null,null,null,null,null,null,null,0,""]
[null,null,null,null,null,null,null,0,""]
[null,null,null,null,null,null,null,0,""]
[null,null,null,null,null,null,null,0,""]
[null,null,null,null,null,null,null,0,""]
[null,null,null,null,null,null,null,0,""]
[null,null,null,null,null,null,null,0,""]
[null,null,null,null,null,null,null,0,""]
[null,null,null,null,null,null,null,0,""]
[null,null,null,null,null,null,null,0,""]
[null,null,null,null,null,null,null,0,""]
[null,null,null,null,null,null,null,0,""]
[null,null,null,null,null,null,null,0,""]
[null,null,null,null,null,null,null,0,""]
[null,null,null,null,null,null,null,0,""]
[null,null,null,null,null,null,null,0,""]
[null,null,null,null,null,null,null,0,""]
[null,null,null,null,null,null,null,0,""]
[null,null,null,null,null,null,null,0,""]
[null,null,null,null,null,null,null,0,""]
[null,null,null,null,null,null,null,0,""]
[null,null,null,null,null,null,null,0,""]
[null,null,null,null,null,null,null,0,{"$f":"IF(B971=0,\"\",F971/$F$1212)","v":""}]
[null,null,null,null,null,null,null,0,""]
[null,null,null,null,null,null,null,{"$f":"IF(B973=\"\",0,IF(B973=\"ROW Administrative Services per hour.\",F973*G973,F973))","v":0},""]
[null,null,null,null,null,null,null,0,""]
[null,null,null,null,null,null,null,0,""]
[null,null,null,null,null,null,null,0,""]
[null,null,null,null,null,null,null,0,""]
[null,null,null,null,null,null,null,0,""]
[null,null,null,null,null,null,null,0,""]
[null,null,null,null,null,null,null,0,""]
[null,null,null,null,null,null,null,0,""]
[null,null,null,null,null,null,null,0,""]
[null,null,null,null,null,null,null,0,""]
[null,null,null,null,null,null,null,0,""]
[null,null,null,null,null,null,null,0,""]
[null,null,null,null,null,null,null,0,""]
[null,null,null,null,null,null,null,0,""]
[null,null,null,null,null,null,null,0,""]
[null,null,null,null,null,null,null,0,""]
[null,null,null,null,null,null,null,0,""]
[null,null,null,null,null,null,null,0,""]
[null,null,null,null,null,null,null,0,""]
[null,null,null,null,null,null,null,0,""]
[null,null,null,null,null,null,null,0,""]
[null,null,null,null,null,null,null,0,""]
[null,null,null,null,null,null,null,0,""]
[null,null,null,null,null,null,null,0,""]
[null,null,null,null,null,null,null,0,""]
[null,null,null,null,null,null,null,0,""]
[null,null,null,null,null,null,null,0,""]
[null,null,null,null,null,null,null,0,""]
[null,null,null,null,null,null,null,0,""]
[null,null,null,null,null,null,null,0,""]
[null,null,null,null,null,null,null,0,""]
[null,null,null,null,null,null,null,0,""]
[null,null,null,null,null,null,null,0,""]
[null,null,null,null,null,null,null,0,""]
[null,null,null,null,null,null,null,0,""]
[null,null,null,null,null,null,null,0,""]
[null,null,null,null,null,null,null,0,""]
[null,null,null,null,null,null,null,0,""]
[null,null,null,null,null,null,null,0,""]
[null,null,null,null,null,null,null,0,""]
[null,null,null,null,null,null,null,0,""]
[null,null,null,null,null,null,null,0,""]
[null,null,null,null,null,null,null,0,""]
[null,null,null,null,null,null,null,0,""]
[null,null,null,null,null,null,null,0,""]
[null,null,null,null,null,null,null,0,""]
[null,null,null,null,null,null,null,0,""]
[null,null,null,null,null,null,null,0,""]
[null,null,null,null,null,null,null,0,""]
[null,null,null,null,null,null,null,0,""]
[null,null,null,null,null,null,null,0,""]
[null,null,null,null,null,null,null,0,""]
[null,null,null,null,null,null,null,0,""]
[null,null,null,null,null,null,null,0,""]
[null,null,null,null,null,null,null,0,""]
[null,null,null,null,null,null,null,0,""]
[null,null,null,null,null,null,null,0,""]
[null,null,null,null,null,null,null,0,""]
[null,null,null,null,null,null,null,0,""]
[null,null,null,null,null,null,null,0,""]
[null,null,null,null,null,null,null,0,""]
[null,null,null,null,null,null,null,0,{"$f":"IF(B1035=0,\"\",F1035/$F$1212)","v":""}]
[null,null,null,null,null,null,null,0,""]
[null,null,null,null,null,null,null,{"$f":"IF(B1037=\"\",0,IF(B1037=\"ROW Administrative Services per hour.\",F1037*G1037,F1037))","v":0},""]
[null,null,null,null,null,null,null,0,""]
[null,null,null,null,null,null,null,0,""]
[null,null,null,null,null,null,null,0,""]
[null,null,null,null,null,null,null,0,""]
[null,null,null,null,null,null,null,0,""]
[null,null,null,null,null,null,null,0,""]
[null,null,null,null,null,null,null,0,""]
[null,null,null,null,null,null,null,0,""]
[null,null,null,null,null,null,null,0,""]
[null,null,null,null,null,null,null,0,""]
[null,null,null,null,null,null,null,0,""]
[null,null,null,null,null,null,null,0,""]
[null,null,null,null,null,null,null,0,""]
[null,null,null,null,null,null,null,0,""]
[null,null,null,null,null,null,null,0,""]
[null,null,null,null,null,null,null,0,""]
[null,null,null,null,null,null,null,0,""]
[null,null,null,null,null,null,null,0,""]
[null,null,null,null,null,null,null,0,""]
[null,null,null,null,null,null,null,0,""]
[null,null,null,null,null,null,null,0,""]
[null,null,null,null,null,null,null,0,""]
[null,null,null,null,null,null,null,0,""]
[null,null,null,null,null,null,null,0,""]
[null,null,null,null,null,null,null,0,""]
[null,null,null,null,null,null,null,0,""]
[null,null,null,null,null,null,null,0,""]
[null,null,null,null,null,null,null,0,""]
[null,null,null,null,null,null,null,0,""]
[null,null,null,null,null,null,null,0,""]
[null,null,null,null,null,null,null,0,""]
[null,null,null,null,null,null,null,0,""]
[null,null,null,null,null,null,null,0,""]
[null,null,null,null,null,null,null,0,""]
[null,null,null,null,null,null,null,0,""]
[null,null,null,null,null,null,null,0,""]
[null,null,null,null,null,null,null,0,""]
[null,null,null,null,null,null,null,0,""]
[null,null,null,null,null,null,null,0,""]
[null,null,null,null,null,null,null,0,""]
[null,null,null,null,null,null,null,0,""]
[null,null,null,null,null,null,null,0,""]
[null,null,null,null,null,null,null,0,""]
[null,null,null,null,null,null,null,0,""]
[null,null,null,null,null,null,null,0,""]
[null,null,null,null,null,null,null,0,""]
[null,null,null,null,null,null,null,0,""]
[null,null,null,null,null,null,null,0,""]
[null,null,null,null,null,null,null,0,""]
[null,null,null,null,null,null,null,0,""]
[null,null,null,null,null,null,null,0,""]
[null,null,null,null,null,null,null,0,""]
[null,null,null,null,null,null,null,0,""]
[null,null,null,null,null,null,null,0,""]
[null,null,null,null,null,null,null,0,""]
[null,null,null,null,null,null,null,0,""]
[null,null,null,null,null,null,null,0,""]
[null,null,null,null,null,null,null,0,""]
[null,null,null,null,null,null,null,0,""]
[null,null,null,null,null,null,null,0,""]
[null,null,null,null,null,null,null,0,""]
[null,null,null,null,null,null,null,0,{"$f":"IF(B1099=0,\"\",F1099/$F$1212)","v":""}]
[null,null,null,null,null,null,null,0,""]
[null,null,null,null,null,null,null,{"$f":"IF(B1101=\"\",0,IF(B1101=\"ROW Administrative Services per hour.\",F1101*G1101,F1101))","v":0},""]
[null,null,null,null,null,null,null,0,""]
[null,null,null,null,null,null,null,0,""]
[null,null,null,null,null,null,null,0,""]
[null,null,null,null,null,null,null,0,""]
[null,null,null,null,null,null,null,0,""]
[null,null,null,null,null,null,null,0,""]
[null,null,null,null,null,null,null,0,""]
[null,null,null,null,null,null,null,0,""]
[null,null,null,null,null,null,null,0,""]
[null,null,null,null,null,null,null,0,""]
[null,null,null,null,null,null,null,0,""]
[null,null,null,null,null,null,null,0,""]
[null,null,null,null,null,null,null,0,""]
[null,null,null,null,null,null,null,0,""]
[null,null,null,null,null,null,null,0,""]
[null,null,null,null,null,null,null,0,""]
[null,null,null,null,null,null,null,0,""]
[null,null,null,null,null,null,null,0,""]
[null,null,null,null,null,null,null,0,""]
[null,null,null,null,null,null,null,0,""]
[null,null,null,null,null,null,null,0,""]
[null,null,null,null,null,null,null,0,""]
[null,null,null,null,null,null,null,0,""]
[null,null,null,null,null,null,null,0,""]
[null,null,null,null,null,null,null,0,""]
[null,null,null,null,null,null,null,0,""]
[null,null,null,null,null,null,null,0,""]
[null,null,null,null,null,null,null,0,""]
[null,null,null,null,null,null,null,0,""]
[null,null,null,null,null,null,null,0,""]
[null,null,null,null,null,null,null,0,""]
[null,null,null,null,null,null,null,0,""]
[null,null,null,null,null,null,null,0,""]
[null,null,null,null,null,null,null,0,""]
[null,null,null,null,null,null,null,0,""]
[null,null,null,null,null,null,null,0,""]
[null,null,null,null,null,null,null,0,""]
[null,null,null,null,null,null,null,0,""]
[null,null,null,null,null,null,null,0,""]
[null,null,null,null,null,null,null,0,""]
[null,null,null,null,null,null,null,0,""]
[null,null,null,null,null,null,null,0,""]
[null,null,null,null,null,null,null,0,""]
[null,null,null,null,null,null,null,0,""]
[null,null,null,null,null,null,null,0,""]
[null,null,null,null,null,null,null,0,""]
[null,null,null,null,null,null,null,0,""]
[null,null,null,null,null,null,null,0,""]
[null,null,null,null,null,null,null,0,""]
[null,null,null,null,null,null,null,0,""]
[null,null,null,null,null,null,null,0,""]
[null,null,null,null,null,null,null,0,""]
[null,null,null,null,null,null,null,0,""]
[null,null,null,null,null,null,null,0,""]
[null,null,null,null,null,null,null,0,""]
[null,null,null,null,null,null,null,0,""]
[null,null,null,null,null,null,null,0,""]
[null,null,null,null,null,null,null,0,""]
[null,null,null,null,null,null,null,0,""]
[null,null,null,null,null,null,null,0,""]
[null,null,null,null,null,null,null,0,""]
[null,null,null,null,null,null,null,0,{"$f":"IF(B1163=0,\"\",F1163/$F$1212)","v":""}]
[null,null,null,null,null,null,null,0,""]
[null,null,null,null,null,null,null,{"$f":"IF(B1165=\"\",0,IF(B1165=\"ROW Administrative Services per hour.\",F1165*G1165,F1165))","v":0},""]
[null,null,null,null,null,null,null,0,""]
[null,null,null,null,null,null,null,0,""]
[null,null,null,null,null,null,null,0,""]
[null,null,null,null,null,null,null,0,""]
[null,null,null,null,null,null,null,0,""]
[null,null,null,null,null,null,null,0,""]
[null,null,null,null,null,null,null,0,""]
[null,null,null,null,null,null,null,0,""]
[null,null,null,null,null,null,null,0,""]
[null,null,null,null,null,null,null,0,""]
[null,null,null,null,null,null,null,0,""]
[null,null,null,null,null,null,null,0,""]
[null,null,null,null,null,null,null,0,""]
[null,null,null,null,null,null,null,0,""]
[null,null,null,null,null,null,null,0,""]
[null,null,null,null,null,null,null,0,""]
[null,null,null,null,null,null,null,0,""]
[null,null,null,null,null,null,null,0,""]
[null,null,null,null,null,null,null,0,""]
[null,null,null,null,null,null,null,0,""]
[null,null,null,null,null,null,null,0,""]
[null,null,null,null,null,null,null,0,""]
[null,null,null,null,null,null,null,0,""]
[null,null,null,null,null,null,null,0,""]
[null,null,null,null,null,null,null,0,""]
[null,null,null,null,null,null,null,0,""]
[null,null,null,null,null,null,null,0,""]
[null,null,null,null,null,null,null,0,""]
[null,null,null,null,null,null,null,0,""]
[null,null,null,null,null,null,null,0,""]
[null,null,null,null,null,null,null,0,""]
[null,null,null,null,null,null,null,0,""]
[null,null,null,null,null,null,null,0,""]
[null,null,null,null,null,null,null,0,""]
[null,null,null,null,null,null,null,0,""]
[null,null,null,null,null,null,null,0,""]
[null,null,null,null,null,null,null,0,""]
[null,null,null,null,null,null,null,0,""]
[null,null,null,null,null,null,null,0,""]
[null,null,null,null,null,null,null,0,""]
[null,null,null,null,null,null,null,0,""]
[null,null,null,null,null,null,null,0,""]
[null,null,null,null,null,null,null,0,""]
[null,null,null,null,null,null,null,0,""]
[null,null,null,null,null,null,null,0,""]
[null,null,null,null,null,null,null,0,""]
[null,"RIGHT OF WAY GRAND TOTAL",null,null,null,{"$f":"SUM(H11:H1211)","v":0}]